{"text_format":"1","workbook":"xlsx","n_sheets":13,"sheets":["Instructions","DDGS Calculator","Performance","Nutrients","Grow finish feed budget","GF diets No L-Val","GF diets No L-Val + Fat","GF diets L-Val","GF diets L-Val + Fat","GF diets No L-Val + WD","GF diets No L-Val + Fat + WD","GF diets L-Val + WD","GF diets L-Val + Fat + WD"],"not_rendered":{"charts":0,"images":3,"macros":1,"external_links":0,"defined_names":94,"comments":5,"pivot_tables":0},"unopened":[],"bounds":{"document_bytes":16777216,"sheet_cells":100000,"rows_first":2000,"rows_last":500,"rows_between":2000,"halvings":0,"cell_chars":16384,"cell_head_chars":4096},"cells_cut":0,"cells_raw":0,"read":"whole","date_system":"1900"}

{"sheet":"Instructions","index":0,"n_rows":6,"n_cols":5,"rows_kept":6,"cut":false,"hidden":false,"merged":[[2,4,4,18],[5,4,6,18]]}
[]
[]
[null,null,null,null,"Dried distillers grains with solubles (DDGS) calculator for finishing pigs"]
[]
[]
[null,null,null,null,"Created by the KSU Applied Swine Nutrition Team"]

{"sheet":"DDGS Calculator","index":1,"n_rows":81,"n_cols":22,"rows_kept":81,"cut":false,"hidden":false,"merged":[[0,2,0,6],[3,5,3,6],[3,2,3,3],[10,5,10,6],[16,2,16,6],[1,2,1,6]]}
[null,null,"K-State DDGS Calculator- V2"]
[null,null,"Calculator Inputs"]
[null,"Insert information into yellow cells",null,null,null,null,null,null,null,null,null,null,null,null,null,"Phase 1","Phase 2","Phase 3","Phase 4","Phase 5","Phase 6","Total"]
[null,null,"Ingredient Prices",null,null,"Diet Formuation and Income",null,{"$f":"IF(D5=\"\",\"\",D7/((D5/56)*2000))","v":1.1199999999999999},"= DDGS to corn price ratio",null,null,0,null,null,"Days on Phase",22.87,18.254561941555032,19.186255948622634,18.432143672279327,18.45672238956185,21.893135561949876,{"$f":"SUM(P4:U4)","v":119.09281951396871}]
[null,null,"Corn, $/bu",4.5,null,null,"No",null,null,null,null,0.05]
[null,null,"SBM, $/ton",300,null,null,"No",null,null,null,null,0.1]
[null,null,"DDGS, $/ton",180,null,null,"No",null,null,null,null,0.15]
[null,null,"Limestone, $/ton",87,null,null,0.9,null,null,null,null,0.2]
[null,null,"Monocal, $/ton",640,null,null,75,null,null,null,null,0.25]
[null,null,"Fat, $/lb",0.4,null,null,null,null,null,null,null,0.3]
[null,null,"L-Lys HCl, $/lb",0.9,null,"Predicted NE of DDGS"]
[null,null,"DL-Met, $/lb",1.25,null,"NE of DDGS based on:","% of corn NE"]
[null,null,"L-Thr, $/lb",0.8,null,"NE of DDGS, kcal/lb",{"$f":"IF(G12=\"\",\"\",IF(G12=\"% of corn NE\",(Nutrients!F24/2.20462)*('DDGS Calculator'!G14/100),(1952.929+(39.307*G14)-(1.429*G15))*0.453592))","v":969.6002032096236},{"$f":"IF(G13=\"\",\"\",IF(G12=\"% of corn NE\",\"\",\"DDGS NE, % of corn:\"))","v":""},{"$f":"IF(H13=\"\",\"\",IF(G12=\"% of corn\",\"\",(G13*2.20462)/Nutrients!F24))","v":""}]
[null,null,"L-Trp, $/lb",3.8,null,{"$f":"IF(G12=\"\",\"\",IF(G12=\"% of corn NE\",\"NE as % of corn\",\"Oil, %\"))","v":"NE as % of corn"},80,{"$f":"IF(AND(G12=\"Oil and ADF content\", G14>13), \"Check Oil, %\", IF(AND(G12=\"% of corn NE\", G14<60), \"Check NE as % or corn value\", \"\"))","v":""},null,null,null,"% of corn NE"]
[null,null,"L-Val, $/lb",1.5,null,{"$f":"IF(G12=\"\",\"\",IF(G12=\"% of corn NE\",\"\",\"ADF, %\"))","v":""},12,null,null,null,null,"Oil and ADF content"]
[]
[null,null,"Calculator Outputs"]
[]
[null,"Starting weight, lb",50,85,120,160,200,240]
[null,"Ending weight, lb",85,120,160,200,240,285]
[]
[null,"  DDGS Level for maximum value (fixed time basis)","Phase 1 ","Phase 2","Phase 3","Phase 4","Phase 5","Phase 6","Total "]
[null,"  Maximum feed cost saving",{"$f":"IF(MAX(IF(C44:C49>0.005,C44:C49))=C49,0.3,\nIF(MAX(IF(C44:C49>0.005,C44:C49))=C48,0.25,\nIF(MAX(IF(C44:C49>0.005,C44:C49))=C47,0.2,\nIF(MAX(IF(C44:C49>0.005,C44:C49))=C46,0.15,\nIF(MAX(IF(C44:C49>0.005,C44:C49))=C45,0.1,\nIF(AND(C44>0.005,MAX(C44:C49)=C44),0.05,\"No DDGS\"))))))","v":0.2},{"$f":"IF(MAX(IF(D44:D49>0.005,D44:D49))=D49,0.3,\nIF(MAX(IF(D44:D49>0.005,D44:D49))=D48,0.25,\nIF(MAX(IF(D44:D49>0.005,D44:D49))=D47,0.2,\nIF(MAX(IF(D44:D49>0.005,D44:D49))=D46,0.15,\nIF(MAX(IF(D44:D49>0.005,D44:D49))=D45,0.1,\nIF(AND(D44>0.005,MAX(D44:D49)=D44),0.05,\"No DDGS\"))))))","v":0.3},{"$f":"IF(MAX(IF(E44:E49>0.005,E44:E49))=E49,0.3,\nIF(MAX(IF(E44:E49>0.005,E44:E49))=E48,0.25,\nIF(MAX(IF(E44:E49>0.005,E44:E49))=E47,0.2,\nIF(MAX(IF(E44:E49>0.005,E44:E49))=E46,0.15,\nIF(MAX(IF(E44:E49>0.005,E44:E49))=E45,0.1,\nIF(AND(E44>0.005,MAX(E44:E49)=E44),0.05,\"No DDGS\"))))))","v":0.3},{"$f":"IF(MAX(IF(F44:F49>0.005,F44:F49))=F49,0.3,\nIF(MAX(IF(F44:F49>0.005,F44:F49))=F48,0.25,\nIF(MAX(IF(F44:F49>0.005,F44:F49))=F47,0.2,\nIF(MAX(IF(F44:F49>0.005,F44:F49))=F46,0.15,\nIF(MAX(IF(F44:F49>0.005,F44:F49))=F45,0.1,\nIF(AND(F44>0.005,MAX(F44:F49)=F44),0.05,\"No DDGS\"))))))","v":0.3},{"$f":"IF(MAX(IF(G44:G49>0.005,G44:G49))=G49,0.3,\nIF(MAX(IF(G44:G49>0.005,G44:G49))=G48,0.25,\nIF(MAX(IF(G44:G49>0.005,G44:G49))=G47,0.2,\nIF(MAX(IF(G44:G49>0.005,G44:G49))=G46,0.15,\nIF(MAX(IF(G44:G49>0.005,G44:G49))=G45,0.1,\nIF(AND(G44>0.005,MAX(G44:G49)=G44),0.05,\"No DDGS\"))))))","v":0.3},{"$f":"IF(G6=\"Yes\",\"No DDGS\",\nIF(MAX(IF(H44:H49>0.005,H44:H49))=H49,0.3,\nIF(MAX(IF(H44:H49>0.005,H44:H49))=H48,0.25,\nIF(MAX(IF(H44:H49>0.005,H44:H49))=H47,0.2,\nIF(MAX(IF(H44:H49>0.005,H44:H49))=H46,0.15,\nIF(MAX(IF(H44:H49>0.005,H44:H49))=H45,0.1,\nIF(AND(H44>0.005,MAX(H44:H49)=H44),0.05,\"No DDGS\")))))))","v":0.3}]
[null,"Feed cost difference, $/pig",{"$f":"IF(C23=\"No DDGS\",0,VLOOKUP(C23,$A$44:$H$49,3,FALSE))","v":9.9018579497420767E-2},{"$f":"IF(D23=\"No DDGS\",0,VLOOKUP(D23,$A$44:$H$49,4,FALSE))","v":0.13488214483955119},{"$f":"IF(E23=\"No DDGS\",0,VLOOKUP(E23,A44:H49,5,FALSE))","v":0.20360894250297434},{"$f":"IF(F23=\"No DDGS\",0,VLOOKUP(F23,$A$44:$H$49,6,FALSE))","v":0.30102115603801671},{"$f":"IF(G23=\"No DDGS\",0,VLOOKUP(G23,$A$44:$H$49,7,FALSE))","v":0.48813736476942715},{"$f":"IF(H23=\"No DDGS\",0,VLOOKUP(H23,$A$44:$H$49,8,FALSE))","v":1.0188582101080073},{"$f":"SUM(C24:H24)","v":2.2455263977553974}]
[null,"  Income over feed cost on live weight basis compared to 0% DDGS",{"$f":"IF(MAX(IF(C60:C65>0.005,C60:C65))=C65,0.3,\nIF(MAX(IF(C60:C65>0.005,C60:C65))=C64,0.25,\nIF(MAX(IF(C60:C65>0.005,C60:C65))=C63,0.2,\nIF(MAX(IF(C60:C65>0.005,C60:C65))=C62,0.15,\nIF(MAX(IF(C60:C65>0.005,C60:C65))=C61,0.1,\nIF(AND(C60>0.005,MAX(C60:C65)=C60),0.05,\"No DDGS\"))))))","v":"No DDGS"},{"$f":"IF(MAX(IF(D60:D65>0.005,D60:D65))=D65,0.3,\nIF(MAX(IF(D60:D65>0.005,D60:D65))=D64,0.25,\nIF(MAX(IF(D60:D65>0.005,D60:D65))=D63,0.2,\nIF(MAX(IF(D60:D65>0.005,D60:D65))=D62,0.15,\nIF(MAX(IF(D60:D65>0.005,D60:D65))=D61,0.1,\nIF(AND(D60>0.005,MAX(D60:D65)=D60),0.05,\"No DDGS\"))))))","v":"No DDGS"},{"$f":"IF(MAX(IF(E60:E65>0.005,E60:E65))=E65,0.3,\nIF(MAX(IF(E60:E65>0.005,E60:E65))=E64,0.25,\nIF(MAX(IF(E60:E65>0.005,E60:E65))=E63,0.2,\nIF(MAX(IF(E60:E65>0.005,E60:E65))=E62,0.15,\nIF(MAX(IF(E60:E65>0.005,E60:E65))=E61,0.1,\nIF(AND(E60>0.005,MAX(E60:E65)=E60),0.05,\"No DDGS\"))))))","v":"No DDGS"},{"$f":"IF(MAX(IF(F60:F65>0.005,F60:F65))=F65,0.3,\nIF(MAX(IF(F60:F65>0.005,F60:F65))=F64,0.25,\nIF(MAX(IF(F60:F65>0.005,F60:F65))=F63,0.2,\nIF(MAX(IF(F60:F65>0.005,F60:F65))=F62,0.15,\nIF(MAX(IF(F60:F65>0.005,F60:F65))=F61,0.1,\nIF(AND(F60>0.005,MAX(F60:F65)=F60),0.05,\"No DDGS\"))))))","v":"No DDGS"},{"$f":"IF(MAX(IF(G60:G65>0.005,G60:G65))=G65,0.3,\nIF(MAX(IF(G60:G65>0.005,G60:G65))=G64,0.25,\nIF(MAX(IF(G60:G65>0.005,G60:G65))=G63,0.2,\nIF(MAX(IF(G60:G65>0.005,G60:G65))=G62,0.15,\nIF(MAX(IF(G60:G65>0.005,G60:G65))=G61,0.1,\nIF(AND(G60>0.005,MAX(G60:G65)=G60),0.05,\"No DDGS\"))))))","v":"No DDGS"},{"$f":"IF(G6=\"Yes\",\"No DDGS\",IF(MAX(IF(H60:H65>0.005,H60:H65))=H65,0.3,\nIF(MAX(IF(H60:H65>0.005,H60:H65))=H64,0.25,\nIF(MAX(IF(H60:H65>0.005,H60:H65))=H63,0.2,\nIF(MAX(IF(H60:H65>0.005,H60:H65))=H62,0.15,\nIF(MAX(IF(H60:H65>0.005,H60:H65))=H61,0.1,\nIF(AND(H60>0.005,MAX(H60:H65)=H60),0.05,\"No DDGS\")))))))","v":"No DDGS"}]
[null,"Income difference, $/pig",{"$f":"IF(C25=\"No DDGS\",\"- - -\",VLOOKUP(C25,$A$60:$H$65,3,FALSE))","v":"- - -"},{"$f":"IF(D25=\"No DDGS\",\"- - -\",VLOOKUP(D25,$A$60:$H$65,4,FALSE))","v":"- - -"},{"$f":"IF(E25=\"No DDGS\",\"- - -\",VLOOKUP(E25,$A$60:$H$65,5,FALSE))","v":"- - -"},{"$f":"IF(F25=\"No DDGS\",\"- - -\",VLOOKUP(F25,$A$60:$H$65,6,FALSE))","v":"- - -"},{"$f":"IF(G25=\"No DDGS\",\"- - -\",VLOOKUP(G25,$A$60:$H$65,7,FALSE))","v":"- - -"},{"$f":"IF(H25=\"No DDGS\",\"- - -\",VLOOKUP(H25,$A$60:$H$65,8,FALSE))","v":"- - -"},{"$f":"SUM(C26:H26)","v":0}]
[null,"  Income over feed cost on carcass weight compared to 0% DDGS",{"$f":"IF(MAX(IF(C68:C73>0.005,C68:C73))=C73,0.3,\nIF(MAX(IF(C68:C73>0.005,C68:C73))=C72,0.25,\nIF(MAX(IF(C68:C73>0.005,C68:C73))=C71,0.2,\nIF(MAX(IF(C68:C73>0.005,C68:C73))=C70,0.15,\nIF(MAX(IF(C68:C73>0.005,C68:C73))=C69,0.1,\nIF(AND(C68>0.005,MAX(C68:C73)=C68),0.05,\"No DDGS\"))))))","v":"No DDGS"},{"$f":"IF(MAX(IF(D68:D73>0.005,D68:D73))=D73,0.3,\nIF(MAX(IF(D68:D73>0.005,D68:D73))=D72,0.25,\nIF(MAX(IF(D68:D73>0.005,D68:D73))=D71,0.2,\nIF(MAX(IF(D68:D73>0.005,D68:D73))=D70,0.15,\nIF(MAX(IF(D68:D73>0.005,D68:D73))=D69,0.1,\nIF(AND(D68>0.005,MAX(D68:D73)=D68),0.05,\"No DDGS\"))))))","v":"No DDGS"},{"$f":"IF(MAX(IF(E68:E73>0.005,E68:E73))=E73,0.3,\nIF(MAX(IF(E68:E73>0.005,E68:E73))=E72,0.25,\nIF(MAX(IF(E68:E73>0.005,E68:E73))=E71,0.2,\nIF(MAX(IF(E68:E73>0.005,E68:E73))=E70,0.15,\nIF(MAX(IF(E68:E73>0.005,E68:E73))=E69,0.1,\nIF(AND(E68>0.005,MAX(E68:E73)=E68),0.05,\"No DDGS\"))))))","v":"No DDGS"},{"$f":"IF(MAX(IF(F68:F73>0.005,F68:F73))=F73,0.3,\nIF(MAX(IF(F68:F73>0.005,F68:F73))=F72,0.25,\nIF(MAX(IF(F68:F73>0.005,F68:F73))=F71,0.2,\nIF(MAX(IF(F68:F73>0.005,F68:F73))=F70,0.15,\nIF(MAX(IF(F68:F73>0.005,F68:F73))=F69,0.1,\nIF(AND(F68>0.005,MAX(F68:F73)=F68),0.05,\"No DDGS\"))))))","v":"No DDGS"},{"$f":"IF(MAX(IF(G68:G73>0.005,G68:G73))=G73,0.3,\nIF(MAX(IF(G68:G73>0.005,G68:G73))=G72,0.25,\nIF(MAX(IF(G68:G73>0.005,G68:G73))=G71,0.2,\nIF(MAX(IF(G68:G73>0.005,G68:G73))=G70,0.15,\nIF(MAX(IF(G68:G73>0.005,G68:G73))=G69,0.1,\nIF(AND(G68>0.005,MAX(G68:G73)=G68),0.05,\"No DDGS\"))))))","v":"No DDGS"},{"$f":"IF(G6=\"Yes\",\"No DDGS\",IF(MAX(IF(H68:H73>0.005,H68:H73))=H73,0.3,\nIF(MAX(IF(H68:H73>0.005,H68:H73))=H72,0.25,\nIF(MAX(IF(H68:H73>0.005,H68:H73))=H71,0.2,\nIF(MAX(IF(H68:H73>0.005,H68:H73))=H70,0.15,\nIF(MAX(IF(H68:H73>0.005,H68:H73))=H69,0.1,\nIF(AND(H68>0.005,MAX(H68:H73)=H68),0.05,\"No DDGS\")))))))","v":"No DDGS"}]
[null,"Income difference, $/pig",{"$f":"IF(C27=\"No DDGS\",\"- - -\",VLOOKUP(C27,$A$68:$H$73,3,FALSE))","v":"- - -"},{"$f":"IF(D27=\"No DDGS\",\"- - -\",VLOOKUP(D27,$A$68:$H$73,4,FALSE))","v":"- - -"},{"$f":"IF(E27=\"No DDGS\",\"- - -\",VLOOKUP(E27,$A$68:$H$73,5,FALSE))","v":"- - -"},{"$f":"IF(F27=\"No DDGS\",\"- - -\",VLOOKUP(F27,$A$68:$H$73,6,FALSE))","v":"- - -"},{"$f":"IF(G27=\"No DDGS\",\"- - -\",VLOOKUP(G27,$A$68:$H$73,7,FALSE))","v":"- - -"},{"$f":"IF(H27=\"No DDGS\",\"- - -\",VLOOKUP(H27,$A$68:$H$73,8,FALSE))","v":"- - -"},{"$f":"SUM(C28:H28)","v":0}]
[]
[null,null,"Phase 1 ","Phase 2","Phase 3","Phase 4","Phase 5","Phase 6","Total "]
[null,"Selected DDGS Level",null,null,null,null,null,null,"-"]
[null,"Feed savings: selected vs 0% DDGS, $/pig",{"$f":"IF(C31=\"\",\"\",IF(C31=0,0,VLOOKUP(C31,$A$44:$H$49,3,FALSE)))","v":""},{"$f":"IF(D31=\"\",\"\",IF(D31=0,0,VLOOKUP(D31,$A$44:$H$49,4,FALSE)))","v":""},{"$f":"IF(E31=\"\",\"\",IF(E31=0,0,VLOOKUP(E31,$A$44:$H$49,5,FALSE)))","v":""},{"$f":"IF(F31=\"\",\"\",IF(F31=0,0,VLOOKUP(F31,$A$44:$H$49,6,FALSE)))","v":""},{"$f":"IF(G31=\"\",\"\",IF(G31=0,0,VLOOKUP(G31,$A$44:$H$49,7,FALSE)))","v":""},{"$f":"IF(H31=\"\",\"\",IF(G6=\"Yes\",0,IF(H31=0,0,VLOOKUP(H31,$A$44:$H$49,8,FALSE))))","v":""},{"$f":"SUM(C32:H32)","v":0}]
[null,"Income over feed cost, live weight: selected vs 0% DDGS, $/pig",{"$f":"IF(C31=\"\",\"\",IF(C31=0,0,VLOOKUP(C31,$A$60:$H$65,3,FALSE)))","v":""},{"$f":"IF(D31=\"\",\"\",IF(D31=0,0,VLOOKUP(D31,$A$60:$H$65,4,FALSE)))","v":""},{"$f":"IF(E31=\"\",\"\",IF(E31=0,0,VLOOKUP(E31,$A$60:$H$65,5,FALSE)))","v":""},{"$f":"IF(F31=\"\",\"\",IF(F31=0,0,VLOOKUP(F31,$A$60:$H$65,6,FALSE)))","v":""},{"$f":"IF(G31=\"\",\"\",IF(G31=0,0,VLOOKUP(G31,$A$60:$H$65,7,FALSE)))","v":""},{"$f":"IF(H31=\"\",\"\",IF(G6=\"Yes\",0,IF(H31=0,0,VLOOKUP(H31,$A$60:$H$65,8,FALSE))))","v":""},{"$f":"SUM(C33:H33)","v":0}]
[null,"Income over feed cost, carcass weight: selected vs 0% DDGS, $/pig",{"$f":"IF(C31=\"\",\"\",IF(C31=0,0,VLOOKUP(C31,$A$68:$H$73,3,FALSE)))","v":""},{"$f":"IF(D31=\"\",\"\",IF(D31=0,0,VLOOKUP(D31,$A$68:$H$73,4,FALSE)))","v":""},{"$f":"IF(E31=\"\",\"\",IF(E31=0,0,VLOOKUP(E31,$A$68:$H$73,5,FALSE)))","v":""},{"$f":"IF(F31=\"\",\"\",IF(F31=0,0,VLOOKUP(F31,$A$68:$H$73,6,FALSE)))","v":""},{"$f":"IF(G31=\"\",\"\",IF(G31=0,0,VLOOKUP(G31,$A$68:$H$73,7,FALSE)))","v":""},{"$f":"IF(H31=\"\",\"\",IF(G6=\"Yes\",0,IF(H31=0,0,VLOOKUP(H31,$A$68:$H$73,8,FALSE))))","v":""},{"$f":"SUM(C34:H34)","v":0}]
[]
[null,"  Predicted changes in performance: selected vs 0% DDGS","Phase 1 ","Phase 2","Phase 3","Phase 4","Phase 5","Phase 6","Overall Change"]
[null,"ADG, % change ",{"$f":"IF(AND($G$5=\"No\",$G$6=\"No\",$G$7=\"No\"),(VLOOKUP(C31,Performance!$Y$4:$AE$10,2,FALSE)-Performance!Z4)/Performance!Z4,IF(AND($G$5=\"Yes\",$G$6=\"No\",$G$7=\"No\"),(VLOOKUP(C31,Performance!$Y$14:$AE$20,2,FALSE)-Performance!Z14)/Performance!Z14,IF(AND($G$5=\"No\",$G$6=\"No\",$G$7=\"Yes\"),(VLOOKUP(C31,Performance!$Y$24:$AE$30,2,FALSE)-Performance!Z24)/Performance!Z24,IF(AND($G$5=\"Yes\",$G$6=\"No\",$G$7=\"Yes\"),(VLOOKUP(C31,Performance!$Y$34:$AE$40,2,FALSE)-Performance!Z34)/Performance!Z34,IF(AND($G$5=\"No\",$G$6=\"Yes\",$G$7=\"No\"),(VLOOKUP(C31,Performance!$Y$44:$AE$50,2,FALSE)-Performance!Z44)/Performance!Z44,IF(AND($G$5=\"Yes\",$G$6=\"Yes\",$G$7=\"No\"),(VLOOKUP(C31,Performance!$Y$54:$AE$60,2,FALSE)-Performance!Z54)/Performance!Z54,IF(AND($G$5=\"No\",$G$6=\"Yes\",$G$7=\"Yes\"),(VLOOKUP(C31,Performance!$Y$64:$AE$70,2,FALSE)-Performance!Z64)/Performance!Z64,IF(AND($G$5=\"Yes\",$G$6=\"Yes\",$G$7=\"Yes\"),(VLOOKUP(C31,Performance!$Y$74:$AE$80,2,FALSE)-Performance!Z74)/Performance!Z74))))))))","v":0},{"$f":"IF(AND($G$5=\"No\",$G$6=\"No\",$G$7=\"No\"),(VLOOKUP(D31,Performance!$Y$4:$AE$10,3,FALSE)-Performance!AA4)/Performance!AA4,IF(AND($G$5=\"Yes\",$G$6=\"No\",$G$7=\"No\"),(VLOOKUP(D31,Performance!$Y$14:$AE$20,3,FALSE)-Performance!AA14)/Performance!AA14,IF(AND($G$5=\"No\",$G$6=\"No\",$G$7=\"Yes\"),(VLOOKUP(D31,Performance!$Y$24:$AE$30,3,FALSE)-Performance!AA24)/Performance!AA24,IF(AND($G$5=\"Yes\",$G$6=\"No\",$G$7=\"Yes\"),(VLOOKUP(D31,Performance!$Y$34:$AE$40,3,FALSE)-Performance!AA34)/Performance!AA34,IF(AND($G$5=\"No\",$G$6=\"Yes\",$G$7=\"No\"),(VLOOKUP(D31,Performance!$Y$44:$AE$50,3,FALSE)-Performance!AA44)/Performance!AA44,IF(AND($G$5=\"Yes\",$G$6=\"Yes\",$G$7=\"No\"),(VLOOKUP(D31,Performance!$Y$54:$AE$60,3,FALSE)-Performance!AA54)/Performance!AA54,IF(AND($G$5=\"No\",$G$6=\"Yes\",$G$7=\"Yes\"),(VLOOKUP(D31,Performance!$Y$64:$AE$70,3,FALSE)-Performance!AA64)/Performance!AA64,IF(AND($G$5=\"Yes\",$G$6=\"Yes\",$G$7=\"Yes\"),(VLOOKUP(D31,Performance!$Y$74:$AE$80,3,FALSE)-Performance!AA74)/Performance!AA74))))))))","v":0},{"$f":"IF(AND($G$5=\"No\",$G$6=\"No\",$G$7=\"No\"),(VLOOKUP(E31,Performance!$Y$4:$AE$10,4,FALSE)-Performance!AB4)/Performance!AB4,IF(AND($G$5=\"Yes\",$G$6=\"No\",$G$7=\"No\"),(VLOOKUP(E31,Performance!$Y$14:$AE$20,4,FALSE)-Performance!AB14)/Performance!AB14,IF(AND($G$5=\"No\",$G$6=\"No\",$G$7=\"Yes\"),(VLOOKUP(E31,Performance!$Y$24:$AE$30,4,FALSE)-Performance!AB24)/Performance!AB24,IF(AND($G$5=\"Yes\",$G$6=\"No\",$G$7=\"Yes\"),(VLOOKUP(E31,Performance!$Y$34:$AE$40,4,FALSE)-Performance!AB34)/Performance!AB34,IF(AND($G$5=\"No\",$G$6=\"Yes\",$G$7=\"No\"),(VLOOKUP(E31,Performance!$Y$44:$AE$50,4,FALSE)-Performance!AB44)/Performance!AB44,IF(AND($G$5=\"Yes\",$G$6=\"Yes\",$G$7=\"No\"),(VLOOKUP(E31,Performance!$Y$54:$AE$60,4,FALSE)-Performance!AB54)/Performance!AB54,IF(AND($G$5=\"No\",$G$6=\"Yes\",$G$7=\"Yes\"),(VLOOKUP(E31,Performance!$Y$64:$AE$70,4,FALSE)-Performance!AB64)/Performance!AB64,IF(AND($G$5=\"Yes\",$G$6=\"Yes\",$G$7=\"Yes\"),(VLOOKUP(E31,Performance!$Y$74:$AE$80,4,FALSE)-Performance!AB74)/Performance!AB74))))))))","v":0},{"$f":"IF(AND($G$5=\"No\",$G$6=\"No\",$G$7=\"No\"),(VLOOKUP(F31,Performance!$Y$4:$AE$10,5,FALSE)-Performance!AC4)/Performance!AC4,IF(AND($G$5=\"Yes\",$G$6=\"No\",$G$7=\"No\"),(VLOOKUP(F31,Performance!$Y$14:$AE$20,5,FALSE)-Performance!AC14)/Performance!AC14,IF(AND($G$5=\"No\",$G$6=\"No\",$G$7=\"Yes\"),(VLOOKUP(F31,Performance!$Y$24:$AE$30,5,FALSE)-Performance!AC24)/Performance!AC24,IF(AND($G$5=\"Yes\",$G$6=\"No\",$G$7=\"Yes\"),(VLOOKUP(F31,Performance!$Y$34:$AE$40,5,FALSE)-Performance!AC34)/Performance!AC34,IF(AND($G$5=\"No\",$G$6=\"Yes\",$G$7=\"No\"),(VLOOKUP(F31,Performance!$Y$44:$AE$50,5,FALSE)-Performance!AC44)/Performance!AC44,IF(AND($G$5=\"Yes\",$G$6=\"Yes\",$G$7=\"No\"),(VLOOKUP(F31,Performance!$Y$54:$AE$60,5,FALSE)-Performance!AC54)/Performance!AC54,IF(AND($G$5=\"No\",$G$6=\"Yes\",$G$7=\"Yes\"),(VLOOKUP(F31,Performance!$Y$64:$AE$70,5,FALSE)-Performance!AC64)/Performance!AC64,IF(AND($G$5=\"Yes\",$G$6=\"Yes\",$G$7=\"Yes\"),(VLOOKUP(F31,Performance!$Y$74:$AE$80,5,FALSE)-Performance!AC74)/Performance!AC74))))))))","v":0},{"$f":"IF(AND($G$5=\"No\",$G$6=\"No\",$G$7=\"No\"),(VLOOKUP(G31,Performance!$Y$4:$AE$10,6,FALSE)-Performance!AD4)/Performance!AD4,IF(AND($G$5=\"Yes\",$G$6=\"No\",$G$7=\"No\"),(VLOOKUP(G31,Performance!$Y$14:$AE$20,6,FALSE)-Performance!AD14)/Performance!AD14,IF(AND($G$5=\"No\",$G$6=\"No\",$G$7=\"Yes\"),(VLOOKUP(G31,Performance!$Y$24:$AE$30,6,FALSE)-Performance!AD24)/Performance!AD24,IF(AND($G$5=\"Yes\",$G$6=\"No\",$G$7=\"Yes\"),(VLOOKUP(G31,Performance!$Y$34:$AE$40,6,FALSE)-Performance!AD34)/Performance!AD34,IF(AND($G$5=\"No\",$G$6=\"Yes\",$G$7=\"No\"),(VLOOKUP(G31,Performance!$Y$44:$AE$50,6,FALSE)-Performance!AD44)/Performance!AD44,IF(AND($G$5=\"Yes\",$G$6=\"Yes\",$G$7=\"No\"),(VLOOKUP(G31,Performance!$Y$54:$AE$60,6,FALSE)-Performance!AD54)/Performance!AD54,IF(AND($G$5=\"No\",$G$6=\"Yes\",$G$7=\"Yes\"),(VLOOKUP(G31,Performance!$Y$64:$AE$70,6,FALSE)-Performance!AD64)/Performance!AD64,IF(AND($G$5=\"Yes\",$G$6=\"Yes\",$G$7=\"Yes\"),(VLOOKUP(G31,Performance!$Y$74:$AE$80,6,FALSE)-Performance!AD74)/Performance!AD74))))))))","v":0},{"$f":"IF(AND($G$5=\"No\",$G$6=\"No\",$G$7=\"No\"),(VLOOKUP(H31,Performance!$Y$4:$AE$10,7,FALSE)-Performance!AE4)/Performance!AE4,IF(AND($G$5=\"Yes\",$G$6=\"No\",$G$7=\"No\"),(VLOOKUP(H31,Performance!$Y$14:$AE$20,7,FALSE)-Performance!AE14)/Performance!AE14,IF(AND($G$5=\"No\",$G$6=\"No\",$G$7=\"Yes\"),(VLOOKUP(H31,Performance!$Y$24:$AE$30,7,FALSE)-Performance!AE24)/Performance!AE24,IF(AND($G$5=\"Yes\",$G$6=\"No\",$G$7=\"Yes\"),(VLOOKUP(H31,Performance!$Y$34:$AE$40,7,FALSE)-Performance!AE34)/Performance!AE34,IF(AND($G$5=\"No\",$G$6=\"Yes\",$G$7=\"No\"),(VLOOKUP(H31,Performance!$Y$44:$AE$50,7,FALSE)-Performance!AE44)/Performance!AE44,IF(AND($G$5=\"Yes\",$G$6=\"Yes\",$G$7=\"No\"),(VLOOKUP(H31,Performance!$Y$54:$AE$60,7,FALSE)-Performance!AE54)/Performance!AE54,IF(AND($G$5=\"No\",$G$6=\"Yes\",$G$7=\"Yes\"),(VLOOKUP(H31,Performance!$Y$64:$AE$70,7,FALSE)-Performance!AE64)/Performance!AE64,IF(AND($G$5=\"Yes\",$G$6=\"Yes\",$G$7=\"Yes\"),(VLOOKUP(H31,Performance!$Y$74:$AE$80,7,FALSE)-Performance!AE74)/Performance!AE74))))))))","v":0},{"$f":"(C37*($P$4/$V$4))+(D37*($Q$4/$V$4))+(E37*($R$4/$V$4))+(F37*($S$4/$V$4))+(G37*(($T$4/$V$4))+(H37*(($U$4/$V$4))))","v":0}]
[null,"F/G, % change ",{"$f":"IF(AND($G$5=\"No\",$G$6=\"No\",$G$7=\"No\"),(VLOOKUP(C31,Performance!$AO$4:$AU$10,2,FALSE)-Performance!AP4)/Performance!AP4,IF(AND($G$5=\"Yes\",$G$6=\"No\",$G$7=\"No\"),0,IF(AND($G$5=\"No\",$G$6=\"No\",$G$7=\"Yes\"),(VLOOKUP(C31,Performance!$AO$24:$AU$30,2,FALSE)-Performance!AP24)/Performance!AP24,IF(AND($G$5=\"Yes\",$G$6=\"No\",$G$7=\"Yes\"),0,IF(AND($G$5=\"No\",$G$6=\"Yes\",$G$7=\"No\"),(VLOOKUP(C31,Performance!$AO$44:$AU$50,2,FALSE)-Performance!AP44)/Performance!AP44,IF(AND($G$5=\"Yes\",$G$6=\"Yes\",$G$7=\"No\"),0,IF(AND($G$5=\"No\",$G$6=\"Yes\",$G$7=\"Yes\"),(VLOOKUP(C31,Performance!$AO$64:$AU$70,2,FALSE)-Performance!AP64)/Performance!AP64,IF(AND($G$5=\"Yes\",$G$6=\"Yes\",$G$7=\"Yes\"),0))))))))","v":0},{"$f":"IF(AND($G$5=\"No\",$G$6=\"No\",$G$7=\"No\"),(VLOOKUP(D31,Performance!$AO$4:$AU$10,3,FALSE)-Performance!AQ4)/Performance!AQ4,IF(AND($G$5=\"Yes\",$G$6=\"No\",$G$7=\"No\"),0,IF(AND($G$5=\"No\",$G$6=\"No\",$G$7=\"Yes\"),(VLOOKUP(D31,Performance!$AO$24:$AU$30,3,FALSE)-Performance!AQ24)/Performance!AQ24,IF(AND($G$5=\"Yes\",$G$6=\"No\",$G$7=\"Yes\"),0,IF(AND($G$5=\"No\",$G$6=\"Yes\",$G$7=\"No\"),(VLOOKUP(D31,Performance!$AO$44:$AU$50,3,FALSE)-Performance!AQ44)/Performance!AQ44,IF(AND($G$5=\"Yes\",$G$6=\"Yes\",$G$7=\"No\"),0,IF(AND($G$5=\"No\",$G$6=\"Yes\",$G$7=\"Yes\"),(VLOOKUP(D31,Performance!$AO$64:$AU$70,3,FALSE)-Performance!AQ64)/Performance!AQ64,IF(AND($G$5=\"Yes\",$G$6=\"Yes\",$G$7=\"Yes\"),0))))))))","v":0},{"$f":"IF(AND($G$5=\"No\",$G$6=\"No\",$G$7=\"No\"),(VLOOKUP(E31,Performance!$AO$4:$AU$10,4,FALSE)-Performance!AR4)/Performance!AR4,IF(AND($G$5=\"Yes\",$G$6=\"No\",$G$7=\"No\"),0,IF(AND($G$5=\"No\",$G$6=\"No\",$G$7=\"Yes\"),(VLOOKUP(E31,Performance!$AO$24:$AU$30,4,FALSE)-Performance!AR24)/Performance!AR24,IF(AND($G$5=\"Yes\",$G$6=\"No\",$G$7=\"Yes\"),0,IF(AND($G$5=\"No\",$G$6=\"Yes\",$G$7=\"No\"),(VLOOKUP(E31,Performance!$AO$44:$AU$50,4,FALSE)-Performance!AR44)/Performance!AR44,IF(AND($G$5=\"Yes\",$G$6=\"Yes\",$G$7=\"No\"),0,IF(AND($G$5=\"No\",$G$6=\"Yes\",$G$7=\"Yes\"),(VLOOKUP(E31,Performance!$AO$64:$AU$70,4,FALSE)-Performance!AR64)/Performance!AR64,IF(AND($G$5=\"Yes\",$G$6=\"Yes\",$G$7=\"Yes\"),0))))))))","v":0},{"$f":"IF(AND($G$5=\"No\",$G$6=\"No\",$G$7=\"No\"),(VLOOKUP(F31,Performance!$AO$4:$AU$10,5,FALSE)-Performance!AS4)/Performance!AS4,IF(AND($G$5=\"Yes\",$G$6=\"No\",$G$7=\"No\"),0,IF(AND($G$5=\"No\",$G$6=\"No\",$G$7=\"Yes\"),(VLOOKUP(F31,Performance!$AO$24:$AU$30,5,FALSE)-Performance!AS24)/Performance!AS24,IF(AND($G$5=\"Yes\",$G$6=\"No\",$G$7=\"Yes\"),0,IF(AND($G$5=\"No\",$G$6=\"Yes\",$G$7=\"No\"),(VLOOKUP(F31,Performance!$AO$44:$AU$50,5,FALSE)-Performance!AS44)/Performance!AS44,IF(AND($G$5=\"Yes\",$G$6=\"Yes\",$G$7=\"No\"),0,IF(AND($G$5=\"No\",$G$6=\"Yes\",$G$7=\"Yes\"),(VLOOKUP(F31,Performance!$AO$64:$AU$70,5,FALSE)-Performance!AS64)/Performance!AS64,IF(AND($G$5=\"Yes\",$G$6=\"Yes\",$G$7=\"Yes\"),0))))))))","v":0},{"$f":"IF(AND($G$5=\"No\",$G$6=\"No\",$G$7=\"No\"),(VLOOKUP(G31,Performance!$AO$4:$AU$10,6,FALSE)-Performance!AT4)/Performance!AT4,IF(AND($G$5=\"Yes\",$G$6=\"No\",$G$7=\"No\"),0,IF(AND($G$5=\"No\",$G$6=\"No\",$G$7=\"Yes\"),(VLOOKUP(G31,Performance!$AO$24:$AU$30,6,FALSE)-Performance!AT24)/Performance!AT24,IF(AND($G$5=\"Yes\",$G$6=\"No\",$G$7=\"Yes\"),0,IF(AND($G$5=\"No\",$G$6=\"Yes\",$G$7=\"No\"),(VLOOKUP(G31,Performance!$AO$44:$AU$50,6,FALSE)-Performance!AT44)/Performance!AT44,IF(AND($G$5=\"Yes\",$G$6=\"Yes\",$G$7=\"No\"),0,IF(AND($G$5=\"No\",$G$6=\"Yes\",$G$7=\"Yes\"),(VLOOKUP(G31,Performance!$AO$64:$AU$70,6,FALSE)-Performance!AT64)/Performance!AT64,IF(AND($G$5=\"Yes\",$G$6=\"Yes\",$G$7=\"Yes\"),0))))))))","v":0},{"$f":"IF(AND($G$5=\"No\",$G$6=\"No\",$G$7=\"No\"),(VLOOKUP(H31,Performance!$AO$4:$AU$10,7,FALSE)-Performance!AU4)/Performance!AU4,IF(AND($G$5=\"Yes\",$G$6=\"No\",$G$7=\"No\"),0,IF(AND($G$5=\"No\",$G$6=\"No\",$G$7=\"Yes\"),(VLOOKUP(H31,Performance!$AO$24:$AU$30,7,FALSE)-Performance!AU24)/Performance!AU24,IF(AND($G$5=\"Yes\",$G$6=\"No\",$G$7=\"Yes\"),0,IF(AND($G$5=\"No\",$G$6=\"Yes\",$G$7=\"No\"),(VLOOKUP(H31,Performance!$AO$44:$AU$50,7,FALSE)-Performance!AU44)/Performance!AU44,IF(AND($G$5=\"Yes\",$G$6=\"Yes\",$G$7=\"No\"),0,IF(AND($G$5=\"No\",$G$6=\"Yes\",$G$7=\"Yes\"),(VLOOKUP(H31,Performance!$AO$64:$AU$70,7,FALSE)-Performance!AU64)/Performance!AU64,IF(AND($G$5=\"Yes\",$G$6=\"Yes\",$G$7=\"Yes\"),0))))))))","v":0},{"$f":"(C38*($P$4/$V$4))+(D38*($Q$4/$V$4))+(E38*($R$4/$V$4))+(F38*($S$4/$V$4))+(G38*(($T$4/$V$4))+(H38*(($U$4/$V$4))))","v":0}]
[null,null,null,null,null,null,null,"Live weight, lb ",{"$f":"IF(AND($G$5=\"No\",$G$6=\"No\",$G$7=\"No\"),(Performance!BT4-Performance!BC4),IF(AND($G$5=\"Yes\",$G$6=\"No\",$G$7=\"No\"),(Performance!BT14-Performance!BC14),IF(AND($G$5=\"No\",$G$6=\"No\",$G$7=\"Yes\"),(Performance!BT24-Performance!BC24),IF(AND($G$5=\"Yes\",$G$6=\"No\",$G$7=\"Yes\"),(Performance!BT34-Performance!BC34),IF(AND($G$5=\"No\",$G$6=\"Yes\",$G$7=\"No\"),(Performance!BT44-Performance!BC44),IF(AND($G$5=\"Yes\",$G$6=\"Yes\",$G$7=\"No\"),(Performance!BT54-Performance!BC54),IF(AND($G$5=\"No\",$G$6=\"Yes\",$G$7=\"Yes\"),(Performance!BT64-Performance!BC64),IF(AND($G$5=\"Yes\",$G$6=\"Yes\",$G$7=\"Yes\"),(Performance!BT74-Performance!BC74)))))))))","v":-3.1076879997726792E-4}]
[null,null,null,null,null,null,null,"  Yield, % ",{"$f":"IF(AND($G$5=\"No\",$G$6=\"No\",$G$7=\"No\"),(Performance!BT5-Performance!G4),IF(AND($G$5=\"Yes\",$G$6=\"No\",$G$7=\"No\"),(Performance!BT15-Performance!G14),IF(AND($G$5=\"No\",$G$6=\"No\",$G$7=\"Yes\"),(Performance!BT25-Performance!G24),IF(AND($G$5=\"Yes\",$G$6=\"No\",$G$7=\"Yes\"),(Performance!BT35-Performance!G34),IF(AND($G$5=\"No\",$G$6=\"Yes\",$G$7=\"No\"),(Performance!BT45-Performance!G44),IF(AND($G$5=\"Yes\",$G$6=\"Yes\",$G$7=\"No\"),(Performance!BT55-Performance!G54),IF(AND($G$5=\"No\",$G$6=\"Yes\",$G$7=\"Yes\"),(Performance!BT65-Performance!G64),IF(AND($G$5=\"Yes\",$G$6=\"Yes\",$G$7=\"Yes\"),(Performance!BT75-Performance!G74)))))))))","v":0}]
[null,null,null,null,null,null,null,"HCW, lb ",{"$f":"IF(AND($G$5=\"No\",$G$6=\"No\",$G$7=\"No\"),(Performance!BT6-Performance!W4),IF(AND($G$5=\"Yes\",$G$6=\"No\",$G$7=\"No\"),(Performance!BT16-Performance!W14),IF(AND($G$5=\"No\",$G$6=\"No\",$G$7=\"Yes\"),(Performance!BT26-Performance!W24),IF(AND($G$5=\"Yes\",$G$6=\"No\",$G$7=\"Yes\"),(Performance!BT36-Performance!W34),IF(AND($G$5=\"No\",$G$6=\"Yes\",$G$7=\"No\"),(Performance!BT46-Performance!W44),IF(AND($G$5=\"Yes\",$G$6=\"Yes\",$G$7=\"No\"),(Performance!BT56-Performance!W54),IF(AND($G$5=\"No\",$G$6=\"Yes\",$G$7=\"Yes\"),(Performance!BT66-Performance!W64),IF(AND($G$5=\"Yes\",$G$6=\"Yes\",$G$7=\"Yes\"),(Performance!BT76-Performance!W74)))))))))","v":-2.3307942851147345E-4}]
[]
[null,"Feed cost savings, $/pig (compared to 0% DDGS) - fixed time","Phase 1 ","Phase 2","Phase 3","Phase 4","Phase 5","Phase 6","Total","Incremental"]
[0.05,"5% DDGS",{"$f":"IF(AND($G$5=\"No\",$G$6=\"No\",$G$7=\"No\"),'GF diets No L-Val'!I$266-'GF diets No L-Val'!B$266,\nIF(AND($G$5=\"Yes\",$G$6=\"No\",$G$7=\"No\"),'GF diets No L-Val + Fat'!I$266-'GF diets No L-Val + Fat'!B$266,\nIF(AND($G$5=\"No\",$G$6=\"No\",$G$7=\"Yes\"),'GF diets L-Val'!I$266-'GF diets L-Val'!B$266,\nIF(AND($G$5=\"Yes\",$G$6=\"No\",$G$7=\"Yes\"),'GF diets L-Val + Fat'!I$266-'GF diets L-Val + Fat'!B$266,\nIF(AND($G$5=\"No\",$G$6=\"Yes\",$G$7=\"No\"),'GF diets No L-Val + WD'!I$266-'GF diets No L-Val + WD'!B$266,\nIF(AND($G$5=\"Yes\",$G$6=\"Yes\",$G$7=\"No\"),'GF diets No L-Val + Fat + WD'!I$266-'GF diets No L-Val + Fat + WD'!B$266,\nIF(AND($G$5=\"No\",$G$6=\"Yes\",$G$7=\"Yes\"),'GF diets L-Val + WD'!I$266-'GF diets L-Val + WD'!B$266,\nIF(AND($G$5=\"Yes\",$G$6=\"Yes\",$G$7=\"Yes\"),'GF diets L-Val + Fat + WD'!I$266-'GF diets L-Val + Fat + WD'!B$266))))))))*-1","v":4.0826780857778466E-2},{"$f":"IF(AND($G$5=\"No\",$G$6=\"No\",$G$7=\"No\"),'GF diets No L-Val'!J$266-'GF diets No L-Val'!C$266,\nIF(AND($G$5=\"Yes\",$G$6=\"No\",$G$7=\"No\"),'GF diets No L-Val + Fat'!J$266-'GF diets No L-Val + Fat'!C$266,\nIF(AND($G$5=\"No\",$G$6=\"No\",$G$7=\"Yes\"),'GF diets L-Val'!J$266-'GF diets L-Val'!C$266,\nIF(AND($G$5=\"Yes\",$G$6=\"No\",$G$7=\"Yes\"),'GF diets L-Val + Fat'!J$266-'GF diets L-Val + Fat'!C$266,\nIF(AND($G$5=\"No\",$G$6=\"Yes\",$G$7=\"No\"),'GF diets No L-Val + WD'!J$266-'GF diets No L-Val + WD'!C$266,\nIF(AND($G$5=\"Yes\",$G$6=\"Yes\",$G$7=\"No\"),'GF diets No L-Val + Fat + WD'!J$266-'GF diets No L-Val + Fat + WD'!C$266,\nIF(AND($G$5=\"No\",$G$6=\"Yes\",$G$7=\"Yes\"),'GF diets L-Val + WD'!J$266-'GF diets L-Val + WD'!C$266,\nIF(AND($G$5=\"Yes\",$G$6=\"Yes\",$G$7=\"Yes\"),'GF diets L-Val + Fat + WD'!J$266-'GF diets L-Val + Fat + WD'!C$266))))))))*-1","v":4.142984482154155E-2},{"$f":"IF(AND($G$5=\"No\",$G$6=\"No\",$G$7=\"No\"),'GF diets No L-Val'!K$266-'GF diets No L-Val'!D$266,\nIF(AND($G$5=\"Yes\",$G$6=\"No\",$G$7=\"No\"),'GF diets No L-Val + Fat'!K$266-'GF diets No L-Val + Fat'!D$266,\nIF(AND($G$5=\"No\",$G$6=\"No\",$G$7=\"Yes\"),'GF diets L-Val'!K$266-'GF diets L-Val'!D$266,\nIF(AND($G$5=\"Yes\",$G$6=\"No\",$G$7=\"Yes\"),'GF diets L-Val + Fat'!K$266-'GF diets L-Val + Fat'!D$266,\nIF(AND($G$5=\"No\",$G$6=\"Yes\",$G$7=\"No\"),'GF diets No L-Val + WD'!K$266-'GF diets No L-Val + WD'!D$266,\nIF(AND($G$5=\"Yes\",$G$6=\"Yes\",$G$7=\"No\"),'GF diets No L-Val + Fat + WD'!K$266-'GF diets No L-Val + Fat + WD'!D$266,\nIF(AND($G$5=\"No\",$G$6=\"Yes\",$G$7=\"Yes\"),'GF diets L-Val + WD'!K$266-'GF diets L-Val + WD'!D$266,\nIF(AND($G$5=\"Yes\",$G$6=\"Yes\",$G$7=\"Yes\"),'GF diets L-Val + Fat + WD'!K$266-'GF diets L-Val + Fat + WD'!D$266))))))))*-1","v":5.485569115141864E-2},{"$f":"IF(AND($G$5=\"No\",$G$6=\"No\",$G$7=\"No\"),'GF diets No L-Val'!L$266-'GF diets No L-Val'!E$266,\nIF(AND($G$5=\"Yes\",$G$6=\"No\",$G$7=\"No\"),'GF diets No L-Val + Fat'!L$266-'GF diets No L-Val + Fat'!E$266,\nIF(AND($G$5=\"No\",$G$6=\"No\",$G$7=\"Yes\"),'GF diets L-Val'!L$266-'GF diets L-Val'!E$266,\nIF(AND($G$5=\"Yes\",$G$6=\"No\",$G$7=\"Yes\"),'GF diets L-Val + Fat'!L$266-'GF diets L-Val + Fat'!E$266,\nIF(AND($G$5=\"No\",$G$6=\"Yes\",$G$7=\"No\"),'GF diets No L-Val + WD'!L$266-'GF diets No L-Val + WD'!E$266,\nIF(AND($G$5=\"Yes\",$G$6=\"Yes\",$G$7=\"No\"),'GF diets No L-Val + Fat + WD'!L$266-'GF diets No L-Val + Fat + WD'!E$266,\nIF(AND($G$5=\"No\",$G$6=\"Yes\",$G$7=\"Yes\"),'GF diets L-Val + WD'!L$266-'GF diets L-Val + WD'!E$266,\nIF(AND($G$5=\"Yes\",$G$6=\"Yes\",$G$7=\"Yes\"),'GF diets L-Val + Fat + WD'!L$266-'GF diets L-Val + Fat + WD'!E$266))))))))*-1","v":8.0992595420287472E-2},{"$f":"IF(AND($G$5=\"No\",$G$6=\"No\",$G$7=\"No\"),'GF diets No L-Val'!M$266-'GF diets No L-Val'!F$266,\nIF(AND($G$5=\"Yes\",$G$6=\"No\",$G$7=\"No\"),'GF diets No L-Val + Fat'!M$266-'GF diets No L-Val + Fat'!F$266,\nIF(AND($G$5=\"No\",$G$6=\"No\",$G$7=\"Yes\"),'GF diets L-Val'!M$266-'GF diets L-Val'!F$266,\nIF(AND($G$5=\"Yes\",$G$6=\"No\",$G$7=\"Yes\"),'GF diets L-Val + Fat'!M$266-'GF diets L-Val + Fat'!F$266,\nIF(AND($G$5=\"No\",$G$6=\"Yes\",$G$7=\"No\"),'GF diets No L-Val + WD'!M$266-'GF diets No L-Val + WD'!F$266,\nIF(AND($G$5=\"Yes\",$G$6=\"Yes\",$G$7=\"No\"),'GF diets No L-Val + Fat + WD'!M$266-'GF diets No L-Val + Fat + WD'!F$266,\nIF(AND($G$5=\"No\",$G$6=\"Yes\",$G$7=\"Yes\"),'GF diets L-Val + WD'!M$266-'GF diets L-Val + WD'!F$266,\nIF(AND($G$5=\"Yes\",$G$6=\"Yes\",$G$7=\"Yes\"),'GF diets L-Val + Fat + WD'!M$266-'GF diets L-Val + Fat + WD'!F$266))))))))*-1","v":0.12255625698930928},{"$f":"IF(AND($G$5=\"No\",$G$6=\"No\",$G$7=\"No\"),'GF diets No L-Val'!N$266-'GF diets No L-Val'!G$266,\nIF(AND($G$5=\"Yes\",$G$6=\"No\",$G$7=\"No\"),'GF diets No L-Val + Fat'!N$266-'GF diets No L-Val + Fat'!G$266,\nIF(AND($G$5=\"No\",$G$6=\"No\",$G$7=\"Yes\"),'GF diets L-Val'!N$266-'GF diets L-Val'!G$266,\nIF(AND($G$5=\"Yes\",$G$6=\"No\",$G$7=\"Yes\"),'GF diets L-Val + Fat'!N$266-'GF diets L-Val + Fat'!G$266,\nIF(AND($G$5=\"No\",$G$6=\"Yes\",$G$7=\"No\"),'GF diets No L-Val + WD'!N$266-'GF diets No L-Val + WD'!G$266,\nIF(AND($G$5=\"Yes\",$G$6=\"Yes\",$G$7=\"No\"),'GF diets No L-Val + Fat + WD'!N$266-'GF diets No L-Val + Fat + WD'!G$266,\nIF(AND($G$5=\"No\",$G$6=\"Yes\",$G$7=\"Yes\"),'GF diets L-Val + WD'!N$266-'GF diets L-Val + WD'!G$266,\nIF(AND($G$5=\"Yes\",$G$6=\"Yes\",$G$7=\"Yes\"),'GF diets L-Val + Fat + WD'!N$266-'GF diets L-Val + Fat + WD'!G$266))))))))*-1","v":0.21952876694196632},{"$f":"SUM(C44:H44)","v":0.56018993618230173}]
[0.1,"10% DDGS",{"$f":"IF(AND($G$5=\"No\",$G$6=\"No\",$G$7=\"No\"),'GF diets No L-Val'!P$266-'GF diets No L-Val'!B$266,\nIF(AND($G$5=\"Yes\",$G$6=\"No\",$G$7=\"No\"),'GF diets No L-Val + Fat'!P$266-'GF diets No L-Val + Fat'!B$266,\nIF(AND($G$5=\"No\",$G$6=\"No\",$G$7=\"Yes\"),'GF diets L-Val'!P$266-'GF diets L-Val'!B$266,\nIF(AND($G$5=\"Yes\",$G$6=\"No\",$G$7=\"Yes\"),'GF diets L-Val + Fat'!P$266-'GF diets L-Val + Fat'!B$266,\nIF(AND($G$5=\"No\",$G$6=\"Yes\",$G$7=\"No\"),'GF diets No L-Val + WD'!P$266-'GF diets No L-Val + WD'!B$266,\nIF(AND($G$5=\"Yes\",$G$6=\"Yes\",$G$7=\"No\"),'GF diets No L-Val + Fat + WD'!P$266-'GF diets No L-Val + Fat + WD'!B$266,\nIF(AND($G$5=\"No\",$G$6=\"Yes\",$G$7=\"Yes\"),'GF diets L-Val + WD'!P$266-'GF diets L-Val + WD'!B$266,\nIF(AND($G$5=\"Yes\",$G$6=\"Yes\",$G$7=\"Yes\"),'GF diets L-Val + Fat + WD'!P$266-'GF diets L-Val + Fat + WD'!B$266))))))))*-1","v":6.6858571351159135E-2},{"$f":"IF(AND($G$5=\"No\",$G$6=\"No\",$G$7=\"No\"),'GF diets No L-Val'!Q$266-'GF diets No L-Val'!C$266,\nIF(AND($G$5=\"Yes\",$G$6=\"No\",$G$7=\"No\"),'GF diets No L-Val + Fat'!Q$266-'GF diets No L-Val + Fat'!C$266,\nIF(AND($G$5=\"No\",$G$6=\"No\",$G$7=\"Yes\"),'GF diets L-Val'!Q$266-'GF diets L-Val'!C$266,\nIF(AND($G$5=\"Yes\",$G$6=\"No\",$G$7=\"Yes\"),'GF diets L-Val + Fat'!Q$266-'GF diets L-Val + Fat'!C$266,\nIF(AND($G$5=\"No\",$G$6=\"Yes\",$G$7=\"No\"),'GF diets No L-Val + WD'!Q$266-'GF diets No L-Val + WD'!C$266,\nIF(AND($G$5=\"Yes\",$G$6=\"Yes\",$G$7=\"No\"),'GF diets No L-Val + Fat + WD'!Q$266-'GF diets No L-Val + Fat + WD'!C$266,\nIF(AND($G$5=\"No\",$G$6=\"Yes\",$G$7=\"Yes\"),'GF diets L-Val + WD'!Q$266-'GF diets L-Val + WD'!C$266,\nIF(AND($G$5=\"Yes\",$G$6=\"Yes\",$G$7=\"Yes\"),'GF diets L-Val + Fat + WD'!Q$266-'GF diets L-Val + Fat + WD'!C$266))))))))*-1","v":6.8530775691828083E-2},{"$f":"IF(AND($G$5=\"No\",$G$6=\"No\",$G$7=\"No\"),'GF diets No L-Val'!R$266-'GF diets No L-Val'!D$266,\nIF(AND($G$5=\"Yes\",$G$6=\"No\",$G$7=\"No\"),'GF diets No L-Val + Fat'!R$266-'GF diets No L-Val + Fat'!D$266,\nIF(AND($G$5=\"No\",$G$6=\"No\",$G$7=\"Yes\"),'GF diets L-Val'!R$266-'GF diets L-Val'!D$266,\nIF(AND($G$5=\"Yes\",$G$6=\"No\",$G$7=\"Yes\"),'GF diets L-Val + Fat'!R$266-'GF diets L-Val + Fat'!D$266,\nIF(AND($G$5=\"No\",$G$6=\"Yes\",$G$7=\"No\"),'GF diets No L-Val + WD'!R$266-'GF diets No L-Val + WD'!D$266,\nIF(AND($G$5=\"Yes\",$G$6=\"Yes\",$G$7=\"No\"),'GF diets No L-Val + Fat + WD'!R$266-'GF diets No L-Val + Fat + WD'!D$266,\nIF(AND($G$5=\"No\",$G$6=\"Yes\",$G$7=\"Yes\"),'GF diets L-Val + WD'!R$266-'GF diets L-Val + WD'!D$266,\nIF(AND($G$5=\"Yes\",$G$6=\"Yes\",$G$7=\"Yes\"),'GF diets L-Val + Fat + WD'!R$266-'GF diets L-Val + Fat + WD'!D$266))))))))*-1","v":9.5657158360857863E-2},{"$f":"IF(AND($G$5=\"No\",$G$6=\"No\",$G$7=\"No\"),'GF diets No L-Val'!S$266-'GF diets No L-Val'!E$266,\nIF(AND($G$5=\"Yes\",$G$6=\"No\",$G$7=\"No\"),'GF diets No L-Val + Fat'!S$266-'GF diets No L-Val + Fat'!E$266,\nIF(AND($G$5=\"No\",$G$6=\"No\",$G$7=\"Yes\"),'GF diets L-Val'!S$266-'GF diets L-Val'!E$266,\nIF(AND($G$5=\"Yes\",$G$6=\"No\",$G$7=\"Yes\"),'GF diets L-Val + Fat'!S$266-'GF diets L-Val + Fat'!E$266,\nIF(AND($G$5=\"No\",$G$6=\"Yes\",$G$7=\"No\"),'GF diets No L-Val + WD'!S$266-'GF diets No L-Val + WD'!E$266,\nIF(AND($G$5=\"Yes\",$G$6=\"Yes\",$G$7=\"No\"),'GF diets No L-Val + Fat + WD'!S$266-'GF diets No L-Val + Fat + WD'!E$266,\nIF(AND($G$5=\"No\",$G$6=\"Yes\",$G$7=\"Yes\"),'GF diets L-Val + WD'!S$266-'GF diets L-Val + WD'!E$266,\nIF(AND($G$5=\"Yes\",$G$6=\"Yes\",$G$7=\"Yes\"),'GF diets L-Val + Fat + WD'!S$266-'GF diets L-Val + Fat + WD'!E$266))))))))*-1","v":0.15153760762760271},{"$f":"IF(AND($G$5=\"No\",$G$6=\"No\",$G$7=\"No\"),'GF diets No L-Val'!T$266-'GF diets No L-Val'!F$266,\nIF(AND($G$5=\"Yes\",$G$6=\"No\",$G$7=\"No\"),'GF diets No L-Val + Fat'!T$266-'GF diets No L-Val + Fat'!F$266,\nIF(AND($G$5=\"No\",$G$6=\"No\",$G$7=\"Yes\"),'GF diets L-Val'!T$266-'GF diets L-Val'!F$266,\nIF(AND($G$5=\"Yes\",$G$6=\"No\",$G$7=\"Yes\"),'GF diets L-Val + Fat'!T$266-'GF diets L-Val + Fat'!F$266,\nIF(AND($G$5=\"No\",$G$6=\"Yes\",$G$7=\"No\"),'GF diets No L-Val + WD'!T$266-'GF diets No L-Val + WD'!F$266,\nIF(AND($G$5=\"Yes\",$G$6=\"Yes\",$G$7=\"No\"),'GF diets No L-Val + Fat + WD'!T$266-'GF diets No L-Val + Fat + WD'!F$266,\nIF(AND($G$5=\"No\",$G$6=\"Yes\",$G$7=\"Yes\"),'GF diets L-Val + WD'!T$266-'GF diets L-Val + WD'!F$266,\nIF(AND($G$5=\"Yes\",$G$6=\"Yes\",$G$7=\"Yes\"),'GF diets L-Val + Fat + WD'!T$266-'GF diets L-Val + Fat + WD'!F$266))))))))*-1","v":0.21849499553169593},{"$f":"IF(AND($G$5=\"No\",$G$6=\"No\",$G$7=\"No\"),'GF diets No L-Val'!U$266-'GF diets No L-Val'!G$266,\nIF(AND($G$5=\"Yes\",$G$6=\"No\",$G$7=\"No\"),'GF diets No L-Val + Fat'!U$266-'GF diets No L-Val + Fat'!G$266,\nIF(AND($G$5=\"No\",$G$6=\"No\",$G$7=\"Yes\"),'GF diets L-Val'!U$266-'GF diets L-Val'!G$266,\nIF(AND($G$5=\"Yes\",$G$6=\"No\",$G$7=\"Yes\"),'GF diets L-Val + Fat'!U$266-'GF diets L-Val + Fat'!G$266,\nIF(AND($G$5=\"No\",$G$6=\"Yes\",$G$7=\"No\"),'GF diets No L-Val + WD'!U$266-'GF diets No L-Val + WD'!G$266,\nIF(AND($G$5=\"Yes\",$G$6=\"Yes\",$G$7=\"No\"),'GF diets No L-Val + Fat + WD'!U$266-'GF diets No L-Val + Fat + WD'!G$266,\nIF(AND($G$5=\"No\",$G$6=\"Yes\",$G$7=\"Yes\"),'GF diets L-Val + WD'!U$266-'GF diets L-Val + WD'!G$266,\nIF(AND($G$5=\"Yes\",$G$6=\"Yes\",$G$7=\"Yes\"),'GF diets L-Val + Fat + WD'!U$266-'GF diets L-Val + Fat + WD'!G$266))))))))*-1","v":0.4048610727608537},1.0059401813239974,{"$f":"I45-I44","v":0.4457502451416957}]
[0.15,"15% DDGS",{"$f":"IF(AND($G$5=\"No\",$G$6=\"No\",$G$7=\"No\"),'GF diets No L-Val'!W$266-'GF diets No L-Val'!B$266,\nIF(AND($G$5=\"Yes\",$G$6=\"No\",$G$7=\"No\"),'GF diets No L-Val + Fat'!W$266-'GF diets No L-Val + Fat'!B$266,\nIF(AND($G$5=\"No\",$G$6=\"No\",$G$7=\"Yes\"),'GF diets L-Val'!W$266-'GF diets L-Val'!B$266,\nIF(AND($G$5=\"Yes\",$G$6=\"No\",$G$7=\"Yes\"),'GF diets L-Val + Fat'!W$266-'GF diets L-Val + Fat'!B$266,\nIF(AND($G$5=\"No\",$G$6=\"Yes\",$G$7=\"No\"),'GF diets No L-Val + WD'!W$266-'GF diets No L-Val + WD'!B$266,\nIF(AND($G$5=\"Yes\",$G$6=\"Yes\",$G$7=\"No\"),'GF diets No L-Val + Fat + WD'!W$266-'GF diets No L-Val + Fat + WD'!B$266,\nIF(AND($G$5=\"No\",$G$6=\"Yes\",$G$7=\"Yes\"),'GF diets L-Val + WD'!W$266-'GF diets L-Val + WD'!B$266,\nIF(AND($G$5=\"Yes\",$G$6=\"Yes\",$G$7=\"Yes\"),'GF diets L-Val + Fat + WD'!W$266-'GF diets L-Val + Fat + WD'!B$266))))))))*-1","v":8.6246918062932387E-2},{"$f":"IF(AND($G$5=\"No\",$G$6=\"No\",$G$7=\"No\"),'GF diets No L-Val'!X$266-'GF diets No L-Val'!C$266,\nIF(AND($G$5=\"Yes\",$G$6=\"No\",$G$7=\"No\"),'GF diets No L-Val + Fat'!X$266-'GF diets No L-Val + Fat'!C$266,\nIF(AND($G$5=\"No\",$G$6=\"No\",$G$7=\"Yes\"),'GF diets L-Val'!X$266-'GF diets L-Val'!C$266,\nIF(AND($G$5=\"Yes\",$G$6=\"No\",$G$7=\"Yes\"),'GF diets L-Val + Fat'!X$266-'GF diets L-Val + Fat'!C$266,\nIF(AND($G$5=\"No\",$G$6=\"Yes\",$G$7=\"No\"),'GF diets No L-Val + WD'!X$266-'GF diets No L-Val + WD'!C$266,\nIF(AND($G$5=\"Yes\",$G$6=\"Yes\",$G$7=\"No\"),'GF diets No L-Val + Fat + WD'!X$266-'GF diets No L-Val + Fat + WD'!C$266,\nIF(AND($G$5=\"No\",$G$6=\"Yes\",$G$7=\"Yes\"),'GF diets L-Val + WD'!X$266-'GF diets L-Val + WD'!C$266,\nIF(AND($G$5=\"Yes\",$G$6=\"Yes\",$G$7=\"Yes\"),'GF diets L-Val + Fat + WD'!X$266-'GF diets L-Val + Fat + WD'!C$266))))))))*-1","v":9.0826926934409968E-2},{"$f":"IF(AND($G$5=\"No\",$G$6=\"No\",$G$7=\"No\"),'GF diets No L-Val'!Y$266-'GF diets No L-Val'!D$266,\nIF(AND($G$5=\"Yes\",$G$6=\"No\",$G$7=\"No\"),'GF diets No L-Val + Fat'!Y$266-'GF diets No L-Val + Fat'!D$266,\nIF(AND($G$5=\"No\",$G$6=\"No\",$G$7=\"Yes\"),'GF diets L-Val'!Y$266-'GF diets L-Val'!D$266,\nIF(AND($G$5=\"Yes\",$G$6=\"No\",$G$7=\"Yes\"),'GF diets L-Val + Fat'!Y$266-'GF diets L-Val + Fat'!D$266,\nIF(AND($G$5=\"No\",$G$6=\"Yes\",$G$7=\"No\"),'GF diets No L-Val + WD'!Y$266-'GF diets No L-Val + WD'!D$266,\nIF(AND($G$5=\"Yes\",$G$6=\"Yes\",$G$7=\"No\"),'GF diets No L-Val + Fat + WD'!Y$266-'GF diets No L-Val + Fat + WD'!D$266,\nIF(AND($G$5=\"No\",$G$6=\"Yes\",$G$7=\"Yes\"),'GF diets L-Val + WD'!Y$266-'GF diets L-Val + WD'!D$266,\nIF(AND($G$5=\"Yes\",$G$6=\"Yes\",$G$7=\"Yes\"),'GF diets L-Val + Fat + WD'!Y$266-'GF diets L-Val + Fat + WD'!D$266))))))))*-1","v":0.13902436661296136},{"$f":"IF(AND($G$5=\"No\",$G$6=\"No\",$G$7=\"No\"),'GF diets No L-Val'!Z$266-'GF diets No L-Val'!E$266,\nIF(AND($G$5=\"Yes\",$G$6=\"No\",$G$7=\"No\"),'GF diets No L-Val + Fat'!Z$266-'GF diets No L-Val + Fat'!E$266,\nIF(AND($G$5=\"No\",$G$6=\"No\",$G$7=\"Yes\"),'GF diets L-Val'!Z$266-'GF diets L-Val'!E$266,\nIF(AND($G$5=\"Yes\",$G$6=\"No\",$G$7=\"Yes\"),'GF diets L-Val + Fat'!Z$266-'GF diets L-Val + Fat'!E$266,\nIF(AND($G$5=\"No\",$G$6=\"Yes\",$G$7=\"No\"),'GF diets No L-Val + WD'!Z$266-'GF diets No L-Val + WD'!E$266,\nIF(AND($G$5=\"Yes\",$G$6=\"Yes\",$G$7=\"No\"),'GF diets No L-Val + Fat + WD'!Z$266-'GF diets No L-Val + Fat + WD'!E$266,\nIF(AND($G$5=\"No\",$G$6=\"Yes\",$G$7=\"Yes\"),'GF diets L-Val + WD'!Z$266-'GF diets L-Val + WD'!E$266,\nIF(AND($G$5=\"Yes\",$G$6=\"Yes\",$G$7=\"Yes\"),'GF diets L-Val + Fat + WD'!Z$266-'GF diets L-Val + Fat + WD'!E$266))))))))*-1","v":0.21093935700601207},{"$f":"IF(AND($G$5=\"No\",$G$6=\"No\",$G$7=\"No\"),'GF diets No L-Val'!AA$266-'GF diets No L-Val'!F$266,\nIF(AND($G$5=\"Yes\",$G$6=\"No\",$G$7=\"No\"),'GF diets No L-Val + Fat'!AA$266-'GF diets No L-Val + Fat'!F$266,\nIF(AND($G$5=\"No\",$G$6=\"No\",$G$7=\"Yes\"),'GF diets L-Val'!AA$266-'GF diets L-Val'!F$266,\nIF(AND($G$5=\"Yes\",$G$6=\"No\",$G$7=\"Yes\"),'GF diets L-Val + Fat'!AA$266-'GF diets L-Val + Fat'!F$266,\nIF(AND($G$5=\"No\",$G$6=\"Yes\",$G$7=\"No\"),'GF diets No L-Val + WD'!AA$266-'GF diets No L-Val + WD'!F$266,\nIF(AND($G$5=\"Yes\",$G$6=\"Yes\",$G$7=\"No\"),'GF diets No L-Val + Fat + WD'!AA$266-'GF diets No L-Val + Fat + WD'!F$266,\nIF(AND($G$5=\"No\",$G$6=\"Yes\",$G$7=\"Yes\"),'GF diets L-Val + WD'!AA$266-'GF diets L-Val + WD'!F$266,\nIF(AND($G$5=\"Yes\",$G$6=\"Yes\",$G$7=\"Yes\"),'GF diets L-Val + Fat + WD'!AA$266-'GF diets L-Val + Fat + WD'!F$266))))))))*-1","v":0.3058368246038814},{"$f":"IF(AND($G$5=\"No\",$G$6=\"No\",$G$7=\"No\"),'GF diets No L-Val'!AB$266-'GF diets No L-Val'!G$266,\nIF(AND($G$5=\"Yes\",$G$6=\"No\",$G$7=\"No\"),'GF diets No L-Val + Fat'!AB$266-'GF diets No L-Val + Fat'!G$266,\nIF(AND($G$5=\"No\",$G$6=\"No\",$G$7=\"Yes\"),'GF diets L-Val'!AB$266-'GF diets L-Val'!G$266,\nIF(AND($G$5=\"Yes\",$G$6=\"No\",$G$7=\"Yes\"),'GF diets L-Val + Fat'!AB$266-'GF diets L-Val + Fat'!G$266,\nIF(AND($G$5=\"No\",$G$6=\"Yes\",$G$7=\"No\"),'GF diets No L-Val + WD'!AB$266-'GF diets No L-Val + WD'!G$266,\nIF(AND($G$5=\"Yes\",$G$6=\"Yes\",$G$7=\"No\"),'GF diets No L-Val + Fat + WD'!AB$266-'GF diets No L-Val + Fat + WD'!G$266,\nIF(AND($G$5=\"No\",$G$6=\"Yes\",$G$7=\"Yes\"),'GF diets L-Val + WD'!AB$266-'GF diets L-Val + WD'!G$266,\nIF(AND($G$5=\"Yes\",$G$6=\"Yes\",$G$7=\"Yes\"),'GF diets L-Val + Fat + WD'!AB$266-'GF diets L-Val + Fat + WD'!G$266))))))))*-1","v":0.57929778916270358},1.4121721823829008,{"$f":"I46-I45","v":0.40623200105890334}]
[0.2,"20% DDGS",{"$f":"IF(AND($G$5=\"No\",$G$6=\"No\",$G$7=\"No\"),'GF diets No L-Val'!AD$266-'GF diets No L-Val'!B$266,\nIF(AND($G$5=\"Yes\",$G$6=\"No\",$G$7=\"No\"),'GF diets No L-Val + Fat'!AD$266-'GF diets No L-Val + Fat'!B$266,\nIF(AND($G$5=\"No\",$G$6=\"No\",$G$7=\"Yes\"),'GF diets L-Val'!AD$266-'GF diets L-Val'!B$266,\nIF(AND($G$5=\"Yes\",$G$6=\"No\",$G$7=\"Yes\"),'GF diets L-Val + Fat'!AD$266-'GF diets L-Val + Fat'!B$266,\nIF(AND($G$5=\"No\",$G$6=\"Yes\",$G$7=\"No\"),'GF diets No L-Val + WD'!AD$266-'GF diets No L-Val + WD'!B$266,\nIF(AND($G$5=\"Yes\",$G$6=\"Yes\",$G$7=\"No\"),'GF diets No L-Val + Fat + WD'!AD$266-'GF diets No L-Val + Fat + WD'!B$266,\nIF(AND($G$5=\"No\",$G$6=\"Yes\",$G$7=\"Yes\"),'GF diets L-Val + WD'!AD$266-'GF diets L-Val + WD'!B$266,\nIF(AND($G$5=\"Yes\",$G$6=\"Yes\",$G$7=\"Yes\"),'GF diets L-Val + Fat + WD'!AD$266-'GF diets L-Val + Fat + WD'!B$266))))))))*-1","v":9.9018579497420767E-2},{"$f":"IF(AND($G$5=\"No\",$G$6=\"No\",$G$7=\"No\"),'GF diets No L-Val'!AE$266-'GF diets No L-Val'!C$266,\nIF(AND($G$5=\"Yes\",$G$6=\"No\",$G$7=\"No\"),'GF diets No L-Val + Fat'!AE$266-'GF diets No L-Val + Fat'!C$266,\nIF(AND($G$5=\"No\",$G$6=\"No\",$G$7=\"Yes\"),'GF diets L-Val'!AE$266-'GF diets L-Val'!C$266,\nIF(AND($G$5=\"Yes\",$G$6=\"No\",$G$7=\"Yes\"),'GF diets L-Val + Fat'!AE$266-'GF diets L-Val + Fat'!C$266,\nIF(AND($G$5=\"No\",$G$6=\"Yes\",$G$7=\"No\"),'GF diets No L-Val + WD'!AE$266-'GF diets No L-Val + WD'!C$266,\nIF(AND($G$5=\"Yes\",$G$6=\"Yes\",$G$7=\"No\"),'GF diets No L-Val + Fat + WD'!AE$266-'GF diets No L-Val + Fat + WD'!C$266,\nIF(AND($G$5=\"No\",$G$6=\"Yes\",$G$7=\"Yes\"),'GF diets L-Val + WD'!AE$266-'GF diets L-Val + WD'!C$266,\nIF(AND($G$5=\"Yes\",$G$6=\"Yes\",$G$7=\"Yes\"),'GF diets L-Val + Fat + WD'!AE$266-'GF diets L-Val + Fat + WD'!C$266))))))))*-1","v":0.1126460778817151},{"$f":"IF(AND($G$5=\"No\",$G$6=\"No\",$G$7=\"No\"),'GF diets No L-Val'!AF$266-'GF diets No L-Val'!D$266,\nIF(AND($G$5=\"Yes\",$G$6=\"No\",$G$7=\"No\"),'GF diets No L-Val + Fat'!AF$266-'GF diets No L-Val + Fat'!D$266,\nIF(AND($G$5=\"No\",$G$6=\"No\",$G$7=\"Yes\"),'GF diets L-Val'!AF$266-'GF diets L-Val'!D$266,\nIF(AND($G$5=\"Yes\",$G$6=\"No\",$G$7=\"Yes\"),'GF diets L-Val + Fat'!AF$266-'GF diets L-Val + Fat'!D$266,\nIF(AND($G$5=\"No\",$G$6=\"Yes\",$G$7=\"No\"),'GF diets No L-Val + WD'!AF$266-'GF diets No L-Val + WD'!D$266,\nIF(AND($G$5=\"Yes\",$G$6=\"Yes\",$G$7=\"No\"),'GF diets No L-Val + Fat + WD'!AF$266-'GF diets No L-Val + Fat + WD'!D$266,\nIF(AND($G$5=\"No\",$G$6=\"Yes\",$G$7=\"Yes\"),'GF diets L-Val + WD'!AF$266-'GF diets L-Val + WD'!D$266,\nIF(AND($G$5=\"Yes\",$G$6=\"Yes\",$G$7=\"Yes\"),'GF diets L-Val + Fat + WD'!AF$266-'GF diets L-Val + Fat + WD'!D$266))))))))*-1","v":0.17732606730722189},{"$f":"IF(AND($G$5=\"No\",$G$6=\"No\",$G$7=\"No\"),'GF diets No L-Val'!AG$266-'GF diets No L-Val'!E$266,\nIF(AND($G$5=\"Yes\",$G$6=\"No\",$G$7=\"No\"),'GF diets No L-Val + Fat'!AG$266-'GF diets No L-Val + Fat'!E$266,\nIF(AND($G$5=\"No\",$G$6=\"No\",$G$7=\"Yes\"),'GF diets L-Val'!AG$266-'GF diets L-Val'!E$266,\nIF(AND($G$5=\"Yes\",$G$6=\"No\",$G$7=\"Yes\"),'GF diets L-Val + Fat'!AG$266-'GF diets L-Val + Fat'!E$266,\nIF(AND($G$5=\"No\",$G$6=\"Yes\",$G$7=\"No\"),'GF diets No L-Val + WD'!AG$266-'GF diets No L-Val + WD'!E$266,\nIF(AND($G$5=\"Yes\",$G$6=\"Yes\",$G$7=\"No\"),'GF diets No L-Val + Fat + WD'!AG$266-'GF diets No L-Val + Fat + WD'!E$266,\nIF(AND($G$5=\"No\",$G$6=\"Yes\",$G$7=\"Yes\"),'GF diets L-Val + WD'!AG$266-'GF diets L-Val + WD'!E$266,\nIF(AND($G$5=\"Yes\",$G$6=\"Yes\",$G$7=\"Yes\"),'GF diets L-Val + Fat + WD'!AG$266-'GF diets L-Val + Fat + WD'!E$266))))))))*-1","v":0.25547600077796417},{"$f":"IF(AND($G$5=\"No\",$G$6=\"No\",$G$7=\"No\"),'GF diets No L-Val'!AH$266-'GF diets No L-Val'!F$266,\nIF(AND($G$5=\"Yes\",$G$6=\"No\",$G$7=\"No\"),'GF diets No L-Val + Fat'!AH$266-'GF diets No L-Val + Fat'!F$266,\nIF(AND($G$5=\"No\",$G$6=\"No\",$G$7=\"Yes\"),'GF diets L-Val'!AH$266-'GF diets L-Val'!F$266,\nIF(AND($G$5=\"Yes\",$G$6=\"No\",$G$7=\"Yes\"),'GF diets L-Val + Fat'!AH$266-'GF diets L-Val + Fat'!F$266,\nIF(AND($G$5=\"No\",$G$6=\"Yes\",$G$7=\"No\"),'GF diets No L-Val + WD'!AH$266-'GF diets No L-Val + WD'!F$266,\nIF(AND($G$5=\"Yes\",$G$6=\"Yes\",$G$7=\"No\"),'GF diets No L-Val + Fat + WD'!AH$266-'GF diets No L-Val + Fat + WD'!F$266,\nIF(AND($G$5=\"No\",$G$6=\"Yes\",$G$7=\"Yes\"),'GF diets L-Val + WD'!AH$266-'GF diets L-Val + WD'!F$266,\nIF(AND($G$5=\"Yes\",$G$6=\"Yes\",$G$7=\"Yes\"),'GF diets L-Val + Fat + WD'!AH$266-'GF diets L-Val + Fat + WD'!F$266))))))))*-1","v":0.37743624664408415},{"$f":"IF(AND($G$5=\"No\",$G$6=\"No\",$G$7=\"No\"),'GF diets No L-Val'!AI$266-'GF diets No L-Val'!G$266,\nIF(AND($G$5=\"Yes\",$G$6=\"No\",$G$7=\"No\"),'GF diets No L-Val + Fat'!AI$266-'GF diets No L-Val + Fat'!G$266,\nIF(AND($G$5=\"No\",$G$6=\"No\",$G$7=\"Yes\"),'GF diets L-Val'!AI$266-'GF diets L-Val'!G$266,\nIF(AND($G$5=\"Yes\",$G$6=\"No\",$G$7=\"Yes\"),'GF diets L-Val + Fat'!AI$266-'GF diets L-Val + Fat'!G$266,\nIF(AND($G$5=\"No\",$G$6=\"Yes\",$G$7=\"No\"),'GF diets No L-Val + WD'!AI$266-'GF diets No L-Val + WD'!G$266,\nIF(AND($G$5=\"Yes\",$G$6=\"Yes\",$G$7=\"No\"),'GF diets No L-Val + Fat + WD'!AI$266-'GF diets No L-Val + Fat + WD'!G$266,\nIF(AND($G$5=\"No\",$G$6=\"Yes\",$G$7=\"Yes\"),'GF diets L-Val + WD'!AI$266-'GF diets L-Val + WD'!G$266,\nIF(AND($G$5=\"Yes\",$G$6=\"Yes\",$G$7=\"Yes\"),'GF diets L-Val + Fat + WD'!AI$266-'GF diets L-Val + Fat + WD'!G$266))))))))*-1","v":0.73274861716237716},1.7546515892707832,{"$f":"I47-I46","v":0.34247940688788248}]
[0.25,"25% DDGS",{"$f":"IF(AND($G$5=\"No\",$G$6=\"No\",$G$7=\"No\"),'GF diets No L-Val'!AK$266-'GF diets No L-Val'!B$266,\nIF(AND($G$5=\"Yes\",$G$6=\"No\",$G$7=\"No\"),'GF diets No L-Val + Fat'!AK$266-'GF diets No L-Val + Fat'!B$266,\nIF(AND($G$5=\"No\",$G$6=\"No\",$G$7=\"Yes\"),'GF diets L-Val'!AK$266-'GF diets L-Val'!B$266,\nIF(AND($G$5=\"Yes\",$G$6=\"No\",$G$7=\"Yes\"),'GF diets L-Val + Fat'!AK$266-'GF diets L-Val + Fat'!B$266,\nIF(AND($G$5=\"No\",$G$6=\"Yes\",$G$7=\"No\"),'GF diets No L-Val + WD'!AK$266-'GF diets No L-Val + WD'!B$266,\nIF(AND($G$5=\"Yes\",$G$6=\"Yes\",$G$7=\"No\"),'GF diets No L-Val + Fat + WD'!AK$266-'GF diets No L-Val + Fat + WD'!B$266,\nIF(AND($G$5=\"No\",$G$6=\"Yes\",$G$7=\"Yes\"),'GF diets L-Val + WD'!AK$266-'GF diets L-Val + WD'!B$266,\nIF(AND($G$5=\"Yes\",$G$6=\"Yes\",$G$7=\"Yes\"),'GF diets L-Val + Fat + WD'!AK$266-'GF diets L-Val + Fat + WD'!B$266))))))))*-1","v":9.554778667628927E-2},{"$f":"IF(AND($G$5=\"No\",$G$6=\"No\",$G$7=\"No\"),'GF diets No L-Val'!AL$266-'GF diets No L-Val'!C$266,\nIF(AND($G$5=\"Yes\",$G$6=\"No\",$G$7=\"No\"),'GF diets No L-Val + Fat'!AL$266-'GF diets No L-Val + Fat'!C$266,\nIF(AND($G$5=\"No\",$G$6=\"No\",$G$7=\"Yes\"),'GF diets L-Val'!AL$266-'GF diets L-Val'!C$266,\nIF(AND($G$5=\"Yes\",$G$6=\"No\",$G$7=\"Yes\"),'GF diets L-Val + Fat'!AL$266-'GF diets L-Val + Fat'!C$266,\nIF(AND($G$5=\"No\",$G$6=\"Yes\",$G$7=\"No\"),'GF diets No L-Val + WD'!AL$266-'GF diets No L-Val + WD'!C$266,\nIF(AND($G$5=\"Yes\",$G$6=\"Yes\",$G$7=\"No\"),'GF diets No L-Val + Fat + WD'!AL$266-'GF diets No L-Val + Fat + WD'!C$266,\nIF(AND($G$5=\"No\",$G$6=\"Yes\",$G$7=\"Yes\"),'GF diets L-Val + WD'!AL$266-'GF diets L-Val + WD'!C$266,\nIF(AND($G$5=\"Yes\",$G$6=\"Yes\",$G$7=\"Yes\"),'GF diets L-Val + Fat + WD'!AL$266-'GF diets L-Val + Fat + WD'!C$266))))))))*-1","v":0.12686879392083661},{"$f":"IF(AND($G$5=\"No\",$G$6=\"No\",$G$7=\"No\"),'GF diets No L-Val'!AM$266-'GF diets No L-Val'!D$266,\nIF(AND($G$5=\"Yes\",$G$6=\"No\",$G$7=\"No\"),'GF diets No L-Val + Fat'!AM$266-'GF diets No L-Val + Fat'!D$266,\nIF(AND($G$5=\"No\",$G$6=\"No\",$G$7=\"Yes\"),'GF diets L-Val'!AM$266-'GF diets L-Val'!D$266,\nIF(AND($G$5=\"Yes\",$G$6=\"No\",$G$7=\"Yes\"),'GF diets L-Val + Fat'!AM$266-'GF diets L-Val + Fat'!D$266,\nIF(AND($G$5=\"No\",$G$6=\"Yes\",$G$7=\"No\"),'GF diets No L-Val + WD'!AM$266-'GF diets No L-Val + WD'!D$266,\nIF(AND($G$5=\"Yes\",$G$6=\"Yes\",$G$7=\"No\"),'GF diets No L-Val + Fat + WD'!AM$266-'GF diets No L-Val + Fat + WD'!D$266,\nIF(AND($G$5=\"No\",$G$6=\"Yes\",$G$7=\"Yes\"),'GF diets L-Val + WD'!AM$266-'GF diets L-Val + WD'!D$266,\nIF(AND($G$5=\"Yes\",$G$6=\"Yes\",$G$7=\"Yes\"),'GF diets L-Val + Fat + WD'!AM$266-'GF diets L-Val + Fat + WD'!D$266))))))))*-1","v":0.1941874828836081},{"$f":"IF(AND($G$5=\"No\",$G$6=\"No\",$G$7=\"No\"),'GF diets No L-Val'!AN$266-'GF diets No L-Val'!E$266,\nIF(AND($G$5=\"Yes\",$G$6=\"No\",$G$7=\"No\"),'GF diets No L-Val + Fat'!AN$266-'GF diets No L-Val + Fat'!E$266,\nIF(AND($G$5=\"No\",$G$6=\"No\",$G$7=\"Yes\"),'GF diets L-Val'!AN$266-'GF diets L-Val'!E$266,\nIF(AND($G$5=\"Yes\",$G$6=\"No\",$G$7=\"Yes\"),'GF diets L-Val + Fat'!AN$266-'GF diets L-Val + Fat'!E$266,\nIF(AND($G$5=\"No\",$G$6=\"Yes\",$G$7=\"No\"),'GF diets No L-Val + WD'!AN$266-'GF diets No L-Val + WD'!E$266,\nIF(AND($G$5=\"Yes\",$G$6=\"Yes\",$G$7=\"No\"),'GF diets No L-Val + Fat + WD'!AN$266-'GF diets No L-Val + Fat + WD'!E$266,\nIF(AND($G$5=\"No\",$G$6=\"Yes\",$G$7=\"Yes\"),'GF diets L-Val + WD'!AN$266-'GF diets L-Val + WD'!E$266,\nIF(AND($G$5=\"Yes\",$G$6=\"Yes\",$G$7=\"Yes\"),'GF diets L-Val + Fat + WD'!AN$266-'GF diets L-Val + Fat + WD'!E$266))))))))*-1","v":0.28761207424227031},{"$f":"IF(AND($G$5=\"No\",$G$6=\"No\",$G$7=\"No\"),'GF diets No L-Val'!AO$266-'GF diets No L-Val'!F$266,\nIF(AND($G$5=\"Yes\",$G$6=\"No\",$G$7=\"No\"),'GF diets No L-Val + Fat'!AO$266-'GF diets No L-Val + Fat'!F$266,\nIF(AND($G$5=\"No\",$G$6=\"No\",$G$7=\"Yes\"),'GF diets L-Val'!AO$266-'GF diets L-Val'!F$266,\nIF(AND($G$5=\"Yes\",$G$6=\"No\",$G$7=\"Yes\"),'GF diets L-Val + Fat'!AO$266-'GF diets L-Val + Fat'!F$266,\nIF(AND($G$5=\"No\",$G$6=\"Yes\",$G$7=\"No\"),'GF diets No L-Val + WD'!AO$266-'GF diets No L-Val + WD'!F$266,\nIF(AND($G$5=\"Yes\",$G$6=\"Yes\",$G$7=\"No\"),'GF diets No L-Val + Fat + WD'!AO$266-'GF diets No L-Val + Fat + WD'!F$266,\nIF(AND($G$5=\"No\",$G$6=\"Yes\",$G$7=\"Yes\"),'GF diets L-Val + WD'!AO$266-'GF diets L-Val + WD'!F$266,\nIF(AND($G$5=\"Yes\",$G$6=\"Yes\",$G$7=\"Yes\"),'GF diets L-Val + Fat + WD'!AO$266-'GF diets L-Val + Fat + WD'!F$266))))))))*-1","v":0.43478449374459949},{"$f":"IF(AND($G$5=\"No\",$G$6=\"No\",$G$7=\"No\"),'GF diets No L-Val'!AP$266-'GF diets No L-Val'!G$266,\nIF(AND($G$5=\"Yes\",$G$6=\"No\",$G$7=\"No\"),'GF diets No L-Val + Fat'!AP$266-'GF diets No L-Val + Fat'!G$266,\nIF(AND($G$5=\"No\",$G$6=\"No\",$G$7=\"Yes\"),'GF diets L-Val'!AP$266-'GF diets L-Val'!G$266,\nIF(AND($G$5=\"Yes\",$G$6=\"No\",$G$7=\"Yes\"),'GF diets L-Val + Fat'!AP$266-'GF diets L-Val + Fat'!G$266,\nIF(AND($G$5=\"No\",$G$6=\"Yes\",$G$7=\"No\"),'GF diets No L-Val + WD'!AP$266-'GF diets No L-Val + WD'!G$266,\nIF(AND($G$5=\"Yes\",$G$6=\"Yes\",$G$7=\"No\"),'GF diets No L-Val + Fat + WD'!AP$266-'GF diets No L-Val + Fat + WD'!G$266,\nIF(AND($G$5=\"No\",$G$6=\"Yes\",$G$7=\"Yes\"),'GF diets L-Val + WD'!AP$266-'GF diets L-Val + WD'!G$266,\nIF(AND($G$5=\"Yes\",$G$6=\"Yes\",$G$7=\"Yes\"),'GF diets L-Val + Fat + WD'!AP$266-'GF diets L-Val + Fat + WD'!G$266))))))))*-1","v":0.87782128432011142},2.0168219157877152,{"$f":"I48-I47","v":0.26217032651693195}]
[0.3,"30% DDGS",{"$f":"IF(AND($G$5=\"No\",$G$6=\"No\",$G$7=\"No\"),'GF diets No L-Val'!AR$266-'GF diets No L-Val'!B$266,\nIF(AND($G$5=\"Yes\",$G$6=\"No\",$G$7=\"No\"),'GF diets No L-Val + Fat'!AR$266-'GF diets No L-Val + Fat'!B$266,\nIF(AND($G$5=\"No\",$G$6=\"No\",$G$7=\"Yes\"),'GF diets L-Val'!AR$266-'GF diets L-Val'!B$266,\nIF(AND($G$5=\"Yes\",$G$6=\"No\",$G$7=\"Yes\"),'GF diets L-Val + Fat'!AR$266-'GF diets L-Val + Fat'!B$266,\nIF(AND($G$5=\"No\",$G$6=\"Yes\",$G$7=\"No\"),'GF diets No L-Val + WD'!AR$266-'GF diets No L-Val + WD'!B$266,\nIF(AND($G$5=\"Yes\",$G$6=\"Yes\",$G$7=\"No\"),'GF diets No L-Val + Fat + WD'!AR$266-'GF diets No L-Val + Fat + WD'!B$266,\nIF(AND($G$5=\"No\",$G$6=\"Yes\",$G$7=\"Yes\"),'GF diets L-Val + WD'!AR$266-'GF diets L-Val + WD'!B$266,\nIF(AND($G$5=\"Yes\",$G$6=\"Yes\",$G$7=\"Yes\"),'GF diets L-Val + Fat + WD'!AR$266-'GF diets L-Val + Fat + WD'!B$266))))))))*-1","v":9.8930042537966223E-2},{"$f":"IF(AND($G$5=\"No\",$G$6=\"No\",$G$7=\"No\"),'GF diets No L-Val'!AS$266-'GF diets No L-Val'!C$266,\nIF(AND($G$5=\"Yes\",$G$6=\"No\",$G$7=\"No\"),'GF diets No L-Val + Fat'!AS$266-'GF diets No L-Val + Fat'!C$266,\nIF(AND($G$5=\"No\",$G$6=\"No\",$G$7=\"Yes\"),'GF diets L-Val'!AS$266-'GF diets L-Val'!C$266,\nIF(AND($G$5=\"Yes\",$G$6=\"No\",$G$7=\"Yes\"),'GF diets L-Val + Fat'!AS$266-'GF diets L-Val + Fat'!C$266,\nIF(AND($G$5=\"No\",$G$6=\"Yes\",$G$7=\"No\"),'GF diets No L-Val + WD'!AS$266-'GF diets No L-Val + WD'!C$266,\nIF(AND($G$5=\"Yes\",$G$6=\"Yes\",$G$7=\"No\"),'GF diets No L-Val + Fat + WD'!AS$266-'GF diets No L-Val + Fat + WD'!C$266,\nIF(AND($G$5=\"No\",$G$6=\"Yes\",$G$7=\"Yes\"),'GF diets L-Val + WD'!AS$266-'GF diets L-Val + WD'!C$266,\nIF(AND($G$5=\"Yes\",$G$6=\"Yes\",$G$7=\"Yes\"),'GF diets L-Val + Fat + WD'!AS$266-'GF diets L-Val + Fat + WD'!C$266))))))))*-1","v":0.13488214483955119},{"$f":"IF(AND($G$5=\"No\",$G$6=\"No\",$G$7=\"No\"),'GF diets No L-Val'!AT$266-'GF diets No L-Val'!D$266,\nIF(AND($G$5=\"Yes\",$G$6=\"No\",$G$7=\"No\"),'GF diets No L-Val + Fat'!AT$266-'GF diets No L-Val + Fat'!D$266,\nIF(AND($G$5=\"No\",$G$6=\"No\",$G$7=\"Yes\"),'GF diets L-Val'!AT$266-'GF diets L-Val'!D$266,\nIF(AND($G$5=\"Yes\",$G$6=\"No\",$G$7=\"Yes\"),'GF diets L-Val + Fat'!AT$266-'GF diets L-Val + Fat'!D$266,\nIF(AND($G$5=\"No\",$G$6=\"Yes\",$G$7=\"No\"),'GF diets No L-Val + WD'!AT$266-'GF diets No L-Val + WD'!D$266,\nIF(AND($G$5=\"Yes\",$G$6=\"Yes\",$G$7=\"No\"),'GF diets No L-Val + Fat + WD'!AT$266-'GF diets No L-Val + Fat + WD'!D$266,\nIF(AND($G$5=\"No\",$G$6=\"Yes\",$G$7=\"Yes\"),'GF diets L-Val + WD'!AT$266-'GF diets L-Val + WD'!D$266,\nIF(AND($G$5=\"Yes\",$G$6=\"Yes\",$G$7=\"Yes\"),'GF diets L-Val + Fat + WD'!AT$266-'GF diets L-Val + Fat + WD'!D$266))))))))*-1","v":0.20360894250297434},{"$f":"IF(AND($G$5=\"No\",$G$6=\"No\",$G$7=\"No\"),'GF diets No L-Val'!AU$266-'GF diets No L-Val'!E$266,\nIF(AND($G$5=\"Yes\",$G$6=\"No\",$G$7=\"No\"),'GF diets No L-Val + Fat'!AU$266-'GF diets No L-Val + Fat'!E$266,\nIF(AND($G$5=\"No\",$G$6=\"No\",$G$7=\"Yes\"),'GF diets L-Val'!AU$266-'GF diets L-Val'!E$266,\nIF(AND($G$5=\"Yes\",$G$6=\"No\",$G$7=\"Yes\"),'GF diets L-Val + Fat'!AU$266-'GF diets L-Val + Fat'!E$266,\nIF(AND($G$5=\"No\",$G$6=\"Yes\",$G$7=\"No\"),'GF diets No L-Val + WD'!AU$266-'GF diets No L-Val + WD'!E$266,\nIF(AND($G$5=\"Yes\",$G$6=\"Yes\",$G$7=\"No\"),'GF diets No L-Val + Fat + WD'!AU$266-'GF diets No L-Val + Fat + WD'!E$266,\nIF(AND($G$5=\"No\",$G$6=\"Yes\",$G$7=\"Yes\"),'GF diets L-Val + WD'!AU$266-'GF diets L-Val + WD'!E$266,\nIF(AND($G$5=\"Yes\",$G$6=\"Yes\",$G$7=\"Yes\"),'GF diets L-Val + Fat + WD'!AU$266-'GF diets L-Val + Fat + WD'!E$266))))))))*-1","v":0.30102115603801671},{"$f":"IF(AND($G$5=\"No\",$G$6=\"No\",$G$7=\"No\"),'GF diets No L-Val'!AV$266-'GF diets No L-Val'!F$266,\nIF(AND($G$5=\"Yes\",$G$6=\"No\",$G$7=\"No\"),'GF diets No L-Val + Fat'!AV$266-'GF diets No L-Val + Fat'!F$266,\nIF(AND($G$5=\"No\",$G$6=\"No\",$G$7=\"Yes\"),'GF diets L-Val'!AV$266-'GF diets L-Val'!F$266,\nIF(AND($G$5=\"Yes\",$G$6=\"No\",$G$7=\"Yes\"),'GF diets L-Val + Fat'!AV$266-'GF diets L-Val + Fat'!F$266,\nIF(AND($G$5=\"No\",$G$6=\"Yes\",$G$7=\"No\"),'GF diets No L-Val + WD'!AV$266-'GF diets No L-Val + WD'!F$266,\nIF(AND($G$5=\"Yes\",$G$6=\"Yes\",$G$7=\"No\"),'GF diets No L-Val + Fat + WD'!AV$266-'GF diets No L-Val + Fat + WD'!F$266,\nIF(AND($G$5=\"No\",$G$6=\"Yes\",$G$7=\"Yes\"),'GF diets L-Val + WD'!AV$266-'GF diets L-Val + WD'!F$266,\nIF(AND($G$5=\"Yes\",$G$6=\"Yes\",$G$7=\"Yes\"),'GF diets L-Val + Fat + WD'!AV$266-'GF diets L-Val + Fat + WD'!F$266))))))))*-1","v":0.48813736476942715},{"$f":"IF(AND($G$5=\"No\",$G$6=\"No\",$G$7=\"No\"),'GF diets No L-Val'!AW$266-'GF diets No L-Val'!G$266,\nIF(AND($G$5=\"Yes\",$G$6=\"No\",$G$7=\"No\"),'GF diets No L-Val + Fat'!AW$266-'GF diets No L-Val + Fat'!G$266,\nIF(AND($G$5=\"No\",$G$6=\"No\",$G$7=\"Yes\"),'GF diets L-Val'!AW$266-'GF diets L-Val'!G$266,\nIF(AND($G$5=\"Yes\",$G$6=\"No\",$G$7=\"Yes\"),'GF diets L-Val + Fat'!AW$266-'GF diets L-Val + Fat'!G$266,\nIF(AND($G$5=\"No\",$G$6=\"Yes\",$G$7=\"No\"),'GF diets No L-Val + WD'!AW$266-'GF diets No L-Val + WD'!G$266,\nIF(AND($G$5=\"Yes\",$G$6=\"Yes\",$G$7=\"No\"),'GF diets No L-Val + Fat + WD'!AW$266-'GF diets No L-Val + Fat + WD'!G$266,\nIF(AND($G$5=\"No\",$G$6=\"Yes\",$G$7=\"Yes\"),'GF diets L-Val + WD'!AW$266-'GF diets L-Val + WD'!G$266,\nIF(AND($G$5=\"Yes\",$G$6=\"Yes\",$G$7=\"Yes\"),'GF diets L-Val + Fat + WD'!AW$266-'GF diets L-Val + Fat + WD'!G$266))))))))*-1","v":1.0188582101080073},2.2454378607959429,{"$f":"I49-I48","v":0.22861594500822768}]
[]
[null,"Lost revenue from decreased growth, $/pig (compared to 0% DDGS)","Phase 1 ","Phase 2","Phase 3","Phase 4","Phase 5","Phase 6","Total","Incremental"]
[0.05,"5% DDGS",{"$f":"IF(AND($G$5=\"No\",$G$6=\"No\",$G$7=\"No\"),'GF diets No L-Val'!I$268*($G$8*$G$9/100),IF(AND($G$5=\"Yes\",$G$6=\"No\",$G$7=\"No\"),'GF diets No L-Val + Fat'!I$268*($G$8*$G$9/100),IF(AND($G$5=\"No\",$G$6=\"No\",$G$7=\"Yes\"),'GF diets L-Val'!I$268*($G$8*$G$9/100),IF(AND($G$5=\"Yes\",$G$6=\"No\",$G$7=\"Yes\"),'GF diets L-Val + Fat'!I$268*($G$8*$G$9/100),IF(AND($G$5=\"No\",$G$6=\"Yes\",$G$7=\"No\"),'GF diets No L-Val + WD'!I$268*($G$8*$G$9/100),IF(AND($G$5=\"Yes\",$G$6=\"Yes\",$G$7=\"No\"),'GF diets No L-Val + Fat + WD'!I$268*($G$8*$G$9/100),IF(AND($G$5=\"No\",$G$6=\"Yes\",$G$7=\"Yes\"),'GF diets L-Val + WD'!I$268*($G$8*$G$9/100),IF(AND($G$5=\"Yes\",$G$6=\"Yes\",$G$7=\"Yes\"),'GF diets L-Val + Fat + WD'!I$268*($G$8*$G$9/100)))))))))*-1","v":-0.15204703592217295},{"$f":"IF(AND($G$5=\"No\",$G$6=\"No\",$G$7=\"No\"),'GF diets No L-Val'!J$268*($G$8*$G$9/100),IF(AND($G$5=\"Yes\",$G$6=\"No\",$G$7=\"No\"),'GF diets No L-Val + Fat'!J$268*($G$8*$G$9/100),IF(AND($G$5=\"No\",$G$6=\"No\",$G$7=\"Yes\"),'GF diets L-Val'!J$268*($G$8*$G$9/100),IF(AND($G$5=\"Yes\",$G$6=\"No\",$G$7=\"Yes\"),'GF diets L-Val + Fat'!J$268*($G$8*$G$9/100),IF(AND($G$5=\"No\",$G$6=\"Yes\",$G$7=\"No\"),'GF diets No L-Val + WD'!J$268*($G$8*$G$9/100),IF(AND($G$5=\"Yes\",$G$6=\"Yes\",$G$7=\"No\"),'GF diets No L-Val + Fat + WD'!J$268*($G$8*$G$9/100),IF(AND($G$5=\"No\",$G$6=\"Yes\",$G$7=\"Yes\"),'GF diets L-Val + WD'!J$268*($G$8*$G$9/100),IF(AND($G$5=\"Yes\",$G$6=\"Yes\",$G$7=\"Yes\"),'GF diets L-Val + Fat + WD'!J$268*($G$8*$G$9/100)))))))))*-1","v":-0.14482295753534694},{"$f":"IF(AND($G$5=\"No\",$G$6=\"No\",$G$7=\"No\"),'GF diets No L-Val'!K$268*($G$8*$G$9/100),IF(AND($G$5=\"Yes\",$G$6=\"No\",$G$7=\"No\"),'GF diets No L-Val + Fat'!K$268*($G$8*$G$9/100),IF(AND($G$5=\"No\",$G$6=\"No\",$G$7=\"Yes\"),'GF diets L-Val'!K$268*($G$8*$G$9/100),IF(AND($G$5=\"Yes\",$G$6=\"No\",$G$7=\"Yes\"),'GF diets L-Val + Fat'!K$268*($G$8*$G$9/100),IF(AND($G$5=\"No\",$G$6=\"Yes\",$G$7=\"No\"),'GF diets No L-Val + WD'!K$268*($G$8*$G$9/100),IF(AND($G$5=\"Yes\",$G$6=\"Yes\",$G$7=\"No\"),'GF diets No L-Val + Fat + WD'!K$268*($G$8*$G$9/100),IF(AND($G$5=\"No\",$G$6=\"Yes\",$G$7=\"Yes\"),'GF diets L-Val + WD'!K$268*($G$8*$G$9/100),IF(AND($G$5=\"Yes\",$G$6=\"Yes\",$G$7=\"Yes\"),'GF diets L-Val + Fat + WD'!K$268*($G$8*$G$9/100)))))))))*-1","v":-0.17718479706332266},{"$f":"IF(AND($G$5=\"No\",$G$6=\"No\",$G$7=\"No\"),'GF diets No L-Val'!L$268*($G$8*$G$9/100),IF(AND($G$5=\"Yes\",$G$6=\"No\",$G$7=\"No\"),'GF diets No L-Val + Fat'!L$268*($G$8*$G$9/100),IF(AND($G$5=\"No\",$G$6=\"No\",$G$7=\"Yes\"),'GF diets L-Val'!L$268*($G$8*$G$9/100),IF(AND($G$5=\"Yes\",$G$6=\"No\",$G$7=\"Yes\"),'GF diets L-Val + Fat'!L$268*($G$8*$G$9/100),IF(AND($G$5=\"No\",$G$6=\"Yes\",$G$7=\"No\"),'GF diets No L-Val + WD'!L$268*($G$8*$G$9/100),IF(AND($G$5=\"Yes\",$G$6=\"Yes\",$G$7=\"No\"),'GF diets No L-Val + Fat + WD'!L$268*($G$8*$G$9/100),IF(AND($G$5=\"No\",$G$6=\"Yes\",$G$7=\"Yes\"),'GF diets L-Val + WD'!L$268*($G$8*$G$9/100),IF(AND($G$5=\"Yes\",$G$6=\"Yes\",$G$7=\"Yes\"),'GF diets L-Val + Fat + WD'!L$268*($G$8*$G$9/100)))))))))*-1","v":-0.21486818335742283},{"$f":"IF(AND($G$5=\"No\",$G$6=\"No\",$G$7=\"No\"),'GF diets No L-Val'!M$268*($G$8*$G$9/100),IF(AND($G$5=\"Yes\",$G$6=\"No\",$G$7=\"No\"),'GF diets No L-Val + Fat'!M$268*($G$8*$G$9/100),IF(AND($G$5=\"No\",$G$6=\"No\",$G$7=\"Yes\"),'GF diets L-Val'!M$268*($G$8*$G$9/100),IF(AND($G$5=\"Yes\",$G$6=\"No\",$G$7=\"Yes\"),'GF diets L-Val + Fat'!M$268*($G$8*$G$9/100),IF(AND($G$5=\"No\",$G$6=\"Yes\",$G$7=\"No\"),'GF diets No L-Val + WD'!M$268*($G$8*$G$9/100),IF(AND($G$5=\"Yes\",$G$6=\"Yes\",$G$7=\"No\"),'GF diets No L-Val + Fat + WD'!M$268*($G$8*$G$9/100),IF(AND($G$5=\"No\",$G$6=\"Yes\",$G$7=\"Yes\"),'GF diets L-Val + WD'!M$268*($G$8*$G$9/100),IF(AND($G$5=\"Yes\",$G$6=\"Yes\",$G$7=\"Yes\"),'GF diets L-Val + Fat + WD'!M$268*($G$8*$G$9/100)))))))))*-1","v":-0.29042640873070147},{"$f":"IF(AND($G$5=\"No\",$G$6=\"No\",$G$7=\"No\"),'GF diets No L-Val'!N$268*($G$8*$G$9/100),IF(AND($G$5=\"Yes\",$G$6=\"No\",$G$7=\"No\"),'GF diets No L-Val + Fat'!N$268*($G$8*$G$9/100),IF(AND($G$5=\"No\",$G$6=\"No\",$G$7=\"Yes\"),'GF diets L-Val'!N$268*($G$8*$G$9/100),IF(AND($G$5=\"Yes\",$G$6=\"No\",$G$7=\"Yes\"),'GF diets L-Val + Fat'!N$268*($G$8*$G$9/100),IF(AND($G$5=\"No\",$G$6=\"Yes\",$G$7=\"No\"),'GF diets No L-Val + WD'!N$268*($G$8*$G$9/100),IF(AND($G$5=\"Yes\",$G$6=\"Yes\",$G$7=\"No\"),'GF diets No L-Val + Fat + WD'!N$268*($G$8*$G$9/100),IF(AND($G$5=\"No\",$G$6=\"Yes\",$G$7=\"Yes\"),'GF diets L-Val + WD'!N$268*($G$8*$G$9/100),IF(AND($G$5=\"Yes\",$G$6=\"Yes\",$G$7=\"Yes\"),'GF diets L-Val + Fat + WD'!N$268*($G$8*$G$9/100)))))))))*-1","v":-0.46534153329271982},{"$f":"SUM(C52:H52)","v":-1.4446909159016867}]
[0.1,"10% DDGS",{"$f":"IF(AND($G$5=\"No\",$G$6=\"No\",$G$7=\"No\"),'GF diets No L-Val'!P$268*($G$8*$G$9/100),IF(AND($G$5=\"Yes\",$G$6=\"No\",$G$7=\"No\"),'GF diets No L-Val + Fat'!P$268*($G$8*$G$9/100),IF(AND($G$5=\"No\",$G$6=\"No\",$G$7=\"Yes\"),'GF diets L-Val'!P$268*($G$8*$G$9/100),IF(AND($G$5=\"Yes\",$G$6=\"No\",$G$7=\"Yes\"),'GF diets L-Val + Fat'!P$268*($G$8*$G$9/100),IF(AND($G$5=\"No\",$G$6=\"Yes\",$G$7=\"No\"),'GF diets No L-Val + WD'!P$268*($G$8*$G$9/100),IF(AND($G$5=\"Yes\",$G$6=\"Yes\",$G$7=\"No\"),'GF diets No L-Val + Fat + WD'!P$268*($G$8*$G$9/100),IF(AND($G$5=\"No\",$G$6=\"Yes\",$G$7=\"Yes\"),'GF diets L-Val + WD'!P$268*($G$8*$G$9/100),IF(AND($G$5=\"Yes\",$G$6=\"Yes\",$G$7=\"Yes\"),'GF diets L-Val + Fat + WD'!P$268*($G$8*$G$9/100)))))))))*-1","v":-0.27587818015106208},{"$f":"IF(AND($G$5=\"No\",$G$6=\"No\",$G$7=\"No\"),'GF diets No L-Val'!Q$268*($G$8*$G$9/100),IF(AND($G$5=\"Yes\",$G$6=\"No\",$G$7=\"No\"),'GF diets No L-Val + Fat'!Q$268*($G$8*$G$9/100),IF(AND($G$5=\"No\",$G$6=\"No\",$G$7=\"Yes\"),'GF diets L-Val'!Q$268*($G$8*$G$9/100),IF(AND($G$5=\"Yes\",$G$6=\"No\",$G$7=\"Yes\"),'GF diets L-Val + Fat'!Q$268*($G$8*$G$9/100),IF(AND($G$5=\"No\",$G$6=\"Yes\",$G$7=\"No\"),'GF diets No L-Val + WD'!Q$268*($G$8*$G$9/100),IF(AND($G$5=\"Yes\",$G$6=\"Yes\",$G$7=\"No\"),'GF diets No L-Val + Fat + WD'!Q$268*($G$8*$G$9/100),IF(AND($G$5=\"No\",$G$6=\"Yes\",$G$7=\"Yes\"),'GF diets L-Val + WD'!Q$268*($G$8*$G$9/100),IF(AND($G$5=\"Yes\",$G$6=\"Yes\",$G$7=\"Yes\"),'GF diets L-Val + Fat + WD'!Q$268*($G$8*$G$9/100)))))))))*-1","v":-0.26465542052659236},{"$f":"IF(AND($G$5=\"No\",$G$6=\"No\",$G$7=\"No\"),'GF diets No L-Val'!R$268*($G$8*$G$9/100),IF(AND($G$5=\"Yes\",$G$6=\"No\",$G$7=\"No\"),'GF diets No L-Val + Fat'!R$268*($G$8*$G$9/100),IF(AND($G$5=\"No\",$G$6=\"No\",$G$7=\"Yes\"),'GF diets L-Val'!R$268*($G$8*$G$9/100),IF(AND($G$5=\"Yes\",$G$6=\"No\",$G$7=\"Yes\"),'GF diets L-Val + Fat'!R$268*($G$8*$G$9/100),IF(AND($G$5=\"No\",$G$6=\"Yes\",$G$7=\"No\"),'GF diets No L-Val + WD'!R$268*($G$8*$G$9/100),IF(AND($G$5=\"Yes\",$G$6=\"Yes\",$G$7=\"No\"),'GF diets No L-Val + Fat + WD'!R$268*($G$8*$G$9/100),IF(AND($G$5=\"No\",$G$6=\"Yes\",$G$7=\"Yes\"),'GF diets L-Val + WD'!R$268*($G$8*$G$9/100),IF(AND($G$5=\"Yes\",$G$6=\"Yes\",$G$7=\"Yes\"),'GF diets L-Val + Fat + WD'!R$268*($G$8*$G$9/100)))))))))*-1","v":-0.33033889772810654},{"$f":"IF(AND($G$5=\"No\",$G$6=\"No\",$G$7=\"No\"),'GF diets No L-Val'!S$268*($G$8*$G$9/100),IF(AND($G$5=\"Yes\",$G$6=\"No\",$G$7=\"No\"),'GF diets No L-Val + Fat'!S$268*($G$8*$G$9/100),IF(AND($G$5=\"No\",$G$6=\"No\",$G$7=\"Yes\"),'GF diets L-Val'!S$268*($G$8*$G$9/100),IF(AND($G$5=\"Yes\",$G$6=\"No\",$G$7=\"Yes\"),'GF diets L-Val + Fat'!S$268*($G$8*$G$9/100),IF(AND($G$5=\"No\",$G$6=\"Yes\",$G$7=\"No\"),'GF diets No L-Val + WD'!S$268*($G$8*$G$9/100),IF(AND($G$5=\"Yes\",$G$6=\"Yes\",$G$7=\"No\"),'GF diets No L-Val + Fat + WD'!S$268*($G$8*$G$9/100),IF(AND($G$5=\"No\",$G$6=\"Yes\",$G$7=\"Yes\"),'GF diets L-Val + WD'!S$268*($G$8*$G$9/100),IF(AND($G$5=\"Yes\",$G$6=\"Yes\",$G$7=\"Yes\"),'GF diets L-Val + Fat + WD'!S$268*($G$8*$G$9/100)))))))))*-1","v":-0.42020659958543799},{"$f":"IF(AND($G$5=\"No\",$G$6=\"No\",$G$7=\"No\"),'GF diets No L-Val'!T$268*($G$8*$G$9/100),IF(AND($G$5=\"Yes\",$G$6=\"No\",$G$7=\"No\"),'GF diets No L-Val + Fat'!T$268*($G$8*$G$9/100),IF(AND($G$5=\"No\",$G$6=\"No\",$G$7=\"Yes\"),'GF diets L-Val'!T$268*($G$8*$G$9/100),IF(AND($G$5=\"Yes\",$G$6=\"No\",$G$7=\"Yes\"),'GF diets L-Val + Fat'!T$268*($G$8*$G$9/100),IF(AND($G$5=\"No\",$G$6=\"Yes\",$G$7=\"No\"),'GF diets No L-Val + WD'!T$268*($G$8*$G$9/100),IF(AND($G$5=\"Yes\",$G$6=\"Yes\",$G$7=\"No\"),'GF diets No L-Val + Fat + WD'!T$268*($G$8*$G$9/100),IF(AND($G$5=\"No\",$G$6=\"Yes\",$G$7=\"Yes\"),'GF diets L-Val + WD'!T$268*($G$8*$G$9/100),IF(AND($G$5=\"Yes\",$G$6=\"Yes\",$G$7=\"Yes\"),'GF diets L-Val + Fat + WD'!T$268*($G$8*$G$9/100)))))))))*-1","v":-0.56583407901958638},{"$f":"IF(AND($G$5=\"No\",$G$6=\"No\",$G$7=\"No\"),'GF diets No L-Val'!U$268*($G$8*$G$9/100),IF(AND($G$5=\"Yes\",$G$6=\"No\",$G$7=\"No\"),'GF diets No L-Val + Fat'!U$268*($G$8*$G$9/100),IF(AND($G$5=\"No\",$G$6=\"No\",$G$7=\"Yes\"),'GF diets L-Val'!U$268*($G$8*$G$9/100),IF(AND($G$5=\"Yes\",$G$6=\"No\",$G$7=\"Yes\"),'GF diets L-Val + Fat'!U$268*($G$8*$G$9/100),IF(AND($G$5=\"No\",$G$6=\"Yes\",$G$7=\"No\"),'GF diets No L-Val + WD'!U$268*($G$8*$G$9/100),IF(AND($G$5=\"Yes\",$G$6=\"Yes\",$G$7=\"No\"),'GF diets No L-Val + Fat + WD'!U$268*($G$8*$G$9/100),IF(AND($G$5=\"No\",$G$6=\"Yes\",$G$7=\"Yes\"),'GF diets L-Val + WD'!U$268*($G$8*$G$9/100),IF(AND($G$5=\"Yes\",$G$6=\"Yes\",$G$7=\"Yes\"),'GF diets L-Val + Fat + WD'!U$268*($G$8*$G$9/100)))))))))*-1","v":-0.92092276242062632},-2.7778359394314118,{"$f":"I53-I52","v":-1.3331450235297251}]
[0.15,"15% DDGS",{"$f":"IF(AND($G$5=\"No\",$G$6=\"No\",$G$7=\"No\"),'GF diets No L-Val'!W$268*($G$8*$G$9/100),IF(AND($G$5=\"Yes\",$G$6=\"No\",$G$7=\"No\"),'GF diets No L-Val + Fat'!W$268*($G$8*$G$9/100),IF(AND($G$5=\"No\",$G$6=\"No\",$G$7=\"Yes\"),'GF diets L-Val'!W$268*($G$8*$G$9/100),IF(AND($G$5=\"Yes\",$G$6=\"No\",$G$7=\"Yes\"),'GF diets L-Val + Fat'!W$268*($G$8*$G$9/100),IF(AND($G$5=\"No\",$G$6=\"Yes\",$G$7=\"No\"),'GF diets No L-Val + WD'!W$268*($G$8*$G$9/100),IF(AND($G$5=\"Yes\",$G$6=\"Yes\",$G$7=\"No\"),'GF diets No L-Val + Fat + WD'!W$268*($G$8*$G$9/100),IF(AND($G$5=\"No\",$G$6=\"Yes\",$G$7=\"Yes\"),'GF diets L-Val + WD'!W$268*($G$8*$G$9/100),IF(AND($G$5=\"Yes\",$G$6=\"Yes\",$G$7=\"Yes\"),'GF diets L-Val + Fat + WD'!W$268*($G$8*$G$9/100)))))))))*-1","v":-0.37882367159877117},{"$f":"IF(AND($G$5=\"No\",$G$6=\"No\",$G$7=\"No\"),'GF diets No L-Val'!X$268*($G$8*$G$9/100),IF(AND($G$5=\"Yes\",$G$6=\"No\",$G$7=\"No\"),'GF diets No L-Val + Fat'!X$268*($G$8*$G$9/100),IF(AND($G$5=\"No\",$G$6=\"No\",$G$7=\"Yes\"),'GF diets L-Val'!X$268*($G$8*$G$9/100),IF(AND($G$5=\"Yes\",$G$6=\"No\",$G$7=\"Yes\"),'GF diets L-Val + Fat'!X$268*($G$8*$G$9/100),IF(AND($G$5=\"No\",$G$6=\"Yes\",$G$7=\"No\"),'GF diets No L-Val + WD'!X$268*($G$8*$G$9/100),IF(AND($G$5=\"Yes\",$G$6=\"Yes\",$G$7=\"No\"),'GF diets No L-Val + Fat + WD'!X$268*($G$8*$G$9/100),IF(AND($G$5=\"No\",$G$6=\"Yes\",$G$7=\"Yes\"),'GF diets L-Val + WD'!X$268*($G$8*$G$9/100),IF(AND($G$5=\"Yes\",$G$6=\"Yes\",$G$7=\"Yes\"),'GF diets L-Val + Fat + WD'!X$268*($G$8*$G$9/100)))))))))*-1","v":-0.36919238094416723},{"$f":"IF(AND($G$5=\"No\",$G$6=\"No\",$G$7=\"No\"),'GF diets No L-Val'!Y$268*($G$8*$G$9/100),IF(AND($G$5=\"Yes\",$G$6=\"No\",$G$7=\"No\"),'GF diets No L-Val + Fat'!Y$268*($G$8*$G$9/100),IF(AND($G$5=\"No\",$G$6=\"No\",$G$7=\"Yes\"),'GF diets L-Val'!Y$268*($G$8*$G$9/100),IF(AND($G$5=\"Yes\",$G$6=\"No\",$G$7=\"Yes\"),'GF diets L-Val + Fat'!Y$268*($G$8*$G$9/100),IF(AND($G$5=\"No\",$G$6=\"Yes\",$G$7=\"No\"),'GF diets No L-Val + WD'!Y$268*($G$8*$G$9/100),IF(AND($G$5=\"Yes\",$G$6=\"Yes\",$G$7=\"No\"),'GF diets No L-Val + Fat + WD'!Y$268*($G$8*$G$9/100),IF(AND($G$5=\"No\",$G$6=\"Yes\",$G$7=\"Yes\"),'GF diets L-Val + WD'!Y$268*($G$8*$G$9/100),IF(AND($G$5=\"Yes\",$G$6=\"Yes\",$G$7=\"Yes\"),'GF diets L-Val + Fat + WD'!Y$268*($G$8*$G$9/100)))))))))*-1","v":-0.48011307945799248},{"$f":"IF(AND($G$5=\"No\",$G$6=\"No\",$G$7=\"No\"),'GF diets No L-Val'!Z$268*($G$8*$G$9/100),IF(AND($G$5=\"Yes\",$G$6=\"No\",$G$7=\"No\"),'GF diets No L-Val + Fat'!Z$268*($G$8*$G$9/100),IF(AND($G$5=\"No\",$G$6=\"No\",$G$7=\"Yes\"),'GF diets L-Val'!Z$268*($G$8*$G$9/100),IF(AND($G$5=\"Yes\",$G$6=\"No\",$G$7=\"Yes\"),'GF diets L-Val + Fat'!Z$268*($G$8*$G$9/100),IF(AND($G$5=\"No\",$G$6=\"Yes\",$G$7=\"No\"),'GF diets No L-Val + WD'!Z$268*($G$8*$G$9/100),IF(AND($G$5=\"Yes\",$G$6=\"Yes\",$G$7=\"No\"),'GF diets No L-Val + Fat + WD'!Z$268*($G$8*$G$9/100),IF(AND($G$5=\"No\",$G$6=\"Yes\",$G$7=\"Yes\"),'GF diets L-Val + WD'!Z$268*($G$8*$G$9/100),IF(AND($G$5=\"Yes\",$G$6=\"Yes\",$G$7=\"Yes\"),'GF diets L-Val + Fat + WD'!Z$268*($G$8*$G$9/100)))))))))*-1","v":-0.60967065982806545},{"$f":"IF(AND($G$5=\"No\",$G$6=\"No\",$G$7=\"No\"),'GF diets No L-Val'!AA$268*($G$8*$G$9/100),IF(AND($G$5=\"Yes\",$G$6=\"No\",$G$7=\"No\"),'GF diets No L-Val + Fat'!AA$268*($G$8*$G$9/100),IF(AND($G$5=\"No\",$G$6=\"No\",$G$7=\"Yes\"),'GF diets L-Val'!AA$268*($G$8*$G$9/100),IF(AND($G$5=\"Yes\",$G$6=\"No\",$G$7=\"Yes\"),'GF diets L-Val + Fat'!AA$268*($G$8*$G$9/100),IF(AND($G$5=\"No\",$G$6=\"Yes\",$G$7=\"No\"),'GF diets No L-Val + WD'!AA$268*($G$8*$G$9/100),IF(AND($G$5=\"Yes\",$G$6=\"Yes\",$G$7=\"No\"),'GF diets No L-Val + Fat + WD'!AA$268*($G$8*$G$9/100),IF(AND($G$5=\"No\",$G$6=\"Yes\",$G$7=\"Yes\"),'GF diets L-Val + WD'!AA$268*($G$8*$G$9/100),IF(AND($G$5=\"Yes\",$G$6=\"Yes\",$G$7=\"Yes\"),'GF diets L-Val + Fat + WD'!AA$268*($G$8*$G$9/100)))))))))*-1","v":-0.82946685733716208},{"$f":"IF(AND($G$5=\"No\",$G$6=\"No\",$G$7=\"No\"),'GF diets No L-Val'!AB$268*($G$8*$G$9/100),IF(AND($G$5=\"Yes\",$G$6=\"No\",$G$7=\"No\"),'GF diets No L-Val + Fat'!AB$268*($G$8*$G$9/100),IF(AND($G$5=\"No\",$G$6=\"No\",$G$7=\"Yes\"),'GF diets L-Val'!AB$268*($G$8*$G$9/100),IF(AND($G$5=\"Yes\",$G$6=\"No\",$G$7=\"Yes\"),'GF diets L-Val + Fat'!AB$268*($G$8*$G$9/100),IF(AND($G$5=\"No\",$G$6=\"Yes\",$G$7=\"No\"),'GF diets No L-Val + WD'!AB$268*($G$8*$G$9/100),IF(AND($G$5=\"Yes\",$G$6=\"Yes\",$G$7=\"No\"),'GF diets No L-Val + Fat + WD'!AB$268*($G$8*$G$9/100),IF(AND($G$5=\"No\",$G$6=\"Yes\",$G$7=\"Yes\"),'GF diets L-Val + WD'!AB$268*($G$8*$G$9/100),IF(AND($G$5=\"Yes\",$G$6=\"Yes\",$G$7=\"Yes\"),'GF diets L-Val + Fat + WD'!AB$268*($G$8*$G$9/100)))))))))*-1","v":-1.3678046808376598},-4.0350713300038183,{"$f":"I54-I53","v":-1.2572353905724065}]
[0.2,"20% DDGS",{"$f":"IF(AND($G$5=\"No\",$G$6=\"No\",$G$7=\"No\"),'GF diets No L-Val'!AD$268*($G$8*$G$9/100),IF(AND($G$5=\"Yes\",$G$6=\"No\",$G$7=\"No\"),'GF diets No L-Val + Fat'!AD$268*($G$8*$G$9/100),IF(AND($G$5=\"No\",$G$6=\"No\",$G$7=\"Yes\"),'GF diets L-Val'!AD$268*($G$8*$G$9/100),IF(AND($G$5=\"Yes\",$G$6=\"No\",$G$7=\"Yes\"),'GF diets L-Val + Fat'!AD$268*($G$8*$G$9/100),IF(AND($G$5=\"No\",$G$6=\"Yes\",$G$7=\"No\"),'GF diets No L-Val + WD'!AD$268*($G$8*$G$9/100),IF(AND($G$5=\"Yes\",$G$6=\"Yes\",$G$7=\"No\"),'GF diets No L-Val + Fat + WD'!AD$268*($G$8*$G$9/100),IF(AND($G$5=\"No\",$G$6=\"Yes\",$G$7=\"Yes\"),'GF diets L-Val + WD'!AD$268*($G$8*$G$9/100),IF(AND($G$5=\"Yes\",$G$6=\"Yes\",$G$7=\"Yes\"),'GF diets L-Val + Fat + WD'!AD$268*($G$8*$G$9/100)))))))))*-1","v":-0.46085003249804585},{"$f":"IF(AND($G$5=\"No\",$G$6=\"No\",$G$7=\"No\"),'GF diets No L-Val'!AE$268*($G$8*$G$9/100),IF(AND($G$5=\"Yes\",$G$6=\"No\",$G$7=\"No\"),'GF diets No L-Val + Fat'!AE$268*($G$8*$G$9/100),IF(AND($G$5=\"No\",$G$6=\"No\",$G$7=\"Yes\"),'GF diets L-Val'!AE$268*($G$8*$G$9/100),IF(AND($G$5=\"Yes\",$G$6=\"No\",$G$7=\"Yes\"),'GF diets L-Val + Fat'!AE$268*($G$8*$G$9/100),IF(AND($G$5=\"No\",$G$6=\"Yes\",$G$7=\"No\"),'GF diets No L-Val + WD'!AE$268*($G$8*$G$9/100),IF(AND($G$5=\"Yes\",$G$6=\"Yes\",$G$7=\"No\"),'GF diets No L-Val + Fat + WD'!AE$268*($G$8*$G$9/100),IF(AND($G$5=\"No\",$G$6=\"Yes\",$G$7=\"Yes\"),'GF diets L-Val + WD'!AE$268*($G$8*$G$9/100),IF(AND($G$5=\"Yes\",$G$6=\"Yes\",$G$7=\"Yes\"),'GF diets L-Val + Fat + WD'!AE$268*($G$8*$G$9/100)))))))))*-1","v":-0.46335257356860821},{"$f":"IF(AND($G$5=\"No\",$G$6=\"No\",$G$7=\"No\"),'GF diets No L-Val'!AF$268*($G$8*$G$9/100),IF(AND($G$5=\"Yes\",$G$6=\"No\",$G$7=\"No\"),'GF diets No L-Val + Fat'!AF$268*($G$8*$G$9/100),IF(AND($G$5=\"No\",$G$6=\"No\",$G$7=\"Yes\"),'GF diets L-Val'!AF$268*($G$8*$G$9/100),IF(AND($G$5=\"Yes\",$G$6=\"No\",$G$7=\"Yes\"),'GF diets L-Val + Fat'!AF$268*($G$8*$G$9/100),IF(AND($G$5=\"No\",$G$6=\"Yes\",$G$7=\"No\"),'GF diets No L-Val + WD'!AF$268*($G$8*$G$9/100),IF(AND($G$5=\"Yes\",$G$6=\"Yes\",$G$7=\"No\"),'GF diets No L-Val + Fat + WD'!AF$268*($G$8*$G$9/100),IF(AND($G$5=\"No\",$G$6=\"Yes\",$G$7=\"Yes\"),'GF diets L-Val + WD'!AF$268*($G$8*$G$9/100),IF(AND($G$5=\"Yes\",$G$6=\"Yes\",$G$7=\"Yes\"),'GF diets L-Val + Fat + WD'!AF$268*($G$8*$G$9/100)))))))))*-1","v":-0.61210902079112572},{"$f":"IF(AND($G$5=\"No\",$G$6=\"No\",$G$7=\"No\"),'GF diets No L-Val'!AG$268*($G$8*$G$9/100),IF(AND($G$5=\"Yes\",$G$6=\"No\",$G$7=\"No\"),'GF diets No L-Val + Fat'!AG$268*($G$8*$G$9/100),IF(AND($G$5=\"No\",$G$6=\"No\",$G$7=\"Yes\"),'GF diets L-Val'!AG$268*($G$8*$G$9/100),IF(AND($G$5=\"Yes\",$G$6=\"No\",$G$7=\"Yes\"),'GF diets L-Val + Fat'!AG$268*($G$8*$G$9/100),IF(AND($G$5=\"No\",$G$6=\"Yes\",$G$7=\"No\"),'GF diets No L-Val + WD'!AG$268*($G$8*$G$9/100),IF(AND($G$5=\"Yes\",$G$6=\"Yes\",$G$7=\"No\"),'GF diets No L-Val + Fat + WD'!AG$268*($G$8*$G$9/100),IF(AND($G$5=\"No\",$G$6=\"Yes\",$G$7=\"Yes\"),'GF diets L-Val + WD'!AG$268*($G$8*$G$9/100),IF(AND($G$5=\"Yes\",$G$6=\"Yes\",$G$7=\"Yes\"),'GF diets L-Val + Fat + WD'!AG$268*($G$8*$G$9/100)))))))))*-1","v":-0.78710911591868771},{"$f":"IF(AND($G$5=\"No\",$G$6=\"No\",$G$7=\"No\"),'GF diets No L-Val'!AH$268*($G$8*$G$9/100),IF(AND($G$5=\"Yes\",$G$6=\"No\",$G$7=\"No\"),'GF diets No L-Val + Fat'!AH$268*($G$8*$G$9/100),IF(AND($G$5=\"No\",$G$6=\"No\",$G$7=\"Yes\"),'GF diets L-Val'!AH$268*($G$8*$G$9/100),IF(AND($G$5=\"Yes\",$G$6=\"No\",$G$7=\"Yes\"),'GF diets L-Val + Fat'!AH$268*($G$8*$G$9/100),IF(AND($G$5=\"No\",$G$6=\"Yes\",$G$7=\"No\"),'GF diets No L-Val + WD'!AH$268*($G$8*$G$9/100),IF(AND($G$5=\"Yes\",$G$6=\"Yes\",$G$7=\"No\"),'GF diets No L-Val + Fat + WD'!AH$268*($G$8*$G$9/100),IF(AND($G$5=\"No\",$G$6=\"Yes\",$G$7=\"Yes\"),'GF diets L-Val + WD'!AH$268*($G$8*$G$9/100),IF(AND($G$5=\"Yes\",$G$6=\"Yes\",$G$7=\"Yes\"),'GF diets L-Val + Fat + WD'!AH$268*($G$8*$G$9/100)))))))))*-1","v":-1.0902314023652464},{"$f":"IF(AND($G$5=\"No\",$G$6=\"No\",$G$7=\"No\"),'GF diets No L-Val'!AI$268*($G$8*$G$9/100),IF(AND($G$5=\"Yes\",$G$6=\"No\",$G$7=\"No\"),'GF diets No L-Val + Fat'!AI$268*($G$8*$G$9/100),IF(AND($G$5=\"No\",$G$6=\"No\",$G$7=\"Yes\"),'GF diets L-Val'!AI$268*($G$8*$G$9/100),IF(AND($G$5=\"Yes\",$G$6=\"No\",$G$7=\"Yes\"),'GF diets L-Val + Fat'!AI$268*($G$8*$G$9/100),IF(AND($G$5=\"No\",$G$6=\"Yes\",$G$7=\"No\"),'GF diets No L-Val + WD'!AI$268*($G$8*$G$9/100),IF(AND($G$5=\"Yes\",$G$6=\"Yes\",$G$7=\"No\"),'GF diets No L-Val + Fat + WD'!AI$268*($G$8*$G$9/100),IF(AND($G$5=\"No\",$G$6=\"Yes\",$G$7=\"Yes\"),'GF diets L-Val + WD'!AI$268*($G$8*$G$9/100),IF(AND($G$5=\"Yes\",$G$6=\"Yes\",$G$7=\"Yes\"),'GF diets L-Val + Fat + WD'!AI$268*($G$8*$G$9/100)))))))))*-1","v":-1.8134342434383202},-5.2270863885800338,{"$f":"I55-I54","v":-1.1920150585762155}]
[0.25,"25% DDGS",{"$f":"IF(AND($G$5=\"No\",$G$6=\"No\",$G$7=\"No\"),'GF diets No L-Val'!AK$268*($G$8*$G$9/100),IF(AND($G$5=\"Yes\",$G$6=\"No\",$G$7=\"No\"),'GF diets No L-Val + Fat'!AK$268*($G$8*$G$9/100),IF(AND($G$5=\"No\",$G$6=\"No\",$G$7=\"Yes\"),'GF diets L-Val'!AK$268*($G$8*$G$9/100),IF(AND($G$5=\"Yes\",$G$6=\"No\",$G$7=\"Yes\"),'GF diets L-Val + Fat'!AK$268*($G$8*$G$9/100),IF(AND($G$5=\"No\",$G$6=\"Yes\",$G$7=\"No\"),'GF diets No L-Val + WD'!AK$268*($G$8*$G$9/100),IF(AND($G$5=\"Yes\",$G$6=\"Yes\",$G$7=\"No\"),'GF diets No L-Val + Fat + WD'!AK$268*($G$8*$G$9/100),IF(AND($G$5=\"No\",$G$6=\"Yes\",$G$7=\"Yes\"),'GF diets L-Val + WD'!AK$268*($G$8*$G$9/100),IF(AND($G$5=\"Yes\",$G$6=\"Yes\",$G$7=\"Yes\"),'GF diets L-Val + Fat + WD'!AK$268*($G$8*$G$9/100)))))))))*-1","v":-0.52963721075385772},{"$f":"IF(AND($G$5=\"No\",$G$6=\"No\",$G$7=\"No\"),'GF diets No L-Val'!AL$268*($G$8*$G$9/100),IF(AND($G$5=\"Yes\",$G$6=\"No\",$G$7=\"No\"),'GF diets No L-Val + Fat'!AL$268*($G$8*$G$9/100),IF(AND($G$5=\"No\",$G$6=\"No\",$G$7=\"Yes\"),'GF diets L-Val'!AL$268*($G$8*$G$9/100),IF(AND($G$5=\"Yes\",$G$6=\"No\",$G$7=\"Yes\"),'GF diets L-Val + Fat'!AL$268*($G$8*$G$9/100),IF(AND($G$5=\"No\",$G$6=\"Yes\",$G$7=\"No\"),'GF diets No L-Val + WD'!AL$268*($G$8*$G$9/100),IF(AND($G$5=\"Yes\",$G$6=\"Yes\",$G$7=\"No\"),'GF diets No L-Val + Fat + WD'!AL$268*($G$8*$G$9/100),IF(AND($G$5=\"No\",$G$6=\"Yes\",$G$7=\"Yes\"),'GF diets L-Val + WD'!AL$268*($G$8*$G$9/100),IF(AND($G$5=\"Yes\",$G$6=\"Yes\",$G$7=\"Yes\"),'GF diets L-Val + Fat + WD'!AL$268*($G$8*$G$9/100)))))))))*-1","v":-0.53870402240619775},{"$f":"IF(AND($G$5=\"No\",$G$6=\"No\",$G$7=\"No\"),'GF diets No L-Val'!AM$268*($G$8*$G$9/100),IF(AND($G$5=\"Yes\",$G$6=\"No\",$G$7=\"No\"),'GF diets No L-Val + Fat'!AM$268*($G$8*$G$9/100),IF(AND($G$5=\"No\",$G$6=\"No\",$G$7=\"Yes\"),'GF diets L-Val'!AM$268*($G$8*$G$9/100),IF(AND($G$5=\"Yes\",$G$6=\"No\",$G$7=\"Yes\"),'GF diets L-Val + Fat'!AM$268*($G$8*$G$9/100),IF(AND($G$5=\"No\",$G$6=\"Yes\",$G$7=\"No\"),'GF diets No L-Val + WD'!AM$268*($G$8*$G$9/100),IF(AND($G$5=\"Yes\",$G$6=\"Yes\",$G$7=\"No\"),'GF diets No L-Val + Fat + WD'!AM$268*($G$8*$G$9/100),IF(AND($G$5=\"No\",$G$6=\"Yes\",$G$7=\"Yes\"),'GF diets L-Val + WD'!AM$268*($G$8*$G$9/100),IF(AND($G$5=\"Yes\",$G$6=\"Yes\",$G$7=\"Yes\"),'GF diets L-Val + Fat + WD'!AM$268*($G$8*$G$9/100)))))))))*-1","v":-0.72661471120075916},{"$f":"IF(AND($G$5=\"No\",$G$6=\"No\",$G$7=\"No\"),'GF diets No L-Val'!AN$268*($G$8*$G$9/100),IF(AND($G$5=\"Yes\",$G$6=\"No\",$G$7=\"No\"),'GF diets No L-Val + Fat'!AN$268*($G$8*$G$9/100),IF(AND($G$5=\"No\",$G$6=\"No\",$G$7=\"Yes\"),'GF diets L-Val'!AN$268*($G$8*$G$9/100),IF(AND($G$5=\"Yes\",$G$6=\"No\",$G$7=\"Yes\"),'GF diets L-Val + Fat'!AN$268*($G$8*$G$9/100),IF(AND($G$5=\"No\",$G$6=\"Yes\",$G$7=\"No\"),'GF diets No L-Val + WD'!AN$268*($G$8*$G$9/100),IF(AND($G$5=\"Yes\",$G$6=\"Yes\",$G$7=\"No\"),'GF diets No L-Val + Fat + WD'!AN$268*($G$8*$G$9/100),IF(AND($G$5=\"No\",$G$6=\"Yes\",$G$7=\"Yes\"),'GF diets L-Val + WD'!AN$268*($G$8*$G$9/100),IF(AND($G$5=\"Yes\",$G$6=\"Yes\",$G$7=\"Yes\"),'GF diets L-Val + Fat + WD'!AN$268*($G$8*$G$9/100)))))))))*-1","v":-0.95680472143922968},{"$f":"IF(AND($G$5=\"No\",$G$6=\"No\",$G$7=\"No\"),'GF diets No L-Val'!AO$268*($G$8*$G$9/100),IF(AND($G$5=\"Yes\",$G$6=\"No\",$G$7=\"No\"),'GF diets No L-Val + Fat'!AO$268*($G$8*$G$9/100),IF(AND($G$5=\"No\",$G$6=\"No\",$G$7=\"Yes\"),'GF diets L-Val'!AO$268*($G$8*$G$9/100),IF(AND($G$5=\"Yes\",$G$6=\"No\",$G$7=\"Yes\"),'GF diets L-Val + Fat'!AO$268*($G$8*$G$9/100),IF(AND($G$5=\"No\",$G$6=\"Yes\",$G$7=\"No\"),'GF diets No L-Val + WD'!AO$268*($G$8*$G$9/100),IF(AND($G$5=\"Yes\",$G$6=\"Yes\",$G$7=\"No\"),'GF diets No L-Val + Fat + WD'!AO$268*($G$8*$G$9/100),IF(AND($G$5=\"No\",$G$6=\"Yes\",$G$7=\"Yes\"),'GF diets L-Val + WD'!AO$268*($G$8*$G$9/100),IF(AND($G$5=\"Yes\",$G$6=\"Yes\",$G$7=\"Yes\"),'GF diets L-Val + Fat + WD'!AO$268*($G$8*$G$9/100)))))))))*-1","v":-1.3421155681177688},{"$f":"IF(AND($G$5=\"No\",$G$6=\"No\",$G$7=\"No\"),'GF diets No L-Val'!AP$268*($G$8*$G$9/100),IF(AND($G$5=\"Yes\",$G$6=\"No\",$G$7=\"No\"),'GF diets No L-Val + Fat'!AP$268*($G$8*$G$9/100),IF(AND($G$5=\"No\",$G$6=\"No\",$G$7=\"Yes\"),'GF diets L-Val'!AP$268*($G$8*$G$9/100),IF(AND($G$5=\"Yes\",$G$6=\"No\",$G$7=\"Yes\"),'GF diets L-Val + Fat'!AP$268*($G$8*$G$9/100),IF(AND($G$5=\"No\",$G$6=\"Yes\",$G$7=\"No\"),'GF diets No L-Val + WD'!AP$268*($G$8*$G$9/100),IF(AND($G$5=\"Yes\",$G$6=\"Yes\",$G$7=\"No\"),'GF diets No L-Val + Fat + WD'!AP$268*($G$8*$G$9/100),IF(AND($G$5=\"No\",$G$6=\"Yes\",$G$7=\"Yes\"),'GF diets L-Val + WD'!AP$268*($G$8*$G$9/100),IF(AND($G$5=\"Yes\",$G$6=\"Yes\",$G$7=\"Yes\"),'GF diets L-Val + Fat + WD'!AP$268*($G$8*$G$9/100)))))))))*-1","v":-2.2452093956750643},-6.3390856295928772,{"$f":"I56-I55","v":-1.1119992410128434}]
[0.3,"30% DDGS",{"$f":"IF(AND($G$5=\"No\",$G$6=\"No\",$G$7=\"No\"),'GF diets No L-Val'!AR$268*($G$8*$G$9/100),IF(AND($G$5=\"Yes\",$G$6=\"No\",$G$7=\"No\"),'GF diets No L-Val + Fat'!AR$268*($G$8*$G$9/100),IF(AND($G$5=\"No\",$G$6=\"No\",$G$7=\"Yes\"),'GF diets L-Val'!AR$268*($G$8*$G$9/100),IF(AND($G$5=\"Yes\",$G$6=\"No\",$G$7=\"Yes\"),'GF diets L-Val + Fat'!AR$268*($G$8*$G$9/100),IF(AND($G$5=\"No\",$G$6=\"Yes\",$G$7=\"No\"),'GF diets No L-Val + WD'!AR$268*($G$8*$G$9/100),IF(AND($G$5=\"Yes\",$G$6=\"Yes\",$G$7=\"No\"),'GF diets No L-Val + Fat + WD'!AR$268*($G$8*$G$9/100),IF(AND($G$5=\"No\",$G$6=\"Yes\",$G$7=\"Yes\"),'GF diets L-Val + WD'!AR$268*($G$8*$G$9/100),IF(AND($G$5=\"Yes\",$G$6=\"Yes\",$G$7=\"Yes\"),'GF diets L-Val + Fat + WD'!AR$268*($G$8*$G$9/100)))))))))*-1","v":-0.56933827050369235},{"$f":"IF(AND($G$5=\"No\",$G$6=\"No\",$G$7=\"No\"),'GF diets No L-Val'!AS$268*($G$8*$G$9/100),IF(AND($G$5=\"Yes\",$G$6=\"No\",$G$7=\"No\"),'GF diets No L-Val + Fat'!AS$268*($G$8*$G$9/100),IF(AND($G$5=\"No\",$G$6=\"No\",$G$7=\"Yes\"),'GF diets L-Val'!AS$268*($G$8*$G$9/100),IF(AND($G$5=\"Yes\",$G$6=\"No\",$G$7=\"Yes\"),'GF diets L-Val + Fat'!AS$268*($G$8*$G$9/100),IF(AND($G$5=\"No\",$G$6=\"Yes\",$G$7=\"No\"),'GF diets No L-Val + WD'!AS$268*($G$8*$G$9/100),IF(AND($G$5=\"Yes\",$G$6=\"Yes\",$G$7=\"No\"),'GF diets No L-Val + Fat + WD'!AS$268*($G$8*$G$9/100),IF(AND($G$5=\"No\",$G$6=\"Yes\",$G$7=\"Yes\"),'GF diets L-Val + WD'!AS$268*($G$8*$G$9/100),IF(AND($G$5=\"Yes\",$G$6=\"Yes\",$G$7=\"Yes\"),'GF diets L-Val + Fat + WD'!AS$268*($G$8*$G$9/100)))))))))*-1","v":-0.59699580152155418},{"$f":"IF(AND($G$5=\"No\",$G$6=\"No\",$G$7=\"No\"),'GF diets No L-Val'!AT$268*($G$8*$G$9/100),IF(AND($G$5=\"Yes\",$G$6=\"No\",$G$7=\"No\"),'GF diets No L-Val + Fat'!AT$268*($G$8*$G$9/100),IF(AND($G$5=\"No\",$G$6=\"No\",$G$7=\"Yes\"),'GF diets L-Val'!AT$268*($G$8*$G$9/100),IF(AND($G$5=\"Yes\",$G$6=\"No\",$G$7=\"Yes\"),'GF diets L-Val + Fat'!AT$268*($G$8*$G$9/100),IF(AND($G$5=\"No\",$G$6=\"Yes\",$G$7=\"No\"),'GF diets No L-Val + WD'!AT$268*($G$8*$G$9/100),IF(AND($G$5=\"Yes\",$G$6=\"Yes\",$G$7=\"No\"),'GF diets No L-Val + Fat + WD'!AT$268*($G$8*$G$9/100),IF(AND($G$5=\"No\",$G$6=\"Yes\",$G$7=\"Yes\"),'GF diets L-Val + WD'!AT$268*($G$8*$G$9/100),IF(AND($G$5=\"Yes\",$G$6=\"Yes\",$G$7=\"Yes\"),'GF diets L-Val + Fat + WD'!AT$268*($G$8*$G$9/100)))))))))*-1","v":-0.82474004560244285},{"$f":"IF(AND($G$5=\"No\",$G$6=\"No\",$G$7=\"No\"),'GF diets No L-Val'!AU$268*($G$8*$G$9/100),IF(AND($G$5=\"Yes\",$G$6=\"No\",$G$7=\"No\"),'GF diets No L-Val + Fat'!AU$268*($G$8*$G$9/100),IF(AND($G$5=\"No\",$G$6=\"No\",$G$7=\"Yes\"),'GF diets L-Val'!AU$268*($G$8*$G$9/100),IF(AND($G$5=\"Yes\",$G$6=\"No\",$G$7=\"Yes\"),'GF diets L-Val + Fat'!AU$268*($G$8*$G$9/100),IF(AND($G$5=\"No\",$G$6=\"Yes\",$G$7=\"No\"),'GF diets No L-Val + WD'!AU$268*($G$8*$G$9/100),IF(AND($G$5=\"Yes\",$G$6=\"Yes\",$G$7=\"No\"),'GF diets No L-Val + Fat + WD'!AU$268*($G$8*$G$9/100),IF(AND($G$5=\"No\",$G$6=\"Yes\",$G$7=\"Yes\"),'GF diets L-Val + WD'!AU$268*($G$8*$G$9/100),IF(AND($G$5=\"Yes\",$G$6=\"Yes\",$G$7=\"Yes\"),'GF diets L-Val + Fat + WD'!AU$268*($G$8*$G$9/100)))))))))*-1","v":-1.1161838265010775},{"$f":"IF(AND($G$5=\"No\",$G$6=\"No\",$G$7=\"No\"),'GF diets No L-Val'!AV$268*($G$8*$G$9/100),IF(AND($G$5=\"Yes\",$G$6=\"No\",$G$7=\"No\"),'GF diets No L-Val + Fat'!AV$268*($G$8*$G$9/100),IF(AND($G$5=\"No\",$G$6=\"No\",$G$7=\"Yes\"),'GF diets L-Val'!AV$268*($G$8*$G$9/100),IF(AND($G$5=\"Yes\",$G$6=\"No\",$G$7=\"Yes\"),'GF diets L-Val + Fat'!AV$268*($G$8*$G$9/100),IF(AND($G$5=\"No\",$G$6=\"Yes\",$G$7=\"No\"),'GF diets No L-Val + WD'!AV$268*($G$8*$G$9/100),IF(AND($G$5=\"Yes\",$G$6=\"Yes\",$G$7=\"No\"),'GF diets No L-Val + Fat + WD'!AV$268*($G$8*$G$9/100),IF(AND($G$5=\"No\",$G$6=\"Yes\",$G$7=\"Yes\"),'GF diets L-Val + WD'!AV$268*($G$8*$G$9/100),IF(AND($G$5=\"Yes\",$G$6=\"Yes\",$G$7=\"Yes\"),'GF diets L-Val + Fat + WD'!AV$268*($G$8*$G$9/100)))))))))*-1","v":-1.581141555536679},{"$f":"IF(AND($G$5=\"No\",$G$6=\"No\",$G$7=\"No\"),'GF diets No L-Val'!AW$268*($G$8*$G$9/100),IF(AND($G$5=\"Yes\",$G$6=\"No\",$G$7=\"No\"),'GF diets No L-Val + Fat'!AW$268*($G$8*$G$9/100),IF(AND($G$5=\"No\",$G$6=\"No\",$G$7=\"Yes\"),'GF diets L-Val'!AW$268*($G$8*$G$9/100),IF(AND($G$5=\"Yes\",$G$6=\"No\",$G$7=\"Yes\"),'GF diets L-Val + Fat'!AW$268*($G$8*$G$9/100),IF(AND($G$5=\"No\",$G$6=\"Yes\",$G$7=\"No\"),'GF diets No L-Val + WD'!AW$268*($G$8*$G$9/100),IF(AND($G$5=\"Yes\",$G$6=\"Yes\",$G$7=\"No\"),'GF diets No L-Val + Fat + WD'!AW$268*($G$8*$G$9/100),IF(AND($G$5=\"No\",$G$6=\"Yes\",$G$7=\"Yes\"),'GF diets L-Val + WD'!AW$268*($G$8*$G$9/100),IF(AND($G$5=\"Yes\",$G$6=\"Yes\",$G$7=\"Yes\"),'GF diets L-Val + Fat + WD'!AW$268*($G$8*$G$9/100)))))))))*-1","v":-2.6625848770444609},-7.3509843767099063,{"$f":"I57-I56","v":-1.0118987471170291}]
[]
[null,"IOFC- Live pig, $/pig (compared to 0% DDGS)","Phase 1 ","Phase 2","Phase 3","Phase 4","Phase 5","Phase 6","Total","Incremental"]
[0.05,"5% DDGS",{"$f":"IF(AND($G$5=\"No\",$G$6=\"No\",$G$7=\"No\"),\n(('GF diets No L-Val'!I351-'GF diets No L-Val'!I5)*($G$8*$G$9/100)-'GF diets No L-Val'!I$266)-\n(('GF diets No L-Val'!B351-'GF diets No L-Val'!B5)*($G$8*$G$9/100)-'GF diets No L-Val'!B$266),\nIF(AND($G$5=\"Yes\",$G$6=\"No\",$G$7=\"No\"),\n(('GF diets No L-Val + Fat'!I$351-'GF diets No L-Val + Fat'!I5)*($G$8*$G$9/100)-'GF diets No L-Val + Fat'!I$266)-\n(('GF diets No L-Val + Fat'!B351-'GF diets No L-Val + Fat'!B5)*($G$8*$G$9/100)-'GF diets No L-Val + Fat'!B$266),\nIF(AND($G$5=\"No\",$G$6=\"No\",$G$7=\"Yes\"),\n(('GF diets L-Val'!I$351-'GF diets L-Val'!I5)*($G$8*$G$9/100)-'GF diets L-Val'!I$266)-\n(('GF diets L-Val'!B351-'GF diets L-Val'!B5)*($G$8*$G$9/100)-'GF diets L-Val'!B$266),\nIF(AND($G$5=\"Yes\",$G$6=\"No\",$G$7=\"Yes\"),\n(('GF diets L-Val + Fat'!I$351-'GF diets L-Val + Fat'!I5)*($G$8*$G$9/100)-'GF diets L-Val + Fat'!I$266)-\n(('GF diets L-Val + Fat'!B$351-'GF diets L-Val + Fat'!B5)*($G$8*$G$9/100)-'GF diets L-Val + Fat'!B$266),\nIF(AND($G$5=\"No\",$G$6=\"Yes\",$G$7=\"No\"),\n(('GF diets No L-Val + WD'!I$351-'GF diets No L-Val + WD'!I5)*($G$8*$G$9/100)-'GF diets No L-Val + WD'!I$266)-\n(('GF diets No L-Val + WD'!B$351-'GF diets No L-Val + WD'!B5)*($G$8*$G$9/100)-'GF diets No L-Val + WD'!B$266),\nIF(AND($G$5=\"Yes\",$G$6=\"Yes\",$G$7=\"No\"),\n(('GF diets No L-Val + Fat + WD'!I$351-'GF diets No L-Val + Fat + WD'!I5)*($G$8*$G$9/100)-'GF diets No L-Val + Fat + WD'!I$266)-\n(('GF diets No L-Val + Fat + WD'!B$351-'GF diets No L-Val + Fat + WD'!B5)*($G$8*$G$9/100)-'GF diets No L-Val + Fat + WD'!B$266),\nIF(AND($G$5=\"No\",$G$6=\"Yes\",$G$7=\"Yes\"),\n(('GF diets L-Val + WD'!I$351-'GF diets L-Val + WD'!I5)*($G$8*$G$9/100)-'GF diets L-Val + WD'!I$266)-\n(('GF diets L-Val + WD'!B$351-'GF diets L-Val + WD'!B5)*($G$8*$G$9/100)-'GF diets L-Val + WD'!B$266),\nIF(AND($G$5=\"Yes\",$G$6=\"Yes\",$G$7=\"Yes\"),\n(('GF diets L-Val + Fat + WD'!I$351-'GF diets L-Val + Fat + WD'!I5)*($G$8*$G$9/100)-'GF diets L-Val + Fat + WD'!I$266)-\n(('GF diets L-Val + Fat + WD'!B$351-'GF diets L-Val + Fat + WD'!B5)*($G$8*$G$9/100)-'GF diets L-Val + Fat + WD'!B$266)\n))))))))","v":-0.1112202550643957},{"$f":"IF(AND($G$5=\"No\",$G$6=\"No\",$G$7=\"No\"),\n(('GF diets No L-Val'!J351-'GF diets No L-Val'!J5)*($G$8*$G$9/100)-'GF diets No L-Val'!J$266)-\n(('GF diets No L-Val'!C351-'GF diets No L-Val'!C5)*($G$8*$G$9/100)-'GF diets No L-Val'!C$266),\nIF(AND($G$5=\"Yes\",$G$6=\"No\",$G$7=\"No\"),\n(('GF diets No L-Val + Fat'!J$351-'GF diets No L-Val + Fat'!J5)*($G$8*$G$9/100)-'GF diets No L-Val + Fat'!J$266)-\n(('GF diets No L-Val + Fat'!C351-'GF diets No L-Val + Fat'!C5)*($G$8*$G$9/100)-'GF diets No L-Val + Fat'!C$266),\nIF(AND($G$5=\"No\",$G$6=\"No\",$G$7=\"Yes\"),\n(('GF diets L-Val'!J$351-'GF diets L-Val'!J5)*($G$8*$G$9/100)-'GF diets L-Val'!J$266)-\n(('GF diets L-Val'!C351-'GF diets L-Val'!C5)*($G$8*$G$9/100)-'GF diets L-Val'!C$266),\nIF(AND($G$5=\"Yes\",$G$6=\"No\",$G$7=\"Yes\"),\n(('GF diets L-Val + Fat'!J$351-'GF diets L-Val + Fat'!J5)*($G$8*$G$9/100)-'GF diets L-Val + Fat'!J$266)-\n(('GF diets L-Val + Fat'!C$351-'GF diets L-Val + Fat'!C5)*($G$8*$G$9/100)-'GF diets L-Val + Fat'!C$266),\nIF(AND($G$5=\"No\",$G$6=\"Yes\",$G$7=\"No\"),\n(('GF diets No L-Val + WD'!J$351-'GF diets No L-Val + WD'!J5)*($G$8*$G$9/100)-'GF diets No L-Val + WD'!J$266)-\n(('GF diets No L-Val + WD'!C$351-'GF diets No L-Val + WD'!C5)*($G$8*$G$9/100)-'GF diets No L-Val + WD'!C$266),\nIF(AND($G$5=\"Yes\",$G$6=\"Yes\",$G$7=\"No\"),\n(('GF diets No L-Val + Fat + WD'!J$351-'GF diets No L-Val + Fat + WD'!J5)*($G$8*$G$9/100)-'GF diets No L-Val + Fat + WD'!J$266)-\n(('GF diets No L-Val + Fat + WD'!C$351-'GF diets No L-Val + Fat + WD'!C5)*($G$8*$G$9/100)-'GF diets No L-Val + Fat + WD'!C$266),\nIF(AND($G$5=\"No\",$G$6=\"Yes\",$G$7=\"Yes\"),\n(('GF diets L-Val + WD'!J$351-'GF diets L-Val + WD'!J5)*($G$8*$G$9/100)-'GF diets L-Val + WD'!J$266)-\n(('GF diets L-Val + WD'!C$351-'GF diets L-Val + WD'!C5)*($G$8*$G$9/100)-'GF diets L-Val + WD'!C$266),\nIF(AND($G$5=\"Yes\",$G$6=\"Yes\",$G$7=\"Yes\"),\n(('GF diets L-Val + Fat + WD'!J$351-'GF diets L-Val + Fat + WD'!J5)*($G$8*$G$9/100)-'GF diets L-Val + Fat + WD'!J$266)-\n(('GF diets L-Val + Fat + WD'!C$351-'GF diets L-Val + Fat + WD'!C5)*($G$8*$G$9/100)-'GF diets L-Val + Fat + WD'!C$266)\n))))))))","v":-0.10339311271380502},{"$f":"IF(AND($G$5=\"No\",$G$6=\"No\",$G$7=\"No\"),\n(('GF diets No L-Val'!K351-'GF diets No L-Val'!K5)*($G$8*$G$9/100)-'GF diets No L-Val'!K$266)-\n(('GF diets No L-Val'!D351-'GF diets No L-Val'!D5)*($G$8*$G$9/100)-'GF diets No L-Val'!D$266),\nIF(AND($G$5=\"Yes\",$G$6=\"No\",$G$7=\"No\"),\n(('GF diets No L-Val + Fat'!K$351-'GF diets No L-Val + Fat'!K5)*($G$8*$G$9/100)-'GF diets No L-Val + Fat'!K$266)-\n(('GF diets No L-Val + Fat'!D351-'GF diets No L-Val + Fat'!D5)*($G$8*$G$9/100)-'GF diets No L-Val + Fat'!D$266),\nIF(AND($G$5=\"No\",$G$6=\"No\",$G$7=\"Yes\"),\n(('GF diets L-Val'!K$351-'GF diets L-Val'!K5)*($G$8*$G$9/100)-'GF diets L-Val'!K$266)-\n(('GF diets L-Val'!D351-'GF diets L-Val'!D5)*($G$8*$G$9/100)-'GF diets L-Val'!D$266),\nIF(AND($G$5=\"Yes\",$G$6=\"No\",$G$7=\"Yes\"),\n(('GF diets L-Val + Fat'!K$351-'GF diets L-Val + Fat'!K5)*($G$8*$G$9/100)-'GF diets L-Val + Fat'!K$266)-\n(('GF diets L-Val + Fat'!D$351-'GF diets L-Val + Fat'!D5)*($G$8*$G$9/100)-'GF diets L-Val + Fat'!D$266),\nIF(AND($G$5=\"No\",$G$6=\"Yes\",$G$7=\"No\"),\n(('GF diets No L-Val + WD'!K$351-'GF diets No L-Val + WD'!K5)*($G$8*$G$9/100)-'GF diets No L-Val + WD'!K$266)-\n(('GF diets No L-Val + WD'!D$351-'GF diets No L-Val + WD'!D5)*($G$8*$G$9/100)-'GF diets No L-Val + WD'!D$266),\nIF(AND($G$5=\"Yes\",$G$6=\"Yes\",$G$7=\"No\"),\n(('GF diets No L-Val + Fat + WD'!K$351-'GF diets No L-Val + Fat + WD'!K5)*($G$8*$G$9/100)-'GF diets No L-Val + Fat + WD'!K$266)-\n(('GF diets No L-Val + Fat + WD'!D$351-'GF diets No L-Val + Fat + WD'!D5)*($G$8*$G$9/100)-'GF diets No L-Val + Fat + WD'!D$266),\nIF(AND($G$5=\"No\",$G$6=\"Yes\",$G$7=\"Yes\"),\n(('GF diets L-Val + WD'!K$351-'GF diets L-Val + WD'!K5)*($G$8*$G$9/100)-'GF diets L-Val + WD'!K$266)-\n(('GF diets L-Val + WD'!D$351-'GF diets L-Val + WD'!D5)*($G$8*$G$9/100)-'GF diets L-Val + WD'!D$266),\nIF(AND($G$5=\"Yes\",$G$6=\"Yes\",$G$7=\"Yes\"),\n(('GF diets L-Val + Fat + WD'!K$351-'GF diets L-Val + Fat + WD'!K5)*($G$8*$G$9/100)-'GF diets L-Val + Fat + WD'!K$266)-\n(('GF diets L-Val + Fat + WD'!D$351-'GF diets L-Val + Fat + WD'!D5)*($G$8*$G$9/100)-'GF diets L-Val + Fat + WD'!D$266)\n))))))))","v":-0.1223291059119056},{"$f":"IF(AND($G$5=\"No\",$G$6=\"No\",$G$7=\"No\"),\n(('GF diets No L-Val'!L351-'GF diets No L-Val'!L5)*($G$8*$G$9/100)-'GF diets No L-Val'!L$266)-\n(('GF diets No L-Val'!E351-'GF diets No L-Val'!E5)*($G$8*$G$9/100)-'GF diets No L-Val'!E$266),\nIF(AND($G$5=\"Yes\",$G$6=\"No\",$G$7=\"No\"),\n(('GF diets No L-Val + Fat'!L$351-'GF diets No L-Val + Fat'!L5)*($G$8*$G$9/100)-'GF diets No L-Val + Fat'!L$266)-\n(('GF diets No L-Val + Fat'!E351-'GF diets No L-Val + Fat'!E5)*($G$8*$G$9/100)-'GF diets No L-Val + Fat'!E$266),\nIF(AND($G$5=\"No\",$G$6=\"No\",$G$7=\"Yes\"),\n(('GF diets L-Val'!L$351-'GF diets L-Val'!L5)*($G$8*$G$9/100)-'GF diets L-Val'!L$266)-\n(('GF diets L-Val'!E351-'GF diets L-Val'!E5)*($G$8*$G$9/100)-'GF diets L-Val'!E$266),\nIF(AND($G$5=\"Yes\",$G$6=\"No\",$G$7=\"Yes\"),\n(('GF diets L-Val + Fat'!L$351-'GF diets L-Val + Fat'!L5)*($G$8*$G$9/100)-'GF diets L-Val + Fat'!L$266)-\n(('GF diets L-Val + Fat'!E$351-'GF diets L-Val + Fat'!E5)*($G$8*$G$9/100)-'GF diets L-Val + Fat'!E$266),\nIF(AND($G$5=\"No\",$G$6=\"Yes\",$G$7=\"No\"),\n(('GF diets No L-Val + WD'!L$351-'GF diets No L-Val + WD'!L5)*($G$8*$G$9/100)-'GF diets No L-Val + WD'!L$266)-\n(('GF diets No L-Val + WD'!E$351-'GF diets No L-Val + WD'!E5)*($G$8*$G$9/100)-'GF diets No L-Val + WD'!E$266),\nIF(AND($G$5=\"Yes\",$G$6=\"Yes\",$G$7=\"No\"),\n(('GF diets No L-Val + Fat + WD'!L$351-'GF diets No L-Val + Fat + WD'!L5)*($G$8*$G$9/100)-'GF diets No L-Val + Fat + WD'!L$266)-\n(('GF diets No L-Val + Fat + WD'!E$351-'GF diets No L-Val + Fat + WD'!E5)*($G$8*$G$9/100)-'GF diets No L-Val + Fat + WD'!E$266),\nIF(AND($G$5=\"No\",$G$6=\"Yes\",$G$7=\"Yes\"),\n(('GF diets L-Val + WD'!L$351-'GF diets L-Val + WD'!L5)*($G$8*$G$9/100)-'GF diets L-Val + WD'!L$266)-\n(('GF diets L-Val + WD'!E$351-'GF diets L-Val + WD'!E5)*($G$8*$G$9/100)-'GF diets L-Val + WD'!E$266),\nIF(AND($G$5=\"Yes\",$G$6=\"Yes\",$G$7=\"Yes\"),\n(('GF diets L-Val + Fat + WD'!L$351-'GF diets L-Val + Fat + WD'!L5)*($G$8*$G$9/100)-'GF diets L-Val + Fat + WD'!L$266)-\n(('GF diets L-Val + Fat + WD'!E$351-'GF diets L-Val + Fat + WD'!E5)*($G$8*$G$9/100)-'GF diets L-Val + Fat + WD'!E$266)\n))))))))","v":-0.13387558793712984},{"$f":"IF(AND($G$5=\"No\",$G$6=\"No\",$G$7=\"No\"),\n(('GF diets No L-Val'!M351-'GF diets No L-Val'!M5)*($G$8*$G$9/100)-'GF diets No L-Val'!M$266)-\n(('GF diets No L-Val'!F351-'GF diets No L-Val'!F5)*($G$8*$G$9/100)-'GF diets No L-Val'!F$266),\nIF(AND($G$5=\"Yes\",$G$6=\"No\",$G$7=\"No\"),\n(('GF diets No L-Val + Fat'!M$351-'GF diets No L-Val + Fat'!M5)*($G$8*$G$9/100)-'GF diets No L-Val + Fat'!M$266)-\n(('GF diets No L-Val + Fat'!F351-'GF diets No L-Val + Fat'!F5)*($G$8*$G$9/100)-'GF diets No L-Val + Fat'!F$266),\nIF(AND($G$5=\"No\",$G$6=\"No\",$G$7=\"Yes\"),\n(('GF diets L-Val'!M$351-'GF diets L-Val'!M5)*($G$8*$G$9/100)-'GF diets L-Val'!M$266)-\n(('GF diets L-Val'!F351-'GF diets L-Val'!F5)*($G$8*$G$9/100)-'GF diets L-Val'!F$266),\nIF(AND($G$5=\"Yes\",$G$6=\"No\",$G$7=\"Yes\"),\n(('GF diets L-Val + Fat'!M$351-'GF diets L-Val + Fat'!M5)*($G$8*$G$9/100)-'GF diets L-Val + Fat'!M$266)-\n(('GF diets L-Val + Fat'!F$351-'GF diets L-Val + Fat'!F5)*($G$8*$G$9/100)-'GF diets L-Val + Fat'!F$266),\nIF(AND($G$5=\"No\",$G$6=\"Yes\",$G$7=\"No\"),\n(('GF diets No L-Val + WD'!M$351-'GF diets No L-Val + WD'!M5)*($G$8*$G$9/100)-'GF diets No L-Val + WD'!M$266)-\n(('GF diets No L-Val + WD'!F$351-'GF diets No L-Val + WD'!F5)*($G$8*$G$9/100)-'GF diets No L-Val + WD'!F$266),\nIF(AND($G$5=\"Yes\",$G$6=\"Yes\",$G$7=\"No\"),\n(('GF diets No L-Val + Fat + WD'!M$351-'GF diets No L-Val + Fat + WD'!M5)*($G$8*$G$9/100)-'GF diets No L-Val + Fat + WD'!M$266)-\n(('GF diets No L-Val + Fat + WD'!F$351-'GF diets No L-Val + Fat + WD'!F5)*($G$8*$G$9/100)-'GF diets No L-Val + Fat + WD'!F$266),\nIF(AND($G$5=\"No\",$G$6=\"Yes\",$G$7=\"Yes\"),\n(('GF diets L-Val + WD'!M$351-'GF diets L-Val + WD'!M5)*($G$8*$G$9/100)-'GF diets L-Val + WD'!M$266)-\n(('GF diets L-Val + WD'!F$351-'GF diets L-Val + WD'!F5)*($G$8*$G$9/100)-'GF diets L-Val + WD'!F$266),\nIF(AND($G$5=\"Yes\",$G$6=\"Yes\",$G$7=\"Yes\"),\n(('GF diets L-Val + Fat + WD'!M$351-'GF diets L-Val + Fat + WD'!M5)*($G$8*$G$9/100)-'GF diets L-Val + Fat + WD'!M$266)-\n(('GF diets L-Val + Fat + WD'!F$351-'GF diets L-Val + Fat + WD'!F5)*($G$8*$G$9/100)-'GF diets L-Val + Fat + WD'!F$266)\n))))))))","v":-0.16787015174139697},{"$f":"IF(AND($G$5=\"No\",$G$6=\"No\",$G$7=\"No\"),\n(('GF diets No L-Val'!N351-'GF diets No L-Val'!N5)*($G$8*$G$9/100)-'GF diets No L-Val'!N$266)-\n(('GF diets No L-Val'!G351-'GF diets No L-Val'!G5)*($G$8*$G$9/100)-'GF diets No L-Val'!G$266),\nIF(AND($G$5=\"Yes\",$G$6=\"No\",$G$7=\"No\"),\n(('GF diets No L-Val + Fat'!N$351-'GF diets No L-Val + Fat'!N5)*($G$8*$G$9/100)-'GF diets No L-Val + Fat'!N$266)-\n(('GF diets No L-Val + Fat'!G351-'GF diets No L-Val + Fat'!G5)*($G$8*$G$9/100)-'GF diets No L-Val + Fat'!G$266),\nIF(AND($G$5=\"No\",$G$6=\"No\",$G$7=\"Yes\"),\n(('GF diets L-Val'!N$351-'GF diets L-Val'!N5)*($G$8*$G$9/100)-'GF diets L-Val'!N$266)-\n(('GF diets L-Val'!G351-'GF diets L-Val'!G5)*($G$8*$G$9/100)-'GF diets L-Val'!G$266),\nIF(AND($G$5=\"Yes\",$G$6=\"No\",$G$7=\"Yes\"),\n(('GF diets L-Val + Fat'!N$351-'GF diets L-Val + Fat'!N5)*($G$8*$G$9/100)-'GF diets L-Val + Fat'!N$266)-\n(('GF diets L-Val + Fat'!G$351-'GF diets L-Val + Fat'!G5)*($G$8*$G$9/100)-'GF diets L-Val + Fat'!G$266),\nIF(AND($G$5=\"No\",$G$6=\"Yes\",$G$7=\"No\"),\n(('GF diets No L-Val + WD'!N$351-'GF diets No L-Val + WD'!N5)*($G$8*$G$9/100)-'GF diets No L-Val + WD'!N$266)-\n(('GF diets No L-Val + WD'!G$351-'GF diets No L-Val + WD'!G5)*($G$8*$G$9/100)-'GF diets No L-Val + WD'!G$266),\nIF(AND($G$5=\"Yes\",$G$6=\"Yes\",$G$7=\"No\"),\n(('GF diets No L-Val + Fat + WD'!N$351-'GF diets No L-Val + Fat + WD'!N5)*($G$8*$G$9/100)-'GF diets No L-Val + Fat + WD'!N$266)-\n(('GF diets No L-Val + Fat + WD'!G$351-'GF diets No L-Val + Fat + WD'!G5)*($G$8*$G$9/100)-'GF diets No L-Val + Fat + WD'!G$266),\nIF(AND($G$5=\"No\",$G$6=\"Yes\",$G$7=\"Yes\"),\n(('GF diets L-Val + WD'!N$351-'GF diets L-Val + WD'!N5)*($G$8*$G$9/100)-'GF diets L-Val + WD'!N$266)-\n(('GF diets L-Val + WD'!G$351-'GF diets L-Val + WD'!G5)*($G$8*$G$9/100)-'GF diets L-Val + WD'!G$266),\nIF(AND($G$5=\"Yes\",$G$6=\"Yes\",$G$7=\"Yes\"),\n(('GF diets L-Val + Fat + WD'!N$351-'GF diets L-Val + Fat + WD'!N5)*($G$8*$G$9/100)-'GF diets L-Val + Fat + WD'!N$266)-\n(('GF diets L-Val + Fat + WD'!G$351-'GF diets L-Val + Fat + WD'!G5)*($G$8*$G$9/100)-'GF diets L-Val + Fat + WD'!G$266)\n))))))))","v":-0.2458127663507419},{"$f":"SUM(C60:H60)","v":-0.88450097971937502}]
[0.1,"10% DDGS",{"$f":"IF(AND($G$5=\"No\",$G$6=\"No\",$G$7=\"No\"),\n(('GF diets No L-Val'!P351-'GF diets No L-Val'!P5)*($G$8*$G$9/100)-'GF diets No L-Val'!P$266)-\n(('GF diets No L-Val'!B351-'GF diets No L-Val'!B5)*($G$8*$G$9/100)-'GF diets No L-Val'!B$266),\nIF(AND($G$5=\"Yes\",$G$6=\"No\",$G$7=\"No\"),\n(('GF diets No L-Val + Fat'!P$351-'GF diets No L-Val + Fat'!P5)*($G$8*$G$9/100)-'GF diets No L-Val + Fat'!P$266)-\n(('GF diets No L-Val + Fat'!B351-'GF diets No L-Val + Fat'!B5)*($G$8*$G$9/100)-'GF diets No L-Val + Fat'!B$266),\nIF(AND($G$5=\"No\",$G$6=\"No\",$G$7=\"Yes\"),\n(('GF diets L-Val'!P$351-'GF diets L-Val'!P5)*($G$8*$G$9/100)-'GF diets L-Val'!P$266)-\n(('GF diets L-Val'!B351-'GF diets L-Val'!B5)*($G$8*$G$9/100)-'GF diets L-Val'!B$266),\nIF(AND($G$5=\"Yes\",$G$6=\"No\",$G$7=\"Yes\"),\n(('GF diets L-Val + Fat'!P$351-'GF diets L-Val + Fat'!P5)*($G$8*$G$9/100)-'GF diets L-Val + Fat'!P$266)-\n(('GF diets L-Val + Fat'!B$351-'GF diets L-Val + Fat'!B5)*($G$8*$G$9/100)-'GF diets L-Val + Fat'!B$266),\nIF(AND($G$5=\"No\",$G$6=\"Yes\",$G$7=\"No\"),\n(('GF diets No L-Val + WD'!P$351-'GF diets No L-Val + WD'!P5)*($G$8*$G$9/100)-'GF diets No L-Val + WD'!P$266)-\n(('GF diets No L-Val + WD'!B$351-'GF diets No L-Val + WD'!B5)*($G$8*$G$9/100)-'GF diets No L-Val + WD'!B$266),\nIF(AND($G$5=\"Yes\",$G$6=\"Yes\",$G$7=\"No\"),\n(('GF diets No L-Val + Fat + WD'!P$351-'GF diets No L-Val + Fat + WD'!P5)*($G$8*$G$9/100)-'GF diets No L-Val + Fat + WD'!P$266)-\n(('GF diets No L-Val + Fat + WD'!B$351-'GF diets No L-Val + Fat + WD'!B5)*($G$8*$G$9/100)-'GF diets No L-Val + Fat + WD'!B$266),\nIF(AND($G$5=\"No\",$G$6=\"Yes\",$G$7=\"Yes\"),\n(('GF diets L-Val + WD'!P$351-'GF diets L-Val + WD'!P5)*($G$8*$G$9/100)-'GF diets L-Val + WD'!P$266)-\n(('GF diets L-Val + WD'!B$351-'GF diets L-Val + WD'!B5)*($G$8*$G$9/100)-'GF diets L-Val + WD'!B$266),\nIF(AND($G$5=\"Yes\",$G$6=\"Yes\",$G$7=\"Yes\"),\n(('GF diets L-Val + Fat + WD'!P$351-'GF diets L-Val + Fat + WD'!P5)*($G$8*$G$9/100)-'GF diets L-Val + Fat + WD'!P$266)-\n(('GF diets L-Val + Fat + WD'!B$351-'GF diets L-Val + Fat + WD'!B5)*($G$8*$G$9/100)-'GF diets L-Val + Fat + WD'!B$266)\n))))))))","v":-0.20901960879989723},{"$f":"IF(AND($G$5=\"No\",$G$6=\"No\",$G$7=\"No\"),\n(('GF diets No L-Val'!Q351-'GF diets No L-Val'!Q5)*($G$8*$G$9/100)-'GF diets No L-Val'!Q$266)-\n(('GF diets No L-Val'!C351-'GF diets No L-Val'!C5)*($G$8*$G$9/100)-'GF diets No L-Val'!C$266),\nIF(AND($G$5=\"Yes\",$G$6=\"No\",$G$7=\"No\"),\n(('GF diets No L-Val + Fat'!Q$351-'GF diets No L-Val + Fat'!Q5)*($G$8*$G$9/100)-'GF diets No L-Val + Fat'!Q$266)-\n(('GF diets No L-Val + Fat'!C351-'GF diets No L-Val + Fat'!C5)*($G$8*$G$9/100)-'GF diets No L-Val + Fat'!C$266),\nIF(AND($G$5=\"No\",$G$6=\"No\",$G$7=\"Yes\"),\n(('GF diets L-Val'!Q$351-'GF diets L-Val'!Q5)*($G$8*$G$9/100)-'GF diets L-Val'!Q$266)-\n(('GF diets L-Val'!C351-'GF diets L-Val'!C5)*($G$8*$G$9/100)-'GF diets L-Val'!C$266),\nIF(AND($G$5=\"Yes\",$G$6=\"No\",$G$7=\"Yes\"),\n(('GF diets L-Val + Fat'!Q$351-'GF diets L-Val + Fat'!Q5)*($G$8*$G$9/100)-'GF diets L-Val + Fat'!Q$266)-\n(('GF diets L-Val + Fat'!C$351-'GF diets L-Val + Fat'!C5)*($G$8*$G$9/100)-'GF diets L-Val + Fat'!C$266),\nIF(AND($G$5=\"No\",$G$6=\"Yes\",$G$7=\"No\"),\n(('GF diets No L-Val + WD'!Q$351-'GF diets No L-Val + WD'!Q5)*($G$8*$G$9/100)-'GF diets No L-Val + WD'!Q$266)-\n(('GF diets No L-Val + WD'!C$351-'GF diets No L-Val + WD'!C5)*($G$8*$G$9/100)-'GF diets No L-Val + WD'!C$266),\nIF(AND($G$5=\"Yes\",$G$6=\"Yes\",$G$7=\"No\"),\n(('GF diets No L-Val + Fat + WD'!Q$351-'GF diets No L-Val + Fat + WD'!Q5)*($G$8*$G$9/100)-'GF diets No L-Val + Fat + WD'!Q$266)-\n(('GF diets No L-Val + Fat + WD'!C$351-'GF diets No L-Val + Fat + WD'!C5)*($G$8*$G$9/100)-'GF diets No L-Val + Fat + WD'!C$266),\nIF(AND($G$5=\"No\",$G$6=\"Yes\",$G$7=\"Yes\"),\n(('GF diets L-Val + WD'!Q$351-'GF diets L-Val + WD'!Q5)*($G$8*$G$9/100)-'GF diets L-Val + WD'!Q$266)-\n(('GF diets L-Val + WD'!C$351-'GF diets L-Val + WD'!C5)*($G$8*$G$9/100)-'GF diets L-Val + WD'!C$266),\nIF(AND($G$5=\"Yes\",$G$6=\"Yes\",$G$7=\"Yes\"),\n(('GF diets L-Val + Fat + WD'!Q$351-'GF diets L-Val + Fat + WD'!Q5)*($G$8*$G$9/100)-'GF diets L-Val + Fat + WD'!Q$266)-\n(('GF diets L-Val + Fat + WD'!C$351-'GF diets L-Val + Fat + WD'!C5)*($G$8*$G$9/100)-'GF diets L-Val + Fat + WD'!C$266)\n))))))))","v":-0.19612464483476977},{"$f":"IF(AND($G$5=\"No\",$G$6=\"No\",$G$7=\"No\"),\n(('GF diets No L-Val'!R351-'GF diets No L-Val'!R5)*($G$8*$G$9/100)-'GF diets No L-Val'!R$266)-\n(('GF diets No L-Val'!D351-'GF diets No L-Val'!D5)*($G$8*$G$9/100)-'GF diets No L-Val'!D$266),\nIF(AND($G$5=\"Yes\",$G$6=\"No\",$G$7=\"No\"),\n(('GF diets No L-Val + Fat'!R$351-'GF diets No L-Val + Fat'!R5)*($G$8*$G$9/100)-'GF diets No L-Val + Fat'!R$266)-\n(('GF diets No L-Val + Fat'!D351-'GF diets No L-Val + Fat'!D5)*($G$8*$G$9/100)-'GF diets No L-Val + Fat'!D$266),\nIF(AND($G$5=\"No\",$G$6=\"No\",$G$7=\"Yes\"),\n(('GF diets L-Val'!R$351-'GF diets L-Val'!R5)*($G$8*$G$9/100)-'GF diets L-Val'!R$266)-\n(('GF diets L-Val'!D351-'GF diets L-Val'!D5)*($G$8*$G$9/100)-'GF diets L-Val'!D$266),\nIF(AND($G$5=\"Yes\",$G$6=\"No\",$G$7=\"Yes\"),\n(('GF diets L-Val + Fat'!R$351-'GF diets L-Val + Fat'!R5)*($G$8*$G$9/100)-'GF diets L-Val + Fat'!R$266)-\n(('GF diets L-Val + Fat'!D$351-'GF diets L-Val + Fat'!D5)*($G$8*$G$9/100)-'GF diets L-Val + Fat'!D$266),\nIF(AND($G$5=\"No\",$G$6=\"Yes\",$G$7=\"No\"),\n(('GF diets No L-Val + WD'!R$351-'GF diets No L-Val + WD'!R5)*($G$8*$G$9/100)-'GF diets No L-Val + WD'!R$266)-\n(('GF diets No L-Val + WD'!D$351-'GF diets No L-Val + WD'!D5)*($G$8*$G$9/100)-'GF diets No L-Val + WD'!D$266),\nIF(AND($G$5=\"Yes\",$G$6=\"Yes\",$G$7=\"No\"),\n(('GF diets No L-Val + Fat + WD'!R$351-'GF diets No L-Val + Fat + WD'!R5)*($G$8*$G$9/100)-'GF diets No L-Val + Fat + WD'!R$266)-\n(('GF diets No L-Val + Fat + WD'!D$351-'GF diets No L-Val + Fat + WD'!D5)*($G$8*$G$9/100)-'GF diets No L-Val + Fat + WD'!D$266),\nIF(AND($G$5=\"No\",$G$6=\"Yes\",$G$7=\"Yes\"),\n(('GF diets L-Val + WD'!R$351-'GF diets L-Val + WD'!R5)*($G$8*$G$9/100)-'GF diets L-Val + WD'!R$266)-\n(('GF diets L-Val + WD'!D$351-'GF diets L-Val + WD'!D5)*($G$8*$G$9/100)-'GF diets L-Val + WD'!D$266),\nIF(AND($G$5=\"Yes\",$G$6=\"Yes\",$G$7=\"Yes\"),\n(('GF diets L-Val + Fat + WD'!R$351-'GF diets L-Val + Fat + WD'!R5)*($G$8*$G$9/100)-'GF diets L-Val + Fat + WD'!R$266)-\n(('GF diets L-Val + Fat + WD'!D$351-'GF diets L-Val + Fat + WD'!D5)*($G$8*$G$9/100)-'GF diets L-Val + Fat + WD'!D$266)\n))))))))","v":-0.23468173936723957},{"$f":"IF(AND($G$5=\"No\",$G$6=\"No\",$G$7=\"No\"),\n(('GF diets No L-Val'!S351-'GF diets No L-Val'!S5)*($G$8*$G$9/100)-'GF diets No L-Val'!S$266)-\n(('GF diets No L-Val'!E351-'GF diets No L-Val'!E5)*($G$8*$G$9/100)-'GF diets No L-Val'!E$266),\nIF(AND($G$5=\"Yes\",$G$6=\"No\",$G$7=\"No\"),\n(('GF diets No L-Val + Fat'!S$351-'GF diets No L-Val + Fat'!S5)*($G$8*$G$9/100)-'GF diets No L-Val + Fat'!S$266)-\n(('GF diets No L-Val + Fat'!E351-'GF diets No L-Val + Fat'!E5)*($G$8*$G$9/100)-'GF diets No L-Val + Fat'!E$266),\nIF(AND($G$5=\"No\",$G$6=\"No\",$G$7=\"Yes\"),\n(('GF diets L-Val'!S$351-'GF diets L-Val'!S5)*($G$8*$G$9/100)-'GF diets L-Val'!S$266)-\n(('GF diets L-Val'!E351-'GF diets L-Val'!E5)*($G$8*$G$9/100)-'GF diets L-Val'!E$266),\nIF(AND($G$5=\"Yes\",$G$6=\"No\",$G$7=\"Yes\"),\n(('GF diets L-Val + Fat'!S$351-'GF diets L-Val + Fat'!S5)*($G$8*$G$9/100)-'GF diets L-Val + Fat'!S$266)-\n(('GF diets L-Val + Fat'!E$351-'GF diets L-Val + Fat'!E5)*($G$8*$G$9/100)-'GF diets L-Val + Fat'!E$266),\nIF(AND($G$5=\"No\",$G$6=\"Yes\",$G$7=\"No\"),\n(('GF diets No L-Val + WD'!S$351-'GF diets No L-Val + WD'!S5)*($G$8*$G$9/100)-'GF diets No L-Val + WD'!S$266)-\n(('GF diets No L-Val + WD'!E$351-'GF diets No L-Val + WD'!E5)*($G$8*$G$9/100)-'GF diets No L-Val + WD'!E$266),\nIF(AND($G$5=\"Yes\",$G$6=\"Yes\",$G$7=\"No\"),\n(('GF diets No L-Val + Fat + WD'!S$351-'GF diets No L-Val + Fat + WD'!S5)*($G$8*$G$9/100)-'GF diets No L-Val + Fat + WD'!S$266)-\n(('GF diets No L-Val + Fat + WD'!E$351-'GF diets No L-Val + Fat + WD'!E5)*($G$8*$G$9/100)-'GF diets No L-Val + Fat + WD'!E$266),\nIF(AND($G$5=\"No\",$G$6=\"Yes\",$G$7=\"Yes\"),\n(('GF diets L-Val + WD'!S$351-'GF diets L-Val + WD'!S5)*($G$8*$G$9/100)-'GF diets L-Val + WD'!S$266)-\n(('GF diets L-Val + WD'!E$351-'GF diets L-Val + WD'!E5)*($G$8*$G$9/100)-'GF diets L-Val + WD'!E$266),\nIF(AND($G$5=\"Yes\",$G$6=\"Yes\",$G$7=\"Yes\"),\n(('GF diets L-Val + Fat + WD'!S$351-'GF diets L-Val + Fat + WD'!S5)*($G$8*$G$9/100)-'GF diets L-Val + Fat + WD'!S$266)-\n(('GF diets L-Val + Fat + WD'!E$351-'GF diets L-Val + Fat + WD'!E5)*($G$8*$G$9/100)-'GF diets L-Val + Fat + WD'!E$266)\n))))))))","v":-0.26866899195782423},{"$f":"IF(AND($G$5=\"No\",$G$6=\"No\",$G$7=\"No\"),\n(('GF diets No L-Val'!T351-'GF diets No L-Val'!T5)*($G$8*$G$9/100)-'GF diets No L-Val'!T$266)-\n(('GF diets No L-Val'!F351-'GF diets No L-Val'!F5)*($G$8*$G$9/100)-'GF diets No L-Val'!F$266),\nIF(AND($G$5=\"Yes\",$G$6=\"No\",$G$7=\"No\"),\n(('GF diets No L-Val + Fat'!T$351-'GF diets No L-Val + Fat'!T5)*($G$8*$G$9/100)-'GF diets No L-Val + Fat'!T$266)-\n(('GF diets No L-Val + Fat'!F351-'GF diets No L-Val + Fat'!F5)*($G$8*$G$9/100)-'GF diets No L-Val + Fat'!F$266),\nIF(AND($G$5=\"No\",$G$6=\"No\",$G$7=\"Yes\"),\n(('GF diets L-Val'!T$351-'GF diets L-Val'!T5)*($G$8*$G$9/100)-'GF diets L-Val'!T$266)-\n(('GF diets L-Val'!F351-'GF diets L-Val'!F5)*($G$8*$G$9/100)-'GF diets L-Val'!F$266),\nIF(AND($G$5=\"Yes\",$G$6=\"No\",$G$7=\"Yes\"),\n(('GF diets L-Val + Fat'!T$351-'GF diets L-Val + Fat'!T5)*($G$8*$G$9/100)-'GF diets L-Val + Fat'!T$266)-\n(('GF diets L-Val + Fat'!F$351-'GF diets L-Val + Fat'!F5)*($G$8*$G$9/100)-'GF diets L-Val + Fat'!F$266),\nIF(AND($G$5=\"No\",$G$6=\"Yes\",$G$7=\"No\"),\n(('GF diets No L-Val + WD'!T$351-'GF diets No L-Val + WD'!T5)*($G$8*$G$9/100)-'GF diets No L-Val + WD'!T$266)-\n(('GF diets No L-Val + WD'!F$351-'GF diets No L-Val + WD'!F5)*($G$8*$G$9/100)-'GF diets No L-Val + WD'!F$266),\nIF(AND($G$5=\"Yes\",$G$6=\"Yes\",$G$7=\"No\"),\n(('GF diets No L-Val + Fat + WD'!T$351-'GF diets No L-Val + Fat + WD'!T5)*($G$8*$G$9/100)-'GF diets No L-Val + Fat + WD'!T$266)-\n(('GF diets No L-Val + Fat + WD'!F$351-'GF diets No L-Val + Fat + WD'!F5)*($G$8*$G$9/100)-'GF diets No L-Val + Fat + WD'!F$266),\nIF(AND($G$5=\"No\",$G$6=\"Yes\",$G$7=\"Yes\"),\n(('GF diets L-Val + WD'!T$351-'GF diets L-Val + WD'!T5)*($G$8*$G$9/100)-'GF diets L-Val + WD'!T$266)-\n(('GF diets L-Val + WD'!F$351-'GF diets L-Val + WD'!F5)*($G$8*$G$9/100)-'GF diets L-Val + WD'!F$266),\nIF(AND($G$5=\"Yes\",$G$6=\"Yes\",$G$7=\"Yes\"),\n(('GF diets L-Val + Fat + WD'!T$351-'GF diets L-Val + Fat + WD'!T5)*($G$8*$G$9/100)-'GF diets L-Val + Fat + WD'!T$266)-\n(('GF diets L-Val + Fat + WD'!F$351-'GF diets L-Val + Fat + WD'!F5)*($G$8*$G$9/100)-'GF diets L-Val + Fat + WD'!F$266)\n))))))))","v":-0.34733908348788489},{"$f":"IF(AND($G$5=\"No\",$G$6=\"No\",$G$7=\"No\"),\n(('GF diets No L-Val'!U351-'GF diets No L-Val'!U5)*($G$8*$G$9/100)-'GF diets No L-Val'!U$266)-\n(('GF diets No L-Val'!G351-'GF diets No L-Val'!G5)*($G$8*$G$9/100)-'GF diets No L-Val'!G$266),\nIF(AND($G$5=\"Yes\",$G$6=\"No\",$G$7=\"No\"),\n(('GF diets No L-Val + Fat'!U$351-'GF diets No L-Val + Fat'!U5)*($G$8*$G$9/100)-'GF diets No L-Val + Fat'!U$266)-\n(('GF diets No L-Val + Fat'!G351-'GF diets No L-Val + Fat'!G5)*($G$8*$G$9/100)-'GF diets No L-Val + Fat'!G$266),\nIF(AND($G$5=\"No\",$G$6=\"No\",$G$7=\"Yes\"),\n(('GF diets L-Val'!U$351-'GF diets L-Val'!U5)*($G$8*$G$9/100)-'GF diets L-Val'!U$266)-\n(('GF diets L-Val'!G351-'GF diets L-Val'!G5)*($G$8*$G$9/100)-'GF diets L-Val'!G$266),\nIF(AND($G$5=\"Yes\",$G$6=\"No\",$G$7=\"Yes\"),\n(('GF diets L-Val + Fat'!U$351-'GF diets L-Val + Fat'!U5)*($G$8*$G$9/100)-'GF diets L-Val + Fat'!U$266)-\n(('GF diets L-Val + Fat'!G$351-'GF diets L-Val + Fat'!G5)*($G$8*$G$9/100)-'GF diets L-Val + Fat'!G$266),\nIF(AND($G$5=\"No\",$G$6=\"Yes\",$G$7=\"No\"),\n(('GF diets No L-Val + WD'!U$351-'GF diets No L-Val + WD'!U5)*($G$8*$G$9/100)-'GF diets No L-Val + WD'!U$266)-\n(('GF diets No L-Val + WD'!G$351-'GF diets No L-Val + WD'!G5)*($G$8*$G$9/100)-'GF diets No L-Val + WD'!G$266),\nIF(AND($G$5=\"Yes\",$G$6=\"Yes\",$G$7=\"No\"),\n(('GF diets No L-Val + Fat + WD'!U$351-'GF diets No L-Val + Fat + WD'!U5)*($G$8*$G$9/100)-'GF diets No L-Val + Fat + WD'!U$266)-\n(('GF diets No L-Val + Fat + WD'!G$351-'GF diets No L-Val + Fat + WD'!G5)*($G$8*$G$9/100)-'GF diets No L-Val + Fat + WD'!G$266),\nIF(AND($G$5=\"No\",$G$6=\"Yes\",$G$7=\"Yes\"),\n(('GF diets L-Val + WD'!U$351-'GF diets L-Val + WD'!U5)*($G$8*$G$9/100)-'GF diets L-Val + WD'!U$266)-\n(('GF diets L-Val + WD'!G$351-'GF diets L-Val + WD'!G5)*($G$8*$G$9/100)-'GF diets L-Val + WD'!G$266),\nIF(AND($G$5=\"Yes\",$G$6=\"Yes\",$G$7=\"Yes\"),\n(('GF diets L-Val + Fat + WD'!U$351-'GF diets L-Val + Fat + WD'!U5)*($G$8*$G$9/100)-'GF diets L-Val + Fat + WD'!U$266)-\n(('GF diets L-Val + Fat + WD'!G$351-'GF diets L-Val + Fat + WD'!G5)*($G$8*$G$9/100)-'GF diets L-Val + Fat + WD'!G$266)\n))))))))","v":-0.5160616896597876},-1.7718957581074033,{"$f":"I61-I60","v":-0.88739477838802827}]
[0.15,"15% DDGS",{"$f":"IF(AND($G$5=\"No\",$G$6=\"No\",$G$7=\"No\"),\n(('GF diets No L-Val'!W351-'GF diets No L-Val'!W5)*($G$8*$G$9/100)-'GF diets No L-Val'!W$266)-\n(('GF diets No L-Val'!B351-'GF diets No L-Val'!B5)*($G$8*$G$9/100)-'GF diets No L-Val'!B$266),\nIF(AND($G$5=\"Yes\",$G$6=\"No\",$G$7=\"No\"),\n(('GF diets No L-Val + Fat'!W$351-'GF diets No L-Val + Fat'!W5)*($G$8*$G$9/100)-'GF diets No L-Val + Fat'!W$266)-\n(('GF diets No L-Val + Fat'!B351-'GF diets No L-Val + Fat'!B5)*($G$8*$G$9/100)-'GF diets No L-Val + Fat'!B$266),\nIF(AND($G$5=\"No\",$G$6=\"No\",$G$7=\"Yes\"),\n(('GF diets L-Val'!W$351-'GF diets L-Val'!W5)*($G$8*$G$9/100)-'GF diets L-Val'!W$266)-\n(('GF diets L-Val'!B351-'GF diets L-Val'!B5)*($G$8*$G$9/100)-'GF diets L-Val'!B$266),\nIF(AND($G$5=\"Yes\",$G$6=\"No\",$G$7=\"Yes\"),\n(('GF diets L-Val + Fat'!W$351-'GF diets L-Val + Fat'!W5)*($G$8*$G$9/100)-'GF diets L-Val + Fat'!W$266)-\n(('GF diets L-Val + Fat'!B$351-'GF diets L-Val + Fat'!B5)*($G$8*$G$9/100)-'GF diets L-Val + Fat'!B$266),\nIF(AND($G$5=\"No\",$G$6=\"Yes\",$G$7=\"No\"),\n(('GF diets No L-Val + WD'!W$351-'GF diets No L-Val + WD'!W5)*($G$8*$G$9/100)-'GF diets No L-Val + WD'!W$266)-\n(('GF diets No L-Val + WD'!B$351-'GF diets No L-Val + WD'!B5)*($G$8*$G$9/100)-'GF diets No L-Val + WD'!B$266),\nIF(AND($G$5=\"Yes\",$G$6=\"Yes\",$G$7=\"No\"),\n(('GF diets No L-Val + Fat + WD'!W$351-'GF diets No L-Val + Fat + WD'!W5)*($G$8*$G$9/100)-'GF diets No L-Val + Fat + WD'!W$266)-\n(('GF diets No L-Val + Fat + WD'!B$351-'GF diets No L-Val + Fat + WD'!B5)*($G$8*$G$9/100)-'GF diets No L-Val + Fat + WD'!B$266),\nIF(AND($G$5=\"No\",$G$6=\"Yes\",$G$7=\"Yes\"),\n(('GF diets L-Val + WD'!W$351-'GF diets L-Val + WD'!W5)*($G$8*$G$9/100)-'GF diets L-Val + WD'!W$266)-\n(('GF diets L-Val + WD'!B$351-'GF diets L-Val + WD'!B5)*($G$8*$G$9/100)-'GF diets L-Val + WD'!B$266),\nIF(AND($G$5=\"Yes\",$G$6=\"Yes\",$G$7=\"Yes\"),\n(('GF diets L-Val + Fat + WD'!W$351-'GF diets L-Val + Fat + WD'!W5)*($G$8*$G$9/100)-'GF diets L-Val + Fat + WD'!W$266)-\n(('GF diets L-Val + Fat + WD'!B$351-'GF diets L-Val + Fat + WD'!B5)*($G$8*$G$9/100)-'GF diets L-Val + Fat + WD'!B$266)\n))))))))","v":-0.29257675353583679},{"$f":"IF(AND($G$5=\"No\",$G$6=\"No\",$G$7=\"No\"),\n(('GF diets No L-Val'!X351-'GF diets No L-Val'!X5)*($G$8*$G$9/100)-'GF diets No L-Val'!X$266)-\n(('GF diets No L-Val'!C351-'GF diets No L-Val'!C5)*($G$8*$G$9/100)-'GF diets No L-Val'!C$266),\nIF(AND($G$5=\"Yes\",$G$6=\"No\",$G$7=\"No\"),\n(('GF diets No L-Val + Fat'!X$351-'GF diets No L-Val + Fat'!X5)*($G$8*$G$9/100)-'GF diets No L-Val + Fat'!X$266)-\n(('GF diets No L-Val + Fat'!C351-'GF diets No L-Val + Fat'!C5)*($G$8*$G$9/100)-'GF diets No L-Val + Fat'!C$266),\nIF(AND($G$5=\"No\",$G$6=\"No\",$G$7=\"Yes\"),\n(('GF diets L-Val'!X$351-'GF diets L-Val'!X5)*($G$8*$G$9/100)-'GF diets L-Val'!X$266)-\n(('GF diets L-Val'!C351-'GF diets L-Val'!C5)*($G$8*$G$9/100)-'GF diets L-Val'!C$266),\nIF(AND($G$5=\"Yes\",$G$6=\"No\",$G$7=\"Yes\"),\n(('GF diets L-Val + Fat'!X$351-'GF diets L-Val + Fat'!X5)*($G$8*$G$9/100)-'GF diets L-Val + Fat'!X$266)-\n(('GF diets L-Val + Fat'!C$351-'GF diets L-Val + Fat'!C5)*($G$8*$G$9/100)-'GF diets L-Val + Fat'!C$266),\nIF(AND($G$5=\"No\",$G$6=\"Yes\",$G$7=\"No\"),\n(('GF diets No L-Val + WD'!X$351-'GF diets No L-Val + WD'!X5)*($G$8*$G$9/100)-'GF diets No L-Val + WD'!X$266)-\n(('GF diets No L-Val + WD'!C$351-'GF diets No L-Val + WD'!C5)*($G$8*$G$9/100)-'GF diets No L-Val + WD'!C$266),\nIF(AND($G$5=\"Yes\",$G$6=\"Yes\",$G$7=\"No\"),\n(('GF diets No L-Val + Fat + WD'!X$351-'GF diets No L-Val + Fat + WD'!X5)*($G$8*$G$9/100)-'GF diets No L-Val + Fat + WD'!X$266)-\n(('GF diets No L-Val + Fat + WD'!C$351-'GF diets No L-Val + Fat + WD'!C5)*($G$8*$G$9/100)-'GF diets No L-Val + Fat + WD'!C$266),\nIF(AND($G$5=\"No\",$G$6=\"Yes\",$G$7=\"Yes\"),\n(('GF diets L-Val + WD'!X$351-'GF diets L-Val + WD'!X5)*($G$8*$G$9/100)-'GF diets L-Val + WD'!X$266)-\n(('GF diets L-Val + WD'!C$351-'GF diets L-Val + WD'!C5)*($G$8*$G$9/100)-'GF diets L-Val + WD'!C$266),\nIF(AND($G$5=\"Yes\",$G$6=\"Yes\",$G$7=\"Yes\"),\n(('GF diets L-Val + Fat + WD'!X$351-'GF diets L-Val + Fat + WD'!X5)*($G$8*$G$9/100)-'GF diets L-Val + Fat + WD'!X$266)-\n(('GF diets L-Val + Fat + WD'!C$351-'GF diets L-Val + Fat + WD'!C5)*($G$8*$G$9/100)-'GF diets L-Val + Fat + WD'!C$266)\n))))))))","v":-0.27836545400975687},{"$f":"IF(AND($G$5=\"No\",$G$6=\"No\",$G$7=\"No\"),\n(('GF diets No L-Val'!Y351-'GF diets No L-Val'!Y5)*($G$8*$G$9/100)-'GF diets No L-Val'!Y$266)-\n(('GF diets No L-Val'!D351-'GF diets No L-Val'!D5)*($G$8*$G$9/100)-'GF diets No L-Val'!D$266),\nIF(AND($G$5=\"Yes\",$G$6=\"No\",$G$7=\"No\"),\n(('GF diets No L-Val + Fat'!Y$351-'GF diets No L-Val + Fat'!Y5)*($G$8*$G$9/100)-'GF diets No L-Val + Fat'!Y$266)-\n(('GF diets No L-Val + Fat'!D351-'GF diets No L-Val + Fat'!D5)*($G$8*$G$9/100)-'GF diets No L-Val + Fat'!D$266),\nIF(AND($G$5=\"No\",$G$6=\"No\",$G$7=\"Yes\"),\n(('GF diets L-Val'!Y$351-'GF diets L-Val'!Y5)*($G$8*$G$9/100)-'GF diets L-Val'!Y$266)-\n(('GF diets L-Val'!D351-'GF diets L-Val'!D5)*($G$8*$G$9/100)-'GF diets L-Val'!D$266),\nIF(AND($G$5=\"Yes\",$G$6=\"No\",$G$7=\"Yes\"),\n(('GF diets L-Val + Fat'!Y$351-'GF diets L-Val + Fat'!Y5)*($G$8*$G$9/100)-'GF diets L-Val + Fat'!Y$266)-\n(('GF diets L-Val + Fat'!D$351-'GF diets L-Val + Fat'!D5)*($G$8*$G$9/100)-'GF diets L-Val + Fat'!D$266),\nIF(AND($G$5=\"No\",$G$6=\"Yes\",$G$7=\"No\"),\n(('GF diets No L-Val + WD'!Y$351-'GF diets No L-Val + WD'!Y5)*($G$8*$G$9/100)-'GF diets No L-Val + WD'!Y$266)-\n(('GF diets No L-Val + WD'!D$351-'GF diets No L-Val + WD'!D5)*($G$8*$G$9/100)-'GF diets No L-Val + WD'!D$266),\nIF(AND($G$5=\"Yes\",$G$6=\"Yes\",$G$7=\"No\"),\n(('GF diets No L-Val + Fat + WD'!Y$351-'GF diets No L-Val + Fat + WD'!Y5)*($G$8*$G$9/100)-'GF diets No L-Val + Fat + WD'!Y$266)-\n(('GF diets No L-Val + Fat + WD'!D$351-'GF diets No L-Val + Fat + WD'!D5)*($G$8*$G$9/100)-'GF diets No L-Val + Fat + WD'!D$266),\nIF(AND($G$5=\"No\",$G$6=\"Yes\",$G$7=\"Yes\"),\n(('GF diets L-Val + WD'!Y$351-'GF diets L-Val + WD'!Y5)*($G$8*$G$9/100)-'GF diets L-Val + WD'!Y$266)-\n(('GF diets L-Val + WD'!D$351-'GF diets L-Val + WD'!D5)*($G$8*$G$9/100)-'GF diets L-Val + WD'!D$266),\nIF(AND($G$5=\"Yes\",$G$6=\"Yes\",$G$7=\"Yes\"),\n(('GF diets L-Val + Fat + WD'!Y$351-'GF diets L-Val + Fat + WD'!Y5)*($G$8*$G$9/100)-'GF diets L-Val + Fat + WD'!Y$266)-\n(('GF diets L-Val + Fat + WD'!D$351-'GF diets L-Val + Fat + WD'!D5)*($G$8*$G$9/100)-'GF diets L-Val + Fat + WD'!D$266)\n))))))))","v":-0.34108871284502129},{"$f":"IF(AND($G$5=\"No\",$G$6=\"No\",$G$7=\"No\"),\n(('GF diets No L-Val'!Z351-'GF diets No L-Val'!Z5)*($G$8*$G$9/100)-'GF diets No L-Val'!Z$266)-\n(('GF diets No L-Val'!E351-'GF diets No L-Val'!E5)*($G$8*$G$9/100)-'GF diets No L-Val'!E$266),\nIF(AND($G$5=\"Yes\",$G$6=\"No\",$G$7=\"No\"),\n(('GF diets No L-Val + Fat'!Z$351-'GF diets No L-Val + Fat'!Z5)*($G$8*$G$9/100)-'GF diets No L-Val + Fat'!Z$266)-\n(('GF diets No L-Val + Fat'!E351-'GF diets No L-Val + Fat'!E5)*($G$8*$G$9/100)-'GF diets No L-Val + Fat'!E$266),\nIF(AND($G$5=\"No\",$G$6=\"No\",$G$7=\"Yes\"),\n(('GF diets L-Val'!Z$351-'GF diets L-Val'!Z5)*($G$8*$G$9/100)-'GF diets L-Val'!Z$266)-\n(('GF diets L-Val'!E351-'GF diets L-Val'!E5)*($G$8*$G$9/100)-'GF diets L-Val'!E$266),\nIF(AND($G$5=\"Yes\",$G$6=\"No\",$G$7=\"Yes\"),\n(('GF diets L-Val + Fat'!Z$351-'GF diets L-Val + Fat'!Z5)*($G$8*$G$9/100)-'GF diets L-Val + Fat'!Z$266)-\n(('GF diets L-Val + Fat'!E$351-'GF diets L-Val + Fat'!E5)*($G$8*$G$9/100)-'GF diets L-Val + Fat'!E$266),\nIF(AND($G$5=\"No\",$G$6=\"Yes\",$G$7=\"No\"),\n(('GF diets No L-Val + WD'!Z$351-'GF diets No L-Val + WD'!Z5)*($G$8*$G$9/100)-'GF diets No L-Val + WD'!Z$266)-\n(('GF diets No L-Val + WD'!E$351-'GF diets No L-Val + WD'!E5)*($G$8*$G$9/100)-'GF diets No L-Val + WD'!E$266),\nIF(AND($G$5=\"Yes\",$G$6=\"Yes\",$G$7=\"No\"),\n(('GF diets No L-Val + Fat + WD'!Z$351-'GF diets No L-Val + Fat + WD'!Z5)*($G$8*$G$9/100)-'GF diets No L-Val + Fat + WD'!Z$266)-\n(('GF diets No L-Val + Fat + WD'!E$351-'GF diets No L-Val + Fat + WD'!E5)*($G$8*$G$9/100)-'GF diets No L-Val + Fat + WD'!E$266),\nIF(AND($G$5=\"No\",$G$6=\"Yes\",$G$7=\"Yes\"),\n(('GF diets L-Val + WD'!Z$351-'GF diets L-Val + WD'!Z5)*($G$8*$G$9/100)-'GF diets L-Val + WD'!Z$266)-\n(('GF diets L-Val + WD'!E$351-'GF diets L-Val + WD'!E5)*($G$8*$G$9/100)-'GF diets L-Val + WD'!E$266),\nIF(AND($G$5=\"Yes\",$G$6=\"Yes\",$G$7=\"Yes\"),\n(('GF diets L-Val + Fat + WD'!Z$351-'GF diets L-Val + Fat + WD'!Z5)*($G$8*$G$9/100)-'GF diets L-Val + Fat + WD'!Z$266)-\n(('GF diets L-Val + Fat + WD'!E$351-'GF diets L-Val + Fat + WD'!E5)*($G$8*$G$9/100)-'GF diets L-Val + Fat + WD'!E$266)\n))))))))","v":-0.39873130282205338},{"$f":"IF(AND($G$5=\"No\",$G$6=\"No\",$G$7=\"No\"),\n(('GF diets No L-Val'!AA351-'GF diets No L-Val'!AA5)*($G$8*$G$9/100)-'GF diets No L-Val'!AA$266)-\n(('GF diets No L-Val'!F351-'GF diets No L-Val'!F5)*($G$8*$G$9/100)-'GF diets No L-Val'!F$266),\nIF(AND($G$5=\"Yes\",$G$6=\"No\",$G$7=\"No\"),\n(('GF diets No L-Val + Fat'!AA$351-'GF diets No L-Val + Fat'!AA5)*($G$8*$G$9/100)-'GF diets No L-Val + Fat'!AA$266)-\n(('GF diets No L-Val + Fat'!F351-'GF diets No L-Val + Fat'!F5)*($G$8*$G$9/100)-'GF diets No L-Val + Fat'!F$266),\nIF(AND($G$5=\"No\",$G$6=\"No\",$G$7=\"Yes\"),\n(('GF diets L-Val'!AA$351-'GF diets L-Val'!AA5)*($G$8*$G$9/100)-'GF diets L-Val'!AA$266)-\n(('GF diets L-Val'!F351-'GF diets L-Val'!F5)*($G$8*$G$9/100)-'GF diets L-Val'!F$266),\nIF(AND($G$5=\"Yes\",$G$6=\"No\",$G$7=\"Yes\"),\n(('GF diets L-Val + Fat'!AA$351-'GF diets L-Val + Fat'!AA5)*($G$8*$G$9/100)-'GF diets L-Val + Fat'!AA$266)-\n(('GF diets L-Val + Fat'!F$351-'GF diets L-Val + Fat'!F5)*($G$8*$G$9/100)-'GF diets L-Val + Fat'!F$266),\nIF(AND($G$5=\"No\",$G$6=\"Yes\",$G$7=\"No\"),\n(('GF diets No L-Val + WD'!AA$351-'GF diets No L-Val + WD'!AA5)*($G$8*$G$9/100)-'GF diets No L-Val + WD'!AA$266)-\n(('GF diets No L-Val + WD'!F$351-'GF diets No L-Val + WD'!F5)*($G$8*$G$9/100)-'GF diets No L-Val + WD'!F$266),\nIF(AND($G$5=\"Yes\",$G$6=\"Yes\",$G$7=\"No\"),\n(('GF diets No L-Val + Fat + WD'!AA$351-'GF diets No L-Val + Fat + WD'!AA5)*($G$8*$G$9/100)-'GF diets No L-Val + Fat + WD'!AA$266)-\n(('GF diets No L-Val + Fat + WD'!F$351-'GF diets No L-Val + Fat + WD'!F5)*($G$8*$G$9/100)-'GF diets No L-Val + Fat + WD'!F$266),\nIF(AND($G$5=\"No\",$G$6=\"Yes\",$G$7=\"Yes\"),\n(('GF diets L-Val + WD'!AA$351-'GF diets L-Val + WD'!AA5)*($G$8*$G$9/100)-'GF diets L-Val + WD'!AA$266)-\n(('GF diets L-Val + WD'!F$351-'GF diets L-Val + WD'!F5)*($G$8*$G$9/100)-'GF diets L-Val + WD'!F$266),\nIF(AND($G$5=\"Yes\",$G$6=\"Yes\",$G$7=\"Yes\"),\n(('GF diets L-Val + Fat + WD'!AA$351-'GF diets L-Val + Fat + WD'!AA5)*($G$8*$G$9/100)-'GF diets L-Val + Fat + WD'!AA$266)-\n(('GF diets L-Val + Fat + WD'!F$351-'GF diets L-Val + Fat + WD'!F5)*($G$8*$G$9/100)-'GF diets L-Val + Fat + WD'!F$266)\n))))))))","v":-0.52363003273327102},{"$f":"IF(AND($G$5=\"No\",$G$6=\"No\",$G$7=\"No\"),\n(('GF diets No L-Val'!AB351-'GF diets No L-Val'!AB5)*($G$8*$G$9/100)-'GF diets No L-Val'!AB$266)-\n(('GF diets No L-Val'!G351-'GF diets No L-Val'!G5)*($G$8*$G$9/100)-'GF diets No L-Val'!G$266),\nIF(AND($G$5=\"Yes\",$G$6=\"No\",$G$7=\"No\"),\n(('GF diets No L-Val + Fat'!AB$351-'GF diets No L-Val + Fat'!AB5)*($G$8*$G$9/100)-'GF diets No L-Val + Fat'!AB$266)-\n(('GF diets No L-Val + Fat'!G351-'GF diets No L-Val + Fat'!G5)*($G$8*$G$9/100)-'GF diets No L-Val + Fat'!G$266),\nIF(AND($G$5=\"No\",$G$6=\"No\",$G$7=\"Yes\"),\n(('GF diets L-Val'!AB$351-'GF diets L-Val'!AB5)*($G$8*$G$9/100)-'GF diets L-Val'!AB$266)-\n(('GF diets L-Val'!G351-'GF diets L-Val'!G5)*($G$8*$G$9/100)-'GF diets L-Val'!G$266),\nIF(AND($G$5=\"Yes\",$G$6=\"No\",$G$7=\"Yes\"),\n(('GF diets L-Val + Fat'!AB$351-'GF diets L-Val + Fat'!AB5)*($G$8*$G$9/100)-'GF diets L-Val + Fat'!AB$266)-\n(('GF diets L-Val + Fat'!G$351-'GF diets L-Val + Fat'!G5)*($G$8*$G$9/100)-'GF diets L-Val + Fat'!G$266),\nIF(AND($G$5=\"No\",$G$6=\"Yes\",$G$7=\"No\"),\n(('GF diets No L-Val + WD'!AB$351-'GF diets No L-Val + WD'!AB5)*($G$8*$G$9/100)-'GF diets No L-Val + WD'!AB$266)-\n(('GF diets No L-Val + WD'!G$351-'GF diets No L-Val + WD'!G5)*($G$8*$G$9/100)-'GF diets No L-Val + WD'!G$266),\nIF(AND($G$5=\"Yes\",$G$6=\"Yes\",$G$7=\"No\"),\n(('GF diets No L-Val + Fat + WD'!AB$351-'GF diets No L-Val + Fat + WD'!AB5)*($G$8*$G$9/100)-'GF diets No L-Val + Fat + WD'!AB$266)-\n(('GF diets No L-Val + Fat + WD'!G$351-'GF diets No L-Val + Fat + WD'!G5)*($G$8*$G$9/100)-'GF diets No L-Val + Fat + WD'!G$266),\nIF(AND($G$5=\"No\",$G$6=\"Yes\",$G$7=\"Yes\"),\n(('GF diets L-Val + WD'!AB$351-'GF diets L-Val + WD'!AB5)*($G$8*$G$9/100)-'GF diets L-Val + WD'!AB$266)-\n(('GF diets L-Val + WD'!G$351-'GF diets L-Val + WD'!G5)*($G$8*$G$9/100)-'GF diets L-Val + WD'!G$266),\nIF(AND($G$5=\"Yes\",$G$6=\"Yes\",$G$7=\"Yes\"),\n(('GF diets L-Val + Fat + WD'!AB$351-'GF diets L-Val + Fat + WD'!AB5)*($G$8*$G$9/100)-'GF diets L-Val + Fat + WD'!AB$266)-\n(('GF diets L-Val + Fat + WD'!G$351-'GF diets L-Val + Fat + WD'!G5)*($G$8*$G$9/100)-'GF diets L-Val + Fat + WD'!G$266)\n))))))))","v":-0.78850689167495425},-2.6228991476208936,{"$f":"I62-I61","v":-0.8510033895134903}]
[0.2,"20% DDGS",{"$f":"IF(AND($G$5=\"No\",$G$6=\"No\",$G$7=\"No\"),\n(('GF diets No L-Val'!AD351-'GF diets No L-Val'!AD5)*($G$8*$G$9/100)-'GF diets No L-Val'!AD$266)-\n(('GF diets No L-Val'!B351-'GF diets No L-Val'!B5)*($G$8*$G$9/100)-'GF diets No L-Val'!B$266),\nIF(AND($G$5=\"Yes\",$G$6=\"No\",$G$7=\"No\"),\n(('GF diets No L-Val + Fat'!AD$351-'GF diets No L-Val + Fat'!AD5)*($G$8*$G$9/100)-'GF diets No L-Val + Fat'!AD$266)-\n(('GF diets No L-Val + Fat'!B351-'GF diets No L-Val + Fat'!B5)*($G$8*$G$9/100)-'GF diets No L-Val + Fat'!B$266),\nIF(AND($G$5=\"No\",$G$6=\"No\",$G$7=\"Yes\"),\n(('GF diets L-Val'!AD$351-'GF diets L-Val'!AD5)*($G$8*$G$9/100)-'GF diets L-Val'!AD$266)-\n(('GF diets L-Val'!B351-'GF diets L-Val'!B5)*($G$8*$G$9/100)-'GF diets L-Val'!B$266),\nIF(AND($G$5=\"Yes\",$G$6=\"No\",$G$7=\"Yes\"),\n(('GF diets L-Val + Fat'!AD$351-'GF diets L-Val + Fat'!AD5)*($G$8*$G$9/100)-'GF diets L-Val + Fat'!AD$266)-\n(('GF diets L-Val + Fat'!B$351-'GF diets L-Val + Fat'!B5)*($G$8*$G$9/100)-'GF diets L-Val + Fat'!B$266),\nIF(AND($G$5=\"No\",$G$6=\"Yes\",$G$7=\"No\"),\n(('GF diets No L-Val + WD'!AD$351-'GF diets No L-Val + WD'!AD5)*($G$8*$G$9/100)-'GF diets No L-Val + WD'!AD$266)-\n(('GF diets No L-Val + WD'!B$351-'GF diets No L-Val + WD'!B5)*($G$8*$G$9/100)-'GF diets No L-Val + WD'!B$266),\nIF(AND($G$5=\"Yes\",$G$6=\"Yes\",$G$7=\"No\"),\n(('GF diets No L-Val + Fat + WD'!AD$351-'GF diets No L-Val + Fat + WD'!AD5)*($G$8*$G$9/100)-'GF diets No L-Val + Fat + WD'!AD$266)-\n(('GF diets No L-Val + Fat + WD'!B$351-'GF diets No L-Val + Fat + WD'!B5)*($G$8*$G$9/100)-'GF diets No L-Val + Fat + WD'!B$266),\nIF(AND($G$5=\"No\",$G$6=\"Yes\",$G$7=\"Yes\"),\n(('GF diets L-Val + WD'!AD$351-'GF diets L-Val + WD'!AD5)*($G$8*$G$9/100)-'GF diets L-Val + WD'!AD$266)-\n(('GF diets L-Val + WD'!B$351-'GF diets L-Val + WD'!B5)*($G$8*$G$9/100)-'GF diets L-Val + WD'!B$266),\nIF(AND($G$5=\"Yes\",$G$6=\"Yes\",$G$7=\"Yes\"),\n(('GF diets L-Val + Fat + WD'!AD$351-'GF diets L-Val + Fat + WD'!AD5)*($G$8*$G$9/100)-'GF diets L-Val + Fat + WD'!AD$266)-\n(('GF diets L-Val + Fat + WD'!B$351-'GF diets L-Val + Fat + WD'!B5)*($G$8*$G$9/100)-'GF diets L-Val + Fat + WD'!B$266)\n))))))))","v":-0.36183145300062236},{"$f":"IF(AND($G$5=\"No\",$G$6=\"No\",$G$7=\"No\"),\n(('GF diets No L-Val'!AE351-'GF diets No L-Val'!AE5)*($G$8*$G$9/100)-'GF diets No L-Val'!AE$266)-\n(('GF diets No L-Val'!C351-'GF diets No L-Val'!C5)*($G$8*$G$9/100)-'GF diets No L-Val'!C$266),\nIF(AND($G$5=\"Yes\",$G$6=\"No\",$G$7=\"No\"),\n(('GF diets No L-Val + Fat'!AE$351-'GF diets No L-Val + Fat'!AE5)*($G$8*$G$9/100)-'GF diets No L-Val + Fat'!AE$266)-\n(('GF diets No L-Val + Fat'!C351-'GF diets No L-Val + Fat'!C5)*($G$8*$G$9/100)-'GF diets No L-Val + Fat'!C$266),\nIF(AND($G$5=\"No\",$G$6=\"No\",$G$7=\"Yes\"),\n(('GF diets L-Val'!AE$351-'GF diets L-Val'!AE5)*($G$8*$G$9/100)-'GF diets L-Val'!AE$266)-\n(('GF diets L-Val'!C351-'GF diets L-Val'!C5)*($G$8*$G$9/100)-'GF diets L-Val'!C$266),\nIF(AND($G$5=\"Yes\",$G$6=\"No\",$G$7=\"Yes\"),\n(('GF diets L-Val + Fat'!AE$351-'GF diets L-Val + Fat'!AE5)*($G$8*$G$9/100)-'GF diets L-Val + Fat'!AE$266)-\n(('GF diets L-Val + Fat'!C$351-'GF diets L-Val + Fat'!C5)*($G$8*$G$9/100)-'GF diets L-Val + Fat'!C$266),\nIF(AND($G$5=\"No\",$G$6=\"Yes\",$G$7=\"No\"),\n(('GF diets No L-Val + WD'!AE$351-'GF diets No L-Val + WD'!AE5)*($G$8*$G$9/100)-'GF diets No L-Val + WD'!AE$266)-\n(('GF diets No L-Val + WD'!C$351-'GF diets No L-Val + WD'!C5)*($G$8*$G$9/100)-'GF diets No L-Val + WD'!C$266),\nIF(AND($G$5=\"Yes\",$G$6=\"Yes\",$G$7=\"No\"),\n(('GF diets No L-Val + Fat + WD'!AE$351-'GF diets No L-Val + Fat + WD'!AE5)*($G$8*$G$9/100)-'GF diets No L-Val + Fat + WD'!AE$266)-\n(('GF diets No L-Val + Fat + WD'!C$351-'GF diets No L-Val + Fat + WD'!C5)*($G$8*$G$9/100)-'GF diets No L-Val + Fat + WD'!C$266),\nIF(AND($G$5=\"No\",$G$6=\"Yes\",$G$7=\"Yes\"),\n(('GF diets L-Val + WD'!AE$351-'GF diets L-Val + WD'!AE5)*($G$8*$G$9/100)-'GF diets L-Val + WD'!AE$266)-\n(('GF diets L-Val + WD'!C$351-'GF diets L-Val + WD'!C5)*($G$8*$G$9/100)-'GF diets L-Val + WD'!C$266),\nIF(AND($G$5=\"Yes\",$G$6=\"Yes\",$G$7=\"Yes\"),\n(('GF diets L-Val + Fat + WD'!AE$351-'GF diets L-Val + Fat + WD'!AE5)*($G$8*$G$9/100)-'GF diets L-Val + Fat + WD'!AE$266)-\n(('GF diets L-Val + Fat + WD'!C$351-'GF diets L-Val + Fat + WD'!C5)*($G$8*$G$9/100)-'GF diets L-Val + Fat + WD'!C$266)\n))))))))","v":-0.35070649568689127},{"$f":"IF(AND($G$5=\"No\",$G$6=\"No\",$G$7=\"No\"),\n(('GF diets No L-Val'!AF351-'GF diets No L-Val'!AF5)*($G$8*$G$9/100)-'GF diets No L-Val'!AF$266)-\n(('GF diets No L-Val'!D351-'GF diets No L-Val'!D5)*($G$8*$G$9/100)-'GF diets No L-Val'!D$266),\nIF(AND($G$5=\"Yes\",$G$6=\"No\",$G$7=\"No\"),\n(('GF diets No L-Val + Fat'!AF$351-'GF diets No L-Val + Fat'!AF5)*($G$8*$G$9/100)-'GF diets No L-Val + Fat'!AF$266)-\n(('GF diets No L-Val + Fat'!D351-'GF diets No L-Val + Fat'!D5)*($G$8*$G$9/100)-'GF diets No L-Val + Fat'!D$266),\nIF(AND($G$5=\"No\",$G$6=\"No\",$G$7=\"Yes\"),\n(('GF diets L-Val'!AF$351-'GF diets L-Val'!AF5)*($G$8*$G$9/100)-'GF diets L-Val'!AF$266)-\n(('GF diets L-Val'!D351-'GF diets L-Val'!D5)*($G$8*$G$9/100)-'GF diets L-Val'!D$266),\nIF(AND($G$5=\"Yes\",$G$6=\"No\",$G$7=\"Yes\"),\n(('GF diets L-Val + Fat'!AF$351-'GF diets L-Val + Fat'!AF5)*($G$8*$G$9/100)-'GF diets L-Val + Fat'!AF$266)-\n(('GF diets L-Val + Fat'!D$351-'GF diets L-Val + Fat'!D5)*($G$8*$G$9/100)-'GF diets L-Val + Fat'!D$266),\nIF(AND($G$5=\"No\",$G$6=\"Yes\",$G$7=\"No\"),\n(('GF diets No L-Val + WD'!AF$351-'GF diets No L-Val + WD'!AF5)*($G$8*$G$9/100)-'GF diets No L-Val + WD'!AF$266)-\n(('GF diets No L-Val + WD'!D$351-'GF diets No L-Val + WD'!D5)*($G$8*$G$9/100)-'GF diets No L-Val + WD'!D$266),\nIF(AND($G$5=\"Yes\",$G$6=\"Yes\",$G$7=\"No\"),\n(('GF diets No L-Val + Fat + WD'!AF$351-'GF diets No L-Val + Fat + WD'!AF5)*($G$8*$G$9/100)-'GF diets No L-Val + Fat + WD'!AF$266)-\n(('GF diets No L-Val + Fat + WD'!D$351-'GF diets No L-Val + Fat + WD'!D5)*($G$8*$G$9/100)-'GF diets No L-Val + Fat + WD'!D$266),\nIF(AND($G$5=\"No\",$G$6=\"Yes\",$G$7=\"Yes\"),\n(('GF diets L-Val + WD'!AF$351-'GF diets L-Val + WD'!AF5)*($G$8*$G$9/100)-'GF diets L-Val + WD'!AF$266)-\n(('GF diets L-Val + WD'!D$351-'GF diets L-Val + WD'!D5)*($G$8*$G$9/100)-'GF diets L-Val + WD'!D$266),\nIF(AND($G$5=\"Yes\",$G$6=\"Yes\",$G$7=\"Yes\"),\n(('GF diets L-Val + Fat + WD'!AF$351-'GF diets L-Val + Fat + WD'!AF5)*($G$8*$G$9/100)-'GF diets L-Val + Fat + WD'!AF$266)-\n(('GF diets L-Val + Fat + WD'!D$351-'GF diets L-Val + Fat + WD'!D5)*($G$8*$G$9/100)-'GF diets L-Val + Fat + WD'!D$266)\n))))))))","v":-0.43478295348389651},{"$f":"IF(AND($G$5=\"No\",$G$6=\"No\",$G$7=\"No\"),\n(('GF diets No L-Val'!AG351-'GF diets No L-Val'!AG5)*($G$8*$G$9/100)-'GF diets No L-Val'!AG$266)-\n(('GF diets No L-Val'!E351-'GF diets No L-Val'!E5)*($G$8*$G$9/100)-'GF diets No L-Val'!E$266),\nIF(AND($G$5=\"Yes\",$G$6=\"No\",$G$7=\"No\"),\n(('GF diets No L-Val + Fat'!AG$351-'GF diets No L-Val + Fat'!AG5)*($G$8*$G$9/100)-'GF diets No L-Val + Fat'!AG$266)-\n(('GF diets No L-Val + Fat'!E351-'GF diets No L-Val + Fat'!E5)*($G$8*$G$9/100)-'GF diets No L-Val + Fat'!E$266),\nIF(AND($G$5=\"No\",$G$6=\"No\",$G$7=\"Yes\"),\n(('GF diets L-Val'!AG$351-'GF diets L-Val'!AG5)*($G$8*$G$9/100)-'GF diets L-Val'!AG$266)-\n(('GF diets L-Val'!E351-'GF diets L-Val'!E5)*($G$8*$G$9/100)-'GF diets L-Val'!E$266),\nIF(AND($G$5=\"Yes\",$G$6=\"No\",$G$7=\"Yes\"),\n(('GF diets L-Val + Fat'!AG$351-'GF diets L-Val + Fat'!AG5)*($G$8*$G$9/100)-'GF diets L-Val + Fat'!AG$266)-\n(('GF diets L-Val + Fat'!E$351-'GF diets L-Val + Fat'!E5)*($G$8*$G$9/100)-'GF diets L-Val + Fat'!E$266),\nIF(AND($G$5=\"No\",$G$6=\"Yes\",$G$7=\"No\"),\n(('GF diets No L-Val + WD'!AG$351-'GF diets No L-Val + WD'!AG5)*($G$8*$G$9/100)-'GF diets No L-Val + WD'!AG$266)-\n(('GF diets No L-Val + WD'!E$351-'GF diets No L-Val + WD'!E5)*($G$8*$G$9/100)-'GF diets No L-Val + WD'!E$266),\nIF(AND($G$5=\"Yes\",$G$6=\"Yes\",$G$7=\"No\"),\n(('GF diets No L-Val + Fat + WD'!AG$351-'GF diets No L-Val + Fat + WD'!AG5)*($G$8*$G$9/100)-'GF diets No L-Val + Fat + WD'!AG$266)-\n(('GF diets No L-Val + Fat + WD'!E$351-'GF diets No L-Val + Fat + WD'!E5)*($G$8*$G$9/100)-'GF diets No L-Val + Fat + WD'!E$266),\nIF(AND($G$5=\"No\",$G$6=\"Yes\",$G$7=\"Yes\"),\n(('GF diets L-Val + WD'!AG$351-'GF diets L-Val + WD'!AG5)*($G$8*$G$9/100)-'GF diets L-Val + WD'!AG$266)-\n(('GF diets L-Val + WD'!E$351-'GF diets L-Val + WD'!E5)*($G$8*$G$9/100)-'GF diets L-Val + WD'!E$266),\nIF(AND($G$5=\"Yes\",$G$6=\"Yes\",$G$7=\"Yes\"),\n(('GF diets L-Val + Fat + WD'!AG$351-'GF diets L-Val + Fat + WD'!AG5)*($G$8*$G$9/100)-'GF diets L-Val + Fat + WD'!AG$266)-\n(('GF diets L-Val + Fat + WD'!E$351-'GF diets L-Val + Fat + WD'!E5)*($G$8*$G$9/100)-'GF diets L-Val + Fat + WD'!E$266)\n))))))))","v":-0.53163311514072831},{"$f":"IF(AND($G$5=\"No\",$G$6=\"No\",$G$7=\"No\"),\n(('GF diets No L-Val'!AH351-'GF diets No L-Val'!AH5)*($G$8*$G$9/100)-'GF diets No L-Val'!AH$266)-\n(('GF diets No L-Val'!F351-'GF diets No L-Val'!F5)*($G$8*$G$9/100)-'GF diets No L-Val'!F$266),\nIF(AND($G$5=\"Yes\",$G$6=\"No\",$G$7=\"No\"),\n(('GF diets No L-Val + Fat'!AH$351-'GF diets No L-Val + Fat'!AH5)*($G$8*$G$9/100)-'GF diets No L-Val + Fat'!AH$266)-\n(('GF diets No L-Val + Fat'!F351-'GF diets No L-Val + Fat'!F5)*($G$8*$G$9/100)-'GF diets No L-Val + Fat'!F$266),\nIF(AND($G$5=\"No\",$G$6=\"No\",$G$7=\"Yes\"),\n(('GF diets L-Val'!AH$351-'GF diets L-Val'!AH5)*($G$8*$G$9/100)-'GF diets L-Val'!AH$266)-\n(('GF diets L-Val'!F351-'GF diets L-Val'!F5)*($G$8*$G$9/100)-'GF diets L-Val'!F$266),\nIF(AND($G$5=\"Yes\",$G$6=\"No\",$G$7=\"Yes\"),\n(('GF diets L-Val + Fat'!AH$351-'GF diets L-Val + Fat'!AH5)*($G$8*$G$9/100)-'GF diets L-Val + Fat'!AH$266)-\n(('GF diets L-Val + Fat'!F$351-'GF diets L-Val + Fat'!F5)*($G$8*$G$9/100)-'GF diets L-Val + Fat'!F$266),\nIF(AND($G$5=\"No\",$G$6=\"Yes\",$G$7=\"No\"),\n(('GF diets No L-Val + WD'!AH$351-'GF diets No L-Val + WD'!AH5)*($G$8*$G$9/100)-'GF diets No L-Val + WD'!AH$266)-\n(('GF diets No L-Val + WD'!F$351-'GF diets No L-Val + WD'!F5)*($G$8*$G$9/100)-'GF diets No L-Val + WD'!F$266),\nIF(AND($G$5=\"Yes\",$G$6=\"Yes\",$G$7=\"No\"),\n(('GF diets No L-Val + Fat + WD'!AH$351-'GF diets No L-Val + Fat + WD'!AH5)*($G$8*$G$9/100)-'GF diets No L-Val + Fat + WD'!AH$266)-\n(('GF diets No L-Val + Fat + WD'!F$351-'GF diets No L-Val + Fat + WD'!F5)*($G$8*$G$9/100)-'GF diets No L-Val + Fat + WD'!F$266),\nIF(AND($G$5=\"No\",$G$6=\"Yes\",$G$7=\"Yes\"),\n(('GF diets L-Val + WD'!AH$351-'GF diets L-Val + WD'!AH5)*($G$8*$G$9/100)-'GF diets L-Val + WD'!AH$266)-\n(('GF diets L-Val + WD'!F$351-'GF diets L-Val + WD'!F5)*($G$8*$G$9/100)-'GF diets L-Val + WD'!F$266),\nIF(AND($G$5=\"Yes\",$G$6=\"Yes\",$G$7=\"Yes\"),\n(('GF diets L-Val + Fat + WD'!AH$351-'GF diets L-Val + Fat + WD'!AH5)*($G$8*$G$9/100)-'GF diets L-Val + Fat + WD'!AH$266)-\n(('GF diets L-Val + Fat + WD'!F$351-'GF diets L-Val + Fat + WD'!F5)*($G$8*$G$9/100)-'GF diets L-Val + Fat + WD'!F$266)\n))))))))","v":-0.7127951557211567},{"$f":"IF(AND($G$5=\"No\",$G$6=\"No\",$G$7=\"No\"),\n(('GF diets No L-Val'!AI351-'GF diets No L-Val'!AI5)*($G$8*$G$9/100)-'GF diets No L-Val'!AI$266)-\n(('GF diets No L-Val'!G351-'GF diets No L-Val'!G5)*($G$8*$G$9/100)-'GF diets No L-Val'!G$266),\nIF(AND($G$5=\"Yes\",$G$6=\"No\",$G$7=\"No\"),\n(('GF diets No L-Val + Fat'!AI$351-'GF diets No L-Val + Fat'!AI5)*($G$8*$G$9/100)-'GF diets No L-Val + Fat'!AI$266)-\n(('GF diets No L-Val + Fat'!G351-'GF diets No L-Val + Fat'!G5)*($G$8*$G$9/100)-'GF diets No L-Val + Fat'!G$266),\nIF(AND($G$5=\"No\",$G$6=\"No\",$G$7=\"Yes\"),\n(('GF diets L-Val'!AI$351-'GF diets L-Val'!AI5)*($G$8*$G$9/100)-'GF diets L-Val'!AI$266)-\n(('GF diets L-Val'!G351-'GF diets L-Val'!G5)*($G$8*$G$9/100)-'GF diets L-Val'!G$266),\nIF(AND($G$5=\"Yes\",$G$6=\"No\",$G$7=\"Yes\"),\n(('GF diets L-Val + Fat'!AI$351-'GF diets L-Val + Fat'!AI5)*($G$8*$G$9/100)-'GF diets L-Val + Fat'!AI$266)-\n(('GF diets L-Val + Fat'!G$351-'GF diets L-Val + Fat'!G5)*($G$8*$G$9/100)-'GF diets L-Val + Fat'!G$266),\nIF(AND($G$5=\"No\",$G$6=\"Yes\",$G$7=\"No\"),\n(('GF diets No L-Val + WD'!AI$351-'GF diets No L-Val + WD'!AI5)*($G$8*$G$9/100)-'GF diets No L-Val + WD'!AI$266)-\n(('GF diets No L-Val + WD'!G$351-'GF diets No L-Val + WD'!G5)*($G$8*$G$9/100)-'GF diets No L-Val + WD'!G$266),\nIF(AND($G$5=\"Yes\",$G$6=\"Yes\",$G$7=\"No\"),\n(('GF diets No L-Val + Fat + WD'!AI$351-'GF diets No L-Val + Fat + WD'!AI5)*($G$8*$G$9/100)-'GF diets No L-Val + Fat + WD'!AI$266)-\n(('GF diets No L-Val + Fat + WD'!G$351-'GF diets No L-Val + Fat + WD'!G5)*($G$8*$G$9/100)-'GF diets No L-Val + Fat + WD'!G$266),\nIF(AND($G$5=\"No\",$G$6=\"Yes\",$G$7=\"Yes\"),\n(('GF diets L-Val + WD'!AI$351-'GF diets L-Val + WD'!AI5)*($G$8*$G$9/100)-'GF diets L-Val + WD'!AI$266)-\n(('GF diets L-Val + WD'!G$351-'GF diets L-Val + WD'!G5)*($G$8*$G$9/100)-'GF diets L-Val + WD'!G$266),\nIF(AND($G$5=\"Yes\",$G$6=\"Yes\",$G$7=\"Yes\"),\n(('GF diets L-Val + Fat + WD'!AI$351-'GF diets L-Val + Fat + WD'!AI5)*($G$8*$G$9/100)-'GF diets L-Val + Fat + WD'!AI$266)-\n(('GF diets L-Val + Fat + WD'!G$351-'GF diets L-Val + Fat + WD'!G5)*($G$8*$G$9/100)-'GF diets L-Val + Fat + WD'!G$266)\n))))))))","v":-1.0806856262759457},-3.4724347993092408,{"$f":"I63-I62","v":-0.84953565168834722}]
[0.25,"25% DDGS",{"$f":"IF(AND($G$5=\"No\",$G$6=\"No\",$G$7=\"No\"),\n(('GF diets No L-Val'!AK351-'GF diets No L-Val'!AK5)*($G$8*$G$9/100)-'GF diets No L-Val'!AK$266)-\n(('GF diets No L-Val'!B351-'GF diets No L-Val'!B5)*($G$8*$G$9/100)-'GF diets No L-Val'!B$266),\nIF(AND($G$5=\"Yes\",$G$6=\"No\",$G$7=\"No\"),\n(('GF diets No L-Val + Fat'!AK$351-'GF diets No L-Val + Fat'!AK5)*($G$8*$G$9/100)-'GF diets No L-Val + Fat'!AK$266)-\n(('GF diets No L-Val + Fat'!B351-'GF diets No L-Val + Fat'!B5)*($G$8*$G$9/100)-'GF diets No L-Val + Fat'!B$266),\nIF(AND($G$5=\"No\",$G$6=\"No\",$G$7=\"Yes\"),\n(('GF diets L-Val'!AK$351-'GF diets L-Val'!AK5)*($G$8*$G$9/100)-'GF diets L-Val'!AK$266)-\n(('GF diets L-Val'!B351-'GF diets L-Val'!B5)*($G$8*$G$9/100)-'GF diets L-Val'!B$266),\nIF(AND($G$5=\"Yes\",$G$6=\"No\",$G$7=\"Yes\"),\n(('GF diets L-Val + Fat'!AK$351-'GF diets L-Val + Fat'!AK5)*($G$8*$G$9/100)-'GF diets L-Val + Fat'!AK$266)-\n(('GF diets L-Val + Fat'!B$351-'GF diets L-Val + Fat'!B5)*($G$8*$G$9/100)-'GF diets L-Val + Fat'!B$266),\nIF(AND($G$5=\"No\",$G$6=\"Yes\",$G$7=\"No\"),\n(('GF diets No L-Val + WD'!AK$351-'GF diets No L-Val + WD'!AK5)*($G$8*$G$9/100)-'GF diets No L-Val + WD'!AK$266)-\n(('GF diets No L-Val + WD'!B$351-'GF diets No L-Val + WD'!B5)*($G$8*$G$9/100)-'GF diets No L-Val + WD'!B$266),\nIF(AND($G$5=\"Yes\",$G$6=\"Yes\",$G$7=\"No\"),\n(('GF diets No L-Val + Fat + WD'!AK$351-'GF diets No L-Val + Fat + WD'!AK5)*($G$8*$G$9/100)-'GF diets No L-Val + Fat + WD'!AK$266)-\n(('GF diets No L-Val + Fat + WD'!B$351-'GF diets No L-Val + Fat + WD'!B5)*($G$8*$G$9/100)-'GF diets No L-Val + Fat + WD'!B$266),\nIF(AND($G$5=\"No\",$G$6=\"Yes\",$G$7=\"Yes\"),\n(('GF diets L-Val + WD'!AK$351-'GF diets L-Val + WD'!AK5)*($G$8*$G$9/100)-'GF diets L-Val + WD'!AK$266)-\n(('GF diets L-Val + WD'!B$351-'GF diets L-Val + WD'!B5)*($G$8*$G$9/100)-'GF diets L-Val + WD'!B$266),\nIF(AND($G$5=\"Yes\",$G$6=\"Yes\",$G$7=\"Yes\"),\n(('GF diets L-Val + Fat + WD'!AK$351-'GF diets L-Val + Fat + WD'!AK5)*($G$8*$G$9/100)-'GF diets L-Val + Fat + WD'!AK$266)-\n(('GF diets L-Val + Fat + WD'!B$351-'GF diets L-Val + Fat + WD'!B5)*($G$8*$G$9/100)-'GF diets L-Val + Fat + WD'!B$266)\n))))))))","v":-0.4340894240775679},{"$f":"IF(AND($G$5=\"No\",$G$6=\"No\",$G$7=\"No\"),\n(('GF diets No L-Val'!AL351-'GF diets No L-Val'!AL5)*($G$8*$G$9/100)-'GF diets No L-Val'!AL$266)-\n(('GF diets No L-Val'!C351-'GF diets No L-Val'!C5)*($G$8*$G$9/100)-'GF diets No L-Val'!C$266),\nIF(AND($G$5=\"Yes\",$G$6=\"No\",$G$7=\"No\"),\n(('GF diets No L-Val + Fat'!AL$351-'GF diets No L-Val + Fat'!AL5)*($G$8*$G$9/100)-'GF diets No L-Val + Fat'!AL$266)-\n(('GF diets No L-Val + Fat'!C351-'GF diets No L-Val + Fat'!C5)*($G$8*$G$9/100)-'GF diets No L-Val + Fat'!C$266),\nIF(AND($G$5=\"No\",$G$6=\"No\",$G$7=\"Yes\"),\n(('GF diets L-Val'!AL$351-'GF diets L-Val'!AL5)*($G$8*$G$9/100)-'GF diets L-Val'!AL$266)-\n(('GF diets L-Val'!C351-'GF diets L-Val'!C5)*($G$8*$G$9/100)-'GF diets L-Val'!C$266),\nIF(AND($G$5=\"Yes\",$G$6=\"No\",$G$7=\"Yes\"),\n(('GF diets L-Val + Fat'!AL$351-'GF diets L-Val + Fat'!AL5)*($G$8*$G$9/100)-'GF diets L-Val + Fat'!AL$266)-\n(('GF diets L-Val + Fat'!C$351-'GF diets L-Val + Fat'!C5)*($G$8*$G$9/100)-'GF diets L-Val + Fat'!C$266),\nIF(AND($G$5=\"No\",$G$6=\"Yes\",$G$7=\"No\"),\n(('GF diets No L-Val + WD'!AL$351-'GF diets No L-Val + WD'!AL5)*($G$8*$G$9/100)-'GF diets No L-Val + WD'!AL$266)-\n(('GF diets No L-Val + WD'!C$351-'GF diets No L-Val + WD'!C5)*($G$8*$G$9/100)-'GF diets No L-Val + WD'!C$266),\nIF(AND($G$5=\"Yes\",$G$6=\"Yes\",$G$7=\"No\"),\n(('GF diets No L-Val + Fat + WD'!AL$351-'GF diets No L-Val + Fat + WD'!AL5)*($G$8*$G$9/100)-'GF diets No L-Val + Fat + WD'!AL$266)-\n(('GF diets No L-Val + Fat + WD'!C$351-'GF diets No L-Val + Fat + WD'!C5)*($G$8*$G$9/100)-'GF diets No L-Val + Fat + WD'!C$266),\nIF(AND($G$5=\"No\",$G$6=\"Yes\",$G$7=\"Yes\"),\n(('GF diets L-Val + WD'!AL$351-'GF diets L-Val + WD'!AL5)*($G$8*$G$9/100)-'GF diets L-Val + WD'!AL$266)-\n(('GF diets L-Val + WD'!C$351-'GF diets L-Val + WD'!C5)*($G$8*$G$9/100)-'GF diets L-Val + WD'!C$266),\nIF(AND($G$5=\"Yes\",$G$6=\"Yes\",$G$7=\"Yes\"),\n(('GF diets L-Val + Fat + WD'!AL$351-'GF diets L-Val + Fat + WD'!AL5)*($G$8*$G$9/100)-'GF diets L-Val + Fat + WD'!AL$266)-\n(('GF diets L-Val + Fat + WD'!C$351-'GF diets L-Val + Fat + WD'!C5)*($G$8*$G$9/100)-'GF diets L-Val + Fat + WD'!C$266)\n))))))))","v":-0.41183522848536036},{"$f":"IF(AND($G$5=\"No\",$G$6=\"No\",$G$7=\"No\"),\n(('GF diets No L-Val'!AM351-'GF diets No L-Val'!AM5)*($G$8*$G$9/100)-'GF diets No L-Val'!AM$266)-\n(('GF diets No L-Val'!D351-'GF diets No L-Val'!D5)*($G$8*$G$9/100)-'GF diets No L-Val'!D$266),\nIF(AND($G$5=\"Yes\",$G$6=\"No\",$G$7=\"No\"),\n(('GF diets No L-Val + Fat'!AM$351-'GF diets No L-Val + Fat'!AM5)*($G$8*$G$9/100)-'GF diets No L-Val + Fat'!AM$266)-\n(('GF diets No L-Val + Fat'!D351-'GF diets No L-Val + Fat'!D5)*($G$8*$G$9/100)-'GF diets No L-Val + Fat'!D$266),\nIF(AND($G$5=\"No\",$G$6=\"No\",$G$7=\"Yes\"),\n(('GF diets L-Val'!AM$351-'GF diets L-Val'!AM5)*($G$8*$G$9/100)-'GF diets L-Val'!AM$266)-\n(('GF diets L-Val'!D351-'GF diets L-Val'!D5)*($G$8*$G$9/100)-'GF diets L-Val'!D$266),\nIF(AND($G$5=\"Yes\",$G$6=\"No\",$G$7=\"Yes\"),\n(('GF diets L-Val + Fat'!AM$351-'GF diets L-Val + Fat'!AM5)*($G$8*$G$9/100)-'GF diets L-Val + Fat'!AM$266)-\n(('GF diets L-Val + Fat'!D$351-'GF diets L-Val + Fat'!D5)*($G$8*$G$9/100)-'GF diets L-Val + Fat'!D$266),\nIF(AND($G$5=\"No\",$G$6=\"Yes\",$G$7=\"No\"),\n(('GF diets No L-Val + WD'!AM$351-'GF diets No L-Val + WD'!AM5)*($G$8*$G$9/100)-'GF diets No L-Val + WD'!AM$266)-\n(('GF diets No L-Val + WD'!D$351-'GF diets No L-Val + WD'!D5)*($G$8*$G$9/100)-'GF diets No L-Val + WD'!D$266),\nIF(AND($G$5=\"Yes\",$G$6=\"Yes\",$G$7=\"No\"),\n(('GF diets No L-Val + Fat + WD'!AM$351-'GF diets No L-Val + Fat + WD'!AM5)*($G$8*$G$9/100)-'GF diets No L-Val + Fat + WD'!AM$266)-\n(('GF diets No L-Val + Fat + WD'!D$351-'GF diets No L-Val + Fat + WD'!D5)*($G$8*$G$9/100)-'GF diets No L-Val + Fat + WD'!D$266),\nIF(AND($G$5=\"No\",$G$6=\"Yes\",$G$7=\"Yes\"),\n(('GF diets L-Val + WD'!AM$351-'GF diets L-Val + WD'!AM5)*($G$8*$G$9/100)-'GF diets L-Val + WD'!AM$266)-\n(('GF diets L-Val + WD'!D$351-'GF diets L-Val + WD'!D5)*($G$8*$G$9/100)-'GF diets L-Val + WD'!D$266),\nIF(AND($G$5=\"Yes\",$G$6=\"Yes\",$G$7=\"Yes\"),\n(('GF diets L-Val + Fat + WD'!AM$351-'GF diets L-Val + Fat + WD'!AM5)*($G$8*$G$9/100)-'GF diets L-Val + Fat + WD'!AM$266)-\n(('GF diets L-Val + Fat + WD'!D$351-'GF diets L-Val + Fat + WD'!D5)*($G$8*$G$9/100)-'GF diets L-Val + Fat + WD'!D$266)\n))))))))","v":-0.53242722831715739},{"$f":"IF(AND($G$5=\"No\",$G$6=\"No\",$G$7=\"No\"),\n(('GF diets No L-Val'!AN351-'GF diets No L-Val'!AN5)*($G$8*$G$9/100)-'GF diets No L-Val'!AN$266)-\n(('GF diets No L-Val'!E351-'GF diets No L-Val'!E5)*($G$8*$G$9/100)-'GF diets No L-Val'!E$266),\nIF(AND($G$5=\"Yes\",$G$6=\"No\",$G$7=\"No\"),\n(('GF diets No L-Val + Fat'!AN$351-'GF diets No L-Val + Fat'!AN5)*($G$8*$G$9/100)-'GF diets No L-Val + Fat'!AN$266)-\n(('GF diets No L-Val + Fat'!E351-'GF diets No L-Val + Fat'!E5)*($G$8*$G$9/100)-'GF diets No L-Val + Fat'!E$266),\nIF(AND($G$5=\"No\",$G$6=\"No\",$G$7=\"Yes\"),\n(('GF diets L-Val'!AN$351-'GF diets L-Val'!AN5)*($G$8*$G$9/100)-'GF diets L-Val'!AN$266)-\n(('GF diets L-Val'!E351-'GF diets L-Val'!E5)*($G$8*$G$9/100)-'GF diets L-Val'!E$266),\nIF(AND($G$5=\"Yes\",$G$6=\"No\",$G$7=\"Yes\"),\n(('GF diets L-Val + Fat'!AN$351-'GF diets L-Val + Fat'!AN5)*($G$8*$G$9/100)-'GF diets L-Val + Fat'!AN$266)-\n(('GF diets L-Val + Fat'!E$351-'GF diets L-Val + Fat'!E5)*($G$8*$G$9/100)-'GF diets L-Val + Fat'!E$266),\nIF(AND($G$5=\"No\",$G$6=\"Yes\",$G$7=\"No\"),\n(('GF diets No L-Val + WD'!AN$351-'GF diets No L-Val + WD'!AN5)*($G$8*$G$9/100)-'GF diets No L-Val + WD'!AN$266)-\n(('GF diets No L-Val + WD'!E$351-'GF diets No L-Val + WD'!E5)*($G$8*$G$9/100)-'GF diets No L-Val + WD'!E$266),\nIF(AND($G$5=\"Yes\",$G$6=\"Yes\",$G$7=\"No\"),\n(('GF diets No L-Val + Fat + WD'!AN$351-'GF diets No L-Val + Fat + WD'!AN5)*($G$8*$G$9/100)-'GF diets No L-Val + Fat + WD'!AN$266)-\n(('GF diets No L-Val + Fat + WD'!E$351-'GF diets No L-Val + Fat + WD'!E5)*($G$8*$G$9/100)-'GF diets No L-Val + Fat + WD'!E$266),\nIF(AND($G$5=\"No\",$G$6=\"Yes\",$G$7=\"Yes\"),\n(('GF diets L-Val + WD'!AN$351-'GF diets L-Val + WD'!AN5)*($G$8*$G$9/100)-'GF diets L-Val + WD'!AN$266)-\n(('GF diets L-Val + WD'!E$351-'GF diets L-Val + WD'!E5)*($G$8*$G$9/100)-'GF diets L-Val + WD'!E$266),\nIF(AND($G$5=\"Yes\",$G$6=\"Yes\",$G$7=\"Yes\"),\n(('GF diets L-Val + Fat + WD'!AN$351-'GF diets L-Val + Fat + WD'!AN5)*($G$8*$G$9/100)-'GF diets L-Val + Fat + WD'!AN$266)-\n(('GF diets L-Val + Fat + WD'!E$351-'GF diets L-Val + Fat + WD'!E5)*($G$8*$G$9/100)-'GF diets L-Val + Fat + WD'!E$266)\n))))))))","v":-0.66919264719696336},{"$f":"IF(AND($G$5=\"No\",$G$6=\"No\",$G$7=\"No\"),\n(('GF diets No L-Val'!AO351-'GF diets No L-Val'!AO5)*($G$8*$G$9/100)-'GF diets No L-Val'!AO$266)-\n(('GF diets No L-Val'!F351-'GF diets No L-Val'!F5)*($G$8*$G$9/100)-'GF diets No L-Val'!F$266),\nIF(AND($G$5=\"Yes\",$G$6=\"No\",$G$7=\"No\"),\n(('GF diets No L-Val + Fat'!AO$351-'GF diets No L-Val + Fat'!AO5)*($G$8*$G$9/100)-'GF diets No L-Val + Fat'!AO$266)-\n(('GF diets No L-Val + Fat'!F351-'GF diets No L-Val + Fat'!F5)*($G$8*$G$9/100)-'GF diets No L-Val + Fat'!F$266),\nIF(AND($G$5=\"No\",$G$6=\"No\",$G$7=\"Yes\"),\n(('GF diets L-Val'!AO$351-'GF diets L-Val'!AO5)*($G$8*$G$9/100)-'GF diets L-Val'!AO$266)-\n(('GF diets L-Val'!F351-'GF diets L-Val'!F5)*($G$8*$G$9/100)-'GF diets L-Val'!F$266),\nIF(AND($G$5=\"Yes\",$G$6=\"No\",$G$7=\"Yes\"),\n(('GF diets L-Val + Fat'!AO$351-'GF diets L-Val + Fat'!AO5)*($G$8*$G$9/100)-'GF diets L-Val + Fat'!AO$266)-\n(('GF diets L-Val + Fat'!F$351-'GF diets L-Val + Fat'!F5)*($G$8*$G$9/100)-'GF diets L-Val + Fat'!F$266),\nIF(AND($G$5=\"No\",$G$6=\"Yes\",$G$7=\"No\"),\n(('GF diets No L-Val + WD'!AO$351-'GF diets No L-Val + WD'!AO5)*($G$8*$G$9/100)-'GF diets No L-Val + WD'!AO$266)-\n(('GF diets No L-Val + WD'!F$351-'GF diets No L-Val + WD'!F5)*($G$8*$G$9/100)-'GF diets No L-Val + WD'!F$266),\nIF(AND($G$5=\"Yes\",$G$6=\"Yes\",$G$7=\"No\"),\n(('GF diets No L-Val + Fat + WD'!AO$351-'GF diets No L-Val + Fat + WD'!AO5)*($G$8*$G$9/100)-'GF diets No L-Val + Fat + WD'!AO$266)-\n(('GF diets No L-Val + Fat + WD'!F$351-'GF diets No L-Val + Fat + WD'!F5)*($G$8*$G$9/100)-'GF diets No L-Val + Fat + WD'!F$266),\nIF(AND($G$5=\"No\",$G$6=\"Yes\",$G$7=\"Yes\"),\n(('GF diets L-Val + WD'!AO$351-'GF diets L-Val + WD'!AO5)*($G$8*$G$9/100)-'GF diets L-Val + WD'!AO$266)-\n(('GF diets L-Val + WD'!F$351-'GF diets L-Val + WD'!F5)*($G$8*$G$9/100)-'GF diets L-Val + WD'!F$266),\nIF(AND($G$5=\"Yes\",$G$6=\"Yes\",$G$7=\"Yes\"),\n(('GF diets L-Val + Fat + WD'!AO$351-'GF diets L-Val + Fat + WD'!AO5)*($G$8*$G$9/100)-'GF diets L-Val + Fat + WD'!AO$266)-\n(('GF diets L-Val + Fat + WD'!F$351-'GF diets L-Val + Fat + WD'!F5)*($G$8*$G$9/100)-'GF diets L-Val + Fat + WD'!F$266)\n))))))))","v":-0.90733107437316995},{"$f":"IF(AND($G$5=\"No\",$G$6=\"No\",$G$7=\"No\"),\n(('GF diets No L-Val'!AP351-'GF diets No L-Val'!AP5)*($G$8*$G$9/100)-'GF diets No L-Val'!AP$266)-\n(('GF diets No L-Val'!G351-'GF diets No L-Val'!G5)*($G$8*$G$9/100)-'GF diets No L-Val'!G$266),\nIF(AND($G$5=\"Yes\",$G$6=\"No\",$G$7=\"No\"),\n(('GF diets No L-Val + Fat'!AP$351-'GF diets No L-Val + Fat'!AP5)*($G$8*$G$9/100)-'GF diets No L-Val + Fat'!AP$266)-\n(('GF diets No L-Val + Fat'!G351-'GF diets No L-Val + Fat'!G5)*($G$8*$G$9/100)-'GF diets No L-Val + Fat'!G$266),\nIF(AND($G$5=\"No\",$G$6=\"No\",$G$7=\"Yes\"),\n(('GF diets L-Val'!AP$351-'GF diets L-Val'!AP5)*($G$8*$G$9/100)-'GF diets L-Val'!AP$266)-\n(('GF diets L-Val'!G351-'GF diets L-Val'!G5)*($G$8*$G$9/100)-'GF diets L-Val'!G$266),\nIF(AND($G$5=\"Yes\",$G$6=\"No\",$G$7=\"Yes\"),\n(('GF diets L-Val + Fat'!AP$351-'GF diets L-Val + Fat'!AP5)*($G$8*$G$9/100)-'GF diets L-Val + Fat'!AP$266)-\n(('GF diets L-Val + Fat'!G$351-'GF diets L-Val + Fat'!G5)*($G$8*$G$9/100)-'GF diets L-Val + Fat'!G$266),\nIF(AND($G$5=\"No\",$G$6=\"Yes\",$G$7=\"No\"),\n(('GF diets No L-Val + WD'!AP$351-'GF diets No L-Val + WD'!AP5)*($G$8*$G$9/100)-'GF diets No L-Val + WD'!AP$266)-\n(('GF diets No L-Val + WD'!G$351-'GF diets No L-Val + WD'!G5)*($G$8*$G$9/100)-'GF diets No L-Val + WD'!G$266),\nIF(AND($G$5=\"Yes\",$G$6=\"Yes\",$G$7=\"No\"),\n(('GF diets No L-Val + Fat + WD'!AP$351-'GF diets No L-Val + Fat + WD'!AP5)*($G$8*$G$9/100)-'GF diets No L-Val + Fat + WD'!AP$266)-\n(('GF diets No L-Val + Fat + WD'!G$351-'GF diets No L-Val + Fat + WD'!G5)*($G$8*$G$9/100)-'GF diets No L-Val + Fat + WD'!G$266),\nIF(AND($G$5=\"No\",$G$6=\"Yes\",$G$7=\"Yes\"),\n(('GF diets L-Val + WD'!AP$351-'GF diets L-Val + WD'!AP5)*($G$8*$G$9/100)-'GF diets L-Val + WD'!AP$266)-\n(('GF diets L-Val + WD'!G$351-'GF diets L-Val + WD'!G5)*($G$8*$G$9/100)-'GF diets L-Val + WD'!G$266),\nIF(AND($G$5=\"Yes\",$G$6=\"Yes\",$G$7=\"Yes\"),\n(('GF diets L-Val + Fat + WD'!AP$351-'GF diets L-Val + Fat + WD'!AP5)*($G$8*$G$9/100)-'GF diets L-Val + Fat + WD'!AP$266)-\n(('GF diets L-Val + Fat + WD'!G$351-'GF diets L-Val + Fat + WD'!G5)*($G$8*$G$9/100)-'GF diets L-Val + Fat + WD'!G$266)\n))))))))","v":-1.3673881113549431},-4.3222637138051621,{"$f":"I64-I63","v":-0.84982891449592124}]
[0.3,"30% DDGS",{"$f":"IF(AND($G$5=\"No\",$G$6=\"No\",$G$7=\"No\"),\n(('GF diets No L-Val'!AR351-'GF diets No L-Val'!AR5)*($G$8*$G$9/100)-'GF diets No L-Val'!AR$266)-\n(('GF diets No L-Val'!B351-'GF diets No L-Val'!B5)*($G$8*$G$9/100)-'GF diets No L-Val'!B$266),\nIF(AND($G$5=\"Yes\",$G$6=\"No\",$G$7=\"No\"),\n(('GF diets No L-Val + Fat'!AR$351-'GF diets No L-Val + Fat'!AR5)*($G$8*$G$9/100)-'GF diets No L-Val + Fat'!AR$266)-\n(('GF diets No L-Val + Fat'!B351-'GF diets No L-Val + Fat'!B5)*($G$8*$G$9/100)-'GF diets No L-Val + Fat'!B$266),\nIF(AND($G$5=\"No\",$G$6=\"No\",$G$7=\"Yes\"),\n(('GF diets L-Val'!AR$351-'GF diets L-Val'!AR5)*($G$8*$G$9/100)-'GF diets L-Val'!AR$266)-\n(('GF diets L-Val'!B351-'GF diets L-Val'!B5)*($G$8*$G$9/100)-'GF diets L-Val'!B$266),\nIF(AND($G$5=\"Yes\",$G$6=\"No\",$G$7=\"Yes\"),\n(('GF diets L-Val + Fat'!AR$351-'GF diets L-Val + Fat'!AR5)*($G$8*$G$9/100)-'GF diets L-Val + Fat'!AR$266)-\n(('GF diets L-Val + Fat'!B$351-'GF diets L-Val + Fat'!B5)*($G$8*$G$9/100)-'GF diets L-Val + Fat'!B$266),\nIF(AND($G$5=\"No\",$G$6=\"Yes\",$G$7=\"No\"),\n(('GF diets No L-Val + WD'!AR$351-'GF diets No L-Val + WD'!AR5)*($G$8*$G$9/100)-'GF diets No L-Val + WD'!AR$266)-\n(('GF diets No L-Val + WD'!B$351-'GF diets No L-Val + WD'!B5)*($G$8*$G$9/100)-'GF diets No L-Val + WD'!B$266),\nIF(AND($G$5=\"Yes\",$G$6=\"Yes\",$G$7=\"No\"),\n(('GF diets No L-Val + Fat + WD'!AR$351-'GF diets No L-Val + Fat + WD'!AR5)*($G$8*$G$9/100)-'GF diets No L-Val + Fat + WD'!AR$266)-\n(('GF diets No L-Val + Fat + WD'!B$351-'GF diets No L-Val + Fat + WD'!B5)*($G$8*$G$9/100)-'GF diets No L-Val + Fat + WD'!B$266),\nIF(AND($G$5=\"No\",$G$6=\"Yes\",$G$7=\"Yes\"),\n(('GF diets L-Val + WD'!AR$351-'GF diets L-Val + WD'!AR5)*($G$8*$G$9/100)-'GF diets L-Val + WD'!AR$266)-\n(('GF diets L-Val + WD'!B$351-'GF diets L-Val + WD'!B5)*($G$8*$G$9/100)-'GF diets L-Val + WD'!B$266),\nIF(AND($G$5=\"Yes\",$G$6=\"Yes\",$G$7=\"Yes\"),\n(('GF diets L-Val + Fat + WD'!AR$351-'GF diets L-Val + Fat + WD'!AR5)*($G$8*$G$9/100)-'GF diets L-Val + Fat + WD'!AR$266)-\n(('GF diets L-Val + Fat + WD'!B$351-'GF diets L-Val + Fat + WD'!B5)*($G$8*$G$9/100)-'GF diets L-Val + Fat + WD'!B$266)\n))))))))","v":-0.47040822796571824},{"$f":"IF(AND($G$5=\"No\",$G$6=\"No\",$G$7=\"No\"),\n(('GF diets No L-Val'!AS351-'GF diets No L-Val'!AS5)*($G$8*$G$9/100)-'GF diets No L-Val'!AS$266)-\n(('GF diets No L-Val'!C351-'GF diets No L-Val'!C5)*($G$8*$G$9/100)-'GF diets No L-Val'!C$266),\nIF(AND($G$5=\"Yes\",$G$6=\"No\",$G$7=\"No\"),\n(('GF diets No L-Val + Fat'!AS$351-'GF diets No L-Val + Fat'!AS5)*($G$8*$G$9/100)-'GF diets No L-Val + Fat'!AS$266)-\n(('GF diets No L-Val + Fat'!C351-'GF diets No L-Val + Fat'!C5)*($G$8*$G$9/100)-'GF diets No L-Val + Fat'!C$266),\nIF(AND($G$5=\"No\",$G$6=\"No\",$G$7=\"Yes\"),\n(('GF diets L-Val'!AS$351-'GF diets L-Val'!AS5)*($G$8*$G$9/100)-'GF diets L-Val'!AS$266)-\n(('GF diets L-Val'!C351-'GF diets L-Val'!C5)*($G$8*$G$9/100)-'GF diets L-Val'!C$266),\nIF(AND($G$5=\"Yes\",$G$6=\"No\",$G$7=\"Yes\"),\n(('GF diets L-Val + Fat'!AS$351-'GF diets L-Val + Fat'!AS5)*($G$8*$G$9/100)-'GF diets L-Val + Fat'!AS$266)-\n(('GF diets L-Val + Fat'!C$351-'GF diets L-Val + Fat'!C5)*($G$8*$G$9/100)-'GF diets L-Val + Fat'!C$266),\nIF(AND($G$5=\"No\",$G$6=\"Yes\",$G$7=\"No\"),\n(('GF diets No L-Val + WD'!AS$351-'GF diets No L-Val + WD'!AS5)*($G$8*$G$9/100)-'GF diets No L-Val + WD'!AS$266)-\n(('GF diets No L-Val + WD'!C$351-'GF diets No L-Val + WD'!C5)*($G$8*$G$9/100)-'GF diets No L-Val + WD'!C$266),\nIF(AND($G$5=\"Yes\",$G$6=\"Yes\",$G$7=\"No\"),\n(('GF diets No L-Val + Fat + WD'!AS$351-'GF diets No L-Val + Fat + WD'!AS5)*($G$8*$G$9/100)-'GF diets No L-Val + Fat + WD'!AS$266)-\n(('GF diets No L-Val + Fat + WD'!C$351-'GF diets No L-Val + Fat + WD'!C5)*($G$8*$G$9/100)-'GF diets No L-Val + Fat + WD'!C$266),\nIF(AND($G$5=\"No\",$G$6=\"Yes\",$G$7=\"Yes\"),\n(('GF diets L-Val + WD'!AS$351-'GF diets L-Val + WD'!AS5)*($G$8*$G$9/100)-'GF diets L-Val + WD'!AS$266)-\n(('GF diets L-Val + WD'!C$351-'GF diets L-Val + WD'!C5)*($G$8*$G$9/100)-'GF diets L-Val + WD'!C$266),\nIF(AND($G$5=\"Yes\",$G$6=\"Yes\",$G$7=\"Yes\"),\n(('GF diets L-Val + Fat + WD'!AS$351-'GF diets L-Val + Fat + WD'!AS5)*($G$8*$G$9/100)-'GF diets L-Val + Fat + WD'!AS$266)-\n(('GF diets L-Val + Fat + WD'!C$351-'GF diets L-Val + Fat + WD'!C5)*($G$8*$G$9/100)-'GF diets L-Val + Fat + WD'!C$266)\n))))))))","v":-0.46211365668200699},{"$f":"IF(AND($G$5=\"No\",$G$6=\"No\",$G$7=\"No\"),\n(('GF diets No L-Val'!AT351-'GF diets No L-Val'!AT5)*($G$8*$G$9/100)-'GF diets No L-Val'!AT$266)-\n(('GF diets No L-Val'!D351-'GF diets No L-Val'!D5)*($G$8*$G$9/100)-'GF diets No L-Val'!D$266),\nIF(AND($G$5=\"Yes\",$G$6=\"No\",$G$7=\"No\"),\n(('GF diets No L-Val + Fat'!AT$351-'GF diets No L-Val + Fat'!AT5)*($G$8*$G$9/100)-'GF diets No L-Val + Fat'!AT$266)-\n(('GF diets No L-Val + Fat'!D351-'GF diets No L-Val + Fat'!D5)*($G$8*$G$9/100)-'GF diets No L-Val + Fat'!D$266),\nIF(AND($G$5=\"No\",$G$6=\"No\",$G$7=\"Yes\"),\n(('GF diets L-Val'!AT$351-'GF diets L-Val'!AT5)*($G$8*$G$9/100)-'GF diets L-Val'!AT$266)-\n(('GF diets L-Val'!D351-'GF diets L-Val'!D5)*($G$8*$G$9/100)-'GF diets L-Val'!D$266),\nIF(AND($G$5=\"Yes\",$G$6=\"No\",$G$7=\"Yes\"),\n(('GF diets L-Val + Fat'!AT$351-'GF diets L-Val + Fat'!AT5)*($G$8*$G$9/100)-'GF diets L-Val + Fat'!AT$266)-\n(('GF diets L-Val + Fat'!D$351-'GF diets L-Val + Fat'!D5)*($G$8*$G$9/100)-'GF diets L-Val + Fat'!D$266),\nIF(AND($G$5=\"No\",$G$6=\"Yes\",$G$7=\"No\"),\n(('GF diets No L-Val + WD'!AT$351-'GF diets No L-Val + WD'!AT5)*($G$8*$G$9/100)-'GF diets No L-Val + WD'!AT$266)-\n(('GF diets No L-Val + WD'!D$351-'GF diets No L-Val + WD'!D5)*($G$8*$G$9/100)-'GF diets No L-Val + WD'!D$266),\nIF(AND($G$5=\"Yes\",$G$6=\"Yes\",$G$7=\"No\"),\n(('GF diets No L-Val + Fat + WD'!AT$351-'GF diets No L-Val + Fat + WD'!AT5)*($G$8*$G$9/100)-'GF diets No L-Val + Fat + WD'!AT$266)-\n(('GF diets No L-Val + Fat + WD'!D$351-'GF diets No L-Val + Fat + WD'!D5)*($G$8*$G$9/100)-'GF diets No L-Val + Fat + WD'!D$266),\nIF(AND($G$5=\"No\",$G$6=\"Yes\",$G$7=\"Yes\"),\n(('GF diets L-Val + WD'!AT$351-'GF diets L-Val + WD'!AT5)*($G$8*$G$9/100)-'GF diets L-Val + WD'!AT$266)-\n(('GF diets L-Val + WD'!D$351-'GF diets L-Val + WD'!D5)*($G$8*$G$9/100)-'GF diets L-Val + WD'!D$266),\nIF(AND($G$5=\"Yes\",$G$6=\"Yes\",$G$7=\"Yes\"),\n(('GF diets L-Val + Fat + WD'!AT$351-'GF diets L-Val + Fat + WD'!AT5)*($G$8*$G$9/100)-'GF diets L-Val + Fat + WD'!AT$266)-\n(('GF diets L-Val + Fat + WD'!D$351-'GF diets L-Val + Fat + WD'!D5)*($G$8*$G$9/100)-'GF diets L-Val + Fat + WD'!D$266)\n))))))))","v":-0.62113110309946507},{"$f":"IF(AND($G$5=\"No\",$G$6=\"No\",$G$7=\"No\"),\n(('GF diets No L-Val'!AU351-'GF diets No L-Val'!AU5)*($G$8*$G$9/100)-'GF diets No L-Val'!AU$266)-\n(('GF diets No L-Val'!E351-'GF diets No L-Val'!E5)*($G$8*$G$9/100)-'GF diets No L-Val'!E$266),\nIF(AND($G$5=\"Yes\",$G$6=\"No\",$G$7=\"No\"),\n(('GF diets No L-Val + Fat'!AU$351-'GF diets No L-Val + Fat'!AU5)*($G$8*$G$9/100)-'GF diets No L-Val + Fat'!AU$266)-\n(('GF diets No L-Val + Fat'!E351-'GF diets No L-Val + Fat'!E5)*($G$8*$G$9/100)-'GF diets No L-Val + Fat'!E$266),\nIF(AND($G$5=\"No\",$G$6=\"No\",$G$7=\"Yes\"),\n(('GF diets L-Val'!AU$351-'GF diets L-Val'!AU5)*($G$8*$G$9/100)-'GF diets L-Val'!AU$266)-\n(('GF diets L-Val'!E351-'GF diets L-Val'!E5)*($G$8*$G$9/100)-'GF diets L-Val'!E$266),\nIF(AND($G$5=\"Yes\",$G$6=\"No\",$G$7=\"Yes\"),\n(('GF diets L-Val + Fat'!AU$351-'GF diets L-Val + Fat'!AU5)*($G$8*$G$9/100)-'GF diets L-Val + Fat'!AU$266)-\n(('GF diets L-Val + Fat'!E$351-'GF diets L-Val + Fat'!E5)*($G$8*$G$9/100)-'GF diets L-Val + Fat'!E$266),\nIF(AND($G$5=\"No\",$G$6=\"Yes\",$G$7=\"No\"),\n(('GF diets No L-Val + WD'!AU$351-'GF diets No L-Val + WD'!AU5)*($G$8*$G$9/100)-'GF diets No L-Val + WD'!AU$266)-\n(('GF diets No L-Val + WD'!E$351-'GF diets No L-Val + WD'!E5)*($G$8*$G$9/100)-'GF diets No L-Val + WD'!E$266),\nIF(AND($G$5=\"Yes\",$G$6=\"Yes\",$G$7=\"No\"),\n(('GF diets No L-Val + Fat + WD'!AU$351-'GF diets No L-Val + Fat + WD'!AU5)*($G$8*$G$9/100)-'GF diets No L-Val + Fat + WD'!AU$266)-\n(('GF diets No L-Val + Fat + WD'!E$351-'GF diets No L-Val + Fat + WD'!E5)*($G$8*$G$9/100)-'GF diets No L-Val + Fat + WD'!E$266),\nIF(AND($G$5=\"No\",$G$6=\"Yes\",$G$7=\"Yes\"),\n(('GF diets L-Val + WD'!AU$351-'GF diets L-Val + WD'!AU5)*($G$8*$G$9/100)-'GF diets L-Val + WD'!AU$266)-\n(('GF diets L-Val + WD'!E$351-'GF diets L-Val + WD'!E5)*($G$8*$G$9/100)-'GF diets L-Val + WD'!E$266),\nIF(AND($G$5=\"Yes\",$G$6=\"Yes\",$G$7=\"Yes\"),\n(('GF diets L-Val + Fat + WD'!AU$351-'GF diets L-Val + Fat + WD'!AU5)*($G$8*$G$9/100)-'GF diets L-Val + Fat + WD'!AU$266)-\n(('GF diets L-Val + Fat + WD'!E$351-'GF diets L-Val + Fat + WD'!E5)*($G$8*$G$9/100)-'GF diets L-Val + Fat + WD'!E$266)\n))))))))","v":-0.81516267046306545},{"$f":"IF(AND($G$5=\"No\",$G$6=\"No\",$G$7=\"No\"),\n(('GF diets No L-Val'!AV351-'GF diets No L-Val'!AV5)*($G$8*$G$9/100)-'GF diets No L-Val'!AV$266)-\n(('GF diets No L-Val'!F351-'GF diets No L-Val'!F5)*($G$8*$G$9/100)-'GF diets No L-Val'!F$266),\nIF(AND($G$5=\"Yes\",$G$6=\"No\",$G$7=\"No\"),\n(('GF diets No L-Val + Fat'!AV$351-'GF diets No L-Val + Fat'!AV5)*($G$8*$G$9/100)-'GF diets No L-Val + Fat'!AV$266)-\n(('GF diets No L-Val + Fat'!F351-'GF diets No L-Val + Fat'!F5)*($G$8*$G$9/100)-'GF diets No L-Val + Fat'!F$266),\nIF(AND($G$5=\"No\",$G$6=\"No\",$G$7=\"Yes\"),\n(('GF diets L-Val'!AV$351-'GF diets L-Val'!AV5)*($G$8*$G$9/100)-'GF diets L-Val'!AV$266)-\n(('GF diets L-Val'!F351-'GF diets L-Val'!F5)*($G$8*$G$9/100)-'GF diets L-Val'!F$266),\nIF(AND($G$5=\"Yes\",$G$6=\"No\",$G$7=\"Yes\"),\n(('GF diets L-Val + Fat'!AV$351-'GF diets L-Val + Fat'!AV5)*($G$8*$G$9/100)-'GF diets L-Val + Fat'!AV$266)-\n(('GF diets L-Val + Fat'!F$351-'GF diets L-Val + Fat'!F5)*($G$8*$G$9/100)-'GF diets L-Val + Fat'!F$266),\nIF(AND($G$5=\"No\",$G$6=\"Yes\",$G$7=\"No\"),\n(('GF diets No L-Val + WD'!AV$351-'GF diets No L-Val + WD'!AV5)*($G$8*$G$9/100)-'GF diets No L-Val + WD'!AV$266)-\n(('GF diets No L-Val + WD'!F$351-'GF diets No L-Val + WD'!F5)*($G$8*$G$9/100)-'GF diets No L-Val + WD'!F$266),\nIF(AND($G$5=\"Yes\",$G$6=\"Yes\",$G$7=\"No\"),\n(('GF diets No L-Val + Fat + WD'!AV$351-'GF diets No L-Val + Fat + WD'!AV5)*($G$8*$G$9/100)-'GF diets No L-Val + Fat + WD'!AV$266)-\n(('GF diets No L-Val + Fat + WD'!F$351-'GF diets No L-Val + Fat + WD'!F5)*($G$8*$G$9/100)-'GF diets No L-Val + Fat + WD'!F$266),\nIF(AND($G$5=\"No\",$G$6=\"Yes\",$G$7=\"Yes\"),\n(('GF diets L-Val + WD'!AV$351-'GF diets L-Val + WD'!AV5)*($G$8*$G$9/100)-'GF diets L-Val + WD'!AV$266)-\n(('GF diets L-Val + WD'!F$351-'GF diets L-Val + WD'!F5)*($G$8*$G$9/100)-'GF diets L-Val + WD'!F$266),\nIF(AND($G$5=\"Yes\",$G$6=\"Yes\",$G$7=\"Yes\"),\n(('GF diets L-Val + Fat + WD'!AV$351-'GF diets L-Val + Fat + WD'!AV5)*($G$8*$G$9/100)-'GF diets L-Val + Fat + WD'!AV$266)-\n(('GF diets L-Val + Fat + WD'!F$351-'GF diets L-Val + Fat + WD'!F5)*($G$8*$G$9/100)-'GF diets L-Val + Fat + WD'!F$266)\n))))))))","v":-1.0930041907672408},{"$f":"IF(AND($G$5=\"No\",$G$6=\"No\",$G$7=\"No\"),\n(('GF diets No L-Val'!AW351-'GF diets No L-Val'!AW5)*($G$8*$G$9/100)-'GF diets No L-Val'!AW$266)-\n(('GF diets No L-Val'!G351-'GF diets No L-Val'!G5)*($G$8*$G$9/100)-'GF diets No L-Val'!G$266),\nIF(AND($G$5=\"Yes\",$G$6=\"No\",$G$7=\"No\"),\n(('GF diets No L-Val + Fat'!AW$351-'GF diets No L-Val + Fat'!AW5)*($G$8*$G$9/100)-'GF diets No L-Val + Fat'!AW$266)-\n(('GF diets No L-Val + Fat'!G351-'GF diets No L-Val + Fat'!G5)*($G$8*$G$9/100)-'GF diets No L-Val + Fat'!G$266),\nIF(AND($G$5=\"No\",$G$6=\"No\",$G$7=\"Yes\"),\n(('GF diets L-Val'!AW$351-'GF diets L-Val'!AW5)*($G$8*$G$9/100)-'GF diets L-Val'!AW$266)-\n(('GF diets L-Val'!G351-'GF diets L-Val'!G5)*($G$8*$G$9/100)-'GF diets L-Val'!G$266),\nIF(AND($G$5=\"Yes\",$G$6=\"No\",$G$7=\"Yes\"),\n(('GF diets L-Val + Fat'!AW$351-'GF diets L-Val + Fat'!AW5)*($G$8*$G$9/100)-'GF diets L-Val + Fat'!AW$266)-\n(('GF diets L-Val + Fat'!G$351-'GF diets L-Val + Fat'!G5)*($G$8*$G$9/100)-'GF diets L-Val + Fat'!G$266),\nIF(AND($G$5=\"No\",$G$6=\"Yes\",$G$7=\"No\"),\n(('GF diets No L-Val + WD'!AW$351-'GF diets No L-Val + WD'!AW5)*($G$8*$G$9/100)-'GF diets No L-Val + WD'!AW$266)-\n(('GF diets No L-Val + WD'!G$351-'GF diets No L-Val + WD'!G5)*($G$8*$G$9/100)-'GF diets No L-Val + WD'!G$266),\nIF(AND($G$5=\"Yes\",$G$6=\"Yes\",$G$7=\"No\"),\n(('GF diets No L-Val + Fat + WD'!AW$351-'GF diets No L-Val + Fat + WD'!AW5)*($G$8*$G$9/100)-'GF diets No L-Val + Fat + WD'!AW$266)-\n(('GF diets No L-Val + Fat + WD'!G$351-'GF diets No L-Val + Fat + WD'!G5)*($G$8*$G$9/100)-'GF diets No L-Val + Fat + WD'!G$266),\nIF(AND($G$5=\"No\",$G$6=\"Yes\",$G$7=\"Yes\"),\n(('GF diets L-Val + WD'!AW$351-'GF diets L-Val + WD'!AW5)*($G$8*$G$9/100)-'GF diets L-Val + WD'!AW$266)-\n(('GF diets L-Val + WD'!G$351-'GF diets L-Val + WD'!G5)*($G$8*$G$9/100)-'GF diets L-Val + WD'!G$266),\nIF(AND($G$5=\"Yes\",$G$6=\"Yes\",$G$7=\"Yes\"),\n(('GF diets L-Val + Fat + WD'!AW$351-'GF diets L-Val + Fat + WD'!AW5)*($G$8*$G$9/100)-'GF diets L-Val + Fat + WD'!AW$266)-\n(('GF diets L-Val + Fat + WD'!G$351-'GF diets L-Val + Fat + WD'!G5)*($G$8*$G$9/100)-'GF diets L-Val + Fat + WD'!G$266)\n))))))))","v":-1.6437266669364554},-5.1055465159139519,{"$f":"I65-I64","v":-0.78328280210878987}]
[]
[null,"IOFC- Carcass, $/pig (compared to 0% DDGS)","Phase 1 ","Phase 2","Phase 3","Phase 4","Phase 5","Phase 6","Total","Incremental"]
[0.05,"5% DDGS",{"$f":"IF(AND($G$5=\"No\",$G$6=\"No\",$G$7=\"No\"),((('GF diets No L-Val'!I$351-'GF diets No L-Val'!I$5)*('GF diets No L-Val'!I$353/100)*'DDGS Calculator'!$G$8)-'GF diets No L-Val'!I$266)-(('GF diets No L-Val'!B$351-'GF diets No L-Val'!B$5)*('GF diets No L-Val'!B$353/100)*'DDGS Calculator'!$G$8-'GF diets No L-Val'!B$266),\nIF(AND($G$5=\"Yes\",$G$6=\"No\",$G$7=\"No\"),(('GF diets No L-Val + Fat'!I$351-'GF diets No L-Val + Fat'!I$5)*('GF diets No L-Val + Fat'!I$353/100)*'DDGS Calculator'!$G$8-'GF diets No L-Val + Fat'!I$266)-(('GF diets No L-Val + Fat'!B$351-'GF diets No L-Val + Fat'!B$5)*('GF diets No L-Val + Fat'!B$353/100)*'DDGS Calculator'!$G$8-'GF diets No L-Val + Fat'!B$266),\nIF(AND($G$5=\"No\",$G$6=\"No\",$G$7=\"Yes\"),(('GF diets L-Val'!I$351-'GF diets L-Val'!I$5)*('GF diets L-Val'!I$353/100)*'DDGS Calculator'!$G$8-'GF diets L-Val'!I$266)-(('GF diets L-Val'!B$351-'GF diets L-Val'!B$5)*('GF diets L-Val'!B$353/100)*'DDGS Calculator'!$G$8-'GF diets L-Val'!B$266),\nIF(AND($G$5=\"Yes\",$G$6=\"No\",$G$7=\"Yes\"),(('GF diets L-Val + Fat'!I$351-'GF diets L-Val + Fat'!I$5)*('GF diets L-Val + Fat'!I$353/100)*'DDGS Calculator'!$G$8-'GF diets L-Val + Fat'!I$266)-(('GF diets L-Val + Fat'!B$351-'GF diets L-Val + Fat'!B$5)*('GF diets L-Val + Fat'!B$353/100)*'DDGS Calculator'!$G$8-'GF diets L-Val + Fat'!B$266),\nIF(AND($G$5=\"No\",$G$6=\"Yes\",$G$7=\"No\"),(('GF diets No L-Val + WD'!I$351-'GF diets No L-Val + WD'!I$5)*('GF diets No L-Val + WD'!I$353/100)*'DDGS Calculator'!$G$8-'GF diets No L-Val + WD'!I$266)-(('GF diets No L-Val + WD'!B$351-'GF diets No L-Val + WD'!B$5)*('GF diets No L-Val + WD'!B$353/100)*'DDGS Calculator'!$G$8-'GF diets No L-Val + WD'!B$266),\nIF(AND($G$5=\"Yes\",$G$6=\"Yes\",$G$7=\"No\"),(('GF diets No L-Val + Fat + WD'!I$351-'GF diets No L-Val + Fat + WD'!I$5)*('GF diets No L-Val + Fat + WD'!I$353/100)*'DDGS Calculator'!$G$8-'GF diets No L-Val + Fat + WD'!I$266)-(('GF diets No L-Val + Fat + WD'!B$351-'GF diets No L-Val + Fat + WD'!B$5)*('GF diets No L-Val + Fat + WD'!B$353/100)*'DDGS Calculator'!$G$8-'GF diets No L-Val + Fat + WD'!B$266),\nIF(AND($G$5=\"No\",$G$6=\"Yes\",$G$7=\"Yes\"),(('GF diets L-Val + WD'!I$351-'GF diets L-Val + WD'!I$5)*('GF diets L-Val + WD'!I$353/100)*'DDGS Calculator'!$G$8-'GF diets L-Val + WD'!I$266)-(('GF diets L-Val + WD'!B$351-'GF diets L-Val + WD'!B$5)*('GF diets L-Val + WD'!B$353/100)*'DDGS Calculator'!$G$8-'GF diets L-Val + WD'!B$266),\nIF(AND($G$5=\"Yes\",$G$6=\"Yes\",$G$7=\"Yes\"),(('GF diets L-Val + Fat + WD'!I$351-'GF diets L-Val + Fat + WD'!I$5)*('GF diets L-Val + Fat + WD'!I$353/100)*'DDGS Calculator'!$G$8-'GF diets L-Val + Fat + WD'!I$266)-(('GF diets L-Val + Fat + WD'!B$351-'GF diets L-Val + Fat + WD'!B$5)*('GF diets L-Val + Fat + WD'!B$353/100)*'DDGS Calculator'!$G$8-'GF diets L-Val + Fat + WD'!B$266)))))))))","v":-0.15648504956637943},{"$f":"IF(AND($G$5=\"No\",$G$6=\"No\",$G$7=\"No\"),((('GF diets No L-Val'!J$351-'GF diets No L-Val'!J$5)*('GF diets No L-Val'!J$353/100)*'DDGS Calculator'!$G$8)-'GF diets No L-Val'!J$266)-(('GF diets No L-Val'!C$351-'GF diets No L-Val'!C$5)*('GF diets No L-Val'!C$353/100)*'DDGS Calculator'!$G$8-'GF diets No L-Val'!C$266),\nIF(AND($G$5=\"Yes\",$G$6=\"No\",$G$7=\"No\"),(('GF diets No L-Val + Fat'!J$351-'GF diets No L-Val + Fat'!J$5)*('GF diets No L-Val + Fat'!J$353/100)*'DDGS Calculator'!$G$8-'GF diets No L-Val + Fat'!J$266)-(('GF diets No L-Val + Fat'!C$351-'GF diets No L-Val + Fat'!C$5)*('GF diets No L-Val + Fat'!C$353/100)*'DDGS Calculator'!$G$8-'GF diets No L-Val + Fat'!C$266),\nIF(AND($G$5=\"No\",$G$6=\"No\",$G$7=\"Yes\"),(('GF diets L-Val'!J$351-'GF diets L-Val'!J$5)*('GF diets L-Val'!J$353/100)*'DDGS Calculator'!$G$8-'GF diets L-Val'!J$266)-(('GF diets L-Val'!C$351-'GF diets L-Val'!C$5)*('GF diets L-Val'!C$353/100)*'DDGS Calculator'!$G$8-'GF diets L-Val'!C$266),\nIF(AND($G$5=\"Yes\",$G$6=\"No\",$G$7=\"Yes\"),(('GF diets L-Val + Fat'!J$351-'GF diets L-Val + Fat'!J$5)*('GF diets L-Val + Fat'!J$353/100)*'DDGS Calculator'!$G$8-'GF diets L-Val + Fat'!J$266)-(('GF diets L-Val + Fat'!C$351-'GF diets L-Val + Fat'!C$5)*('GF diets L-Val + Fat'!C$353/100)*'DDGS Calculator'!$G$8-'GF diets L-Val + Fat'!C$266),\nIF(AND($G$5=\"No\",$G$6=\"Yes\",$G$7=\"No\"),(('GF diets No L-Val + WD'!J$351-'GF diets No L-Val + WD'!J$5)*('GF diets No L-Val + WD'!J$353/100)*'DDGS Calculator'!$G$8-'GF diets No L-Val + WD'!J$266)-(('GF diets No L-Val + WD'!C$351-'GF diets No L-Val + WD'!C$5)*('GF diets No L-Val + WD'!C$353/100)*'DDGS Calculator'!$G$8-'GF diets No L-Val + WD'!C$266),\nIF(AND($G$5=\"Yes\",$G$6=\"Yes\",$G$7=\"No\"),(('GF diets No L-Val + Fat + WD'!J$351-'GF diets No L-Val + Fat + WD'!J$5)*('GF diets No L-Val + Fat + WD'!J$353/100)*'DDGS Calculator'!$G$8-'GF diets No L-Val + Fat + WD'!J$266)-(('GF diets No L-Val + Fat + WD'!C$351-'GF diets No L-Val + Fat + WD'!C$5)*('GF diets No L-Val + Fat + WD'!C$353/100)*'DDGS Calculator'!$G$8-'GF diets No L-Val + Fat + WD'!C$266),\nIF(AND($G$5=\"No\",$G$6=\"Yes\",$G$7=\"Yes\"),(('GF diets L-Val + WD'!J$351-'GF diets L-Val + WD'!J$5)*('GF diets L-Val + WD'!J$353/100)*'DDGS Calculator'!$G$8-'GF diets L-Val + WD'!J$266)-(('GF diets L-Val + WD'!C$351-'GF diets L-Val + WD'!C$5)*('GF diets L-Val + WD'!C$353/100)*'DDGS Calculator'!$G$8-'GF diets L-Val + WD'!C$266),\nIF(AND($G$5=\"Yes\",$G$6=\"Yes\",$G$7=\"Yes\"),(('GF diets L-Val + Fat + WD'!J$351-'GF diets L-Val + Fat + WD'!J$5)*('GF diets L-Val + Fat + WD'!J$353/100)*'DDGS Calculator'!$G$8-'GF diets L-Val + Fat + WD'!J$266)-(('GF diets L-Val + Fat + WD'!C$351-'GF diets L-Val + Fat + WD'!C$5)*('GF diets L-Val + Fat + WD'!C$353/100)*'DDGS Calculator'!$G$8-'GF diets L-Val + Fat + WD'!C$266)))))))))","v":-0.14864398747503493},{"$f":"IF(AND($G$5=\"No\",$G$6=\"No\",$G$7=\"No\"),((('GF diets No L-Val'!K$351-'GF diets No L-Val'!K$5)*('GF diets No L-Val'!K$353/100)*'DDGS Calculator'!$G$8)-'GF diets No L-Val'!K$266)-(('GF diets No L-Val'!D$351-'GF diets No L-Val'!D$5)*('GF diets No L-Val'!D$353/100)*'DDGS Calculator'!$G$8-'GF diets No L-Val'!D$266),\nIF(AND($G$5=\"Yes\",$G$6=\"No\",$G$7=\"No\"),(('GF diets No L-Val + Fat'!K$351-'GF diets No L-Val + Fat'!K$5)*('GF diets No L-Val + Fat'!K$353/100)*'DDGS Calculator'!$G$8-'GF diets No L-Val + Fat'!K$266)-(('GF diets No L-Val + Fat'!D$351-'GF diets No L-Val + Fat'!D$5)*('GF diets No L-Val + Fat'!D$353/100)*'DDGS Calculator'!$G$8-'GF diets No L-Val + Fat'!D$266),\nIF(AND($G$5=\"No\",$G$6=\"No\",$G$7=\"Yes\"),(('GF diets L-Val'!K$351-'GF diets L-Val'!K$5)*('GF diets L-Val'!K$353/100)*'DDGS Calculator'!$G$8-'GF diets L-Val'!K$266)-(('GF diets L-Val'!D$351-'GF diets L-Val'!D$5)*('GF diets L-Val'!D$353/100)*'DDGS Calculator'!$G$8-'GF diets L-Val'!D$266),\nIF(AND($G$5=\"Yes\",$G$6=\"No\",$G$7=\"Yes\"),(('GF diets L-Val + Fat'!K$351-'GF diets L-Val + Fat'!K$5)*('GF diets L-Val + Fat'!K$353/100)*'DDGS Calculator'!$G$8-'GF diets L-Val + Fat'!K$266)-(('GF diets L-Val + Fat'!D$351-'GF diets L-Val + Fat'!D$5)*('GF diets L-Val + Fat'!D$353/100)*'DDGS Calculator'!$G$8-'GF diets L-Val + Fat'!D$266),\nIF(AND($G$5=\"No\",$G$6=\"Yes\",$G$7=\"No\"),(('GF diets No L-Val + WD'!K$351-'GF diets No L-Val + WD'!K$5)*('GF diets No L-Val + WD'!K$353/100)*'DDGS Calculator'!$G$8-'GF diets No L-Val + WD'!K$266)-(('GF diets No L-Val + WD'!D$351-'GF diets No L-Val + WD'!D$5)*('GF diets No L-Val + WD'!D$353/100)*'DDGS Calculator'!$G$8-'GF diets No L-Val + WD'!D$266),\nIF(AND($G$5=\"Yes\",$G$6=\"Yes\",$G$7=\"No\"),(('GF diets No L-Val + Fat + WD'!K$351-'GF diets No L-Val + Fat + WD'!K$5)*('GF diets No L-Val + Fat + WD'!K$353/100)*'DDGS Calculator'!$G$8-'GF diets No L-Val + Fat + WD'!K$266)-(('GF diets No L-Val + Fat + WD'!D$351-'GF diets No L-Val + Fat + WD'!D$5)*('GF diets No L-Val + Fat + WD'!D$353/100)*'DDGS Calculator'!$G$8-'GF diets No L-Val + Fat + WD'!D$266),\nIF(AND($G$5=\"No\",$G$6=\"Yes\",$G$7=\"Yes\"),(('GF diets L-Val + WD'!K$351-'GF diets L-Val + WD'!K$5)*('GF diets L-Val + WD'!K$353/100)*'DDGS Calculator'!$G$8-'GF diets L-Val + WD'!K$266)-(('GF diets L-Val + WD'!D$351-'GF diets L-Val + WD'!D$5)*('GF diets L-Val + WD'!D$353/100)*'DDGS Calculator'!$G$8-'GF diets L-Val + WD'!D$266),\nIF(AND($G$5=\"Yes\",$G$6=\"Yes\",$G$7=\"Yes\"),(('GF diets L-Val + Fat + WD'!K$351-'GF diets L-Val + Fat + WD'!K$5)*('GF diets L-Val + Fat + WD'!K$353/100)*'DDGS Calculator'!$G$8-'GF diets L-Val + Fat + WD'!K$266)-(('GF diets L-Val + Fat + WD'!D$351-'GF diets L-Val + Fat + WD'!D$5)*('GF diets L-Val + Fat + WD'!D$353/100)*'DDGS Calculator'!$G$8-'GF diets L-Val + Fat + WD'!D$266)))))))))","v":-0.17397940599968464},{"$f":"IF(AND($G$5=\"No\",$G$6=\"No\",$G$7=\"No\"),((('GF diets No L-Val'!L$351-'GF diets No L-Val'!L$5)*('GF diets No L-Val'!L$353/100)*'DDGS Calculator'!$G$8)-'GF diets No L-Val'!L$266)-(('GF diets No L-Val'!E$351-'GF diets No L-Val'!E$5)*('GF diets No L-Val'!E$353/100)*'DDGS Calculator'!$G$8-'GF diets No L-Val'!E$266),\nIF(AND($G$5=\"Yes\",$G$6=\"No\",$G$7=\"No\"),(('GF diets No L-Val + Fat'!L$351-'GF diets No L-Val + Fat'!L$5)*('GF diets No L-Val + Fat'!L$353/100)*'DDGS Calculator'!$G$8-'GF diets No L-Val + Fat'!L$266)-(('GF diets No L-Val + Fat'!E$351-'GF diets No L-Val + Fat'!E$5)*('GF diets No L-Val + Fat'!E$353/100)*'DDGS Calculator'!$G$8-'GF diets No L-Val + Fat'!E$266),\nIF(AND($G$5=\"No\",$G$6=\"No\",$G$7=\"Yes\"),(('GF diets L-Val'!L$351-'GF diets L-Val'!L$5)*('GF diets L-Val'!L$353/100)*'DDGS Calculator'!$G$8-'GF diets L-Val'!L$266)-(('GF diets L-Val'!E$351-'GF diets L-Val'!E$5)*('GF diets L-Val'!E$353/100)*'DDGS Calculator'!$G$8-'GF diets L-Val'!E$266),\nIF(AND($G$5=\"Yes\",$G$6=\"No\",$G$7=\"Yes\"),(('GF diets L-Val + Fat'!L$351-'GF diets L-Val + Fat'!L$5)*('GF diets L-Val + Fat'!L$353/100)*'DDGS Calculator'!$G$8-'GF diets L-Val + Fat'!L$266)-(('GF diets L-Val + Fat'!E$351-'GF diets L-Val + Fat'!E$5)*('GF diets L-Val + Fat'!E$353/100)*'DDGS Calculator'!$G$8-'GF diets L-Val + Fat'!E$266),\nIF(AND($G$5=\"No\",$G$6=\"Yes\",$G$7=\"No\"),(('GF diets No L-Val + WD'!L$351-'GF diets No L-Val + WD'!L$5)*('GF diets No L-Val + WD'!L$353/100)*'DDGS Calculator'!$G$8-'GF diets No L-Val + WD'!L$266)-(('GF diets No L-Val + WD'!E$351-'GF diets No L-Val + WD'!E$5)*('GF diets No L-Val + WD'!E$353/100)*'DDGS Calculator'!$G$8-'GF diets No L-Val + WD'!E$266),\nIF(AND($G$5=\"Yes\",$G$6=\"Yes\",$G$7=\"No\"),(('GF diets No L-Val + Fat + WD'!L$351-'GF diets No L-Val + Fat + WD'!L$5)*('GF diets No L-Val + Fat + WD'!L$353/100)*'DDGS Calculator'!$G$8-'GF diets No L-Val + Fat + WD'!L$266)-(('GF diets No L-Val + Fat + WD'!E$351-'GF diets No L-Val + Fat + WD'!E$5)*('GF diets No L-Val + Fat + WD'!E$353/100)*'DDGS Calculator'!$G$8-'GF diets No L-Val + Fat + WD'!E$266),\nIF(AND($G$5=\"No\",$G$6=\"Yes\",$G$7=\"Yes\"),(('GF diets L-Val + WD'!L$351-'GF diets L-Val + WD'!L$5)*('GF diets L-Val + WD'!L$353/100)*'DDGS Calculator'!$G$8-'GF diets L-Val + WD'!L$266)-(('GF diets L-Val + WD'!E$351-'GF diets L-Val + WD'!E$5)*('GF diets L-Val + WD'!E$353/100)*'DDGS Calculator'!$G$8-'GF diets L-Val + WD'!E$266),\nIF(AND($G$5=\"Yes\",$G$6=\"Yes\",$G$7=\"Yes\"),(('GF diets L-Val + Fat + WD'!L$351-'GF diets L-Val + Fat + WD'!L$5)*('GF diets L-Val + Fat + WD'!L$353/100)*'DDGS Calculator'!$G$8-'GF diets L-Val + Fat + WD'!L$266)-(('GF diets L-Val + Fat + WD'!E$351-'GF diets L-Val + Fat + WD'!E$5)*('GF diets L-Val + Fat + WD'!E$353/100)*'DDGS Calculator'!$G$8-'GF diets L-Val + Fat + WD'!E$266)))))))))","v":-0.18547103182824642},{"$f":"IF(AND($G$5=\"No\",$G$6=\"No\",$G$7=\"No\"),((('GF diets No L-Val'!M$351-'GF diets No L-Val'!M$5)*('GF diets No L-Val'!M$353/100)*'DDGS Calculator'!$G$8)-'GF diets No L-Val'!M$266)-(('GF diets No L-Val'!F$351-'GF diets No L-Val'!F$5)*('GF diets No L-Val'!F$353/100)*'DDGS Calculator'!$G$8-'GF diets No L-Val'!F$266),\nIF(AND($G$5=\"Yes\",$G$6=\"No\",$G$7=\"No\"),(('GF diets No L-Val + Fat'!M$351-'GF diets No L-Val + Fat'!M$5)*('GF diets No L-Val + Fat'!M$353/100)*'DDGS Calculator'!$G$8-'GF diets No L-Val + Fat'!M$266)-(('GF diets No L-Val + Fat'!F$351-'GF diets No L-Val + Fat'!F$5)*('GF diets No L-Val + Fat'!F$353/100)*'DDGS Calculator'!$G$8-'GF diets No L-Val + Fat'!F$266),\nIF(AND($G$5=\"No\",$G$6=\"No\",$G$7=\"Yes\"),(('GF diets L-Val'!M$351-'GF diets L-Val'!M$5)*('GF diets L-Val'!M$353/100)*'DDGS Calculator'!$G$8-'GF diets L-Val'!M$266)-(('GF diets L-Val'!F$351-'GF diets L-Val'!F$5)*('GF diets L-Val'!F$353/100)*'DDGS Calculator'!$G$8-'GF diets L-Val'!F$266),\nIF(AND($G$5=\"Yes\",$G$6=\"No\",$G$7=\"Yes\"),(('GF diets L-Val + Fat'!M$351-'GF diets L-Val + Fat'!M$5)*('GF diets L-Val + Fat'!M$353/100)*'DDGS Calculator'!$G$8-'GF diets L-Val + Fat'!M$266)-(('GF diets L-Val + Fat'!F$351-'GF diets L-Val + Fat'!F$5)*('GF diets L-Val + Fat'!F$353/100)*'DDGS Calculator'!$G$8-'GF diets L-Val + Fat'!F$266),\nIF(AND($G$5=\"No\",$G$6=\"Yes\",$G$7=\"No\"),(('GF diets No L-Val + WD'!M$351-'GF diets No L-Val + WD'!M$5)*('GF diets No L-Val + WD'!M$353/100)*'DDGS Calculator'!$G$8-'GF diets No L-Val + WD'!M$266)-(('GF diets No L-Val + WD'!F$351-'GF diets No L-Val + WD'!F$5)*('GF diets No L-Val + WD'!F$353/100)*'DDGS Calculator'!$G$8-'GF diets No L-Val + WD'!F$266),\nIF(AND($G$5=\"Yes\",$G$6=\"Yes\",$G$7=\"No\"),(('GF diets No L-Val + Fat + WD'!M$351-'GF diets No L-Val + Fat + WD'!M$5)*('GF diets No L-Val + Fat + WD'!M$353/100)*'DDGS Calculator'!$G$8-'GF diets No L-Val + Fat + WD'!M$266)-(('GF diets No L-Val + Fat + WD'!F$351-'GF diets No L-Val + Fat + WD'!F$5)*('GF diets No L-Val + Fat + WD'!F$353/100)*'DDGS Calculator'!$G$8-'GF diets No L-Val + Fat + WD'!F$266),\nIF(AND($G$5=\"No\",$G$6=\"Yes\",$G$7=\"Yes\"),(('GF diets L-Val + WD'!M$351-'GF diets L-Val + WD'!M$5)*('GF diets L-Val + WD'!M$353/100)*'DDGS Calculator'!$G$8-'GF diets L-Val + WD'!M$266)-(('GF diets L-Val + WD'!F$351-'GF diets L-Val + WD'!F$5)*('GF diets L-Val + WD'!F$353/100)*'DDGS Calculator'!$G$8-'GF diets L-Val + WD'!F$266),\nIF(AND($G$5=\"Yes\",$G$6=\"Yes\",$G$7=\"Yes\"),(('GF diets L-Val + Fat + WD'!M$351-'GF diets L-Val + Fat + WD'!M$5)*('GF diets L-Val + Fat + WD'!M$353/100)*'DDGS Calculator'!$G$8-'GF diets L-Val + Fat + WD'!M$266)-(('GF diets L-Val + Fat + WD'!F$351-'GF diets L-Val + Fat + WD'!F$5)*('GF diets L-Val + Fat + WD'!F$353/100)*'DDGS Calculator'!$G$8-'GF diets L-Val + Fat + WD'!F$266)))))))))","v":-0.21932326725070794},{"$f":"IF(AND($G$5=\"No\",$G$6=\"No\",$G$7=\"No\"),((('GF diets No L-Val'!N$351-'GF diets No L-Val'!N$5)*('GF diets No L-Val'!N$353/100)*'DDGS Calculator'!$G$8)-'GF diets No L-Val'!N$266)-(('GF diets No L-Val'!G$351-'GF diets No L-Val'!G$5)*('GF diets No L-Val'!G$353/100)*'DDGS Calculator'!$G$8-'GF diets No L-Val'!G$266),\nIF(AND($G$5=\"Yes\",$G$6=\"No\",$G$7=\"No\"),(('GF diets No L-Val + Fat'!N$351-'GF diets No L-Val + Fat'!N$5)*('GF diets No L-Val + Fat'!N$353/100)*'DDGS Calculator'!$G$8-'GF diets No L-Val + Fat'!N$266)-(('GF diets No L-Val + Fat'!G$351-'GF diets No L-Val + Fat'!G$5)*('GF diets No L-Val + Fat'!G$353/100)*'DDGS Calculator'!$G$8-'GF diets No L-Val + Fat'!G$266),\nIF(AND($G$5=\"No\",$G$6=\"No\",$G$7=\"Yes\"),(('GF diets L-Val'!N$351-'GF diets L-Val'!N$5)*('GF diets L-Val'!N$353/100)*'DDGS Calculator'!$G$8-'GF diets L-Val'!N$266)-(('GF diets L-Val'!G$351-'GF diets L-Val'!G$5)*('GF diets L-Val'!G$353/100)*'DDGS Calculator'!$G$8-'GF diets L-Val'!G$266),\nIF(AND($G$5=\"Yes\",$G$6=\"No\",$G$7=\"Yes\"),(('GF diets L-Val + Fat'!N$351-'GF diets L-Val + Fat'!N$5)*('GF diets L-Val + Fat'!N$353/100)*'DDGS Calculator'!$G$8-'GF diets L-Val + Fat'!N$266)-(('GF diets L-Val + Fat'!G$351-'GF diets L-Val + Fat'!G$5)*('GF diets L-Val + Fat'!G$353/100)*'DDGS Calculator'!$G$8-'GF diets L-Val + Fat'!G$266),\nIF(AND($G$5=\"No\",$G$6=\"Yes\",$G$7=\"No\"),(('GF diets No L-Val + WD'!N$351-'GF diets No L-Val + WD'!N$5)*('GF diets No L-Val + WD'!N$353/100)*'DDGS Calculator'!$G$8-'GF diets No L-Val + WD'!N$266)-(('GF diets No L-Val + WD'!G$351-'GF diets No L-Val + WD'!G$5)*('GF diets No L-Val + WD'!G$353/100)*'DDGS Calculator'!$G$8-'GF diets No L-Val + WD'!G$266),\nIF(AND($G$5=\"Yes\",$G$6=\"Yes\",$G$7=\"No\"),(('GF diets No L-Val + Fat + WD'!N$351-'GF diets No L-Val + Fat + WD'!N$5)*('GF diets No L-Val + Fat + WD'!N$353/100)*'DDGS Calculator'!$G$8-'GF diets No L-Val + Fat + WD'!N$266)-(('GF diets No L-Val + Fat + WD'!G$351-'GF diets No L-Val + Fat + WD'!G$5)*('GF diets No L-Val + Fat + WD'!G$353/100)*'DDGS Calculator'!$G$8-'GF diets No L-Val + Fat + WD'!G$266),\nIF(AND($G$5=\"No\",$G$6=\"Yes\",$G$7=\"Yes\"),(('GF diets L-Val + WD'!N$351-'GF diets L-Val + WD'!N$5)*('GF diets L-Val + WD'!N$353/100)*'DDGS Calculator'!$G$8-'GF diets L-Val + WD'!N$266)-(('GF diets L-Val + WD'!G$351-'GF diets L-Val + WD'!G$5)*('GF diets L-Val + WD'!G$353/100)*'DDGS Calculator'!$G$8-'GF diets L-Val + WD'!G$266),\nIF(AND($G$5=\"Yes\",$G$6=\"Yes\",$G$7=\"Yes\"),(('GF diets L-Val + Fat + WD'!N$351-'GF diets L-Val + Fat + WD'!N$5)*('GF diets L-Val + Fat + WD'!N$353/100)*'DDGS Calculator'!$G$8-'GF diets L-Val + Fat + WD'!N$266)-(('GF diets L-Val + Fat + WD'!G$351-'GF diets L-Val + Fat + WD'!G$5)*('GF diets L-Val + Fat + WD'!G$353/100)*'DDGS Calculator'!$G$8-'GF diets L-Val + Fat + WD'!G$266)))))))))","v":-0.30341584503246111},{"$f":"SUM(C68:H68)","v":-1.1873185871525145}]
[0.1,"10% DDGS",{"$f":"IF(AND($G$5=\"No\",$G$6=\"No\",$G$7=\"No\"),((('GF diets No L-Val'!P$351-'GF diets No L-Val'!P$5)*('GF diets No L-Val'!P$353/100)*'DDGS Calculator'!$G$8)-'GF diets No L-Val'!P$266)-(('GF diets No L-Val'!B$351-'GF diets No L-Val'!B$5)*('GF diets No L-Val'!B$353/100)*'DDGS Calculator'!$G$8-'GF diets No L-Val'!B$266),\nIF(AND($G$5=\"Yes\",$G$6=\"No\",$G$7=\"No\"),(('GF diets No L-Val + Fat'!P$351-'GF diets No L-Val + Fat'!P$5)*('GF diets No L-Val + Fat'!P$353/100)*'DDGS Calculator'!$G$8-'GF diets No L-Val + Fat'!P$266)-(('GF diets No L-Val + Fat'!B$351-'GF diets No L-Val + Fat'!B$5)*('GF diets No L-Val + Fat'!B$353/100)*'DDGS Calculator'!$G$8-'GF diets No L-Val + Fat'!B$266),\nIF(AND($G$5=\"No\",$G$6=\"No\",$G$7=\"Yes\"),(('GF diets L-Val'!P$351-'GF diets L-Val'!P$5)*('GF diets L-Val'!P$353/100)*'DDGS Calculator'!$G$8-'GF diets L-Val'!P$266)-(('GF diets L-Val'!B$351-'GF diets L-Val'!B$5)*('GF diets L-Val'!B$353/100)*'DDGS Calculator'!$G$8-'GF diets L-Val'!B$266),\nIF(AND($G$5=\"Yes\",$G$6=\"No\",$G$7=\"Yes\"),(('GF diets L-Val + Fat'!P$351-'GF diets L-Val + Fat'!P$5)*('GF diets L-Val + Fat'!P$353/100)*'DDGS Calculator'!$G$8-'GF diets L-Val + Fat'!P$266)-(('GF diets L-Val + Fat'!B$351-'GF diets L-Val + Fat'!B$5)*('GF diets L-Val + Fat'!B$353/100)*'DDGS Calculator'!$G$8-'GF diets L-Val + Fat'!B$266),\nIF(AND($G$5=\"No\",$G$6=\"Yes\",$G$7=\"No\"),(('GF diets No L-Val + WD'!P$351-'GF diets No L-Val + WD'!P$5)*('GF diets No L-Val + WD'!P$353/100)*'DDGS Calculator'!$G$8-'GF diets No L-Val + WD'!P$266)-(('GF diets No L-Val + WD'!B$351-'GF diets No L-Val + WD'!B$5)*('GF diets No L-Val + WD'!B$353/100)*'DDGS Calculator'!$G$8-'GF diets No L-Val + WD'!B$266),\nIF(AND($G$5=\"Yes\",$G$6=\"Yes\",$G$7=\"No\"),(('GF diets No L-Val + Fat + WD'!P$351-'GF diets No L-Val + Fat + WD'!P$5)*('GF diets No L-Val + Fat + WD'!P$353/100)*'DDGS Calculator'!$G$8-'GF diets No L-Val + Fat + WD'!P$266)-(('GF diets No L-Val + Fat + WD'!B$351-'GF diets No L-Val + Fat + WD'!B$5)*('GF diets No L-Val + Fat + WD'!B$353/100)*'DDGS Calculator'!$G$8-'GF diets No L-Val + Fat + WD'!B$266),\nIF(AND($G$5=\"No\",$G$6=\"Yes\",$G$7=\"Yes\"),(('GF diets L-Val + WD'!P$351-'GF diets L-Val + WD'!P$5)*('GF diets L-Val + WD'!P$353/100)*'DDGS Calculator'!$G$8-'GF diets L-Val + WD'!P$266)-(('GF diets L-Val + WD'!B$351-'GF diets L-Val + WD'!B$5)*('GF diets L-Val + WD'!B$353/100)*'DDGS Calculator'!$G$8-'GF diets L-Val + WD'!B$266),\nIF(AND($G$5=\"Yes\",$G$6=\"Yes\",$G$7=\"Yes\"),(('GF diets L-Val + Fat + WD'!P$351-'GF diets L-Val + Fat + WD'!P$5)*('GF diets L-Val + Fat + WD'!P$353/100)*'DDGS Calculator'!$G$8-'GF diets L-Val + Fat + WD'!P$266)-(('GF diets L-Val + Fat + WD'!B$351-'GF diets L-Val + Fat + WD'!B$5)*('GF diets L-Val + Fat + WD'!B$353/100)*'DDGS Calculator'!$G$8-'GF diets L-Val + Fat + WD'!B$266)))))))))","v":-0.29902314991355361},{"$f":"IF(AND($G$5=\"No\",$G$6=\"No\",$G$7=\"No\"),((('GF diets No L-Val'!Q$351-'GF diets No L-Val'!Q$5)*('GF diets No L-Val'!Q$353/100)*'DDGS Calculator'!$G$8)-'GF diets No L-Val'!Q$266)-(('GF diets No L-Val'!C$351-'GF diets No L-Val'!C$5)*('GF diets No L-Val'!C$353/100)*'DDGS Calculator'!$G$8-'GF diets No L-Val'!C$266),\nIF(AND($G$5=\"Yes\",$G$6=\"No\",$G$7=\"No\"),(('GF diets No L-Val + Fat'!Q$351-'GF diets No L-Val + Fat'!Q$5)*('GF diets No L-Val + Fat'!Q$353/100)*'DDGS Calculator'!$G$8-'GF diets No L-Val + Fat'!Q$266)-(('GF diets No L-Val + Fat'!C$351-'GF diets No L-Val + Fat'!C$5)*('GF diets No L-Val + Fat'!C$353/100)*'DDGS Calculator'!$G$8-'GF diets No L-Val + Fat'!C$266),\nIF(AND($G$5=\"No\",$G$6=\"No\",$G$7=\"Yes\"),(('GF diets L-Val'!Q$351-'GF diets L-Val'!Q$5)*('GF diets L-Val'!Q$353/100)*'DDGS Calculator'!$G$8-'GF diets L-Val'!Q$266)-(('GF diets L-Val'!C$351-'GF diets L-Val'!C$5)*('GF diets L-Val'!C$353/100)*'DDGS Calculator'!$G$8-'GF diets L-Val'!C$266),\nIF(AND($G$5=\"Yes\",$G$6=\"No\",$G$7=\"Yes\"),(('GF diets L-Val + Fat'!Q$351-'GF diets L-Val + Fat'!Q$5)*('GF diets L-Val + Fat'!Q$353/100)*'DDGS Calculator'!$G$8-'GF diets L-Val + Fat'!Q$266)-(('GF diets L-Val + Fat'!C$351-'GF diets L-Val + Fat'!C$5)*('GF diets L-Val + Fat'!C$353/100)*'DDGS Calculator'!$G$8-'GF diets L-Val + Fat'!C$266),\nIF(AND($G$5=\"No\",$G$6=\"Yes\",$G$7=\"No\"),(('GF diets No L-Val + WD'!Q$351-'GF diets No L-Val + WD'!Q$5)*('GF diets No L-Val + WD'!Q$353/100)*'DDGS Calculator'!$G$8-'GF diets No L-Val + WD'!Q$266)-(('GF diets No L-Val + WD'!C$351-'GF diets No L-Val + WD'!C$5)*('GF diets No L-Val + WD'!C$353/100)*'DDGS Calculator'!$G$8-'GF diets No L-Val + WD'!C$266),\nIF(AND($G$5=\"Yes\",$G$6=\"Yes\",$G$7=\"No\"),(('GF diets No L-Val + Fat + WD'!Q$351-'GF diets No L-Val + Fat + WD'!Q$5)*('GF diets No L-Val + Fat + WD'!Q$353/100)*'DDGS Calculator'!$G$8-'GF diets No L-Val + Fat + WD'!Q$266)-(('GF diets No L-Val + Fat + WD'!C$351-'GF diets No L-Val + Fat + WD'!C$5)*('GF diets No L-Val + Fat + WD'!C$353/100)*'DDGS Calculator'!$G$8-'GF diets No L-Val + Fat + WD'!C$266),\nIF(AND($G$5=\"No\",$G$6=\"Yes\",$G$7=\"Yes\"),(('GF diets L-Val + WD'!Q$351-'GF diets L-Val + WD'!Q$5)*('GF diets L-Val + WD'!Q$353/100)*'DDGS Calculator'!$G$8-'GF diets L-Val + WD'!Q$266)-(('GF diets L-Val + WD'!C$351-'GF diets L-Val + WD'!C$5)*('GF diets L-Val + WD'!C$353/100)*'DDGS Calculator'!$G$8-'GF diets L-Val + WD'!C$266),\nIF(AND($G$5=\"Yes\",$G$6=\"Yes\",$G$7=\"Yes\"),(('GF diets L-Val + Fat + WD'!Q$351-'GF diets L-Val + Fat + WD'!Q$5)*('GF diets L-Val + Fat + WD'!Q$353/100)*'DDGS Calculator'!$G$8-'GF diets L-Val + Fat + WD'!Q$266)-(('GF diets L-Val + Fat + WD'!C$351-'GF diets L-Val + Fat + WD'!C$5)*('GF diets L-Val + Fat + WD'!C$353/100)*'DDGS Calculator'!$G$8-'GF diets L-Val + Fat + WD'!C$266)))))))))","v":-0.28612604122028351},{"$f":"IF(AND($G$5=\"No\",$G$6=\"No\",$G$7=\"No\"),((('GF diets No L-Val'!R$351-'GF diets No L-Val'!R$5)*('GF diets No L-Val'!R$353/100)*'DDGS Calculator'!$G$8)-'GF diets No L-Val'!R$266)-(('GF diets No L-Val'!D$351-'GF diets No L-Val'!D$5)*('GF diets No L-Val'!D$353/100)*'DDGS Calculator'!$G$8-'GF diets No L-Val'!D$266),\nIF(AND($G$5=\"Yes\",$G$6=\"No\",$G$7=\"No\"),(('GF diets No L-Val + Fat'!R$351-'GF diets No L-Val + Fat'!R$5)*('GF diets No L-Val + Fat'!R$353/100)*'DDGS Calculator'!$G$8-'GF diets No L-Val + Fat'!R$266)-(('GF diets No L-Val + Fat'!D$351-'GF diets No L-Val + Fat'!D$5)*('GF diets No L-Val + Fat'!D$353/100)*'DDGS Calculator'!$G$8-'GF diets No L-Val + Fat'!D$266),\nIF(AND($G$5=\"No\",$G$6=\"No\",$G$7=\"Yes\"),(('GF diets L-Val'!R$351-'GF diets L-Val'!R$5)*('GF diets L-Val'!R$353/100)*'DDGS Calculator'!$G$8-'GF diets L-Val'!R$266)-(('GF diets L-Val'!D$351-'GF diets L-Val'!D$5)*('GF diets L-Val'!D$353/100)*'DDGS Calculator'!$G$8-'GF diets L-Val'!D$266),\nIF(AND($G$5=\"Yes\",$G$6=\"No\",$G$7=\"Yes\"),(('GF diets L-Val + Fat'!R$351-'GF diets L-Val + Fat'!R$5)*('GF diets L-Val + Fat'!R$353/100)*'DDGS Calculator'!$G$8-'GF diets L-Val + Fat'!R$266)-(('GF diets L-Val + Fat'!D$351-'GF diets L-Val + Fat'!D$5)*('GF diets L-Val + Fat'!D$353/100)*'DDGS Calculator'!$G$8-'GF diets L-Val + Fat'!D$266),\nIF(AND($G$5=\"No\",$G$6=\"Yes\",$G$7=\"No\"),(('GF diets No L-Val + WD'!R$351-'GF diets No L-Val + WD'!R$5)*('GF diets No L-Val + WD'!R$353/100)*'DDGS Calculator'!$G$8-'GF diets No L-Val + WD'!R$266)-(('GF diets No L-Val + WD'!D$351-'GF diets No L-Val + WD'!D$5)*('GF diets No L-Val + WD'!D$353/100)*'DDGS Calculator'!$G$8-'GF diets No L-Val + WD'!D$266),\nIF(AND($G$5=\"Yes\",$G$6=\"Yes\",$G$7=\"No\"),(('GF diets No L-Val + Fat + WD'!R$351-'GF diets No L-Val + Fat + WD'!R$5)*('GF diets No L-Val + Fat + WD'!R$353/100)*'DDGS Calculator'!$G$8-'GF diets No L-Val + Fat + WD'!R$266)-(('GF diets No L-Val + Fat + WD'!D$351-'GF diets No L-Val + Fat + WD'!D$5)*('GF diets No L-Val + Fat + WD'!D$353/100)*'DDGS Calculator'!$G$8-'GF diets No L-Val + Fat + WD'!D$266),\nIF(AND($G$5=\"No\",$G$6=\"Yes\",$G$7=\"Yes\"),(('GF diets L-Val + WD'!R$351-'GF diets L-Val + WD'!R$5)*('GF diets L-Val + WD'!R$353/100)*'DDGS Calculator'!$G$8-'GF diets L-Val + WD'!R$266)-(('GF diets L-Val + WD'!D$351-'GF diets L-Val + WD'!D$5)*('GF diets L-Val + WD'!D$353/100)*'DDGS Calculator'!$G$8-'GF diets L-Val + WD'!D$266),\nIF(AND($G$5=\"Yes\",$G$6=\"Yes\",$G$7=\"Yes\"),(('GF diets L-Val + Fat + WD'!R$351-'GF diets L-Val + Fat + WD'!R$5)*('GF diets L-Val + Fat + WD'!R$353/100)*'DDGS Calculator'!$G$8-'GF diets L-Val + Fat + WD'!R$266)-(('GF diets L-Val + Fat + WD'!D$351-'GF diets L-Val + Fat + WD'!D$5)*('GF diets L-Val + Fat + WD'!D$353/100)*'DDGS Calculator'!$G$8-'GF diets L-Val + Fat + WD'!D$266)))))))))","v":-0.3373646483913717},{"$f":"IF(AND($G$5=\"No\",$G$6=\"No\",$G$7=\"No\"),((('GF diets No L-Val'!S$351-'GF diets No L-Val'!S$5)*('GF diets No L-Val'!S$353/100)*'DDGS Calculator'!$G$8)-'GF diets No L-Val'!S$266)-(('GF diets No L-Val'!E$351-'GF diets No L-Val'!E$5)*('GF diets No L-Val'!E$353/100)*'DDGS Calculator'!$G$8-'GF diets No L-Val'!E$266),\nIF(AND($G$5=\"Yes\",$G$6=\"No\",$G$7=\"No\"),(('GF diets No L-Val + Fat'!S$351-'GF diets No L-Val + Fat'!S$5)*('GF diets No L-Val + Fat'!S$353/100)*'DDGS Calculator'!$G$8-'GF diets No L-Val + Fat'!S$266)-(('GF diets No L-Val + Fat'!E$351-'GF diets No L-Val + Fat'!E$5)*('GF diets No L-Val + Fat'!E$353/100)*'DDGS Calculator'!$G$8-'GF diets No L-Val + Fat'!E$266),\nIF(AND($G$5=\"No\",$G$6=\"No\",$G$7=\"Yes\"),(('GF diets L-Val'!S$351-'GF diets L-Val'!S$5)*('GF diets L-Val'!S$353/100)*'DDGS Calculator'!$G$8-'GF diets L-Val'!S$266)-(('GF diets L-Val'!E$351-'GF diets L-Val'!E$5)*('GF diets L-Val'!E$353/100)*'DDGS Calculator'!$G$8-'GF diets L-Val'!E$266),\nIF(AND($G$5=\"Yes\",$G$6=\"No\",$G$7=\"Yes\"),(('GF diets L-Val + Fat'!S$351-'GF diets L-Val + Fat'!S$5)*('GF diets L-Val + Fat'!S$353/100)*'DDGS Calculator'!$G$8-'GF diets L-Val + Fat'!S$266)-(('GF diets L-Val + Fat'!E$351-'GF diets L-Val + Fat'!E$5)*('GF diets L-Val + Fat'!E$353/100)*'DDGS Calculator'!$G$8-'GF diets L-Val + Fat'!E$266),\nIF(AND($G$5=\"No\",$G$6=\"Yes\",$G$7=\"No\"),(('GF diets No L-Val + WD'!S$351-'GF diets No L-Val + WD'!S$5)*('GF diets No L-Val + WD'!S$353/100)*'DDGS Calculator'!$G$8-'GF diets No L-Val + WD'!S$266)-(('GF diets No L-Val + WD'!E$351-'GF diets No L-Val + WD'!E$5)*('GF diets No L-Val + WD'!E$353/100)*'DDGS Calculator'!$G$8-'GF diets No L-Val + WD'!E$266),\nIF(AND($G$5=\"Yes\",$G$6=\"Yes\",$G$7=\"No\"),(('GF diets No L-Val + Fat + WD'!S$351-'GF diets No L-Val + Fat + WD'!S$5)*('GF diets No L-Val + Fat + WD'!S$353/100)*'DDGS Calculator'!$G$8-'GF diets No L-Val + Fat + WD'!S$266)-(('GF diets No L-Val + Fat + WD'!E$351-'GF diets No L-Val + Fat + WD'!E$5)*('GF diets No L-Val + Fat + WD'!E$353/100)*'DDGS Calculator'!$G$8-'GF diets No L-Val + Fat + WD'!E$266),\nIF(AND($G$5=\"No\",$G$6=\"Yes\",$G$7=\"Yes\"),(('GF diets L-Val + WD'!S$351-'GF diets L-Val + WD'!S$5)*('GF diets L-Val + WD'!S$353/100)*'DDGS Calculator'!$G$8-'GF diets L-Val + WD'!S$266)-(('GF diets L-Val + WD'!E$351-'GF diets L-Val + WD'!E$5)*('GF diets L-Val + WD'!E$353/100)*'DDGS Calculator'!$G$8-'GF diets L-Val + WD'!E$266),\nIF(AND($G$5=\"Yes\",$G$6=\"Yes\",$G$7=\"Yes\"),(('GF diets L-Val + Fat + WD'!S$351-'GF diets L-Val + Fat + WD'!S$5)*('GF diets L-Val + Fat + WD'!S$353/100)*'DDGS Calculator'!$G$8-'GF diets L-Val + Fat + WD'!S$266)-(('GF diets L-Val + Fat + WD'!E$351-'GF diets L-Val + Fat + WD'!E$5)*('GF diets L-Val + Fat + WD'!E$353/100)*'DDGS Calculator'!$G$8-'GF diets L-Val + Fat + WD'!E$266)))))))))","v":-0.37101419078775422},{"$f":"IF(AND($G$5=\"No\",$G$6=\"No\",$G$7=\"No\"),((('GF diets No L-Val'!T$351-'GF diets No L-Val'!T$5)*('GF diets No L-Val'!T$353/100)*'DDGS Calculator'!$G$8)-'GF diets No L-Val'!T$266)-(('GF diets No L-Val'!F$351-'GF diets No L-Val'!F$5)*('GF diets No L-Val'!F$353/100)*'DDGS Calculator'!$G$8-'GF diets No L-Val'!F$266),\nIF(AND($G$5=\"Yes\",$G$6=\"No\",$G$7=\"No\"),(('GF diets No L-Val + Fat'!T$351-'GF diets No L-Val + Fat'!T$5)*('GF diets No L-Val + Fat'!T$353/100)*'DDGS Calculator'!$G$8-'GF diets No L-Val + Fat'!T$266)-(('GF diets No L-Val + Fat'!F$351-'GF diets No L-Val + Fat'!F$5)*('GF diets No L-Val + Fat'!F$353/100)*'DDGS Calculator'!$G$8-'GF diets No L-Val + Fat'!F$266),\nIF(AND($G$5=\"No\",$G$6=\"No\",$G$7=\"Yes\"),(('GF diets L-Val'!T$351-'GF diets L-Val'!T$5)*('GF diets L-Val'!T$353/100)*'DDGS Calculator'!$G$8-'GF diets L-Val'!T$266)-(('GF diets L-Val'!F$351-'GF diets L-Val'!F$5)*('GF diets L-Val'!F$353/100)*'DDGS Calculator'!$G$8-'GF diets L-Val'!F$266),\nIF(AND($G$5=\"Yes\",$G$6=\"No\",$G$7=\"Yes\"),(('GF diets L-Val + Fat'!T$351-'GF diets L-Val + Fat'!T$5)*('GF diets L-Val + Fat'!T$353/100)*'DDGS Calculator'!$G$8-'GF diets L-Val + Fat'!T$266)-(('GF diets L-Val + Fat'!F$351-'GF diets L-Val + Fat'!F$5)*('GF diets L-Val + Fat'!F$353/100)*'DDGS Calculator'!$G$8-'GF diets L-Val + Fat'!F$266),\nIF(AND($G$5=\"No\",$G$6=\"Yes\",$G$7=\"No\"),(('GF diets No L-Val + WD'!T$351-'GF diets No L-Val + WD'!T$5)*('GF diets No L-Val + WD'!T$353/100)*'DDGS Calculator'!$G$8-'GF diets No L-Val + WD'!T$266)-(('GF diets No L-Val + WD'!F$351-'GF diets No L-Val + WD'!F$5)*('GF diets No L-Val + WD'!F$353/100)*'DDGS Calculator'!$G$8-'GF diets No L-Val + WD'!F$266),\nIF(AND($G$5=\"Yes\",$G$6=\"Yes\",$G$7=\"No\"),(('GF diets No L-Val + Fat + WD'!T$351-'GF diets No L-Val + Fat + WD'!T$5)*('GF diets No L-Val + Fat + WD'!T$353/100)*'DDGS Calculator'!$G$8-'GF diets No L-Val + Fat + WD'!T$266)-(('GF diets No L-Val + Fat + WD'!F$351-'GF diets No L-Val + Fat + WD'!F$5)*('GF diets No L-Val + Fat + WD'!F$353/100)*'DDGS Calculator'!$G$8-'GF diets No L-Val + Fat + WD'!F$266),\nIF(AND($G$5=\"No\",$G$6=\"Yes\",$G$7=\"Yes\"),(('GF diets L-Val + WD'!T$351-'GF diets L-Val + WD'!T$5)*('GF diets L-Val + WD'!T$353/100)*'DDGS Calculator'!$G$8-'GF diets L-Val + WD'!T$266)-(('GF diets L-Val + WD'!F$351-'GF diets L-Val + WD'!F$5)*('GF diets L-Val + WD'!F$353/100)*'DDGS Calculator'!$G$8-'GF diets L-Val + WD'!F$266),\nIF(AND($G$5=\"Yes\",$G$6=\"Yes\",$G$7=\"Yes\"),(('GF diets L-Val + Fat + WD'!T$351-'GF diets L-Val + Fat + WD'!T$5)*('GF diets L-Val + Fat + WD'!T$353/100)*'DDGS Calculator'!$G$8-'GF diets L-Val + Fat + WD'!T$266)-(('GF diets L-Val + Fat + WD'!F$351-'GF diets L-Val + Fat + WD'!F$5)*('GF diets L-Val + Fat + WD'!F$353/100)*'DDGS Calculator'!$G$8-'GF diets L-Val + Fat + WD'!F$266)))))))))","v":-0.44909260222712888},{"$f":"IF(AND($G$5=\"No\",$G$6=\"No\",$G$7=\"No\"),((('GF diets No L-Val'!U$351-'GF diets No L-Val'!U$5)*('GF diets No L-Val'!U$353/100)*'DDGS Calculator'!$G$8)-'GF diets No L-Val'!U$266)-(('GF diets No L-Val'!G$351-'GF diets No L-Val'!G$5)*('GF diets No L-Val'!G$353/100)*'DDGS Calculator'!$G$8-'GF diets No L-Val'!G$266),\nIF(AND($G$5=\"Yes\",$G$6=\"No\",$G$7=\"No\"),(('GF diets No L-Val + Fat'!U$351-'GF diets No L-Val + Fat'!U$5)*('GF diets No L-Val + Fat'!U$353/100)*'DDGS Calculator'!$G$8-'GF diets No L-Val + Fat'!U$266)-(('GF diets No L-Val + Fat'!G$351-'GF diets No L-Val + Fat'!G$5)*('GF diets No L-Val + Fat'!G$353/100)*'DDGS Calculator'!$G$8-'GF diets No L-Val + Fat'!G$266),\nIF(AND($G$5=\"No\",$G$6=\"No\",$G$7=\"Yes\"),(('GF diets L-Val'!U$351-'GF diets L-Val'!U$5)*('GF diets L-Val'!U$353/100)*'DDGS Calculator'!$G$8-'GF diets L-Val'!U$266)-(('GF diets L-Val'!G$351-'GF diets L-Val'!G$5)*('GF diets L-Val'!G$353/100)*'DDGS Calculator'!$G$8-'GF diets L-Val'!G$266),\nIF(AND($G$5=\"Yes\",$G$6=\"No\",$G$7=\"Yes\"),(('GF diets L-Val + Fat'!U$351-'GF diets L-Val + Fat'!U$5)*('GF diets L-Val + Fat'!U$353/100)*'DDGS Calculator'!$G$8-'GF diets L-Val + Fat'!U$266)-(('GF diets L-Val + Fat'!G$351-'GF diets L-Val + Fat'!G$5)*('GF diets L-Val + Fat'!G$353/100)*'DDGS Calculator'!$G$8-'GF diets L-Val + Fat'!G$266),\nIF(AND($G$5=\"No\",$G$6=\"Yes\",$G$7=\"No\"),(('GF diets No L-Val + WD'!U$351-'GF diets No L-Val + WD'!U$5)*('GF diets No L-Val + WD'!U$353/100)*'DDGS Calculator'!$G$8-'GF diets No L-Val + WD'!U$266)-(('GF diets No L-Val + WD'!G$351-'GF diets No L-Val + WD'!G$5)*('GF diets No L-Val + WD'!G$353/100)*'DDGS Calculator'!$G$8-'GF diets No L-Val + WD'!G$266),\nIF(AND($G$5=\"Yes\",$G$6=\"Yes\",$G$7=\"No\"),(('GF diets No L-Val + Fat + WD'!U$351-'GF diets No L-Val + Fat + WD'!U$5)*('GF diets No L-Val + Fat + WD'!U$353/100)*'DDGS Calculator'!$G$8-'GF diets No L-Val + Fat + WD'!U$266)-(('GF diets No L-Val + Fat + WD'!G$351-'GF diets No L-Val + Fat + WD'!G$5)*('GF diets No L-Val + Fat + WD'!G$353/100)*'DDGS Calculator'!$G$8-'GF diets No L-Val + Fat + WD'!G$266),\nIF(AND($G$5=\"No\",$G$6=\"Yes\",$G$7=\"Yes\"),(('GF diets L-Val + WD'!U$351-'GF diets L-Val + WD'!U$5)*('GF diets L-Val + WD'!U$353/100)*'DDGS Calculator'!$G$8-'GF diets L-Val + WD'!U$266)-(('GF diets L-Val + WD'!G$351-'GF diets L-Val + WD'!G$5)*('GF diets L-Val + WD'!G$353/100)*'DDGS Calculator'!$G$8-'GF diets L-Val + WD'!G$266),\nIF(AND($G$5=\"Yes\",$G$6=\"Yes\",$G$7=\"Yes\"),(('GF diets L-Val + Fat + WD'!U$351-'GF diets L-Val + Fat + WD'!U$5)*('GF diets L-Val + Fat + WD'!U$353/100)*'DDGS Calculator'!$G$8-'GF diets L-Val + Fat + WD'!U$266)-(('GF diets L-Val + Fat + WD'!G$351-'GF diets L-Val + Fat + WD'!G$5)*('GF diets L-Val + Fat + WD'!G$353/100)*'DDGS Calculator'!$G$8-'GF diets L-Val + Fat + WD'!G$266)))))))))","v":-0.62938306155027313},-2.372003694090365,{"$f":"I69-I68","v":-1.1846851069378506}]
[0.15,"15% DDGS",{"$f":"IF(AND($G$5=\"No\",$G$6=\"No\",$G$7=\"No\"),((('GF diets No L-Val'!W$351-'GF diets No L-Val'!W$5)*('GF diets No L-Val'!W$353/100)*'DDGS Calculator'!$G$8)-'GF diets No L-Val'!W$266)-\n((('GF diets No L-Val'!B$351-'GF diets No L-Val'!B$5)*('GF diets No L-Val'!B$353/100)*'DDGS Calculator'!$G$8)-'GF diets No L-Val'!B$266),\nIF(AND($G$5=\"Yes\",$G$6=\"No\",$G$7=\"No\"),((('GF diets No L-Val + Fat'!W$351-'GF diets No L-Val + Fat'!W$5)*('GF diets No L-Val + Fat'!W$353/100)*'DDGS Calculator'!$G$8)-'GF diets No L-Val + Fat'!W$266)-\n((('GF diets No L-Val + Fat'!B$351-'GF diets No L-Val + Fat'!B$5)*('GF diets No L-Val + Fat'!B$353/100)*'DDGS Calculator'!$G$8)-'GF diets No L-Val + Fat'!B$266),\nIF(AND($G$5=\"No\",$G$6=\"No\",$G$7=\"Yes\"),((('GF diets L-Val'!W$351-'GF diets L-Val'!W$5)*('GF diets L-Val'!W$353/100)*'DDGS Calculator'!$G$8)-'GF diets L-Val'!W$266)-\n((('GF diets L-Val'!B$351-'GF diets L-Val'!B$5)*('GF diets L-Val'!B$353/100)*'DDGS Calculator'!$G$8)-'GF diets L-Val'!B$266),\nIF(AND($G$5=\"Yes\",$G$6=\"No\",$G$7=\"Yes\"),((('GF diets L-Val + Fat'!W$351-'GF diets L-Val + Fat'!W$5)*('GF diets L-Val + Fat'!W$353/100)*'DDGS Calculator'!$G$8)-'GF diets L-Val + Fat'!W$266)-\n((('GF diets L-Val + Fat'!B$351-'GF diets L-Val + Fat'!B$5)*('GF diets L-Val + Fat'!B$353/100)*'DDGS Calculator'!$G$8)-'GF diets L-Val + Fat'!B$266),\nIF(AND($G$5=\"No\",$G$6=\"Yes\",$G$7=\"No\"),((('GF diets No L-Val + WD'!W$351-'GF diets No L-Val + WD'!W$5)*('GF diets No L-Val + WD'!W$353/100)*'DDGS Calculator'!$G$8)-'GF diets No L-Val + WD'!W$266)-\n((('GF diets No L-Val + WD'!B$351-'GF diets No L-Val + WD'!B$5)*('GF diets No L-Val + WD'!B$353/100)*'DDGS Calculator'!$G$8)-'GF diets No L-Val + WD'!B$266),\nIF(AND($G$5=\"Yes\",$G$6=\"Yes\",$G$7=\"No\"),((('GF diets No L-Val + Fat + WD'!W$351-'GF diets No L-Val + Fat + WD'!W$5)*('GF diets No L-Val + Fat + WD'!W$353/100)*'DDGS Calculator'!$G$8)-'GF diets No L-Val + Fat + WD'!W$266)-\n((('GF diets No L-Val + Fat + WD'!B$351-'GF diets No L-Val + Fat + WD'!B$5)*('GF diets No L-Val + Fat + WD'!B$353/100)*'DDGS Calculator'!$G$8)-'GF diets No L-Val + Fat + WD'!B$266),\nIF(AND($G$5=\"No\",$G$6=\"Yes\",$G$7=\"Yes\"),((('GF diets L-Val + WD'!W$351-'GF diets L-Val + WD'!W$5)*('GF diets L-Val + WD'!W$353/100)*'DDGS Calculator'!$G$8)-'GF diets L-Val + WD'!W$266)-\n((('GF diets L-Val + WD'!B$351-'GF diets L-Val + WD'!B$5)*('GF diets L-Val + WD'!B$353/100)*'DDGS Calculator'!$G$8)-'GF diets L-Val + WD'!B$266),\nIF(AND($G$5=\"Yes\",$G$6=\"Yes\",$G$7=\"Yes\"),((('GF diets L-Val + Fat + WD'!W$351-'GF diets L-Val + Fat + WD'!W$5)*('GF diets L-Val + Fat + WD'!W$353/100)*'DDGS Calculator'!$G$8)-'GF diets L-Val + Fat + WD'!W$266)-\n((('GF diets L-Val + Fat + WD'!B$351-'GF diets L-Val + Fat + WD'!B$5)*('GF diets L-Val + Fat + WD'!B$353/100)*'DDGS Calculator'!$G$8)-'GF diets L-Val + Fat + WD'!B$266)\n))))))))","v":-0.42696041476965263},{"$f":"IF(AND($G$5=\"No\",$G$6=\"No\",$G$7=\"No\"),((('GF diets No L-Val'!X$351-'GF diets No L-Val'!X$5)*('GF diets No L-Val'!X$353/100)*'DDGS Calculator'!$G$8)-'GF diets No L-Val'!X$266)-\n((('GF diets No L-Val'!C$351-'GF diets No L-Val'!C$5)*('GF diets No L-Val'!C$353/100)*'DDGS Calculator'!$G$8)-'GF diets No L-Val'!C$266),\nIF(AND($G$5=\"Yes\",$G$6=\"No\",$G$7=\"No\"),((('GF diets No L-Val + Fat'!X$351-'GF diets No L-Val + Fat'!X$5)*('GF diets No L-Val + Fat'!X$353/100)*'DDGS Calculator'!$G$8)-'GF diets No L-Val + Fat'!X$266)-\n((('GF diets No L-Val + Fat'!C$351-'GF diets No L-Val + Fat'!C$5)*('GF diets No L-Val + Fat'!C$353/100)*'DDGS Calculator'!$G$8)-'GF diets No L-Val + Fat'!C$266),\nIF(AND($G$5=\"No\",$G$6=\"No\",$G$7=\"Yes\"),((('GF diets L-Val'!X$351-'GF diets L-Val'!X$5)*('GF diets L-Val'!X$353/100)*'DDGS Calculator'!$G$8)-'GF diets L-Val'!X$266)-\n((('GF diets L-Val'!C$351-'GF diets L-Val'!C$5)*('GF diets L-Val'!C$353/100)*'DDGS Calculator'!$G$8)-'GF diets L-Val'!C$266),\nIF(AND($G$5=\"Yes\",$G$6=\"No\",$G$7=\"Yes\"),((('GF diets L-Val + Fat'!X$351-'GF diets L-Val + Fat'!X$5)*('GF diets L-Val + Fat'!X$353/100)*'DDGS Calculator'!$G$8)-'GF diets L-Val + Fat'!X$266)-\n((('GF diets L-Val + Fat'!C$351-'GF diets L-Val + Fat'!C$5)*('GF diets L-Val + Fat'!C$353/100)*'DDGS Calculator'!$G$8)-'GF diets L-Val + Fat'!C$266),\nIF(AND($G$5=\"No\",$G$6=\"Yes\",$G$7=\"No\"),((('GF diets No L-Val + WD'!X$351-'GF diets No L-Val + WD'!X$5)*('GF diets No L-Val + WD'!X$353/100)*'DDGS Calculator'!$G$8)-'GF diets No L-Val + WD'!X$266)-\n((('GF diets No L-Val + WD'!C$351-'GF diets No L-Val + WD'!C$5)*('GF diets No L-Val + WD'!C$353/100)*'DDGS Calculator'!$G$8)-'GF diets No L-Val + WD'!C$266),\nIF(AND($G$5=\"Yes\",$G$6=\"Yes\",$G$7=\"No\"),((('GF diets No L-Val + Fat + WD'!X$351-'GF diets No L-Val + Fat + WD'!X$5)*('GF diets No L-Val + Fat + WD'!X$353/100)*'DDGS Calculator'!$G$8)-'GF diets No L-Val + Fat + WD'!X$266)-\n((('GF diets No L-Val + Fat + WD'!C$351-'GF diets No L-Val + Fat + WD'!C$5)*('GF diets No L-Val + Fat + WD'!C$353/100)*'DDGS Calculator'!$G$8)-'GF diets No L-Val + Fat + WD'!C$266),\nIF(AND($G$5=\"No\",$G$6=\"Yes\",$G$7=\"Yes\"),((('GF diets L-Val + WD'!X$351-'GF diets L-Val + WD'!X$5)*('GF diets L-Val + WD'!X$353/100)*'DDGS Calculator'!$G$8)-'GF diets L-Val + WD'!X$266)-\n((('GF diets L-Val + WD'!C$351-'GF diets L-Val + WD'!C$5)*('GF diets L-Val + WD'!C$353/100)*'DDGS Calculator'!$G$8)-'GF diets L-Val + WD'!C$266),\nIF(AND($G$5=\"Yes\",$G$6=\"Yes\",$G$7=\"Yes\"),((('GF diets L-Val + Fat + WD'!X$351-'GF diets L-Val + Fat + WD'!X$5)*('GF diets L-Val + Fat + WD'!X$353/100)*'DDGS Calculator'!$G$8)-'GF diets L-Val + Fat + WD'!X$266)-\n((('GF diets L-Val + Fat + WD'!C$351-'GF diets L-Val + Fat + WD'!C$5)*('GF diets L-Val + Fat + WD'!C$353/100)*'DDGS Calculator'!$G$8)-'GF diets L-Val + Fat + WD'!C$266)\n))))))))","v":-0.41274619841557758},{"$f":"IF(AND($G$5=\"No\",$G$6=\"No\",$G$7=\"No\"),((('GF diets No L-Val'!Y$351-'GF diets No L-Val'!Y$5)*('GF diets No L-Val'!Y$353/100)*'DDGS Calculator'!$G$8)-'GF diets No L-Val'!Y$266)-\n((('GF diets No L-Val'!D$351-'GF diets No L-Val'!D$5)*('GF diets No L-Val'!D$353/100)*'DDGS Calculator'!$G$8)-'GF diets No L-Val'!D$266),\nIF(AND($G$5=\"Yes\",$G$6=\"No\",$G$7=\"No\"),((('GF diets No L-Val + Fat'!Y$351-'GF diets No L-Val + Fat'!Y$5)*('GF diets No L-Val + Fat'!Y$353/100)*'DDGS Calculator'!$G$8)-'GF diets No L-Val + Fat'!Y$266)-\n((('GF diets No L-Val + Fat'!D$351-'GF diets No L-Val + Fat'!D$5)*('GF diets No L-Val + Fat'!D$353/100)*'DDGS Calculator'!$G$8)-'GF diets No L-Val + Fat'!D$266),\nIF(AND($G$5=\"No\",$G$6=\"No\",$G$7=\"Yes\"),((('GF diets L-Val'!Y$351-'GF diets L-Val'!Y$5)*('GF diets L-Val'!Y$353/100)*'DDGS Calculator'!$G$8)-'GF diets L-Val'!Y$266)-\n((('GF diets L-Val'!D$351-'GF diets L-Val'!D$5)*('GF diets L-Val'!D$353/100)*'DDGS Calculator'!$G$8)-'GF diets L-Val'!D$266),\nIF(AND($G$5=\"Yes\",$G$6=\"No\",$G$7=\"Yes\"),((('GF diets L-Val + Fat'!Y$351-'GF diets L-Val + Fat'!Y$5)*('GF diets L-Val + Fat'!Y$353/100)*'DDGS Calculator'!$G$8)-'GF diets L-Val + Fat'!Y$266)-\n((('GF diets L-Val + Fat'!D$351-'GF diets L-Val + Fat'!D$5)*('GF diets L-Val + Fat'!D$353/100)*'DDGS Calculator'!$G$8)-'GF diets L-Val + Fat'!D$266),\nIF(AND($G$5=\"No\",$G$6=\"Yes\",$G$7=\"No\"),((('GF diets No L-Val + WD'!Y$351-'GF diets No L-Val + WD'!Y$5)*('GF diets No L-Val + WD'!Y$353/100)*'DDGS Calculator'!$G$8)-'GF diets No L-Val + WD'!Y$266)-\n((('GF diets No L-Val + WD'!D$351-'GF diets No L-Val + WD'!D$5)*('GF diets No L-Val + WD'!D$353/100)*'DDGS Calculator'!$G$8)-'GF diets No L-Val + WD'!D$266),\nIF(AND($G$5=\"Yes\",$G$6=\"Yes\",$G$7=\"No\"),((('GF diets No L-Val + Fat + WD'!Y$351-'GF diets No L-Val + Fat + WD'!Y$5)*('GF diets No L-Val + Fat + WD'!Y$353/100)*'DDGS Calculator'!$G$8)-'GF diets No L-Val + Fat + WD'!Y$266)-\n((('GF diets No L-Val + Fat + WD'!D$351-'GF diets No L-Val + Fat + WD'!D$5)*('GF diets No L-Val + Fat + WD'!D$353/100)*'DDGS Calculator'!$G$8)-'GF diets No L-Val + Fat + WD'!D$266),\nIF(AND($G$5=\"No\",$G$6=\"Yes\",$G$7=\"Yes\"),((('GF diets L-Val + WD'!Y$351-'GF diets L-Val + WD'!Y$5)*('GF diets L-Val + WD'!Y$353/100)*'DDGS Calculator'!$G$8)-'GF diets L-Val + WD'!Y$266)-\n((('GF diets L-Val + WD'!D$351-'GF diets L-Val + WD'!D$5)*('GF diets L-Val + WD'!D$353/100)*'DDGS Calculator'!$G$8)-'GF diets L-Val + WD'!D$266),\nIF(AND($G$5=\"Yes\",$G$6=\"Yes\",$G$7=\"Yes\"),((('GF diets L-Val + Fat + WD'!Y$351-'GF diets L-Val + Fat + WD'!Y$5)*('GF diets L-Val + Fat + WD'!Y$353/100)*'DDGS Calculator'!$G$8)-'GF diets L-Val + Fat + WD'!Y$266)-\n((('GF diets L-Val + Fat + WD'!D$351-'GF diets L-Val + Fat + WD'!D$5)*('GF diets L-Val + Fat + WD'!D$353/100)*'DDGS Calculator'!$G$8)-'GF diets L-Val + Fat + WD'!D$266)\n))))))))","v":-0.49425309158123554},{"$f":"IF(AND($G$5=\"No\",$G$6=\"No\",$G$7=\"No\"),((('GF diets No L-Val'!Z$351-'GF diets No L-Val'!Z$5)*('GF diets No L-Val'!Z$353/100)*'DDGS Calculator'!$G$8)-'GF diets No L-Val'!Z$266)-\n((('GF diets No L-Val'!E$351-'GF diets No L-Val'!E$5)*('GF diets No L-Val'!E$353/100)*'DDGS Calculator'!$G$8)-'GF diets No L-Val'!E$266),\nIF(AND($G$5=\"Yes\",$G$6=\"No\",$G$7=\"No\"),((('GF diets No L-Val + Fat'!Z$351-'GF diets No L-Val + Fat'!Z$5)*('GF diets No L-Val + Fat'!Z$353/100)*'DDGS Calculator'!$G$8)-'GF diets No L-Val + Fat'!Z$266)-\n((('GF diets No L-Val + Fat'!E$351-'GF diets No L-Val + Fat'!E$5)*('GF diets No L-Val + Fat'!E$353/100)*'DDGS Calculator'!$G$8)-'GF diets No L-Val + Fat'!E$266),\nIF(AND($G$5=\"No\",$G$6=\"No\",$G$7=\"Yes\"),((('GF diets L-Val'!Z$351-'GF diets L-Val'!Z$5)*('GF diets L-Val'!Z$353/100)*'DDGS Calculator'!$G$8)-'GF diets L-Val'!Z$266)-\n((('GF diets L-Val'!E$351-'GF diets L-Val'!E$5)*('GF diets L-Val'!E$353/100)*'DDGS Calculator'!$G$8)-'GF diets L-Val'!E$266),\nIF(AND($G$5=\"Yes\",$G$6=\"No\",$G$7=\"Yes\"),((('GF diets L-Val + Fat'!Z$351-'GF diets L-Val + Fat'!Z$5)*('GF diets L-Val + Fat'!Z$353/100)*'DDGS Calculator'!$G$8)-'GF diets L-Val + Fat'!Z$266)-\n((('GF diets L-Val + Fat'!E$351-'GF diets L-Val + Fat'!E$5)*('GF diets L-Val + Fat'!E$353/100)*'DDGS Calculator'!$G$8)-'GF diets L-Val + Fat'!E$266),\nIF(AND($G$5=\"No\",$G$6=\"Yes\",$G$7=\"No\"),((('GF diets No L-Val + WD'!Z$351-'GF diets No L-Val + WD'!Z$5)*('GF diets No L-Val + WD'!Z$353/100)*'DDGS Calculator'!$G$8)-'GF diets No L-Val + WD'!Z$266)-\n((('GF diets No L-Val + WD'!E$351-'GF diets No L-Val + WD'!E$5)*('GF diets No L-Val + WD'!E$353/100)*'DDGS Calculator'!$G$8)-'GF diets No L-Val + WD'!E$266),\nIF(AND($G$5=\"Yes\",$G$6=\"Yes\",$G$7=\"No\"),((('GF diets No L-Val + Fat + WD'!Z$351-'GF diets No L-Val + Fat + WD'!Z$5)*('GF diets No L-Val + Fat + WD'!Z$353/100)*'DDGS Calculator'!$G$8)-'GF diets No L-Val + Fat + WD'!Z$266)-\n((('GF diets No L-Val + Fat + WD'!E$351-'GF diets No L-Val + Fat + WD'!E$5)*('GF diets No L-Val + Fat + WD'!E$353/100)*'DDGS Calculator'!$G$8)-'GF diets No L-Val + Fat + WD'!E$266),\nIF(AND($G$5=\"No\",$G$6=\"Yes\",$G$7=\"Yes\"),((('GF diets L-Val + WD'!Z$351-'GF diets L-Val + WD'!Z$5)*('GF diets L-Val + WD'!Z$353/100)*'DDGS Calculator'!$G$8)-'GF diets L-Val + WD'!Z$266)-\n((('GF diets L-Val + WD'!E$351-'GF diets L-Val + WD'!E$5)*('GF diets L-Val + WD'!E$353/100)*'DDGS Calculator'!$G$8)-'GF diets L-Val + WD'!E$266),\nIF(AND($G$5=\"Yes\",$G$6=\"Yes\",$G$7=\"Yes\"),((('GF diets L-Val + Fat + WD'!Z$351-'GF diets L-Val + Fat + WD'!Z$5)*('GF diets L-Val + Fat + WD'!Z$353/100)*'DDGS Calculator'!$G$8)-'GF diets L-Val + Fat + WD'!Z$266)-\n((('GF diets L-Val + Fat + WD'!E$351-'GF diets L-Val + Fat + WD'!E$5)*('GF diets L-Val + Fat + WD'!E$353/100)*'DDGS Calculator'!$G$8)-'GF diets L-Val + Fat + WD'!E$266)\n))))))))","v":-0.55113233707773901},{"$f":"IF(AND($G$5=\"No\",$G$6=\"No\",$G$7=\"No\"),((('GF diets No L-Val'!AA$351-'GF diets No L-Val'!AA$5)*('GF diets No L-Val'!AA$353/100)*'DDGS Calculator'!$G$8)-'GF diets No L-Val'!AA$266)-\n((('GF diets No L-Val'!F$351-'GF diets No L-Val'!F$5)*('GF diets No L-Val'!F$353/100)*'DDGS Calculator'!$G$8)-'GF diets No L-Val'!F$266),\nIF(AND($G$5=\"Yes\",$G$6=\"No\",$G$7=\"No\"),((('GF diets No L-Val + Fat'!AA$351-'GF diets No L-Val + Fat'!AA$5)*('GF diets No L-Val + Fat'!AA$353/100)*'DDGS Calculator'!$G$8)-'GF diets No L-Val + Fat'!AA$266)-\n((('GF diets No L-Val + Fat'!F$351-'GF diets No L-Val + Fat'!F$5)*('GF diets No L-Val + Fat'!F$353/100)*'DDGS Calculator'!$G$8)-'GF diets No L-Val + Fat'!F$266),\nIF(AND($G$5=\"No\",$G$6=\"No\",$G$7=\"Yes\"),((('GF diets L-Val'!AA$351-'GF diets L-Val'!AA$5)*('GF diets L-Val'!AA$353/100)*'DDGS Calculator'!$G$8)-'GF diets L-Val'!AA$266)-\n((('GF diets L-Val'!F$351-'GF diets L-Val'!F$5)*('GF diets L-Val'!F$353/100)*'DDGS Calculator'!$G$8)-'GF diets L-Val'!F$266),\nIF(AND($G$5=\"Yes\",$G$6=\"No\",$G$7=\"Yes\"),((('GF diets L-Val + Fat'!AA$351-'GF diets L-Val + Fat'!AA$5)*('GF diets L-Val + Fat'!AA$353/100)*'DDGS Calculator'!$G$8)-'GF diets L-Val + Fat'!AA$266)-\n((('GF diets L-Val + Fat'!F$351-'GF diets L-Val + Fat'!F$5)*('GF diets L-Val + Fat'!F$353/100)*'DDGS Calculator'!$G$8)-'GF diets L-Val + Fat'!F$266),\nIF(AND($G$5=\"No\",$G$6=\"Yes\",$G$7=\"No\"),((('GF diets No L-Val + WD'!AA$351-'GF diets No L-Val + WD'!AA$5)*('GF diets No L-Val + WD'!AA$353/100)*'DDGS Calculator'!$G$8)-'GF diets No L-Val + WD'!AA$266)-\n((('GF diets No L-Val + WD'!F$351-'GF diets No L-Val + WD'!F$5)*('GF diets No L-Val + WD'!F$353/100)*'DDGS Calculator'!$G$8)-'GF diets No L-Val + WD'!F$266),\nIF(AND($G$5=\"Yes\",$G$6=\"Yes\",$G$7=\"No\"),((('GF diets No L-Val + Fat + WD'!AA$351-'GF diets No L-Val + Fat + WD'!AA$5)*('GF diets No L-Val + Fat + WD'!AA$353/100)*'DDGS Calculator'!$G$8)-'GF diets No L-Val + Fat + WD'!AA$266)-\n((('GF diets No L-Val + Fat + WD'!F$351-'GF diets No L-Val + Fat + WD'!F$5)*('GF diets No L-Val + Fat + WD'!F$353/100)*'DDGS Calculator'!$G$8)-'GF diets No L-Val + Fat + WD'!F$266),\nIF(AND($G$5=\"No\",$G$6=\"Yes\",$G$7=\"Yes\"),((('GF diets L-Val + WD'!AA$351-'GF diets L-Val + WD'!AA$5)*('GF diets L-Val + WD'!AA$353/100)*'DDGS Calculator'!$G$8)-'GF diets L-Val + WD'!AA$266)-\n((('GF diets L-Val + WD'!F$351-'GF diets L-Val + WD'!F$5)*('GF diets L-Val + WD'!F$353/100)*'DDGS Calculator'!$G$8)-'GF diets L-Val + WD'!F$266),\nIF(AND($G$5=\"Yes\",$G$6=\"Yes\",$G$7=\"Yes\"),((('GF diets L-Val + Fat + WD'!AA$351-'GF diets L-Val + Fat + WD'!AA$5)*('GF diets L-Val + Fat + WD'!AA$353/100)*'DDGS Calculator'!$G$8)-'GF diets L-Val + Fat + WD'!AA$266)-\n((('GF diets L-Val + Fat + WD'!F$351-'GF diets L-Val + Fat + WD'!F$5)*('GF diets L-Val + Fat + WD'!F$353/100)*'DDGS Calculator'!$G$8)-'GF diets L-Val + Fat + WD'!F$266)\n))))))))","v":-0.67468682778377165},{"$f":"IF(AND($G$5=\"No\",$G$6=\"No\",$G$7=\"No\"),((('GF diets No L-Val'!AB$351-'GF diets No L-Val'!AB$5)*('GF diets No L-Val'!AB$353/100)*'DDGS Calculator'!$G$8)-'GF diets No L-Val'!AB$266)-\n((('GF diets No L-Val'!G$351-'GF diets No L-Val'!G$5)*('GF diets No L-Val'!G$353/100)*'DDGS Calculator'!$G$8)-'GF diets No L-Val'!G$266),\nIF(AND($G$5=\"Yes\",$G$6=\"No\",$G$7=\"No\"),((('GF diets No L-Val + Fat'!AB$351-'GF diets No L-Val + Fat'!AB$5)*('GF diets No L-Val + Fat'!AB$353/100)*'DDGS Calculator'!$G$8)-'GF diets No L-Val + Fat'!AB$266)-\n((('GF diets No L-Val + Fat'!G$351-'GF diets No L-Val + Fat'!G$5)*('GF diets No L-Val + Fat'!G$353/100)*'DDGS Calculator'!$G$8)-'GF diets No L-Val + Fat'!G$266),\nIF(AND($G$5=\"No\",$G$6=\"No\",$G$7=\"Yes\"),((('GF diets L-Val'!AB$351-'GF diets L-Val'!AB$5)*('GF diets L-Val'!AB$353/100)*'DDGS Calculator'!$G$8)-'GF diets L-Val'!AB$266)-\n((('GF diets L-Val'!G$351-'GF diets L-Val'!G$5)*('GF diets L-Val'!G$353/100)*'DDGS Calculator'!$G$8)-'GF diets L-Val'!G$266),\nIF(AND($G$5=\"Yes\",$G$6=\"No\",$G$7=\"Yes\"),((('GF diets L-Val + Fat'!AB$351-'GF diets L-Val + Fat'!AB$5)*('GF diets L-Val + Fat'!AB$353/100)*'DDGS Calculator'!$G$8)-'GF diets L-Val + Fat'!AB$266)-\n((('GF diets L-Val + Fat'!G$351-'GF diets L-Val + Fat'!G$5)*('GF diets L-Val + Fat'!G$353/100)*'DDGS Calculator'!$G$8)-'GF diets L-Val + Fat'!G$266),\nIF(AND($G$5=\"No\",$G$6=\"Yes\",$G$7=\"No\"),((('GF diets No L-Val + WD'!AB$351-'GF diets No L-Val + WD'!AB$5)*('GF diets No L-Val + WD'!AB$353/100)*'DDGS Calculator'!$G$8)-'GF diets No L-Val + WD'!AB$266)-\n((('GF diets No L-Val + WD'!G$351-'GF diets No L-Val + WD'!G$5)*('GF diets No L-Val + WD'!G$353/100)*'DDGS Calculator'!$G$8)-'GF diets No L-Val + WD'!G$266),\nIF(AND($G$5=\"Yes\",$G$6=\"Yes\",$G$7=\"No\"),((('GF diets No L-Val + Fat + WD'!AB$351-'GF diets No L-Val + Fat + WD'!AB$5)*('GF diets No L-Val + Fat + WD'!AB$353/100)*'DDGS Calculator'!$G$8)-'GF diets No L-Val + Fat + WD'!AB$266)-\n((('GF diets No L-Val + Fat + WD'!G$351-'GF diets No L-Val + Fat + WD'!G$5)*('GF diets No L-Val + Fat + WD'!G$353/100)*'DDGS Calculator'!$G$8)-'GF diets No L-Val + Fat + WD'!G$266),\nIF(AND($G$5=\"No\",$G$6=\"Yes\",$G$7=\"Yes\"),((('GF diets L-Val + WD'!AB$351-'GF diets L-Val + WD'!AB$5)*('GF diets L-Val + WD'!AB$353/100)*'DDGS Calculator'!$G$8)-'GF diets L-Val + WD'!AB$266)-\n((('GF diets L-Val + WD'!G$351-'GF diets L-Val + WD'!G$5)*('GF diets L-Val + WD'!G$353/100)*'DDGS Calculator'!$G$8)-'GF diets L-Val + WD'!G$266),\nIF(AND($G$5=\"Yes\",$G$6=\"Yes\",$G$7=\"Yes\"),((('GF diets L-Val + Fat + WD'!AB$351-'GF diets L-Val + Fat + WD'!AB$5)*('GF diets L-Val + Fat + WD'!AB$353/100)*'DDGS Calculator'!$G$8)-'GF diets L-Val + Fat + WD'!AB$266)-\n((('GF diets L-Val + Fat + WD'!G$351-'GF diets L-Val + Fat + WD'!G$5)*('GF diets L-Val + Fat + WD'!G$353/100)*'DDGS Calculator'!$G$8)-'GF diets L-Val + Fat + WD'!G$266)\n))))))))","v":-0.95579906980369422},-3.5155779394316706,{"$f":"I70-I69","v":-1.1435742453413056}]
[0.2,"20% DDGS",{"$f":"IF(AND($G$5=\"No\",$G$6=\"No\",$G$7=\"No\"),((('GF diets No L-Val'!AD$351-'GF diets No L-Val'!AD$5)*('GF diets No L-Val'!AD$353/100)*'DDGS Calculator'!$G$8)-'GF diets No L-Val'!AD$266)-\n((('GF diets No L-Val'!B$351-'GF diets No L-Val'!B$5)*('GF diets No L-Val'!B$353/100)*'DDGS Calculator'!$G$8)-'GF diets No L-Val'!B$266),\nIF(AND($G$5=\"Yes\",$G$6=\"No\",$G$7=\"No\"),((('GF diets No L-Val + Fat'!AD$351-'GF diets No L-Val + Fat'!AD$5)*('GF diets No L-Val + Fat'!AD$353/100)*'DDGS Calculator'!$G$8)-'GF diets No L-Val + Fat'!AD$266)-\n((('GF diets No L-Val + Fat'!B$351-'GF diets No L-Val + Fat'!B$5)*('GF diets No L-Val + Fat'!B$353/100)*'DDGS Calculator'!$G$8)-'GF diets No L-Val + Fat'!B$266),\nIF(AND($G$5=\"No\",$G$6=\"No\",$G$7=\"Yes\"),((('GF diets L-Val'!AD$351-'GF diets L-Val'!AD$5)*('GF diets L-Val'!AD$353/100)*'DDGS Calculator'!$G$8)-'GF diets L-Val'!AD$266)-\n((('GF diets L-Val'!B$351-'GF diets L-Val'!B$5)*('GF diets L-Val'!B$353/100)*'DDGS Calculator'!$G$8)-'GF diets L-Val'!B$266),\nIF(AND($G$5=\"Yes\",$G$6=\"No\",$G$7=\"Yes\"),((('GF diets L-Val + Fat'!AD$351-'GF diets L-Val + Fat'!AD$5)*('GF diets L-Val + Fat'!AD$353/100)*'DDGS Calculator'!$G$8)-'GF diets L-Val + Fat'!AD$266)-\n((('GF diets L-Val + Fat'!B$351-'GF diets L-Val + Fat'!B$5)*('GF diets L-Val + Fat'!B$353/100)*'DDGS Calculator'!$G$8)-'GF diets L-Val + Fat'!B$266),\nIF(AND($G$5=\"No\",$G$6=\"Yes\",$G$7=\"No\"),((('GF diets No L-Val + WD'!AD$351-'GF diets No L-Val + WD'!AD$5)*('GF diets No L-Val + WD'!AD$353/100)*'DDGS Calculator'!$G$8)-'GF diets No L-Val + WD'!AD$266)-\n((('GF diets No L-Val + WD'!B$351-'GF diets No L-Val + WD'!B$5)*('GF diets No L-Val + WD'!B$353/100)*'DDGS Calculator'!$G$8)-'GF diets No L-Val + WD'!B$266),\nIF(AND($G$5=\"Yes\",$G$6=\"Yes\",$G$7=\"No\"),((('GF diets No L-Val + Fat + WD'!AD$351-'GF diets No L-Val + Fat + WD'!AD$5)*('GF diets No L-Val + Fat + WD'!AD$353/100)*'DDGS Calculator'!$G$8)-'GF diets No L-Val + Fat + WD'!AD$266)-\n((('GF diets No L-Val + Fat + WD'!B$351-'GF diets No L-Val + Fat + WD'!B$5)*('GF diets No L-Val + Fat + WD'!B$353/100)*'DDGS Calculator'!$G$8)-'GF diets No L-Val + Fat + WD'!B$266),\nIF(AND($G$5=\"No\",$G$6=\"Yes\",$G$7=\"Yes\"),((('GF diets L-Val + WD'!AD$351-'GF diets L-Val + WD'!AD$5)*('GF diets L-Val + WD'!AD$353/100)*'DDGS Calculator'!$G$8)-'GF diets L-Val + WD'!AD$266)-\n((('GF diets L-Val + WD'!B$351-'GF diets L-Val + WD'!B$5)*('GF diets L-Val + WD'!B$353/100)*'DDGS Calculator'!$G$8)-'GF diets L-Val + WD'!B$266),\nIF(AND($G$5=\"Yes\",$G$6=\"Yes\",$G$7=\"Yes\"),((('GF diets L-Val + Fat + WD'!AD$351-'GF diets L-Val + Fat + WD'!AD$5)*('GF diets L-Val + Fat + WD'!AD$353/100)*'DDGS Calculator'!$G$8)-'GF diets L-Val + Fat + WD'!AD$266)-\n((('GF diets L-Val + Fat + WD'!B$351-'GF diets L-Val + Fat + WD'!B$5)*('GF diets L-Val + Fat + WD'!B$353/100)*'DDGS Calculator'!$G$8)-'GF diets L-Val + Fat + WD'!B$266)\n))))))))","v":-0.54034988028947595},{"$f":"IF(AND($G$5=\"No\",$G$6=\"No\",$G$7=\"No\"),((('GF diets No L-Val'!AE$351-'GF diets No L-Val'!AE$5)*('GF diets No L-Val'!AE$353/100)*'DDGS Calculator'!$G$8)-'GF diets No L-Val'!AE$266)-\n((('GF diets No L-Val'!C$351-'GF diets No L-Val'!C$5)*('GF diets No L-Val'!C$353/100)*'DDGS Calculator'!$G$8)-'GF diets No L-Val'!C$266),\nIF(AND($G$5=\"Yes\",$G$6=\"No\",$G$7=\"No\"),((('GF diets No L-Val + Fat'!AE$351-'GF diets No L-Val + Fat'!AE$5)*('GF diets No L-Val + Fat'!AE$353/100)*'DDGS Calculator'!$G$8)-'GF diets No L-Val + Fat'!AE$266)-\n((('GF diets No L-Val + Fat'!C$351-'GF diets No L-Val + Fat'!C$5)*('GF diets No L-Val + Fat'!C$353/100)*'DDGS Calculator'!$G$8)-'GF diets No L-Val + Fat'!C$266),\nIF(AND($G$5=\"No\",$G$6=\"No\",$G$7=\"Yes\"),((('GF diets L-Val'!AE$351-'GF diets L-Val'!AE$5)*('GF diets L-Val'!AE$353/100)*'DDGS Calculator'!$G$8)-'GF diets L-Val'!AE$266)-\n((('GF diets L-Val'!C$351-'GF diets L-Val'!C$5)*('GF diets L-Val'!C$353/100)*'DDGS Calculator'!$G$8)-'GF diets L-Val'!C$266),\nIF(AND($G$5=\"Yes\",$G$6=\"No\",$G$7=\"Yes\"),((('GF diets L-Val + Fat'!AE$351-'GF diets L-Val + Fat'!AE$5)*('GF diets L-Val + Fat'!AE$353/100)*'DDGS Calculator'!$G$8)-'GF diets L-Val + Fat'!AE$266)-\n((('GF diets L-Val + Fat'!C$351-'GF diets L-Val + Fat'!C$5)*('GF diets L-Val + Fat'!C$353/100)*'DDGS Calculator'!$G$8)-'GF diets L-Val + Fat'!C$266),\nIF(AND($G$5=\"No\",$G$6=\"Yes\",$G$7=\"No\"),((('GF diets No L-Val + WD'!AE$351-'GF diets No L-Val + WD'!AE$5)*('GF diets No L-Val + WD'!AE$353/100)*'DDGS Calculator'!$G$8)-'GF diets No L-Val + WD'!AE$266)-\n((('GF diets No L-Val + WD'!C$351-'GF diets No L-Val + WD'!C$5)*('GF diets No L-Val + WD'!C$353/100)*'DDGS Calculator'!$G$8)-'GF diets No L-Val + WD'!C$266),\nIF(AND($G$5=\"Yes\",$G$6=\"Yes\",$G$7=\"No\"),((('GF diets No L-Val + Fat + WD'!AE$351-'GF diets No L-Val + Fat + WD'!AE$5)*('GF diets No L-Val + Fat + WD'!AE$353/100)*'DDGS Calculator'!$G$8)-'GF diets No L-Val + Fat + WD'!AE$266)-\n((('GF diets No L-Val + Fat + WD'!C$351-'GF diets No L-Val + Fat + WD'!C$5)*('GF diets No L-Val + Fat + WD'!C$353/100)*'DDGS Calculator'!$G$8)-'GF diets No L-Val + Fat + WD'!C$266),\nIF(AND($G$5=\"No\",$G$6=\"Yes\",$G$7=\"Yes\"),((('GF diets L-Val + WD'!AE$351-'GF diets L-Val + WD'!AE$5)*('GF diets L-Val + WD'!AE$353/100)*'DDGS Calculator'!$G$8)-'GF diets L-Val + WD'!AE$266)-\n((('GF diets L-Val + WD'!C$351-'GF diets L-Val + WD'!C$5)*('GF diets L-Val + WD'!C$353/100)*'DDGS Calculator'!$G$8)-'GF diets L-Val + WD'!C$266),\nIF(AND($G$5=\"Yes\",$G$6=\"Yes\",$G$7=\"Yes\"),((('GF diets L-Val + Fat + WD'!AE$351-'GF diets L-Val + Fat + WD'!AE$5)*('GF diets L-Val + Fat + WD'!AE$353/100)*'DDGS Calculator'!$G$8)-'GF diets L-Val + Fat + WD'!AE$266)-\n((('GF diets L-Val + Fat + WD'!C$351-'GF diets L-Val + Fat + WD'!C$5)*('GF diets L-Val + Fat + WD'!C$353/100)*'DDGS Calculator'!$G$8)-'GF diets L-Val + Fat + WD'!C$266)\n))))))))","v":-0.52914836520374386},{"$f":"IF(AND($G$5=\"No\",$G$6=\"No\",$G$7=\"No\"),((('GF diets No L-Val'!AF$351-'GF diets No L-Val'!AF$5)*('GF diets No L-Val'!AF$353/100)*'DDGS Calculator'!$G$8)-'GF diets No L-Val'!AF$266)-\n((('GF diets No L-Val'!D$351-'GF diets No L-Val'!D$5)*('GF diets No L-Val'!D$353/100)*'DDGS Calculator'!$G$8)-'GF diets No L-Val'!D$266),\nIF(AND($G$5=\"Yes\",$G$6=\"No\",$G$7=\"No\"),((('GF diets No L-Val + Fat'!AF$351-'GF diets No L-Val + Fat'!AF$5)*('GF diets No L-Val + Fat'!AF$353/100)*'DDGS Calculator'!$G$8)-'GF diets No L-Val + Fat'!AF$266)-\n((('GF diets No L-Val + Fat'!D$351-'GF diets No L-Val + Fat'!D$5)*('GF diets No L-Val + Fat'!D$353/100)*'DDGS Calculator'!$G$8)-'GF diets No L-Val + Fat'!D$266),\nIF(AND($G$5=\"No\",$G$6=\"No\",$G$7=\"Yes\"),((('GF diets L-Val'!AF$351-'GF diets L-Val'!AF$5)*('GF diets L-Val'!AF$353/100)*'DDGS Calculator'!$G$8)-'GF diets L-Val'!AF$266)-\n((('GF diets L-Val'!D$351-'GF diets L-Val'!D$5)*('GF diets L-Val'!D$353/100)*'DDGS Calculator'!$G$8)-'GF diets L-Val'!D$266),\nIF(AND($G$5=\"Yes\",$G$6=\"No\",$G$7=\"Yes\"),((('GF diets L-Val + Fat'!AF$351-'GF diets L-Val + Fat'!AF$5)*('GF diets L-Val + Fat'!AF$353/100)*'DDGS Calculator'!$G$8)-'GF diets L-Val + Fat'!AF$266)-\n((('GF diets L-Val + Fat'!D$351-'GF diets L-Val + Fat'!D$5)*('GF diets L-Val + Fat'!D$353/100)*'DDGS Calculator'!$G$8)-'GF diets L-Val + Fat'!D$266),\nIF(AND($G$5=\"No\",$G$6=\"Yes\",$G$7=\"No\"),((('GF diets No L-Val + WD'!AF$351-'GF diets No L-Val + WD'!AF$5)*('GF diets No L-Val + WD'!AF$353/100)*'DDGS Calculator'!$G$8)-'GF diets No L-Val + WD'!AF$266)-\n((('GF diets No L-Val + WD'!D$351-'GF diets No L-Val + WD'!D$5)*('GF diets No L-Val + WD'!D$353/100)*'DDGS Calculator'!$G$8)-'GF diets No L-Val + WD'!D$266),\nIF(AND($G$5=\"Yes\",$G$6=\"Yes\",$G$7=\"No\"),((('GF diets No L-Val + Fat + WD'!AF$351-'GF diets No L-Val + Fat + WD'!AF$5)*('GF diets No L-Val + Fat + WD'!AF$353/100)*'DDGS Calculator'!$G$8)-'GF diets No L-Val + Fat + WD'!AF$266)-\n((('GF diets No L-Val + Fat + WD'!D$351-'GF diets No L-Val + Fat + WD'!D$5)*('GF diets No L-Val + Fat + WD'!D$353/100)*'DDGS Calculator'!$G$8)-'GF diets No L-Val + Fat + WD'!D$266),\nIF(AND($G$5=\"No\",$G$6=\"Yes\",$G$7=\"Yes\"),((('GF diets L-Val + WD'!AF$351-'GF diets L-Val + WD'!AF$5)*('GF diets L-Val + WD'!AF$353/100)*'DDGS Calculator'!$G$8)-'GF diets L-Val + WD'!AF$266)-\n((('GF diets L-Val + WD'!D$351-'GF diets L-Val + WD'!D$5)*('GF diets L-Val + WD'!D$353/100)*'DDGS Calculator'!$G$8)-'GF diets L-Val + WD'!D$266),\nIF(AND($G$5=\"Yes\",$G$6=\"Yes\",$G$7=\"Yes\"),((('GF diets L-Val + Fat + WD'!AF$351-'GF diets L-Val + Fat + WD'!AF$5)*('GF diets L-Val + Fat + WD'!AF$353/100)*'DDGS Calculator'!$G$8)-'GF diets L-Val + Fat + WD'!AF$266)-\n((('GF diets L-Val + Fat + WD'!D$351-'GF diets L-Val + Fat + WD'!D$5)*('GF diets L-Val + Fat + WD'!D$353/100)*'DDGS Calculator'!$G$8)-'GF diets L-Val + Fat + WD'!D$266)\n))))))))","v":-0.6379897005539803},{"$f":"IF(AND($G$5=\"No\",$G$6=\"No\",$G$7=\"No\"),((('GF diets No L-Val'!AG$351-'GF diets No L-Val'!AG$5)*('GF diets No L-Val'!AG$353/100)*'DDGS Calculator'!$G$8)-'GF diets No L-Val'!AG$266)-\n((('GF diets No L-Val'!E$351-'GF diets No L-Val'!E$5)*('GF diets No L-Val'!E$353/100)*'DDGS Calculator'!$G$8)-'GF diets No L-Val'!E$266),\nIF(AND($G$5=\"Yes\",$G$6=\"No\",$G$7=\"No\"),((('GF diets No L-Val + Fat'!AG$351-'GF diets No L-Val + Fat'!AG$5)*('GF diets No L-Val + Fat'!AG$353/100)*'DDGS Calculator'!$G$8)-'GF diets No L-Val + Fat'!AG$266)-\n((('GF diets No L-Val + Fat'!E$351-'GF diets No L-Val + Fat'!E$5)*('GF diets No L-Val + Fat'!E$353/100)*'DDGS Calculator'!$G$8)-'GF diets No L-Val + Fat'!E$266),\nIF(AND($G$5=\"No\",$G$6=\"No\",$G$7=\"Yes\"),((('GF diets L-Val'!AG$351-'GF diets L-Val'!AG$5)*('GF diets L-Val'!AG$353/100)*'DDGS Calculator'!$G$8)-'GF diets L-Val'!AG$266)-\n((('GF diets L-Val'!E$351-'GF diets L-Val'!E$5)*('GF diets L-Val'!E$353/100)*'DDGS Calculator'!$G$8)-'GF diets L-Val'!E$266),\nIF(AND($G$5=\"Yes\",$G$6=\"No\",$G$7=\"Yes\"),((('GF diets L-Val + Fat'!AG$351-'GF diets L-Val + Fat'!AG$5)*('GF diets L-Val + Fat'!AG$353/100)*'DDGS Calculator'!$G$8)-'GF diets L-Val + Fat'!AG$266)-\n((('GF diets L-Val + Fat'!E$351-'GF diets L-Val + Fat'!E$5)*('GF diets L-Val + Fat'!E$353/100)*'DDGS Calculator'!$G$8)-'GF diets L-Val + Fat'!E$266),\nIF(AND($G$5=\"No\",$G$6=\"Yes\",$G$7=\"No\"),((('GF diets No L-Val + WD'!AG$351-'GF diets No L-Val + WD'!AG$5)*('GF diets No L-Val + WD'!AG$353/100)*'DDGS Calculator'!$G$8)-'GF diets No L-Val + WD'!AG$266)-\n((('GF diets No L-Val + WD'!E$351-'GF diets No L-Val + WD'!E$5)*('GF diets No L-Val + WD'!E$353/100)*'DDGS Calculator'!$G$8)-'GF diets No L-Val + WD'!E$266),\nIF(AND($G$5=\"Yes\",$G$6=\"Yes\",$G$7=\"No\"),((('GF diets No L-Val + Fat + WD'!AG$351-'GF diets No L-Val + Fat + WD'!AG$5)*('GF diets No L-Val + Fat + WD'!AG$353/100)*'DDGS Calculator'!$G$8)-'GF diets No L-Val + Fat + WD'!AG$266)-\n((('GF diets No L-Val + Fat + WD'!E$351-'GF diets No L-Val + Fat + WD'!E$5)*('GF diets No L-Val + Fat + WD'!E$353/100)*'DDGS Calculator'!$G$8)-'GF diets No L-Val + Fat + WD'!E$266),\nIF(AND($G$5=\"No\",$G$6=\"Yes\",$G$7=\"Yes\"),((('GF diets L-Val + WD'!AG$351-'GF diets L-Val + WD'!AG$5)*('GF diets L-Val + WD'!AG$353/100)*'DDGS Calculator'!$G$8)-'GF diets L-Val + WD'!AG$266)-\n((('GF diets L-Val + WD'!E$351-'GF diets L-Val + WD'!E$5)*('GF diets L-Val + WD'!E$353/100)*'DDGS Calculator'!$G$8)-'GF diets L-Val + WD'!E$266),\nIF(AND($G$5=\"Yes\",$G$6=\"Yes\",$G$7=\"Yes\"),((('GF diets L-Val + Fat + WD'!AG$351-'GF diets L-Val + Fat + WD'!AG$5)*('GF diets L-Val + Fat + WD'!AG$353/100)*'DDGS Calculator'!$G$8)-'GF diets L-Val + Fat + WD'!AG$266)-\n((('GF diets L-Val + Fat + WD'!E$351-'GF diets L-Val + Fat + WD'!E$5)*('GF diets L-Val + Fat + WD'!E$353/100)*'DDGS Calculator'!$G$8)-'GF diets L-Val + Fat + WD'!E$266)\n))))))))","v":-0.7334290470243694},{"$f":"IF(AND($G$5=\"No\",$G$6=\"No\",$G$7=\"No\"),((('GF diets No L-Val'!AH$351-'GF diets No L-Val'!AH$5)*('GF diets No L-Val'!AH$353/100)*'DDGS Calculator'!$G$8)-'GF diets No L-Val'!AH$266)-\n((('GF diets No L-Val'!F$351-'GF diets No L-Val'!F$5)*('GF diets No L-Val'!F$353/100)*'DDGS Calculator'!$G$8)-'GF diets No L-Val'!F$266),\nIF(AND($G$5=\"Yes\",$G$6=\"No\",$G$7=\"No\"),((('GF diets No L-Val + Fat'!AH$351-'GF diets No L-Val + Fat'!AH$5)*('GF diets No L-Val + Fat'!AH$353/100)*'DDGS Calculator'!$G$8)-'GF diets No L-Val + Fat'!AH$266)-\n((('GF diets No L-Val + Fat'!F$351-'GF diets No L-Val + Fat'!F$5)*('GF diets No L-Val + Fat'!F$353/100)*'DDGS Calculator'!$G$8)-'GF diets No L-Val + Fat'!F$266),\nIF(AND($G$5=\"No\",$G$6=\"No\",$G$7=\"Yes\"),((('GF diets L-Val'!AH$351-'GF diets L-Val'!AH$5)*('GF diets L-Val'!AH$353/100)*'DDGS Calculator'!$G$8)-'GF diets L-Val'!AH$266)-\n((('GF diets L-Val'!F$351-'GF diets L-Val'!F$5)*('GF diets L-Val'!F$353/100)*'DDGS Calculator'!$G$8)-'GF diets L-Val'!F$266),\nIF(AND($G$5=\"Yes\",$G$6=\"No\",$G$7=\"Yes\"),((('GF diets L-Val + Fat'!AH$351-'GF diets L-Val + Fat'!AH$5)*('GF diets L-Val + Fat'!AH$353/100)*'DDGS Calculator'!$G$8)-'GF diets L-Val + Fat'!AH$266)-\n((('GF diets L-Val + Fat'!F$351-'GF diets L-Val + Fat'!F$5)*('GF diets L-Val + Fat'!F$353/100)*'DDGS Calculator'!$G$8)-'GF diets L-Val + Fat'!F$266),\nIF(AND($G$5=\"No\",$G$6=\"Yes\",$G$7=\"No\"),((('GF diets No L-Val + WD'!AH$351-'GF diets No L-Val + WD'!AH$5)*('GF diets No L-Val + WD'!AH$353/100)*'DDGS Calculator'!$G$8)-'GF diets No L-Val + WD'!AH$266)-\n((('GF diets No L-Val + WD'!F$351-'GF diets No L-Val + WD'!F$5)*('GF diets No L-Val + WD'!F$353/100)*'DDGS Calculator'!$G$8)-'GF diets No L-Val + WD'!F$266),\nIF(AND($G$5=\"Yes\",$G$6=\"Yes\",$G$7=\"No\"),((('GF diets No L-Val + Fat + WD'!AH$351-'GF diets No L-Val + Fat + WD'!AH$5)*('GF diets No L-Val + Fat + WD'!AH$353/100)*'DDGS Calculator'!$G$8)-'GF diets No L-Val + Fat + WD'!AH$266)-\n((('GF diets No L-Val + Fat + WD'!F$351-'GF diets No L-Val + Fat + WD'!F$5)*('GF diets No L-Val + Fat + WD'!F$353/100)*'DDGS Calculator'!$G$8)-'GF diets No L-Val + Fat + WD'!F$266),\nIF(AND($G$5=\"No\",$G$6=\"Yes\",$G$7=\"Yes\"),((('GF diets L-Val + WD'!AH$351-'GF diets L-Val + WD'!AH$5)*('GF diets L-Val + WD'!AH$353/100)*'DDGS Calculator'!$G$8)-'GF diets L-Val + WD'!AH$266)-\n((('GF diets L-Val + WD'!F$351-'GF diets L-Val + WD'!F$5)*('GF diets L-Val + WD'!F$353/100)*'DDGS Calculator'!$G$8)-'GF diets L-Val + WD'!F$266),\nIF(AND($G$5=\"Yes\",$G$6=\"Yes\",$G$7=\"Yes\"),((('GF diets L-Val + Fat + WD'!AH$351-'GF diets L-Val + Fat + WD'!AH$5)*('GF diets L-Val + Fat + WD'!AH$353/100)*'DDGS Calculator'!$G$8)-'GF diets L-Val + Fat + WD'!AH$266)-\n((('GF diets L-Val + Fat + WD'!F$351-'GF diets L-Val + Fat + WD'!F$5)*('GF diets L-Val + Fat + WD'!F$353/100)*'DDGS Calculator'!$G$8)-'GF diets L-Val + Fat + WD'!F$266)\n))))))))","v":-0.91202643086404578},{"$f":"IF(AND($G$5=\"No\",$G$6=\"No\",$G$7=\"No\"),((('GF diets No L-Val'!AI$351-'GF diets No L-Val'!AI$5)*('GF diets No L-Val'!AI$353/100)*'DDGS Calculator'!$G$8)-'GF diets No L-Val'!AI$266)-\n((('GF diets No L-Val'!G$351-'GF diets No L-Val'!G$5)*('GF diets No L-Val'!G$353/100)*'DDGS Calculator'!$G$8)-'GF diets No L-Val'!G$266),\nIF(AND($G$5=\"Yes\",$G$6=\"No\",$G$7=\"No\"),((('GF diets No L-Val + Fat'!AI$351-'GF diets No L-Val + Fat'!AI$5)*('GF diets No L-Val + Fat'!AI$353/100)*'DDGS Calculator'!$G$8)-'GF diets No L-Val + Fat'!AI$266)-\n((('GF diets No L-Val + Fat'!G$351-'GF diets No L-Val + Fat'!G$5)*('GF diets No L-Val + Fat'!G$353/100)*'DDGS Calculator'!$G$8)-'GF diets No L-Val + Fat'!G$266),\nIF(AND($G$5=\"No\",$G$6=\"No\",$G$7=\"Yes\"),((('GF diets L-Val'!AI$351-'GF diets L-Val'!AI$5)*('GF diets L-Val'!AI$353/100)*'DDGS Calculator'!$G$8)-'GF diets L-Val'!AI$266)-\n((('GF diets L-Val'!G$351-'GF diets L-Val'!G$5)*('GF diets L-Val'!G$353/100)*'DDGS Calculator'!$G$8)-'GF diets L-Val'!G$266),\nIF(AND($G$5=\"Yes\",$G$6=\"No\",$G$7=\"Yes\"),((('GF diets L-Val + Fat'!AI$351-'GF diets L-Val + Fat'!AI$5)*('GF diets L-Val + Fat'!AI$353/100)*'DDGS Calculator'!$G$8)-'GF diets L-Val + Fat'!AI$266)-\n((('GF diets L-Val + Fat'!G$351-'GF diets L-Val + Fat'!G$5)*('GF diets L-Val + Fat'!G$353/100)*'DDGS Calculator'!$G$8)-'GF diets L-Val + Fat'!G$266),\nIF(AND($G$5=\"No\",$G$6=\"Yes\",$G$7=\"No\"),((('GF diets No L-Val + WD'!AI$351-'GF diets No L-Val + WD'!AI$5)*('GF diets No L-Val + WD'!AI$353/100)*'DDGS Calculator'!$G$8)-'GF diets No L-Val + WD'!AI$266)-\n((('GF diets No L-Val + WD'!G$351-'GF diets No L-Val + WD'!G$5)*('GF diets No L-Val + WD'!G$353/100)*'DDGS Calculator'!$G$8)-'GF diets No L-Val + WD'!G$266),\nIF(AND($G$5=\"Yes\",$G$6=\"Yes\",$G$7=\"No\"),((('GF diets No L-Val + Fat + WD'!AI$351-'GF diets No L-Val + Fat + WD'!AI$5)*('GF diets No L-Val + Fat + WD'!AI$353/100)*'DDGS Calculator'!$G$8)-'GF diets No L-Val + Fat + WD'!AI$266)-\n((('GF diets No L-Val + Fat + WD'!G$351-'GF diets No L-Val + Fat + WD'!G$5)*('GF diets No L-Val + Fat + WD'!G$353/100)*'DDGS Calculator'!$G$8)-'GF diets No L-Val + Fat + WD'!G$266),\nIF(AND($G$5=\"No\",$G$6=\"Yes\",$G$7=\"Yes\"),((('GF diets L-Val + WD'!AI$351-'GF diets L-Val + WD'!AI$5)*('GF diets L-Val + WD'!AI$353/100)*'DDGS Calculator'!$G$8)-'GF diets L-Val + WD'!AI$266)-\n((('GF diets L-Val + WD'!G$351-'GF diets L-Val + WD'!G$5)*('GF diets L-Val + WD'!G$353/100)*'DDGS Calculator'!$G$8)-'GF diets L-Val + WD'!G$266),\nIF(AND($G$5=\"Yes\",$G$6=\"Yes\",$G$7=\"Yes\"),((('GF diets L-Val + Fat + WD'!AI$351-'GF diets L-Val + Fat + WD'!AI$5)*('GF diets L-Val + Fat + WD'!AI$353/100)*'DDGS Calculator'!$G$8)-'GF diets L-Val + Fat + WD'!AI$266)-\n((('GF diets L-Val + Fat + WD'!G$351-'GF diets L-Val + Fat + WD'!G$5)*('GF diets L-Val + Fat + WD'!G$353/100)*'DDGS Calculator'!$G$8)-'GF diets L-Val + Fat + WD'!G$266)\n))))))))","v":-1.2999919849986785},-4.6529354089342938,{"$f":"I71-I70","v":-1.1373574695026232}]
[0.25,"25% DDGS",{"$f":"IF(AND($G$5=\"No\",$G$6=\"No\",$G$7=\"No\"),((('GF diets No L-Val'!AK$351-'GF diets No L-Val'!AK$5)*('GF diets No L-Val'!AK$353/100)*'DDGS Calculator'!$G$8)-'GF diets No L-Val'!AK$266)-\n((('GF diets No L-Val'!B$351-'GF diets No L-Val'!B$5)*('GF diets No L-Val'!B$353/100)*'DDGS Calculator'!$G$8)-'GF diets No L-Val'!B$266),\nIF(AND($G$5=\"Yes\",$G$6=\"No\",$G$7=\"No\"),((('GF diets No L-Val + Fat'!AK$351-'GF diets No L-Val + Fat'!AK$5)*('GF diets No L-Val + Fat'!AK$353/100)*'DDGS Calculator'!$G$8)-'GF diets No L-Val + Fat'!AK$266)-\n((('GF diets No L-Val + Fat'!B$351-'GF diets No L-Val + Fat'!B$5)*('GF diets No L-Val + Fat'!B$353/100)*'DDGS Calculator'!$G$8)-'GF diets No L-Val + Fat'!B$266),\nIF(AND($G$5=\"No\",$G$6=\"No\",$G$7=\"Yes\"),((('GF diets L-Val'!AK$351-'GF diets L-Val'!AK$5)*('GF diets L-Val'!AK$353/100)*'DDGS Calculator'!$G$8)-'GF diets L-Val'!AK$266)-\n((('GF diets L-Val'!B$351-'GF diets L-Val'!B$5)*('GF diets L-Val'!B$353/100)*'DDGS Calculator'!$G$8)-'GF diets L-Val'!B$266),\nIF(AND($G$5=\"Yes\",$G$6=\"No\",$G$7=\"Yes\"),((('GF diets L-Val + Fat'!AK$351-'GF diets L-Val + Fat'!AK$5)*('GF diets L-Val + Fat'!AK$353/100)*'DDGS Calculator'!$G$8)-'GF diets L-Val + Fat'!AK$266)-\n((('GF diets L-Val + Fat'!B$351-'GF diets L-Val + Fat'!B$5)*('GF diets L-Val + Fat'!B$353/100)*'DDGS Calculator'!$G$8)-'GF diets L-Val + Fat'!B$266),\nIF(AND($G$5=\"No\",$G$6=\"Yes\",$G$7=\"No\"),((('GF diets No L-Val + WD'!AK$351-'GF diets No L-Val + WD'!AK$5)*('GF diets No L-Val + WD'!AK$353/100)*'DDGS Calculator'!$G$8)-'GF diets No L-Val + WD'!AK$266)-\n((('GF diets No L-Val + WD'!B$351-'GF diets No L-Val + WD'!B$5)*('GF diets No L-Val + WD'!B$353/100)*'DDGS Calculator'!$G$8)-'GF diets No L-Val + WD'!B$266),\nIF(AND($G$5=\"Yes\",$G$6=\"Yes\",$G$7=\"No\"),((('GF diets No L-Val + Fat + WD'!AK$351-'GF diets No L-Val + Fat + WD'!AK$5)*('GF diets No L-Val + Fat + WD'!AK$353/100)*'DDGS Calculator'!$G$8)-'GF diets No L-Val + Fat + WD'!AK$266)-\n((('GF diets No L-Val + Fat + WD'!B$351-'GF diets No L-Val + Fat + WD'!B$5)*('GF diets No L-Val + Fat + WD'!B$353/100)*'DDGS Calculator'!$G$8)-'GF diets No L-Val + Fat + WD'!B$266),\nIF(AND($G$5=\"No\",$G$6=\"Yes\",$G$7=\"Yes\"),((('GF diets L-Val + WD'!AK$351-'GF diets L-Val + WD'!AK$5)*('GF diets L-Val + WD'!AK$353/100)*'DDGS Calculator'!$G$8)-'GF diets L-Val + WD'!AK$266)-\n((('GF diets L-Val + WD'!B$351-'GF diets L-Val + WD'!B$5)*('GF diets L-Val + WD'!B$353/100)*'DDGS Calculator'!$G$8)-'GF diets L-Val + WD'!B$266),\nIF(AND($G$5=\"Yes\",$G$6=\"Yes\",$G$7=\"Yes\"),((('GF diets L-Val + Fat + WD'!AK$351-'GF diets L-Val + Fat + WD'!AK$5)*('GF diets L-Val + Fat + WD'!AK$353/100)*'DDGS Calculator'!$G$8)-'GF diets L-Val + Fat + WD'!AK$266)-\n((('GF diets L-Val + Fat + WD'!B$351-'GF diets L-Val + Fat + WD'!B$5)*('GF diets L-Val + Fat + WD'!B$353/100)*'DDGS Calculator'!$G$8)-'GF diets L-Val + Fat + WD'!B$266)\n))))))))","v":-0.65647567887913105},{"$f":"IF(AND($G$5=\"No\",$G$6=\"No\",$G$7=\"No\"),((('GF diets No L-Val'!AL$351-'GF diets No L-Val'!AL$5)*('GF diets No L-Val'!AL$353/100)*'DDGS Calculator'!$G$8)-'GF diets No L-Val'!AL$266)-\n((('GF diets No L-Val'!C$351-'GF diets No L-Val'!C$5)*('GF diets No L-Val'!C$353/100)*'DDGS Calculator'!$G$8)-'GF diets No L-Val'!C$266),\nIF(AND($G$5=\"Yes\",$G$6=\"No\",$G$7=\"No\"),((('GF diets No L-Val + Fat'!AL$351-'GF diets No L-Val + Fat'!AL$5)*('GF diets No L-Val + Fat'!AL$353/100)*'DDGS Calculator'!$G$8)-'GF diets No L-Val + Fat'!AL$266)-\n((('GF diets No L-Val + Fat'!C$351-'GF diets No L-Val + Fat'!C$5)*('GF diets No L-Val + Fat'!C$353/100)*'DDGS Calculator'!$G$8)-'GF diets No L-Val + Fat'!C$266),\nIF(AND($G$5=\"No\",$G$6=\"No\",$G$7=\"Yes\"),((('GF diets L-Val'!AL$351-'GF diets L-Val'!AL$5)*('GF diets L-Val'!AL$353/100)*'DDGS Calculator'!$G$8)-'GF diets L-Val'!AL$266)-\n((('GF diets L-Val'!C$351-'GF diets L-Val'!C$5)*('GF diets L-Val'!C$353/100)*'DDGS Calculator'!$G$8)-'GF diets L-Val'!C$266),\nIF(AND($G$5=\"Yes\",$G$6=\"No\",$G$7=\"Yes\"),((('GF diets L-Val + Fat'!AL$351-'GF diets L-Val + Fat'!AL$5)*('GF diets L-Val + Fat'!AL$353/100)*'DDGS Calculator'!$G$8)-'GF diets L-Val + Fat'!AL$266)-\n((('GF diets L-Val + Fat'!C$351-'GF diets L-Val + Fat'!C$5)*('GF diets L-Val + Fat'!C$353/100)*'DDGS Calculator'!$G$8)-'GF diets L-Val + Fat'!C$266),\nIF(AND($G$5=\"No\",$G$6=\"Yes\",$G$7=\"No\"),((('GF diets No L-Val + WD'!AL$351-'GF diets No L-Val + WD'!AL$5)*('GF diets No L-Val + WD'!AL$353/100)*'DDGS Calculator'!$G$8)-'GF diets No L-Val + WD'!AL$266)-\n((('GF diets No L-Val + WD'!C$351-'GF diets No L-Val + WD'!C$5)*('GF diets No L-Val + WD'!C$353/100)*'DDGS Calculator'!$G$8)-'GF diets No L-Val + WD'!C$266),\nIF(AND($G$5=\"Yes\",$G$6=\"Yes\",$G$7=\"No\"),((('GF diets No L-Val + Fat + WD'!AL$351-'GF diets No L-Val + Fat + WD'!AL$5)*('GF diets No L-Val + Fat + WD'!AL$353/100)*'DDGS Calculator'!$G$8)-'GF diets No L-Val + Fat + WD'!AL$266)-\n((('GF diets No L-Val + Fat + WD'!C$351-'GF diets No L-Val + Fat + WD'!C$5)*('GF diets No L-Val + Fat + WD'!C$353/100)*'DDGS Calculator'!$G$8)-'GF diets No L-Val + Fat + WD'!C$266),\nIF(AND($G$5=\"No\",$G$6=\"Yes\",$G$7=\"Yes\"),((('GF diets L-Val + WD'!AL$351-'GF diets L-Val + WD'!AL$5)*('GF diets L-Val + WD'!AL$353/100)*'DDGS Calculator'!$G$8)-'GF diets L-Val + WD'!AL$266)-\n((('GF diets L-Val + WD'!C$351-'GF diets L-Val + WD'!C$5)*('GF diets L-Val + WD'!C$353/100)*'DDGS Calculator'!$G$8)-'GF diets L-Val + WD'!C$266),\nIF(AND($G$5=\"Yes\",$G$6=\"Yes\",$G$7=\"Yes\"),((('GF diets L-Val + Fat + WD'!AL$351-'GF diets L-Val + Fat + WD'!AL$5)*('GF diets L-Val + Fat + WD'!AL$353/100)*'DDGS Calculator'!$G$8)-'GF diets L-Val + Fat + WD'!AL$266)-\n((('GF diets L-Val + Fat + WD'!C$351-'GF diets L-Val + Fat + WD'!C$5)*('GF diets L-Val + Fat + WD'!C$353/100)*'DDGS Calculator'!$G$8)-'GF diets L-Val + Fat + WD'!C$266)\n))))))))","v":-0.63411846463058374},{"$f":"IF(AND($G$5=\"No\",$G$6=\"No\",$G$7=\"No\"),((('GF diets No L-Val'!AM$351-'GF diets No L-Val'!AM$5)*('GF diets No L-Val'!AM$353/100)*'DDGS Calculator'!$G$8)-'GF diets No L-Val'!AM$266)-\n((('GF diets No L-Val'!D$351-'GF diets No L-Val'!D$5)*('GF diets No L-Val'!D$353/100)*'DDGS Calculator'!$G$8)-'GF diets No L-Val'!D$266),\nIF(AND($G$5=\"Yes\",$G$6=\"No\",$G$7=\"No\"),((('GF diets No L-Val + Fat'!AM$351-'GF diets No L-Val + Fat'!AM$5)*('GF diets No L-Val + Fat'!AM$353/100)*'DDGS Calculator'!$G$8)-'GF diets No L-Val + Fat'!AM$266)-\n((('GF diets No L-Val + Fat'!D$351-'GF diets No L-Val + Fat'!D$5)*('GF diets No L-Val + Fat'!D$353/100)*'DDGS Calculator'!$G$8)-'GF diets No L-Val + Fat'!D$266),\nIF(AND($G$5=\"No\",$G$6=\"No\",$G$7=\"Yes\"),((('GF diets L-Val'!AM$351-'GF diets L-Val'!AM$5)*('GF diets L-Val'!AM$353/100)*'DDGS Calculator'!$G$8)-'GF diets L-Val'!AM$266)-\n((('GF diets L-Val'!D$351-'GF diets L-Val'!D$5)*('GF diets L-Val'!D$353/100)*'DDGS Calculator'!$G$8)-'GF diets L-Val'!D$266),\nIF(AND($G$5=\"Yes\",$G$6=\"No\",$G$7=\"Yes\"),((('GF diets L-Val + Fat'!AM$351-'GF diets L-Val + Fat'!AM$5)*('GF diets L-Val + Fat'!AM$353/100)*'DDGS Calculator'!$G$8)-'GF diets L-Val + Fat'!AM$266)-\n((('GF diets L-Val + Fat'!D$351-'GF diets L-Val + Fat'!D$5)*('GF diets L-Val + Fat'!D$353/100)*'DDGS Calculator'!$G$8)-'GF diets L-Val + Fat'!D$266),\nIF(AND($G$5=\"No\",$G$6=\"Yes\",$G$7=\"No\"),((('GF diets No L-Val + WD'!AM$351-'GF diets No L-Val + WD'!AM$5)*('GF diets No L-Val + WD'!AM$353/100)*'DDGS Calculator'!$G$8)-'GF diets No L-Val + WD'!AM$266)-\n((('GF diets No L-Val + WD'!D$351-'GF diets No L-Val + WD'!D$5)*('GF diets No L-Val + WD'!D$353/100)*'DDGS Calculator'!$G$8)-'GF diets No L-Val + WD'!D$266),\nIF(AND($G$5=\"Yes\",$G$6=\"Yes\",$G$7=\"No\"),((('GF diets No L-Val + Fat + WD'!AM$351-'GF diets No L-Val + Fat + WD'!AM$5)*('GF diets No L-Val + Fat + WD'!AM$353/100)*'DDGS Calculator'!$G$8)-'GF diets No L-Val + Fat + WD'!AM$266)-\n((('GF diets No L-Val + Fat + WD'!D$351-'GF diets No L-Val + Fat + WD'!D$5)*('GF diets No L-Val + Fat + WD'!D$353/100)*'DDGS Calculator'!$G$8)-'GF diets No L-Val + Fat + WD'!D$266),\nIF(AND($G$5=\"No\",$G$6=\"Yes\",$G$7=\"Yes\"),((('GF diets L-Val + WD'!AM$351-'GF diets L-Val + WD'!AM$5)*('GF diets L-Val + WD'!AM$353/100)*'DDGS Calculator'!$G$8)-'GF diets L-Val + WD'!AM$266)-\n((('GF diets L-Val + WD'!D$351-'GF diets L-Val + WD'!D$5)*('GF diets L-Val + WD'!D$353/100)*'DDGS Calculator'!$G$8)-'GF diets L-Val + WD'!D$266),\nIF(AND($G$5=\"Yes\",$G$6=\"Yes\",$G$7=\"Yes\"),((('GF diets L-Val + Fat + WD'!AM$351-'GF diets L-Val + Fat + WD'!AM$5)*('GF diets L-Val + Fat + WD'!AM$353/100)*'DDGS Calculator'!$G$8)-'GF diets L-Val + Fat + WD'!AM$266)-\n((('GF diets L-Val + Fat + WD'!D$351-'GF diets L-Val + Fat + WD'!D$5)*('GF diets L-Val + Fat + WD'!D$353/100)*'DDGS Calculator'!$G$8)-'GF diets L-Val + Fat + WD'!D$266)\n))))))))","v":-0.78530715521404559},{"$f":"IF(AND($G$5=\"No\",$G$6=\"No\",$G$7=\"No\"),((('GF diets No L-Val'!AN$351-'GF diets No L-Val'!AN$5)*('GF diets No L-Val'!AN$353/100)*'DDGS Calculator'!$G$8)-'GF diets No L-Val'!AN$266)-\n((('GF diets No L-Val'!E$351-'GF diets No L-Val'!E$5)*('GF diets No L-Val'!E$353/100)*'DDGS Calculator'!$G$8)-'GF diets No L-Val'!E$266),\nIF(AND($G$5=\"Yes\",$G$6=\"No\",$G$7=\"No\"),((('GF diets No L-Val + Fat'!AN$351-'GF diets No L-Val + Fat'!AN$5)*('GF diets No L-Val + Fat'!AN$353/100)*'DDGS Calculator'!$G$8)-'GF diets No L-Val + Fat'!AN$266)-\n((('GF diets No L-Val + Fat'!E$351-'GF diets No L-Val + Fat'!E$5)*('GF diets No L-Val + Fat'!E$353/100)*'DDGS Calculator'!$G$8)-'GF diets No L-Val + Fat'!E$266),\nIF(AND($G$5=\"No\",$G$6=\"No\",$G$7=\"Yes\"),((('GF diets L-Val'!AN$351-'GF diets L-Val'!AN$5)*('GF diets L-Val'!AN$353/100)*'DDGS Calculator'!$G$8)-'GF diets L-Val'!AN$266)-\n((('GF diets L-Val'!E$351-'GF diets L-Val'!E$5)*('GF diets L-Val'!E$353/100)*'DDGS Calculator'!$G$8)-'GF diets L-Val'!E$266),\nIF(AND($G$5=\"Yes\",$G$6=\"No\",$G$7=\"Yes\"),((('GF diets L-Val + Fat'!AN$351-'GF diets L-Val + Fat'!AN$5)*('GF diets L-Val + Fat'!AN$353/100)*'DDGS Calculator'!$G$8)-'GF diets L-Val + Fat'!AN$266)-\n((('GF diets L-Val + Fat'!E$351-'GF diets L-Val + Fat'!E$5)*('GF diets L-Val + Fat'!E$353/100)*'DDGS Calculator'!$G$8)-'GF diets L-Val + Fat'!E$266),\nIF(AND($G$5=\"No\",$G$6=\"Yes\",$G$7=\"No\"),((('GF diets No L-Val + WD'!AN$351-'GF diets No L-Val + WD'!AN$5)*('GF diets No L-Val + WD'!AN$353/100)*'DDGS Calculator'!$G$8)-'GF diets No L-Val + WD'!AN$266)-\n((('GF diets No L-Val + WD'!E$351-'GF diets No L-Val + WD'!E$5)*('GF diets No L-Val + WD'!E$353/100)*'DDGS Calculator'!$G$8)-'GF diets No L-Val + WD'!E$266),\nIF(AND($G$5=\"Yes\",$G$6=\"Yes\",$G$7=\"No\"),((('GF diets No L-Val + Fat + WD'!AN$351-'GF diets No L-Val + Fat + WD'!AN$5)*('GF diets No L-Val + Fat + WD'!AN$353/100)*'DDGS Calculator'!$G$8)-'GF diets No L-Val + Fat + WD'!AN$266)-\n((('GF diets No L-Val + Fat + WD'!E$351-'GF diets No L-Val + Fat + WD'!E$5)*('GF diets No L-Val + Fat + WD'!E$353/100)*'DDGS Calculator'!$G$8)-'GF diets No L-Val + Fat + WD'!E$266),\nIF(AND($G$5=\"No\",$G$6=\"Yes\",$G$7=\"Yes\"),((('GF diets L-Val + WD'!AN$351-'GF diets L-Val + WD'!AN$5)*('GF diets L-Val + WD'!AN$353/100)*'DDGS Calculator'!$G$8)-'GF diets L-Val + WD'!AN$266)-\n((('GF diets L-Val + WD'!E$351-'GF diets L-Val + WD'!E$5)*('GF diets L-Val + WD'!E$353/100)*'DDGS Calculator'!$G$8)-'GF diets L-Val + WD'!E$266),\nIF(AND($G$5=\"Yes\",$G$6=\"Yes\",$G$7=\"Yes\"),((('GF diets L-Val + Fat + WD'!AN$351-'GF diets L-Val + Fat + WD'!AN$5)*('GF diets L-Val + Fat + WD'!AN$353/100)*'DDGS Calculator'!$G$8)-'GF diets L-Val + Fat + WD'!AN$266)-\n((('GF diets L-Val + Fat + WD'!E$351-'GF diets L-Val + Fat + WD'!E$5)*('GF diets L-Val + Fat + WD'!E$353/100)*'DDGS Calculator'!$G$8)-'GF diets L-Val + Fat + WD'!E$266)\n))))))))","v":-0.91966737382063179},{"$f":"IF(AND($G$5=\"No\",$G$6=\"No\",$G$7=\"No\"),((('GF diets No L-Val'!AO$351-'GF diets No L-Val'!AO$5)*('GF diets No L-Val'!AO$353/100)*'DDGS Calculator'!$G$8)-'GF diets No L-Val'!AO$266)-\n((('GF diets No L-Val'!F$351-'GF diets No L-Val'!F$5)*('GF diets No L-Val'!F$353/100)*'DDGS Calculator'!$G$8)-'GF diets No L-Val'!F$266),\nIF(AND($G$5=\"Yes\",$G$6=\"No\",$G$7=\"No\"),((('GF diets No L-Val + Fat'!AO$351-'GF diets No L-Val + Fat'!AO$5)*('GF diets No L-Val + Fat'!AO$353/100)*'DDGS Calculator'!$G$8)-'GF diets No L-Val + Fat'!AO$266)-\n((('GF diets No L-Val + Fat'!F$351-'GF diets No L-Val + Fat'!F$5)*('GF diets No L-Val + Fat'!F$353/100)*'DDGS Calculator'!$G$8)-'GF diets No L-Val + Fat'!F$266),\nIF(AND($G$5=\"No\",$G$6=\"No\",$G$7=\"Yes\"),((('GF diets L-Val'!AO$351-'GF diets L-Val'!AO$5)*('GF diets L-Val'!AO$353/100)*'DDGS Calculator'!$G$8)-'GF diets L-Val'!AO$266)-\n((('GF diets L-Val'!F$351-'GF diets L-Val'!F$5)*('GF diets L-Val'!F$353/100)*'DDGS Calculator'!$G$8)-'GF diets L-Val'!F$266),\nIF(AND($G$5=\"Yes\",$G$6=\"No\",$G$7=\"Yes\"),((('GF diets L-Val + Fat'!AO$351-'GF diets L-Val + Fat'!AO$5)*('GF diets L-Val + Fat'!AO$353/100)*'DDGS Calculator'!$G$8)-'GF diets L-Val + Fat'!AO$266)-\n((('GF diets L-Val + Fat'!F$351-'GF diets L-Val + Fat'!F$5)*('GF diets L-Val + Fat'!F$353/100)*'DDGS Calculator'!$G$8)-'GF diets L-Val + Fat'!F$266),\nIF(AND($G$5=\"No\",$G$6=\"Yes\",$G$7=\"No\"),((('GF diets No L-Val + WD'!AO$351-'GF diets No L-Val + WD'!AO$5)*('GF diets No L-Val + WD'!AO$353/100)*'DDGS Calculator'!$G$8)-'GF diets No L-Val + WD'!AO$266)-\n((('GF diets No L-Val + WD'!F$351-'GF diets No L-Val + WD'!F$5)*('GF diets No L-Val + WD'!F$353/100)*'DDGS Calculator'!$G$8)-'GF diets No L-Val + WD'!F$266),\nIF(AND($G$5=\"Yes\",$G$6=\"Yes\",$G$7=\"No\"),((('GF diets No L-Val + Fat + WD'!AO$351-'GF diets No L-Val + Fat + WD'!AO$5)*('GF diets No L-Val + Fat + WD'!AO$353/100)*'DDGS Calculator'!$G$8)-'GF diets No L-Val + Fat + WD'!AO$266)-\n((('GF diets No L-Val + Fat + WD'!F$351-'GF diets No L-Val + Fat + WD'!F$5)*('GF diets No L-Val + Fat + WD'!F$353/100)*'DDGS Calculator'!$G$8)-'GF diets No L-Val + Fat + WD'!F$266),\nIF(AND($G$5=\"No\",$G$6=\"Yes\",$G$7=\"Yes\"),((('GF diets L-Val + WD'!AO$351-'GF diets L-Val + WD'!AO$5)*('GF diets L-Val + WD'!AO$353/100)*'DDGS Calculator'!$G$8)-'GF diets L-Val + WD'!AO$266)-\n((('GF diets L-Val + WD'!F$351-'GF diets L-Val + WD'!F$5)*('GF diets L-Val + WD'!F$353/100)*'DDGS Calculator'!$G$8)-'GF diets L-Val + WD'!F$266),\nIF(AND($G$5=\"Yes\",$G$6=\"Yes\",$G$7=\"Yes\"),((('GF diets L-Val + Fat + WD'!AO$351-'GF diets L-Val + Fat + WD'!AO$5)*('GF diets L-Val + Fat + WD'!AO$353/100)*'DDGS Calculator'!$G$8)-'GF diets L-Val + Fat + WD'!AO$266)-\n((('GF diets L-Val + Fat + WD'!F$351-'GF diets L-Val + Fat + WD'!F$5)*('GF diets L-Val + Fat + WD'!F$353/100)*'DDGS Calculator'!$G$8)-'GF diets L-Val + Fat + WD'!F$266)\n))))))))","v":-1.1536972404797172},{"$f":"IF(AND($G$5=\"No\",$G$6=\"No\",$G$7=\"No\"),((('GF diets No L-Val'!AP$351-'GF diets No L-Val'!AP$5)*('GF diets No L-Val'!AP$353/100)*'DDGS Calculator'!$G$8)-'GF diets No L-Val'!AP$266)-\n((('GF diets No L-Val'!G$351-'GF diets No L-Val'!G$5)*('GF diets No L-Val'!G$353/100)*'DDGS Calculator'!$G$8)-'GF diets No L-Val'!G$266),\nIF(AND($G$5=\"Yes\",$G$6=\"No\",$G$7=\"No\"),((('GF diets No L-Val + Fat'!AP$351-'GF diets No L-Val + Fat'!AP$5)*('GF diets No L-Val + Fat'!AP$353/100)*'DDGS Calculator'!$G$8)-'GF diets No L-Val + Fat'!AP$266)-\n((('GF diets No L-Val + Fat'!G$351-'GF diets No L-Val + Fat'!G$5)*('GF diets No L-Val + Fat'!G$353/100)*'DDGS Calculator'!$G$8)-'GF diets No L-Val + Fat'!G$266),\nIF(AND($G$5=\"No\",$G$6=\"No\",$G$7=\"Yes\"),((('GF diets L-Val'!AP$351-'GF diets L-Val'!AP$5)*('GF diets L-Val'!AP$353/100)*'DDGS Calculator'!$G$8)-'GF diets L-Val'!AP$266)-\n((('GF diets L-Val'!G$351-'GF diets L-Val'!G$5)*('GF diets L-Val'!G$353/100)*'DDGS Calculator'!$G$8)-'GF diets L-Val'!G$266),\nIF(AND($G$5=\"Yes\",$G$6=\"No\",$G$7=\"Yes\"),((('GF diets L-Val + Fat'!AP$351-'GF diets L-Val + Fat'!AP$5)*('GF diets L-Val + Fat'!AP$353/100)*'DDGS Calculator'!$G$8)-'GF diets L-Val + Fat'!AP$266)-\n((('GF diets L-Val + Fat'!G$351-'GF diets L-Val + Fat'!G$5)*('GF diets L-Val + Fat'!G$353/100)*'DDGS Calculator'!$G$8)-'GF diets L-Val + Fat'!G$266),\nIF(AND($G$5=\"No\",$G$6=\"Yes\",$G$7=\"No\"),((('GF diets No L-Val + WD'!AP$351-'GF diets No L-Val + WD'!AP$5)*('GF diets No L-Val + WD'!AP$353/100)*'DDGS Calculator'!$G$8)-'GF diets No L-Val + WD'!AP$266)-\n((('GF diets No L-Val + WD'!G$351-'GF diets No L-Val + WD'!G$5)*('GF diets No L-Val + WD'!G$353/100)*'DDGS Calculator'!$G$8)-'GF diets No L-Val + WD'!G$266),\nIF(AND($G$5=\"Yes\",$G$6=\"Yes\",$G$7=\"No\"),((('GF diets No L-Val + Fat + WD'!AP$351-'GF diets No L-Val + Fat + WD'!AP$5)*('GF diets No L-Val + Fat + WD'!AP$353/100)*'DDGS Calculator'!$G$8)-'GF diets No L-Val + Fat + WD'!AP$266)-\n((('GF diets No L-Val + Fat + WD'!G$351-'GF diets No L-Val + Fat + WD'!G$5)*('GF diets No L-Val + Fat + WD'!G$353/100)*'DDGS Calculator'!$G$8)-'GF diets No L-Val + Fat + WD'!G$266),\nIF(AND($G$5=\"No\",$G$6=\"Yes\",$G$7=\"Yes\"),((('GF diets L-Val + WD'!AP$351-'GF diets L-Val + WD'!AP$5)*('GF diets L-Val + WD'!AP$353/100)*'DDGS Calculator'!$G$8)-'GF diets L-Val + WD'!AP$266)-\n((('GF diets L-Val + WD'!G$351-'GF diets L-Val + WD'!G$5)*('GF diets L-Val + WD'!G$353/100)*'DDGS Calculator'!$G$8)-'GF diets L-Val + WD'!G$266),\nIF(AND($G$5=\"Yes\",$G$6=\"Yes\",$G$7=\"Yes\"),((('GF diets L-Val + Fat + WD'!AP$351-'GF diets L-Val + Fat + WD'!AP$5)*('GF diets L-Val + Fat + WD'!AP$353/100)*'DDGS Calculator'!$G$8)-'GF diets L-Val + Fat + WD'!AP$266)-\n((('GF diets L-Val + Fat + WD'!G$351-'GF diets L-Val + Fat + WD'!G$5)*('GF diets L-Val + Fat + WD'!G$353/100)*'DDGS Calculator'!$G$8)-'GF diets L-Val + Fat + WD'!G$266)\n))))))))","v":-1.6370887370118776},-5.786354650035987,{"$f":"I72-I71","v":-1.1334192411016932}]
[0.3,"30% DDGS",{"$f":"IF(AND($G$5=\"No\",$G$6=\"No\",$G$7=\"No\"),((('GF diets No L-Val'!AR$351-'GF diets No L-Val'!AR$5)*('GF diets No L-Val'!AR$353/100)*'DDGS Calculator'!$G$8)-'GF diets No L-Val'!AR$266)-\n((('GF diets No L-Val'!B$351-'GF diets No L-Val'!B$5)*('GF diets No L-Val'!B$353/100)*'DDGS Calculator'!$G$8)-'GF diets No L-Val'!B$266),\nIF(AND($G$5=\"Yes\",$G$6=\"No\",$G$7=\"No\"),((('GF diets No L-Val + Fat'!AR$351-'GF diets No L-Val + Fat'!AR$5)*('GF diets No L-Val + Fat'!AR$353/100)*'DDGS Calculator'!$G$8)-'GF diets No L-Val + Fat'!AR$266)-\n((('GF diets No L-Val + Fat'!B$351-'GF diets No L-Val + Fat'!B$5)*('GF diets No L-Val + Fat'!B$353/100)*'DDGS Calculator'!$G$8)-'GF diets No L-Val + Fat'!B$266),\nIF(AND($G$5=\"No\",$G$6=\"No\",$G$7=\"Yes\"),((('GF diets L-Val'!AR$351-'GF diets L-Val'!AR$5)*('GF diets L-Val'!AR$353/100)*'DDGS Calculator'!$G$8)-'GF diets L-Val'!AR$266)-\n((('GF diets L-Val'!B$351-'GF diets L-Val'!B$5)*('GF diets L-Val'!B$353/100)*'DDGS Calculator'!$G$8)-'GF diets L-Val'!B$266),\nIF(AND($G$5=\"Yes\",$G$6=\"No\",$G$7=\"Yes\"),((('GF diets L-Val + Fat'!AR$351-'GF diets L-Val + Fat'!AR$5)*('GF diets L-Val + Fat'!AR$353/100)*'DDGS Calculator'!$G$8)-'GF diets L-Val + Fat'!AR$266)-\n((('GF diets L-Val + Fat'!B$351-'GF diets L-Val + Fat'!B$5)*('GF diets L-Val + Fat'!B$353/100)*'DDGS Calculator'!$G$8)-'GF diets L-Val + Fat'!B$266),\nIF(AND($G$5=\"No\",$G$6=\"Yes\",$G$7=\"No\"),((('GF diets No L-Val + WD'!AR$351-'GF diets No L-Val + WD'!AR$5)*('GF diets No L-Val + WD'!AR$353/100)*'DDGS Calculator'!$G$8)-'GF diets No L-Val + WD'!AR$266)-\n((('GF diets No L-Val + WD'!B$351-'GF diets No L-Val + WD'!B$5)*('GF diets No L-Val + WD'!B$353/100)*'DDGS Calculator'!$G$8)-'GF diets No L-Val + WD'!B$266),\nIF(AND($G$5=\"Yes\",$G$6=\"Yes\",$G$7=\"No\"),((('GF diets No L-Val + Fat + WD'!AR$351-'GF diets No L-Val + Fat + WD'!AR$5)*('GF diets No L-Val + Fat + WD'!AR$353/100)*'DDGS Calculator'!$G$8)-'GF diets No L-Val + Fat + WD'!AR$266)-\n((('GF diets No L-Val + Fat + WD'!B$351-'GF diets No L-Val + Fat + WD'!B$5)*('GF diets No L-Val + Fat + WD'!B$353/100)*'DDGS Calculator'!$G$8)-'GF diets No L-Val + Fat + WD'!B$266),\nIF(AND($G$5=\"No\",$G$6=\"Yes\",$G$7=\"Yes\"),((('GF diets L-Val + WD'!AR$351-'GF diets L-Val + WD'!AR$5)*('GF diets L-Val + WD'!AR$353/100)*'DDGS Calculator'!$G$8)-'GF diets L-Val + WD'!AR$266)-\n((('GF diets L-Val + WD'!B$351-'GF diets L-Val + WD'!B$5)*('GF diets L-Val + WD'!B$353/100)*'DDGS Calculator'!$G$8)-'GF diets L-Val + WD'!B$266),\nIF(AND($G$5=\"Yes\",$G$6=\"Yes\",$G$7=\"Yes\"),((('GF diets L-Val + Fat + WD'!AR$351-'GF diets L-Val + Fat + WD'!AR$5)*('GF diets L-Val + Fat + WD'!AR$353/100)*'DDGS Calculator'!$G$8)-'GF diets L-Val + Fat + WD'!AR$266)-\n((('GF diets L-Val + Fat + WD'!B$351-'GF diets L-Val + Fat + WD'!B$5)*('GF diets L-Val + Fat + WD'!B$353/100)*'DDGS Calculator'!$G$8)-'GF diets L-Val + Fat + WD'!B$266)\n))))))))","v":-0.73682538295279976},{"$f":"IF(AND($G$5=\"No\",$G$6=\"No\",$G$7=\"No\"),((('GF diets No L-Val'!AS$351-'GF diets No L-Val'!AS$5)*('GF diets No L-Val'!AS$353/100)*'DDGS Calculator'!$G$8)-'GF diets No L-Val'!AS$266)-\n((('GF diets No L-Val'!C$351-'GF diets No L-Val'!C$5)*('GF diets No L-Val'!C$353/100)*'DDGS Calculator'!$G$8)-'GF diets No L-Val'!C$266),\nIF(AND($G$5=\"Yes\",$G$6=\"No\",$G$7=\"No\"),((('GF diets No L-Val + Fat'!AS$351-'GF diets No L-Val + Fat'!AS$5)*('GF diets No L-Val + Fat'!AS$353/100)*'DDGS Calculator'!$G$8)-'GF diets No L-Val + Fat'!AS$266)-\n((('GF diets No L-Val + Fat'!C$351-'GF diets No L-Val + Fat'!C$5)*('GF diets No L-Val + Fat'!C$353/100)*'DDGS Calculator'!$G$8)-'GF diets No L-Val + Fat'!C$266),\nIF(AND($G$5=\"No\",$G$6=\"No\",$G$7=\"Yes\"),((('GF diets L-Val'!AS$351-'GF diets L-Val'!AS$5)*('GF diets L-Val'!AS$353/100)*'DDGS Calculator'!$G$8)-'GF diets L-Val'!AS$266)-\n((('GF diets L-Val'!C$351-'GF diets L-Val'!C$5)*('GF diets L-Val'!C$353/100)*'DDGS Calculator'!$G$8)-'GF diets L-Val'!C$266),\nIF(AND($G$5=\"Yes\",$G$6=\"No\",$G$7=\"Yes\"),((('GF diets L-Val + Fat'!AS$351-'GF diets L-Val + Fat'!AS$5)*('GF diets L-Val + Fat'!AS$353/100)*'DDGS Calculator'!$G$8)-'GF diets L-Val + Fat'!AS$266)-\n((('GF diets L-Val + Fat'!C$351-'GF diets L-Val + Fat'!C$5)*('GF diets L-Val + Fat'!C$353/100)*'DDGS Calculator'!$G$8)-'GF diets L-Val + Fat'!C$266),\nIF(AND($G$5=\"No\",$G$6=\"Yes\",$G$7=\"No\"),((('GF diets No L-Val + WD'!AS$351-'GF diets No L-Val + WD'!AS$5)*('GF diets No L-Val + WD'!AS$353/100)*'DDGS Calculator'!$G$8)-'GF diets No L-Val + WD'!AS$266)-\n((('GF diets No L-Val + WD'!C$351-'GF diets No L-Val + WD'!C$5)*('GF diets No L-Val + WD'!C$353/100)*'DDGS Calculator'!$G$8)-'GF diets No L-Val + WD'!C$266),\nIF(AND($G$5=\"Yes\",$G$6=\"Yes\",$G$7=\"No\"),((('GF diets No L-Val + Fat + WD'!AS$351-'GF diets No L-Val + Fat + WD'!AS$5)*('GF diets No L-Val + Fat + WD'!AS$353/100)*'DDGS Calculator'!$G$8)-'GF diets No L-Val + Fat + WD'!AS$266)-\n((('GF diets No L-Val + Fat + WD'!C$351-'GF diets No L-Val + Fat + WD'!C$5)*('GF diets No L-Val + Fat + WD'!C$353/100)*'DDGS Calculator'!$G$8)-'GF diets No L-Val + Fat + WD'!C$266),\nIF(AND($G$5=\"No\",$G$6=\"Yes\",$G$7=\"Yes\"),((('GF diets L-Val + WD'!AS$351-'GF diets L-Val + WD'!AS$5)*('GF diets L-Val + WD'!AS$353/100)*'DDGS Calculator'!$G$8)-'GF diets L-Val + WD'!AS$266)-\n((('GF diets L-Val + WD'!C$351-'GF diets L-Val + WD'!C$5)*('GF diets L-Val + WD'!C$353/100)*'DDGS Calculator'!$G$8)-'GF diets L-Val + WD'!C$266),\nIF(AND($G$5=\"Yes\",$G$6=\"Yes\",$G$7=\"Yes\"),((('GF diets L-Val + Fat + WD'!AS$351-'GF diets L-Val + Fat + WD'!AS$5)*('GF diets L-Val + Fat + WD'!AS$353/100)*'DDGS Calculator'!$G$8)-'GF diets L-Val + Fat + WD'!AS$266)-\n((('GF diets L-Val + Fat + WD'!C$351-'GF diets L-Val + Fat + WD'!C$5)*('GF diets L-Val + Fat + WD'!C$353/100)*'DDGS Calculator'!$G$8)-'GF diets L-Val + Fat + WD'!C$266)\n))))))))","v":-0.72818156290556146},{"$f":"IF(AND($G$5=\"No\",$G$6=\"No\",$G$7=\"No\"),((('GF diets No L-Val'!AT$351-'GF diets No L-Val'!AT$5)*('GF diets No L-Val'!AT$353/100)*'DDGS Calculator'!$G$8)-'GF diets No L-Val'!AT$266)-\n((('GF diets No L-Val'!D$351-'GF diets No L-Val'!D$5)*('GF diets No L-Val'!D$353/100)*'DDGS Calculator'!$G$8)-'GF diets No L-Val'!D$266),\nIF(AND($G$5=\"Yes\",$G$6=\"No\",$G$7=\"No\"),((('GF diets No L-Val + Fat'!AT$351-'GF diets No L-Val + Fat'!AT$5)*('GF diets No L-Val + Fat'!AT$353/100)*'DDGS Calculator'!$G$8)-'GF diets No L-Val + Fat'!AT$266)-\n((('GF diets No L-Val + Fat'!D$351-'GF diets No L-Val + Fat'!D$5)*('GF diets No L-Val + Fat'!D$353/100)*'DDGS Calculator'!$G$8)-'GF diets No L-Val + Fat'!D$266),\nIF(AND($G$5=\"No\",$G$6=\"No\",$G$7=\"Yes\"),((('GF diets L-Val'!AT$351-'GF diets L-Val'!AT$5)*('GF diets L-Val'!AT$353/100)*'DDGS Calculator'!$G$8)-'GF diets L-Val'!AT$266)-\n((('GF diets L-Val'!D$351-'GF diets L-Val'!D$5)*('GF diets L-Val'!D$353/100)*'DDGS Calculator'!$G$8)-'GF diets L-Val'!D$266),\nIF(AND($G$5=\"Yes\",$G$6=\"No\",$G$7=\"Yes\"),((('GF diets L-Val + Fat'!AT$351-'GF diets L-Val + Fat'!AT$5)*('GF diets L-Val + Fat'!AT$353/100)*'DDGS Calculator'!$G$8)-'GF diets L-Val + Fat'!AT$266)-\n((('GF diets L-Val + Fat'!D$351-'GF diets L-Val + Fat'!D$5)*('GF diets L-Val + Fat'!D$353/100)*'DDGS Calculator'!$G$8)-'GF diets L-Val + Fat'!D$266),\nIF(AND($G$5=\"No\",$G$6=\"Yes\",$G$7=\"No\"),((('GF diets No L-Val + WD'!AT$351-'GF diets No L-Val + WD'!AT$5)*('GF diets No L-Val + WD'!AT$353/100)*'DDGS Calculator'!$G$8)-'GF diets No L-Val + WD'!AT$266)-\n((('GF diets No L-Val + WD'!D$351-'GF diets No L-Val + WD'!D$5)*('GF diets No L-Val + WD'!D$353/100)*'DDGS Calculator'!$G$8)-'GF diets No L-Val + WD'!D$266),\nIF(AND($G$5=\"Yes\",$G$6=\"Yes\",$G$7=\"No\"),((('GF diets No L-Val + Fat + WD'!AT$351-'GF diets No L-Val + Fat + WD'!AT$5)*('GF diets No L-Val + Fat + WD'!AT$353/100)*'DDGS Calculator'!$G$8)-'GF diets No L-Val + Fat + WD'!AT$266)-\n((('GF diets No L-Val + Fat + WD'!D$351-'GF diets No L-Val + Fat + WD'!D$5)*('GF diets No L-Val + Fat + WD'!D$353/100)*'DDGS Calculator'!$G$8)-'GF diets No L-Val + Fat + WD'!D$266),\nIF(AND($G$5=\"No\",$G$6=\"Yes\",$G$7=\"Yes\"),((('GF diets L-Val + WD'!AT$351-'GF diets L-Val + WD'!AT$5)*('GF diets L-Val + WD'!AT$353/100)*'DDGS Calculator'!$G$8)-'GF diets L-Val + WD'!AT$266)-\n((('GF diets L-Val + WD'!D$351-'GF diets L-Val + WD'!D$5)*('GF diets L-Val + WD'!D$353/100)*'DDGS Calculator'!$G$8)-'GF diets L-Val + WD'!D$266),\nIF(AND($G$5=\"Yes\",$G$6=\"Yes\",$G$7=\"Yes\"),((('GF diets L-Val + Fat + WD'!AT$351-'GF diets L-Val + Fat + WD'!AT$5)*('GF diets L-Val + Fat + WD'!AT$353/100)*'DDGS Calculator'!$G$8)-'GF diets L-Val + Fat + WD'!AT$266)-\n((('GF diets L-Val + Fat + WD'!D$351-'GF diets L-Val + Fat + WD'!D$5)*('GF diets L-Val + Fat + WD'!D$353/100)*'DDGS Calculator'!$G$8)-'GF diets L-Val + Fat + WD'!D$266)\n))))))))","v":-0.92342239276937654},{"$f":"IF(AND($G$5=\"No\",$G$6=\"No\",$G$7=\"No\"),((('GF diets No L-Val'!AU$351-'GF diets No L-Val'!AU$5)*('GF diets No L-Val'!AU$353/100)*'DDGS Calculator'!$G$8)-'GF diets No L-Val'!AU$266)-\n((('GF diets No L-Val'!E$351-'GF diets No L-Val'!E$5)*('GF diets No L-Val'!E$353/100)*'DDGS Calculator'!$G$8)-'GF diets No L-Val'!E$266),\nIF(AND($G$5=\"Yes\",$G$6=\"No\",$G$7=\"No\"),((('GF diets No L-Val + Fat'!AU$351-'GF diets No L-Val + Fat'!AU$5)*('GF diets No L-Val + Fat'!AU$353/100)*'DDGS Calculator'!$G$8)-'GF diets No L-Val + Fat'!AU$266)-\n((('GF diets No L-Val + Fat'!E$351-'GF diets No L-Val + Fat'!E$5)*('GF diets No L-Val + Fat'!E$353/100)*'DDGS Calculator'!$G$8)-'GF diets No L-Val + Fat'!E$266),\nIF(AND($G$5=\"No\",$G$6=\"No\",$G$7=\"Yes\"),((('GF diets L-Val'!AU$351-'GF diets L-Val'!AU$5)*('GF diets L-Val'!AU$353/100)*'DDGS Calculator'!$G$8)-'GF diets L-Val'!AU$266)-\n((('GF diets L-Val'!E$351-'GF diets L-Val'!E$5)*('GF diets L-Val'!E$353/100)*'DDGS Calculator'!$G$8)-'GF diets L-Val'!E$266),\nIF(AND($G$5=\"Yes\",$G$6=\"No\",$G$7=\"Yes\"),((('GF diets L-Val + Fat'!AU$351-'GF diets L-Val + Fat'!AU$5)*('GF diets L-Val + Fat'!AU$353/100)*'DDGS Calculator'!$G$8)-'GF diets L-Val + Fat'!AU$266)-\n((('GF diets L-Val + Fat'!E$351-'GF diets L-Val + Fat'!E$5)*('GF diets L-Val + Fat'!E$353/100)*'DDGS Calculator'!$G$8)-'GF diets L-Val + Fat'!E$266),\nIF(AND($G$5=\"No\",$G$6=\"Yes\",$G$7=\"No\"),((('GF diets No L-Val + WD'!AU$351-'GF diets No L-Val + WD'!AU$5)*('GF diets No L-Val + WD'!AU$353/100)*'DDGS Calculator'!$G$8)-'GF diets No L-Val + WD'!AU$266)-\n((('GF diets No L-Val + WD'!E$351-'GF diets No L-Val + WD'!E$5)*('GF diets No L-Val + WD'!E$353/100)*'DDGS Calculator'!$G$8)-'GF diets No L-Val + WD'!E$266),\nIF(AND($G$5=\"Yes\",$G$6=\"Yes\",$G$7=\"No\"),((('GF diets No L-Val + Fat + WD'!AU$351-'GF diets No L-Val + Fat + WD'!AU$5)*('GF diets No L-Val + Fat + WD'!AU$353/100)*'DDGS Calculator'!$G$8)-'GF diets No L-Val + Fat + WD'!AU$266)-\n((('GF diets No L-Val + Fat + WD'!E$351-'GF diets No L-Val + Fat + WD'!E$5)*('GF diets No L-Val + Fat + WD'!E$353/100)*'DDGS Calculator'!$G$8)-'GF diets No L-Val + Fat + WD'!E$266),\nIF(AND($G$5=\"No\",$G$6=\"Yes\",$G$7=\"Yes\"),((('GF diets L-Val + WD'!AU$351-'GF diets L-Val + WD'!AU$5)*('GF diets L-Val + WD'!AU$353/100)*'DDGS Calculator'!$G$8)-'GF diets L-Val + WD'!AU$266)-\n((('GF diets L-Val + WD'!E$351-'GF diets L-Val + WD'!E$5)*('GF diets L-Val + WD'!E$353/100)*'DDGS Calculator'!$G$8)-'GF diets L-Val + WD'!E$266),\nIF(AND($G$5=\"Yes\",$G$6=\"Yes\",$G$7=\"Yes\"),((('GF diets L-Val + Fat + WD'!AU$351-'GF diets L-Val + Fat + WD'!AU$5)*('GF diets L-Val + Fat + WD'!AU$353/100)*'DDGS Calculator'!$G$8)-'GF diets L-Val + Fat + WD'!AU$266)-\n((('GF diets L-Val + Fat + WD'!E$351-'GF diets L-Val + Fat + WD'!E$5)*('GF diets L-Val + Fat + WD'!E$353/100)*'DDGS Calculator'!$G$8)-'GF diets L-Val + Fat + WD'!E$266)\n))))))))","v":-1.1136867564125037},{"$f":"IF(AND($G$5=\"No\",$G$6=\"No\",$G$7=\"No\"),((('GF diets No L-Val'!AV$351-'GF diets No L-Val'!AV$5)*('GF diets No L-Val'!AV$353/100)*'DDGS Calculator'!$G$8)-'GF diets No L-Val'!AV$266)-\n((('GF diets No L-Val'!F$351-'GF diets No L-Val'!F$5)*('GF diets No L-Val'!F$353/100)*'DDGS Calculator'!$G$8)-'GF diets No L-Val'!F$266),\nIF(AND($G$5=\"Yes\",$G$6=\"No\",$G$7=\"No\"),((('GF diets No L-Val + Fat'!AV$351-'GF diets No L-Val + Fat'!AV$5)*('GF diets No L-Val + Fat'!AV$353/100)*'DDGS Calculator'!$G$8)-'GF diets No L-Val + Fat'!AV$266)-\n((('GF diets No L-Val + Fat'!F$351-'GF diets No L-Val + Fat'!F$5)*('GF diets No L-Val + Fat'!F$353/100)*'DDGS Calculator'!$G$8)-'GF diets No L-Val + Fat'!F$266),\nIF(AND($G$5=\"No\",$G$6=\"No\",$G$7=\"Yes\"),((('GF diets L-Val'!AV$351-'GF diets L-Val'!AV$5)*('GF diets L-Val'!AV$353/100)*'DDGS Calculator'!$G$8)-'GF diets L-Val'!AV$266)-\n((('GF diets L-Val'!F$351-'GF diets L-Val'!F$5)*('GF diets L-Val'!F$353/100)*'DDGS Calculator'!$G$8)-'GF diets L-Val'!F$266),\nIF(AND($G$5=\"Yes\",$G$6=\"No\",$G$7=\"Yes\"),((('GF diets L-Val + Fat'!AV$351-'GF diets L-Val + Fat'!AV$5)*('GF diets L-Val + Fat'!AV$353/100)*'DDGS Calculator'!$G$8)-'GF diets L-Val + Fat'!AV$266)-\n((('GF diets L-Val + Fat'!F$351-'GF diets L-Val + Fat'!F$5)*('GF diets L-Val + Fat'!F$353/100)*'DDGS Calculator'!$G$8)-'GF diets L-Val + Fat'!F$266),\nIF(AND($G$5=\"No\",$G$6=\"Yes\",$G$7=\"No\"),((('GF diets No L-Val + WD'!AV$351-'GF diets No L-Val + WD'!AV$5)*('GF diets No L-Val + WD'!AV$353/100)*'DDGS Calculator'!$G$8)-'GF diets No L-Val + WD'!AV$266)-\n((('GF diets No L-Val + WD'!F$351-'GF diets No L-Val + WD'!F$5)*('GF diets No L-Val + WD'!F$353/100)*'DDGS Calculator'!$G$8)-'GF diets No L-Val + WD'!F$266),\nIF(AND($G$5=\"Yes\",$G$6=\"Yes\",$G$7=\"No\"),((('GF diets No L-Val + Fat + WD'!AV$351-'GF diets No L-Val + Fat + WD'!AV$5)*('GF diets No L-Val + Fat + WD'!AV$353/100)*'DDGS Calculator'!$G$8)-'GF diets No L-Val + Fat + WD'!AV$266)-\n((('GF diets No L-Val + Fat + WD'!F$351-'GF diets No L-Val + Fat + WD'!F$5)*('GF diets No L-Val + Fat + WD'!F$353/100)*'DDGS Calculator'!$G$8)-'GF diets No L-Val + Fat + WD'!F$266),\nIF(AND($G$5=\"No\",$G$6=\"Yes\",$G$7=\"Yes\"),((('GF diets L-Val + WD'!AV$351-'GF diets L-Val + WD'!AV$5)*('GF diets L-Val + WD'!AV$353/100)*'DDGS Calculator'!$G$8)-'GF diets L-Val + WD'!AV$266)-\n((('GF diets L-Val + WD'!F$351-'GF diets L-Val + WD'!F$5)*('GF diets L-Val + WD'!F$353/100)*'DDGS Calculator'!$G$8)-'GF diets L-Val + WD'!F$266),\nIF(AND($G$5=\"Yes\",$G$6=\"Yes\",$G$7=\"Yes\"),((('GF diets L-Val + Fat + WD'!AV$351-'GF diets L-Val + Fat + WD'!AV$5)*('GF diets L-Val + Fat + WD'!AV$353/100)*'DDGS Calculator'!$G$8)-'GF diets L-Val + Fat + WD'!AV$266)-\n((('GF diets L-Val + Fat + WD'!F$351-'GF diets L-Val + Fat + WD'!F$5)*('GF diets L-Val + Fat + WD'!F$353/100)*'DDGS Calculator'!$G$8)-'GF diets L-Val + Fat + WD'!F$266)\n))))))))","v":-1.3856233459270637},{"$f":"IF(AND($G$5=\"No\",$G$6=\"No\",$G$7=\"No\"),((('GF diets No L-Val'!AW$351-'GF diets No L-Val'!AW$5)*('GF diets No L-Val'!AW$353/100)*'DDGS Calculator'!$G$8)-'GF diets No L-Val'!AW$266)-\n((('GF diets No L-Val'!G$351-'GF diets No L-Val'!G$5)*('GF diets No L-Val'!G$353/100)*'DDGS Calculator'!$G$8)-'GF diets No L-Val'!G$266),\nIF(AND($G$5=\"Yes\",$G$6=\"No\",$G$7=\"No\"),((('GF diets No L-Val + Fat'!AW$351-'GF diets No L-Val + Fat'!AW$5)*('GF diets No L-Val + Fat'!AW$353/100)*'DDGS Calculator'!$G$8)-'GF diets No L-Val + Fat'!AW$266)-\n((('GF diets No L-Val + Fat'!G$351-'GF diets No L-Val + Fat'!G$5)*('GF diets No L-Val + Fat'!G$353/100)*'DDGS Calculator'!$G$8)-'GF diets No L-Val + Fat'!G$266),\nIF(AND($G$5=\"No\",$G$6=\"No\",$G$7=\"Yes\"),((('GF diets L-Val'!AW$351-'GF diets L-Val'!AW$5)*('GF diets L-Val'!AW$353/100)*'DDGS Calculator'!$G$8)-'GF diets L-Val'!AW$266)-\n((('GF diets L-Val'!G$351-'GF diets L-Val'!G$5)*('GF diets L-Val'!G$353/100)*'DDGS Calculator'!$G$8)-'GF diets L-Val'!G$266),\nIF(AND($G$5=\"Yes\",$G$6=\"No\",$G$7=\"Yes\"),((('GF diets L-Val + Fat'!AW$351-'GF diets L-Val + Fat'!AW$5)*('GF diets L-Val + Fat'!AW$353/100)*'DDGS Calculator'!$G$8)-'GF diets L-Val + Fat'!AW$266)-\n((('GF diets L-Val + Fat'!G$351-'GF diets L-Val + Fat'!G$5)*('GF diets L-Val + Fat'!G$353/100)*'DDGS Calculator'!$G$8)-'GF diets L-Val + Fat'!G$266),\nIF(AND($G$5=\"No\",$G$6=\"Yes\",$G$7=\"No\"),((('GF diets No L-Val + WD'!AW$351-'GF diets No L-Val + WD'!AW$5)*('GF diets No L-Val + WD'!AW$353/100)*'DDGS Calculator'!$G$8)-'GF diets No L-Val + WD'!AW$266)-\n((('GF diets No L-Val + WD'!G$351-'GF diets No L-Val + WD'!G$5)*('GF diets No L-Val + WD'!G$353/100)*'DDGS Calculator'!$G$8)-'GF diets No L-Val + WD'!G$266),\nIF(AND($G$5=\"Yes\",$G$6=\"Yes\",$G$7=\"No\"),((('GF diets No L-Val + Fat + WD'!AW$351-'GF diets No L-Val + Fat + WD'!AW$5)*('GF diets No L-Val + Fat + WD'!AW$353/100)*'DDGS Calculator'!$G$8)-'GF diets No L-Val + Fat + WD'!AW$266)-\n((('GF diets No L-Val + Fat + WD'!G$351-'GF diets No L-Val + Fat + WD'!G$5)*('GF diets No L-Val + Fat + WD'!G$353/100)*'DDGS Calculator'!$G$8)-'GF diets No L-Val + Fat + WD'!G$266),\nIF(AND($G$5=\"No\",$G$6=\"Yes\",$G$7=\"Yes\"),((('GF diets L-Val + WD'!AW$351-'GF diets L-Val + WD'!AW$5)*('GF diets L-Val + WD'!AW$353/100)*'DDGS Calculator'!$G$8)-'GF diets L-Val + WD'!AW$266)-\n((('GF diets L-Val + WD'!G$351-'GF diets L-Val + WD'!G$5)*('GF diets L-Val + WD'!G$353/100)*'DDGS Calculator'!$G$8)-'GF diets L-Val + WD'!G$266),\nIF(AND($G$5=\"Yes\",$G$6=\"Yes\",$G$7=\"Yes\"),((('GF diets L-Val + Fat + WD'!AW$351-'GF diets L-Val + Fat + WD'!AW$5)*('GF diets L-Val + Fat + WD'!AW$353/100)*'DDGS Calculator'!$G$8)-'GF diets L-Val + Fat + WD'!AW$266)-\n((('GF diets L-Val + Fat + WD'!G$351-'GF diets L-Val + Fat + WD'!G$5)*('GF diets L-Val + Fat + WD'!G$353/100)*'DDGS Calculator'!$G$8)-'GF diets L-Val + Fat + WD'!G$266)\n))))))))","v":-1.9623399651439115},-6.8500794061112167,{"$f":"I73-I72","v":-1.0637247560752296}]
[]
[null,"Feed cost savings, $/pig (compared to 0% DDGS) - extra days on feed","Phase 1 ","Phase 2","Phase 3","Phase 4","Phase 5","Phase 6","Total","Incremental"]
[null,"5% DDGS",{"$f":"IF(AND($G$5=\"No\",$G$6=\"No\",$G$7=\"No\"),'GF diets No L-Val'!I$270-'GF diets No L-Val'!B$270,\nIF(AND($G$5=\"Yes\",$G$6=\"No\",$G$7=\"No\"),'GF diets No L-Val + Fat'!I$270-'GF diets No L-Val + Fat'!B$270,\nIF(AND($G$5=\"No\",$G$6=\"No\",$G$7=\"Yes\"),'GF diets L-Val'!I$270-'GF diets L-Val'!B$270,\nIF(AND($G$5=\"Yes\",$G$6=\"No\",$G$7=\"Yes\"),'GF diets L-Val + Fat'!I$270-'GF diets L-Val + Fat'!B$270,\nIF(AND($G$5=\"No\",$G$6=\"Yes\",$G$7=\"No\"),'GF diets No L-Val + WD'!I$270-'GF diets No L-Val + WD'!B$270,\nIF(AND($G$5=\"Yes\",$G$6=\"Yes\",$G$7=\"No\"),'GF diets No L-Val + Fat + WD'!I$270-'GF diets No L-Val + Fat + WD'!B$270,\nIF(AND($G$5=\"No\",$G$6=\"Yes\",$G$7=\"Yes\"),'GF diets L-Val + WD'!I$270-'GF diets L-Val + WD'!B$270,\nIF(AND($G$5=\"Yes\",$G$6=\"Yes\",$G$7=\"Yes\"),'GF diets L-Val + Fat + WD'!I$270-'GF diets L-Val + Fat + WD'!B$270))))))))*-1","v":-7.4918115429456478E-3},{"$f":"IF(AND($G$5=\"No\",$G$6=\"No\",$G$7=\"No\"),'GF diets No L-Val'!J$270-'GF diets No L-Val'!C$270,\nIF(AND($G$5=\"Yes\",$G$6=\"No\",$G$7=\"No\"),'GF diets No L-Val + Fat'!J$270-'GF diets No L-Val + Fat'!C$270,\nIF(AND($G$5=\"No\",$G$6=\"No\",$G$7=\"Yes\"),'GF diets L-Val'!J$270-'GF diets L-Val'!C$270,\nIF(AND($G$5=\"Yes\",$G$6=\"No\",$G$7=\"Yes\"),'GF diets L-Val + Fat'!J$270-'GF diets L-Val + Fat'!C$270,\nIF(AND($G$5=\"No\",$G$6=\"Yes\",$G$7=\"No\"),'GF diets No L-Val + WD'!J$270-'GF diets No L-Val + WD'!C$270,\nIF(AND($G$5=\"Yes\",$G$6=\"Yes\",$G$7=\"No\"),'GF diets No L-Val + Fat + WD'!J$270-'GF diets No L-Val + Fat + WD'!C$270,\nIF(AND($G$5=\"No\",$G$6=\"Yes\",$G$7=\"Yes\"),'GF diets L-Val + WD'!J$270-'GF diets L-Val + WD'!C$270,\nIF(AND($G$5=\"Yes\",$G$6=\"Yes\",$G$7=\"Yes\"),'GF diets L-Val + Fat + WD'!J$270-'GF diets L-Val + Fat + WD'!C$270))))))))*-1","v":-9.0577067288055702E-3},{"$f":"IF(AND($G$5=\"No\",$G$6=\"No\",$G$7=\"No\"),'GF diets No L-Val'!K$270-'GF diets No L-Val'!D$270,\nIF(AND($G$5=\"Yes\",$G$6=\"No\",$G$7=\"No\"),'GF diets No L-Val + Fat'!K$270-'GF diets No L-Val + Fat'!D$270,\nIF(AND($G$5=\"No\",$G$6=\"No\",$G$7=\"Yes\"),'GF diets L-Val'!K$270-'GF diets L-Val'!D$270,\nIF(AND($G$5=\"Yes\",$G$6=\"No\",$G$7=\"Yes\"),'GF diets L-Val + Fat'!K$270-'GF diets L-Val + Fat'!D$270,\nIF(AND($G$5=\"No\",$G$6=\"Yes\",$G$7=\"No\"),'GF diets No L-Val + WD'!K$270-'GF diets No L-Val + WD'!D$270,\nIF(AND($G$5=\"Yes\",$G$6=\"Yes\",$G$7=\"No\"),'GF diets No L-Val + Fat + WD'!K$270-'GF diets No L-Val + Fat + WD'!D$270,\nIF(AND($G$5=\"No\",$G$6=\"Yes\",$G$7=\"Yes\"),'GF diets L-Val + WD'!K$270-'GF diets L-Val + WD'!D$270,\nIF(AND($G$5=\"Yes\",$G$6=\"Yes\",$G$7=\"Yes\"),'GF diets L-Val + Fat + WD'!K$270-'GF diets L-Val + Fat + WD'!D$270))))))))*-1","v":-1.238368464235684E-2},{"$f":"IF(AND($G$5=\"No\",$G$6=\"No\",$G$7=\"No\"),'GF diets No L-Val'!L$270-'GF diets No L-Val'!E$270,\nIF(AND($G$5=\"Yes\",$G$6=\"No\",$G$7=\"No\"),'GF diets No L-Val + Fat'!L$270-'GF diets No L-Val + Fat'!E$270,\nIF(AND($G$5=\"No\",$G$6=\"No\",$G$7=\"Yes\"),'GF diets L-Val'!L$270-'GF diets L-Val'!E$270,\nIF(AND($G$5=\"Yes\",$G$6=\"No\",$G$7=\"Yes\"),'GF diets L-Val + Fat'!L$270-'GF diets L-Val + Fat'!E$270,\nIF(AND($G$5=\"No\",$G$6=\"Yes\",$G$7=\"No\"),'GF diets No L-Val + WD'!L$270-'GF diets No L-Val + WD'!E$270,\nIF(AND($G$5=\"Yes\",$G$6=\"Yes\",$G$7=\"No\"),'GF diets No L-Val + Fat + WD'!L$270-'GF diets No L-Val + Fat + WD'!E$270,\nIF(AND($G$5=\"No\",$G$6=\"Yes\",$G$7=\"Yes\"),'GF diets L-Val + WD'!L$270-'GF diets L-Val + WD'!E$270,\nIF(AND($G$5=\"Yes\",$G$6=\"Yes\",$G$7=\"Yes\"),'GF diets L-Val + Fat + WD'!L$270-'GF diets L-Val + Fat + WD'!E$270))))))))*-1","v":-7.722438751271099E-3},{"$f":"IF(AND($G$5=\"No\",$G$6=\"No\",$G$7=\"No\"),'GF diets No L-Val'!M$270-'GF diets No L-Val'!F$270,\nIF(AND($G$5=\"Yes\",$G$6=\"No\",$G$7=\"No\"),'GF diets No L-Val + Fat'!M$270-'GF diets No L-Val + Fat'!F$270,\nIF(AND($G$5=\"No\",$G$6=\"No\",$G$7=\"Yes\"),'GF diets L-Val'!M$270-'GF diets L-Val'!F$270,\nIF(AND($G$5=\"Yes\",$G$6=\"No\",$G$7=\"Yes\"),'GF diets L-Val + Fat'!M$270-'GF diets L-Val + Fat'!F$270,\nIF(AND($G$5=\"No\",$G$6=\"Yes\",$G$7=\"No\"),'GF diets No L-Val + WD'!M$270-'GF diets No L-Val + WD'!F$270,\nIF(AND($G$5=\"Yes\",$G$6=\"Yes\",$G$7=\"No\"),'GF diets No L-Val + Fat + WD'!M$270-'GF diets No L-Val + Fat + WD'!F$270,\nIF(AND($G$5=\"No\",$G$6=\"Yes\",$G$7=\"Yes\"),'GF diets L-Val + WD'!M$270-'GF diets L-Val + WD'!F$270,\nIF(AND($G$5=\"Yes\",$G$6=\"Yes\",$G$7=\"Yes\"),'GF diets L-Val + Fat + WD'!M$270-'GF diets L-Val + Fat + WD'!F$270))))))))*-1","v":-7.3136617695421791E-3},{"$f":"IF(AND($G$5=\"No\",$G$6=\"No\",$G$7=\"No\"),'GF diets No L-Val'!N$270-'GF diets No L-Val'!G$270,\nIF(AND($G$5=\"Yes\",$G$6=\"No\",$G$7=\"No\"),'GF diets No L-Val + Fat'!N$270-'GF diets No L-Val + Fat'!G$270,\nIF(AND($G$5=\"No\",$G$6=\"No\",$G$7=\"Yes\"),'GF diets L-Val'!N$270-'GF diets L-Val'!G$270,\nIF(AND($G$5=\"Yes\",$G$6=\"No\",$G$7=\"Yes\"),'GF diets L-Val + Fat'!N$270-'GF diets L-Val + Fat'!G$270,\nIF(AND($G$5=\"No\",$G$6=\"Yes\",$G$7=\"No\"),'GF diets No L-Val + WD'!N$270-'GF diets No L-Val + WD'!G$270,\nIF(AND($G$5=\"Yes\",$G$6=\"Yes\",$G$7=\"No\"),'GF diets No L-Val + Fat + WD'!N$270-'GF diets No L-Val + Fat + WD'!G$270,\nIF(AND($G$5=\"No\",$G$6=\"Yes\",$G$7=\"Yes\"),'GF diets L-Val + WD'!N$270-'GF diets L-Val + WD'!G$270,\nIF(AND($G$5=\"Yes\",$G$6=\"Yes\",$G$7=\"Yes\"),'GF diets L-Val + Fat + WD'!N$270-'GF diets L-Val + Fat + WD'!G$270))))))))*-1","v":-8.1000915505917703E-3},{"$f":"SUM(C76:H76)","v":-5.2069394985513107E-2}]
[null,"10% DDGS",{"$f":"IF(AND($G$5=\"No\",$G$6=\"No\",$G$7=\"No\"),'GF diets No L-Val'!P$270-'GF diets No L-Val'!B$270,\nIF(AND($G$5=\"Yes\",$G$6=\"No\",$G$7=\"No\"),'GF diets No L-Val + Fat'!P$270-'GF diets No L-Val + Fat'!B$270,\nIF(AND($G$5=\"No\",$G$6=\"No\",$G$7=\"Yes\"),'GF diets L-Val'!P$270-'GF diets L-Val'!B$270,\nIF(AND($G$5=\"Yes\",$G$6=\"No\",$G$7=\"Yes\"),'GF diets L-Val + Fat'!P$270-'GF diets L-Val + Fat'!B$270,\nIF(AND($G$5=\"No\",$G$6=\"Yes\",$G$7=\"No\"),'GF diets No L-Val + WD'!P$270-'GF diets No L-Val + WD'!B$270,\nIF(AND($G$5=\"Yes\",$G$6=\"Yes\",$G$7=\"No\"),'GF diets No L-Val + Fat + WD'!P$270-'GF diets No L-Val + Fat + WD'!B$270,\nIF(AND($G$5=\"No\",$G$6=\"Yes\",$G$7=\"Yes\"),'GF diets L-Val + WD'!P$270-'GF diets L-Val + WD'!B$270,\nIF(AND($G$5=\"Yes\",$G$6=\"Yes\",$G$7=\"Yes\"),'GF diets L-Val + Fat + WD'!P$270-'GF diets L-Val + Fat + WD'!B$270))))))))*-1","v":-2.0969348343414573E-2},{"$f":"IF(AND($G$5=\"No\",$G$6=\"No\",$G$7=\"No\"),'GF diets No L-Val'!Q$270-'GF diets No L-Val'!C$270,\nIF(AND($G$5=\"Yes\",$G$6=\"No\",$G$7=\"No\"),'GF diets No L-Val + Fat'!Q$270-'GF diets No L-Val + Fat'!C$270,\nIF(AND($G$5=\"No\",$G$6=\"No\",$G$7=\"Yes\"),'GF diets L-Val'!Q$270-'GF diets L-Val'!C$270,\nIF(AND($G$5=\"Yes\",$G$6=\"No\",$G$7=\"Yes\"),'GF diets L-Val + Fat'!Q$270-'GF diets L-Val + Fat'!C$270,\nIF(AND($G$5=\"No\",$G$6=\"Yes\",$G$7=\"No\"),'GF diets No L-Val + WD'!Q$270-'GF diets No L-Val + WD'!C$270,\nIF(AND($G$5=\"Yes\",$G$6=\"Yes\",$G$7=\"No\"),'GF diets No L-Val + Fat + WD'!Q$270-'GF diets No L-Val + Fat + WD'!C$270,\nIF(AND($G$5=\"No\",$G$6=\"Yes\",$G$7=\"Yes\"),'GF diets L-Val + WD'!Q$270-'GF diets L-Val + WD'!C$270,\nIF(AND($G$5=\"Yes\",$G$6=\"Yes\",$G$7=\"Yes\"),'GF diets L-Val + Fat + WD'!Q$270-'GF diets L-Val + Fat + WD'!C$270))))))))*-1","v":-2.3898501264588035E-2},{"$f":"IF(AND($G$5=\"No\",$G$6=\"No\",$G$7=\"No\"),'GF diets No L-Val'!R$270-'GF diets No L-Val'!D$270,\nIF(AND($G$5=\"Yes\",$G$6=\"No\",$G$7=\"No\"),'GF diets No L-Val + Fat'!R$270-'GF diets No L-Val + Fat'!D$270,\nIF(AND($G$5=\"No\",$G$6=\"No\",$G$7=\"Yes\"),'GF diets L-Val'!R$270-'GF diets L-Val'!D$270,\nIF(AND($G$5=\"Yes\",$G$6=\"No\",$G$7=\"Yes\"),'GF diets L-Val + Fat'!R$270-'GF diets L-Val + Fat'!D$270,\nIF(AND($G$5=\"No\",$G$6=\"Yes\",$G$7=\"No\"),'GF diets No L-Val + WD'!R$270-'GF diets No L-Val + WD'!D$270,\nIF(AND($G$5=\"Yes\",$G$6=\"Yes\",$G$7=\"No\"),'GF diets No L-Val + Fat + WD'!R$270-'GF diets No L-Val + Fat + WD'!D$270,\nIF(AND($G$5=\"No\",$G$6=\"Yes\",$G$7=\"Yes\"),'GF diets L-Val + WD'!R$270-'GF diets L-Val + WD'!D$270,\nIF(AND($G$5=\"Yes\",$G$6=\"Yes\",$G$7=\"Yes\"),'GF diets L-Val + Fat + WD'!R$270-'GF diets L-Val + Fat + WD'!D$270))))))))*-1","v":-2.9916762987015844E-2},{"$f":"IF(AND($G$5=\"No\",$G$6=\"No\",$G$7=\"No\"),'GF diets No L-Val'!S$270-'GF diets No L-Val'!E$270,\nIF(AND($G$5=\"Yes\",$G$6=\"No\",$G$7=\"No\"),'GF diets No L-Val + Fat'!S$270-'GF diets No L-Val + Fat'!E$270,\nIF(AND($G$5=\"No\",$G$6=\"No\",$G$7=\"Yes\"),'GF diets L-Val'!S$270-'GF diets L-Val'!E$270,\nIF(AND($G$5=\"Yes\",$G$6=\"No\",$G$7=\"Yes\"),'GF diets L-Val + Fat'!S$270-'GF diets L-Val + Fat'!E$270,\nIF(AND($G$5=\"No\",$G$6=\"Yes\",$G$7=\"No\"),'GF diets No L-Val + WD'!S$270-'GF diets No L-Val + WD'!E$270,\nIF(AND($G$5=\"Yes\",$G$6=\"Yes\",$G$7=\"No\"),'GF diets No L-Val + Fat + WD'!S$270-'GF diets No L-Val + Fat + WD'!E$270,\nIF(AND($G$5=\"No\",$G$6=\"Yes\",$G$7=\"Yes\"),'GF diets L-Val + WD'!S$270-'GF diets L-Val + WD'!E$270,\nIF(AND($G$5=\"Yes\",$G$6=\"Yes\",$G$7=\"Yes\"),'GF diets L-Val + Fat + WD'!S$270-'GF diets L-Val + Fat + WD'!E$270))))))))*-1","v":-2.2182849361893631E-2},{"$f":"IF(AND($G$5=\"No\",$G$6=\"No\",$G$7=\"No\"),'GF diets No L-Val'!T$270-'GF diets No L-Val'!F$270,\nIF(AND($G$5=\"Yes\",$G$6=\"No\",$G$7=\"No\"),'GF diets No L-Val + Fat'!T$270-'GF diets No L-Val + Fat'!F$270,\nIF(AND($G$5=\"No\",$G$6=\"No\",$G$7=\"Yes\"),'GF diets L-Val'!T$270-'GF diets L-Val'!F$270,\nIF(AND($G$5=\"Yes\",$G$6=\"No\",$G$7=\"Yes\"),'GF diets L-Val + Fat'!T$270-'GF diets L-Val + Fat'!F$270,\nIF(AND($G$5=\"No\",$G$6=\"Yes\",$G$7=\"No\"),'GF diets No L-Val + WD'!T$270-'GF diets No L-Val + WD'!F$270,\nIF(AND($G$5=\"Yes\",$G$6=\"Yes\",$G$7=\"No\"),'GF diets No L-Val + Fat + WD'!T$270-'GF diets No L-Val + Fat + WD'!F$270,\nIF(AND($G$5=\"No\",$G$6=\"Yes\",$G$7=\"Yes\"),'GF diets L-Val + WD'!T$270-'GF diets L-Val + WD'!F$270,\nIF(AND($G$5=\"Yes\",$G$6=\"Yes\",$G$7=\"Yes\"),'GF diets L-Val + Fat + WD'!T$270-'GF diets L-Val + Fat + WD'!F$270))))))))*-1","v":-3.5111469325279643E-2},{"$f":"IF(AND($G$5=\"No\",$G$6=\"No\",$G$7=\"No\"),'GF diets No L-Val'!U$270-'GF diets No L-Val'!G$270,\nIF(AND($G$5=\"Yes\",$G$6=\"No\",$G$7=\"No\"),'GF diets No L-Val + Fat'!U$270-'GF diets No L-Val + Fat'!G$270,\nIF(AND($G$5=\"No\",$G$6=\"No\",$G$7=\"Yes\"),'GF diets L-Val'!U$270-'GF diets L-Val'!G$270,\nIF(AND($G$5=\"Yes\",$G$6=\"No\",$G$7=\"Yes\"),'GF diets L-Val + Fat'!U$270-'GF diets L-Val + Fat'!G$270,\nIF(AND($G$5=\"No\",$G$6=\"Yes\",$G$7=\"No\"),'GF diets No L-Val + WD'!U$270-'GF diets No L-Val + WD'!G$270,\nIF(AND($G$5=\"Yes\",$G$6=\"Yes\",$G$7=\"No\"),'GF diets No L-Val + Fat + WD'!U$270-'GF diets No L-Val + Fat + WD'!G$270,\nIF(AND($G$5=\"No\",$G$6=\"Yes\",$G$7=\"Yes\"),'GF diets L-Val + WD'!U$270-'GF diets L-Val + WD'!G$270,\nIF(AND($G$5=\"Yes\",$G$6=\"Yes\",$G$7=\"Yes\"),'GF diets L-Val + Fat + WD'!U$270-'GF diets L-Val + Fat + WD'!G$270))))))))*-1","v":-4.6795425987873784E-2},-0.17887435727006551,{"$f":"I77-I76","v":-0.1268049622845524}]
[null,"15% DDGS",{"$f":"IF(AND($G$5=\"No\",$G$6=\"No\",$G$7=\"No\"),'GF diets No L-Val'!W$270-'GF diets No L-Val'!B$270,IF(AND($G$5=\"Yes\",$G$6=\"No\",$G$7=\"No\"),'GF diets No L-Val + Fat'!W$270-'GF diets No L-Val + Fat'!B$270,IF(AND($G$5=\"No\",$G$6=\"No\",$G$7=\"Yes\"),'GF diets L-Val'!W$270-'GF diets L-Val'!B$270,IF(AND($G$5=\"Yes\",$G$6=\"No\",$G$7=\"Yes\"),'GF diets L-Val + Fat'!W$270-'GF diets L-Val + Fat'!B$270,IF(AND($G$5=\"No\",$G$6=\"Yes\",$G$7=\"No\"),'GF diets No L-Val + WD'!W$270-'GF diets No L-Val + WD'!B$270,IF(AND($G$5=\"Yes\",$G$6=\"Yes\",$G$7=\"No\"),'GF diets No L-Val + Fat + WD'!W$270-'GF diets No L-Val + Fat + WD'!B$270,IF(AND($G$5=\"No\",$G$6=\"Yes\",$G$7=\"Yes\"),'GF diets L-Val + WD'!W$270-'GF diets L-Val + WD'!B$270,IF(AND($G$5=\"Yes\",$G$6=\"Yes\",$G$7=\"Yes\"),'GF diets L-Val + Fat + WD'!W$270-'GF diets L-Val + Fat + WD'!B$270))))))))*-1","v":-3.4572609295029366E-2},{"$f":"IF(AND($G$5=\"No\",$G$6=\"No\",$G$7=\"No\"),'GF diets No L-Val'!X$270-'GF diets No L-Val'!C$270,IF(AND($G$5=\"Yes\",$G$6=\"No\",$G$7=\"No\"),'GF diets No L-Val + Fat'!X$270-'GF diets No L-Val + Fat'!C$270,IF(AND($G$5=\"No\",$G$6=\"No\",$G$7=\"Yes\"),'GF diets L-Val'!X$270-'GF diets L-Val'!C$270,IF(AND($G$5=\"Yes\",$G$6=\"No\",$G$7=\"Yes\"),'GF diets L-Val + Fat'!X$270-'GF diets L-Val + Fat'!C$270,IF(AND($G$5=\"No\",$G$6=\"Yes\",$G$7=\"No\"),'GF diets No L-Val + WD'!X$270-'GF diets No L-Val + WD'!C$270,IF(AND($G$5=\"Yes\",$G$6=\"Yes\",$G$7=\"No\"),'GF diets No L-Val + Fat + WD'!X$270-'GF diets No L-Val + Fat + WD'!C$270,IF(AND($G$5=\"No\",$G$6=\"Yes\",$G$7=\"Yes\"),'GF diets L-Val + WD'!X$270-'GF diets L-Val + WD'!C$270,IF(AND($G$5=\"Yes\",$G$6=\"Yes\",$G$7=\"Yes\"),'GF diets L-Val + Fat + WD'!X$270-'GF diets L-Val + Fat + WD'!C$270))))))))*-1","v":-3.833687130038399E-2},{"$f":"IF(AND($G$5=\"No\",$G$6=\"No\",$G$7=\"No\"),'GF diets No L-Val'!Y$270-'GF diets No L-Val'!D$270,IF(AND($G$5=\"Yes\",$G$6=\"No\",$G$7=\"No\"),'GF diets No L-Val + Fat'!Y$270-'GF diets No L-Val + Fat'!D$270,IF(AND($G$5=\"No\",$G$6=\"No\",$G$7=\"Yes\"),'GF diets L-Val'!Y$270-'GF diets L-Val'!D$270,IF(AND($G$5=\"Yes\",$G$6=\"No\",$G$7=\"Yes\"),'GF diets L-Val + Fat'!Y$270-'GF diets L-Val + Fat'!D$270,IF(AND($G$5=\"No\",$G$6=\"Yes\",$G$7=\"No\"),'GF diets No L-Val + WD'!Y$270-'GF diets No L-Val + WD'!D$270,IF(AND($G$5=\"Yes\",$G$6=\"Yes\",$G$7=\"No\"),'GF diets No L-Val + Fat + WD'!Y$270-'GF diets No L-Val + Fat + WD'!D$270,IF(AND($G$5=\"No\",$G$6=\"Yes\",$G$7=\"Yes\"),'GF diets L-Val + WD'!Y$270-'GF diets L-Val + WD'!D$270,IF(AND($G$5=\"Yes\",$G$6=\"Yes\",$G$7=\"Yes\"),'GF diets L-Val + Fat + WD'!Y$270-'GF diets L-Val + Fat + WD'!D$270))))))))*-1","v":-4.3729833715282496E-2},{"$f":"IF(AND($G$5=\"No\",$G$6=\"No\",$G$7=\"No\"),'GF diets No L-Val'!Z$270-'GF diets No L-Val'!E$270,IF(AND($G$5=\"Yes\",$G$6=\"No\",$G$7=\"No\"),'GF diets No L-Val + Fat'!Z$270-'GF diets No L-Val + Fat'!E$270,IF(AND($G$5=\"No\",$G$6=\"No\",$G$7=\"Yes\"),'GF diets L-Val'!Z$270-'GF diets L-Val'!E$270,IF(AND($G$5=\"Yes\",$G$6=\"No\",$G$7=\"Yes\"),'GF diets L-Val + Fat'!Z$270-'GF diets L-Val + Fat'!E$270,IF(AND($G$5=\"No\",$G$6=\"Yes\",$G$7=\"No\"),'GF diets No L-Val + WD'!Z$270-'GF diets No L-Val + WD'!E$270,IF(AND($G$5=\"Yes\",$G$6=\"Yes\",$G$7=\"No\"),'GF diets No L-Val + Fat + WD'!Z$270-'GF diets No L-Val + Fat + WD'!E$270,IF(AND($G$5=\"No\",$G$6=\"Yes\",$G$7=\"Yes\"),'GF diets L-Val + WD'!Z$270-'GF diets L-Val + WD'!E$270,IF(AND($G$5=\"Yes\",$G$6=\"Yes\",$G$7=\"Yes\"),'GF diets L-Val + Fat + WD'!Z$270-'GF diets L-Val + Fat + WD'!E$270))))))))*-1","v":-4.154594702699832E-2},{"$f":"IF(AND($G$5=\"No\",$G$6=\"No\",$G$7=\"No\"),'GF diets No L-Val'!AA$270-'GF diets No L-Val'!F$270,IF(AND($G$5=\"Yes\",$G$6=\"No\",$G$7=\"No\"),'GF diets No L-Val + Fat'!AA$270-'GF diets No L-Val + Fat'!F$270,IF(AND($G$5=\"No\",$G$6=\"No\",$G$7=\"Yes\"),'GF diets L-Val'!AA$270-'GF diets L-Val'!F$270,IF(AND($G$5=\"Yes\",$G$6=\"No\",$G$7=\"Yes\"),'GF diets L-Val + Fat'!AA$270-'GF diets L-Val + Fat'!F$270,IF(AND($G$5=\"No\",$G$6=\"Yes\",$G$7=\"No\"),'GF diets No L-Val + WD'!AA$270-'GF diets No L-Val + WD'!F$270,IF(AND($G$5=\"Yes\",$G$6=\"Yes\",$G$7=\"No\"),'GF diets No L-Val + Fat + WD'!AA$270-'GF diets No L-Val + Fat + WD'!F$270,IF(AND($G$5=\"No\",$G$6=\"Yes\",$G$7=\"Yes\"),'GF diets L-Val + WD'!AA$270-'GF diets L-Val + WD'!F$270,IF(AND($G$5=\"Yes\",$G$6=\"Yes\",$G$7=\"Yes\"),'GF diets L-Val + Fat + WD'!AA$270-'GF diets L-Val + Fat + WD'!F$270))))))))*-1","v":-6.6906452926639659E-2},{"$f":"IF(AND($G$5=\"No\",$G$6=\"No\",$G$7=\"No\"),'GF diets No L-Val'!AB$270-'GF diets No L-Val'!G$270,IF(AND($G$5=\"Yes\",$G$6=\"No\",$G$7=\"No\"),'GF diets No L-Val + Fat'!AB$270-'GF diets No L-Val + Fat'!G$270,IF(AND($G$5=\"No\",$G$6=\"No\",$G$7=\"Yes\"),'GF diets L-Val'!AB$270-'GF diets L-Val'!G$270,IF(AND($G$5=\"Yes\",$G$6=\"No\",$G$7=\"Yes\"),'GF diets L-Val + Fat'!AB$270-'GF diets L-Val + Fat'!G$270,IF(AND($G$5=\"No\",$G$6=\"Yes\",$G$7=\"No\"),'GF diets No L-Val + WD'!AB$270-'GF diets No L-Val + WD'!G$270,IF(AND($G$5=\"Yes\",$G$6=\"Yes\",$G$7=\"No\"),'GF diets No L-Val + Fat + WD'!AB$270-'GF diets No L-Val + Fat + WD'!G$270,IF(AND($G$5=\"No\",$G$6=\"Yes\",$G$7=\"Yes\"),'GF diets L-Val + WD'!AB$270-'GF diets L-Val + WD'!G$270,IF(AND($G$5=\"Yes\",$G$6=\"Yes\",$G$7=\"Yes\"),'GF diets L-Val + Fat + WD'!AB$270-'GF diets L-Val + Fat + WD'!G$270))))))))*-1","v":-9.3636334451847603E-2},-0.31872804871618143,{"$f":"I78-I77","v":-0.13985369144611592}]
[null,"20% DDGS",{"$f":"IF(AND($G$5=\"No\",$G$6=\"No\",$G$7=\"No\"),'GF diets No L-Val'!AD$270-'GF diets No L-Val'!B$270,IF(AND($G$5=\"Yes\",$G$6=\"No\",$G$7=\"No\"),'GF diets No L-Val + Fat'!AD$270-'GF diets No L-Val + Fat'!B$270,IF(AND($G$5=\"No\",$G$6=\"No\",$G$7=\"Yes\"),'GF diets L-Val'!AD$270-'GF diets L-Val'!B$270,IF(AND($G$5=\"Yes\",$G$6=\"No\",$G$7=\"Yes\"),'GF diets L-Val + Fat'!AD$270-'GF diets L-Val + Fat'!B$270,IF(AND($G$5=\"No\",$G$6=\"Yes\",$G$7=\"No\"),'GF diets No L-Val + WD'!AD$270-'GF diets No L-Val + WD'!B$270,IF(AND($G$5=\"Yes\",$G$6=\"Yes\",$G$7=\"No\"),'GF diets No L-Val + Fat + WD'!AD$270-'GF diets No L-Val + Fat + WD'!B$270,IF(AND($G$5=\"No\",$G$6=\"Yes\",$G$7=\"Yes\"),'GF diets L-Val + WD'!AD$270-'GF diets L-Val + WD'!B$270,IF(AND($G$5=\"Yes\",$G$6=\"Yes\",$G$7=\"Yes\"),'GF diets L-Val + Fat + WD'!AD$270-'GF diets L-Val + Fat + WD'!B$270))))))))*-1","v":-4.8228274704241514E-2},{"$f":"IF(AND($G$5=\"No\",$G$6=\"No\",$G$7=\"No\"),'GF diets No L-Val'!AE$270-'GF diets No L-Val'!C$270,IF(AND($G$5=\"Yes\",$G$6=\"No\",$G$7=\"No\"),'GF diets No L-Val + Fat'!AE$270-'GF diets No L-Val + Fat'!C$270,IF(AND($G$5=\"No\",$G$6=\"No\",$G$7=\"Yes\"),'GF diets L-Val'!AE$270-'GF diets L-Val'!C$270,IF(AND($G$5=\"Yes\",$G$6=\"No\",$G$7=\"Yes\"),'GF diets L-Val + Fat'!AE$270-'GF diets L-Val + Fat'!C$270,IF(AND($G$5=\"No\",$G$6=\"Yes\",$G$7=\"No\"),'GF diets No L-Val + WD'!AE$270-'GF diets No L-Val + WD'!C$270,IF(AND($G$5=\"Yes\",$G$6=\"Yes\",$G$7=\"No\"),'GF diets No L-Val + Fat + WD'!AE$270-'GF diets No L-Val + Fat + WD'!C$270,IF(AND($G$5=\"No\",$G$6=\"Yes\",$G$7=\"Yes\"),'GF diets L-Val + WD'!AE$270-'GF diets L-Val + WD'!C$270,IF(AND($G$5=\"Yes\",$G$6=\"Yes\",$G$7=\"Yes\"),'GF diets L-Val + Fat + WD'!AE$270-'GF diets L-Val + Fat + WD'!C$270))))))))*-1","v":-4.9682656685455129E-2},{"$f":"IF(AND($G$5=\"No\",$G$6=\"No\",$G$7=\"No\"),'GF diets No L-Val'!AF$270-'GF diets No L-Val'!D$270,IF(AND($G$5=\"Yes\",$G$6=\"No\",$G$7=\"No\"),'GF diets No L-Val + Fat'!AF$270-'GF diets No L-Val + Fat'!D$270,IF(AND($G$5=\"No\",$G$6=\"No\",$G$7=\"Yes\"),'GF diets L-Val'!AF$270-'GF diets L-Val'!D$270,IF(AND($G$5=\"Yes\",$G$6=\"No\",$G$7=\"Yes\"),'GF diets L-Val + Fat'!AF$270-'GF diets L-Val + Fat'!D$270,IF(AND($G$5=\"No\",$G$6=\"Yes\",$G$7=\"No\"),'GF diets No L-Val + WD'!AF$270-'GF diets No L-Val + WD'!D$270,IF(AND($G$5=\"Yes\",$G$6=\"Yes\",$G$7=\"No\"),'GF diets No L-Val + Fat + WD'!AF$270-'GF diets No L-Val + Fat + WD'!D$270,IF(AND($G$5=\"No\",$G$6=\"Yes\",$G$7=\"Yes\"),'GF diets L-Val + WD'!AF$270-'GF diets L-Val + WD'!D$270,IF(AND($G$5=\"Yes\",$G$6=\"Yes\",$G$7=\"Yes\"),'GF diets L-Val + Fat + WD'!AF$270-'GF diets L-Val + Fat + WD'!D$270))))))))*-1","v":-5.5949177353673107E-2},{"$f":"IF(AND($G$5=\"No\",$G$6=\"No\",$G$7=\"No\"),'GF diets No L-Val'!AG$270-'GF diets No L-Val'!E$270,IF(AND($G$5=\"Yes\",$G$6=\"No\",$G$7=\"No\"),'GF diets No L-Val + Fat'!AG$270-'GF diets No L-Val + Fat'!E$270,IF(AND($G$5=\"No\",$G$6=\"No\",$G$7=\"Yes\"),'GF diets L-Val'!AG$270-'GF diets L-Val'!E$270,IF(AND($G$5=\"Yes\",$G$6=\"No\",$G$7=\"Yes\"),'GF diets L-Val + Fat'!AG$270-'GF diets L-Val + Fat'!E$270,IF(AND($G$5=\"No\",$G$6=\"Yes\",$G$7=\"No\"),'GF diets No L-Val + WD'!AG$270-'GF diets No L-Val + WD'!E$270,IF(AND($G$5=\"Yes\",$G$6=\"Yes\",$G$7=\"No\"),'GF diets No L-Val + Fat + WD'!AG$270-'GF diets No L-Val + Fat + WD'!E$270,IF(AND($G$5=\"No\",$G$6=\"Yes\",$G$7=\"Yes\"),'GF diets L-Val + WD'!AG$270-'GF diets L-Val + WD'!E$270,IF(AND($G$5=\"Yes\",$G$6=\"Yes\",$G$7=\"Yes\"),'GF diets L-Val + Fat + WD'!AG$270-'GF diets L-Val + Fat + WD'!E$270))))))))*-1","v":-7.1361784680387785E-2},{"$f":"IF(AND($G$5=\"No\",$G$6=\"No\",$G$7=\"No\"),'GF diets No L-Val'!AH$270-'GF diets No L-Val'!F$270,IF(AND($G$5=\"Yes\",$G$6=\"No\",$G$7=\"No\"),'GF diets No L-Val + Fat'!AH$270-'GF diets No L-Val + Fat'!F$270,IF(AND($G$5=\"No\",$G$6=\"No\",$G$7=\"Yes\"),'GF diets L-Val'!AH$270-'GF diets L-Val'!F$270,IF(AND($G$5=\"Yes\",$G$6=\"No\",$G$7=\"Yes\"),'GF diets L-Val + Fat'!AH$270-'GF diets L-Val + Fat'!F$270,IF(AND($G$5=\"No\",$G$6=\"Yes\",$G$7=\"No\"),'GF diets No L-Val + WD'!AH$270-'GF diets No L-Val + WD'!F$270,IF(AND($G$5=\"Yes\",$G$6=\"Yes\",$G$7=\"No\"),'GF diets No L-Val + Fat + WD'!AH$270-'GF diets No L-Val + Fat + WD'!F$270,IF(AND($G$5=\"No\",$G$6=\"Yes\",$G$7=\"Yes\"),'GF diets L-Val + WD'!AH$270-'GF diets L-Val + WD'!F$270,IF(AND($G$5=\"Yes\",$G$6=\"Yes\",$G$7=\"Yes\"),'GF diets L-Val + Fat + WD'!AH$270-'GF diets L-Val + Fat + WD'!F$270))))))))*-1","v":-0.11440661001956265},{"$f":"IF(AND($G$5=\"No\",$G$6=\"No\",$G$7=\"No\"),'GF diets No L-Val'!AI$270-'GF diets No L-Val'!G$270,IF(AND($G$5=\"Yes\",$G$6=\"No\",$G$7=\"No\"),'GF diets No L-Val + Fat'!AI$270-'GF diets No L-Val + Fat'!G$270,IF(AND($G$5=\"No\",$G$6=\"No\",$G$7=\"Yes\"),'GF diets L-Val'!AI$270-'GF diets L-Val'!G$270,IF(AND($G$5=\"Yes\",$G$6=\"No\",$G$7=\"Yes\"),'GF diets L-Val + Fat'!AI$270-'GF diets L-Val + Fat'!G$270,IF(AND($G$5=\"No\",$G$6=\"Yes\",$G$7=\"No\"),'GF diets No L-Val + WD'!AI$270-'GF diets No L-Val + WD'!G$270,IF(AND($G$5=\"Yes\",$G$6=\"Yes\",$G$7=\"No\"),'GF diets No L-Val + Fat + WD'!AI$270-'GF diets No L-Val + Fat + WD'!G$270,IF(AND($G$5=\"No\",$G$6=\"Yes\",$G$7=\"Yes\"),'GF diets L-Val + WD'!AI$270-'GF diets L-Val + WD'!G$270,IF(AND($G$5=\"Yes\",$G$6=\"Yes\",$G$7=\"Yes\"),'GF diets L-Val + Fat + WD'!AI$270-'GF diets L-Val + Fat + WD'!G$270))))))))*-1","v":-0.16360403154810577},-0.50323253499142595,{"$f":"I79-I78","v":-0.18450448627524452}]
[null,"25% DDGS",{"$f":"IF(AND($G$5=\"No\",$G$6=\"No\",$G$7=\"No\"),'GF diets No L-Val'!AK$270-'GF diets No L-Val'!B$270,IF(AND($G$5=\"Yes\",$G$6=\"No\",$G$7=\"No\"),'GF diets No L-Val + Fat'!AK$270-'GF diets No L-Val + Fat'!B$270,IF(AND($G$5=\"No\",$G$6=\"No\",$G$7=\"Yes\"),'GF diets L-Val'!AK$270-'GF diets L-Val'!B$270,IF(AND($G$5=\"Yes\",$G$6=\"No\",$G$7=\"Yes\"),'GF diets L-Val + Fat'!AK$270-'GF diets L-Val + Fat'!B$270,IF(AND($G$5=\"No\",$G$6=\"Yes\",$G$7=\"No\"),'GF diets No L-Val + WD'!AK$270-'GF diets No L-Val + WD'!B$270,IF(AND($G$5=\"Yes\",$G$6=\"Yes\",$G$7=\"No\"),'GF diets No L-Val + Fat + WD'!AK$270-'GF diets No L-Val + Fat + WD'!B$270,IF(AND($G$5=\"No\",$G$6=\"Yes\",$G$7=\"Yes\"),'GF diets L-Val + WD'!AK$270-'GF diets L-Val + WD'!B$270,IF(AND($G$5=\"Yes\",$G$6=\"Yes\",$G$7=\"Yes\"),'GF diets L-Val + Fat + WD'!AK$270-'GF diets L-Val + Fat + WD'!B$270))))))))*-1","v":-7.4260971588451241E-2},{"$f":"IF(AND($G$5=\"No\",$G$6=\"No\",$G$7=\"No\"),'GF diets No L-Val'!AL$270-'GF diets No L-Val'!C$270,IF(AND($G$5=\"Yes\",$G$6=\"No\",$G$7=\"No\"),'GF diets No L-Val + Fat'!AL$270-'GF diets No L-Val + Fat'!C$270,IF(AND($G$5=\"No\",$G$6=\"No\",$G$7=\"Yes\"),'GF diets L-Val'!AL$270-'GF diets L-Val'!C$270,IF(AND($G$5=\"Yes\",$G$6=\"No\",$G$7=\"Yes\"),'GF diets L-Val + Fat'!AL$270-'GF diets L-Val + Fat'!C$270,IF(AND($G$5=\"No\",$G$6=\"Yes\",$G$7=\"No\"),'GF diets No L-Val + WD'!AL$270-'GF diets No L-Val + WD'!C$270,IF(AND($G$5=\"Yes\",$G$6=\"Yes\",$G$7=\"No\"),'GF diets No L-Val + Fat + WD'!AL$270-'GF diets No L-Val + Fat + WD'!C$270,IF(AND($G$5=\"No\",$G$6=\"Yes\",$G$7=\"Yes\"),'GF diets L-Val + WD'!AL$270-'GF diets L-Val + WD'!C$270,IF(AND($G$5=\"Yes\",$G$6=\"Yes\",$G$7=\"Yes\"),'GF diets L-Val + Fat + WD'!AL$270-'GF diets L-Val + Fat + WD'!C$270))))))))*-1","v":-6.2142317229561428E-2},{"$f":"IF(AND($G$5=\"No\",$G$6=\"No\",$G$7=\"No\"),'GF diets No L-Val'!AM$270-'GF diets No L-Val'!D$270,IF(AND($G$5=\"Yes\",$G$6=\"No\",$G$7=\"No\"),'GF diets No L-Val + Fat'!AM$270-'GF diets No L-Val + Fat'!D$270,IF(AND($G$5=\"No\",$G$6=\"No\",$G$7=\"Yes\"),'GF diets L-Val'!AM$270-'GF diets L-Val'!D$270,IF(AND($G$5=\"Yes\",$G$6=\"No\",$G$7=\"Yes\"),'GF diets L-Val + Fat'!AM$270-'GF diets L-Val + Fat'!D$270,IF(AND($G$5=\"No\",$G$6=\"Yes\",$G$7=\"No\"),'GF diets No L-Val + WD'!AM$270-'GF diets No L-Val + WD'!D$270,IF(AND($G$5=\"Yes\",$G$6=\"Yes\",$G$7=\"No\"),'GF diets No L-Val + Fat + WD'!AM$270-'GF diets No L-Val + Fat + WD'!D$270,IF(AND($G$5=\"No\",$G$6=\"Yes\",$G$7=\"Yes\"),'GF diets L-Val + WD'!AM$270-'GF diets L-Val + WD'!D$270,IF(AND($G$5=\"Yes\",$G$6=\"Yes\",$G$7=\"Yes\"),'GF diets L-Val + Fat + WD'!AM$270-'GF diets L-Val + Fat + WD'!D$270))))))))*-1","v":-8.3466510332875998E-2},{"$f":"IF(AND($G$5=\"No\",$G$6=\"No\",$G$7=\"No\"),'GF diets No L-Val'!AN$270-'GF diets No L-Val'!E$270,IF(AND($G$5=\"Yes\",$G$6=\"No\",$G$7=\"No\"),'GF diets No L-Val + Fat'!AN$270-'GF diets No L-Val + Fat'!E$270,IF(AND($G$5=\"No\",$G$6=\"No\",$G$7=\"Yes\"),'GF diets L-Val'!AN$270-'GF diets L-Val'!E$270,IF(AND($G$5=\"Yes\",$G$6=\"No\",$G$7=\"Yes\"),'GF diets L-Val + Fat'!AN$270-'GF diets L-Val + Fat'!E$270,IF(AND($G$5=\"No\",$G$6=\"Yes\",$G$7=\"No\"),'GF diets No L-Val + WD'!AN$270-'GF diets No L-Val + WD'!E$270,IF(AND($G$5=\"Yes\",$G$6=\"Yes\",$G$7=\"No\"),'GF diets No L-Val + Fat + WD'!AN$270-'GF diets No L-Val + Fat + WD'!E$270,IF(AND($G$5=\"No\",$G$6=\"Yes\",$G$7=\"Yes\"),'GF diets L-Val + WD'!AN$270-'GF diets L-Val + WD'!E$270,IF(AND($G$5=\"Yes\",$G$6=\"Yes\",$G$7=\"Yes\"),'GF diets L-Val + Fat + WD'!AN$270-'GF diets L-Val + Fat + WD'!E$270))))))))*-1","v":-0.11109795073122442},{"$f":"IF(AND($G$5=\"No\",$G$6=\"No\",$G$7=\"No\"),'GF diets No L-Val'!AO$270-'GF diets No L-Val'!F$270,IF(AND($G$5=\"Yes\",$G$6=\"No\",$G$7=\"No\"),'GF diets No L-Val + Fat'!AO$270-'GF diets No L-Val + Fat'!F$270,IF(AND($G$5=\"No\",$G$6=\"No\",$G$7=\"Yes\"),'GF diets L-Val'!AO$270-'GF diets L-Val'!F$270,IF(AND($G$5=\"Yes\",$G$6=\"No\",$G$7=\"Yes\"),'GF diets L-Val + Fat'!AO$270-'GF diets L-Val + Fat'!F$270,IF(AND($G$5=\"No\",$G$6=\"Yes\",$G$7=\"No\"),'GF diets No L-Val + WD'!AO$270-'GF diets No L-Val + WD'!F$270,IF(AND($G$5=\"Yes\",$G$6=\"Yes\",$G$7=\"No\"),'GF diets No L-Val + Fat + WD'!AO$270-'GF diets No L-Val + Fat + WD'!F$270,IF(AND($G$5=\"No\",$G$6=\"Yes\",$G$7=\"Yes\"),'GF diets L-Val + WD'!AO$270-'GF diets L-Val + WD'!F$270,IF(AND($G$5=\"Yes\",$G$6=\"Yes\",$G$7=\"Yes\"),'GF diets L-Val + Fat + WD'!AO$270-'GF diets L-Val + Fat + WD'!F$270))))))))*-1","v":-0.17363663448684363},{"$f":"IF(AND($G$5=\"No\",$G$6=\"No\",$G$7=\"No\"),'GF diets No L-Val'!AP$270-'GF diets No L-Val'!G$270,IF(AND($G$5=\"Yes\",$G$6=\"No\",$G$7=\"No\"),'GF diets No L-Val + Fat'!AP$270-'GF diets No L-Val + Fat'!G$270,IF(AND($G$5=\"No\",$G$6=\"No\",$G$7=\"Yes\"),'GF diets L-Val'!AP$270-'GF diets L-Val'!G$270,IF(AND($G$5=\"Yes\",$G$6=\"No\",$G$7=\"Yes\"),'GF diets L-Val + Fat'!AP$270-'GF diets L-Val + Fat'!G$270,IF(AND($G$5=\"No\",$G$6=\"Yes\",$G$7=\"No\"),'GF diets No L-Val + WD'!AP$270-'GF diets No L-Val + WD'!G$270,IF(AND($G$5=\"Yes\",$G$6=\"Yes\",$G$7=\"No\"),'GF diets No L-Val + Fat + WD'!AP$270-'GF diets No L-Val + Fat + WD'!G$270,IF(AND($G$5=\"No\",$G$6=\"Yes\",$G$7=\"Yes\"),'GF diets L-Val + WD'!AP$270-'GF diets L-Val + WD'!G$270,IF(AND($G$5=\"Yes\",$G$6=\"Yes\",$G$7=\"Yes\"),'GF diets L-Val + Fat + WD'!AP$270-'GF diets L-Val + Fat + WD'!G$270))))))))*-1","v":-0.23740638063249087},-0.74201076500144758,{"$f":"I80-I79","v":-0.23877823001002163}]
[null,"30% DDGS",{"$f":"IF(AND($G$5=\"No\",$G$6=\"No\",$G$7=\"No\"),'GF diets No L-Val'!AR$270-'GF diets No L-Val'!B$270,IF(AND($G$5=\"Yes\",$G$6=\"No\",$G$7=\"No\"),'GF diets No L-Val + Fat'!AR$270-'GF diets No L-Val + Fat'!B$270,IF(AND($G$5=\"No\",$G$6=\"No\",$G$7=\"Yes\"),'GF diets L-Val'!AR$270-'GF diets L-Val'!B$270,IF(AND($G$5=\"Yes\",$G$6=\"No\",$G$7=\"Yes\"),'GF diets L-Val + Fat'!AR$270-'GF diets L-Val + Fat'!B$270,IF(AND($G$5=\"No\",$G$6=\"Yes\",$G$7=\"No\"),'GF diets No L-Val + WD'!AR$270-'GF diets No L-Val + WD'!B$270,IF(AND($G$5=\"Yes\",$G$6=\"Yes\",$G$7=\"No\"),'GF diets No L-Val + Fat + WD'!AR$270-'GF diets No L-Val + Fat + WD'!B$270,IF(AND($G$5=\"No\",$G$6=\"Yes\",$G$7=\"Yes\"),'GF diets L-Val + WD'!AR$270-'GF diets L-Val + WD'!B$270,IF(AND($G$5=\"Yes\",$G$6=\"Yes\",$G$7=\"Yes\"),'GF diets L-Val + Fat + WD'!AR$270-'GF diets L-Val + Fat + WD'!B$270))))))))*-1","v":-8.3838206878017019E-2},{"$f":"IF(AND($G$5=\"No\",$G$6=\"No\",$G$7=\"No\"),'GF diets No L-Val'!AS$270-'GF diets No L-Val'!C$270,IF(AND($G$5=\"Yes\",$G$6=\"No\",$G$7=\"No\"),'GF diets No L-Val + Fat'!AS$270-'GF diets No L-Val + Fat'!C$270,IF(AND($G$5=\"No\",$G$6=\"No\",$G$7=\"Yes\"),'GF diets L-Val'!AS$270-'GF diets L-Val'!C$270,IF(AND($G$5=\"Yes\",$G$6=\"No\",$G$7=\"Yes\"),'GF diets L-Val + Fat'!AS$270-'GF diets L-Val + Fat'!C$270,IF(AND($G$5=\"No\",$G$6=\"Yes\",$G$7=\"No\"),'GF diets No L-Val + WD'!AS$270-'GF diets No L-Val + WD'!C$270,IF(AND($G$5=\"Yes\",$G$6=\"Yes\",$G$7=\"No\"),'GF diets No L-Val + Fat + WD'!AS$270-'GF diets No L-Val + Fat + WD'!C$270,IF(AND($G$5=\"No\",$G$6=\"Yes\",$G$7=\"Yes\"),'GF diets L-Val + WD'!AS$270-'GF diets L-Val + WD'!C$270,IF(AND($G$5=\"Yes\",$G$6=\"Yes\",$G$7=\"Yes\"),'GF diets L-Val + Fat + WD'!AS$270-'GF diets L-Val + Fat + WD'!C$270))))))))*-1","v":-7.4903853070210857E-2},{"$f":"IF(AND($G$5=\"No\",$G$6=\"No\",$G$7=\"No\"),'GF diets No L-Val'!AT$270-'GF diets No L-Val'!D$270,IF(AND($G$5=\"Yes\",$G$6=\"No\",$G$7=\"No\"),'GF diets No L-Val + Fat'!AT$270-'GF diets No L-Val + Fat'!D$270,IF(AND($G$5=\"No\",$G$6=\"No\",$G$7=\"Yes\"),'GF diets L-Val'!AT$270-'GF diets L-Val'!D$270,IF(AND($G$5=\"Yes\",$G$6=\"No\",$G$7=\"Yes\"),'GF diets L-Val + Fat'!AT$270-'GF diets L-Val + Fat'!D$270,IF(AND($G$5=\"No\",$G$6=\"Yes\",$G$7=\"No\"),'GF diets No L-Val + WD'!AT$270-'GF diets No L-Val + WD'!D$270,IF(AND($G$5=\"Yes\",$G$6=\"Yes\",$G$7=\"No\"),'GF diets No L-Val + Fat + WD'!AT$270-'GF diets No L-Val + Fat + WD'!D$270,IF(AND($G$5=\"No\",$G$6=\"Yes\",$G$7=\"Yes\"),'GF diets L-Val + WD'!AT$270-'GF diets L-Val + WD'!D$270,IF(AND($G$5=\"Yes\",$G$6=\"Yes\",$G$7=\"Yes\"),'GF diets L-Val + Fat + WD'!AT$270-'GF diets L-Val + Fat + WD'!D$270))))))))*-1","v":-0.11242527303270933},{"$f":"IF(AND($G$5=\"No\",$G$6=\"No\",$G$7=\"No\"),'GF diets No L-Val'!AU$270-'GF diets No L-Val'!E$270,IF(AND($G$5=\"Yes\",$G$6=\"No\",$G$7=\"No\"),'GF diets No L-Val + Fat'!AU$270-'GF diets No L-Val + Fat'!E$270,IF(AND($G$5=\"No\",$G$6=\"No\",$G$7=\"Yes\"),'GF diets L-Val'!AU$270-'GF diets L-Val'!E$270,IF(AND($G$5=\"Yes\",$G$6=\"No\",$G$7=\"Yes\"),'GF diets L-Val + Fat'!AU$270-'GF diets L-Val + Fat'!E$270,IF(AND($G$5=\"No\",$G$6=\"Yes\",$G$7=\"No\"),'GF diets No L-Val + WD'!AU$270-'GF diets No L-Val + WD'!E$270,IF(AND($G$5=\"Yes\",$G$6=\"Yes\",$G$7=\"No\"),'GF diets No L-Val + Fat + WD'!AU$270-'GF diets No L-Val + Fat + WD'!E$270,IF(AND($G$5=\"No\",$G$6=\"Yes\",$G$7=\"Yes\"),'GF diets L-Val + WD'!AU$270-'GF diets L-Val + WD'!E$270,IF(AND($G$5=\"Yes\",$G$6=\"Yes\",$G$7=\"Yes\"),'GF diets L-Val + Fat + WD'!AU$270-'GF diets L-Val + Fat + WD'!E$270))))))))*-1","v":-0.16638948387910624},{"$f":"IF(AND($G$5=\"No\",$G$6=\"No\",$G$7=\"No\"),'GF diets No L-Val'!AV$270-'GF diets No L-Val'!F$270,IF(AND($G$5=\"Yes\",$G$6=\"No\",$G$7=\"No\"),'GF diets No L-Val + Fat'!AV$270-'GF diets No L-Val + Fat'!F$270,IF(AND($G$5=\"No\",$G$6=\"No\",$G$7=\"Yes\"),'GF diets L-Val'!AV$270-'GF diets L-Val'!F$270,IF(AND($G$5=\"Yes\",$G$6=\"No\",$G$7=\"Yes\"),'GF diets L-Val + Fat'!AV$270-'GF diets L-Val + Fat'!F$270,IF(AND($G$5=\"No\",$G$6=\"Yes\",$G$7=\"No\"),'GF diets No L-Val + WD'!AV$270-'GF diets No L-Val + WD'!F$270,IF(AND($G$5=\"Yes\",$G$6=\"Yes\",$G$7=\"No\"),'GF diets No L-Val + Fat + WD'!AV$270-'GF diets No L-Val + Fat + WD'!F$270,IF(AND($G$5=\"No\",$G$6=\"Yes\",$G$7=\"Yes\"),'GF diets L-Val + WD'!AV$270-'GF diets L-Val + WD'!F$270,IF(AND($G$5=\"Yes\",$G$6=\"Yes\",$G$7=\"Yes\"),'GF diets L-Val + Fat + WD'!AV$270-'GF diets L-Val + Fat + WD'!F$270))))))))*-1","v":-0.23206288015506793},{"$f":"IF(AND($G$5=\"No\",$G$6=\"No\",$G$7=\"No\"),'GF diets No L-Val'!AW$270-'GF diets No L-Val'!G$270,IF(AND($G$5=\"Yes\",$G$6=\"No\",$G$7=\"No\"),'GF diets No L-Val + Fat'!AW$270-'GF diets No L-Val + Fat'!G$270,IF(AND($G$5=\"No\",$G$6=\"No\",$G$7=\"Yes\"),'GF diets L-Val'!AW$270-'GF diets L-Val'!G$270,IF(AND($G$5=\"Yes\",$G$6=\"No\",$G$7=\"Yes\"),'GF diets L-Val + Fat'!AW$270-'GF diets L-Val + Fat'!G$270,IF(AND($G$5=\"No\",$G$6=\"Yes\",$G$7=\"No\"),'GF diets No L-Val + WD'!AW$270-'GF diets No L-Val + WD'!G$270,IF(AND($G$5=\"Yes\",$G$6=\"Yes\",$G$7=\"No\"),'GF diets No L-Val + Fat + WD'!AW$270-'GF diets No L-Val + Fat + WD'!G$270,IF(AND($G$5=\"No\",$G$6=\"Yes\",$G$7=\"Yes\"),'GF diets L-Val + WD'!AW$270-'GF diets L-Val + WD'!G$270,IF(AND($G$5=\"Yes\",$G$6=\"Yes\",$G$7=\"Yes\"),'GF diets L-Val + Fat + WD'!AW$270-'GF diets L-Val + Fat + WD'!G$270))))))))*-1","v":-0.31005390711169412},-0.97967360412680549,{"$f":"I81-I80","v":-0.23766283912535791}]

{"sheet":"Performance","index":2,"n_rows":80,"n_cols":72,"rows_kept":80,"cut":false,"hidden":true,"merged":[[0,65,0,71],[0,57,0,63],[0,0,0,6],[0,24,0,30],[0,32,0,38],[0,16,0,22],[0,48,0,54],[0,8,0,14],[0,40,0,46]]}
["Yield",null,null,null,null,null,null,null,"NDF",null,null,null,null,null,null,null,"HCW",null,null,null,null,null,null,null,"ADG",null,null,null,null,null,null,null,"GF   ",null,null,null,null,null,null,null,"FG",null,null,null,null,null,null,null,"BW",null,null,null,null,null,null,null,null,"BW Gain",null,null,null,null,null,null,null,"BW, Yield, and HCW Change with changing DDGS Levels"]
["GF No L-Val",null,null,null,null,null,null,null,"GF No L-Val",null,null,null,null,null,null,null,"GF No L-Val",null,null,null,null,null,null,null,"GF No L-Val",null,null,null,null,null,null,null,"GF No L-Val",null,null,null,null,null,null,null,"GF No L-Val",null,null,null,null,null,null,null,"GF No L-Val",null,null,null,null,null,null,null,null,"GF No L-Val",null,null,null,null,null,null,null,null,"GF No L-Val"]
[null,"Phase 1","Phase 2","Phase 3","Phase 4","Phase 5","Phase 6",null,null,"Phase 1","Phase 2","Phase 3","Phase 4","Phase 5","Phase 6",null,null,"Phase 1","Phase 2","Phase 3","Phase 4","Phase 5","Phase 6",null,null,"Phase 1","Phase 2","Phase 3","Phase 4","Phase 5","Phase 6",null,null,"Phase 1","Phase 2","Phase 3","Phase 4","Phase 5","Phase 6",null,null,"Phase 1","Phase 2","Phase 3","Phase 4","Phase 5","Phase 6",null,null,"Phase 1","Phase 2","Phase 3","Phase 4","Phase 5","Phase 6",null,null,null,"Phase 1","Phase 2","Phase 3","Phase 4","Phase 5","Phase 6",null,null,"Phase 1","Phase 2","Phase 3","Phase 4","Phase 5","Phase 6"]
[0,{"$f":"'GF diets No L-Val'!B$353","v":75.029735985643839},{"$f":"'GF diets No L-Val'!C$353","v":75.024756887824907},{"$f":"'GF diets No L-Val'!D$353","v":75.016633111485348},{"$f":"'GF diets No L-Val'!E$353","v":75.009676279957176},{"$f":"'GF diets No L-Val'!F$353","v":75.00416807535089},{"$f":"'GF diets No L-Val'!G$353","v":75.000910160900062},null,0,{"$f":"'GF diets No L-Val'!B$316","v":8.5675537105360302},{"$f":"'GF diets No L-Val'!C$316","v":8.6397459364158564},{"$f":"'GF diets No L-Val'!D$316","v":8.7042340935531328},{"$f":"'GF diets No L-Val'!E$316","v":8.7574905031042753},{"$f":"'GF diets No L-Val'!F$316","v":8.7980354970428483},{"$f":"'GF diets No L-Val'!G$316","v":8.8153381410832843},null,0,{"$f":"'GF diets No L-Val'!B$351*'GF diets No L-Val'!B$353/100","v":63.775222936730451},{"$f":"'GF diets No L-Val'!C$351*'GF diets No L-Val'!C$353/100","v":90.029655617817099},{"$f":"'GF diets No L-Val'!D$351*'GF diets No L-Val'!D$353/100","v":120.02655281623707},{"$f":"'GF diets No L-Val'!E$351*'GF diets No L-Val'!E$353/100","v":150.01929240335414},{"$f":"'GF diets No L-Val'!F$351*'GF diets No L-Val'!F$353/100","v":180.0099432286994},{"$f":"'GF diets No L-Val'!G$351*'GF diets No L-Val'!G$353/100","v":213.75252629034401},null,0,{"$f":"'GF diets No L-Val'!B$342","v":757.46635553023782},{"$f":"'GF diets No L-Val'!C$342","v":870.42326519783569},{"$f":"'GF diets No L-Val'!D$342","v":946.21888727648684},{"$f":"'GF diets No L-Val'!E$342","v":982.61557306834152},{"$f":"'GF diets No L-Val'!F$342","v":976.63637619430801},{"$f":"'GF diets No L-Val'!G$342","v":919.74779687896194},null,0,{"$f":"'GF diets No L-Val'!B$344","v":541.48123876174384},{"$f":"'GF diets No L-Val'!C$344","v":471.05106861362759},{"$f":"'GF diets No L-Val'!D$344","v":410.02340376494885},{"$f":"'GF diets No L-Val'!E$344","v":360.7957609066396},{"$f":"'GF diets No L-Val'!F$344","v":326.28328855841602},{"$f":"'GF diets No L-Val'!G$344","v":301.12774430436968},null,0,{"$f":"1/(AH4/1000)","v":1.846786053542306},{"$f":"1/(AI4/1000)","v":2.1229120718123977},{"$f":"1/(AJ4/1000)","v":2.4388851729382326},{"$f":"1/(AK4/1000)","v":2.7716511898230491},{"$f":"1/(AL4/1000)","v":3.0648213839519558},{"$f":"1/(AM4/1000)","v":3.3208497686258829},null,0,{"$f":"'GF diets No L-Val'!B$351","v":84.999929826400006},{"$f":"'GF diets No L-Val'!C$351","v":119.99992982640001},{"$f":"'GF diets No L-Val'!D$351","v":159.99991980160002},{"$f":"'GF diets No L-Val'!E$351","v":199.99991980160002},{"$f":"'GF diets No L-Val'!F$351","v":239.99991980160002},{"$f":"'GF diets No L-Val'!G$351","v":284.9999097768},null,null,0,{"$f":"AX4-50","v":34.999929826400006},{"$f":"AY4-AX4","v":35},{"$f":"AZ4-120","v":39.999919801600015},{"$f":"BA4-160","v":39.999919801600015},{"$f":"BB4-200","v":39.999919801600015},{"$f":"BC4-240","v":44.999909776799996},null,"BW, lb",{"$f":"VLOOKUP('DDGS Calculator'!$C$31,Performance!AW4:AX10,2,FALSE)","v":84.999929826400006},{"$f":"BO4+VLOOKUP('DDGS Calculator'!$D$31,Performance!BF4:BL10,3,FALSE)","v":119.99992982640001},{"$f":"BP4+VLOOKUP('DDGS Calculator'!$E$31,Performance!BF4:BL10,4,FALSE)","v":159.99984962800002},{"$f":"BQ4+(VLOOKUP('DDGS Calculator'!$F$31,Performance!BF4:BL10,5,FALSE))","v":199.99976942960004},{"$f":"BR4+VLOOKUP('DDGS Calculator'!$G$31,Performance!BF4:BL10,6,FALSE)","v":239.99968923120005},{"$f":"BS4+VLOOKUP('DDGS Calculator'!$H$31,Performance!BF4:BL10,7,FALSE)","v":284.99959900800002}]
[0.05,{"$f":"'GF diets No L-Val'!I$353","v":74.885299741686921},{"$f":"'GF diets No L-Val'!J$353","v":74.880369685187503},{"$f":"'GF diets No L-Val'!K$353","v":74.872321891542697},{"$f":"'GF diets No L-Val'!L$353","v":74.865283225998155},{"$f":"'GF diets No L-Val'!M$353","v":74.859733685574497},{"$f":"'GF diets No L-Val'!N$353","v":74.856481358208185},null,0.05,{"$f":"'GF diets No L-Val'!I$316","v":9.7722934215788015},{"$f":"'GF diets No L-Val'!J$316","v":9.8437745945440067},{"$f":"'GF diets No L-Val'!K$316","v":9.9076860389027352},{"$f":"'GF diets No L-Val'!L$316","v":9.9625547470046598},{"$f":"'GF diets No L-Val'!M$316","v":10.002508724199311},{"$f":"'GF diets No L-Val'!N$316","v":10.020166703720257},null,0.05,{"$f":"'GF diets No L-Val'!I$351*'GF diets No L-Val'!I$353/100","v":63.483769447614051},{"$f":"'GF diets No L-Val'!J$351*'GF diets No L-Val'!J$353/100","v":89.695733348579111},{"$f":"'GF diets No L-Val'!K$351*'GF diets No L-Val'!K$353/100","v":119.59911813324912},{"$f":"'GF diets No L-Val'!L$351*'GF diets No L-Val'!L$353/100","v":149.49219282007689},{"$f":"'GF diets No L-Val'!M$351*'GF diets No L-Val'!M$353/100","v":179.34120831110215},{"$f":"'GF diets No L-Val'!N$351*'GF diets No L-Val'!N$353/100","v":212.82484759502302},null,0.05,{"$f":"'GF diets No L-Val'!I$342","v":752.59141313154385},{"$f":"'GF diets No L-Val'!J$342","v":865.08750767091408},{"$f":"'GF diets No L-Val'!K$342","v":940.00942055353994},{"$f":"'GF diets No L-Val'!L$342","v":974.79583887856711},{"$f":"'GF diets No L-Val'!M$342","v":966.1311541434236},{"$f":"'GF diets No L-Val'!N$342","v":905.65736560185064},null,0.05,{"$f":"'GF diets No L-Val'!I$344","v":541.82150887571606},{"$f":"'GF diets No L-Val'!J$344","v":471.24993400174304},{"$f":"'GF diets No L-Val'!K$344","v":409.94453044447192},{"$f":"'GF diets No L-Val'!L$344","v":360.09326303576006},{"$f":"'GF diets No L-Val'!M$344","v":324.24312512712072},{"$f":"'GF diets No L-Val'!N$344","v":297.06296037513562},null,0.05,1.8456262507463166,2.1220162123063582,2.4393544144027861,2.7770583419681811,3.0841054829086856,3.3662897546607113,null,0.05,{"$f":"'GF diets No L-Val'!I$351","v":84.774674958367157},{"$f":"'GF diets No L-Val'!J$351","v":119.78537729671801},{"$f":"'GF diets No L-Val'!K$351","v":159.73742380595064},{"$f":"'GF diets No L-Val'!L$351","v":199.68159656699643},{"$f":"'GF diets No L-Val'!M$351","v":239.5696584553323},{"$f":"'GF diets No L-Val'!N$351","v":284.31051491266265},null,null,0.05,{"$f":"AX5-50","v":34.774674958367157},{"$f":"AY5-85","v":34.785377296718011},{"$f":"AZ5-120","v":39.737423805950641},{"$f":"BA5-160","v":39.681596566996433},{"$f":"BB5-200","v":39.569658455332302},{"$f":"BC5-240","v":44.310514912662654},null,"Yield, %",null,null,null,null,null,{"$f":"((0.03492*0)-(0.05092*VLOOKUP('DDGS Calculator'!$G$31,Performance!I3:O10,6,FALSE))-(0.06897*VLOOKUP('DDGS Calculator'!$H$31,Performance!I3:O10,7,FALSE))-(0.00289*VLOOKUP('DDGS Calculator'!$H$31,Performance!I3:O10,7,FALSE)*0)+76.0769-(75.02-'DDGS Calculator'!$G$9))","v":75.000910160900062}]
[0.1,{"$f":"'GF diets No L-Val'!P$353","v":74.740985265028073},{"$f":"'GF diets No L-Val'!Q$353","v":74.73608107933363},{"$f":"'GF diets No L-Val'!R$353","v":74.728075292758277},{"$f":"'GF diets No L-Val'!S$353","v":74.721042001094332},{"$f":"'GF diets No L-Val'!T$353","v":74.715557830837184},{"$f":"'GF diets No L-Val'!U$353","v":74.712383645307554},null,0.1,{"$f":"'GF diets No L-Val'!P$316","v":10.97601747411734},{"$f":"'GF diets No L-Val'!Q$316","v":11.047123544792175},{"$f":"'GF diets No L-Val'!R$316","v":11.110702861257101},{"$f":"'GF diets No L-Val'!S$316","v":11.165738860525623},{"$f":"'GF diets No L-Val'!T$316","v":11.204621522181363},{"$f":"'GF diets No L-Val'!U$316","v":11.221937462417936},null,0.1,{"$f":"'GF diets No L-Val'!P$351*'GF diets No L-Val'!P$353/100","v":63.2243123305729},{"$f":"'GF diets No L-Val'!Q$351*'GF diets No L-Val'!Q$353/100","v":89.390218050697172},{"$f":"'GF diets No L-Val'!R$351*'GF diets No L-Val'!R$353/100","v":119.19914809292877},{"$f":"'GF diets No L-Val'!S$351*'GF diets No L-Val'!S$353/100","v":148.9768644478232},{"$f":"'GF diets No L-Val'!T$351*'GF diets No L-Val'!T$353/100","v":178.69095874216219},{"$f":"'GF diets No L-Val'!U$351*'GF diets No L-Val'!U$353/100","v":211.9109025036874},null,0.1,{"$f":"'GF diets No L-Val'!P$342","v":748.62113056984265},{"$f":"'GF diets No L-Val'!Q$342","v":860.67248275182237},{"$f":"'GF diets No L-Val'!R$342","v":934.64211304565606},{"$f":"'GF diets No L-Val'!S$342","v":967.32292311801757},{"$f":"'GF diets No L-Val'!T$342","v":956.16918565871811},{"$f":"'GF diets No L-Val'!U$342","v":891.86247402029335},null,0.1,{"$f":"'GF diets No L-Val'!P$344","v":541.66115958367732},{"$f":"'GF diets No L-Val'!Q$344","v":471.06464741462037},{"$f":"'GF diets No L-Val'!R$344","v":409.59769975491599},{"$f":"'GF diets No L-Val'!S$344","v":359.05749083225191},{"$f":"'GF diets No L-Val'!T$344","v":322.09014957201407},{"$f":"'GF diets No L-Val'!U$344","v":292.88081996278288},null,0.1,1.8461726160476477,2.122850877238136,2.4414199606061091,2.7850693148947281,3.1047208408229086,3.4143581000868291,null,0.1,{"$f":"'GF diets No L-Val'!P$351","v":84.591221411361403},{"$f":"'GF diets No L-Val'!Q$351","v":119.60784772191616},{"$f":"'GF diets No L-Val'!R$351","v":159.51052884200283},{"$f":"'GF diets No L-Val'!S$351","v":199.3773915059179},{"$f":"'GF diets No L-Val'!T$351","v":239.16164709194138},{"$f":"'GF diets No L-Val'!U$351","v":283.63557975839905},null,null,0.1,34.591221411361403,34.607847721916158,39.510528842002827,39.377391505917899,39.161647091941376,43.635579758399047,null,"HCW, lb",null,null,null,null,null,{"$f":"BT4*(BT5/100)","v":213.7522932109155}]
[0.15,{"$f":"'GF diets No L-Val'!W$353","v":74.596652700505487},{"$f":"'GF diets No L-Val'!X$353","v":74.59177100961594},{"$f":"'GF diets No L-Val'!Y$353","v":74.583774325262894},{"$f":"'GF diets No L-Val'!Z$353","v":74.576782794159641},{"$f":"'GF diets No L-Val'!AA$353","v":74.571397916858899},{"$f":"'GF diets No L-Val'!AB$353","v":74.5684073063846},null,0.15,{"$f":"'GF diets No L-Val'!W$316","v":12.179892397151711},{"$f":"'GF diets No L-Val'!X$316","v":12.250672314355418},{"$f":"'GF diets No L-Val'!Y$316","v":12.314360453677414},{"$f":"'GF diets No L-Val'!Z$316","v":12.368710621126661},{"$f":"'GF diets No L-Val'!AA$316","v":12.406659972645041},{"$f":"'GF diets No L-Val'!AB$316","v":12.422003303005869},null,0.15,{"$f":"'GF diets No L-Val'!W$351*'GF diets No L-Val'!W$353/100","v":62.988450924347298},{"$f":"'GF diets No L-Val'!X$351*'GF diets No L-Val'!X$353/100","v":89.102091926506148},{"$f":"'GF diets No L-Val'!Y$351*'GF diets No L-Val'!Y$353/100","v":118.80348065255436},{"$f":"'GF diets No L-Val'!Z$351*'GF diets No L-Val'!Z$353/100","v":148.47991649931836},{"$f":"'GF diets No L-Val'!AA$351*'GF diets No L-Val'!AA$353/100","v":178.05493218684026},{"$f":"'GF diets No L-Val'!AB$351*'GF diets No L-Val'!AB$353/100","v":211.00885626287757},null,0.15,{"$f":"'GF diets No L-Val'!W$342","v":745.32048522697846},{"$f":"'GF diets No L-Val'!X$342","v":856.82099481867851},{"$f":"'GF diets No L-Val'!Y$342","v":929.39325528346376},{"$f":"'GF diets No L-Val'!Z$342","v":960.42772548353014},{"$f":"'GF diets No L-Val'!AA$342","v":946.63313524160253},{"$f":"'GF diets No L-Val'!AB$342","v":878.33099550410861},null,0.15,{"$f":"'GF diets No L-Val'!W$344","v":540.76312985901927},{"$f":"'GF diets No L-Val'!X$344","v":470.30487978575286},{"$f":"'GF diets No L-Val'!Y$344","v":408.70380713621705},{"$f":"'GF diets No L-Val'!Z$344","v":357.81692622772732},{"$f":"'GF diets No L-Val'!AA$344","v":319.79448060749678},{"$f":"'GF diets No L-Val'!AB$344","v":288.55555544810454},null,0.15,1.8492385016351003,2.1262802981239521,2.4467596888979055,2.7947252538958001,3.1270083151540096,3.4655371595500117,null,0.15,{"$f":"'GF diets No L-Val'!W$351","v":84.438709572179604},{"$f":"'GF diets No L-Val'!X$351","v":119.45297815092717},{"$f":"'GF diets No L-Val'!Y$351","v":159.28864116536596},{"$f":"'GF diets No L-Val'!Z$351","v":199.09670400926214},{"$f":"'GF diets No L-Val'!AA$351","v":238.77108001295238},{"$f":"'GF diets No L-Val'!AB$351","v":282.97353247185532},null,null,0.15,34.438709572179604,34.452978150927166,39.288641165365959,39.09670400926214,38.771080012952382,42.973532471855322]
[0.2,{"$f":"'GF diets No L-Val'!AD$353","v":74.452326256137312},{"$f":"'GF diets No L-Val'!AE$353","v":74.447436279064306},{"$f":"'GF diets No L-Val'!AF$353","v":74.439460952889434},{"$f":"'GF diets No L-Val'!AG$353","v":74.432589612562523},{"$f":"'GF diets No L-Val'!AH$353","v":74.427635227410732},{"$f":"'GF diets No L-Val'!AI$353","v":74.42508873726581},null,0.2,{"$f":"'GF diets No L-Val'!AD$316","v":13.383716272105108},{"$f":"'GF diets No L-Val'!AE$316","v":13.454616331160009},{"$f":"'GF diets No L-Val'!AF$316","v":13.517906097258157},{"$f":"'GF diets No L-Val'!AG$316","v":13.57080772749149},{"$f":"'GF diets No L-Val'!AH$316","v":13.603584792016889},{"$f":"'GF diets No L-Val'!AI$316","v":13.616307454323403},null,0.2,{"$f":"'GF diets No L-Val'!AD$351*'GF diets No L-Val'!AD$353/100","v":62.776108672213979},{"$f":"'GF diets No L-Val'!AE$351*'GF diets No L-Val'!AE$353/100","v":88.825828163608961},{"$f":"'GF diets No L-Val'!AF$351*'GF diets No L-Val'!AF$353/100","v":118.42803981718731},{"$f":"'GF diets No L-Val'!AG$351*'GF diets No L-Val'!AG$353/100","v":147.99717034907565},{"$f":"'GF diets No L-Val'!AH$351*'GF diets No L-Val'!AH$353/100","v":177.42414122447673},{"$f":"'GF diets No L-Val'!AI$351*'GF diets No L-Val'!AI$353/100","v":210.11195420455394},null,0.2,{"$f":"'GF diets No L-Val'!AD$342","v":742.69055046940025},{"$f":"'GF diets No L-Val'!AE$342","v":853.35182138732102},{"$f":"'GF diets No L-Val'!AF$342","v":924.76743851556557},{"$f":"'GF diets No L-Val'!AG$342","v":953.97017769775789},{"$f":"'GF diets No L-Val'!AH$342","v":937.20083374915134},{"$f":"'GF diets No L-Val'!AI$342","v":864.83743802506024},null,0.2,{"$f":"'GF diets No L-Val'!AD$344","v":539.10584573159451},{"$f":"'GF diets No L-Val'!AE$344","v":468.85186337965195},{"$f":"'GF diets No L-Val'!AF$344","v":407.44613010989991},{"$f":"'GF diets No L-Val'!AG$344","v":356.32917138007082},{"$f":"'GF diets No L-Val'!AH$344","v":317.15327272306877},{"$f":"'GF diets No L-Val'!AI$344","v":283.99661274911188},null,0.2,1.8549233103620837,2.1328698424949031,2.4543121804354144,2.806393863648541,3.1530496009517073,3.521168757330988,null,0.2,{"$f":"'GF diets No L-Val'!AD$351","v":84.317189037514012},{"$f":"'GF diets No L-Val'!AE$351","v":119.31348156926133},{"$f":"'GF diets No L-Val'!AF$351","v":159.09309162265021},{"$f":"'GF diets No L-Val'!AG$351","v":198.83383222246121},{"$f":"'GF diets No L-Val'!AH$351","v":238.38476216846632},{"$f":"'GF diets No L-Val'!AI$351","v":282.31334052726174},null,null,0.2,34.317189037514012,34.313481569261327,39.093091622650206,38.833832222461211,38.384762168466324,42.313340527261744]
[0.25,{"$f":"'GF diets No L-Val'!AK$353","v":74.308238161470328},{"$f":"'GF diets No L-Val'!AL$353","v":74.303205874624595},{"$f":"'GF diets No L-Val'!AM$353","v":74.295220644142091},{"$f":"'GF diets No L-Val'!AN$353","v":74.288705407736174},{"$f":"'GF diets No L-Val'!AO$353","v":74.28423703657397},{"$f":"'GF diets No L-Val'!AP$353","v":74.281902063931739},null,0.25,{"$f":"'GF diets No L-Val'!AK$316","v":14.585552077151283},{"$f":"'GF diets No L-Val'!AL$316","v":14.658515493792445},{"$f":"'GF diets No L-Val'!AM$316","v":14.720425502595312},{"$f":"'GF diets No L-Val'!AN$316","v":14.769182625368545},{"$f":"'GF diets No L-Val'!AO$316","v":14.79797280183068},{"$f":"'GF diets No L-Val'!AP$316","v":14.810572147296522},null,0.25,{"$f":"'GF diets No L-Val'!AK$351*'GF diets No L-Val'!AK$353/100","v":62.57889239624879},{"$f":"'GF diets No L-Val'!AL$351*'GF diets No L-Val'!AL$353/100","v":88.570795858206367},{"$f":"'GF diets No L-Val'!AM$351*'GF diets No L-Val'!AM$353/100","v":118.07253047976111},{"$f":"'GF diets No L-Val'!AN$351*'GF diets No L-Val'!AN$353/100","v":147.52431739884176},{"$f":"'GF diets No L-Val'!AO$351*'GF diets No L-Val'!AO$353/100","v":176.80510144645189},{"$f":"'GF diets No L-Val'!AP$351*'GF diets No L-Val'!AP$353/100","v":209.2325623894734},null,0.25,{"$f":"'GF diets No L-Val'!AK$342","v":740.485091285458},{"$f":"'GF diets No L-Val'!AL$342","v":850.57562438691457},{"$f":"'GF diets No L-Val'!AM$342","v":920.75457010940886},{"$f":"'GF diets No L-Val'!AN$342","v":947.79441678421176},{"$f":"'GF diets No L-Val'!AO$342","v":928.08975082836355},{"$f":"'GF diets No L-Val'!AP$342","v":851.76338880639946},null,0.25,{"$f":"'GF diets No L-Val'!AK$344","v":536.98229774250331},{"$f":"'GF diets No L-Val'!AL$344","v":466.88584266745625},{"$f":"'GF diets No L-Val'!AM$344","v":405.83767670373345},{"$f":"'GF diets No L-Val'!AN$344","v":354.40157021852133},{"$f":"'GF diets No L-Val'!AO$344","v":314.27564432564225},{"$f":"'GF diets No L-Val'!AP$344","v":279.34573220968792},null,0.25,1.8622587824664669,2.1418511949017467,2.4640393374073359,2.8216579271457731,3.1819201330276563,3.5797933696347308,null,0.25,{"$f":"'GF diets No L-Val'!AK$351","v":84.215282106764661},{"$f":"'GF diets No L-Val'!AL$351","v":119.20184979320564},{"$f":"'GF diets No L-Val'!AM$351","v":158.92345356278406},{"$f":"'GF diets No L-Val'!AN$351","v":198.58243132539374},{"$f":"'GF diets No L-Val'!AO$351","v":238.01160044142554},{"$f":"'GF diets No L-Val'!AP$351","v":281.67367363505917},null,null,0.25,34.215282106764661,34.201849793205639,38.923453562784061,38.582431325393742,38.011600441425543,41.673673635059174]
[0.3,{"$f":"'GF diets No L-Val'!AR$353","v":74.163814285373576},{"$f":"'GF diets No L-Val'!AS$353","v":74.158839283638059},{"$f":"'GF diets No L-Val'!AT$353","v":74.15099985199852},{"$f":"'GF diets No L-Val'!AU$353","v":74.14509925653995},{"$f":"'GF diets No L-Val'!AV$353","v":74.141033600109566},{"$f":"'GF diets No L-Val'!AW$353","v":74.138710804134917},null,0.3,{"$f":"'GF diets No L-Val'!AR$316","v":15.79018862812935},{"$f":"'GF diets No L-Val'!AS$316","v":15.862321464659933},{"$f":"'GF diets No L-Val'!AT$316","v":15.922730738306432},{"$f":"'GF diets No L-Val'!AU$316","v":15.963684127381153},{"$f":"'GF diets No L-Val'!AV$316","v":15.992396754011763},{"$f":"'GF diets No L-Val'!AW$316","v":16.004876803694469},null,0.3,{"$f":"'GF diets No L-Val'!AR$351*'GF diets No L-Val'!AR$353/100","v":62.413644947161146},{"$f":"'GF diets No L-Val'!AS$351*'GF diets No L-Val'!AS$353/100","v":88.334665978985925},{"$f":"'GF diets No L-Val'!AT$351*'GF diets No L-Val'!AT$353/100","v":117.73553586566139},{"$f":"'GF diets No L-Val'!AU$351*'GF diets No L-Val'!AU$353/100","v":147.06407148538602},{"$f":"'GF diets No L-Val'!AV$351*'GF diets No L-Val'!AV$353/100","v":176.20171793299843},{"$f":"'GF diets No L-Val'!AW$351*'GF diets No L-Val'!AW$353/100","v":208.37080541716105},null,0.3,{"$f":"'GF diets No L-Val'!AR$342","v":739.21219320971636},{"$f":"'GF diets No L-Val'!AS$342","v":848.42796213456415},{"$f":"'GF diets No L-Val'!AT$342","v":917.31575363788306},{"$f":"'GF diets No L-Val'!AU$342","v":941.99410601919431},{"$f":"'GF diets No L-Val'!AV$342","v":919.44377030358305},{"$f":"'GF diets No L-Val'!AW$342","v":839.12535820686685},null,0.3,{"$f":"'GF diets No L-Val'!AR$344","v":533.6457989086922},{"$f":"'GF diets No L-Val'!AS$344","v":464.35875049602089},{"$f":"'GF diets No L-Val'!AT$344","v":403.82820905437643},{"$f":"'GF diets No L-Val'!AU$344","v":352.04701098428052},{"$f":"'GF diets No L-Val'!AV$344","v":311.24365634482672},{"$f":"'GF diets No L-Val'!AW$344","v":274.59776980546394},null,0.3,1.8739021314231348,2.1535073882678324,2.4763005099164519,2.8405297269933407,3.2129168887930697,3.641690173625372,null,0.3,{"$f":"'GF diets No L-Val'!AR$351","v":84.156465721950099},{"$f":"'GF diets No L-Val'!AS$351","v":119.11549160192362},{"$f":"'GF diets No L-Val'!AT$351","v":158.77808269700381},{"$f":"'GF diets No L-Val'!AU$351","v":198.34631413270952},{"$f":"'GF diets No L-Val'!AV$351","v":237.65748786747162},{"$f":"'GF diets No L-Val'!AW$351","v":281.05533958858598},null,null,0.3,34.156465721950099,34.115491601923623,38.778082697003811,38.346314132709523,37.657487867471616,41.05533958858598]
[]
["GF No L-Val + Fat",null,null,null,null,null,null,null,"GF No L-Val + Fat",null,null,null,null,null,null,null,"GF No L-Val + Fat",null,null,null,null,null,null,null,"GF No L-Val + Fat",null,null,null,null,null,null,null,"GF No L-Val + Fat",null,null,null,null,null,null,null,"GF No L-Val + Fat",null,null,null,null,null,null,null,"GF No L-Val + Fat",null,null,null,null,null,null,null,null,"GF No L-Val + Fat",null,null,null,null,null,null,null,null,"GF No L-Val + Fat"]
[null,"Phase 1","Phase 2","Phase 3","Phase 4","Phase 5","Phase 6",null,null,"Phase 1","Phase 2","Phase 3","Phase 4","Phase 5","Phase 6",null,null,"Phase 1","Phase 2","Phase 3","Phase 4","Phase 5","Phase 6",null,null,"Phase 1","Phase 2","Phase 3","Phase 4","Phase 5","Phase 6",null,null,"Phase 1","Phase 2","Phase 3","Phase 4","Phase 5","Phase 6",null,null,"Phase 1","Phase 2","Phase 3","Phase 4","Phase 5","Phase 6",null,null,"Phase 1","Phase 2","Phase 3","Phase 4","Phase 5","Phase 6",null,null,null,"Phase 1","Phase 2","Phase 3","Phase 4","Phase 5","Phase 6",null,null,"Phase 1","Phase 2","Phase 3","Phase 4","Phase 5","Phase 6"]
[0,{"$f":"'GF diets No L-Val + Fat'!B$353","v":75.029735985643839},{"$f":"'GF diets No L-Val + Fat'!C$353","v":75.024756887824907},{"$f":"'GF diets No L-Val + Fat'!D$353","v":75.016633111485348},{"$f":"'GF diets No L-Val + Fat'!E$353","v":75.009676279957176},{"$f":"'GF diets No L-Val + Fat'!F$353","v":75.00416807535089},{"$f":"'GF diets No L-Val + Fat'!G$353","v":75.000910160900062},null,0,{"$f":"'GF diets No L-Val + Fat'!B$316","v":8.5675537105360302},{"$f":"'GF diets No L-Val + Fat'!C$316","v":8.6397459364158564},{"$f":"'GF diets No L-Val + Fat'!D$316","v":8.7042340935531328},{"$f":"'GF diets No L-Val + Fat'!E$316","v":8.7574905031042753},{"$f":"'GF diets No L-Val + Fat'!F$316","v":8.7980354970428483},{"$f":"'GF diets No L-Val + Fat'!G$316","v":8.8153381410832843},null,0,{"$f":"'GF diets No L-Val + Fat'!B$351*'GF diets No L-Val'!B$353/100","v":63.775222936730451},{"$f":"'GF diets No L-Val + Fat'!C$351*'GF diets No L-Val'!C$353/100","v":90.029655617817099},{"$f":"'GF diets No L-Val + Fat'!D$351*'GF diets No L-Val'!D$353/100","v":120.02655281623707},{"$f":"'GF diets No L-Val + Fat'!E$351*'GF diets No L-Val'!E$353/100","v":150.01929240335414},{"$f":"'GF diets No L-Val + Fat'!F$351*'GF diets No L-Val'!F$353/100","v":180.0099432286994},{"$f":"'GF diets No L-Val + Fat'!G$351*'GF diets No L-Val'!G$353/100","v":213.75252629034401},null,0,{"$f":"'GF diets No L-Val + Fat'!B$342","v":757.46635553023782},{"$f":"'GF diets No L-Val + Fat'!C$342","v":870.42326519783569},{"$f":"'GF diets No L-Val + Fat'!D$342","v":946.21888727648684},{"$f":"'GF diets No L-Val + Fat'!E$342","v":982.61557306834152},{"$f":"'GF diets No L-Val + Fat'!F$342","v":976.63637619430801},{"$f":"'GF diets No L-Val + Fat'!G$342","v":919.74779687896194},null,0,{"$f":"'GF diets No L-Val + Fat'!B$344","v":541.48123876174384},{"$f":"'GF diets No L-Val + Fat'!C$344","v":471.05106861362759},{"$f":"'GF diets No L-Val + Fat'!D$344","v":410.02340376494885},{"$f":"'GF diets No L-Val + Fat'!E$344","v":360.7957609066396},{"$f":"'GF diets No L-Val + Fat'!F$344","v":326.28328855841602},{"$f":"'GF diets No L-Val + Fat'!G$344","v":301.12774430436968},null,0,{"$f":"1/(AH14/1000)","v":1.846786053542306},{"$f":"1/(AI14/1000)","v":2.1229120718123977},{"$f":"1/(AJ14/1000)","v":2.4388851729382326},{"$f":"1/(AK14/1000)","v":2.7716511898230491},{"$f":"1/(AL14/1000)","v":3.0648213839519558},{"$f":"1/(AM14/1000)","v":3.3208497686258829},null,0,{"$f":"'GF diets No L-Val + Fat'!B$351","v":84.999929826400006},{"$f":"'GF diets No L-Val + Fat'!C$351","v":119.99992982640001},{"$f":"'GF diets No L-Val + Fat'!D$351","v":159.99991980160002},{"$f":"'GF diets No L-Val + Fat'!E$351","v":199.99991980160002},{"$f":"'GF diets No L-Val + Fat'!F$351","v":239.99991980160002},{"$f":"'GF diets No L-Val + Fat'!G$351","v":284.9999097768},null,null,0,{"$f":"AX14-50","v":34.999929826400006},{"$f":"AY14-85","v":34.999929826400006},{"$f":"AZ14-120","v":39.999919801600015},{"$f":"BA14-160","v":39.999919801600015},{"$f":"BB14-200","v":39.999919801600015},{"$f":"BC14-240","v":44.999909776799996},null,"BW, lb",{"$f":"VLOOKUP('DDGS Calculator'!$C$31,Performance!AW14:AX20,2,FALSE)","v":84.999929826400006},{"$f":"BO14+VLOOKUP('DDGS Calculator'!$D$31,Performance!BF14:BL20,3,FALSE)","v":119.99985965280001},{"$f":"BP14+VLOOKUP('DDGS Calculator'!$E$31,Performance!BF14:BL20,4,FALSE)","v":159.99977945440003},{"$f":"BQ14+(VLOOKUP('DDGS Calculator'!$F$31,Performance!BF14:BL20,5,FALSE))","v":199.99969925600004},{"$f":"BR14+VLOOKUP('DDGS Calculator'!$G$31,Performance!BF14:BL20,6,FALSE)","v":239.99961905760006},{"$f":"BS14+VLOOKUP('DDGS Calculator'!$H$31,Performance!BF14:BL20,7,FALSE)","v":284.99952883440005}]
[0.05,{"$f":"'GF diets No L-Val + Fat'!I$353","v":74.890980431928654},{"$f":"'GF diets No L-Val + Fat'!J$353","v":74.886043407400976},{"$f":"'GF diets No L-Val + Fat'!K$353","v":74.877874753418595},{"$f":"'GF diets No L-Val + Fat'!L$353","v":74.870749432711762},{"$f":"'GF diets No L-Val + Fat'!M$353","v":74.865239005563723},{"$f":"'GF diets No L-Val + Fat'!N$353","v":74.86198539372856},null,0.05,{"$f":"'GF diets No L-Val + Fat'!I$316","v":9.7249109022549316},{"$f":"'GF diets No L-Val + Fat'!J$316","v":9.7964931050631989},{"$f":"'GF diets No L-Val + Fat'!K$316","v":9.8620823208871773},{"$f":"'GF diets No L-Val + Fat'!L$316","v":9.9169687619060998},{"$f":"'GF diets No L-Val + Fat'!M$316","v":9.9563425413950952},{"$f":"'GF diets No L-Val + Fat'!N$316","v":9.9744474998347776},null,0.05,{"$f":"'GF diets No L-Val + Fat'!I$351*'GF diets No L-Val'!I$353/100","v":63.542381520051478},{"$f":"'GF diets No L-Val + Fat'!J$351*'GF diets No L-Val'!J$353/100","v":89.778471714773573},{"$f":"'GF diets No L-Val + Fat'!K$351*'GF diets No L-Val'!K$353/100","v":119.71450631715474},{"$f":"'GF diets No L-Val + Fat'!L$351*'GF diets No L-Val'!L$353/100","v":149.62948974983175},{"$f":"'GF diets No L-Val + Fat'!M$351*'GF diets No L-Val'!M$353/100","v":179.51522847774294},{"$f":"'GF diets No L-Val + Fat'!N$351*'GF diets No L-Val'!N$353/100","v":213.0728192161923},null,0.05,{"$f":"'GF diets No L-Val + Fat'!I$342","v":754.2853054881557},{"$f":"'GF diets No L-Val + Fat'!J$342","v":867.83541072759328},{"$f":"'GF diets No L-Val + Fat'!K$342","v":943.65504273479746},{"$f":"'GF diets No L-Val + Fat'!L$342","v":979.30093441478289},{"$f":"'GF diets No L-Val + Fat'!M$342","v":971.80691655151008},{"$f":"'GF diets No L-Val + Fat'!N$342","v":912.42799144541459},null,0.05,{"$f":"'GF diets No L-Val + Fat'!I$344","v":544.68195539732392},{"$f":"'GF diets No L-Val + Fat'!J$344","v":474.77645657903764},{"$f":"'GF diets No L-Val + Fat'!K$344","v":413.54184942601609},{"$f":"'GF diets No L-Val + Fat'!L$344","v":363.19410796302145},{"$f":"'GF diets No L-Val + Fat'!M$344","v":326.87384574181419},{"$f":"'GF diets No L-Val + Fat'!N$344","v":299.1012866084933},null,0.05,1.8359337776676292,2.1062543985550946,2.41813495148791,2.7533486311452355,3.0592842254802597,3.343349041854653,null,0.05,{"$f":"'GF diets No L-Val + Fat'!I$351","v":84.852944088142436},{"$f":"'GF diets No L-Val + Fat'!J$351","v":119.8958713641783},{"$f":"'GF diets No L-Val + Fat'!K$351","v":159.89153707636953},{"$f":"'GF diets No L-Val + Fat'!L$351","v":199.86498855302605},{"$f":"'GF diets No L-Val + Fat'!M$351","v":239.80212009802489},{"$f":"'GF diets No L-Val + Fat'!N$351","v":284.64177763924295},null,null,0.05,{"$f":"AX15-50","v":34.852944088142436},{"$f":"AY15-85","v":34.895871364178305},{"$f":"AZ15-120","v":39.891537076369531},{"$f":"BA15-160","v":39.864988553026052},{"$f":"BB15-200","v":39.802120098024886},{"$f":"BC15-240","v":44.641777639242946},null,"Yield, %",null,null,null,null,null,{"$f":"((0.03492*0)-(0.05092*VLOOKUP('DDGS Calculator'!$G$31,Performance!I13:O20,6,FALSE))-(0.06897*VLOOKUP('DDGS Calculator'!$H$31,Performance!I13:O20,7,FALSE))-(0.00289*VLOOKUP('DDGS Calculator'!$H$31,Performance!I13:O20,7,FALSE)*0)+76.0769-(75.02-'DDGS Calculator'!$G$9))","v":75.000910160900062}]
[0.1,{"$f":"'GF diets No L-Val + Fat'!P$353","v":74.75223588353083},{"$f":"'GF diets No L-Val + Fat'!Q$353","v":74.747310864041395},{"$f":"'GF diets No L-Val + Fat'!R$353","v":74.739169193622288},{"$f":"'GF diets No L-Val + Fat'!S$353","v":74.732050123701015},{"$f":"'GF diets No L-Val + Fat'!T$353","v":74.726552206421772},{"$f":"'GF diets No L-Val + Fat'!U$353","v":74.723330170640651},null,0.1,{"$f":"'GF diets No L-Val + Fat'!P$316","v":10.88217629885041},{"$f":"'GF diets No L-Val + Fat'!Q$316","v":10.953584439917918},{"$f":"'GF diets No L-Val + Fat'!R$316","v":11.018910927897572},{"$f":"'GF diets No L-Val + Fat'!S$316","v":11.073900708285247},{"$f":"'GF diets No L-Val + Fat'!T$316","v":11.113016811836189},{"$f":"'GF diets No L-Val + Fat'!U$316","v":11.130854187337256},null,0.1,{"$f":"'GF diets No L-Val + Fat'!P$351*'GF diets No L-Val'!P$353/100","v":63.310787530617333},{"$f":"'GF diets No L-Val + Fat'!Q$351*'GF diets No L-Val'!Q$353/100","v":89.528190250236435},{"$f":"'GF diets No L-Val + Fat'!R$351*'GF diets No L-Val'!R$353/100","v":119.40276380299956},{"$f":"'GF diets No L-Val + Fat'!S$351*'GF diets No L-Val'!S$353/100","v":149.24108204677725},{"$f":"'GF diets No L-Val + Fat'!T$351*'GF diets No L-Val'!T$353/100","v":179.02196920145343},{"$f":"'GF diets No L-Val + Fat'!U$351*'GF diets No L-Val'!U$353/100","v":212.39392088183749},null,0.1,{"$f":"'GF diets No L-Val + Fat'!P$342","v":751.12509445025091},{"$f":"'GF diets No L-Val + Fat'!Q$342","v":865.26365633587625},{"$f":"'GF diets No L-Val + Fat'!R$342","v":941.08765007643092},{"$f":"'GF diets No L-Val + Fat'!S$342","v":976.00937610562437},{"$f":"'GF diets No L-Val + Fat'!T$342","v":966.98610467900244},{"$f":"'GF diets No L-Val + Fat'!U$342","v":905.07626112342814},null,0.1,{"$f":"'GF diets No L-Val + Fat'!P$344","v":547.89662275074909},{"$f":"'GF diets No L-Val + Fat'!Q$344","v":478.5323901444587},{"$f":"'GF diets No L-Val + Fat'!R$344","v":417.04800330636067},{"$f":"'GF diets No L-Val + Fat'!S$344","v":365.60182676552984},{"$f":"'GF diets No L-Val + Fat'!T$344","v":327.48823108189816},{"$f":"'GF diets No L-Val + Fat'!U$344","v":297.10212626101668},null,0.1,1.8251618251987713,2.0897227034059731,2.3978055093706003,2.7352160924549391,3.0535448455548324,3.3658459890033168,null,0.1,{"$f":"'GF diets No L-Val + Fat'!P$351","v":84.706921250931089},{"$f":"'GF diets No L-Val + Fat'!Q$351","v":119.79246029130258},{"$f":"'GF diets No L-Val + Fat'!R$351","v":159.78300435976919},{"$f":"'GF diets No L-Val + Fat'!S$351","v":199.73099685171888},{"$f":"'GF diets No L-Val + Fat'!T$351","v":239.60467458032696},{"$f":"'GF diets No L-Val + Fat'!U$351","v":284.28208353004044},null,null,0.1,34.706921250931089,34.792460291302575,39.783004359769194,39.730996851718885,39.604674580326957,44.282083530040438,null,"HCW, lb",null,null,null,null,null,{"$f":"BT14*(BT15/100)","v":213.75224058007683}]
[0.15,{"$f":"'GF diets No L-Val + Fat'!W$353","v":74.613507799367753},{"$f":"'GF diets No L-Val + Fat'!X$353","v":74.608596681430257},{"$f":"'GF diets No L-Val + Fat'!Y$353","v":74.600444892755448},{"$f":"'GF diets No L-Val + Fat'!Z$353","v":74.593297547149149},{"$f":"'GF diets No L-Val + Fat'!AA$353","v":74.587863176582729},{"$f":"'GF diets No L-Val + Fat'!AB$353","v":74.584946549202968},null,0.15,{"$f":"'GF diets No L-Val + Fat'!W$316","v":12.039304367605698},{"$f":"'GF diets No L-Val + Fat'!X$316","v":12.110510949271651},{"$f":"'GF diets No L-Val + Fat'!Y$316","v":12.176132952118794},{"$f":"'GF diets No L-Val + Fat'!Z$316","v":12.231314527025717},{"$f":"'GF diets No L-Val + Fat'!AA$316","v":12.26936766276811},{"$f":"'GF diets No L-Val + Fat'!AB$316","v":12.283561684919222},null,0.15,{"$f":"'GF diets No L-Val + Fat'!W$351*'GF diets No L-Val'!W$353/100","v":63.07969483958319},{"$f":"'GF diets No L-Val + Fat'!X$351*'GF diets No L-Val'!X$353/100","v":89.278277964434622},{"$f":"'GF diets No L-Val + Fat'!Y$351*'GF diets No L-Val'!Y$353/100","v":119.09113916242119},{"$f":"'GF diets No L-Val + Fat'!Z$351*'GF diets No L-Val'!Z$353/100","v":148.85348305499542},{"$f":"'GF diets No L-Val + Fat'!AA$351*'GF diets No L-Val'!AA$353/100","v":178.52880856274879},{"$f":"'GF diets No L-Val + Fat'!AB$351*'GF diets No L-Val'!AB$353/100","v":211.71700729780201},null,0.15,{"$f":"'GF diets No L-Val + Fat'!W$342","v":747.96764329778819},{"$f":"'GF diets No L-Val + Fat'!X$342","v":862.69511755903864},{"$f":"'GF diets No L-Val + Fat'!Y$342","v":938.51681860484973},{"$f":"'GF diets No L-Val + Fat'!Z$342","v":972.73290617894054},{"$f":"'GF diets No L-Val + Fat'!AA$342","v":962.14863178115388},{"$f":"'GF diets No L-Val + Fat'!AB$342","v":897.74107300525679},null,0.15,{"$f":"'GF diets No L-Val + Fat'!W$344","v":551.11052476804502},{"$f":"'GF diets No L-Val + Fat'!X$344","v":482.29829943319055},{"$f":"'GF diets No L-Val + Fat'!Y$344","v":420.54885370178459},{"$f":"'GF diets No L-Val + Fat'!Z$344","v":368.01249324880132},{"$f":"'GF diets No L-Val + Fat'!AA$344","v":328.12799231535098},{"$f":"'GF diets No L-Val + Fat'!AB$344","v":295.10847734063134},null,0.15,1.814518059550553,2.073405610542741,2.3778450260837234,2.7172990546381599,3.0475912553018003,3.3885844588793086,null,0.15,{"$f":"'GF diets No L-Val + Fat'!W$351","v":84.561025938843159},{"$f":"'GF diets No L-Val + Fat'!X$351","v":119.68917851933745},{"$f":"'GF diets No L-Val + Fat'!Y$351","v":159.67432627244077},{"$f":"'GF diets No L-Val + Fat'!Z$351","v":199.59761936345242},{"$f":"'GF diets No L-Val + Fat'!AA$351","v":239.40654667865289},{"$f":"'GF diets No L-Val + Fat'!AB$351","v":283.92319877224287},null,null,0.15,34.561025938843159,34.689178519337446,39.674326272440766,39.597619363452424,39.406546678652887,43.92319877224287]
[0.2,{"$f":"'GF diets No L-Val + Fat'!AD$353","v":74.474799922358514},{"$f":"'GF diets No L-Val + Fat'!AE$353","v":74.469883680176324},{"$f":"'GF diets No L-Val + Fat'!AF$353","v":74.461685487512426},{"$f":"'GF diets No L-Val + Fat'!AG$353","v":74.454615984531046},{"$f":"'GF diets No L-Val + Fat'!AH$353","v":74.449978886161901},{"$f":"'GF diets No L-Val + Fat'!AI$353","v":74.447843749650133},null,0.2,{"$f":"'GF diets No L-Val + Fat'!AD$316","v":13.196263888910565},{"$f":"'GF diets No L-Val + Fat'!AE$316","v":13.26754476729513},{"$f":"'GF diets No L-Val + Fat'!AF$316","v":13.333784731577465},{"$f":"'GF diets No L-Val + Fat'!AG$316","v":13.387381425794249},{"$f":"'GF diets No L-Val + Fat'!AH$316","v":13.41504497080839},{"$f":"'GF diets No L-Val + Fat'!AI$316","v":13.425578663713271},null,0.2,{"$f":"'GF diets No L-Val + Fat'!AD$351*'GF diets No L-Val'!AD$353/100","v":62.849249857283532},{"$f":"'GF diets No L-Val + Fat'!AE$351*'GF diets No L-Val'!AE$353/100","v":89.028658274958218},{"$f":"'GF diets No L-Val + Fat'!AF$351*'GF diets No L-Val'!AF$353/100","v":118.77923475375677},{"$f":"'GF diets No L-Val + Fat'!AG$351*'GF diets No L-Val'!AG$353/100","v":148.46601534602848},{"$f":"'GF diets No L-Val + Fat'!AH$351*'GF diets No L-Val'!AH$353/100","v":178.03768747160015},{"$f":"'GF diets No L-Val + Fat'!AI$351*'GF diets No L-Val'!AI$353/100","v":211.04720517819152},null,0.2,{"$f":"'GF diets No L-Val + Fat'!AD$342","v":744.81662763964982},{"$f":"'GF diets No L-Val + Fat'!AE$342","v":860.12738034446897},{"$f":"'GF diets No L-Val + Fat'!AF$342","v":935.92775852071054},{"$f":"'GF diets No L-Val + Fat'!AG$342","v":969.44372220826813},{"$f":"'GF diets No L-Val + Fat'!AH$342","v":957.32815546195934},{"$f":"'GF diets No L-Val + Fat'!AI$342","v":890.52157931327224},null,0.2,{"$f":"'GF diets No L-Val + Fat'!AD$344","v":554.34922340802814},{"$f":"'GF diets No L-Val + Fat'!AE$344","v":486.06870424698963},{"$f":"'GF diets No L-Val + Fat'!AF$344","v":424.04778376643372},{"$f":"'GF diets No L-Val + Fat'!AG$344","v":370.46855332729479},{"$f":"'GF diets No L-Val + Fat'!AH$344","v":328.6862971059129},{"$f":"'GF diets No L-Val + Fat'!AI$344","v":293.10578220758794},null,0.2,1.8039170215702658,2.0573223317250697,2.3582247998513344,2.6992844359357493,3.0424146330559347,3.411737538810355,null,0.2,{"$f":"'GF diets No L-Val + Fat'!AD$351","v":84.415427989535374},{"$f":"'GF diets No L-Val + Fat'!AE$351","v":119.5859289784494},{"$f":"'GF diets No L-Val + Fat'!AF$351","v":159.56487759755365},{"$f":"'GF diets No L-Val + Fat'!AG$351","v":199.4637243159558},{"$f":"'GF diets No L-Val + Fat'!AH$351","v":239.20911490417902},{"$f":"'GF diets No L-Val + Fat'!AI$351","v":283.56997453268315},null,null,0.2,34.415427989535374,34.585928978449402,39.564877597553647,39.463724315955801,39.209114904179017,43.569974532683148]
[0.25,{"$f":"'GF diets No L-Val + Fat'!AK$353","v":74.33623382236344},{"$f":"'GF diets No L-Val + Fat'!AL$353","v":74.331229691252403},{"$f":"'GF diets No L-Val + Fat'!AM$353","v":74.323013409254926},{"$f":"'GF diets No L-Val + Fat'!AN$353","v":74.31663275250385},{"$f":"'GF diets No L-Val + Fat'!AO$353","v":74.312747888088182},{"$f":"'GF diets No L-Val + Fat'!AP$353","v":74.310816932703204},null,0.25,{"$f":"'GF diets No L-Val + Fat'!AK$316","v":14.352040851084766},{"$f":"'GF diets No L-Val + Fat'!AL$316","v":14.424596036107788},{"$f":"'GF diets No L-Val + Fat'!AM$316","v":14.490157468268242},{"$f":"'GF diets No L-Val + Fat'!AN$316","v":14.534267496185688},{"$f":"'GF diets No L-Val + Fat'!AO$316","v":14.558028287748904},{"$f":"'GF diets No L-Val + Fat'!AP$316","v":14.568482918437331},null,0.25,{"$f":"'GF diets No L-Val + Fat'!AK$351*'GF diets No L-Val'!AK$353/100","v":62.620294325913292},{"$f":"'GF diets No L-Val + Fat'!AL$351*'GF diets No L-Val'!AL$353/100","v":88.779494363688698},{"$f":"'GF diets No L-Val + Fat'!AM$351*'GF diets No L-Val'!AM$353/100","v":118.46908499268282},{"$f":"'GF diets No L-Val + Fat'!AN$351*'GF diets No L-Val'!AN$353/100","v":148.07808895946928},{"$f":"'GF diets No L-Val + Fat'!AO$351*'GF diets No L-Val'!AO$353/100","v":177.55058588060149},{"$f":"'GF diets No L-Val + Fat'!AP$351*'GF diets No L-Val'!AP$353/100","v":210.38068862408639},null,0.25,{"$f":"'GF diets No L-Val + Fat'!AK$342","v":741.69090139868376},{"$f":"'GF diets No L-Val + Fat'!AL$342","v":857.56075020428375},{"$f":"'GF diets No L-Val + Fat'!AM$342","v":933.38079850970121},{"$f":"'GF diets No L-Val + Fat'!AN$342","v":966.10623674420458},{"$f":"'GF diets No L-Val + Fat'!AO$342","v":952.59250017741692},{"$f":"'GF diets No L-Val + Fat'!AP$342","v":883.35435198506411},null,0.25,{"$f":"'GF diets No L-Val + Fat'!AK$344","v":557.74081209962173},{"$f":"'GF diets No L-Val + Fat'!AL$344","v":489.84693169406222},{"$f":"'GF diets No L-Val + Fat'!AM$344","v":427.5797585417273},{"$f":"'GF diets No L-Val + Fat'!AN$344","v":372.73581436865857},{"$f":"'GF diets No L-Val + Fat'!AO$344","v":329.28751157066336},{"$f":"'GF diets No L-Val + Fat'!AP$344","v":291.1274886409185},null,0.25,1.7929475094990599,2.0414540447189284,2.3387449476339288,2.6828653471193911,3.036859780166322,3.4349212596458618,null,0.25,{"$f":"'GF diets No L-Val + Fat'!AK$351","v":84.270998580050616},{"$f":"'GF diets No L-Val + Fat'!AL$351","v":119.48272395337915},{"$f":"'GF diets No L-Val + Fat'!AM$351","v":159.45720864081406},{"$f":"'GF diets No L-Val + Fat'!AN$351","v":199.32786302673804},{"$f":"'GF diets No L-Val + Fat'!AO$351","v":239.01515713647859},{"$f":"'GF diets No L-Val + Fat'!AP$351","v":283.21930750106446},null,null,0.25,34.270998580050616,34.48272395337915,39.457208640814059,39.327863026738044,39.015157136478592,43.219307501064463]
[0.3,{"$f":"'GF diets No L-Val + Fat'!AR$353","v":74.197454622500985},{"$f":"'GF diets No L-Val + Fat'!AS$353","v":74.192485857209647},{"$f":"'GF diets No L-Val + Fat'!AT$353","v":74.184507321545908},{"$f":"'GF diets No L-Val + Fat'!AU$353","v":74.179038400847617},{"$f":"'GF diets No L-Val + Fat'!AV$353","v":74.175727146313434},{"$f":"'GF diets No L-Val + Fat'!AW$353","v":74.173812739382313},null,0.3,{"$f":"'GF diets No L-Val + Fat'!AR$316","v":15.509595274826999},{"$f":"'GF diets No L-Val + Fat'!AS$316","v":15.581637688794629},{"$f":"'GF diets No L-Val + Fat'!AT$316","v":15.644130597950809},{"$f":"'GF diets No L-Val + Fat'!AU$316","v":15.677286778377889},{"$f":"'GF diets No L-Val + Fat'!AV$316","v":15.700817905343778},{"$f":"'GF diets No L-Val + Fat'!AW$316","v":15.711202158584708},null,0.3,{"$f":"'GF diets No L-Val + Fat'!AR$351*'GF diets No L-Val'!AR$353/100","v":62.389445311524035},{"$f":"'GF diets No L-Val + Fat'!AS$351*'GF diets No L-Val'!AS$353/100","v":88.529954575455136},{"$f":"'GF diets No L-Val + Fat'!AT$351*'GF diets No L-Val'!AT$353/100","v":118.15794240588114},{"$f":"'GF diets No L-Val + Fat'!AU$351*'GF diets No L-Val'!AU$353/100","v":147.69355246595168},{"$f":"'GF diets No L-Val + Fat'!AV$351*'GF diets No L-Val'!AV$353/100","v":177.06403488011199},{"$f":"'GF diets No L-Val + Fat'!AW$351*'GF diets No L-Val'!AW$353/100","v":209.71404896521778},null,0.3,{"$f":"'GF diets No L-Val + Fat'!AR$342","v":738.50601864243959},{"$f":"'GF diets No L-Val + Fat'!AS$342","v":854.97698349144969},{"$f":"'GF diets No L-Val + Fat'!AT$342","v":930.7912646648017},{"$f":"'GF diets No L-Val + Fat'!AU$342","v":962.84976002250392},{"$f":"'GF diets No L-Val + Fat'!AV$342","v":947.8413410368928},{"$f":"'GF diets No L-Val + Fat'!AW$342","v":876.15640388977795},null,0.3,{"$f":"'GF diets No L-Val + Fat'!AR$344","v":560.92456426101978},{"$f":"'GF diets No L-Val + Fat'!AS$344","v":493.61233476220207},{"$f":"'GF diets No L-Val + Fat'!AT$344","v":430.93868169881779},{"$f":"'GF diets No L-Val + Fat'!AU$344","v":375.09757078441942},{"$f":"'GF diets No L-Val + Fat'!AV$344","v":329.89987224117283},{"$f":"'GF diets No L-Val + Fat'!AW$344","v":289.15839713057858},null,0.3,1.7827709173646771,2.025881303152099,2.320515754255029,2.6659730104590094,3.0312227561850991,3.4583121566703752,null,0.3,{"$f":"'GF diets No L-Val + Fat'!AR$351","v":84.123835744824063},{"$f":"'GF diets No L-Val + Fat'!AS$351","v":119.37882986120016},{"$f":"'GF diets No L-Val + Fat'!AT$351","v":159.34773993839349},{"$f":"'GF diets No L-Val + Fat'!AU$351","v":199.19529941545585},{"$f":"'GF diets No L-Val + Fat'!AV$351","v":238.82056437887363},{"$f":"'GF diets No L-Val + Fat'!AW$351","v":282.86713741119092},null,null,0.3,34.123835744824063,34.37882986120016,39.347739938393488,39.19529941545585,38.820564378873627,42.867137411190924]
[]
["GF L-Val",null,null,null,null,null,null,null,"GF L-Val",null,null,null,null,null,null,null,"GF L-Val",null,null,null,null,null,null,null,"GF L-Val",null,null,null,null,null,null,null,"GF L-Val",null,null,null,null,null,null,null,"GF L-Val",null,null,null,null,null,null,null,"GF L-Val",null,null,null,null,null,null,null,null,"GF L-Val",null,null,null,null,null,null,null,null,"GF L-Val"]
[null,"Phase 1","Phase 2","Phase 3","Phase 4","Phase 5","Phase 6",null,null,"Phase 1","Phase 2","Phase 3","Phase 4","Phase 5","Phase 6",null,null,"Phase 1","Phase 2","Phase 3","Phase 4","Phase 5","Phase 6",null,null,"Phase 1","Phase 2","Phase 3","Phase 4","Phase 5","Phase 6",null,null,"Phase 1","Phase 2","Phase 3","Phase 4","Phase 5","Phase 6",null,null,"Phase 1","Phase 2","Phase 3","Phase 4","Phase 5","Phase 6",null,null,"Phase 1","Phase 2","Phase 3","Phase 4","Phase 5","Phase 6",null,null,null,"Phase 1","Phase 2","Phase 3","Phase 4","Phase 5","Phase 6",null,null,"Phase 1","Phase 2","Phase 3","Phase 4","Phase 5","Phase 6"]
[0,{"$f":"'GF diets L-Val'!$B$353","v":75.029451185589821},{"$f":"'GF diets L-Val'!$C$353","v":75.024490114943532},{"$f":"'GF diets L-Val'!$D$353","v":75.016402824315023},{"$f":"'GF diets L-Val'!$E$353","v":75.009464091992726},{"$f":"'GF diets L-Val'!$F$353","v":75.003950097444132},{"$f":"'GF diets L-Val'!$G$353","v":75.000603515658099},null,0,{"$f":"'GF diets L-Val'!B$316","v":8.5699292218715204},{"$f":"'GF diets L-Val'!C$316","v":8.6418600707376481},{"$f":"'GF diets L-Val'!D$316","v":8.7060121920111886},{"$f":"'GF diets L-Val'!E$316","v":8.7592542727281515},{"$f":"'GF diets L-Val'!F$316","v":8.7998937942372635},{"$f":"'GF diets L-Val'!G$316","v":8.8184122421246407},null,0,{"$f":"'GF diets L-Val'!B$351*'GF diets No L-Val'!B$353/100","v":63.775222936730451},{"$f":"'GF diets L-Val'!C$351*'GF diets No L-Val'!C$353/100","v":90.029655617817099},{"$f":"'GF diets L-Val'!D$351*'GF diets No L-Val'!D$353/100","v":120.02655281623706},{"$f":"'GF diets L-Val'!E$351*'GF diets No L-Val'!E$353/100","v":150.01929240335414},{"$f":"'GF diets L-Val'!F$351*'GF diets No L-Val'!F$353/100","v":180.0099432286994},{"$f":"'GF diets L-Val'!G$351*'GF diets No L-Val'!G$353/100","v":213.75252629034401},null,0,{"$f":"'GF diets L-Val'!B$342","v":740.32616660444182},{"$f":"'GF diets L-Val'!C$342","v":862.50756659214221},{"$f":"'GF diets L-Val'!D$342","v":944.95636803551065},{"$f":"'GF diets L-Val'!E$342","v":984.20180073567008},{"$f":"'GF diets L-Val'!F$342","v":982.04258582759257},{"$f":"'GF diets L-Val'!G$342","v":932.08406418687355},null,0,{"$f":"'GF diets L-Val'!B$344","v":544.53845340080113},{"$f":"'GF diets L-Val'!C$344","v":471.75579583355693},{"$f":"'GF diets L-Val'!D$344","v":409.85407727163351},{"$f":"'GF diets L-Val'!E$344","v":360.59074506150858},{"$f":"'GF diets L-Val'!F$344","v":326.06282096567122},{"$f":"'GF diets L-Val'!G$344","v":301.24235802326291},null,0,{"$f":"1/(AH24/1000)","v":1.8364176005472324},{"$f":"1/(AI24/1000)","v":2.1197407829045862},{"$f":"1/(AJ24/1000)","v":2.4398927702681932},{"$f":"1/(AK24/1000)","v":2.7732270273032738},{"$f":"1/(AL24/1000)","v":3.0668936649642822},{"$f":"1/(AM24/1000)","v":3.3195862844851876},null,0,{"$f":"'GF diets L-Val'!B$351","v":84.999929826400006},{"$f":"'GF diets L-Val'!C$351","v":119.99992982640001},{"$f":"'GF diets L-Val'!D$351","v":159.99991980159999},{"$f":"'GF diets L-Val'!E$351","v":199.99991980160002},{"$f":"'GF diets L-Val'!F$351","v":239.99991980159999},{"$f":"'GF diets L-Val'!G$351","v":284.9999097768},null,null,0,{"$f":"AX24-50","v":34.999929826400006},{"$f":"AY24-85","v":34.999929826400006},{"$f":"AZ24-120","v":39.999919801599987},{"$f":"BA24-160","v":39.999919801600015},{"$f":"BB24-200","v":39.999919801599987},{"$f":"BC24-240","v":44.999909776799996},null,"BW, lb",{"$f":"VLOOKUP('DDGS Calculator'!$C$31,Performance!AW24:AX30,2,FALSE)","v":84.999929826400006},{"$f":"BO24+VLOOKUP('DDGS Calculator'!$D$31,Performance!BF24:BL30,3,FALSE)","v":119.99985965280001},{"$f":"BP24+VLOOKUP('DDGS Calculator'!$E$31,Performance!BF24:BL30,4,FALSE)","v":159.9997794544},{"$f":"BQ24+(VLOOKUP('DDGS Calculator'!$F$31,Performance!BF24:BL30,5,FALSE))","v":199.99969925600001},{"$f":"BR24+VLOOKUP('DDGS Calculator'!$G$31,Performance!BF24:BL30,6,FALSE)","v":239.9996190576},{"$f":"BS24+VLOOKUP('DDGS Calculator'!$H$31,Performance!BF24:BL30,7,FALSE)","v":284.9995288344}]
[0.05,{"$f":"'GF diets L-Val'!$I$353","v":74.88486970905393},{"$f":"'GF diets L-Val'!$J$353","v":74.879995508682853},{"$f":"'GF diets L-Val'!$K$353","v":74.871998485722159},{"$f":"'GF diets L-Val'!$L$353","v":74.865106105696199},{"$f":"'GF diets L-Val'!$M$353","v":74.859594870370358},{"$f":"'GF diets L-Val'!$N$353","v":74.856280201057046},null,0.05,{"$f":"'GF diets L-Val'!I$316","v":9.7758803148391742},{"$f":"'GF diets L-Val'!J$316","v":9.8465516265845316},{"$f":"'GF diets L-Val'!K$316","v":9.9103248579405285},{"$f":"'GF diets L-Val'!L$316","v":9.9631746054439638},{"$f":"'GF diets L-Val'!M$316","v":10.00406377730083},{"$f":"'GF diets L-Val'!N$316","v":10.021935209551948},null,0.05,{"$f":"'GF diets L-Val'!I$351*'GF diets No L-Val'!I$353/100","v":63.463252371424808},{"$f":"'GF diets L-Val'!J$351*'GF diets No L-Val'!J$353/100","v":89.69022235921166},{"$f":"'GF diets L-Val'!K$351*'GF diets No L-Val'!K$353/100","v":119.59652406235881},{"$f":"'GF diets L-Val'!L$351*'GF diets No L-Val'!L$353/100","v":149.47715439697137},{"$f":"'GF diets L-Val'!M$351*'GF diets No L-Val'!M$353/100","v":179.30743810779077},{"$f":"'GF diets L-Val'!N$351*'GF diets No L-Val'!N$353/100","v":212.75314888965372},null,0.05,{"$f":"'GF diets L-Val'!I$342","v":734.98200857534789},{"$f":"'GF diets L-Val'!J$342","v":857.03896662430009},{"$f":"'GF diets L-Val'!K$342","v":938.67333767113405},{"$f":"'GF diets L-Val'!L$342","v":975.87519399902249},{"$f":"'GF diets L-Val'!M$342","v":970.37168111826622},{"$f":"'GF diets L-Val'!N$342","v":915.82072124867454},null,0.05,{"$f":"'GF diets L-Val'!I$344","v":544.92251618513285},{"$f":"'GF diets L-Val'!J$344","v":472.02046998180811},{"$f":"'GF diets L-Val'!K$344","v":409.88899300995126},{"$f":"'GF diets L-Val'!L$344","v":359.91351940059508},{"$f":"'GF diets L-Val'!M$344","v":324.0636773047201},{"$f":"'GF diets L-Val'!N$344","v":297.1748410732165},null,0.05,1.8351232887213975,2.1185521891424335,2.4396849319047758,2.7784452266906055,3.0858132831088341,3.3650224103379762,null,0.05,{"$f":"'GF diets L-Val'!I$351","v":84.747276956008861},{"$f":"'GF diets L-Val'!J$351","v":119.77801757161166},{"$f":"'GF diets L-Val'!K$351","v":159.73395914661489},{"$f":"'GF diets L-Val'!L$351","v":199.66150925488392},{"$f":"'GF diets L-Val'!M$351","v":239.52454714962926},{"$f":"'GF diets L-Val'!N$351","v":284.21473335297884},null,null,0.05,{"$f":"AX25-50","v":34.747276956008861},{"$f":"AY25-85","v":34.778017571611656},{"$f":"AZ25-120","v":39.733959146614893},{"$f":"BA25-160","v":39.661509254883924},{"$f":"BB25-200","v":39.524547149629257},{"$f":"BC25-240","v":44.21473335297884},null,"Yield, %",null,null,null,null,null,{"$f":"((0.03492*0)-(0.05092*VLOOKUP('DDGS Calculator'!$G$31,Performance!I23:O30,6,FALSE))-(0.06897*VLOOKUP('DDGS Calculator'!$H$31,Performance!I23:O30,7,FALSE))-(0.00289*VLOOKUP('DDGS Calculator'!$H$31,Performance!I23:O30,7,FALSE)*0)+76.0769-(75.02-'DDGS Calculator'!$G$9))","v":75.000603515658099}]
[0.1,{"$f":"'GF diets L-Val'!$P$353","v":74.740419915497128},{"$f":"'GF diets L-Val'!$Q$353","v":74.735610640693125},{"$f":"'GF diets L-Val'!$R$353","v":74.727680213230528},{"$f":"'GF diets L-Val'!$S$353","v":74.720805575179483},{"$f":"'GF diets L-Val'!$T$353","v":74.715324263577386},{"$f":"'GF diets L-Val'!$U$353","v":74.712032086359059},null,0.1,{"$f":"'GF diets L-Val'!P$316","v":10.980733042813222},{"$f":"'GF diets L-Val'!Q$316","v":11.050462995024263},{"$f":"'GF diets L-Val'!R$316","v":11.113965652643751},{"$f":"'GF diets L-Val'!S$316","v":11.166757920659718},{"$f":"'GF diets L-Val'!T$316","v":11.207255663369779},{"$f":"'GF diets L-Val'!U$316","v":11.225089970453132},null,0.1,{"$f":"'GF diets L-Val'!P$351*'GF diets No L-Val'!P$353/100","v":63.195388772051949},{"$f":"'GF diets L-Val'!Q$351*'GF diets No L-Val'!Q$353/100","v":89.385944611986403},{"$f":"'GF diets L-Val'!R$351*'GF diets No L-Val'!R$353/100","v":119.19683990916695},{"$f":"'GF diets L-Val'!S$351*'GF diets No L-Val'!S$353/100","v":148.949884716056},{"$f":"'GF diets L-Val'!T$351*'GF diets No L-Val'!T$353/100","v":178.6266231950768},{"$f":"'GF diets L-Val'!U$351*'GF diets No L-Val'!U$353/100","v":211.77779783585456},null,0.1,{"$f":"'GF diets L-Val'!P$342","v":730.86253902058513},{"$f":"'GF diets L-Val'!Q$342","v":852.70454847034819},{"$f":"'GF diets L-Val'!R$342","v":933.32207144981544},{"$f":"'GF diets L-Val'!S$342","v":967.99604287988086},{"$f":"'GF diets L-Val'!T$342","v":959.34807253354575},{"$f":"'GF diets L-Val'!U$342","v":900.134581323867},null,0.1,{"$f":"'GF diets L-Val'!P$344","v":544.85096467227618},{"$f":"'GF diets L-Val'!Q$344","v":471.93164836862832},{"$f":"'GF diets L-Val'!R$344","v":409.62895773480216},{"$f":"'GF diets L-Val'!S$344","v":358.95851978872997},{"$f":"'GF diets L-Val'!T$344","v":321.97894228766768},{"$f":"'GF diets L-Val'!U$344","v":293.00415672838903},null,0.1,1.8353642827841785,2.11895091896633,2.4412336606520135,2.7858372064509402,3.1057931704942483,3.412920864897445,null,0.1,{"$f":"'GF diets L-Val'!P$351","v":84.55252302062118},{"$f":"'GF diets L-Val'!Q$351","v":119.60212968231728},{"$f":"'GF diets L-Val'!R$351","v":159.50744006478919},{"$f":"'GF diets L-Val'!S$351","v":199.34128423138765},{"$f":"'GF diets L-Val'!T$351","v":239.07553979521069},{"$f":"'GF diets L-Val'!U$351","v":283.45742365985353},null,null,0.1,34.55252302062118,34.602129682317283,39.507440064789193,39.341284231387647,39.075539795210688,43.457423659853532,null,"HCW, lb",null,null,null,null,null,{"$f":"BT24*(BT25/100)","v":213.75136664258204}]
[0.15,{"$f":"'GF diets L-Val'!$W$353","v":74.595997625975514},{"$f":"'GF diets L-Val'!$X$353","v":74.591225779816028},{"$f":"'GF diets L-Val'!$Y$353","v":74.583337114426911},{"$f":"'GF diets L-Val'!$Z$353","v":74.576535495324663},{"$f":"'GF diets L-Val'!$AA$353","v":74.57119255666845},{"$f":"'GF diets L-Val'!$AB$353","v":74.568098782281709},null,0.15,{"$f":"'GF diets L-Val'!W$316","v":12.185356360200929},{"$f":"'GF diets L-Val'!X$316","v":12.254543632340727},{"$f":"'GF diets L-Val'!Y$316","v":12.317841435614078},{"$f":"'GF diets L-Val'!Z$316","v":12.369726240015426},{"$f":"'GF diets L-Val'!AA$316","v":12.408887678555427},{"$f":"'GF diets L-Val'!AB$316","v":12.424831914256155},null,0.15,{"$f":"'GF diets L-Val'!W$351*'GF diets No L-Val'!W$353/100","v":62.955313931541298},{"$f":"'GF diets L-Val'!X$351*'GF diets No L-Val'!X$353/100","v":89.101169020436117},{"$f":"'GF diets L-Val'!Y$351*'GF diets No L-Val'!Y$353/100","v":118.80253347849995},{"$f":"'GF diets L-Val'!Z$351*'GF diets No L-Val'!Z$353/100","v":148.44280905837903},{"$f":"'GF diets L-Val'!AA$351*'GF diets No L-Val'!AA$353/100","v":177.95883751443284},{"$f":"'GF diets L-Val'!AB$351*'GF diets No L-Val'!AB$353/100","v":210.80747244751441},null,0.15,{"$f":"'GF diets L-Val'!W$342","v":727.51552435711903},{"$f":"'GF diets L-Val'!X$342","v":848.998506061993},{"$f":"'GF diets L-Val'!Y$342","v":928.12318501505911},{"$f":"'GF diets L-Val'!Z$342","v":960.75385333371219},{"$f":"'GF diets L-Val'!AA$342","v":948.70954572017718},{"$f":"'GF diets L-Val'!AB$342","v":884.51788453222389},null,0.15,{"$f":"'GF diets L-Val'!W$344","v":544.02090375649789},{"$f":"'GF diets L-Val'!X$344","v":471.24361438129569},{"$f":"'GF diets L-Val'!Y$344","v":408.78610079742481},{"$f":"'GF diets L-Val'!Z$344","v":357.7790103051002},{"$f":"'GF diets L-Val'!AA$344","v":319.75849715832874},{"$f":"'GF diets L-Val'!AB$344","v":288.69675555866928},null,0.15,1.8381646607601625,2.1220446696406023,2.4462671261309663,2.7950214271855649,3.127360207428199,3.4638421830022224,null,0.15,{"$f":"'GF diets L-Val'!W$351","v":84.39428801758379},{"$f":"'GF diets L-Val'!X$351","v":119.45174087494144},{"$f":"'GF diets L-Val'!Y$351","v":159.2873712188354},{"$f":"'GF diets L-Val'!Z$351","v":199.04694664571142},{"$f":"'GF diets L-Val'!AA$351","v":238.64221737246044},{"$f":"'GF diets L-Val'!AB$351","v":282.70346660530714},null,null,0.15,34.39428801758379,34.451740874941436,39.287371218835403,39.046946645711415,38.642217372460436,42.703466605307142]
[0.2,{"$f":"'GF diets L-Val'!$AD$353","v":74.451610737703803},{"$f":"'GF diets L-Val'!$AE$353","v":74.446842088275787},{"$f":"'GF diets L-Val'!$AF$353","v":74.439025449893521},{"$f":"'GF diets L-Val'!$AG$353","v":74.432389067781571},{"$f":"'GF diets L-Val'!$AH$353","v":74.427548209025446},{"$f":"'GF diets L-Val'!$AI$353","v":74.424916767774178},null,0.2,{"$f":"'GF diets L-Val'!AD$316","v":13.389684396498479},{"$f":"'GF diets L-Val'!AE$316","v":13.458825319044692},{"$f":"'GF diets L-Val'!AF$316","v":13.521113018134308},{"$f":"'GF diets L-Val'!AG$316","v":13.57134779375134},{"$f":"'GF diets L-Val'!AH$316","v":13.604447749988939},{"$f":"'GF diets L-Val'!AI$316","v":13.61816373490487},null,0.2,{"$f":"'GF diets L-Val'!AD$351*'GF diets No L-Val'!AD$353/100","v":62.743061167544305},{"$f":"'GF diets L-Val'!AE$351*'GF diets No L-Val'!AE$353/100","v":88.828935015450838},{"$f":"'GF diets L-Val'!AF$351*'GF diets No L-Val'!AF$353/100","v":118.43198188927552},{"$f":"'GF diets L-Val'!AG$351*'GF diets No L-Val'!AG$353/100","v":147.95179285445536},{"$f":"'GF diets L-Val'!AH$351*'GF diets No L-Val'!AH$353/100","v":177.29695095413703},{"$f":"'GF diets L-Val'!AI$351*'GF diets No L-Val'!AI$353/100","v":209.84276084790662},null,0.2,{"$f":"'GF diets L-Val'!AD$342","v":724.94582154114494},{"$f":"'GF diets L-Val'!AE$342","v":845.69421270540624},{"$f":"'GF diets L-Val'!AF$342","v":923.65864602576949},{"$f":"'GF diets L-Val'!AG$342","v":954.01012781500322},{"$f":"'GF diets L-Val'!AH$342","v":938.19318574970953},{"$f":"'GF diets L-Val'!AI$342","v":868.94538754257837},null,0.2,{"$f":"'GF diets L-Val'!AD$344","v":542.41495381124025},{"$f":"'GF diets L-Val'!AE$344","v":469.82815603512751},{"$f":"'GF diets L-Val'!AF$344","v":407.58466744044267},{"$f":"'GF diets L-Val'!AG$344","v":356.34303554371058},{"$f":"'GF diets L-Val'!AH$344","v":317.14306606759203},{"$f":"'GF diets L-Val'!AI$344","v":284.12045417566651},null,0.2,1.8436069893972702,2.1284377855064807,2.4534779639278814,2.8062846758719258,3.1531510759465009,3.5196339626492299,null,0.2,{"$f":"'GF diets L-Val'!AD$351","v":84.272801566589351},{"$f":"'GF diets L-Val'!AE$351","v":119.3176547846159},{"$f":"'GF diets L-Val'!AF$351","v":159.09838729787106},{"$f":"'GF diets L-Val'!AG$351","v":198.77286767070169},{"$f":"'GF diets L-Val'!AH$351","v":238.2138709800642},{"$f":"'GF diets L-Val'!AI$351","v":281.95164346889794},null,null,0.2,34.272801566589351,34.317654784615897,39.098387297871056,38.772867670701686,38.2138709800642,41.951643468897942]
[0.25,{"$f":"'GF diets L-Val'!$AK$353","v":74.307252416994544},{"$f":"'GF diets L-Val'!$AL$353","v":74.30245942496839},{"$f":"'GF diets L-Val'!$AM$353","v":74.29474347039725},{"$f":"'GF diets L-Val'!$AN$353","v":74.288588746506676},{"$f":"'GF diets L-Val'!$AO$353","v":74.284280642912947},{"$f":"'GF diets L-Val'!$AP$353","v":74.281836261185205},null,0.25,{"$f":"'GF diets L-Val'!AK$316","v":14.593774151350882},{"$f":"'GF diets L-Val'!AL$316","v":14.663268018628695},{"$f":"'GF diets L-Val'!AM$316","v":14.7238353210697},{"$f":"'GF diets L-Val'!AN$316","v":14.768356661511596},{"$f":"'GF diets L-Val'!AO$316","v":14.797950353528863},{"$f":"'GF diets L-Val'!AP$316","v":14.81154279850807},null,0.25,{"$f":"'GF diets L-Val'!AK$351*'GF diets No L-Val'!AK$353/100","v":62.559064919968733},{"$f":"'GF diets L-Val'!AL$351*'GF diets No L-Val'!AL$353/100","v":88.580462930216441},{"$f":"'GF diets L-Val'!AM$351*'GF diets No L-Val'!AM$353/100","v":118.08294629665454},{"$f":"'GF diets L-Val'!AN$351*'GF diets No L-Val'!AN$353/100","v":147.47215660797011},{"$f":"'GF diets L-Val'!AO$351*'GF diets No L-Val'!AO$353/100","v":176.64945419560848},{"$f":"'GF diets L-Val'!AP$351*'GF diets No L-Val'!AP$353/100","v":208.89840517860327},null,0.25,{"$f":"'GF diets L-Val'!AK$342","v":723.16476170971032},{"$f":"'GF diets L-Val'!AL$342","v":843.16103565379217},{"$f":"'GF diets L-Val'!AM$342","v":919.85722269718804},{"$f":"'GF diets L-Val'!AN$342","v":947.59682363309821},{"$f":"'GF diets L-Val'!AO$342","v":928.08306099373704},{"$f":"'GF diets L-Val'!AP$342","v":853.87006838432558},null,0.25,{"$f":"'GF diets L-Val'!AK$344","v":540.06744965323378},{"$f":"'GF diets L-Val'!AL$344","v":467.87575223726196},{"$f":"'GF diets L-Val'!AM$344","v":405.98913112498241},{"$f":"'GF diets L-Val'!AN$344","v":354.40368912897554},{"$f":"'GF diets L-Val'!AO$344","v":314.274818790317},{"$f":"'GF diets L-Val'!AP$344","v":279.42406048140822},null,0.25,1.8516205719157475,2.1373195666119824,2.4631201264650437,2.8216410570040016,3.1819284912775538,3.5787898804317035,null,0.25,{"$f":"'GF diets L-Val'!AK$351","v":84.18859936367906},{"$f":"'GF diets L-Val'!AL$351","v":119.21486009591908},{"$f":"'GF diets L-Val'!AM$351","v":158.93747306067789},{"$f":"'GF diets L-Val'!AN$351","v":198.51221770330227},{"$f":"'GF diets L-Val'!AO$351","v":237.80207112934988},{"$f":"'GF diets L-Val'!AP$351","v":281.22382353485239},null,null,0.25,34.18859936367906,34.214860095919079,38.937473060677888,38.512217703302269,37.802071129349883,41.223823534852386]
[0.3,{"$f":"'GF diets L-Val'!$AR$353","v":74.162994390504622},{"$f":"'GF diets L-Val'!$AS$353","v":74.158172427249752},{"$f":"'GF diets L-Val'!$AT$353","v":74.150558387754515},{"$f":"'GF diets L-Val'!$AU$353","v":74.145065166049108},{"$f":"'GF diets L-Val'!$AV$353","v":74.141186128513851},{"$f":"'GF diets L-Val'!$AW$353","v":74.138755984592407},null,0.3,{"$f":"'GF diets L-Val'!AR$316","v":15.79702735420287},{"$f":"'GF diets L-Val'!AS$316","v":15.866941276993494},{"$f":"'GF diets L-Val'!AT$316","v":15.925720783253233},{"$f":"'GF diets L-Val'!AU$316","v":15.961970881073496},{"$f":"'GF diets L-Val'!AV$316","v":15.991450111960036},{"$f":"'GF diets L-Val'!AW$316","v":16.004920627904681},null,0.3,{"$f":"'GF diets L-Val'!AR$351*'GF diets No L-Val'!AR$353/100","v":62.401420611487254},{"$f":"'GF diets L-Val'!AS$351*'GF diets No L-Val'!AS$353/100","v":88.355555747350877},{"$f":"'GF diets L-Val'!AT$351*'GF diets No L-Val'!AT$353/100","v":117.75553779049704},{"$f":"'GF diets L-Val'!AU$351*'GF diets No L-Val'!AU$353/100","v":147.00757940793994},{"$f":"'GF diets L-Val'!AV$351*'GF diets No L-Val'!AV$353/100","v":176.01954091416272},{"$f":"'GF diets L-Val'!AW$351*'GF diets No L-Val'!AW$353/100","v":207.97364700772988},null,0.3,{"$f":"'GF diets L-Val'!AR$342","v":722.13641638624006},{"$f":"'GF diets L-Val'!AS$342","v":841.40646013664229},{"$f":"'GF diets L-Val'!AT$342","v":916.72904437624834},{"$f":"'GF diets L-Val'!AU$342","v":941.64006968999638},{"$f":"'GF diets L-Val'!AV$342","v":918.50077750001947},{"$f":"'GF diets L-Val'!AW$342","v":839.28439538630732},null,0.3,{"$f":"'GF diets L-Val'!AR$344","v":537.08188234721013},{"$f":"'GF diets L-Val'!AS$344","v":465.36423994865339},{"$f":"'GF diets L-Val'!AT$344","v":403.98584612745401},{"$f":"'GF diets L-Val'!AU$344","v":352.02456023637109},{"$f":"'GF diets L-Val'!AV$344","v":311.22636410689336},{"$f":"'GF diets L-Val'!AW$344","v":274.60458919295252},null,0.3,1.8619134863192515,2.1488544115687453,2.4753342464490915,2.840710884855699,3.213095403628921,3.6415997377864078,null,0.3,{"$f":"'GF diets L-Val'!AR$351","v":84.13998283768683},{"$f":"'GF diets L-Val'!AS$351","v":119.14366055462939},{"$f":"'GF diets L-Val'!AT$351","v":158.80505728247883},{"$f":"'GF diets L-Val'!AU$351","v":198.27012288337207},{"$f":"'GF diets L-Val'!AV$351","v":237.41177100868285},{"$f":"'GF diets L-Val'!AW$351","v":280.51964318231796},null,null,0.3,34.13998283768683,34.143660554629392,38.805057282478828,38.270122883372068,37.411771008682848,40.519643182317964]
[null,null,null,null,null,null,null,null,null,null,null,null,null,null,null,null,null,null,null,null,null,null,null,null,null,null,null,null,null,null,null,null,null,{"$f":"AH24-AH28","v":2.123499589560879}]
["GF L-Val + Fat",null,null,null,null,null,null,null,"GF L-Val + Fat",null,null,null,null,null,null,null,"GF L-Val + Fat",null,null,null,null,null,null,null,"GF L-Val + Fat",null,null,null,null,null,null,null,"GF L-Val + Fat",null,null,null,null,null,null,null,"GF L-Val + Fat",null,null,null,null,null,null,null,"GF L-Val + Fat",null,null,null,null,null,null,null,null,"GF L-Val + Fat",null,null,null,null,null,null,null,null,"GF L-Val + Fat"]
[null,"Phase 1","Phase 2","Phase 3","Phase 4","Phase 5","Phase 6",null,null,"Phase 1","Phase 2","Phase 3","Phase 4","Phase 5","Phase 6",null,null,"Phase 1","Phase 2","Phase 3","Phase 4","Phase 5","Phase 6",null,null,"Phase 1","Phase 2","Phase 3","Phase 4","Phase 5","Phase 6",null,null,"Phase 1","Phase 2","Phase 3","Phase 4","Phase 5","Phase 6",null,null,"Phase 1","Phase 2","Phase 3","Phase 4","Phase 5","Phase 6",null,null,"Phase 1","Phase 2","Phase 3","Phase 4","Phase 5","Phase 6",null,null,null,"Phase 1","Phase 2","Phase 3","Phase 4","Phase 5","Phase 6",null,null,"Phase 1","Phase 2","Phase 3","Phase 4","Phase 5","Phase 6"]
[0,{"$f":"'GF diets L-Val + Fat'!$B353","v":75.029451185589821},{"$f":"'GF diets L-Val + Fat'!$C$353","v":75.024490114943532},{"$f":"'GF diets L-Val + Fat'!$D$353","v":75.016402824315023},{"$f":"'GF diets L-Val + Fat'!$E$353","v":75.009464091992726},{"$f":"'GF diets L-Val + Fat'!$F$353","v":75.003950097444132},{"$f":"'GF diets L-Val + Fat'!$G$353","v":75.000603515658099},null,0,{"$f":"'GF diets L-Val + Fat'!B$316","v":8.5699292218715204},{"$f":"'GF diets L-Val + Fat'!C$316","v":8.6418600707376481},{"$f":"'GF diets L-Val + Fat'!D$316","v":8.7060121920111886},{"$f":"'GF diets L-Val + Fat'!E$316","v":8.7592542727281515},{"$f":"'GF diets L-Val + Fat'!F$316","v":8.7998937942372635},{"$f":"'GF diets L-Val + Fat'!G$316","v":8.8184122421246407},null,0,{"$f":"'GF diets L-Val + Fat'!B$351*'GF diets No L-Val'!B$353/100","v":63.775222936730451},{"$f":"'GF diets L-Val + Fat'!C$351*'GF diets No L-Val'!C$353/100","v":90.029655617817099},{"$f":"'GF diets L-Val + Fat'!D$351*'GF diets No L-Val'!D$353/100","v":120.02655281623706},{"$f":"'GF diets L-Val + Fat'!E$351*'GF diets No L-Val'!E$353/100","v":150.01929240335414},{"$f":"'GF diets L-Val + Fat'!F$351*'GF diets No L-Val'!F$353/100","v":180.0099432286994},{"$f":"'GF diets L-Val + Fat'!G$351*'GF diets No L-Val'!G$353/100","v":213.75252629034401},null,0,{"$f":"'GF diets L-Val + Fat'!B$342","v":740.32616660444182},{"$f":"'GF diets L-Val + Fat'!C$342","v":862.50756659214221},{"$f":"'GF diets L-Val + Fat'!D$342","v":944.95636803551065},{"$f":"'GF diets L-Val + Fat'!E$342","v":984.20180073567008},{"$f":"'GF diets L-Val + Fat'!F$342","v":982.04258582759257},{"$f":"'GF diets L-Val + Fat'!G$342","v":932.08406418687355},null,0,{"$f":"'GF diets L-Val + Fat'!B$344","v":544.53845340080113},{"$f":"'GF diets L-Val + Fat'!C$344","v":471.75579583355693},{"$f":"'GF diets L-Val + Fat'!D$344","v":409.85407727163351},{"$f":"'GF diets L-Val + Fat'!E$344","v":360.59074506150858},{"$f":"'GF diets L-Val + Fat'!F$344","v":326.06282096567122},{"$f":"'GF diets L-Val + Fat'!G$344","v":301.24235802326291},null,0,{"$f":"1/(AH34/1000)","v":1.8364176005472324},{"$f":"1/(AI34/1000)","v":2.1197407829045862},{"$f":"1/(AJ34/1000)","v":2.4398927702681932},{"$f":"1/(AK34/1000)","v":2.7732270273032738},{"$f":"1/(AL34/1000)","v":3.0668936649642822},{"$f":"1/(AM34/1000)","v":3.3195862844851876},null,0,{"$f":"'GF diets L-Val + Fat'!B$351","v":84.999929826400006},{"$f":"'GF diets L-Val + Fat'!C$351","v":119.99992982640001},{"$f":"'GF diets L-Val + Fat'!D$351","v":159.99991980159999},{"$f":"'GF diets L-Val + Fat'!E$351","v":199.99991980160002},{"$f":"'GF diets L-Val + Fat'!F$351","v":239.99991980159999},{"$f":"'GF diets L-Val + Fat'!G$351","v":284.9999097768},null,null,0,{"$f":"AX34-50","v":34.999929826400006},{"$f":"AY34-85","v":34.999929826400006},{"$f":"AZ34-120","v":39.999919801599987},{"$f":"BA34-160","v":39.999919801600015},{"$f":"BB34-200","v":39.999919801599987},{"$f":"BC34-240","v":44.999909776799996},null,"BW, lb",{"$f":"VLOOKUP('DDGS Calculator'!$C$31,Performance!AW34:AX40,2,FALSE)","v":84.999929826400006},{"$f":"BO34+VLOOKUP('DDGS Calculator'!$D$31,Performance!BF34:BL40,3,FALSE)","v":119.99985965280001},{"$f":"BP34+VLOOKUP('DDGS Calculator'!$E$31,Performance!BF34:BL40,4,FALSE)","v":159.9997794544},{"$f":"BQ34+(VLOOKUP('DDGS Calculator'!$F$31,Performance!BF34:BL40,5,FALSE))","v":199.99969925600001},{"$f":"BR34+VLOOKUP('DDGS Calculator'!$G$31,Performance!BF34:BL40,6,FALSE)","v":239.9996190576},{"$f":"BS34+VLOOKUP('DDGS Calculator'!$H$31,Performance!BF34:BL40,7,FALSE)","v":284.9995288344}]
[0.05,{"$f":"'GF diets L-Val + Fat'!$I$353","v":74.890728602114692},{"$f":"'GF diets L-Val + Fat'!$J$353","v":74.885866467858719},{"$f":"'GF diets L-Val + Fat'!$K$353","v":74.877801308605058},{"$f":"'GF diets L-Val + Fat'!$L$353","v":74.870867835662068},{"$f":"'GF diets L-Val + Fat'!$M$353","v":74.865385703798339},{"$f":"'GF diets L-Val + Fat'!$N$353","v":74.8620583050634},null,0.05,{"$f":"'GF diets L-Val + Fat'!I$316","v":9.727011409502925},{"$f":"'GF diets L-Val + Fat'!J$316","v":9.7975077739509313},{"$f":"'GF diets L-Val + Fat'!K$316","v":9.8623980795325394},{"$f":"'GF diets L-Val + Fat'!L$316","v":9.9150189086288005},{"$f":"'GF diets L-Val + Fat'!M$316","v":9.9556551163445857},{"$f":"'GF diets L-Val + Fat'!N$316","v":9.9738978746170215},null,0.05,{"$f":"'GF diets L-Val + Fat'!I$351*'GF diets No L-Val'!I$353/100","v":63.56382570369319},{"$f":"'GF diets L-Val + Fat'!J$351*'GF diets No L-Val'!J$353/100","v":89.793073827544333},{"$f":"'GF diets L-Val + Fat'!K$351*'GF diets No L-Val'!K$353/100","v":119.71979546324374},{"$f":"'GF diets L-Val + Fat'!L$351*'GF diets No L-Val'!L$353/100","v":149.62096913074944},{"$f":"'GF diets L-Val + Fat'!M$351*'GF diets No L-Val'!M$353/100","v":179.48977291835598},{"$f":"'GF diets L-Val + Fat'!N$351*'GF diets No L-Val'!N$353/100","v":213.01355426115649},null,0.05,{"$f":"'GF diets L-Val + Fat'!I$342","v":737.82281291393463},{"$f":"'GF diets L-Val + Fat'!J$342","v":860.42380070965544},{"$f":"'GF diets L-Val + Fat'!K$342","v":942.56282888497708},{"$f":"'GF diets L-Val + Fat'!L$342","v":980.60177466022901},{"$f":"'GF diets L-Val + Fat'!M$342","v":976.35154973514977},{"$f":"'GF diets L-Val + Fat'!N$342","v":923.02620425658733},null,0.05,{"$f":"'GF diets L-Val + Fat'!I$344","v":548.13616804173489},{"$f":"'GF diets L-Val + Fat'!J$344","v":475.74147464882753},{"$f":"'GF diets L-Val + Fat'!K$344","v":413.49391362962149},{"$f":"'GF diets L-Val + Fat'!L$344","v":363.13725449078942},{"$f":"'GF diets L-Val + Fat'!M$344","v":326.79784463924585},{"$f":"'GF diets L-Val + Fat'!N$344","v":299.30516388331944},null,0.05,1.8243641968976225,2.1019819656004519,2.4184152826387888,2.7537797007422267,3.059995701941995,3.3410716575202093,null,0.05,{"$f":"'GF diets L-Val + Fat'!I$351","v":84.881580127145668},{"$f":"'GF diets L-Val + Fat'!J$351","v":119.91537195269322},{"$f":"'GF diets L-Val + Fat'!K$351","v":159.8986012971061},{"$f":"'GF diets L-Val + Fat'!L$351","v":199.85360728427887},{"$f":"'GF diets L-Val + Fat'!M$351","v":239.76811575666045},{"$f":"'GF diets L-Val + Fat'!N$351","v":284.5626061981593},null,null,0.05,{"$f":"AX35-50","v":34.881580127145668},{"$f":"AY35-85","v":34.915371952693221},{"$f":"AZ35-120","v":39.898601297106097},{"$f":"BA35-160","v":39.853607284278866},{"$f":"BB35-200","v":39.76811575666045},{"$f":"BC35-240","v":44.562606198159301},null,"Yield, %",null,null,null,null,null,{"$f":"((0.03492*0)-(0.05092*VLOOKUP('DDGS Calculator'!$G$31,Performance!I33:O40,6,FALSE))-(0.06897*VLOOKUP('DDGS Calculator'!$H$31,Performance!I33:O40,7,FALSE))-(0.00289*VLOOKUP('DDGS Calculator'!$H$31,Performance!I33:O40,7,FALSE)*0)+76.0769-(75.02-'DDGS Calculator'!$G$9))","v":75.000603515658099}]
[0.1,{"$f":"'GF diets L-Val + Fat'!$P$353","v":74.752116362414753},{"$f":"'GF diets L-Val + Fat'!$Q$353","v":74.747279186489052},{"$f":"'GF diets L-Val + Fat'!$R$353","v":74.739258120126024},{"$f":"'GF diets L-Val + Fat'!$S$353","v":74.732336479325696},{"$f":"'GF diets L-Val + Fat'!$T$353","v":74.726832944937556},{"$f":"'GF diets L-Val + Fat'!$U$353","v":74.723500487089296},null,0.1,{"$f":"'GF diets L-Val + Fat'!P$316","v":10.883173221997206},{"$f":"'GF diets L-Val + Fat'!Q$316","v":10.953307714177852},{"$f":"'GF diets L-Val + Fat'!R$316","v":11.017825881804187},{"$f":"'GF diets L-Val + Fat'!S$316","v":11.07054990246252},{"$f":"'GF diets L-Val + Fat'!T$316","v":11.111420241105503},{"$f":"'GF diets L-Val + Fat'!U$316","v":11.129563494760202},null,0.1,{"$f":"'GF diets L-Val + Fat'!P$351*'GF diets No L-Val'!P$353/100","v":63.354444310417591},{"$f":"'GF diets L-Val + Fat'!Q$351*'GF diets No L-Val'!Q$353/100","v":89.55771605730834},{"$f":"'GF diets L-Val + Fat'!R$351*'GF diets No L-Val'!R$353/100","v":119.41379101450764},{"$f":"'GF diets L-Val + Fat'!S$351*'GF diets No L-Val'!S$353/100","v":149.22283923250166},{"$f":"'GF diets L-Val + Fat'!T$351*'GF diets No L-Val'!T$353/100","v":178.96954981883616},{"$f":"'GF diets L-Val + Fat'!U$351*'GF diets No L-Val'!U$353/100","v":212.27837256408799},null,0.1,{"$f":"'GF diets L-Val + Fat'!P$342","v":735.36391234255655},{"$f":"'GF diets L-Val + Fat'!Q$342","v":858.36844770368066},{"$f":"'GF diets L-Val + Fat'!R$342","v":940.18058238231538},{"$f":"'GF diets L-Val + Fat'!S$342","v":976.98421807826821},{"$f":"'GF diets L-Val + Fat'!T$342","v":970.61642674660789},{"$f":"'GF diets L-Val + Fat'!U$342","v":914.01232612350691},null,0.1,{"$f":"'GF diets L-Val + Fat'!P$344","v":551.71776264187986},{"$f":"'GF diets L-Val + Fat'!Q$344","v":479.72040315004631},{"$f":"'GF diets L-Val + Fat'!R$344","v":417.13996726322972},{"$f":"'GF diets L-Val + Fat'!S$344","v":365.68103520491923},{"$f":"'GF diets L-Val + Fat'!T$344","v":327.53100961701546},{"$f":"'GF diets L-Val + Fat'!U$344","v":297.36203691638764},null,0.1,1.8125209440630248,2.0845475686120052,2.3972768818121075,2.7346236302345375,3.0531460247666553,3.3629040558434848,null,0.1,{"$f":"'GF diets L-Val + Fat'!P$351","v":84.765332013975552},{"$f":"'GF diets L-Val + Fat'!Q$351","v":119.8319670551648},{"$f":"'GF diets L-Val + Fat'!R$351","v":159.79776081036005},{"$f":"'GF diets L-Val + Fat'!S$351","v":199.70658229085751},{"$f":"'GF diets L-Val + Fat'!T$351","v":239.53451598934654},{"$f":"'GF diets L-Val + Fat'!U$351","v":284.12742601262261},null,null,0.1,34.765332013975552,34.831967055164796,39.797760810360046,39.706582290857511,39.534515989346545,44.127426012622607,null,"HCW, lb",null,null,null,null,null,{"$f":"BT34*(BT35/100)","v":213.75136664258204}]
[0.15,{"$f":"'GF diets L-Val + Fat'!$W$353","v":74.613465520002734},{"$f":"'GF diets L-Val + Fat'!$X$353","v":74.60866859279038},{"$f":"'GF diets L-Val + Fat'!$Y$353","v":74.600670232630335},{"$f":"'GF diets L-Val + Fat'!$Z$353","v":74.59378877985958},{"$f":"'GF diets L-Val + Fat'!$AA$353","v":74.588364202881948},{"$f":"'GF diets L-Val + Fat'!$AB$353","v":74.585305209808013},null,0.15,{"$f":"'GF diets L-Val + Fat'!W$316","v":12.039657018911216},{"$f":"'GF diets L-Val + Fat'!X$316","v":12.109207942680387},{"$f":"'GF diets L-Val + Fat'!Y$316","v":12.17382773565863},{"$f":"'GF diets L-Val + Fat'!Z$316","v":12.225894038577438},{"$f":"'GF diets L-Val + Fat'!AA$316","v":12.266105156933367},{"$f":"'GF diets L-Val + Fat'!AB$316","v":12.280770126155319},null,0.15,{"$f":"'GF diets L-Val + Fat'!W$351*'GF diets No L-Val'!W$353/100","v":63.145744414103667},{"$f":"'GF diets L-Val + Fat'!X$351*'GF diets No L-Val'!X$353/100","v":89.3233408032483},{"$f":"'GF diets L-Val + Fat'!Y$351*'GF diets No L-Val'!Y$353/100","v":119.10812645446623},{"$f":"'GF diets L-Val + Fat'!Z$351*'GF diets No L-Val'!Z$353/100","v":148.82536995561503},{"$f":"'GF diets L-Val + Fat'!AA$351*'GF diets No L-Val'!AA$353/100","v":178.44585881957312},{"$f":"'GF diets L-Val + Fat'!AB$351*'GF diets No L-Val'!AB$353/100","v":211.53496735327994},null,0.15,{"$f":"'GF diets L-Val + Fat'!W$342","v":732.9152560783665},{"$f":"'GF diets L-Val + Fat'!X$342","v":856.3384518252584},{"$f":"'GF diets L-Val + Fat'!Y$342","v":937.80263712373403},{"$f":"'GF diets L-Val + Fat'!Z$342","v":973.37564760546206},{"$f":"'GF diets L-Val + Fat'!AA$342","v":964.7436980632217},{"$f":"'GF diets L-Val + Fat'!AB$342","v":904.72562048712371},null,0.15,{"$f":"'GF diets L-Val + Fat'!W$344","v":555.31056526434872},{"$f":"'GF diets L-Val + Fat'!X$344","v":483.73901499139083},{"$f":"'GF diets L-Val + Fat'!Y$344","v":420.79283801219384},{"$f":"'GF diets L-Val + Fat'!Z$344","v":368.26915264044965},{"$f":"'GF diets L-Val + Fat'!AA$344","v":328.31826271900195},{"$f":"'GF diets L-Val + Fat'!AB$344","v":295.44513442811183},null,0.15,1.8007941187359948,2.0672304052584991,2.3764663028105573,2.7154052758155527,3.0458250836197647,3.3847231972043921,null,0.15,{"$f":"'GF diets L-Val + Fat'!W$351","v":84.649568215378878},{"$f":"'GF diets L-Val + Fat'!X$351","v":119.74959113349549},{"$f":"'GF diets L-Val + Fat'!Y$351","v":159.69710239526202},{"$f":"'GF diets L-Val + Fat'!Z$351","v":199.55992251152736},{"$f":"'GF diets L-Val + Fat'!AA$351","v":239.29531134514318},{"$f":"'GF diets L-Val + Fat'!AB$351","v":283.67907401338334},null,null,0.15,34.649568215378878,34.749591133495485,39.697102395262021,39.559922511527361,39.295311345143176,43.679074013383342]
[0.2,{"$f":"'GF diets L-Val + Fat'!$AD$353","v":74.474881221970179},{"$f":"'GF diets L-Val + Fat'!$AE$353","v":74.470068348660988},{"$f":"'GF diets L-Val + Fat'!$AF$353","v":74.462113927237837},{"$f":"'GF diets L-Val + Fat'!$AG$353","v":74.455296856199681},{"$f":"'GF diets L-Val + Fat'!$AH$353","v":74.45067227036472},{"$f":"'GF diets L-Val + Fat'!$AI$353","v":74.448403293588015},null,0.2,{"$f":"'GF diets L-Val + Fat'!AD$316","v":13.195585770538168},{"$f":"'GF diets L-Val + Fat'!AE$316","v":13.265367897683115},{"$f":"'GF diets L-Val + Fat'!AF$316","v":13.329179924780918},{"$f":"'GF diets L-Val + Fat'!AG$316","v":13.380909120349052},{"$f":"'GF diets L-Val + Fat'!AH$316","v":13.409770004742649},{"$f":"'GF diets L-Val + Fat'!AI$316","v":13.421360269254606},null,0.2,{"$f":"'GF diets L-Val + Fat'!AD$351*'GF diets No L-Val'!AD$353/100","v":62.939090344448978},{"$f":"'GF diets L-Val + Fat'!AE$351*'GF diets No L-Val'!AE$353/100","v":89.088859207073},{"$f":"'GF diets L-Val + Fat'!AF$351*'GF diets No L-Val'!AF$353/100","v":118.80345631770798},{"$f":"'GF diets L-Val + Fat'!AG$351*'GF diets No L-Val'!AG$353/100","v":148.42808159016565},{"$f":"'GF diets L-Val + Fat'!AH$351*'GF diets No L-Val'!AH$353/100","v":177.92563959351369},{"$f":"'GF diets L-Val + Fat'!AI$351*'GF diets No L-Val'!AI$353/100","v":210.8007136478044},null,0.2,{"$f":"'GF diets L-Val + Fat'!AD$342","v":730.51508162544155},{"$f":"'GF diets L-Val + Fat'!AE$342","v":854.29804278316578},{"$f":"'GF diets L-Val + Fat'!AF$342","v":935.44765961534085},{"$f":"'GF diets L-Val + Fat'!AG$342","v":969.75471744288711},{"$f":"'GF diets L-Val + Fat'!AH$342","v":958.93141742963121},{"$f":"'GF diets L-Val + Fat'!AI$342","v":895.60582793908202},null,0.2,{"$f":"'GF diets L-Val + Fat'!AD$344","v":558.91156851249946},{"$f":"'GF diets L-Val + Fat'!AE$344","v":487.73504180043989},{"$f":"'GF diets L-Val + Fat'!AF$344","v":424.4759228850063},{"$f":"'GF diets L-Val + Fat'!AG$344","v":370.85566295655667},{"$f":"'GF diets L-Val + Fat'!AH$344","v":329.06636226940708},{"$f":"'GF diets L-Val + Fat'!AI$344","v":293.55327828828933},null,0.2,1.7891918083954208,2.0502935288565074,2.3558462237466116,2.6964668465023371,3.0389007041117702,3.4065366458552435,null,0.2,{"$f":"'GF diets L-Val + Fat'!AD$351","v":84.536096465166835},{"$f":"'GF diets L-Val + Fat'!AE$351","v":119.66679265236979},{"$f":"'GF diets L-Val + Fat'!AF$351","v":159.5974162049551},{"$f":"'GF diets L-Val + Fat'!AG$351","v":199.41276040880135},{"$f":"'GF diets L-Val + Fat'!AH$351","v":239.05856883652001},{"$f":"'GF diets L-Val + Fat'!AI$351","v":283.23878039563988},null,null,0.2,34.536096465166835,34.666792652369793,39.597416204955096,39.412760408801347,39.05856883652001,43.238780395639878]
[0.25,{"$f":"'GF diets L-Val + Fat'!$AK$353","v":74.336344508857024},{"$f":"'GF diets L-Val + Fat'!$AL$353","v":74.331544497285776},{"$f":"'GF diets L-Val + Fat'!$AM$353","v":74.323580746605685},{"$f":"'GF diets L-Val + Fat'!$AN$353","v":74.317462176703145},{"$f":"'GF diets L-Val + Fat'!$AO$353","v":74.313683538804284},{"$f":"'GF diets L-Val + Fat'!$AP$353","v":74.311656378206123},null,0.25,{"$f":"'GF diets L-Val + Fat'!AK$316","v":14.351117617340673},{"$f":"'GF diets L-Val + Fat'!AL$316","v":14.420713261406867},{"$f":"'GF diets L-Val + Fat'!AM$316","v":14.484798232905339},{"$f":"'GF diets L-Val + Fat'!AN$316","v":14.526198307631129},{"$f":"'GF diets L-Val + Fat'!AO$316","v":14.550419651604081},{"$f":"'GF diets L-Val + Fat'!AP$316","v":14.561929145051485},null,0.25,{"$f":"'GF diets L-Val + Fat'!AK$351*'GF diets No L-Val'!AK$353/100","v":62.732457385192859},{"$f":"'GF diets L-Val + Fat'!AL$351*'GF diets No L-Val'!AL$353/100","v":88.855080302522779},{"$f":"'GF diets L-Val + Fat'!AM$351*'GF diets No L-Val'!AM$353/100","v":118.49825683499462},{"$f":"'GF diets L-Val + Fat'!AN$351*'GF diets No L-Val'!AN$353/100","v":148.03153705330959},{"$f":"'GF diets L-Val + Fat'!AO$351*'GF diets No L-Val'!AO$353/100","v":177.4083369574634},{"$f":"'GF diets L-Val + Fat'!AP$351*'GF diets No L-Val'!AP$353/100","v":210.06818757497419},null,0.25,{"$f":"'GF diets L-Val + Fat'!AK$342","v":728.10045668103191},{"$f":"'GF diets L-Val + Fat'!AL$342","v":852.26887422429309},{"$f":"'GF diets L-Val + Fat'!AM$342","v":933.06299604687842},{"$f":"'GF diets L-Val + Fat'!AN$342","v":966.12397518923876},{"$f":"'GF diets L-Val + Fat'!AO$342","v":953.16426326229521},{"$f":"'GF diets L-Val + Fat'!AP$342","v":886.48861715083513},null,0.25,{"$f":"'GF diets L-Val + Fat'!AK$344","v":562.47954762881193},{"$f":"'GF diets L-Val + Fat'!AL$344","v":491.72132395957289},{"$f":"'GF diets L-Val + Fat'!AM$344","v":428.09323903250197},{"$f":"'GF diets L-Val + Fat'!AN$344","v":373.36354614001243},{"$f":"'GF diets L-Val + Fat'!AO$344","v":329.82936941959872},{"$f":"'GF diets L-Val + Fat'!AP$344","v":291.66380583471283},null,0.25,1.7778424197210347,2.0336722270808321,2.3359397178521601,2.6783546769319493,3.0318706965353073,3.4286050582728262,null,0.25,{"$f":"'GF diets L-Val + Fat'!AK$351","v":84.421941546879992},{"$f":"'GF diets L-Val + Fat'!AL$351","v":119.58445030279348},{"$f":"'GF diets L-Val + Fat'!AM$351","v":159.49647340382154},{"$f":"'GF diets L-Val + Fat'!AN$351","v":199.26519952236791},{"$f":"'GF diets L-Val + Fat'!AO$351","v":238.82366439345145},{"$f":"'GF diets L-Val + Fat'!AP$351","v":282.79861142243789},null,null,0.25,34.421941546879992,34.584450302793485,39.49647340382154,39.265199522367908,38.823664393451452,42.798611422437887]
[0.3,{"$f":"'GF diets L-Val + Fat'!$AR$353","v":74.197896015976724},{"$f":"'GF diets L-Val + Fat'!$AS$353","v":74.193065723946503},{"$f":"'GF diets L-Val + Fat'!$AT$353","v":74.185182983890797},{"$f":"'GF diets L-Val + Fat'!$AU$353","v":74.180042129510426},{"$f":"'GF diets L-Val + Fat'!$AV$353","v":74.176930322064322},{"$f":"'GF diets L-Val + Fat'!$AW$353","v":74.17490964293988},null,0.3,{"$f":"'GF diets L-Val + Fat'!AR$316","v":15.505913621013237},{"$f":"'GF diets L-Val + Fat'!AS$316","v":15.57594830319705},{"$f":"'GF diets L-Val + Fat'!AT$316","v":15.638534558654516},{"$f":"'GF diets L-Val + Fat'!AU$316","v":15.666865169825762},{"$f":"'GF diets L-Val + Fat'!AV$316","v":15.691067181211277},{"$f":"'GF diets L-Val + Fat'!AW$316","v":15.702496972492927},null,0.3,{"$f":"'GF diets L-Val + Fat'!AR$351*'GF diets No L-Val'!AR$353/100","v":62.526659330415534},{"$f":"'GF diets L-Val + Fat'!AS$351*'GF diets No L-Val'!AS$353/100","v":88.622094694522715},{"$f":"'GF diets L-Val + Fat'!AT$351*'GF diets No L-Val'!AT$353/100","v":118.19457352900814},{"$f":"'GF diets L-Val + Fat'!AU$351*'GF diets No L-Val'!AU$353/100","v":147.63732008430739},{"$f":"'GF diets L-Val + Fat'!AV$351*'GF diets No L-Val'!AV$353/100","v":176.89217662527261},{"$f":"'GF diets L-Val + Fat'!AW$351*'GF diets No L-Val'!AW$353/100","v":209.33691191328128},null,0.3,{"$f":"'GF diets L-Val + Fat'!AR$342","v":725.70833548714313},{"$f":"'GF diets L-Val + Fat'!AS$342","v":850.26358207143301},{"$f":"'GF diets L-Val + Fat'!AT$342","v":930.71636813888495},{"$f":"'GF diets L-Val + Fat'!AU$342","v":962.53800879494202},{"$f":"'GF diets L-Val + Fat'!AV$342","v":947.39723970899036},{"$f":"'GF diets L-Val + Fat'!AW$342","v":877.37148556115062},null,0.3,{"$f":"'GF diets L-Val + Fat'!AR$344","v":566.12740071945211},{"$f":"'GF diets L-Val + Fat'!AS$344","v":495.68312146732518},{"$f":"'GF diets L-Val + Fat'!AT$344","v":431.72916717503296},{"$f":"'GF diets L-Val + Fat'!AU$344","v":375.90290387684212},{"$f":"'GF diets L-Val + Fat'!AV$344","v":330.59292191323306},{"$f":"'GF diets L-Val + Fat'!AW$344","v":289.77555148590523},null,0.3,1.7663868569674763,2.0174178960134692,2.3162669470385282,2.6602614390221158,3.0248681496649183,3.4509467581796329,null,0.3,{"$f":"'GF diets L-Val + Fat'!AR$351","v":84.308850526242281},{"$f":"'GF diets L-Val + Fat'!AS$351","v":119.50307684235254},{"$f":"'GF diets L-Val + Fat'!AT$351","v":159.39714065207249},{"$f":"'GF diets L-Val + Fat'!AU$351","v":199.11945841961372},{"$f":"'GF diets L-Val + Fat'!AV$351","v":238.58876527047931},{"$f":"'GF diets L-Val + Fat'!AW$351","v":282.35844627285587},null,null,0.3,34.308850526242281,34.503076842352542,39.397140652072494,39.119458419613721,38.588765270479314,42.358446272855872]
[]
["GF No L-Val + WD",null,null,null,null,null,null,null,"GF No L-Val + WD",null,null,null,null,null,null,null,"GF No L-Val + WD",null,null,null,null,null,null,null,"GF No L-Val + WD",null,null,null,null,null,null,null,"GF No L-Val + WD",null,null,null,null,null,null,null,"GF No L-Val + WD",null,null,null,null,null,null,null,"GF No L-Val + WD",null,null,null,null,null,null,null,null,"GF No L-Val + WD",null,null,null,null,null,null,null,null,"GF No L-Val + WD"]
[null,"Phase 1","Phase 2","Phase 3","Phase 4","Phase 5","Phase 6",null,null,"Phase 1","Phase 2","Phase 3","Phase 4","Phase 5","Phase 6",null,null,"Phase 1","Phase 2","Phase 3","Phase 4","Phase 5","Phase 6",null,null,"Phase 1","Phase 2","Phase 3","Phase 4","Phase 5","Phase 6",null,null,"Phase 1","Phase 2","Phase 3","Phase 4","Phase 5","Phase 6",null,null,"Phase 1","Phase 2","Phase 3","Phase 4","Phase 5","Phase 6",null,null,"Phase 1","Phase 2","Phase 3","Phase 4","Phase 5","Phase 6",null,null,null,"Phase 1","Phase 2","Phase 3","Phase 4","Phase 5","Phase 6",null,null,"Phase 1","Phase 2","Phase 3","Phase 4","Phase 5","Phase 6"]
[0,{"$f":"'GF diets No L-Val + WD'!B$353","v":74.819735985643831},{"$f":"'GF diets No L-Val + WD'!C$353","v":74.814756887824899},{"$f":"'GF diets No L-Val + WD'!D$353","v":74.80663311148534},{"$f":"'GF diets No L-Val + WD'!E$353","v":74.799676279957168},{"$f":"'GF diets No L-Val + WD'!F$353","v":74.794168075350882},{"$f":"'GF diets No L-Val + WD'!G$353","v":75.000465259716705},null,0,{"$f":"'GF diets No L-Val + WD'!B$316","v":8.5675537105360302},{"$f":"'GF diets No L-Val + WD'!C$316","v":8.6397459364158564},{"$f":"'GF diets No L-Val + WD'!D$316","v":8.7042340935531328},{"$f":"'GF diets No L-Val + WD'!E$316","v":8.7574905031042753},{"$f":"'GF diets No L-Val + WD'!F$316","v":8.7980354970428483},{"$f":"'GF diets No L-Val + WD'!G$316","v":8.8153381410832843},null,0,{"$f":"'GF diets No L-Val + WD'!B$351*'GF diets No L-Val'!B$353/100","v":63.775222936730451},{"$f":"'GF diets No L-Val + WD'!C$351*'GF diets No L-Val'!C$353/100","v":90.029655617817099},{"$f":"'GF diets No L-Val + WD'!D$351*'GF diets No L-Val'!D$353/100","v":120.02655281623707},{"$f":"'GF diets No L-Val + WD'!E$351*'GF diets No L-Val'!E$353/100","v":150.01929240335414},{"$f":"'GF diets No L-Val + WD'!F$351*'GF diets No L-Val'!F$353/100","v":180.0099432286994},{"$f":"'GF diets No L-Val + WD'!G$351*'GF diets No L-Val'!G$353/100","v":213.75252629034401},null,0,{"$f":"'GF diets No L-Val + WD'!B$342","v":757.46635553023782},{"$f":"'GF diets No L-Val + WD'!C$342","v":870.42326519783569},{"$f":"'GF diets No L-Val + WD'!D$342","v":946.21888727648684},{"$f":"'GF diets No L-Val + WD'!E$342","v":982.61557306834152},{"$f":"'GF diets No L-Val + WD'!F$342","v":976.63637619430801},{"$f":"'GF diets No L-Val + WD'!G$342","v":919.74779687896194},null,0,{"$f":"'GF diets No L-Val + WD'!B$344","v":541.48123876174384},{"$f":"'GF diets No L-Val + WD'!C$344","v":471.05106861362759},{"$f":"'GF diets No L-Val + WD'!D$344","v":410.02340376494885},{"$f":"'GF diets No L-Val + WD'!E$344","v":360.7957609066396},{"$f":"'GF diets No L-Val + WD'!F$344","v":326.28328855841602},{"$f":"'GF diets No L-Val + WD'!G$344","v":301.12774430436968},null,0,{"$f":"1/(AH44/1000)","v":1.846786053542306},{"$f":"1/(AI44/1000)","v":2.1229120718123977},{"$f":"1/(AJ44/1000)","v":2.4388851729382326},{"$f":"1/(AK44/1000)","v":2.7716511898230491},{"$f":"1/(AL44/1000)","v":3.0648213839519558},{"$f":"1/(AM44/1000)","v":3.3208497686258829},null,0,{"$f":"'GF diets No L-Val + WD'!B$351","v":84.999929826400006},{"$f":"'GF diets No L-Val + WD'!C$351","v":119.99992982640001},{"$f":"'GF diets No L-Val + WD'!D$351","v":159.99991980160002},{"$f":"'GF diets No L-Val + WD'!E$351","v":199.99991980160002},{"$f":"'GF diets No L-Val + WD'!F$351","v":239.99991980160002},{"$f":"'GF diets No L-Val + WD'!G$351","v":284.9999097768},null,null,0,{"$f":"AX44-50","v":34.999929826400006},{"$f":"AY44-85","v":34.999929826400006},{"$f":"AZ44-120","v":39.999919801600015},{"$f":"BA44-160","v":39.999919801600015},{"$f":"BB44-200","v":39.999919801600015},{"$f":"BC44-240","v":44.999909776799996},null,"BW, lb",{"$f":"VLOOKUP('DDGS Calculator'!$C$31,Performance!AW44:AX50,2,FALSE)","v":84.999929826400006},{"$f":"BO44+VLOOKUP('DDGS Calculator'!$D$31,Performance!BF44:BL50,3,FALSE)","v":119.99985965280001},{"$f":"BP44+VLOOKUP('DDGS Calculator'!$E$31,Performance!BF44:BL50,4,FALSE)","v":159.99977945440003},{"$f":"BQ44+(VLOOKUP('DDGS Calculator'!$F$31,Performance!BF44:BL50,5,FALSE))","v":199.99969925600004},{"$f":"BR44+VLOOKUP('DDGS Calculator'!$G$31,Performance!BF44:BL50,6,FALSE)","v":239.99961905760006},{"$f":"BS44+VLOOKUP('DDGS Calculator'!$H$31,Performance!BF44:BL50,7,FALSE)","v":284.99952883440005}]
[0.05,{"$f":"'GF diets No L-Val + WD'!I$353","v":74.675299741686914},{"$f":"'GF diets No L-Val + WD'!J$353","v":74.670369685187495},{"$f":"'GF diets No L-Val + WD'!K$353","v":74.662321891542689},{"$f":"'GF diets No L-Val + WD'!L$353","v":74.655283225998147},{"$f":"'GF diets No L-Val + WD'!M$353","v":74.649733685574489},{"$f":"'GF diets No L-Val + WD'!N$353","v":74.939133482989902},null,0.05,{"$f":"'GF diets No L-Val + WD'!I$316","v":9.7722934215788015},{"$f":"'GF diets No L-Val + WD'!J$316","v":9.8437745945440067},{"$f":"'GF diets No L-Val + WD'!K$316","v":9.9076860389027352},{"$f":"'GF diets No L-Val + WD'!L$316","v":9.9625547470046598},{"$f":"'GF diets No L-Val + WD'!M$316","v":10.002508724199311},{"$f":"'GF diets No L-Val + WD'!N$316","v":8.8153381410832843},null,0.05,{"$f":"'GF diets No L-Val + WD'!I$351*'GF diets No L-Val'!I$353/100","v":63.483769447614051},{"$f":"'GF diets No L-Val + WD'!J$351*'GF diets No L-Val'!J$353/100","v":89.695733348579111},{"$f":"'GF diets No L-Val + WD'!K$351*'GF diets No L-Val'!K$353/100","v":119.59911813324912},{"$f":"'GF diets No L-Val + WD'!L$351*'GF diets No L-Val'!L$353/100","v":149.49219282007689},{"$f":"'GF diets No L-Val + WD'!M$351*'GF diets No L-Val'!M$353/100","v":179.34120831110215},{"$f":"'GF diets No L-Val + WD'!N$351*'GF diets No L-Val'!N$353/100","v":213.34090433298041},null,0.05,{"$f":"'GF diets No L-Val + WD'!I$342","v":752.59141313154385},{"$f":"'GF diets No L-Val + WD'!J$342","v":865.08750767091408},{"$f":"'GF diets No L-Val + WD'!K$342","v":940.00942055353994},{"$f":"'GF diets No L-Val + WD'!L$342","v":974.79583887856711},{"$f":"'GF diets No L-Val + WD'!M$342","v":966.1311541434236},{"$f":"'GF diets No L-Val + WD'!N$342","v":919.74779687896194},null,0.05,{"$f":"'GF diets No L-Val + WD'!I$344","v":541.82150887571606},{"$f":"'GF diets No L-Val + WD'!J$344","v":471.24993400174304},{"$f":"'GF diets No L-Val + WD'!K$344","v":409.94453044447192},{"$f":"'GF diets No L-Val + WD'!L$344","v":360.09326303576006},{"$f":"'GF diets No L-Val + WD'!M$344","v":324.24312512712072},{"$f":"'GF diets No L-Val + WD'!N$344","v":301.12774430436968},null,0.05,1.8456262507463166,2.1220162123063582,2.4393544144027861,2.7770583419681811,3.0841054829086856,3.3208497686258829,null,0.05,{"$f":"'GF diets No L-Val + WD'!I$351","v":84.774674958367157},{"$f":"'GF diets No L-Val + WD'!J$351","v":119.78537729671801},{"$f":"'GF diets No L-Val + WD'!K$351","v":159.73742380595064},{"$f":"'GF diets No L-Val + WD'!L$351","v":199.68159656699643},{"$f":"'GF diets No L-Val + WD'!M$351","v":239.5696584553323},{"$f":"'GF diets No L-Val + WD'!N$351","v":284.9999097768},null,null,0.05,{"$f":"AX45-50","v":34.774674958367157},{"$f":"AY45-85","v":34.785377296718011},{"$f":"AZ45-120","v":39.737423805950641},{"$f":"BA45-160","v":39.681596566996433},{"$f":"BB45-200","v":39.569658455332302},{"$f":"BC45-240","v":44.999909776799996},null,"Yield, %",null,null,null,null,null,{"$f":"((0.03492*22.19)-(0.05092*VLOOKUP('DDGS Calculator'!$G$31,Performance!I43:O50,6,FALSE))-(0.06897*VLOOKUP('DDGS Calculator'!$H$31,Performance!I43:O50,7,FALSE))-(0.00289*VLOOKUP('DDGS Calculator'!$H$31,Performance!I43:O50,7,FALSE)*22.19)+76.0769-(75.23-'DDGS Calculator'!$G$9))","v":75.000465259716705}]
[0.1,{"$f":"'GF diets No L-Val + WD'!P$353","v":74.530985265028065},{"$f":"'GF diets No L-Val + WD'!Q$353","v":74.526081079333622},{"$f":"'GF diets No L-Val + WD'!R$353","v":74.518075292758269},{"$f":"'GF diets No L-Val + WD'!S$353","v":74.511042001094324},{"$f":"'GF diets No L-Val + WD'!T$353","v":74.505557830837176},{"$f":"'GF diets No L-Val + WD'!U$353","v":74.877921899316661},null,0.1,{"$f":"'GF diets No L-Val + WD'!P$316","v":10.97601747411734},{"$f":"'GF diets No L-Val + WD'!Q$316","v":11.047123544792175},{"$f":"'GF diets No L-Val + WD'!R$316","v":11.110702861257101},{"$f":"'GF diets No L-Val + WD'!S$316","v":11.165738860525623},{"$f":"'GF diets No L-Val + WD'!T$316","v":11.204621522181363},{"$f":"'GF diets No L-Val + WD'!U$316","v":8.8153381410832843},null,0.1,{"$f":"'GF diets No L-Val + WD'!P$351*'GF diets No L-Val'!P$353/100","v":63.2243123305729},{"$f":"'GF diets No L-Val + WD'!Q$351*'GF diets No L-Val'!Q$353/100","v":89.390218050697172},{"$f":"'GF diets No L-Val + WD'!R$351*'GF diets No L-Val'!R$353/100","v":119.19914809292877},{"$f":"'GF diets No L-Val + WD'!S$351*'GF diets No L-Val'!S$353/100","v":148.9768644478232},{"$f":"'GF diets No L-Val + WD'!T$351*'GF diets No L-Val'!T$353/100","v":178.69095874216219},{"$f":"'GF diets No L-Val + WD'!U$351*'GF diets No L-Val'!U$353/100","v":212.9302259812232},null,0.1,{"$f":"'GF diets No L-Val + WD'!P$342","v":748.62113056984265},{"$f":"'GF diets No L-Val + WD'!Q$342","v":860.67248275182237},{"$f":"'GF diets No L-Val + WD'!R$342","v":934.64211304565606},{"$f":"'GF diets No L-Val + WD'!S$342","v":967.32292311801757},{"$f":"'GF diets No L-Val + WD'!T$342","v":956.16918565871811},{"$f":"'GF diets No L-Val + WD'!U$342","v":919.74779687896194},null,0.1,{"$f":"'GF diets No L-Val + WD'!P$344","v":541.66115958367732},{"$f":"'GF diets No L-Val + WD'!Q$344","v":471.06464741462037},{"$f":"'GF diets No L-Val + WD'!R$344","v":409.59769975491599},{"$f":"'GF diets No L-Val + WD'!S$344","v":359.05749083225191},{"$f":"'GF diets No L-Val + WD'!T$344","v":322.09014957201407},{"$f":"'GF diets No L-Val + WD'!U$344","v":301.12774430436968},null,0.1,1.8461726160476477,2.122850877238136,2.4414199606061091,2.7850693148947281,3.1047208408229086,3.3208497686258829,null,0.1,{"$f":"'GF diets No L-Val + WD'!P$351","v":84.591221411361403},{"$f":"'GF diets No L-Val + WD'!Q$351","v":119.60784772191616},{"$f":"'GF diets No L-Val + WD'!R$351","v":159.51052884200283},{"$f":"'GF diets No L-Val + WD'!S$351","v":199.3773915059179},{"$f":"'GF diets No L-Val + WD'!T$351","v":239.16164709194138},{"$f":"'GF diets No L-Val + WD'!U$351","v":284.9999097768},null,null,0.1,34.591221411361403,34.607847721916158,39.510528842002827,39.377391505917899,39.161647091941376,44.999909776799996,null,"HCW, lb",null,null,null,null,null,{"$f":"BT44*(BT45/100)","v":213.75097261380051}]
[0.15,{"$f":"'GF diets No L-Val + WD'!W$353","v":74.386652700505479},{"$f":"'GF diets No L-Val + WD'!X$353","v":74.381771009615932},{"$f":"'GF diets No L-Val + WD'!Y$353","v":74.373774325262886},{"$f":"'GF diets No L-Val + WD'!Z$353","v":74.366782794159633},{"$f":"'GF diets No L-Val + WD'!AA$353","v":74.361397916858891},{"$f":"'GF diets No L-Val + WD'!AB$353","v":74.816714101419052},null,0.15,{"$f":"'GF diets No L-Val + WD'!W$316","v":12.179892397151711},{"$f":"'GF diets No L-Val + WD'!X$316","v":12.250672314355418},{"$f":"'GF diets No L-Val + WD'!Y$316","v":12.314360453677414},{"$f":"'GF diets No L-Val + WD'!Z$316","v":12.368710621126661},{"$f":"'GF diets No L-Val + WD'!AA$316","v":12.406659972645041},{"$f":"'GF diets No L-Val + WD'!AB$316","v":8.8153381410832843},null,0.15,{"$f":"'GF diets No L-Val + WD'!W$351*'GF diets No L-Val'!W$353/100","v":62.988450924347298},{"$f":"'GF diets No L-Val + WD'!X$351*'GF diets No L-Val'!X$353/100","v":89.102091926506148},{"$f":"'GF diets No L-Val + WD'!Y$351*'GF diets No L-Val'!Y$353/100","v":118.80348065255436},{"$f":"'GF diets No L-Val + WD'!Z$351*'GF diets No L-Val'!Z$353/100","v":148.47991649931836},{"$f":"'GF diets No L-Val + WD'!AA$351*'GF diets No L-Val'!AA$353/100","v":178.05493218684026},{"$f":"'GF diets No L-Val + WD'!AB$351*'GF diets No L-Val'!AB$353/100","v":212.51989354519287},null,0.15,{"$f":"'GF diets No L-Val + WD'!W$342","v":745.32048522697846},{"$f":"'GF diets No L-Val + WD'!X$342","v":856.82099481867851},{"$f":"'GF diets No L-Val + WD'!Y$342","v":929.39325528346376},{"$f":"'GF diets No L-Val + WD'!Z$342","v":960.42772548353014},{"$f":"'GF diets No L-Val + WD'!AA$342","v":946.63313524160253},{"$f":"'GF diets No L-Val + WD'!AB$342","v":919.74779687896194},null,0.15,{"$f":"'GF diets No L-Val + WD'!W$344","v":540.76312985901927},{"$f":"'GF diets No L-Val + WD'!X$344","v":470.30487978575286},{"$f":"'GF diets No L-Val + WD'!Y$344","v":408.70380713621705},{"$f":"'GF diets No L-Val + WD'!Z$344","v":357.81692622772732},{"$f":"'GF diets No L-Val + WD'!AA$344","v":319.79448060749678},{"$f":"'GF diets No L-Val + WD'!AB$344","v":301.12774430436968},null,0.15,1.8492385016351003,2.1262802981239521,2.4467596888979055,2.7947252538958001,3.1270083151540096,3.3208497686258829,null,0.15,{"$f":"'GF diets No L-Val + WD'!W$351","v":84.438709572179604},{"$f":"'GF diets No L-Val + WD'!X$351","v":119.45297815092717},{"$f":"'GF diets No L-Val + WD'!Y$351","v":159.28864116536596},{"$f":"'GF diets No L-Val + WD'!Z$351","v":199.09670400926214},{"$f":"'GF diets No L-Val + WD'!AA$351","v":238.77108001295238},{"$f":"'GF diets No L-Val + WD'!AB$351","v":284.9999097768},null,null,0.15,34.438709572179604,34.452978150927166,39.288641165365959,39.09670400926214,38.771080012952382,44.999909776799996]
[0.2,{"$f":"'GF diets No L-Val + WD'!AD$353","v":74.242326256137304},{"$f":"'GF diets No L-Val + WD'!AE$353","v":74.237436279064298},{"$f":"'GF diets No L-Val + WD'!AF$353","v":74.229460952889426},{"$f":"'GF diets No L-Val + WD'!AG$353","v":74.222589612562516},{"$f":"'GF diets No L-Val + WD'!AH$353","v":74.217635227410724},{"$f":"'GF diets No L-Val + WD'!AI$353","v":74.755766689616635},null,0.2,{"$f":"'GF diets No L-Val + WD'!AD$316","v":13.383716272105108},{"$f":"'GF diets No L-Val + WD'!AE$316","v":13.454616331160009},{"$f":"'GF diets No L-Val + WD'!AF$316","v":13.517906097258157},{"$f":"'GF diets No L-Val + WD'!AG$316","v":13.57080772749149},{"$f":"'GF diets No L-Val + WD'!AH$316","v":13.603584792016889},{"$f":"'GF diets No L-Val + WD'!AI$316","v":8.8153381410832843},null,0.2,{"$f":"'GF diets No L-Val + WD'!AD$351*'GF diets No L-Val'!AD$353/100","v":62.776108672213979},{"$f":"'GF diets No L-Val + WD'!AE$351*'GF diets No L-Val'!AE$353/100","v":88.825828163608961},{"$f":"'GF diets No L-Val + WD'!AF$351*'GF diets No L-Val'!AF$353/100","v":118.42803981718731},{"$f":"'GF diets No L-Val + WD'!AG$351*'GF diets No L-Val'!AG$353/100","v":147.99717034907565},{"$f":"'GF diets No L-Val + WD'!AH$351*'GF diets No L-Val'!AH$353/100","v":177.42414122447673},{"$f":"'GF diets No L-Val + WD'!AI$351*'GF diets No L-Val'!AI$353/100","v":212.11143575251089},null,0.2,{"$f":"'GF diets No L-Val + WD'!AD$342","v":742.69055046940025},{"$f":"'GF diets No L-Val + WD'!AE$342","v":853.35182138732102},{"$f":"'GF diets No L-Val + WD'!AF$342","v":924.76743851556557},{"$f":"'GF diets No L-Val + WD'!AG$342","v":953.97017769775789},{"$f":"'GF diets No L-Val + WD'!AH$342","v":937.20083374915134},{"$f":"'GF diets No L-Val + WD'!AI$342","v":919.74779687896194},null,0.2,{"$f":"'GF diets No L-Val + WD'!AD$344","v":539.10584573159451},{"$f":"'GF diets No L-Val + WD'!AE$344","v":468.85186337965195},{"$f":"'GF diets No L-Val + WD'!AF$344","v":407.44613010989991},{"$f":"'GF diets No L-Val + WD'!AG$344","v":356.32917138007082},{"$f":"'GF diets No L-Val + WD'!AH$344","v":317.15327272306877},{"$f":"'GF diets No L-Val + WD'!AI$344","v":301.12774430436968},null,0.2,1.8549233103620837,2.1328698424949031,2.4543121804354144,2.806393863648541,3.1530496009517073,3.3208497686258829,null,0.2,{"$f":"'GF diets No L-Val + WD'!AD$351","v":84.317189037514012},{"$f":"'GF diets No L-Val + WD'!AE$351","v":119.31348156926133},{"$f":"'GF diets No L-Val + WD'!AF$351","v":159.09309162265021},{"$f":"'GF diets No L-Val + WD'!AG$351","v":198.83383222246121},{"$f":"'GF diets No L-Val + WD'!AH$351","v":238.38476216846632},{"$f":"'GF diets No L-Val + WD'!AI$351","v":284.9999097768},null,null,0.2,34.317189037514012,34.313481569261327,39.093091622650206,38.833832222461211,38.384762168466324,44.999909776799996]
[0.25,{"$f":"'GF diets No L-Val + WD'!AK$353","v":74.09823816147032},{"$f":"'GF diets No L-Val + WD'!AL$353","v":74.093205874624587},{"$f":"'GF diets No L-Val + WD'!AM$353","v":74.085220644142083},{"$f":"'GF diets No L-Val + WD'!AN$353","v":74.078705407736166},{"$f":"'GF diets No L-Val + WD'!AO$353","v":74.074237036573962},{"$f":"'GF diets No L-Val + WD'!AP$353","v":74.694948452156908},null,0.25,{"$f":"'GF diets No L-Val + WD'!AK$316","v":14.585552077151283},{"$f":"'GF diets No L-Val + WD'!AL$316","v":14.658515493792445},{"$f":"'GF diets No L-Val + WD'!AM$316","v":14.720425502595312},{"$f":"'GF diets No L-Val + WD'!AN$316","v":14.769182625368545},{"$f":"'GF diets No L-Val + WD'!AO$316","v":14.79797280183068},{"$f":"'GF diets No L-Val + WD'!AP$316","v":8.8153381410832843},null,0.25,{"$f":"'GF diets No L-Val + WD'!AK$351*'GF diets No L-Val'!AK$353/100","v":62.57889239624879},{"$f":"'GF diets No L-Val + WD'!AL$351*'GF diets No L-Val'!AL$353/100","v":88.570795858206367},{"$f":"'GF diets No L-Val + WD'!AM$351*'GF diets No L-Val'!AM$353/100","v":118.07253047976111},{"$f":"'GF diets No L-Val + WD'!AN$351*'GF diets No L-Val'!AN$353/100","v":147.52431739884176},{"$f":"'GF diets No L-Val + WD'!AO$351*'GF diets No L-Val'!AO$353/100","v":176.80510144645189},{"$f":"'GF diets No L-Val + WD'!AP$351*'GF diets No L-Val'!AP$353/100","v":211.70335386269639},null,0.25,{"$f":"'GF diets No L-Val + WD'!AK$342","v":740.485091285458},{"$f":"'GF diets No L-Val + WD'!AL$342","v":850.57562438691457},{"$f":"'GF diets No L-Val + WD'!AM$342","v":920.75457010940886},{"$f":"'GF diets No L-Val + WD'!AN$342","v":947.79441678421176},{"$f":"'GF diets No L-Val + WD'!AO$342","v":928.08975082836355},{"$f":"'GF diets No L-Val + WD'!AP$342","v":919.74779687896194},null,0.25,{"$f":"'GF diets No L-Val + WD'!AK$344","v":536.98229774250331},{"$f":"'GF diets No L-Val + WD'!AL$344","v":466.88584266745625},{"$f":"'GF diets No L-Val + WD'!AM$344","v":405.83767670373345},{"$f":"'GF diets No L-Val + WD'!AN$344","v":354.40157021852133},{"$f":"'GF diets No L-Val + WD'!AO$344","v":314.27564432564225},{"$f":"'GF diets No L-Val + WD'!AP$344","v":301.12774430436968},null,0.25,1.8622587824664669,2.1418511949017467,2.4640393374073359,2.8216579271457731,3.1819201330276563,3.3208497686258829,null,0.25,{"$f":"'GF diets No L-Val + WD'!AK$351","v":84.215282106764661},{"$f":"'GF diets No L-Val + WD'!AL$351","v":119.20184979320564},{"$f":"'GF diets No L-Val + WD'!AM$351","v":158.92345356278406},{"$f":"'GF diets No L-Val + WD'!AN$351","v":198.58243132539374},{"$f":"'GF diets No L-Val + WD'!AO$351","v":238.01160044142554},{"$f":"'GF diets No L-Val + WD'!AP$351","v":284.9999097768},null,null,0.25,34.215282106764661,34.201849793205639,38.923453562784061,38.582431325393742,38.011600441425543,44.999909776799996]
[0.3,{"$f":"'GF diets No L-Val + WD'!AR$353","v":73.953814285373568},{"$f":"'GF diets No L-Val + WD'!AS$353","v":73.948839283638051},{"$f":"'GF diets No L-Val + WD'!AT$353","v":73.940999851998512},{"$f":"'GF diets No L-Val + WD'!AU$353","v":73.935099256539942},{"$f":"'GF diets No L-Val + WD'!AV$353","v":73.931033600109558},{"$f":"'GF diets No L-Val + WD'!AW$353","v":74.634128384511854},null,0.3,{"$f":"'GF diets No L-Val + WD'!AR$316","v":15.79018862812935},{"$f":"'GF diets No L-Val + WD'!AS$316","v":15.862321464659933},{"$f":"'GF diets No L-Val + WD'!AT$316","v":15.922730738306432},{"$f":"'GF diets No L-Val + WD'!AU$316","v":15.963684127381153},{"$f":"'GF diets No L-Val + WD'!AV$316","v":15.992396754011763},{"$f":"'GF diets No L-Val + WD'!AW$316","v":8.8153381410832843},null,0.3,{"$f":"'GF diets No L-Val + WD'!AR$351*'GF diets No L-Val'!AR$353/100","v":62.413644947161146},{"$f":"'GF diets No L-Val + WD'!AS$351*'GF diets No L-Val'!AS$353/100","v":88.334665978985925},{"$f":"'GF diets No L-Val + WD'!AT$351*'GF diets No L-Val'!AT$353/100","v":117.73553586566139},{"$f":"'GF diets No L-Val + WD'!AU$351*'GF diets No L-Val'!AU$353/100","v":147.06407148538602},{"$f":"'GF diets No L-Val + WD'!AV$351*'GF diets No L-Val'!AV$353/100","v":176.20171793299843},{"$f":"'GF diets No L-Val + WD'!AW$351*'GF diets No L-Val'!AW$353/100","v":211.29525890146718},null,0.3,{"$f":"'GF diets No L-Val + WD'!AR$342","v":739.21219320971636},{"$f":"'GF diets No L-Val + WD'!AS$342","v":848.42796213456415},{"$f":"'GF diets No L-Val + WD'!AT$342","v":917.31575363788306},{"$f":"'GF diets No L-Val + WD'!AU$342","v":941.99410601919431},{"$f":"'GF diets No L-Val + WD'!AV$342","v":919.44377030358305},{"$f":"'GF diets No L-Val + WD'!AW$342","v":919.74779687896194},null,0.3,{"$f":"'GF diets No L-Val + WD'!AR$344","v":533.6457989086922},{"$f":"'GF diets No L-Val + WD'!AS$344","v":464.35875049602089},{"$f":"'GF diets No L-Val + WD'!AT$344","v":403.82820905437643},{"$f":"'GF diets No L-Val + WD'!AU$344","v":352.04701098428052},{"$f":"'GF diets No L-Val + WD'!AV$344","v":311.24365634482672},{"$f":"'GF diets No L-Val + WD'!AW$344","v":301.12774430436968},null,0.3,1.8739021314231348,2.1535073882678324,2.4763005099164519,2.8405297269933407,3.2129168887930697,3.3208497686258829,null,0.3,{"$f":"'GF diets No L-Val + WD'!AR$351","v":84.156465721950099},{"$f":"'GF diets No L-Val + WD'!AS$351","v":119.11549160192362},{"$f":"'GF diets No L-Val + WD'!AT$351","v":158.77808269700381},{"$f":"'GF diets No L-Val + WD'!AU$351","v":198.34631413270952},{"$f":"'GF diets No L-Val + WD'!AV$351","v":237.65748786747162},{"$f":"'GF diets No L-Val + WD'!AW$351","v":284.9999097768},null,null,0.3,34.156465721950099,34.115491601923623,38.778082697003811,38.346314132709523,37.657487867471616,44.999909776799996]
[]
["GF No L-Val + Fat + WD",null,null,null,null,null,null,null,"GF No L-Val + Fat + WD",null,null,null,null,null,null,null,"GF No L-Val + Fat + WD",null,null,null,null,null,null,null,"GF No L-Val + Fat + WD",null,null,null,null,null,null,null,"GF No L-Val + Fat + WD",null,null,null,null,null,null,null,"GF No L-Val + Fat + WD",null,null,null,null,null,null,null,"GF No L-Val + Fat + WD",null,null,null,null,null,null,null,null,"GF No L-Val + Fat + WD",null,null,null,null,null,null,null,null,"GF No L-Val + Fat + WD"]
[null,"Phase 1","Phase 2","Phase 3","Phase 4","Phase 5","Phase 6",null,null,"Phase 1","Phase 2","Phase 3","Phase 4","Phase 5","Phase 6",null,null,"Phase 1","Phase 2","Phase 3","Phase 4","Phase 5","Phase 6",null,null,"Phase 1","Phase 2","Phase 3","Phase 4","Phase 5","Phase 6",null,null,"Phase 1","Phase 2","Phase 3","Phase 4","Phase 5","Phase 6",null,null,"Phase 1","Phase 2","Phase 3","Phase 4","Phase 5","Phase 6",null,null,"Phase 1","Phase 2","Phase 3","Phase 4","Phase 5","Phase 6",null,null,null,"Phase 1","Phase 2","Phase 3","Phase 4","Phase 5","Phase 6",null,null,"Phase 1","Phase 2","Phase 3","Phase 4","Phase 5","Phase 6"]
[0,{"$f":"'GF diets No L-Val + Fat + WD'!B$353","v":74.819735985643831},{"$f":"'GF diets No L-Val + Fat + WD'!C$353","v":74.814756887824899},{"$f":"'GF diets No L-Val + Fat + WD'!D$353","v":74.80663311148534},{"$f":"'GF diets No L-Val + Fat + WD'!E$353","v":74.799676279957168},{"$f":"'GF diets No L-Val + Fat + WD'!F$353","v":74.794168075350882},{"$f":"'GF diets No L-Val + Fat + WD'!G$353","v":75.000490275752696},null,0,{"$f":"'GF diets No L-Val + Fat + WD'!B$316","v":8.5675537105360302},{"$f":"'GF diets No L-Val + Fat + WD'!C$316","v":8.6397459364158564},{"$f":"'GF diets No L-Val + Fat + WD'!D$316","v":8.7042340935531328},{"$f":"'GF diets No L-Val + Fat + WD'!E$316","v":8.7574905031042753},{"$f":"'GF diets No L-Val + Fat + WD'!F$316","v":8.7980354970428483},{"$f":"'GF diets No L-Val + Fat + WD'!G$316","v":8.8153381410832843},null,0,{"$f":"'GF diets No L-Val + Fat + WD'!B$351*'GF diets No L-Val'!B$353/100","v":63.775222936730451},{"$f":"'GF diets No L-Val + Fat + WD'!C$351*'GF diets No L-Val'!C$353/100","v":90.029655617817099},{"$f":"'GF diets No L-Val + Fat + WD'!D$351*'GF diets No L-Val'!D$353/100","v":120.02655281623707},{"$f":"'GF diets No L-Val + Fat + WD'!E$351*'GF diets No L-Val'!E$353/100","v":150.01929240335414},{"$f":"'GF diets No L-Val + Fat + WD'!F$351*'GF diets No L-Val'!F$353/100","v":180.0099432286994},{"$f":"'GF diets No L-Val + Fat + WD'!G$351*'GF diets No L-Val'!G$353/100","v":213.75252629034401},null,0,{"$f":"'GF diets No L-Val + Fat + WD'!B$342","v":757.46635553023782},{"$f":"'GF diets No L-Val + Fat + WD'!C$342","v":870.42326519783569},{"$f":"'GF diets No L-Val + Fat + WD'!D$342","v":946.21888727648684},{"$f":"'GF diets No L-Val + Fat + WD'!E$342","v":982.61557306834152},{"$f":"'GF diets No L-Val + Fat + WD'!F$342","v":976.63637619430801},{"$f":"'GF diets No L-Val + Fat + WD'!G$342","v":919.74779687896194},null,0,{"$f":"'GF diets No L-Val + Fat + WD'!B$344","v":541.48123876174384},{"$f":"'GF diets No L-Val + Fat + WD'!C$344","v":471.05106861362759},{"$f":"'GF diets No L-Val + Fat + WD'!D$344","v":410.02340376494885},{"$f":"'GF diets No L-Val + Fat + WD'!E$344","v":360.7957609066396},{"$f":"'GF diets No L-Val + Fat + WD'!F$344","v":326.28328855841602},{"$f":"'GF diets No L-Val + Fat + WD'!G$344","v":301.12774430436968},null,0,{"$f":"1/(AH54/1000)","v":1.846786053542306},{"$f":"1/(AI54/1000)","v":2.1229120718123977},{"$f":"1/(AJ54/1000)","v":2.4388851729382326},{"$f":"1/(AK54/1000)","v":2.7716511898230491},{"$f":"1/(AL54/1000)","v":3.0648213839519558},{"$f":"1/(AM54/1000)","v":3.3208497686258829},null,0,{"$f":"'GF diets No L-Val + Fat + WD'!B$351","v":84.999929826400006},{"$f":"'GF diets No L-Val + Fat + WD'!C$351","v":119.99992982640001},{"$f":"'GF diets No L-Val + Fat + WD'!D$351","v":159.99991980160002},{"$f":"'GF diets No L-Val + Fat + WD'!E$351","v":199.99991980160002},{"$f":"'GF diets No L-Val + Fat + WD'!F$351","v":239.99991980160002},{"$f":"'GF diets No L-Val + Fat + WD'!G$351","v":284.9999097768},null,null,0,{"$f":"AX54-50","v":34.999929826400006},{"$f":"AY54-85","v":34.999929826400006},{"$f":"AZ54-120","v":39.999919801600015},{"$f":"BA54-160","v":39.999919801600015},{"$f":"BB54-200","v":39.999919801600015},{"$f":"BC54-240","v":44.999909776799996},null,"BW, lb",{"$f":"VLOOKUP('DDGS Calculator'!$C$31,Performance!AW54:AX60,2,FALSE)","v":84.999929826400006},{"$f":"BO54+VLOOKUP('DDGS Calculator'!$D$31,Performance!BF54:BL60,3,FALSE)","v":119.99985965280001},{"$f":"BP54+VLOOKUP('DDGS Calculator'!$E$31,Performance!BF54:BL60,4,FALSE)","v":159.99977945440003},{"$f":"BQ54+(VLOOKUP('DDGS Calculator'!$F$31,Performance!BF54:BL60,5,FALSE))","v":199.99969925600004},{"$f":"BR54+VLOOKUP('DDGS Calculator'!$G$31,Performance!BF54:BL60,6,FALSE)","v":239.99961905760006},{"$f":"BS54+VLOOKUP('DDGS Calculator'!$H$31,Performance!BF54:BL60,7,FALSE)","v":284.99952883440005}]
[0.05,{"$f":"'GF diets No L-Val + Fat + WD'!I$353","v":74.680980431928646},{"$f":"'GF diets No L-Val + Fat + WD'!J$353","v":74.676043407400968},{"$f":"'GF diets No L-Val + Fat + WD'!K$353","v":74.667874753418587},{"$f":"'GF diets No L-Val + Fat + WD'!L$353","v":74.660749432711754},{"$f":"'GF diets No L-Val + Fat + WD'!M$353","v":74.655239005563715},{"$f":"'GF diets No L-Val + Fat + WD'!N$353","v":74.941484265018289},null,0.05,{"$f":"'GF diets No L-Val + Fat + WD'!I$316","v":9.7249109022549316},{"$f":"'GF diets No L-Val + Fat + WD'!J$316","v":9.7964931050631989},{"$f":"'GF diets No L-Val + Fat + WD'!K$316","v":9.8620823208871773},{"$f":"'GF diets No L-Val + Fat + WD'!L$316","v":9.9169687619060998},{"$f":"'GF diets No L-Val + Fat + WD'!M$316","v":9.9563425413950952},{"$f":"'GF diets No L-Val + Fat + WD'!N$316","v":8.8153381410832843},null,0.05,{"$f":"'GF diets No L-Val + Fat + WD'!I$351*'GF diets No L-Val'!I$353/100","v":63.542381520051478},{"$f":"'GF diets No L-Val + Fat + WD'!J$351*'GF diets No L-Val'!J$353/100","v":89.778471714773573},{"$f":"'GF diets No L-Val + Fat + WD'!K$351*'GF diets No L-Val'!K$353/100","v":119.71450631715474},{"$f":"'GF diets No L-Val + Fat + WD'!L$351*'GF diets No L-Val'!L$353/100","v":149.62948974983175},{"$f":"'GF diets No L-Val + Fat + WD'!M$351*'GF diets No L-Val'!M$353/100","v":179.51522847774294},{"$f":"'GF diets No L-Val + Fat + WD'!N$351*'GF diets No L-Val'!N$353/100","v":213.34090433298041},null,0.05,{"$f":"'GF diets No L-Val + Fat + WD'!I$342","v":754.2853054881557},{"$f":"'GF diets No L-Val + Fat + WD'!J$342","v":867.83541072759328},{"$f":"'GF diets No L-Val + Fat + WD'!K$342","v":943.65504273479746},{"$f":"'GF diets No L-Val + Fat + WD'!L$342","v":979.30093441478289},{"$f":"'GF diets No L-Val + Fat + WD'!M$342","v":971.80691655151008},{"$f":"'GF diets No L-Val + Fat + WD'!N$342","v":919.74779687896194},null,0.05,{"$f":"'GF diets No L-Val + Fat + WD'!I$344","v":544.68195539732392},{"$f":"'GF diets No L-Val + Fat + WD'!J$344","v":474.77645657903764},{"$f":"'GF diets No L-Val + Fat + WD'!K$344","v":413.54184942601609},{"$f":"'GF diets No L-Val + Fat + WD'!L$344","v":363.19410796302145},{"$f":"'GF diets No L-Val + Fat + WD'!M$344","v":326.87384574181419},{"$f":"'GF diets No L-Val + Fat + WD'!N$344","v":301.12774430436968},null,0.05,1.8359337776676292,2.1062543985550946,2.41813495148791,2.7533486311452355,3.0592842254802597,3.3208497686258829,null,0.05,{"$f":"'GF diets No L-Val + Fat + WD'!I$351","v":84.852944088142436},{"$f":"'GF diets No L-Val + Fat + WD'!J$351","v":119.8958713641783},{"$f":"'GF diets No L-Val + Fat + WD'!K$351","v":159.89153707636953},{"$f":"'GF diets No L-Val + Fat + WD'!L$351","v":199.86498855302605},{"$f":"'GF diets No L-Val + Fat + WD'!M$351","v":239.80212009802489},{"$f":"'GF diets No L-Val + Fat + WD'!N$351","v":284.9999097768},null,null,0.05,{"$f":"AX55-50","v":34.852944088142436},{"$f":"AY55-85","v":34.895871364178305},{"$f":"AZ55-120","v":39.891537076369531},{"$f":"BA55-160","v":39.864988553026052},{"$f":"BB55-200","v":39.802120098024886},{"$f":"BC55-240","v":44.999909776799996},null,"Yield, %",null,null,null,null,null,{"$f":"((0.03492*22.19)-(0.05092*VLOOKUP('DDGS Calculator'!$G$31,Performance!I53:O60,6,FALSE))-(0.06897*VLOOKUP('DDGS Calculator'!$H$31,Performance!I53:O60,7,FALSE))-(0.00289*VLOOKUP('DDGS Calculator'!$H$31,Performance!I53:O60,7,FALSE)*22.19)+76.0769-(75.23-'DDGS Calculator'!$G$9))","v":75.000465259716705}]
[0.1,{"$f":"'GF diets No L-Val + Fat + WD'!P$353","v":74.542235883530822},{"$f":"'GF diets No L-Val + Fat + WD'!Q$353","v":74.537310864041388},{"$f":"'GF diets No L-Val + Fat + WD'!R$353","v":74.52916919362228},{"$f":"'GF diets No L-Val + Fat + WD'!S$353","v":74.522050123701007},{"$f":"'GF diets No L-Val + Fat + WD'!T$353","v":74.516552206421764},{"$f":"'GF diets No L-Val + Fat + WD'!U$353","v":74.882586411167438},null,0.1,{"$f":"'GF diets No L-Val + Fat + WD'!P$316","v":10.88217629885041},{"$f":"'GF diets No L-Val + Fat + WD'!Q$316","v":10.953584439917918},{"$f":"'GF diets No L-Val + Fat + WD'!R$316","v":11.018910927897572},{"$f":"'GF diets No L-Val + Fat + WD'!S$316","v":11.073900708285247},{"$f":"'GF diets No L-Val + Fat + WD'!T$316","v":11.113016811836189},{"$f":"'GF diets No L-Val + Fat + WD'!U$316","v":8.8153381410832843},null,0.1,{"$f":"'GF diets No L-Val + Fat + WD'!P$351*'GF diets No L-Val'!P$353/100","v":63.310787530617333},{"$f":"'GF diets No L-Val + Fat + WD'!Q$351*'GF diets No L-Val'!Q$353/100","v":89.528190250236435},{"$f":"'GF diets No L-Val + Fat + WD'!R$351*'GF diets No L-Val'!R$353/100","v":119.40276380299956},{"$f":"'GF diets No L-Val + Fat + WD'!S$351*'GF diets No L-Val'!S$353/100","v":149.24108204677725},{"$f":"'GF diets No L-Val + Fat + WD'!T$351*'GF diets No L-Val'!T$353/100","v":179.02196920145343},{"$f":"'GF diets No L-Val + Fat + WD'!U$351*'GF diets No L-Val'!U$353/100","v":212.9302259812232},null,0.1,{"$f":"'GF diets No L-Val + Fat + WD'!P$342","v":751.12509445025091},{"$f":"'GF diets No L-Val + Fat + WD'!Q$342","v":865.26365633587625},{"$f":"'GF diets No L-Val + Fat + WD'!R$342","v":941.08765007643092},{"$f":"'GF diets No L-Val + Fat + WD'!S$342","v":976.00937610562437},{"$f":"'GF diets No L-Val + Fat + WD'!T$342","v":966.98610467900244},{"$f":"'GF diets No L-Val + Fat + WD'!U$342","v":919.74779687896194},null,0.1,{"$f":"'GF diets No L-Val + Fat + WD'!P$344","v":547.89662275074909},{"$f":"'GF diets No L-Val + Fat + WD'!Q$344","v":478.5323901444587},{"$f":"'GF diets No L-Val + Fat + WD'!R$344","v":417.04800330636067},{"$f":"'GF diets No L-Val + Fat + WD'!S$344","v":365.60182676552984},{"$f":"'GF diets No L-Val + Fat + WD'!T$344","v":327.48823108189816},{"$f":"'GF diets No L-Val + Fat + WD'!U$344","v":301.12774430436968},null,0.1,1.8251618251987713,2.0897227034059731,2.3978055093706003,2.7352160924549391,3.0535448455548324,3.3208497686258829,null,0.1,{"$f":"'GF diets No L-Val + Fat + WD'!P$351","v":84.706921250931089},{"$f":"'GF diets No L-Val + Fat + WD'!Q$351","v":119.79246029130258},{"$f":"'GF diets No L-Val + Fat + WD'!R$351","v":159.78300435976919},{"$f":"'GF diets No L-Val + Fat + WD'!S$351","v":199.73099685171888},{"$f":"'GF diets No L-Val + Fat + WD'!T$351","v":239.60467458032696},{"$f":"'GF diets No L-Val + Fat + WD'!U$351","v":284.9999097768},null,null,0.1,34.706921250931089,34.792460291302575,39.783004359769194,39.730996851718885,39.604674580326957,44.999909776799996,null,"HCW, lb",null,null,null,null,null,{"$f":"BT54*(BT55/100)","v":213.75097261380051}]
[0.15,{"$f":"'GF diets No L-Val + Fat + WD'!W$353","v":74.403507799367745},{"$f":"'GF diets No L-Val + Fat + WD'!X$353","v":74.398596681430249},{"$f":"'GF diets No L-Val + Fat + WD'!Y$353","v":74.39044489275544},{"$f":"'GF diets No L-Val + Fat + WD'!Z$353","v":74.383297547149141},{"$f":"'GF diets No L-Val + Fat + WD'!AA$353","v":74.377863176582721},{"$f":"'GF diets No L-Val + Fat + WD'!AB$353","v":74.823705025837981},null,0.15,{"$f":"'GF diets No L-Val + Fat + WD'!W$316","v":12.039304367605698},{"$f":"'GF diets No L-Val + Fat + WD'!X$316","v":12.110510949271651},{"$f":"'GF diets No L-Val + Fat + WD'!Y$316","v":12.176132952118794},{"$f":"'GF diets No L-Val + Fat + WD'!Z$316","v":12.231314527025717},{"$f":"'GF diets No L-Val + Fat + WD'!AA$316","v":12.26936766276811},{"$f":"'GF diets No L-Val + Fat + WD'!AB$316","v":8.8153381410832843},null,0.15,{"$f":"'GF diets No L-Val + Fat + WD'!W$351*'GF diets No L-Val'!W$353/100","v":63.07969483958319},{"$f":"'GF diets No L-Val + Fat + WD'!X$351*'GF diets No L-Val'!X$353/100","v":89.278277964434622},{"$f":"'GF diets No L-Val + Fat + WD'!Y$351*'GF diets No L-Val'!Y$353/100","v":119.09113916242119},{"$f":"'GF diets No L-Val + Fat + WD'!Z$351*'GF diets No L-Val'!Z$353/100","v":148.85348305499542},{"$f":"'GF diets No L-Val + Fat + WD'!AA$351*'GF diets No L-Val'!AA$353/100","v":178.52880856274879},{"$f":"'GF diets No L-Val + Fat + WD'!AB$351*'GF diets No L-Val'!AB$353/100","v":212.51989354519287},null,0.15,{"$f":"'GF diets No L-Val + Fat + WD'!W$342","v":747.96764329778819},{"$f":"'GF diets No L-Val + Fat + WD'!X$342","v":862.69511755903864},{"$f":"'GF diets No L-Val + Fat + WD'!Y$342","v":938.51681860484973},{"$f":"'GF diets No L-Val + Fat + WD'!Z$342","v":972.73290617894054},{"$f":"'GF diets No L-Val + Fat + WD'!AA$342","v":962.14863178115388},{"$f":"'GF diets No L-Val + Fat + WD'!AB$342","v":919.74779687896194},null,0.15,{"$f":"'GF diets No L-Val + Fat + WD'!W$344","v":551.11052476804502},{"$f":"'GF diets No L-Val + Fat + WD'!X$344","v":482.29829943319055},{"$f":"'GF diets No L-Val + Fat + WD'!Y$344","v":420.54885370178459},{"$f":"'GF diets No L-Val + Fat + WD'!Z$344","v":368.01249324880132},{"$f":"'GF diets No L-Val + Fat + WD'!AA$344","v":328.12799231535098},{"$f":"'GF diets No L-Val + Fat + WD'!AB$344","v":301.12774430436968},null,0.15,1.814518059550553,2.073405610542741,2.3778450260837234,2.7172990546381599,3.0475912553018003,3.3208497686258829,null,0.15,{"$f":"'GF diets No L-Val + Fat + WD'!W$351","v":84.561025938843159},{"$f":"'GF diets No L-Val + Fat + WD'!X$351","v":119.68917851933745},{"$f":"'GF diets No L-Val + Fat + WD'!Y$351","v":159.67432627244077},{"$f":"'GF diets No L-Val + Fat + WD'!Z$351","v":199.59761936345242},{"$f":"'GF diets No L-Val + Fat + WD'!AA$351","v":239.40654667865289},{"$f":"'GF diets No L-Val + Fat + WD'!AB$351","v":284.9999097768},null,null,0.15,34.561025938843159,34.689178519337446,39.674326272440766,39.597619363452424,39.406546678652887,44.999909776799996]
[0.2,{"$f":"'GF diets No L-Val + Fat + WD'!AD$353","v":74.264799922358506},{"$f":"'GF diets No L-Val + Fat + WD'!AE$353","v":74.259883680176316},{"$f":"'GF diets No L-Val + Fat + WD'!AF$353","v":74.251685487512418},{"$f":"'GF diets No L-Val + Fat + WD'!AG$353","v":74.244615984531038},{"$f":"'GF diets No L-Val + Fat + WD'!AH$353","v":74.239978886161893},{"$f":"'GF diets No L-Val + Fat + WD'!AI$353","v":74.765367137312566},null,0.2,{"$f":"'GF diets No L-Val + Fat + WD'!AD$316","v":13.196263888910565},{"$f":"'GF diets No L-Val + Fat + WD'!AE$316","v":13.26754476729513},{"$f":"'GF diets No L-Val + Fat + WD'!AF$316","v":13.333784731577465},{"$f":"'GF diets No L-Val + Fat + WD'!AG$316","v":13.387381425794249},{"$f":"'GF diets No L-Val + Fat + WD'!AH$316","v":13.41504497080839},{"$f":"'GF diets No L-Val + Fat + WD'!AI$316","v":8.8153381410832843},null,0.2,{"$f":"'GF diets No L-Val + Fat + WD'!AD$351*'GF diets No L-Val'!AD$353/100","v":62.849249857283532},{"$f":"'GF diets No L-Val + Fat + WD'!AE$351*'GF diets No L-Val'!AE$353/100","v":89.028658274958218},{"$f":"'GF diets No L-Val + Fat + WD'!AF$351*'GF diets No L-Val'!AF$353/100","v":118.77923475375677},{"$f":"'GF diets No L-Val + Fat + WD'!AG$351*'GF diets No L-Val'!AG$353/100","v":148.46601534602848},{"$f":"'GF diets No L-Val + Fat + WD'!AH$351*'GF diets No L-Val'!AH$353/100","v":178.03768747160015},{"$f":"'GF diets No L-Val + Fat + WD'!AI$351*'GF diets No L-Val'!AI$353/100","v":212.11143575251089},null,0.2,{"$f":"'GF diets No L-Val + Fat + WD'!AD$342","v":744.81662763964982},{"$f":"'GF diets No L-Val + Fat + WD'!AE$342","v":860.12738034446897},{"$f":"'GF diets No L-Val + Fat + WD'!AF$342","v":935.92775852071054},{"$f":"'GF diets No L-Val + Fat + WD'!AG$342","v":969.44372220826813},{"$f":"'GF diets No L-Val + Fat + WD'!AH$342","v":957.32815546195934},{"$f":"'GF diets No L-Val + Fat + WD'!AI$342","v":919.74779687896194},null,0.2,{"$f":"'GF diets No L-Val + Fat + WD'!AD$344","v":554.34922340802814},{"$f":"'GF diets No L-Val + Fat + WD'!AE$344","v":486.06870424698963},{"$f":"'GF diets No L-Val + Fat + WD'!AF$344","v":424.04778376643372},{"$f":"'GF diets No L-Val + Fat + WD'!AG$344","v":370.46855332729479},{"$f":"'GF diets No L-Val + Fat + WD'!AH$344","v":328.6862971059129},{"$f":"'GF diets No L-Val + Fat + WD'!AI$344","v":301.12774430436968},null,0.2,1.8039170215702658,2.0573223317250697,2.3582247998513344,2.6992844359357493,3.0424146330559347,3.3208497686258829,null,0.2,{"$f":"'GF diets No L-Val + Fat + WD'!AD$351","v":84.415427989535374},{"$f":"'GF diets No L-Val + Fat + WD'!AE$351","v":119.5859289784494},{"$f":"'GF diets No L-Val + Fat + WD'!AF$351","v":159.56487759755365},{"$f":"'GF diets No L-Val + Fat + WD'!AG$351","v":199.4637243159558},{"$f":"'GF diets No L-Val + Fat + WD'!AH$351","v":239.20911490417902},{"$f":"'GF diets No L-Val + Fat + WD'!AI$351","v":284.9999097768},null,null,0.2,34.415427989535374,34.585928978449402,39.564877597553647,39.463724315955801,39.209114904179017,44.999909776799996]
[0.25,{"$f":"'GF diets No L-Val + Fat + WD'!AK$353","v":74.126233822363432},{"$f":"'GF diets No L-Val + Fat + WD'!AL$353","v":74.121229691252395},{"$f":"'GF diets No L-Val + Fat + WD'!AM$353","v":74.113013409254918},{"$f":"'GF diets No L-Val + Fat + WD'!AN$353","v":74.106632752503842},{"$f":"'GF diets No L-Val + Fat + WD'!AO$353","v":74.102747888088174},{"$f":"'GF diets No L-Val + Fat + WD'!AP$353","v":74.707166426813956},null,0.25,{"$f":"'GF diets No L-Val + Fat + WD'!AK$316","v":14.352040851084766},{"$f":"'GF diets No L-Val + Fat + WD'!AL$316","v":14.424596036107788},{"$f":"'GF diets No L-Val + Fat + WD'!AM$316","v":14.490157468268242},{"$f":"'GF diets No L-Val + Fat + WD'!AN$316","v":14.534267496185688},{"$f":"'GF diets No L-Val + Fat + WD'!AO$316","v":14.558028287748904},{"$f":"'GF diets No L-Val + Fat + WD'!AP$316","v":8.8153381410832843},null,0.25,{"$f":"'GF diets No L-Val + Fat + WD'!AK$351*'GF diets No L-Val'!AK$353/100","v":62.620294325913292},{"$f":"'GF diets No L-Val + Fat + WD'!AL$351*'GF diets No L-Val'!AL$353/100","v":88.779494363688698},{"$f":"'GF diets No L-Val + Fat + WD'!AM$351*'GF diets No L-Val'!AM$353/100","v":118.46908499268282},{"$f":"'GF diets No L-Val + Fat + WD'!AN$351*'GF diets No L-Val'!AN$353/100","v":148.07808895946928},{"$f":"'GF diets No L-Val + Fat + WD'!AO$351*'GF diets No L-Val'!AO$353/100","v":177.55058588060149},{"$f":"'GF diets No L-Val + Fat + WD'!AP$351*'GF diets No L-Val'!AP$353/100","v":211.70335386269639},null,0.25,{"$f":"'GF diets No L-Val + Fat + WD'!AK$342","v":741.69090139868376},{"$f":"'GF diets No L-Val + Fat + WD'!AL$342","v":857.56075020428375},{"$f":"'GF diets No L-Val + Fat + WD'!AM$342","v":933.38079850970121},{"$f":"'GF diets No L-Val + Fat + WD'!AN$342","v":966.10623674420458},{"$f":"'GF diets No L-Val + Fat + WD'!AO$342","v":952.59250017741692},{"$f":"'GF diets No L-Val + Fat + WD'!AP$342","v":919.74779687896194},null,0.25,{"$f":"'GF diets No L-Val + Fat + WD'!AK$344","v":557.74081209962173},{"$f":"'GF diets No L-Val + Fat + WD'!AL$344","v":489.84693169406222},{"$f":"'GF diets No L-Val + Fat + WD'!AM$344","v":427.5797585417273},{"$f":"'GF diets No L-Val + Fat + WD'!AN$344","v":372.73581436865857},{"$f":"'GF diets No L-Val + Fat + WD'!AO$344","v":329.28751157066336},{"$f":"'GF diets No L-Val + Fat + WD'!AP$344","v":301.12774430436968},null,0.25,1.7929475094990599,2.0414540447189284,2.3387449476339288,2.6828653471193911,3.036859780166322,3.3208497686258829,null,0.25,{"$f":"'GF diets No L-Val + Fat + WD'!AK$351","v":84.270998580050616},{"$f":"'GF diets No L-Val + Fat + WD'!AL$351","v":119.48272395337915},{"$f":"'GF diets No L-Val + Fat + WD'!AM$351","v":159.45720864081406},{"$f":"'GF diets No L-Val + Fat + WD'!AN$351","v":199.32786302673804},{"$f":"'GF diets No L-Val + Fat + WD'!AO$351","v":239.01515713647859},{"$f":"'GF diets No L-Val + Fat + WD'!AP$351","v":284.9999097768},null,null,0.25,34.270998580050616,34.48272395337915,39.457208640814059,39.327863026738044,39.015157136478592,44.999909776799996]
[0.3,{"$f":"'GF diets No L-Val + Fat + WD'!AR$353","v":73.987454622500977},{"$f":"'GF diets No L-Val + Fat + WD'!AS$353","v":73.982485857209639},{"$f":"'GF diets No L-Val + Fat + WD'!AT$353","v":73.9745073215459},{"$f":"'GF diets No L-Val + Fat + WD'!AU$353","v":73.969038400847609},{"$f":"'GF diets No L-Val + Fat + WD'!AV$353","v":73.965727146313426},{"$f":"'GF diets No L-Val + Fat + WD'!AW$353","v":74.648975579486034},null,0.3,{"$f":"'GF diets No L-Val + Fat + WD'!AR$316","v":15.509595274826999},{"$f":"'GF diets No L-Val + Fat + WD'!AS$316","v":15.581637688794629},{"$f":"'GF diets No L-Val + Fat + WD'!AT$316","v":15.644130597950809},{"$f":"'GF diets No L-Val + Fat + WD'!AU$316","v":15.677286778377889},{"$f":"'GF diets No L-Val + Fat + WD'!AV$316","v":15.700817905343778},{"$f":"'GF diets No L-Val + Fat + WD'!AW$316","v":8.8153381410832843},null,0.3,{"$f":"'GF diets No L-Val + Fat + WD'!AR$351*'GF diets No L-Val'!AR$353/100","v":62.389445311524035},{"$f":"'GF diets No L-Val + Fat + WD'!AS$351*'GF diets No L-Val'!AS$353/100","v":88.529954575455136},{"$f":"'GF diets No L-Val + Fat + WD'!AT$351*'GF diets No L-Val'!AT$353/100","v":118.15794240588114},{"$f":"'GF diets No L-Val + Fat + WD'!AU$351*'GF diets No L-Val'!AU$353/100","v":147.69355246595168},{"$f":"'GF diets No L-Val + Fat + WD'!AV$351*'GF diets No L-Val'!AV$353/100","v":177.06403488011199},{"$f":"'GF diets No L-Val + Fat + WD'!AW$351*'GF diets No L-Val'!AW$353/100","v":211.29525890146718},null,0.3,{"$f":"'GF diets No L-Val + Fat + WD'!AR$342","v":738.50601864243959},{"$f":"'GF diets No L-Val + Fat + WD'!AS$342","v":854.97698349144969},{"$f":"'GF diets No L-Val + Fat + WD'!AT$342","v":930.7912646648017},{"$f":"'GF diets No L-Val + Fat + WD'!AU$342","v":962.84976002250392},{"$f":"'GF diets No L-Val + Fat + WD'!AV$342","v":947.8413410368928},{"$f":"'GF diets No L-Val + Fat + WD'!AW$342","v":919.74779687896194},null,0.3,{"$f":"'GF diets No L-Val + Fat + WD'!AR$344","v":560.92456426101978},{"$f":"'GF diets No L-Val + Fat + WD'!AS$344","v":493.61233476220207},{"$f":"'GF diets No L-Val + Fat + WD'!AT$344","v":430.93868169881779},{"$f":"'GF diets No L-Val + Fat + WD'!AU$344","v":375.09757078441942},{"$f":"'GF diets No L-Val + Fat + WD'!AV$344","v":329.89987224117283},{"$f":"'GF diets No L-Val + Fat + WD'!AW$344","v":301.12774430436968},null,0.3,1.7827709173646771,2.025881303152099,2.320515754255029,2.6659730104590094,3.0312227561850991,3.3208497686258829,null,0.3,{"$f":"'GF diets No L-Val + Fat + WD'!AR$351","v":84.123835744824063},{"$f":"'GF diets No L-Val + Fat + WD'!AS$351","v":119.37882986120016},{"$f":"'GF diets No L-Val + Fat + WD'!AT$351","v":159.34773993839349},{"$f":"'GF diets No L-Val + Fat + WD'!AU$351","v":199.19529941545585},{"$f":"'GF diets No L-Val + Fat + WD'!AV$351","v":238.82056437887363},{"$f":"'GF diets No L-Val + Fat + WD'!AW$351","v":284.9999097768},null,null,0.3,34.123835744824063,34.37882986120016,39.347739938393488,39.19529941545585,38.820564378873627,44.999909776799996]
[]
["GF L-Val + WD",null,null,null,null,null,null,null,"GF L-Val + WD",null,null,null,null,null,null,null,"GF L-Val + WD",null,null,null,null,null,null,null,"GF L-Val + WD",null,null,null,null,null,null,null,"GF L-Val + WD",null,null,null,null,null,null,null,"GF L-Val + WD",null,null,null,null,null,null,null,"GF L-Val + WD",null,null,null,null,null,null,null,null,"GF L-Val + WD",null,null,null,null,null,null,null,null,"GF L-Val + WD"]
[null,"Phase 1","Phase 2","Phase 3","Phase 4","Phase 5","Phase 6",null,null,"Phase 1","Phase 2","Phase 3","Phase 4","Phase 5","Phase 6",null,null,"Phase 1","Phase 2","Phase 3","Phase 4","Phase 5","Phase 6",null,null,"Phase 1","Phase 2","Phase 3","Phase 4","Phase 5","Phase 6",null,null,"Phase 1","Phase 2","Phase 3","Phase 4","Phase 5","Phase 6",null,null,"Phase 1","Phase 2","Phase 3","Phase 4","Phase 5","Phase 6",null,null,"Phase 1","Phase 2","Phase 3","Phase 4","Phase 5","Phase 6",null,null,null,"Phase 1","Phase 2","Phase 3","Phase 4","Phase 5","Phase 6",null,null,"Phase 1","Phase 2","Phase 3","Phase 4","Phase 5","Phase 6"]
[0,{"$f":"'GF diets L-Val + WD'!B$353","v":74.819451185589813},{"$f":"'GF diets L-Val + WD'!C$353","v":74.814490114943524},{"$f":"'GF diets L-Val + WD'!D$353","v":74.806402824315015},{"$f":"'GF diets L-Val + WD'!E$353","v":74.799464091992718},{"$f":"'GF diets L-Val + WD'!F$353","v":74.793950097444124},{"$f":"'GF diets L-Val + WD'!G$353","v":74.99996147514166},null,0,{"$f":"'GF diets L-Val + WD'!B$316","v":8.5699292218715204},{"$f":"'GF diets L-Val + WD'!C$316","v":8.6418600707376481},{"$f":"'GF diets L-Val + WD'!D$316","v":8.7060121920111886},{"$f":"'GF diets L-Val + WD'!E$316","v":8.7592542727281515},{"$f":"'GF diets L-Val + WD'!F$316","v":8.7998937942372635},{"$f":"'GF diets L-Val + WD'!G$316","v":8.8184122421246407},null,0,{"$f":"'GF diets L-Val + WD'!B$351*'GF diets No L-Val'!B$353/100","v":63.775222936730451},{"$f":"'GF diets L-Val + WD'!C$351*'GF diets No L-Val'!C$353/100","v":90.029655617817099},{"$f":"'GF diets L-Val + WD'!D$351*'GF diets No L-Val'!D$353/100","v":120.02655281623706},{"$f":"'GF diets L-Val + WD'!E$351*'GF diets No L-Val'!E$353/100","v":150.01929240335414},{"$f":"'GF diets L-Val + WD'!F$351*'GF diets No L-Val'!F$353/100","v":180.0099432286994},{"$f":"'GF diets L-Val + WD'!G$351*'GF diets No L-Val'!G$353/100","v":213.75252629034401},null,0,{"$f":"'GF diets L-Val + WD'!B$342","v":740.32616660444182},{"$f":"'GF diets L-Val + WD'!C$342","v":862.50756659214221},{"$f":"'GF diets L-Val + WD'!D$342","v":944.95636803551065},{"$f":"'GF diets L-Val + WD'!E$342","v":984.20180073567008},{"$f":"'GF diets L-Val + WD'!F$342","v":982.04258582759257},{"$f":"'GF diets L-Val + WD'!G$342","v":932.08406418687355},null,0,{"$f":"'GF diets L-Val + WD'!B$344","v":544.53845340080113},{"$f":"'GF diets L-Val + WD'!C$344","v":471.75579583355693},{"$f":"'GF diets L-Val + WD'!D$344","v":409.85407727163351},{"$f":"'GF diets L-Val + WD'!E$344","v":360.59074506150858},{"$f":"'GF diets L-Val + WD'!F$344","v":326.06282096567122},{"$f":"'GF diets L-Val + WD'!G$344","v":301.24235802326291},null,0,{"$f":"1/(AH64/1000)","v":1.8364176005472324},{"$f":"1/(AI64/1000)","v":2.1197407829045862},{"$f":"1/(AJ64/1000)","v":2.4398927702681932},{"$f":"1/(AK64/1000)","v":2.7732270273032738},{"$f":"1/(AL64/1000)","v":3.0668936649642822},{"$f":"1/(AM64/1000)","v":3.3195862844851876},null,0,{"$f":"'GF diets L-Val + WD'!B$351","v":84.999929826400006},{"$f":"'GF diets L-Val + WD'!C$351","v":119.99992982640001},{"$f":"'GF diets L-Val + WD'!D$351","v":159.99991980159999},{"$f":"'GF diets L-Val + WD'!E$351","v":199.99991980160002},{"$f":"'GF diets L-Val + WD'!F$351","v":239.99991980159999},{"$f":"'GF diets L-Val + WD'!G$351","v":284.9999097768},null,null,0,{"$f":"AX64-50","v":34.999929826400006},{"$f":"AY64-85","v":34.999929826400006},{"$f":"AZ64-120","v":39.999919801599987},{"$f":"BA64-160","v":39.999919801600015},{"$f":"BB64-200","v":39.999919801599987},{"$f":"BC64-240","v":44.999909776799996},null,"BW, lb",{"$f":"VLOOKUP('DDGS Calculator'!$C$31,Performance!AW64:AX70,2,FALSE)","v":84.999929826400006},{"$f":"BO64+VLOOKUP('DDGS Calculator'!$D$31,Performance!BF64:BL70,3,FALSE)","v":119.99985965280001},{"$f":"BP64+VLOOKUP('DDGS Calculator'!$E$31,Performance!BF64:BL70,4,FALSE)","v":159.9997794544},{"$f":"BQ64+(VLOOKUP('DDGS Calculator'!$F$31,Performance!BF64:BL70,5,FALSE))","v":199.99969925600001},{"$f":"BR64+VLOOKUP('DDGS Calculator'!$G$31,Performance!BF64:BL70,6,FALSE)","v":239.9996190576},{"$f":"BS64+VLOOKUP('DDGS Calculator'!$H$31,Performance!BF64:BL70,7,FALSE)","v":284.9995288344}]
[0.05,{"$f":"'GF diets L-Val + WD'!I$353","v":74.674869709053922},{"$f":"'GF diets L-Val + WD'!J$353","v":74.669995508682845},{"$f":"'GF diets L-Val + WD'!K$353","v":74.661998485722151},{"$f":"'GF diets L-Val + WD'!L$353","v":74.655106105696191},{"$f":"'GF diets L-Val + WD'!M$353","v":74.64959487037035},{"$f":"'GF diets L-Val + WD'!N$353","v":74.938645139604063},null,0.05,{"$f":"'GF diets L-Val + WD'!I$316","v":9.7758803148391742},{"$f":"'GF diets L-Val + WD'!J$316","v":9.8465516265845316},{"$f":"'GF diets L-Val + WD'!K$316","v":9.9103248579405285},{"$f":"'GF diets L-Val + WD'!L$316","v":9.9631746054439638},{"$f":"'GF diets L-Val + WD'!M$316","v":10.00406377730083},{"$f":"'GF diets L-Val + WD'!N$316","v":8.8184122421246407},null,0.05,{"$f":"'GF diets L-Val + WD'!I$351*'GF diets No L-Val'!I$353/100","v":63.463252371424808},{"$f":"'GF diets L-Val + WD'!J$351*'GF diets No L-Val'!J$353/100","v":89.69022235921166},{"$f":"'GF diets L-Val + WD'!K$351*'GF diets No L-Val'!K$353/100","v":119.59652406235881},{"$f":"'GF diets L-Val + WD'!L$351*'GF diets No L-Val'!L$353/100","v":149.47715439697137},{"$f":"'GF diets L-Val + WD'!M$351*'GF diets No L-Val'!M$353/100","v":179.30743810779077},{"$f":"'GF diets L-Val + WD'!N$351*'GF diets No L-Val'!N$353/100","v":213.34090433298041},null,0.05,{"$f":"'GF diets L-Val + WD'!I$342","v":734.98200857534789},{"$f":"'GF diets L-Val + WD'!J$342","v":857.03896662430009},{"$f":"'GF diets L-Val + WD'!K$342","v":938.67333767113405},{"$f":"'GF diets L-Val + WD'!L$342","v":975.87519399902249},{"$f":"'GF diets L-Val + WD'!M$342","v":970.37168111826622},{"$f":"'GF diets L-Val + WD'!N$342","v":932.08406418687355},null,0.05,{"$f":"'GF diets L-Val + WD'!I$344","v":544.92251618513285},{"$f":"'GF diets L-Val + WD'!J$344","v":472.02046998180811},{"$f":"'GF diets L-Val + WD'!K$344","v":409.88899300995126},{"$f":"'GF diets L-Val + WD'!L$344","v":359.91351940059508},{"$f":"'GF diets L-Val + WD'!M$344","v":324.0636773047201},{"$f":"'GF diets L-Val + WD'!N$344","v":301.24235802326291},null,0.05,1.8351232887213975,2.1185521891424335,2.4396849319047758,2.7784452266906055,3.0858132831088341,3.3195862844851876,null,0.05,{"$f":"'GF diets L-Val + WD'!I$351","v":84.747276956008861},{"$f":"'GF diets L-Val + WD'!J$351","v":119.77801757161166},{"$f":"'GF diets L-Val + WD'!K$351","v":159.73395914661489},{"$f":"'GF diets L-Val + WD'!L$351","v":199.66150925488392},{"$f":"'GF diets L-Val + WD'!M$351","v":239.52454714962926},{"$f":"'GF diets L-Val + WD'!N$351","v":284.9999097768},null,null,0.05,{"$f":"AX65-50","v":34.747276956008861},{"$f":"AY65-85","v":34.778017571611656},{"$f":"AZ65-120","v":39.733959146614893},{"$f":"BA65-160","v":39.661509254883924},{"$f":"BB65-200","v":39.524547149629257},{"$f":"BC65-240","v":44.999909776799996},null,"Yield, %",null,null,null,null,null,{"$f":"((0.03492*22.19)-(0.05092*VLOOKUP('DDGS Calculator'!$G$31,Performance!I63:O70,6,FALSE))-(0.06897*VLOOKUP('DDGS Calculator'!$H$31,Performance!I63:O70,7,FALSE))-(0.00289*VLOOKUP('DDGS Calculator'!$H$31,Performance!I63:O70,7,FALSE)*22.19)+'DDGS Calculator'!$G$9)","v":74.153061475141669}]
[0.1,{"$f":"'GF diets L-Val + WD'!P$353","v":74.53041991549712},{"$f":"'GF diets L-Val + WD'!Q$353","v":74.525610640693117},{"$f":"'GF diets L-Val + WD'!R$353","v":74.51768021323052},{"$f":"'GF diets L-Val + WD'!S$353","v":74.510805575179475},{"$f":"'GF diets L-Val + WD'!T$353","v":74.505324263577378},{"$f":"'GF diets L-Val + WD'!U$353","v":74.877378608765426},null,0.1,{"$f":"'GF diets L-Val + WD'!P$316","v":10.980733042813222},{"$f":"'GF diets L-Val + WD'!Q$316","v":11.050462995024263},{"$f":"'GF diets L-Val + WD'!R$316","v":11.113965652643751},{"$f":"'GF diets L-Val + WD'!S$316","v":11.166757920659718},{"$f":"'GF diets L-Val + WD'!T$316","v":11.207255663369779},{"$f":"'GF diets L-Val + WD'!U$316","v":8.8184122421246407},null,0.1,{"$f":"'GF diets L-Val + WD'!P$351*'GF diets No L-Val'!P$353/100","v":63.195388772051949},{"$f":"'GF diets L-Val + WD'!Q$351*'GF diets No L-Val'!Q$353/100","v":89.385944611986403},{"$f":"'GF diets L-Val + WD'!R$351*'GF diets No L-Val'!R$353/100","v":119.19683990916695},{"$f":"'GF diets L-Val + WD'!S$351*'GF diets No L-Val'!S$353/100","v":148.949884716056},{"$f":"'GF diets L-Val + WD'!T$351*'GF diets No L-Val'!T$353/100","v":178.6266231950768},{"$f":"'GF diets L-Val + WD'!U$351*'GF diets No L-Val'!U$353/100","v":212.9302259812232},null,0.1,{"$f":"'GF diets L-Val + WD'!P$342","v":730.86253902058513},{"$f":"'GF diets L-Val + WD'!Q$342","v":852.70454847034819},{"$f":"'GF diets L-Val + WD'!R$342","v":933.32207144981544},{"$f":"'GF diets L-Val + WD'!S$342","v":967.99604287988086},{"$f":"'GF diets L-Val + WD'!T$342","v":959.34807253354575},{"$f":"'GF diets L-Val + WD'!U$342","v":932.08406418687355},null,0.1,{"$f":"'GF diets L-Val + WD'!P$344","v":544.85096467227618},{"$f":"'GF diets L-Val + WD'!Q$344","v":471.93164836862832},{"$f":"'GF diets L-Val + WD'!R$344","v":409.62895773480216},{"$f":"'GF diets L-Val + WD'!S$344","v":358.95851978872997},{"$f":"'GF diets L-Val + WD'!T$344","v":321.97894228766768},{"$f":"'GF diets L-Val + WD'!U$344","v":301.24235802326291},null,0.1,1.8353642827841785,2.11895091896633,2.4412336606520135,2.7858372064509402,3.1057931704942483,3.3195862844851876,null,0.1,{"$f":"'GF diets L-Val + WD'!P$351","v":84.55252302062118},{"$f":"'GF diets L-Val + WD'!Q$351","v":119.60212968231728},{"$f":"'GF diets L-Val + WD'!R$351","v":159.50744006478919},{"$f":"'GF diets L-Val + WD'!S$351","v":199.34128423138765},{"$f":"'GF diets L-Val + WD'!T$351","v":239.07553979521069},{"$f":"'GF diets L-Val + WD'!U$351","v":284.9999097768},null,null,0.1,34.55252302062118,34.602129682317283,39.507440064789193,39.341284231387647,39.075539795210688,44.999909776799996,null,"HCW, lb",null,null,null,null,null,{"$f":"BT64*(BT65/100)","v":211.33587582043674}]
[0.15,{"$f":"'GF diets L-Val + WD'!W$353","v":74.385997625975506},{"$f":"'GF diets L-Val + WD'!X$353","v":74.38122577981602},{"$f":"'GF diets L-Val + WD'!Y$353","v":74.373337114426903},{"$f":"'GF diets L-Val + WD'!Z$353","v":74.366535495324655},{"$f":"'GF diets L-Val + WD'!AA$353","v":74.361192556668442},{"$f":"'GF diets L-Val + WD'!AB$353","v":74.816191506552173},null,0.15,{"$f":"'GF diets L-Val + WD'!W$316","v":12.185356360200929},{"$f":"'GF diets L-Val + WD'!X$316","v":12.254543632340727},{"$f":"'GF diets L-Val + WD'!Y$316","v":12.317841435614078},{"$f":"'GF diets L-Val + WD'!Z$316","v":12.369726240015426},{"$f":"'GF diets L-Val + WD'!AA$316","v":12.408887678555427},{"$f":"'GF diets L-Val + WD'!AB$316","v":8.8184122421246407},null,0.15,{"$f":"'GF diets L-Val + WD'!W$351*'GF diets No L-Val'!W$353/100","v":62.955313931541298},{"$f":"'GF diets L-Val + WD'!X$351*'GF diets No L-Val'!X$353/100","v":89.101169020436117},{"$f":"'GF diets L-Val + WD'!Y$351*'GF diets No L-Val'!Y$353/100","v":118.80253347849995},{"$f":"'GF diets L-Val + WD'!Z$351*'GF diets No L-Val'!Z$353/100","v":148.44280905837903},{"$f":"'GF diets L-Val + WD'!AA$351*'GF diets No L-Val'!AA$353/100","v":177.95883751443284},{"$f":"'GF diets L-Val + WD'!AB$351*'GF diets No L-Val'!AB$353/100","v":212.51989354519287},null,0.15,{"$f":"'GF diets L-Val + WD'!W$342","v":727.51552435711903},{"$f":"'GF diets L-Val + WD'!X$342","v":848.998506061993},{"$f":"'GF diets L-Val + WD'!Y$342","v":928.12318501505911},{"$f":"'GF diets L-Val + WD'!Z$342","v":960.75385333371219},{"$f":"'GF diets L-Val + WD'!AA$342","v":948.70954572017718},{"$f":"'GF diets L-Val + WD'!AB$342","v":932.08406418687355},null,0.15,{"$f":"'GF diets L-Val + WD'!W$344","v":544.02090375649789},{"$f":"'GF diets L-Val + WD'!X$344","v":471.24361438129569},{"$f":"'GF diets L-Val + WD'!Y$344","v":408.78610079742481},{"$f":"'GF diets L-Val + WD'!Z$344","v":357.7790103051002},{"$f":"'GF diets L-Val + WD'!AA$344","v":319.75849715832874},{"$f":"'GF diets L-Val + WD'!AB$344","v":301.24235802326291},null,0.15,1.8381646607601625,2.1220446696406023,2.4462671261309663,2.7950214271855649,3.127360207428199,3.3195862844851876,null,0.15,{"$f":"'GF diets L-Val + WD'!W$351","v":84.39428801758379},{"$f":"'GF diets L-Val + WD'!X$351","v":119.45174087494144},{"$f":"'GF diets L-Val + WD'!Y$351","v":159.2873712188354},{"$f":"'GF diets L-Val + WD'!Z$351","v":199.04694664571142},{"$f":"'GF diets L-Val + WD'!AA$351","v":238.64221737246044},{"$f":"'GF diets L-Val + WD'!AB$351","v":284.9999097768},null,null,0.15,34.39428801758379,34.451740874941436,39.287371218835403,39.046946645711415,38.642217372460436,44.999909776799996]
[0.2,{"$f":"'GF diets L-Val + WD'!AD$353","v":74.241610737703795},{"$f":"'GF diets L-Val + WD'!AE$353","v":74.236842088275779},{"$f":"'GF diets L-Val + WD'!AF$353","v":74.229025449893513},{"$f":"'GF diets L-Val + WD'!AG$353","v":74.222389067781563},{"$f":"'GF diets L-Val + WD'!AH$353","v":74.217548209025438},{"$f":"'GF diets L-Val + WD'!AI$353","v":74.755313587714781},null,0.2,{"$f":"'GF diets L-Val + WD'!AD$316","v":13.389684396498479},{"$f":"'GF diets L-Val + WD'!AE$316","v":13.458825319044692},{"$f":"'GF diets L-Val + WD'!AF$316","v":13.521113018134308},{"$f":"'GF diets L-Val + WD'!AG$316","v":13.57134779375134},{"$f":"'GF diets L-Val + WD'!AH$316","v":13.604447749988939},{"$f":"'GF diets L-Val + WD'!AI$316","v":8.8184122421246407},null,0.2,{"$f":"'GF diets L-Val + WD'!AD$351*'GF diets No L-Val'!AD$353/100","v":62.743061167544305},{"$f":"'GF diets L-Val + WD'!AE$351*'GF diets No L-Val'!AE$353/100","v":88.828935015450838},{"$f":"'GF diets L-Val + WD'!AF$351*'GF diets No L-Val'!AF$353/100","v":118.43198188927552},{"$f":"'GF diets L-Val + WD'!AG$351*'GF diets No L-Val'!AG$353/100","v":147.95179285445536},{"$f":"'GF diets L-Val + WD'!AH$351*'GF diets No L-Val'!AH$353/100","v":177.29695095413703},{"$f":"'GF diets L-Val + WD'!AI$351*'GF diets No L-Val'!AI$353/100","v":212.11143575251089},null,0.2,{"$f":"'GF diets L-Val + WD'!AD$342","v":724.94582154114494},{"$f":"'GF diets L-Val + WD'!AE$342","v":845.69421270540624},{"$f":"'GF diets L-Val + WD'!AF$342","v":923.65864602576949},{"$f":"'GF diets L-Val + WD'!AG$342","v":954.01012781500322},{"$f":"'GF diets L-Val + WD'!AH$342","v":938.19318574970953},{"$f":"'GF diets L-Val + WD'!AI$342","v":932.08406418687355},null,0.2,{"$f":"'GF diets L-Val + WD'!AD$344","v":542.41495381124025},{"$f":"'GF diets L-Val + WD'!AE$344","v":469.82815603512751},{"$f":"'GF diets L-Val + WD'!AF$344","v":407.58466744044267},{"$f":"'GF diets L-Val + WD'!AG$344","v":356.34303554371058},{"$f":"'GF diets L-Val + WD'!AH$344","v":317.14306606759203},{"$f":"'GF diets L-Val + WD'!AI$344","v":301.24235802326291},null,0.2,1.8436069893972702,2.1284377855064807,2.4534779639278814,2.8062846758719258,3.1531510759465009,3.3195862844851876,null,0.2,{"$f":"'GF diets L-Val + WD'!AD$351","v":84.272801566589351},{"$f":"'GF diets L-Val + WD'!AE$351","v":119.3176547846159},{"$f":"'GF diets L-Val + WD'!AF$351","v":159.09838729787106},{"$f":"'GF diets L-Val + WD'!AG$351","v":198.77286767070169},{"$f":"'GF diets L-Val + WD'!AH$351","v":238.2138709800642},{"$f":"'GF diets L-Val + WD'!AI$351","v":284.9999097768},null,null,0.2,34.272801566589351,34.317654784615897,39.098387297871056,38.772867670701686,38.2138709800642,44.999909776799996]
[0.25,{"$f":"'GF diets L-Val + WD'!AK$353","v":74.097252416994536},{"$f":"'GF diets L-Val + WD'!AL$353","v":74.092459424968382},{"$f":"'GF diets L-Val + WD'!AM$353","v":74.084743470397243},{"$f":"'GF diets L-Val + WD'!AN$353","v":74.078588746506668},{"$f":"'GF diets L-Val + WD'!AO$353","v":74.074280642912939},{"$f":"'GF diets L-Val + WD'!AP$353","v":74.694540435142528},null,0.25,{"$f":"'GF diets L-Val + WD'!AK$316","v":14.593774151350882},{"$f":"'GF diets L-Val + WD'!AL$316","v":14.663268018628695},{"$f":"'GF diets L-Val + WD'!AM$316","v":14.7238353210697},{"$f":"'GF diets L-Val + WD'!AN$316","v":14.768356661511596},{"$f":"'GF diets L-Val + WD'!AO$316","v":14.797950353528863},{"$f":"'GF diets L-Val + WD'!AP$316","v":8.8184122421246407},null,0.25,{"$f":"'GF diets L-Val + WD'!AK$351*'GF diets No L-Val'!AK$353/100","v":62.559064919968733},{"$f":"'GF diets L-Val + WD'!AL$351*'GF diets No L-Val'!AL$353/100","v":88.580462930216441},{"$f":"'GF diets L-Val + WD'!AM$351*'GF diets No L-Val'!AM$353/100","v":118.08294629665454},{"$f":"'GF diets L-Val + WD'!AN$351*'GF diets No L-Val'!AN$353/100","v":147.47215660797011},{"$f":"'GF diets L-Val + WD'!AO$351*'GF diets No L-Val'!AO$353/100","v":176.64945419560848},{"$f":"'GF diets L-Val + WD'!AP$351*'GF diets No L-Val'!AP$353/100","v":211.70335386269639},null,0.25,{"$f":"'GF diets L-Val + WD'!AK$342","v":723.16476170971032},{"$f":"'GF diets L-Val + WD'!AL$342","v":843.16103565379217},{"$f":"'GF diets L-Val + WD'!AM$342","v":919.85722269718804},{"$f":"'GF diets L-Val + WD'!AN$342","v":947.59682363309821},{"$f":"'GF diets L-Val + WD'!AO$342","v":928.08306099373704},{"$f":"'GF diets L-Val + WD'!AP$342","v":932.08406418687355},null,0.25,{"$f":"'GF diets L-Val + WD'!AK$344","v":540.06744965323378},{"$f":"'GF diets L-Val + WD'!AL$344","v":467.87575223726196},{"$f":"'GF diets L-Val + WD'!AM$344","v":405.98913112498241},{"$f":"'GF diets L-Val + WD'!AN$344","v":354.40368912897554},{"$f":"'GF diets L-Val + WD'!AO$344","v":314.274818790317},{"$f":"'GF diets L-Val + WD'!AP$344","v":301.24235802326291},null,0.25,1.8516205719157475,2.1373195666119824,2.4631201264650437,2.8216410570040016,3.1819284912775538,3.3195862844851876,null,0.25,{"$f":"'GF diets L-Val + WD'!AK$351","v":84.18859936367906},{"$f":"'GF diets L-Val + WD'!AL$351","v":119.21486009591908},{"$f":"'GF diets L-Val + WD'!AM$351","v":158.93747306067789},{"$f":"'GF diets L-Val + WD'!AN$351","v":198.51221770330227},{"$f":"'GF diets L-Val + WD'!AO$351","v":237.80207112934988},{"$f":"'GF diets L-Val + WD'!AP$351","v":284.9999097768},null,null,0.25,34.18859936367906,34.214860095919079,38.937473060677888,38.512217703302269,37.802071129349883,44.999909776799996]
[0.3,{"$f":"'GF diets L-Val + WD'!AR$353","v":73.952994390504614},{"$f":"'GF diets L-Val + WD'!AS$353","v":73.948172427249744},{"$f":"'GF diets L-Val + WD'!AT$353","v":73.940558387754507},{"$f":"'GF diets L-Val + WD'!AU$353","v":73.9350651660491},{"$f":"'GF diets L-Val + WD'!AV$353","v":73.931186128513843},{"$f":"'GF diets L-Val + WD'!AW$353","v":74.633767427443217},null,0.3,{"$f":"'GF diets L-Val + WD'!AR$316","v":15.79702735420287},{"$f":"'GF diets L-Val + WD'!AS$316","v":15.866941276993494},{"$f":"'GF diets L-Val + WD'!AT$316","v":15.925720783253233},{"$f":"'GF diets L-Val + WD'!AU$316","v":15.961970881073496},{"$f":"'GF diets L-Val + WD'!AV$316","v":15.991450111960036},{"$f":"'GF diets L-Val + WD'!AW$316","v":8.8184122421246407},null,0.3,{"$f":"'GF diets L-Val + WD'!AR$351*'GF diets No L-Val'!AR$353/100","v":62.401420611487254},{"$f":"'GF diets L-Val + WD'!AS$351*'GF diets No L-Val'!AS$353/100","v":88.355555747350877},{"$f":"'GF diets L-Val + WD'!AT$351*'GF diets No L-Val'!AT$353/100","v":117.75553779049704},{"$f":"'GF diets L-Val + WD'!AU$351*'GF diets No L-Val'!AU$353/100","v":147.00757940793994},{"$f":"'GF diets L-Val + WD'!AV$351*'GF diets No L-Val'!AV$353/100","v":176.01954091416272},{"$f":"'GF diets L-Val + WD'!AW$351*'GF diets No L-Val'!AW$353/100","v":211.29525890146718},null,0.3,{"$f":"'GF diets L-Val + WD'!AR$342","v":722.13641638624006},{"$f":"'GF diets L-Val + WD'!AS$342","v":841.40646013664229},{"$f":"'GF diets L-Val + WD'!AT$342","v":916.72904437624834},{"$f":"'GF diets L-Val + WD'!AU$342","v":941.64006968999638},{"$f":"'GF diets L-Val + WD'!AV$342","v":918.50077750001947},{"$f":"'GF diets L-Val + WD'!AW$342","v":932.08406418687355},null,0.3,{"$f":"'GF diets L-Val + WD'!AR$344","v":537.08188234721013},{"$f":"'GF diets L-Val + WD'!AS$344","v":465.36423994865339},{"$f":"'GF diets L-Val + WD'!AT$344","v":403.98584612745401},{"$f":"'GF diets L-Val + WD'!AU$344","v":352.02456023637109},{"$f":"'GF diets L-Val + WD'!AV$344","v":311.22636410689336},{"$f":"'GF diets L-Val + WD'!AW$344","v":301.24235802326291},null,0.3,1.8619134863192515,2.1488544115687453,2.4753342464490915,2.840710884855699,3.213095403628921,3.3195862844851876,null,0.3,{"$f":"'GF diets L-Val + WD'!AR$351","v":84.13998283768683},{"$f":"'GF diets L-Val + WD'!AS$351","v":119.14366055462939},{"$f":"'GF diets L-Val + WD'!AT$351","v":158.80505728247883},{"$f":"'GF diets L-Val + WD'!AU$351","v":198.27012288337207},{"$f":"'GF diets L-Val + WD'!AV$351","v":237.41177100868285},{"$f":"'GF diets L-Val + WD'!AW$351","v":284.9999097768},null,null,0.3,34.13998283768683,34.143660554629392,38.805057282478828,38.270122883372068,37.411771008682848,44.999909776799996]
[]
["GF L-Val + Fat + WD",null,null,null,null,null,null,null,"GF L-Val + Fat + WD",null,null,null,null,null,null,null,"GF L-Val + Fat + WD",null,null,null,null,null,null,null,"GF L-Val + Fat + WD",null,null,null,null,null,null,null,"GF L-Val + Fat + WD",null,null,null,null,null,null,null,"GF L-Val + Fat + WD",null,null,null,null,null,null,null,"GF L-Val + Fat + WD",null,null,null,null,null,null,null,null,"GF L-Val + Fat + WD",null,null,null,null,null,null,null,null,"GF L-Val + Fat + WD"]
[null,"Phase 1","Phase 2","Phase 3","Phase 4","Phase 5","Phase 6",null,null,"Phase 1","Phase 2","Phase 3","Phase 4","Phase 5","Phase 6",null,null,"Phase 1","Phase 2","Phase 3","Phase 4","Phase 5","Phase 6",null,null,"Phase 1","Phase 2","Phase 3","Phase 4","Phase 5","Phase 6",null,null,"Phase 1","Phase 2","Phase 3","Phase 4","Phase 5","Phase 6",null,null,"Phase 1","Phase 2","Phase 3","Phase 4","Phase 5","Phase 6",null,null,"Phase 1","Phase 2","Phase 3","Phase 4","Phase 5","Phase 6",null,null,null,"Phase 1","Phase 2","Phase 3","Phase 4","Phase 5","Phase 6",null,null,"Phase 1","Phase 2","Phase 3","Phase 4","Phase 5","Phase 6"]
[0,{"$f":"'GF diets L-Val + Fat + WD'!B$353","v":74.819451185589813},{"$f":"'GF diets L-Val + Fat + WD'!C$353","v":74.814490114943524},{"$f":"'GF diets L-Val + Fat + WD'!D$353","v":74.806402824315015},{"$f":"'GF diets L-Val + Fat + WD'!E$353","v":74.799464091992718},{"$f":"'GF diets L-Val + Fat + WD'!F$353","v":74.793950097444124},{"$f":"'GF diets L-Val + Fat + WD'!G$353","v":74.99996147514166},null,0,{"$f":"'GF diets No L-Val + Fat + WD'!B$316","v":8.5675537105360302},{"$f":"'GF diets No L-Val + Fat + WD'!C$316","v":8.6397459364158564},{"$f":"'GF diets No L-Val + Fat + WD'!D$316","v":8.7042340935531328},{"$f":"'GF diets No L-Val + Fat + WD'!E$316","v":8.7574905031042753},{"$f":"'GF diets No L-Val + Fat + WD'!F$316","v":8.7980354970428483},{"$f":"'GF diets No L-Val + Fat + WD'!G$316","v":8.8153381410832843},null,0,{"$f":"'GF diets L-Val + Fat + WD'!B$351*'GF diets No L-Val'!B$353/100","v":63.775222936730451},{"$f":"'GF diets L-Val + Fat + WD'!C$351*'GF diets No L-Val'!C$353/100","v":90.029655617817099},{"$f":"'GF diets L-Val + Fat + WD'!D$351*'GF diets No L-Val'!D$353/100","v":120.02655281623706},{"$f":"'GF diets L-Val + Fat + WD'!E$351*'GF diets No L-Val'!E$353/100","v":150.01929240335414},{"$f":"'GF diets L-Val + Fat + WD'!F$351*'GF diets No L-Val'!F$353/100","v":180.0099432286994},{"$f":"'GF diets L-Val + Fat + WD'!G$351*'GF diets No L-Val'!G$353/100","v":213.75252629034401},null,0,{"$f":"'GF diets L-Val + Fat + WD'!B$342","v":740.32616660444182},{"$f":"'GF diets L-Val + Fat + WD'!C$342","v":862.50756659214221},{"$f":"'GF diets L-Val + Fat + WD'!D$342","v":944.95636803551065},{"$f":"'GF diets L-Val + Fat + WD'!E$342","v":984.20180073567008},{"$f":"'GF diets L-Val + Fat + WD'!F$342","v":982.04258582759257},{"$f":"'GF diets L-Val + Fat + WD'!G$342","v":932.08406418687355},null,0,{"$f":"'GF diets L-Val + Fat + WD'!B$344","v":544.53845340080113},{"$f":"'GF diets L-Val + Fat + WD'!C$344","v":471.75579583355693},{"$f":"'GF diets L-Val + Fat + WD'!D$344","v":409.85407727163351},{"$f":"'GF diets L-Val + Fat + WD'!E$344","v":360.59074506150858},{"$f":"'GF diets L-Val + Fat + WD'!F$344","v":326.06282096567122},{"$f":"'GF diets L-Val + Fat + WD'!G$344","v":301.24235802326291},null,0,{"$f":"1/(AH74/1000)","v":1.8364176005472324},{"$f":"1/(AI74/1000)","v":2.1197407829045862},{"$f":"1/(AJ74/1000)","v":2.4398927702681932},{"$f":"1/(AK74/1000)","v":2.7732270273032738},{"$f":"1/(AL74/1000)","v":3.0668936649642822},{"$f":"1/(AM74/1000)","v":3.3195862844851876},null,0,{"$f":"'GF diets L-Val + Fat + WD'!B$351","v":84.999929826400006},{"$f":"'GF diets L-Val + Fat + WD'!C$351","v":119.99992982640001},{"$f":"'GF diets L-Val + Fat + WD'!D$351","v":159.99991980159999},{"$f":"'GF diets L-Val + Fat + WD'!E$351","v":199.99991980160002},{"$f":"'GF diets L-Val + Fat + WD'!F$351","v":239.99991980159999},{"$f":"'GF diets L-Val + Fat + WD'!G$351","v":284.9999097768},null,null,0,{"$f":"AX74-50","v":34.999929826400006},{"$f":"AY74-85","v":34.999929826400006},{"$f":"AZ74-120","v":39.999919801599987},{"$f":"BA74-160","v":39.999919801600015},{"$f":"BB74-200","v":39.999919801599987},{"$f":"BC74-240","v":44.999909776799996},null,"BW, lb",{"$f":"VLOOKUP('DDGS Calculator'!$C$31,Performance!AW74:AX80,2,FALSE)","v":84.999929826400006},{"$f":"BO74+VLOOKUP('DDGS Calculator'!$D$31,Performance!BF74:BL80,3,FALSE)","v":119.99985965280001},{"$f":"BP74+VLOOKUP('DDGS Calculator'!$E$31,Performance!BF74:BL80,4,FALSE)","v":159.9997794544},{"$f":"BQ74+(VLOOKUP('DDGS Calculator'!$F$31,Performance!BF74:BL80,5,FALSE))","v":199.99969925600001},{"$f":"BR74+VLOOKUP('DDGS Calculator'!$G$31,Performance!BF74:BL80,6,FALSE)","v":239.9996190576},{"$f":"BS74+VLOOKUP('DDGS Calculator'!$H$31,Performance!BF74:BL80,7,FALSE)","v":284.9995288344}]
[0.05,{"$f":"'GF diets L-Val + Fat + WD'!I$353","v":74.680728602114684},{"$f":"'GF diets L-Val + Fat + WD'!J$353","v":74.675866467858711},{"$f":"'GF diets L-Val + Fat + WD'!K$353","v":74.66780130860505},{"$f":"'GF diets L-Val + Fat + WD'!L$353","v":74.66086783566206},{"$f":"'GF diets L-Val + Fat + WD'!M$353","v":74.655385703798331},{"$f":"'GF diets L-Val + Fat + WD'!N$353","v":74.941110108619952},null,0.05,{"$f":"'GF diets No L-Val + Fat + WD'!I$316","v":9.7249109022549316},{"$f":"'GF diets No L-Val + Fat + WD'!J$316","v":9.7964931050631989},{"$f":"'GF diets No L-Val + Fat + WD'!K$316","v":9.8620823208871773},{"$f":"'GF diets No L-Val + Fat + WD'!L$316","v":9.9169687619060998},{"$f":"'GF diets No L-Val + Fat + WD'!M$316","v":9.9563425413950952},{"$f":"'GF diets No L-Val + Fat + WD'!N$316","v":8.8153381410832843},null,0.05,{"$f":"'GF diets L-Val + Fat + WD'!I$351*'GF diets No L-Val'!I$353/100","v":63.56382570369319},{"$f":"'GF diets L-Val + Fat + WD'!J$351*'GF diets No L-Val'!J$353/100","v":89.793073827544333},{"$f":"'GF diets L-Val + Fat + WD'!K$351*'GF diets No L-Val'!K$353/100","v":119.71979546324374},{"$f":"'GF diets L-Val + Fat + WD'!L$351*'GF diets No L-Val'!L$353/100","v":149.62096913074944},{"$f":"'GF diets L-Val + Fat + WD'!M$351*'GF diets No L-Val'!M$353/100","v":179.48977291835598},{"$f":"'GF diets L-Val + Fat + WD'!N$351*'GF diets No L-Val'!N$353/100","v":213.34090433298041},null,0.05,{"$f":"'GF diets L-Val + Fat + WD'!I$342","v":737.82281291393463},{"$f":"'GF diets L-Val + Fat + WD'!J$342","v":860.42380070965544},{"$f":"'GF diets L-Val + Fat + WD'!K$342","v":942.56282888497708},{"$f":"'GF diets L-Val + Fat + WD'!L$342","v":980.60177466022901},{"$f":"'GF diets L-Val + Fat + WD'!M$342","v":976.35154973514977},{"$f":"'GF diets L-Val + Fat + WD'!N$342","v":932.08406418687355},null,0.05,{"$f":"'GF diets L-Val + Fat + WD'!I$344","v":548.13616804173489},{"$f":"'GF diets L-Val + Fat + WD'!J$344","v":475.74147464882753},{"$f":"'GF diets L-Val + Fat + WD'!K$344","v":413.49391362962149},{"$f":"'GF diets L-Val + Fat + WD'!L$344","v":363.13725449078942},{"$f":"'GF diets L-Val + Fat + WD'!M$344","v":326.79784463924585},{"$f":"'GF diets L-Val + Fat + WD'!N$344","v":301.24235802326291},null,0.05,1.8243641968976225,2.1019819656004519,2.4184152826387888,2.7537797007422267,3.059995701941995,3.3195862844851876,null,0.05,{"$f":"'GF diets L-Val + Fat + WD'!I$351","v":84.881580127145668},{"$f":"'GF diets L-Val + Fat + WD'!J$351","v":119.91537195269322},{"$f":"'GF diets L-Val + Fat + WD'!K$351","v":159.8986012971061},{"$f":"'GF diets L-Val + Fat + WD'!L$351","v":199.85360728427887},{"$f":"'GF diets L-Val + Fat + WD'!M$351","v":239.76811575666045},{"$f":"'GF diets L-Val + Fat + WD'!N$351","v":284.9999097768},null,null,0.05,{"$f":"AX75-50","v":34.881580127145668},{"$f":"AY75-85","v":34.915371952693221},{"$f":"AZ75-120","v":39.898601297106097},{"$f":"BA75-160","v":39.853607284278866},{"$f":"BB75-200","v":39.76811575666045},{"$f":"BC75-240","v":44.999909776799996},null,"Yield, %",null,null,null,null,null,{"$f":"((0.03492*22.19)-(0.05092*VLOOKUP('DDGS Calculator'!$G$31,Performance!I73:O80,6,FALSE))-(0.06897*VLOOKUP('DDGS Calculator'!$H$31,Performance!I73:O80,7,FALSE))-(0.00289*VLOOKUP('DDGS Calculator'!$H$31,Performance!I73:O80,7,FALSE)*22.19)+76.0769-(75.23-'DDGS Calculator'!$G$9))","v":75.000465259716705}]
[0.1,{"$f":"'GF diets L-Val + Fat + WD'!P$353","v":74.542116362414745},{"$f":"'GF diets L-Val + Fat + WD'!Q$353","v":74.537279186489044},{"$f":"'GF diets L-Val + Fat + WD'!R$353","v":74.529258120126016},{"$f":"'GF diets L-Val + Fat + WD'!S$353","v":74.522336479325688},{"$f":"'GF diets L-Val + Fat + WD'!T$353","v":74.516832944937548},{"$f":"'GF diets L-Val + Fat + WD'!U$353","v":74.882258548467121},null,0.1,{"$f":"'GF diets No L-Val + Fat + WD'!P$316","v":10.88217629885041},{"$f":"'GF diets No L-Val + Fat + WD'!Q$316","v":10.953584439917918},{"$f":"'GF diets No L-Val + Fat + WD'!R$316","v":11.018910927897572},{"$f":"'GF diets No L-Val + Fat + WD'!S$316","v":11.073900708285247},{"$f":"'GF diets No L-Val + Fat + WD'!T$316","v":11.113016811836189},{"$f":"'GF diets No L-Val + Fat + WD'!U$316","v":8.8153381410832843},null,0.1,{"$f":"'GF diets L-Val + Fat + WD'!P$351*'GF diets No L-Val'!P$353/100","v":63.354444310417591},{"$f":"'GF diets L-Val + Fat + WD'!Q$351*'GF diets No L-Val'!Q$353/100","v":89.55771605730834},{"$f":"'GF diets L-Val + Fat + WD'!R$351*'GF diets No L-Val'!R$353/100","v":119.41379101450764},{"$f":"'GF diets L-Val + Fat + WD'!S$351*'GF diets No L-Val'!S$353/100","v":149.22283923250166},{"$f":"'GF diets L-Val + Fat + WD'!T$351*'GF diets No L-Val'!T$353/100","v":178.96954981883616},{"$f":"'GF diets L-Val + Fat + WD'!U$351*'GF diets No L-Val'!U$353/100","v":212.9302259812232},null,0.1,{"$f":"'GF diets L-Val + Fat + WD'!P$342","v":735.36391234255655},{"$f":"'GF diets L-Val + Fat + WD'!Q$342","v":858.36844770368066},{"$f":"'GF diets L-Val + Fat + WD'!R$342","v":940.18058238231538},{"$f":"'GF diets L-Val + Fat + WD'!S$342","v":976.98421807826821},{"$f":"'GF diets L-Val + Fat + WD'!T$342","v":970.61642674660789},{"$f":"'GF diets L-Val + Fat + WD'!U$342","v":932.08406418687355},null,0.1,{"$f":"'GF diets L-Val + Fat + WD'!P$344","v":551.71776264187986},{"$f":"'GF diets L-Val + Fat + WD'!Q$344","v":479.72040315004631},{"$f":"'GF diets L-Val + Fat + WD'!R$344","v":417.13996726322972},{"$f":"'GF diets L-Val + Fat + WD'!S$344","v":365.68103520491923},{"$f":"'GF diets L-Val + Fat + WD'!T$344","v":327.53100961701546},{"$f":"'GF diets L-Val + Fat + WD'!U$344","v":301.24235802326291},null,0.1,1.8125209440630248,2.0845475686120052,2.3972768818121075,2.7346236302345375,3.0531460247666553,3.3195862844851876,null,0.1,{"$f":"'GF diets L-Val + Fat + WD'!P$351","v":84.765332013975552},{"$f":"'GF diets L-Val + Fat + WD'!Q$351","v":119.8319670551648},{"$f":"'GF diets L-Val + Fat + WD'!R$351","v":159.79776081036005},{"$f":"'GF diets L-Val + Fat + WD'!S$351","v":199.70658229085751},{"$f":"'GF diets L-Val + Fat + WD'!T$351","v":239.53451598934654},{"$f":"'GF diets L-Val + Fat + WD'!U$351","v":284.9999097768},null,null,0.1,34.765332013975552,34.831967055164796,39.797760810360046,39.706582290857511,39.534515989346545,44.999909776799996,null,"HCW, lb",null,null,null,null,null,{"$f":"BT74*(BT75/100)","v":213.75097261380049}]
[0.15,{"$f":"'GF diets L-Val + Fat + WD'!W$353","v":74.403465520002726},{"$f":"'GF diets L-Val + Fat + WD'!X$353","v":74.398668592790372},{"$f":"'GF diets L-Val + Fat + WD'!Y$353","v":74.390670232630328},{"$f":"'GF diets L-Val + Fat + WD'!Z$353","v":74.383788779859572},{"$f":"'GF diets L-Val + Fat + WD'!AA$353","v":74.37836420288194},{"$f":"'GF diets L-Val + Fat + WD'!AB$353","v":74.823461992553177},null,0.15,{"$f":"'GF diets No L-Val + Fat + WD'!W$316","v":12.039304367605698},{"$f":"'GF diets No L-Val + Fat + WD'!X$316","v":12.110510949271651},{"$f":"'GF diets No L-Val + Fat + WD'!Y$316","v":12.176132952118794},{"$f":"'GF diets No L-Val + Fat + WD'!Z$316","v":12.231314527025717},{"$f":"'GF diets No L-Val + Fat + WD'!AA$316","v":12.26936766276811},{"$f":"'GF diets No L-Val + Fat + WD'!AB$316","v":8.8153381410832843},null,0.15,{"$f":"'GF diets L-Val + Fat + WD'!W$351*'GF diets No L-Val'!W$353/100","v":63.145744414103667},{"$f":"'GF diets L-Val + Fat + WD'!X$351*'GF diets No L-Val'!X$353/100","v":89.3233408032483},{"$f":"'GF diets L-Val + Fat + WD'!Y$351*'GF diets No L-Val'!Y$353/100","v":119.10812645446623},{"$f":"'GF diets L-Val + Fat + WD'!Z$351*'GF diets No L-Val'!Z$353/100","v":148.82536995561503},{"$f":"'GF diets L-Val + Fat + WD'!AA$351*'GF diets No L-Val'!AA$353/100","v":178.44585881957312},{"$f":"'GF diets L-Val + Fat + WD'!AB$351*'GF diets No L-Val'!AB$353/100","v":212.51989354519287},null,0.15,{"$f":"'GF diets L-Val + Fat + WD'!W$342","v":732.9152560783665},{"$f":"'GF diets L-Val + Fat + WD'!X$342","v":856.3384518252584},{"$f":"'GF diets L-Val + Fat + WD'!Y$342","v":937.80263712373403},{"$f":"'GF diets L-Val + Fat + WD'!Z$342","v":973.37564760546206},{"$f":"'GF diets L-Val + Fat + WD'!AA$342","v":964.7436980632217},{"$f":"'GF diets L-Val + Fat + WD'!AB$342","v":932.08406418687355},null,0.15,{"$f":"'GF diets L-Val + Fat + WD'!W$344","v":555.31056526434872},{"$f":"'GF diets L-Val + Fat + WD'!X$344","v":483.73901499139083},{"$f":"'GF diets L-Val + Fat + WD'!Y$344","v":420.79283801219384},{"$f":"'GF diets L-Val + Fat + WD'!Z$344","v":368.26915264044965},{"$f":"'GF diets L-Val + Fat + WD'!AA$344","v":328.31826271900195},{"$f":"'GF diets L-Val + Fat + WD'!AB$344","v":301.24235802326291},null,0.15,1.8007941187359948,2.0672304052584991,2.3764663028105573,2.7154052758155527,3.0458250836197647,3.3195862844851876,null,0.15,{"$f":"'GF diets L-Val + Fat + WD'!W$351","v":84.649568215378878},{"$f":"'GF diets L-Val + Fat + WD'!X$351","v":119.74959113349549},{"$f":"'GF diets L-Val + Fat + WD'!Y$351","v":159.69710239526202},{"$f":"'GF diets L-Val + Fat + WD'!Z$351","v":199.55992251152736},{"$f":"'GF diets L-Val + Fat + WD'!AA$351","v":239.29531134514318},{"$f":"'GF diets L-Val + Fat + WD'!AB$351","v":284.9999097768},null,null,0.15,34.649568215378878,34.749591133495485,39.697102395262021,39.559922511527361,39.295311345143176,44.999909776799996]
[0.2,{"$f":"'GF diets L-Val + Fat + WD'!AD$353","v":74.264881221970171},{"$f":"'GF diets L-Val + Fat + WD'!AE$353","v":74.26006834866098},{"$f":"'GF diets L-Val + Fat + WD'!AF$353","v":74.252113927237829},{"$f":"'GF diets L-Val + Fat + WD'!AG$353","v":74.245296856199673},{"$f":"'GF diets L-Val + Fat + WD'!AH$353","v":74.240672270364712},{"$f":"'GF diets L-Val + Fat + WD'!AI$353","v":74.76522657850272},null,0.2,{"$f":"'GF diets No L-Val + Fat + WD'!AD$316","v":13.196263888910565},{"$f":"'GF diets No L-Val + Fat + WD'!AE$316","v":13.26754476729513},{"$f":"'GF diets No L-Val + Fat + WD'!AF$316","v":13.333784731577465},{"$f":"'GF diets No L-Val + Fat + WD'!AG$316","v":13.387381425794249},{"$f":"'GF diets No L-Val + Fat + WD'!AH$316","v":13.41504497080839},{"$f":"'GF diets No L-Val + Fat + WD'!AI$316","v":8.8153381410832843},null,0.2,{"$f":"'GF diets L-Val + Fat + WD'!AD$351*'GF diets No L-Val'!AD$353/100","v":62.939090344448978},{"$f":"'GF diets L-Val + Fat + WD'!AE$351*'GF diets No L-Val'!AE$353/100","v":89.088859207073},{"$f":"'GF diets L-Val + Fat + WD'!AF$351*'GF diets No L-Val'!AF$353/100","v":118.80345631770798},{"$f":"'GF diets L-Val + Fat + WD'!AG$351*'GF diets No L-Val'!AG$353/100","v":148.42808159016565},{"$f":"'GF diets L-Val + Fat + WD'!AH$351*'GF diets No L-Val'!AH$353/100","v":177.92563959351369},{"$f":"'GF diets L-Val + Fat + WD'!AI$351*'GF diets No L-Val'!AI$353/100","v":212.11143575251089},null,0.2,{"$f":"'GF diets L-Val + Fat + WD'!AD$342","v":730.51508162544155},{"$f":"'GF diets L-Val + Fat + WD'!AE$342","v":854.29804278316578},{"$f":"'GF diets L-Val + Fat + WD'!AF$342","v":935.44765961534085},{"$f":"'GF diets L-Val + Fat + WD'!AG$342","v":969.75471744288711},{"$f":"'GF diets L-Val + Fat + WD'!AH$342","v":958.93141742963121},{"$f":"'GF diets L-Val + Fat + WD'!AI$342","v":932.08406418687355},null,0.2,{"$f":"'GF diets L-Val + Fat + WD'!AD$344","v":558.91156851249946},{"$f":"'GF diets L-Val + Fat + WD'!AE$344","v":487.73504180043989},{"$f":"'GF diets L-Val + Fat + WD'!AF$344","v":424.4759228850063},{"$f":"'GF diets L-Val + Fat + WD'!AG$344","v":370.85566295655667},{"$f":"'GF diets L-Val + Fat + WD'!AH$344","v":329.06636226940708},{"$f":"'GF diets L-Val + Fat + WD'!AI$344","v":301.24235802326291},null,0.2,1.7891918083954208,2.0502935288565074,2.3558462237466116,2.6964668465023371,3.0389007041117702,3.3195862844851876,null,0.2,{"$f":"'GF diets L-Val + Fat + WD'!AD$351","v":84.536096465166835},{"$f":"'GF diets L-Val + Fat + WD'!AE$351","v":119.66679265236979},{"$f":"'GF diets L-Val + Fat + WD'!AF$351","v":159.5974162049551},{"$f":"'GF diets L-Val + Fat + WD'!AG$351","v":199.41276040880135},{"$f":"'GF diets L-Val + Fat + WD'!AH$351","v":239.05856883652001},{"$f":"'GF diets L-Val + Fat + WD'!AI$351","v":284.9999097768},null,null,0.2,34.536096465166835,34.666792652369793,39.597416204955096,39.412760408801347,39.05856883652001,44.999909776799996]
[0.25,{"$f":"'GF diets L-Val + Fat + WD'!AK$353","v":74.126344508857017},{"$f":"'GF diets L-Val + Fat + WD'!AL$353","v":74.121544497285768},{"$f":"'GF diets L-Val + Fat + WD'!AM$353","v":74.113580746605678},{"$f":"'GF diets L-Val + Fat + WD'!AN$353","v":74.107462176703137},{"$f":"'GF diets L-Val + Fat + WD'!AO$353","v":74.103683538804276},{"$f":"'GF diets L-Val + Fat + WD'!AP$353","v":74.707144698484541},null,0.25,{"$f":"'GF diets No L-Val + Fat + WD'!AK$316","v":14.352040851084766},{"$f":"'GF diets No L-Val + Fat + WD'!AL$316","v":14.424596036107788},{"$f":"'GF diets No L-Val + Fat + WD'!AM$316","v":14.490157468268242},{"$f":"'GF diets No L-Val + Fat + WD'!AN$316","v":14.534267496185688},{"$f":"'GF diets No L-Val + Fat + WD'!AO$316","v":14.558028287748904},{"$f":"'GF diets No L-Val + Fat + WD'!AP$316","v":8.8153381410832843},null,0.25,{"$f":"'GF diets L-Val + Fat + WD'!AK$351*'GF diets No L-Val'!AK$353/100","v":62.732457385192859},{"$f":"'GF diets L-Val + Fat + WD'!AL$351*'GF diets No L-Val'!AL$353/100","v":88.855080302522779},{"$f":"'GF diets L-Val + Fat + WD'!AM$351*'GF diets No L-Val'!AM$353/100","v":118.49825683499462},{"$f":"'GF diets L-Val + Fat + WD'!AN$351*'GF diets No L-Val'!AN$353/100","v":148.03153705330959},{"$f":"'GF diets L-Val + Fat + WD'!AO$351*'GF diets No L-Val'!AO$353/100","v":177.4083369574634},{"$f":"'GF diets L-Val + Fat + WD'!AP$351*'GF diets No L-Val'!AP$353/100","v":211.70335386269639},null,0.25,{"$f":"'GF diets L-Val + Fat + WD'!AK$342","v":728.10045668103191},{"$f":"'GF diets L-Val + Fat + WD'!AL$342","v":852.26887422429309},{"$f":"'GF diets L-Val + Fat + WD'!AM$342","v":933.06299604687842},{"$f":"'GF diets L-Val + Fat + WD'!AN$342","v":966.12397518923876},{"$f":"'GF diets L-Val + Fat + WD'!AO$342","v":953.16426326229521},{"$f":"'GF diets L-Val + Fat + WD'!AP$342","v":932.08406418687355},null,0.25,{"$f":"'GF diets L-Val + Fat + WD'!AK$344","v":562.47954762881193},{"$f":"'GF diets L-Val + Fat + WD'!AL$344","v":491.72132395957289},{"$f":"'GF diets L-Val + Fat + WD'!AM$344","v":428.09323903250197},{"$f":"'GF diets L-Val + Fat + WD'!AN$344","v":373.36354614001243},{"$f":"'GF diets L-Val + Fat + WD'!AO$344","v":329.82936941959872},{"$f":"'GF diets L-Val + Fat + WD'!AP$344","v":301.24235802326291},null,0.25,1.7778424197210347,2.0336722270808321,2.3359397178521601,2.6783546769319493,3.0318706965353073,3.3195862844851876,null,0.25,{"$f":"'GF diets L-Val + Fat + WD'!AK$351","v":84.421941546879992},{"$f":"'GF diets L-Val + Fat + WD'!AL$351","v":119.58445030279348},{"$f":"'GF diets L-Val + Fat + WD'!AM$351","v":159.49647340382154},{"$f":"'GF diets L-Val + Fat + WD'!AN$351","v":199.26519952236791},{"$f":"'GF diets L-Val + Fat + WD'!AO$351","v":238.82366439345145},{"$f":"'GF diets L-Val + Fat + WD'!AP$351","v":284.9999097768},null,null,0.25,34.421941546879992,34.584450302793485,39.49647340382154,39.265199522367908,38.823664393451452,44.999909776799996]
[0.3,{"$f":"'GF diets L-Val + Fat + WD'!AR$353","v":73.987896015976716},{"$f":"'GF diets L-Val + Fat + WD'!AS$353","v":73.983065723946495},{"$f":"'GF diets L-Val + Fat + WD'!AT$353","v":73.97518298389079},{"$f":"'GF diets L-Val + Fat + WD'!AU$353","v":73.970042129510418},{"$f":"'GF diets L-Val + Fat + WD'!AV$353","v":73.966930322064314},{"$f":"'GF diets L-Val + Fat + WD'!AW$353","v":74.64906292627694},null,0.3,{"$f":"'GF diets No L-Val + Fat + WD'!AR$316","v":15.509595274826999},{"$f":"'GF diets No L-Val + Fat + WD'!AS$316","v":15.581637688794629},{"$f":"'GF diets No L-Val + Fat + WD'!AT$316","v":15.644130597950809},{"$f":"'GF diets No L-Val + Fat + WD'!AU$316","v":15.677286778377889},{"$f":"'GF diets No L-Val + Fat + WD'!AV$316","v":15.700817905343778},{"$f":"'GF diets No L-Val + Fat + WD'!AW$316","v":8.8153381410832843},null,0.3,{"$f":"'GF diets L-Val + Fat + WD'!AR$351*'GF diets No L-Val'!AR$353/100","v":62.526659330415534},{"$f":"'GF diets L-Val + Fat + WD'!AS$351*'GF diets No L-Val'!AS$353/100","v":88.622094694522715},{"$f":"'GF diets L-Val + Fat + WD'!AT$351*'GF diets No L-Val'!AT$353/100","v":118.19457352900814},{"$f":"'GF diets L-Val + Fat + WD'!AU$351*'GF diets No L-Val'!AU$353/100","v":147.63732008430739},{"$f":"'GF diets L-Val + Fat + WD'!AV$351*'GF diets No L-Val'!AV$353/100","v":176.89217662527261},{"$f":"'GF diets L-Val + Fat + WD'!AW$351*'GF diets No L-Val'!AW$353/100","v":211.29525890146718},null,0.3,{"$f":"'GF diets L-Val + Fat + WD'!AR$342","v":725.70833548714313},{"$f":"'GF diets L-Val + Fat + WD'!AS$342","v":850.26358207143301},{"$f":"'GF diets L-Val + Fat + WD'!AT$342","v":930.71636813888495},{"$f":"'GF diets L-Val + Fat + WD'!AU$342","v":962.53800879494202},{"$f":"'GF diets L-Val + Fat + WD'!AV$342","v":947.39723970899036},{"$f":"'GF diets L-Val + Fat + WD'!AW$342","v":932.08406418687355},null,0.3,{"$f":"'GF diets L-Val + Fat + WD'!AR$344","v":566.12740071945211},{"$f":"'GF diets L-Val + Fat + WD'!AS$344","v":495.68312146732518},{"$f":"'GF diets L-Val + Fat + WD'!AT$344","v":431.72916717503296},{"$f":"'GF diets L-Val + Fat + WD'!AU$344","v":375.90290387684212},{"$f":"'GF diets L-Val + Fat + WD'!AV$344","v":330.59292191323306},{"$f":"'GF diets L-Val + Fat + WD'!AW$344","v":301.24235802326291},null,0.3,1.7663868569674763,2.0174178960134692,2.3162669470385282,2.6602614390221158,3.0248681496649183,3.3195862844851876,null,0.3,{"$f":"'GF diets L-Val + Fat + WD'!AR$351","v":84.308850526242281},{"$f":"'GF diets L-Val + Fat + WD'!AS$351","v":119.50307684235254},{"$f":"'GF diets L-Val + Fat + WD'!AT$351","v":159.39714065207249},{"$f":"'GF diets L-Val + Fat + WD'!AU$351","v":199.11945841961372},{"$f":"'GF diets L-Val + Fat + WD'!AV$351","v":238.58876527047931},{"$f":"'GF diets L-Val + Fat + WD'!AW$351","v":284.9999097768},null,null,0.3,34.308850526242281,34.503076842352542,39.397140652072494,39.119458419613721,38.588765270479314,44.999909776799996]

{"sheet":"Nutrients","index":3,"n_rows":238,"n_cols":173,"rows_kept":238,"cut":false,"hidden":true,"merged":[]}
[null,"Numbers in red are estimated values and not book values"]
[null," - 2012 NRC values = first option and have ingredient number; French book = second option"]
[]
[]
["Ingredient Library","Grind, Mix and Delivey fee",null,null,null,null,null,null,null,null,null,null,null,null,null,null,null,null,null,null,null,null,null,null,null,null,null,null,null,null,null,null,null,null,null,null,null,null,null,null,null,null,null,null,null,null,null,null,null,null,null,null,null,null,null,null,null,null,null,null,null,null,null,null,null,null,null,null,null,null,null,null,null,null,null,null,null,null,null,null,null,null,null,null,null,null,null,null,null,null,null,null,null,null,null,null,null,null,null,null,null,null,null,null,null,null,null,null,null,null,null,null,null,null,null,null,null,null,null,null,null,null,null,null,null,12,"/ton"]
[null,null,"Energy, kcal/kg",null,null,null,null,"Proximate analyses & Carbohyrates (%)",null,null,null,null,null,null,null,null,null,null,null,null,null,null,null,null,null,null,null,"Additional values",null,null,null,"Total amino acid content (%)",null,null,null,null,null,null,null,null,null,null,null,null,null,null,null,null,null,null,"Standardized ileal digestibility (SID) of amino acids (%)",null,null,null,null,null,null,null,null,null,null,null,null,null,null,null,null,null,null,null,"Macrominerals",null,null,null,null,null,null,null,"Phytate P content (%) and P digestibility (%)",null,null,null,null,null,null,"AID amino acid content (%) - calculated",null,null,null,null,null,null,null,null,null,null,null,null,null,"SID amino acid content (%) - calculated",null,null,null,null,null,null,null,null,null,null,null,null,null,null,null,null,null,null,null,null,"Digestible P content (%) - calculated",null,"Dig Ca calculated",null,null,null,null,null,null,null,null,null,null,null,null,null,null,null,null,null,"Added trace mineral levels, %",null,null,null,null,null,null,null,"Added Vitamin levels"]
[null,"Ingredient","GE","DE NRC, kcal/kg","ME, kcal/kg","NE NRC, kcal/kg",null,"Dry Matter","Protein, %","Crude fiber, %","Ether extract, %","Acid ether extract","Ash","Lactose","Sucrose","Raffinose","Stachy-ose","Verbas-cose","Oligosac-charides","Starch","NDF","ADF","AD ligin","Total DF","Insol DF","Sol DF",null,"Organic Residue (Fiber; %)","Digestibility organic residue (%)","Carbon (%)",null,"Arg","His","Isoleucine","Leucine","Lysine","Methionine","Phe","Threonine","Tryptophan","Valine","Alanine","Asp","Cysteine","Glu","Gly","Pro","Ser","Tyr",null,"Crude Protein (N)","Arg","His","Isoleucine","Leucine","Lysine","Methionine","Phe","Threonine","Tryptophan","Valine","Alanine","Asp","Cysteine","Glu","Gly","Pro","Ser","Tyr",null,"Calcium, %","Cl, %","K, %","Mg","Na, %","Phosphorus, %","S",null,"Phytate P ","ATTD","STTD","STTD Ca, %","STTD Ca, % with phytase","Ferm Fiber (%)",null,"Crude protein (Nx6.25)","Arg","His","Ile","Leu","Lys","Met","Met+Cys","Phe","Phe+Tyr","Thr","Trp","Val",null,"Crude protein (Nx6.25)","Arg","His","Isoleucine","Leucine","Lysine","Methionine","Met+Cys","Phe","Phe+Tyr","Threonine","Tryptophan","Valine","Ala","Asp","Cysteine","Glu","Gly","Pro","Ser","Tyr","ATTD","STTD","STTD","STTD w/phytase",null,"ratio line","Cost/ton","Cost/lb","NE Noblet GF, kcal/kg","NE Noblet Sow, kcal/kg","Availability of Phos, %","Avail P, %","Linoleic acid, %","Lactose, %","Phytase, FTU/lb (AOAC)","Phytase tag, FTU/g","Phytate P (ingredient), %","Iodine value","Cystine",null,"Zinc, %","Iron, %","Manganese, %","Copper, %","Iodine, %","Selenium, %","Chromium, %",null,"Vit A, IU/lb","Vit D, IU/lb","Vit E, IU/lb","Vit K (menadione), mg/lb","Vit B12, mg/lb","Niacin, mg/lb","Pantothenic Acid, mg/lb","Riboflavin, mg/lb","Biotin, mg/lb","Folic acid, mg/lb","Pyridoxine, mg/lb","Choline, mg/lb","Carnitine, mg/lb",null,"Ash, % as fed","Dry matter, %","18:2% of fat","18:3% of fat","EFA, % of ingredient",null,"VAL:LEU","ILE:LEU","VAL:ILE","TRP:LEU","Leu:CP"]
[null,"Corn",{"$f":"C24","v":3933},{"$f":"D24","v":3451},3395,2672,0,88.31,8.24,1.98,3.48,3.68,1.3,0,0.09,0.01,0.01,0.01,0,62.55,9.11,2.88,0.32,13.73,0,0,0,12.650000000000006,55,40.263400000000004,0,0.37,0.24,0.28000000000000003,0.96,0.25,0.18,0.39,0.28000000000000003,0.06,0.38,{"$f":"AP24","v":0.6},0.54,0.19,1.48,0.31,0.71,0.38,0.26,0,80,87,83,82,87,74,83,85,77,80,82,{"$f":"BJ24","v":81},79,80,84,84,93,82,79,0,0.02,0.05,0.32,0.12,0.02,0.26,0,0,0.21,{"$f":"CB24","v":26},34,50,60,6.9575000000000031,0,5.3559999999999999,0.27750000000000002,0.18479999999999999,0.20440000000000003,0.78720000000000001,0.15,0.1386,0.28110000000000002,0.30420000000000003,0.49660000000000004,0.17080000000000001,3.7199999999999997E-2,0.26979999999999998,0,6.5920000000000005,{"$f":"AF8*AZ8/100","v":0.32189999999999996},0.19919999999999999,0.2296,0.83519999999999994,0.185,0.14940000000000001,{"$f":"(AK8*BE8+BL8*AR8)/100","v":0.3014},{"$f":"AL8*BF8/100","v":0.33149999999999996},{"$f":"DD8+BQ8*AW8/100","v":0.53689999999999993},{"$f":"AM8*BG8/100","v":0.21560000000000001},{"$f":"AN8*BH8/100","v":4.8000000000000001E-2},{"$f":"AO8*BI8/100","v":0.31159999999999999},{"$f":"AP8*BJ8/100","v":0.48599999999999999},0.42660000000000003,0.152,1.2431999999999999,0.26039999999999996,0.6603,0.31159999999999999,0.2054,6.7599999999999993E-2,8.8399999999999992E-2,{"$f":"DS24","v":0.01},{"$f":"DT24","v":1.2E-2},0,0,160.71428571428572,8.0357142857142863E-2,2650,2730,0.14000000000000001,3.6400000000000002E-2,1.92,0,0,null,0.19,43.5,15.2,0,0,0,0,0,0,0,0,0,0,0,{"$f":"EU24","v":0},0,0,0,0,0,0,0,0,0,0,0,0,0,51.69,1.6,1.854492,0,0.37308429118773945,0.27490421455938702]
[null,"Milo",{"$f":"C70","v":3881},{"$f":"D70","v":3596},3532,2780,0,89.39,9.36,2.14,3.42,2.12,1.64,0,0,0,0,0,0,70.05,10.63,4.93,0.44,4.3499999999999996,0,0,0,4.9200000000000017,66,40.595999999999997,0,0.36,0.21,0.36,1.21,0.2,0.16,0.48,0.3,7.0000000000000007E-2,0.46,{"$f":"AP70","v":0},0,0.18,0,0,0,0,0.32,0,77,80,74,78,83,74,79,83,75,74,77,{"$f":"BJ70","v":0},0,67,0,0,0,0,75,0,0.02,0.09,0.35,0.15,0.01,0.27,0.08,0,0.18,{"$f":"CB70","v":30},40,0,0,3.2472000000000012,0,5.8967999999999998,0.24480000000000002,0.13439999999999999,0.24840000000000001,0.94379999999999997,0.10600000000000001,0.11840000000000001,0.21920000000000001,0.36479999999999996,0.58560000000000001,0.16200000000000001,4.5500000000000006E-2,0.30360000000000004,0,7.2071999999999994,0.28799999999999998,0.15539999999999998,0.28079999999999999,1.0043,0.14800000000000002,0.12640000000000001,{"$f":"(AK9*BE9+BL9*AR9)/100","v":0.247},{"$f":"AL9*BF9/100","v":0.39839999999999998},0.63839999999999997,{"$f":"AM9*BG9/100","v":0.22500000000000001},{"$f":"AN9*BH9/100","v":5.1800000000000006E-2},{"$f":"AO9*BI9/100","v":0.35420000000000001},0,0,0.12059999999999998,0,0,0,0,0.24,8.1000000000000016E-2,0.10800000000000001,{"$f":"DS70","v":0},{"$f":"DT70","v":0},0,0,200,0.1,2620,2650,0.2,5.4000000000000006E-2,1.1299999999999999,0,0,null,0.23,41.04,12.059999999999999,0,0,0,0,0,0,0,0,0,0,0,{"$f":"EU70","v":0},0,0,0,0,0,0,0,0,0,0,0,0,0,46.26,2.2999999999999998,1.6607519999999998,0,0.35268346111719606,0.27959772976202329]
[1,"Alfalfa Meal",4038,1830,1720,897,null,92.3,16.25,null,1.7,1.7,10.1,null,null,null,null,null,null,3.4,42,32.15,8.3000000000000007,3.4," "," ",null,60.85,45,38.783000000000001,null,0.71,0.37,0.68,1.21,0.74,0.25,0.84,0.7,0.24,0.86,null,null,0.18,null,null,null,null,0.55000000000000004,null,62.083333333333336,74,59,68,71,56,71,70,63,46,64,null,null,37,null,null,null,null,66,null,1.1399999999999999,0.47,2.2999999999999998,0.23,0.09,0.3,0.28999999999999998,null,null,50,55,null,null,27.3825,null,6.3375000000000004,0.45439999999999997,0.185,0.40120000000000006,0.76230000000000009,0.37,0.16,0.19600000000000001,0.52079999999999993,0.84529999999999994,0.35699999999999998,9.3599999999999989E-2,0.47299999999999998,null,10.088541666666668,{"$f":"AF10*AZ10/100","v":0.52539999999999998},0.21829999999999999,0.46240000000000003,0.85909999999999997,0.41439999999999999,0.17749999999999999,{"$f":"(AK10*BE10+BL10*AR10)/100","v":0.24410000000000001},0.58799999999999997,0.95100000000000007,0.44099999999999995,0.1104,0.5504,null,null,null,null,null,null,null,null,{"$f":"CB10*BX10/100","v":0.15},{"$f":"CC10*BX10/100","v":0.16500000000000001},{"$f":"BS10*CD10/100","v":0},{"$f":"BS10*CE10/100","v":0},null,null,{"$f":"DX10*2000","v":160},0.08,860,1027,1,{"$f":"BX10*EA10","v":0.3},0.35,0,0,null,0.01,{"$f":"125*K10/10","v":21.25},{"$f":"IF(AR10=\"\",\"\",AR10*BL10)","v":6.66},null,null,null,null,null,null,null,null,null,null,null,null,null,null,null,null,null,null,null,null,null,null,null,null,null,null,null,null,null,{"$f":"DH10/CZ10","v":0.64067046909556513},{"$f":"CY10/CZ10","v":0.53823769060644866},{"$f":"DH10/CY10","v":1.1903114186851209},{"$f":"DG10/CZ10","v":0.12850657664998255},{"$f":"CZ10/I10","v":5.2867692307692303E-2}]
[2,"Bakery Meal",4558,3940,3856,2981,null,90.8,12.3,null,8.0500000000000007,null,2.9,null,null,null,null,null,null,52.8,2,5.51,null,null,null,null,null,14.75,53,42.506500000000003,null,0.57999999999999996,0.22,0.51,0.88,0.41,0.19,0.5,0.42,0.15,0.53,null,null,0.18,null,null,null,null,0.55000000000000004,null,86.875,null,null,94,90,77,90,null,69,91,93,null,null,91,null,null,null,null,null,null,0.13,1.48,0.39,0.24,1.1399999999999999,0.25,0.02,null,null,55,59,null,null,7.8174999999999999,null,0,0,0,0,0,0,0,0,0,0,0,0,0,null,10.685625,{"$f":"AF11*AZ11/100","v":0},{"$f":"AG11*BA11/100","v":0},{"$f":"AH11*BB11/100","v":0.47939999999999999},{"$f":"AI11*BC11/100","v":0.79200000000000004},{"$f":"AJ11*BD11/100","v":0.31569999999999998},{"$f":"AK11*BE11/100","v":0.17100000000000001},{"$f":"(AK11*BE11+BL11*AR11)/100","v":0.33480000000000004},0,0,0.2898,0.13650000000000001,0.4929,null,null,null,null,null,null,null,null,0.13750000000000001,0.14749999999999999,{"$f":"BS11*CD11/100","v":0},{"$f":"BS11*CE11/100","v":0},null,null,{"$f":"DX11*2000","v":100},0.05,null,null,0.2,0.05,5.7,0,0,null,0.18,{"$f":"125*K11/10","v":100.62500000000001},{"$f":"IF(AR11=\"\",\"\",AR11*BL11)","v":16.38},null,null,null,null,null,null,null,null,null,null,null,null,null,null,null,null,null,null,null,null,null,null,null,null,null,null,null,null,null,0.62234848484848482,0.60530303030303023,1.028160200250313,0.17234848484848486,6.4390243902439026E-2]
[3,"Barley",3939,3150,3073,2327,null,89.9,11.33,3.9,2.11,2.1,2.38,null,null,null,null,null,null,50.21,18.29,5.78,2.2799999999999998,15.35,null,null,null,23.870000000000012,45,40.442400000000006,null,0.53,0.27,0.37,0.72,0.4,0.2,0.53,0.36,0.13,0.52,null,null,0.26,null,null,null,null,0.28000000000000003,null,79,85,81,79,81,75,82,81,76,82,80,null,null,81,null,null,null,null,78,null,0.06,0.12,0.38,0.14000000000000001,0.02,0.35,0.13,null,0.22,39,45,null,null,10.741500000000006,null,7.4777999999999993,0.39750000000000002,0.1971,0.26640000000000003,0.53280000000000005,0.26400000000000001,0.15200000000000002,0.34179999999999999,0.40279999999999999,0.59319999999999995,0.21599999999999997,9.4899999999999998E-2,0.36920000000000003,null,8.9507000000000012,0.45050000000000007,0.21870000000000001,0.2923,0.58320000000000005,0.3,0.16400000000000003,0.3746000000000001,0.42930000000000001,0.64770000000000005,0.27360000000000001,0.1066,0.41600000000000004,null,null,null,null,null,null,null,null,0.13649999999999998,0.15749999999999997,0,0,null,null,{"$f":"DX12*2000","v":85.714285714285708},{"$f":"1.8/42","v":4.2857142857142858E-2},2280,2320,0.3,0.105,0.91,0,0,null,0.2,{"$f":"100*K12/10","v":21.1},{"$f":"IF(AR12=\"\",\"\",AR12*BL12)","v":21.060000000000002},null,null,null,null,null,null,null,null,null,null,null,null,null,null,null,null,null,null,null,null,null,null,null,null,null,54.7,5.5,{"$f":"SUM(FI12:FJ12)/100*K12","v":1.2702199999999999},null,0.71330589849108372,0.50120027434842251,1.4231953472459802,0.18278463648834017,5.1473962930273613E-2]
[4,"Barley, Hulless",3959,3266,3179,2464,null,89.58,12.77,1.1000000000000001,3.17,null,1.94,null,null,null,null,null,null,54.56,12.55,2.1800000000000002,null,null,null,null,null,17.14,45,40.896700000000003,null,0.68,0.4,0.35,0.74,0.51,0.2,0.54,0.37,0.13,0.55000000000000004,null,null,0.23,null,null,null,null,0.25,null,69,77,77,75,75,65,73,75,70,null,75,null,null,72,null,null,null,null,74,null,0.06,0.1,0.44,0.12,0.02,0.36,null,null,0.26,31,36,null,null,7.713000000000001,null,8.0450999999999997,0.46240000000000003,0.28400000000000003,0.22750000000000001,0.50319999999999998,0.28560000000000002,0.13600000000000001,0.28320000000000001,0.37800000000000006,0.54050000000000009,0.2072,0,0.36300000000000004,null,8.8112999999999992,0.52360000000000007,0.308,0.26250000000000001,0.55500000000000005,0.33149999999999996,0.14600000000000002,0.31160000000000004,0.40500000000000003,0.59000000000000008,0.25900000000000001,0,0.41249999999999998,null,null,null,null,null,null,null,null,0.1116,0.12959999999999999,0,0,null,null,0,null,null,null,null,0,null,null,null,null,0.26,null,null,null,null,null,null,null,null,null,null,null,null,null,null,null,null,null,null,null,null,null,null,null,null,null,null,null,54.7,5.5,{"$f":"SUM(FI13:FJ13)/100*K13","v":1.9083399999999999},null,0.74324324324324309,0.47297297297297297,1.5714285714285712,0,4.3461237274862966E-2]
[5,"Beans, Faba",4473,3245,3060,2143,null,88.12,27.16,8.5500000000000007,1.3,null,3.43,0,0,0,0,0,null,39.22,13.29,10.33,0.48,null,null,null,null,17.010000000000012,60,40.294100000000007,null,2.4300000000000002,0.72,1.1299999999999999,1.94,1.65,0.19,1.19,0.91,0.22,1.22,null,null,0.34,null,null,null,null,0.84,null,79,90,79,81,82,85,73,80,78,64,78,null,null,62,null,null,null,null,82,null,0.14000000000000001,7.0000000000000007E-2,1.2,0.15,0.03,0.42,0.28999999999999998,null,0.23,32,36,null,null,10.206000000000007,null,19.826800000000002,2.1383999999999999,0.54720000000000002,0.87009999999999987,1.5326,1.3529999999999998,0.1235,0.31390000000000001,0.9163,1.5379,0.63700000000000001,0.13419999999999999,0.89060000000000006,null,21.456399999999999,2.1870000000000003,0.56879999999999997,0.91529999999999989,1.5907999999999998,1.4025000000000001,0.13870000000000002,0.34950000000000003,0.95199999999999985,1.6407999999999998,0.70979999999999999,0.14080000000000001,0.9516,null,null,null,null,null,null,null,null,0.13439999999999999,0.1512,0,0,null,null,0,null,null,null,null,0,null,null,null,null,0.23,null,null,null,null,null,null,null,null,null,null,null,null,null,null,null,null,null,null,null,null,null,null,null,null,null,null,null,null,null,null,null,0.59818959014332418,0.57537088257480518,1.0396591281547034,8.8508926326376677E-2,5.8571428571428566E-2]
[6,"Blood Meal",5330,4376,3773,2279,null,93.23,88.65,null,1.45,2,5.82,null,null,null,null,null,null,0,null,0,null,null,null,null,null,0,0,48.086500000000001,null,3.83,5.39,0.97,11.45,8.6,1.18,6.15,4.3600000000000003,1.34,7.96,null,null,1.26,null,null,null,null,2.66,null,89,92,91,73,93,93,88,92,87,91,92,null,null,86,null,null,null,null,88,null,0.05,0.63,0.15,0.11,0.63,0.21,0.47,null,null,67,88,null,null,0,null,77.125500000000002,3.4853000000000005,4.851,0.65959999999999996,9.7324999999999982,7.9979999999999993,0.9675999999999999,1.9882,5.5964999999999998,7.7776999999999994,3.7496000000000005,1.1926000000000001,7.2435999999999998,null,78.898499999999999,3.5236000000000001,4.9048999999999996,0.70810000000000006,10.648499999999999,7.9979999999999993,1.0384,2.1219999999999999,5.6580000000000004,7.998800000000001,3.7932000000000006,1.2194,7.3232000000000008,null,null,null,null,null,null,null,null,0.14069999999999999,0.18479999999999999,0,0,null,null,1600,0.8,2070,2070,0.92,0.19320000000000001,0.17,0,0,null,null,{"$f":"44*K15/10","v":6.38},{"$f":"IF(AR15=\"\",\"\",AR15*BL15)","v":108.36},null,null,null,null,null,null,null,null,null,null,null,null,null,null,null,null,null,null,null,null,null,null,null,null,null,null,null,null,null,0.68772127529699034,6.6497628774005738E-2,10.342042084451348,0.11451378128374891,0.12011844331641283]
[7,"Blood Plasma",4733,4546,4017,2506,null,91.97,77.84,null,2,2.7,8.68,null,null,null,null,null,null,0,null,0,null,null,null,null,null,0,0,42.775200000000005,null,4.3899999999999997,2.5299999999999998,2.69,7.39,6.9,0.79,4.25,4.47,1.41,5.12,null,null,2.6,null,null,null,null,3.89,null,81,91,87,85,87,87,84,86,80,92,82,null,null,85,null,null,null,null,76,null,0.13,1.19,0.02,0.03,2.76,1.28,1.02,null,null,92,98,null,null,0,null,59.1584,3.8632,2.1504999999999996,2.1789000000000001,6.2076000000000002,5.8650000000000002,0.63200000000000001,2.7640000000000002,3.5274999999999999,6.4061000000000003,3.4419,1.1984999999999999,4.0448000000000004,null,63.050399999999996,3.9948999999999995,2.2010999999999998,2.2865000000000002,6.4292999999999996,6.003000000000001,0.66359999999999997,2.8736000000000002,3.6549999999999998,6.6113999999999997,3.5759999999999996,1.2971999999999999,4.1984000000000004,null,null,null,null,null,null,null,null,1.1776,1.2544,0,0,null,null,4000,2,2027.337080405933,2027.337080405933,0.92,1.1776,null,0,0,null,null,{"$f":"44*K16/10","v":8.8000000000000007},{"$f":"IF(AR16=\"\",\"\",AR16*BL16)","v":221},null,null,null,null,null,null,null,null,null,null,null,null,null,null,null,null,null,null,null,null,null,null,null,null,null,null,null,null,null,0.65301043659496383,0.35563747219759545,1.8361688169691668,0.20176380010265504,8.2596351490236378E-2]
[8,"Brewers Grain",4805,2100,1920,1155,null,92,26.5,null,4.72,7.3,4.4000000000000004,null,null,null,null,null,null,5.3,48.7,20.14,null,null,null,null,null,51.080000000000005,34,42.950200000000009,null,1.53,0.53,1.02,2.08,1.08,0.45,1.22,0.95,0.26,1.26,null,null,0.49,null,null,null,null,0.88,null,85,93,83,87,86,80,87,90,80,81,84,null,null,76,null,null,null,null,93,null,0.21,0.15,0.08,0.16,0.26,0.57999999999999996,0.31,null,0.35,32,39,null,null,17.367200000000004,null,18.55,1.2393000000000001,0.371,0.82620000000000005,1.5184,0.74520000000000008,0.33300000000000002,0.6613,0.98819999999999997,1.7889999999999999,0.66500000000000004,0.1898,0.91980000000000006,null,22.524999999999999,1.4228999999999998,0.43990000000000001,0.88739999999999997,1.7887999999999999,0.8640000000000001,0.39149999999999996,0.76390000000000002,1.0979999999999999,1.9163999999999999,0.76,0.21060000000000001,1.0584,null,null,null,null,null,null,null,null,0.18559999999999999,0.22619999999999998,0,0,null,null,0,null,null,null,null,{"$f":"BX17*EA17","v":0},null,null,null,null,0.35,null,null,null,null,null,null,null,null,null,null,null,null,null,null,null,null,null,null,null,null,null,null,null,null,null,null,null,null,null,null,null,0.59168157423971379,0.49608676207513419,1.1926977687626776,0.1177325581395349,6.7501886792452823E-2]
[9,"Canola, Full Fat",6371,5234,5084,4059,null,94.57,22.06,6.1,43.61,null,3.71,null,null,null,null,null,null,0.7,16.71,12.57,5.4,null,null,null,null,24.489999999999991,58,56.163899999999998,null,1,0.6,0.6,1.1399999999999999,1.01,0.38,0.73,0.83,0.23,0.83,null,null,0.46,null,null,null,null,0.55000000000000004,null,64,84,80,74,76,73,81,77,70,71,71,null,null,70,null,null,null,null,75,null,0.36,null,1.02,0.19,null,0.7,null,null,0.79,28,32,42,50,14.204199999999993,null,14.559599999999998,0.81,0.46199999999999997,0.43799999999999994,0.83219999999999994,0.70700000000000007,0.2964,0.60000000000000009,0.53290000000000004,0.91790000000000005,0.53120000000000001,0.15180000000000002,0.54779999999999995,null,14.118399999999999,0.84,0.48,0.44400000000000001,0.86639999999999984,0.73730000000000007,0.30780000000000002,0.62980000000000003,0.56210000000000004,0.97460000000000002,0.58099999999999996,0.16330000000000003,0.58930000000000005,null,null,null,null,null,null,null,null,0.19599999999999998,0.22399999999999998,0.1512,0.18,null,null,0,null,null,null,null,0,null,null,null,null,0.79,null,null,null,null,null,null,null,null,null,null,null,null,null,null,null,null,null,null,null,null,null,null,null,null,null,null,null,null,null,null,null,0.6801708217913206,0.51246537396121894,1.3272522522522523,0.18848107109879969,3.9274705349048047E-2]
[10,"Canola Meal, Expelled",4873,3779,3540,2351,null,93.11,35.19,9.77,9.9700000000000006,null,6.39,null,null,null,null,null,null,3.8,23.77,17.57,7.31,25.81,null,null,null,37.760000000000005,58,44.891900000000007,null,1.76,0.82,1.67,1.95,1.58,0.61,1.48,1.22,0.32,1.63,null,null,0.79,null,null,null,null,0.78,null,75,83,78,78,78,71,83,80,70,73,73,null,null,76,null,null,null,null,74,null,0.69,null,null,0.52,null,1.1499999999999999,null,null,0.87,28,32,42,50,21.900800000000004,null,24.632999999999996,1.4080000000000001,0.62319999999999998,1.2691999999999999,1.5015000000000001,1.1060000000000001,0.50019999999999998,1.0848,1.1692,1.7307999999999999,0.8173999999999999,0.23039999999999999,1.1573,null,26.392499999999998,1.4608000000000001,0.63959999999999995,1.3026,1.5209999999999999,1.1218000000000001,0.50629999999999997,1.1067,1.1840000000000002,1.7612000000000001,0.85399999999999987,0.2336,1.1899,null,null,null,null,null,null,null,null,0.32199999999999995,0.36799999999999999,0.28979999999999995,0.34499999999999997,null,null,160,0.08,1505,1625,0.21,0.24149999999999996,0.42,0,0,null,0.89,{"$f":"125*K19/10","v":124.625},{"$f":"IF(AR19=\"\",\"\",AR19*BL19)","v":60.040000000000006},null,null,null,null,null,null,null,null,null,null,null,null,null,null,null,null,null,null,null,null,null,null,null,null,null,null,null,null,null,0.78231426692965156,0.85641025641025648,0.91348073084600034,0.15358316896778437,4.3222506393861895E-2]
[11,"Canola Meal, Solvent Extracted",4332,3273,3013,1890,null,91.33,37.5,10.5,3.22,null,6.89,null,null,null,null,null,26.77,6.07,22.64,15.42,3.36,26.6,null,null,null,37.65,58,41.935499999999998,null,2.2799999999999998,1.07,1.42,2.4500000000000002,2.0699999999999998,0.71,1.48,1.55,0.43,1.78,null,null,0.86,null,null,null,null,1.06,null,74,85,78,76,78,74,85,77,70,71,74,null,null,74,null,null,null,null,77,null,0.69,0.11,1.69,0.28000000000000003,7.0000000000000007E-2,1.08,0.85,null,0.65,28,32,42,50,21.837,null,25.5,1.8695999999999997,0.80249999999999999,1.0224,1.8130000000000002,1.4697,0.58219999999999994,1.1841999999999999,1.0952,1.8584000000000001,1.0075000000000001,0.2838,1.2282000000000002,null,27.75,1.9379999999999997,0.83460000000000012,1.0791999999999999,1.9110000000000003,1.5317999999999998,0.60349999999999993,1.2399,1.1395999999999999,1.9558,1.085,0.30530000000000002,1.3171999999999999,null,null,null,null,null,null,null,null,0.3024,0.34560000000000002,0.28979999999999995,0.34499999999999997,null,null,0,null,null,null,null,0,null,null,null,null,0.87,null,null,null,null,null,null,null,null,null,null,null,null,null,null,null,null,null,null,null,null,null,null,null,null,null,null,null,null,null,null,null,0.68927263212977485,0.56473050758765031,1.220533728687917,0.1597592883307169,5.0960000000000005E-2]
[12,"Casava Meal",3451,3407,3387,2647,null,88.09,2.88,4.18,0.94,null,5.7,0,0,0,0,0,null,67.849999999999994,6.55,5.99,null,null,null,null,null,10.720000000000013,36,36.918800000000005,null,0.18,0.08,0.11,0.19,0.12,0.04,0.15,0.11,0.04,0.14000000000000001,null,null,0.05,null,null,null,null,0.04,null,77.916666666666671,90,80,81,79,71,84,80,73,77,76,null,null,68,null,null,null,null,76,null,0.28000000000000003,7.0000000000000007E-2,0.49,0.11,0.03,0.12,0.5,null,0.04,10,24,null,null,3.8592000000000048,null,0,0,0,0,0,0,0,0,0,0,0,0,0,null,2.2440000000000002,0.16200000000000001,6.4000000000000001E-2,8.9099999999999999E-2,0.15010000000000001,8.5199999999999998E-2,3.3599999999999998E-2,6.7599999999999993E-2,0.12,0.15040000000000001,8.0299999999999996E-2,3.0800000000000001E-2,0.10640000000000001,null,null,null,null,null,null,null,null,1.2E-2,2.8799999999999999E-2,0,0,null,null,0,null,null,null,null,0,null,null,null,null,0.04,null,null,null,null,null,null,null,null,null,null,null,null,null,null,null,null,null,null,null,null,null,null,null,null,null,null,null,null,null,null,null,0.70886075949367089,0.59360426382411724,1.1941638608305276,0.20519653564290471,5.2118055555555563E-2]
[13,"Citrus Pulp",3828,2773,2728,1757,null,90.9,6.64,null,2.4900000000000002,null,7.73,null,null,null,null,null,null,2.5299999999999998,21.23,20.2,null,null,null,null,null,71.510000000000005,78,38.704300000000003,null,0.26,0.12,0.18,0.32,0.19,7.0000000000000007E-2,0.24,0.18,0.05,0.24,null,null,0.08,null,null,null,null,0.16,null,81.083333333333329,89,84,81,83,77,85,84,76,77,78,null,null,73,null,null,null,null,86,null,1.71,null,0.74,0.11,0.52,0.09,7.0000000000000007E-2,null,0.04,69,50,null,null,55.777800000000006,null,0,0,0,0,0,0,0,0,0,0,0,0,0,null,5.3839333333333332,0.23139999999999999,0.1008,0.14580000000000001,0.2656,0.14630000000000001,5.9500000000000004E-2,0.11789999999999999,0.2016,0.3392,0.1368,3.85E-2,0.18719999999999998,null,null,null,null,null,null,null,null,6.2100000000000002E-2,4.4999999999999998E-2,0,0,null,null,0,null,null,null,null,0,null,null,null,null,0.04,null,null,null,null,null,null,null,null,null,null,null,null,null,null,null,null,null,null,null,null,null,null,null,null,null,null,null,null,null,null,null,0.70481927710843362,0.54894578313253017,1.2839506172839503,0.14495481927710843,0.04]
[14,"Copra Meal",4199,3010,2861,1747,null,92,21.9,null,3,null,6.2,null,null,null,null,null,null,2.6,51.3,25.5,null,null,null,null,null,58.29999999999999,79,41.265999999999998,null,2.38,0.39,0.75,1.36,0.57999999999999996,0.35,0.84,0.67,0.19,1.07,null,null,0.28999999999999998,null,null,null,null,0.57999999999999996,null,71.916666666666671,88,70,72,73,64,77,75,67,69,71,null,null,65,null,null,null,null,72,null,0.13,0.37,1.83,0.31,0.04,0.57999999999999996,0.31,null,0.26,34,44,50,{"$f":"CD23+10","v":60},46.056999999999988,null,11.388,1.9278,0.2457,0.48,0.92480000000000007,0.29580000000000001,0.23449999999999999,0.3911,0.59640000000000004,0.90380000000000005,0.3417,0.1197,0.72760000000000002,null,15.749749999999999,2.0943999999999998,0.27300000000000002,0.54,0.99280000000000002,0.37119999999999997,0.26950000000000002,0.45799999999999996,0.63,1.0476000000000001,0.44890000000000002,0.13109999999999999,0.75970000000000004,null,null,null,null,null,null,null,null,0.19719999999999999,0.25519999999999998,6.5000000000000002E-2,7.8000000000000014E-2,null,null,0,null,null,null,null,0,null,null,null,null,0.22,null,null,null,null,null,null,null,null,null,null,null,null,null,null,null,null,null,null,null,null,null,null,null,null,null,null,null,null,null,null,null,0.76520950846091862,0.54391619661563262,1.4068518518518518,0.13205076551168413,4.5333333333333337E-2]
[15,"Corn, Yellow Dent",3933,3451,3395,2672,null,88.31,8.24,1.98,3.48,3.68,1.3,0,0.09,0.01,0.01,0.01,null,62.55,9.11,2.88,0.32,13.73,null,null,null,12.650000000000006,55,40.263400000000004,null,0.37,0.24,0.28000000000000003,0.96,0.25,0.18,0.39,0.28000000000000003,0.06,0.38,0.6,0.54,0.19,1.48,0.31,0.71,0.38,0.26,null,80,87,83,82,87,74,83,85,77,80,82,81,79,80,84,84,93,82,79,null,0.02,0.05,0.32,0.12,0.02,0.26,null,null,0.21,26,34,50,{"$f":"CD24+10","v":60},6.9575000000000031,null,5.3559999999999999,0.27750000000000002,0.18479999999999999,0.20440000000000003,0.78720000000000001,0.15,0.1386,0.28110000000000002,0.30420000000000003,0.49660000000000004,0.17080000000000001,3.7199999999999997E-2,0.26979999999999998,null,6.5920000000000005,0.32189999999999996,0.19919999999999999,0.2296,0.83519999999999994,0.185,0.14940000000000001,0.3014,0.33149999999999996,0.53689999999999993,0.21560000000000001,4.8000000000000001E-2,0.31159999999999999,{"$f":"AP24*BJ24/100","v":0.48599999999999999},0.42660000000000003,0.152,1.2431999999999999,0.26039999999999996,0.6603,0.31159999999999999,0.2054,6.7599999999999993E-2,8.8399999999999992E-2,0.01,1.2E-2,null,null,160.71428571428572,{"$f":"'DDGS Calculator'!D5/56","v":8.0357142857142863E-2},2650,2730,0.14000000000000001,3.6400000000000002E-2,1.92,0,0,null,0.19,{"$f":"125*K24/10","v":43.5},{"$f":"IF(AR24=\"\",\"\",AR24*BL24)","v":15.2},null,null,null,null,null,null,null,null,null,null,null,null,null,null,null,null,null,null,null,null,null,null,null,null,null,51.69,1.6,{"$f":"SUM(FI24:FJ24)/100*K24","v":1.854492},null,0.37308429118773945,0.27490421455938702,1.3571428571428572,5.7471264367816098E-2,0.10135922330097086]
[16,"Corn, Nutridense",3987,3455,3394,2718,null,87.93,9.02,2.2200000000000002,4.8499999999999996,5.01,1.44,null,null,null,null,null,null,67.44,6.98,2.33,null,9.6,null,null,null,5.180000000000021,55,40.47120000000001,null,0.44,0.26,0.32,1.0900000000000001,0.27,0.2,0.43,0.31,7.0000000000000007E-2,0.44,null,null,0.22,null,null,null,null,0.28000000000000003,null,83,83,82,85,87,79,83,86,78,76,81,null,null,82,null,null,null,null,80,null,0.04,null,0.3,0.11,null,0.27,null,null,0.16,26,34,50,60,2.8490000000000117,null,6.6748000000000003,0.33,0.20019999999999999,0.2432,0.90470000000000017,0.17550000000000002,0.158,0.3296,0.34399999999999997,0.54,0.19219999999999998,4.5500000000000006E-2,0.31679999999999997,null,7.4865999999999993,0.36520000000000002,0.2132,0.27200000000000002,0.94830000000000014,0.21330000000000002,0.16600000000000001,0.34639999999999999,0.36979999999999996,0.59379999999999999,0.24179999999999999,5.3200000000000004E-2,0.35639999999999999,null,null,null,null,null,null,null,null,7.0199999999999999E-2,9.1799999999999993E-2,0.02,2.4E-2,null,null,96,4.8000000000000001E-2,null,null,0.14000000000000001,3.7800000000000007E-2,{"$f":"0.59*K25","v":2.8614999999999995},0,0,null,0.16,{"$f":"125*K25/10","v":60.625},{"$f":"IF(AR25=\"\",\"\",AR25*BL25)","v":18.04},null,null,null,null,null,null,null,null,null,null,null,null,null,null,null,null,null,null,null,null,null,null,null,null,null,null,null,null,null,0.37583043340714956,0.2868290625329537,1.3102941176470586,5.6100390171886533E-2,0.10513303769401332]
[17,"Corn Bran",4652,2649,2584,1977,null,88.5,9.5299999999999994,6.61,8.52,null,2.5299999999999998,0,0,0,0,0,null,31.73,32.96,9.23,null,null,null,null,null,36.19,43,41.772799999999997,null,0.56000000000000005,0.28999999999999998,0.3,0.97,0.35,0.19,0.37,0.35,0.08,0.46,null,null,0.2,null,null,null,null,0.3,null,80.5,89,83,81,84,74,86,83,74,75,79,null,null,73,null,null,null,null,85,null,0.47,null,null,null,null,0.28999999999999998,null,null,null,20,27,50,60,15.561699999999998,null,6.0038999999999998,0,0,0.21,0.77599999999999991,0.20649999999999999,0.15579999999999999,0.2838,0.27379999999999999,0.50180000000000002,0.1925,4.3200000000000002E-2,0.31740000000000002,null,7.6716499999999996,0.49840000000000001,0.24069999999999997,0.24299999999999999,0.81480000000000008,0.25900000000000001,0.16339999999999999,0.30940000000000001,0.30709999999999998,0.56210000000000004,0.25900000000000001,0.06,0.36340000000000006,null,null,null,null,null,null,null,null,5.7999999999999996E-2,7.8299999999999995E-2,0.23499999999999999,0.28199999999999997,null,null,0,null,null,null,null,0,null,null,null,null,0.35,null,null,null,null,null,null,null,null,null,null,null,null,null,null,null,null,null,null,null,null,null,null,null,null,null,null,null,null,null,null,null,0.44599901816396664,0.29823269513991157,1.4954732510288069,7.3637702503681873E-2,8.5498426023085008E-2]
[18,"Corn DDG",4919,3355,3158,2109,null,90.82,28.89,9.48,8.69,null,3.04,null,null,null,null,null,null,3.83,41.86,15.55,null,43.9,null,null,null,46.37,43,44.467799999999997,null,1.22,0.78,1.19,4.03,0.87,0.62,1.62,1.1299999999999999,0.21,1.56,null,null,0.56999999999999995,null,null,null,null,1.31,null,76,83,84,83,86,78,89,87,78,71,81,null,null,81,null,null,null,null,80,null,0.08,0.08,0.17,0.25,0.09,0.56000000000000005,null,null,null,60,65,50,60,19.9391,null,19.356300000000001,0.91500000000000004,0.63180000000000003,0.95199999999999985,3.3852000000000002,0.6351,0.54559999999999997,0.98449999999999993,1.3446,1.3446,0.8022999999999999,0.13229999999999997,1.2168000000000001,null,21.956399999999999,1.0125999999999999,0.6552,0.98769999999999991,3.4658000000000002,0.67859999999999998,0.55179999999999996,1.0134999999999998,1.4094,2.4573999999999998,0.88139999999999985,0.14910000000000001,1.2636000000000001,null,null,null,null,null,null,null,null,0.33600000000000002,0.36400000000000005,0.04,4.8000000000000001E-2,null,null,0,null,null,null,null,0,null,null,null,null,0.15,null,null,null,null,null,null,null,null,null,null,null,null,null,null,null,null,null,null,null,null,null,null,null,null,null,null,null,null,null,{"$f":"SUM(FI27:FJ27)/100*K27","v":0},null,0.36459114778694673,0.28498470771539036,1.2793358307178295,4.3020370477234691E-2,0.11996538594669437]
[19,"Corn DDGS, >10% Oil",4849,3620,3434,2384,null,89.31,27.33,7.06,10.43,11.27,4.1100000000000003,null,null,null,null,null,null,6.73,32.5,11.75,2.61,31.35,null,null,null,40.710000000000008,70,43.692400000000006,null,1.1599999999999999,0.71,1.02,3.13,0.77,0.55000000000000004,1.34,0.99,0.21,1.35,null,null,0.51,null,null,null,null,1.04,null,74,81,78,76,84,61,82,81,71,71,75,null,null,73,null,null,null,null,81,null,0.12,null,0.9,0.28999999999999998,0.22,0.73,0.66,null,0.26,60,65,50,60,28.497000000000007,null,17.491199999999999,0.85839999999999994,0.52539999999999998,0.73439999999999994,2.5665999999999998,0.42349999999999999,0.44,0.79190000000000005,1.0452000000000001,1.8564000000000003,0.63359999999999994,0.13229999999999997,0.95850000000000013,null,20.2242,0.93959999999999999,0.55379999999999996,0.7752,2.6292,0.46970000000000001,0.45100000000000001,0.82330000000000014,1.0854000000000001,1.9278000000000002,0.70290000000000008,0.14910000000000001,1.0125,null,null,null,null,null,null,null,null,0.43799999999999994,0.47449999999999998,0.06,7.1999999999999995E-2,null,null,250,0.125,{"$f":"DY20","v":0},{"$f":"DZ20","v":0},0.77,0.56210000000000004,{"$f":"0.59*K28","v":6.1536999999999997},null,0,null,0.15,{"$f":"125*K28/10","v":130.375},{"$f":"IF(AR28=\"\",\"\",AR28*BL28)","v":37.230000000000004},null,null,null,null,null,null,null,null,null,null,null,null,null,null,null,null,null,null,null,null,null,null,null,4.1500000000000002E-2,0.88500000000000001,56.21,1.22,5.9899490000000002,null,0.38509812870835236,0.29484253765403923,1.3061145510835912,5.6709265175718851E-2,9.6201975850713509E-2]
[20,"Corn DDGS, >6 and <9% Oil",4710,3582,3396,2343,null,89.35,27.36,8.92,8.9,8.7100000000000009,4.04,null,null,null,null,null,null,9.6300000000000008,30.46,12.02,null,null,null,null,null,39.419999999999995,70,43.241,null,1.23,0.74,1.06,3.25,0.9,0.56999999999999995,1.37,0.99,0.2,1.39,null,null,0.44,null,null,null,null,1.22,null,74,81,78,76,84,61,82,81,71,71,75,null,null,73,null,null,null,null,81,null,0.08,0.2,0.88,0.49,0.3,0.6,0.48,null,0.26,60,65,50,60,27.593999999999998,null,17.510400000000001,0.91020000000000001,0.54759999999999998,0.7632000000000001,2.665,0.495,0.45599999999999996,0.75959999999999994,1.0686000000000002,2.0202,0.63359999999999994,0.126,0.9869,null,20.246399999999998,0.99629999999999996,0.57719999999999994,0.80559999999999998,2.73,0.54899999999999993,0.46739999999999993,0.78859999999999986,1.1097000000000001,2.0979000000000001,0.70290000000000008,0.14200000000000002,1.0424999999999998,null,null,null,null,null,null,null,null,0.36,0.39,0.04,4.8000000000000001E-2,null,null,250,0.125,null,null,0.77,0.46199999999999997,{"$f":"0.59*K29","v":5.2510000000000003},null,null,null,0.32,{"$f":"125*K29/10","v":111.25},null,null,null,null,null,null,null,null,null,null,null,null,null,null,null,null,null,null,null,null,null,null,null,null,null,null,56.21,1.22,5.1112700000000002,null,0.38186813186813179,0.29509157509157508,1.2940665342601785,5.2014652014652017E-2,9.978070175438597E-2]
[21,"Corn DDGS, <4% Oil",5098,3291,3102,2009,null,89.25,27.86,6.19,3.57,null,4.6399999999999997,null,null,null,null,null,null,10,33.75,16.91,null,null,null,null,null,43.18,70,41.31,null,1.31,0.82,1.02,3.64,0.68,0.5,1.69,0.97,0.18,1.34,null,null,0.51,null,null,null,null,1.1299999999999999,null,74,81,78,76,84,61,82,81,71,71,75,null,null,73,null,null,null,null,81,null,0.05,null,null,null,null,0.76,null,null,0.26,60,65,50,60,30.225999999999999,null,17.830400000000001,0.96939999999999993,0.60680000000000001,0.73439999999999994,2.9848000000000003,0.37400000000000005,0.4,0.75190000000000001,1.3182,2.1995999999999998,0.62080000000000002,0.1134,0.95140000000000002,null,20.616399999999999,1.0610999999999999,0.63959999999999995,0.7752,3.0575999999999999,0.41480000000000006,0.41,0.7823,1.3688999999999998,2.2841999999999998,0.68870000000000009,0.1278,1.0049999999999999,null,null,null,null,null,null,null,null,0.45600000000000002,0.49399999999999999,2.5000000000000001E-2,0.03,null,null,0,null,null,null,null,0,null,null,null,null,0.04,{"$f":"125*K30/10","v":44.625},null,null,null,null,null,null,null,null,null,null,null,null,null,null,null,null,null,null,null,null,null,null,null,null,null,null,56.21,1.22,2.0502509999999998,null,0.32868916797488223,0.25353218210361067,1.296439628482972,4.1797488226059658E-2,0.10974874371859296]
[22,"Corn HP DDG",5173,4040,3732,2342,null,91.2,45.35,7.3,3.54,3.7,2.39,null,null,null,null,null,null,10.15,33.630000000000003,20.63,3.77,null,null,null,null,29.770000000000003,43,44.588400000000007,null,1.62,1.07,1.83,6.18,1.22,0.93,2.42,1.59,0.24,2.12,null,null,0.82,null,null,null,null,1.92,null,76,85,79,80,86,69,86,84,75,82,78,null,null,78,null,null,null,null,85,null,0.02,null,0.37,0.09,0.06,0.36,0.75,null,0.11,64,73,50,60,12.801100000000002,null,31.745000000000001,1.3122,0.82389999999999997,1.4091,5.2529999999999992,0.79299999999999993,0.79049999999999998,1.4055,1.9843999999999999,3.5779999999999998,1.1130000000000002,0.18239999999999998,1.59,null,34.466000000000001,1.3770000000000002,0.84530000000000005,1.464,5.3148,0.84179999999999988,0.79980000000000007,1.4394,2.0327999999999999,3.6647999999999996,1.1924999999999999,0.1968,1.6536000000000002,null,null,null,null,null,null,null,null,0.23039999999999999,0.26279999999999998,0.01,1.2E-2,null,36.5,120,0.06,null,null,0.77,0.2772,{"$f":"0.59*K31","v":2.0886},null,null,null,0.11,{"$f":"125*K31/10","v":44.25},{"$f":"IF(AR31=\"\",\"\",AR31*BL31)","v":63.959999999999994},null,null,null,null,null,null,null,null,null,null,null,null,null,null,null,null,null,null,null,null,null,null,null,1.6500000000000001E-2,0.89539999999999997,56.21,1.22,2.0330220000000003,null,0.31113118085346581,0.27545721381801763,1.1295081967213116,3.7028674644389255E-2,0.11719514884233737]
[23,"Corn Germ",4919,3670,3569,2807,null,90.87,14.79,null,19.739999999999998,17.600000000000001,5.54,0,0,0,0,0,null,23.51,18.27,6.67,2.37,null,null,null,null,27.290000000000017,55,45.466000000000008,null,1.1100000000000001,0.42,0.43,1.05,0.78,0.26,0.56999999999999995,0.52,0.1,0.72,null,null,0.32,null,null,null,null,0.41,null,56,87,72,61,69,64,72,66,57,63,67,null,null,66,null,null,null,null,61,null,0.02,null,1.53,0.52,0.01,1.27,0.17,null,1.07,33,37,50,60,15.00950000000001,null,4.8807,0.87690000000000012,0.27300000000000002,0.21929999999999999,0.64049999999999996,0.43680000000000002,0.17420000000000002,0.35980000000000001,0.32489999999999997,0.53400000000000003,0.21840000000000001,0.05,0.41039999999999999,null,8.2824000000000009,0.96570000000000011,0.3024,0.26229999999999998,0.72450000000000003,0.49920000000000003,0.18719999999999998,0.39840000000000003,0.37619999999999998,0.62629999999999997,0.2964,6.3E-2,0.48239999999999994,null,null,null,null,null,null,null,null,0.41910000000000003,0.46990000000000004,0.01,1.2E-2,null,null,0,null,null,null,null,0,null,null,null,null,0.84,null,null,null,null,null,null,null,null,null,null,null,null,null,null,null,null,null,null,null,null,null,null,null,null,null,null,null,57.2,1.1000000000000001,11.508420000000001,null,0.66583850931677002,0.36204278812974461,1.839115516584064,8.6956521739130432E-2,4.8985801217038542E-2]
[24,"Corn Germ Meal",4178,2988,2830,1888,null,90.1,23.33,9.5299999999999994,2.12,5.41,2.96,null,null,null,null,null,null,14.2,44.46,10.75,1.0900000000000001,41.56,null,null,null,47.489999999999995,55,41.5946,null,1.49,1.17,0.64,0.75,1.7,1.04,0.37,0.89,0.78,0.63,null,null,0.25,null,null,null,null,0.63,null,null,83,78,75,78,62,80,81,70,66,73,null,null,63,null,null,null,null,79,null,0.03,null,0.54,0.36,null,0.9,0.36,null,null,33,37,50,60,26.119499999999999,null,13.997999999999999,1.1323999999999999,0.83069999999999988,0.4224,0.54,0.90099999999999991,0.80079999999999996,0.94829999999999992,0.27750000000000002,0.75,0.52510000000000001,0.41340000000000005,0.4032,null,0,1.2366999999999999,0.91259999999999986,0.48,0.58499999999999996,1.0539999999999998,0.83200000000000007,0.98950000000000005,0.29969999999999997,0.7974,0.623,0.51480000000000004,0.45990000000000003,null,null,null,null,null,null,null,null,0.29699999999999999,0.33300000000000002,1.4999999999999999E-2,1.7999999999999999E-2,null,null,0,null,null,null,null,0,null,null,null,null,0.54,null,null,null,null,null,null,null,null,null,null,null,null,null,null,null,null,null,null,null,null,null,null,null,null,null,null,null,57.2,1.1000000000000001,1.2359600000000002,null,0.7861538461538462,0.82051282051282048,0.95812500000000012,0.88000000000000012,2.5075010715816547E-2]
[25,"Corn Gluten Feed",3989,2990,2872,2043,null,87.13,17.39,7.08,4.21,null,5.14,0,0,0,0,0,null,23.67,27.5,8.43,null,26.8,null,null,null,36.72,48,39.355100000000007,null,1.04,0.67,0.66,1.96,0.63,0.35,0.76,0.74,7.0000000000000007E-2,1.01,null,null,0.46,null,null,null,null,0.57999999999999996,null,76.583333333333329,86,75,80,85,66,82,85,71,66,77,null,null,62,null,null,null,null,84,null,0.09,0.22,0.98,0.33,0.15,0.78,0.22,null,0.62,26,32,50,60,17.625599999999999,null,11.1296,0.8216,0.46230000000000004,0.44880000000000003,1.5875999999999999,0.32130000000000003,0.27649999999999997,0.52029999999999998,0.60799999999999998,1.0720000000000001,0.42180000000000001,3.2900000000000006E-2,0.71709999999999996,null,13.317841666666666,0.89439999999999997,0.50249999999999995,0.52800000000000002,1.6659999999999999,0.4158,0.28699999999999998,0.57220000000000004,0.64599999999999991,1.1332,0.52539999999999998,4.6199999999999998E-2,0.77769999999999995,null,null,null,null,null,null,null,null,0.20280000000000001,0.24960000000000002,4.4999999999999998E-2,5.3999999999999992E-2,null,null,0,null,null,null,null,0,null,null,null,null,0.2,null,null,null,null,null,null,null,null,null,null,null,null,null,null,null,null,null,null,null,null,null,null,null,null,null,null,null,null,null,null,null,0.46680672268907564,0.31692677070828335,1.4729166666666664,2.7731092436974789E-2,9.5802185163887291E-2]
[26,"Corn Gluten Meal",4865,4133,3737,2464,null,90.04,58.25,0.7,4.74,0.63,1.46,0,0,0,0,0,null,17.93,1.57,7.08,null,null,null,null,null,7.6600000000000037,97,45.81110000000001,null,1.66,1.32,2.23,9.82,0.93,1.21,3.52,1.81,0.27,2.42,null,null,1.01,null,null,null,null,2.86,null,75,91,87,93,96,81,93,94,87,77,91,null,null,88,null,null,null,null,94,null,0.03,0.06,0.18,0.09,0.02,0.49,1,null,null,38,47,50,60,7.4302000000000028,null,41.94,1.4607999999999999,1.1352000000000002,2.0293000000000001,9.4272000000000009,0.71609999999999996,1.1132,1.9818,3.2736000000000001,5.9333999999999998,1.5204,0.16470000000000001,2.1537999999999999,null,43.6875,1.5105999999999999,1.1484000000000001,2.0739000000000001,9.4272000000000009,0.75329999999999997,1.1253,2.0141,3.3087999999999997,5.9971999999999994,1.5747,0.20790000000000003,2.2021999999999999,null,null,null,null,null,null,null,null,0.1862,0.2303,1.4999999999999999E-2,1.7999999999999999E-2,null,null,0,null,null,null,null,0,null,null,null,null,0.47,null,null,null,null,null,null,null,null,null,null,null,null,null,null,null,null,null,null,null,null,null,null,null,null,null,null,null,null,null,null,null,0.2336006449422946,0.21999108961303462,1.0618641207387047,2.2053207739307537E-2,0.1618403433476395]
[27,"Corn Grits, Hominy Feed",4145,3355,3293,2574,null,87.47,9.1199999999999992,3.19,7.4,null,2.34,0,0,0,0,0,null,47.58,14.3,4.51,null,10.11,null,null,null,21.029999999999987,43,40.85629999999999,null,0.56000000000000005,0.28000000000000003,0.36,0.98,0.38,0.18,0.43,0.4,0.1,0.52,null,null,0.18,null,null,null,null,0.4,null,80.083333333333329,87,80,81,86,71,87,86,73,68,80,null,null,74,null,null,null,null,88,null,0.28999999999999998,7.0000000000000007E-2,0.61,0.24,0.08,0.73,0.03,null,0.49,26,34,50,60,9.0428999999999942,null,0,0,0,0,0,0,0,0,0,0,0,0,0,null,7.3035999999999994,0.48720000000000008,0.22400000000000003,0.29160000000000003,0.84279999999999999,0.26979999999999998,0.15659999999999999,0.2898,0.36979999999999996,0.7218,0.29200000000000004,6.8000000000000005E-2,0.41600000000000004,null,null,null,null,null,null,null,null,0.1898,0.2482,0.14499999999999999,0.17399999999999999,null,null,90,4.4999999999999998E-2,2714,2389,0.14000000000000001,0.10220000000000001,2.97,0,0,null,0.57999999999999996,{"$f":"125*K36/10","v":92.5},{"$f":"IF(AR36=\"\",\"\",AR36*BL36)","v":13.32},null,null,null,null,null,null,null,null,null,null,null,null,null,null,null,null,null,null,null,null,null,null,null,null,null,null,null,null,null,0.49359278595159001,0.34598955861414338,1.4266117969821674,8.0683436165163741E-2,9.241228070175439E-2]
[28,"Cotton Seeds, Fullfat",5248,3207,3045,1970,null,92.56,23.77,null,16.510000000000002,null,4,null,null,null,null,null,null,2.2999999999999998,51.04,38.590000000000003,10.75,null,null,null,null,45.980000000000004,31,46.848700000000008,null,2.41,0.61,0.7,1.18,0.87,0.33,1.17,0.67,0.25,0.98,null,null,0.33,null,null,null,null,0.56000000000000005,null,null,null,null,null,null,null,null,null,null,null,null,null,null,null,null,null,null,null,null,null,0.15,null,null,null,null,0.65,null,null,null,31,36,null,null,14.253800000000002,null,17.3521,2.0967000000000002,0.43920000000000003,0.46899999999999997,0.82599999999999996,0.51329999999999998,0.23100000000000001,0.47189999999999999,0.9242999999999999,1.3331,0.42880000000000001,0.17,0.67620000000000002,null,0,0,0,0,0,0,0,0,0,0,0,0,0,null,null,null,null,null,null,null,null,0.20150000000000001,0.23400000000000001,0,0,null,null,0,null,null,null,null,0,null,null,null,null,0.51,null,null,null,null,null,null,null,null,null,null,null,null,null,null,null,null,null,null,null,null,null,null,null,null,null,null,null,null,null,null,null,{"$error":"#DIV/0!"},{"$error":"#DIV/0!"},{"$error":"#DIV/0!"},{"$error":"#DIV/0!"},0]
[29,"Cotton Seed Meal",4383,2912,2645,1624,null,90.69,39.22,13.96,5.5,null,6.39,0,0,0,0,0,null,1.95,25.15,17.920000000000002,null,null,null,null,null,37.629999999999995,31,42.758099999999999,null,4.04,1.1100000000000001,1.21,2.1800000000000002,1.5,0.51,1.98,1.36,0.53,1.86,null,null,0.82,null,null,null,null,0.98,null,77,88,74,70,73,63,73,81,68,71,73,null,null,76,null,null,null,null,76,null,0.25,0.05,1.4,0.5,0.04,0.98,0.31,null,null,31,36,null,null,11.665299999999997,null,28.630600000000001,3.5148000000000001,0.79920000000000002,0.81069999999999998,1.5260000000000002,0.88500000000000001,0.35700000000000004,0.9556,1.5641999999999998,2.2795999999999998,0.87040000000000006,0.3604,1.2834000000000001,null,30.199400000000001,{"$f":"AF38*AZ38/100","v":3.5551999999999997},{"$f":"AG38*BA38/100","v":0.82140000000000002},{"$f":"AH38*BB38/100","v":0.84699999999999998},{"$f":"AI38*BC38/100","v":1.5914000000000001},{"$f":"AJ38*BD38/100","v":0.94499999999999995},{"$f":"AK38*BE38/100","v":0.37230000000000002},0.99549999999999994,1.6037999999999999,2.3485999999999998,0.92480000000000007,0.37630000000000002,1.3578000000000001,null,null,null,null,null,null,null,null,0.30380000000000001,0.3528,0,0,null,null,0,null,null,null,null,0,null,null,null,null,0.75,null,null,null,null,null,null,null,null,null,null,null,null,null,null,null,null,null,null,null,null,null,null,null,null,null,null,null,null,null,null,null,0.85321100917431192,0.53223576724896315,1.6030696576151124,0.23645846424531858,4.0576236613972465E-2]
[30,"Feather Meal",5467,3400,2850,1740,null,94.24,80.900000000000006,0.32,5.97,null,5.08,null,null,null,null,null,null,0,null,0,null,null,null,null,null,2.2899999999999894,0,48.444699999999997,null,5.63,0.82,3.63,6.59,2,0.59,3.95,3.72,0.6,5.75,null,null,4.32,null,null,null,null,2.12,null,68,81,56,76,77,56,73,79,71,63,75,null,null,73,null,null,null,null,79,null,0.41,0.26,0.19,0.2,0.34,0.28000000000000003,1.39,null,null,74,89,76,87,0,null,60.674999999999997,4.5602999999999998,0.44279999999999992,2.7225000000000001,5.0743,1.08,0.38350000000000001,3.4507000000000003,3.0810000000000004,4.6286000000000005,2.5668000000000002,0.36,4.3125,null,55.012000000000008,4.5602999999999998,0.45919999999999994,2.7587999999999999,5.0743,1.1200000000000001,0.43070000000000003,3.5843000000000003,3.1205000000000003,4.795300000000001,2.6412,0.37799999999999995,4.3125,null,null,null,null,null,null,null,null,0.20720000000000002,0.2492,0.31159999999999999,0.35669999999999996,null,null,0,null,null,null,null,0,null,null,null,null,null,null,null,null,null,null,null,null,null,null,null,null,null,null,null,null,null,null,null,null,null,null,null,null,null,null,null,null,null,null,null,null,0.84987091815619886,0.54368090179926298,1.5631796433231839,7.4493033521865079E-2,6.2723114956736714E-2]
[31,"Fish Meal Combined",4496,3958,3528,2351,null,93.7,63.28,0.24,9.7100000000000009,8.73,16.07,null,null,null,null,null,null,0,null,0,null,null,null,null,null,4.6400000000000006,87,43.006000000000007,null,3.84,1.44,2.56,4.47,4.5599999999999996,1.73,2.4700000000000002,2.58,0.63,3.06,null,null,0.61,null,null,null,null,1.88,null,85,86,84,83,83,86,87,82,81,76,83,null,null,64,null,null,null,null,74,null,4.28,0.55000000000000004,0.62,0.13,0.4,2.93,null,null,null,79,82,76,87,4.0368000000000004,null,51.889600000000002,3.2639999999999998,1.1808000000000001,2.0992000000000002,3.6653999999999995,3.8759999999999994,1.4878,1.8660000000000001,1.9760000000000002,3.3483999999999998,2.0124,0.45990000000000003,2.4786000000000001,null,53.788000000000004,3.3024,1.2096,2.1248,3.7100999999999997,3.9215999999999998,1.5050999999999999,1.8954999999999997,2.0254000000000003,3.4166000000000003,2.0898000000000003,0.4788,2.5398000000000001,null,null,null,null,null,null,null,null,2.3147000000000002,2.4026000000000001,3.2528000000000001,3.7236000000000002,null,null,1400,0.7,2190,2180,0.94,2.7542,0.12,0,0,null,null,{"$f":"75*K40/10","v":72.825000000000017},{"$f":"IF(AR40=\"\",\"\",AR40*BL40)","v":39.04},null,null,null,null,null,null,null,null,null,null,null,null,null,null,null,null,null,null,null,null,null,null,null,null,null,null,null,null,null,0.68456375838926176,0.5727069351230426,1.1953125,0.12905312525268861,5.8629898862199742E-2]
[32,"Flaxseed",6117,null,null,null,null,92.13,22.53,6,33.770000000000003,null,3.33,null,null,null,null,null,null,4,39.65,24.85,null,null,null,null,null,28.499999999999993,60,52.191099999999999,null,2.2000000000000002,0.51,0.95,1.35,0.91,0.43,1.08,0.85,null,1.1599999999999999,null,null,0.41,null,null,null,null,null,null,81.833333333333329,null,null,77,null,84,85,null,82,86,77,null,null,null,null,null,null,null,null,null,0.38,null,null,null,null,0.61,null,null,null,21,28,null,null,17.099999999999994,null,0,0,0,0,0,0,0,0,0,0,0,0,0,null,18.437049999999999,0,0,0.73149999999999993,0,0.76439999999999997,0.36549999999999999,0.36549999999999999,0,0,0.69700000000000006,0,0.89319999999999988,null,null,null,null,null,null,null,null,0.12809999999999999,0.17079999999999998,0,0,null,null,0,null,null,null,null,0,null,null,null,null,{"$f":"BX41*0.707","v":0.43126999999999999},null,null,null,null,null,null,null,null,null,null,null,null,null,null,null,null,null,null,null,null,null,null,null,null,null,null,null,null,null,null,null,{"$error":"#DIV/0!"},{"$error":"#DIV/0!"},1.2210526315789474,{"$error":"#DIV/0!"},0]
[33,"Flaxseed Meal",4887,3060,2834,1830,null,90.18,33.28,9.18,6.45,null,5.23,null,4.67,null,null,null,null,5.17,24.93,15.87,5.89,null,null,null,null,35.379999999999995,60,42.697600000000001,null,3,0.67,1.33,1.91,1.19,0.77,1.49,1.1299999999999999,0.51,1.55,null,null,0.59,null,null,null,null,0.72,null,78,82,74,79,78,77,82,79,74,78,75,null,null,77,null,null,null,null,78,null,0.37,0.06,1.26,0.5,0.13,0.87,0.39,null,null,21,28,null,null,21.227999999999998,null,20.300800000000002,2.4,0.46230000000000004,0.98419999999999996,1.3943000000000001,0.77349999999999997,0.56980000000000008,0.92380000000000007,1.1174999999999999,1.5854999999999999,0.66669999999999985,0.29070000000000001,1.054,null,25.958400000000001,2.46,0.49580000000000007,1.0507,1.4897999999999998,0.9163,0.63139999999999996,1.0856999999999999,1.1771,1.7387000000000001,0.83619999999999994,0.39779999999999999,1.1625000000000001,null,null,null,null,null,null,null,null,0.1827,0.24359999999999998,0,0,null,null,0,null,null,null,null,0,null,null,null,null,{"$f":"BX42*0.647","v":0.56289},null,null,null,null,null,null,null,null,null,null,null,null,null,null,null,null,null,null,null,null,null,null,null,null,null,null,null,null,null,null,null,0.7803060813532019,0.70526245133574983,1.1064052536404303,0.26701570680628273,4.4765624999999989E-2]
[34,"Lupins",4366,3397,3176,2043,null,91.13,32.44,14.25,6.08,null,3.67,null,null,null,null,null,null,7.44,24.11,19.899999999999999,1.52,null,30.03,1.61,null,41.5,87,43.762600000000006,null,3.61,0.92,1.39,2.31,1.58,0.21,1.34,1.2,0.26,1.32,null,null,0.46,null,null,null,null,1.1599999999999999,null,86,93,86,85,85,85,81,84,82,82,81,null,null,83,null,null,null,null,82,null,0.37,0.03,1.1000000000000001,0.19,0.02,0.31,0.24,null,0.21,50,57,null,null,36.104999999999997,null,25.951999999999998,3.3212000000000002,0.76359999999999995,1.1536999999999999,1.8942000000000001,1.2956000000000001,0.1575,0.51629999999999998,1.0988,2.0152000000000001,0.91200000000000003,0.20280000000000001,1.0164,null,27.898399999999995,3.3572999999999995,0.79120000000000001,1.1815,1.9635,1.3430000000000002,0.17009999999999997,0.55189999999999995,1.1255999999999999,2.0768,0.98399999999999987,0.2132,1.0691999999999999,null,null,null,null,null,null,null,null,0.155,0.17669999999999997,0,0,null,null,0,null,null,null,null,0,null,null,null,null,0.21,null,null,null,null,null,null,null,null,null,null,null,null,null,null,null,null,null,null,null,null,null,null,null,null,null,null,null,null,null,null,null,0.54453781512605037,0.60173160173160167,0.90495133305120601,0.1085816144639674,6.0527127003699145E-2]
[35,"Meat Meal",4497,3452,3068,2010,null,96.12,56.4,null,11.09,null,21.59,null,null,null,null,null,null,0,31.6,8.3000000000000007,null,null,null,null,null,7.0400000000000063,57,41.488399999999999,null,3.65,1.24,1.82,3.7,3.2,0.83,1.98,1.89,0.4,2.61,null,null,0.56000000000000005,null,null,null,null,1.35,null,76,84,75,78,77,78,82,79,74,76,76,null,null,62,null,null,null,null,78,null,6.37,0.97,0.56999999999999995,0.35,0.8,3.16,0.45,null,null,82,86,77,86,4.0128000000000039,null,41.171999999999997,3.0295000000000001,0.9052,1.365,2.7749999999999999,2.4320000000000004,0.66399999999999992,0.99439999999999995,1.5246000000000002,2.5641000000000003,1.3418999999999999,0.26800000000000002,1.9313999999999998,null,42.863999999999997,3.0659999999999998,0.93,1.4196,2.8490000000000002,2.4960000000000004,0.68059999999999998,1.0278,1.5641999999999998,2.6172,1.3985999999999998,0.30400000000000005,1.9835999999999998,null,null,null,null,null,null,null,null,2.5912000000000002,2.7176,4.9049000000000005,5.4782000000000002,null,null,0,null,null,null,null,0,null,null,null,null,null,null,null,null,null,null,null,null,null,null,null,null,null,null,null,null,null,null,null,null,null,null,null,null,null,null,null,null,null,null,null,null,0.69624429624429618,0.49828009828009823,1.397295012679628,0.10670410670410671,5.0514184397163125E-2]
[36,"Meat and Bone Meal, P >4%",3806,3303,2963,1961,null,95.16,50.05,null,9.2100000000000009,null,31.95,null,null,null,null,null,null,0,32.5,5.05,null,null,null,null,null,3.9499999999999993,0,35.303599999999996,null,3.53,0.91,1.47,3.06,2.59,0.69,1.65,1.63,0.3,2.19,null,null,0.46,null,null,null,null,1.08,null,72,83,71,73,76,73,84,79,69,62,76,null,null,56,null,null,null,null,68,null,10.94,0.69,0.65,0.41,0.63,5.26,0.38,null,null,68,70,77,82,0,null,34.033999999999999,2.8239999999999998,0.61880000000000002,1.0143,2.2031999999999998,1.8129999999999997,0.55889999999999995,0.77049999999999996,1.254,1.8912,1.0431999999999999,0.156,1.5768,null,36.036000000000001,2.9298999999999999,0.64610000000000001,1.0730999999999999,2.3256000000000001,1.8906999999999998,0.57959999999999989,0.83719999999999994,1.3034999999999999,2.0378999999999996,1.1247,0.18599999999999997,1.6643999999999999,null,null,null,null,null,null,null,null,3.5768,3.6819999999999999,8.4238,8.9707999999999988,null,51.5,300,0.15,1724.0497076023391,1672,0.9,4.734,0.72,0,0,null,null,{"$f":"64*K45/10","v":58.944000000000003},{"$f":"IF(AR45=\"\",\"\",AR45*BL45)","v":25.76},null,null,null,null,null,null,null,null,null,null,null,null,null,null,null,null,null,null,null,null,null,null,null,null,null,null,null,null,null,0.71568627450980382,0.46142930856553144,1.5510204081632653,7.9979360165118668E-2,4.6465534465534468E-2]
[37,"Milk, Casein",5670,4135,3530,2088,null,91.72,88.95,0,0.17,null,0,null,null,null,null,null,null,0,null,0,null,null,null,null,null,2.5999999999999961,95,48.442700000000002,null,3.13,2.57,4.49,8.24,6.87,2.52,4.49,3.77,1.33,5.81,null,null,0.45,null,null,null,null,4.87,null,94,95,97,95,97,97,98,96,93,96,96,null,null,85,null,null,null,null,97,null,0.2,0.04,0.01,0.01,0.01,0.68,0.6,null,null,87,98,null,null,2.4699999999999962,null,77.386500000000012,2.7544,2.3900999999999999,4.0859000000000005,7.7456000000000005,6.5264999999999995,2.4192,2.7206999999999999,4.1757,8.7534999999999989,3.2422000000000004,1.2236000000000002,5.3452000000000002,null,83.613000000000014,2.9734999999999996,2.4929000000000001,4.2655000000000003,7.9927999999999999,6.6638999999999999,2.4696000000000002,2.8521000000000005,4.3104000000000005,9.0343,3.5061,1.2768000000000002,5.5776000000000003,null,null,null,null,null,null,null,null,0.59160000000000001,0.66639999999999999,0,0,null,null,0,null,null,null,null,0,null,null,null,null,null,null,null,null,null,null,null,null,null,null,null,null,null,null,null,null,null,null,null,null,null,null,null,null,null,null,null,null,null,null,null,null,0.69782804524071673,0.53366780102091882,1.307607548939163,0.15974376939245322,8.9857223159078126E-2]
[38,"Milk, Lactose",4143,3525,3525,2923,null,95,0,null,0,null,0,95,null,null,null,null,null,0,null,0,null,null,null,null,null,0,0,39.9,null,null,null,null,null,null,null,null,null,null,null,null,null,null,null,null,null,null,null,null,null,null,null,null,null,null,null,null,null,null,null,null,null,null,null,null,null,null,null,null,null,null,null,null,null,null,null,null,null,null,null,null,null,0,null,0,0,0,0,0,0,0,0,0,0,0,0,0,null,0,0,0,0,0,0,0,0,0,0,0,0,0,null,null,null,null,null,null,null,null,0,0,0,0,null,null,600,0.3,3038.7358916478556,2995.9367945823928,0,0,0,100,0,null,null,{"$f":"44*K47/10","v":0},{"$f":"IF(AR47=\"\",\"\",AR47*BL47)","v":""},null,null,null,null,null,null,null,null,null,null,null,null,null,null,null,null,null,null,null,null,null,null,null,null,null,null,null,null,null,{"$error":"#DIV/0!"},{"$error":"#DIV/0!"},{"$error":"#DIV/0!"},{"$error":"#DIV/0!"},{"$error":"#DIV/0!"}]
[39,"Milk, Skim Milk Powder",4437,3980,3730,2695,null,94.6,36.770000000000003,null,0.9,null,8,47.82,null,null,null,null,null,0,null,0,null,null,null,null,null,1.1099999999999923,94,40.756,null,1.17,0.94,1.45,3.02,2.42,0.82,1.51,1.44,0.44,1.85,null,null,0.33,null,null,null,null,1.48,null,90,95,93,91,94,94,92,95,92,88,92,null,null,86,null,null,null,null,93,null,1.27,1,1.6,0.12,0.48,1.06,0.32,null,null,91,98,93,97,1.0433999999999928,null,31.622200000000003,1.0529999999999999,0.85539999999999994,1.2904999999999998,2.7783999999999995,2.2263999999999999,0.74619999999999986,1.0134999999999998,1.4043000000000001,2.7511000000000001,1.2671999999999999,0.39600000000000002,1.6465000000000001,null,33.093000000000004,1.1114999999999999,0.87419999999999998,1.3194999999999999,2.8388,2.2747999999999999,0.75439999999999996,1.0382,1.4344999999999999,2.8108999999999997,1.3248,0.38719999999999999,1.7020000000000002,null,null,null,null,null,null,null,null,0.96460000000000012,1.0388000000000002,1.1811,1.2319,null,null,2400,1.2,2700,2700,0.91,0.96460000000000012,0.01,50,0,null,null,{"$f":"44*K48/10","v":3.96},{"$f":"IF(AR48=\"\",\"\",AR48*BL48)","v":28.380000000000003},null,null,null,null,null,null,null,null,null,null,null,null,null,null,null,null,null,null,null,null,null,null,null,null,null,null,null,null,null,0.5995491052557419,0.46480907425672818,1.2898825312618418,0.13639566013808652,7.7204242589067162E-2]
[40,"Milk, Whey Powder",3647,3494,3415,2704,null,97.15,11.55,0.08,0.83,null,8,72.88,null,null,null,null,null,0,null,0,null,null,null,null,null,3.8900000000000148,76,39.112400000000008,null,0.26,0.21,0.64,1.1100000000000001,0.88,0.17,0.35,0.71,0.2,0.61,null,null,0.26,null,null,null,null,0.27,null,102,98,96,96,98,97,98,90,89,97,96,null,null,93,null,null,null,null,97,null,0.62,1.4,1.96,0.13,0.94,0.69,0.72,null,null,82,92,96,96,2.956400000000011,null,10.048500000000001,0.21580000000000002,0.18899999999999997,0.60160000000000002,1.0434000000000001,0.82719999999999994,0.16150000000000003,0.3851,0.27299999999999996,0.50519999999999998,0.60349999999999993,0.15600000000000003,0.55509999999999993,null,11.781000000000001,0.25480000000000003,0.2016,0.61439999999999995,1.0878000000000001,0.85360000000000003,0.1666,0.40840000000000004,0.31499999999999995,0.57689999999999997,0.63190000000000002,0.19400000000000003,0.58560000000000001,null,null,null,null,null,null,null,null,0.56579999999999997,0.63479999999999992,0.59519999999999995,0.59519999999999995,null,null,1100,0.55000000000000004,2840,2800,0.97,0.6692999999999999,1.1000000000000001,72,0,null,null,{"$f":"44*K49/10","v":3.6519999999999997},{"$f":"IF(AR49=\"\",\"\",AR49*BL49)","v":24.18},null,null,null,null,null,null,null,null,null,null,null,null,null,null,null,null,null,null,null,null,null,null,null,null,null,null,null,null,null,0.53833425261996681,0.56480970766685046,0.95312500000000011,0.17834160691303549,9.4181818181818186E-2]
[41,"Milk, Whey Permeate, 80% lactose",3657,3626,3606,2922,null,98,3,null,0.2,null,9,80,null,null,null,null,null,0,null,0,null,null,null,null,null,0.79999999999999716,76,37.801999999999992,null,null,null,0.13,0.22,0.2,0.04,null,0.13,0.13,0.13,null,null,0.05,null,null,null,null,null,null,{"$f":"AY49","v":102},{"$f":"AZ49","v":98},96,96,98,97,98,90,89,97,96,null,null,93,null,null,null,null,97,null,0.27,2.23,2.1,null,1,0.34,null,null,null,82,92,58,71,0.60799999999999788,null,0,0,0,0,0,0,0,0,0,0,0,0,0,null,0,0,0,0.12480000000000001,0.21559999999999999,0.19400000000000003,3.9199999999999999E-2,8.5699999999999998E-2,0,0,0.1157,0.12610000000000002,0.12480000000000001,null,null,null,null,null,null,null,null,0.27880000000000005,0.31280000000000002,0.15659999999999999,0.19170000000000001,null,null,900,0.45,2840,2800,0.97,0.32980000000000004,0,80,0,null,null,{"$f":"44*K50/10","v":0.88000000000000012},{"$f":"IF(AR50=\"\",\"\",AR50*BL50)","v":4.6500000000000004},null,null,null,null,null,null,null,null,null,null,null,null,null,null,null,null,null,null,null,null,null,null,null,null,null,null,null,null,null,0.57884972170686466,0.57884972170686466,1,0.58487940630797786,7.1866666666666662E-2]
[42,"Milk, Whey Protein Concentrate",5245,4949,4430,2797,null,94.4,76.319999999999993,1.33,0.2,null,2.63,5,null,null,null,null,null,0,null,0,null,null,null,null,null,10.250000000000014,76,47.314100000000003,null,2.0099999999999998,1.46,4.74,8.43,6.85,1.65,2.7,4.82,1.59,4.54,null,null,1.79,null,null,null,null,2.34,null,86,93,92,95,95,93,96,87,85,95,95,null,null,85,null,null,null,null,86,null,0.63,null,null,null,null,0.38,null,null,null,82,92,null,null,7.7900000000000116,null,64.108799999999988,1.7687999999999999,1.2556,4.2186000000000003,7.5869999999999997,6.3019999999999996,1.5015000000000001,3.0051000000000001,2.214,4.1093999999999999,4.0006000000000004,1.3992000000000002,4.0860000000000003,null,65.635199999999998,1.8692999999999997,1.3431999999999999,4.5030000000000001,8.0084999999999997,6.3704999999999998,1.5839999999999999,3.1054999999999997,2.3490000000000002,4.3613999999999997,4.0970000000000004,1.5105000000000002,4.3129999999999997,null,null,null,null,null,null,null,null,0.31159999999999999,0.34960000000000002,0,0,null,null,0,null,null,null,null,0,null,null,null,null,null,null,null,null,null,null,null,null,null,null,null,null,null,null,null,null,null,null,null,null,null,null,null,null,null,null,null,null,null,null,null,null,0.53855278766310788,0.56227758007117445,0.95780590717299574,0.18861209964412814,0.10493317610062894]
[43,"Millet",4472,3020,2939,2218,null,88.5,11.9,null,4.25,null,3.2,null,null,null,null,null,null,54.95,15.8,13.8,null,4.78,null,null,null,14.199999999999989,24,40.104999999999997,null,0.56999999999999995,0.28999999999999998,0.49,1.22,0.37,0.28000000000000003,0.55000000000000004,0.45,0.17,0.66,null,null,0.32,null,null,null,null,0.57999999999999996,null,88,89,90,89,91,83,75,91,86,97,87,null,null,88,null,null,null,null,86,null,0.03,0.03,0.43,0.16,0.04,0.31,0.14000000000000001,null,null,50,55,null,null,3.4079999999999973,null,9.4009999999999998,0.46739999999999993,0.2465,0.40670000000000001,1.0613999999999999,0.27379999999999999,0.20160000000000003,0.46400000000000008,0.46750000000000008,0.93730000000000002,0.33750000000000002,0.14280000000000001,0.53459999999999996,null,10.472000000000001,0.50729999999999997,0.26099999999999995,0.43609999999999999,1.1101999999999999,0.30709999999999998,0.21000000000000005,0.49160000000000004,0.50050000000000006,0.99930000000000008,0.38700000000000001,0.16490000000000002,0.57420000000000004,null,null,null,null,null,null,null,null,0.155,0.17050000000000001,0,0,null,null,0,null,null,null,null,0,null,null,null,null,0.18,null,null,null,null,null,null,null,null,null,null,null,null,null,null,null,null,null,null,null,null,null,null,null,null,null,null,null,null,null,null,null,0.5172041073680419,0.39281210592686006,1.3166704884200873,0.14853179607277972,9.3294117647058805E-2]
[44,"Molasses, Sugarbeet",3045,2366,2298,1795,null,72.2,10,null,0.16,null,6.3,null,47.5,null,null,null,null,0,null,0.08,null,null,null,null,null,8.2400000000000091,53,29.079600000000006,null,0.06,0.04,0.24,0.24,0.1,0.03,0.06,0.08,0.05,0.15,null,null,0.05,null,null,null,null,0.24,null,88.25,92,90,88,89,86,90,90,86,86,87,null,null,84,null,null,null,null,91,null,0.25,null,null,null,null,0.16,null,null,null,50,63,null,null,4.3672000000000049,null,8.6,0,0,0.18960000000000002,0.17759999999999998,3.7000000000000005E-2,2.0400000000000001E-2,4.2400000000000007E-2,2.76E-2,0.22199999999999998,2.5600000000000001E-2,2.2000000000000002E-2,8.8499999999999995E-2,null,8.8249999999999993,5.5199999999999999E-2,3.6000000000000004E-2,0.21119999999999997,0.21359999999999998,8.5999999999999993E-2,2.6999999999999996E-2,6.9000000000000006E-2,5.3999999999999992E-2,0.27239999999999998,6.88E-2,4.2999999999999997E-2,0.13049999999999998,null,null,null,null,null,null,null,null,0.08,0.1008,0,0,null,null,0,null,null,null,null,0,null,null,null,null,0.01,null,null,null,null,null,null,null,null,null,null,null,null,null,null,null,null,null,null,null,null,null,null,null,null,null,null,null,null,null,null,null,0.61095505617977519,0.9887640449438202,0.61789772727272729,0.20131086142322097,2.1359999999999997E-2]
[45,"Molasses, Sugarcane",4223,2366,2333,1842,null,74.099999999999994,4.8,null,0.15,null,10.8,null,45,null,null,null,null,0,null,0.15,null,null,null,null,null,13.349999999999994,53,27.565499999999997,null,0.02,0.01,0.04,0.06,0.02,0.02,0.03,0.05,0.01,0.11,null,null,0.04,null,null,null,null,0.03,null,88.25,92,90,88,89,86,90,90,86,86,87,null,null,84,null,null,null,null,91,null,0.82,null,null,null,null,0.08,null,null,0.01,50,63,null,null,7.0754999999999972,null,3.6959999999999997,0,0,1.1599999999999999E-2,1.4999999999999999E-2,0,1.04E-2,2.64E-2,0,0,0,0,5.6100000000000004E-2,null,4.2359999999999998,1.84E-2,9.0000000000000011E-3,3.5200000000000002E-2,5.3399999999999996E-2,1.72E-2,1.8000000000000002E-2,5.16E-2,2.6999999999999996E-2,5.4300000000000001E-2,4.2999999999999997E-2,8.6E-3,9.5700000000000007E-2,null,null,null,null,null,null,null,null,0.04,5.04E-2,0,0,null,null,0,null,null,null,null,0,null,null,null,null,0.01,null,null,null,null,null,null,null,null,null,null,null,null,null,null,null,null,null,null,null,null,null,null,null,null,null,null,null,null,null,null,null,1.7921348314606744,0.65917602996254687,2.71875,0.16104868913857678,1.1124999999999999E-2]
[46,"Oats",4272,2627,2551,1893,null,89.88,11.16,null,5.42,4.2,2.64,null,null,null,null,null,null,39.06,25.3,13.73,null,33.93,null,null,null,31.599999999999994,29,41.440400000000004,null,0.73,0.24,0.41,0.79,0.49,{"$f":"0.68-AR55","v":0.32000000000000006},0.52,0.42,0.14000000000000001,0.63,null,null,0.36,null,null,null,null,0.41,null,80.416666666666671,90,85,81,83,76,83,84,71,75,80,null,null,75,null,null,null,null,82,null,0.03,0.1,0.42,0.16,0.08,0.35,0.21,null,0.19,33,39,null,null,9.1639999999999979,null,6.9192,0.62049999999999994,0.19439999999999999,0.29930000000000001,0.59250000000000003,0.34299999999999997,0.53720000000000001,0.78560000000000008,0.42120000000000002,0.73280000000000001,0.24779999999999996,8.2600000000000021E-2,0.4536,null,8.9745000000000008,0.65700000000000003,0.20399999999999999,0.33210000000000001,0.65570000000000006,0.37240000000000001,0.26560000000000006,0.53560000000000008,0.43680000000000002,0.77300000000000002,0.29820000000000002,0.10500000000000002,0.504,null,null,null,null,null,null,null,null,0.11549999999999999,0.13649999999999998,0,0,null,null,0,null,null,null,null,0,null,null,null,null,0.19,null,null,null,null,null,null,null,null,null,null,null,null,null,null,null,null,null,null,null,null,null,null,null,null,null,null,null,null,null,null,null,0.7686441970413298,0.50648162269330488,1.5176151761517616,0.16013420771694375,5.8754480286738353E-2]
[47,"Oats, Naked",4422,4126,4026,3164,null,91.8,14.7,2.2000000000000002,10.65,7.2,1.73,null,null,null,null,null,null,56.35,11.07,3.7,null,null,null,null,null,8.3699999999999832,47,44.445499999999996,null,0.89,0.27,0.54,0.96,0.56000000000000005,0.22,0.65,0.48,0.15,0.7,null,null,0.41,null,null,null,null,0.32,null,81,95,93,89,91,90,89,92,85,null,90,null,null,81,null,null,null,null,91,null,0.08,0.11,0.36,0.12,0.02,0.38,0.14000000000000001,null,null,33,39,null,null,3.933899999999992,null,10.731,0.79210000000000003,0.2268,0.44819999999999999,0.81599999999999995,0.48160000000000003,0.18260000000000001,0.49419999999999997,0.5655,0.82790000000000008,0.37439999999999996,0,0.59499999999999997,null,11.907,0.84549999999999992,0.25110000000000005,0.48060000000000003,0.87360000000000004,0.504,0.19580000000000003,0.52790000000000004,0.59800000000000009,0.8892000000000001,0.40799999999999997,0,0.62999999999999989,null,null,null,null,null,null,null,null,0.12540000000000001,0.1482,0,0,null,null,0,null,null,null,null,0,null,null,null,null,{"$f":"BX56*0.543","v":0.20634000000000002},null,null,null,null,null,null,null,null,null,null,null,null,null,null,null,null,null,null,null,null,null,null,null,null,null,null,null,null,null,null,null,0.72115384615384603,0.55013736263736268,1.3108614232209734,0,5.9428571428571435E-2]
[48,"Oat Groats",4576,3690,3595,2720,null,87.1,13.9,null,5.9,null,2.4,null,null,null,null,null,null,46.8,9.6999999999999993,6.5,null,null,null,null,null,18.09999999999998,47,40.587999999999987,null,0.85,0.24,0.55000000000000004,0.98,0.48,0.2,0.66,0.44,0.18,0.72,null,null,0.22,null,null,null,null,0.51,null,83.25,86,83,83,83,79,86,86,80,82,82,null,null,85,null,null,null,null,84,null,0.08,0.09,0.38,0.11,0.05,0.41,0.2,null,null,33,39,null,null,8.5069999999999908,null,0,0.73099999999999998,0.19919999999999999,0.45650000000000007,0.81340000000000001,0.37920000000000004,0.17,0.34600000000000003,0.5676000000000001,0.98580000000000012,0.33439999999999998,0.14399999999999999,0.59040000000000004,null,11.57175,0.73099999999999998,0.19919999999999999,0.45650000000000007,0.81340000000000001,0.37920000000000004,0.17199999999999999,0.35899999999999999,0.5676000000000001,0.99600000000000022,0.35200000000000004,0.14760000000000001,0.59040000000000004,null,null,null,null,null,null,null,null,0.1353,0.15989999999999999,0,0,null,null,350,0.17499999999999999,2389,2413,0.13,5.33E-2,2.4,0,0,null,0.18,{"$f":"125*K57/10","v":73.75},{"$f":"IF(AR57=\"\",\"\",AR57*BL57)","v":18.7},null,null,null,null,null,null,null,null,null,null,null,null,null,null,null,null,null,null,null,null,null,null,null,null,null,null,null,null,null,0.72584214408655034,0.56122448979591844,1.2933187294633077,0.18146053602163759,5.8517985611510788E-2]
[49,"Peanut Meal, Expelled",4906,3895,3594,2381,null,92,44.23,null,6.5,null,6,null,null,null,null,null,null,6.65,14.6,9.1,null,null,null,null,null,28.620000000000005,67,44.186900000000009,null,5.2,1.04,1.46,2.65,1.55,0.5,2.12,1.1599999999999999,0.33,1.75,null,null,0.6,null,null,null,null,1.74,null,87,93,81,81,81,76,83,88,74,76,78,null,null,81,null,null,null,null,92,null,0.17,0.03,1.2,0.33,0.06,0.63,0.28999999999999998,null,null,28,32,null,null,19.175400000000003,null,34.941699999999997,4.8360000000000003,0.8216,1.1388,2.0935000000000001,1.1315,0.4,0.86799999999999999,1.8232000000000002,3.3544,0.81199999999999983,0.2409,1.3125,null,38.4801,4.8360000000000003,0.84240000000000004,1.1825999999999999,2.1465000000000001,1.1779999999999999,0.41499999999999998,0.90099999999999991,1.8655999999999999,3.4664000000000001,0.85839999999999994,0.25080000000000002,1.365,null,null,null,null,null,null,null,null,0.1764,0.2016,0,0,null,null,0,null,null,null,null,0,null,null,null,null,0.42,null,null,null,null,null,null,null,null,null,null,null,null,null,null,null,null,null,null,null,null,null,null,null,null,null,null,null,null,null,null,null,0.63591893780573028,0.55094339622641497,1.1542364282090312,0.11684136967155835,4.8530409224508256E-2]
[50,"Peanut Meal, Extracted",4622,3415,3109,1924,null,91.8,45.03,null,1.2,null,6,null,null,null,null,null,null,6.7,16.2,12.46,null,null,null,null,null,32.86999999999999,67,42.517399999999995,null,5.27,0.98,1.42,2.61,1.44,0.5,1.97,1.26,0.4,1.58,null,null,0.54,null,null,null,null,1.42,null,87,93,81,81,81,76,83,88,74,76,78,null,null,81,null,null,null,null,92,null,0.39,0.04,1.25,0.31,7.0000000000000007E-2,0.57999999999999996,0.3,null,null,28,32,null,null,22.022899999999996,null,35.573700000000002,4.9010999999999996,0.7742,1.1075999999999999,2.0619000000000001,1.0511999999999999,0.4,0.82120000000000004,1.6941999999999999,2.9438,0.88200000000000001,0.29200000000000004,1.1850000000000001,null,39.176099999999998,4.9010999999999996,0.79379999999999995,1.1501999999999999,2.1141000000000001,1.0944,0.41499999999999998,0.85240000000000005,1.7335999999999998,3.0399999999999996,0.9323999999999999,0.30400000000000005,1.2324000000000002,null,null,null,null,null,null,null,null,0.16239999999999999,0.18559999999999999,0,0,null,null,0,null,null,null,null,0,null,null,null,null,{"$f":"BX59*0.666","v":0.38628000000000001},null,null,null,null,null,null,null,null,null,null,null,null,null,null,null,null,null,null,null,null,null,null,null,null,null,null,null,null,null,null,null,0.58294309635305808,0.54406130268199226,1.0714658320292125,0.1437964145499267,4.6948700866089273E-2]
[51,"Peas, Field Peas",4035,3504,3353,2419,null,88.1,22.17,6.16,1.2,null,2.86,null,0.19,0.04,0.23,0.32,null,43.46,12.84,6.9,0.45,null,null,null,null,18.219999999999992,86,40.045599999999993,null,1.91,0.53,0.94,1.56,1.63,0.21,1.02,0.83,0.21,1.03,null,null,0.31,null,null,null,null,0.59,null,80,90,82,81,81,85,77,80,76,69,78,null,null,68,null,null,null,null,78,null,0.09,null,null,null,null,0.42,null,null,0.17,49,56,null,null,15.669199999999995,null,16.184100000000001,1.6617,0.41340000000000005,0.71439999999999992,1.2012,1.3366,0.1512,0.34029999999999999,0.7854000000000001,1.222,0.56440000000000001,0.13229999999999997,0.74159999999999993,null,17.736000000000001,1.7190000000000001,0.43459999999999999,0.76139999999999997,1.2636000000000001,1.3854999999999997,0.16169999999999998,0.3725,0.81599999999999995,1.2761999999999998,0.63080000000000003,0.1449,0.8034,null,null,null,null,null,null,null,null,0.20579999999999998,0.23519999999999999,0,0,null,null,160,0.08,2317,2389,0.21,8.8199999999999987E-2,0.47,0,0,null,0.17,{"$f":"125*K60/10","v":15},{"$f":"IF(AR60=\"\",\"\",AR60*BL60)","v":21.08},null,null,null,null,null,null,null,null,null,null,null,null,null,null,null,null,null,null,null,null,null,null,null,null,null,null,null,null,null,0.63580246913580241,0.60256410256410253,1.0551615445232467,0.11467236467236466,5.699594046008119E-2]
[52,"Pea Protein Concentrate",5562,4620,4057,2610,null,94.31,82.82,null,8.0399999999999991,null,6.22,null,null,null,null,null,null,0,null,0,null,null,null,null,null,0,0,50.004999999999995,null,6.46,1.96,3.73,6.57,5.78,0.8,4.4800000000000004,3.01,0.83,4.0599999999999996,null,null,0.8,null,null,null,null,null,null,80,90,82,81,81,85,77,80,76,69,78,null,null,68,null,null,null,null,null,null,null,null,null,null,null,0.46,null,null,null,null,null,null,null,0,null,60.458599999999997,5.6201999999999996,1.5287999999999999,2.8348,5.0589000000000004,4.7396000000000003,0.57600000000000007,1.0640000000000001,3.4496000000000002,3.4496000000000002,2.0467999999999997,0.52290000000000003,2.9232,null,66.256,5.8140000000000001,1.6072,3.0213000000000001,5.3217000000000008,4.9130000000000003,0.61599999999999999,1.1599999999999999,3.5840000000000005,3.5840000000000005,2.2875999999999999,0.57269999999999999,3.1667999999999994,null,null,null,null,null,null,null,null,0,0,0,0,null,null,0,null,null,null,null,0,null,null,null,null,{"$f":"BX61*0.405","v":0.18630000000000002},null,null,null,null,null,null,null,null,null,null,null,null,null,null,null,null,null,null,null,null,null,null,null,null,null,null,null,null,null,null,null,0.59507300298776689,0.56773211567732107,1.0481580776486941,0.10761598737245615,6.425621830475732E-2]
[53,"Potato Protein Concentrate",5439,4140,3597,null,null,93.39,79.8,1.43,2.78,null,1.28,null,null,null,null,null,null,0,null,null,null,null,null,null,null,9.5300000000000047,0,48.695300000000003,null,4.1399999999999997,1.76,4.18,8.14,6.18,1.74,5.0999999999999996,4.6100000000000003,1.1000000000000001,5.36,null,null,1.1299999999999999,null,null,null,null,3.93,null,87,92,88,87,89,88,91,82,85,79,88,null,null,67,null,null,null,null,85,null,null,null,null,null,null,0.41,null,null,null,null,null,null,null,0,null,67.83,3.7673999999999994,1.5312000000000001,3.6365999999999996,7.2446000000000002,5.4383999999999988,1.5659999999999998,2.3004999999999995,4.1819999999999995,7.2473999999999998,3.8724000000000003,0.8580000000000001,4.7168000000000001,null,69.425999999999988,3.8087999999999997,1.5488,3.6365999999999996,7.2446000000000002,5.4383999999999988,1.5834000000000001,2.3405,4.1819999999999995,7.5224999999999991,3.9185000000000003,0.86900000000000011,4.7168000000000001,null,null,null,null,null,null,null,null,0,0,0,0,null,null,0,null,null,null,null,0,null,null,null,null,0.06,null,null,null,null,null,null,null,null,null,null,null,null,null,null,null,null,null,null,null,null,null,null,null,null,null,null,null,null,null,null,null,0.65107804433647132,0.5019738839963559,1.297035692679976,0.11995141208624356,9.0784461152882204E-2]
[54,"Poultry Byproduct",5300,3090,2655,1774,null,92.08,64.03,0.35,12.02,18.3,13.32,null,null,null,null,null,null,0,null,0,null,null,null,null,null,2.7099999999999973,0,44.290599999999998,null,4.3499999999999996,1.28,2.38,4.42,3.69,1.25,2.23,2.35,0.46,2.91,null,null,0.63,null,null,null,null,1.93,null,78,89,82,81,82,85,77,84,77,78,80,null,null,72,null,null,null,null,69,null,4.54,0.49,0.53,0.18,0.49,2.5099999999999998,0.52,null,null,48,53,null,null,0,null,48.022500000000001,3.7845,1.024,1.8801999999999999,3.536,3.0995999999999997,0.92500000000000004,1.3660000000000001,1.8285999999999998,2.8129,1.7390000000000001,0.34039999999999998,2.2698,null,49.943400000000004,3.8714999999999997,1.0496000000000001,1.9278,3.6244000000000001,3.1364999999999998,0.96250000000000002,1.4161000000000001,1.8732,3.2048999999999999,1.8095000000000001,0.35880000000000001,2.3280000000000003,null,null,null,null,null,null,null,null,1.2047999999999999,1.3303,0,0,null,null,240,0.12,null,null,0.9,2.2589999999999999,2.54,0,0,null,null,{"$f":"78*K63/10","v":93.756},{"$f":"IF(AR63=\"\",\"\",AR63*BL63)","v":45.36},null,null,null,null,null,null,null,null,null,null,null,null,null,null,null,null,null,null,null,null,null,null,null,null,null,null,null,null,null,0.6423132104624214,0.53189493433395874,1.2075941487706194,9.8995695839311337E-2,5.6604716539122288E-2]
[55,"Rice",3723,3681,3627,2881,null,87.78,7.87,0.52,1.3,1.71,0.81,0,0.19,0,0,0,null,75.19,1.28,0.64,null,null,null,null,null,2.4200000000000017,34,39.411499999999997,null,0.44,0.33,0.32,0.56000000000000005,0.35,0.25,0.44,0.23,0.11,0.42,null,null,0.18,null,null,null,null,0.18,null,94,93,85,81,83,89,87,80,85,77,86,null,null,77,null,null,null,null,84,null,0.09,null,null,null,null,0.34,null,null,0.18,29,33,null,null,0.82280000000000053,null,6.2960000000000003,0.38719999999999999,0.26400000000000001,0.2336,0.43120000000000003,0.28000000000000003,0.21249999999999999,0.32589999999999997,0.33,0.4506,0.16560000000000002,6.93E-2,0.30659999999999998,null,7.3978000000000002,0.40920000000000001,0.28050000000000003,0.25920000000000004,0.46480000000000005,0.3115,0.2175,0.35609999999999997,0.35200000000000004,0.50320000000000009,0.19550000000000001,8.4700000000000011E-2,0.36119999999999997,null,null,null,null,null,null,null,null,9.8600000000000007E-2,0.11220000000000001,0,0,null,null,0,null,null,null,null,0,null,null,null,null,0.18,null,null,null,null,null,null,null,null,null,null,null,null,null,null,null,null,null,null,null,null,null,null,null,null,null,null,null,null,null,null,null,0.77710843373493965,0.55765920826161797,1.3935185185185182,0.18222891566265062,5.9059720457433296E-2]
[56,"Rice Bran",4772,3100,2997,2281,null,91.6,15.11,null,13.77,null,14.8,null,null,null,null,null,null,27,26.28,11.87,null,null,null,null,null,20.92,26,39.767500000000005,null,1.24,0.42,0.51,1.04,0.67,0.3,0.65,0.56000000000000005,0.19,0.78,null,null,0.27,null,null,null,null,0.4,null,75.416666666666671,89,87,69,70,78,77,73,71,73,69,null,null,68,null,null,null,null,81,null,0.22,7.0000000000000007E-2,1.56,0.9,0.03,2.16,0.18,null,1.74,13,23,null,null,5.4392000000000005,null,8.6127000000000002,1.054,0.3276,0.32640000000000002,0.67600000000000005,0.4824,0.222,0.4002,0.442,0.75,0.34160000000000001,0.1216,0.51480000000000004,null,11.395458333333334,1.1035999999999999,0.3654,0.35189999999999999,0.72799999999999998,0.52260000000000006,0.23099999999999998,0.41459999999999991,0.47450000000000003,0.79849999999999999,0.39760000000000006,0.13870000000000002,0.53820000000000001,null,null,null,null,null,null,null,null,0.28079999999999999,0.49680000000000007,0,0,null,null,0,null,null,null,null,0,null,null,null,null,1.66,null,null,null,null,null,null,null,null,null,null,null,null,null,null,null,null,null,null,null,null,null,null,null,null,null,null,null,null,null,null,null,0.73928571428571432,0.48337912087912088,1.5294117647058825,0.19052197802197804,4.8180013236267374E-2]
[57,"Rice Bran, Defatted",4056,2199,2081,1553,null,91.35,17.3,null,3.52,null,11.51,null,null,null,null,null,null,26.25,23.56,1.31,null,25.79,null,null,null,32.770000000000003,26,38.140700000000002,null,1.57,0.55000000000000004,0.62,1.25,0.8,0.36,0.78,0.68,0.25,0.94,null,null,0.36,null,null,null,null,0.31,null,74.75,83,75,75,75,70,78,74,69,76,73,null,null,63,null,null,null,null,86,null,0.1,null,null,null,null,1.89,null,null,null,24,28,null,null,8.5202000000000009,null,0,0,0,0,0,0,0,0,0,0,0,0,0,null,12.931749999999999,1.3030999999999999,0.41249999999999998,0.46500000000000002,0.9375,0.56000000000000005,0.28079999999999999,0.50759999999999994,0.57719999999999994,0.84379999999999988,0.46920000000000001,0.19,0.68619999999999992,null,null,null,null,null,null,null,null,0.4536,0.52919999999999989,0,0,null,null,0,null,null,null,null,0,null,null,null,null,2.11,null,null,null,null,null,null,null,null,null,null,null,null,null,null,null,null,null,null,null,null,null,null,null,null,null,null,null,null,null,null,null,0.73194666666666663,0.49600000000000005,1.4756989247311825,0.20266666666666666,5.4190751445086706E-2]
[58,"Rice, Broken",4290,3565,3511,2778,null,89,7.9,null,1.3,null,0.8,null,null,null,null,null,null,75.19,12.2,6.4,null,null,null,null,null,3.8100000000000023,34,39.973100000000002,null,0.52,0.18,0.34,0.67,0.3,0.18,0.39,0.26,0.1,0.49,null,null,0.11,null,null,null,null,0.38,null,81.083333333333329,89,84,81,83,77,85,84,76,77,78,null,null,73,null,null,null,null,86,null,0.04,7.0000000000000007E-2,0.13,0.11,0.04,0.21,0.06,null,0.14000000000000001,31,38,null,null,1.2954000000000008,null,0,0,0,0,0,0,0,0,0,0,0,0,0,null,6.4055833333333325,0.46279999999999999,0.1512,0.27540000000000003,0.55610000000000004,0.23099999999999998,0.153,0.23329999999999998,0.3276,0.65439999999999998,0.19760000000000003,7.6999999999999999E-2,0.38219999999999998,null,null,null,null,null,null,null,null,6.5099999999999991E-2,7.9799999999999996E-2,0,0,null,null,0,null,null,null,null,0,null,null,null,null,0.06,null,null,null,null,null,null,null,null,null,null,null,null,null,null,null,null,null,null,null,null,null,null,null,null,null,null,null,null,null,null,null,0.68728645926991538,0.49523467002337712,1.3877995642701524,0.1384643049811185,7.0392405063291141E-2]
[59,"Rye",4350,3270,3191,2460,null,89.4,11.66,2.71,1.98,null,1.78,0,0,0,0,0,null,59.34,12.26,4.5999999999999996,0.77,null,null,null,null,14.64,40,40.382200000000005,null,0.7,0.25,0.34,0.7,0.43,0.16,0.5,0.37,0.1,0.49,null,null,0.19,null,null,null,null,0.25,null,83,79,79,78,79,74,81,82,74,76,77,null,null,83,null,null,null,null,76,null,0.08,0.03,0.48,0.12,0.02,0.3,0.15,null,0.2,43,50,null,null,5.8559999999999999,null,8.045399999999999,0.5109999999999999,0.17749999999999999,0.23120000000000002,0.49699999999999994,0.2752,0.1216,0.26219999999999999,0.38,0.54249999999999998,0.21829999999999999,6.7000000000000004E-2,0.32829999999999998,null,9.6777999999999995,0.55299999999999994,0.19750000000000001,0.26520000000000005,0.55299999999999994,0.31819999999999998,0.12960000000000002,0.2873,0.41,0.6,0.27379999999999999,7.6000000000000012E-2,0.37729999999999997,null,null,null,null,null,null,null,null,0.129,0.15,0,0,null,null,0,null,null,null,null,0,null,null,null,null,0.2,null,null,null,null,null,null,null,null,null,null,null,null,null,null,null,null,null,null,null,null,null,null,null,null,null,null,null,null,null,null,null,0.6822784810126582,0.47956600361663665,1.422699849170437,0.13743218806509949,4.7427101200686099E-2]
[60,"Sesame Meal",4702,3350,3060,1972,null,93,42.6,null,7.5,null,12.7,null,null,null,null,null,null,1.8,18,13.2,null,null,null,null,null,28.4,64,41.85,null,4.8600000000000003,0.98,1.47,2.74,1.01,1.1499999999999999,1.77,1.44,0.54,1.87,null,null,0.82,null,null,null,null,1.52,null,89.666666666666671,96,84,87,92,85,92,93,90,85,89,null,null,92,null,null,null,null,91,null,1.7,7.0000000000000007E-2,1.1000000000000001,0.54,0.04,1.18,0.56000000000000005,null,0.89,29,42,null,null,18.175999999999998,null,34.506,4.5684000000000005,0.74480000000000002,1.2495000000000001,2.3290000000000002,0.76760000000000006,1.0349999999999999,1.7401999999999997,1.5752999999999999,2.8976999999999999,1.1232,0.45900000000000007,1.5708000000000002,null,38.198,4.6656000000000004,0.82319999999999993,1.2788999999999999,2.5207999999999999,0.85849999999999993,1.0580000000000001,1.8124,1.6461000000000001,3.0293000000000001,1.296,0.45900000000000007,1.6643000000000001,null,null,null,null,null,null,null,null,0.3422,0.49559999999999993,0,0,null,null,0,null,null,null,null,0,null,null,null,null,0.89,null,null,null,null,null,null,null,null,null,null,null,null,null,null,null,null,null,null,null,null,null,null,null,null,null,null,null,null,null,null,null,0.66022691209139961,0.50733894001904156,1.3013527249980454,0.18208505236432881,5.9173708920187792E-2]
[61,"Sorghum",3881,3596,3532,2780,null,89.39,9.36,2.14,3.42,2.12,1.64,0,0,0,0,0,null,70.05,10.63,4.93,0.44,4.3499999999999996,null,null,null,4.9200000000000017,66,40.595999999999997,null,0.36,0.21,0.36,1.21,0.2,0.16,0.48,0.3,7.0000000000000007E-2,0.46,null,null,0.18,null,null,null,null,0.32,null,77,80,74,78,83,74,79,83,75,74,77,null,null,67,null,null,null,null,75,null,0.02,0.09,0.35,0.15,0.01,0.27,0.08,null,0.18,30,40,null,null,3.2472000000000012,null,5.8967999999999998,0.24480000000000002,0.13439999999999999,0.24840000000000001,0.94379999999999997,0.10600000000000001,0.11840000000000001,0.21920000000000001,0.36479999999999996,0.58560000000000001,0.16200000000000001,4.5500000000000006E-2,0.30360000000000004,null,7.2071999999999994,0.28799999999999998,0.15539999999999998,0.28079999999999999,1.0043,0.14800000000000002,0.12640000000000001,0.247,0.39839999999999998,0.63839999999999997,0.22500000000000001,5.1800000000000006E-2,0.35420000000000001,null,null,null,null,null,null,null,null,8.1000000000000016E-2,0.10800000000000001,0,0,null,null,200,0.1,2620,2650,0.2,5.4000000000000006E-2,1.1299999999999999,0,0,null,0.23,{"$f":"120*K70/10","v":41.04},{"$f":"IF(AR70=\"\",\"\",AR70*BL70)","v":12.059999999999999},null,null,null,null,null,null,null,null,null,null,null,null,null,null,null,null,null,null,null,null,null,null,null,null,null,46.26,2.2999999999999998,{"$f":"SUM(FI70:FJ70)/100*K70","v":1.6607519999999998},null,0.35268346111719606,0.27959772976202329,1.2613960113960114,5.1578213681170972E-2,0.10729700854700855]
[62,"Soybeans, Full Fat",5227,4193,3938,2874,null,92.36,37.56,4.07,20.18,15.03,4.8899999999999997,null,6.42,0.77,3.89,0.03,null,1.89,10,6.17,null,31.45,null,null,null,21.419999999999995,87,48.269899999999993,null,2.4500000000000002,0.88,1.6,2.67,2.23,0.55000000000000004,1.74,1.42,0.49,1.73,null,null,0.59,null,null,null,null,1.2,null,79,87,81,78,78,81,80,79,76,82,77,null,null,76,null,null,null,null,81,null,0.31,0.03,1.64,0.28000000000000003,0.03,0.53,0.3,null,0.33,39,48,78,85,18.635399999999994,null,27.7944,2.0580000000000003,0.68640000000000001,1.2,2.0024999999999999,1.7616999999999998,0.41249999999999998,0.8254999999999999,1.3397999999999999,2.2637999999999998,1.0082,0.3871,1.2628999999999999,null,29.672400000000003,2.1315,0.71279999999999999,1.2480000000000002,2.0825999999999998,1.8063,0.44,0.88840000000000008,1.3746,2.3466,1.0791999999999999,0.40179999999999999,1.3321000000000001,null,null,null,null,null,null,null,null,0.20670000000000002,0.25440000000000002,0.24179999999999999,0.26350000000000001,null,null,400,0.2,2556,2748,0.31,0.1643,9.1300000000000008,0,0,null,0.33,{"$f":"130*K71/10","v":262.34000000000003},{"$f":"IF(AR71=\"\",\"\",AR71*BL71)","v":44.839999999999996},null,null,null,null,null,null,null,null,null,null,null,null,null,null,null,null,null,null,null,null,null,null,null,null,null,54.83,7.66,{"$f":"SUM(FI71:FJ71)/100*K71","v":12.610481999999998},null,0.63963315086910599,0.59925093632958815,1.0673878205128204,0.19293191203303564,5.5447284345047913E-2]
[63,"Soybeans, High Protein, Full Fat",5306,null,null,null,null,92.38,42.77,null,15.59,null,4.8,null,4.75,0.85,4.01,null,null,1.89,8.24,5.4,null,null,null,null,null,22.579999999999995,87,47.3583,null,3.16,1.07,1.51,3.34,2.5,0.56999999999999995,2.25,1.57,0.48,1.76,null,null,0.61,null,null,null,null,1.51,null,92,97,92,92,91,92,92,93,87,89,90,null,null,83,null,null,null,null,92,null,0.28000000000000003,null,null,null,null,0.65,null,null,null,39,48,78,85,19.644599999999997,null,35.071400000000004,2.9388000000000001,0.9416000000000001,1.3288,2.9057999999999997,2.2000000000000002,0.50159999999999993,0.95909999999999995,2.0024999999999999,3.3312999999999997,1.2246000000000001,0.40799999999999997,1.4783999999999999,null,39.348399999999998,3.0652000000000004,0.98440000000000016,1.3891999999999998,3.0394000000000001,2.2999999999999998,0.52439999999999998,1.0306999999999999,2.0924999999999998,{"$f":"DD72+BQ72*AW72/100","v":3.4816999999999996},1.3659000000000001,0.42719999999999997,1.5840000000000001,null,null,null,null,null,null,null,null,0.2535,0.31200000000000006,0.21840000000000004,0.23800000000000002,null,null,0,null,null,null,null,0,null,null,null,null,{"$f":"BX73*0.662","v":0.3972},null,null,null,null,null,null,null,null,null,null,null,null,null,null,null,null,null,null,null,null,null,null,null,null,null,null,null,55.05,7.34,{"$f":"SUM(FI72:FJ72)/100*K72","v":9.7266010000000005},null,0.52115549121537141,0.45706389418964261,1.1402245896919092,0.14055405672172139,7.1063829787234037E-2]
[64,"Soybeans, Low Oligosaccharide, Full Fat",5282,null,null,null,null,94.4,39.299999999999997,null,17.7,null,4.8,null,5.8,0.1,1.4,null,null,1.89,10.3,7.5,null,null,null,null,null,24.910000000000007,87,48.713100000000004,null,2.79,1.02,1.88,3.01,2.56,0.56000000000000005,1.96,1.44,0.61,1.96,null,null,0.65,null,null,null,null,1.4,null,89,96,92,91,91,93,92,92,88,87,90,null,null,85,null,null,null,null,91,null,0.36,null,null,null,null,0.6,null,null,null,39,48,78,85,21.671700000000005,null,32.225999999999999,2.5947000000000005,0.91799999999999993,1.6543999999999999,2.6488,2.3040000000000003,0.504,1.0305,1.7444,2.9763999999999999,1.1952,0.51239999999999997,1.6659999999999999,null,34.976999999999997,2.6784000000000003,0.93840000000000001,1.7107999999999999,2.7390999999999996,2.3808000000000002,0.51519999999999999,1.0677000000000001,{"$f":"AL73*BF73/100","v":1.8031999999999999},3.0771999999999999,{"$f":"AM73*BG73/100","v":1.2671999999999999},{"$f":"AN73*BH73/100","v":0.53069999999999995},{"$f":"AO73*BI73/100","v":1.764},null,null,null,null,null,null,null,null,0.23399999999999999,0.28799999999999998,0.28079999999999999,0.30599999999999999,null,null,0,null,null,null,null,0,null,null,null,null,0.41706000000000004,null,null,null,null,null,null,null,null,null,null,null,null,null,null,null,null,null,null,null,null,null,null,null,null,null,null,null,null,null,null,null,0.64400715563506272,0.62458471760797341,1.0310965630114568,0.19374977182286154,6.9697201017811697E-2]
[65,"Soybean Meal, High Protein, Expelled",4784,3717,3336,2129,null,94.5,55.97,null,5.13,null,5.7,null,4.91,0.67,4.58,null,null,1.89,9.99,6.3,null,null,null,null,null,20.9,88,45.7042,null,4.13,1.39,2.42,4.09,3.33,0.72,2.71,1.96,0.71,2.59,null,null,0.8,null,null,null,null,1.88,null,91,97,93,92,92,93,92,93,89,92,91,null,null,84,null,null,null,null,91,null,0.28999999999999998,null,null,null,null,0.63,null,null,null,39,48,78,85,18.391999999999999,null,46.455100000000002,3.8408999999999995,1.2370999999999999,2.1537999999999999,3.6400999999999999,2.9637000000000002,0.64080000000000004,1.2568000000000001,2.4390000000000001,4.0746000000000002,1.5875999999999999,0.61769999999999992,2.2273999999999998,null,50.932699999999997,4.0061,1.2926999999999997,2.2263999999999999,3.7627999999999999,3.0968999999999998,0.66239999999999999,1.3344,2.5203000000000002,4.2310999999999996,1.7444,0.65319999999999989,2.3569,null,null,null,null,null,null,null,null,{"$f":"CB74*BX74/100","v":0.2457},{"$f":"CC74*BX74/100","v":0.3024},0.22619999999999998,0.2465,null,null,0,null,null,null,null,0,null,null,null,null,0.41706000000000004,null,null,null,null,null,null,null,null,null,null,null,null,null,null,null,null,null,null,null,null,null,null,null,null,null,null,null,55.05,7.34,{"$f":"SUM(FI74:FJ74)/100*K74","v":3.2006070000000002},null,{"$f":"DH74/CZ74","v":0.62636866163495275},{"$f":"CY74/CZ74","v":0.59168704156479213},{"$f":"DH74/CY74","v":1.0586148041681638},{"$f":"DG74/CZ74","v":0.17359413202933982},{"$f":"CZ74/I74","v":6.7228872610326965E-2}]
[66,"Soybean Meal, Low Oligosacch, Expell",4737,3679,3344,2151,null,94.6,49.33,null,4.62,null,5.7,null,7.1,0.18,1.55,null,null,1.89,9.98,6.81,null,null,null,null,null,25.959999999999994,88,45.099800000000002,null,3.77,1.29,2.2400000000000002,3.75,3.12,0.68,2.4700000000000002,1.81,0.66,2.4300000000000002,null,null,0.78,null,null,null,null,1.71,null,92,98,93,93,93,93,92,93,88,93,91,null,null,85,null,null,null,null,91,null,0.28999999999999998,null,null,null,null,0.63,null,null,null,39,48,78,85,22.844799999999996,null,41.437200000000004,3.5438000000000001,1.161,1.9936,3.3374999999999999,2.7768000000000002,0.60520000000000007,1.2214,2.2230000000000003,3.7107000000000001,1.4661000000000002,0.58080000000000009,2.0898000000000003,null,45.383599999999994,3.6945999999999999,1.1997,2.0832000000000002,3.4874999999999998,2.9016000000000002,0.62560000000000004,{"$f":"(AK75*BE75+BL75*AR75)/100","v":1.2886000000000002},2.2970999999999999,3.8531999999999997,1.5928,0.61380000000000001,2.2113,null,null,null,null,null,null,null,null,0.2457,0.3024,{"$f":"BS75*CD75/100","v":0.22619999999999998},{"$f":"BS75*CE75/100","v":0.2465},null,null,0,null,null,null,null,0,null,null,null,null,0.43692000000000003,null,null,null,null,null,null,null,null,null,null,null,null,null,null,null,null,null,null,null,null,null,null,null,null,null,null,null,55.05,7.34,2.8824179999999999,null,0.63406451612903225,0.59733333333333338,1.061491935483871,0.17600000000000002,7.0697344415163191E-2]
[67,"Soybean Meal, Expelled",4692,3876,3573,2344,null,93.85,44.56,5.6,5.69,9.8699999999999992,5.7,null,7.1,0.77,4.88,null,null,1.89,13.84,7.35,null,null,null,null,null,28.909999999999989,88,44.594799999999999,null,3.13,1.17,1.97,3.29,2.85,0.56000000000000005,2.19,1.73,0.67,2.06,null,null,0.7,null,null,null,null,1.5,null,89,96,91,91,89,90,91,90,85,89,88,null,null,83,null,null,null,null,89,null,0.28000000000000003,null,null,null,null,0.66,null,null,null,39,48,78,85,25.440799999999989,null,37.430399999999999,2.9108999999999998,1.0295999999999998,1.7335999999999998,2.8952,2.5365000000000002,0.49280000000000002,1.0387999999999999,1.9491000000000001,3.2541000000000002,1.3666999999999998,0.58960000000000001,1.7716000000000001,null,39.6584,3.0048000000000004,1.0647,1.7927000000000002,2.9281000000000001,2.5649999999999999,0.50960000000000005,1.0906,1.9709999999999999,3.306,1.4705000000000001,0.59630000000000005,1.8128,null,null,null,null,null,null,null,null,0.25740000000000002,0.31679999999999997,0.21840000000000004,0.23800000000000002,null,null,{"$f":"DX76*2000","v":0},null,null,null,null,0,null,null,null,null,0.4,null,null,null,null,null,null,null,null,null,null,null,null,null,null,null,null,null,null,null,null,null,null,null,null,null,null,null,55.05,7.34,3.5499910000000003,null,0.61910453877941318,0.6122400191250299,1.0112121381156913,0.20364741641337386,6.5711400359066433E-2]
[68,"Soybean Meal, Dehulled, Expelled",4710,4210,3903,2598,null,95.57,45.13,3.3,6.64,null,6.24,null,null,null,null,null,null,1.89,null,6.33,null,null,null,null,null,35.669999999999987,88,45.848399999999998,null,3.02,1.1399999999999999,1.9,3.21,2.79,0.6,2.15,1.73,0.69,2.0099999999999998,null,null,0.72,null,null,null,null,1.47,null,89,95,90,89,88,90,85,89,84,89,88,null,null,87,null,null,null,null,87,null,null,null,null,null,null,null,null,null,null,39,48,78,85,31.389599999999991,null,36.555300000000003,2.718,0.98039999999999994,1.615,2.7285000000000004,2.3994,0.48,1.0488,1.849,3.0838000000000001,1.3148,0.60029999999999994,1.6682999999999999,null,40.165700000000001,2.8689999999999998,1.026,1.6909999999999998,2.8248000000000002,2.5110000000000001,0.51,1.1364000000000001,1.9135,3.1924000000000001,1.4531999999999998,0.61409999999999998,1.7687999999999999,{"$f":"AP77*BJ77/100","v":0},0,0.62639999999999996,0,0,0,0,1.2788999999999999,0,0,0,0,null,46.5,350,0.17499999999999999,2273.9644970414201,2410.4023668639052,0.23,0,{"$f":"K77*0.51","v":3.3864000000000001},0,0,null,0.38,{"$f":"130*K77/10","v":86.32},{"$f":"IF(AR77=\"\",\"\",AR77*BL77)","v":62.64},null,null,null,null,null,null,null,null,null,null,null,null,null,null,null,null,null,null,null,null,null,null,null,null,null,55.05,7.34,4.1426959999999999,null,0.62616822429906538,0.59862645143018967,1.0460082791247782,0.21739592183517414,6.2592510525149567E-2]
[69,"Soybean Meal, Solvent Extracted",4257,3681,3382,2148,null,88.79,43.9,6.6,1.24,null,6.38,null,7.63,0.9,4.32,0.12,null,1.89,9.82,6.66,null,17.48,null,null,null,27.750000000000004,88,40.572900000000004,null,3.17,1.26,1.96,3.43,2.76,0.6,2.2599999999999998,1.76,0.59,1.93,null,null,0.68,null,null,null,null,1.55,null,85,92,86,88,86,88,89,87,83,90,84,null,null,84,null,null,null,null,86,null,0.35,0.05,1.96,0.28999999999999998,0.01,0.64,0.39,null,0.36,39,48,78,85,24.420000000000005,null,35.119999999999997,2.8530000000000002,1.0584,1.6463999999999999,2.8468999999999998,2.3460000000000001,0.51,1.0268000000000002,1.921,3.2075,1.3728,0.50149999999999995,1.5246999999999999,null,37.314999999999998,2.9163999999999999,1.0835999999999999,1.7247999999999999,2.9498000000000002,2.4287999999999998,0.53400000000000003,1.1052000000000002,1.9661999999999997,3.2991999999999999,1.4608000000000001,0.53099999999999992,1.6212,null,null,null,null,null,null,null,null,0.24960000000000002,0.30719999999999997,0.27299999999999996,0.29749999999999999,null,43.8,310,0.155,1920,2070,0.31,0.19839999999999999,0.69,0,0,null,0.36,{"$f":"130*K78/10","v":16.119999999999997},57.120000000000005,null,null,null,null,null,null,null,null,null,null,null,null,null,null,null,null,null,null,null,null,null,null,null,null,null,55.05,7.34,0.77363599999999999,null,0.54959658281917412,0.58471760797342187,0.93993506493506496,0.18001220421723502,6.7193621867881553E-2]
[70,"Soybean Meal, Dehull, Sol Extr",4256,3619,3294,{"$f":"F24*0.9","v":2404.8000000000002},{"$f":"F79/F24","v":0.9},89.98,47.73,3.89,1.52,2.86,6.27,0,4.3,3.78,7.33,0,3.81,1.89,8.2100000000000009,5.28,1.1000000000000001,16.71,null,null,null,28.270000000000007,88,41.477900000000005,null,3.45,1.28,2.14,3.62,2.96,0.66,2.4,1.86,0.66,2.23,2.06,5.41,0.7,8.5399999999999991,1.99,2.5299999999999998,2.36,1.59,null,87,94,90,89,88,89,90,88,85,91,87,85,87,84,89,84,113,89,88,null,0.33,4.9000000000000002E-2,2.2400000000000002,0.27,0.08,0.71,0.4,null,0.38,39,48,78,85,24.877600000000008,null,39.138599999999997,3.1740000000000004,1.1135999999999999,1.8618000000000001,3.1132,2.5751999999999997,0.58080000000000009,1.1337999999999999,2.0640000000000001,3.3996000000000004,1.4880000000000002,0.58080000000000009,1.8509,null,41.525099999999995,3.2430000000000003,1.1520000000000001,1.9046000000000001,3.1856,2.6343999999999999,0.59400000000000008,1.1819999999999999,2.1120000000000001,3.5112000000000005,1.581,0.60060000000000002,1.9400999999999999,null,null,null,null,null,null,null,null,0.27689999999999998,0.34079999999999999,0.25740000000000002,0.28050000000000003,null,46.5,300,{"$f":"'DDGS Calculator'!D6/2000","v":0.15},2000,2120,0.23,0.1633,0.6,0,0,null,0.47,{"$f":"125*K79/10","v":19},58.8,null,null,null,null,null,null,null,null,null,null,null,null,null,null,null,null,null,null,null,null,null,null,null,null,null,55.05,7.34,0.94832800000000006,null,0.60902184831742845,0.59787795077850325,1.0186390843221673,0.18853591160220995,6.6742090928137446E-2]
[71,"Soybean Meal, High Prot, Dehull, Solv Extr",4378,3717,3369,2137,null,88.66,51.17,3.62,1.1000000000000001,null,6.19,null,4.28,0.68,3.12,null,null,1.89,5.5,2.95,null,null,null,null,null,24.02999999999999,88,41.284799999999997,null,3.78,1.31,2.36,3.87,3.11,0.68,2.59,1.92,0.68,2.48,null,null,0.79,null,null,null,null,1.98,null,85,92,88,84,85,87,89,84,81,85,84,null,null,78,null,null,null,null,88,null,0.56000000000000005,null,null,null,null,0.77,null,null,null,39,48,78,85,21.146399999999989,null,40.936000000000007,3.4019999999999997,1.1266,1.9351999999999998,3.2121000000000004,2.6434999999999995,0.59160000000000001,1.1762000000000001,2.1238000000000001,3.7869999999999999,1.4591999999999998,0.56440000000000001,2.0087999999999999,null,43.494499999999995,3.4775999999999998,1.1528,1.9823999999999997,3.2894999999999999,2.7056999999999998,0.60520000000000007,1.2214,2.1756000000000002,3.9180000000000001,1.5551999999999999,0.57800000000000007,2.0831999999999997,null,null,null,null,null,null,null,null,0.30030000000000001,0.36959999999999998,0.43680000000000008,0.47600000000000003,null,null,640,0.32,0,0,0.31,0.2387,0,0,0,null,0.44,0,61.620000000000005,null,null,null,null,null,null,null,null,null,null,null,null,null,null,null,null,null,null,null,null,null,null,null,null,null,55.05,7.34,0.68629000000000007,null,0.63328773369813041,0.60264477884176926,1.0508474576271187,0.17571059431524549,6.4285714285714279E-2]
[72,"Soybean Meal, Enzyme Treated",4451,3914,3536,null,null,92.7,55.62,4.0599999999999996,1.82,null,7.05,null,null,null,null,null,null,1.89,null,null,null,null,null,null,null,26.320000000000004,88,43.537400000000005,null,3.95,1.41,2.48,4.09,3.2,0.71,2.78,2.13,0.72,2.57,null,null,0.78,null,null,null,null,2.0299999999999998,null,88,96,90,89,89,86,91,86,83,83,89,null,null,73,null,null,null,null,92,null,0.31,null,null,null,null,0.75,null,null,null,60,66,null,null,23.161600000000004,null,45.608400000000003,3.6340000000000003,1.2266999999999999,2.1328,3.5174000000000003,2.6560000000000001,0.62480000000000002,1.1552,2.3073999999999999,4.0531999999999995,1.6613999999999998,0.57599999999999996,2.1587999999999998,null,48.945599999999992,3.7920000000000003,1.2689999999999999,2.2071999999999998,3.6400999999999999,2.7519999999999998,0.64610000000000001,1.2155,2.3908,4.2584,1.7679,0.59760000000000002,2.2873000000000001,null,null,null,null,null,null,null,null,0.45,0.495,0,0,null,null,40,0.02,0,0,0,{"$f":"BX81*EA81","v":0},0,0,0,null,0.52960000000000007,0,56.940000000000005,null,null,null,null,null,null,null,null,null,null,null,null,null,null,null,null,null,null,null,null,null,null,null,null,null,55.05,7.34,1.1354980000000001,null,0.62836185819070911,0.60635696821515894,1.0362903225806452,0.16417131397489082,6.5445882775979861E-2]
[73,"Soybean Meal, Fermented",4533,3975,3607,null,null,92.88,54.07,3.46,2.2999999999999998,null,6.98,null,null,null,null,null,null,1.89,null,null,null,null,null,null,null,27.639999999999997,88,43.674700000000001,null,3.7,1.37,2.5499999999999998,4.25,3.14,0.75,2.87,2.09,0.69,2.67,null,null,0.77,null,null,null,null,2.08,null,79,90,81,82,82,75,88,80,73,78,80,null,null,64,null,null,null,null,88,null,0.28999999999999998,null,null,null,null,0.8,null,null,null,60,66,null,null,24.323199999999996,null,38.930399999999999,3.2190000000000003,1.0823,2.0145,3.3574999999999999,2.2608000000000001,0.63749999999999996,1.0841000000000001,2.2099000000000002,3.9571000000000005,1.4212,0.51749999999999996,2.0024999999999999,null,42.715299999999999,3.33,1.1097000000000001,2.0909999999999997,3.4849999999999999,2.355,0.66,1.1528,2.2960000000000003,4.1264000000000003,1.5256999999999998,0.5381999999999999,2.1360000000000001,null,null,null,null,null,null,null,null,0.48,0.52800000000000002,0,0,null,null,70,3.5000000000000003E-2,0,0,0,0,0,0,0,null,0.25,0,49.28,null,null,null,null,null,null,null,null,null,null,null,null,null,null,null,null,null,null,null,null,null,null,null,null,null,55.05,7.34,1.4349699999999999,null,0.61291248206599713,0.6,1.0215208034433287,0.15443328550932567,6.4453486221564632E-2]
[74,"Soybean Hulls",4210,2008,1938,989,null,90.59,10.27,35.75,1.29,1.71,4.46,null,null,null,null,null,null,3.65,59.39,41.55,null,null,null,null,null,70.92,51,39.9435,null,0.6,0.28999999999999998,0.38,0.76,0.66,0.14000000000000001,0.46,0.39,0.09,0.51,null,null,0.2,null,null,null,null,0.51,null,65.25,82,56,67,68,58,70,71,62,62,61,null,null,63,null,null,null,null,63,null,0.54,null,null,null,null,0.12,null,null,0.08,20,33,null,null,36.169200000000004,null,4.5187999999999997,0.44400000000000001,0.13629999999999998,0.21280000000000002,0.44840000000000002,0.33660000000000001,8.4000000000000005E-2,0.186,0.28520000000000001,0.57079999999999997,0.18330000000000002,4.41E-2,0.255,null,6.7011749999999992,0.49199999999999994,0.16239999999999999,0.25459999999999999,0.51680000000000004,0.38280000000000003,9.8000000000000004E-2,0.22400000000000003,0.32660000000000006,0.64790000000000014,0.24179999999999999,5.5800000000000002E-2,0.31109999999999999,null,null,null,null,null,null,null,null,2.4E-2,3.9599999999999996E-2,0,0,null,null,96,4.8000000000000001E-2,null,null,0.14000000000000001,1.6800000000000002E-2,{"$f":"0.59*K83","v":0.7611},0,0,null,0.08,{"$f":"125*K83/10","v":16.125},12.600000000000001,null,null,null,null,null,null,null,null,null,null,null,null,null,null,null,null,null,null,null,null,null,null,null,null,null,54.95,7.92,0.81102300000000005,null,0.60197368421052622,0.49264705882352938,1.2219167321288296,0.10797213622291021,5.0321324245374881E-2]
[75,"Soy Protein Concentrate",4605,4260,3817,2376,null,92.64,65.2,3.42,1.05,0.65,6.11,null,0.67,0.46,0.91,null,2.46,1.89,8.1,4.42,null,18.87,null,null,null,17.719999999999995,88,44.399900000000002,null,4.75,1.7,2.99,5.16,4.09,0.87,3.38,2.52,0.81,3.14,2.82,7.58,0.9,12.02,2.75,3.58,3.33,2.2599999999999998,null,89,95,91,91,91,91,92,90,86,88,90,89,88,79,91,88,102,91,93,null,0.32,null,null,null,null,0.82,null,null,null,39,48,null,null,15.593599999999997,null,55.42,4.4175000000000004,1.5129999999999999,2.6611000000000002,4.5924000000000005,3.6400999999999999,0.78299999999999992,1.458,2.9744000000000002,4.9858000000000002,2.0664000000000002,0.68850000000000011,2.7318000000000002,null,58.027999999999999,4.5125000000000002,1.5469999999999999,2.7209000000000003,4.6955999999999998,3.7218999999999998,0.80040000000000011,1.5114000000000001,3.0419999999999998,5.1437999999999997,2.1671999999999998,0.71279999999999999,2.8260000000000001,null,null,null,null,null,null,null,null,0.31979999999999997,0.39360000000000001,0,0,null,null,1100,0.55000000000000004,null,null,0.23,0.18859999999999999,{"$f":"K84*0.51","v":0.53550000000000009},0,0,null,0.39,{"$f":"130*K84/10","v":13.65},71.100000000000009,null,null,null,null,null,null,null,null,null,null,null,null,null,null,null,null,null,null,null,null,null,null,null,null,null,55.05,7.34,0.65509499999999998,null,0.60184002044467166,0.57945736434108541,1.0386269249145503,0.15180168668540761,7.2018404907975453E-2]
[76,"Soy Protein Isolate",5386,4150,3573,2187,null,93.71,84.78,0.17,2.76,null,4.17,null,0.13,null,null,null,0.37,1.89,0.19,0,null,null,null,null,null,0,0,47.917200000000008,null,6.14,2.19,3.83,6.76,5.19,1.1100000000000001,4.4000000000000004,3.09,1.1299999999999999,4.0199999999999996,null,null,0.98,null,null,null,null,3.08,null,89,94,88,88,89,91,86,88,83,87,86,null,null,79,null,null,null,null,88,null,0.17,0.02,0.16,0.05,1.1399999999999999,0.75,null,null,null,39,48,null,null,0,null,71.21520000000001,5.7101999999999995,1.8834,3.2938000000000001,5.9488000000000003,4.6710000000000003,0.93240000000000012,1.6576,3.8280000000000003,6.4768000000000008,2.4411,0.94919999999999982,3.3365999999999998,null,75.4542,5.7715999999999994,1.9272,3.3704000000000001,6.0164,4.7229000000000001,0.95460000000000012,1.7287999999999999,3.8720000000000003,6.5824000000000007,2.5646999999999998,0.98309999999999986,3.4571999999999998,null,null,null,null,null,null,null,null,0.29249999999999998,0.36,0,0,null,null,350,0.17499999999999999,0,0,1,0.75,0,0,0,null,{"$f":"BX86*0.662","v":5.9580000000000001E-2},0,77.42,null,null,null,null,null,null,null,null,null,null,null,null,null,null,null,null,null,null,null,null,null,null,null,null,null,55.05,7.34,1.7219639999999998,null,0.57462934645302832,0.56020211422112898,1.0257536197483978,0.16340336413802273,7.0964850200518986E-2]
[77,"Sugar Beet Pulp",4039,2865,2803,1734,null,87.6,9.1,null,0.97,null,6.7,null,null,null,null,null,null,0,44.9,23.5,null,null,null,null,null,70.83,85,37.433700000000002,null,0.32,0.23,0.31,0.53,0.52,7.0000000000000007E-2,0.3,0.38,0.1,0.45,null,null,0.06,null,null,null,null,0.4,null,49.916666666666664,54,56,55,54,54,61,49,29,47,42,null,null,46,null,null,null,null,52,null,0.81,0.1,0.61,0.22,0.2,0.09,0.31,null,null,50,63,null,null,60.205500000000001,null,3.0939999999999999,0.14080000000000001,0.10580000000000001,0.12709999999999999,0.23319999999999999,0.24960000000000002,3.6400000000000009E-2,5.5000000000000007E-2,0.114,0.29800000000000004,6.08E-2,3.6000000000000004E-2,0.14400000000000002,null,4.5424166666666661,0.17280000000000001,0.1288,0.17050000000000001,0.28620000000000001,0.28079999999999999,4.2700000000000002E-2,7.0300000000000001E-2,0.14699999999999999,0.35499999999999998,0.11019999999999999,4.7E-2,0.18900000000000003,null,null,null,null,null,null,null,null,4.4999999999999998E-2,5.67E-2,0,0,null,null,400,0.2,0,0,1,0.09,0,0,0,null,0.04,0,2.76,null,null,null,null,null,null,null,null,null,null,null,null,null,null,null,null,null,null,null,null,null,null,null,null,null,null,null,null,null,0.66037735849056611,0.59573724668064298,1.1085043988269796,0.16422082459818307,3.1450549450549453E-2]
[78,"Sunflower, Full Fat",6163,4517,4404,3561,null,96.83,16.600000000000001,13.1,42.69,null,3.25,null,null,null,null,null,null,2.04,23.23,16.93,4.5199999999999996,null,null,null,null,32.249999999999993,33,56.652499999999996,null,1.72,0.55000000000000004,0.9,1.36,0.54,0.39,1.02,0.85,null,0.94,null,null,0.24,null,null,null,null,0.55000000000000004,null,81.454545454545453,89,84,81,83,77,85,84,76,null,78,null,null,73,null,null,null,null,86,null,0.3,null,null,null,null,0.2,null,null,null,20,29,null,null,10.642499999999998,null,0,0,0,0,0,0,0,0,0,0,0,0,0,null,13.521454545454546,1.5307999999999999,0.46200000000000002,0.72900000000000009,1.1288,0.41580000000000006,0.33149999999999996,0.50670000000000004,0.85680000000000012,1.3298000000000001,0.64599999999999991,0,0.73319999999999996,null,null,null,null,null,null,null,null,0.04,5.800000000000001E-2,0,0,null,null,0,0,null,null,null,0,null,null,null,null,0.51,null,17.52,null,null,null,null,null,null,null,null,null,null,null,null,null,null,null,null,null,null,null,null,null,null,null,null,null,null,null,null,null,0.64953933380581141,0.64581856839121199,1.0057613168724278,0,6.7999999999999991E-2]
[79,"Sunflower Meal, Solvent Extracted",4086,2010,1801,937,null,87.93,30.7,23.4,3.06,null,5.97,0,0,0,0,0,null,2.0299999999999998,36.82,28.67,7.54,null,null,null,null,46.17,33,40.266300000000001,null,2.5299999999999998,0.78,1.29,1.96,1.1299999999999999,0.74,1.39,1.17,0.39,1.51,null,null,0.53,null,null,null,null,0.7,null,83,93,83,82,82,80,90,86,80,84,79,null,null,80,null,null,null,null,88,null,0.38,0.1,1.07,0.68,0.02,0.95,0.3,null,0.84,20,29,null,null,15.2361,null,23.638999999999999,2.3022999999999998,0.62400000000000011,1.0190999999999999,1.5484,0.85880000000000001,0.6512,1.054,1.1536999999999999,1.7346999999999999,0.87749999999999995,0.31200000000000006,1.1476,null,25.480999999999998,2.3529,0.64740000000000009,1.0578000000000001,1.6072,0.90399999999999991,0.66599999999999993,1.0900000000000001,1.1954,1.8113999999999999,0.93599999999999994,0.3276,1.1929000000000001,null,null,null,null,null,null,null,null,0.19,0.27549999999999997,0,0,null,null,0,0,null,null,null,0,null,null,null,null,0.84,null,42.400000000000006,null,null,null,null,null,null,null,null,null,null,null,null,null,null,null,null,null,null,null,null,null,null,null,null,null,null,null,null,null,0.74222249875559987,0.65816326530612246,1.1277179050860275,0.20383275261324044,5.2351791530944623E-2]
[80,"Sunflower Meal, Dehulled, Solvent Extr",4415,2840,2569,1482,null,90.4,39.86,18.440000000000001,2.9,null,6.06,0,0,0,0,0,null,2.08,30.24,23,null,null,null,null,null,39.500000000000007,33,42.02,null,3.32,0.93,1.54,2.4700000000000002,1.45,0.78,1.63,1.37,0.48,1.76,null,null,0.48,null,null,null,null,0.81,null,81,93,85,80,80,78,89,81,77,80,79,null,null,82,null,null,null,null,84,null,0.39,0.04,1.27,0.75,0.04,1.1599999999999999,0.38,null,0.89,20,29,null,null,13.035000000000002,null,30.293600000000001,3.0211999999999999,0.76260000000000006,1.2012,1.9019000000000004,1.0874999999999999,0.6552,1.0247999999999999,1.2876999999999998,1.8708999999999998,0.98640000000000017,0.35039999999999999,1.3375999999999999,null,32.2866,3.0876000000000001,0.79049999999999998,1.232,1.9760000000000002,1.131,0.69420000000000004,1.0878000000000001,1.3203,2.0007000000000001,1.0549000000000002,0.38400000000000001,1.3903999999999999,null,null,null,null,null,null,null,null,0.23199999999999998,0.33640000000000003,0,0,null,null,0,0,null,null,null,0,null,null,null,null,0.89,null,39.36,null,null,null,null,null,null,null,null,null,null,null,null,null,null,null,null,null,null,null,null,null,null,null,null,null,null,null,null,null,0.70364372469635617,0.62348178137651811,1.1285714285714286,0.19433198380566799,4.9573507275464133E-2]
[81,"Triticale",4316,3320,3228,2507,null,88.48,13.6,2.54,1.77,null,2.95,0,0,0,0,0,null,64.31,10.28,3.45,0.77,null,null,null,null,5.8500000000000085,43,39.482100000000003,null,0.73,0.31,0.45,0.86,0.46,0.24,0.52,0.41,0.16,0.59,null,null,0.28999999999999998,null,null,null,null,0.39,null,87,85,82,83,85,78,89,85,70,82,82,null,null,83,null,null,null,null,82,null,0.04,0.03,0.46,0.1,0.03,0.33,0.15,null,0.21,50,56,50,{"$f":"CD90+10","v":60},2.5155000000000034,null,10.743999999999998,0.59129999999999994,0.248,0.35550000000000004,0.6966,0.34039999999999998,0.19919999999999999,0.43119999999999997,0.42120000000000002,0.72930000000000006,0.26239999999999997,0.1216,0.45429999999999998,null,11.832000000000001,0.62049999999999994,0.25419999999999998,0.3735,0.73099999999999998,0.35880000000000001,0.21359999999999998,0.45429999999999993,0.442,0.76180000000000003,0.28699999999999998,0.13120000000000001,0.48379999999999995,null,null,null,null,null,null,null,null,0.16500000000000001,{"$f":"CC90*BX90/100","v":0.18479999999999999},0.02,2.4E-2,null,null,0,0,null,null,null,0,null,null,null,null,0.21,null,24.069999999999997,null,null,null,null,null,null,null,null,null,null,null,null,null,null,null,null,null,null,null,null,null,null,null,null,null,null,null,null,null,0.66183310533515727,0.51094391244870041,1.2953145917001339,0.17948016415868676,5.3749999999999999E-2]
[82,"Wheat, Hard Red",3788,3313,3215,2472,null,88.67,14.46,2.57,1.82,2.5099999999999998,1.98,0,0,0,0,0,null,59.5,10.6,3.55,0.97,9.83,6.81,2.34,null,10.910000000000011,46,40.136500000000012,null,0.6,0.34,0.47,0.91,0.39,0.22,0.64,0.4,0.17,0.57999999999999996,0.47,0.71,0.33,3.88,0.56999999999999995,1.36,0.6,0.36,null,88,91,88,89,89,82,88,90,84,88,88,83,84,89,93,92,105,89,88,null,0.06,0.06,0.49,0.16,0.01,0.39,0.16,null,0.22,46,56,50,60,5.0186000000000046,null,11.1342,0.498,0.28220000000000001,0.38539999999999996,0.75529999999999997,0.28079999999999999,0.18260000000000001,0.45650000000000002,0.54400000000000004,0.83200000000000007,0.28400000000000003,0.13940000000000002,0.4582,null,12.7248,0.54600000000000004,0.29920000000000002,0.41830000000000001,0.80990000000000006,0.31980000000000003,0.19359999999999999,0.48730000000000007,0.57600000000000007,0.89280000000000004,0.33600000000000002,0.14960000000000001,0.51039999999999996,null,null,null,null,null,null,null,null,0.1794,0.21840000000000001,0.03,3.5999999999999997E-2,null,null,120,0.06,2450,2490,0.5,0.19500000000000001,0.93,0,0,null,0.25,{"$f":"125*K91/10","v":22.75},29.37,null,null,null,null,null,null,null,null,null,null,null,null,null,null,null,null,null,null,null,null,null,null,null,null,null,55.81,2.5099999999999998,{"$f":"SUM(FI91:FJ91)/100*K91","v":1.0614240000000001},null,0.63020125941474248,0.51648351648351642,1.2201769065264163,0.18471416224225212,5.6009681881051175E-2]
[83,"Wheat, Soft Red",4295,3450,3376,2595,null,86.38,10.92,null,1.36,null,1.99,null,null,null,null,null,null,60.04,null,3.55,null,9.9,6.63,3.27,null,12.07,46,38.670299999999997,null,0.52,0.28000000000000003,0.34,0.68,0.35,0.22,0.52,0.35,0.14000000000000001,0.47,null,null,0.3,null,null,null,null,0.3,null,88.083333333333329,89,90,90,87,82,90,91,85,88,87,null,null,90,null,null,null,null,88,null,0.03,0.08,0.46,0.11,0.01,0.3,0.16,null,0.2,46,56,50,60,5.5522,null,0,0.43160000000000004,0.23520000000000002,0.28560000000000002,0.57800000000000007,0.25549999999999995,0.187,0.439,0.45240000000000002,0.70440000000000003,0.252,0.11340000000000001,0.37599999999999995,null,9.6186999999999987,0.46279999999999999,0.252,0.30599999999999999,0.59160000000000001,0.28699999999999998,0.19800000000000001,0.46799999999999997,0.47320000000000001,0.73720000000000008,0.29749999999999999,0.1232,0.40889999999999999,null,null,null,null,null,null,null,null,0.13799999999999998,0.16800000000000001,1.4999999999999999E-2,1.7999999999999999E-2,null,null,900,0.45,null,null,null,0,0,0,0,null,0.32,0,27,null,null,null,null,null,null,null,null,null,null,null,null,null,null,null,null,null,null,null,null,null,null,null,null,null,55.81,2.5099999999999998,0.79315200000000008,null,0.69117647058823528,0.51724137931034475,1.3362745098039215,0.20824881676808654,5.4175824175824179E-2]
[84,"Wheat Bran",4010,2420,2318,1646,null,87.38,15.08,7.77,4.72,null,4.16,0,0,0,0,0,null,22.56,32.28,11,null,null,null,null,null,40.86,34,39.893000000000001,null,0.77,0.39,0.47,0.8,0.52,0.22,0.49,0.6,0.22,0.66,1.79,3.38,0.74,5.03,1.44,{"$f":"AV93*2","v":3.04},1.52,0.69,null,78,90,76,75,73,73,72,83,64,73,79,58,66,77,84,67,87,73,56,null,0.1,7.0000000000000007E-2,1.26,0.52,0.04,0.99,0.22,null,0.88,46,56,50,60,13.8924,null,10.405200000000001,0.60060000000000002,0.26519999999999999,0.33839999999999998,0.48800000000000004,0.31720000000000004,0.1474,0.66539999999999999,0.36259999999999998,0.71449999999999991,0.28799999999999998,0,0.46200000000000002,null,11.7624,0.69299999999999995,0.2964,0.35249999999999998,0.58400000000000007,0.37959999999999999,0.15839999999999999,0.72819999999999996,0.40670000000000001,0.79310000000000003,0.38400000000000001,0.16059999999999999,0.52139999999999997,{"$f":"AP93*BJ93/100","v":1.0382},2.2307999999999999,0.56979999999999997,4.2252000000000001,0.96479999999999988,2.6448,1.1096000000000001,0.38640000000000002,0.45539999999999997,0.5544,0.05,0.06,null,null,100,0.05,1430,1570,0.28999999999999998,0.28709999999999997,1.8,0,0,null,0.88,{"$f":"125*K93/10","v":59},56.98,null,null,null,null,null,null,null,null,null,null,null,null,null,null,null,null,null,null,null,null,null,null,null,null,null,55.81,2.5099999999999998,2.752704,null,0.89280821917808206,0.60359589041095885,1.4791489361702128,0.27499999999999997,3.8726790450928389E-2]
[85,"Wheat Middlings",3901,3075,2968,2113,null,89.1,15.76,5.15,3.15,2.35,2.0499999999999998,0,0,0,0,0,null,21.83,34.97,5.98,null,null,null,null,null,46.309999999999988,37,41.191499999999991,null,1.1000000000000001,0.44,0.51,1.03,0.65,0.25,0.64,0.53,0.19,0.72,null,null,0.35,null,null,null,null,0.28999999999999998,null,81,91,84,79,80,78,82,84,73,81,81,null,null,76,null,null,null,null,83,null,0.11,0.04,1.06,0.41,0.05,0.98,0.17,null,0.61,46,56,50,60,17.134699999999995,null,0,0.95700000000000007,0.35200000000000004,0.39270000000000005,0.77249999999999996,0.47450000000000003,0.19500000000000001,0.44350000000000001,0.50560000000000005,0.72889999999999999,0.3286,0.1444,0.53280000000000005,null,12.765599999999999,1.0010000000000001,0.36959999999999998,0.40289999999999998,0.82400000000000007,0.50700000000000001,0.20499999999999999,0.47099999999999992,0.53759999999999997,0.77829999999999999,0.38690000000000002,0.15390000000000001,0.58320000000000005,null,null,null,null,null,null,null,null,0.45079999999999998,0.54879999999999995,5.5E-2,6.6000000000000003E-2,null,null,240,0.12,1850,1950,0.41,0.40179999999999999,1.74,0,0,null,0.61,{"$f":"125*K94/10","v":39.375},26.599999999999998,null,null,null,null,null,null,null,null,null,null,null,null,null,null,null,null,null,null,null,null,null,null,null,null,null,56.74,4.2,1.91961,null,0.70776699029126211,0.48895631067961159,1.4475055845122862,0.18677184466019417,5.228426395939087E-2]
[86,"Wheat Shorts",4505,2985,2871,2074,null,87.9,16.760000000000002,null,4.5999999999999996,null,2.1,null,null,null,null,null,null,28.6,29.5,8.6,null,null,null,null,null,35.840000000000011,38,41.090800000000002,null,1.07,0.42,0.53,0.97,0.59,0.27,0.62,0.51,0.22,0.76,null,null,0.43,null,null,null,null,0.26,null,62,88,84,81,83,76,84,84,76,84,81,null,null,82,null,null,null,null,84,null,0.08,0.04,1.06,0.25,0.02,0.93,0.2,null,null,46,56,50,60,13.619200000000003,null,8.8828000000000014,0.92020000000000013,0.34439999999999998,0.40810000000000002,0.69840000000000002,0.36579999999999996,0.21870000000000001,0.47670000000000001,0.50839999999999996,0.71119999999999994,0.36719999999999997,0.16940000000000002,0.5776,null,10.391200000000001,0.9416000000000001,0.3528,0.42930000000000001,0.80509999999999993,0.44839999999999997,0.2268,0.57940000000000003,0.52079999999999993,0.73919999999999997,0.3876,0.18479999999999999,0.61560000000000004,null,null,null,null,null,null,null,null,0.42780000000000001,0.52080000000000004,0.04,4.8000000000000001E-2,null,null,0,0,null,null,null,0,null,null,null,null,0.6,null,35.26,null,null,null,null,null,null,null,null,null,null,null,null,null,null,null,null,null,null,null,null,null,null,null,null,null,55.81,2.5099999999999998,2.6827200000000002,null,0.76462551235871334,0.53322568625015532,1.4339622641509435,0.22953670351509131,4.8036992840095459E-2]
[87,"Wheat DDGS",4650,3151,2902,1847,null,92.59,36.61,6.75,5.34,5.09,4.57,null,null,null,null,null,null,1.78,34.700000000000003,13.81,4.45,null,null,null,null,44.29,60,44.175399999999996,null,1.41,0.76,1.25,2.4500000000000002,0.73,0.52,1.67,1.1299999999999999,0.37,1.6,null,null,0.61,null,null,null,null,1.06,null,75,82,75,73,80,51,78,84,71,77,73,null,null,76,null,null,null,null,81,null,0.16,null,1.06,0.39,0.28000000000000003,0.92,0.44,null,0.21,56,61,50,60,26.574000000000002,null,25.260900000000003,1.0715999999999999,0.54720000000000002,0.86250000000000004,1.8865000000000001,0.32119999999999999,0.36399999999999999,0.78489999999999993,1.3694,2.1856,0.72319999999999995,0.26640000000000003,1.1040000000000001,null,27.4575,1.1561999999999999,0.56999999999999995,0.91249999999999998,1.96,0.37229999999999996,0.40560000000000002,0.86919999999999997,1.4028,2.2614000000000001,0.8022999999999999,0.28489999999999999,1.1680000000000001,null,null,null,null,null,null,null,null,0.51519999999999999,0.56120000000000003,0.08,9.6000000000000002E-2,null,null,0,0,null,null,null,0,null,null,null,null,0.21,null,46.36,null,null,null,null,null,null,null,null,null,null,null,null,null,null,null,null,null,null,null,null,null,null,null,null,null,55.81,2.5099999999999998,3.1142880000000002,null,0.59591836734693882,0.46556122448979592,1.2800000000000002,0.14535714285714285,5.3537284894837479E-2]
[88,"Yeast, Brewers' Yeast",4461,4015,3699,2414,null,93.3,46.52,null,2.0499999999999998,null,6.9,null,null,null,null,null,null,4.2,4,3,null,null,null,null,null,33.629999999999995,97,43.195099999999996,null,2.2000000000000002,1.0900000000000001,2.15,3.13,3.22,0.74,1.83,2.2000000000000002,0.56000000000000005,2.39,null,null,0.5,null,null,null,null,1.55,null,69.25,79,77,74,73,76,72,72,66,60,70,null,null,48,null,null,null,null,64,null,0.16,0.12,1.8,0.23,0.1,1.4,0.4,null,null,80,85,null,null,32.621099999999998,null,0,1.7380000000000002,0.83930000000000005,1.591,2.2848999999999999,2.4472000000000005,0.53280000000000005,0.72280000000000011,1.3175999999999999,2.2630999999999997,1.3860000000000001,0.33600000000000002,1.673,null,32.2151,1.7380000000000002,0.83930000000000005,1.591,2.2848999999999999,2.4472000000000005,0.53280000000000005,0.77280000000000004,1.3175999999999999,2.3095999999999997,1.4520000000000002,0.33600000000000002,1.673,null,null,null,null,null,null,null,null,1.1200000000000001,1.19,0,0,null,null,0,0,null,null,null,0,null,null,null,null,0.28999999999999998,null,24,null,null,null,null,null,null,null,null,null,null,null,null,null,null,null,null,null,null,null,null,null,null,null,null,null,null,null,null,null,0.73219834566064168,0.69631056063722707,1.0515399120050284,0.14705238741301591,4.9116509028374888E-2]
[89,"Yeast, Single Cell Protein",3725,4166,3920,2593,null,93.3,36.25,null,2.0499999999999998,null,6.9,null,null,null,null,null,null,0,null,3,null,null,null,null,null,48.1,97,42.415500000000002,null,1.45,0.71,1.36,1.81,2.58,0.84,1.18,1.42,null,1.53,null,null,null,null,null,null,null,0.61,null,69,75,66,59,61,74,88,53,54,null,58,null,null,null,null,null,null,null,null,null,null,null,null,null,null,1.54,null,null,null,70,75,null,null,46.656999999999996,null,23.925000000000001,1.0585,0.45439999999999997,0.77520000000000011,1.0679000000000001,1.8834,0.73080000000000001,0.73080000000000001,0.6018,0.96779999999999999,0.72420000000000007,0,0.84150000000000003,null,25.012499999999999,1.0874999999999999,0.46860000000000002,0.80240000000000011,1.1040999999999999,1.9092000000000002,0.73919999999999997,0.73919999999999997,0.62539999999999996,0.62539999999999996,0.76679999999999993,0,0.88739999999999997,null,null,null,null,null,null,null,null,1.0780000000000001,1.155,0,0,null,null,0,0,null,null,null,0,null,null,null,null,{"$f":"BX98*0.207","v":0.31878000000000001},null,"",null,null,null,null,null,null,null,null,null,null,null,null,null,null,null,null,null,null,null,null,null,null,null,null,null,null,null,null,null,0.80373154605561092,0.72674576578208516,1.1059322033898302,0,3.0457931034482754E-2]
[90,"Beef Tallow",null,7995,7835,6895,null,null,null,null,97,null,0,null,null,null,null,null,null,null,null,null,null,null,null,null,null,null,null,73.72,null,null,null,null,null,null,null,null,null,null,null,null,null,null,null,null,null,null,null,null,null,null,null,null,null,null,null,null,null,null,null,null,null,null,null,null,null,null,null,null,null,null,null,null,null,null,null,null,null,null,null,null,null,0,null,0,0,0,0,0,0,0,0,0,0,0,0,0,null,0,0,0,0,0,0,0,0,0,0,0,0,0,null,null,null,null,null,null,null,null,0,0,0,0,null,null,800,0.4,7110,7110,0,0,3.1,0,0,null,null,440,"",null,null,null,null,null,null,null,null,null,null,null,null,null,null,null,null,null,null,null,null,null,null,null,null,null,2.8,0.6,{"$f":"SUM(FI99:FJ99)/100*K99","v":3.298},null,{"$error":"#DIV/0!"},{"$error":"#DIV/0!"},{"$error":"#DIV/0!"},{"$error":"#DIV/0!"},{"$error":"#DIV/0!"}]
[91,"Choice White Grease",null,8290,8124,7149,null,null,null,null,97,null,0,null,null,null,null,null,null,null,null,null,null,null,null,null,null,null,null,73.72,null,null,null,null,null,null,null,null,null,null,null,null,null,null,null,null,null,null,null,null,null,null,null,null,null,null,null,null,null,null,null,null,null,null,null,null,null,null,null,null,null,null,null,null,null,null,null,null,null,null,null,null,null,0,null,0,0,0,0,0,0,0,0,0,0,0,0,0,null,0,0,0,0,0,0,0,0,0,0,0,0,0,null,null,null,null,null,null,null,null,0,0,0,0,null,null,800,{"$f":"'DDGS Calculator'!D10","v":0.4},7110,7110,0,0,11.6,0,0,null,null,600,"",null,null,null,null,null,null,null,null,null,null,null,null,null,null,null,null,null,null,null,null,null,null,null,null,null,9.1999999999999993,0.9,{"$f":"SUM(FI100:FJ100)/100*K100","v":9.7969999999999988},null,{"$error":"#DIV/0!"},{"$error":"#DIV/0!"},{"$error":"#DIV/0!"},{"$error":"#DIV/0!"},{"$error":"#DIV/0!"}]
[92,"Poultry Fat",null,8535,8364,7361,null,null,null,null,97,null,0,null,null,null,null,null,null,null,null,null,null,null,null,null,null,null,null,73.72,null,null,null,null,null,null,null,null,null,null,null,null,null,null,null,null,null,null,null,null,null,null,null,null,null,null,null,null,null,null,null,null,null,null,null,null,null,null,null,null,null,null,null,null,null,null,null,null,null,null,null,null,null,0,null,0,0,0,0,0,0,0,0,0,0,0,0,0,null,0,0,0,0,0,0,0,0,0,0,0,0,0,null,null,null,null,null,null,null,null,0,0,0,0,null,null,5400,2.7,4130,4130,null,0,0,0,0,null,null,0,"",null,null,null,null,null,null,null,null,null,null,null,null,null,null,null,null,null,null,null,null,null,null,null,null,null,20.6,1.6,{"$f":"SUM(FI101:FJ101)/100*K101","v":21.534000000000002},null,{"$error":"#DIV/0!"},{"$error":"#DIV/0!"},{"$error":"#DIV/0!"},{"$error":"#DIV/0!"},{"$error":"#DIV/0!"}]
[93,"Lard",null,8288,8123,7148,null,null,null,null,97,null,0,null,null,null,null,null,null,null,null,null,null,null,null,null,null,null,null,73.72,null,null,null,null,null,null,null,null,null,null,null,null,null,null,null,null,null,null,null,null,null,null,null,null,null,null,null,null,null,null,null,null,null,null,null,null,null,null,null,null,null,null,null,null,null,null,null,null,null,null,null,null,null,0,null,0,0,0,0,0,0,0,0,0,0,0,0,0,null,0,{"$f":"AF102*AZ102/100","v":0},{"$f":"AG102*BA102/100","v":0},{"$f":"AH102*BB102/100","v":0},{"$f":"AI102*BC102/100","v":0},{"$f":"AJ102*BD102/100","v":0},{"$f":"AK102*BE102/100","v":0},0,0,0,0,0,0,null,null,null,null,null,null,null,null,0,0,0,0,null,null,2500,1.25,2930,2930,null,0,0,0,0,null,null,0,"",null,null,null,null,null,null,null,null,null,null,null,null,null,null,null,null,null,null,null,null,null,null,null,null,null,9.1999999999999993,0.9,{"$f":"SUM(FI102:FJ102)/100*K102","v":9.7969999999999988},null,{"$error":"#DIV/0!"},{"$error":"#DIV/0!"},{"$error":"#DIV/0!"},{"$error":"#DIV/0!"},{"$error":"#DIV/0!"}]
[94,"Restaurant Grease",null,8550,8379,7374,null,null,null,null,97,null,0,null,null,null,null,null,null,null,null,null,null,null,null,null,null,null,null,73.72,null,null,null,null,null,null,null,null,null,null,null,null,null,null,null,null,null,null,null,null,null,null,null,null,null,null,null,null,null,null,null,null,null,null,null,null,null,null,null,null,null,null,null,null,null,null,null,null,null,null,null,null,null,0,null,0,0,0,0,0,0,0,0,0,0,0,0,0,null,0,0,0,0,0,0,0,0,0,0,0,0,0,null,null,null,null,null,null,null,null,0,0,0,0,null,null,760,0.38,7110,7110,0,0,17.5,0,0,null,null,750,"",null,null,null,null,null,null,null,null,null,null,null,null,null,null,null,null,null,null,null,null,null,null,null,null,null,34.67,0,{"$f":"SUM(FI103:FJ103)/100*K103","v":33.629899999999999},null,{"$error":"#DIV/0!"},{"$error":"#DIV/0!"},{"$error":"#DIV/0!"},{"$error":"#DIV/0!"},{"$error":"#DIV/0!"}]
[99,"Canola oil",null,8759,8384,7554,null,null,null,null,97,null,0,null,null,null,null,null,null,null,null,null,null,null,null,null,null,null,null,73.72,null,null,null,null,null,null,null,null,null,null,null,null,null,null,null,null,null,null,null,null,null,null,null,null,null,null,null,null,null,null,null,null,null,null,null,null,null,null,null,null,null,null,null,null,null,null,null,null,null,null,null,null,null,0,null,0,0,0,0,0,0,0,0,0,0,0,0,0,null,0,0,0,0,0,0,0,0,0,0,0,0,0,null,null,null,null,null,null,null,null,0,0,0,0,null,null,2400,1.2,3650,3650,null,0,0,0,0,null,null,0,"",null,null,null,null,null,null,null,null,null,null,null,null,null,null,null,null,null,null,null,null,null,null,null,null,null,null,null,null,null,{"$error":"#DIV/0!"},{"$error":"#DIV/0!"},{"$error":"#DIV/0!"},{"$error":"#DIV/0!"},{"$error":"#DIV/0!"}]
[100,"Coconut oil",null,7169,7025,6182,null,null,null,null,97,null,0,null,null,null,null,null,null,null,null,null,null,null,null,null,null,null,null,73.72,null,null,null,null,null,null,null,null,null,null,null,null,null,null,null,null,null,null,null,null,null,null,null,null,null,null,null,null,null,null,null,null,null,null,null,null,null,null,null,null,null,null,null,null,null,null,null,null,null,null,null,null,null,0,null,0,0,0,0,0,0,0,0,0,0,0,0,0,null,0,0,0,0,0,0,0,0,0,0,0,0,0,null,null,null,null,null,null,null,null,0,0,0,0,null,null,14000,7,{"$f":"E105*0.77","v":5409.25},{"$f":"E105*0.77","v":5409.25},null,0,null,null,null,null,null,null,"",null,null,null,null,null,null,null,null,null,null,null,null,null,null,null,null,null,null,null,null,null,null,null,null,null,2.08,0.06,{"$f":"SUM(FI105:FJ105)/100*K105","v":2.0758000000000001},null,{"$error":"#DIV/0!"},{"$error":"#DIV/0!"},{"$error":"#DIV/0!"},{"$error":"#DIV/0!"},{"$error":"#DIV/0!"}]
[101,"Corn oil",null,8754,8579,7549,null,null,null,null,97,null,0,null,null,null,null,null,null,null,null,null,null,null,null,null,null,null,null,73.72,null,null,null,null,null,null,null,null,null,null,null,null,null,null,null,null,null,null,null,null,null,null,null,null,null,null,null,null,null,null,null,null,null,null,null,null,null,null,null,null,null,null,null,null,null,null,null,null,null,null,null,null,null,0,null,0,0,0,0,0,0,0,0,0,0,0,0,0,null,0,0,0,0,0,0,0,0,0,0,0,0,0,null,null,null,null,null,null,null,null,0,0,0,0,null,null,14000,7,{"$f":"E106*0.77","v":6605.83},{"$f":"E106*0.77","v":6605.83},null,0,null,null,null,null,null,null,"",null,null,null,null,null,null,null,null,null,null,null,null,null,null,null,null,null,null,null,null,null,null,null,null,null,56.21,1.22,{"$f":"SUM(FI106:FJ106)/100*K106","v":55.707100000000004},null,{"$error":"#DIV/0!"},{"$error":"#DIV/0!"},{"$error":"#DIV/0!"},{"$error":"#DIV/0!"},{"$error":"#DIV/0!"}]
[106,"Palm Kernel oil",null,7265,7119,6265,null,null,null,null,97,null,0,null,null,null,null,null,null,null,null,null,null,null,null,null,null,null,null,73.72,null,null,null,null,null,null,null,null,null,null,null,null,null,null,null,null,null,null,null,null,null,null,null,null,null,null,null,null,null,null,null,null,null,null,null,null,null,null,null,null,null,null,null,null,null,null,null,null,null,null,null,null,null,0,null,0,0,0,0,0,0,0,0,0,0,0,0,0,null,0,0,0,0,0,0,0,0,0,0,0,0,0,null,null,null,null,null,null,null,null,0,0,0,0,null,null,0,0,{"$f":"E107*0.77","v":5481.63},{"$f":"E107*0.77","v":5481.63},null,0,null,null,null,null,null,null,"",null,null,null,null,null,null,null,null,null,null,null,null,null,null,null,null,null,null,null,null,null,null,null,null,null,10.99,0.43,{"$f":"SUM(FI107:FJ107)/100*K107","v":11.077399999999999},null,{"$error":"#DIV/0!"},{"$error":"#DIV/0!"},{"$error":"#DIV/0!"},{"$error":"#DIV/0!"},{"$error":"#DIV/0!"}]
[110,"Soybean oil",null,8749,8574,7545,null,null,null,null,97,null,0,null,null,null,null,null,null,null,null,null,null,null,null,null,null,null,null,73.72,null,null,null,null,null,null,null,null,null,null,null,null,null,null,null,null,null,null,null,null,null,null,null,null,null,null,null,null,null,null,null,null,null,null,null,null,null,null,null,null,null,null,null,null,null,null,null,null,null,null,null,null,null,0,null,0,0,0,0,0,0,0,0,0,0,0,0,0,null,0,0,0,0,0,0,0,0,0,0,0,0,0,null,null,null,null,null,null,null,null,0,0,0,0,null,null,760,0.38,7110,7110,0,0,17.5,0,0,null,null,750,"",null,null,null,null,null,null,null,null,null,null,null,null,null,null,null,null,null,null,null,null,null,null,null,null,null,53.1,7.4,{"$f":"SUM(FI108:FJ108)/100*K108","v":58.684999999999995},null,{"$error":"#DIV/0!"},{"$error":"#DIV/0!"},{"$error":"#DIV/0!"},{"$error":"#DIV/0!"},{"$error":"#DIV/0!"}]
[111,"Soybean Lecithin",null,8701,8527,7504,null,null,null,null,97,null,0,null,null,null,null,null,null,null,null,null,null,null,null,null,null,null,null,73.72,null,null,null,null,null,null,null,null,null,null,null,null,null,null,null,null,null,null,null,null,null,null,null,null,null,null,null,null,null,null,null,null,null,null,null,null,null,null,null,null,null,null,null,null,null,null,null,null,null,null,null,null,null,0,null,0,0,0,0,0,0,0,0,0,0,0,0,0,null,0,0,0,0,0,0,0,0,0,0,0,0,0,null,null,null,null,null,null,null,null,0,0,0,0,null,null,1400,0.7,{"$f":"1427*2.2046","v":3145.9642000000003},{"$f":"DY109","v":3145.9642000000003},1,0,null,null,null,null,null,null,"",null,null,null,null,null,null,null,null,null,null,null,null,null,null,null,null,null,null,null,null,null,null,null,null,null,null,null,null,null,{"$error":"#DIV/0!"},{"$error":"#DIV/0!"},{"$error":"#DIV/0!"},{"$error":"#DIV/0!"},{"$error":"#DIV/0!"}]
[112,"Sunflower oil",null,8760,8585,7555,null,null,null,null,97,null,0,null,null,null,null,null,null,null,null,null,null,null,null,null,null,null,null,73.72,null,null,null,null,null,null,null,null,null,null,null,null,null,null,null,null,null,null,null,null,null,null,null,null,null,null,null,null,null,null,null,null,null,null,null,null,null,null,null,null,null,null,null,null,null,null,null,null,null,null,null,null,null,0,null,0,0,0,0,0,0,0,0,0,0,0,0,0,null,0,0,0,0,0,0,0,0,0,0,0,0,0,null,null,null,null,null,null,null,null,0,0,0,0,null,null,1200,0.6,2640,2640,null,0,null,null,null,null,null,null,"",null,null,null,null,null,null,null,null,null,null,null,null,null,null,null,null,null,null,null,null,null,null,null,null,null,null,null,null,null,{"$error":"#DIV/0!"},{"$error":"#DIV/0!"},{"$error":"#DIV/0!"},{"$error":"#DIV/0!"},{"$error":"#DIV/0!"}]
[113,"Fat, A/V blend",null,8393,8225,7238,null,null,null,null,97,null,0,null,null,null,null,null,null,null,null,null,null,null,null,null,null,null,null,73.72,null,null,null,null,null,null,null,null,null,null,null,null,null,null,null,null,null,null,null,null,null,null,null,null,null,null,null,null,null,null,null,null,null,null,null,null,null,null,null,null,null,null,null,null,null,null,null,null,null,null,null,null,null,0,null,0,0,0,0,0,0,0,0,0,0,0,0,0,null,0,0,0,0,0,0,0,0,0,0,0,0,0,null,null,null,null,null,null,null,null,0,0,0,0,null,null,4400,2.2000000000000002,{"$f":"0.77*E111","v":6333.25},{"$f":"0.77*E111","v":6333.25},null,0,null,null,null,null,null,null,"",null,null,null,null,null,null,null,null,null,null,null,null,null,null,null,null,null,null,null,null,null,null,null,null,null,34.67,0,{"$f":"SUM(FI111:FJ111)/100*K111","v":33.629899999999999},null,{"$error":"#DIV/0!"},{"$error":"#DIV/0!"},{"$error":"#DIV/0!"},{"$error":"#DIV/0!"},{"$error":"#DIV/0!"}]
[114,"Calcium carbonate",null,null,null,null,null,null,null,null,null,null,null,null,null,null,null,null,null,null,null,null,null,null,null,null,null,null,null,0,null,null,null,null,null,null,null,null,null,null,null,null,null,null,null,null,null,null,null,null,null,null,null,null,null,null,null,null,null,null,null,null,null,null,null,null,null,null,null,null,38.5,0.02,0.08,1.61,0.08,0.02,0.08,null,null,null,null,64,71,0,null,0,0,0,0,0,0,0,0,0,0,0,0,0,null,0,0,0,0,0,0,0,0,0,0,0,0,0,null,null,null,null,null,null,null,null,0,0,24.64,27.335000000000001,null,null,87,{"$f":"'DDGS Calculator'!D8/2000","v":4.3499999999999997E-2},null,null,null,0,null,null,null,null,null,null,"",null,null,null,null,null,null,null,null,null,null,null,null,null,null,null,null,null,null,null,null,null,null,null,null,null,null,null,null,null,{"$error":"#DIV/0!"},{"$error":"#DIV/0!"},{"$error":"#DIV/0!"},{"$error":"#DIV/0!"},{"$error":"#DIV/0!"}]
[115,"Calcium phosphate (tricalcium)",null,null,null,null,null,null,null,null,null,null,null,null,null,null,null,null,null,null,null,null,null,null,null,null,null,null,null,0,null,null,null,null,null,null,null,null,null,null,null,null,null,null,null,null,null,null,null,null,null,null,null,null,null,null,null,null,null,null,null,null,null,null,null,null,null,null,null,null,34.200000000000003,null,null,0.4,6,17.7,0,null,null,48,53.4,null,null,0,null,0,0,0,0,0,0,0,0,0,0,0,0,0,null,0,0,0,0,0,0,0,0,0,0,0,0,0,null,null,null,null,null,null,null,null,8.4959999999999987,9.4517999999999986,0,0,null,null,0,0,null,null,null,0,null,null,null,null,null,null,"",null,null,null,null,null,null,null,null,null,null,null,null,null,null,null,null,null,null,null,null,null,null,null,null,null,null,null,null,null,{"$error":"#DIV/0!"},{"$error":"#DIV/0!"},{"$error":"#DIV/0!"},{"$error":"#DIV/0!"},{"$error":"#DIV/0!"}]
[116,"Calcium phosphate (dicalcium)",null,null,null,null,null,null,null,null,null,null,null,null,null,null,null,null,null,null,null,null,null,null,null,null,null,null,null,0,null,null,null,null,null,null,null,null,null,null,null,null,null,null,null,null,null,null,null,null,null,null,null,null,null,null,null,null,null,null,null,null,null,null,null,null,null,null,null,null,24.8,0.47,0.15,0.5,0.2,18.8,0.1,null,null,73.900000000000006,81.400000000000006,73,75,0,null,0,0,0,0,0,0,0,0,0,0,0,0,0,null,0,0,0,0,0,0,0,0,0,0,0,0,0,null,null,null,null,null,null,null,null,13.893200000000002,15.303200000000002,18.103999999999999,18.600000000000001,null,null,600,0.3,0,0,1,18.8,0,0,null,null,null,0,"",null,null,null,null,null,null,null,null,null,null,null,null,null,null,null,null,null,null,null,null,null,null,null,null,null,null,null,null,null,{"$error":"#DIV/0!"},{"$error":"#DIV/0!"},{"$error":"#DIV/0!"},{"$error":"#DIV/0!"},{"$error":"#DIV/0!"}]
[117,"Calcium phosphate (monocalcium)",null,null,null,null,null,null,null,null,null,null,null,null,null,null,null,null,null,null,null,null,null,null,null,null,null,null,null,0,null,null,null,null,null,null,null,null,null,null,null,null,null,null,null,null,null,null,null,null,null,null,null,null,null,null,null,null,null,null,null,null,null,null,null,null,null,null,null,null,18,null,0.16,0.9,0.2,21.5,0.8,null,null,82.8,88.3,77,80,0,null,0,0,0,0,0,0,0,0,0,0,0,0,0,null,0,0,0,0,0,0,0,0,0,0,0,0,0,null,null,null,null,null,null,null,null,17.802,{"$f":"CC115*BX115/100","v":18.984500000000001},13.86,14.4,null,null,640,{"$f":"'DDGS Calculator'!D9/2000","v":0.32},0,0,1,21.5,0,0,null,null,null,0,"",null,null,null,null,null,null,null,null,null,null,null,null,null,null,null,null,null,null,null,null,null,null,null,null,null,null,null,null,null,{"$error":"#DIV/0!"},{"$error":"#DIV/0!"},{"$error":"#DIV/0!"},{"$error":"#DIV/0!"},{"$error":"#DIV/0!"}]
[118,"Calcium sulfate, dihydrate",null,null,null,null,null,null,null,null,null,null,null,null,null,null,null,null,null,null,null,null,null,null,null,null,null,null,null,0,null,null,null,null,null,null,null,null,null,null,null,null,null,null,null,null,null,null,null,null,null,null,null,null,null,null,null,null,null,null,null,null,null,null,null,null,null,null,null,null,21.85,null,null,0.48,null,null,16.190000000000001,null,null,null,null,null,null,0,null,0,0,0,0,0,0,0,0,0,0,0,0,0,null,0,0,0,0,0,0,0,0,0,0,0,0,0,null,null,null,null,null,null,null,null,0,0,0,0,null,null,0,0,null,null,null,0,null,null,null,null,null,null,null,null,null,null,null,null,null,null,null,null,null,null,null,null,null,null,null,null,null,null,null,null,null,null,null,null,null,null,null,null,{"$error":"#DIV/0!"},{"$error":"#DIV/0!"},{"$error":"#DIV/0!"},{"$error":"#DIV/0!"},{"$error":"#DIV/0!"}]
[119,"Limestone, ground",null,null,null,null,null,null,null,null,null,null,null,null,null,null,null,null,null,null,null,null,null,null,null,null,null,null,null,0,null,null,null,null,null,null,null,null,null,null,null,null,null,null,null,null,null,null,null,null,null,null,null,null,null,null,null,null,null,null,null,null,null,null,null,null,null,null,null,null,35.840000000000003,0.02,0.11,2.06,0.06,0.01,0.04,null,null,null,null,64,71,0,null,0,0,0,0,0,0,0,0,0,0,0,0,0,null,0,0,0,0,0,0,0,0,0,0,0,0,0,null,null,null,null,null,null,null,null,0,0,22.937600000000003,25.446400000000004,null,null,40,0.02,0,0,0,0,0,0,null,null,null,0,{"$f":"IF(AR117=\"\",\"\",AR117*BL117)","v":""},null,null,null,null,null,null,null,null,null,null,null,null,null,null,null,null,null,null,null,null,null,null,null,null,null,null,null,null,null,{"$error":"#DIV/0!"},{"$error":"#DIV/0!"},{"$error":"#DIV/0!"},{"$error":"#DIV/0!"},{"$error":"#DIV/0!"}]
[120,"Magnesium phosphate",null,null,null,null,null,null,null,null,null,null,null,null,null,null,null,null,null,null,null,null,null,null,null,null,null,null,null,0,null,null,null,null,null,null,null,null,null,null,null,null,null,null,null,null,null,null,null,null,null,null,null,null,null,null,null,null,null,null,null,null,null,null,null,null,null,null,null,null,10.1,null,null,null,null,19.7,null,null,null,83.9,98.2,null,null,0,null,0,0,0,0,0,0,0,0,0,0,0,0,0,null,0,0,0,0,0,0,0,0,0,0,0,0,0,null,null,null,null,null,null,null,null,16.528300000000002,{"$f":"CC118*BX118/100","v":19.345399999999998},0,0,null,null,0,0,null,null,null,0,null,null,null,null,null,null,null,null,null,null,null,null,null,null,null,null,null,null,null,null,null,null,null,null,null,null,null,null,null,null,null,null,null,null,null,null,{"$error":"#DIV/0!"},{"$error":"#DIV/0!"},{"$error":"#DIV/0!"},{"$error":"#DIV/0!"},{"$error":"#DIV/0!"}]
[121,"Sodium carbonate",null,null,null,null,null,null,null,null,null,null,null,null,null,null,null,null,null,null,null,null,null,null,null,null,null,null,null,0,null,null,null,null,null,null,null,null,null,null,null,null,null,null,null,null,null,null,null,null,null,null,null,null,null,null,null,null,null,null,null,null,null,null,null,null,null,null,null,null,null,null,null,null,43.3,null,null,null,null,null,null,null,null,0,null,0,0,0,0,0,0,0,0,0,0,0,0,0,null,0,0,0,0,0,0,0,0,0,0,0,0,0,null,null,null,null,null,null,null,null,0,{"$f":"CC119*BX119/100","v":0},0,0,null,null,87,{"$f":"'DDGS Calculator'!D8/2000","v":4.3499999999999997E-2},null,null,null,0,null,null,null,null,null,null,null,null,null,null,null,null,null,null,null,null,null,null,null,null,null,null,null,null,null,null,null,null,null,null,null,null,null,null,null,null,{"$error":"#DIV/0!"},{"$error":"#DIV/0!"},{"$error":"#DIV/0!"},{"$error":"#DIV/0!"},{"$error":"#DIV/0!"}]
[122,"Sodium bicarbonate",null,null,null,null,null,null,null,null,null,null,null,null,null,null,null,null,null,null,null,null,null,null,null,null,null,null,null,0,null,null,null,null,null,null,null,null,null,null,null,null,null,null,null,null,null,null,null,null,null,null,null,null,null,null,null,null,null,null,null,null,null,null,null,null,null,null,null,null,0.01,null,0.01,null,27,null,null,null,null,null,null,null,null,0,null,0,0,0,0,0,0,0,0,0,0,0,0,0,null,0,0,0,0,0,0,0,0,0,0,0,0,0,null,null,null,null,null,null,null,null,0,{"$f":"CC120*BX120/100","v":0},0,0,null,null,0,0,null,null,null,0,null,null,null,null,null,null,null,null,null,null,null,null,null,null,null,null,null,null,null,null,null,null,null,null,null,null,null,null,null,null,null,null,null,null,null,null,{"$error":"#DIV/0!"},{"$error":"#DIV/0!"},{"$error":"#DIV/0!"},{"$error":"#DIV/0!"},{"$error":"#DIV/0!"}]
[123,"Sodium chloride",null,null,null,null,null,null,null,null,null,null,null,null,null,null,null,null,null,null,null,null,null,null,null,null,null,null,null,0,null,null,null,null,null,null,null,null,null,null,null,null,null,null,null,null,null,null,null,null,null,null,null,null,null,null,null,null,null,null,null,null,null,null,null,null,null,null,null,null,0.3,59,0,5.0000000000000001E-3,39.5,null,0.2,null,null,null,null,null,null,0,null,0,0,0,0,0,0,0,0,0,0,0,0,0,null,0,0,0,0,0,0,0,0,0,0,0,0,0,null,null,null,null,null,null,null,null,0,{"$f":"CC121*BX121/100","v":0},0,0,null,null,70,3.5000000000000003E-2,0,0,0,0,0,0,0,null,null,0,{"$f":"IF(AR121=\"\",\"\",AR121*BL121)","v":""},null,null,null,null,null,null,null,null,null,null,null,null,null,null,null,null,null,null,null,null,null,null,null,null,null,null,null,null,null,{"$error":"#DIV/0!"},{"$error":"#DIV/0!"},{"$error":"#DIV/0!"},{"$error":"#DIV/0!"},{"$error":"#DIV/0!"}]
[124,"Sodium phosphate, monobasic",null,null,null,null,null,null,null,null,null,null,null,null,null,null,null,null,null,null,null,null,null,null,null,null,null,null,null,0,null,null,null,null,null,null,null,null,null,null,null,null,null,null,null,null,null,null,null,null,null,null,null,null,null,null,null,null,null,null,null,null,null,null,null,null,null,null,null,null,0.09,0.02,0.01,0.01,19.100000000000001,24.7,null,null,null,86.7,93.8,null,null,0,null,0,0,0,0,0,0,0,0,0,0,0,0,0,null,0,0,0,0,0,0,0,0,0,0,0,0,0,null,null,null,null,null,null,null,null,21.414899999999999,{"$f":"CC122*BX122/100","v":23.168599999999998},0,0,null,null,0,0,null,null,null,0,null,null,null,null,null,null,null,null,null,null,null,null,null,null,null,null,null,null,null,null,null,null,null,null,null,null,null,null,null,null,null,null,null,null,null,null,{"$error":"#DIV/0!"},{"$error":"#DIV/0!"},{"$error":"#DIV/0!"},{"$error":"#DIV/0!"},{"$error":"#DIV/0!"}]
[125,"Sodium sulfate, decahydrate",null,null,null,null,null,null,null,null,null,null,null,null,null,null,null,null,null,null,null,null,null,null,null,null,null,null,null,0,null,null,null,null,null,null,null,null,null,null,null,null,null,null,null,null,null,null,null,null,null,null,null,null,null,null,null,null,null,null,null,null,null,null,null,null,null,null,null,null,null,null,null,null,13.8,null,9.6999999999999993,null,null,null,null,null,null,0,null,0,0,0,0,0,0,0,0,0,0,0,0,0,null,0,0,0,0,0,0,0,0,0,0,0,0,0,null,null,null,null,null,null,null,null,0,0,0,0,null,null,64000,32,null,null,null,0,0,0,0,null,null,0,{"$f":"IF(AR123=\"\",\"\",AR123*BL123)","v":""},null,null,null,null,null,null,null,null,null,null,null,null,null,null,null,null,null,null,null,null,null,null,null,null,null,null,null,null,null,{"$error":"#DIV/0!"},{"$error":"#DIV/0!"},{"$error":"#DIV/0!"},{"$error":"#DIV/0!"},{"$error":"#DIV/0!"}]
[126,"L-Lys-HCl",4780,4780,4350,3370,null,null,93.9,null,null,null,null,null,null,null,null,null,null,null,null,null,null,null,null,null,null,null,null,49.767000000000003,null,null,null,null,null,78.8,null,null,null,null,null,null,null,null,null,null,null,null,null,null,null,null,null,null,null,100,null,null,null,null,null,null,null,null,null,null,null,null,null,null,null,19.100000000000001,null,null,null,null,null,null,null,null,null,null,null,0,null,0,0,0,0,0,78.8,0,0,0,0,0,0,0,null,0,0,0,0,0,78.8,0,0,0,0,0,0,0,null,null,null,null,null,null,null,null,0,0,0,0,null,null,{"$f":"DX124*2000","v":1800},{"$f":"'DDGS Calculator'!D11","v":0.9},3380,3380,null,0,0,0,0,null,null,0,"",null,null,null,null,null,null,null,null,null,null,null,null,null,null,null,null,null,null,null,null,null,null,null,null,null,null,null,null,null,{"$error":"#DIV/0!"},{"$error":"#DIV/0!"},{"$error":"#DIV/0!"},{"$error":"#DIV/0!"},0]
[127,"DL-Met",5641,5641,5354,4135,null,null,58.69,null,null,null,null,null,null,null,null,null,null,null,null,null,null,null,null,null,null,null,null,31.105699999999999,null,null,null,null,null,null,99,null,null,null,null,null,null,null,null,null,null,null,null,null,null,null,null,null,null,null,100,null,null,null,null,null,null,null,null,null,null,null,null,null,null,null,null,null,null,null,null,null,null,null,null,null,null,0,null,0,0,0,0,0,0,99,99,0,0,0,0,0,null,0,0,0,0,0,0,99,99,0,0,0,0,0,null,null,null,null,null,null,null,null,0,0,0,0,null,null,2500,{"$f":"'DDGS Calculator'!D12","v":1.25},4130,4130,null,0,0,0,0,null,null,0,"",null,null,null,null,null,null,null,null,null,null,null,null,null,null,null,null,null,null,null,null,null,null,null,null,null,null,null,null,null,{"$error":"#DIV/0!"},{"$error":"#DIV/0!"},{"$error":"#DIV/0!"},{"$error":"#DIV/0!"},0]
[128,"L-Thr",4110,4110,3776,2940,null,null,73.5,null,null,null,null,null,null,null,null,null,null,null,null,null,null,null,null,null,null,null,null,38.955000000000005,null,null,null,null,null,null,null,null,98.5,null,null,null,null,null,null,null,null,null,null,null,null,null,null,null,null,null,null,null,100,null,null,null,null,null,null,null,null,null,null,null,null,null,null,null,null,null,null,null,null,null,null,null,null,0,null,1,0,0,0,0,0,0,0,0,0,99,0,0,null,0,0,0,0,0,0,0,0,0,0,98.5,0,0,null,null,null,null,null,null,null,null,0,0,0,0,null,null,1600,{"$f":"'DDGS Calculator'!D13","v":0.8},2930,2930,null,0,0,0,0,null,null,0,"",null,null,null,null,null,null,null,null,null,null,null,null,null,null,null,null,null,null,null,null,null,null,null,null,null,null,null,null,null,{"$error":"#DIV/0!"},{"$error":"#DIV/0!"},{"$error":"#DIV/0!"},{"$error":"#DIV/0!"},0]
[129,"L-Trp",6573,6573,6166,4780,null,null,85.75,null,null,null,null,null,null,null,null,null,null,null,null,null,null,null,null,null,null,null,null,45.447500000000005,null,null,null,null,null,null,null,null,null,98,null,null,null,null,null,null,null,null,null,null,null,null,null,null,null,null,null,null,null,100,null,null,null,null,null,null,null,null,null,null,null,null,null,null,null,null,null,null,null,null,null,null,null,0,null,2,0,0,0,0,0,0,0,0,0,0,99,0,null,0,0,0,0,0,0,0,0,0,0,0,98,0,null,null,null,null,null,null,null,null,0,0,0,0,null,null,7600,{"$f":"'DDGS Calculator'!D14","v":3.8},4770,4770,null,0,0,0,0,null,null,0,"",null,null,null,null,null,null,null,null,null,null,null,null,null,null,null,null,null,null,null,null,null,null,null,null,null,null,null,null,null,{"$error":"#DIV/0!"},{"$error":"#DIV/0!"},{"$error":"#DIV/0!"},{"$error":"#DIV/0!"},0]
[130,"L-Val",5963,5963,5580,4326,null,null,72.099999999999994,null,null,null,null,null,null,null,null,null,null,null,null,null,null,null,null,null,null,null,null,38.213000000000001,null,null,null,null,null,null,null,null,null,null,96.5,null,null,null,null,null,null,null,null,null,null,null,null,null,null,null,null,null,null,null,100,null,null,null,null,null,null,null,null,null,null,null,null,null,null,null,null,null,null,null,null,null,null,0,null,3,0,0,0,0,0,0,0,0,0,0,0,99,null,0,0,0,0,0,0,0,0,0,0,0,0,96.5,null,null,null,null,null,null,null,null,0,0,0,0,null,null,3000,{"$f":"'DDGS Calculator'!D15","v":1.5},{"$f":"E128*0.77","v":4296.6000000000004},{"$f":"E128*0.77","v":4296.6000000000004},null,0,null,null,null,null,null,null,"",null,null,null,null,null,null,null,null,null,null,null,null,null,null,null,null,null,null,null,null,null,null,null,null,null,null,null,null,null,{"$error":"#DIV/0!"},{"$error":"#DIV/0!"},{"$error":"#DIV/0!"},{"$error":"#DIV/0!"},0]
[131,"L-Ile",6523,6523,6150,4767,null,null,64.400000000000006,null,null,null,null,null,null,null,null,null,null,null,null,null,null,null,null,null,null,null,null,34.132000000000005,null,null,null,99,null,null,null,null,null,null,null,null,null,null,null,null,null,null,null,null,null,null,null,100,null,null,null,null,null,null,null,null,null,null,null,null,null,null,null,null,null,null,null,null,null,null,null,null,null,null,null,null,null,0,null,4,0,0,99,0,0,0,0,0,0,0,0,0,null,0,0,0,99,0,0,0,0,0,0,0,0,0,null,null,null,null,null,null,null,null,0,0,0,0,null,null,14000,7,{"$f":"E129*0.77","v":4735.5},{"$f":"E129*0.77","v":4735.5},null,0,null,null,null,null,null,null,"",null,null,null,null,null,null,null,null,null,null,null,null,null,null,null,null,null,null,null,null,null,null,null,null,null,null,null,null,null,{"$error":"#DIV/0!"},{"$error":"#DIV/0!"},0,{"$error":"#DIV/0!"},0]
[null,"Methionine hydroxy analog",null,{"$f":"E130/0.96","v":4927.0833333333339},4730,3650,null,null,0,0,0,null,null,null,null,null,null,null,null,null,null,null,null,null,null,null,null,null,null,null,null,null,null,0,0,0,88,null,0,0,0,null,null,0,null,null,null,null,null,null,null,null,null,0,0,0,100,null,0,0,0,null,null,100,null,null,null,null,null,null,null,null,0,null,0,null,null,null,null,null,null,null,null,null,null,null,null,null,null,null,null,null,null,null,null,null,null,null,null,null,{"$f":"AF130*AZ130/100","v":0},{"$f":"AG130*BA130/100","v":0},{"$f":"AH130*BB130/100","v":0},{"$f":"AI130*BC130/100","v":0},{"$f":"AJ130*BD130/100","v":0},{"$f":"AK130*BE130/100","v":88},88,0,0,0,0,0,null,null,null,null,null,null,null,null,{"$f":"CB130*BX130/100","v":0},{"$f":"CC130*BX130/100","v":0},0,0,null,null,{"$f":"DX130*2000","v":2400},1.2,3650,3650,null,0,0,0,0,null,null,0,0,null,null,null,null,null,null,null,null,null,null,null,null,null,null,null,null,null,null,null,null,null,null,null,null,null,null,null,null,null,{"$error":"#DIV/0!"},{"$error":"#DIV/0!"},{"$error":"#DIV/0!"},{"$error":"#DIV/0!"},{"$error":"#DIV/0!"}]
[null,"Glutamine",null,{"$f":"17.59/4.184*1000","v":4204.1108986615673},{"$f":"15.35/4.184*1000","v":3668.738049713193},{"$f":"E131*0.77","v":2824.9282982791588},null,null,{"$f":"0.192*6.25*100","v":120},null,null,null,null,null,null,null,null,null,null,null,null,null,null,null,null,null,null,null,null,null,null,null,null,null,null,null,null,null,null,null,null,null,null,null,null,null,null,null,null,null,null,null,null,null,null,null,null,null,null,null,null,null,null,null,null,null,null,null,null,null,null,null,null,null,null,null,null,null,null,null,null,null,null,null,null,null,null,null,null,null,null,null,null,null,null,null,null,null,null,null,0,0,0,0,0,0,0,0,0,0,0,0,null,null,null,null,null,null,null,null,{"$f":"CB131*BX131/100","v":0},0,0,0,null,null,{"$f":"DX131*2000","v":0},0,{"$f":"E131*0.77","v":2824.9282982791588},{"$f":"E131*0.77","v":2824.9282982791588},null,0,null,null,null,null,null,null,"",null,null,null,null,null,null,null,null,null,null,null,null,null,null,null,null,null,null,null,null,null,null,null,null,null,null,null,null,null,{"$error":"#DIV/0!"},{"$error":"#DIV/0!"},{"$error":"#DIV/0!"},{"$error":"#DIV/0!"},0]
[null,"Glutamic acid",null,{"$f":"E132/0.96","v":3629.166666666667},3484,{"$f":"E132*0.77","v":2682.68},null,null,56.8,null,null,null,null,null,null,null,null,null,null,null,null,null,null,null,null,null,null,null,null,null,null,null,null,null,null,null,null,null,null,null,null,null,null,null,null,null,null,null,null,null,null,null,null,null,null,null,null,null,null,null,null,null,null,null,null,null,null,null,null,null,null,null,null,null,null,null,null,null,null,null,null,null,null,null,null,null,null,null,null,null,null,null,null,null,null,null,null,null,null,null,0,0,0,0,0,0,0,0,0,0,0,0,null,null,null,null,null,null,null,null,0,0,0,0,null,null,0,0,{"$f":"E132*0.77","v":2682.68},{"$f":"E132*0.77","v":2682.68},null,0,null,null,null,null,null,null,"",null,null,null,null,null,null,null,null,null,null,null,null,null,null,null,null,null,null,null,null,null,null,null,null,null,null,null,null,null,{"$error":"#DIV/0!"},{"$error":"#DIV/0!"},{"$error":"#DIV/0!"},{"$error":"#DIV/0!"},0]
[null,"Biolys",null,{"$f":"2007*2.2046","v":4424.6322},{"$f":"1916*2.2046","v":4224.0136000000002},{"$f":"DY133","v":3145.9642000000003},null,null,75,null,null,null,null,null,null,null,null,null,null,null,null,null,null,null,null,null,null,null,null,null,null,null,null,0.4,0.7,50.7,0.2,null,0.4,0.14000000000000001,0.7,null,null,0.1,null,null,null,null,null,null,null,null,null,100,100,100,100,100,100,100,100,null,null,100,null,null,null,null,null,null,null,null,null,null,null,0.16,null,null,null,null,null,null,null,null,null,null,null,null,null,null,null,null,null,null,null,null,null,null,null,null,0,0,0.4,0.7,50.7,0.2,0.3,0,0,0.4,0.14000000000000001,0.7,null,null,null,null,null,null,null,null,0,0,0,0,null,null,1400,0.7,{"$f":"1427*2.2046","v":3145.9642000000003},{"$f":"DY133","v":3145.9642000000003},1,0.16,null,null,null,null,null,null,10,null,null,null,null,null,null,null,null,null,null,null,null,null,null,null,null,null,null,null,null,null,null,null,null,null,null,null,null,null,1,0.57142857142857151,1.7499999999999998,0.20000000000000004,9.3333333333333324E-3]
[null,"Liquid lysine 60%",null,3740,3390,2640,null,null,{"$f":"11.5*6.25","v":71.875},null,null,null,null,null,null,null,null,null,null,null,null,null,null,null,null,null,null,null,null,null,null,null,null,null,null,60,null,null,null,null,null,null,null,null,null,null,null,null,null,null,null,null,null,null,null,100,null,null,null,null,null,null,null,null,null,null,null,null,null,null,null,null,null,null,null,null,null,null,null,null,null,null,null,null,null,null,null,null,null,null,null,null,null,null,null,null,null,null,null,null,0,0,0,0,60,0,0,0,0,0,0,0,null,null,null,null,null,null,null,null,0,0,0,0,null,null,1200,0.6,2640,2640,null,0,null,null,null,null,null,null,"",null,null,null,null,null,null,null,null,null,null,null,null,null,null,null,null,null,null,null,null,null,null,null,null,null,null,null,null,null,{"$error":"#DIV/0!"},{"$error":"#DIV/0!"},{"$error":"#DIV/0!"},{"$error":"#DIV/0!"},0]
[null,"MHA dry",null,{"$f":"E135/0.96","v":4578.125},4395,{"$f":"0.77*E135","v":3384.15},null,null,49.4,null,null,null,null,null,null,null,null,null,null,null,null,null,null,null,null,null,null,null,null,null,null,null,null,null,null,null,84,null,null,null,null,null,null,null,null,null,null,null,null,null,null,null,null,null,null,null,100,null,null,null,null,null,null,null,null,null,null,null,null,null,12,null,null,null,null,null,null,null,null,null,null,null,null,null,null,null,null,null,null,null,null,null,null,null,null,null,null,null,null,null,0,0,0,0,0,84,84,0,0,0,0,0,null,null,null,null,null,null,null,null,0,0,0,0,null,null,4400,2.2000000000000002,{"$f":"0.77*E135","v":3384.15},{"$f":"0.77*E135","v":3384.15},null,0,null,null,null,null,null,null,"",null,null,null,null,null,null,null,null,null,null,null,null,null,null,null,null,null,null,null,null,null,null,null,null,null,null,null,null,null,{"$error":"#DIV/0!"},{"$error":"#DIV/0!"},{"$error":"#DIV/0!"},{"$error":"#DIV/0!"},0]
[null,"Paylean, 9 g/lb",null,null,null,null,null,null,null,0,0,null,null,null,null,null,null,null,null,null,null,null,null,null,null,null,null,null,null,null,null,null,null,0,0,0,0,null,0,0,0,null,null,0,null,null,null,null,null,null,null,null,null,0,0,0,0,null,0,0,0,null,null,0,null,null,null,null,null,null,null,null,0,null,0,null,null,null,null,null,null,null,null,null,null,null,null,null,null,null,null,null,null,null,null,null,null,null,null,null,0,0,0,0,0,0,0,0,{"$f":"DD136+BQ136*AW136/100","v":0},0,0,0,null,null,null,null,null,null,null,null,0,0,0,0,null,null,64000,32,null,null,null,0,null,null,null,null,null,null,null,null,null,null,null,null,null,null,null,null,null,null,null,null,null,null,null,null,null,null,null,null,null,null,null,null,null,null,null,null,{"$error":"#DIV/0!"},{"$error":"#DIV/0!"},{"$error":"#DIV/0!"},{"$error":"#DIV/0!"},{"$error":"#DIV/0!"}]
[null,"Tribasic copper chloride",null,null,null,null,null,null,null,null,null,null,null,null,null,null,null,null,null,null,null,null,null,null,null,null,null,null,null,null,null,null,null,null,null,null,null,null,null,null,null,null,null,null,null,null,null,null,null,null,null,null,null,null,null,null,null,null,null,null,null,null,null,null,null,null,null,null,null,null,null,null,null,null,null,null,null,null,null,null,null,null,null,null,null,null,null,null,null,null,null,null,null,null,null,null,null,null,null,null,0,0,0,0,0,0,0,{"$f":"AL137*BF137/100","v":0},0,{"$f":"AM137*BG137/100","v":0},{"$f":"AN137*BH137/100","v":0},{"$f":"AO137*BI137/100","v":0},null,null,null,null,null,null,null,null,0,0,0,0,null,null,4000,2.2000000000000002,null,null,null,0,null,null,null,null,null,null,{"$f":"IF(AR137=\"\",\"\",AR137*BL137)","v":""},null,null,null,null,0.56999999999999995,null,null,null,null,null,null,null,null,null,null,null,null,null,null,null,null,null,null,null,null,null,null,null,null,{"$error":"#DIV/0!"},{"$error":"#DIV/0!"},{"$error":"#DIV/0!"},{"$error":"#DIV/0!"},{"$error":"#DIV/0!"}]
[null,"2018 Starter base mix",null,null,null,null,null,null,null,null,1,null,null,null,null,null,null,null,null,null,null,null,null,null,null,null,null,null,null,null,null,null,null,null,null,7.25,5.2,null,4.3,null,null,null,null,null,null,null,null,null,null,null,null,null,null,null,null,100,100,null,100,null,null,null,null,100,null,null,null,null,null,null,17,{"$f":"11*0.6","v":6.6},null,null,{"$f":"11*0.4","v":4.4000000000000004},6.6,null,null,null,82.8,88.3,64,71,null,null,null,null,null,null,null,null,null,null,null,null,null,null,null,null,null,0,0,0,0,7.25,5.2,5.2,0,0,4.3,0,0,null,null,null,null,null,null,null,null,5.4647999999999994,5.8277999999999999,10.88,12.07,null,null,{"$f":"DX138*2000","v":720},0.36,null,null,1,6.6,null,null,20000,null,null,null,"",null,{"$f":"EK143*3/65","v":3.388292307692308E-3},3.388292307692308E-3,1.0175076923076923E-3,5.0769230769230774E-4,9.1384615384615371E-6,9.1384615384615371E-6,null,null,{"$f":"ES142*5/65","v":57692.307692307695},{"$f":"ET142*5/65","v":11538.461538461539},615.38461538461536,23.076923076923077,0.23076923076923078,346.15384615384613,192.30769230769232,{"$f":"EZ91*5/65","v":0},null,null,null,null,null,null,null,null,null,null,null,null,{"$f":"DH138/CZ138","v":{"$error":"#DIV/0!"}},{"$f":"CY138/CZ138","v":{"$error":"#DIV/0!"}},{"$f":"DH138/CY138","v":{"$error":"#DIV/0!"}},{"$f":"DG138/CZ138","v":{"$error":"#DIV/0!"}},{"$f":"CZ138/I138","v":{"$error":"#DIV/0!"}}]
[null,"2018 Grow-finish base mix",null,null,null,null,null,null,null,0,1,null,null,null,null,null,null,null,null,null,null,null,null,null,null,null,null,null,null,null,null,null,null,0,0,5.24,0,null,0,0,0,null,null,0,null,null,null,null,null,null,null,null,null,0,0,100,0,null,0,0,0,null,null,0,null,null,null,null,null,null,21.5,{"$f":"18*0.6","v":10.799999999999999},null,null,{"$f":"18*0.4","v":7.2},4.8,null,null,null,82.8,88.3,64,71,null,null,null,null,null,null,null,null,null,null,null,null,null,null,null,null,null,0,0,0,0,5.24,0,{"$f":"(AK139*BE139+BL139*AR139)/100","v":0},0,0,0,0,0,null,null,null,null,null,null,null,null,3.9744000000000002,4.2383999999999995,{"$f":"BS139*CD139/100","v":13.76},{"$f":"BS139*CE139/100","v":15.265000000000001},null,null,440,0.22,null,null,1,4.8,0,0,{"$f":"EE142*3/50","v":10777.536},null,null,{"$f":"125*K139/10","v":12.5},0,null,{"$f":"EK143*3/50","v":4.4047800000000005E-3},4.4047800000000005E-3,1.3227600000000001E-3,6.6E-4,1.1879999999999998E-5,1.1879999999999998E-5,null,null,{"$f":"ES142*3/50","v":45000},{"$f":"ET142*3/50","v":9000},480,18,0.18,270,150,45,null,null,null,null,null,null,null,null,null,null,null,null,{"$error":"#DIV/0!"},{"$error":"#DIV/0!"},{"$error":"#DIV/0!"},{"$error":"#DIV/0!"},{"$error":"#DIV/0!"}]
[null,"Developer base mix",null,null,null,null,null,null,null,0,1,null,null,null,null,null,null,null,null,null,null,null,null,null,null,null,null,null,null,null,null,null,null,0,0,3.14,0,null,0,0,0,null,null,0,null,null,null,null,null,null,null,null,null,0,0,100,0,null,0,0,0,null,null,0,null,null,null,null,null,null,19.600000000000001,null,null,null,null,10,null,null,null,82.8,88.3,64,71,null,null,null,null,null,null,null,null,null,null,null,null,null,null,null,null,null,0,0,0,0,3.14,0,0,0,0,0,0,0,null,null,null,null,null,null,null,null,8.2799999999999994,8.83,12.544,13.916000000000002,null,null,400,0.2,null,null,1,10,0,0,null,null,null,{"$f":"125*K140/10","v":12.5},0,null,null,null,null,null,null,null,null,null,null,null,null,null,null,null,null,null,null,null,null,null,null,null,null,null,null,null,null,null,{"$error":"#DIV/0!"},{"$error":"#DIV/0!"},{"$error":"#DIV/0!"},{"$error":"#DIV/0!"},{"$error":"#DIV/0!"}]
[null,"2018 Sow base mix",null,null,null,null,null,null,null,null,1,null,null,null,null,null,null,null,null,null,null,null,null,null,null,null,null,null,null,null,null,null,null,null,null,null,null,null,null,null,null,null,null,null,null,null,null,null,null,null,null,null,null,null,null,null,null,null,null,null,null,null,null,null,null,null,null,null,null,null,21,{"$f":"14*0.6","v":8.4},null,null,{"$f":"14*0.4","v":5.6000000000000005},9.1999999999999993,null,null,null,82.8,88.3,64,71,null,null,null,null,null,null,null,null,null,null,null,null,null,null,null,null,null,0,0,0,0,0,0,0,0,0,0,0,0,null,null,null,null,null,null,null,null,7.6175999999999986,8.1235999999999997,13.44,14.91,null,null,440,0.22,null,null,1,9.1999999999999993,null,null,{"$f":"EE142*5/75","v":11975.04},null,null,null,"",null,{"$f":"EK143*3/75","v":2.9365200000000002E-3},2.9365200000000002E-3,8.8184000000000005E-4,4.4000000000000002E-4,7.9199999999999987E-6,7.9199999999999987E-6,{"$f":"EQ144*5/75","v":5.2863436123348007E-6},null,{"$f":"(ES145*5+ES144*5)/75","v":100000},{"$f":"ET145*5/75","v":20000},533.33333333333337,40,0.4,600,333.33333333333331,100,{"$f":"FA144*5/75","v":2.6666666666666665},{"$f":"FB144*5/75","v":26.666666666666668},{"$f":"FC144*5/75","v":12},{"$f":"FD144*5/75","v":6666.666666666667},{"$f":"FE144*5/75","v":600},null,null,null,null,null,null,null,{"$error":"#DIV/0!"},{"$error":"#DIV/0!"},{"$error":"#DIV/0!"},{"$error":"#DIV/0!"},{"$error":"#DIV/0!"}]
[null,"Vitamin premix with phytase",null,null,null,null,null,null,null,null,0,null,null,null,null,null,null,null,null,null,null,null,null,null,null,null,null,null,null,null,null,null,null,0,0,0,0,null,0,0,0,null,null,0,null,null,null,null,null,null,null,null,null,0,0,0,0,null,0,0,0,null,null,0,null,null,null,null,null,null,12.5,null,null,null,null,null,null,null,null,null,null,64,71,null,null,null,null,null,null,null,null,null,null,null,null,null,null,null,null,null,0,0,0,0,0,0,0,0,0,0,0,0,null,null,null,null,null,null,null,null,0,0,8,8.875,null,null,{"$f":"DX142*2000","v":1800},0.9,null,null,null,0,0,0,179625.60000000001,null,null,0,0,null,null,null,null,null,null,null,null,null,750000,150000,8000,300,3,4500,2500,750,20,200,90,50000,4500,null,null,null,null,null,null,null,{"$error":"#DIV/0!"},{"$error":"#DIV/0!"},{"$error":"#DIV/0!"},{"$error":"#DIV/0!"},{"$error":"#DIV/0!"}]
[null,"Trace mineral premix",null,null,null,null,null,null,null,0,0,null,null,null,null,null,null,null,null,null,null,null,null,null,null,null,null,null,null,null,null,null,null,0,0,0,0,null,0,0,0,null,null,0,null,null,null,null,null,null,null,null,null,0,0,0,0,null,0,0,0,null,null,0,null,null,null,null,null,null,17,null,null,null,null,null,null,null,null,null,null,64,71,null,null,null,null,null,null,null,null,null,null,null,null,null,null,null,null,null,0,0,0,0,0,0,0,0,0,0,0,0,null,null,null,null,null,null,null,null,0,0,10.88,12.07,null,null,{"$f":"DX143*2000","v":900},0.45,null,null,null,0,0,0,0,null,null,0,0,null,7.3413000000000006E-2,7.3413000000000006E-2,2.2046E-2,1.0999999999999999E-2,1.9799999999999999E-4,1.9799999999999999E-4,null,null,null,null,null,null,null,null,null,null,null,null,null,null,null,null,null,null,null,null,null,null,{"$error":"#DIV/0!"},{"$error":"#DIV/0!"},{"$error":"#DIV/0!"},{"$error":"#DIV/0!"},{"$error":"#DIV/0!"}]
[null,"Sow add pack",null,null,null,null,null,null,null,null,0,null,null,null,null,null,null,null,null,null,null,null,null,null,null,null,null,null,null,null,null,null,null,0,0,0,0,null,0,0,0,null,null,0,null,null,null,null,null,null,null,null,null,0,0,0,0,null,0,0,0,null,null,0,null,null,null,null,null,null,18,null,null,null,null,null,null,null,null,null,null,64,71,null,null,null,null,null,null,null,null,null,null,null,null,null,null,null,null,null,0,0,0,0,0,0,0,0,0,0,0,0,null,null,null,null,null,null,null,null,0,0,11.52,12.78,null,null,{"$f":"DX144*2000","v":2600},1.3,null,null,null,0,0,0,0,null,null,0,0,null,null,null,null,null,null,null,{"$f":"0.036/454","v":7.9295154185022015E-5},null,750000,null,4000,null,null,null,null,null,40,400,180,100000,9000,null,null,null,null,null,null,null,{"$error":"#DIV/0!"},{"$error":"#DIV/0!"},{"$error":"#DIV/0!"},{"$error":"#DIV/0!"},{"$error":"#DIV/0!"}]
[null,"Vitamin premix without phytase",null,null,null,null,null,null,null,null,0,null,null,null,null,null,null,null,null,null,null,null,null,null,null,null,null,null,null,null,null,null,null,0,0,0,0,null,0,0,0,null,null,0,null,null,null,null,null,null,null,null,null,0,0,0,0,null,0,0,0,null,null,0,null,null,null,null,null,null,24.7,null,null,null,null,null,null,null,null,null,null,64,71,null,null,null,null,null,null,null,null,null,null,null,null,null,null,null,null,null,0,0,0,0,0,0,0,0,0,0,0,0,null,null,null,null,null,null,null,null,0,0,15.808,17.536999999999999,null,null,{"$f":"DX145*2000","v":1800},0.9,null,null,null,{"$f":"BX145*EA145","v":0},0,0,null,null,null,0,0,null,null,null,null,null,null,null,null,null,{"$f":"ES142","v":750000},300000,{"$f":"EU142","v":8000},600,6,9000,5000,1500,null,null,null,null,null,null,null,null,null,null,null,null,{"$error":"#DIV/0!"},{"$error":"#DIV/0!"},{"$error":"#DIV/0!"},{"$error":"#DIV/0!"},{"$error":"#DIV/0!"}]
[null,"GF DDGS Base Mix",null,null,null,null,null,null,null,null,null,null,null,null,null,null,null,null,null,null,null,null,null,null,null,null,null,null,null,null,null,null,null,0,0,11.8,0,null,0,0,0,null,null,0,null,null,null,null,null,null,null,null,null,null,null,100,null,null,null,null,null,null,null,null,null,null,null,null,null,null,21,{"$f":"0.17*BT82","v":0},null,null,{"$f":"0.17*BW82","v":0},0.2,null,null,null,82.8,88.3,64,71,null,null,null,null,null,null,null,null,null,null,null,null,null,null,null,null,null,0,0,0,0,11.8,0,0,0,0,0,0,0,null,null,null,null,null,null,null,null,0.1656,0.17660000000000001,13.44,14.91,null,null,500,0.25,null,null,1,0.2,null,null,{"$f":"EE142*3/50","v":10777.536},null,null,null,0,null,{"$f":"EK143*3/50","v":4.4047800000000005E-3},4.4047800000000005E-3,1.3227600000000001E-3,6.6E-4,1.1879999999999998E-5,1.1879999999999998E-5,null,null,{"$f":"ES142*3/50","v":45000},{"$f":"ET142*3/50","v":9000},480,18,0.18,270,150,45,null,null,null,null,null,null,null,null,null,null,null,null,{"$error":"#DIV/0!"},{"$error":"#DIV/0!"},{"$error":"#DIV/0!"},{"$error":"#DIV/0!"},{"$error":"#DIV/0!"}]
[null,"GF synthetics Base Mix",null,null,null,null,null,null,null,null,null,null,null,null,null,null,null,null,null,null,null,null,null,null,null,null,null,null,null,null,null,null,null,0,0,9.43,0.39,null,2,0,0,null,null,0,null,null,null,null,null,null,null,null,null,null,null,100,100,null,100,null,null,null,null,null,null,null,null,null,null,null,21,{"$f":"BT146","v":0},null,null,{"$f":"BW146","v":0},4.8,null,null,null,82.8,88.3,64,71,null,null,null,null,null,null,null,null,null,null,null,null,null,null,null,null,null,0,0,0,0,9.43,0.39,0.39,0,0,2,0,0,null,null,null,null,null,null,null,null,3.9744000000000002,4.2383999999999995,13.44,14.91,null,null,600,0.3,null,null,1,4.8,null,null,{"$f":"EE142*3/50","v":10777.536},null,null,null,0,null,{"$f":"EK143*3/50","v":4.4047800000000005E-3},4.4047800000000005E-3,1.3227600000000001E-3,6.6E-4,1.1879999999999998E-5,1.1879999999999998E-5,null,null,{"$f":"ES142*3/50","v":45000},{"$f":"ET142*3/50","v":9000},480,18,0.18,270,150,45,null,null,null,null,null,null,null,null,null,null,null,null,{"$error":"#DIV/0!"},{"$error":"#DIV/0!"},{"$error":"#DIV/0!"},{"$error":"#DIV/0!"},{"$error":"#DIV/0!"}]
[null,"Choline chloride 60%",null,null,null,null,null,null,null,null,null,null,null,null,null,null,null,null,null,null,null,null,null,null,null,null,null,null,null,null,null,null,null,null,null,null,null,null,null,null,null,null,null,null,null,null,null,null,null,null,null,null,null,null,null,null,null,null,null,null,null,null,null,null,null,null,null,null,null,null,null,null,null,null,null,null,null,null,null,null,null,64,71,null,null,null,null,null,null,null,null,null,null,null,null,null,null,null,null,null,0,0,0,0,0,0,0,0,0,0,0,0,null,null,null,null,null,null,null,null,0,0,0,0,null,null,{"$f":"DX148*2000","v":1200},0.6,null,null,null,0,null,null,null,null,null,null,"",null,null,null,null,null,null,null,null,null,null,null,null,null,null,null,null,null,null,null,null,{"$f":"0.5*453.6*1000","v":226800},null,null,null,null,null,null,null,null,{"$error":"#DIV/0!"},{"$error":"#DIV/0!"},{"$error":"#DIV/0!"},{"$error":"#DIV/0!"},{"$error":"#DIV/0!"}]
[null,"Natuphos 600",null,null,null,null,null,null,null,null,null,null,null,null,null,null,null,null,null,null,null,null,null,null,null,null,null,null,null,null,null,null,null,null,null,null,null,null,null,null,null,null,null,null,null,null,null,null,null,null,null,null,null,null,null,null,null,null,null,null,null,null,null,null,null,null,null,null,null,null,null,null,null,null,null,null,null,null,null,null,null,64,71,null,null,null,null,null,null,null,null,null,null,null,null,null,null,null,null,null,0,0,0,0,0,0,0,0,0,0,0,0,null,null,null,null,null,null,null,null,0,0,0,0,null,null,0,0,null,null,null,0,null,null,{"$f":"EF149*454","v":272400},600,null,null,null,null,null,null,null,null,null,null,null,null,null,null,null,null,null,null,null,null,null,null,null,null,null,null,null,null,null,null,null,null,{"$error":"#DIV/0!"},{"$error":"#DIV/0!"},{"$error":"#DIV/0!"},{"$error":"#DIV/0!"},{"$error":"#DIV/0!"}]
[null,"Natuphos 1200",null,null,null,null,null,null,null,null,null,null,null,null,null,null,null,null,null,null,null,null,null,null,null,null,null,null,null,null,null,null,null,null,null,null,null,null,null,null,null,null,null,null,null,null,null,null,null,null,null,null,null,null,null,null,null,null,null,null,null,null,null,null,null,null,null,null,null,null,null,null,null,null,null,null,null,null,null,null,null,64,71,null,null,null,null,null,null,null,null,null,null,null,null,null,null,null,null,null,0,0,0,0,0,0,0,0,{"$f":"DD150+BQ150*AW150/100","v":0},0,0,0,null,null,null,null,null,null,null,null,0,0,0,0,null,null,0,0,null,null,null,0,null,null,544800,1200,null,null,null,null,null,null,null,null,null,null,null,null,null,null,null,null,null,null,null,null,null,null,null,null,null,null,null,null,null,null,null,null,{"$error":"#DIV/0!"},{"$error":"#DIV/0!"},{"$error":"#DIV/0!"},{"$error":"#DIV/0!"},{"$error":"#DIV/0!"}]
[null,"Optiphos 2000",null,null,null,null,null,null,null,null,null,null,null,null,null,null,null,null,null,null,null,null,null,null,null,null,null,null,null,null,null,null,null,null,null,null,null,null,null,null,null,null,null,null,null,null,null,null,null,null,null,null,null,null,null,null,null,null,null,null,null,null,null,null,null,null,null,null,null,null,null,null,null,null,null,null,null,null,null,null,null,64,71,null,null,null,null,null,null,null,null,null,null,null,null,null,null,null,null,null,0,0,0,0,0,0,0,0,0,0,0,0,null,null,null,null,null,null,null,null,0,0,0,0,null,null,0,0,null,null,null,0,null,null,908000,2000,null,null,null,null,null,null,null,null,null,null,null,null,null,null,null,null,null,null,null,null,null,null,null,null,null,null,null,null,null,null,null,null,{"$error":"#DIV/0!"},{"$error":"#DIV/0!"},{"$error":"#DIV/0!"},{"$error":"#DIV/0!"},{"$error":"#DIV/0!"}]
[null,"Phyzyme 1200",null,null,null,null,null,null,null,null,null,null,null,null,null,null,null,null,null,null,null,null,null,null,null,null,null,null,null,null,null,null,null,null,null,null,null,null,null,null,null,null,null,null,null,null,null,null,null,null,null,null,null,null,null,null,null,null,null,null,null,null,null,null,null,null,null,null,null,null,null,null,null,null,null,null,null,null,null,null,null,64,71,null,null,null,null,null,null,null,null,null,null,null,null,null,null,null,null,null,0,0,0,0,0,0,0,0,0,0,0,0,null,null,null,null,null,null,null,null,0,0,0,0,null,null,0,0,null,null,null,0,null,null,544800,1200,null,null,null,null,null,null,null,null,null,null,null,null,null,null,null,null,null,null,null,null,null,null,null,null,null,null,null,null,null,null,null,null,{"$error":"#DIV/0!"},{"$error":"#DIV/0!"},{"$error":"#DIV/0!"},{"$error":"#DIV/0!"},{"$error":"#DIV/0!"}]
[null,"Phyzyme 5000",null,null,null,null,null,null,null,null,null,null,null,null,null,null,null,null,null,null,null,null,null,null,null,null,null,null,null,null,null,null,null,null,null,null,null,null,null,null,null,null,null,null,null,null,null,null,null,null,null,null,null,null,null,null,null,null,null,null,null,null,null,null,null,null,null,null,null,null,null,null,null,null,null,null,null,null,null,null,null,64,71,null,null,null,null,null,null,null,null,null,null,null,null,null,null,null,null,null,0,0,0,0,0,0,0,0,0,0,0,0,null,null,null,null,null,null,null,null,0,0,0,0,null,null,0,0,null,null,null,0,null,null,2270000,5000,null,null,null,null,null,null,null,null,null,null,null,null,null,null,null,null,null,null,null,null,null,null,null,null,null,null,null,null,null,null,null,null,{"$error":"#DIV/0!"},{"$error":"#DIV/0!"},{"$error":"#DIV/0!"},{"$error":"#DIV/0!"},{"$error":"#DIV/0!"}]
[null,"Ronozyme Hiphos GT (10,000)",null,null,null,null,null,null,null,null,null,null,null,null,null,null,null,null,null,null,null,null,null,null,null,null,null,null,null,null,null,null,null,null,null,null,null,null,null,null,null,null,null,null,null,null,null,null,null,null,null,null,null,null,null,null,null,null,null,null,null,null,null,null,null,null,null,null,null,null,null,null,null,null,null,null,null,null,null,null,null,64,71,null,null,null,null,null,null,null,null,null,null,null,null,null,null,null,null,null,0,0,0,0,0,0,0,0,0,0,0,0,null,null,null,null,null,null,null,null,0,0,0,0,null,0.37,0,0,null,null,null,0,null,null,4540000,10000,null,null,null,null,null,null,null,null,null,null,null,null,null,null,null,null,null,null,null,null,null,null,null,null,null,null,null,null,null,null,null,null,{"$error":"#DIV/0!"},{"$error":"#DIV/0!"},{"$error":"#DIV/0!"},{"$error":"#DIV/0!"},{"$error":"#DIV/0!"}]
[null,"Ronozyme Hiphos M (50,000)",null,null,null,null,null,null,null,null,null,null,null,null,null,null,null,null,null,null,null,null,null,null,null,null,null,null,null,null,null,null,null,null,null,null,null,null,null,null,null,null,null,null,null,null,null,null,null,null,null,null,null,null,null,null,null,null,null,null,null,null,null,null,null,null,null,null,null,null,null,null,null,null,null,null,null,null,null,null,null,64,71,null,null,null,null,null,null,null,null,null,null,null,null,null,null,null,null,null,0,0,0,0,0,0,0,0,0,0,0,0,null,null,null,null,null,null,null,null,0,0,0,0,null,7.3999999999999996E-2,0,0,null,null,null,0,null,null,22700000,50000,null,null,null,null,null,null,null,null,null,null,null,null,null,null,null,null,null,null,null,null,null,null,null,null,null,null,null,null,null,null,null,null,{"$error":"#DIV/0!"},{"$error":"#DIV/0!"},{"$error":"#DIV/0!"},{"$error":"#DIV/0!"},{"$error":"#DIV/0!"}]
[null,"Ronozyme HiPhos 2700",null,null,null,null,null,null,null,null,null,null,null,null,null,null,null,null,null,null,null,null,null,null,null,null,null,null,null,null,null,null,null,null,null,null,null,null,null,null,null,null,null,null,null,null,null,null,null,null,null,null,null,null,null,null,null,null,null,null,null,null,null,null,null,null,null,null,null,null,null,null,null,null,null,null,null,null,null,null,null,null,null,null,null,null,null,null,null,null,null,null,null,null,null,null,null,null,null,null,0,0,0,0,0,0,0,0,0,0,0,0,null,null,null,null,null,null,null,null,0,0,0,0,null,null,0,0,null,null,null,0,null,null,1225800,2700,null,null,null,null,null,null,null,null,null,null,null,null,null,null,null,null,null,null,null,null,null,null,null,null,null,null,null,null,null,null,null,null,{"$error":"#DIV/0!"},{"$error":"#DIV/0!"},{"$error":"#DIV/0!"},{"$error":"#DIV/0!"},{"$error":"#DIV/0!"}]
[null,"Zinc oxide",null,0,0,0,null,null,0,0,0,null,null,null,null,null,null,null,null,null,null,null,null,null,null,null,null,null,null,null,null,null,null,0,0,0,0,null,0,0,0,null,null,0,null,null,null,null,null,null,null,null,null,0,0,0,0,null,0,0,0,null,null,0,null,null,null,null,null,null,0,0,0,null,0,0,null,null,null,null,null,null,null,null,null,null,null,null,null,null,null,null,null,null,null,null,null,null,null,null,0,0,0,0,0,0,0,0,0,0,0,0,null,null,null,null,null,null,null,null,0,0,0,0,null,null,2200,1.1000000000000001,0,0,0,0,0,0,0,null,null,0,{"$f":"IF(AR157=\"\",\"\",AR157*BL157)","v":0},null,0.72,null,null,null,null,null,null,null,null,null,null,null,null,null,null,null,null,null,null,null,null,null,null,null,null,null,null,null,{"$error":"#DIV/0!"},{"$error":"#DIV/0!"},{"$error":"#DIV/0!"},{"$error":"#DIV/0!"},{"$error":"#DIV/0!"}]
[null,"Copper sulfate",null,0,0,0,null,null,0,0,0,null,null,null,null,null,null,null,null,null,null,null,null,null,null,null,null,null,null,null,null,null,null,0,0,0,0,null,0,0,0,null,null,0,null,null,null,null,null,null,null,null,null,0,0,0,0,null,0,0,0,null,null,0,null,null,null,null,null,null,0,0,0,null,0,0,null,null,null,null,null,null,null,null,null,null,null,null,null,null,null,null,null,null,null,null,null,null,null,null,0,0,0,0,0,0,0,0,0,0,0,0,null,null,null,null,null,null,null,null,0,0,0,0,null,null,2200,1.1000000000000001,0,0,0,0,0,0,0,null,null,0,{"$f":"IF(AR158=\"\",\"\",AR158*BL158)","v":0},null,null,null,null,0.252,null,null,null,null,null,null,null,null,null,null,null,null,null,null,null,null,null,null,null,null,null,null,null,null,{"$error":"#DIV/0!"},{"$error":"#DIV/0!"},{"$error":"#DIV/0!"},{"$error":"#DIV/0!"},{"$error":"#DIV/0!"}]
[null,"Potassium chloride",null,0,0,0,null,null,0,0,0,null,null,null,null,null,null,null,null,null,null,null,null,null,null,null,null,null,null,null,null,null,null,0,0,0,0,null,0,0,0,null,null,0,null,null,null,null,null,null,null,null,null,0,0,0,0,null,0,0,0,null,null,0,null,null,null,null,null,null,0,46.93,51.37,null,0,0,null,null,null,null,null,null,null,null,null,null,null,null,null,null,null,null,null,null,null,null,null,null,null,null,0,0,0,0,0,0,0,0,0,0,0,0,null,null,null,null,null,null,null,null,0,0,0,0,null,null,350,0.17499999999999999,0,0,1,0,0,0,0,null,null,0,{"$f":"IF(AR159=\"\",\"\",AR159*BL159)","v":0},null,null,null,null,null,null,null,null,null,null,null,null,null,null,null,null,null,null,null,null,null,null,null,null,null,null,null,null,null,{"$error":"#DIV/0!"},{"$error":"#DIV/0!"},{"$error":"#DIV/0!"},{"$error":"#DIV/0!"},{"$error":"#DIV/0!"}]
[null,"Calcium chloride",null,0,0,0,null,null,0,0,0,null,null,null,null,null,null,null,null,null,null,null,null,null,null,null,null,null,null,null,null,null,null,0,0,0,0,null,0,0,0,null,null,0,null,null,null,null,null,null,null,null,null,0,0,0,0,null,0,0,0,null,null,0,null,null,null,null,null,null,27.26,48.22,0,null,0,0,null,null,null,null,null,null,null,null,null,null,null,null,null,null,null,null,null,null,null,null,null,null,null,null,0,0,0,0,0,0,0,0,0,0,0,0,null,null,null,null,null,null,null,null,0,0,0,0,null,null,400,0.2,0,0,1,0,0,0,0,null,null,0,{"$f":"IF(AR160=\"\",\"\",AR160*BL160)","v":0},null,null,null,null,null,null,null,null,null,null,null,null,null,null,null,null,null,null,null,null,null,null,null,null,null,null,null,null,null,{"$error":"#DIV/0!"},{"$error":"#DIV/0!"},{"$error":"#DIV/0!"},{"$error":"#DIV/0!"},{"$error":"#DIV/0!"}]
[null,"Acidifier",null,null,null,null,null,null,null,null,null,null,null,null,null,null,null,null,null,null,null,null,null,null,null,null,null,null,null,null,null,null,null,null,null,null,null,null,null,null,null,null,null,null,null,null,null,null,null,null,null,null,null,null,null,null,null,null,null,null,null,null,null,null,null,null,null,null,null,null,null,null,null,null,null,null,null,null,null,null,null,null,null,null,null,null,null,null,null,null,null,null,null,null,null,null,null,null,null,null,0,0,0,0,0,0,0,0,0,0,0,0,null,null,null,null,null,null,null,null,0,0,0,0,null,null,2000,1,null,null,null,0,null,null,null,null,null,null,null,null,null,null,null,null,null,null,null,null,null,null,null,null,null,null,null,null,null,null,null,null,null,null,null,null,null,null,null,null,{"$error":"#DIV/0!"},{"$error":"#DIV/0!"},{"$error":"#DIV/0!"},{"$error":"#DIV/0!"},{"$error":"#DIV/0!"}]
[null,"Vitamin E, 20,000 IU",null,null,null,null,null,null,null,null,null,null,null,null,null,null,null,null,null,null,null,null,null,null,null,null,null,null,null,null,null,null,null,null,null,null,null,null,null,null,null,null,null,null,null,null,null,null,null,null,null,null,null,null,null,null,null,null,null,null,null,null,null,null,null,null,null,null,null,null,null,null,null,null,null,null,null,null,null,null,null,null,null,null,null,null,null,null,null,null,null,null,null,null,null,null,null,null,null,null,0,0,0,0,0,0,0,0,0,0,0,0,null,null,null,null,null,null,null,null,0,0,0,0,null,null,800,0.4,null,null,null,0,null,null,null,null,null,null,null,null,null,null,null,null,null,null,null,null,null,null,null,null,null,null,null,null,null,null,null,null,null,null,null,null,null,null,null,null,{"$error":"#DIV/0!"},{"$error":"#DIV/0!"},{"$error":"#DIV/0!"},{"$error":"#DIV/0!"},{"$error":"#DIV/0!"}]
[null,"Other ingredient",null,null,null,null,null,null,null,null,null,null,null,null,null,null,null,null,null,null,null,null,null,null,null,null,null,null,null,null,null,null,null,null,null,null,null,null,null,null,null,null,null,null,null,null,null,null,null,null,null,null,null,null,null,null,null,null,null,null,null,null,null,null,null,null,null,null,null,null,null,null,null,null,null,null,null,null,null,null,null,null,null,null,null,null,null,null,null,null,null,null,null,null,null,null,null,null,null,null,0,0,0,0,0,0,0,0,0,0,0,0,null,null,null,null,null,null,null,null,0,0,0,0,null,null,0,null,null,null,null,0,null,null,null,null,null,null,null,null,null,null,null,null,null,null,null,null,null,null,null,null,null,null,null,null,null,null,null,null,null,null,null,null,null,null,null,null,{"$error":"#DIV/0!"},{"$error":"#DIV/0!"},{"$error":"#DIV/0!"},{"$error":"#DIV/0!"},{"$error":"#DIV/0!"}]
[null,"DPS 50",null,4005,3664.0452,2070,null,null,50,null,9.5,null,null,null,null,null,null,null,null,null,null,null,null,null,null,null,null,null,null,null,null,null,null,1.8,3.4,3.1,0.9,null,2,0.35,2.4,null,null,0.85,null,null,null,null,null,null,null,null,null,84,87,84,89,null,81,97,83,null,null,73,null,null,null,null,null,null,0.05,1,1,null,8,1.4,null,null,null,67,88,null,null,null,null,null,null,null,null,null,null,null,null,null,null,null,null,null,null,null,0,0,1.5120000000000002,2.9580000000000002,2.6040000000000005,0.80100000000000005,1.4215,0,0,1.62,0.33949999999999997,1.992,null,null,null,null,null,null,null,null,0.93799999999999994,1.232,0,0,null,null,1100,0.5,null,null,0.75,1.0499999999999998,null,null,null,null,null," ",null,null,null,null,null,null,null," ",null,null,null,null,null,null,null,null,null,null,null,null,null,null,null,null,null,null,null,null,null,null,0.67342799188640967,0.51115618661257611,1.3174603174603172,0.1147734956051386,5.9160000000000004E-2]
[null,"PEP2+",null,4005,3618,2607,null,null,60.5,1.8,7.5,null,null,null,null,null,null,null,null,null,null,null,null,null,null,null,null,null,null,null,null,3.74,1.3660000000000001,2.66,4.7389999999999999,4.25,1.1499999999999999,2.726,2.75,0.8,3.1,null,null,0.61,null,null,null,null,1.627,null,null,84,84,83.3,72,84.1,83.9,84,78.099999999999994,90,82.8,null,null,75,null,null,null,null,84,null,0.12,0.47,1.21,null,2.4,0.85,null,null,null,67,88,null,null,null,null,null,null,null,null,null,null,null,null,null,null,null,null,null,null,null,3.1416000000000004,1.1474400000000002,2.2157800000000001,3.4120799999999996,3.5742499999999997,0.96484999999999999,1.4223500000000002,2.2898399999999999,3.65652,2.1477499999999998,0.72,2.5668000000000002,null,null,null,null,null,null,null,null,0.56950000000000001,0.748,0,0,null,null,{"$f":"DX165*2000","v":1200},0.6,null,null,0.75,0.63749999999999996,null,null,null,null,null,null,null,null,null,null,null,null,null,null,null,null,null,null,null,null,null,null,null,null,null,null,null,null,null,null,0.104,0.95,null,null,null,null,0.75226841105718523,0.64939274577383899,1.1584182545198531,0.21101498206372654,5.6398016528925614E-2]
[null,"PEP NS",null,4005,3528,2550,null,null,48.5,null,7.9,null,null,null,null,null,null,null,null,null,null,null,null,null,null,null,null,null,null,null,null,2.98,1.1100000000000001,2.06,3.73,3.35,1.02,2.09,2.25,0.63,2.65,null,null,0.5,null,null,null,null,1.1399999999999999,null,null,84,84,83,72,82.4,84,84,75.2,83,80.8,null,null,66,null,null,null,null,84,null,0.03,null,null,null,null,0.75,null,null,null,67,88,null,null,null,null,null,null,null,null,null,null,null,null,null,null,null,null,null,null,null,2.5032000000000001,0.93240000000000012,1.7098000000000002,2.6856,2.7604000000000002,0.85680000000000012,1.1868000000000001,1.7556,2.7132000000000001,1.6920000000000002,0.52290000000000003,2.1411999999999995,null,null,null,null,null,null,null,null,0.50249999999999995,{"$f":"CC166*BX166/100","v":0.66},0,0,null,null,1000,0.5,null,null,0.75,0.5625,null,null,null,null,null,null,null,null,null,null,null,null,null,null,null,null,null,null,null,null,null,null,null,null,null,null,null,null,null,null,8.6999999999999994E-2,0.95,null,null,null,null,0.79728924635090836,0.63665475126601145,1.2523102117206686,0.19470509383378018,5.537319587628866E-2]
[null,"Vitamin premix (2x) with phytase",null,null,null,null,null,null,null,null,null,null,null,null,null,null,null,null,null,null,null,null,null,null,null,null,null,null,null,null,null,null,null,null,null,null,null,null,null,null,null,null,null,null,null,null,null,null,null,null,null,null,null,null,null,null,null,null,null,null,null,null,null,null,null,null,null,null,null,null,18,null,null,null,null,null,null,null,null,null,null,null,null,null,null,null,null,null,null,null,null,null,null,null,null,null,null,null,null,null,0,0,0,0,0,0,0,0,0,0,0,0,null,null,null,null,null,null,null,null,0,{"$f":"CC167*BX167/100","v":0},0,0,null,null,0,null,null,null,null,0,null,null,{"$f":"EE142*2","v":359251.20000000001},null,null,null,null,null,null,null,null,null,null,null,null,null,{"$f":"ES142*2","v":1500000},{"$f":"ET142*2","v":300000},16000,600,6,9000,5000,1500,null,null,null,null,null,null,null,null,null,null,null,null,{"$error":"#DIV/0!"},{"$error":"#DIV/0!"},{"$error":"#DIV/0!"},{"$error":"#DIV/0!"},{"$error":"#DIV/0!"}]
[null,"Vitamin premix (2x) without phytase",null,null,null,null,null,null,null,null,null,null,null,null,null,null,null,null,null,null,null,null,null,null,null,null,null,null,null,null,null,null,null,null,null,null,null,null,null,null,null,null,null,null,null,null,null,null,null,null,null,null,null,null,null,null,null,null,null,null,null,null,null,null,null,null,null,null,null,null,18,null,null,null,null,null,null,null,null,null,null,null,null,null,null,null,null,null,null,null,null,null,null,null,null,null,null,null,null,null,0,0,0,0,0,0,0,0,0,0,0,0,null,null,null,null,null,null,null,null,0,0,0,0,null,null,0,null,null,null,null,0,null,null,null,null,null,null,null,null,null,null,null,null,null,null,null,null,{"$f":"ES142*2","v":1500000},{"$f":"ET142*2","v":300000},16000,600,6,9000,5000,1500,null,null,null,null,null,null,null,null,null,null,null,null,{"$error":"#DIV/0!"},{"$error":"#DIV/0!"},{"$error":"#DIV/0!"},{"$error":"#DIV/0!"},{"$error":"#DIV/0!"}]
[null,"Corn DDGS, 10.5% Oil",4849,{"$f":"62.347*K169+3058.13","v":3712.7735000000002},{"$f":"(D169/(H169/100)-I169*6.8/(H169/100))*H169/100","v":3527.1335000000004},{"$f":"K169*115.01+1501.01","v":2708.6149999999998},null,89.31,27.3,7.06,10.5,null,4.1100000000000003,null,{"$f":"D169/D$24","v":1.0758543900318749},1.0389200294550811,1.0137032185628743,null,null,6.73,32.5,11.75,2.61,31.35,null,null,null,40.710000000000008,70,43.692400000000006,null,1.1599999999999999,0.71,1.02,3.13,0.77,0.55000000000000004,1.34,0.99,0.21,1.35,1.93,1.82,0.51,4.3499999999999996,1.04,2.09,1.18,1.04,null,74,81,78,76,84,61,82,81,71,71,75,79,69,73,81,64,74,77,81,null,0.12,null,0.9,0.28999999999999998,0.22,0.73,0.66,null,0.26,60,65,50,60,28.497000000000007,null,17.491199999999999,0.85839999999999994,0.52539999999999998,0.73439999999999994,2.5665999999999998,0.42349999999999999,0.44,0.79190000000000005,1.0452000000000001,1.8564000000000003,0.63359999999999994,0.13229999999999997,0.95850000000000013,null,20.2242,0.93959999999999999,0.55379999999999996,0.7752,2.6292,0.46970000000000001,0.45100000000000001,0.82330000000000014,1.0854000000000001,1.9278000000000002,0.70290000000000008,0.14910000000000001,1.0125,{"$f":"AP169*BJ169/100","v":1.5246999999999999},1.2558,0.37230000000000002,3.5234999999999999,0.66559999999999997,1.5466,0.90859999999999996,0.84240000000000004,0.43799999999999994,0.47449999999999998,0.06,7.1999999999999995E-2,null,null,150,7.4999999999999997E-2,{"$f":"DY161","v":0},0,0.77,0.56210000000000004,{"$f":"0.59*K169","v":6.1949999999999994},null,0,null,0.18,{"$f":"125*K169/10","v":131.25},{"$f":"IF(AR169=\"\",\"\",AR169*BL169)","v":37.230000000000004},null,null,null,null,null,null,null,null,null,null,null,null,null,null,null,null,null,null,null,null,null,null,null,4.1500000000000002E-2,0.88500000000000001,56.21,1.22,{"$f":"SUM(FI169:FJ169)/100*K169","v":6.0301500000000008},null,0.38509812870835236,0.29484253765403923,1.3061145510835912,5.6709265175718851E-2,9.6307692307692302E-2]
[null,"Corn DDGS, 7.5% Oil",4849,{"$f":"62.347*K170+3058.13","v":3525.7325000000001},{"$f":"(D170/(H170/100)-I170*6.8/(H170/100))*H170/100","v":3334.3125},{"$f":"K170*115.01+1501.01","v":2363.585},null,89.31,28.15,7.28,7.5,null,4.2371134020618557,null,1.0216553172993335,0.98212444771723117,0.88457522455089821,null,null,6.9381443298969074,33.505154639175252,12.11340206185567,2.6907216494845358,32.319587628865982,null,null,null,40.710000000000008,70,43.692400000000006,null,{"$f":"$I170/$I$169*AF$169","v":1.196117216117216},0.73210622710622697,1.0517582417582416,{"$f":"$I170/$I$169*AI$169","v":3.2274542124542118},0.79397435897435886,0.56712454212454211,1.3817216117216116,1.0208241758241756,0.21653846153846151,1.392032967032967,1.9900915750915749,1.8766666666666665,0.52587912087912081,4.4854395604395592,1.0723809523809522,2.1550732600732596,1.2167399267399266,1.0723809523809522,null,74,81,78,76,84,61,82,81,71,71,75,79,69,73,81,64,74,77,81,null,0.12,null,0.9,0.28999999999999998,0.22,0.73,0.66,null,0.26,60,65,50,60,28.497000000000007,null,17.491199999999999,0.85839999999999994,0.52539999999999998,0.73439999999999994,2.5665999999999998,0.42349999999999999,0.44,0.79190000000000005,1.0452000000000001,1.8564000000000003,0.63359999999999994,0.13229999999999997,0.95850000000000013,null,20.2242,0.96885494505494496,0.57104285714285696,0.79933626373626365,2.711061538461538,0.48432435897435888,0.46504212454212451,0.84893388278388271,1.1191945054945054,1.9878230769230765,0.72478516483516475,0.15374230769230768,1.0440247252747252,1.5721723443223441,1.2948999999999997,0.38389175824175825,3.6332060439560427,0.68632380952380945,1.5947542124542122,0.93688974358974353,0.86862857142857119,0.43799999999999994,0.47449999999999998,0.06,7.1999999999999995E-2,null,null,150,7.4999999999999997E-2,0,0,0.77,0.56210000000000004,{"$f":"0.59*K170","v":4.4249999999999998},null,0,null,0.18,{"$f":"125*K170/10","v":93.75},{"$f":"IF(AR170=\"\",\"\",AR170*BL170)","v":38.389175824175823},null,null,null,null,null,null,null,null,null,null,null,null,null,null,null,null,null,null,null,null,null,null,null,4.1500000000000002E-2,0.88500000000000001,56.21,1.22,{"$f":"SUM(FI170:FJ170)/100*K170","v":4.3072499999999998},null,0.38509812870835242,0.29484253765403928,1.3061145510835914,5.6709265175718858E-2,9.6307692307692289E-2]
[null,"Corn DDGS, 4.5% Oil",4849,{"$f":"62.347*K171+3058.13","v":3338.6914999999999},{"$f":"(D171/(H171/100)-I171*6.8/(H171/100))*H171/100","v":3141.2195000000002},{"$f":"K171*115.01+1501.01","v":2018.5550000000001},null,89.31,29.04,7.51,4.5,null,4.3681581464555208,null,0.96745624456679225,0.92524874815905744,0.75544723053892215,null,null,7.1527261132957802,34.541396535232224,12.488043362737804,2.7739398448294184,33.319162503985552,null,null,null,40.710000000000008,70,43.692400000000006,null,1.2339340659340658,0.75525274725274716,1.0850109890109891,3.3294945054945053,0.81907692307692315,0.58505494505494515,1.4254065934065936,1.0530989010989011,0.22338461538461538,1.4360439560439562,2.0530109890109891,1.9360000000000002,0.54250549450549457,4.6272527472527472,1.1062857142857143,2.223208791208791,1.255208791208791,1.1062857142857143,null,74,81,78,76,84,61,82,81,71,71,75,79,69,73,81,64,74,77,81,null,0.12,null,0.9,0.28999999999999998,0.22,0.73,0.66,null,0.26,60,65,50,60,28.497000000000007,null,17.491199999999999,0.85839999999999994,0.52539999999999998,0.73439999999999994,2.5665999999999998,0.42349999999999999,0.44,0.79190000000000005,1.0452000000000001,1.8564000000000003,0.63359999999999994,0.13229999999999997,0.95850000000000013,null,20.2242,0.99948659340659329,0.58909714285714276,0.82460835164835178,2.7967753846153847,0.49963692307692315,0.47974505494505498,0.87577406593406604,1.1545793406593408,2.0506707692307691,0.74770021978021983,0.1586030769230769,1.0770329670329672,1.6218786813186812,1.3358400000000001,0.396029010989011,3.7480747252747251,0.70802285714285718,1.6451745054945053,0.96651076923076917,0.89609142857142854,0.43799999999999994,0.47449999999999998,0.06,7.1999999999999995E-2,null,null,150,7.4999999999999997E-2,0,0,0.77,0.56210000000000004,{"$f":"0.59*K171","v":2.6549999999999998},null,0,null,0.18,{"$f":"125*K171/10","v":56.25},{"$f":"IF(AR171=\"\",\"\",AR171*BL171)","v":39.6029010989011},null,null,null,null,null,null,null,null,null,null,null,null,null,null,null,null,null,null,null,null,null,null,null,4.1500000000000002E-2,0.88500000000000001,56.21,1.22,{"$f":"SUM(FI171:FJ171)/100*K171","v":2.5843500000000001},null,0.38509812870835242,0.29484253765403928,1.3061145510835914,5.6709265175718844E-2,9.6307692307692316E-2]
[null,"MEPRO Hubbard",null,null,3590,2212,null,95.76,70.59,7,1.43,null,null,null,null,null,null,null,null,null,19.5,9.75,0.88,null,null,null,null,null,null,null,null,4.47,1.74,3.57,5.71,4.12,1.02,3.7,2.78,1,3.62,1.1299999999999999,null,null,null,null,null,null,null,null,70.59,95.3,89.66,89.08,88.09,86.65,90.2,89.73,84.89,92,86.74,null,null,77.88,null,null,null,null,null,null,0.19,null,0.2,0.05,null,0.38,0.82,null,null,null,89.47,null,null,null,null,null,null,null,null,null,null,null,null,null,null,null,null,null,null,null,{"$f":"AF172*AZ172/100","v":4.2599099999999996},1.560084,3.1801560000000002,5.0299389999999997,3.5699800000000006,0.92004000000000008,{"$f":"(AK172*BE172+BL172*AR172)/100","v":0.92004000000000008},{"$f":"AL172*BF172/100","v":3.3200100000000003},{"$f":"DD172+BQ172*AW172/100","v":3.3200100000000003},{"$f":"AM172*BG172/100","v":2.3599419999999998},{"$f":"AN172*BH172/100","v":0.92},{"$f":"AO172*BI172/100","v":3.1399880000000002},{"$f":"AP172*BJ172/100","v":0},{"$f":"AQ172*BK172/100","v":0},{"$f":"AR172*BL172/100","v":0},{"$f":"AS172*BM172/100","v":0},{"$f":"AT172*BN172/100","v":0},{"$f":"AU172*BO172/100","v":0},{"$f":"AV172*BP172/100","v":0},{"$f":"AW172*BQ172/100","v":0},0,0.33998600000000001,0,0,null,null,{"$f":"DX172*2000","v":1312},0.65600000000000003,null,null,0.89,0.3382,null,null,null,null,null,null,0.77,null,null,null,null,null,null,null,null,null,null,null,null,null,null,null,null,null,null,null,null,null,null,null,null,95.76,null,null,null,null,0.62425965801970962,0.63224544074987798,0.98736917308459082,0.18290480262285488,7.1255687774472304E-2]
[null,"HP 300 Apr 2022 loadings",null,null,3617,2273,null,93,56,4,3,null,7,null,null,null,null,null,1,0.6,9.1999999999999993,5.8,null,null,11,5.7,null,null,null,null,null,3.97,1.47,2.75,4.32,3.45,0.77,2.9,2.1800000000000002,0.77,2.82,2.41,6.34,0.82,9.92,2.37,2.87,2.4300000000000002,2.0299999999999998,null,88.6,95.1,88.4,88.3,88.8,87.1,90.6,89.8,85.1,88.6,88.7,87.5,87.9,84.1,90.6,90.7,91.2,91,89.6,null,0.35,0.1,2.5,0.35,0.02,0.75,0.45,null,null,null,59.8,null,null,null,null,56,null,null,null,null,null,null,null,null,null,null,null,null,null,{"$f":"I173*AY173/100","v":49.615999999999993},3.7754699999999999,{"$f":"AG173*BA173/100","v":1.29948},2.4282499999999998,3.83616,3.00495,0.69762000000000002,1.3872399999999998,2.6041999999999996,4.4230799999999997,1.8551800000000001,0.68221999999999994,2.5013399999999999,2.1087500000000001,5.5728600000000004,0.6896199999999999,8.98752,2.1495899999999999,2.6174400000000002,2.2113,1.8188799999999998,0,0.44849999999999995,0,0,null,null,1000,0.5,null,null,0.4,0.30000000000000004,null,null,null,null,{"$f":"BX173*0.662","v":0.49650000000000005},null,null,null,null,null,null,null,null,null,null,null,null,null,null,null,null,null,null,null,null,null,null,null,null,null,null,93,null,null,null,null,0.65204266766766761,0.6329897605939272,1.0300998661587564,0.17783929763096429,6.8502857142857143E-2]
[null,"Glycine",null,null,2706,{"$f":"E174*0.77","v":2083.62},null,null,118.75,null,null,null,null,null,null,null,null,null,null,null,null,null,null,null,null,null,null,null,null,null,null,null,null,null,null,null,null,null,null,null,null,null,null,null,null,99,null,null,null,null,null,null,null,null,null,null,null,null,null,null,null,null,null,null,null,100,null,null,null,null,null,null,null,null,null,null,null,null,null,null,null,null,null,null,null,null,null,null,null,null,null,null,null,null,null,null,null,null,null,null,0,0,0,0,0,0,0,0,0,0,0,0,0,0,0,0,99,0,0,0,0,0,0,0,null,null,0,null,null,null,null,0,null,null,null,null,null,null,null,null,null,null,null,null,null,null,null,null,null,null,null,null,null,null,null,null,null,null,null,null,null,null,null,null,null,null,null,null,{"$error":"#DIV/0!"},{"$error":"#DIV/0!"},{"$error":"#DIV/0!"},{"$error":"#DIV/0!"},0]
[null,"Phase 2 supplement 2018",null,3200,3056,2332,null,null,22.1,0.2,2.7,null,null,41.1,null,null,null,null,null,null,null,null,null,null,null,null,null,null,null,null,null,null,null,null,null,null,null,null,null,null,null,null,null,null,null,null,null,null,null,null,null,null,null,null,null,null,null,null,null,null,null,null,null,null,null,null,null,null,null,null,3.63,3.34,1.27,null,1.87,1.74,null,null,null,86,86,null,null,null,null,{"$f":"I175","v":22.1},null,0.35223021582733816,0.72517985611510793,1.3053237410071943,2.88,1.2120863309352519,1.3985611510791367,0,0,1.5228776978417267,0.29007194244604317,1.1084892086330935,null,null,0,0.34,0.7,1.26,2.78,1.17,1.35,0,0,1.47,0.28000000000000003,0,0,0,0,0,0,0,0,0,1.62,1.62,0,0,null,null,1200,0.6,null,null,0.96399999999999997,1.67736,null,{"$f":"N175","v":41.1},5180,null,null,null,null,null,1.091496857142857E-2,6.2925428571428577E-4,1.8896571428571427E-4,9.4398993077407159E-5,1.699181875393329E-6,1.699181875393329E-6,null,null,10714.285714285712,4285.7142857142853,114.28571428571428,8.5714285714285712,8.5714285714285715E-2,128.57142857142856,71.428571428571416,21.428571428571427,null,null,null,null,null,null,null,null,null,null,null,null,0,0.55555555555555547,0,0.22222222222222224,5.7013574660633483E-2]
[null,"Fermex 200",null,{"$f":"D88*0.99","v":1989.9},{"$f":"E88*0.99","v":1782.99},{"$f":"F88*0.99","v":927.63},null,null,46,4,1,null,null,null,null,null,null,null,null,null,null,null,null,null,null,null,null,null,null,null,null,3.19,1.24,2.42,3.8,3,0.66,2.5,1.79,0.74,2.52,null,null,0.66,null,null,null,null,null,null,null,{"$f":"1.02*AZ79","v":95.88},{"$f":"1.02*BA79","v":91.8},{"$f":"1.02*BB79","v":90.78},{"$f":"1.02*BC79","v":89.76},{"$f":"0.987*BD79","v":87.843000000000004},{"$f":"1.02*BE79","v":91.8},{"$f":"1.02*BF79","v":89.76},{"$f":"1.02*BG79","v":86.7},{"$f":"1.02*BH79","v":92.820000000000007},{"$f":"1.02*BI79","v":88.74},null,null,{"$f":"1.02*BL79","v":85.68},null,null,null,null,{"$f":"1*BQ79","v":88},null,0.41,null,null,null,null,0.69,null,null,null,{"$f":"CB79","v":39},{"$f":"CC79","v":48},null,null,null,null,{"$f":"I176","v":46},null,null,null,null,null,null,null,null,null,null,null,null,null,null,3.0585719999999998,1.13832,{"$f":"AH176*BB176/100","v":2.1968760000000001},{"$f":"AI176*BC176/100","v":3.4108800000000001},{"$f":"AJ176*BD176/100","v":2.6352899999999999},{"$f":"AK176*BE176/100","v":0.60587999999999997},{"$f":"(AK176*BE176+BL176*AR176)/100","v":1.1713680000000002},2.2440000000000002,2.2440000000000002,{"$f":"AM176*BG176/100","v":1.55193},{"$f":"AN176*BH176/100","v":0.68686800000000003},2.2362479999999998,0,0,0.5654880000000001,0,0,0,0,0,{"$f":"CB176*BX176/100","v":0.26909999999999995},{"$f":"CC176*BX176/100","v":0.33119999999999999},null,{"$f":"BS176*CE176/100","v":0},null,null,{"$f":"DX176*2000","v":511},0.2555,null,null,{"$f":"EA79","v":0.23},{"$f":"BZ176*EA176","v":0},null,null,null,null,null,null,null,null,null,null,null,null,null,null,null,null,null,null,null,null,null,null,null,null,null,null,null,null,null,null,null,null,null,null,null,null,0.65562200956937788,0.64407894736842108,1.01792181261027,0.2013755980861244,7.4149565217391314E-2]
[null,"Soybean meal with 88% NE of corn",null,{"$f":"D79","v":3619},{"$f":"E79","v":3294},{"$f":"F24*0.88","v":2351.36},0.9,89.98,47.73,3.89,1.52,2.86,6.27,0,4.3,3.78,7.33,0,3.81,1.89,8.2100000000000009,5.28,1.1000000000000001,16.71,0,0,0,28.270000000000007,88,41.477900000000005,0,3.45,1.28,2.14,3.62,2.96,0.66,2.4,1.86,0.66,2.23,2.06,5.41,0.7,8.5399999999999991,1.99,2.5299999999999998,2.36,1.59,0,87,94,90,89,88,89,90,88,85,91,87,85,87,84,89,84,113,89,{"$f":"BQ79","v":88},0,0.33,4.9000000000000002E-2,2.2400000000000002,0.27,0.08,0.71,0.4,0,0.38,39,48,78,85,24.877600000000008,0,39.138599999999997,3.1740000000000004,1.1135999999999999,1.8618000000000001,3.1132,2.5751999999999997,0.58080000000000009,1.1337999999999999,2.0640000000000001,3.3996000000000004,1.4880000000000002,0.58080000000000009,1.8509,0,41.525099999999995,3.2430000000000003,1.1520000000000001,1.9046000000000001,3.1856,2.6343999999999999,0.59400000000000008,1.1819999999999999,2.1120000000000001,3.5112000000000005,1.581,0.60060000000000002,1.9400999999999999,1.7509999999999999,4.7067000000000005,0.58799999999999997,7.6005999999999991,1.6716,2.8588999999999998,2.1004,1.3992000000000002,0.27689999999999998,0.34079999999999999,0.25740000000000002,0.28050000000000003,0,46.5,300,0.15,2000,2120,{"$f":"EA79","v":0.23},{"$f":"BZ177*EA177","v":0},{"$f":"EC79","v":0.6},{"$f":"ED79","v":0},{"$f":"EE79","v":0},{"$f":"#REF!","v":{"$error":"#REF!"}},0.44,{"$f":"EH79","v":19},{"$f":"EI79","v":58.8},{"$f":"EJ79","v":0},null,null,null,null,null,null,null,null,null,null,null,null,null,null,null,null,null,null,null,null,null,null,{"$f":"FG79","v":0},0,55.05,7.34,0.94832800000000006,0,0.60902184831742845,0.59787795077850325,1.0186390843221673,0.18853591160220995,6.6742090928137446E-2]
[null,"Blue Dye NFP",null,null,null,null,null,null,null,null,null,null,null,null,null,null,null,null,null,null,null,null,null,null,null,null,null,null,null,null,null,null,null,null,null,null,null,null,null,null,null,null,null,null,null,null,null,null,null,null,null,null,null,null,null,null,null,null,null,null,null,null,null,null,null,null,null,null,null,null,null,null,null,null,null,null,null,null,null,null,null,null,null,null,null,null,null,null,null,null,null,null,null,null,null,null,null,null,null,null,0,0,0,0,0,0,0,0,0,0,0,0,0,0,0,0,0,0,0,0,0.4,0.4,0,0,null,null,1312,0.65600000000000003,null,null,0.4,{"$f":"BZ178*EA178","v":0},null,null,null,null,null,null,0.77,null,null,null,null,null,null,null,null,null,null,null,null,null,null,null,null,null,null,null,null,null,null,null,null,null,null,null,null,null,{"$error":"#DIV/0!"},{"$error":"#DIV/0!"},{"$error":"#DIV/0!"},{"$error":"#DIV/0!"},{"$error":"#DIV/0!"}]
[null,"HP 300 2022 NFP",null,null,{"$f":"E173","v":3617},2273,null,93,56,4,3,null,7,null,null,null,null,null,1,0.6,9.1999999999999993,5.8,null,null,11,5.7,null,null,null,null,null,3.97,1.47,2.75,4.32,3.45,0.77,2.9,2.1800000000000002,0.77,2.82,2.41,6.34,0.82,9.92,2.37,2.87,2.4300000000000002,2.0299999999999998,null,88.6,95.1,88.4,88.3,88.8,87.1,90.6,89.8,85.1,88.6,88.7,87.5,87.9,84.1,90.6,90.7,91.2,91,89.6,null,0.35,0.1,2.5,0.35,0.02,0.75,0.45,null,null,null,59.8,null,null,null,null,56,null,null,null,null,null,null,null,null,null,null,null,null,null,{"$f":"I179*AY179/100","v":49.615999999999993},3.7754699999999999,1.29948,2.4282499999999998,3.83616,3.00495,0.69762000000000002,1.3872399999999998,2.6041999999999996,4.4230799999999997,1.8551800000000001,0.68221999999999994,2.5013399999999999,2.1087500000000001,5.5728600000000004,0.6896199999999999,8.98752,2.1495899999999999,2.6174400000000002,2.2113,1.8188799999999998,0,0.44849999999999995,0,0,null,null,1000,0.5,null,null,0.4,0.30000000000000004,null,null,null,null,{"$f":"BX179*0.662","v":0.49650000000000005},null,null,null,null,null,null,null,null,null,null,null,null,null,null,null,null,null,null,null,null,null,null,null,null,null,null,93,null,null,null,null,0.65204266766766761,0.6329897605939272,1.0300998661587564,0.17783929763096429,6.8502857142857143E-2]
[null,"AX3 Digest NFP",null,null,3896,2310,null,92,68,4,null,null,3.6,null,null,null,null,null,null,null,null,null,null,null,null,null,null,null,null,null,null,4.9000000000000004,1.7,3.2,5.4,4.0999999999999996,1,3.7,2.7,0.9,3.4,null,null,1,null,null,null,null,2.7,null,84,97.2,92.2,92.6,92.68,88.41,92.94,93.814999999999998,86.084999999999994,88.08,91.694999999999993,89.435000000000002,86.864999999999995,80.254999999999995,88.855000000000004,84.055000000000007,93.1,90.525000000000006,94.435000000000002,null,0.2,0.04,0.3,0.1,0.5,0.5,null,null,null,null,null,null,null,null,null,null,null,null,null,null,null,null,null,null,null,null,null,null,null,null,4.7628000000000004,1.5674000000000001,2.9632000000000001,5.0047200000000007,{"$f":"AJ180*BD180/100","v":3.6248099999999992},0.9294,1.7319499999999999,3.471155,6.0209000000000001,2.3242949999999998,0.79272000000000009,3.1176299999999997,0,0,0.80254999999999999,0,0,0,0,2.5497450000000002,0,0,0,0,null,null,0,null,null,null,null,0,null,null,null,null,null,null,null,null,null,null,null,null,null,null,null,null,null,null,null,null,null,null,null,null,null,null,null,null,null,null,null,null,null,null,null,null,0.62293794657842982,0.59208107546476119,1.052115955723542,0.1583944756150194,7.3598823529411772E-2]
[null,"Phase 2 supplement 2018 NFP",null,3168,3029,2317,null,null,21.3,0.3,2.4,null,null,41.1,null,null,null,null,null,null,null,null,null,null,null,null,null,null,null,null,null,null,null,null,null,null,null,null,null,null,null,null,null,null,null,null,null,null,null,null,null,null,null,null,null,null,null,null,null,null,null,null,null,null,null,null,null,null,null,null,3.05,2.57,1.26,null,1.75,1.72,null,null,null,86,86,null,null,null,null,21.3,null,null,null,null,2.88,null,null,null,null,null,null,null,null,null,0,0,0,0,0,0,0,0,0,0,0,0,0,0,0,0,0,0,0,0,1.4791999999999998,1.4791999999999998,0,0,null,null,1200,0.6,null,null,0.96,1.6512,null,null,5180,null,null,null,null,null,1.123E-2,6.29E-4,1.8900000000000001E-4,9.43989930774072E-5,1.6991818753933301E-6,1.6991818753933301E-6,null,null,10714.29,4285.7139999999999,114.28570000000001,8.5714290000000002,8.5713999999999999E-2,128.57140000000001,71.428569999999993,21.428570000000001,null,null,null,null,null,null,null,null,null,null,null,null,{"$error":"#DIV/0!"},{"$error":"#DIV/0!"},{"$error":"#DIV/0!"},{"$error":"#DIV/0!"},0]
[null,"Femex 200 NFP",null,1990,1783,928,null,null,46,4,1,null,null,null,null,null,null,null,null,null,null,null,null,null,null,null,null,null,null,null,null,3.19,1.24,2.42,3.8,3,0.66,2.5,1.79,0.74,2.52,null,null,0.66,null,null,null,null,null,null,null,95.88,91.8,90.78,89.76,87.83,91.8,89.76,86.7,92.82,88.74,null,null,85.68,null,null,null,null,88,null,0.41,null,null,null,null,0.69,null,null,null,39,48,null,null,null,null,46,null,null,null,null,null,null,null,null,null,null,null,null,null,null,3.0585719999999998,1.13832,2.1968760000000001,3.4108800000000001,2.6349,0.60587999999999997,1.1713680000000002,2.2440000000000002,2.2440000000000002,1.55193,0.68686799999999992,2.2362479999999998,0,0,0.5654880000000001,0,0,0,0,0,0.26909999999999995,0.33119999999999999,0,0,null,null,511,0.25600000000000001,null,null,0.23,0.15870000000000001,null,null,null,null,null,null,null,null,null,null,null,null,null,null,null,null,null,null,null,null,null,null,null,null,null,null,null,null,null,null,null,null,null,null,null,null,0.65562200956937788,0.64407894736842108,1.01792181261027,0.20137559808612437,7.4149565217391314E-2]
[null,"NFP Soybean meal w/88% NE of corn ",null,3675,3315,2351.36,null,87,45.78,3.85,1.52,2.86,6.24,null,4.3,3.78,7.33,null,3.81,1.89,8.2100000000000009,5.28,1.1000000000000001,16.71,null,null,null,28.27,88,41.477899999999998,null,3.09,1.139,1.946,3.2949999999999999,2.7109999999999999,0.56000000000000005,2.2429999999999999,1.7430000000000001,0.61599999999999999,2.0459999999999998,1.9219999999999999,4.7690000000000001,0.57899999999999996,7.8929999999999998,1.8340000000000001,1.611,2.2389999999999999,1.177,null,87,94,90,89,88,89,90,88,85,91,87,85,87,84,89,84,113,89,88,null,0.33,4.9000000000000002E-2,2.2400000000000002,0.27,0.08,0.71,null,null,0.38,39,48,78,85,24.877600000000001,null,39.138599999999997,3.1739999999999999,1.1135999999999999,1.8617999999999999,3.1132,2.5752000000000002,0.58079999999999998,1.1337999999999999,2.0640000000000001,3.3996,1.488,0.58079999999999998,1.8509,null,41.53,2.9045999999999998,1.0251000000000001,1.7319399999999998,2.8996,2.4127899999999998,0.504,0.99036000000000002,1.9738399999999998,3.0095999999999998,1.4815499999999999,0.56055999999999995,1.7800199999999997,1.6337000000000002,4.1490299999999998,0.48635999999999996,7.0247700000000002,1.5405600000000002,1.82043,1.9927099999999998,1.03576,0.27689999999999998,0.34079999999999999,0.25740000000000002,0.28050000000000003,null,46.5,300,0.15,2000,2120,0.23,0.1633,0.6,null,null,null,0.42599999999999999,19,48.636000000000003,null,null,null,null,null,null,null,null,null,null,null,null,null,null,null,null,null,null,null,null,null,null,null,null,null,55.05,7.34,0.94833000000000001,null,0.61388467374810307,0.59730307628638424,1.0277607769322263,0.19332321699544763,6.3337702053298375E-2]
[null,"AV-E Digest NFP",null,1884,1814,1241,null,93.89,51.36,1.33,16.07,null,13.68,null,null,null,null,null,null,null,null,null,null,null,null,null,null,null,null,null,null,3.73,1.29,2.04,3.61,3.02,0.89,2.44,2.04,0.44,2.52,3.21,4.09,0.99,6.89,null,3.73,2.5299999999999998,1.74,null,null,86,75,80,79.7,77.099999999999994,84.2,75.599999999999994,76.099999999999994,91.2,74.5,80.2,66.599999999999994,48.9,68.8,71.099999999999994,79.599999999999994,75.900000000000006,78.3,null,3.14,null,0.98,0.16,1.42,1.78,null,null,null,79.099999999999994,80.599999999999994,null,null,null,null,null,null,null,null,null,null,null,null,null,null,null,null,null,null,null,3.2077999999999998,0.96750000000000003,1.6319999999999999,2.87717,2.3284199999999999,0.74938000000000005,1.23349,1.8446399999999996,3.2070599999999994,1.55244,0.40128000000000003,1.8774000000000002,2.5744199999999999,2.7239399999999994,0.48411000000000004,4.7403199999999996,0,2.9690799999999995,1.9202699999999999,1.36242,1.40798,1.43468,0,0,null,null,0,null,null,null,null,0,null,null,null,null,null,null,null,null,null,null,null,null,null,null,null,null,null,null,null,null,null,null,null,null,null,null,null,null,null,null,null,null,20.6,1.6,3.5675400000000002,null,0.65251618778174392,0.5672240430701001,1.1503676470588238,0.13947038235488346,5.6019665109034271E-2]
[null,"QFP Cereal Blend NFP",null,null,1727,1281,null,96.5,5.7,null,2.6,null,2.02,null,null,null,null,null,null,null,3.22,null,null,null,null,null,null,null,null,null,null,null,0.17,0.17,0.35,0.21,7.0000000000000007E-2,null,0.18,0.06,0.25,null,null,0.1,null,null,null,null,null,null,null,null,87,86,87,78,87,null,81,84,85,null,null,85,null,null,null,null,null,null,0.17,null,0.24,null,0.43,0.19,7.0000000000000007E-2,null,null,null,null,null,null,null,null,null,null,null,null,null,null,null,null,null,null,null,null,null,null,null,0,0.1479,0.1462,0.30449999999999999,0.1638,6.090000000000001E-2,0.1459,0,0,0.14580000000000001,5.04E-2,0.21249999999999999,0,0,8.5000000000000006E-2,0,0,0,0,0,{"$f":"CB185*BX185/100","v":0},{"$f":"CC185*BX185/100","v":0},{"$f":"BS185*CD185/100","v":0},{"$f":"BS185*CE185/100","v":0},null,null,0,null,null,null,null,0.06,null,null,null,null,null,null,null,null,null,null,null,null,null,null,null,null,null,null,null,null,null,null,null,null,null,null,null,null,null,null,null,null,null,null,null,null,0.69786535303776687,0.48013136288998359,1.4534883720930232,0.16551724137931034,5.3421052631578946E-2]
[null,"FXP Ani-Tek NFP",null,null,1938,null,null,null,48.5,null,11.5,null,6,null,null,null,null,null,null,null,null,null,null,null,null,null,null,null,null,null,null,null,1.19,2.27,4.6900000000000004,3.98,0.83,null,2.93,0.84,2.64,null,null,0.9,null,null,null,null,null,null,null,null,91.6,94.7,94.9,92.7,95.2,null,85,95.2,95.1,null,null,85.6,null,null,null,null,null,null,0.74,null,0.85,0.06,0.28000000000000003,0.74,null,null,null,null,0.59,null,null,null,null,null,null,null,null,null,null,null,null,null,null,null,null,null,null,null,0,1.0900399999999999,2.1496900000000001,4.4508100000000006,3.6894600000000004,0.79016000000000008,1.5605599999999997,0,0,2.4904999999999999,0.79968000000000006,2.51064,0,0,0.77039999999999997,0,0,0,0,0,0,4.3660000000000001E-3,0,0,null,null,0,null,null,null,null,0,null,null,null,null,null,null,null,null,null,null,null,null,null,null,null,null,null,null,null,null,null,null,null,null,null,null,null,null,null,null,null,null,null,null,null,null,0.5640860877008903,0.48298848973557618,1.1679079309109686,0.17967066668763662,9.1769278350515474E-2]
[null,"NFP VTM Grower (2021)",null,null,null,null,null,null,null,null,null,null,null,null,null,null,null,null,null,null,null,null,null,null,null,null,null,null,null,null,null,null,null,null,null,null,null,null,null,null,null,null,null,null,null,null,null,null,null,null,null,null,null,null,null,null,null,null,null,null,null,null,null,null,null,null,null,null,null,null,null,null,null,null,null,null,null,null,null,null,null,null,null,null,null,null,null,null,null,null,null,null,null,null,null,null,null,null,null,null,0,0,0,0,0,0,0,0,0,0,0,0,0,0,0,0,0,0,0,0,0,0,0,0,null,null,0,0,null,null,null,0,null,null,195546.72,null,null,null,{"$f":"IF(AR187=\"\",\"\",AR187*BL187)","v":""},null,null,0.04,null,0.01,2.5999999999999998E-4,1.8000000000000001E-4,null,null,1920227,45500,13608,600,6.75,6653,6500,200,null,null,null,null,null,null,null,null,null,null,null,null,{"$error":"#DIV/0!"},{"$error":"#DIV/0!"},{"$error":"#DIV/0!"},{"$error":"#DIV/0!"},{"$error":"#DIV/0!"}]
[null,"NFP VTM Sow (2021)",null,null,null,null,null,null,null,null,null,null,null,null,null,null,null,null,null,null,null,null,null,null,null,null,null,null,null,null,null,null,null,null,null,null,null,null,null,null,null,null,null,null,null,null,null,null,null,null,null,null,null,null,null,null,null,null,null,null,null,null,null,null,null,null,null,null,null,null,null,null,null,null,null,null,null,null,null,null,null,null,null,null,null,null,null,null,null,null,null,null,null,null,null,null,null,null,null,null,{"$f":"AF188*AZ188/100","v":0},0,0,0,0,0,{"$f":"(AK188*BE188+BL188*AR188)/100","v":0},{"$f":"AL188*BF188/100","v":0},{"$f":"DD188+BQ188*AW188/100","v":0},{"$f":"AM188*BG188/100","v":0},0,0,0,0,0,0,0,0,0,0,0,0,0,0,null,null,null,null,null,null,null,0,null,null,117327.41,null,null,null,null,null,null,0.04,null,6.2500000000000003E-3,1.9799999999999999E-4,1.2E-4,null,null,1900000,281230,15000,800,6,7250,5500,1500,60,null,650,null,null,null,null,null,null,null,null,null,{"$error":"#DIV/0!"},{"$error":"#DIV/0!"},{"$error":"#DIV/0!"},{"$error":"#DIV/0!"},{"$error":"#DIV/0!"}]
[null,"VevoVitall NFP",null,null,null,null,null,null,null,null,null,null,null,null,null,null,null,null,null,null,null,null,null,null,null,null,null,null,null,null,null,null,null,null,null,null,null,null,null,null,null,null,null,null,null,null,null,null,null,null,null,null,null,null,null,null,null,null,null,null,null,null,null,null,null,null,null,null,null,null,null,null,null,null,null,null,null,null,null,null,null,null,null,null,null,null,null,null,null,null,null,null,null,null,null,null,null,null,null,null,0,0,0,0,0,0,{"$f":"(AK189*BE189+BL189*AR189)/100","v":0},{"$f":"AL189*BF189/100","v":0},{"$f":"DD189+BQ189*AW189/100","v":0},0,0,0,0,0,0,0,0,0,0,0,0,0,0,0,null,null,null,null,null,null,null,0,null,null,null,null,null,null,null,null,null,null,null,null,null,null,null,null,null,null,null,null,null,null,null,null,null,null,null,null,null,null,null,null,null,null,null,null,{"$error":"#DIV/0!"},{"$error":"#DIV/0!"},{"$error":"#DIV/0!"},{"$error":"#DIV/0!"},{"$error":"#DIV/0!"}]
[null,"MEPRO NFP",null,null,3589.74,2211.6149999999998,null,95.76,70.59,7,1.43,null,null,null,null,null,null,null,null,null,19.5,9.75,0.88,null,null,null,null,null,null,null,null,4.47,1.74,3.57,5.71,4.12,1.02,3.7,2.78,1,3.62,null,null,1.1299999999999999,null,null,null,null,null,null,null,95.3,89.66,89.08,88.09,86.65,90.2,89.73,84.89,92,86.74,null,null,77.88,null,null,null,null,null,null,0.17,0.05,0.1,0.04,0.01,0.4,0.82,null,null,null,89.47,null,null,null,null,null,null,null,null,null,null,null,null,null,null,null,null,null,null,null,4.2599099999999996,1.560084,3.1801560000000002,5.0299389999999997,3.5699800000000006,0.92004000000000008,{"$f":"(AK190*BE190+BL190*AR190)/100","v":1.800084},{"$f":"AL190*BF190/100","v":3.3200100000000003},{"$f":"DD190+BQ190*AW190/100","v":3.3200100000000003},2.3599419999999998,0.92,3.1399880000000002,0,0,0.88004399999999994,0,0,0,0,0,0,0.35788000000000003,0,0,null,null,null,null,null,null,0.89470000000000005,0.35788000000000003,null,null,null,null,null,null,null,null,null,null,null,null,null,null,null,null,null,null,null,null,null,null,null,null,null,null,null,null,null,null,null,null,null,null,null,null,0.62425965801970962,0.63224544074987798,0.98736917308459082,0.18290480262285488,7.1255687774472304E-2]
[null,"AlphaGal 280 P NFP",null,null,null,null,null,null,null,null,null,null,null,null,null,null,null,null,null,null,null,null,null,null,null,null,null,null,null,null,null,null,null,null,null,null,null,null,null,null,null,null,null,null,null,null,null,null,null,null,null,null,null,null,null,null,null,null,null,null,null,null,null,null,null,null,null,null,null,null,null,null,null,null,null,null,null,null,null,null,null,null,null,null,null,null,null,null,null,null,null,null,null,null,null,null,null,null,null,null,{"$f":"AF191*AZ191/100","v":0},{"$f":"AG191*BA191/100","v":0},{"$f":"AH191*BB191/100","v":0},{"$f":"AI191*BC191/100","v":0},{"$f":"AJ191*BD191/100","v":0},{"$f":"AK191*BE191/100","v":0},{"$f":"(AK191*BE191+BL191*AR191)/100","v":0},{"$f":"AL191*BF191/100","v":0},{"$f":"DD191+BQ191*AW191/100","v":0},{"$f":"AM191*BG191/100","v":0},{"$f":"AN191*BH191/100","v":0},0,0,0,0,0,0,0,0,0,0,0,0,0,null,null,null,null,null,null,null,0,null,null,null,null,null,null,null,null,null,null,null,null,null,null,null,null,null,null,null,null,null,null,null,null,null,null,null,null,null,null,null,null,null,null,null,null,{"$error":"#DIV/0!"},{"$error":"#DIV/0!"},{"$error":"#DIV/0!"},{"$error":"#DIV/0!"},{"$error":"#DIV/0!"}]
[null,"NFP Custom Manganese ",null,null,null,null,null,null,null,null,null,null,null,null,null,null,null,null,null,null,null,null,null,null,null,null,null,null,null,null,null,null,null,null,null,null,null,null,null,null,null,null,null,null,null,null,null,null,null,null,null,null,null,null,null,null,null,null,null,null,null,null,null,null,null,null,null,null,null,null,null,null,null,null,null,null,null,null,null,null,null,null,null,null,null,null,null,null,null,null,null,null,null,null,null,null,null,null,null,null,0,0,0,0,0,0,0,0,0,0,0,0,0,0,0,0,0,0,0,0,0,0,0,0,null,null,null,null,null,null,null,0,null,null,null,null,null,null,null,null,null,null,0.2,null,null,null,null,null,null,null,null,null,null,null,null,null,null,null,null,null,null,null,null,null,null,null,null,null,{"$error":"#DIV/0!"},{"$error":"#DIV/0!"},{"$error":"#DIV/0!"},{"$error":"#DIV/0!"},{"$error":"#DIV/0!"}]
[null,"Fat Build R2 All Veg 4000 NFP",null,null,8820,7762,null,null,null,null,null,null,null,null,null,null,null,null,null,null,null,null,null,null,null,null,null,null,null,null,null,null,null,null,null,null,null,null,null,null,null,null,null,null,null,null,null,null,null,null,null,null,null,null,null,null,null,null,null,null,null,null,null,null,null,null,null,null,null,null,null,null,null,null,null,null,null,null,null,null,null,null,null,null,null,null,null,null,null,null,null,null,null,null,null,null,null,null,null,null,0,0,0,0,0,0,0,0,0,0,0,0,0,0,0,0,0,0,0,0,0,0,0,0,null,null,64000,32,6791.4,6791.4,null,0,null,null,null,null,null,null,null,null,null,null,null,null,null,null,null,null,null,null,null,null,null,null,null,null,null,null,null,null,null,null,null,null,null,null,null,null,{"$error":"#DIV/0!"},{"$error":"#DIV/0!"},{"$error":"#DIV/0!"},{"$error":"#DIV/0!"},{"$error":"#DIV/0!"}]
[null,"LipoVital GL 90 NFP",null,null,null,null,null,null,null,null,82,null,null,null,null,null,null,null,null,null,null,null,null,null,null,null,null,null,null,null,null,null,null,null,null,null,null,null,null,null,null,null,null,null,null,null,null,null,null,null,null,null,null,null,null,null,null,null,null,null,null,null,null,null,null,null,null,null,null,null,null,null,null,null,null,null,null,null,null,null,null,null,null,null,null,null,null,null,null,null,null,null,null,null,null,null,null,null,null,null,0,0,0,0,0,0,0,0,0,0,0,0,0,0,0,0,0,0,0,0,0,0,0,0,null,null,null,null,null,null,null,0,null,null,null,null,null,null,null,null,null,null,null,null,null,null,null,null,null,null,null,null,null,null,null,null,null,null,null,null,null,null,null,null,null,null,null,null,{"$error":"#DIV/0!"},{"$error":"#DIV/0!"},{"$error":"#DIV/0!"},{"$error":"#DIV/0!"},{"$error":"#DIV/0!"}]
[null,"NFP Custom Zinc",null,null,null,null,null,null,null,null,null,null,null,null,null,null,null,null,null,null,null,null,null,null,null,null,null,null,null,null,null,null,null,null,null,null,null,null,null,null,null,null,null,null,null,null,null,null,null,null,null,null,null,null,null,null,null,null,null,null,null,null,null,null,null,null,null,null,null,null,null,null,null,null,null,null,null,null,null,null,null,null,null,null,null,null,null,null,null,null,null,null,null,null,null,null,null,null,null,null,0,0,0,0,0,0,0,0,0,0,0,0,0,0,0,0,0,0,0,0,0,0,0,0,null,null,null,null,null,null,null,0,null,null,null,null,null,null,null,null,0.21,null,null,null,null,null,null,null,null,null,null,null,null,null,null,null,null,null,null,null,null,null,null,null,null,null,null,null,{"$error":"#DIV/0!"},{"$error":"#DIV/0!"},{"$error":"#DIV/0!"},{"$error":"#DIV/0!"},{"$error":"#DIV/0!"}]
[null,"THRPRO-L Threonine 80% NFP",null,null,3395,2638,null,95,70,null,null,null,null,null,null,null,null,null,null,null,null,null,null,null,null,null,null,null,null,null,null,0.42,0.1,0.72,0.53,1.49,0.25,0.37,80,0.06,0.45,0.6,0.62,0.06,0.94,0.5,0.33,0.23,0.16,null,null,45.2,42.3,75,44.8,84,43,52,100,62.8,47.6,43.1,45.5,33,53,26,45,50,60,null,0.01,null,0.48,0.04,0.01,0.88,2.54,null,null,null,96.9,null,null,null,null,null,null,null,null,null,null,null,null,null,null,null,null,null,null,null,0.18984000000000001,4.2299999999999997E-2,0.54,0.23743999999999998,1.2516,0.1075,0.1273,0.19239999999999999,0.28839999999999999,80,3.7679999999999998E-2,0.21420000000000003,0.2586,0.28210000000000002,1.9799999999999998E-2,0.49819999999999998,0.13,0.14850000000000002,0.115,9.6000000000000002E-2,0,0.85272000000000003,0,0,null,null,null,null,null,null,null,0,null,null,null,null,null,null,null,null,null,null,null,null,null,null,null,null,null,null,null,null,null,null,null,null,null,null,null,null,null,null,null,null,null,null,null,null,0.90212264150943411,2.2742587601078168,0.39666666666666667,0.15869272237196766,3.3919999999999996E-3]
[null,"Copper Chloride Intellibond TBCC NFP",null,null,null,null,null,null,null,null,null,null,null,null,null,null,null,null,null,null,null,null,null,null,null,null,null,null,null,null,null,null,null,null,null,null,null,null,null,null,null,null,null,null,null,null,null,null,null,null,null,null,null,null,null,null,null,null,null,null,null,null,null,null,null,null,null,null,null,null,null,15,null,null,null,null,null,null,null,null,null,null,null,null,null,null,null,null,null,null,null,null,null,null,null,null,null,null,null,null,{"$f":"AF197*AZ197/100","v":0},0,0,0,0,0,{"$f":"(AK197*BE197+BL197*AR197)/100","v":0},{"$f":"AL197*BF197/100","v":0},{"$f":"DD197+BQ197*AW197/100","v":0},{"$f":"AM197*BG197/100","v":0},{"$f":"AN197*BH197/100","v":0},0,0,0,0,0,0,0,0,0,0,0,0,0,null,null,900,0.45,null,null,null,0,null,null,null,null,null,null,null,null,null,null,null,0.54,null,null,null,null,null,null,null,null,null,null,null,null,null,null,null,null,null,null,null,null,null,null,null,null,{"$error":"#DIV/0!"},{"$error":"#DIV/0!"},{"$error":"#DIV/0!"},{"$error":"#DIV/0!"},{"$error":"#DIV/0!"}]
[null,"DDGS 7.5% Oil Green Plains NFP",4849,3465,3459,2252,null,91.1,28.98,7.36,6.53,null,4.84,null,1.004,1.0189999999999999,0.84299999999999997,null,null,3.24,30.4,14.7,2.69,32.32,null,null,null,40.71,70,43.7,null,1.29,0.73,1.1000000000000001,3.25,0.87,0.56000000000000005,1.42,1.0900000000000001,0.25,1.38,2.06,1.94,0.52,5.0199999999999996,1.1000000000000001,2.2200000000000002,1.43,0.97,null,74,81,78,76,84,61,82,81,71,71,75,79,69,73,81,64,74,77,81,null,0.12,null,0.9,0.28999999999999998,0.22,0.73,0.66,null,0.26,60,65,50,60,28.5,null,17.491,0.85799999999999998,0.52500000000000002,0.73399999999999999,2.5670000000000002,0.42399999999999999,0.44,0.79200000000000004,1.0449999999999999,1.8560000000000001,0.63400000000000001,0.13200000000000001,0.95899999999999996,null,null,1.0449000000000002,0.56940000000000002,0.83600000000000008,2.73,0.53069999999999995,0.4592,{"$f":"(AK198*BE198+BL198*AR198)/100","v":0.83879999999999999},{"$f":"AL198*BF198/100","v":1.1501999999999999},{"$f":"DD198+BQ198*AW198/100","v":1.9358999999999997},{"$f":"AM198*BG198/100","v":0.77390000000000003},{"$f":"AN198*BH198/100","v":0.17749999999999999},1.0349999999999999,1.6274000000000002,1.3385999999999998,0.37959999999999999,4.0661999999999994,0.70400000000000007,1.6428,1.1011,0.78569999999999995,0.43799999999999994,0.47449999999999998,0.06,7.1999999999999995E-2,null,null,150,7.4999999999999997E-2,null,null,0.77,0.56210000000000004,3.8527,null,null,null,0.18,81.625,37.81,null,null,null,null,null,null,null,null,null,null,null,null,null,null,null,null,null,null,null,null,null,null,null,4.2,88.5,56.21,1.22,3.75,null,0.37912087912087911,0.30622710622710625,1.2380382775119616,6.5018315018315009E-2,9.420289855072464E-2]
[null,"NHF GF VTM 2#",null,null,null,null,null,null,null,null,null,null,null,null,null,null,null,null,null,null,null,null,null,null,null,null,null,null,null,null,null,null,null,null,null,null,null,null,null,null,null,null,null,null,null,null,null,null,null,null,null,null,null,null,null,null,null,null,null,null,null,null,null,null,null,null,null,null,null,null,null,null,null,null,null,null,null,null,null,null,null,null,null,null,null,null,null,null,null,null,null,null,null,null,null,null,null,null,null,null,{"$f":"AF199*AZ199/100","v":0},{"$f":"AG199*BA199/100","v":0},{"$f":"AH199*BB199/100","v":0},{"$f":"AI199*BC199/100","v":0},{"$f":"AJ199*BD199/100","v":0},{"$f":"AK199*BE199/100","v":0},{"$f":"(AK199*BE199+BL199*AR199)/100","v":0},{"$f":"AL199*BF199/100","v":0},{"$f":"DD199+BQ199*AW199/100","v":0},{"$f":"AM199*BG199/100","v":0},{"$f":"AN199*BH199/100","v":0},{"$f":"AO199*BI199/100","v":0},{"$f":"AP199*BJ199/100","v":0},{"$f":"AQ199*BK199/100","v":0},{"$f":"AR199*BL199/100","v":0},{"$f":"AS199*BM199/100","v":0},{"$f":"AT199*BN199/100","v":0},{"$f":"AU199*BO199/100","v":0},{"$f":"AV199*BP199/100","v":0},{"$f":"AW199*BQ199/100","v":0},0,0,0,0,null,null,null,null,null,null,null,0,null,null,null,null,null,null,null,null,0.11,0.11,3.3099999999999997E-2,1.6500000000000001E-2,2.9999999999999997E-4,2.9999999999999997E-4,null,null,2400000,600000,12000,1200,11,22500,7500,2250,null,null,null,null,null,null,null,null,null,null,null,null,{"$error":"#DIV/0!"},{"$error":"#DIV/0!"},{"$error":"#DIV/0!"},{"$error":"#DIV/0!"},{"$error":"#DIV/0!"}]
[null,"Hubbard Vit Premix ",null,null,null,null,null,null,null,null,null,null,null,null,null,null,null,null,null,null,null,null,null,null,null,null,null,null,null,null,null,null,null,null,null,null,null,null,null,null,null,null,null,null,null,null,null,null,null,null,null,null,null,null,null,null,null,null,null,null,null,null,null,null,null,null,null,null,null,null,8.7899999999999991,null,null,null,null,null,null,null,null,null,null,null,null,null,null,null,null,null,null,null,null,null,null,null,null,null,null,null,null,null,0,0,0,0,0,0,0,0,0,0,0,0,0,0,0,0,0,0,0,0,0,0,0,0,null,null,null,null,null,null,null,0,null,null,null,null,null,null,null,null,null,null,null,null,null,null,null,null,11001.96,2000.36,59996.27,6000.18,50,45001.86,41000.49,8001.42,200.04900000000001,1200.0999999999999,2500,null,null,null,null,null,null,null,null,null,{"$error":"#DIV/0!"},{"$error":"#DIV/0!"},{"$error":"#DIV/0!"},{"$error":"#DIV/0!"},{"$error":"#DIV/0!"}]
[null,"Hubbard TMP",null,null,null,null,null,null,null,null,null,null,null,null,null,null,null,null,null,null,null,null,null,null,null,null,null,null,null,null,null,null,null,null,null,null,null,null,null,null,null,null,null,null,null,null,null,null,null,null,null,null,null,null,null,null,null,null,null,null,null,null,null,null,null,null,null,null,null,null,7.5,null,null,null,null,null,null,null,null,null,null,null,null,null,null,null,null,null,null,null,null,null,null,null,null,null,null,null,null,null,0,0,0,0,0,0,0,0,0,0,0,0,0,0,0,0,0,0,0,0,0,0,0,0,null,null,null,null,null,null,null,0,null,null,null,null,null,null,null,null,0.16009999999999999,0.13400000000000001,0.04,1.3299999999999999E-2,6.9999999999999999E-4,null,null,null,null,null,null,null,null,null,null,null,null,null,null,null,null,null,null,null,null,null,null,null,{"$error":"#DIV/0!"},{"$error":"#DIV/0!"},{"$error":"#DIV/0!"},{"$error":"#DIV/0!"},{"$error":"#DIV/0!"}]
[null,"Inorganic Se 600 ppm Hubbard",null,null,null,null,null,null,null,null,null,null,null,null,null,null,null,null,null,null,null,null,null,null,null,null,null,null,null,null,null,null,null,null,null,null,null,null,null,null,null,null,null,null,null,null,null,null,null,null,null,null,null,null,null,null,null,null,null,null,null,null,null,null,null,null,null,null,null,null,null,null,null,null,null,null,null,null,null,null,null,null,null,null,null,null,null,null,null,null,null,null,null,null,null,null,null,null,null,null,0,0,0,0,0,0,0,0,0,0,0,0,0,0,0,0,0,0,0,0,0,0,0,0,null,null,null,null,null,null,0.4,0,null,null,null,null,null,null,0.77,null,null,null,null,null,null,5.9999999999999995E-4,null,null,null,null,null,null,null,null,null,null,null,null,null,null,null,null,null,null,null,null,null,null,{"$f":"DH202/CZ202","v":{"$error":"#DIV/0!"}},{"$f":"CY202/CZ202","v":{"$error":"#DIV/0!"}},{"$f":"DH202/CY202","v":{"$error":"#DIV/0!"}},{"$f":"DG202/CZ202","v":{"$error":"#DIV/0!"}},{"$f":"CZ202/I202","v":{"$error":"#DIV/0!"}}]
[null,"Quantum Blue  5G Hubbard",null,null,null,null,null,null,null,null,null,null,null,null,null,null,null,null,null,null,null,null,null,null,null,null,null,null,null,null,null,null,null,null,null,null,null,null,null,null,null,null,null,null,null,null,null,null,null,null,null,null,null,null,null,null,null,null,null,null,null,null,null,null,null,null,null,null,null,null,null,null,null,null,null,null,null,null,null,null,null,null,null,null,null,null,null,null,null,null,null,null,null,null,null,null,null,null,null,null,0,0,0,0,0,0,0,0,0,0,0,0,0,0,0,0,0,0,0,0,0,0,0,0,null,null,null,null,null,null,null,0,null,null,2270000,5000,null,null,null,null,null,null,null,null,null,null,null,null,null,null,null,null,null,null,null,null,null,null,null,null,null,null,null,null,null,null,null,null,{"$error":"#DIV/0!"},{"$error":"#DIV/0!"},{"$error":"#DIV/0!"},{"$error":"#DIV/0!"},{"$error":"#DIV/0!"}]
[null,"TASA Prime meal Hubbard",4496,3958,3528,2351,null,93.5,69.3,null,7.8,null,16.8,null,null,null,null,null,null,null,null,null,null,null,null,null,null,null,null,null,null,3.69,2.19,2.91,4.7699999999999996,5.0599999999999996,1.87,2.58,2.46,1.1000000000000001,3.16,2.46,5.62,0.7,7.92,3.78,1.99,2.23,2.06,null,85,86,84,83,83,86,87,82,81,76,83,null,null,64,null,null,null,null,74,null,4.28,0.55000000000000004,0.62,0.13,0.4,2.93,null,null,null,79,82,76,87,4.04,null,null,null,null,null,null,null,null,null,null,null,null,null,null,null,null,{"$f":"AF204*AZ204/100","v":3.1733999999999996},1.8396000000000001,2.4153000000000002,3.9590999999999998,4.3515999999999995,1.6269,{"$f":"(AK204*BE204+BL204*AR204)/100","v":2.0749},{"$f":"AL204*BF204/100","v":2.1156000000000001},3.64,{"$f":"AM204*BG204/100","v":1.9925999999999999},0.83600000000000008,2.6228000000000002,0,0,0.44799999999999995,0,0,0,0,1.5244,2.3147000000000002,2.4026000000000001,3.2528000000000001,3.7236000000000002,null,null,null,null,null,null,0.94,2.7542,null,null,null,null,null,null,null,null,null,null,null,null,null,null,null,null,null,null,null,null,null,null,null,null,null,null,null,null,null,null,null,null,null,null,null,null,0.66247379454926636,0.61006289308176109,1.0859106529209621,0.21115910181606934,5.7129870129870128E-2]
[null,"TASA Swine Hubbard",4496,3958,3528,2351,null,90,67,null,10,null,17,null,null,null,null,null,null,null,null,null,null,null,null,null,null,null,null,null,null,3.74,2.36,2.59,4.8,5.25,1.77,2.62,2.83,0.82,3.05,4.13,6.08,0.59,8.24,3.96,2.58,2.6,1.88,null,85,86,84,83,83,86,87,82,81,76,83,null,null,64,null,null,null,null,74,null,4.28,0.55000000000000004,0.62,0.13,0.4,2.93,null,null,null,79,82,76,87,4.04,null,null,null,null,null,null,null,null,null,null,null,null,null,null,null,null,3.2164000000000006,1.9823999999999997,2.1497000000000002,3.984,4.5149999999999997,1.5399,{"$f":"(AK205*BE205+BL205*AR205)/100","v":1.9175},{"$f":"AL205*BF205/100","v":2.1484000000000001},3.5396000000000001,{"$f":"AM205*BG205/100","v":2.2923},0.62319999999999998,2.5314999999999999,0,0,0.37759999999999999,0,0,0,0,1.3912,2.3147000000000002,2.4026000000000001,3.2528000000000001,3.7236000000000002,null,null,null,null,null,null,0.94,2.7542,null,null,null,null,null,null,null,null,null,null,null,null,null,null,null,null,null,null,null,null,null,null,null,null,null,null,null,null,null,null,null,null,null,null,null,null,0.63541666666666663,0.53958333333333341,1.1776061776061775,0.15642570281124499,5.9462686567164177E-2]
[null,"TASA fish solubles Hubbard",4496,3958,3528,2351,null,61,42,null,0.76,null,15.03,null,null,null,null,null,null,null,null,null,null,null,null,null,null,null,null,null,null,1.6379999999999999,1.974,0.63,1.64,2.1,0.46200000000000002,0.58799999999999997,0.92400000000000004,0.126,0.92400000000000004,2.226,2.1419999999999999,8.4000000000000005E-2,4.2,3.1080000000000001,1.47,1.008,null,null,85,86,84,83,83,86,87,82,81,76,83,null,null,64,null,null,null,null,null,null,null,null,null,null,null,null,null,null,null,null,null,null,null,null,null,null,null,null,null,null,null,null,null,null,null,null,null,null,null,null,1.4086799999999999,1.6581600000000001,0.52290000000000003,1.3612,1.806,0.40194000000000002,0.45569999999999999,0.48215999999999992,0.48215999999999992,0.74844000000000011,9.5760000000000012E-2,0.76692000000000005,0,0,5.3760000000000002E-2,0,0,0,0,0,0,0,0,0,null,null,null,null,null,null,null,0,null,null,null,null,null,null,null,null,null,null,null,null,null,null,null,null,null,null,null,null,null,null,null,null,null,null,null,null,null,null,null,null,null,null,null,null,0.56341463414634152,0.38414634146341464,1.4666666666666666,7.0349691448721732E-2,3.2409523809523812E-2]
[null,"Mepro + TASA additive Hubbard",4740.0349999999999,3782.22,3585.97,2556.6999999999998,null,null,null,null,null,null,null,null,null,null,null,null,null,null,null,null,null,null,null,null,null,null,null,null,null,{"$f":"(AF190*0.935)+(AF206*0.065)","v":4.28592},{"$f":"(AG190*0.935)+(AG206*0.065)","v":1.7552099999999999},3.3789000000000002,5.4454500000000001,3.9887000000000001,0.9837300000000001,3.4977200000000002,2.6593599999999999,0.94319000000000008,3.4447600000000005,0.14469000000000001,0.13922999999999999,1.0620099999999999,0.27300000000000002,0.20202000000000001,9.5549999999999996E-2,6.5520000000000009E-2,{"$f":"(AW190*0.935)+(AW206*0.065)","v":0},null,{"$f":"(AY190*0.935)+(AY206*0.065)","v":5.5250000000000004},94.69550000000001,89.292099999999991,88.684799999999996,87.759150000000005,86.60775000000001,89.992000000000004,89.227550000000008,84.637150000000005,90.960000000000008,86.496899999999997,0,0,76.977800000000002,0,0,0,0,0,null,null,null,null,null,null,null,null,null,null,null,null,null,null,null,null,null,null,null,null,null,null,null,null,null,null,null,null,null,null,null,4.0585733736000007,1.5672638684099995,2.9965707071999996,4.7788806336750005,3.4545233242500006,0.88527830160000009,1.70279023538,3.1209298618600001,3.1209298618600001,2.2508065122400001,0.85792562400000005,2.9796106124400001,0,0,0.81751193377999998,0,0,0,0,0,0,0,0,0,null,null,null,null,null,null,null,0,null,null,null,null,null,null,null,null,null,null,null,null,null,null,null,null,null,null,null,null,null,null,null,null,null,null,null,null,null,null,null,null,null,null,null,null,0.62349550885280303,0.62704447691877396,0.99434016533657998,0.179524388609859,{"$error":"#DIV/0!"}]
[null,"TASA Prime + TASA additive Hubbard",4496,3958,3528,2351,null,null,null,null,null,null,null,null,null,null,null,null,null,null,null,null,null,null,null,null,null,null,null,null,null,{"$f":"(AF204*0.935)+(AF206*0.065)","v":3.5566200000000001},{"$f":"(AG204*0.935)+(AG206*0.065)","v":2.1759599999999999},2.7618000000000005,4.5665500000000003,4.8675999999999995,1.7784800000000003,2.45052,2.36016,1.0366900000000001,3.0146600000000001,2.4447900000000002,5.393930000000001,0.65995999999999999,{"$f":"(AS204*0.935)+(AS206*0.065)","v":7.6782000000000004},3.7363200000000001,1.9562000000000002,2.1505700000000001,1.9261000000000001,null,85.000000000000014,86.000000000000014,84,83,83,86.000000000000014,87,82,81,76,83,0,0,64,0,0,0,0,69.19,null,null,null,null,null,null,null,null,null,null,null,null,null,null,null,null,null,null,null,null,null,null,null,null,null,null,null,null,null,null,null,{"$f":"AF208*AZ208/100","v":3.0586932000000009},{"$f":"AG208*BA208/100","v":1.8278064000000001},{"$f":"AH208*BB208/100","v":2.2922940000000001},{"$f":"AI208*BC208/100","v":3.7902365000000002},{"$f":"AJ208*BD208/100","v":4.1861360000000003},{"$f":"AK208*BE208/100","v":1.5472776000000001},{"$f":"(AK208*BE208+BL208*AR208)/100","v":1.9696520000000002},{"$f":"AL208*BF208/100","v":2.0094264000000002},{"$f":"DD208+BQ208*AW208/100","v":3.3420949900000005},{"$f":"AM208*BG208/100","v":1.9117295999999999},{"$f":"AN208*BH208/100","v":0.78788440000000004},{"$f":"AO208*BI208/100","v":2.5021678000000001},{"$f":"AP208*BJ208/100","v":0},{"$f":"AQ208*BK208/100","v":0},{"$f":"AR208*BL208/100","v":0.42237439999999998},{"$f":"AS208*BM208/100","v":0},{"$f":"AT208*BN208/100","v":0},{"$f":"AU208*BO208/100","v":0},{"$f":"AV208*BP208/100","v":0},{"$f":"AW208*BQ208/100","v":1.3326685900000002},{"$f":"CB208*BX208/100","v":0},{"$f":"CC208*BX208/100","v":0},{"$f":"BS208*CD208/100","v":0},{"$f":"BS208*CE208/100","v":0},null,null,null,null,null,null,null,0,null,null,null,null,null,null,null,null,null,null,null,null,null,null,null,null,null,null,null,null,null,null,null,null,null,null,null,null,null,null,null,null,null,null,null,null,0.66016139098444115,0.60478917344603689,1.0915562314432616,0.20787209452497224,{"$error":"#DIV/0!"}]
[null,"NHF SOW VTM 4# 2022",null,null,null,null,null,null,null,null,null,null,null,null,null,null,null,null,null,null,null,null,null,null,null,null,null,null,null,null,null,null,null,null,null,null,null,null,null,null,null,null,null,null,null,null,null,null,null,null,null,null,null,null,null,null,null,null,null,null,null,null,null,null,null,null,null,null,null,null,null,null,null,null,null,null,null,null,null,null,null,null,null,null,null,null,null,null,null,null,null,null,null,null,null,null,null,null,null,null,0,0,0,0,0,0,0,0,0,0,0,0,0,0,0,0,0,0,0,0,0,0,0,0,null,null,null,null,null,null,null,{"$f":"BX209*EA209","v":0},null,null,null,null,null,null,null,null,5.2499999999999998E-2,0.06,0.02,8.9999999999999993E-3,1.4999999999999999E-4,2.0000000000000001E-4,9.8999999999999994E-5,null,2000250,327000,20000,795,9,13635,6500,1800,50,300,1000,null,null,null,null,null,null,null,null,null,{"$error":"#DIV/0!"},{"$error":"#DIV/0!"},{"$error":"#DIV/0!"},{"$error":"#DIV/0!"},{"$error":"#DIV/0!"}]
[null,"ThrPro ",null,null,3395,2638,null,95,70,null,null,null,null,null,null,null,null,null,null,null,null,null,null,null,null,null,null,null,null,null,null,0.42,0.1,0.72,0.53,1.49,0.25,0.37,80,0.06,0.45,0.6,0.62,0.06,0.94,0.5,0.33,0.23,0.16,null,null,45.2,42.3,75,44.8,84,43,52,100,62.8,47.6,43.1,45.5,33,53,26,45,50,60,null,0.01,null,0.48,0.04,0.01,0.88,null,null,null,null,96.8,null,null,null,null,null,null,null,null,null,null,null,null,null,null,null,null,null,null,null,0.18984000000000001,4.2299999999999997E-2,0.54,0.23743999999999998,1.2516,0.1075,0.1273,0.19239999999999999,0.28839999999999999,80,3.7679999999999998E-2,0.21420000000000003,0.2586,0.28210000000000002,1.9799999999999998E-2,0.49819999999999998,0.13,0.14850000000000002,0.115,9.6000000000000002E-2,0,0.85183999999999993,0,0,null,null,null,null,null,null,1,0.88,null,null,null,null,null,null,null,null,null,null,null,null,null,null,null,null,null,null,null,null,null,null,null,null,null,null,null,null,null,null,null,null,null,null,null,null,0.90212264150943411,2.2742587601078168,0.39666666666666667,0.15869272237196766,3.3919999999999996E-3]
[null,"NHF Optiphos Plus 2500 G",null,null,null,null,null,null,null,null,null,null,null,null,null,null,null,null,null,null,null,null,null,null,null,null,null,null,null,null,null,null,null,null,null,null,null,null,null,null,null,null,null,null,null,null,null,null,null,null,null,null,null,null,null,null,null,null,null,null,null,null,null,null,null,null,null,null,null,null,null,null,null,null,null,null,null,null,null,null,null,null,null,null,null,null,null,null,null,null,null,null,null,null,null,null,null,null,null,null,0,0,0,0,0,0,0,0,0,0,0,0,0,0,0,0,0,0,0,0,0,0,0,0,null,null,null,null,null,null,null,0,null,null,1135000,2500,null,null,null,null,null,null,null,null,null,null,null,null,null,null,null,null,null,null,null,null,null,null,null,null,null,null,null,null,null,null,null,null,{"$error":"#DIV/0!"},{"$error":"#DIV/0!"},{"$error":"#DIV/0!"},{"$error":"#DIV/0!"},{"$error":"#DIV/0!"}]
[null,"NHF Corn DDGS, Valero, Aurora",null,3439,3158,2387,null,88.22,28.15,7.28,7.5,null,4.2371129999999999,null,0.99662099999999998,0.956677,0.89321700000000004,null,null,6.9381440000000003,33.50515,12.1134,2.6907220000000001,32.319589999999998,null,null,null,null,null,null,null,1.196117216117216,0.73210622710622697,1.0517582417582416,3.2274542124542118,0.79397435897435886,0.56712454212454211,1.3817216117216116,1.0208241758241756,0.21653846153846151,1.392032967032967,null,null,0.52587912087912081,null,null,null,null,1.0723809523809522,null,74,81,78,76,84,61,82,81,71,71,75,null,null,73,null,null,null,null,81,null,2.4E-2,0.19,null,null,0.22,0.87,null,null,null,59,64,null,null,null,null,17.510400000000001,0.91020000000000001,0.54759999999999998,0.7632000000000001,2.665,0.495,0.45599999999999996,0.75959999999999994,1.0686000000000002,2.0202,0.63359999999999994,0.126,0.9869,null,20.245999999999999,0.96885494505494496,0.57104285714285696,0.79933626373626365,2.711061538461538,0.48432435897435888,0.46504212454212451,0.84893388278388271,1.1191945054945054,1.9878230769230765,0.72478516483516475,0.15374230769230768,1.0440247252747252,0,0,0.38389175824175825,0,0,0,0,0.86862857142857119,0.51329999999999998,0.55679999999999996,0,0,null,null,null,null,null,null,0.77,0.66990000000000005,4.4249999999999998,null,null,null,0.18,null,null,null,null,null,null,null,null,null,null,null,null,null,null,null,null,null,null,null,null,null,null,null,null,null,null,null,null,null,null,null,0.38509812870835242,0.29484253765403928,1.3061145510835914,5.6709265175718858E-2,9.6307692307692289E-2]
[null,"HP 300 Hubbard",null,null,3617,2273,null,93,56,4,3,null,7,null,null,null,null,null,1,0.6,9.1999999999999993,5.8,null,null,11,5.7,null,null,null,null,null,3.97,1.47,2.75,4.32,3.45,0.77,2.9,2.1800000000000002,0.77,2.82,2.41,6.34,0.82,9.92,2.37,2.87,2.4300000000000002,2.0299999999999998,null,88.6,95.1,88.4,88.3,88.8,87.1,90.6,89.8,85.1,88.6,88.7,87.5,87.9,84.1,90.6,90.7,91.2,91,89.6,null,0.35,0.1,2.5,0.35,0.02,0.75,0.45,null,null,null,59.8,null,null,null,null,56,null,null,null,null,null,null,null,null,null,null,null,null,null,null,3.7754699999999999,1.29948,2.4282499999999998,3.83616,3.00495,0.69762000000000002,1.3872399999999998,2.6041999999999996,4.4230799999999997,1.8551800000000001,0.68221999999999994,2.5013399999999999,2.1087500000000001,5.5728600000000004,0.6896199999999999,8.98752,2.1495899999999999,2.6174400000000002,2.2113,1.8188799999999998,0,0.44849999999999995,0,0,null,null,1000,0.5,null,null,0.4,0.30000000000000004,null,null,null,null,0.49650000000000005,null,null,null,null,null,null,null,null,null,null,null,null,null,null,null,null,null,null,null,null,null,null,null,null,null,null,93,null,null,null,null,0.65204266766766761,0.6329897605939272,1.0300998661587564,0.17783929763096429,6.8502857142857143E-2]
[null,"NHF Corn DDGS, Illuminate for Aurora",4849,3334.6524799999997,3088.6446000000001,2162.7126000000003,null,89.14,28.14,7.69,6,null,4.6500000000000004,null,null,null,null,null,null,null,26.96,10.54,3.17,null,null,null,null,null,null,null,null,1.23,0.77,1.01,3.15,0.96,0.56999999999999995,1.34,1.06,0.22,1.38,1.96,1.9,0.56000000000000005,null,null,null,null,null,null,74,81,78,76,84,61,82,81,71,71,75,79,69,73,81,64,74,77,81,null,0.04,null,1.17,0.35,0.2,0.89,0.71,null,0.26,60,65,50,60,28.497,null,null,null,null,null,null,null,null,null,null,null,null,null,null,null,null,0.99629999999999996,0.60060000000000002,0.76760000000000006,2.6459999999999995,0.5855999999999999,0.46739999999999993,0.87620000000000009,1.0854000000000001,1.0854000000000001,0.75260000000000005,0.15620000000000001,1.0349999999999999,1.5484,1.3109999999999999,0.40880000000000005,0,0,0,0,0,0.53400000000000003,0.57850000000000001,0.02,2.4E-2,null,null,150,7.4999999999999997E-2,null,null,0.74,0.65859999999999996,3.5577000000000001,null,null,null,0.18,75,46.72,null,null,null,null,null,null,null,null,null,null,null,null,null,null,null,null,null,null,null,null,null,null,null,4.1500000000000002E-2,0.88500000000000001,56.21,1.22,3.46,null,0.39115646258503406,0.29009826152683305,1.3483585200625323,5.9032501889644762E-2,9.4029850746268642E-2]
[null,"NFP Corn DDGS, MO analysis",4849,3439,3243,2387,null,87,28.93,7.28,7.5,null,4.24,null,0.997,0.95499999999999996,0.89300000000000002,null,null,6.94,33.5,12.1,2.69,32.32,null,null,null,40.71,70,43.7,null,1.34,0.82,1.1499999999999999,3.07,1.1399999999999999,0.5,1.3,1.1000000000000001,0.27,1.48,1.84,1.79,0.59,3.37,1.24,2.15,1.2,0.97,null,74,81,78,76,84,61,82,81,71,71,75,79,69,73,81,64,74,77,81,null,0.12,null,0.9,0.28999999999999998,0.22,0.73,0.66,null,0.26,60,65,50,60,28.5,null,17.491,0.85799999999999998,0.52500000000000002,0.73399999999999999,2.5670000000000002,0.42399999999999999,0.44,0.79200000000000004,1.0449999999999999,1.8560000000000001,0.63400000000000001,0.13200000000000001,0.95899999999999996,null,20.224,1.0854000000000001,0.63959999999999995,0.87399999999999989,2.5787999999999998,0.69539999999999991,0.41,0.84069999999999989,1.0529999999999999,1.8386999999999998,0.78100000000000014,0.19170000000000001,1.1100000000000001,1.4536000000000002,1.2351000000000001,0.43070000000000003,2.7297000000000002,0.79359999999999997,1.591,0.92399999999999993,0.78569999999999995,0.43799999999999994,0.47449999999999998,0.06,7.1999999999999995E-2,null,null,200,0.1,null,null,0.77,0.56210000000000004,null,null,null,null,0.18,93.75,43.07,null,null,null,null,null,null,null,null,null,null,null,null,null,null,null,null,null,null,null,null,null,null,null,4.2000000000000003E-2,0.88500000000000001,56.21,1.22,4.3099999999999996,null,0.43043275942298753,0.33891732588800993,1.2700228832951947,7.4336900884132168E-2,8.9139301762875905E-2]
[null,"NFP Smizyme 2500",null,null,null,null,null,null,null,null,null,null,null,null,null,null,null,null,null,null,null,null,null,null,null,null,null,null,null,null,null,null,null,null,null,null,null,null,null,null,null,null,null,null,null,null,null,null,null,null,null,null,null,null,null,null,null,null,null,null,null,null,null,null,null,null,null,null,null,null,null,null,null,null,null,null,null,null,null,null,null,null,null,null,null,null,null,null,null,null,null,null,null,null,null,null,null,null,null,null,0,0,0,0,0,0,0,0,0,0,0,0,0,0,0,0,0,0,0,0,null,null,null,null,null,null,null,null,null,null,null,null,null,null,1135000,2500,null,null,null,null,null,null,null,null,null,null,null,null,null,null,null,null,null,null,null,null,null,null,null,null,null,null,null,null,null,null,null,null,{"$error":"#DIV/0!"},{"$error":"#DIV/0!"},{"$error":"#DIV/0!"},{"$error":"#DIV/0!"},{"$error":"#DIV/0!"}]
[null,"NHF HP300 2022 loadings",null,null,3617,2273,null,93,56,4,3,null,7,null,null,null,null,null,1,0.6,9.1999999999999993,5.8,null,null,11,5.7,null,null,null,null,null,3.97,1.47,2.75,4.32,3.45,0.77,2.9,2.1800000000000002,0.77,2.82,2.41,6.34,0.82,9.92,2.37,2.87,2.4300000000000002,2.0299999999999998,null,88.6,95.1,88.4,88.3,88.8,87.1,90.6,89.8,85.1,88.6,88.7,87.5,87.9,84.1,90.6,90.7,91.2,91,89.6,null,0.35,0.1,2.5,0.35,0.02,0.75,0.45,null,null,null,59.8,null,null,null,null,56,null,null,null,null,null,null,null,null,null,null,null,null,null,null,3.7754699999999999,1.29948,2.4282499999999998,3.83616,3.00495,0.69762000000000002,1.3872399999999998,2.6041999999999996,4.4230799999999997,1.8551800000000001,0.68221999999999994,2.5013399999999999,2.1087500000000001,5.5728600000000004,0.6896199999999999,8.98752,2.1495899999999999,2.6174400000000002,2.2113,1.8188799999999998,0,0.44849999999999995,0,0,null,null,1000,0.5,null,null,0.4,0.30000000000000004,null,null,null,null,0.49650000000000005,null,null,null,null,null,null,null,null,null,null,null,null,null,null,null,null,null,null,null,null,null,null,null,null,null,null,93,null,null,null,null,0.65204266766766761,0.6329897605939272,1.0300998661587564,0.17783929763096429,6.8502857142857143E-2]
[null,"NHF Liquid Lys 55%",null,null,3004,2420,null,55,68.02,null,null,null,null,null,null,null,null,null,null,null,null,null,null,null,null,null,null,null,null,null,null,null,null,null,null,55,null,null,null,null,null,null,null,null,null,null,null,null,null,null,null,null,null,null,null,100,null,null,null,null,null,null,null,null,null,null,null,null,null,null,null,null,null,null,null,null,null,null,null,null,null,null,null,null,null,null,null,null,null,null,null,null,null,null,null,null,null,null,null,null,{"$f":"AF218*AZ218/100","v":0},{"$f":"AG218*BA218/100","v":0},{"$f":"AH218*BB218/100","v":0},{"$f":"AI218*BC218/100","v":0},{"$f":"AJ218*BD218/100","v":55},{"$f":"AK218*BE218/100","v":0},{"$f":"(AK218*BE218+BL218*AR218)/100","v":0},{"$f":"AL218*BF218/100","v":0},{"$f":"DD218+BQ218*AW218/100","v":0},{"$f":"AM218*BG218/100","v":0},{"$f":"AN218*BH218/100","v":0},{"$f":"AO218*BI218/100","v":0},{"$f":"AP218*BJ218/100","v":0},{"$f":"AQ218*BK218/100","v":0},{"$f":"AR218*BL218/100","v":0},{"$f":"AS218*BM218/100","v":0},{"$f":"AT218*BN218/100","v":0},{"$f":"AU218*BO218/100","v":0},{"$f":"AV218*BP218/100","v":0},{"$f":"AW218*BQ218/100","v":0},null,null,null,null,null,null,null,null,null,null,null,null,null,null,null,null,null,null,null,null,null,null,null,null,null,null,null,null,null,null,null,null,null,null,null,null,null,null,null,null,null,null,null,null,null,null,null,null,{"$f":"DH218/CZ218","v":{"$error":"#DIV/0!"}},{"$f":"CY218/CZ218","v":{"$error":"#DIV/0!"}},{"$f":"DH218/CY218","v":{"$error":"#DIV/0!"}},{"$f":"DG218/CZ218","v":{"$error":"#DIV/0!"}},{"$f":"CZ218/I218","v":0}]
[null,"Corn DDGS with varying energy",4849,{"$f":"71.216*K219+2905.22","v":3759.8119999999999},{"$f":"(D219/(H219/100)-I219*10/(H219/100))*H219/100","v":3485.1119999999996},{"$f":"'DDGS Calculator'!G13*2.20462","v":2137.6000000000004},null,88.95,27.47,7.63,12,null,4.1100000000000003,null,null,null,null,null,null,6.43,32.83,11.79,2.6907216494845358,29.82,null,null,null,40.710000000000008,70,43.692400000000006,null,1.18,0.73,1.03,3.2,0.83,0.55000000000000004,1.34,1,0.21,1.36,null,null,0.44,null,null,null,null,1.22,null,73,81,80,72,87,62,80,83,71,67,79,null,null,73,null,null,null,null,81,null,0.1,0.2,0.93,0.32,0.19,0.68,0.47,null,null,56.55,61.47,null,null,27.593999999999998,null,17.510400000000001,0.91020000000000001,0.54759999999999998,0.7632000000000001,2.665,0.495,0.45599999999999996,0.75959999999999994,1.0686000000000002,2.0202,0.63359999999999994,0.126,0.9869,null,20.246399999999998,0.95579999999999998,0.58399999999999996,0.74159999999999993,2.7840000000000003,0.51460000000000006,0.44,0.7612000000000001,1.1122000000000001,2.1004,0.71,0.14069999999999999,1.0744,0,0,0.32119999999999999,0,0,0,0,0.98819999999999997,{"$f":"BX219*CB219/100","v":0.38453999999999999},{"$f":"BX219*CC219/100","v":0.41799600000000003},null,null,null,null,{"$f":"DX219*2000","v":180},{"$f":"'DDGS Calculator'!D7/2000","v":0.09},null,null,0.77,{"$f":"CG219*EA219","v":0},{"$f":"0.59*AF219","v":0.69619999999999993},null,null,0.25,0.18,{"$f":"125*AF219/10","v":14.75},null,null,null,null,null,null,null,null,null,null,null,null,null,null,null,null,null,null,null,null,null,null,null,null,null,null,null,null,null,null,0.38591954022988501,0.26637931034482754,1.4487594390507013,5.0538793103448269E-2,0.10134692391700038]
[null,"Other ingredient",null,null,null,null,null,null,null,null,null,null,null,null,null,null,null,null,null,null,null,null,null,null,null,null,null,null,null,null,null,null,null,null,null,null,null,null,null,null,null,null,null,null,null,null,null,null,null,null,null,null,null,null,null,null,null,null,null,null,null,null,null,null,null,null,null,null,null,null,null,null,null,null,null,null,null,null,null,null,null,null,null,null,null,null,null,null,null,null,null,null,null,null,null,null,null,null,null,null,0,0,0,0,0,0,0,0,0,0,0,0,0,0,0,0,0,0,0,0,null,null,null,null,null,null,null,null,null,null,null,null,null,null,null,null,null,null,null,null,null,null,null,null,null,null,null,null,null,null,null,null,null,null,null,null,null,null,null,null,null,null,null,null,null,null,null,null,{"$error":"#DIV/0!"},{"$error":"#DIV/0!"},{"$error":"#DIV/0!"},{"$error":"#DIV/0!"},{"$error":"#DIV/0!"}]
[null,"Other ingredient",null,null,null,null,null,null,null,null,null,null,null,null,null,null,null,null,null,null,null,null,null,null,null,null,null,null,null,null,null,null,null,null,null,null,null,null,null,null,null,null,null,null,null,null,null,null,null,null,null,null,null,null,null,null,null,null,null,null,null,null,null,null,null,null,null,null,null,null,null,null,null,null,null,null,null,null,null,null,null,null,null,null,null,null,null,null,null,null,null,null,null,null,null,null,null,null,null,null,0,0,0,0,0,0,0,0,0,0,0,0,0,0,0,0,0,0,0,0,null,null,null,null,null,null,null,null,null,null,null,null,null,null,null,null,null,null,null,null,null,null,null,null,null,null,null,null,null,null,null,null,null,null,null,null,null,null,null,null,null,null,null,null,null,null,null,null,{"$error":"#DIV/0!"},{"$error":"#DIV/0!"},{"$error":"#DIV/0!"},{"$error":"#DIV/0!"},{"$error":"#DIV/0!"}]
[null,"Other ingredient",null,null,null,null,null,null,null,null,null,null,null,null,null,null,null,null,null,null,null,null,null,null,null,null,null,null,null,null,null,null,null,null,null,null,null,null,null,null,null,null,null,null,null,null,null,null,null,null,null,null,null,null,null,null,null,null,null,null,null,null,null,null,null,null,null,null,null,null,null,null,null,null,null,null,null,null,null,null,null,null,null,null,null,null,null,null,null,null,null,null,null,null,null,null,null,null,null,null,0,0,0,0,0,0,0,0,0,0,0,0,0,0,0,0,0,0,0,0,null,null,null,null,null,null,null,null,null,null,null,null,null,null,null,null,null,null,null,null,null,null,null,null,null,null,null,null,null,null,null,null,null,null,null,null,null,null,null,null,null,null,null,null,null,null,null,null,{"$error":"#DIV/0!"},{"$error":"#DIV/0!"},{"$error":"#DIV/0!"},{"$error":"#DIV/0!"},{"$error":"#DIV/0!"}]
[null,"Other ingredient",null,null,null,null,null,null,null,null,null,null,null,null,null,null,null,null,null,null,null,null,null,null,null,null,null,null,null,null,null,null,null,null,null,null,null,null,null,null,null,null,null,null,null,null,null,null,null,null,null,null,null,null,null,null,null,null,null,null,null,null,null,null,null,null,null,null,null,null,null,null,null,null,null,null,null,null,null,null,null,null,null,null,null,null,null,null,null,null,null,null,null,null,null,null,null,null,null,null,0,0,0,0,0,0,0,0,0,0,0,0,0,0,0,0,0,0,0,0,null,null,null,null,null,null,null,null,null,null,null,null,null,null,null,null,null,null,null,null,null,null,null,null,null,null,null,null,null,null,null,null,null,null,null,null,null,null,null,null,null,null,null,null,null,null,null,null,{"$error":"#DIV/0!"},{"$error":"#DIV/0!"},{"$error":"#DIV/0!"},{"$error":"#DIV/0!"},{"$error":"#DIV/0!"}]
[null,"Other ingredient",null,null,null,null,null,null,null,null,null,null,null,null,null,null,null,null,null,null,null,null,null,null,null,null,null,null,null,null,null,null,null,null,null,null,null,null,null,null,null,null,null,null,null,null,null,null,null,null,null,null,null,null,null,null,null,null,null,null,null,null,null,null,null,null,null,null,null,null,null,null,null,null,null,null,null,null,null,null,null,null,null,null,null,null,null,null,null,null,null,null,null,null,null,null,null,null,null,null,0,0,0,0,0,0,0,0,0,0,0,0,0,0,0,0,0,0,0,0,null,null,null,null,null,null,null,null,null,null,null,null,null,null,null,null,null,null,null,null,null,null,null,null,null,null,null,null,null,null,null,null,null,null,null,null,null,null,null,null,null,null,null,null,null,null,null,null,{"$error":"#DIV/0!"},{"$error":"#DIV/0!"},{"$error":"#DIV/0!"},{"$error":"#DIV/0!"},{"$error":"#DIV/0!"}]
[null,"Other ingredient",null,null,null,null,null,null,null,null,null,null,null,null,null,null,null,null,null,null,null,null,null,null,null,null,null,null,null,null,null,null,null,null,null,null,null,null,null,null,null,null,null,null,null,null,null,null,null,null,null,null,null,null,null,null,null,null,null,null,null,null,null,null,null,null,null,null,null,null,null,null,null,null,null,null,null,null,null,null,null,null,null,null,null,null,null,null,null,null,null,null,null,null,null,null,null,null,null,null,0,0,0,0,0,0,0,0,0,0,0,0,0,0,0,0,0,0,0,0,null,null,null,null,null,null,null,null,null,null,null,null,null,null,null,null,null,null,null,null,null,null,null,null,null,null,null,null,null,null,null,null,null,null,null,null,null,null,null,null,null,null,null,null,null,null,null,null,{"$error":"#DIV/0!"},{"$error":"#DIV/0!"},{"$error":"#DIV/0!"},{"$error":"#DIV/0!"},{"$error":"#DIV/0!"}]
[null,"Other ingredient",null,null,null,null,null,null,null,null,null,null,null,null,null,null,null,null,null,null,null,null,null,null,null,null,null,null,null,null,null,null,null,null,null,null,null,null,null,null,null,null,null,null,null,null,null,null,null,null,null,null,null,null,null,null,null,null,null,null,null,null,null,null,null,null,null,null,null,null,null,null,null,null,null,null,null,null,null,null,null,null,null,null,null,null,null,null,null,null,null,null,null,null,null,null,null,null,null,null,0,0,0,0,0,0,0,0,0,0,0,0,0,0,0,0,0,0,0,0,null,null,null,null,null,null,null,null,null,null,null,null,null,null,null,null,null,null,null,null,null,null,null,null,null,null,null,null,null,null,null,null,null,null,null,null,null,null,null,null,null,null,null,null,null,null,null,null,{"$error":"#DIV/0!"},{"$error":"#DIV/0!"},{"$error":"#DIV/0!"},{"$error":"#DIV/0!"},{"$error":"#DIV/0!"}]
[null,"Other ingredient",null,null,null,null,null,null,null,null,null,null,null,null,null,null,null,null,null,null,null,null,null,null,null,null,null,null,null,null,null,null,null,null,null,null,null,null,null,null,null,null,null,null,null,null,null,null,null,null,null,null,null,null,null,null,null,null,null,null,null,null,null,null,null,null,null,null,null,null,null,null,null,null,null,null,null,null,null,null,null,null,null,null,null,null,null,null,null,null,null,null,null,null,null,null,null,null,null,null,0,0,0,0,0,0,0,0,0,0,0,0,0,0,0,0,0,0,0,0,null,null,null,null,null,null,null,null,null,null,null,null,null,null,null,null,null,null,null,null,null,null,null,null,null,null,null,null,null,null,null,null,null,null,null,null,null,null,null,null,null,null,null,null,null,null,null,null,{"$error":"#DIV/0!"},{"$error":"#DIV/0!"},{"$error":"#DIV/0!"},{"$error":"#DIV/0!"},{"$error":"#DIV/0!"}]
[null,"Other ingredient",null,null,null,null,null,null,null,null,null,null,null,null,null,null,null,null,null,null,null,null,null,null,null,null,null,null,null,null,null,null,null,null,null,null,null,null,null,null,null,null,null,null,null,null,null,null,null,null,null,null,null,null,null,null,null,null,null,null,null,null,null,null,null,null,null,null,null,null,null,null,null,null,null,null,null,null,null,null,null,null,null,null,null,null,null,null,null,null,null,null,null,null,null,null,null,null,null,null,0,0,0,0,0,0,0,0,0,0,0,0,0,0,0,0,0,0,0,0,null,null,null,null,null,null,null,null,null,null,null,null,null,null,null,null,null,null,null,null,null,null,null,null,null,null,null,null,null,null,null,null,null,null,null,null,null,null,null,null,null,null,null,null,null,null,null,null,{"$error":"#DIV/0!"},{"$error":"#DIV/0!"},{"$error":"#DIV/0!"},{"$error":"#DIV/0!"},{"$error":"#DIV/0!"}]
[]
[]
[null,"Lysine requirement",null,null,null,null,null,null,null,null,null,null,null,null,null,null,null,null,null,null,null,null,null,null,null,null,null,null,null,null,null,null,null,null,null,null,null,null,null,null,null,null,null,null,null,null,null,null,null,null,null,null,null,null,null,null,null,null,null,null,null,null,null,null,null,null,null,null,null,null,null,null,null,null,null,null,null,null,null,null,null,null,null,null,null,null,null,null,null,null,null,null,null,null,null,null,null,null,null,null,null,null,null,null,null,null,null,null,null,null,null,null,null,null,null,null,null,null,null,null,null,null,null,null,null,"X2","X","y intercept"]
[null,"PIC gilt",null,null,null,null,null,null,null,null,null,null,null,null,null,null,null,null,null,null,null,null,null,null,null,null,null,null,null,null,null,null,null,null,null,null,null,null,null,null,null,null,null,null,null,null,null,null,null,null,null,null,null,null,null,null,null,null,null,null,null,null,null,null,null,null,null,null,null,null,null,null,null,null,null,null,null,null,null,null,null,null,null,null,null,null,null,null,null,null,null,null,null,null,null,null,null,null,null,null,null,null,null,null,null,null,null,null,null,null,null,null,null,null,null,null,null,null,null,null,null,null,null,null,null,{"$f":"0.000027","v":2.6999999999999999E-5},-1.5318E-2,4.1143020000000003]
[null,"PIC barrow",null,null,null,null,null,null,null,null,null,null,null,null,null,null,null,null,null,null,null,null,null,null,null,null,null,null,null,null,null,null,null,null,null,null,null,null,null,null,null,null,null,null,null,null,null,null,null,null,null,null,null,null,null,null,null,null,null,null,null,null,null,null,null,null,null,null,null,null,null,null,null,null,null,null,null,null,null,null,null,null,null,null,null,null,null,null,null,null,null,null,null,null,null,null,null,null,null,null,null,null,null,null,null,null,null,null,null,null,null,null,null,null,null,null,null,null,null,null,null,null,null,null,null,{"$f":"0.00004","v":4.0000000000000003E-5},-1.9913E-2,4.3697429999999997]
[null,"PIC Mixed",null,null,null,null,null,null,null,null,null,null,null,null,null,null,null,null,null,null,null,null,null,null,null,null,null,null,null,null,null,null,null,null,null,null,null,null,null,null,null,null,null,null,null,null,null,null,null,null,null,null,null,null,null,null,null,null,null,null,null,null,null,null,null,null,null,null,null,null,null,null,null,null,null,null,null,null,null,null,null,null,null,null,null,null,null,null,null,null,null,null,null,null,null,null,null,null,null,null,null,null,null,null,null,null,null,null,null,null,null,null,null,null,null,null,null,null,null,null,null,null,null,null,null,{"$f":"0.000033","v":3.3000000000000003E-5},-1.7616E-2,4.2420229999999997]
[null,"Genetiporc",null,null,null,null,null,null,null,null,null,null,null,null,null,null,null,null,null,null,null,null,null,null,null,null,null,null,null,null,null,null,null,null,null,null,null,null,null,null,null,null,null,null,null,null,null,null,null,null,null,null,null,null,null,null,null,null,null,null,null,null,null,null,null,null,null,null,null,null,null,null,null,null,null,null,null,null,null,null,null,null,null,null,null,null,null,null,null,null,null,null,null,null,null,null,null,null,null,null,null,null,null,null,null,null,null,null,null,null,null,null,null,null,null,null,null,null,null,null,null,null,null,null,null,null,{"$f":" -0.006993","v":-6.9930000000000001E-3},3.7038530000000001]
[null,"KSU1",null,null,null,null,null,null,null,null,null,null,null,null,null,null,null,null,null,null,null,null,null,null,null,null,null,null,null,null,null,null,null,null,null,null,null,null,null,null,null,null,null,null,null,null,null,null,null,null,null,null,null,null,null,null,null,null,null,null,null,null,null,null,null,null,null,null,null,null,null,null,null,null,null,null,null,null,null,null,null,null,null,null,null,null,null,null,null,null,null,null,null,null,null,null,null,null,null,null,null,null,null,null,null,null,null,null,null,null,null,null,null,null,null,null,null,null,null,null,null,null,null,null,null,{"$f":" 0.0000335","v":3.3500000000000001E-5},{"$f":"- 0.0182435","v":-1.8243499999999999E-2},4.4442051999999999]
[null,"Main",null,null,null,null,null,null,null,null,null,null,null,null,null,null,null,null,null,null,null,null,null,null,null,null,null,null,null,null,null,null,null,null,null,null,null,null,null,null,null,null,null,null,null,null,null,null,null,null,null,null,null,null,null,null,null,null,null,null,null,null,null,null,null,null,null,null,null,null,null,null,null,null,null,null,null,null,null,null,null,null,null,null,null,null,null,null,null,null,null,null,null,null,null,null,null,null,null,null,null,null,null,null,null,null,null,null,null,null,null,null,null,null,null,null,null,null,null,null,null,null,null,null,null,null,{"$f":" -0.006472","v":-6.4720000000000003E-3},3.4834800000000001]
[null,"Boyd",null,null,null,null,null,null,null,null,null,null,null,null,null,null,null,null,null,null,null,null,null,null,null,null,null,null,null,null,null,null,null,null,null,null,null,null,null,null,null,null,null,null,null,null,null,null,null,null,null,null,null,null,null,null,null,null,null,null,null,null,null,null,null,null,null,null,null,null,null,null,null,null,null,null,null,null,null,null,null,null,null,null,null,null,null,null,null,null,null,null,null,null,null,null,null,null,null,null,null,null,null,null,null,null,null,null,null,null,null,null,null,null,null,null,null,null,null,null,null,null,null,null,null,{"$f":" 0.0000361","v":3.6100000000000003E-5},-1.9140600000000001E-2,4.4392250000000004]

{"sheet":"Grow finish feed budget","index":4,"n_rows":31,"n_cols":19,"rows_kept":31,"cut":false,"hidden":true,"merged":[[16,2,16,3],[23,1,23,3],[23,6,23,8],[23,11,23,13],[2,1,2,3],[2,6,2,8],[2,11,2,13],[3,1,3,3],[3,6,3,8],[3,11,3,13]]}
[null,null,null,null,null,null,null,"K-State Grow-Finish Feed Budget Program"]
[]
[null,"Gilt Feed Budget",null,null,null,null,"Barrow Feed Budget",null,null,null,null,"Mixed Sex Feed Budget"]
[null,"Closeout Feed Efficiency",null,null,null,null,"Closeout Feed Efficiency",null,null,null,null,"Closeout Feed Efficiency"]
[null,"Initial wt","Final wt","F/G",null,null,"Initial wt","Final wt","F/G",null,null,"Initial wt","Final wt","F/G"]
[null,50,270,2.8,null,null,50,270,2.9,null,null,50,285,2.59]
[]
[null,"Initial  wt","Final wt","lb/pig",{"$f":"IF(B9=0,E8,((0.00463*$B9^2 + 1.68*$B9 - 22.05)/(((0.00463*$C$6^2 + 1.68*$C$6 - 22.05)-(0.00463*$B$6^2 + 1.68*$B$6 - 22.05))/($C$6-$B$6))*$D$6))","v":65.115764170040492},null,"Initial  wt","Final wt","lb/pig",{"$f":"IF(G9=0,J8,((0.00463*G9^2 + 1.68*G9 - 22.05)/(((0.00463*H$6^2 + 1.68*H$6 - 22.05)-(0.00463*G$6^2 + 1.68*G$6 - 22.05))/(H$6-G$6))*I$6))","v":67.441327176113361},null,"Initial  wt","Final wt","lb/pig",{"$f":"IF(L9=0,O8,((0.00463*L9^2 + 1.68*L9 - 22.05)/(((0.00463*M$6^2 + 1.68*M$6 - 22.05)-(0.00463*L$6^2 + 1.68*L$6 - 22.05))/(M$6-L$6))*N$6))","v":58.937419724238261}]
[null,50,75,{"$f":"IF(C9=\"\",0,(E9-E8))","v":50.010279605263136},{"$f":"IF(C9=\"\",\"\",((0.00463*C9^2 + 1.68*C9 - 22.05)/(((0.00463*C$6^2 + 1.68*C$6 - 22.05)-(0.00463*B$6^2 + 1.68*B$6 - 22.05))/(C$6-B$6))*D$6))","v":115.12604377530363},null,50,75,{"$f":"IF(H9=\"\",\"\",(J9-J8))","v":51.796361019736821},{"$f":"IF(H9=\"\",\"\",((0.00463*H9^2 + 1.68*H9 - 22.05)/(((0.00463*H$6^2 + 1.68*H$6 - 22.05)-(0.00463*G$6^2 + 1.68*G$6 - 22.05))/(H$6-G$6))*I$6))","v":119.23768819585018},null,50,85,{"$f":"IF(M9=\"\",\"\",(O9-O8))","v":64.670241098095005},{"$f":"IF(L10=\"\",\"\",((0.00463*L10^2 + 1.68*L10 - 22.05)/(((0.00463*M$6^2 + 1.68*M$6 - 22.05)-(0.00463*L$6^2 + 1.68*L$6 - 22.05))/(M$6-L$6))*N$6))","v":123.60766082233327},null,{"$f":"(M9-L9)*$N$6","v":90.649999999999991}]
[null,{"$f":"IF(C9=\"\",\"\",C9)","v":75},140,154.01439144736838,269.14043522267201,null,{"$f":"IF(H9=\"\",\"\",H9)","v":75},125,119.51859817813764,238.75628637398782,null,{"$f":"IF(M9=\"\",\"\",M9)","v":85},120,73.763156713761802,197.37081753609507,null,90.649999999999991]
[null,140,195,157.38287575910925,426.52331098178126,null,125,170,125.72223715840076,364.47852353238858,null,120,160,95.43493291654417,292.80575045263924,null,103.6]
[null,195,240,147.21985703441305,573.74316801619432,null,170,210,126.19256072874504,490.67108426113361,null,160,200,107.31139412884363,400.11714458148288,null,103.6]
[null,240,280,144.80364372469637,718.54681174089069,null,210,250,139.78264170040484,630.45372596153845,null,200,240,119.18785534114284,519.30499992262571,null,103.6]
[null,280,280,0,718.54681174089069,null,250,280,113.7554719129555,744.20919787449395,null,240,285,148.28241980161249,667.5874197242382,null,116.55]
[null,280,null,null,null,null,280,null,null,null,null,285,null,null,null,null,null,null,611]
[]
[null,null,"Delivery size:",null,null,3,"tons"]
[]
[]
[null,null,null,null,null,null,null,"Diet Identification Numbers"]
[null,null,null,"Two sets of diets can be entered for each sex (ex. season, genotype, etc.)"]
[null,null,null,null,null,null,null,"Please enter the diet descriptions here:","Sequence 1",null,null,"Sequence 2"]
[]
[null,"Gilts",null,null,null,null,"Barrows",null,null,null,null,"Mixed Sex"]
[null,"Initial wt",{"$f":"I22","v":"Sequence 1"},{"$f":"L22","v":"Sequence 2"},null,null,"Initial wt",{"$f":"I22","v":"Sequence 1"},{"$f":"L22","v":"Sequence 2"},null,null,"Initial wt",{"$f":"I22","v":"Sequence 1"},{"$f":"L22","v":"Sequence 2"}]
[null,{"$f":"B9","v":50},"F1","Diet 1",null,null,{"$f":"G9","v":50},"F1","Diet 1",null,null,{"$f":"L9","v":50},"F1","Diet 1"]
[null,75,"F2","Diet 2",null,null,75,"F2","Diet 2",null,null,85,"F2","Diet 2"]
[null,140,"F3","Diet 3",null,null,125,"F3","Diet 3",null,null,120,"F3","Diet 3"]
[null,195,"F4","Diet 4",null,null,170,"F4","Diet 4",null,null,160,"F4","Diet 4"]
[null,240,"F5","Diet 5",null,null,210,"F5","Diet 5",null,null,{"$f":"L13","v":200},"F5","Diet 5"]
[null,280,"F6","Diet 6",null,null,250,"F6","Diet 6",null,null,240,"F6","Diet 6"]

{"sheet":"GF diets No L-Val","index":5,"n_rows":353,"n_cols":50,"rows_kept":353,"cut":false,"hidden":true,"merged":[[3,43,3,47],[3,8,3,12],[3,2,3,5],[3,15,3,19],[3,22,3,26],[3,29,3,33],[3,36,3,40]]}
["Corn",null,null,null,null,null,null,null,{"$f":"B7-I7","v":60.619646436457288},{"$f":"C7-J7","v":61.851981937445316},62.863452286277152,63.067460779901467,63.16441076963747,63.375460717311626,null,{"$f":"I7-P7","v":62.229683761819842},{"$f":"J7-Q7","v":62.962401149761718},63.72852016505135,63.368787214147687,64.183592817687668,64.491565436705514,null,{"$f":"P7-W7","v":62.193615479173559},{"$f":"Q7-X7","v":62.918400970577977},62.582557298557958,63.673217859722172,64.267776747386279,64.779628250065798,null,{"$f":"W7-AD7","v":62.127409463226286},{"$f":"X7-AE7","v":61.846921659380996},62.844651879662251,63.86146076337559,65.087574645041514,65.812290409599427,null,{"$f":"AD7-AK7","v":66.503151968323778},{"$f":"AE7-AL7","v":62.139749705692566},63.198988139651874,64.438244419837702,65.552479997885939,65.818099651696912,null,{"$f":"AK7-AR7","v":60.462893817680651},{"$f":"AL7-AS7","v":62.167611431870682},63.439525129767162,65.200341365679378,65.548992799088865,65.810614751669846]
["SBM",null,null,null,null,null,null,null,{"$f":"B8-I8","v":39.132228852415665},37.938018062554647,36.956158218368955,36.337021253876856,36.373418218717916,36.052670839384973,null,{"$f":"I8-P8","v":37.593115207398796},36.871452500527312,36.102257806047646,36.460672525844984,35.817524173783795,35.559113456303066,null,{"$f":"P8-W8","v":37.596384520826405},36.871599029421986,37.217748863521365,36.174599768070038,35.742223252613712,35.654799691356857,null,{"$f":"W8-AD8","v":37.682283786018843},37.96425214054284,36.954194179633305,36.178791682824567,36.078265071860187,35.912513000423814,null,{"$f":"AD8-AK8","v":33.311166318662686},37.650250294307625,36.811011860348344,36.445529547036358,36.18037607694032,35.915679199366878,null,{"$f":"AK8-AR8","v":39.331295415931208},{"$f":"AL8-AS8","v":37.642036311898437},{"$f":"AM8-AT8","v":36.596279493980774},36.543469687386505,36.17548979757953,35.914249307722002]
[null,"Diet 1","Diet 2","Diet 3","Diet 4","Diet 5","Diet 6",null,"Diet 1","Diet 2","Diet 3","Diet 4","Diet 5","Diet 6",null,"Diet 1","Diet 2","Diet 3","Diet 4","Diet 5","Diet 6",null,"Diet 1","Diet 2","Diet 3","Diet 4","Diet 5","Diet 6",null,"Diet 1","Diet 2","Diet 3","Diet 4","Diet 5","Diet 6",null,"Diet 1","Diet 2","Diet 3","Diet 4","Diet 5","Diet 6",null,"Diet 1","Diet 2","Diet 3","Diet 4","Diet 5","Diet 6"]
[null,null,null,null,null,null,null,null,"Weight Range",null,null,null,null,null,null,"Weight Range",null,null,null,null,null,null,"Weight Range",null,null,null,null,null,null,"Weight Range",null,null,null,null,null,null,"Weight Range",null,null,null,null,null,null,"Weight Range"]
[null,50,85,120,160,200,240,null,50,85,120,160,200,240,null,50,85,120,160,200,240,null,50,85,120,160,200,240,null,50,85,120,160,200,240,null,50,85,120,160,200,240,null,50,85,120,160,200,240]
["Ingredient",85,120,160,200,240,285,null,85,120,160,200,240,285,null,85,120,160,200,240,285,null,85,120,160,200,240,285,null,85,120,160,200,240,285,null,85,120,160,200,240,285,null,85,120,160,200,240,285]
["Corn",{"$f":"IF(B5=\"\",\"\",((((B236-B297)*2000)+((SUM(B9:B229)-2000)*((IF($A8=Nutrients!$B$79,Nutrients!$DA$79,(IF($A8=Nutrients!$B$77,Nutrients!$DA$77,Nutrients!$DA$78)))))))/((IF($A7=Nutrients!$B$8,Nutrients!$DA$8,Nutrients!$DA$9))-((IF($A8=Nutrients!$B$79,Nutrients!$DA$79,(IF($A8=Nutrients!$B$77,Nutrients!$DA$77,Nutrients!$DA$78))))))))","v":1323.1904784197848},{"$f":"IF(C5=\"\",\"\",((((C236-C297)*2000)+((SUM(C9:C229)-2000)*((IF($A8=Nutrients!$B$79,Nutrients!$DA$79,(IF($A8=Nutrients!$B$77,Nutrients!$DA$77,Nutrients!$DA$78)))))))/((IF($A7=Nutrients!$B$8,Nutrients!$DA$8,Nutrients!$DA$9))-((IF($A8=Nutrients!$B$79,Nutrients!$DA$79,(IF($A8=Nutrients!$B$77,Nutrients!$DA$77,Nutrients!$DA$78))))))))","v":1438.5863426264264},{"$f":"IF(D5=\"\",\"\",((((D236-D297)*2000)+((SUM(D9:D229)-2000)*((IF($A8=Nutrients!$B$79,Nutrients!$DA$79,(IF($A8=Nutrients!$B$77,Nutrients!$DA$77,Nutrients!$DA$78)))))))/((IF($A7=Nutrients!$B$8,Nutrients!$DA$8,Nutrients!$DA$9))-((IF($A8=Nutrients!$B$79,Nutrients!$DA$79,(IF($A8=Nutrients!$B$77,Nutrients!$DA$77,Nutrients!$DA$78))))))))","v":1538.5624561307404},{"$f":"IF(E5=\"\",\"\",((((E236-E297)*2000)+((SUM(E9:E229)-2000)*((IF($A8=Nutrients!$B$79,Nutrients!$DA$79,(IF($A8=Nutrients!$B$77,Nutrients!$DA$77,Nutrients!$DA$78)))))))/((IF($A7=Nutrients!$B$8,Nutrients!$DA$8,Nutrients!$DA$9))-((IF($A8=Nutrients!$B$79,Nutrients!$DA$79,(IF($A8=Nutrients!$B$77,Nutrients!$DA$77,Nutrients!$DA$78))))))))","v":1622.5648380110952},{"$f":"IF(F5=\"\",\"\",((((F236-F297)*2000)+((SUM(F9:F229)-2000)*((IF($A8=Nutrients!$B$79,Nutrients!$DA$79,(IF($A8=Nutrients!$B$77,Nutrients!$DA$77,Nutrients!$DA$78)))))))/((IF($A7=Nutrients!$B$8,Nutrients!$DA$8,Nutrients!$DA$9))-((IF($A8=Nutrients!$B$79,Nutrients!$DA$79,(IF($A8=Nutrients!$B$77,Nutrients!$DA$77,Nutrients!$DA$78))))))))","v":1679.6960832539069},{"$f":"IF(G5=\"\",\"\",((((G236-G297)*2000)+((SUM(G9:G229)-2000)*((IF($A8=Nutrients!$B$79,Nutrients!$DA$79,(IF($A8=Nutrients!$B$77,Nutrients!$DA$77,Nutrients!$DA$78)))))))/((IF($A7=Nutrients!$B$8,Nutrients!$DA$8,Nutrients!$DA$9))-((IF($A8=Nutrients!$B$79,Nutrients!$DA$79,(IF($A8=Nutrients!$B$77,Nutrients!$DA$77,Nutrients!$DA$78))))))))","v":1707.9835561942639},null,{"$f":"IF(I5=\"\",\"\",((((I236-I297)*2000)+((SUM(I9:I229)-2000)*((IF($A8=Nutrients!$B$79,Nutrients!$DA$79,(IF($A8=Nutrients!$B$77,Nutrients!$DA$77,Nutrients!$DA$78)))))))/((IF($A7=Nutrients!$B$8,Nutrients!$DA$8,Nutrients!$DA$9))-((IF($A8=Nutrients!$B$79,Nutrients!$DA$79,(IF($A8=Nutrients!$B$77,Nutrients!$DA$77,Nutrients!$DA$78))))))))","v":1262.5708319833275},{"$f":"IF(J5=\"\",\"\",((((J236-J297)*2000)+((SUM(J9:J229)-2000)*((IF($A8=Nutrients!$B$79,Nutrients!$DA$79,(IF($A8=Nutrients!$B$77,Nutrients!$DA$77,Nutrients!$DA$78)))))))/((IF($A7=Nutrients!$B$8,Nutrients!$DA$8,Nutrients!$DA$9))-((IF($A8=Nutrients!$B$79,Nutrients!$DA$79,(IF($A8=Nutrients!$B$77,Nutrients!$DA$77,Nutrients!$DA$78))))))))","v":1376.734360688981},{"$f":"IF(K5=\"\",\"\",((((K236-K297)*2000)+((SUM(K9:K229)-2000)*((IF($A8=Nutrients!$B$79,Nutrients!$DA$79,(IF($A8=Nutrients!$B$77,Nutrients!$DA$77,Nutrients!$DA$78)))))))/((IF($A7=Nutrients!$B$8,Nutrients!$DA$8,Nutrients!$DA$9))-((IF($A8=Nutrients!$B$79,Nutrients!$DA$79,(IF($A8=Nutrients!$B$77,Nutrients!$DA$77,Nutrients!$DA$78))))))))","v":1475.6990038444633},{"$f":"IF(L5=\"\",\"\",((((L236-L297)*2000)+((SUM(L9:L229)-2000)*((IF($A8=Nutrients!$B$79,Nutrients!$DA$79,(IF($A8=Nutrients!$B$77,Nutrients!$DA$77,Nutrients!$DA$78)))))))/((IF($A7=Nutrients!$B$8,Nutrients!$DA$8,Nutrients!$DA$9))-((IF($A8=Nutrients!$B$79,Nutrients!$DA$79,(IF($A8=Nutrients!$B$77,Nutrients!$DA$77,Nutrients!$DA$78))))))))","v":1559.4973772311937},{"$f":"IF(M5=\"\",\"\",((((M236-M297)*2000)+((SUM(M9:M229)-2000)*((IF($A8=Nutrients!$B$79,Nutrients!$DA$79,(IF($A8=Nutrients!$B$77,Nutrients!$DA$77,Nutrients!$DA$78)))))))/((IF($A7=Nutrients!$B$8,Nutrients!$DA$8,Nutrients!$DA$9))-((IF($A8=Nutrients!$B$79,Nutrients!$DA$79,(IF($A8=Nutrients!$B$77,Nutrients!$DA$77,Nutrients!$DA$78))))))))","v":1616.5316724842694},{"$f":"IF(N5=\"\",\"\",((((N236-N297)*2000)+((SUM(N9:N229)-2000)*((IF($A8=Nutrients!$B$79,Nutrients!$DA$79,(IF($A8=Nutrients!$B$77,Nutrients!$DA$77,Nutrients!$DA$78)))))))/((IF($A7=Nutrients!$B$8,Nutrients!$DA$8,Nutrients!$DA$9))-((IF($A8=Nutrients!$B$79,Nutrients!$DA$79,(IF($A8=Nutrients!$B$77,Nutrients!$DA$77,Nutrients!$DA$78))))))))","v":1644.6080954769523},null,{"$f":"IF(P5=\"\",\"\",((((P236-P297)*2000)+((SUM(P9:P229)-2000)*((IF($A8=Nutrients!$B$79,Nutrients!$DA$79,(IF($A8=Nutrients!$B$77,Nutrients!$DA$77,Nutrients!$DA$78)))))))/((IF($A7=Nutrients!$B$8,Nutrients!$DA$8,Nutrients!$DA$9))-((IF($A8=Nutrients!$B$79,Nutrients!$DA$79,(IF($A8=Nutrients!$B$77,Nutrients!$DA$77,Nutrients!$DA$78))))))))","v":1200.3411482215076},{"$f":"IF(Q5=\"\",\"\",((((Q236-Q297)*2000)+((SUM(Q9:Q229)-2000)*((IF($A8=Nutrients!$B$79,Nutrients!$DA$79,(IF($A8=Nutrients!$B$77,Nutrients!$DA$77,Nutrients!$DA$78)))))))/((IF($A7=Nutrients!$B$8,Nutrients!$DA$8,Nutrients!$DA$9))-((IF($A8=Nutrients!$B$79,Nutrients!$DA$79,(IF($A8=Nutrients!$B$77,Nutrients!$DA$77,Nutrients!$DA$78))))))))","v":1313.7719595392193},{"$f":"IF(R5=\"\",\"\",((((R236-R297)*2000)+((SUM(R9:R229)-2000)*((IF($A8=Nutrients!$B$79,Nutrients!$DA$79,(IF($A8=Nutrients!$B$77,Nutrients!$DA$77,Nutrients!$DA$78)))))))/((IF($A7=Nutrients!$B$8,Nutrients!$DA$8,Nutrients!$DA$9))-((IF($A8=Nutrients!$B$79,Nutrients!$DA$79,(IF($A8=Nutrients!$B$77,Nutrients!$DA$77,Nutrients!$DA$78))))))))","v":1411.9704836794119},{"$f":"IF(S5=\"\",\"\",((((S236-S297)*2000)+((SUM(S9:S229)-2000)*((IF($A8=Nutrients!$B$79,Nutrients!$DA$79,(IF($A8=Nutrients!$B$77,Nutrients!$DA$77,Nutrients!$DA$78)))))))/((IF($A7=Nutrients!$B$8,Nutrients!$DA$8,Nutrients!$DA$9))-((IF($A8=Nutrients!$B$79,Nutrients!$DA$79,(IF($A8=Nutrients!$B$77,Nutrients!$DA$77,Nutrients!$DA$78))))))))","v":1496.128590017046},{"$f":"IF(T5=\"\",\"\",((((T236-T297)*2000)+((SUM(T9:T229)-2000)*((IF($A8=Nutrients!$B$79,Nutrients!$DA$79,(IF($A8=Nutrients!$B$77,Nutrients!$DA$77,Nutrients!$DA$78)))))))/((IF($A7=Nutrients!$B$8,Nutrients!$DA$8,Nutrients!$DA$9))-((IF($A8=Nutrients!$B$79,Nutrients!$DA$79,(IF($A8=Nutrients!$B$77,Nutrients!$DA$77,Nutrients!$DA$78))))))))","v":1552.3480796665817},{"$f":"IF(U5=\"\",\"\",((((U236-U297)*2000)+((SUM(U9:U229)-2000)*((IF($A8=Nutrients!$B$79,Nutrients!$DA$79,(IF($A8=Nutrients!$B$77,Nutrients!$DA$77,Nutrients!$DA$78)))))))/((IF($A7=Nutrients!$B$8,Nutrients!$DA$8,Nutrients!$DA$9))-((IF($A8=Nutrients!$B$79,Nutrients!$DA$79,(IF($A8=Nutrients!$B$77,Nutrients!$DA$77,Nutrients!$DA$78))))))))","v":1580.1165300402467},null,{"$f":"IF(W5=\"\",\"\",((((W236-W297)*2000)+((SUM(W9:W229)-2000)*((IF($A8=Nutrients!$B$79,Nutrients!$DA$79,(IF($A8=Nutrients!$B$77,Nutrients!$DA$77,Nutrients!$DA$78)))))))/((IF($A7=Nutrients!$B$8,Nutrients!$DA$8,Nutrients!$DA$9))-((IF($A8=Nutrients!$B$79,Nutrients!$DA$79,(IF($A8=Nutrients!$B$77,Nutrients!$DA$77,Nutrients!$DA$78))))))))","v":1138.1475327423341},{"$f":"IF(X5=\"\",\"\",((((X236-X297)*2000)+((SUM(X9:X229)-2000)*((IF($A8=Nutrients!$B$79,Nutrients!$DA$79,(IF($A8=Nutrients!$B$77,Nutrients!$DA$77,Nutrients!$DA$78)))))))/((IF($A7=Nutrients!$B$8,Nutrients!$DA$8,Nutrients!$DA$9))-((IF($A8=Nutrients!$B$79,Nutrients!$DA$79,(IF($A8=Nutrients!$B$77,Nutrients!$DA$77,Nutrients!$DA$78))))))))","v":1250.8535585686413},{"$f":"IF(Y5=\"\",\"\",((((Y236-Y297)*2000)+((SUM(Y9:Y229)-2000)*((IF($A8=Nutrients!$B$79,Nutrients!$DA$79,(IF($A8=Nutrients!$B$77,Nutrients!$DA$77,Nutrients!$DA$78)))))))/((IF($A7=Nutrients!$B$8,Nutrients!$DA$8,Nutrients!$DA$9))-((IF($A8=Nutrients!$B$79,Nutrients!$DA$79,(IF($A8=Nutrients!$B$77,Nutrients!$DA$77,Nutrients!$DA$78))))))))","v":1349.387926380854},{"$f":"IF(Z5=\"\",\"\",((((Z236-Z297)*2000)+((SUM(Z9:Z229)-2000)*((IF($A8=Nutrients!$B$79,Nutrients!$DA$79,(IF($A8=Nutrients!$B$77,Nutrients!$DA$77,Nutrients!$DA$78)))))))/((IF($A7=Nutrients!$B$8,Nutrients!$DA$8,Nutrients!$DA$9))-((IF($A8=Nutrients!$B$79,Nutrients!$DA$79,(IF($A8=Nutrients!$B$77,Nutrients!$DA$77,Nutrients!$DA$78))))))))","v":1432.4553721573238},{"$f":"IF(AA5=\"\",\"\",((((AA236-AA297)*2000)+((SUM(AA9:AA229)-2000)*((IF($A8=Nutrients!$B$79,Nutrients!$DA$79,(IF($A8=Nutrients!$B$77,Nutrients!$DA$77,Nutrients!$DA$78)))))))/((IF($A7=Nutrients!$B$8,Nutrients!$DA$8,Nutrients!$DA$9))-((IF($A8=Nutrients!$B$79,Nutrients!$DA$79,(IF($A8=Nutrients!$B$77,Nutrients!$DA$77,Nutrients!$DA$78))))))))","v":1488.0803029191954},{"$f":"IF(AB5=\"\",\"\",((((AB236-AB297)*2000)+((SUM(AB9:AB229)-2000)*((IF($A8=Nutrients!$B$79,Nutrients!$DA$79,(IF($A8=Nutrients!$B$77,Nutrients!$DA$77,Nutrients!$DA$78)))))))/((IF($A7=Nutrients!$B$8,Nutrients!$DA$8,Nutrients!$DA$9))-((IF($A8=Nutrients!$B$79,Nutrients!$DA$79,(IF($A8=Nutrients!$B$77,Nutrients!$DA$77,Nutrients!$DA$78))))))))","v":1515.3369017901809},null,{"$f":"IF(AD5=\"\",\"\",((((AD236-AD297)*2000)+((SUM(AD9:AD229)-2000)*((IF($A8=Nutrients!$B$79,Nutrients!$DA$79,(IF($A8=Nutrients!$B$77,Nutrients!$DA$77,Nutrients!$DA$78)))))))/((IF($A7=Nutrients!$B$8,Nutrients!$DA$8,Nutrients!$DA$9))-((IF($A8=Nutrients!$B$79,Nutrients!$DA$79,(IF($A8=Nutrients!$B$77,Nutrients!$DA$77,Nutrients!$DA$78))))))))","v":1076.0201232791078},{"$f":"IF(AE5=\"\",\"\",((((AE236-AE297)*2000)+((SUM(AE9:AE229)-2000)*((IF($A8=Nutrients!$B$79,Nutrients!$DA$79,(IF($A8=Nutrients!$B$77,Nutrients!$DA$77,Nutrients!$DA$78)))))))/((IF($A7=Nutrients!$B$8,Nutrients!$DA$8,Nutrients!$DA$9))-((IF($A8=Nutrients!$B$79,Nutrients!$DA$79,(IF($A8=Nutrients!$B$77,Nutrients!$DA$77,Nutrients!$DA$78))))))))","v":1189.0066369092604},{"$f":"IF(AF5=\"\",\"\",((((AF236-AF297)*2000)+((SUM(AF9:AF229)-2000)*((IF($A8=Nutrients!$B$79,Nutrients!$DA$79,(IF($A8=Nutrients!$B$77,Nutrients!$DA$77,Nutrients!$DA$78)))))))/((IF($A7=Nutrients!$B$8,Nutrients!$DA$8,Nutrients!$DA$9))-((IF($A8=Nutrients!$B$79,Nutrients!$DA$79,(IF($A8=Nutrients!$B$77,Nutrients!$DA$77,Nutrients!$DA$78))))))))","v":1286.5432745011917},{"$f":"IF(AG5=\"\",\"\",((((AG236-AG297)*2000)+((SUM(AG9:AG229)-2000)*((IF($A8=Nutrients!$B$79,Nutrients!$DA$79,(IF($A8=Nutrients!$B$77,Nutrients!$DA$77,Nutrients!$DA$78)))))))/((IF($A7=Nutrients!$B$8,Nutrients!$DA$8,Nutrients!$DA$9))-((IF($A8=Nutrients!$B$79,Nutrients!$DA$79,(IF($A8=Nutrients!$B$77,Nutrients!$DA$77,Nutrients!$DA$78))))))))","v":1368.5939113939482},{"$f":"IF(AH5=\"\",\"\",((((AH236-AH297)*2000)+((SUM(AH9:AH229)-2000)*((IF($A8=Nutrients!$B$79,Nutrients!$DA$79,(IF($A8=Nutrients!$B$77,Nutrients!$DA$77,Nutrients!$DA$78)))))))/((IF($A7=Nutrients!$B$8,Nutrients!$DA$8,Nutrients!$DA$9))-((IF($A8=Nutrients!$B$79,Nutrients!$DA$79,(IF($A8=Nutrients!$B$77,Nutrients!$DA$77,Nutrients!$DA$78))))))))","v":1422.9927282741539},{"$f":"IF(AI5=\"\",\"\",((((AI236-AI297)*2000)+((SUM(AI9:AI229)-2000)*((IF($A8=Nutrients!$B$79,Nutrients!$DA$79,(IF($A8=Nutrients!$B$77,Nutrients!$DA$77,Nutrients!$DA$78)))))))/((IF($A7=Nutrients!$B$8,Nutrients!$DA$8,Nutrients!$DA$9))-((IF($A8=Nutrients!$B$79,Nutrients!$DA$79,(IF($A8=Nutrients!$B$77,Nutrients!$DA$77,Nutrients!$DA$78))))))))","v":1449.5246113805815},null,{"$f":"IF(AK5=\"\",\"\",((((AK236-AK297)*2000)+((SUM(AK9:AK229)-2000)*((IF($A8=Nutrients!$B$79,Nutrients!$DA$79,(IF($A8=Nutrients!$B$77,Nutrients!$DA$77,Nutrients!$DA$78)))))))/((IF($A7=Nutrients!$B$8,Nutrients!$DA$8,Nutrients!$DA$9))-((IF($A8=Nutrients!$B$79,Nutrients!$DA$79,(IF($A8=Nutrients!$B$77,Nutrients!$DA$77,Nutrients!$DA$78))))))))","v":1009.516971310784},{"$f":"IF(AL5=\"\",\"\",((((AL236-AL297)*2000)+((SUM(AL9:AL229)-2000)*((IF($A8=Nutrients!$B$79,Nutrients!$DA$79,(IF($A8=Nutrients!$B$77,Nutrients!$DA$77,Nutrients!$DA$78)))))))/((IF($A7=Nutrients!$B$8,Nutrients!$DA$8,Nutrients!$DA$9))-((IF($A8=Nutrients!$B$79,Nutrients!$DA$79,(IF($A8=Nutrients!$B$77,Nutrients!$DA$77,Nutrients!$DA$78))))))))","v":1126.8668872035678},{"$f":"IF(AM5=\"\",\"\",((((AM236-AM297)*2000)+((SUM(AM9:AM229)-2000)*((IF($A8=Nutrients!$B$79,Nutrients!$DA$79,(IF($A8=Nutrients!$B$77,Nutrients!$DA$77,Nutrients!$DA$78)))))))/((IF($A7=Nutrients!$B$8,Nutrients!$DA$8,Nutrients!$DA$9))-((IF($A8=Nutrients!$B$79,Nutrients!$DA$79,(IF($A8=Nutrients!$B$77,Nutrients!$DA$77,Nutrients!$DA$78))))))))","v":1223.3442863615398},{"$f":"IF(AN5=\"\",\"\",((((AN236-AN297)*2000)+((SUM(AN9:AN229)-2000)*((IF($A8=Nutrients!$B$79,Nutrients!$DA$79,(IF($A8=Nutrients!$B$77,Nutrients!$DA$77,Nutrients!$DA$78)))))))/((IF($A7=Nutrients!$B$8,Nutrients!$DA$8,Nutrients!$DA$9))-((IF($A8=Nutrients!$B$79,Nutrients!$DA$79,(IF($A8=Nutrients!$B$77,Nutrients!$DA$77,Nutrients!$DA$78))))))))","v":1304.1556669741105},{"$f":"IF(AO5=\"\",\"\",((((AO236-AO297)*2000)+((SUM(AO9:AO229)-2000)*((IF($A8=Nutrients!$B$79,Nutrients!$DA$79,(IF($A8=Nutrients!$B$77,Nutrients!$DA$77,Nutrients!$DA$78)))))))/((IF($A7=Nutrients!$B$8,Nutrients!$DA$8,Nutrients!$DA$9))-((IF($A8=Nutrients!$B$79,Nutrients!$DA$79,(IF($A8=Nutrients!$B$77,Nutrients!$DA$77,Nutrients!$DA$78))))))))","v":1357.440248276268},{"$f":"IF(AP5=\"\",\"\",((((AP236-AP297)*2000)+((SUM(AP9:AP229)-2000)*((IF($A8=Nutrients!$B$79,Nutrients!$DA$79,(IF($A8=Nutrients!$B$77,Nutrients!$DA$77,Nutrients!$DA$78)))))))/((IF($A7=Nutrients!$B$8,Nutrients!$DA$8,Nutrients!$DA$9))-((IF($A8=Nutrients!$B$79,Nutrients!$DA$79,(IF($A8=Nutrients!$B$77,Nutrients!$DA$77,Nutrients!$DA$78))))))))","v":1383.7065117288846},null,{"$f":"IF(AR5=\"\",\"\",((((AR236-AR297)*2000)+((SUM(AR9:AR229)-2000)*((IF($A8=Nutrients!$B$79,Nutrients!$DA$79,(IF($A8=Nutrients!$B$77,Nutrients!$DA$77,Nutrients!$DA$78)))))))/((IF($A7=Nutrients!$B$8,Nutrients!$DA$8,Nutrients!$DA$9))-((IF($A8=Nutrients!$B$79,Nutrients!$DA$79,(IF($A8=Nutrients!$B$77,Nutrients!$DA$77,Nutrients!$DA$78))))))))","v":949.05407749310336},{"$f":"IF(AS5=\"\",\"\",((((AS236-AS297)*2000)+((SUM(AS9:AS229)-2000)*((IF($A8=Nutrients!$B$79,Nutrients!$DA$79,(IF($A8=Nutrients!$B$77,Nutrients!$DA$77,Nutrients!$DA$78)))))))/((IF($A7=Nutrients!$B$8,Nutrients!$DA$8,Nutrients!$DA$9))-((IF($A8=Nutrients!$B$79,Nutrients!$DA$79,(IF($A8=Nutrients!$B$77,Nutrients!$DA$77,Nutrients!$DA$78))))))))","v":1064.6992757716971},{"$f":"IF(AT5=\"\",\"\",((((AT236-AT297)*2000)+((SUM(AT9:AT229)-2000)*((IF($A8=Nutrients!$B$79,Nutrients!$DA$79,(IF($A8=Nutrients!$B$77,Nutrients!$DA$77,Nutrients!$DA$78)))))))/((IF($A7=Nutrients!$B$8,Nutrients!$DA$8,Nutrients!$DA$9))-((IF($A8=Nutrients!$B$79,Nutrients!$DA$79,(IF($A8=Nutrients!$B$77,Nutrients!$DA$77,Nutrients!$DA$78))))))))","v":1159.9047612317727},{"$f":"IF(AU5=\"\",\"\",((((AU236-AU297)*2000)+((SUM(AU9:AU229)-2000)*((IF($A8=Nutrients!$B$79,Nutrients!$DA$79,(IF($A8=Nutrients!$B$77,Nutrients!$DA$77,Nutrients!$DA$78)))))))/((IF($A7=Nutrients!$B$8,Nutrients!$DA$8,Nutrients!$DA$9))-((IF($A8=Nutrients!$B$79,Nutrients!$DA$79,(IF($A8=Nutrients!$B$77,Nutrients!$DA$77,Nutrients!$DA$78))))))))","v":1238.9553256084312},{"$f":"IF(AV5=\"\",\"\",((((AV236-AV297)*2000)+((SUM(AV9:AV229)-2000)*((IF($A8=Nutrients!$B$79,Nutrients!$DA$79,(IF($A8=Nutrients!$B$77,Nutrients!$DA$77,Nutrients!$DA$78)))))))/((IF($A7=Nutrients!$B$8,Nutrients!$DA$8,Nutrients!$DA$9))-((IF($A8=Nutrients!$B$79,Nutrients!$DA$79,(IF($A8=Nutrients!$B$77,Nutrients!$DA$77,Nutrients!$DA$78))))))))","v":1291.8912554771791},{"$f":"IF(AW5=\"\",\"\",((((AW236-AW297)*2000)+((SUM(AW9:AW229)-2000)*((IF($A8=Nutrients!$B$79,Nutrients!$DA$79,(IF($A8=Nutrients!$B$77,Nutrients!$DA$77,Nutrients!$DA$78)))))))/((IF($A7=Nutrients!$B$8,Nutrients!$DA$8,Nutrients!$DA$9))-((IF($A8=Nutrients!$B$79,Nutrients!$DA$79,(IF($A8=Nutrients!$B$77,Nutrients!$DA$77,Nutrients!$DA$78))))))))","v":1317.8958969772148}]
["Soybean Meal, Dehull, Sol Extr",{"$f":"IF(B5=\"\",\"\",2000-SUM(B9:B218)-B7)","v":618.86019033712819},508.40076632216437,413.17469083498395,332.93731204963137,279.42017973722363,252.24678261106305,null,{"$f":"IF(I5=\"\",\"\",2000-SUM(I9:I220)-I7)","v":579.72796148471252},470.46274825960973,376.21853261661499,296.60029079575452,243.04676151850572,216.19411177167808,null,{"$f":"IF(P5=\"\",\"\",2000-SUM(P9:P220)-P7)","v":542.13484627731373},433.59129575908241,340.11627481056735,260.13961826990953,207.22923734472192,180.63499831537501,null,{"$f":"IF(W5=\"\",\"\",2000-SUM(W9:W220)-W7)","v":504.53846175648732},396.71969672966043,302.89852594704598,223.9650185018395,171.48701409210821,144.98019862401816,null,{"$f":"IF(AD5=\"\",\"\",2000-SUM(AD9:AD220)-AD7)","v":466.85617797046848},358.75544458911759,265.94433176741268,187.78622681901493,135.40874902024802,109.06768562359434,null,{"$f":"IF(AK5=\"\",\"\",2000-SUM(AK9:AK220)-AK7)","v":433.54501165180579},321.10519429480996,229.13331990706433,151.34069727197857,99.228372943307704,73.152006424227466,null,{"$f":"IF(AR5=\"\",\"\",2000-SUM(AR9:AR220)-AR7)","v":394.21371623587459},283.46315798291153,192.53704041308356,114.79722758459206,63.052883145728174,37.237757116505463]
[{"$f":"Nutrients!B8","v":"Corn"}]
[{"$f":"Nutrients!B9","v":"Milo"}]
[{"$f":"Nutrients!B10","v":"Alfalfa Meal"}]
[{"$f":"Nutrients!B11","v":"Bakery Meal"}]
[{"$f":"Nutrients!B12","v":"Barley"}]
[{"$f":"Nutrients!B13","v":"Barley, Hulless"}]
[{"$f":"Nutrients!B14","v":"Beans, Faba"}]
[{"$f":"Nutrients!B15","v":"Blood Meal"}]
[{"$f":"Nutrients!B16","v":"Blood Plasma"}]
[{"$f":"Nutrients!B17","v":"Brewers Grain"}]
[{"$f":"Nutrients!B18","v":"Canola, Full Fat"}]
[{"$f":"Nutrients!B19","v":"Canola Meal, Expelled"}]
[{"$f":"Nutrients!B20","v":"Canola Meal, Solvent Extracted"}]
[{"$f":"Nutrients!B21","v":"Casava Meal"}]
[{"$f":"Nutrients!B22","v":"Citrus Pulp"}]
[{"$f":"Nutrients!B23","v":"Copra Meal"}]
[{"$f":"Nutrients!B24","v":"Corn, Yellow Dent"}]
[{"$f":"Nutrients!B25","v":"Corn, Nutridense"}]
[{"$f":"Nutrients!B26","v":"Corn Bran"}]
[{"$f":"Nutrients!B27","v":"Corn DDG"}]
[{"$f":"Nutrients!B28","v":"Corn DDGS, >10% Oil"}]
[{"$f":"Nutrients!B29","v":"Corn DDGS, >6 and <9% Oil"}]
[{"$f":"Nutrients!B30","v":"Corn DDGS, <4% Oil"}]
[{"$f":"Nutrients!B31","v":"Corn HP DDG"}]
[{"$f":"Nutrients!B32","v":"Corn Germ"}]
[{"$f":"Nutrients!B33","v":"Corn Germ Meal"}]
[{"$f":"Nutrients!B34","v":"Corn Gluten Feed"}]
[{"$f":"Nutrients!B35","v":"Corn Gluten Meal"}]
[{"$f":"Nutrients!B36","v":"Corn Grits, Hominy Feed"}]
[{"$f":"Nutrients!B37","v":"Cotton Seeds, Fullfat"}]
[{"$f":"Nutrients!B38","v":"Cotton Seed Meal"}]
[{"$f":"Nutrients!B39","v":"Feather Meal"}]
[{"$f":"Nutrients!B40","v":"Fish Meal Combined"}]
[{"$f":"Nutrients!B41","v":"Flaxseed"}]
[{"$f":"Nutrients!B42","v":"Flaxseed Meal"}]
[{"$f":"Nutrients!B43","v":"Lupins"}]
[{"$f":"Nutrients!B44","v":"Meat Meal"}]
[{"$f":"Nutrients!B45","v":"Meat and Bone Meal, P >4%"}]
[{"$f":"Nutrients!B46","v":"Milk, Casein"}]
[{"$f":"Nutrients!B47","v":"Milk, Lactose"}]
[{"$f":"Nutrients!B48","v":"Milk, Skim Milk Powder"}]
[{"$f":"Nutrients!B49","v":"Milk, Whey Powder"}]
[{"$f":"Nutrients!B50","v":"Milk, Whey Permeate, 80% lactose"}]
[{"$f":"Nutrients!B51","v":"Milk, Whey Protein Concentrate"}]
[{"$f":"Nutrients!B52","v":"Millet"}]
[{"$f":"Nutrients!B53","v":"Molasses, Sugarbeet"}]
[{"$f":"Nutrients!B54","v":"Molasses, Sugarcane"}]
[{"$f":"Nutrients!B55","v":"Oats"}]
[{"$f":"Nutrients!B56","v":"Oats, Naked"}]
[{"$f":"Nutrients!B57","v":"Oat Groats"}]
[{"$f":"Nutrients!B58","v":"Peanut Meal, Expelled"}]
[{"$f":"Nutrients!B59","v":"Peanut Meal, Extracted"}]
[{"$f":"Nutrients!B60","v":"Peas, Field Peas"}]
[{"$f":"Nutrients!B61","v":"Pea Protein Concentrate"}]
[{"$f":"Nutrients!B62","v":"Potato Protein Concentrate"}]
[{"$f":"Nutrients!B63","v":"Poultry Byproduct"}]
[{"$f":"Nutrients!B64","v":"Rice"}]
[{"$f":"Nutrients!B65","v":"Rice Bran"}]
[{"$f":"Nutrients!B66","v":"Rice Bran, Defatted"}]
[{"$f":"Nutrients!B67","v":"Rice, Broken"}]
[{"$f":"Nutrients!B68","v":"Rye"}]
[{"$f":"Nutrients!B69","v":"Sesame Meal"}]
[{"$f":"Nutrients!B70","v":"Sorghum"}]
[{"$f":"Nutrients!B71","v":"Soybeans, Full Fat"}]
[{"$f":"Nutrients!B72","v":"Soybeans, High Protein, Full Fat"}]
[{"$f":"Nutrients!B73","v":"Soybeans, Low Oligosaccharide, Full Fat"}]
[{"$f":"Nutrients!B74","v":"Soybean Meal, High Protein, Expelled"}]
[{"$f":"Nutrients!B75","v":"Soybean Meal, Low Oligosacch, Expell"}]
[{"$f":"Nutrients!B76","v":"Soybean Meal, Expelled"}]
[{"$f":"Nutrients!B77","v":"Soybean Meal, Dehulled, Expelled"}]
[{"$f":"Nutrients!B78","v":"Soybean Meal, Solvent Extracted"}]
[{"$f":"Nutrients!B79","v":"Soybean Meal, Dehull, Sol Extr"}]
[{"$f":"Nutrients!B80","v":"Soybean Meal, High Prot, Dehull, Solv Extr"}]
[{"$f":"Nutrients!B81","v":"Soybean Meal, Enzyme Treated"}]
[{"$f":"Nutrients!B82","v":"Soybean Meal, Fermented"}]
[{"$f":"Nutrients!B83","v":"Soybean Hulls"}]
[{"$f":"Nutrients!B84","v":"Soy Protein Concentrate"}]
[{"$f":"Nutrients!B85","v":"Soy Protein Isolate"}]
[{"$f":"Nutrients!B86","v":"Sugar Beet Pulp"}]
[{"$f":"Nutrients!B87","v":"Sunflower, Full Fat"}]
[{"$f":"Nutrients!B88","v":"Sunflower Meal, Solvent Extracted"}]
[{"$f":"Nutrients!B89","v":"Sunflower Meal, Dehulled, Solvent Extr"}]
[{"$f":"Nutrients!B90","v":"Triticale"}]
[{"$f":"Nutrients!B91","v":"Wheat, Hard Red"}]
[{"$f":"Nutrients!B92","v":"Wheat, Soft Red"}]
[{"$f":"Nutrients!B93","v":"Wheat Bran"}]
[{"$f":"Nutrients!B94","v":"Wheat Middlings"}]
[{"$f":"Nutrients!B95","v":"Wheat Shorts"}]
[{"$f":"Nutrients!B96","v":"Wheat DDGS"}]
[{"$f":"Nutrients!B97","v":"Yeast, Brewers' Yeast"}]
[{"$f":"Nutrients!B98","v":"Yeast, Single Cell Protein"}]
[{"$f":"Nutrients!B99","v":"Beef Tallow"}]
[{"$f":"Nutrients!B100","v":"Choice White Grease"}]
[{"$f":"Nutrients!B101","v":"Poultry Fat"}]
[{"$f":"Nutrients!B102","v":"Lard"}]
[{"$f":"Nutrients!B103","v":"Restaurant Grease"}]
[{"$f":"Nutrients!B104","v":"Canola oil"}]
[{"$f":"Nutrients!B105","v":"Coconut oil"}]
[{"$f":"Nutrients!B106","v":"Corn oil"}]
[{"$f":"Nutrients!B107","v":"Palm Kernel oil"}]
[{"$f":"Nutrients!B108","v":"Soybean oil"}]
[{"$f":"Nutrients!B109","v":"Soybean Lecithin"}]
[{"$f":"Nutrients!B110","v":"Sunflower oil"}]
[{"$f":"Nutrients!B111","v":"Fat, A/V blend"}]
["Calcium carbonate",20.650850091543401,19.206,19.148185418768257,18.64855351548341,18.080501293847359,17.747857076024747,null,21.302725380416337,19.896000000000001,19.854046420115569,19.192483222547349,18.682939713542989,18.307407625021,null,22.005524349635031,20.596522561060773,20.564824391214646,19.90194296254014,19.392906410118851,19.018086518029566,null,22.675524349635033,21.266522561060775,21.234824391214648,20.571942962540142,20.062906410118853,19.821084135767716,null,23.36521759887999,21.957696360984666,21.92941656439486,21.272195408740227,21.087790236012584,20.994905894456828,null,24.059535885866481,22.627696360984668,22.599416564394861,22.209557883861148,22.260646310838833,22.168684745520736,null,24.733725119478365,23.317344104753687,23.295221188143067,23.393368936927086,23.433612856971386,23.342500322011716]
[{"$f":"Nutrients!B113","v":"Calcium phosphate (tricalcium)"}]
[{"$f":"Nutrients!B114","v":"Calcium phosphate (dicalcium)"}]
["Calcium phosphate (monocalcium)",13.279340186607511,10.560038663342741,7.7098828288906036,5.7362235571478868,4.249911842640179,3.6237362366975527,null,12.059340186607511,9.3400386633427406,6.4898828288906039,4.2618749180561419,2.8506400350413044,2.1485696763155113,null,10.83934018660751,8.1200386633427399,5.2698828288906041,3.0418749180561422,1.6306400350413044,0.92856967631551135,null,9.6193401866075092,6.9000386633427402,4.0498828288906044,1.8218749180561422,0.41064003504130442,null,null,8.3993401866075086,5.6800386633427404,2.8298828288906046,0.60187491805614224,null,null,null,7.1793401866075088,4.4600386633427407,1.6098828288906046,null,null,null,null,5.9593401866075091,3.2400386633427409,0.38988282889060466]
[{"$f":"Nutrients!B116","v":"Calcium sulfate, dihydrate"}]
[{"$f":"Nutrients!B117","v":"Limestone, ground"}]
[{"$f":"Nutrients!B118","v":"Magnesium phosphate"}]
[{"$f":"Nutrients!B119","v":"Sodium carbonate"}]
[{"$f":"Nutrients!B120","v":"Sodium bicarbonate"}]
[{"$f":"Nutrients!B121","v":"Sodium chloride"},7,7,7,7,7,7,null,7,7,7,7,7,7,null,7,7,7,7,7,7,null,7,7,7,7,7,7,null,7,7,7,7,7,7,null,7,7,7,7,7,7,null,7,7,7,7,7,7]
[{"$f":"Nutrients!B122","v":"Sodium phosphate, monobasic"}]
[{"$f":"Nutrients!B123","v":"Sodium sulfate, decahydrate"}]
["L-Lys-HCl",6.3084820001521269,6.2433597724335907,6.1008877821794973,6.0262980797710428,5.9214818115557355,5.7904970568511782,null,6.8584820001521267,6.7933597724335906,6.6508877821794972,6.5762980797710426,6.4714818115557353,6.340497056851178,null,7.4084820001521265,7.3433597724335904,7.200887782179497,7.1262980797710425,7.0214818115557351,6.8904970568511779,null,7.9584820001521264,7.8933597724335902,7.7508877821794968,7.6762980797710423,7.571481811555735,7.4404970568511777,null,8.5084820001521262,8.44335977243359,8.3008877821794975,8.226298079771043,8.1214818115557357,7.9904970568511775,null,9.0584820001521269,8.9933597724335907,8.8508877821794982,8.7762980797710437,8.6714818115557364,8.5404970568511782,null,9.6084820001521276,9.5433597724335915,9.4008877821794989,9.3262980797710444,9.2214818115557371,9.0904970568511789]
["DL-Met",2.0001072741250949,1.4142932363875236,0.86934747110785748,0.597281406401727,0.26418732884583351,0.20625243191767928,null,1.7701072741250949,1.1842932363875236,0.65309697440645997,0.38218237220779228,4.8849705104336741E-2,null,null,1.550107274125095,0.97762432561587609,0.43309697440646,0.16218237220779227,null,null,null,1.330107274125095,0.75762432561587612,0.22340313648572985,null,null,null,null,1.110107274125095,0.53762432561587614,null,null,null,null,null,0.89010727412509505,0.31762432561587617,null,null,null,null,null,0.67010727412509508,9.7624325615876167E-2]
["L-Thr",2.1021642542029664,1.8931061779303802,1.6694885978130205,1.6715266713984547,1.5185483019032111,1.5481920365803807,null,2.0221642542029663,1.8131061779303801,1.5894885978130204,1.5915266713984546,1.438548301903211,1.4681920365803807,null,1.9421642542029662,1.73310617793038,1.5094885978130204,1.5115266713984545,1.358548301903211,1.3881920365803806,null,1.8621642542029662,1.6531061779303799,1.4294885978130203,1.4315266713984545,1.2785483019032109,1.3081920365803805,null,1.7821642542029661,1.5731061779303799,1.3494885978130202,1.3515266713984544,1.1985483019032108,1.2281920365803805,null,1.702164254202966,1.4931061779303798,1.2694885978130201,1.2715266713984543,1.1185483019032108,1.1481920365803804,null,1.6221642542029659,1.4131061779303797,1.1894885978130201,1.1915266713984543,1.0385483019032107,1.0681920365803803]
["L-Trp",0.1583874364560095,0.24609320131494719,0.31506093551644743,0.36796670907097156,0.39910643007729607,0.40312635660152313,null,0.23838743645600952,0.32609320131494718,0.39506093551644744,0.44796670907097158,0.47910643007729609,0.48312635660152314,null,0.32838743645600954,0.4160932013149472,0.48506093551644747,0.53796670907097155,0.56910643007729611,0.57312635660152311,null,0.41838743645600951,0.50609320131494717,0.57506093551644744,0.62796670907097152,0.65910643007729608,0.66312635660152308,null,0.50838743645600948,0.59609320131494714,0.65271795811769306,0.71796670907097149,0.74070235612654567,0.74410800793571552,null,0.59838743645600945,0.68609320131494711,0.74271795811769303,0.79625311888019668,0.83070235612654564,0.83410800793571549,null,0.68838743645600942,0.77609320131494708,0.832717958117693,0.88625311888019664,0.91221840666227716,0.91515649083652495]
["L-Val"]
[{"$f":"Nutrients!B129","v":"L-Ile"}]
[{"$f":"Nutrients!B130","v":"Methionine hydroxy analog"}]
[{"$f":"Nutrients!B131","v":"Glutamine"}]
[{"$f":"Nutrients!B132","v":"Glutamic acid"}]
[{"$f":"Nutrients!B133","v":"Biolys"}]
[{"$f":"Nutrients!B134","v":"Liquid lysine 60%"}]
[{"$f":"Nutrients!B135","v":"MHA dry"}]
[{"$f":"Nutrients!B136","v":"Paylean, 9 g/lb"}]
[{"$f":"Nutrients!B137","v":"Tribasic copper chloride"}]
[{"$f":"Nutrients!B138","v":"2018 Starter base mix"}]
[{"$f":"Nutrients!B139","v":"2018 Grow-finish base mix"}]
[{"$f":"Nutrients!B140","v":"Developer base mix"}]
[{"$f":"Nutrients!B141","v":"2018 Sow base mix"}]
[{"$f":"Nutrients!B142","v":"Vitamin premix with phytase"}]
[{"$f":"Nutrients!B143","v":"Trace mineral premix"},3,3,2.5,2,1.5,1.5,null,3,3,2.5,2,1.5,1.5,null,3,3,2.5,2,1.5,1.5,null,3,3,2.5,2,1.5,1.5,null,3,3,2.5,2,1.5,1.5,null,3,3,2.5,2,1.5,1.5,null,3,3,2.5,2,1.5,1.5]
[{"$f":"Nutrients!B144","v":"Sow add pack"}]
[{"$f":"Nutrients!B145","v":"Vitamin premix without phytase"},3,3,2.5,2,1.5,1.5,null,3,3,2.5,2,1.5,1.5,null,3,3,2.5,2,1.5,1.5,null,3,3,2.5,2,1.5,1.5,null,3,3,2.5,2,1.5,1.5,null,3,3,2.5,2,1.5,1.5,null,3,3,2.5,2,1.5,1.5]
[{"$f":"Nutrients!B146","v":"GF DDGS Base Mix"}]
[{"$f":"Nutrients!B147","v":"GF synthetics Base Mix"}]
[{"$f":"Nutrients!B148","v":"Choline chloride 60%"}]
[{"$f":"Nutrients!B149","v":"Natuphos 600"}]
[{"$f":"Nutrients!B150","v":"Natuphos 1200"}]
[{"$f":"Nutrients!B151","v":"Optiphos 2000"}]
[{"$f":"Nutrients!B152","v":"Phyzyme 1200"}]
[{"$f":"Nutrients!B153","v":"Phyzyme 5000"}]
[{"$f":"Nutrients!B154","v":"Ronozyme Hiphos GT (10,000)"}]
[{"$f":"Nutrients!B155","v":"Ronozyme Hiphos M (50,000)"}]
[{"$f":"Nutrients!B156","v":"Ronozyme HiPhos 2700"},0.45,0.45,0.45,0.45,0.45,0.45,null,0.45,0.45,0.45,0.45,0.45,0.45,null,0.45,0.45,0.45,0.45,0.45,0.45,null,0.45,0.45,0.45,0.45,0.45,0.45,null,0.45,0.45,0.45,0.45,0.45,0.45,null,0.45,0.45,0.45,0.45,0.45,0.45,null,0.45,0.45,0.45,0.45,0.45,0.45]
[{"$f":"Nutrients!B157","v":"Zinc oxide"}]
[{"$f":"Nutrients!B158","v":"Copper sulfate"}]
[{"$f":"Nutrients!B159","v":"Potassium chloride"}]
[{"$f":"Nutrients!B160","v":"Calcium chloride"}]
[{"$f":"Nutrients!B161","v":"Acidifier"}]
[{"$f":"Nutrients!B162","v":"Vitamin E, 20,000 IU"}]
[{"$f":"Nutrients!B163","v":"Other ingredient"}]
[{"$f":"Nutrients!B164","v":"DPS 50"}]
[{"$f":"Nutrients!B165","v":"PEP2+"}]
[{"$f":"Nutrients!B166","v":"PEP NS"}]
[{"$f":"Nutrients!B167","v":"Vitamin premix (2x) with phytase"}]
[{"$f":"Nutrients!B168","v":"Vitamin premix (2x) without phytase"}]
[{"$f":"Nutrients!B169","v":"Corn DDGS, 10.5% Oil"}]
[{"$f":"Nutrients!B170","v":"Corn DDGS, 7.5% Oil"}]
[{"$f":"Nutrients!B171","v":"Corn DDGS, 4.5% Oil"}]
[{"$f":"Nutrients!B172","v":"MEPRO Hubbard"}]
[{"$f":"Nutrients!B173","v":"HP 300 Apr 2022 loadings"}]
[{"$f":"Nutrients!B174","v":"Glycine"}]
[{"$f":"Nutrients!B175","v":"Phase 2 supplement 2018"}]
[{"$f":"Nutrients!B176","v":"Fermex 200"}]
[{"$f":"Nutrients!B177","v":"Soybean meal with 88% NE of corn"}]
[{"$f":"Nutrients!B178","v":"Blue Dye NFP"}]
[{"$f":"Nutrients!B179","v":"HP 300 2022 NFP"}]
[{"$f":"Nutrients!B180","v":"AX3 Digest NFP"}]
[{"$f":"Nutrients!B181","v":"Phase 2 supplement 2018 NFP"}]
[{"$f":"Nutrients!B182","v":"Femex 200 NFP"}]
[{"$f":"Nutrients!B183","v":"NFP Soybean meal w/88% NE of corn "}]
[{"$f":"Nutrients!B184","v":"AV-E Digest NFP"}]
[{"$f":"Nutrients!B185","v":"QFP Cereal Blend NFP"}]
[{"$f":"Nutrients!B186","v":"FXP Ani-Tek NFP"}]
[{"$f":"Nutrients!B187","v":"NFP VTM Grower (2021)"}]
[{"$f":"Nutrients!B188","v":"NFP VTM Sow (2021)"}]
[{"$f":"Nutrients!B189","v":"VevoVitall NFP"}]
[{"$f":"Nutrients!B190","v":"MEPRO NFP"}]
[{"$f":"Nutrients!B191","v":"AlphaGal 280 P NFP"}]
[{"$f":"Nutrients!B192","v":"NFP Custom Manganese "}]
[{"$f":"Nutrients!B193","v":"Fat Build R2 All Veg 4000 NFP"}]
[{"$f":"Nutrients!B194","v":"LipoVital GL 90 NFP"}]
[{"$f":"Nutrients!B195","v":"NFP Custom Zinc"}]
[{"$f":"Nutrients!B196","v":"THRPRO-L Threonine 80% NFP"}]
[{"$f":"Nutrients!B197","v":"Copper Chloride Intellibond TBCC NFP"}]
[{"$f":"Nutrients!B198","v":"DDGS 7.5% Oil Green Plains NFP"}]
[{"$f":"Nutrients!B199","v":"NHF GF VTM 2#"}]
[{"$f":"Nutrients!B200","v":"Hubbard Vit Premix "}]
[{"$f":"Nutrients!B201","v":"Hubbard TMP"}]
[{"$f":"Nutrients!B202","v":"Inorganic Se 600 ppm Hubbard"}]
[{"$f":"Nutrients!B203","v":"Quantum Blue  5G Hubbard"}]
[{"$f":"Nutrients!B204","v":"TASA Prime meal Hubbard"}]
[{"$f":"Nutrients!B205","v":"TASA Swine Hubbard"}]
[{"$f":"Nutrients!B206","v":"TASA fish solubles Hubbard"}]
[{"$f":"Nutrients!B207","v":"Mepro + TASA additive Hubbard"}]
[{"$f":"Nutrients!B208","v":"TASA Prime + TASA additive Hubbard"}]
[{"$f":"Nutrients!B209","v":"NHF SOW VTM 4# 2022"}]
[{"$f":"Nutrients!B210","v":"ThrPro "}]
[{"$f":"Nutrients!B211","v":"NHF Optiphos Plus 2500 G"}]
[{"$f":"Nutrients!B212","v":"NHF Corn DDGS, Valero, Aurora"}]
[{"$f":"Nutrients!B213","v":"HP 300 Hubbard"}]
[{"$f":"Nutrients!B214","v":"NHF Corn DDGS, Illuminate for Aurora"}]
[{"$f":"Nutrients!B215","v":"NFP Corn DDGS, MO analysis"}]
[{"$f":"Nutrients!B216","v":"NFP Smizyme 2500"}]
[{"$f":"Nutrients!B217","v":"NHF HP300 2022 loadings"}]
[{"$f":"Nutrients!B218","v":"NHF Liquid Lys 55%"}]
[{"$f":"Nutrients!B219","v":"Corn DDGS with varying energy"},null,null,null,null,null,null,null,100,100,100,100,100,100,null,200,200,200,200,200,200,null,300,300,300,300,300,300,null,400,400,400,400,400,400,null,500,500,500,500,500,500,null,600,600,600,600,600,600]
[{"$f":"Nutrients!B220","v":"Other ingredient"}]
[{"$f":"Nutrients!B221","v":"Other ingredient"}]
[{"$f":"Nutrients!B222","v":"Other ingredient"}]
[{"$f":"Nutrients!B223","v":"Other ingredient"}]
[{"$f":"Nutrients!B224","v":"Other ingredient"}]
[{"$f":"Nutrients!B225","v":"Other ingredient"}]
[{"$f":"Nutrients!B226","v":"Other ingredient"}]
[{"$f":"Nutrients!B227","v":"Other ingredient"}]
[{"$f":"Nutrients!B228","v":"Other ingredient"}]
["TOTAL",{"$f":"SUM(B7:B229)","v":2000},2000,2000,2000,2000,1999.9999999999998,null,{"$f":"SUM(I7:I229)","v":2000.0000000000002},2000,2000,1999.9999999999998,2000.0000000000002,2000,null,{"$f":"SUM(P7:P229)","v":2000.0000000000002},1999.9999999999998,2000,2000.0000000000002,2000.0000000000002,2000,null,{"$f":"SUM(W7:W229)","v":2000.0000000000002},2000,2000,2000,2000,1999.9999999999998,null,{"$f":"SUM(AD7:AD229)","v":2000},2000.0000000000002,1999.9999999999998,2000,2000,2000,null,{"$f":"SUM(AK7:AK229)","v":2000},2000,2000.0000000000002,2000.0000000000002,2000,2000.0000000000002,null,{"$f":"SUM(AR7:AR229)","v":2000},2000,2000.0000000000005,2000,2000,2000.0000000000002]
[]
["Required SID Lys:NE Ratio",{"$f":"  0.0000415*((B5+B6)/2)^2 - 0.0236*((B5+B6)/2) + 6.096","v":4.6920843750000003},4.1130093749999999,3.6054000000000004,3.1925999999999997,2.9125999999999999,2.7606093749999996,null,{"$f":"  0.0000415*((I5+I6)/2)^2 - 0.0236*((I5+I6)/2) + 6.096","v":4.6920843750000003},4.1130093749999999,3.6054000000000004,3.1925999999999997,2.9125999999999999,2.7606093749999996,null,{"$f":"  0.0000415*((P5+P6)/2)^2 - 0.0236*((P5+P6)/2) + 6.096","v":4.6920843750000003},4.1130093749999999,3.6054000000000004,3.1925999999999997,2.9125999999999999,2.7606093749999996,null,{"$f":"  0.0000415*((W5+W6)/2)^2 - 0.0236*((W5+W6)/2) + 6.096","v":4.6920843750000003},4.1130093749999999,3.6054000000000004,3.1925999999999997,2.9125999999999999,2.7606093749999996,null,{"$f":"  0.0000415*((AD5+AD6)/2)^2 - 0.0236*((AD5+AD6)/2) + 6.096","v":4.6920843750000003},4.1130093749999999,3.6054000000000004,3.1925999999999997,2.9125999999999999,2.7606093749999996,null,{"$f":"  0.0000415*((AK5+AK6)/2)^2 - 0.0236*((AK5+AK6)/2) + 6.096","v":4.6920843750000003},4.1130093749999999,3.6054000000000004,3.1925999999999997,2.9125999999999999,2.7606093749999996,null,{"$f":"  0.0000415*((AR5+AR6)/2)^2 - 0.0236*((AR5+AR6)/2) + 6.096","v":4.6920843750000003},4.1130093749999999,3.6054000000000004,3.1925999999999997,2.9125999999999999,2.7606093749999996]
["Calculated SID Lysine Required, %",{"$f":"IF(B232=\"\",\"\",B250*2.2046*B232/10000)","v":1.1871600863382354},1.0488451848987548,0.92572438073141317,0.8245835224120116,0.755458195622838,0.71736927197173905,null,{"$f":"IF(I232=\"\",\"\",I250*2.2046*I232/10000)","v":1.1774776818496377},1.0402711661584119,0.91815722126548338,0.8180341815201696,0.74943263455094744,0.71169196178677163,null,{"$f":"IF(P232=\"\",\"\",P250*2.2046*P232/10000)","v":1.1676752516750242},1.0316441123795455,0.91054937380477063,0.81131324375710157,0.74331238297594904,0.70589115971539318,null,{"$f":"IF(W232=\"\",\"\",W250*2.2046*W232/10000)","v":1.1578935868843403},1.0230298278603056,0.90301761756554366,0.80461043756340822,0.73721516099794193,0.69995235338789175,null,{"$f":"IF(AD232=\"\",\"\",AD250*2.2046*AD232/10000)","v":1.1481049618373196},1.0144639494549055,0.89545301472649386,0.79793278240975041,0.73067540078616933,0.69354118885753702,null,{"$f":"IF(AK232=\"\",\"\",AK250*2.2046*AK232/10000)","v":1.1380394285773874},1.005892451671029,0.88795697032716892,0.79089777824396623,0.72392482481344878,0.68713278098012387,null,{"$f":"IF(AR232=\"\",\"\",AR250*2.2046*AR232/10000)","v":1.1283638927666908},0.99730970613348158,0.88043815305997364,0.78350905658140713,0.71717141124620065,0.6807217022137706]
[]
["SID amino acids, %"]
["  Lys",1.1861119527718891,1.0487231011263827,0.92692570857780632,0.82606841929078001,0.75673053182615369,0.71839352504319809,null,1.176359663632115,1.0404298354051722,0.9198321876360902,0.81977155477303221,0.75037675735226672,0.71244271689720895,null,1.1684857665329609,1.0334387360651245,0.91378340553869708,0.81328394410468086,0.74466093217492246,0.70703878284967125,null,1.1606108994103048,1.0264515137337917,0.90637130018555012,0.80714498863815465,0.73903650635744667,0.70148216508308492,null,1.1526290098320124,1.0181241605607756,0.89928210531326824,0.80098309911292542,0.73289361495012595,0.69549056609603865,null,1.1499999999999999,1.0101833240253375,0.89234873408789994,0.79441650998473456,0.72657321918177553,0.6894942592368507,null,1.1399999999999999,1.0022507297378567,0.8856759586639249,0.78765042013618369,0.720259582186488,0.68350052818418994]
["  Ile:Lys",{"$f":"(SUMPRODUCT(B$9:B$229,Nutrients!$CY$8:$CY$228)+(IF($A$7=Nutrients!$B$8,Nutrients!$CY$8,Nutrients!$CY$9)*B$7)+(((IF($A$8=Nutrients!$B$79,Nutrients!$CY$79,(IF($A$8=Nutrients!$B$77,Nutrients!$CY$77,Nutrients!$CY$78)))))*B$8))/2000/B$236*100","v":62.49349603537744},{"$f":"(SUMPRODUCT(C$9:C$229,Nutrients!$CY$8:$CY$228)+(IF($A$7=Nutrients!$B$8,Nutrients!$CY$8,Nutrients!$CY$9)*C$7)+(((IF($A$8=Nutrients!$B$79,Nutrients!$CY$79,(IF($A$8=Nutrients!$B$77,Nutrients!$CY$77,Nutrients!$CY$78)))))*C$8))/2000/C$236*100","v":61.913365044093091},{"$f":"(SUMPRODUCT(D$9:D$229,Nutrients!$CY$8:$CY$228)+(IF($A$7=Nutrients!$B$8,Nutrients!$CY$8,Nutrients!$CY$9)*D$7)+(((IF($A$8=Nutrients!$B$79,Nutrients!$CY$79,(IF($A$8=Nutrients!$B$77,Nutrients!$CY$77,Nutrients!$CY$78)))))*D$8))/2000/D$236*100","v":61.503659114241785},{"$f":"(SUMPRODUCT(E$9:E$229,Nutrients!$CY$8:$CY$228)+(IF($A$7=Nutrients!$B$8,Nutrients!$CY$8,Nutrients!$CY$9)*E$7)+(((IF($A$8=Nutrients!$B$79,Nutrients!$CY$79,(IF($A$8=Nutrients!$B$77,Nutrients!$CY$77,Nutrients!$CY$78)))))*E$8))/2000/E$236*100","v":60.930382267932259},{"$f":"(SUMPRODUCT(F$9:F$229,Nutrients!$CY$8:$CY$228)+(IF($A$7=Nutrients!$B$8,Nutrients!$CY$8,Nutrients!$CY$9)*F$7)+(((IF($A$8=Nutrients!$B$79,Nutrients!$CY$79,(IF($A$8=Nutrients!$B$77,Nutrients!$CY$77,Nutrients!$CY$78)))))*F$8))/2000/F$236*100","v":60.645226830458597},{"$f":"(SUMPRODUCT(G$9:G$229,Nutrients!$CY$8:$CY$228)+(IF($A$7=Nutrients!$B$8,Nutrients!$CY$8,Nutrients!$CY$9)*G$7)+(((IF($A$8=Nutrients!$B$79,Nutrients!$CY$79,(IF($A$8=Nutrients!$B$77,Nutrients!$CY$77,Nutrients!$CY$78)))))*G$8))/2000/G$236*100","v":60.73149438608624},null,{"$f":"(SUMPRODUCT(I$9:I$229,Nutrients!$CY$8:$CY$228)+(IF($A$7=Nutrients!$B$8,Nutrients!$CY$8,Nutrients!$CY$9)*I$7)+(((IF($A$8=Nutrients!$B$79,Nutrients!$CY$79,(IF($A$8=Nutrients!$B$77,Nutrients!$CY$77,Nutrients!$CY$78)))))*I$8))/2000/I$236*100","v":62.404219723667218},{"$f":"(SUMPRODUCT(J$9:J$229,Nutrients!$CY$8:$CY$228)+(IF($A$7=Nutrients!$B$8,Nutrients!$CY$8,Nutrients!$CY$9)*J$7)+(((IF($A$8=Nutrients!$B$79,Nutrients!$CY$79,(IF($A$8=Nutrients!$B$77,Nutrients!$CY$77,Nutrients!$CY$78)))))*J$8))/2000/J$236*100","v":61.815872429711774},{"$f":"(SUMPRODUCT(K$9:K$229,Nutrients!$CY$8:$CY$228)+(IF($A$7=Nutrients!$B$8,Nutrients!$CY$8,Nutrients!$CY$9)*K$7)+(((IF($A$8=Nutrients!$B$79,Nutrients!$CY$79,(IF($A$8=Nutrients!$B$77,Nutrients!$CY$77,Nutrients!$CY$78)))))*K$8))/2000/K$236*100","v":61.398498752642261},{"$f":"(SUMPRODUCT(L$9:L$229,Nutrients!$CY$8:$CY$228)+(IF($A$7=Nutrients!$B$8,Nutrients!$CY$8,Nutrients!$CY$9)*L$7)+(((IF($A$8=Nutrients!$B$79,Nutrients!$CY$79,(IF($A$8=Nutrients!$B$77,Nutrients!$CY$77,Nutrients!$CY$78)))))*L$8))/2000/L$236*100","v":60.817279268609624},{"$f":"(SUMPRODUCT(M$9:M$229,Nutrients!$CY$8:$CY$228)+(IF($A$7=Nutrients!$B$8,Nutrients!$CY$8,Nutrients!$CY$9)*M$7)+(((IF($A$8=Nutrients!$B$79,Nutrients!$CY$79,(IF($A$8=Nutrients!$B$77,Nutrients!$CY$77,Nutrients!$CY$78)))))*M$8))/2000/M$236*100","v":60.517768247195747},{"$f":"(SUMPRODUCT(N$9:N$229,Nutrients!$CY$8:$CY$228)+(IF($A$7=Nutrients!$B$8,Nutrients!$CY$8,Nutrients!$CY$9)*N$7)+(((IF($A$8=Nutrients!$B$79,Nutrients!$CY$79,(IF($A$8=Nutrients!$B$77,Nutrients!$CY$77,Nutrients!$CY$78)))))*N$8))/2000/N$236*100","v":60.603140682146616},null,{"$f":"(SUMPRODUCT(P$9:P$229,Nutrients!$CY$8:$CY$228)+(IF($A$7=Nutrients!$B$8,Nutrients!$CY$8,Nutrients!$CY$9)*P$7)+(((IF($A$8=Nutrients!$B$79,Nutrients!$CY$79,(IF($A$8=Nutrients!$B$77,Nutrients!$CY$77,Nutrients!$CY$78)))))*P$8))/2000/P$236*100","v":62.322896759493617},{"$f":"(SUMPRODUCT(Q$9:Q$229,Nutrients!$CY$8:$CY$228)+(IF($A$7=Nutrients!$B$8,Nutrients!$CY$8,Nutrients!$CY$9)*Q$7)+(((IF($A$8=Nutrients!$B$79,Nutrients!$CY$79,(IF($A$8=Nutrients!$B$77,Nutrients!$CY$77,Nutrients!$CY$78)))))*Q$8))/2000/Q$236*100","v":61.724995362112935},{"$f":"(SUMPRODUCT(R$9:R$229,Nutrients!$CY$8:$CY$228)+(IF($A$7=Nutrients!$B$8,Nutrients!$CY$8,Nutrients!$CY$9)*R$7)+(((IF($A$8=Nutrients!$B$79,Nutrients!$CY$79,(IF($A$8=Nutrients!$B$77,Nutrients!$CY$77,Nutrients!$CY$78)))))*R$8))/2000/R$236*100","v":61.2997496598529},{"$f":"(SUMPRODUCT(S$9:S$229,Nutrients!$CY$8:$CY$228)+(IF($A$7=Nutrients!$B$8,Nutrients!$CY$8,Nutrients!$CY$9)*S$7)+(((IF($A$8=Nutrients!$B$79,Nutrients!$CY$79,(IF($A$8=Nutrients!$B$77,Nutrients!$CY$77,Nutrients!$CY$78)))))*S$8))/2000/S$236*100","v":60.697930186711361},{"$f":"(SUMPRODUCT(T$9:T$229,Nutrients!$CY$8:$CY$228)+(IF($A$7=Nutrients!$B$8,Nutrients!$CY$8,Nutrients!$CY$9)*T$7)+(((IF($A$8=Nutrients!$B$79,Nutrients!$CY$79,(IF($A$8=Nutrients!$B$77,Nutrients!$CY$77,Nutrients!$CY$78)))))*T$8))/2000/T$236*100","v":60.391776020212042},{"$f":"(SUMPRODUCT(U$9:U$229,Nutrients!$CY$8:$CY$228)+(IF($A$7=Nutrients!$B$8,Nutrients!$CY$8,Nutrients!$CY$9)*U$7)+(((IF($A$8=Nutrients!$B$79,Nutrients!$CY$79,(IF($A$8=Nutrients!$B$77,Nutrients!$CY$77,Nutrients!$CY$78)))))*U$8))/2000/U$236*100","v":60.474205505536183},null,{"$f":"(SUMPRODUCT(W$9:W$229,Nutrients!$CY$8:$CY$228)+(IF($A$7=Nutrients!$B$8,Nutrients!$CY$8,Nutrients!$CY$9)*W$7)+(((IF($A$8=Nutrients!$B$79,Nutrients!$CY$79,(IF($A$8=Nutrients!$B$77,Nutrients!$CY$77,Nutrients!$CY$78)))))*W$8))/2000/W$236*100","v":62.240610893500381},{"$f":"(SUMPRODUCT(X$9:X$229,Nutrients!$CY$8:$CY$228)+(IF($A$7=Nutrients!$B$8,Nutrients!$CY$8,Nutrients!$CY$9)*X$7)+(((IF($A$8=Nutrients!$B$79,Nutrients!$CY$79,(IF($A$8=Nutrients!$B$77,Nutrients!$CY$77,Nutrients!$CY$78)))))*X$8))/2000/X$236*100","v":61.633126090689181},{"$f":"(SUMPRODUCT(Y$9:Y$229,Nutrients!$CY$8:$CY$228)+(IF($A$7=Nutrients!$B$8,Nutrients!$CY$8,Nutrients!$CY$9)*Y$7)+(((IF($A$8=Nutrients!$B$79,Nutrients!$CY$79,(IF($A$8=Nutrients!$B$77,Nutrients!$CY$77,Nutrients!$CY$78)))))*Y$8))/2000/Y$236*100","v":61.18905134069864},{"$f":"(SUMPRODUCT(Z$9:Z$229,Nutrients!$CY$8:$CY$228)+(IF($A$7=Nutrients!$B$8,Nutrients!$CY$8,Nutrients!$CY$9)*Z$7)+(((IF($A$8=Nutrients!$B$79,Nutrients!$CY$79,(IF($A$8=Nutrients!$B$77,Nutrients!$CY$77,Nutrients!$CY$78)))))*Z$8))/2000/Z$236*100","v":60.579916957418931},{"$f":"(SUMPRODUCT(AA$9:AA$229,Nutrients!$CY$8:$CY$228)+(IF($A$7=Nutrients!$B$8,Nutrients!$CY$8,Nutrients!$CY$9)*AA$7)+(((IF($A$8=Nutrients!$B$79,Nutrients!$CY$79,(IF($A$8=Nutrients!$B$77,Nutrients!$CY$77,Nutrients!$CY$78)))))*AA$8))/2000/AA$236*100","v":60.264776971602508},{"$f":"(SUMPRODUCT(AB$9:AB$229,Nutrients!$CY$8:$CY$228)+(IF($A$7=Nutrients!$B$8,Nutrients!$CY$8,Nutrients!$CY$9)*AB$7)+(((IF($A$8=Nutrients!$B$79,Nutrients!$CY$79,(IF($A$8=Nutrients!$B$77,Nutrients!$CY$77,Nutrients!$CY$78)))))*AB$8))/2000/AB$236*100","v":60.338714302883659},null,{"$f":"(SUMPRODUCT(AD$9:AD$229,Nutrients!$CY$8:$CY$228)+(IF($A$7=Nutrients!$B$8,Nutrients!$CY$8,Nutrients!$CY$9)*AD$7)+(((IF($A$8=Nutrients!$B$79,Nutrients!$CY$79,(IF($A$8=Nutrients!$B$77,Nutrients!$CY$77,Nutrients!$CY$78)))))*AD$8))/2000/AD$236*100","v":62.156534524333551},{"$f":"(SUMPRODUCT(AE$9:AE$229,Nutrients!$CY$8:$CY$228)+(IF($A$7=Nutrients!$B$8,Nutrients!$CY$8,Nutrients!$CY$9)*AE$7)+(((IF($A$8=Nutrients!$B$79,Nutrients!$CY$79,(IF($A$8=Nutrients!$B$77,Nutrients!$CY$77,Nutrients!$CY$78)))))*AE$8))/2000/AE$236*100","v":61.53088160233321},{"$f":"(SUMPRODUCT(AF$9:AF$229,Nutrients!$CY$8:$CY$228)+(IF($A$7=Nutrients!$B$8,Nutrients!$CY$8,Nutrients!$CY$9)*AF$7)+(((IF($A$8=Nutrients!$B$79,Nutrients!$CY$79,(IF($A$8=Nutrients!$B$77,Nutrients!$CY$77,Nutrients!$CY$78)))))*AF$8))/2000/AF$236*100","v":61.07915989982947},{"$f":"(SUMPRODUCT(AG$9:AG$229,Nutrients!$CY$8:$CY$228)+(IF($A$7=Nutrients!$B$8,Nutrients!$CY$8,Nutrients!$CY$9)*AG$7)+(((IF($A$8=Nutrients!$B$79,Nutrients!$CY$79,(IF($A$8=Nutrients!$B$77,Nutrients!$CY$77,Nutrients!$CY$78)))))*AG$8))/2000/AG$236*100","v":60.458629572095376},{"$f":"(SUMPRODUCT(AH$9:AH$229,Nutrients!$CY$8:$CY$228)+(IF($A$7=Nutrients!$B$8,Nutrients!$CY$8,Nutrients!$CY$9)*AH$7)+(((IF($A$8=Nutrients!$B$79,Nutrients!$CY$79,(IF($A$8=Nutrients!$B$77,Nutrients!$CY$77,Nutrients!$CY$78)))))*AH$8))/2000/AH$236*100","v":60.121865972026555},{"$f":"(SUMPRODUCT(AI$9:AI$229,Nutrients!$CY$8:$CY$228)+(IF($A$7=Nutrients!$B$8,Nutrients!$CY$8,Nutrients!$CY$9)*AI$7)+(((IF($A$8=Nutrients!$B$79,Nutrients!$CY$79,(IF($A$8=Nutrients!$B$77,Nutrients!$CY$77,Nutrients!$CY$78)))))*AI$8))/2000/AI$236*100","v":60.186378192804625},null,{"$f":"(SUMPRODUCT(AK$9:AK$229,Nutrients!$CY$8:$CY$228)+(IF($A$7=Nutrients!$B$8,Nutrients!$CY$8,Nutrients!$CY$9)*AK$7)+(((IF($A$8=Nutrients!$B$79,Nutrients!$CY$79,(IF($A$8=Nutrients!$B$77,Nutrients!$CY$77,Nutrients!$CY$78)))))*AK$8))/2000/AK$236*100","v":62.100648948042839},{"$f":"(SUMPRODUCT(AL$9:AL$229,Nutrients!$CY$8:$CY$228)+(IF($A$7=Nutrients!$B$8,Nutrients!$CY$8,Nutrients!$CY$9)*AL$7)+(((IF($A$8=Nutrients!$B$79,Nutrients!$CY$79,(IF($A$8=Nutrients!$B$77,Nutrients!$CY$77,Nutrients!$CY$78)))))*AL$8))/2000/AL$236*100","v":61.429720766441044},{"$f":"(SUMPRODUCT(AM$9:AM$229,Nutrients!$CY$8:$CY$228)+(IF($A$7=Nutrients!$B$8,Nutrients!$CY$8,Nutrients!$CY$9)*AM$7)+(((IF($A$8=Nutrients!$B$79,Nutrients!$CY$79,(IF($A$8=Nutrients!$B$77,Nutrients!$CY$77,Nutrients!$CY$78)))))*AM$8))/2000/AM$236*100","v":60.967597514203639},{"$f":"(SUMPRODUCT(AN$9:AN$229,Nutrients!$CY$8:$CY$228)+(IF($A$7=Nutrients!$B$8,Nutrients!$CY$8,Nutrients!$CY$9)*AN$7)+(((IF($A$8=Nutrients!$B$79,Nutrients!$CY$79,(IF($A$8=Nutrients!$B$77,Nutrients!$CY$77,Nutrients!$CY$78)))))*AN$8))/2000/AN$236*100","v":60.325888316437691},{"$f":"(SUMPRODUCT(AO$9:AO$229,Nutrients!$CY$8:$CY$228)+(IF($A$7=Nutrients!$B$8,Nutrients!$CY$8,Nutrients!$CY$9)*AO$7)+(((IF($A$8=Nutrients!$B$79,Nutrients!$CY$79,(IF($A$8=Nutrients!$B$77,Nutrients!$CY$77,Nutrients!$CY$78)))))*AO$8))/2000/AO$236*100","v":59.970462515356751},{"$f":"(SUMPRODUCT(AP$9:AP$229,Nutrients!$CY$8:$CY$228)+(IF($A$7=Nutrients!$B$8,Nutrients!$CY$8,Nutrients!$CY$9)*AP$7)+(((IF($A$8=Nutrients!$B$79,Nutrients!$CY$79,(IF($A$8=Nutrients!$B$77,Nutrients!$CY$77,Nutrients!$CY$78)))))*AP$8))/2000/AP$236*100","v":60.031270415854657},null,{"$f":"(SUMPRODUCT(AR$9:AR$229,Nutrients!$CY$8:$CY$228)+(IF($A$7=Nutrients!$B$8,Nutrients!$CY$8,Nutrients!$CY$9)*AR$7)+(((IF($A$8=Nutrients!$B$79,Nutrients!$CY$79,(IF($A$8=Nutrients!$B$77,Nutrients!$CY$77,Nutrients!$CY$78)))))*AR$8))/2000/AR$236*100","v":62.003607900669444},{"$f":"(SUMPRODUCT(AS$9:AS$229,Nutrients!$CY$8:$CY$228)+(IF($A$7=Nutrients!$B$8,Nutrients!$CY$8,Nutrients!$CY$9)*AS$7)+(((IF($A$8=Nutrients!$B$79,Nutrients!$CY$79,(IF($A$8=Nutrients!$B$77,Nutrients!$CY$77,Nutrients!$CY$78)))))*AS$8))/2000/AS$236*100","v":61.326913911699712},{"$f":"(SUMPRODUCT(AT$9:AT$229,Nutrients!$CY$8:$CY$228)+(IF($A$7=Nutrients!$B$8,Nutrients!$CY$8,Nutrients!$CY$9)*AT$7)+(((IF($A$8=Nutrients!$B$79,Nutrients!$CY$79,(IF($A$8=Nutrients!$B$77,Nutrients!$CY$77,Nutrients!$CY$78)))))*AT$8))/2000/AT$236*100","v":60.856353263542736},{"$f":"(SUMPRODUCT(AU$9:AU$229,Nutrients!$CY$8:$CY$228)+(IF($A$7=Nutrients!$B$8,Nutrients!$CY$8,Nutrients!$CY$9)*AU$7)+(((IF($A$8=Nutrients!$B$79,Nutrients!$CY$79,(IF($A$8=Nutrients!$B$77,Nutrients!$CY$77,Nutrients!$CY$78)))))*AU$8))/2000/AU$236*100","v":60.183230921999019},{"$f":"(SUMPRODUCT(AV$9:AV$229,Nutrients!$CY$8:$CY$228)+(IF($A$7=Nutrients!$B$8,Nutrients!$CY$8,Nutrients!$CY$9)*AV$7)+(((IF($A$8=Nutrients!$B$79,Nutrients!$CY$79,(IF($A$8=Nutrients!$B$77,Nutrients!$CY$77,Nutrients!$CY$78)))))*AV$8))/2000/AV$236*100","v":59.816542175055218},{"$f":"(SUMPRODUCT(AW$9:AW$229,Nutrients!$CY$8:$CY$228)+(IF($A$7=Nutrients!$B$8,Nutrients!$CY$8,Nutrients!$CY$9)*AW$7)+(((IF($A$8=Nutrients!$B$79,Nutrients!$CY$79,(IF($A$8=Nutrients!$B$77,Nutrients!$CY$77,Nutrients!$CY$78)))))*AW$8))/2000/AW$236*100","v":59.873540429035543}]
["  Leu:Lys",{"$f":"(SUMPRODUCT(B$9:B$229,Nutrients!$CZ$8:$CZ$228)+(IF($A$7=Nutrients!$B$8,Nutrients!$CZ$8,Nutrients!$CZ$9)*B$7)+(((IF($A$8=Nutrients!$B$79,Nutrients!$CZ$79,(IF($A$8=Nutrients!$B$77,Nutrients!$CZ$77,Nutrients!$CZ$78)))))*B$8))/2000/B$236*100","v":129.6913711527971},{"$f":"(SUMPRODUCT(C$9:C$229,Nutrients!$CZ$8:$CZ$228)+(IF($A$7=Nutrients!$B$8,Nutrients!$CZ$8,Nutrients!$CZ$9)*C$7)+(((IF($A$8=Nutrients!$B$79,Nutrients!$CZ$79,(IF($A$8=Nutrients!$B$77,Nutrients!$CZ$77,Nutrients!$CZ$78)))))*C$8))/2000/C$236*100","v":134.50017414165401},{"$f":"(SUMPRODUCT(D$9:D$229,Nutrients!$CZ$8:$CZ$228)+(IF($A$7=Nutrients!$B$8,Nutrients!$CZ$8,Nutrients!$CZ$9)*D$7)+(((IF($A$8=Nutrients!$B$79,Nutrients!$CZ$79,(IF($A$8=Nutrients!$B$77,Nutrients!$CZ$77,Nutrients!$CZ$78)))))*D$8))/2000/D$236*100","v":140.31419316632173},{"$f":"(SUMPRODUCT(E$9:E$229,Nutrients!$CZ$8:$CZ$228)+(IF($A$7=Nutrients!$B$8,Nutrients!$CZ$8,Nutrients!$CZ$9)*E$7)+(((IF($A$8=Nutrients!$B$79,Nutrients!$CZ$79,(IF($A$8=Nutrients!$B$77,Nutrients!$CZ$77,Nutrients!$CZ$78)))))*E$8))/2000/E$236*100","v":146.22101496424654},{"$f":"(SUMPRODUCT(F$9:F$229,Nutrients!$CZ$8:$CZ$228)+(IF($A$7=Nutrients!$B$8,Nutrients!$CZ$8,Nutrients!$CZ$9)*F$7)+(((IF($A$8=Nutrients!$B$79,Nutrients!$CZ$79,(IF($A$8=Nutrients!$B$77,Nutrients!$CZ$77,Nutrients!$CZ$78)))))*F$8))/2000/F$236*100","v":151.50724048169781},{"$f":"(SUMPRODUCT(G$9:G$229,Nutrients!$CZ$8:$CZ$228)+(IF($A$7=Nutrients!$B$8,Nutrients!$CZ$8,Nutrients!$CZ$9)*G$7)+(((IF($A$8=Nutrients!$B$79,Nutrients!$CZ$79,(IF($A$8=Nutrients!$B$77,Nutrients!$CZ$77,Nutrients!$CZ$78)))))*G$8))/2000/G$236*100","v":155.21195132466949},null,{"$f":"(SUMPRODUCT(I$9:I$229,Nutrients!$CZ$8:$CZ$228)+(IF($A$7=Nutrients!$B$8,Nutrients!$CZ$8,Nutrients!$CZ$9)*I$7)+(((IF($A$8=Nutrients!$B$79,Nutrients!$CZ$79,(IF($A$8=Nutrients!$B$77,Nutrients!$CZ$77,Nutrients!$CZ$78)))))*I$8))/2000/I$236*100","v":135.14916616405517},{"$f":"(SUMPRODUCT(J$9:J$229,Nutrients!$CZ$8:$CZ$228)+(IF($A$7=Nutrients!$B$8,Nutrients!$CZ$8,Nutrients!$CZ$9)*J$7)+(((IF($A$8=Nutrients!$B$79,Nutrients!$CZ$79,(IF($A$8=Nutrients!$B$77,Nutrients!$CZ$77,Nutrients!$CZ$78)))))*J$8))/2000/J$236*100","v":140.66083888124047},{"$f":"(SUMPRODUCT(K$9:K$229,Nutrients!$CZ$8:$CZ$228)+(IF($A$7=Nutrients!$B$8,Nutrients!$CZ$8,Nutrients!$CZ$9)*K$7)+(((IF($A$8=Nutrients!$B$79,Nutrients!$CZ$79,(IF($A$8=Nutrients!$B$77,Nutrients!$CZ$77,Nutrients!$CZ$78)))))*K$8))/2000/K$236*100","v":147.2760793725501},{"$f":"(SUMPRODUCT(L$9:L$229,Nutrients!$CZ$8:$CZ$228)+(IF($A$7=Nutrients!$B$8,Nutrients!$CZ$8,Nutrients!$CZ$9)*L$7)+(((IF($A$8=Nutrients!$B$79,Nutrients!$CZ$79,(IF($A$8=Nutrients!$B$77,Nutrients!$CZ$77,Nutrients!$CZ$78)))))*L$8))/2000/L$236*100","v":154.05158187769416},{"$f":"(SUMPRODUCT(M$9:M$229,Nutrients!$CZ$8:$CZ$228)+(IF($A$7=Nutrients!$B$8,Nutrients!$CZ$8,Nutrients!$CZ$9)*M$7)+(((IF($A$8=Nutrients!$B$79,Nutrients!$CZ$79,(IF($A$8=Nutrients!$B$77,Nutrients!$CZ$77,Nutrients!$CZ$78)))))*M$8))/2000/M$236*100","v":160.10470692285998},{"$f":"(SUMPRODUCT(N$9:N$229,Nutrients!$CZ$8:$CZ$228)+(IF($A$7=Nutrients!$B$8,Nutrients!$CZ$8,Nutrients!$CZ$9)*N$7)+(((IF($A$8=Nutrients!$B$79,Nutrients!$CZ$79,(IF($A$8=Nutrients!$B$77,Nutrients!$CZ$77,Nutrients!$CZ$78)))))*N$8))/2000/N$236*100","v":164.27177850846928},null,{"$f":"(SUMPRODUCT(P$9:P$229,Nutrients!$CZ$8:$CZ$228)+(IF($A$7=Nutrients!$B$8,Nutrients!$CZ$8,Nutrients!$CZ$9)*P$7)+(((IF($A$8=Nutrients!$B$79,Nutrients!$CZ$79,(IF($A$8=Nutrients!$B$77,Nutrients!$CZ$77,Nutrients!$CZ$78)))))*P$8))/2000/P$236*100","v":140.62429288491089},{"$f":"(SUMPRODUCT(Q$9:Q$229,Nutrients!$CZ$8:$CZ$228)+(IF($A$7=Nutrients!$B$8,Nutrients!$CZ$8,Nutrients!$CZ$9)*Q$7)+(((IF($A$8=Nutrients!$B$79,Nutrients!$CZ$79,(IF($A$8=Nutrients!$B$77,Nutrients!$CZ$77,Nutrients!$CZ$78)))))*Q$8))/2000/Q$236*100","v":146.85489649509384},{"$f":"(SUMPRODUCT(R$9:R$229,Nutrients!$CZ$8:$CZ$228)+(IF($A$7=Nutrients!$B$8,Nutrients!$CZ$8,Nutrients!$CZ$9)*R$7)+(((IF($A$8=Nutrients!$B$79,Nutrients!$CZ$79,(IF($A$8=Nutrients!$B$77,Nutrients!$CZ$77,Nutrients!$CZ$78)))))*R$8))/2000/R$236*100","v":154.27901929032052},{"$f":"(SUMPRODUCT(S$9:S$229,Nutrients!$CZ$8:$CZ$228)+(IF($A$7=Nutrients!$B$8,Nutrients!$CZ$8,Nutrients!$CZ$9)*S$7)+(((IF($A$8=Nutrients!$B$79,Nutrients!$CZ$79,(IF($A$8=Nutrients!$B$77,Nutrients!$CZ$77,Nutrients!$CZ$78)))))*S$8))/2000/S$236*100","v":162.00168375657071},{"$f":"(SUMPRODUCT(T$9:T$229,Nutrients!$CZ$8:$CZ$228)+(IF($A$7=Nutrients!$B$8,Nutrients!$CZ$8,Nutrients!$CZ$9)*T$7)+(((IF($A$8=Nutrients!$B$79,Nutrients!$CZ$79,(IF($A$8=Nutrients!$B$77,Nutrients!$CZ$77,Nutrients!$CZ$78)))))*T$8))/2000/T$236*100","v":168.7661099180946},{"$f":"(SUMPRODUCT(U$9:U$229,Nutrients!$CZ$8:$CZ$228)+(IF($A$7=Nutrients!$B$8,Nutrients!$CZ$8,Nutrients!$CZ$9)*U$7)+(((IF($A$8=Nutrients!$B$79,Nutrients!$CZ$79,(IF($A$8=Nutrients!$B$77,Nutrients!$CZ$77,Nutrients!$CZ$78)))))*U$8))/2000/U$236*100","v":173.39530984712607},null,{"$f":"(SUMPRODUCT(W$9:W$229,Nutrients!$CZ$8:$CZ$228)+(IF($A$7=Nutrients!$B$8,Nutrients!$CZ$8,Nutrients!$CZ$9)*W$7)+(((IF($A$8=Nutrients!$B$79,Nutrients!$CZ$79,(IF($A$8=Nutrients!$B$77,Nutrients!$CZ$77,Nutrients!$CZ$78)))))*W$8))/2000/W$236*100","v":146.17468028440169},{"$f":"(SUMPRODUCT(X$9:X$229,Nutrients!$CZ$8:$CZ$228)+(IF($A$7=Nutrients!$B$8,Nutrients!$CZ$8,Nutrients!$CZ$9)*X$7)+(((IF($A$8=Nutrients!$B$79,Nutrients!$CZ$79,(IF($A$8=Nutrients!$B$77,Nutrients!$CZ$77,Nutrients!$CZ$78)))))*X$8))/2000/X$236*100","v":153.13451809248585},{"$f":"(SUMPRODUCT(Y$9:Y$229,Nutrients!$CZ$8:$CZ$228)+(IF($A$7=Nutrients!$B$8,Nutrients!$CZ$8,Nutrients!$CZ$9)*Y$7)+(((IF($A$8=Nutrients!$B$79,Nutrients!$CZ$79,(IF($A$8=Nutrients!$B$77,Nutrients!$CZ$77,Nutrients!$CZ$78)))))*Y$8))/2000/Y$236*100","v":161.47479183039917},{"$f":"(SUMPRODUCT(Z$9:Z$229,Nutrients!$CZ$8:$CZ$228)+(IF($A$7=Nutrients!$B$8,Nutrients!$CZ$8,Nutrients!$CZ$9)*Z$7)+(((IF($A$8=Nutrients!$B$79,Nutrients!$CZ$79,(IF($A$8=Nutrients!$B$77,Nutrients!$CZ$77,Nutrients!$CZ$78)))))*Z$8))/2000/Z$236*100","v":170.04687685646215},{"$f":"(SUMPRODUCT(AA$9:AA$229,Nutrients!$CZ$8:$CZ$228)+(IF($A$7=Nutrients!$B$8,Nutrients!$CZ$8,Nutrients!$CZ$9)*AA$7)+(((IF($A$8=Nutrients!$B$79,Nutrients!$CZ$79,(IF($A$8=Nutrients!$B$77,Nutrients!$CZ$77,Nutrients!$CZ$78)))))*AA$8))/2000/AA$236*100","v":177.55101936876659},{"$f":"(SUMPRODUCT(AB$9:AB$229,Nutrients!$CZ$8:$CZ$228)+(IF($A$7=Nutrients!$B$8,Nutrients!$CZ$8,Nutrients!$CZ$9)*AB$7)+(((IF($A$8=Nutrients!$B$79,Nutrients!$CZ$79,(IF($A$8=Nutrients!$B$77,Nutrients!$CZ$77,Nutrients!$CZ$78)))))*AB$8))/2000/AB$236*100","v":182.66026056473618},null,{"$f":"(SUMPRODUCT(AD$9:AD$229,Nutrients!$CZ$8:$CZ$228)+(IF($A$7=Nutrients!$B$8,Nutrients!$CZ$8,Nutrients!$CZ$9)*AD$7)+(((IF($A$8=Nutrients!$B$79,Nutrients!$CZ$79,(IF($A$8=Nutrients!$B$77,Nutrients!$CZ$77,Nutrients!$CZ$78)))))*AD$8))/2000/AD$236*100","v":151.80552535353348},{"$f":"(SUMPRODUCT(AE$9:AE$229,Nutrients!$CZ$8:$CZ$228)+(IF($A$7=Nutrients!$B$8,Nutrients!$CZ$8,Nutrients!$CZ$9)*AE$7)+(((IF($A$8=Nutrients!$B$79,Nutrients!$CZ$79,(IF($A$8=Nutrients!$B$77,Nutrients!$CZ$77,Nutrients!$CZ$78)))))*AE$8))/2000/AE$236*100","v":159.58317331551683},{"$f":"(SUMPRODUCT(AF$9:AF$229,Nutrients!$CZ$8:$CZ$228)+(IF($A$7=Nutrients!$B$8,Nutrients!$CZ$8,Nutrients!$CZ$9)*AF$7)+(((IF($A$8=Nutrients!$B$79,Nutrients!$CZ$79,(IF($A$8=Nutrients!$B$77,Nutrients!$CZ$77,Nutrients!$CZ$78)))))*AF$8))/2000/AF$236*100","v":168.76312717711107},{"$f":"(SUMPRODUCT(AG$9:AG$229,Nutrients!$CZ$8:$CZ$228)+(IF($A$7=Nutrients!$B$8,Nutrients!$CZ$8,Nutrients!$CZ$9)*AG$7)+(((IF($A$8=Nutrients!$B$79,Nutrients!$CZ$79,(IF($A$8=Nutrients!$B$77,Nutrients!$CZ$77,Nutrients!$CZ$78)))))*AG$8))/2000/AG$236*100","v":178.20984251182003},{"$f":"(SUMPRODUCT(AH$9:AH$229,Nutrients!$CZ$8:$CZ$228)+(IF($A$7=Nutrients!$B$8,Nutrients!$CZ$8,Nutrients!$CZ$9)*AH$7)+(((IF($A$8=Nutrients!$B$79,Nutrients!$CZ$79,(IF($A$8=Nutrients!$B$77,Nutrients!$CZ$77,Nutrients!$CZ$78)))))*AH$8))/2000/AH$236*100","v":186.48283883053674},{"$f":"(SUMPRODUCT(AI$9:AI$229,Nutrients!$CZ$8:$CZ$228)+(IF($A$7=Nutrients!$B$8,Nutrients!$CZ$8,Nutrients!$CZ$9)*AI$7)+(((IF($A$8=Nutrients!$B$79,Nutrients!$CZ$79,(IF($A$8=Nutrients!$B$77,Nutrients!$CZ$77,Nutrients!$CZ$78)))))*AI$8))/2000/AI$236*100","v":192.0722656055882},null,{"$f":"(SUMPRODUCT(AK$9:AK$229,Nutrients!$CZ$8:$CZ$228)+(IF($A$7=Nutrients!$B$8,Nutrients!$CZ$8,Nutrients!$CZ$9)*AK$7)+(((IF($A$8=Nutrients!$B$79,Nutrients!$CZ$79,(IF($A$8=Nutrients!$B$77,Nutrients!$CZ$77,Nutrients!$CZ$78)))))*AK$8))/2000/AK$236*100","v":157.22824189377215},{"$f":"(SUMPRODUCT(AL$9:AL$229,Nutrients!$CZ$8:$CZ$228)+(IF($A$7=Nutrients!$B$8,Nutrients!$CZ$8,Nutrients!$CZ$9)*AL$7)+(((IF($A$8=Nutrients!$B$79,Nutrients!$CZ$79,(IF($A$8=Nutrients!$B$77,Nutrients!$CZ$77,Nutrients!$CZ$78)))))*AL$8))/2000/AL$236*100","v":166.11202399208233},{"$f":"(SUMPRODUCT(AM$9:AM$229,Nutrients!$CZ$8:$CZ$228)+(IF($A$7=Nutrients!$B$8,Nutrients!$CZ$8,Nutrients!$CZ$9)*AM$7)+(((IF($A$8=Nutrients!$B$79,Nutrients!$CZ$79,(IF($A$8=Nutrients!$B$77,Nutrients!$CZ$77,Nutrients!$CZ$78)))))*AM$8))/2000/AM$236*100","v":176.14549849047239},{"$f":"(SUMPRODUCT(AN$9:AN$229,Nutrients!$CZ$8:$CZ$228)+(IF($A$7=Nutrients!$B$8,Nutrients!$CZ$8,Nutrients!$CZ$9)*AN$7)+(((IF($A$8=Nutrients!$B$79,Nutrients!$CZ$79,(IF($A$8=Nutrients!$B$77,Nutrients!$CZ$77,Nutrients!$CZ$78)))))*AN$8))/2000/AN$236*100","v":186.5105836196264},{"$f":"(SUMPRODUCT(AO$9:AO$229,Nutrients!$CZ$8:$CZ$228)+(IF($A$7=Nutrients!$B$8,Nutrients!$CZ$8,Nutrients!$CZ$9)*AO$7)+(((IF($A$8=Nutrients!$B$79,Nutrients!$CZ$79,(IF($A$8=Nutrients!$B$77,Nutrients!$CZ$77,Nutrients!$CZ$78)))))*AO$8))/2000/AO$236*100","v":195.56432340080264},{"$f":"(SUMPRODUCT(AP$9:AP$229,Nutrients!$CZ$8:$CZ$228)+(IF($A$7=Nutrients!$B$8,Nutrients!$CZ$8,Nutrients!$CZ$9)*AP$7)+(((IF($A$8=Nutrients!$B$79,Nutrients!$CZ$79,(IF($A$8=Nutrients!$B$77,Nutrients!$CZ$77,Nutrients!$CZ$78)))))*AP$8))/2000/AP$236*100","v":201.64814086622965},null,{"$f":"(SUMPRODUCT(AR$9:AR$229,Nutrients!$CZ$8:$CZ$228)+(IF($A$7=Nutrients!$B$8,Nutrients!$CZ$8,Nutrients!$CZ$9)*AR$7)+(((IF($A$8=Nutrients!$B$79,Nutrients!$CZ$79,(IF($A$8=Nutrients!$B$77,Nutrients!$CZ$77,Nutrients!$CZ$78)))))*AR$8))/2000/AR$236*100","v":163.10777105101943},{"$f":"(SUMPRODUCT(AS$9:AS$229,Nutrients!$CZ$8:$CZ$228)+(IF($A$7=Nutrients!$B$8,Nutrients!$CZ$8,Nutrients!$CZ$9)*AS$7)+(((IF($A$8=Nutrients!$B$79,Nutrients!$CZ$79,(IF($A$8=Nutrients!$B$77,Nutrients!$CZ$77,Nutrients!$CZ$78)))))*AS$8))/2000/AS$236*100","v":172.7430556274353},{"$f":"(SUMPRODUCT(AT$9:AT$229,Nutrients!$CZ$8:$CZ$228)+(IF($A$7=Nutrients!$B$8,Nutrients!$CZ$8,Nutrients!$CZ$9)*AT$7)+(((IF($A$8=Nutrients!$B$79,Nutrients!$CZ$79,(IF($A$8=Nutrients!$B$77,Nutrients!$CZ$77,Nutrients!$CZ$78)))))*AT$8))/2000/AT$236*100","v":183.61672916058433},{"$f":"(SUMPRODUCT(AU$9:AU$229,Nutrients!$CZ$8:$CZ$228)+(IF($A$7=Nutrients!$B$8,Nutrients!$CZ$8,Nutrients!$CZ$9)*AU$7)+(((IF($A$8=Nutrients!$B$79,Nutrients!$CZ$79,(IF($A$8=Nutrients!$B$77,Nutrients!$CZ$77,Nutrients!$CZ$78)))))*AU$8))/2000/AU$236*100","v":194.93886231982762},{"$f":"(SUMPRODUCT(AV$9:AV$229,Nutrients!$CZ$8:$CZ$228)+(IF($A$7=Nutrients!$B$8,Nutrients!$CZ$8,Nutrients!$CZ$9)*AV$7)+(((IF($A$8=Nutrients!$B$79,Nutrients!$CZ$79,(IF($A$8=Nutrients!$B$77,Nutrients!$CZ$77,Nutrients!$CZ$78)))))*AV$8))/2000/AV$236*100","v":204.80455339223101},{"$f":"(SUMPRODUCT(AW$9:AW$229,Nutrients!$CZ$8:$CZ$228)+(IF($A$7=Nutrients!$B$8,Nutrients!$CZ$8,Nutrients!$CZ$9)*AW$7)+(((IF($A$8=Nutrients!$B$79,Nutrients!$CZ$79,(IF($A$8=Nutrients!$B$77,Nutrients!$CZ$77,Nutrients!$CZ$78)))))*AW$8))/2000/AW$236*100","v":211.39202773571114}]
["  Met:Lys",{"$f":"(SUMPRODUCT(B$9:B$229,Nutrients!$DB$8:$DB$228)+(IF($A$7=Nutrients!$B$8,Nutrients!$DB$8,Nutrients!$DB$9)*B$7)+(((IF($A$8=Nutrients!$B$79,Nutrients!$DB$79,(IF($A$8=Nutrients!$B$77,Nutrients!$DB$77,Nutrients!$DB$78)))))*B$8))/2000/B$236*100","v":32.176483378772197},{"$f":"(SUMPRODUCT(C$9:C$229,Nutrients!$DB$8:$DB$228)+(IF($A$7=Nutrients!$B$8,Nutrients!$DB$8,Nutrients!$DB$9)*C$7)+(((IF($A$8=Nutrients!$B$79,Nutrients!$DB$79,(IF($A$8=Nutrients!$B$77,Nutrients!$DB$77,Nutrients!$DB$78)))))*C$8))/2000/C$236*100","v":31.3204641187241},{"$f":"(SUMPRODUCT(D$9:D$229,Nutrients!$DB$8:$DB$228)+(IF($A$7=Nutrients!$B$8,Nutrients!$DB$8,Nutrients!$DB$9)*D$7)+(((IF($A$8=Nutrients!$B$79,Nutrients!$DB$79,(IF($A$8=Nutrients!$B$77,Nutrients!$DB$77,Nutrients!$DB$78)))))*D$8))/2000/D$236*100","v":30.28033378224459},{"$f":"(SUMPRODUCT(E$9:E$229,Nutrients!$DB$8:$DB$228)+(IF($A$7=Nutrients!$B$8,Nutrients!$DB$8,Nutrients!$DB$9)*E$7)+(((IF($A$8=Nutrients!$B$79,Nutrients!$DB$79,(IF($A$8=Nutrients!$B$77,Nutrients!$DB$77,Nutrients!$DB$78)))))*E$8))/2000/E$236*100","v":30.221879794096772},{"$f":"(SUMPRODUCT(F$9:F$229,Nutrients!$DB$8:$DB$228)+(IF($A$7=Nutrients!$B$8,Nutrients!$DB$8,Nutrients!$DB$9)*F$7)+(((IF($A$8=Nutrients!$B$79,Nutrients!$DB$79,(IF($A$8=Nutrients!$B$77,Nutrients!$DB$77,Nutrients!$DB$78)))))*F$8))/2000/F$236*100","v":29.27572686201405},{"$f":"(SUMPRODUCT(G$9:G$229,Nutrients!$DB$8:$DB$228)+(IF($A$7=Nutrients!$B$8,Nutrients!$DB$8,Nutrients!$DB$9)*G$7)+(((IF($A$8=Nutrients!$B$79,Nutrients!$DB$79,(IF($A$8=Nutrients!$B$77,Nutrients!$DB$77,Nutrients!$DB$78)))))*G$8))/2000/G$236*100","v":29.609559948404552},null,{"$f":"(SUMPRODUCT(I$9:I$229,Nutrients!$DB$8:$DB$228)+(IF($A$7=Nutrients!$B$8,Nutrients!$DB$8,Nutrients!$DB$9)*I$7)+(((IF($A$8=Nutrients!$B$79,Nutrients!$DB$79,(IF($A$8=Nutrients!$B$77,Nutrients!$DB$77,Nutrients!$DB$78)))))*I$8))/2000/I$236*100","v":31.972666813313062},{"$f":"(SUMPRODUCT(J$9:J$229,Nutrients!$DB$8:$DB$228)+(IF($A$7=Nutrients!$B$8,Nutrients!$DB$8,Nutrients!$DB$9)*J$7)+(((IF($A$8=Nutrients!$B$79,Nutrients!$DB$79,(IF($A$8=Nutrients!$B$77,Nutrients!$DB$77,Nutrients!$DB$78)))))*J$8))/2000/J$236*100","v":31.063316062240133},{"$f":"(SUMPRODUCT(K$9:K$229,Nutrients!$DB$8:$DB$228)+(IF($A$7=Nutrients!$B$8,Nutrients!$DB$8,Nutrients!$DB$9)*K$7)+(((IF($A$8=Nutrients!$B$79,Nutrients!$DB$79,(IF($A$8=Nutrients!$B$77,Nutrients!$DB$77,Nutrients!$DB$78)))))*K$8))/2000/K$236*100","v":30.038079088916092},{"$f":"(SUMPRODUCT(L$9:L$229,Nutrients!$DB$8:$DB$228)+(IF($A$7=Nutrients!$B$8,Nutrients!$DB$8,Nutrients!$DB$9)*L$7)+(((IF($A$8=Nutrients!$B$79,Nutrients!$DB$79,(IF($A$8=Nutrients!$B$77,Nutrients!$DB$77,Nutrients!$DB$78)))))*L$8))/2000/L$236*100","v":29.947705118624985},{"$f":"(SUMPRODUCT(M$9:M$229,Nutrients!$DB$8:$DB$228)+(IF($A$7=Nutrients!$B$8,Nutrients!$DB$8,Nutrients!$DB$9)*M$7)+(((IF($A$8=Nutrients!$B$79,Nutrients!$DB$79,(IF($A$8=Nutrients!$B$77,Nutrients!$DB$77,Nutrients!$DB$78)))))*M$8))/2000/M$236*100","v":28.966497479904813},{"$f":"(SUMPRODUCT(N$9:N$229,Nutrients!$DB$8:$DB$228)+(IF($A$7=Nutrients!$B$8,Nutrients!$DB$8,Nutrients!$DB$9)*N$7)+(((IF($A$8=Nutrients!$B$79,Nutrients!$DB$79,(IF($A$8=Nutrients!$B$77,Nutrients!$DB$77,Nutrients!$DB$78)))))*N$8))/2000/N$236*100","v":29.344376883914464},null,{"$f":"(SUMPRODUCT(P$9:P$229,Nutrients!$DB$8:$DB$228)+(IF($A$7=Nutrients!$B$8,Nutrients!$DB$8,Nutrients!$DB$9)*P$7)+(((IF($A$8=Nutrients!$B$79,Nutrients!$DB$79,(IF($A$8=Nutrients!$B$77,Nutrients!$DB$77,Nutrients!$DB$78)))))*P$8))/2000/P$236*100","v":31.78556845306889},{"$f":"(SUMPRODUCT(Q$9:Q$229,Nutrients!$DB$8:$DB$228)+(IF($A$7=Nutrients!$B$8,Nutrients!$DB$8,Nutrients!$DB$9)*Q$7)+(((IF($A$8=Nutrients!$B$79,Nutrients!$DB$79,(IF($A$8=Nutrients!$B$77,Nutrients!$DB$77,Nutrients!$DB$78)))))*Q$8))/2000/Q$236*100","v":30.897601685784998},{"$f":"(SUMPRODUCT(R$9:R$229,Nutrients!$DB$8:$DB$228)+(IF($A$7=Nutrients!$B$8,Nutrients!$DB$8,Nutrients!$DB$9)*R$7)+(((IF($A$8=Nutrients!$B$79,Nutrients!$DB$79,(IF($A$8=Nutrients!$B$77,Nutrients!$DB$77,Nutrients!$DB$78)))))*R$8))/2000/R$236*100","v":29.758368048104668},{"$f":"(SUMPRODUCT(S$9:S$229,Nutrients!$DB$8:$DB$228)+(IF($A$7=Nutrients!$B$8,Nutrients!$DB$8,Nutrients!$DB$9)*S$7)+(((IF($A$8=Nutrients!$B$79,Nutrients!$DB$79,(IF($A$8=Nutrients!$B$77,Nutrients!$DB$77,Nutrients!$DB$78)))))*S$8))/2000/S$236*100","v":29.639131753681308},{"$f":"(SUMPRODUCT(T$9:T$229,Nutrients!$DB$8:$DB$228)+(IF($A$7=Nutrients!$B$8,Nutrients!$DB$8,Nutrients!$DB$9)*T$7)+(((IF($A$8=Nutrients!$B$79,Nutrients!$DB$79,(IF($A$8=Nutrients!$B$77,Nutrients!$DB$77,Nutrients!$DB$78)))))*T$8))/2000/T$236*100","v":29.746086503493846},{"$f":"(SUMPRODUCT(U$9:U$229,Nutrients!$DB$8:$DB$228)+(IF($A$7=Nutrients!$B$8,Nutrients!$DB$8,Nutrients!$DB$9)*U$7)+(((IF($A$8=Nutrients!$B$79,Nutrients!$DB$79,(IF($A$8=Nutrients!$B$77,Nutrients!$DB$77,Nutrients!$DB$78)))))*U$8))/2000/U$236*100","v":30.505158207075446},null,{"$f":"(SUMPRODUCT(W$9:W$229,Nutrients!$DB$8:$DB$228)+(IF($A$7=Nutrients!$B$8,Nutrients!$DB$8,Nutrients!$DB$9)*W$7)+(((IF($A$8=Nutrients!$B$79,Nutrients!$DB$79,(IF($A$8=Nutrients!$B$77,Nutrients!$DB$77,Nutrients!$DB$78)))))*W$8))/2000/W$236*100","v":31.596106334434914},{"$f":"(SUMPRODUCT(X$9:X$229,Nutrients!$DB$8:$DB$228)+(IF($A$7=Nutrients!$B$8,Nutrients!$DB$8,Nutrients!$DB$9)*X$7)+(((IF($A$8=Nutrients!$B$79,Nutrients!$DB$79,(IF($A$8=Nutrients!$B$77,Nutrients!$DB$77,Nutrients!$DB$78)))))*X$8))/2000/X$236*100","v":30.665541495163772},{"$f":"(SUMPRODUCT(Y$9:Y$229,Nutrients!$DB$8:$DB$228)+(IF($A$7=Nutrients!$B$8,Nutrients!$DB$8,Nutrients!$DB$9)*Y$7)+(((IF($A$8=Nutrients!$B$79,Nutrients!$DB$79,(IF($A$8=Nutrients!$B$77,Nutrients!$DB$77,Nutrients!$DB$78)))))*Y$8))/2000/Y$236*100","v":29.548441737744668},{"$f":"(SUMPRODUCT(Z$9:Z$229,Nutrients!$DB$8:$DB$228)+(IF($A$7=Nutrients!$B$8,Nutrients!$DB$8,Nutrients!$DB$9)*Z$7)+(((IF($A$8=Nutrients!$B$79,Nutrients!$DB$79,(IF($A$8=Nutrients!$B$77,Nutrients!$DB$77,Nutrients!$DB$78)))))*Z$8))/2000/Z$236*100","v":29.675216989122237},{"$f":"(SUMPRODUCT(AA$9:AA$229,Nutrients!$DB$8:$DB$228)+(IF($A$7=Nutrients!$B$8,Nutrients!$DB$8,Nutrients!$DB$9)*AA$7)+(((IF($A$8=Nutrients!$B$79,Nutrients!$DB$79,(IF($A$8=Nutrients!$B$77,Nutrients!$DB$77,Nutrients!$DB$78)))))*AA$8))/2000/AA$236*100","v":30.863325404266313},{"$f":"(SUMPRODUCT(AB$9:AB$229,Nutrients!$DB$8:$DB$228)+(IF($A$7=Nutrients!$B$8,Nutrients!$DB$8,Nutrients!$DB$9)*AB$7)+(((IF($A$8=Nutrients!$B$79,Nutrients!$DB$79,(IF($A$8=Nutrients!$B$77,Nutrients!$DB$77,Nutrients!$DB$78)))))*AB$8))/2000/AB$236*100","v":31.683597476599513},null,{"$f":"(SUMPRODUCT(AD$9:AD$229,Nutrients!$DB$8:$DB$228)+(IF($A$7=Nutrients!$B$8,Nutrients!$DB$8,Nutrients!$DB$9)*AD$7)+(((IF($A$8=Nutrients!$B$79,Nutrients!$DB$79,(IF($A$8=Nutrients!$B$77,Nutrients!$DB$77,Nutrients!$DB$78)))))*AD$8))/2000/AD$236*100","v":31.405187189252466},{"$f":"(SUMPRODUCT(AE$9:AE$229,Nutrients!$DB$8:$DB$228)+(IF($A$7=Nutrients!$B$8,Nutrients!$DB$8,Nutrients!$DB$9)*AE$7)+(((IF($A$8=Nutrients!$B$79,Nutrients!$DB$79,(IF($A$8=Nutrients!$B$77,Nutrients!$DB$77,Nutrients!$DB$78)))))*AE$8))/2000/AE$236*100","v":30.446342297518985},{"$f":"(SUMPRODUCT(AF$9:AF$229,Nutrients!$DB$8:$DB$228)+(IF($A$7=Nutrients!$B$8,Nutrients!$DB$8,Nutrients!$DB$9)*AF$7)+(((IF($A$8=Nutrients!$B$79,Nutrients!$DB$79,(IF($A$8=Nutrients!$B$77,Nutrients!$DB$77,Nutrients!$DB$78)))))*AF$8))/2000/AF$236*100","v":29.255585937464211},{"$f":"(SUMPRODUCT(AG$9:AG$229,Nutrients!$DB$8:$DB$228)+(IF($A$7=Nutrients!$B$8,Nutrients!$DB$8,Nutrients!$DB$9)*AG$7)+(((IF($A$8=Nutrients!$B$79,Nutrients!$DB$79,(IF($A$8=Nutrients!$B$77,Nutrients!$DB$77,Nutrients!$DB$78)))))*AG$8))/2000/AG$236*100","v":30.713066832349295},{"$f":"(SUMPRODUCT(AH$9:AH$229,Nutrients!$DB$8:$DB$228)+(IF($A$7=Nutrients!$B$8,Nutrients!$DB$8,Nutrients!$DB$9)*AH$7)+(((IF($A$8=Nutrients!$B$79,Nutrients!$DB$79,(IF($A$8=Nutrients!$B$77,Nutrients!$DB$77,Nutrients!$DB$78)))))*AH$8))/2000/AH$236*100","v":31.998362446785933},{"$f":"(SUMPRODUCT(AI$9:AI$229,Nutrients!$DB$8:$DB$228)+(IF($A$7=Nutrients!$B$8,Nutrients!$DB$8,Nutrients!$DB$9)*AI$7)+(((IF($A$8=Nutrients!$B$79,Nutrients!$DB$79,(IF($A$8=Nutrients!$B$77,Nutrients!$DB$77,Nutrients!$DB$78)))))*AI$8))/2000/AI$236*100","v":32.879323206917533},null,{"$f":"(SUMPRODUCT(AK$9:AK$229,Nutrients!$DB$8:$DB$228)+(IF($A$7=Nutrients!$B$8,Nutrients!$DB$8,Nutrients!$DB$9)*AK$7)+(((IF($A$8=Nutrients!$B$79,Nutrients!$DB$79,(IF($A$8=Nutrients!$B$77,Nutrients!$DB$77,Nutrients!$DB$78)))))*AK$8))/2000/AK$236*100","v":31.150790981451664},{"$f":"(SUMPRODUCT(AL$9:AL$229,Nutrients!$DB$8:$DB$228)+(IF($A$7=Nutrients!$B$8,Nutrients!$DB$8,Nutrients!$DB$9)*AL$7)+(((IF($A$8=Nutrients!$B$79,Nutrients!$DB$79,(IF($A$8=Nutrients!$B$77,Nutrients!$DB$77,Nutrients!$DB$78)))))*AL$8))/2000/AL$236*100","v":30.219030153975719},{"$f":"(SUMPRODUCT(AM$9:AM$229,Nutrients!$DB$8:$DB$228)+(IF($A$7=Nutrients!$B$8,Nutrients!$DB$8,Nutrients!$DB$9)*AM$7)+(((IF($A$8=Nutrients!$B$79,Nutrients!$DB$79,(IF($A$8=Nutrients!$B$77,Nutrients!$DB$77,Nutrients!$DB$78)))))*AM$8))/2000/AM$236*100","v":30.194071433183044},{"$f":"(SUMPRODUCT(AN$9:AN$229,Nutrients!$DB$8:$DB$228)+(IF($A$7=Nutrients!$B$8,Nutrients!$DB$8,Nutrients!$DB$9)*AN$7)+(((IF($A$8=Nutrients!$B$79,Nutrients!$DB$79,(IF($A$8=Nutrients!$B$77,Nutrients!$DB$77,Nutrients!$DB$78)))))*AN$8))/2000/AN$236*100","v":31.767795890545276},{"$f":"(SUMPRODUCT(AO$9:AO$229,Nutrients!$DB$8:$DB$228)+(IF($A$7=Nutrients!$B$8,Nutrients!$DB$8,Nutrients!$DB$9)*AO$7)+(((IF($A$8=Nutrients!$B$79,Nutrients!$DB$79,(IF($A$8=Nutrients!$B$77,Nutrients!$DB$77,Nutrients!$DB$78)))))*AO$8))/2000/AO$236*100","v":33.151732950143028},{"$f":"(SUMPRODUCT(AP$9:AP$229,Nutrients!$DB$8:$DB$228)+(IF($A$7=Nutrients!$B$8,Nutrients!$DB$8,Nutrients!$DB$9)*AP$7)+(((IF($A$8=Nutrients!$B$79,Nutrients!$DB$79,(IF($A$8=Nutrients!$B$77,Nutrients!$DB$77,Nutrients!$DB$78)))))*AP$8))/2000/AP$236*100","v":34.095863625368779},null,{"$f":"(SUMPRODUCT(AR$9:AR$229,Nutrients!$DB$8:$DB$228)+(IF($A$7=Nutrients!$B$8,Nutrients!$DB$8,Nutrients!$DB$9)*AR$7)+(((IF($A$8=Nutrients!$B$79,Nutrients!$DB$79,(IF($A$8=Nutrients!$B$77,Nutrients!$DB$77,Nutrients!$DB$78)))))*AR$8))/2000/AR$236*100","v":30.977730121051035},{"$f":"(SUMPRODUCT(AS$9:AS$229,Nutrients!$DB$8:$DB$228)+(IF($A$7=Nutrients!$B$8,Nutrients!$DB$8,Nutrients!$DB$9)*AS$7)+(((IF($A$8=Nutrients!$B$79,Nutrients!$DB$79,(IF($A$8=Nutrients!$B$77,Nutrients!$DB$77,Nutrients!$DB$78)))))*AS$8))/2000/AS$236*100","v":29.987905124066877},{"$f":"(SUMPRODUCT(AT$9:AT$229,Nutrients!$DB$8:$DB$228)+(IF($A$7=Nutrients!$B$8,Nutrients!$DB$8,Nutrients!$DB$9)*AT$7)+(((IF($A$8=Nutrients!$B$79,Nutrients!$DB$79,(IF($A$8=Nutrients!$B$77,Nutrients!$DB$77,Nutrients!$DB$78)))))*AT$8))/2000/AT$236*100","v":31.143262269735377},{"$f":"(SUMPRODUCT(AU$9:AU$229,Nutrients!$DB$8:$DB$228)+(IF($A$7=Nutrients!$B$8,Nutrients!$DB$8,Nutrients!$DB$9)*AU$7)+(((IF($A$8=Nutrients!$B$79,Nutrients!$DB$79,(IF($A$8=Nutrients!$B$77,Nutrients!$DB$77,Nutrients!$DB$78)))))*AU$8))/2000/AU$236*100","v":32.837504152013821},{"$f":"(SUMPRODUCT(AV$9:AV$229,Nutrients!$DB$8:$DB$228)+(IF($A$7=Nutrients!$B$8,Nutrients!$DB$8,Nutrients!$DB$9)*AV$7)+(((IF($A$8=Nutrients!$B$79,Nutrients!$DB$79,(IF($A$8=Nutrients!$B$77,Nutrients!$DB$77,Nutrients!$DB$78)))))*AV$8))/2000/AV$236*100","v":34.325261224280951},{"$f":"(SUMPRODUCT(AW$9:AW$229,Nutrients!$DB$8:$DB$228)+(IF($A$7=Nutrients!$B$8,Nutrients!$DB$8,Nutrients!$DB$9)*AW$7)+(((IF($A$8=Nutrients!$B$79,Nutrients!$DB$79,(IF($A$8=Nutrients!$B$77,Nutrients!$DB$77,Nutrients!$DB$78)))))*AW$8))/2000/AW$236*100","v":35.333760166856642}]
["  Met & Cys:Lys",{"$f":"(SUMPRODUCT(B$9:B$229,Nutrients!$DC$8:$DC$228)+(IF($A$7=Nutrients!$B$8,Nutrients!$DC$8,Nutrients!$DC$9)*B$7)+(((IF($A$8=Nutrients!$B$79,Nutrients!$DC$79,(IF($A$8=Nutrients!$B$77,Nutrients!$DC$77,Nutrients!$DC$78)))))*B$8))/2000/B$236*100","v":55.994418242240393},{"$f":"(SUMPRODUCT(C$9:C$229,Nutrients!$DC$8:$DC$228)+(IF($A$7=Nutrients!$B$8,Nutrients!$DC$8,Nutrients!$DC$9)*C$7)+(((IF($A$8=Nutrients!$B$79,Nutrients!$DC$79,(IF($A$8=Nutrients!$B$77,Nutrients!$DC$77,Nutrients!$DC$78)))))*C$8))/2000/C$236*100","v":55.998321129822401},{"$f":"(SUMPRODUCT(D$9:D$229,Nutrients!$DC$8:$DC$228)+(IF($A$7=Nutrients!$B$8,Nutrients!$DC$8,Nutrients!$DC$9)*D$7)+(((IF($A$8=Nutrients!$B$79,Nutrients!$DC$79,(IF($A$8=Nutrients!$B$77,Nutrients!$DC$77,Nutrients!$DC$78)))))*D$8))/2000/D$236*100","v":56.000205781178344},{"$f":"(SUMPRODUCT(E$9:E$229,Nutrients!$DC$8:$DC$228)+(IF($A$7=Nutrients!$B$8,Nutrients!$DC$8,Nutrients!$DC$9)*E$7)+(((IF($A$8=Nutrients!$B$79,Nutrients!$DC$79,(IF($A$8=Nutrients!$B$77,Nutrients!$DC$77,Nutrients!$DC$78)))))*E$8))/2000/E$236*100","v":56.999140886022367},{"$f":"(SUMPRODUCT(F$9:F$229,Nutrients!$DC$8:$DC$228)+(IF($A$7=Nutrients!$B$8,Nutrients!$DC$8,Nutrients!$DC$9)*F$7)+(((IF($A$8=Nutrients!$B$79,Nutrients!$DC$79,(IF($A$8=Nutrients!$B$77,Nutrients!$DC$77,Nutrients!$DC$78)))))*F$8))/2000/F$236*100","v":57.001109458079327},{"$f":"(SUMPRODUCT(G$9:G$229,Nutrients!$DC$8:$DC$228)+(IF($A$7=Nutrients!$B$8,Nutrients!$DC$8,Nutrients!$DC$9)*G$7)+(((IF($A$8=Nutrients!$B$79,Nutrients!$DC$79,(IF($A$8=Nutrients!$B$77,Nutrients!$DC$77,Nutrients!$DC$78)))))*G$8))/2000/G$236*100","v":58.001701198028378},null,{"$f":"(SUMPRODUCT(I$9:I$229,Nutrients!$DC$8:$DC$228)+(IF($A$7=Nutrients!$B$8,Nutrients!$DC$8,Nutrients!$DC$9)*I$7)+(((IF($A$8=Nutrients!$B$79,Nutrients!$DC$79,(IF($A$8=Nutrients!$B$77,Nutrients!$DC$77,Nutrients!$DC$78)))))*I$8))/2000/I$236*100","v":55.983640041954054},{"$f":"(SUMPRODUCT(J$9:J$229,Nutrients!$DC$8:$DC$228)+(IF($A$7=Nutrients!$B$8,Nutrients!$DC$8,Nutrients!$DC$9)*J$7)+(((IF($A$8=Nutrients!$B$79,Nutrients!$DC$79,(IF($A$8=Nutrients!$B$77,Nutrients!$DC$77,Nutrients!$DC$78)))))*J$8))/2000/J$236*100","v":55.95762902663364},{"$f":"(SUMPRODUCT(K$9:K$229,Nutrients!$DC$8:$DC$228)+(IF($A$7=Nutrients!$B$8,Nutrients!$DC$8,Nutrients!$DC$9)*K$7)+(((IF($A$8=Nutrients!$B$79,Nutrients!$DC$79,(IF($A$8=Nutrients!$B$77,Nutrients!$DC$77,Nutrients!$DC$78)))))*K$8))/2000/K$236*100","v":56.001659847621625},{"$f":"(SUMPRODUCT(L$9:L$229,Nutrients!$DC$8:$DC$228)+(IF($A$7=Nutrients!$B$8,Nutrients!$DC$8,Nutrients!$DC$9)*L$7)+(((IF($A$8=Nutrients!$B$79,Nutrients!$DC$79,(IF($A$8=Nutrients!$B$77,Nutrients!$DC$77,Nutrients!$DC$78)))))*L$8))/2000/L$236*100","v":57.001862447239141},{"$f":"(SUMPRODUCT(M$9:M$229,Nutrients!$DC$8:$DC$228)+(IF($A$7=Nutrients!$B$8,Nutrients!$DC$8,Nutrients!$DC$9)*M$7)+(((IF($A$8=Nutrients!$B$79,Nutrients!$DC$79,(IF($A$8=Nutrients!$B$77,Nutrients!$DC$77,Nutrients!$DC$78)))))*M$8))/2000/M$236*100","v":57.002034686247839},{"$f":"(SUMPRODUCT(N$9:N$229,Nutrients!$DC$8:$DC$228)+(IF($A$7=Nutrients!$B$8,Nutrients!$DC$8,Nutrients!$DC$9)*N$7)+(((IF($A$8=Nutrients!$B$79,Nutrients!$DC$79,(IF($A$8=Nutrients!$B$77,Nutrients!$DC$77,Nutrients!$DC$78)))))*N$8))/2000/N$236*100","v":58.064059079310248},null,{"$f":"(SUMPRODUCT(P$9:P$229,Nutrients!$DC$8:$DC$228)+(IF($A$7=Nutrients!$B$8,Nutrients!$DC$8,Nutrients!$DC$9)*P$7)+(((IF($A$8=Nutrients!$B$79,Nutrients!$DC$79,(IF($A$8=Nutrients!$B$77,Nutrients!$DC$77,Nutrients!$DC$78)))))*P$8))/2000/P$236*100","v":55.982146637266169},{"$f":"(SUMPRODUCT(Q$9:Q$229,Nutrients!$DC$8:$DC$228)+(IF($A$7=Nutrients!$B$8,Nutrients!$DC$8,Nutrients!$DC$9)*Q$7)+(((IF($A$8=Nutrients!$B$79,Nutrients!$DC$79,(IF($A$8=Nutrients!$B$77,Nutrients!$DC$77,Nutrients!$DC$78)))))*Q$8))/2000/Q$236*100","v":56.002380597594772},{"$f":"(SUMPRODUCT(R$9:R$229,Nutrients!$DC$8:$DC$228)+(IF($A$7=Nutrients!$B$8,Nutrients!$DC$8,Nutrients!$DC$9)*R$7)+(((IF($A$8=Nutrients!$B$79,Nutrients!$DC$79,(IF($A$8=Nutrients!$B$77,Nutrients!$DC$77,Nutrients!$DC$78)))))*R$8))/2000/R$236*100","v":55.959756703526352},{"$f":"(SUMPRODUCT(S$9:S$229,Nutrients!$DC$8:$DC$228)+(IF($A$7=Nutrients!$B$8,Nutrients!$DC$8,Nutrients!$DC$9)*S$7)+(((IF($A$8=Nutrients!$B$79,Nutrients!$DC$79,(IF($A$8=Nutrients!$B$77,Nutrients!$DC$77,Nutrients!$DC$78)))))*S$8))/2000/S$236*100","v":56.973597437419784},{"$f":"(SUMPRODUCT(T$9:T$229,Nutrients!$DC$8:$DC$228)+(IF($A$7=Nutrients!$B$8,Nutrients!$DC$8,Nutrients!$DC$9)*T$7)+(((IF($A$8=Nutrients!$B$79,Nutrients!$DC$79,(IF($A$8=Nutrients!$B$77,Nutrients!$DC$77,Nutrients!$DC$78)))))*T$8))/2000/T$236*100","v":58.084332907487877},{"$f":"(SUMPRODUCT(U$9:U$229,Nutrients!$DC$8:$DC$228)+(IF($A$7=Nutrients!$B$8,Nutrients!$DC$8,Nutrients!$DC$9)*U$7)+(((IF($A$8=Nutrients!$B$79,Nutrients!$DC$79,(IF($A$8=Nutrients!$B$77,Nutrients!$DC$77,Nutrients!$DC$78)))))*U$8))/2000/U$236*100","v":59.543953640653889},null,{"$f":"(SUMPRODUCT(W$9:W$229,Nutrients!$DC$8:$DC$228)+(IF($A$7=Nutrients!$B$8,Nutrients!$DC$8,Nutrients!$DC$9)*W$7)+(((IF($A$8=Nutrients!$B$79,Nutrients!$DC$79,(IF($A$8=Nutrients!$B$77,Nutrients!$DC$77,Nutrients!$DC$78)))))*W$8))/2000/W$236*100","v":55.980981609052868},{"$f":"(SUMPRODUCT(X$9:X$229,Nutrients!$DC$8:$DC$228)+(IF($A$7=Nutrients!$B$8,Nutrients!$DC$8,Nutrients!$DC$9)*X$7)+(((IF($A$8=Nutrients!$B$79,Nutrients!$DC$79,(IF($A$8=Nutrients!$B$77,Nutrients!$DC$77,Nutrients!$DC$78)))))*X$8))/2000/X$236*100","v":55.983879264904381},{"$f":"(SUMPRODUCT(Y$9:Y$229,Nutrients!$DC$8:$DC$228)+(IF($A$7=Nutrients!$B$8,Nutrients!$DC$8,Nutrients!$DC$9)*Y$7)+(((IF($A$8=Nutrients!$B$79,Nutrients!$DC$79,(IF($A$8=Nutrients!$B$77,Nutrients!$DC$77,Nutrients!$DC$78)))))*Y$8))/2000/Y$236*100","v":56.004006800792006},{"$f":"(SUMPRODUCT(Z$9:Z$229,Nutrients!$DC$8:$DC$228)+(IF($A$7=Nutrients!$B$8,Nutrients!$DC$8,Nutrients!$DC$9)*Z$7)+(((IF($A$8=Nutrients!$B$79,Nutrients!$DC$79,(IF($A$8=Nutrients!$B$77,Nutrients!$DC$77,Nutrients!$DC$78)))))*Z$8))/2000/Z$236*100","v":57.290122224372439},{"$f":"(SUMPRODUCT(AA$9:AA$229,Nutrients!$DC$8:$DC$228)+(IF($A$7=Nutrients!$B$8,Nutrients!$DC$8,Nutrients!$DC$9)*AA$7)+(((IF($A$8=Nutrients!$B$79,Nutrients!$DC$79,(IF($A$8=Nutrients!$B$77,Nutrients!$DC$77,Nutrients!$DC$78)))))*AA$8))/2000/AA$236*100","v":59.507551141952788},{"$f":"(SUMPRODUCT(AB$9:AB$229,Nutrients!$DC$8:$DC$228)+(IF($A$7=Nutrients!$B$8,Nutrients!$DC$8,Nutrients!$DC$9)*AB$7)+(((IF($A$8=Nutrients!$B$79,Nutrients!$DC$79,(IF($A$8=Nutrients!$B$77,Nutrients!$DC$77,Nutrients!$DC$78)))))*AB$8))/2000/AB$236*100","v":61.045681530029384},null,{"$f":"(SUMPRODUCT(AD$9:AD$229,Nutrients!$DC$8:$DC$228)+(IF($A$7=Nutrients!$B$8,Nutrients!$DC$8,Nutrients!$DC$9)*AD$7)+(((IF($A$8=Nutrients!$B$79,Nutrients!$DC$79,(IF($A$8=Nutrients!$B$77,Nutrients!$DC$77,Nutrients!$DC$78)))))*AD$8))/2000/AD$236*100","v":55.98145963044454},{"$f":"(SUMPRODUCT(AE$9:AE$229,Nutrients!$DC$8:$DC$228)+(IF($A$7=Nutrients!$B$8,Nutrients!$DC$8,Nutrients!$DC$9)*AE$7)+(((IF($A$8=Nutrients!$B$79,Nutrients!$DC$79,(IF($A$8=Nutrients!$B$77,Nutrients!$DC$77,Nutrients!$DC$78)))))*AE$8))/2000/AE$236*100","v":55.991223284436622},{"$f":"(SUMPRODUCT(AF$9:AF$229,Nutrients!$DC$8:$DC$228)+(IF($A$7=Nutrients!$B$8,Nutrients!$DC$8,Nutrients!$DC$9)*AF$7)+(((IF($A$8=Nutrients!$B$79,Nutrients!$DC$79,(IF($A$8=Nutrients!$B$77,Nutrients!$DC$77,Nutrients!$DC$78)))))*AF$8))/2000/AF$236*100","v":55.966327870668088},{"$f":"(SUMPRODUCT(AG$9:AG$229,Nutrients!$DC$8:$DC$228)+(IF($A$7=Nutrients!$B$8,Nutrients!$DC$8,Nutrients!$DC$9)*AG$7)+(((IF($A$8=Nutrients!$B$79,Nutrients!$DC$79,(IF($A$8=Nutrients!$B$77,Nutrients!$DC$77,Nutrients!$DC$78)))))*AG$8))/2000/AG$236*100","v":58.611569085169727},{"$f":"(SUMPRODUCT(AH$9:AH$229,Nutrients!$DC$8:$DC$228)+(IF($A$7=Nutrients!$B$8,Nutrients!$DC$8,Nutrients!$DC$9)*AH$7)+(((IF($A$8=Nutrients!$B$79,Nutrients!$DC$79,(IF($A$8=Nutrients!$B$77,Nutrients!$DC$77,Nutrients!$DC$78)))))*AH$8))/2000/AH$236*100","v":60.951762399005304},{"$f":"(SUMPRODUCT(AI$9:AI$229,Nutrients!$DC$8:$DC$228)+(IF($A$7=Nutrients!$B$8,Nutrients!$DC$8,Nutrients!$DC$9)*AI$7)+(((IF($A$8=Nutrients!$B$79,Nutrients!$DC$79,(IF($A$8=Nutrients!$B$77,Nutrients!$DC$77,Nutrients!$DC$78)))))*AI$8))/2000/AI$236*100","v":62.566249256429188},null,{"$f":"(SUMPRODUCT(AK$9:AK$229,Nutrients!$DC$8:$DC$228)+(IF($A$7=Nutrients!$B$8,Nutrients!$DC$8,Nutrients!$DC$9)*AK$7)+(((IF($A$8=Nutrients!$B$79,Nutrients!$DC$79,(IF($A$8=Nutrients!$B$77,Nutrients!$DC$77,Nutrients!$DC$78)))))*AK$8))/2000/AK$236*100","v":55.888662567995183},{"$f":"(SUMPRODUCT(AL$9:AL$229,Nutrients!$DC$8:$DC$228)+(IF($A$7=Nutrients!$B$8,Nutrients!$DC$8,Nutrients!$DC$9)*AL$7)+(((IF($A$8=Nutrients!$B$79,Nutrients!$DC$79,(IF($A$8=Nutrients!$B$77,Nutrients!$DC$77,Nutrients!$DC$78)))))*AL$8))/2000/AL$236*100","v":55.99126419885441},{"$f":"(SUMPRODUCT(AM$9:AM$229,Nutrients!$DC$8:$DC$228)+(IF($A$7=Nutrients!$B$8,Nutrients!$DC$8,Nutrients!$DC$9)*AM$7)+(((IF($A$8=Nutrients!$B$79,Nutrients!$DC$79,(IF($A$8=Nutrients!$B$77,Nutrients!$DC$77,Nutrients!$DC$78)))))*AM$8))/2000/AM$236*100","v":57.161035426483217},{"$f":"(SUMPRODUCT(AN$9:AN$229,Nutrients!$DC$8:$DC$228)+(IF($A$7=Nutrients!$B$8,Nutrients!$DC$8,Nutrients!$DC$9)*AN$7)+(((IF($A$8=Nutrients!$B$79,Nutrients!$DC$79,(IF($A$8=Nutrients!$B$77,Nutrients!$DC$77,Nutrients!$DC$78)))))*AN$8))/2000/AN$236*100","v":59.953261936850978},{"$f":"(SUMPRODUCT(AO$9:AO$229,Nutrients!$DC$8:$DC$228)+(IF($A$7=Nutrients!$B$8,Nutrients!$DC$8,Nutrients!$DC$9)*AO$7)+(((IF($A$8=Nutrients!$B$79,Nutrients!$DC$79,(IF($A$8=Nutrients!$B$77,Nutrients!$DC$77,Nutrients!$DC$78)))))*AO$8))/2000/AO$236*100","v":62.417689209002944},{"$f":"(SUMPRODUCT(AP$9:AP$229,Nutrients!$DC$8:$DC$228)+(IF($A$7=Nutrients!$B$8,Nutrients!$DC$8,Nutrients!$DC$9)*AP$7)+(((IF($A$8=Nutrients!$B$79,Nutrients!$DC$79,(IF($A$8=Nutrients!$B$77,Nutrients!$DC$77,Nutrients!$DC$78)))))*AP$8))/2000/AP$236*100","v":64.113283206090998},null,{"$f":"(SUMPRODUCT(AR$9:AR$229,Nutrients!$DC$8:$DC$228)+(IF($A$7=Nutrients!$B$8,Nutrients!$DC$8,Nutrients!$DC$9)*AR$7)+(((IF($A$8=Nutrients!$B$79,Nutrients!$DC$79,(IF($A$8=Nutrients!$B$77,Nutrients!$DC$77,Nutrients!$DC$78)))))*AR$8))/2000/AR$236*100","v":55.923953144105688},{"$f":"(SUMPRODUCT(AS$9:AS$229,Nutrients!$DC$8:$DC$228)+(IF($A$7=Nutrients!$B$8,Nutrients!$DC$8,Nutrients!$DC$9)*AS$7)+(((IF($A$8=Nutrients!$B$79,Nutrients!$DC$79,(IF($A$8=Nutrients!$B$77,Nutrients!$DC$77,Nutrients!$DC$78)))))*AS$8))/2000/AS$236*100","v":55.990910726645993},{"$f":"(SUMPRODUCT(AT$9:AT$229,Nutrients!$DC$8:$DC$228)+(IF($A$7=Nutrients!$B$8,Nutrients!$DC$8,Nutrients!$DC$9)*AT$7)+(((IF($A$8=Nutrients!$B$79,Nutrients!$DC$79,(IF($A$8=Nutrients!$B$77,Nutrients!$DC$77,Nutrients!$DC$78)))))*AT$8))/2000/AT$236*100","v":58.367513913507871},{"$f":"(SUMPRODUCT(AU$9:AU$229,Nutrients!$DC$8:$DC$228)+(IF($A$7=Nutrients!$B$8,Nutrients!$DC$8,Nutrients!$DC$9)*AU$7)+(((IF($A$8=Nutrients!$B$79,Nutrients!$DC$79,(IF($A$8=Nutrients!$B$77,Nutrients!$DC$77,Nutrients!$DC$78)))))*AU$8))/2000/AU$236*100","v":61.310921282589945},{"$f":"(SUMPRODUCT(AV$9:AV$229,Nutrients!$DC$8:$DC$228)+(IF($A$7=Nutrients!$B$8,Nutrients!$DC$8,Nutrients!$DC$9)*AV$7)+(((IF($A$8=Nutrients!$B$79,Nutrients!$DC$79,(IF($A$8=Nutrients!$B$77,Nutrients!$DC$77,Nutrients!$DC$78)))))*AV$8))/2000/AV$236*100","v":63.909217943643171},{"$f":"(SUMPRODUCT(AW$9:AW$229,Nutrients!$DC$8:$DC$228)+(IF($A$7=Nutrients!$B$8,Nutrients!$DC$8,Nutrients!$DC$9)*AW$7)+(((IF($A$8=Nutrients!$B$79,Nutrients!$DC$79,(IF($A$8=Nutrients!$B$77,Nutrients!$DC$77,Nutrients!$DC$78)))))*AW$8))/2000/AW$236*100","v":65.687502440280667}]
["  Thr:Lys",{"$f":"(SUMPRODUCT(B$9:B$229,Nutrients!$DF$8:$DF$228)+(IF($A$7=Nutrients!$B$8,Nutrients!$DF$8,Nutrients!$DF$9)*B$7)+(((IF($A$8=Nutrients!$B$79,Nutrients!$DF$79,(IF($A$8=Nutrients!$B$77,Nutrients!$DF$77,Nutrients!$DF$78)))))*B$8))/2000/B$236*100","v":61.999249045260719},{"$f":"(SUMPRODUCT(C$9:C$229,Nutrients!$DF$8:$DF$228)+(IF($A$7=Nutrients!$B$8,Nutrients!$DF$8,Nutrients!$DF$9)*C$7)+(((IF($A$8=Nutrients!$B$79,Nutrients!$DF$79,(IF($A$8=Nutrients!$B$77,Nutrients!$DF$77,Nutrients!$DF$78)))))*C$8))/2000/C$236*100","v":61.999768297038216},{"$f":"(SUMPRODUCT(D$9:D$229,Nutrients!$DF$8:$DF$228)+(IF($A$7=Nutrients!$B$8,Nutrients!$DF$8,Nutrients!$DF$9)*D$7)+(((IF($A$8=Nutrients!$B$79,Nutrients!$DF$79,(IF($A$8=Nutrients!$B$77,Nutrients!$DF$77,Nutrients!$DF$78)))))*D$8))/2000/D$236*100","v":62.000000000000014},{"$f":"(SUMPRODUCT(E$9:E$229,Nutrients!$DF$8:$DF$228)+(IF($A$7=Nutrients!$B$8,Nutrients!$DF$8,Nutrients!$DF$9)*E$7)+(((IF($A$8=Nutrients!$B$79,Nutrients!$DF$79,(IF($A$8=Nutrients!$B$77,Nutrients!$DF$77,Nutrients!$DF$78)))))*E$8))/2000/E$236*100","v":62.999881259958023},{"$f":"(SUMPRODUCT(F$9:F$229,Nutrients!$DF$8:$DF$228)+(IF($A$7=Nutrients!$B$8,Nutrients!$DF$8,Nutrients!$DF$9)*F$7)+(((IF($A$8=Nutrients!$B$79,Nutrients!$DF$79,(IF($A$8=Nutrients!$B$77,Nutrients!$DF$77,Nutrients!$DF$78)))))*F$8))/2000/F$236*100","v":63.000153115971145},{"$f":"(SUMPRODUCT(G$9:G$229,Nutrients!$DF$8:$DF$228)+(IF($A$7=Nutrients!$B$8,Nutrients!$DF$8,Nutrients!$DF$9)*G$7)+(((IF($A$8=Nutrients!$B$79,Nutrients!$DF$79,(IF($A$8=Nutrients!$B$77,Nutrients!$DF$77,Nutrients!$DF$78)))))*G$8))/2000/G$236*100","v":63.99976486226322},null,{"$f":"(SUMPRODUCT(I$9:I$229,Nutrients!$DF$8:$DF$228)+(IF($A$7=Nutrients!$B$8,Nutrients!$DF$8,Nutrients!$DF$9)*I$7)+(((IF($A$8=Nutrients!$B$79,Nutrients!$DF$79,(IF($A$8=Nutrients!$B$77,Nutrients!$DF$77,Nutrients!$DF$78)))))*I$8))/2000/I$236*100","v":62.01093945270577},{"$f":"(SUMPRODUCT(J$9:J$229,Nutrients!$DF$8:$DF$228)+(IF($A$7=Nutrients!$B$8,Nutrients!$DF$8,Nutrients!$DF$9)*J$7)+(((IF($A$8=Nutrients!$B$79,Nutrients!$DF$79,(IF($A$8=Nutrients!$B$77,Nutrients!$DF$77,Nutrients!$DF$78)))))*J$8))/2000/J$236*100","v":62.004012562110148},{"$f":"(SUMPRODUCT(K$9:K$229,Nutrients!$DF$8:$DF$228)+(IF($A$7=Nutrients!$B$8,Nutrients!$DF$8,Nutrients!$DF$9)*K$7)+(((IF($A$8=Nutrients!$B$79,Nutrients!$DF$79,(IF($A$8=Nutrients!$B$77,Nutrients!$DF$77,Nutrients!$DF$78)))))*K$8))/2000/K$236*100","v":61.996462371652683},{"$f":"(SUMPRODUCT(L$9:L$229,Nutrients!$DF$8:$DF$228)+(IF($A$7=Nutrients!$B$8,Nutrients!$DF$8,Nutrients!$DF$9)*L$7)+(((IF($A$8=Nutrients!$B$79,Nutrients!$DF$79,(IF($A$8=Nutrients!$B$77,Nutrients!$DF$77,Nutrients!$DF$78)))))*L$8))/2000/L$236*100","v":63.00036061252834},{"$f":"(SUMPRODUCT(M$9:M$229,Nutrients!$DF$8:$DF$228)+(IF($A$7=Nutrients!$B$8,Nutrients!$DF$8,Nutrients!$DF$9)*M$7)+(((IF($A$8=Nutrients!$B$79,Nutrients!$DF$79,(IF($A$8=Nutrients!$B$77,Nutrients!$DF$77,Nutrients!$DF$78)))))*M$8))/2000/M$236*100","v":63.000230019249827},{"$f":"(SUMPRODUCT(N$9:N$229,Nutrients!$DF$8:$DF$228)+(IF($A$7=Nutrients!$B$8,Nutrients!$DF$8,Nutrients!$DF$9)*N$7)+(((IF($A$8=Nutrients!$B$79,Nutrients!$DF$79,(IF($A$8=Nutrients!$B$77,Nutrients!$DF$77,Nutrients!$DF$78)))))*N$8))/2000/N$236*100","v":64.004957175427506},null,{"$f":"(SUMPRODUCT(P$9:P$229,Nutrients!$DF$8:$DF$228)+(IF($A$7=Nutrients!$B$8,Nutrients!$DF$8,Nutrients!$DF$9)*P$7)+(((IF($A$8=Nutrients!$B$79,Nutrients!$DF$79,(IF($A$8=Nutrients!$B$77,Nutrients!$DF$77,Nutrients!$DF$78)))))*P$8))/2000/P$236*100","v":62.012390910843948},{"$f":"(SUMPRODUCT(Q$9:Q$229,Nutrients!$DF$8:$DF$228)+(IF($A$7=Nutrients!$B$8,Nutrients!$DF$8,Nutrients!$DF$9)*Q$7)+(((IF($A$8=Nutrients!$B$79,Nutrients!$DF$79,(IF($A$8=Nutrients!$B$77,Nutrients!$DF$77,Nutrients!$DF$78)))))*Q$8))/2000/Q$236*100","v":62.000193474320909},{"$f":"(SUMPRODUCT(R$9:R$229,Nutrients!$DF$8:$DF$228)+(IF($A$7=Nutrients!$B$8,Nutrients!$DF$8,Nutrients!$DF$9)*R$7)+(((IF($A$8=Nutrients!$B$79,Nutrients!$DF$79,(IF($A$8=Nutrients!$B$77,Nutrients!$DF$77,Nutrients!$DF$78)))))*R$8))/2000/R$236*100","v":61.985656927832956},{"$f":"(SUMPRODUCT(S$9:S$229,Nutrients!$DF$8:$DF$228)+(IF($A$7=Nutrients!$B$8,Nutrients!$DF$8,Nutrients!$DF$9)*S$7)+(((IF($A$8=Nutrients!$B$79,Nutrients!$DF$79,(IF($A$8=Nutrients!$B$77,Nutrients!$DF$77,Nutrients!$DF$78)))))*S$8))/2000/S$236*100","v":62.999610717339614},{"$f":"(SUMPRODUCT(T$9:T$229,Nutrients!$DF$8:$DF$228)+(IF($A$7=Nutrients!$B$8,Nutrients!$DF$8,Nutrients!$DF$9)*T$7)+(((IF($A$8=Nutrients!$B$79,Nutrients!$DF$79,(IF($A$8=Nutrients!$B$77,Nutrients!$DF$77,Nutrients!$DF$78)))))*T$8))/2000/T$236*100","v":62.990593263406048},{"$f":"(SUMPRODUCT(U$9:U$229,Nutrients!$DF$8:$DF$228)+(IF($A$7=Nutrients!$B$8,Nutrients!$DF$8,Nutrients!$DF$9)*U$7)+(((IF($A$8=Nutrients!$B$79,Nutrients!$DF$79,(IF($A$8=Nutrients!$B$77,Nutrients!$DF$77,Nutrients!$DF$78)))))*U$8))/2000/U$236*100","v":63.998891840765552},null,{"$f":"(SUMPRODUCT(W$9:W$229,Nutrients!$DF$8:$DF$228)+(IF($A$7=Nutrients!$B$8,Nutrients!$DF$8,Nutrients!$DF$9)*W$7)+(((IF($A$8=Nutrients!$B$79,Nutrients!$DF$79,(IF($A$8=Nutrients!$B$77,Nutrients!$DF$77,Nutrients!$DF$78)))))*W$8))/2000/W$236*100","v":62.014026228197295},{"$f":"(SUMPRODUCT(X$9:X$229,Nutrients!$DF$8:$DF$228)+(IF($A$7=Nutrients!$B$8,Nutrients!$DF$8,Nutrients!$DF$9)*X$7)+(((IF($A$8=Nutrients!$B$79,Nutrients!$DF$79,(IF($A$8=Nutrients!$B$77,Nutrients!$DF$77,Nutrients!$DF$78)))))*X$8))/2000/X$236*100","v":61.996539011058182},{"$f":"(SUMPRODUCT(Y$9:Y$229,Nutrients!$DF$8:$DF$228)+(IF($A$7=Nutrients!$B$8,Nutrients!$DF$8,Nutrients!$DF$9)*Y$7)+(((IF($A$8=Nutrients!$B$79,Nutrients!$DF$79,(IF($A$8=Nutrients!$B$77,Nutrients!$DF$77,Nutrients!$DF$78)))))*Y$8))/2000/Y$236*100","v":61.984268097663211},{"$f":"(SUMPRODUCT(Z$9:Z$229,Nutrients!$DF$8:$DF$228)+(IF($A$7=Nutrients!$B$8,Nutrients!$DF$8,Nutrients!$DF$9)*Z$7)+(((IF($A$8=Nutrients!$B$79,Nutrients!$DF$79,(IF($A$8=Nutrients!$B$77,Nutrients!$DF$77,Nutrients!$DF$78)))))*Z$8))/2000/Z$236*100","v":62.995587158205623},{"$f":"(SUMPRODUCT(AA$9:AA$229,Nutrients!$DF$8:$DF$228)+(IF($A$7=Nutrients!$B$8,Nutrients!$DF$8,Nutrients!$DF$9)*AA$7)+(((IF($A$8=Nutrients!$B$79,Nutrients!$DF$79,(IF($A$8=Nutrients!$B$77,Nutrients!$DF$77,Nutrients!$DF$78)))))*AA$8))/2000/AA$236*100","v":62.979844860074422},{"$f":"(SUMPRODUCT(AB$9:AB$229,Nutrients!$DF$8:$DF$228)+(IF($A$7=Nutrients!$B$8,Nutrients!$DF$8,Nutrients!$DF$9)*AB$7)+(((IF($A$8=Nutrients!$B$79,Nutrients!$DF$79,(IF($A$8=Nutrients!$B$77,Nutrients!$DF$77,Nutrients!$DF$78)))))*AB$8))/2000/AB$236*100","v":63.991451981346437},null,{"$f":"(SUMPRODUCT(AD$9:AD$229,Nutrients!$DF$8:$DF$228)+(IF($A$7=Nutrients!$B$8,Nutrients!$DF$8,Nutrients!$DF$9)*AD$7)+(((IF($A$8=Nutrients!$B$79,Nutrients!$DF$79,(IF($A$8=Nutrients!$B$77,Nutrients!$DF$77,Nutrients!$DF$78)))))*AD$8))/2000/AD$236*100","v":62.016170111736017},{"$f":"(SUMPRODUCT(AE$9:AE$229,Nutrients!$DF$8:$DF$228)+(IF($A$7=Nutrients!$B$8,Nutrients!$DF$8,Nutrients!$DF$9)*AE$7)+(((IF($A$8=Nutrients!$B$79,Nutrients!$DF$79,(IF($A$8=Nutrients!$B$77,Nutrients!$DF$77,Nutrients!$DF$78)))))*AE$8))/2000/AE$236*100","v":62.000942333192519},{"$f":"(SUMPRODUCT(AF$9:AF$229,Nutrients!$DF$8:$DF$228)+(IF($A$7=Nutrients!$B$8,Nutrients!$DF$8,Nutrients!$DF$9)*AF$7)+(((IF($A$8=Nutrients!$B$79,Nutrients!$DF$79,(IF($A$8=Nutrients!$B$77,Nutrients!$DF$77,Nutrients!$DF$78)))))*AF$8))/2000/AF$236*100","v":61.98062536799771},{"$f":"(SUMPRODUCT(AG$9:AG$229,Nutrients!$DF$8:$DF$228)+(IF($A$7=Nutrients!$B$8,Nutrients!$DF$8,Nutrients!$DF$9)*AG$7)+(((IF($A$8=Nutrients!$B$79,Nutrients!$DF$79,(IF($A$8=Nutrients!$B$77,Nutrients!$DF$77,Nutrients!$DF$78)))))*AG$8))/2000/AG$236*100","v":62.990358357603824},{"$f":"(SUMPRODUCT(AH$9:AH$229,Nutrients!$DF$8:$DF$228)+(IF($A$7=Nutrients!$B$8,Nutrients!$DF$8,Nutrients!$DF$9)*AH$7)+(((IF($A$8=Nutrients!$B$79,Nutrients!$DF$79,(IF($A$8=Nutrients!$B$77,Nutrients!$DF$77,Nutrients!$DF$78)))))*AH$8))/2000/AH$236*100","v":62.965173480000416},{"$f":"(SUMPRODUCT(AI$9:AI$229,Nutrients!$DF$8:$DF$228)+(IF($A$7=Nutrients!$B$8,Nutrients!$DF$8,Nutrients!$DF$9)*AI$7)+(((IF($A$8=Nutrients!$B$79,Nutrients!$DF$79,(IF($A$8=Nutrients!$B$77,Nutrients!$DF$77,Nutrients!$DF$78)))))*AI$8))/2000/AI$236*100","v":63.978612807296884},null,{"$f":"(SUMPRODUCT(AK$9:AK$229,Nutrients!$DF$8:$DF$228)+(IF($A$7=Nutrients!$B$8,Nutrients!$DF$8,Nutrients!$DF$9)*AK$7)+(((IF($A$8=Nutrients!$B$79,Nutrients!$DF$79,(IF($A$8=Nutrients!$B$77,Nutrients!$DF$77,Nutrients!$DF$78)))))*AK$8))/2000/AK$236*100","v":61.989117455439228},{"$f":"(SUMPRODUCT(AL$9:AL$229,Nutrients!$DF$8:$DF$228)+(IF($A$7=Nutrients!$B$8,Nutrients!$DF$8,Nutrients!$DF$9)*AL$7)+(((IF($A$8=Nutrients!$B$79,Nutrients!$DF$79,(IF($A$8=Nutrients!$B$77,Nutrients!$DF$77,Nutrients!$DF$78)))))*AL$8))/2000/AL$236*100","v":62.003140508974894},{"$f":"(SUMPRODUCT(AM$9:AM$229,Nutrients!$DF$8:$DF$228)+(IF($A$7=Nutrients!$B$8,Nutrients!$DF$8,Nutrients!$DF$9)*AM$7)+(((IF($A$8=Nutrients!$B$79,Nutrients!$DF$79,(IF($A$8=Nutrients!$B$77,Nutrients!$DF$77,Nutrients!$DF$78)))))*AM$8))/2000/AM$236*100","v":61.974505680659611},{"$f":"(SUMPRODUCT(AN$9:AN$229,Nutrients!$DF$8:$DF$228)+(IF($A$7=Nutrients!$B$8,Nutrients!$DF$8,Nutrients!$DF$9)*AN$7)+(((IF($A$8=Nutrients!$B$79,Nutrients!$DF$79,(IF($A$8=Nutrients!$B$77,Nutrients!$DF$77,Nutrients!$DF$78)))))*AN$8))/2000/AN$236*100","v":62.98276588804741},{"$f":"(SUMPRODUCT(AO$9:AO$229,Nutrients!$DF$8:$DF$228)+(IF($A$7=Nutrients!$B$8,Nutrients!$DF$8,Nutrients!$DF$9)*AO$7)+(((IF($A$8=Nutrients!$B$79,Nutrients!$DF$79,(IF($A$8=Nutrients!$B$77,Nutrients!$DF$77,Nutrients!$DF$78)))))*AO$8))/2000/AO$236*100","v":62.947625837304123},{"$f":"(SUMPRODUCT(AP$9:AP$229,Nutrients!$DF$8:$DF$228)+(IF($A$7=Nutrients!$B$8,Nutrients!$DF$8,Nutrients!$DF$9)*AP$7)+(((IF($A$8=Nutrients!$B$79,Nutrients!$DF$79,(IF($A$8=Nutrients!$B$77,Nutrients!$DF$77,Nutrients!$DF$78)))))*AP$8))/2000/AP$236*100","v":63.965533423361912},null,{"$f":"(SUMPRODUCT(AR$9:AR$229,Nutrients!$DF$8:$DF$228)+(IF($A$7=Nutrients!$B$8,Nutrients!$DF$8,Nutrients!$DF$9)*AR$7)+(((IF($A$8=Nutrients!$B$79,Nutrients!$DF$79,(IF($A$8=Nutrients!$B$77,Nutrients!$DF$77,Nutrients!$DF$78)))))*AR$8))/2000/AR$236*100","v":62.00224225944838},{"$f":"(SUMPRODUCT(AS$9:AS$229,Nutrients!$DF$8:$DF$228)+(IF($A$7=Nutrients!$B$8,Nutrients!$DF$8,Nutrients!$DF$9)*AS$7)+(((IF($A$8=Nutrients!$B$79,Nutrients!$DF$79,(IF($A$8=Nutrients!$B$77,Nutrients!$DF$77,Nutrients!$DF$78)))))*AS$8))/2000/AS$236*100","v":62.005211783611692},{"$f":"(SUMPRODUCT(AT$9:AT$229,Nutrients!$DF$8:$DF$228)+(IF($A$7=Nutrients!$B$8,Nutrients!$DF$8,Nutrients!$DF$9)*AT$7)+(((IF($A$8=Nutrients!$B$79,Nutrients!$DF$79,(IF($A$8=Nutrients!$B$77,Nutrients!$DF$77,Nutrients!$DF$78)))))*AT$8))/2000/AT$236*100","v":61.966294984176272},{"$f":"(SUMPRODUCT(AU$9:AU$229,Nutrients!$DF$8:$DF$228)+(IF($A$7=Nutrients!$B$8,Nutrients!$DF$8,Nutrients!$DF$9)*AU$7)+(((IF($A$8=Nutrients!$B$79,Nutrients!$DF$79,(IF($A$8=Nutrients!$B$77,Nutrients!$DF$77,Nutrients!$DF$78)))))*AU$8))/2000/AU$236*100","v":62.970737828950426},{"$f":"(SUMPRODUCT(AV$9:AV$229,Nutrients!$DF$8:$DF$228)+(IF($A$7=Nutrients!$B$8,Nutrients!$DF$8,Nutrients!$DF$9)*AV$7)+(((IF($A$8=Nutrients!$B$79,Nutrients!$DF$79,(IF($A$8=Nutrients!$B$77,Nutrients!$DF$77,Nutrients!$DF$78)))))*AV$8))/2000/AV$236*100","v":62.929768176067761},{"$f":"(SUMPRODUCT(AW$9:AW$229,Nutrients!$DF$8:$DF$228)+(IF($A$7=Nutrients!$B$8,Nutrients!$DF$8,Nutrients!$DF$9)*AW$7)+(((IF($A$8=Nutrients!$B$79,Nutrients!$DF$79,(IF($A$8=Nutrients!$B$77,Nutrients!$DF$77,Nutrients!$DF$78)))))*AW$8))/2000/AW$236*100","v":63.952266965700346}]
["  Trp:Lys",{"$f":"(SUMPRODUCT(B$9:B$229,Nutrients!$DG$8:$DG$228)+(IF($A$7=Nutrients!$B$8,Nutrients!$DG$8,Nutrients!$DG$9)*B$7)+(((IF($A$8=Nutrients!$B$79,Nutrients!$DG$79,(IF($A$8=Nutrients!$B$77,Nutrients!$DG$77,Nutrients!$DG$78)))))*B$8))/2000/B$236*100","v":18.999999999999996},{"$f":"(SUMPRODUCT(C$9:C$229,Nutrients!$DG$8:$DG$228)+(IF($A$7=Nutrients!$B$8,Nutrients!$DG$8,Nutrients!$DG$9)*C$7)+(((IF($A$8=Nutrients!$B$79,Nutrients!$DG$79,(IF($A$8=Nutrients!$B$77,Nutrients!$DG$77,Nutrients!$DG$78)))))*C$8))/2000/C$236*100","v":18.999999999999993},{"$f":"(SUMPRODUCT(D$9:D$229,Nutrients!$DG$8:$DG$228)+(IF($A$7=Nutrients!$B$8,Nutrients!$DG$8,Nutrients!$DG$9)*D$7)+(((IF($A$8=Nutrients!$B$79,Nutrients!$DG$79,(IF($A$8=Nutrients!$B$77,Nutrients!$DG$77,Nutrients!$DG$78)))))*D$8))/2000/D$236*100","v":19.034949922351728},{"$f":"(SUMPRODUCT(E$9:E$229,Nutrients!$DG$8:$DG$228)+(IF($A$7=Nutrients!$B$8,Nutrients!$DG$8,Nutrients!$DG$9)*E$7)+(((IF($A$8=Nutrients!$B$79,Nutrients!$DG$79,(IF($A$8=Nutrients!$B$77,Nutrients!$DG$77,Nutrients!$DG$78)))))*E$8))/2000/E$236*100","v":19},{"$f":"(SUMPRODUCT(F$9:F$229,Nutrients!$DG$8:$DG$228)+(IF($A$7=Nutrients!$B$8,Nutrients!$DG$8,Nutrients!$DG$9)*F$7)+(((IF($A$8=Nutrients!$B$79,Nutrients!$DG$79,(IF($A$8=Nutrients!$B$77,Nutrients!$DG$77,Nutrients!$DG$78)))))*F$8))/2000/F$236*100","v":19.000000000000043},{"$f":"(SUMPRODUCT(G$9:G$229,Nutrients!$DG$8:$DG$228)+(IF($A$7=Nutrients!$B$8,Nutrients!$DG$8,Nutrients!$DG$9)*G$7)+(((IF($A$8=Nutrients!$B$79,Nutrients!$DG$79,(IF($A$8=Nutrients!$B$77,Nutrients!$DG$77,Nutrients!$DG$78)))))*G$8))/2000/G$236*100","v":18.999963234918017},null,{"$f":"(SUMPRODUCT(I$9:I$229,Nutrients!$DG$8:$DG$228)+(IF($A$7=Nutrients!$B$8,Nutrients!$DG$8,Nutrients!$DG$9)*I$7)+(((IF($A$8=Nutrients!$B$79,Nutrients!$DG$79,(IF($A$8=Nutrients!$B$77,Nutrients!$DG$77,Nutrients!$DG$78)))))*I$8))/2000/I$236*100","v":18.96613749054703},{"$f":"(SUMPRODUCT(J$9:J$229,Nutrients!$DG$8:$DG$228)+(IF($A$7=Nutrients!$B$8,Nutrients!$DG$8,Nutrients!$DG$9)*J$7)+(((IF($A$8=Nutrients!$B$79,Nutrients!$DG$79,(IF($A$8=Nutrients!$B$77,Nutrients!$DG$77,Nutrients!$DG$78)))))*J$8))/2000/J$236*100","v":18.966695120433659},{"$f":"(SUMPRODUCT(K$9:K$229,Nutrients!$DG$8:$DG$228)+(IF($A$7=Nutrients!$B$8,Nutrients!$DG$8,Nutrients!$DG$9)*K$7)+(((IF($A$8=Nutrients!$B$79,Nutrients!$DG$79,(IF($A$8=Nutrients!$B$77,Nutrients!$DG$77,Nutrients!$DG$78)))))*K$8))/2000/K$236*100","v":19.002182096555781},{"$f":"(SUMPRODUCT(L$9:L$229,Nutrients!$DG$8:$DG$228)+(IF($A$7=Nutrients!$B$8,Nutrients!$DG$8,Nutrients!$DG$9)*L$7)+(((IF($A$8=Nutrients!$B$79,Nutrients!$DG$79,(IF($A$8=Nutrients!$B$77,Nutrients!$DG$77,Nutrients!$DG$78)))))*L$8))/2000/L$236*100","v":18.966548938995487},{"$f":"(SUMPRODUCT(M$9:M$229,Nutrients!$DG$8:$DG$228)+(IF($A$7=Nutrients!$B$8,Nutrients!$DG$8,Nutrients!$DG$9)*M$7)+(((IF($A$8=Nutrients!$B$79,Nutrients!$DG$79,(IF($A$8=Nutrients!$B$77,Nutrients!$DG$77,Nutrients!$DG$78)))))*M$8))/2000/M$236*100","v":18.963129694942889},{"$f":"(SUMPRODUCT(N$9:N$229,Nutrients!$DG$8:$DG$228)+(IF($A$7=Nutrients!$B$8,Nutrients!$DG$8,Nutrients!$DG$9)*N$7)+(((IF($A$8=Nutrients!$B$79,Nutrients!$DG$79,(IF($A$8=Nutrients!$B$77,Nutrients!$DG$77,Nutrients!$DG$78)))))*N$8))/2000/N$236*100","v":18.963191611859635},null,{"$f":"(SUMPRODUCT(P$9:P$229,Nutrients!$DG$8:$DG$228)+(IF($A$7=Nutrients!$B$8,Nutrients!$DG$8,Nutrients!$DG$9)*P$7)+(((IF($A$8=Nutrients!$B$79,Nutrients!$DG$79,(IF($A$8=Nutrients!$B$77,Nutrients!$DG$77,Nutrients!$DG$78)))))*P$8))/2000/P$236*100","v":18.979458084351613},{"$f":"(SUMPRODUCT(Q$9:Q$229,Nutrients!$DG$8:$DG$228)+(IF($A$7=Nutrients!$B$8,Nutrients!$DG$8,Nutrients!$DG$9)*Q$7)+(((IF($A$8=Nutrients!$B$79,Nutrients!$DG$79,(IF($A$8=Nutrients!$B$77,Nutrients!$DG$77,Nutrients!$DG$78)))))*Q$8))/2000/Q$236*100","v":18.984827369337388},{"$f":"(SUMPRODUCT(R$9:R$229,Nutrients!$DG$8:$DG$228)+(IF($A$7=Nutrients!$B$8,Nutrients!$DG$8,Nutrients!$DG$9)*R$7)+(((IF($A$8=Nutrients!$B$79,Nutrients!$DG$79,(IF($A$8=Nutrients!$B$77,Nutrients!$DG$77,Nutrients!$DG$78)))))*R$8))/2000/R$236*100","v":19.026630788039895},{"$f":"(SUMPRODUCT(S$9:S$229,Nutrients!$DG$8:$DG$228)+(IF($A$7=Nutrients!$B$8,Nutrients!$DG$8,Nutrients!$DG$9)*S$7)+(((IF($A$8=Nutrients!$B$79,Nutrients!$DG$79,(IF($A$8=Nutrients!$B$77,Nutrients!$DG$77,Nutrients!$DG$78)))))*S$8))/2000/S$236*100","v":18.991815022412361},{"$f":"(SUMPRODUCT(T$9:T$229,Nutrients!$DG$8:$DG$228)+(IF($A$7=Nutrients!$B$8,Nutrients!$DG$8,Nutrients!$DG$9)*T$7)+(((IF($A$8=Nutrients!$B$79,Nutrients!$DG$79,(IF($A$8=Nutrients!$B$77,Nutrients!$DG$77,Nutrients!$DG$78)))))*T$8))/2000/T$236*100","v":18.994350696939758},{"$f":"(SUMPRODUCT(U$9:U$229,Nutrients!$DG$8:$DG$228)+(IF($A$7=Nutrients!$B$8,Nutrients!$DG$8,Nutrients!$DG$9)*U$7)+(((IF($A$8=Nutrients!$B$79,Nutrients!$DG$79,(IF($A$8=Nutrients!$B$77,Nutrients!$DG$77,Nutrients!$DG$78)))))*U$8))/2000/U$236*100","v":18.997639372366169},null,{"$f":"(SUMPRODUCT(W$9:W$229,Nutrients!$DG$8:$DG$228)+(IF($A$7=Nutrients!$B$8,Nutrients!$DG$8,Nutrients!$DG$9)*W$7)+(((IF($A$8=Nutrients!$B$79,Nutrients!$DG$79,(IF($A$8=Nutrients!$B$77,Nutrients!$DG$77,Nutrients!$DG$78)))))*W$8))/2000/W$236*100","v":18.992965286611927},{"$f":"(SUMPRODUCT(X$9:X$229,Nutrients!$DG$8:$DG$228)+(IF($A$7=Nutrients!$B$8,Nutrients!$DG$8,Nutrients!$DG$9)*X$7)+(((IF($A$8=Nutrients!$B$79,Nutrients!$DG$79,(IF($A$8=Nutrients!$B$77,Nutrients!$DG$77,Nutrients!$DG$78)))))*X$8))/2000/X$236*100","v":19.003233429746302},{"$f":"(SUMPRODUCT(Y$9:Y$229,Nutrients!$DG$8:$DG$228)+(IF($A$7=Nutrients!$B$8,Nutrients!$DG$8,Nutrients!$DG$9)*Y$7)+(((IF($A$8=Nutrients!$B$79,Nutrients!$DG$79,(IF($A$8=Nutrients!$B$77,Nutrients!$DG$77,Nutrients!$DG$78)))))*Y$8))/2000/Y$236*100","v":19.046137425137381},{"$f":"(SUMPRODUCT(Z$9:Z$229,Nutrients!$DG$8:$DG$228)+(IF($A$7=Nutrients!$B$8,Nutrients!$DG$8,Nutrients!$DG$9)*Z$7)+(((IF($A$8=Nutrients!$B$79,Nutrients!$DG$79,(IF($A$8=Nutrients!$B$77,Nutrients!$DG$77,Nutrients!$DG$78)))))*Z$8))/2000/Z$236*100","v":19.01901082126091},{"$f":"(SUMPRODUCT(AA$9:AA$229,Nutrients!$DG$8:$DG$228)+(IF($A$7=Nutrients!$B$8,Nutrients!$DG$8,Nutrients!$DG$9)*AA$7)+(((IF($A$8=Nutrients!$B$79,Nutrients!$DG$79,(IF($A$8=Nutrients!$B$77,Nutrients!$DG$77,Nutrients!$DG$78)))))*AA$8))/2000/AA$236*100","v":19.026488064677384},{"$f":"(SUMPRODUCT(AB$9:AB$229,Nutrients!$DG$8:$DG$228)+(IF($A$7=Nutrients!$B$8,Nutrients!$DG$8,Nutrients!$DG$9)*AB$7)+(((IF($A$8=Nutrients!$B$79,Nutrients!$DG$79,(IF($A$8=Nutrients!$B$77,Nutrients!$DG$77,Nutrients!$DG$78)))))*AB$8))/2000/AB$236*100","v":19.031678552714048},null,{"$f":"(SUMPRODUCT(AD$9:AD$229,Nutrients!$DG$8:$DG$228)+(IF($A$7=Nutrients!$B$8,Nutrients!$DG$8,Nutrients!$DG$9)*AD$7)+(((IF($A$8=Nutrients!$B$79,Nutrients!$DG$79,(IF($A$8=Nutrients!$B$77,Nutrients!$DG$77,Nutrients!$DG$78)))))*AD$8))/2000/AD$236*100","v":19.006321697690311},{"$f":"(SUMPRODUCT(AE$9:AE$229,Nutrients!$DG$8:$DG$228)+(IF($A$7=Nutrients!$B$8,Nutrients!$DG$8,Nutrients!$DG$9)*AE$7)+(((IF($A$8=Nutrients!$B$79,Nutrients!$DG$79,(IF($A$8=Nutrients!$B$77,Nutrients!$DG$77,Nutrients!$DG$78)))))*AE$8))/2000/AE$236*100","v":19.017227334407099},{"$f":"(SUMPRODUCT(AF$9:AF$229,Nutrients!$DG$8:$DG$228)+(IF($A$7=Nutrients!$B$8,Nutrients!$DG$8,Nutrients!$DG$9)*AF$7)+(((IF($A$8=Nutrients!$B$79,Nutrients!$DG$79,(IF($A$8=Nutrients!$B$77,Nutrients!$DG$77,Nutrients!$DG$78)))))*AF$8))/2000/AF$236*100","v":18.999966790846877},{"$f":"(SUMPRODUCT(AG$9:AG$229,Nutrients!$DG$8:$DG$228)+(IF($A$7=Nutrients!$B$8,Nutrients!$DG$8,Nutrients!$DG$9)*AG$7)+(((IF($A$8=Nutrients!$B$79,Nutrients!$DG$79,(IF($A$8=Nutrients!$B$77,Nutrients!$DG$77,Nutrients!$DG$78)))))*AG$8))/2000/AG$236*100","v":19.046447634243311},{"$f":"(SUMPRODUCT(AH$9:AH$229,Nutrients!$DG$8:$DG$228)+(IF($A$7=Nutrients!$B$8,Nutrients!$DG$8,Nutrients!$DG$9)*AH$7)+(((IF($A$8=Nutrients!$B$79,Nutrients!$DG$79,(IF($A$8=Nutrients!$B$77,Nutrients!$DG$77,Nutrients!$DG$78)))))*AH$8))/2000/AH$236*100","v":18.999959259985769},{"$f":"(SUMPRODUCT(AI$9:AI$229,Nutrients!$DG$8:$DG$228)+(IF($A$7=Nutrients!$B$8,Nutrients!$DG$8,Nutrients!$DG$9)*AI$7)+(((IF($A$8=Nutrients!$B$79,Nutrients!$DG$79,(IF($A$8=Nutrients!$B$77,Nutrients!$DG$77,Nutrients!$DG$78)))))*AI$8))/2000/AI$236*100","v":18.999957080151407},null,{"$f":"(SUMPRODUCT(AK$9:AK$229,Nutrients!$DG$8:$DG$228)+(IF($A$7=Nutrients!$B$8,Nutrients!$DG$8,Nutrients!$DG$9)*AK$7)+(((IF($A$8=Nutrients!$B$79,Nutrients!$DG$79,(IF($A$8=Nutrients!$B$77,Nutrients!$DG$77,Nutrients!$DG$78)))))*AK$8))/2000/AK$236*100","v":19.036344234507876},{"$f":"(SUMPRODUCT(AL$9:AL$229,Nutrients!$DG$8:$DG$228)+(IF($A$7=Nutrients!$B$8,Nutrients!$DG$8,Nutrients!$DG$9)*AL$7)+(((IF($A$8=Nutrients!$B$79,Nutrients!$DG$79,(IF($A$8=Nutrients!$B$77,Nutrients!$DG$77,Nutrients!$DG$78)))))*AL$8))/2000/AL$236*100","v":19.032808939858032},{"$f":"(SUMPRODUCT(AM$9:AM$229,Nutrients!$DG$8:$DG$228)+(IF($A$7=Nutrients!$B$8,Nutrients!$DG$8,Nutrients!$DG$9)*AM$7)+(((IF($A$8=Nutrients!$B$79,Nutrients!$DG$79,(IF($A$8=Nutrients!$B$77,Nutrients!$DG$77,Nutrients!$DG$78)))))*AM$8))/2000/AM$236*100","v":19.021395145702705},{"$f":"(SUMPRODUCT(AN$9:AN$229,Nutrients!$DG$8:$DG$228)+(IF($A$7=Nutrients!$B$8,Nutrients!$DG$8,Nutrients!$DG$9)*AN$7)+(((IF($A$8=Nutrients!$B$79,Nutrients!$DG$79,(IF($A$8=Nutrients!$B$77,Nutrients!$DG$77,Nutrients!$DG$78)))))*AN$8))/2000/AN$236*100","v":18.999951326059914},{"$f":"(SUMPRODUCT(AO$9:AO$229,Nutrients!$DG$8:$DG$228)+(IF($A$7=Nutrients!$B$8,Nutrients!$DG$8,Nutrients!$DG$9)*AO$7)+(((IF($A$8=Nutrients!$B$79,Nutrients!$DG$79,(IF($A$8=Nutrients!$B$77,Nutrients!$DG$77,Nutrients!$DG$78)))))*AO$8))/2000/AO$236*100","v":19.02853809550022},{"$f":"(SUMPRODUCT(AP$9:AP$229,Nutrients!$DG$8:$DG$228)+(IF($A$7=Nutrients!$B$8,Nutrients!$DG$8,Nutrients!$DG$9)*AP$7)+(((IF($A$8=Nutrients!$B$79,Nutrients!$DG$79,(IF($A$8=Nutrients!$B$77,Nutrients!$DG$77,Nutrients!$DG$78)))))*AP$8))/2000/AP$236*100","v":19.031746014068254},null,{"$f":"(SUMPRODUCT(AR$9:AR$229,Nutrients!$DG$8:$DG$228)+(IF($A$7=Nutrients!$B$8,Nutrients!$DG$8,Nutrients!$DG$9)*AR$7)+(((IF($A$8=Nutrients!$B$79,Nutrients!$DG$79,(IF($A$8=Nutrients!$B$77,Nutrients!$DG$77,Nutrients!$DG$78)))))*AR$8))/2000/AR$236*100","v":19.043917651913343},{"$f":"(SUMPRODUCT(AS$9:AS$229,Nutrients!$DG$8:$DG$228)+(IF($A$7=Nutrients!$B$8,Nutrients!$DG$8,Nutrients!$DG$9)*AS$7)+(((IF($A$8=Nutrients!$B$79,Nutrients!$DG$79,(IF($A$8=Nutrients!$B$77,Nutrients!$DG$77,Nutrients!$DG$78)))))*AS$8))/2000/AS$236*100","v":19.048660196551442},{"$f":"(SUMPRODUCT(AT$9:AT$229,Nutrients!$DG$8:$DG$228)+(IF($A$7=Nutrients!$B$8,Nutrients!$DG$8,Nutrients!$DG$9)*AT$7)+(((IF($A$8=Nutrients!$B$79,Nutrients!$DG$79,(IF($A$8=Nutrients!$B$77,Nutrients!$DG$77,Nutrients!$DG$78)))))*AT$8))/2000/AT$236*100","v":19.044184930549896},{"$f":"(SUMPRODUCT(AU$9:AU$229,Nutrients!$DG$8:$DG$228)+(IF($A$7=Nutrients!$B$8,Nutrients!$DG$8,Nutrients!$DG$9)*AU$7)+(((IF($A$8=Nutrients!$B$79,Nutrients!$DG$79,(IF($A$8=Nutrients!$B$77,Nutrients!$DG$77,Nutrients!$DG$78)))))*AU$8))/2000/AU$236*100","v":19.024294820724784},{"$f":"(SUMPRODUCT(AV$9:AV$229,Nutrients!$DG$8:$DG$228)+(IF($A$7=Nutrients!$B$8,Nutrients!$DG$8,Nutrients!$DG$9)*AV$7)+(((IF($A$8=Nutrients!$B$79,Nutrients!$DG$79,(IF($A$8=Nutrients!$B$77,Nutrients!$DG$77,Nutrients!$DG$78)))))*AV$8))/2000/AV$236*100","v":18.999937835069783},{"$f":"(SUMPRODUCT(AW$9:AW$229,Nutrients!$DG$8:$DG$228)+(IF($A$7=Nutrients!$B$8,Nutrients!$DG$8,Nutrients!$DG$9)*AW$7)+(((IF($A$8=Nutrients!$B$79,Nutrients!$DG$79,(IF($A$8=Nutrients!$B$77,Nutrients!$DG$77,Nutrients!$DG$78)))))*AW$8))/2000/AW$236*100","v":18.99993674994403}]
["  Val:Lys",{"$f":"(SUMPRODUCT(B$9:B$229,Nutrients!$DH$8:$DH$228)+(IF($A$7=Nutrients!$B$8,Nutrients!$DH$8,Nutrients!$DH$9)*B$7)+(((IF($A$8=Nutrients!$B$79,Nutrients!$DH$79,(IF($A$8=Nutrients!$B$77,Nutrients!$DH$77,Nutrients!$DH$78)))))*B$8))/2000/B$236*100","v":67.993447185961713},{"$f":"(SUMPRODUCT(C$9:C$229,Nutrients!$DH$8:$DH$228)+(IF($A$7=Nutrients!$B$8,Nutrients!$DH$8,Nutrients!$DH$9)*C$7)+(((IF($A$8=Nutrients!$B$79,Nutrients!$DH$79,(IF($A$8=Nutrients!$B$77,Nutrients!$DH$77,Nutrients!$DH$78)))))*C$8))/2000/C$236*100","v":68.398027542407448},{"$f":"(SUMPRODUCT(D$9:D$229,Nutrients!$DH$8:$DH$228)+(IF($A$7=Nutrients!$B$8,Nutrients!$DH$8,Nutrients!$DH$9)*D$7)+(((IF($A$8=Nutrients!$B$79,Nutrients!$DH$79,(IF($A$8=Nutrients!$B$77,Nutrients!$DH$77,Nutrients!$DH$78)))))*D$8))/2000/D$236*100","v":69.100266999000937},{"$f":"(SUMPRODUCT(E$9:E$229,Nutrients!$DH$8:$DH$228)+(IF($A$7=Nutrients!$B$8,Nutrients!$DH$8,Nutrients!$DH$9)*E$7)+(((IF($A$8=Nutrients!$B$79,Nutrients!$DH$79,(IF($A$8=Nutrients!$B$77,Nutrients!$DH$77,Nutrients!$DH$78)))))*E$8))/2000/E$236*100","v":69.699001665042786},{"$f":"(SUMPRODUCT(F$9:F$229,Nutrients!$DH$8:$DH$228)+(IF($A$7=Nutrients!$B$8,Nutrients!$DH$8,Nutrients!$DH$9)*F$7)+(((IF($A$8=Nutrients!$B$79,Nutrients!$DH$79,(IF($A$8=Nutrients!$B$77,Nutrients!$DH$77,Nutrients!$DH$78)))))*F$8))/2000/F$236*100","v":70.40130835469482},{"$f":"(SUMPRODUCT(G$9:G$229,Nutrients!$DH$8:$DH$228)+(IF($A$7=Nutrients!$B$8,Nutrients!$DH$8,Nutrients!$DH$9)*G$7)+(((IF($A$8=Nutrients!$B$79,Nutrients!$DH$79,(IF($A$8=Nutrients!$B$77,Nutrients!$DH$77,Nutrients!$DH$78)))))*G$8))/2000/G$236*100","v":71.102510214887189},null,{"$f":"(SUMPRODUCT(I$9:I$229,Nutrients!$DH$8:$DH$228)+(IF($A$7=Nutrients!$B$8,Nutrients!$DH$8,Nutrients!$DH$9)*I$7)+(((IF($A$8=Nutrients!$B$79,Nutrients!$DH$79,(IF($A$8=Nutrients!$B$77,Nutrients!$DH$77,Nutrients!$DH$78)))))*I$8))/2000/I$236*100","v":69.093974384643147},{"$f":"(SUMPRODUCT(J$9:J$229,Nutrients!$DH$8:$DH$228)+(IF($A$7=Nutrients!$B$8,Nutrients!$DH$8,Nutrients!$DH$9)*J$7)+(((IF($A$8=Nutrients!$B$79,Nutrients!$DH$79,(IF($A$8=Nutrients!$B$77,Nutrients!$DH$77,Nutrients!$DH$78)))))*J$8))/2000/J$236*100","v":69.643101119106518},{"$f":"(SUMPRODUCT(K$9:K$229,Nutrients!$DH$8:$DH$228)+(IF($A$7=Nutrients!$B$8,Nutrients!$DH$8,Nutrients!$DH$9)*K$7)+(((IF($A$8=Nutrients!$B$79,Nutrients!$DH$79,(IF($A$8=Nutrients!$B$77,Nutrients!$DH$77,Nutrients!$DH$78)))))*K$8))/2000/K$236*100","v":70.511197703413259},{"$f":"(SUMPRODUCT(L$9:L$229,Nutrients!$DH$8:$DH$228)+(IF($A$7=Nutrients!$B$8,Nutrients!$DH$8,Nutrients!$DH$9)*L$7)+(((IF($A$8=Nutrients!$B$79,Nutrients!$DH$79,(IF($A$8=Nutrients!$B$77,Nutrients!$DH$77,Nutrients!$DH$78)))))*L$8))/2000/L$236*100","v":71.288982894855948},{"$f":"(SUMPRODUCT(M$9:M$229,Nutrients!$DH$8:$DH$228)+(IF($A$7=Nutrients!$B$8,Nutrients!$DH$8,Nutrients!$DH$9)*M$7)+(((IF($A$8=Nutrients!$B$79,Nutrients!$DH$79,(IF($A$8=Nutrients!$B$77,Nutrients!$DH$77,Nutrients!$DH$78)))))*M$8))/2000/M$236*100","v":72.142845614545109},{"$f":"(SUMPRODUCT(N$9:N$229,Nutrients!$DH$8:$DH$228)+(IF($A$7=Nutrients!$B$8,Nutrients!$DH$8,Nutrients!$DH$9)*N$7)+(((IF($A$8=Nutrients!$B$79,Nutrients!$DH$79,(IF($A$8=Nutrients!$B$77,Nutrients!$DH$77,Nutrients!$DH$78)))))*N$8))/2000/N$236*100","v":72.941869861854897},null,{"$f":"(SUMPRODUCT(P$9:P$229,Nutrients!$DH$8:$DH$228)+(IF($A$7=Nutrients!$B$8,Nutrients!$DH$8,Nutrients!$DH$9)*P$7)+(((IF($A$8=Nutrients!$B$79,Nutrients!$DH$79,(IF($A$8=Nutrients!$B$77,Nutrients!$DH$77,Nutrients!$DH$78)))))*P$8))/2000/P$236*100","v":70.206337297398179},{"$f":"(SUMPRODUCT(Q$9:Q$229,Nutrients!$DH$8:$DH$228)+(IF($A$7=Nutrients!$B$8,Nutrients!$DH$8,Nutrients!$DH$9)*Q$7)+(((IF($A$8=Nutrients!$B$79,Nutrients!$DH$79,(IF($A$8=Nutrients!$B$77,Nutrients!$DH$77,Nutrients!$DH$78)))))*Q$8))/2000/Q$236*100","v":70.902210472313243},{"$f":"(SUMPRODUCT(R$9:R$229,Nutrients!$DH$8:$DH$228)+(IF($A$7=Nutrients!$B$8,Nutrients!$DH$8,Nutrients!$DH$9)*R$7)+(((IF($A$8=Nutrients!$B$79,Nutrients!$DH$79,(IF($A$8=Nutrients!$B$77,Nutrients!$DH$77,Nutrients!$DH$78)))))*R$8))/2000/R$236*100","v":71.937703152938838},{"$f":"(SUMPRODUCT(S$9:S$229,Nutrients!$DH$8:$DH$228)+(IF($A$7=Nutrients!$B$8,Nutrients!$DH$8,Nutrients!$DH$9)*S$7)+(((IF($A$8=Nutrients!$B$79,Nutrients!$DH$79,(IF($A$8=Nutrients!$B$77,Nutrients!$DH$77,Nutrients!$DH$78)))))*S$8))/2000/S$236*100","v":72.900156867116124},{"$f":"(SUMPRODUCT(T$9:T$229,Nutrients!$DH$8:$DH$228)+(IF($A$7=Nutrients!$B$8,Nutrients!$DH$8,Nutrients!$DH$9)*T$7)+(((IF($A$8=Nutrients!$B$79,Nutrients!$DH$79,(IF($A$8=Nutrients!$B$77,Nutrients!$DH$77,Nutrients!$DH$78)))))*T$8))/2000/T$236*100","v":73.901896651270803},{"$f":"(SUMPRODUCT(U$9:U$229,Nutrients!$DH$8:$DH$228)+(IF($A$7=Nutrients!$B$8,Nutrients!$DH$8,Nutrients!$DH$9)*U$7)+(((IF($A$8=Nutrients!$B$79,Nutrients!$DH$79,(IF($A$8=Nutrients!$B$77,Nutrients!$DH$77,Nutrients!$DH$78)))))*U$8))/2000/U$236*100","v":74.797471980902927},null,{"$f":"(SUMPRODUCT(W$9:W$229,Nutrients!$DH$8:$DH$228)+(IF($A$7=Nutrients!$B$8,Nutrients!$DH$8,Nutrients!$DH$9)*W$7)+(((IF($A$8=Nutrients!$B$79,Nutrients!$DH$79,(IF($A$8=Nutrients!$B$77,Nutrients!$DH$77,Nutrients!$DH$78)))))*W$8))/2000/W$236*100","v":71.334063883838212},{"$f":"(SUMPRODUCT(X$9:X$229,Nutrients!$DH$8:$DH$228)+(IF($A$7=Nutrients!$B$8,Nutrients!$DH$8,Nutrients!$DH$9)*X$7)+(((IF($A$8=Nutrients!$B$79,Nutrients!$DH$79,(IF($A$8=Nutrients!$B$77,Nutrients!$DH$77,Nutrients!$DH$78)))))*X$8))/2000/X$236*100","v":72.178852710011938},{"$f":"(SUMPRODUCT(Y$9:Y$229,Nutrients!$DH$8:$DH$228)+(IF($A$7=Nutrients!$B$8,Nutrients!$DH$8,Nutrients!$DH$9)*Y$7)+(((IF($A$8=Nutrients!$B$79,Nutrients!$DH$79,(IF($A$8=Nutrients!$B$77,Nutrients!$DH$77,Nutrients!$DH$78)))))*Y$8))/2000/Y$236*100","v":73.393911952958618},{"$f":"(SUMPRODUCT(Z$9:Z$229,Nutrients!$DH$8:$DH$228)+(IF($A$7=Nutrients!$B$8,Nutrients!$DH$8,Nutrients!$DH$9)*Z$7)+(((IF($A$8=Nutrients!$B$79,Nutrients!$DH$79,(IF($A$8=Nutrients!$B$77,Nutrients!$DH$77,Nutrients!$DH$78)))))*Z$8))/2000/Z$236*100","v":74.533549938140879},{"$f":"(SUMPRODUCT(AA$9:AA$229,Nutrients!$DH$8:$DH$228)+(IF($A$7=Nutrients!$B$8,Nutrients!$DH$8,Nutrients!$DH$9)*AA$7)+(((IF($A$8=Nutrients!$B$79,Nutrients!$DH$79,(IF($A$8=Nutrients!$B$77,Nutrients!$DH$77,Nutrients!$DH$78)))))*AA$8))/2000/AA$236*100","v":75.686909158492881},{"$f":"(SUMPRODUCT(AB$9:AB$229,Nutrients!$DH$8:$DH$228)+(IF($A$7=Nutrients!$B$8,Nutrients!$DH$8,Nutrients!$DH$9)*AB$7)+(((IF($A$8=Nutrients!$B$79,Nutrients!$DH$79,(IF($A$8=Nutrients!$B$77,Nutrients!$DH$77,Nutrients!$DH$78)))))*AB$8))/2000/AB$236*100","v":76.678717970032878},null,{"$f":"(SUMPRODUCT(AD$9:AD$229,Nutrients!$DH$8:$DH$228)+(IF($A$7=Nutrients!$B$8,Nutrients!$DH$8,Nutrients!$DH$9)*AD$7)+(((IF($A$8=Nutrients!$B$79,Nutrients!$DH$79,(IF($A$8=Nutrients!$B$77,Nutrients!$DH$77,Nutrients!$DH$78)))))*AD$8))/2000/AD$236*100","v":72.4775937028421},{"$f":"(SUMPRODUCT(AE$9:AE$229,Nutrients!$DH$8:$DH$228)+(IF($A$7=Nutrients!$B$8,Nutrients!$DH$8,Nutrients!$DH$9)*AE$7)+(((IF($A$8=Nutrients!$B$79,Nutrients!$DH$79,(IF($A$8=Nutrients!$B$77,Nutrients!$DH$77,Nutrients!$DH$78)))))*AE$8))/2000/AE$236*100","v":73.481995814937449},{"$f":"(SUMPRODUCT(AF$9:AF$229,Nutrients!$DH$8:$DH$228)+(IF($A$7=Nutrients!$B$8,Nutrients!$DH$8,Nutrients!$DH$9)*AF$7)+(((IF($A$8=Nutrients!$B$79,Nutrients!$DH$79,(IF($A$8=Nutrients!$B$77,Nutrients!$DH$77,Nutrients!$DH$78)))))*AF$8))/2000/AF$236*100","v":74.871137457329567},{"$f":"(SUMPRODUCT(AG$9:AG$229,Nutrients!$DH$8:$DH$228)+(IF($A$7=Nutrients!$B$8,Nutrients!$DH$8,Nutrients!$DH$9)*AG$7)+(((IF($A$8=Nutrients!$B$79,Nutrients!$DH$79,(IF($A$8=Nutrients!$B$77,Nutrients!$DH$77,Nutrients!$DH$78)))))*AG$8))/2000/AG$236*100","v":76.189992197940839},{"$f":"(SUMPRODUCT(AH$9:AH$229,Nutrients!$DH$8:$DH$228)+(IF($A$7=Nutrients!$B$8,Nutrients!$DH$8,Nutrients!$DH$9)*AH$7)+(((IF($A$8=Nutrients!$B$79,Nutrients!$DH$79,(IF($A$8=Nutrients!$B$77,Nutrients!$DH$77,Nutrients!$DH$78)))))*AH$8))/2000/AH$236*100","v":77.492218852370982},{"$f":"(SUMPRODUCT(AI$9:AI$229,Nutrients!$DH$8:$DH$228)+(IF($A$7=Nutrients!$B$8,Nutrients!$DH$8,Nutrients!$DH$9)*AI$7)+(((IF($A$8=Nutrients!$B$79,Nutrients!$DH$79,(IF($A$8=Nutrients!$B$77,Nutrients!$DH$77,Nutrients!$DH$78)))))*AI$8))/2000/AI$236*100","v":78.580079951335378},null,{"$f":"(SUMPRODUCT(AK$9:AK$229,Nutrients!$DH$8:$DH$228)+(IF($A$7=Nutrients!$B$8,Nutrients!$DH$8,Nutrients!$DH$9)*AK$7)+(((IF($A$8=Nutrients!$B$79,Nutrients!$DH$79,(IF($A$8=Nutrients!$B$77,Nutrients!$DH$77,Nutrients!$DH$78)))))*AK$8))/2000/AK$236*100","v":73.6037463202656},{"$f":"(SUMPRODUCT(AL$9:AL$229,Nutrients!$DH$8:$DH$228)+(IF($A$7=Nutrients!$B$8,Nutrients!$DH$8,Nutrients!$DH$9)*AL$7)+(((IF($A$8=Nutrients!$B$79,Nutrients!$DH$79,(IF($A$8=Nutrients!$B$77,Nutrients!$DH$77,Nutrients!$DH$78)))))*AL$8))/2000/AL$236*100","v":74.803645712631351},{"$f":"(SUMPRODUCT(AM$9:AM$229,Nutrients!$DH$8:$DH$228)+(IF($A$7=Nutrients!$B$8,Nutrients!$DH$8,Nutrients!$DH$9)*AM$7)+(((IF($A$8=Nutrients!$B$79,Nutrients!$DH$79,(IF($A$8=Nutrients!$B$77,Nutrients!$DH$77,Nutrients!$DH$78)))))*AM$8))/2000/AM$236*100","v":76.36788071286135},{"$f":"(SUMPRODUCT(AN$9:AN$229,Nutrients!$DH$8:$DH$228)+(IF($A$7=Nutrients!$B$8,Nutrients!$DH$8,Nutrients!$DH$9)*AN$7)+(((IF($A$8=Nutrients!$B$79,Nutrients!$DH$79,(IF($A$8=Nutrients!$B$77,Nutrients!$DH$77,Nutrients!$DH$78)))))*AN$8))/2000/AN$236*100","v":77.867905378141757},{"$f":"(SUMPRODUCT(AO$9:AO$229,Nutrients!$DH$8:$DH$228)+(IF($A$7=Nutrients!$B$8,Nutrients!$DH$8,Nutrients!$DH$9)*AO$7)+(((IF($A$8=Nutrients!$B$79,Nutrients!$DH$79,(IF($A$8=Nutrients!$B$77,Nutrients!$DH$77,Nutrients!$DH$78)))))*AO$8))/2000/AO$236*100","v":79.323825684649535},{"$f":"(SUMPRODUCT(AP$9:AP$229,Nutrients!$DH$8:$DH$228)+(IF($A$7=Nutrients!$B$8,Nutrients!$DH$8,Nutrients!$DH$9)*AP$7)+(((IF($A$8=Nutrients!$B$79,Nutrients!$DH$79,(IF($A$8=Nutrients!$B$77,Nutrients!$DH$77,Nutrients!$DH$78)))))*AP$8))/2000/AP$236*100","v":80.514459826486103},null,{"$f":"(SUMPRODUCT(AR$9:AR$229,Nutrients!$DH$8:$DH$228)+(IF($A$7=Nutrients!$B$8,Nutrients!$DH$8,Nutrients!$DH$9)*AR$7)+(((IF($A$8=Nutrients!$B$79,Nutrients!$DH$79,(IF($A$8=Nutrients!$B$77,Nutrients!$DH$77,Nutrients!$DH$78)))))*AR$8))/2000/AR$236*100","v":74.788564974389104},{"$f":"(SUMPRODUCT(AS$9:AS$229,Nutrients!$DH$8:$DH$228)+(IF($A$7=Nutrients!$B$8,Nutrients!$DH$8,Nutrients!$DH$9)*AS$7)+(((IF($A$8=Nutrients!$B$79,Nutrients!$DH$79,(IF($A$8=Nutrients!$B$77,Nutrients!$DH$77,Nutrients!$DH$78)))))*AS$8))/2000/AS$236*100","v":76.145974347772778},{"$f":"(SUMPRODUCT(AT$9:AT$229,Nutrients!$DH$8:$DH$228)+(IF($A$7=Nutrients!$B$8,Nutrients!$DH$8,Nutrients!$DH$9)*AT$7)+(((IF($A$8=Nutrients!$B$79,Nutrients!$DH$79,(IF($A$8=Nutrients!$B$77,Nutrients!$DH$77,Nutrients!$DH$78)))))*AT$8))/2000/AT$236*100","v":77.884435171212786},{"$f":"(SUMPRODUCT(AU$9:AU$229,Nutrients!$DH$8:$DH$228)+(IF($A$7=Nutrients!$B$8,Nutrients!$DH$8,Nutrients!$DH$9)*AU$7)+(((IF($A$8=Nutrients!$B$79,Nutrients!$DH$79,(IF($A$8=Nutrients!$B$77,Nutrients!$DH$77,Nutrients!$DH$78)))))*AU$8))/2000/AU$236*100","v":79.566807091891107},{"$f":"(SUMPRODUCT(AV$9:AV$229,Nutrients!$DH$8:$DH$228)+(IF($A$7=Nutrients!$B$8,Nutrients!$DH$8,Nutrients!$DH$9)*AV$7)+(((IF($A$8=Nutrients!$B$79,Nutrients!$DH$79,(IF($A$8=Nutrients!$B$77,Nutrients!$DH$77,Nutrients!$DH$78)))))*AV$8))/2000/AV$236*100","v":81.187549789161011},{"$f":"(SUMPRODUCT(AW$9:AW$229,Nutrients!$DH$8:$DH$228)+(IF($A$7=Nutrients!$B$8,Nutrients!$DH$8,Nutrients!$DH$9)*AW$7)+(((IF($A$8=Nutrients!$B$79,Nutrients!$DH$79,(IF($A$8=Nutrients!$B$77,Nutrients!$DH$77,Nutrients!$DH$78)))))*AW$8))/2000/AW$236*100","v":82.482842922981789}]
["  His:Lys",{"$f":"(SUMPRODUCT(B$9:B$229,Nutrients!$CX$8:$CX$228)+(IF($A$7=Nutrients!$B$8,Nutrients!$CX$8,Nutrients!$CX$9)*B$7)+(((IF($A$8=Nutrients!$B$79,Nutrients!$CX$79,(IF($A$8=Nutrients!$B$77,Nutrients!$CX$77,Nutrients!$CX$78)))))*B$8))/2000/B$236*100","v":41.164178486168282},{"$f":"(SUMPRODUCT(C$9:C$229,Nutrients!$CX$8:$CX$228)+(IF($A$7=Nutrients!$B$8,Nutrients!$CX$8,Nutrients!$CX$9)*C$7)+(((IF($A$8=Nutrients!$B$79,Nutrients!$CX$79,(IF($A$8=Nutrients!$B$77,Nutrients!$CX$77,Nutrients!$CX$78)))))*C$8))/2000/C$236*100","v":41.586004986324909},{"$f":"(SUMPRODUCT(D$9:D$229,Nutrients!$CX$8:$CX$228)+(IF($A$7=Nutrients!$B$8,Nutrients!$CX$8,Nutrients!$CX$9)*D$7)+(((IF($A$8=Nutrients!$B$79,Nutrients!$CX$79,(IF($A$8=Nutrients!$B$77,Nutrients!$CX$77,Nutrients!$CX$78)))))*D$8))/2000/D$236*100","v":42.207205920724832},{"$f":"(SUMPRODUCT(E$9:E$229,Nutrients!$CX$8:$CX$228)+(IF($A$7=Nutrients!$B$8,Nutrients!$CX$8,Nutrients!$CX$9)*E$7)+(((IF($A$8=Nutrients!$B$79,Nutrients!$CX$79,(IF($A$8=Nutrients!$B$77,Nutrients!$CX$77,Nutrients!$CX$78)))))*E$8))/2000/E$236*100","v":42.778460155865318},{"$f":"(SUMPRODUCT(F$9:F$229,Nutrients!$CX$8:$CX$228)+(IF($A$7=Nutrients!$B$8,Nutrients!$CX$8,Nutrients!$CX$9)*F$7)+(((IF($A$8=Nutrients!$B$79,Nutrients!$CX$79,(IF($A$8=Nutrients!$B$77,Nutrients!$CX$77,Nutrients!$CX$78)))))*F$8))/2000/F$236*100","v":43.376570604149812},{"$f":"(SUMPRODUCT(G$9:G$229,Nutrients!$CX$8:$CX$228)+(IF($A$7=Nutrients!$B$8,Nutrients!$CX$8,Nutrients!$CX$9)*G$7)+(((IF($A$8=Nutrients!$B$79,Nutrients!$CX$79,(IF($A$8=Nutrients!$B$77,Nutrients!$CX$77,Nutrients!$CX$78)))))*G$8))/2000/G$236*100","v":43.904809548771325},null,{"$f":"(SUMPRODUCT(I$9:I$229,Nutrients!$CX$8:$CX$228)+(IF($A$7=Nutrients!$B$8,Nutrients!$CX$8,Nutrients!$CX$9)*I$7)+(((IF($A$8=Nutrients!$B$79,Nutrients!$CX$79,(IF($A$8=Nutrients!$B$77,Nutrients!$CX$77,Nutrients!$CX$78)))))*I$8))/2000/I$236*100","v":41.558324022373206},{"$f":"(SUMPRODUCT(J$9:J$229,Nutrients!$CX$8:$CX$228)+(IF($A$7=Nutrients!$B$8,Nutrients!$CX$8,Nutrients!$CX$9)*J$7)+(((IF($A$8=Nutrients!$B$79,Nutrients!$CX$79,(IF($A$8=Nutrients!$B$77,Nutrients!$CX$77,Nutrients!$CX$78)))))*J$8))/2000/J$236*100","v":42.031597945464277},{"$f":"(SUMPRODUCT(K$9:K$229,Nutrients!$CX$8:$CX$228)+(IF($A$7=Nutrients!$B$8,Nutrients!$CX$8,Nutrients!$CX$9)*K$7)+(((IF($A$8=Nutrients!$B$79,Nutrients!$CX$79,(IF($A$8=Nutrients!$B$77,Nutrients!$CX$77,Nutrients!$CX$78)))))*K$8))/2000/K$236*100","v":42.712301314412471},{"$f":"(SUMPRODUCT(L$9:L$229,Nutrients!$CX$8:$CX$228)+(IF($A$7=Nutrients!$B$8,Nutrients!$CX$8,Nutrients!$CX$9)*L$7)+(((IF($A$8=Nutrients!$B$79,Nutrients!$CX$79,(IF($A$8=Nutrients!$B$77,Nutrients!$CX$77,Nutrients!$CX$78)))))*L$8))/2000/L$236*100","v":43.349601996006207},{"$f":"(SUMPRODUCT(M$9:M$229,Nutrients!$CX$8:$CX$228)+(IF($A$7=Nutrients!$B$8,Nutrients!$CX$8,Nutrients!$CX$9)*M$7)+(((IF($A$8=Nutrients!$B$79,Nutrients!$CX$79,(IF($A$8=Nutrients!$B$77,Nutrients!$CX$77,Nutrients!$CX$78)))))*M$8))/2000/M$236*100","v":44.004759739523536},{"$f":"(SUMPRODUCT(N$9:N$229,Nutrients!$CX$8:$CX$228)+(IF($A$7=Nutrients!$B$8,Nutrients!$CX$8,Nutrients!$CX$9)*N$7)+(((IF($A$8=Nutrients!$B$79,Nutrients!$CX$79,(IF($A$8=Nutrients!$B$77,Nutrients!$CX$77,Nutrients!$CX$78)))))*N$8))/2000/N$236*100","v":44.569306017034386},null,{"$f":"(SUMPRODUCT(P$9:P$229,Nutrients!$CX$8:$CX$228)+(IF($A$7=Nutrients!$B$8,Nutrients!$CX$8,Nutrients!$CX$9)*P$7)+(((IF($A$8=Nutrients!$B$79,Nutrients!$CX$79,(IF($A$8=Nutrients!$B$77,Nutrients!$CX$77,Nutrients!$CX$78)))))*P$8))/2000/P$236*100","v":41.953754496569353},{"$f":"(SUMPRODUCT(Q$9:Q$229,Nutrients!$CX$8:$CX$228)+(IF($A$7=Nutrients!$B$8,Nutrients!$CX$8,Nutrients!$CX$9)*Q$7)+(((IF($A$8=Nutrients!$B$79,Nutrients!$CX$79,(IF($A$8=Nutrients!$B$77,Nutrients!$CX$77,Nutrients!$CX$78)))))*Q$8))/2000/Q$236*100","v":42.479564410257716},{"$f":"(SUMPRODUCT(R$9:R$229,Nutrients!$CX$8:$CX$228)+(IF($A$7=Nutrients!$B$8,Nutrients!$CX$8,Nutrients!$CX$9)*R$7)+(((IF($A$8=Nutrients!$B$79,Nutrients!$CX$79,(IF($A$8=Nutrients!$B$77,Nutrients!$CX$77,Nutrients!$CX$78)))))*R$8))/2000/R$236*100","v":43.220223968997352},{"$f":"(SUMPRODUCT(S$9:S$229,Nutrients!$CX$8:$CX$228)+(IF($A$7=Nutrients!$B$8,Nutrients!$CX$8,Nutrients!$CX$9)*S$7)+(((IF($A$8=Nutrients!$B$79,Nutrients!$CX$79,(IF($A$8=Nutrients!$B$77,Nutrients!$CX$77,Nutrients!$CX$78)))))*S$8))/2000/S$236*100","v":43.927441366429107},{"$f":"(SUMPRODUCT(T$9:T$229,Nutrients!$CX$8:$CX$228)+(IF($A$7=Nutrients!$B$8,Nutrients!$CX$8,Nutrients!$CX$9)*T$7)+(((IF($A$8=Nutrients!$B$79,Nutrients!$CX$79,(IF($A$8=Nutrients!$B$77,Nutrients!$CX$77,Nutrients!$CX$78)))))*T$8))/2000/T$236*100","v":44.634798884181976},{"$f":"(SUMPRODUCT(U$9:U$229,Nutrients!$CX$8:$CX$228)+(IF($A$7=Nutrients!$B$8,Nutrients!$CX$8,Nutrients!$CX$9)*U$7)+(((IF($A$8=Nutrients!$B$79,Nutrients!$CX$79,(IF($A$8=Nutrients!$B$77,Nutrients!$CX$77,Nutrients!$CX$78)))))*U$8))/2000/U$236*100","v":45.234486873920886},null,{"$f":"(SUMPRODUCT(W$9:W$229,Nutrients!$CX$8:$CX$228)+(IF($A$7=Nutrients!$B$8,Nutrients!$CX$8,Nutrients!$CX$9)*W$7)+(((IF($A$8=Nutrients!$B$79,Nutrients!$CX$79,(IF($A$8=Nutrients!$B$77,Nutrients!$CX$77,Nutrients!$CX$78)))))*W$8))/2000/W$236*100","v":42.354733053311584},{"$f":"(SUMPRODUCT(X$9:X$229,Nutrients!$CX$8:$CX$228)+(IF($A$7=Nutrients!$B$8,Nutrients!$CX$8,Nutrients!$CX$9)*X$7)+(((IF($A$8=Nutrients!$B$79,Nutrients!$CX$79,(IF($A$8=Nutrients!$B$77,Nutrients!$CX$77,Nutrients!$CX$78)))))*X$8))/2000/X$236*100","v":42.93388960445477},{"$f":"(SUMPRODUCT(Y$9:Y$229,Nutrients!$CX$8:$CX$228)+(IF($A$7=Nutrients!$B$8,Nutrients!$CX$8,Nutrients!$CX$9)*Y$7)+(((IF($A$8=Nutrients!$B$79,Nutrients!$CX$79,(IF($A$8=Nutrients!$B$77,Nutrients!$CX$77,Nutrients!$CX$78)))))*Y$8))/2000/Y$236*100","v":43.742403177579369},{"$f":"(SUMPRODUCT(Z$9:Z$229,Nutrients!$CX$8:$CX$228)+(IF($A$7=Nutrients!$B$8,Nutrients!$CX$8,Nutrients!$CX$9)*Z$7)+(((IF($A$8=Nutrients!$B$79,Nutrients!$CX$79,(IF($A$8=Nutrients!$B$77,Nutrients!$CX$77,Nutrients!$CX$78)))))*Z$8))/2000/Z$236*100","v":44.512003516259654},{"$f":"(SUMPRODUCT(AA$9:AA$229,Nutrients!$CX$8:$CX$228)+(IF($A$7=Nutrients!$B$8,Nutrients!$CX$8,Nutrients!$CX$9)*AA$7)+(((IF($A$8=Nutrients!$B$79,Nutrients!$CX$79,(IF($A$8=Nutrients!$B$77,Nutrients!$CX$77,Nutrients!$CX$78)))))*AA$8))/2000/AA$236*100","v":45.273719959643884},{"$f":"(SUMPRODUCT(AB$9:AB$229,Nutrients!$CX$8:$CX$228)+(IF($A$7=Nutrients!$B$8,Nutrients!$CX$8,Nutrients!$CX$9)*AB$7)+(((IF($A$8=Nutrients!$B$79,Nutrients!$CX$79,(IF($A$8=Nutrients!$B$77,Nutrients!$CX$77,Nutrients!$CX$78)))))*AB$8))/2000/AB$236*100","v":45.90795972519043},null,{"$f":"(SUMPRODUCT(AD$9:AD$229,Nutrients!$CX$8:$CX$228)+(IF($A$7=Nutrients!$B$8,Nutrients!$CX$8,Nutrients!$CX$9)*AD$7)+(((IF($A$8=Nutrients!$B$79,Nutrients!$CX$79,(IF($A$8=Nutrients!$B$77,Nutrients!$CX$77,Nutrients!$CX$78)))))*AD$8))/2000/AD$236*100","v":42.761440028428829},{"$f":"(SUMPRODUCT(AE$9:AE$229,Nutrients!$CX$8:$CX$228)+(IF($A$7=Nutrients!$B$8,Nutrients!$CX$8,Nutrients!$CX$9)*AE$7)+(((IF($A$8=Nutrients!$B$79,Nutrients!$CX$79,(IF($A$8=Nutrients!$B$77,Nutrients!$CX$77,Nutrients!$CX$78)))))*AE$8))/2000/AE$236*100","v":43.400227028903451},{"$f":"(SUMPRODUCT(AF$9:AF$229,Nutrients!$CX$8:$CX$228)+(IF($A$7=Nutrients!$B$8,Nutrients!$CX$8,Nutrients!$CX$9)*AF$7)+(((IF($A$8=Nutrients!$B$79,Nutrients!$CX$79,(IF($A$8=Nutrients!$B$77,Nutrients!$CX$77,Nutrients!$CX$78)))))*AF$8))/2000/AF$236*100","v":44.271274040270221},{"$f":"(SUMPRODUCT(AG$9:AG$229,Nutrients!$CX$8:$CX$228)+(IF($A$7=Nutrients!$B$8,Nutrients!$CX$8,Nutrients!$CX$9)*AG$7)+(((IF($A$8=Nutrients!$B$79,Nutrients!$CX$79,(IF($A$8=Nutrients!$B$77,Nutrients!$CX$77,Nutrients!$CX$78)))))*AG$8))/2000/AG$236*100","v":45.104175184557263},{"$f":"(SUMPRODUCT(AH$9:AH$229,Nutrients!$CX$8:$CX$228)+(IF($A$7=Nutrients!$B$8,Nutrients!$CX$8,Nutrients!$CX$9)*AH$7)+(((IF($A$8=Nutrients!$B$79,Nutrients!$CX$79,(IF($A$8=Nutrients!$B$77,Nutrients!$CX$77,Nutrients!$CX$78)))))*AH$8))/2000/AH$236*100","v":45.917375770106759},{"$f":"(SUMPRODUCT(AI$9:AI$229,Nutrients!$CX$8:$CX$228)+(IF($A$7=Nutrients!$B$8,Nutrients!$CX$8,Nutrients!$CX$9)*AI$7)+(((IF($A$8=Nutrients!$B$79,Nutrients!$CX$79,(IF($A$8=Nutrients!$B$77,Nutrients!$CX$77,Nutrients!$CX$78)))))*AI$8))/2000/AI$236*100","v":46.585195257408628},null,{"$f":"(SUMPRODUCT(AK$9:AK$229,Nutrients!$CX$8:$CX$228)+(IF($A$7=Nutrients!$B$8,Nutrients!$CX$8,Nutrients!$CX$9)*AK$7)+(((IF($A$8=Nutrients!$B$79,Nutrients!$CX$79,(IF($A$8=Nutrients!$B$77,Nutrients!$CX$77,Nutrients!$CX$78)))))*AK$8))/2000/AK$236*100","v":43.153897135129938},{"$f":"(SUMPRODUCT(AL$9:AL$229,Nutrients!$CX$8:$CX$228)+(IF($A$7=Nutrients!$B$8,Nutrients!$CX$8,Nutrients!$CX$9)*AL$7)+(((IF($A$8=Nutrients!$B$79,Nutrients!$CX$79,(IF($A$8=Nutrients!$B$77,Nutrients!$CX$77,Nutrients!$CX$78)))))*AL$8))/2000/AL$236*100","v":43.872485650750043},{"$f":"(SUMPRODUCT(AM$9:AM$229,Nutrients!$CX$8:$CX$228)+(IF($A$7=Nutrients!$B$8,Nutrients!$CX$8,Nutrients!$CX$9)*AM$7)+(((IF($A$8=Nutrients!$B$79,Nutrients!$CX$79,(IF($A$8=Nutrients!$B$77,Nutrients!$CX$77,Nutrients!$CX$78)))))*AM$8))/2000/AM$236*100","v":44.806012258957722},{"$f":"(SUMPRODUCT(AN$9:AN$229,Nutrients!$CX$8:$CX$228)+(IF($A$7=Nutrients!$B$8,Nutrients!$CX$8,Nutrients!$CX$9)*AN$7)+(((IF($A$8=Nutrients!$B$79,Nutrients!$CX$79,(IF($A$8=Nutrients!$B$77,Nutrients!$CX$77,Nutrients!$CX$78)))))*AN$8))/2000/AN$236*100","v":45.702240763633903},{"$f":"(SUMPRODUCT(AO$9:AO$229,Nutrients!$CX$8:$CX$228)+(IF($A$7=Nutrients!$B$8,Nutrients!$CX$8,Nutrients!$CX$9)*AO$7)+(((IF($A$8=Nutrients!$B$79,Nutrients!$CX$79,(IF($A$8=Nutrients!$B$77,Nutrients!$CX$77,Nutrients!$CX$78)))))*AO$8))/2000/AO$236*100","v":46.568822330762352},{"$f":"(SUMPRODUCT(AP$9:AP$229,Nutrients!$CX$8:$CX$228)+(IF($A$7=Nutrients!$B$8,Nutrients!$CX$8,Nutrients!$CX$9)*AP$7)+(((IF($A$8=Nutrients!$B$79,Nutrients!$CX$79,(IF($A$8=Nutrients!$B$77,Nutrients!$CX$77,Nutrients!$CX$78)))))*AP$8))/2000/AP$236*100","v":47.274175223637755},null,{"$f":"(SUMPRODUCT(AR$9:AR$229,Nutrients!$CX$8:$CX$228)+(IF($A$7=Nutrients!$B$8,Nutrients!$CX$8,Nutrients!$CX$9)*AR$7)+(((IF($A$8=Nutrients!$B$79,Nutrients!$CX$79,(IF($A$8=Nutrients!$B$77,Nutrients!$CX$77,Nutrients!$CX$78)))))*AR$8))/2000/AR$236*100","v":43.57832339212078},{"$f":"(SUMPRODUCT(AS$9:AS$229,Nutrients!$CX$8:$CX$228)+(IF($A$7=Nutrients!$B$8,Nutrients!$CX$8,Nutrients!$CX$9)*AS$7)+(((IF($A$8=Nutrients!$B$79,Nutrients!$CX$79,(IF($A$8=Nutrients!$B$77,Nutrients!$CX$77,Nutrients!$CX$78)))))*AS$8))/2000/AS$236*100","v":44.35205819019798},{"$f":"(SUMPRODUCT(AT$9:AT$229,Nutrients!$CX$8:$CX$228)+(IF($A$7=Nutrients!$B$8,Nutrients!$CX$8,Nutrients!$CX$9)*AT$7)+(((IF($A$8=Nutrients!$B$79,Nutrients!$CX$79,(IF($A$8=Nutrients!$B$77,Nutrients!$CX$77,Nutrients!$CX$78)))))*AT$8))/2000/AT$236*100","v":45.347042060675463},{"$f":"(SUMPRODUCT(AU$9:AU$229,Nutrients!$CX$8:$CX$228)+(IF($A$7=Nutrients!$B$8,Nutrients!$CX$8,Nutrients!$CX$9)*AU$7)+(((IF($A$8=Nutrients!$B$79,Nutrients!$CX$79,(IF($A$8=Nutrients!$B$77,Nutrients!$CX$77,Nutrients!$CX$78)))))*AU$8))/2000/AU$236*100","v":46.305206497098631},{"$f":"(SUMPRODUCT(AV$9:AV$229,Nutrients!$CX$8:$CX$228)+(IF($A$7=Nutrients!$B$8,Nutrients!$CX$8,Nutrients!$CX$9)*AV$7)+(((IF($A$8=Nutrients!$B$79,Nutrients!$CX$79,(IF($A$8=Nutrients!$B$77,Nutrients!$CX$77,Nutrients!$CX$78)))))*AV$8))/2000/AV$236*100","v":47.231697869919486},{"$f":"(SUMPRODUCT(AW$9:AW$229,Nutrients!$CX$8:$CX$228)+(IF($A$7=Nutrients!$B$8,Nutrients!$CX$8,Nutrients!$CX$9)*AW$7)+(((IF($A$8=Nutrients!$B$79,Nutrients!$CX$79,(IF($A$8=Nutrients!$B$77,Nutrients!$CX$77,Nutrients!$CX$78)))))*AW$8))/2000/AW$236*100","v":47.975292763734636}]
["Total Lys, %",{"$f":"(SUMPRODUCT(B$9:B$229,Nutrients!$AJ$8:$AJ$228)+(IF($A7=Nutrients!$B$8,Nutrients!$AJ$8,Nutrients!$AJ$9)*B$7)+(((IF($A8=Nutrients!$B$79,Nutrients!$AJ$79,(IF($A8=Nutrients!$B$77,Nutrients!$AJ$77,Nutrients!$AJ$78)))))*B$8))/2000","v":1.3298660823074164},{"$f":"(SUMPRODUCT(C$9:C$229,Nutrients!$AJ$8:$AJ$228)+(IF($A7=Nutrients!$B$8,Nutrients!$AJ$8,Nutrients!$AJ$9)*C$7)+(((IF($A8=Nutrients!$B$79,Nutrients!$AJ$79,(IF($A8=Nutrients!$B$77,Nutrients!$AJ$77,Nutrients!$AJ$78)))))*C$8))/2000","v":1.17824480201899},{"$f":"(SUMPRODUCT(D$9:D$229,Nutrients!$AJ$8:$AJ$228)+(IF($A7=Nutrients!$B$8,Nutrients!$AJ$8,Nutrients!$AJ$9)*D$7)+(((IF($A8=Nutrients!$B$79,Nutrients!$AJ$79,(IF($A8=Nutrients!$B$77,Nutrients!$AJ$77,Nutrients!$AJ$78)))))*D$8))/2000","v":1.0441938280699909},{"$f":"(SUMPRODUCT(E$9:E$229,Nutrients!$AJ$8:$AJ$228)+(IF($A7=Nutrients!$B$8,Nutrients!$AJ$8,Nutrients!$AJ$9)*E$7)+(((IF($A8=Nutrients!$B$79,Nutrients!$AJ$79,(IF($A8=Nutrients!$B$77,Nutrients!$AJ$77,Nutrients!$AJ$78)))))*E$8))/2000","v":0.93300397092782039},{"$f":"(SUMPRODUCT(F$9:F$229,Nutrients!$AJ$8:$AJ$228)+(IF($A7=Nutrients!$B$8,Nutrients!$AJ$8,Nutrients!$AJ$9)*F$7)+(((IF($A8=Nutrients!$B$79,Nutrients!$AJ$79,(IF($A8=Nutrients!$B$77,Nutrients!$AJ$77,Nutrients!$AJ$78)))))*F$8))/2000","v":0.85681025979312531},{"$f":"(SUMPRODUCT(G$9:G$229,Nutrients!$AJ$8:$AJ$228)+(IF($A7=Nutrients!$B$8,Nutrients!$AJ$8,Nutrients!$AJ$9)*G$7)+(((IF($A8=Nutrients!$B$79,Nutrients!$AJ$79,(IF($A8=Nutrients!$B$77,Nutrients!$AJ$77,Nutrients!$AJ$78)))))*G$8))/2000","v":0.81496876682859276},null,{"$f":"(SUMPRODUCT(I$9:I$229,Nutrients!$AJ$8:$AJ$228)+(IF($A7=Nutrients!$B$8,Nutrients!$AJ$8,Nutrients!$AJ$9)*I$7)+(((IF($A8=Nutrients!$B$79,Nutrients!$AJ$79,(IF($A8=Nutrients!$B$77,Nutrients!$AJ$77,Nutrients!$AJ$78)))))*I$8))/2000","v":1.3275429278012842},{"$f":"(SUMPRODUCT(J$9:J$229,Nutrients!$AJ$8:$AJ$228)+(IF($A7=Nutrients!$B$8,Nutrients!$AJ$8,Nutrients!$AJ$9)*J$7)+(((IF($A8=Nutrients!$B$79,Nutrients!$AJ$79,(IF($A8=Nutrients!$B$77,Nutrients!$AJ$77,Nutrients!$AJ$78)))))*J$8))/2000","v":1.1775350375442286},{"$f":"(SUMPRODUCT(K$9:K$229,Nutrients!$AJ$8:$AJ$228)+(IF($A7=Nutrients!$B$8,Nutrients!$AJ$8,Nutrients!$AJ$9)*K$7)+(((IF($A8=Nutrients!$B$79,Nutrients!$AJ$79,(IF($A8=Nutrients!$B$77,Nutrients!$AJ$77,Nutrients!$AJ$78)))))*K$8))/2000","v":1.0448107823710202},{"$f":"(SUMPRODUCT(L$9:L$229,Nutrients!$AJ$8:$AJ$228)+(IF($A7=Nutrients!$B$8,Nutrients!$AJ$8,Nutrients!$AJ$9)*L$7)+(((IF($A8=Nutrients!$B$79,Nutrients!$AJ$79,(IF($A8=Nutrients!$B$77,Nutrients!$AJ$77,Nutrients!$AJ$78)))))*L$8))/2000","v":0.93451174687459504},{"$f":"(SUMPRODUCT(M$9:M$229,Nutrients!$AJ$8:$AJ$228)+(IF($A7=Nutrients!$B$8,Nutrients!$AJ$8,Nutrients!$AJ$9)*M$7)+(((IF($A8=Nutrients!$B$79,Nutrients!$AJ$79,(IF($A8=Nutrients!$B$77,Nutrients!$AJ$77,Nutrients!$AJ$78)))))*M$8))/2000","v":0.85825204948321809},{"$f":"(SUMPRODUCT(N$9:N$229,Nutrients!$AJ$8:$AJ$228)+(IF($A7=Nutrients!$B$8,Nutrients!$AJ$8,Nutrients!$AJ$9)*N$7)+(((IF($A8=Nutrients!$B$79,Nutrients!$AJ$79,(IF($A8=Nutrients!$B$77,Nutrients!$AJ$77,Nutrients!$AJ$78)))))*N$8))/2000","v":0.81685888139663898},null,{"$f":"(SUMPRODUCT(P$9:P$229,Nutrients!$AJ$8:$AJ$228)+(IF($A7=Nutrients!$B$8,Nutrients!$AJ$8,Nutrients!$AJ$9)*P$7)+(((IF($A8=Nutrients!$B$79,Nutrients!$AJ$79,(IF($A8=Nutrients!$B$77,Nutrients!$AJ$77,Nutrients!$AJ$78)))))*P$8))/2000","v":1.3272964068241064},{"$f":"(SUMPRODUCT(Q$9:Q$229,Nutrients!$AJ$8:$AJ$228)+(IF($A7=Nutrients!$B$8,Nutrients!$AJ$8,Nutrients!$AJ$9)*Q$7)+(((IF($A8=Nutrients!$B$79,Nutrients!$AJ$79,(IF($A8=Nutrients!$B$77,Nutrients!$AJ$77,Nutrients!$AJ$78)))))*Q$8))/2000","v":1.178264987699728},{"$f":"(SUMPRODUCT(R$9:R$229,Nutrients!$AJ$8:$AJ$228)+(IF($A7=Nutrients!$B$8,Nutrients!$AJ$8,Nutrients!$AJ$9)*R$7)+(((IF($A8=Nutrients!$B$79,Nutrients!$AJ$79,(IF($A8=Nutrients!$B$77,Nutrients!$AJ$77,Nutrients!$AJ$78)))))*R$8))/2000","v":1.0465833757974383},{"$f":"(SUMPRODUCT(S$9:S$229,Nutrients!$AJ$8:$AJ$228)+(IF($A7=Nutrients!$B$8,Nutrients!$AJ$8,Nutrients!$AJ$9)*S$7)+(((IF($A8=Nutrients!$B$79,Nutrients!$AJ$79,(IF($A8=Nutrients!$B$77,Nutrients!$AJ$77,Nutrients!$AJ$78)))))*S$8))/2000","v":0.93579885313457589},{"$f":"(SUMPRODUCT(T$9:T$229,Nutrients!$AJ$8:$AJ$228)+(IF($A7=Nutrients!$B$8,Nutrients!$AJ$8,Nutrients!$AJ$9)*T$7)+(((IF($A8=Nutrients!$B$79,Nutrients!$AJ$79,(IF($A8=Nutrients!$B$77,Nutrients!$AJ$77,Nutrients!$AJ$78)))))*T$8))/2000","v":0.8603891646038071},{"$f":"(SUMPRODUCT(U$9:U$229,Nutrients!$AJ$8:$AJ$228)+(IF($A7=Nutrients!$B$8,Nutrients!$AJ$8,Nutrients!$AJ$9)*U$7)+(((IF($A8=Nutrients!$B$79,Nutrients!$AJ$79,(IF($A8=Nutrients!$B$77,Nutrients!$AJ$77,Nutrients!$AJ$78)))))*U$8))/2000","v":0.81933994780172226},null,{"$f":"(SUMPRODUCT(W$9:W$229,Nutrients!$AJ$8:$AJ$228)+(IF($A7=Nutrients!$B$8,Nutrients!$AJ$8,Nutrients!$AJ$9)*W$7)+(((IF($A8=Nutrients!$B$79,Nutrients!$AJ$79,(IF($A8=Nutrients!$B$77,Nutrients!$AJ$77,Nutrients!$AJ$78)))))*W$8))/2000","v":1.3270495557983868},{"$f":"(SUMPRODUCT(X$9:X$229,Nutrients!$AJ$8:$AJ$228)+(IF($A7=Nutrients!$B$8,Nutrients!$AJ$8,Nutrients!$AJ$9)*X$7)+(((IF($A8=Nutrients!$B$79,Nutrients!$AJ$79,(IF($A8=Nutrients!$B$77,Nutrients!$AJ$77,Nutrients!$AJ$78)))))*X$8))/2000","v":1.1790002210148609},{"$f":"(SUMPRODUCT(Y$9:Y$229,Nutrients!$AJ$8:$AJ$228)+(IF($A7=Nutrients!$B$8,Nutrients!$AJ$8,Nutrients!$AJ$9)*Y$7)+(((IF($A8=Nutrients!$B$79,Nutrients!$AJ$79,(IF($A8=Nutrients!$B$77,Nutrients!$AJ$77,Nutrients!$AJ$78)))))*Y$8))/2000","v":1.0468482878171068},{"$f":"(SUMPRODUCT(Z$9:Z$229,Nutrients!$AJ$8:$AJ$228)+(IF($A7=Nutrients!$B$8,Nutrients!$AJ$8,Nutrients!$AJ$9)*Z$7)+(((IF($A8=Nutrients!$B$79,Nutrients!$AJ$79,(IF($A8=Nutrients!$B$77,Nutrients!$AJ$77,Nutrients!$AJ$78)))))*Z$8))/2000","v":0.93747129324536693},{"$f":"(SUMPRODUCT(AA$9:AA$229,Nutrients!$AJ$8:$AJ$228)+(IF($A7=Nutrients!$B$8,Nutrients!$AJ$8,Nutrients!$AJ$9)*AA$7)+(((IF($A8=Nutrients!$B$79,Nutrients!$AJ$79,(IF($A8=Nutrients!$B$77,Nutrients!$AJ$77,Nutrients!$AJ$78)))))*AA$8))/2000","v":0.86262720209651544},{"$f":"(SUMPRODUCT(AB$9:AB$229,Nutrients!$AJ$8:$AJ$228)+(IF($A7=Nutrients!$B$8,Nutrients!$AJ$8,Nutrients!$AJ$9)*AB$7)+(((IF($A8=Nutrients!$B$79,Nutrients!$AJ$79,(IF($A8=Nutrients!$B$77,Nutrients!$AJ$77,Nutrients!$AJ$78)))))*AB$8))/2000","v":0.8216433907272559},null,{"$f":"(SUMPRODUCT(AD$9:AD$229,Nutrients!$AJ$8:$AJ$228)+(IF($A7=Nutrients!$B$8,Nutrients!$AJ$8,Nutrients!$AJ$9)*AD$7)+(((IF($A8=Nutrients!$B$79,Nutrients!$AJ$79,(IF($A8=Nutrients!$B$77,Nutrients!$AJ$77,Nutrients!$AJ$78)))))*AD$8))/2000","v":1.3266838496121753},{"$f":"(SUMPRODUCT(AE$9:AE$229,Nutrients!$AJ$8:$AJ$228)+(IF($A7=Nutrients!$B$8,Nutrients!$AJ$8,Nutrients!$AJ$9)*AE$7)+(((IF($A8=Nutrients!$B$79,Nutrients!$AJ$79,(IF($A8=Nutrients!$B$77,Nutrients!$AJ$77,Nutrients!$AJ$78)))))*AE$8))/2000","v":1.1782522626394349},{"$f":"(SUMPRODUCT(AF$9:AF$229,Nutrients!$AJ$8:$AJ$228)+(IF($A7=Nutrients!$B$8,Nutrients!$AJ$8,Nutrients!$AJ$9)*AF$7)+(((IF($A8=Nutrients!$B$79,Nutrients!$AJ$79,(IF($A8=Nutrients!$B$77,Nutrients!$AJ$77,Nutrients!$AJ$78)))))*AF$8))/2000","v":1.047470498946292},{"$f":"(SUMPRODUCT(AG$9:AG$229,Nutrients!$AJ$8:$AJ$228)+(IF($A7=Nutrients!$B$8,Nutrients!$AJ$8,Nutrients!$AJ$9)*AG$7)+(((IF($A8=Nutrients!$B$79,Nutrients!$AJ$79,(IF($A8=Nutrients!$B$77,Nutrients!$AJ$77,Nutrients!$AJ$78)))))*AG$8))/2000","v":0.93911399895936476},{"$f":"(SUMPRODUCT(AH$9:AH$229,Nutrients!$AJ$8:$AJ$228)+(IF($A7=Nutrients!$B$8,Nutrients!$AJ$8,Nutrients!$AJ$9)*AH$7)+(((IF($A8=Nutrients!$B$79,Nutrients!$AJ$79,(IF($A8=Nutrients!$B$77,Nutrients!$AJ$77,Nutrients!$AJ$78)))))*AH$8))/2000","v":0.86426542295953235},{"$f":"(SUMPRODUCT(AI$9:AI$229,Nutrients!$AJ$8:$AJ$228)+(IF($A7=Nutrients!$B$8,Nutrients!$AJ$8,Nutrients!$AJ$9)*AI$7)+(((IF($A8=Nutrients!$B$79,Nutrients!$AJ$79,(IF($A8=Nutrients!$B$77,Nutrients!$AJ$77,Nutrients!$AJ$78)))))*AI$8))/2000","v":0.8234363351854288},null,{"$f":"(SUMPRODUCT(AK$9:AK$229,Nutrients!$AJ$8:$AJ$228)+(IF($A7=Nutrients!$B$8,Nutrients!$AJ$8,Nutrients!$AJ$9)*AK$7)+(((IF($A8=Nutrients!$B$79,Nutrients!$AJ$79,(IF($A8=Nutrients!$B$77,Nutrients!$AJ$77,Nutrients!$AJ$78)))))*AK$8))/2000","v":1.3322404294645143},{"$f":"(SUMPRODUCT(AL$9:AL$229,Nutrients!$AJ$8:$AJ$228)+(IF($A7=Nutrients!$B$8,Nutrients!$AJ$8,Nutrients!$AJ$9)*AL$7)+(((IF($A8=Nutrients!$B$79,Nutrients!$AJ$79,(IF($A8=Nutrients!$B$77,Nutrients!$AJ$77,Nutrients!$AJ$78)))))*AL$8))/2000","v":1.1779324234906483},{"$f":"(SUMPRODUCT(AM$9:AM$229,Nutrients!$AJ$8:$AJ$228)+(IF($A7=Nutrients!$B$8,Nutrients!$AJ$8,Nutrients!$AJ$9)*AM$7)+(((IF($A8=Nutrients!$B$79,Nutrients!$AJ$79,(IF($A8=Nutrients!$B$77,Nutrients!$AJ$77,Nutrients!$AJ$78)))))*AM$8))/2000","v":1.04826032787552},{"$f":"(SUMPRODUCT(AN$9:AN$229,Nutrients!$AJ$8:$AJ$228)+(IF($A7=Nutrients!$B$8,Nutrients!$AJ$8,Nutrients!$AJ$9)*AN$7)+(((IF($A8=Nutrients!$B$79,Nutrients!$AJ$79,(IF($A8=Nutrients!$B$77,Nutrients!$AJ$77,Nutrients!$AJ$78)))))*AN$8))/2000","v":0.94028983467727123},{"$f":"(SUMPRODUCT(AO$9:AO$229,Nutrients!$AJ$8:$AJ$228)+(IF($A7=Nutrients!$B$8,Nutrients!$AJ$8,Nutrients!$AJ$9)*AO$7)+(((IF($A8=Nutrients!$B$79,Nutrients!$AJ$79,(IF($A8=Nutrients!$B$77,Nutrients!$AJ$77,Nutrients!$AJ$78)))))*AO$8))/2000","v":0.86569440636592476},{"$f":"(SUMPRODUCT(AP$9:AP$229,Nutrients!$AJ$8:$AJ$228)+(IF($A7=Nutrients!$B$8,Nutrients!$AJ$8,Nutrients!$AJ$9)*AP$7)+(((IF($A8=Nutrients!$B$79,Nutrients!$AJ$79,(IF($A8=Nutrients!$B$77,Nutrients!$AJ$77,Nutrients!$AJ$78)))))*AP$8))/2000","v":0.82522386751390364},null,{"$f":"(SUMPRODUCT(AR$9:AR$229,Nutrients!$AJ$8:$AJ$228)+(IF($A7=Nutrients!$B$8,Nutrients!$AJ$8,Nutrients!$AJ$9)*AR$7)+(((IF($A8=Nutrients!$B$79,Nutrients!$AJ$79,(IF($A8=Nutrients!$B$77,Nutrients!$AJ$77,Nutrients!$AJ$78)))))*AR$8))/2000","v":1.329642250521726},{"$f":"(SUMPRODUCT(AS$9:AS$229,Nutrients!$AJ$8:$AJ$228)+(IF($A7=Nutrients!$B$8,Nutrients!$AJ$8,Nutrients!$AJ$9)*AS$7)+(((IF($A8=Nutrients!$B$79,Nutrients!$AJ$79,(IF($A8=Nutrients!$B$77,Nutrients!$AJ$77,Nutrients!$AJ$78)))))*AS$8))/2000","v":1.1776212583200547},{"$f":"(SUMPRODUCT(AT$9:AT$229,Nutrients!$AJ$8:$AJ$228)+(IF($A7=Nutrients!$B$8,Nutrients!$AJ$8,Nutrients!$AJ$9)*AT$7)+(((IF($A8=Nutrients!$B$79,Nutrients!$AJ$79,(IF($A8=Nutrients!$B$77,Nutrients!$AJ$77,Nutrients!$AJ$78)))))*AT$8))/2000","v":1.0493378935832074},{"$f":"(SUMPRODUCT(AU$9:AU$229,Nutrients!$AJ$8:$AJ$228)+(IF($A7=Nutrients!$B$8,Nutrients!$AJ$8,Nutrients!$AJ$9)*AU$7)+(((IF($A8=Nutrients!$B$79,Nutrients!$AJ$79,(IF($A8=Nutrients!$B$77,Nutrients!$AJ$77,Nutrients!$AJ$78)))))*AU$8))/2000","v":0.9412254568692292},{"$f":"(SUMPRODUCT(AV$9:AV$229,Nutrients!$AJ$8:$AJ$228)+(IF($A7=Nutrients!$B$8,Nutrients!$AJ$8,Nutrients!$AJ$9)*AV$7)+(((IF($A8=Nutrients!$B$79,Nutrients!$AJ$79,(IF($A8=Nutrients!$B$77,Nutrients!$AJ$77,Nutrients!$AJ$78)))))*AV$8))/2000","v":0.86713105736562113},{"$f":"(SUMPRODUCT(AW$9:AW$229,Nutrients!$AJ$8:$AJ$228)+(IF($A7=Nutrients!$B$8,Nutrients!$AJ$8,Nutrients!$AJ$9)*AW$7)+(((IF($A8=Nutrients!$B$79,Nutrients!$AJ$79,(IF($A8=Nutrients!$B$77,Nutrients!$AJ$77,Nutrients!$AJ$78)))))*AW$8))/2000","v":0.82701445169451637}]
["ME, kcal/lb",{"$f":"(SUMPRODUCT(B$9:B$229,Nutrients!$E$8:$E$228)+(IF($A$7=Nutrients!$B$8,Nutrients!$E$8,Nutrients!$E$9)*B$7)+(((IF($A$8=Nutrients!$B$79,Nutrients!$E$79,(IF($A$8=Nutrients!$B$77,Nutrients!$E$77,Nutrients!$E$78)))))*B$8))/2000/2.2046","v":1491.8402434475765},{"$f":"(SUMPRODUCT(C$9:C$229,Nutrients!$E$8:$E$228)+(IF($A$7=Nutrients!$B$8,Nutrients!$E$8,Nutrients!$E$9)*C$7)+(((IF($A$8=Nutrients!$B$79,Nutrients!$E$79,(IF($A$8=Nutrients!$B$77,Nutrients!$E$77,Nutrients!$E$78)))))*C$8))/2000/2.2046","v":1497.3394897230346},{"$f":"(SUMPRODUCT(D$9:D$229,Nutrients!$E$8:$E$228)+(IF($A$7=Nutrients!$B$8,Nutrients!$E$8,Nutrients!$E$9)*D$7)+(((IF($A$8=Nutrients!$B$79,Nutrients!$E$79,(IF($A$8=Nutrients!$B$77,Nutrients!$E$77,Nutrients!$E$78)))))*D$8))/2000/2.2046","v":1502.2809065274494},{"$f":"(SUMPRODUCT(E$9:E$229,Nutrients!$E$8:$E$228)+(IF($A$7=Nutrients!$B$8,Nutrients!$E$8,Nutrients!$E$9)*E$7)+(((IF($A$8=Nutrients!$B$79,Nutrients!$E$79,(IF($A$8=Nutrients!$B$77,Nutrients!$E$77,Nutrients!$E$78)))))*E$8))/2000/2.2046","v":1506.6896352343656},{"$f":"(SUMPRODUCT(F$9:F$229,Nutrients!$E$8:$E$228)+(IF($A$7=Nutrients!$B$8,Nutrients!$E$8,Nutrients!$E$9)*F$7)+(((IF($A$8=Nutrients!$B$79,Nutrients!$E$79,(IF($A$8=Nutrients!$B$77,Nutrients!$E$77,Nutrients!$E$78)))))*F$8))/2000/2.2046","v":1510.1029910587361},{"$f":"(SUMPRODUCT(G$9:G$229,Nutrients!$E$8:$E$228)+(IF($A$7=Nutrients!$B$8,Nutrients!$E$8,Nutrients!$E$9)*G$7)+(((IF($A$8=Nutrients!$B$79,Nutrients!$E$79,(IF($A$8=Nutrients!$B$77,Nutrients!$E$77,Nutrients!$E$78)))))*G$8))/2000/2.2046","v":1511.4146927250044},null,{"$f":"(SUMPRODUCT(I$9:I$229,Nutrients!$E$8:$E$228)+(IF($A$7=Nutrients!$B$8,Nutrients!$E$8,Nutrients!$E$9)*I$7)+(((IF($A$8=Nutrients!$B$79,Nutrients!$E$79,(IF($A$8=Nutrients!$B$77,Nutrients!$E$77,Nutrients!$E$78)))))*I$8))/2000/2.2046","v":1495.2781048529041},{"$f":"(SUMPRODUCT(J$9:J$229,Nutrients!$E$8:$E$228)+(IF($A$7=Nutrients!$B$8,Nutrients!$E$8,Nutrients!$E$9)*J$7)+(((IF($A$8=Nutrients!$B$79,Nutrients!$E$79,(IF($A$8=Nutrients!$B$77,Nutrients!$E$77,Nutrients!$E$78)))))*J$8))/2000/2.2046","v":1500.7206404588412},{"$f":"(SUMPRODUCT(K$9:K$229,Nutrients!$E$8:$E$228)+(IF($A$7=Nutrients!$B$8,Nutrients!$E$8,Nutrients!$E$9)*K$7)+(((IF($A$8=Nutrients!$B$79,Nutrients!$E$79,(IF($A$8=Nutrients!$B$77,Nutrients!$E$77,Nutrients!$E$78)))))*K$8))/2000/2.2046","v":1505.6334623555911},{"$f":"(SUMPRODUCT(L$9:L$229,Nutrients!$E$8:$E$228)+(IF($A$7=Nutrients!$B$8,Nutrients!$E$8,Nutrients!$E$9)*L$7)+(((IF($A$8=Nutrients!$B$79,Nutrients!$E$79,(IF($A$8=Nutrients!$B$77,Nutrients!$E$77,Nutrients!$E$78)))))*L$8))/2000/2.2046","v":1510.3490479198617},{"$f":"(SUMPRODUCT(M$9:M$229,Nutrients!$E$8:$E$228)+(IF($A$7=Nutrients!$B$8,Nutrients!$E$8,Nutrients!$E$9)*M$7)+(((IF($A$8=Nutrients!$B$79,Nutrients!$E$79,(IF($A$8=Nutrients!$B$77,Nutrients!$E$77,Nutrients!$E$78)))))*M$8))/2000/2.2046","v":1513.6602731478024},{"$f":"(SUMPRODUCT(N$9:N$229,Nutrients!$E$8:$E$228)+(IF($A$7=Nutrients!$B$8,Nutrients!$E$8,Nutrients!$E$9)*N$7)+(((IF($A$8=Nutrients!$B$79,Nutrients!$E$79,(IF($A$8=Nutrients!$B$77,Nutrients!$E$77,Nutrients!$E$78)))))*N$8))/2000/2.2046","v":1515.0601244584948},null,{"$f":"(SUMPRODUCT(P$9:P$229,Nutrients!$E$8:$E$228)+(IF($A$7=Nutrients!$B$8,Nutrients!$E$8,Nutrients!$E$9)*P$7)+(((IF($A$8=Nutrients!$B$79,Nutrients!$E$79,(IF($A$8=Nutrients!$B$77,Nutrients!$E$77,Nutrients!$E$78)))))*P$8))/2000/2.2046","v":1498.6522276269789},{"$f":"(SUMPRODUCT(Q$9:Q$229,Nutrients!$E$8:$E$228)+(IF($A$7=Nutrients!$B$8,Nutrients!$E$8,Nutrients!$E$9)*Q$7)+(((IF($A$8=Nutrients!$B$79,Nutrients!$E$79,(IF($A$8=Nutrients!$B$77,Nutrients!$E$77,Nutrients!$E$78)))))*Q$8))/2000/2.2046","v":1504.085908129065},{"$f":"(SUMPRODUCT(R$9:R$229,Nutrients!$E$8:$E$228)+(IF($A$7=Nutrients!$B$8,Nutrients!$E$8,Nutrients!$E$9)*R$7)+(((IF($A$8=Nutrients!$B$79,Nutrients!$E$79,(IF($A$8=Nutrients!$B$77,Nutrients!$E$77,Nutrients!$E$78)))))*R$8))/2000/2.2046","v":1508.9672909019328},{"$f":"(SUMPRODUCT(S$9:S$229,Nutrients!$E$8:$E$228)+(IF($A$7=Nutrients!$B$8,Nutrients!$E$8,Nutrients!$E$9)*S$7)+(((IF($A$8=Nutrients!$B$79,Nutrients!$E$79,(IF($A$8=Nutrients!$B$77,Nutrients!$E$77,Nutrients!$E$78)))))*S$8))/2000/2.2046","v":1513.6921015594869},{"$f":"(SUMPRODUCT(T$9:T$229,Nutrients!$E$8:$E$228)+(IF($A$7=Nutrients!$B$8,Nutrients!$E$8,Nutrients!$E$9)*T$7)+(((IF($A$8=Nutrients!$B$79,Nutrients!$E$79,(IF($A$8=Nutrients!$B$77,Nutrients!$E$77,Nutrients!$E$78)))))*T$8))/2000/2.2046","v":1517.0642458490586},{"$f":"(SUMPRODUCT(U$9:U$229,Nutrients!$E$8:$E$228)+(IF($A$7=Nutrients!$B$8,Nutrients!$E$8,Nutrients!$E$9)*U$7)+(((IF($A$8=Nutrients!$B$79,Nutrients!$E$79,(IF($A$8=Nutrients!$B$77,Nutrients!$E$77,Nutrients!$E$78)))))*U$8))/2000/2.2046","v":1518.4793332984934},null,{"$f":"(SUMPRODUCT(W$9:W$229,Nutrients!$E$8:$E$228)+(IF($A$7=Nutrients!$B$8,Nutrients!$E$8,Nutrients!$E$9)*W$7)+(((IF($A$8=Nutrients!$B$79,Nutrients!$E$79,(IF($A$8=Nutrients!$B$77,Nutrients!$E$77,Nutrients!$E$78)))))*W$8))/2000/2.2046","v":1502.0516798715139},{"$f":"(SUMPRODUCT(X$9:X$229,Nutrients!$E$8:$E$228)+(IF($A$7=Nutrients!$B$8,Nutrients!$E$8,Nutrients!$E$9)*X$7)+(((IF($A$8=Nutrients!$B$79,Nutrients!$E$79,(IF($A$8=Nutrients!$B$77,Nutrients!$E$77,Nutrients!$E$78)))))*X$8))/2000/2.2046","v":1507.4687579662173},{"$f":"(SUMPRODUCT(Y$9:Y$229,Nutrients!$E$8:$E$228)+(IF($A$7=Nutrients!$B$8,Nutrients!$E$8,Nutrients!$E$9)*Y$7)+(((IF($A$8=Nutrients!$B$79,Nutrients!$E$79,(IF($A$8=Nutrients!$B$77,Nutrients!$E$77,Nutrients!$E$78)))))*Y$8))/2000/2.2046","v":1512.3626488822301},{"$f":"(SUMPRODUCT(Z$9:Z$229,Nutrients!$E$8:$E$228)+(IF($A$7=Nutrients!$B$8,Nutrients!$E$8,Nutrients!$E$9)*Z$7)+(((IF($A$8=Nutrients!$B$79,Nutrients!$E$79,(IF($A$8=Nutrients!$B$77,Nutrients!$E$77,Nutrients!$E$78)))))*Z$8))/2000/2.2046","v":1517.0846737515897},{"$f":"(SUMPRODUCT(AA$9:AA$229,Nutrients!$E$8:$E$228)+(IF($A$7=Nutrients!$B$8,Nutrients!$E$8,Nutrients!$E$9)*AA$7)+(((IF($A$8=Nutrients!$B$79,Nutrients!$E$79,(IF($A$8=Nutrients!$B$77,Nutrients!$E$77,Nutrients!$E$78)))))*AA$8))/2000/2.2046","v":1520.518971093664},{"$f":"(SUMPRODUCT(AB$9:AB$229,Nutrients!$E$8:$E$228)+(IF($A$7=Nutrients!$B$8,Nutrients!$E$8,Nutrients!$E$9)*AB$7)+(((IF($A$8=Nutrients!$B$79,Nutrients!$E$79,(IF($A$8=Nutrients!$B$77,Nutrients!$E$77,Nutrients!$E$78)))))*AB$8))/2000/2.2046","v":1521.6052545331161},null,{"$f":"(SUMPRODUCT(AD$9:AD$229,Nutrients!$E$8:$E$228)+(IF($A$7=Nutrients!$B$8,Nutrients!$E$8,Nutrients!$E$9)*AD$7)+(((IF($A$8=Nutrients!$B$79,Nutrients!$E$79,(IF($A$8=Nutrients!$B$77,Nutrients!$E$77,Nutrients!$E$78)))))*AD$8))/2000/2.2046","v":1505.4379363536875},{"$f":"(SUMPRODUCT(AE$9:AE$229,Nutrients!$E$8:$E$228)+(IF($A$7=Nutrients!$B$8,Nutrients!$E$8,Nutrients!$E$9)*AE$7)+(((IF($A$8=Nutrients!$B$79,Nutrients!$E$79,(IF($A$8=Nutrients!$B$77,Nutrients!$E$77,Nutrients!$E$78)))))*AE$8))/2000/2.2046","v":1510.8603334029074},{"$f":"(SUMPRODUCT(AF$9:AF$229,Nutrients!$E$8:$E$228)+(IF($A$7=Nutrients!$B$8,Nutrients!$E$8,Nutrients!$E$9)*AF$7)+(((IF($A$8=Nutrients!$B$79,Nutrients!$E$79,(IF($A$8=Nutrients!$B$77,Nutrients!$E$77,Nutrients!$E$78)))))*AF$8))/2000/2.2046","v":1515.7191861337612},{"$f":"(SUMPRODUCT(AG$9:AG$229,Nutrients!$E$8:$E$228)+(IF($A$7=Nutrients!$B$8,Nutrients!$E$8,Nutrients!$E$9)*AG$7)+(((IF($A$8=Nutrients!$B$79,Nutrients!$E$79,(IF($A$8=Nutrients!$B$77,Nutrients!$E$77,Nutrients!$E$78)))))*AG$8))/2000/2.2046","v":1520.5261055090778},{"$f":"(SUMPRODUCT(AH$9:AH$229,Nutrients!$E$8:$E$228)+(IF($A$7=Nutrients!$B$8,Nutrients!$E$8,Nutrients!$E$9)*AH$7)+(((IF($A$8=Nutrients!$B$79,Nutrients!$E$79,(IF($A$8=Nutrients!$B$77,Nutrients!$E$77,Nutrients!$E$78)))))*AH$8))/2000/2.2046","v":1523.0796667784584},{"$f":"(SUMPRODUCT(AI$9:AI$229,Nutrients!$E$8:$E$228)+(IF($A$7=Nutrients!$B$8,Nutrients!$E$8,Nutrients!$E$9)*AI$7)+(((IF($A$8=Nutrients!$B$79,Nutrients!$E$79,(IF($A$8=Nutrients!$B$77,Nutrients!$E$77,Nutrients!$E$78)))))*AI$8))/2000/2.2046","v":1523.7309029723206},null,{"$f":"(SUMPRODUCT(AK$9:AK$229,Nutrients!$E$8:$E$228)+(IF($A$7=Nutrients!$B$8,Nutrients!$E$8,Nutrients!$E$9)*AK$7)+(((IF($A$8=Nutrients!$B$79,Nutrients!$E$79,(IF($A$8=Nutrients!$B$77,Nutrients!$E$77,Nutrients!$E$78)))))*AK$8))/2000/2.2046","v":1508.7205039881487},{"$f":"(SUMPRODUCT(AL$9:AL$229,Nutrients!$E$8:$E$228)+(IF($A$7=Nutrients!$B$8,Nutrients!$E$8,Nutrients!$E$9)*AL$7)+(((IF($A$8=Nutrients!$B$79,Nutrients!$E$79,(IF($A$8=Nutrients!$B$77,Nutrients!$E$77,Nutrients!$E$78)))))*AL$8))/2000/2.2046","v":1514.2610195318475},{"$f":"(SUMPRODUCT(AM$9:AM$229,Nutrients!$E$8:$E$228)+(IF($A$7=Nutrients!$B$8,Nutrients!$E$8,Nutrients!$E$9)*AM$7)+(((IF($A$8=Nutrients!$B$79,Nutrients!$E$79,(IF($A$8=Nutrients!$B$77,Nutrients!$E$77,Nutrients!$E$78)))))*AM$8))/2000/2.2046","v":1519.1983937446416},{"$f":"(SUMPRODUCT(AN$9:AN$229,Nutrients!$E$8:$E$228)+(IF($A$7=Nutrients!$B$8,Nutrients!$E$8,Nutrients!$E$9)*AN$7)+(((IF($A$8=Nutrients!$B$79,Nutrients!$E$79,(IF($A$8=Nutrients!$B$77,Nutrients!$E$77,Nutrients!$E$78)))))*AN$8))/2000/2.2046","v":1523.3077710877762},{"$f":"(SUMPRODUCT(AO$9:AO$229,Nutrients!$E$8:$E$228)+(IF($A$7=Nutrients!$B$8,Nutrients!$E$8,Nutrients!$E$9)*AO$7)+(((IF($A$8=Nutrients!$B$79,Nutrients!$E$79,(IF($A$8=Nutrients!$B$77,Nutrients!$E$77,Nutrients!$E$78)))))*AO$8))/2000/2.2046","v":1525.217862280984},{"$f":"(SUMPRODUCT(AP$9:AP$229,Nutrients!$E$8:$E$228)+(IF($A$7=Nutrients!$B$8,Nutrients!$E$8,Nutrients!$E$9)*AP$7)+(((IF($A$8=Nutrients!$B$79,Nutrients!$E$79,(IF($A$8=Nutrients!$B$77,Nutrients!$E$77,Nutrients!$E$78)))))*AP$8))/2000/2.2046","v":1525.8623246360632},null,{"$f":"(SUMPRODUCT(AR$9:AR$229,Nutrients!$E$8:$E$228)+(IF($A$7=Nutrients!$B$8,Nutrients!$E$8,Nutrients!$E$9)*AR$7)+(((IF($A$8=Nutrients!$B$79,Nutrients!$E$79,(IF($A$8=Nutrients!$B$77,Nutrients!$E$77,Nutrients!$E$78)))))*AR$8))/2000/2.2046","v":1512.1564715988029},{"$f":"(SUMPRODUCT(AS$9:AS$229,Nutrients!$E$8:$E$228)+(IF($A$7=Nutrients!$B$8,Nutrients!$E$8,Nutrients!$E$9)*AS$7)+(((IF($A$8=Nutrients!$B$79,Nutrients!$E$79,(IF($A$8=Nutrients!$B$77,Nutrients!$E$77,Nutrients!$E$78)))))*AS$8))/2000/2.2046","v":1517.6463891175788},{"$f":"(SUMPRODUCT(AT$9:AT$229,Nutrients!$E$8:$E$228)+(IF($A$7=Nutrients!$B$8,Nutrients!$E$8,Nutrients!$E$9)*AT$7)+(((IF($A$8=Nutrients!$B$79,Nutrients!$E$79,(IF($A$8=Nutrients!$B$77,Nutrients!$E$77,Nutrients!$E$78)))))*AT$8))/2000/2.2046","v":1522.6528134877396},{"$f":"(SUMPRODUCT(AU$9:AU$229,Nutrients!$E$8:$E$228)+(IF($A$7=Nutrients!$B$8,Nutrients!$E$8,Nutrients!$E$9)*AU$7)+(((IF($A$8=Nutrients!$B$79,Nutrients!$E$79,(IF($A$8=Nutrients!$B$77,Nutrients!$E$77,Nutrients!$E$78)))))*AU$8))/2000/2.2046","v":1525.4458487239158},{"$f":"(SUMPRODUCT(AV$9:AV$229,Nutrients!$E$8:$E$228)+(IF($A$7=Nutrients!$B$8,Nutrients!$E$8,Nutrients!$E$9)*AV$7)+(((IF($A$8=Nutrients!$B$79,Nutrients!$E$79,(IF($A$8=Nutrients!$B$77,Nutrients!$E$77,Nutrients!$E$78)))))*AV$8))/2000/2.2046","v":1527.3505289827599},{"$f":"(SUMPRODUCT(AW$9:AW$229,Nutrients!$E$8:$E$228)+(IF($A$7=Nutrients!$B$8,Nutrients!$E$8,Nutrients!$E$9)*AW$7)+(((IF($A$8=Nutrients!$B$79,Nutrients!$E$79,(IF($A$8=Nutrients!$B$77,Nutrients!$E$77,Nutrients!$E$78)))))*AW$8))/2000/2.2046","v":1527.9880596093035}]
["NE Noblet Grow/Finish, kcal/lb",{"$f":"(SUMPRODUCT(B$9:B$229,Nutrients!$DY$8:$DY$228)+(IF($A$7=Nutrients!$B$8,Nutrients!$DY$8,Nutrients!$DY$9)*B$7)+(((IF($A$8=Nutrients!$B$79,Nutrients!$DY$79,(IF($A$8=Nutrients!$B$77,Nutrients!$DY$77,Nutrients!$DY$78)))))*B$8))/2000/2.2046","v":1084.249548676868},{"$f":"(SUMPRODUCT(C$9:C$229,Nutrients!$DY$8:$DY$228)+(IF($A$7=Nutrients!$B$8,Nutrients!$DY$8,Nutrients!$DY$9)*C$7)+(((IF($A$8=Nutrients!$B$79,Nutrients!$DY$79,(IF($A$8=Nutrients!$B$77,Nutrients!$DY$77,Nutrients!$DY$78)))))*C$8))/2000/2.2046","v":1102.8575690313603},{"$f":"(SUMPRODUCT(D$9:D$229,Nutrients!$DY$8:$DY$228)+(IF($A$7=Nutrients!$B$8,Nutrients!$DY$8,Nutrients!$DY$9)*D$7)+(((IF($A$8=Nutrients!$B$79,Nutrients!$DY$79,(IF($A$8=Nutrients!$B$77,Nutrients!$DY$77,Nutrients!$DY$78)))))*D$8))/2000/2.2046","v":1119.0569124625506},{"$f":"(SUMPRODUCT(E$9:E$229,Nutrients!$DY$8:$DY$228)+(IF($A$7=Nutrients!$B$8,Nutrients!$DY$8,Nutrients!$DY$9)*E$7)+(((IF($A$8=Nutrients!$B$79,Nutrients!$DY$79,(IF($A$8=Nutrients!$B$77,Nutrients!$DY$77,Nutrients!$DY$78)))))*E$8))/2000/2.2046","v":1132.8948287435808},{"$f":"(SUMPRODUCT(F$9:F$229,Nutrients!$DY$8:$DY$228)+(IF($A$7=Nutrients!$B$8,Nutrients!$DY$8,Nutrients!$DY$9)*F$7)+(((IF($A$8=Nutrients!$B$79,Nutrients!$DY$79,(IF($A$8=Nutrients!$B$77,Nutrients!$DY$77,Nutrients!$DY$78)))))*F$8))/2000/2.2046","v":1142.4960914643329},{"$f":"(SUMPRODUCT(G$9:G$229,Nutrients!$DY$8:$DY$228)+(IF($A$7=Nutrients!$B$8,Nutrients!$DY$8,Nutrients!$DY$9)*G$7)+(((IF($A$8=Nutrients!$B$79,Nutrients!$DY$79,(IF($A$8=Nutrients!$B$77,Nutrients!$DY$77,Nutrients!$DY$78)))))*G$8))/2000/2.2046","v":1147.04091606665},null,{"$f":"(SUMPRODUCT(I$9:I$229,Nutrients!$DY$8:$DY$228)+(IF($A$7=Nutrients!$B$8,Nutrients!$DY$8,Nutrients!$DY$9)*I$7)+(((IF($A$8=Nutrients!$B$79,Nutrients!$DY$79,(IF($A$8=Nutrients!$B$77,Nutrients!$DY$77,Nutrients!$DY$78)))))*I$8))/2000/2.2046","v":1030.3054724813126},{"$f":"(SUMPRODUCT(J$9:J$229,Nutrients!$DY$8:$DY$228)+(IF($A$7=Nutrients!$B$8,Nutrients!$DY$8,Nutrients!$DY$9)*J$7)+(((IF($A$8=Nutrients!$B$79,Nutrients!$DY$79,(IF($A$8=Nutrients!$B$77,Nutrients!$DY$77,Nutrients!$DY$78)))))*J$8))/2000/2.2046","v":1048.7145298724788},{"$f":"(SUMPRODUCT(K$9:K$229,Nutrients!$DY$8:$DY$228)+(IF($A$7=Nutrients!$B$8,Nutrients!$DY$8,Nutrients!$DY$9)*K$7)+(((IF($A$8=Nutrients!$B$79,Nutrients!$DY$79,(IF($A$8=Nutrients!$B$77,Nutrients!$DY$77,Nutrients!$DY$78)))))*K$8))/2000/2.2046","v":1064.7642109414696},{"$f":"(SUMPRODUCT(L$9:L$229,Nutrients!$DY$8:$DY$228)+(IF($A$7=Nutrients!$B$8,Nutrients!$DY$8,Nutrients!$DY$9)*L$7)+(((IF($A$8=Nutrients!$B$79,Nutrients!$DY$79,(IF($A$8=Nutrients!$B$77,Nutrients!$DY$77,Nutrients!$DY$78)))))*L$8))/2000/2.2046","v":1078.7614320762229},{"$f":"(SUMPRODUCT(M$9:M$229,Nutrients!$DY$8:$DY$228)+(IF($A$7=Nutrients!$B$8,Nutrients!$DY$8,Nutrients!$DY$9)*M$7)+(((IF($A$8=Nutrients!$B$79,Nutrients!$DY$79,(IF($A$8=Nutrients!$B$77,Nutrients!$DY$77,Nutrients!$DY$78)))))*M$8))/2000/2.2046","v":1088.2876932598908},{"$f":"(SUMPRODUCT(N$9:N$229,Nutrients!$DY$8:$DY$228)+(IF($A$7=Nutrients!$B$8,Nutrients!$DY$8,Nutrients!$DY$9)*N$7)+(((IF($A$8=Nutrients!$B$79,Nutrients!$DY$79,(IF($A$8=Nutrients!$B$77,Nutrients!$DY$77,Nutrients!$DY$78)))))*N$8))/2000/2.2046","v":1092.8596734095995},null,{"$f":"(SUMPRODUCT(P$9:P$229,Nutrients!$DY$8:$DY$228)+(IF($A$7=Nutrients!$B$8,Nutrients!$DY$8,Nutrients!$DY$9)*P$7)+(((IF($A$8=Nutrients!$B$79,Nutrients!$DY$79,(IF($A$8=Nutrients!$B$77,Nutrients!$DY$77,Nutrients!$DY$78)))))*P$8))/2000/2.2046","v":976.11206043749053},{"$f":"(SUMPRODUCT(Q$9:Q$229,Nutrients!$DY$8:$DY$228)+(IF($A$7=Nutrients!$B$8,Nutrients!$DY$8,Nutrients!$DY$9)*Q$7)+(((IF($A$8=Nutrients!$B$79,Nutrients!$DY$79,(IF($A$8=Nutrients!$B$77,Nutrients!$DY$77,Nutrients!$DY$78)))))*Q$8))/2000/2.2046","v":994.42057390554351},{"$f":"(SUMPRODUCT(R$9:R$229,Nutrients!$DY$8:$DY$228)+(IF($A$7=Nutrients!$B$8,Nutrients!$DY$8,Nutrients!$DY$9)*R$7)+(((IF($A$8=Nutrients!$B$79,Nutrients!$DY$79,(IF($A$8=Nutrients!$B$77,Nutrients!$DY$77,Nutrients!$DY$78)))))*R$8))/2000/2.2046","v":1010.3462226330507},{"$f":"(SUMPRODUCT(S$9:S$229,Nutrients!$DY$8:$DY$228)+(IF($A$7=Nutrients!$B$8,Nutrients!$DY$8,Nutrients!$DY$9)*S$7)+(((IF($A$8=Nutrients!$B$79,Nutrients!$DY$79,(IF($A$8=Nutrients!$B$77,Nutrients!$DY$77,Nutrients!$DY$78)))))*S$8))/2000/2.2046","v":1024.397073197247},{"$f":"(SUMPRODUCT(T$9:T$229,Nutrients!$DY$8:$DY$228)+(IF($A$7=Nutrients!$B$8,Nutrients!$DY$8,Nutrients!$DY$9)*T$7)+(((IF($A$8=Nutrients!$B$79,Nutrients!$DY$79,(IF($A$8=Nutrients!$B$77,Nutrients!$DY$77,Nutrients!$DY$78)))))*T$8))/2000/2.2046","v":1033.8856659994985},{"$f":"(SUMPRODUCT(U$9:U$229,Nutrients!$DY$8:$DY$228)+(IF($A$7=Nutrients!$B$8,Nutrients!$DY$8,Nutrients!$DY$9)*U$7)+(((IF($A$8=Nutrients!$B$79,Nutrients!$DY$79,(IF($A$8=Nutrients!$B$77,Nutrients!$DY$77,Nutrients!$DY$78)))))*U$8))/2000/2.2046","v":1038.4355204294952},null,{"$f":"(SUMPRODUCT(W$9:W$229,Nutrients!$DY$8:$DY$228)+(IF($A$7=Nutrients!$B$8,Nutrients!$DY$8,Nutrients!$DY$9)*W$7)+(((IF($A$8=Nutrients!$B$79,Nutrients!$DY$79,(IF($A$8=Nutrients!$B$77,Nutrients!$DY$77,Nutrients!$DY$78)))))*W$8))/2000/2.2046","v":921.93884305985682},{"$f":"(SUMPRODUCT(X$9:X$229,Nutrients!$DY$8:$DY$228)+(IF($A$7=Nutrients!$B$8,Nutrients!$DY$8,Nutrients!$DY$9)*X$7)+(((IF($A$8=Nutrients!$B$79,Nutrients!$DY$79,(IF($A$8=Nutrients!$B$77,Nutrients!$DY$77,Nutrients!$DY$78)))))*X$8))/2000/2.2046","v":940.1405093516845},{"$f":"(SUMPRODUCT(Y$9:Y$229,Nutrients!$DY$8:$DY$228)+(IF($A$7=Nutrients!$B$8,Nutrients!$DY$8,Nutrients!$DY$9)*Y$7)+(((IF($A$8=Nutrients!$B$79,Nutrients!$DY$79,(IF($A$8=Nutrients!$B$77,Nutrients!$DY$77,Nutrients!$DY$78)))))*Y$8))/2000/2.2046","v":956.12064653787843},{"$f":"(SUMPRODUCT(Z$9:Z$229,Nutrients!$DY$8:$DY$228)+(IF($A$7=Nutrients!$B$8,Nutrients!$DY$8,Nutrients!$DY$9)*Z$7)+(((IF($A$8=Nutrients!$B$79,Nutrients!$DY$79,(IF($A$8=Nutrients!$B$77,Nutrients!$DY$77,Nutrients!$DY$78)))))*Z$8))/2000/2.2046","v":970.03366485522986},{"$f":"(SUMPRODUCT(AA$9:AA$229,Nutrients!$DY$8:$DY$228)+(IF($A$7=Nutrients!$B$8,Nutrients!$DY$8,Nutrients!$DY$9)*AA$7)+(((IF($A$8=Nutrients!$B$79,Nutrients!$DY$79,(IF($A$8=Nutrients!$B$77,Nutrients!$DY$77,Nutrients!$DY$78)))))*AA$8))/2000/2.2046","v":979.51295555637921},{"$f":"(SUMPRODUCT(AB$9:AB$229,Nutrients!$DY$8:$DY$228)+(IF($A$7=Nutrients!$B$8,Nutrients!$DY$8,Nutrients!$DY$9)*AB$7)+(((IF($A$8=Nutrients!$B$79,Nutrients!$DY$79,(IF($A$8=Nutrients!$B$77,Nutrients!$DY$77,Nutrients!$DY$78)))))*AB$8))/2000/2.2046","v":983.79483408154363},null,{"$f":"(SUMPRODUCT(AD$9:AD$229,Nutrients!$DY$8:$DY$228)+(IF($A$7=Nutrients!$B$8,Nutrients!$DY$8,Nutrients!$DY$9)*AD$7)+(((IF($A$8=Nutrients!$B$79,Nutrients!$DY$79,(IF($A$8=Nutrients!$B$77,Nutrients!$DY$77,Nutrients!$DY$78)))))*AD$8))/2000/2.2046","v":867.76645290980991},{"$f":"(SUMPRODUCT(AE$9:AE$229,Nutrients!$DY$8:$DY$228)+(IF($A$7=Nutrients!$B$8,Nutrients!$DY$8,Nutrients!$DY$9)*AE$7)+(((IF($A$8=Nutrients!$B$79,Nutrients!$DY$79,(IF($A$8=Nutrients!$B$77,Nutrients!$DY$77,Nutrients!$DY$78)))))*AE$8))/2000/2.2046","v":886.00879686904716},{"$f":"(SUMPRODUCT(AF$9:AF$229,Nutrients!$DY$8:$DY$228)+(IF($A$7=Nutrients!$B$8,Nutrients!$DY$8,Nutrients!$DY$9)*AF$7)+(((IF($A$8=Nutrients!$B$79,Nutrients!$DY$79,(IF($A$8=Nutrients!$B$77,Nutrients!$DY$77,Nutrients!$DY$78)))))*AF$8))/2000/2.2046","v":901.83090082522074},{"$f":"(SUMPRODUCT(AG$9:AG$229,Nutrients!$DY$8:$DY$228)+(IF($A$7=Nutrients!$B$8,Nutrients!$DY$8,Nutrients!$DY$9)*AG$7)+(((IF($A$8=Nutrients!$B$79,Nutrients!$DY$79,(IF($A$8=Nutrients!$B$77,Nutrients!$DY$77,Nutrients!$DY$78)))))*AG$8))/2000/2.2046","v":915.70713070196064},{"$f":"(SUMPRODUCT(AH$9:AH$229,Nutrients!$DY$8:$DY$228)+(IF($A$7=Nutrients!$B$8,Nutrients!$DY$8,Nutrients!$DY$9)*AH$7)+(((IF($A$8=Nutrients!$B$79,Nutrients!$DY$79,(IF($A$8=Nutrients!$B$77,Nutrients!$DY$77,Nutrients!$DY$78)))))*AH$8))/2000/2.2046","v":924.48601407361025},{"$f":"(SUMPRODUCT(AI$9:AI$229,Nutrients!$DY$8:$DY$228)+(IF($A$7=Nutrients!$B$8,Nutrients!$DY$8,Nutrients!$DY$9)*AI$7)+(((IF($A$8=Nutrients!$B$79,Nutrients!$DY$79,(IF($A$8=Nutrients!$B$77,Nutrients!$DY$77,Nutrients!$DY$78)))))*AI$8))/2000/2.2046","v":928.4068468935227},null,{"$f":"(SUMPRODUCT(AK$9:AK$229,Nutrients!$DY$8:$DY$228)+(IF($A$7=Nutrients!$B$8,Nutrients!$DY$8,Nutrients!$DY$9)*AK$7)+(((IF($A$8=Nutrients!$B$79,Nutrients!$DY$79,(IF($A$8=Nutrients!$B$77,Nutrients!$DY$77,Nutrients!$DY$78)))))*AK$8))/2000/2.2046","v":812.94689712794843},{"$f":"(SUMPRODUCT(AL$9:AL$229,Nutrients!$DY$8:$DY$228)+(IF($A$7=Nutrients!$B$8,Nutrients!$DY$8,Nutrients!$DY$9)*AL$7)+(((IF($A$8=Nutrients!$B$79,Nutrients!$DY$79,(IF($A$8=Nutrients!$B$77,Nutrients!$DY$77,Nutrients!$DY$78)))))*AL$8))/2000/2.2046","v":831.84352033164794},{"$f":"(SUMPRODUCT(AM$9:AM$229,Nutrients!$DY$8:$DY$228)+(IF($A$7=Nutrients!$B$8,Nutrients!$DY$8,Nutrients!$DY$9)*AM$7)+(((IF($A$8=Nutrients!$B$79,Nutrients!$DY$79,(IF($A$8=Nutrients!$B$77,Nutrients!$DY$77,Nutrients!$DY$78)))))*AM$8))/2000/2.2046","v":847.61575016506151},{"$f":"(SUMPRODUCT(AN$9:AN$229,Nutrients!$DY$8:$DY$228)+(IF($A$7=Nutrients!$B$8,Nutrients!$DY$8,Nutrients!$DY$9)*AN$7)+(((IF($A$8=Nutrients!$B$79,Nutrients!$DY$79,(IF($A$8=Nutrients!$B$77,Nutrients!$DY$77,Nutrients!$DY$78)))))*AN$8))/2000/2.2046","v":860.90027670761856},{"$f":"(SUMPRODUCT(AO$9:AO$229,Nutrients!$DY$8:$DY$228)+(IF($A$7=Nutrients!$B$8,Nutrients!$DY$8,Nutrients!$DY$9)*AO$7)+(((IF($A$8=Nutrients!$B$79,Nutrients!$DY$79,(IF($A$8=Nutrients!$B$77,Nutrients!$DY$77,Nutrients!$DY$78)))))*AO$8))/2000/2.2046","v":869.14243153068207},{"$f":"(SUMPRODUCT(AP$9:AP$229,Nutrients!$DY$8:$DY$228)+(IF($A$7=Nutrients!$B$8,Nutrients!$DY$8,Nutrients!$DY$9)*AP$7)+(((IF($A$8=Nutrients!$B$79,Nutrients!$DY$79,(IF($A$8=Nutrients!$B$77,Nutrients!$DY$77,Nutrients!$DY$78)))))*AP$8))/2000/2.2046","v":873.02368838954681},null,{"$f":"(SUMPRODUCT(AR$9:AR$229,Nutrients!$DY$8:$DY$228)+(IF($A$7=Nutrients!$B$8,Nutrients!$DY$8,Nutrients!$DY$9)*AR$7)+(((IF($A$8=Nutrients!$B$79,Nutrients!$DY$79,(IF($A$8=Nutrients!$B$77,Nutrients!$DY$77,Nutrients!$DY$78)))))*AR$8))/2000/2.2046","v":759.02692084002376},{"$f":"(SUMPRODUCT(AS$9:AS$229,Nutrients!$DY$8:$DY$228)+(IF($A$7=Nutrients!$B$8,Nutrients!$DY$8,Nutrients!$DY$9)*AS$7)+(((IF($A$8=Nutrients!$B$79,Nutrients!$DY$79,(IF($A$8=Nutrients!$B$77,Nutrients!$DY$77,Nutrients!$DY$78)))))*AS$8))/2000/2.2046","v":777.66522428740984},{"$f":"(SUMPRODUCT(AT$9:AT$229,Nutrients!$DY$8:$DY$228)+(IF($A$7=Nutrients!$B$8,Nutrients!$DY$8,Nutrients!$DY$9)*AT$7)+(((IF($A$8=Nutrients!$B$79,Nutrients!$DY$79,(IF($A$8=Nutrients!$B$77,Nutrients!$DY$77,Nutrients!$DY$78)))))*AT$8))/2000/2.2046","v":793.35343487388752},{"$f":"(SUMPRODUCT(AU$9:AU$229,Nutrients!$DY$8:$DY$228)+(IF($A$7=Nutrients!$B$8,Nutrients!$DY$8,Nutrients!$DY$9)*AU$7)+(((IF($A$8=Nutrients!$B$79,Nutrients!$DY$79,(IF($A$8=Nutrients!$B$77,Nutrients!$DY$77,Nutrients!$DY$78)))))*AU$8))/2000/2.2046","v":805.60363695577632},{"$f":"(SUMPRODUCT(AV$9:AV$229,Nutrients!$DY$8:$DY$228)+(IF($A$7=Nutrients!$B$8,Nutrients!$DY$8,Nutrients!$DY$9)*AV$7)+(((IF($A$8=Nutrients!$B$79,Nutrients!$DY$79,(IF($A$8=Nutrients!$B$77,Nutrients!$DY$77,Nutrients!$DY$78)))))*AV$8))/2000/2.2046","v":813.79398307026099},{"$f":"(SUMPRODUCT(AW$9:AW$229,Nutrients!$DY$8:$DY$228)+(IF($A$7=Nutrients!$B$8,Nutrients!$DY$8,Nutrients!$DY$9)*AW$7)+(((IF($A$8=Nutrients!$B$79,Nutrients!$DY$79,(IF($A$8=Nutrients!$B$77,Nutrients!$DY$77,Nutrients!$DY$78)))))*AW$8))/2000/2.2046","v":817.63599301534464}]
["NE Noblet Sow, kcal/lb",{"$f":"(SUMPRODUCT(B$9:B$229,Nutrients!$DZ$8:$DZ$228)+(IF($A$7=Nutrients!$B$8,Nutrients!$DZ$8,Nutrients!$DZ$9)*B$7)+(((IF($A$8=Nutrients!$B$79,Nutrients!$DZ$79,(IF($A$8=Nutrients!$B$77,Nutrients!$DZ$77,Nutrients!$DZ$78)))))*B$8))/2000/2.2046","v":1125.1001476776023},{"$f":"(SUMPRODUCT(C$9:C$229,Nutrients!$DZ$8:$DZ$228)+(IF($A$7=Nutrients!$B$8,Nutrients!$DZ$8,Nutrients!$DZ$9)*C$7)+(((IF($A$8=Nutrients!$B$79,Nutrients!$DZ$79,(IF($A$8=Nutrients!$B$77,Nutrients!$DZ$77,Nutrients!$DZ$78)))))*C$8))/2000/2.2046","v":1142.795652894368},{"$f":"(SUMPRODUCT(D$9:D$229,Nutrients!$DZ$8:$DZ$228)+(IF($A$7=Nutrients!$B$8,Nutrients!$DZ$8,Nutrients!$DZ$9)*D$7)+(((IF($A$8=Nutrients!$B$79,Nutrients!$DZ$79,(IF($A$8=Nutrients!$B$77,Nutrients!$DZ$77,Nutrients!$DZ$78)))))*D$8))/2000/2.2046","v":1158.2172951602411},{"$f":"(SUMPRODUCT(E$9:E$229,Nutrients!$DZ$8:$DZ$228)+(IF($A$7=Nutrients!$B$8,Nutrients!$DZ$8,Nutrients!$DZ$9)*E$7)+(((IF($A$8=Nutrients!$B$79,Nutrients!$DZ$79,(IF($A$8=Nutrients!$B$77,Nutrients!$DZ$77,Nutrients!$DZ$78)))))*E$8))/2000/2.2046","v":1171.3956144840422},{"$f":"(SUMPRODUCT(F$9:F$229,Nutrients!$DZ$8:$DZ$228)+(IF($A$7=Nutrients!$B$8,Nutrients!$DZ$8,Nutrients!$DZ$9)*F$7)+(((IF($A$8=Nutrients!$B$79,Nutrients!$DZ$79,(IF($A$8=Nutrients!$B$77,Nutrients!$DZ$77,Nutrients!$DZ$78)))))*F$8))/2000/2.2046","v":1180.5769470002078},{"$f":"(SUMPRODUCT(G$9:G$229,Nutrients!$DZ$8:$DZ$228)+(IF($A$7=Nutrients!$B$8,Nutrients!$DZ$8,Nutrients!$DZ$9)*G$7)+(((IF($A$8=Nutrients!$B$79,Nutrients!$DZ$79,(IF($A$8=Nutrients!$B$77,Nutrients!$DZ$77,Nutrients!$DZ$78)))))*G$8))/2000/2.2046","v":1184.8954698199086},null,{"$f":"(SUMPRODUCT(I$9:I$229,Nutrients!$DZ$8:$DZ$228)+(IF($A$7=Nutrients!$B$8,Nutrients!$DZ$8,Nutrients!$DZ$9)*I$7)+(((IF($A$8=Nutrients!$B$79,Nutrients!$DZ$79,(IF($A$8=Nutrients!$B$77,Nutrients!$DZ$77,Nutrients!$DZ$78)))))*I$8))/2000/2.2046","v":1068.9911800783441},{"$f":"(SUMPRODUCT(J$9:J$229,Nutrients!$DZ$8:$DZ$228)+(IF($A$7=Nutrients!$B$8,Nutrients!$DZ$8,Nutrients!$DZ$9)*J$7)+(((IF($A$8=Nutrients!$B$79,Nutrients!$DZ$79,(IF($A$8=Nutrients!$B$77,Nutrients!$DZ$77,Nutrients!$DZ$78)))))*J$8))/2000/2.2046","v":1086.4978644107787},{"$f":"(SUMPRODUCT(K$9:K$229,Nutrients!$DZ$8:$DZ$228)+(IF($A$7=Nutrients!$B$8,Nutrients!$DZ$8,Nutrients!$DZ$9)*K$7)+(((IF($A$8=Nutrients!$B$79,Nutrients!$DZ$79,(IF($A$8=Nutrients!$B$77,Nutrients!$DZ$77,Nutrients!$DZ$78)))))*K$8))/2000/2.2046","v":1101.7782144390544},{"$f":"(SUMPRODUCT(L$9:L$229,Nutrients!$DZ$8:$DZ$228)+(IF($A$7=Nutrients!$B$8,Nutrients!$DZ$8,Nutrients!$DZ$9)*L$7)+(((IF($A$8=Nutrients!$B$79,Nutrients!$DZ$79,(IF($A$8=Nutrients!$B$77,Nutrients!$DZ$77,Nutrients!$DZ$78)))))*L$8))/2000/2.2046","v":1115.1289874318397},{"$f":"(SUMPRODUCT(M$9:M$229,Nutrients!$DZ$8:$DZ$228)+(IF($A$7=Nutrients!$B$8,Nutrients!$DZ$8,Nutrients!$DZ$9)*M$7)+(((IF($A$8=Nutrients!$B$79,Nutrients!$DZ$79,(IF($A$8=Nutrients!$B$77,Nutrients!$DZ$77,Nutrients!$DZ$78)))))*M$8))/2000/2.2046","v":1124.2325687885493},{"$f":"(SUMPRODUCT(N$9:N$229,Nutrients!$DZ$8:$DZ$228)+(IF($A$7=Nutrients!$B$8,Nutrients!$DZ$8,Nutrients!$DZ$9)*N$7)+(((IF($A$8=Nutrients!$B$79,Nutrients!$DZ$79,(IF($A$8=Nutrients!$B$77,Nutrients!$DZ$77,Nutrients!$DZ$78)))))*N$8))/2000/2.2046","v":1128.5831472939228},null,{"$f":"(SUMPRODUCT(P$9:P$229,Nutrients!$DZ$8:$DZ$228)+(IF($A$7=Nutrients!$B$8,Nutrients!$DZ$8,Nutrients!$DZ$9)*P$7)+(((IF($A$8=Nutrients!$B$79,Nutrients!$DZ$79,(IF($A$8=Nutrients!$B$77,Nutrients!$DZ$77,Nutrients!$DZ$78)))))*P$8))/2000/2.2046","v":1012.6455525473967},{"$f":"(SUMPRODUCT(Q$9:Q$229,Nutrients!$DZ$8:$DZ$228)+(IF($A$7=Nutrients!$B$8,Nutrients!$DZ$8,Nutrients!$DZ$9)*Q$7)+(((IF($A$8=Nutrients!$B$79,Nutrients!$DZ$79,(IF($A$8=Nutrients!$B$77,Nutrients!$DZ$77,Nutrients!$DZ$78)))))*Q$8))/2000/2.2046","v":1030.0580392630297},{"$f":"(SUMPRODUCT(R$9:R$229,Nutrients!$DZ$8:$DZ$228)+(IF($A$7=Nutrients!$B$8,Nutrients!$DZ$8,Nutrients!$DZ$9)*R$7)+(((IF($A$8=Nutrients!$B$79,Nutrients!$DZ$79,(IF($A$8=Nutrients!$B$77,Nutrients!$DZ$77,Nutrients!$DZ$78)))))*R$8))/2000/2.2046","v":1045.2213908430708},{"$f":"(SUMPRODUCT(S$9:S$229,Nutrients!$DZ$8:$DZ$228)+(IF($A$7=Nutrients!$B$8,Nutrients!$DZ$8,Nutrients!$DZ$9)*S$7)+(((IF($A$8=Nutrients!$B$79,Nutrients!$DZ$79,(IF($A$8=Nutrients!$B$77,Nutrients!$DZ$77,Nutrients!$DZ$78)))))*S$8))/2000/2.2046","v":1058.6225656661193},{"$f":"(SUMPRODUCT(T$9:T$229,Nutrients!$DZ$8:$DZ$228)+(IF($A$7=Nutrients!$B$8,Nutrients!$DZ$8,Nutrients!$DZ$9)*T$7)+(((IF($A$8=Nutrients!$B$79,Nutrients!$DZ$79,(IF($A$8=Nutrients!$B$77,Nutrients!$DZ$77,Nutrients!$DZ$78)))))*T$8))/2000/2.2046","v":1067.691198716248},{"$f":"(SUMPRODUCT(U$9:U$229,Nutrients!$DZ$8:$DZ$228)+(IF($A$7=Nutrients!$B$8,Nutrients!$DZ$8,Nutrients!$DZ$9)*U$7)+(((IF($A$8=Nutrients!$B$79,Nutrients!$DZ$79,(IF($A$8=Nutrients!$B$77,Nutrients!$DZ$77,Nutrients!$DZ$78)))))*U$8))/2000/2.2046","v":1072.0210965433173},null,{"$f":"(SUMPRODUCT(W$9:W$229,Nutrients!$DZ$8:$DZ$228)+(IF($A$7=Nutrients!$B$8,Nutrients!$DZ$8,Nutrients!$DZ$9)*W$7)+(((IF($A$8=Nutrients!$B$79,Nutrients!$DZ$79,(IF($A$8=Nutrients!$B$77,Nutrients!$DZ$77,Nutrients!$DZ$78)))))*W$8))/2000/2.2046","v":956.32068512421426},{"$f":"(SUMPRODUCT(X$9:X$229,Nutrients!$DZ$8:$DZ$228)+(IF($A$7=Nutrients!$B$8,Nutrients!$DZ$8,Nutrients!$DZ$9)*X$7)+(((IF($A$8=Nutrients!$B$79,Nutrients!$DZ$79,(IF($A$8=Nutrients!$B$77,Nutrients!$DZ$77,Nutrients!$DZ$78)))))*X$8))/2000/2.2046","v":973.63289987446649},{"$f":"(SUMPRODUCT(Y$9:Y$229,Nutrients!$DZ$8:$DZ$228)+(IF($A$7=Nutrients!$B$8,Nutrients!$DZ$8,Nutrients!$DZ$9)*Y$7)+(((IF($A$8=Nutrients!$B$79,Nutrients!$DZ$79,(IF($A$8=Nutrients!$B$77,Nutrients!$DZ$77,Nutrients!$DZ$78)))))*Y$8))/2000/2.2046","v":988.84741266872163},{"$f":"(SUMPRODUCT(Z$9:Z$229,Nutrients!$DZ$8:$DZ$228)+(IF($A$7=Nutrients!$B$8,Nutrients!$DZ$8,Nutrients!$DZ$9)*Z$7)+(((IF($A$8=Nutrients!$B$79,Nutrients!$DZ$79,(IF($A$8=Nutrients!$B$77,Nutrients!$DZ$77,Nutrients!$DZ$78)))))*Z$8))/2000/2.2046","v":1002.1193565890605},{"$f":"(SUMPRODUCT(AA$9:AA$229,Nutrients!$DZ$8:$DZ$228)+(IF($A$7=Nutrients!$B$8,Nutrients!$DZ$8,Nutrients!$DZ$9)*AA$7)+(((IF($A$8=Nutrients!$B$79,Nutrients!$DZ$79,(IF($A$8=Nutrients!$B$77,Nutrients!$DZ$77,Nutrients!$DZ$78)))))*AA$8))/2000/2.2046","v":1011.1796674144463},{"$f":"(SUMPRODUCT(AB$9:AB$229,Nutrients!$DZ$8:$DZ$228)+(IF($A$7=Nutrients!$B$8,Nutrients!$DZ$8,Nutrients!$DZ$9)*AB$7)+(((IF($A$8=Nutrients!$B$79,Nutrients!$DZ$79,(IF($A$8=Nutrients!$B$77,Nutrients!$DZ$77,Nutrients!$DZ$78)))))*AB$8))/2000/2.2046","v":1015.2346816679758},null,{"$f":"(SUMPRODUCT(AD$9:AD$229,Nutrients!$DZ$8:$DZ$228)+(IF($A$7=Nutrients!$B$8,Nutrients!$DZ$8,Nutrients!$DZ$9)*AD$7)+(((IF($A$8=Nutrients!$B$79,Nutrients!$DZ$79,(IF($A$8=Nutrients!$B$77,Nutrients!$DZ$77,Nutrients!$DZ$78)))))*AD$8))/2000/2.2046","v":899.99550834362651},{"$f":"(SUMPRODUCT(AE$9:AE$229,Nutrients!$DZ$8:$DZ$228)+(IF($A$7=Nutrients!$B$8,Nutrients!$DZ$8,Nutrients!$DZ$9)*AE$7)+(((IF($A$8=Nutrients!$B$79,Nutrients!$DZ$79,(IF($A$8=Nutrients!$B$77,Nutrients!$DZ$77,Nutrients!$DZ$78)))))*AE$8))/2000/2.2046","v":917.3458158982213},{"$f":"(SUMPRODUCT(AF$9:AF$229,Nutrients!$DZ$8:$DZ$228)+(IF($A$7=Nutrients!$B$8,Nutrients!$DZ$8,Nutrients!$DZ$9)*AF$7)+(((IF($A$8=Nutrients!$B$79,Nutrients!$DZ$79,(IF($A$8=Nutrients!$B$77,Nutrients!$DZ$77,Nutrients!$DZ$78)))))*AF$8))/2000/2.2046","v":932.41168232122584},{"$f":"(SUMPRODUCT(AG$9:AG$229,Nutrients!$DZ$8:$DZ$228)+(IF($A$7=Nutrients!$B$8,Nutrients!$DZ$8,Nutrients!$DZ$9)*AG$7)+(((IF($A$8=Nutrients!$B$79,Nutrients!$DZ$79,(IF($A$8=Nutrients!$B$77,Nutrients!$DZ$77,Nutrients!$DZ$78)))))*AG$8))/2000/2.2046","v":945.64949215750767},{"$f":"(SUMPRODUCT(AH$9:AH$229,Nutrients!$DZ$8:$DZ$228)+(IF($A$7=Nutrients!$B$8,Nutrients!$DZ$8,Nutrients!$DZ$9)*AH$7)+(((IF($A$8=Nutrients!$B$79,Nutrients!$DZ$79,(IF($A$8=Nutrients!$B$77,Nutrients!$DZ$77,Nutrients!$DZ$78)))))*AH$8))/2000/2.2046","v":953.98988510335744},{"$f":"(SUMPRODUCT(AI$9:AI$229,Nutrients!$DZ$8:$DZ$228)+(IF($A$7=Nutrients!$B$8,Nutrients!$DZ$8,Nutrients!$DZ$9)*AI$7)+(((IF($A$8=Nutrients!$B$79,Nutrients!$DZ$79,(IF($A$8=Nutrients!$B$77,Nutrients!$DZ$77,Nutrients!$DZ$78)))))*AI$8))/2000/2.2046","v":957.67521557384509},null,{"$f":"(SUMPRODUCT(AK$9:AK$229,Nutrients!$DZ$8:$DZ$228)+(IF($A$7=Nutrients!$B$8,Nutrients!$DZ$8,Nutrients!$DZ$9)*AK$7)+(((IF($A$8=Nutrients!$B$79,Nutrients!$DZ$79,(IF($A$8=Nutrients!$B$77,Nutrients!$DZ$77,Nutrients!$DZ$78)))))*AK$8))/2000/2.2046","v":843.06273653262019},{"$f":"(SUMPRODUCT(AL$9:AL$229,Nutrients!$DZ$8:$DZ$228)+(IF($A$7=Nutrients!$B$8,Nutrients!$DZ$8,Nutrients!$DZ$9)*AL$7)+(((IF($A$8=Nutrients!$B$79,Nutrients!$DZ$79,(IF($A$8=Nutrients!$B$77,Nutrients!$DZ$77,Nutrients!$DZ$78)))))*AL$8))/2000/2.2046","v":861.02840064818213},{"$f":"(SUMPRODUCT(AM$9:AM$229,Nutrients!$DZ$8:$DZ$228)+(IF($A$7=Nutrients!$B$8,Nutrients!$DZ$8,Nutrients!$DZ$9)*AM$7)+(((IF($A$8=Nutrients!$B$79,Nutrients!$DZ$79,(IF($A$8=Nutrients!$B$77,Nutrients!$DZ$77,Nutrients!$DZ$78)))))*AM$8))/2000/2.2046","v":876.04801481573986},{"$f":"(SUMPRODUCT(AN$9:AN$229,Nutrients!$DZ$8:$DZ$228)+(IF($A$7=Nutrients!$B$8,Nutrients!$DZ$8,Nutrients!$DZ$9)*AN$7)+(((IF($A$8=Nutrients!$B$79,Nutrients!$DZ$79,(IF($A$8=Nutrients!$B$77,Nutrients!$DZ$77,Nutrients!$DZ$78)))))*AN$8))/2000/2.2046","v":888.68158330077972},{"$f":"(SUMPRODUCT(AO$9:AO$229,Nutrients!$DZ$8:$DZ$228)+(IF($A$7=Nutrients!$B$8,Nutrients!$DZ$8,Nutrients!$DZ$9)*AO$7)+(((IF($A$8=Nutrients!$B$79,Nutrients!$DZ$79,(IF($A$8=Nutrients!$B$77,Nutrients!$DZ$77,Nutrients!$DZ$78)))))*AO$8))/2000/2.2046","v":896.47224750983901},{"$f":"(SUMPRODUCT(AP$9:AP$229,Nutrients!$DZ$8:$DZ$228)+(IF($A$7=Nutrients!$B$8,Nutrients!$DZ$8,Nutrients!$DZ$9)*AP$7)+(((IF($A$8=Nutrients!$B$79,Nutrients!$DZ$79,(IF($A$8=Nutrients!$B$77,Nutrients!$DZ$77,Nutrients!$DZ$78)))))*AP$8))/2000/2.2046","v":900.12038659085727},null,{"$f":"(SUMPRODUCT(AR$9:AR$229,Nutrients!$DZ$8:$DZ$228)+(IF($A$7=Nutrients!$B$8,Nutrients!$DZ$8,Nutrients!$DZ$9)*AR$7)+(((IF($A$8=Nutrients!$B$79,Nutrients!$DZ$79,(IF($A$8=Nutrients!$B$77,Nutrients!$DZ$77,Nutrients!$DZ$78)))))*AR$8))/2000/2.2046","v":786.97529518179874},{"$f":"(SUMPRODUCT(AS$9:AS$229,Nutrients!$DZ$8:$DZ$228)+(IF($A$7=Nutrients!$B$8,Nutrients!$DZ$8,Nutrients!$DZ$9)*AS$7)+(((IF($A$8=Nutrients!$B$79,Nutrients!$DZ$79,(IF($A$8=Nutrients!$B$77,Nutrients!$DZ$77,Nutrients!$DZ$78)))))*AS$8))/2000/2.2046","v":804.69768392173921},{"$f":"(SUMPRODUCT(AT$9:AT$229,Nutrients!$DZ$8:$DZ$228)+(IF($A$7=Nutrients!$B$8,Nutrients!$DZ$8,Nutrients!$DZ$9)*AT$7)+(((IF($A$8=Nutrients!$B$79,Nutrients!$DZ$79,(IF($A$8=Nutrients!$B$77,Nutrients!$DZ$77,Nutrients!$DZ$78)))))*AT$8))/2000/2.2046","v":819.63866252246589},{"$f":"(SUMPRODUCT(AU$9:AU$229,Nutrients!$DZ$8:$DZ$228)+(IF($A$7=Nutrients!$B$8,Nutrients!$DZ$8,Nutrients!$DZ$9)*AU$7)+(((IF($A$8=Nutrients!$B$79,Nutrients!$DZ$79,(IF($A$8=Nutrients!$B$77,Nutrients!$DZ$77,Nutrients!$DZ$78)))))*AU$8))/2000/2.2046","v":831.20739576890014},{"$f":"(SUMPRODUCT(AV$9:AV$229,Nutrients!$DZ$8:$DZ$228)+(IF($A$7=Nutrients!$B$8,Nutrients!$DZ$8,Nutrients!$DZ$9)*AV$7)+(((IF($A$8=Nutrients!$B$79,Nutrients!$DZ$79,(IF($A$8=Nutrients!$B$77,Nutrients!$DZ$77,Nutrients!$DZ$78)))))*AV$8))/2000/2.2046","v":838.94994025425387},{"$f":"(SUMPRODUCT(AW$9:AW$229,Nutrients!$DZ$8:$DZ$228)+(IF($A$7=Nutrients!$B$8,Nutrients!$DZ$8,Nutrients!$DZ$9)*AW$7)+(((IF($A$8=Nutrients!$B$79,Nutrients!$DZ$79,(IF($A$8=Nutrients!$B$77,Nutrients!$DZ$77,Nutrients!$DZ$78)))))*AW$8))/2000/2.2046","v":842.56119545845399}]
["DE NRC, kcal/lb",{"$f":"(SUMPRODUCT(B$9:B$229,Nutrients!$D$8:$D$228)+(IF($A$7=Nutrients!$B$8,Nutrients!$D$8,Nutrients!$D$9)*B$7)+(((IF($A$8=Nutrients!$B$79,Nutrients!$D$79,(IF($A$8=Nutrients!$B$77,Nutrients!$D$77,Nutrients!$D$78)))))*B$8))/2000/2.2046","v":1555.1808706013358},{"$f":"(SUMPRODUCT(C$9:C$229,Nutrients!$D$8:$D$228)+(IF($A$7=Nutrients!$B$8,Nutrients!$D$8,Nutrients!$D$9)*C$7)+(((IF($A$8=Nutrients!$B$79,Nutrients!$D$79,(IF($A$8=Nutrients!$B$77,Nutrients!$D$77,Nutrients!$D$78)))))*C$8))/2000/2.2046","v":1553.9515936192374},{"$f":"(SUMPRODUCT(D$9:D$229,Nutrients!$D$8:$D$228)+(IF($A$7=Nutrients!$B$8,Nutrients!$D$8,Nutrients!$D$9)*D$7)+(((IF($A$8=Nutrients!$B$79,Nutrients!$D$79,(IF($A$8=Nutrients!$B$77,Nutrients!$D$77,Nutrients!$D$78)))))*D$8))/2000/2.2046","v":1553.0837722463236},{"$f":"(SUMPRODUCT(E$9:E$229,Nutrients!$D$8:$D$228)+(IF($A$7=Nutrients!$B$8,Nutrients!$D$8,Nutrients!$D$9)*E$7)+(((IF($A$8=Nutrients!$B$79,Nutrients!$D$79,(IF($A$8=Nutrients!$B$77,Nutrients!$D$77,Nutrients!$D$78)))))*E$8))/2000/2.2046","v":1552.6251876342408},{"$f":"(SUMPRODUCT(F$9:F$229,Nutrients!$D$8:$D$228)+(IF($A$7=Nutrients!$B$8,Nutrients!$D$8,Nutrients!$D$9)*F$7)+(((IF($A$8=Nutrients!$B$79,Nutrients!$D$79,(IF($A$8=Nutrients!$B$77,Nutrients!$D$77,Nutrients!$D$78)))))*F$8))/2000/2.2046","v":1552.7788119489294},{"$f":"(SUMPRODUCT(G$9:G$229,Nutrients!$D$8:$D$228)+(IF($A$7=Nutrients!$B$8,Nutrients!$D$8,Nutrients!$D$9)*G$7)+(((IF($A$8=Nutrients!$B$79,Nutrients!$D$79,(IF($A$8=Nutrients!$B$77,Nutrients!$D$77,Nutrients!$D$78)))))*G$8))/2000/2.2046","v":1552.432918309064},null,{"$f":"(SUMPRODUCT(I$9:I$229,Nutrients!$D$8:$D$228)+(IF($A$7=Nutrients!$B$8,Nutrients!$D$8,Nutrients!$D$9)*I$7)+(((IF($A$8=Nutrients!$B$79,Nutrients!$D$79,(IF($A$8=Nutrients!$B$77,Nutrients!$D$77,Nutrients!$D$78)))))*I$8))/2000/2.2046","v":1561.2345478967395},{"$f":"(SUMPRODUCT(J$9:J$229,Nutrients!$D$8:$D$228)+(IF($A$7=Nutrients!$B$8,Nutrients!$D$8,Nutrients!$D$9)*J$7)+(((IF($A$8=Nutrients!$B$79,Nutrients!$D$79,(IF($A$8=Nutrients!$B$77,Nutrients!$D$77,Nutrients!$D$78)))))*J$8))/2000/2.2046","v":1560.0209334009417},{"$f":"(SUMPRODUCT(K$9:K$229,Nutrients!$D$8:$D$228)+(IF($A$7=Nutrients!$B$8,Nutrients!$D$8,Nutrients!$D$9)*K$7)+(((IF($A$8=Nutrients!$B$79,Nutrients!$D$79,(IF($A$8=Nutrients!$B$77,Nutrients!$D$77,Nutrients!$D$78)))))*K$8))/2000/2.2046","v":1559.184938107679},{"$f":"(SUMPRODUCT(L$9:L$229,Nutrients!$D$8:$D$228)+(IF($A$7=Nutrients!$B$8,Nutrients!$D$8,Nutrients!$D$9)*L$7)+(((IF($A$8=Nutrients!$B$79,Nutrients!$D$79,(IF($A$8=Nutrients!$B$77,Nutrients!$D$77,Nutrients!$D$78)))))*L$8))/2000/2.2046","v":1559.0763305351957},{"$f":"(SUMPRODUCT(M$9:M$229,Nutrients!$D$8:$D$228)+(IF($A$7=Nutrients!$B$8,Nutrients!$D$8,Nutrients!$D$9)*M$7)+(((IF($A$8=Nutrients!$B$79,Nutrients!$D$79,(IF($A$8=Nutrients!$B$77,Nutrients!$D$77,Nutrients!$D$78)))))*M$8))/2000/2.2046","v":1559.1238945863504},{"$f":"(SUMPRODUCT(N$9:N$229,Nutrients!$D$8:$D$228)+(IF($A$7=Nutrients!$B$8,Nutrients!$D$8,Nutrients!$D$9)*N$7)+(((IF($A$8=Nutrients!$B$79,Nutrients!$D$79,(IF($A$8=Nutrients!$B$77,Nutrients!$D$77,Nutrients!$D$78)))))*N$8))/2000/2.2046","v":1558.8877036053482},null,{"$f":"(SUMPRODUCT(P$9:P$229,Nutrients!$D$8:$D$228)+(IF($A$7=Nutrients!$B$8,Nutrients!$D$8,Nutrients!$D$9)*P$7)+(((IF($A$8=Nutrients!$B$79,Nutrients!$D$79,(IF($A$8=Nutrients!$B$77,Nutrients!$D$77,Nutrients!$D$78)))))*P$8))/2000/2.2046","v":1567.3190592372055},{"$f":"(SUMPRODUCT(Q$9:Q$229,Nutrients!$D$8:$D$228)+(IF($A$7=Nutrients!$B$8,Nutrients!$D$8,Nutrients!$D$9)*Q$7)+(((IF($A$8=Nutrients!$B$79,Nutrients!$D$79,(IF($A$8=Nutrients!$B$77,Nutrients!$D$77,Nutrients!$D$78)))))*Q$8))/2000/2.2046","v":1566.1413447470138},{"$f":"(SUMPRODUCT(R$9:R$229,Nutrients!$D$8:$D$228)+(IF($A$7=Nutrients!$B$8,Nutrients!$D$8,Nutrients!$D$9)*R$7)+(((IF($A$8=Nutrients!$B$79,Nutrients!$D$79,(IF($A$8=Nutrients!$B$77,Nutrients!$D$77,Nutrients!$D$78)))))*R$8))/2000/2.2046","v":1565.3200093020728},{"$f":"(SUMPRODUCT(S$9:S$229,Nutrients!$D$8:$D$228)+(IF($A$7=Nutrients!$B$8,Nutrients!$D$8,Nutrients!$D$9)*S$7)+(((IF($A$8=Nutrients!$B$79,Nutrients!$D$79,(IF($A$8=Nutrients!$B$77,Nutrients!$D$77,Nutrients!$D$78)))))*S$8))/2000/2.2046","v":1565.1987771134739},{"$f":"(SUMPRODUCT(T$9:T$229,Nutrients!$D$8:$D$228)+(IF($A$7=Nutrients!$B$8,Nutrients!$D$8,Nutrients!$D$9)*T$7)+(((IF($A$8=Nutrients!$B$79,Nutrients!$D$79,(IF($A$8=Nutrients!$B$77,Nutrients!$D$77,Nutrients!$D$78)))))*T$8))/2000/2.2046","v":1565.355458138637},{"$f":"(SUMPRODUCT(U$9:U$229,Nutrients!$D$8:$D$228)+(IF($A$7=Nutrients!$B$8,Nutrients!$D$8,Nutrients!$D$9)*U$7)+(((IF($A$8=Nutrients!$B$79,Nutrients!$D$79,(IF($A$8=Nutrients!$B$77,Nutrients!$D$77,Nutrients!$D$78)))))*U$8))/2000/2.2046","v":1565.1528188370382},null,{"$f":"(SUMPRODUCT(W$9:W$229,Nutrients!$D$8:$D$228)+(IF($A$7=Nutrients!$B$8,Nutrients!$D$8,Nutrients!$D$9)*W$7)+(((IF($A$8=Nutrients!$B$79,Nutrients!$D$79,(IF($A$8=Nutrients!$B$77,Nutrients!$D$77,Nutrients!$D$78)))))*W$8))/2000/2.2046","v":1573.4291171616594},{"$f":"(SUMPRODUCT(X$9:X$229,Nutrients!$D$8:$D$228)+(IF($A$7=Nutrients!$B$8,Nutrients!$D$8,Nutrients!$D$9)*X$7)+(((IF($A$8=Nutrients!$B$79,Nutrients!$D$79,(IF($A$8=Nutrients!$B$77,Nutrients!$D$77,Nutrients!$D$78)))))*X$8))/2000/2.2046","v":1572.279018557015},{"$f":"(SUMPRODUCT(Y$9:Y$229,Nutrients!$D$8:$D$228)+(IF($A$7=Nutrients!$B$8,Nutrients!$D$8,Nutrients!$D$9)*Y$7)+(((IF($A$8=Nutrients!$B$79,Nutrients!$D$79,(IF($A$8=Nutrients!$B$77,Nutrients!$D$77,Nutrients!$D$78)))))*Y$8))/2000/2.2046","v":1571.4496130138305},{"$f":"(SUMPRODUCT(Z$9:Z$229,Nutrients!$D$8:$D$228)+(IF($A$7=Nutrients!$B$8,Nutrients!$D$8,Nutrients!$D$9)*Z$7)+(((IF($A$8=Nutrients!$B$79,Nutrients!$D$79,(IF($A$8=Nutrients!$B$77,Nutrients!$D$77,Nutrients!$D$78)))))*Z$8))/2000/2.2046","v":1571.3917254587134},{"$f":"(SUMPRODUCT(AA$9:AA$229,Nutrients!$D$8:$D$228)+(IF($A$7=Nutrients!$B$8,Nutrients!$D$8,Nutrients!$D$9)*AA$7)+(((IF($A$8=Nutrients!$B$79,Nutrients!$D$79,(IF($A$8=Nutrients!$B$77,Nutrients!$D$77,Nutrients!$D$78)))))*AA$8))/2000/2.2046","v":1571.6454351171278},{"$f":"(SUMPRODUCT(AB$9:AB$229,Nutrients!$D$8:$D$228)+(IF($A$7=Nutrients!$B$8,Nutrients!$D$8,Nutrients!$D$9)*AB$7)+(((IF($A$8=Nutrients!$B$79,Nutrients!$D$79,(IF($A$8=Nutrients!$B$77,Nutrients!$D$77,Nutrients!$D$78)))))*AB$8))/2000/2.2046","v":1571.1139348730544},null,{"$f":"(SUMPRODUCT(AD$9:AD$229,Nutrients!$D$8:$D$228)+(IF($A$7=Nutrients!$B$8,Nutrients!$D$8,Nutrients!$D$9)*AD$7)+(((IF($A$8=Nutrients!$B$79,Nutrients!$D$79,(IF($A$8=Nutrients!$B$77,Nutrients!$D$77,Nutrients!$D$78)))))*AD$8))/2000/2.2046","v":1579.520488594301},{"$f":"(SUMPRODUCT(AE$9:AE$229,Nutrients!$D$8:$D$228)+(IF($A$7=Nutrients!$B$8,Nutrients!$D$8,Nutrients!$D$9)*AE$7)+(((IF($A$8=Nutrients!$B$79,Nutrients!$D$79,(IF($A$8=Nutrients!$B$77,Nutrients!$D$77,Nutrients!$D$78)))))*AE$8))/2000/2.2046","v":1578.358487589232},{"$f":"(SUMPRODUCT(AF$9:AF$229,Nutrients!$D$8:$D$228)+(IF($A$7=Nutrients!$B$8,Nutrients!$D$8,Nutrients!$D$9)*AF$7)+(((IF($A$8=Nutrients!$B$79,Nutrients!$D$79,(IF($A$8=Nutrients!$B$77,Nutrients!$D$77,Nutrients!$D$78)))))*AF$8))/2000/2.2046","v":1577.5544619986429},{"$f":"(SUMPRODUCT(AG$9:AG$229,Nutrients!$D$8:$D$228)+(IF($A$7=Nutrients!$B$8,Nutrients!$D$8,Nutrients!$D$9)*AG$7)+(((IF($A$8=Nutrients!$B$79,Nutrients!$D$79,(IF($A$8=Nutrients!$B$77,Nutrients!$D$77,Nutrients!$D$78)))))*AG$8))/2000/2.2046","v":1577.6413902063882},{"$f":"(SUMPRODUCT(AH$9:AH$229,Nutrients!$D$8:$D$228)+(IF($A$7=Nutrients!$B$8,Nutrients!$D$8,Nutrients!$D$9)*AH$7)+(((IF($A$8=Nutrients!$B$79,Nutrients!$D$79,(IF($A$8=Nutrients!$B$77,Nutrients!$D$77,Nutrients!$D$78)))))*AH$8))/2000/2.2046","v":1577.0054252801551},{"$f":"(SUMPRODUCT(AI$9:AI$229,Nutrients!$D$8:$D$228)+(IF($A$7=Nutrients!$B$8,Nutrients!$D$8,Nutrients!$D$9)*AI$7)+(((IF($A$8=Nutrients!$B$79,Nutrients!$D$79,(IF($A$8=Nutrients!$B$77,Nutrients!$D$77,Nutrients!$D$78)))))*AI$8))/2000/2.2046","v":1576.0418341840764},null,{"$f":"(SUMPRODUCT(AK$9:AK$229,Nutrients!$D$8:$D$228)+(IF($A$7=Nutrients!$B$8,Nutrients!$D$8,Nutrients!$D$9)*AK$7)+(((IF($A$8=Nutrients!$B$79,Nutrients!$D$79,(IF($A$8=Nutrients!$B$77,Nutrients!$D$77,Nutrients!$D$78)))))*AK$8))/2000/2.2046","v":1585.774789068327},{"$f":"(SUMPRODUCT(AL$9:AL$229,Nutrients!$D$8:$D$228)+(IF($A$7=Nutrients!$B$8,Nutrients!$D$8,Nutrients!$D$9)*AL$7)+(((IF($A$8=Nutrients!$B$79,Nutrients!$D$79,(IF($A$8=Nutrients!$B$77,Nutrients!$D$77,Nutrients!$D$78)))))*AL$8))/2000/2.2046","v":1584.4664931119019},{"$f":"(SUMPRODUCT(AM$9:AM$229,Nutrients!$D$8:$D$228)+(IF($A$7=Nutrients!$B$8,Nutrients!$D$8,Nutrients!$D$9)*AM$7)+(((IF($A$8=Nutrients!$B$79,Nutrients!$D$79,(IF($A$8=Nutrients!$B$77,Nutrients!$D$77,Nutrients!$D$78)))))*AM$8))/2000/2.2046","v":1583.8037158332297},{"$f":"(SUMPRODUCT(AN$9:AN$229,Nutrients!$D$8:$D$228)+(IF($A$7=Nutrients!$B$8,Nutrients!$D$8,Nutrients!$D$9)*AN$7)+(((IF($A$8=Nutrients!$B$79,Nutrients!$D$79,(IF($A$8=Nutrients!$B$77,Nutrients!$D$77,Nutrients!$D$78)))))*AN$8))/2000/2.2046","v":1583.2032208441665},{"$f":"(SUMPRODUCT(AO$9:AO$229,Nutrients!$D$8:$D$228)+(IF($A$7=Nutrients!$B$8,Nutrients!$D$8,Nutrients!$D$9)*AO$7)+(((IF($A$8=Nutrients!$B$79,Nutrients!$D$79,(IF($A$8=Nutrients!$B$77,Nutrients!$D$77,Nutrients!$D$78)))))*AO$8))/2000/2.2046","v":1581.9302598317404},{"$f":"(SUMPRODUCT(AP$9:AP$229,Nutrients!$D$8:$D$228)+(IF($A$7=Nutrients!$B$8,Nutrients!$D$8,Nutrients!$D$9)*AP$7)+(((IF($A$8=Nutrients!$B$79,Nutrients!$D$79,(IF($A$8=Nutrients!$B$77,Nutrients!$D$77,Nutrients!$D$78)))))*AP$8))/2000/2.2046","v":1580.9760320157659},null,{"$f":"(SUMPRODUCT(AR$9:AR$229,Nutrients!$D$8:$D$228)+(IF($A$7=Nutrients!$B$8,Nutrients!$D$8,Nutrients!$D$9)*AR$7)+(((IF($A$8=Nutrients!$B$79,Nutrients!$D$79,(IF($A$8=Nutrients!$B$77,Nutrients!$D$77,Nutrients!$D$78)))))*AR$8))/2000/2.2046","v":1591.815464321191},{"$f":"(SUMPRODUCT(AS$9:AS$229,Nutrients!$D$8:$D$228)+(IF($A$7=Nutrients!$B$8,Nutrients!$D$8,Nutrients!$D$9)*AS$7)+(((IF($A$8=Nutrients!$B$79,Nutrients!$D$79,(IF($A$8=Nutrients!$B$77,Nutrients!$D$77,Nutrients!$D$78)))))*AS$8))/2000/2.2046","v":1590.5594336761435},{"$f":"(SUMPRODUCT(AT$9:AT$229,Nutrients!$D$8:$D$228)+(IF($A$7=Nutrients!$B$8,Nutrients!$D$8,Nutrients!$D$9)*AT$7)+(((IF($A$8=Nutrients!$B$79,Nutrients!$D$79,(IF($A$8=Nutrients!$B$77,Nutrients!$D$77,Nutrients!$D$78)))))*AT$8))/2000/2.2046","v":1590.0409546267654},{"$f":"(SUMPRODUCT(AU$9:AU$229,Nutrients!$D$8:$D$228)+(IF($A$7=Nutrients!$B$8,Nutrients!$D$8,Nutrients!$D$9)*AU$7)+(((IF($A$8=Nutrients!$B$79,Nutrients!$D$79,(IF($A$8=Nutrients!$B$77,Nutrients!$D$77,Nutrients!$D$78)))))*AU$8))/2000/2.2046","v":1588.1056464879086},{"$f":"(SUMPRODUCT(AV$9:AV$229,Nutrients!$D$8:$D$228)+(IF($A$7=Nutrients!$B$8,Nutrients!$D$8,Nutrients!$D$9)*AV$7)+(((IF($A$8=Nutrients!$B$79,Nutrients!$D$79,(IF($A$8=Nutrients!$B$77,Nutrients!$D$77,Nutrients!$D$78)))))*AV$8))/2000/2.2046","v":1586.8491869099125},{"$f":"(SUMPRODUCT(AW$9:AW$229,Nutrients!$D$8:$D$228)+(IF($A$7=Nutrients!$B$8,Nutrients!$D$8,Nutrients!$D$9)*AW$7)+(((IF($A$8=Nutrients!$B$79,Nutrients!$D$79,(IF($A$8=Nutrients!$B$77,Nutrients!$D$77,Nutrients!$D$78)))))*AW$8))/2000/2.2046","v":1585.90391732953}]
["NE NRC, kcal/lb",{"$f":"(SUMPRODUCT(B$9:B$229,Nutrients!$F$8:$F$228)+(IF($A$7=Nutrients!$B$8,Nutrients!$F$8,Nutrients!$F$9)*B$7)+(((IF($A$8=Nutrients!$B$79,Nutrients!$F$79,(IF($A$8=Nutrients!$B$77,Nutrients!$F$77,Nutrients!$F$78)))))*B$8))/2000/2.2046","v":1147.6611237487589},{"$f":"(SUMPRODUCT(C$9:C$229,Nutrients!$F$8:$F$228)+(IF($A$7=Nutrients!$B$8,Nutrients!$F$8,Nutrients!$F$9)*C$7)+(((IF($A$8=Nutrients!$B$79,Nutrients!$F$79,(IF($A$8=Nutrients!$B$77,Nutrients!$F$77,Nutrients!$F$78)))))*C$8))/2000/2.2046","v":1156.7030647238309},{"$f":"(SUMPRODUCT(D$9:D$229,Nutrients!$F$8:$F$228)+(IF($A$7=Nutrients!$B$8,Nutrients!$F$8,Nutrients!$F$9)*D$7)+(((IF($A$8=Nutrients!$B$79,Nutrients!$F$79,(IF($A$8=Nutrients!$B$77,Nutrients!$F$77,Nutrients!$F$78)))))*D$8))/2000/2.2046","v":1164.6580809828592},{"$f":"(SUMPRODUCT(E$9:E$229,Nutrients!$F$8:$F$228)+(IF($A$7=Nutrients!$B$8,Nutrients!$F$8,Nutrients!$F$9)*E$7)+(((IF($A$8=Nutrients!$B$79,Nutrients!$F$79,(IF($A$8=Nutrients!$B$77,Nutrients!$F$77,Nutrients!$F$78)))))*E$8))/2000/2.2046","v":1171.5486817586343},{"$f":"(SUMPRODUCT(F$9:F$229,Nutrients!$F$8:$F$228)+(IF($A$7=Nutrients!$B$8,Nutrients!$F$8,Nutrients!$F$9)*F$7)+(((IF($A$8=Nutrients!$B$79,Nutrients!$F$79,(IF($A$8=Nutrients!$B$77,Nutrients!$F$77,Nutrients!$F$78)))))*F$8))/2000/2.2046","v":1176.5212854349088},{"$f":"(SUMPRODUCT(G$9:G$229,Nutrients!$F$8:$F$228)+(IF($A$7=Nutrients!$B$8,Nutrients!$F$8,Nutrients!$F$9)*G$7)+(((IF($A$8=Nutrients!$B$79,Nutrients!$F$79,(IF($A$8=Nutrients!$B$77,Nutrients!$F$77,Nutrients!$F$78)))))*G$8))/2000/2.2046","v":1178.7128237398681},null,{"$f":"(SUMPRODUCT(I$9:I$229,Nutrients!$F$8:$F$228)+(IF($A$7=Nutrients!$B$8,Nutrients!$F$8,Nutrients!$F$9)*I$7)+(((IF($A$8=Nutrients!$B$79,Nutrients!$F$79,(IF($A$8=Nutrients!$B$77,Nutrients!$F$77,Nutrients!$F$78)))))*I$8))/2000/2.2046","v":1138.3008703643573},{"$f":"(SUMPRODUCT(J$9:J$229,Nutrients!$F$8:$F$228)+(IF($A$7=Nutrients!$B$8,Nutrients!$F$8,Nutrients!$F$9)*J$7)+(((IF($A$8=Nutrients!$B$79,Nutrients!$F$79,(IF($A$8=Nutrients!$B$77,Nutrients!$F$77,Nutrients!$F$78)))))*J$8))/2000/2.2046","v":1147.2473377044885},{"$f":"(SUMPRODUCT(K$9:K$229,Nutrients!$F$8:$F$228)+(IF($A$7=Nutrients!$B$8,Nutrients!$F$8,Nutrients!$F$9)*K$7)+(((IF($A$8=Nutrients!$B$79,Nutrients!$F$79,(IF($A$8=Nutrients!$B$77,Nutrients!$F$77,Nutrients!$F$78)))))*K$8))/2000/2.2046","v":1155.137803019436},{"$f":"(SUMPRODUCT(L$9:L$229,Nutrients!$F$8:$F$228)+(IF($A$7=Nutrients!$B$8,Nutrients!$F$8,Nutrients!$F$9)*L$7)+(((IF($A$8=Nutrients!$B$79,Nutrients!$F$79,(IF($A$8=Nutrients!$B$77,Nutrients!$F$77,Nutrients!$F$78)))))*L$8))/2000/2.2046","v":1162.2435337903835},{"$f":"(SUMPRODUCT(M$9:M$229,Nutrients!$F$8:$F$228)+(IF($A$7=Nutrients!$B$8,Nutrients!$F$8,Nutrients!$F$9)*M$7)+(((IF($A$8=Nutrients!$B$79,Nutrients!$F$79,(IF($A$8=Nutrients!$B$77,Nutrients!$F$77,Nutrients!$F$78)))))*M$8))/2000/2.2046","v":1167.1373103865972},{"$f":"(SUMPRODUCT(N$9:N$229,Nutrients!$F$8:$F$228)+(IF($A$7=Nutrients!$B$8,Nutrients!$F$8,Nutrients!$F$9)*N$7)+(((IF($A$8=Nutrients!$B$79,Nutrients!$F$79,(IF($A$8=Nutrients!$B$77,Nutrients!$F$77,Nutrients!$F$78)))))*N$8))/2000/2.2046","v":1169.3844086810843},null,{"$f":"(SUMPRODUCT(P$9:P$229,Nutrients!$F$8:$F$228)+(IF($A$7=Nutrients!$B$8,Nutrients!$F$8,Nutrients!$F$9)*P$7)+(((IF($A$8=Nutrients!$B$79,Nutrients!$F$79,(IF($A$8=Nutrients!$B$77,Nutrients!$F$77,Nutrients!$F$78)))))*P$8))/2000/2.2046","v":1128.8245847655332},{"$f":"(SUMPRODUCT(Q$9:Q$229,Nutrients!$F$8:$F$228)+(IF($A$7=Nutrients!$B$8,Nutrients!$F$8,Nutrients!$F$9)*Q$7)+(((IF($A$8=Nutrients!$B$79,Nutrients!$F$79,(IF($A$8=Nutrients!$B$77,Nutrients!$F$77,Nutrients!$F$78)))))*Q$8))/2000/2.2046","v":1137.7331217942392},{"$f":"(SUMPRODUCT(R$9:R$229,Nutrients!$F$8:$F$228)+(IF($A$7=Nutrients!$B$8,Nutrients!$F$8,Nutrients!$F$9)*R$7)+(((IF($A$8=Nutrients!$B$79,Nutrients!$F$79,(IF($A$8=Nutrients!$B$77,Nutrients!$F$77,Nutrients!$F$78)))))*R$8))/2000/2.2046","v":1145.5663353035231},{"$f":"(SUMPRODUCT(S$9:S$229,Nutrients!$F$8:$F$228)+(IF($A$7=Nutrients!$B$8,Nutrients!$F$8,Nutrients!$F$9)*S$7)+(((IF($A$8=Nutrients!$B$79,Nutrients!$F$79,(IF($A$8=Nutrients!$B$77,Nutrients!$F$77,Nutrients!$F$78)))))*S$8))/2000/2.2046","v":1152.6945850635498},{"$f":"(SUMPRODUCT(T$9:T$229,Nutrients!$F$8:$F$228)+(IF($A$7=Nutrients!$B$8,Nutrients!$F$8,Nutrients!$F$9)*T$7)+(((IF($A$8=Nutrients!$B$79,Nutrients!$F$79,(IF($A$8=Nutrients!$B$77,Nutrients!$F$77,Nutrients!$F$78)))))*T$8))/2000/2.2046","v":1157.6058680223171},{"$f":"(SUMPRODUCT(U$9:U$229,Nutrients!$F$8:$F$228)+(IF($A$7=Nutrients!$B$8,Nutrients!$F$8,Nutrients!$F$9)*U$7)+(((IF($A$8=Nutrients!$B$79,Nutrients!$F$79,(IF($A$8=Nutrients!$B$77,Nutrients!$F$77,Nutrients!$F$78)))))*U$8))/2000/2.2046","v":1159.8530835230979},null,{"$f":"(SUMPRODUCT(W$9:W$229,Nutrients!$F$8:$F$228)+(IF($A$7=Nutrients!$B$8,Nutrients!$F$8,Nutrients!$F$9)*W$7)+(((IF($A$8=Nutrients!$B$79,Nutrients!$F$79,(IF($A$8=Nutrients!$B$77,Nutrients!$F$77,Nutrients!$F$78)))))*W$8))/2000/2.2046","v":1119.3683736487694},{"$f":"(SUMPRODUCT(X$9:X$229,Nutrients!$F$8:$F$228)+(IF($A$7=Nutrients!$B$8,Nutrients!$F$8,Nutrients!$F$9)*X$7)+(((IF($A$8=Nutrients!$B$79,Nutrients!$F$79,(IF($A$8=Nutrients!$B$77,Nutrients!$F$77,Nutrients!$F$78)))))*X$8))/2000/2.2046","v":1128.2329882690331},{"$f":"(SUMPRODUCT(Y$9:Y$229,Nutrients!$F$8:$F$228)+(IF($A$7=Nutrients!$B$8,Nutrients!$F$8,Nutrients!$F$9)*Y$7)+(((IF($A$8=Nutrients!$B$79,Nutrients!$F$79,(IF($A$8=Nutrients!$B$77,Nutrients!$F$77,Nutrients!$F$78)))))*Y$8))/2000/2.2046","v":1136.090598301676},{"$f":"(SUMPRODUCT(Z$9:Z$229,Nutrients!$F$8:$F$228)+(IF($A$7=Nutrients!$B$8,Nutrients!$F$8,Nutrients!$F$9)*Z$7)+(((IF($A$8=Nutrients!$B$79,Nutrients!$F$79,(IF($A$8=Nutrients!$B$77,Nutrients!$F$77,Nutrients!$F$78)))))*Z$8))/2000/2.2046","v":1143.1713972397924},{"$f":"(SUMPRODUCT(AA$9:AA$229,Nutrients!$F$8:$F$228)+(IF($A$7=Nutrients!$B$8,Nutrients!$F$8,Nutrients!$F$9)*AA$7)+(((IF($A$8=Nutrients!$B$79,Nutrients!$F$79,(IF($A$8=Nutrients!$B$77,Nutrients!$F$77,Nutrients!$F$78)))))*AA$8))/2000/2.2046","v":1148.110291058945},{"$f":"(SUMPRODUCT(AB$9:AB$229,Nutrients!$F$8:$F$228)+(IF($A$7=Nutrients!$B$8,Nutrients!$F$8,Nutrients!$F$9)*AB$7)+(((IF($A$8=Nutrients!$B$79,Nutrients!$F$79,(IF($A$8=Nutrients!$B$77,Nutrients!$F$77,Nutrients!$F$78)))))*AB$8))/2000/2.2046","v":1150.0950029230005},null,{"$f":"(SUMPRODUCT(AD$9:AD$229,Nutrients!$F$8:$F$228)+(IF($A$7=Nutrients!$B$8,Nutrients!$F$8,Nutrients!$F$9)*AD$7)+(((IF($A$8=Nutrients!$B$79,Nutrients!$F$79,(IF($A$8=Nutrients!$B$77,Nutrients!$F$77,Nutrients!$F$78)))))*AD$8))/2000/2.2046","v":1109.9054338559818},{"$f":"(SUMPRODUCT(AE$9:AE$229,Nutrients!$F$8:$F$228)+(IF($A$7=Nutrients!$B$8,Nutrients!$F$8,Nutrients!$F$9)*AE$7)+(((IF($A$8=Nutrients!$B$79,Nutrients!$F$79,(IF($A$8=Nutrients!$B$77,Nutrients!$F$77,Nutrients!$F$78)))))*AE$8))/2000/2.2046","v":1118.7862386950869},{"$f":"(SUMPRODUCT(AF$9:AF$229,Nutrients!$F$8:$F$228)+(IF($A$7=Nutrients!$B$8,Nutrients!$F$8,Nutrients!$F$9)*AF$7)+(((IF($A$8=Nutrients!$B$79,Nutrients!$F$79,(IF($A$8=Nutrients!$B$77,Nutrients!$F$77,Nutrients!$F$78)))))*AF$8))/2000/2.2046","v":1126.5735368422334},{"$f":"(SUMPRODUCT(AG$9:AG$229,Nutrients!$F$8:$F$228)+(IF($A$7=Nutrients!$B$8,Nutrients!$F$8,Nutrients!$F$9)*AG$7)+(((IF($A$8=Nutrients!$B$79,Nutrients!$F$79,(IF($A$8=Nutrients!$B$77,Nutrients!$F$77,Nutrients!$F$78)))))*AG$8))/2000/2.2046","v":1133.683943416288},{"$f":"(SUMPRODUCT(AH$9:AH$229,Nutrients!$F$8:$F$228)+(IF($A$7=Nutrients!$B$8,Nutrients!$F$8,Nutrients!$F$9)*AH$7)+(((IF($A$8=Nutrients!$B$79,Nutrients!$F$79,(IF($A$8=Nutrients!$B$77,Nutrients!$F$77,Nutrients!$F$78)))))*AH$8))/2000/2.2046","v":1137.9255222188276},{"$f":"(SUMPRODUCT(AI$9:AI$229,Nutrients!$F$8:$F$228)+(IF($A$7=Nutrients!$B$8,Nutrients!$F$8,Nutrients!$F$9)*AI$7)+(((IF($A$8=Nutrients!$B$79,Nutrients!$F$79,(IF($A$8=Nutrients!$B$77,Nutrients!$F$77,Nutrients!$F$78)))))*AI$8))/2000/2.2046","v":1139.5607883388373},null,{"$f":"(SUMPRODUCT(AK$9:AK$229,Nutrients!$F$8:$F$228)+(IF($A$7=Nutrients!$B$8,Nutrients!$F$8,Nutrients!$F$9)*AK$7)+(((IF($A$8=Nutrients!$B$79,Nutrients!$F$79,(IF($A$8=Nutrients!$B$77,Nutrients!$F$77,Nutrients!$F$78)))))*AK$8))/2000/2.2046","v":1100.1747990872072},{"$f":"(SUMPRODUCT(AL$9:AL$229,Nutrients!$F$8:$F$228)+(IF($A$7=Nutrients!$B$8,Nutrients!$F$8,Nutrients!$F$9)*AL$7)+(((IF($A$8=Nutrients!$B$79,Nutrients!$F$79,(IF($A$8=Nutrients!$B$77,Nutrients!$F$77,Nutrients!$F$78)))))*AL$8))/2000/2.2046","v":1109.3332918744932},{"$f":"(SUMPRODUCT(AM$9:AM$229,Nutrients!$F$8:$F$228)+(IF($A$7=Nutrients!$B$8,Nutrients!$F$8,Nutrients!$F$9)*AM$7)+(((IF($A$8=Nutrients!$B$79,Nutrients!$F$79,(IF($A$8=Nutrients!$B$77,Nutrients!$F$77,Nutrients!$F$78)))))*AM$8))/2000/2.2046","v":1117.1427290696408},{"$f":"(SUMPRODUCT(AN$9:AN$229,Nutrients!$F$8:$F$228)+(IF($A$7=Nutrients!$B$8,Nutrients!$F$8,Nutrients!$F$9)*AN$7)+(((IF($A$8=Nutrients!$B$79,Nutrients!$F$79,(IF($A$8=Nutrients!$B$77,Nutrients!$F$77,Nutrients!$F$78)))))*AN$8))/2000/2.2046","v":1123.6887766047048},{"$f":"(SUMPRODUCT(AO$9:AO$229,Nutrients!$F$8:$F$228)+(IF($A$7=Nutrients!$B$8,Nutrients!$F$8,Nutrients!$F$9)*AO$7)+(((IF($A$8=Nutrients!$B$79,Nutrients!$F$79,(IF($A$8=Nutrients!$B$77,Nutrients!$F$77,Nutrients!$F$78)))))*AO$8))/2000/2.2046","v":1127.4124370913266},{"$f":"(SUMPRODUCT(AP$9:AP$229,Nutrients!$F$8:$F$228)+(IF($A$7=Nutrients!$B$8,Nutrients!$F$8,Nutrients!$F$9)*AP$7)+(((IF($A$8=Nutrients!$B$79,Nutrients!$F$79,(IF($A$8=Nutrients!$B$77,Nutrients!$F$77,Nutrients!$F$78)))))*AP$8))/2000/2.2046","v":1129.0311032240836},null,{"$f":"(SUMPRODUCT(AR$9:AR$229,Nutrients!$F$8:$F$228)+(IF($A$7=Nutrients!$B$8,Nutrients!$F$8,Nutrients!$F$9)*AR$7)+(((IF($A$8=Nutrients!$B$79,Nutrients!$F$79,(IF($A$8=Nutrients!$B$77,Nutrients!$F$77,Nutrients!$F$78)))))*AR$8))/2000/2.2046","v":1090.8211858473737},{"$f":"(SUMPRODUCT(AS$9:AS$229,Nutrients!$F$8:$F$228)+(IF($A$7=Nutrients!$B$8,Nutrients!$F$8,Nutrients!$F$9)*AS$7)+(((IF($A$8=Nutrients!$B$79,Nutrients!$F$79,(IF($A$8=Nutrients!$B$77,Nutrients!$F$77,Nutrients!$F$78)))))*AS$8))/2000/2.2046","v":1099.8679406387109},{"$f":"(SUMPRODUCT(AT$9:AT$229,Nutrients!$F$8:$F$228)+(IF($A$7=Nutrients!$B$8,Nutrients!$F$8,Nutrients!$F$9)*AT$7)+(((IF($A$8=Nutrients!$B$79,Nutrients!$F$79,(IF($A$8=Nutrients!$B$77,Nutrients!$F$77,Nutrients!$F$78)))))*AT$8))/2000/2.2046","v":1107.683270647736},{"$f":"(SUMPRODUCT(AU$9:AU$229,Nutrients!$F$8:$F$228)+(IF($A$7=Nutrients!$B$8,Nutrients!$F$8,Nutrients!$F$9)*AU$7)+(((IF($A$8=Nutrients!$B$79,Nutrients!$F$79,(IF($A$8=Nutrients!$B$77,Nutrients!$F$77,Nutrients!$F$78)))))*AU$8))/2000/2.2046","v":1113.1910563757922},{"$f":"(SUMPRODUCT(AV$9:AV$229,Nutrients!$F$8:$F$228)+(IF($A$7=Nutrients!$B$8,Nutrients!$F$8,Nutrients!$F$9)*AV$7)+(((IF($A$8=Nutrients!$B$79,Nutrients!$F$79,(IF($A$8=Nutrients!$B$77,Nutrients!$F$77,Nutrients!$F$78)))))*AV$8))/2000/2.2046","v":1116.8949328041945},{"$f":"(SUMPRODUCT(AW$9:AW$229,Nutrients!$F$8:$F$228)+(IF($A$7=Nutrients!$B$8,Nutrients!$F$8,Nutrients!$F$9)*AW$7)+(((IF($A$8=Nutrients!$B$79,Nutrients!$F$79,(IF($A$8=Nutrients!$B$77,Nutrients!$F$77,Nutrients!$F$78)))))*AW$8))/2000/2.2046","v":1118.4970295591545}]
["NE NRC, kcal/kg",{"$f":"B250*2.20462","v":2530.1566666389886},2550.090710551452,2567.6284984964309,2582.8196547787202,2593.7823562955086,2598.6138654733877,null,{"$f":"I250*2.20462","v":2509.520864822669},2529.2444256500689,2546.6399032927088,2562.3053394649551,2573.0942572244994,2578.0482550664919,null,{"$f":"P250*2.20462","v":2488.6292560657898},2508.2691949700152,2525.538454136853,2541.2535361228029,2552.0810487593603,2557.035304996692,null,{"$f":"W250*2.20462","v":2467.7819039135497},2487.3250105976754,2504.6480548278405,2520.2585257827909,2531.146909874371,2535.5224453441051,null,{"$f":"AD250*2.20462","v":2446.9197175875743},2466.4985175519623,2483.6665507931243,2499.3422953344166,2508.6933647940714,2512.2985051875671,null,{"$f":"AK250*2.20462","v":2425.4673655636389},2445.6583619323451,2462.8752033615115,2477.3067506782641,2485.5160070602801,2489.0845507898789,null,{"$f":"AR250*2.20462","v":2404.8462027428368},2424.7908592909148,2442.0206921354115,2454.1632667071985,2462.328906758783,2465.8609213067029]
["SID Lys:NE, g/Mcal",{"$f":"IF(B$5=\"\",\"\",B236/(B250*2.2046)*10000)","v":4.6879417735209223},4.112530627795425,3.6100787872368278,3.198349183249853,2.9175053758993537,2.7645509469935567,null,{"$f":"IF(I$5=\"\",\"\",I236/(I250*2.2046)*10000)","v":4.6876292282993317},4.1136367192162773,3.6119772218664936,3.1993805697761695,2.9162692451654051,2.7635215079275643,null,{"$f":"IF(P$5=\"\",\"\",P236/(P250*2.2046)*10000)","v":4.6953412772039087},4.1201642687805293,3.6182054319171923,3.2003549059849501,2.9178841638144175,2.7650975161813283,null,{"$f":"IF(W$5=\"\",\"\",W236/(W250*2.2046)*10000)","v":4.7030956283565173},4.1267659886320667,3.6187899572754394,3.2026568018800989,2.9197957967968442,2.7666429464099593,null,{"$f":"IF(AD$5=\"\",\"\",AD236/(AD250*2.2046)*10000)","v":4.7105732898755868},4.127849214898708,3.6208172278997499,3.2048045883077343,2.9214421897972596,2.7683687830445085,null,{"$f":"IF(AK$5=\"\",\"\",AK236/(AK250*2.2046)*10000)","v":4.7413972624790093},4.13055439006685,3.6232320184333999,3.2068039885110302,2.9232554067118448,2.7700967975110897,null,{"$f":"IF(AR$5=\"\",\"\",AR236/(AR250*2.2046)*10000)","v":4.7404708904541275},4.1333866723249004,3.6268488482340908,3.2094750024953997,2.9251417808624738,2.7718786690455475]
["CP, %",{"$f":"(SUMPRODUCT(B$9:B$229,Nutrients!$I$8:$I$228)+(IF($A$7=Nutrients!$B$8,Nutrients!$I$8,Nutrients!$I$9)*B$7)+(((IF($A$8=Nutrients!$B$79,Nutrients!$I$79,(IF($A$8=Nutrients!$B$77,Nutrients!$I$77,Nutrients!$I$78)))))*B$8))/2000","v":20.659564989031431},{"$f":"(SUMPRODUCT(C$9:C$229,Nutrients!$I$8:$I$228)+(IF($A$7=Nutrients!$B$8,Nutrients!$I$8,Nutrients!$I$9)*C$7)+(((IF($A$8=Nutrients!$B$79,Nutrients!$I$79,(IF($A$8=Nutrients!$B$77,Nutrients!$I$77,Nutrients!$I$78)))))*C$8))/2000","v":18.474711094282195},{"$f":"(SUMPRODUCT(D$9:D$229,Nutrients!$I$8:$I$228)+(IF($A$7=Nutrients!$B$8,Nutrients!$I$8,Nutrients!$I$9)*D$7)+(((IF($A$8=Nutrients!$B$79,Nutrients!$I$79,(IF($A$8=Nutrients!$B$77,Nutrients!$I$77,Nutrients!$I$78)))))*D$8))/2000","v":16.586100942528425},{"$f":"(SUMPRODUCT(E$9:E$229,Nutrients!$I$8:$I$228)+(IF($A$7=Nutrients!$B$8,Nutrients!$I$8,Nutrients!$I$9)*E$7)+(((IF($A$8=Nutrients!$B$79,Nutrients!$I$79,(IF($A$8=Nutrients!$B$77,Nutrients!$I$77,Nutrients!$I$78)))))*E$8))/2000","v":15.008183180211585},{"$f":"(SUMPRODUCT(F$9:F$229,Nutrients!$I$8:$I$228)+(IF($A$7=Nutrients!$B$8,Nutrients!$I$8,Nutrients!$I$9)*F$7)+(((IF($A$8=Nutrients!$B$79,Nutrients!$I$79,(IF($A$8=Nutrients!$B$77,Nutrients!$I$77,Nutrients!$I$78)))))*F$8))/2000","v":13.947394938936968},{"$f":"(SUMPRODUCT(G$9:G$229,Nutrients!$I$8:$I$228)+(IF($A$7=Nutrients!$B$8,Nutrients!$I$8,Nutrients!$I$9)*G$7)+(((IF($A$8=Nutrients!$B$79,Nutrients!$I$79,(IF($A$8=Nutrients!$B$77,Nutrients!$I$77,Nutrients!$I$78)))))*G$8))/2000","v":13.408858132850794},null,{"$f":"(SUMPRODUCT(I$9:I$229,Nutrients!$I$8:$I$228)+(IF($A$7=Nutrients!$B$8,Nutrients!$I$8,Nutrients!$I$9)*I$7)+(((IF($A$8=Nutrients!$B$79,Nutrients!$I$79,(IF($A$8=Nutrients!$B$77,Nutrients!$I$77,Nutrients!$I$78)))))*I$8))/2000","v":20.868984554150327},{"$f":"(SUMPRODUCT(J$9:J$229,Nutrients!$I$8:$I$228)+(IF($A$7=Nutrients!$B$8,Nutrients!$I$8,Nutrients!$I$9)*J$7)+(((IF($A$8=Nutrients!$B$79,Nutrients!$I$79,(IF($A$8=Nutrients!$B$77,Nutrients!$I$77,Nutrients!$I$78)))))*J$8))/2000","v":18.707553277637057},{"$f":"(SUMPRODUCT(K$9:K$229,Nutrients!$I$8:$I$228)+(IF($A$7=Nutrients!$B$8,Nutrients!$I$8,Nutrients!$I$9)*K$7)+(((IF($A$8=Nutrients!$B$79,Nutrients!$I$79,(IF($A$8=Nutrients!$B$77,Nutrients!$I$77,Nutrients!$I$78)))))*K$8))/2000","v":16.838611432401887},{"$f":"(SUMPRODUCT(L$9:L$229,Nutrients!$I$8:$I$228)+(IF($A$7=Nutrients!$B$8,Nutrients!$I$8,Nutrients!$I$9)*L$7)+(((IF($A$8=Nutrients!$B$79,Nutrients!$I$79,(IF($A$8=Nutrients!$B$77,Nutrients!$I$77,Nutrients!$I$78)))))*L$8))/2000","v":15.274662648416196},{"$f":"(SUMPRODUCT(M$9:M$229,Nutrients!$I$8:$I$228)+(IF($A$7=Nutrients!$B$8,Nutrients!$I$8,Nutrients!$I$9)*M$7)+(((IF($A$8=Nutrients!$B$79,Nutrients!$I$79,(IF($A$8=Nutrients!$B$77,Nutrients!$I$77,Nutrients!$I$78)))))*M$8))/2000","v":14.212599358207665},{"$f":"(SUMPRODUCT(N$9:N$229,Nutrients!$I$8:$I$228)+(IF($A$7=Nutrients!$B$8,Nutrients!$I$8,Nutrients!$I$9)*N$7)+(((IF($A$8=Nutrients!$B$79,Nutrients!$I$79,(IF($A$8=Nutrients!$B$77,Nutrients!$I$77,Nutrients!$I$78)))))*N$8))/2000","v":13.68111426749892},null,{"$f":"(SUMPRODUCT(P$9:P$229,Nutrients!$I$8:$I$228)+(IF($A$7=Nutrients!$B$8,Nutrients!$I$8,Nutrients!$I$9)*P$7)+(((IF($A$8=Nutrients!$B$79,Nutrients!$I$79,(IF($A$8=Nutrients!$B$77,Nutrients!$I$77,Nutrients!$I$78)))))*P$8))/2000","v":21.109223912627058},{"$f":"(SUMPRODUCT(Q$9:Q$229,Nutrients!$I$8:$I$228)+(IF($A$7=Nutrients!$B$8,Nutrients!$I$8,Nutrients!$I$9)*Q$7)+(((IF($A$8=Nutrients!$B$79,Nutrients!$I$79,(IF($A$8=Nutrients!$B$77,Nutrients!$I$77,Nutrients!$I$78)))))*Q$8))/2000","v":18.962387521788358},{"$f":"(SUMPRODUCT(R$9:R$229,Nutrients!$I$8:$I$228)+(IF($A$7=Nutrients!$B$8,Nutrients!$I$8,Nutrients!$I$9)*R$7)+(((IF($A$8=Nutrients!$B$79,Nutrients!$I$79,(IF($A$8=Nutrients!$B$77,Nutrients!$I$77,Nutrients!$I$78)))))*R$8))/2000","v":17.108254896780547},{"$f":"(SUMPRODUCT(S$9:S$229,Nutrients!$I$8:$I$228)+(IF($A$7=Nutrients!$B$8,Nutrients!$I$8,Nutrients!$I$9)*S$7)+(((IF($A$8=Nutrients!$B$79,Nutrients!$I$79,(IF($A$8=Nutrients!$B$77,Nutrients!$I$77,Nutrients!$I$78)))))*S$8))/2000","v":15.53723464526462},{"$f":"(SUMPRODUCT(T$9:T$229,Nutrients!$I$8:$I$228)+(IF($A$7=Nutrients!$B$8,Nutrients!$I$8,Nutrients!$I$9)*T$7)+(((IF($A$8=Nutrients!$B$79,Nutrients!$I$79,(IF($A$8=Nutrients!$B$77,Nutrients!$I$77,Nutrients!$I$78)))))*T$8))/2000","v":14.492185496795154},{"$f":"(SUMPRODUCT(U$9:U$229,Nutrients!$I$8:$I$228)+(IF($A$7=Nutrients!$B$8,Nutrients!$I$8,Nutrients!$I$9)*U$7)+(((IF($A$8=Nutrients!$B$79,Nutrients!$I$79,(IF($A$8=Nutrients!$B$77,Nutrients!$I$77,Nutrients!$I$78)))))*U$8))/2000","v":13.967032025265024},null,{"$f":"(SUMPRODUCT(W$9:W$229,Nutrients!$I$8:$I$228)+(IF($A$7=Nutrients!$B$8,Nutrients!$I$8,Nutrients!$I$9)*W$7)+(((IF($A$8=Nutrients!$B$79,Nutrients!$I$79,(IF($A$8=Nutrients!$B$77,Nutrients!$I$77,Nutrients!$I$78)))))*W$8))/2000","v":21.349533850263338},{"$f":"(SUMPRODUCT(X$9:X$229,Nutrients!$I$8:$I$228)+(IF($A$7=Nutrients!$B$8,Nutrients!$I$8,Nutrients!$I$9)*X$7)+(((IF($A$8=Nutrients!$B$79,Nutrients!$I$79,(IF($A$8=Nutrients!$B$77,Nutrients!$I$77,Nutrients!$I$78)))))*X$8))/2000","v":19.217008348952426},{"$f":"(SUMPRODUCT(Y$9:Y$229,Nutrients!$I$8:$I$228)+(IF($A$7=Nutrients!$B$8,Nutrients!$I$8,Nutrients!$I$9)*Y$7)+(((IF($A$8=Nutrients!$B$79,Nutrients!$I$79,(IF($A$8=Nutrients!$B$77,Nutrients!$I$77,Nutrients!$I$78)))))*Y$8))/2000","v":17.356300968408767},{"$f":"(SUMPRODUCT(Z$9:Z$229,Nutrients!$I$8:$I$228)+(IF($A$7=Nutrients!$B$8,Nutrients!$I$8,Nutrients!$I$9)*Z$7)+(((IF($A$8=Nutrients!$B$79,Nutrients!$I$79,(IF($A$8=Nutrients!$B$77,Nutrients!$I$77,Nutrients!$I$78)))))*Z$8))/2000","v":15.807076172505134},{"$f":"(SUMPRODUCT(AA$9:AA$229,Nutrients!$I$8:$I$228)+(IF($A$7=Nutrients!$B$8,Nutrients!$I$8,Nutrients!$I$9)*AA$7)+(((IF($A$8=Nutrients!$B$79,Nutrients!$I$79,(IF($A$8=Nutrients!$B$77,Nutrients!$I$77,Nutrients!$I$78)))))*AA$8))/2000","v":14.774655348672297},{"$f":"(SUMPRODUCT(AB$9:AB$229,Nutrients!$I$8:$I$228)+(IF($A$7=Nutrients!$B$8,Nutrients!$I$8,Nutrients!$I$9)*AB$7)+(((IF($A$8=Nutrients!$B$79,Nutrients!$I$79,(IF($A$8=Nutrients!$B$77,Nutrients!$I$77,Nutrients!$I$78)))))*AB$8))/2000","v":14.249479412240522},null,{"$f":"(SUMPRODUCT(AD$9:AD$229,Nutrients!$I$8:$I$228)+(IF($A$7=Nutrients!$B$8,Nutrients!$I$8,Nutrients!$I$9)*AD$7)+(((IF($A$8=Nutrients!$B$79,Nutrients!$I$79,(IF($A$8=Nutrients!$B$77,Nutrients!$I$77,Nutrients!$I$78)))))*AD$8))/2000","v":21.588066570721509},{"$f":"(SUMPRODUCT(AE$9:AE$229,Nutrients!$I$8:$I$228)+(IF($A$7=Nutrients!$B$8,Nutrients!$I$8,Nutrients!$I$9)*AE$7)+(((IF($A$8=Nutrients!$B$79,Nutrients!$I$79,(IF($A$8=Nutrients!$B$77,Nutrients!$I$77,Nutrients!$I$78)))))*AE$8))/2000","v":19.449967504381718},{"$f":"(SUMPRODUCT(AF$9:AF$229,Nutrients!$I$8:$I$228)+(IF($A$7=Nutrients!$B$8,Nutrients!$I$8,Nutrients!$I$9)*AF$7)+(((IF($A$8=Nutrients!$B$79,Nutrients!$I$79,(IF($A$8=Nutrients!$B$77,Nutrients!$I$77,Nutrients!$I$78)))))*AF$8))/2000","v":17.608625438371465},{"$f":"(SUMPRODUCT(AG$9:AG$229,Nutrients!$I$8:$I$228)+(IF($A$7=Nutrients!$B$8,Nutrients!$I$8,Nutrients!$I$9)*AG$7)+(((IF($A$8=Nutrients!$B$79,Nutrients!$I$79,(IF($A$8=Nutrients!$B$77,Nutrients!$I$77,Nutrients!$I$78)))))*AG$8))/2000","v":16.080801340649419},{"$f":"(SUMPRODUCT(AH$9:AH$229,Nutrients!$I$8:$I$228)+(IF($A$7=Nutrients!$B$8,Nutrients!$I$8,Nutrients!$I$9)*AH$7)+(((IF($A$8=Nutrients!$B$79,Nutrients!$I$79,(IF($A$8=Nutrients!$B$77,Nutrients!$I$77,Nutrients!$I$78)))))*AH$8))/2000","v":15.045367670524143},{"$f":"(SUMPRODUCT(AI$9:AI$229,Nutrients!$I$8:$I$228)+(IF($A$7=Nutrients!$B$8,Nutrients!$I$8,Nutrients!$I$9)*AI$7)+(((IF($A$8=Nutrients!$B$79,Nutrients!$I$79,(IF($A$8=Nutrients!$B$77,Nutrients!$I$77,Nutrients!$I$78)))))*AI$8))/2000","v":14.521135241298811},null,{"$f":"(SUMPRODUCT(AK$9:AK$229,Nutrients!$I$8:$I$228)+(IF($A$7=Nutrients!$B$8,Nutrients!$I$8,Nutrients!$I$9)*AK$7)+(((IF($A$8=Nutrients!$B$79,Nutrients!$I$79,(IF($A$8=Nutrients!$B$77,Nutrients!$I$77,Nutrients!$I$78)))))*AK$8))/2000","v":21.912887950417126},{"$f":"(SUMPRODUCT(AL$9:AL$229,Nutrients!$I$8:$I$228)+(IF($A$7=Nutrients!$B$8,Nutrients!$I$8,Nutrients!$I$9)*AL$7)+(((IF($A$8=Nutrients!$B$79,Nutrients!$I$79,(IF($A$8=Nutrients!$B$77,Nutrients!$I$77,Nutrients!$I$78)))))*AL$8))/2000","v":19.689213862320614},{"$f":"(SUMPRODUCT(AM$9:AM$229,Nutrients!$I$8:$I$228)+(IF($A$7=Nutrients!$B$8,Nutrients!$I$8,Nutrients!$I$9)*AM$7)+(((IF($A$8=Nutrients!$B$79,Nutrients!$I$79,(IF($A$8=Nutrients!$B$77,Nutrients!$I$77,Nutrients!$I$78)))))*AM$8))/2000","v":17.869992059188888},{"$f":"(SUMPRODUCT(AN$9:AN$229,Nutrients!$I$8:$I$228)+(IF($A$7=Nutrients!$B$8,Nutrients!$I$8,Nutrients!$I$9)*AN$7)+(((IF($A$8=Nutrients!$B$79,Nutrients!$I$79,(IF($A$8=Nutrients!$B$77,Nutrients!$I$77,Nutrients!$I$78)))))*AN$8))/2000","v":16.345282240820236},{"$f":"(SUMPRODUCT(AO$9:AO$229,Nutrients!$I$8:$I$228)+(IF($A$7=Nutrients!$B$8,Nutrients!$I$8,Nutrients!$I$9)*AO$7)+(((IF($A$8=Nutrients!$B$79,Nutrients!$I$79,(IF($A$8=Nutrients!$B$77,Nutrients!$I$77,Nutrients!$I$78)))))*AO$8))/2000","v":15.312088027856673},{"$f":"(SUMPRODUCT(AP$9:AP$229,Nutrients!$I$8:$I$228)+(IF($A$7=Nutrients!$B$8,Nutrients!$I$8,Nutrients!$I$9)*AP$7)+(((IF($A$8=Nutrients!$B$79,Nutrients!$I$79,(IF($A$8=Nutrients!$B$77,Nutrients!$I$77,Nutrients!$I$78)))))*AP$8))/2000","v":14.793078236640929},null,{"$f":"(SUMPRODUCT(AR$9:AR$229,Nutrients!$I$8:$I$228)+(IF($A$7=Nutrients!$B$8,Nutrients!$I$8,Nutrients!$I$9)*AR$7)+(((IF($A$8=Nutrients!$B$79,Nutrients!$I$79,(IF($A$8=Nutrients!$B$77,Nutrients!$I$77,Nutrients!$I$78)))))*AR$8))/2000","v":22.118924812787085},{"$f":"(SUMPRODUCT(AS$9:AS$229,Nutrients!$I$8:$I$228)+(IF($A$7=Nutrients!$B$8,Nutrients!$I$8,Nutrients!$I$9)*AS$7)+(((IF($A$8=Nutrients!$B$79,Nutrients!$I$79,(IF($A$8=Nutrients!$B$77,Nutrients!$I$77,Nutrients!$I$78)))))*AS$8))/2000","v":19.928541456637848},{"$f":"(SUMPRODUCT(AT$9:AT$229,Nutrients!$I$8:$I$228)+(IF($A$7=Nutrients!$B$8,Nutrients!$I$8,Nutrients!$I$9)*AT$7)+(((IF($A$8=Nutrients!$B$79,Nutrients!$I$79,(IF($A$8=Nutrients!$B$77,Nutrients!$I$77,Nutrients!$I$78)))))*AT$8))/2000","v":18.135492255530394},{"$f":"(SUMPRODUCT(AU$9:AU$229,Nutrients!$I$8:$I$228)+(IF($A$7=Nutrients!$B$8,Nutrients!$I$8,Nutrients!$I$9)*AU$7)+(((IF($A$8=Nutrients!$B$79,Nutrients!$I$79,(IF($A$8=Nutrients!$B$77,Nutrients!$I$77,Nutrients!$I$78)))))*AU$8))/2000","v":16.604788180304155},{"$f":"(SUMPRODUCT(AV$9:AV$229,Nutrients!$I$8:$I$228)+(IF($A$7=Nutrients!$B$8,Nutrients!$I$8,Nutrients!$I$9)*AV$7)+(((IF($A$8=Nutrients!$B$79,Nutrients!$I$79,(IF($A$8=Nutrients!$B$77,Nutrients!$I$77,Nutrients!$I$78)))))*AV$8))/2000","v":15.578575614171911},{"$f":"(SUMPRODUCT(AW$9:AW$229,Nutrients!$I$8:$I$228)+(IF($A$7=Nutrients!$B$8,Nutrients!$I$8,Nutrients!$I$9)*AW$7)+(((IF($A$8=Nutrients!$B$79,Nutrients!$I$79,(IF($A$8=Nutrients!$B$77,Nutrients!$I$77,Nutrients!$I$78)))))*AW$8))/2000","v":15.064702397839635}]
["Ca, %",{"$f":"(SUMPRODUCT(B$9:B$229,Nutrients!$BS$8:$BS$228)+(IF($A$7=Nutrients!$B$8,Nutrients!$BS$8,Nutrients!$BS$9)*B$7)+(((IF($A$8=Nutrients!$B$79,Nutrients!$BS$79,(IF($A$8=Nutrients!$B$77,Nutrients!$BS$77,Nutrients!$BS$78)))))*B$8))/2000","v":0.6959867621315019},{"$f":"(SUMPRODUCT(C$9:C$229,Nutrients!$BS$8:$BS$228)+(IF($A$7=Nutrients!$B$8,Nutrients!$BS$8,Nutrients!$BS$9)*C$7)+(((IF($A$8=Nutrients!$B$79,Nutrients!$BS$79,(IF($A$8=Nutrients!$B$77,Nutrients!$BS$77,Nutrients!$BS$78)))))*C$8))/2000","v":0.62662783783950593},{"$f":"(SUMPRODUCT(D$9:D$229,Nutrients!$BS$8:$BS$228)+(IF($A$7=Nutrients!$B$8,Nutrients!$BS$8,Nutrients!$BS$9)*D$7)+(((IF($A$8=Nutrients!$B$79,Nutrients!$BS$79,(IF($A$8=Nutrients!$B$77,Nutrients!$BS$77,Nutrients!$BS$78)))))*D$8))/2000","v":0.57472596332038417},{"$f":"(SUMPRODUCT(E$9:E$229,Nutrients!$BS$8:$BS$228)+(IF($A$7=Nutrients!$B$8,Nutrients!$BS$8,Nutrients!$BS$9)*E$7)+(((IF($A$8=Nutrients!$B$79,Nutrients!$BS$79,(IF($A$8=Nutrients!$B$77,Nutrients!$BS$77,Nutrients!$BS$78)))))*E$8))/2000","v":0.52452097205568682},{"$f":"(SUMPRODUCT(F$9:F$229,Nutrients!$BS$8:$BS$228)+(IF($A$7=Nutrients!$B$8,Nutrients!$BS$8,Nutrients!$BS$9)*F$7)+(((IF($A$8=Nutrients!$B$79,Nutrients!$BS$79,(IF($A$8=Nutrients!$B$77,Nutrients!$BS$77,Nutrients!$BS$78)))))*F$8))/2000","v":0.48152514697950427},{"$f":"(SUMPRODUCT(G$9:G$229,Nutrients!$BS$8:$BS$228)+(IF($A$7=Nutrients!$B$8,Nutrients!$BS$8,Nutrients!$BS$9)*G$7)+(((IF($A$8=Nutrients!$B$79,Nutrients!$BS$79,(IF($A$8=Nutrients!$B$77,Nutrients!$BS$77,Nutrients!$BS$78)))))*G$8))/2000","v":0.46528542953652235},null,{"$f":"(SUMPRODUCT(I$9:I$229,Nutrients!$BS$8:$BS$228)+(IF($A$7=Nutrients!$B$8,Nutrients!$BS$8,Nutrients!$BS$9)*I$7)+(((IF($A$8=Nutrients!$B$79,Nutrients!$BS$79,(IF($A$8=Nutrients!$B$77,Nutrients!$BS$77,Nutrients!$BS$78)))))*I$8))/2000","v":0.69549234721729292},{"$f":"(SUMPRODUCT(J$9:J$229,Nutrients!$BS$8:$BS$228)+(IF($A$7=Nutrients!$B$8,Nutrients!$BS$8,Nutrients!$BS$9)*J$7)+(((IF($A$8=Nutrients!$B$79,Nutrients!$BS$79,(IF($A$8=Nutrients!$B$77,Nutrients!$BS$77,Nutrients!$BS$78)))))*J$8))/2000","v":0.62705204503980994},{"$f":"(SUMPRODUCT(K$9:K$229,Nutrients!$BS$8:$BS$228)+(IF($A$7=Nutrients!$B$8,Nutrients!$BS$8,Nutrients!$BS$9)*K$7)+(((IF($A$8=Nutrients!$B$79,Nutrients!$BS$79,(IF($A$8=Nutrients!$B$77,Nutrients!$BS$77,Nutrients!$BS$78)))))*K$8))/2000","v":0.57560738696742619},{"$f":"(SUMPRODUCT(L$9:L$229,Nutrients!$BS$8:$BS$228)+(IF($A$7=Nutrients!$B$8,Nutrients!$BS$8,Nutrients!$BS$9)*L$7)+(((IF($A$8=Nutrients!$B$79,Nutrients!$BS$79,(IF($A$8=Nutrients!$B$77,Nutrients!$BS$77,Nutrients!$BS$78)))))*L$8))/2000","v":0.52009619805015317},{"$f":"(SUMPRODUCT(M$9:M$229,Nutrients!$BS$8:$BS$228)+(IF($A$7=Nutrients!$B$8,Nutrients!$BS$8,Nutrients!$BS$9)*M$7)+(((IF($A$8=Nutrients!$B$79,Nutrients!$BS$79,(IF($A$8=Nutrients!$B$77,Nutrients!$BS$77,Nutrients!$BS$78)))))*M$8))/2000","v":0.47889538217647037},{"$f":"(SUMPRODUCT(N$9:N$229,Nutrients!$BS$8:$BS$228)+(IF($A$7=Nutrients!$B$8,Nutrients!$BS$8,Nutrients!$BS$9)*N$7)+(((IF($A$8=Nutrients!$B$79,Nutrients!$BS$79,(IF($A$8=Nutrients!$B$77,Nutrients!$BS$77,Nutrients!$BS$78)))))*N$8))/2000","v":0.46119783326559027},null,{"$f":"(SUMPRODUCT(P$9:P$229,Nutrients!$BS$8:$BS$228)+(IF($A$7=Nutrients!$B$8,Nutrients!$BS$8,Nutrients!$BS$9)*P$7)+(((IF($A$8=Nutrients!$B$79,Nutrients!$BS$79,(IF($A$8=Nutrients!$B$77,Nutrients!$BS$77,Nutrients!$BS$78)))))*P$8))/2000","v":0.69621606652791368},{"$f":"(SUMPRODUCT(Q$9:Q$229,Nutrients!$BS$8:$BS$228)+(IF($A$7=Nutrients!$B$8,Nutrients!$BS$8,Nutrients!$BS$9)*Q$7)+(((IF($A$8=Nutrients!$B$79,Nutrients!$BS$79,(IF($A$8=Nutrients!$B$77,Nutrients!$BS$77,Nutrients!$BS$78)))))*Q$8))/2000","v":0.62784369066614532},{"$f":"(SUMPRODUCT(R$9:R$229,Nutrients!$BS$8:$BS$228)+(IF($A$7=Nutrients!$B$8,Nutrients!$BS$8,Nutrients!$BS$9)*R$7)+(((IF($A$8=Nutrients!$B$79,Nutrients!$BS$79,(IF($A$8=Nutrients!$B$77,Nutrients!$BS$77,Nutrients!$BS$78)))))*R$8))/2000","v":0.57671570517143511},{"$f":"(SUMPRODUCT(S$9:S$229,Nutrients!$BS$8:$BS$228)+(IF($A$7=Nutrients!$B$8,Nutrients!$BS$8,Nutrients!$BS$9)*S$7)+(((IF($A$8=Nutrients!$B$79,Nutrients!$BS$79,(IF($A$8=Nutrients!$B$77,Nutrients!$BS$77,Nutrients!$BS$78)))))*S$8))/2000","v":0.52112359920610851},{"$f":"(SUMPRODUCT(T$9:T$229,Nutrients!$BS$8:$BS$228)+(IF($A$7=Nutrients!$B$8,Nutrients!$BS$8,Nutrients!$BS$9)*T$7)+(((IF($A$8=Nutrients!$B$79,Nutrients!$BS$79,(IF($A$8=Nutrients!$B$77,Nutrients!$BS$77,Nutrients!$BS$78)))))*T$8))/2000","v":0.48003051366870453},{"$f":"(SUMPRODUCT(U$9:U$229,Nutrients!$BS$8:$BS$228)+(IF($A$7=Nutrients!$B$8,Nutrients!$BS$8,Nutrients!$BS$9)*U$7)+(((IF($A$8=Nutrients!$B$79,Nutrients!$BS$79,(IF($A$8=Nutrients!$B$77,Nutrients!$BS$77,Nutrients!$BS$78)))))*U$8))/2000","v":0.46238623258134809},null,{"$f":"(SUMPRODUCT(W$9:W$229,Nutrients!$BS$8:$BS$228)+(IF($A$7=Nutrients!$B$8,Nutrients!$BS$8,Nutrients!$BS$9)*W$7)+(((IF($A$8=Nutrients!$B$79,Nutrients!$BS$79,(IF($A$8=Nutrients!$B$77,Nutrients!$BS$77,Nutrients!$BS$78)))))*W$8))/2000","v":0.69630822692718564},{"$f":"(SUMPRODUCT(X$9:X$229,Nutrients!$BS$8:$BS$228)+(IF($A$7=Nutrients!$B$8,Nutrients!$BS$8,Nutrients!$BS$9)*X$7)+(((IF($A$8=Nutrients!$B$79,Nutrients!$BS$79,(IF($A$8=Nutrients!$B$77,Nutrients!$BS$77,Nutrients!$BS$78)))))*X$8))/2000","v":0.62804819281658497},{"$f":"(SUMPRODUCT(Y$9:Y$229,Nutrients!$BS$8:$BS$228)+(IF($A$7=Nutrients!$B$8,Nutrients!$BS$8,Nutrients!$BS$9)*Y$7)+(((IF($A$8=Nutrients!$B$79,Nutrients!$BS$79,(IF($A$8=Nutrients!$B$77,Nutrients!$BS$77,Nutrients!$BS$78)))))*Y$8))/2000","v":0.57686645103596856},{"$f":"(SUMPRODUCT(Z$9:Z$229,Nutrients!$BS$8:$BS$228)+(IF($A$7=Nutrients!$B$8,Nutrients!$BS$8,Nutrients!$BS$9)*Z$7)+(((IF($A$8=Nutrients!$B$79,Nutrients!$BS$79,(IF($A$8=Nutrients!$B$77,Nutrients!$BS$77,Nutrients!$BS$78)))))*Z$8))/2000","v":0.52143555806577979},{"$f":"(SUMPRODUCT(AA$9:AA$229,Nutrients!$BS$8:$BS$228)+(IF($A$7=Nutrients!$B$8,Nutrients!$BS$8,Nutrients!$BS$9)*AA$7)+(((IF($A$8=Nutrients!$B$79,Nutrients!$BS$79,(IF($A$8=Nutrients!$B$77,Nutrients!$BS$77,Nutrients!$BS$78)))))*AA$8))/2000","v":0.48040786906454946},{"$f":"(SUMPRODUCT(AB$9:AB$229,Nutrients!$BS$8:$BS$228)+(IF($A$7=Nutrients!$B$8,Nutrients!$BS$8,Nutrients!$BS$9)*AB$7)+(((IF($A$8=Nutrients!$B$79,Nutrients!$BS$79,(IF($A$8=Nutrients!$B$77,Nutrients!$BS$77,Nutrients!$BS$78)))))*AB$8))/2000","v":0.46795597140439338},null,{"$f":"(SUMPRODUCT(AD$9:AD$229,Nutrients!$BS$8:$BS$228)+(IF($A$7=Nutrients!$B$8,Nutrients!$BS$8,Nutrients!$BS$9)*AD$7)+(((IF($A$8=Nutrients!$B$79,Nutrients!$BS$79,(IF($A$8=Nutrients!$B$77,Nutrients!$BS$77,Nutrients!$BS$78)))))*AD$8))/2000","v":0.69676597105582572},{"$f":"(SUMPRODUCT(AE$9:AE$229,Nutrients!$BS$8:$BS$228)+(IF($A$7=Nutrients!$B$8,Nutrients!$BS$8,Nutrients!$BS$9)*AE$7)+(((IF($A$8=Nutrients!$B$79,Nutrients!$BS$79,(IF($A$8=Nutrients!$B$77,Nutrients!$BS$77,Nutrients!$BS$78)))))*AE$8))/2000","v":0.62849071764533637},{"$f":"(SUMPRODUCT(AF$9:AF$229,Nutrients!$BS$8:$BS$228)+(IF($A$7=Nutrients!$B$8,Nutrients!$BS$8,Nutrients!$BS$9)*AF$7)+(((IF($A$8=Nutrients!$B$79,Nutrients!$BS$79,(IF($A$8=Nutrients!$B$77,Nutrients!$BS$77,Nutrients!$BS$78)))))*AF$8))/2000","v":0.57753146181125159},{"$f":"(SUMPRODUCT(AG$9:AG$229,Nutrients!$BS$8:$BS$228)+(IF($A$7=Nutrients!$B$8,Nutrients!$BS$8,Nutrients!$BS$9)*AG$7)+(((IF($A$8=Nutrients!$B$79,Nutrients!$BS$79,(IF($A$8=Nutrients!$B$77,Nutrients!$BS$77,Nutrients!$BS$78)))))*AG$8))/2000","v":0.5223273024198315},{"$f":"(SUMPRODUCT(AH$9:AH$229,Nutrients!$BS$8:$BS$228)+(IF($A$7=Nutrients!$B$8,Nutrients!$BS$8,Nutrients!$BS$9)*AH$7)+(((IF($A$8=Nutrients!$B$79,Nutrients!$BS$79,(IF($A$8=Nutrients!$B$77,Nutrients!$BS$77,Nutrients!$BS$78)))))*AH$8))/2000","v":0.49483733291432469},{"$f":"(SUMPRODUCT(AI$9:AI$229,Nutrients!$BS$8:$BS$228)+(IF($A$7=Nutrients!$B$8,Nutrients!$BS$8,Nutrients!$BS$9)*AI$7)+(((IF($A$8=Nutrients!$B$79,Nutrients!$BS$79,(IF($A$8=Nutrients!$B$77,Nutrients!$BS$77,Nutrients!$BS$78)))))*AI$8))/2000","v":0.48896835270999284},null,{"$f":"(SUMPRODUCT(AK$9:AK$229,Nutrients!$BS$8:$BS$228)+(IF($A$7=Nutrients!$B$8,Nutrients!$BS$8,Nutrients!$BS$9)*AK$7)+(((IF($A$8=Nutrients!$B$79,Nutrients!$BS$79,(IF($A$8=Nutrients!$B$77,Nutrients!$BS$77,Nutrients!$BS$78)))))*AK$8))/2000","v":0.697990224118053},{"$f":"(SUMPRODUCT(AL$9:AL$229,Nutrients!$BS$8:$BS$228)+(IF($A$7=Nutrients!$B$8,Nutrients!$BS$8,Nutrients!$BS$9)*AL$7)+(((IF($A$8=Nutrients!$B$79,Nutrients!$BS$79,(IF($A$8=Nutrients!$B$77,Nutrients!$BS$77,Nutrients!$BS$78)))))*AL$8))/2000","v":0.62857452884971898},{"$f":"(SUMPRODUCT(AM$9:AM$229,Nutrients!$BS$8:$BS$228)+(IF($A$7=Nutrients!$B$8,Nutrients!$BS$8,Nutrients!$BS$9)*AM$7)+(((IF($A$8=Nutrients!$B$79,Nutrients!$BS$79,(IF($A$8=Nutrients!$B$77,Nutrients!$BS$77,Nutrients!$BS$78)))))*AM$8))/2000","v":0.57774315497289763},{"$f":"(SUMPRODUCT(AN$9:AN$229,Nutrients!$BS$8:$BS$228)+(IF($A$7=Nutrients!$B$8,Nutrients!$BS$8,Nutrients!$BS$9)*AN$7)+(((IF($A$8=Nutrients!$B$79,Nutrients!$BS$79,(IF($A$8=Nutrients!$B$77,Nutrients!$BS$77,Nutrients!$BS$78)))))*AN$8))/2000","v":0.53329676098394463},{"$f":"(SUMPRODUCT(AO$9:AO$229,Nutrients!$BS$8:$BS$228)+(IF($A$7=Nutrients!$B$8,Nutrients!$BS$8,Nutrients!$BS$9)*AO$7)+(((IF($A$8=Nutrients!$B$79,Nutrients!$BS$79,(IF($A$8=Nutrients!$B$77,Nutrients!$BS$77,Nutrients!$BS$78)))))*AO$8))/2000","v":0.51578952550205603},{"$f":"(SUMPRODUCT(AP$9:AP$229,Nutrients!$BS$8:$BS$228)+(IF($A$7=Nutrients!$B$8,Nutrients!$BS$8,Nutrients!$BS$9)*AP$7)+(((IF($A$8=Nutrients!$B$79,Nutrients!$BS$79,(IF($A$8=Nutrients!$B$77,Nutrients!$BS$77,Nutrients!$BS$78)))))*AP$8))/2000","v":0.50997932752856046},null,{"$f":"(SUMPRODUCT(AR$9:AR$229,Nutrients!$BS$8:$BS$228)+(IF($A$7=Nutrients!$B$8,Nutrients!$BS$8,Nutrients!$BS$9)*AR$7)+(((IF($A$8=Nutrients!$B$79,Nutrients!$BS$79,(IF($A$8=Nutrients!$B$77,Nutrients!$BS$77,Nutrients!$BS$78)))))*AR$8))/2000","v":0.69789407418327631},{"$f":"(SUMPRODUCT(AS$9:AS$229,Nutrients!$BS$8:$BS$228)+(IF($A$7=Nutrients!$B$8,Nutrients!$BS$8,Nutrients!$BS$9)*AS$7)+(((IF($A$8=Nutrients!$B$79,Nutrients!$BS$79,(IF($A$8=Nutrients!$B$77,Nutrients!$BS$77,Nutrients!$BS$78)))))*AS$8))/2000","v":0.62903763581149053},{"$f":"(SUMPRODUCT(AT$9:AT$229,Nutrients!$BS$8:$BS$228)+(IF($A$7=Nutrients!$B$8,Nutrients!$BS$8,Nutrients!$BS$9)*AT$7)+(((IF($A$8=Nutrients!$B$79,Nutrients!$BS$79,(IF($A$8=Nutrients!$B$77,Nutrients!$BS$77,Nutrients!$BS$78)))))*AT$8))/2000","v":0.57848461261224604},{"$f":"(SUMPRODUCT(AU$9:AU$229,Nutrients!$BS$8:$BS$228)+(IF($A$7=Nutrients!$B$8,Nutrients!$BS$8,Nutrients!$BS$9)*AU$7)+(((IF($A$8=Nutrients!$B$79,Nutrients!$BS$79,(IF($A$8=Nutrients!$B$77,Nutrients!$BS$77,Nutrients!$BS$78)))))*AU$8))/2000","v":0.55440344784338846},{"$f":"(SUMPRODUCT(AV$9:AV$229,Nutrients!$BS$8:$BS$228)+(IF($A$7=Nutrients!$B$8,Nutrients!$BS$8,Nutrients!$BS$9)*AV$7)+(((IF($A$8=Nutrients!$B$79,Nutrients!$BS$79,(IF($A$8=Nutrients!$B$77,Nutrients!$BS$77,Nutrients!$BS$78)))))*AV$8))/2000","v":0.53674468577051604},{"$f":"(SUMPRODUCT(AW$9:AW$229,Nutrients!$BS$8:$BS$228)+(IF($A$7=Nutrients!$B$8,Nutrients!$BS$8,Nutrients!$BS$9)*AW$7)+(((IF($A$8=Nutrients!$B$79,Nutrients!$BS$79,(IF($A$8=Nutrients!$B$77,Nutrients!$BS$77,Nutrients!$BS$78)))))*AW$8))/2000","v":0.53099132009272099}]
["P, %",{"$f":"(SUMPRODUCT(B$9:B$229,Nutrients!$BX$8:$BX$228)+(IF($A$7=Nutrients!$B$8,Nutrients!$BX$8,Nutrients!$BX$9)*B$7)+(((IF($A$8=Nutrients!$B$79,Nutrients!$BX$79,(IF($A$8=Nutrients!$B$77,Nutrients!$BX$77,Nutrients!$BX$78)))))*B$8))/2000","v":0.5346695452711987},{"$f":"(SUMPRODUCT(C$9:C$229,Nutrients!$BX$8:$BX$228)+(IF($A$7=Nutrients!$B$8,Nutrients!$BX$8,Nutrients!$BX$9)*C$7)+(((IF($A$8=Nutrients!$B$79,Nutrients!$BX$79,(IF($A$8=Nutrients!$B$77,Nutrients!$BX$77,Nutrients!$BX$78)))))*C$8))/2000","v":0.48121097221673825},{"$f":"(SUMPRODUCT(D$9:D$229,Nutrients!$BX$8:$BX$228)+(IF($A$7=Nutrients!$B$8,Nutrients!$BX$8,Nutrients!$BX$9)*D$7)+(((IF($A$8=Nutrients!$B$79,Nutrients!$BX$79,(IF($A$8=Nutrients!$B$77,Nutrients!$BX$77,Nutrients!$BX$78)))))*D$8))/2000","v":0.42976285680817727},{"$f":"(SUMPRODUCT(E$9:E$229,Nutrients!$BX$8:$BX$228)+(IF($A$7=Nutrients!$B$8,Nutrients!$BX$8,Nutrients!$BX$9)*E$7)+(((IF($A$8=Nutrients!$B$79,Nutrients!$BX$79,(IF($A$8=Nutrients!$B$77,Nutrients!$BX$77,Nutrients!$BX$78)))))*E$8))/2000","v":0.3909770634935561},{"$f":"(SUMPRODUCT(F$9:F$229,Nutrients!$BX$8:$BX$228)+(IF($A$7=Nutrients!$B$8,Nutrients!$BX$8,Nutrients!$BX$9)*F$7)+(((IF($A$8=Nutrients!$B$79,Nutrients!$BX$79,(IF($A$8=Nutrients!$B$77,Nutrients!$BX$77,Nutrients!$BX$78)))))*F$8))/2000","v":0.36342201195104268},{"$f":"(SUMPRODUCT(G$9:G$229,Nutrients!$BX$8:$BX$228)+(IF($A$7=Nutrients!$B$8,Nutrients!$BX$8,Nutrients!$BX$9)*G$7)+(((IF($A$8=Nutrients!$B$79,Nutrients!$BX$79,(IF($A$8=Nutrients!$B$77,Nutrients!$BX$77,Nutrients!$BX$78)))))*G$8))/2000","v":0.35071811324744068},null,{"$f":"(SUMPRODUCT(I$9:I$229,Nutrients!$BX$8:$BX$228)+(IF($A$7=Nutrients!$B$8,Nutrients!$BX$8,Nutrients!$BX$9)*I$7)+(((IF($A$8=Nutrients!$B$79,Nutrients!$BX$79,(IF($A$8=Nutrients!$B$77,Nutrients!$BX$77,Nutrients!$BX$78)))))*I$8))/2000","v":0.53378856874474034},{"$f":"(SUMPRODUCT(J$9:J$229,Nutrients!$BX$8:$BX$228)+(IF($A$7=Nutrients!$B$8,Nutrients!$BX$8,Nutrients!$BX$9)*J$7)+(((IF($A$8=Nutrients!$B$79,Nutrients!$BX$79,(IF($A$8=Nutrients!$B$77,Nutrients!$BX$77,Nutrients!$BX$78)))))*J$8))/2000","v":0.48059411815266345},{"$f":"(SUMPRODUCT(K$9:K$229,Nutrients!$BX$8:$BX$228)+(IF($A$7=Nutrients!$B$8,Nutrients!$BX$8,Nutrients!$BX$9)*K$7)+(((IF($A$8=Nutrients!$B$79,Nutrients!$BX$79,(IF($A$8=Nutrients!$B$77,Nutrients!$BX$77,Nutrients!$BX$78)))))*K$8))/2000","v":0.42936323045345376},{"$f":"(SUMPRODUCT(L$9:L$229,Nutrients!$BX$8:$BX$228)+(IF($A$7=Nutrients!$B$8,Nutrients!$BX$8,Nutrients!$BX$9)*L$7)+(((IF($A$8=Nutrients!$B$79,Nutrients!$BX$79,(IF($A$8=Nutrients!$B$77,Nutrients!$BX$77,Nutrients!$BX$78)))))*L$8))/2000","v":0.38803484247387704},{"$f":"(SUMPRODUCT(M$9:M$229,Nutrients!$BX$8:$BX$228)+(IF($A$7=Nutrients!$B$8,Nutrients!$BX$8,Nutrients!$BX$9)*M$7)+(((IF($A$8=Nutrients!$B$79,Nutrients!$BX$79,(IF($A$8=Nutrients!$B$77,Nutrients!$BX$77,Nutrients!$BX$78)))))*M$8))/2000","v":0.36126192753585401},{"$f":"(SUMPRODUCT(N$9:N$229,Nutrients!$BX$8:$BX$228)+(IF($A$7=Nutrients!$B$8,Nutrients!$BX$8,Nutrients!$BX$9)*N$7)+(((IF($A$8=Nutrients!$B$79,Nutrients!$BX$79,(IF($A$8=Nutrients!$B$77,Nutrients!$BX$77,Nutrients!$BX$78)))))*N$8))/2000","v":0.34782816018759144},null,{"$f":"(SUMPRODUCT(P$9:P$229,Nutrients!$BX$8:$BX$228)+(IF($A$7=Nutrients!$B$8,Nutrients!$BX$8,Nutrients!$BX$9)*P$7)+(((IF($A$8=Nutrients!$B$79,Nutrients!$BX$79,(IF($A$8=Nutrients!$B$77,Nutrients!$BX$77,Nutrients!$BX$78)))))*P$8))/2000","v":0.5332451819467694},{"$f":"(SUMPRODUCT(Q$9:Q$229,Nutrients!$BX$8:$BX$228)+(IF($A$7=Nutrients!$B$8,Nutrients!$BX$8,Nutrients!$BX$9)*Q$7)+(((IF($A$8=Nutrients!$B$79,Nutrients!$BX$79,(IF($A$8=Nutrients!$B$77,Nutrients!$BX$77,Nutrients!$BX$78)))))*Q$8))/2000","v":0.48021164559111784},{"$f":"(SUMPRODUCT(R$9:R$229,Nutrients!$BX$8:$BX$228)+(IF($A$7=Nutrients!$B$8,Nutrients!$BX$8,Nutrients!$BX$9)*R$7)+(((IF($A$8=Nutrients!$B$79,Nutrients!$BX$79,(IF($A$8=Nutrients!$B$77,Nutrients!$BX$77,Nutrients!$BX$78)))))*R$8))/2000","v":0.42915432909056112},{"$f":"(SUMPRODUCT(S$9:S$229,Nutrients!$BX$8:$BX$228)+(IF($A$7=Nutrients!$B$8,Nutrients!$BX$8,Nutrients!$BX$9)*S$7)+(((IF($A$8=Nutrients!$B$79,Nutrients!$BX$79,(IF($A$8=Nutrients!$B$77,Nutrients!$BX$77,Nutrients!$BX$78)))))*S$8))/2000","v":0.3877454559867628},{"$f":"(SUMPRODUCT(T$9:T$229,Nutrients!$BX$8:$BX$228)+(IF($A$7=Nutrients!$B$8,Nutrients!$BX$8,Nutrients!$BX$9)*T$7)+(((IF($A$8=Nutrients!$B$79,Nutrients!$BX$79,(IF($A$8=Nutrients!$B$77,Nutrients!$BX$77,Nutrients!$BX$78)))))*T$8))/2000","v":0.36109493905482715},{"$f":"(SUMPRODUCT(U$9:U$229,Nutrients!$BX$8:$BX$228)+(IF($A$7=Nutrients!$B$8,Nutrients!$BX$8,Nutrients!$BX$9)*U$7)+(((IF($A$8=Nutrients!$B$79,Nutrients!$BX$79,(IF($A$8=Nutrients!$B$77,Nutrients!$BX$77,Nutrients!$BX$78)))))*U$8))/2000","v":0.34771287819276225},null,{"$f":"(SUMPRODUCT(W$9:W$229,Nutrients!$BX$8:$BX$228)+(IF($A$7=Nutrients!$B$8,Nutrients!$BX$8,Nutrients!$BX$9)*W$7)+(((IF($A$8=Nutrients!$B$79,Nutrients!$BX$79,(IF($A$8=Nutrients!$B$77,Nutrients!$BX$77,Nutrients!$BX$78)))))*W$8))/2000","v":0.53270499542958349},{"$f":"(SUMPRODUCT(X$9:X$229,Nutrients!$BX$8:$BX$228)+(IF($A$7=Nutrients!$B$8,Nutrients!$BX$8,Nutrients!$BX$9)*X$7)+(((IF($A$8=Nutrients!$B$79,Nutrients!$BX$79,(IF($A$8=Nutrients!$B$77,Nutrients!$BX$77,Nutrients!$BX$78)))))*X$8))/2000","v":0.47983453580949786},{"$f":"(SUMPRODUCT(Y$9:Y$229,Nutrients!$BX$8:$BX$228)+(IF($A$7=Nutrients!$B$8,Nutrients!$BX$8,Nutrients!$BX$9)*Y$7)+(((IF($A$8=Nutrients!$B$79,Nutrients!$BX$79,(IF($A$8=Nutrients!$B$77,Nutrients!$BX$77,Nutrients!$BX$78)))))*Y$8))/2000","v":0.42869799579519852},{"$f":"(SUMPRODUCT(Z$9:Z$229,Nutrients!$BX$8:$BX$228)+(IF($A$7=Nutrients!$B$8,Nutrients!$BX$8,Nutrients!$BX$9)*Z$7)+(((IF($A$8=Nutrients!$B$79,Nutrients!$BX$79,(IF($A$8=Nutrients!$B$77,Nutrients!$BX$77,Nutrients!$BX$78)))))*Z$8))/2000","v":0.38751765474733407},{"$f":"(SUMPRODUCT(AA$9:AA$229,Nutrients!$BX$8:$BX$228)+(IF($A$7=Nutrients!$B$8,Nutrients!$BX$8,Nutrients!$BX$9)*AA$7)+(((IF($A$8=Nutrients!$B$79,Nutrients!$BX$79,(IF($A$8=Nutrients!$B$77,Nutrients!$BX$77,Nutrients!$BX$78)))))*AA$8))/2000","v":0.36094333882298901},{"$f":"(SUMPRODUCT(AB$9:AB$229,Nutrients!$BX$8:$BX$228)+(IF($A$7=Nutrients!$B$8,Nutrients!$BX$8,Nutrients!$BX$9)*AB$7)+(((IF($A$8=Nutrients!$B$79,Nutrients!$BX$79,(IF($A$8=Nutrients!$B$77,Nutrients!$BX$77,Nutrients!$BX$78)))))*AB$8))/2000","v":0.35065997858560771},null,{"$f":"(SUMPRODUCT(AD$9:AD$229,Nutrients!$BX$8:$BX$228)+(IF($A$7=Nutrients!$B$8,Nutrients!$BX$8,Nutrients!$BX$9)*AD$7)+(((IF($A$8=Nutrients!$B$79,Nutrients!$BX$79,(IF($A$8=Nutrients!$B$77,Nutrients!$BX$77,Nutrients!$BX$78)))))*AD$8))/2000","v":0.53214311838781991},{"$f":"(SUMPRODUCT(AE$9:AE$229,Nutrients!$BX$8:$BX$228)+(IF($A$7=Nutrients!$B$8,Nutrients!$BX$8,Nutrients!$BX$9)*AE$7)+(((IF($A$8=Nutrients!$B$79,Nutrients!$BX$79,(IF($A$8=Nutrients!$B$77,Nutrients!$BX$77,Nutrients!$BX$78)))))*AE$8))/2000","v":0.47920903822188488},{"$f":"(SUMPRODUCT(AF$9:AF$229,Nutrients!$BX$8:$BX$228)+(IF($A$7=Nutrients!$B$8,Nutrients!$BX$8,Nutrients!$BX$9)*AF$7)+(((IF($A$8=Nutrients!$B$79,Nutrients!$BX$79,(IF($A$8=Nutrients!$B$77,Nutrients!$BX$77,Nutrients!$BX$78)))))*AF$8))/2000","v":0.42830139803880435},{"$f":"(SUMPRODUCT(AG$9:AG$229,Nutrients!$BX$8:$BX$228)+(IF($A$7=Nutrients!$B$8,Nutrients!$BX$8,Nutrients!$BX$9)*AG$7)+(((IF($A$8=Nutrients!$B$79,Nutrients!$BX$79,(IF($A$8=Nutrients!$B$77,Nutrients!$BX$77,Nutrients!$BX$78)))))*AG$8))/2000","v":0.38726419632515452},{"$f":"(SUMPRODUCT(AH$9:AH$229,Nutrients!$BX$8:$BX$228)+(IF($A$7=Nutrients!$B$8,Nutrients!$BX$8,Nutrients!$BX$9)*AH$7)+(((IF($A$8=Nutrients!$B$79,Nutrients!$BX$79,(IF($A$8=Nutrients!$B$77,Nutrients!$BX$77,Nutrients!$BX$78)))))*AH$8))/2000","v":0.36927003848018819},{"$f":"(SUMPRODUCT(AI$9:AI$229,Nutrients!$BX$8:$BX$228)+(IF($A$7=Nutrients!$B$8,Nutrients!$BX$8,Nutrients!$BX$9)*AI$7)+(((IF($A$8=Nutrients!$B$79,Nutrients!$BX$79,(IF($A$8=Nutrients!$B$77,Nutrients!$BX$77,Nutrients!$BX$78)))))*AI$8))/2000","v":0.36336717693479614},null,{"$f":"(SUMPRODUCT(AK$9:AK$229,Nutrients!$BX$8:$BX$228)+(IF($A$7=Nutrients!$B$8,Nutrients!$BX$8,Nutrients!$BX$9)*AK$7)+(((IF($A$8=Nutrients!$B$79,Nutrients!$BX$79,(IF($A$8=Nutrients!$B$77,Nutrients!$BX$77,Nutrients!$BX$78)))))*AK$8))/2000","v":0.53256418777168235},{"$f":"(SUMPRODUCT(AL$9:AL$229,Nutrients!$BX$8:$BX$228)+(IF($A$7=Nutrients!$B$8,Nutrients!$BX$8,Nutrients!$BX$9)*AL$7)+(((IF($A$8=Nutrients!$B$79,Nutrients!$BX$79,(IF($A$8=Nutrients!$B$77,Nutrients!$BX$77,Nutrients!$BX$78)))))*AL$8))/2000","v":0.47865673190566566},{"$f":"(SUMPRODUCT(AM$9:AM$229,Nutrients!$BX$8:$BX$228)+(IF($A$7=Nutrients!$B$8,Nutrients!$BX$8,Nutrients!$BX$9)*AM$7)+(((IF($A$8=Nutrients!$B$79,Nutrients!$BX$79,(IF($A$8=Nutrients!$B$77,Nutrients!$BX$77,Nutrients!$BX$78)))))*AM$8))/2000","v":0.42790932037022594},{"$f":"(SUMPRODUCT(AN$9:AN$229,Nutrients!$BX$8:$BX$228)+(IF($A$7=Nutrients!$B$8,Nutrients!$BX$8,Nutrients!$BX$9)*AN$7)+(((IF($A$8=Nutrients!$B$79,Nutrients!$BX$79,(IF($A$8=Nutrients!$B$77,Nutrients!$BX$77,Nutrients!$BX$78)))))*AN$8))/2000","v":0.39348827981702539},{"$f":"(SUMPRODUCT(AO$9:AO$229,Nutrients!$BX$8:$BX$228)+(IF($A$7=Nutrients!$B$8,Nutrients!$BX$8,Nutrients!$BX$9)*AO$7)+(((IF($A$8=Nutrients!$B$79,Nutrients!$BX$79,(IF($A$8=Nutrients!$B$77,Nutrients!$BX$77,Nutrients!$BX$78)))))*AO$8))/2000","v":0.38191591113389745},{"$f":"(SUMPRODUCT(AP$9:AP$229,Nutrients!$BX$8:$BX$228)+(IF($A$7=Nutrients!$B$8,Nutrients!$BX$8,Nutrients!$BX$9)*AP$7)+(((IF($A$8=Nutrients!$B$79,Nutrients!$BX$79,(IF($A$8=Nutrients!$B$77,Nutrients!$BX$77,Nutrients!$BX$78)))))*AP$8))/2000","v":0.37607249565281098},null,{"$f":"(SUMPRODUCT(AR$9:AR$229,Nutrients!$BX$8:$BX$228)+(IF($A$7=Nutrients!$B$8,Nutrients!$BX$8,Nutrients!$BX$9)*AR$7)+(((IF($A$8=Nutrients!$B$79,Nutrients!$BX$79,(IF($A$8=Nutrients!$B$77,Nutrients!$BX$77,Nutrients!$BX$78)))))*AR$8))/2000","v":0.53163314359506442},{"$f":"(SUMPRODUCT(AS$9:AS$229,Nutrients!$BX$8:$BX$228)+(IF($A$7=Nutrients!$B$8,Nutrients!$BX$8,Nutrients!$BX$9)*AS$7)+(((IF($A$8=Nutrients!$B$79,Nutrients!$BX$79,(IF($A$8=Nutrients!$B$77,Nutrients!$BX$77,Nutrients!$BX$78)))))*AS$8))/2000","v":0.47810391600623625},{"$f":"(SUMPRODUCT(AT$9:AT$229,Nutrients!$BX$8:$BX$228)+(IF($A$7=Nutrients!$B$8,Nutrients!$BX$8,Nutrients!$BX$9)*AT$7)+(((IF($A$8=Nutrients!$B$79,Nutrients!$BX$79,(IF($A$8=Nutrients!$B$77,Nutrients!$BX$77,Nutrients!$BX$78)))))*AT$8))/2000","v":0.42756246092923061},{"$f":"(SUMPRODUCT(AU$9:AU$229,Nutrients!$BX$8:$BX$228)+(IF($A$7=Nutrients!$B$8,Nutrients!$BX$8,Nutrients!$BX$9)*AU$7)+(((IF($A$8=Nutrients!$B$79,Nutrients!$BX$79,(IF($A$8=Nutrients!$B$77,Nutrients!$BX$77,Nutrients!$BX$78)))))*AU$8))/2000","v":0.40605114181099555},{"$f":"(SUMPRODUCT(AV$9:AV$229,Nutrients!$BX$8:$BX$228)+(IF($A$7=Nutrients!$B$8,Nutrients!$BX$8,Nutrients!$BX$9)*AV$7)+(((IF($A$8=Nutrients!$B$79,Nutrients!$BX$79,(IF($A$8=Nutrients!$B$77,Nutrients!$BX$77,Nutrients!$BX$78)))))*AV$8))/2000","v":0.39456397285733658},{"$f":"(SUMPRODUCT(AW$9:AW$229,Nutrients!$BX$8:$BX$228)+(IF($A$7=Nutrients!$B$8,Nutrients!$BX$8,Nutrients!$BX$9)*AW$7)+(((IF($A$8=Nutrients!$B$79,Nutrients!$BX$79,(IF($A$8=Nutrients!$B$77,Nutrients!$BX$77,Nutrients!$BX$78)))))*AW$8))/2000","v":0.38877929538661754}]
["Available P w/o phytase, %",{"$f":"(SUMPRODUCT(B$9:B$229,Nutrients!$EB$8:$EB$228)+(IF($A$7=Nutrients!$B$8,Nutrients!$EB$8,Nutrients!$EB$9)*B$7)+(((IF($A$8=Nutrients!$B$79,Nutrients!$EB$79,(IF($A$8=Nutrients!$B$77,Nutrients!$EB$77,Nutrients!$EB$78)))))*B$8))/2000","v":0.21736490825429733},{"$f":"(SUMPRODUCT(C$9:C$229,Nutrients!$EB$8:$EB$228)+(IF($A$7=Nutrients!$B$8,Nutrients!$EB$8,Nutrients!$EB$9)*C$7)+(((IF($A$8=Nutrients!$B$79,Nutrients!$EB$79,(IF($A$8=Nutrients!$B$77,Nutrients!$EB$77,Nutrients!$EB$78)))))*C$8))/2000","v":0.18121360963694014},{"$f":"(SUMPRODUCT(D$9:D$229,Nutrients!$EB$8:$EB$228)+(IF($A$7=Nutrients!$B$8,Nutrients!$EB$8,Nutrients!$EB$9)*D$7)+(((IF($A$8=Nutrients!$B$79,Nutrients!$EB$79,(IF($A$8=Nutrients!$B$77,Nutrients!$EB$77,Nutrients!$EB$78)))))*D$8))/2000","v":0.1446187906188299},{"$f":"(SUMPRODUCT(E$9:E$229,Nutrients!$EB$8:$EB$228)+(IF($A$7=Nutrients!$B$8,Nutrients!$EB$8,Nutrients!$EB$9)*E$7)+(((IF($A$8=Nutrients!$B$79,Nutrients!$EB$79,(IF($A$8=Nutrients!$B$77,Nutrients!$EB$77,Nutrients!$EB$78)))))*E$8))/2000","v":0.11837941481999412},{"$f":"(SUMPRODUCT(F$9:F$229,Nutrients!$EB$8:$EB$228)+(IF($A$7=Nutrients!$B$8,Nutrients!$EB$8,Nutrients!$EB$9)*F$7)+(((IF($A$8=Nutrients!$B$79,Nutrients!$EB$79,(IF($A$8=Nutrients!$B$77,Nutrients!$EB$77,Nutrients!$EB$78)))))*F$8))/2000","v":9.9071678699147347E-2},{"$f":"(SUMPRODUCT(G$9:G$229,Nutrients!$EB$8:$EB$228)+(IF($A$7=Nutrients!$B$8,Nutrients!$EB$8,Nutrients!$EB$9)*G$7)+(((IF($A$8=Nutrients!$B$79,Nutrients!$EB$79,(IF($A$8=Nutrients!$B$77,Nutrients!$EB$77,Nutrients!$EB$78)))))*G$8))/2000","v":9.0636415067427589E-2},null,{"$f":"(SUMPRODUCT(I$9:I$229,Nutrients!$EB$8:$EB$228)+(IF($A$7=Nutrients!$B$8,Nutrients!$EB$8,Nutrients!$EB$9)*I$7)+(((IF($A$8=Nutrients!$B$79,Nutrients!$EB$79,(IF($A$8=Nutrients!$B$77,Nutrients!$EB$77,Nutrients!$EB$78)))))*I$8))/2000","v":0.1999514842033541},{"$f":"(SUMPRODUCT(J$9:J$229,Nutrients!$EB$8:$EB$228)+(IF($A$7=Nutrients!$B$8,Nutrients!$EB$8,Nutrients!$EB$9)*J$7)+(((IF($A$8=Nutrients!$B$79,Nutrients!$EB$79,(IF($A$8=Nutrients!$B$77,Nutrients!$EB$77,Nutrients!$EB$78)))))*J$8))/2000","v":0.16387526439087105},{"$f":"(SUMPRODUCT(K$9:K$229,Nutrients!$EB$8:$EB$228)+(IF($A$7=Nutrients!$B$8,Nutrients!$EB$8,Nutrients!$EB$9)*K$7)+(((IF($A$8=Nutrients!$B$79,Nutrients!$EB$79,(IF($A$8=Nutrients!$B$77,Nutrients!$EB$77,Nutrients!$EB$78)))))*K$8))/2000","v":0.12734220546868985},{"$f":"(SUMPRODUCT(L$9:L$229,Nutrients!$EB$8:$EB$228)+(IF($A$7=Nutrients!$B$8,Nutrients!$EB$8,Nutrients!$EB$9)*L$7)+(((IF($A$8=Nutrients!$B$79,Nutrients!$EB$79,(IF($A$8=Nutrients!$B$77,Nutrients!$EB$77,Nutrients!$EB$78)))))*L$8))/2000","v":9.8415421378184612E-2},{"$f":"(SUMPRODUCT(M$9:M$229,Nutrients!$EB$8:$EB$228)+(IF($A$7=Nutrients!$B$8,Nutrients!$EB$8,Nutrients!$EB$9)*M$7)+(((IF($A$8=Nutrients!$B$79,Nutrients!$EB$79,(IF($A$8=Nutrients!$B$77,Nutrients!$EB$77,Nutrients!$EB$78)))))*M$8))/2000","v":7.9910024893893719E-2},{"$f":"(SUMPRODUCT(N$9:N$229,Nutrients!$EB$8:$EB$228)+(IF($A$7=Nutrients!$B$8,Nutrients!$EB$8,Nutrients!$EB$9)*N$7)+(((IF($A$8=Nutrients!$B$79,Nutrients!$EB$79,(IF($A$8=Nutrients!$B$77,Nutrients!$EB$77,Nutrients!$EB$78)))))*N$8))/2000","v":7.0681240584229782E-2},null,{"$f":"(SUMPRODUCT(P$9:P$229,Nutrients!$EB$8:$EB$228)+(IF($A$7=Nutrients!$B$8,Nutrients!$EB$8,Nutrients!$EB$9)*P$7)+(((IF($A$8=Nutrients!$B$79,Nutrients!$EB$79,(IF($A$8=Nutrients!$B$77,Nutrients!$EB$77,Nutrients!$EB$78)))))*P$8))/2000","v":0.18263442610220482},{"$f":"(SUMPRODUCT(Q$9:Q$229,Nutrients!$EB$8:$EB$228)+(IF($A$7=Nutrients!$B$8,Nutrients!$EB$8,Nutrients!$EB$9)*Q$7)+(((IF($A$8=Nutrients!$B$79,Nutrients!$EB$79,(IF($A$8=Nutrients!$B$77,Nutrients!$EB$77,Nutrients!$EB$78)))))*Q$8))/2000","v":0.14660379459327735},{"$f":"(SUMPRODUCT(R$9:R$229,Nutrients!$EB$8:$EB$228)+(IF($A$7=Nutrients!$B$8,Nutrients!$EB$8,Nutrients!$EB$9)*R$7)+(((IF($A$8=Nutrients!$B$79,Nutrients!$EB$79,(IF($A$8=Nutrients!$B$77,Nutrients!$EB$77,Nutrients!$EB$78)))))*R$8))/2000","v":0.11011959705182213},{"$f":"(SUMPRODUCT(S$9:S$229,Nutrients!$EB$8:$EB$228)+(IF($A$7=Nutrients!$B$8,Nutrients!$EB$8,Nutrients!$EB$9)*S$7)+(((IF($A$8=Nutrients!$B$79,Nutrients!$EB$79,(IF($A$8=Nutrients!$B$77,Nutrients!$EB$77,Nutrients!$EB$78)))))*S$8))/2000","v":8.1170095539151887E-2},{"$f":"(SUMPRODUCT(T$9:T$229,Nutrients!$EB$8:$EB$228)+(IF($A$7=Nutrients!$B$8,Nutrients!$EB$8,Nutrients!$EB$9)*T$7)+(((IF($A$8=Nutrients!$B$79,Nutrients!$EB$79,(IF($A$8=Nutrients!$B$77,Nutrients!$EB$77,Nutrients!$EB$78)))))*T$8))/2000","v":6.2702382655822342E-2},{"$f":"(SUMPRODUCT(U$9:U$229,Nutrients!$EB$8:$EB$228)+(IF($A$7=Nutrients!$B$8,Nutrients!$EB$8,Nutrients!$EB$9)*U$7)+(((IF($A$8=Nutrients!$B$79,Nutrients!$EB$79,(IF($A$8=Nutrients!$B$77,Nutrients!$EB$77,Nutrients!$EB$78)))))*U$8))/2000","v":5.3489092479574611E-2},null,{"$f":"(SUMPRODUCT(W$9:W$229,Nutrients!$EB$8:$EB$228)+(IF($A$7=Nutrients!$B$8,Nutrients!$EB$8,Nutrients!$EB$9)*W$7)+(((IF($A$8=Nutrients!$B$79,Nutrients!$EB$79,(IF($A$8=Nutrients!$B$77,Nutrients!$EB$77,Nutrients!$EB$78)))))*W$8))/2000","v":0.16531775750435837},{"$f":"(SUMPRODUCT(X$9:X$229,Nutrients!$EB$8:$EB$228)+(IF($A$7=Nutrients!$B$8,Nutrients!$EB$8,Nutrients!$EB$9)*X$7)+(((IF($A$8=Nutrients!$B$79,Nutrients!$EB$79,(IF($A$8=Nutrients!$B$77,Nutrients!$EB$77,Nutrients!$EB$78)))))*X$8))/2000","v":0.1293331136348605},{"$f":"(SUMPRODUCT(Y$9:Y$229,Nutrients!$EB$8:$EB$228)+(IF($A$7=Nutrients!$B$8,Nutrients!$EB$8,Nutrients!$EB$9)*Y$7)+(((IF($A$8=Nutrients!$B$79,Nutrients!$EB$79,(IF($A$8=Nutrients!$B$77,Nutrients!$EB$77,Nutrients!$EB$78)))))*Y$8))/2000","v":9.2826765314281842E-2},{"$f":"(SUMPRODUCT(Z$9:Z$229,Nutrients!$EB$8:$EB$228)+(IF($A$7=Nutrients!$B$8,Nutrients!$EB$8,Nutrients!$EB$9)*Z$7)+(((IF($A$8=Nutrients!$B$79,Nutrients!$EB$79,(IF($A$8=Nutrients!$B$77,Nutrients!$EB$77,Nutrients!$EB$78)))))*Z$8))/2000","v":6.3942586903042012E-2},{"$f":"(SUMPRODUCT(AA$9:AA$229,Nutrients!$EB$8:$EB$228)+(IF($A$7=Nutrients!$B$8,Nutrients!$EB$8,Nutrients!$EB$9)*AA$7)+(((IF($A$8=Nutrients!$B$79,Nutrients!$EB$79,(IF($A$8=Nutrients!$B$77,Nutrients!$EB$77,Nutrients!$EB$78)))))*AA$8))/2000","v":4.5499356590444018E-2},{"$f":"(SUMPRODUCT(AB$9:AB$229,Nutrients!$EB$8:$EB$228)+(IF($A$7=Nutrients!$B$8,Nutrients!$EB$8,Nutrients!$EB$9)*AB$7)+(((IF($A$8=Nutrients!$B$79,Nutrients!$EB$79,(IF($A$8=Nutrients!$B$77,Nutrients!$EB$77,Nutrients!$EB$78)))))*AB$8))/2000","v":3.9416764830232383E-2},null,{"$f":"(SUMPRODUCT(AD$9:AD$229,Nutrients!$EB$8:$EB$228)+(IF($A$7=Nutrients!$B$8,Nutrients!$EB$8,Nutrients!$EB$9)*AD$7)+(((IF($A$8=Nutrients!$B$79,Nutrients!$EB$79,(IF($A$8=Nutrients!$B$77,Nutrients!$EB$77,Nutrients!$EB$78)))))*AD$8))/2000","v":0.14799528018099922},{"$f":"(SUMPRODUCT(AE$9:AE$229,Nutrients!$EB$8:$EB$228)+(IF($A$7=Nutrients!$B$8,Nutrients!$EB$8,Nutrients!$EB$9)*AE$7)+(((IF($A$8=Nutrients!$B$79,Nutrients!$EB$79,(IF($A$8=Nutrients!$B$77,Nutrients!$EB$77,Nutrients!$EB$78)))))*AE$8))/2000","v":0.11199271847338445},{"$f":"(SUMPRODUCT(AF$9:AF$229,Nutrients!$EB$8:$EB$228)+(IF($A$7=Nutrients!$B$8,Nutrients!$EB$8,Nutrients!$EB$9)*AF$7)+(((IF($A$8=Nutrients!$B$79,Nutrients!$EB$79,(IF($A$8=Nutrients!$B$77,Nutrients!$EB$77,Nutrients!$EB$78)))))*AF$8))/2000","v":7.5550682695304947E-2},{"$f":"(SUMPRODUCT(AG$9:AG$229,Nutrients!$EB$8:$EB$228)+(IF($A$7=Nutrients!$B$8,Nutrients!$EB$8,Nutrients!$EB$9)*AG$7)+(((IF($A$8=Nutrients!$B$79,Nutrients!$EB$79,(IF($A$8=Nutrients!$B$77,Nutrients!$EB$77,Nutrients!$EB$78)))))*AG$8))/2000","v":4.6711309976245959E-2},{"$f":"(SUMPRODUCT(AH$9:AH$229,Nutrients!$EB$8:$EB$228)+(IF($A$7=Nutrients!$B$8,Nutrients!$EB$8,Nutrients!$EB$9)*AH$7)+(((IF($A$8=Nutrients!$B$79,Nutrients!$EB$79,(IF($A$8=Nutrients!$B$77,Nutrients!$EB$77,Nutrients!$EB$78)))))*AH$8))/2000","v":3.6954592012092856E-2},{"$f":"(SUMPRODUCT(AI$9:AI$229,Nutrients!$EB$8:$EB$228)+(IF($A$7=Nutrients!$B$8,Nutrients!$EB$8,Nutrients!$EB$9)*AI$7)+(((IF($A$8=Nutrients!$B$79,Nutrients!$EB$79,(IF($A$8=Nutrients!$B$77,Nutrients!$EB$77,Nutrients!$EB$78)))))*AI$8))/2000","v":3.5286724458293069E-2},null,{"$f":"(SUMPRODUCT(AK$9:AK$229,Nutrients!$EB$8:$EB$228)+(IF($A$7=Nutrients!$B$8,Nutrients!$EB$8,Nutrients!$EB$9)*AK$7)+(((IF($A$8=Nutrients!$B$79,Nutrients!$EB$79,(IF($A$8=Nutrients!$B$77,Nutrients!$EB$77,Nutrients!$EB$78)))))*AK$8))/2000","v":0.13095006608525694},{"$f":"(SUMPRODUCT(AL$9:AL$229,Nutrients!$EB$8:$EB$228)+(IF($A$7=Nutrients!$B$8,Nutrients!$EB$8,Nutrients!$EB$9)*AL$7)+(((IF($A$8=Nutrients!$B$79,Nutrients!$EB$79,(IF($A$8=Nutrients!$B$77,Nutrients!$EB$77,Nutrients!$EB$78)))))*AL$8))/2000","v":9.4672632092210621E-2},{"$f":"(SUMPRODUCT(AM$9:AM$229,Nutrients!$EB$8:$EB$228)+(IF($A$7=Nutrients!$B$8,Nutrients!$EB$8,Nutrients!$EB$9)*AM$7)+(((IF($A$8=Nutrients!$B$79,Nutrients!$EB$79,(IF($A$8=Nutrients!$B$77,Nutrients!$EB$77,Nutrients!$EB$78)))))*AM$8))/2000","v":5.8279841992765827E-2},{"$f":"(SUMPRODUCT(AN$9:AN$229,Nutrients!$EB$8:$EB$228)+(IF($A$7=Nutrients!$B$8,Nutrients!$EB$8,Nutrients!$EB$9)*AN$7)+(((IF($A$8=Nutrients!$B$79,Nutrients!$EB$79,(IF($A$8=Nutrients!$B$77,Nutrients!$EB$77,Nutrients!$EB$78)))))*AN$8))/2000","v":3.6092601071185858E-2},{"$f":"(SUMPRODUCT(AO$9:AO$229,Nutrients!$EB$8:$EB$228)+(IF($A$7=Nutrients!$B$8,Nutrients!$EB$8,Nutrients!$EB$9)*AO$7)+(((IF($A$8=Nutrients!$B$79,Nutrients!$EB$79,(IF($A$8=Nutrients!$B$77,Nutrients!$EB$77,Nutrients!$EB$78)))))*AO$8))/2000","v":3.2807409169449152E-2},{"$f":"(SUMPRODUCT(AP$9:AP$229,Nutrients!$EB$8:$EB$228)+(IF($A$7=Nutrients!$B$8,Nutrients!$EB$8,Nutrients!$EB$9)*AP$7)+(((IF($A$8=Nutrients!$B$79,Nutrients!$EB$79,(IF($A$8=Nutrients!$B$77,Nutrients!$EB$77,Nutrients!$EB$78)))))*AP$8))/2000","v":3.1156319838003873E-2},null,{"$f":"(SUMPRODUCT(AR$9:AR$229,Nutrients!$EB$8:$EB$228)+(IF($A$7=Nutrients!$B$8,Nutrients!$EB$8,Nutrients!$EB$9)*AR$7)+(((IF($A$8=Nutrients!$B$79,Nutrients!$EB$79,(IF($A$8=Nutrients!$B$77,Nutrients!$EB$77,Nutrients!$EB$78)))))*AR$8))/2000","v":0.11352324114706437},{"$f":"(SUMPRODUCT(AS$9:AS$229,Nutrients!$EB$8:$EB$228)+(IF($A$7=Nutrients!$B$8,Nutrients!$EB$8,Nutrients!$EB$9)*AS$7)+(((IF($A$8=Nutrients!$B$79,Nutrients!$EB$79,(IF($A$8=Nutrients!$B$77,Nutrients!$EB$77,Nutrients!$EB$78)))))*AS$8))/2000","v":7.7352709299284089E-2},{"$f":"(SUMPRODUCT(AT$9:AT$229,Nutrients!$EB$8:$EB$228)+(IF($A$7=Nutrients!$B$8,Nutrients!$EB$8,Nutrients!$EB$9)*AT$7)+(((IF($A$8=Nutrients!$B$79,Nutrients!$EB$79,(IF($A$8=Nutrients!$B$77,Nutrients!$EB$77,Nutrients!$EB$78)))))*AT$8))/2000","v":4.102215641472054E-2},{"$f":"(SUMPRODUCT(AU$9:AU$229,Nutrients!$EB$8:$EB$228)+(IF($A$7=Nutrients!$B$8,Nutrients!$EB$8,Nutrients!$EB$9)*AU$7)+(((IF($A$8=Nutrients!$B$79,Nutrients!$EB$79,(IF($A$8=Nutrients!$B$77,Nutrients!$EB$77,Nutrients!$EB$78)))))*AU$8))/2000","v":3.1922180558355391E-2},{"$f":"(SUMPRODUCT(AV$9:AV$229,Nutrients!$EB$8:$EB$228)+(IF($A$7=Nutrients!$B$8,Nutrients!$EB$8,Nutrients!$EB$9)*AV$7)+(((IF($A$8=Nutrients!$B$79,Nutrients!$EB$79,(IF($A$8=Nutrients!$B$77,Nutrients!$EB$77,Nutrients!$EB$78)))))*AV$8))/2000","v":2.8660688758533368E-2},{"$f":"(SUMPRODUCT(AW$9:AW$229,Nutrients!$EB$8:$EB$228)+(IF($A$7=Nutrients!$B$8,Nutrients!$EB$8,Nutrients!$EB$9)*AW$7)+(((IF($A$8=Nutrients!$B$79,Nutrients!$EB$79,(IF($A$8=Nutrients!$B$77,Nutrients!$EB$77,Nutrients!$EB$78)))))*AW$8))/2000","v":2.7026168193547983E-2}]
["Available P, %",{"$f":"IF((SUMPRODUCT(B$9:B$229,Nutrients!$EE$8:$EE$228))=0,B256,IF((SUMPRODUCT(B$9:B$229,Nutrients!$EE$8:$EE$228))>(1500*907),B256+0.14,B256+0.00000000006666*((SUMPRODUCT(B$9:B$229,Nutrients!$EE$8:$EE$228)/907))^3-0.00000023623322*((SUMPRODUCT(B$9:B$229,Nutrients!$EE$8:$EE$228)/907))^2+0.00029262722672*((SUMPRODUCT(B$9:B$229,Nutrients!$EE$8:$EE$228)/907))+0.007028328))","v":0.32997934872513002},{"$f":"IF((SUMPRODUCT(C$9:C$229,Nutrients!$EE$8:$EE$228))=0,C256,IF((SUMPRODUCT(C$9:C$229,Nutrients!$EE$8:$EE$228))>(1500*907),C256+0.14,C256+0.00000000006666*((SUMPRODUCT(C$9:C$229,Nutrients!$EE$8:$EE$228)/907))^3-0.00000023623322*((SUMPRODUCT(C$9:C$229,Nutrients!$EE$8:$EE$228)/907))^2+0.00029262722672*((SUMPRODUCT(C$9:C$229,Nutrients!$EE$8:$EE$228)/907))+0.007028328))","v":0.2938280501077728},{"$f":"IF((SUMPRODUCT(D$9:D$229,Nutrients!$EE$8:$EE$228))=0,D256,IF((SUMPRODUCT(D$9:D$229,Nutrients!$EE$8:$EE$228))>(1500*907),D256+0.14,D256+0.00000000006666*((SUMPRODUCT(D$9:D$229,Nutrients!$EE$8:$EE$228)/907))^3-0.00000023623322*((SUMPRODUCT(D$9:D$229,Nutrients!$EE$8:$EE$228)/907))^2+0.00029262722672*((SUMPRODUCT(D$9:D$229,Nutrients!$EE$8:$EE$228)/907))+0.007028328))","v":0.25723323108966256},{"$f":"IF((SUMPRODUCT(E$9:E$229,Nutrients!$EE$8:$EE$228))=0,E256,IF((SUMPRODUCT(E$9:E$229,Nutrients!$EE$8:$EE$228))>(1500*907),E256+0.14,E256+0.00000000006666*((SUMPRODUCT(E$9:E$229,Nutrients!$EE$8:$EE$228)/907))^3-0.00000023623322*((SUMPRODUCT(E$9:E$229,Nutrients!$EE$8:$EE$228)/907))^2+0.00029262722672*((SUMPRODUCT(E$9:E$229,Nutrients!$EE$8:$EE$228)/907))+0.007028328))","v":0.23099385529082681},{"$f":"IF((SUMPRODUCT(F$9:F$229,Nutrients!$EE$8:$EE$228))=0,F256,IF((SUMPRODUCT(F$9:F$229,Nutrients!$EE$8:$EE$228))>(1500*907),F256+0.14,F256+0.00000000006666*((SUMPRODUCT(F$9:F$229,Nutrients!$EE$8:$EE$228)/907))^3-0.00000023623322*((SUMPRODUCT(F$9:F$229,Nutrients!$EE$8:$EE$228)/907))^2+0.00029262722672*((SUMPRODUCT(F$9:F$229,Nutrients!$EE$8:$EE$228)/907))+0.007028328))","v":0.21168611916998004},{"$f":"IF((SUMPRODUCT(G$9:G$229,Nutrients!$EE$8:$EE$228))=0,G256,IF((SUMPRODUCT(G$9:G$229,Nutrients!$EE$8:$EE$228))>(1500*907),G256+0.14,G256+0.00000000006666*((SUMPRODUCT(G$9:G$229,Nutrients!$EE$8:$EE$228)/907))^3-0.00000023623322*((SUMPRODUCT(G$9:G$229,Nutrients!$EE$8:$EE$228)/907))^2+0.00029262722672*((SUMPRODUCT(G$9:G$229,Nutrients!$EE$8:$EE$228)/907))+0.007028328))","v":0.20325085553826028},null,{"$f":"IF((SUMPRODUCT(I$9:I$229,Nutrients!$EE$8:$EE$228))=0,I256,IF((SUMPRODUCT(I$9:I$229,Nutrients!$EE$8:$EE$228))>(1500*907),I256+0.14,I256+0.00000000006666*((SUMPRODUCT(I$9:I$229,Nutrients!$EE$8:$EE$228)/907))^3-0.00000023623322*((SUMPRODUCT(I$9:I$229,Nutrients!$EE$8:$EE$228)/907))^2+0.00029262722672*((SUMPRODUCT(I$9:I$229,Nutrients!$EE$8:$EE$228)/907))+0.007028328))","v":0.31256592467418676},{"$f":"IF((SUMPRODUCT(J$9:J$229,Nutrients!$EE$8:$EE$228))=0,J256,IF((SUMPRODUCT(J$9:J$229,Nutrients!$EE$8:$EE$228))>(1500*907),J256+0.14,J256+0.00000000006666*((SUMPRODUCT(J$9:J$229,Nutrients!$EE$8:$EE$228)/907))^3-0.00000023623322*((SUMPRODUCT(J$9:J$229,Nutrients!$EE$8:$EE$228)/907))^2+0.00029262722672*((SUMPRODUCT(J$9:J$229,Nutrients!$EE$8:$EE$228)/907))+0.007028328))","v":0.27648970486170377},{"$f":"IF((SUMPRODUCT(K$9:K$229,Nutrients!$EE$8:$EE$228))=0,K256,IF((SUMPRODUCT(K$9:K$229,Nutrients!$EE$8:$EE$228))>(1500*907),K256+0.14,K256+0.00000000006666*((SUMPRODUCT(K$9:K$229,Nutrients!$EE$8:$EE$228)/907))^3-0.00000023623322*((SUMPRODUCT(K$9:K$229,Nutrients!$EE$8:$EE$228)/907))^2+0.00029262722672*((SUMPRODUCT(K$9:K$229,Nutrients!$EE$8:$EE$228)/907))+0.007028328))","v":0.23995664593952251},{"$f":"IF((SUMPRODUCT(L$9:L$229,Nutrients!$EE$8:$EE$228))=0,L256,IF((SUMPRODUCT(L$9:L$229,Nutrients!$EE$8:$EE$228))>(1500*907),L256+0.14,L256+0.00000000006666*((SUMPRODUCT(L$9:L$229,Nutrients!$EE$8:$EE$228)/907))^3-0.00000023623322*((SUMPRODUCT(L$9:L$229,Nutrients!$EE$8:$EE$228)/907))^2+0.00029262722672*((SUMPRODUCT(L$9:L$229,Nutrients!$EE$8:$EE$228)/907))+0.007028328))","v":0.21102986184901731},{"$f":"IF((SUMPRODUCT(M$9:M$229,Nutrients!$EE$8:$EE$228))=0,M256,IF((SUMPRODUCT(M$9:M$229,Nutrients!$EE$8:$EE$228))>(1500*907),M256+0.14,M256+0.00000000006666*((SUMPRODUCT(M$9:M$229,Nutrients!$EE$8:$EE$228)/907))^3-0.00000023623322*((SUMPRODUCT(M$9:M$229,Nutrients!$EE$8:$EE$228)/907))^2+0.00029262722672*((SUMPRODUCT(M$9:M$229,Nutrients!$EE$8:$EE$228)/907))+0.007028328))","v":0.19252446536472642},{"$f":"IF((SUMPRODUCT(N$9:N$229,Nutrients!$EE$8:$EE$228))=0,N256,IF((SUMPRODUCT(N$9:N$229,Nutrients!$EE$8:$EE$228))>(1500*907),N256+0.14,N256+0.00000000006666*((SUMPRODUCT(N$9:N$229,Nutrients!$EE$8:$EE$228)/907))^3-0.00000023623322*((SUMPRODUCT(N$9:N$229,Nutrients!$EE$8:$EE$228)/907))^2+0.00029262722672*((SUMPRODUCT(N$9:N$229,Nutrients!$EE$8:$EE$228)/907))+0.007028328))","v":0.18329568105506247},null,{"$f":"IF((SUMPRODUCT(P$9:P$229,Nutrients!$EE$8:$EE$228))=0,P256,IF((SUMPRODUCT(P$9:P$229,Nutrients!$EE$8:$EE$228))>(1500*907),P256+0.14,P256+0.00000000006666*((SUMPRODUCT(P$9:P$229,Nutrients!$EE$8:$EE$228)/907))^3-0.00000023623322*((SUMPRODUCT(P$9:P$229,Nutrients!$EE$8:$EE$228)/907))^2+0.00029262722672*((SUMPRODUCT(P$9:P$229,Nutrients!$EE$8:$EE$228)/907))+0.007028328))","v":0.29524886657303751},{"$f":"IF((SUMPRODUCT(Q$9:Q$229,Nutrients!$EE$8:$EE$228))=0,Q256,IF((SUMPRODUCT(Q$9:Q$229,Nutrients!$EE$8:$EE$228))>(1500*907),Q256+0.14,Q256+0.00000000006666*((SUMPRODUCT(Q$9:Q$229,Nutrients!$EE$8:$EE$228)/907))^3-0.00000023623322*((SUMPRODUCT(Q$9:Q$229,Nutrients!$EE$8:$EE$228)/907))^2+0.00029262722672*((SUMPRODUCT(Q$9:Q$229,Nutrients!$EE$8:$EE$228)/907))+0.007028328))","v":0.25921823506411001},{"$f":"IF((SUMPRODUCT(R$9:R$229,Nutrients!$EE$8:$EE$228))=0,R256,IF((SUMPRODUCT(R$9:R$229,Nutrients!$EE$8:$EE$228))>(1500*907),R256+0.14,R256+0.00000000006666*((SUMPRODUCT(R$9:R$229,Nutrients!$EE$8:$EE$228)/907))^3-0.00000023623322*((SUMPRODUCT(R$9:R$229,Nutrients!$EE$8:$EE$228)/907))^2+0.00029262722672*((SUMPRODUCT(R$9:R$229,Nutrients!$EE$8:$EE$228)/907))+0.007028328))","v":0.22273403752265483},{"$f":"IF((SUMPRODUCT(S$9:S$229,Nutrients!$EE$8:$EE$228))=0,S256,IF((SUMPRODUCT(S$9:S$229,Nutrients!$EE$8:$EE$228))>(1500*907),S256+0.14,S256+0.00000000006666*((SUMPRODUCT(S$9:S$229,Nutrients!$EE$8:$EE$228)/907))^3-0.00000023623322*((SUMPRODUCT(S$9:S$229,Nutrients!$EE$8:$EE$228)/907))^2+0.00029262722672*((SUMPRODUCT(S$9:S$229,Nutrients!$EE$8:$EE$228)/907))+0.007028328))","v":0.19378453600998458},{"$f":"IF((SUMPRODUCT(T$9:T$229,Nutrients!$EE$8:$EE$228))=0,T256,IF((SUMPRODUCT(T$9:T$229,Nutrients!$EE$8:$EE$228))>(1500*907),T256+0.14,T256+0.00000000006666*((SUMPRODUCT(T$9:T$229,Nutrients!$EE$8:$EE$228)/907))^3-0.00000023623322*((SUMPRODUCT(T$9:T$229,Nutrients!$EE$8:$EE$228)/907))^2+0.00029262722672*((SUMPRODUCT(T$9:T$229,Nutrients!$EE$8:$EE$228)/907))+0.007028328))","v":0.17531682312665503},{"$f":"IF((SUMPRODUCT(U$9:U$229,Nutrients!$EE$8:$EE$228))=0,U256,IF((SUMPRODUCT(U$9:U$229,Nutrients!$EE$8:$EE$228))>(1500*907),U256+0.14,U256+0.00000000006666*((SUMPRODUCT(U$9:U$229,Nutrients!$EE$8:$EE$228)/907))^3-0.00000023623322*((SUMPRODUCT(U$9:U$229,Nutrients!$EE$8:$EE$228)/907))^2+0.00029262722672*((SUMPRODUCT(U$9:U$229,Nutrients!$EE$8:$EE$228)/907))+0.007028328))","v":0.16610353295040728},null,{"$f":"IF((SUMPRODUCT(W$9:W$229,Nutrients!$EE$8:$EE$228))=0,W256,IF((SUMPRODUCT(W$9:W$229,Nutrients!$EE$8:$EE$228))>(1500*907),W256+0.14,W256+0.00000000006666*((SUMPRODUCT(W$9:W$229,Nutrients!$EE$8:$EE$228)/907))^3-0.00000023623322*((SUMPRODUCT(W$9:W$229,Nutrients!$EE$8:$EE$228)/907))^2+0.00029262722672*((SUMPRODUCT(W$9:W$229,Nutrients!$EE$8:$EE$228)/907))+0.007028328))","v":0.27793219797519109},{"$f":"IF((SUMPRODUCT(X$9:X$229,Nutrients!$EE$8:$EE$228))=0,X256,IF((SUMPRODUCT(X$9:X$229,Nutrients!$EE$8:$EE$228))>(1500*907),X256+0.14,X256+0.00000000006666*((SUMPRODUCT(X$9:X$229,Nutrients!$EE$8:$EE$228)/907))^3-0.00000023623322*((SUMPRODUCT(X$9:X$229,Nutrients!$EE$8:$EE$228)/907))^2+0.00029262722672*((SUMPRODUCT(X$9:X$229,Nutrients!$EE$8:$EE$228)/907))+0.007028328))","v":0.24194755410569316},{"$f":"IF((SUMPRODUCT(Y$9:Y$229,Nutrients!$EE$8:$EE$228))=0,Y256,IF((SUMPRODUCT(Y$9:Y$229,Nutrients!$EE$8:$EE$228))>(1500*907),Y256+0.14,Y256+0.00000000006666*((SUMPRODUCT(Y$9:Y$229,Nutrients!$EE$8:$EE$228)/907))^3-0.00000023623322*((SUMPRODUCT(Y$9:Y$229,Nutrients!$EE$8:$EE$228)/907))^2+0.00029262722672*((SUMPRODUCT(Y$9:Y$229,Nutrients!$EE$8:$EE$228)/907))+0.007028328))","v":0.20544120578511452},{"$f":"IF((SUMPRODUCT(Z$9:Z$229,Nutrients!$EE$8:$EE$228))=0,Z256,IF((SUMPRODUCT(Z$9:Z$229,Nutrients!$EE$8:$EE$228))>(1500*907),Z256+0.14,Z256+0.00000000006666*((SUMPRODUCT(Z$9:Z$229,Nutrients!$EE$8:$EE$228)/907))^3-0.00000023623322*((SUMPRODUCT(Z$9:Z$229,Nutrients!$EE$8:$EE$228)/907))^2+0.00029262722672*((SUMPRODUCT(Z$9:Z$229,Nutrients!$EE$8:$EE$228)/907))+0.007028328))","v":0.17655702737387471},{"$f":"IF((SUMPRODUCT(AA$9:AA$229,Nutrients!$EE$8:$EE$228))=0,AA256,IF((SUMPRODUCT(AA$9:AA$229,Nutrients!$EE$8:$EE$228))>(1500*907),AA256+0.14,AA256+0.00000000006666*((SUMPRODUCT(AA$9:AA$229,Nutrients!$EE$8:$EE$228)/907))^3-0.00000023623322*((SUMPRODUCT(AA$9:AA$229,Nutrients!$EE$8:$EE$228)/907))^2+0.00029262722672*((SUMPRODUCT(AA$9:AA$229,Nutrients!$EE$8:$EE$228)/907))+0.007028328))","v":0.15811379706127671},{"$f":"IF((SUMPRODUCT(AB$9:AB$229,Nutrients!$EE$8:$EE$228))=0,AB256,IF((SUMPRODUCT(AB$9:AB$229,Nutrients!$EE$8:$EE$228))>(1500*907),AB256+0.14,AB256+0.00000000006666*((SUMPRODUCT(AB$9:AB$229,Nutrients!$EE$8:$EE$228)/907))^3-0.00000023623322*((SUMPRODUCT(AB$9:AB$229,Nutrients!$EE$8:$EE$228)/907))^2+0.00029262722672*((SUMPRODUCT(AB$9:AB$229,Nutrients!$EE$8:$EE$228)/907))+0.007028328))","v":0.15203120530106506},null,{"$f":"IF((SUMPRODUCT(AD$9:AD$229,Nutrients!$EE$8:$EE$228))=0,AD256,IF((SUMPRODUCT(AD$9:AD$229,Nutrients!$EE$8:$EE$228))>(1500*907),AD256+0.14,AD256+0.00000000006666*((SUMPRODUCT(AD$9:AD$229,Nutrients!$EE$8:$EE$228)/907))^3-0.00000023623322*((SUMPRODUCT(AD$9:AD$229,Nutrients!$EE$8:$EE$228)/907))^2+0.00029262722672*((SUMPRODUCT(AD$9:AD$229,Nutrients!$EE$8:$EE$228)/907))+0.007028328))","v":0.26060972065183186},{"$f":"IF((SUMPRODUCT(AE$9:AE$229,Nutrients!$EE$8:$EE$228))=0,AE256,IF((SUMPRODUCT(AE$9:AE$229,Nutrients!$EE$8:$EE$228))>(1500*907),AE256+0.14,AE256+0.00000000006666*((SUMPRODUCT(AE$9:AE$229,Nutrients!$EE$8:$EE$228)/907))^3-0.00000023623322*((SUMPRODUCT(AE$9:AE$229,Nutrients!$EE$8:$EE$228)/907))^2+0.00029262722672*((SUMPRODUCT(AE$9:AE$229,Nutrients!$EE$8:$EE$228)/907))+0.007028328))","v":0.22460715894421715},{"$f":"IF((SUMPRODUCT(AF$9:AF$229,Nutrients!$EE$8:$EE$228))=0,AF256,IF((SUMPRODUCT(AF$9:AF$229,Nutrients!$EE$8:$EE$228))>(1500*907),AF256+0.14,AF256+0.00000000006666*((SUMPRODUCT(AF$9:AF$229,Nutrients!$EE$8:$EE$228)/907))^3-0.00000023623322*((SUMPRODUCT(AF$9:AF$229,Nutrients!$EE$8:$EE$228)/907))^2+0.00029262722672*((SUMPRODUCT(AF$9:AF$229,Nutrients!$EE$8:$EE$228)/907))+0.007028328))","v":0.18816512316613762},{"$f":"IF((SUMPRODUCT(AG$9:AG$229,Nutrients!$EE$8:$EE$228))=0,AG256,IF((SUMPRODUCT(AG$9:AG$229,Nutrients!$EE$8:$EE$228))>(1500*907),AG256+0.14,AG256+0.00000000006666*((SUMPRODUCT(AG$9:AG$229,Nutrients!$EE$8:$EE$228)/907))^3-0.00000023623322*((SUMPRODUCT(AG$9:AG$229,Nutrients!$EE$8:$EE$228)/907))^2+0.00029262722672*((SUMPRODUCT(AG$9:AG$229,Nutrients!$EE$8:$EE$228)/907))+0.007028328))","v":0.15932575044707864},{"$f":"IF((SUMPRODUCT(AH$9:AH$229,Nutrients!$EE$8:$EE$228))=0,AH256,IF((SUMPRODUCT(AH$9:AH$229,Nutrients!$EE$8:$EE$228))>(1500*907),AH256+0.14,AH256+0.00000000006666*((SUMPRODUCT(AH$9:AH$229,Nutrients!$EE$8:$EE$228)/907))^3-0.00000023623322*((SUMPRODUCT(AH$9:AH$229,Nutrients!$EE$8:$EE$228)/907))^2+0.00029262722672*((SUMPRODUCT(AH$9:AH$229,Nutrients!$EE$8:$EE$228)/907))+0.007028328))","v":0.14956903248292555},{"$f":"IF((SUMPRODUCT(AI$9:AI$229,Nutrients!$EE$8:$EE$228))=0,AI256,IF((SUMPRODUCT(AI$9:AI$229,Nutrients!$EE$8:$EE$228))>(1500*907),AI256+0.14,AI256+0.00000000006666*((SUMPRODUCT(AI$9:AI$229,Nutrients!$EE$8:$EE$228)/907))^3-0.00000023623322*((SUMPRODUCT(AI$9:AI$229,Nutrients!$EE$8:$EE$228)/907))^2+0.00029262722672*((SUMPRODUCT(AI$9:AI$229,Nutrients!$EE$8:$EE$228)/907))+0.007028328))","v":0.14790116492912575},null,{"$f":"IF((SUMPRODUCT(AK$9:AK$229,Nutrients!$EE$8:$EE$228))=0,AK256,IF((SUMPRODUCT(AK$9:AK$229,Nutrients!$EE$8:$EE$228))>(1500*907),AK256+0.14,AK256+0.00000000006666*((SUMPRODUCT(AK$9:AK$229,Nutrients!$EE$8:$EE$228)/907))^3-0.00000023623322*((SUMPRODUCT(AK$9:AK$229,Nutrients!$EE$8:$EE$228)/907))^2+0.00029262722672*((SUMPRODUCT(AK$9:AK$229,Nutrients!$EE$8:$EE$228)/907))+0.007028328))","v":0.2435645065560896},{"$f":"IF((SUMPRODUCT(AL$9:AL$229,Nutrients!$EE$8:$EE$228))=0,AL256,IF((SUMPRODUCT(AL$9:AL$229,Nutrients!$EE$8:$EE$228))>(1500*907),AL256+0.14,AL256+0.00000000006666*((SUMPRODUCT(AL$9:AL$229,Nutrients!$EE$8:$EE$228)/907))^3-0.00000023623322*((SUMPRODUCT(AL$9:AL$229,Nutrients!$EE$8:$EE$228)/907))^2+0.00029262722672*((SUMPRODUCT(AL$9:AL$229,Nutrients!$EE$8:$EE$228)/907))+0.007028328))","v":0.20728707256304332},{"$f":"IF((SUMPRODUCT(AM$9:AM$229,Nutrients!$EE$8:$EE$228))=0,AM256,IF((SUMPRODUCT(AM$9:AM$229,Nutrients!$EE$8:$EE$228))>(1500*907),AM256+0.14,AM256+0.00000000006666*((SUMPRODUCT(AM$9:AM$229,Nutrients!$EE$8:$EE$228)/907))^3-0.00000023623322*((SUMPRODUCT(AM$9:AM$229,Nutrients!$EE$8:$EE$228)/907))^2+0.00029262722672*((SUMPRODUCT(AM$9:AM$229,Nutrients!$EE$8:$EE$228)/907))+0.007028328))","v":0.17089428246359853},{"$f":"IF((SUMPRODUCT(AN$9:AN$229,Nutrients!$EE$8:$EE$228))=0,AN256,IF((SUMPRODUCT(AN$9:AN$229,Nutrients!$EE$8:$EE$228))>(1500*907),AN256+0.14,AN256+0.00000000006666*((SUMPRODUCT(AN$9:AN$229,Nutrients!$EE$8:$EE$228)/907))^3-0.00000023623322*((SUMPRODUCT(AN$9:AN$229,Nutrients!$EE$8:$EE$228)/907))^2+0.00029262722672*((SUMPRODUCT(AN$9:AN$229,Nutrients!$EE$8:$EE$228)/907))+0.007028328))","v":0.14870704154201855},{"$f":"IF((SUMPRODUCT(AO$9:AO$229,Nutrients!$EE$8:$EE$228))=0,AO256,IF((SUMPRODUCT(AO$9:AO$229,Nutrients!$EE$8:$EE$228))>(1500*907),AO256+0.14,AO256+0.00000000006666*((SUMPRODUCT(AO$9:AO$229,Nutrients!$EE$8:$EE$228)/907))^3-0.00000023623322*((SUMPRODUCT(AO$9:AO$229,Nutrients!$EE$8:$EE$228)/907))^2+0.00029262722672*((SUMPRODUCT(AO$9:AO$229,Nutrients!$EE$8:$EE$228)/907))+0.007028328))","v":0.14542184964028185},{"$f":"IF((SUMPRODUCT(AP$9:AP$229,Nutrients!$EE$8:$EE$228))=0,AP256,IF((SUMPRODUCT(AP$9:AP$229,Nutrients!$EE$8:$EE$228))>(1500*907),AP256+0.14,AP256+0.00000000006666*((SUMPRODUCT(AP$9:AP$229,Nutrients!$EE$8:$EE$228)/907))^3-0.00000023623322*((SUMPRODUCT(AP$9:AP$229,Nutrients!$EE$8:$EE$228)/907))^2+0.00029262722672*((SUMPRODUCT(AP$9:AP$229,Nutrients!$EE$8:$EE$228)/907))+0.007028328))","v":0.14377076030883656},null,{"$f":"IF((SUMPRODUCT(AR$9:AR$229,Nutrients!$EE$8:$EE$228))=0,AR256,IF((SUMPRODUCT(AR$9:AR$229,Nutrients!$EE$8:$EE$228))>(1500*907),AR256+0.14,AR256+0.00000000006666*((SUMPRODUCT(AR$9:AR$229,Nutrients!$EE$8:$EE$228)/907))^3-0.00000023623322*((SUMPRODUCT(AR$9:AR$229,Nutrients!$EE$8:$EE$228)/907))^2+0.00029262722672*((SUMPRODUCT(AR$9:AR$229,Nutrients!$EE$8:$EE$228)/907))+0.007028328))","v":0.22613768161789707},{"$f":"IF((SUMPRODUCT(AS$9:AS$229,Nutrients!$EE$8:$EE$228))=0,AS256,IF((SUMPRODUCT(AS$9:AS$229,Nutrients!$EE$8:$EE$228))>(1500*907),AS256+0.14,AS256+0.00000000006666*((SUMPRODUCT(AS$9:AS$229,Nutrients!$EE$8:$EE$228)/907))^3-0.00000023623322*((SUMPRODUCT(AS$9:AS$229,Nutrients!$EE$8:$EE$228)/907))^2+0.00029262722672*((SUMPRODUCT(AS$9:AS$229,Nutrients!$EE$8:$EE$228)/907))+0.007028328))","v":0.18996714977011678},{"$f":"IF((SUMPRODUCT(AT$9:AT$229,Nutrients!$EE$8:$EE$228))=0,AT256,IF((SUMPRODUCT(AT$9:AT$229,Nutrients!$EE$8:$EE$228))>(1500*907),AT256+0.14,AT256+0.00000000006666*((SUMPRODUCT(AT$9:AT$229,Nutrients!$EE$8:$EE$228)/907))^3-0.00000023623322*((SUMPRODUCT(AT$9:AT$229,Nutrients!$EE$8:$EE$228)/907))^2+0.00029262722672*((SUMPRODUCT(AT$9:AT$229,Nutrients!$EE$8:$EE$228)/907))+0.007028328))","v":0.15363659688555323},{"$f":"IF((SUMPRODUCT(AU$9:AU$229,Nutrients!$EE$8:$EE$228))=0,AU256,IF((SUMPRODUCT(AU$9:AU$229,Nutrients!$EE$8:$EE$228))>(1500*907),AU256+0.14,AU256+0.00000000006666*((SUMPRODUCT(AU$9:AU$229,Nutrients!$EE$8:$EE$228)/907))^3-0.00000023623322*((SUMPRODUCT(AU$9:AU$229,Nutrients!$EE$8:$EE$228)/907))^2+0.00029262722672*((SUMPRODUCT(AU$9:AU$229,Nutrients!$EE$8:$EE$228)/907))+0.007028328))","v":0.14453662102918807},{"$f":"IF((SUMPRODUCT(AV$9:AV$229,Nutrients!$EE$8:$EE$228))=0,AV256,IF((SUMPRODUCT(AV$9:AV$229,Nutrients!$EE$8:$EE$228))>(1500*907),AV256+0.14,AV256+0.00000000006666*((SUMPRODUCT(AV$9:AV$229,Nutrients!$EE$8:$EE$228)/907))^3-0.00000023623322*((SUMPRODUCT(AV$9:AV$229,Nutrients!$EE$8:$EE$228)/907))^2+0.00029262722672*((SUMPRODUCT(AV$9:AV$229,Nutrients!$EE$8:$EE$228)/907))+0.007028328))","v":0.14127512922936605},{"$f":"IF((SUMPRODUCT(AW$9:AW$229,Nutrients!$EE$8:$EE$228))=0,AW256,IF((SUMPRODUCT(AW$9:AW$229,Nutrients!$EE$8:$EE$228))>(1500*907),AW256+0.14,AW256+0.00000000006666*((SUMPRODUCT(AW$9:AW$229,Nutrients!$EE$8:$EE$228)/907))^3-0.00000023623322*((SUMPRODUCT(AW$9:AW$229,Nutrients!$EE$8:$EE$228)/907))^2+0.00029262722672*((SUMPRODUCT(AW$9:AW$229,Nutrients!$EE$8:$EE$228)/907))+0.007028328))","v":0.13964060866438066}]
["Avail P:calorie ratio g/mcal",{"$f":"IF(B$5=\"\",\"\",(B257)/(B246*2.2046)*10000)","v":1.0033088419067715},0.89010895745377694,0.77668715413339373,0.69541943453482424,0.63585195401614236,0.60998469661164556,null,{"$f":"IF(I$5=\"\",\"\",(I257)/(I246*2.2046)*10000)","v":0.94817795366630575},0.83569789088214974,0.72290914957302121,0.63377745380668538,0.57693609433714177,0.5487727791813497,null,{"$f":"IF(P$5=\"\",\"\",(P257)/(P246*2.2046)*10000)","v":0.8936296551475581},0.78174138498824974,0.66954066706953008,0.58069992450238961,0.52419130907420475,0.4961810584906135,null,{"$f":"IF(W$5=\"\",\"\",(W257)/(W246*2.2046)*10000)","v":0.83931345157352166},0.72801966889261061,0.61617178725534494,0.52789236909418391,0.47168071709457926,0.45321151550704564,null,{"$f":"IF(AD$5=\"\",\"\",(AD257)/(AD246*2.2046)*10000)","v":0.78523193127857249},0.67432532779094589,0.56310654866349152,0.47529395287466303,0.44544004858701058,0.44028462103642424,null,{"$f":"IF(AK$5=\"\",\"\",(AK257)/(AK246*2.2046)*10000)","v":0.73227701971379644},0.62092861203666116,0.51025026311403932,0.44280658729353678,0.43248194183511252,0.42739104321141341,null,{"$f":"IF(AR$5=\"\",\"\",(AR257)/(AR246*2.2046)*10000)","v":0.67833839562208609},0.5677774117081692,0.45768216214136442,0.42978504462169614,0.41956300812847991,0.41453573002563393]
["Stand. Dig. P w/out phytase, %",{"$f":"((SUMPRODUCT(B$9:B$229,Nutrients!$DR$8:$DR$228)+(IF($A$7=Nutrients!$B$8,Nutrients!$DR$8,Nutrients!$DR$9)*B$7)+(((IF($A$8=Nutrients!$B$79,Nutrients!$DR$79,(IF($A$8=Nutrients!$B$77,Nutrients!$DR$77,Nutrients!$DR$78)))))*B$8))/2000)","v":0.28998961246592625},{"$f":"((SUMPRODUCT(C$9:C$229,Nutrients!$DR$8:$DR$228)+(IF($A$7=Nutrients!$B$8,Nutrients!$DR$8,Nutrients!$DR$9)*C$7)+(((IF($A$8=Nutrients!$B$79,Nutrients!$DR$79,(IF($A$8=Nutrients!$B$77,Nutrients!$DR$77,Nutrients!$DR$78)))))*C$8))/2000)","v":0.25045553392749997},{"$f":"((SUMPRODUCT(D$9:D$229,Nutrients!$DR$8:$DR$228)+(IF($A$7=Nutrients!$B$8,Nutrients!$DR$8,Nutrients!$DR$9)*D$7)+(((IF($A$8=Nutrients!$B$79,Nutrients!$DR$79,(IF($A$8=Nutrients!$B$77,Nutrients!$DR$77,Nutrients!$DR$78)))))*D$8))/2000)","v":0.21159356316179678},{"$f":"((SUMPRODUCT(E$9:E$229,Nutrients!$DR$8:$DR$228)+(IF($A$7=Nutrients!$B$8,Nutrients!$DR$8,Nutrients!$DR$9)*E$7)+(((IF($A$8=Nutrients!$B$79,Nutrients!$DR$79,(IF($A$8=Nutrients!$B$77,Nutrients!$DR$77,Nutrients!$DR$78)))))*E$8))/2000)","v":0.18289955187368459},{"$f":"((SUMPRODUCT(F$9:F$229,Nutrients!$DR$8:$DR$228)+(IF($A$7=Nutrients!$B$8,Nutrients!$DR$8,Nutrients!$DR$9)*F$7)+(((IF($A$8=Nutrients!$B$79,Nutrients!$DR$79,(IF($A$8=Nutrients!$B$77,Nutrients!$DR$77,Nutrients!$DR$78)))))*F$8))/2000)","v":0.16219699119534683},{"$f":"((SUMPRODUCT(G$9:G$229,Nutrients!$DR$8:$DR$228)+(IF($A$7=Nutrients!$B$8,Nutrients!$DR$8,Nutrients!$DR$9)*G$7)+(((IF($A$8=Nutrients!$B$79,Nutrients!$DR$79,(IF($A$8=Nutrients!$B$77,Nutrients!$DR$77,Nutrients!$DR$78)))))*G$8))/2000)","v":0.15287313523350393},null,{"$f":"((SUMPRODUCT(I$9:I$229,Nutrients!$DR$8:$DR$228)+(IF($A$7=Nutrients!$B$8,Nutrients!$DR$8,Nutrients!$DR$9)*I$7)+(((IF($A$8=Nutrients!$B$79,Nutrients!$DR$79,(IF($A$8=Nutrients!$B$77,Nutrients!$DR$77,Nutrients!$DR$78)))))*I$8))/2000)","v":0.28996134729698325},{"$f":"((SUMPRODUCT(J$9:J$229,Nutrients!$DR$8:$DR$228)+(IF($A$7=Nutrients!$B$8,Nutrients!$DR$8,Nutrients!$DR$9)*J$7)+(((IF($A$8=Nutrients!$B$79,Nutrients!$DR$79,(IF($A$8=Nutrients!$B$77,Nutrients!$DR$77,Nutrients!$DR$78)))))*J$8))/2000)","v":0.2505762930480056},{"$f":"((SUMPRODUCT(K$9:K$229,Nutrients!$DR$8:$DR$228)+(IF($A$7=Nutrients!$B$8,Nutrients!$DR$8,Nutrients!$DR$9)*K$7)+(((IF($A$8=Nutrients!$B$79,Nutrients!$DR$79,(IF($A$8=Nutrients!$B$77,Nutrients!$DR$77,Nutrients!$DR$78)))))*K$8))/2000)","v":0.21183692421033332},{"$f":"((SUMPRODUCT(L$9:L$229,Nutrients!$DR$8:$DR$228)+(IF($A$7=Nutrients!$B$8,Nutrients!$DR$8,Nutrients!$DR$9)*L$7)+(((IF($A$8=Nutrients!$B$79,Nutrients!$DR$79,(IF($A$8=Nutrients!$B$77,Nutrients!$DR$77,Nutrients!$DR$78)))))*L$8))/2000)","v":0.18082505581613378},{"$f":"((SUMPRODUCT(M$9:M$229,Nutrients!$DR$8:$DR$228)+(IF($A$7=Nutrients!$B$8,Nutrients!$DR$8,Nutrients!$DR$9)*M$7)+(((IF($A$8=Nutrients!$B$79,Nutrients!$DR$79,(IF($A$8=Nutrients!$B$77,Nutrients!$DR$77,Nutrients!$DR$78)))))*M$8))/2000)","v":0.16082465595917891},{"$f":"((SUMPRODUCT(N$9:N$229,Nutrients!$DR$8:$DR$228)+(IF($A$7=Nutrients!$B$8,Nutrients!$DR$8,Nutrients!$DR$9)*N$7)+(((IF($A$8=Nutrients!$B$79,Nutrients!$DR$79,(IF($A$8=Nutrients!$B$77,Nutrients!$DR$77,Nutrients!$DR$78)))))*N$8))/2000)","v":0.15082571497598113},null,{"$f":"((SUMPRODUCT(P$9:P$229,Nutrients!$DR$8:$DR$228)+(IF($A$7=Nutrients!$B$8,Nutrients!$DR$8,Nutrients!$DR$9)*P$7)+(((IF($A$8=Nutrients!$B$79,Nutrients!$DR$79,(IF($A$8=Nutrients!$B$77,Nutrients!$DR$77,Nutrients!$DR$78)))))*P$8))/2000)","v":0.29012418344337004},{"$f":"((SUMPRODUCT(Q$9:Q$229,Nutrients!$DR$8:$DR$228)+(IF($A$7=Nutrients!$B$8,Nutrients!$DR$8,Nutrients!$DR$9)*Q$7)+(((IF($A$8=Nutrients!$B$79,Nutrients!$DR$79,(IF($A$8=Nutrients!$B$77,Nutrients!$DR$77,Nutrients!$DR$78)))))*Q$8))/2000)","v":0.25082971441109625},{"$f":"((SUMPRODUCT(R$9:R$229,Nutrients!$DR$8:$DR$228)+(IF($A$7=Nutrients!$B$8,Nutrients!$DR$8,Nutrients!$DR$9)*R$7)+(((IF($A$8=Nutrients!$B$79,Nutrients!$DR$79,(IF($A$8=Nutrients!$B$77,Nutrients!$DR$77,Nutrients!$DR$78)))))*R$8))/2000)","v":0.21218755388888752},{"$f":"((SUMPRODUCT(S$9:S$229,Nutrients!$DR$8:$DR$228)+(IF($A$7=Nutrients!$B$8,Nutrients!$DR$8,Nutrients!$DR$9)*S$7)+(((IF($A$8=Nutrients!$B$79,Nutrients!$DR$79,(IF($A$8=Nutrients!$B$77,Nutrients!$DR$77,Nutrients!$DR$78)))))*S$8))/2000)","v":0.18113051182286444},{"$f":"((SUMPRODUCT(T$9:T$229,Nutrients!$DR$8:$DR$228)+(IF($A$7=Nutrients!$B$8,Nutrients!$DR$8,Nutrients!$DR$9)*T$7)+(((IF($A$8=Nutrients!$B$79,Nutrients!$DR$79,(IF($A$8=Nutrients!$B$77,Nutrients!$DR$77,Nutrients!$DR$78)))))*T$8))/2000)","v":0.16120369003742432},{"$f":"((SUMPRODUCT(U$9:U$229,Nutrients!$DR$8:$DR$228)+(IF($A$7=Nutrients!$B$8,Nutrients!$DR$8,Nutrients!$DR$9)*U$7)+(((IF($A$8=Nutrients!$B$79,Nutrients!$DR$79,(IF($A$8=Nutrients!$B$77,Nutrients!$DR$77,Nutrients!$DR$78)))))*U$8))/2000)","v":0.15123516985072474},null,{"$f":"((SUMPRODUCT(W$9:W$229,Nutrients!$DR$8:$DR$228)+(IF($A$7=Nutrients!$B$8,Nutrients!$DR$8,Nutrients!$DR$9)*W$7)+(((IF($A$8=Nutrients!$B$79,Nutrients!$DR$79,(IF($A$8=Nutrients!$B$77,Nutrients!$DR$77,Nutrients!$DR$78)))))*W$8))/2000)","v":0.29028805671684177},{"$f":"((SUMPRODUCT(X$9:X$229,Nutrients!$DR$8:$DR$228)+(IF($A$7=Nutrients!$B$8,Nutrients!$DR$8,Nutrients!$DR$9)*X$7)+(((IF($A$8=Nutrients!$B$79,Nutrients!$DR$79,(IF($A$8=Nutrients!$B$77,Nutrients!$DR$77,Nutrients!$DR$78)))))*X$8))/2000)","v":0.25108505561358324},{"$f":"((SUMPRODUCT(Y$9:Y$229,Nutrients!$DR$8:$DR$228)+(IF($A$7=Nutrients!$B$8,Nutrients!$DR$8,Nutrients!$DR$9)*Y$7)+(((IF($A$8=Nutrients!$B$79,Nutrients!$DR$79,(IF($A$8=Nutrients!$B$77,Nutrients!$DR$77,Nutrients!$DR$78)))))*Y$8))/2000)","v":0.21239875544994724},{"$f":"((SUMPRODUCT(Z$9:Z$229,Nutrients!$DR$8:$DR$228)+(IF($A$7=Nutrients!$B$8,Nutrients!$DR$8,Nutrients!$DR$9)*Z$7)+(((IF($A$8=Nutrients!$B$79,Nutrients!$DR$79,(IF($A$8=Nutrients!$B$77,Nutrients!$DR$77,Nutrients!$DR$78)))))*Z$8))/2000)","v":0.18147125879298556},{"$f":"((SUMPRODUCT(AA$9:AA$229,Nutrients!$DR$8:$DR$228)+(IF($A$7=Nutrients!$B$8,Nutrients!$DR$8,Nutrients!$DR$9)*AA$7)+(((IF($A$8=Nutrients!$B$79,Nutrients!$DR$79,(IF($A$8=Nutrients!$B$77,Nutrients!$DR$77,Nutrients!$DR$78)))))*AA$8))/2000)","v":0.16159183446294448},{"$f":"((SUMPRODUCT(AB$9:AB$229,Nutrients!$DR$8:$DR$228)+(IF($A$7=Nutrients!$B$8,Nutrients!$DR$8,Nutrients!$DR$9)*AB$7)+(((IF($A$8=Nutrients!$B$79,Nutrients!$DR$79,(IF($A$8=Nutrients!$B$77,Nutrients!$DR$77,Nutrients!$DR$78)))))*AB$8))/2000)","v":0.15438191690465869},null,{"$f":"((SUMPRODUCT(AD$9:AD$229,Nutrients!$DR$8:$DR$228)+(IF($A$7=Nutrients!$B$8,Nutrients!$DR$8,Nutrients!$DR$9)*AD$7)+(((IF($A$8=Nutrients!$B$79,Nutrients!$DR$79,(IF($A$8=Nutrients!$B$77,Nutrients!$DR$77,Nutrients!$DR$78)))))*AD$8))/2000)","v":0.29044021906142953},{"$f":"((SUMPRODUCT(AE$9:AE$229,Nutrients!$DR$8:$DR$228)+(IF($A$7=Nutrients!$B$8,Nutrients!$DR$8,Nutrients!$DR$9)*AE$7)+(((IF($A$8=Nutrients!$B$79,Nutrients!$DR$79,(IF($A$8=Nutrients!$B$77,Nutrients!$DR$77,Nutrients!$DR$78)))))*AE$8))/2000)","v":0.25120156811149008},{"$f":"((SUMPRODUCT(AF$9:AF$229,Nutrients!$DR$8:$DR$228)+(IF($A$7=Nutrients!$B$8,Nutrients!$DR$8,Nutrients!$DR$9)*AF$7)+(((IF($A$8=Nutrients!$B$79,Nutrients!$DR$79,(IF($A$8=Nutrients!$B$77,Nutrients!$DR$77,Nutrients!$DR$78)))))*AF$8))/2000)","v":0.21264328214865663},{"$f":"((SUMPRODUCT(AG$9:AG$229,Nutrients!$DR$8:$DR$228)+(IF($A$7=Nutrients!$B$8,Nutrients!$DR$8,Nutrients!$DR$9)*AG$7)+(((IF($A$8=Nutrients!$B$79,Nutrients!$DR$79,(IF($A$8=Nutrients!$B$77,Nutrients!$DR$77,Nutrients!$DR$78)))))*AG$8))/2000)","v":0.18180297112449109},{"$f":"((SUMPRODUCT(AH$9:AH$229,Nutrients!$DR$8:$DR$228)+(IF($A$7=Nutrients!$B$8,Nutrients!$DR$8,Nutrients!$DR$9)*AH$7)+(((IF($A$8=Nutrients!$B$79,Nutrients!$DR$79,(IF($A$8=Nutrients!$B$77,Nutrients!$DR$77,Nutrients!$DR$78)))))*AH$8))/2000)","v":0.16956912942276786},{"$f":"((SUMPRODUCT(AI$9:AI$229,Nutrients!$DR$8:$DR$228)+(IF($A$7=Nutrients!$B$8,Nutrients!$DR$8,Nutrients!$DR$9)*AI$7)+(((IF($A$8=Nutrients!$B$79,Nutrients!$DR$79,(IF($A$8=Nutrients!$B$77,Nutrients!$DR$77,Nutrients!$DR$78)))))*AI$8))/2000)","v":0.16625332145328217},null,{"$f":"((SUMPRODUCT(AK$9:AK$229,Nutrients!$DR$8:$DR$228)+(IF($A$7=Nutrients!$B$8,Nutrients!$DR$8,Nutrients!$DR$9)*AK$7)+(((IF($A$8=Nutrients!$B$79,Nutrients!$DR$79,(IF($A$8=Nutrients!$B$77,Nutrients!$DR$77,Nutrients!$DR$78)))))*AK$8))/2000)","v":0.29114381200372952},{"$f":"((SUMPRODUCT(AL$9:AL$229,Nutrients!$DR$8:$DR$228)+(IF($A$7=Nutrients!$B$8,Nutrients!$DR$8,Nutrients!$DR$9)*AL$7)+(((IF($A$8=Nutrients!$B$79,Nutrients!$DR$79,(IF($A$8=Nutrients!$B$77,Nutrients!$DR$77,Nutrients!$DR$78)))))*AL$8))/2000)","v":0.25135864352434845},{"$f":"((SUMPRODUCT(AM$9:AM$229,Nutrients!$DR$8:$DR$228)+(IF($A$7=Nutrients!$B$8,Nutrients!$DR$8,Nutrients!$DR$9)*AM$7)+(((IF($A$8=Nutrients!$B$79,Nutrients!$DR$79,(IF($A$8=Nutrients!$B$77,Nutrients!$DR$77,Nutrients!$DR$78)))))*AM$8))/2000)","v":0.21289654545188069},{"$f":"((SUMPRODUCT(AN$9:AN$229,Nutrients!$DR$8:$DR$228)+(IF($A$7=Nutrients!$B$8,Nutrients!$DR$8,Nutrients!$DR$9)*AN$7)+(((IF($A$8=Nutrients!$B$79,Nutrients!$DR$79,(IF($A$8=Nutrients!$B$77,Nutrients!$DR$77,Nutrients!$DR$78)))))*AN$8))/2000)","v":0.18793113529540084},{"$f":"((SUMPRODUCT(AO$9:AO$229,Nutrients!$DR$8:$DR$228)+(IF($A$7=Nutrients!$B$8,Nutrients!$DR$8,Nutrients!$DR$9)*AO$7)+(((IF($A$8=Nutrients!$B$79,Nutrients!$DR$79,(IF($A$8=Nutrients!$B$77,Nutrients!$DR$77,Nutrients!$DR$78)))))*AO$8))/2000)","v":0.18140637372335067},{"$f":"((SUMPRODUCT(AP$9:AP$229,Nutrients!$DR$8:$DR$228)+(IF($A$7=Nutrients!$B$8,Nutrients!$DR$8,Nutrients!$DR$9)*AP$7)+(((IF($A$8=Nutrients!$B$79,Nutrients!$DR$79,(IF($A$8=Nutrients!$B$77,Nutrients!$DR$77,Nutrients!$DR$78)))))*AP$8))/2000)","v":0.17812392971310506},null,{"$f":"((SUMPRODUCT(AR$9:AR$229,Nutrients!$DR$8:$DR$228)+(IF($A$7=Nutrients!$B$8,Nutrients!$DR$8,Nutrients!$DR$9)*AR$7)+(((IF($A$8=Nutrients!$B$79,Nutrients!$DR$79,(IF($A$8=Nutrients!$B$77,Nutrients!$DR$77,Nutrients!$DR$78)))))*AR$8))/2000)","v":0.29108855435811337},{"$f":"((SUMPRODUCT(AS$9:AS$229,Nutrients!$DR$8:$DR$228)+(IF($A$7=Nutrients!$B$8,Nutrients!$DR$8,Nutrients!$DR$9)*AS$7)+(((IF($A$8=Nutrients!$B$79,Nutrients!$DR$79,(IF($A$8=Nutrients!$B$77,Nutrients!$DR$77,Nutrients!$DR$78)))))*AS$8))/2000)","v":0.25151588711151224},{"$f":"((SUMPRODUCT(AT$9:AT$229,Nutrients!$DR$8:$DR$228)+(IF($A$7=Nutrients!$B$8,Nutrients!$DR$8,Nutrients!$DR$9)*AT$7)+(((IF($A$8=Nutrients!$B$79,Nutrients!$DR$79,(IF($A$8=Nutrients!$B$77,Nutrients!$DR$77,Nutrients!$DR$78)))))*AT$8))/2000)","v":0.21317576741537064},{"$f":"((SUMPRODUCT(AU$9:AU$229,Nutrients!$DR$8:$DR$228)+(IF($A$7=Nutrients!$B$8,Nutrients!$DR$8,Nutrients!$DR$9)*AU$7)+(((IF($A$8=Nutrients!$B$79,Nutrients!$DR$79,(IF($A$8=Nutrients!$B$77,Nutrients!$DR$77,Nutrients!$DR$78)))))*AU$8))/2000)","v":0.19972207297230715},{"$f":"((SUMPRODUCT(AV$9:AV$229,Nutrients!$DR$8:$DR$228)+(IF($A$7=Nutrients!$B$8,Nutrients!$DR$8,Nutrients!$DR$9)*AV$7)+(((IF($A$8=Nutrients!$B$79,Nutrients!$DR$79,(IF($A$8=Nutrients!$B$77,Nutrients!$DR$77,Nutrients!$DR$78)))))*AV$8))/2000)","v":0.1932446047801234},{"$f":"((SUMPRODUCT(AW$9:AW$229,Nutrients!$DR$8:$DR$228)+(IF($A$7=Nutrients!$B$8,Nutrients!$DR$8,Nutrients!$DR$9)*AW$7)+(((IF($A$8=Nutrients!$B$79,Nutrients!$DR$79,(IF($A$8=Nutrients!$B$77,Nutrients!$DR$77,Nutrients!$DR$78)))))*AW$8))/2000)","v":0.18999511245904543}]
["Stand. Dig. P with phytase, %",{"$f":"B259+0.11","v":0.39998961246592624},0.36045553392749996,0.32159356316179677,0.2928995518736846,0.27219699119534685,0.26287313523350392,null,{"$f":"I259+0.11","v":0.39996134729698324},0.36057629304800559,0.32183692421033333,0.29082505581613377,0.27082465595917893,0.26082571497598112,null,{"$f":"P259+0.11","v":0.40012418344337003},0.36082971441109624,0.32218755388888753,0.29113051182286442,0.27120369003742434,0.26123516985072476,null,{"$f":"W259+0.11","v":0.40028805671684176},0.36108505561358323,0.32239875544994723,0.29147125879298558,0.27159183446294449,0.26438191690465868,null,{"$f":"AD259+0.11","v":0.40044021906142951},0.36120156811149007,0.32264328214865662,0.29180297112449111,0.27956912942276785,0.27625332145328219,null,{"$f":"AK259+0.11","v":0.40114381200372951},0.36135864352434843,0.32289654545188068,0.29793113529540083,0.29140637372335065,0.28812392971310508,null,{"$f":"AR259+0.11","v":0.40108855435811336},0.36151588711151222,0.32317576741537063,0.30972207297230714,0.30324460478012338,0.29999511245904542]
["Ca:P",{"$f":"B254/B255","v":1.3017138684764227},1.3021894221424188,1.3373095283032115,1.3415645597438779,1.3249751835185248,1.3266649538806439,null,{"$f":"I254/I255","v":1.302936008638806},1.30474348593801,1.3406070807682411,1.3403337564594258,1.3256181891155459,1.3259358673456918,null,{"$f":"P254/P255","v":1.3056209227923463},1.3074312054496291,1.3438422173057825,1.3439837686296421,1.3293748035494308,1.3297932333843965,null,{"$f":"W254/W255","v":1.3071178849480647},1.3088849300041427,1.3456243245689312,1.345578844416164,1.3309786257065332,1.3345006558544286,null,{"$f":"AD254/AD255","v":1.3093582289793524},1.3115168277655285,1.3484230134568156,1.3487621819324485,1.3400419241997976,1.3456591121815469,null,{"$f":"AK254/AK255","v":1.3106217807069127},1.3132052407310535,1.3501532391793567,1.3553053250580451,1.3505316496783066,1.3560665388286515,null,{"$f":"AR254/AR255","v":1.3127362027579867},1.3156922893793774,1.3529826995452621,1.365353746749089,1.3603489489512721,1.3657911478148088]
["Ca:STTD P",{"$f":"B254/B260","v":1.7400120914159756},1.7384331182595809,1.7871189885452841,1.7907878953733971,1.7690318502967193,1.7699999245766229,null,{"$f":"I254/I260","v":1.738898900900214},1.7390273768118385,1.7885063635247884,1.7883472818070043,1.7682857584748624,1.7682222525798923,null,{"$f":"P254/P260","v":1.7399999683509504},1.7399999656093674,1.7899999494404009,1.7899999417552674,1.7699999347444846,1.7699999308881926,null,{"$f":"W254/W260","v":1.7395178678032466},1.7393358796014353,1.7892949066471435,1.7889776172961327,1.7688597671374227,1.7699999186145077,null,{"$f":"AD254/AD260","v":1.7399999747501347},1.7399999699097199,1.7899999589799493,1.7899999455351414,1.7699999064132208,1.7699999049339334,null,{"$f":"AK254/AK260","v":1.7399999781414144},1.7394755601227663,1.7892515826218252,1.7900000966840111,1.7700008373589164,1.7699999025987341,null,{"$f":"AR254/AR260","v":1.7399999740709606},1.739999978527802,1.7899999657732153,1.7900030260128046,1.770005722475092,1.7699999034657958]
["Cost/ton",{"$f":"(SUMPRODUCT(B$9:B$229,Nutrients!$DX$8:$DX$228)+(IF($A$7=Nutrients!$B$8,Nutrients!$DX$8,Nutrients!$DX$9)*B$7)+(((IF($A$8=Nutrients!$B$79,Nutrients!$DX$79,(IF($A$8=Nutrients!$B$77,Nutrients!$DX$77,Nutrients!$DX$78)))))*B$8))","v":219.06090724554412},{"$f":"(SUMPRODUCT(C$9:C$229,Nutrients!$DX$8:$DX$228)+(IF($A$7=Nutrients!$B$8,Nutrients!$DX$8,Nutrients!$DX$9)*C$7)+(((IF($A$8=Nutrients!$B$79,Nutrients!$DX$79,(IF($A$8=Nutrients!$B$77,Nutrients!$DX$77,Nutrients!$DX$78)))))*C$8))","v":210.20700601537649},{"$f":"(SUMPRODUCT(D$9:D$229,Nutrients!$DX$8:$DX$228)+(IF($A$7=Nutrients!$B$8,Nutrients!$DX$8,Nutrients!$DX$9)*D$7)+(((IF($A$8=Nutrients!$B$79,Nutrients!$DX$79,(IF($A$8=Nutrients!$B$77,Nutrients!$DX$77,Nutrients!$DX$78)))))*D$8))","v":201.64110105420281},{"$f":"(SUMPRODUCT(E$9:E$229,Nutrients!$DX$8:$DX$228)+(IF($A$7=Nutrients!$B$8,Nutrients!$DX$8,Nutrients!$DX$9)*E$7)+(((IF($A$8=Nutrients!$B$79,Nutrients!$DX$79,(IF($A$8=Nutrients!$B$77,Nutrients!$DX$77,Nutrients!$DX$78)))))*E$8))","v":194.82283976807454},{"$f":"(SUMPRODUCT(F$9:F$229,Nutrients!$DX$8:$DX$228)+(IF($A$7=Nutrients!$B$8,Nutrients!$DX$8,Nutrients!$DX$9)*F$7)+(((IF($A$8=Nutrients!$B$79,Nutrients!$DX$79,(IF($A$8=Nutrients!$B$77,Nutrients!$DX$77,Nutrients!$DX$78)))))*F$8))","v":189.69608954240206},{"$f":"(SUMPRODUCT(G$9:G$229,Nutrients!$DX$8:$DX$228)+(IF($A$7=Nutrients!$B$8,Nutrients!$DX$8,Nutrients!$DX$9)*G$7)+(((IF($A$8=Nutrients!$B$79,Nutrients!$DX$79,(IF($A$8=Nutrients!$B$77,Nutrients!$DX$77,Nutrients!$DX$78)))))*G$8))","v":187.52702006837634},null,{"$f":"(SUMPRODUCT(I$9:I$229,Nutrients!$DX$8:$DX$228)+(IF($A$7=Nutrients!$B$8,Nutrients!$DX$8,Nutrients!$DX$9)*I$7)+(((IF($A$8=Nutrients!$B$79,Nutrients!$DX$79,(IF($A$8=Nutrients!$B$77,Nutrients!$DX$77,Nutrients!$DX$78)))))*I$8))","v":217.40530790410384},{"$f":"(SUMPRODUCT(J$9:J$229,Nutrients!$DX$8:$DX$228)+(IF($A$7=Nutrients!$B$8,Nutrients!$DX$8,Nutrients!$DX$9)*J$7)+(((IF($A$8=Nutrients!$B$79,Nutrients!$DX$79,(IF($A$8=Nutrients!$B$77,Nutrients!$DX$77,Nutrients!$DX$78)))))*J$8))","v":208.63316975744857},{"$f":"(SUMPRODUCT(K$9:K$229,Nutrients!$DX$8:$DX$228)+(IF($A$7=Nutrients!$B$8,Nutrients!$DX$8,Nutrients!$DX$9)*K$7)+(((IF($A$8=Nutrients!$B$79,Nutrients!$DX$79,(IF($A$8=Nutrients!$B$77,Nutrients!$DX$77,Nutrients!$DX$78)))))*K$8))","v":200.15114173826777},{"$f":"(SUMPRODUCT(L$9:L$229,Nutrients!$DX$8:$DX$228)+(IF($A$7=Nutrients!$B$8,Nutrients!$DX$8,Nutrients!$DX$9)*L$7)+(((IF($A$8=Nutrients!$B$79,Nutrients!$DX$79,(IF($A$8=Nutrients!$B$77,Nutrients!$DX$77,Nutrients!$DX$78)))))*L$8))","v":193.32236120947073},{"$f":"(SUMPRODUCT(M$9:M$229,Nutrients!$DX$8:$DX$228)+(IF($A$7=Nutrients!$B$8,Nutrients!$DX$8,Nutrients!$DX$9)*M$7)+(((IF($A$8=Nutrients!$B$79,Nutrients!$DX$79,(IF($A$8=Nutrients!$B$77,Nutrients!$DX$77,Nutrients!$DX$78)))))*M$8))","v":188.20863229303959},{"$f":"(SUMPRODUCT(N$9:N$229,Nutrients!$DX$8:$DX$228)+(IF($A$7=Nutrients!$B$8,Nutrients!$DX$8,Nutrients!$DX$9)*N$7)+(((IF($A$8=Nutrients!$B$79,Nutrients!$DX$79,(IF($A$8=Nutrients!$B$77,Nutrients!$DX$77,Nutrients!$DX$78)))))*N$8))","v":186.05592010163232},null,{"$f":"(SUMPRODUCT(P$9:P$229,Nutrients!$DX$8:$DX$228)+(IF($A$7=Nutrients!$B$8,Nutrients!$DX$8,Nutrients!$DX$9)*P$7)+(((IF($A$8=Nutrients!$B$79,Nutrients!$DX$79,(IF($A$8=Nutrients!$B$77,Nutrients!$DX$77,Nutrients!$DX$78)))))*P$8))","v":215.90391279015165},{"$f":"(SUMPRODUCT(Q$9:Q$229,Nutrients!$DX$8:$DX$228)+(IF($A$7=Nutrients!$B$8,Nutrients!$DX$8,Nutrients!$DX$9)*Q$7)+(((IF($A$8=Nutrients!$B$79,Nutrients!$DX$79,(IF($A$8=Nutrients!$B$77,Nutrients!$DX$77,Nutrients!$DX$78)))))*Q$8))","v":207.19770981149094},{"$f":"(SUMPRODUCT(R$9:R$229,Nutrients!$DX$8:$DX$228)+(IF($A$7=Nutrients!$B$8,Nutrients!$DX$8,Nutrients!$DX$9)*R$7)+(((IF($A$8=Nutrients!$B$79,Nutrients!$DX$79,(IF($A$8=Nutrients!$B$77,Nutrients!$DX$77,Nutrients!$DX$78)))))*R$8))","v":198.75328011012607},{"$f":"(SUMPRODUCT(S$9:S$229,Nutrients!$DX$8:$DX$228)+(IF($A$7=Nutrients!$B$8,Nutrients!$DX$8,Nutrients!$DX$9)*S$7)+(((IF($A$8=Nutrients!$B$79,Nutrients!$DX$79,(IF($A$8=Nutrients!$B$77,Nutrients!$DX$77,Nutrients!$DX$78)))))*S$8))","v":191.89958714243249},{"$f":"(SUMPRODUCT(T$9:T$229,Nutrients!$DX$8:$DX$228)+(IF($A$7=Nutrients!$B$8,Nutrients!$DX$8,Nutrients!$DX$9)*T$7)+(((IF($A$8=Nutrients!$B$79,Nutrients!$DX$79,(IF($A$8=Nutrients!$B$77,Nutrients!$DX$77,Nutrients!$DX$78)))))*T$8))","v":187.03081494975703},{"$f":"(SUMPRODUCT(U$9:U$229,Nutrients!$DX$8:$DX$228)+(IF($A$7=Nutrients!$B$8,Nutrients!$DX$8,Nutrients!$DX$9)*U$7)+(((IF($A$8=Nutrients!$B$79,Nutrients!$DX$79,(IF($A$8=Nutrients!$B$77,Nutrients!$DX$77,Nutrients!$DX$78)))))*U$8))","v":184.95320967815462},null,{"$f":"(SUMPRODUCT(W$9:W$229,Nutrients!$DX$8:$DX$228)+(IF($A$7=Nutrients!$B$8,Nutrients!$DX$8,Nutrients!$DX$9)*W$7)+(((IF($A$8=Nutrients!$B$79,Nutrients!$DX$79,(IF($A$8=Nutrients!$B$77,Nutrients!$DX$77,Nutrients!$DX$78)))))*W$8))","v":214.40349886816551},{"$f":"(SUMPRODUCT(X$9:X$229,Nutrients!$DX$8:$DX$228)+(IF($A$7=Nutrients!$B$8,Nutrients!$DX$8,Nutrients!$DX$9)*X$7)+(((IF($A$8=Nutrients!$B$79,Nutrients!$DX$79,(IF($A$8=Nutrients!$B$77,Nutrients!$DX$77,Nutrients!$DX$78)))))*X$8))","v":205.7477720219419},{"$f":"(SUMPRODUCT(Y$9:Y$229,Nutrients!$DX$8:$DX$228)+(IF($A$7=Nutrients!$B$8,Nutrients!$DX$8,Nutrients!$DX$9)*Y$7)+(((IF($A$8=Nutrients!$B$79,Nutrients!$DX$79,(IF($A$8=Nutrients!$B$77,Nutrients!$DX$77,Nutrients!$DX$78)))))*Y$8))","v":197.2912899859914},{"$f":"(SUMPRODUCT(Z$9:Z$229,Nutrients!$DX$8:$DX$228)+(IF($A$7=Nutrients!$B$8,Nutrients!$DX$8,Nutrients!$DX$9)*Z$7)+(((IF($A$8=Nutrients!$B$79,Nutrients!$DX$79,(IF($A$8=Nutrients!$B$77,Nutrients!$DX$77,Nutrients!$DX$78)))))*Z$8))","v":190.56581634823459},{"$f":"(SUMPRODUCT(AA$9:AA$229,Nutrients!$DX$8:$DX$228)+(IF($A$7=Nutrients!$B$8,Nutrients!$DX$8,Nutrients!$DX$9)*AA$7)+(((IF($A$8=Nutrients!$B$79,Nutrients!$DX$79,(IF($A$8=Nutrients!$B$77,Nutrients!$DX$77,Nutrients!$DX$78)))))*AA$8))","v":185.9168515446643},{"$f":"(SUMPRODUCT(AB$9:AB$229,Nutrients!$DX$8:$DX$228)+(IF($A$7=Nutrients!$B$8,Nutrients!$DX$8,Nutrients!$DX$9)*AB$7)+(((IF($A$8=Nutrients!$B$79,Nutrients!$DX$79,(IF($A$8=Nutrients!$B$77,Nutrients!$DX$77,Nutrients!$DX$78)))))*AB$8))","v":183.91027198287861},null,{"$f":"(SUMPRODUCT(AD$9:AD$229,Nutrients!$DX$8:$DX$228)+(IF($A$7=Nutrients!$B$8,Nutrients!$DX$8,Nutrients!$DX$9)*AD$7)+(((IF($A$8=Nutrients!$B$79,Nutrients!$DX$79,(IF($A$8=Nutrients!$B$77,Nutrients!$DX$77,Nutrients!$DX$78)))))*AD$8))","v":212.89637683902419},{"$f":"(SUMPRODUCT(AE$9:AE$229,Nutrients!$DX$8:$DX$228)+(IF($A$7=Nutrients!$B$8,Nutrients!$DX$8,Nutrients!$DX$9)*AE$7)+(((IF($A$8=Nutrients!$B$79,Nutrients!$DX$79,(IF($A$8=Nutrients!$B$77,Nutrients!$DX$77,Nutrients!$DX$78)))))*AE$8))","v":204.22095834209978},{"$f":"(SUMPRODUCT(AF$9:AF$229,Nutrients!$DX$8:$DX$228)+(IF($A$7=Nutrients!$B$8,Nutrients!$DX$8,Nutrients!$DX$9)*AF$7)+(((IF($A$8=Nutrients!$B$79,Nutrients!$DX$79,(IF($A$8=Nutrients!$B$77,Nutrients!$DX$77,Nutrients!$DX$78)))))*AF$8))","v":195.7848017149559},{"$f":"(SUMPRODUCT(AG$9:AG$229,Nutrients!$DX$8:$DX$228)+(IF($A$7=Nutrients!$B$8,Nutrients!$DX$8,Nutrients!$DX$9)*AG$7)+(((IF($A$8=Nutrients!$B$79,Nutrients!$DX$79,(IF($A$8=Nutrients!$B$77,Nutrients!$DX$77,Nutrients!$DX$78)))))*AG$8))","v":189.42033405159225},{"$f":"(SUMPRODUCT(AH$9:AH$229,Nutrients!$DX$8:$DX$228)+(IF($A$7=Nutrients!$B$8,Nutrients!$DX$8,Nutrients!$DX$9)*AH$7)+(((IF($A$8=Nutrients!$B$79,Nutrients!$DX$79,(IF($A$8=Nutrients!$B$77,Nutrients!$DX$77,Nutrients!$DX$78)))))*AH$8))","v":184.92910240410902},{"$f":"(SUMPRODUCT(AI$9:AI$229,Nutrients!$DX$8:$DX$228)+(IF($A$7=Nutrients!$B$8,Nutrients!$DX$8,Nutrients!$DX$9)*AI$7)+(((IF($A$8=Nutrients!$B$79,Nutrients!$DX$79,(IF($A$8=Nutrients!$B$77,Nutrients!$DX$77,Nutrients!$DX$78)))))*AI$8))","v":183.02469893218796},null,{"$f":"(SUMPRODUCT(AK$9:AK$229,Nutrients!$DX$8:$DX$228)+(IF($A$7=Nutrients!$B$8,Nutrients!$DX$8,Nutrients!$DX$9)*AK$7)+(((IF($A$8=Nutrients!$B$79,Nutrients!$DX$79,(IF($A$8=Nutrients!$B$77,Nutrients!$DX$77,Nutrients!$DX$78)))))*AK$8))","v":211.69350145353982},{"$f":"(SUMPRODUCT(AL$9:AL$229,Nutrients!$DX$8:$DX$228)+(IF($A$7=Nutrients!$B$8,Nutrients!$DX$8,Nutrients!$DX$9)*AL$7)+(((IF($A$8=Nutrients!$B$79,Nutrients!$DX$79,(IF($A$8=Nutrients!$B$77,Nutrients!$DX$77,Nutrients!$DX$78)))))*AL$8))","v":202.71679305374616},{"$f":"(SUMPRODUCT(AM$9:AM$229,Nutrients!$DX$8:$DX$228)+(IF($A$7=Nutrients!$B$8,Nutrients!$DX$8,Nutrients!$DX$9)*AM$7)+(((IF($A$8=Nutrients!$B$79,Nutrients!$DX$79,(IF($A$8=Nutrients!$B$77,Nutrients!$DX$77,Nutrients!$DX$78)))))*AM$8))","v":194.59640481753874},{"$f":"(SUMPRODUCT(AN$9:AN$229,Nutrients!$DX$8:$DX$228)+(IF($A$7=Nutrients!$B$8,Nutrients!$DX$8,Nutrients!$DX$9)*AN$7)+(((IF($A$8=Nutrients!$B$79,Nutrients!$DX$79,(IF($A$8=Nutrients!$B$77,Nutrients!$DX$77,Nutrients!$DX$78)))))*AN$8))","v":188.35209505839322},{"$f":"(SUMPRODUCT(AO$9:AO$229,Nutrients!$DX$8:$DX$228)+(IF($A$7=Nutrients!$B$8,Nutrients!$DX$8,Nutrients!$DX$9)*AO$7)+(((IF($A$8=Nutrients!$B$79,Nutrients!$DX$79,(IF($A$8=Nutrients!$B$77,Nutrients!$DX$77,Nutrients!$DX$78)))))*AO$8))","v":184.05845523199278},{"$f":"(SUMPRODUCT(AP$9:AP$229,Nutrients!$DX$8:$DX$228)+(IF($A$7=Nutrients!$B$8,Nutrients!$DX$8,Nutrients!$DX$9)*AP$7)+(((IF($A$8=Nutrients!$B$79,Nutrients!$DX$79,(IF($A$8=Nutrients!$B$77,Nutrients!$DX$77,Nutrients!$DX$78)))))*AP$8))","v":182.17245199600714},null,{"$f":"(SUMPRODUCT(AR$9:AR$229,Nutrients!$DX$8:$DX$228)+(IF($A$7=Nutrients!$B$8,Nutrients!$DX$8,Nutrients!$DX$9)*AR$7)+(((IF($A$8=Nutrients!$B$79,Nutrients!$DX$79,(IF($A$8=Nutrients!$B$77,Nutrients!$DX$77,Nutrients!$DX$78)))))*AR$8))","v":210.07210897674861},{"$f":"(SUMPRODUCT(AS$9:AS$229,Nutrients!$DX$8:$DX$228)+(IF($A$7=Nutrients!$B$8,Nutrients!$DX$8,Nutrients!$DX$9)*AS$7)+(((IF($A$8=Nutrients!$B$79,Nutrients!$DX$79,(IF($A$8=Nutrients!$B$77,Nutrients!$DX$77,Nutrients!$DX$78)))))*AS$8))","v":201.21247565089718},{"$f":"(SUMPRODUCT(AT$9:AT$229,Nutrients!$DX$8:$DX$228)+(IF($A$7=Nutrients!$B$8,Nutrients!$DX$8,Nutrients!$DX$9)*AT$7)+(((IF($A$8=Nutrients!$B$79,Nutrients!$DX$79,(IF($A$8=Nutrients!$B$77,Nutrients!$DX$77,Nutrients!$DX$78)))))*AT$8))","v":193.42201141093267},{"$f":"(SUMPRODUCT(AU$9:AU$229,Nutrients!$DX$8:$DX$228)+(IF($A$7=Nutrients!$B$8,Nutrients!$DX$8,Nutrients!$DX$9)*AU$7)+(((IF($A$8=Nutrients!$B$79,Nutrients!$DX$79,(IF($A$8=Nutrients!$B$77,Nutrients!$DX$77,Nutrients!$DX$78)))))*AU$8))","v":187.45575724063724},{"$f":"(SUMPRODUCT(AV$9:AV$229,Nutrients!$DX$8:$DX$228)+(IF($A$7=Nutrients!$B$8,Nutrients!$DX$8,Nutrients!$DX$9)*AV$7)+(((IF($A$8=Nutrients!$B$79,Nutrients!$DX$79,(IF($A$8=Nutrients!$B$77,Nutrients!$DX$77,Nutrients!$DX$78)))))*AV$8))","v":183.15658702065019},{"$f":"(SUMPRODUCT(AW$9:AW$229,Nutrients!$DX$8:$DX$228)+(IF($A$7=Nutrients!$B$8,Nutrients!$DX$8,Nutrients!$DX$9)*AW$7)+(((IF($A$8=Nutrients!$B$79,Nutrients!$DX$79,(IF($A$8=Nutrients!$B$77,Nutrients!$DX$77,Nutrients!$DX$78)))))*AW$8))","v":181.28700684133298}]
["Cost with processing",{"$f":"IF(B$5=\"\",\"\",B263+Nutrients!$DV$5)","v":231.06090724554412},{"$f":"IF(C$5=\"\",\"\",C263+Nutrients!$DV$5)","v":222.20700601537649},{"$f":"IF(D$5=\"\",\"\",D263+Nutrients!$DV$5)","v":213.64110105420281},{"$f":"IF(E$5=\"\",\"\",E263+Nutrients!$DV$5)","v":206.82283976807454},{"$f":"IF(F$5=\"\",\"\",F263+Nutrients!$DV$5)","v":201.69608954240206},{"$f":"IF(G$5=\"\",\"\",G263+Nutrients!$DV$5)","v":199.52702006837634},null,{"$f":"IF(I$5=\"\",\"\",I263+Nutrients!$DV$5)","v":229.40530790410384},{"$f":"IF(J$5=\"\",\"\",J263+Nutrients!$DV$5)","v":220.63316975744857},{"$f":"IF(K$5=\"\",\"\",K263+Nutrients!$DV$5)","v":212.15114173826777},{"$f":"IF(L$5=\"\",\"\",L263+Nutrients!$DV$5)","v":205.32236120947073},{"$f":"IF(M$5=\"\",\"\",M263+Nutrients!$DV$5)","v":200.20863229303959},{"$f":"IF(N$5=\"\",\"\",N263+Nutrients!$DV$5)","v":198.05592010163232},null,{"$f":"IF(P$5=\"\",\"\",P263+Nutrients!$DV$5)","v":227.90391279015165},{"$f":"IF(Q$5=\"\",\"\",Q263+Nutrients!$DV$5)","v":219.19770981149094},{"$f":"IF(R$5=\"\",\"\",R263+Nutrients!$DV$5)","v":210.75328011012607},{"$f":"IF(S$5=\"\",\"\",S263+Nutrients!$DV$5)","v":203.89958714243249},{"$f":"IF(T$5=\"\",\"\",T263+Nutrients!$DV$5)","v":199.03081494975703},{"$f":"IF(U$5=\"\",\"\",U263+Nutrients!$DV$5)","v":196.95320967815462},null,{"$f":"IF(W$5=\"\",\"\",W263+Nutrients!$DV$5)","v":226.40349886816551},{"$f":"IF(X$5=\"\",\"\",X263+Nutrients!$DV$5)","v":217.7477720219419},{"$f":"IF(Y$5=\"\",\"\",Y263+Nutrients!$DV$5)","v":209.2912899859914},{"$f":"IF(Z$5=\"\",\"\",Z263+Nutrients!$DV$5)","v":202.56581634823459},{"$f":"IF(AA$5=\"\",\"\",AA263+Nutrients!$DV$5)","v":197.9168515446643},{"$f":"IF(AB$5=\"\",\"\",AB263+Nutrients!$DV$5)","v":195.91027198287861},null,{"$f":"IF(AD$5=\"\",\"\",AD263+Nutrients!$DV$5)","v":224.89637683902419},{"$f":"IF(AE$5=\"\",\"\",AE263+Nutrients!$DV$5)","v":216.22095834209978},{"$f":"IF(AF$5=\"\",\"\",AF263+Nutrients!$DV$5)","v":207.7848017149559},{"$f":"IF(AG$5=\"\",\"\",AG263+Nutrients!$DV$5)","v":201.42033405159225},{"$f":"IF(AH$5=\"\",\"\",AH263+Nutrients!$DV$5)","v":196.92910240410902},{"$f":"IF(AI$5=\"\",\"\",AI263+Nutrients!$DV$5)","v":195.02469893218796},null,{"$f":"IF(AK$5=\"\",\"\",AK263+Nutrients!$DV$5)","v":223.69350145353982},{"$f":"IF(AL$5=\"\",\"\",AL263+Nutrients!$DV$5)","v":214.71679305374616},{"$f":"IF(AM$5=\"\",\"\",AM263+Nutrients!$DV$5)","v":206.59640481753874},{"$f":"IF(AN$5=\"\",\"\",AN263+Nutrients!$DV$5)","v":200.35209505839322},{"$f":"IF(AO$5=\"\",\"\",AO263+Nutrients!$DV$5)","v":196.05845523199278},{"$f":"IF(AP$5=\"\",\"\",AP263+Nutrients!$DV$5)","v":194.17245199600714},null,{"$f":"IF(AR$5=\"\",\"\",AR263+Nutrients!$DV$5)","v":222.07210897674861},{"$f":"IF(AS$5=\"\",\"\",AS263+Nutrients!$DV$5)","v":213.21247565089718},{"$f":"IF(AT$5=\"\",\"\",AT263+Nutrients!$DV$5)","v":205.42201141093267},{"$f":"IF(AU$5=\"\",\"\",AU263+Nutrients!$DV$5)","v":199.45575724063724},{"$f":"IF(AV$5=\"\",\"\",AV263+Nutrients!$DV$5)","v":195.15658702065019},{"$f":"IF(AW$5=\"\",\"\",AW263+Nutrients!$DV$5)","v":193.28700684133298}]
["Feed budget, lb/pig- adjusted for gain ",64.919933148666814,74.047956546633458,95.803407561009578,107.72572383590483,119.6480401107998,148.85493879698549,{"$f":"SUM(B265:G265)","v":611},{"$f":"($B$265*$B$250/I250)-($B$265*$B$250/I250)/(I6-I5)*I268","v":65.032519195989309},{"$f":"($C$265*$C$250/J250)-($C$265*$C$250/J250)/(J6-J5)*J268","v":74.200606618390609},{"$f":"($D$265*$D$250/K250)-($D$265*$D$250/K250)/(K6-K5)*K268","v":95.95910692241938},{"$f":"($E$265*$E$250/L250)-($E$265*$E$250/L250)/(L6-L5)*L268","v":107.7240432979805},{"$f":"($F$265*$F$250/M250)-($F$265*$F$250/M250)/(M6-M5)*M268","v":119.31268409455409},{"$f":"($G$265*$G$250/N250)-($G$265*$G$250/N250)/(N6-N5)*N268","v":147.74375242973593},{"$f":"SUM(I265:N265)","v":609.97271255906981},{"$f":"($B$265*$B$250/P250)-($B$265*$B$250/P250)/(P6-P5)*P268","v":65.232497884481873},{"$f":"($C$265*$C$250/Q250)-($C$265*$C$250/Q250)/(Q6-Q5)*Q268","v":74.439250247791989},{"$f":"($D$265*$D$250/R250)-($D$265*$D$250/R250)/(R6-R5)*R268","v":96.208377628864696},{"$f":"($E$265*$E$250/S250)-($E$265*$E$250/S250)/(S6-S5)*S268","v":107.78376362874182},{"$f":"($F$265*$F$250/T250)-($F$265*$F$250/T250)/(T6-T5)*T268","v":119.05468922829392},{"$f":"($G$265*$G$250/U250)-($G$265*$G$250/U250)/(U6-U5)*U268","v":146.68895349465242},{"$f":"SUM(P265:U265)","v":609.40753211282674},{"$f":"($B$265*$B$250/W250)-($B$265*$B$250/W250)/(W6-W5)*W268","v":65.493532077255878},{"$f":"($C$265*$C$250/X250)-($C$265*$C$250/X250)/(X6-X5)*X268","v":74.730137171165069},{"$f":"($D$265*$D$250/Y250)-($D$265*$D$250/Y250)/(Y6-Y5)*Y268","v":96.466015113214013},{"$f":"($E$265*$E$250/Z250)-($E$265*$E$250/Z250)/(Z6-Z5)*Z268","v":107.90695982102051},{"$f":"($F$265*$F$250/AA250)-($F$265*$F$250/AA250)/(AA6-AA5)*AA268","v":118.84217022947654},{"$f":"($G$265*$G$250/AB250)-($G$265*$G$250/AB250)/(AB6-AB5)*AB268","v":145.6890774200551},{"$f":"SUM(W265:AB265)","v":609.12789183218717},{"$f":"($B$265*$B$250/AD250)-($B$265*$B$250/AD250)/(AD6-AD5)*AD268","v":65.818852667650717},{"$f":"($C$265*$C$250/AE250)-($C$265*$C$250/AE250)/(AE6-AE5)*AE268","v":75.056010732983822},{"$f":"($D$265*$D$250/AF250)-($D$265*$D$250/AF250)/(AF6-AF5)*AF268","v":96.796749211020355},{"$f":"($E$265*$E$250/AG250)-($E$265*$E$250/AG250)/(AG6-AG5)*AG268","v":108.07840340827386},{"$f":"($F$265*$F$250/AH250)-($F$265*$F$250/AH250)/(AH6-AH5)*AH268","v":118.71109466847821},{"$f":"($G$265*$G$250/AI250)-($G$265*$G$250/AI250)/(AI6-AI5)*AI268","v":144.77697071649334},{"$f":"SUM(AD265:AI265)","v":609.2380814049003},{"$f":"($B$265*$B$250/AK250)-($B$265*$B$250/AK250)/(AK6-AK5)*AK268","v":66.203814514362591},{"$f":"($C$265*$C$250/AL250)-($C$265*$C$250/AL250)/(AL6-AL5)*AL268","v":75.449325167069418},{"$f":"($D$265*$D$250/AM250)-($D$265*$D$250/AM250)/(AM6-AM5)*AM268","v":97.190319105721485},{"$f":"($E$265*$E$250/AN250)-($E$265*$E$250/AN250)/(AN6-AN5)*AN268","v":108.33386077147181},{"$f":"($F$265*$F$250/AO250)-($F$265*$F$250/AO250)/(AO6-AO5)*AO268","v":118.65324959714131},{"$f":"($G$265*$G$250/AP250)-($G$265*$G$250/AP250)/(AP6-AP5)*AP268","v":143.91814855671433},{"$f":"SUM(AK265:AP265)","v":609.74871771248093},{"$f":"($B$265*$B$250/AR250)-($B$265*$B$250/AR250)/(AR6-AR5)*AR268","v":66.656720804704733},{"$f":"($C$265*$C$250/AS250)-($C$265*$C$250/AS250)/(AS6-AS5)*AS268","v":75.906488992718167},{"$f":"($D$265*$D$250/AT250)-($D$265*$D$250/AT250)/(AT6-AT5)*AT268","v":97.654226308510644},{"$f":"($E$265*$E$250/AU250)-($E$265*$E$250/AU250)/(AU6-AU5)*AU268","v":108.68624755505653},{"$f":"($F$265*$F$250/AV250)-($F$265*$F$250/AV250)/(AV6-AV5)*AV268","v":118.65480656193117},{"$f":"($G$265*$G$250/AW250)-($G$265*$G$250/AW250)/(AW6-AW5)*AW268","v":143.11808327144911},{"$f":"SUM(AR265:AW265)","v":610.67657349437036}]
["Feed cost, $/pig- adjusted for gain ",{"$f":"IF(B$265=\"\",\"\",B265*B264/2000)","v":7.5002293258255142},{"$f":"IF(C$265=\"\",\"\",C265*C264/2000)","v":8.2269873628920589},10.233772738039312,11.140070059906597,12.066270905880396,14.85029118031153,null,{"$f":"IF(I$265=\"\",\"\",I265*I264/2000)","v":7.4594025449677357},8.1855575180705173,10.178917046887893,11.059077464486309,11.943714648891087,14.630762413369563,null,{"$f":"IF(P$265=\"\",\"\",P265*P264/2000)","v":7.433370754474355},8.1584565872002308,10.138115579678454,10.988532452278994,11.8477759103487,14.445430107550676,null,{"$f":"IF(W$265=\"\",\"\",W265*W264/2000)","v":7.4139824077625818},8.1361604359576489,10.09474837142635,10.929130702900585,11.760434081276514,14.270993391148826,null,{"$f":"IF(AD$265=\"\",\"\",AD265*AD264/2000)","v":7.4012107463280934},8.1143412850103438,10.05644667073209,10.884594059128633,11.688834659236312,14.117542563149152,null,{"$f":"IF(AK$265=\"\",\"\",AK265*AK264/2000)","v":7.4046815391492249},8.1001185689712223,10.039585255155703,10.852457985664326,11.631486412135796,13.972469895991418,null,{"$f":"IF(AR$265=\"\",\"\",AR265*AR264/2000)","v":7.4012992832875479},8.0921052180525077,10.030163795536337,10.83904890386858,11.578133541110969,13.831432970203522]
["ADG, lb",{"$f":"B342*0.00220462","v":1.669925476729073},1.9189525389204525,2.0860530832674886,2.166293944697927,2.1531120876854954,2.0276943879552971,null,{"$f":"I342*0.00220462","v":1.6591780812180643},1.9071892211614505,2.0723635687407453,2.1490544023084666,2.1299520650476746,1.9966303413531519,null,{"$f":"P342*0.00220462","v":1.6504251168768864},1.8974557689243226,2.0605306952627145,2.1325794627644439,2.1079897100869229,1.966217847474619,null,{"$f":"W342*0.00220462","v":1.6431484481411012},1.8889647015971551,2.0489589584630297,2.1173781721555001,2.0869663426163418,1.9363860793082679,null,{"$f":"AD342*0.00220462","v":1.6373504413758493},1.8813164924669157,2.0387607903001861,2.1031417331560309,2.0661717021000539,1.9066379126188082,null,{"$f":"AK342*0.00220462","v":1.6324882419497464},1.8751960330358797,2.0299139403546049,2.089526527130809,2.0460852264712268,1.8778146022303643,null,{"$f":"AR342*0.00220462","v":1.629681985394005},1.8704612538811027,2.0223326567851498,2.0767390460120363,2.0270241248866854,1.8499525472100229]
["Change in gain, lb",null,null,null,null,null,null,null,{"$f":"($B$6-$B$5)-(($B$6-$B$5)/$B$267)*I267","v":0.22525486803284878},{"$f":"($C$6-$C$5)-(($C$6-$C$5)/$C$267)*J267","v":0.21455252968199545},{"$f":"($D$6-$D$5)-(($D$6-$D$5)/$D$267)*K267","v":0.26249599564936688},{"$f":"($E$6-$E$5)-(($E$6-$E$5)/$E$267)*L267","v":0.31832323460358936},{"$f":"($F$6-$F$5)-(($F$6-$F$5)/$F$267)*M267","v":0.43026134626770585},{"$f":"($G$6-$G$5)-(($G$6-$G$5)/$G$267)*N267","v":0.68939486413736262},null,{"$f":"($B$6-$B$5)-(($B$6-$B$5)/$B$267)*P267","v":0.40870841503861044},{"$f":"($C$6-$C$5)-(($C$6-$C$5)/$C$267)*Q267","v":0.39208210448384051},{"$f":"($D$6-$D$5)-(($D$6-$D$5)/$D$267)*R267","v":0.48939095959719481},{"$f":"($E$6-$E$5)-(($E$6-$E$5)/$E$267)*S267","v":0.62252829568213031},{"$f":"($F$6-$F$5)-(($F$6-$F$5)/$F$267)*T267","v":0.83827270965864642},{"$f":"($G$6-$G$5)-(($G$6-$G$5)/$G$267)*U267","v":1.3643300184009277},null,{"$f":"($B$6-$B$5)-(($B$6-$B$5)/$B$267)*W267","v":0.56122025422040167},{"$f":"($C$6-$C$5)-(($C$6-$C$5)/$C$267)*X267","v":0.54695167547284029},{"$f":"($D$6-$D$5)-(($D$6-$D$5)/$D$267)*Y267","v":0.71127863623406284},{"$f":"($E$6-$E$5)-(($E$6-$E$5)/$E$267)*Z267","v":0.90321579233787475},{"$f":"($F$6-$F$5)-(($F$6-$F$5)/$F$267)*AA267","v":1.2288397886476474},{"$f":"($G$6-$G$5)-(($G$6-$G$5)/$G$267)*AB267","v":2.0263773049446812},null,{"$f":"($B$6-$B$5)-(($B$6-$B$5)/$B$267)*AD267","v":0.68274078888599377},{"$f":"($C$6-$C$5)-(($C$6-$C$5)/$C$267)*AE267","v":0.68644825713867874},{"$f":"($D$6-$D$5)-(($D$6-$D$5)/$D$267)*AF267","v":0.90682817894981582},{"$f":"($E$6-$E$5)-(($E$6-$E$5)/$E$267)*AG267","v":1.1660875791387966},{"$f":"($F$6-$F$5)-(($F$6-$F$5)/$F$267)*AH267","v":1.6151576331336983},{"$f":"($G$6-$G$5)-(($G$6-$G$5)/$G$267)*AI267","v":2.6865692495382518},null,{"$f":"($B$6-$B$5)-(($B$6-$B$5)/$B$267)*AK267","v":0.78464771963534474},{"$f":"($C$6-$C$5)-(($C$6-$C$5)/$C$267)*AL267","v":0.79808003319436693},{"$f":"($D$6-$D$5)-(($D$6-$D$5)/$D$267)*AM267","v":1.0764662388159394},{"$f":"($E$6-$E$5)-(($E$6-$E$5)/$E$267)*AN267","v":1.4174884762062661},{"$f":"($F$6-$F$5)-(($F$6-$F$5)/$F$267)*AO267","v":1.9883193601744722},{"$f":"($G$6-$G$5)-(($G$6-$G$5)/$G$267)*AP267","v":3.3262361417408357},null,{"$f":"($B$6-$B$5)-(($B$6-$B$5)/$B$267)*AR267","v":0.84346410444991449},{"$f":"($C$6-$C$5)-(($C$6-$C$5)/$C$267)*AS267","v":0.88443822447637643},{"$f":"($D$6-$D$5)-(($D$6-$D$5)/$D$267)*AT267","v":1.2218371045962115},{"$f":"($E$6-$E$5)-(($E$6-$E$5)/$E$267)*AU267","v":1.653605668890485},{"$f":"($F$6-$F$5)-(($F$6-$F$5)/$F$267)*AV267","v":2.3424319341284132},{"$f":"($G$6-$G$5)-(($G$6-$G$5)/$G$267)*AW267","v":3.9445701882140156}]
["Feed budget, lb/pig- adjusted for energy intake ",64.919933148666814,74.047956546633458,95.803407561009578,107.72572383590483,119.6480401107998,148.85493879698549,{"$f":"SUM(B269:G269)","v":611},{"$f":"($B$269*$B$250/I250)","v":65.453770062781999},{"$f":"($C$269*$C$250/J250)","v":74.658267192327415},{"$f":"($D$269*$D$250/K250)","v":96.592988741228808},{"$f":"($E$269*$E$250/L250)","v":108.58819695030532},{"$f":"($F$269*$F$250/M250)","v":120.61002994094861},{"$f":"($G$269*$G$250/N250)","v":150.04238463801076},{"$f":"SUM(I269:N269)","v":615.94563752560293},{"$f":"($B$269*$B$250/P250)","v":66.003243051770369},{"$f":"($C$269*$C$250/Q250)","v":75.282591877920368},{"$f":"($D$269*$D$250/R250)","v":97.400045168105422},{"$f":"($E$269*$E$250/S250)","v":109.48774409701167},{"$f":"($F$269*$F$250/T250)","v":121.60310330096901},{"$f":"($G$269*$G$250/U250)","v":151.27538800350646},{"$f":"SUM(P269:U269)","v":621.05211549928322},{"$f":"($B$269*$B$250/W250)","v":66.56082589525748},{"$f":"($C$269*$C$250/X250)","v":75.916498776938738},{"$f":"($D$269*$D$250/Y250)","v":98.212425108015751},{"$f":"($E$269*$E$250/Z250)","v":110.39983160545779},{"$f":"($F$269*$F$250/AA250)","v":122.60883562073963},{"$f":"($G$269*$G$250/AB250)","v":152.55889712683762},{"$f":"SUM(W269:AB269)","v":626.25731413324706},{"$f":"($B$269*$B$250/AD250)","v":67.128316664103252},{"$f":"($C$269*$C$250/AE250)","v":76.557518596160861},{"$f":"($D$269*$D$250/AF250)","v":99.042103469229374},{"$f":"($E$269*$E$250/AG250)","v":111.32373399515129},{"$f":"($F$269*$F$250/AH250)","v":123.70622083986915},{"$f":"($G$269*$G$250/AI250)","v":153.96916692157149},{"$f":"SUM(AD269:AI269)","v":631.72706048608541},{"$f":"($B$269*$B$250/AK250)","v":67.722041527318609},{"$f":"($C$269*$C$250/AL250)","v":77.209887146989502},{"$f":"($D$269*$D$250/AM250)","v":99.878207052868504},{"$f":"($E$269*$E$250/AN250)","v":112.31395416512748},{"$f":"($F$269*$F$250/AO250)","v":124.85977741570957},{"$f":"($G$269*$G$250/AP250)","v":155.40512988170201},{"$f":"SUM(AK269:AP269)","v":637.38899718971561},{"$f":"($B$269*$B$250/AR250)","v":68.302746955923212},{"$f":"($C$269*$C$250/AS250)","v":77.874347555115378},{"$f":"($D$269*$D$250/AT250)","v":100.73115281083642},{"$f":"($E$269*$E$250/AU250)","v":113.37310790327106},{"$f":"($F$269*$F$250/AV250)","v":126.03554892804243},{"$f":"($G$269*$G$250/AW250)","v":156.86874493191539},{"$f":"SUM(AR269:AW269)","v":643.18564908510393}]
["Feed cost, $/pig- adjusted for energy intake",{"$f":"B269*B264/2000","v":7.5002293258255142},8.2269873628920589,10.233772738039312,11.140070059906597,12.066270905880396,14.85029118031153,null,{"$f":"I269*I264/2000","v":7.5077211373684598},8.2360450696208645,10.246156422681668,11.147792498657868,12.073584567649938,14.858391271862121,null,{"$f":"P269*P264/2000","v":7.5211986741689287},8.2508858641566469,10.263689501026327,11.16225290926849,12.101382375205676,14.897086606299403,null,{"$f":"W269*W264/2000","v":7.5348019351205435},8.2653242341924429,10.277502571754594,11.181616006933595,12.133177358807036,14.943927514763377,null,{"$f":"AD269*AD264/2000","v":7.5484576005297557},8.276670019577514,10.289721915392985,11.211431844586984,12.180677515899959,15.013895211859635,null,{"$f":"AK269*AK264/2000","v":7.5744902974139654},8.2891296801216203,10.317239248372188,11.251168010637821,12.239907540367239,15.08769756094402,null,{"$f":"AR269*AR264/2000","v":7.5840675327035312},8.3018912159622698,10.346198011072021,11.306459543785703,12.298333786035464,15.160345087423224]
[null,null,null,null,null,null,null,null,null,null,null,null,null,null,null,{"$f":"B266-P266","v":6.6858571351159135E-2},6.8530775691828083E-2,9.5657158360857863E-2,0.15153760762760271,0.21849499553169593,0.4048610727608537]
["Targets"]
["- SID Ile:Lys",0.56000000000000005,0.56000000000000005,0.56000000000000005,0.56000000000000005,0.56000000000000005,0.56000000000000005,null,0.56000000000000005,0.56000000000000005,0.56000000000000005,0.56000000000000005,0.56000000000000005,0.56000000000000005,null,0.56000000000000005,0.56000000000000005,0.56000000000000005,0.56000000000000005,0.56000000000000005,0.56000000000000005,null,0.56000000000000005,0.56000000000000005,0.56000000000000005,0.56000000000000005,0.56000000000000005,0.56000000000000005,null,0.56000000000000005,0.56000000000000005,0.56000000000000005,0.56000000000000005,0.56000000000000005,0.56000000000000005,null,0.56000000000000005,0.56000000000000005,0.56000000000000005,0.56000000000000005,0.56000000000000005,0.56000000000000005,null,0.56000000000000005,0.56000000000000005,0.56000000000000005,0.56000000000000005,0.56000000000000005,0.56000000000000005]
["- SID Leu:Lys"]
["- SID Met:Lys",{"$f":" 0.000000416*((B5+B6)/2)^2 - 0.000036654*((B5+B6)/2) + 0.280606061","v":0.28002731600000003},0.281219626,0.28362810100000002,0.28748674100000005,0.29267658100000005,0.29964938600000002,null,{"$f":" 0.000000416*((I5+I6)/2)^2 - 0.000036654*((I5+I6)/2) + 0.280606061","v":0.28002731600000003},0.281219626,0.28362810100000002,0.28748674100000005,0.29267658100000005,0.29964938600000002,null,{"$f":" 0.000000416*((P5+P6)/2)^2 - 0.000036654*((P5+P6)/2) + 0.280606061","v":0.28002731600000003},0.281219626,0.28362810100000002,0.28748674100000005,0.29267658100000005,0.29964938600000002,null,{"$f":" 0.000000416*((W5+W6)/2)^2 - 0.000036654*((W5+W6)/2) + 0.280606061","v":0.28002731600000003},0.281219626,0.28362810100000002,0.28748674100000005,0.29267658100000005,0.29964938600000002,null,{"$f":" 0.000000416*((AD5+AD6)/2)^2 - 0.000036654*((AD5+AD6)/2) + 0.280606061","v":0.28002731600000003},0.281219626,0.28362810100000002,0.28748674100000005,0.29267658100000005,0.29964938600000002,null,{"$f":" 0.000000416*((AK5+AK6)/2)^2 - 0.000036654*((AK5+AK6)/2) + 0.280606061","v":0.28002731600000003},0.281219626,0.28362810100000002,0.28748674100000005,0.29267658100000005,0.29964938600000002,null,{"$f":" 0.000000416*((AR5+AR6)/2)^2 - 0.000036654*((AR5+AR6)/2) + 0.280606061","v":0.28002731600000003},0.281219626,0.28362810100000002,0.28748674100000005,0.29267658100000005,0.29964938600000002]
["- SID Met & Cys:Lys",0.55900000000000005,0.55900000000000005,0.55900000000000005,0.56899999999999995,0.56899999999999995,0.57899999999999996,null,0.55900000000000005,0.55900000000000005,0.55900000000000005,0.56899999999999995,0.56899999999999995,0.57899999999999996,null,0.55900000000000005,0.55900000000000005,0.55900000000000005,0.56899999999999995,0.56899999999999995,0.57899999999999996,null,0.55900000000000005,0.55900000000000005,0.55900000000000005,0.56899999999999995,0.56899999999999995,0.57899999999999996,null,0.55900000000000005,0.55900000000000005,0.55900000000000005,0.56899999999999995,0.56899999999999995,0.57899999999999996,null,0.55900000000000005,0.55900000000000005,0.55900000000000005,0.56899999999999995,0.56899999999999995,0.57899999999999996,null,0.55900000000000005,0.55900000000000005,0.55900000000000005,0.56899999999999995,0.56899999999999995,0.57899999999999996]
["- SID Thr:Lys",0.61899999999999999,0.61899999999999999,0.61899999999999999,0.629,0.629,0.63900000000000001,null,0.61899999999999999,0.61899999999999999,0.61899999999999999,0.629,0.629,0.63900000000000001,null,0.61899999999999999,0.61899999999999999,0.61899999999999999,0.629,0.629,0.63900000000000001,null,0.61899999999999999,0.61899999999999999,0.61899999999999999,0.629,0.629,0.63900000000000001,null,0.61899999999999999,0.61899999999999999,0.61899999999999999,0.629,0.629,0.63900000000000001,null,0.61899999999999999,0.61899999999999999,0.61899999999999999,0.629,0.629,0.63900000000000001,null,0.61899999999999999,0.61899999999999999,0.61899999999999999,0.629,0.629,0.63900000000000001]
["- SID Trp:Lys",0.189,0.189,0.189,0.189,0.189,0.189,null,0.189,0.189,0.189,0.189,0.189,0.189,null,0.189,0.189,0.189,0.189,0.189,0.189,null,0.189,0.189,0.189,0.189,0.189,0.189,null,0.189,0.189,0.189,0.189,0.189,0.189,null,0.189,0.189,0.189,0.189,0.189,0.189,null,0.189,0.189,0.189,0.189,0.189,0.189]
["- SID Val:Lys",0.67900000000000005,0.67900000000000005,0.67900000000000005,0.67900000000000005,0.67900000000000005,0.67900000000000005,null,0.67900000000000005,0.67900000000000005,0.67900000000000005,0.67900000000000005,0.67900000000000005,0.67900000000000005,null,0.67900000000000005,0.67900000000000005,0.67900000000000005,0.67900000000000005,0.67900000000000005,0.67900000000000005,null,0.67900000000000005,0.67900000000000005,0.67900000000000005,0.67900000000000005,0.67900000000000005,0.67900000000000005,null,0.67900000000000005,0.67900000000000005,0.67900000000000005,0.67900000000000005,0.67900000000000005,0.67900000000000005,null,0.67900000000000005,0.67900000000000005,0.67900000000000005,0.67900000000000005,0.67900000000000005,0.67900000000000005,null,0.67900000000000005,0.67900000000000005,0.67900000000000005,0.67900000000000005,0.67900000000000005,0.67900000000000005]
["- SID His:Lys",0.31,0.31,0.31,0.31,0.31,0.31,null,0.31,0.31,0.31,0.31,0.31,0.31,null,0.31,0.31,0.31,0.31,0.31,0.31,null,0.31,0.31,0.31,0.31,0.31,0.31,null,0.31,0.31,0.31,0.31,0.31,0.31,null,0.31,0.31,0.31,0.31,0.31,0.31,null,0.31,0.31,0.31,0.31,0.31,0.31]
["- Avail P:ME, g/mcal (terminal)",{"$f":"IF(AVERAGE(B5:B6)<51,0.000025*((B6+B5)/2)^2 - 0.01005*((B6+B5)/2) + 1.5955,(0.00000649518*((B5+B6)/2)^2 - 0.00338103746*((B5+B6)/2) + 1.049852))","v":0.85122563532500006},0.77153564522499996,0.70381228360000003,0.65170908920000004,0.62039047080000009,0.60988816362500009,null,{"$f":"IF(AVERAGE(I5:I6)<51,0.000025*((I6+I5)/2)^2 - 0.01005*((I6+I5)/2) + 1.5955,(0.00000649518*((I5+I6)/2)^2 - 0.00338103746*((I5+I6)/2) + 1.049852))","v":0.85122563532500006},0.77153564522499996,0.70381228360000003,0.65170908920000004,0.62039047080000009,0.60988816362500009,null,{"$f":"IF(AVERAGE(P5:P6)<51,0.000025*((P6+P5)/2)^2 - 0.01005*((P6+P5)/2) + 1.5955,(0.00000649518*((P5+P6)/2)^2 - 0.00338103746*((P5+P6)/2) + 1.049852))","v":0.85122563532500006},0.77153564522499996,0.70381228360000003,0.65170908920000004,0.62039047080000009,0.60988816362500009,null,{"$f":"IF(AVERAGE(W5:W6)<51,0.000025*((W6+W5)/2)^2 - 0.01005*((W6+W5)/2) + 1.5955,(0.00000649518*((W5+W6)/2)^2 - 0.00338103746*((W5+W6)/2) + 1.049852))","v":0.85122563532500006},0.77153564522499996,0.70381228360000003,0.65170908920000004,0.62039047080000009,0.60988816362500009,null,{"$f":"IF(AVERAGE(AD5:AD6)<51,0.000025*((AD6+AD5)/2)^2 - 0.01005*((AD6+AD5)/2) + 1.5955,(0.00000649518*((AD5+AD6)/2)^2 - 0.00338103746*((AD5+AD6)/2) + 1.049852))","v":0.85122563532500006},0.77153564522499996,0.70381228360000003,0.65170908920000004,0.62039047080000009,0.60988816362500009,null,{"$f":"IF(AVERAGE(AK5:AK6)<51,0.000025*((AK6+AK5)/2)^2 - 0.01005*((AK6+AK5)/2) + 1.5955,(0.00000649518*((AK5+AK6)/2)^2 - 0.00338103746*((AK5+AK6)/2) + 1.049852))","v":0.85122563532500006},0.77153564522499996,0.70381228360000003,0.65170908920000004,0.62039047080000009,0.60988816362500009,null,{"$f":"IF(AVERAGE(AR5:AR6)<51,0.000025*((AR6+AR5)/2)^2 - 0.01005*((AR6+AR5)/2) + 1.5955,(0.00000649518*((AR5+AR6)/2)^2 - 0.00338103746*((AR5+AR6)/2) + 1.049852))","v":0.85122563532500006},0.77153564522499996,0.70381228360000003,0.65170908920000004,0.62039047080000009,0.60988816362500009]
["- Avail P:ME, g/mcal (Replacements)",{"$f":"IF(AVERAGE(B5:B6)<51,0.000025*((B6+B5)/2)^2 - 0.01005*((B6+B5)/2) + 1.5955,0.00000649518*((B6+B5)/2)^2 - 0.00338103746*((B6+B5)/2) + 1.3529)","v":1.154273635325},1.0745836452249999,1.0068602836,0.95475708920000002,0.92343847080000008,0.91293616362500007,null,{"$f":"IF(AVERAGE(I5:I6)<51,0.000025*((I6+I5)/2)^2 - 0.01005*((I6+I5)/2) + 1.5955,0.00000649518*((I6+I5)/2)^2 - 0.00338103746*((I6+I5)/2) + 1.3529)","v":1.154273635325},1.0745836452249999,1.0068602836,0.95475708920000002,0.92343847080000008,0.91293616362500007,null,{"$f":"IF(AVERAGE(P5:P6)<51,0.000025*((P6+P5)/2)^2 - 0.01005*((P6+P5)/2) + 1.5955,0.00000649518*((P6+P5)/2)^2 - 0.00338103746*((P6+P5)/2) + 1.3529)","v":1.154273635325},1.0745836452249999,1.0068602836,0.95475708920000002,0.92343847080000008,0.91293616362500007,null,{"$f":"IF(AVERAGE(W5:W6)<51,0.000025*((W6+W5)/2)^2 - 0.01005*((W6+W5)/2) + 1.5955,0.00000649518*((W6+W5)/2)^2 - 0.00338103746*((W6+W5)/2) + 1.3529)","v":1.154273635325},1.0745836452249999,1.0068602836,0.95475708920000002,0.92343847080000008,0.91293616362500007,null,{"$f":"IF(AVERAGE(AD5:AD6)<51,0.000025*((AD6+AD5)/2)^2 - 0.01005*((AD6+AD5)/2) + 1.5955,0.00000649518*((AD6+AD5)/2)^2 - 0.00338103746*((AD6+AD5)/2) + 1.3529)","v":1.154273635325},1.0745836452249999,1.0068602836,0.95475708920000002,0.92343847080000008,0.91293616362500007,null,{"$f":"IF(AVERAGE(AK5:AK6)<51,0.000025*((AK6+AK5)/2)^2 - 0.01005*((AK6+AK5)/2) + 1.5955,0.00000649518*((AK6+AK5)/2)^2 - 0.00338103746*((AK6+AK5)/2) + 1.3529)","v":1.154273635325},1.0745836452249999,1.0068602836,0.95475708920000002,0.92343847080000008,0.91293616362500007,null,{"$f":"IF(AVERAGE(AR5:AR6)<51,0.000025*((AR6+AR5)/2)^2 - 0.01005*((AR6+AR5)/2) + 1.5955,0.00000649518*((AR6+AR5)/2)^2 - 0.00338103746*((AR6+AR5)/2) + 1.3529)","v":1.154273635325},1.0745836452249999,1.0068602836,0.95475708920000002,0.92343847080000008,0.91293616362500007]
["- Available P, % (Terminal)",{"$f":"B281*(B246*2.2046)/10000","v":0.27996053561020928},0.25468658901444263,0.23309759512248635,0.21647481730659451,0.20653872384003844,0.20321869012127139,null,{"$f":"I281*(I246*2.2046)/10000","v":0.28060568881921844},0.25526169823566913,0.23361778591880025,0.21700058629976807,0.20702525787603795,0.20370884008830045,null,{"$f":"P281*(P246*2.2046)/10000","v":0.28123888075997322},0.25583410586261845,0.23413507094407504,0.21748090215842958,0.20749082359034124,0.20416857304250563,null,{"$f":"W281*(W246*2.2046)/10000","v":0.2818768260596401},0.25640950408866248,0.23466190302744136,0.21796833263403029,0.20796333079512369,0.20458887173470439,null,{"$f":"AD281*(AD246*2.2046)/10000","v":0.28251229502666036},0.25698638647591293,0.23518271159118695,0.21846278304608177,0.20831356042979868,0.20487467780338475,null,{"$f":"AK281*(AK246*2.2046)/10000","v":0.28312830561972274},0.25756481852584751,0.23572255398917272,0.21886244103394806,0.20860600417239569,0.20516126011642349,null,{"$f":"AR281*(AR246*2.2046)/10000","v":0.28377310343694417},0.25814064534285253,0.23625855024071338,0.21916963101843256,0.20889769173381964,0.20544707782011937]
["- STTD P, % (Terminal)",{"$f":" -0.096629122*LN(AVERAGE(B5:B6)/2.2046) + 0.7201091526","v":0.38948473530861316},0.34911934963648045,0.31899235830889017,0.29470806575817415,0.27531743264453717,0.25825045546730907,null,{"$f":" -0.096629122*LN(AVERAGE(I5:I6)/2.2046) + 0.7201091526","v":0.38948473530861316},0.34911934963648045,0.31899235830889017,0.29470806575817415,0.27531743264453717,0.25825045546730907,null,{"$f":" -0.096629122*LN(AVERAGE(P5:P6)/2.2046) + 0.7201091526","v":0.38948473530861316},0.34911934963648045,0.31899235830889017,0.29470806575817415,0.27531743264453717,0.25825045546730907,null,{"$f":" -0.096629122*LN(AVERAGE(W5:W6)/2.2046) + 0.7201091526","v":0.38948473530861316},0.34911934963648045,0.31899235830889017,0.29470806575817415,0.27531743264453717,0.25825045546730907,null,{"$f":" -0.096629122*LN(AVERAGE(AD5:AD6)/2.2046) + 0.7201091526","v":0.38948473530861316},0.34911934963648045,0.31899235830889017,0.29470806575817415,0.27531743264453717,0.25825045546730907,null,{"$f":" -0.096629122*LN(AVERAGE(AK5:AK6)/2.2046) + 0.7201091526","v":0.38948473530861316},0.34911934963648045,0.31899235830889017,0.29470806575817415,0.27531743264453717,0.25825045546730907,null,{"$f":" -0.096629122*LN(AVERAGE(AR5:AR6)/2.2046) + 0.7201091526","v":0.38948473530861316},0.34911934963648045,0.31899235830889017,0.29470806575817415,0.27531743264453717,0.25825045546730907]
["- Ca:P, Minimum",1,1,1,1,1,1,null,1,1,1,1,1,1,null,1,1,1,1,1,1,null,1,1,1,1,1,1,null,1,1,1,1,1,1,null,1,1,1,1,1,1,null,1,1,1,1,1,1]
["- Ca:P, Maximum",1.5,1.5,1.5,1.5,1.5,1.5,null,1.5,1.5,1.5,1.5,1.5,1.5,null,1.5,1.5,1.5,1.5,1.5,1.5,null,1.5,1.5,1.5,1.5,1.5,1.5,null,1.5,1.5,1.5,1.5,1.5,1.5,null,1.5,1.5,1.5,1.5,1.5,1.5,null,1.5,1.5,1.5,1.5,1.5,1.5]
["NRC Ca, %",{"$f":"-0.12264*LN(AVERAGE(B5:B6)/2.2046) + 1.07262","v":0.65299724345031629},0.60176619843647083,0.56352954534532851,0.53270834386095811,0.50809808976948001,0.48643697935376851,null,{"$f":"-0.12264*LN(AVERAGE(I5:I6)/2.2046) + 1.07262","v":0.65299724345031629},0.60176619843647083,0.56352954534532851,0.53270834386095811,0.50809808976948001,0.48643697935376851,null,{"$f":"-0.12264*LN(AVERAGE(P5:P6)/2.2046) + 1.07262","v":0.65299724345031629},0.60176619843647083,0.56352954534532851,0.53270834386095811,0.50809808976948001,0.48643697935376851,null,{"$f":"-0.12264*LN(AVERAGE(W5:W6)/2.2046) + 1.07262","v":0.65299724345031629},0.60176619843647083,0.56352954534532851,0.53270834386095811,0.50809808976948001,0.48643697935376851,null,{"$f":"-0.12264*LN(AVERAGE(AD5:AD6)/2.2046) + 1.07262","v":0.65299724345031629},0.60176619843647083,0.56352954534532851,0.53270834386095811,0.50809808976948001,0.48643697935376851,null,{"$f":"-0.12264*LN(AVERAGE(AK5:AK6)/2.2046) + 1.07262","v":0.65299724345031629},0.60176619843647083,0.56352954534532851,0.53270834386095811,0.50809808976948001,0.48643697935376851,null,{"$f":"-0.12264*LN(AVERAGE(AR5:AR6)/2.2046) + 1.07262","v":0.65299724345031629},0.60176619843647083,0.56352954534532851,0.53270834386095811,0.50809808976948001,0.48643697935376851]
["NRC STTD P, %",0.4,0.36,0.32,0.28999999999999998,0.27,0.26,null,0.4,0.36,0.32,0.28999999999999998,0.27,0.26,null,0.4,0.36,0.32,0.28999999999999998,0.27,0.26,null,0.4,0.36,0.32,0.28999999999999998,0.27,0.26,null,0.4,0.36,0.32,0.28999999999999998,0.27,0.26,null,0.4,0.36,0.32,0.28999999999999998,0.27,0.26,null,0.4,0.36,0.32,0.28999999999999998,0.27,0.26]
["NRC Ca:STTD P",1.74,1.74,1.79,1.79,1.77,1.77,null,1.74,1.74,1.79,1.79,1.77,1.77,null,1.74,1.74,1.79,1.79,1.77,1.77,null,1.74,1.74,1.79,1.79,1.77,1.77,null,1.74,1.74,1.79,1.79,1.77,1.77,null,1.74,1.74,1.79,1.79,1.77,1.77,null,1.74,1.74,1.79,1.79,1.77,1.77]
["- Lysine:CP, Maximum",7.3,8.3000000000000007,9.3000000000000007,10.3,11.3,11.3,null,7.3,8.3000000000000007,9.3000000000000007,10.3,11.3,11.3,null,7.3,8.3000000000000007,9.3000000000000007,10.3,11.3,11.3,null,7.3,8.3000000000000007,9.3000000000000007,10.3,11.3,11.3,null,7.3,8.3000000000000007,9.3000000000000007,10.3,11.3,11.3,null,7.3,8.3000000000000007,9.3000000000000007,10.3,11.3,11.3,null,7.3,8.3000000000000007,9.3000000000000007,10.3,11.3,11.3]
[]
["Required SID Lys:ME Ratio",{"$f":"IF(AVERAGE(B5:B6)<15,-0.0525*((B5+B6)/2) + 5.0586,IF(AVERAGE(B5:B6)<50,(-0.007855*((B5+B6)/2) + 4.1),(0.000025*((B5+B6)/2)^2 - 0.016*((B5+B6)/2)+ 4.53)*0.87))","v":3.1005984375},2.7428109375000003,2.4186000000000001,2.1402000000000005,1.9314000000000002,1.7858109375,null,{"$f":"IF(AVERAGE(I5:I6)<15,-0.0525*((I5+I6)/2) + 5.0586,IF(AVERAGE(I5:I6)<50,(-0.007855*((I5+I6)/2) + 4.1),(0.000025*((I5+I6)/2)^2 - 0.016*((I5+I6)/2)+ 4.53)*0.87))","v":3.1005984375},2.7428109375000003,2.4186000000000001,2.1402000000000005,1.9314000000000002,1.7858109375,null,{"$f":"IF(AVERAGE(P5:P6)<15,-0.0525*((P5+P6)/2) + 5.0586,IF(AVERAGE(P5:P6)<50,(-0.007855*((P5+P6)/2) + 4.1),(0.000025*((P5+P6)/2)^2 - 0.016*((P5+P6)/2)+ 4.53)*0.87))","v":3.1005984375},2.7428109375000003,2.4186000000000001,2.1402000000000005,1.9314000000000002,1.7858109375,null,{"$f":"IF(AVERAGE(W5:W6)<15,-0.0525*((W5+W6)/2) + 5.0586,IF(AVERAGE(W5:W6)<50,(-0.007855*((W5+W6)/2) + 4.1),(0.000025*((W5+W6)/2)^2 - 0.016*((W5+W6)/2)+ 4.53)*0.87))","v":3.1005984375},2.7428109375000003,2.4186000000000001,2.1402000000000005,1.9314000000000002,1.7858109375,null,{"$f":"IF(AVERAGE(AD5:AD6)<15,-0.0525*((AD5+AD6)/2) + 5.0586,IF(AVERAGE(AD5:AD6)<50,(-0.007855*((AD5+AD6)/2) + 4.1),(0.000025*((AD5+AD6)/2)^2 - 0.016*((AD5+AD6)/2)+ 4.53)*0.87))","v":3.1005984375},2.7428109375000003,2.4186000000000001,2.1402000000000005,1.9314000000000002,1.7858109375,null,{"$f":"IF(AVERAGE(AK5:AK6)<15,-0.0525*((AK5+AK6)/2) + 5.0586,IF(AVERAGE(AK5:AK6)<50,(-0.007855*((AK5+AK6)/2) + 4.1),(0.000025*((AK5+AK6)/2)^2 - 0.016*((AK5+AK6)/2)+ 4.53)*0.87))","v":3.1005984375},2.7428109375000003,2.4186000000000001,2.1402000000000005,1.9314000000000002,1.7858109375,null,{"$f":"IF(AVERAGE(AR5:AR6)<15,-0.0525*((AR5+AR6)/2) + 5.0586,IF(AVERAGE(AR5:AR6)<50,(-0.007855*((AR5+AR6)/2) + 4.1),(0.000025*((AR5+AR6)/2)^2 - 0.016*((AR5+AR6)/2)+ 4.53)*0.87))","v":3.1005984375},2.7428109375000003,2.4186000000000001,2.1402000000000005,1.9314000000000002,1.7858109375]
["Calculated SID Lysine Required, %",{"$f":"IF(B292=\"\",\"\",B246*2.2046*B292/10000)","v":1.0197592309861019},0.90541139130346093,0.80102302375224621,0.71089909850466104,0.6429964836665738,0.59504378206974184,null,{"$f":"IF(I292=\"\",\"\",I246*2.2046*I292/10000)","v":1.0221092084172188},0.90745590586607328,0.80281062179405571,0.71262571367366423,0.64451116173040313,0.59647898810314504,null,{"$f":"IF(P292=\"\",\"\",P246*2.2046*P292/10000)","v":1.0244156168013978},0.90949081625501227,0.80458823436388793,0.71420306163112368,0.64596056120207102,0.59782513021068995,null,{"$f":"IF(W292=\"\",\"\",W246*2.2046*W292/10000)","v":1.0267393393460114},0.91153635823039492,0.80639865470823346,0.71580377385252481,0.64743157092622106,0.5990558050234035,null,{"$f":"IF(AD292=\"\",\"\",AD246*2.2046*AD292/10000)","v":1.0290540418226002},0.91358717640217257,0.80818837566313362,0.7174275394089813,0.64852190604297266,0.59989267255731271,null,{"$f":"IF(AK292=\"\",\"\",AK246*2.2046*AK292/10000)","v":1.031297866964924},0.91564350362824465,0.81004350501252487,0.71874000848422681,0.64943234208452483,0.60073181300902556,null,{"$f":"IF(AR292=\"\",\"\",AR246*2.2046*AR292/10000)","v":1.0336465498776712},0.91769056924544823,0.811885417357881,0.71974881443106553,0.65034042398237824,0.60156871461137429]
[]
[]
["Other nutrients, calculated"]
["Other ingredients TID Lysine, %",{"$f":"SUMPRODUCT(B$9:B$229,Nutrients!$DA$8:$DA$228)/2000","v":0.24855419080599378},{"$f":"SUMPRODUCT(C$9:C$229,Nutrients!$DA$8:$DA$228)/2000","v":0.24598837503388346},{"$f":"SUMPRODUCT(D$9:D$229,Nutrients!$DA$8:$DA$228)/2000","v":0.24037497861787219},{"$f":"SUMPRODUCT(E$9:E$229,Nutrients!$DA$8:$DA$228)/2000","v":0.23743614434297908},{"$f":"SUMPRODUCT(F$9:F$229,Nutrients!$DA$8:$DA$228)/2000","v":0.23330638337529597},{"$f":"SUMPRODUCT(G$9:G$229,Nutrients!$DA$8:$DA$228)/2000","v":0.2281455840399364},null,{"$f":"SUMPRODUCT(I$9:I$229,Nutrients!$DA$8:$DA$228)/2000","v":0.29595419080599378},{"$f":"SUMPRODUCT(J$9:J$229,Nutrients!$DA$8:$DA$228)/2000","v":0.29338837503388343},{"$f":"SUMPRODUCT(K$9:K$229,Nutrients!$DA$8:$DA$228)/2000","v":0.28777497861787221},{"$f":"SUMPRODUCT(L$9:L$229,Nutrients!$DA$8:$DA$228)/2000","v":0.2848361443429791},{"$f":"SUMPRODUCT(M$9:M$229,Nutrients!$DA$8:$DA$228)/2000","v":0.28070638337529596},{"$f":"SUMPRODUCT(N$9:N$229,Nutrients!$DA$8:$DA$228)/2000","v":0.2755455840399364},null,{"$f":"SUMPRODUCT(P$9:P$229,Nutrients!$DA$8:$DA$228)/2000","v":0.34335419080599378},{"$f":"SUMPRODUCT(Q$9:Q$229,Nutrients!$DA$8:$DA$228)/2000","v":0.34078837503388343},{"$f":"SUMPRODUCT(R$9:R$229,Nutrients!$DA$8:$DA$228)/2000","v":0.33517497861787215},{"$f":"SUMPRODUCT(S$9:S$229,Nutrients!$DA$8:$DA$228)/2000","v":0.33223614434297905},{"$f":"SUMPRODUCT(T$9:T$229,Nutrients!$DA$8:$DA$228)/2000","v":0.32810638337529602},{"$f":"SUMPRODUCT(U$9:U$229,Nutrients!$DA$8:$DA$228)/2000","v":0.3229455840399364},null,{"$f":"SUMPRODUCT(W$9:W$229,Nutrients!$DA$8:$DA$228)/2000","v":0.39075419080599372},{"$f":"SUMPRODUCT(X$9:X$229,Nutrients!$DA$8:$DA$228)/2000","v":0.38818837503388348},{"$f":"SUMPRODUCT(Y$9:Y$229,Nutrients!$DA$8:$DA$228)/2000","v":0.38257497861787215},{"$f":"SUMPRODUCT(Z$9:Z$229,Nutrients!$DA$8:$DA$228)/2000","v":0.37963614434297904},{"$f":"SUMPRODUCT(AA$9:AA$229,Nutrients!$DA$8:$DA$228)/2000","v":0.37550638337529596},{"$f":"SUMPRODUCT(AB$9:AB$229,Nutrients!$DA$8:$DA$228)/2000","v":0.37034558403993639},null,{"$f":"SUMPRODUCT(AD$9:AD$229,Nutrients!$DA$8:$DA$228)/2000","v":0.43815419080599377},{"$f":"SUMPRODUCT(AE$9:AE$229,Nutrients!$DA$8:$DA$228)/2000","v":0.43558837503388342},{"$f":"SUMPRODUCT(AF$9:AF$229,Nutrients!$DA$8:$DA$228)/2000","v":0.42997497861787221},{"$f":"SUMPRODUCT(AG$9:AG$229,Nutrients!$DA$8:$DA$228)/2000","v":0.4270361443429791},{"$f":"SUMPRODUCT(AH$9:AH$229,Nutrients!$DA$8:$DA$228)/2000","v":0.42290638337529601},{"$f":"SUMPRODUCT(AI$9:AI$229,Nutrients!$DA$8:$DA$228)/2000","v":0.41774558403993639},null,{"$f":"SUMPRODUCT(AK$9:AK$229,Nutrients!$DA$8:$DA$228)/2000","v":0.48555419080599382},{"$f":"SUMPRODUCT(AL$9:AL$229,Nutrients!$DA$8:$DA$228)/2000","v":0.48298837503388348},{"$f":"SUMPRODUCT(AM$9:AM$229,Nutrients!$DA$8:$DA$228)/2000","v":0.4773749786178722},{"$f":"SUMPRODUCT(AN$9:AN$229,Nutrients!$DA$8:$DA$228)/2000","v":0.47443614434297909},{"$f":"SUMPRODUCT(AO$9:AO$229,Nutrients!$DA$8:$DA$228)/2000","v":0.47030638337529601},{"$f":"SUMPRODUCT(AP$9:AP$229,Nutrients!$DA$8:$DA$228)/2000","v":0.46514558403993644},null,{"$f":"SUMPRODUCT(AR$9:AR$229,Nutrients!$DA$8:$DA$228)/2000","v":0.53295419080599382},{"$f":"SUMPRODUCT(AS$9:AS$229,Nutrients!$DA$8:$DA$228)/2000","v":0.53038837503388359},{"$f":"SUMPRODUCT(AT$9:AT$229,Nutrients!$DA$8:$DA$228)/2000","v":0.52477497861787226},{"$f":"SUMPRODUCT(AU$9:AU$229,Nutrients!$DA$8:$DA$228)/2000","v":0.5218361443429792},{"$f":"SUMPRODUCT(AV$9:AV$229,Nutrients!$DA$8:$DA$228)/2000","v":0.51770638337529606},{"$f":"SUMPRODUCT(AW$9:AW$229,Nutrients!$DA$8:$DA$228)/2000","v":0.51254558403993644}]
["Total Lys:ME, g/mcal",{"$f":"IF(B$5=\"\",\"\",B245/(B246*2.2046)*10000)","v":4.0434845516419928},3.5693197159555714,3.1528272192975133,2.8088586731646132,2.5736429013234892,2.4458370650662657,null,{"$f":"IF(I$5=\"\",\"\",I245/(I246*2.2046)*10000)","v":4.0271406360078883},3.5591326910626186,3.1476655759679191,2.8065813543979083,2.5719151300986591,2.445610916540585,null,{"$f":"IF(P$5=\"\",\"\",P245/(P246*2.2046)*10000)","v":4.0173276330441174},3.5533707848128109,3.146039731372555,2.8042398766879515,2.5725341953128291,2.4475154461963284,null,{"$f":"IF(W$5=\"\",\"\",W245/(W246*2.2046)*10000)","v":4.0074901404035028},3.5476091242178702,3.1397711964568376,2.8029693822445583,2.5733656697428344,2.4493540361035251,null,{"$f":"IF(AD$5=\"\",\"\",AD245/(AD246*2.2046)*10000)","v":3.9973739997934223},3.5373999072847315,3.1346802614833331,2.8015258268850221,2.5739180471005292,2.4512745045549225,null,{"$f":"IF(AK$5=\"\",\"\",AK245/(AK246*2.2046)*10000)","v":4.0053826603255205},3.5284976325215869,3.1298595857027851,2.7999113454395377,2.5745594546283517,2.4531642516329306,null,{"$f":"IF(AR$5=\"\",\"\",AR245/(AR246*2.2046)*10000)","v":3.9884878297030588},3.5196966993008902,3.1259689793167209,2.7987690738800883,2.5752311596139394,2.4550669232537046]
["SID Lys:ME, g/mcal",{"$f":"IF(B$5=\"\",\"\",B236/(B246*2.2046)*10000)","v":3.6063972315389758},3.1769527308876992,2.7987491648675547,2.4869234391841561,2.2730285254980038,2.1560010424593594,null,{"$f":"IF(I$5=\"\",\"\",I236/(I246*2.2046)*10000)","v":3.568521744015936},3.1447283706055846,2.7711468540925082,2.461986773506573,2.2486463465723441,2.1329971743401024,null,{"$f":"IF(P$5=\"\",\"\",P236/(P246*2.2046)*10000)","v":3.5366555161131203},3.1166087857679101,2.7468417387226545,2.4371084229149242,2.2265107357734371,2.1120517151974565,null,{"$f":"IF(W$5=\"\",\"\",W236/(W246*2.2046)*10000)","v":3.5048704216877544},3.0885903927607021,2.7184440522435178,2.4133034328473397,2.2046733160336278,2.0911482909636665,null,{"$f":"IF(AD$5=\"\",\"\",AD236/(AD246*2.2046)*10000)","v":3.4729368542905035},3.0566563930072048,2.6912088386894202,2.3894594708947174,2.1826721884408915,2.0703947833997134,null,{"$f":"IF(AK$5=\"\",\"\",AK236/(AK246*2.2046)*10000)","v":3.4574765616637064},3.0260050544100583,2.6643441184453724,2.3655427478636613,2.1608155685985819,2.0496773482348085,null,{"$f":"IF(AR$5=\"\",\"\",AR236/(AR246*2.2046)*10000)","v":3.4196236800367767},2.9955459451900488,2.6384214173911289,2.3421079623562377,2.1390479597077561,2.0290329090782051]
["Lysine:CP",{"$f":"B245/B253*100","v":6.4370478420696102},6.3776088080946991,6.2955955211424843,6.2166350165421349,6.1431562205295167,6.0778386851000716,null,{"$f":"I245/I253*100","v":6.3613201895694003},6.2944363705319484,6.2048511931365748,6.1180516282727391,6.0386705334628612,5.9707043258689998,null,{"$f":"P245/P253*100","v":6.2877555911951264},6.2136953289551,6.1174174812790856,6.0229434291242114,5.9369179672319001,5.8662423506985215,null,{"$f":"W245/W253*100","v":6.215824500458675},6.1351912826698207,6.0315172554482519,5.9307064950822896,5.8385605737600788,5.7661291823857903,null,{"$f":"AD245/AD253*100","v":6.1454500580958484},6.0578623711016304,5.9486216150848366,5.8399701548793512,5.7443954969125954,5.6706057859962353,null,{"$f":"AK245/AK253*100","v":6.0797117772838067},5.9826280100744187,5.8660368980773914,5.7526680838157604,5.6536665985135492,5.5784459076942436,null,{"$f":"AR245/AR253*100","v":6.0113331085290902},5.9092195025030776,5.7861009714981027,5.668397853973639,5.5661767727775286,5.4897496801072885]
["Crude fat, %",{"$f":"(SUMPRODUCT(B$9:B$229,Nutrients!$K$8:$K$228)+(IF($A$7=Nutrients!$B$8,Nutrients!$K$8,Nutrients!$K$9)*B$7)+(((IF($A$8=Nutrients!$B$79,Nutrients!$K$79,(IF($A$8=Nutrients!$B$77,Nutrients!$K$77,Nutrients!$K$78)))))*B$8))/2000","v":2.7726851771066428},{"$f":"(SUMPRODUCT(C$9:C$229,Nutrients!$K$8:$K$228)+(IF($A$7=Nutrients!$B$8,Nutrients!$K$8,Nutrients!$K$9)*C$7)+(((IF($A$8=Nutrients!$B$79,Nutrients!$K$79,(IF($A$8=Nutrients!$B$77,Nutrients!$K$77,Nutrients!$K$78)))))*C$8))/2000","v":2.8895248185748268},{"$f":"(SUMPRODUCT(D$9:D$229,Nutrients!$K$8:$K$228)+(IF($A$7=Nutrients!$B$8,Nutrients!$K$8,Nutrients!$K$9)*D$7)+(((IF($A$8=Nutrients!$B$79,Nutrients!$K$79,(IF($A$8=Nutrients!$B$77,Nutrients!$K$77,Nutrients!$K$78)))))*D$8))/2000","v":2.9911114387020761},{"$f":"(SUMPRODUCT(E$9:E$229,Nutrients!$K$8:$K$228)+(IF($A$7=Nutrients!$B$8,Nutrients!$K$8,Nutrients!$K$9)*E$7)+(((IF($A$8=Nutrients!$B$79,Nutrients!$K$79,(IF($A$8=Nutrients!$B$77,Nutrients!$K$77,Nutrients!$K$78)))))*E$8))/2000","v":3.0762951752970258},{"$f":"(SUMPRODUCT(F$9:F$229,Nutrients!$K$8:$K$228)+(IF($A$7=Nutrients!$B$8,Nutrients!$K$8,Nutrients!$K$9)*F$7)+(((IF($A$8=Nutrients!$B$79,Nutrients!$K$79,(IF($A$8=Nutrients!$B$77,Nutrients!$K$77,Nutrients!$K$78)))))*F$8))/2000","v":3.1350305214620882},{"$f":"(SUMPRODUCT(G$9:G$229,Nutrients!$K$8:$K$228)+(IF($A$7=Nutrients!$B$8,Nutrients!$K$8,Nutrients!$K$9)*G$7)+(((IF($A$8=Nutrients!$B$79,Nutrients!$K$79,(IF($A$8=Nutrients!$B$77,Nutrients!$K$77,Nutrients!$K$78)))))*G$8))/2000","v":3.1635989425624271},null,{"$f":"(SUMPRODUCT(I$9:I$229,Nutrients!$K$8:$K$228)+(IF($A$7=Nutrients!$B$8,Nutrients!$K$8,Nutrients!$K$9)*I$7)+(((IF($A$8=Nutrients!$B$79,Nutrients!$K$79,(IF($A$8=Nutrients!$B$77,Nutrients!$K$77,Nutrients!$K$78)))))*I$8))/2000","v":3.2374664983793715},{"$f":"(SUMPRODUCT(J$9:J$229,Nutrients!$K$8:$K$228)+(IF($A$7=Nutrients!$B$8,Nutrients!$K$8,Nutrients!$K$9)*J$7)+(((IF($A$8=Nutrients!$B$79,Nutrients!$K$79,(IF($A$8=Nutrients!$B$77,Nutrients!$K$77,Nutrients!$K$78)))))*J$8))/2000","v":3.3530694762761306},{"$f":"(SUMPRODUCT(K$9:K$229,Nutrients!$K$8:$K$228)+(IF($A$7=Nutrients!$B$8,Nutrients!$K$8,Nutrients!$K$9)*K$7)+(((IF($A$8=Nutrients!$B$79,Nutrients!$K$79,(IF($A$8=Nutrients!$B$77,Nutrients!$K$77,Nutrients!$K$78)))))*K$8))/2000","v":3.4536423514779937},{"$f":"(SUMPRODUCT(L$9:L$229,Nutrients!$K$8:$K$228)+(IF($A$7=Nutrients!$B$8,Nutrients!$K$8,Nutrients!$K$9)*L$7)+(((IF($A$8=Nutrients!$B$79,Nutrients!$K$79,(IF($A$8=Nutrients!$B$77,Nutrients!$K$77,Nutrients!$K$78)))))*L$8))/2000","v":3.5389416573870505},{"$f":"(SUMPRODUCT(M$9:M$229,Nutrients!$K$8:$K$228)+(IF($A$7=Nutrients!$B$8,Nutrients!$K$8,Nutrients!$K$9)*M$7)+(((IF($A$8=Nutrients!$B$79,Nutrients!$K$79,(IF($A$8=Nutrients!$B$77,Nutrients!$K$77,Nutrients!$K$78)))))*M$8))/2000","v":3.5974806488766933},{"$f":"(SUMPRODUCT(N$9:N$229,Nutrients!$K$8:$K$228)+(IF($A$7=Nutrients!$B$8,Nutrients!$K$8,Nutrients!$K$9)*N$7)+(((IF($A$8=Nutrients!$B$79,Nutrients!$K$79,(IF($A$8=Nutrients!$B$77,Nutrients!$K$77,Nutrients!$K$78)))))*N$8))/2000","v":3.6259256110763722},null,{"$f":"(SUMPRODUCT(P$9:P$229,Nutrients!$K$8:$K$228)+(IF($A$7=Nutrients!$B$8,Nutrients!$K$8,Nutrients!$K$9)*P$7)+(((IF($A$8=Nutrients!$B$79,Nutrients!$K$79,(IF($A$8=Nutrients!$B$77,Nutrients!$K$77,Nutrients!$K$78)))))*P$8))/2000","v":3.7006160810761815},{"$f":"(SUMPRODUCT(Q$9:Q$229,Nutrients!$K$8:$K$228)+(IF($A$7=Nutrients!$B$8,Nutrients!$K$8,Nutrients!$K$9)*Q$7)+(((IF($A$8=Nutrients!$B$79,Nutrients!$K$79,(IF($A$8=Nutrients!$B$77,Nutrients!$K$77,Nutrients!$K$78)))))*Q$8))/2000","v":3.8154925943751441},{"$f":"(SUMPRODUCT(R$9:R$229,Nutrients!$K$8:$K$228)+(IF($A$7=Nutrients!$B$8,Nutrients!$K$8,Nutrients!$K$9)*R$7)+(((IF($A$8=Nutrients!$B$79,Nutrients!$K$79,(IF($A$8=Nutrients!$B$77,Nutrients!$K$77,Nutrients!$K$78)))))*R$8))/2000","v":3.915317010458208},{"$f":"(SUMPRODUCT(S$9:S$229,Nutrients!$K$8:$K$228)+(IF($A$7=Nutrients!$B$8,Nutrients!$K$8,Nutrients!$K$9)*S$7)+(((IF($A$8=Nutrients!$B$79,Nutrients!$K$79,(IF($A$8=Nutrients!$B$77,Nutrients!$K$77,Nutrients!$K$78)))))*S$8))/2000","v":4.0009698565147911},{"$f":"(SUMPRODUCT(T$9:T$229,Nutrients!$K$8:$K$228)+(IF($A$7=Nutrients!$B$8,Nutrients!$K$8,Nutrients!$K$9)*T$7)+(((IF($A$8=Nutrients!$B$79,Nutrients!$K$79,(IF($A$8=Nutrients!$B$77,Nutrients!$K$77,Nutrients!$K$78)))))*T$8))/2000","v":4.058579879001841},{"$f":"(SUMPRODUCT(U$9:U$229,Nutrients!$K$8:$K$228)+(IF($A$7=Nutrients!$B$8,Nutrients!$K$8,Nutrients!$K$9)*U$7)+(((IF($A$8=Nutrients!$B$79,Nutrients!$K$79,(IF($A$8=Nutrients!$B$77,Nutrients!$K$77,Nutrients!$K$78)))))*U$8))/2000","v":4.0866853609897147},null,{"$f":"(SUMPRODUCT(W$9:W$229,Nutrients!$K$8:$K$228)+(IF($A$7=Nutrients!$B$8,Nutrients!$K$8,Nutrients!$K$9)*W$7)+(((IF($A$8=Nutrients!$B$79,Nutrients!$K$79,(IF($A$8=Nutrients!$B$77,Nutrients!$K$77,Nutrients!$K$78)))))*W$8))/2000","v":4.1638259379065925},{"$f":"(SUMPRODUCT(X$9:X$229,Nutrients!$K$8:$K$228)+(IF($A$7=Nutrients!$B$8,Nutrients!$K$8,Nutrients!$K$9)*X$7)+(((IF($A$8=Nutrients!$B$79,Nutrients!$K$79,(IF($A$8=Nutrients!$B$77,Nutrients!$K$77,Nutrients!$K$78)))))*X$8))/2000","v":4.2779921614239775},{"$f":"(SUMPRODUCT(Y$9:Y$229,Nutrients!$K$8:$K$228)+(IF($A$7=Nutrients!$B$8,Nutrients!$K$8,Nutrients!$K$9)*Y$7)+(((IF($A$8=Nutrients!$B$79,Nutrients!$K$79,(IF($A$8=Nutrients!$B$77,Nutrients!$K$77,Nutrients!$K$78)))))*Y$8))/2000","v":4.3781378716224406},{"$f":"(SUMPRODUCT(Z$9:Z$229,Nutrients!$K$8:$K$228)+(IF($A$7=Nutrients!$B$8,Nutrients!$K$8,Nutrients!$K$9)*Z$7)+(((IF($A$8=Nutrients!$B$79,Nutrients!$K$79,(IF($A$8=Nutrients!$B$77,Nutrients!$K$77,Nutrients!$K$78)))))*Z$8))/2000","v":4.4626857616151412},{"$f":"(SUMPRODUCT(AA$9:AA$229,Nutrients!$K$8:$K$228)+(IF($A$7=Nutrients!$B$8,Nutrients!$K$8,Nutrients!$K$9)*AA$7)+(((IF($A$8=Nutrients!$B$79,Nutrients!$K$79,(IF($A$8=Nutrients!$B$77,Nutrients!$K$77,Nutrients!$K$78)))))*AA$8))/2000","v":4.5195898577894011},{"$f":"(SUMPRODUCT(AB$9:AB$229,Nutrients!$K$8:$K$228)+(IF($A$7=Nutrients!$B$8,Nutrients!$K$8,Nutrients!$K$9)*AB$7)+(((IF($A$8=Nutrients!$B$79,Nutrients!$K$79,(IF($A$8=Nutrients!$B$77,Nutrients!$K$77,Nutrients!$K$78)))))*AB$8))/2000","v":4.546871160069168},null,{"$f":"(SUMPRODUCT(AD$9:AD$229,Nutrients!$K$8:$K$228)+(IF($A$7=Nutrients!$B$8,Nutrients!$K$8,Nutrients!$K$9)*AD$7)+(((IF($A$8=Nutrients!$B$79,Nutrients!$K$79,(IF($A$8=Nutrients!$B$77,Nutrients!$K$77,Nutrients!$K$78)))))*AD$8))/2000","v":4.627085709763203},{"$f":"(SUMPRODUCT(AE$9:AE$229,Nutrients!$K$8:$K$228)+(IF($A$7=Nutrients!$B$8,Nutrients!$K$8,Nutrients!$K$9)*AE$7)+(((IF($A$8=Nutrients!$B$79,Nutrients!$K$79,(IF($A$8=Nutrients!$B$77,Nutrients!$K$77,Nutrients!$K$78)))))*AE$8))/2000","v":4.7415256861098412},{"$f":"(SUMPRODUCT(AF$9:AF$229,Nutrients!$K$8:$K$228)+(IF($A$7=Nutrients!$B$8,Nutrients!$K$8,Nutrients!$K$9)*AF$7)+(((IF($A$8=Nutrients!$B$79,Nutrients!$K$79,(IF($A$8=Nutrients!$B$77,Nutrients!$K$77,Nutrients!$K$78)))))*AF$8))/2000","v":4.8407029897753064},{"$f":"(SUMPRODUCT(AG$9:AG$229,Nutrients!$K$8:$K$228)+(IF($A$7=Nutrients!$B$8,Nutrients!$K$8,Nutrients!$K$9)*AG$7)+(((IF($A$8=Nutrients!$B$79,Nutrients!$K$79,(IF($A$8=Nutrients!$B$77,Nutrients!$K$77,Nutrients!$K$78)))))*AG$8))/2000","v":4.9240709382079215},{"$f":"(SUMPRODUCT(AH$9:AH$229,Nutrients!$K$8:$K$228)+(IF($A$7=Nutrients!$B$8,Nutrients!$K$8,Nutrients!$K$9)*AH$7)+(((IF($A$8=Nutrients!$B$79,Nutrients!$K$79,(IF($A$8=Nutrients!$B$77,Nutrients!$K$77,Nutrients!$K$78)))))*AH$8))/2000","v":4.9789179964524166},{"$f":"(SUMPRODUCT(AI$9:AI$229,Nutrients!$K$8:$K$228)+(IF($A$7=Nutrients!$B$8,Nutrients!$K$8,Nutrients!$K$9)*AI$7)+(((IF($A$8=Nutrients!$B$79,Nutrients!$K$79,(IF($A$8=Nutrients!$B$77,Nutrients!$K$77,Nutrients!$K$78)))))*AI$8))/2000","v":5.0050642648761432},null,{"$f":"(SUMPRODUCT(AK$9:AK$229,Nutrients!$K$8:$K$228)+(IF($A$7=Nutrients!$B$8,Nutrients!$K$8,Nutrients!$K$9)*AK$7)+(((IF($A$8=Nutrients!$B$79,Nutrients!$K$79,(IF($A$8=Nutrients!$B$77,Nutrients!$K$77,Nutrients!$K$78)))))*AK$8))/2000","v":5.0860537389361369},{"$f":"(SUMPRODUCT(AL$9:AL$229,Nutrients!$K$8:$K$228)+(IF($A$7=Nutrients!$B$8,Nutrients!$K$8,Nutrients!$K$9)*AL$7)+(((IF($A$8=Nutrients!$B$79,Nutrients!$K$79,(IF($A$8=Nutrients!$B$77,Nutrients!$K$77,Nutrients!$K$78)))))*AL$8))/2000","v":5.2047883313982641},{"$f":"(SUMPRODUCT(AM$9:AM$229,Nutrients!$K$8:$K$228)+(IF($A$7=Nutrients!$B$8,Nutrients!$K$8,Nutrients!$K$9)*AM$7)+(((IF($A$8=Nutrients!$B$79,Nutrients!$K$79,(IF($A$8=Nutrients!$B$77,Nutrients!$K$77,Nutrients!$K$78)))))*AM$8))/2000","v":5.302760381398449},{"$f":"(SUMPRODUCT(AN$9:AN$229,Nutrients!$K$8:$K$228)+(IF($A$7=Nutrients!$B$8,Nutrients!$K$8,Nutrients!$K$9)*AN$7)+(((IF($A$8=Nutrients!$B$79,Nutrients!$K$79,(IF($A$8=Nutrients!$B$77,Nutrients!$K$77,Nutrients!$K$78)))))*AN$8))/2000","v":5.3842497904616557},{"$f":"(SUMPRODUCT(AO$9:AO$229,Nutrients!$K$8:$K$228)+(IF($A$7=Nutrients!$B$8,Nutrients!$K$8,Nutrients!$K$9)*AO$7)+(((IF($A$8=Nutrients!$B$79,Nutrients!$K$79,(IF($A$8=Nutrients!$B$77,Nutrients!$K$77,Nutrients!$K$78)))))*AO$8))/2000","v":5.4373595954376208},{"$f":"(SUMPRODUCT(AP$9:AP$229,Nutrients!$K$8:$K$228)+(IF($A$7=Nutrients!$B$8,Nutrients!$K$8,Nutrients!$K$9)*AP$7)+(((IF($A$8=Nutrients!$B$79,Nutrients!$K$79,(IF($A$8=Nutrients!$B$77,Nutrients!$K$77,Nutrients!$K$78)))))*AP$8))/2000","v":5.4632448552906725},null,{"$f":"(SUMPRODUCT(AR$9:AR$229,Nutrients!$K$8:$K$228)+(IF($A$7=Nutrients!$B$8,Nutrients!$K$8,Nutrients!$K$9)*AR$7)+(((IF($A$8=Nutrients!$B$79,Nutrients!$K$79,(IF($A$8=Nutrients!$B$77,Nutrients!$K$77,Nutrients!$K$78)))))*AR$8))/2000","v":5.5509565191772641},{"$f":"(SUMPRODUCT(AS$9:AS$229,Nutrients!$K$8:$K$228)+(IF($A$7=Nutrients!$B$8,Nutrients!$K$8,Nutrients!$K$9)*AS$7)+(((IF($A$8=Nutrients!$B$79,Nutrients!$K$79,(IF($A$8=Nutrients!$B$77,Nutrients!$K$77,Nutrients!$K$78)))))*AS$8))/2000","v":5.6680087399097658},{"$f":"(SUMPRODUCT(AT$9:AT$229,Nutrients!$K$8:$K$228)+(IF($A$7=Nutrients!$B$8,Nutrients!$K$8,Nutrients!$K$9)*AT$7)+(((IF($A$8=Nutrients!$B$79,Nutrients!$K$79,(IF($A$8=Nutrients!$B$77,Nutrients!$K$77,Nutrients!$K$78)))))*AT$8))/2000","v":5.7645624352572282},{"$f":"(SUMPRODUCT(AU$9:AU$229,Nutrients!$K$8:$K$228)+(IF($A$7=Nutrients!$B$8,Nutrients!$K$8,Nutrients!$K$9)*AU$7)+(((IF($A$8=Nutrients!$B$79,Nutrients!$K$79,(IF($A$8=Nutrients!$B$77,Nutrients!$K$77,Nutrients!$K$78)))))*AU$8))/2000","v":5.8430281595229596},{"$f":"(SUMPRODUCT(AV$9:AV$229,Nutrients!$K$8:$K$228)+(IF($A$7=Nutrients!$B$8,Nutrients!$K$8,Nutrients!$K$9)*AV$7)+(((IF($A$8=Nutrients!$B$79,Nutrients!$K$79,(IF($A$8=Nutrients!$B$77,Nutrients!$K$77,Nutrients!$K$78)))))*AV$8))/2000","v":5.8958109757210444},{"$f":"(SUMPRODUCT(AW$9:AW$229,Nutrients!$K$8:$K$228)+(IF($A$7=Nutrients!$B$8,Nutrients!$K$8,Nutrients!$K$9)*AW$7)+(((IF($A$8=Nutrients!$B$79,Nutrients!$K$79,(IF($A$8=Nutrients!$B$77,Nutrients!$K$77,Nutrients!$K$78)))))*AW$8))/2000","v":5.9214395561488971}]
["Crude fiber, %",{"$f":"(SUMPRODUCT(B$9:B$229,Nutrients!$J$8:$J$228)+(IF($A$7=Nutrients!$B$8,Nutrients!$J$8,Nutrients!$J$9)*B$7)+(((IF($A$8=Nutrients!$B$79,Nutrients!$J$79,(IF($A$8=Nutrients!$B$77,Nutrients!$J$77,Nutrients!$J$78)))))*B$8))/2000","v":2.513641643841301},{"$f":"(SUMPRODUCT(C$9:C$229,Nutrients!$J$8:$J$228)+(IF($A$7=Nutrients!$B$8,Nutrients!$J$8,Nutrients!$J$9)*C$7)+(((IF($A$8=Nutrients!$B$79,Nutrients!$J$79,(IF($A$8=Nutrients!$B$77,Nutrients!$J$77,Nutrients!$J$78)))))*C$8))/2000","v":2.4130399696967721},{"$f":"(SUMPRODUCT(D$9:D$229,Nutrients!$J$8:$J$228)+(IF($A$7=Nutrients!$B$8,Nutrients!$J$8,Nutrients!$J$9)*D$7)+(((IF($A$8=Nutrients!$B$79,Nutrients!$J$79,(IF($A$8=Nutrients!$B$77,Nutrients!$J$77,Nutrients!$J$78)))))*D$8))/2000","v":2.3268016052434768},{"$f":"(SUMPRODUCT(E$9:E$229,Nutrients!$J$8:$J$228)+(IF($A$7=Nutrients!$B$8,Nutrients!$J$8,Nutrients!$J$9)*E$7)+(((IF($A$8=Nutrients!$B$79,Nutrients!$J$79,(IF($A$8=Nutrients!$B$77,Nutrients!$J$77,Nutrients!$J$78)))))*E$8))/2000","v":2.2539022615675171},{"$f":"(SUMPRODUCT(F$9:F$229,Nutrients!$J$8:$J$228)+(IF($A$7=Nutrients!$B$8,Nutrients!$J$8,Nutrients!$J$9)*F$7)+(((IF($A$8=Nutrients!$B$79,Nutrients!$J$79,(IF($A$8=Nutrients!$B$77,Nutrients!$J$77,Nutrients!$J$78)))))*F$8))/2000","v":2.2063713720102678},{"$f":"(SUMPRODUCT(G$9:G$229,Nutrients!$J$8:$J$228)+(IF($A$7=Nutrients!$B$8,Nutrients!$J$8,Nutrients!$J$9)*G$7)+(((IF($A$8=Nutrients!$B$79,Nutrients!$J$79,(IF($A$8=Nutrients!$B$77,Nutrients!$J$77,Nutrients!$J$78)))))*G$8))/2000","v":2.1815237128108387},null,{"$f":"(SUMPRODUCT(I$9:I$229,Nutrients!$J$8:$J$228)+(IF($A$7=Nutrients!$B$8,Nutrients!$J$8,Nutrients!$J$9)*I$7)+(((IF($A$8=Nutrients!$B$79,Nutrients!$J$79,(IF($A$8=Nutrients!$B$77,Nutrients!$J$77,Nutrients!$J$78)))))*I$8))/2000","v":2.7590160087512601},{"$f":"(SUMPRODUCT(J$9:J$229,Nutrients!$J$8:$J$228)+(IF($A$7=Nutrients!$B$8,Nutrients!$J$8,Nutrients!$J$9)*J$7)+(((IF($A$8=Nutrients!$B$79,Nutrients!$J$79,(IF($A$8=Nutrients!$B$77,Nutrients!$J$77,Nutrients!$J$78)))))*J$8))/2000","v":2.6595170624470321},{"$f":"(SUMPRODUCT(K$9:K$229,Nutrients!$J$8:$J$228)+(IF($A$7=Nutrients!$B$8,Nutrients!$J$8,Nutrients!$J$9)*K$7)+(((IF($A$8=Nutrients!$B$79,Nutrients!$J$79,(IF($A$8=Nutrients!$B$77,Nutrients!$J$77,Nutrients!$J$78)))))*K$8))/2000","v":2.5741870597453347},{"$f":"(SUMPRODUCT(L$9:L$229,Nutrients!$J$8:$J$228)+(IF($A$7=Nutrients!$B$8,Nutrients!$J$8,Nutrients!$J$9)*L$7)+(((IF($A$8=Nutrients!$B$79,Nutrients!$J$79,(IF($A$8=Nutrients!$B$77,Nutrients!$J$77,Nutrients!$J$78)))))*L$8))/2000","v":2.502289969056624},{"$f":"(SUMPRODUCT(M$9:M$229,Nutrients!$J$8:$J$228)+(IF($A$7=Nutrients!$B$8,Nutrients!$J$8,Nutrients!$J$9)*M$7)+(((IF($A$8=Nutrients!$B$79,Nutrients!$J$79,(IF($A$8=Nutrients!$B$77,Nutrients!$J$77,Nutrients!$J$78)))))*M$8))/2000","v":2.4545923069129203},{"$f":"(SUMPRODUCT(N$9:N$229,Nutrients!$J$8:$J$228)+(IF($A$7=Nutrients!$B$8,Nutrients!$J$8,Nutrients!$J$9)*N$7)+(((IF($A$8=Nutrients!$B$79,Nutrients!$J$79,(IF($A$8=Nutrients!$B$77,Nutrients!$J$77,Nutrients!$J$78)))))*N$8))/2000","v":2.4301595619180967},null,{"$f":"(SUMPRODUCT(P$9:P$229,Nutrients!$J$8:$J$228)+(IF($A$7=Nutrients!$B$8,Nutrients!$J$8,Nutrients!$J$9)*P$7)+(((IF($A$8=Nutrients!$B$79,Nutrients!$J$79,(IF($A$8=Nutrients!$B$77,Nutrients!$J$77,Nutrients!$J$78)))))*P$8))/2000","v":3.0057900127486676},{"$f":"(SUMPRODUCT(Q$9:Q$229,Nutrients!$J$8:$J$228)+(IF($A$7=Nutrients!$B$8,Nutrients!$J$8,Nutrients!$J$9)*Q$7)+(((IF($A$8=Nutrients!$B$79,Nutrients!$J$79,(IF($A$8=Nutrients!$B$77,Nutrients!$J$77,Nutrients!$J$78)))))*Q$8))/2000","v":2.9069693101952425},{"$f":"(SUMPRODUCT(R$9:R$229,Nutrients!$J$8:$J$228)+(IF($A$7=Nutrients!$B$8,Nutrients!$J$8,Nutrients!$J$9)*R$7)+(((IF($A$8=Nutrients!$B$79,Nutrients!$J$79,(IF($A$8=Nutrients!$B$77,Nutrients!$J$77,Nutrients!$J$78)))))*R$8))/2000","v":2.8223769333491715},{"$f":"(SUMPRODUCT(S$9:S$229,Nutrients!$J$8:$J$228)+(IF($A$7=Nutrients!$B$8,Nutrients!$J$8,Nutrients!$J$9)*S$7)+(((IF($A$8=Nutrients!$B$79,Nutrients!$J$79,(IF($A$8=Nutrients!$B$77,Nutrients!$J$77,Nutrients!$J$78)))))*S$8))/2000","v":2.7501388616518496},{"$f":"(SUMPRODUCT(T$9:T$229,Nutrients!$J$8:$J$228)+(IF($A$7=Nutrients!$B$8,Nutrients!$J$8,Nutrients!$J$9)*T$7)+(((IF($A$8=Nutrients!$B$79,Nutrients!$J$79,(IF($A$8=Nutrients!$B$77,Nutrients!$J$77,Nutrients!$J$78)))))*T$8))/2000","v":2.7028854655054002},{"$f":"(SUMPRODUCT(U$9:U$229,Nutrients!$J$8:$J$228)+(IF($A$7=Nutrients!$B$8,Nutrients!$J$8,Nutrients!$J$9)*U$7)+(((IF($A$8=Nutrients!$B$79,Nutrients!$J$79,(IF($A$8=Nutrients!$B$77,Nutrients!$J$77,Nutrients!$J$78)))))*U$8))/2000","v":2.6786504364632484},null,{"$f":"(SUMPRODUCT(W$9:W$229,Nutrients!$J$8:$J$228)+(IF($A$7=Nutrients!$B$8,Nutrients!$J$8,Nutrients!$J$9)*W$7)+(((IF($A$8=Nutrients!$B$79,Nutrients!$J$79,(IF($A$8=Nutrients!$B$77,Nutrients!$J$77,Nutrients!$J$78)))))*W$8))/2000","v":3.2525933655312782},{"$f":"(SUMPRODUCT(X$9:X$229,Nutrients!$J$8:$J$228)+(IF($A$7=Nutrients!$B$8,Nutrients!$J$8,Nutrients!$J$9)*X$7)+(((IF($A$8=Nutrients!$B$79,Nutrients!$J$79,(IF($A$8=Nutrients!$B$77,Nutrients!$J$77,Nutrients!$J$78)))))*X$8))/2000","v":3.1544648331221445},{"$f":"(SUMPRODUCT(Y$9:Y$229,Nutrients!$J$8:$J$228)+(IF($A$7=Nutrients!$B$8,Nutrients!$J$8,Nutrients!$J$9)*Y$7)+(((IF($A$8=Nutrients!$B$79,Nutrients!$J$79,(IF($A$8=Nutrients!$B$77,Nutrients!$J$77,Nutrients!$J$78)))))*Y$8))/2000","v":3.06953168008405},{"$f":"(SUMPRODUCT(Z$9:Z$229,Nutrients!$J$8:$J$228)+(IF($A$7=Nutrients!$B$8,Nutrients!$J$8,Nutrients!$J$9)*Z$7)+(((IF($A$8=Nutrients!$B$79,Nutrients!$J$79,(IF($A$8=Nutrients!$B$77,Nutrients!$J$77,Nutrients!$J$78)))))*Z$8))/2000","v":2.9982427794218283},{"$f":"(SUMPRODUCT(AA$9:AA$229,Nutrients!$J$8:$J$228)+(IF($A$7=Nutrients!$B$8,Nutrients!$J$8,Nutrients!$J$9)*AA$7)+(((IF($A$8=Nutrients!$B$79,Nutrients!$J$79,(IF($A$8=Nutrients!$B$77,Nutrients!$J$77,Nutrients!$J$78)))))*AA$8))/2000","v":2.9512417422991537},{"$f":"(SUMPRODUCT(AB$9:AB$229,Nutrients!$J$8:$J$228)+(IF($A$7=Nutrients!$B$8,Nutrients!$J$8,Nutrients!$J$9)*AB$7)+(((IF($A$8=Nutrients!$B$79,Nutrients!$J$79,(IF($A$8=Nutrients!$B$77,Nutrients!$J$77,Nutrients!$J$78)))))*AB$8))/2000","v":2.9266700190959947},null,{"$f":"(SUMPRODUCT(AD$9:AD$229,Nutrients!$J$8:$J$228)+(IF($A$7=Nutrients!$B$8,Nutrients!$J$8,Nutrients!$J$9)*AD$7)+(((IF($A$8=Nutrients!$B$79,Nutrients!$J$79,(IF($A$8=Nutrients!$B$77,Nutrients!$J$77,Nutrients!$J$78)))))*AD$8))/2000","v":3.4992951881988779},{"$f":"(SUMPRODUCT(AE$9:AE$229,Nutrients!$J$8:$J$228)+(IF($A$7=Nutrients!$B$8,Nutrients!$J$8,Nutrients!$J$9)*AE$7)+(((IF($A$8=Nutrients!$B$79,Nutrients!$J$79,(IF($A$8=Nutrients!$B$77,Nutrients!$J$77,Nutrients!$J$78)))))*AE$8))/2000","v":3.4008959102660015},{"$f":"(SUMPRODUCT(AF$9:AF$229,Nutrients!$J$8:$J$228)+(IF($A$7=Nutrients!$B$8,Nutrients!$J$8,Nutrients!$J$9)*AF$7)+(((IF($A$8=Nutrients!$B$79,Nutrients!$J$79,(IF($A$8=Nutrients!$B$77,Nutrients!$J$77,Nutrients!$J$78)))))*AF$8))/2000","v":3.3169395670437973},{"$f":"(SUMPRODUCT(AG$9:AG$229,Nutrients!$J$8:$J$228)+(IF($A$7=Nutrients!$B$8,Nutrients!$J$8,Nutrients!$J$9)*AG$7)+(((IF($A$8=Nutrients!$B$79,Nutrients!$J$79,(IF($A$8=Nutrients!$B$77,Nutrients!$J$77,Nutrients!$J$78)))))*AG$8))/2000","v":3.2461521834429927},{"$f":"(SUMPRODUCT(AH$9:AH$229,Nutrients!$J$8:$J$228)+(IF($A$7=Nutrients!$B$8,Nutrients!$J$8,Nutrients!$J$9)*AH$7)+(((IF($A$8=Nutrients!$B$79,Nutrients!$J$79,(IF($A$8=Nutrients!$B$77,Nutrients!$J$77,Nutrients!$J$78)))))*AH$8))/2000","v":3.1981328178357948},{"$f":"(SUMPRODUCT(AI$9:AI$229,Nutrients!$J$8:$J$228)+(IF($A$7=Nutrients!$B$8,Nutrients!$J$8,Nutrients!$J$9)*AI$7)+(((IF($A$8=Nutrients!$B$79,Nutrients!$J$79,(IF($A$8=Nutrients!$B$77,Nutrients!$J$77,Nutrients!$J$78)))))*AI$8))/2000","v":3.1731660138046665},null,{"$f":"(SUMPRODUCT(AK$9:AK$229,Nutrients!$J$8:$J$228)+(IF($A$7=Nutrients!$B$8,Nutrients!$J$8,Nutrients!$J$9)*AK$7)+(((IF($A$8=Nutrients!$B$79,Nutrients!$J$79,(IF($A$8=Nutrients!$B$77,Nutrients!$J$77,Nutrients!$J$78)))))*AK$8))/2000","v":3.7501668492604385},{"$f":"(SUMPRODUCT(AL$9:AL$229,Nutrients!$J$8:$J$228)+(IF($A$7=Nutrients!$B$8,Nutrients!$J$8,Nutrients!$J$9)*AL$7)+(((IF($A$8=Nutrients!$B$79,Nutrients!$J$79,(IF($A$8=Nutrients!$B$77,Nutrients!$J$77,Nutrients!$J$78)))))*AL$8))/2000","v":3.647647821234937},{"$f":"(SUMPRODUCT(AM$9:AM$229,Nutrients!$J$8:$J$228)+(IF($A$7=Nutrients!$B$8,Nutrients!$J$8,Nutrients!$J$9)*AM$7)+(((IF($A$8=Nutrients!$B$79,Nutrients!$J$79,(IF($A$8=Nutrients!$B$77,Nutrients!$J$77,Nutrients!$J$78)))))*AM$8))/2000","v":3.5642751507171644},{"$f":"(SUMPRODUCT(AN$9:AN$229,Nutrients!$J$8:$J$228)+(IF($A$7=Nutrients!$B$8,Nutrients!$J$8,Nutrients!$J$9)*AN$7)+(((IF($A$8=Nutrients!$B$79,Nutrients!$J$79,(IF($A$8=Nutrients!$B$77,Nutrients!$J$77,Nutrients!$J$78)))))*AN$8))/2000","v":3.4929717664983673},{"$f":"(SUMPRODUCT(AO$9:AO$229,Nutrients!$J$8:$J$228)+(IF($A$7=Nutrients!$B$8,Nutrients!$J$8,Nutrients!$J$9)*AO$7)+(((IF($A$8=Nutrients!$B$79,Nutrients!$J$79,(IF($A$8=Nutrients!$B$77,Nutrients!$J$77,Nutrients!$J$78)))))*AO$8))/2000","v":3.4443650311682386},{"$f":"(SUMPRODUCT(AP$9:AP$229,Nutrients!$J$8:$J$228)+(IF($A$7=Nutrients!$B$8,Nutrients!$J$8,Nutrients!$J$9)*AP$7)+(((IF($A$8=Nutrients!$B$79,Nutrients!$J$79,(IF($A$8=Nutrients!$B$77,Nutrients!$J$77,Nutrients!$J$78)))))*AP$8))/2000","v":3.4196500991067182},null,{"$f":"(SUMPRODUCT(AR$9:AR$229,Nutrients!$J$8:$J$228)+(IF($A$7=Nutrients!$B$8,Nutrients!$J$8,Nutrients!$J$9)*AR$7)+(((IF($A$8=Nutrients!$B$79,Nutrients!$J$79,(IF($A$8=Nutrients!$B$77,Nutrients!$J$77,Nutrients!$J$78)))))*AR$8))/2000","v":3.9953092147969484},{"$f":"(SUMPRODUCT(AS$9:AS$229,Nutrients!$J$8:$J$228)+(IF($A$7=Nutrients!$B$8,Nutrients!$J$8,Nutrients!$J$9)*AS$7)+(((IF($A$8=Nutrients!$B$79,Nutrients!$J$79,(IF($A$8=Nutrients!$B$77,Nutrients!$J$77,Nutrients!$J$78)))))*AS$8))/2000","v":3.8943881252907429},{"$f":"(SUMPRODUCT(AT$9:AT$229,Nutrients!$J$8:$J$228)+(IF($A$7=Nutrients!$B$8,Nutrients!$J$8,Nutrients!$J$9)*AT$7)+(((IF($A$8=Nutrients!$B$79,Nutrients!$J$79,(IF($A$8=Nutrients!$B$77,Nutrients!$J$77,Nutrients!$J$78)))))*AT$8))/2000","v":3.8117902572229023},{"$f":"(SUMPRODUCT(AU$9:AU$229,Nutrients!$J$8:$J$228)+(IF($A$7=Nutrients!$B$8,Nutrients!$J$8,Nutrients!$J$9)*AU$7)+(((IF($A$8=Nutrients!$B$79,Nutrients!$J$79,(IF($A$8=Nutrients!$B$77,Nutrients!$J$77,Nutrients!$J$78)))))*AU$8))/2000","v":3.7388463800043783},{"$f":"(SUMPRODUCT(AV$9:AV$229,Nutrients!$J$8:$J$228)+(IF($A$7=Nutrients!$B$8,Nutrients!$J$8,Nutrients!$J$9)*AV$7)+(((IF($A$8=Nutrients!$B$79,Nutrients!$J$79,(IF($A$8=Nutrients!$B$77,Nutrients!$J$77,Nutrients!$J$78)))))*AV$8))/2000","v":3.6906102006408488},{"$f":"(SUMPRODUCT(AW$9:AW$229,Nutrients!$J$8:$J$228)+(IF($A$7=Nutrients!$B$8,Nutrients!$J$8,Nutrients!$J$9)*AW$7)+(((IF($A$8=Nutrients!$B$79,Nutrients!$J$79,(IF($A$8=Nutrients!$B$77,Nutrients!$J$77,Nutrients!$J$78)))))*AW$8))/2000","v":3.6661443755990457}]
["Lactose, %",{"$f":"(SUMPRODUCT(B$9:B$229,Nutrients!$ED$8:$ED$228)+(IF($A$7=Nutrients!$B$8,Nutrients!$ED$8,Nutrients!$ED$9)*B$7)+(((IF($A$8=Nutrients!$B$79,Nutrients!$ED$79,(IF($A$8=Nutrients!$B$77,Nutrients!$ED$77,Nutrients!$ED$78)))))*B$8))/2000","v":0},{"$f":"(SUMPRODUCT(C$9:C$229,Nutrients!$ED$8:$ED$228)+(IF($A$7=Nutrients!$B$8,Nutrients!$ED$8,Nutrients!$ED$9)*C$7)+(((IF($A$8=Nutrients!$B$79,Nutrients!$ED$79,(IF($A$8=Nutrients!$B$77,Nutrients!$ED$77,Nutrients!$ED$78)))))*C$8))/2000","v":0},{"$f":"(SUMPRODUCT(D$9:D$229,Nutrients!$ED$8:$ED$228)+(IF($A$7=Nutrients!$B$8,Nutrients!$ED$8,Nutrients!$ED$9)*D$7)+(((IF($A$8=Nutrients!$B$79,Nutrients!$ED$79,(IF($A$8=Nutrients!$B$77,Nutrients!$ED$77,Nutrients!$ED$78)))))*D$8))/2000","v":0},{"$f":"(SUMPRODUCT(E$9:E$229,Nutrients!$ED$8:$ED$228)+(IF($A$7=Nutrients!$B$8,Nutrients!$ED$8,Nutrients!$ED$9)*E$7)+(((IF($A$8=Nutrients!$B$79,Nutrients!$ED$79,(IF($A$8=Nutrients!$B$77,Nutrients!$ED$77,Nutrients!$ED$78)))))*E$8))/2000","v":0},{"$f":"(SUMPRODUCT(F$9:F$229,Nutrients!$ED$8:$ED$228)+(IF($A$7=Nutrients!$B$8,Nutrients!$ED$8,Nutrients!$ED$9)*F$7)+(((IF($A$8=Nutrients!$B$79,Nutrients!$ED$79,(IF($A$8=Nutrients!$B$77,Nutrients!$ED$77,Nutrients!$ED$78)))))*F$8))/2000","v":0},{"$f":"(SUMPRODUCT(G$9:G$229,Nutrients!$ED$8:$ED$228)+(IF($A$7=Nutrients!$B$8,Nutrients!$ED$8,Nutrients!$ED$9)*G$7)+(((IF($A$8=Nutrients!$B$79,Nutrients!$ED$79,(IF($A$8=Nutrients!$B$77,Nutrients!$ED$77,Nutrients!$ED$78)))))*G$8))/2000","v":0},null,{"$f":"(SUMPRODUCT(I$9:I$229,Nutrients!$ED$8:$ED$228)+(IF($A$7=Nutrients!$B$8,Nutrients!$ED$8,Nutrients!$ED$9)*I$7)+(((IF($A$8=Nutrients!$B$79,Nutrients!$ED$79,(IF($A$8=Nutrients!$B$77,Nutrients!$ED$77,Nutrients!$ED$78)))))*I$8))/2000","v":0},{"$f":"(SUMPRODUCT(J$9:J$229,Nutrients!$ED$8:$ED$228)+(IF($A$7=Nutrients!$B$8,Nutrients!$ED$8,Nutrients!$ED$9)*J$7)+(((IF($A$8=Nutrients!$B$79,Nutrients!$ED$79,(IF($A$8=Nutrients!$B$77,Nutrients!$ED$77,Nutrients!$ED$78)))))*J$8))/2000","v":0},{"$f":"(SUMPRODUCT(K$9:K$229,Nutrients!$ED$8:$ED$228)+(IF($A$7=Nutrients!$B$8,Nutrients!$ED$8,Nutrients!$ED$9)*K$7)+(((IF($A$8=Nutrients!$B$79,Nutrients!$ED$79,(IF($A$8=Nutrients!$B$77,Nutrients!$ED$77,Nutrients!$ED$78)))))*K$8))/2000","v":0},{"$f":"(SUMPRODUCT(L$9:L$229,Nutrients!$ED$8:$ED$228)+(IF($A$7=Nutrients!$B$8,Nutrients!$ED$8,Nutrients!$ED$9)*L$7)+(((IF($A$8=Nutrients!$B$79,Nutrients!$ED$79,(IF($A$8=Nutrients!$B$77,Nutrients!$ED$77,Nutrients!$ED$78)))))*L$8))/2000","v":0},{"$f":"(SUMPRODUCT(M$9:M$229,Nutrients!$ED$8:$ED$228)+(IF($A$7=Nutrients!$B$8,Nutrients!$ED$8,Nutrients!$ED$9)*M$7)+(((IF($A$8=Nutrients!$B$79,Nutrients!$ED$79,(IF($A$8=Nutrients!$B$77,Nutrients!$ED$77,Nutrients!$ED$78)))))*M$8))/2000","v":0},{"$f":"(SUMPRODUCT(N$9:N$229,Nutrients!$ED$8:$ED$228)+(IF($A$7=Nutrients!$B$8,Nutrients!$ED$8,Nutrients!$ED$9)*N$7)+(((IF($A$8=Nutrients!$B$79,Nutrients!$ED$79,(IF($A$8=Nutrients!$B$77,Nutrients!$ED$77,Nutrients!$ED$78)))))*N$8))/2000","v":0},null,{"$f":"(SUMPRODUCT(P$9:P$229,Nutrients!$ED$8:$ED$228)+(IF($A$7=Nutrients!$B$8,Nutrients!$ED$8,Nutrients!$ED$9)*P$7)+(((IF($A$8=Nutrients!$B$79,Nutrients!$ED$79,(IF($A$8=Nutrients!$B$77,Nutrients!$ED$77,Nutrients!$ED$78)))))*P$8))/2000","v":0},{"$f":"(SUMPRODUCT(Q$9:Q$229,Nutrients!$ED$8:$ED$228)+(IF($A$7=Nutrients!$B$8,Nutrients!$ED$8,Nutrients!$ED$9)*Q$7)+(((IF($A$8=Nutrients!$B$79,Nutrients!$ED$79,(IF($A$8=Nutrients!$B$77,Nutrients!$ED$77,Nutrients!$ED$78)))))*Q$8))/2000","v":0},{"$f":"(SUMPRODUCT(R$9:R$229,Nutrients!$ED$8:$ED$228)+(IF($A$7=Nutrients!$B$8,Nutrients!$ED$8,Nutrients!$ED$9)*R$7)+(((IF($A$8=Nutrients!$B$79,Nutrients!$ED$79,(IF($A$8=Nutrients!$B$77,Nutrients!$ED$77,Nutrients!$ED$78)))))*R$8))/2000","v":0},{"$f":"(SUMPRODUCT(S$9:S$229,Nutrients!$ED$8:$ED$228)+(IF($A$7=Nutrients!$B$8,Nutrients!$ED$8,Nutrients!$ED$9)*S$7)+(((IF($A$8=Nutrients!$B$79,Nutrients!$ED$79,(IF($A$8=Nutrients!$B$77,Nutrients!$ED$77,Nutrients!$ED$78)))))*S$8))/2000","v":0},{"$f":"(SUMPRODUCT(T$9:T$229,Nutrients!$ED$8:$ED$228)+(IF($A$7=Nutrients!$B$8,Nutrients!$ED$8,Nutrients!$ED$9)*T$7)+(((IF($A$8=Nutrients!$B$79,Nutrients!$ED$79,(IF($A$8=Nutrients!$B$77,Nutrients!$ED$77,Nutrients!$ED$78)))))*T$8))/2000","v":0},{"$f":"(SUMPRODUCT(U$9:U$229,Nutrients!$ED$8:$ED$228)+(IF($A$7=Nutrients!$B$8,Nutrients!$ED$8,Nutrients!$ED$9)*U$7)+(((IF($A$8=Nutrients!$B$79,Nutrients!$ED$79,(IF($A$8=Nutrients!$B$77,Nutrients!$ED$77,Nutrients!$ED$78)))))*U$8))/2000","v":0},null,{"$f":"(SUMPRODUCT(W$9:W$229,Nutrients!$ED$8:$ED$228)+(IF($A$7=Nutrients!$B$8,Nutrients!$ED$8,Nutrients!$ED$9)*W$7)+(((IF($A$8=Nutrients!$B$79,Nutrients!$ED$79,(IF($A$8=Nutrients!$B$77,Nutrients!$ED$77,Nutrients!$ED$78)))))*W$8))/2000","v":0},{"$f":"(SUMPRODUCT(X$9:X$229,Nutrients!$ED$8:$ED$228)+(IF($A$7=Nutrients!$B$8,Nutrients!$ED$8,Nutrients!$ED$9)*X$7)+(((IF($A$8=Nutrients!$B$79,Nutrients!$ED$79,(IF($A$8=Nutrients!$B$77,Nutrients!$ED$77,Nutrients!$ED$78)))))*X$8))/2000","v":0},{"$f":"(SUMPRODUCT(Y$9:Y$229,Nutrients!$ED$8:$ED$228)+(IF($A$7=Nutrients!$B$8,Nutrients!$ED$8,Nutrients!$ED$9)*Y$7)+(((IF($A$8=Nutrients!$B$79,Nutrients!$ED$79,(IF($A$8=Nutrients!$B$77,Nutrients!$ED$77,Nutrients!$ED$78)))))*Y$8))/2000","v":0},{"$f":"(SUMPRODUCT(Z$9:Z$229,Nutrients!$ED$8:$ED$228)+(IF($A$7=Nutrients!$B$8,Nutrients!$ED$8,Nutrients!$ED$9)*Z$7)+(((IF($A$8=Nutrients!$B$79,Nutrients!$ED$79,(IF($A$8=Nutrients!$B$77,Nutrients!$ED$77,Nutrients!$ED$78)))))*Z$8))/2000","v":0},{"$f":"(SUMPRODUCT(AA$9:AA$229,Nutrients!$ED$8:$ED$228)+(IF($A$7=Nutrients!$B$8,Nutrients!$ED$8,Nutrients!$ED$9)*AA$7)+(((IF($A$8=Nutrients!$B$79,Nutrients!$ED$79,(IF($A$8=Nutrients!$B$77,Nutrients!$ED$77,Nutrients!$ED$78)))))*AA$8))/2000","v":0},{"$f":"(SUMPRODUCT(AB$9:AB$229,Nutrients!$ED$8:$ED$228)+(IF($A$7=Nutrients!$B$8,Nutrients!$ED$8,Nutrients!$ED$9)*AB$7)+(((IF($A$8=Nutrients!$B$79,Nutrients!$ED$79,(IF($A$8=Nutrients!$B$77,Nutrients!$ED$77,Nutrients!$ED$78)))))*AB$8))/2000","v":0},null,{"$f":"(SUMPRODUCT(AD$9:AD$229,Nutrients!$ED$8:$ED$228)+(IF($A$7=Nutrients!$B$8,Nutrients!$ED$8,Nutrients!$ED$9)*AD$7)+(((IF($A$8=Nutrients!$B$79,Nutrients!$ED$79,(IF($A$8=Nutrients!$B$77,Nutrients!$ED$77,Nutrients!$ED$78)))))*AD$8))/2000","v":0},{"$f":"(SUMPRODUCT(AE$9:AE$229,Nutrients!$ED$8:$ED$228)+(IF($A$7=Nutrients!$B$8,Nutrients!$ED$8,Nutrients!$ED$9)*AE$7)+(((IF($A$8=Nutrients!$B$79,Nutrients!$ED$79,(IF($A$8=Nutrients!$B$77,Nutrients!$ED$77,Nutrients!$ED$78)))))*AE$8))/2000","v":0},{"$f":"(SUMPRODUCT(AF$9:AF$229,Nutrients!$ED$8:$ED$228)+(IF($A$7=Nutrients!$B$8,Nutrients!$ED$8,Nutrients!$ED$9)*AF$7)+(((IF($A$8=Nutrients!$B$79,Nutrients!$ED$79,(IF($A$8=Nutrients!$B$77,Nutrients!$ED$77,Nutrients!$ED$78)))))*AF$8))/2000","v":0},{"$f":"(SUMPRODUCT(AG$9:AG$229,Nutrients!$ED$8:$ED$228)+(IF($A$7=Nutrients!$B$8,Nutrients!$ED$8,Nutrients!$ED$9)*AG$7)+(((IF($A$8=Nutrients!$B$79,Nutrients!$ED$79,(IF($A$8=Nutrients!$B$77,Nutrients!$ED$77,Nutrients!$ED$78)))))*AG$8))/2000","v":0},{"$f":"(SUMPRODUCT(AH$9:AH$229,Nutrients!$ED$8:$ED$228)+(IF($A$7=Nutrients!$B$8,Nutrients!$ED$8,Nutrients!$ED$9)*AH$7)+(((IF($A$8=Nutrients!$B$79,Nutrients!$ED$79,(IF($A$8=Nutrients!$B$77,Nutrients!$ED$77,Nutrients!$ED$78)))))*AH$8))/2000","v":0},{"$f":"(SUMPRODUCT(AI$9:AI$229,Nutrients!$ED$8:$ED$228)+(IF($A$7=Nutrients!$B$8,Nutrients!$ED$8,Nutrients!$ED$9)*AI$7)+(((IF($A$8=Nutrients!$B$79,Nutrients!$ED$79,(IF($A$8=Nutrients!$B$77,Nutrients!$ED$77,Nutrients!$ED$78)))))*AI$8))/2000","v":0},null,{"$f":"(SUMPRODUCT(AK$9:AK$229,Nutrients!$ED$8:$ED$228)+(IF($A$7=Nutrients!$B$8,Nutrients!$ED$8,Nutrients!$ED$9)*AK$7)+(((IF($A$8=Nutrients!$B$79,Nutrients!$ED$79,(IF($A$8=Nutrients!$B$77,Nutrients!$ED$77,Nutrients!$ED$78)))))*AK$8))/2000","v":0},{"$f":"(SUMPRODUCT(AL$9:AL$229,Nutrients!$ED$8:$ED$228)+(IF($A$7=Nutrients!$B$8,Nutrients!$ED$8,Nutrients!$ED$9)*AL$7)+(((IF($A$8=Nutrients!$B$79,Nutrients!$ED$79,(IF($A$8=Nutrients!$B$77,Nutrients!$ED$77,Nutrients!$ED$78)))))*AL$8))/2000","v":0},{"$f":"(SUMPRODUCT(AM$9:AM$229,Nutrients!$ED$8:$ED$228)+(IF($A$7=Nutrients!$B$8,Nutrients!$ED$8,Nutrients!$ED$9)*AM$7)+(((IF($A$8=Nutrients!$B$79,Nutrients!$ED$79,(IF($A$8=Nutrients!$B$77,Nutrients!$ED$77,Nutrients!$ED$78)))))*AM$8))/2000","v":0},{"$f":"(SUMPRODUCT(AN$9:AN$229,Nutrients!$ED$8:$ED$228)+(IF($A$7=Nutrients!$B$8,Nutrients!$ED$8,Nutrients!$ED$9)*AN$7)+(((IF($A$8=Nutrients!$B$79,Nutrients!$ED$79,(IF($A$8=Nutrients!$B$77,Nutrients!$ED$77,Nutrients!$ED$78)))))*AN$8))/2000","v":0},{"$f":"(SUMPRODUCT(AO$9:AO$229,Nutrients!$ED$8:$ED$228)+(IF($A$7=Nutrients!$B$8,Nutrients!$ED$8,Nutrients!$ED$9)*AO$7)+(((IF($A$8=Nutrients!$B$79,Nutrients!$ED$79,(IF($A$8=Nutrients!$B$77,Nutrients!$ED$77,Nutrients!$ED$78)))))*AO$8))/2000","v":0},{"$f":"(SUMPRODUCT(AP$9:AP$229,Nutrients!$ED$8:$ED$228)+(IF($A$7=Nutrients!$B$8,Nutrients!$ED$8,Nutrients!$ED$9)*AP$7)+(((IF($A$8=Nutrients!$B$79,Nutrients!$ED$79,(IF($A$8=Nutrients!$B$77,Nutrients!$ED$77,Nutrients!$ED$78)))))*AP$8))/2000","v":0},null,{"$f":"(SUMPRODUCT(AR$9:AR$229,Nutrients!$ED$8:$ED$228)+(IF($A$7=Nutrients!$B$8,Nutrients!$ED$8,Nutrients!$ED$9)*AR$7)+(((IF($A$8=Nutrients!$B$79,Nutrients!$ED$79,(IF($A$8=Nutrients!$B$77,Nutrients!$ED$77,Nutrients!$ED$78)))))*AR$8))/2000","v":0},{"$f":"(SUMPRODUCT(AS$9:AS$229,Nutrients!$ED$8:$ED$228)+(IF($A$7=Nutrients!$B$8,Nutrients!$ED$8,Nutrients!$ED$9)*AS$7)+(((IF($A$8=Nutrients!$B$79,Nutrients!$ED$79,(IF($A$8=Nutrients!$B$77,Nutrients!$ED$77,Nutrients!$ED$78)))))*AS$8))/2000","v":0},{"$f":"(SUMPRODUCT(AT$9:AT$229,Nutrients!$ED$8:$ED$228)+(IF($A$7=Nutrients!$B$8,Nutrients!$ED$8,Nutrients!$ED$9)*AT$7)+(((IF($A$8=Nutrients!$B$79,Nutrients!$ED$79,(IF($A$8=Nutrients!$B$77,Nutrients!$ED$77,Nutrients!$ED$78)))))*AT$8))/2000","v":0},{"$f":"(SUMPRODUCT(AU$9:AU$229,Nutrients!$ED$8:$ED$228)+(IF($A$7=Nutrients!$B$8,Nutrients!$ED$8,Nutrients!$ED$9)*AU$7)+(((IF($A$8=Nutrients!$B$79,Nutrients!$ED$79,(IF($A$8=Nutrients!$B$77,Nutrients!$ED$77,Nutrients!$ED$78)))))*AU$8))/2000","v":0},{"$f":"(SUMPRODUCT(AV$9:AV$229,Nutrients!$ED$8:$ED$228)+(IF($A$7=Nutrients!$B$8,Nutrients!$ED$8,Nutrients!$ED$9)*AV$7)+(((IF($A$8=Nutrients!$B$79,Nutrients!$ED$79,(IF($A$8=Nutrients!$B$77,Nutrients!$ED$77,Nutrients!$ED$78)))))*AV$8))/2000","v":0},{"$f":"(SUMPRODUCT(AW$9:AW$229,Nutrients!$ED$8:$ED$228)+(IF($A$7=Nutrients!$B$8,Nutrients!$ED$8,Nutrients!$ED$9)*AW$7)+(((IF($A$8=Nutrients!$B$79,Nutrients!$ED$79,(IF($A$8=Nutrients!$B$77,Nutrients!$ED$77,Nutrients!$ED$78)))))*AW$8))/2000","v":0}]
["IV value of diet",{"$f":"(SUMPRODUCT(B$9:B$229,Nutrients!$EH$8:$EH$228)+(IF($A$7=Nutrients!$B$8,Nutrients!$EH$8,Nutrients!$EH$9)*B$7)+(((IF($A$8=Nutrients!$B$79,Nutrients!$EH$79,(IF($A$8=Nutrients!$B$77,Nutrients!$EH$77,Nutrients!$EH$78)))))*B$8))/2000","v":34.658564713833037},{"$f":"(SUMPRODUCT(C$9:C$229,Nutrients!$EH$8:$EH$228)+(IF($A$7=Nutrients!$B$8,Nutrients!$EH$8,Nutrients!$EH$9)*C$7)+(((IF($A$8=Nutrients!$B$79,Nutrients!$EH$79,(IF($A$8=Nutrients!$B$77,Nutrients!$EH$77,Nutrients!$EH$78)))))*C$8))/2000","v":36.119060232185333},{"$f":"(SUMPRODUCT(D$9:D$229,Nutrients!$EH$8:$EH$228)+(IF($A$7=Nutrients!$B$8,Nutrients!$EH$8,Nutrients!$EH$9)*D$7)+(((IF($A$8=Nutrients!$B$79,Nutrients!$EH$79,(IF($A$8=Nutrients!$B$77,Nutrients!$EH$77,Nutrients!$EH$78)))))*D$8))/2000","v":37.38889298377596},{"$f":"(SUMPRODUCT(E$9:E$229,Nutrients!$EH$8:$EH$228)+(IF($A$7=Nutrients!$B$8,Nutrients!$EH$8,Nutrients!$EH$9)*E$7)+(((IF($A$8=Nutrients!$B$79,Nutrients!$EH$79,(IF($A$8=Nutrients!$B$77,Nutrients!$EH$77,Nutrients!$EH$78)))))*E$8))/2000","v":38.453689691212816},{"$f":"(SUMPRODUCT(F$9:F$229,Nutrients!$EH$8:$EH$228)+(IF($A$7=Nutrients!$B$8,Nutrients!$EH$8,Nutrients!$EH$9)*F$7)+(((IF($A$8=Nutrients!$B$79,Nutrients!$EH$79,(IF($A$8=Nutrients!$B$77,Nutrients!$EH$77,Nutrients!$EH$78)))))*F$8))/2000","v":39.1878815182761},{"$f":"(SUMPRODUCT(G$9:G$229,Nutrients!$EH$8:$EH$228)+(IF($A$7=Nutrients!$B$8,Nutrients!$EH$8,Nutrients!$EH$9)*G$7)+(((IF($A$8=Nutrients!$B$79,Nutrients!$EH$79,(IF($A$8=Nutrients!$B$77,Nutrients!$EH$77,Nutrients!$EH$78)))))*G$8))/2000","v":39.544986782030342},null,{"$f":"(SUMPRODUCT(I$9:I$229,Nutrients!$EH$8:$EH$228)+(IF($A$7=Nutrients!$B$8,Nutrients!$EH$8,Nutrients!$EH$9)*I$7)+(((IF($A$8=Nutrients!$B$79,Nutrients!$EH$79,(IF($A$8=Nutrients!$B$77,Nutrients!$EH$77,Nutrients!$EH$78)))))*I$8))/2000","v":33.705831229742145},{"$f":"(SUMPRODUCT(J$9:J$229,Nutrients!$EH$8:$EH$228)+(IF($A$7=Nutrients!$B$8,Nutrients!$EH$8,Nutrients!$EH$9)*J$7)+(((IF($A$8=Nutrients!$B$79,Nutrients!$EH$79,(IF($A$8=Nutrients!$B$77,Nutrients!$EH$77,Nutrients!$EH$78)))))*J$8))/2000","v":35.150868453451629},{"$f":"(SUMPRODUCT(K$9:K$229,Nutrients!$EH$8:$EH$228)+(IF($A$7=Nutrients!$B$8,Nutrients!$EH$8,Nutrients!$EH$9)*K$7)+(((IF($A$8=Nutrients!$B$79,Nutrients!$EH$79,(IF($A$8=Nutrients!$B$77,Nutrients!$EH$77,Nutrients!$EH$78)))))*K$8))/2000","v":36.408029393474912},{"$f":"(SUMPRODUCT(L$9:L$229,Nutrients!$EH$8:$EH$228)+(IF($A$7=Nutrients!$B$8,Nutrients!$EH$8,Nutrients!$EH$9)*L$7)+(((IF($A$8=Nutrients!$B$79,Nutrients!$EH$79,(IF($A$8=Nutrients!$B$77,Nutrients!$EH$77,Nutrients!$EH$78)))))*L$8))/2000","v":37.474270717338129},{"$f":"(SUMPRODUCT(M$9:M$229,Nutrients!$EH$8:$EH$228)+(IF($A$7=Nutrients!$B$8,Nutrients!$EH$8,Nutrients!$EH$9)*M$7)+(((IF($A$8=Nutrients!$B$79,Nutrients!$EH$79,(IF($A$8=Nutrients!$B$77,Nutrients!$EH$77,Nutrients!$EH$78)))))*M$8))/2000","v":38.20600811095867},{"$f":"(SUMPRODUCT(N$9:N$229,Nutrients!$EH$8:$EH$228)+(IF($A$7=Nutrients!$B$8,Nutrients!$EH$8,Nutrients!$EH$9)*N$7)+(((IF($A$8=Nutrients!$B$79,Nutrients!$EH$79,(IF($A$8=Nutrients!$B$77,Nutrients!$EH$77,Nutrients!$EH$78)))))*N$8))/2000","v":38.561570138454648},null,{"$f":"(SUMPRODUCT(P$9:P$229,Nutrients!$EH$8:$EH$228)+(IF($A$7=Nutrients!$B$8,Nutrients!$EH$8,Nutrients!$EH$9)*P$7)+(((IF($A$8=Nutrients!$B$79,Nutrients!$EH$79,(IF($A$8=Nutrients!$B$77,Nutrients!$EH$77,Nutrients!$EH$78)))))*P$8))/2000","v":32.732701013452271},{"$f":"(SUMPRODUCT(Q$9:Q$229,Nutrients!$EH$8:$EH$228)+(IF($A$7=Nutrients!$B$8,Nutrients!$EH$8,Nutrients!$EH$9)*Q$7)+(((IF($A$8=Nutrients!$B$79,Nutrients!$EH$79,(IF($A$8=Nutrients!$B$77,Nutrients!$EH$77,Nutrients!$EH$78)))))*Q$8))/2000","v":34.168657429689304},{"$f":"(SUMPRODUCT(R$9:R$229,Nutrients!$EH$8:$EH$228)+(IF($A$7=Nutrients!$B$8,Nutrients!$EH$8,Nutrients!$EH$9)*R$7)+(((IF($A$8=Nutrients!$B$79,Nutrients!$EH$79,(IF($A$8=Nutrients!$B$77,Nutrients!$EH$77,Nutrients!$EH$78)))))*R$8))/2000","v":35.416462630727601},{"$f":"(SUMPRODUCT(S$9:S$229,Nutrients!$EH$8:$EH$228)+(IF($A$7=Nutrients!$B$8,Nutrients!$EH$8,Nutrients!$EH$9)*S$7)+(((IF($A$8=Nutrients!$B$79,Nutrients!$EH$79,(IF($A$8=Nutrients!$B$77,Nutrients!$EH$77,Nutrients!$EH$78)))))*S$8))/2000","v":36.487123206434887},{"$f":"(SUMPRODUCT(T$9:T$229,Nutrients!$EH$8:$EH$228)+(IF($A$7=Nutrients!$B$8,Nutrients!$EH$8,Nutrients!$EH$9)*T$7)+(((IF($A$8=Nutrients!$B$79,Nutrients!$EH$79,(IF($A$8=Nutrients!$B$77,Nutrients!$EH$77,Nutrients!$EH$78)))))*T$8))/2000","v":37.20724848752301},{"$f":"(SUMPRODUCT(U$9:U$229,Nutrients!$EH$8:$EH$228)+(IF($A$7=Nutrients!$B$8,Nutrients!$EH$8,Nutrients!$EH$9)*U$7)+(((IF($A$8=Nutrients!$B$79,Nutrients!$EH$79,(IF($A$8=Nutrients!$B$77,Nutrients!$EH$77,Nutrients!$EH$78)))))*U$8))/2000","v":37.558567012371419},null,{"$f":"(SUMPRODUCT(W$9:W$229,Nutrients!$EH$8:$EH$228)+(IF($A$7=Nutrients!$B$8,Nutrients!$EH$8,Nutrients!$EH$9)*W$7)+(((IF($A$8=Nutrients!$B$79,Nutrients!$EH$79,(IF($A$8=Nutrients!$B$77,Nutrients!$EH$77,Nutrients!$EH$78)))))*W$8))/2000","v":31.760324223832395},{"$f":"(SUMPRODUCT(X$9:X$229,Nutrients!$EH$8:$EH$228)+(IF($A$7=Nutrients!$B$8,Nutrients!$EH$8,Nutrients!$EH$9)*X$7)+(((IF($A$8=Nutrients!$B$79,Nutrients!$EH$79,(IF($A$8=Nutrients!$B$77,Nutrients!$EH$77,Nutrients!$EH$78)))))*X$8))/2000","v":33.18740201779972},{"$f":"(SUMPRODUCT(Y$9:Y$229,Nutrients!$EH$8:$EH$228)+(IF($A$7=Nutrients!$B$8,Nutrients!$EH$8,Nutrients!$EH$9)*Y$7)+(((IF($A$8=Nutrients!$B$79,Nutrients!$EH$79,(IF($A$8=Nutrients!$B$77,Nutrients!$EH$77,Nutrients!$EH$78)))))*Y$8))/2000","v":34.439223395280514},{"$f":"(SUMPRODUCT(Z$9:Z$229,Nutrients!$EH$8:$EH$228)+(IF($A$7=Nutrients!$B$8,Nutrients!$EH$8,Nutrients!$EH$9)*Z$7)+(((IF($A$8=Nutrients!$B$79,Nutrients!$EH$79,(IF($A$8=Nutrients!$B$77,Nutrients!$EH$77,Nutrients!$EH$78)))))*Z$8))/2000","v":35.496072020189267},{"$f":"(SUMPRODUCT(AA$9:AA$229,Nutrients!$EH$8:$EH$228)+(IF($A$7=Nutrients!$B$8,Nutrients!$EH$8,Nutrients!$EH$9)*AA$7)+(((IF($A$8=Nutrients!$B$79,Nutrients!$EH$79,(IF($A$8=Nutrients!$B$77,Nutrients!$EH$77,Nutrients!$EH$78)))))*AA$8))/2000","v":36.207373222367529},{"$f":"(SUMPRODUCT(AB$9:AB$229,Nutrients!$EH$8:$EH$228)+(IF($A$7=Nutrients!$B$8,Nutrients!$EH$8,Nutrients!$EH$9)*AB$7)+(((IF($A$8=Nutrients!$B$79,Nutrients!$EH$79,(IF($A$8=Nutrients!$B$77,Nutrients!$EH$77,Nutrients!$EH$78)))))*AB$8))/2000","v":36.548389500864616},null,{"$f":"(SUMPRODUCT(AD$9:AD$229,Nutrients!$EH$8:$EH$228)+(IF($A$7=Nutrients!$B$8,Nutrients!$EH$8,Nutrients!$EH$9)*AD$7)+(((IF($A$8=Nutrients!$B$79,Nutrients!$EH$79,(IF($A$8=Nutrients!$B$77,Nutrients!$EH$77,Nutrients!$EH$78)))))*AD$8))/2000","v":30.788571372040046},{"$f":"(SUMPRODUCT(AE$9:AE$229,Nutrients!$EH$8:$EH$228)+(IF($A$7=Nutrients!$B$8,Nutrients!$EH$8,Nutrients!$EH$9)*AE$7)+(((IF($A$8=Nutrients!$B$79,Nutrients!$EH$79,(IF($A$8=Nutrients!$B$77,Nutrients!$EH$77,Nutrients!$EH$78)))))*AE$8))/2000","v":32.219071076373034},{"$f":"(SUMPRODUCT(AF$9:AF$229,Nutrients!$EH$8:$EH$228)+(IF($A$7=Nutrients!$B$8,Nutrients!$EH$8,Nutrients!$EH$9)*AF$7)+(((IF($A$8=Nutrients!$B$79,Nutrients!$EH$79,(IF($A$8=Nutrients!$B$77,Nutrients!$EH$77,Nutrients!$EH$78)))))*AF$8))/2000","v":33.458787372191345},{"$f":"(SUMPRODUCT(AG$9:AG$229,Nutrients!$EH$8:$EH$228)+(IF($A$7=Nutrients!$B$8,Nutrients!$EH$8,Nutrients!$EH$9)*AG$7)+(((IF($A$8=Nutrients!$B$79,Nutrients!$EH$79,(IF($A$8=Nutrients!$B$77,Nutrients!$EH$77,Nutrients!$EH$78)))))*AG$8))/2000","v":34.50088672759901},{"$f":"(SUMPRODUCT(AH$9:AH$229,Nutrients!$EH$8:$EH$228)+(IF($A$7=Nutrients!$B$8,Nutrients!$EH$8,Nutrients!$EH$9)*AH$7)+(((IF($A$8=Nutrients!$B$79,Nutrients!$EH$79,(IF($A$8=Nutrients!$B$77,Nutrients!$EH$77,Nutrients!$EH$78)))))*AH$8))/2000","v":35.1864749556552},{"$f":"(SUMPRODUCT(AI$9:AI$229,Nutrients!$EH$8:$EH$228)+(IF($A$7=Nutrients!$B$8,Nutrients!$EH$8,Nutrients!$EH$9)*AI$7)+(((IF($A$8=Nutrients!$B$79,Nutrients!$EH$79,(IF($A$8=Nutrients!$B$77,Nutrients!$EH$77,Nutrients!$EH$78)))))*AI$8))/2000","v":35.513303310951791},null,{"$f":"(SUMPRODUCT(AK$9:AK$229,Nutrients!$EH$8:$EH$228)+(IF($A$7=Nutrients!$B$8,Nutrients!$EH$8,Nutrients!$EH$9)*AK$7)+(((IF($A$8=Nutrients!$B$79,Nutrients!$EH$79,(IF($A$8=Nutrients!$B$77,Nutrients!$EH$77,Nutrients!$EH$78)))))*AK$8))/2000","v":29.763171736701704},{"$f":"(SUMPRODUCT(AL$9:AL$229,Nutrients!$EH$8:$EH$228)+(IF($A$7=Nutrients!$B$8,Nutrients!$EH$8,Nutrients!$EH$9)*AL$7)+(((IF($A$8=Nutrients!$B$79,Nutrients!$EH$79,(IF($A$8=Nutrients!$B$77,Nutrients!$EH$77,Nutrients!$EH$78)))))*AL$8))/2000","v":31.247354142478294},{"$f":"(SUMPRODUCT(AM$9:AM$229,Nutrients!$EH$8:$EH$228)+(IF($A$7=Nutrients!$B$8,Nutrients!$EH$8,Nutrients!$EH$9)*AM$7)+(((IF($A$8=Nutrients!$B$79,Nutrients!$EH$79,(IF($A$8=Nutrients!$B$77,Nutrients!$EH$77,Nutrients!$EH$78)))))*AM$8))/2000","v":32.472004767480598},{"$f":"(SUMPRODUCT(AN$9:AN$229,Nutrients!$EH$8:$EH$228)+(IF($A$7=Nutrients!$B$8,Nutrients!$EH$8,Nutrients!$EH$9)*AN$7)+(((IF($A$8=Nutrients!$B$79,Nutrients!$EH$79,(IF($A$8=Nutrients!$B$77,Nutrients!$EH$77,Nutrients!$EH$78)))))*AN$8))/2000","v":33.490622380770702},{"$f":"(SUMPRODUCT(AO$9:AO$229,Nutrients!$EH$8:$EH$228)+(IF($A$7=Nutrients!$B$8,Nutrients!$EH$8,Nutrients!$EH$9)*AO$7)+(((IF($A$8=Nutrients!$B$79,Nutrients!$EH$79,(IF($A$8=Nutrients!$B$77,Nutrients!$EH$77,Nutrients!$EH$78)))))*AO$8))/2000","v":34.154494942970253},{"$f":"(SUMPRODUCT(AP$9:AP$229,Nutrients!$EH$8:$EH$228)+(IF($A$7=Nutrients!$B$8,Nutrients!$EH$8,Nutrients!$EH$9)*AP$7)+(((IF($A$8=Nutrients!$B$79,Nutrients!$EH$79,(IF($A$8=Nutrients!$B$77,Nutrients!$EH$77,Nutrients!$EH$78)))))*AP$8))/2000","v":34.478060691133393},null,{"$f":"(SUMPRODUCT(AR$9:AR$229,Nutrients!$EH$8:$EH$228)+(IF($A$7=Nutrients!$B$8,Nutrients!$EH$8,Nutrients!$EH$9)*AR$7)+(((IF($A$8=Nutrients!$B$79,Nutrients!$EH$79,(IF($A$8=Nutrients!$B$77,Nutrients!$EH$77,Nutrients!$EH$78)))))*AR$8))/2000","v":28.811956489715804},{"$f":"(SUMPRODUCT(AS$9:AS$229,Nutrients!$EH$8:$EH$228)+(IF($A$7=Nutrients!$B$8,Nutrients!$EH$8,Nutrients!$EH$9)*AS$7)+(((IF($A$8=Nutrients!$B$79,Nutrients!$EH$79,(IF($A$8=Nutrients!$B$77,Nutrients!$EH$77,Nutrients!$EH$78)))))*AS$8))/2000","v":30.27510924887207},{"$f":"(SUMPRODUCT(AT$9:AT$229,Nutrients!$EH$8:$EH$228)+(IF($A$7=Nutrients!$B$8,Nutrients!$EH$8,Nutrients!$EH$9)*AT$7)+(((IF($A$8=Nutrients!$B$79,Nutrients!$EH$79,(IF($A$8=Nutrients!$B$77,Nutrients!$EH$77,Nutrients!$EH$78)))))*AT$8))/2000","v":31.482030440715349},{"$f":"(SUMPRODUCT(AU$9:AU$229,Nutrients!$EH$8:$EH$228)+(IF($A$7=Nutrients!$B$8,Nutrients!$EH$8,Nutrients!$EH$9)*AU$7)+(((IF($A$8=Nutrients!$B$79,Nutrients!$EH$79,(IF($A$8=Nutrients!$B$77,Nutrients!$EH$77,Nutrients!$EH$78)))))*AU$8))/2000","v":32.462851994037003},{"$f":"(SUMPRODUCT(AV$9:AV$229,Nutrients!$EH$8:$EH$228)+(IF($A$7=Nutrients!$B$8,Nutrients!$EH$8,Nutrients!$EH$9)*AV$7)+(((IF($A$8=Nutrients!$B$79,Nutrients!$EH$79,(IF($A$8=Nutrients!$B$77,Nutrients!$EH$77,Nutrients!$EH$78)))))*AV$8))/2000","v":33.122637196513061},{"$f":"(SUMPRODUCT(AW$9:AW$229,Nutrients!$EH$8:$EH$228)+(IF($A$7=Nutrients!$B$8,Nutrients!$EH$8,Nutrients!$EH$9)*AW$7)+(((IF($A$8=Nutrients!$B$79,Nutrients!$EH$79,(IF($A$8=Nutrients!$B$77,Nutrients!$EH$77,Nutrients!$EH$78)))))*AW$8))/2000","v":33.442994451861225}]
["IV value of product, estimate",{"$f":"(0.4472*B304)+51.796","v":67.295310140026132},67.94844373583328,68.516312942344612,68.992490029910371,69.320820614973073,69.480518088923972,null,{"$f":"(0.4472*I304)+51.796","v":66.869247725940681},67.515468372383566,68.077670744761974,68.554493864793614,68.881726827220717,69.040734165916916,null,{"$f":"(0.4472*P304)+51.796","v":66.43406389321585},67.07622360255705,67.634242088461377,68.113041497917678,68.435081523620283,68.592191167932498,null,{"$f":"(0.4472*W304)+51.796","v":65.999216992897843},66.637406182360039,67.197220702369449,67.669843407428644,67.987937305042763,68.140439784786651,null,{"$f":"(0.4472*AD304)+51.796","v":65.564649117576309},66.204368585354018,66.758769712843971,67.224796544582276,67.531391600169002,67.67754924065764,null,{"$f":"(0.4472*AK304)+51.796","v":65.106090400653002},65.769816772516293,66.317480532017328,66.773006328680651,67.069890138496291,67.214588741074849,null,{"$f":"(0.4472*AR304)+51.796","v":64.680706942200914},65.33502885609559,65.874764013087898,66.313387411733345,66.608443354280638,66.751707118872332]
["Na, %",{"$f":"(SUMPRODUCT(B$9:B$229,Nutrients!$BW$8:$BW$228)+(IF($A$7=Nutrients!$B$8,Nutrients!$BW$8,Nutrients!$BW$9)*B$7)+(((IF($A$8=Nutrients!$B$79,Nutrients!$BW$79,(IF($A$8=Nutrients!$B$77,Nutrients!$BW$77,Nutrients!$BW$78)))))*B$8))/2000","v":0.17839028042000546},{"$f":"(SUMPRODUCT(C$9:C$229,Nutrients!$BW$8:$BW$228)+(IF($A$7=Nutrients!$B$8,Nutrients!$BW$8,Nutrients!$BW$9)*C$7)+(((IF($A$8=Nutrients!$B$79,Nutrients!$BW$79,(IF($A$8=Nutrients!$B$77,Nutrients!$BW$77,Nutrients!$BW$78)))))*C$8))/2000","v":0.1747961379454851},{"$f":"(SUMPRODUCT(D$9:D$229,Nutrients!$BW$8:$BW$228)+(IF($A$7=Nutrients!$B$8,Nutrients!$BW$8,Nutrients!$BW$9)*D$7)+(((IF($A$8=Nutrients!$B$79,Nutrients!$BW$79,(IF($A$8=Nutrients!$B$77,Nutrients!$BW$77,Nutrients!$BW$78)))))*D$8))/2000","v":0.17169952789434653},{"$f":"(SUMPRODUCT(E$9:E$229,Nutrients!$BW$8:$BW$228)+(IF($A$7=Nutrients!$B$8,Nutrients!$BW$8,Nutrients!$BW$9)*E$7)+(((IF($A$8=Nutrients!$B$79,Nutrients!$BW$79,(IF($A$8=Nutrients!$B$77,Nutrients!$BW$77,Nutrients!$BW$78)))))*E$8))/2000","v":0.16911270535843034},{"$f":"(SUMPRODUCT(F$9:F$229,Nutrients!$BW$8:$BW$228)+(IF($A$7=Nutrients!$B$8,Nutrients!$BW$8,Nutrients!$BW$9)*F$7)+(((IF($A$8=Nutrients!$B$79,Nutrients!$BW$79,(IF($A$8=Nutrients!$B$77,Nutrients!$BW$77,Nutrients!$BW$78)))))*F$8))/2000","v":0.16737197925804595},{"$f":"(SUMPRODUCT(G$9:G$229,Nutrients!$BW$8:$BW$228)+(IF($A$7=Nutrients!$B$8,Nutrients!$BW$8,Nutrients!$BW$9)*G$7)+(((IF($A$8=Nutrients!$B$79,Nutrients!$BW$79,(IF($A$8=Nutrients!$B$77,Nutrients!$BW$77,Nutrients!$BW$78)))))*G$8))/2000","v":0.1664919947730959},null,{"$f":"(SUMPRODUCT(I$9:I$229,Nutrients!$BW$8:$BW$228)+(IF($A$7=Nutrients!$B$8,Nutrients!$BW$8,Nutrients!$BW$9)*I$7)+(((IF($A$8=Nutrients!$B$79,Nutrients!$BW$79,(IF($A$8=Nutrients!$B$77,Nutrients!$BW$77,Nutrients!$BW$78)))))*I$8))/2000","v":0.18562286981309919},{"$f":"(SUMPRODUCT(J$9:J$229,Nutrients!$BW$8:$BW$228)+(IF($A$7=Nutrients!$B$8,Nutrients!$BW$8,Nutrients!$BW$9)*J$7)+(((IF($A$8=Nutrients!$B$79,Nutrients!$BW$79,(IF($A$8=Nutrients!$B$77,Nutrients!$BW$77,Nutrients!$BW$78)))))*J$8))/2000","v":0.18206569740360845},{"$f":"(SUMPRODUCT(K$9:K$229,Nutrients!$BW$8:$BW$228)+(IF($A$7=Nutrients!$B$8,Nutrients!$BW$8,Nutrients!$BW$9)*K$7)+(((IF($A$8=Nutrients!$B$79,Nutrients!$BW$79,(IF($A$8=Nutrients!$B$77,Nutrients!$BW$77,Nutrients!$BW$78)))))*K$8))/2000","v":0.17899888148280288},{"$f":"(SUMPRODUCT(L$9:L$229,Nutrients!$BW$8:$BW$228)+(IF($A$7=Nutrients!$B$8,Nutrients!$BW$8,Nutrients!$BW$9)*L$7)+(((IF($A$8=Nutrients!$B$79,Nutrients!$BW$79,(IF($A$8=Nutrients!$B$77,Nutrients!$BW$77,Nutrients!$BW$78)))))*L$8))/2000","v":0.17640287222484963},{"$f":"(SUMPRODUCT(M$9:M$229,Nutrients!$BW$8:$BW$228)+(IF($A$7=Nutrients!$B$8,Nutrients!$BW$8,Nutrients!$BW$9)*M$7)+(((IF($A$8=Nutrients!$B$79,Nutrients!$BW$79,(IF($A$8=Nutrients!$B$77,Nutrients!$BW$77,Nutrients!$BW$78)))))*M$8))/2000","v":0.17466956877762876},{"$f":"(SUMPRODUCT(N$9:N$229,Nutrients!$BW$8:$BW$228)+(IF($A$7=Nutrients!$B$8,Nutrients!$BW$8,Nutrients!$BW$9)*N$7)+(((IF($A$8=Nutrients!$B$79,Nutrients!$BW$79,(IF($A$8=Nutrients!$B$77,Nutrients!$BW$77,Nutrients!$BW$78)))))*N$8))/2000","v":0.17379099869826903},null,{"$f":"(SUMPRODUCT(P$9:P$229,Nutrients!$BW$8:$BW$228)+(IF($A$7=Nutrients!$B$8,Nutrients!$BW$8,Nutrients!$BW$9)*P$7)+(((IF($A$8=Nutrients!$B$79,Nutrients!$BW$79,(IF($A$8=Nutrients!$B$77,Nutrients!$BW$77,Nutrients!$BW$78)))))*P$8))/2000","v":0.19290296032595378},{"$f":"(SUMPRODUCT(Q$9:Q$229,Nutrients!$BW$8:$BW$228)+(IF($A$7=Nutrients!$B$8,Nutrients!$BW$8,Nutrients!$BW$9)*Q$7)+(((IF($A$8=Nutrients!$B$79,Nutrients!$BW$79,(IF($A$8=Nutrients!$B$77,Nutrients!$BW$77,Nutrients!$BW$78)))))*Q$8))/2000","v":0.18936723619453219},{"$f":"(SUMPRODUCT(R$9:R$229,Nutrients!$BW$8:$BW$228)+(IF($A$7=Nutrients!$B$8,Nutrients!$BW$8,Nutrients!$BW$9)*R$7)+(((IF($A$8=Nutrients!$B$79,Nutrients!$BW$79,(IF($A$8=Nutrients!$B$77,Nutrients!$BW$77,Nutrients!$BW$78)))))*R$8))/2000","v":0.18632393708775447},{"$f":"(SUMPRODUCT(S$9:S$229,Nutrients!$BW$8:$BW$228)+(IF($A$7=Nutrients!$B$8,Nutrients!$BW$8,Nutrients!$BW$9)*S$7)+(((IF($A$8=Nutrients!$B$79,Nutrients!$BW$79,(IF($A$8=Nutrients!$B$77,Nutrients!$BW$77,Nutrients!$BW$78)))))*S$8))/2000","v":0.18371713584127405},{"$f":"(SUMPRODUCT(T$9:T$229,Nutrients!$BW$8:$BW$228)+(IF($A$7=Nutrients!$B$8,Nutrients!$BW$8,Nutrients!$BW$9)*T$7)+(((IF($A$8=Nutrients!$B$79,Nutrients!$BW$79,(IF($A$8=Nutrients!$B$77,Nutrients!$BW$77,Nutrients!$BW$78)))))*T$8))/2000","v":0.18200143055036358},{"$f":"(SUMPRODUCT(U$9:U$229,Nutrients!$BW$8:$BW$228)+(IF($A$7=Nutrients!$B$8,Nutrients!$BW$8,Nutrients!$BW$9)*U$7)+(((IF($A$8=Nutrients!$B$79,Nutrients!$BW$79,(IF($A$8=Nutrients!$B$77,Nutrients!$BW$77,Nutrients!$BW$78)))))*U$8))/2000","v":0.1811301456613702},null,{"$f":"(SUMPRODUCT(W$9:W$229,Nutrients!$BW$8:$BW$228)+(IF($A$7=Nutrients!$B$8,Nutrients!$BW$8,Nutrients!$BW$9)*W$7)+(((IF($A$8=Nutrients!$B$79,Nutrients!$BW$79,(IF($A$8=Nutrients!$B$77,Nutrients!$BW$77,Nutrients!$BW$78)))))*W$8))/2000","v":0.20018196879032896},{"$f":"(SUMPRODUCT(X$9:X$229,Nutrients!$BW$8:$BW$228)+(IF($A$7=Nutrients!$B$8,Nutrients!$BW$8,Nutrients!$BW$9)*X$7)+(((IF($A$8=Nutrients!$B$79,Nutrients!$BW$79,(IF($A$8=Nutrients!$B$77,Nutrients!$BW$77,Nutrients!$BW$78)))))*X$8))/2000","v":0.19666798822364953},{"$f":"(SUMPRODUCT(Y$9:Y$229,Nutrients!$BW$8:$BW$228)+(IF($A$7=Nutrients!$B$8,Nutrients!$BW$8,Nutrients!$BW$9)*Y$7)+(((IF($A$8=Nutrients!$B$79,Nutrients!$BW$79,(IF($A$8=Nutrients!$B$77,Nutrients!$BW$77,Nutrients!$BW$78)))))*Y$8))/2000","v":0.19361420156022802},{"$f":"(SUMPRODUCT(Z$9:Z$229,Nutrients!$BW$8:$BW$228)+(IF($A$7=Nutrients!$B$8,Nutrients!$BW$8,Nutrients!$BW$9)*Z$7)+(((IF($A$8=Nutrients!$B$79,Nutrients!$BW$79,(IF($A$8=Nutrients!$B$77,Nutrients!$BW$77,Nutrients!$BW$78)))))*Z$8))/2000","v":0.19103821967195403},{"$f":"(SUMPRODUCT(AA$9:AA$229,Nutrients!$BW$8:$BW$228)+(IF($A$7=Nutrients!$B$8,Nutrients!$BW$8,Nutrients!$BW$9)*AA$7)+(((IF($A$8=Nutrients!$B$79,Nutrients!$BW$79,(IF($A$8=Nutrients!$B$77,Nutrients!$BW$77,Nutrients!$BW$78)))))*AA$8))/2000","v":0.18933386385278517},{"$f":"(SUMPRODUCT(AB$9:AB$229,Nutrients!$BW$8:$BW$228)+(IF($A$7=Nutrients!$B$8,Nutrients!$BW$8,Nutrients!$BW$9)*AB$7)+(((IF($A$8=Nutrients!$B$79,Nutrients!$BW$79,(IF($A$8=Nutrients!$B$77,Nutrients!$BW$77,Nutrients!$BW$78)))))*AB$8))/2000","v":0.18849542032829325},null,{"$f":"(SUMPRODUCT(AD$9:AD$229,Nutrients!$BW$8:$BW$228)+(IF($A$7=Nutrients!$B$8,Nutrients!$BW$8,Nutrients!$BW$9)*AD$7)+(((IF($A$8=Nutrients!$B$79,Nutrients!$BW$79,(IF($A$8=Nutrients!$B$77,Nutrients!$BW$77,Nutrients!$BW$78)))))*AD$8))/2000","v":0.20745899107422577},{"$f":"(SUMPRODUCT(AE$9:AE$229,Nutrients!$BW$8:$BW$228)+(IF($A$7=Nutrients!$B$8,Nutrients!$BW$8,Nutrients!$BW$9)*AE$7)+(((IF($A$8=Nutrients!$B$79,Nutrients!$BW$79,(IF($A$8=Nutrients!$B$77,Nutrients!$BW$77,Nutrients!$BW$78)))))*AE$8))/2000","v":0.20393659587343096},{"$f":"(SUMPRODUCT(AF$9:AF$229,Nutrients!$BW$8:$BW$228)+(IF($A$7=Nutrients!$B$8,Nutrients!$BW$8,Nutrients!$BW$9)*AF$7)+(((IF($A$8=Nutrients!$B$79,Nutrients!$BW$79,(IF($A$8=Nutrients!$B$77,Nutrients!$BW$77,Nutrients!$BW$78)))))*AF$8))/2000","v":0.20091337096117329},{"$f":"(SUMPRODUCT(AG$9:AG$229,Nutrients!$BW$8:$BW$228)+(IF($A$7=Nutrients!$B$8,Nutrients!$BW$8,Nutrients!$BW$9)*AG$7)+(((IF($A$8=Nutrients!$B$79,Nutrients!$BW$79,(IF($A$8=Nutrients!$B$77,Nutrients!$BW$77,Nutrients!$BW$78)))))*AG$8))/2000","v":0.19835846349485534},{"$f":"(SUMPRODUCT(AH$9:AH$229,Nutrients!$BW$8:$BW$228)+(IF($A$7=Nutrients!$B$8,Nutrients!$BW$8,Nutrients!$BW$9)*AH$7)+(((IF($A$8=Nutrients!$B$79,Nutrients!$BW$79,(IF($A$8=Nutrients!$B$77,Nutrients!$BW$77,Nutrients!$BW$78)))))*AH$8))/2000","v":0.19673978885299195},{"$f":"(SUMPRODUCT(AI$9:AI$229,Nutrients!$BW$8:$BW$228)+(IF($A$7=Nutrients!$B$8,Nutrients!$BW$8,Nutrients!$BW$9)*AI$7)+(((IF($A$8=Nutrients!$B$79,Nutrients!$BW$79,(IF($A$8=Nutrients!$B$77,Nutrients!$BW$77,Nutrients!$BW$78)))))*AI$8))/2000","v":0.19594774977452786},null,{"$f":"(SUMPRODUCT(AK$9:AK$229,Nutrients!$BW$8:$BW$228)+(IF($A$7=Nutrients!$B$8,Nutrients!$BW$8,Nutrients!$BW$9)*AK$7)+(((IF($A$8=Nutrients!$B$79,Nutrients!$BW$79,(IF($A$8=Nutrients!$B$77,Nutrients!$BW$77,Nutrients!$BW$78)))))*AK$8))/2000","v":0.21486728563327551},{"$f":"(SUMPRODUCT(AL$9:AL$229,Nutrients!$BW$8:$BW$228)+(IF($A$7=Nutrients!$B$8,Nutrients!$BW$8,Nutrients!$BW$9)*AL$7)+(((IF($A$8=Nutrients!$B$79,Nutrients!$BW$79,(IF($A$8=Nutrients!$B$77,Nutrients!$BW$77,Nutrients!$BW$78)))))*AL$8))/2000","v":0.21121398836460173},{"$f":"(SUMPRODUCT(AM$9:AM$229,Nutrients!$BW$8:$BW$228)+(IF($A$7=Nutrients!$B$8,Nutrients!$BW$8,Nutrients!$BW$9)*AM$7)+(((IF($A$8=Nutrients!$B$79,Nutrients!$BW$79,(IF($A$8=Nutrients!$B$77,Nutrients!$BW$77,Nutrients!$BW$78)))))*AM$8))/2000","v":0.20821374060536282},{"$f":"(SUMPRODUCT(AN$9:AN$229,Nutrients!$BW$8:$BW$228)+(IF($A$7=Nutrients!$B$8,Nutrients!$BW$8,Nutrients!$BW$9)*AN$7)+(((IF($A$8=Nutrients!$B$79,Nutrients!$BW$79,(IF($A$8=Nutrients!$B$77,Nutrients!$BW$77,Nutrients!$BW$78)))))*AN$8))/2000","v":0.20573356687597472},{"$f":"(SUMPRODUCT(AO$9:AO$229,Nutrients!$BW$8:$BW$228)+(IF($A$7=Nutrients!$B$8,Nutrients!$BW$8,Nutrients!$BW$9)*AO$7)+(((IF($A$8=Nutrients!$B$79,Nutrients!$BW$79,(IF($A$8=Nutrients!$B$77,Nutrients!$BW$77,Nutrients!$BW$78)))))*AO$8))/2000","v":0.20418396325292856},{"$f":"(SUMPRODUCT(AP$9:AP$229,Nutrients!$BW$8:$BW$228)+(IF($A$7=Nutrients!$B$8,Nutrients!$BW$8,Nutrients!$BW$9)*AP$7)+(((IF($A$8=Nutrients!$B$79,Nutrients!$BW$79,(IF($A$8=Nutrients!$B$77,Nutrients!$BW$77,Nutrients!$BW$78)))))*AP$8))/2000","v":0.2033998927640788},null,{"$f":"(SUMPRODUCT(AR$9:AR$229,Nutrients!$BW$8:$BW$228)+(IF($A$7=Nutrients!$B$8,Nutrients!$BW$8,Nutrients!$BW$9)*AR$7)+(((IF($A$8=Nutrients!$B$79,Nutrients!$BW$79,(IF($A$8=Nutrients!$B$77,Nutrients!$BW$77,Nutrients!$BW$78)))))*AR$8))/2000","v":0.22209437244780594},{"$f":"(SUMPRODUCT(AS$9:AS$229,Nutrients!$BW$8:$BW$228)+(IF($A$7=Nutrients!$B$8,Nutrients!$BW$8,Nutrients!$BW$9)*AS$7)+(((IF($A$8=Nutrients!$B$79,Nutrients!$BW$79,(IF($A$8=Nutrients!$B$77,Nutrients!$BW$77,Nutrients!$BW$78)))))*AS$8))/2000","v":0.21849221670755783},{"$f":"(SUMPRODUCT(AT$9:AT$229,Nutrients!$BW$8:$BW$228)+(IF($A$7=Nutrients!$B$8,Nutrients!$BW$8,Nutrients!$BW$9)*AT$7)+(((IF($A$8=Nutrients!$B$79,Nutrients!$BW$79,(IF($A$8=Nutrients!$B$77,Nutrients!$BW$77,Nutrients!$BW$78)))))*AT$8))/2000","v":0.21552132635925586},{"$f":"(SUMPRODUCT(AU$9:AU$229,Nutrients!$BW$8:$BW$228)+(IF($A$7=Nutrients!$B$8,Nutrients!$BW$8,Nutrients!$BW$9)*AU$7)+(((IF($A$8=Nutrients!$B$79,Nutrients!$BW$79,(IF($A$8=Nutrients!$B$77,Nutrients!$BW$77,Nutrients!$BW$78)))))*AU$8))/2000","v":0.21316717711694511},{"$f":"(SUMPRODUCT(AV$9:AV$229,Nutrients!$BW$8:$BW$228)+(IF($A$7=Nutrients!$B$8,Nutrients!$BW$8,Nutrients!$BW$9)*AV$7)+(((IF($A$8=Nutrients!$B$79,Nutrients!$BW$79,(IF($A$8=Nutrients!$B$77,Nutrients!$BW$77,Nutrients!$BW$78)))))*AV$8))/2000","v":0.21162837239487978},{"$f":"(SUMPRODUCT(AW$9:AW$229,Nutrients!$BW$8:$BW$228)+(IF($A$7=Nutrients!$B$8,Nutrients!$BW$8,Nutrients!$BW$9)*AW$7)+(((IF($A$8=Nutrients!$B$79,Nutrients!$BW$79,(IF($A$8=Nutrients!$B$77,Nutrients!$BW$77,Nutrients!$BW$78)))))*AW$8))/2000","v":0.21085216926731284}]
["Cl, %",{"$f":"(SUMPRODUCT(B$9:B$229,Nutrients!$BT$8:$BT$228)+(IF($A$7=Nutrients!$B$8,Nutrients!$BT$8,Nutrients!$BT$9)*B$7)+(((IF($A$8=Nutrients!$B$79,Nutrients!$BT$79,(IF($A$8=Nutrients!$B$77,Nutrients!$BT$77,Nutrients!$BT$78)))))*B$8))/2000","v":0.31519434822612252},{"$f":"(SUMPRODUCT(C$9:C$229,Nutrients!$BT$8:$BT$228)+(IF($A$7=Nutrients!$B$8,Nutrients!$BT$8,Nutrients!$BT$9)*C$7)+(((IF($A$8=Nutrients!$B$79,Nutrients!$BT$79,(IF($A$8=Nutrients!$B$77,Nutrients!$BT$77,Nutrients!$BT$78)))))*C$8))/2000","v":0.3147366231672945},{"$f":"(SUMPRODUCT(D$9:D$229,Nutrients!$BT$8:$BT$228)+(IF($A$7=Nutrients!$B$8,Nutrients!$BT$8,Nutrients!$BT$9)*D$7)+(((IF($A$8=Nutrients!$B$79,Nutrients!$BT$79,(IF($A$8=Nutrients!$B$77,Nutrients!$BT$77,Nutrients!$BT$78)))))*D$8))/2000","v":0.31354180150272754},{"$f":"(SUMPRODUCT(E$9:E$229,Nutrients!$BT$8:$BT$228)+(IF($A$7=Nutrients!$B$8,Nutrients!$BT$8,Nutrients!$BT$9)*E$7)+(((IF($A$8=Nutrients!$B$79,Nutrients!$BT$79,(IF($A$8=Nutrients!$B$77,Nutrients!$BT$77,Nutrients!$BT$78)))))*E$8))/2000","v":0.31295871729246166},{"$f":"(SUMPRODUCT(F$9:F$229,Nutrients!$BT$8:$BT$228)+(IF($A$7=Nutrients!$B$8,Nutrients!$BT$8,Nutrients!$BT$9)*F$7)+(((IF($A$8=Nutrients!$B$79,Nutrients!$BT$79,(IF($A$8=Nutrients!$B$77,Nutrients!$BT$77,Nutrients!$BT$78)))))*F$8))/2000","v":0.31206915279820541},{"$f":"(SUMPRODUCT(G$9:G$229,Nutrients!$BT$8:$BT$228)+(IF($A$7=Nutrients!$B$8,Nutrients!$BT$8,Nutrients!$BT$9)*G$7)+(((IF($A$8=Nutrients!$B$79,Nutrients!$BT$79,(IF($A$8=Nutrients!$B$77,Nutrients!$BT$77,Nutrients!$BT$78)))))*G$8))/2000","v":0.31085636054251664},null,{"$f":"(SUMPRODUCT(I$9:I$229,Nutrients!$BT$8:$BT$228)+(IF($A$7=Nutrients!$B$8,Nutrients!$BT$8,Nutrients!$BT$9)*I$7)+(((IF($A$8=Nutrients!$B$79,Nutrients!$BT$79,(IF($A$8=Nutrients!$B$77,Nutrients!$BT$77,Nutrients!$BT$78)))))*I$8))/2000","v":0.32797913621121561},{"$f":"(SUMPRODUCT(J$9:J$229,Nutrients!$BT$8:$BT$228)+(IF($A$7=Nutrients!$B$8,Nutrients!$BT$8,Nutrients!$BT$9)*J$7)+(((IF($A$8=Nutrients!$B$79,Nutrients!$BT$79,(IF($A$8=Nutrients!$B$77,Nutrients!$BT$77,Nutrients!$BT$78)))))*J$8))/2000","v":0.32752024217632575},{"$f":"(SUMPRODUCT(K$9:K$229,Nutrients!$BT$8:$BT$228)+(IF($A$7=Nutrients!$B$8,Nutrients!$BT$8,Nutrients!$BT$9)*K$7)+(((IF($A$8=Nutrients!$B$79,Nutrients!$BT$79,(IF($A$8=Nutrients!$B$77,Nutrients!$BT$77,Nutrients!$BT$78)))))*K$8))/2000","v":0.32632434792923404},{"$f":"(SUMPRODUCT(L$9:L$229,Nutrients!$BT$8:$BT$228)+(IF($A$7=Nutrients!$B$8,Nutrients!$BT$8,Nutrients!$BT$9)*L$7)+(((IF($A$8=Nutrients!$B$79,Nutrients!$BT$79,(IF($A$8=Nutrients!$B$77,Nutrients!$BT$77,Nutrients!$BT$78)))))*L$8))/2000","v":0.32574971304931477},{"$f":"(SUMPRODUCT(M$9:M$229,Nutrients!$BT$8:$BT$228)+(IF($A$7=Nutrients!$B$8,Nutrients!$BT$8,Nutrients!$BT$9)*M$7)+(((IF($A$8=Nutrients!$B$79,Nutrients!$BT$79,(IF($A$8=Nutrients!$B$77,Nutrients!$BT$77,Nutrients!$BT$78)))))*M$8))/2000","v":0.32485741816680286},{"$f":"(SUMPRODUCT(N$9:N$229,Nutrients!$BT$8:$BT$228)+(IF($A$7=Nutrients!$B$8,Nutrients!$BT$8,Nutrients!$BT$9)*N$7)+(((IF($A$8=Nutrients!$B$79,Nutrients!$BT$79,(IF($A$8=Nutrients!$B$77,Nutrients!$BT$77,Nutrients!$BT$78)))))*N$8))/2000","v":0.32364677909450895},null,{"$f":"(SUMPRODUCT(P$9:P$229,Nutrients!$BT$8:$BT$228)+(IF($A$7=Nutrients!$B$8,Nutrients!$BT$8,Nutrients!$BT$9)*P$7)+(((IF($A$8=Nutrients!$B$79,Nutrients!$BT$79,(IF($A$8=Nutrients!$B$77,Nutrients!$BT$77,Nutrients!$BT$78)))))*P$8))/2000","v":0.34076189078428104},{"$f":"(SUMPRODUCT(Q$9:Q$229,Nutrients!$BT$8:$BT$228)+(IF($A$7=Nutrients!$B$8,Nutrients!$BT$8,Nutrients!$BT$9)*Q$7)+(((IF($A$8=Nutrients!$B$79,Nutrients!$BT$79,(IF($A$8=Nutrients!$B$77,Nutrients!$BT$77,Nutrients!$BT$78)))))*Q$8))/2000","v":0.34030233678692939},{"$f":"(SUMPRODUCT(R$9:R$229,Nutrients!$BT$8:$BT$228)+(IF($A$7=Nutrients!$B$8,Nutrients!$BT$8,Nutrients!$BT$9)*R$7)+(((IF($A$8=Nutrients!$B$79,Nutrients!$BT$79,(IF($A$8=Nutrients!$B$77,Nutrients!$BT$77,Nutrients!$BT$78)))))*R$8))/2000","v":0.33910623738857054},{"$f":"(SUMPRODUCT(S$9:S$229,Nutrients!$BT$8:$BT$228)+(IF($A$7=Nutrients!$B$8,Nutrients!$BT$8,Nutrients!$BT$9)*S$7)+(((IF($A$8=Nutrients!$B$79,Nutrients!$BT$79,(IF($A$8=Nutrients!$B$77,Nutrients!$BT$77,Nutrients!$BT$78)))))*S$8))/2000","v":0.33853180148947781},{"$f":"(SUMPRODUCT(T$9:T$229,Nutrients!$BT$8:$BT$228)+(IF($A$7=Nutrients!$B$8,Nutrients!$BT$8,Nutrients!$BT$9)*T$7)+(((IF($A$8=Nutrients!$B$79,Nutrients!$BT$79,(IF($A$8=Nutrients!$B$77,Nutrients!$BT$77,Nutrients!$BT$78)))))*T$8))/2000","v":0.33763489867106866},{"$f":"(SUMPRODUCT(U$9:U$229,Nutrients!$BT$8:$BT$228)+(IF($A$7=Nutrients!$B$8,Nutrients!$BT$8,Nutrients!$BT$9)*U$7)+(((IF($A$8=Nutrients!$B$79,Nutrients!$BT$79,(IF($A$8=Nutrients!$B$77,Nutrients!$BT$77,Nutrients!$BT$78)))))*U$8))/2000","v":0.33642289846784196},null,{"$f":"(SUMPRODUCT(W$9:W$229,Nutrients!$BT$8:$BT$228)+(IF($A$7=Nutrients!$B$8,Nutrients!$BT$8,Nutrients!$BT$9)*W$7)+(((IF($A$8=Nutrients!$B$79,Nutrients!$BT$79,(IF($A$8=Nutrients!$B$77,Nutrients!$BT$77,Nutrients!$BT$78)))))*W$8))/2000","v":0.35354513897654144},{"$f":"(SUMPRODUCT(X$9:X$229,Nutrients!$BT$8:$BT$228)+(IF($A$7=Nutrients!$B$8,Nutrients!$BT$8,Nutrients!$BT$9)*X$7)+(((IF($A$8=Nutrients!$B$79,Nutrients!$BT$79,(IF($A$8=Nutrients!$B$77,Nutrients!$BT$77,Nutrients!$BT$78)))))*X$8))/2000","v":0.35308522258644415},{"$f":"(SUMPRODUCT(Y$9:Y$229,Nutrients!$BT$8:$BT$228)+(IF($A$7=Nutrients!$B$8,Nutrients!$BT$8,Nutrients!$BT$9)*Y$7)+(((IF($A$8=Nutrients!$B$79,Nutrients!$BT$79,(IF($A$8=Nutrients!$B$77,Nutrients!$BT$77,Nutrients!$BT$78)))))*Y$8))/2000","v":0.35188903860895032},{"$f":"(SUMPRODUCT(Z$9:Z$229,Nutrients!$BT$8:$BT$228)+(IF($A$7=Nutrients!$B$8,Nutrients!$BT$8,Nutrients!$BT$9)*Z$7)+(((IF($A$8=Nutrients!$B$79,Nutrients!$BT$79,(IF($A$8=Nutrients!$B$77,Nutrients!$BT$77,Nutrients!$BT$78)))))*Z$8))/2000","v":0.351312893348667},{"$f":"(SUMPRODUCT(AA$9:AA$229,Nutrients!$BT$8:$BT$228)+(IF($A$7=Nutrients!$B$8,Nutrients!$BT$8,Nutrients!$BT$9)*AA$7)+(((IF($A$8=Nutrients!$B$79,Nutrients!$BT$79,(IF($A$8=Nutrients!$B$77,Nutrients!$BT$77,Nutrients!$BT$78)))))*AA$8))/2000","v":0.35041171978269497},{"$f":"(SUMPRODUCT(AB$9:AB$229,Nutrients!$BT$8:$BT$228)+(IF($A$7=Nutrients!$B$8,Nutrients!$BT$8,Nutrients!$BT$9)*AB$7)+(((IF($A$8=Nutrients!$B$79,Nutrients!$BT$79,(IF($A$8=Nutrients!$B$77,Nutrients!$BT$77,Nutrients!$BT$78)))))*AB$8))/2000","v":0.34919039514532946},null,{"$f":"(SUMPRODUCT(AD$9:AD$229,Nutrients!$BT$8:$BT$228)+(IF($A$7=Nutrients!$B$8,Nutrients!$BT$8,Nutrients!$BT$9)*AD$7)+(((IF($A$8=Nutrients!$B$79,Nutrients!$BT$79,(IF($A$8=Nutrients!$B$77,Nutrients!$BT$77,Nutrients!$BT$78)))))*AD$8))/2000","v":0.36632813471969583},{"$f":"(SUMPRODUCT(AE$9:AE$229,Nutrients!$BT$8:$BT$228)+(IF($A$7=Nutrients!$B$8,Nutrients!$BT$8,Nutrients!$BT$9)*AE$7)+(((IF($A$8=Nutrients!$B$79,Nutrients!$BT$79,(IF($A$8=Nutrients!$B$77,Nutrients!$BT$77,Nutrients!$BT$78)))))*AE$8))/2000","v":0.36586833710551553},{"$f":"(SUMPRODUCT(AF$9:AF$229,Nutrients!$BT$8:$BT$228)+(IF($A$7=Nutrients!$B$8,Nutrients!$BT$8,Nutrients!$BT$9)*AF$7)+(((IF($A$8=Nutrients!$B$79,Nutrients!$BT$79,(IF($A$8=Nutrients!$B$77,Nutrients!$BT$77,Nutrients!$BT$78)))))*AF$8))/2000","v":0.36467199047628951},{"$f":"(SUMPRODUCT(AG$9:AG$229,Nutrients!$BT$8:$BT$228)+(IF($A$7=Nutrients!$B$8,Nutrients!$BT$8,Nutrients!$BT$9)*AG$7)+(((IF($A$8=Nutrients!$B$79,Nutrients!$BT$79,(IF($A$8=Nutrients!$B$77,Nutrients!$BT$77,Nutrients!$BT$78)))))*AG$8))/2000","v":0.36408947895781546},{"$f":"(SUMPRODUCT(AH$9:AH$229,Nutrients!$BT$8:$BT$228)+(IF($A$7=Nutrients!$B$8,Nutrients!$BT$8,Nutrients!$BT$9)*AH$7)+(((IF($A$8=Nutrients!$B$79,Nutrients!$BT$79,(IF($A$8=Nutrients!$B$77,Nutrients!$BT$77,Nutrients!$BT$78)))))*AH$8))/2000","v":0.36316336176056729},{"$f":"(SUMPRODUCT(AI$9:AI$229,Nutrients!$BT$8:$BT$228)+(IF($A$7=Nutrients!$B$8,Nutrients!$BT$8,Nutrients!$BT$9)*AI$7)+(((IF($A$8=Nutrients!$B$79,Nutrients!$BT$79,(IF($A$8=Nutrients!$B$77,Nutrients!$BT$77,Nutrients!$BT$78)))))*AI$8))/2000","v":0.36192946953416594},null,{"$f":"(SUMPRODUCT(AK$9:AK$229,Nutrients!$BT$8:$BT$228)+(IF($A$7=Nutrients!$B$8,Nutrients!$BT$8,Nutrients!$BT$9)*AK$7)+(((IF($A$8=Nutrients!$B$79,Nutrients!$BT$79,(IF($A$8=Nutrients!$B$77,Nutrients!$BT$77,Nutrients!$BT$78)))))*AK$8))/2000","v":0.37910887552855033},{"$f":"(SUMPRODUCT(AL$9:AL$229,Nutrients!$BT$8:$BT$228)+(IF($A$7=Nutrients!$B$8,Nutrients!$BT$8,Nutrients!$BT$9)*AL$7)+(((IF($A$8=Nutrients!$B$79,Nutrients!$BT$79,(IF($A$8=Nutrients!$B$77,Nutrients!$BT$77,Nutrients!$BT$78)))))*AL$8))/2000","v":0.37865161223066268},{"$f":"(SUMPRODUCT(AM$9:AM$229,Nutrients!$BT$8:$BT$228)+(IF($A$7=Nutrients!$B$8,Nutrients!$BT$8,Nutrients!$BT$9)*AM$7)+(((IF($A$8=Nutrients!$B$79,Nutrients!$BT$79,(IF($A$8=Nutrients!$B$77,Nutrients!$BT$77,Nutrients!$BT$78)))))*AM$8))/2000","v":0.37744934598221969},{"$f":"(SUMPRODUCT(AN$9:AN$229,Nutrients!$BT$8:$BT$228)+(IF($A$7=Nutrients!$B$8,Nutrients!$BT$8,Nutrients!$BT$9)*AN$7)+(((IF($A$8=Nutrients!$B$79,Nutrients!$BT$79,(IF($A$8=Nutrients!$B$77,Nutrients!$BT$77,Nutrients!$BT$78)))))*AN$8))/2000","v":0.37684748099816834},{"$f":"(SUMPRODUCT(AO$9:AO$229,Nutrients!$BT$8:$BT$228)+(IF($A$7=Nutrients!$B$8,Nutrients!$BT$8,Nutrients!$BT$9)*AO$7)+(((IF($A$8=Nutrients!$B$79,Nutrients!$BT$79,(IF($A$8=Nutrients!$B$77,Nutrients!$BT$77,Nutrients!$BT$78)))))*AO$8))/2000","v":0.37590235910748337},{"$f":"(SUMPRODUCT(AP$9:AP$229,Nutrients!$BT$8:$BT$228)+(IF($A$7=Nutrients!$B$8,Nutrients!$BT$8,Nutrients!$BT$9)*AP$7)+(((IF($A$8=Nutrients!$B$79,Nutrients!$BT$79,(IF($A$8=Nutrients!$B$77,Nutrients!$BT$77,Nutrients!$BT$78)))))*AP$8))/2000","v":0.37466832069099965},null,{"$f":"(SUMPRODUCT(AR$9:AR$229,Nutrients!$BT$8:$BT$228)+(IF($A$7=Nutrients!$B$8,Nutrients!$BT$8,Nutrients!$BT$9)*AR$7)+(((IF($A$8=Nutrients!$B$79,Nutrients!$BT$79,(IF($A$8=Nutrients!$B$77,Nutrients!$BT$77,Nutrients!$BT$78)))))*AR$8))/2000","v":0.39189292833775413},{"$f":"(SUMPRODUCT(AS$9:AS$229,Nutrients!$BT$8:$BT$228)+(IF($A$7=Nutrients!$B$8,Nutrients!$BT$8,Nutrients!$BT$9)*AS$7)+(((IF($A$8=Nutrients!$B$79,Nutrients!$BT$79,(IF($A$8=Nutrients!$B$77,Nutrients!$BT$77,Nutrients!$BT$78)))))*AS$8))/2000","v":0.39143458853266211},{"$f":"(SUMPRODUCT(AT$9:AT$229,Nutrients!$BT$8:$BT$228)+(IF($A$7=Nutrients!$B$8,Nutrients!$BT$8,Nutrients!$BT$9)*AT$7)+(((IF($A$8=Nutrients!$B$79,Nutrients!$BT$79,(IF($A$8=Nutrients!$B$77,Nutrients!$BT$77,Nutrients!$BT$78)))))*AT$8))/2000","v":0.39022620705261057},{"$f":"(SUMPRODUCT(AU$9:AU$229,Nutrients!$BT$8:$BT$228)+(IF($A$7=Nutrients!$B$8,Nutrients!$BT$8,Nutrients!$BT$9)*AU$7)+(((IF($A$8=Nutrients!$B$79,Nutrients!$BT$79,(IF($A$8=Nutrients!$B$77,Nutrients!$BT$77,Nutrients!$BT$78)))))*AU$8))/2000","v":0.38958649556721603},{"$f":"(SUMPRODUCT(AV$9:AV$229,Nutrients!$BT$8:$BT$228)+(IF($A$7=Nutrients!$B$8,Nutrients!$BT$8,Nutrients!$BT$9)*AV$7)+(((IF($A$8=Nutrients!$B$79,Nutrients!$BT$79,(IF($A$8=Nutrients!$B$77,Nutrients!$BT$77,Nutrients!$BT$78)))))*AV$8))/2000","v":0.38864156445292686},{"$f":"(SUMPRODUCT(AW$9:AW$229,Nutrients!$BT$8:$BT$228)+(IF($A$7=Nutrients!$B$8,Nutrients!$BT$8,Nutrients!$BT$9)*AW$7)+(((IF($A$8=Nutrients!$B$79,Nutrients!$BT$79,(IF($A$8=Nutrients!$B$77,Nutrients!$BT$77,Nutrients!$BT$78)))))*AW$8))/2000","v":0.3874073943699336}]
["K, %",{"$f":"(SUMPRODUCT(B$9:B$229,Nutrients!$BU$8:$BU$228)+(IF($A$7=Nutrients!$B$8,Nutrients!$BU$8,Nutrients!$BU$9)*B$7)+(((IF($A$8=Nutrients!$B$79,Nutrients!$BU$79,(IF($A$8=Nutrients!$B$77,Nutrients!$BU$77,Nutrients!$BU$78)))))*B$8))/2000","v":0.90672227094333946},{"$f":"(SUMPRODUCT(C$9:C$229,Nutrients!$BU$8:$BU$228)+(IF($A$7=Nutrients!$B$8,Nutrients!$BU$8,Nutrients!$BU$9)*C$7)+(((IF($A$8=Nutrients!$B$79,Nutrients!$BU$79,(IF($A$8=Nutrients!$B$77,Nutrients!$BU$77,Nutrients!$BU$78)))))*C$8))/2000","v":0.80119571619411978},{"$f":"(SUMPRODUCT(D$9:D$229,Nutrients!$BU$8:$BU$228)+(IF($A$7=Nutrients!$B$8,Nutrients!$BU$8,Nutrients!$BU$9)*D$7)+(((IF($A$8=Nutrients!$B$79,Nutrients!$BU$79,(IF($A$8=Nutrients!$B$77,Nutrients!$BU$77,Nutrients!$BU$78)))))*D$8))/2000","v":0.71030836475916248},{"$f":"(SUMPRODUCT(E$9:E$229,Nutrients!$BU$8:$BU$228)+(IF($A$7=Nutrients!$B$8,Nutrients!$BU$8,Nutrients!$BU$9)*E$7)+(((IF($A$8=Nutrients!$B$79,Nutrients!$BU$79,(IF($A$8=Nutrients!$B$77,Nutrients!$BU$77,Nutrients!$BU$78)))))*E$8))/2000","v":0.63370500360255355},{"$f":"(SUMPRODUCT(F$9:F$229,Nutrients!$BU$8:$BU$228)+(IF($A$7=Nutrients!$B$8,Nutrients!$BU$8,Nutrients!$BU$9)*F$7)+(((IF($A$8=Nutrients!$B$79,Nutrients!$BU$79,(IF($A$8=Nutrients!$B$77,Nutrients!$BU$77,Nutrients!$BU$78)))))*F$8))/2000","v":0.58276518762548057},{"$f":"(SUMPRODUCT(G$9:G$229,Nutrients!$BU$8:$BU$228)+(IF($A$7=Nutrients!$B$8,Nutrients!$BU$8,Nutrients!$BU$9)*G$7)+(((IF($A$8=Nutrients!$B$79,Nutrients!$BU$79,(IF($A$8=Nutrients!$B$77,Nutrients!$BU$77,Nutrients!$BU$78)))))*G$8))/2000","v":0.55679357869744972},null,{"$f":"(SUMPRODUCT(I$9:I$229,Nutrients!$BU$8:$BU$228)+(IF($A$7=Nutrients!$B$8,Nutrients!$BU$8,Nutrients!$BU$9)*I$7)+(((IF($A$8=Nutrients!$B$79,Nutrients!$BU$79,(IF($A$8=Nutrients!$B$77,Nutrients!$BU$77,Nutrients!$BU$78)))))*I$8))/2000","v":0.89962350621035569},{"$f":"(SUMPRODUCT(J$9:J$229,Nutrients!$BU$8:$BU$228)+(IF($A$7=Nutrients!$B$8,Nutrients!$BU$8,Nutrients!$BU$9)*J$7)+(((IF($A$8=Nutrients!$B$79,Nutrients!$BU$79,(IF($A$8=Nutrients!$B$77,Nutrients!$BU$77,Nutrients!$BU$78)))))*J$8))/2000","v":0.79523881885406744},{"$f":"(SUMPRODUCT(K$9:K$229,Nutrients!$BU$8:$BU$228)+(IF($A$7=Nutrients!$B$8,Nutrients!$BU$8,Nutrients!$BU$9)*K$7)+(((IF($A$8=Nutrients!$B$79,Nutrients!$BU$79,(IF($A$8=Nutrients!$B$77,Nutrients!$BU$77,Nutrients!$BU$78)))))*K$8))/2000","v":0.70528994962883884},{"$f":"(SUMPRODUCT(L$9:L$229,Nutrients!$BU$8:$BU$228)+(IF($A$7=Nutrients!$B$8,Nutrients!$BU$8,Nutrients!$BU$9)*L$7)+(((IF($A$8=Nutrients!$B$79,Nutrients!$BU$79,(IF($A$8=Nutrients!$B$77,Nutrients!$BU$77,Nutrients!$BU$78)))))*L$8))/2000","v":0.62932055537058251},{"$f":"(SUMPRODUCT(M$9:M$229,Nutrients!$BU$8:$BU$228)+(IF($A$7=Nutrients!$B$8,Nutrients!$BU$8,Nutrients!$BU$9)*M$7)+(((IF($A$8=Nutrients!$B$79,Nutrients!$BU$79,(IF($A$8=Nutrients!$B$77,Nutrients!$BU$77,Nutrients!$BU$78)))))*M$8))/2000","v":0.57833280928955455},{"$f":"(SUMPRODUCT(N$9:N$229,Nutrients!$BU$8:$BU$228)+(IF($A$7=Nutrients!$B$8,Nutrients!$BU$8,Nutrients!$BU$9)*N$7)+(((IF($A$8=Nutrients!$B$79,Nutrients!$BU$79,(IF($A$8=Nutrients!$B$77,Nutrients!$BU$77,Nutrients!$BU$78)))))*N$8))/2000","v":0.55267888233969797},null,{"$f":"(SUMPRODUCT(P$9:P$229,Nutrients!$BU$8:$BU$228)+(IF($A$7=Nutrients!$B$8,Nutrients!$BU$8,Nutrients!$BU$9)*P$7)+(((IF($A$8=Nutrients!$B$79,Nutrients!$BU$79,(IF($A$8=Nutrients!$B$77,Nutrients!$BU$77,Nutrients!$BU$78)))))*P$8))/2000","v":0.89399297973494662},{"$f":"(SUMPRODUCT(Q$9:Q$229,Nutrients!$BU$8:$BU$228)+(IF($A$7=Nutrients!$B$8,Nutrients!$BU$8,Nutrients!$BU$9)*Q$7)+(((IF($A$8=Nutrients!$B$79,Nutrients!$BU$79,(IF($A$8=Nutrients!$B$77,Nutrients!$BU$77,Nutrients!$BU$78)))))*Q$8))/2000","v":0.79029922877195724},{"$f":"(SUMPRODUCT(R$9:R$229,Nutrients!$BU$8:$BU$228)+(IF($A$7=Nutrients!$B$8,Nutrients!$BU$8,Nutrients!$BU$9)*R$7)+(((IF($A$8=Nutrients!$B$79,Nutrients!$BU$79,(IF($A$8=Nutrients!$B$77,Nutrients!$BU$77,Nutrients!$BU$78)))))*R$8))/2000","v":0.70108968877850109},{"$f":"(SUMPRODUCT(S$9:S$229,Nutrients!$BU$8:$BU$228)+(IF($A$7=Nutrients!$B$8,Nutrients!$BU$8,Nutrients!$BU$9)*S$7)+(((IF($A$8=Nutrients!$B$79,Nutrients!$BU$79,(IF($A$8=Nutrients!$B$77,Nutrients!$BU$77,Nutrients!$BU$78)))))*S$8))/2000","v":0.6247763745769721},{"$f":"(SUMPRODUCT(T$9:T$229,Nutrients!$BU$8:$BU$228)+(IF($A$7=Nutrients!$B$8,Nutrients!$BU$8,Nutrients!$BU$9)*T$7)+(((IF($A$8=Nutrients!$B$79,Nutrients!$BU$79,(IF($A$8=Nutrients!$B$77,Nutrients!$BU$77,Nutrients!$BU$78)))))*T$8))/2000","v":0.57437860603194968},{"$f":"(SUMPRODUCT(U$9:U$229,Nutrients!$BU$8:$BU$228)+(IF($A$7=Nutrients!$B$8,Nutrients!$BU$8,Nutrients!$BU$9)*U$7)+(((IF($A$8=Nutrients!$B$79,Nutrients!$BU$79,(IF($A$8=Nutrients!$B$77,Nutrients!$BU$77,Nutrients!$BU$78)))))*U$8))/2000","v":0.54896485195448597},null,{"$f":"(SUMPRODUCT(W$9:W$229,Nutrients!$BU$8:$BU$228)+(IF($A$7=Nutrients!$B$8,Nutrients!$BU$8,Nutrients!$BU$9)*W$7)+(((IF($A$8=Nutrients!$B$79,Nutrients!$BU$79,(IF($A$8=Nutrients!$B$77,Nutrients!$BU$77,Nutrients!$BU$78)))))*W$8))/2000","v":0.88836325059495336},{"$f":"(SUMPRODUCT(X$9:X$229,Nutrients!$BU$8:$BU$228)+(IF($A$7=Nutrients!$B$8,Nutrients!$BU$8,Nutrients!$BU$9)*X$7)+(((IF($A$8=Nutrients!$B$79,Nutrients!$BU$79,(IF($A$8=Nutrients!$B$77,Nutrients!$BU$77,Nutrients!$BU$78)))))*X$8))/2000","v":0.78536529370371211},{"$f":"(SUMPRODUCT(Y$9:Y$229,Nutrients!$BU$8:$BU$228)+(IF($A$7=Nutrients!$B$8,Nutrients!$BU$8,Nutrients!$BU$9)*Y$7)+(((IF($A$8=Nutrients!$B$79,Nutrients!$BU$79,(IF($A$8=Nutrients!$B$77,Nutrients!$BU$77,Nutrients!$BU$78)))))*Y$8))/2000","v":0.69582180088358803},{"$f":"(SUMPRODUCT(Z$9:Z$229,Nutrients!$BU$8:$BU$228)+(IF($A$7=Nutrients!$B$8,Nutrients!$BU$8,Nutrients!$BU$9)*Z$7)+(((IF($A$8=Nutrients!$B$79,Nutrients!$BU$79,(IF($A$8=Nutrients!$B$77,Nutrients!$BU$77,Nutrients!$BU$78)))))*Z$8))/2000","v":0.62050230797917816},{"$f":"(SUMPRODUCT(AA$9:AA$229,Nutrients!$BU$8:$BU$228)+(IF($A$7=Nutrients!$B$8,Nutrients!$BU$8,Nutrients!$BU$9)*AA$7)+(((IF($A$8=Nutrients!$B$79,Nutrients!$BU$79,(IF($A$8=Nutrients!$B$77,Nutrients!$BU$77,Nutrients!$BU$78)))))*AA$8))/2000","v":0.57049367170944065},{"$f":"(SUMPRODUCT(AB$9:AB$229,Nutrients!$BU$8:$BU$228)+(IF($A$7=Nutrients!$B$8,Nutrients!$BU$8,Nutrients!$BU$9)*AB$7)+(((IF($A$8=Nutrients!$B$79,Nutrients!$BU$79,(IF($A$8=Nutrients!$B$77,Nutrients!$BU$77,Nutrients!$BU$78)))))*AB$8))/2000","v":0.54512457011075999},null,{"$f":"(SUMPRODUCT(AD$9:AD$229,Nutrients!$BU$8:$BU$228)+(IF($A$7=Nutrients!$B$8,Nutrients!$BU$8,Nutrients!$BU$9)*AD$7)+(((IF($A$8=Nutrients!$B$79,Nutrients!$BU$79,(IF($A$8=Nutrients!$B$77,Nutrients!$BU$77,Nutrients!$BU$78)))))*AD$8))/2000","v":0.88264869497046583},{"$f":"(SUMPRODUCT(AE$9:AE$229,Nutrients!$BU$8:$BU$228)+(IF($A$7=Nutrients!$B$8,Nutrients!$BU$8,Nutrients!$BU$9)*AE$7)+(((IF($A$8=Nutrients!$B$79,Nutrients!$BU$79,(IF($A$8=Nutrients!$B$77,Nutrients!$BU$77,Nutrients!$BU$78)))))*AE$8))/2000","v":0.77937987079280013},{"$f":"(SUMPRODUCT(AF$9:AF$229,Nutrients!$BU$8:$BU$228)+(IF($A$7=Nutrients!$B$8,Nutrients!$BU$8,Nutrients!$BU$9)*AF$7)+(((IF($A$8=Nutrients!$B$79,Nutrients!$BU$79,(IF($A$8=Nutrients!$B$77,Nutrients!$BU$77,Nutrients!$BU$78)))))*AF$8))/2000","v":0.69080814278857994},{"$f":"(SUMPRODUCT(AG$9:AG$229,Nutrients!$BU$8:$BU$228)+(IF($A$7=Nutrients!$B$8,Nutrients!$BU$8,Nutrients!$BU$9)*AG$7)+(((IF($A$8=Nutrients!$B$79,Nutrients!$BU$79,(IF($A$8=Nutrients!$B$77,Nutrients!$BU$77,Nutrients!$BU$78)))))*AG$8))/2000","v":0.61619463767012261},{"$f":"(SUMPRODUCT(AH$9:AH$229,Nutrients!$BU$8:$BU$228)+(IF($A$7=Nutrients!$B$8,Nutrients!$BU$8,Nutrients!$BU$9)*AH$7)+(((IF($A$8=Nutrients!$B$79,Nutrients!$BU$79,(IF($A$8=Nutrients!$B$77,Nutrients!$BU$77,Nutrients!$BU$78)))))*AH$8))/2000","v":0.56618014703598296},{"$f":"(SUMPRODUCT(AI$9:AI$229,Nutrients!$BU$8:$BU$228)+(IF($A$7=Nutrients!$B$8,Nutrients!$BU$8,Nutrients!$BU$9)*AI$7)+(((IF($A$8=Nutrients!$B$79,Nutrients!$BU$79,(IF($A$8=Nutrients!$B$77,Nutrients!$BU$77,Nutrients!$BU$78)))))*AI$8))/2000","v":0.54091954195509695},null,{"$f":"(SUMPRODUCT(AK$9:AK$229,Nutrients!$BU$8:$BU$228)+(IF($A$7=Nutrients!$B$8,Nutrients!$BU$8,Nutrients!$BU$9)*AK$7)+(((IF($A$8=Nutrients!$B$79,Nutrients!$BU$79,(IF($A$8=Nutrients!$B$77,Nutrients!$BU$77,Nutrients!$BU$78)))))*AK$8))/2000","v":0.88112985711011127},{"$f":"(SUMPRODUCT(AL$9:AL$229,Nutrients!$BU$8:$BU$228)+(IF($A$7=Nutrients!$B$8,Nutrients!$BU$8,Nutrients!$BU$9)*AL$7)+(((IF($A$8=Nutrients!$B$79,Nutrients!$BU$79,(IF($A$8=Nutrients!$B$77,Nutrients!$BU$77,Nutrients!$BU$78)))))*AL$8))/2000","v":0.77369843051026488},{"$f":"(SUMPRODUCT(AM$9:AM$229,Nutrients!$BU$8:$BU$228)+(IF($A$7=Nutrients!$B$8,Nutrients!$BU$8,Nutrients!$BU$9)*AM$7)+(((IF($A$8=Nutrients!$B$79,Nutrients!$BU$79,(IF($A$8=Nutrients!$B$77,Nutrients!$BU$77,Nutrients!$BU$78)))))*AM$8))/2000","v":0.68589717140264539},{"$f":"(SUMPRODUCT(AN$9:AN$229,Nutrients!$BU$8:$BU$228)+(IF($A$7=Nutrients!$B$8,Nutrients!$BU$8,Nutrients!$BU$9)*AN$7)+(((IF($A$8=Nutrients!$B$79,Nutrients!$BU$79,(IF($A$8=Nutrients!$B$77,Nutrients!$BU$77,Nutrients!$BU$78)))))*AN$8))/2000","v":0.61155486997582809},{"$f":"(SUMPRODUCT(AO$9:AO$229,Nutrients!$BU$8:$BU$228)+(IF($A$7=Nutrients!$B$8,Nutrients!$BU$8,Nutrients!$BU$9)*AO$7)+(((IF($A$8=Nutrients!$B$79,Nutrients!$BU$79,(IF($A$8=Nutrients!$B$77,Nutrients!$BU$77,Nutrients!$BU$78)))))*AO$8))/2000","v":0.56171664327314108},{"$f":"(SUMPRODUCT(AP$9:AP$229,Nutrients!$BU$8:$BU$228)+(IF($A$7=Nutrients!$B$8,Nutrients!$BU$8,Nutrients!$BU$9)*AP$7)+(((IF($A$8=Nutrients!$B$79,Nutrients!$BU$79,(IF($A$8=Nutrients!$B$77,Nutrients!$BU$77,Nutrients!$BU$78)))))*AP$8))/2000","v":0.53671003646157711},null,{"$f":"(SUMPRODUCT(AR$9:AR$229,Nutrients!$BU$8:$BU$228)+(IF($A$7=Nutrients!$B$8,Nutrients!$BU$8,Nutrients!$BU$9)*AR$7)+(((IF($A$8=Nutrients!$B$79,Nutrients!$BU$79,(IF($A$8=Nutrients!$B$77,Nutrients!$BU$77,Nutrients!$BU$78)))))*AR$8))/2000","v":0.87383411080278384},{"$f":"(SUMPRODUCT(AS$9:AS$229,Nutrients!$BU$8:$BU$228)+(IF($A$7=Nutrients!$B$8,Nutrients!$BU$8,Nutrients!$BU$9)*AS$7)+(((IF($A$8=Nutrients!$B$79,Nutrients!$BU$79,(IF($A$8=Nutrients!$B$77,Nutrients!$BU$77,Nutrients!$BU$78)))))*AS$8))/2000","v":0.76802251792159004},{"$f":"(SUMPRODUCT(AT$9:AT$229,Nutrients!$BU$8:$BU$228)+(IF($A$7=Nutrients!$B$8,Nutrients!$BU$8,Nutrients!$BU$9)*AT$7)+(((IF($A$8=Nutrients!$B$79,Nutrients!$BU$79,(IF($A$8=Nutrients!$B$77,Nutrients!$BU$77,Nutrients!$BU$78)))))*AT$8))/2000","v":0.68118924653357427},{"$f":"(SUMPRODUCT(AU$9:AU$229,Nutrients!$BU$8:$BU$228)+(IF($A$7=Nutrients!$B$8,Nutrients!$BU$8,Nutrients!$BU$9)*AU$7)+(((IF($A$8=Nutrients!$B$79,Nutrients!$BU$79,(IF($A$8=Nutrients!$B$77,Nutrients!$BU$77,Nutrients!$BU$78)))))*AU$8))/2000","v":0.60674148174956921},{"$f":"(SUMPRODUCT(AV$9:AV$229,Nutrients!$BU$8:$BU$228)+(IF($A$7=Nutrients!$B$8,Nutrients!$BU$8,Nutrients!$BU$9)*AV$7)+(((IF($A$8=Nutrients!$B$79,Nutrients!$BU$79,(IF($A$8=Nutrients!$B$77,Nutrients!$BU$77,Nutrients!$BU$78)))))*AV$8))/2000","v":0.5572591745138431},{"$f":"(SUMPRODUCT(AW$9:AW$229,Nutrients!$BU$8:$BU$228)+(IF($A$7=Nutrients!$B$8,Nutrients!$BU$8,Nutrients!$BU$9)*AW$7)+(((IF($A$8=Nutrients!$B$79,Nutrients!$BU$79,(IF($A$8=Nutrients!$B$77,Nutrients!$BU$77,Nutrients!$BU$78)))))*AW$8))/2000","v":0.53250333149972096}]
["DCAD",{"$f":"(B306 * 434.98) + (B308* 255.74) - (B307*282.06)","v":220.57763988748351},192.15600461244421,167.90252131513171,147.35122639861532,133.81760738274346,127.13493264786482,null,{"$f":"(I306 * 434.98) + (I308* 255.74) - (I307*282.06)","v":218.30215622980279},190.18895308210637,166.18873960854913,145.79319612814817,132.25131830647524,125.64989547193022,null,{"$f":"(P306 * 434.98) + (P308* 255.74) - (P307*282.06)","v":216.42339540538433},188.49640805191666,164.69555784482515,144.20730985443012,130.82526744824634,124.28881925678355,null,{"$f":"(W306 * 434.98) + (W308* 255.74) - (W307*282.06)","v":214.54422859184734},186.80474384657794,162.91395052259625,142.69375033757657,129.41736601974986,122.90925263983512,null,{"$f":"(AD306 * 434.98) + (AD308* 255.74) - (AD307*282.06)","v":212.64257551017624},184.83012546559399,161.20119090370036,141.17250265390791,127.93892634007112,121.48228967971377,null,{"$f":"(AK306 * 434.98) + (AK308* 255.74) - (AK307*282.06)","v":211.87167213051913},182.93702353174888,159.51679297528835,139.59542887698643,126.44233527657522,120.05416354509937,null,{"$f":"(AR306 * 434.98) + (AR308* 255.74) - (AR307*282.06)","v":209.54362625710365},181.04578311519828,157.88760048698606,138.00475830527469,124.9473310449025,118.62674892965093]
["Phytate P, %",{"$f":"(SUMPRODUCT(B$9:B$229,Nutrients!$EG$8:$EG$228)+(IF($A$7=Nutrients!$B$8,Nutrients!$EG$8,Nutrients!$EG$9)*B$7)+(((IF($A$8=Nutrients!$B$79,Nutrients!$EG$79,(IF($A$8=Nutrients!$B$77,Nutrients!$EG$77,Nutrients!$EG$78)))))*B$8))/2000","v":0.27113524017910468},{"$f":"(SUMPRODUCT(C$9:C$229,Nutrients!$EG$8:$EG$228)+(IF($A$7=Nutrients!$B$8,Nutrients!$EG$8,Nutrients!$EG$9)*C$7)+(((IF($A$8=Nutrients!$B$79,Nutrients!$EG$79,(IF($A$8=Nutrients!$B$77,Nutrients!$EG$77,Nutrients!$EG$78)))))*C$8))/2000","v":0.25613988263521914},{"$f":"(SUMPRODUCT(D$9:D$229,Nutrients!$EG$8:$EG$228)+(IF($A$7=Nutrients!$B$8,Nutrients!$EG$8,Nutrients!$EG$9)*D$7)+(((IF($A$8=Nutrients!$B$79,Nutrients!$EG$79,(IF($A$8=Nutrients!$B$77,Nutrients!$EG$77,Nutrients!$EG$78)))))*D$8))/2000","v":0.24325948567864156},{"$f":"(SUMPRODUCT(E$9:E$229,Nutrients!$EG$8:$EG$228)+(IF($A$7=Nutrients!$B$8,Nutrients!$EG$8,Nutrients!$EG$9)*E$7)+(((IF($A$8=Nutrients!$B$79,Nutrients!$EG$79,(IF($A$8=Nutrients!$B$77,Nutrients!$EG$77,Nutrients!$EG$78)))))*E$8))/2000","v":0.23238392794271739},{"$f":"(SUMPRODUCT(F$9:F$229,Nutrients!$EG$8:$EG$228)+(IF($A$7=Nutrients!$B$8,Nutrients!$EG$8,Nutrients!$EG$9)*F$7)+(((IF($A$8=Nutrients!$B$79,Nutrients!$EG$79,(IF($A$8=Nutrients!$B$77,Nutrients!$EG$77,Nutrients!$EG$78)))))*F$8))/2000","v":0.2252348701473687},{"$f":"(SUMPRODUCT(G$9:G$229,Nutrients!$EG$8:$EG$228)+(IF($A$7=Nutrients!$B$8,Nutrients!$EG$8,Nutrients!$EG$9)*G$7)+(((IF($A$8=Nutrients!$B$79,Nutrients!$EG$79,(IF($A$8=Nutrients!$B$77,Nutrients!$EG$77,Nutrients!$EG$78)))))*G$8))/2000","v":0.2215364317520549},null,{"$f":"(SUMPRODUCT(I$9:I$229,Nutrients!$EG$8:$EG$228)+(IF($A$7=Nutrients!$B$8,Nutrients!$EG$8,Nutrients!$EG$9)*I$7)+(((IF($A$8=Nutrients!$B$79,Nutrients!$EG$79,(IF($A$8=Nutrients!$B$77,Nutrients!$EG$77,Nutrients!$EG$78)))))*I$8))/2000","v":0.26518029998732356},{"$f":"(SUMPRODUCT(J$9:J$229,Nutrients!$EG$8:$EG$228)+(IF($A$7=Nutrients!$B$8,Nutrients!$EG$8,Nutrients!$EG$9)*J$7)+(((IF($A$8=Nutrients!$B$79,Nutrients!$EG$79,(IF($A$8=Nutrients!$B$77,Nutrients!$EG$77,Nutrients!$EG$78)))))*J$8))/2000","v":0.25034851010646142},{"$f":"(SUMPRODUCT(K$9:K$229,Nutrients!$EG$8:$EG$228)+(IF($A$7=Nutrients!$B$8,Nutrients!$EG$8,Nutrients!$EG$9)*K$7)+(((IF($A$8=Nutrients!$B$79,Nutrients!$EG$79,(IF($A$8=Nutrients!$B$77,Nutrients!$EG$77,Nutrients!$EG$78)))))*K$8))/2000","v":0.23760276053012855},{"$f":"(SUMPRODUCT(L$9:L$229,Nutrients!$EG$8:$EG$228)+(IF($A$7=Nutrients!$B$8,Nutrients!$EG$8,Nutrients!$EG$9)*L$7)+(((IF($A$8=Nutrients!$B$79,Nutrients!$EG$79,(IF($A$8=Nutrients!$B$77,Nutrients!$EG$77,Nutrients!$EG$78)))))*L$8))/2000","v":0.2268533191739657},{"$f":"(SUMPRODUCT(M$9:M$229,Nutrients!$EG$8:$EG$228)+(IF($A$7=Nutrients!$B$8,Nutrients!$EG$8,Nutrients!$EG$9)*M$7)+(((IF($A$8=Nutrients!$B$79,Nutrients!$EG$79,(IF($A$8=Nutrients!$B$77,Nutrients!$EG$77,Nutrients!$EG$78)))))*M$8))/2000","v":0.21968649784285443},{"$f":"(SUMPRODUCT(N$9:N$229,Nutrients!$EG$8:$EG$228)+(IF($A$7=Nutrients!$B$8,Nutrients!$EG$8,Nutrients!$EG$9)*N$7)+(((IF($A$8=Nutrients!$B$79,Nutrients!$EG$79,(IF($A$8=Nutrients!$B$77,Nutrients!$EG$77,Nutrients!$EG$78)))))*N$8))/2000","v":0.21604338533665482},null,{"$f":"(SUMPRODUCT(P$9:P$229,Nutrients!$EG$8:$EG$228)+(IF($A$7=Nutrients!$B$8,Nutrients!$EG$8,Nutrients!$EG$9)*P$7)+(((IF($A$8=Nutrients!$B$79,Nutrients!$EG$79,(IF($A$8=Nutrients!$B$77,Nutrients!$EG$77,Nutrients!$EG$78)))))*P$8))/2000","v":0.25943409795621192},{"$f":"(SUMPRODUCT(Q$9:Q$229,Nutrients!$EG$8:$EG$228)+(IF($A$7=Nutrients!$B$8,Nutrients!$EG$8,Nutrients!$EG$9)*Q$7)+(((IF($A$8=Nutrients!$B$79,Nutrients!$EG$79,(IF($A$8=Nutrients!$B$77,Nutrients!$EG$77,Nutrients!$EG$78)))))*Q$8))/2000","v":0.24470229065961019},{"$f":"(SUMPRODUCT(R$9:R$229,Nutrients!$EG$8:$EG$228)+(IF($A$7=Nutrients!$B$8,Nutrients!$EG$8,Nutrients!$EG$9)*R$7)+(((IF($A$8=Nutrients!$B$79,Nutrients!$EG$79,(IF($A$8=Nutrients!$B$77,Nutrients!$EG$77,Nutrients!$EG$78)))))*R$8))/2000","v":0.23206452053002743},{"$f":"(SUMPRODUCT(S$9:S$229,Nutrients!$EG$8:$EG$228)+(IF($A$7=Nutrients!$B$8,Nutrients!$EG$8,Nutrients!$EG$9)*S$7)+(((IF($A$8=Nutrients!$B$79,Nutrients!$EG$79,(IF($A$8=Nutrients!$B$77,Nutrients!$EG$77,Nutrients!$EG$78)))))*S$8))/2000","v":0.2212650263450481},{"$f":"(SUMPRODUCT(T$9:T$229,Nutrients!$EG$8:$EG$228)+(IF($A$7=Nutrients!$B$8,Nutrients!$EG$8,Nutrients!$EG$9)*T$7)+(((IF($A$8=Nutrients!$B$79,Nutrients!$EG$79,(IF($A$8=Nutrients!$B$77,Nutrients!$EG$77,Nutrients!$EG$78)))))*T$8))/2000","v":0.2141719383443349},{"$f":"(SUMPRODUCT(U$9:U$229,Nutrients!$EG$8:$EG$228)+(IF($A$7=Nutrients!$B$8,Nutrients!$EG$8,Nutrients!$EG$9)*U$7)+(((IF($A$8=Nutrients!$B$79,Nutrients!$EG$79,(IF($A$8=Nutrients!$B$77,Nutrients!$EG$77,Nutrients!$EG$78)))))*U$8))/2000","v":0.21056029495793654},null,{"$f":"(SUMPRODUCT(W$9:W$229,Nutrients!$EG$8:$EG$228)+(IF($A$7=Nutrients!$B$8,Nutrients!$EG$8,Nutrients!$EG$9)*W$7)+(((IF($A$8=Nutrients!$B$79,Nutrients!$EG$79,(IF($A$8=Nutrients!$B$77,Nutrients!$EG$77,Nutrients!$EG$78)))))*W$8))/2000","v":0.25369055412329622},{"$f":"(SUMPRODUCT(X$9:X$229,Nutrients!$EG$8:$EG$228)+(IF($A$7=Nutrients!$B$8,Nutrients!$EG$8,Nutrients!$EG$9)*X$7)+(((IF($A$8=Nutrients!$B$79,Nutrients!$EG$79,(IF($A$8=Nutrients!$B$77,Nutrients!$EG$77,Nutrients!$EG$78)))))*X$8))/2000","v":0.23906021679549116},{"$f":"(SUMPRODUCT(Y$9:Y$229,Nutrients!$EG$8:$EG$228)+(IF($A$7=Nutrients!$B$8,Nutrients!$EG$8,Nutrients!$EG$9)*Y$7)+(((IF($A$8=Nutrients!$B$79,Nutrients!$EG$79,(IF($A$8=Nutrients!$B$77,Nutrients!$EG$77,Nutrients!$EG$78)))))*Y$8))/2000","v":0.22637300660373694},{"$f":"(SUMPRODUCT(Z$9:Z$229,Nutrients!$EG$8:$EG$228)+(IF($A$7=Nutrients!$B$8,Nutrients!$EG$8,Nutrients!$EG$9)*Z$7)+(((IF($A$8=Nutrients!$B$79,Nutrients!$EG$79,(IF($A$8=Nutrients!$B$77,Nutrients!$EG$77,Nutrients!$EG$78)))))*Z$8))/2000","v":0.21571503970287803},{"$f":"(SUMPRODUCT(AA$9:AA$229,Nutrients!$EG$8:$EG$228)+(IF($A$7=Nutrients!$B$8,Nutrients!$EG$8,Nutrients!$EG$9)*AA$7)+(((IF($A$8=Nutrients!$B$79,Nutrients!$EG$79,(IF($A$8=Nutrients!$B$77,Nutrients!$EG$77,Nutrients!$EG$78)))))*AA$8))/2000","v":0.20866707708896901},{"$f":"(SUMPRODUCT(AB$9:AB$229,Nutrients!$EG$8:$EG$228)+(IF($A$7=Nutrients!$B$8,Nutrients!$EG$8,Nutrients!$EG$9)*AB$7)+(((IF($A$8=Nutrients!$B$79,Nutrients!$EG$79,(IF($A$8=Nutrients!$B$77,Nutrients!$EG$77,Nutrients!$EG$78)))))*AB$8))/2000","v":0.20502735234671143},null,{"$f":"(SUMPRODUCT(AD$9:AD$229,Nutrients!$EG$8:$EG$228)+(IF($A$7=Nutrients!$B$8,Nutrients!$EG$8,Nutrients!$EG$9)*AD$7)+(((IF($A$8=Nutrients!$B$79,Nutrients!$EG$79,(IF($A$8=Nutrients!$B$77,Nutrients!$EG$77,Nutrients!$EG$78)))))*AD$8))/2000","v":0.24793311353457534},{"$f":"(SUMPRODUCT(AE$9:AE$229,Nutrients!$EG$8:$EG$228)+(IF($A$7=Nutrients!$B$8,Nutrients!$EG$8,Nutrients!$EG$9)*AE$7)+(((IF($A$8=Nutrients!$B$79,Nutrients!$EG$79,(IF($A$8=Nutrients!$B$77,Nutrients!$EG$77,Nutrients!$EG$78)))))*AE$8))/2000","v":0.23326315998482239},{"$f":"(SUMPRODUCT(AF$9:AF$229,Nutrients!$EG$8:$EG$228)+(IF($A$7=Nutrients!$B$8,Nutrients!$EG$8,Nutrients!$EG$9)*AF$7)+(((IF($A$8=Nutrients!$B$79,Nutrients!$EG$79,(IF($A$8=Nutrients!$B$77,Nutrients!$EG$77,Nutrients!$EG$78)))))*AF$8))/2000","v":0.22071852904295519},{"$f":"(SUMPRODUCT(AG$9:AG$229,Nutrients!$EG$8:$EG$228)+(IF($A$7=Nutrients!$B$8,Nutrients!$EG$8,Nutrients!$EG$9)*AG$7)+(((IF($A$8=Nutrients!$B$79,Nutrients!$EG$79,(IF($A$8=Nutrients!$B$77,Nutrients!$EG$77,Nutrients!$EG$78)))))*AG$8))/2000","v":0.21014618488489362},{"$f":"(SUMPRODUCT(AH$9:AH$229,Nutrients!$EG$8:$EG$228)+(IF($A$7=Nutrients!$B$8,Nutrients!$EG$8,Nutrients!$EG$9)*AH$7)+(((IF($A$8=Nutrients!$B$79,Nutrients!$EG$79,(IF($A$8=Nutrients!$B$77,Nutrients!$EG$77,Nutrients!$EG$78)))))*AH$8))/2000","v":0.20300536520580292},{"$f":"(SUMPRODUCT(AI$9:AI$229,Nutrients!$EG$8:$EG$228)+(IF($A$7=Nutrients!$B$8,Nutrients!$EG$8,Nutrients!$EG$9)*AI$7)+(((IF($A$8=Nutrients!$B$79,Nutrients!$EG$79,(IF($A$8=Nutrients!$B$77,Nutrients!$EG$77,Nutrients!$EG$78)))))*AI$8))/2000","v":0.19933574420269992},null,{"$f":"(SUMPRODUCT(AK$9:AK$229,Nutrients!$EG$8:$EG$228)+(IF($A$7=Nutrients!$B$8,Nutrients!$EG$8,Nutrients!$EG$9)*AK$7)+(((IF($A$8=Nutrients!$B$79,Nutrients!$EG$79,(IF($A$8=Nutrients!$B$77,Nutrients!$EG$77,Nutrients!$EG$78)))))*AK$8))/2000","v":0.24278719001269883},{"$f":"(SUMPRODUCT(AL$9:AL$229,Nutrients!$EG$8:$EG$228)+(IF($A$7=Nutrients!$B$8,Nutrients!$EG$8,Nutrients!$EG$9)*AL$7)+(((IF($A$8=Nutrients!$B$79,Nutrients!$EG$79,(IF($A$8=Nutrients!$B$77,Nutrients!$EG$77,Nutrients!$EG$78)))))*AL$8))/2000","v":0.22751207494361927},{"$f":"(SUMPRODUCT(AM$9:AM$229,Nutrients!$EG$8:$EG$228)+(IF($A$7=Nutrients!$B$8,Nutrients!$EG$8,Nutrients!$EG$9)*AM$7)+(((IF($A$8=Nutrients!$B$79,Nutrients!$EG$79,(IF($A$8=Nutrients!$B$77,Nutrients!$EG$77,Nutrients!$EG$78)))))*AM$8))/2000","v":0.2150640373825064},{"$f":"(SUMPRODUCT(AN$9:AN$229,Nutrients!$EG$8:$EG$228)+(IF($A$7=Nutrients!$B$8,Nutrients!$EG$8,Nutrients!$EG$9)*AN$7)+(((IF($A$8=Nutrients!$B$79,Nutrients!$EG$79,(IF($A$8=Nutrients!$B$77,Nutrients!$EG$77,Nutrients!$EG$78)))))*AN$8))/2000","v":0.20445985222145546},{"$f":"(SUMPRODUCT(AO$9:AO$229,Nutrients!$EG$8:$EG$228)+(IF($A$7=Nutrients!$B$8,Nutrients!$EG$8,Nutrients!$EG$9)*AO$7)+(((IF($A$8=Nutrients!$B$79,Nutrients!$EG$79,(IF($A$8=Nutrients!$B$77,Nutrients!$EG$77,Nutrients!$EG$78)))))*AO$8))/2000","v":0.19727549122792276},{"$f":"(SUMPRODUCT(AP$9:AP$229,Nutrients!$EG$8:$EG$228)+(IF($A$7=Nutrients!$B$8,Nutrients!$EG$8,Nutrients!$EG$9)*AP$7)+(((IF($A$8=Nutrients!$B$79,Nutrients!$EG$79,(IF($A$8=Nutrients!$B$77,Nutrients!$EG$77,Nutrients!$EG$78)))))*AP$8))/2000","v":0.19364284012393748},null,{"$f":"(SUMPRODUCT(AR$9:AR$229,Nutrients!$EG$8:$EG$228)+(IF($A$7=Nutrients!$B$8,Nutrients!$EG$8,Nutrients!$EG$9)*AR$7)+(((IF($A$8=Nutrients!$B$79,Nutrients!$EG$79,(IF($A$8=Nutrients!$B$77,Nutrients!$EG$77,Nutrients!$EG$78)))))*AR$8))/2000","v":0.23680036067727533},{"$f":"(SUMPRODUCT(AS$9:AS$229,Nutrients!$EG$8:$EG$228)+(IF($A$7=Nutrients!$B$8,Nutrients!$EG$8,Nutrients!$EG$9)*AS$7)+(((IF($A$8=Nutrients!$B$79,Nutrients!$EG$79,(IF($A$8=Nutrients!$B$77,Nutrients!$EG$77,Nutrients!$EG$78)))))*AS$8))/2000","v":0.22176027332429543},{"$f":"(SUMPRODUCT(AT$9:AT$229,Nutrients!$EG$8:$EG$228)+(IF($A$7=Nutrients!$B$8,Nutrients!$EG$8,Nutrients!$EG$9)*AT$7)+(((IF($A$8=Nutrients!$B$79,Nutrients!$EG$79,(IF($A$8=Nutrients!$B$77,Nutrients!$EG$77,Nutrients!$EG$78)))))*AT$8))/2000","v":0.20943715681409306},{"$f":"(SUMPRODUCT(AU$9:AU$229,Nutrients!$EG$8:$EG$228)+(IF($A$7=Nutrients!$B$8,Nutrients!$EG$8,Nutrients!$EG$9)*AU$7)+(((IF($A$8=Nutrients!$B$79,Nutrients!$EG$79,(IF($A$8=Nutrients!$B$77,Nutrients!$EG$77,Nutrients!$EG$78)))))*AU$8))/2000","v":0.19867810441518011},{"$f":"(SUMPRODUCT(AV$9:AV$229,Nutrients!$EG$8:$EG$228)+(IF($A$7=Nutrients!$B$8,Nutrients!$EG$8,Nutrients!$EG$9)*AV$7)+(((IF($A$8=Nutrients!$B$79,Nutrients!$EG$79,(IF($A$8=Nutrients!$B$77,Nutrients!$EG$77,Nutrients!$EG$78)))))*AV$8))/2000","v":0.19154709680957813},{"$f":"(SUMPRODUCT(AW$9:AW$229,Nutrients!$EG$8:$EG$228)+(IF($A$7=Nutrients!$B$8,Nutrients!$EG$8,Nutrients!$EG$9)*AW$7)+(((IF($A$8=Nutrients!$B$79,Nutrients!$EG$79,(IF($A$8=Nutrients!$B$77,Nutrients!$EG$77,Nutrients!$EG$78)))))*AW$8))/2000","v":0.18795098313521419}]
["Total P - Avail P, %",{"$f":"B255-B256","v":0.31730463701690137},0.29999736257979814,0.2851440661893474,0.27259764867356195,0.26435033325189533,0.26008169818001309,null,{"$f":"I255-I256","v":0.33383708454138628},0.31671885376179243,0.30202102498476391,0.28961942109569244,0.28135190264196031,0.27714691960336169,null,{"$f":"P255-P256","v":0.35061075584456458},0.33360785099784052,0.319034732038739,0.30657536044761091,0.2983925563990048,0.29422378571318764,null,{"$f":"W255-W256","v":0.3673872379252251},0.35050142217463737,0.33587123048091666,0.32357506784429207,0.31544398223254499,0.31124321375537534,null,{"$f":"AD255-AD256","v":0.38414783820682069},0.36721631974850044,0.35275071534349939,0.34055288634890857,0.33231544646809535,0.32808045247650308,null,{"$f":"AK255-AK256","v":0.40161412168642541},0.38398409981345505,0.36962947837746013,0.35739567874583955,0.34910850196444831,0.3449161758148071,null,{"$f":"AR255-AR256","v":0.41810990244800006},0.40075120670695219,0.38654030451451005,0.37412896125264017,0.36590328409880318,0.36175312719306957]
["Phytate P released, %",{"$f":"B257-B256","v":0.11261444047083269},0.11261444047083266,0.11261444047083266,0.11261444047083269,0.11261444047083269,0.11261444047083269,null,{"$f":"I257-I256","v":0.11261444047083266},0.11261444047083272,0.11261444047083266,0.1126144404708327,0.1126144404708327,0.11261444047083269,null,{"$f":"P257-P256","v":0.11261444047083269},0.11261444047083266,0.1126144404708327,0.11261444047083269,0.11261444047083269,0.11261444047083266,null,{"$f":"W257-W256","v":0.11261444047083272},0.11261444047083266,0.11261444047083267,0.1126144404708327,0.11261444047083269,0.11261444047083269,null,{"$f":"AD257-AD256","v":0.11261444047083263},0.1126144404708327,0.11261444047083267,0.11261444047083269,0.11261444047083269,0.11261444047083269,null,{"$f":"AK257-AK256","v":0.11261444047083266},0.1126144404708327,0.1126144404708327,0.11261444047083269,0.11261444047083269,0.11261444047083269,null,{"$f":"AR257-AR256","v":0.1126144404708327},0.11261444047083269,0.11261444047083269,0.11261444047083269,0.11261444047083269,0.11261444047083267]
["Percent of total phytate phos released, %",{"$f":"B312/B310","v":0.41534416697896814},0.4396599206348985,0.46293956495329519,0.48460511648891713,0.49998670453269645,0.50833372904042951,null,{"$f":"I312/I310","v":0.42467121606022762},0.44983067973100022,0.47396099363312283,0.4964196286873489,0.51261430072679193,0.52125845137701632,null,{"$f":"P312/P310","v":0.43407725259707419},0.46020999708369487,0.48527211403804926,0.50895725515707102,0.52581323837942229,0.53483226974643794,null,{"$f":"W312/W310","v":0.44390474395077767},0.47107143957445219,0.4974729194102317,0.52205187281306753,0.53968475545769723,0.54926544766766572,null,{"$f":"AD312/AD310","v":0.45421298859753989},0.48277850852299237,0.51021742922596314,0.53588620003982756,0.55473627683025195,0.56494855411540068,null,{"$f":"AK312/AK310","v":0.46384012461671653},0.49498225752958458,0.52363213227760652,0.55078999249621508,0.57084861261718156,0.5815574714704449,null,{"$f":"AR312/AR310","v":0.47556701412423064},0.50782062441882359,0.53770038795358044,0.56681857722731688,0.58792037230815142,0.5991692014178851]
["Phytase units, FTU/kg",{"$f":"((SUMPRODUCT(B$9:B$229,Nutrients!$EE$8:$EE$228)+(IF($A$7=Nutrients!$B$8,Nutrients!$EE$8,Nutrients!$EE$9)*B$7)+(((IF($A$8=Nutrients!$B$79,Nutrients!$EE$79,(IF($A$8=Nutrients!$B$77,Nutrients!$EE$77,Nutrients!$EE$78)))))*B$8))/2000)*2.2046","v":608.03970300000003},{"$f":"((SUMPRODUCT(C$9:C$229,Nutrients!$EE$8:$EE$228)+(IF($A$7=Nutrients!$B$8,Nutrients!$EE$8,Nutrients!$EE$9)*C$7)+(((IF($A$8=Nutrients!$B$79,Nutrients!$EE$79,(IF($A$8=Nutrients!$B$77,Nutrients!$EE$77,Nutrients!$EE$78)))))*C$8))/2000)*2.2046","v":608.03970300000003},{"$f":"((SUMPRODUCT(D$9:D$229,Nutrients!$EE$8:$EE$228)+(IF($A$7=Nutrients!$B$8,Nutrients!$EE$8,Nutrients!$EE$9)*D$7)+(((IF($A$8=Nutrients!$B$79,Nutrients!$EE$79,(IF($A$8=Nutrients!$B$77,Nutrients!$EE$77,Nutrients!$EE$78)))))*D$8))/2000)*2.2046","v":608.03970300000003},{"$f":"((SUMPRODUCT(E$9:E$229,Nutrients!$EE$8:$EE$228)+(IF($A$7=Nutrients!$B$8,Nutrients!$EE$8,Nutrients!$EE$9)*E$7)+(((IF($A$8=Nutrients!$B$79,Nutrients!$EE$79,(IF($A$8=Nutrients!$B$77,Nutrients!$EE$77,Nutrients!$EE$78)))))*E$8))/2000)*2.2046","v":608.03970300000003},{"$f":"((SUMPRODUCT(F$9:F$229,Nutrients!$EE$8:$EE$228)+(IF($A$7=Nutrients!$B$8,Nutrients!$EE$8,Nutrients!$EE$9)*F$7)+(((IF($A$8=Nutrients!$B$79,Nutrients!$EE$79,(IF($A$8=Nutrients!$B$77,Nutrients!$EE$77,Nutrients!$EE$78)))))*F$8))/2000)*2.2046","v":608.03970300000003},{"$f":"((SUMPRODUCT(G$9:G$229,Nutrients!$EE$8:$EE$228)+(IF($A$7=Nutrients!$B$8,Nutrients!$EE$8,Nutrients!$EE$9)*G$7)+(((IF($A$8=Nutrients!$B$79,Nutrients!$EE$79,(IF($A$8=Nutrients!$B$77,Nutrients!$EE$77,Nutrients!$EE$78)))))*G$8))/2000)*2.2046","v":608.03970300000003},null,{"$f":"((SUMPRODUCT(I$9:I$229,Nutrients!$EE$8:$EE$228)+(IF($A$7=Nutrients!$B$8,Nutrients!$EE$8,Nutrients!$EE$9)*I$7)+(((IF($A$8=Nutrients!$B$79,Nutrients!$EE$79,(IF($A$8=Nutrients!$B$77,Nutrients!$EE$77,Nutrients!$EE$78)))))*I$8))/2000)*2.2046","v":608.03970300000003},{"$f":"((SUMPRODUCT(J$9:J$229,Nutrients!$EE$8:$EE$228)+(IF($A$7=Nutrients!$B$8,Nutrients!$EE$8,Nutrients!$EE$9)*J$7)+(((IF($A$8=Nutrients!$B$79,Nutrients!$EE$79,(IF($A$8=Nutrients!$B$77,Nutrients!$EE$77,Nutrients!$EE$78)))))*J$8))/2000)*2.2046","v":608.03970300000003},{"$f":"((SUMPRODUCT(K$9:K$229,Nutrients!$EE$8:$EE$228)+(IF($A$7=Nutrients!$B$8,Nutrients!$EE$8,Nutrients!$EE$9)*K$7)+(((IF($A$8=Nutrients!$B$79,Nutrients!$EE$79,(IF($A$8=Nutrients!$B$77,Nutrients!$EE$77,Nutrients!$EE$78)))))*K$8))/2000)*2.2046","v":608.03970300000003},{"$f":"((SUMPRODUCT(L$9:L$229,Nutrients!$EE$8:$EE$228)+(IF($A$7=Nutrients!$B$8,Nutrients!$EE$8,Nutrients!$EE$9)*L$7)+(((IF($A$8=Nutrients!$B$79,Nutrients!$EE$79,(IF($A$8=Nutrients!$B$77,Nutrients!$EE$77,Nutrients!$EE$78)))))*L$8))/2000)*2.2046","v":608.03970300000003},{"$f":"((SUMPRODUCT(M$9:M$229,Nutrients!$EE$8:$EE$228)+(IF($A$7=Nutrients!$B$8,Nutrients!$EE$8,Nutrients!$EE$9)*M$7)+(((IF($A$8=Nutrients!$B$79,Nutrients!$EE$79,(IF($A$8=Nutrients!$B$77,Nutrients!$EE$77,Nutrients!$EE$78)))))*M$8))/2000)*2.2046","v":608.03970300000003},{"$f":"((SUMPRODUCT(N$9:N$229,Nutrients!$EE$8:$EE$228)+(IF($A$7=Nutrients!$B$8,Nutrients!$EE$8,Nutrients!$EE$9)*N$7)+(((IF($A$8=Nutrients!$B$79,Nutrients!$EE$79,(IF($A$8=Nutrients!$B$77,Nutrients!$EE$77,Nutrients!$EE$78)))))*N$8))/2000)*2.2046","v":608.03970300000003},null,{"$f":"((SUMPRODUCT(P$9:P$229,Nutrients!$EE$8:$EE$228)+(IF($A$7=Nutrients!$B$8,Nutrients!$EE$8,Nutrients!$EE$9)*P$7)+(((IF($A$8=Nutrients!$B$79,Nutrients!$EE$79,(IF($A$8=Nutrients!$B$77,Nutrients!$EE$77,Nutrients!$EE$78)))))*P$8))/2000)*2.2046","v":608.03970300000003},{"$f":"((SUMPRODUCT(Q$9:Q$229,Nutrients!$EE$8:$EE$228)+(IF($A$7=Nutrients!$B$8,Nutrients!$EE$8,Nutrients!$EE$9)*Q$7)+(((IF($A$8=Nutrients!$B$79,Nutrients!$EE$79,(IF($A$8=Nutrients!$B$77,Nutrients!$EE$77,Nutrients!$EE$78)))))*Q$8))/2000)*2.2046","v":608.03970300000003},{"$f":"((SUMPRODUCT(R$9:R$229,Nutrients!$EE$8:$EE$228)+(IF($A$7=Nutrients!$B$8,Nutrients!$EE$8,Nutrients!$EE$9)*R$7)+(((IF($A$8=Nutrients!$B$79,Nutrients!$EE$79,(IF($A$8=Nutrients!$B$77,Nutrients!$EE$77,Nutrients!$EE$78)))))*R$8))/2000)*2.2046","v":608.03970300000003},{"$f":"((SUMPRODUCT(S$9:S$229,Nutrients!$EE$8:$EE$228)+(IF($A$7=Nutrients!$B$8,Nutrients!$EE$8,Nutrients!$EE$9)*S$7)+(((IF($A$8=Nutrients!$B$79,Nutrients!$EE$79,(IF($A$8=Nutrients!$B$77,Nutrients!$EE$77,Nutrients!$EE$78)))))*S$8))/2000)*2.2046","v":608.03970300000003},{"$f":"((SUMPRODUCT(T$9:T$229,Nutrients!$EE$8:$EE$228)+(IF($A$7=Nutrients!$B$8,Nutrients!$EE$8,Nutrients!$EE$9)*T$7)+(((IF($A$8=Nutrients!$B$79,Nutrients!$EE$79,(IF($A$8=Nutrients!$B$77,Nutrients!$EE$77,Nutrients!$EE$78)))))*T$8))/2000)*2.2046","v":608.03970300000003},{"$f":"((SUMPRODUCT(U$9:U$229,Nutrients!$EE$8:$EE$228)+(IF($A$7=Nutrients!$B$8,Nutrients!$EE$8,Nutrients!$EE$9)*U$7)+(((IF($A$8=Nutrients!$B$79,Nutrients!$EE$79,(IF($A$8=Nutrients!$B$77,Nutrients!$EE$77,Nutrients!$EE$78)))))*U$8))/2000)*2.2046","v":608.03970300000003},null,{"$f":"((SUMPRODUCT(W$9:W$229,Nutrients!$EE$8:$EE$228)+(IF($A$7=Nutrients!$B$8,Nutrients!$EE$8,Nutrients!$EE$9)*W$7)+(((IF($A$8=Nutrients!$B$79,Nutrients!$EE$79,(IF($A$8=Nutrients!$B$77,Nutrients!$EE$77,Nutrients!$EE$78)))))*W$8))/2000)*2.2046","v":608.03970300000003},{"$f":"((SUMPRODUCT(X$9:X$229,Nutrients!$EE$8:$EE$228)+(IF($A$7=Nutrients!$B$8,Nutrients!$EE$8,Nutrients!$EE$9)*X$7)+(((IF($A$8=Nutrients!$B$79,Nutrients!$EE$79,(IF($A$8=Nutrients!$B$77,Nutrients!$EE$77,Nutrients!$EE$78)))))*X$8))/2000)*2.2046","v":608.03970300000003},{"$f":"((SUMPRODUCT(Y$9:Y$229,Nutrients!$EE$8:$EE$228)+(IF($A$7=Nutrients!$B$8,Nutrients!$EE$8,Nutrients!$EE$9)*Y$7)+(((IF($A$8=Nutrients!$B$79,Nutrients!$EE$79,(IF($A$8=Nutrients!$B$77,Nutrients!$EE$77,Nutrients!$EE$78)))))*Y$8))/2000)*2.2046","v":608.03970300000003},{"$f":"((SUMPRODUCT(Z$9:Z$229,Nutrients!$EE$8:$EE$228)+(IF($A$7=Nutrients!$B$8,Nutrients!$EE$8,Nutrients!$EE$9)*Z$7)+(((IF($A$8=Nutrients!$B$79,Nutrients!$EE$79,(IF($A$8=Nutrients!$B$77,Nutrients!$EE$77,Nutrients!$EE$78)))))*Z$8))/2000)*2.2046","v":608.03970300000003},{"$f":"((SUMPRODUCT(AA$9:AA$229,Nutrients!$EE$8:$EE$228)+(IF($A$7=Nutrients!$B$8,Nutrients!$EE$8,Nutrients!$EE$9)*AA$7)+(((IF($A$8=Nutrients!$B$79,Nutrients!$EE$79,(IF($A$8=Nutrients!$B$77,Nutrients!$EE$77,Nutrients!$EE$78)))))*AA$8))/2000)*2.2046","v":608.03970300000003},{"$f":"((SUMPRODUCT(AB$9:AB$229,Nutrients!$EE$8:$EE$228)+(IF($A$7=Nutrients!$B$8,Nutrients!$EE$8,Nutrients!$EE$9)*AB$7)+(((IF($A$8=Nutrients!$B$79,Nutrients!$EE$79,(IF($A$8=Nutrients!$B$77,Nutrients!$EE$77,Nutrients!$EE$78)))))*AB$8))/2000)*2.2046","v":608.03970300000003},null,{"$f":"((SUMPRODUCT(AD$9:AD$229,Nutrients!$EE$8:$EE$228)+(IF($A$7=Nutrients!$B$8,Nutrients!$EE$8,Nutrients!$EE$9)*AD$7)+(((IF($A$8=Nutrients!$B$79,Nutrients!$EE$79,(IF($A$8=Nutrients!$B$77,Nutrients!$EE$77,Nutrients!$EE$78)))))*AD$8))/2000)*2.2046","v":608.03970300000003},{"$f":"((SUMPRODUCT(AE$9:AE$229,Nutrients!$EE$8:$EE$228)+(IF($A$7=Nutrients!$B$8,Nutrients!$EE$8,Nutrients!$EE$9)*AE$7)+(((IF($A$8=Nutrients!$B$79,Nutrients!$EE$79,(IF($A$8=Nutrients!$B$77,Nutrients!$EE$77,Nutrients!$EE$78)))))*AE$8))/2000)*2.2046","v":608.03970300000003},{"$f":"((SUMPRODUCT(AF$9:AF$229,Nutrients!$EE$8:$EE$228)+(IF($A$7=Nutrients!$B$8,Nutrients!$EE$8,Nutrients!$EE$9)*AF$7)+(((IF($A$8=Nutrients!$B$79,Nutrients!$EE$79,(IF($A$8=Nutrients!$B$77,Nutrients!$EE$77,Nutrients!$EE$78)))))*AF$8))/2000)*2.2046","v":608.03970300000003},{"$f":"((SUMPRODUCT(AG$9:AG$229,Nutrients!$EE$8:$EE$228)+(IF($A$7=Nutrients!$B$8,Nutrients!$EE$8,Nutrients!$EE$9)*AG$7)+(((IF($A$8=Nutrients!$B$79,Nutrients!$EE$79,(IF($A$8=Nutrients!$B$77,Nutrients!$EE$77,Nutrients!$EE$78)))))*AG$8))/2000)*2.2046","v":608.03970300000003},{"$f":"((SUMPRODUCT(AH$9:AH$229,Nutrients!$EE$8:$EE$228)+(IF($A$7=Nutrients!$B$8,Nutrients!$EE$8,Nutrients!$EE$9)*AH$7)+(((IF($A$8=Nutrients!$B$79,Nutrients!$EE$79,(IF($A$8=Nutrients!$B$77,Nutrients!$EE$77,Nutrients!$EE$78)))))*AH$8))/2000)*2.2046","v":608.03970300000003},{"$f":"((SUMPRODUCT(AI$9:AI$229,Nutrients!$EE$8:$EE$228)+(IF($A$7=Nutrients!$B$8,Nutrients!$EE$8,Nutrients!$EE$9)*AI$7)+(((IF($A$8=Nutrients!$B$79,Nutrients!$EE$79,(IF($A$8=Nutrients!$B$77,Nutrients!$EE$77,Nutrients!$EE$78)))))*AI$8))/2000)*2.2046","v":608.03970300000003},null,{"$f":"((SUMPRODUCT(AK$9:AK$229,Nutrients!$EE$8:$EE$228)+(IF($A$7=Nutrients!$B$8,Nutrients!$EE$8,Nutrients!$EE$9)*AK$7)+(((IF($A$8=Nutrients!$B$79,Nutrients!$EE$79,(IF($A$8=Nutrients!$B$77,Nutrients!$EE$77,Nutrients!$EE$78)))))*AK$8))/2000)*2.2046","v":608.03970300000003},{"$f":"((SUMPRODUCT(AL$9:AL$229,Nutrients!$EE$8:$EE$228)+(IF($A$7=Nutrients!$B$8,Nutrients!$EE$8,Nutrients!$EE$9)*AL$7)+(((IF($A$8=Nutrients!$B$79,Nutrients!$EE$79,(IF($A$8=Nutrients!$B$77,Nutrients!$EE$77,Nutrients!$EE$78)))))*AL$8))/2000)*2.2046","v":608.03970300000003},{"$f":"((SUMPRODUCT(AM$9:AM$229,Nutrients!$EE$8:$EE$228)+(IF($A$7=Nutrients!$B$8,Nutrients!$EE$8,Nutrients!$EE$9)*AM$7)+(((IF($A$8=Nutrients!$B$79,Nutrients!$EE$79,(IF($A$8=Nutrients!$B$77,Nutrients!$EE$77,Nutrients!$EE$78)))))*AM$8))/2000)*2.2046","v":608.03970300000003},{"$f":"((SUMPRODUCT(AN$9:AN$229,Nutrients!$EE$8:$EE$228)+(IF($A$7=Nutrients!$B$8,Nutrients!$EE$8,Nutrients!$EE$9)*AN$7)+(((IF($A$8=Nutrients!$B$79,Nutrients!$EE$79,(IF($A$8=Nutrients!$B$77,Nutrients!$EE$77,Nutrients!$EE$78)))))*AN$8))/2000)*2.2046","v":608.03970300000003},{"$f":"((SUMPRODUCT(AO$9:AO$229,Nutrients!$EE$8:$EE$228)+(IF($A$7=Nutrients!$B$8,Nutrients!$EE$8,Nutrients!$EE$9)*AO$7)+(((IF($A$8=Nutrients!$B$79,Nutrients!$EE$79,(IF($A$8=Nutrients!$B$77,Nutrients!$EE$77,Nutrients!$EE$78)))))*AO$8))/2000)*2.2046","v":608.03970300000003},{"$f":"((SUMPRODUCT(AP$9:AP$229,Nutrients!$EE$8:$EE$228)+(IF($A$7=Nutrients!$B$8,Nutrients!$EE$8,Nutrients!$EE$9)*AP$7)+(((IF($A$8=Nutrients!$B$79,Nutrients!$EE$79,(IF($A$8=Nutrients!$B$77,Nutrients!$EE$77,Nutrients!$EE$78)))))*AP$8))/2000)*2.2046","v":608.03970300000003},null,{"$f":"((SUMPRODUCT(AR$9:AR$229,Nutrients!$EE$8:$EE$228)+(IF($A$7=Nutrients!$B$8,Nutrients!$EE$8,Nutrients!$EE$9)*AR$7)+(((IF($A$8=Nutrients!$B$79,Nutrients!$EE$79,(IF($A$8=Nutrients!$B$77,Nutrients!$EE$77,Nutrients!$EE$78)))))*AR$8))/2000)*2.2046","v":608.03970300000003},{"$f":"((SUMPRODUCT(AS$9:AS$229,Nutrients!$EE$8:$EE$228)+(IF($A$7=Nutrients!$B$8,Nutrients!$EE$8,Nutrients!$EE$9)*AS$7)+(((IF($A$8=Nutrients!$B$79,Nutrients!$EE$79,(IF($A$8=Nutrients!$B$77,Nutrients!$EE$77,Nutrients!$EE$78)))))*AS$8))/2000)*2.2046","v":608.03970300000003},{"$f":"((SUMPRODUCT(AT$9:AT$229,Nutrients!$EE$8:$EE$228)+(IF($A$7=Nutrients!$B$8,Nutrients!$EE$8,Nutrients!$EE$9)*AT$7)+(((IF($A$8=Nutrients!$B$79,Nutrients!$EE$79,(IF($A$8=Nutrients!$B$77,Nutrients!$EE$77,Nutrients!$EE$78)))))*AT$8))/2000)*2.2046","v":608.03970300000003},{"$f":"((SUMPRODUCT(AU$9:AU$229,Nutrients!$EE$8:$EE$228)+(IF($A$7=Nutrients!$B$8,Nutrients!$EE$8,Nutrients!$EE$9)*AU$7)+(((IF($A$8=Nutrients!$B$79,Nutrients!$EE$79,(IF($A$8=Nutrients!$B$77,Nutrients!$EE$77,Nutrients!$EE$78)))))*AU$8))/2000)*2.2046","v":608.03970300000003},{"$f":"((SUMPRODUCT(AV$9:AV$229,Nutrients!$EE$8:$EE$228)+(IF($A$7=Nutrients!$B$8,Nutrients!$EE$8,Nutrients!$EE$9)*AV$7)+(((IF($A$8=Nutrients!$B$79,Nutrients!$EE$79,(IF($A$8=Nutrients!$B$77,Nutrients!$EE$77,Nutrients!$EE$78)))))*AV$8))/2000)*2.2046","v":608.03970300000003},{"$f":"((SUMPRODUCT(AW$9:AW$229,Nutrients!$EE$8:$EE$228)+(IF($A$7=Nutrients!$B$8,Nutrients!$EE$8,Nutrients!$EE$9)*AW$7)+(((IF($A$8=Nutrients!$B$79,Nutrients!$EE$79,(IF($A$8=Nutrients!$B$77,Nutrients!$EE$77,Nutrients!$EE$78)))))*AW$8))/2000)*2.2046","v":608.03970300000003}]
["EFA, %",{"$f":"((SUMPRODUCT(B$9:B$229,Nutrients!$FK$8:$FK$228)+(IF($A$7=Nutrients!$B$8,Nutrients!$FK$8,Nutrients!$FK$9)*B$7)+(((IF($A$8=Nutrients!$B$79,Nutrients!$FK$79,(IF($A$8=Nutrients!$B$77,Nutrients!$FK$77,Nutrients!$FK$78)))))*B$8))/2000)","v":1.5203643016438457},{"$f":"((SUMPRODUCT(C$9:C$229,Nutrients!$FK$8:$FK$228)+(IF($A$7=Nutrients!$B$8,Nutrients!$FK$8,Nutrients!$FK$9)*C$7)+(((IF($A$8=Nutrients!$B$79,Nutrients!$FK$79,(IF($A$8=Nutrients!$B$77,Nutrients!$FK$77,Nutrients!$FK$78)))))*C$8))/2000)","v":1.5749887728173662},{"$f":"((SUMPRODUCT(D$9:D$229,Nutrients!$FK$8:$FK$228)+(IF($A$7=Nutrients!$B$8,Nutrients!$FK$8,Nutrients!$FK$9)*D$7)+(((IF($A$8=Nutrients!$B$79,Nutrients!$FK$79,(IF($A$8=Nutrients!$B$77,Nutrients!$FK$77,Nutrients!$FK$78)))))*D$8))/2000)","v":1.622538447302484},{"$f":"((SUMPRODUCT(E$9:E$229,Nutrients!$FK$8:$FK$228)+(IF($A$7=Nutrients!$B$8,Nutrients!$FK$8,Nutrients!$FK$9)*E$7)+(((IF($A$8=Nutrients!$B$79,Nutrients!$FK$79,(IF($A$8=Nutrients!$B$77,Nutrients!$FK$77,Nutrients!$FK$78)))))*E$8))/2000)","v":1.6623836434171375},{"$f":"((SUMPRODUCT(F$9:F$229,Nutrients!$FK$8:$FK$228)+(IF($A$7=Nutrients!$B$8,Nutrients!$FK$8,Nutrients!$FK$9)*F$7)+(((IF($A$8=Nutrients!$B$79,Nutrients!$FK$79,(IF($A$8=Nutrients!$B$77,Nutrients!$FK$77,Nutrients!$FK$78)))))*F$8))/2000)","v":1.689982464517773},{"$f":"((SUMPRODUCT(G$9:G$229,Nutrients!$FK$8:$FK$228)+(IF($A$7=Nutrients!$B$8,Nutrients!$FK$8,Nutrients!$FK$9)*G$7)+(((IF($A$8=Nutrients!$B$79,Nutrients!$FK$79,(IF($A$8=Nutrients!$B$77,Nutrients!$FK$77,Nutrients!$FK$78)))))*G$8))/2000)","v":1.7033272639768986},null,{"$f":"((SUMPRODUCT(I$9:I$229,Nutrients!$FK$8:$FK$228)+(IF($A$7=Nutrients!$B$8,Nutrients!$FK$8,Nutrients!$FK$9)*I$7)+(((IF($A$8=Nutrients!$B$79,Nutrients!$FK$79,(IF($A$8=Nutrients!$B$77,Nutrients!$FK$77,Nutrients!$FK$78)))))*I$8))/2000)","v":1.4455998828026497},{"$f":"((SUMPRODUCT(J$9:J$229,Nutrients!$FK$8:$FK$228)+(IF($A$7=Nutrients!$B$8,Nutrients!$FK$8,Nutrients!$FK$9)*J$7)+(((IF($A$8=Nutrients!$B$79,Nutrients!$FK$79,(IF($A$8=Nutrients!$B$77,Nutrients!$FK$77,Nutrients!$FK$78)))))*J$8))/2000)","v":1.4996479275771843},{"$f":"((SUMPRODUCT(K$9:K$229,Nutrients!$FK$8:$FK$228)+(IF($A$7=Nutrients!$B$8,Nutrients!$FK$8,Nutrients!$FK$9)*K$7)+(((IF($A$8=Nutrients!$B$79,Nutrients!$FK$79,(IF($A$8=Nutrients!$B$77,Nutrients!$FK$77,Nutrients!$FK$78)))))*K$8))/2000)","v":1.5467252828183879},{"$f":"((SUMPRODUCT(L$9:L$229,Nutrients!$FK$8:$FK$228)+(IF($A$7=Nutrients!$B$8,Nutrients!$FK$8,Nutrients!$FK$9)*L$7)+(((IF($A$8=Nutrients!$B$79,Nutrients!$FK$79,(IF($A$8=Nutrients!$B$77,Nutrients!$FK$77,Nutrients!$FK$78)))))*L$8))/2000)","v":1.5866748853329937},{"$f":"((SUMPRODUCT(M$9:M$229,Nutrients!$FK$8:$FK$228)+(IF($A$7=Nutrients!$B$8,Nutrients!$FK$8,Nutrients!$FK$9)*M$7)+(((IF($A$8=Nutrients!$B$79,Nutrients!$FK$79,(IF($A$8=Nutrients!$B$77,Nutrients!$FK$77,Nutrients!$FK$78)))))*M$8))/2000)","v":1.6141665518130097},{"$f":"((SUMPRODUCT(N$9:N$229,Nutrients!$FK$8:$FK$228)+(IF($A$7=Nutrients!$B$8,Nutrients!$FK$8,Nutrients!$FK$9)*N$7)+(((IF($A$8=Nutrients!$B$79,Nutrients!$FK$79,(IF($A$8=Nutrients!$B$77,Nutrients!$FK$77,Nutrients!$FK$78)))))*N$8))/2000)","v":1.627467742912728},null,{"$f":"((SUMPRODUCT(P$9:P$229,Nutrients!$FK$8:$FK$228)+(IF($A$7=Nutrients!$B$8,Nutrients!$FK$8,Nutrients!$FK$9)*P$7)+(((IF($A$8=Nutrients!$B$79,Nutrients!$FK$79,(IF($A$8=Nutrients!$B$77,Nutrients!$FK$77,Nutrients!$FK$78)))))*P$8))/2000)","v":1.3700723555740364},{"$f":"((SUMPRODUCT(Q$9:Q$229,Nutrients!$FK$8:$FK$228)+(IF($A$7=Nutrients!$B$8,Nutrients!$FK$8,Nutrients!$FK$9)*Q$7)+(((IF($A$8=Nutrients!$B$79,Nutrients!$FK$79,(IF($A$8=Nutrients!$B$77,Nutrients!$FK$77,Nutrients!$FK$78)))))*Q$8))/2000)","v":1.4237831775572127},{"$f":"((SUMPRODUCT(R$9:R$229,Nutrients!$FK$8:$FK$228)+(IF($A$7=Nutrients!$B$8,Nutrients!$FK$8,Nutrients!$FK$9)*R$7)+(((IF($A$8=Nutrients!$B$79,Nutrients!$FK$79,(IF($A$8=Nutrients!$B$77,Nutrients!$FK$77,Nutrients!$FK$78)))))*R$8))/2000)","v":1.4705148764390779},{"$f":"((SUMPRODUCT(S$9:S$229,Nutrients!$FK$8:$FK$228)+(IF($A$7=Nutrients!$B$8,Nutrients!$FK$8,Nutrients!$FK$9)*S$7)+(((IF($A$8=Nutrients!$B$79,Nutrients!$FK$79,(IF($A$8=Nutrients!$B$77,Nutrients!$FK$77,Nutrients!$FK$78)))))*S$8))/2000)","v":1.5106280925362794},{"$f":"((SUMPRODUCT(T$9:T$229,Nutrients!$FK$8:$FK$228)+(IF($A$7=Nutrients!$B$8,Nutrients!$FK$8,Nutrients!$FK$9)*T$7)+(((IF($A$8=Nutrients!$B$79,Nutrients!$FK$79,(IF($A$8=Nutrients!$B$77,Nutrients!$FK$77,Nutrients!$FK$78)))))*T$8))/2000)","v":1.5376691915748419},{"$f":"((SUMPRODUCT(U$9:U$229,Nutrients!$FK$8:$FK$228)+(IF($A$7=Nutrients!$B$8,Nutrients!$FK$8,Nutrients!$FK$9)*U$7)+(((IF($A$8=Nutrients!$B$79,Nutrients!$FK$79,(IF($A$8=Nutrients!$B$77,Nutrients!$FK$77,Nutrients!$FK$78)))))*U$8))/2000)","v":1.5508073453549103},null,{"$f":"((SUMPRODUCT(W$9:W$229,Nutrients!$FK$8:$FK$228)+(IF($A$7=Nutrients!$B$8,Nutrients!$FK$8,Nutrients!$FK$9)*W$7)+(((IF($A$8=Nutrients!$B$79,Nutrients!$FK$79,(IF($A$8=Nutrients!$B$77,Nutrients!$FK$77,Nutrients!$FK$78)))))*W$8))/2000)","v":1.2945767223255014},{"$f":"((SUMPRODUCT(X$9:X$229,Nutrients!$FK$8:$FK$228)+(IF($A$7=Nutrients!$B$8,Nutrients!$FK$8,Nutrients!$FK$9)*X$7)+(((IF($A$8=Nutrients!$B$79,Nutrients!$FK$79,(IF($A$8=Nutrients!$B$77,Nutrients!$FK$77,Nutrients!$FK$78)))))*X$8))/2000)","v":1.3479591570486611},{"$f":"((SUMPRODUCT(Y$9:Y$229,Nutrients!$FK$8:$FK$228)+(IF($A$7=Nutrients!$B$8,Nutrients!$FK$8,Nutrients!$FK$9)*Y$7)+(((IF($A$8=Nutrients!$B$79,Nutrients!$FK$79,(IF($A$8=Nutrients!$B$77,Nutrients!$FK$77,Nutrients!$FK$78)))))*Y$8))/2000)","v":1.3948381338420965},{"$f":"((SUMPRODUCT(Z$9:Z$229,Nutrients!$FK$8:$FK$228)+(IF($A$7=Nutrients!$B$8,Nutrients!$FK$8,Nutrients!$FK$9)*Z$7)+(((IF($A$8=Nutrients!$B$79,Nutrients!$FK$79,(IF($A$8=Nutrients!$B$77,Nutrients!$FK$77,Nutrients!$FK$78)))))*Z$8))/2000)","v":1.4344346630442963},{"$f":"((SUMPRODUCT(AA$9:AA$229,Nutrients!$FK$8:$FK$228)+(IF($A$7=Nutrients!$B$8,Nutrients!$FK$8,Nutrients!$FK$9)*AA$7)+(((IF($A$8=Nutrients!$B$79,Nutrients!$FK$79,(IF($A$8=Nutrients!$B$77,Nutrients!$FK$77,Nutrients!$FK$78)))))*AA$8))/2000)","v":1.4611294771105829},{"$f":"((SUMPRODUCT(AB$9:AB$229,Nutrients!$FK$8:$FK$228)+(IF($A$7=Nutrients!$B$8,Nutrients!$FK$8,Nutrients!$FK$9)*AB$7)+(((IF($A$8=Nutrients!$B$79,Nutrients!$FK$79,(IF($A$8=Nutrients!$B$77,Nutrients!$FK$77,Nutrients!$FK$78)))))*AB$8))/2000)","v":1.473834471737697},null,{"$f":"((SUMPRODUCT(AD$9:AD$229,Nutrients!$FK$8:$FK$228)+(IF($A$7=Nutrients!$B$8,Nutrients!$FK$8,Nutrients!$FK$9)*AD$7)+(((IF($A$8=Nutrients!$B$79,Nutrients!$FK$79,(IF($A$8=Nutrients!$B$77,Nutrients!$FK$77,Nutrients!$FK$78)))))*AD$8))/2000)","v":1.2191017480012487},{"$f":"((SUMPRODUCT(AE$9:AE$229,Nutrients!$FK$8:$FK$228)+(IF($A$7=Nutrients!$B$8,Nutrients!$FK$8,Nutrients!$FK$9)*AE$7)+(((IF($A$8=Nutrients!$B$79,Nutrients!$FK$79,(IF($A$8=Nutrients!$B$77,Nutrients!$FK$77,Nutrients!$FK$78)))))*AE$8))/2000)","v":1.2726105646757182},{"$f":"((SUMPRODUCT(AF$9:AF$229,Nutrients!$FK$8:$FK$228)+(IF($A$7=Nutrients!$B$8,Nutrients!$FK$8,Nutrients!$FK$9)*AF$7)+(((IF($A$8=Nutrients!$B$79,Nutrients!$FK$79,(IF($A$8=Nutrients!$B$77,Nutrients!$FK$77,Nutrients!$FK$78)))))*AF$8))/2000)","v":1.3190433332362954},{"$f":"((SUMPRODUCT(AG$9:AG$229,Nutrients!$FK$8:$FK$228)+(IF($A$7=Nutrients!$B$8,Nutrients!$FK$8,Nutrients!$FK$9)*AG$7)+(((IF($A$8=Nutrients!$B$79,Nutrients!$FK$79,(IF($A$8=Nutrients!$B$77,Nutrients!$FK$77,Nutrients!$FK$78)))))*AG$8))/2000)","v":1.3580646984178044},{"$f":"((SUMPRODUCT(AH$9:AH$229,Nutrients!$FK$8:$FK$228)+(IF($A$7=Nutrients!$B$8,Nutrients!$FK$8,Nutrients!$FK$9)*AH$7)+(((IF($A$8=Nutrients!$B$79,Nutrients!$FK$79,(IF($A$8=Nutrients!$B$77,Nutrients!$FK$77,Nutrients!$FK$78)))))*AH$8))/2000)","v":1.3836702693917331},{"$f":"((SUMPRODUCT(AI$9:AI$229,Nutrients!$FK$8:$FK$228)+(IF($A$7=Nutrients!$B$8,Nutrients!$FK$8,Nutrients!$FK$9)*AI$7)+(((IF($A$8=Nutrients!$B$79,Nutrients!$FK$79,(IF($A$8=Nutrients!$B$77,Nutrients!$FK$77,Nutrients!$FK$78)))))*AI$8))/2000)","v":1.3957818678902247},null,{"$f":"((SUMPRODUCT(AK$9:AK$229,Nutrients!$FK$8:$FK$228)+(IF($A$7=Nutrients!$B$8,Nutrients!$FK$8,Nutrients!$FK$9)*AK$7)+(((IF($A$8=Nutrients!$B$79,Nutrients!$FK$79,(IF($A$8=Nutrients!$B$77,Nutrients!$FK$77,Nutrients!$FK$78)))))*AK$8))/2000)","v":1.1416420104849061},{"$f":"((SUMPRODUCT(AL$9:AL$229,Nutrients!$FK$8:$FK$228)+(IF($A$7=Nutrients!$B$8,Nutrients!$FK$8,Nutrients!$FK$9)*AL$7)+(((IF($A$8=Nutrients!$B$79,Nutrients!$FK$79,(IF($A$8=Nutrients!$B$77,Nutrients!$FK$77,Nutrients!$FK$78)))))*AL$8))/2000)","v":1.1971393370395638},{"$f":"((SUMPRODUCT(AM$9:AM$229,Nutrients!$FK$8:$FK$228)+(IF($A$7=Nutrients!$B$8,Nutrients!$FK$8,Nutrients!$FK$9)*AM$7)+(((IF($A$8=Nutrients!$B$79,Nutrients!$FK$79,(IF($A$8=Nutrients!$B$77,Nutrients!$FK$77,Nutrients!$FK$78)))))*AM$8))/2000)","v":1.2429878676520056},{"$f":"((SUMPRODUCT(AN$9:AN$229,Nutrients!$FK$8:$FK$228)+(IF($A$7=Nutrients!$B$8,Nutrients!$FK$8,Nutrients!$FK$9)*AN$7)+(((IF($A$8=Nutrients!$B$79,Nutrients!$FK$79,(IF($A$8=Nutrients!$B$77,Nutrients!$FK$77,Nutrients!$FK$78)))))*AN$8))/2000)","v":1.2810334359603466},{"$f":"((SUMPRODUCT(AO$9:AO$229,Nutrients!$FK$8:$FK$228)+(IF($A$7=Nutrients!$B$8,Nutrients!$FK$8,Nutrients!$FK$9)*AO$7)+(((IF($A$8=Nutrients!$B$79,Nutrients!$FK$79,(IF($A$8=Nutrients!$B$77,Nutrients!$FK$77,Nutrients!$FK$78)))))*AO$8))/2000)","v":1.305731562681467},{"$f":"((SUMPRODUCT(AP$9:AP$229,Nutrients!$FK$8:$FK$228)+(IF($A$7=Nutrients!$B$8,Nutrients!$FK$8,Nutrients!$FK$9)*AP$7)+(((IF($A$8=Nutrients!$B$79,Nutrients!$FK$79,(IF($A$8=Nutrients!$B$77,Nutrients!$FK$77,Nutrients!$FK$78)))))*AP$8))/2000)","v":1.3177223761486987},null,{"$f":"((SUMPRODUCT(AR$9:AR$229,Nutrients!$FK$8:$FK$228)+(IF($A$7=Nutrients!$B$8,Nutrients!$FK$8,Nutrients!$FK$9)*AR$7)+(((IF($A$8=Nutrients!$B$79,Nutrients!$FK$79,(IF($A$8=Nutrients!$B$77,Nutrients!$FK$77,Nutrients!$FK$78)))))*AR$8))/2000)","v":1.0669285496844374},{"$f":"((SUMPRODUCT(AS$9:AS$229,Nutrients!$FK$8:$FK$228)+(IF($A$7=Nutrients!$B$8,Nutrients!$FK$8,Nutrients!$FK$9)*AS$7)+(((IF($A$8=Nutrients!$B$79,Nutrients!$FK$79,(IF($A$8=Nutrients!$B$77,Nutrients!$FK$77,Nutrients!$FK$78)))))*AS$8))/2000)","v":1.1216461695040123},{"$f":"((SUMPRODUCT(AT$9:AT$229,Nutrients!$FK$8:$FK$228)+(IF($A$7=Nutrients!$B$8,Nutrients!$FK$8,Nutrients!$FK$9)*AT$7)+(((IF($A$8=Nutrients!$B$79,Nutrients!$FK$79,(IF($A$8=Nutrients!$B$77,Nutrients!$FK$77,Nutrients!$FK$78)))))*AT$8))/2000)","v":1.1668111834635457},{"$f":"((SUMPRODUCT(AU$9:AU$229,Nutrients!$FK$8:$FK$228)+(IF($A$7=Nutrients!$B$8,Nutrients!$FK$8,Nutrients!$FK$9)*AU$7)+(((IF($A$8=Nutrients!$B$79,Nutrients!$FK$79,(IF($A$8=Nutrients!$B$77,Nutrients!$FK$77,Nutrients!$FK$78)))))*AU$8))/2000)","v":1.2032490824695359},{"$f":"((SUMPRODUCT(AV$9:AV$229,Nutrients!$FK$8:$FK$228)+(IF($A$7=Nutrients!$B$8,Nutrients!$FK$8,Nutrients!$FK$9)*AV$7)+(((IF($A$8=Nutrients!$B$79,Nutrients!$FK$79,(IF($A$8=Nutrients!$B$77,Nutrients!$FK$77,Nutrients!$FK$78)))))*AV$8))/2000)","v":1.2277984063601033},{"$f":"((SUMPRODUCT(AW$9:AW$229,Nutrients!$FK$8:$FK$228)+(IF($A$7=Nutrients!$B$8,Nutrients!$FK$8,Nutrients!$FK$9)*AW$7)+(((IF($A$8=Nutrients!$B$79,Nutrients!$FK$79,(IF($A$8=Nutrients!$B$77,Nutrients!$FK$77,Nutrients!$FK$78)))))*AW$8))/2000)","v":1.2396705027539252}]
["NDF, %",{"$f":"(SUMPRODUCT(B$9:B$229,Nutrients!$U$8:$U$228)+(IF($A$7=Nutrients!$B$8,Nutrients!$U$8,Nutrients!$U$9)*B$7)+(((IF($A$8=Nutrients!$B$79,Nutrients!$U$79,(IF($A$8=Nutrients!$B$77,Nutrients!$U$77,Nutrients!$U$78)))))*B$8))/2000","v":8.5675537105360302},{"$f":"(SUMPRODUCT(C$9:C$229,Nutrients!$U$8:$U$228)+(IF($A$7=Nutrients!$B$8,Nutrients!$U$8,Nutrients!$U$9)*C$7)+(((IF($A$8=Nutrients!$B$79,Nutrients!$U$79,(IF($A$8=Nutrients!$B$77,Nutrients!$U$77,Nutrients!$U$78)))))*C$8))/2000","v":8.6397459364158564},{"$f":"(SUMPRODUCT(D$9:D$229,Nutrients!$U$8:$U$228)+(IF($A$7=Nutrients!$B$8,Nutrients!$U$8,Nutrients!$U$9)*D$7)+(((IF($A$8=Nutrients!$B$79,Nutrients!$U$79,(IF($A$8=Nutrients!$B$77,Nutrients!$U$77,Nutrients!$U$78)))))*D$8))/2000","v":8.7042340935531328},{"$f":"(SUMPRODUCT(E$9:E$229,Nutrients!$U$8:$U$228)+(IF($A$7=Nutrients!$B$8,Nutrients!$U$8,Nutrients!$U$9)*E$7)+(((IF($A$8=Nutrients!$B$79,Nutrients!$U$79,(IF($A$8=Nutrients!$B$77,Nutrients!$U$77,Nutrients!$U$78)))))*E$8))/2000","v":8.7574905031042753},{"$f":"(SUMPRODUCT(F$9:F$229,Nutrients!$U$8:$U$228)+(IF($A$7=Nutrients!$B$8,Nutrients!$U$8,Nutrients!$U$9)*F$7)+(((IF($A$8=Nutrients!$B$79,Nutrients!$U$79,(IF($A$8=Nutrients!$B$77,Nutrients!$U$77,Nutrients!$U$78)))))*F$8))/2000","v":8.7980354970428483},{"$f":"(SUMPRODUCT(G$9:G$229,Nutrients!$U$8:$U$228)+(IF($A$7=Nutrients!$B$8,Nutrients!$U$8,Nutrients!$U$9)*G$7)+(((IF($A$8=Nutrients!$B$79,Nutrients!$U$79,(IF($A$8=Nutrients!$B$77,Nutrients!$U$77,Nutrients!$U$78)))))*G$8))/2000","v":8.8153381410832843},null,{"$f":"(SUMPRODUCT(I$9:I$229,Nutrients!$U$8:$U$228)+(IF($A$7=Nutrients!$B$8,Nutrients!$U$8,Nutrients!$U$9)*I$7)+(((IF($A$8=Nutrients!$B$79,Nutrients!$U$79,(IF($A$8=Nutrients!$B$77,Nutrients!$U$77,Nutrients!$U$78)))))*I$8))/2000","v":9.7722934215788015},{"$f":"(SUMPRODUCT(J$9:J$229,Nutrients!$U$8:$U$228)+(IF($A$7=Nutrients!$B$8,Nutrients!$U$8,Nutrients!$U$9)*J$7)+(((IF($A$8=Nutrients!$B$79,Nutrients!$U$79,(IF($A$8=Nutrients!$B$77,Nutrients!$U$77,Nutrients!$U$78)))))*J$8))/2000","v":9.8437745945440067},{"$f":"(SUMPRODUCT(K$9:K$229,Nutrients!$U$8:$U$228)+(IF($A$7=Nutrients!$B$8,Nutrients!$U$8,Nutrients!$U$9)*K$7)+(((IF($A$8=Nutrients!$B$79,Nutrients!$U$79,(IF($A$8=Nutrients!$B$77,Nutrients!$U$77,Nutrients!$U$78)))))*K$8))/2000","v":9.9076860389027352},{"$f":"(SUMPRODUCT(L$9:L$229,Nutrients!$U$8:$U$228)+(IF($A$7=Nutrients!$B$8,Nutrients!$U$8,Nutrients!$U$9)*L$7)+(((IF($A$8=Nutrients!$B$79,Nutrients!$U$79,(IF($A$8=Nutrients!$B$77,Nutrients!$U$77,Nutrients!$U$78)))))*L$8))/2000","v":9.9625547470046598},{"$f":"(SUMPRODUCT(M$9:M$229,Nutrients!$U$8:$U$228)+(IF($A$7=Nutrients!$B$8,Nutrients!$U$8,Nutrients!$U$9)*M$7)+(((IF($A$8=Nutrients!$B$79,Nutrients!$U$79,(IF($A$8=Nutrients!$B$77,Nutrients!$U$77,Nutrients!$U$78)))))*M$8))/2000","v":10.002508724199311},{"$f":"(SUMPRODUCT(N$9:N$229,Nutrients!$U$8:$U$228)+(IF($A$7=Nutrients!$B$8,Nutrients!$U$8,Nutrients!$U$9)*N$7)+(((IF($A$8=Nutrients!$B$79,Nutrients!$U$79,(IF($A$8=Nutrients!$B$77,Nutrients!$U$77,Nutrients!$U$78)))))*N$8))/2000","v":10.020166703720257},null,{"$f":"(SUMPRODUCT(P$9:P$229,Nutrients!$U$8:$U$228)+(IF($A$7=Nutrients!$B$8,Nutrients!$U$8,Nutrients!$U$9)*P$7)+(((IF($A$8=Nutrients!$B$79,Nutrients!$U$79,(IF($A$8=Nutrients!$B$77,Nutrients!$U$77,Nutrients!$U$78)))))*P$8))/2000","v":10.97601747411734},{"$f":"(SUMPRODUCT(Q$9:Q$229,Nutrients!$U$8:$U$228)+(IF($A$7=Nutrients!$B$8,Nutrients!$U$8,Nutrients!$U$9)*Q$7)+(((IF($A$8=Nutrients!$B$79,Nutrients!$U$79,(IF($A$8=Nutrients!$B$77,Nutrients!$U$77,Nutrients!$U$78)))))*Q$8))/2000","v":11.047123544792175},{"$f":"(SUMPRODUCT(R$9:R$229,Nutrients!$U$8:$U$228)+(IF($A$7=Nutrients!$B$8,Nutrients!$U$8,Nutrients!$U$9)*R$7)+(((IF($A$8=Nutrients!$B$79,Nutrients!$U$79,(IF($A$8=Nutrients!$B$77,Nutrients!$U$77,Nutrients!$U$78)))))*R$8))/2000","v":11.110702861257101},{"$f":"(SUMPRODUCT(S$9:S$229,Nutrients!$U$8:$U$228)+(IF($A$7=Nutrients!$B$8,Nutrients!$U$8,Nutrients!$U$9)*S$7)+(((IF($A$8=Nutrients!$B$79,Nutrients!$U$79,(IF($A$8=Nutrients!$B$77,Nutrients!$U$77,Nutrients!$U$78)))))*S$8))/2000","v":11.165738860525623},{"$f":"(SUMPRODUCT(T$9:T$229,Nutrients!$U$8:$U$228)+(IF($A$7=Nutrients!$B$8,Nutrients!$U$8,Nutrients!$U$9)*T$7)+(((IF($A$8=Nutrients!$B$79,Nutrients!$U$79,(IF($A$8=Nutrients!$B$77,Nutrients!$U$77,Nutrients!$U$78)))))*T$8))/2000","v":11.204621522181363},{"$f":"(SUMPRODUCT(U$9:U$229,Nutrients!$U$8:$U$228)+(IF($A$7=Nutrients!$B$8,Nutrients!$U$8,Nutrients!$U$9)*U$7)+(((IF($A$8=Nutrients!$B$79,Nutrients!$U$79,(IF($A$8=Nutrients!$B$77,Nutrients!$U$77,Nutrients!$U$78)))))*U$8))/2000","v":11.221937462417936},null,{"$f":"(SUMPRODUCT(W$9:W$229,Nutrients!$U$8:$U$228)+(IF($A$7=Nutrients!$B$8,Nutrients!$U$8,Nutrients!$U$9)*W$7)+(((IF($A$8=Nutrients!$B$79,Nutrients!$U$79,(IF($A$8=Nutrients!$B$77,Nutrients!$U$77,Nutrients!$U$78)))))*W$8))/2000","v":12.179892397151711},{"$f":"(SUMPRODUCT(X$9:X$229,Nutrients!$U$8:$U$228)+(IF($A$7=Nutrients!$B$8,Nutrients!$U$8,Nutrients!$U$9)*X$7)+(((IF($A$8=Nutrients!$B$79,Nutrients!$U$79,(IF($A$8=Nutrients!$B$77,Nutrients!$U$77,Nutrients!$U$78)))))*X$8))/2000","v":12.250672314355418},{"$f":"(SUMPRODUCT(Y$9:Y$229,Nutrients!$U$8:$U$228)+(IF($A$7=Nutrients!$B$8,Nutrients!$U$8,Nutrients!$U$9)*Y$7)+(((IF($A$8=Nutrients!$B$79,Nutrients!$U$79,(IF($A$8=Nutrients!$B$77,Nutrients!$U$77,Nutrients!$U$78)))))*Y$8))/2000","v":12.314360453677414},{"$f":"(SUMPRODUCT(Z$9:Z$229,Nutrients!$U$8:$U$228)+(IF($A$7=Nutrients!$B$8,Nutrients!$U$8,Nutrients!$U$9)*Z$7)+(((IF($A$8=Nutrients!$B$79,Nutrients!$U$79,(IF($A$8=Nutrients!$B$77,Nutrients!$U$77,Nutrients!$U$78)))))*Z$8))/2000","v":12.368710621126661},{"$f":"(SUMPRODUCT(AA$9:AA$229,Nutrients!$U$8:$U$228)+(IF($A$7=Nutrients!$B$8,Nutrients!$U$8,Nutrients!$U$9)*AA$7)+(((IF($A$8=Nutrients!$B$79,Nutrients!$U$79,(IF($A$8=Nutrients!$B$77,Nutrients!$U$77,Nutrients!$U$78)))))*AA$8))/2000","v":12.406659972645041},{"$f":"(SUMPRODUCT(AB$9:AB$229,Nutrients!$U$8:$U$228)+(IF($A$7=Nutrients!$B$8,Nutrients!$U$8,Nutrients!$U$9)*AB$7)+(((IF($A$8=Nutrients!$B$79,Nutrients!$U$79,(IF($A$8=Nutrients!$B$77,Nutrients!$U$77,Nutrients!$U$78)))))*AB$8))/2000","v":12.422003303005869},null,{"$f":"(SUMPRODUCT(AD$9:AD$229,Nutrients!$U$8:$U$228)+(IF($A$7=Nutrients!$B$8,Nutrients!$U$8,Nutrients!$U$9)*AD$7)+(((IF($A$8=Nutrients!$B$79,Nutrients!$U$79,(IF($A$8=Nutrients!$B$77,Nutrients!$U$77,Nutrients!$U$78)))))*AD$8))/2000","v":13.383716272105108},{"$f":"(SUMPRODUCT(AE$9:AE$229,Nutrients!$U$8:$U$228)+(IF($A$7=Nutrients!$B$8,Nutrients!$U$8,Nutrients!$U$9)*AE$7)+(((IF($A$8=Nutrients!$B$79,Nutrients!$U$79,(IF($A$8=Nutrients!$B$77,Nutrients!$U$77,Nutrients!$U$78)))))*AE$8))/2000","v":13.454616331160009},{"$f":"(SUMPRODUCT(AF$9:AF$229,Nutrients!$U$8:$U$228)+(IF($A$7=Nutrients!$B$8,Nutrients!$U$8,Nutrients!$U$9)*AF$7)+(((IF($A$8=Nutrients!$B$79,Nutrients!$U$79,(IF($A$8=Nutrients!$B$77,Nutrients!$U$77,Nutrients!$U$78)))))*AF$8))/2000","v":13.517906097258157},{"$f":"(SUMPRODUCT(AG$9:AG$229,Nutrients!$U$8:$U$228)+(IF($A$7=Nutrients!$B$8,Nutrients!$U$8,Nutrients!$U$9)*AG$7)+(((IF($A$8=Nutrients!$B$79,Nutrients!$U$79,(IF($A$8=Nutrients!$B$77,Nutrients!$U$77,Nutrients!$U$78)))))*AG$8))/2000","v":13.57080772749149},{"$f":"(SUMPRODUCT(AH$9:AH$229,Nutrients!$U$8:$U$228)+(IF($A$7=Nutrients!$B$8,Nutrients!$U$8,Nutrients!$U$9)*AH$7)+(((IF($A$8=Nutrients!$B$79,Nutrients!$U$79,(IF($A$8=Nutrients!$B$77,Nutrients!$U$77,Nutrients!$U$78)))))*AH$8))/2000","v":13.603584792016889},{"$f":"(SUMPRODUCT(AI$9:AI$229,Nutrients!$U$8:$U$228)+(IF($A$7=Nutrients!$B$8,Nutrients!$U$8,Nutrients!$U$9)*AI$7)+(((IF($A$8=Nutrients!$B$79,Nutrients!$U$79,(IF($A$8=Nutrients!$B$77,Nutrients!$U$77,Nutrients!$U$78)))))*AI$8))/2000","v":13.616307454323403},null,{"$f":"(SUMPRODUCT(AK$9:AK$229,Nutrients!$U$8:$U$228)+(IF($A$7=Nutrients!$B$8,Nutrients!$U$8,Nutrients!$U$9)*AK$7)+(((IF($A$8=Nutrients!$B$79,Nutrients!$U$79,(IF($A$8=Nutrients!$B$77,Nutrients!$U$77,Nutrients!$U$78)))))*AK$8))/2000","v":14.585552077151283},{"$f":"(SUMPRODUCT(AL$9:AL$229,Nutrients!$U$8:$U$228)+(IF($A$7=Nutrients!$B$8,Nutrients!$U$8,Nutrients!$U$9)*AL$7)+(((IF($A$8=Nutrients!$B$79,Nutrients!$U$79,(IF($A$8=Nutrients!$B$77,Nutrients!$U$77,Nutrients!$U$78)))))*AL$8))/2000","v":14.658515493792445},{"$f":"(SUMPRODUCT(AM$9:AM$229,Nutrients!$U$8:$U$228)+(IF($A$7=Nutrients!$B$8,Nutrients!$U$8,Nutrients!$U$9)*AM$7)+(((IF($A$8=Nutrients!$B$79,Nutrients!$U$79,(IF($A$8=Nutrients!$B$77,Nutrients!$U$77,Nutrients!$U$78)))))*AM$8))/2000","v":14.720425502595312},{"$f":"(SUMPRODUCT(AN$9:AN$229,Nutrients!$U$8:$U$228)+(IF($A$7=Nutrients!$B$8,Nutrients!$U$8,Nutrients!$U$9)*AN$7)+(((IF($A$8=Nutrients!$B$79,Nutrients!$U$79,(IF($A$8=Nutrients!$B$77,Nutrients!$U$77,Nutrients!$U$78)))))*AN$8))/2000","v":14.769182625368545},{"$f":"(SUMPRODUCT(AO$9:AO$229,Nutrients!$U$8:$U$228)+(IF($A$7=Nutrients!$B$8,Nutrients!$U$8,Nutrients!$U$9)*AO$7)+(((IF($A$8=Nutrients!$B$79,Nutrients!$U$79,(IF($A$8=Nutrients!$B$77,Nutrients!$U$77,Nutrients!$U$78)))))*AO$8))/2000","v":14.79797280183068},{"$f":"(SUMPRODUCT(AP$9:AP$229,Nutrients!$U$8:$U$228)+(IF($A$7=Nutrients!$B$8,Nutrients!$U$8,Nutrients!$U$9)*AP$7)+(((IF($A$8=Nutrients!$B$79,Nutrients!$U$79,(IF($A$8=Nutrients!$B$77,Nutrients!$U$77,Nutrients!$U$78)))))*AP$8))/2000","v":14.810572147296522},null,{"$f":"(SUMPRODUCT(AR$9:AR$229,Nutrients!$U$8:$U$228)+(IF($A$7=Nutrients!$B$8,Nutrients!$U$8,Nutrients!$U$9)*AR$7)+(((IF($A$8=Nutrients!$B$79,Nutrients!$U$79,(IF($A$8=Nutrients!$B$77,Nutrients!$U$77,Nutrients!$U$78)))))*AR$8))/2000","v":15.79018862812935},{"$f":"(SUMPRODUCT(AS$9:AS$229,Nutrients!$U$8:$U$228)+(IF($A$7=Nutrients!$B$8,Nutrients!$U$8,Nutrients!$U$9)*AS$7)+(((IF($A$8=Nutrients!$B$79,Nutrients!$U$79,(IF($A$8=Nutrients!$B$77,Nutrients!$U$77,Nutrients!$U$78)))))*AS$8))/2000","v":15.862321464659933},{"$f":"(SUMPRODUCT(AT$9:AT$229,Nutrients!$U$8:$U$228)+(IF($A$7=Nutrients!$B$8,Nutrients!$U$8,Nutrients!$U$9)*AT$7)+(((IF($A$8=Nutrients!$B$79,Nutrients!$U$79,(IF($A$8=Nutrients!$B$77,Nutrients!$U$77,Nutrients!$U$78)))))*AT$8))/2000","v":15.922730738306432},{"$f":"(SUMPRODUCT(AU$9:AU$229,Nutrients!$U$8:$U$228)+(IF($A$7=Nutrients!$B$8,Nutrients!$U$8,Nutrients!$U$9)*AU$7)+(((IF($A$8=Nutrients!$B$79,Nutrients!$U$79,(IF($A$8=Nutrients!$B$77,Nutrients!$U$77,Nutrients!$U$78)))))*AU$8))/2000","v":15.963684127381153},{"$f":"(SUMPRODUCT(AV$9:AV$229,Nutrients!$U$8:$U$228)+(IF($A$7=Nutrients!$B$8,Nutrients!$U$8,Nutrients!$U$9)*AV$7)+(((IF($A$8=Nutrients!$B$79,Nutrients!$U$79,(IF($A$8=Nutrients!$B$77,Nutrients!$U$77,Nutrients!$U$78)))))*AV$8))/2000","v":15.992396754011763},{"$f":"(SUMPRODUCT(AW$9:AW$229,Nutrients!$U$8:$U$228)+(IF($A$7=Nutrients!$B$8,Nutrients!$U$8,Nutrients!$U$9)*AW$7)+(((IF($A$8=Nutrients!$B$79,Nutrients!$U$79,(IF($A$8=Nutrients!$B$77,Nutrients!$U$77,Nutrients!$U$78)))))*AW$8))/2000","v":16.004876803694469}]
["SID Lys:CP ratio",{"$f":"B236/B253*100","v":5.7412242387563301},5.6765331580798346,5.5885690783484616,5.5041200481878318,5.4256048182416317,5.3576040399978782,null,{"$f":"I236/I253*100","v":5.636880225675216},5.5615494980249407,5.4626368173452402,5.3668717512267472,5.2796588325620393,5.2074904351153588,null,{"$f":"P236/P253*100","v":5.5354274101664114},5.4499399660389392,5.3411841888716189,5.2344188825940812,5.1383618594973068,5.0621977637819251,null,{"$f":"W236/W253*100","v":5.4362353180652185},5.3413699733847828,5.2221455587529295,5.1062257170753984,5.0020558105530295,4.9228617045511216,null,{"$f":"AD236/AD253*100","v":5.3391951801522062},5.234580265141374,5.1070545424495011,4.9809899528338928,4.8712243595479627,4.7895054659227316,null,{"$f":"AK236/AK253*100","v":5.2480531210771275},5.1306432602600367,4.9935597684222097,4.8602189811123706,4.7450956254950318,4.6609248474671388,null,{"$f":"AR236/AR253*100","v":5.1539575709437697},5.029222695091037,4.8836609791710464,4.7435138080861448,4.6233981849487193,4.5370994403593912]
["Trace minerals (added levels)"]
["  Zinc added, ppm",{"$f":"(SUMPRODUCT(B$9:B$229,Nutrients!$EK$8:$EK$228)+(IF($A$7=Nutrients!$B$8,Nutrients!$EK$8,Nutrients!$EK$9)*B$7)+(((IF($A$8=Nutrients!$B$79,Nutrients!$EK$79,(IF($A$8=Nutrients!$B$77,Nutrients!$EK$77,Nutrients!$EK$78)))))*B$8))/2000*1000000","v":110.11950000000002},{"$f":"(SUMPRODUCT(C$9:C$229,Nutrients!$EK$8:$EK$228)+(IF($A$7=Nutrients!$B$8,Nutrients!$EK$8,Nutrients!$EK$9)*C$7)+(((IF($A$8=Nutrients!$B$79,Nutrients!$EK$79,(IF($A$8=Nutrients!$B$77,Nutrients!$EK$77,Nutrients!$EK$78)))))*C$8))/2000*1000000","v":110.11950000000002},{"$f":"(SUMPRODUCT(D$9:D$229,Nutrients!$EK$8:$EK$228)+(IF($A$7=Nutrients!$B$8,Nutrients!$EK$8,Nutrients!$EK$9)*D$7)+(((IF($A$8=Nutrients!$B$79,Nutrients!$EK$79,(IF($A$8=Nutrients!$B$77,Nutrients!$EK$77,Nutrients!$EK$78)))))*D$8))/2000*1000000","v":91.766249999999999},{"$f":"(SUMPRODUCT(E$9:E$229,Nutrients!$EK$8:$EK$228)+(IF($A$7=Nutrients!$B$8,Nutrients!$EK$8,Nutrients!$EK$9)*E$7)+(((IF($A$8=Nutrients!$B$79,Nutrients!$EK$79,(IF($A$8=Nutrients!$B$77,Nutrients!$EK$77,Nutrients!$EK$78)))))*E$8))/2000*1000000","v":73.413000000000011},{"$f":"(SUMPRODUCT(F$9:F$229,Nutrients!$EK$8:$EK$228)+(IF($A$7=Nutrients!$B$8,Nutrients!$EK$8,Nutrients!$EK$9)*F$7)+(((IF($A$8=Nutrients!$B$79,Nutrients!$EK$79,(IF($A$8=Nutrients!$B$77,Nutrients!$EK$77,Nutrients!$EK$78)))))*F$8))/2000*1000000","v":55.059750000000008},{"$f":"(SUMPRODUCT(G$9:G$229,Nutrients!$EK$8:$EK$228)+(IF($A$7=Nutrients!$B$8,Nutrients!$EK$8,Nutrients!$EK$9)*G$7)+(((IF($A$8=Nutrients!$B$79,Nutrients!$EK$79,(IF($A$8=Nutrients!$B$77,Nutrients!$EK$77,Nutrients!$EK$78)))))*G$8))/2000*1000000","v":55.059750000000008},null,{"$f":"(SUMPRODUCT(I$9:I$229,Nutrients!$EK$8:$EK$228)+(IF($A$7=Nutrients!$B$8,Nutrients!$EK$8,Nutrients!$EK$9)*I$7)+(((IF($A$8=Nutrients!$B$79,Nutrients!$EK$79,(IF($A$8=Nutrients!$B$77,Nutrients!$EK$77,Nutrients!$EK$78)))))*I$8))/2000*1000000","v":110.11950000000002},{"$f":"(SUMPRODUCT(J$9:J$229,Nutrients!$EK$8:$EK$228)+(IF($A$7=Nutrients!$B$8,Nutrients!$EK$8,Nutrients!$EK$9)*J$7)+(((IF($A$8=Nutrients!$B$79,Nutrients!$EK$79,(IF($A$8=Nutrients!$B$77,Nutrients!$EK$77,Nutrients!$EK$78)))))*J$8))/2000*1000000","v":110.11950000000002},{"$f":"(SUMPRODUCT(K$9:K$229,Nutrients!$EK$8:$EK$228)+(IF($A$7=Nutrients!$B$8,Nutrients!$EK$8,Nutrients!$EK$9)*K$7)+(((IF($A$8=Nutrients!$B$79,Nutrients!$EK$79,(IF($A$8=Nutrients!$B$77,Nutrients!$EK$77,Nutrients!$EK$78)))))*K$8))/2000*1000000","v":91.766249999999999},{"$f":"(SUMPRODUCT(L$9:L$229,Nutrients!$EK$8:$EK$228)+(IF($A$7=Nutrients!$B$8,Nutrients!$EK$8,Nutrients!$EK$9)*L$7)+(((IF($A$8=Nutrients!$B$79,Nutrients!$EK$79,(IF($A$8=Nutrients!$B$77,Nutrients!$EK$77,Nutrients!$EK$78)))))*L$8))/2000*1000000","v":73.413000000000011},{"$f":"(SUMPRODUCT(M$9:M$229,Nutrients!$EK$8:$EK$228)+(IF($A$7=Nutrients!$B$8,Nutrients!$EK$8,Nutrients!$EK$9)*M$7)+(((IF($A$8=Nutrients!$B$79,Nutrients!$EK$79,(IF($A$8=Nutrients!$B$77,Nutrients!$EK$77,Nutrients!$EK$78)))))*M$8))/2000*1000000","v":55.059750000000008},{"$f":"(SUMPRODUCT(N$9:N$229,Nutrients!$EK$8:$EK$228)+(IF($A$7=Nutrients!$B$8,Nutrients!$EK$8,Nutrients!$EK$9)*N$7)+(((IF($A$8=Nutrients!$B$79,Nutrients!$EK$79,(IF($A$8=Nutrients!$B$77,Nutrients!$EK$77,Nutrients!$EK$78)))))*N$8))/2000*1000000","v":55.059750000000008},null,{"$f":"(SUMPRODUCT(P$9:P$229,Nutrients!$EK$8:$EK$228)+(IF($A$7=Nutrients!$B$8,Nutrients!$EK$8,Nutrients!$EK$9)*P$7)+(((IF($A$8=Nutrients!$B$79,Nutrients!$EK$79,(IF($A$8=Nutrients!$B$77,Nutrients!$EK$77,Nutrients!$EK$78)))))*P$8))/2000*1000000","v":110.11950000000002},{"$f":"(SUMPRODUCT(Q$9:Q$229,Nutrients!$EK$8:$EK$228)+(IF($A$7=Nutrients!$B$8,Nutrients!$EK$8,Nutrients!$EK$9)*Q$7)+(((IF($A$8=Nutrients!$B$79,Nutrients!$EK$79,(IF($A$8=Nutrients!$B$77,Nutrients!$EK$77,Nutrients!$EK$78)))))*Q$8))/2000*1000000","v":110.11950000000002},{"$f":"(SUMPRODUCT(R$9:R$229,Nutrients!$EK$8:$EK$228)+(IF($A$7=Nutrients!$B$8,Nutrients!$EK$8,Nutrients!$EK$9)*R$7)+(((IF($A$8=Nutrients!$B$79,Nutrients!$EK$79,(IF($A$8=Nutrients!$B$77,Nutrients!$EK$77,Nutrients!$EK$78)))))*R$8))/2000*1000000","v":91.766249999999999},{"$f":"(SUMPRODUCT(S$9:S$229,Nutrients!$EK$8:$EK$228)+(IF($A$7=Nutrients!$B$8,Nutrients!$EK$8,Nutrients!$EK$9)*S$7)+(((IF($A$8=Nutrients!$B$79,Nutrients!$EK$79,(IF($A$8=Nutrients!$B$77,Nutrients!$EK$77,Nutrients!$EK$78)))))*S$8))/2000*1000000","v":73.413000000000011},{"$f":"(SUMPRODUCT(T$9:T$229,Nutrients!$EK$8:$EK$228)+(IF($A$7=Nutrients!$B$8,Nutrients!$EK$8,Nutrients!$EK$9)*T$7)+(((IF($A$8=Nutrients!$B$79,Nutrients!$EK$79,(IF($A$8=Nutrients!$B$77,Nutrients!$EK$77,Nutrients!$EK$78)))))*T$8))/2000*1000000","v":55.059750000000008},{"$f":"(SUMPRODUCT(U$9:U$229,Nutrients!$EK$8:$EK$228)+(IF($A$7=Nutrients!$B$8,Nutrients!$EK$8,Nutrients!$EK$9)*U$7)+(((IF($A$8=Nutrients!$B$79,Nutrients!$EK$79,(IF($A$8=Nutrients!$B$77,Nutrients!$EK$77,Nutrients!$EK$78)))))*U$8))/2000*1000000","v":55.059750000000008},null,{"$f":"(SUMPRODUCT(W$9:W$229,Nutrients!$EK$8:$EK$228)+(IF($A$7=Nutrients!$B$8,Nutrients!$EK$8,Nutrients!$EK$9)*W$7)+(((IF($A$8=Nutrients!$B$79,Nutrients!$EK$79,(IF($A$8=Nutrients!$B$77,Nutrients!$EK$77,Nutrients!$EK$78)))))*W$8))/2000*1000000","v":110.11950000000002},{"$f":"(SUMPRODUCT(X$9:X$229,Nutrients!$EK$8:$EK$228)+(IF($A$7=Nutrients!$B$8,Nutrients!$EK$8,Nutrients!$EK$9)*X$7)+(((IF($A$8=Nutrients!$B$79,Nutrients!$EK$79,(IF($A$8=Nutrients!$B$77,Nutrients!$EK$77,Nutrients!$EK$78)))))*X$8))/2000*1000000","v":110.11950000000002},{"$f":"(SUMPRODUCT(Y$9:Y$229,Nutrients!$EK$8:$EK$228)+(IF($A$7=Nutrients!$B$8,Nutrients!$EK$8,Nutrients!$EK$9)*Y$7)+(((IF($A$8=Nutrients!$B$79,Nutrients!$EK$79,(IF($A$8=Nutrients!$B$77,Nutrients!$EK$77,Nutrients!$EK$78)))))*Y$8))/2000*1000000","v":91.766249999999999},{"$f":"(SUMPRODUCT(Z$9:Z$229,Nutrients!$EK$8:$EK$228)+(IF($A$7=Nutrients!$B$8,Nutrients!$EK$8,Nutrients!$EK$9)*Z$7)+(((IF($A$8=Nutrients!$B$79,Nutrients!$EK$79,(IF($A$8=Nutrients!$B$77,Nutrients!$EK$77,Nutrients!$EK$78)))))*Z$8))/2000*1000000","v":73.413000000000011},{"$f":"(SUMPRODUCT(AA$9:AA$229,Nutrients!$EK$8:$EK$228)+(IF($A$7=Nutrients!$B$8,Nutrients!$EK$8,Nutrients!$EK$9)*AA$7)+(((IF($A$8=Nutrients!$B$79,Nutrients!$EK$79,(IF($A$8=Nutrients!$B$77,Nutrients!$EK$77,Nutrients!$EK$78)))))*AA$8))/2000*1000000","v":55.059750000000008},{"$f":"(SUMPRODUCT(AB$9:AB$229,Nutrients!$EK$8:$EK$228)+(IF($A$7=Nutrients!$B$8,Nutrients!$EK$8,Nutrients!$EK$9)*AB$7)+(((IF($A$8=Nutrients!$B$79,Nutrients!$EK$79,(IF($A$8=Nutrients!$B$77,Nutrients!$EK$77,Nutrients!$EK$78)))))*AB$8))/2000*1000000","v":55.059750000000008},null,{"$f":"(SUMPRODUCT(AD$9:AD$229,Nutrients!$EK$8:$EK$228)+(IF($A$7=Nutrients!$B$8,Nutrients!$EK$8,Nutrients!$EK$9)*AD$7)+(((IF($A$8=Nutrients!$B$79,Nutrients!$EK$79,(IF($A$8=Nutrients!$B$77,Nutrients!$EK$77,Nutrients!$EK$78)))))*AD$8))/2000*1000000","v":110.11950000000002},{"$f":"(SUMPRODUCT(AE$9:AE$229,Nutrients!$EK$8:$EK$228)+(IF($A$7=Nutrients!$B$8,Nutrients!$EK$8,Nutrients!$EK$9)*AE$7)+(((IF($A$8=Nutrients!$B$79,Nutrients!$EK$79,(IF($A$8=Nutrients!$B$77,Nutrients!$EK$77,Nutrients!$EK$78)))))*AE$8))/2000*1000000","v":110.11950000000002},{"$f":"(SUMPRODUCT(AF$9:AF$229,Nutrients!$EK$8:$EK$228)+(IF($A$7=Nutrients!$B$8,Nutrients!$EK$8,Nutrients!$EK$9)*AF$7)+(((IF($A$8=Nutrients!$B$79,Nutrients!$EK$79,(IF($A$8=Nutrients!$B$77,Nutrients!$EK$77,Nutrients!$EK$78)))))*AF$8))/2000*1000000","v":91.766249999999999},{"$f":"(SUMPRODUCT(AG$9:AG$229,Nutrients!$EK$8:$EK$228)+(IF($A$7=Nutrients!$B$8,Nutrients!$EK$8,Nutrients!$EK$9)*AG$7)+(((IF($A$8=Nutrients!$B$79,Nutrients!$EK$79,(IF($A$8=Nutrients!$B$77,Nutrients!$EK$77,Nutrients!$EK$78)))))*AG$8))/2000*1000000","v":73.413000000000011},{"$f":"(SUMPRODUCT(AH$9:AH$229,Nutrients!$EK$8:$EK$228)+(IF($A$7=Nutrients!$B$8,Nutrients!$EK$8,Nutrients!$EK$9)*AH$7)+(((IF($A$8=Nutrients!$B$79,Nutrients!$EK$79,(IF($A$8=Nutrients!$B$77,Nutrients!$EK$77,Nutrients!$EK$78)))))*AH$8))/2000*1000000","v":55.059750000000008},{"$f":"(SUMPRODUCT(AI$9:AI$229,Nutrients!$EK$8:$EK$228)+(IF($A$7=Nutrients!$B$8,Nutrients!$EK$8,Nutrients!$EK$9)*AI$7)+(((IF($A$8=Nutrients!$B$79,Nutrients!$EK$79,(IF($A$8=Nutrients!$B$77,Nutrients!$EK$77,Nutrients!$EK$78)))))*AI$8))/2000*1000000","v":55.059750000000008},null,{"$f":"(SUMPRODUCT(AK$9:AK$229,Nutrients!$EK$8:$EK$228)+(IF($A$7=Nutrients!$B$8,Nutrients!$EK$8,Nutrients!$EK$9)*AK$7)+(((IF($A$8=Nutrients!$B$79,Nutrients!$EK$79,(IF($A$8=Nutrients!$B$77,Nutrients!$EK$77,Nutrients!$EK$78)))))*AK$8))/2000*1000000","v":110.11950000000002},{"$f":"(SUMPRODUCT(AL$9:AL$229,Nutrients!$EK$8:$EK$228)+(IF($A$7=Nutrients!$B$8,Nutrients!$EK$8,Nutrients!$EK$9)*AL$7)+(((IF($A$8=Nutrients!$B$79,Nutrients!$EK$79,(IF($A$8=Nutrients!$B$77,Nutrients!$EK$77,Nutrients!$EK$78)))))*AL$8))/2000*1000000","v":110.11950000000002},{"$f":"(SUMPRODUCT(AM$9:AM$229,Nutrients!$EK$8:$EK$228)+(IF($A$7=Nutrients!$B$8,Nutrients!$EK$8,Nutrients!$EK$9)*AM$7)+(((IF($A$8=Nutrients!$B$79,Nutrients!$EK$79,(IF($A$8=Nutrients!$B$77,Nutrients!$EK$77,Nutrients!$EK$78)))))*AM$8))/2000*1000000","v":91.766249999999999},{"$f":"(SUMPRODUCT(AN$9:AN$229,Nutrients!$EK$8:$EK$228)+(IF($A$7=Nutrients!$B$8,Nutrients!$EK$8,Nutrients!$EK$9)*AN$7)+(((IF($A$8=Nutrients!$B$79,Nutrients!$EK$79,(IF($A$8=Nutrients!$B$77,Nutrients!$EK$77,Nutrients!$EK$78)))))*AN$8))/2000*1000000","v":73.413000000000011},{"$f":"(SUMPRODUCT(AO$9:AO$229,Nutrients!$EK$8:$EK$228)+(IF($A$7=Nutrients!$B$8,Nutrients!$EK$8,Nutrients!$EK$9)*AO$7)+(((IF($A$8=Nutrients!$B$79,Nutrients!$EK$79,(IF($A$8=Nutrients!$B$77,Nutrients!$EK$77,Nutrients!$EK$78)))))*AO$8))/2000*1000000","v":55.059750000000008},{"$f":"(SUMPRODUCT(AP$9:AP$229,Nutrients!$EK$8:$EK$228)+(IF($A$7=Nutrients!$B$8,Nutrients!$EK$8,Nutrients!$EK$9)*AP$7)+(((IF($A$8=Nutrients!$B$79,Nutrients!$EK$79,(IF($A$8=Nutrients!$B$77,Nutrients!$EK$77,Nutrients!$EK$78)))))*AP$8))/2000*1000000","v":55.059750000000008},null,{"$f":"(SUMPRODUCT(AR$9:AR$229,Nutrients!$EK$8:$EK$228)+(IF($A$7=Nutrients!$B$8,Nutrients!$EK$8,Nutrients!$EK$9)*AR$7)+(((IF($A$8=Nutrients!$B$79,Nutrients!$EK$79,(IF($A$8=Nutrients!$B$77,Nutrients!$EK$77,Nutrients!$EK$78)))))*AR$8))/2000*1000000","v":110.11950000000002},{"$f":"(SUMPRODUCT(AS$9:AS$229,Nutrients!$EK$8:$EK$228)+(IF($A$7=Nutrients!$B$8,Nutrients!$EK$8,Nutrients!$EK$9)*AS$7)+(((IF($A$8=Nutrients!$B$79,Nutrients!$EK$79,(IF($A$8=Nutrients!$B$77,Nutrients!$EK$77,Nutrients!$EK$78)))))*AS$8))/2000*1000000","v":110.11950000000002},{"$f":"(SUMPRODUCT(AT$9:AT$229,Nutrients!$EK$8:$EK$228)+(IF($A$7=Nutrients!$B$8,Nutrients!$EK$8,Nutrients!$EK$9)*AT$7)+(((IF($A$8=Nutrients!$B$79,Nutrients!$EK$79,(IF($A$8=Nutrients!$B$77,Nutrients!$EK$77,Nutrients!$EK$78)))))*AT$8))/2000*1000000","v":91.766249999999999},{"$f":"(SUMPRODUCT(AU$9:AU$229,Nutrients!$EK$8:$EK$228)+(IF($A$7=Nutrients!$B$8,Nutrients!$EK$8,Nutrients!$EK$9)*AU$7)+(((IF($A$8=Nutrients!$B$79,Nutrients!$EK$79,(IF($A$8=Nutrients!$B$77,Nutrients!$EK$77,Nutrients!$EK$78)))))*AU$8))/2000*1000000","v":73.413000000000011},{"$f":"(SUMPRODUCT(AV$9:AV$229,Nutrients!$EK$8:$EK$228)+(IF($A$7=Nutrients!$B$8,Nutrients!$EK$8,Nutrients!$EK$9)*AV$7)+(((IF($A$8=Nutrients!$B$79,Nutrients!$EK$79,(IF($A$8=Nutrients!$B$77,Nutrients!$EK$77,Nutrients!$EK$78)))))*AV$8))/2000*1000000","v":55.059750000000008},{"$f":"(SUMPRODUCT(AW$9:AW$229,Nutrients!$EK$8:$EK$228)+(IF($A$7=Nutrients!$B$8,Nutrients!$EK$8,Nutrients!$EK$9)*AW$7)+(((IF($A$8=Nutrients!$B$79,Nutrients!$EK$79,(IF($A$8=Nutrients!$B$77,Nutrients!$EK$77,Nutrients!$EK$78)))))*AW$8))/2000*1000000","v":55.059750000000008}]
["  Iron added, ppm",{"$f":"(SUMPRODUCT(B$9:B$229,Nutrients!$EL$8:$EL$228)+(IF($A$7=Nutrients!$B$8,Nutrients!$EL$8,Nutrients!$EL$9)*B$7)+(((IF($A$8=Nutrients!$B$79,Nutrients!$EL$79,(IF($A$8=Nutrients!$B$77,Nutrients!$EL$77,Nutrients!$EL$78)))))*B$8))/2000*1000000","v":110.11950000000002},{"$f":"(SUMPRODUCT(C$9:C$229,Nutrients!$EL$8:$EL$228)+(IF($A$7=Nutrients!$B$8,Nutrients!$EL$8,Nutrients!$EL$9)*C$7)+(((IF($A$8=Nutrients!$B$79,Nutrients!$EL$79,(IF($A$8=Nutrients!$B$77,Nutrients!$EL$77,Nutrients!$EL$78)))))*C$8))/2000*1000000","v":110.11950000000002},{"$f":"(SUMPRODUCT(D$9:D$229,Nutrients!$EL$8:$EL$228)+(IF($A$7=Nutrients!$B$8,Nutrients!$EL$8,Nutrients!$EL$9)*D$7)+(((IF($A$8=Nutrients!$B$79,Nutrients!$EL$79,(IF($A$8=Nutrients!$B$77,Nutrients!$EL$77,Nutrients!$EL$78)))))*D$8))/2000*1000000","v":91.766249999999999},{"$f":"(SUMPRODUCT(E$9:E$229,Nutrients!$EL$8:$EL$228)+(IF($A$7=Nutrients!$B$8,Nutrients!$EL$8,Nutrients!$EL$9)*E$7)+(((IF($A$8=Nutrients!$B$79,Nutrients!$EL$79,(IF($A$8=Nutrients!$B$77,Nutrients!$EL$77,Nutrients!$EL$78)))))*E$8))/2000*1000000","v":73.413000000000011},{"$f":"(SUMPRODUCT(F$9:F$229,Nutrients!$EL$8:$EL$228)+(IF($A$7=Nutrients!$B$8,Nutrients!$EL$8,Nutrients!$EL$9)*F$7)+(((IF($A$8=Nutrients!$B$79,Nutrients!$EL$79,(IF($A$8=Nutrients!$B$77,Nutrients!$EL$77,Nutrients!$EL$78)))))*F$8))/2000*1000000","v":55.059750000000008},{"$f":"(SUMPRODUCT(G$9:G$229,Nutrients!$EL$8:$EL$228)+(IF($A$7=Nutrients!$B$8,Nutrients!$EL$8,Nutrients!$EL$9)*G$7)+(((IF($A$8=Nutrients!$B$79,Nutrients!$EL$79,(IF($A$8=Nutrients!$B$77,Nutrients!$EL$77,Nutrients!$EL$78)))))*G$8))/2000*1000000","v":55.059750000000008},null,{"$f":"(SUMPRODUCT(I$9:I$229,Nutrients!$EL$8:$EL$228)+(IF($A$7=Nutrients!$B$8,Nutrients!$EL$8,Nutrients!$EL$9)*I$7)+(((IF($A$8=Nutrients!$B$79,Nutrients!$EL$79,(IF($A$8=Nutrients!$B$77,Nutrients!$EL$77,Nutrients!$EL$78)))))*I$8))/2000*1000000","v":110.11950000000002},{"$f":"(SUMPRODUCT(J$9:J$229,Nutrients!$EL$8:$EL$228)+(IF($A$7=Nutrients!$B$8,Nutrients!$EL$8,Nutrients!$EL$9)*J$7)+(((IF($A$8=Nutrients!$B$79,Nutrients!$EL$79,(IF($A$8=Nutrients!$B$77,Nutrients!$EL$77,Nutrients!$EL$78)))))*J$8))/2000*1000000","v":110.11950000000002},{"$f":"(SUMPRODUCT(K$9:K$229,Nutrients!$EL$8:$EL$228)+(IF($A$7=Nutrients!$B$8,Nutrients!$EL$8,Nutrients!$EL$9)*K$7)+(((IF($A$8=Nutrients!$B$79,Nutrients!$EL$79,(IF($A$8=Nutrients!$B$77,Nutrients!$EL$77,Nutrients!$EL$78)))))*K$8))/2000*1000000","v":91.766249999999999},{"$f":"(SUMPRODUCT(L$9:L$229,Nutrients!$EL$8:$EL$228)+(IF($A$7=Nutrients!$B$8,Nutrients!$EL$8,Nutrients!$EL$9)*L$7)+(((IF($A$8=Nutrients!$B$79,Nutrients!$EL$79,(IF($A$8=Nutrients!$B$77,Nutrients!$EL$77,Nutrients!$EL$78)))))*L$8))/2000*1000000","v":73.413000000000011},{"$f":"(SUMPRODUCT(M$9:M$229,Nutrients!$EL$8:$EL$228)+(IF($A$7=Nutrients!$B$8,Nutrients!$EL$8,Nutrients!$EL$9)*M$7)+(((IF($A$8=Nutrients!$B$79,Nutrients!$EL$79,(IF($A$8=Nutrients!$B$77,Nutrients!$EL$77,Nutrients!$EL$78)))))*M$8))/2000*1000000","v":55.059750000000008},{"$f":"(SUMPRODUCT(N$9:N$229,Nutrients!$EL$8:$EL$228)+(IF($A$7=Nutrients!$B$8,Nutrients!$EL$8,Nutrients!$EL$9)*N$7)+(((IF($A$8=Nutrients!$B$79,Nutrients!$EL$79,(IF($A$8=Nutrients!$B$77,Nutrients!$EL$77,Nutrients!$EL$78)))))*N$8))/2000*1000000","v":55.059750000000008},null,{"$f":"(SUMPRODUCT(P$9:P$229,Nutrients!$EL$8:$EL$228)+(IF($A$7=Nutrients!$B$8,Nutrients!$EL$8,Nutrients!$EL$9)*P$7)+(((IF($A$8=Nutrients!$B$79,Nutrients!$EL$79,(IF($A$8=Nutrients!$B$77,Nutrients!$EL$77,Nutrients!$EL$78)))))*P$8))/2000*1000000","v":110.11950000000002},{"$f":"(SUMPRODUCT(Q$9:Q$229,Nutrients!$EL$8:$EL$228)+(IF($A$7=Nutrients!$B$8,Nutrients!$EL$8,Nutrients!$EL$9)*Q$7)+(((IF($A$8=Nutrients!$B$79,Nutrients!$EL$79,(IF($A$8=Nutrients!$B$77,Nutrients!$EL$77,Nutrients!$EL$78)))))*Q$8))/2000*1000000","v":110.11950000000002},{"$f":"(SUMPRODUCT(R$9:R$229,Nutrients!$EL$8:$EL$228)+(IF($A$7=Nutrients!$B$8,Nutrients!$EL$8,Nutrients!$EL$9)*R$7)+(((IF($A$8=Nutrients!$B$79,Nutrients!$EL$79,(IF($A$8=Nutrients!$B$77,Nutrients!$EL$77,Nutrients!$EL$78)))))*R$8))/2000*1000000","v":91.766249999999999},{"$f":"(SUMPRODUCT(S$9:S$229,Nutrients!$EL$8:$EL$228)+(IF($A$7=Nutrients!$B$8,Nutrients!$EL$8,Nutrients!$EL$9)*S$7)+(((IF($A$8=Nutrients!$B$79,Nutrients!$EL$79,(IF($A$8=Nutrients!$B$77,Nutrients!$EL$77,Nutrients!$EL$78)))))*S$8))/2000*1000000","v":73.413000000000011},{"$f":"(SUMPRODUCT(T$9:T$229,Nutrients!$EL$8:$EL$228)+(IF($A$7=Nutrients!$B$8,Nutrients!$EL$8,Nutrients!$EL$9)*T$7)+(((IF($A$8=Nutrients!$B$79,Nutrients!$EL$79,(IF($A$8=Nutrients!$B$77,Nutrients!$EL$77,Nutrients!$EL$78)))))*T$8))/2000*1000000","v":55.059750000000008},{"$f":"(SUMPRODUCT(U$9:U$229,Nutrients!$EL$8:$EL$228)+(IF($A$7=Nutrients!$B$8,Nutrients!$EL$8,Nutrients!$EL$9)*U$7)+(((IF($A$8=Nutrients!$B$79,Nutrients!$EL$79,(IF($A$8=Nutrients!$B$77,Nutrients!$EL$77,Nutrients!$EL$78)))))*U$8))/2000*1000000","v":55.059750000000008},null,{"$f":"(SUMPRODUCT(W$9:W$229,Nutrients!$EL$8:$EL$228)+(IF($A$7=Nutrients!$B$8,Nutrients!$EL$8,Nutrients!$EL$9)*W$7)+(((IF($A$8=Nutrients!$B$79,Nutrients!$EL$79,(IF($A$8=Nutrients!$B$77,Nutrients!$EL$77,Nutrients!$EL$78)))))*W$8))/2000*1000000","v":110.11950000000002},{"$f":"(SUMPRODUCT(X$9:X$229,Nutrients!$EL$8:$EL$228)+(IF($A$7=Nutrients!$B$8,Nutrients!$EL$8,Nutrients!$EL$9)*X$7)+(((IF($A$8=Nutrients!$B$79,Nutrients!$EL$79,(IF($A$8=Nutrients!$B$77,Nutrients!$EL$77,Nutrients!$EL$78)))))*X$8))/2000*1000000","v":110.11950000000002},{"$f":"(SUMPRODUCT(Y$9:Y$229,Nutrients!$EL$8:$EL$228)+(IF($A$7=Nutrients!$B$8,Nutrients!$EL$8,Nutrients!$EL$9)*Y$7)+(((IF($A$8=Nutrients!$B$79,Nutrients!$EL$79,(IF($A$8=Nutrients!$B$77,Nutrients!$EL$77,Nutrients!$EL$78)))))*Y$8))/2000*1000000","v":91.766249999999999},{"$f":"(SUMPRODUCT(Z$9:Z$229,Nutrients!$EL$8:$EL$228)+(IF($A$7=Nutrients!$B$8,Nutrients!$EL$8,Nutrients!$EL$9)*Z$7)+(((IF($A$8=Nutrients!$B$79,Nutrients!$EL$79,(IF($A$8=Nutrients!$B$77,Nutrients!$EL$77,Nutrients!$EL$78)))))*Z$8))/2000*1000000","v":73.413000000000011},{"$f":"(SUMPRODUCT(AA$9:AA$229,Nutrients!$EL$8:$EL$228)+(IF($A$7=Nutrients!$B$8,Nutrients!$EL$8,Nutrients!$EL$9)*AA$7)+(((IF($A$8=Nutrients!$B$79,Nutrients!$EL$79,(IF($A$8=Nutrients!$B$77,Nutrients!$EL$77,Nutrients!$EL$78)))))*AA$8))/2000*1000000","v":55.059750000000008},{"$f":"(SUMPRODUCT(AB$9:AB$229,Nutrients!$EL$8:$EL$228)+(IF($A$7=Nutrients!$B$8,Nutrients!$EL$8,Nutrients!$EL$9)*AB$7)+(((IF($A$8=Nutrients!$B$79,Nutrients!$EL$79,(IF($A$8=Nutrients!$B$77,Nutrients!$EL$77,Nutrients!$EL$78)))))*AB$8))/2000*1000000","v":55.059750000000008},null,{"$f":"(SUMPRODUCT(AD$9:AD$229,Nutrients!$EL$8:$EL$228)+(IF($A$7=Nutrients!$B$8,Nutrients!$EL$8,Nutrients!$EL$9)*AD$7)+(((IF($A$8=Nutrients!$B$79,Nutrients!$EL$79,(IF($A$8=Nutrients!$B$77,Nutrients!$EL$77,Nutrients!$EL$78)))))*AD$8))/2000*1000000","v":110.11950000000002},{"$f":"(SUMPRODUCT(AE$9:AE$229,Nutrients!$EL$8:$EL$228)+(IF($A$7=Nutrients!$B$8,Nutrients!$EL$8,Nutrients!$EL$9)*AE$7)+(((IF($A$8=Nutrients!$B$79,Nutrients!$EL$79,(IF($A$8=Nutrients!$B$77,Nutrients!$EL$77,Nutrients!$EL$78)))))*AE$8))/2000*1000000","v":110.11950000000002},{"$f":"(SUMPRODUCT(AF$9:AF$229,Nutrients!$EL$8:$EL$228)+(IF($A$7=Nutrients!$B$8,Nutrients!$EL$8,Nutrients!$EL$9)*AF$7)+(((IF($A$8=Nutrients!$B$79,Nutrients!$EL$79,(IF($A$8=Nutrients!$B$77,Nutrients!$EL$77,Nutrients!$EL$78)))))*AF$8))/2000*1000000","v":91.766249999999999},{"$f":"(SUMPRODUCT(AG$9:AG$229,Nutrients!$EL$8:$EL$228)+(IF($A$7=Nutrients!$B$8,Nutrients!$EL$8,Nutrients!$EL$9)*AG$7)+(((IF($A$8=Nutrients!$B$79,Nutrients!$EL$79,(IF($A$8=Nutrients!$B$77,Nutrients!$EL$77,Nutrients!$EL$78)))))*AG$8))/2000*1000000","v":73.413000000000011},{"$f":"(SUMPRODUCT(AH$9:AH$229,Nutrients!$EL$8:$EL$228)+(IF($A$7=Nutrients!$B$8,Nutrients!$EL$8,Nutrients!$EL$9)*AH$7)+(((IF($A$8=Nutrients!$B$79,Nutrients!$EL$79,(IF($A$8=Nutrients!$B$77,Nutrients!$EL$77,Nutrients!$EL$78)))))*AH$8))/2000*1000000","v":55.059750000000008},{"$f":"(SUMPRODUCT(AI$9:AI$229,Nutrients!$EL$8:$EL$228)+(IF($A$7=Nutrients!$B$8,Nutrients!$EL$8,Nutrients!$EL$9)*AI$7)+(((IF($A$8=Nutrients!$B$79,Nutrients!$EL$79,(IF($A$8=Nutrients!$B$77,Nutrients!$EL$77,Nutrients!$EL$78)))))*AI$8))/2000*1000000","v":55.059750000000008},null,{"$f":"(SUMPRODUCT(AK$9:AK$229,Nutrients!$EL$8:$EL$228)+(IF($A$7=Nutrients!$B$8,Nutrients!$EL$8,Nutrients!$EL$9)*AK$7)+(((IF($A$8=Nutrients!$B$79,Nutrients!$EL$79,(IF($A$8=Nutrients!$B$77,Nutrients!$EL$77,Nutrients!$EL$78)))))*AK$8))/2000*1000000","v":110.11950000000002},{"$f":"(SUMPRODUCT(AL$9:AL$229,Nutrients!$EL$8:$EL$228)+(IF($A$7=Nutrients!$B$8,Nutrients!$EL$8,Nutrients!$EL$9)*AL$7)+(((IF($A$8=Nutrients!$B$79,Nutrients!$EL$79,(IF($A$8=Nutrients!$B$77,Nutrients!$EL$77,Nutrients!$EL$78)))))*AL$8))/2000*1000000","v":110.11950000000002},{"$f":"(SUMPRODUCT(AM$9:AM$229,Nutrients!$EL$8:$EL$228)+(IF($A$7=Nutrients!$B$8,Nutrients!$EL$8,Nutrients!$EL$9)*AM$7)+(((IF($A$8=Nutrients!$B$79,Nutrients!$EL$79,(IF($A$8=Nutrients!$B$77,Nutrients!$EL$77,Nutrients!$EL$78)))))*AM$8))/2000*1000000","v":91.766249999999999},{"$f":"(SUMPRODUCT(AN$9:AN$229,Nutrients!$EL$8:$EL$228)+(IF($A$7=Nutrients!$B$8,Nutrients!$EL$8,Nutrients!$EL$9)*AN$7)+(((IF($A$8=Nutrients!$B$79,Nutrients!$EL$79,(IF($A$8=Nutrients!$B$77,Nutrients!$EL$77,Nutrients!$EL$78)))))*AN$8))/2000*1000000","v":73.413000000000011},{"$f":"(SUMPRODUCT(AO$9:AO$229,Nutrients!$EL$8:$EL$228)+(IF($A$7=Nutrients!$B$8,Nutrients!$EL$8,Nutrients!$EL$9)*AO$7)+(((IF($A$8=Nutrients!$B$79,Nutrients!$EL$79,(IF($A$8=Nutrients!$B$77,Nutrients!$EL$77,Nutrients!$EL$78)))))*AO$8))/2000*1000000","v":55.059750000000008},{"$f":"(SUMPRODUCT(AP$9:AP$229,Nutrients!$EL$8:$EL$228)+(IF($A$7=Nutrients!$B$8,Nutrients!$EL$8,Nutrients!$EL$9)*AP$7)+(((IF($A$8=Nutrients!$B$79,Nutrients!$EL$79,(IF($A$8=Nutrients!$B$77,Nutrients!$EL$77,Nutrients!$EL$78)))))*AP$8))/2000*1000000","v":55.059750000000008},null,{"$f":"(SUMPRODUCT(AR$9:AR$229,Nutrients!$EL$8:$EL$228)+(IF($A$7=Nutrients!$B$8,Nutrients!$EL$8,Nutrients!$EL$9)*AR$7)+(((IF($A$8=Nutrients!$B$79,Nutrients!$EL$79,(IF($A$8=Nutrients!$B$77,Nutrients!$EL$77,Nutrients!$EL$78)))))*AR$8))/2000*1000000","v":110.11950000000002},{"$f":"(SUMPRODUCT(AS$9:AS$229,Nutrients!$EL$8:$EL$228)+(IF($A$7=Nutrients!$B$8,Nutrients!$EL$8,Nutrients!$EL$9)*AS$7)+(((IF($A$8=Nutrients!$B$79,Nutrients!$EL$79,(IF($A$8=Nutrients!$B$77,Nutrients!$EL$77,Nutrients!$EL$78)))))*AS$8))/2000*1000000","v":110.11950000000002},{"$f":"(SUMPRODUCT(AT$9:AT$229,Nutrients!$EL$8:$EL$228)+(IF($A$7=Nutrients!$B$8,Nutrients!$EL$8,Nutrients!$EL$9)*AT$7)+(((IF($A$8=Nutrients!$B$79,Nutrients!$EL$79,(IF($A$8=Nutrients!$B$77,Nutrients!$EL$77,Nutrients!$EL$78)))))*AT$8))/2000*1000000","v":91.766249999999999},{"$f":"(SUMPRODUCT(AU$9:AU$229,Nutrients!$EL$8:$EL$228)+(IF($A$7=Nutrients!$B$8,Nutrients!$EL$8,Nutrients!$EL$9)*AU$7)+(((IF($A$8=Nutrients!$B$79,Nutrients!$EL$79,(IF($A$8=Nutrients!$B$77,Nutrients!$EL$77,Nutrients!$EL$78)))))*AU$8))/2000*1000000","v":73.413000000000011},{"$f":"(SUMPRODUCT(AV$9:AV$229,Nutrients!$EL$8:$EL$228)+(IF($A$7=Nutrients!$B$8,Nutrients!$EL$8,Nutrients!$EL$9)*AV$7)+(((IF($A$8=Nutrients!$B$79,Nutrients!$EL$79,(IF($A$8=Nutrients!$B$77,Nutrients!$EL$77,Nutrients!$EL$78)))))*AV$8))/2000*1000000","v":55.059750000000008},{"$f":"(SUMPRODUCT(AW$9:AW$229,Nutrients!$EL$8:$EL$228)+(IF($A$7=Nutrients!$B$8,Nutrients!$EL$8,Nutrients!$EL$9)*AW$7)+(((IF($A$8=Nutrients!$B$79,Nutrients!$EL$79,(IF($A$8=Nutrients!$B$77,Nutrients!$EL$77,Nutrients!$EL$78)))))*AW$8))/2000*1000000","v":55.059750000000008}]
["  Manganese added, ppm",{"$f":"(SUMPRODUCT(B$9:B$229,Nutrients!$EM$8:$EM$228)+(IF($A$7=Nutrients!$B$8,Nutrients!$EM$8,Nutrients!$EM$9)*B$7)+(((IF($A$8=Nutrients!$B$79,Nutrients!$EM$79,(IF($A$8=Nutrients!$B$77,Nutrients!$EM$77,Nutrients!$EM$78)))))*B$8))/2000*1000000","v":33.068999999999996},{"$f":"(SUMPRODUCT(C$9:C$229,Nutrients!$EM$8:$EM$228)+(IF($A$7=Nutrients!$B$8,Nutrients!$EM$8,Nutrients!$EM$9)*C$7)+(((IF($A$8=Nutrients!$B$79,Nutrients!$EM$79,(IF($A$8=Nutrients!$B$77,Nutrients!$EM$77,Nutrients!$EM$78)))))*C$8))/2000*1000000","v":33.068999999999996},{"$f":"(SUMPRODUCT(D$9:D$229,Nutrients!$EM$8:$EM$228)+(IF($A$7=Nutrients!$B$8,Nutrients!$EM$8,Nutrients!$EM$9)*D$7)+(((IF($A$8=Nutrients!$B$79,Nutrients!$EM$79,(IF($A$8=Nutrients!$B$77,Nutrients!$EM$77,Nutrients!$EM$78)))))*D$8))/2000*1000000","v":27.557499999999997},{"$f":"(SUMPRODUCT(E$9:E$229,Nutrients!$EM$8:$EM$228)+(IF($A$7=Nutrients!$B$8,Nutrients!$EM$8,Nutrients!$EM$9)*E$7)+(((IF($A$8=Nutrients!$B$79,Nutrients!$EM$79,(IF($A$8=Nutrients!$B$77,Nutrients!$EM$77,Nutrients!$EM$78)))))*E$8))/2000*1000000","v":22.045999999999999},{"$f":"(SUMPRODUCT(F$9:F$229,Nutrients!$EM$8:$EM$228)+(IF($A$7=Nutrients!$B$8,Nutrients!$EM$8,Nutrients!$EM$9)*F$7)+(((IF($A$8=Nutrients!$B$79,Nutrients!$EM$79,(IF($A$8=Nutrients!$B$77,Nutrients!$EM$77,Nutrients!$EM$78)))))*F$8))/2000*1000000","v":16.534499999999998},{"$f":"(SUMPRODUCT(G$9:G$229,Nutrients!$EM$8:$EM$228)+(IF($A$7=Nutrients!$B$8,Nutrients!$EM$8,Nutrients!$EM$9)*G$7)+(((IF($A$8=Nutrients!$B$79,Nutrients!$EM$79,(IF($A$8=Nutrients!$B$77,Nutrients!$EM$77,Nutrients!$EM$78)))))*G$8))/2000*1000000","v":16.534499999999998},null,{"$f":"(SUMPRODUCT(I$9:I$229,Nutrients!$EM$8:$EM$228)+(IF($A$7=Nutrients!$B$8,Nutrients!$EM$8,Nutrients!$EM$9)*I$7)+(((IF($A$8=Nutrients!$B$79,Nutrients!$EM$79,(IF($A$8=Nutrients!$B$77,Nutrients!$EM$77,Nutrients!$EM$78)))))*I$8))/2000*1000000","v":33.068999999999996},{"$f":"(SUMPRODUCT(J$9:J$229,Nutrients!$EM$8:$EM$228)+(IF($A$7=Nutrients!$B$8,Nutrients!$EM$8,Nutrients!$EM$9)*J$7)+(((IF($A$8=Nutrients!$B$79,Nutrients!$EM$79,(IF($A$8=Nutrients!$B$77,Nutrients!$EM$77,Nutrients!$EM$78)))))*J$8))/2000*1000000","v":33.068999999999996},{"$f":"(SUMPRODUCT(K$9:K$229,Nutrients!$EM$8:$EM$228)+(IF($A$7=Nutrients!$B$8,Nutrients!$EM$8,Nutrients!$EM$9)*K$7)+(((IF($A$8=Nutrients!$B$79,Nutrients!$EM$79,(IF($A$8=Nutrients!$B$77,Nutrients!$EM$77,Nutrients!$EM$78)))))*K$8))/2000*1000000","v":27.557499999999997},{"$f":"(SUMPRODUCT(L$9:L$229,Nutrients!$EM$8:$EM$228)+(IF($A$7=Nutrients!$B$8,Nutrients!$EM$8,Nutrients!$EM$9)*L$7)+(((IF($A$8=Nutrients!$B$79,Nutrients!$EM$79,(IF($A$8=Nutrients!$B$77,Nutrients!$EM$77,Nutrients!$EM$78)))))*L$8))/2000*1000000","v":22.045999999999999},{"$f":"(SUMPRODUCT(M$9:M$229,Nutrients!$EM$8:$EM$228)+(IF($A$7=Nutrients!$B$8,Nutrients!$EM$8,Nutrients!$EM$9)*M$7)+(((IF($A$8=Nutrients!$B$79,Nutrients!$EM$79,(IF($A$8=Nutrients!$B$77,Nutrients!$EM$77,Nutrients!$EM$78)))))*M$8))/2000*1000000","v":16.534499999999998},{"$f":"(SUMPRODUCT(N$9:N$229,Nutrients!$EM$8:$EM$228)+(IF($A$7=Nutrients!$B$8,Nutrients!$EM$8,Nutrients!$EM$9)*N$7)+(((IF($A$8=Nutrients!$B$79,Nutrients!$EM$79,(IF($A$8=Nutrients!$B$77,Nutrients!$EM$77,Nutrients!$EM$78)))))*N$8))/2000*1000000","v":16.534499999999998},null,{"$f":"(SUMPRODUCT(P$9:P$229,Nutrients!$EM$8:$EM$228)+(IF($A$7=Nutrients!$B$8,Nutrients!$EM$8,Nutrients!$EM$9)*P$7)+(((IF($A$8=Nutrients!$B$79,Nutrients!$EM$79,(IF($A$8=Nutrients!$B$77,Nutrients!$EM$77,Nutrients!$EM$78)))))*P$8))/2000*1000000","v":33.068999999999996},{"$f":"(SUMPRODUCT(Q$9:Q$229,Nutrients!$EM$8:$EM$228)+(IF($A$7=Nutrients!$B$8,Nutrients!$EM$8,Nutrients!$EM$9)*Q$7)+(((IF($A$8=Nutrients!$B$79,Nutrients!$EM$79,(IF($A$8=Nutrients!$B$77,Nutrients!$EM$77,Nutrients!$EM$78)))))*Q$8))/2000*1000000","v":33.068999999999996},{"$f":"(SUMPRODUCT(R$9:R$229,Nutrients!$EM$8:$EM$228)+(IF($A$7=Nutrients!$B$8,Nutrients!$EM$8,Nutrients!$EM$9)*R$7)+(((IF($A$8=Nutrients!$B$79,Nutrients!$EM$79,(IF($A$8=Nutrients!$B$77,Nutrients!$EM$77,Nutrients!$EM$78)))))*R$8))/2000*1000000","v":27.557499999999997},{"$f":"(SUMPRODUCT(S$9:S$229,Nutrients!$EM$8:$EM$228)+(IF($A$7=Nutrients!$B$8,Nutrients!$EM$8,Nutrients!$EM$9)*S$7)+(((IF($A$8=Nutrients!$B$79,Nutrients!$EM$79,(IF($A$8=Nutrients!$B$77,Nutrients!$EM$77,Nutrients!$EM$78)))))*S$8))/2000*1000000","v":22.045999999999999},{"$f":"(SUMPRODUCT(T$9:T$229,Nutrients!$EM$8:$EM$228)+(IF($A$7=Nutrients!$B$8,Nutrients!$EM$8,Nutrients!$EM$9)*T$7)+(((IF($A$8=Nutrients!$B$79,Nutrients!$EM$79,(IF($A$8=Nutrients!$B$77,Nutrients!$EM$77,Nutrients!$EM$78)))))*T$8))/2000*1000000","v":16.534499999999998},{"$f":"(SUMPRODUCT(U$9:U$229,Nutrients!$EM$8:$EM$228)+(IF($A$7=Nutrients!$B$8,Nutrients!$EM$8,Nutrients!$EM$9)*U$7)+(((IF($A$8=Nutrients!$B$79,Nutrients!$EM$79,(IF($A$8=Nutrients!$B$77,Nutrients!$EM$77,Nutrients!$EM$78)))))*U$8))/2000*1000000","v":16.534499999999998},null,{"$f":"(SUMPRODUCT(W$9:W$229,Nutrients!$EM$8:$EM$228)+(IF($A$7=Nutrients!$B$8,Nutrients!$EM$8,Nutrients!$EM$9)*W$7)+(((IF($A$8=Nutrients!$B$79,Nutrients!$EM$79,(IF($A$8=Nutrients!$B$77,Nutrients!$EM$77,Nutrients!$EM$78)))))*W$8))/2000*1000000","v":33.068999999999996},{"$f":"(SUMPRODUCT(X$9:X$229,Nutrients!$EM$8:$EM$228)+(IF($A$7=Nutrients!$B$8,Nutrients!$EM$8,Nutrients!$EM$9)*X$7)+(((IF($A$8=Nutrients!$B$79,Nutrients!$EM$79,(IF($A$8=Nutrients!$B$77,Nutrients!$EM$77,Nutrients!$EM$78)))))*X$8))/2000*1000000","v":33.068999999999996},{"$f":"(SUMPRODUCT(Y$9:Y$229,Nutrients!$EM$8:$EM$228)+(IF($A$7=Nutrients!$B$8,Nutrients!$EM$8,Nutrients!$EM$9)*Y$7)+(((IF($A$8=Nutrients!$B$79,Nutrients!$EM$79,(IF($A$8=Nutrients!$B$77,Nutrients!$EM$77,Nutrients!$EM$78)))))*Y$8))/2000*1000000","v":27.557499999999997},{"$f":"(SUMPRODUCT(Z$9:Z$229,Nutrients!$EM$8:$EM$228)+(IF($A$7=Nutrients!$B$8,Nutrients!$EM$8,Nutrients!$EM$9)*Z$7)+(((IF($A$8=Nutrients!$B$79,Nutrients!$EM$79,(IF($A$8=Nutrients!$B$77,Nutrients!$EM$77,Nutrients!$EM$78)))))*Z$8))/2000*1000000","v":22.045999999999999},{"$f":"(SUMPRODUCT(AA$9:AA$229,Nutrients!$EM$8:$EM$228)+(IF($A$7=Nutrients!$B$8,Nutrients!$EM$8,Nutrients!$EM$9)*AA$7)+(((IF($A$8=Nutrients!$B$79,Nutrients!$EM$79,(IF($A$8=Nutrients!$B$77,Nutrients!$EM$77,Nutrients!$EM$78)))))*AA$8))/2000*1000000","v":16.534499999999998},{"$f":"(SUMPRODUCT(AB$9:AB$229,Nutrients!$EM$8:$EM$228)+(IF($A$7=Nutrients!$B$8,Nutrients!$EM$8,Nutrients!$EM$9)*AB$7)+(((IF($A$8=Nutrients!$B$79,Nutrients!$EM$79,(IF($A$8=Nutrients!$B$77,Nutrients!$EM$77,Nutrients!$EM$78)))))*AB$8))/2000*1000000","v":16.534499999999998},null,{"$f":"(SUMPRODUCT(AD$9:AD$229,Nutrients!$EM$8:$EM$228)+(IF($A$7=Nutrients!$B$8,Nutrients!$EM$8,Nutrients!$EM$9)*AD$7)+(((IF($A$8=Nutrients!$B$79,Nutrients!$EM$79,(IF($A$8=Nutrients!$B$77,Nutrients!$EM$77,Nutrients!$EM$78)))))*AD$8))/2000*1000000","v":33.068999999999996},{"$f":"(SUMPRODUCT(AE$9:AE$229,Nutrients!$EM$8:$EM$228)+(IF($A$7=Nutrients!$B$8,Nutrients!$EM$8,Nutrients!$EM$9)*AE$7)+(((IF($A$8=Nutrients!$B$79,Nutrients!$EM$79,(IF($A$8=Nutrients!$B$77,Nutrients!$EM$77,Nutrients!$EM$78)))))*AE$8))/2000*1000000","v":33.068999999999996},{"$f":"(SUMPRODUCT(AF$9:AF$229,Nutrients!$EM$8:$EM$228)+(IF($A$7=Nutrients!$B$8,Nutrients!$EM$8,Nutrients!$EM$9)*AF$7)+(((IF($A$8=Nutrients!$B$79,Nutrients!$EM$79,(IF($A$8=Nutrients!$B$77,Nutrients!$EM$77,Nutrients!$EM$78)))))*AF$8))/2000*1000000","v":27.557499999999997},{"$f":"(SUMPRODUCT(AG$9:AG$229,Nutrients!$EM$8:$EM$228)+(IF($A$7=Nutrients!$B$8,Nutrients!$EM$8,Nutrients!$EM$9)*AG$7)+(((IF($A$8=Nutrients!$B$79,Nutrients!$EM$79,(IF($A$8=Nutrients!$B$77,Nutrients!$EM$77,Nutrients!$EM$78)))))*AG$8))/2000*1000000","v":22.045999999999999},{"$f":"(SUMPRODUCT(AH$9:AH$229,Nutrients!$EM$8:$EM$228)+(IF($A$7=Nutrients!$B$8,Nutrients!$EM$8,Nutrients!$EM$9)*AH$7)+(((IF($A$8=Nutrients!$B$79,Nutrients!$EM$79,(IF($A$8=Nutrients!$B$77,Nutrients!$EM$77,Nutrients!$EM$78)))))*AH$8))/2000*1000000","v":16.534499999999998},{"$f":"(SUMPRODUCT(AI$9:AI$229,Nutrients!$EM$8:$EM$228)+(IF($A$7=Nutrients!$B$8,Nutrients!$EM$8,Nutrients!$EM$9)*AI$7)+(((IF($A$8=Nutrients!$B$79,Nutrients!$EM$79,(IF($A$8=Nutrients!$B$77,Nutrients!$EM$77,Nutrients!$EM$78)))))*AI$8))/2000*1000000","v":16.534499999999998},null,{"$f":"(SUMPRODUCT(AK$9:AK$229,Nutrients!$EM$8:$EM$228)+(IF($A$7=Nutrients!$B$8,Nutrients!$EM$8,Nutrients!$EM$9)*AK$7)+(((IF($A$8=Nutrients!$B$79,Nutrients!$EM$79,(IF($A$8=Nutrients!$B$77,Nutrients!$EM$77,Nutrients!$EM$78)))))*AK$8))/2000*1000000","v":33.068999999999996},{"$f":"(SUMPRODUCT(AL$9:AL$229,Nutrients!$EM$8:$EM$228)+(IF($A$7=Nutrients!$B$8,Nutrients!$EM$8,Nutrients!$EM$9)*AL$7)+(((IF($A$8=Nutrients!$B$79,Nutrients!$EM$79,(IF($A$8=Nutrients!$B$77,Nutrients!$EM$77,Nutrients!$EM$78)))))*AL$8))/2000*1000000","v":33.068999999999996},{"$f":"(SUMPRODUCT(AM$9:AM$229,Nutrients!$EM$8:$EM$228)+(IF($A$7=Nutrients!$B$8,Nutrients!$EM$8,Nutrients!$EM$9)*AM$7)+(((IF($A$8=Nutrients!$B$79,Nutrients!$EM$79,(IF($A$8=Nutrients!$B$77,Nutrients!$EM$77,Nutrients!$EM$78)))))*AM$8))/2000*1000000","v":27.557499999999997},{"$f":"(SUMPRODUCT(AN$9:AN$229,Nutrients!$EM$8:$EM$228)+(IF($A$7=Nutrients!$B$8,Nutrients!$EM$8,Nutrients!$EM$9)*AN$7)+(((IF($A$8=Nutrients!$B$79,Nutrients!$EM$79,(IF($A$8=Nutrients!$B$77,Nutrients!$EM$77,Nutrients!$EM$78)))))*AN$8))/2000*1000000","v":22.045999999999999},{"$f":"(SUMPRODUCT(AO$9:AO$229,Nutrients!$EM$8:$EM$228)+(IF($A$7=Nutrients!$B$8,Nutrients!$EM$8,Nutrients!$EM$9)*AO$7)+(((IF($A$8=Nutrients!$B$79,Nutrients!$EM$79,(IF($A$8=Nutrients!$B$77,Nutrients!$EM$77,Nutrients!$EM$78)))))*AO$8))/2000*1000000","v":16.534499999999998},{"$f":"(SUMPRODUCT(AP$9:AP$229,Nutrients!$EM$8:$EM$228)+(IF($A$7=Nutrients!$B$8,Nutrients!$EM$8,Nutrients!$EM$9)*AP$7)+(((IF($A$8=Nutrients!$B$79,Nutrients!$EM$79,(IF($A$8=Nutrients!$B$77,Nutrients!$EM$77,Nutrients!$EM$78)))))*AP$8))/2000*1000000","v":16.534499999999998},null,{"$f":"(SUMPRODUCT(AR$9:AR$229,Nutrients!$EM$8:$EM$228)+(IF($A$7=Nutrients!$B$8,Nutrients!$EM$8,Nutrients!$EM$9)*AR$7)+(((IF($A$8=Nutrients!$B$79,Nutrients!$EM$79,(IF($A$8=Nutrients!$B$77,Nutrients!$EM$77,Nutrients!$EM$78)))))*AR$8))/2000*1000000","v":33.068999999999996},{"$f":"(SUMPRODUCT(AS$9:AS$229,Nutrients!$EM$8:$EM$228)+(IF($A$7=Nutrients!$B$8,Nutrients!$EM$8,Nutrients!$EM$9)*AS$7)+(((IF($A$8=Nutrients!$B$79,Nutrients!$EM$79,(IF($A$8=Nutrients!$B$77,Nutrients!$EM$77,Nutrients!$EM$78)))))*AS$8))/2000*1000000","v":33.068999999999996},{"$f":"(SUMPRODUCT(AT$9:AT$229,Nutrients!$EM$8:$EM$228)+(IF($A$7=Nutrients!$B$8,Nutrients!$EM$8,Nutrients!$EM$9)*AT$7)+(((IF($A$8=Nutrients!$B$79,Nutrients!$EM$79,(IF($A$8=Nutrients!$B$77,Nutrients!$EM$77,Nutrients!$EM$78)))))*AT$8))/2000*1000000","v":27.557499999999997},{"$f":"(SUMPRODUCT(AU$9:AU$229,Nutrients!$EM$8:$EM$228)+(IF($A$7=Nutrients!$B$8,Nutrients!$EM$8,Nutrients!$EM$9)*AU$7)+(((IF($A$8=Nutrients!$B$79,Nutrients!$EM$79,(IF($A$8=Nutrients!$B$77,Nutrients!$EM$77,Nutrients!$EM$78)))))*AU$8))/2000*1000000","v":22.045999999999999},{"$f":"(SUMPRODUCT(AV$9:AV$229,Nutrients!$EM$8:$EM$228)+(IF($A$7=Nutrients!$B$8,Nutrients!$EM$8,Nutrients!$EM$9)*AV$7)+(((IF($A$8=Nutrients!$B$79,Nutrients!$EM$79,(IF($A$8=Nutrients!$B$77,Nutrients!$EM$77,Nutrients!$EM$78)))))*AV$8))/2000*1000000","v":16.534499999999998},{"$f":"(SUMPRODUCT(AW$9:AW$229,Nutrients!$EM$8:$EM$228)+(IF($A$7=Nutrients!$B$8,Nutrients!$EM$8,Nutrients!$EM$9)*AW$7)+(((IF($A$8=Nutrients!$B$79,Nutrients!$EM$79,(IF($A$8=Nutrients!$B$77,Nutrients!$EM$77,Nutrients!$EM$78)))))*AW$8))/2000*1000000","v":16.534499999999998}]
["  Copper added, ppm",{"$f":"(SUMPRODUCT(B$9:B$229,Nutrients!$EN$8:$EN$228)+(IF($A$7=Nutrients!$B$8,Nutrients!$EN$8,Nutrients!$EN$9)*B$7)+(((IF($A$8=Nutrients!$B$79,Nutrients!$EN$79,(IF($A$8=Nutrients!$B$77,Nutrients!$EN$77,Nutrients!$EN$78)))))*B$8))/2000*1000000","v":16.5},{"$f":"(SUMPRODUCT(C$9:C$229,Nutrients!$EN$8:$EN$228)+(IF($A$7=Nutrients!$B$8,Nutrients!$EN$8,Nutrients!$EN$9)*C$7)+(((IF($A$8=Nutrients!$B$79,Nutrients!$EN$79,(IF($A$8=Nutrients!$B$77,Nutrients!$EN$77,Nutrients!$EN$78)))))*C$8))/2000*1000000","v":16.5},{"$f":"(SUMPRODUCT(D$9:D$229,Nutrients!$EN$8:$EN$228)+(IF($A$7=Nutrients!$B$8,Nutrients!$EN$8,Nutrients!$EN$9)*D$7)+(((IF($A$8=Nutrients!$B$79,Nutrients!$EN$79,(IF($A$8=Nutrients!$B$77,Nutrients!$EN$77,Nutrients!$EN$78)))))*D$8))/2000*1000000","v":13.749999999999998},{"$f":"(SUMPRODUCT(E$9:E$229,Nutrients!$EN$8:$EN$228)+(IF($A$7=Nutrients!$B$8,Nutrients!$EN$8,Nutrients!$EN$9)*E$7)+(((IF($A$8=Nutrients!$B$79,Nutrients!$EN$79,(IF($A$8=Nutrients!$B$77,Nutrients!$EN$77,Nutrients!$EN$78)))))*E$8))/2000*1000000","v":11},{"$f":"(SUMPRODUCT(F$9:F$229,Nutrients!$EN$8:$EN$228)+(IF($A$7=Nutrients!$B$8,Nutrients!$EN$8,Nutrients!$EN$9)*F$7)+(((IF($A$8=Nutrients!$B$79,Nutrients!$EN$79,(IF($A$8=Nutrients!$B$77,Nutrients!$EN$77,Nutrients!$EN$78)))))*F$8))/2000*1000000","v":8.25},{"$f":"(SUMPRODUCT(G$9:G$229,Nutrients!$EN$8:$EN$228)+(IF($A$7=Nutrients!$B$8,Nutrients!$EN$8,Nutrients!$EN$9)*G$7)+(((IF($A$8=Nutrients!$B$79,Nutrients!$EN$79,(IF($A$8=Nutrients!$B$77,Nutrients!$EN$77,Nutrients!$EN$78)))))*G$8))/2000*1000000","v":8.25},null,{"$f":"(SUMPRODUCT(I$9:I$229,Nutrients!$EN$8:$EN$228)+(IF($A$7=Nutrients!$B$8,Nutrients!$EN$8,Nutrients!$EN$9)*I$7)+(((IF($A$8=Nutrients!$B$79,Nutrients!$EN$79,(IF($A$8=Nutrients!$B$77,Nutrients!$EN$77,Nutrients!$EN$78)))))*I$8))/2000*1000000","v":16.5},{"$f":"(SUMPRODUCT(J$9:J$229,Nutrients!$EN$8:$EN$228)+(IF($A$7=Nutrients!$B$8,Nutrients!$EN$8,Nutrients!$EN$9)*J$7)+(((IF($A$8=Nutrients!$B$79,Nutrients!$EN$79,(IF($A$8=Nutrients!$B$77,Nutrients!$EN$77,Nutrients!$EN$78)))))*J$8))/2000*1000000","v":16.5},{"$f":"(SUMPRODUCT(K$9:K$229,Nutrients!$EN$8:$EN$228)+(IF($A$7=Nutrients!$B$8,Nutrients!$EN$8,Nutrients!$EN$9)*K$7)+(((IF($A$8=Nutrients!$B$79,Nutrients!$EN$79,(IF($A$8=Nutrients!$B$77,Nutrients!$EN$77,Nutrients!$EN$78)))))*K$8))/2000*1000000","v":13.749999999999998},{"$f":"(SUMPRODUCT(L$9:L$229,Nutrients!$EN$8:$EN$228)+(IF($A$7=Nutrients!$B$8,Nutrients!$EN$8,Nutrients!$EN$9)*L$7)+(((IF($A$8=Nutrients!$B$79,Nutrients!$EN$79,(IF($A$8=Nutrients!$B$77,Nutrients!$EN$77,Nutrients!$EN$78)))))*L$8))/2000*1000000","v":11},{"$f":"(SUMPRODUCT(M$9:M$229,Nutrients!$EN$8:$EN$228)+(IF($A$7=Nutrients!$B$8,Nutrients!$EN$8,Nutrients!$EN$9)*M$7)+(((IF($A$8=Nutrients!$B$79,Nutrients!$EN$79,(IF($A$8=Nutrients!$B$77,Nutrients!$EN$77,Nutrients!$EN$78)))))*M$8))/2000*1000000","v":8.25},{"$f":"(SUMPRODUCT(N$9:N$229,Nutrients!$EN$8:$EN$228)+(IF($A$7=Nutrients!$B$8,Nutrients!$EN$8,Nutrients!$EN$9)*N$7)+(((IF($A$8=Nutrients!$B$79,Nutrients!$EN$79,(IF($A$8=Nutrients!$B$77,Nutrients!$EN$77,Nutrients!$EN$78)))))*N$8))/2000*1000000","v":8.25},null,{"$f":"(SUMPRODUCT(P$9:P$229,Nutrients!$EN$8:$EN$228)+(IF($A$7=Nutrients!$B$8,Nutrients!$EN$8,Nutrients!$EN$9)*P$7)+(((IF($A$8=Nutrients!$B$79,Nutrients!$EN$79,(IF($A$8=Nutrients!$B$77,Nutrients!$EN$77,Nutrients!$EN$78)))))*P$8))/2000*1000000","v":16.5},{"$f":"(SUMPRODUCT(Q$9:Q$229,Nutrients!$EN$8:$EN$228)+(IF($A$7=Nutrients!$B$8,Nutrients!$EN$8,Nutrients!$EN$9)*Q$7)+(((IF($A$8=Nutrients!$B$79,Nutrients!$EN$79,(IF($A$8=Nutrients!$B$77,Nutrients!$EN$77,Nutrients!$EN$78)))))*Q$8))/2000*1000000","v":16.5},{"$f":"(SUMPRODUCT(R$9:R$229,Nutrients!$EN$8:$EN$228)+(IF($A$7=Nutrients!$B$8,Nutrients!$EN$8,Nutrients!$EN$9)*R$7)+(((IF($A$8=Nutrients!$B$79,Nutrients!$EN$79,(IF($A$8=Nutrients!$B$77,Nutrients!$EN$77,Nutrients!$EN$78)))))*R$8))/2000*1000000","v":13.749999999999998},{"$f":"(SUMPRODUCT(S$9:S$229,Nutrients!$EN$8:$EN$228)+(IF($A$7=Nutrients!$B$8,Nutrients!$EN$8,Nutrients!$EN$9)*S$7)+(((IF($A$8=Nutrients!$B$79,Nutrients!$EN$79,(IF($A$8=Nutrients!$B$77,Nutrients!$EN$77,Nutrients!$EN$78)))))*S$8))/2000*1000000","v":11},{"$f":"(SUMPRODUCT(T$9:T$229,Nutrients!$EN$8:$EN$228)+(IF($A$7=Nutrients!$B$8,Nutrients!$EN$8,Nutrients!$EN$9)*T$7)+(((IF($A$8=Nutrients!$B$79,Nutrients!$EN$79,(IF($A$8=Nutrients!$B$77,Nutrients!$EN$77,Nutrients!$EN$78)))))*T$8))/2000*1000000","v":8.25},{"$f":"(SUMPRODUCT(U$9:U$229,Nutrients!$EN$8:$EN$228)+(IF($A$7=Nutrients!$B$8,Nutrients!$EN$8,Nutrients!$EN$9)*U$7)+(((IF($A$8=Nutrients!$B$79,Nutrients!$EN$79,(IF($A$8=Nutrients!$B$77,Nutrients!$EN$77,Nutrients!$EN$78)))))*U$8))/2000*1000000","v":8.25},null,{"$f":"(SUMPRODUCT(W$9:W$229,Nutrients!$EN$8:$EN$228)+(IF($A$7=Nutrients!$B$8,Nutrients!$EN$8,Nutrients!$EN$9)*W$7)+(((IF($A$8=Nutrients!$B$79,Nutrients!$EN$79,(IF($A$8=Nutrients!$B$77,Nutrients!$EN$77,Nutrients!$EN$78)))))*W$8))/2000*1000000","v":16.5},{"$f":"(SUMPRODUCT(X$9:X$229,Nutrients!$EN$8:$EN$228)+(IF($A$7=Nutrients!$B$8,Nutrients!$EN$8,Nutrients!$EN$9)*X$7)+(((IF($A$8=Nutrients!$B$79,Nutrients!$EN$79,(IF($A$8=Nutrients!$B$77,Nutrients!$EN$77,Nutrients!$EN$78)))))*X$8))/2000*1000000","v":16.5},{"$f":"(SUMPRODUCT(Y$9:Y$229,Nutrients!$EN$8:$EN$228)+(IF($A$7=Nutrients!$B$8,Nutrients!$EN$8,Nutrients!$EN$9)*Y$7)+(((IF($A$8=Nutrients!$B$79,Nutrients!$EN$79,(IF($A$8=Nutrients!$B$77,Nutrients!$EN$77,Nutrients!$EN$78)))))*Y$8))/2000*1000000","v":13.749999999999998},{"$f":"(SUMPRODUCT(Z$9:Z$229,Nutrients!$EN$8:$EN$228)+(IF($A$7=Nutrients!$B$8,Nutrients!$EN$8,Nutrients!$EN$9)*Z$7)+(((IF($A$8=Nutrients!$B$79,Nutrients!$EN$79,(IF($A$8=Nutrients!$B$77,Nutrients!$EN$77,Nutrients!$EN$78)))))*Z$8))/2000*1000000","v":11},{"$f":"(SUMPRODUCT(AA$9:AA$229,Nutrients!$EN$8:$EN$228)+(IF($A$7=Nutrients!$B$8,Nutrients!$EN$8,Nutrients!$EN$9)*AA$7)+(((IF($A$8=Nutrients!$B$79,Nutrients!$EN$79,(IF($A$8=Nutrients!$B$77,Nutrients!$EN$77,Nutrients!$EN$78)))))*AA$8))/2000*1000000","v":8.25},{"$f":"(SUMPRODUCT(AB$9:AB$229,Nutrients!$EN$8:$EN$228)+(IF($A$7=Nutrients!$B$8,Nutrients!$EN$8,Nutrients!$EN$9)*AB$7)+(((IF($A$8=Nutrients!$B$79,Nutrients!$EN$79,(IF($A$8=Nutrients!$B$77,Nutrients!$EN$77,Nutrients!$EN$78)))))*AB$8))/2000*1000000","v":8.25},null,{"$f":"(SUMPRODUCT(AD$9:AD$229,Nutrients!$EN$8:$EN$228)+(IF($A$7=Nutrients!$B$8,Nutrients!$EN$8,Nutrients!$EN$9)*AD$7)+(((IF($A$8=Nutrients!$B$79,Nutrients!$EN$79,(IF($A$8=Nutrients!$B$77,Nutrients!$EN$77,Nutrients!$EN$78)))))*AD$8))/2000*1000000","v":16.5},{"$f":"(SUMPRODUCT(AE$9:AE$229,Nutrients!$EN$8:$EN$228)+(IF($A$7=Nutrients!$B$8,Nutrients!$EN$8,Nutrients!$EN$9)*AE$7)+(((IF($A$8=Nutrients!$B$79,Nutrients!$EN$79,(IF($A$8=Nutrients!$B$77,Nutrients!$EN$77,Nutrients!$EN$78)))))*AE$8))/2000*1000000","v":16.5},{"$f":"(SUMPRODUCT(AF$9:AF$229,Nutrients!$EN$8:$EN$228)+(IF($A$7=Nutrients!$B$8,Nutrients!$EN$8,Nutrients!$EN$9)*AF$7)+(((IF($A$8=Nutrients!$B$79,Nutrients!$EN$79,(IF($A$8=Nutrients!$B$77,Nutrients!$EN$77,Nutrients!$EN$78)))))*AF$8))/2000*1000000","v":13.749999999999998},{"$f":"(SUMPRODUCT(AG$9:AG$229,Nutrients!$EN$8:$EN$228)+(IF($A$7=Nutrients!$B$8,Nutrients!$EN$8,Nutrients!$EN$9)*AG$7)+(((IF($A$8=Nutrients!$B$79,Nutrients!$EN$79,(IF($A$8=Nutrients!$B$77,Nutrients!$EN$77,Nutrients!$EN$78)))))*AG$8))/2000*1000000","v":11},{"$f":"(SUMPRODUCT(AH$9:AH$229,Nutrients!$EN$8:$EN$228)+(IF($A$7=Nutrients!$B$8,Nutrients!$EN$8,Nutrients!$EN$9)*AH$7)+(((IF($A$8=Nutrients!$B$79,Nutrients!$EN$79,(IF($A$8=Nutrients!$B$77,Nutrients!$EN$77,Nutrients!$EN$78)))))*AH$8))/2000*1000000","v":8.25},{"$f":"(SUMPRODUCT(AI$9:AI$229,Nutrients!$EN$8:$EN$228)+(IF($A$7=Nutrients!$B$8,Nutrients!$EN$8,Nutrients!$EN$9)*AI$7)+(((IF($A$8=Nutrients!$B$79,Nutrients!$EN$79,(IF($A$8=Nutrients!$B$77,Nutrients!$EN$77,Nutrients!$EN$78)))))*AI$8))/2000*1000000","v":8.25},null,{"$f":"(SUMPRODUCT(AK$9:AK$229,Nutrients!$EN$8:$EN$228)+(IF($A$7=Nutrients!$B$8,Nutrients!$EN$8,Nutrients!$EN$9)*AK$7)+(((IF($A$8=Nutrients!$B$79,Nutrients!$EN$79,(IF($A$8=Nutrients!$B$77,Nutrients!$EN$77,Nutrients!$EN$78)))))*AK$8))/2000*1000000","v":16.5},{"$f":"(SUMPRODUCT(AL$9:AL$229,Nutrients!$EN$8:$EN$228)+(IF($A$7=Nutrients!$B$8,Nutrients!$EN$8,Nutrients!$EN$9)*AL$7)+(((IF($A$8=Nutrients!$B$79,Nutrients!$EN$79,(IF($A$8=Nutrients!$B$77,Nutrients!$EN$77,Nutrients!$EN$78)))))*AL$8))/2000*1000000","v":16.5},{"$f":"(SUMPRODUCT(AM$9:AM$229,Nutrients!$EN$8:$EN$228)+(IF($A$7=Nutrients!$B$8,Nutrients!$EN$8,Nutrients!$EN$9)*AM$7)+(((IF($A$8=Nutrients!$B$79,Nutrients!$EN$79,(IF($A$8=Nutrients!$B$77,Nutrients!$EN$77,Nutrients!$EN$78)))))*AM$8))/2000*1000000","v":13.749999999999998},{"$f":"(SUMPRODUCT(AN$9:AN$229,Nutrients!$EN$8:$EN$228)+(IF($A$7=Nutrients!$B$8,Nutrients!$EN$8,Nutrients!$EN$9)*AN$7)+(((IF($A$8=Nutrients!$B$79,Nutrients!$EN$79,(IF($A$8=Nutrients!$B$77,Nutrients!$EN$77,Nutrients!$EN$78)))))*AN$8))/2000*1000000","v":11},{"$f":"(SUMPRODUCT(AO$9:AO$229,Nutrients!$EN$8:$EN$228)+(IF($A$7=Nutrients!$B$8,Nutrients!$EN$8,Nutrients!$EN$9)*AO$7)+(((IF($A$8=Nutrients!$B$79,Nutrients!$EN$79,(IF($A$8=Nutrients!$B$77,Nutrients!$EN$77,Nutrients!$EN$78)))))*AO$8))/2000*1000000","v":8.25},{"$f":"(SUMPRODUCT(AP$9:AP$229,Nutrients!$EN$8:$EN$228)+(IF($A$7=Nutrients!$B$8,Nutrients!$EN$8,Nutrients!$EN$9)*AP$7)+(((IF($A$8=Nutrients!$B$79,Nutrients!$EN$79,(IF($A$8=Nutrients!$B$77,Nutrients!$EN$77,Nutrients!$EN$78)))))*AP$8))/2000*1000000","v":8.25},null,{"$f":"(SUMPRODUCT(AR$9:AR$229,Nutrients!$EN$8:$EN$228)+(IF($A$7=Nutrients!$B$8,Nutrients!$EN$8,Nutrients!$EN$9)*AR$7)+(((IF($A$8=Nutrients!$B$79,Nutrients!$EN$79,(IF($A$8=Nutrients!$B$77,Nutrients!$EN$77,Nutrients!$EN$78)))))*AR$8))/2000*1000000","v":16.5},{"$f":"(SUMPRODUCT(AS$9:AS$229,Nutrients!$EN$8:$EN$228)+(IF($A$7=Nutrients!$B$8,Nutrients!$EN$8,Nutrients!$EN$9)*AS$7)+(((IF($A$8=Nutrients!$B$79,Nutrients!$EN$79,(IF($A$8=Nutrients!$B$77,Nutrients!$EN$77,Nutrients!$EN$78)))))*AS$8))/2000*1000000","v":16.5},{"$f":"(SUMPRODUCT(AT$9:AT$229,Nutrients!$EN$8:$EN$228)+(IF($A$7=Nutrients!$B$8,Nutrients!$EN$8,Nutrients!$EN$9)*AT$7)+(((IF($A$8=Nutrients!$B$79,Nutrients!$EN$79,(IF($A$8=Nutrients!$B$77,Nutrients!$EN$77,Nutrients!$EN$78)))))*AT$8))/2000*1000000","v":13.749999999999998},{"$f":"(SUMPRODUCT(AU$9:AU$229,Nutrients!$EN$8:$EN$228)+(IF($A$7=Nutrients!$B$8,Nutrients!$EN$8,Nutrients!$EN$9)*AU$7)+(((IF($A$8=Nutrients!$B$79,Nutrients!$EN$79,(IF($A$8=Nutrients!$B$77,Nutrients!$EN$77,Nutrients!$EN$78)))))*AU$8))/2000*1000000","v":11},{"$f":"(SUMPRODUCT(AV$9:AV$229,Nutrients!$EN$8:$EN$228)+(IF($A$7=Nutrients!$B$8,Nutrients!$EN$8,Nutrients!$EN$9)*AV$7)+(((IF($A$8=Nutrients!$B$79,Nutrients!$EN$79,(IF($A$8=Nutrients!$B$77,Nutrients!$EN$77,Nutrients!$EN$78)))))*AV$8))/2000*1000000","v":8.25},{"$f":"(SUMPRODUCT(AW$9:AW$229,Nutrients!$EN$8:$EN$228)+(IF($A$7=Nutrients!$B$8,Nutrients!$EN$8,Nutrients!$EN$9)*AW$7)+(((IF($A$8=Nutrients!$B$79,Nutrients!$EN$79,(IF($A$8=Nutrients!$B$77,Nutrients!$EN$77,Nutrients!$EN$78)))))*AW$8))/2000*1000000","v":8.25}]
["  Iodine added, ppm",{"$f":"(SUMPRODUCT(B$9:B$229,Nutrients!$EO$8:$EO$228)+(IF($A$7=Nutrients!$B$8,Nutrients!$EO$8,Nutrients!$EO$9)*B$7)+(((IF($A$8=Nutrients!$B$79,Nutrients!$EO$79,(IF($A$8=Nutrients!$B$77,Nutrients!$EO$77,Nutrients!$EO$78)))))*B$8))/2000*1000000","v":0.29699999999999999},{"$f":"(SUMPRODUCT(C$9:C$229,Nutrients!$EO$8:$EO$228)+(IF($A$7=Nutrients!$B$8,Nutrients!$EO$8,Nutrients!$EO$9)*C$7)+(((IF($A$8=Nutrients!$B$79,Nutrients!$EO$79,(IF($A$8=Nutrients!$B$77,Nutrients!$EO$77,Nutrients!$EO$78)))))*C$8))/2000*1000000","v":0.29699999999999999},{"$f":"(SUMPRODUCT(D$9:D$229,Nutrients!$EO$8:$EO$228)+(IF($A$7=Nutrients!$B$8,Nutrients!$EO$8,Nutrients!$EO$9)*D$7)+(((IF($A$8=Nutrients!$B$79,Nutrients!$EO$79,(IF($A$8=Nutrients!$B$77,Nutrients!$EO$77,Nutrients!$EO$78)))))*D$8))/2000*1000000","v":0.24750000000000003},{"$f":"(SUMPRODUCT(E$9:E$229,Nutrients!$EO$8:$EO$228)+(IF($A$7=Nutrients!$B$8,Nutrients!$EO$8,Nutrients!$EO$9)*E$7)+(((IF($A$8=Nutrients!$B$79,Nutrients!$EO$79,(IF($A$8=Nutrients!$B$77,Nutrients!$EO$77,Nutrients!$EO$78)))))*E$8))/2000*1000000","v":0.19800000000000001},{"$f":"(SUMPRODUCT(F$9:F$229,Nutrients!$EO$8:$EO$228)+(IF($A$7=Nutrients!$B$8,Nutrients!$EO$8,Nutrients!$EO$9)*F$7)+(((IF($A$8=Nutrients!$B$79,Nutrients!$EO$79,(IF($A$8=Nutrients!$B$77,Nutrients!$EO$77,Nutrients!$EO$78)))))*F$8))/2000*1000000","v":0.14849999999999999},{"$f":"(SUMPRODUCT(G$9:G$229,Nutrients!$EO$8:$EO$228)+(IF($A$7=Nutrients!$B$8,Nutrients!$EO$8,Nutrients!$EO$9)*G$7)+(((IF($A$8=Nutrients!$B$79,Nutrients!$EO$79,(IF($A$8=Nutrients!$B$77,Nutrients!$EO$77,Nutrients!$EO$78)))))*G$8))/2000*1000000","v":0.14849999999999999},null,{"$f":"(SUMPRODUCT(I$9:I$229,Nutrients!$EO$8:$EO$228)+(IF($A$7=Nutrients!$B$8,Nutrients!$EO$8,Nutrients!$EO$9)*I$7)+(((IF($A$8=Nutrients!$B$79,Nutrients!$EO$79,(IF($A$8=Nutrients!$B$77,Nutrients!$EO$77,Nutrients!$EO$78)))))*I$8))/2000*1000000","v":0.29699999999999999},{"$f":"(SUMPRODUCT(J$9:J$229,Nutrients!$EO$8:$EO$228)+(IF($A$7=Nutrients!$B$8,Nutrients!$EO$8,Nutrients!$EO$9)*J$7)+(((IF($A$8=Nutrients!$B$79,Nutrients!$EO$79,(IF($A$8=Nutrients!$B$77,Nutrients!$EO$77,Nutrients!$EO$78)))))*J$8))/2000*1000000","v":0.29699999999999999},{"$f":"(SUMPRODUCT(K$9:K$229,Nutrients!$EO$8:$EO$228)+(IF($A$7=Nutrients!$B$8,Nutrients!$EO$8,Nutrients!$EO$9)*K$7)+(((IF($A$8=Nutrients!$B$79,Nutrients!$EO$79,(IF($A$8=Nutrients!$B$77,Nutrients!$EO$77,Nutrients!$EO$78)))))*K$8))/2000*1000000","v":0.24750000000000003},{"$f":"(SUMPRODUCT(L$9:L$229,Nutrients!$EO$8:$EO$228)+(IF($A$7=Nutrients!$B$8,Nutrients!$EO$8,Nutrients!$EO$9)*L$7)+(((IF($A$8=Nutrients!$B$79,Nutrients!$EO$79,(IF($A$8=Nutrients!$B$77,Nutrients!$EO$77,Nutrients!$EO$78)))))*L$8))/2000*1000000","v":0.19800000000000001},{"$f":"(SUMPRODUCT(M$9:M$229,Nutrients!$EO$8:$EO$228)+(IF($A$7=Nutrients!$B$8,Nutrients!$EO$8,Nutrients!$EO$9)*M$7)+(((IF($A$8=Nutrients!$B$79,Nutrients!$EO$79,(IF($A$8=Nutrients!$B$77,Nutrients!$EO$77,Nutrients!$EO$78)))))*M$8))/2000*1000000","v":0.14849999999999999},{"$f":"(SUMPRODUCT(N$9:N$229,Nutrients!$EO$8:$EO$228)+(IF($A$7=Nutrients!$B$8,Nutrients!$EO$8,Nutrients!$EO$9)*N$7)+(((IF($A$8=Nutrients!$B$79,Nutrients!$EO$79,(IF($A$8=Nutrients!$B$77,Nutrients!$EO$77,Nutrients!$EO$78)))))*N$8))/2000*1000000","v":0.14849999999999999},null,{"$f":"(SUMPRODUCT(P$9:P$229,Nutrients!$EO$8:$EO$228)+(IF($A$7=Nutrients!$B$8,Nutrients!$EO$8,Nutrients!$EO$9)*P$7)+(((IF($A$8=Nutrients!$B$79,Nutrients!$EO$79,(IF($A$8=Nutrients!$B$77,Nutrients!$EO$77,Nutrients!$EO$78)))))*P$8))/2000*1000000","v":0.29699999999999999},{"$f":"(SUMPRODUCT(Q$9:Q$229,Nutrients!$EO$8:$EO$228)+(IF($A$7=Nutrients!$B$8,Nutrients!$EO$8,Nutrients!$EO$9)*Q$7)+(((IF($A$8=Nutrients!$B$79,Nutrients!$EO$79,(IF($A$8=Nutrients!$B$77,Nutrients!$EO$77,Nutrients!$EO$78)))))*Q$8))/2000*1000000","v":0.29699999999999999},{"$f":"(SUMPRODUCT(R$9:R$229,Nutrients!$EO$8:$EO$228)+(IF($A$7=Nutrients!$B$8,Nutrients!$EO$8,Nutrients!$EO$9)*R$7)+(((IF($A$8=Nutrients!$B$79,Nutrients!$EO$79,(IF($A$8=Nutrients!$B$77,Nutrients!$EO$77,Nutrients!$EO$78)))))*R$8))/2000*1000000","v":0.24750000000000003},{"$f":"(SUMPRODUCT(S$9:S$229,Nutrients!$EO$8:$EO$228)+(IF($A$7=Nutrients!$B$8,Nutrients!$EO$8,Nutrients!$EO$9)*S$7)+(((IF($A$8=Nutrients!$B$79,Nutrients!$EO$79,(IF($A$8=Nutrients!$B$77,Nutrients!$EO$77,Nutrients!$EO$78)))))*S$8))/2000*1000000","v":0.19800000000000001},{"$f":"(SUMPRODUCT(T$9:T$229,Nutrients!$EO$8:$EO$228)+(IF($A$7=Nutrients!$B$8,Nutrients!$EO$8,Nutrients!$EO$9)*T$7)+(((IF($A$8=Nutrients!$B$79,Nutrients!$EO$79,(IF($A$8=Nutrients!$B$77,Nutrients!$EO$77,Nutrients!$EO$78)))))*T$8))/2000*1000000","v":0.14849999999999999},{"$f":"(SUMPRODUCT(U$9:U$229,Nutrients!$EO$8:$EO$228)+(IF($A$7=Nutrients!$B$8,Nutrients!$EO$8,Nutrients!$EO$9)*U$7)+(((IF($A$8=Nutrients!$B$79,Nutrients!$EO$79,(IF($A$8=Nutrients!$B$77,Nutrients!$EO$77,Nutrients!$EO$78)))))*U$8))/2000*1000000","v":0.14849999999999999},null,{"$f":"(SUMPRODUCT(W$9:W$229,Nutrients!$EO$8:$EO$228)+(IF($A$7=Nutrients!$B$8,Nutrients!$EO$8,Nutrients!$EO$9)*W$7)+(((IF($A$8=Nutrients!$B$79,Nutrients!$EO$79,(IF($A$8=Nutrients!$B$77,Nutrients!$EO$77,Nutrients!$EO$78)))))*W$8))/2000*1000000","v":0.29699999999999999},{"$f":"(SUMPRODUCT(X$9:X$229,Nutrients!$EO$8:$EO$228)+(IF($A$7=Nutrients!$B$8,Nutrients!$EO$8,Nutrients!$EO$9)*X$7)+(((IF($A$8=Nutrients!$B$79,Nutrients!$EO$79,(IF($A$8=Nutrients!$B$77,Nutrients!$EO$77,Nutrients!$EO$78)))))*X$8))/2000*1000000","v":0.29699999999999999},{"$f":"(SUMPRODUCT(Y$9:Y$229,Nutrients!$EO$8:$EO$228)+(IF($A$7=Nutrients!$B$8,Nutrients!$EO$8,Nutrients!$EO$9)*Y$7)+(((IF($A$8=Nutrients!$B$79,Nutrients!$EO$79,(IF($A$8=Nutrients!$B$77,Nutrients!$EO$77,Nutrients!$EO$78)))))*Y$8))/2000*1000000","v":0.24750000000000003},{"$f":"(SUMPRODUCT(Z$9:Z$229,Nutrients!$EO$8:$EO$228)+(IF($A$7=Nutrients!$B$8,Nutrients!$EO$8,Nutrients!$EO$9)*Z$7)+(((IF($A$8=Nutrients!$B$79,Nutrients!$EO$79,(IF($A$8=Nutrients!$B$77,Nutrients!$EO$77,Nutrients!$EO$78)))))*Z$8))/2000*1000000","v":0.19800000000000001},{"$f":"(SUMPRODUCT(AA$9:AA$229,Nutrients!$EO$8:$EO$228)+(IF($A$7=Nutrients!$B$8,Nutrients!$EO$8,Nutrients!$EO$9)*AA$7)+(((IF($A$8=Nutrients!$B$79,Nutrients!$EO$79,(IF($A$8=Nutrients!$B$77,Nutrients!$EO$77,Nutrients!$EO$78)))))*AA$8))/2000*1000000","v":0.14849999999999999},{"$f":"(SUMPRODUCT(AB$9:AB$229,Nutrients!$EO$8:$EO$228)+(IF($A$7=Nutrients!$B$8,Nutrients!$EO$8,Nutrients!$EO$9)*AB$7)+(((IF($A$8=Nutrients!$B$79,Nutrients!$EO$79,(IF($A$8=Nutrients!$B$77,Nutrients!$EO$77,Nutrients!$EO$78)))))*AB$8))/2000*1000000","v":0.14849999999999999},null,{"$f":"(SUMPRODUCT(AD$9:AD$229,Nutrients!$EO$8:$EO$228)+(IF($A$7=Nutrients!$B$8,Nutrients!$EO$8,Nutrients!$EO$9)*AD$7)+(((IF($A$8=Nutrients!$B$79,Nutrients!$EO$79,(IF($A$8=Nutrients!$B$77,Nutrients!$EO$77,Nutrients!$EO$78)))))*AD$8))/2000*1000000","v":0.29699999999999999},{"$f":"(SUMPRODUCT(AE$9:AE$229,Nutrients!$EO$8:$EO$228)+(IF($A$7=Nutrients!$B$8,Nutrients!$EO$8,Nutrients!$EO$9)*AE$7)+(((IF($A$8=Nutrients!$B$79,Nutrients!$EO$79,(IF($A$8=Nutrients!$B$77,Nutrients!$EO$77,Nutrients!$EO$78)))))*AE$8))/2000*1000000","v":0.29699999999999999},{"$f":"(SUMPRODUCT(AF$9:AF$229,Nutrients!$EO$8:$EO$228)+(IF($A$7=Nutrients!$B$8,Nutrients!$EO$8,Nutrients!$EO$9)*AF$7)+(((IF($A$8=Nutrients!$B$79,Nutrients!$EO$79,(IF($A$8=Nutrients!$B$77,Nutrients!$EO$77,Nutrients!$EO$78)))))*AF$8))/2000*1000000","v":0.24750000000000003},{"$f":"(SUMPRODUCT(AG$9:AG$229,Nutrients!$EO$8:$EO$228)+(IF($A$7=Nutrients!$B$8,Nutrients!$EO$8,Nutrients!$EO$9)*AG$7)+(((IF($A$8=Nutrients!$B$79,Nutrients!$EO$79,(IF($A$8=Nutrients!$B$77,Nutrients!$EO$77,Nutrients!$EO$78)))))*AG$8))/2000*1000000","v":0.19800000000000001},{"$f":"(SUMPRODUCT(AH$9:AH$229,Nutrients!$EO$8:$EO$228)+(IF($A$7=Nutrients!$B$8,Nutrients!$EO$8,Nutrients!$EO$9)*AH$7)+(((IF($A$8=Nutrients!$B$79,Nutrients!$EO$79,(IF($A$8=Nutrients!$B$77,Nutrients!$EO$77,Nutrients!$EO$78)))))*AH$8))/2000*1000000","v":0.14849999999999999},{"$f":"(SUMPRODUCT(AI$9:AI$229,Nutrients!$EO$8:$EO$228)+(IF($A$7=Nutrients!$B$8,Nutrients!$EO$8,Nutrients!$EO$9)*AI$7)+(((IF($A$8=Nutrients!$B$79,Nutrients!$EO$79,(IF($A$8=Nutrients!$B$77,Nutrients!$EO$77,Nutrients!$EO$78)))))*AI$8))/2000*1000000","v":0.14849999999999999},null,{"$f":"(SUMPRODUCT(AK$9:AK$229,Nutrients!$EO$8:$EO$228)+(IF($A$7=Nutrients!$B$8,Nutrients!$EO$8,Nutrients!$EO$9)*AK$7)+(((IF($A$8=Nutrients!$B$79,Nutrients!$EO$79,(IF($A$8=Nutrients!$B$77,Nutrients!$EO$77,Nutrients!$EO$78)))))*AK$8))/2000*1000000","v":0.29699999999999999},{"$f":"(SUMPRODUCT(AL$9:AL$229,Nutrients!$EO$8:$EO$228)+(IF($A$7=Nutrients!$B$8,Nutrients!$EO$8,Nutrients!$EO$9)*AL$7)+(((IF($A$8=Nutrients!$B$79,Nutrients!$EO$79,(IF($A$8=Nutrients!$B$77,Nutrients!$EO$77,Nutrients!$EO$78)))))*AL$8))/2000*1000000","v":0.29699999999999999},{"$f":"(SUMPRODUCT(AM$9:AM$229,Nutrients!$EO$8:$EO$228)+(IF($A$7=Nutrients!$B$8,Nutrients!$EO$8,Nutrients!$EO$9)*AM$7)+(((IF($A$8=Nutrients!$B$79,Nutrients!$EO$79,(IF($A$8=Nutrients!$B$77,Nutrients!$EO$77,Nutrients!$EO$78)))))*AM$8))/2000*1000000","v":0.24750000000000003},{"$f":"(SUMPRODUCT(AN$9:AN$229,Nutrients!$EO$8:$EO$228)+(IF($A$7=Nutrients!$B$8,Nutrients!$EO$8,Nutrients!$EO$9)*AN$7)+(((IF($A$8=Nutrients!$B$79,Nutrients!$EO$79,(IF($A$8=Nutrients!$B$77,Nutrients!$EO$77,Nutrients!$EO$78)))))*AN$8))/2000*1000000","v":0.19800000000000001},{"$f":"(SUMPRODUCT(AO$9:AO$229,Nutrients!$EO$8:$EO$228)+(IF($A$7=Nutrients!$B$8,Nutrients!$EO$8,Nutrients!$EO$9)*AO$7)+(((IF($A$8=Nutrients!$B$79,Nutrients!$EO$79,(IF($A$8=Nutrients!$B$77,Nutrients!$EO$77,Nutrients!$EO$78)))))*AO$8))/2000*1000000","v":0.14849999999999999},{"$f":"(SUMPRODUCT(AP$9:AP$229,Nutrients!$EO$8:$EO$228)+(IF($A$7=Nutrients!$B$8,Nutrients!$EO$8,Nutrients!$EO$9)*AP$7)+(((IF($A$8=Nutrients!$B$79,Nutrients!$EO$79,(IF($A$8=Nutrients!$B$77,Nutrients!$EO$77,Nutrients!$EO$78)))))*AP$8))/2000*1000000","v":0.14849999999999999},null,{"$f":"(SUMPRODUCT(AR$9:AR$229,Nutrients!$EO$8:$EO$228)+(IF($A$7=Nutrients!$B$8,Nutrients!$EO$8,Nutrients!$EO$9)*AR$7)+(((IF($A$8=Nutrients!$B$79,Nutrients!$EO$79,(IF($A$8=Nutrients!$B$77,Nutrients!$EO$77,Nutrients!$EO$78)))))*AR$8))/2000*1000000","v":0.29699999999999999},{"$f":"(SUMPRODUCT(AS$9:AS$229,Nutrients!$EO$8:$EO$228)+(IF($A$7=Nutrients!$B$8,Nutrients!$EO$8,Nutrients!$EO$9)*AS$7)+(((IF($A$8=Nutrients!$B$79,Nutrients!$EO$79,(IF($A$8=Nutrients!$B$77,Nutrients!$EO$77,Nutrients!$EO$78)))))*AS$8))/2000*1000000","v":0.29699999999999999},{"$f":"(SUMPRODUCT(AT$9:AT$229,Nutrients!$EO$8:$EO$228)+(IF($A$7=Nutrients!$B$8,Nutrients!$EO$8,Nutrients!$EO$9)*AT$7)+(((IF($A$8=Nutrients!$B$79,Nutrients!$EO$79,(IF($A$8=Nutrients!$B$77,Nutrients!$EO$77,Nutrients!$EO$78)))))*AT$8))/2000*1000000","v":0.24750000000000003},{"$f":"(SUMPRODUCT(AU$9:AU$229,Nutrients!$EO$8:$EO$228)+(IF($A$7=Nutrients!$B$8,Nutrients!$EO$8,Nutrients!$EO$9)*AU$7)+(((IF($A$8=Nutrients!$B$79,Nutrients!$EO$79,(IF($A$8=Nutrients!$B$77,Nutrients!$EO$77,Nutrients!$EO$78)))))*AU$8))/2000*1000000","v":0.19800000000000001},{"$f":"(SUMPRODUCT(AV$9:AV$229,Nutrients!$EO$8:$EO$228)+(IF($A$7=Nutrients!$B$8,Nutrients!$EO$8,Nutrients!$EO$9)*AV$7)+(((IF($A$8=Nutrients!$B$79,Nutrients!$EO$79,(IF($A$8=Nutrients!$B$77,Nutrients!$EO$77,Nutrients!$EO$78)))))*AV$8))/2000*1000000","v":0.14849999999999999},{"$f":"(SUMPRODUCT(AW$9:AW$229,Nutrients!$EO$8:$EO$228)+(IF($A$7=Nutrients!$B$8,Nutrients!$EO$8,Nutrients!$EO$9)*AW$7)+(((IF($A$8=Nutrients!$B$79,Nutrients!$EO$79,(IF($A$8=Nutrients!$B$77,Nutrients!$EO$77,Nutrients!$EO$78)))))*AW$8))/2000*1000000","v":0.14849999999999999}]
["  Selenium added, ppm",{"$f":"(SUMPRODUCT(B$9:B$229,Nutrients!$EP$8:$EP$228)+(IF($A$7=Nutrients!$B$8,Nutrients!$EP$8,Nutrients!$EP$9)*B$7)+(((IF($A$8=Nutrients!$B$79,Nutrients!$EP$79,(IF($A$8=Nutrients!$B$77,Nutrients!$EP$77,Nutrients!$EP$78)))))*B$8))/2000*1000000","v":0.29699999999999999},{"$f":"(SUMPRODUCT(C$9:C$229,Nutrients!$EP$8:$EP$228)+(IF($A$7=Nutrients!$B$8,Nutrients!$EP$8,Nutrients!$EP$9)*C$7)+(((IF($A$8=Nutrients!$B$79,Nutrients!$EP$79,(IF($A$8=Nutrients!$B$77,Nutrients!$EP$77,Nutrients!$EP$78)))))*C$8))/2000*1000000","v":0.29699999999999999},{"$f":"(SUMPRODUCT(D$9:D$229,Nutrients!$EP$8:$EP$228)+(IF($A$7=Nutrients!$B$8,Nutrients!$EP$8,Nutrients!$EP$9)*D$7)+(((IF($A$8=Nutrients!$B$79,Nutrients!$EP$79,(IF($A$8=Nutrients!$B$77,Nutrients!$EP$77,Nutrients!$EP$78)))))*D$8))/2000*1000000","v":0.24750000000000003},{"$f":"(SUMPRODUCT(E$9:E$229,Nutrients!$EP$8:$EP$228)+(IF($A$7=Nutrients!$B$8,Nutrients!$EP$8,Nutrients!$EP$9)*E$7)+(((IF($A$8=Nutrients!$B$79,Nutrients!$EP$79,(IF($A$8=Nutrients!$B$77,Nutrients!$EP$77,Nutrients!$EP$78)))))*E$8))/2000*1000000","v":0.19800000000000001},{"$f":"(SUMPRODUCT(F$9:F$229,Nutrients!$EP$8:$EP$228)+(IF($A$7=Nutrients!$B$8,Nutrients!$EP$8,Nutrients!$EP$9)*F$7)+(((IF($A$8=Nutrients!$B$79,Nutrients!$EP$79,(IF($A$8=Nutrients!$B$77,Nutrients!$EP$77,Nutrients!$EP$78)))))*F$8))/2000*1000000","v":0.14849999999999999},{"$f":"(SUMPRODUCT(G$9:G$229,Nutrients!$EP$8:$EP$228)+(IF($A$7=Nutrients!$B$8,Nutrients!$EP$8,Nutrients!$EP$9)*G$7)+(((IF($A$8=Nutrients!$B$79,Nutrients!$EP$79,(IF($A$8=Nutrients!$B$77,Nutrients!$EP$77,Nutrients!$EP$78)))))*G$8))/2000*1000000","v":0.14849999999999999},null,{"$f":"(SUMPRODUCT(I$9:I$229,Nutrients!$EP$8:$EP$228)+(IF($A$7=Nutrients!$B$8,Nutrients!$EP$8,Nutrients!$EP$9)*I$7)+(((IF($A$8=Nutrients!$B$79,Nutrients!$EP$79,(IF($A$8=Nutrients!$B$77,Nutrients!$EP$77,Nutrients!$EP$78)))))*I$8))/2000*1000000","v":0.29699999999999999},{"$f":"(SUMPRODUCT(J$9:J$229,Nutrients!$EP$8:$EP$228)+(IF($A$7=Nutrients!$B$8,Nutrients!$EP$8,Nutrients!$EP$9)*J$7)+(((IF($A$8=Nutrients!$B$79,Nutrients!$EP$79,(IF($A$8=Nutrients!$B$77,Nutrients!$EP$77,Nutrients!$EP$78)))))*J$8))/2000*1000000","v":0.29699999999999999},{"$f":"(SUMPRODUCT(K$9:K$229,Nutrients!$EP$8:$EP$228)+(IF($A$7=Nutrients!$B$8,Nutrients!$EP$8,Nutrients!$EP$9)*K$7)+(((IF($A$8=Nutrients!$B$79,Nutrients!$EP$79,(IF($A$8=Nutrients!$B$77,Nutrients!$EP$77,Nutrients!$EP$78)))))*K$8))/2000*1000000","v":0.24750000000000003},{"$f":"(SUMPRODUCT(L$9:L$229,Nutrients!$EP$8:$EP$228)+(IF($A$7=Nutrients!$B$8,Nutrients!$EP$8,Nutrients!$EP$9)*L$7)+(((IF($A$8=Nutrients!$B$79,Nutrients!$EP$79,(IF($A$8=Nutrients!$B$77,Nutrients!$EP$77,Nutrients!$EP$78)))))*L$8))/2000*1000000","v":0.19800000000000001},{"$f":"(SUMPRODUCT(M$9:M$229,Nutrients!$EP$8:$EP$228)+(IF($A$7=Nutrients!$B$8,Nutrients!$EP$8,Nutrients!$EP$9)*M$7)+(((IF($A$8=Nutrients!$B$79,Nutrients!$EP$79,(IF($A$8=Nutrients!$B$77,Nutrients!$EP$77,Nutrients!$EP$78)))))*M$8))/2000*1000000","v":0.14849999999999999},{"$f":"(SUMPRODUCT(N$9:N$229,Nutrients!$EP$8:$EP$228)+(IF($A$7=Nutrients!$B$8,Nutrients!$EP$8,Nutrients!$EP$9)*N$7)+(((IF($A$8=Nutrients!$B$79,Nutrients!$EP$79,(IF($A$8=Nutrients!$B$77,Nutrients!$EP$77,Nutrients!$EP$78)))))*N$8))/2000*1000000","v":0.14849999999999999},null,{"$f":"(SUMPRODUCT(P$9:P$229,Nutrients!$EP$8:$EP$228)+(IF($A$7=Nutrients!$B$8,Nutrients!$EP$8,Nutrients!$EP$9)*P$7)+(((IF($A$8=Nutrients!$B$79,Nutrients!$EP$79,(IF($A$8=Nutrients!$B$77,Nutrients!$EP$77,Nutrients!$EP$78)))))*P$8))/2000*1000000","v":0.29699999999999999},{"$f":"(SUMPRODUCT(Q$9:Q$229,Nutrients!$EP$8:$EP$228)+(IF($A$7=Nutrients!$B$8,Nutrients!$EP$8,Nutrients!$EP$9)*Q$7)+(((IF($A$8=Nutrients!$B$79,Nutrients!$EP$79,(IF($A$8=Nutrients!$B$77,Nutrients!$EP$77,Nutrients!$EP$78)))))*Q$8))/2000*1000000","v":0.29699999999999999},{"$f":"(SUMPRODUCT(R$9:R$229,Nutrients!$EP$8:$EP$228)+(IF($A$7=Nutrients!$B$8,Nutrients!$EP$8,Nutrients!$EP$9)*R$7)+(((IF($A$8=Nutrients!$B$79,Nutrients!$EP$79,(IF($A$8=Nutrients!$B$77,Nutrients!$EP$77,Nutrients!$EP$78)))))*R$8))/2000*1000000","v":0.24750000000000003},{"$f":"(SUMPRODUCT(S$9:S$229,Nutrients!$EP$8:$EP$228)+(IF($A$7=Nutrients!$B$8,Nutrients!$EP$8,Nutrients!$EP$9)*S$7)+(((IF($A$8=Nutrients!$B$79,Nutrients!$EP$79,(IF($A$8=Nutrients!$B$77,Nutrients!$EP$77,Nutrients!$EP$78)))))*S$8))/2000*1000000","v":0.19800000000000001},{"$f":"(SUMPRODUCT(T$9:T$229,Nutrients!$EP$8:$EP$228)+(IF($A$7=Nutrients!$B$8,Nutrients!$EP$8,Nutrients!$EP$9)*T$7)+(((IF($A$8=Nutrients!$B$79,Nutrients!$EP$79,(IF($A$8=Nutrients!$B$77,Nutrients!$EP$77,Nutrients!$EP$78)))))*T$8))/2000*1000000","v":0.14849999999999999},{"$f":"(SUMPRODUCT(U$9:U$229,Nutrients!$EP$8:$EP$228)+(IF($A$7=Nutrients!$B$8,Nutrients!$EP$8,Nutrients!$EP$9)*U$7)+(((IF($A$8=Nutrients!$B$79,Nutrients!$EP$79,(IF($A$8=Nutrients!$B$77,Nutrients!$EP$77,Nutrients!$EP$78)))))*U$8))/2000*1000000","v":0.14849999999999999},null,{"$f":"(SUMPRODUCT(W$9:W$229,Nutrients!$EP$8:$EP$228)+(IF($A$7=Nutrients!$B$8,Nutrients!$EP$8,Nutrients!$EP$9)*W$7)+(((IF($A$8=Nutrients!$B$79,Nutrients!$EP$79,(IF($A$8=Nutrients!$B$77,Nutrients!$EP$77,Nutrients!$EP$78)))))*W$8))/2000*1000000","v":0.29699999999999999},{"$f":"(SUMPRODUCT(X$9:X$229,Nutrients!$EP$8:$EP$228)+(IF($A$7=Nutrients!$B$8,Nutrients!$EP$8,Nutrients!$EP$9)*X$7)+(((IF($A$8=Nutrients!$B$79,Nutrients!$EP$79,(IF($A$8=Nutrients!$B$77,Nutrients!$EP$77,Nutrients!$EP$78)))))*X$8))/2000*1000000","v":0.29699999999999999},{"$f":"(SUMPRODUCT(Y$9:Y$229,Nutrients!$EP$8:$EP$228)+(IF($A$7=Nutrients!$B$8,Nutrients!$EP$8,Nutrients!$EP$9)*Y$7)+(((IF($A$8=Nutrients!$B$79,Nutrients!$EP$79,(IF($A$8=Nutrients!$B$77,Nutrients!$EP$77,Nutrients!$EP$78)))))*Y$8))/2000*1000000","v":0.24750000000000003},{"$f":"(SUMPRODUCT(Z$9:Z$229,Nutrients!$EP$8:$EP$228)+(IF($A$7=Nutrients!$B$8,Nutrients!$EP$8,Nutrients!$EP$9)*Z$7)+(((IF($A$8=Nutrients!$B$79,Nutrients!$EP$79,(IF($A$8=Nutrients!$B$77,Nutrients!$EP$77,Nutrients!$EP$78)))))*Z$8))/2000*1000000","v":0.19800000000000001},{"$f":"(SUMPRODUCT(AA$9:AA$229,Nutrients!$EP$8:$EP$228)+(IF($A$7=Nutrients!$B$8,Nutrients!$EP$8,Nutrients!$EP$9)*AA$7)+(((IF($A$8=Nutrients!$B$79,Nutrients!$EP$79,(IF($A$8=Nutrients!$B$77,Nutrients!$EP$77,Nutrients!$EP$78)))))*AA$8))/2000*1000000","v":0.14849999999999999},{"$f":"(SUMPRODUCT(AB$9:AB$229,Nutrients!$EP$8:$EP$228)+(IF($A$7=Nutrients!$B$8,Nutrients!$EP$8,Nutrients!$EP$9)*AB$7)+(((IF($A$8=Nutrients!$B$79,Nutrients!$EP$79,(IF($A$8=Nutrients!$B$77,Nutrients!$EP$77,Nutrients!$EP$78)))))*AB$8))/2000*1000000","v":0.14849999999999999},null,{"$f":"(SUMPRODUCT(AD$9:AD$229,Nutrients!$EP$8:$EP$228)+(IF($A$7=Nutrients!$B$8,Nutrients!$EP$8,Nutrients!$EP$9)*AD$7)+(((IF($A$8=Nutrients!$B$79,Nutrients!$EP$79,(IF($A$8=Nutrients!$B$77,Nutrients!$EP$77,Nutrients!$EP$78)))))*AD$8))/2000*1000000","v":0.29699999999999999},{"$f":"(SUMPRODUCT(AE$9:AE$229,Nutrients!$EP$8:$EP$228)+(IF($A$7=Nutrients!$B$8,Nutrients!$EP$8,Nutrients!$EP$9)*AE$7)+(((IF($A$8=Nutrients!$B$79,Nutrients!$EP$79,(IF($A$8=Nutrients!$B$77,Nutrients!$EP$77,Nutrients!$EP$78)))))*AE$8))/2000*1000000","v":0.29699999999999999},{"$f":"(SUMPRODUCT(AF$9:AF$229,Nutrients!$EP$8:$EP$228)+(IF($A$7=Nutrients!$B$8,Nutrients!$EP$8,Nutrients!$EP$9)*AF$7)+(((IF($A$8=Nutrients!$B$79,Nutrients!$EP$79,(IF($A$8=Nutrients!$B$77,Nutrients!$EP$77,Nutrients!$EP$78)))))*AF$8))/2000*1000000","v":0.24750000000000003},{"$f":"(SUMPRODUCT(AG$9:AG$229,Nutrients!$EP$8:$EP$228)+(IF($A$7=Nutrients!$B$8,Nutrients!$EP$8,Nutrients!$EP$9)*AG$7)+(((IF($A$8=Nutrients!$B$79,Nutrients!$EP$79,(IF($A$8=Nutrients!$B$77,Nutrients!$EP$77,Nutrients!$EP$78)))))*AG$8))/2000*1000000","v":0.19800000000000001},{"$f":"(SUMPRODUCT(AH$9:AH$229,Nutrients!$EP$8:$EP$228)+(IF($A$7=Nutrients!$B$8,Nutrients!$EP$8,Nutrients!$EP$9)*AH$7)+(((IF($A$8=Nutrients!$B$79,Nutrients!$EP$79,(IF($A$8=Nutrients!$B$77,Nutrients!$EP$77,Nutrients!$EP$78)))))*AH$8))/2000*1000000","v":0.14849999999999999},{"$f":"(SUMPRODUCT(AI$9:AI$229,Nutrients!$EP$8:$EP$228)+(IF($A$7=Nutrients!$B$8,Nutrients!$EP$8,Nutrients!$EP$9)*AI$7)+(((IF($A$8=Nutrients!$B$79,Nutrients!$EP$79,(IF($A$8=Nutrients!$B$77,Nutrients!$EP$77,Nutrients!$EP$78)))))*AI$8))/2000*1000000","v":0.14849999999999999},null,{"$f":"(SUMPRODUCT(AK$9:AK$229,Nutrients!$EP$8:$EP$228)+(IF($A$7=Nutrients!$B$8,Nutrients!$EP$8,Nutrients!$EP$9)*AK$7)+(((IF($A$8=Nutrients!$B$79,Nutrients!$EP$79,(IF($A$8=Nutrients!$B$77,Nutrients!$EP$77,Nutrients!$EP$78)))))*AK$8))/2000*1000000","v":0.29699999999999999},{"$f":"(SUMPRODUCT(AL$9:AL$229,Nutrients!$EP$8:$EP$228)+(IF($A$7=Nutrients!$B$8,Nutrients!$EP$8,Nutrients!$EP$9)*AL$7)+(((IF($A$8=Nutrients!$B$79,Nutrients!$EP$79,(IF($A$8=Nutrients!$B$77,Nutrients!$EP$77,Nutrients!$EP$78)))))*AL$8))/2000*1000000","v":0.29699999999999999},{"$f":"(SUMPRODUCT(AM$9:AM$229,Nutrients!$EP$8:$EP$228)+(IF($A$7=Nutrients!$B$8,Nutrients!$EP$8,Nutrients!$EP$9)*AM$7)+(((IF($A$8=Nutrients!$B$79,Nutrients!$EP$79,(IF($A$8=Nutrients!$B$77,Nutrients!$EP$77,Nutrients!$EP$78)))))*AM$8))/2000*1000000","v":0.24750000000000003},{"$f":"(SUMPRODUCT(AN$9:AN$229,Nutrients!$EP$8:$EP$228)+(IF($A$7=Nutrients!$B$8,Nutrients!$EP$8,Nutrients!$EP$9)*AN$7)+(((IF($A$8=Nutrients!$B$79,Nutrients!$EP$79,(IF($A$8=Nutrients!$B$77,Nutrients!$EP$77,Nutrients!$EP$78)))))*AN$8))/2000*1000000","v":0.19800000000000001},{"$f":"(SUMPRODUCT(AO$9:AO$229,Nutrients!$EP$8:$EP$228)+(IF($A$7=Nutrients!$B$8,Nutrients!$EP$8,Nutrients!$EP$9)*AO$7)+(((IF($A$8=Nutrients!$B$79,Nutrients!$EP$79,(IF($A$8=Nutrients!$B$77,Nutrients!$EP$77,Nutrients!$EP$78)))))*AO$8))/2000*1000000","v":0.14849999999999999},{"$f":"(SUMPRODUCT(AP$9:AP$229,Nutrients!$EP$8:$EP$228)+(IF($A$7=Nutrients!$B$8,Nutrients!$EP$8,Nutrients!$EP$9)*AP$7)+(((IF($A$8=Nutrients!$B$79,Nutrients!$EP$79,(IF($A$8=Nutrients!$B$77,Nutrients!$EP$77,Nutrients!$EP$78)))))*AP$8))/2000*1000000","v":0.14849999999999999},null,{"$f":"(SUMPRODUCT(AR$9:AR$229,Nutrients!$EP$8:$EP$228)+(IF($A$7=Nutrients!$B$8,Nutrients!$EP$8,Nutrients!$EP$9)*AR$7)+(((IF($A$8=Nutrients!$B$79,Nutrients!$EP$79,(IF($A$8=Nutrients!$B$77,Nutrients!$EP$77,Nutrients!$EP$78)))))*AR$8))/2000*1000000","v":0.29699999999999999},{"$f":"(SUMPRODUCT(AS$9:AS$229,Nutrients!$EP$8:$EP$228)+(IF($A$7=Nutrients!$B$8,Nutrients!$EP$8,Nutrients!$EP$9)*AS$7)+(((IF($A$8=Nutrients!$B$79,Nutrients!$EP$79,(IF($A$8=Nutrients!$B$77,Nutrients!$EP$77,Nutrients!$EP$78)))))*AS$8))/2000*1000000","v":0.29699999999999999},{"$f":"(SUMPRODUCT(AT$9:AT$229,Nutrients!$EP$8:$EP$228)+(IF($A$7=Nutrients!$B$8,Nutrients!$EP$8,Nutrients!$EP$9)*AT$7)+(((IF($A$8=Nutrients!$B$79,Nutrients!$EP$79,(IF($A$8=Nutrients!$B$77,Nutrients!$EP$77,Nutrients!$EP$78)))))*AT$8))/2000*1000000","v":0.24750000000000003},{"$f":"(SUMPRODUCT(AU$9:AU$229,Nutrients!$EP$8:$EP$228)+(IF($A$7=Nutrients!$B$8,Nutrients!$EP$8,Nutrients!$EP$9)*AU$7)+(((IF($A$8=Nutrients!$B$79,Nutrients!$EP$79,(IF($A$8=Nutrients!$B$77,Nutrients!$EP$77,Nutrients!$EP$78)))))*AU$8))/2000*1000000","v":0.19800000000000001},{"$f":"(SUMPRODUCT(AV$9:AV$229,Nutrients!$EP$8:$EP$228)+(IF($A$7=Nutrients!$B$8,Nutrients!$EP$8,Nutrients!$EP$9)*AV$7)+(((IF($A$8=Nutrients!$B$79,Nutrients!$EP$79,(IF($A$8=Nutrients!$B$77,Nutrients!$EP$77,Nutrients!$EP$78)))))*AV$8))/2000*1000000","v":0.14849999999999999},{"$f":"(SUMPRODUCT(AW$9:AW$229,Nutrients!$EP$8:$EP$228)+(IF($A$7=Nutrients!$B$8,Nutrients!$EP$8,Nutrients!$EP$9)*AW$7)+(((IF($A$8=Nutrients!$B$79,Nutrients!$EP$79,(IF($A$8=Nutrients!$B$77,Nutrients!$EP$77,Nutrients!$EP$78)))))*AW$8))/2000*1000000","v":0.14849999999999999}]
["  Chromium added, ppb",{"$f":"(SUMPRODUCT(B$9:B$229,Nutrients!$EQ$8:$EQ$228)+(IF($A$7=Nutrients!$B$8,Nutrients!$EQ$8,Nutrients!$EQ$9)*B$7)+(((IF($A$8=Nutrients!$B$79,Nutrients!$EQ$79,(IF($A$8=Nutrients!$B$77,Nutrients!$EQ$77,Nutrients!$EQ$78)))))*B$8))/2000*1000000000","v":0},{"$f":"(SUMPRODUCT(C$9:C$229,Nutrients!$EQ$8:$EQ$228)+(IF($A$7=Nutrients!$B$8,Nutrients!$EQ$8,Nutrients!$EQ$9)*C$7)+(((IF($A$8=Nutrients!$B$79,Nutrients!$EQ$79,(IF($A$8=Nutrients!$B$77,Nutrients!$EQ$77,Nutrients!$EQ$78)))))*C$8))/2000*1000000000","v":0},{"$f":"(SUMPRODUCT(D$9:D$229,Nutrients!$EQ$8:$EQ$228)+(IF($A$7=Nutrients!$B$8,Nutrients!$EQ$8,Nutrients!$EQ$9)*D$7)+(((IF($A$8=Nutrients!$B$79,Nutrients!$EQ$79,(IF($A$8=Nutrients!$B$77,Nutrients!$EQ$77,Nutrients!$EQ$78)))))*D$8))/2000*1000000000","v":0},{"$f":"(SUMPRODUCT(E$9:E$229,Nutrients!$EQ$8:$EQ$228)+(IF($A$7=Nutrients!$B$8,Nutrients!$EQ$8,Nutrients!$EQ$9)*E$7)+(((IF($A$8=Nutrients!$B$79,Nutrients!$EQ$79,(IF($A$8=Nutrients!$B$77,Nutrients!$EQ$77,Nutrients!$EQ$78)))))*E$8))/2000*1000000000","v":0},{"$f":"(SUMPRODUCT(F$9:F$229,Nutrients!$EQ$8:$EQ$228)+(IF($A$7=Nutrients!$B$8,Nutrients!$EQ$8,Nutrients!$EQ$9)*F$7)+(((IF($A$8=Nutrients!$B$79,Nutrients!$EQ$79,(IF($A$8=Nutrients!$B$77,Nutrients!$EQ$77,Nutrients!$EQ$78)))))*F$8))/2000*1000000000","v":0},{"$f":"(SUMPRODUCT(G$9:G$229,Nutrients!$EQ$8:$EQ$228)+(IF($A$7=Nutrients!$B$8,Nutrients!$EQ$8,Nutrients!$EQ$9)*G$7)+(((IF($A$8=Nutrients!$B$79,Nutrients!$EQ$79,(IF($A$8=Nutrients!$B$77,Nutrients!$EQ$77,Nutrients!$EQ$78)))))*G$8))/2000*1000000000","v":0},null,{"$f":"(SUMPRODUCT(I$9:I$229,Nutrients!$EQ$8:$EQ$228)+(IF($A$7=Nutrients!$B$8,Nutrients!$EQ$8,Nutrients!$EQ$9)*I$7)+(((IF($A$8=Nutrients!$B$79,Nutrients!$EQ$79,(IF($A$8=Nutrients!$B$77,Nutrients!$EQ$77,Nutrients!$EQ$78)))))*I$8))/2000*1000000000","v":0},{"$f":"(SUMPRODUCT(J$9:J$229,Nutrients!$EQ$8:$EQ$228)+(IF($A$7=Nutrients!$B$8,Nutrients!$EQ$8,Nutrients!$EQ$9)*J$7)+(((IF($A$8=Nutrients!$B$79,Nutrients!$EQ$79,(IF($A$8=Nutrients!$B$77,Nutrients!$EQ$77,Nutrients!$EQ$78)))))*J$8))/2000*1000000000","v":0},{"$f":"(SUMPRODUCT(K$9:K$229,Nutrients!$EQ$8:$EQ$228)+(IF($A$7=Nutrients!$B$8,Nutrients!$EQ$8,Nutrients!$EQ$9)*K$7)+(((IF($A$8=Nutrients!$B$79,Nutrients!$EQ$79,(IF($A$8=Nutrients!$B$77,Nutrients!$EQ$77,Nutrients!$EQ$78)))))*K$8))/2000*1000000000","v":0},{"$f":"(SUMPRODUCT(L$9:L$229,Nutrients!$EQ$8:$EQ$228)+(IF($A$7=Nutrients!$B$8,Nutrients!$EQ$8,Nutrients!$EQ$9)*L$7)+(((IF($A$8=Nutrients!$B$79,Nutrients!$EQ$79,(IF($A$8=Nutrients!$B$77,Nutrients!$EQ$77,Nutrients!$EQ$78)))))*L$8))/2000*1000000000","v":0},{"$f":"(SUMPRODUCT(M$9:M$229,Nutrients!$EQ$8:$EQ$228)+(IF($A$7=Nutrients!$B$8,Nutrients!$EQ$8,Nutrients!$EQ$9)*M$7)+(((IF($A$8=Nutrients!$B$79,Nutrients!$EQ$79,(IF($A$8=Nutrients!$B$77,Nutrients!$EQ$77,Nutrients!$EQ$78)))))*M$8))/2000*1000000000","v":0},{"$f":"(SUMPRODUCT(N$9:N$229,Nutrients!$EQ$8:$EQ$228)+(IF($A$7=Nutrients!$B$8,Nutrients!$EQ$8,Nutrients!$EQ$9)*N$7)+(((IF($A$8=Nutrients!$B$79,Nutrients!$EQ$79,(IF($A$8=Nutrients!$B$77,Nutrients!$EQ$77,Nutrients!$EQ$78)))))*N$8))/2000*1000000000","v":0},null,{"$f":"(SUMPRODUCT(P$9:P$229,Nutrients!$EQ$8:$EQ$228)+(IF($A$7=Nutrients!$B$8,Nutrients!$EQ$8,Nutrients!$EQ$9)*P$7)+(((IF($A$8=Nutrients!$B$79,Nutrients!$EQ$79,(IF($A$8=Nutrients!$B$77,Nutrients!$EQ$77,Nutrients!$EQ$78)))))*P$8))/2000*1000000000","v":0},{"$f":"(SUMPRODUCT(Q$9:Q$229,Nutrients!$EQ$8:$EQ$228)+(IF($A$7=Nutrients!$B$8,Nutrients!$EQ$8,Nutrients!$EQ$9)*Q$7)+(((IF($A$8=Nutrients!$B$79,Nutrients!$EQ$79,(IF($A$8=Nutrients!$B$77,Nutrients!$EQ$77,Nutrients!$EQ$78)))))*Q$8))/2000*1000000000","v":0},{"$f":"(SUMPRODUCT(R$9:R$229,Nutrients!$EQ$8:$EQ$228)+(IF($A$7=Nutrients!$B$8,Nutrients!$EQ$8,Nutrients!$EQ$9)*R$7)+(((IF($A$8=Nutrients!$B$79,Nutrients!$EQ$79,(IF($A$8=Nutrients!$B$77,Nutrients!$EQ$77,Nutrients!$EQ$78)))))*R$8))/2000*1000000000","v":0},{"$f":"(SUMPRODUCT(S$9:S$229,Nutrients!$EQ$8:$EQ$228)+(IF($A$7=Nutrients!$B$8,Nutrients!$EQ$8,Nutrients!$EQ$9)*S$7)+(((IF($A$8=Nutrients!$B$79,Nutrients!$EQ$79,(IF($A$8=Nutrients!$B$77,Nutrients!$EQ$77,Nutrients!$EQ$78)))))*S$8))/2000*1000000000","v":0},{"$f":"(SUMPRODUCT(T$9:T$229,Nutrients!$EQ$8:$EQ$228)+(IF($A$7=Nutrients!$B$8,Nutrients!$EQ$8,Nutrients!$EQ$9)*T$7)+(((IF($A$8=Nutrients!$B$79,Nutrients!$EQ$79,(IF($A$8=Nutrients!$B$77,Nutrients!$EQ$77,Nutrients!$EQ$78)))))*T$8))/2000*1000000000","v":0},{"$f":"(SUMPRODUCT(U$9:U$229,Nutrients!$EQ$8:$EQ$228)+(IF($A$7=Nutrients!$B$8,Nutrients!$EQ$8,Nutrients!$EQ$9)*U$7)+(((IF($A$8=Nutrients!$B$79,Nutrients!$EQ$79,(IF($A$8=Nutrients!$B$77,Nutrients!$EQ$77,Nutrients!$EQ$78)))))*U$8))/2000*1000000000","v":0},null,{"$f":"(SUMPRODUCT(W$9:W$229,Nutrients!$EQ$8:$EQ$228)+(IF($A$7=Nutrients!$B$8,Nutrients!$EQ$8,Nutrients!$EQ$9)*W$7)+(((IF($A$8=Nutrients!$B$79,Nutrients!$EQ$79,(IF($A$8=Nutrients!$B$77,Nutrients!$EQ$77,Nutrients!$EQ$78)))))*W$8))/2000*1000000000","v":0},{"$f":"(SUMPRODUCT(X$9:X$229,Nutrients!$EQ$8:$EQ$228)+(IF($A$7=Nutrients!$B$8,Nutrients!$EQ$8,Nutrients!$EQ$9)*X$7)+(((IF($A$8=Nutrients!$B$79,Nutrients!$EQ$79,(IF($A$8=Nutrients!$B$77,Nutrients!$EQ$77,Nutrients!$EQ$78)))))*X$8))/2000*1000000000","v":0},{"$f":"(SUMPRODUCT(Y$9:Y$229,Nutrients!$EQ$8:$EQ$228)+(IF($A$7=Nutrients!$B$8,Nutrients!$EQ$8,Nutrients!$EQ$9)*Y$7)+(((IF($A$8=Nutrients!$B$79,Nutrients!$EQ$79,(IF($A$8=Nutrients!$B$77,Nutrients!$EQ$77,Nutrients!$EQ$78)))))*Y$8))/2000*1000000000","v":0},{"$f":"(SUMPRODUCT(Z$9:Z$229,Nutrients!$EQ$8:$EQ$228)+(IF($A$7=Nutrients!$B$8,Nutrients!$EQ$8,Nutrients!$EQ$9)*Z$7)+(((IF($A$8=Nutrients!$B$79,Nutrients!$EQ$79,(IF($A$8=Nutrients!$B$77,Nutrients!$EQ$77,Nutrients!$EQ$78)))))*Z$8))/2000*1000000000","v":0},{"$f":"(SUMPRODUCT(AA$9:AA$229,Nutrients!$EQ$8:$EQ$228)+(IF($A$7=Nutrients!$B$8,Nutrients!$EQ$8,Nutrients!$EQ$9)*AA$7)+(((IF($A$8=Nutrients!$B$79,Nutrients!$EQ$79,(IF($A$8=Nutrients!$B$77,Nutrients!$EQ$77,Nutrients!$EQ$78)))))*AA$8))/2000*1000000000","v":0},{"$f":"(SUMPRODUCT(AB$9:AB$229,Nutrients!$EQ$8:$EQ$228)+(IF($A$7=Nutrients!$B$8,Nutrients!$EQ$8,Nutrients!$EQ$9)*AB$7)+(((IF($A$8=Nutrients!$B$79,Nutrients!$EQ$79,(IF($A$8=Nutrients!$B$77,Nutrients!$EQ$77,Nutrients!$EQ$78)))))*AB$8))/2000*1000000000","v":0},null,{"$f":"(SUMPRODUCT(AD$9:AD$229,Nutrients!$EQ$8:$EQ$228)+(IF($A$7=Nutrients!$B$8,Nutrients!$EQ$8,Nutrients!$EQ$9)*AD$7)+(((IF($A$8=Nutrients!$B$79,Nutrients!$EQ$79,(IF($A$8=Nutrients!$B$77,Nutrients!$EQ$77,Nutrients!$EQ$78)))))*AD$8))/2000*1000000000","v":0},{"$f":"(SUMPRODUCT(AE$9:AE$229,Nutrients!$EQ$8:$EQ$228)+(IF($A$7=Nutrients!$B$8,Nutrients!$EQ$8,Nutrients!$EQ$9)*AE$7)+(((IF($A$8=Nutrients!$B$79,Nutrients!$EQ$79,(IF($A$8=Nutrients!$B$77,Nutrients!$EQ$77,Nutrients!$EQ$78)))))*AE$8))/2000*1000000000","v":0},{"$f":"(SUMPRODUCT(AF$9:AF$229,Nutrients!$EQ$8:$EQ$228)+(IF($A$7=Nutrients!$B$8,Nutrients!$EQ$8,Nutrients!$EQ$9)*AF$7)+(((IF($A$8=Nutrients!$B$79,Nutrients!$EQ$79,(IF($A$8=Nutrients!$B$77,Nutrients!$EQ$77,Nutrients!$EQ$78)))))*AF$8))/2000*1000000000","v":0},{"$f":"(SUMPRODUCT(AG$9:AG$229,Nutrients!$EQ$8:$EQ$228)+(IF($A$7=Nutrients!$B$8,Nutrients!$EQ$8,Nutrients!$EQ$9)*AG$7)+(((IF($A$8=Nutrients!$B$79,Nutrients!$EQ$79,(IF($A$8=Nutrients!$B$77,Nutrients!$EQ$77,Nutrients!$EQ$78)))))*AG$8))/2000*1000000000","v":0},{"$f":"(SUMPRODUCT(AH$9:AH$229,Nutrients!$EQ$8:$EQ$228)+(IF($A$7=Nutrients!$B$8,Nutrients!$EQ$8,Nutrients!$EQ$9)*AH$7)+(((IF($A$8=Nutrients!$B$79,Nutrients!$EQ$79,(IF($A$8=Nutrients!$B$77,Nutrients!$EQ$77,Nutrients!$EQ$78)))))*AH$8))/2000*1000000000","v":0},{"$f":"(SUMPRODUCT(AI$9:AI$229,Nutrients!$EQ$8:$EQ$228)+(IF($A$7=Nutrients!$B$8,Nutrients!$EQ$8,Nutrients!$EQ$9)*AI$7)+(((IF($A$8=Nutrients!$B$79,Nutrients!$EQ$79,(IF($A$8=Nutrients!$B$77,Nutrients!$EQ$77,Nutrients!$EQ$78)))))*AI$8))/2000*1000000000","v":0},null,{"$f":"(SUMPRODUCT(AK$9:AK$229,Nutrients!$EQ$8:$EQ$228)+(IF($A$7=Nutrients!$B$8,Nutrients!$EQ$8,Nutrients!$EQ$9)*AK$7)+(((IF($A$8=Nutrients!$B$79,Nutrients!$EQ$79,(IF($A$8=Nutrients!$B$77,Nutrients!$EQ$77,Nutrients!$EQ$78)))))*AK$8))/2000*1000000000","v":0},{"$f":"(SUMPRODUCT(AL$9:AL$229,Nutrients!$EQ$8:$EQ$228)+(IF($A$7=Nutrients!$B$8,Nutrients!$EQ$8,Nutrients!$EQ$9)*AL$7)+(((IF($A$8=Nutrients!$B$79,Nutrients!$EQ$79,(IF($A$8=Nutrients!$B$77,Nutrients!$EQ$77,Nutrients!$EQ$78)))))*AL$8))/2000*1000000000","v":0},{"$f":"(SUMPRODUCT(AM$9:AM$229,Nutrients!$EQ$8:$EQ$228)+(IF($A$7=Nutrients!$B$8,Nutrients!$EQ$8,Nutrients!$EQ$9)*AM$7)+(((IF($A$8=Nutrients!$B$79,Nutrients!$EQ$79,(IF($A$8=Nutrients!$B$77,Nutrients!$EQ$77,Nutrients!$EQ$78)))))*AM$8))/2000*1000000000","v":0},{"$f":"(SUMPRODUCT(AN$9:AN$229,Nutrients!$EQ$8:$EQ$228)+(IF($A$7=Nutrients!$B$8,Nutrients!$EQ$8,Nutrients!$EQ$9)*AN$7)+(((IF($A$8=Nutrients!$B$79,Nutrients!$EQ$79,(IF($A$8=Nutrients!$B$77,Nutrients!$EQ$77,Nutrients!$EQ$78)))))*AN$8))/2000*1000000000","v":0},{"$f":"(SUMPRODUCT(AO$9:AO$229,Nutrients!$EQ$8:$EQ$228)+(IF($A$7=Nutrients!$B$8,Nutrients!$EQ$8,Nutrients!$EQ$9)*AO$7)+(((IF($A$8=Nutrients!$B$79,Nutrients!$EQ$79,(IF($A$8=Nutrients!$B$77,Nutrients!$EQ$77,Nutrients!$EQ$78)))))*AO$8))/2000*1000000000","v":0},{"$f":"(SUMPRODUCT(AP$9:AP$229,Nutrients!$EQ$8:$EQ$228)+(IF($A$7=Nutrients!$B$8,Nutrients!$EQ$8,Nutrients!$EQ$9)*AP$7)+(((IF($A$8=Nutrients!$B$79,Nutrients!$EQ$79,(IF($A$8=Nutrients!$B$77,Nutrients!$EQ$77,Nutrients!$EQ$78)))))*AP$8))/2000*1000000000","v":0},null,{"$f":"(SUMPRODUCT(AR$9:AR$229,Nutrients!$EQ$8:$EQ$228)+(IF($A$7=Nutrients!$B$8,Nutrients!$EQ$8,Nutrients!$EQ$9)*AR$7)+(((IF($A$8=Nutrients!$B$79,Nutrients!$EQ$79,(IF($A$8=Nutrients!$B$77,Nutrients!$EQ$77,Nutrients!$EQ$78)))))*AR$8))/2000*1000000000","v":0},{"$f":"(SUMPRODUCT(AS$9:AS$229,Nutrients!$EQ$8:$EQ$228)+(IF($A$7=Nutrients!$B$8,Nutrients!$EQ$8,Nutrients!$EQ$9)*AS$7)+(((IF($A$8=Nutrients!$B$79,Nutrients!$EQ$79,(IF($A$8=Nutrients!$B$77,Nutrients!$EQ$77,Nutrients!$EQ$78)))))*AS$8))/2000*1000000000","v":0},{"$f":"(SUMPRODUCT(AT$9:AT$229,Nutrients!$EQ$8:$EQ$228)+(IF($A$7=Nutrients!$B$8,Nutrients!$EQ$8,Nutrients!$EQ$9)*AT$7)+(((IF($A$8=Nutrients!$B$79,Nutrients!$EQ$79,(IF($A$8=Nutrients!$B$77,Nutrients!$EQ$77,Nutrients!$EQ$78)))))*AT$8))/2000*1000000000","v":0},{"$f":"(SUMPRODUCT(AU$9:AU$229,Nutrients!$EQ$8:$EQ$228)+(IF($A$7=Nutrients!$B$8,Nutrients!$EQ$8,Nutrients!$EQ$9)*AU$7)+(((IF($A$8=Nutrients!$B$79,Nutrients!$EQ$79,(IF($A$8=Nutrients!$B$77,Nutrients!$EQ$77,Nutrients!$EQ$78)))))*AU$8))/2000*1000000000","v":0},{"$f":"(SUMPRODUCT(AV$9:AV$229,Nutrients!$EQ$8:$EQ$228)+(IF($A$7=Nutrients!$B$8,Nutrients!$EQ$8,Nutrients!$EQ$9)*AV$7)+(((IF($A$8=Nutrients!$B$79,Nutrients!$EQ$79,(IF($A$8=Nutrients!$B$77,Nutrients!$EQ$77,Nutrients!$EQ$78)))))*AV$8))/2000*1000000000","v":0},{"$f":"(SUMPRODUCT(AW$9:AW$229,Nutrients!$EQ$8:$EQ$228)+(IF($A$7=Nutrients!$B$8,Nutrients!$EQ$8,Nutrients!$EQ$9)*AW$7)+(((IF($A$8=Nutrients!$B$79,Nutrients!$EQ$79,(IF($A$8=Nutrients!$B$77,Nutrients!$EQ$77,Nutrients!$EQ$78)))))*AW$8))/2000*1000000000","v":0}]
[]
["Vitamins (added levels)"]
["  Vit A, IU/ton",{"$f":"(SUMPRODUCT(B$9:B$229,Nutrients!$ES$8:$ES$228)+(IF($A$7=Nutrients!$B$8,Nutrients!$ES$8,Nutrients!$ES$9)*B$7)+(((IF($A$8=Nutrients!$B$79,Nutrients!$ES$79,(IF($A$8=Nutrients!$B$77,Nutrients!$ES$77,Nutrients!$ES$78)))))*B$8))","v":2250000},{"$f":"(SUMPRODUCT(C$9:C$229,Nutrients!$ES$8:$ES$228)+(IF($A$7=Nutrients!$B$8,Nutrients!$ES$8,Nutrients!$ES$9)*C$7)+(((IF($A$8=Nutrients!$B$79,Nutrients!$ES$79,(IF($A$8=Nutrients!$B$77,Nutrients!$ES$77,Nutrients!$ES$78)))))*C$8))","v":2250000},{"$f":"(SUMPRODUCT(D$9:D$229,Nutrients!$ES$8:$ES$228)+(IF($A$7=Nutrients!$B$8,Nutrients!$ES$8,Nutrients!$ES$9)*D$7)+(((IF($A$8=Nutrients!$B$79,Nutrients!$ES$79,(IF($A$8=Nutrients!$B$77,Nutrients!$ES$77,Nutrients!$ES$78)))))*D$8))","v":1875000},{"$f":"(SUMPRODUCT(E$9:E$229,Nutrients!$ES$8:$ES$228)+(IF($A$7=Nutrients!$B$8,Nutrients!$ES$8,Nutrients!$ES$9)*E$7)+(((IF($A$8=Nutrients!$B$79,Nutrients!$ES$79,(IF($A$8=Nutrients!$B$77,Nutrients!$ES$77,Nutrients!$ES$78)))))*E$8))","v":1500000},{"$f":"(SUMPRODUCT(F$9:F$229,Nutrients!$ES$8:$ES$228)+(IF($A$7=Nutrients!$B$8,Nutrients!$ES$8,Nutrients!$ES$9)*F$7)+(((IF($A$8=Nutrients!$B$79,Nutrients!$ES$79,(IF($A$8=Nutrients!$B$77,Nutrients!$ES$77,Nutrients!$ES$78)))))*F$8))","v":1125000},{"$f":"(SUMPRODUCT(G$9:G$229,Nutrients!$ES$8:$ES$228)+(IF($A$7=Nutrients!$B$8,Nutrients!$ES$8,Nutrients!$ES$9)*G$7)+(((IF($A$8=Nutrients!$B$79,Nutrients!$ES$79,(IF($A$8=Nutrients!$B$77,Nutrients!$ES$77,Nutrients!$ES$78)))))*G$8))","v":1125000},null,{"$f":"(SUMPRODUCT(I$9:I$229,Nutrients!$ES$8:$ES$228)+(IF($A$7=Nutrients!$B$8,Nutrients!$ES$8,Nutrients!$ES$9)*I$7)+(((IF($A$8=Nutrients!$B$79,Nutrients!$ES$79,(IF($A$8=Nutrients!$B$77,Nutrients!$ES$77,Nutrients!$ES$78)))))*I$8))","v":2250000},{"$f":"(SUMPRODUCT(J$9:J$229,Nutrients!$ES$8:$ES$228)+(IF($A$7=Nutrients!$B$8,Nutrients!$ES$8,Nutrients!$ES$9)*J$7)+(((IF($A$8=Nutrients!$B$79,Nutrients!$ES$79,(IF($A$8=Nutrients!$B$77,Nutrients!$ES$77,Nutrients!$ES$78)))))*J$8))","v":2250000},{"$f":"(SUMPRODUCT(K$9:K$229,Nutrients!$ES$8:$ES$228)+(IF($A$7=Nutrients!$B$8,Nutrients!$ES$8,Nutrients!$ES$9)*K$7)+(((IF($A$8=Nutrients!$B$79,Nutrients!$ES$79,(IF($A$8=Nutrients!$B$77,Nutrients!$ES$77,Nutrients!$ES$78)))))*K$8))","v":1875000},{"$f":"(SUMPRODUCT(L$9:L$229,Nutrients!$ES$8:$ES$228)+(IF($A$7=Nutrients!$B$8,Nutrients!$ES$8,Nutrients!$ES$9)*L$7)+(((IF($A$8=Nutrients!$B$79,Nutrients!$ES$79,(IF($A$8=Nutrients!$B$77,Nutrients!$ES$77,Nutrients!$ES$78)))))*L$8))","v":1500000},{"$f":"(SUMPRODUCT(M$9:M$229,Nutrients!$ES$8:$ES$228)+(IF($A$7=Nutrients!$B$8,Nutrients!$ES$8,Nutrients!$ES$9)*M$7)+(((IF($A$8=Nutrients!$B$79,Nutrients!$ES$79,(IF($A$8=Nutrients!$B$77,Nutrients!$ES$77,Nutrients!$ES$78)))))*M$8))","v":1125000},{"$f":"(SUMPRODUCT(N$9:N$229,Nutrients!$ES$8:$ES$228)+(IF($A$7=Nutrients!$B$8,Nutrients!$ES$8,Nutrients!$ES$9)*N$7)+(((IF($A$8=Nutrients!$B$79,Nutrients!$ES$79,(IF($A$8=Nutrients!$B$77,Nutrients!$ES$77,Nutrients!$ES$78)))))*N$8))","v":1125000},null,{"$f":"(SUMPRODUCT(P$9:P$229,Nutrients!$ES$8:$ES$228)+(IF($A$7=Nutrients!$B$8,Nutrients!$ES$8,Nutrients!$ES$9)*P$7)+(((IF($A$8=Nutrients!$B$79,Nutrients!$ES$79,(IF($A$8=Nutrients!$B$77,Nutrients!$ES$77,Nutrients!$ES$78)))))*P$8))","v":2250000},{"$f":"(SUMPRODUCT(Q$9:Q$229,Nutrients!$ES$8:$ES$228)+(IF($A$7=Nutrients!$B$8,Nutrients!$ES$8,Nutrients!$ES$9)*Q$7)+(((IF($A$8=Nutrients!$B$79,Nutrients!$ES$79,(IF($A$8=Nutrients!$B$77,Nutrients!$ES$77,Nutrients!$ES$78)))))*Q$8))","v":2250000},{"$f":"(SUMPRODUCT(R$9:R$229,Nutrients!$ES$8:$ES$228)+(IF($A$7=Nutrients!$B$8,Nutrients!$ES$8,Nutrients!$ES$9)*R$7)+(((IF($A$8=Nutrients!$B$79,Nutrients!$ES$79,(IF($A$8=Nutrients!$B$77,Nutrients!$ES$77,Nutrients!$ES$78)))))*R$8))","v":1875000},{"$f":"(SUMPRODUCT(S$9:S$229,Nutrients!$ES$8:$ES$228)+(IF($A$7=Nutrients!$B$8,Nutrients!$ES$8,Nutrients!$ES$9)*S$7)+(((IF($A$8=Nutrients!$B$79,Nutrients!$ES$79,(IF($A$8=Nutrients!$B$77,Nutrients!$ES$77,Nutrients!$ES$78)))))*S$8))","v":1500000},{"$f":"(SUMPRODUCT(T$9:T$229,Nutrients!$ES$8:$ES$228)+(IF($A$7=Nutrients!$B$8,Nutrients!$ES$8,Nutrients!$ES$9)*T$7)+(((IF($A$8=Nutrients!$B$79,Nutrients!$ES$79,(IF($A$8=Nutrients!$B$77,Nutrients!$ES$77,Nutrients!$ES$78)))))*T$8))","v":1125000},{"$f":"(SUMPRODUCT(U$9:U$229,Nutrients!$ES$8:$ES$228)+(IF($A$7=Nutrients!$B$8,Nutrients!$ES$8,Nutrients!$ES$9)*U$7)+(((IF($A$8=Nutrients!$B$79,Nutrients!$ES$79,(IF($A$8=Nutrients!$B$77,Nutrients!$ES$77,Nutrients!$ES$78)))))*U$8))","v":1125000},null,{"$f":"(SUMPRODUCT(W$9:W$229,Nutrients!$ES$8:$ES$228)+(IF($A$7=Nutrients!$B$8,Nutrients!$ES$8,Nutrients!$ES$9)*W$7)+(((IF($A$8=Nutrients!$B$79,Nutrients!$ES$79,(IF($A$8=Nutrients!$B$77,Nutrients!$ES$77,Nutrients!$ES$78)))))*W$8))","v":2250000},{"$f":"(SUMPRODUCT(X$9:X$229,Nutrients!$ES$8:$ES$228)+(IF($A$7=Nutrients!$B$8,Nutrients!$ES$8,Nutrients!$ES$9)*X$7)+(((IF($A$8=Nutrients!$B$79,Nutrients!$ES$79,(IF($A$8=Nutrients!$B$77,Nutrients!$ES$77,Nutrients!$ES$78)))))*X$8))","v":2250000},{"$f":"(SUMPRODUCT(Y$9:Y$229,Nutrients!$ES$8:$ES$228)+(IF($A$7=Nutrients!$B$8,Nutrients!$ES$8,Nutrients!$ES$9)*Y$7)+(((IF($A$8=Nutrients!$B$79,Nutrients!$ES$79,(IF($A$8=Nutrients!$B$77,Nutrients!$ES$77,Nutrients!$ES$78)))))*Y$8))","v":1875000},{"$f":"(SUMPRODUCT(Z$9:Z$229,Nutrients!$ES$8:$ES$228)+(IF($A$7=Nutrients!$B$8,Nutrients!$ES$8,Nutrients!$ES$9)*Z$7)+(((IF($A$8=Nutrients!$B$79,Nutrients!$ES$79,(IF($A$8=Nutrients!$B$77,Nutrients!$ES$77,Nutrients!$ES$78)))))*Z$8))","v":1500000},{"$f":"(SUMPRODUCT(AA$9:AA$229,Nutrients!$ES$8:$ES$228)+(IF($A$7=Nutrients!$B$8,Nutrients!$ES$8,Nutrients!$ES$9)*AA$7)+(((IF($A$8=Nutrients!$B$79,Nutrients!$ES$79,(IF($A$8=Nutrients!$B$77,Nutrients!$ES$77,Nutrients!$ES$78)))))*AA$8))","v":1125000},{"$f":"(SUMPRODUCT(AB$9:AB$229,Nutrients!$ES$8:$ES$228)+(IF($A$7=Nutrients!$B$8,Nutrients!$ES$8,Nutrients!$ES$9)*AB$7)+(((IF($A$8=Nutrients!$B$79,Nutrients!$ES$79,(IF($A$8=Nutrients!$B$77,Nutrients!$ES$77,Nutrients!$ES$78)))))*AB$8))","v":1125000},null,{"$f":"(SUMPRODUCT(AD$9:AD$229,Nutrients!$ES$8:$ES$228)+(IF($A$7=Nutrients!$B$8,Nutrients!$ES$8,Nutrients!$ES$9)*AD$7)+(((IF($A$8=Nutrients!$B$79,Nutrients!$ES$79,(IF($A$8=Nutrients!$B$77,Nutrients!$ES$77,Nutrients!$ES$78)))))*AD$8))","v":2250000},{"$f":"(SUMPRODUCT(AE$9:AE$229,Nutrients!$ES$8:$ES$228)+(IF($A$7=Nutrients!$B$8,Nutrients!$ES$8,Nutrients!$ES$9)*AE$7)+(((IF($A$8=Nutrients!$B$79,Nutrients!$ES$79,(IF($A$8=Nutrients!$B$77,Nutrients!$ES$77,Nutrients!$ES$78)))))*AE$8))","v":2250000},{"$f":"(SUMPRODUCT(AF$9:AF$229,Nutrients!$ES$8:$ES$228)+(IF($A$7=Nutrients!$B$8,Nutrients!$ES$8,Nutrients!$ES$9)*AF$7)+(((IF($A$8=Nutrients!$B$79,Nutrients!$ES$79,(IF($A$8=Nutrients!$B$77,Nutrients!$ES$77,Nutrients!$ES$78)))))*AF$8))","v":1875000},{"$f":"(SUMPRODUCT(AG$9:AG$229,Nutrients!$ES$8:$ES$228)+(IF($A$7=Nutrients!$B$8,Nutrients!$ES$8,Nutrients!$ES$9)*AG$7)+(((IF($A$8=Nutrients!$B$79,Nutrients!$ES$79,(IF($A$8=Nutrients!$B$77,Nutrients!$ES$77,Nutrients!$ES$78)))))*AG$8))","v":1500000},{"$f":"(SUMPRODUCT(AH$9:AH$229,Nutrients!$ES$8:$ES$228)+(IF($A$7=Nutrients!$B$8,Nutrients!$ES$8,Nutrients!$ES$9)*AH$7)+(((IF($A$8=Nutrients!$B$79,Nutrients!$ES$79,(IF($A$8=Nutrients!$B$77,Nutrients!$ES$77,Nutrients!$ES$78)))))*AH$8))","v":1125000},{"$f":"(SUMPRODUCT(AI$9:AI$229,Nutrients!$ES$8:$ES$228)+(IF($A$7=Nutrients!$B$8,Nutrients!$ES$8,Nutrients!$ES$9)*AI$7)+(((IF($A$8=Nutrients!$B$79,Nutrients!$ES$79,(IF($A$8=Nutrients!$B$77,Nutrients!$ES$77,Nutrients!$ES$78)))))*AI$8))","v":1125000},null,{"$f":"(SUMPRODUCT(AK$9:AK$229,Nutrients!$ES$8:$ES$228)+(IF($A$7=Nutrients!$B$8,Nutrients!$ES$8,Nutrients!$ES$9)*AK$7)+(((IF($A$8=Nutrients!$B$79,Nutrients!$ES$79,(IF($A$8=Nutrients!$B$77,Nutrients!$ES$77,Nutrients!$ES$78)))))*AK$8))","v":2250000},{"$f":"(SUMPRODUCT(AL$9:AL$229,Nutrients!$ES$8:$ES$228)+(IF($A$7=Nutrients!$B$8,Nutrients!$ES$8,Nutrients!$ES$9)*AL$7)+(((IF($A$8=Nutrients!$B$79,Nutrients!$ES$79,(IF($A$8=Nutrients!$B$77,Nutrients!$ES$77,Nutrients!$ES$78)))))*AL$8))","v":2250000},{"$f":"(SUMPRODUCT(AM$9:AM$229,Nutrients!$ES$8:$ES$228)+(IF($A$7=Nutrients!$B$8,Nutrients!$ES$8,Nutrients!$ES$9)*AM$7)+(((IF($A$8=Nutrients!$B$79,Nutrients!$ES$79,(IF($A$8=Nutrients!$B$77,Nutrients!$ES$77,Nutrients!$ES$78)))))*AM$8))","v":1875000},{"$f":"(SUMPRODUCT(AN$9:AN$229,Nutrients!$ES$8:$ES$228)+(IF($A$7=Nutrients!$B$8,Nutrients!$ES$8,Nutrients!$ES$9)*AN$7)+(((IF($A$8=Nutrients!$B$79,Nutrients!$ES$79,(IF($A$8=Nutrients!$B$77,Nutrients!$ES$77,Nutrients!$ES$78)))))*AN$8))","v":1500000},{"$f":"(SUMPRODUCT(AO$9:AO$229,Nutrients!$ES$8:$ES$228)+(IF($A$7=Nutrients!$B$8,Nutrients!$ES$8,Nutrients!$ES$9)*AO$7)+(((IF($A$8=Nutrients!$B$79,Nutrients!$ES$79,(IF($A$8=Nutrients!$B$77,Nutrients!$ES$77,Nutrients!$ES$78)))))*AO$8))","v":1125000},{"$f":"(SUMPRODUCT(AP$9:AP$229,Nutrients!$ES$8:$ES$228)+(IF($A$7=Nutrients!$B$8,Nutrients!$ES$8,Nutrients!$ES$9)*AP$7)+(((IF($A$8=Nutrients!$B$79,Nutrients!$ES$79,(IF($A$8=Nutrients!$B$77,Nutrients!$ES$77,Nutrients!$ES$78)))))*AP$8))","v":1125000},null,{"$f":"(SUMPRODUCT(AR$9:AR$229,Nutrients!$ES$8:$ES$228)+(IF($A$7=Nutrients!$B$8,Nutrients!$ES$8,Nutrients!$ES$9)*AR$7)+(((IF($A$8=Nutrients!$B$79,Nutrients!$ES$79,(IF($A$8=Nutrients!$B$77,Nutrients!$ES$77,Nutrients!$ES$78)))))*AR$8))","v":2250000},{"$f":"(SUMPRODUCT(AS$9:AS$229,Nutrients!$ES$8:$ES$228)+(IF($A$7=Nutrients!$B$8,Nutrients!$ES$8,Nutrients!$ES$9)*AS$7)+(((IF($A$8=Nutrients!$B$79,Nutrients!$ES$79,(IF($A$8=Nutrients!$B$77,Nutrients!$ES$77,Nutrients!$ES$78)))))*AS$8))","v":2250000},{"$f":"(SUMPRODUCT(AT$9:AT$229,Nutrients!$ES$8:$ES$228)+(IF($A$7=Nutrients!$B$8,Nutrients!$ES$8,Nutrients!$ES$9)*AT$7)+(((IF($A$8=Nutrients!$B$79,Nutrients!$ES$79,(IF($A$8=Nutrients!$B$77,Nutrients!$ES$77,Nutrients!$ES$78)))))*AT$8))","v":1875000},{"$f":"(SUMPRODUCT(AU$9:AU$229,Nutrients!$ES$8:$ES$228)+(IF($A$7=Nutrients!$B$8,Nutrients!$ES$8,Nutrients!$ES$9)*AU$7)+(((IF($A$8=Nutrients!$B$79,Nutrients!$ES$79,(IF($A$8=Nutrients!$B$77,Nutrients!$ES$77,Nutrients!$ES$78)))))*AU$8))","v":1500000},{"$f":"(SUMPRODUCT(AV$9:AV$229,Nutrients!$ES$8:$ES$228)+(IF($A$7=Nutrients!$B$8,Nutrients!$ES$8,Nutrients!$ES$9)*AV$7)+(((IF($A$8=Nutrients!$B$79,Nutrients!$ES$79,(IF($A$8=Nutrients!$B$77,Nutrients!$ES$77,Nutrients!$ES$78)))))*AV$8))","v":1125000},{"$f":"(SUMPRODUCT(AW$9:AW$229,Nutrients!$ES$8:$ES$228)+(IF($A$7=Nutrients!$B$8,Nutrients!$ES$8,Nutrients!$ES$9)*AW$7)+(((IF($A$8=Nutrients!$B$79,Nutrients!$ES$79,(IF($A$8=Nutrients!$B$77,Nutrients!$ES$77,Nutrients!$ES$78)))))*AW$8))","v":1125000}]
["  Vit D, IU/ton",{"$f":"(SUMPRODUCT(B$9:B$229,Nutrients!$ET$8:$ET$228)+(IF($A$7=Nutrients!$B$8,Nutrients!$ET$8,Nutrients!$ET$9)*B$7)+(((IF($A$8=Nutrients!$B$79,Nutrients!$ET$79,(IF($A$8=Nutrients!$B$77,Nutrients!$ET$77,Nutrients!$ET$78)))))*B$8))","v":900000},{"$f":"(SUMPRODUCT(C$9:C$229,Nutrients!$ET$8:$ET$228)+(IF($A$7=Nutrients!$B$8,Nutrients!$ET$8,Nutrients!$ET$9)*C$7)+(((IF($A$8=Nutrients!$B$79,Nutrients!$ET$79,(IF($A$8=Nutrients!$B$77,Nutrients!$ET$77,Nutrients!$ET$78)))))*C$8))","v":900000},{"$f":"(SUMPRODUCT(D$9:D$229,Nutrients!$ET$8:$ET$228)+(IF($A$7=Nutrients!$B$8,Nutrients!$ET$8,Nutrients!$ET$9)*D$7)+(((IF($A$8=Nutrients!$B$79,Nutrients!$ET$79,(IF($A$8=Nutrients!$B$77,Nutrients!$ET$77,Nutrients!$ET$78)))))*D$8))","v":750000},{"$f":"(SUMPRODUCT(E$9:E$229,Nutrients!$ET$8:$ET$228)+(IF($A$7=Nutrients!$B$8,Nutrients!$ET$8,Nutrients!$ET$9)*E$7)+(((IF($A$8=Nutrients!$B$79,Nutrients!$ET$79,(IF($A$8=Nutrients!$B$77,Nutrients!$ET$77,Nutrients!$ET$78)))))*E$8))","v":600000},{"$f":"(SUMPRODUCT(F$9:F$229,Nutrients!$ET$8:$ET$228)+(IF($A$7=Nutrients!$B$8,Nutrients!$ET$8,Nutrients!$ET$9)*F$7)+(((IF($A$8=Nutrients!$B$79,Nutrients!$ET$79,(IF($A$8=Nutrients!$B$77,Nutrients!$ET$77,Nutrients!$ET$78)))))*F$8))","v":450000},{"$f":"(SUMPRODUCT(G$9:G$229,Nutrients!$ET$8:$ET$228)+(IF($A$7=Nutrients!$B$8,Nutrients!$ET$8,Nutrients!$ET$9)*G$7)+(((IF($A$8=Nutrients!$B$79,Nutrients!$ET$79,(IF($A$8=Nutrients!$B$77,Nutrients!$ET$77,Nutrients!$ET$78)))))*G$8))","v":450000},null,{"$f":"(SUMPRODUCT(I$9:I$229,Nutrients!$ET$8:$ET$228)+(IF($A$7=Nutrients!$B$8,Nutrients!$ET$8,Nutrients!$ET$9)*I$7)+(((IF($A$8=Nutrients!$B$79,Nutrients!$ET$79,(IF($A$8=Nutrients!$B$77,Nutrients!$ET$77,Nutrients!$ET$78)))))*I$8))","v":900000},{"$f":"(SUMPRODUCT(J$9:J$229,Nutrients!$ET$8:$ET$228)+(IF($A$7=Nutrients!$B$8,Nutrients!$ET$8,Nutrients!$ET$9)*J$7)+(((IF($A$8=Nutrients!$B$79,Nutrients!$ET$79,(IF($A$8=Nutrients!$B$77,Nutrients!$ET$77,Nutrients!$ET$78)))))*J$8))","v":900000},{"$f":"(SUMPRODUCT(K$9:K$229,Nutrients!$ET$8:$ET$228)+(IF($A$7=Nutrients!$B$8,Nutrients!$ET$8,Nutrients!$ET$9)*K$7)+(((IF($A$8=Nutrients!$B$79,Nutrients!$ET$79,(IF($A$8=Nutrients!$B$77,Nutrients!$ET$77,Nutrients!$ET$78)))))*K$8))","v":750000},{"$f":"(SUMPRODUCT(L$9:L$229,Nutrients!$ET$8:$ET$228)+(IF($A$7=Nutrients!$B$8,Nutrients!$ET$8,Nutrients!$ET$9)*L$7)+(((IF($A$8=Nutrients!$B$79,Nutrients!$ET$79,(IF($A$8=Nutrients!$B$77,Nutrients!$ET$77,Nutrients!$ET$78)))))*L$8))","v":600000},{"$f":"(SUMPRODUCT(M$9:M$229,Nutrients!$ET$8:$ET$228)+(IF($A$7=Nutrients!$B$8,Nutrients!$ET$8,Nutrients!$ET$9)*M$7)+(((IF($A$8=Nutrients!$B$79,Nutrients!$ET$79,(IF($A$8=Nutrients!$B$77,Nutrients!$ET$77,Nutrients!$ET$78)))))*M$8))","v":450000},{"$f":"(SUMPRODUCT(N$9:N$229,Nutrients!$ET$8:$ET$228)+(IF($A$7=Nutrients!$B$8,Nutrients!$ET$8,Nutrients!$ET$9)*N$7)+(((IF($A$8=Nutrients!$B$79,Nutrients!$ET$79,(IF($A$8=Nutrients!$B$77,Nutrients!$ET$77,Nutrients!$ET$78)))))*N$8))","v":450000},null,{"$f":"(SUMPRODUCT(P$9:P$229,Nutrients!$ET$8:$ET$228)+(IF($A$7=Nutrients!$B$8,Nutrients!$ET$8,Nutrients!$ET$9)*P$7)+(((IF($A$8=Nutrients!$B$79,Nutrients!$ET$79,(IF($A$8=Nutrients!$B$77,Nutrients!$ET$77,Nutrients!$ET$78)))))*P$8))","v":900000},{"$f":"(SUMPRODUCT(Q$9:Q$229,Nutrients!$ET$8:$ET$228)+(IF($A$7=Nutrients!$B$8,Nutrients!$ET$8,Nutrients!$ET$9)*Q$7)+(((IF($A$8=Nutrients!$B$79,Nutrients!$ET$79,(IF($A$8=Nutrients!$B$77,Nutrients!$ET$77,Nutrients!$ET$78)))))*Q$8))","v":900000},{"$f":"(SUMPRODUCT(R$9:R$229,Nutrients!$ET$8:$ET$228)+(IF($A$7=Nutrients!$B$8,Nutrients!$ET$8,Nutrients!$ET$9)*R$7)+(((IF($A$8=Nutrients!$B$79,Nutrients!$ET$79,(IF($A$8=Nutrients!$B$77,Nutrients!$ET$77,Nutrients!$ET$78)))))*R$8))","v":750000},{"$f":"(SUMPRODUCT(S$9:S$229,Nutrients!$ET$8:$ET$228)+(IF($A$7=Nutrients!$B$8,Nutrients!$ET$8,Nutrients!$ET$9)*S$7)+(((IF($A$8=Nutrients!$B$79,Nutrients!$ET$79,(IF($A$8=Nutrients!$B$77,Nutrients!$ET$77,Nutrients!$ET$78)))))*S$8))","v":600000},{"$f":"(SUMPRODUCT(T$9:T$229,Nutrients!$ET$8:$ET$228)+(IF($A$7=Nutrients!$B$8,Nutrients!$ET$8,Nutrients!$ET$9)*T$7)+(((IF($A$8=Nutrients!$B$79,Nutrients!$ET$79,(IF($A$8=Nutrients!$B$77,Nutrients!$ET$77,Nutrients!$ET$78)))))*T$8))","v":450000},{"$f":"(SUMPRODUCT(U$9:U$229,Nutrients!$ET$8:$ET$228)+(IF($A$7=Nutrients!$B$8,Nutrients!$ET$8,Nutrients!$ET$9)*U$7)+(((IF($A$8=Nutrients!$B$79,Nutrients!$ET$79,(IF($A$8=Nutrients!$B$77,Nutrients!$ET$77,Nutrients!$ET$78)))))*U$8))","v":450000},null,{"$f":"(SUMPRODUCT(W$9:W$229,Nutrients!$ET$8:$ET$228)+(IF($A$7=Nutrients!$B$8,Nutrients!$ET$8,Nutrients!$ET$9)*W$7)+(((IF($A$8=Nutrients!$B$79,Nutrients!$ET$79,(IF($A$8=Nutrients!$B$77,Nutrients!$ET$77,Nutrients!$ET$78)))))*W$8))","v":900000},{"$f":"(SUMPRODUCT(X$9:X$229,Nutrients!$ET$8:$ET$228)+(IF($A$7=Nutrients!$B$8,Nutrients!$ET$8,Nutrients!$ET$9)*X$7)+(((IF($A$8=Nutrients!$B$79,Nutrients!$ET$79,(IF($A$8=Nutrients!$B$77,Nutrients!$ET$77,Nutrients!$ET$78)))))*X$8))","v":900000},{"$f":"(SUMPRODUCT(Y$9:Y$229,Nutrients!$ET$8:$ET$228)+(IF($A$7=Nutrients!$B$8,Nutrients!$ET$8,Nutrients!$ET$9)*Y$7)+(((IF($A$8=Nutrients!$B$79,Nutrients!$ET$79,(IF($A$8=Nutrients!$B$77,Nutrients!$ET$77,Nutrients!$ET$78)))))*Y$8))","v":750000},{"$f":"(SUMPRODUCT(Z$9:Z$229,Nutrients!$ET$8:$ET$228)+(IF($A$7=Nutrients!$B$8,Nutrients!$ET$8,Nutrients!$ET$9)*Z$7)+(((IF($A$8=Nutrients!$B$79,Nutrients!$ET$79,(IF($A$8=Nutrients!$B$77,Nutrients!$ET$77,Nutrients!$ET$78)))))*Z$8))","v":600000},{"$f":"(SUMPRODUCT(AA$9:AA$229,Nutrients!$ET$8:$ET$228)+(IF($A$7=Nutrients!$B$8,Nutrients!$ET$8,Nutrients!$ET$9)*AA$7)+(((IF($A$8=Nutrients!$B$79,Nutrients!$ET$79,(IF($A$8=Nutrients!$B$77,Nutrients!$ET$77,Nutrients!$ET$78)))))*AA$8))","v":450000},{"$f":"(SUMPRODUCT(AB$9:AB$229,Nutrients!$ET$8:$ET$228)+(IF($A$7=Nutrients!$B$8,Nutrients!$ET$8,Nutrients!$ET$9)*AB$7)+(((IF($A$8=Nutrients!$B$79,Nutrients!$ET$79,(IF($A$8=Nutrients!$B$77,Nutrients!$ET$77,Nutrients!$ET$78)))))*AB$8))","v":450000},null,{"$f":"(SUMPRODUCT(AD$9:AD$229,Nutrients!$ET$8:$ET$228)+(IF($A$7=Nutrients!$B$8,Nutrients!$ET$8,Nutrients!$ET$9)*AD$7)+(((IF($A$8=Nutrients!$B$79,Nutrients!$ET$79,(IF($A$8=Nutrients!$B$77,Nutrients!$ET$77,Nutrients!$ET$78)))))*AD$8))","v":900000},{"$f":"(SUMPRODUCT(AE$9:AE$229,Nutrients!$ET$8:$ET$228)+(IF($A$7=Nutrients!$B$8,Nutrients!$ET$8,Nutrients!$ET$9)*AE$7)+(((IF($A$8=Nutrients!$B$79,Nutrients!$ET$79,(IF($A$8=Nutrients!$B$77,Nutrients!$ET$77,Nutrients!$ET$78)))))*AE$8))","v":900000},{"$f":"(SUMPRODUCT(AF$9:AF$229,Nutrients!$ET$8:$ET$228)+(IF($A$7=Nutrients!$B$8,Nutrients!$ET$8,Nutrients!$ET$9)*AF$7)+(((IF($A$8=Nutrients!$B$79,Nutrients!$ET$79,(IF($A$8=Nutrients!$B$77,Nutrients!$ET$77,Nutrients!$ET$78)))))*AF$8))","v":750000},{"$f":"(SUMPRODUCT(AG$9:AG$229,Nutrients!$ET$8:$ET$228)+(IF($A$7=Nutrients!$B$8,Nutrients!$ET$8,Nutrients!$ET$9)*AG$7)+(((IF($A$8=Nutrients!$B$79,Nutrients!$ET$79,(IF($A$8=Nutrients!$B$77,Nutrients!$ET$77,Nutrients!$ET$78)))))*AG$8))","v":600000},{"$f":"(SUMPRODUCT(AH$9:AH$229,Nutrients!$ET$8:$ET$228)+(IF($A$7=Nutrients!$B$8,Nutrients!$ET$8,Nutrients!$ET$9)*AH$7)+(((IF($A$8=Nutrients!$B$79,Nutrients!$ET$79,(IF($A$8=Nutrients!$B$77,Nutrients!$ET$77,Nutrients!$ET$78)))))*AH$8))","v":450000},{"$f":"(SUMPRODUCT(AI$9:AI$229,Nutrients!$ET$8:$ET$228)+(IF($A$7=Nutrients!$B$8,Nutrients!$ET$8,Nutrients!$ET$9)*AI$7)+(((IF($A$8=Nutrients!$B$79,Nutrients!$ET$79,(IF($A$8=Nutrients!$B$77,Nutrients!$ET$77,Nutrients!$ET$78)))))*AI$8))","v":450000},null,{"$f":"(SUMPRODUCT(AK$9:AK$229,Nutrients!$ET$8:$ET$228)+(IF($A$7=Nutrients!$B$8,Nutrients!$ET$8,Nutrients!$ET$9)*AK$7)+(((IF($A$8=Nutrients!$B$79,Nutrients!$ET$79,(IF($A$8=Nutrients!$B$77,Nutrients!$ET$77,Nutrients!$ET$78)))))*AK$8))","v":900000},{"$f":"(SUMPRODUCT(AL$9:AL$229,Nutrients!$ET$8:$ET$228)+(IF($A$7=Nutrients!$B$8,Nutrients!$ET$8,Nutrients!$ET$9)*AL$7)+(((IF($A$8=Nutrients!$B$79,Nutrients!$ET$79,(IF($A$8=Nutrients!$B$77,Nutrients!$ET$77,Nutrients!$ET$78)))))*AL$8))","v":900000},{"$f":"(SUMPRODUCT(AM$9:AM$229,Nutrients!$ET$8:$ET$228)+(IF($A$7=Nutrients!$B$8,Nutrients!$ET$8,Nutrients!$ET$9)*AM$7)+(((IF($A$8=Nutrients!$B$79,Nutrients!$ET$79,(IF($A$8=Nutrients!$B$77,Nutrients!$ET$77,Nutrients!$ET$78)))))*AM$8))","v":750000},{"$f":"(SUMPRODUCT(AN$9:AN$229,Nutrients!$ET$8:$ET$228)+(IF($A$7=Nutrients!$B$8,Nutrients!$ET$8,Nutrients!$ET$9)*AN$7)+(((IF($A$8=Nutrients!$B$79,Nutrients!$ET$79,(IF($A$8=Nutrients!$B$77,Nutrients!$ET$77,Nutrients!$ET$78)))))*AN$8))","v":600000},{"$f":"(SUMPRODUCT(AO$9:AO$229,Nutrients!$ET$8:$ET$228)+(IF($A$7=Nutrients!$B$8,Nutrients!$ET$8,Nutrients!$ET$9)*AO$7)+(((IF($A$8=Nutrients!$B$79,Nutrients!$ET$79,(IF($A$8=Nutrients!$B$77,Nutrients!$ET$77,Nutrients!$ET$78)))))*AO$8))","v":450000},{"$f":"(SUMPRODUCT(AP$9:AP$229,Nutrients!$ET$8:$ET$228)+(IF($A$7=Nutrients!$B$8,Nutrients!$ET$8,Nutrients!$ET$9)*AP$7)+(((IF($A$8=Nutrients!$B$79,Nutrients!$ET$79,(IF($A$8=Nutrients!$B$77,Nutrients!$ET$77,Nutrients!$ET$78)))))*AP$8))","v":450000},null,{"$f":"(SUMPRODUCT(AR$9:AR$229,Nutrients!$ET$8:$ET$228)+(IF($A$7=Nutrients!$B$8,Nutrients!$ET$8,Nutrients!$ET$9)*AR$7)+(((IF($A$8=Nutrients!$B$79,Nutrients!$ET$79,(IF($A$8=Nutrients!$B$77,Nutrients!$ET$77,Nutrients!$ET$78)))))*AR$8))","v":900000},{"$f":"(SUMPRODUCT(AS$9:AS$229,Nutrients!$ET$8:$ET$228)+(IF($A$7=Nutrients!$B$8,Nutrients!$ET$8,Nutrients!$ET$9)*AS$7)+(((IF($A$8=Nutrients!$B$79,Nutrients!$ET$79,(IF($A$8=Nutrients!$B$77,Nutrients!$ET$77,Nutrients!$ET$78)))))*AS$8))","v":900000},{"$f":"(SUMPRODUCT(AT$9:AT$229,Nutrients!$ET$8:$ET$228)+(IF($A$7=Nutrients!$B$8,Nutrients!$ET$8,Nutrients!$ET$9)*AT$7)+(((IF($A$8=Nutrients!$B$79,Nutrients!$ET$79,(IF($A$8=Nutrients!$B$77,Nutrients!$ET$77,Nutrients!$ET$78)))))*AT$8))","v":750000},{"$f":"(SUMPRODUCT(AU$9:AU$229,Nutrients!$ET$8:$ET$228)+(IF($A$7=Nutrients!$B$8,Nutrients!$ET$8,Nutrients!$ET$9)*AU$7)+(((IF($A$8=Nutrients!$B$79,Nutrients!$ET$79,(IF($A$8=Nutrients!$B$77,Nutrients!$ET$77,Nutrients!$ET$78)))))*AU$8))","v":600000},{"$f":"(SUMPRODUCT(AV$9:AV$229,Nutrients!$ET$8:$ET$228)+(IF($A$7=Nutrients!$B$8,Nutrients!$ET$8,Nutrients!$ET$9)*AV$7)+(((IF($A$8=Nutrients!$B$79,Nutrients!$ET$79,(IF($A$8=Nutrients!$B$77,Nutrients!$ET$77,Nutrients!$ET$78)))))*AV$8))","v":450000},{"$f":"(SUMPRODUCT(AW$9:AW$229,Nutrients!$ET$8:$ET$228)+(IF($A$7=Nutrients!$B$8,Nutrients!$ET$8,Nutrients!$ET$9)*AW$7)+(((IF($A$8=Nutrients!$B$79,Nutrients!$ET$79,(IF($A$8=Nutrients!$B$77,Nutrients!$ET$77,Nutrients!$ET$78)))))*AW$8))","v":450000}]
["  Vit E, IU/ton",{"$f":"(SUMPRODUCT(B$9:B$229,Nutrients!$EU$8:$EU$228)+(IF($A$7=Nutrients!$B$8,Nutrients!$EU$8,Nutrients!$EU$9)*B$7)+(((IF($A$8=Nutrients!$B$79,Nutrients!$EU$79,(IF($A$8=Nutrients!$B$77,Nutrients!$EU$77,Nutrients!$EU$78)))))*B$8))","v":24000},{"$f":"(SUMPRODUCT(C$9:C$229,Nutrients!$EU$8:$EU$228)+(IF($A$7=Nutrients!$B$8,Nutrients!$EU$8,Nutrients!$EU$9)*C$7)+(((IF($A$8=Nutrients!$B$79,Nutrients!$EU$79,(IF($A$8=Nutrients!$B$77,Nutrients!$EU$77,Nutrients!$EU$78)))))*C$8))","v":24000},{"$f":"(SUMPRODUCT(D$9:D$229,Nutrients!$EU$8:$EU$228)+(IF($A$7=Nutrients!$B$8,Nutrients!$EU$8,Nutrients!$EU$9)*D$7)+(((IF($A$8=Nutrients!$B$79,Nutrients!$EU$79,(IF($A$8=Nutrients!$B$77,Nutrients!$EU$77,Nutrients!$EU$78)))))*D$8))","v":20000},{"$f":"(SUMPRODUCT(E$9:E$229,Nutrients!$EU$8:$EU$228)+(IF($A$7=Nutrients!$B$8,Nutrients!$EU$8,Nutrients!$EU$9)*E$7)+(((IF($A$8=Nutrients!$B$79,Nutrients!$EU$79,(IF($A$8=Nutrients!$B$77,Nutrients!$EU$77,Nutrients!$EU$78)))))*E$8))","v":16000},{"$f":"(SUMPRODUCT(F$9:F$229,Nutrients!$EU$8:$EU$228)+(IF($A$7=Nutrients!$B$8,Nutrients!$EU$8,Nutrients!$EU$9)*F$7)+(((IF($A$8=Nutrients!$B$79,Nutrients!$EU$79,(IF($A$8=Nutrients!$B$77,Nutrients!$EU$77,Nutrients!$EU$78)))))*F$8))","v":12000},{"$f":"(SUMPRODUCT(G$9:G$229,Nutrients!$EU$8:$EU$228)+(IF($A$7=Nutrients!$B$8,Nutrients!$EU$8,Nutrients!$EU$9)*G$7)+(((IF($A$8=Nutrients!$B$79,Nutrients!$EU$79,(IF($A$8=Nutrients!$B$77,Nutrients!$EU$77,Nutrients!$EU$78)))))*G$8))","v":12000},null,{"$f":"(SUMPRODUCT(I$9:I$229,Nutrients!$EU$8:$EU$228)+(IF($A$7=Nutrients!$B$8,Nutrients!$EU$8,Nutrients!$EU$9)*I$7)+(((IF($A$8=Nutrients!$B$79,Nutrients!$EU$79,(IF($A$8=Nutrients!$B$77,Nutrients!$EU$77,Nutrients!$EU$78)))))*I$8))","v":24000},{"$f":"(SUMPRODUCT(J$9:J$229,Nutrients!$EU$8:$EU$228)+(IF($A$7=Nutrients!$B$8,Nutrients!$EU$8,Nutrients!$EU$9)*J$7)+(((IF($A$8=Nutrients!$B$79,Nutrients!$EU$79,(IF($A$8=Nutrients!$B$77,Nutrients!$EU$77,Nutrients!$EU$78)))))*J$8))","v":24000},{"$f":"(SUMPRODUCT(K$9:K$229,Nutrients!$EU$8:$EU$228)+(IF($A$7=Nutrients!$B$8,Nutrients!$EU$8,Nutrients!$EU$9)*K$7)+(((IF($A$8=Nutrients!$B$79,Nutrients!$EU$79,(IF($A$8=Nutrients!$B$77,Nutrients!$EU$77,Nutrients!$EU$78)))))*K$8))","v":20000},{"$f":"(SUMPRODUCT(L$9:L$229,Nutrients!$EU$8:$EU$228)+(IF($A$7=Nutrients!$B$8,Nutrients!$EU$8,Nutrients!$EU$9)*L$7)+(((IF($A$8=Nutrients!$B$79,Nutrients!$EU$79,(IF($A$8=Nutrients!$B$77,Nutrients!$EU$77,Nutrients!$EU$78)))))*L$8))","v":16000},{"$f":"(SUMPRODUCT(M$9:M$229,Nutrients!$EU$8:$EU$228)+(IF($A$7=Nutrients!$B$8,Nutrients!$EU$8,Nutrients!$EU$9)*M$7)+(((IF($A$8=Nutrients!$B$79,Nutrients!$EU$79,(IF($A$8=Nutrients!$B$77,Nutrients!$EU$77,Nutrients!$EU$78)))))*M$8))","v":12000},{"$f":"(SUMPRODUCT(N$9:N$229,Nutrients!$EU$8:$EU$228)+(IF($A$7=Nutrients!$B$8,Nutrients!$EU$8,Nutrients!$EU$9)*N$7)+(((IF($A$8=Nutrients!$B$79,Nutrients!$EU$79,(IF($A$8=Nutrients!$B$77,Nutrients!$EU$77,Nutrients!$EU$78)))))*N$8))","v":12000},null,{"$f":"(SUMPRODUCT(P$9:P$229,Nutrients!$EU$8:$EU$228)+(IF($A$7=Nutrients!$B$8,Nutrients!$EU$8,Nutrients!$EU$9)*P$7)+(((IF($A$8=Nutrients!$B$79,Nutrients!$EU$79,(IF($A$8=Nutrients!$B$77,Nutrients!$EU$77,Nutrients!$EU$78)))))*P$8))","v":24000},{"$f":"(SUMPRODUCT(Q$9:Q$229,Nutrients!$EU$8:$EU$228)+(IF($A$7=Nutrients!$B$8,Nutrients!$EU$8,Nutrients!$EU$9)*Q$7)+(((IF($A$8=Nutrients!$B$79,Nutrients!$EU$79,(IF($A$8=Nutrients!$B$77,Nutrients!$EU$77,Nutrients!$EU$78)))))*Q$8))","v":24000},{"$f":"(SUMPRODUCT(R$9:R$229,Nutrients!$EU$8:$EU$228)+(IF($A$7=Nutrients!$B$8,Nutrients!$EU$8,Nutrients!$EU$9)*R$7)+(((IF($A$8=Nutrients!$B$79,Nutrients!$EU$79,(IF($A$8=Nutrients!$B$77,Nutrients!$EU$77,Nutrients!$EU$78)))))*R$8))","v":20000},{"$f":"(SUMPRODUCT(S$9:S$229,Nutrients!$EU$8:$EU$228)+(IF($A$7=Nutrients!$B$8,Nutrients!$EU$8,Nutrients!$EU$9)*S$7)+(((IF($A$8=Nutrients!$B$79,Nutrients!$EU$79,(IF($A$8=Nutrients!$B$77,Nutrients!$EU$77,Nutrients!$EU$78)))))*S$8))","v":16000},{"$f":"(SUMPRODUCT(T$9:T$229,Nutrients!$EU$8:$EU$228)+(IF($A$7=Nutrients!$B$8,Nutrients!$EU$8,Nutrients!$EU$9)*T$7)+(((IF($A$8=Nutrients!$B$79,Nutrients!$EU$79,(IF($A$8=Nutrients!$B$77,Nutrients!$EU$77,Nutrients!$EU$78)))))*T$8))","v":12000},{"$f":"(SUMPRODUCT(U$9:U$229,Nutrients!$EU$8:$EU$228)+(IF($A$7=Nutrients!$B$8,Nutrients!$EU$8,Nutrients!$EU$9)*U$7)+(((IF($A$8=Nutrients!$B$79,Nutrients!$EU$79,(IF($A$8=Nutrients!$B$77,Nutrients!$EU$77,Nutrients!$EU$78)))))*U$8))","v":12000},null,{"$f":"(SUMPRODUCT(W$9:W$229,Nutrients!$EU$8:$EU$228)+(IF($A$7=Nutrients!$B$8,Nutrients!$EU$8,Nutrients!$EU$9)*W$7)+(((IF($A$8=Nutrients!$B$79,Nutrients!$EU$79,(IF($A$8=Nutrients!$B$77,Nutrients!$EU$77,Nutrients!$EU$78)))))*W$8))","v":24000},{"$f":"(SUMPRODUCT(X$9:X$229,Nutrients!$EU$8:$EU$228)+(IF($A$7=Nutrients!$B$8,Nutrients!$EU$8,Nutrients!$EU$9)*X$7)+(((IF($A$8=Nutrients!$B$79,Nutrients!$EU$79,(IF($A$8=Nutrients!$B$77,Nutrients!$EU$77,Nutrients!$EU$78)))))*X$8))","v":24000},{"$f":"(SUMPRODUCT(Y$9:Y$229,Nutrients!$EU$8:$EU$228)+(IF($A$7=Nutrients!$B$8,Nutrients!$EU$8,Nutrients!$EU$9)*Y$7)+(((IF($A$8=Nutrients!$B$79,Nutrients!$EU$79,(IF($A$8=Nutrients!$B$77,Nutrients!$EU$77,Nutrients!$EU$78)))))*Y$8))","v":20000},{"$f":"(SUMPRODUCT(Z$9:Z$229,Nutrients!$EU$8:$EU$228)+(IF($A$7=Nutrients!$B$8,Nutrients!$EU$8,Nutrients!$EU$9)*Z$7)+(((IF($A$8=Nutrients!$B$79,Nutrients!$EU$79,(IF($A$8=Nutrients!$B$77,Nutrients!$EU$77,Nutrients!$EU$78)))))*Z$8))","v":16000},{"$f":"(SUMPRODUCT(AA$9:AA$229,Nutrients!$EU$8:$EU$228)+(IF($A$7=Nutrients!$B$8,Nutrients!$EU$8,Nutrients!$EU$9)*AA$7)+(((IF($A$8=Nutrients!$B$79,Nutrients!$EU$79,(IF($A$8=Nutrients!$B$77,Nutrients!$EU$77,Nutrients!$EU$78)))))*AA$8))","v":12000},{"$f":"(SUMPRODUCT(AB$9:AB$229,Nutrients!$EU$8:$EU$228)+(IF($A$7=Nutrients!$B$8,Nutrients!$EU$8,Nutrients!$EU$9)*AB$7)+(((IF($A$8=Nutrients!$B$79,Nutrients!$EU$79,(IF($A$8=Nutrients!$B$77,Nutrients!$EU$77,Nutrients!$EU$78)))))*AB$8))","v":12000},null,{"$f":"(SUMPRODUCT(AD$9:AD$229,Nutrients!$EU$8:$EU$228)+(IF($A$7=Nutrients!$B$8,Nutrients!$EU$8,Nutrients!$EU$9)*AD$7)+(((IF($A$8=Nutrients!$B$79,Nutrients!$EU$79,(IF($A$8=Nutrients!$B$77,Nutrients!$EU$77,Nutrients!$EU$78)))))*AD$8))","v":24000},{"$f":"(SUMPRODUCT(AE$9:AE$229,Nutrients!$EU$8:$EU$228)+(IF($A$7=Nutrients!$B$8,Nutrients!$EU$8,Nutrients!$EU$9)*AE$7)+(((IF($A$8=Nutrients!$B$79,Nutrients!$EU$79,(IF($A$8=Nutrients!$B$77,Nutrients!$EU$77,Nutrients!$EU$78)))))*AE$8))","v":24000},{"$f":"(SUMPRODUCT(AF$9:AF$229,Nutrients!$EU$8:$EU$228)+(IF($A$7=Nutrients!$B$8,Nutrients!$EU$8,Nutrients!$EU$9)*AF$7)+(((IF($A$8=Nutrients!$B$79,Nutrients!$EU$79,(IF($A$8=Nutrients!$B$77,Nutrients!$EU$77,Nutrients!$EU$78)))))*AF$8))","v":20000},{"$f":"(SUMPRODUCT(AG$9:AG$229,Nutrients!$EU$8:$EU$228)+(IF($A$7=Nutrients!$B$8,Nutrients!$EU$8,Nutrients!$EU$9)*AG$7)+(((IF($A$8=Nutrients!$B$79,Nutrients!$EU$79,(IF($A$8=Nutrients!$B$77,Nutrients!$EU$77,Nutrients!$EU$78)))))*AG$8))","v":16000},{"$f":"(SUMPRODUCT(AH$9:AH$229,Nutrients!$EU$8:$EU$228)+(IF($A$7=Nutrients!$B$8,Nutrients!$EU$8,Nutrients!$EU$9)*AH$7)+(((IF($A$8=Nutrients!$B$79,Nutrients!$EU$79,(IF($A$8=Nutrients!$B$77,Nutrients!$EU$77,Nutrients!$EU$78)))))*AH$8))","v":12000},{"$f":"(SUMPRODUCT(AI$9:AI$229,Nutrients!$EU$8:$EU$228)+(IF($A$7=Nutrients!$B$8,Nutrients!$EU$8,Nutrients!$EU$9)*AI$7)+(((IF($A$8=Nutrients!$B$79,Nutrients!$EU$79,(IF($A$8=Nutrients!$B$77,Nutrients!$EU$77,Nutrients!$EU$78)))))*AI$8))","v":12000},null,{"$f":"(SUMPRODUCT(AK$9:AK$229,Nutrients!$EU$8:$EU$228)+(IF($A$7=Nutrients!$B$8,Nutrients!$EU$8,Nutrients!$EU$9)*AK$7)+(((IF($A$8=Nutrients!$B$79,Nutrients!$EU$79,(IF($A$8=Nutrients!$B$77,Nutrients!$EU$77,Nutrients!$EU$78)))))*AK$8))","v":24000},{"$f":"(SUMPRODUCT(AL$9:AL$229,Nutrients!$EU$8:$EU$228)+(IF($A$7=Nutrients!$B$8,Nutrients!$EU$8,Nutrients!$EU$9)*AL$7)+(((IF($A$8=Nutrients!$B$79,Nutrients!$EU$79,(IF($A$8=Nutrients!$B$77,Nutrients!$EU$77,Nutrients!$EU$78)))))*AL$8))","v":24000},{"$f":"(SUMPRODUCT(AM$9:AM$229,Nutrients!$EU$8:$EU$228)+(IF($A$7=Nutrients!$B$8,Nutrients!$EU$8,Nutrients!$EU$9)*AM$7)+(((IF($A$8=Nutrients!$B$79,Nutrients!$EU$79,(IF($A$8=Nutrients!$B$77,Nutrients!$EU$77,Nutrients!$EU$78)))))*AM$8))","v":20000},{"$f":"(SUMPRODUCT(AN$9:AN$229,Nutrients!$EU$8:$EU$228)+(IF($A$7=Nutrients!$B$8,Nutrients!$EU$8,Nutrients!$EU$9)*AN$7)+(((IF($A$8=Nutrients!$B$79,Nutrients!$EU$79,(IF($A$8=Nutrients!$B$77,Nutrients!$EU$77,Nutrients!$EU$78)))))*AN$8))","v":16000},{"$f":"(SUMPRODUCT(AO$9:AO$229,Nutrients!$EU$8:$EU$228)+(IF($A$7=Nutrients!$B$8,Nutrients!$EU$8,Nutrients!$EU$9)*AO$7)+(((IF($A$8=Nutrients!$B$79,Nutrients!$EU$79,(IF($A$8=Nutrients!$B$77,Nutrients!$EU$77,Nutrients!$EU$78)))))*AO$8))","v":12000},{"$f":"(SUMPRODUCT(AP$9:AP$229,Nutrients!$EU$8:$EU$228)+(IF($A$7=Nutrients!$B$8,Nutrients!$EU$8,Nutrients!$EU$9)*AP$7)+(((IF($A$8=Nutrients!$B$79,Nutrients!$EU$79,(IF($A$8=Nutrients!$B$77,Nutrients!$EU$77,Nutrients!$EU$78)))))*AP$8))","v":12000},null,{"$f":"(SUMPRODUCT(AR$9:AR$229,Nutrients!$EU$8:$EU$228)+(IF($A$7=Nutrients!$B$8,Nutrients!$EU$8,Nutrients!$EU$9)*AR$7)+(((IF($A$8=Nutrients!$B$79,Nutrients!$EU$79,(IF($A$8=Nutrients!$B$77,Nutrients!$EU$77,Nutrients!$EU$78)))))*AR$8))","v":24000},{"$f":"(SUMPRODUCT(AS$9:AS$229,Nutrients!$EU$8:$EU$228)+(IF($A$7=Nutrients!$B$8,Nutrients!$EU$8,Nutrients!$EU$9)*AS$7)+(((IF($A$8=Nutrients!$B$79,Nutrients!$EU$79,(IF($A$8=Nutrients!$B$77,Nutrients!$EU$77,Nutrients!$EU$78)))))*AS$8))","v":24000},{"$f":"(SUMPRODUCT(AT$9:AT$229,Nutrients!$EU$8:$EU$228)+(IF($A$7=Nutrients!$B$8,Nutrients!$EU$8,Nutrients!$EU$9)*AT$7)+(((IF($A$8=Nutrients!$B$79,Nutrients!$EU$79,(IF($A$8=Nutrients!$B$77,Nutrients!$EU$77,Nutrients!$EU$78)))))*AT$8))","v":20000},{"$f":"(SUMPRODUCT(AU$9:AU$229,Nutrients!$EU$8:$EU$228)+(IF($A$7=Nutrients!$B$8,Nutrients!$EU$8,Nutrients!$EU$9)*AU$7)+(((IF($A$8=Nutrients!$B$79,Nutrients!$EU$79,(IF($A$8=Nutrients!$B$77,Nutrients!$EU$77,Nutrients!$EU$78)))))*AU$8))","v":16000},{"$f":"(SUMPRODUCT(AV$9:AV$229,Nutrients!$EU$8:$EU$228)+(IF($A$7=Nutrients!$B$8,Nutrients!$EU$8,Nutrients!$EU$9)*AV$7)+(((IF($A$8=Nutrients!$B$79,Nutrients!$EU$79,(IF($A$8=Nutrients!$B$77,Nutrients!$EU$77,Nutrients!$EU$78)))))*AV$8))","v":12000},{"$f":"(SUMPRODUCT(AW$9:AW$229,Nutrients!$EU$8:$EU$228)+(IF($A$7=Nutrients!$B$8,Nutrients!$EU$8,Nutrients!$EU$9)*AW$7)+(((IF($A$8=Nutrients!$B$79,Nutrients!$EU$79,(IF($A$8=Nutrients!$B$77,Nutrients!$EU$77,Nutrients!$EU$78)))))*AW$8))","v":12000}]
["  Vit K (menadione), mg/ton",{"$f":"(SUMPRODUCT(B$9:B$229,Nutrients!$EV$8:$EV$228)+(IF($A$7=Nutrients!$B$8,Nutrients!$EV$8,Nutrients!$EV$9)*B$7)+(((IF($A$8=Nutrients!$B$79,Nutrients!$EV$79,(IF($A$8=Nutrients!$B$77,Nutrients!$EV$77,Nutrients!$EV$78)))))*B$8))","v":1800},{"$f":"(SUMPRODUCT(C$9:C$229,Nutrients!$EV$8:$EV$228)+(IF($A$7=Nutrients!$B$8,Nutrients!$EV$8,Nutrients!$EV$9)*C$7)+(((IF($A$8=Nutrients!$B$79,Nutrients!$EV$79,(IF($A$8=Nutrients!$B$77,Nutrients!$EV$77,Nutrients!$EV$78)))))*C$8))","v":1800},{"$f":"(SUMPRODUCT(D$9:D$229,Nutrients!$EV$8:$EV$228)+(IF($A$7=Nutrients!$B$8,Nutrients!$EV$8,Nutrients!$EV$9)*D$7)+(((IF($A$8=Nutrients!$B$79,Nutrients!$EV$79,(IF($A$8=Nutrients!$B$77,Nutrients!$EV$77,Nutrients!$EV$78)))))*D$8))","v":1500},{"$f":"(SUMPRODUCT(E$9:E$229,Nutrients!$EV$8:$EV$228)+(IF($A$7=Nutrients!$B$8,Nutrients!$EV$8,Nutrients!$EV$9)*E$7)+(((IF($A$8=Nutrients!$B$79,Nutrients!$EV$79,(IF($A$8=Nutrients!$B$77,Nutrients!$EV$77,Nutrients!$EV$78)))))*E$8))","v":1200},{"$f":"(SUMPRODUCT(F$9:F$229,Nutrients!$EV$8:$EV$228)+(IF($A$7=Nutrients!$B$8,Nutrients!$EV$8,Nutrients!$EV$9)*F$7)+(((IF($A$8=Nutrients!$B$79,Nutrients!$EV$79,(IF($A$8=Nutrients!$B$77,Nutrients!$EV$77,Nutrients!$EV$78)))))*F$8))","v":900},{"$f":"(SUMPRODUCT(G$9:G$229,Nutrients!$EV$8:$EV$228)+(IF($A$7=Nutrients!$B$8,Nutrients!$EV$8,Nutrients!$EV$9)*G$7)+(((IF($A$8=Nutrients!$B$79,Nutrients!$EV$79,(IF($A$8=Nutrients!$B$77,Nutrients!$EV$77,Nutrients!$EV$78)))))*G$8))","v":900},null,{"$f":"(SUMPRODUCT(I$9:I$229,Nutrients!$EV$8:$EV$228)+(IF($A$7=Nutrients!$B$8,Nutrients!$EV$8,Nutrients!$EV$9)*I$7)+(((IF($A$8=Nutrients!$B$79,Nutrients!$EV$79,(IF($A$8=Nutrients!$B$77,Nutrients!$EV$77,Nutrients!$EV$78)))))*I$8))","v":1800},{"$f":"(SUMPRODUCT(J$9:J$229,Nutrients!$EV$8:$EV$228)+(IF($A$7=Nutrients!$B$8,Nutrients!$EV$8,Nutrients!$EV$9)*J$7)+(((IF($A$8=Nutrients!$B$79,Nutrients!$EV$79,(IF($A$8=Nutrients!$B$77,Nutrients!$EV$77,Nutrients!$EV$78)))))*J$8))","v":1800},{"$f":"(SUMPRODUCT(K$9:K$229,Nutrients!$EV$8:$EV$228)+(IF($A$7=Nutrients!$B$8,Nutrients!$EV$8,Nutrients!$EV$9)*K$7)+(((IF($A$8=Nutrients!$B$79,Nutrients!$EV$79,(IF($A$8=Nutrients!$B$77,Nutrients!$EV$77,Nutrients!$EV$78)))))*K$8))","v":1500},{"$f":"(SUMPRODUCT(L$9:L$229,Nutrients!$EV$8:$EV$228)+(IF($A$7=Nutrients!$B$8,Nutrients!$EV$8,Nutrients!$EV$9)*L$7)+(((IF($A$8=Nutrients!$B$79,Nutrients!$EV$79,(IF($A$8=Nutrients!$B$77,Nutrients!$EV$77,Nutrients!$EV$78)))))*L$8))","v":1200},{"$f":"(SUMPRODUCT(M$9:M$229,Nutrients!$EV$8:$EV$228)+(IF($A$7=Nutrients!$B$8,Nutrients!$EV$8,Nutrients!$EV$9)*M$7)+(((IF($A$8=Nutrients!$B$79,Nutrients!$EV$79,(IF($A$8=Nutrients!$B$77,Nutrients!$EV$77,Nutrients!$EV$78)))))*M$8))","v":900},{"$f":"(SUMPRODUCT(N$9:N$229,Nutrients!$EV$8:$EV$228)+(IF($A$7=Nutrients!$B$8,Nutrients!$EV$8,Nutrients!$EV$9)*N$7)+(((IF($A$8=Nutrients!$B$79,Nutrients!$EV$79,(IF($A$8=Nutrients!$B$77,Nutrients!$EV$77,Nutrients!$EV$78)))))*N$8))","v":900},null,{"$f":"(SUMPRODUCT(P$9:P$229,Nutrients!$EV$8:$EV$228)+(IF($A$7=Nutrients!$B$8,Nutrients!$EV$8,Nutrients!$EV$9)*P$7)+(((IF($A$8=Nutrients!$B$79,Nutrients!$EV$79,(IF($A$8=Nutrients!$B$77,Nutrients!$EV$77,Nutrients!$EV$78)))))*P$8))","v":1800},{"$f":"(SUMPRODUCT(Q$9:Q$229,Nutrients!$EV$8:$EV$228)+(IF($A$7=Nutrients!$B$8,Nutrients!$EV$8,Nutrients!$EV$9)*Q$7)+(((IF($A$8=Nutrients!$B$79,Nutrients!$EV$79,(IF($A$8=Nutrients!$B$77,Nutrients!$EV$77,Nutrients!$EV$78)))))*Q$8))","v":1800},{"$f":"(SUMPRODUCT(R$9:R$229,Nutrients!$EV$8:$EV$228)+(IF($A$7=Nutrients!$B$8,Nutrients!$EV$8,Nutrients!$EV$9)*R$7)+(((IF($A$8=Nutrients!$B$79,Nutrients!$EV$79,(IF($A$8=Nutrients!$B$77,Nutrients!$EV$77,Nutrients!$EV$78)))))*R$8))","v":1500},{"$f":"(SUMPRODUCT(S$9:S$229,Nutrients!$EV$8:$EV$228)+(IF($A$7=Nutrients!$B$8,Nutrients!$EV$8,Nutrients!$EV$9)*S$7)+(((IF($A$8=Nutrients!$B$79,Nutrients!$EV$79,(IF($A$8=Nutrients!$B$77,Nutrients!$EV$77,Nutrients!$EV$78)))))*S$8))","v":1200},{"$f":"(SUMPRODUCT(T$9:T$229,Nutrients!$EV$8:$EV$228)+(IF($A$7=Nutrients!$B$8,Nutrients!$EV$8,Nutrients!$EV$9)*T$7)+(((IF($A$8=Nutrients!$B$79,Nutrients!$EV$79,(IF($A$8=Nutrients!$B$77,Nutrients!$EV$77,Nutrients!$EV$78)))))*T$8))","v":900},{"$f":"(SUMPRODUCT(U$9:U$229,Nutrients!$EV$8:$EV$228)+(IF($A$7=Nutrients!$B$8,Nutrients!$EV$8,Nutrients!$EV$9)*U$7)+(((IF($A$8=Nutrients!$B$79,Nutrients!$EV$79,(IF($A$8=Nutrients!$B$77,Nutrients!$EV$77,Nutrients!$EV$78)))))*U$8))","v":900},null,{"$f":"(SUMPRODUCT(W$9:W$229,Nutrients!$EV$8:$EV$228)+(IF($A$7=Nutrients!$B$8,Nutrients!$EV$8,Nutrients!$EV$9)*W$7)+(((IF($A$8=Nutrients!$B$79,Nutrients!$EV$79,(IF($A$8=Nutrients!$B$77,Nutrients!$EV$77,Nutrients!$EV$78)))))*W$8))","v":1800},{"$f":"(SUMPRODUCT(X$9:X$229,Nutrients!$EV$8:$EV$228)+(IF($A$7=Nutrients!$B$8,Nutrients!$EV$8,Nutrients!$EV$9)*X$7)+(((IF($A$8=Nutrients!$B$79,Nutrients!$EV$79,(IF($A$8=Nutrients!$B$77,Nutrients!$EV$77,Nutrients!$EV$78)))))*X$8))","v":1800},{"$f":"(SUMPRODUCT(Y$9:Y$229,Nutrients!$EV$8:$EV$228)+(IF($A$7=Nutrients!$B$8,Nutrients!$EV$8,Nutrients!$EV$9)*Y$7)+(((IF($A$8=Nutrients!$B$79,Nutrients!$EV$79,(IF($A$8=Nutrients!$B$77,Nutrients!$EV$77,Nutrients!$EV$78)))))*Y$8))","v":1500},{"$f":"(SUMPRODUCT(Z$9:Z$229,Nutrients!$EV$8:$EV$228)+(IF($A$7=Nutrients!$B$8,Nutrients!$EV$8,Nutrients!$EV$9)*Z$7)+(((IF($A$8=Nutrients!$B$79,Nutrients!$EV$79,(IF($A$8=Nutrients!$B$77,Nutrients!$EV$77,Nutrients!$EV$78)))))*Z$8))","v":1200},{"$f":"(SUMPRODUCT(AA$9:AA$229,Nutrients!$EV$8:$EV$228)+(IF($A$7=Nutrients!$B$8,Nutrients!$EV$8,Nutrients!$EV$9)*AA$7)+(((IF($A$8=Nutrients!$B$79,Nutrients!$EV$79,(IF($A$8=Nutrients!$B$77,Nutrients!$EV$77,Nutrients!$EV$78)))))*AA$8))","v":900},{"$f":"(SUMPRODUCT(AB$9:AB$229,Nutrients!$EV$8:$EV$228)+(IF($A$7=Nutrients!$B$8,Nutrients!$EV$8,Nutrients!$EV$9)*AB$7)+(((IF($A$8=Nutrients!$B$79,Nutrients!$EV$79,(IF($A$8=Nutrients!$B$77,Nutrients!$EV$77,Nutrients!$EV$78)))))*AB$8))","v":900},null,{"$f":"(SUMPRODUCT(AD$9:AD$229,Nutrients!$EV$8:$EV$228)+(IF($A$7=Nutrients!$B$8,Nutrients!$EV$8,Nutrients!$EV$9)*AD$7)+(((IF($A$8=Nutrients!$B$79,Nutrients!$EV$79,(IF($A$8=Nutrients!$B$77,Nutrients!$EV$77,Nutrients!$EV$78)))))*AD$8))","v":1800},{"$f":"(SUMPRODUCT(AE$9:AE$229,Nutrients!$EV$8:$EV$228)+(IF($A$7=Nutrients!$B$8,Nutrients!$EV$8,Nutrients!$EV$9)*AE$7)+(((IF($A$8=Nutrients!$B$79,Nutrients!$EV$79,(IF($A$8=Nutrients!$B$77,Nutrients!$EV$77,Nutrients!$EV$78)))))*AE$8))","v":1800},{"$f":"(SUMPRODUCT(AF$9:AF$229,Nutrients!$EV$8:$EV$228)+(IF($A$7=Nutrients!$B$8,Nutrients!$EV$8,Nutrients!$EV$9)*AF$7)+(((IF($A$8=Nutrients!$B$79,Nutrients!$EV$79,(IF($A$8=Nutrients!$B$77,Nutrients!$EV$77,Nutrients!$EV$78)))))*AF$8))","v":1500},{"$f":"(SUMPRODUCT(AG$9:AG$229,Nutrients!$EV$8:$EV$228)+(IF($A$7=Nutrients!$B$8,Nutrients!$EV$8,Nutrients!$EV$9)*AG$7)+(((IF($A$8=Nutrients!$B$79,Nutrients!$EV$79,(IF($A$8=Nutrients!$B$77,Nutrients!$EV$77,Nutrients!$EV$78)))))*AG$8))","v":1200},{"$f":"(SUMPRODUCT(AH$9:AH$229,Nutrients!$EV$8:$EV$228)+(IF($A$7=Nutrients!$B$8,Nutrients!$EV$8,Nutrients!$EV$9)*AH$7)+(((IF($A$8=Nutrients!$B$79,Nutrients!$EV$79,(IF($A$8=Nutrients!$B$77,Nutrients!$EV$77,Nutrients!$EV$78)))))*AH$8))","v":900},{"$f":"(SUMPRODUCT(AI$9:AI$229,Nutrients!$EV$8:$EV$228)+(IF($A$7=Nutrients!$B$8,Nutrients!$EV$8,Nutrients!$EV$9)*AI$7)+(((IF($A$8=Nutrients!$B$79,Nutrients!$EV$79,(IF($A$8=Nutrients!$B$77,Nutrients!$EV$77,Nutrients!$EV$78)))))*AI$8))","v":900},null,{"$f":"(SUMPRODUCT(AK$9:AK$229,Nutrients!$EV$8:$EV$228)+(IF($A$7=Nutrients!$B$8,Nutrients!$EV$8,Nutrients!$EV$9)*AK$7)+(((IF($A$8=Nutrients!$B$79,Nutrients!$EV$79,(IF($A$8=Nutrients!$B$77,Nutrients!$EV$77,Nutrients!$EV$78)))))*AK$8))","v":1800},{"$f":"(SUMPRODUCT(AL$9:AL$229,Nutrients!$EV$8:$EV$228)+(IF($A$7=Nutrients!$B$8,Nutrients!$EV$8,Nutrients!$EV$9)*AL$7)+(((IF($A$8=Nutrients!$B$79,Nutrients!$EV$79,(IF($A$8=Nutrients!$B$77,Nutrients!$EV$77,Nutrients!$EV$78)))))*AL$8))","v":1800},{"$f":"(SUMPRODUCT(AM$9:AM$229,Nutrients!$EV$8:$EV$228)+(IF($A$7=Nutrients!$B$8,Nutrients!$EV$8,Nutrients!$EV$9)*AM$7)+(((IF($A$8=Nutrients!$B$79,Nutrients!$EV$79,(IF($A$8=Nutrients!$B$77,Nutrients!$EV$77,Nutrients!$EV$78)))))*AM$8))","v":1500},{"$f":"(SUMPRODUCT(AN$9:AN$229,Nutrients!$EV$8:$EV$228)+(IF($A$7=Nutrients!$B$8,Nutrients!$EV$8,Nutrients!$EV$9)*AN$7)+(((IF($A$8=Nutrients!$B$79,Nutrients!$EV$79,(IF($A$8=Nutrients!$B$77,Nutrients!$EV$77,Nutrients!$EV$78)))))*AN$8))","v":1200},{"$f":"(SUMPRODUCT(AO$9:AO$229,Nutrients!$EV$8:$EV$228)+(IF($A$7=Nutrients!$B$8,Nutrients!$EV$8,Nutrients!$EV$9)*AO$7)+(((IF($A$8=Nutrients!$B$79,Nutrients!$EV$79,(IF($A$8=Nutrients!$B$77,Nutrients!$EV$77,Nutrients!$EV$78)))))*AO$8))","v":900},{"$f":"(SUMPRODUCT(AP$9:AP$229,Nutrients!$EV$8:$EV$228)+(IF($A$7=Nutrients!$B$8,Nutrients!$EV$8,Nutrients!$EV$9)*AP$7)+(((IF($A$8=Nutrients!$B$79,Nutrients!$EV$79,(IF($A$8=Nutrients!$B$77,Nutrients!$EV$77,Nutrients!$EV$78)))))*AP$8))","v":900},null,{"$f":"(SUMPRODUCT(AR$9:AR$229,Nutrients!$EV$8:$EV$228)+(IF($A$7=Nutrients!$B$8,Nutrients!$EV$8,Nutrients!$EV$9)*AR$7)+(((IF($A$8=Nutrients!$B$79,Nutrients!$EV$79,(IF($A$8=Nutrients!$B$77,Nutrients!$EV$77,Nutrients!$EV$78)))))*AR$8))","v":1800},{"$f":"(SUMPRODUCT(AS$9:AS$229,Nutrients!$EV$8:$EV$228)+(IF($A$7=Nutrients!$B$8,Nutrients!$EV$8,Nutrients!$EV$9)*AS$7)+(((IF($A$8=Nutrients!$B$79,Nutrients!$EV$79,(IF($A$8=Nutrients!$B$77,Nutrients!$EV$77,Nutrients!$EV$78)))))*AS$8))","v":1800},{"$f":"(SUMPRODUCT(AT$9:AT$229,Nutrients!$EV$8:$EV$228)+(IF($A$7=Nutrients!$B$8,Nutrients!$EV$8,Nutrients!$EV$9)*AT$7)+(((IF($A$8=Nutrients!$B$79,Nutrients!$EV$79,(IF($A$8=Nutrients!$B$77,Nutrients!$EV$77,Nutrients!$EV$78)))))*AT$8))","v":1500},{"$f":"(SUMPRODUCT(AU$9:AU$229,Nutrients!$EV$8:$EV$228)+(IF($A$7=Nutrients!$B$8,Nutrients!$EV$8,Nutrients!$EV$9)*AU$7)+(((IF($A$8=Nutrients!$B$79,Nutrients!$EV$79,(IF($A$8=Nutrients!$B$77,Nutrients!$EV$77,Nutrients!$EV$78)))))*AU$8))","v":1200},{"$f":"(SUMPRODUCT(AV$9:AV$229,Nutrients!$EV$8:$EV$228)+(IF($A$7=Nutrients!$B$8,Nutrients!$EV$8,Nutrients!$EV$9)*AV$7)+(((IF($A$8=Nutrients!$B$79,Nutrients!$EV$79,(IF($A$8=Nutrients!$B$77,Nutrients!$EV$77,Nutrients!$EV$78)))))*AV$8))","v":900},{"$f":"(SUMPRODUCT(AW$9:AW$229,Nutrients!$EV$8:$EV$228)+(IF($A$7=Nutrients!$B$8,Nutrients!$EV$8,Nutrients!$EV$9)*AW$7)+(((IF($A$8=Nutrients!$B$79,Nutrients!$EV$79,(IF($A$8=Nutrients!$B$77,Nutrients!$EV$77,Nutrients!$EV$78)))))*AW$8))","v":900}]
["  Vit B12, mg/ton",{"$f":"(SUMPRODUCT(B$9:B$229,Nutrients!$EW$8:$EW$228)+(IF($A$7=Nutrients!$B$8,Nutrients!$EW$8,Nutrients!$EW$9)*B$7)+(((IF($A$8=Nutrients!$B$79,Nutrients!$EW$79,(IF($A$8=Nutrients!$B$77,Nutrients!$EW$77,Nutrients!$EW$78)))))*B$8))","v":18},{"$f":"(SUMPRODUCT(C$9:C$229,Nutrients!$EW$8:$EW$228)+(IF($A$7=Nutrients!$B$8,Nutrients!$EW$8,Nutrients!$EW$9)*C$7)+(((IF($A$8=Nutrients!$B$79,Nutrients!$EW$79,(IF($A$8=Nutrients!$B$77,Nutrients!$EW$77,Nutrients!$EW$78)))))*C$8))","v":18},{"$f":"(SUMPRODUCT(D$9:D$229,Nutrients!$EW$8:$EW$228)+(IF($A$7=Nutrients!$B$8,Nutrients!$EW$8,Nutrients!$EW$9)*D$7)+(((IF($A$8=Nutrients!$B$79,Nutrients!$EW$79,(IF($A$8=Nutrients!$B$77,Nutrients!$EW$77,Nutrients!$EW$78)))))*D$8))","v":15},{"$f":"(SUMPRODUCT(E$9:E$229,Nutrients!$EW$8:$EW$228)+(IF($A$7=Nutrients!$B$8,Nutrients!$EW$8,Nutrients!$EW$9)*E$7)+(((IF($A$8=Nutrients!$B$79,Nutrients!$EW$79,(IF($A$8=Nutrients!$B$77,Nutrients!$EW$77,Nutrients!$EW$78)))))*E$8))","v":12},{"$f":"(SUMPRODUCT(F$9:F$229,Nutrients!$EW$8:$EW$228)+(IF($A$7=Nutrients!$B$8,Nutrients!$EW$8,Nutrients!$EW$9)*F$7)+(((IF($A$8=Nutrients!$B$79,Nutrients!$EW$79,(IF($A$8=Nutrients!$B$77,Nutrients!$EW$77,Nutrients!$EW$78)))))*F$8))","v":9},{"$f":"(SUMPRODUCT(G$9:G$229,Nutrients!$EW$8:$EW$228)+(IF($A$7=Nutrients!$B$8,Nutrients!$EW$8,Nutrients!$EW$9)*G$7)+(((IF($A$8=Nutrients!$B$79,Nutrients!$EW$79,(IF($A$8=Nutrients!$B$77,Nutrients!$EW$77,Nutrients!$EW$78)))))*G$8))","v":9},null,{"$f":"(SUMPRODUCT(I$9:I$229,Nutrients!$EW$8:$EW$228)+(IF($A$7=Nutrients!$B$8,Nutrients!$EW$8,Nutrients!$EW$9)*I$7)+(((IF($A$8=Nutrients!$B$79,Nutrients!$EW$79,(IF($A$8=Nutrients!$B$77,Nutrients!$EW$77,Nutrients!$EW$78)))))*I$8))","v":18},{"$f":"(SUMPRODUCT(J$9:J$229,Nutrients!$EW$8:$EW$228)+(IF($A$7=Nutrients!$B$8,Nutrients!$EW$8,Nutrients!$EW$9)*J$7)+(((IF($A$8=Nutrients!$B$79,Nutrients!$EW$79,(IF($A$8=Nutrients!$B$77,Nutrients!$EW$77,Nutrients!$EW$78)))))*J$8))","v":18},{"$f":"(SUMPRODUCT(K$9:K$229,Nutrients!$EW$8:$EW$228)+(IF($A$7=Nutrients!$B$8,Nutrients!$EW$8,Nutrients!$EW$9)*K$7)+(((IF($A$8=Nutrients!$B$79,Nutrients!$EW$79,(IF($A$8=Nutrients!$B$77,Nutrients!$EW$77,Nutrients!$EW$78)))))*K$8))","v":15},{"$f":"(SUMPRODUCT(L$9:L$229,Nutrients!$EW$8:$EW$228)+(IF($A$7=Nutrients!$B$8,Nutrients!$EW$8,Nutrients!$EW$9)*L$7)+(((IF($A$8=Nutrients!$B$79,Nutrients!$EW$79,(IF($A$8=Nutrients!$B$77,Nutrients!$EW$77,Nutrients!$EW$78)))))*L$8))","v":12},{"$f":"(SUMPRODUCT(M$9:M$229,Nutrients!$EW$8:$EW$228)+(IF($A$7=Nutrients!$B$8,Nutrients!$EW$8,Nutrients!$EW$9)*M$7)+(((IF($A$8=Nutrients!$B$79,Nutrients!$EW$79,(IF($A$8=Nutrients!$B$77,Nutrients!$EW$77,Nutrients!$EW$78)))))*M$8))","v":9},{"$f":"(SUMPRODUCT(N$9:N$229,Nutrients!$EW$8:$EW$228)+(IF($A$7=Nutrients!$B$8,Nutrients!$EW$8,Nutrients!$EW$9)*N$7)+(((IF($A$8=Nutrients!$B$79,Nutrients!$EW$79,(IF($A$8=Nutrients!$B$77,Nutrients!$EW$77,Nutrients!$EW$78)))))*N$8))","v":9},null,{"$f":"(SUMPRODUCT(P$9:P$229,Nutrients!$EW$8:$EW$228)+(IF($A$7=Nutrients!$B$8,Nutrients!$EW$8,Nutrients!$EW$9)*P$7)+(((IF($A$8=Nutrients!$B$79,Nutrients!$EW$79,(IF($A$8=Nutrients!$B$77,Nutrients!$EW$77,Nutrients!$EW$78)))))*P$8))","v":18},{"$f":"(SUMPRODUCT(Q$9:Q$229,Nutrients!$EW$8:$EW$228)+(IF($A$7=Nutrients!$B$8,Nutrients!$EW$8,Nutrients!$EW$9)*Q$7)+(((IF($A$8=Nutrients!$B$79,Nutrients!$EW$79,(IF($A$8=Nutrients!$B$77,Nutrients!$EW$77,Nutrients!$EW$78)))))*Q$8))","v":18},{"$f":"(SUMPRODUCT(R$9:R$229,Nutrients!$EW$8:$EW$228)+(IF($A$7=Nutrients!$B$8,Nutrients!$EW$8,Nutrients!$EW$9)*R$7)+(((IF($A$8=Nutrients!$B$79,Nutrients!$EW$79,(IF($A$8=Nutrients!$B$77,Nutrients!$EW$77,Nutrients!$EW$78)))))*R$8))","v":15},{"$f":"(SUMPRODUCT(S$9:S$229,Nutrients!$EW$8:$EW$228)+(IF($A$7=Nutrients!$B$8,Nutrients!$EW$8,Nutrients!$EW$9)*S$7)+(((IF($A$8=Nutrients!$B$79,Nutrients!$EW$79,(IF($A$8=Nutrients!$B$77,Nutrients!$EW$77,Nutrients!$EW$78)))))*S$8))","v":12},{"$f":"(SUMPRODUCT(T$9:T$229,Nutrients!$EW$8:$EW$228)+(IF($A$7=Nutrients!$B$8,Nutrients!$EW$8,Nutrients!$EW$9)*T$7)+(((IF($A$8=Nutrients!$B$79,Nutrients!$EW$79,(IF($A$8=Nutrients!$B$77,Nutrients!$EW$77,Nutrients!$EW$78)))))*T$8))","v":9},{"$f":"(SUMPRODUCT(U$9:U$229,Nutrients!$EW$8:$EW$228)+(IF($A$7=Nutrients!$B$8,Nutrients!$EW$8,Nutrients!$EW$9)*U$7)+(((IF($A$8=Nutrients!$B$79,Nutrients!$EW$79,(IF($A$8=Nutrients!$B$77,Nutrients!$EW$77,Nutrients!$EW$78)))))*U$8))","v":9},null,{"$f":"(SUMPRODUCT(W$9:W$229,Nutrients!$EW$8:$EW$228)+(IF($A$7=Nutrients!$B$8,Nutrients!$EW$8,Nutrients!$EW$9)*W$7)+(((IF($A$8=Nutrients!$B$79,Nutrients!$EW$79,(IF($A$8=Nutrients!$B$77,Nutrients!$EW$77,Nutrients!$EW$78)))))*W$8))","v":18},{"$f":"(SUMPRODUCT(X$9:X$229,Nutrients!$EW$8:$EW$228)+(IF($A$7=Nutrients!$B$8,Nutrients!$EW$8,Nutrients!$EW$9)*X$7)+(((IF($A$8=Nutrients!$B$79,Nutrients!$EW$79,(IF($A$8=Nutrients!$B$77,Nutrients!$EW$77,Nutrients!$EW$78)))))*X$8))","v":18},{"$f":"(SUMPRODUCT(Y$9:Y$229,Nutrients!$EW$8:$EW$228)+(IF($A$7=Nutrients!$B$8,Nutrients!$EW$8,Nutrients!$EW$9)*Y$7)+(((IF($A$8=Nutrients!$B$79,Nutrients!$EW$79,(IF($A$8=Nutrients!$B$77,Nutrients!$EW$77,Nutrients!$EW$78)))))*Y$8))","v":15},{"$f":"(SUMPRODUCT(Z$9:Z$229,Nutrients!$EW$8:$EW$228)+(IF($A$7=Nutrients!$B$8,Nutrients!$EW$8,Nutrients!$EW$9)*Z$7)+(((IF($A$8=Nutrients!$B$79,Nutrients!$EW$79,(IF($A$8=Nutrients!$B$77,Nutrients!$EW$77,Nutrients!$EW$78)))))*Z$8))","v":12},{"$f":"(SUMPRODUCT(AA$9:AA$229,Nutrients!$EW$8:$EW$228)+(IF($A$7=Nutrients!$B$8,Nutrients!$EW$8,Nutrients!$EW$9)*AA$7)+(((IF($A$8=Nutrients!$B$79,Nutrients!$EW$79,(IF($A$8=Nutrients!$B$77,Nutrients!$EW$77,Nutrients!$EW$78)))))*AA$8))","v":9},{"$f":"(SUMPRODUCT(AB$9:AB$229,Nutrients!$EW$8:$EW$228)+(IF($A$7=Nutrients!$B$8,Nutrients!$EW$8,Nutrients!$EW$9)*AB$7)+(((IF($A$8=Nutrients!$B$79,Nutrients!$EW$79,(IF($A$8=Nutrients!$B$77,Nutrients!$EW$77,Nutrients!$EW$78)))))*AB$8))","v":9},null,{"$f":"(SUMPRODUCT(AD$9:AD$229,Nutrients!$EW$8:$EW$228)+(IF($A$7=Nutrients!$B$8,Nutrients!$EW$8,Nutrients!$EW$9)*AD$7)+(((IF($A$8=Nutrients!$B$79,Nutrients!$EW$79,(IF($A$8=Nutrients!$B$77,Nutrients!$EW$77,Nutrients!$EW$78)))))*AD$8))","v":18},{"$f":"(SUMPRODUCT(AE$9:AE$229,Nutrients!$EW$8:$EW$228)+(IF($A$7=Nutrients!$B$8,Nutrients!$EW$8,Nutrients!$EW$9)*AE$7)+(((IF($A$8=Nutrients!$B$79,Nutrients!$EW$79,(IF($A$8=Nutrients!$B$77,Nutrients!$EW$77,Nutrients!$EW$78)))))*AE$8))","v":18},{"$f":"(SUMPRODUCT(AF$9:AF$229,Nutrients!$EW$8:$EW$228)+(IF($A$7=Nutrients!$B$8,Nutrients!$EW$8,Nutrients!$EW$9)*AF$7)+(((IF($A$8=Nutrients!$B$79,Nutrients!$EW$79,(IF($A$8=Nutrients!$B$77,Nutrients!$EW$77,Nutrients!$EW$78)))))*AF$8))","v":15},{"$f":"(SUMPRODUCT(AG$9:AG$229,Nutrients!$EW$8:$EW$228)+(IF($A$7=Nutrients!$B$8,Nutrients!$EW$8,Nutrients!$EW$9)*AG$7)+(((IF($A$8=Nutrients!$B$79,Nutrients!$EW$79,(IF($A$8=Nutrients!$B$77,Nutrients!$EW$77,Nutrients!$EW$78)))))*AG$8))","v":12},{"$f":"(SUMPRODUCT(AH$9:AH$229,Nutrients!$EW$8:$EW$228)+(IF($A$7=Nutrients!$B$8,Nutrients!$EW$8,Nutrients!$EW$9)*AH$7)+(((IF($A$8=Nutrients!$B$79,Nutrients!$EW$79,(IF($A$8=Nutrients!$B$77,Nutrients!$EW$77,Nutrients!$EW$78)))))*AH$8))","v":9},{"$f":"(SUMPRODUCT(AI$9:AI$229,Nutrients!$EW$8:$EW$228)+(IF($A$7=Nutrients!$B$8,Nutrients!$EW$8,Nutrients!$EW$9)*AI$7)+(((IF($A$8=Nutrients!$B$79,Nutrients!$EW$79,(IF($A$8=Nutrients!$B$77,Nutrients!$EW$77,Nutrients!$EW$78)))))*AI$8))","v":9},null,{"$f":"(SUMPRODUCT(AK$9:AK$229,Nutrients!$EW$8:$EW$228)+(IF($A$7=Nutrients!$B$8,Nutrients!$EW$8,Nutrients!$EW$9)*AK$7)+(((IF($A$8=Nutrients!$B$79,Nutrients!$EW$79,(IF($A$8=Nutrients!$B$77,Nutrients!$EW$77,Nutrients!$EW$78)))))*AK$8))","v":18},{"$f":"(SUMPRODUCT(AL$9:AL$229,Nutrients!$EW$8:$EW$228)+(IF($A$7=Nutrients!$B$8,Nutrients!$EW$8,Nutrients!$EW$9)*AL$7)+(((IF($A$8=Nutrients!$B$79,Nutrients!$EW$79,(IF($A$8=Nutrients!$B$77,Nutrients!$EW$77,Nutrients!$EW$78)))))*AL$8))","v":18},{"$f":"(SUMPRODUCT(AM$9:AM$229,Nutrients!$EW$8:$EW$228)+(IF($A$7=Nutrients!$B$8,Nutrients!$EW$8,Nutrients!$EW$9)*AM$7)+(((IF($A$8=Nutrients!$B$79,Nutrients!$EW$79,(IF($A$8=Nutrients!$B$77,Nutrients!$EW$77,Nutrients!$EW$78)))))*AM$8))","v":15},{"$f":"(SUMPRODUCT(AN$9:AN$229,Nutrients!$EW$8:$EW$228)+(IF($A$7=Nutrients!$B$8,Nutrients!$EW$8,Nutrients!$EW$9)*AN$7)+(((IF($A$8=Nutrients!$B$79,Nutrients!$EW$79,(IF($A$8=Nutrients!$B$77,Nutrients!$EW$77,Nutrients!$EW$78)))))*AN$8))","v":12},{"$f":"(SUMPRODUCT(AO$9:AO$229,Nutrients!$EW$8:$EW$228)+(IF($A$7=Nutrients!$B$8,Nutrients!$EW$8,Nutrients!$EW$9)*AO$7)+(((IF($A$8=Nutrients!$B$79,Nutrients!$EW$79,(IF($A$8=Nutrients!$B$77,Nutrients!$EW$77,Nutrients!$EW$78)))))*AO$8))","v":9},{"$f":"(SUMPRODUCT(AP$9:AP$229,Nutrients!$EW$8:$EW$228)+(IF($A$7=Nutrients!$B$8,Nutrients!$EW$8,Nutrients!$EW$9)*AP$7)+(((IF($A$8=Nutrients!$B$79,Nutrients!$EW$79,(IF($A$8=Nutrients!$B$77,Nutrients!$EW$77,Nutrients!$EW$78)))))*AP$8))","v":9},null,{"$f":"(SUMPRODUCT(AR$9:AR$229,Nutrients!$EW$8:$EW$228)+(IF($A$7=Nutrients!$B$8,Nutrients!$EW$8,Nutrients!$EW$9)*AR$7)+(((IF($A$8=Nutrients!$B$79,Nutrients!$EW$79,(IF($A$8=Nutrients!$B$77,Nutrients!$EW$77,Nutrients!$EW$78)))))*AR$8))","v":18},{"$f":"(SUMPRODUCT(AS$9:AS$229,Nutrients!$EW$8:$EW$228)+(IF($A$7=Nutrients!$B$8,Nutrients!$EW$8,Nutrients!$EW$9)*AS$7)+(((IF($A$8=Nutrients!$B$79,Nutrients!$EW$79,(IF($A$8=Nutrients!$B$77,Nutrients!$EW$77,Nutrients!$EW$78)))))*AS$8))","v":18},{"$f":"(SUMPRODUCT(AT$9:AT$229,Nutrients!$EW$8:$EW$228)+(IF($A$7=Nutrients!$B$8,Nutrients!$EW$8,Nutrients!$EW$9)*AT$7)+(((IF($A$8=Nutrients!$B$79,Nutrients!$EW$79,(IF($A$8=Nutrients!$B$77,Nutrients!$EW$77,Nutrients!$EW$78)))))*AT$8))","v":15},{"$f":"(SUMPRODUCT(AU$9:AU$229,Nutrients!$EW$8:$EW$228)+(IF($A$7=Nutrients!$B$8,Nutrients!$EW$8,Nutrients!$EW$9)*AU$7)+(((IF($A$8=Nutrients!$B$79,Nutrients!$EW$79,(IF($A$8=Nutrients!$B$77,Nutrients!$EW$77,Nutrients!$EW$78)))))*AU$8))","v":12},{"$f":"(SUMPRODUCT(AV$9:AV$229,Nutrients!$EW$8:$EW$228)+(IF($A$7=Nutrients!$B$8,Nutrients!$EW$8,Nutrients!$EW$9)*AV$7)+(((IF($A$8=Nutrients!$B$79,Nutrients!$EW$79,(IF($A$8=Nutrients!$B$77,Nutrients!$EW$77,Nutrients!$EW$78)))))*AV$8))","v":9},{"$f":"(SUMPRODUCT(AW$9:AW$229,Nutrients!$EW$8:$EW$228)+(IF($A$7=Nutrients!$B$8,Nutrients!$EW$8,Nutrients!$EW$9)*AW$7)+(((IF($A$8=Nutrients!$B$79,Nutrients!$EW$79,(IF($A$8=Nutrients!$B$77,Nutrients!$EW$77,Nutrients!$EW$78)))))*AW$8))","v":9}]
["  Niacin, mg/ton",{"$f":"(SUMPRODUCT(B$9:B$229,Nutrients!$EX$8:$EX$228)+(IF($A$7=Nutrients!$B$8,Nutrients!$EX$8,Nutrients!$EX$9)*B$7)+(((IF($A$8=Nutrients!$B$79,Nutrients!$EX$79,(IF($A$8=Nutrients!$B$77,Nutrients!$EX$77,Nutrients!$EX$78)))))*B$8))","v":27000},{"$f":"(SUMPRODUCT(C$9:C$229,Nutrients!$EX$8:$EX$228)+(IF($A$7=Nutrients!$B$8,Nutrients!$EX$8,Nutrients!$EX$9)*C$7)+(((IF($A$8=Nutrients!$B$79,Nutrients!$EX$79,(IF($A$8=Nutrients!$B$77,Nutrients!$EX$77,Nutrients!$EX$78)))))*C$8))","v":27000},{"$f":"(SUMPRODUCT(D$9:D$229,Nutrients!$EX$8:$EX$228)+(IF($A$7=Nutrients!$B$8,Nutrients!$EX$8,Nutrients!$EX$9)*D$7)+(((IF($A$8=Nutrients!$B$79,Nutrients!$EX$79,(IF($A$8=Nutrients!$B$77,Nutrients!$EX$77,Nutrients!$EX$78)))))*D$8))","v":22500},{"$f":"(SUMPRODUCT(E$9:E$229,Nutrients!$EX$8:$EX$228)+(IF($A$7=Nutrients!$B$8,Nutrients!$EX$8,Nutrients!$EX$9)*E$7)+(((IF($A$8=Nutrients!$B$79,Nutrients!$EX$79,(IF($A$8=Nutrients!$B$77,Nutrients!$EX$77,Nutrients!$EX$78)))))*E$8))","v":18000},{"$f":"(SUMPRODUCT(F$9:F$229,Nutrients!$EX$8:$EX$228)+(IF($A$7=Nutrients!$B$8,Nutrients!$EX$8,Nutrients!$EX$9)*F$7)+(((IF($A$8=Nutrients!$B$79,Nutrients!$EX$79,(IF($A$8=Nutrients!$B$77,Nutrients!$EX$77,Nutrients!$EX$78)))))*F$8))","v":13500},{"$f":"(SUMPRODUCT(G$9:G$229,Nutrients!$EX$8:$EX$228)+(IF($A$7=Nutrients!$B$8,Nutrients!$EX$8,Nutrients!$EX$9)*G$7)+(((IF($A$8=Nutrients!$B$79,Nutrients!$EX$79,(IF($A$8=Nutrients!$B$77,Nutrients!$EX$77,Nutrients!$EX$78)))))*G$8))","v":13500},null,{"$f":"(SUMPRODUCT(I$9:I$229,Nutrients!$EX$8:$EX$228)+(IF($A$7=Nutrients!$B$8,Nutrients!$EX$8,Nutrients!$EX$9)*I$7)+(((IF($A$8=Nutrients!$B$79,Nutrients!$EX$79,(IF($A$8=Nutrients!$B$77,Nutrients!$EX$77,Nutrients!$EX$78)))))*I$8))","v":27000},{"$f":"(SUMPRODUCT(J$9:J$229,Nutrients!$EX$8:$EX$228)+(IF($A$7=Nutrients!$B$8,Nutrients!$EX$8,Nutrients!$EX$9)*J$7)+(((IF($A$8=Nutrients!$B$79,Nutrients!$EX$79,(IF($A$8=Nutrients!$B$77,Nutrients!$EX$77,Nutrients!$EX$78)))))*J$8))","v":27000},{"$f":"(SUMPRODUCT(K$9:K$229,Nutrients!$EX$8:$EX$228)+(IF($A$7=Nutrients!$B$8,Nutrients!$EX$8,Nutrients!$EX$9)*K$7)+(((IF($A$8=Nutrients!$B$79,Nutrients!$EX$79,(IF($A$8=Nutrients!$B$77,Nutrients!$EX$77,Nutrients!$EX$78)))))*K$8))","v":22500},{"$f":"(SUMPRODUCT(L$9:L$229,Nutrients!$EX$8:$EX$228)+(IF($A$7=Nutrients!$B$8,Nutrients!$EX$8,Nutrients!$EX$9)*L$7)+(((IF($A$8=Nutrients!$B$79,Nutrients!$EX$79,(IF($A$8=Nutrients!$B$77,Nutrients!$EX$77,Nutrients!$EX$78)))))*L$8))","v":18000},{"$f":"(SUMPRODUCT(M$9:M$229,Nutrients!$EX$8:$EX$228)+(IF($A$7=Nutrients!$B$8,Nutrients!$EX$8,Nutrients!$EX$9)*M$7)+(((IF($A$8=Nutrients!$B$79,Nutrients!$EX$79,(IF($A$8=Nutrients!$B$77,Nutrients!$EX$77,Nutrients!$EX$78)))))*M$8))","v":13500},{"$f":"(SUMPRODUCT(N$9:N$229,Nutrients!$EX$8:$EX$228)+(IF($A$7=Nutrients!$B$8,Nutrients!$EX$8,Nutrients!$EX$9)*N$7)+(((IF($A$8=Nutrients!$B$79,Nutrients!$EX$79,(IF($A$8=Nutrients!$B$77,Nutrients!$EX$77,Nutrients!$EX$78)))))*N$8))","v":13500},null,{"$f":"(SUMPRODUCT(P$9:P$229,Nutrients!$EX$8:$EX$228)+(IF($A$7=Nutrients!$B$8,Nutrients!$EX$8,Nutrients!$EX$9)*P$7)+(((IF($A$8=Nutrients!$B$79,Nutrients!$EX$79,(IF($A$8=Nutrients!$B$77,Nutrients!$EX$77,Nutrients!$EX$78)))))*P$8))","v":27000},{"$f":"(SUMPRODUCT(Q$9:Q$229,Nutrients!$EX$8:$EX$228)+(IF($A$7=Nutrients!$B$8,Nutrients!$EX$8,Nutrients!$EX$9)*Q$7)+(((IF($A$8=Nutrients!$B$79,Nutrients!$EX$79,(IF($A$8=Nutrients!$B$77,Nutrients!$EX$77,Nutrients!$EX$78)))))*Q$8))","v":27000},{"$f":"(SUMPRODUCT(R$9:R$229,Nutrients!$EX$8:$EX$228)+(IF($A$7=Nutrients!$B$8,Nutrients!$EX$8,Nutrients!$EX$9)*R$7)+(((IF($A$8=Nutrients!$B$79,Nutrients!$EX$79,(IF($A$8=Nutrients!$B$77,Nutrients!$EX$77,Nutrients!$EX$78)))))*R$8))","v":22500},{"$f":"(SUMPRODUCT(S$9:S$229,Nutrients!$EX$8:$EX$228)+(IF($A$7=Nutrients!$B$8,Nutrients!$EX$8,Nutrients!$EX$9)*S$7)+(((IF($A$8=Nutrients!$B$79,Nutrients!$EX$79,(IF($A$8=Nutrients!$B$77,Nutrients!$EX$77,Nutrients!$EX$78)))))*S$8))","v":18000},{"$f":"(SUMPRODUCT(T$9:T$229,Nutrients!$EX$8:$EX$228)+(IF($A$7=Nutrients!$B$8,Nutrients!$EX$8,Nutrients!$EX$9)*T$7)+(((IF($A$8=Nutrients!$B$79,Nutrients!$EX$79,(IF($A$8=Nutrients!$B$77,Nutrients!$EX$77,Nutrients!$EX$78)))))*T$8))","v":13500},{"$f":"(SUMPRODUCT(U$9:U$229,Nutrients!$EX$8:$EX$228)+(IF($A$7=Nutrients!$B$8,Nutrients!$EX$8,Nutrients!$EX$9)*U$7)+(((IF($A$8=Nutrients!$B$79,Nutrients!$EX$79,(IF($A$8=Nutrients!$B$77,Nutrients!$EX$77,Nutrients!$EX$78)))))*U$8))","v":13500},null,{"$f":"(SUMPRODUCT(W$9:W$229,Nutrients!$EX$8:$EX$228)+(IF($A$7=Nutrients!$B$8,Nutrients!$EX$8,Nutrients!$EX$9)*W$7)+(((IF($A$8=Nutrients!$B$79,Nutrients!$EX$79,(IF($A$8=Nutrients!$B$77,Nutrients!$EX$77,Nutrients!$EX$78)))))*W$8))","v":27000},{"$f":"(SUMPRODUCT(X$9:X$229,Nutrients!$EX$8:$EX$228)+(IF($A$7=Nutrients!$B$8,Nutrients!$EX$8,Nutrients!$EX$9)*X$7)+(((IF($A$8=Nutrients!$B$79,Nutrients!$EX$79,(IF($A$8=Nutrients!$B$77,Nutrients!$EX$77,Nutrients!$EX$78)))))*X$8))","v":27000},{"$f":"(SUMPRODUCT(Y$9:Y$229,Nutrients!$EX$8:$EX$228)+(IF($A$7=Nutrients!$B$8,Nutrients!$EX$8,Nutrients!$EX$9)*Y$7)+(((IF($A$8=Nutrients!$B$79,Nutrients!$EX$79,(IF($A$8=Nutrients!$B$77,Nutrients!$EX$77,Nutrients!$EX$78)))))*Y$8))","v":22500},{"$f":"(SUMPRODUCT(Z$9:Z$229,Nutrients!$EX$8:$EX$228)+(IF($A$7=Nutrients!$B$8,Nutrients!$EX$8,Nutrients!$EX$9)*Z$7)+(((IF($A$8=Nutrients!$B$79,Nutrients!$EX$79,(IF($A$8=Nutrients!$B$77,Nutrients!$EX$77,Nutrients!$EX$78)))))*Z$8))","v":18000},{"$f":"(SUMPRODUCT(AA$9:AA$229,Nutrients!$EX$8:$EX$228)+(IF($A$7=Nutrients!$B$8,Nutrients!$EX$8,Nutrients!$EX$9)*AA$7)+(((IF($A$8=Nutrients!$B$79,Nutrients!$EX$79,(IF($A$8=Nutrients!$B$77,Nutrients!$EX$77,Nutrients!$EX$78)))))*AA$8))","v":13500},{"$f":"(SUMPRODUCT(AB$9:AB$229,Nutrients!$EX$8:$EX$228)+(IF($A$7=Nutrients!$B$8,Nutrients!$EX$8,Nutrients!$EX$9)*AB$7)+(((IF($A$8=Nutrients!$B$79,Nutrients!$EX$79,(IF($A$8=Nutrients!$B$77,Nutrients!$EX$77,Nutrients!$EX$78)))))*AB$8))","v":13500},null,{"$f":"(SUMPRODUCT(AD$9:AD$229,Nutrients!$EX$8:$EX$228)+(IF($A$7=Nutrients!$B$8,Nutrients!$EX$8,Nutrients!$EX$9)*AD$7)+(((IF($A$8=Nutrients!$B$79,Nutrients!$EX$79,(IF($A$8=Nutrients!$B$77,Nutrients!$EX$77,Nutrients!$EX$78)))))*AD$8))","v":27000},{"$f":"(SUMPRODUCT(AE$9:AE$229,Nutrients!$EX$8:$EX$228)+(IF($A$7=Nutrients!$B$8,Nutrients!$EX$8,Nutrients!$EX$9)*AE$7)+(((IF($A$8=Nutrients!$B$79,Nutrients!$EX$79,(IF($A$8=Nutrients!$B$77,Nutrients!$EX$77,Nutrients!$EX$78)))))*AE$8))","v":27000},{"$f":"(SUMPRODUCT(AF$9:AF$229,Nutrients!$EX$8:$EX$228)+(IF($A$7=Nutrients!$B$8,Nutrients!$EX$8,Nutrients!$EX$9)*AF$7)+(((IF($A$8=Nutrients!$B$79,Nutrients!$EX$79,(IF($A$8=Nutrients!$B$77,Nutrients!$EX$77,Nutrients!$EX$78)))))*AF$8))","v":22500},{"$f":"(SUMPRODUCT(AG$9:AG$229,Nutrients!$EX$8:$EX$228)+(IF($A$7=Nutrients!$B$8,Nutrients!$EX$8,Nutrients!$EX$9)*AG$7)+(((IF($A$8=Nutrients!$B$79,Nutrients!$EX$79,(IF($A$8=Nutrients!$B$77,Nutrients!$EX$77,Nutrients!$EX$78)))))*AG$8))","v":18000},{"$f":"(SUMPRODUCT(AH$9:AH$229,Nutrients!$EX$8:$EX$228)+(IF($A$7=Nutrients!$B$8,Nutrients!$EX$8,Nutrients!$EX$9)*AH$7)+(((IF($A$8=Nutrients!$B$79,Nutrients!$EX$79,(IF($A$8=Nutrients!$B$77,Nutrients!$EX$77,Nutrients!$EX$78)))))*AH$8))","v":13500},{"$f":"(SUMPRODUCT(AI$9:AI$229,Nutrients!$EX$8:$EX$228)+(IF($A$7=Nutrients!$B$8,Nutrients!$EX$8,Nutrients!$EX$9)*AI$7)+(((IF($A$8=Nutrients!$B$79,Nutrients!$EX$79,(IF($A$8=Nutrients!$B$77,Nutrients!$EX$77,Nutrients!$EX$78)))))*AI$8))","v":13500},null,{"$f":"(SUMPRODUCT(AK$9:AK$229,Nutrients!$EX$8:$EX$228)+(IF($A$7=Nutrients!$B$8,Nutrients!$EX$8,Nutrients!$EX$9)*AK$7)+(((IF($A$8=Nutrients!$B$79,Nutrients!$EX$79,(IF($A$8=Nutrients!$B$77,Nutrients!$EX$77,Nutrients!$EX$78)))))*AK$8))","v":27000},{"$f":"(SUMPRODUCT(AL$9:AL$229,Nutrients!$EX$8:$EX$228)+(IF($A$7=Nutrients!$B$8,Nutrients!$EX$8,Nutrients!$EX$9)*AL$7)+(((IF($A$8=Nutrients!$B$79,Nutrients!$EX$79,(IF($A$8=Nutrients!$B$77,Nutrients!$EX$77,Nutrients!$EX$78)))))*AL$8))","v":27000},{"$f":"(SUMPRODUCT(AM$9:AM$229,Nutrients!$EX$8:$EX$228)+(IF($A$7=Nutrients!$B$8,Nutrients!$EX$8,Nutrients!$EX$9)*AM$7)+(((IF($A$8=Nutrients!$B$79,Nutrients!$EX$79,(IF($A$8=Nutrients!$B$77,Nutrients!$EX$77,Nutrients!$EX$78)))))*AM$8))","v":22500},{"$f":"(SUMPRODUCT(AN$9:AN$229,Nutrients!$EX$8:$EX$228)+(IF($A$7=Nutrients!$B$8,Nutrients!$EX$8,Nutrients!$EX$9)*AN$7)+(((IF($A$8=Nutrients!$B$79,Nutrients!$EX$79,(IF($A$8=Nutrients!$B$77,Nutrients!$EX$77,Nutrients!$EX$78)))))*AN$8))","v":18000},{"$f":"(SUMPRODUCT(AO$9:AO$229,Nutrients!$EX$8:$EX$228)+(IF($A$7=Nutrients!$B$8,Nutrients!$EX$8,Nutrients!$EX$9)*AO$7)+(((IF($A$8=Nutrients!$B$79,Nutrients!$EX$79,(IF($A$8=Nutrients!$B$77,Nutrients!$EX$77,Nutrients!$EX$78)))))*AO$8))","v":13500},{"$f":"(SUMPRODUCT(AP$9:AP$229,Nutrients!$EX$8:$EX$228)+(IF($A$7=Nutrients!$B$8,Nutrients!$EX$8,Nutrients!$EX$9)*AP$7)+(((IF($A$8=Nutrients!$B$79,Nutrients!$EX$79,(IF($A$8=Nutrients!$B$77,Nutrients!$EX$77,Nutrients!$EX$78)))))*AP$8))","v":13500},null,{"$f":"(SUMPRODUCT(AR$9:AR$229,Nutrients!$EX$8:$EX$228)+(IF($A$7=Nutrients!$B$8,Nutrients!$EX$8,Nutrients!$EX$9)*AR$7)+(((IF($A$8=Nutrients!$B$79,Nutrients!$EX$79,(IF($A$8=Nutrients!$B$77,Nutrients!$EX$77,Nutrients!$EX$78)))))*AR$8))","v":27000},{"$f":"(SUMPRODUCT(AS$9:AS$229,Nutrients!$EX$8:$EX$228)+(IF($A$7=Nutrients!$B$8,Nutrients!$EX$8,Nutrients!$EX$9)*AS$7)+(((IF($A$8=Nutrients!$B$79,Nutrients!$EX$79,(IF($A$8=Nutrients!$B$77,Nutrients!$EX$77,Nutrients!$EX$78)))))*AS$8))","v":27000},{"$f":"(SUMPRODUCT(AT$9:AT$229,Nutrients!$EX$8:$EX$228)+(IF($A$7=Nutrients!$B$8,Nutrients!$EX$8,Nutrients!$EX$9)*AT$7)+(((IF($A$8=Nutrients!$B$79,Nutrients!$EX$79,(IF($A$8=Nutrients!$B$77,Nutrients!$EX$77,Nutrients!$EX$78)))))*AT$8))","v":22500},{"$f":"(SUMPRODUCT(AU$9:AU$229,Nutrients!$EX$8:$EX$228)+(IF($A$7=Nutrients!$B$8,Nutrients!$EX$8,Nutrients!$EX$9)*AU$7)+(((IF($A$8=Nutrients!$B$79,Nutrients!$EX$79,(IF($A$8=Nutrients!$B$77,Nutrients!$EX$77,Nutrients!$EX$78)))))*AU$8))","v":18000},{"$f":"(SUMPRODUCT(AV$9:AV$229,Nutrients!$EX$8:$EX$228)+(IF($A$7=Nutrients!$B$8,Nutrients!$EX$8,Nutrients!$EX$9)*AV$7)+(((IF($A$8=Nutrients!$B$79,Nutrients!$EX$79,(IF($A$8=Nutrients!$B$77,Nutrients!$EX$77,Nutrients!$EX$78)))))*AV$8))","v":13500},{"$f":"(SUMPRODUCT(AW$9:AW$229,Nutrients!$EX$8:$EX$228)+(IF($A$7=Nutrients!$B$8,Nutrients!$EX$8,Nutrients!$EX$9)*AW$7)+(((IF($A$8=Nutrients!$B$79,Nutrients!$EX$79,(IF($A$8=Nutrients!$B$77,Nutrients!$EX$77,Nutrients!$EX$78)))))*AW$8))","v":13500}]
["  Pantothenic Acid, mg/ton",{"$f":"(SUMPRODUCT(B$9:B$229,Nutrients!$EY$8:$EY$228)+(IF($A$7=Nutrients!$B$8,Nutrients!$EY$8,Nutrients!$EY$9)*B$7)+(((IF($A$8=Nutrients!$B$79,Nutrients!$EY$79,(IF($A$8=Nutrients!$B$77,Nutrients!$EY$77,Nutrients!$EY$78)))))*B$8))","v":15000},{"$f":"(SUMPRODUCT(C$9:C$229,Nutrients!$EY$8:$EY$228)+(IF($A$7=Nutrients!$B$8,Nutrients!$EY$8,Nutrients!$EY$9)*C$7)+(((IF($A$8=Nutrients!$B$79,Nutrients!$EY$79,(IF($A$8=Nutrients!$B$77,Nutrients!$EY$77,Nutrients!$EY$78)))))*C$8))","v":15000},{"$f":"(SUMPRODUCT(D$9:D$229,Nutrients!$EY$8:$EY$228)+(IF($A$7=Nutrients!$B$8,Nutrients!$EY$8,Nutrients!$EY$9)*D$7)+(((IF($A$8=Nutrients!$B$79,Nutrients!$EY$79,(IF($A$8=Nutrients!$B$77,Nutrients!$EY$77,Nutrients!$EY$78)))))*D$8))","v":12500},{"$f":"(SUMPRODUCT(E$9:E$229,Nutrients!$EY$8:$EY$228)+(IF($A$7=Nutrients!$B$8,Nutrients!$EY$8,Nutrients!$EY$9)*E$7)+(((IF($A$8=Nutrients!$B$79,Nutrients!$EY$79,(IF($A$8=Nutrients!$B$77,Nutrients!$EY$77,Nutrients!$EY$78)))))*E$8))","v":10000},{"$f":"(SUMPRODUCT(F$9:F$229,Nutrients!$EY$8:$EY$228)+(IF($A$7=Nutrients!$B$8,Nutrients!$EY$8,Nutrients!$EY$9)*F$7)+(((IF($A$8=Nutrients!$B$79,Nutrients!$EY$79,(IF($A$8=Nutrients!$B$77,Nutrients!$EY$77,Nutrients!$EY$78)))))*F$8))","v":7500},{"$f":"(SUMPRODUCT(G$9:G$229,Nutrients!$EY$8:$EY$228)+(IF($A$7=Nutrients!$B$8,Nutrients!$EY$8,Nutrients!$EY$9)*G$7)+(((IF($A$8=Nutrients!$B$79,Nutrients!$EY$79,(IF($A$8=Nutrients!$B$77,Nutrients!$EY$77,Nutrients!$EY$78)))))*G$8))","v":7500},null,{"$f":"(SUMPRODUCT(I$9:I$229,Nutrients!$EY$8:$EY$228)+(IF($A$7=Nutrients!$B$8,Nutrients!$EY$8,Nutrients!$EY$9)*I$7)+(((IF($A$8=Nutrients!$B$79,Nutrients!$EY$79,(IF($A$8=Nutrients!$B$77,Nutrients!$EY$77,Nutrients!$EY$78)))))*I$8))","v":15000},{"$f":"(SUMPRODUCT(J$9:J$229,Nutrients!$EY$8:$EY$228)+(IF($A$7=Nutrients!$B$8,Nutrients!$EY$8,Nutrients!$EY$9)*J$7)+(((IF($A$8=Nutrients!$B$79,Nutrients!$EY$79,(IF($A$8=Nutrients!$B$77,Nutrients!$EY$77,Nutrients!$EY$78)))))*J$8))","v":15000},{"$f":"(SUMPRODUCT(K$9:K$229,Nutrients!$EY$8:$EY$228)+(IF($A$7=Nutrients!$B$8,Nutrients!$EY$8,Nutrients!$EY$9)*K$7)+(((IF($A$8=Nutrients!$B$79,Nutrients!$EY$79,(IF($A$8=Nutrients!$B$77,Nutrients!$EY$77,Nutrients!$EY$78)))))*K$8))","v":12500},{"$f":"(SUMPRODUCT(L$9:L$229,Nutrients!$EY$8:$EY$228)+(IF($A$7=Nutrients!$B$8,Nutrients!$EY$8,Nutrients!$EY$9)*L$7)+(((IF($A$8=Nutrients!$B$79,Nutrients!$EY$79,(IF($A$8=Nutrients!$B$77,Nutrients!$EY$77,Nutrients!$EY$78)))))*L$8))","v":10000},{"$f":"(SUMPRODUCT(M$9:M$229,Nutrients!$EY$8:$EY$228)+(IF($A$7=Nutrients!$B$8,Nutrients!$EY$8,Nutrients!$EY$9)*M$7)+(((IF($A$8=Nutrients!$B$79,Nutrients!$EY$79,(IF($A$8=Nutrients!$B$77,Nutrients!$EY$77,Nutrients!$EY$78)))))*M$8))","v":7500},{"$f":"(SUMPRODUCT(N$9:N$229,Nutrients!$EY$8:$EY$228)+(IF($A$7=Nutrients!$B$8,Nutrients!$EY$8,Nutrients!$EY$9)*N$7)+(((IF($A$8=Nutrients!$B$79,Nutrients!$EY$79,(IF($A$8=Nutrients!$B$77,Nutrients!$EY$77,Nutrients!$EY$78)))))*N$8))","v":7500},null,{"$f":"(SUMPRODUCT(P$9:P$229,Nutrients!$EY$8:$EY$228)+(IF($A$7=Nutrients!$B$8,Nutrients!$EY$8,Nutrients!$EY$9)*P$7)+(((IF($A$8=Nutrients!$B$79,Nutrients!$EY$79,(IF($A$8=Nutrients!$B$77,Nutrients!$EY$77,Nutrients!$EY$78)))))*P$8))","v":15000},{"$f":"(SUMPRODUCT(Q$9:Q$229,Nutrients!$EY$8:$EY$228)+(IF($A$7=Nutrients!$B$8,Nutrients!$EY$8,Nutrients!$EY$9)*Q$7)+(((IF($A$8=Nutrients!$B$79,Nutrients!$EY$79,(IF($A$8=Nutrients!$B$77,Nutrients!$EY$77,Nutrients!$EY$78)))))*Q$8))","v":15000},{"$f":"(SUMPRODUCT(R$9:R$229,Nutrients!$EY$8:$EY$228)+(IF($A$7=Nutrients!$B$8,Nutrients!$EY$8,Nutrients!$EY$9)*R$7)+(((IF($A$8=Nutrients!$B$79,Nutrients!$EY$79,(IF($A$8=Nutrients!$B$77,Nutrients!$EY$77,Nutrients!$EY$78)))))*R$8))","v":12500},{"$f":"(SUMPRODUCT(S$9:S$229,Nutrients!$EY$8:$EY$228)+(IF($A$7=Nutrients!$B$8,Nutrients!$EY$8,Nutrients!$EY$9)*S$7)+(((IF($A$8=Nutrients!$B$79,Nutrients!$EY$79,(IF($A$8=Nutrients!$B$77,Nutrients!$EY$77,Nutrients!$EY$78)))))*S$8))","v":10000},{"$f":"(SUMPRODUCT(T$9:T$229,Nutrients!$EY$8:$EY$228)+(IF($A$7=Nutrients!$B$8,Nutrients!$EY$8,Nutrients!$EY$9)*T$7)+(((IF($A$8=Nutrients!$B$79,Nutrients!$EY$79,(IF($A$8=Nutrients!$B$77,Nutrients!$EY$77,Nutrients!$EY$78)))))*T$8))","v":7500},{"$f":"(SUMPRODUCT(U$9:U$229,Nutrients!$EY$8:$EY$228)+(IF($A$7=Nutrients!$B$8,Nutrients!$EY$8,Nutrients!$EY$9)*U$7)+(((IF($A$8=Nutrients!$B$79,Nutrients!$EY$79,(IF($A$8=Nutrients!$B$77,Nutrients!$EY$77,Nutrients!$EY$78)))))*U$8))","v":7500},null,{"$f":"(SUMPRODUCT(W$9:W$229,Nutrients!$EY$8:$EY$228)+(IF($A$7=Nutrients!$B$8,Nutrients!$EY$8,Nutrients!$EY$9)*W$7)+(((IF($A$8=Nutrients!$B$79,Nutrients!$EY$79,(IF($A$8=Nutrients!$B$77,Nutrients!$EY$77,Nutrients!$EY$78)))))*W$8))","v":15000},{"$f":"(SUMPRODUCT(X$9:X$229,Nutrients!$EY$8:$EY$228)+(IF($A$7=Nutrients!$B$8,Nutrients!$EY$8,Nutrients!$EY$9)*X$7)+(((IF($A$8=Nutrients!$B$79,Nutrients!$EY$79,(IF($A$8=Nutrients!$B$77,Nutrients!$EY$77,Nutrients!$EY$78)))))*X$8))","v":15000},{"$f":"(SUMPRODUCT(Y$9:Y$229,Nutrients!$EY$8:$EY$228)+(IF($A$7=Nutrients!$B$8,Nutrients!$EY$8,Nutrients!$EY$9)*Y$7)+(((IF($A$8=Nutrients!$B$79,Nutrients!$EY$79,(IF($A$8=Nutrients!$B$77,Nutrients!$EY$77,Nutrients!$EY$78)))))*Y$8))","v":12500},{"$f":"(SUMPRODUCT(Z$9:Z$229,Nutrients!$EY$8:$EY$228)+(IF($A$7=Nutrients!$B$8,Nutrients!$EY$8,Nutrients!$EY$9)*Z$7)+(((IF($A$8=Nutrients!$B$79,Nutrients!$EY$79,(IF($A$8=Nutrients!$B$77,Nutrients!$EY$77,Nutrients!$EY$78)))))*Z$8))","v":10000},{"$f":"(SUMPRODUCT(AA$9:AA$229,Nutrients!$EY$8:$EY$228)+(IF($A$7=Nutrients!$B$8,Nutrients!$EY$8,Nutrients!$EY$9)*AA$7)+(((IF($A$8=Nutrients!$B$79,Nutrients!$EY$79,(IF($A$8=Nutrients!$B$77,Nutrients!$EY$77,Nutrients!$EY$78)))))*AA$8))","v":7500},{"$f":"(SUMPRODUCT(AB$9:AB$229,Nutrients!$EY$8:$EY$228)+(IF($A$7=Nutrients!$B$8,Nutrients!$EY$8,Nutrients!$EY$9)*AB$7)+(((IF($A$8=Nutrients!$B$79,Nutrients!$EY$79,(IF($A$8=Nutrients!$B$77,Nutrients!$EY$77,Nutrients!$EY$78)))))*AB$8))","v":7500},null,{"$f":"(SUMPRODUCT(AD$9:AD$229,Nutrients!$EY$8:$EY$228)+(IF($A$7=Nutrients!$B$8,Nutrients!$EY$8,Nutrients!$EY$9)*AD$7)+(((IF($A$8=Nutrients!$B$79,Nutrients!$EY$79,(IF($A$8=Nutrients!$B$77,Nutrients!$EY$77,Nutrients!$EY$78)))))*AD$8))","v":15000},{"$f":"(SUMPRODUCT(AE$9:AE$229,Nutrients!$EY$8:$EY$228)+(IF($A$7=Nutrients!$B$8,Nutrients!$EY$8,Nutrients!$EY$9)*AE$7)+(((IF($A$8=Nutrients!$B$79,Nutrients!$EY$79,(IF($A$8=Nutrients!$B$77,Nutrients!$EY$77,Nutrients!$EY$78)))))*AE$8))","v":15000},{"$f":"(SUMPRODUCT(AF$9:AF$229,Nutrients!$EY$8:$EY$228)+(IF($A$7=Nutrients!$B$8,Nutrients!$EY$8,Nutrients!$EY$9)*AF$7)+(((IF($A$8=Nutrients!$B$79,Nutrients!$EY$79,(IF($A$8=Nutrients!$B$77,Nutrients!$EY$77,Nutrients!$EY$78)))))*AF$8))","v":12500},{"$f":"(SUMPRODUCT(AG$9:AG$229,Nutrients!$EY$8:$EY$228)+(IF($A$7=Nutrients!$B$8,Nutrients!$EY$8,Nutrients!$EY$9)*AG$7)+(((IF($A$8=Nutrients!$B$79,Nutrients!$EY$79,(IF($A$8=Nutrients!$B$77,Nutrients!$EY$77,Nutrients!$EY$78)))))*AG$8))","v":10000},{"$f":"(SUMPRODUCT(AH$9:AH$229,Nutrients!$EY$8:$EY$228)+(IF($A$7=Nutrients!$B$8,Nutrients!$EY$8,Nutrients!$EY$9)*AH$7)+(((IF($A$8=Nutrients!$B$79,Nutrients!$EY$79,(IF($A$8=Nutrients!$B$77,Nutrients!$EY$77,Nutrients!$EY$78)))))*AH$8))","v":7500},{"$f":"(SUMPRODUCT(AI$9:AI$229,Nutrients!$EY$8:$EY$228)+(IF($A$7=Nutrients!$B$8,Nutrients!$EY$8,Nutrients!$EY$9)*AI$7)+(((IF($A$8=Nutrients!$B$79,Nutrients!$EY$79,(IF($A$8=Nutrients!$B$77,Nutrients!$EY$77,Nutrients!$EY$78)))))*AI$8))","v":7500},null,{"$f":"(SUMPRODUCT(AK$9:AK$229,Nutrients!$EY$8:$EY$228)+(IF($A$7=Nutrients!$B$8,Nutrients!$EY$8,Nutrients!$EY$9)*AK$7)+(((IF($A$8=Nutrients!$B$79,Nutrients!$EY$79,(IF($A$8=Nutrients!$B$77,Nutrients!$EY$77,Nutrients!$EY$78)))))*AK$8))","v":15000},{"$f":"(SUMPRODUCT(AL$9:AL$229,Nutrients!$EY$8:$EY$228)+(IF($A$7=Nutrients!$B$8,Nutrients!$EY$8,Nutrients!$EY$9)*AL$7)+(((IF($A$8=Nutrients!$B$79,Nutrients!$EY$79,(IF($A$8=Nutrients!$B$77,Nutrients!$EY$77,Nutrients!$EY$78)))))*AL$8))","v":15000},{"$f":"(SUMPRODUCT(AM$9:AM$229,Nutrients!$EY$8:$EY$228)+(IF($A$7=Nutrients!$B$8,Nutrients!$EY$8,Nutrients!$EY$9)*AM$7)+(((IF($A$8=Nutrients!$B$79,Nutrients!$EY$79,(IF($A$8=Nutrients!$B$77,Nutrients!$EY$77,Nutrients!$EY$78)))))*AM$8))","v":12500},{"$f":"(SUMPRODUCT(AN$9:AN$229,Nutrients!$EY$8:$EY$228)+(IF($A$7=Nutrients!$B$8,Nutrients!$EY$8,Nutrients!$EY$9)*AN$7)+(((IF($A$8=Nutrients!$B$79,Nutrients!$EY$79,(IF($A$8=Nutrients!$B$77,Nutrients!$EY$77,Nutrients!$EY$78)))))*AN$8))","v":10000},{"$f":"(SUMPRODUCT(AO$9:AO$229,Nutrients!$EY$8:$EY$228)+(IF($A$7=Nutrients!$B$8,Nutrients!$EY$8,Nutrients!$EY$9)*AO$7)+(((IF($A$8=Nutrients!$B$79,Nutrients!$EY$79,(IF($A$8=Nutrients!$B$77,Nutrients!$EY$77,Nutrients!$EY$78)))))*AO$8))","v":7500},{"$f":"(SUMPRODUCT(AP$9:AP$229,Nutrients!$EY$8:$EY$228)+(IF($A$7=Nutrients!$B$8,Nutrients!$EY$8,Nutrients!$EY$9)*AP$7)+(((IF($A$8=Nutrients!$B$79,Nutrients!$EY$79,(IF($A$8=Nutrients!$B$77,Nutrients!$EY$77,Nutrients!$EY$78)))))*AP$8))","v":7500},null,{"$f":"(SUMPRODUCT(AR$9:AR$229,Nutrients!$EY$8:$EY$228)+(IF($A$7=Nutrients!$B$8,Nutrients!$EY$8,Nutrients!$EY$9)*AR$7)+(((IF($A$8=Nutrients!$B$79,Nutrients!$EY$79,(IF($A$8=Nutrients!$B$77,Nutrients!$EY$77,Nutrients!$EY$78)))))*AR$8))","v":15000},{"$f":"(SUMPRODUCT(AS$9:AS$229,Nutrients!$EY$8:$EY$228)+(IF($A$7=Nutrients!$B$8,Nutrients!$EY$8,Nutrients!$EY$9)*AS$7)+(((IF($A$8=Nutrients!$B$79,Nutrients!$EY$79,(IF($A$8=Nutrients!$B$77,Nutrients!$EY$77,Nutrients!$EY$78)))))*AS$8))","v":15000},{"$f":"(SUMPRODUCT(AT$9:AT$229,Nutrients!$EY$8:$EY$228)+(IF($A$7=Nutrients!$B$8,Nutrients!$EY$8,Nutrients!$EY$9)*AT$7)+(((IF($A$8=Nutrients!$B$79,Nutrients!$EY$79,(IF($A$8=Nutrients!$B$77,Nutrients!$EY$77,Nutrients!$EY$78)))))*AT$8))","v":12500},{"$f":"(SUMPRODUCT(AU$9:AU$229,Nutrients!$EY$8:$EY$228)+(IF($A$7=Nutrients!$B$8,Nutrients!$EY$8,Nutrients!$EY$9)*AU$7)+(((IF($A$8=Nutrients!$B$79,Nutrients!$EY$79,(IF($A$8=Nutrients!$B$77,Nutrients!$EY$77,Nutrients!$EY$78)))))*AU$8))","v":10000},{"$f":"(SUMPRODUCT(AV$9:AV$229,Nutrients!$EY$8:$EY$228)+(IF($A$7=Nutrients!$B$8,Nutrients!$EY$8,Nutrients!$EY$9)*AV$7)+(((IF($A$8=Nutrients!$B$79,Nutrients!$EY$79,(IF($A$8=Nutrients!$B$77,Nutrients!$EY$77,Nutrients!$EY$78)))))*AV$8))","v":7500},{"$f":"(SUMPRODUCT(AW$9:AW$229,Nutrients!$EY$8:$EY$228)+(IF($A$7=Nutrients!$B$8,Nutrients!$EY$8,Nutrients!$EY$9)*AW$7)+(((IF($A$8=Nutrients!$B$79,Nutrients!$EY$79,(IF($A$8=Nutrients!$B$77,Nutrients!$EY$77,Nutrients!$EY$78)))))*AW$8))","v":7500}]
["  Riboflavin, mg/ton",{"$f":"(SUMPRODUCT(B$9:B$229,Nutrients!$EZ$8:$EZ$228)+(IF($A$7=Nutrients!$B$8,Nutrients!$EZ$8,Nutrients!$EZ$9)*B$7)+(((IF($A$8=Nutrients!$B$79,Nutrients!$EZ$79,(IF($A$8=Nutrients!$B$77,Nutrients!$EZ$77,Nutrients!$EZ$78)))))*B$8))","v":4500},{"$f":"(SUMPRODUCT(C$9:C$229,Nutrients!$EZ$8:$EZ$228)+(IF($A$7=Nutrients!$B$8,Nutrients!$EZ$8,Nutrients!$EZ$9)*C$7)+(((IF($A$8=Nutrients!$B$79,Nutrients!$EZ$79,(IF($A$8=Nutrients!$B$77,Nutrients!$EZ$77,Nutrients!$EZ$78)))))*C$8))","v":4500},{"$f":"(SUMPRODUCT(D$9:D$229,Nutrients!$EZ$8:$EZ$228)+(IF($A$7=Nutrients!$B$8,Nutrients!$EZ$8,Nutrients!$EZ$9)*D$7)+(((IF($A$8=Nutrients!$B$79,Nutrients!$EZ$79,(IF($A$8=Nutrients!$B$77,Nutrients!$EZ$77,Nutrients!$EZ$78)))))*D$8))","v":3750},{"$f":"(SUMPRODUCT(E$9:E$229,Nutrients!$EZ$8:$EZ$228)+(IF($A$7=Nutrients!$B$8,Nutrients!$EZ$8,Nutrients!$EZ$9)*E$7)+(((IF($A$8=Nutrients!$B$79,Nutrients!$EZ$79,(IF($A$8=Nutrients!$B$77,Nutrients!$EZ$77,Nutrients!$EZ$78)))))*E$8))","v":3000},{"$f":"(SUMPRODUCT(F$9:F$229,Nutrients!$EZ$8:$EZ$228)+(IF($A$7=Nutrients!$B$8,Nutrients!$EZ$8,Nutrients!$EZ$9)*F$7)+(((IF($A$8=Nutrients!$B$79,Nutrients!$EZ$79,(IF($A$8=Nutrients!$B$77,Nutrients!$EZ$77,Nutrients!$EZ$78)))))*F$8))","v":2250},{"$f":"(SUMPRODUCT(G$9:G$229,Nutrients!$EZ$8:$EZ$228)+(IF($A$7=Nutrients!$B$8,Nutrients!$EZ$8,Nutrients!$EZ$9)*G$7)+(((IF($A$8=Nutrients!$B$79,Nutrients!$EZ$79,(IF($A$8=Nutrients!$B$77,Nutrients!$EZ$77,Nutrients!$EZ$78)))))*G$8))","v":2250},null,{"$f":"(SUMPRODUCT(I$9:I$229,Nutrients!$EZ$8:$EZ$228)+(IF($A$7=Nutrients!$B$8,Nutrients!$EZ$8,Nutrients!$EZ$9)*I$7)+(((IF($A$8=Nutrients!$B$79,Nutrients!$EZ$79,(IF($A$8=Nutrients!$B$77,Nutrients!$EZ$77,Nutrients!$EZ$78)))))*I$8))","v":4500},{"$f":"(SUMPRODUCT(J$9:J$229,Nutrients!$EZ$8:$EZ$228)+(IF($A$7=Nutrients!$B$8,Nutrients!$EZ$8,Nutrients!$EZ$9)*J$7)+(((IF($A$8=Nutrients!$B$79,Nutrients!$EZ$79,(IF($A$8=Nutrients!$B$77,Nutrients!$EZ$77,Nutrients!$EZ$78)))))*J$8))","v":4500},{"$f":"(SUMPRODUCT(K$9:K$229,Nutrients!$EZ$8:$EZ$228)+(IF($A$7=Nutrients!$B$8,Nutrients!$EZ$8,Nutrients!$EZ$9)*K$7)+(((IF($A$8=Nutrients!$B$79,Nutrients!$EZ$79,(IF($A$8=Nutrients!$B$77,Nutrients!$EZ$77,Nutrients!$EZ$78)))))*K$8))","v":3750},{"$f":"(SUMPRODUCT(L$9:L$229,Nutrients!$EZ$8:$EZ$228)+(IF($A$7=Nutrients!$B$8,Nutrients!$EZ$8,Nutrients!$EZ$9)*L$7)+(((IF($A$8=Nutrients!$B$79,Nutrients!$EZ$79,(IF($A$8=Nutrients!$B$77,Nutrients!$EZ$77,Nutrients!$EZ$78)))))*L$8))","v":3000},{"$f":"(SUMPRODUCT(M$9:M$229,Nutrients!$EZ$8:$EZ$228)+(IF($A$7=Nutrients!$B$8,Nutrients!$EZ$8,Nutrients!$EZ$9)*M$7)+(((IF($A$8=Nutrients!$B$79,Nutrients!$EZ$79,(IF($A$8=Nutrients!$B$77,Nutrients!$EZ$77,Nutrients!$EZ$78)))))*M$8))","v":2250},{"$f":"(SUMPRODUCT(N$9:N$229,Nutrients!$EZ$8:$EZ$228)+(IF($A$7=Nutrients!$B$8,Nutrients!$EZ$8,Nutrients!$EZ$9)*N$7)+(((IF($A$8=Nutrients!$B$79,Nutrients!$EZ$79,(IF($A$8=Nutrients!$B$77,Nutrients!$EZ$77,Nutrients!$EZ$78)))))*N$8))","v":2250},null,{"$f":"(SUMPRODUCT(P$9:P$229,Nutrients!$EZ$8:$EZ$228)+(IF($A$7=Nutrients!$B$8,Nutrients!$EZ$8,Nutrients!$EZ$9)*P$7)+(((IF($A$8=Nutrients!$B$79,Nutrients!$EZ$79,(IF($A$8=Nutrients!$B$77,Nutrients!$EZ$77,Nutrients!$EZ$78)))))*P$8))","v":4500},{"$f":"(SUMPRODUCT(Q$9:Q$229,Nutrients!$EZ$8:$EZ$228)+(IF($A$7=Nutrients!$B$8,Nutrients!$EZ$8,Nutrients!$EZ$9)*Q$7)+(((IF($A$8=Nutrients!$B$79,Nutrients!$EZ$79,(IF($A$8=Nutrients!$B$77,Nutrients!$EZ$77,Nutrients!$EZ$78)))))*Q$8))","v":4500},{"$f":"(SUMPRODUCT(R$9:R$229,Nutrients!$EZ$8:$EZ$228)+(IF($A$7=Nutrients!$B$8,Nutrients!$EZ$8,Nutrients!$EZ$9)*R$7)+(((IF($A$8=Nutrients!$B$79,Nutrients!$EZ$79,(IF($A$8=Nutrients!$B$77,Nutrients!$EZ$77,Nutrients!$EZ$78)))))*R$8))","v":3750},{"$f":"(SUMPRODUCT(S$9:S$229,Nutrients!$EZ$8:$EZ$228)+(IF($A$7=Nutrients!$B$8,Nutrients!$EZ$8,Nutrients!$EZ$9)*S$7)+(((IF($A$8=Nutrients!$B$79,Nutrients!$EZ$79,(IF($A$8=Nutrients!$B$77,Nutrients!$EZ$77,Nutrients!$EZ$78)))))*S$8))","v":3000},{"$f":"(SUMPRODUCT(T$9:T$229,Nutrients!$EZ$8:$EZ$228)+(IF($A$7=Nutrients!$B$8,Nutrients!$EZ$8,Nutrients!$EZ$9)*T$7)+(((IF($A$8=Nutrients!$B$79,Nutrients!$EZ$79,(IF($A$8=Nutrients!$B$77,Nutrients!$EZ$77,Nutrients!$EZ$78)))))*T$8))","v":2250},{"$f":"(SUMPRODUCT(U$9:U$229,Nutrients!$EZ$8:$EZ$228)+(IF($A$7=Nutrients!$B$8,Nutrients!$EZ$8,Nutrients!$EZ$9)*U$7)+(((IF($A$8=Nutrients!$B$79,Nutrients!$EZ$79,(IF($A$8=Nutrients!$B$77,Nutrients!$EZ$77,Nutrients!$EZ$78)))))*U$8))","v":2250},null,{"$f":"(SUMPRODUCT(W$9:W$229,Nutrients!$EZ$8:$EZ$228)+(IF($A$7=Nutrients!$B$8,Nutrients!$EZ$8,Nutrients!$EZ$9)*W$7)+(((IF($A$8=Nutrients!$B$79,Nutrients!$EZ$79,(IF($A$8=Nutrients!$B$77,Nutrients!$EZ$77,Nutrients!$EZ$78)))))*W$8))","v":4500},{"$f":"(SUMPRODUCT(X$9:X$229,Nutrients!$EZ$8:$EZ$228)+(IF($A$7=Nutrients!$B$8,Nutrients!$EZ$8,Nutrients!$EZ$9)*X$7)+(((IF($A$8=Nutrients!$B$79,Nutrients!$EZ$79,(IF($A$8=Nutrients!$B$77,Nutrients!$EZ$77,Nutrients!$EZ$78)))))*X$8))","v":4500},{"$f":"(SUMPRODUCT(Y$9:Y$229,Nutrients!$EZ$8:$EZ$228)+(IF($A$7=Nutrients!$B$8,Nutrients!$EZ$8,Nutrients!$EZ$9)*Y$7)+(((IF($A$8=Nutrients!$B$79,Nutrients!$EZ$79,(IF($A$8=Nutrients!$B$77,Nutrients!$EZ$77,Nutrients!$EZ$78)))))*Y$8))","v":3750},{"$f":"(SUMPRODUCT(Z$9:Z$229,Nutrients!$EZ$8:$EZ$228)+(IF($A$7=Nutrients!$B$8,Nutrients!$EZ$8,Nutrients!$EZ$9)*Z$7)+(((IF($A$8=Nutrients!$B$79,Nutrients!$EZ$79,(IF($A$8=Nutrients!$B$77,Nutrients!$EZ$77,Nutrients!$EZ$78)))))*Z$8))","v":3000},{"$f":"(SUMPRODUCT(AA$9:AA$229,Nutrients!$EZ$8:$EZ$228)+(IF($A$7=Nutrients!$B$8,Nutrients!$EZ$8,Nutrients!$EZ$9)*AA$7)+(((IF($A$8=Nutrients!$B$79,Nutrients!$EZ$79,(IF($A$8=Nutrients!$B$77,Nutrients!$EZ$77,Nutrients!$EZ$78)))))*AA$8))","v":2250},{"$f":"(SUMPRODUCT(AB$9:AB$229,Nutrients!$EZ$8:$EZ$228)+(IF($A$7=Nutrients!$B$8,Nutrients!$EZ$8,Nutrients!$EZ$9)*AB$7)+(((IF($A$8=Nutrients!$B$79,Nutrients!$EZ$79,(IF($A$8=Nutrients!$B$77,Nutrients!$EZ$77,Nutrients!$EZ$78)))))*AB$8))","v":2250},null,{"$f":"(SUMPRODUCT(AD$9:AD$229,Nutrients!$EZ$8:$EZ$228)+(IF($A$7=Nutrients!$B$8,Nutrients!$EZ$8,Nutrients!$EZ$9)*AD$7)+(((IF($A$8=Nutrients!$B$79,Nutrients!$EZ$79,(IF($A$8=Nutrients!$B$77,Nutrients!$EZ$77,Nutrients!$EZ$78)))))*AD$8))","v":4500},{"$f":"(SUMPRODUCT(AE$9:AE$229,Nutrients!$EZ$8:$EZ$228)+(IF($A$7=Nutrients!$B$8,Nutrients!$EZ$8,Nutrients!$EZ$9)*AE$7)+(((IF($A$8=Nutrients!$B$79,Nutrients!$EZ$79,(IF($A$8=Nutrients!$B$77,Nutrients!$EZ$77,Nutrients!$EZ$78)))))*AE$8))","v":4500},{"$f":"(SUMPRODUCT(AF$9:AF$229,Nutrients!$EZ$8:$EZ$228)+(IF($A$7=Nutrients!$B$8,Nutrients!$EZ$8,Nutrients!$EZ$9)*AF$7)+(((IF($A$8=Nutrients!$B$79,Nutrients!$EZ$79,(IF($A$8=Nutrients!$B$77,Nutrients!$EZ$77,Nutrients!$EZ$78)))))*AF$8))","v":3750},{"$f":"(SUMPRODUCT(AG$9:AG$229,Nutrients!$EZ$8:$EZ$228)+(IF($A$7=Nutrients!$B$8,Nutrients!$EZ$8,Nutrients!$EZ$9)*AG$7)+(((IF($A$8=Nutrients!$B$79,Nutrients!$EZ$79,(IF($A$8=Nutrients!$B$77,Nutrients!$EZ$77,Nutrients!$EZ$78)))))*AG$8))","v":3000},{"$f":"(SUMPRODUCT(AH$9:AH$229,Nutrients!$EZ$8:$EZ$228)+(IF($A$7=Nutrients!$B$8,Nutrients!$EZ$8,Nutrients!$EZ$9)*AH$7)+(((IF($A$8=Nutrients!$B$79,Nutrients!$EZ$79,(IF($A$8=Nutrients!$B$77,Nutrients!$EZ$77,Nutrients!$EZ$78)))))*AH$8))","v":2250},{"$f":"(SUMPRODUCT(AI$9:AI$229,Nutrients!$EZ$8:$EZ$228)+(IF($A$7=Nutrients!$B$8,Nutrients!$EZ$8,Nutrients!$EZ$9)*AI$7)+(((IF($A$8=Nutrients!$B$79,Nutrients!$EZ$79,(IF($A$8=Nutrients!$B$77,Nutrients!$EZ$77,Nutrients!$EZ$78)))))*AI$8))","v":2250},null,{"$f":"(SUMPRODUCT(AK$9:AK$229,Nutrients!$EZ$8:$EZ$228)+(IF($A$7=Nutrients!$B$8,Nutrients!$EZ$8,Nutrients!$EZ$9)*AK$7)+(((IF($A$8=Nutrients!$B$79,Nutrients!$EZ$79,(IF($A$8=Nutrients!$B$77,Nutrients!$EZ$77,Nutrients!$EZ$78)))))*AK$8))","v":4500},{"$f":"(SUMPRODUCT(AL$9:AL$229,Nutrients!$EZ$8:$EZ$228)+(IF($A$7=Nutrients!$B$8,Nutrients!$EZ$8,Nutrients!$EZ$9)*AL$7)+(((IF($A$8=Nutrients!$B$79,Nutrients!$EZ$79,(IF($A$8=Nutrients!$B$77,Nutrients!$EZ$77,Nutrients!$EZ$78)))))*AL$8))","v":4500},{"$f":"(SUMPRODUCT(AM$9:AM$229,Nutrients!$EZ$8:$EZ$228)+(IF($A$7=Nutrients!$B$8,Nutrients!$EZ$8,Nutrients!$EZ$9)*AM$7)+(((IF($A$8=Nutrients!$B$79,Nutrients!$EZ$79,(IF($A$8=Nutrients!$B$77,Nutrients!$EZ$77,Nutrients!$EZ$78)))))*AM$8))","v":3750},{"$f":"(SUMPRODUCT(AN$9:AN$229,Nutrients!$EZ$8:$EZ$228)+(IF($A$7=Nutrients!$B$8,Nutrients!$EZ$8,Nutrients!$EZ$9)*AN$7)+(((IF($A$8=Nutrients!$B$79,Nutrients!$EZ$79,(IF($A$8=Nutrients!$B$77,Nutrients!$EZ$77,Nutrients!$EZ$78)))))*AN$8))","v":3000},{"$f":"(SUMPRODUCT(AO$9:AO$229,Nutrients!$EZ$8:$EZ$228)+(IF($A$7=Nutrients!$B$8,Nutrients!$EZ$8,Nutrients!$EZ$9)*AO$7)+(((IF($A$8=Nutrients!$B$79,Nutrients!$EZ$79,(IF($A$8=Nutrients!$B$77,Nutrients!$EZ$77,Nutrients!$EZ$78)))))*AO$8))","v":2250},{"$f":"(SUMPRODUCT(AP$9:AP$229,Nutrients!$EZ$8:$EZ$228)+(IF($A$7=Nutrients!$B$8,Nutrients!$EZ$8,Nutrients!$EZ$9)*AP$7)+(((IF($A$8=Nutrients!$B$79,Nutrients!$EZ$79,(IF($A$8=Nutrients!$B$77,Nutrients!$EZ$77,Nutrients!$EZ$78)))))*AP$8))","v":2250},null,{"$f":"(SUMPRODUCT(AR$9:AR$229,Nutrients!$EZ$8:$EZ$228)+(IF($A$7=Nutrients!$B$8,Nutrients!$EZ$8,Nutrients!$EZ$9)*AR$7)+(((IF($A$8=Nutrients!$B$79,Nutrients!$EZ$79,(IF($A$8=Nutrients!$B$77,Nutrients!$EZ$77,Nutrients!$EZ$78)))))*AR$8))","v":4500},{"$f":"(SUMPRODUCT(AS$9:AS$229,Nutrients!$EZ$8:$EZ$228)+(IF($A$7=Nutrients!$B$8,Nutrients!$EZ$8,Nutrients!$EZ$9)*AS$7)+(((IF($A$8=Nutrients!$B$79,Nutrients!$EZ$79,(IF($A$8=Nutrients!$B$77,Nutrients!$EZ$77,Nutrients!$EZ$78)))))*AS$8))","v":4500},{"$f":"(SUMPRODUCT(AT$9:AT$229,Nutrients!$EZ$8:$EZ$228)+(IF($A$7=Nutrients!$B$8,Nutrients!$EZ$8,Nutrients!$EZ$9)*AT$7)+(((IF($A$8=Nutrients!$B$79,Nutrients!$EZ$79,(IF($A$8=Nutrients!$B$77,Nutrients!$EZ$77,Nutrients!$EZ$78)))))*AT$8))","v":3750},{"$f":"(SUMPRODUCT(AU$9:AU$229,Nutrients!$EZ$8:$EZ$228)+(IF($A$7=Nutrients!$B$8,Nutrients!$EZ$8,Nutrients!$EZ$9)*AU$7)+(((IF($A$8=Nutrients!$B$79,Nutrients!$EZ$79,(IF($A$8=Nutrients!$B$77,Nutrients!$EZ$77,Nutrients!$EZ$78)))))*AU$8))","v":3000},{"$f":"(SUMPRODUCT(AV$9:AV$229,Nutrients!$EZ$8:$EZ$228)+(IF($A$7=Nutrients!$B$8,Nutrients!$EZ$8,Nutrients!$EZ$9)*AV$7)+(((IF($A$8=Nutrients!$B$79,Nutrients!$EZ$79,(IF($A$8=Nutrients!$B$77,Nutrients!$EZ$77,Nutrients!$EZ$78)))))*AV$8))","v":2250},{"$f":"(SUMPRODUCT(AW$9:AW$229,Nutrients!$EZ$8:$EZ$228)+(IF($A$7=Nutrients!$B$8,Nutrients!$EZ$8,Nutrients!$EZ$9)*AW$7)+(((IF($A$8=Nutrients!$B$79,Nutrients!$EZ$79,(IF($A$8=Nutrients!$B$77,Nutrients!$EZ$77,Nutrients!$EZ$78)))))*AW$8))","v":2250}]
["  Biotin, mg/ton",{"$f":"(SUMPRODUCT(B$9:B$229,Nutrients!$FA$8:$FA$228)+(IF($A$7=Nutrients!$B$8,Nutrients!$FA$8,Nutrients!$FA$9)*B$7)+(((IF($A$8=Nutrients!$B$79,Nutrients!$FA$79,(IF($A$8=Nutrients!$B$77,Nutrients!$FA$77,Nutrients!$FA$78)))))*B$8))","v":0},{"$f":"(SUMPRODUCT(C$9:C$229,Nutrients!$FA$8:$FA$228)+(IF($A$7=Nutrients!$B$8,Nutrients!$FA$8,Nutrients!$FA$9)*C$7)+(((IF($A$8=Nutrients!$B$79,Nutrients!$FA$79,(IF($A$8=Nutrients!$B$77,Nutrients!$FA$77,Nutrients!$FA$78)))))*C$8))","v":0},{"$f":"(SUMPRODUCT(D$9:D$229,Nutrients!$FA$8:$FA$228)+(IF($A$7=Nutrients!$B$8,Nutrients!$FA$8,Nutrients!$FA$9)*D$7)+(((IF($A$8=Nutrients!$B$79,Nutrients!$FA$79,(IF($A$8=Nutrients!$B$77,Nutrients!$FA$77,Nutrients!$FA$78)))))*D$8))","v":0},{"$f":"(SUMPRODUCT(E$9:E$229,Nutrients!$FA$8:$FA$228)+(IF($A$7=Nutrients!$B$8,Nutrients!$FA$8,Nutrients!$FA$9)*E$7)+(((IF($A$8=Nutrients!$B$79,Nutrients!$FA$79,(IF($A$8=Nutrients!$B$77,Nutrients!$FA$77,Nutrients!$FA$78)))))*E$8))","v":0},{"$f":"(SUMPRODUCT(F$9:F$229,Nutrients!$FA$8:$FA$228)+(IF($A$7=Nutrients!$B$8,Nutrients!$FA$8,Nutrients!$FA$9)*F$7)+(((IF($A$8=Nutrients!$B$79,Nutrients!$FA$79,(IF($A$8=Nutrients!$B$77,Nutrients!$FA$77,Nutrients!$FA$78)))))*F$8))","v":0},{"$f":"(SUMPRODUCT(G$9:G$229,Nutrients!$FA$8:$FA$228)+(IF($A$7=Nutrients!$B$8,Nutrients!$FA$8,Nutrients!$FA$9)*G$7)+(((IF($A$8=Nutrients!$B$79,Nutrients!$FA$79,(IF($A$8=Nutrients!$B$77,Nutrients!$FA$77,Nutrients!$FA$78)))))*G$8))","v":0},null,{"$f":"(SUMPRODUCT(I$9:I$229,Nutrients!$FA$8:$FA$228)+(IF($A$7=Nutrients!$B$8,Nutrients!$FA$8,Nutrients!$FA$9)*I$7)+(((IF($A$8=Nutrients!$B$79,Nutrients!$FA$79,(IF($A$8=Nutrients!$B$77,Nutrients!$FA$77,Nutrients!$FA$78)))))*I$8))","v":0},{"$f":"(SUMPRODUCT(J$9:J$229,Nutrients!$FA$8:$FA$228)+(IF($A$7=Nutrients!$B$8,Nutrients!$FA$8,Nutrients!$FA$9)*J$7)+(((IF($A$8=Nutrients!$B$79,Nutrients!$FA$79,(IF($A$8=Nutrients!$B$77,Nutrients!$FA$77,Nutrients!$FA$78)))))*J$8))","v":0},{"$f":"(SUMPRODUCT(K$9:K$229,Nutrients!$FA$8:$FA$228)+(IF($A$7=Nutrients!$B$8,Nutrients!$FA$8,Nutrients!$FA$9)*K$7)+(((IF($A$8=Nutrients!$B$79,Nutrients!$FA$79,(IF($A$8=Nutrients!$B$77,Nutrients!$FA$77,Nutrients!$FA$78)))))*K$8))","v":0},{"$f":"(SUMPRODUCT(L$9:L$229,Nutrients!$FA$8:$FA$228)+(IF($A$7=Nutrients!$B$8,Nutrients!$FA$8,Nutrients!$FA$9)*L$7)+(((IF($A$8=Nutrients!$B$79,Nutrients!$FA$79,(IF($A$8=Nutrients!$B$77,Nutrients!$FA$77,Nutrients!$FA$78)))))*L$8))","v":0},{"$f":"(SUMPRODUCT(M$9:M$229,Nutrients!$FA$8:$FA$228)+(IF($A$7=Nutrients!$B$8,Nutrients!$FA$8,Nutrients!$FA$9)*M$7)+(((IF($A$8=Nutrients!$B$79,Nutrients!$FA$79,(IF($A$8=Nutrients!$B$77,Nutrients!$FA$77,Nutrients!$FA$78)))))*M$8))","v":0},{"$f":"(SUMPRODUCT(N$9:N$229,Nutrients!$FA$8:$FA$228)+(IF($A$7=Nutrients!$B$8,Nutrients!$FA$8,Nutrients!$FA$9)*N$7)+(((IF($A$8=Nutrients!$B$79,Nutrients!$FA$79,(IF($A$8=Nutrients!$B$77,Nutrients!$FA$77,Nutrients!$FA$78)))))*N$8))","v":0},null,{"$f":"(SUMPRODUCT(P$9:P$229,Nutrients!$FA$8:$FA$228)+(IF($A$7=Nutrients!$B$8,Nutrients!$FA$8,Nutrients!$FA$9)*P$7)+(((IF($A$8=Nutrients!$B$79,Nutrients!$FA$79,(IF($A$8=Nutrients!$B$77,Nutrients!$FA$77,Nutrients!$FA$78)))))*P$8))","v":0},{"$f":"(SUMPRODUCT(Q$9:Q$229,Nutrients!$FA$8:$FA$228)+(IF($A$7=Nutrients!$B$8,Nutrients!$FA$8,Nutrients!$FA$9)*Q$7)+(((IF($A$8=Nutrients!$B$79,Nutrients!$FA$79,(IF($A$8=Nutrients!$B$77,Nutrients!$FA$77,Nutrients!$FA$78)))))*Q$8))","v":0},{"$f":"(SUMPRODUCT(R$9:R$229,Nutrients!$FA$8:$FA$228)+(IF($A$7=Nutrients!$B$8,Nutrients!$FA$8,Nutrients!$FA$9)*R$7)+(((IF($A$8=Nutrients!$B$79,Nutrients!$FA$79,(IF($A$8=Nutrients!$B$77,Nutrients!$FA$77,Nutrients!$FA$78)))))*R$8))","v":0},{"$f":"(SUMPRODUCT(S$9:S$229,Nutrients!$FA$8:$FA$228)+(IF($A$7=Nutrients!$B$8,Nutrients!$FA$8,Nutrients!$FA$9)*S$7)+(((IF($A$8=Nutrients!$B$79,Nutrients!$FA$79,(IF($A$8=Nutrients!$B$77,Nutrients!$FA$77,Nutrients!$FA$78)))))*S$8))","v":0},{"$f":"(SUMPRODUCT(T$9:T$229,Nutrients!$FA$8:$FA$228)+(IF($A$7=Nutrients!$B$8,Nutrients!$FA$8,Nutrients!$FA$9)*T$7)+(((IF($A$8=Nutrients!$B$79,Nutrients!$FA$79,(IF($A$8=Nutrients!$B$77,Nutrients!$FA$77,Nutrients!$FA$78)))))*T$8))","v":0},{"$f":"(SUMPRODUCT(U$9:U$229,Nutrients!$FA$8:$FA$228)+(IF($A$7=Nutrients!$B$8,Nutrients!$FA$8,Nutrients!$FA$9)*U$7)+(((IF($A$8=Nutrients!$B$79,Nutrients!$FA$79,(IF($A$8=Nutrients!$B$77,Nutrients!$FA$77,Nutrients!$FA$78)))))*U$8))","v":0},null,{"$f":"(SUMPRODUCT(W$9:W$229,Nutrients!$FA$8:$FA$228)+(IF($A$7=Nutrients!$B$8,Nutrients!$FA$8,Nutrients!$FA$9)*W$7)+(((IF($A$8=Nutrients!$B$79,Nutrients!$FA$79,(IF($A$8=Nutrients!$B$77,Nutrients!$FA$77,Nutrients!$FA$78)))))*W$8))","v":0},{"$f":"(SUMPRODUCT(X$9:X$229,Nutrients!$FA$8:$FA$228)+(IF($A$7=Nutrients!$B$8,Nutrients!$FA$8,Nutrients!$FA$9)*X$7)+(((IF($A$8=Nutrients!$B$79,Nutrients!$FA$79,(IF($A$8=Nutrients!$B$77,Nutrients!$FA$77,Nutrients!$FA$78)))))*X$8))","v":0},{"$f":"(SUMPRODUCT(Y$9:Y$229,Nutrients!$FA$8:$FA$228)+(IF($A$7=Nutrients!$B$8,Nutrients!$FA$8,Nutrients!$FA$9)*Y$7)+(((IF($A$8=Nutrients!$B$79,Nutrients!$FA$79,(IF($A$8=Nutrients!$B$77,Nutrients!$FA$77,Nutrients!$FA$78)))))*Y$8))","v":0},{"$f":"(SUMPRODUCT(Z$9:Z$229,Nutrients!$FA$8:$FA$228)+(IF($A$7=Nutrients!$B$8,Nutrients!$FA$8,Nutrients!$FA$9)*Z$7)+(((IF($A$8=Nutrients!$B$79,Nutrients!$FA$79,(IF($A$8=Nutrients!$B$77,Nutrients!$FA$77,Nutrients!$FA$78)))))*Z$8))","v":0},{"$f":"(SUMPRODUCT(AA$9:AA$229,Nutrients!$FA$8:$FA$228)+(IF($A$7=Nutrients!$B$8,Nutrients!$FA$8,Nutrients!$FA$9)*AA$7)+(((IF($A$8=Nutrients!$B$79,Nutrients!$FA$79,(IF($A$8=Nutrients!$B$77,Nutrients!$FA$77,Nutrients!$FA$78)))))*AA$8))","v":0},{"$f":"(SUMPRODUCT(AB$9:AB$229,Nutrients!$FA$8:$FA$228)+(IF($A$7=Nutrients!$B$8,Nutrients!$FA$8,Nutrients!$FA$9)*AB$7)+(((IF($A$8=Nutrients!$B$79,Nutrients!$FA$79,(IF($A$8=Nutrients!$B$77,Nutrients!$FA$77,Nutrients!$FA$78)))))*AB$8))","v":0},null,{"$f":"(SUMPRODUCT(AD$9:AD$229,Nutrients!$FA$8:$FA$228)+(IF($A$7=Nutrients!$B$8,Nutrients!$FA$8,Nutrients!$FA$9)*AD$7)+(((IF($A$8=Nutrients!$B$79,Nutrients!$FA$79,(IF($A$8=Nutrients!$B$77,Nutrients!$FA$77,Nutrients!$FA$78)))))*AD$8))","v":0},{"$f":"(SUMPRODUCT(AE$9:AE$229,Nutrients!$FA$8:$FA$228)+(IF($A$7=Nutrients!$B$8,Nutrients!$FA$8,Nutrients!$FA$9)*AE$7)+(((IF($A$8=Nutrients!$B$79,Nutrients!$FA$79,(IF($A$8=Nutrients!$B$77,Nutrients!$FA$77,Nutrients!$FA$78)))))*AE$8))","v":0},{"$f":"(SUMPRODUCT(AF$9:AF$229,Nutrients!$FA$8:$FA$228)+(IF($A$7=Nutrients!$B$8,Nutrients!$FA$8,Nutrients!$FA$9)*AF$7)+(((IF($A$8=Nutrients!$B$79,Nutrients!$FA$79,(IF($A$8=Nutrients!$B$77,Nutrients!$FA$77,Nutrients!$FA$78)))))*AF$8))","v":0},{"$f":"(SUMPRODUCT(AG$9:AG$229,Nutrients!$FA$8:$FA$228)+(IF($A$7=Nutrients!$B$8,Nutrients!$FA$8,Nutrients!$FA$9)*AG$7)+(((IF($A$8=Nutrients!$B$79,Nutrients!$FA$79,(IF($A$8=Nutrients!$B$77,Nutrients!$FA$77,Nutrients!$FA$78)))))*AG$8))","v":0},{"$f":"(SUMPRODUCT(AH$9:AH$229,Nutrients!$FA$8:$FA$228)+(IF($A$7=Nutrients!$B$8,Nutrients!$FA$8,Nutrients!$FA$9)*AH$7)+(((IF($A$8=Nutrients!$B$79,Nutrients!$FA$79,(IF($A$8=Nutrients!$B$77,Nutrients!$FA$77,Nutrients!$FA$78)))))*AH$8))","v":0},{"$f":"(SUMPRODUCT(AI$9:AI$229,Nutrients!$FA$8:$FA$228)+(IF($A$7=Nutrients!$B$8,Nutrients!$FA$8,Nutrients!$FA$9)*AI$7)+(((IF($A$8=Nutrients!$B$79,Nutrients!$FA$79,(IF($A$8=Nutrients!$B$77,Nutrients!$FA$77,Nutrients!$FA$78)))))*AI$8))","v":0},null,{"$f":"(SUMPRODUCT(AK$9:AK$229,Nutrients!$FA$8:$FA$228)+(IF($A$7=Nutrients!$B$8,Nutrients!$FA$8,Nutrients!$FA$9)*AK$7)+(((IF($A$8=Nutrients!$B$79,Nutrients!$FA$79,(IF($A$8=Nutrients!$B$77,Nutrients!$FA$77,Nutrients!$FA$78)))))*AK$8))","v":0},{"$f":"(SUMPRODUCT(AL$9:AL$229,Nutrients!$FA$8:$FA$228)+(IF($A$7=Nutrients!$B$8,Nutrients!$FA$8,Nutrients!$FA$9)*AL$7)+(((IF($A$8=Nutrients!$B$79,Nutrients!$FA$79,(IF($A$8=Nutrients!$B$77,Nutrients!$FA$77,Nutrients!$FA$78)))))*AL$8))","v":0},{"$f":"(SUMPRODUCT(AM$9:AM$229,Nutrients!$FA$8:$FA$228)+(IF($A$7=Nutrients!$B$8,Nutrients!$FA$8,Nutrients!$FA$9)*AM$7)+(((IF($A$8=Nutrients!$B$79,Nutrients!$FA$79,(IF($A$8=Nutrients!$B$77,Nutrients!$FA$77,Nutrients!$FA$78)))))*AM$8))","v":0},{"$f":"(SUMPRODUCT(AN$9:AN$229,Nutrients!$FA$8:$FA$228)+(IF($A$7=Nutrients!$B$8,Nutrients!$FA$8,Nutrients!$FA$9)*AN$7)+(((IF($A$8=Nutrients!$B$79,Nutrients!$FA$79,(IF($A$8=Nutrients!$B$77,Nutrients!$FA$77,Nutrients!$FA$78)))))*AN$8))","v":0},{"$f":"(SUMPRODUCT(AO$9:AO$229,Nutrients!$FA$8:$FA$228)+(IF($A$7=Nutrients!$B$8,Nutrients!$FA$8,Nutrients!$FA$9)*AO$7)+(((IF($A$8=Nutrients!$B$79,Nutrients!$FA$79,(IF($A$8=Nutrients!$B$77,Nutrients!$FA$77,Nutrients!$FA$78)))))*AO$8))","v":0},{"$f":"(SUMPRODUCT(AP$9:AP$229,Nutrients!$FA$8:$FA$228)+(IF($A$7=Nutrients!$B$8,Nutrients!$FA$8,Nutrients!$FA$9)*AP$7)+(((IF($A$8=Nutrients!$B$79,Nutrients!$FA$79,(IF($A$8=Nutrients!$B$77,Nutrients!$FA$77,Nutrients!$FA$78)))))*AP$8))","v":0},null,{"$f":"(SUMPRODUCT(AR$9:AR$229,Nutrients!$FA$8:$FA$228)+(IF($A$7=Nutrients!$B$8,Nutrients!$FA$8,Nutrients!$FA$9)*AR$7)+(((IF($A$8=Nutrients!$B$79,Nutrients!$FA$79,(IF($A$8=Nutrients!$B$77,Nutrients!$FA$77,Nutrients!$FA$78)))))*AR$8))","v":0},{"$f":"(SUMPRODUCT(AS$9:AS$229,Nutrients!$FA$8:$FA$228)+(IF($A$7=Nutrients!$B$8,Nutrients!$FA$8,Nutrients!$FA$9)*AS$7)+(((IF($A$8=Nutrients!$B$79,Nutrients!$FA$79,(IF($A$8=Nutrients!$B$77,Nutrients!$FA$77,Nutrients!$FA$78)))))*AS$8))","v":0},{"$f":"(SUMPRODUCT(AT$9:AT$229,Nutrients!$FA$8:$FA$228)+(IF($A$7=Nutrients!$B$8,Nutrients!$FA$8,Nutrients!$FA$9)*AT$7)+(((IF($A$8=Nutrients!$B$79,Nutrients!$FA$79,(IF($A$8=Nutrients!$B$77,Nutrients!$FA$77,Nutrients!$FA$78)))))*AT$8))","v":0},{"$f":"(SUMPRODUCT(AU$9:AU$229,Nutrients!$FA$8:$FA$228)+(IF($A$7=Nutrients!$B$8,Nutrients!$FA$8,Nutrients!$FA$9)*AU$7)+(((IF($A$8=Nutrients!$B$79,Nutrients!$FA$79,(IF($A$8=Nutrients!$B$77,Nutrients!$FA$77,Nutrients!$FA$78)))))*AU$8))","v":0},{"$f":"(SUMPRODUCT(AV$9:AV$229,Nutrients!$FA$8:$FA$228)+(IF($A$7=Nutrients!$B$8,Nutrients!$FA$8,Nutrients!$FA$9)*AV$7)+(((IF($A$8=Nutrients!$B$79,Nutrients!$FA$79,(IF($A$8=Nutrients!$B$77,Nutrients!$FA$77,Nutrients!$FA$78)))))*AV$8))","v":0},{"$f":"(SUMPRODUCT(AW$9:AW$229,Nutrients!$FA$8:$FA$228)+(IF($A$7=Nutrients!$B$8,Nutrients!$FA$8,Nutrients!$FA$9)*AW$7)+(((IF($A$8=Nutrients!$B$79,Nutrients!$FA$79,(IF($A$8=Nutrients!$B$77,Nutrients!$FA$77,Nutrients!$FA$78)))))*AW$8))","v":0}]
["  Folic acid, mg/ton",{"$f":"(SUMPRODUCT(B$9:B$229,Nutrients!$FB$8:$FB$228)+(IF($A$7=Nutrients!$B$8,Nutrients!$FB$8,Nutrients!$FB$9)*B$7)+(((IF($A$8=Nutrients!$B$79,Nutrients!$FB$79,(IF($A$8=Nutrients!$B$77,Nutrients!$FB$77,Nutrients!$FB$78)))))*B$8))","v":0},{"$f":"(SUMPRODUCT(C$9:C$229,Nutrients!$FB$8:$FB$228)+(IF($A$7=Nutrients!$B$8,Nutrients!$FB$8,Nutrients!$FB$9)*C$7)+(((IF($A$8=Nutrients!$B$79,Nutrients!$FB$79,(IF($A$8=Nutrients!$B$77,Nutrients!$FB$77,Nutrients!$FB$78)))))*C$8))","v":0},{"$f":"(SUMPRODUCT(D$9:D$229,Nutrients!$FB$8:$FB$228)+(IF($A$7=Nutrients!$B$8,Nutrients!$FB$8,Nutrients!$FB$9)*D$7)+(((IF($A$8=Nutrients!$B$79,Nutrients!$FB$79,(IF($A$8=Nutrients!$B$77,Nutrients!$FB$77,Nutrients!$FB$78)))))*D$8))","v":0},{"$f":"(SUMPRODUCT(E$9:E$229,Nutrients!$FB$8:$FB$228)+(IF($A$7=Nutrients!$B$8,Nutrients!$FB$8,Nutrients!$FB$9)*E$7)+(((IF($A$8=Nutrients!$B$79,Nutrients!$FB$79,(IF($A$8=Nutrients!$B$77,Nutrients!$FB$77,Nutrients!$FB$78)))))*E$8))","v":0},{"$f":"(SUMPRODUCT(F$9:F$229,Nutrients!$FB$8:$FB$228)+(IF($A$7=Nutrients!$B$8,Nutrients!$FB$8,Nutrients!$FB$9)*F$7)+(((IF($A$8=Nutrients!$B$79,Nutrients!$FB$79,(IF($A$8=Nutrients!$B$77,Nutrients!$FB$77,Nutrients!$FB$78)))))*F$8))","v":0},{"$f":"(SUMPRODUCT(G$9:G$229,Nutrients!$FB$8:$FB$228)+(IF($A$7=Nutrients!$B$8,Nutrients!$FB$8,Nutrients!$FB$9)*G$7)+(((IF($A$8=Nutrients!$B$79,Nutrients!$FB$79,(IF($A$8=Nutrients!$B$77,Nutrients!$FB$77,Nutrients!$FB$78)))))*G$8))","v":0},null,{"$f":"(SUMPRODUCT(I$9:I$229,Nutrients!$FB$8:$FB$228)+(IF($A$7=Nutrients!$B$8,Nutrients!$FB$8,Nutrients!$FB$9)*I$7)+(((IF($A$8=Nutrients!$B$79,Nutrients!$FB$79,(IF($A$8=Nutrients!$B$77,Nutrients!$FB$77,Nutrients!$FB$78)))))*I$8))","v":0},{"$f":"(SUMPRODUCT(J$9:J$229,Nutrients!$FB$8:$FB$228)+(IF($A$7=Nutrients!$B$8,Nutrients!$FB$8,Nutrients!$FB$9)*J$7)+(((IF($A$8=Nutrients!$B$79,Nutrients!$FB$79,(IF($A$8=Nutrients!$B$77,Nutrients!$FB$77,Nutrients!$FB$78)))))*J$8))","v":0},{"$f":"(SUMPRODUCT(K$9:K$229,Nutrients!$FB$8:$FB$228)+(IF($A$7=Nutrients!$B$8,Nutrients!$FB$8,Nutrients!$FB$9)*K$7)+(((IF($A$8=Nutrients!$B$79,Nutrients!$FB$79,(IF($A$8=Nutrients!$B$77,Nutrients!$FB$77,Nutrients!$FB$78)))))*K$8))","v":0},{"$f":"(SUMPRODUCT(L$9:L$229,Nutrients!$FB$8:$FB$228)+(IF($A$7=Nutrients!$B$8,Nutrients!$FB$8,Nutrients!$FB$9)*L$7)+(((IF($A$8=Nutrients!$B$79,Nutrients!$FB$79,(IF($A$8=Nutrients!$B$77,Nutrients!$FB$77,Nutrients!$FB$78)))))*L$8))","v":0},{"$f":"(SUMPRODUCT(M$9:M$229,Nutrients!$FB$8:$FB$228)+(IF($A$7=Nutrients!$B$8,Nutrients!$FB$8,Nutrients!$FB$9)*M$7)+(((IF($A$8=Nutrients!$B$79,Nutrients!$FB$79,(IF($A$8=Nutrients!$B$77,Nutrients!$FB$77,Nutrients!$FB$78)))))*M$8))","v":0},{"$f":"(SUMPRODUCT(N$9:N$229,Nutrients!$FB$8:$FB$228)+(IF($A$7=Nutrients!$B$8,Nutrients!$FB$8,Nutrients!$FB$9)*N$7)+(((IF($A$8=Nutrients!$B$79,Nutrients!$FB$79,(IF($A$8=Nutrients!$B$77,Nutrients!$FB$77,Nutrients!$FB$78)))))*N$8))","v":0},null,{"$f":"(SUMPRODUCT(P$9:P$229,Nutrients!$FB$8:$FB$228)+(IF($A$7=Nutrients!$B$8,Nutrients!$FB$8,Nutrients!$FB$9)*P$7)+(((IF($A$8=Nutrients!$B$79,Nutrients!$FB$79,(IF($A$8=Nutrients!$B$77,Nutrients!$FB$77,Nutrients!$FB$78)))))*P$8))","v":0},{"$f":"(SUMPRODUCT(Q$9:Q$229,Nutrients!$FB$8:$FB$228)+(IF($A$7=Nutrients!$B$8,Nutrients!$FB$8,Nutrients!$FB$9)*Q$7)+(((IF($A$8=Nutrients!$B$79,Nutrients!$FB$79,(IF($A$8=Nutrients!$B$77,Nutrients!$FB$77,Nutrients!$FB$78)))))*Q$8))","v":0},{"$f":"(SUMPRODUCT(R$9:R$229,Nutrients!$FB$8:$FB$228)+(IF($A$7=Nutrients!$B$8,Nutrients!$FB$8,Nutrients!$FB$9)*R$7)+(((IF($A$8=Nutrients!$B$79,Nutrients!$FB$79,(IF($A$8=Nutrients!$B$77,Nutrients!$FB$77,Nutrients!$FB$78)))))*R$8))","v":0},{"$f":"(SUMPRODUCT(S$9:S$229,Nutrients!$FB$8:$FB$228)+(IF($A$7=Nutrients!$B$8,Nutrients!$FB$8,Nutrients!$FB$9)*S$7)+(((IF($A$8=Nutrients!$B$79,Nutrients!$FB$79,(IF($A$8=Nutrients!$B$77,Nutrients!$FB$77,Nutrients!$FB$78)))))*S$8))","v":0},{"$f":"(SUMPRODUCT(T$9:T$229,Nutrients!$FB$8:$FB$228)+(IF($A$7=Nutrients!$B$8,Nutrients!$FB$8,Nutrients!$FB$9)*T$7)+(((IF($A$8=Nutrients!$B$79,Nutrients!$FB$79,(IF($A$8=Nutrients!$B$77,Nutrients!$FB$77,Nutrients!$FB$78)))))*T$8))","v":0},{"$f":"(SUMPRODUCT(U$9:U$229,Nutrients!$FB$8:$FB$228)+(IF($A$7=Nutrients!$B$8,Nutrients!$FB$8,Nutrients!$FB$9)*U$7)+(((IF($A$8=Nutrients!$B$79,Nutrients!$FB$79,(IF($A$8=Nutrients!$B$77,Nutrients!$FB$77,Nutrients!$FB$78)))))*U$8))","v":0},null,{"$f":"(SUMPRODUCT(W$9:W$229,Nutrients!$FB$8:$FB$228)+(IF($A$7=Nutrients!$B$8,Nutrients!$FB$8,Nutrients!$FB$9)*W$7)+(((IF($A$8=Nutrients!$B$79,Nutrients!$FB$79,(IF($A$8=Nutrients!$B$77,Nutrients!$FB$77,Nutrients!$FB$78)))))*W$8))","v":0},{"$f":"(SUMPRODUCT(X$9:X$229,Nutrients!$FB$8:$FB$228)+(IF($A$7=Nutrients!$B$8,Nutrients!$FB$8,Nutrients!$FB$9)*X$7)+(((IF($A$8=Nutrients!$B$79,Nutrients!$FB$79,(IF($A$8=Nutrients!$B$77,Nutrients!$FB$77,Nutrients!$FB$78)))))*X$8))","v":0},{"$f":"(SUMPRODUCT(Y$9:Y$229,Nutrients!$FB$8:$FB$228)+(IF($A$7=Nutrients!$B$8,Nutrients!$FB$8,Nutrients!$FB$9)*Y$7)+(((IF($A$8=Nutrients!$B$79,Nutrients!$FB$79,(IF($A$8=Nutrients!$B$77,Nutrients!$FB$77,Nutrients!$FB$78)))))*Y$8))","v":0},{"$f":"(SUMPRODUCT(Z$9:Z$229,Nutrients!$FB$8:$FB$228)+(IF($A$7=Nutrients!$B$8,Nutrients!$FB$8,Nutrients!$FB$9)*Z$7)+(((IF($A$8=Nutrients!$B$79,Nutrients!$FB$79,(IF($A$8=Nutrients!$B$77,Nutrients!$FB$77,Nutrients!$FB$78)))))*Z$8))","v":0},{"$f":"(SUMPRODUCT(AA$9:AA$229,Nutrients!$FB$8:$FB$228)+(IF($A$7=Nutrients!$B$8,Nutrients!$FB$8,Nutrients!$FB$9)*AA$7)+(((IF($A$8=Nutrients!$B$79,Nutrients!$FB$79,(IF($A$8=Nutrients!$B$77,Nutrients!$FB$77,Nutrients!$FB$78)))))*AA$8))","v":0},{"$f":"(SUMPRODUCT(AB$9:AB$229,Nutrients!$FB$8:$FB$228)+(IF($A$7=Nutrients!$B$8,Nutrients!$FB$8,Nutrients!$FB$9)*AB$7)+(((IF($A$8=Nutrients!$B$79,Nutrients!$FB$79,(IF($A$8=Nutrients!$B$77,Nutrients!$FB$77,Nutrients!$FB$78)))))*AB$8))","v":0},null,{"$f":"(SUMPRODUCT(AD$9:AD$229,Nutrients!$FB$8:$FB$228)+(IF($A$7=Nutrients!$B$8,Nutrients!$FB$8,Nutrients!$FB$9)*AD$7)+(((IF($A$8=Nutrients!$B$79,Nutrients!$FB$79,(IF($A$8=Nutrients!$B$77,Nutrients!$FB$77,Nutrients!$FB$78)))))*AD$8))","v":0},{"$f":"(SUMPRODUCT(AE$9:AE$229,Nutrients!$FB$8:$FB$228)+(IF($A$7=Nutrients!$B$8,Nutrients!$FB$8,Nutrients!$FB$9)*AE$7)+(((IF($A$8=Nutrients!$B$79,Nutrients!$FB$79,(IF($A$8=Nutrients!$B$77,Nutrients!$FB$77,Nutrients!$FB$78)))))*AE$8))","v":0},{"$f":"(SUMPRODUCT(AF$9:AF$229,Nutrients!$FB$8:$FB$228)+(IF($A$7=Nutrients!$B$8,Nutrients!$FB$8,Nutrients!$FB$9)*AF$7)+(((IF($A$8=Nutrients!$B$79,Nutrients!$FB$79,(IF($A$8=Nutrients!$B$77,Nutrients!$FB$77,Nutrients!$FB$78)))))*AF$8))","v":0},{"$f":"(SUMPRODUCT(AG$9:AG$229,Nutrients!$FB$8:$FB$228)+(IF($A$7=Nutrients!$B$8,Nutrients!$FB$8,Nutrients!$FB$9)*AG$7)+(((IF($A$8=Nutrients!$B$79,Nutrients!$FB$79,(IF($A$8=Nutrients!$B$77,Nutrients!$FB$77,Nutrients!$FB$78)))))*AG$8))","v":0},{"$f":"(SUMPRODUCT(AH$9:AH$229,Nutrients!$FB$8:$FB$228)+(IF($A$7=Nutrients!$B$8,Nutrients!$FB$8,Nutrients!$FB$9)*AH$7)+(((IF($A$8=Nutrients!$B$79,Nutrients!$FB$79,(IF($A$8=Nutrients!$B$77,Nutrients!$FB$77,Nutrients!$FB$78)))))*AH$8))","v":0},{"$f":"(SUMPRODUCT(AI$9:AI$229,Nutrients!$FB$8:$FB$228)+(IF($A$7=Nutrients!$B$8,Nutrients!$FB$8,Nutrients!$FB$9)*AI$7)+(((IF($A$8=Nutrients!$B$79,Nutrients!$FB$79,(IF($A$8=Nutrients!$B$77,Nutrients!$FB$77,Nutrients!$FB$78)))))*AI$8))","v":0},null,{"$f":"(SUMPRODUCT(AK$9:AK$229,Nutrients!$FB$8:$FB$228)+(IF($A$7=Nutrients!$B$8,Nutrients!$FB$8,Nutrients!$FB$9)*AK$7)+(((IF($A$8=Nutrients!$B$79,Nutrients!$FB$79,(IF($A$8=Nutrients!$B$77,Nutrients!$FB$77,Nutrients!$FB$78)))))*AK$8))","v":0},{"$f":"(SUMPRODUCT(AL$9:AL$229,Nutrients!$FB$8:$FB$228)+(IF($A$7=Nutrients!$B$8,Nutrients!$FB$8,Nutrients!$FB$9)*AL$7)+(((IF($A$8=Nutrients!$B$79,Nutrients!$FB$79,(IF($A$8=Nutrients!$B$77,Nutrients!$FB$77,Nutrients!$FB$78)))))*AL$8))","v":0},{"$f":"(SUMPRODUCT(AM$9:AM$229,Nutrients!$FB$8:$FB$228)+(IF($A$7=Nutrients!$B$8,Nutrients!$FB$8,Nutrients!$FB$9)*AM$7)+(((IF($A$8=Nutrients!$B$79,Nutrients!$FB$79,(IF($A$8=Nutrients!$B$77,Nutrients!$FB$77,Nutrients!$FB$78)))))*AM$8))","v":0},{"$f":"(SUMPRODUCT(AN$9:AN$229,Nutrients!$FB$8:$FB$228)+(IF($A$7=Nutrients!$B$8,Nutrients!$FB$8,Nutrients!$FB$9)*AN$7)+(((IF($A$8=Nutrients!$B$79,Nutrients!$FB$79,(IF($A$8=Nutrients!$B$77,Nutrients!$FB$77,Nutrients!$FB$78)))))*AN$8))","v":0},{"$f":"(SUMPRODUCT(AO$9:AO$229,Nutrients!$FB$8:$FB$228)+(IF($A$7=Nutrients!$B$8,Nutrients!$FB$8,Nutrients!$FB$9)*AO$7)+(((IF($A$8=Nutrients!$B$79,Nutrients!$FB$79,(IF($A$8=Nutrients!$B$77,Nutrients!$FB$77,Nutrients!$FB$78)))))*AO$8))","v":0},{"$f":"(SUMPRODUCT(AP$9:AP$229,Nutrients!$FB$8:$FB$228)+(IF($A$7=Nutrients!$B$8,Nutrients!$FB$8,Nutrients!$FB$9)*AP$7)+(((IF($A$8=Nutrients!$B$79,Nutrients!$FB$79,(IF($A$8=Nutrients!$B$77,Nutrients!$FB$77,Nutrients!$FB$78)))))*AP$8))","v":0},null,{"$f":"(SUMPRODUCT(AR$9:AR$229,Nutrients!$FB$8:$FB$228)+(IF($A$7=Nutrients!$B$8,Nutrients!$FB$8,Nutrients!$FB$9)*AR$7)+(((IF($A$8=Nutrients!$B$79,Nutrients!$FB$79,(IF($A$8=Nutrients!$B$77,Nutrients!$FB$77,Nutrients!$FB$78)))))*AR$8))","v":0},{"$f":"(SUMPRODUCT(AS$9:AS$229,Nutrients!$FB$8:$FB$228)+(IF($A$7=Nutrients!$B$8,Nutrients!$FB$8,Nutrients!$FB$9)*AS$7)+(((IF($A$8=Nutrients!$B$79,Nutrients!$FB$79,(IF($A$8=Nutrients!$B$77,Nutrients!$FB$77,Nutrients!$FB$78)))))*AS$8))","v":0},{"$f":"(SUMPRODUCT(AT$9:AT$229,Nutrients!$FB$8:$FB$228)+(IF($A$7=Nutrients!$B$8,Nutrients!$FB$8,Nutrients!$FB$9)*AT$7)+(((IF($A$8=Nutrients!$B$79,Nutrients!$FB$79,(IF($A$8=Nutrients!$B$77,Nutrients!$FB$77,Nutrients!$FB$78)))))*AT$8))","v":0},{"$f":"(SUMPRODUCT(AU$9:AU$229,Nutrients!$FB$8:$FB$228)+(IF($A$7=Nutrients!$B$8,Nutrients!$FB$8,Nutrients!$FB$9)*AU$7)+(((IF($A$8=Nutrients!$B$79,Nutrients!$FB$79,(IF($A$8=Nutrients!$B$77,Nutrients!$FB$77,Nutrients!$FB$78)))))*AU$8))","v":0},{"$f":"(SUMPRODUCT(AV$9:AV$229,Nutrients!$FB$8:$FB$228)+(IF($A$7=Nutrients!$B$8,Nutrients!$FB$8,Nutrients!$FB$9)*AV$7)+(((IF($A$8=Nutrients!$B$79,Nutrients!$FB$79,(IF($A$8=Nutrients!$B$77,Nutrients!$FB$77,Nutrients!$FB$78)))))*AV$8))","v":0},{"$f":"(SUMPRODUCT(AW$9:AW$229,Nutrients!$FB$8:$FB$228)+(IF($A$7=Nutrients!$B$8,Nutrients!$FB$8,Nutrients!$FB$9)*AW$7)+(((IF($A$8=Nutrients!$B$79,Nutrients!$FB$79,(IF($A$8=Nutrients!$B$77,Nutrients!$FB$77,Nutrients!$FB$78)))))*AW$8))","v":0}]
["  Pyridoxine, mg/ton",{"$f":"(SUMPRODUCT(B$9:B$229,Nutrients!$FC$8:$FC$228)+(IF($A$7=Nutrients!$B$8,Nutrients!$FC$8,Nutrients!$FC$9)*B$7)+(((IF($A$8=Nutrients!$B$79,Nutrients!$FC$79,(IF($A$8=Nutrients!$B$77,Nutrients!$FC$77,Nutrients!$FC$78)))))*B$8))","v":0},{"$f":"(SUMPRODUCT(C$9:C$229,Nutrients!$FC$8:$FC$228)+(IF($A$7=Nutrients!$B$8,Nutrients!$FC$8,Nutrients!$FC$9)*C$7)+(((IF($A$8=Nutrients!$B$79,Nutrients!$FC$79,(IF($A$8=Nutrients!$B$77,Nutrients!$FC$77,Nutrients!$FC$78)))))*C$8))","v":0},{"$f":"(SUMPRODUCT(D$9:D$229,Nutrients!$FC$8:$FC$228)+(IF($A$7=Nutrients!$B$8,Nutrients!$FC$8,Nutrients!$FC$9)*D$7)+(((IF($A$8=Nutrients!$B$79,Nutrients!$FC$79,(IF($A$8=Nutrients!$B$77,Nutrients!$FC$77,Nutrients!$FC$78)))))*D$8))","v":0},{"$f":"(SUMPRODUCT(E$9:E$229,Nutrients!$FC$8:$FC$228)+(IF($A$7=Nutrients!$B$8,Nutrients!$FC$8,Nutrients!$FC$9)*E$7)+(((IF($A$8=Nutrients!$B$79,Nutrients!$FC$79,(IF($A$8=Nutrients!$B$77,Nutrients!$FC$77,Nutrients!$FC$78)))))*E$8))","v":0},{"$f":"(SUMPRODUCT(F$9:F$229,Nutrients!$FC$8:$FC$228)+(IF($A$7=Nutrients!$B$8,Nutrients!$FC$8,Nutrients!$FC$9)*F$7)+(((IF($A$8=Nutrients!$B$79,Nutrients!$FC$79,(IF($A$8=Nutrients!$B$77,Nutrients!$FC$77,Nutrients!$FC$78)))))*F$8))","v":0},{"$f":"(SUMPRODUCT(G$9:G$229,Nutrients!$FC$8:$FC$228)+(IF($A$7=Nutrients!$B$8,Nutrients!$FC$8,Nutrients!$FC$9)*G$7)+(((IF($A$8=Nutrients!$B$79,Nutrients!$FC$79,(IF($A$8=Nutrients!$B$77,Nutrients!$FC$77,Nutrients!$FC$78)))))*G$8))","v":0},null,{"$f":"(SUMPRODUCT(I$9:I$229,Nutrients!$FC$8:$FC$228)+(IF($A$7=Nutrients!$B$8,Nutrients!$FC$8,Nutrients!$FC$9)*I$7)+(((IF($A$8=Nutrients!$B$79,Nutrients!$FC$79,(IF($A$8=Nutrients!$B$77,Nutrients!$FC$77,Nutrients!$FC$78)))))*I$8))","v":0},{"$f":"(SUMPRODUCT(J$9:J$229,Nutrients!$FC$8:$FC$228)+(IF($A$7=Nutrients!$B$8,Nutrients!$FC$8,Nutrients!$FC$9)*J$7)+(((IF($A$8=Nutrients!$B$79,Nutrients!$FC$79,(IF($A$8=Nutrients!$B$77,Nutrients!$FC$77,Nutrients!$FC$78)))))*J$8))","v":0},{"$f":"(SUMPRODUCT(K$9:K$229,Nutrients!$FC$8:$FC$228)+(IF($A$7=Nutrients!$B$8,Nutrients!$FC$8,Nutrients!$FC$9)*K$7)+(((IF($A$8=Nutrients!$B$79,Nutrients!$FC$79,(IF($A$8=Nutrients!$B$77,Nutrients!$FC$77,Nutrients!$FC$78)))))*K$8))","v":0},{"$f":"(SUMPRODUCT(L$9:L$229,Nutrients!$FC$8:$FC$228)+(IF($A$7=Nutrients!$B$8,Nutrients!$FC$8,Nutrients!$FC$9)*L$7)+(((IF($A$8=Nutrients!$B$79,Nutrients!$FC$79,(IF($A$8=Nutrients!$B$77,Nutrients!$FC$77,Nutrients!$FC$78)))))*L$8))","v":0},{"$f":"(SUMPRODUCT(M$9:M$229,Nutrients!$FC$8:$FC$228)+(IF($A$7=Nutrients!$B$8,Nutrients!$FC$8,Nutrients!$FC$9)*M$7)+(((IF($A$8=Nutrients!$B$79,Nutrients!$FC$79,(IF($A$8=Nutrients!$B$77,Nutrients!$FC$77,Nutrients!$FC$78)))))*M$8))","v":0},{"$f":"(SUMPRODUCT(N$9:N$229,Nutrients!$FC$8:$FC$228)+(IF($A$7=Nutrients!$B$8,Nutrients!$FC$8,Nutrients!$FC$9)*N$7)+(((IF($A$8=Nutrients!$B$79,Nutrients!$FC$79,(IF($A$8=Nutrients!$B$77,Nutrients!$FC$77,Nutrients!$FC$78)))))*N$8))","v":0},null,{"$f":"(SUMPRODUCT(P$9:P$229,Nutrients!$FC$8:$FC$228)+(IF($A$7=Nutrients!$B$8,Nutrients!$FC$8,Nutrients!$FC$9)*P$7)+(((IF($A$8=Nutrients!$B$79,Nutrients!$FC$79,(IF($A$8=Nutrients!$B$77,Nutrients!$FC$77,Nutrients!$FC$78)))))*P$8))","v":0},{"$f":"(SUMPRODUCT(Q$9:Q$229,Nutrients!$FC$8:$FC$228)+(IF($A$7=Nutrients!$B$8,Nutrients!$FC$8,Nutrients!$FC$9)*Q$7)+(((IF($A$8=Nutrients!$B$79,Nutrients!$FC$79,(IF($A$8=Nutrients!$B$77,Nutrients!$FC$77,Nutrients!$FC$78)))))*Q$8))","v":0},{"$f":"(SUMPRODUCT(R$9:R$229,Nutrients!$FC$8:$FC$228)+(IF($A$7=Nutrients!$B$8,Nutrients!$FC$8,Nutrients!$FC$9)*R$7)+(((IF($A$8=Nutrients!$B$79,Nutrients!$FC$79,(IF($A$8=Nutrients!$B$77,Nutrients!$FC$77,Nutrients!$FC$78)))))*R$8))","v":0},{"$f":"(SUMPRODUCT(S$9:S$229,Nutrients!$FC$8:$FC$228)+(IF($A$7=Nutrients!$B$8,Nutrients!$FC$8,Nutrients!$FC$9)*S$7)+(((IF($A$8=Nutrients!$B$79,Nutrients!$FC$79,(IF($A$8=Nutrients!$B$77,Nutrients!$FC$77,Nutrients!$FC$78)))))*S$8))","v":0},{"$f":"(SUMPRODUCT(T$9:T$229,Nutrients!$FC$8:$FC$228)+(IF($A$7=Nutrients!$B$8,Nutrients!$FC$8,Nutrients!$FC$9)*T$7)+(((IF($A$8=Nutrients!$B$79,Nutrients!$FC$79,(IF($A$8=Nutrients!$B$77,Nutrients!$FC$77,Nutrients!$FC$78)))))*T$8))","v":0},{"$f":"(SUMPRODUCT(U$9:U$229,Nutrients!$FC$8:$FC$228)+(IF($A$7=Nutrients!$B$8,Nutrients!$FC$8,Nutrients!$FC$9)*U$7)+(((IF($A$8=Nutrients!$B$79,Nutrients!$FC$79,(IF($A$8=Nutrients!$B$77,Nutrients!$FC$77,Nutrients!$FC$78)))))*U$8))","v":0},null,{"$f":"(SUMPRODUCT(W$9:W$229,Nutrients!$FC$8:$FC$228)+(IF($A$7=Nutrients!$B$8,Nutrients!$FC$8,Nutrients!$FC$9)*W$7)+(((IF($A$8=Nutrients!$B$79,Nutrients!$FC$79,(IF($A$8=Nutrients!$B$77,Nutrients!$FC$77,Nutrients!$FC$78)))))*W$8))","v":0},{"$f":"(SUMPRODUCT(X$9:X$229,Nutrients!$FC$8:$FC$228)+(IF($A$7=Nutrients!$B$8,Nutrients!$FC$8,Nutrients!$FC$9)*X$7)+(((IF($A$8=Nutrients!$B$79,Nutrients!$FC$79,(IF($A$8=Nutrients!$B$77,Nutrients!$FC$77,Nutrients!$FC$78)))))*X$8))","v":0},{"$f":"(SUMPRODUCT(Y$9:Y$229,Nutrients!$FC$8:$FC$228)+(IF($A$7=Nutrients!$B$8,Nutrients!$FC$8,Nutrients!$FC$9)*Y$7)+(((IF($A$8=Nutrients!$B$79,Nutrients!$FC$79,(IF($A$8=Nutrients!$B$77,Nutrients!$FC$77,Nutrients!$FC$78)))))*Y$8))","v":0},{"$f":"(SUMPRODUCT(Z$9:Z$229,Nutrients!$FC$8:$FC$228)+(IF($A$7=Nutrients!$B$8,Nutrients!$FC$8,Nutrients!$FC$9)*Z$7)+(((IF($A$8=Nutrients!$B$79,Nutrients!$FC$79,(IF($A$8=Nutrients!$B$77,Nutrients!$FC$77,Nutrients!$FC$78)))))*Z$8))","v":0},{"$f":"(SUMPRODUCT(AA$9:AA$229,Nutrients!$FC$8:$FC$228)+(IF($A$7=Nutrients!$B$8,Nutrients!$FC$8,Nutrients!$FC$9)*AA$7)+(((IF($A$8=Nutrients!$B$79,Nutrients!$FC$79,(IF($A$8=Nutrients!$B$77,Nutrients!$FC$77,Nutrients!$FC$78)))))*AA$8))","v":0},{"$f":"(SUMPRODUCT(AB$9:AB$229,Nutrients!$FC$8:$FC$228)+(IF($A$7=Nutrients!$B$8,Nutrients!$FC$8,Nutrients!$FC$9)*AB$7)+(((IF($A$8=Nutrients!$B$79,Nutrients!$FC$79,(IF($A$8=Nutrients!$B$77,Nutrients!$FC$77,Nutrients!$FC$78)))))*AB$8))","v":0},null,{"$f":"(SUMPRODUCT(AD$9:AD$229,Nutrients!$FC$8:$FC$228)+(IF($A$7=Nutrients!$B$8,Nutrients!$FC$8,Nutrients!$FC$9)*AD$7)+(((IF($A$8=Nutrients!$B$79,Nutrients!$FC$79,(IF($A$8=Nutrients!$B$77,Nutrients!$FC$77,Nutrients!$FC$78)))))*AD$8))","v":0},{"$f":"(SUMPRODUCT(AE$9:AE$229,Nutrients!$FC$8:$FC$228)+(IF($A$7=Nutrients!$B$8,Nutrients!$FC$8,Nutrients!$FC$9)*AE$7)+(((IF($A$8=Nutrients!$B$79,Nutrients!$FC$79,(IF($A$8=Nutrients!$B$77,Nutrients!$FC$77,Nutrients!$FC$78)))))*AE$8))","v":0},{"$f":"(SUMPRODUCT(AF$9:AF$229,Nutrients!$FC$8:$FC$228)+(IF($A$7=Nutrients!$B$8,Nutrients!$FC$8,Nutrients!$FC$9)*AF$7)+(((IF($A$8=Nutrients!$B$79,Nutrients!$FC$79,(IF($A$8=Nutrients!$B$77,Nutrients!$FC$77,Nutrients!$FC$78)))))*AF$8))","v":0},{"$f":"(SUMPRODUCT(AG$9:AG$229,Nutrients!$FC$8:$FC$228)+(IF($A$7=Nutrients!$B$8,Nutrients!$FC$8,Nutrients!$FC$9)*AG$7)+(((IF($A$8=Nutrients!$B$79,Nutrients!$FC$79,(IF($A$8=Nutrients!$B$77,Nutrients!$FC$77,Nutrients!$FC$78)))))*AG$8))","v":0},{"$f":"(SUMPRODUCT(AH$9:AH$229,Nutrients!$FC$8:$FC$228)+(IF($A$7=Nutrients!$B$8,Nutrients!$FC$8,Nutrients!$FC$9)*AH$7)+(((IF($A$8=Nutrients!$B$79,Nutrients!$FC$79,(IF($A$8=Nutrients!$B$77,Nutrients!$FC$77,Nutrients!$FC$78)))))*AH$8))","v":0},{"$f":"(SUMPRODUCT(AI$9:AI$229,Nutrients!$FC$8:$FC$228)+(IF($A$7=Nutrients!$B$8,Nutrients!$FC$8,Nutrients!$FC$9)*AI$7)+(((IF($A$8=Nutrients!$B$79,Nutrients!$FC$79,(IF($A$8=Nutrients!$B$77,Nutrients!$FC$77,Nutrients!$FC$78)))))*AI$8))","v":0},null,{"$f":"(SUMPRODUCT(AK$9:AK$229,Nutrients!$FC$8:$FC$228)+(IF($A$7=Nutrients!$B$8,Nutrients!$FC$8,Nutrients!$FC$9)*AK$7)+(((IF($A$8=Nutrients!$B$79,Nutrients!$FC$79,(IF($A$8=Nutrients!$B$77,Nutrients!$FC$77,Nutrients!$FC$78)))))*AK$8))","v":0},{"$f":"(SUMPRODUCT(AL$9:AL$229,Nutrients!$FC$8:$FC$228)+(IF($A$7=Nutrients!$B$8,Nutrients!$FC$8,Nutrients!$FC$9)*AL$7)+(((IF($A$8=Nutrients!$B$79,Nutrients!$FC$79,(IF($A$8=Nutrients!$B$77,Nutrients!$FC$77,Nutrients!$FC$78)))))*AL$8))","v":0},{"$f":"(SUMPRODUCT(AM$9:AM$229,Nutrients!$FC$8:$FC$228)+(IF($A$7=Nutrients!$B$8,Nutrients!$FC$8,Nutrients!$FC$9)*AM$7)+(((IF($A$8=Nutrients!$B$79,Nutrients!$FC$79,(IF($A$8=Nutrients!$B$77,Nutrients!$FC$77,Nutrients!$FC$78)))))*AM$8))","v":0},{"$f":"(SUMPRODUCT(AN$9:AN$229,Nutrients!$FC$8:$FC$228)+(IF($A$7=Nutrients!$B$8,Nutrients!$FC$8,Nutrients!$FC$9)*AN$7)+(((IF($A$8=Nutrients!$B$79,Nutrients!$FC$79,(IF($A$8=Nutrients!$B$77,Nutrients!$FC$77,Nutrients!$FC$78)))))*AN$8))","v":0},{"$f":"(SUMPRODUCT(AO$9:AO$229,Nutrients!$FC$8:$FC$228)+(IF($A$7=Nutrients!$B$8,Nutrients!$FC$8,Nutrients!$FC$9)*AO$7)+(((IF($A$8=Nutrients!$B$79,Nutrients!$FC$79,(IF($A$8=Nutrients!$B$77,Nutrients!$FC$77,Nutrients!$FC$78)))))*AO$8))","v":0},{"$f":"(SUMPRODUCT(AP$9:AP$229,Nutrients!$FC$8:$FC$228)+(IF($A$7=Nutrients!$B$8,Nutrients!$FC$8,Nutrients!$FC$9)*AP$7)+(((IF($A$8=Nutrients!$B$79,Nutrients!$FC$79,(IF($A$8=Nutrients!$B$77,Nutrients!$FC$77,Nutrients!$FC$78)))))*AP$8))","v":0},null,{"$f":"(SUMPRODUCT(AR$9:AR$229,Nutrients!$FC$8:$FC$228)+(IF($A$7=Nutrients!$B$8,Nutrients!$FC$8,Nutrients!$FC$9)*AR$7)+(((IF($A$8=Nutrients!$B$79,Nutrients!$FC$79,(IF($A$8=Nutrients!$B$77,Nutrients!$FC$77,Nutrients!$FC$78)))))*AR$8))","v":0},{"$f":"(SUMPRODUCT(AS$9:AS$229,Nutrients!$FC$8:$FC$228)+(IF($A$7=Nutrients!$B$8,Nutrients!$FC$8,Nutrients!$FC$9)*AS$7)+(((IF($A$8=Nutrients!$B$79,Nutrients!$FC$79,(IF($A$8=Nutrients!$B$77,Nutrients!$FC$77,Nutrients!$FC$78)))))*AS$8))","v":0},{"$f":"(SUMPRODUCT(AT$9:AT$229,Nutrients!$FC$8:$FC$228)+(IF($A$7=Nutrients!$B$8,Nutrients!$FC$8,Nutrients!$FC$9)*AT$7)+(((IF($A$8=Nutrients!$B$79,Nutrients!$FC$79,(IF($A$8=Nutrients!$B$77,Nutrients!$FC$77,Nutrients!$FC$78)))))*AT$8))","v":0},{"$f":"(SUMPRODUCT(AU$9:AU$229,Nutrients!$FC$8:$FC$228)+(IF($A$7=Nutrients!$B$8,Nutrients!$FC$8,Nutrients!$FC$9)*AU$7)+(((IF($A$8=Nutrients!$B$79,Nutrients!$FC$79,(IF($A$8=Nutrients!$B$77,Nutrients!$FC$77,Nutrients!$FC$78)))))*AU$8))","v":0},{"$f":"(SUMPRODUCT(AV$9:AV$229,Nutrients!$FC$8:$FC$228)+(IF($A$7=Nutrients!$B$8,Nutrients!$FC$8,Nutrients!$FC$9)*AV$7)+(((IF($A$8=Nutrients!$B$79,Nutrients!$FC$79,(IF($A$8=Nutrients!$B$77,Nutrients!$FC$77,Nutrients!$FC$78)))))*AV$8))","v":0},{"$f":"(SUMPRODUCT(AW$9:AW$229,Nutrients!$FC$8:$FC$228)+(IF($A$7=Nutrients!$B$8,Nutrients!$FC$8,Nutrients!$FC$9)*AW$7)+(((IF($A$8=Nutrients!$B$79,Nutrients!$FC$79,(IF($A$8=Nutrients!$B$77,Nutrients!$FC$77,Nutrients!$FC$78)))))*AW$8))","v":0}]
["  Choline, mg/ton",{"$f":"(SUMPRODUCT(B$9:B$229,Nutrients!$FD$8:$FD$228)+(IF($A$7=Nutrients!$B$8,Nutrients!$FD$8,Nutrients!$FD$9)*B$7)+(((IF($A$8=Nutrients!$B$79,Nutrients!$FD$79,(IF($A$8=Nutrients!$B$77,Nutrients!$FD$77,Nutrients!$FD$78)))))*B$8))","v":0},{"$f":"(SUMPRODUCT(C$9:C$229,Nutrients!$FD$8:$FD$228)+(IF($A$7=Nutrients!$B$8,Nutrients!$FD$8,Nutrients!$FD$9)*C$7)+(((IF($A$8=Nutrients!$B$79,Nutrients!$FD$79,(IF($A$8=Nutrients!$B$77,Nutrients!$FD$77,Nutrients!$FD$78)))))*C$8))","v":0},{"$f":"(SUMPRODUCT(D$9:D$229,Nutrients!$FD$8:$FD$228)+(IF($A$7=Nutrients!$B$8,Nutrients!$FD$8,Nutrients!$FD$9)*D$7)+(((IF($A$8=Nutrients!$B$79,Nutrients!$FD$79,(IF($A$8=Nutrients!$B$77,Nutrients!$FD$77,Nutrients!$FD$78)))))*D$8))","v":0},{"$f":"(SUMPRODUCT(E$9:E$229,Nutrients!$FD$8:$FD$228)+(IF($A$7=Nutrients!$B$8,Nutrients!$FD$8,Nutrients!$FD$9)*E$7)+(((IF($A$8=Nutrients!$B$79,Nutrients!$FD$79,(IF($A$8=Nutrients!$B$77,Nutrients!$FD$77,Nutrients!$FD$78)))))*E$8))","v":0},{"$f":"(SUMPRODUCT(F$9:F$229,Nutrients!$FD$8:$FD$228)+(IF($A$7=Nutrients!$B$8,Nutrients!$FD$8,Nutrients!$FD$9)*F$7)+(((IF($A$8=Nutrients!$B$79,Nutrients!$FD$79,(IF($A$8=Nutrients!$B$77,Nutrients!$FD$77,Nutrients!$FD$78)))))*F$8))","v":0},{"$f":"(SUMPRODUCT(G$9:G$229,Nutrients!$FD$8:$FD$228)+(IF($A$7=Nutrients!$B$8,Nutrients!$FD$8,Nutrients!$FD$9)*G$7)+(((IF($A$8=Nutrients!$B$79,Nutrients!$FD$79,(IF($A$8=Nutrients!$B$77,Nutrients!$FD$77,Nutrients!$FD$78)))))*G$8))","v":0},null,{"$f":"(SUMPRODUCT(I$9:I$229,Nutrients!$FD$8:$FD$228)+(IF($A$7=Nutrients!$B$8,Nutrients!$FD$8,Nutrients!$FD$9)*I$7)+(((IF($A$8=Nutrients!$B$79,Nutrients!$FD$79,(IF($A$8=Nutrients!$B$77,Nutrients!$FD$77,Nutrients!$FD$78)))))*I$8))","v":0},{"$f":"(SUMPRODUCT(J$9:J$229,Nutrients!$FD$8:$FD$228)+(IF($A$7=Nutrients!$B$8,Nutrients!$FD$8,Nutrients!$FD$9)*J$7)+(((IF($A$8=Nutrients!$B$79,Nutrients!$FD$79,(IF($A$8=Nutrients!$B$77,Nutrients!$FD$77,Nutrients!$FD$78)))))*J$8))","v":0},{"$f":"(SUMPRODUCT(K$9:K$229,Nutrients!$FD$8:$FD$228)+(IF($A$7=Nutrients!$B$8,Nutrients!$FD$8,Nutrients!$FD$9)*K$7)+(((IF($A$8=Nutrients!$B$79,Nutrients!$FD$79,(IF($A$8=Nutrients!$B$77,Nutrients!$FD$77,Nutrients!$FD$78)))))*K$8))","v":0},{"$f":"(SUMPRODUCT(L$9:L$229,Nutrients!$FD$8:$FD$228)+(IF($A$7=Nutrients!$B$8,Nutrients!$FD$8,Nutrients!$FD$9)*L$7)+(((IF($A$8=Nutrients!$B$79,Nutrients!$FD$79,(IF($A$8=Nutrients!$B$77,Nutrients!$FD$77,Nutrients!$FD$78)))))*L$8))","v":0},{"$f":"(SUMPRODUCT(M$9:M$229,Nutrients!$FD$8:$FD$228)+(IF($A$7=Nutrients!$B$8,Nutrients!$FD$8,Nutrients!$FD$9)*M$7)+(((IF($A$8=Nutrients!$B$79,Nutrients!$FD$79,(IF($A$8=Nutrients!$B$77,Nutrients!$FD$77,Nutrients!$FD$78)))))*M$8))","v":0},{"$f":"(SUMPRODUCT(N$9:N$229,Nutrients!$FD$8:$FD$228)+(IF($A$7=Nutrients!$B$8,Nutrients!$FD$8,Nutrients!$FD$9)*N$7)+(((IF($A$8=Nutrients!$B$79,Nutrients!$FD$79,(IF($A$8=Nutrients!$B$77,Nutrients!$FD$77,Nutrients!$FD$78)))))*N$8))","v":0},null,{"$f":"(SUMPRODUCT(P$9:P$229,Nutrients!$FD$8:$FD$228)+(IF($A$7=Nutrients!$B$8,Nutrients!$FD$8,Nutrients!$FD$9)*P$7)+(((IF($A$8=Nutrients!$B$79,Nutrients!$FD$79,(IF($A$8=Nutrients!$B$77,Nutrients!$FD$77,Nutrients!$FD$78)))))*P$8))","v":0},{"$f":"(SUMPRODUCT(Q$9:Q$229,Nutrients!$FD$8:$FD$228)+(IF($A$7=Nutrients!$B$8,Nutrients!$FD$8,Nutrients!$FD$9)*Q$7)+(((IF($A$8=Nutrients!$B$79,Nutrients!$FD$79,(IF($A$8=Nutrients!$B$77,Nutrients!$FD$77,Nutrients!$FD$78)))))*Q$8))","v":0},{"$f":"(SUMPRODUCT(R$9:R$229,Nutrients!$FD$8:$FD$228)+(IF($A$7=Nutrients!$B$8,Nutrients!$FD$8,Nutrients!$FD$9)*R$7)+(((IF($A$8=Nutrients!$B$79,Nutrients!$FD$79,(IF($A$8=Nutrients!$B$77,Nutrients!$FD$77,Nutrients!$FD$78)))))*R$8))","v":0},{"$f":"(SUMPRODUCT(S$9:S$229,Nutrients!$FD$8:$FD$228)+(IF($A$7=Nutrients!$B$8,Nutrients!$FD$8,Nutrients!$FD$9)*S$7)+(((IF($A$8=Nutrients!$B$79,Nutrients!$FD$79,(IF($A$8=Nutrients!$B$77,Nutrients!$FD$77,Nutrients!$FD$78)))))*S$8))","v":0},{"$f":"(SUMPRODUCT(T$9:T$229,Nutrients!$FD$8:$FD$228)+(IF($A$7=Nutrients!$B$8,Nutrients!$FD$8,Nutrients!$FD$9)*T$7)+(((IF($A$8=Nutrients!$B$79,Nutrients!$FD$79,(IF($A$8=Nutrients!$B$77,Nutrients!$FD$77,Nutrients!$FD$78)))))*T$8))","v":0},{"$f":"(SUMPRODUCT(U$9:U$229,Nutrients!$FD$8:$FD$228)+(IF($A$7=Nutrients!$B$8,Nutrients!$FD$8,Nutrients!$FD$9)*U$7)+(((IF($A$8=Nutrients!$B$79,Nutrients!$FD$79,(IF($A$8=Nutrients!$B$77,Nutrients!$FD$77,Nutrients!$FD$78)))))*U$8))","v":0},null,{"$f":"(SUMPRODUCT(W$9:W$229,Nutrients!$FD$8:$FD$228)+(IF($A$7=Nutrients!$B$8,Nutrients!$FD$8,Nutrients!$FD$9)*W$7)+(((IF($A$8=Nutrients!$B$79,Nutrients!$FD$79,(IF($A$8=Nutrients!$B$77,Nutrients!$FD$77,Nutrients!$FD$78)))))*W$8))","v":0},{"$f":"(SUMPRODUCT(X$9:X$229,Nutrients!$FD$8:$FD$228)+(IF($A$7=Nutrients!$B$8,Nutrients!$FD$8,Nutrients!$FD$9)*X$7)+(((IF($A$8=Nutrients!$B$79,Nutrients!$FD$79,(IF($A$8=Nutrients!$B$77,Nutrients!$FD$77,Nutrients!$FD$78)))))*X$8))","v":0},{"$f":"(SUMPRODUCT(Y$9:Y$229,Nutrients!$FD$8:$FD$228)+(IF($A$7=Nutrients!$B$8,Nutrients!$FD$8,Nutrients!$FD$9)*Y$7)+(((IF($A$8=Nutrients!$B$79,Nutrients!$FD$79,(IF($A$8=Nutrients!$B$77,Nutrients!$FD$77,Nutrients!$FD$78)))))*Y$8))","v":0},{"$f":"(SUMPRODUCT(Z$9:Z$229,Nutrients!$FD$8:$FD$228)+(IF($A$7=Nutrients!$B$8,Nutrients!$FD$8,Nutrients!$FD$9)*Z$7)+(((IF($A$8=Nutrients!$B$79,Nutrients!$FD$79,(IF($A$8=Nutrients!$B$77,Nutrients!$FD$77,Nutrients!$FD$78)))))*Z$8))","v":0},{"$f":"(SUMPRODUCT(AA$9:AA$229,Nutrients!$FD$8:$FD$228)+(IF($A$7=Nutrients!$B$8,Nutrients!$FD$8,Nutrients!$FD$9)*AA$7)+(((IF($A$8=Nutrients!$B$79,Nutrients!$FD$79,(IF($A$8=Nutrients!$B$77,Nutrients!$FD$77,Nutrients!$FD$78)))))*AA$8))","v":0},{"$f":"(SUMPRODUCT(AB$9:AB$229,Nutrients!$FD$8:$FD$228)+(IF($A$7=Nutrients!$B$8,Nutrients!$FD$8,Nutrients!$FD$9)*AB$7)+(((IF($A$8=Nutrients!$B$79,Nutrients!$FD$79,(IF($A$8=Nutrients!$B$77,Nutrients!$FD$77,Nutrients!$FD$78)))))*AB$8))","v":0},null,{"$f":"(SUMPRODUCT(AD$9:AD$229,Nutrients!$FD$8:$FD$228)+(IF($A$7=Nutrients!$B$8,Nutrients!$FD$8,Nutrients!$FD$9)*AD$7)+(((IF($A$8=Nutrients!$B$79,Nutrients!$FD$79,(IF($A$8=Nutrients!$B$77,Nutrients!$FD$77,Nutrients!$FD$78)))))*AD$8))","v":0},{"$f":"(SUMPRODUCT(AE$9:AE$229,Nutrients!$FD$8:$FD$228)+(IF($A$7=Nutrients!$B$8,Nutrients!$FD$8,Nutrients!$FD$9)*AE$7)+(((IF($A$8=Nutrients!$B$79,Nutrients!$FD$79,(IF($A$8=Nutrients!$B$77,Nutrients!$FD$77,Nutrients!$FD$78)))))*AE$8))","v":0},{"$f":"(SUMPRODUCT(AF$9:AF$229,Nutrients!$FD$8:$FD$228)+(IF($A$7=Nutrients!$B$8,Nutrients!$FD$8,Nutrients!$FD$9)*AF$7)+(((IF($A$8=Nutrients!$B$79,Nutrients!$FD$79,(IF($A$8=Nutrients!$B$77,Nutrients!$FD$77,Nutrients!$FD$78)))))*AF$8))","v":0},{"$f":"(SUMPRODUCT(AG$9:AG$229,Nutrients!$FD$8:$FD$228)+(IF($A$7=Nutrients!$B$8,Nutrients!$FD$8,Nutrients!$FD$9)*AG$7)+(((IF($A$8=Nutrients!$B$79,Nutrients!$FD$79,(IF($A$8=Nutrients!$B$77,Nutrients!$FD$77,Nutrients!$FD$78)))))*AG$8))","v":0},{"$f":"(SUMPRODUCT(AH$9:AH$229,Nutrients!$FD$8:$FD$228)+(IF($A$7=Nutrients!$B$8,Nutrients!$FD$8,Nutrients!$FD$9)*AH$7)+(((IF($A$8=Nutrients!$B$79,Nutrients!$FD$79,(IF($A$8=Nutrients!$B$77,Nutrients!$FD$77,Nutrients!$FD$78)))))*AH$8))","v":0},{"$f":"(SUMPRODUCT(AI$9:AI$229,Nutrients!$FD$8:$FD$228)+(IF($A$7=Nutrients!$B$8,Nutrients!$FD$8,Nutrients!$FD$9)*AI$7)+(((IF($A$8=Nutrients!$B$79,Nutrients!$FD$79,(IF($A$8=Nutrients!$B$77,Nutrients!$FD$77,Nutrients!$FD$78)))))*AI$8))","v":0},null,{"$f":"(SUMPRODUCT(AK$9:AK$229,Nutrients!$FD$8:$FD$228)+(IF($A$7=Nutrients!$B$8,Nutrients!$FD$8,Nutrients!$FD$9)*AK$7)+(((IF($A$8=Nutrients!$B$79,Nutrients!$FD$79,(IF($A$8=Nutrients!$B$77,Nutrients!$FD$77,Nutrients!$FD$78)))))*AK$8))","v":0},{"$f":"(SUMPRODUCT(AL$9:AL$229,Nutrients!$FD$8:$FD$228)+(IF($A$7=Nutrients!$B$8,Nutrients!$FD$8,Nutrients!$FD$9)*AL$7)+(((IF($A$8=Nutrients!$B$79,Nutrients!$FD$79,(IF($A$8=Nutrients!$B$77,Nutrients!$FD$77,Nutrients!$FD$78)))))*AL$8))","v":0},{"$f":"(SUMPRODUCT(AM$9:AM$229,Nutrients!$FD$8:$FD$228)+(IF($A$7=Nutrients!$B$8,Nutrients!$FD$8,Nutrients!$FD$9)*AM$7)+(((IF($A$8=Nutrients!$B$79,Nutrients!$FD$79,(IF($A$8=Nutrients!$B$77,Nutrients!$FD$77,Nutrients!$FD$78)))))*AM$8))","v":0},{"$f":"(SUMPRODUCT(AN$9:AN$229,Nutrients!$FD$8:$FD$228)+(IF($A$7=Nutrients!$B$8,Nutrients!$FD$8,Nutrients!$FD$9)*AN$7)+(((IF($A$8=Nutrients!$B$79,Nutrients!$FD$79,(IF($A$8=Nutrients!$B$77,Nutrients!$FD$77,Nutrients!$FD$78)))))*AN$8))","v":0},{"$f":"(SUMPRODUCT(AO$9:AO$229,Nutrients!$FD$8:$FD$228)+(IF($A$7=Nutrients!$B$8,Nutrients!$FD$8,Nutrients!$FD$9)*AO$7)+(((IF($A$8=Nutrients!$B$79,Nutrients!$FD$79,(IF($A$8=Nutrients!$B$77,Nutrients!$FD$77,Nutrients!$FD$78)))))*AO$8))","v":0},{"$f":"(SUMPRODUCT(AP$9:AP$229,Nutrients!$FD$8:$FD$228)+(IF($A$7=Nutrients!$B$8,Nutrients!$FD$8,Nutrients!$FD$9)*AP$7)+(((IF($A$8=Nutrients!$B$79,Nutrients!$FD$79,(IF($A$8=Nutrients!$B$77,Nutrients!$FD$77,Nutrients!$FD$78)))))*AP$8))","v":0},null,{"$f":"(SUMPRODUCT(AR$9:AR$229,Nutrients!$FD$8:$FD$228)+(IF($A$7=Nutrients!$B$8,Nutrients!$FD$8,Nutrients!$FD$9)*AR$7)+(((IF($A$8=Nutrients!$B$79,Nutrients!$FD$79,(IF($A$8=Nutrients!$B$77,Nutrients!$FD$77,Nutrients!$FD$78)))))*AR$8))","v":0},{"$f":"(SUMPRODUCT(AS$9:AS$229,Nutrients!$FD$8:$FD$228)+(IF($A$7=Nutrients!$B$8,Nutrients!$FD$8,Nutrients!$FD$9)*AS$7)+(((IF($A$8=Nutrients!$B$79,Nutrients!$FD$79,(IF($A$8=Nutrients!$B$77,Nutrients!$FD$77,Nutrients!$FD$78)))))*AS$8))","v":0},{"$f":"(SUMPRODUCT(AT$9:AT$229,Nutrients!$FD$8:$FD$228)+(IF($A$7=Nutrients!$B$8,Nutrients!$FD$8,Nutrients!$FD$9)*AT$7)+(((IF($A$8=Nutrients!$B$79,Nutrients!$FD$79,(IF($A$8=Nutrients!$B$77,Nutrients!$FD$77,Nutrients!$FD$78)))))*AT$8))","v":0},{"$f":"(SUMPRODUCT(AU$9:AU$229,Nutrients!$FD$8:$FD$228)+(IF($A$7=Nutrients!$B$8,Nutrients!$FD$8,Nutrients!$FD$9)*AU$7)+(((IF($A$8=Nutrients!$B$79,Nutrients!$FD$79,(IF($A$8=Nutrients!$B$77,Nutrients!$FD$77,Nutrients!$FD$78)))))*AU$8))","v":0},{"$f":"(SUMPRODUCT(AV$9:AV$229,Nutrients!$FD$8:$FD$228)+(IF($A$7=Nutrients!$B$8,Nutrients!$FD$8,Nutrients!$FD$9)*AV$7)+(((IF($A$8=Nutrients!$B$79,Nutrients!$FD$79,(IF($A$8=Nutrients!$B$77,Nutrients!$FD$77,Nutrients!$FD$78)))))*AV$8))","v":0},{"$f":"(SUMPRODUCT(AW$9:AW$229,Nutrients!$FD$8:$FD$228)+(IF($A$7=Nutrients!$B$8,Nutrients!$FD$8,Nutrients!$FD$9)*AW$7)+(((IF($A$8=Nutrients!$B$79,Nutrients!$FD$79,(IF($A$8=Nutrients!$B$77,Nutrients!$FD$77,Nutrients!$FD$78)))))*AW$8))","v":0}]
["  Carnitine, mg/ton",{"$f":"(SUMPRODUCT(B$9:B$229,Nutrients!$FE$8:$FE$228)+(IF($A$7=Nutrients!$B$8,Nutrients!$FE$8,Nutrients!$FE$9)*B$7)+(((IF($A$8=Nutrients!$B$79,Nutrients!$FE$79,(IF($A$8=Nutrients!$B$77,Nutrients!$FE$77,Nutrients!$FE$78)))))*B$8))","v":0},{"$f":"(SUMPRODUCT(C$9:C$229,Nutrients!$FE$8:$FE$228)+(IF($A$7=Nutrients!$B$8,Nutrients!$FE$8,Nutrients!$FE$9)*C$7)+(((IF($A$8=Nutrients!$B$79,Nutrients!$FE$79,(IF($A$8=Nutrients!$B$77,Nutrients!$FE$77,Nutrients!$FE$78)))))*C$8))","v":0},{"$f":"(SUMPRODUCT(D$9:D$229,Nutrients!$FE$8:$FE$228)+(IF($A$7=Nutrients!$B$8,Nutrients!$FE$8,Nutrients!$FE$9)*D$7)+(((IF($A$8=Nutrients!$B$79,Nutrients!$FE$79,(IF($A$8=Nutrients!$B$77,Nutrients!$FE$77,Nutrients!$FE$78)))))*D$8))","v":0},{"$f":"(SUMPRODUCT(E$9:E$229,Nutrients!$FE$8:$FE$228)+(IF($A$7=Nutrients!$B$8,Nutrients!$FE$8,Nutrients!$FE$9)*E$7)+(((IF($A$8=Nutrients!$B$79,Nutrients!$FE$79,(IF($A$8=Nutrients!$B$77,Nutrients!$FE$77,Nutrients!$FE$78)))))*E$8))","v":0},{"$f":"(SUMPRODUCT(F$9:F$229,Nutrients!$FE$8:$FE$228)+(IF($A$7=Nutrients!$B$8,Nutrients!$FE$8,Nutrients!$FE$9)*F$7)+(((IF($A$8=Nutrients!$B$79,Nutrients!$FE$79,(IF($A$8=Nutrients!$B$77,Nutrients!$FE$77,Nutrients!$FE$78)))))*F$8))","v":0},{"$f":"(SUMPRODUCT(G$9:G$229,Nutrients!$FE$8:$FE$228)+(IF($A$7=Nutrients!$B$8,Nutrients!$FE$8,Nutrients!$FE$9)*G$7)+(((IF($A$8=Nutrients!$B$79,Nutrients!$FE$79,(IF($A$8=Nutrients!$B$77,Nutrients!$FE$77,Nutrients!$FE$78)))))*G$8))","v":0},null,{"$f":"(SUMPRODUCT(I$9:I$229,Nutrients!$FE$8:$FE$228)+(IF($A$7=Nutrients!$B$8,Nutrients!$FE$8,Nutrients!$FE$9)*I$7)+(((IF($A$8=Nutrients!$B$79,Nutrients!$FE$79,(IF($A$8=Nutrients!$B$77,Nutrients!$FE$77,Nutrients!$FE$78)))))*I$8))","v":0},{"$f":"(SUMPRODUCT(J$9:J$229,Nutrients!$FE$8:$FE$228)+(IF($A$7=Nutrients!$B$8,Nutrients!$FE$8,Nutrients!$FE$9)*J$7)+(((IF($A$8=Nutrients!$B$79,Nutrients!$FE$79,(IF($A$8=Nutrients!$B$77,Nutrients!$FE$77,Nutrients!$FE$78)))))*J$8))","v":0},{"$f":"(SUMPRODUCT(K$9:K$229,Nutrients!$FE$8:$FE$228)+(IF($A$7=Nutrients!$B$8,Nutrients!$FE$8,Nutrients!$FE$9)*K$7)+(((IF($A$8=Nutrients!$B$79,Nutrients!$FE$79,(IF($A$8=Nutrients!$B$77,Nutrients!$FE$77,Nutrients!$FE$78)))))*K$8))","v":0},{"$f":"(SUMPRODUCT(L$9:L$229,Nutrients!$FE$8:$FE$228)+(IF($A$7=Nutrients!$B$8,Nutrients!$FE$8,Nutrients!$FE$9)*L$7)+(((IF($A$8=Nutrients!$B$79,Nutrients!$FE$79,(IF($A$8=Nutrients!$B$77,Nutrients!$FE$77,Nutrients!$FE$78)))))*L$8))","v":0},{"$f":"(SUMPRODUCT(M$9:M$229,Nutrients!$FE$8:$FE$228)+(IF($A$7=Nutrients!$B$8,Nutrients!$FE$8,Nutrients!$FE$9)*M$7)+(((IF($A$8=Nutrients!$B$79,Nutrients!$FE$79,(IF($A$8=Nutrients!$B$77,Nutrients!$FE$77,Nutrients!$FE$78)))))*M$8))","v":0},{"$f":"(SUMPRODUCT(N$9:N$229,Nutrients!$FE$8:$FE$228)+(IF($A$7=Nutrients!$B$8,Nutrients!$FE$8,Nutrients!$FE$9)*N$7)+(((IF($A$8=Nutrients!$B$79,Nutrients!$FE$79,(IF($A$8=Nutrients!$B$77,Nutrients!$FE$77,Nutrients!$FE$78)))))*N$8))","v":0},null,{"$f":"(SUMPRODUCT(P$9:P$229,Nutrients!$FE$8:$FE$228)+(IF($A$7=Nutrients!$B$8,Nutrients!$FE$8,Nutrients!$FE$9)*P$7)+(((IF($A$8=Nutrients!$B$79,Nutrients!$FE$79,(IF($A$8=Nutrients!$B$77,Nutrients!$FE$77,Nutrients!$FE$78)))))*P$8))","v":0},{"$f":"(SUMPRODUCT(Q$9:Q$229,Nutrients!$FE$8:$FE$228)+(IF($A$7=Nutrients!$B$8,Nutrients!$FE$8,Nutrients!$FE$9)*Q$7)+(((IF($A$8=Nutrients!$B$79,Nutrients!$FE$79,(IF($A$8=Nutrients!$B$77,Nutrients!$FE$77,Nutrients!$FE$78)))))*Q$8))","v":0},{"$f":"(SUMPRODUCT(R$9:R$229,Nutrients!$FE$8:$FE$228)+(IF($A$7=Nutrients!$B$8,Nutrients!$FE$8,Nutrients!$FE$9)*R$7)+(((IF($A$8=Nutrients!$B$79,Nutrients!$FE$79,(IF($A$8=Nutrients!$B$77,Nutrients!$FE$77,Nutrients!$FE$78)))))*R$8))","v":0},{"$f":"(SUMPRODUCT(S$9:S$229,Nutrients!$FE$8:$FE$228)+(IF($A$7=Nutrients!$B$8,Nutrients!$FE$8,Nutrients!$FE$9)*S$7)+(((IF($A$8=Nutrients!$B$79,Nutrients!$FE$79,(IF($A$8=Nutrients!$B$77,Nutrients!$FE$77,Nutrients!$FE$78)))))*S$8))","v":0},{"$f":"(SUMPRODUCT(T$9:T$229,Nutrients!$FE$8:$FE$228)+(IF($A$7=Nutrients!$B$8,Nutrients!$FE$8,Nutrients!$FE$9)*T$7)+(((IF($A$8=Nutrients!$B$79,Nutrients!$FE$79,(IF($A$8=Nutrients!$B$77,Nutrients!$FE$77,Nutrients!$FE$78)))))*T$8))","v":0},{"$f":"(SUMPRODUCT(U$9:U$229,Nutrients!$FE$8:$FE$228)+(IF($A$7=Nutrients!$B$8,Nutrients!$FE$8,Nutrients!$FE$9)*U$7)+(((IF($A$8=Nutrients!$B$79,Nutrients!$FE$79,(IF($A$8=Nutrients!$B$77,Nutrients!$FE$77,Nutrients!$FE$78)))))*U$8))","v":0},null,{"$f":"(SUMPRODUCT(W$9:W$229,Nutrients!$FE$8:$FE$228)+(IF($A$7=Nutrients!$B$8,Nutrients!$FE$8,Nutrients!$FE$9)*W$7)+(((IF($A$8=Nutrients!$B$79,Nutrients!$FE$79,(IF($A$8=Nutrients!$B$77,Nutrients!$FE$77,Nutrients!$FE$78)))))*W$8))","v":0},{"$f":"(SUMPRODUCT(X$9:X$229,Nutrients!$FE$8:$FE$228)+(IF($A$7=Nutrients!$B$8,Nutrients!$FE$8,Nutrients!$FE$9)*X$7)+(((IF($A$8=Nutrients!$B$79,Nutrients!$FE$79,(IF($A$8=Nutrients!$B$77,Nutrients!$FE$77,Nutrients!$FE$78)))))*X$8))","v":0},{"$f":"(SUMPRODUCT(Y$9:Y$229,Nutrients!$FE$8:$FE$228)+(IF($A$7=Nutrients!$B$8,Nutrients!$FE$8,Nutrients!$FE$9)*Y$7)+(((IF($A$8=Nutrients!$B$79,Nutrients!$FE$79,(IF($A$8=Nutrients!$B$77,Nutrients!$FE$77,Nutrients!$FE$78)))))*Y$8))","v":0},{"$f":"(SUMPRODUCT(Z$9:Z$229,Nutrients!$FE$8:$FE$228)+(IF($A$7=Nutrients!$B$8,Nutrients!$FE$8,Nutrients!$FE$9)*Z$7)+(((IF($A$8=Nutrients!$B$79,Nutrients!$FE$79,(IF($A$8=Nutrients!$B$77,Nutrients!$FE$77,Nutrients!$FE$78)))))*Z$8))","v":0},{"$f":"(SUMPRODUCT(AA$9:AA$229,Nutrients!$FE$8:$FE$228)+(IF($A$7=Nutrients!$B$8,Nutrients!$FE$8,Nutrients!$FE$9)*AA$7)+(((IF($A$8=Nutrients!$B$79,Nutrients!$FE$79,(IF($A$8=Nutrients!$B$77,Nutrients!$FE$77,Nutrients!$FE$78)))))*AA$8))","v":0},{"$f":"(SUMPRODUCT(AB$9:AB$229,Nutrients!$FE$8:$FE$228)+(IF($A$7=Nutrients!$B$8,Nutrients!$FE$8,Nutrients!$FE$9)*AB$7)+(((IF($A$8=Nutrients!$B$79,Nutrients!$FE$79,(IF($A$8=Nutrients!$B$77,Nutrients!$FE$77,Nutrients!$FE$78)))))*AB$8))","v":0},null,{"$f":"(SUMPRODUCT(AD$9:AD$229,Nutrients!$FE$8:$FE$228)+(IF($A$7=Nutrients!$B$8,Nutrients!$FE$8,Nutrients!$FE$9)*AD$7)+(((IF($A$8=Nutrients!$B$79,Nutrients!$FE$79,(IF($A$8=Nutrients!$B$77,Nutrients!$FE$77,Nutrients!$FE$78)))))*AD$8))","v":0},{"$f":"(SUMPRODUCT(AE$9:AE$229,Nutrients!$FE$8:$FE$228)+(IF($A$7=Nutrients!$B$8,Nutrients!$FE$8,Nutrients!$FE$9)*AE$7)+(((IF($A$8=Nutrients!$B$79,Nutrients!$FE$79,(IF($A$8=Nutrients!$B$77,Nutrients!$FE$77,Nutrients!$FE$78)))))*AE$8))","v":0},{"$f":"(SUMPRODUCT(AF$9:AF$229,Nutrients!$FE$8:$FE$228)+(IF($A$7=Nutrients!$B$8,Nutrients!$FE$8,Nutrients!$FE$9)*AF$7)+(((IF($A$8=Nutrients!$B$79,Nutrients!$FE$79,(IF($A$8=Nutrients!$B$77,Nutrients!$FE$77,Nutrients!$FE$78)))))*AF$8))","v":0},{"$f":"(SUMPRODUCT(AG$9:AG$229,Nutrients!$FE$8:$FE$228)+(IF($A$7=Nutrients!$B$8,Nutrients!$FE$8,Nutrients!$FE$9)*AG$7)+(((IF($A$8=Nutrients!$B$79,Nutrients!$FE$79,(IF($A$8=Nutrients!$B$77,Nutrients!$FE$77,Nutrients!$FE$78)))))*AG$8))","v":0},{"$f":"(SUMPRODUCT(AH$9:AH$229,Nutrients!$FE$8:$FE$228)+(IF($A$7=Nutrients!$B$8,Nutrients!$FE$8,Nutrients!$FE$9)*AH$7)+(((IF($A$8=Nutrients!$B$79,Nutrients!$FE$79,(IF($A$8=Nutrients!$B$77,Nutrients!$FE$77,Nutrients!$FE$78)))))*AH$8))","v":0},{"$f":"(SUMPRODUCT(AI$9:AI$229,Nutrients!$FE$8:$FE$228)+(IF($A$7=Nutrients!$B$8,Nutrients!$FE$8,Nutrients!$FE$9)*AI$7)+(((IF($A$8=Nutrients!$B$79,Nutrients!$FE$79,(IF($A$8=Nutrients!$B$77,Nutrients!$FE$77,Nutrients!$FE$78)))))*AI$8))","v":0},null,{"$f":"(SUMPRODUCT(AK$9:AK$229,Nutrients!$FE$8:$FE$228)+(IF($A$7=Nutrients!$B$8,Nutrients!$FE$8,Nutrients!$FE$9)*AK$7)+(((IF($A$8=Nutrients!$B$79,Nutrients!$FE$79,(IF($A$8=Nutrients!$B$77,Nutrients!$FE$77,Nutrients!$FE$78)))))*AK$8))","v":0},{"$f":"(SUMPRODUCT(AL$9:AL$229,Nutrients!$FE$8:$FE$228)+(IF($A$7=Nutrients!$B$8,Nutrients!$FE$8,Nutrients!$FE$9)*AL$7)+(((IF($A$8=Nutrients!$B$79,Nutrients!$FE$79,(IF($A$8=Nutrients!$B$77,Nutrients!$FE$77,Nutrients!$FE$78)))))*AL$8))","v":0},{"$f":"(SUMPRODUCT(AM$9:AM$229,Nutrients!$FE$8:$FE$228)+(IF($A$7=Nutrients!$B$8,Nutrients!$FE$8,Nutrients!$FE$9)*AM$7)+(((IF($A$8=Nutrients!$B$79,Nutrients!$FE$79,(IF($A$8=Nutrients!$B$77,Nutrients!$FE$77,Nutrients!$FE$78)))))*AM$8))","v":0},{"$f":"(SUMPRODUCT(AN$9:AN$229,Nutrients!$FE$8:$FE$228)+(IF($A$7=Nutrients!$B$8,Nutrients!$FE$8,Nutrients!$FE$9)*AN$7)+(((IF($A$8=Nutrients!$B$79,Nutrients!$FE$79,(IF($A$8=Nutrients!$B$77,Nutrients!$FE$77,Nutrients!$FE$78)))))*AN$8))","v":0},{"$f":"(SUMPRODUCT(AO$9:AO$229,Nutrients!$FE$8:$FE$228)+(IF($A$7=Nutrients!$B$8,Nutrients!$FE$8,Nutrients!$FE$9)*AO$7)+(((IF($A$8=Nutrients!$B$79,Nutrients!$FE$79,(IF($A$8=Nutrients!$B$77,Nutrients!$FE$77,Nutrients!$FE$78)))))*AO$8))","v":0},{"$f":"(SUMPRODUCT(AP$9:AP$229,Nutrients!$FE$8:$FE$228)+(IF($A$7=Nutrients!$B$8,Nutrients!$FE$8,Nutrients!$FE$9)*AP$7)+(((IF($A$8=Nutrients!$B$79,Nutrients!$FE$79,(IF($A$8=Nutrients!$B$77,Nutrients!$FE$77,Nutrients!$FE$78)))))*AP$8))","v":0},null,{"$f":"(SUMPRODUCT(AR$9:AR$229,Nutrients!$FE$8:$FE$228)+(IF($A$7=Nutrients!$B$8,Nutrients!$FE$8,Nutrients!$FE$9)*AR$7)+(((IF($A$8=Nutrients!$B$79,Nutrients!$FE$79,(IF($A$8=Nutrients!$B$77,Nutrients!$FE$77,Nutrients!$FE$78)))))*AR$8))","v":0},{"$f":"(SUMPRODUCT(AS$9:AS$229,Nutrients!$FE$8:$FE$228)+(IF($A$7=Nutrients!$B$8,Nutrients!$FE$8,Nutrients!$FE$9)*AS$7)+(((IF($A$8=Nutrients!$B$79,Nutrients!$FE$79,(IF($A$8=Nutrients!$B$77,Nutrients!$FE$77,Nutrients!$FE$78)))))*AS$8))","v":0},{"$f":"(SUMPRODUCT(AT$9:AT$229,Nutrients!$FE$8:$FE$228)+(IF($A$7=Nutrients!$B$8,Nutrients!$FE$8,Nutrients!$FE$9)*AT$7)+(((IF($A$8=Nutrients!$B$79,Nutrients!$FE$79,(IF($A$8=Nutrients!$B$77,Nutrients!$FE$77,Nutrients!$FE$78)))))*AT$8))","v":0},{"$f":"(SUMPRODUCT(AU$9:AU$229,Nutrients!$FE$8:$FE$228)+(IF($A$7=Nutrients!$B$8,Nutrients!$FE$8,Nutrients!$FE$9)*AU$7)+(((IF($A$8=Nutrients!$B$79,Nutrients!$FE$79,(IF($A$8=Nutrients!$B$77,Nutrients!$FE$77,Nutrients!$FE$78)))))*AU$8))","v":0},{"$f":"(SUMPRODUCT(AV$9:AV$229,Nutrients!$FE$8:$FE$228)+(IF($A$7=Nutrients!$B$8,Nutrients!$FE$8,Nutrients!$FE$9)*AV$7)+(((IF($A$8=Nutrients!$B$79,Nutrients!$FE$79,(IF($A$8=Nutrients!$B$77,Nutrients!$FE$77,Nutrients!$FE$78)))))*AV$8))","v":0},{"$f":"(SUMPRODUCT(AW$9:AW$229,Nutrients!$FE$8:$FE$228)+(IF($A$7=Nutrients!$B$8,Nutrients!$FE$8,Nutrients!$FE$9)*AW$7)+(((IF($A$8=Nutrients!$B$79,Nutrients!$FE$79,(IF($A$8=Nutrients!$B$77,Nutrients!$FE$77,Nutrients!$FE$78)))))*AW$8))","v":0}]
[]
["ADG, g/d",{"$f":" (-1619.2980797296 + 25.9248064834 * (B251/1000) - 2657.6209162609 * B236 +\n123.0469725298 * B253 - 9.2854579989 * B316 + 872.0182830582 * B252 + 26.664395965 * (AVERAGE(B5:B6)*0.453592) +\n2599.7646012325 * B236 * B236- 0.1016237102 *  (AVERAGE(B5:B6)*0.453592) *  (AVERAGE(B5:B6)*0.453592) - 71.8618465276 * B236 * B253 -\n607.1294449572 * B236 * B252 + 25.6463076451 * B236 * (AVERAGE(B5:B6)*0.453592) - 0.8399854508 * B253 * (AVERAGE(B5:B6)*0.453592) +\n0.0967347393 * B316 * (AVERAGE(B5:B6)*0.453592) - 5.2553838048 * B252 * (AVERAGE(B5:B6)*0.453592))","v":757.46635553023782},{"$f":" -1619.2980797296 + 25.9248064834 * (C251/1000) - 2657.6209162609 * C236 +\n123.0469725298 * C253 - 9.2854579989 * C316 + 872.0182830582 * C252 + 26.664395965 * (AVERAGE(C5:C6)*0.453592) +\n2599.7646012325 * C236 * C236- 0.1016237102 *  (AVERAGE(C5:C6)*0.453592) *  (AVERAGE(C5:C6)*0.453592) - 71.8618465276 * C236 * C253 -\n607.1294449572 * C236 * C252 + 25.6463076451 * C236 * (AVERAGE(C5:C6)*0.453592) - 0.8399854508 * C253 * (AVERAGE(C5:C6)*0.453592) +\n0.0967347393 * C316 * (AVERAGE(C5:C6)*0.453592) - 5.2553838048 * C252 * (AVERAGE(C5:C6)*0.453592)","v":870.42326519783569},{"$f":" -1619.2980797296 + 25.9248064834 * (D251/1000) - 2657.6209162609 * D236 +\n123.0469725298 * D253 - 9.2854579989 * D316 + 872.0182830582 * D252 + 26.664395965 * (AVERAGE(D5:D6)*0.453592) +\n2599.7646012325 * D236 * D236- 0.1016237102 *  (AVERAGE(D5:D6)*0.453592) *  (AVERAGE(D5:D6)*0.453592) - 71.8618465276 * D236 * D253 -\n607.1294449572 * D236 * D252 + 25.6463076451 * D236 * (AVERAGE(D5:D6)*0.453592) - 0.8399854508 * D253 * (AVERAGE(D5:D6)*0.453592) +\n0.0967347393 * D316 * (AVERAGE(D5:D6)*0.453592) - 5.2553838048 * D252 * (AVERAGE(D5:D6)*0.453592)","v":946.21888727648684},{"$f":" -1619.2980797296 + 25.9248064834 * (E251/1000) - 2657.6209162609 * E236 +\n123.0469725298 * E253 - 9.2854579989 * E316 + 872.0182830582 * E252 + 26.664395965 * (AVERAGE(E5:E6)*0.453592) +\n2599.7646012325 * E236 * E236- 0.1016237102 *  (AVERAGE(E5:E6)*0.453592) *  (AVERAGE(E5:E6)*0.453592) - 71.8618465276 * E236 * E253 -\n607.1294449572 * E236 * E252 + 25.6463076451 * E236 * (AVERAGE(E5:E6)*0.453592) - 0.8399854508 * E253 * (AVERAGE(E5:E6)*0.453592) +\n0.0967347393 * E316 * (AVERAGE(E5:E6)*0.453592) - 5.2553838048 * E252 * (AVERAGE(E5:E6)*0.453592)","v":982.61557306834152},{"$f":" -1619.2980797296 + 25.9248064834 * (F251/1000) - 2657.6209162609 * F236 +\n123.0469725298 * F253 - 9.2854579989 * F316 + 872.0182830582 * F252 + 26.664395965 * (AVERAGE(F5:F6)*0.453592) +\n2599.7646012325 * F236 * F236- 0.1016237102 *  (AVERAGE(F5:F6)*0.453592) *  (AVERAGE(F5:F6)*0.453592) - 71.8618465276 * F236 * F253 -\n607.1294449572 * F236 * F252 + 25.6463076451 * F236 * (AVERAGE(F5:F6)*0.453592) - 0.8399854508 * F253 * (AVERAGE(F5:F6)*0.453592) +\n0.0967347393 * F316 * (AVERAGE(F5:F6)*0.453592) - 5.2553838048 * F252 * (AVERAGE(F5:F6)*0.453592)","v":976.63637619430801},{"$f":" -1619.2980797296 + 25.9248064834 * (G251/1000) - 2657.6209162609 * G236 +\n123.0469725298 * G253 - 9.2854579989 * G316 + 872.0182830582 * G252 + 26.664395965 * (AVERAGE(G5:G6)*0.453592) +\n2599.7646012325 * G236 * G236- 0.1016237102 *  (AVERAGE(G5:G6)*0.453592) *  (AVERAGE(G5:G6)*0.453592) - 71.8618465276 * G236 * G253 -\n607.1294449572 * G236 * G252 + 25.6463076451 * G236 * (AVERAGE(G5:G6)*0.453592) - 0.8399854508 * G253 * (AVERAGE(G5:G6)*0.453592) +\n0.0967347393 * G316 * (AVERAGE(G5:G6)*0.453592) - 5.2553838048 * G252 * (AVERAGE(G5:G6)*0.453592)","v":919.74779687896194},null,{"$f":" (-1619.2980797296 + 25.9248064834 * (I251/1000) - 2657.6209162609 * I236 +\n123.0469725298 * I253 - 9.2854579989 * I316 + 872.0182830582 * I252 + 26.664395965 * (AVERAGE(I5:I6)*0.453592) +\n2599.7646012325 * I236 * I236- 0.1016237102 *  (AVERAGE(I5:I6)*0.453592) *  (AVERAGE(I5:I6)*0.453592) - 71.8618465276 * I236 * I253 -\n607.1294449572 * I236 * I252 + 25.6463076451 * I236 * (AVERAGE(I5:I6)*0.453592) - 0.8399854508 * I253 * (AVERAGE(I5:I6)*0.453592) +\n0.0967347393 * I316 * (AVERAGE(I5:I6)*0.453592) - 5.2553838048 * I252 * (AVERAGE(I5:I6)*0.453592))","v":752.59141313154385},{"$f":" -1619.2980797296 + 25.9248064834 * (J251/1000) - 2657.6209162609 * J236 +\n123.0469725298 * J253 - 9.2854579989 * J316 + 872.0182830582 * J252 + 26.664395965 * (AVERAGE(J5:J6)*0.453592) +\n2599.7646012325 * J236 * J236- 0.1016237102 *  (AVERAGE(J5:J6)*0.453592) *  (AVERAGE(J5:J6)*0.453592) - 71.8618465276 * J236 * J253 -\n607.1294449572 * J236 * J252 + 25.6463076451 * J236 * (AVERAGE(J5:J6)*0.453592) - 0.8399854508 * J253 * (AVERAGE(J5:J6)*0.453592) +\n0.0967347393 * J316 * (AVERAGE(J5:J6)*0.453592) - 5.2553838048 * J252 * (AVERAGE(J5:J6)*0.453592)","v":865.08750767091408},{"$f":" -1619.2980797296 + 25.9248064834 * (K251/1000) - 2657.6209162609 * K236 +\n123.0469725298 * K253 - 9.2854579989 * K316 + 872.0182830582 * K252 + 26.664395965 * (AVERAGE(K5:K6)*0.453592) +\n2599.7646012325 * K236 * K236- 0.1016237102 *  (AVERAGE(K5:K6)*0.453592) *  (AVERAGE(K5:K6)*0.453592) - 71.8618465276 * K236 * K253 -\n607.1294449572 * K236 * K252 + 25.6463076451 * K236 * (AVERAGE(K5:K6)*0.453592) - 0.8399854508 * K253 * (AVERAGE(K5:K6)*0.453592) +\n0.0967347393 * K316 * (AVERAGE(K5:K6)*0.453592) - 5.2553838048 * K252 * (AVERAGE(K5:K6)*0.453592)","v":940.00942055353994},{"$f":" -1619.2980797296 + 25.9248064834 * (L251/1000) - 2657.6209162609 * L236 +\n123.0469725298 * L253 - 9.2854579989 * L316 + 872.0182830582 * L252 + 26.664395965 * (AVERAGE(L5:L6)*0.453592) +\n2599.7646012325 * L236 * L236- 0.1016237102 *  (AVERAGE(L5:L6)*0.453592) *  (AVERAGE(L5:L6)*0.453592) - 71.8618465276 * L236 * L253 -\n607.1294449572 * L236 * L252 + 25.6463076451 * L236 * (AVERAGE(L5:L6)*0.453592) - 0.8399854508 * L253 * (AVERAGE(L5:L6)*0.453592) +\n0.0967347393 * L316 * (AVERAGE(L5:L6)*0.453592) - 5.2553838048 * L252 * (AVERAGE(L5:L6)*0.453592)","v":974.79583887856711},{"$f":" -1619.2980797296 + 25.9248064834 * (M251/1000) - 2657.6209162609 * M236 +\n123.0469725298 * M253 - 9.2854579989 * M316 + 872.0182830582 * M252 + 26.664395965 * (AVERAGE(M5:M6)*0.453592) +\n2599.7646012325 * M236 * M236- 0.1016237102 *  (AVERAGE(M5:M6)*0.453592) *  (AVERAGE(M5:M6)*0.453592) - 71.8618465276 * M236 * M253 -\n607.1294449572 * M236 * M252 + 25.6463076451 * M236 * (AVERAGE(M5:M6)*0.453592) - 0.8399854508 * M253 * (AVERAGE(M5:M6)*0.453592) +\n0.0967347393 * M316 * (AVERAGE(M5:M6)*0.453592) - 5.2553838048 * M252 * (AVERAGE(M5:M6)*0.453592)","v":966.1311541434236},{"$f":" -1619.2980797296 + 25.9248064834 * (N251/1000) - 2657.6209162609 * N236 +\n123.0469725298 * N253 - 9.2854579989 * N316 + 872.0182830582 * N252 + 26.664395965 * (AVERAGE(N5:N6)*0.453592) +\n2599.7646012325 * N236 * N236- 0.1016237102 *  (AVERAGE(N5:N6)*0.453592) *  (AVERAGE(N5:N6)*0.453592) - 71.8618465276 * N236 * N253 -\n607.1294449572 * N236 * N252 + 25.6463076451 * N236 * (AVERAGE(N5:N6)*0.453592) - 0.8399854508 * N253 * (AVERAGE(N5:N6)*0.453592) +\n0.0967347393 * N316 * (AVERAGE(N5:N6)*0.453592) - 5.2553838048 * N252 * (AVERAGE(N5:N6)*0.453592)","v":905.65736560185064},null,{"$f":" (-1619.2980797296 + 25.9248064834 * (P251/1000) - 2657.6209162609 * P236 +\n123.0469725298 * P253 - 9.2854579989 * P316 + 872.0182830582 * P252 + 26.664395965 * (AVERAGE(P5:P6)*0.453592) +\n2599.7646012325 * P236 * P236- 0.1016237102 *  (AVERAGE(P5:P6)*0.453592) *  (AVERAGE(P5:P6)*0.453592) - 71.8618465276 * P236 * P253 -\n607.1294449572 * P236 * P252 + 25.6463076451 * P236 * (AVERAGE(P5:P6)*0.453592) - 0.8399854508 * P253 * (AVERAGE(P5:P6)*0.453592) +\n0.0967347393 * P316 * (AVERAGE(P5:P6)*0.453592) - 5.2553838048 * P252 * (AVERAGE(P5:P6)*0.453592))","v":748.62113056984265},{"$f":" -1619.2980797296 + 25.9248064834 * (Q251/1000) - 2657.6209162609 * Q236 +\n123.0469725298 * Q253 - 9.2854579989 * Q316 + 872.0182830582 * Q252 + 26.664395965 * (AVERAGE(Q5:Q6)*0.453592) +\n2599.7646012325 * Q236 * Q236- 0.1016237102 *  (AVERAGE(Q5:Q6)*0.453592) *  (AVERAGE(Q5:Q6)*0.453592) - 71.8618465276 * Q236 * Q253 -\n607.1294449572 * Q236 * Q252 + 25.6463076451 * Q236 * (AVERAGE(Q5:Q6)*0.453592) - 0.8399854508 * Q253 * (AVERAGE(Q5:Q6)*0.453592) +\n0.0967347393 * Q316 * (AVERAGE(Q5:Q6)*0.453592) - 5.2553838048 * Q252 * (AVERAGE(Q5:Q6)*0.453592)","v":860.67248275182237},{"$f":" -1619.2980797296 + 25.9248064834 * (R251/1000) - 2657.6209162609 * R236 +\n123.0469725298 * R253 - 9.2854579989 * R316 + 872.0182830582 * R252 + 26.664395965 * (AVERAGE(R5:R6)*0.453592) +\n2599.7646012325 * R236 * R236- 0.1016237102 *  (AVERAGE(R5:R6)*0.453592) *  (AVERAGE(R5:R6)*0.453592) - 71.8618465276 * R236 * R253 -\n607.1294449572 * R236 * R252 + 25.6463076451 * R236 * (AVERAGE(R5:R6)*0.453592) - 0.8399854508 * R253 * (AVERAGE(R5:R6)*0.453592) +\n0.0967347393 * R316 * (AVERAGE(R5:R6)*0.453592) - 5.2553838048 * R252 * (AVERAGE(R5:R6)*0.453592)","v":934.64211304565606},{"$f":" -1619.2980797296 + 25.9248064834 * (S251/1000) - 2657.6209162609 * S236 +\n123.0469725298 * S253 - 9.2854579989 * S316 + 872.0182830582 * S252 + 26.664395965 * (AVERAGE(S5:S6)*0.453592) +\n2599.7646012325 * S236 * S236- 0.1016237102 *  (AVERAGE(S5:S6)*0.453592) *  (AVERAGE(S5:S6)*0.453592) - 71.8618465276 * S236 * S253 -\n607.1294449572 * S236 * S252 + 25.6463076451 * S236 * (AVERAGE(S5:S6)*0.453592) - 0.8399854508 * S253 * (AVERAGE(S5:S6)*0.453592) +\n0.0967347393 * S316 * (AVERAGE(S5:S6)*0.453592) - 5.2553838048 * S252 * (AVERAGE(S5:S6)*0.453592)","v":967.32292311801757},{"$f":" -1619.2980797296 + 25.9248064834 * (T251/1000) - 2657.6209162609 * T236 +\n123.0469725298 * T253 - 9.2854579989 * T316 + 872.0182830582 * T252 + 26.664395965 * (AVERAGE(T5:T6)*0.453592) +\n2599.7646012325 * T236 * T236- 0.1016237102 *  (AVERAGE(T5:T6)*0.453592) *  (AVERAGE(T5:T6)*0.453592) - 71.8618465276 * T236 * T253 -\n607.1294449572 * T236 * T252 + 25.6463076451 * T236 * (AVERAGE(T5:T6)*0.453592) - 0.8399854508 * T253 * (AVERAGE(T5:T6)*0.453592) +\n0.0967347393 * T316 * (AVERAGE(T5:T6)*0.453592) - 5.2553838048 * T252 * (AVERAGE(T5:T6)*0.453592)","v":956.16918565871811},{"$f":" -1619.2980797296 + 25.9248064834 * (U251/1000) - 2657.6209162609 * U236 +\n123.0469725298 * U253 - 9.2854579989 * U316 + 872.0182830582 * U252 + 26.664395965 * (AVERAGE(U5:U6)*0.453592) +\n2599.7646012325 * U236 * U236- 0.1016237102 *  (AVERAGE(U5:U6)*0.453592) *  (AVERAGE(U5:U6)*0.453592) - 71.8618465276 * U236 * U253 -\n607.1294449572 * U236 * U252 + 25.6463076451 * U236 * (AVERAGE(U5:U6)*0.453592) - 0.8399854508 * U253 * (AVERAGE(U5:U6)*0.453592) +\n0.0967347393 * U316 * (AVERAGE(U5:U6)*0.453592) - 5.2553838048 * U252 * (AVERAGE(U5:U6)*0.453592)","v":891.86247402029335},null,{"$f":" (-1619.2980797296 + 25.9248064834 * (W251/1000) - 2657.6209162609 * W236 +\n123.0469725298 * W253 - 9.2854579989 * W316 + 872.0182830582 * W252 + 26.664395965 * (AVERAGE(W5:W6)*0.453592) +\n2599.7646012325 * W236 * W236- 0.1016237102 *  (AVERAGE(W5:W6)*0.453592) *  (AVERAGE(W5:W6)*0.453592) - 71.8618465276 * W236 * W253 -\n607.1294449572 * W236 * W252 + 25.6463076451 * W236 * (AVERAGE(W5:W6)*0.453592) - 0.8399854508 * W253 * (AVERAGE(W5:W6)*0.453592) +\n0.0967347393 * W316 * (AVERAGE(W5:W6)*0.453592) - 5.2553838048 * W252 * (AVERAGE(W5:W6)*0.453592))","v":745.32048522697846},{"$f":" -1619.2980797296 + 25.9248064834 * (X251/1000) - 2657.6209162609 * X236 +\n123.0469725298 * X253 - 9.2854579989 * X316 + 872.0182830582 * X252 + 26.664395965 * (AVERAGE(X5:X6)*0.453592) +\n2599.7646012325 * X236 * X236- 0.1016237102 *  (AVERAGE(X5:X6)*0.453592) *  (AVERAGE(X5:X6)*0.453592) - 71.8618465276 * X236 * X253 -\n607.1294449572 * X236 * X252 + 25.6463076451 * X236 * (AVERAGE(X5:X6)*0.453592) - 0.8399854508 * X253 * (AVERAGE(X5:X6)*0.453592) +\n0.0967347393 * X316 * (AVERAGE(X5:X6)*0.453592) - 5.2553838048 * X252 * (AVERAGE(X5:X6)*0.453592)","v":856.82099481867851},{"$f":" -1619.2980797296 + 25.9248064834 * (Y251/1000) - 2657.6209162609 * Y236 +\n123.0469725298 * Y253 - 9.2854579989 * Y316 + 872.0182830582 * Y252 + 26.664395965 * (AVERAGE(Y5:Y6)*0.453592) +\n2599.7646012325 * Y236 * Y236- 0.1016237102 *  (AVERAGE(Y5:Y6)*0.453592) *  (AVERAGE(Y5:Y6)*0.453592) - 71.8618465276 * Y236 * Y253 -\n607.1294449572 * Y236 * Y252 + 25.6463076451 * Y236 * (AVERAGE(Y5:Y6)*0.453592) - 0.8399854508 * Y253 * (AVERAGE(Y5:Y6)*0.453592) +\n0.0967347393 * Y316 * (AVERAGE(Y5:Y6)*0.453592) - 5.2553838048 * Y252 * (AVERAGE(Y5:Y6)*0.453592)","v":929.39325528346376},{"$f":" -1619.2980797296 + 25.9248064834 * (Z251/1000) - 2657.6209162609 * Z236 +\n123.0469725298 * Z253 - 9.2854579989 * Z316 + 872.0182830582 * Z252 + 26.664395965 * (AVERAGE(Z5:Z6)*0.453592) +\n2599.7646012325 * Z236 * Z236- 0.1016237102 *  (AVERAGE(Z5:Z6)*0.453592) *  (AVERAGE(Z5:Z6)*0.453592) - 71.8618465276 * Z236 * Z253 -\n607.1294449572 * Z236 * Z252 + 25.6463076451 * Z236 * (AVERAGE(Z5:Z6)*0.453592) - 0.8399854508 * Z253 * (AVERAGE(Z5:Z6)*0.453592) +\n0.0967347393 * Z316 * (AVERAGE(Z5:Z6)*0.453592) - 5.2553838048 * Z252 * (AVERAGE(Z5:Z6)*0.453592)","v":960.42772548353014},{"$f":" -1619.2980797296 + 25.9248064834 * (AA251/1000) - 2657.6209162609 * AA236 +\n123.0469725298 * AA253 - 9.2854579989 * AA316 + 872.0182830582 * AA252 + 26.664395965 * (AVERAGE(AA5:AA6)*0.453592) +\n2599.7646012325 * AA236 * AA236- 0.1016237102 *  (AVERAGE(AA5:AA6)*0.453592) *  (AVERAGE(AA5:AA6)*0.453592) - 71.8618465276 * AA236 * AA253 -\n607.1294449572 * AA236 * AA252 + 25.6463076451 * AA236 * (AVERAGE(AA5:AA6)*0.453592) - 0.8399854508 * AA253 * (AVERAGE(AA5:AA6)*0.453592) +\n0.0967347393 * AA316 * (AVERAGE(AA5:AA6)*0.453592) - 5.2553838048 * AA252 * (AVERAGE(AA5:AA6)*0.453592)","v":946.63313524160253},{"$f":" -1619.2980797296 + 25.9248064834 * (AB251/1000) - 2657.6209162609 * AB236 +\n123.0469725298 * AB253 - 9.2854579989 * AB316 + 872.0182830582 * AB252 + 26.664395965 * (AVERAGE(AB5:AB6)*0.453592) +\n2599.7646012325 * AB236 * AB236- 0.1016237102 *  (AVERAGE(AB5:AB6)*0.453592) *  (AVERAGE(AB5:AB6)*0.453592) - 71.8618465276 * AB236 * AB253 -\n607.1294449572 * AB236 * AB252 + 25.6463076451 * AB236 * (AVERAGE(AB5:AB6)*0.453592) - 0.8399854508 * AB253 * (AVERAGE(AB5:AB6)*0.453592) +\n0.0967347393 * AB316 * (AVERAGE(AB5:AB6)*0.453592) - 5.2553838048 * AB252 * (AVERAGE(AB5:AB6)*0.453592)","v":878.33099550410861},null,{"$f":" (-1619.2980797296 + 25.9248064834 * (AD251/1000) - 2657.6209162609 * AD236 +\n123.0469725298 * AD253 - 9.2854579989 * AD316 + 872.0182830582 * AD252 + 26.664395965 * (AVERAGE(AD5:AD6)*0.453592) +\n2599.7646012325 * AD236 * AD236- 0.1016237102 *  (AVERAGE(AD5:AD6)*0.453592) *  (AVERAGE(AD5:AD6)*0.453592) - 71.8618465276 * AD236 * AD253 -\n607.1294449572 * AD236 * AD252 + 25.6463076451 * AD236 * (AVERAGE(AD5:AD6)*0.453592) - 0.8399854508 * AD253 * (AVERAGE(AD5:AD6)*0.453592) +\n0.0967347393 * AD316 * (AVERAGE(AD5:AD6)*0.453592) - 5.2553838048 * AD252 * (AVERAGE(AD5:AD6)*0.453592))","v":742.69055046940025},{"$f":" -1619.2980797296 + 25.9248064834 * (AE251/1000) - 2657.6209162609 * AE236 +\n123.0469725298 * AE253 - 9.2854579989 * AE316 + 872.0182830582 * AE252 + 26.664395965 * (AVERAGE(AE5:AE6)*0.453592) +\n2599.7646012325 * AE236 * AE236- 0.1016237102 *  (AVERAGE(AE5:AE6)*0.453592) *  (AVERAGE(AE5:AE6)*0.453592) - 71.8618465276 * AE236 * AE253 -\n607.1294449572 * AE236 * AE252 + 25.6463076451 * AE236 * (AVERAGE(AE5:AE6)*0.453592) - 0.8399854508 * AE253 * (AVERAGE(AE5:AE6)*0.453592) +\n0.0967347393 * AE316 * (AVERAGE(AE5:AE6)*0.453592) - 5.2553838048 * AE252 * (AVERAGE(AE5:AE6)*0.453592)","v":853.35182138732102},{"$f":" -1619.2980797296 + 25.9248064834 * (AF251/1000) - 2657.6209162609 * AF236 +\n123.0469725298 * AF253 - 9.2854579989 * AF316 + 872.0182830582 * AF252 + 26.664395965 * (AVERAGE(AF5:AF6)*0.453592) +\n2599.7646012325 * AF236 * AF236- 0.1016237102 *  (AVERAGE(AF5:AF6)*0.453592) *  (AVERAGE(AF5:AF6)*0.453592) - 71.8618465276 * AF236 * AF253 -\n607.1294449572 * AF236 * AF252 + 25.6463076451 * AF236 * (AVERAGE(AF5:AF6)*0.453592) - 0.8399854508 * AF253 * (AVERAGE(AF5:AF6)*0.453592) +\n0.0967347393 * AF316 * (AVERAGE(AF5:AF6)*0.453592) - 5.2553838048 * AF252 * (AVERAGE(AF5:AF6)*0.453592)","v":924.76743851556557},{"$f":" -1619.2980797296 + 25.9248064834 * (AG251/1000) - 2657.6209162609 * AG236 +\n123.0469725298 * AG253 - 9.2854579989 * AG316 + 872.0182830582 * AG252 + 26.664395965 * (AVERAGE(AG5:AG6)*0.453592) +\n2599.7646012325 * AG236 * AG236- 0.1016237102 *  (AVERAGE(AG5:AG6)*0.453592) *  (AVERAGE(AG5:AG6)*0.453592) - 71.8618465276 * AG236 * AG253 -\n607.1294449572 * AG236 * AG252 + 25.6463076451 * AG236 * (AVERAGE(AG5:AG6)*0.453592) - 0.8399854508 * AG253 * (AVERAGE(AG5:AG6)*0.453592) +\n0.0967347393 * AG316 * (AVERAGE(AG5:AG6)*0.453592) - 5.2553838048 * AG252 * (AVERAGE(AG5:AG6)*0.453592)","v":953.97017769775789},{"$f":" -1619.2980797296 + 25.9248064834 * (AH251/1000) - 2657.6209162609 * AH236 +\n123.0469725298 * AH253 - 9.2854579989 * AH316 + 872.0182830582 * AH252 + 26.664395965 * (AVERAGE(AH5:AH6)*0.453592) +\n2599.7646012325 * AH236 * AH236- 0.1016237102 *  (AVERAGE(AH5:AH6)*0.453592) *  (AVERAGE(AH5:AH6)*0.453592) - 71.8618465276 * AH236 * AH253 -\n607.1294449572 * AH236 * AH252 + 25.6463076451 * AH236 * (AVERAGE(AH5:AH6)*0.453592) - 0.8399854508 * AH253 * (AVERAGE(AH5:AH6)*0.453592) +\n0.0967347393 * AH316 * (AVERAGE(AH5:AH6)*0.453592) - 5.2553838048 * AH252 * (AVERAGE(AH5:AH6)*0.453592)","v":937.20083374915134},{"$f":" -1619.2980797296 + 25.9248064834 * (AI251/1000) - 2657.6209162609 * AI236 +\n123.0469725298 * AI253 - 9.2854579989 * AI316 + 872.0182830582 * AI252 + 26.664395965 * (AVERAGE(AI5:AI6)*0.453592) +\n2599.7646012325 * AI236 * AI236- 0.1016237102 *  (AVERAGE(AI5:AI6)*0.453592) *  (AVERAGE(AI5:AI6)*0.453592) - 71.8618465276 * AI236 * AI253 -\n607.1294449572 * AI236 * AI252 + 25.6463076451 * AI236 * (AVERAGE(AI5:AI6)*0.453592) - 0.8399854508 * AI253 * (AVERAGE(AI5:AI6)*0.453592) +\n0.0967347393 * AI316 * (AVERAGE(AI5:AI6)*0.453592) - 5.2553838048 * AI252 * (AVERAGE(AI5:AI6)*0.453592)","v":864.83743802506024},null,{"$f":" (-1619.2980797296 + 25.9248064834 * (AK251/1000) - 2657.6209162609 * AK236 +\n123.0469725298 * AK253 - 9.2854579989 * AK316 + 872.0182830582 * AK252 + 26.664395965 * (AVERAGE(AK5:AK6)*0.453592) +\n2599.7646012325 * AK236 * AK236- 0.1016237102 *  (AVERAGE(AK5:AK6)*0.453592) *  (AVERAGE(AK5:AK6)*0.453592) - 71.8618465276 * AK236 * AK253 -\n607.1294449572 * AK236 * AK252 + 25.6463076451 * AK236 * (AVERAGE(AK5:AK6)*0.453592) - 0.8399854508 * AK253 * (AVERAGE(AK5:AK6)*0.453592) +\n0.0967347393 * AK316 * (AVERAGE(AK5:AK6)*0.453592) - 5.2553838048 * AK252 * (AVERAGE(AK5:AK6)*0.453592))","v":740.485091285458},{"$f":" -1619.2980797296 + 25.9248064834 * (AL251/1000) - 2657.6209162609 * AL236 +\n123.0469725298 * AL253 - 9.2854579989 * AL316 + 872.0182830582 * AL252 + 26.664395965 * (AVERAGE(AL5:AL6)*0.453592) +\n2599.7646012325 * AL236 * AL236- 0.1016237102 *  (AVERAGE(AL5:AL6)*0.453592) *  (AVERAGE(AL5:AL6)*0.453592) - 71.8618465276 * AL236 * AL253 -\n607.1294449572 * AL236 * AL252 + 25.6463076451 * AL236 * (AVERAGE(AL5:AL6)*0.453592) - 0.8399854508 * AL253 * (AVERAGE(AL5:AL6)*0.453592) +\n0.0967347393 * AL316 * (AVERAGE(AL5:AL6)*0.453592) - 5.2553838048 * AL252 * (AVERAGE(AL5:AL6)*0.453592)","v":850.57562438691457},{"$f":" -1619.2980797296 + 25.9248064834 * (AM251/1000) - 2657.6209162609 * AM236 +\n123.0469725298 * AM253 - 9.2854579989 * AM316 + 872.0182830582 * AM252 + 26.664395965 * (AVERAGE(AM5:AM6)*0.453592) +\n2599.7646012325 * AM236 * AM236- 0.1016237102 *  (AVERAGE(AM5:AM6)*0.453592) *  (AVERAGE(AM5:AM6)*0.453592) - 71.8618465276 * AM236 * AM253 -\n607.1294449572 * AM236 * AM252 + 25.6463076451 * AM236 * (AVERAGE(AM5:AM6)*0.453592) - 0.8399854508 * AM253 * (AVERAGE(AM5:AM6)*0.453592) +\n0.0967347393 * AM316 * (AVERAGE(AM5:AM6)*0.453592) - 5.2553838048 * AM252 * (AVERAGE(AM5:AM6)*0.453592)","v":920.75457010940886},{"$f":" -1619.2980797296 + 25.9248064834 * (AN251/1000) - 2657.6209162609 * AN236 +\n123.0469725298 * AN253 - 9.2854579989 * AN316 + 872.0182830582 * AN252 + 26.664395965 * (AVERAGE(AN5:AN6)*0.453592) +\n2599.7646012325 * AN236 * AN236- 0.1016237102 *  (AVERAGE(AN5:AN6)*0.453592) *  (AVERAGE(AN5:AN6)*0.453592) - 71.8618465276 * AN236 * AN253 -\n607.1294449572 * AN236 * AN252 + 25.6463076451 * AN236 * (AVERAGE(AN5:AN6)*0.453592) - 0.8399854508 * AN253 * (AVERAGE(AN5:AN6)*0.453592) +\n0.0967347393 * AN316 * (AVERAGE(AN5:AN6)*0.453592) - 5.2553838048 * AN252 * (AVERAGE(AN5:AN6)*0.453592)","v":947.79441678421176},{"$f":" -1619.2980797296 + 25.9248064834 * (AO251/1000) - 2657.6209162609 * AO236 +\n123.0469725298 * AO253 - 9.2854579989 * AO316 + 872.0182830582 * AO252 + 26.664395965 * (AVERAGE(AO5:AO6)*0.453592) +\n2599.7646012325 * AO236 * AO236- 0.1016237102 *  (AVERAGE(AO5:AO6)*0.453592) *  (AVERAGE(AO5:AO6)*0.453592) - 71.8618465276 * AO236 * AO253 -\n607.1294449572 * AO236 * AO252 + 25.6463076451 * AO236 * (AVERAGE(AO5:AO6)*0.453592) - 0.8399854508 * AO253 * (AVERAGE(AO5:AO6)*0.453592) +\n0.0967347393 * AO316 * (AVERAGE(AO5:AO6)*0.453592) - 5.2553838048 * AO252 * (AVERAGE(AO5:AO6)*0.453592)","v":928.08975082836355},{"$f":" -1619.2980797296 + 25.9248064834 * (AP251/1000) - 2657.6209162609 * AP236 +\n123.0469725298 * AP253 - 9.2854579989 * AP316 + 872.0182830582 * AP252 + 26.664395965 * (AVERAGE(AP5:AP6)*0.453592) +\n2599.7646012325 * AP236 * AP236- 0.1016237102 *  (AVERAGE(AP5:AP6)*0.453592) *  (AVERAGE(AP5:AP6)*0.453592) - 71.8618465276 * AP236 * AP253 -\n607.1294449572 * AP236 * AP252 + 25.6463076451 * AP236 * (AVERAGE(AP5:AP6)*0.453592) - 0.8399854508 * AP253 * (AVERAGE(AP5:AP6)*0.453592) +\n0.0967347393 * AP316 * (AVERAGE(AP5:AP6)*0.453592) - 5.2553838048 * AP252 * (AVERAGE(AP5:AP6)*0.453592)","v":851.76338880639946},null,{"$f":" (-1619.2980797296 + 25.9248064834 * (AR251/1000) - 2657.6209162609 * AR236 +\n123.0469725298 * AR253 - 9.2854579989 * AR316 + 872.0182830582 * AR252 + 26.664395965 * (AVERAGE(AR5:AR6)*0.453592) +\n2599.7646012325 * AR236 * AR236- 0.1016237102 *  (AVERAGE(AR5:AR6)*0.453592) *  (AVERAGE(AR5:AR6)*0.453592) - 71.8618465276 * AR236 * AR253 -\n607.1294449572 * AR236 * AR252 + 25.6463076451 * AR236 * (AVERAGE(AR5:AR6)*0.453592) - 0.8399854508 * AR253 * (AVERAGE(AR5:AR6)*0.453592) +\n0.0967347393 * AR316 * (AVERAGE(AR5:AR6)*0.453592) - 5.2553838048 * AR252 * (AVERAGE(AR5:AR6)*0.453592))","v":739.21219320971636},{"$f":" -1619.2980797296 + 25.9248064834 * (AS251/1000) - 2657.6209162609 * AS236 +\n123.0469725298 * AS253 - 9.2854579989 * AS316 + 872.0182830582 * AS252 + 26.664395965 * (AVERAGE(AS5:AS6)*0.453592) +\n2599.7646012325 * AS236 * AS236- 0.1016237102 *  (AVERAGE(AS5:AS6)*0.453592) *  (AVERAGE(AS5:AS6)*0.453592) - 71.8618465276 * AS236 * AS253 -\n607.1294449572 * AS236 * AS252 + 25.6463076451 * AS236 * (AVERAGE(AS5:AS6)*0.453592) - 0.8399854508 * AS253 * (AVERAGE(AS5:AS6)*0.453592) +\n0.0967347393 * AS316 * (AVERAGE(AS5:AS6)*0.453592) - 5.2553838048 * AS252 * (AVERAGE(AS5:AS6)*0.453592)","v":848.42796213456415},{"$f":" -1619.2980797296 + 25.9248064834 * (AT251/1000) - 2657.6209162609 * AT236 +\n123.0469725298 * AT253 - 9.2854579989 * AT316 + 872.0182830582 * AT252 + 26.664395965 * (AVERAGE(AT5:AT6)*0.453592) +\n2599.7646012325 * AT236 * AT236- 0.1016237102 *  (AVERAGE(AT5:AT6)*0.453592) *  (AVERAGE(AT5:AT6)*0.453592) - 71.8618465276 * AT236 * AT253 -\n607.1294449572 * AT236 * AT252 + 25.6463076451 * AT236 * (AVERAGE(AT5:AT6)*0.453592) - 0.8399854508 * AT253 * (AVERAGE(AT5:AT6)*0.453592) +\n0.0967347393 * AT316 * (AVERAGE(AT5:AT6)*0.453592) - 5.2553838048 * AT252 * (AVERAGE(AT5:AT6)*0.453592)","v":917.31575363788306},{"$f":" -1619.2980797296 + 25.9248064834 * (AU251/1000) - 2657.6209162609 * AU236 +\n123.0469725298 * AU253 - 9.2854579989 * AU316 + 872.0182830582 * AU252 + 26.664395965 * (AVERAGE(AU5:AU6)*0.453592) +\n2599.7646012325 * AU236 * AU236- 0.1016237102 *  (AVERAGE(AU5:AU6)*0.453592) *  (AVERAGE(AU5:AU6)*0.453592) - 71.8618465276 * AU236 * AU253 -\n607.1294449572 * AU236 * AU252 + 25.6463076451 * AU236 * (AVERAGE(AU5:AU6)*0.453592) - 0.8399854508 * AU253 * (AVERAGE(AU5:AU6)*0.453592) +\n0.0967347393 * AU316 * (AVERAGE(AU5:AU6)*0.453592) - 5.2553838048 * AU252 * (AVERAGE(AU5:AU6)*0.453592)","v":941.99410601919431},{"$f":" -1619.2980797296 + 25.9248064834 * (AV251/1000) - 2657.6209162609 * AV236 +\n123.0469725298 * AV253 - 9.2854579989 * AV316 + 872.0182830582 * AV252 + 26.664395965 * (AVERAGE(AV5:AV6)*0.453592) +\n2599.7646012325 * AV236 * AV236- 0.1016237102 *  (AVERAGE(AV5:AV6)*0.453592) *  (AVERAGE(AV5:AV6)*0.453592) - 71.8618465276 * AV236 * AV253 -\n607.1294449572 * AV236 * AV252 + 25.6463076451 * AV236 * (AVERAGE(AV5:AV6)*0.453592) - 0.8399854508 * AV253 * (AVERAGE(AV5:AV6)*0.453592) +\n0.0967347393 * AV316 * (AVERAGE(AV5:AV6)*0.453592) - 5.2553838048 * AV252 * (AVERAGE(AV5:AV6)*0.453592)","v":919.44377030358305},{"$f":" -1619.2980797296 + 25.9248064834 * (AW251/1000) - 2657.6209162609 * AW236 +\n123.0469725298 * AW253 - 9.2854579989 * AW316 + 872.0182830582 * AW252 + 26.664395965 * (AVERAGE(AW5:AW6)*0.453592) +\n2599.7646012325 * AW236 * AW236- 0.1016237102 *  (AVERAGE(AW5:AW6)*0.453592) *  (AVERAGE(AW5:AW6)*0.453592) - 71.8618465276 * AW236 * AW253 -\n607.1294449572 * AW236 * AW252 + 25.6463076451 * AW236 * (AVERAGE(AW5:AW6)*0.453592) - 0.8399854508 * AW253 * (AVERAGE(AW5:AW6)*0.453592) +\n0.0967347393 * AW316 * (AVERAGE(AW5:AW6)*0.453592) - 5.2553838048 * AW252 * (AVERAGE(AW5:AW6)*0.453592)","v":839.12535820686685}]
["ADFI, g/d",{"$f":"B342/B344*1000","v":1398.8783014207611},1847.8320572748494,2307.7192145327367,2723.4676222335261,2993.2160501056624,3054.344258459666,null,{"$f":"I342/I344*1000","v":1389.0024681618436},1835.7297163413807,2293.0161296074825,2707.0649160735961,2979.6503897026291,3048.7051110585203,null,{"$f":"P342/P344*1000","v":1382.0838310526742},1827.0793350244305,2281.8539108127361,2694.0613907702627,2968.6383980672913,3045.1378623346677,null,{"$f":"W342/W344*1000","v":1378.2753373390838},1821.8416003019208,2274.0019521611794,2684.1316189505246,2960.1296853008007,3043.8887033040423,null,{"$f":"AD342/AD344*1000","v":1377.6340144513379},1820.0883648751139,2269.6679884188111,2677.2160527946958,2955.040714864369,3045.2385669440164,null,{"$f":"AK342/AK344*1000","v":1378.9748645318275},1821.8064174474123,2268.7754808471641,2674.3516294236761,2953.107463417391,3049.1369317467584,null,{"$f":"AR342/AR344*1000","v":1385.2113044296577},1827.0958848698046,2271.5494684878845,2675.7622608000383,2954.0964179039579,3055.8345714218176]
["GF, g/kg",{"$f":" -232.8670000513 - (102.0339177026 * (B251/1000)) + (1386.8135453223 * B236) - (3.1583174866 * B253) + (80.3303777865 * B316) - (115.1570451563 * B252) + (4.1836503117 * (AVERAGE(B5:B6)*0.453592)) + (2553.6417073224 * B236 * B236) + (228.757399518 * B252 * B252) + (12.736240264 *  (B251/1000) * B253) - (24.4502664605 *  (B251/1000) * B316) - (23.0415882284 * B236 * B253) + (101.5847297779 * B236 * B316) - (1559.9331198689 * B236 *B252) - (3.9239483753 * B236 * (AVERAGE(B5:B6)*0.453592)) - (0.1078600966 * B253 * (AVERAGE(B5:B6)*0.453592)) - (28.1879330488 * B316 * B252) - (0.1153929924 * B316 * (AVERAGE(B5:B6)*0.453592))","v":541.48123876174384},471.05106861362759,410.02340376494885,360.7957609066396,326.28328855841602,301.12774430436968,null,{"$f":" -232.8670000513 - (102.0339177026 * (I251/1000)) + (1386.8135453223 * I236) - (3.1583174866 * I253) + (80.3303777865 * I316) - (115.1570451563 * I252) + (4.1836503117 * (AVERAGE(I5:I6)*0.453592)) + (2553.6417073224 * I236 * I236) + (228.757399518 * I252 * I252) + (12.736240264 *  (I251/1000) * I253) - (24.4502664605 *  (I251/1000) * I316) - (23.0415882284 * I236 * I253) + (101.5847297779 * I236 * I316) - (1559.9331198689 * I236 *I252) - (3.9239483753 * I236 * (AVERAGE(I5:I6)*0.453592)) - (0.1078600966 * I253 * (AVERAGE(I5:I6)*0.453592)) - (28.1879330488 * I316 * I252) - (0.1153929924 * I316 * (AVERAGE(I5:I6)*0.453592))","v":541.82150887571606},471.24993400174304,409.94453044447192,360.09326303576006,324.24312512712072,297.06296037513562,null,{"$f":" -232.8670000513 - (102.0339177026 * (P251/1000)) + (1386.8135453223 * P236) - (3.1583174866 * P253) + (80.3303777865 * P316) - (115.1570451563 * P252) + (4.1836503117 * (AVERAGE(P5:P6)*0.453592)) + (2553.6417073224 * P236 * P236) + (228.757399518 * P252 * P252) + (12.736240264 *  (P251/1000) * P253) - (24.4502664605 *  (P251/1000) * P316) - (23.0415882284 * P236 * P253) + (101.5847297779 * P236 * P316) - (1559.9331198689 * P236 *P252) - (3.9239483753 * P236 * (AVERAGE(P5:P6)*0.453592)) - (0.1078600966 * P253 * (AVERAGE(P5:P6)*0.453592)) - (28.1879330488 * P316 * P252) - (0.1153929924 * P316 * (AVERAGE(P5:P6)*0.453592))","v":541.66115958367732},471.06464741462037,409.59769975491599,359.05749083225191,322.09014957201407,292.88081996278288,null,{"$f":" -232.8670000513 - (102.0339177026 * (W251/1000)) + (1386.8135453223 * W236) - (3.1583174866 * W253) + (80.3303777865 * W316) - (115.1570451563 * W252) + (4.1836503117 * (AVERAGE(W5:W6)*0.453592)) + (2553.6417073224 * W236 * W236) + (228.757399518 * W252 * W252) + (12.736240264 *  (W251/1000) * W253) - (24.4502664605 *  (W251/1000) * W316) - (23.0415882284 * W236 * W253) + (101.5847297779 * W236 * W316) - (1559.9331198689 * W236 *W252) - (3.9239483753 * W236 * (AVERAGE(W5:W6)*0.453592)) - (0.1078600966 * W253 * (AVERAGE(W5:W6)*0.453592)) - (28.1879330488 * W316 * W252) - (0.1153929924 * W316 * (AVERAGE(W5:W6)*0.453592))","v":540.76312985901927},470.30487978575286,408.70380713621705,357.81692622772732,319.79448060749678,288.55555544810454,null,{"$f":" -232.8670000513 - (102.0339177026 * (AD251/1000)) + (1386.8135453223 * AD236) - (3.1583174866 * AD253) + (80.3303777865 * AD316) - (115.1570451563 * AD252) + (4.1836503117 * (AVERAGE(AD5:AD6)*0.453592)) + (2553.6417073224 * AD236 * AD236) + (228.757399518 * AD252 * AD252) + (12.736240264 *  (AD251/1000) * AD253) - (24.4502664605 *  (AD251/1000) * AD316) - (23.0415882284 * AD236 * AD253) + (101.5847297779 * AD236 * AD316) - (1559.9331198689 * AD236 *AD252) - (3.9239483753 * AD236 * (AVERAGE(AD5:AD6)*0.453592)) - (0.1078600966 * AD253 * (AVERAGE(AD5:AD6)*0.453592)) - (28.1879330488 * AD316 * AD252) - (0.1153929924 * AD316 * (AVERAGE(AD5:AD6)*0.453592))","v":539.10584573159451},468.85186337965195,407.44613010989991,356.32917138007082,317.15327272306877,283.99661274911188,null,{"$f":" -232.8670000513 - (102.0339177026 * (AK251/1000)) + (1386.8135453223 * AK236) - (3.1583174866 * AK253) + (80.3303777865 * AK316) - (115.1570451563 * AK252) + (4.1836503117 * (AVERAGE(AK5:AK6)*0.453592)) + (2553.6417073224 * AK236 * AK236) + (228.757399518 * AK252 * AK252) + (12.736240264 *  (AK251/1000) * AK253) - (24.4502664605 *  (AK251/1000) * AK316) - (23.0415882284 * AK236 * AK253) + (101.5847297779 * AK236 * AK316) - (1559.9331198689 * AK236 *AK252) - (3.9239483753 * AK236 * (AVERAGE(AK5:AK6)*0.453592)) - (0.1078600966 * AK253 * (AVERAGE(AK5:AK6)*0.453592)) - (28.1879330488 * AK316 * AK252) - (0.1153929924 * AK316 * (AVERAGE(AK5:AK6)*0.453592))","v":536.98229774250331},466.88584266745625,405.83767670373345,354.40157021852133,314.27564432564225,279.34573220968792,null,{"$f":" -232.8670000513 - (102.0339177026 * (AR251/1000)) + (1386.8135453223 * AR236) - (3.1583174866 * AR253) + (80.3303777865 * AR316) - (115.1570451563 * AR252) + (4.1836503117 * (AVERAGE(AR5:AR6)*0.453592)) + (2553.6417073224 * AR236 * AR236) + (228.757399518 * AR252 * AR252) + (12.736240264 *  (AR251/1000) * AR253) - (24.4502664605 *  (AR251/1000) * AR316) - (23.0415882284 * AR236 * AR253) + (101.5847297779 * AR236 * AR316) - (1559.9331198689 * AR236 *AR252) - (3.9239483753 * AR236 * (AVERAGE(AR5:AR6)*0.453592)) - (0.1078600966 * AR253 * (AVERAGE(AR5:AR6)*0.453592)) - (28.1879330488 * AR316 * AR252) - (0.1153929924 * AR316 * (AVERAGE(AR5:AR6)*0.453592))","v":533.6457989086922},464.35875049602089,403.82820905437643,352.04701098428052,311.24365634482672,274.59776980546394]
["F/G",{"$f":"IF(B323=\"\",\"0\",1/B344*1000)","v":1.846786053542306},2.1229120718123973,2.4388851729382321,2.7716511898230491,3.0648213839519558,3.3208497686258824,null,{"$f":"IF(I323=\"\",\"0\",1/I344*1000)","v":1.8456262507463166},2.1220162123063582,2.4393544144027861,2.7770583419681816,3.0841054829086856,3.3662897546607118,null,{"$f":"IF(P323=\"\",\"0\",1/P344*1000)","v":1.8461726160476479},2.1228508772381356,2.4414199606061091,2.7850693148947281,3.1047208408229086,3.4143581000868291,null,{"$f":"IF(W323=\"\",\"0\",1/W344*1000)","v":1.8492385016351005},2.1262802981239521,2.4467596888979055,2.7947252538958001,3.1270083151540096,3.4655371595500113,null,{"$f":"IF(AD323=\"\",\"0\",1/AD344*1000)","v":1.8549233103620835},2.1328698424949026,2.4543121804354144,2.8063938636485406,3.1530496009517073,3.5211687573309876,null,{"$f":"IF(AK323=\"\",\"0\",1/AK344*1000)","v":1.8622587824664669},2.1418511949017462,2.4640393374073359,2.8216579271457727,3.1819201330276567,3.5797933696347313,null,{"$f":"IF(AR323=\"\",\"0\",1/AR344*1000)","v":1.873902131423135},2.1535073882678328,2.4763005099164523,2.8405297269933412,3.2129168887930697,3.6416901736253724]
["Days on phase",{"$f":"(B6-B5)*0.453592/(B342/1000)","v":20.958977100556179},{"$f":"(C6-C5)*0.453592/(C342/1000)","v":18.239080496534822},19.17492901903826,18.464677842774325,18.577722929695792,{"$f":"(G6-G5)*0.453592/(G342/1000)","v":22.192648973190369},null,{"$f":"(I351-I5)*0.453592/(I342/1000)","v":20.95893480644677},{"$f":"(J351-I351)*0.453592/(J342/1000)","v":18.35718855519335},{"$f":"(K351-J351)*0.453592/(K342/1000)","v":19.278454326068832},{"$f":"(L351-K351)*0.453592/(L342/1000)","v":18.586822479538029},{"$f":"(M351-L351)*0.453592/(M342/1000)","v":18.727173521378983},{"$f":"(N351-M351)*0.453592/(N342/1000)","v":22.408137263596412},null,{"$f":"(P351-P5)*0.453592/(P342/1000)","v":20.95893458214163},{"$f":"(Q351-P351)*0.453592/(Q342/1000)","v":18.454478189744961},{"$f":"(R351-Q351)*0.453592/(R342/1000)","v":19.36520587077186},{"$f":"(S351-R351)*0.453592/(S342/1000)","v":18.694160488993525},{"$f":"(T351-S351)*0.453592/(T342/1000)","v":18.873040807462903},{"$f":"(U351-T351)*0.453592/(U342/1000)","v":22.618980676593477},null,{"$f":"(W351-W5)*0.453592/(W342/1000)","v":20.958934393849194},{"$f":"(X351-W351)*0.453592/(X342/1000)","v":18.536184581392376},{"$f":"(Y351-X351)*0.453592/(Y342/1000)","v":19.441864846043302},{"$f":"(Z351-Y351)*0.453592/(Z342/1000)","v":18.800601401212049},{"$f":"(AA351-Z351)*0.453592/(AA342/1000)","v":19.010510925832818},{"$f":"(AB351-AA351)*0.453592/(AB342/1000)","v":22.827247265970943},null,{"$f":"(AD351-AD5)*0.453592/(AD342/1000)","v":20.958934242620867},{"$f":"(AE351-AD351)*0.453592/(AE342/1000)","v":18.60198563384256},{"$f":"(AF351-AE351)*0.453592/(AF342/1000)","v":19.511622200172283},{"$f":"(AG351-AF351)*0.453592/(AG342/1000)","v":18.895854851199129},{"$f":"(AH351-AG351)*0.453592/(AH342/1000)","v":19.142092889847042},{"$f":"(AI351-AH351)*0.453592/(AI342/1000)","v":23.039765438953339},null,{"$f":"(AK351-AK5)*0.453592/(AK342/1000)","v":20.958934114972884},{"$f":"(AL351-AK351)*0.453592/(AL342/1000)","v":18.657514693613265},{"$f":"(AM351-AL351)*0.453592/(AM342/1000)","v":19.568082833311045},{"$f":"(AN351-AM351)*0.453592/(AN342/1000)","v":18.979849134723569},{"$f":"(AO351-AN351)*0.453592/(AO342/1000)","v":19.270502299714131},{"$f":"(AP351-AO351)*0.453592/(AP342/1000)","v":23.251489045331773},null,{"$f":"(AR351-AR5)*0.453592/(AR342/1000)","v":20.958934040953189},{"$f":"(AS351-AR351)*0.453592/(AS342/1000)","v":18.690018687095019},{"$f":"(AT351-AS351)*0.453592/(AT342/1000)","v":19.612258863594686},{"$f":"(AU351-AT351)*0.453592/(AU342/1000)","v":19.053020734100979},{"$f":"(AV351-AU351)*0.453592/(AV342/1000)","v":19.393501258712828},{"$f":"(AW351-AV351)*0.453592/(AW342/1000)","v":23.458852917934163}]
["Dressing, %",{"$f":" 51.6684755267 + 7.1030096064 * (B251/1000) + 54.0870565413 * B236 + 1.6439820046 * B253 + 0.4039153805 * B316 - 20.5375389219 * B252 + 0.2869358688 *(AVERAGE(B5:B6)*0.453592) - 0.016597667 * B316 * B316 - 0.1531408962 * (B251/1000) * (AVERAGE(B5:B6)*0.453592) - 4.8153797375 * B236 * B253 + 0.5304361357 * B236 * (AVERAGE(B5:B6)*0.453592) + 0.9830652207 * B253 * B252 - 0.0127129553 * B253 *(AVERAGE(B5:B6)*0.453592)","v":59.07643336708562},66.187005535002854,71.339528706858943,74.764464309798441,76.836980679644768,78.432360226639787,null,{"$f":" 51.6684755267 + 7.1030096064 * (I251/1000) + 54.0870565413 * I236 + 1.6439820046 * I253 + 0.4039153805 * I316 - 20.5375389219 * I252 + 0.2869358688 *(AVERAGE(I5:I6)*0.453592) - 0.016597667 * I316 * I316 - 0.1531408962 * (I251/1000) * (AVERAGE(I5:I6)*0.453592) - 4.8153797375 * I236 * I253 + 0.5304361357 * I236 * (AVERAGE(I5:I6)*0.453592) + 0.9830652207 * I253 * I252 - 0.0127129553 * I253 *(AVERAGE(I5:I6)*0.453592)","v":59.47245710133177},66.406606050511769,71.434223172565837,74.771084931125017,76.773615449152217,78.306462789387865,null,{"$f":" 51.6684755267 + 7.1030096064 * (P251/1000) + 54.0870565413 * P236 + 1.6439820046 * P253 + 0.4039153805 * P316 - 20.5375389219 * P252 + 0.2869358688 *(AVERAGE(P5:P6)*0.453592) - 0.016597667 * P316 * P316 - 0.1531408962 * (P251/1000) * (AVERAGE(P5:P6)*0.453592) - 4.8153797375 * P236 * P253 + 0.5304361357 * P236 * (AVERAGE(P5:P6)*0.453592) + 0.9830652207 * P253 * P252 - 0.0127129553 * P253 *(AVERAGE(P5:P6)*0.453592)","v":59.789620750365181},66.573337019981963,71.488741758387278,74.745679049484494,76.681162735633336,78.154319916262239,null,{"$f":" 51.6684755267 + 7.1030096064 * (W251/1000) + 54.0870565413 * W236 + 1.6439820046 * W253 + 0.4039153805 * W316 - 20.5375389219 * W252 + 0.2869358688 *(AVERAGE(W5:W6)*0.453592) - 0.016597667 * W316 * W316 - 0.1531408962 * (W251/1000) * (AVERAGE(W5:W6)*0.453592) - 4.8153797375 * W236 * W253 + 0.5304361357 * W236 * (AVERAGE(W5:W6)*0.453592) + 0.9830652207 * W253 * W252 - 0.0127129553 * W253 *(AVERAGE(W5:W6)*0.453592)","v":60.080724196546477},66.712215707842489,71.526948031071086,74.688645814596498,76.556964851279844,77.970188978786425,null,{"$f":" 51.6684755267 + 7.1030096064 * (AD251/1000) + 54.0870565413 * AD236 + 1.6439820046 * AD253 + 0.4039153805 * AD316 - 20.5375389219 * AD252 + 0.2869358688 *(AVERAGE(AD5:AD6)*0.453592) - 0.016597667 * AD316 * AD316 - 0.1531408962 * (AD251/1000) * (AVERAGE(AD5:AD6)*0.453592) - 4.8153797375 * AD236 * AD253 + 0.5304361357 * AD236 * (AVERAGE(AD5:AD6)*0.453592) + 0.9830652207 * AD253 * AD252 - 0.0127129553 * AD253 *(AVERAGE(AD5:AD6)*0.453592)","v":60.348386565208067},66.846743344333788,71.531884823598858,74.60024550215411,76.400777675178659,77.757226504782111,null,{"$f":" 51.6684755267 + 7.1030096064 * (AK251/1000) + 54.0870565413 * AK236 + 1.6439820046 * AK253 + 0.4039153805 * AK316 - 20.5375389219 * AK252 + 0.2869358688 *(AVERAGE(AK5:AK6)*0.453592) - 0.016597667 * AK316 * AK316 - 0.1531408962 * (AK251/1000) * (AVERAGE(AK5:AK6)*0.453592) - 4.8153797375 * AK236 * AK253 + 0.5304361357 * AK236 * (AVERAGE(AK5:AK6)*0.453592) + 0.9830652207 * AK253 * AK252 - 0.0127129553 * AK253 *(AVERAGE(AK5:AK6)*0.453592)","v":60.4564667682032},66.945780828267516,71.506597511494405,74.481378714821872,76.214244529721142,77.513041383302891,null,{"$f":" 51.6684755267 + 7.1030096064 * (AR251/1000) + 54.0870565413 * AR236 + 1.6439820046 * AR253 + 0.4039153805 * AR316 - 20.5375389219 * AR252 + 0.2869358688 *(AVERAGE(AR5:AR6)*0.453592) - 0.016597667 * AR316 * AR316 - 0.1531408962 * (AR251/1000) * (AVERAGE(AR5:AR6)*0.453592) - 4.8153797375 * AR236 * AR253 + 0.5304361357 * AR236 * (AVERAGE(AR5:AR6)*0.453592) + 0.9830652207 * AR253 * AR252 - 0.0127129553 * AR253 *(AVERAGE(AR5:AR6)*0.453592)","v":60.724547040232338},67.016048303677977,71.449619839784489,74.332934406185672,75.997502287216861,77.238187489789453]
["Backfat, mm",{"$f":" 41.4410513954 + (14.8656283053 * B236) - (0.6326892081 * B253) - (12.1380129342 * B252) -\n(0.0133880688 * (B253^2)) + (1.1112817574 * (B252^2))","v":7.8081201670684095},9.6497372018873726,11.707280587456946,13.756142379711502,15.307913140289045,16.16672623849167,null,{"$f":" 41.4410513954 + (14.8656283053 * I236) - (0.6326892081 * I253) - (12.1380129342 * I252) -\n(0.0133880688 * (I253^2)) + (1.1112817574 * (I252^2))","v":7.4147514908089143},9.2599130022793421,11.321266884587033,13.380712236867044,14.952674520236904,15.813438953226704,null,{"$f":" 41.4410513954 + (14.8656283053 * P236) - (0.6326892081 * P253) - (12.1380129342 * P252) -\n(0.0133880688 * (P253^2)) + (1.1112817574 * (P252^2))","v":6.9974935187495859},8.8467311315054395,10.912643204174914,13.004932197286927,14.574236886172834,15.436928184705375,null,{"$f":" 41.4410513954 + (14.8656283053 * W236) - (0.6326892081 * W253) - (12.1380129342 * W252) -\n(0.0133880688 * (W253^2)) + (1.1112817574 * (W252^2))","v":6.5786516451840882},8.431987586660723,10.528675612605181,12.618149516634537,14.190429392847689,15.059667339152139,null,{"$f":" 41.4410513954 + (14.8656283053 * AD236) - (0.6326892081 * AD253) - (12.1380129342 * AD252) -\n(0.0133880688 * (AD253^2)) + (1.1112817574 * (AD252^2))","v":6.1594195084221681},8.0369965516408968,10.137233831790711,12.225731685963469,13.810460753032491,14.683754866179338,null,{"$f":" 41.4410513954 + (14.8656283053 * AK236) - (0.6326892081 * AK253) - (12.1380129342 * AK252) -\n(0.0133880688 * (AK253^2)) + (1.1112817574 * (AK252^2))","v":5.67527983610265},7.6342088721097277,9.7347832349186767,11.835941043558405,13.429118649663488,14.305494572829645,null,{"$f":" 41.4410513954 + (14.8656283053 * AR236) - (0.6326892081 * AR253) - (12.1380129342 * AR252) -\n(0.0133880688 * (AR253^2)) + (1.1112817574 * (AR252^2))","v":5.2762904384761597},7.2295574542125678,9.3248656225295328,11.443318689820181,13.045811477094851,13.925307440420738]
["Loin depth, mm",{"$f":" -16.7992454106 + 17.2658536059 * (B251/1000) - 106.6634904715 * B236 + 0.1550376119 * B253 - 0.0727312562 * B316 + 48.6541457906 * B252 - 0.1535643762 * B253 * B253 - 0.0358142801 * B316 * B316 - 5.4618633046 * B252 * B252 + 4.2267870055 * B236 * B253 - 2.0313848595 * B236 * B316 + 0.1484978883 * B253 * B316","v":52.048652387826927},57.424545894850155,60.138112629899155,61.003481994612869,60.913721975717699,60.653455485036048,null,{"$f":" -16.7992454106 + 17.2658536059 * (I251/1000) - 106.6634904715 * I236 + 0.1550376119 * I253 - 0.0727312562 * I316 + 48.6541457906 * I252 - 0.1535643762 * I253 * I253 - 0.0358142801 * I316 * I316 - 5.4618633046 * I252 * I252 + 4.2267870055 * I236 * I253 - 2.0313848595 * I236 * I316 + 0.1484978883 * I253 * I316","v":52.031811571600912},57.396057781422968,60.099958738241526,60.950686793849755,60.841871946377623,60.572946281726111,null,{"$f":" -16.7992454106 + 17.2658536059 * (P251/1000) - 106.6634904715 * P236 + 0.1550376119 * P253 - 0.0727312562 * P316 + 48.6541457906 * P252 - 0.1535643762 * P253 * P253 - 0.0358142801 * P316 * P316 - 5.4618633046 * P252 * P252 + 4.2267870055 * P236 * P253 - 2.0313848595 * P236 * P316 + 0.1484978883 * P253 * P316","v":51.910494751854898},57.316055471372891,60.033576783753801,60.884690125334174,60.762954113199143,60.488243730038462,null,{"$f":" -16.7992454106 + 17.2658536059 * (W251/1000) - 106.6634904715 * W236 + 0.1550376119 * W253 - 0.0727312562 * W316 + 48.6541457906 * W252 - 0.1535643762 * W253 * W253 - 0.0358142801 * W316 * W316 - 5.4618633046 * W252 * W252 + 4.2267870055 * W236 * W253 - 2.0313848595 * W236 * W316 + 0.1484978883 * W253 * W316","v":51.776108797873775},57.222596572706266,59.97407832913791,60.805476982723917,60.672412376385019,60.390498394925089,null,{"$f":" -16.7992454106 + 17.2658536059 * (AD251/1000) - 106.6634904715 * AD236 + 0.1550376119 * AD253 - 0.0727312562 * AD316 + 48.6541457906 * AD252 - 0.1535643762 * AD253 * AD253 - 0.0358142801 * AD316 * AD316 - 5.4618633046 * AD252 * AD252 + 4.2267870055 * AD236 * AD253 - 2.0313848595 * AD236 * AD316 + 0.1484978883 * AD253 * AD316","v":51.632362876788818},57.156475609405739,59.895975049279301,60.716018787690459,60.568561014713026,60.279731251009281,null,{"$f":" -16.7992454106 + 17.2658536059 * (AK251/1000) - 106.6634904715 * AK236 + 0.1550376119 * AK253 - 0.0727312562 * AK316 + 48.6541457906 * AK252 - 0.1535643762 * AK253 * AK253 - 0.0358142801 * AK316 * AK316 - 5.4618633046 * AK252 * AK252 + 4.2267870055 * AK236 * AK253 - 2.0313848595 * AK236 * AK316 + 0.1484978883 * AK253 * AK316","v":51.199243638821358},57.065913145247642,59.807489999539072,60.614388859987457,60.452646432680879,60.156551736575622,null,{"$f":" -16.7992454106 + 17.2658536059 * (AR251/1000) - 106.6634904715 * AR236 + 0.1550376119 * AR253 - 0.0727312562 * AR316 + 48.6541457906 * AR252 - 0.1535643762 * AR253 * AR253 - 0.0358142801 * AR316 * AR316 - 5.4618633046 * AR252 * AR252 + 4.2267870055 * AR236 * AR253 - 2.0313848595 * AR236 * AR316 + 0.1484978883 * AR253 * AR316","v":51.129627436266425},56.961797580322376,59.702742213448772,60.501137157705614,60.324057631038869,60.020590422447796]
["Lean, %",{"$f":" 49.3215904687 - 4.5564383267 * (B251/1000) + 31.3355706686 * B236 + 0.0864922401 * B253 - 16.201377828 * B236 * B236","v":53.954378874327247},54.343913736532443,54.182582260957595,53.680906160604707,53.144530833046296,52.790842861934969,null,{"$f":" 49.3215904687 - 4.5564383267 * (I251/1000) + 31.3355706686 * I236 + 0.0864922401 * I253 - 16.201377828 * I236 * I236","v":54.134196000750507},54.479866835130245,54.290014477434966,53.768016043127062,53.217775330799931,52.859573640694691,null,{"$f":" 49.3215904687 - 4.5564383267 * (P251/1000) + 31.3355706686 * P236 + 0.0864922401 * P253 - 16.201377828 * P236 * P236","v":54.302560308235627},54.613307917389932,54.399633726203731,53.855002320003138,53.297040940809822,52.93498943827236,null,{"$f":" 49.3215904687 - 4.5564383267 * (W251/1000) + 31.3355706686 * W236 + 0.0864922401 * W253 - 16.201377828 * W236 * W236","v":54.468726236896515},54.744997920004913,54.502586730778503,53.942803426459712,53.375812537131495,53.010123081629899,null,{"$f":" 49.3215904687 - 4.5564383267 * (AD251/1000) + 31.3355706686 * AD236 + 0.0864922401 * AD253 - 16.201377828 * AD236 * AD236","v":54.633440320365807},54.874942445672175,54.605255626300988,54.0292369152954,53.455535587722743,53.087294639427043,null,{"$f":" 49.3215904687 - 4.5564383267 * (AK251/1000) + 31.3355706686 * AK236 + 0.0864922401 * AK253 - 16.201377828 * AK236 * AK236","v":54.774976861337635},55.002708452905729,54.706589350232555,54.116479284340883,53.535605941033964,53.163239957976437,null,{"$f":" 49.3215904687 - 4.5564383267 * (AR251/1000) + 31.3355706686 * AR236 + 0.0864922401 * AR253 - 16.201377828 * AR236 * AR236","v":54.944412353300216},55.128553478632149,54.807699095852193,54.205783247306584,53.6144601987735,53.238060387460081]
["Final BW",{"$f":"B5+(B342*0.00220462*B346)","v":84.999929826400006},{"$f":"C5+(C342*0.00220462*C346)","v":119.99992982640001},{"$f":"D5+(D342*0.00220462*D346)","v":159.99991980160002},199.99991980160002,239.99991980160002,284.9999097768,null,{"$f":"$B$351-I268","v":84.774674958367157},{"$f":"$C$351-J268","v":119.78537729671801},{"$f":"$D$351-K268","v":159.73742380595064},{"$f":"$E$351-L268","v":199.68159656699643},{"$f":"$F$351-M268","v":239.5696584553323},{"$f":"$G$351-N268","v":284.31051491266265},null,{"$f":"$B$351-P268","v":84.591221411361403},{"$f":"$C$351-Q268","v":119.60784772191616},{"$f":"$D$351-R268","v":159.51052884200283},{"$f":"$E$351-S268","v":199.3773915059179},{"$f":"$F$351-T268","v":239.16164709194138},{"$f":"$G$351-U268","v":283.63557975839905},null,{"$f":"$B$351-W268","v":84.438709572179604},{"$f":"$C$351-X268","v":119.45297815092717},{"$f":"$D$351-Y268","v":159.28864116536596},{"$f":"$E$351-Z268","v":199.09670400926214},{"$f":"$F$351-AA268","v":238.77108001295238},{"$f":"$G$351-AB268","v":282.97353247185532},null,{"$f":"$B$351-AD268","v":84.317189037514012},{"$f":"$C$351-AE268","v":119.31348156926133},{"$f":"$D$351-AF268","v":159.09309162265021},{"$f":"$E$351-AG268","v":198.83383222246121},{"$f":"$F$351-AH268","v":238.38476216846632},{"$f":"$G$351-AI268","v":282.31334052726174},null,{"$f":"$B$351-AK268","v":84.215282106764661},{"$f":"$C$351-AL268","v":119.20184979320564},{"$f":"$D$351-AM268","v":158.92345356278406},{"$f":"$E$351-AN268","v":198.58243132539374},{"$f":"$F$351-AO268","v":238.01160044142554},{"$f":"$G$351-AP268","v":281.67367363505917},null,{"$f":"$B$351-AR268","v":84.156465721950099},{"$f":"$C$351-AS268","v":119.11549160192362},{"$f":"$D$351-AT268","v":158.77808269700381},{"$f":"$E$351-AU268","v":198.34631413270952},{"$f":"$F$351-AV268","v":237.65748786747162},{"$f":"$G$351-AW268","v":281.05533958858598}]
["Withdrawal Period",0,0,0,0,0,0,null,0,0,0,0,0,0,null,0,0,0,0,0,0,null,0,0,0,0,0,0,null,0,0,0,0,0,0,null,0,0,0,0,0,0,null,0,0,0,0,0,0]
["Soto Model for Yield",{"$f":" 0.03492* B352 - 0.05092 * B316- 0.06897 * B316 - 0.00289 * (B316 * B352) +76.0769-(75.02-'DDGS Calculator'!$G$9)","v":75.029735985643839},{"$f":" 0.03492* C352 - 0.05092 * B316- 0.06897 * C316 - 0.00289 * (C316 * C352) +76.0769-(75.02-'DDGS Calculator'!$G$9)","v":75.024756887824907},{"$f":" 0.03492* D352 - 0.05092 * C316- 0.06897 * D316 - 0.00289 * (D316 * D352) +76.0769-(75.02-'DDGS Calculator'!$G$9)","v":75.016633111485348},{"$f":" 0.03492* E352 - 0.05092 * D316- 0.06897 * E316 - 0.00289 * (E316 * E352) +76.0769-(75.02-'DDGS Calculator'!$G$9)","v":75.009676279957176},{"$f":" 0.03492* F352 - 0.05092 * E316- 0.06897 * F316 - 0.00289 * (F316 * F352) + 76.0769-(75.02-'DDGS Calculator'!$G$9)","v":75.00416807535089},{"$f":"0.03492*G352-0.05092*F316-0.06897*G316-0.00289*(G316*G352)+76.0769-(75.02-'DDGS Calculator'!$G$9)","v":75.000910160900062},null,{"$f":" 0.03492* I352 - 0.05092 * I316- 0.06897 * I316 - 0.00289 * (I316 * I352) +76.0769-(75.02-'DDGS Calculator'!$G$9)","v":74.885299741686921},{"$f":" 0.03492* J352 - 0.05092 * I316- 0.06897 * J316 - 0.00289 * (J316 * J352) +76.0769-(75.02-'DDGS Calculator'!$G$9)","v":74.880369685187503},{"$f":" 0.03492* K352 - 0.05092 * J316- 0.06897 * K316 - 0.00289 * (K316 * K352) +76.0769-(75.02-'DDGS Calculator'!$G$9)","v":74.872321891542697},{"$f":" 0.03492* L352 - 0.05092 * K316- 0.06897 * L316 - 0.00289 * (L316 * L352) +76.0769-(75.02-'DDGS Calculator'!$G$9)","v":74.865283225998155},{"$f":" 0.03492* M352 - 0.05092 * L316- 0.06897 * M316 - 0.00289 * (M316 * M352) + 76.0769-(75.02-'DDGS Calculator'!$G$9)","v":74.859733685574497},{"$f":"0.03492*N352-0.05092*M316-0.06897*N316-0.00289*(N316*N352)+76.0769-(75.02-'DDGS Calculator'!$G$9)","v":74.856481358208185},null,{"$f":" 0.03492* P352 - 0.05092 * P316- 0.06897 * P316 - 0.00289 * (P316 * P352) +76.0769-(75.02-'DDGS Calculator'!$G$9)","v":74.740985265028073},{"$f":" 0.03492* Q352 - 0.05092 * P316- 0.06897 * Q316 - 0.00289 * (Q316 * Q352) +76.0769-(75.02-'DDGS Calculator'!$G$9)","v":74.73608107933363},{"$f":" 0.03492* R352 - 0.05092 * Q316- 0.06897 * R316 - 0.00289 * (R316 * R352) +76.0769-(75.02-'DDGS Calculator'!$G$9)","v":74.728075292758277},{"$f":" 0.03492* S352 - 0.05092 * R316- 0.06897 * S316 - 0.00289 * (S316 * S352) +76.0769-(75.02-'DDGS Calculator'!$G$9)","v":74.721042001094332},{"$f":" 0.03492* T352 - 0.05092 * S316- 0.06897 * T316 - 0.00289 * (T316 * T352) + 76.0769-(75.02-'DDGS Calculator'!$G$9)","v":74.715557830837184},{"$f":"0.03492*U352-0.05092*T316-0.06897*U316-0.00289*(U316*U352)+76.0769-(75.02-'DDGS Calculator'!$G$9)","v":74.712383645307554},null,{"$f":" 0.03492* W352 - 0.05092 * W316- 0.06897 * W316 - 0.00289 * (W316 * W352) +76.0769-(75.02-'DDGS Calculator'!$G$9)","v":74.596652700505487},{"$f":" 0.03492* X352 - 0.05092 * W316- 0.06897 * X316 - 0.00289 * (X316 * X352) +76.0769-(75.02-'DDGS Calculator'!$G$9)","v":74.59177100961594},{"$f":" 0.03492* Y352 - 0.05092 * X316- 0.06897 * Y316 - 0.00289 * (Y316 * Y352) +76.0769-(75.02-'DDGS Calculator'!$G$9)","v":74.583774325262894},{"$f":" 0.03492* Z352 - 0.05092 * Y316- 0.06897 * Z316 - 0.00289 * (Z316 * Z352) +76.0769-(75.02-'DDGS Calculator'!$G$9)","v":74.576782794159641},{"$f":" 0.03492* AA352 - 0.05092 * Z316- 0.06897 * AA316 - 0.00289 * (AA316 * AA352) + 76.0769-(75.02-'DDGS Calculator'!$G$9)","v":74.571397916858899},{"$f":"0.03492*AB352-0.05092*AA316-0.06897*AB316-0.00289*(AB316*AB352)+76.0769-(75.02-'DDGS Calculator'!$G$9)","v":74.5684073063846},null,{"$f":" 0.03492* AD352 - 0.05092 * AD316- 0.06897 * AD316 - 0.00289 * (AD316 * AD352) +76.0769-(75.02-'DDGS Calculator'!$G$9)","v":74.452326256137312},{"$f":" 0.03492* AE352 - 0.05092 * AD316- 0.06897 * AE316 - 0.00289 * (AE316 * AE352) +76.0769-(75.02-'DDGS Calculator'!$G$9)","v":74.447436279064306},{"$f":" 0.03492* AF352 - 0.05092 * AE316- 0.06897 * AF316 - 0.00289 * (AF316 * AF352) +76.0769-(75.02-'DDGS Calculator'!$G$9)","v":74.439460952889434},{"$f":" 0.03492* AG352 - 0.05092 * AF316- 0.06897 * AG316 - 0.00289 * (AG316 * AG352) +76.0769-(75.02-'DDGS Calculator'!$G$9)","v":74.432589612562523},{"$f":" 0.03492* AH352 - 0.05092 * AG316- 0.06897 * AH316 - 0.00289 * (AH316 * AH352) + 76.0769-(75.02-'DDGS Calculator'!$G$9)","v":74.427635227410732},{"$f":"0.03492*AI352-0.05092*AH316-0.06897*AI316-0.00289*(AI316*AI352)+76.0769-(75.02-'DDGS Calculator'!$G$9)","v":74.42508873726581},null,{"$f":" 0.03492* AK352 - 0.05092 * AK316- 0.06897 * AK316 - 0.00289 * (AK316 * AK352) +76.0769-(75.02-'DDGS Calculator'!$G$9)","v":74.308238161470328},{"$f":" 0.03492* AL352 - 0.05092 * AK316- 0.06897 * AL316 - 0.00289 * (AL316 * AL352) +76.0769-(75.02-'DDGS Calculator'!$G$9)","v":74.303205874624595},{"$f":" 0.03492* AM352 - 0.05092 * AL316- 0.06897 * AM316 - 0.00289 * (AM316 * AM352) +76.0769-(75.02-'DDGS Calculator'!$G$9)","v":74.295220644142091},{"$f":" 0.03492* AN352 - 0.05092 * AM316- 0.06897 * AN316 - 0.00289 * (AN316 * AN352) +76.0769-(75.02-'DDGS Calculator'!$G$9)","v":74.288705407736174},{"$f":" 0.03492* AO352 - 0.05092 * AN316- 0.06897 * AO316 - 0.00289 * (AO316 * AO352) + 76.0769-(75.02-'DDGS Calculator'!$G$9)","v":74.28423703657397},{"$f":"0.03492*AP352-0.05092*AO316-0.06897*AP316-0.00289*(AP316*AP352)+76.0769-(75.02-'DDGS Calculator'!$G$9)","v":74.281902063931739},null,{"$f":" 0.03492* AR352 - 0.05092 * AR316- 0.06897 * AR316 - 0.00289 * (AR316 * AR352) +76.0769-(75.02-'DDGS Calculator'!$G$9)","v":74.163814285373576},{"$f":" 0.03492* AS352 - 0.05092 * AR316- 0.06897 * AS316 - 0.00289 * (AS316 * AS352) +76.0769-(75.02-'DDGS Calculator'!$G$9)","v":74.158839283638059},{"$f":" 0.03492* AT352 - 0.05092 * AS316- 0.06897 * AT316 - 0.00289 * (AT316 * AT352) +76.0769-(75.02-'DDGS Calculator'!$G$9)","v":74.15099985199852},{"$f":" 0.03492* AU352 - 0.05092 * AT316- 0.06897 * AU316 - 0.00289 * (AU316 * AU352) +76.0769-(75.02-'DDGS Calculator'!$G$9)","v":74.14509925653995},{"$f":" 0.03492* AV352 - 0.05092 * AU316- 0.06897 * AV316 - 0.00289 * (AV316 * AV352) + 76.0769-(75.02-'DDGS Calculator'!$G$9)","v":74.141033600109566},{"$f":"0.03492*AW352-0.05092*AV316-0.06897*AW316-0.00289*(AW316*AW352)+76.0769-(75.02-'DDGS Calculator'!$G$9)","v":74.138710804134917}]

{"sheet":"GF diets No L-Val + Fat","index":6,"n_rows":353,"n_cols":50,"rows_kept":353,"cut":false,"hidden":true,"merged":[[3,36,3,40],[3,43,3,47],[3,1,3,5],[3,8,3,12],[3,15,3,19],[3,22,3,26],[3,29,3,33]]}
["Corn",null,null,null,null,null,null,null,{"$f":"B7-I7","v":78.847932538945088},{"$f":"C7-J7","v":78.990904656930297},78.732847708260579,78.350814532472214,78.625314003523499,78.437274248473614,null,{"$f":"I7-P7","v":78.869446714110154},{"$f":"J7-Q7","v":78.910241852682702},78.971817812852578,78.947597993782438,79.007989930308668,79.07070378697199,null,{"$f":"P7-W7","v":78.901632467544005},{"$f":"Q7-X7","v":78.948872278436511},78.879611969325424,78.834660770078244,79.083790296524739,79.937689057569969,null,{"$f":"W7-AD7","v":78.941135212754148},{"$f":"X7-AE7","v":78.923722167716278},78.778889522292275,79.150340635518887,81.585366228283192,82.443243658264919,null,{"$f":"AD7-AK7","v":79.21829355550733},{"$f":"AE7-AL7","v":78.919632197342935},79.078660894961104,81.302066593328163,82.216761385820291,82.235291328483981,null,{"$f":"AK7-AR7","v":78.801706942857095},{"$f":"AL7-AS7","v":78.921885944682913},79.64106076521557,82.20833215019411,82.262159022385049,82.278653501357439]
["SBM",null,null,null,null,null,null,null,{"$f":"B8-I8","v":30.448349711621177},30.438309534796645,30.45643151152899,30.483259683986034,30.463983035737783,30.477188074716196,null,{"$f":"I8-P8","v":30.44683888471377},30.44397405756672,30.439649903060399,30.441350733051195,30.437109726272865,30.432705663304887,null,{"$f":"P8-W8","v":30.444578649219693},30.4412612467695,30.44612503252165,30.449281717861595,30.431786666847302,30.371821866212031,null,{"$f":"W8-AD8","v":30.44180458003359},30.44302740622993,30.453198238071764,30.427113187985697,30.256114199729609,30.195869998186254,null,{"$f":"AD8-AK8","v":30.422341213267259},30.443314623250672,30.43214687763134,30.276008837015979,30.211774652149643,30.210473392131007,null,{"$f":"AK8-AR8","v":30.451595891121883},{"$f":"AL8-AS8","v":30.443156354476855},{"$f":"AM8-AT8","v":30.392652504720218},30.212366592853868,30.208586615874083,30.207428295721684]
[null,"Diet 1","Diet 2","Diet 3","Diet 4","Diet 5","Diet 6",null,"Diet 1","Diet 2","Diet 3","Diet 4","Diet 5","Diet 6",null,"Diet 1","Diet 2","Diet 3","Diet 4","Diet 5","Diet 6",null,"Diet 1","Diet 2","Diet 3","Diet 4","Diet 5","Diet 6",null,"Diet 1","Diet 2","Diet 3","Diet 4","Diet 5","Diet 6",null,"Diet 1","Diet 2","Diet 3","Diet 4","Diet 5","Diet 6",null,"Diet 1","Diet 2","Diet 3","Diet 4","Diet 5","Diet 6"]
[null,"Weight Range",null,null,null,null,null,null,"Weight Range",null,null,null,null,null,null,"Weight Range",null,null,null,null,null,null,"Weight Range",null,null,null,null,null,null,"Weight Range",null,null,null,null,null,null,"Weight Range",null,null,null,null,null,null,"Weight Range"]
[null,50,85,120,160,200,240,null,50,85,120,160,200,240,null,50,85,120,160,200,240,null,50,85,120,160,200,240,null,50,85,120,160,200,240,null,50,85,120,160,200,240,null,50,85,120,160,200,240]
["Ingredient",85,120,160,200,240,285,null,85,120,160,200,240,285,null,85,120,160,200,240,285,null,85,120,160,200,240,285,null,85,120,160,200,240,285,null,85,120,160,200,240,285,null,85,120,160,200,240,285]
["Corn",{"$f":"IF(B5=\"\",\"\",((((B236-B297)*2000)+((SUM(B9:B229)-2000)*((IF($A8=Nutrients!$B$79,Nutrients!$DA$79,(IF($A8=Nutrients!$B$77,Nutrients!$DA$77,Nutrients!$DA$78)))))))/((IF($A7=Nutrients!$B$8,Nutrients!$DA$8,Nutrients!$DA$9))-((IF($A8=Nutrients!$B$79,Nutrients!$DA$79,(IF($A8=Nutrients!$B$77,Nutrients!$DA$77,Nutrients!$DA$78))))))))","v":1323.1904784197848},{"$f":"IF(C5=\"\",\"\",((((C236-C297)*2000)+((SUM(C9:C229)-2000)*((IF($A8=Nutrients!$B$79,Nutrients!$DA$79,(IF($A8=Nutrients!$B$77,Nutrients!$DA$77,Nutrients!$DA$78)))))))/((IF($A7=Nutrients!$B$8,Nutrients!$DA$8,Nutrients!$DA$9))-((IF($A8=Nutrients!$B$79,Nutrients!$DA$79,(IF($A8=Nutrients!$B$77,Nutrients!$DA$77,Nutrients!$DA$78))))))))","v":1438.5863426264264},{"$f":"IF(D5=\"\",\"\",((((D236-D297)*2000)+((SUM(D9:D229)-2000)*((IF($A8=Nutrients!$B$79,Nutrients!$DA$79,(IF($A8=Nutrients!$B$77,Nutrients!$DA$77,Nutrients!$DA$78)))))))/((IF($A7=Nutrients!$B$8,Nutrients!$DA$8,Nutrients!$DA$9))-((IF($A8=Nutrients!$B$79,Nutrients!$DA$79,(IF($A8=Nutrients!$B$77,Nutrients!$DA$77,Nutrients!$DA$78))))))))","v":1538.5624561307404},{"$f":"IF(E5=\"\",\"\",((((E236-E297)*2000)+((SUM(E9:E229)-2000)*((IF($A8=Nutrients!$B$79,Nutrients!$DA$79,(IF($A8=Nutrients!$B$77,Nutrients!$DA$77,Nutrients!$DA$78)))))))/((IF($A7=Nutrients!$B$8,Nutrients!$DA$8,Nutrients!$DA$9))-((IF($A8=Nutrients!$B$79,Nutrients!$DA$79,(IF($A8=Nutrients!$B$77,Nutrients!$DA$77,Nutrients!$DA$78))))))))","v":1622.5648380110952},{"$f":"IF(F5=\"\",\"\",((((F236-F297)*2000)+((SUM(F9:F229)-2000)*((IF($A8=Nutrients!$B$79,Nutrients!$DA$79,(IF($A8=Nutrients!$B$77,Nutrients!$DA$77,Nutrients!$DA$78)))))))/((IF($A7=Nutrients!$B$8,Nutrients!$DA$8,Nutrients!$DA$9))-((IF($A8=Nutrients!$B$79,Nutrients!$DA$79,(IF($A8=Nutrients!$B$77,Nutrients!$DA$77,Nutrients!$DA$78))))))))","v":1679.6960832539069},{"$f":"IF(G5=\"\",\"\",((((G236-G297)*2000)+((SUM(G9:G229)-2000)*((IF($A8=Nutrients!$B$79,Nutrients!$DA$79,(IF($A8=Nutrients!$B$77,Nutrients!$DA$77,Nutrients!$DA$78)))))))/((IF($A7=Nutrients!$B$8,Nutrients!$DA$8,Nutrients!$DA$9))-((IF($A8=Nutrients!$B$79,Nutrients!$DA$79,(IF($A8=Nutrients!$B$77,Nutrients!$DA$77,Nutrients!$DA$78))))))))","v":1707.9835561942639},null,{"$f":"IF(I5=\"\",\"\",((((I236-I297)*2000)+((SUM(I9:I229)-2000)*((IF($A8=Nutrients!$B$79,Nutrients!$DA$79,(IF($A8=Nutrients!$B$77,Nutrients!$DA$77,Nutrients!$DA$78)))))))/((IF($A7=Nutrients!$B$8,Nutrients!$DA$8,Nutrients!$DA$9))-((IF($A8=Nutrients!$B$79,Nutrients!$DA$79,(IF($A8=Nutrients!$B$77,Nutrients!$DA$77,Nutrients!$DA$78))))))))","v":1244.3425458808397},{"$f":"IF(J5=\"\",\"\",((((J236-J297)*2000)+((SUM(J9:J229)-2000)*((IF($A8=Nutrients!$B$79,Nutrients!$DA$79,(IF($A8=Nutrients!$B$77,Nutrients!$DA$77,Nutrients!$DA$78)))))))/((IF($A7=Nutrients!$B$8,Nutrients!$DA$8,Nutrients!$DA$9))-((IF($A8=Nutrients!$B$79,Nutrients!$DA$79,(IF($A8=Nutrients!$B$77,Nutrients!$DA$77,Nutrients!$DA$78))))))))","v":1359.5954379694961},{"$f":"IF(K5=\"\",\"\",((((K236-K297)*2000)+((SUM(K9:K229)-2000)*((IF($A8=Nutrients!$B$79,Nutrients!$DA$79,(IF($A8=Nutrients!$B$77,Nutrients!$DA$77,Nutrients!$DA$78)))))))/((IF($A7=Nutrients!$B$8,Nutrients!$DA$8,Nutrients!$DA$9))-((IF($A8=Nutrients!$B$79,Nutrients!$DA$79,(IF($A8=Nutrients!$B$77,Nutrients!$DA$77,Nutrients!$DA$78))))))))","v":1459.8296084224799},{"$f":"IF(L5=\"\",\"\",((((L236-L297)*2000)+((SUM(L9:L229)-2000)*((IF($A8=Nutrients!$B$79,Nutrients!$DA$79,(IF($A8=Nutrients!$B$77,Nutrients!$DA$77,Nutrients!$DA$78)))))))/((IF($A7=Nutrients!$B$8,Nutrients!$DA$8,Nutrients!$DA$9))-((IF($A8=Nutrients!$B$79,Nutrients!$DA$79,(IF($A8=Nutrients!$B$77,Nutrients!$DA$77,Nutrients!$DA$78))))))))","v":1544.2140234786229},{"$f":"IF(M5=\"\",\"\",((((M236-M297)*2000)+((SUM(M9:M229)-2000)*((IF($A8=Nutrients!$B$79,Nutrients!$DA$79,(IF($A8=Nutrients!$B$77,Nutrients!$DA$77,Nutrients!$DA$78)))))))/((IF($A7=Nutrients!$B$8,Nutrients!$DA$8,Nutrients!$DA$9))-((IF($A8=Nutrients!$B$79,Nutrients!$DA$79,(IF($A8=Nutrients!$B$77,Nutrients!$DA$77,Nutrients!$DA$78))))))))","v":1601.0707692503834},{"$f":"IF(N5=\"\",\"\",((((N236-N297)*2000)+((SUM(N9:N229)-2000)*((IF($A8=Nutrients!$B$79,Nutrients!$DA$79,(IF($A8=Nutrients!$B$77,Nutrients!$DA$77,Nutrients!$DA$78)))))))/((IF($A7=Nutrients!$B$8,Nutrients!$DA$8,Nutrients!$DA$9))-((IF($A8=Nutrients!$B$79,Nutrients!$DA$79,(IF($A8=Nutrients!$B$77,Nutrients!$DA$77,Nutrients!$DA$78))))))))","v":1629.5462819457903},null,{"$f":"IF(P5=\"\",\"\",((((P236-P297)*2000)+((SUM(P9:P229)-2000)*((IF($A8=Nutrients!$B$79,Nutrients!$DA$79,(IF($A8=Nutrients!$B$77,Nutrients!$DA$77,Nutrients!$DA$78)))))))/((IF($A7=Nutrients!$B$8,Nutrients!$DA$8,Nutrients!$DA$9))-((IF($A8=Nutrients!$B$79,Nutrients!$DA$79,(IF($A8=Nutrients!$B$77,Nutrients!$DA$77,Nutrients!$DA$78))))))))","v":1165.4730991667295},{"$f":"IF(Q5=\"\",\"\",((((Q236-Q297)*2000)+((SUM(Q9:Q229)-2000)*((IF($A8=Nutrients!$B$79,Nutrients!$DA$79,(IF($A8=Nutrients!$B$77,Nutrients!$DA$77,Nutrients!$DA$78)))))))/((IF($A7=Nutrients!$B$8,Nutrients!$DA$8,Nutrients!$DA$9))-((IF($A8=Nutrients!$B$79,Nutrients!$DA$79,(IF($A8=Nutrients!$B$77,Nutrients!$DA$77,Nutrients!$DA$78))))))))","v":1280.6851961168134},{"$f":"IF(R5=\"\",\"\",((((R236-R297)*2000)+((SUM(R9:R229)-2000)*((IF($A8=Nutrients!$B$79,Nutrients!$DA$79,(IF($A8=Nutrients!$B$77,Nutrients!$DA$77,Nutrients!$DA$78)))))))/((IF($A7=Nutrients!$B$8,Nutrients!$DA$8,Nutrients!$DA$9))-((IF($A8=Nutrients!$B$79,Nutrients!$DA$79,(IF($A8=Nutrients!$B$77,Nutrients!$DA$77,Nutrients!$DA$78))))))))","v":1380.8577906096273},{"$f":"IF(S5=\"\",\"\",((((S236-S297)*2000)+((SUM(S9:S229)-2000)*((IF($A8=Nutrients!$B$79,Nutrients!$DA$79,(IF($A8=Nutrients!$B$77,Nutrients!$DA$77,Nutrients!$DA$78)))))))/((IF($A7=Nutrients!$B$8,Nutrients!$DA$8,Nutrients!$DA$9))-((IF($A8=Nutrients!$B$79,Nutrients!$DA$79,(IF($A8=Nutrients!$B$77,Nutrients!$DA$77,Nutrients!$DA$78))))))))","v":1465.2664254848405},{"$f":"IF(T5=\"\",\"\",((((T236-T297)*2000)+((SUM(T9:T229)-2000)*((IF($A8=Nutrients!$B$79,Nutrients!$DA$79,(IF($A8=Nutrients!$B$77,Nutrients!$DA$77,Nutrients!$DA$78)))))))/((IF($A7=Nutrients!$B$8,Nutrients!$DA$8,Nutrients!$DA$9))-((IF($A8=Nutrients!$B$79,Nutrients!$DA$79,(IF($A8=Nutrients!$B$77,Nutrients!$DA$77,Nutrients!$DA$78))))))))","v":1522.0627793200747},{"$f":"IF(U5=\"\",\"\",((((U236-U297)*2000)+((SUM(U9:U229)-2000)*((IF($A8=Nutrients!$B$79,Nutrients!$DA$79,(IF($A8=Nutrients!$B$77,Nutrients!$DA$77,Nutrients!$DA$78)))))))/((IF($A7=Nutrients!$B$8,Nutrients!$DA$8,Nutrients!$DA$9))-((IF($A8=Nutrients!$B$79,Nutrients!$DA$79,(IF($A8=Nutrients!$B$77,Nutrients!$DA$77,Nutrients!$DA$78))))))))","v":1550.4755781588183},null,{"$f":"IF(W5=\"\",\"\",((((W236-W297)*2000)+((SUM(W9:W229)-2000)*((IF($A8=Nutrients!$B$79,Nutrients!$DA$79,(IF($A8=Nutrients!$B$77,Nutrients!$DA$77,Nutrients!$DA$78)))))))/((IF($A7=Nutrients!$B$8,Nutrients!$DA$8,Nutrients!$DA$9))-((IF($A8=Nutrients!$B$79,Nutrients!$DA$79,(IF($A8=Nutrients!$B$77,Nutrients!$DA$77,Nutrients!$DA$78))))))))","v":1086.5714666991855},{"$f":"IF(X5=\"\",\"\",((((X236-X297)*2000)+((SUM(X9:X229)-2000)*((IF($A8=Nutrients!$B$79,Nutrients!$DA$79,(IF($A8=Nutrients!$B$77,Nutrients!$DA$77,Nutrients!$DA$78)))))))/((IF($A7=Nutrients!$B$8,Nutrients!$DA$8,Nutrients!$DA$9))-((IF($A8=Nutrients!$B$79,Nutrients!$DA$79,(IF($A8=Nutrients!$B$77,Nutrients!$DA$77,Nutrients!$DA$78))))))))","v":1201.7363238383768},{"$f":"IF(Y5=\"\",\"\",((((Y236-Y297)*2000)+((SUM(Y9:Y229)-2000)*((IF($A8=Nutrients!$B$79,Nutrients!$DA$79,(IF($A8=Nutrients!$B$77,Nutrients!$DA$77,Nutrients!$DA$78)))))))/((IF($A7=Nutrients!$B$8,Nutrients!$DA$8,Nutrients!$DA$9))-((IF($A8=Nutrients!$B$79,Nutrients!$DA$79,(IF($A8=Nutrients!$B$77,Nutrients!$DA$77,Nutrients!$DA$78))))))))","v":1301.9781786403018},{"$f":"IF(Z5=\"\",\"\",((((Z236-Z297)*2000)+((SUM(Z9:Z229)-2000)*((IF($A8=Nutrients!$B$79,Nutrients!$DA$79,(IF($A8=Nutrients!$B$77,Nutrients!$DA$77,Nutrients!$DA$78)))))))/((IF($A7=Nutrients!$B$8,Nutrients!$DA$8,Nutrients!$DA$9))-((IF($A8=Nutrients!$B$79,Nutrients!$DA$79,(IF($A8=Nutrients!$B$77,Nutrients!$DA$77,Nutrients!$DA$78))))))))","v":1386.4317647147623},{"$f":"IF(AA5=\"\",\"\",((((AA236-AA297)*2000)+((SUM(AA9:AA229)-2000)*((IF($A8=Nutrients!$B$79,Nutrients!$DA$79,(IF($A8=Nutrients!$B$77,Nutrients!$DA$77,Nutrients!$DA$78)))))))/((IF($A7=Nutrients!$B$8,Nutrients!$DA$8,Nutrients!$DA$9))-((IF($A8=Nutrients!$B$79,Nutrients!$DA$79,(IF($A8=Nutrients!$B$77,Nutrients!$DA$77,Nutrients!$DA$78))))))))","v":1442.97898902355},{"$f":"IF(AB5=\"\",\"\",((((AB236-AB297)*2000)+((SUM(AB9:AB229)-2000)*((IF($A8=Nutrients!$B$79,Nutrients!$DA$79,(IF($A8=Nutrients!$B$77,Nutrients!$DA$77,Nutrients!$DA$78)))))))/((IF($A7=Nutrients!$B$8,Nutrients!$DA$8,Nutrients!$DA$9))-((IF($A8=Nutrients!$B$79,Nutrients!$DA$79,(IF($A8=Nutrients!$B$77,Nutrients!$DA$77,Nutrients!$DA$78))))))))","v":1470.5378891012483},null,{"$f":"IF(AD5=\"\",\"\",((((AD236-AD297)*2000)+((SUM(AD9:AD229)-2000)*((IF($A8=Nutrients!$B$79,Nutrients!$DA$79,(IF($A8=Nutrients!$B$77,Nutrients!$DA$77,Nutrients!$DA$78)))))))/((IF($A7=Nutrients!$B$8,Nutrients!$DA$8,Nutrients!$DA$9))-((IF($A8=Nutrients!$B$79,Nutrients!$DA$79,(IF($A8=Nutrients!$B$77,Nutrients!$DA$77,Nutrients!$DA$78))))))))","v":1007.6303314864314},{"$f":"IF(AE5=\"\",\"\",((((AE236-AE297)*2000)+((SUM(AE9:AE229)-2000)*((IF($A8=Nutrients!$B$79,Nutrients!$DA$79,(IF($A8=Nutrients!$B$77,Nutrients!$DA$77,Nutrients!$DA$78)))))))/((IF($A7=Nutrients!$B$8,Nutrients!$DA$8,Nutrients!$DA$9))-((IF($A8=Nutrients!$B$79,Nutrients!$DA$79,(IF($A8=Nutrients!$B$77,Nutrients!$DA$77,Nutrients!$DA$78))))))))","v":1122.8126016706606},{"$f":"IF(AF5=\"\",\"\",((((AF236-AF297)*2000)+((SUM(AF9:AF229)-2000)*((IF($A8=Nutrients!$B$79,Nutrients!$DA$79,(IF($A8=Nutrients!$B$77,Nutrients!$DA$77,Nutrients!$DA$78)))))))/((IF($A7=Nutrients!$B$8,Nutrients!$DA$8,Nutrients!$DA$9))-((IF($A8=Nutrients!$B$79,Nutrients!$DA$79,(IF($A8=Nutrients!$B$77,Nutrients!$DA$77,Nutrients!$DA$78))))))))","v":1223.1992891180096},{"$f":"IF(AG5=\"\",\"\",((((AG236-AG297)*2000)+((SUM(AG9:AG229)-2000)*((IF($A8=Nutrients!$B$79,Nutrients!$DA$79,(IF($A8=Nutrients!$B$77,Nutrients!$DA$77,Nutrients!$DA$78)))))))/((IF($A7=Nutrients!$B$8,Nutrients!$DA$8,Nutrients!$DA$9))-((IF($A8=Nutrients!$B$79,Nutrients!$DA$79,(IF($A8=Nutrients!$B$77,Nutrients!$DA$77,Nutrients!$DA$78))))))))","v":1307.2814240792434},{"$f":"IF(AH5=\"\",\"\",((((AH236-AH297)*2000)+((SUM(AH9:AH229)-2000)*((IF($A8=Nutrients!$B$79,Nutrients!$DA$79,(IF($A8=Nutrients!$B$77,Nutrients!$DA$77,Nutrients!$DA$78)))))))/((IF($A7=Nutrients!$B$8,Nutrients!$DA$8,Nutrients!$DA$9))-((IF($A8=Nutrients!$B$79,Nutrients!$DA$79,(IF($A8=Nutrients!$B$77,Nutrients!$DA$77,Nutrients!$DA$78))))))))","v":1361.3936227952668},{"$f":"IF(AI5=\"\",\"\",((((AI236-AI297)*2000)+((SUM(AI9:AI229)-2000)*((IF($A8=Nutrients!$B$79,Nutrients!$DA$79,(IF($A8=Nutrients!$B$77,Nutrients!$DA$77,Nutrients!$DA$78)))))))/((IF($A7=Nutrients!$B$8,Nutrients!$DA$8,Nutrients!$DA$9))-((IF($A8=Nutrients!$B$79,Nutrients!$DA$79,(IF($A8=Nutrients!$B$77,Nutrients!$DA$77,Nutrients!$DA$78))))))))","v":1388.0946454429834},null,{"$f":"IF(AK5=\"\",\"\",((((AK236-AK297)*2000)+((SUM(AK9:AK229)-2000)*((IF($A8=Nutrients!$B$79,Nutrients!$DA$79,(IF($A8=Nutrients!$B$77,Nutrients!$DA$77,Nutrients!$DA$78)))))))/((IF($A7=Nutrients!$B$8,Nutrients!$DA$8,Nutrients!$DA$9))-((IF($A8=Nutrients!$B$79,Nutrients!$DA$79,(IF($A8=Nutrients!$B$77,Nutrients!$DA$77,Nutrients!$DA$78))))))))","v":928.41203793092404},{"$f":"IF(AL5=\"\",\"\",((((AL236-AL297)*2000)+((SUM(AL9:AL229)-2000)*((IF($A8=Nutrients!$B$79,Nutrients!$DA$79,(IF($A8=Nutrients!$B$77,Nutrients!$DA$77,Nutrients!$DA$78)))))))/((IF($A7=Nutrients!$B$8,Nutrients!$DA$8,Nutrients!$DA$9))-((IF($A8=Nutrients!$B$79,Nutrients!$DA$79,(IF($A8=Nutrients!$B$77,Nutrients!$DA$77,Nutrients!$DA$78))))))))","v":1043.8929694733176},{"$f":"IF(AM5=\"\",\"\",((((AM236-AM297)*2000)+((SUM(AM9:AM229)-2000)*((IF($A8=Nutrients!$B$79,Nutrients!$DA$79,(IF($A8=Nutrients!$B$77,Nutrients!$DA$77,Nutrients!$DA$78)))))))/((IF($A7=Nutrients!$B$8,Nutrients!$DA$8,Nutrients!$DA$9))-((IF($A8=Nutrients!$B$79,Nutrients!$DA$79,(IF($A8=Nutrients!$B$77,Nutrients!$DA$77,Nutrients!$DA$78))))))))","v":1144.1206282230485},{"$f":"IF(AN5=\"\",\"\",((((AN236-AN297)*2000)+((SUM(AN9:AN229)-2000)*((IF($A8=Nutrients!$B$79,Nutrients!$DA$79,(IF($A8=Nutrients!$B$77,Nutrients!$DA$77,Nutrients!$DA$78)))))))/((IF($A7=Nutrients!$B$8,Nutrients!$DA$8,Nutrients!$DA$9))-((IF($A8=Nutrients!$B$79,Nutrients!$DA$79,(IF($A8=Nutrients!$B$77,Nutrients!$DA$77,Nutrients!$DA$78))))))))","v":1225.9793574859152},{"$f":"IF(AO5=\"\",\"\",((((AO236-AO297)*2000)+((SUM(AO9:AO229)-2000)*((IF($A8=Nutrients!$B$79,Nutrients!$DA$79,(IF($A8=Nutrients!$B$77,Nutrients!$DA$77,Nutrients!$DA$78)))))))/((IF($A7=Nutrients!$B$8,Nutrients!$DA$8,Nutrients!$DA$9))-((IF($A8=Nutrients!$B$79,Nutrients!$DA$79,(IF($A8=Nutrients!$B$77,Nutrients!$DA$77,Nutrients!$DA$78))))))))","v":1279.1768614094465},{"$f":"IF(AP5=\"\",\"\",((((AP236-AP297)*2000)+((SUM(AP9:AP229)-2000)*((IF($A8=Nutrients!$B$79,Nutrients!$DA$79,(IF($A8=Nutrients!$B$77,Nutrients!$DA$77,Nutrients!$DA$78)))))))/((IF($A7=Nutrients!$B$8,Nutrients!$DA$8,Nutrients!$DA$9))-((IF($A8=Nutrients!$B$79,Nutrients!$DA$79,(IF($A8=Nutrients!$B$77,Nutrients!$DA$77,Nutrients!$DA$78))))))))","v":1305.8593541144994},null,{"$f":"IF(AR5=\"\",\"\",((((AR236-AR297)*2000)+((SUM(AR9:AR229)-2000)*((IF($A8=Nutrients!$B$79,Nutrients!$DA$79,(IF($A8=Nutrients!$B$77,Nutrients!$DA$77,Nutrients!$DA$78)))))))/((IF($A7=Nutrients!$B$8,Nutrients!$DA$8,Nutrients!$DA$9))-((IF($A8=Nutrients!$B$79,Nutrients!$DA$79,(IF($A8=Nutrients!$B$77,Nutrients!$DA$77,Nutrients!$DA$78))))))))","v":849.61033098806695},{"$f":"IF(AS5=\"\",\"\",((((AS236-AS297)*2000)+((SUM(AS9:AS229)-2000)*((IF($A8=Nutrients!$B$79,Nutrients!$DA$79,(IF($A8=Nutrients!$B$77,Nutrients!$DA$77,Nutrients!$DA$78)))))))/((IF($A7=Nutrients!$B$8,Nutrients!$DA$8,Nutrients!$DA$9))-((IF($A8=Nutrients!$B$79,Nutrients!$DA$79,(IF($A8=Nutrients!$B$77,Nutrients!$DA$77,Nutrients!$DA$78))))))))","v":964.97108352863472},{"$f":"IF(AT5=\"\",\"\",((((AT236-AT297)*2000)+((SUM(AT9:AT229)-2000)*((IF($A8=Nutrients!$B$79,Nutrients!$DA$79,(IF($A8=Nutrients!$B$77,Nutrients!$DA$77,Nutrients!$DA$78)))))))/((IF($A7=Nutrients!$B$8,Nutrients!$DA$8,Nutrients!$DA$9))-((IF($A8=Nutrients!$B$79,Nutrients!$DA$79,(IF($A8=Nutrients!$B$77,Nutrients!$DA$77,Nutrients!$DA$78))))))))","v":1064.4795674578329},{"$f":"IF(AU5=\"\",\"\",((((AU236-AU297)*2000)+((SUM(AU9:AU229)-2000)*((IF($A8=Nutrients!$B$79,Nutrients!$DA$79,(IF($A8=Nutrients!$B$77,Nutrients!$DA$77,Nutrients!$DA$78)))))))/((IF($A7=Nutrients!$B$8,Nutrients!$DA$8,Nutrients!$DA$9))-((IF($A8=Nutrients!$B$79,Nutrients!$DA$79,(IF($A8=Nutrients!$B$77,Nutrients!$DA$77,Nutrients!$DA$78))))))))","v":1143.7710253357211},{"$f":"IF(AV5=\"\",\"\",((((AV236-AV297)*2000)+((SUM(AV9:AV229)-2000)*((IF($A8=Nutrients!$B$79,Nutrients!$DA$79,(IF($A8=Nutrients!$B$77,Nutrients!$DA$77,Nutrients!$DA$78)))))))/((IF($A7=Nutrients!$B$8,Nutrients!$DA$8,Nutrients!$DA$9))-((IF($A8=Nutrients!$B$79,Nutrients!$DA$79,(IF($A8=Nutrients!$B$77,Nutrients!$DA$77,Nutrients!$DA$78))))))))","v":1196.9147023870614},{"$f":"IF(AW5=\"\",\"\",((((AW236-AW297)*2000)+((SUM(AW9:AW229)-2000)*((IF($A8=Nutrients!$B$79,Nutrients!$DA$79,(IF($A8=Nutrients!$B$77,Nutrients!$DA$77,Nutrients!$DA$78)))))))/((IF($A7=Nutrients!$B$8,Nutrients!$DA$8,Nutrients!$DA$9))-((IF($A8=Nutrients!$B$79,Nutrients!$DA$79,(IF($A8=Nutrients!$B$77,Nutrients!$DA$77,Nutrients!$DA$78))))))))","v":1223.580700613142}]
["Soybean Meal, Dehull, Sol Extr",{"$f":"IF(B5=\"\",\"\",2000-SUM(B9:B218)-B7)","v":618.86019033712819},508.40076632216437,413.17469083498395,332.93731204963137,279.42017973722363,252.24678261106305,null,{"$f":"IF(I5=\"\",\"\",2000-SUM(I9:I220)-I7)","v":588.41184062550701},477.96245678736773,382.71825932345496,302.45405236564534,248.95619670148585,221.76959453634686,null,{"$f":"IF(P5=\"\",\"\",2000-SUM(P9:P220)-P7)","v":557.96500174079324},447.51848272980101,352.27860942039456,272.01270163259414,218.51908697521299,191.33688887304197,null,{"$f":"IF(W5=\"\",\"\",2000-SUM(W9:W220)-W7)","v":527.52042309157355},417.07722148303151,321.83248438787291,241.56341991473255,188.08730030836568,160.96506700682994,null,{"$f":"IF(AD5=\"\",\"\",2000-SUM(AD9:AD220)-AD7)","v":497.07861851153996},386.63419407680158,291.37928614980115,211.13630672674685,157.83118610863608,130.76919700864369,null,{"$f":"IF(AK5=\"\",\"\",2000-SUM(AK9:AK220)-AK7)","v":466.6562772982727},356.19087945355091,260.94713927216981,180.86029788973087,127.61941145648643,100.55872361651268,null,{"$f":"IF(AR5=\"\",\"\",2000-SUM(AR9:AR220)-AR7)","v":436.20468140715082},325.74772309907405,230.55448676744959,150.647931296877,97.410824840612349,70.351295320790996]
[{"$f":"Nutrients!B8","v":"Corn"}]
[{"$f":"Nutrients!B9","v":"Milo"}]
[{"$f":"Nutrients!B10","v":"Alfalfa Meal"}]
[{"$f":"Nutrients!B11","v":"Bakery Meal"}]
[{"$f":"Nutrients!B12","v":"Barley"}]
[{"$f":"Nutrients!B13","v":"Barley, Hulless"}]
[{"$f":"Nutrients!B14","v":"Beans, Faba"}]
[{"$f":"Nutrients!B15","v":"Blood Meal"}]
[{"$f":"Nutrients!B16","v":"Blood Plasma"}]
[{"$f":"Nutrients!B17","v":"Brewers Grain"}]
[{"$f":"Nutrients!B18","v":"Canola, Full Fat"}]
[{"$f":"Nutrients!B19","v":"Canola Meal, Expelled"}]
[{"$f":"Nutrients!B20","v":"Canola Meal, Solvent Extracted"}]
[{"$f":"Nutrients!B21","v":"Casava Meal"}]
[{"$f":"Nutrients!B22","v":"Citrus Pulp"}]
[{"$f":"Nutrients!B23","v":"Copra Meal"}]
[{"$f":"Nutrients!B24","v":"Corn, Yellow Dent"}]
[{"$f":"Nutrients!B25","v":"Corn, Nutridense"}]
[{"$f":"Nutrients!B26","v":"Corn Bran"}]
[{"$f":"Nutrients!B27","v":"Corn DDG"}]
[{"$f":"Nutrients!B28","v":"Corn DDGS, >10% Oil"}]
[{"$f":"Nutrients!B29","v":"Corn DDGS, >6 and <9% Oil"}]
[{"$f":"Nutrients!B30","v":"Corn DDGS, <4% Oil"}]
[{"$f":"Nutrients!B31","v":"Corn HP DDG"}]
[{"$f":"Nutrients!B32","v":"Corn Germ"}]
[{"$f":"Nutrients!B33","v":"Corn Germ Meal"}]
[{"$f":"Nutrients!B34","v":"Corn Gluten Feed"}]
[{"$f":"Nutrients!B35","v":"Corn Gluten Meal"}]
[{"$f":"Nutrients!B36","v":"Corn Grits, Hominy Feed"}]
[{"$f":"Nutrients!B37","v":"Cotton Seeds, Fullfat"}]
[{"$f":"Nutrients!B38","v":"Cotton Seed Meal"}]
[{"$f":"Nutrients!B39","v":"Feather Meal"}]
[{"$f":"Nutrients!B40","v":"Fish Meal Combined"}]
[{"$f":"Nutrients!B41","v":"Flaxseed"}]
[{"$f":"Nutrients!B42","v":"Flaxseed Meal"}]
[{"$f":"Nutrients!B43","v":"Lupins"}]
[{"$f":"Nutrients!B44","v":"Meat Meal"}]
[{"$f":"Nutrients!B45","v":"Meat and Bone Meal, P >4%"}]
[{"$f":"Nutrients!B46","v":"Milk, Casein"}]
[{"$f":"Nutrients!B47","v":"Milk, Lactose"}]
[{"$f":"Nutrients!B48","v":"Milk, Skim Milk Powder"}]
[{"$f":"Nutrients!B49","v":"Milk, Whey Powder"}]
[{"$f":"Nutrients!B50","v":"Milk, Whey Permeate, 80% lactose"}]
[{"$f":"Nutrients!B51","v":"Milk, Whey Protein Concentrate"}]
[{"$f":"Nutrients!B52","v":"Millet"}]
[{"$f":"Nutrients!B53","v":"Molasses, Sugarbeet"}]
[{"$f":"Nutrients!B54","v":"Molasses, Sugarcane"}]
[{"$f":"Nutrients!B55","v":"Oats"}]
[{"$f":"Nutrients!B56","v":"Oats, Naked"}]
[{"$f":"Nutrients!B57","v":"Oat Groats"}]
[{"$f":"Nutrients!B58","v":"Peanut Meal, Expelled"}]
[{"$f":"Nutrients!B59","v":"Peanut Meal, Extracted"}]
[{"$f":"Nutrients!B60","v":"Peas, Field Peas"}]
[{"$f":"Nutrients!B61","v":"Pea Protein Concentrate"}]
[{"$f":"Nutrients!B62","v":"Potato Protein Concentrate"}]
[{"$f":"Nutrients!B63","v":"Poultry Byproduct"}]
[{"$f":"Nutrients!B64","v":"Rice"}]
[{"$f":"Nutrients!B65","v":"Rice Bran"}]
[{"$f":"Nutrients!B66","v":"Rice Bran, Defatted"}]
[{"$f":"Nutrients!B67","v":"Rice, Broken"}]
[{"$f":"Nutrients!B68","v":"Rye"}]
[{"$f":"Nutrients!B69","v":"Sesame Meal"}]
[{"$f":"Nutrients!B70","v":"Sorghum"}]
[{"$f":"Nutrients!B71","v":"Soybeans, Full Fat"}]
[{"$f":"Nutrients!B72","v":"Soybeans, High Protein, Full Fat"}]
[{"$f":"Nutrients!B73","v":"Soybeans, Low Oligosaccharide, Full Fat"}]
[{"$f":"Nutrients!B74","v":"Soybean Meal, High Protein, Expelled"}]
[{"$f":"Nutrients!B75","v":"Soybean Meal, Low Oligosacch, Expell"}]
[{"$f":"Nutrients!B76","v":"Soybean Meal, Expelled"}]
[{"$f":"Nutrients!B77","v":"Soybean Meal, Dehulled, Expelled"}]
[{"$f":"Nutrients!B78","v":"Soybean Meal, Solvent Extracted"}]
[{"$f":"Nutrients!B79","v":"Soybean Meal, Dehull, Sol Extr"}]
[{"$f":"Nutrients!B80","v":"Soybean Meal, High Prot, Dehull, Solv Extr"}]
[{"$f":"Nutrients!B81","v":"Soybean Meal, Enzyme Treated"}]
[{"$f":"Nutrients!B82","v":"Soybean Meal, Fermented"}]
[{"$f":"Nutrients!B83","v":"Soybean Hulls"}]
[{"$f":"Nutrients!B84","v":"Soy Protein Concentrate"}]
[{"$f":"Nutrients!B85","v":"Soy Protein Isolate"}]
[{"$f":"Nutrients!B86","v":"Sugar Beet Pulp"}]
[{"$f":"Nutrients!B87","v":"Sunflower, Full Fat"}]
[{"$f":"Nutrients!B88","v":"Sunflower Meal, Solvent Extracted"}]
[{"$f":"Nutrients!B89","v":"Sunflower Meal, Dehulled, Solvent Extr"}]
[{"$f":"Nutrients!B90","v":"Triticale"}]
[{"$f":"Nutrients!B91","v":"Wheat, Hard Red"}]
[{"$f":"Nutrients!B92","v":"Wheat, Soft Red"}]
[{"$f":"Nutrients!B93","v":"Wheat Bran"}]
[{"$f":"Nutrients!B94","v":"Wheat Middlings"}]
[{"$f":"Nutrients!B95","v":"Wheat Shorts"}]
[{"$f":"Nutrients!B96","v":"Wheat DDGS"}]
[{"$f":"Nutrients!B97","v":"Yeast, Brewers' Yeast"}]
[{"$f":"Nutrients!B98","v":"Yeast, Single Cell Protein"}]
[{"$f":"Nutrients!B99","v":"Beef Tallow"}]
[{"$f":"Nutrients!B100","v":"Choice White Grease"},null,null,null,null,null,null,null,{"$f":"IF('GF diets No L-Val'!B250-'GF diets No L-Val'!I250<0,0,'GF diets No L-Val'!B250-'GF diets No L-Val'!I250+0.1)","v":9.4602533844016303},{"$f":"IF('GF diets No L-Val'!C250-'GF diets No L-Val'!J250<0,0,'GF diets No L-Val'!C250-'GF diets No L-Val'!J250+0.1)","v":9.5557270193424753},{"$f":"IF('GF diets No L-Val'!D250-'GF diets No L-Val'!K250<0,0,'GF diets No L-Val'!D250-'GF diets No L-Val'!K250+0.1)","v":9.620277963423268},{"$f":"IF('GF diets No L-Val'!E250-'GF diets No L-Val'!L250<0,0,('GF diets No L-Val'!E250-'GF diets No L-Val'!L250)+0.1)","v":9.4051479682508212},{"$f":"IF('GF diets No L-Val'!F250-'GF diets No L-Val'!M250<0,0,'GF diets No L-Val'!F250-'GF diets No L-Val'!M250+0.1)","v":9.4839750483116401},{"$f":"IF('GF diets No L-Val'!G250-'GF diets No L-Val'!N250<0,0,'GF diets No L-Val'!G250-'GF diets No L-Val'!N250+0.1)","v":9.4284150587837754},null,{"$f":"IF('GF diets No L-Val'!B250-'GF diets No L-Val'!P250<0,0,'GF diets No L-Val'!B250-'GF diets No L-Val'!P250+0.2)","v":19.036538983225636},{"$f":"IF('GF diets No L-Val'!C250-'GF diets No L-Val'!Q250<0,0,'GF diets No L-Val'!C250-'GF diets No L-Val'!Q250+0.2)","v":19.169942929591752},{"$f":"IF('GF diets No L-Val'!D250-'GF diets No L-Val'!R250<0,0,'GF diets No L-Val'!D250-'GF diets No L-Val'!R250+0.2)","v":19.291745679336099},{"$f":"IF('GF diets No L-Val'!E250-'GF diets No L-Val'!S250<0,0,'GF diets No L-Val'!E250-'GF diets No L-Val'!S250+0.2)","v":19.054096695084535},{"$f":"IF('GF diets No L-Val'!F250-'GF diets No L-Val'!T250<0,0,'GF diets No L-Val'!F250-'GF diets No L-Val'!T250+0.2)","v":19.11541741259175},{"$f":"IF('GF diets No L-Val'!G250-'GF diets No L-Val'!U250<0,0,'GF diets No L-Val'!G250-'GF diets No L-Val'!U250+0.2)","v":19.059740216770205},null,{"$f":"IF('GF diets No L-Val'!B250-'GF diets No L-Val'!W250<0,0,'GF diets No L-Val'!B250-'GF diets No L-Val'!W250+0.35)","v":28.642750099989463},{"$f":"IF('GF diets No L-Val'!C250-'GF diets No L-Val'!X250<0,0,'GF diets No L-Val'!C250-'GF diets No L-Val'!X250+0.35)","v":28.820076454797892},{"$f":"IF('GF diets No L-Val'!D250-'GF diets No L-Val'!Y250<0,0,'GF diets No L-Val'!D250-'GF diets No L-Val'!Y250+0.35)","v":28.917482681183266},{"$f":"IF('GF diets No L-Val'!E250-'GF diets No L-Val'!Z250<0,0,'GF diets No L-Val'!E250-'GF diets No L-Val'!Z250+0.35)","v":28.727284518841863},{"$f":"IF('GF diets No L-Val'!F250-'GF diets No L-Val'!AA250<0,0,'GF diets No L-Val'!F250-'GF diets No L-Val'!AA250+0.35)","v":28.760994375963811},{"$f":"IF('GF diets No L-Val'!G250-'GF diets No L-Val'!AB250<0,0,'GF diets No L-Val'!G250-'GF diets No L-Val'!AB250+0.35)","v":28.967820816867608},null,{"$f":"IF('GF diets No L-Val'!B250-'GF diets No L-Val'!AD250<0,0,'GF diets No L-Val'!B250-'GF diets No L-Val'!AD250+0.55)","v":38.305689892777124},{"$f":"IF('GF diets No L-Val'!C250-'GF diets No L-Val'!AE250<0,0,'GF diets No L-Val'!C250-'GF diets No L-Val'!AE250+0.55)","v":38.466826028744023},{"$f":"IF('GF diets No L-Val'!D250-'GF diets No L-Val'!AF250<0,0,'GF diets No L-Val'!D250-'GF diets No L-Val'!AF250+0.55)","v":38.634544140625891},{"$f":"IF('GF diets No L-Val'!E250-'GF diets No L-Val'!AG250<0,0,'GF diets No L-Val'!E250-'GF diets No L-Val'!AG250+0.55)","v":38.414738342346297},{"$f":"IF('GF diets No L-Val'!F250-'GF diets No L-Val'!AH250<0,0,'GF diets No L-Val'!F250-'GF diets No L-Val'!AH250+0.55)","v":39.145763216081193},{"$f":"IF('GF diets No L-Val'!G250-'GF diets No L-Val'!AI250<0,0,'GF diets No L-Val'!G250-'GF diets No L-Val'!AI250+0.55)","v":39.702035401030841},null,{"$f":"IF('GF diets No L-Val'!B250-'GF diets No L-Val'!AK250<0,0,'GF diets No L-Val'!B250-'GF diets No L-Val'!AK250+0.75)","v":48.236324661551635},{"$f":"IF('GF diets No L-Val'!C250-'GF diets No L-Val'!AL250<0,0,'GF diets No L-Val'!C250-'GF diets No L-Val'!AL250+0.75)","v":48.119772849337778},{"$f":"IF('GF diets No L-Val'!D250-'GF diets No L-Val'!AM250<0,0,'GF diets No L-Val'!D250-'GF diets No L-Val'!AM250+0.75)","v":48.26535191321841},{"$f":"IF('GF diets No L-Val'!E250-'GF diets No L-Val'!AN250<0,0,'GF diets No L-Val'!E250-'GF diets No L-Val'!AN250+0.75)","v":48.609905153929503},{"$f":"IF('GF diets No L-Val'!F250-'GF diets No L-Val'!AO250<0,0,'GF diets No L-Val'!F250-'GF diets No L-Val'!AO250+0.75)","v":49.858848343582167},{"$f":"IF('GF diets No L-Val'!G250-'GF diets No L-Val'!AP250<0,0,'GF diets No L-Val'!G250-'GF diets No L-Val'!AP250+0.75)","v":50.431720515784491},null,{"$f":"IF('GF diets No L-Val'!B250-'GF diets No L-Val'!AR250<0,0,'GF diets No L-Val'!B250-'GF diets No L-Val'!AR250+0.95)","v":57.789937901385159},{"$f":"IF('GF diets No L-Val'!C250-'GF diets No L-Val'!AS250<0,0,'GF diets No L-Val'!C250-'GF diets No L-Val'!AS250+0.95)","v":57.785124085120017},{"$f":"IF('GF diets No L-Val'!D250-'GF diets No L-Val'!AT250<0,0,'GF diets No L-Val'!D250-'GF diets No L-Val'!AT250+0.95)","v":57.924810335123269},{"$f":"IF('GF diets No L-Val'!E250-'GF diets No L-Val'!AU250<0,0,'GF diets No L-Val'!E250-'GF diets No L-Val'!AU250+0.95)","v":59.307625382842119},{"$f":"IF('GF diets No L-Val'!F250-'GF diets No L-Val'!AV250<0,0,'GF diets No L-Val'!F250-'GF diets No L-Val'!AV250+0.95)","v":60.576352630714339},{"$f":"IF('GF diets No L-Val'!G250-'GF diets No L-Val'!AW250<0,0,'GF diets No L-Val'!G250-'GF diets No L-Val'!AW250+0.95)","v":61.165794180713604}]
[{"$f":"Nutrients!B101","v":"Poultry Fat"}]
[{"$f":"Nutrients!B102","v":"Lard"}]
[{"$f":"Nutrients!B103","v":"Restaurant Grease"}]
[{"$f":"Nutrients!B104","v":"Canola oil"}]
[{"$f":"Nutrients!B105","v":"Coconut oil"}]
[{"$f":"Nutrients!B106","v":"Corn oil"}]
[{"$f":"Nutrients!B107","v":"Palm Kernel oil"}]
[{"$f":"Nutrients!B108","v":"Soybean oil"}]
[{"$f":"Nutrients!B109","v":"Soybean Lecithin"}]
[{"$f":"Nutrients!B110","v":"Sunflower oil"}]
[{"$f":"Nutrients!B111","v":"Fat, A/V blend"}]
["Calcium carbonate",20.650850091543401,19.206,19.148185418768257,18.64855351548341,18.080501293847359,17.747857076024747,null,21.302725380416337,19.896000000000001,19.772727630525221,19.192483222547349,18.682939713542989,18.307407625021,null,21.952725380416336,20.545999999999999,20.42272763052522,19.842483222547347,19.332939713542988,18.957407625020998,null,22.602725380416334,21.195999999999998,21.032727630525219,20.452483222547347,19.942939713542987,19.607407625020997,null,23.232725380416333,21.825999999999997,21.662727630525218,21.082483222547346,21.038695410430403,20.941325045974807,null,23.852725380416334,22.445999999999998,22.282727630525219,22.156361600374847,22.197353735767237,22.099896684771753,null,24.502725380416333,23.095999999999997,23.082598294113691,23.327669657947101,23.35587162149066,23.258364301085358]
[{"$f":"Nutrients!B113","v":"Calcium phosphate (tricalcium)"}]
[{"$f":"Nutrients!B114","v":"Calcium phosphate (dicalcium)"}]
["Calcium phosphate (monocalcium)",13.279340186607511,10.560038663342741,7.7098828288906036,5.7362235571478868,4.249911842640179,3.6237362366975527,null,12.059340186607511,9.3400386633427406,6.2510586229279221,4.2192561688755807,2.8506400350413044,2.1485696763155113,null,10.73934018660751,8.0200386633427403,4.9310586229279219,2.8992561688755805,1.5306400350413043,0.82856967631551126,null,9.4193401866075099,6.70003866334274,3.6110586229279216,1.5792561688755804,0.21064003504130424,null,null,8.0993401866075097,5.3800386633427397,2.2910586229279213,0.25925616887558034,null,null,null,6.7793401866075094,4.0600386633427394,0.97105862292792122,null,null,null,null,5.4593401866075091,2.7400386633427392]
[{"$f":"Nutrients!B116","v":"Calcium sulfate, dihydrate"}]
[{"$f":"Nutrients!B117","v":"Limestone, ground"}]
[{"$f":"Nutrients!B118","v":"Magnesium phosphate"}]
[{"$f":"Nutrients!B119","v":"Sodium carbonate"}]
[{"$f":"Nutrients!B120","v":"Sodium bicarbonate"}]
[{"$f":"Nutrients!B121","v":"Sodium chloride"},7,7,7,7,7,7,null,7,7,7,7,7,7,null,7,7,7,7,7,7,null,7,7,7,7,7,7,null,7,7,7,7,7,7,null,7,7,7,7,7,7,null,7,7,7,7,7,7]
[{"$f":"Nutrients!B122","v":"Sodium phosphate, monobasic"}]
[{"$f":"Nutrients!B123","v":"Sodium sulfate, decahydrate"}]
[{"$f":"Nutrients!B124","v":"L-Lys-HCl"},6.3084820001521269,6.2433597724335907,6.1008877821794973,6.0262980797710428,5.9214818115557355,5.7904970568511782,null,6.8584820001521267,6.7933597724335906,6.6508877821794972,6.5762980797710426,6.4714818115557353,6.340497056851178,null,7.4084820001521265,7.3433597724335904,7.200887782179497,7.1262980797710425,7.0214818115557351,6.8904970568511779,null,7.9584820001521264,7.8933597724335902,7.7508877821794968,7.6762980797710423,7.571481811555735,7.4404970568511777,null,8.5084820001521262,8.44335977243359,8.3008877821794975,8.226298079771043,8.1214818115557357,7.9904970568511775,null,9.0584820001521269,8.9933597724335907,8.8508877821794982,8.7762980797710437,8.6714818115557364,8.5404970568511782,null,9.6084820001521276,9.5433597724335915,9.4008877821794989,9.3262980797710444,9.2214818115557371,9.0904970568511789]
["DL-Met",2.0001072741250949,1.4142932363875236,0.86934747110785748,0.597281406401727,0.26418732884583351,0.20625243191767928,null,1.8342608514165972,1.2477804087720765,0.70263072167985541,0.42924533581749902,9.6342707698536839E-2,3.7915707709582691E-2,null,1.6642608514165973,1.0777804087720766,0.53263072167985537,0.25924533581749898,null,null,null,1.4942608514165974,0.90778040877207655,0.36263072167985533,null,null,null,null,1.3242608514165974,0.73778040877207651,null,null,null,null,null,1.1542608514165975,0.56778040877207647,null,null,null,null,null,0.98426085141659747,0.39778040877207643]
["L-Thr",2.1021642542029664,1.8931061779303802,1.6694885978130205,1.6715266713984547,1.5185483019032111,1.5481920365803807,null,2.0421642542029663,1.8331061779303801,1.6094885978130204,1.6115266713984546,1.4585483019032111,1.4881920365803807,null,1.9821642542029663,1.7731061779303801,1.5494885978130204,1.5515266713984546,1.398548301903211,1.4281920365803806,null,1.9221642542029662,1.71310617793038,1.4894885978130203,1.4915266713984545,1.3385483019032109,1.3681920365803806,null,1.8621642542029662,1.6531061779303799,1.4294885978130203,1.4315266713984545,1.2785483019032109,1.3081920365803805,null,1.8021642542029661,1.5931061779303799,1.3694885978130202,1.3715266713984544,1.2185483019032108,1.2481920365803805,null,1.7421642542029661,1.5331061779303798,1.3094885978130202,1.3115266713984544,1.1585483019032108,1.1881920365803804]
["L-Trp",0.1583874364560095,0.24609320131494719,0.31506093551644743,0.36796670907097156,0.39910643007729607,0.40312635660152313,null,0.23838743645600952,0.32609320131494718,0.39506093551644744,0.44796670907097158,0.47910643007729609,0.48312635660152314,null,0.32838743645600954,0.4160932013149472,0.48506093551644747,0.53796670907097155,0.56910643007729611,0.57312635660152311,null,0.41838743645600951,0.50609320131494717,0.57506093551644744,0.62796670907097152,0.65910643007729608,0.66312635660152308,null,0.50838743645600948,0.59609320131494714,0.65271795811769306,0.71796670907097149,0.74070235612654567,0.74410800793571552,null,0.59838743645600945,0.68609320131494711,0.74271795811769303,0.79625311888019668,0.80749494125874588,0.81161597500027016,null,0.64807703060165656,0.73578426469247626,0.79816076548794745,0.85792357544318287,0.91221840666227716,0.91515649083652495]
[{"$f":"Nutrients!B128","v":"L-Val"}]
[{"$f":"Nutrients!B129","v":"L-Ile"}]
[{"$f":"Nutrients!B130","v":"Methionine hydroxy analog"}]
[{"$f":"Nutrients!B131","v":"Glutamine"}]
[{"$f":"Nutrients!B132","v":"Glutamic acid"}]
[{"$f":"Nutrients!B133","v":"Biolys"}]
[{"$f":"Nutrients!B134","v":"Liquid lysine 60%"}]
[{"$f":"Nutrients!B135","v":"MHA dry"}]
[{"$f":"Nutrients!B136","v":"Paylean, 9 g/lb"}]
[{"$f":"Nutrients!B137","v":"Tribasic copper chloride"}]
[{"$f":"Nutrients!B138","v":"2018 Starter base mix"}]
[{"$f":"Nutrients!B139","v":"2018 Grow-finish base mix"}]
[{"$f":"Nutrients!B140","v":"Developer base mix"}]
[{"$f":"Nutrients!B141","v":"2018 Sow base mix"}]
[{"$f":"Nutrients!B142","v":"Vitamin premix with phytase"}]
[{"$f":"Nutrients!B143","v":"Trace mineral premix"},3,3,2.5,2,1.5,1.5,null,3,3,2.5,2,1.5,1.5,null,3,3,2.5,2,1.5,1.5,null,3,3,2.5,2,1.5,1.5,null,3,3,2.5,2,1.5,1.5,null,3,3,2.5,2,1.5,1.5,null,3,3,2.5,2,1.5,1.5]
[{"$f":"Nutrients!B144","v":"Sow add pack"}]
[{"$f":"Nutrients!B145","v":"Vitamin premix without phytase"},3,3,2.5,2,1.5,1.5,null,3,3,2.5,2,1.5,1.5,null,3,3,2.5,2,1.5,1.5,null,3,3,2.5,2,1.5,1.5,null,3,3,2.5,2,1.5,1.5,null,3,3,2.5,2,1.5,1.5,null,3,3,2.5,2,1.5,1.5]
[{"$f":"Nutrients!B146","v":"GF DDGS Base Mix"}]
[{"$f":"Nutrients!B147","v":"GF synthetics Base Mix"}]
[{"$f":"Nutrients!B148","v":"Choline chloride 60%"}]
[{"$f":"Nutrients!B149","v":"Natuphos 600"}]
[{"$f":"Nutrients!B150","v":"Natuphos 1200"}]
[{"$f":"Nutrients!B151","v":"Optiphos 2000"}]
[{"$f":"Nutrients!B152","v":"Phyzyme 1200"}]
[{"$f":"Nutrients!B153","v":"Phyzyme 5000"}]
[{"$f":"Nutrients!B154","v":"Ronozyme Hiphos GT (10,000)"}]
[{"$f":"Nutrients!B155","v":"Ronozyme Hiphos M (50,000)"}]
[{"$f":"Nutrients!B156","v":"Ronozyme HiPhos 2700"},0.45,0.45,0.45,0.45,0.45,0.45,null,0.45,0.45,0.45,0.45,0.45,0.45,null,0.45,0.45,0.45,0.45,0.45,0.45,null,0.45,0.45,0.45,0.45,0.45,0.45,null,0.45,0.45,0.45,0.45,0.45,0.45,null,0.45,0.45,0.45,0.45,0.45,0.45,null,0.45,0.45,0.45,0.45,0.45,0.45]
[{"$f":"Nutrients!B157","v":"Zinc oxide"}]
[{"$f":"Nutrients!B158","v":"Copper sulfate"}]
[{"$f":"Nutrients!B159","v":"Potassium chloride"}]
[{"$f":"Nutrients!B160","v":"Calcium chloride"}]
[{"$f":"Nutrients!B161","v":"Acidifier"}]
[{"$f":"Nutrients!B162","v":"Vitamin E, 20,000 IU"}]
[{"$f":"Nutrients!B163","v":"Other ingredient"}]
[{"$f":"Nutrients!B164","v":"DPS 50"}]
[{"$f":"Nutrients!B165","v":"PEP2+"}]
[{"$f":"Nutrients!B166","v":"PEP NS"}]
[{"$f":"Nutrients!B167","v":"Vitamin premix (2x) with phytase"}]
[{"$f":"Nutrients!B168","v":"Vitamin premix (2x) without phytase"}]
[{"$f":"Nutrients!B169","v":"Corn DDGS, 10.5% Oil"}]
[{"$f":"Nutrients!B170","v":"Corn DDGS, 7.5% Oil"}]
[{"$f":"Nutrients!B171","v":"Corn DDGS, 4.5% Oil"}]
[{"$f":"Nutrients!B172","v":"MEPRO Hubbard"}]
[{"$f":"Nutrients!B173","v":"HP 300 Apr 2022 loadings"}]
[{"$f":"Nutrients!B174","v":"Glycine"}]
[{"$f":"Nutrients!B175","v":"Phase 2 supplement 2018"}]
[{"$f":"Nutrients!B176","v":"Fermex 200"}]
[{"$f":"Nutrients!B177","v":"Soybean meal with 88% NE of corn"}]
[{"$f":"Nutrients!B178","v":"Blue Dye NFP"}]
[{"$f":"Nutrients!B179","v":"HP 300 2022 NFP"}]
[{"$f":"Nutrients!B180","v":"AX3 Digest NFP"}]
[{"$f":"Nutrients!B181","v":"Phase 2 supplement 2018 NFP"}]
[{"$f":"Nutrients!B182","v":"Femex 200 NFP"}]
[{"$f":"Nutrients!B183","v":"NFP Soybean meal w/88% NE of corn "}]
[{"$f":"Nutrients!B184","v":"AV-E Digest NFP"}]
[{"$f":"Nutrients!B185","v":"QFP Cereal Blend NFP"}]
[{"$f":"Nutrients!B186","v":"FXP Ani-Tek NFP"}]
[{"$f":"Nutrients!B187","v":"NFP VTM Grower (2021)"}]
[{"$f":"Nutrients!B188","v":"NFP VTM Sow (2021)"}]
[{"$f":"Nutrients!B189","v":"VevoVitall NFP"}]
[{"$f":"Nutrients!B190","v":"MEPRO NFP"}]
[{"$f":"Nutrients!B191","v":"AlphaGal 280 P NFP"}]
[{"$f":"Nutrients!B192","v":"NFP Custom Manganese "}]
[{"$f":"Nutrients!B193","v":"Fat Build R2 All Veg 4000 NFP"}]
[{"$f":"Nutrients!B194","v":"LipoVital GL 90 NFP"}]
[{"$f":"Nutrients!B195","v":"NFP Custom Zinc"}]
[{"$f":"Nutrients!B196","v":"THRPRO-L Threonine 80% NFP"}]
[{"$f":"Nutrients!B197","v":"Copper Chloride Intellibond TBCC NFP"}]
[{"$f":"Nutrients!B198","v":"DDGS 7.5% Oil Green Plains NFP"}]
[{"$f":"Nutrients!B199","v":"NHF GF VTM 2#"}]
[{"$f":"Nutrients!B200","v":"Hubbard Vit Premix "}]
[{"$f":"Nutrients!B201","v":"Hubbard TMP"}]
[{"$f":"Nutrients!B202","v":"Inorganic Se 600 ppm Hubbard"}]
[{"$f":"Nutrients!B203","v":"Quantum Blue  5G Hubbard"}]
[{"$f":"Nutrients!B204","v":"TASA Prime meal Hubbard"}]
[{"$f":"Nutrients!B205","v":"TASA Swine Hubbard"}]
[{"$f":"Nutrients!B206","v":"TASA fish solubles Hubbard"}]
[{"$f":"Nutrients!B207","v":"Mepro + TASA additive Hubbard"}]
[{"$f":"Nutrients!B208","v":"TASA Prime + TASA additive Hubbard"}]
[{"$f":"Nutrients!B209","v":"NHF SOW VTM 4# 2022"}]
[{"$f":"Nutrients!B210","v":"ThrPro "}]
[{"$f":"Nutrients!B211","v":"NHF Optiphos Plus 2500 G"}]
[{"$f":"Nutrients!B212","v":"NHF Corn DDGS, Valero, Aurora"}]
[{"$f":"Nutrients!B213","v":"HP 300 Hubbard"}]
[{"$f":"Nutrients!B214","v":"NHF Corn DDGS, Illuminate for Aurora"}]
[{"$f":"Nutrients!B215","v":"NFP Corn DDGS, MO analysis"}]
[{"$f":"Nutrients!B216","v":"NFP Smizyme 2500"}]
[{"$f":"Nutrients!B217","v":"NHF HP300 2022 loadings"}]
[{"$f":"Nutrients!B218","v":"NHF Liquid Lys 55%"}]
[{"$f":"Nutrients!B219","v":"Corn DDGS with varying energy"},null,null,null,null,null,null,null,100,100,100,100,100,100,null,200,200,200,200,200,200,null,300,300,300,300,300,300,null,400,400,400,400,400,400,null,500,500,500,500,500,500,null,600,600,600,600,600,600]
[{"$f":"Nutrients!B220","v":"Other ingredient"}]
[{"$f":"Nutrients!B221","v":"Other ingredient"}]
[{"$f":"Nutrients!B222","v":"Other ingredient"}]
[{"$f":"Nutrients!B223","v":"Other ingredient"}]
[{"$f":"Nutrients!B224","v":"Other ingredient"}]
[{"$f":"Nutrients!B225","v":"Other ingredient"}]
[{"$f":"Nutrients!B226","v":"Other ingredient"}]
[{"$f":"Nutrients!B227","v":"Other ingredient"}]
[{"$f":"Nutrients!B228","v":"Other ingredient"}]
["TOTAL",{"$f":"SUM(B7:B229)","v":2000},2000,2000,2000,2000,1999.9999999999998,null,{"$f":"SUM(I7:I229)","v":1999.9999999999998},2000,2000.0000000000002,1999.9999999999998,2000,2000,null,{"$f":"SUM(P7:P229)","v":2000},2000,2000,2000.0000000000002,2000.0000000000002,2000.0000000000002,null,{"$f":"SUM(W7:W229)","v":2000},1999.9999999999998,1999.9999999999998,2000,2000,2000,null,{"$f":"SUM(AD7:AD229)","v":1999.9999999999998},1999.9999999999998,2000,1999.9999999999998,1999.9999999999998,1999.9999999999998,null,{"$f":"SUM(AK7:AK229)","v":2000},2000,2000.0000000000002,2000.0000000000002,1999.9999999999998,2000,null,{"$f":"SUM(AR7:AR229)","v":2000},2000.0000000000005,2000,2000.0000000000002,2000.0000000000002,2000.0000000000002]
[]
["Required SID Lys:NE Ratio",{"$f":"  0.0000415*((B5+B6)/2)^2 - 0.0236*((B5+B6)/2) + 6.096","v":4.6920843750000003},4.1130093749999999,3.6054000000000004,3.1925999999999997,2.9125999999999999,2.7606093749999996,null,{"$f":"  0.0000415*((I5+I6)/2)^2 - 0.0236*((I5+I6)/2) + 6.096","v":4.6920843750000003},4.1130093749999999,3.6054000000000004,3.1925999999999997,2.9125999999999999,2.7606093749999996,null,{"$f":"  0.0000415*((P5+P6)/2)^2 - 0.0236*((P5+P6)/2) + 6.096","v":4.6920843750000003},4.1130093749999999,3.6054000000000004,3.1925999999999997,2.9125999999999999,2.7606093749999996,null,{"$f":"  0.0000415*((W5+W6)/2)^2 - 0.0236*((W5+W6)/2) + 6.096","v":4.6920843750000003},4.1130093749999999,3.6054000000000004,3.1925999999999997,2.9125999999999999,2.7606093749999996,null,{"$f":"  0.0000415*((AD5+AD6)/2)^2 - 0.0236*((AD5+AD6)/2) + 6.096","v":4.6920843750000003},4.1130093749999999,3.6054000000000004,3.1925999999999997,2.9125999999999999,2.7606093749999996,null,{"$f":"  0.0000415*((AK5+AK6)/2)^2 - 0.0236*((AK5+AK6)/2) + 6.096","v":4.6920843750000003},4.1130093749999999,3.6054000000000004,3.1925999999999997,2.9125999999999999,2.7606093749999996,null,{"$f":"  0.0000415*((AR5+AR6)/2)^2 - 0.0236*((AR5+AR6)/2) + 6.096","v":4.6920843750000003},4.1130093749999999,3.6054000000000004,3.1925999999999997,2.9125999999999999,2.7606093749999996]
["Calculated SID Lysine Required, %",{"$f":"IF(B232=\"\",\"\",B250*2.2046*B232/10000)","v":1.1871600863382354},1.0488451848987548,0.92572438073141317,0.8245835224120116,0.755458195622838,0.71736927197173905,null,{"$f":"IF(I232=\"\",\"\",I250*2.2046*I232/10000)","v":1.1868929212490253},1.0486771927133118,0.92577660455854782,0.82453604116359547,0.75539699821096873,0.71732113084037619,null,{"$f":"IF(P232=\"\",\"\",P250*2.2046*P232/10000)","v":1.1868149144022275},1.0486435780127812,0.92579313629429338,0.82453465914546487,0.75539985165640922,0.71733539918867384,null,{"$f":"IF(W232=\"\",\"\",W250*2.2046*W232/10000)","v":1.1867681973321411},1.048642883489501,0.92579233935054106,0.82454715722237903,0.75544780491577834,0.71734485507972823,null,{"$f":"IF(AD232=\"\",\"\",AD250*2.2046*AD232/10000)","v":1.1867934270536604},1.0486501603831129,0.92580046069087951,0.82462091832034234,0.755347588025712,0.71729788567554176,null,{"$f":"IF(AK232=\"\",\"\",AK250*2.2046*AK232/10000)","v":1.187104871528128},1.0486686538270873,0.92584310104345913,0.82440536810936849,0.75534871695340911,0.71730940599175586,null,{"$f":"IF(AR232=\"\",\"\",AR250*2.2046*AR232/10000)","v":1.1869834142405142},1.0486645999673345,0.92563911107529262,0.82438853097725295,0.75536430203013782,0.7173340486507227]
[]
["SID amino acids, %"]
["  Lys",1.1861119527718891,1.0487231011263827,0.92692570857780632,0.82606841929078001,0.75673053182615369,0.71839352504319809,null,1.1861119527718891,1.0487231011263827,0.92692570857780632,0.82606841929078001,0.75673053182615369,0.71839352504319809,null,1.1861119527718891,1.0487231011263827,0.92692570857780632,0.82606841929078001,0.75673053182615369,0.71839352504319809,null,1.1861119527718891,1.0487231011263827,0.92692570857780632,0.82606841929078001,0.75673053182615369,0.71839352504319809,null,1.1861119527718891,1.0487231011263827,0.92692570857780632,0.82606841929078001,0.75673053182615369,0.71839352504319809,null,1.1861119527718891,1.0487231011263827,0.92692570857780632,0.82606841929078001,0.75673053182615369,0.71839352504319809,null,1.1861119527718891,1.0487231011263827,0.92692570857780632,0.82606841929078001,0.75673053182615369,0.71839352504319809]
["  Ile:Lys",{"$f":"(SUMPRODUCT(B$9:B$229,Nutrients!$CY$8:$CY$228)+(IF($A$7=Nutrients!$B$8,Nutrients!$CY$8,Nutrients!$CY$9)*B$7)+(((IF($A$8=Nutrients!$B$79,Nutrients!$CY$79,(IF($A$8=Nutrients!$B$77,Nutrients!$CY$77,Nutrients!$CY$78)))))*B$8))/2000/B$236*100","v":62.49349603537744},{"$f":"(SUMPRODUCT(C$9:C$229,Nutrients!$CY$8:$CY$228)+(IF($A$7=Nutrients!$B$8,Nutrients!$CY$8,Nutrients!$CY$9)*C$7)+(((IF($A$8=Nutrients!$B$79,Nutrients!$CY$79,(IF($A$8=Nutrients!$B$77,Nutrients!$CY$77,Nutrients!$CY$78)))))*C$8))/2000/C$236*100","v":61.913365044093091},{"$f":"(SUMPRODUCT(D$9:D$229,Nutrients!$CY$8:$CY$228)+(IF($A$7=Nutrients!$B$8,Nutrients!$CY$8,Nutrients!$CY$9)*D$7)+(((IF($A$8=Nutrients!$B$79,Nutrients!$CY$79,(IF($A$8=Nutrients!$B$77,Nutrients!$CY$77,Nutrients!$CY$78)))))*D$8))/2000/D$236*100","v":61.503659114241785},{"$f":"(SUMPRODUCT(E$9:E$229,Nutrients!$CY$8:$CY$228)+(IF($A$7=Nutrients!$B$8,Nutrients!$CY$8,Nutrients!$CY$9)*E$7)+(((IF($A$8=Nutrients!$B$79,Nutrients!$CY$79,(IF($A$8=Nutrients!$B$77,Nutrients!$CY$77,Nutrients!$CY$78)))))*E$8))/2000/E$236*100","v":60.930382267932259},{"$f":"(SUMPRODUCT(F$9:F$229,Nutrients!$CY$8:$CY$228)+(IF($A$7=Nutrients!$B$8,Nutrients!$CY$8,Nutrients!$CY$9)*F$7)+(((IF($A$8=Nutrients!$B$79,Nutrients!$CY$79,(IF($A$8=Nutrients!$B$77,Nutrients!$CY$77,Nutrients!$CY$78)))))*F$8))/2000/F$236*100","v":60.645226830458597},{"$f":"(SUMPRODUCT(G$9:G$229,Nutrients!$CY$8:$CY$228)+(IF($A$7=Nutrients!$B$8,Nutrients!$CY$8,Nutrients!$CY$9)*G$7)+(((IF($A$8=Nutrients!$B$79,Nutrients!$CY$79,(IF($A$8=Nutrients!$B$77,Nutrients!$CY$77,Nutrients!$CY$78)))))*G$8))/2000/G$236*100","v":60.73149438608624},null,{"$f":"(SUMPRODUCT(I$9:I$229,Nutrients!$CY$8:$CY$228)+(IF($A$7=Nutrients!$B$8,Nutrients!$CY$8,Nutrients!$CY$9)*I$7)+(((IF($A$8=Nutrients!$B$79,Nutrients!$CY$79,(IF($A$8=Nutrients!$B$77,Nutrients!$CY$77,Nutrients!$CY$78)))))*I$8))/2000/I$236*100","v":62.411909631700603},{"$f":"(SUMPRODUCT(J$9:J$229,Nutrients!$CY$8:$CY$228)+(IF($A$7=Nutrients!$B$8,Nutrients!$CY$8,Nutrients!$CY$9)*J$7)+(((IF($A$8=Nutrients!$B$79,Nutrients!$CY$79,(IF($A$8=Nutrients!$B$77,Nutrients!$CY$77,Nutrients!$CY$78)))))*J$8))/2000/J$236*100","v":61.820436984860329},{"$f":"(SUMPRODUCT(K$9:K$229,Nutrients!$CY$8:$CY$228)+(IF($A$7=Nutrients!$B$8,Nutrients!$CY$8,Nutrients!$CY$9)*K$7)+(((IF($A$8=Nutrients!$B$79,Nutrients!$CY$79,(IF($A$8=Nutrients!$B$77,Nutrients!$CY$77,Nutrients!$CY$78)))))*K$8))/2000/K$236*100","v":61.399854609044311},{"$f":"(SUMPRODUCT(L$9:L$229,Nutrients!$CY$8:$CY$228)+(IF($A$7=Nutrients!$B$8,Nutrients!$CY$8,Nutrients!$CY$9)*L$7)+(((IF($A$8=Nutrients!$B$79,Nutrients!$CY$79,(IF($A$8=Nutrients!$B$77,Nutrients!$CY$77,Nutrients!$CY$78)))))*L$8))/2000/L$236*100","v":60.816120339580351},{"$f":"(SUMPRODUCT(M$9:M$229,Nutrients!$CY$8:$CY$228)+(IF($A$7=Nutrients!$B$8,Nutrients!$CY$8,Nutrients!$CY$9)*M$7)+(((IF($A$8=Nutrients!$B$79,Nutrients!$CY$79,(IF($A$8=Nutrients!$B$77,Nutrients!$CY$77,Nutrients!$CY$78)))))*M$8))/2000/M$236*100","v":60.518756831920541},{"$f":"(SUMPRODUCT(N$9:N$229,Nutrients!$CY$8:$CY$228)+(IF($A$7=Nutrients!$B$8,Nutrients!$CY$8,Nutrients!$CY$9)*N$7)+(((IF($A$8=Nutrients!$B$79,Nutrients!$CY$79,(IF($A$8=Nutrients!$B$77,Nutrients!$CY$77,Nutrients!$CY$78)))))*N$8))/2000/N$236*100","v":60.599529765828834},null,{"$f":"(SUMPRODUCT(P$9:P$229,Nutrients!$CY$8:$CY$228)+(IF($A$7=Nutrients!$B$8,Nutrients!$CY$8,Nutrients!$CY$9)*P$7)+(((IF($A$8=Nutrients!$B$79,Nutrients!$CY$79,(IF($A$8=Nutrients!$B$77,Nutrients!$CY$77,Nutrients!$CY$78)))))*P$8))/2000/P$236*100","v":62.330236299733166},{"$f":"(SUMPRODUCT(Q$9:Q$229,Nutrients!$CY$8:$CY$228)+(IF($A$7=Nutrients!$B$8,Nutrients!$CY$8,Nutrients!$CY$9)*Q$7)+(((IF($A$8=Nutrients!$B$79,Nutrients!$CY$79,(IF($A$8=Nutrients!$B$77,Nutrients!$CY$77,Nutrients!$CY$78)))))*Q$8))/2000/Q$236*100","v":61.727877541984874},{"$f":"(SUMPRODUCT(R$9:R$229,Nutrients!$CY$8:$CY$228)+(IF($A$7=Nutrients!$B$8,Nutrients!$CY$8,Nutrients!$CY$9)*R$7)+(((IF($A$8=Nutrients!$B$79,Nutrients!$CY$79,(IF($A$8=Nutrients!$B$77,Nutrients!$CY$77,Nutrients!$CY$78)))))*R$8))/2000/R$236*100","v":61.294814552587809},{"$f":"(SUMPRODUCT(S$9:S$229,Nutrients!$CY$8:$CY$228)+(IF($A$7=Nutrients!$B$8,Nutrients!$CY$8,Nutrients!$CY$9)*S$7)+(((IF($A$8=Nutrients!$B$79,Nutrients!$CY$79,(IF($A$8=Nutrients!$B$77,Nutrients!$CY$77,Nutrients!$CY$78)))))*S$8))/2000/S$236*100","v":60.698396125694309},{"$f":"(SUMPRODUCT(T$9:T$229,Nutrients!$CY$8:$CY$228)+(IF($A$7=Nutrients!$B$8,Nutrients!$CY$8,Nutrients!$CY$9)*T$7)+(((IF($A$8=Nutrients!$B$79,Nutrients!$CY$79,(IF($A$8=Nutrients!$B$77,Nutrients!$CY$77,Nutrients!$CY$78)))))*T$8))/2000/T$236*100","v":60.389863283251991},{"$f":"(SUMPRODUCT(U$9:U$229,Nutrients!$CY$8:$CY$228)+(IF($A$7=Nutrients!$B$8,Nutrients!$CY$8,Nutrients!$CY$9)*U$7)+(((IF($A$8=Nutrients!$B$79,Nutrients!$CY$79,(IF($A$8=Nutrients!$B$77,Nutrients!$CY$77,Nutrients!$CY$78)))))*U$8))/2000/U$236*100","v":60.463339451773479},null,{"$f":"(SUMPRODUCT(W$9:W$229,Nutrients!$CY$8:$CY$228)+(IF($A$7=Nutrients!$B$8,Nutrients!$CY$8,Nutrients!$CY$9)*W$7)+(((IF($A$8=Nutrients!$B$79,Nutrients!$CY$79,(IF($A$8=Nutrients!$B$77,Nutrients!$CY$77,Nutrients!$CY$78)))))*W$8))/2000/W$236*100","v":62.248432920831334},{"$f":"(SUMPRODUCT(X$9:X$229,Nutrients!$CY$8:$CY$228)+(IF($A$7=Nutrients!$B$8,Nutrients!$CY$8,Nutrients!$CY$9)*X$7)+(((IF($A$8=Nutrients!$B$79,Nutrients!$CY$79,(IF($A$8=Nutrients!$B$77,Nutrients!$CY$77,Nutrients!$CY$78)))))*X$8))/2000/X$236*100","v":61.635141564125838},{"$f":"(SUMPRODUCT(Y$9:Y$229,Nutrients!$CY$8:$CY$228)+(IF($A$7=Nutrients!$B$8,Nutrients!$CY$8,Nutrients!$CY$9)*Y$7)+(((IF($A$8=Nutrients!$B$79,Nutrients!$CY$79,(IF($A$8=Nutrients!$B$77,Nutrients!$CY$77,Nutrients!$CY$78)))))*Y$8))/2000/Y$236*100","v":61.190251229596591},{"$f":"(SUMPRODUCT(Z$9:Z$229,Nutrients!$CY$8:$CY$228)+(IF($A$7=Nutrients!$B$8,Nutrients!$CY$8,Nutrients!$CY$9)*Z$7)+(((IF($A$8=Nutrients!$B$79,Nutrients!$CY$79,(IF($A$8=Nutrients!$B$77,Nutrients!$CY$77,Nutrients!$CY$78)))))*Z$8))/2000/Z$236*100","v":60.58132712587043},{"$f":"(SUMPRODUCT(AA$9:AA$229,Nutrients!$CY$8:$CY$228)+(IF($A$7=Nutrients!$B$8,Nutrients!$CY$8,Nutrients!$CY$9)*AA$7)+(((IF($A$8=Nutrients!$B$79,Nutrients!$CY$79,(IF($A$8=Nutrients!$B$77,Nutrients!$CY$77,Nutrients!$CY$78)))))*AA$8))/2000/AA$236*100","v":60.26048967828892},{"$f":"(SUMPRODUCT(AB$9:AB$229,Nutrients!$CY$8:$CY$228)+(IF($A$7=Nutrients!$B$8,Nutrients!$CY$8,Nutrients!$CY$9)*AB$7)+(((IF($A$8=Nutrients!$B$79,Nutrients!$CY$79,(IF($A$8=Nutrients!$B$77,Nutrients!$CY$77,Nutrients!$CY$78)))))*AB$8))/2000/AB$236*100","v":60.321365362162723},null,{"$f":"(SUMPRODUCT(AD$9:AD$229,Nutrients!$CY$8:$CY$228)+(IF($A$7=Nutrients!$B$8,Nutrients!$CY$8,Nutrients!$CY$9)*AD$7)+(((IF($A$8=Nutrients!$B$79,Nutrients!$CY$79,(IF($A$8=Nutrients!$B$77,Nutrients!$CY$77,Nutrients!$CY$78)))))*AD$8))/2000/AD$236*100","v":62.166469930599398},{"$f":"(SUMPRODUCT(AE$9:AE$229,Nutrients!$CY$8:$CY$228)+(IF($A$7=Nutrients!$B$8,Nutrients!$CY$8,Nutrients!$CY$9)*AE$7)+(((IF($A$8=Nutrients!$B$79,Nutrients!$CY$79,(IF($A$8=Nutrients!$B$77,Nutrients!$CY$77,Nutrients!$CY$78)))))*AE$8))/2000/AE$236*100","v":61.542520518326114},{"$f":"(SUMPRODUCT(AF$9:AF$229,Nutrients!$CY$8:$CY$228)+(IF($A$7=Nutrients!$B$8,Nutrients!$CY$8,Nutrients!$CY$9)*AF$7)+(((IF($A$8=Nutrients!$B$79,Nutrients!$CY$79,(IF($A$8=Nutrients!$B$77,Nutrients!$CY$77,Nutrients!$CY$78)))))*AF$8))/2000/AF$236*100","v":61.086208673612852},{"$f":"(SUMPRODUCT(AG$9:AG$229,Nutrients!$CY$8:$CY$228)+(IF($A$7=Nutrients!$B$8,Nutrients!$CY$8,Nutrients!$CY$9)*AG$7)+(((IF($A$8=Nutrients!$B$79,Nutrients!$CY$79,(IF($A$8=Nutrients!$B$77,Nutrients!$CY$77,Nutrients!$CY$78)))))*AG$8))/2000/AG$236*100","v":60.462426684824713},{"$f":"(SUMPRODUCT(AH$9:AH$229,Nutrients!$CY$8:$CY$228)+(IF($A$7=Nutrients!$B$8,Nutrients!$CY$8,Nutrients!$CY$9)*AH$7)+(((IF($A$8=Nutrients!$B$79,Nutrients!$CY$79,(IF($A$8=Nutrients!$B$77,Nutrients!$CY$77,Nutrients!$CY$78)))))*AH$8))/2000/AH$236*100","v":60.115273177937389},{"$f":"(SUMPRODUCT(AI$9:AI$229,Nutrients!$CY$8:$CY$228)+(IF($A$7=Nutrients!$B$8,Nutrients!$CY$8,Nutrients!$CY$9)*AI$7)+(((IF($A$8=Nutrients!$B$79,Nutrients!$CY$79,(IF($A$8=Nutrients!$B$77,Nutrients!$CY$77,Nutrients!$CY$78)))))*AI$8))/2000/AI$236*100","v":60.162676380218869},null,{"$f":"(SUMPRODUCT(AK$9:AK$229,Nutrients!$CY$8:$CY$228)+(IF($A$7=Nutrients!$B$8,Nutrients!$CY$8,Nutrients!$CY$9)*AK$7)+(((IF($A$8=Nutrients!$B$79,Nutrients!$CY$79,(IF($A$8=Nutrients!$B$77,Nutrients!$CY$77,Nutrients!$CY$78)))))*AK$8))/2000/AK$236*100","v":62.083387078659193},{"$f":"(SUMPRODUCT(AL$9:AL$229,Nutrients!$CY$8:$CY$228)+(IF($A$7=Nutrients!$B$8,Nutrients!$CY$8,Nutrients!$CY$9)*AL$7)+(((IF($A$8=Nutrients!$B$79,Nutrients!$CY$79,(IF($A$8=Nutrients!$B$77,Nutrients!$CY$77,Nutrients!$CY$78)))))*AL$8))/2000/AL$236*100","v":61.449918163049169},{"$f":"(SUMPRODUCT(AM$9:AM$229,Nutrients!$CY$8:$CY$228)+(IF($A$7=Nutrients!$B$8,Nutrients!$CY$8,Nutrients!$CY$9)*AM$7)+(((IF($A$8=Nutrients!$B$79,Nutrients!$CY$79,(IF($A$8=Nutrients!$B$77,Nutrients!$CY$77,Nutrients!$CY$78)))))*AM$8))/2000/AM$236*100","v":60.980616204523628},{"$f":"(SUMPRODUCT(AN$9:AN$229,Nutrients!$CY$8:$CY$228)+(IF($A$7=Nutrients!$B$8,Nutrients!$CY$8,Nutrients!$CY$9)*AN$7)+(((IF($A$8=Nutrients!$B$79,Nutrients!$CY$79,(IF($A$8=Nutrients!$B$77,Nutrients!$CY$77,Nutrients!$CY$78)))))*AN$8))/2000/AN$236*100","v":60.331042838758265},{"$f":"(SUMPRODUCT(AO$9:AO$229,Nutrients!$CY$8:$CY$228)+(IF($A$7=Nutrients!$B$8,Nutrients!$CY$8,Nutrients!$CY$9)*AO$7)+(((IF($A$8=Nutrients!$B$79,Nutrients!$CY$79,(IF($A$8=Nutrients!$B$77,Nutrients!$CY$77,Nutrients!$CY$78)))))*AO$8))/2000/AO$236*100","v":59.966057947304449},{"$f":"(SUMPRODUCT(AP$9:AP$229,Nutrients!$CY$8:$CY$228)+(IF($A$7=Nutrients!$B$8,Nutrients!$CY$8,Nutrients!$CY$9)*AP$7)+(((IF($A$8=Nutrients!$B$79,Nutrients!$CY$79,(IF($A$8=Nutrients!$B$77,Nutrients!$CY$77,Nutrients!$CY$78)))))*AP$8))/2000/AP$236*100","v":60.005374676286003},null,{"$f":"(SUMPRODUCT(AR$9:AR$229,Nutrients!$CY$8:$CY$228)+(IF($A$7=Nutrients!$B$8,Nutrients!$CY$8,Nutrients!$CY$9)*AR$7)+(((IF($A$8=Nutrients!$B$79,Nutrients!$CY$79,(IF($A$8=Nutrients!$B$77,Nutrients!$CY$77,Nutrients!$CY$78)))))*AR$8))/2000/AR$236*100","v":62.001987450074466},{"$f":"(SUMPRODUCT(AS$9:AS$229,Nutrients!$CY$8:$CY$228)+(IF($A$7=Nutrients!$B$8,Nutrients!$CY$8,Nutrients!$CY$9)*AS$7)+(((IF($A$8=Nutrients!$B$79,Nutrients!$CY$79,(IF($A$8=Nutrients!$B$77,Nutrients!$CY$77,Nutrients!$CY$78)))))*AS$8))/2000/AS$236*100","v":61.357305508500524},{"$f":"(SUMPRODUCT(AT$9:AT$229,Nutrients!$CY$8:$CY$228)+(IF($A$7=Nutrients!$B$8,Nutrients!$CY$8,Nutrients!$CY$9)*AT$7)+(((IF($A$8=Nutrients!$B$79,Nutrients!$CY$79,(IF($A$8=Nutrients!$B$77,Nutrients!$CY$77,Nutrients!$CY$78)))))*AT$8))/2000/AT$236*100","v":60.872115949672043},{"$f":"(SUMPRODUCT(AU$9:AU$229,Nutrients!$CY$8:$CY$228)+(IF($A$7=Nutrients!$B$8,Nutrients!$CY$8,Nutrients!$CY$9)*AU$7)+(((IF($A$8=Nutrients!$B$79,Nutrients!$CY$79,(IF($A$8=Nutrients!$B$77,Nutrients!$CY$77,Nutrients!$CY$78)))))*AU$8))/2000/AU$236*100","v":60.194401222778559},{"$f":"(SUMPRODUCT(AV$9:AV$229,Nutrients!$CY$8:$CY$228)+(IF($A$7=Nutrients!$B$8,Nutrients!$CY$8,Nutrients!$CY$9)*AV$7)+(((IF($A$8=Nutrients!$B$79,Nutrients!$CY$79,(IF($A$8=Nutrients!$B$77,Nutrients!$CY$77,Nutrients!$CY$78)))))*AV$8))/2000/AV$236*100","v":59.816555205907648},{"$f":"(SUMPRODUCT(AW$9:AW$229,Nutrients!$CY$8:$CY$228)+(IF($A$7=Nutrients!$B$8,Nutrients!$CY$8,Nutrients!$CY$9)*AW$7)+(((IF($A$8=Nutrients!$B$79,Nutrients!$CY$79,(IF($A$8=Nutrients!$B$77,Nutrients!$CY$77,Nutrients!$CY$78)))))*AW$8))/2000/AW$236*100","v":59.847783697455348}]
["  Leu:Lys",{"$f":"(SUMPRODUCT(B$9:B$229,Nutrients!$CZ$8:$CZ$228)+(IF($A$7=Nutrients!$B$8,Nutrients!$CZ$8,Nutrients!$CZ$9)*B$7)+(((IF($A$8=Nutrients!$B$79,Nutrients!$CZ$79,(IF($A$8=Nutrients!$B$77,Nutrients!$CZ$77,Nutrients!$CZ$78)))))*B$8))/2000/B$236*100","v":129.6913711527971},{"$f":"(SUMPRODUCT(C$9:C$229,Nutrients!$CZ$8:$CZ$228)+(IF($A$7=Nutrients!$B$8,Nutrients!$CZ$8,Nutrients!$CZ$9)*C$7)+(((IF($A$8=Nutrients!$B$79,Nutrients!$CZ$79,(IF($A$8=Nutrients!$B$77,Nutrients!$CZ$77,Nutrients!$CZ$78)))))*C$8))/2000/C$236*100","v":134.50017414165401},{"$f":"(SUMPRODUCT(D$9:D$229,Nutrients!$CZ$8:$CZ$228)+(IF($A$7=Nutrients!$B$8,Nutrients!$CZ$8,Nutrients!$CZ$9)*D$7)+(((IF($A$8=Nutrients!$B$79,Nutrients!$CZ$79,(IF($A$8=Nutrients!$B$77,Nutrients!$CZ$77,Nutrients!$CZ$78)))))*D$8))/2000/D$236*100","v":140.31419316632173},{"$f":"(SUMPRODUCT(E$9:E$229,Nutrients!$CZ$8:$CZ$228)+(IF($A$7=Nutrients!$B$8,Nutrients!$CZ$8,Nutrients!$CZ$9)*E$7)+(((IF($A$8=Nutrients!$B$79,Nutrients!$CZ$79,(IF($A$8=Nutrients!$B$77,Nutrients!$CZ$77,Nutrients!$CZ$78)))))*E$8))/2000/E$236*100","v":146.22101496424654},{"$f":"(SUMPRODUCT(F$9:F$229,Nutrients!$CZ$8:$CZ$228)+(IF($A$7=Nutrients!$B$8,Nutrients!$CZ$8,Nutrients!$CZ$9)*F$7)+(((IF($A$8=Nutrients!$B$79,Nutrients!$CZ$79,(IF($A$8=Nutrients!$B$77,Nutrients!$CZ$77,Nutrients!$CZ$78)))))*F$8))/2000/F$236*100","v":151.50724048169781},{"$f":"(SUMPRODUCT(G$9:G$229,Nutrients!$CZ$8:$CZ$228)+(IF($A$7=Nutrients!$B$8,Nutrients!$CZ$8,Nutrients!$CZ$9)*G$7)+(((IF($A$8=Nutrients!$B$79,Nutrients!$CZ$79,(IF($A$8=Nutrients!$B$77,Nutrients!$CZ$77,Nutrients!$CZ$78)))))*G$8))/2000/G$236*100","v":155.21195132466949},null,{"$f":"(SUMPRODUCT(I$9:I$229,Nutrients!$CZ$8:$CZ$228)+(IF($A$7=Nutrients!$B$8,Nutrients!$CZ$8,Nutrients!$CZ$9)*I$7)+(((IF($A$8=Nutrients!$B$79,Nutrients!$CZ$79,(IF($A$8=Nutrients!$B$77,Nutrients!$CZ$77,Nutrients!$CZ$78)))))*I$8))/2000/I$236*100","v":134.56232551895525},{"$f":"(SUMPRODUCT(J$9:J$229,Nutrients!$CZ$8:$CZ$228)+(IF($A$7=Nutrients!$B$8,Nutrients!$CZ$8,Nutrients!$CZ$9)*J$7)+(((IF($A$8=Nutrients!$B$79,Nutrients!$CZ$79,(IF($A$8=Nutrients!$B$77,Nutrients!$CZ$77,Nutrients!$CZ$78)))))*J$8))/2000/J$236*100","v":140.00508375280262},{"$f":"(SUMPRODUCT(K$9:K$229,Nutrients!$CZ$8:$CZ$228)+(IF($A$7=Nutrients!$B$8,Nutrients!$CZ$8,Nutrients!$CZ$9)*K$7)+(((IF($A$8=Nutrients!$B$79,Nutrients!$CZ$79,(IF($A$8=Nutrients!$B$77,Nutrients!$CZ$77,Nutrients!$CZ$78)))))*K$8))/2000/K$236*100","v":146.55095606441481},{"$f":"(SUMPRODUCT(L$9:L$229,Nutrients!$CZ$8:$CZ$228)+(IF($A$7=Nutrients!$B$8,Nutrients!$CZ$8,Nutrients!$CZ$9)*L$7)+(((IF($A$8=Nutrients!$B$79,Nutrients!$CZ$79,(IF($A$8=Nutrients!$B$77,Nutrients!$CZ$77,Nutrients!$CZ$78)))))*L$8))/2000/L$236*100","v":153.23338373102735},{"$f":"(SUMPRODUCT(M$9:M$229,Nutrients!$CZ$8:$CZ$228)+(IF($A$7=Nutrients!$B$8,Nutrients!$CZ$8,Nutrients!$CZ$9)*M$7)+(((IF($A$8=Nutrients!$B$79,Nutrients!$CZ$79,(IF($A$8=Nutrients!$B$77,Nutrients!$CZ$77,Nutrients!$CZ$78)))))*M$8))/2000/M$236*100","v":159.15104950751015},{"$f":"(SUMPRODUCT(N$9:N$229,Nutrients!$CZ$8:$CZ$228)+(IF($A$7=Nutrients!$B$8,Nutrients!$CZ$8,Nutrients!$CZ$9)*N$7)+(((IF($A$8=Nutrients!$B$79,Nutrients!$CZ$79,(IF($A$8=Nutrients!$B$77,Nutrients!$CZ$77,Nutrients!$CZ$78)))))*N$8))/2000/N$236*100","v":163.27167445551865},null,{"$f":"(SUMPRODUCT(P$9:P$229,Nutrients!$CZ$8:$CZ$228)+(IF($A$7=Nutrients!$B$8,Nutrients!$CZ$8,Nutrients!$CZ$9)*P$7)+(((IF($A$8=Nutrients!$B$79,Nutrients!$CZ$79,(IF($A$8=Nutrients!$B$77,Nutrients!$CZ$77,Nutrients!$CZ$78)))))*P$8))/2000/P$236*100","v":139.4327253106118},{"$f":"(SUMPRODUCT(Q$9:Q$229,Nutrients!$CZ$8:$CZ$228)+(IF($A$7=Nutrients!$B$8,Nutrients!$CZ$8,Nutrients!$CZ$9)*Q$7)+(((IF($A$8=Nutrients!$B$79,Nutrients!$CZ$79,(IF($A$8=Nutrients!$B$77,Nutrients!$CZ$77,Nutrients!$CZ$78)))))*Q$8))/2000/Q$236*100","v":145.5123450176107},{"$f":"(SUMPRODUCT(R$9:R$229,Nutrients!$CZ$8:$CZ$228)+(IF($A$7=Nutrients!$B$8,Nutrients!$CZ$8,Nutrients!$CZ$9)*R$7)+(((IF($A$8=Nutrients!$B$79,Nutrients!$CZ$79,(IF($A$8=Nutrients!$B$77,Nutrients!$CZ$77,Nutrients!$CZ$78)))))*R$8))/2000/R$236*100","v":152.77983654334179},{"$f":"(SUMPRODUCT(S$9:S$229,Nutrients!$CZ$8:$CZ$228)+(IF($A$7=Nutrients!$B$8,Nutrients!$CZ$8,Nutrients!$CZ$9)*S$7)+(((IF($A$8=Nutrients!$B$79,Nutrients!$CZ$79,(IF($A$8=Nutrients!$B$77,Nutrients!$CZ$77,Nutrients!$CZ$78)))))*S$8))/2000/S$236*100","v":160.22366423100931},{"$f":"(SUMPRODUCT(T$9:T$229,Nutrients!$CZ$8:$CZ$228)+(IF($A$7=Nutrients!$B$8,Nutrients!$CZ$8,Nutrients!$CZ$9)*T$7)+(((IF($A$8=Nutrients!$B$79,Nutrients!$CZ$79,(IF($A$8=Nutrients!$B$77,Nutrients!$CZ$77,Nutrients!$CZ$78)))))*T$8))/2000/T$236*100","v":166.77939706391049},{"$f":"(SUMPRODUCT(U$9:U$229,Nutrients!$CZ$8:$CZ$228)+(IF($A$7=Nutrients!$B$8,Nutrients!$CZ$8,Nutrients!$CZ$9)*U$7)+(((IF($A$8=Nutrients!$B$79,Nutrients!$CZ$79,(IF($A$8=Nutrients!$B$77,Nutrients!$CZ$77,Nutrients!$CZ$78)))))*U$8))/2000/U$236*100","v":171.30443902067515},null,{"$f":"(SUMPRODUCT(W$9:W$229,Nutrients!$CZ$8:$CZ$228)+(IF($A$7=Nutrients!$B$8,Nutrients!$CZ$8,Nutrients!$CZ$9)*W$7)+(((IF($A$8=Nutrients!$B$79,Nutrients!$CZ$79,(IF($A$8=Nutrients!$B$77,Nutrients!$CZ$77,Nutrients!$CZ$78)))))*W$8))/2000/W$236*100","v":144.30229544470393},{"$f":"(SUMPRODUCT(X$9:X$229,Nutrients!$CZ$8:$CZ$228)+(IF($A$7=Nutrients!$B$8,Nutrients!$CZ$8,Nutrients!$CZ$9)*X$7)+(((IF($A$8=Nutrients!$B$79,Nutrients!$CZ$79,(IF($A$8=Nutrients!$B$77,Nutrients!$CZ$77,Nutrients!$CZ$78)))))*X$8))/2000/X$236*100","v":151.01848004607058},{"$f":"(SUMPRODUCT(Y$9:Y$229,Nutrients!$CZ$8:$CZ$228)+(IF($A$7=Nutrients!$B$8,Nutrients!$CZ$8,Nutrients!$CZ$9)*Y$7)+(((IF($A$8=Nutrients!$B$79,Nutrients!$CZ$79,(IF($A$8=Nutrients!$B$77,Nutrients!$CZ$77,Nutrients!$CZ$78)))))*Y$8))/2000/Y$236*100","v":159.01175842826166},{"$f":"(SUMPRODUCT(Z$9:Z$229,Nutrients!$CZ$8:$CZ$228)+(IF($A$7=Nutrients!$B$8,Nutrients!$CZ$8,Nutrients!$CZ$9)*Z$7)+(((IF($A$8=Nutrients!$B$79,Nutrients!$CZ$79,(IF($A$8=Nutrients!$B$77,Nutrients!$CZ$77,Nutrients!$CZ$78)))))*Z$8))/2000/Z$236*100","v":167.21812478571871},{"$f":"(SUMPRODUCT(AA$9:AA$229,Nutrients!$CZ$8:$CZ$228)+(IF($A$7=Nutrients!$B$8,Nutrients!$CZ$8,Nutrients!$CZ$9)*AA$7)+(((IF($A$8=Nutrients!$B$79,Nutrients!$CZ$79,(IF($A$8=Nutrients!$B$77,Nutrients!$CZ$77,Nutrients!$CZ$78)))))*AA$8))/2000/AA$236*100","v":174.40468201573708},{"$f":"(SUMPRODUCT(AB$9:AB$229,Nutrients!$CZ$8:$CZ$228)+(IF($A$7=Nutrients!$B$8,Nutrients!$CZ$8,Nutrients!$CZ$9)*AB$7)+(((IF($A$8=Nutrients!$B$79,Nutrients!$CZ$79,(IF($A$8=Nutrients!$B$77,Nutrients!$CZ$77,Nutrients!$CZ$78)))))*AB$8))/2000/AB$236*100","v":179.30030496025222},null,{"$f":"(SUMPRODUCT(AD$9:AD$229,Nutrients!$CZ$8:$CZ$228)+(IF($A$7=Nutrients!$B$8,Nutrients!$CZ$8,Nutrients!$CZ$9)*AD$7)+(((IF($A$8=Nutrients!$B$79,Nutrients!$CZ$79,(IF($A$8=Nutrients!$B$77,Nutrients!$CZ$77,Nutrients!$CZ$78)))))*AD$8))/2000/AD$236*100","v":149.17084730990732},{"$f":"(SUMPRODUCT(AE$9:AE$229,Nutrients!$CZ$8:$CZ$228)+(IF($A$7=Nutrients!$B$8,Nutrients!$CZ$8,Nutrients!$CZ$9)*AE$7)+(((IF($A$8=Nutrients!$B$79,Nutrients!$CZ$79,(IF($A$8=Nutrients!$B$77,Nutrients!$CZ$77,Nutrients!$CZ$78)))))*AE$8))/2000/AE$236*100","v":156.52534830405881},{"$f":"(SUMPRODUCT(AF$9:AF$229,Nutrients!$CZ$8:$CZ$228)+(IF($A$7=Nutrients!$B$8,Nutrients!$CZ$8,Nutrients!$CZ$9)*AF$7)+(((IF($A$8=Nutrients!$B$79,Nutrients!$CZ$79,(IF($A$8=Nutrients!$B$77,Nutrients!$CZ$77,Nutrients!$CZ$78)))))*AF$8))/2000/AF$236*100","v":165.2470026389943},{"$f":"(SUMPRODUCT(AG$9:AG$229,Nutrients!$CZ$8:$CZ$228)+(IF($A$7=Nutrients!$B$8,Nutrients!$CZ$8,Nutrients!$CZ$9)*AG$7)+(((IF($A$8=Nutrients!$B$79,Nutrients!$CZ$79,(IF($A$8=Nutrients!$B$77,Nutrients!$CZ$77,Nutrients!$CZ$78)))))*AG$8))/2000/AG$236*100","v":174.20090133518505},{"$f":"(SUMPRODUCT(AH$9:AH$229,Nutrients!$CZ$8:$CZ$228)+(IF($A$7=Nutrients!$B$8,Nutrients!$CZ$8,Nutrients!$CZ$9)*AH$7)+(((IF($A$8=Nutrients!$B$79,Nutrients!$CZ$79,(IF($A$8=Nutrients!$B$77,Nutrients!$CZ$77,Nutrients!$CZ$78)))))*AH$8))/2000/AH$236*100","v":181.92889439664049},{"$f":"(SUMPRODUCT(AI$9:AI$229,Nutrients!$CZ$8:$CZ$228)+(IF($A$7=Nutrients!$B$8,Nutrients!$CZ$8,Nutrients!$CZ$9)*AI$7)+(((IF($A$8=Nutrients!$B$79,Nutrients!$CZ$79,(IF($A$8=Nutrients!$B$77,Nutrients!$CZ$77,Nutrients!$CZ$78)))))*AI$8))/2000/AI$236*100","v":187.189535269196},null,{"$f":"(SUMPRODUCT(AK$9:AK$229,Nutrients!$CZ$8:$CZ$228)+(IF($A$7=Nutrients!$B$8,Nutrients!$CZ$8,Nutrients!$CZ$9)*AK$7)+(((IF($A$8=Nutrients!$B$79,Nutrients!$CZ$79,(IF($A$8=Nutrients!$B$77,Nutrients!$CZ$77,Nutrients!$CZ$78)))))*AK$8))/2000/AK$236*100","v":154.03225481802451},{"$f":"(SUMPRODUCT(AL$9:AL$229,Nutrients!$CZ$8:$CZ$228)+(IF($A$7=Nutrients!$B$8,Nutrients!$CZ$8,Nutrients!$CZ$9)*AL$7)+(((IF($A$8=Nutrients!$B$79,Nutrients!$CZ$79,(IF($A$8=Nutrients!$B$77,Nutrients!$CZ$77,Nutrients!$CZ$78)))))*AL$8))/2000/AL$236*100","v":162.03233580156376},{"$f":"(SUMPRODUCT(AM$9:AM$229,Nutrients!$CZ$8:$CZ$228)+(IF($A$7=Nutrients!$B$8,Nutrients!$CZ$8,Nutrients!$CZ$9)*AM$7)+(((IF($A$8=Nutrients!$B$79,Nutrients!$CZ$79,(IF($A$8=Nutrients!$B$77,Nutrients!$CZ$77,Nutrients!$CZ$78)))))*AM$8))/2000/AM$236*100","v":171.47235890320985},{"$f":"(SUMPRODUCT(AN$9:AN$229,Nutrients!$CZ$8:$CZ$228)+(IF($A$7=Nutrients!$B$8,Nutrients!$CZ$8,Nutrients!$CZ$9)*AN$7)+(((IF($A$8=Nutrients!$B$79,Nutrients!$CZ$79,(IF($A$8=Nutrients!$B$77,Nutrients!$CZ$77,Nutrients!$CZ$78)))))*AN$8))/2000/AN$236*100","v":181.10403778046711},{"$f":"(SUMPRODUCT(AO$9:AO$229,Nutrients!$CZ$8:$CZ$228)+(IF($A$7=Nutrients!$B$8,Nutrients!$CZ$8,Nutrients!$CZ$9)*AO$7)+(((IF($A$8=Nutrients!$B$79,Nutrients!$CZ$79,(IF($A$8=Nutrients!$B$77,Nutrients!$CZ$77,Nutrients!$CZ$78)))))*AO$8))/2000/AO$236*100","v":189.4275961660008},{"$f":"(SUMPRODUCT(AP$9:AP$229,Nutrients!$CZ$8:$CZ$228)+(IF($A$7=Nutrients!$B$8,Nutrients!$CZ$8,Nutrients!$CZ$9)*AP$7)+(((IF($A$8=Nutrients!$B$79,Nutrients!$CZ$79,(IF($A$8=Nutrients!$B$77,Nutrients!$CZ$77,Nutrients!$CZ$78)))))*AP$8))/2000/AP$236*100","v":195.08761596512474},null,{"$f":"(SUMPRODUCT(AR$9:AR$229,Nutrients!$CZ$8:$CZ$228)+(IF($A$7=Nutrients!$B$8,Nutrients!$CZ$8,Nutrients!$CZ$9)*AR$7)+(((IF($A$8=Nutrients!$B$79,Nutrients!$CZ$79,(IF($A$8=Nutrients!$B$77,Nutrients!$CZ$77,Nutrients!$CZ$78)))))*AR$8))/2000/AR$236*100","v":158.90440074912598},{"$f":"(SUMPRODUCT(AS$9:AS$229,Nutrients!$CZ$8:$CZ$228)+(IF($A$7=Nutrients!$B$8,Nutrients!$CZ$8,Nutrients!$CZ$9)*AS$7)+(((IF($A$8=Nutrients!$B$79,Nutrients!$CZ$79,(IF($A$8=Nutrients!$B$77,Nutrients!$CZ$77,Nutrients!$CZ$78)))))*AS$8))/2000/AS$236*100","v":167.53925759303195},{"$f":"(SUMPRODUCT(AT$9:AT$229,Nutrients!$CZ$8:$CZ$228)+(IF($A$7=Nutrients!$B$8,Nutrients!$CZ$8,Nutrients!$CZ$9)*AT$7)+(((IF($A$8=Nutrients!$B$79,Nutrients!$CZ$79,(IF($A$8=Nutrients!$B$77,Nutrients!$CZ$77,Nutrients!$CZ$78)))))*AT$8))/2000/AT$236*100","v":177.67916443061296},{"$f":"(SUMPRODUCT(AU$9:AU$229,Nutrients!$CZ$8:$CZ$228)+(IF($A$7=Nutrients!$B$8,Nutrients!$CZ$8,Nutrients!$CZ$9)*AU$7)+(((IF($A$8=Nutrients!$B$79,Nutrients!$CZ$79,(IF($A$8=Nutrients!$B$77,Nutrients!$CZ$77,Nutrients!$CZ$78)))))*AU$8))/2000/AU$236*100","v":187.97363134678471},{"$f":"(SUMPRODUCT(AV$9:AV$229,Nutrients!$CZ$8:$CZ$228)+(IF($A$7=Nutrients!$B$8,Nutrients!$CZ$8,Nutrients!$CZ$9)*AV$7)+(((IF($A$8=Nutrients!$B$79,Nutrients!$CZ$79,(IF($A$8=Nutrients!$B$77,Nutrients!$CZ$77,Nutrients!$CZ$78)))))*AV$8))/2000/AV$236*100","v":196.92446370927058},{"$f":"(SUMPRODUCT(AW$9:AW$229,Nutrients!$CZ$8:$CZ$228)+(IF($A$7=Nutrients!$B$8,Nutrients!$CZ$8,Nutrients!$CZ$9)*AW$7)+(((IF($A$8=Nutrients!$B$79,Nutrients!$CZ$79,(IF($A$8=Nutrients!$B$77,Nutrients!$CZ$77,Nutrients!$CZ$78)))))*AW$8))/2000/AW$236*100","v":202.98385118035674}]
["  Met:Lys",{"$f":"(SUMPRODUCT(B$9:B$229,Nutrients!$DB$8:$DB$228)+(IF($A$7=Nutrients!$B$8,Nutrients!$DB$8,Nutrients!$DB$9)*B$7)+(((IF($A$8=Nutrients!$B$79,Nutrients!$DB$79,(IF($A$8=Nutrients!$B$77,Nutrients!$DB$77,Nutrients!$DB$78)))))*B$8))/2000/B$236*100","v":32.176483378772197},{"$f":"(SUMPRODUCT(C$9:C$229,Nutrients!$DB$8:$DB$228)+(IF($A$7=Nutrients!$B$8,Nutrients!$DB$8,Nutrients!$DB$9)*C$7)+(((IF($A$8=Nutrients!$B$79,Nutrients!$DB$79,(IF($A$8=Nutrients!$B$77,Nutrients!$DB$77,Nutrients!$DB$78)))))*C$8))/2000/C$236*100","v":31.3204641187241},{"$f":"(SUMPRODUCT(D$9:D$229,Nutrients!$DB$8:$DB$228)+(IF($A$7=Nutrients!$B$8,Nutrients!$DB$8,Nutrients!$DB$9)*D$7)+(((IF($A$8=Nutrients!$B$79,Nutrients!$DB$79,(IF($A$8=Nutrients!$B$77,Nutrients!$DB$77,Nutrients!$DB$78)))))*D$8))/2000/D$236*100","v":30.28033378224459},{"$f":"(SUMPRODUCT(E$9:E$229,Nutrients!$DB$8:$DB$228)+(IF($A$7=Nutrients!$B$8,Nutrients!$DB$8,Nutrients!$DB$9)*E$7)+(((IF($A$8=Nutrients!$B$79,Nutrients!$DB$79,(IF($A$8=Nutrients!$B$77,Nutrients!$DB$77,Nutrients!$DB$78)))))*E$8))/2000/E$236*100","v":30.221879794096772},{"$f":"(SUMPRODUCT(F$9:F$229,Nutrients!$DB$8:$DB$228)+(IF($A$7=Nutrients!$B$8,Nutrients!$DB$8,Nutrients!$DB$9)*F$7)+(((IF($A$8=Nutrients!$B$79,Nutrients!$DB$79,(IF($A$8=Nutrients!$B$77,Nutrients!$DB$77,Nutrients!$DB$78)))))*F$8))/2000/F$236*100","v":29.27572686201405},{"$f":"(SUMPRODUCT(G$9:G$229,Nutrients!$DB$8:$DB$228)+(IF($A$7=Nutrients!$B$8,Nutrients!$DB$8,Nutrients!$DB$9)*G$7)+(((IF($A$8=Nutrients!$B$79,Nutrients!$DB$79,(IF($A$8=Nutrients!$B$77,Nutrients!$DB$77,Nutrients!$DB$78)))))*G$8))/2000/G$236*100","v":29.609559948404552},null,{"$f":"(SUMPRODUCT(I$9:I$229,Nutrients!$DB$8:$DB$228)+(IF($A$7=Nutrients!$B$8,Nutrients!$DB$8,Nutrients!$DB$9)*I$7)+(((IF($A$8=Nutrients!$B$79,Nutrients!$DB$79,(IF($A$8=Nutrients!$B$77,Nutrients!$DB$77,Nutrients!$DB$78)))))*I$8))/2000/I$236*100","v":32.0801604012985},{"$f":"(SUMPRODUCT(J$9:J$229,Nutrients!$DB$8:$DB$228)+(IF($A$7=Nutrients!$B$8,Nutrients!$DB$8,Nutrients!$DB$9)*J$7)+(((IF($A$8=Nutrients!$B$79,Nutrients!$DB$79,(IF($A$8=Nutrients!$B$77,Nutrients!$DB$77,Nutrients!$DB$78)))))*J$8))/2000/J$236*100","v":31.207642776712923},{"$f":"(SUMPRODUCT(K$9:K$229,Nutrients!$DB$8:$DB$228)+(IF($A$7=Nutrients!$B$8,Nutrients!$DB$8,Nutrients!$DB$9)*K$7)+(((IF($A$8=Nutrients!$B$79,Nutrients!$DB$79,(IF($A$8=Nutrients!$B$77,Nutrients!$DB$77,Nutrients!$DB$78)))))*K$8))/2000/K$236*100","v":30.153097805455591},{"$f":"(SUMPRODUCT(L$9:L$229,Nutrients!$DB$8:$DB$228)+(IF($A$7=Nutrients!$B$8,Nutrients!$DB$8,Nutrients!$DB$9)*L$7)+(((IF($A$8=Nutrients!$B$79,Nutrients!$DB$79,(IF($A$8=Nutrients!$B$77,Nutrients!$DB$77,Nutrients!$DB$78)))))*L$8))/2000/L$236*100","v":30.073693586144433},{"$f":"(SUMPRODUCT(M$9:M$229,Nutrients!$DB$8:$DB$228)+(IF($A$7=Nutrients!$B$8,Nutrients!$DB$8,Nutrients!$DB$9)*M$7)+(((IF($A$8=Nutrients!$B$79,Nutrients!$DB$79,(IF($A$8=Nutrients!$B$77,Nutrients!$DB$77,Nutrients!$DB$78)))))*M$8))/2000/M$236*100","v":29.113261808370495},{"$f":"(SUMPRODUCT(N$9:N$229,Nutrients!$DB$8:$DB$228)+(IF($A$7=Nutrients!$B$8,Nutrients!$DB$8,Nutrients!$DB$9)*N$7)+(((IF($A$8=Nutrients!$B$79,Nutrients!$DB$79,(IF($A$8=Nutrients!$B$77,Nutrients!$DB$77,Nutrients!$DB$78)))))*N$8))/2000/N$236*100","v":29.436443536647122},null,{"$f":"(SUMPRODUCT(P$9:P$229,Nutrients!$DB$8:$DB$228)+(IF($A$7=Nutrients!$B$8,Nutrients!$DB$8,Nutrients!$DB$9)*P$7)+(((IF($A$8=Nutrients!$B$79,Nutrients!$DB$79,(IF($A$8=Nutrients!$B$77,Nutrients!$DB$77,Nutrients!$DB$78)))))*P$8))/2000/P$236*100","v":31.966405640194296},{"$f":"(SUMPRODUCT(Q$9:Q$229,Nutrients!$DB$8:$DB$228)+(IF($A$7=Nutrients!$B$8,Nutrients!$DB$8,Nutrients!$DB$9)*Q$7)+(((IF($A$8=Nutrients!$B$79,Nutrients!$DB$79,(IF($A$8=Nutrients!$B$77,Nutrients!$DB$77,Nutrients!$DB$78)))))*Q$8))/2000/Q$236*100","v":31.078776028184059},{"$f":"(SUMPRODUCT(R$9:R$229,Nutrients!$DB$8:$DB$228)+(IF($A$7=Nutrients!$B$8,Nutrients!$DB$8,Nutrients!$DB$9)*R$7)+(((IF($A$8=Nutrients!$B$79,Nutrients!$DB$79,(IF($A$8=Nutrients!$B$77,Nutrients!$DB$77,Nutrients!$DB$78)))))*R$8))/2000/R$236*100","v":30.006940373496171},{"$f":"(SUMPRODUCT(S$9:S$229,Nutrients!$DB$8:$DB$228)+(IF($A$7=Nutrients!$B$8,Nutrients!$DB$8,Nutrients!$DB$9)*S$7)+(((IF($A$8=Nutrients!$B$79,Nutrients!$DB$79,(IF($A$8=Nutrients!$B$77,Nutrients!$DB$77,Nutrients!$DB$78)))))*S$8))/2000/S$236*100","v":29.909849199136662},{"$f":"(SUMPRODUCT(T$9:T$229,Nutrients!$DB$8:$DB$228)+(IF($A$7=Nutrients!$B$8,Nutrients!$DB$8,Nutrients!$DB$9)*T$7)+(((IF($A$8=Nutrients!$B$79,Nutrients!$DB$79,(IF($A$8=Nutrients!$B$77,Nutrients!$DB$77,Nutrients!$DB$78)))))*T$8))/2000/T$236*100","v":29.415789251911157},{"$f":"(SUMPRODUCT(U$9:U$229,Nutrients!$DB$8:$DB$228)+(IF($A$7=Nutrients!$B$8,Nutrients!$DB$8,Nutrients!$DB$9)*U$7)+(((IF($A$8=Nutrients!$B$79,Nutrients!$DB$79,(IF($A$8=Nutrients!$B$77,Nutrients!$DB$77,Nutrients!$DB$78)))))*U$8))/2000/U$236*100","v":30.157229169170179},null,{"$f":"(SUMPRODUCT(W$9:W$229,Nutrients!$DB$8:$DB$228)+(IF($A$7=Nutrients!$B$8,Nutrients!$DB$8,Nutrients!$DB$9)*W$7)+(((IF($A$8=Nutrients!$B$79,Nutrients!$DB$79,(IF($A$8=Nutrients!$B$77,Nutrients!$DB$77,Nutrients!$DB$78)))))*W$8))/2000/W$236*100","v":31.852504772659273},{"$f":"(SUMPRODUCT(X$9:X$229,Nutrients!$DB$8:$DB$228)+(IF($A$7=Nutrients!$B$8,Nutrients!$DB$8,Nutrients!$DB$9)*X$7)+(((IF($A$8=Nutrients!$B$79,Nutrients!$DB$79,(IF($A$8=Nutrients!$B$77,Nutrients!$DB$77,Nutrients!$DB$78)))))*X$8))/2000/X$236*100","v":30.949710944365837},{"$f":"(SUMPRODUCT(Y$9:Y$229,Nutrients!$DB$8:$DB$228)+(IF($A$7=Nutrients!$B$8,Nutrients!$DB$8,Nutrients!$DB$9)*Y$7)+(((IF($A$8=Nutrients!$B$79,Nutrients!$DB$79,(IF($A$8=Nutrients!$B$77,Nutrients!$DB$77,Nutrients!$DB$78)))))*Y$8))/2000/Y$236*100","v":29.861318546819405},{"$f":"(SUMPRODUCT(Z$9:Z$229,Nutrients!$DB$8:$DB$228)+(IF($A$7=Nutrients!$B$8,Nutrients!$DB$8,Nutrients!$DB$9)*Z$7)+(((IF($A$8=Nutrients!$B$79,Nutrients!$DB$79,(IF($A$8=Nutrients!$B$77,Nutrients!$DB$77,Nutrients!$DB$78)))))*Z$8))/2000/Z$236*100","v":29.211961491766676},{"$f":"(SUMPRODUCT(AA$9:AA$229,Nutrients!$DB$8:$DB$228)+(IF($A$7=Nutrients!$B$8,Nutrients!$DB$8,Nutrients!$DB$9)*AA$7)+(((IF($A$8=Nutrients!$B$79,Nutrients!$DB$79,(IF($A$8=Nutrients!$B$77,Nutrients!$DB$77,Nutrients!$DB$78)))))*AA$8))/2000/AA$236*100","v":30.347983729088213},{"$f":"(SUMPRODUCT(AB$9:AB$229,Nutrients!$DB$8:$DB$228)+(IF($A$7=Nutrients!$B$8,Nutrients!$DB$8,Nutrients!$DB$9)*AB$7)+(((IF($A$8=Nutrients!$B$79,Nutrients!$DB$79,(IF($A$8=Nutrients!$B$77,Nutrients!$DB$77,Nutrients!$DB$78)))))*AB$8))/2000/AB$236*100","v":31.132770190745102},null,{"$f":"(SUMPRODUCT(AD$9:AD$229,Nutrients!$DB$8:$DB$228)+(IF($A$7=Nutrients!$B$8,Nutrients!$DB$8,Nutrients!$DB$9)*AD$7)+(((IF($A$8=Nutrients!$B$79,Nutrients!$DB$79,(IF($A$8=Nutrients!$B$77,Nutrients!$DB$77,Nutrients!$DB$78)))))*AD$8))/2000/AD$236*100","v":31.738424583390419},{"$f":"(SUMPRODUCT(AE$9:AE$229,Nutrients!$DB$8:$DB$228)+(IF($A$7=Nutrients!$B$8,Nutrients!$DB$8,Nutrients!$DB$9)*AE$7)+(((IF($A$8=Nutrients!$B$79,Nutrients!$DB$79,(IF($A$8=Nutrients!$B$77,Nutrients!$DB$77,Nutrients!$DB$78)))))*AE$8))/2000/AE$236*100","v":30.82077498556734},{"$f":"(SUMPRODUCT(AF$9:AF$229,Nutrients!$DB$8:$DB$228)+(IF($A$7=Nutrients!$B$8,Nutrients!$DB$8,Nutrients!$DB$9)*AF$7)+(((IF($A$8=Nutrients!$B$79,Nutrients!$DB$79,(IF($A$8=Nutrients!$B$77,Nutrients!$DB$77,Nutrients!$DB$78)))))*AF$8))/2000/AF$236*100","v":28.687588705636323},{"$f":"(SUMPRODUCT(AG$9:AG$229,Nutrients!$DB$8:$DB$228)+(IF($A$7=Nutrients!$B$8,Nutrients!$DB$8,Nutrients!$DB$9)*AG$7)+(((IF($A$8=Nutrients!$B$79,Nutrients!$DB$79,(IF($A$8=Nutrients!$B$77,Nutrients!$DB$77,Nutrients!$DB$78)))))*AG$8))/2000/AG$236*100","v":30.065476379038152},{"$f":"(SUMPRODUCT(AH$9:AH$229,Nutrients!$DB$8:$DB$228)+(IF($A$7=Nutrients!$B$8,Nutrients!$DB$8,Nutrients!$DB$9)*AH$7)+(((IF($A$8=Nutrients!$B$79,Nutrients!$DB$79,(IF($A$8=Nutrients!$B$77,Nutrients!$DB$77,Nutrients!$DB$78)))))*AH$8))/2000/AH$236*100","v":31.262378871666812},{"$f":"(SUMPRODUCT(AI$9:AI$229,Nutrients!$DB$8:$DB$228)+(IF($A$7=Nutrients!$B$8,Nutrients!$DB$8,Nutrients!$DB$9)*AI$7)+(((IF($A$8=Nutrients!$B$79,Nutrients!$DB$79,(IF($A$8=Nutrients!$B$77,Nutrients!$DB$77,Nutrients!$DB$78)))))*AI$8))/2000/AI$236*100","v":32.089532197871073},null,{"$f":"(SUMPRODUCT(AK$9:AK$229,Nutrients!$DB$8:$DB$228)+(IF($A$7=Nutrients!$B$8,Nutrients!$DB$8,Nutrients!$DB$9)*AK$7)+(((IF($A$8=Nutrients!$B$79,Nutrients!$DB$79,(IF($A$8=Nutrients!$B$77,Nutrients!$DB$77,Nutrients!$DB$78)))))*AK$8))/2000/AK$236*100","v":31.623086240686789},{"$f":"(SUMPRODUCT(AL$9:AL$229,Nutrients!$DB$8:$DB$228)+(IF($A$7=Nutrients!$B$8,Nutrients!$DB$8,Nutrients!$DB$9)*AL$7)+(((IF($A$8=Nutrients!$B$79,Nutrients!$DB$79,(IF($A$8=Nutrients!$B$77,Nutrients!$DB$77,Nutrients!$DB$78)))))*AL$8))/2000/AL$236*100","v":30.691860025384344},{"$f":"(SUMPRODUCT(AM$9:AM$229,Nutrients!$DB$8:$DB$228)+(IF($A$7=Nutrients!$B$8,Nutrients!$DB$8,Nutrients!$DB$9)*AM$7)+(((IF($A$8=Nutrients!$B$79,Nutrients!$DB$79,(IF($A$8=Nutrients!$B$77,Nutrients!$DB$77,Nutrients!$DB$78)))))*AM$8))/2000/AM$236*100","v":29.448650389782909},{"$f":"(SUMPRODUCT(AN$9:AN$229,Nutrients!$DB$8:$DB$228)+(IF($A$7=Nutrients!$B$8,Nutrients!$DB$8,Nutrients!$DB$9)*AN$7)+(((IF($A$8=Nutrients!$B$79,Nutrients!$DB$79,(IF($A$8=Nutrients!$B$77,Nutrients!$DB$77,Nutrients!$DB$78)))))*AN$8))/2000/AN$236*100","v":30.904966285556849},{"$f":"(SUMPRODUCT(AO$9:AO$229,Nutrients!$DB$8:$DB$228)+(IF($A$7=Nutrients!$B$8,Nutrients!$DB$8,Nutrients!$DB$9)*AO$7)+(((IF($A$8=Nutrients!$B$79,Nutrients!$DB$79,(IF($A$8=Nutrients!$B$77,Nutrients!$DB$77,Nutrients!$DB$78)))))*AO$8))/2000/AO$236*100","v":32.172281480746761},{"$f":"(SUMPRODUCT(AP$9:AP$229,Nutrients!$DB$8:$DB$228)+(IF($A$7=Nutrients!$B$8,Nutrients!$DB$8,Nutrients!$DB$9)*AP$7)+(((IF($A$8=Nutrients!$B$79,Nutrients!$DB$79,(IF($A$8=Nutrients!$B$77,Nutrients!$DB$77,Nutrients!$DB$78)))))*AP$8))/2000/AP$236*100","v":33.047852797974663},null,{"$f":"(SUMPRODUCT(AR$9:AR$229,Nutrients!$DB$8:$DB$228)+(IF($A$7=Nutrients!$B$8,Nutrients!$DB$8,Nutrients!$DB$9)*AR$7)+(((IF($A$8=Nutrients!$B$79,Nutrients!$DB$79,(IF($A$8=Nutrients!$B$77,Nutrients!$DB$77,Nutrients!$DB$78)))))*AR$8))/2000/AR$236*100","v":31.509638982597028},{"$f":"(SUMPRODUCT(AS$9:AS$229,Nutrients!$DB$8:$DB$228)+(IF($A$7=Nutrients!$B$8,Nutrients!$DB$8,Nutrients!$DB$9)*AS$7)+(((IF($A$8=Nutrients!$B$79,Nutrients!$DB$79,(IF($A$8=Nutrients!$B$77,Nutrients!$DB$77,Nutrients!$DB$78)))))*AS$8))/2000/AS$236*100","v":30.562933494072574},{"$f":"(SUMPRODUCT(AT$9:AT$229,Nutrients!$DB$8:$DB$228)+(IF($A$7=Nutrients!$B$8,Nutrients!$DB$8,Nutrients!$DB$9)*AT$7)+(((IF($A$8=Nutrients!$B$79,Nutrients!$DB$79,(IF($A$8=Nutrients!$B$77,Nutrients!$DB$77,Nutrients!$DB$78)))))*AT$8))/2000/AT$236*100","v":30.206445205692571},{"$f":"(SUMPRODUCT(AU$9:AU$229,Nutrients!$DB$8:$DB$228)+(IF($A$7=Nutrients!$B$8,Nutrients!$DB$8,Nutrients!$DB$9)*AU$7)+(((IF($A$8=Nutrients!$B$79,Nutrients!$DB$79,(IF($A$8=Nutrients!$B$77,Nutrients!$DB$77,Nutrients!$DB$78)))))*AU$8))/2000/AU$236*100","v":31.738549140136229},{"$f":"(SUMPRODUCT(AV$9:AV$229,Nutrients!$DB$8:$DB$228)+(IF($A$7=Nutrients!$B$8,Nutrients!$DB$8,Nutrients!$DB$9)*AV$7)+(((IF($A$8=Nutrients!$B$79,Nutrients!$DB$79,(IF($A$8=Nutrients!$B$77,Nutrients!$DB$77,Nutrients!$DB$78)))))*AV$8))/2000/AV$236*100","v":33.081861074357569},{"$f":"(SUMPRODUCT(AW$9:AW$229,Nutrients!$DB$8:$DB$228)+(IF($A$7=Nutrients!$B$8,Nutrients!$DB$8,Nutrients!$DB$9)*AW$7)+(((IF($A$8=Nutrients!$B$79,Nutrients!$DB$79,(IF($A$8=Nutrients!$B$77,Nutrients!$DB$77,Nutrients!$DB$78)))))*AW$8))/2000/AW$236*100","v":34.005848400622313}]
["  Met & Cys:Lys",{"$f":"(SUMPRODUCT(B$9:B$229,Nutrients!$DC$8:$DC$228)+(IF($A$7=Nutrients!$B$8,Nutrients!$DC$8,Nutrients!$DC$9)*B$7)+(((IF($A$8=Nutrients!$B$79,Nutrients!$DC$79,(IF($A$8=Nutrients!$B$77,Nutrients!$DC$77,Nutrients!$DC$78)))))*B$8))/2000/B$236*100","v":55.994418242240393},{"$f":"(SUMPRODUCT(C$9:C$229,Nutrients!$DC$8:$DC$228)+(IF($A$7=Nutrients!$B$8,Nutrients!$DC$8,Nutrients!$DC$9)*C$7)+(((IF($A$8=Nutrients!$B$79,Nutrients!$DC$79,(IF($A$8=Nutrients!$B$77,Nutrients!$DC$77,Nutrients!$DC$78)))))*C$8))/2000/C$236*100","v":55.998321129822401},{"$f":"(SUMPRODUCT(D$9:D$229,Nutrients!$DC$8:$DC$228)+(IF($A$7=Nutrients!$B$8,Nutrients!$DC$8,Nutrients!$DC$9)*D$7)+(((IF($A$8=Nutrients!$B$79,Nutrients!$DC$79,(IF($A$8=Nutrients!$B$77,Nutrients!$DC$77,Nutrients!$DC$78)))))*D$8))/2000/D$236*100","v":56.000205781178344},{"$f":"(SUMPRODUCT(E$9:E$229,Nutrients!$DC$8:$DC$228)+(IF($A$7=Nutrients!$B$8,Nutrients!$DC$8,Nutrients!$DC$9)*E$7)+(((IF($A$8=Nutrients!$B$79,Nutrients!$DC$79,(IF($A$8=Nutrients!$B$77,Nutrients!$DC$77,Nutrients!$DC$78)))))*E$8))/2000/E$236*100","v":56.999140886022367},{"$f":"(SUMPRODUCT(F$9:F$229,Nutrients!$DC$8:$DC$228)+(IF($A$7=Nutrients!$B$8,Nutrients!$DC$8,Nutrients!$DC$9)*F$7)+(((IF($A$8=Nutrients!$B$79,Nutrients!$DC$79,(IF($A$8=Nutrients!$B$77,Nutrients!$DC$77,Nutrients!$DC$78)))))*F$8))/2000/F$236*100","v":57.001109458079327},{"$f":"(SUMPRODUCT(G$9:G$229,Nutrients!$DC$8:$DC$228)+(IF($A$7=Nutrients!$B$8,Nutrients!$DC$8,Nutrients!$DC$9)*G$7)+(((IF($A$8=Nutrients!$B$79,Nutrients!$DC$79,(IF($A$8=Nutrients!$B$77,Nutrients!$DC$77,Nutrients!$DC$78)))))*G$8))/2000/G$236*100","v":58.001701198028378},null,{"$f":"(SUMPRODUCT(I$9:I$229,Nutrients!$DC$8:$DC$228)+(IF($A$7=Nutrients!$B$8,Nutrients!$DC$8,Nutrients!$DC$9)*I$7)+(((IF($A$8=Nutrients!$B$79,Nutrients!$DC$79,(IF($A$8=Nutrients!$B$77,Nutrients!$DC$77,Nutrients!$DC$78)))))*I$8))/2000/I$236*100","v":55.992162465524274},{"$f":"(SUMPRODUCT(J$9:J$229,Nutrients!$DC$8:$DC$228)+(IF($A$7=Nutrients!$B$8,Nutrients!$DC$8,Nutrients!$DC$9)*J$7)+(((IF($A$8=Nutrients!$B$79,Nutrients!$DC$79,(IF($A$8=Nutrients!$B$77,Nutrients!$DC$77,Nutrients!$DC$78)))))*J$8))/2000/J$236*100","v":55.991135702730375},{"$f":"(SUMPRODUCT(K$9:K$229,Nutrients!$DC$8:$DC$228)+(IF($A$7=Nutrients!$B$8,Nutrients!$DC$8,Nutrients!$DC$9)*K$7)+(((IF($A$8=Nutrients!$B$79,Nutrients!$DC$79,(IF($A$8=Nutrients!$B$77,Nutrients!$DC$77,Nutrients!$DC$78)))))*K$8))/2000/K$236*100","v":55.994027263406679},{"$f":"(SUMPRODUCT(L$9:L$229,Nutrients!$DC$8:$DC$228)+(IF($A$7=Nutrients!$B$8,Nutrients!$DC$8,Nutrients!$DC$9)*L$7)+(((IF($A$8=Nutrients!$B$79,Nutrients!$DC$79,(IF($A$8=Nutrients!$B$77,Nutrients!$DC$77,Nutrients!$DC$78)))))*L$8))/2000/L$236*100","v":56.989352384814687},{"$f":"(SUMPRODUCT(M$9:M$229,Nutrients!$DC$8:$DC$228)+(IF($A$7=Nutrients!$B$8,Nutrients!$DC$8,Nutrients!$DC$9)*M$7)+(((IF($A$8=Nutrients!$B$79,Nutrients!$DC$79,(IF($A$8=Nutrients!$B$77,Nutrients!$DC$77,Nutrients!$DC$78)))))*M$8))/2000/M$236*100","v":56.987715318820989},{"$f":"(SUMPRODUCT(N$9:N$229,Nutrients!$DC$8:$DC$228)+(IF($A$7=Nutrients!$B$8,Nutrients!$DC$8,Nutrients!$DC$9)*N$7)+(((IF($A$8=Nutrients!$B$79,Nutrients!$DC$79,(IF($A$8=Nutrients!$B$77,Nutrients!$DC$77,Nutrients!$DC$78)))))*N$8))/2000/N$236*100","v":57.987059747898847},null,{"$f":"(SUMPRODUCT(P$9:P$229,Nutrients!$DC$8:$DC$228)+(IF($A$7=Nutrients!$B$8,Nutrients!$DC$8,Nutrients!$DC$9)*P$7)+(((IF($A$8=Nutrients!$B$79,Nutrients!$DC$79,(IF($A$8=Nutrients!$B$77,Nutrients!$DC$77,Nutrients!$DC$78)))))*P$8))/2000/P$236*100","v":55.972374501990672},{"$f":"(SUMPRODUCT(Q$9:Q$229,Nutrients!$DC$8:$DC$228)+(IF($A$7=Nutrients!$B$8,Nutrients!$DC$8,Nutrients!$DC$9)*Q$7)+(((IF($A$8=Nutrients!$B$79,Nutrients!$DC$79,(IF($A$8=Nutrients!$B$77,Nutrients!$DC$77,Nutrients!$DC$78)))))*Q$8))/2000/Q$236*100","v":55.968330625301988},{"$f":"(SUMPRODUCT(R$9:R$229,Nutrients!$DC$8:$DC$228)+(IF($A$7=Nutrients!$B$8,Nutrients!$DC$8,Nutrients!$DC$9)*R$7)+(((IF($A$8=Nutrients!$B$79,Nutrients!$DC$79,(IF($A$8=Nutrients!$B$77,Nutrients!$DC$77,Nutrients!$DC$78)))))*R$8))/2000/R$236*100","v":55.967500214385367},{"$f":"(SUMPRODUCT(S$9:S$229,Nutrients!$DC$8:$DC$228)+(IF($A$7=Nutrients!$B$8,Nutrients!$DC$8,Nutrients!$DC$9)*S$7)+(((IF($A$8=Nutrients!$B$79,Nutrients!$DC$79,(IF($A$8=Nutrients!$B$77,Nutrients!$DC$77,Nutrients!$DC$78)))))*S$8))/2000/S$236*100","v":56.959906724477591},{"$f":"(SUMPRODUCT(T$9:T$229,Nutrients!$DC$8:$DC$228)+(IF($A$7=Nutrients!$B$8,Nutrients!$DC$8,Nutrients!$DC$9)*T$7)+(((IF($A$8=Nutrients!$B$79,Nutrients!$DC$79,(IF($A$8=Nutrients!$B$77,Nutrients!$DC$77,Nutrients!$DC$78)))))*T$8))/2000/T$236*100","v":57.436514448149346},{"$f":"(SUMPRODUCT(U$9:U$229,Nutrients!$DC$8:$DC$228)+(IF($A$7=Nutrients!$B$8,Nutrients!$DC$8,Nutrients!$DC$9)*U$7)+(((IF($A$8=Nutrients!$B$79,Nutrients!$DC$79,(IF($A$8=Nutrients!$B$77,Nutrients!$DC$77,Nutrients!$DC$78)))))*U$8))/2000/U$236*100","v":58.861439616549262},null,{"$f":"(SUMPRODUCT(W$9:W$229,Nutrients!$DC$8:$DC$228)+(IF($A$7=Nutrients!$B$8,Nutrients!$DC$8,Nutrients!$DC$9)*W$7)+(((IF($A$8=Nutrients!$B$79,Nutrients!$DC$79,(IF($A$8=Nutrients!$B$77,Nutrients!$DC$77,Nutrients!$DC$78)))))*W$8))/2000/W$236*100","v":55.952290226303958},{"$f":"(SUMPRODUCT(X$9:X$229,Nutrients!$DC$8:$DC$228)+(IF($A$7=Nutrients!$B$8,Nutrients!$DC$8,Nutrients!$DC$9)*X$7)+(((IF($A$8=Nutrients!$B$79,Nutrients!$DC$79,(IF($A$8=Nutrients!$B$77,Nutrients!$DC$77,Nutrients!$DC$78)))))*X$8))/2000/X$236*100","v":55.945123312624347},{"$f":"(SUMPRODUCT(Y$9:Y$229,Nutrients!$DC$8:$DC$228)+(IF($A$7=Nutrients!$B$8,Nutrients!$DC$8,Nutrients!$DC$9)*Y$7)+(((IF($A$8=Nutrients!$B$79,Nutrients!$DC$79,(IF($A$8=Nutrients!$B$77,Nutrients!$DC$77,Nutrients!$DC$78)))))*Y$8))/2000/Y$236*100","v":55.942059403345667},{"$f":"(SUMPRODUCT(Z$9:Z$229,Nutrients!$DC$8:$DC$228)+(IF($A$7=Nutrients!$B$8,Nutrients!$DC$8,Nutrients!$DC$9)*Z$7)+(((IF($A$8=Nutrients!$B$79,Nutrients!$DC$79,(IF($A$8=Nutrients!$B$77,Nutrients!$DC$77,Nutrients!$DC$78)))))*Z$8))/2000/Z$236*100","v":56.39717452364318},{"$f":"(SUMPRODUCT(AA$9:AA$229,Nutrients!$DC$8:$DC$228)+(IF($A$7=Nutrients!$B$8,Nutrients!$DC$8,Nutrients!$DC$9)*AA$7)+(((IF($A$8=Nutrients!$B$79,Nutrients!$DC$79,(IF($A$8=Nutrients!$B$77,Nutrients!$DC$77,Nutrients!$DC$78)))))*AA$8))/2000/AA$236*100","v":58.514426140508668},{"$f":"(SUMPRODUCT(AB$9:AB$229,Nutrients!$DC$8:$DC$228)+(IF($A$7=Nutrients!$B$8,Nutrients!$DC$8,Nutrients!$DC$9)*AB$7)+(((IF($A$8=Nutrients!$B$79,Nutrients!$DC$79,(IF($A$8=Nutrients!$B$77,Nutrients!$DC$77,Nutrients!$DC$78)))))*AB$8))/2000/AB$236*100","v":59.983894546193561},null,{"$f":"(SUMPRODUCT(AD$9:AD$229,Nutrients!$DC$8:$DC$228)+(IF($A$7=Nutrients!$B$8,Nutrients!$DC$8,Nutrients!$DC$9)*AD$7)+(((IF($A$8=Nutrients!$B$79,Nutrients!$DC$79,(IF($A$8=Nutrients!$B$77,Nutrients!$DC$77,Nutrients!$DC$78)))))*AD$8))/2000/AD$236*100","v":55.93184227594017},{"$f":"(SUMPRODUCT(AE$9:AE$229,Nutrients!$DC$8:$DC$228)+(IF($A$7=Nutrients!$B$8,Nutrients!$DC$8,Nutrients!$DC$9)*AE$7)+(((IF($A$8=Nutrients!$B$79,Nutrients!$DC$79,(IF($A$8=Nutrients!$B$77,Nutrients!$DC$77,Nutrients!$DC$78)))))*AE$8))/2000/AE$236*100","v":55.922177872832059},{"$f":"(SUMPRODUCT(AF$9:AF$229,Nutrients!$DC$8:$DC$228)+(IF($A$7=Nutrients!$B$8,Nutrients!$DC$8,Nutrients!$DC$9)*AF$7)+(((IF($A$8=Nutrients!$B$79,Nutrients!$DC$79,(IF($A$8=Nutrients!$B$77,Nutrients!$DC$77,Nutrients!$DC$78)))))*AF$8))/2000/AF$236*100","v":54.88911206975218},{"$f":"(SUMPRODUCT(AG$9:AG$229,Nutrients!$DC$8:$DC$228)+(IF($A$7=Nutrients!$B$8,Nutrients!$DC$8,Nutrients!$DC$9)*AG$7)+(((IF($A$8=Nutrients!$B$79,Nutrients!$DC$79,(IF($A$8=Nutrients!$B$77,Nutrients!$DC$77,Nutrients!$DC$78)))))*AG$8))/2000/AG$236*100","v":57.383729581531064},{"$f":"(SUMPRODUCT(AH$9:AH$229,Nutrients!$DC$8:$DC$228)+(IF($A$7=Nutrients!$B$8,Nutrients!$DC$8,Nutrients!$DC$9)*AH$7)+(((IF($A$8=Nutrients!$B$79,Nutrients!$DC$79,(IF($A$8=Nutrients!$B$77,Nutrients!$DC$77,Nutrients!$DC$78)))))*AH$8))/2000/AH$236*100","v":59.556239769771437},{"$f":"(SUMPRODUCT(AI$9:AI$229,Nutrients!$DC$8:$DC$228)+(IF($A$7=Nutrients!$B$8,Nutrients!$DC$8,Nutrients!$DC$9)*AI$7)+(((IF($A$8=Nutrients!$B$79,Nutrients!$DC$79,(IF($A$8=Nutrients!$B$77,Nutrients!$DC$77,Nutrients!$DC$78)))))*AI$8))/2000/AI$236*100","v":61.068264566274557},null,{"$f":"(SUMPRODUCT(AK$9:AK$229,Nutrients!$DC$8:$DC$228)+(IF($A$7=Nutrients!$B$8,Nutrients!$DC$8,Nutrients!$DC$9)*AK$7)+(((IF($A$8=Nutrients!$B$79,Nutrients!$DC$79,(IF($A$8=Nutrients!$B$77,Nutrients!$DC$77,Nutrients!$DC$78)))))*AK$8))/2000/AK$236*100","v":55.90884271883948},{"$f":"(SUMPRODUCT(AL$9:AL$229,Nutrients!$DC$8:$DC$228)+(IF($A$7=Nutrients!$B$8,Nutrients!$DC$8,Nutrients!$DC$9)*AL$7)+(((IF($A$8=Nutrients!$B$79,Nutrients!$DC$79,(IF($A$8=Nutrients!$B$77,Nutrients!$DC$77,Nutrients!$DC$78)))))*AL$8))/2000/AL$236*100","v":55.89927501942654},{"$f":"(SUMPRODUCT(AM$9:AM$229,Nutrients!$DC$8:$DC$228)+(IF($A$7=Nutrients!$B$8,Nutrients!$DC$8,Nutrients!$DC$9)*AM$7)+(((IF($A$8=Nutrients!$B$79,Nutrients!$DC$79,(IF($A$8=Nutrients!$B$77,Nutrients!$DC$77,Nutrients!$DC$78)))))*AM$8))/2000/AM$236*100","v":55.769166093819024},{"$f":"(SUMPRODUCT(AN$9:AN$229,Nutrients!$DC$8:$DC$228)+(IF($A$7=Nutrients!$B$8,Nutrients!$DC$8,Nutrients!$DC$9)*AN$7)+(((IF($A$8=Nutrients!$B$79,Nutrients!$DC$79,(IF($A$8=Nutrients!$B$77,Nutrients!$DC$77,Nutrients!$DC$78)))))*AN$8))/2000/AN$236*100","v":58.341841180628883},{"$f":"(SUMPRODUCT(AO$9:AO$229,Nutrients!$DC$8:$DC$228)+(IF($A$7=Nutrients!$B$8,Nutrients!$DC$8,Nutrients!$DC$9)*AO$7)+(((IF($A$8=Nutrients!$B$79,Nutrients!$DC$79,(IF($A$8=Nutrients!$B$77,Nutrients!$DC$77,Nutrients!$DC$78)))))*AO$8))/2000/AO$236*100","v":60.588942285537208},{"$f":"(SUMPRODUCT(AP$9:AP$229,Nutrients!$DC$8:$DC$228)+(IF($A$7=Nutrients!$B$8,Nutrients!$DC$8,Nutrients!$DC$9)*AP$7)+(((IF($A$8=Nutrients!$B$79,Nutrients!$DC$79,(IF($A$8=Nutrients!$B$77,Nutrients!$DC$77,Nutrients!$DC$78)))))*AP$8))/2000/AP$236*100","v":62.155795501576108},null,{"$f":"(SUMPRODUCT(AR$9:AR$229,Nutrients!$DC$8:$DC$228)+(IF($A$7=Nutrients!$B$8,Nutrients!$DC$8,Nutrients!$DC$9)*AR$7)+(((IF($A$8=Nutrients!$B$79,Nutrients!$DC$79,(IF($A$8=Nutrients!$B$77,Nutrients!$DC$77,Nutrients!$DC$78)))))*AR$8))/2000/AR$236*100","v":55.889678388911733},{"$f":"(SUMPRODUCT(AS$9:AS$229,Nutrients!$DC$8:$DC$228)+(IF($A$7=Nutrients!$B$8,Nutrients!$DC$8,Nutrients!$DC$9)*AS$7)+(((IF($A$8=Nutrients!$B$79,Nutrients!$DC$79,(IF($A$8=Nutrients!$B$77,Nutrients!$DC$77,Nutrients!$DC$78)))))*AS$8))/2000/AS$236*100","v":55.876348699113656},{"$f":"(SUMPRODUCT(AT$9:AT$229,Nutrients!$DC$8:$DC$228)+(IF($A$7=Nutrients!$B$8,Nutrients!$DC$8,Nutrients!$DC$9)*AT$7)+(((IF($A$8=Nutrients!$B$79,Nutrients!$DC$79,(IF($A$8=Nutrients!$B$77,Nutrients!$DC$77,Nutrients!$DC$78)))))*AT$8))/2000/AT$236*100","v":56.642594723262732},{"$f":"(SUMPRODUCT(AU$9:AU$229,Nutrients!$DC$8:$DC$228)+(IF($A$7=Nutrients!$B$8,Nutrients!$DC$8,Nutrients!$DC$9)*AU$7)+(((IF($A$8=Nutrients!$B$79,Nutrients!$DC$79,(IF($A$8=Nutrients!$B$77,Nutrients!$DC$77,Nutrients!$DC$78)))))*AU$8))/2000/AU$236*100","v":59.287972942365933},{"$f":"(SUMPRODUCT(AV$9:AV$229,Nutrients!$DC$8:$DC$228)+(IF($A$7=Nutrients!$B$8,Nutrients!$DC$8,Nutrients!$DC$9)*AV$7)+(((IF($A$8=Nutrients!$B$79,Nutrients!$DC$79,(IF($A$8=Nutrients!$B$77,Nutrients!$DC$77,Nutrients!$DC$78)))))*AV$8))/2000/AV$236*100","v":61.620989707556539},{"$f":"(SUMPRODUCT(AW$9:AW$229,Nutrients!$DC$8:$DC$228)+(IF($A$7=Nutrients!$B$8,Nutrients!$DC$8,Nutrients!$DC$9)*AW$7)+(((IF($A$8=Nutrients!$B$79,Nutrients!$DC$79,(IF($A$8=Nutrients!$B$77,Nutrients!$DC$77,Nutrients!$DC$78)))))*AW$8))/2000/AW$236*100","v":63.24266732354922}]
["  Thr:Lys",{"$f":"(SUMPRODUCT(B$9:B$229,Nutrients!$DF$8:$DF$228)+(IF($A$7=Nutrients!$B$8,Nutrients!$DF$8,Nutrients!$DF$9)*B$7)+(((IF($A$8=Nutrients!$B$79,Nutrients!$DF$79,(IF($A$8=Nutrients!$B$77,Nutrients!$DF$77,Nutrients!$DF$78)))))*B$8))/2000/B$236*100","v":61.999249045260719},{"$f":"(SUMPRODUCT(C$9:C$229,Nutrients!$DF$8:$DF$228)+(IF($A$7=Nutrients!$B$8,Nutrients!$DF$8,Nutrients!$DF$9)*C$7)+(((IF($A$8=Nutrients!$B$79,Nutrients!$DF$79,(IF($A$8=Nutrients!$B$77,Nutrients!$DF$77,Nutrients!$DF$78)))))*C$8))/2000/C$236*100","v":61.999768297038216},{"$f":"(SUMPRODUCT(D$9:D$229,Nutrients!$DF$8:$DF$228)+(IF($A$7=Nutrients!$B$8,Nutrients!$DF$8,Nutrients!$DF$9)*D$7)+(((IF($A$8=Nutrients!$B$79,Nutrients!$DF$79,(IF($A$8=Nutrients!$B$77,Nutrients!$DF$77,Nutrients!$DF$78)))))*D$8))/2000/D$236*100","v":62.000000000000014},{"$f":"(SUMPRODUCT(E$9:E$229,Nutrients!$DF$8:$DF$228)+(IF($A$7=Nutrients!$B$8,Nutrients!$DF$8,Nutrients!$DF$9)*E$7)+(((IF($A$8=Nutrients!$B$79,Nutrients!$DF$79,(IF($A$8=Nutrients!$B$77,Nutrients!$DF$77,Nutrients!$DF$78)))))*E$8))/2000/E$236*100","v":62.999881259958023},{"$f":"(SUMPRODUCT(F$9:F$229,Nutrients!$DF$8:$DF$228)+(IF($A$7=Nutrients!$B$8,Nutrients!$DF$8,Nutrients!$DF$9)*F$7)+(((IF($A$8=Nutrients!$B$79,Nutrients!$DF$79,(IF($A$8=Nutrients!$B$77,Nutrients!$DF$77,Nutrients!$DF$78)))))*F$8))/2000/F$236*100","v":63.000153115971145},{"$f":"(SUMPRODUCT(G$9:G$229,Nutrients!$DF$8:$DF$228)+(IF($A$7=Nutrients!$B$8,Nutrients!$DF$8,Nutrients!$DF$9)*G$7)+(((IF($A$8=Nutrients!$B$79,Nutrients!$DF$79,(IF($A$8=Nutrients!$B$77,Nutrients!$DF$77,Nutrients!$DF$78)))))*G$8))/2000/G$236*100","v":63.99976486226322},null,{"$f":"(SUMPRODUCT(I$9:I$229,Nutrients!$DF$8:$DF$228)+(IF($A$7=Nutrients!$B$8,Nutrients!$DF$8,Nutrients!$DF$9)*I$7)+(((IF($A$8=Nutrients!$B$79,Nutrients!$DF$79,(IF($A$8=Nutrients!$B$77,Nutrients!$DF$77,Nutrients!$DF$78)))))*I$8))/2000/I$236*100","v":61.997206440877704},{"$f":"(SUMPRODUCT(J$9:J$229,Nutrients!$DF$8:$DF$228)+(IF($A$7=Nutrients!$B$8,Nutrients!$DF$8,Nutrients!$DF$9)*J$7)+(((IF($A$8=Nutrients!$B$79,Nutrients!$DF$79,(IF($A$8=Nutrients!$B$77,Nutrients!$DF$77,Nutrients!$DF$78)))))*J$8))/2000/J$236*100","v":61.99674526748543},{"$f":"(SUMPRODUCT(K$9:K$229,Nutrients!$DF$8:$DF$228)+(IF($A$7=Nutrients!$B$8,Nutrients!$DF$8,Nutrients!$DF$9)*K$7)+(((IF($A$8=Nutrients!$B$79,Nutrients!$DF$79,(IF($A$8=Nutrients!$B$77,Nutrients!$DF$77,Nutrients!$DF$78)))))*K$8))/2000/K$236*100","v":61.998035431249157},{"$f":"(SUMPRODUCT(L$9:L$229,Nutrients!$DF$8:$DF$228)+(IF($A$7=Nutrients!$B$8,Nutrients!$DF$8,Nutrients!$DF$9)*L$7)+(((IF($A$8=Nutrients!$B$79,Nutrients!$DF$79,(IF($A$8=Nutrients!$B$77,Nutrients!$DF$77,Nutrients!$DF$78)))))*L$8))/2000/L$236*100","v":63.000094972668407},{"$f":"(SUMPRODUCT(M$9:M$229,Nutrients!$DF$8:$DF$228)+(IF($A$7=Nutrients!$B$8,Nutrients!$DF$8,Nutrients!$DF$9)*M$7)+(((IF($A$8=Nutrients!$B$79,Nutrients!$DF$79,(IF($A$8=Nutrients!$B$77,Nutrients!$DF$77,Nutrients!$DF$78)))))*M$8))/2000/M$236*100","v":62.998489718129889},{"$f":"(SUMPRODUCT(N$9:N$229,Nutrients!$DF$8:$DF$228)+(IF($A$7=Nutrients!$B$8,Nutrients!$DF$8,Nutrients!$DF$9)*N$7)+(((IF($A$8=Nutrients!$B$79,Nutrients!$DF$79,(IF($A$8=Nutrients!$B$77,Nutrients!$DF$77,Nutrients!$DF$78)))))*N$8))/2000/N$236*100","v":63.999381320798456},null,{"$f":"(SUMPRODUCT(P$9:P$229,Nutrients!$DF$8:$DF$228)+(IF($A$7=Nutrients!$B$8,Nutrients!$DF$8,Nutrients!$DF$9)*P$7)+(((IF($A$8=Nutrients!$B$79,Nutrients!$DF$79,(IF($A$8=Nutrients!$B$77,Nutrients!$DF$77,Nutrients!$DF$78)))))*P$8))/2000/P$236*100","v":61.995068995581072},{"$f":"(SUMPRODUCT(Q$9:Q$229,Nutrients!$DF$8:$DF$228)+(IF($A$7=Nutrients!$B$8,Nutrients!$DF$8,Nutrients!$DF$9)*Q$7)+(((IF($A$8=Nutrients!$B$79,Nutrients!$DF$79,(IF($A$8=Nutrients!$B$77,Nutrients!$DF$77,Nutrients!$DF$78)))))*Q$8))/2000/Q$236*100","v":61.99412440748948},{"$f":"(SUMPRODUCT(R$9:R$229,Nutrients!$DF$8:$DF$228)+(IF($A$7=Nutrients!$B$8,Nutrients!$DF$8,Nutrients!$DF$9)*R$7)+(((IF($A$8=Nutrients!$B$79,Nutrients!$DF$79,(IF($A$8=Nutrients!$B$77,Nutrients!$DF$77,Nutrients!$DF$78)))))*R$8))/2000/R$236*100","v":61.994722845535918},{"$f":"(SUMPRODUCT(S$9:S$229,Nutrients!$DF$8:$DF$228)+(IF($A$7=Nutrients!$B$8,Nutrients!$DF$8,Nutrients!$DF$9)*S$7)+(((IF($A$8=Nutrients!$B$79,Nutrients!$DF$79,(IF($A$8=Nutrients!$B$77,Nutrients!$DF$77,Nutrients!$DF$78)))))*S$8))/2000/S$236*100","v":62.996531246284569},{"$f":"(SUMPRODUCT(T$9:T$229,Nutrients!$DF$8:$DF$228)+(IF($A$7=Nutrients!$B$8,Nutrients!$DF$8,Nutrients!$DF$9)*T$7)+(((IF($A$8=Nutrients!$B$79,Nutrients!$DF$79,(IF($A$8=Nutrients!$B$77,Nutrients!$DF$77,Nutrients!$DF$78)))))*T$8))/2000/T$236*100","v":62.994182167193976},{"$f":"(SUMPRODUCT(U$9:U$229,Nutrients!$DF$8:$DF$228)+(IF($A$7=Nutrients!$B$8,Nutrients!$DF$8,Nutrients!$DF$9)*U$7)+(((IF($A$8=Nutrients!$B$79,Nutrients!$DF$79,(IF($A$8=Nutrients!$B$77,Nutrients!$DF$77,Nutrients!$DF$78)))))*U$8))/2000/U$236*100","v":63.994387442954704},null,{"$f":"(SUMPRODUCT(W$9:W$229,Nutrients!$DF$8:$DF$228)+(IF($A$7=Nutrients!$B$8,Nutrients!$DF$8,Nutrients!$DF$9)*W$7)+(((IF($A$8=Nutrients!$B$79,Nutrients!$DF$79,(IF($A$8=Nutrients!$B$77,Nutrients!$DF$77,Nutrients!$DF$78)))))*W$8))/2000/W$236*100","v":61.99278966586467},{"$f":"(SUMPRODUCT(X$9:X$229,Nutrients!$DF$8:$DF$228)+(IF($A$7=Nutrients!$B$8,Nutrients!$DF$8,Nutrients!$DF$9)*X$7)+(((IF($A$8=Nutrients!$B$79,Nutrients!$DF$79,(IF($A$8=Nutrients!$B$77,Nutrients!$DF$77,Nutrients!$DF$78)))))*X$8))/2000/X$236*100","v":61.991310943463077},{"$f":"(SUMPRODUCT(Y$9:Y$229,Nutrients!$DF$8:$DF$228)+(IF($A$7=Nutrients!$B$8,Nutrients!$DF$8,Nutrients!$DF$9)*Y$7)+(((IF($A$8=Nutrients!$B$79,Nutrients!$DF$79,(IF($A$8=Nutrients!$B$77,Nutrients!$DF$77,Nutrients!$DF$78)))))*Y$8))/2000/Y$236*100","v":61.991930387816588},{"$f":"(SUMPRODUCT(Z$9:Z$229,Nutrients!$DF$8:$DF$228)+(IF($A$7=Nutrients!$B$8,Nutrients!$DF$8,Nutrients!$DF$9)*Z$7)+(((IF($A$8=Nutrients!$B$79,Nutrients!$DF$79,(IF($A$8=Nutrients!$B$77,Nutrients!$DF$77,Nutrients!$DF$78)))))*Z$8))/2000/Z$236*100","v":62.993682374637338},{"$f":"(SUMPRODUCT(AA$9:AA$229,Nutrients!$DF$8:$DF$228)+(IF($A$7=Nutrients!$B$8,Nutrients!$DF$8,Nutrients!$DF$9)*AA$7)+(((IF($A$8=Nutrients!$B$79,Nutrients!$DF$79,(IF($A$8=Nutrients!$B$77,Nutrients!$DF$77,Nutrients!$DF$78)))))*AA$8))/2000/AA$236*100","v":62.9893508629753},{"$f":"(SUMPRODUCT(AB$9:AB$229,Nutrients!$DF$8:$DF$228)+(IF($A$7=Nutrients!$B$8,Nutrients!$DF$8,Nutrients!$DF$9)*AB$7)+(((IF($A$8=Nutrients!$B$79,Nutrients!$DF$79,(IF($A$8=Nutrients!$B$77,Nutrients!$DF$77,Nutrients!$DF$78)))))*AB$8))/2000/AB$236*100","v":63.983083323023827},null,{"$f":"(SUMPRODUCT(AD$9:AD$229,Nutrients!$DF$8:$DF$228)+(IF($A$7=Nutrients!$B$8,Nutrients!$DF$8,Nutrients!$DF$9)*AD$7)+(((IF($A$8=Nutrients!$B$79,Nutrients!$DF$79,(IF($A$8=Nutrients!$B$77,Nutrients!$DF$77,Nutrients!$DF$78)))))*AD$8))/2000/AD$236*100","v":61.990336196242033},{"$f":"(SUMPRODUCT(AE$9:AE$229,Nutrients!$DF$8:$DF$228)+(IF($A$7=Nutrients!$B$8,Nutrients!$DF$8,Nutrients!$DF$9)*AE$7)+(((IF($A$8=Nutrients!$B$79,Nutrients!$DF$79,(IF($A$8=Nutrients!$B$77,Nutrients!$DF$77,Nutrients!$DF$78)))))*AE$8))/2000/AE$236*100","v":61.988622873154121},{"$f":"(SUMPRODUCT(AF$9:AF$229,Nutrients!$DF$8:$DF$228)+(IF($A$7=Nutrients!$B$8,Nutrients!$DF$8,Nutrients!$DF$9)*AF$7)+(((IF($A$8=Nutrients!$B$79,Nutrients!$DF$79,(IF($A$8=Nutrients!$B$77,Nutrients!$DF$77,Nutrients!$DF$78)))))*AF$8))/2000/AF$236*100","v":61.989706099774075},{"$f":"(SUMPRODUCT(AG$9:AG$229,Nutrients!$DF$8:$DF$228)+(IF($A$7=Nutrients!$B$8,Nutrients!$DF$8,Nutrients!$DF$9)*AG$7)+(((IF($A$8=Nutrients!$B$79,Nutrients!$DF$79,(IF($A$8=Nutrients!$B$77,Nutrients!$DF$77,Nutrients!$DF$78)))))*AG$8))/2000/AG$236*100","v":62.98883535534975},{"$f":"(SUMPRODUCT(AH$9:AH$229,Nutrients!$DF$8:$DF$228)+(IF($A$7=Nutrients!$B$8,Nutrients!$DF$8,Nutrients!$DF$9)*AH$7)+(((IF($A$8=Nutrients!$B$79,Nutrients!$DF$79,(IF($A$8=Nutrients!$B$77,Nutrients!$DF$77,Nutrients!$DF$78)))))*AH$8))/2000/AH$236*100","v":62.967234568302835},{"$f":"(SUMPRODUCT(AI$9:AI$229,Nutrients!$DF$8:$DF$228)+(IF($A$7=Nutrients!$B$8,Nutrients!$DF$8,Nutrients!$DF$9)*AI$7)+(((IF($A$8=Nutrients!$B$79,Nutrients!$DF$79,(IF($A$8=Nutrients!$B$77,Nutrients!$DF$77,Nutrients!$DF$78)))))*AI$8))/2000/AI$236*100","v":63.953542842419623},null,{"$f":"(SUMPRODUCT(AK$9:AK$229,Nutrients!$DF$8:$DF$228)+(IF($A$7=Nutrients!$B$8,Nutrients!$DF$8,Nutrients!$DF$9)*AK$7)+(((IF($A$8=Nutrients!$B$79,Nutrients!$DF$79,(IF($A$8=Nutrients!$B$77,Nutrients!$DF$77,Nutrients!$DF$78)))))*AK$8))/2000/AK$236*100","v":61.986660929816352},{"$f":"(SUMPRODUCT(AL$9:AL$229,Nutrients!$DF$8:$DF$228)+(IF($A$7=Nutrients!$B$8,Nutrients!$DF$8,Nutrients!$DF$9)*AL$7)+(((IF($A$8=Nutrients!$B$79,Nutrients!$DF$79,(IF($A$8=Nutrients!$B$77,Nutrients!$DF$77,Nutrients!$DF$78)))))*AL$8))/2000/AL$236*100","v":61.985955194667476},{"$f":"(SUMPRODUCT(AM$9:AM$229,Nutrients!$DF$8:$DF$228)+(IF($A$7=Nutrients!$B$8,Nutrients!$DF$8,Nutrients!$DF$9)*AM$7)+(((IF($A$8=Nutrients!$B$79,Nutrients!$DF$79,(IF($A$8=Nutrients!$B$77,Nutrients!$DF$77,Nutrients!$DF$78)))))*AM$8))/2000/AM$236*100","v":61.985790818224707},{"$f":"(SUMPRODUCT(AN$9:AN$229,Nutrients!$DF$8:$DF$228)+(IF($A$7=Nutrients!$B$8,Nutrients!$DF$8,Nutrients!$DF$9)*AN$7)+(((IF($A$8=Nutrients!$B$79,Nutrients!$DF$79,(IF($A$8=Nutrients!$B$77,Nutrients!$DF$77,Nutrients!$DF$78)))))*AN$8))/2000/AN$236*100","v":62.970368632635335},{"$f":"(SUMPRODUCT(AO$9:AO$229,Nutrients!$DF$8:$DF$228)+(IF($A$7=Nutrients!$B$8,Nutrients!$DF$8,Nutrients!$DF$9)*AO$7)+(((IF($A$8=Nutrients!$B$79,Nutrients!$DF$79,(IF($A$8=Nutrients!$B$77,Nutrients!$DF$77,Nutrients!$DF$78)))))*AO$8))/2000/AO$236*100","v":62.940755560057681},{"$f":"(SUMPRODUCT(AP$9:AP$229,Nutrients!$DF$8:$DF$228)+(IF($A$7=Nutrients!$B$8,Nutrients!$DF$8,Nutrients!$DF$9)*AP$7)+(((IF($A$8=Nutrients!$B$79,Nutrients!$DF$79,(IF($A$8=Nutrients!$B$77,Nutrients!$DF$77,Nutrients!$DF$78)))))*AP$8))/2000/AP$236*100","v":63.925515916414412},null,{"$f":"(SUMPRODUCT(AR$9:AR$229,Nutrients!$DF$8:$DF$228)+(IF($A$7=Nutrients!$B$8,Nutrients!$DF$8,Nutrients!$DF$9)*AR$7)+(((IF($A$8=Nutrients!$B$79,Nutrients!$DF$79,(IF($A$8=Nutrients!$B$77,Nutrients!$DF$77,Nutrients!$DF$78)))))*AR$8))/2000/AR$236*100","v":61.984822101675306},{"$f":"(SUMPRODUCT(AS$9:AS$229,Nutrients!$DF$8:$DF$228)+(IF($A$7=Nutrients!$B$8,Nutrients!$DF$8,Nutrients!$DF$9)*AS$7)+(((IF($A$8=Nutrients!$B$79,Nutrients!$DF$79,(IF($A$8=Nutrients!$B$77,Nutrients!$DF$77,Nutrients!$DF$78)))))*AS$8))/2000/AS$236*100","v":61.983276279420863},{"$f":"(SUMPRODUCT(AT$9:AT$229,Nutrients!$DF$8:$DF$228)+(IF($A$7=Nutrients!$B$8,Nutrients!$DF$8,Nutrients!$DF$9)*AT$7)+(((IF($A$8=Nutrients!$B$79,Nutrients!$DF$79,(IF($A$8=Nutrients!$B$77,Nutrients!$DF$77,Nutrients!$DF$78)))))*AT$8))/2000/AT$236*100","v":61.97870307053752},{"$f":"(SUMPRODUCT(AU$9:AU$229,Nutrients!$DF$8:$DF$228)+(IF($A$7=Nutrients!$B$8,Nutrients!$DF$8,Nutrients!$DF$9)*AU$7)+(((IF($A$8=Nutrients!$B$79,Nutrients!$DF$79,(IF($A$8=Nutrients!$B$77,Nutrients!$DF$77,Nutrients!$DF$78)))))*AU$8))/2000/AU$236*100","v":62.946165552990472},{"$f":"(SUMPRODUCT(AV$9:AV$229,Nutrients!$DF$8:$DF$228)+(IF($A$7=Nutrients!$B$8,Nutrients!$DF$8,Nutrients!$DF$9)*AV$7)+(((IF($A$8=Nutrients!$B$79,Nutrients!$DF$79,(IF($A$8=Nutrients!$B$77,Nutrients!$DF$77,Nutrients!$DF$78)))))*AV$8))/2000/AV$236*100","v":62.913962870462846},{"$f":"(SUMPRODUCT(AW$9:AW$229,Nutrients!$DF$8:$DF$228)+(IF($A$7=Nutrients!$B$8,Nutrients!$DF$8,Nutrients!$DF$9)*AW$7)+(((IF($A$8=Nutrients!$B$79,Nutrients!$DF$79,(IF($A$8=Nutrients!$B$77,Nutrients!$DF$77,Nutrients!$DF$78)))))*AW$8))/2000/AW$236*100","v":63.897173384345777}]
["  Trp:Lys",{"$f":"(SUMPRODUCT(B$9:B$229,Nutrients!$DG$8:$DG$228)+(IF($A$7=Nutrients!$B$8,Nutrients!$DG$8,Nutrients!$DG$9)*B$7)+(((IF($A$8=Nutrients!$B$79,Nutrients!$DG$79,(IF($A$8=Nutrients!$B$77,Nutrients!$DG$77,Nutrients!$DG$78)))))*B$8))/2000/B$236*100","v":18.999999999999996},{"$f":"(SUMPRODUCT(C$9:C$229,Nutrients!$DG$8:$DG$228)+(IF($A$7=Nutrients!$B$8,Nutrients!$DG$8,Nutrients!$DG$9)*C$7)+(((IF($A$8=Nutrients!$B$79,Nutrients!$DG$79,(IF($A$8=Nutrients!$B$77,Nutrients!$DG$77,Nutrients!$DG$78)))))*C$8))/2000/C$236*100","v":18.999999999999993},{"$f":"(SUMPRODUCT(D$9:D$229,Nutrients!$DG$8:$DG$228)+(IF($A$7=Nutrients!$B$8,Nutrients!$DG$8,Nutrients!$DG$9)*D$7)+(((IF($A$8=Nutrients!$B$79,Nutrients!$DG$79,(IF($A$8=Nutrients!$B$77,Nutrients!$DG$77,Nutrients!$DG$78)))))*D$8))/2000/D$236*100","v":19.034949922351728},{"$f":"(SUMPRODUCT(E$9:E$229,Nutrients!$DG$8:$DG$228)+(IF($A$7=Nutrients!$B$8,Nutrients!$DG$8,Nutrients!$DG$9)*E$7)+(((IF($A$8=Nutrients!$B$79,Nutrients!$DG$79,(IF($A$8=Nutrients!$B$77,Nutrients!$DG$77,Nutrients!$DG$78)))))*E$8))/2000/E$236*100","v":19},{"$f":"(SUMPRODUCT(F$9:F$229,Nutrients!$DG$8:$DG$228)+(IF($A$7=Nutrients!$B$8,Nutrients!$DG$8,Nutrients!$DG$9)*F$7)+(((IF($A$8=Nutrients!$B$79,Nutrients!$DG$79,(IF($A$8=Nutrients!$B$77,Nutrients!$DG$77,Nutrients!$DG$78)))))*F$8))/2000/F$236*100","v":19.000000000000043},{"$f":"(SUMPRODUCT(G$9:G$229,Nutrients!$DG$8:$DG$228)+(IF($A$7=Nutrients!$B$8,Nutrients!$DG$8,Nutrients!$DG$9)*G$7)+(((IF($A$8=Nutrients!$B$79,Nutrients!$DG$79,(IF($A$8=Nutrients!$B$77,Nutrients!$DG$77,Nutrients!$DG$78)))))*G$8))/2000/G$236*100","v":18.999963234918017},null,{"$f":"(SUMPRODUCT(I$9:I$229,Nutrients!$DG$8:$DG$228)+(IF($A$7=Nutrients!$B$8,Nutrients!$DG$8,Nutrients!$DG$9)*I$7)+(((IF($A$8=Nutrients!$B$79,Nutrients!$DG$79,(IF($A$8=Nutrients!$B$77,Nutrients!$DG$77,Nutrients!$DG$78)))))*I$8))/2000/I$236*100","v":18.993171825041873},{"$f":"(SUMPRODUCT(J$9:J$229,Nutrients!$DG$8:$DG$228)+(IF($A$7=Nutrients!$B$8,Nutrients!$DG$8,Nutrients!$DG$9)*J$7)+(((IF($A$8=Nutrients!$B$79,Nutrients!$DG$79,(IF($A$8=Nutrients!$B$77,Nutrients!$DG$77,Nutrients!$DG$78)))))*J$8))/2000/J$236*100","v":18.992237601614914},{"$f":"(SUMPRODUCT(K$9:K$229,Nutrients!$DG$8:$DG$228)+(IF($A$7=Nutrients!$B$8,Nutrients!$DG$8,Nutrients!$DG$9)*K$7)+(((IF($A$8=Nutrients!$B$79,Nutrients!$DG$79,(IF($A$8=Nutrients!$B$77,Nutrients!$DG$77,Nutrients!$DG$78)))))*K$8))/2000/K$236*100","v":19.026248607115352},{"$f":"(SUMPRODUCT(L$9:L$229,Nutrients!$DG$8:$DG$228)+(IF($A$7=Nutrients!$B$8,Nutrients!$DG$8,Nutrients!$DG$9)*L$7)+(((IF($A$8=Nutrients!$B$79,Nutrients!$DG$79,(IF($A$8=Nutrients!$B$77,Nutrients!$DG$77,Nutrients!$DG$78)))))*L$8))/2000/L$236*100","v":18.990370963224979},{"$f":"(SUMPRODUCT(M$9:M$229,Nutrients!$DG$8:$DG$228)+(IF($A$7=Nutrients!$B$8,Nutrients!$DG$8,Nutrients!$DG$9)*M$7)+(((IF($A$8=Nutrients!$B$79,Nutrients!$DG$79,(IF($A$8=Nutrients!$B$77,Nutrients!$DG$77,Nutrients!$DG$78)))))*M$8))/2000/M$236*100","v":18.989383057992594},{"$f":"(SUMPRODUCT(N$9:N$229,Nutrients!$DG$8:$DG$228)+(IF($A$7=Nutrients!$B$8,Nutrients!$DG$8,Nutrients!$DG$9)*N$7)+(((IF($A$8=Nutrients!$B$79,Nutrients!$DG$79,(IF($A$8=Nutrients!$B$77,Nutrients!$DG$77,Nutrients!$DG$78)))))*N$8))/2000/N$236*100","v":18.988855929796379},null,{"$f":"(SUMPRODUCT(P$9:P$229,Nutrients!$DG$8:$DG$228)+(IF($A$7=Nutrients!$B$8,Nutrients!$DG$8,Nutrients!$DG$9)*P$7)+(((IF($A$8=Nutrients!$B$79,Nutrients!$DG$79,(IF($A$8=Nutrients!$B$77,Nutrients!$DG$77,Nutrients!$DG$78)))))*P$8))/2000/P$236*100","v":19.027649815152849},{"$f":"(SUMPRODUCT(Q$9:Q$229,Nutrients!$DG$8:$DG$228)+(IF($A$7=Nutrients!$B$8,Nutrients!$DG$8,Nutrients!$DG$9)*Q$7)+(((IF($A$8=Nutrients!$B$79,Nutrients!$DG$79,(IF($A$8=Nutrients!$B$77,Nutrients!$DG$77,Nutrients!$DG$78)))))*Q$8))/2000/Q$236*100","v":19.031221084062206},{"$f":"(SUMPRODUCT(R$9:R$229,Nutrients!$DG$8:$DG$228)+(IF($A$7=Nutrients!$B$8,Nutrients!$DG$8,Nutrients!$DG$9)*R$7)+(((IF($A$8=Nutrients!$B$79,Nutrients!$DG$79,(IF($A$8=Nutrients!$B$77,Nutrients!$DG$77,Nutrients!$DG$78)))))*R$8))/2000/R$236*100","v":19.070335150710036},{"$f":"(SUMPRODUCT(S$9:S$229,Nutrients!$DG$8:$DG$228)+(IF($A$7=Nutrients!$B$8,Nutrients!$DG$8,Nutrients!$DG$9)*S$7)+(((IF($A$8=Nutrients!$B$79,Nutrients!$DG$79,(IF($A$8=Nutrients!$B$77,Nutrients!$DG$77,Nutrients!$DG$78)))))*S$8))/2000/S$236*100","v":19.039848707860809},{"$f":"(SUMPRODUCT(T$9:T$229,Nutrients!$DG$8:$DG$228)+(IF($A$7=Nutrients!$B$8,Nutrients!$DG$8,Nutrients!$DG$9)*T$7)+(((IF($A$8=Nutrients!$B$79,Nutrients!$DG$79,(IF($A$8=Nutrients!$B$77,Nutrients!$DG$77,Nutrients!$DG$78)))))*T$8))/2000/T$236*100","v":19.043371125566264},{"$f":"(SUMPRODUCT(U$9:U$229,Nutrients!$DG$8:$DG$228)+(IF($A$7=Nutrients!$B$8,Nutrients!$DG$8,Nutrients!$DG$9)*U$7)+(((IF($A$8=Nutrients!$B$79,Nutrients!$DG$79,(IF($A$8=Nutrients!$B$77,Nutrients!$DG$77,Nutrients!$DG$78)))))*U$8))/2000/U$236*100","v":19.045699649037541},null,{"$f":"(SUMPRODUCT(W$9:W$229,Nutrients!$DG$8:$DG$228)+(IF($A$7=Nutrients!$B$8,Nutrients!$DG$8,Nutrients!$DG$9)*W$7)+(((IF($A$8=Nutrients!$B$79,Nutrients!$DG$79,(IF($A$8=Nutrients!$B$77,Nutrients!$DG$77,Nutrients!$DG$78)))))*W$8))/2000/W$236*100","v":19.062119904714191},{"$f":"(SUMPRODUCT(X$9:X$229,Nutrients!$DG$8:$DG$228)+(IF($A$7=Nutrients!$B$8,Nutrients!$DG$8,Nutrients!$DG$9)*X$7)+(((IF($A$8=Nutrients!$B$79,Nutrients!$DG$79,(IF($A$8=Nutrients!$B$77,Nutrients!$DG$77,Nutrients!$DG$78)))))*X$8))/2000/X$236*100","v":19.070193841739965},{"$f":"(SUMPRODUCT(Y$9:Y$229,Nutrients!$DG$8:$DG$228)+(IF($A$7=Nutrients!$B$8,Nutrients!$DG$8,Nutrients!$DG$9)*Y$7)+(((IF($A$8=Nutrients!$B$79,Nutrients!$DG$79,(IF($A$8=Nutrients!$B$77,Nutrients!$DG$77,Nutrients!$DG$78)))))*Y$8))/2000/Y$236*100","v":19.114450656589934},{"$f":"(SUMPRODUCT(Z$9:Z$229,Nutrients!$DG$8:$DG$228)+(IF($A$7=Nutrients!$B$8,Nutrients!$DG$8,Nutrients!$DG$9)*Z$7)+(((IF($A$8=Nutrients!$B$79,Nutrients!$DG$79,(IF($A$8=Nutrients!$B$77,Nutrients!$DG$77,Nutrients!$DG$78)))))*Z$8))/2000/Z$236*100","v":19.089366257750381},{"$f":"(SUMPRODUCT(AA$9:AA$229,Nutrients!$DG$8:$DG$228)+(IF($A$7=Nutrients!$B$8,Nutrients!$DG$8,Nutrients!$DG$9)*AA$7)+(((IF($A$8=Nutrients!$B$79,Nutrients!$DG$79,(IF($A$8=Nutrients!$B$77,Nutrients!$DG$77,Nutrients!$DG$78)))))*AA$8))/2000/AA$236*100","v":19.097330028987773},{"$f":"(SUMPRODUCT(AB$9:AB$229,Nutrients!$DG$8:$DG$228)+(IF($A$7=Nutrients!$B$8,Nutrients!$DG$8,Nutrients!$DG$9)*AB$7)+(((IF($A$8=Nutrients!$B$79,Nutrients!$DG$79,(IF($A$8=Nutrients!$B$77,Nutrients!$DG$77,Nutrients!$DG$78)))))*AB$8))/2000/AB$236*100","v":19.10219199509125},null,{"$f":"(SUMPRODUCT(AD$9:AD$229,Nutrients!$DG$8:$DG$228)+(IF($A$7=Nutrients!$B$8,Nutrients!$DG$8,Nutrients!$DG$9)*AD$7)+(((IF($A$8=Nutrients!$B$79,Nutrients!$DG$79,(IF($A$8=Nutrients!$B$77,Nutrients!$DG$77,Nutrients!$DG$78)))))*AD$8))/2000/AD$236*100","v":19.096580297643765},{"$f":"(SUMPRODUCT(AE$9:AE$229,Nutrients!$DG$8:$DG$228)+(IF($A$7=Nutrients!$B$8,Nutrients!$DG$8,Nutrients!$DG$9)*AE$7)+(((IF($A$8=Nutrients!$B$79,Nutrients!$DG$79,(IF($A$8=Nutrients!$B$77,Nutrients!$DG$77,Nutrients!$DG$78)))))*AE$8))/2000/AE$236*100","v":19.109173581715648},{"$f":"(SUMPRODUCT(AF$9:AF$229,Nutrients!$DG$8:$DG$228)+(IF($A$7=Nutrients!$B$8,Nutrients!$DG$8,Nutrients!$DG$9)*AF$7)+(((IF($A$8=Nutrients!$B$79,Nutrients!$DG$79,(IF($A$8=Nutrients!$B$77,Nutrients!$DG$77,Nutrients!$DG$78)))))*AF$8))/2000/AF$236*100","v":19.093349216619409},{"$f":"(SUMPRODUCT(AG$9:AG$229,Nutrients!$DG$8:$DG$228)+(IF($A$7=Nutrients!$B$8,Nutrients!$DG$8,Nutrients!$DG$9)*AG$7)+(((IF($A$8=Nutrients!$B$79,Nutrients!$DG$79,(IF($A$8=Nutrients!$B$77,Nutrients!$DG$77,Nutrients!$DG$78)))))*AG$8))/2000/AG$236*100","v":19.138772544792058},{"$f":"(SUMPRODUCT(AH$9:AH$229,Nutrients!$DG$8:$DG$228)+(IF($A$7=Nutrients!$B$8,Nutrients!$DG$8,Nutrients!$DG$9)*AH$7)+(((IF($A$8=Nutrients!$B$79,Nutrients!$DG$79,(IF($A$8=Nutrients!$B$77,Nutrients!$DG$77,Nutrients!$DG$78)))))*AH$8))/2000/AH$236*100","v":19.095908187686035},{"$f":"(SUMPRODUCT(AI$9:AI$229,Nutrients!$DG$8:$DG$228)+(IF($A$7=Nutrients!$B$8,Nutrients!$DG$8,Nutrients!$DG$9)*AI$7)+(((IF($A$8=Nutrients!$B$79,Nutrients!$DG$79,(IF($A$8=Nutrients!$B$77,Nutrients!$DG$77,Nutrients!$DG$78)))))*AI$8))/2000/AI$236*100","v":19.09615676629716},null,{"$f":"(SUMPRODUCT(AK$9:AK$229,Nutrients!$DG$8:$DG$228)+(IF($A$7=Nutrients!$B$8,Nutrients!$DG$8,Nutrients!$DG$9)*AK$7)+(((IF($A$8=Nutrients!$B$79,Nutrients!$DG$79,(IF($A$8=Nutrients!$B$77,Nutrients!$DG$77,Nutrients!$DG$78)))))*AK$8))/2000/AK$236*100","v":19.130972657266341},{"$f":"(SUMPRODUCT(AL$9:AL$229,Nutrients!$DG$8:$DG$228)+(IF($A$7=Nutrients!$B$8,Nutrients!$DG$8,Nutrients!$DG$9)*AL$7)+(((IF($A$8=Nutrients!$B$79,Nutrients!$DG$79,(IF($A$8=Nutrients!$B$77,Nutrients!$DG$77,Nutrients!$DG$78)))))*AL$8))/2000/AL$236*100","v":19.148154457169095},{"$f":"(SUMPRODUCT(AM$9:AM$229,Nutrients!$DG$8:$DG$228)+(IF($A$7=Nutrients!$B$8,Nutrients!$DG$8,Nutrients!$DG$9)*AM$7)+(((IF($A$8=Nutrients!$B$79,Nutrients!$DG$79,(IF($A$8=Nutrients!$B$77,Nutrients!$DG$77,Nutrients!$DG$78)))))*AM$8))/2000/AM$236*100","v":19.137402200304017},{"$f":"(SUMPRODUCT(AN$9:AN$229,Nutrients!$DG$8:$DG$228)+(IF($A$7=Nutrients!$B$8,Nutrients!$DG$8,Nutrients!$DG$9)*AN$7)+(((IF($A$8=Nutrients!$B$79,Nutrients!$DG$79,(IF($A$8=Nutrients!$B$77,Nutrients!$DG$77,Nutrients!$DG$78)))))*AN$8))/2000/AN$236*100","v":19.117938801808453},{"$f":"(SUMPRODUCT(AO$9:AO$229,Nutrients!$DG$8:$DG$228)+(IF($A$7=Nutrients!$B$8,Nutrients!$DG$8,Nutrients!$DG$9)*AO$7)+(((IF($A$8=Nutrients!$B$79,Nutrients!$DG$79,(IF($A$8=Nutrients!$B$77,Nutrients!$DG$77,Nutrients!$DG$78)))))*AO$8))/2000/AO$236*100","v":18.99838846318892},{"$f":"(SUMPRODUCT(AP$9:AP$229,Nutrients!$DG$8:$DG$228)+(IF($A$7=Nutrients!$B$8,Nutrients!$DG$8,Nutrients!$DG$9)*AP$7)+(((IF($A$8=Nutrients!$B$79,Nutrients!$DG$79,(IF($A$8=Nutrients!$B$77,Nutrients!$DG$77,Nutrients!$DG$78)))))*AP$8))/2000/AP$236*100","v":18.998304859108117},null,{"$f":"(SUMPRODUCT(AR$9:AR$229,Nutrients!$DG$8:$DG$228)+(IF($A$7=Nutrients!$B$8,Nutrients!$DG$8,Nutrients!$DG$9)*AR$7)+(((IF($A$8=Nutrients!$B$79,Nutrients!$DG$79,(IF($A$8=Nutrients!$B$77,Nutrients!$DG$77,Nutrients!$DG$78)))))*AR$8))/2000/AR$236*100","v":18.998939159421898},{"$f":"(SUMPRODUCT(AS$9:AS$229,Nutrients!$DG$8:$DG$228)+(IF($A$7=Nutrients!$B$8,Nutrients!$DG$8,Nutrients!$DG$9)*AS$7)+(((IF($A$8=Nutrients!$B$79,Nutrients!$DG$79,(IF($A$8=Nutrients!$B$77,Nutrients!$DG$77,Nutrients!$DG$78)))))*AS$8))/2000/AS$236*100","v":18.998797299999527},{"$f":"(SUMPRODUCT(AT$9:AT$229,Nutrients!$DG$8:$DG$228)+(IF($A$7=Nutrients!$B$8,Nutrients!$DG$8,Nutrients!$DG$9)*AT$7)+(((IF($A$8=Nutrients!$B$79,Nutrients!$DG$79,(IF($A$8=Nutrients!$B$77,Nutrients!$DG$77,Nutrients!$DG$78)))))*AT$8))/2000/AT$236*100","v":18.998599119055552},{"$f":"(SUMPRODUCT(AU$9:AU$229,Nutrients!$DG$8:$DG$228)+(IF($A$7=Nutrients!$B$8,Nutrients!$DG$8,Nutrients!$DG$9)*AU$7)+(((IF($A$8=Nutrients!$B$79,Nutrients!$DG$79,(IF($A$8=Nutrients!$B$77,Nutrients!$DG$77,Nutrients!$DG$78)))))*AU$8))/2000/AU$236*100","v":18.998224591125833},{"$f":"(SUMPRODUCT(AV$9:AV$229,Nutrients!$DG$8:$DG$228)+(IF($A$7=Nutrients!$B$8,Nutrients!$DG$8,Nutrients!$DG$9)*AV$7)+(((IF($A$8=Nutrients!$B$79,Nutrients!$DG$79,(IF($A$8=Nutrients!$B$77,Nutrients!$DG$77,Nutrients!$DG$78)))))*AV$8))/2000/AV$236*100","v":19.146462233224966},{"$f":"(SUMPRODUCT(AW$9:AW$229,Nutrients!$DG$8:$DG$228)+(IF($A$7=Nutrients!$B$8,Nutrients!$DG$8,Nutrients!$DG$9)*AW$7)+(((IF($A$8=Nutrients!$B$79,Nutrients!$DG$79,(IF($A$8=Nutrients!$B$77,Nutrients!$DG$77,Nutrients!$DG$78)))))*AW$8))/2000/AW$236*100","v":19.146205255993625}]
["  Val:Lys",{"$f":"(SUMPRODUCT(B$9:B$229,Nutrients!$DH$8:$DH$228)+(IF($A$7=Nutrients!$B$8,Nutrients!$DH$8,Nutrients!$DH$9)*B$7)+(((IF($A$8=Nutrients!$B$79,Nutrients!$DH$79,(IF($A$8=Nutrients!$B$77,Nutrients!$DH$77,Nutrients!$DH$78)))))*B$8))/2000/B$236*100","v":67.993447185961713},{"$f":"(SUMPRODUCT(C$9:C$229,Nutrients!$DH$8:$DH$228)+(IF($A$7=Nutrients!$B$8,Nutrients!$DH$8,Nutrients!$DH$9)*C$7)+(((IF($A$8=Nutrients!$B$79,Nutrients!$DH$79,(IF($A$8=Nutrients!$B$77,Nutrients!$DH$77,Nutrients!$DH$78)))))*C$8))/2000/C$236*100","v":68.398027542407448},{"$f":"(SUMPRODUCT(D$9:D$229,Nutrients!$DH$8:$DH$228)+(IF($A$7=Nutrients!$B$8,Nutrients!$DH$8,Nutrients!$DH$9)*D$7)+(((IF($A$8=Nutrients!$B$79,Nutrients!$DH$79,(IF($A$8=Nutrients!$B$77,Nutrients!$DH$77,Nutrients!$DH$78)))))*D$8))/2000/D$236*100","v":69.100266999000937},{"$f":"(SUMPRODUCT(E$9:E$229,Nutrients!$DH$8:$DH$228)+(IF($A$7=Nutrients!$B$8,Nutrients!$DH$8,Nutrients!$DH$9)*E$7)+(((IF($A$8=Nutrients!$B$79,Nutrients!$DH$79,(IF($A$8=Nutrients!$B$77,Nutrients!$DH$77,Nutrients!$DH$78)))))*E$8))/2000/E$236*100","v":69.699001665042786},{"$f":"(SUMPRODUCT(F$9:F$229,Nutrients!$DH$8:$DH$228)+(IF($A$7=Nutrients!$B$8,Nutrients!$DH$8,Nutrients!$DH$9)*F$7)+(((IF($A$8=Nutrients!$B$79,Nutrients!$DH$79,(IF($A$8=Nutrients!$B$77,Nutrients!$DH$77,Nutrients!$DH$78)))))*F$8))/2000/F$236*100","v":70.40130835469482},{"$f":"(SUMPRODUCT(G$9:G$229,Nutrients!$DH$8:$DH$228)+(IF($A$7=Nutrients!$B$8,Nutrients!$DH$8,Nutrients!$DH$9)*G$7)+(((IF($A$8=Nutrients!$B$79,Nutrients!$DH$79,(IF($A$8=Nutrients!$B$77,Nutrients!$DH$77,Nutrients!$DH$78)))))*G$8))/2000/G$236*100","v":71.102510214887189},null,{"$f":"(SUMPRODUCT(I$9:I$229,Nutrients!$DH$8:$DH$228)+(IF($A$7=Nutrients!$B$8,Nutrients!$DH$8,Nutrients!$DH$9)*I$7)+(((IF($A$8=Nutrients!$B$79,Nutrients!$DH$79,(IF($A$8=Nutrients!$B$77,Nutrients!$DH$77,Nutrients!$DH$78)))))*I$8))/2000/I$236*100","v":68.99664679497559},{"$f":"(SUMPRODUCT(J$9:J$229,Nutrients!$DH$8:$DH$228)+(IF($A$7=Nutrients!$B$8,Nutrients!$DH$8,Nutrients!$DH$9)*J$7)+(((IF($A$8=Nutrients!$B$79,Nutrients!$DH$79,(IF($A$8=Nutrients!$B$77,Nutrients!$DH$77,Nutrients!$DH$78)))))*J$8))/2000/J$236*100","v":69.531456841090204},{"$f":"(SUMPRODUCT(K$9:K$229,Nutrients!$DH$8:$DH$228)+(IF($A$7=Nutrients!$B$8,Nutrients!$DH$8,Nutrients!$DH$9)*K$7)+(((IF($A$8=Nutrients!$B$79,Nutrients!$DH$79,(IF($A$8=Nutrients!$B$77,Nutrients!$DH$77,Nutrients!$DH$78)))))*K$8))/2000/K$236*100","v":70.385069095769481},{"$f":"(SUMPRODUCT(L$9:L$229,Nutrients!$DH$8:$DH$228)+(IF($A$7=Nutrients!$B$8,Nutrients!$DH$8,Nutrients!$DH$9)*L$7)+(((IF($A$8=Nutrients!$B$79,Nutrients!$DH$79,(IF($A$8=Nutrients!$B$77,Nutrients!$DH$77,Nutrients!$DH$78)))))*L$8))/2000/L$236*100","v":71.144724169438206},{"$f":"(SUMPRODUCT(M$9:M$229,Nutrients!$DH$8:$DH$228)+(IF($A$7=Nutrients!$B$8,Nutrients!$DH$8,Nutrients!$DH$9)*M$7)+(((IF($A$8=Nutrients!$B$79,Nutrients!$DH$79,(IF($A$8=Nutrients!$B$77,Nutrients!$DH$77,Nutrients!$DH$78)))))*M$8))/2000/M$236*100","v":71.976319383478256},{"$f":"(SUMPRODUCT(N$9:N$229,Nutrients!$DH$8:$DH$228)+(IF($A$7=Nutrients!$B$8,Nutrients!$DH$8,Nutrients!$DH$9)*N$7)+(((IF($A$8=Nutrients!$B$79,Nutrients!$DH$79,(IF($A$8=Nutrients!$B$77,Nutrients!$DH$77,Nutrients!$DH$78)))))*N$8))/2000/N$236*100","v":72.763866555688239},null,{"$f":"(SUMPRODUCT(P$9:P$229,Nutrients!$DH$8:$DH$228)+(IF($A$7=Nutrients!$B$8,Nutrients!$DH$8,Nutrients!$DH$9)*P$7)+(((IF($A$8=Nutrients!$B$79,Nutrients!$DH$79,(IF($A$8=Nutrients!$B$77,Nutrients!$DH$77,Nutrients!$DH$78)))))*P$8))/2000/P$236*100","v":69.999687369182922},{"$f":"(SUMPRODUCT(Q$9:Q$229,Nutrients!$DH$8:$DH$228)+(IF($A$7=Nutrients!$B$8,Nutrients!$DH$8,Nutrients!$DH$9)*Q$7)+(((IF($A$8=Nutrients!$B$79,Nutrients!$DH$79,(IF($A$8=Nutrients!$B$77,Nutrients!$DH$77,Nutrients!$DH$78)))))*Q$8))/2000/Q$236*100","v":70.665560521273761},{"$f":"(SUMPRODUCT(R$9:R$229,Nutrients!$DH$8:$DH$228)+(IF($A$7=Nutrients!$B$8,Nutrients!$DH$8,Nutrients!$DH$9)*R$7)+(((IF($A$8=Nutrients!$B$79,Nutrients!$DH$79,(IF($A$8=Nutrients!$B$77,Nutrients!$DH$77,Nutrients!$DH$78)))))*R$8))/2000/R$236*100","v":71.667610758631966},{"$f":"(SUMPRODUCT(S$9:S$229,Nutrients!$DH$8:$DH$228)+(IF($A$7=Nutrients!$B$8,Nutrients!$DH$8,Nutrients!$DH$9)*S$7)+(((IF($A$8=Nutrients!$B$79,Nutrients!$DH$79,(IF($A$8=Nutrients!$B$77,Nutrients!$DH$77,Nutrients!$DH$78)))))*S$8))/2000/S$236*100","v":72.58411244240726},{"$f":"(SUMPRODUCT(T$9:T$229,Nutrients!$DH$8:$DH$228)+(IF($A$7=Nutrients!$B$8,Nutrients!$DH$8,Nutrients!$DH$9)*T$7)+(((IF($A$8=Nutrients!$B$79,Nutrients!$DH$79,(IF($A$8=Nutrients!$B$77,Nutrients!$DH$77,Nutrients!$DH$78)))))*T$8))/2000/T$236*100","v":73.546896541268609},{"$f":"(SUMPRODUCT(U$9:U$229,Nutrients!$DH$8:$DH$228)+(IF($A$7=Nutrients!$B$8,Nutrients!$DH$8,Nutrients!$DH$9)*U$7)+(((IF($A$8=Nutrients!$B$79,Nutrients!$DH$79,(IF($A$8=Nutrients!$B$77,Nutrients!$DH$77,Nutrients!$DH$78)))))*U$8))/2000/U$236*100","v":74.417492014044996},null,{"$f":"(SUMPRODUCT(W$9:W$229,Nutrients!$DH$8:$DH$228)+(IF($A$7=Nutrients!$B$8,Nutrients!$DH$8,Nutrients!$DH$9)*W$7)+(((IF($A$8=Nutrients!$B$79,Nutrients!$DH$79,(IF($A$8=Nutrients!$B$77,Nutrients!$DH$77,Nutrients!$DH$78)))))*W$8))/2000/W$236*100","v":71.00249002327341},{"$f":"(SUMPRODUCT(X$9:X$229,Nutrients!$DH$8:$DH$228)+(IF($A$7=Nutrients!$B$8,Nutrients!$DH$8,Nutrients!$DH$9)*X$7)+(((IF($A$8=Nutrients!$B$79,Nutrients!$DH$79,(IF($A$8=Nutrients!$B$77,Nutrients!$DH$77,Nutrients!$DH$78)))))*X$8))/2000/X$236*100","v":71.799341231722508},{"$f":"(SUMPRODUCT(Y$9:Y$229,Nutrients!$DH$8:$DH$228)+(IF($A$7=Nutrients!$B$8,Nutrients!$DH$8,Nutrients!$DH$9)*Y$7)+(((IF($A$8=Nutrients!$B$79,Nutrients!$DH$79,(IF($A$8=Nutrients!$B$77,Nutrients!$DH$77,Nutrients!$DH$78)))))*Y$8))/2000/Y$236*100","v":72.951024602621061},{"$f":"(SUMPRODUCT(Z$9:Z$229,Nutrients!$DH$8:$DH$228)+(IF($A$7=Nutrients!$B$8,Nutrients!$DH$8,Nutrients!$DH$9)*Z$7)+(((IF($A$8=Nutrients!$B$79,Nutrients!$DH$79,(IF($A$8=Nutrients!$B$77,Nutrients!$DH$77,Nutrients!$DH$78)))))*Z$8))/2000/Z$236*100","v":74.024699425726041},{"$f":"(SUMPRODUCT(AA$9:AA$229,Nutrients!$DH$8:$DH$228)+(IF($A$7=Nutrients!$B$8,Nutrients!$DH$8,Nutrients!$DH$9)*AA$7)+(((IF($A$8=Nutrients!$B$79,Nutrients!$DH$79,(IF($A$8=Nutrients!$B$77,Nutrients!$DH$77,Nutrients!$DH$78)))))*AA$8))/2000/AA$236*100","v":75.116595438835375},{"$f":"(SUMPRODUCT(AB$9:AB$229,Nutrients!$DH$8:$DH$228)+(IF($A$7=Nutrients!$B$8,Nutrients!$DH$8,Nutrients!$DH$9)*AB$7)+(((IF($A$8=Nutrients!$B$79,Nutrients!$DH$79,(IF($A$8=Nutrients!$B$77,Nutrients!$DH$77,Nutrients!$DH$78)))))*AB$8))/2000/AB$236*100","v":76.060536088363705},null,{"$f":"(SUMPRODUCT(AD$9:AD$229,Nutrients!$DH$8:$DH$228)+(IF($A$7=Nutrients!$B$8,Nutrients!$DH$8,Nutrients!$DH$9)*AD$7)+(((IF($A$8=Nutrients!$B$79,Nutrients!$DH$79,(IF($A$8=Nutrients!$B$77,Nutrients!$DH$77,Nutrients!$DH$78)))))*AD$8))/2000/AD$236*100","v":72.005000669355596},{"$f":"(SUMPRODUCT(AE$9:AE$229,Nutrients!$DH$8:$DH$228)+(IF($A$7=Nutrients!$B$8,Nutrients!$DH$8,Nutrients!$DH$9)*AE$7)+(((IF($A$8=Nutrients!$B$79,Nutrients!$DH$79,(IF($A$8=Nutrients!$B$77,Nutrients!$DH$77,Nutrients!$DH$78)))))*AE$8))/2000/AE$236*100","v":72.93333220971121},{"$f":"(SUMPRODUCT(AF$9:AF$229,Nutrients!$DH$8:$DH$228)+(IF($A$7=Nutrients!$B$8,Nutrients!$DH$8,Nutrients!$DH$9)*AF$7)+(((IF($A$8=Nutrients!$B$79,Nutrients!$DH$79,(IF($A$8=Nutrients!$B$77,Nutrients!$DH$77,Nutrients!$DH$78)))))*AF$8))/2000/AF$236*100","v":74.235391186848361},{"$f":"(SUMPRODUCT(AG$9:AG$229,Nutrients!$DH$8:$DH$228)+(IF($A$7=Nutrients!$B$8,Nutrients!$DH$8,Nutrients!$DH$9)*AG$7)+(((IF($A$8=Nutrients!$B$79,Nutrients!$DH$79,(IF($A$8=Nutrients!$B$77,Nutrients!$DH$77,Nutrients!$DH$78)))))*AG$8))/2000/AG$236*100","v":75.461935797886809},{"$f":"(SUMPRODUCT(AH$9:AH$229,Nutrients!$DH$8:$DH$228)+(IF($A$7=Nutrients!$B$8,Nutrients!$DH$8,Nutrients!$DH$9)*AH$7)+(((IF($A$8=Nutrients!$B$79,Nutrients!$DH$79,(IF($A$8=Nutrients!$B$77,Nutrients!$DH$77,Nutrients!$DH$78)))))*AH$8))/2000/AH$236*100","v":76.657309850615462},{"$f":"(SUMPRODUCT(AI$9:AI$229,Nutrients!$DH$8:$DH$228)+(IF($A$7=Nutrients!$B$8,Nutrients!$DH$8,Nutrients!$DH$9)*AI$7)+(((IF($A$8=Nutrients!$B$79,Nutrients!$DH$79,(IF($A$8=Nutrients!$B$77,Nutrients!$DH$77,Nutrients!$DH$78)))))*AI$8))/2000/AI$236*100","v":77.67300036351223},null,{"$f":"(SUMPRODUCT(AK$9:AK$229,Nutrients!$DH$8:$DH$228)+(IF($A$7=Nutrients!$B$8,Nutrients!$DH$8,Nutrients!$DH$9)*AK$7)+(((IF($A$8=Nutrients!$B$79,Nutrients!$DH$79,(IF($A$8=Nutrients!$B$77,Nutrients!$DH$77,Nutrients!$DH$78)))))*AK$8))/2000/AK$236*100","v":73.005462534897902},{"$f":"(SUMPRODUCT(AL$9:AL$229,Nutrients!$DH$8:$DH$228)+(IF($A$7=Nutrients!$B$8,Nutrients!$DH$8,Nutrients!$DH$9)*AL$7)+(((IF($A$8=Nutrients!$B$79,Nutrients!$DH$79,(IF($A$8=Nutrients!$B$77,Nutrients!$DH$77,Nutrients!$DH$78)))))*AL$8))/2000/AL$236*100","v":74.067357381903577},{"$f":"(SUMPRODUCT(AM$9:AM$229,Nutrients!$DH$8:$DH$228)+(IF($A$7=Nutrients!$B$8,Nutrients!$DH$8,Nutrients!$DH$9)*AM$7)+(((IF($A$8=Nutrients!$B$79,Nutrients!$DH$79,(IF($A$8=Nutrients!$B$77,Nutrients!$DH$77,Nutrients!$DH$78)))))*AM$8))/2000/AM$236*100","v":75.516922213983719},{"$f":"(SUMPRODUCT(AN$9:AN$229,Nutrients!$DH$8:$DH$228)+(IF($A$7=Nutrients!$B$8,Nutrients!$DH$8,Nutrients!$DH$9)*AN$7)+(((IF($A$8=Nutrients!$B$79,Nutrients!$DH$79,(IF($A$8=Nutrients!$B$77,Nutrients!$DH$77,Nutrients!$DH$78)))))*AN$8))/2000/AN$236*100","v":76.876333852522947},{"$f":"(SUMPRODUCT(AO$9:AO$229,Nutrients!$DH$8:$DH$228)+(IF($A$7=Nutrients!$B$8,Nutrients!$DH$8,Nutrients!$DH$9)*AO$7)+(((IF($A$8=Nutrients!$B$79,Nutrients!$DH$79,(IF($A$8=Nutrients!$B$77,Nutrients!$DH$77,Nutrients!$DH$78)))))*AO$8))/2000/AO$236*100","v":78.190708608396434},{"$f":"(SUMPRODUCT(AP$9:AP$229,Nutrients!$DH$8:$DH$228)+(IF($A$7=Nutrients!$B$8,Nutrients!$DH$8,Nutrients!$DH$9)*AP$7)+(((IF($A$8=Nutrients!$B$79,Nutrients!$DH$79,(IF($A$8=Nutrients!$B$77,Nutrients!$DH$77,Nutrients!$DH$78)))))*AP$8))/2000/AP$236*100","v":79.288002655784837},null,{"$f":"(SUMPRODUCT(AR$9:AR$229,Nutrients!$DH$8:$DH$228)+(IF($A$7=Nutrients!$B$8,Nutrients!$DH$8,Nutrients!$DH$9)*AR$7)+(((IF($A$8=Nutrients!$B$79,Nutrients!$DH$79,(IF($A$8=Nutrients!$B$77,Nutrients!$DH$77,Nutrients!$DH$78)))))*AR$8))/2000/AR$236*100","v":74.009003847866126},{"$f":"(SUMPRODUCT(AS$9:AS$229,Nutrients!$DH$8:$DH$228)+(IF($A$7=Nutrients!$B$8,Nutrients!$DH$8,Nutrients!$DH$9)*AS$7)+(((IF($A$8=Nutrients!$B$79,Nutrients!$DH$79,(IF($A$8=Nutrients!$B$77,Nutrients!$DH$77,Nutrients!$DH$78)))))*AS$8))/2000/AS$236*100","v":75.201363711637796},{"$f":"(SUMPRODUCT(AT$9:AT$229,Nutrients!$DH$8:$DH$228)+(IF($A$7=Nutrients!$B$8,Nutrients!$DH$8,Nutrients!$DH$9)*AT$7)+(((IF($A$8=Nutrients!$B$79,Nutrients!$DH$79,(IF($A$8=Nutrients!$B$77,Nutrients!$DH$77,Nutrients!$DH$78)))))*AT$8))/2000/AT$236*100","v":76.79313346382871},{"$f":"(SUMPRODUCT(AU$9:AU$229,Nutrients!$DH$8:$DH$228)+(IF($A$7=Nutrients!$B$8,Nutrients!$DH$8,Nutrients!$DH$9)*AU$7)+(((IF($A$8=Nutrients!$B$79,Nutrients!$DH$79,(IF($A$8=Nutrients!$B$77,Nutrients!$DH$77,Nutrients!$DH$78)))))*AU$8))/2000/AU$236*100","v":78.281112847411123},{"$f":"(SUMPRODUCT(AV$9:AV$229,Nutrients!$DH$8:$DH$228)+(IF($A$7=Nutrients!$B$8,Nutrients!$DH$8,Nutrients!$DH$9)*AV$7)+(((IF($A$8=Nutrients!$B$79,Nutrients!$DH$79,(IF($A$8=Nutrients!$B$77,Nutrients!$DH$77,Nutrients!$DH$78)))))*AV$8))/2000/AV$236*100","v":79.723581366892262},{"$f":"(SUMPRODUCT(AW$9:AW$229,Nutrients!$DH$8:$DH$228)+(IF($A$7=Nutrients!$B$8,Nutrients!$DH$8,Nutrients!$DH$9)*AW$7)+(((IF($A$8=Nutrients!$B$79,Nutrients!$DH$79,(IF($A$8=Nutrients!$B$77,Nutrients!$DH$77,Nutrients!$DH$78)))))*AW$8))/2000/AW$236*100","v":80.902475721299496}]
["  His:Lys",{"$f":"(SUMPRODUCT(B$9:B$229,Nutrients!$CX$8:$CX$228)+(IF($A$7=Nutrients!$B$8,Nutrients!$CX$8,Nutrients!$CX$9)*B$7)+(((IF($A$8=Nutrients!$B$79,Nutrients!$CX$79,(IF($A$8=Nutrients!$B$77,Nutrients!$CX$77,Nutrients!$CX$78)))))*B$8))/2000/B$236*100","v":41.164178486168282},{"$f":"(SUMPRODUCT(C$9:C$229,Nutrients!$CX$8:$CX$228)+(IF($A$7=Nutrients!$B$8,Nutrients!$CX$8,Nutrients!$CX$9)*C$7)+(((IF($A$8=Nutrients!$B$79,Nutrients!$CX$79,(IF($A$8=Nutrients!$B$77,Nutrients!$CX$77,Nutrients!$CX$78)))))*C$8))/2000/C$236*100","v":41.586004986324909},{"$f":"(SUMPRODUCT(D$9:D$229,Nutrients!$CX$8:$CX$228)+(IF($A$7=Nutrients!$B$8,Nutrients!$CX$8,Nutrients!$CX$9)*D$7)+(((IF($A$8=Nutrients!$B$79,Nutrients!$CX$79,(IF($A$8=Nutrients!$B$77,Nutrients!$CX$77,Nutrients!$CX$78)))))*D$8))/2000/D$236*100","v":42.207205920724832},{"$f":"(SUMPRODUCT(E$9:E$229,Nutrients!$CX$8:$CX$228)+(IF($A$7=Nutrients!$B$8,Nutrients!$CX$8,Nutrients!$CX$9)*E$7)+(((IF($A$8=Nutrients!$B$79,Nutrients!$CX$79,(IF($A$8=Nutrients!$B$77,Nutrients!$CX$77,Nutrients!$CX$78)))))*E$8))/2000/E$236*100","v":42.778460155865318},{"$f":"(SUMPRODUCT(F$9:F$229,Nutrients!$CX$8:$CX$228)+(IF($A$7=Nutrients!$B$8,Nutrients!$CX$8,Nutrients!$CX$9)*F$7)+(((IF($A$8=Nutrients!$B$79,Nutrients!$CX$79,(IF($A$8=Nutrients!$B$77,Nutrients!$CX$77,Nutrients!$CX$78)))))*F$8))/2000/F$236*100","v":43.376570604149812},{"$f":"(SUMPRODUCT(G$9:G$229,Nutrients!$CX$8:$CX$228)+(IF($A$7=Nutrients!$B$8,Nutrients!$CX$8,Nutrients!$CX$9)*G$7)+(((IF($A$8=Nutrients!$B$79,Nutrients!$CX$79,(IF($A$8=Nutrients!$B$77,Nutrients!$CX$77,Nutrients!$CX$78)))))*G$8))/2000/G$236*100","v":43.904809548771325},null,{"$f":"(SUMPRODUCT(I$9:I$229,Nutrients!$CX$8:$CX$228)+(IF($A$7=Nutrients!$B$8,Nutrients!$CX$8,Nutrients!$CX$9)*I$7)+(((IF($A$8=Nutrients!$B$79,Nutrients!$CX$79,(IF($A$8=Nutrients!$B$77,Nutrients!$CX$77,Nutrients!$CX$78)))))*I$8))/2000/I$236*100","v":41.485269296890401},{"$f":"(SUMPRODUCT(J$9:J$229,Nutrients!$CX$8:$CX$228)+(IF($A$7=Nutrients!$B$8,Nutrients!$CX$8,Nutrients!$CX$9)*J$7)+(((IF($A$8=Nutrients!$B$79,Nutrients!$CX$79,(IF($A$8=Nutrients!$B$77,Nutrients!$CX$77,Nutrients!$CX$78)))))*J$8))/2000/J$236*100","v":41.94835417078032},{"$f":"(SUMPRODUCT(K$9:K$229,Nutrients!$CX$8:$CX$228)+(IF($A$7=Nutrients!$B$8,Nutrients!$CX$8,Nutrients!$CX$9)*K$7)+(((IF($A$8=Nutrients!$B$79,Nutrients!$CX$79,(IF($A$8=Nutrients!$B$77,Nutrients!$CX$77,Nutrients!$CX$78)))))*K$8))/2000/K$236*100","v":42.618814292605087},{"$f":"(SUMPRODUCT(L$9:L$229,Nutrients!$CX$8:$CX$228)+(IF($A$7=Nutrients!$B$8,Nutrients!$CX$8,Nutrients!$CX$9)*L$7)+(((IF($A$8=Nutrients!$B$79,Nutrients!$CX$79,(IF($A$8=Nutrients!$B$77,Nutrients!$CX$77,Nutrients!$CX$78)))))*L$8))/2000/L$236*100","v":43.243058632815298},{"$f":"(SUMPRODUCT(M$9:M$229,Nutrients!$CX$8:$CX$228)+(IF($A$7=Nutrients!$B$8,Nutrients!$CX$8,Nutrients!$CX$9)*M$7)+(((IF($A$8=Nutrients!$B$79,Nutrients!$CX$79,(IF($A$8=Nutrients!$B$77,Nutrients!$CX$77,Nutrients!$CX$78)))))*M$8))/2000/M$236*100","v":43.881593771041416},{"$f":"(SUMPRODUCT(N$9:N$229,Nutrients!$CX$8:$CX$228)+(IF($A$7=Nutrients!$B$8,Nutrients!$CX$8,Nutrients!$CX$9)*N$7)+(((IF($A$8=Nutrients!$B$79,Nutrients!$CX$79,(IF($A$8=Nutrients!$B$77,Nutrients!$CX$77,Nutrients!$CX$78)))))*N$8))/2000/N$236*100","v":44.438331500209436},null,{"$f":"(SUMPRODUCT(P$9:P$229,Nutrients!$CX$8:$CX$228)+(IF($A$7=Nutrients!$B$8,Nutrients!$CX$8,Nutrients!$CX$9)*P$7)+(((IF($A$8=Nutrients!$B$79,Nutrients!$CX$79,(IF($A$8=Nutrients!$B$77,Nutrients!$CX$77,Nutrients!$CX$78)))))*P$8))/2000/P$236*100","v":41.80625281794692},{"$f":"(SUMPRODUCT(Q$9:Q$229,Nutrients!$CX$8:$CX$228)+(IF($A$7=Nutrients!$B$8,Nutrients!$CX$8,Nutrients!$CX$9)*Q$7)+(((IF($A$8=Nutrients!$B$79,Nutrients!$CX$79,(IF($A$8=Nutrients!$B$77,Nutrients!$CX$77,Nutrients!$CX$78)))))*Q$8))/2000/Q$236*100","v":42.311158313287315},{"$f":"(SUMPRODUCT(R$9:R$229,Nutrients!$CX$8:$CX$228)+(IF($A$7=Nutrients!$B$8,Nutrients!$CX$8,Nutrients!$CX$9)*R$7)+(((IF($A$8=Nutrients!$B$79,Nutrients!$CX$79,(IF($A$8=Nutrients!$B$77,Nutrients!$CX$77,Nutrients!$CX$78)))))*R$8))/2000/R$236*100","v":43.028897707759164},{"$f":"(SUMPRODUCT(S$9:S$229,Nutrients!$CX$8:$CX$228)+(IF($A$7=Nutrients!$B$8,Nutrients!$CX$8,Nutrients!$CX$9)*S$7)+(((IF($A$8=Nutrients!$B$79,Nutrients!$CX$79,(IF($A$8=Nutrients!$B$77,Nutrients!$CX$77,Nutrients!$CX$78)))))*S$8))/2000/S$236*100","v":43.703383846657339},{"$f":"(SUMPRODUCT(T$9:T$229,Nutrients!$CX$8:$CX$228)+(IF($A$7=Nutrients!$B$8,Nutrients!$CX$8,Nutrients!$CX$9)*T$7)+(((IF($A$8=Nutrients!$B$79,Nutrients!$CX$79,(IF($A$8=Nutrients!$B$77,Nutrients!$CX$77,Nutrients!$CX$78)))))*T$8))/2000/T$236*100","v":44.383625715152384},{"$f":"(SUMPRODUCT(U$9:U$229,Nutrients!$CX$8:$CX$228)+(IF($A$7=Nutrients!$B$8,Nutrients!$CX$8,Nutrients!$CX$9)*U$7)+(((IF($A$8=Nutrients!$B$79,Nutrients!$CX$79,(IF($A$8=Nutrients!$B$77,Nutrients!$CX$77,Nutrients!$CX$78)))))*U$8))/2000/U$236*100","v":44.9666379657397},null,{"$f":"(SUMPRODUCT(W$9:W$229,Nutrients!$CX$8:$CX$228)+(IF($A$7=Nutrients!$B$8,Nutrients!$CX$8,Nutrients!$CX$9)*W$7)+(((IF($A$8=Nutrients!$B$79,Nutrients!$CX$79,(IF($A$8=Nutrients!$B$77,Nutrients!$CX$77,Nutrients!$CX$78)))))*W$8))/2000/W$236*100","v":42.127075830933961},{"$f":"(SUMPRODUCT(X$9:X$229,Nutrients!$CX$8:$CX$228)+(IF($A$7=Nutrients!$B$8,Nutrients!$CX$8,Nutrients!$CX$9)*X$7)+(((IF($A$8=Nutrients!$B$79,Nutrients!$CX$79,(IF($A$8=Nutrients!$B$77,Nutrients!$CX$77,Nutrients!$CX$78)))))*X$8))/2000/X$236*100","v":42.673744570693529},{"$f":"(SUMPRODUCT(Y$9:Y$229,Nutrients!$CX$8:$CX$228)+(IF($A$7=Nutrients!$B$8,Nutrients!$CX$8,Nutrients!$CX$9)*Y$7)+(((IF($A$8=Nutrients!$B$79,Nutrients!$CX$79,(IF($A$8=Nutrients!$B$77,Nutrients!$CX$77,Nutrients!$CX$78)))))*Y$8))/2000/Y$236*100","v":43.439569522543906},{"$f":"(SUMPRODUCT(Z$9:Z$229,Nutrients!$CX$8:$CX$228)+(IF($A$7=Nutrients!$B$8,Nutrients!$CX$8,Nutrients!$CX$9)*Z$7)+(((IF($A$8=Nutrients!$B$79,Nutrients!$CX$79,(IF($A$8=Nutrients!$B$77,Nutrients!$CX$77,Nutrients!$CX$78)))))*Z$8))/2000/Z$236*100","v":44.164517746568727},{"$f":"(SUMPRODUCT(AA$9:AA$229,Nutrients!$CX$8:$CX$228)+(IF($A$7=Nutrients!$B$8,Nutrients!$CX$8,Nutrients!$CX$9)*AA$7)+(((IF($A$8=Nutrients!$B$79,Nutrients!$CX$79,(IF($A$8=Nutrients!$B$77,Nutrients!$CX$77,Nutrients!$CX$78)))))*AA$8))/2000/AA$236*100","v":44.885065158490953},{"$f":"(SUMPRODUCT(AB$9:AB$229,Nutrients!$CX$8:$CX$228)+(IF($A$7=Nutrients!$B$8,Nutrients!$CX$8,Nutrients!$CX$9)*AB$7)+(((IF($A$8=Nutrients!$B$79,Nutrients!$CX$79,(IF($A$8=Nutrients!$B$77,Nutrients!$CX$77,Nutrients!$CX$78)))))*AB$8))/2000/AB$236*100","v":45.487805911219553},null,{"$f":"(SUMPRODUCT(AD$9:AD$229,Nutrients!$CX$8:$CX$228)+(IF($A$7=Nutrients!$B$8,Nutrients!$CX$8,Nutrients!$CX$9)*AD$7)+(((IF($A$8=Nutrients!$B$79,Nutrients!$CX$79,(IF($A$8=Nutrients!$B$77,Nutrients!$CX$77,Nutrients!$CX$78)))))*AD$8))/2000/AD$236*100","v":42.447701846532482},{"$f":"(SUMPRODUCT(AE$9:AE$229,Nutrients!$CX$8:$CX$228)+(IF($A$7=Nutrients!$B$8,Nutrients!$CX$8,Nutrients!$CX$9)*AE$7)+(((IF($A$8=Nutrients!$B$79,Nutrients!$CX$79,(IF($A$8=Nutrients!$B$77,Nutrients!$CX$77,Nutrients!$CX$78)))))*AE$8))/2000/AE$236*100","v":43.03647268090883},{"$f":"(SUMPRODUCT(AF$9:AF$229,Nutrients!$CX$8:$CX$228)+(IF($A$7=Nutrients!$B$8,Nutrients!$CX$8,Nutrients!$CX$9)*AF$7)+(((IF($A$8=Nutrients!$B$79,Nutrients!$CX$79,(IF($A$8=Nutrients!$B$77,Nutrients!$CX$77,Nutrients!$CX$78)))))*AF$8))/2000/AF$236*100","v":43.85088408455988},{"$f":"(SUMPRODUCT(AG$9:AG$229,Nutrients!$CX$8:$CX$228)+(IF($A$7=Nutrients!$B$8,Nutrients!$CX$8,Nutrients!$CX$9)*AG$7)+(((IF($A$8=Nutrients!$B$79,Nutrients!$CX$79,(IF($A$8=Nutrients!$B$77,Nutrients!$CX$77,Nutrients!$CX$78)))))*AG$8))/2000/AG$236*100","v":44.623391223377936},{"$f":"(SUMPRODUCT(AH$9:AH$229,Nutrients!$CX$8:$CX$228)+(IF($A$7=Nutrients!$B$8,Nutrients!$CX$8,Nutrients!$CX$9)*AH$7)+(((IF($A$8=Nutrients!$B$79,Nutrients!$CX$79,(IF($A$8=Nutrients!$B$77,Nutrients!$CX$77,Nutrients!$CX$78)))))*AH$8))/2000/AH$236*100","v":45.366950795617122},{"$f":"(SUMPRODUCT(AI$9:AI$229,Nutrients!$CX$8:$CX$228)+(IF($A$7=Nutrients!$B$8,Nutrients!$CX$8,Nutrients!$CX$9)*AI$7)+(((IF($A$8=Nutrients!$B$79,Nutrients!$CX$79,(IF($A$8=Nutrients!$B$77,Nutrients!$CX$77,Nutrients!$CX$78)))))*AI$8))/2000/AI$236*100","v":45.988343804077822},null,{"$f":"(SUMPRODUCT(AK$9:AK$229,Nutrients!$CX$8:$CX$228)+(IF($A$7=Nutrients!$B$8,Nutrients!$CX$8,Nutrients!$CX$9)*AK$7)+(((IF($A$8=Nutrients!$B$79,Nutrients!$CX$79,(IF($A$8=Nutrients!$B$77,Nutrients!$CX$77,Nutrients!$CX$78)))))*AK$8))/2000/AK$236*100","v":42.766945693134005},{"$f":"(SUMPRODUCT(AL$9:AL$229,Nutrients!$CX$8:$CX$228)+(IF($A$7=Nutrients!$B$8,Nutrients!$CX$8,Nutrients!$CX$9)*AL$7)+(((IF($A$8=Nutrients!$B$79,Nutrients!$CX$79,(IF($A$8=Nutrients!$B$77,Nutrients!$CX$77,Nutrients!$CX$78)))))*AL$8))/2000/AL$236*100","v":43.399223859562774},{"$f":"(SUMPRODUCT(AM$9:AM$229,Nutrients!$CX$8:$CX$228)+(IF($A$7=Nutrients!$B$8,Nutrients!$CX$8,Nutrients!$CX$9)*AM$7)+(((IF($A$8=Nutrients!$B$79,Nutrients!$CX$79,(IF($A$8=Nutrients!$B$77,Nutrients!$CX$77,Nutrients!$CX$78)))))*AM$8))/2000/AM$236*100","v":44.260285694443887},{"$f":"(SUMPRODUCT(AN$9:AN$229,Nutrients!$CX$8:$CX$228)+(IF($A$7=Nutrients!$B$8,Nutrients!$CX$8,Nutrients!$CX$9)*AN$7)+(((IF($A$8=Nutrients!$B$79,Nutrients!$CX$79,(IF($A$8=Nutrients!$B$77,Nutrients!$CX$77,Nutrients!$CX$78)))))*AN$8))/2000/AN$236*100","v":45.066857284013508},{"$f":"(SUMPRODUCT(AO$9:AO$229,Nutrients!$CX$8:$CX$228)+(IF($A$7=Nutrients!$B$8,Nutrients!$CX$8,Nutrients!$CX$9)*AO$7)+(((IF($A$8=Nutrients!$B$79,Nutrients!$CX$79,(IF($A$8=Nutrients!$B$77,Nutrients!$CX$77,Nutrients!$CX$78)))))*AO$8))/2000/AO$236*100","v":45.843901072438165},{"$f":"(SUMPRODUCT(AP$9:AP$229,Nutrients!$CX$8:$CX$228)+(IF($A$7=Nutrients!$B$8,Nutrients!$CX$8,Nutrients!$CX$9)*AP$7)+(((IF($A$8=Nutrients!$B$79,Nutrients!$CX$79,(IF($A$8=Nutrients!$B$77,Nutrients!$CX$77,Nutrients!$CX$78)))))*AP$8))/2000/AP$236*100","v":46.490593919653215},null,{"$f":"(SUMPRODUCT(AR$9:AR$229,Nutrients!$CX$8:$CX$228)+(IF($A$7=Nutrients!$B$8,Nutrients!$CX$8,Nutrients!$CX$9)*AR$7)+(((IF($A$8=Nutrients!$B$79,Nutrients!$CX$79,(IF($A$8=Nutrients!$B$77,Nutrients!$CX$77,Nutrients!$CX$78)))))*AR$8))/2000/AR$236*100","v":43.088267027625129},{"$f":"(SUMPRODUCT(AS$9:AS$229,Nutrients!$CX$8:$CX$228)+(IF($A$7=Nutrients!$B$8,Nutrients!$CX$8,Nutrients!$CX$9)*AS$7)+(((IF($A$8=Nutrients!$B$79,Nutrients!$CX$79,(IF($A$8=Nutrients!$B$77,Nutrients!$CX$77,Nutrients!$CX$78)))))*AS$8))/2000/AS$236*100","v":43.761962326527517},{"$f":"(SUMPRODUCT(AT$9:AT$229,Nutrients!$CX$8:$CX$228)+(IF($A$7=Nutrients!$B$8,Nutrients!$CX$8,Nutrients!$CX$9)*AT$7)+(((IF($A$8=Nutrients!$B$79,Nutrients!$CX$79,(IF($A$8=Nutrients!$B$77,Nutrients!$CX$77,Nutrients!$CX$78)))))*AT$8))/2000/AT$236*100","v":44.666098422503509},{"$f":"(SUMPRODUCT(AU$9:AU$229,Nutrients!$CX$8:$CX$228)+(IF($A$7=Nutrients!$B$8,Nutrients!$CX$8,Nutrients!$CX$9)*AU$7)+(((IF($A$8=Nutrients!$B$79,Nutrients!$CX$79,(IF($A$8=Nutrients!$B$77,Nutrients!$CX$77,Nutrients!$CX$78)))))*AU$8))/2000/AU$236*100","v":45.503834037519717},{"$f":"(SUMPRODUCT(AV$9:AV$229,Nutrients!$CX$8:$CX$228)+(IF($A$7=Nutrients!$B$8,Nutrients!$CX$8,Nutrients!$CX$9)*AV$7)+(((IF($A$8=Nutrients!$B$79,Nutrients!$CX$79,(IF($A$8=Nutrients!$B$77,Nutrients!$CX$77,Nutrients!$CX$78)))))*AV$8))/2000/AV$236*100","v":46.320496494314902},{"$f":"(SUMPRODUCT(AW$9:AW$229,Nutrients!$CX$8:$CX$228)+(IF($A$7=Nutrients!$B$8,Nutrients!$CX$8,Nutrients!$CX$9)*AW$7)+(((IF($A$8=Nutrients!$B$79,Nutrients!$CX$79,(IF($A$8=Nutrients!$B$77,Nutrients!$CX$77,Nutrients!$CX$78)))))*AW$8))/2000/AW$236*100","v":46.992487002934034}]
["Total Lys, %",{"$f":"(SUMPRODUCT(B$9:B$229,Nutrients!$AJ$8:$AJ$228)+(IF($A7=Nutrients!$B$8,Nutrients!$AJ$8,Nutrients!$AJ$9)*B$7)+(((IF($A8=Nutrients!$B$79,Nutrients!$AJ$79,(IF($A8=Nutrients!$B$77,Nutrients!$AJ$77,Nutrients!$AJ$78)))))*B$8))/2000","v":1.3298660823074164},{"$f":"(SUMPRODUCT(C$9:C$229,Nutrients!$AJ$8:$AJ$228)+(IF($A7=Nutrients!$B$8,Nutrients!$AJ$8,Nutrients!$AJ$9)*C$7)+(((IF($A8=Nutrients!$B$79,Nutrients!$AJ$79,(IF($A8=Nutrients!$B$77,Nutrients!$AJ$77,Nutrients!$AJ$78)))))*C$8))/2000","v":1.17824480201899},{"$f":"(SUMPRODUCT(D$9:D$229,Nutrients!$AJ$8:$AJ$228)+(IF($A7=Nutrients!$B$8,Nutrients!$AJ$8,Nutrients!$AJ$9)*D$7)+(((IF($A8=Nutrients!$B$79,Nutrients!$AJ$79,(IF($A8=Nutrients!$B$77,Nutrients!$AJ$77,Nutrients!$AJ$78)))))*D$8))/2000","v":1.0441938280699909},{"$f":"(SUMPRODUCT(E$9:E$229,Nutrients!$AJ$8:$AJ$228)+(IF($A7=Nutrients!$B$8,Nutrients!$AJ$8,Nutrients!$AJ$9)*E$7)+(((IF($A8=Nutrients!$B$79,Nutrients!$AJ$79,(IF($A8=Nutrients!$B$77,Nutrients!$AJ$77,Nutrients!$AJ$78)))))*E$8))/2000","v":0.93300397092782039},{"$f":"(SUMPRODUCT(F$9:F$229,Nutrients!$AJ$8:$AJ$228)+(IF($A7=Nutrients!$B$8,Nutrients!$AJ$8,Nutrients!$AJ$9)*F$7)+(((IF($A8=Nutrients!$B$79,Nutrients!$AJ$79,(IF($A8=Nutrients!$B$77,Nutrients!$AJ$77,Nutrients!$AJ$78)))))*F$8))/2000","v":0.85681025979312531},{"$f":"(SUMPRODUCT(G$9:G$229,Nutrients!$AJ$8:$AJ$228)+(IF($A7=Nutrients!$B$8,Nutrients!$AJ$8,Nutrients!$AJ$9)*G$7)+(((IF($A8=Nutrients!$B$79,Nutrients!$AJ$79,(IF($A8=Nutrients!$B$77,Nutrients!$AJ$77,Nutrients!$AJ$78)))))*G$8))/2000","v":0.81496876682859276},null,{"$f":"(SUMPRODUCT(I$9:I$229,Nutrients!$AJ$8:$AJ$228)+(IF($A7=Nutrients!$B$8,Nutrients!$AJ$8,Nutrients!$AJ$9)*I$7)+(((IF($A8=Nutrients!$B$79,Nutrients!$AJ$79,(IF($A8=Nutrients!$B$77,Nutrients!$AJ$77,Nutrients!$AJ$78)))))*I$8))/2000","v":1.338116533166849},{"$f":"(SUMPRODUCT(J$9:J$229,Nutrients!$AJ$8:$AJ$228)+(IF($A7=Nutrients!$B$8,Nutrients!$AJ$8,Nutrients!$AJ$9)*J$7)+(((IF($A8=Nutrients!$B$79,Nutrients!$AJ$79,(IF($A8=Nutrients!$B$77,Nutrients!$AJ$77,Nutrients!$AJ$78)))))*J$8))/2000","v":1.1864922408253746},{"$f":"(SUMPRODUCT(K$9:K$229,Nutrients!$AJ$8:$AJ$228)+(IF($A7=Nutrients!$B$8,Nutrients!$AJ$8,Nutrients!$AJ$9)*K$7)+(((IF($A8=Nutrients!$B$79,Nutrients!$AJ$79,(IF($A8=Nutrients!$B$77,Nutrients!$AJ$77,Nutrients!$AJ$78)))))*K$8))/2000","v":1.0524467034693956},{"$f":"(SUMPRODUCT(L$9:L$229,Nutrients!$AJ$8:$AJ$228)+(IF($A7=Nutrients!$B$8,Nutrients!$AJ$8,Nutrients!$AJ$9)*L$7)+(((IF($A8=Nutrients!$B$79,Nutrients!$AJ$79,(IF($A8=Nutrients!$B$77,Nutrients!$AJ$77,Nutrients!$AJ$78)))))*L$8))/2000","v":0.94126489477896202},{"$f":"(SUMPRODUCT(M$9:M$229,Nutrients!$AJ$8:$AJ$228)+(IF($A7=Nutrients!$B$8,Nutrients!$AJ$8,Nutrients!$AJ$9)*M$7)+(((IF($A8=Nutrients!$B$79,Nutrients!$AJ$79,(IF($A8=Nutrients!$B$77,Nutrients!$AJ$77,Nutrients!$AJ$78)))))*M$8))/2000","v":0.86506540064979298},{"$f":"(SUMPRODUCT(N$9:N$229,Nutrients!$AJ$8:$AJ$228)+(IF($A7=Nutrients!$B$8,Nutrients!$AJ$8,Nutrients!$AJ$9)*N$7)+(((IF($A8=Nutrients!$B$79,Nutrients!$AJ$79,(IF($A8=Nutrients!$B$77,Nutrients!$AJ$77,Nutrients!$AJ$78)))))*N$8))/2000","v":0.82322786919695368},null,{"$f":"(SUMPRODUCT(P$9:P$229,Nutrients!$AJ$8:$AJ$228)+(IF($A7=Nutrients!$B$8,Nutrients!$AJ$8,Nutrients!$AJ$9)*P$7)+(((IF($A8=Nutrients!$B$79,Nutrients!$AJ$79,(IF($A8=Nutrients!$B$77,Nutrients!$AJ$77,Nutrients!$AJ$78)))))*P$8))/2000","v":1.3463665307782089},{"$f":"(SUMPRODUCT(Q$9:Q$229,Nutrients!$AJ$8:$AJ$228)+(IF($A7=Nutrients!$B$8,Nutrients!$AJ$8,Nutrients!$AJ$9)*Q$7)+(((IF($A8=Nutrients!$B$79,Nutrients!$AJ$79,(IF($A8=Nutrients!$B$77,Nutrients!$AJ$77,Nutrients!$AJ$78)))))*Q$8))/2000","v":1.1947413789885906},{"$f":"(SUMPRODUCT(R$9:R$229,Nutrients!$AJ$8:$AJ$228)+(IF($A7=Nutrients!$B$8,Nutrients!$AJ$8,Nutrients!$AJ$9)*R$7)+(((IF($A8=Nutrients!$B$79,Nutrients!$AJ$79,(IF($A8=Nutrients!$B$77,Nutrients!$AJ$77,Nutrients!$AJ$78)))))*R$8))/2000","v":1.0606945443862597},{"$f":"(SUMPRODUCT(S$9:S$229,Nutrients!$AJ$8:$AJ$228)+(IF($A7=Nutrients!$B$8,Nutrients!$AJ$8,Nutrients!$AJ$9)*S$7)+(((IF($A8=Nutrients!$B$79,Nutrients!$AJ$79,(IF($A8=Nutrients!$B$77,Nutrients!$AJ$77,Nutrients!$AJ$78)))))*S$8))/2000","v":0.94951324594482345},{"$f":"(SUMPRODUCT(T$9:T$229,Nutrients!$AJ$8:$AJ$228)+(IF($A7=Nutrients!$B$8,Nutrients!$AJ$8,Nutrients!$AJ$9)*T$7)+(((IF($A8=Nutrients!$B$79,Nutrients!$AJ$79,(IF($A8=Nutrients!$B$77,Nutrients!$AJ$77,Nutrients!$AJ$78)))))*T$8))/2000","v":0.87331247951362045},{"$f":"(SUMPRODUCT(U$9:U$229,Nutrients!$AJ$8:$AJ$228)+(IF($A7=Nutrients!$B$8,Nutrients!$AJ$8,Nutrients!$AJ$9)*U$7)+(((IF($A8=Nutrients!$B$79,Nutrients!$AJ$79,(IF($A8=Nutrients!$B$77,Nutrients!$AJ$77,Nutrients!$AJ$78)))))*U$8))/2000","v":0.83147362684189074},null,{"$f":"(SUMPRODUCT(W$9:W$229,Nutrients!$AJ$8:$AJ$228)+(IF($A7=Nutrients!$B$8,Nutrients!$AJ$8,Nutrients!$AJ$9)*W$7)+(((IF($A8=Nutrients!$B$79,Nutrients!$AJ$79,(IF($A8=Nutrients!$B$77,Nutrients!$AJ$77,Nutrients!$AJ$78)))))*W$8))/2000","v":1.3546158503189207},{"$f":"(SUMPRODUCT(X$9:X$229,Nutrients!$AJ$8:$AJ$228)+(IF($A7=Nutrients!$B$8,Nutrients!$AJ$8,Nutrients!$AJ$9)*X$7)+(((IF($A8=Nutrients!$B$79,Nutrients!$AJ$79,(IF($A8=Nutrients!$B$77,Nutrients!$AJ$77,Nutrients!$AJ$78)))))*X$8))/2000","v":1.2029897033085672},{"$f":"(SUMPRODUCT(Y$9:Y$229,Nutrients!$AJ$8:$AJ$228)+(IF($A7=Nutrients!$B$8,Nutrients!$AJ$8,Nutrients!$AJ$9)*Y$7)+(((IF($A8=Nutrients!$B$79,Nutrients!$AJ$79,(IF($A8=Nutrients!$B$77,Nutrients!$AJ$77,Nutrients!$AJ$78)))))*Y$8))/2000","v":1.0689443278419617},{"$f":"(SUMPRODUCT(Z$9:Z$229,Nutrients!$AJ$8:$AJ$228)+(IF($A7=Nutrients!$B$8,Nutrients!$AJ$8,Nutrients!$AJ$9)*Z$7)+(((IF($A8=Nutrients!$B$79,Nutrients!$AJ$79,(IF($A8=Nutrients!$B$77,Nutrients!$AJ$77,Nutrients!$AJ$78)))))*Z$8))/2000","v":0.95776397640612843},{"$f":"(SUMPRODUCT(AA$9:AA$229,Nutrients!$AJ$8:$AJ$228)+(IF($A7=Nutrients!$B$8,Nutrients!$AJ$8,Nutrients!$AJ$9)*AA$7)+(((IF($A8=Nutrients!$B$79,Nutrients!$AJ$79,(IF($A8=Nutrients!$B$77,Nutrients!$AJ$77,Nutrients!$AJ$78)))))*AA$8))/2000","v":0.88155796145962095},{"$f":"(SUMPRODUCT(AB$9:AB$229,Nutrients!$AJ$8:$AJ$228)+(IF($A7=Nutrients!$B$8,Nutrients!$AJ$8,Nutrients!$AJ$9)*AB$7)+(((IF($A8=Nutrients!$B$79,Nutrients!$AJ$79,(IF($A8=Nutrients!$B$77,Nutrients!$AJ$77,Nutrients!$AJ$78)))))*AB$8))/2000","v":0.83970111934770075},null,{"$f":"(SUMPRODUCT(AD$9:AD$229,Nutrients!$AJ$8:$AJ$228)+(IF($A7=Nutrients!$B$8,Nutrients!$AJ$8,Nutrients!$AJ$9)*AD$7)+(((IF($A8=Nutrients!$B$79,Nutrients!$AJ$79,(IF($A8=Nutrients!$B$77,Nutrients!$AJ$77,Nutrients!$AJ$78)))))*AD$8))/2000","v":1.3628643376388767},{"$f":"(SUMPRODUCT(AE$9:AE$229,Nutrients!$AJ$8:$AJ$228)+(IF($A7=Nutrients!$B$8,Nutrients!$AJ$8,Nutrients!$AJ$9)*AE$7)+(((IF($A8=Nutrients!$B$79,Nutrients!$AJ$79,(IF($A8=Nutrients!$B$77,Nutrients!$AJ$77,Nutrients!$AJ$78)))))*AE$8))/2000","v":1.2112385574763826},{"$f":"(SUMPRODUCT(AF$9:AF$229,Nutrients!$AJ$8:$AJ$228)+(IF($A7=Nutrients!$B$8,Nutrients!$AJ$8,Nutrients!$AJ$9)*AF$7)+(((IF($A8=Nutrients!$B$79,Nutrients!$AJ$79,(IF($A8=Nutrients!$B$77,Nutrients!$AJ$77,Nutrients!$AJ$78)))))*AF$8))/2000","v":1.0771962332593292},{"$f":"(SUMPRODUCT(AG$9:AG$229,Nutrients!$AJ$8:$AJ$228)+(IF($A7=Nutrients!$B$8,Nutrients!$AJ$8,Nutrients!$AJ$9)*AG$7)+(((IF($A8=Nutrients!$B$79,Nutrients!$AJ$79,(IF($A8=Nutrients!$B$77,Nutrients!$AJ$77,Nutrients!$AJ$78)))))*AG$8))/2000","v":0.96600805630846975},{"$f":"(SUMPRODUCT(AH$9:AH$229,Nutrients!$AJ$8:$AJ$228)+(IF($A7=Nutrients!$B$8,Nutrients!$AJ$8,Nutrients!$AJ$9)*AH$7)+(((IF($A8=Nutrients!$B$79,Nutrients!$AJ$79,(IF($A8=Nutrients!$B$77,Nutrients!$AJ$77,Nutrients!$AJ$78)))))*AH$8))/2000","v":0.88975074166548562},{"$f":"(SUMPRODUCT(AI$9:AI$229,Nutrients!$AJ$8:$AJ$228)+(IF($A7=Nutrients!$B$8,Nutrients!$AJ$8,Nutrients!$AJ$9)*AI$7)+(((IF($A8=Nutrients!$B$79,Nutrients!$AJ$79,(IF($A8=Nutrients!$B$77,Nutrients!$AJ$77,Nutrients!$AJ$78)))))*AI$8))/2000","v":0.84787582629310188},null,{"$f":"(SUMPRODUCT(AK$9:AK$229,Nutrients!$AJ$8:$AJ$228)+(IF($A7=Nutrients!$B$8,Nutrients!$AJ$8,Nutrients!$AJ$9)*AK$7)+(((IF($A8=Nutrients!$B$79,Nutrients!$AJ$79,(IF($A8=Nutrients!$B$77,Nutrients!$AJ$77,Nutrients!$AJ$78)))))*AK$8))/2000","v":1.371106985948803},{"$f":"(SUMPRODUCT(AL$9:AL$229,Nutrients!$AJ$8:$AJ$228)+(IF($A7=Nutrients!$B$8,Nutrients!$AJ$8,Nutrients!$AJ$9)*AL$7)+(((IF($A8=Nutrients!$B$79,Nutrients!$AJ$79,(IF($A8=Nutrients!$B$77,Nutrients!$AJ$77,Nutrients!$AJ$78)))))*AL$8))/2000","v":1.2194874978093035},{"$f":"(SUMPRODUCT(AM$9:AM$229,Nutrients!$AJ$8:$AJ$228)+(IF($A7=Nutrients!$B$8,Nutrients!$AJ$8,Nutrients!$AJ$9)*AM$7)+(((IF($A8=Nutrients!$B$79,Nutrients!$AJ$79,(IF($A8=Nutrients!$B$77,Nutrients!$AJ$77,Nutrients!$AJ$78)))))*AM$8))/2000","v":1.0854418232685645},{"$f":"(SUMPRODUCT(AN$9:AN$229,Nutrients!$AJ$8:$AJ$228)+(IF($A7=Nutrients!$B$8,Nutrients!$AJ$8,Nutrients!$AJ$9)*AN$7)+(((IF($A8=Nutrients!$B$79,Nutrients!$AJ$79,(IF($A8=Nutrients!$B$77,Nutrients!$AJ$77,Nutrients!$AJ$78)))))*AN$8))/2000","v":0.97420680490552014},{"$f":"(SUMPRODUCT(AO$9:AO$229,Nutrients!$AJ$8:$AJ$228)+(IF($A7=Nutrients!$B$8,Nutrients!$AJ$8,Nutrients!$AJ$9)*AO$7)+(((IF($A8=Nutrients!$B$79,Nutrients!$AJ$79,(IF($A8=Nutrients!$B$77,Nutrients!$AJ$77,Nutrients!$AJ$78)))))*AO$8))/2000","v":0.89793022000707667},{"$f":"(SUMPRODUCT(AP$9:AP$229,Nutrients!$AJ$8:$AJ$228)+(IF($A7=Nutrients!$B$8,Nutrients!$AJ$8,Nutrients!$AJ$9)*AP$7)+(((IF($A8=Nutrients!$B$79,Nutrients!$AJ$79,(IF($A8=Nutrients!$B$77,Nutrients!$AJ$77,Nutrients!$AJ$78)))))*AP$8))/2000","v":0.85605491425668756},null,{"$f":"(SUMPRODUCT(AR$9:AR$229,Nutrients!$AJ$8:$AJ$228)+(IF($A7=Nutrients!$B$8,Nutrients!$AJ$8,Nutrients!$AJ$9)*AR$7)+(((IF($A8=Nutrients!$B$79,Nutrients!$AJ$79,(IF($A8=Nutrients!$B$77,Nutrients!$AJ$77,Nutrients!$AJ$78)))))*AR$8))/2000","v":1.3793584106620853},{"$f":"(SUMPRODUCT(AS$9:AS$229,Nutrients!$AJ$8:$AJ$228)+(IF($A7=Nutrients!$B$8,Nutrients!$AJ$8,Nutrients!$AJ$9)*AS$7)+(((IF($A8=Nutrients!$B$79,Nutrients!$AJ$79,(IF($A8=Nutrients!$B$77,Nutrients!$AJ$77,Nutrients!$AJ$78)))))*AS$8))/2000","v":1.2277363906615926},{"$f":"(SUMPRODUCT(AT$9:AT$229,Nutrients!$AJ$8:$AJ$228)+(IF($A7=Nutrients!$B$8,Nutrients!$AJ$8,Nutrients!$AJ$9)*AT$7)+(((IF($A8=Nutrients!$B$79,Nutrients!$AJ$79,(IF($A8=Nutrients!$B$77,Nutrients!$AJ$77,Nutrients!$AJ$78)))))*AT$8))/2000","v":1.0936755649659267},{"$f":"(SUMPRODUCT(AU$9:AU$229,Nutrients!$AJ$8:$AJ$228)+(IF($A7=Nutrients!$B$8,Nutrients!$AJ$8,Nutrients!$AJ$9)*AU$7)+(((IF($A8=Nutrients!$B$79,Nutrients!$AJ$79,(IF($A8=Nutrients!$B$77,Nutrients!$AJ$77,Nutrients!$AJ$78)))))*AU$8))/2000","v":0.98238646082932224},{"$f":"(SUMPRODUCT(AV$9:AV$229,Nutrients!$AJ$8:$AJ$228)+(IF($A7=Nutrients!$B$8,Nutrients!$AJ$8,Nutrients!$AJ$9)*AV$7)+(((IF($A8=Nutrients!$B$79,Nutrients!$AJ$79,(IF($A8=Nutrients!$B$77,Nutrients!$AJ$77,Nutrients!$AJ$78)))))*AV$8))/2000","v":0.9061087419377849},{"$f":"(SUMPRODUCT(AW$9:AW$229,Nutrients!$AJ$8:$AJ$228)+(IF($A7=Nutrients!$B$8,Nutrients!$AJ$8,Nutrients!$AJ$9)*AW$7)+(((IF($A8=Nutrients!$B$79,Nutrients!$AJ$79,(IF($A8=Nutrients!$B$77,Nutrients!$AJ$77,Nutrients!$AJ$78)))))*AW$8))/2000","v":0.86423308869134985}]
["ME, kcal/lb",{"$f":"(SUMPRODUCT(B$9:B$229,Nutrients!$E$8:$E$228)+(IF($A$7=Nutrients!$B$8,Nutrients!$E$8,Nutrients!$E$9)*B$7)+(((IF($A$8=Nutrients!$B$79,Nutrients!$E$79,(IF($A$8=Nutrients!$B$77,Nutrients!$E$77,Nutrients!$E$78)))))*B$8))/2000/2.2046","v":1491.8402434475765},{"$f":"(SUMPRODUCT(C$9:C$229,Nutrients!$E$8:$E$228)+(IF($A$7=Nutrients!$B$8,Nutrients!$E$8,Nutrients!$E$9)*C$7)+(((IF($A$8=Nutrients!$B$79,Nutrients!$E$79,(IF($A$8=Nutrients!$B$77,Nutrients!$E$77,Nutrients!$E$78)))))*C$8))/2000/2.2046","v":1497.3394897230346},{"$f":"(SUMPRODUCT(D$9:D$229,Nutrients!$E$8:$E$228)+(IF($A$7=Nutrients!$B$8,Nutrients!$E$8,Nutrients!$E$9)*D$7)+(((IF($A$8=Nutrients!$B$79,Nutrients!$E$79,(IF($A$8=Nutrients!$B$77,Nutrients!$E$77,Nutrients!$E$78)))))*D$8))/2000/2.2046","v":1502.2809065274494},{"$f":"(SUMPRODUCT(E$9:E$229,Nutrients!$E$8:$E$228)+(IF($A$7=Nutrients!$B$8,Nutrients!$E$8,Nutrients!$E$9)*E$7)+(((IF($A$8=Nutrients!$B$79,Nutrients!$E$79,(IF($A$8=Nutrients!$B$77,Nutrients!$E$77,Nutrients!$E$78)))))*E$8))/2000/2.2046","v":1506.6896352343656},{"$f":"(SUMPRODUCT(F$9:F$229,Nutrients!$E$8:$E$228)+(IF($A$7=Nutrients!$B$8,Nutrients!$E$8,Nutrients!$E$9)*F$7)+(((IF($A$8=Nutrients!$B$79,Nutrients!$E$79,(IF($A$8=Nutrients!$B$77,Nutrients!$E$77,Nutrients!$E$78)))))*F$8))/2000/2.2046","v":1510.1029910587361},{"$f":"(SUMPRODUCT(G$9:G$229,Nutrients!$E$8:$E$228)+(IF($A$7=Nutrients!$B$8,Nutrients!$E$8,Nutrients!$E$9)*G$7)+(((IF($A$8=Nutrients!$B$79,Nutrients!$E$79,(IF($A$8=Nutrients!$B$77,Nutrients!$E$77,Nutrients!$E$78)))))*G$8))/2000/2.2046","v":1511.4146927250044},null,{"$f":"(SUMPRODUCT(I$9:I$229,Nutrients!$E$8:$E$228)+(IF($A$7=Nutrients!$B$8,Nutrients!$E$8,Nutrients!$E$9)*I$7)+(((IF($A$8=Nutrients!$B$79,Nutrients!$E$79,(IF($A$8=Nutrients!$B$77,Nutrients!$E$77,Nutrients!$E$78)))))*I$8))/2000/2.2046","v":1505.2558249199296},{"$f":"(SUMPRODUCT(J$9:J$229,Nutrients!$E$8:$E$228)+(IF($A$7=Nutrients!$B$8,Nutrients!$E$8,Nutrients!$E$9)*J$7)+(((IF($A$8=Nutrients!$B$79,Nutrients!$E$79,(IF($A$8=Nutrients!$B$77,Nutrients!$E$77,Nutrients!$E$78)))))*J$8))/2000/2.2046","v":1510.8275881781256},{"$f":"(SUMPRODUCT(K$9:K$229,Nutrients!$E$8:$E$228)+(IF($A$7=Nutrients!$B$8,Nutrients!$E$8,Nutrients!$E$9)*K$7)+(((IF($A$8=Nutrients!$B$79,Nutrients!$E$79,(IF($A$8=Nutrients!$B$77,Nutrients!$E$77,Nutrients!$E$78)))))*K$8))/2000/2.2046","v":1516.0728536674958},{"$f":"(SUMPRODUCT(L$9:L$229,Nutrients!$E$8:$E$228)+(IF($A$7=Nutrients!$B$8,Nutrients!$E$8,Nutrients!$E$9)*L$7)+(((IF($A$8=Nutrients!$B$79,Nutrients!$E$79,(IF($A$8=Nutrients!$B$77,Nutrients!$E$77,Nutrients!$E$78)))))*L$8))/2000/2.2046","v":1520.3577165723336},{"$f":"(SUMPRODUCT(M$9:M$229,Nutrients!$E$8:$E$228)+(IF($A$7=Nutrients!$B$8,Nutrients!$E$8,Nutrients!$E$9)*M$7)+(((IF($A$8=Nutrients!$B$79,Nutrients!$E$79,(IF($A$8=Nutrients!$B$77,Nutrients!$E$77,Nutrients!$E$78)))))*M$8))/2000/2.2046","v":1523.7195863660886},{"$f":"(SUMPRODUCT(N$9:N$229,Nutrients!$E$8:$E$228)+(IF($A$7=Nutrients!$B$8,Nutrients!$E$8,Nutrients!$E$9)*N$7)+(((IF($A$8=Nutrients!$B$79,Nutrients!$E$79,(IF($A$8=Nutrients!$B$77,Nutrients!$E$77,Nutrients!$E$78)))))*N$8))/2000/2.2046","v":1525.0632424674673},null,{"$f":"(SUMPRODUCT(P$9:P$229,Nutrients!$E$8:$E$228)+(IF($A$7=Nutrients!$B$8,Nutrients!$E$8,Nutrients!$E$9)*P$7)+(((IF($A$8=Nutrients!$B$79,Nutrients!$E$79,(IF($A$8=Nutrients!$B$77,Nutrients!$E$77,Nutrients!$E$78)))))*P$8))/2000/2.2046","v":1518.8787010253898},{"$f":"(SUMPRODUCT(Q$9:Q$229,Nutrients!$E$8:$E$228)+(IF($A$7=Nutrients!$B$8,Nutrients!$E$8,Nutrients!$E$9)*Q$7)+(((IF($A$8=Nutrients!$B$79,Nutrients!$E$79,(IF($A$8=Nutrients!$B$77,Nutrients!$E$77,Nutrients!$E$78)))))*Q$8))/2000/2.2046","v":1524.4910800631349},{"$f":"(SUMPRODUCT(R$9:R$229,Nutrients!$E$8:$E$228)+(IF($A$7=Nutrients!$B$8,Nutrients!$E$8,Nutrients!$E$9)*R$7)+(((IF($A$8=Nutrients!$B$79,Nutrients!$E$79,(IF($A$8=Nutrients!$B$77,Nutrients!$E$77,Nutrients!$E$78)))))*R$8))/2000/2.2046","v":1529.797650789141},{"$f":"(SUMPRODUCT(S$9:S$229,Nutrients!$E$8:$E$228)+(IF($A$7=Nutrients!$B$8,Nutrients!$E$8,Nutrients!$E$9)*S$7)+(((IF($A$8=Nutrients!$B$79,Nutrients!$E$79,(IF($A$8=Nutrients!$B$77,Nutrients!$E$77,Nutrients!$E$78)))))*S$8))/2000/2.2046","v":1534.0584003592417},{"$f":"(SUMPRODUCT(T$9:T$229,Nutrients!$E$8:$E$228)+(IF($A$7=Nutrients!$B$8,Nutrients!$E$8,Nutrients!$E$9)*T$7)+(((IF($A$8=Nutrients!$B$79,Nutrients!$E$79,(IF($A$8=Nutrients!$B$77,Nutrients!$E$77,Nutrients!$E$78)))))*T$8))/2000/2.2046","v":1537.4341227125128},{"$f":"(SUMPRODUCT(U$9:U$229,Nutrients!$E$8:$E$228)+(IF($A$7=Nutrients!$B$8,Nutrients!$E$8,Nutrients!$E$9)*U$7)+(((IF($A$8=Nutrients!$B$79,Nutrients!$E$79,(IF($A$8=Nutrients!$B$77,Nutrients!$E$77,Nutrients!$E$78)))))*U$8))/2000/2.2046","v":1538.8035112401942},null,{"$f":"(SUMPRODUCT(W$9:W$229,Nutrients!$E$8:$E$228)+(IF($A$7=Nutrients!$B$8,Nutrients!$E$8,Nutrients!$E$9)*W$7)+(((IF($A$8=Nutrients!$B$79,Nutrients!$E$79,(IF($A$8=Nutrients!$B$77,Nutrients!$E$77,Nutrients!$E$78)))))*W$8))/2000/2.2046","v":1532.5336213770972},{"$f":"(SUMPRODUCT(X$9:X$229,Nutrients!$E$8:$E$228)+(IF($A$7=Nutrients!$B$8,Nutrients!$E$8,Nutrients!$E$9)*X$7)+(((IF($A$8=Nutrients!$B$79,Nutrients!$E$79,(IF($A$8=Nutrients!$B$77,Nutrients!$E$77,Nutrients!$E$78)))))*X$8))/2000/2.2046","v":1538.1930325322051},{"$f":"(SUMPRODUCT(Y$9:Y$229,Nutrients!$E$8:$E$228)+(IF($A$7=Nutrients!$B$8,Nutrients!$E$8,Nutrients!$E$9)*Y$7)+(((IF($A$8=Nutrients!$B$79,Nutrients!$E$79,(IF($A$8=Nutrients!$B$77,Nutrients!$E$77,Nutrients!$E$78)))))*Y$8))/2000/2.2046","v":1543.504347902001},{"$f":"(SUMPRODUCT(Z$9:Z$229,Nutrients!$E$8:$E$228)+(IF($A$7=Nutrients!$B$8,Nutrients!$E$8,Nutrients!$E$9)*Z$7)+(((IF($A$8=Nutrients!$B$79,Nutrients!$E$79,(IF($A$8=Nutrients!$B$77,Nutrients!$E$77,Nutrients!$E$78)))))*Z$8))/2000/2.2046","v":1547.7764106693176},{"$f":"(SUMPRODUCT(AA$9:AA$229,Nutrients!$E$8:$E$228)+(IF($A$7=Nutrients!$B$8,Nutrients!$E$8,Nutrients!$E$9)*AA$7)+(((IF($A$8=Nutrients!$B$79,Nutrients!$E$79,(IF($A$8=Nutrients!$B$77,Nutrients!$E$77,Nutrients!$E$78)))))*AA$8))/2000/2.2046","v":1551.2373010471624},{"$f":"(SUMPRODUCT(AB$9:AB$229,Nutrients!$E$8:$E$228)+(IF($A$7=Nutrients!$B$8,Nutrients!$E$8,Nutrients!$E$9)*AB$7)+(((IF($A$8=Nutrients!$B$79,Nutrients!$E$79,(IF($A$8=Nutrients!$B$77,Nutrients!$E$77,Nutrients!$E$78)))))*AB$8))/2000/2.2046","v":1552.4776678258422},null,{"$f":"(SUMPRODUCT(AD$9:AD$229,Nutrients!$E$8:$E$228)+(IF($A$7=Nutrients!$B$8,Nutrients!$E$8,Nutrients!$E$9)*AD$7)+(((IF($A$8=Nutrients!$B$79,Nutrients!$E$79,(IF($A$8=Nutrients!$B$77,Nutrients!$E$77,Nutrients!$E$78)))))*AD$8))/2000/2.2046","v":1546.2647210193622},{"$f":"(SUMPRODUCT(AE$9:AE$229,Nutrients!$E$8:$E$228)+(IF($A$7=Nutrients!$B$8,Nutrients!$E$8,Nutrients!$E$9)*AE$7)+(((IF($A$8=Nutrients!$B$79,Nutrients!$E$79,(IF($A$8=Nutrients!$B$77,Nutrients!$E$77,Nutrients!$E$78)))))*AE$8))/2000/2.2046","v":1551.9067956872489},{"$f":"(SUMPRODUCT(AF$9:AF$229,Nutrients!$E$8:$E$228)+(IF($A$7=Nutrients!$B$8,Nutrients!$E$8,Nutrients!$E$9)*AF$7)+(((IF($A$8=Nutrients!$B$79,Nutrients!$E$79,(IF($A$8=Nutrients!$B$77,Nutrients!$E$77,Nutrients!$E$78)))))*AF$8))/2000/2.2046","v":1557.2004131042156},{"$f":"(SUMPRODUCT(AG$9:AG$229,Nutrients!$E$8:$E$228)+(IF($A$7=Nutrients!$B$8,Nutrients!$E$8,Nutrients!$E$9)*AG$7)+(((IF($A$8=Nutrients!$B$79,Nutrients!$E$79,(IF($A$8=Nutrients!$B$77,Nutrients!$E$77,Nutrients!$E$78)))))*AG$8))/2000/2.2046","v":1561.6089965269193},{"$f":"(SUMPRODUCT(AH$9:AH$229,Nutrients!$E$8:$E$228)+(IF($A$7=Nutrients!$B$8,Nutrients!$E$8,Nutrients!$E$9)*AH$7)+(((IF($A$8=Nutrients!$B$79,Nutrients!$E$79,(IF($A$8=Nutrients!$B$77,Nutrients!$E$77,Nutrients!$E$78)))))*AH$8))/2000/2.2046","v":1564.5957706149304},{"$f":"(SUMPRODUCT(AI$9:AI$229,Nutrients!$E$8:$E$228)+(IF($A$7=Nutrients!$B$8,Nutrients!$E$8,Nutrients!$E$9)*AI$7)+(((IF($A$8=Nutrients!$B$79,Nutrients!$E$79,(IF($A$8=Nutrients!$B$77,Nutrients!$E$77,Nutrients!$E$78)))))*AI$8))/2000/2.2046","v":1565.8635936513963},null,{"$f":"(SUMPRODUCT(AK$9:AK$229,Nutrients!$E$8:$E$228)+(IF($A$7=Nutrients!$B$8,Nutrients!$E$8,Nutrients!$E$9)*AK$7)+(((IF($A$8=Nutrients!$B$79,Nutrients!$E$79,(IF($A$8=Nutrients!$B$77,Nutrients!$E$77,Nutrients!$E$78)))))*AK$8))/2000/2.2046","v":1560.2901855671428},{"$f":"(SUMPRODUCT(AL$9:AL$229,Nutrients!$E$8:$E$228)+(IF($A$7=Nutrients!$B$8,Nutrients!$E$8,Nutrients!$E$9)*AL$7)+(((IF($A$8=Nutrients!$B$79,Nutrients!$E$79,(IF($A$8=Nutrients!$B$77,Nutrients!$E$77,Nutrients!$E$78)))))*AL$8))/2000/2.2046","v":1565.6349119649267},{"$f":"(SUMPRODUCT(AM$9:AM$229,Nutrients!$E$8:$E$228)+(IF($A$7=Nutrients!$B$8,Nutrients!$E$8,Nutrients!$E$9)*AM$7)+(((IF($A$8=Nutrients!$B$79,Nutrients!$E$79,(IF($A$8=Nutrients!$B$77,Nutrients!$E$77,Nutrients!$E$78)))))*AM$8))/2000/2.2046","v":1570.9800594779867},{"$f":"(SUMPRODUCT(AN$9:AN$229,Nutrients!$E$8:$E$228)+(IF($A$7=Nutrients!$B$8,Nutrients!$E$8,Nutrients!$E$9)*AN$7)+(((IF($A$8=Nutrients!$B$79,Nutrients!$E$79,(IF($A$8=Nutrients!$B$77,Nutrients!$E$77,Nutrients!$E$78)))))*AN$8))/2000/2.2046","v":1574.8167666409322},{"$f":"(SUMPRODUCT(AO$9:AO$229,Nutrients!$E$8:$E$228)+(IF($A$7=Nutrients!$B$8,Nutrients!$E$8,Nutrients!$E$9)*AO$7)+(((IF($A$8=Nutrients!$B$79,Nutrients!$E$79,(IF($A$8=Nutrients!$B$77,Nutrients!$E$77,Nutrients!$E$78)))))*AO$8))/2000/2.2046","v":1578.0854277061721},{"$f":"(SUMPRODUCT(AP$9:AP$229,Nutrients!$E$8:$E$228)+(IF($A$7=Nutrients!$B$8,Nutrients!$E$8,Nutrients!$E$9)*AP$7)+(((IF($A$8=Nutrients!$B$79,Nutrients!$E$79,(IF($A$8=Nutrients!$B$77,Nutrients!$E$77,Nutrients!$E$78)))))*AP$8))/2000/2.2046","v":1579.3715412571516},null,{"$f":"(SUMPRODUCT(AR$9:AR$229,Nutrients!$E$8:$E$228)+(IF($A$7=Nutrients!$B$8,Nutrients!$E$8,Nutrients!$E$9)*AR$7)+(((IF($A$8=Nutrients!$B$79,Nutrients!$E$79,(IF($A$8=Nutrients!$B$77,Nutrients!$E$77,Nutrients!$E$78)))))*AR$8))/2000/2.2046","v":1573.8635204264267},{"$f":"(SUMPRODUCT(AS$9:AS$229,Nutrients!$E$8:$E$228)+(IF($A$7=Nutrients!$B$8,Nutrients!$E$8,Nutrients!$E$9)*AS$7)+(((IF($A$8=Nutrients!$B$79,Nutrients!$E$79,(IF($A$8=Nutrients!$B$77,Nutrients!$E$77,Nutrients!$E$78)))))*AS$8))/2000/2.2046","v":1579.3278967971946},{"$f":"(SUMPRODUCT(AT$9:AT$229,Nutrients!$E$8:$E$228)+(IF($A$7=Nutrients!$B$8,Nutrients!$E$8,Nutrients!$E$9)*AT$7)+(((IF($A$8=Nutrients!$B$79,Nutrients!$E$79,(IF($A$8=Nutrients!$B$77,Nutrients!$E$77,Nutrients!$E$78)))))*AT$8))/2000/2.2046","v":1584.3606368891599},{"$f":"(SUMPRODUCT(AU$9:AU$229,Nutrients!$E$8:$E$228)+(IF($A$7=Nutrients!$B$8,Nutrients!$E$8,Nutrients!$E$9)*AU$7)+(((IF($A$8=Nutrients!$B$79,Nutrients!$E$79,(IF($A$8=Nutrients!$B$77,Nutrients!$E$77,Nutrients!$E$78)))))*AU$8))/2000/2.2046","v":1588.2769988753703},{"$f":"(SUMPRODUCT(AV$9:AV$229,Nutrients!$E$8:$E$228)+(IF($A$7=Nutrients!$B$8,Nutrients!$E$8,Nutrients!$E$9)*AV$7)+(((IF($A$8=Nutrients!$B$79,Nutrients!$E$79,(IF($A$8=Nutrients!$B$77,Nutrients!$E$77,Nutrients!$E$78)))))*AV$8))/2000/2.2046","v":1591.6036975788595},{"$f":"(SUMPRODUCT(AW$9:AW$229,Nutrients!$E$8:$E$228)+(IF($A$7=Nutrients!$B$8,Nutrients!$E$8,Nutrients!$E$9)*AW$7)+(((IF($A$8=Nutrients!$B$79,Nutrients!$E$79,(IF($A$8=Nutrients!$B$77,Nutrients!$E$77,Nutrients!$E$78)))))*AW$8))/2000/2.2046","v":1592.9068510256618}]
["NE Noblet Grow/Finish, kcal/lb",{"$f":"(SUMPRODUCT(B$9:B$229,Nutrients!$DY$8:$DY$228)+(IF($A$7=Nutrients!$B$8,Nutrients!$DY$8,Nutrients!$DY$9)*B$7)+(((IF($A$8=Nutrients!$B$79,Nutrients!$DY$79,(IF($A$8=Nutrients!$B$77,Nutrients!$DY$77,Nutrients!$DY$78)))))*B$8))/2000/2.2046","v":1084.249548676868},{"$f":"(SUMPRODUCT(C$9:C$229,Nutrients!$DY$8:$DY$228)+(IF($A$7=Nutrients!$B$8,Nutrients!$DY$8,Nutrients!$DY$9)*C$7)+(((IF($A$8=Nutrients!$B$79,Nutrients!$DY$79,(IF($A$8=Nutrients!$B$77,Nutrients!$DY$77,Nutrients!$DY$78)))))*C$8))/2000/2.2046","v":1102.8575690313603},{"$f":"(SUMPRODUCT(D$9:D$229,Nutrients!$DY$8:$DY$228)+(IF($A$7=Nutrients!$B$8,Nutrients!$DY$8,Nutrients!$DY$9)*D$7)+(((IF($A$8=Nutrients!$B$79,Nutrients!$DY$79,(IF($A$8=Nutrients!$B$77,Nutrients!$DY$77,Nutrients!$DY$78)))))*D$8))/2000/2.2046","v":1119.0569124625506},{"$f":"(SUMPRODUCT(E$9:E$229,Nutrients!$DY$8:$DY$228)+(IF($A$7=Nutrients!$B$8,Nutrients!$DY$8,Nutrients!$DY$9)*E$7)+(((IF($A$8=Nutrients!$B$79,Nutrients!$DY$79,(IF($A$8=Nutrients!$B$77,Nutrients!$DY$77,Nutrients!$DY$78)))))*E$8))/2000/2.2046","v":1132.8948287435808},{"$f":"(SUMPRODUCT(F$9:F$229,Nutrients!$DY$8:$DY$228)+(IF($A$7=Nutrients!$B$8,Nutrients!$DY$8,Nutrients!$DY$9)*F$7)+(((IF($A$8=Nutrients!$B$79,Nutrients!$DY$79,(IF($A$8=Nutrients!$B$77,Nutrients!$DY$77,Nutrients!$DY$78)))))*F$8))/2000/2.2046","v":1142.4960914643329},{"$f":"(SUMPRODUCT(G$9:G$229,Nutrients!$DY$8:$DY$228)+(IF($A$7=Nutrients!$B$8,Nutrients!$DY$8,Nutrients!$DY$9)*G$7)+(((IF($A$8=Nutrients!$B$79,Nutrients!$DY$79,(IF($A$8=Nutrients!$B$77,Nutrients!$DY$77,Nutrients!$DY$78)))))*G$8))/2000/2.2046","v":1147.04091606665},null,{"$f":"(SUMPRODUCT(I$9:I$229,Nutrients!$DY$8:$DY$228)+(IF($A$7=Nutrients!$B$8,Nutrients!$DY$8,Nutrients!$DY$9)*I$7)+(((IF($A$8=Nutrients!$B$79,Nutrients!$DY$79,(IF($A$8=Nutrients!$B$77,Nutrients!$DY$77,Nutrients!$DY$78)))))*I$8))/2000/2.2046","v":1038.6173558042069},{"$f":"(SUMPRODUCT(J$9:J$229,Nutrients!$DY$8:$DY$228)+(IF($A$7=Nutrients!$B$8,Nutrients!$DY$8,Nutrients!$DY$9)*J$7)+(((IF($A$8=Nutrients!$B$79,Nutrients!$DY$79,(IF($A$8=Nutrients!$B$77,Nutrients!$DY$77,Nutrients!$DY$78)))))*J$8))/2000/2.2046","v":1057.2973324167847},{"$f":"(SUMPRODUCT(K$9:K$229,Nutrients!$DY$8:$DY$228)+(IF($A$7=Nutrients!$B$8,Nutrients!$DY$8,Nutrients!$DY$9)*K$7)+(((IF($A$8=Nutrients!$B$79,Nutrients!$DY$79,(IF($A$8=Nutrients!$B$77,Nutrients!$DY$77,Nutrients!$DY$78)))))*K$8))/2000/2.2046","v":1073.747451947004},{"$f":"(SUMPRODUCT(L$9:L$229,Nutrients!$DY$8:$DY$228)+(IF($A$7=Nutrients!$B$8,Nutrients!$DY$8,Nutrients!$DY$9)*L$7)+(((IF($A$8=Nutrients!$B$79,Nutrients!$DY$79,(IF($A$8=Nutrients!$B$77,Nutrients!$DY$77,Nutrients!$DY$78)))))*L$8))/2000/2.2046","v":1087.4546661752524},{"$f":"(SUMPRODUCT(M$9:M$229,Nutrients!$DY$8:$DY$228)+(IF($A$7=Nutrients!$B$8,Nutrients!$DY$8,Nutrients!$DY$9)*M$7)+(((IF($A$8=Nutrients!$B$79,Nutrients!$DY$79,(IF($A$8=Nutrients!$B$77,Nutrients!$DY$77,Nutrients!$DY$78)))))*M$8))/2000/2.2046","v":1097.0269850793527},{"$f":"(SUMPRODUCT(N$9:N$229,Nutrients!$DY$8:$DY$228)+(IF($A$7=Nutrients!$B$8,Nutrients!$DY$8,Nutrients!$DY$9)*N$7)+(((IF($A$8=Nutrients!$B$79,Nutrients!$DY$79,(IF($A$8=Nutrients!$B$77,Nutrients!$DY$77,Nutrients!$DY$78)))))*N$8))/2000/2.2046","v":1101.5887813231782},null,{"$f":"(SUMPRODUCT(P$9:P$229,Nutrients!$DY$8:$DY$228)+(IF($A$7=Nutrients!$B$8,Nutrients!$DY$8,Nutrients!$DY$9)*P$7)+(((IF($A$8=Nutrients!$B$79,Nutrients!$DY$79,(IF($A$8=Nutrients!$B$77,Nutrients!$DY$77,Nutrients!$DY$78)))))*P$8))/2000/2.2046","v":993.16695188644837},{"$f":"(SUMPRODUCT(Q$9:Q$229,Nutrients!$DY$8:$DY$228)+(IF($A$7=Nutrients!$B$8,Nutrients!$DY$8,Nutrients!$DY$9)*Q$7)+(((IF($A$8=Nutrients!$B$79,Nutrients!$DY$79,(IF($A$8=Nutrients!$B$77,Nutrients!$DY$77,Nutrients!$DY$78)))))*Q$8))/2000/2.2046","v":1011.8848734893444},{"$f":"(SUMPRODUCT(R$9:R$229,Nutrients!$DY$8:$DY$228)+(IF($A$7=Nutrients!$B$8,Nutrients!$DY$8,Nutrients!$DY$9)*R$7)+(((IF($A$8=Nutrients!$B$79,Nutrients!$DY$79,(IF($A$8=Nutrients!$B$77,Nutrients!$DY$77,Nutrients!$DY$78)))))*R$8))/2000/2.2046","v":1028.3922669814685},{"$f":"(SUMPRODUCT(S$9:S$229,Nutrients!$DY$8:$DY$228)+(IF($A$7=Nutrients!$B$8,Nutrients!$DY$8,Nutrients!$DY$9)*S$7)+(((IF($A$8=Nutrients!$B$79,Nutrients!$DY$79,(IF($A$8=Nutrients!$B$77,Nutrients!$DY$77,Nutrients!$DY$78)))))*S$8))/2000/2.2046","v":1042.0769535058707},{"$f":"(SUMPRODUCT(T$9:T$229,Nutrients!$DY$8:$DY$228)+(IF($A$7=Nutrients!$B$8,Nutrients!$DY$8,Nutrients!$DY$9)*T$7)+(((IF($A$8=Nutrients!$B$79,Nutrients!$DY$79,(IF($A$8=Nutrients!$B$77,Nutrients!$DY$77,Nutrients!$DY$78)))))*T$8))/2000/2.2046","v":1051.6556630842906},{"$f":"(SUMPRODUCT(U$9:U$229,Nutrients!$DY$8:$DY$228)+(IF($A$7=Nutrients!$B$8,Nutrients!$DY$8,Nutrients!$DY$9)*U$7)+(((IF($A$8=Nutrients!$B$79,Nutrients!$DY$79,(IF($A$8=Nutrients!$B$77,Nutrients!$DY$77,Nutrients!$DY$78)))))*U$8))/2000/2.2046","v":1056.2363032406142},null,{"$f":"(SUMPRODUCT(W$9:W$229,Nutrients!$DY$8:$DY$228)+(IF($A$7=Nutrients!$B$8,Nutrients!$DY$8,Nutrients!$DY$9)*W$7)+(((IF($A$8=Nutrients!$B$79,Nutrients!$DY$79,(IF($A$8=Nutrients!$B$77,Nutrients!$DY$77,Nutrients!$DY$78)))))*W$8))/2000/2.2046","v":947.74648506769665},{"$f":"(SUMPRODUCT(X$9:X$229,Nutrients!$DY$8:$DY$228)+(IF($A$7=Nutrients!$B$8,Nutrients!$DY$8,Nutrients!$DY$9)*X$7)+(((IF($A$8=Nutrients!$B$79,Nutrients!$DY$79,(IF($A$8=Nutrients!$B$77,Nutrients!$DY$77,Nutrients!$DY$78)))))*X$8))/2000/2.2046","v":966.50834607684783},{"$f":"(SUMPRODUCT(Y$9:Y$229,Nutrients!$DY$8:$DY$228)+(IF($A$7=Nutrients!$B$8,Nutrients!$DY$8,Nutrients!$DY$9)*Y$7)+(((IF($A$8=Nutrients!$B$79,Nutrients!$DY$79,(IF($A$8=Nutrients!$B$77,Nutrients!$DY$77,Nutrients!$DY$78)))))*Y$8))/2000/2.2046","v":983.01581962126204},{"$f":"(SUMPRODUCT(Z$9:Z$229,Nutrients!$DY$8:$DY$228)+(IF($A$7=Nutrients!$B$8,Nutrients!$DY$8,Nutrients!$DY$9)*Z$7)+(((IF($A$8=Nutrients!$B$79,Nutrients!$DY$79,(IF($A$8=Nutrients!$B$77,Nutrients!$DY$77,Nutrients!$DY$78)))))*Z$8))/2000/2.2046","v":996.71901277139671},{"$f":"(SUMPRODUCT(AA$9:AA$229,Nutrients!$DY$8:$DY$228)+(IF($A$7=Nutrients!$B$8,Nutrients!$DY$8,Nutrients!$DY$9)*AA$7)+(((IF($A$8=Nutrients!$B$79,Nutrients!$DY$79,(IF($A$8=Nutrients!$B$77,Nutrients!$DY$77,Nutrients!$DY$78)))))*AA$8))/2000/2.2046","v":1006.3542330267044},{"$f":"(SUMPRODUCT(AB$9:AB$229,Nutrients!$DY$8:$DY$228)+(IF($A$7=Nutrients!$B$8,Nutrients!$DY$8,Nutrients!$DY$9)*AB$7)+(((IF($A$8=Nutrients!$B$79,Nutrients!$DY$79,(IF($A$8=Nutrients!$B$77,Nutrients!$DY$77,Nutrients!$DY$78)))))*AB$8))/2000/2.2046","v":1010.8721631090045},null,{"$f":"(SUMPRODUCT(AD$9:AD$229,Nutrients!$DY$8:$DY$228)+(IF($A$7=Nutrients!$B$8,Nutrients!$DY$8,Nutrients!$DY$9)*AD$7)+(((IF($A$8=Nutrients!$B$79,Nutrients!$DY$79,(IF($A$8=Nutrients!$B$77,Nutrients!$DY$77,Nutrients!$DY$78)))))*AD$8))/2000/2.2046","v":902.39501188726808},{"$f":"(SUMPRODUCT(AE$9:AE$229,Nutrients!$DY$8:$DY$228)+(IF($A$7=Nutrients!$B$8,Nutrients!$DY$8,Nutrients!$DY$9)*AE$7)+(((IF($A$8=Nutrients!$B$79,Nutrients!$DY$79,(IF($A$8=Nutrients!$B$77,Nutrients!$DY$77,Nutrients!$DY$78)))))*AE$8))/2000/2.2046","v":921.14067641202178},{"$f":"(SUMPRODUCT(AF$9:AF$229,Nutrients!$DY$8:$DY$228)+(IF($A$7=Nutrients!$B$8,Nutrients!$DY$8,Nutrients!$DY$9)*AF$7)+(((IF($A$8=Nutrients!$B$79,Nutrients!$DY$79,(IF($A$8=Nutrients!$B$77,Nutrients!$DY$77,Nutrients!$DY$78)))))*AF$8))/2000/2.2046","v":937.65017786849273},{"$f":"(SUMPRODUCT(AG$9:AG$229,Nutrients!$DY$8:$DY$228)+(IF($A$7=Nutrients!$B$8,Nutrients!$DY$8,Nutrients!$DY$9)*AG$7)+(((IF($A$8=Nutrients!$B$79,Nutrients!$DY$79,(IF($A$8=Nutrients!$B$77,Nutrients!$DY$77,Nutrients!$DY$78)))))*AG$8))/2000/2.2046","v":951.44723277162814},{"$f":"(SUMPRODUCT(AH$9:AH$229,Nutrients!$DY$8:$DY$228)+(IF($A$7=Nutrients!$B$8,Nutrients!$DY$8,Nutrients!$DY$9)*AH$7)+(((IF($A$8=Nutrients!$B$79,Nutrients!$DY$79,(IF($A$8=Nutrients!$B$77,Nutrients!$DY$77,Nutrients!$DY$78)))))*AH$8))/2000/2.2046","v":960.81188296684763},{"$f":"(SUMPRODUCT(AI$9:AI$229,Nutrients!$DY$8:$DY$228)+(IF($A$7=Nutrients!$B$8,Nutrients!$DY$8,Nutrients!$DY$9)*AI$7)+(((IF($A$8=Nutrients!$B$79,Nutrients!$DY$79,(IF($A$8=Nutrients!$B$77,Nutrients!$DY$77,Nutrients!$DY$78)))))*AI$8))/2000/2.2046","v":965.4043713280671},null,{"$f":"(SUMPRODUCT(AK$9:AK$229,Nutrients!$DY$8:$DY$228)+(IF($A$7=Nutrients!$B$8,Nutrients!$DY$8,Nutrients!$DY$9)*AK$7)+(((IF($A$8=Nutrients!$B$79,Nutrients!$DY$79,(IF($A$8=Nutrients!$B$77,Nutrients!$DY$77,Nutrients!$DY$78)))))*AK$8))/2000/2.2046","v":857.31745878406525},{"$f":"(SUMPRODUCT(AL$9:AL$229,Nutrients!$DY$8:$DY$228)+(IF($A$7=Nutrients!$B$8,Nutrients!$DY$8,Nutrients!$DY$9)*AL$7)+(((IF($A$8=Nutrients!$B$79,Nutrients!$DY$79,(IF($A$8=Nutrients!$B$77,Nutrients!$DY$77,Nutrients!$DY$78)))))*AL$8))/2000/2.2046","v":875.78532789640929},{"$f":"(SUMPRODUCT(AM$9:AM$229,Nutrients!$DY$8:$DY$228)+(IF($A$7=Nutrients!$B$8,Nutrients!$DY$8,Nutrients!$DY$9)*AM$7)+(((IF($A$8=Nutrients!$B$79,Nutrients!$DY$79,(IF($A$8=Nutrients!$B$77,Nutrients!$DY$77,Nutrients!$DY$78)))))*AM$8))/2000/2.2046","v":892.32785140024976},{"$f":"(SUMPRODUCT(AN$9:AN$229,Nutrients!$DY$8:$DY$228)+(IF($A$7=Nutrients!$B$8,Nutrients!$DY$8,Nutrients!$DY$9)*AN$7)+(((IF($A$8=Nutrients!$B$79,Nutrients!$DY$79,(IF($A$8=Nutrients!$B$77,Nutrients!$DY$77,Nutrients!$DY$78)))))*AN$8))/2000/2.2046","v":905.75680549656568},{"$f":"(SUMPRODUCT(AO$9:AO$229,Nutrients!$DY$8:$DY$228)+(IF($A$7=Nutrients!$B$8,Nutrients!$DY$8,Nutrients!$DY$9)*AO$7)+(((IF($A$8=Nutrients!$B$79,Nutrients!$DY$79,(IF($A$8=Nutrients!$B$77,Nutrients!$DY$77,Nutrients!$DY$78)))))*AO$8))/2000/2.2046","v":915.42357418314293},{"$f":"(SUMPRODUCT(AP$9:AP$229,Nutrients!$DY$8:$DY$228)+(IF($A$7=Nutrients!$B$8,Nutrients!$DY$8,Nutrients!$DY$9)*AP$7)+(((IF($A$8=Nutrients!$B$79,Nutrients!$DY$79,(IF($A$8=Nutrients!$B$77,Nutrients!$DY$77,Nutrients!$DY$78)))))*AP$8))/2000/2.2046","v":920.03305802044929},null,{"$f":"(SUMPRODUCT(AR$9:AR$229,Nutrients!$DY$8:$DY$228)+(IF($A$7=Nutrients!$B$8,Nutrients!$DY$8,Nutrients!$DY$9)*AR$7)+(((IF($A$8=Nutrients!$B$79,Nutrients!$DY$79,(IF($A$8=Nutrients!$B$77,Nutrients!$DY$77,Nutrients!$DY$78)))))*AR$8))/2000/2.2046","v":811.82544080313357},{"$f":"(SUMPRODUCT(AS$9:AS$229,Nutrients!$DY$8:$DY$228)+(IF($A$7=Nutrients!$B$8,Nutrients!$DY$8,Nutrients!$DY$9)*AS$7)+(((IF($A$8=Nutrients!$B$79,Nutrients!$DY$79,(IF($A$8=Nutrients!$B$77,Nutrients!$DY$77,Nutrients!$DY$78)))))*AS$8))/2000/2.2046","v":830.40509184369205},{"$f":"(SUMPRODUCT(AT$9:AT$229,Nutrients!$DY$8:$DY$228)+(IF($A$7=Nutrients!$B$8,Nutrients!$DY$8,Nutrients!$DY$9)*AT$7)+(((IF($A$8=Nutrients!$B$79,Nutrients!$DY$79,(IF($A$8=Nutrients!$B$77,Nutrients!$DY$77,Nutrients!$DY$78)))))*AT$8))/2000/2.2046","v":846.69424338374745},{"$f":"(SUMPRODUCT(AU$9:AU$229,Nutrients!$DY$8:$DY$228)+(IF($A$7=Nutrients!$B$8,Nutrients!$DY$8,Nutrients!$DY$9)*AU$7)+(((IF($A$8=Nutrients!$B$79,Nutrients!$DY$79,(IF($A$8=Nutrients!$B$77,Nutrients!$DY$77,Nutrients!$DY$78)))))*AU$8))/2000/2.2046","v":860.34297657559421},{"$f":"(SUMPRODUCT(AV$9:AV$229,Nutrients!$DY$8:$DY$228)+(IF($A$7=Nutrients!$B$8,Nutrients!$DY$8,Nutrients!$DY$9)*AV$7)+(((IF($A$8=Nutrients!$B$79,Nutrients!$DY$79,(IF($A$8=Nutrients!$B$77,Nutrients!$DY$77,Nutrients!$DY$78)))))*AV$8))/2000/2.2046","v":870.05758755754562},{"$f":"(SUMPRODUCT(AW$9:AW$229,Nutrients!$DY$8:$DY$228)+(IF($A$7=Nutrients!$B$8,Nutrients!$DY$8,Nutrients!$DY$9)*AW$7)+(((IF($A$8=Nutrients!$B$79,Nutrients!$DY$79,(IF($A$8=Nutrients!$B$77,Nutrients!$DY$77,Nutrients!$DY$78)))))*AW$8))/2000/2.2046","v":874.68312235142639}]
["NE Noblet Sow, kcal/lb",{"$f":"(SUMPRODUCT(B$9:B$229,Nutrients!$DZ$8:$DZ$228)+(IF($A$7=Nutrients!$B$8,Nutrients!$DZ$8,Nutrients!$DZ$9)*B$7)+(((IF($A$8=Nutrients!$B$79,Nutrients!$DZ$79,(IF($A$8=Nutrients!$B$77,Nutrients!$DZ$77,Nutrients!$DZ$78)))))*B$8))/2000/2.2046","v":1125.1001476776023},{"$f":"(SUMPRODUCT(C$9:C$229,Nutrients!$DZ$8:$DZ$228)+(IF($A$7=Nutrients!$B$8,Nutrients!$DZ$8,Nutrients!$DZ$9)*C$7)+(((IF($A$8=Nutrients!$B$79,Nutrients!$DZ$79,(IF($A$8=Nutrients!$B$77,Nutrients!$DZ$77,Nutrients!$DZ$78)))))*C$8))/2000/2.2046","v":1142.795652894368},{"$f":"(SUMPRODUCT(D$9:D$229,Nutrients!$DZ$8:$DZ$228)+(IF($A$7=Nutrients!$B$8,Nutrients!$DZ$8,Nutrients!$DZ$9)*D$7)+(((IF($A$8=Nutrients!$B$79,Nutrients!$DZ$79,(IF($A$8=Nutrients!$B$77,Nutrients!$DZ$77,Nutrients!$DZ$78)))))*D$8))/2000/2.2046","v":1158.2172951602411},{"$f":"(SUMPRODUCT(E$9:E$229,Nutrients!$DZ$8:$DZ$228)+(IF($A$7=Nutrients!$B$8,Nutrients!$DZ$8,Nutrients!$DZ$9)*E$7)+(((IF($A$8=Nutrients!$B$79,Nutrients!$DZ$79,(IF($A$8=Nutrients!$B$77,Nutrients!$DZ$77,Nutrients!$DZ$78)))))*E$8))/2000/2.2046","v":1171.3956144840422},{"$f":"(SUMPRODUCT(F$9:F$229,Nutrients!$DZ$8:$DZ$228)+(IF($A$7=Nutrients!$B$8,Nutrients!$DZ$8,Nutrients!$DZ$9)*F$7)+(((IF($A$8=Nutrients!$B$79,Nutrients!$DZ$79,(IF($A$8=Nutrients!$B$77,Nutrients!$DZ$77,Nutrients!$DZ$78)))))*F$8))/2000/2.2046","v":1180.5769470002078},{"$f":"(SUMPRODUCT(G$9:G$229,Nutrients!$DZ$8:$DZ$228)+(IF($A$7=Nutrients!$B$8,Nutrients!$DZ$8,Nutrients!$DZ$9)*G$7)+(((IF($A$8=Nutrients!$B$79,Nutrients!$DZ$79,(IF($A$8=Nutrients!$B$77,Nutrients!$DZ$77,Nutrients!$DZ$78)))))*G$8))/2000/2.2046","v":1184.8954698199086},null,{"$f":"(SUMPRODUCT(I$9:I$229,Nutrients!$DZ$8:$DZ$228)+(IF($A$7=Nutrients!$B$8,Nutrients!$DZ$8,Nutrients!$DZ$9)*I$7)+(((IF($A$8=Nutrients!$B$79,Nutrients!$DZ$79,(IF($A$8=Nutrients!$B$77,Nutrients!$DZ$77,Nutrients!$DZ$78)))))*I$8))/2000/2.2046","v":1077.2086704521087},{"$f":"(SUMPRODUCT(J$9:J$229,Nutrients!$DZ$8:$DZ$228)+(IF($A$7=Nutrients!$B$8,Nutrients!$DZ$8,Nutrients!$DZ$9)*J$7)+(((IF($A$8=Nutrients!$B$79,Nutrients!$DZ$79,(IF($A$8=Nutrients!$B$77,Nutrients!$DZ$77,Nutrients!$DZ$78)))))*J$8))/2000/2.2046","v":1094.973811109528},{"$f":"(SUMPRODUCT(K$9:K$229,Nutrients!$DZ$8:$DZ$228)+(IF($A$7=Nutrients!$B$8,Nutrients!$DZ$8,Nutrients!$DZ$9)*K$7)+(((IF($A$8=Nutrients!$B$79,Nutrients!$DZ$79,(IF($A$8=Nutrients!$B$77,Nutrients!$DZ$77,Nutrients!$DZ$78)))))*K$8))/2000/2.2046","v":1110.6504184245086},{"$f":"(SUMPRODUCT(L$9:L$229,Nutrients!$DZ$8:$DZ$228)+(IF($A$7=Nutrients!$B$8,Nutrients!$DZ$8,Nutrients!$DZ$9)*L$7)+(((IF($A$8=Nutrients!$B$79,Nutrients!$DZ$79,(IF($A$8=Nutrients!$B$77,Nutrients!$DZ$77,Nutrients!$DZ$78)))))*L$8))/2000/2.2046","v":1123.7042371092468},{"$f":"(SUMPRODUCT(M$9:M$229,Nutrients!$DZ$8:$DZ$228)+(IF($A$7=Nutrients!$B$8,Nutrients!$DZ$8,Nutrients!$DZ$9)*M$7)+(((IF($A$8=Nutrients!$B$79,Nutrients!$DZ$79,(IF($A$8=Nutrients!$B$77,Nutrients!$DZ$77,Nutrients!$DZ$78)))))*M$8))/2000/2.2046","v":1132.8521699528465},{"$f":"(SUMPRODUCT(N$9:N$229,Nutrients!$DZ$8:$DZ$228)+(IF($A$7=Nutrients!$B$8,Nutrients!$DZ$8,Nutrients!$DZ$9)*N$7)+(((IF($A$8=Nutrients!$B$79,Nutrients!$DZ$79,(IF($A$8=Nutrients!$B$77,Nutrients!$DZ$77,Nutrients!$DZ$78)))))*N$8))/2000/2.2046","v":1137.1907167990073},null,{"$f":"(SUMPRODUCT(P$9:P$229,Nutrients!$DZ$8:$DZ$228)+(IF($A$7=Nutrients!$B$8,Nutrients!$DZ$8,Nutrients!$DZ$9)*P$7)+(((IF($A$8=Nutrients!$B$79,Nutrients!$DZ$79,(IF($A$8=Nutrients!$B$77,Nutrients!$DZ$77,Nutrients!$DZ$78)))))*P$8))/2000/2.2046","v":1029.4986329492795},{"$f":"(SUMPRODUCT(Q$9:Q$229,Nutrients!$DZ$8:$DZ$228)+(IF($A$7=Nutrients!$B$8,Nutrients!$DZ$8,Nutrients!$DZ$9)*Q$7)+(((IF($A$8=Nutrients!$B$79,Nutrients!$DZ$79,(IF($A$8=Nutrients!$B$77,Nutrients!$DZ$77,Nutrients!$DZ$78)))))*Q$8))/2000/2.2046","v":1047.3010563835023},{"$f":"(SUMPRODUCT(R$9:R$229,Nutrients!$DZ$8:$DZ$228)+(IF($A$7=Nutrients!$B$8,Nutrients!$DZ$8,Nutrients!$DZ$9)*R$7)+(((IF($A$8=Nutrients!$B$79,Nutrients!$DZ$79,(IF($A$8=Nutrients!$B$77,Nutrients!$DZ$77,Nutrients!$DZ$78)))))*R$8))/2000/2.2046","v":1063.0339381189124},{"$f":"(SUMPRODUCT(S$9:S$229,Nutrients!$DZ$8:$DZ$228)+(IF($A$7=Nutrients!$B$8,Nutrients!$DZ$8,Nutrients!$DZ$9)*S$7)+(((IF($A$8=Nutrients!$B$79,Nutrients!$DZ$79,(IF($A$8=Nutrients!$B$77,Nutrients!$DZ$77,Nutrients!$DZ$78)))))*S$8))/2000/2.2046","v":1076.0656222518332},{"$f":"(SUMPRODUCT(T$9:T$229,Nutrients!$DZ$8:$DZ$228)+(IF($A$7=Nutrients!$B$8,Nutrients!$DZ$8,Nutrients!$DZ$9)*T$7)+(((IF($A$8=Nutrients!$B$79,Nutrients!$DZ$79,(IF($A$8=Nutrients!$B$77,Nutrients!$DZ$77,Nutrients!$DZ$78)))))*T$8))/2000/2.2046","v":1085.2189654481281},{"$f":"(SUMPRODUCT(U$9:U$229,Nutrients!$DZ$8:$DZ$228)+(IF($A$7=Nutrients!$B$8,Nutrients!$DZ$8,Nutrients!$DZ$9)*U$7)+(((IF($A$8=Nutrients!$B$79,Nutrients!$DZ$79,(IF($A$8=Nutrients!$B$77,Nutrients!$DZ$77,Nutrients!$DZ$78)))))*U$8))/2000/2.2046","v":1089.575338194227},null,{"$f":"(SUMPRODUCT(W$9:W$229,Nutrients!$DZ$8:$DZ$228)+(IF($A$7=Nutrients!$B$8,Nutrients!$DZ$8,Nutrients!$DZ$9)*W$7)+(((IF($A$8=Nutrients!$B$79,Nutrients!$DZ$79,(IF($A$8=Nutrients!$B$77,Nutrients!$DZ$77,Nutrients!$DZ$78)))))*W$8))/2000/2.2046","v":981.81801008514276},{"$f":"(SUMPRODUCT(X$9:X$229,Nutrients!$DZ$8:$DZ$228)+(IF($A$7=Nutrients!$B$8,Nutrients!$DZ$8,Nutrients!$DZ$9)*X$7)+(((IF($A$8=Nutrients!$B$79,Nutrients!$DZ$79,(IF($A$8=Nutrients!$B$77,Nutrients!$DZ$77,Nutrients!$DZ$78)))))*X$8))/2000/2.2046","v":999.66360609794742},{"$f":"(SUMPRODUCT(Y$9:Y$229,Nutrients!$DZ$8:$DZ$228)+(IF($A$7=Nutrients!$B$8,Nutrients!$DZ$8,Nutrients!$DZ$9)*Y$7)+(((IF($A$8=Nutrients!$B$79,Nutrients!$DZ$79,(IF($A$8=Nutrients!$B$77,Nutrients!$DZ$77,Nutrients!$DZ$78)))))*Y$8))/2000/2.2046","v":1015.3976921645282},{"$f":"(SUMPRODUCT(Z$9:Z$229,Nutrients!$DZ$8:$DZ$228)+(IF($A$7=Nutrients!$B$8,Nutrients!$DZ$8,Nutrients!$DZ$9)*Z$7)+(((IF($A$8=Nutrients!$B$79,Nutrients!$DZ$79,(IF($A$8=Nutrients!$B$77,Nutrients!$DZ$77,Nutrients!$DZ$78)))))*Z$8))/2000/2.2046","v":1028.4486126006059},{"$f":"(SUMPRODUCT(AA$9:AA$229,Nutrients!$DZ$8:$DZ$228)+(IF($A$7=Nutrients!$B$8,Nutrients!$DZ$8,Nutrients!$DZ$9)*AA$7)+(((IF($A$8=Nutrients!$B$79,Nutrients!$DZ$79,(IF($A$8=Nutrients!$B$77,Nutrients!$DZ$77,Nutrients!$DZ$78)))))*AA$8))/2000/2.2046","v":1037.6544224394975},{"$f":"(SUMPRODUCT(AB$9:AB$229,Nutrients!$DZ$8:$DZ$228)+(IF($A$7=Nutrients!$B$8,Nutrients!$DZ$8,Nutrients!$DZ$9)*AB$7)+(((IF($A$8=Nutrients!$B$79,Nutrients!$DZ$79,(IF($A$8=Nutrients!$B$77,Nutrients!$DZ$77,Nutrients!$DZ$78)))))*AB$8))/2000/2.2046","v":1041.9342240653957},null,{"$f":"(SUMPRODUCT(AD$9:AD$229,Nutrients!$DZ$8:$DZ$228)+(IF($A$7=Nutrients!$B$8,Nutrients!$DZ$8,Nutrients!$DZ$9)*AD$7)+(((IF($A$8=Nutrients!$B$79,Nutrients!$DZ$79,(IF($A$8=Nutrients!$B$77,Nutrients!$DZ$77,Nutrients!$DZ$78)))))*AD$8))/2000/2.2046","v":934.20573962479409},{"$f":"(SUMPRODUCT(AE$9:AE$229,Nutrients!$DZ$8:$DZ$228)+(IF($A$7=Nutrients!$B$8,Nutrients!$DZ$8,Nutrients!$DZ$9)*AE$7)+(((IF($A$8=Nutrients!$B$79,Nutrients!$DZ$79,(IF($A$8=Nutrients!$B$77,Nutrients!$DZ$77,Nutrients!$DZ$78)))))*AE$8))/2000/2.2046","v":952.03542181319847},{"$f":"(SUMPRODUCT(AF$9:AF$229,Nutrients!$DZ$8:$DZ$228)+(IF($A$7=Nutrients!$B$8,Nutrients!$DZ$8,Nutrients!$DZ$9)*AF$7)+(((IF($A$8=Nutrients!$B$79,Nutrients!$DZ$79,(IF($A$8=Nutrients!$B$77,Nutrients!$DZ$77,Nutrients!$DZ$78)))))*AF$8))/2000/2.2046","v":967.77388681057232},{"$f":"(SUMPRODUCT(AG$9:AG$229,Nutrients!$DZ$8:$DZ$228)+(IF($A$7=Nutrients!$B$8,Nutrients!$DZ$8,Nutrients!$DZ$9)*AG$7)+(((IF($A$8=Nutrients!$B$79,Nutrients!$DZ$79,(IF($A$8=Nutrients!$B$77,Nutrients!$DZ$77,Nutrients!$DZ$78)))))*AG$8))/2000/2.2046","v":980.91263936093003},{"$f":"(SUMPRODUCT(AH$9:AH$229,Nutrients!$DZ$8:$DZ$228)+(IF($A$7=Nutrients!$B$8,Nutrients!$DZ$8,Nutrients!$DZ$9)*AH$7)+(((IF($A$8=Nutrients!$B$79,Nutrients!$DZ$79,(IF($A$8=Nutrients!$B$77,Nutrients!$DZ$77,Nutrients!$DZ$78)))))*AH$8))/2000/2.2046","v":989.80835220313941},{"$f":"(SUMPRODUCT(AI$9:AI$229,Nutrients!$DZ$8:$DZ$228)+(IF($A$7=Nutrients!$B$8,Nutrients!$DZ$8,Nutrients!$DZ$9)*AI$7)+(((IF($A$8=Nutrients!$B$79,Nutrients!$DZ$79,(IF($A$8=Nutrients!$B$77,Nutrients!$DZ$77,Nutrients!$DZ$78)))))*AI$8))/2000/2.2046","v":994.14878647740818},null,{"$f":"(SUMPRODUCT(AK$9:AK$229,Nutrients!$DZ$8:$DZ$228)+(IF($A$7=Nutrients!$B$8,Nutrients!$DZ$8,Nutrients!$DZ$9)*AK$7)+(((IF($A$8=Nutrients!$B$79,Nutrients!$DZ$79,(IF($A$8=Nutrients!$B$77,Nutrients!$DZ$77,Nutrients!$DZ$78)))))*AK$8))/2000/2.2046","v":886.8628902252035},{"$f":"(SUMPRODUCT(AL$9:AL$229,Nutrients!$DZ$8:$DZ$228)+(IF($A$7=Nutrients!$B$8,Nutrients!$DZ$8,Nutrients!$DZ$9)*AL$7)+(((IF($A$8=Nutrients!$B$79,Nutrients!$DZ$79,(IF($A$8=Nutrients!$B$77,Nutrients!$DZ$77,Nutrients!$DZ$78)))))*AL$8))/2000/2.2046","v":904.41962506875143},{"$f":"(SUMPRODUCT(AM$9:AM$229,Nutrients!$DZ$8:$DZ$228)+(IF($A$7=Nutrients!$B$8,Nutrients!$DZ$8,Nutrients!$DZ$9)*AM$7)+(((IF($A$8=Nutrients!$B$79,Nutrients!$DZ$79,(IF($A$8=Nutrients!$B$77,Nutrients!$DZ$77,Nutrients!$DZ$78)))))*AM$8))/2000/2.2046","v":920.18853065510416},{"$f":"(SUMPRODUCT(AN$9:AN$229,Nutrients!$DZ$8:$DZ$228)+(IF($A$7=Nutrients!$B$8,Nutrients!$DZ$8,Nutrients!$DZ$9)*AN$7)+(((IF($A$8=Nutrients!$B$79,Nutrients!$DZ$79,(IF($A$8=Nutrients!$B$77,Nutrients!$DZ$77,Nutrients!$DZ$78)))))*AN$8))/2000/2.2046","v":932.92309061532683},{"$f":"(SUMPRODUCT(AO$9:AO$229,Nutrients!$DZ$8:$DZ$228)+(IF($A$7=Nutrients!$B$8,Nutrients!$DZ$8,Nutrients!$DZ$9)*AO$7)+(((IF($A$8=Nutrients!$B$79,Nutrients!$DZ$79,(IF($A$8=Nutrients!$B$77,Nutrients!$DZ$77,Nutrients!$DZ$78)))))*AO$8))/2000/2.2046","v":942.10607402155676},{"$f":"(SUMPRODUCT(AP$9:AP$229,Nutrients!$DZ$8:$DZ$228)+(IF($A$7=Nutrients!$B$8,Nutrients!$DZ$8,Nutrients!$DZ$9)*AP$7)+(((IF($A$8=Nutrients!$B$79,Nutrients!$DZ$79,(IF($A$8=Nutrients!$B$77,Nutrients!$DZ$77,Nutrients!$DZ$78)))))*AP$8))/2000/2.2046","v":946.46320298169883},null,{"$f":"(SUMPRODUCT(AR$9:AR$229,Nutrients!$DZ$8:$DZ$228)+(IF($A$7=Nutrients!$B$8,Nutrients!$DZ$8,Nutrients!$DZ$9)*AR$7)+(((IF($A$8=Nutrients!$B$79,Nutrients!$DZ$79,(IF($A$8=Nutrients!$B$77,Nutrients!$DZ$77,Nutrients!$DZ$78)))))*AR$8))/2000/2.2046","v":839.11233825571094},{"$f":"(SUMPRODUCT(AS$9:AS$229,Nutrients!$DZ$8:$DZ$228)+(IF($A$7=Nutrients!$B$8,Nutrients!$DZ$8,Nutrients!$DZ$9)*AS$7)+(((IF($A$8=Nutrients!$B$79,Nutrients!$DZ$79,(IF($A$8=Nutrients!$B$77,Nutrients!$DZ$77,Nutrients!$DZ$78)))))*AS$8))/2000/2.2046","v":856.778904202891},{"$f":"(SUMPRODUCT(AT$9:AT$229,Nutrients!$DZ$8:$DZ$228)+(IF($A$7=Nutrients!$B$8,Nutrients!$DZ$8,Nutrients!$DZ$9)*AT$7)+(((IF($A$8=Nutrients!$B$79,Nutrients!$DZ$79,(IF($A$8=Nutrients!$B$77,Nutrients!$DZ$77,Nutrients!$DZ$78)))))*AT$8))/2000/2.2046","v":872.28276370687195},{"$f":"(SUMPRODUCT(AU$9:AU$229,Nutrients!$DZ$8:$DZ$228)+(IF($A$7=Nutrients!$B$8,Nutrients!$DZ$8,Nutrients!$DZ$9)*AU$7)+(((IF($A$8=Nutrients!$B$79,Nutrients!$DZ$79,(IF($A$8=Nutrients!$B$77,Nutrients!$DZ$77,Nutrients!$DZ$78)))))*AU$8))/2000/2.2046","v":885.19542912537258},{"$f":"(SUMPRODUCT(AV$9:AV$229,Nutrients!$DZ$8:$DZ$228)+(IF($A$7=Nutrients!$B$8,Nutrients!$DZ$8,Nutrients!$DZ$9)*AV$7)+(((IF($A$8=Nutrients!$B$79,Nutrients!$DZ$79,(IF($A$8=Nutrients!$B$77,Nutrients!$DZ$77,Nutrients!$DZ$78)))))*AV$8))/2000/2.2046","v":894.42538107379312},{"$f":"(SUMPRODUCT(AW$9:AW$229,Nutrients!$DZ$8:$DZ$228)+(IF($A$7=Nutrients!$B$8,Nutrients!$DZ$8,Nutrients!$DZ$9)*AW$7)+(((IF($A$8=Nutrients!$B$79,Nutrients!$DZ$79,(IF($A$8=Nutrients!$B$77,Nutrients!$DZ$77,Nutrients!$DZ$78)))))*AW$8))/2000/2.2046","v":898.79829324128082}]
["DE NRC, kcal/lb",{"$f":"(SUMPRODUCT(B$9:B$229,Nutrients!$D$8:$D$228)+(IF($A$7=Nutrients!$B$8,Nutrients!$D$8,Nutrients!$D$9)*B$7)+(((IF($A$8=Nutrients!$B$79,Nutrients!$D$79,(IF($A$8=Nutrients!$B$77,Nutrients!$D$77,Nutrients!$D$78)))))*B$8))/2000/2.2046","v":1555.1808706013358},{"$f":"(SUMPRODUCT(C$9:C$229,Nutrients!$D$8:$D$228)+(IF($A$7=Nutrients!$B$8,Nutrients!$D$8,Nutrients!$D$9)*C$7)+(((IF($A$8=Nutrients!$B$79,Nutrients!$D$79,(IF($A$8=Nutrients!$B$77,Nutrients!$D$77,Nutrients!$D$78)))))*C$8))/2000/2.2046","v":1553.9515936192374},{"$f":"(SUMPRODUCT(D$9:D$229,Nutrients!$D$8:$D$228)+(IF($A$7=Nutrients!$B$8,Nutrients!$D$8,Nutrients!$D$9)*D$7)+(((IF($A$8=Nutrients!$B$79,Nutrients!$D$79,(IF($A$8=Nutrients!$B$77,Nutrients!$D$77,Nutrients!$D$78)))))*D$8))/2000/2.2046","v":1553.0837722463236},{"$f":"(SUMPRODUCT(E$9:E$229,Nutrients!$D$8:$D$228)+(IF($A$7=Nutrients!$B$8,Nutrients!$D$8,Nutrients!$D$9)*E$7)+(((IF($A$8=Nutrients!$B$79,Nutrients!$D$79,(IF($A$8=Nutrients!$B$77,Nutrients!$D$77,Nutrients!$D$78)))))*E$8))/2000/2.2046","v":1552.6251876342408},{"$f":"(SUMPRODUCT(F$9:F$229,Nutrients!$D$8:$D$228)+(IF($A$7=Nutrients!$B$8,Nutrients!$D$8,Nutrients!$D$9)*F$7)+(((IF($A$8=Nutrients!$B$79,Nutrients!$D$79,(IF($A$8=Nutrients!$B$77,Nutrients!$D$77,Nutrients!$D$78)))))*F$8))/2000/2.2046","v":1552.7788119489294},{"$f":"(SUMPRODUCT(G$9:G$229,Nutrients!$D$8:$D$228)+(IF($A$7=Nutrients!$B$8,Nutrients!$D$8,Nutrients!$D$9)*G$7)+(((IF($A$8=Nutrients!$B$79,Nutrients!$D$79,(IF($A$8=Nutrients!$B$77,Nutrients!$D$77,Nutrients!$D$78)))))*G$8))/2000/2.2046","v":1552.432918309064},null,{"$f":"(SUMPRODUCT(I$9:I$229,Nutrients!$D$8:$D$228)+(IF($A$7=Nutrients!$B$8,Nutrients!$D$8,Nutrients!$D$9)*I$7)+(((IF($A$8=Nutrients!$B$79,Nutrients!$D$79,(IF($A$8=Nutrients!$B$77,Nutrients!$D$77,Nutrients!$D$78)))))*I$8))/2000/2.2046","v":1571.9826958957058},{"$f":"(SUMPRODUCT(J$9:J$229,Nutrients!$D$8:$D$228)+(IF($A$7=Nutrients!$B$8,Nutrients!$D$8,Nutrients!$D$9)*J$7)+(((IF($A$8=Nutrients!$B$79,Nutrients!$D$79,(IF($A$8=Nutrients!$B$77,Nutrients!$D$77,Nutrients!$D$78)))))*J$8))/2000/2.2046","v":1570.8284111716903},{"$f":"(SUMPRODUCT(K$9:K$229,Nutrients!$D$8:$D$228)+(IF($A$7=Nutrients!$B$8,Nutrients!$D$8,Nutrients!$D$9)*K$7)+(((IF($A$8=Nutrients!$B$79,Nutrients!$D$79,(IF($A$8=Nutrients!$B$77,Nutrients!$D$77,Nutrients!$D$78)))))*K$8))/2000/2.2046","v":1570.2687972059139},{"$f":"(SUMPRODUCT(L$9:L$229,Nutrients!$D$8:$D$228)+(IF($A$7=Nutrients!$B$8,Nutrients!$D$8,Nutrients!$D$9)*L$7)+(((IF($A$8=Nutrients!$B$79,Nutrients!$D$79,(IF($A$8=Nutrients!$B$77,Nutrients!$D$77,Nutrients!$D$78)))))*L$8))/2000/2.2046","v":1569.6810361860703},{"$f":"(SUMPRODUCT(M$9:M$229,Nutrients!$D$8:$D$228)+(IF($A$7=Nutrients!$B$8,Nutrients!$D$8,Nutrients!$D$9)*M$7)+(((IF($A$8=Nutrients!$B$79,Nutrients!$D$79,(IF($A$8=Nutrients!$B$77,Nutrients!$D$77,Nutrients!$D$78)))))*M$8))/2000/2.2046","v":1569.7840891897256},{"$f":"(SUMPRODUCT(N$9:N$229,Nutrients!$D$8:$D$228)+(IF($A$7=Nutrients!$B$8,Nutrients!$D$8,Nutrients!$D$9)*N$7)+(((IF($A$8=Nutrients!$B$79,Nutrients!$D$79,(IF($A$8=Nutrients!$B$77,Nutrients!$D$77,Nutrients!$D$78)))))*N$8))/2000/2.2046","v":1569.4694411028086},null,{"$f":"(SUMPRODUCT(P$9:P$229,Nutrients!$D$8:$D$228)+(IF($A$7=Nutrients!$B$8,Nutrients!$D$8,Nutrients!$D$9)*P$7)+(((IF($A$8=Nutrients!$B$79,Nutrients!$D$79,(IF($A$8=Nutrients!$B$77,Nutrients!$D$77,Nutrients!$D$78)))))*P$8))/2000/2.2046","v":1588.9966750937635},{"$f":"(SUMPRODUCT(Q$9:Q$229,Nutrients!$D$8:$D$228)+(IF($A$7=Nutrients!$B$8,Nutrients!$D$8,Nutrients!$D$9)*Q$7)+(((IF($A$8=Nutrients!$B$79,Nutrients!$D$79,(IF($A$8=Nutrients!$B$77,Nutrients!$D$77,Nutrients!$D$78)))))*Q$8))/2000/2.2046","v":1587.884127208165},{"$f":"(SUMPRODUCT(R$9:R$229,Nutrients!$D$8:$D$228)+(IF($A$7=Nutrients!$B$8,Nutrients!$D$8,Nutrients!$D$9)*R$7)+(((IF($A$8=Nutrients!$B$79,Nutrients!$D$79,(IF($A$8=Nutrients!$B$77,Nutrients!$D$77,Nutrients!$D$78)))))*R$8))/2000/2.2046","v":1587.3875105991794},{"$f":"(SUMPRODUCT(S$9:S$229,Nutrients!$D$8:$D$228)+(IF($A$7=Nutrients!$B$8,Nutrients!$D$8,Nutrients!$D$9)*S$7)+(((IF($A$8=Nutrients!$B$79,Nutrients!$D$79,(IF($A$8=Nutrients!$B$77,Nutrients!$D$77,Nutrients!$D$78)))))*S$8))/2000/2.2046","v":1586.7749706789477},{"$f":"(SUMPRODUCT(T$9:T$229,Nutrients!$D$8:$D$228)+(IF($A$7=Nutrients!$B$8,Nutrients!$D$8,Nutrients!$D$9)*T$7)+(((IF($A$8=Nutrients!$B$79,Nutrients!$D$79,(IF($A$8=Nutrients!$B$77,Nutrients!$D$77,Nutrients!$D$78)))))*T$8))/2000/2.2046","v":1586.8955571741392},{"$f":"(SUMPRODUCT(U$9:U$229,Nutrients!$D$8:$D$228)+(IF($A$7=Nutrients!$B$8,Nutrients!$D$8,Nutrients!$D$9)*U$7)+(((IF($A$8=Nutrients!$B$79,Nutrients!$D$79,(IF($A$8=Nutrients!$B$77,Nutrients!$D$77,Nutrients!$D$78)))))*U$8))/2000/2.2046","v":1586.609968293269},null,{"$f":"(SUMPRODUCT(W$9:W$229,Nutrients!$D$8:$D$228)+(IF($A$7=Nutrients!$B$8,Nutrients!$D$8,Nutrients!$D$9)*W$7)+(((IF($A$8=Nutrients!$B$79,Nutrients!$D$79,(IF($A$8=Nutrients!$B$77,Nutrients!$D$77,Nutrients!$D$78)))))*W$8))/2000/2.2046","v":1606.0435830092476},{"$f":"(SUMPRODUCT(X$9:X$229,Nutrients!$D$8:$D$228)+(IF($A$7=Nutrients!$B$8,Nutrients!$D$8,Nutrients!$D$9)*X$7)+(((IF($A$8=Nutrients!$B$79,Nutrients!$D$79,(IF($A$8=Nutrients!$B$77,Nutrients!$D$77,Nutrients!$D$78)))))*X$8))/2000/2.2046","v":1604.979365400811},{"$f":"(SUMPRODUCT(Y$9:Y$229,Nutrients!$D$8:$D$228)+(IF($A$7=Nutrients!$B$8,Nutrients!$D$8,Nutrients!$D$9)*Y$7)+(((IF($A$8=Nutrients!$B$79,Nutrients!$D$79,(IF($A$8=Nutrients!$B$77,Nutrients!$D$77,Nutrients!$D$78)))))*Y$8))/2000/2.2046","v":1604.4870960900796},{"$f":"(SUMPRODUCT(Z$9:Z$229,Nutrients!$D$8:$D$228)+(IF($A$7=Nutrients!$B$8,Nutrients!$D$8,Nutrients!$D$9)*Z$7)+(((IF($A$8=Nutrients!$B$79,Nutrients!$D$79,(IF($A$8=Nutrients!$B$77,Nutrients!$D$77,Nutrients!$D$78)))))*Z$8))/2000/2.2046","v":1603.8821849729513},{"$f":"(SUMPRODUCT(AA$9:AA$229,Nutrients!$D$8:$D$228)+(IF($A$7=Nutrients!$B$8,Nutrients!$D$8,Nutrients!$D$9)*AA$7)+(((IF($A$8=Nutrients!$B$79,Nutrients!$D$79,(IF($A$8=Nutrients!$B$77,Nutrients!$D$77,Nutrients!$D$78)))))*AA$8))/2000/2.2046","v":1604.1018999949974},{"$f":"(SUMPRODUCT(AB$9:AB$229,Nutrients!$D$8:$D$228)+(IF($A$7=Nutrients!$B$8,Nutrients!$D$8,Nutrients!$D$9)*AB$7)+(((IF($A$8=Nutrients!$B$79,Nutrients!$D$79,(IF($A$8=Nutrients!$B$77,Nutrients!$D$77,Nutrients!$D$78)))))*AB$8))/2000/2.2046","v":1603.6907470974311},null,{"$f":"(SUMPRODUCT(AD$9:AD$229,Nutrients!$D$8:$D$228)+(IF($A$7=Nutrients!$B$8,Nutrients!$D$8,Nutrients!$D$9)*AD$7)+(((IF($A$8=Nutrients!$B$79,Nutrients!$D$79,(IF($A$8=Nutrients!$B$77,Nutrients!$D$77,Nutrients!$D$78)))))*AD$8))/2000/2.2046","v":1623.1685087299797},{"$f":"(SUMPRODUCT(AE$9:AE$229,Nutrients!$D$8:$D$228)+(IF($A$7=Nutrients!$B$8,Nutrients!$D$8,Nutrients!$D$9)*AE$7)+(((IF($A$8=Nutrients!$B$79,Nutrients!$D$79,(IF($A$8=Nutrients!$B$77,Nutrients!$D$77,Nutrients!$D$78)))))*AE$8))/2000/2.2046","v":1622.0864761202338},{"$f":"(SUMPRODUCT(AF$9:AF$229,Nutrients!$D$8:$D$228)+(IF($A$7=Nutrients!$B$8,Nutrients!$D$8,Nutrients!$D$9)*AF$7)+(((IF($A$8=Nutrients!$B$79,Nutrients!$D$79,(IF($A$8=Nutrients!$B$77,Nutrients!$D$77,Nutrients!$D$78)))))*AF$8))/2000/2.2046","v":1621.5665678859446},{"$f":"(SUMPRODUCT(AG$9:AG$229,Nutrients!$D$8:$D$228)+(IF($A$7=Nutrients!$B$8,Nutrients!$D$8,Nutrients!$D$9)*AG$7)+(((IF($A$8=Nutrients!$B$79,Nutrients!$D$79,(IF($A$8=Nutrients!$B$77,Nutrients!$D$77,Nutrients!$D$78)))))*AG$8))/2000/2.2046","v":1621.1190111628171},{"$f":"(SUMPRODUCT(AH$9:AH$229,Nutrients!$D$8:$D$228)+(IF($A$7=Nutrients!$B$8,Nutrients!$D$8,Nutrients!$D$9)*AH$7)+(((IF($A$8=Nutrients!$B$79,Nutrients!$D$79,(IF($A$8=Nutrients!$B$77,Nutrients!$D$77,Nutrients!$D$78)))))*AH$8))/2000/2.2046","v":1620.8717647241701},{"$f":"(SUMPRODUCT(AI$9:AI$229,Nutrients!$D$8:$D$228)+(IF($A$7=Nutrients!$B$8,Nutrients!$D$8,Nutrients!$D$9)*AI$7)+(((IF($A$8=Nutrients!$B$79,Nutrients!$D$79,(IF($A$8=Nutrients!$B$77,Nutrients!$D$77,Nutrients!$D$78)))))*AI$8))/2000/2.2046","v":1620.4947124219402},null,{"$f":"(SUMPRODUCT(AK$9:AK$229,Nutrients!$D$8:$D$228)+(IF($A$7=Nutrients!$B$8,Nutrients!$D$8,Nutrients!$D$9)*AK$7)+(((IF($A$8=Nutrients!$B$79,Nutrients!$D$79,(IF($A$8=Nutrients!$B$77,Nutrients!$D$77,Nutrients!$D$78)))))*AK$8))/2000/2.2046","v":1640.5957922104913},{"$f":"(SUMPRODUCT(AL$9:AL$229,Nutrients!$D$8:$D$228)+(IF($A$7=Nutrients!$B$8,Nutrients!$D$8,Nutrients!$D$9)*AL$7)+(((IF($A$8=Nutrients!$B$79,Nutrients!$D$79,(IF($A$8=Nutrients!$B$77,Nutrients!$D$77,Nutrients!$D$78)))))*AL$8))/2000/2.2046","v":1639.2082040545863},{"$f":"(SUMPRODUCT(AM$9:AM$229,Nutrients!$D$8:$D$228)+(IF($A$7=Nutrients!$B$8,Nutrients!$D$8,Nutrients!$D$9)*AM$7)+(((IF($A$8=Nutrients!$B$79,Nutrients!$D$79,(IF($A$8=Nutrients!$B$77,Nutrients!$D$77,Nutrients!$D$78)))))*AM$8))/2000/2.2046","v":1638.7488613033747},{"$f":"(SUMPRODUCT(AN$9:AN$229,Nutrients!$D$8:$D$228)+(IF($A$7=Nutrients!$B$8,Nutrients!$D$8,Nutrients!$D$9)*AN$7)+(((IF($A$8=Nutrients!$B$79,Nutrients!$D$79,(IF($A$8=Nutrients!$B$77,Nutrients!$D$77,Nutrients!$D$78)))))*AN$8))/2000/2.2046","v":1637.732864389018},{"$f":"(SUMPRODUCT(AO$9:AO$229,Nutrients!$D$8:$D$228)+(IF($A$7=Nutrients!$B$8,Nutrients!$D$8,Nutrients!$D$9)*AO$7)+(((IF($A$8=Nutrients!$B$79,Nutrients!$D$79,(IF($A$8=Nutrients!$B$77,Nutrients!$D$77,Nutrients!$D$78)))))*AO$8))/2000/2.2046","v":1637.779060233664},{"$f":"(SUMPRODUCT(AP$9:AP$229,Nutrients!$D$8:$D$228)+(IF($A$7=Nutrients!$B$8,Nutrients!$D$8,Nutrients!$D$9)*AP$7)+(((IF($A$8=Nutrients!$B$79,Nutrients!$D$79,(IF($A$8=Nutrients!$B$77,Nutrients!$D$77,Nutrients!$D$78)))))*AP$8))/2000/2.2046","v":1637.4208500178991},null,{"$f":"(SUMPRODUCT(AR$9:AR$229,Nutrients!$D$8:$D$228)+(IF($A$7=Nutrients!$B$8,Nutrients!$D$8,Nutrients!$D$9)*AR$7)+(((IF($A$8=Nutrients!$B$79,Nutrients!$D$79,(IF($A$8=Nutrients!$B$77,Nutrients!$D$77,Nutrients!$D$78)))))*AR$8))/2000/2.2046","v":1657.5561653554539},{"$f":"(SUMPRODUCT(AS$9:AS$229,Nutrients!$D$8:$D$228)+(IF($A$7=Nutrients!$B$8,Nutrients!$D$8,Nutrients!$D$9)*AS$7)+(((IF($A$8=Nutrients!$B$79,Nutrients!$D$79,(IF($A$8=Nutrients!$B$77,Nutrients!$D$77,Nutrients!$D$78)))))*AS$8))/2000/2.2046","v":1656.2915297967309},{"$f":"(SUMPRODUCT(AT$9:AT$229,Nutrients!$D$8:$D$228)+(IF($A$7=Nutrients!$B$8,Nutrients!$D$8,Nutrients!$D$9)*AT$7)+(((IF($A$8=Nutrients!$B$79,Nutrients!$D$79,(IF($A$8=Nutrients!$B$77,Nutrients!$D$77,Nutrients!$D$78)))))*AT$8))/2000/2.2046","v":1655.5257427728238},{"$f":"(SUMPRODUCT(AU$9:AU$229,Nutrients!$D$8:$D$228)+(IF($A$7=Nutrients!$B$8,Nutrients!$D$8,Nutrients!$D$9)*AU$7)+(((IF($A$8=Nutrients!$B$79,Nutrients!$D$79,(IF($A$8=Nutrients!$B$77,Nutrients!$D$77,Nutrients!$D$78)))))*AU$8))/2000/2.2046","v":1654.6097471928861},{"$f":"(SUMPRODUCT(AV$9:AV$229,Nutrients!$D$8:$D$228)+(IF($A$7=Nutrients!$B$8,Nutrients!$D$8,Nutrients!$D$9)*AV$7)+(((IF($A$8=Nutrients!$B$79,Nutrients!$D$79,(IF($A$8=Nutrients!$B$77,Nutrients!$D$77,Nutrients!$D$78)))))*AV$8))/2000/2.2046","v":1654.7182945912173},{"$f":"(SUMPRODUCT(AW$9:AW$229,Nutrients!$D$8:$D$228)+(IF($A$7=Nutrients!$B$8,Nutrients!$D$8,Nutrients!$D$9)*AW$7)+(((IF($A$8=Nutrients!$B$79,Nutrients!$D$79,(IF($A$8=Nutrients!$B$77,Nutrients!$D$77,Nutrients!$D$78)))))*AW$8))/2000/2.2046","v":1654.3775147773686}]
["NE NRC, kcal/lb",{"$f":"(SUMPRODUCT(B$9:B$229,Nutrients!$F$8:$F$228)+(IF($A$7=Nutrients!$B$8,Nutrients!$F$8,Nutrients!$F$9)*B$7)+(((IF($A$8=Nutrients!$B$79,Nutrients!$F$79,(IF($A$8=Nutrients!$B$77,Nutrients!$F$77,Nutrients!$F$78)))))*B$8))/2000/2.2046","v":1147.6611237487589},{"$f":"(SUMPRODUCT(C$9:C$229,Nutrients!$F$8:$F$228)+(IF($A$7=Nutrients!$B$8,Nutrients!$F$8,Nutrients!$F$9)*C$7)+(((IF($A$8=Nutrients!$B$79,Nutrients!$F$79,(IF($A$8=Nutrients!$B$77,Nutrients!$F$77,Nutrients!$F$78)))))*C$8))/2000/2.2046","v":1156.7030647238309},{"$f":"(SUMPRODUCT(D$9:D$229,Nutrients!$F$8:$F$228)+(IF($A$7=Nutrients!$B$8,Nutrients!$F$8,Nutrients!$F$9)*D$7)+(((IF($A$8=Nutrients!$B$79,Nutrients!$F$79,(IF($A$8=Nutrients!$B$77,Nutrients!$F$77,Nutrients!$F$78)))))*D$8))/2000/2.2046","v":1164.6580809828592},{"$f":"(SUMPRODUCT(E$9:E$229,Nutrients!$F$8:$F$228)+(IF($A$7=Nutrients!$B$8,Nutrients!$F$8,Nutrients!$F$9)*E$7)+(((IF($A$8=Nutrients!$B$79,Nutrients!$F$79,(IF($A$8=Nutrients!$B$77,Nutrients!$F$77,Nutrients!$F$78)))))*E$8))/2000/2.2046","v":1171.5486817586343},{"$f":"(SUMPRODUCT(F$9:F$229,Nutrients!$F$8:$F$228)+(IF($A$7=Nutrients!$B$8,Nutrients!$F$8,Nutrients!$F$9)*F$7)+(((IF($A$8=Nutrients!$B$79,Nutrients!$F$79,(IF($A$8=Nutrients!$B$77,Nutrients!$F$77,Nutrients!$F$78)))))*F$8))/2000/2.2046","v":1176.5212854349088},{"$f":"(SUMPRODUCT(G$9:G$229,Nutrients!$F$8:$F$228)+(IF($A$7=Nutrients!$B$8,Nutrients!$F$8,Nutrients!$F$9)*G$7)+(((IF($A$8=Nutrients!$B$79,Nutrients!$F$79,(IF($A$8=Nutrients!$B$77,Nutrients!$F$77,Nutrients!$F$78)))))*G$8))/2000/2.2046","v":1178.7128237398681},null,{"$f":"(SUMPRODUCT(I$9:I$229,Nutrients!$F$8:$F$228)+(IF($A$7=Nutrients!$B$8,Nutrients!$F$8,Nutrients!$F$9)*I$7)+(((IF($A$8=Nutrients!$B$79,Nutrients!$F$79,(IF($A$8=Nutrients!$B$77,Nutrients!$F$77,Nutrients!$F$78)))))*I$8))/2000/2.2046","v":1147.4028477251309},{"$f":"(SUMPRODUCT(J$9:J$229,Nutrients!$F$8:$F$228)+(IF($A$7=Nutrients!$B$8,Nutrients!$F$8,Nutrients!$F$9)*J$7)+(((IF($A$8=Nutrients!$B$79,Nutrients!$F$79,(IF($A$8=Nutrients!$B$77,Nutrients!$F$77,Nutrients!$F$78)))))*J$8))/2000/2.2046","v":1156.5177970803795},{"$f":"(SUMPRODUCT(K$9:K$229,Nutrients!$F$8:$F$228)+(IF($A$7=Nutrients!$B$8,Nutrients!$F$8,Nutrients!$F$9)*K$7)+(((IF($A$8=Nutrients!$B$79,Nutrients!$F$79,(IF($A$8=Nutrients!$B$77,Nutrients!$F$77,Nutrients!$F$78)))))*K$8))/2000/2.2046","v":1164.7237840188366},{"$f":"(SUMPRODUCT(L$9:L$229,Nutrients!$F$8:$F$228)+(IF($A$7=Nutrients!$B$8,Nutrients!$F$8,Nutrients!$F$9)*L$7)+(((IF($A$8=Nutrients!$B$79,Nutrients!$F$79,(IF($A$8=Nutrients!$B$77,Nutrients!$F$77,Nutrients!$F$78)))))*L$8))/2000/2.2046","v":1171.4812215287386},{"$f":"(SUMPRODUCT(M$9:M$229,Nutrients!$F$8:$F$228)+(IF($A$7=Nutrients!$B$8,Nutrients!$F$8,Nutrients!$F$9)*M$7)+(((IF($A$8=Nutrients!$B$79,Nutrients!$F$79,(IF($A$8=Nutrients!$B$77,Nutrients!$F$77,Nutrients!$F$78)))))*M$8))/2000/2.2046","v":1176.4259789598518},{"$f":"(SUMPRODUCT(N$9:N$229,Nutrients!$F$8:$F$228)+(IF($A$7=Nutrients!$B$8,Nutrients!$F$8,Nutrients!$F$9)*N$7)+(((IF($A$8=Nutrients!$B$79,Nutrients!$F$79,(IF($A$8=Nutrients!$B$77,Nutrients!$F$77,Nutrients!$F$78)))))*N$8))/2000/2.2046","v":1178.6337228205734},null,{"$f":"(SUMPRODUCT(P$9:P$229,Nutrients!$F$8:$F$228)+(IF($A$7=Nutrients!$B$8,Nutrients!$F$8,Nutrients!$F$9)*P$7)+(((IF($A$8=Nutrients!$B$79,Nutrients!$F$79,(IF($A$8=Nutrients!$B$77,Nutrients!$F$77,Nutrients!$F$78)))))*P$8))/2000/2.2046","v":1147.327436307171},{"$f":"(SUMPRODUCT(Q$9:Q$229,Nutrients!$F$8:$F$228)+(IF($A$7=Nutrients!$B$8,Nutrients!$F$8,Nutrients!$F$9)*Q$7)+(((IF($A$8=Nutrients!$B$79,Nutrients!$F$79,(IF($A$8=Nutrients!$B$77,Nutrients!$F$77,Nutrients!$F$78)))))*Q$8))/2000/2.2046","v":1156.4807256157981},{"$f":"(SUMPRODUCT(R$9:R$229,Nutrients!$F$8:$F$228)+(IF($A$7=Nutrients!$B$8,Nutrients!$F$8,Nutrients!$F$9)*R$7)+(((IF($A$8=Nutrients!$B$79,Nutrients!$F$79,(IF($A$8=Nutrients!$B$77,Nutrients!$F$77,Nutrients!$F$78)))))*R$8))/2000/2.2046","v":1164.7445826712537},{"$f":"(SUMPRODUCT(S$9:S$229,Nutrients!$F$8:$F$228)+(IF($A$7=Nutrients!$B$8,Nutrients!$F$8,Nutrients!$F$9)*S$7)+(((IF($A$8=Nutrients!$B$79,Nutrients!$F$79,(IF($A$8=Nutrients!$B$77,Nutrients!$F$77,Nutrients!$F$78)))))*S$8))/2000/2.2046","v":1171.4792579902066},{"$f":"(SUMPRODUCT(T$9:T$229,Nutrients!$F$8:$F$228)+(IF($A$7=Nutrients!$B$8,Nutrients!$F$8,Nutrients!$F$9)*T$7)+(((IF($A$8=Nutrients!$B$79,Nutrients!$F$79,(IF($A$8=Nutrients!$B$77,Nutrients!$F$77,Nutrients!$F$78)))))*T$8))/2000/2.2046","v":1176.4304228050798},{"$f":"(SUMPRODUCT(U$9:U$229,Nutrients!$F$8:$F$228)+(IF($A$7=Nutrients!$B$8,Nutrients!$F$8,Nutrients!$F$9)*U$7)+(((IF($A$8=Nutrients!$B$79,Nutrients!$F$79,(IF($A$8=Nutrients!$B$77,Nutrients!$F$77,Nutrients!$F$78)))))*U$8))/2000/2.2046","v":1178.6571672107489},null,{"$f":"(SUMPRODUCT(W$9:W$229,Nutrients!$F$8:$F$228)+(IF($A$7=Nutrients!$B$8,Nutrients!$F$8,Nutrients!$F$9)*W$7)+(((IF($A$8=Nutrients!$B$79,Nutrients!$F$79,(IF($A$8=Nutrients!$B$77,Nutrients!$F$77,Nutrients!$F$78)))))*W$8))/2000/2.2046","v":1147.2822735984762},{"$f":"(SUMPRODUCT(X$9:X$229,Nutrients!$F$8:$F$228)+(IF($A$7=Nutrients!$B$8,Nutrients!$F$8,Nutrients!$F$9)*X$7)+(((IF($A$8=Nutrients!$B$79,Nutrients!$F$79,(IF($A$8=Nutrients!$B$77,Nutrients!$F$77,Nutrients!$F$78)))))*X$8))/2000/2.2046","v":1156.4799596712921},{"$f":"(SUMPRODUCT(Y$9:Y$229,Nutrients!$F$8:$F$228)+(IF($A$7=Nutrients!$B$8,Nutrients!$F$8,Nutrients!$F$9)*Y$7)+(((IF($A$8=Nutrients!$B$79,Nutrients!$F$79,(IF($A$8=Nutrients!$B$77,Nutrients!$F$77,Nutrients!$F$78)))))*Y$8))/2000/2.2046","v":1164.7435800326707},{"$f":"(SUMPRODUCT(Z$9:Z$229,Nutrients!$F$8:$F$228)+(IF($A$7=Nutrients!$B$8,Nutrients!$F$8,Nutrients!$F$9)*Z$7)+(((IF($A$8=Nutrients!$B$79,Nutrients!$F$79,(IF($A$8=Nutrients!$B$77,Nutrients!$F$77,Nutrients!$F$78)))))*Z$8))/2000/2.2046","v":1171.4970149610115},{"$f":"(SUMPRODUCT(AA$9:AA$229,Nutrients!$F$8:$F$228)+(IF($A$7=Nutrients!$B$8,Nutrients!$F$8,Nutrients!$F$9)*AA$7)+(((IF($A$8=Nutrients!$B$79,Nutrients!$F$79,(IF($A$8=Nutrients!$B$77,Nutrients!$F$77,Nutrients!$F$78)))))*AA$8))/2000/2.2046","v":1176.5051033508475},{"$f":"(SUMPRODUCT(AB$9:AB$229,Nutrients!$F$8:$F$228)+(IF($A$7=Nutrients!$B$8,Nutrients!$F$8,Nutrients!$F$9)*AB$7)+(((IF($A$8=Nutrients!$B$79,Nutrients!$F$79,(IF($A$8=Nutrients!$B$77,Nutrients!$F$77,Nutrients!$F$78)))))*AB$8))/2000/2.2046","v":1178.6727042298005},null,{"$f":"(SUMPRODUCT(AD$9:AD$229,Nutrients!$F$8:$F$228)+(IF($A$7=Nutrients!$B$8,Nutrients!$F$8,Nutrients!$F$9)*AD$7)+(((IF($A$8=Nutrients!$B$79,Nutrients!$F$79,(IF($A$8=Nutrients!$B$77,Nutrients!$F$77,Nutrients!$F$78)))))*AD$8))/2000/2.2046","v":1147.3066638815424},{"$f":"(SUMPRODUCT(AE$9:AE$229,Nutrients!$F$8:$F$228)+(IF($A$7=Nutrients!$B$8,Nutrients!$F$8,Nutrients!$F$9)*AE$7)+(((IF($A$8=Nutrients!$B$79,Nutrients!$F$79,(IF($A$8=Nutrients!$B$77,Nutrients!$F$77,Nutrients!$F$78)))))*AE$8))/2000/2.2046","v":1156.4879848834626},{"$f":"(SUMPRODUCT(AF$9:AF$229,Nutrients!$F$8:$F$228)+(IF($A$7=Nutrients!$B$8,Nutrients!$F$8,Nutrients!$F$9)*AF$7)+(((IF($A$8=Nutrients!$B$79,Nutrients!$F$79,(IF($A$8=Nutrients!$B$77,Nutrients!$F$77,Nutrients!$F$78)))))*AF$8))/2000/2.2046","v":1164.7537975281266},{"$f":"(SUMPRODUCT(AG$9:AG$229,Nutrients!$F$8:$F$228)+(IF($A$7=Nutrients!$B$8,Nutrients!$F$8,Nutrients!$F$9)*AG$7)+(((IF($A$8=Nutrients!$B$79,Nutrients!$F$79,(IF($A$8=Nutrients!$B$77,Nutrients!$F$77,Nutrients!$F$78)))))*AG$8))/2000/2.2046","v":1171.6018129769009},{"$f":"(SUMPRODUCT(AH$9:AH$229,Nutrients!$F$8:$F$228)+(IF($A$7=Nutrients!$B$8,Nutrients!$F$8,Nutrients!$F$9)*AH$7)+(((IF($A$8=Nutrients!$B$79,Nutrients!$F$79,(IF($A$8=Nutrients!$B$77,Nutrients!$F$77,Nutrients!$F$78)))))*AH$8))/2000/2.2046","v":1176.3490294542294},{"$f":"(SUMPRODUCT(AI$9:AI$229,Nutrients!$F$8:$F$228)+(IF($A$7=Nutrients!$B$8,Nutrients!$F$8,Nutrients!$F$9)*AI$7)+(((IF($A$8=Nutrients!$B$79,Nutrients!$F$79,(IF($A$8=Nutrients!$B$77,Nutrients!$F$77,Nutrients!$F$78)))))*AI$8))/2000/2.2046","v":1178.5955285809389},null,{"$f":"(SUMPRODUCT(AK$9:AK$229,Nutrients!$F$8:$F$228)+(IF($A$7=Nutrients!$B$8,Nutrients!$F$8,Nutrients!$F$9)*AK$7)+(((IF($A$8=Nutrients!$B$79,Nutrients!$F$79,(IF($A$8=Nutrients!$B$77,Nutrients!$F$77,Nutrients!$F$78)))))*AK$8))/2000/2.2046","v":1147.6077460352183},{"$f":"(SUMPRODUCT(AL$9:AL$229,Nutrients!$F$8:$F$228)+(IF($A$7=Nutrients!$B$8,Nutrients!$F$8,Nutrients!$F$9)*AL$7)+(((IF($A$8=Nutrients!$B$79,Nutrients!$F$79,(IF($A$8=Nutrients!$B$77,Nutrients!$F$77,Nutrients!$F$78)))))*AL$8))/2000/2.2046","v":1156.5083800987243},{"$f":"(SUMPRODUCT(AM$9:AM$229,Nutrients!$F$8:$F$228)+(IF($A$7=Nutrients!$B$8,Nutrients!$F$8,Nutrients!$F$9)*AM$7)+(((IF($A$8=Nutrients!$B$79,Nutrients!$F$79,(IF($A$8=Nutrients!$B$77,Nutrients!$F$77,Nutrients!$F$78)))))*AM$8))/2000/2.2046","v":1164.807443550897},{"$f":"(SUMPRODUCT(AN$9:AN$229,Nutrients!$F$8:$F$228)+(IF($A$7=Nutrients!$B$8,Nutrients!$F$8,Nutrients!$F$9)*AN$7)+(((IF($A$8=Nutrients!$B$79,Nutrients!$F$79,(IF($A$8=Nutrients!$B$77,Nutrients!$F$77,Nutrients!$F$78)))))*AN$8))/2000/2.2046","v":1171.2955643572575},{"$f":"(SUMPRODUCT(AO$9:AO$229,Nutrients!$F$8:$F$228)+(IF($A$7=Nutrients!$B$8,Nutrients!$F$8,Nutrients!$F$9)*AO$7)+(((IF($A$8=Nutrients!$B$79,Nutrients!$F$79,(IF($A$8=Nutrients!$B$77,Nutrients!$F$77,Nutrients!$F$78)))))*AO$8))/2000/2.2046","v":1176.3507876024273},{"$f":"(SUMPRODUCT(AP$9:AP$229,Nutrients!$F$8:$F$228)+(IF($A$7=Nutrients!$B$8,Nutrients!$F$8,Nutrients!$F$9)*AP$7)+(((IF($A$8=Nutrients!$B$79,Nutrients!$F$79,(IF($A$8=Nutrients!$B$77,Nutrients!$F$77,Nutrients!$F$78)))))*AP$8))/2000/2.2046","v":1178.6144576666768},null,{"$f":"(SUMPRODUCT(AR$9:AR$229,Nutrients!$F$8:$F$228)+(IF($A$7=Nutrients!$B$8,Nutrients!$F$8,Nutrients!$F$9)*AR$7)+(((IF($A$8=Nutrients!$B$79,Nutrients!$F$79,(IF($A$8=Nutrients!$B$77,Nutrients!$F$77,Nutrients!$F$78)))))*AR$8))/2000/2.2046","v":1147.4903298511717},{"$f":"(SUMPRODUCT(AS$9:AS$229,Nutrients!$F$8:$F$228)+(IF($A$7=Nutrients!$B$8,Nutrients!$F$8,Nutrients!$F$9)*AS$7)+(((IF($A$8=Nutrients!$B$79,Nutrients!$F$79,(IF($A$8=Nutrients!$B$77,Nutrients!$F$77,Nutrients!$F$78)))))*AS$8))/2000/2.2046","v":1156.5039093607475},{"$f":"(SUMPRODUCT(AT$9:AT$229,Nutrients!$F$8:$F$228)+(IF($A$7=Nutrients!$B$8,Nutrients!$F$8,Nutrients!$F$9)*AT$7)+(((IF($A$8=Nutrients!$B$79,Nutrients!$F$79,(IF($A$8=Nutrients!$B$77,Nutrients!$F$77,Nutrients!$F$78)))))*AT$8))/2000/2.2046","v":1164.5508028381646},{"$f":"(SUMPRODUCT(AU$9:AU$229,Nutrients!$F$8:$F$228)+(IF($A$7=Nutrients!$B$8,Nutrients!$F$8,Nutrients!$F$9)*AU$7)+(((IF($A$8=Nutrients!$B$79,Nutrients!$F$79,(IF($A$8=Nutrients!$B$77,Nutrients!$F$77,Nutrients!$F$78)))))*AU$8))/2000/2.2046","v":1171.2716425598915},{"$f":"(SUMPRODUCT(AV$9:AV$229,Nutrients!$F$8:$F$228)+(IF($A$7=Nutrients!$B$8,Nutrients!$F$8,Nutrients!$F$9)*AV$7)+(((IF($A$8=Nutrients!$B$79,Nutrients!$F$79,(IF($A$8=Nutrients!$B$77,Nutrients!$F$77,Nutrients!$F$78)))))*AV$8))/2000/2.2046","v":1176.3750591962928},{"$f":"(SUMPRODUCT(AW$9:AW$229,Nutrients!$F$8:$F$228)+(IF($A$7=Nutrients!$B$8,Nutrients!$F$8,Nutrients!$F$9)*AW$7)+(((IF($A$8=Nutrients!$B$79,Nutrients!$F$79,(IF($A$8=Nutrients!$B$77,Nutrients!$F$77,Nutrients!$F$78)))))*AW$8))/2000/2.2046","v":1178.6549481354914}]
["NE NRC, kcal/kg",{"$f":"B250*2.20462","v":2530.1566666389886},2550.090710551452,2567.6284984964309,2582.8196547787202,2593.7823562955086,2598.6138654733877,null,{"$f":"I250*2.20462","v":2529.5872661517778},2549.6822657993462,2567.7733487236073,2582.6709306066873,2593.5722417344682,2598.4394780046923,null,{"$f":"P250*2.20462","v":2529.4210126315152},2549.6005373071007,2567.8192018486993,2582.666601750369,2593.5820387245349,2598.4911639761608,null,{"$f":"W250*2.20462","v":2529.3214460206723},2549.5988486905239,2567.8169914116261,2582.705749123345,2593.7466809493453,2598.5254171991028,null,{"$f":"AD250*2.20462","v":2529.3752173265257},2549.6165412337791,2567.8395171064581,2582.9367889251348,2593.402597315383,2598.3552742201091,null,{"$f":"AK250*2.20462","v":2530.0389890641627},2549.6615049332495,2567.9577862011784,2582.2616270932967,2593.406473364063,2598.3970056611088,null,{"$f":"AR250*2.20462","v":2529.7801309964898},2549.6516486548908,2567.3919909530741,2582.2088886203878,2593.4599830053307,2598.486271758467]
["SID Lys:NE, g/Mcal",{"$f":"IF(B$5=\"\",\"\",B236/(B250*2.2046)*10000)","v":4.6879417735209223},4.112530627795425,3.6100787872368278,3.198349183249853,2.9175053758993537,2.7645509469935567,null,{"$f":"IF(I$5=\"\",\"\",I236/(I250*2.2046)*10000)","v":4.6889970114111419},4.1131894320610893,3.6098751396942146,3.1985333615083036,2.9177417334418672,2.7647364825989875,null,{"$f":"IF(P$5=\"\",\"\",P236/(P250*2.2046)*10000)","v":4.6893052093172063},4.1133212820374618,3.6098106787476545,3.1985387226305413,2.9177307119718114,2.7646814898813137,null,{"$f":"IF(W$5=\"\",\"\",W236/(W250*2.2046)*10000)","v":4.6894898035796846},4.113324006317991,3.609813786157325,3.1984902407667466,2.9175455043417271,2.7646450464234937,null,{"$f":"IF(AD$5=\"\",\"\",AD236/(AD250*2.2046)*10000)","v":4.6893901109801854},4.1132954627461533,3.6097821200180644,3.1982041406366841,2.9179325941288754,2.764826078228007,null,{"$f":"IF(AK$5=\"\",\"\",AK236/(AK250*2.2046)*10000)","v":4.6881598198123902},4.1132229241049796,3.6096158689738429,3.1990403476822946,2.9179282330505418,2.7647816738601962,null,{"$f":"IF(AR$5=\"\",\"\",AR236/(AR250*2.2046)*10000)","v":4.6886395326447534},4.1132388247359986,3.6104113468414001,3.1991056841868102,2.9178680288083259,2.7646866949977889]
["CP, %",{"$f":"(SUMPRODUCT(B$9:B$229,Nutrients!$I$8:$I$228)+(IF($A$7=Nutrients!$B$8,Nutrients!$I$8,Nutrients!$I$9)*B$7)+(((IF($A$8=Nutrients!$B$79,Nutrients!$I$79,(IF($A$8=Nutrients!$B$77,Nutrients!$I$77,Nutrients!$I$78)))))*B$8))/2000","v":20.659564989031431},{"$f":"(SUMPRODUCT(C$9:C$229,Nutrients!$I$8:$I$228)+(IF($A$7=Nutrients!$B$8,Nutrients!$I$8,Nutrients!$I$9)*C$7)+(((IF($A$8=Nutrients!$B$79,Nutrients!$I$79,(IF($A$8=Nutrients!$B$77,Nutrients!$I$77,Nutrients!$I$78)))))*C$8))/2000","v":18.474711094282195},{"$f":"(SUMPRODUCT(D$9:D$229,Nutrients!$I$8:$I$228)+(IF($A$7=Nutrients!$B$8,Nutrients!$I$8,Nutrients!$I$9)*D$7)+(((IF($A$8=Nutrients!$B$79,Nutrients!$I$79,(IF($A$8=Nutrients!$B$77,Nutrients!$I$77,Nutrients!$I$78)))))*D$8))/2000","v":16.586100942528425},{"$f":"(SUMPRODUCT(E$9:E$229,Nutrients!$I$8:$I$228)+(IF($A$7=Nutrients!$B$8,Nutrients!$I$8,Nutrients!$I$9)*E$7)+(((IF($A$8=Nutrients!$B$79,Nutrients!$I$79,(IF($A$8=Nutrients!$B$77,Nutrients!$I$77,Nutrients!$I$78)))))*E$8))/2000","v":15.008183180211585},{"$f":"(SUMPRODUCT(F$9:F$229,Nutrients!$I$8:$I$228)+(IF($A$7=Nutrients!$B$8,Nutrients!$I$8,Nutrients!$I$9)*F$7)+(((IF($A$8=Nutrients!$B$79,Nutrients!$I$79,(IF($A$8=Nutrients!$B$77,Nutrients!$I$77,Nutrients!$I$78)))))*F$8))/2000","v":13.947394938936968},{"$f":"(SUMPRODUCT(G$9:G$229,Nutrients!$I$8:$I$228)+(IF($A$7=Nutrients!$B$8,Nutrients!$I$8,Nutrients!$I$9)*G$7)+(((IF($A$8=Nutrients!$B$79,Nutrients!$I$79,(IF($A$8=Nutrients!$B$77,Nutrients!$I$77,Nutrients!$I$78)))))*G$8))/2000","v":13.408858132850794},null,{"$f":"(SUMPRODUCT(I$9:I$229,Nutrients!$I$8:$I$228)+(IF($A$7=Nutrients!$B$8,Nutrients!$I$8,Nutrients!$I$9)*I$7)+(((IF($A$8=Nutrients!$B$79,Nutrients!$I$79,(IF($A$8=Nutrients!$B$77,Nutrients!$I$77,Nutrients!$I$78)))))*I$8))/2000","v":21.003742377828754},{"$f":"(SUMPRODUCT(J$9:J$229,Nutrients!$I$8:$I$228)+(IF($A$7=Nutrients!$B$8,Nutrients!$I$8,Nutrients!$I$9)*J$7)+(((IF($A$8=Nutrients!$B$79,Nutrients!$I$79,(IF($A$8=Nutrients!$B$77,Nutrients!$I$77,Nutrients!$I$78)))))*J$8))/2000","v":18.818519491121346},{"$f":"(SUMPRODUCT(K$9:K$229,Nutrients!$I$8:$I$228)+(IF($A$7=Nutrients!$B$8,Nutrients!$I$8,Nutrients!$I$9)*K$7)+(((IF($A$8=Nutrients!$B$79,Nutrients!$I$79,(IF($A$8=Nutrients!$B$77,Nutrients!$I$77,Nutrients!$I$78)))))*K$8))/2000","v":16.930534068935788},{"$f":"(SUMPRODUCT(L$9:L$229,Nutrients!$I$8:$I$228)+(IF($A$7=Nutrients!$B$8,Nutrients!$I$8,Nutrients!$I$9)*L$7)+(((IF($A$8=Nutrients!$B$79,Nutrients!$I$79,(IF($A$8=Nutrients!$B$77,Nutrients!$I$77,Nutrients!$I$78)))))*L$8))/2000","v":15.353511313488179},{"$f":"(SUMPRODUCT(M$9:M$229,Nutrients!$I$8:$I$228)+(IF($A$7=Nutrients!$B$8,Nutrients!$I$8,Nutrients!$I$9)*M$7)+(((IF($A$8=Nutrients!$B$79,Nutrients!$I$79,(IF($A$8=Nutrients!$B$77,Nutrients!$I$77,Nutrients!$I$78)))))*M$8))/2000","v":14.292057789687002},{"$f":"(SUMPRODUCT(N$9:N$229,Nutrients!$I$8:$I$228)+(IF($A$7=Nutrients!$B$8,Nutrients!$I$8,Nutrients!$I$9)*N$7)+(((IF($A$8=Nutrients!$B$79,Nutrients!$I$79,(IF($A$8=Nutrients!$B$77,Nutrients!$I$77,Nutrients!$I$78)))))*N$8))/2000","v":13.753966128372094},null,{"$f":"(SUMPRODUCT(P$9:P$229,Nutrients!$I$8:$I$228)+(IF($A$7=Nutrients!$B$8,Nutrients!$I$8,Nutrients!$I$9)*P$7)+(((IF($A$8=Nutrients!$B$79,Nutrients!$I$79,(IF($A$8=Nutrients!$B$77,Nutrients!$I$77,Nutrients!$I$78)))))*P$8))/2000","v":21.348174047382926},{"$f":"(SUMPRODUCT(Q$9:Q$229,Nutrients!$I$8:$I$228)+(IF($A$7=Nutrients!$B$8,Nutrients!$I$8,Nutrients!$I$9)*Q$7)+(((IF($A$8=Nutrients!$B$79,Nutrients!$I$79,(IF($A$8=Nutrients!$B$77,Nutrients!$I$77,Nutrients!$I$78)))))*Q$8))/2000","v":19.162851453804464},{"$f":"(SUMPRODUCT(R$9:R$229,Nutrients!$I$8:$I$228)+(IF($A$7=Nutrients!$B$8,Nutrients!$I$8,Nutrients!$I$9)*R$7)+(((IF($A$8=Nutrients!$B$79,Nutrients!$I$79,(IF($A$8=Nutrients!$B$77,Nutrients!$I$77,Nutrients!$I$78)))))*R$8))/2000","v":17.274715534610298},{"$f":"(SUMPRODUCT(S$9:S$229,Nutrients!$I$8:$I$228)+(IF($A$7=Nutrients!$B$8,Nutrients!$I$8,Nutrients!$I$9)*S$7)+(((IF($A$8=Nutrients!$B$79,Nutrients!$I$79,(IF($A$8=Nutrients!$B$77,Nutrients!$I$77,Nutrients!$I$78)))))*S$8))/2000","v":15.697751974509528},{"$f":"(SUMPRODUCT(T$9:T$229,Nutrients!$I$8:$I$228)+(IF($A$7=Nutrients!$B$8,Nutrients!$I$8,Nutrients!$I$9)*T$7)+(((IF($A$8=Nutrients!$B$79,Nutrients!$I$79,(IF($A$8=Nutrients!$B$77,Nutrients!$I$77,Nutrients!$I$78)))))*T$8))/2000","v":14.638312320799214},{"$f":"(SUMPRODUCT(U$9:U$229,Nutrients!$I$8:$I$228)+(IF($A$7=Nutrients!$B$8,Nutrients!$I$8,Nutrients!$I$9)*U$7)+(((IF($A$8=Nutrients!$B$79,Nutrients!$I$79,(IF($A$8=Nutrients!$B$77,Nutrients!$I$77,Nutrients!$I$78)))))*U$8))/2000","v":14.101781921672259},null,{"$f":"(SUMPRODUCT(W$9:W$229,Nutrients!$I$8:$I$228)+(IF($A$7=Nutrients!$B$8,Nutrients!$I$8,Nutrients!$I$9)*W$7)+(((IF($A$8=Nutrients!$B$79,Nutrients!$I$79,(IF($A$8=Nutrients!$B$77,Nutrients!$I$77,Nutrients!$I$78)))))*W$8))/2000","v":21.692527052153018},{"$f":"(SUMPRODUCT(X$9:X$229,Nutrients!$I$8:$I$228)+(IF($A$7=Nutrients!$B$8,Nutrients!$I$8,Nutrients!$I$9)*X$7)+(((IF($A$8=Nutrients!$B$79,Nutrients!$I$79,(IF($A$8=Nutrients!$B$77,Nutrients!$I$77,Nutrients!$I$78)))))*X$8))/2000","v":19.507089000363152},{"$f":"(SUMPRODUCT(Y$9:Y$229,Nutrients!$I$8:$I$228)+(IF($A$7=Nutrients!$B$8,Nutrients!$I$8,Nutrients!$I$9)*Y$7)+(((IF($A$8=Nutrients!$B$79,Nutrients!$I$79,(IF($A$8=Nutrients!$B$77,Nutrients!$I$77,Nutrients!$I$78)))))*Y$8))/2000","v":17.619122359395547},{"$f":"(SUMPRODUCT(Z$9:Z$229,Nutrients!$I$8:$I$228)+(IF($A$7=Nutrients!$B$8,Nutrients!$I$8,Nutrients!$I$9)*Z$7)+(((IF($A$8=Nutrients!$B$79,Nutrients!$I$79,(IF($A$8=Nutrients!$B$77,Nutrients!$I$77,Nutrients!$I$78)))))*Z$8))/2000","v":16.039649759560476},{"$f":"(SUMPRODUCT(AA$9:AA$229,Nutrients!$I$8:$I$228)+(IF($A$7=Nutrients!$B$8,Nutrients!$I$8,Nutrients!$I$9)*AA$7)+(((IF($A$8=Nutrients!$B$79,Nutrients!$I$79,(IF($A$8=Nutrients!$B$77,Nutrients!$I$77,Nutrients!$I$78)))))*AA$8))/2000","v":14.98720876597322},{"$f":"(SUMPRODUCT(AB$9:AB$229,Nutrients!$I$8:$I$228)+(IF($A$7=Nutrients!$B$8,Nutrients!$I$8,Nutrients!$I$9)*AB$7)+(((IF($A$8=Nutrients!$B$79,Nutrients!$I$79,(IF($A$8=Nutrients!$B$77,Nutrients!$I$77,Nutrients!$I$78)))))*AB$8))/2000","v":14.44859136391792},null,{"$f":"(SUMPRODUCT(AD$9:AD$229,Nutrients!$I$8:$I$228)+(IF($A$7=Nutrients!$B$8,Nutrients!$I$8,Nutrients!$I$9)*AD$7)+(((IF($A$8=Nutrients!$B$79,Nutrients!$I$79,(IF($A$8=Nutrients!$B$77,Nutrients!$I$77,Nutrients!$I$78)))))*AD$8))/2000","v":22.036783508773972},{"$f":"(SUMPRODUCT(AE$9:AE$229,Nutrients!$I$8:$I$228)+(IF($A$7=Nutrients!$B$8,Nutrients!$I$8,Nutrients!$I$9)*AE$7)+(((IF($A$8=Nutrients!$B$79,Nutrients!$I$79,(IF($A$8=Nutrients!$B$77,Nutrients!$I$77,Nutrients!$I$78)))))*AE$8))/2000","v":19.851388015982483},{"$f":"(SUMPRODUCT(AF$9:AF$229,Nutrients!$I$8:$I$228)+(IF($A$7=Nutrients!$B$8,Nutrients!$I$8,Nutrients!$I$9)*AF$7)+(((IF($A$8=Nutrients!$B$79,Nutrients!$I$79,(IF($A$8=Nutrients!$B$77,Nutrients!$I$77,Nutrients!$I$78)))))*AF$8))/2000","v":17.957593404928456},{"$f":"(SUMPRODUCT(AG$9:AG$229,Nutrients!$I$8:$I$228)+(IF($A$7=Nutrients!$B$8,Nutrients!$I$8,Nutrients!$I$9)*AG$7)+(((IF($A$8=Nutrients!$B$79,Nutrients!$I$79,(IF($A$8=Nutrients!$B$77,Nutrients!$I$77,Nutrients!$I$78)))))*AG$8))/2000","v":16.388383549910856},{"$f":"(SUMPRODUCT(AH$9:AH$229,Nutrients!$I$8:$I$228)+(IF($A$7=Nutrients!$B$8,Nutrients!$I$8,Nutrients!$I$9)*AH$7)+(((IF($A$8=Nutrients!$B$79,Nutrients!$I$79,(IF($A$8=Nutrients!$B$77,Nutrients!$I$77,Nutrients!$I$78)))))*AH$8))/2000","v":15.32963081706551},{"$f":"(SUMPRODUCT(AI$9:AI$229,Nutrients!$I$8:$I$228)+(IF($A$7=Nutrients!$B$8,Nutrients!$I$8,Nutrients!$I$9)*AI$7)+(((IF($A$8=Nutrients!$B$79,Nutrients!$I$79,(IF($A$8=Nutrients!$B$77,Nutrients!$I$77,Nutrients!$I$78)))))*AI$8))/2000","v":14.788890350840109},null,{"$f":"(SUMPRODUCT(AK$9:AK$229,Nutrients!$I$8:$I$228)+(IF($A$7=Nutrients!$B$8,Nutrients!$I$8,Nutrients!$I$9)*AK$7)+(((IF($A$8=Nutrients!$B$79,Nutrients!$I$79,(IF($A$8=Nutrients!$B$77,Nutrients!$I$77,Nutrients!$I$78)))))*AK$8))/2000","v":22.380362566270655},{"$f":"(SUMPRODUCT(AL$9:AL$229,Nutrients!$I$8:$I$228)+(IF($A$7=Nutrients!$B$8,Nutrients!$I$8,Nutrients!$I$9)*AL$7)+(((IF($A$8=Nutrients!$B$79,Nutrients!$I$79,(IF($A$8=Nutrients!$B$77,Nutrients!$I$77,Nutrients!$I$78)))))*AL$8))/2000","v":20.195697027845554},{"$f":"(SUMPRODUCT(AM$9:AM$229,Nutrients!$I$8:$I$228)+(IF($A$7=Nutrients!$B$8,Nutrients!$I$8,Nutrients!$I$9)*AM$7)+(((IF($A$8=Nutrients!$B$79,Nutrients!$I$79,(IF($A$8=Nutrients!$B$77,Nutrients!$I$77,Nutrients!$I$78)))))*AM$8))/2000","v":18.306502386806542},{"$f":"(SUMPRODUCT(AN$9:AN$229,Nutrients!$I$8:$I$228)+(IF($A$7=Nutrients!$B$8,Nutrients!$I$8,Nutrients!$I$9)*AN$7)+(((IF($A$8=Nutrients!$B$79,Nutrients!$I$79,(IF($A$8=Nutrients!$B$77,Nutrients!$I$77,Nutrients!$I$78)))))*AN$8))/2000","v":16.731356114471531},{"$f":"(SUMPRODUCT(AO$9:AO$229,Nutrients!$I$8:$I$228)+(IF($A$7=Nutrients!$B$8,Nutrients!$I$8,Nutrients!$I$9)*AO$7)+(((IF($A$8=Nutrients!$B$79,Nutrients!$I$79,(IF($A$8=Nutrients!$B$77,Nutrients!$I$77,Nutrients!$I$78)))))*AO$8))/2000","v":15.669874990169923},{"$f":"(SUMPRODUCT(AP$9:AP$229,Nutrients!$I$8:$I$228)+(IF($A$7=Nutrients!$B$8,Nutrients!$I$8,Nutrients!$I$9)*AP$7)+(((IF($A$8=Nutrients!$B$79,Nutrients!$I$79,(IF($A$8=Nutrients!$B$77,Nutrients!$I$77,Nutrients!$I$78)))))*AP$8))/2000","v":15.12911990715144},null,{"$f":"(SUMPRODUCT(AR$9:AR$229,Nutrients!$I$8:$I$228)+(IF($A$7=Nutrients!$B$8,Nutrients!$I$8,Nutrients!$I$9)*AR$7)+(((IF($A$8=Nutrients!$B$79,Nutrients!$I$79,(IF($A$8=Nutrients!$B$77,Nutrients!$I$77,Nutrients!$I$78)))))*AR$8))/2000","v":22.723231489073456},{"$f":"(SUMPRODUCT(AS$9:AS$229,Nutrients!$I$8:$I$228)+(IF($A$7=Nutrients!$B$8,Nutrients!$I$8,Nutrients!$I$9)*AS$7)+(((IF($A$8=Nutrients!$B$79,Nutrients!$I$79,(IF($A$8=Nutrients!$B$77,Nutrients!$I$77,Nutrients!$I$78)))))*AS$8))/2000","v":20.538272285696181},{"$f":"(SUMPRODUCT(AT$9:AT$229,Nutrients!$I$8:$I$228)+(IF($A$7=Nutrients!$B$8,Nutrients!$I$8,Nutrients!$I$9)*AT$7)+(((IF($A$8=Nutrients!$B$79,Nutrients!$I$79,(IF($A$8=Nutrients!$B$77,Nutrients!$I$77,Nutrients!$I$78)))))*AT$8))/2000","v":18.65255517479471},{"$f":"(SUMPRODUCT(AU$9:AU$229,Nutrients!$I$8:$I$228)+(IF($A$7=Nutrients!$B$8,Nutrients!$I$8,Nutrients!$I$9)*AU$7)+(((IF($A$8=Nutrients!$B$79,Nutrients!$I$79,(IF($A$8=Nutrients!$B$77,Nutrients!$I$77,Nutrients!$I$78)))))*AU$8))/2000","v":17.071401278099408},{"$f":"(SUMPRODUCT(AV$9:AV$229,Nutrients!$I$8:$I$228)+(IF($A$7=Nutrients!$B$8,Nutrients!$I$8,Nutrients!$I$9)*AV$7)+(((IF($A$8=Nutrients!$B$79,Nutrients!$I$79,(IF($A$8=Nutrients!$B$77,Nutrients!$I$77,Nutrients!$I$78)))))*AV$8))/2000","v":16.011634493989035},{"$f":"(SUMPRODUCT(AW$9:AW$229,Nutrients!$I$8:$I$228)+(IF($A$7=Nutrients!$B$8,Nutrients!$I$8,Nutrients!$I$9)*AW$7)+(((IF($A$8=Nutrients!$B$79,Nutrients!$I$79,(IF($A$8=Nutrients!$B$77,Nutrients!$I$77,Nutrients!$I$78)))))*AW$8))/2000","v":15.470788378064929}]
["Ca, %",{"$f":"(SUMPRODUCT(B$9:B$229,Nutrients!$BS$8:$BS$228)+(IF($A$7=Nutrients!$B$8,Nutrients!$BS$8,Nutrients!$BS$9)*B$7)+(((IF($A$8=Nutrients!$B$79,Nutrients!$BS$79,(IF($A$8=Nutrients!$B$77,Nutrients!$BS$77,Nutrients!$BS$78)))))*B$8))/2000","v":0.6959867621315019},{"$f":"(SUMPRODUCT(C$9:C$229,Nutrients!$BS$8:$BS$228)+(IF($A$7=Nutrients!$B$8,Nutrients!$BS$8,Nutrients!$BS$9)*C$7)+(((IF($A$8=Nutrients!$B$79,Nutrients!$BS$79,(IF($A$8=Nutrients!$B$77,Nutrients!$BS$77,Nutrients!$BS$78)))))*C$8))/2000","v":0.62662783783950593},{"$f":"(SUMPRODUCT(D$9:D$229,Nutrients!$BS$8:$BS$228)+(IF($A$7=Nutrients!$B$8,Nutrients!$BS$8,Nutrients!$BS$9)*D$7)+(((IF($A$8=Nutrients!$B$79,Nutrients!$BS$79,(IF($A$8=Nutrients!$B$77,Nutrients!$BS$77,Nutrients!$BS$78)))))*D$8))/2000","v":0.57472596332038417},{"$f":"(SUMPRODUCT(E$9:E$229,Nutrients!$BS$8:$BS$228)+(IF($A$7=Nutrients!$B$8,Nutrients!$BS$8,Nutrients!$BS$9)*E$7)+(((IF($A$8=Nutrients!$B$79,Nutrients!$BS$79,(IF($A$8=Nutrients!$B$77,Nutrients!$BS$77,Nutrients!$BS$78)))))*E$8))/2000","v":0.52452097205568682},{"$f":"(SUMPRODUCT(F$9:F$229,Nutrients!$BS$8:$BS$228)+(IF($A$7=Nutrients!$B$8,Nutrients!$BS$8,Nutrients!$BS$9)*F$7)+(((IF($A$8=Nutrients!$B$79,Nutrients!$BS$79,(IF($A$8=Nutrients!$B$77,Nutrients!$BS$77,Nutrients!$BS$78)))))*F$8))/2000","v":0.48152514697950427},{"$f":"(SUMPRODUCT(G$9:G$229,Nutrients!$BS$8:$BS$228)+(IF($A$7=Nutrients!$B$8,Nutrients!$BS$8,Nutrients!$BS$9)*G$7)+(((IF($A$8=Nutrients!$B$79,Nutrients!$BS$79,(IF($A$8=Nutrients!$B$77,Nutrients!$BS$77,Nutrients!$BS$78)))))*G$8))/2000","v":0.46528542953652235},null,{"$f":"(SUMPRODUCT(I$9:I$229,Nutrients!$BS$8:$BS$228)+(IF($A$7=Nutrients!$B$8,Nutrients!$BS$8,Nutrients!$BS$9)*I$7)+(((IF($A$8=Nutrients!$B$79,Nutrients!$BS$79,(IF($A$8=Nutrients!$B$77,Nutrients!$BS$77,Nutrients!$BS$78)))))*I$8))/2000","v":0.69674290441449904},{"$f":"(SUMPRODUCT(J$9:J$229,Nutrients!$BS$8:$BS$228)+(IF($A$7=Nutrients!$B$8,Nutrients!$BS$8,Nutrients!$BS$9)*J$7)+(((IF($A$8=Nutrients!$B$79,Nutrients!$BS$79,(IF($A$8=Nutrients!$B$77,Nutrients!$BS$77,Nutrients!$BS$78)))))*J$8))/2000","v":0.62811810771969523},{"$f":"(SUMPRODUCT(K$9:K$229,Nutrients!$BS$8:$BS$228)+(IF($A$7=Nutrients!$B$8,Nutrients!$BS$8,Nutrients!$BS$9)*K$7)+(((IF($A$8=Nutrients!$B$79,Nutrients!$BS$79,(IF($A$8=Nutrients!$B$77,Nutrients!$BS$77,Nutrients!$BS$78)))))*K$8))/2000","v":0.57280634336655667},{"$f":"(SUMPRODUCT(L$9:L$229,Nutrients!$BS$8:$BS$228)+(IF($A$7=Nutrients!$B$8,Nutrients!$BS$8,Nutrients!$BS$9)*L$7)+(((IF($A$8=Nutrients!$B$79,Nutrients!$BS$79,(IF($A$8=Nutrients!$B$77,Nutrients!$BS$77,Nutrients!$BS$78)))))*L$8))/2000","v":0.52052566642903431},{"$f":"(SUMPRODUCT(M$9:M$229,Nutrients!$BS$8:$BS$228)+(IF($A$7=Nutrients!$B$8,Nutrients!$BS$8,Nutrients!$BS$9)*M$7)+(((IF($A$8=Nutrients!$B$79,Nutrients!$BS$79,(IF($A$8=Nutrients!$B$77,Nutrients!$BS$77,Nutrients!$BS$78)))))*M$8))/2000","v":0.47971582994932327},{"$f":"(SUMPRODUCT(N$9:N$229,Nutrients!$BS$8:$BS$228)+(IF($A$7=Nutrients!$B$8,Nutrients!$BS$8,Nutrients!$BS$9)*N$7)+(((IF($A$8=Nutrients!$B$79,Nutrients!$BS$79,(IF($A$8=Nutrients!$B$77,Nutrients!$BS$77,Nutrients!$BS$78)))))*N$8))/2000","v":0.46196716978644897},null,{"$f":"(SUMPRODUCT(P$9:P$229,Nutrients!$BS$8:$BS$228)+(IF($A$7=Nutrients!$B$8,Nutrients!$BS$8,Nutrients!$BS$9)*P$7)+(((IF($A$8=Nutrients!$B$79,Nutrients!$BS$79,(IF($A$8=Nutrients!$B$77,Nutrients!$BS$77,Nutrients!$BS$78)))))*P$8))/2000","v":0.69656298153138019},{"$f":"(SUMPRODUCT(Q$9:Q$229,Nutrients!$BS$8:$BS$228)+(IF($A$7=Nutrients!$B$8,Nutrients!$BS$8,Nutrients!$BS$9)*Q$7)+(((IF($A$8=Nutrients!$B$79,Nutrients!$BS$79,(IF($A$8=Nutrients!$B$77,Nutrients!$BS$77,Nutrients!$BS$78)))))*Q$8))/2000","v":0.62793824958166999},{"$f":"(SUMPRODUCT(R$9:R$229,Nutrients!$BS$8:$BS$228)+(IF($A$7=Nutrients!$B$8,Nutrients!$BS$8,Nutrients!$BS$9)*R$7)+(((IF($A$8=Nutrients!$B$79,Nutrients!$BS$79,(IF($A$8=Nutrients!$B$77,Nutrients!$BS$77,Nutrients!$BS$78)))))*R$8))/2000","v":0.57262658295442315},{"$f":"(SUMPRODUCT(S$9:S$229,Nutrients!$BS$8:$BS$228)+(IF($A$7=Nutrients!$B$8,Nutrients!$BS$8,Nutrients!$BS$9)*S$7)+(((IF($A$8=Nutrients!$B$79,Nutrients!$BS$79,(IF($A$8=Nutrients!$B$77,Nutrients!$BS$77,Nutrients!$BS$78)))))*S$8))/2000","v":0.52034586757814305},{"$f":"(SUMPRODUCT(T$9:T$229,Nutrients!$BS$8:$BS$228)+(IF($A$7=Nutrients!$B$8,Nutrients!$BS$8,Nutrients!$BS$9)*T$7)+(((IF($A$8=Nutrients!$B$79,Nutrients!$BS$79,(IF($A$8=Nutrients!$B$77,Nutrients!$BS$77,Nutrients!$BS$78)))))*T$8))/2000","v":0.47953612694518505},{"$f":"(SUMPRODUCT(U$9:U$229,Nutrients!$BS$8:$BS$228)+(IF($A$7=Nutrients!$B$8,Nutrients!$BS$8,Nutrients!$BS$9)*U$7)+(((IF($A$8=Nutrients!$B$79,Nutrients!$BS$79,(IF($A$8=Nutrients!$B$77,Nutrients!$BS$77,Nutrients!$BS$78)))))*U$8))/2000","v":0.46178756631413392},null,{"$f":"(SUMPRODUCT(W$9:W$229,Nutrients!$BS$8:$BS$228)+(IF($A$7=Nutrients!$B$8,Nutrients!$BS$8,Nutrients!$BS$9)*W$7)+(((IF($A$8=Nutrients!$B$79,Nutrients!$BS$79,(IF($A$8=Nutrients!$B$77,Nutrients!$BS$77,Nutrients!$BS$78)))))*W$8))/2000","v":0.69638310972958339},{"$f":"(SUMPRODUCT(X$9:X$229,Nutrients!$BS$8:$BS$228)+(IF($A$7=Nutrients!$B$8,Nutrients!$BS$8,Nutrients!$BS$9)*X$7)+(((IF($A$8=Nutrients!$B$79,Nutrients!$BS$79,(IF($A$8=Nutrients!$B$77,Nutrients!$BS$77,Nutrients!$BS$78)))))*X$8))/2000","v":0.62775845275316855},{"$f":"(SUMPRODUCT(Y$9:Y$229,Nutrients!$BS$8:$BS$228)+(IF($A$7=Nutrients!$B$8,Nutrients!$BS$8,Nutrients!$BS$9)*Y$7)+(((IF($A$8=Nutrients!$B$79,Nutrients!$BS$79,(IF($A$8=Nutrients!$B$77,Nutrients!$BS$77,Nutrients!$BS$78)))))*Y$8))/2000","v":0.5716766762043638},{"$f":"(SUMPRODUCT(Z$9:Z$229,Nutrients!$BS$8:$BS$228)+(IF($A$7=Nutrients!$B$8,Nutrients!$BS$8,Nutrients!$BS$9)*Z$7)+(((IF($A$8=Nutrients!$B$79,Nutrients!$BS$79,(IF($A$8=Nutrients!$B$77,Nutrients!$BS$77,Nutrients!$BS$78)))))*Z$8))/2000","v":0.51939588948699522},{"$f":"(SUMPRODUCT(AA$9:AA$229,Nutrients!$BS$8:$BS$228)+(IF($A$7=Nutrients!$B$8,Nutrients!$BS$8,Nutrients!$BS$9)*AA$7)+(((IF($A$8=Nutrients!$B$79,Nutrients!$BS$79,(IF($A$8=Nutrients!$B$77,Nutrients!$BS$77,Nutrients!$BS$78)))))*AA$8))/2000","v":0.47858654424219005},{"$f":"(SUMPRODUCT(AB$9:AB$229,Nutrients!$BS$8:$BS$228)+(IF($A$7=Nutrients!$B$8,Nutrients!$BS$8,Nutrients!$BS$9)*AB$7)+(((IF($A$8=Nutrients!$B$79,Nutrients!$BS$79,(IF($A$8=Nutrients!$B$77,Nutrients!$BS$77,Nutrients!$BS$78)))))*AB$8))/2000","v":0.46603221172879361},null,{"$f":"(SUMPRODUCT(AD$9:AD$229,Nutrients!$BS$8:$BS$228)+(IF($A$7=Nutrients!$B$8,Nutrients!$BS$8,Nutrients!$BS$9)*AD$7)+(((IF($A$8=Nutrients!$B$79,Nutrients!$BS$79,(IF($A$8=Nutrients!$B$77,Nutrients!$BS$77,Nutrients!$BS$78)))))*AD$8))/2000","v":0.69581830062175032},{"$f":"(SUMPRODUCT(AE$9:AE$229,Nutrients!$BS$8:$BS$228)+(IF($A$7=Nutrients!$B$8,Nutrients!$BS$8,Nutrients!$BS$9)*AE$7)+(((IF($A$8=Nutrients!$B$79,Nutrients!$BS$79,(IF($A$8=Nutrients!$B$77,Nutrients!$BS$77,Nutrients!$BS$78)))))*AE$8))/2000","v":0.62719361600946355},{"$f":"(SUMPRODUCT(AF$9:AF$229,Nutrients!$BS$8:$BS$228)+(IF($A$7=Nutrients!$B$8,Nutrients!$BS$8,Nutrients!$BS$9)*AF$7)+(((IF($A$8=Nutrients!$B$79,Nutrients!$BS$79,(IF($A$8=Nutrients!$B$77,Nutrients!$BS$77,Nutrients!$BS$78)))))*AF$8))/2000","v":0.57111160959985907},{"$f":"(SUMPRODUCT(AG$9:AG$229,Nutrients!$BS$8:$BS$228)+(IF($A$7=Nutrients!$B$8,Nutrients!$BS$8,Nutrients!$BS$9)*AG$7)+(((IF($A$8=Nutrients!$B$79,Nutrients!$BS$79,(IF($A$8=Nutrients!$B$77,Nutrients!$BS$77,Nutrients!$BS$78)))))*AG$8))/2000","v":0.51883141240462238},{"$f":"(SUMPRODUCT(AH$9:AH$229,Nutrients!$BS$8:$BS$228)+(IF($A$7=Nutrients!$B$8,Nutrients!$BS$8,Nutrients!$BS$9)*AH$7)+(((IF($A$8=Nutrients!$B$79,Nutrients!$BS$79,(IF($A$8=Nutrients!$B$77,Nutrients!$BS$77,Nutrients!$BS$78)))))*AH$8))/2000","v":0.49697596858666282},{"$f":"(SUMPRODUCT(AI$9:AI$229,Nutrients!$BS$8:$BS$228)+(IF($A$7=Nutrients!$B$8,Nutrients!$BS$8,Nutrients!$BS$9)*AI$7)+(((IF($A$8=Nutrients!$B$79,Nutrients!$BS$79,(IF($A$8=Nutrients!$B$77,Nutrients!$BS$77,Nutrients!$BS$78)))))*AI$8))/2000","v":0.49090337109587101},null,{"$f":"(SUMPRODUCT(AK$9:AK$229,Nutrients!$BS$8:$BS$228)+(IF($A$7=Nutrients!$B$8,Nutrients!$BS$8,Nutrients!$BS$9)*AK$7)+(((IF($A$8=Nutrients!$B$79,Nutrients!$BS$79,(IF($A$8=Nutrients!$B$77,Nutrients!$BS$77,Nutrients!$BS$78)))))*AK$8))/2000","v":0.69506143138600607},{"$f":"(SUMPRODUCT(AL$9:AL$229,Nutrients!$BS$8:$BS$228)+(IF($A$7=Nutrients!$B$8,Nutrients!$BS$8,Nutrients!$BS$9)*AL$7)+(((IF($A$8=Nutrients!$B$79,Nutrients!$BS$79,(IF($A$8=Nutrients!$B$77,Nutrients!$BS$77,Nutrients!$BS$78)))))*AL$8))/2000","v":0.62643627277465364},{"$f":"(SUMPRODUCT(AM$9:AM$229,Nutrients!$BS$8:$BS$228)+(IF($A$7=Nutrients!$B$8,Nutrients!$BS$8,Nutrients!$BS$9)*AM$7)+(((IF($A$8=Nutrients!$B$79,Nutrients!$BS$79,(IF($A$8=Nutrients!$B$77,Nutrients!$BS$77,Nutrients!$BS$78)))))*AM$8))/2000","v":0.57035451875610033},{"$f":"(SUMPRODUCT(AN$9:AN$229,Nutrients!$BS$8:$BS$228)+(IF($A$7=Nutrients!$B$8,Nutrients!$BS$8,Nutrients!$BS$9)*AN$7)+(((IF($A$8=Nutrients!$B$79,Nutrients!$BS$79,(IF($A$8=Nutrients!$B$77,Nutrients!$BS$77,Nutrients!$BS$78)))))*AN$8))/2000","v":0.53636170353388057},{"$f":"(SUMPRODUCT(AO$9:AO$229,Nutrients!$BS$8:$BS$228)+(IF($A$7=Nutrients!$B$8,Nutrients!$BS$8,Nutrients!$BS$9)*AO$7)+(((IF($A$8=Nutrients!$B$79,Nutrients!$BS$79,(IF($A$8=Nutrients!$B$77,Nutrients!$BS$77,Nutrients!$BS$78)))))*AO$8))/2000","v":0.51847303091793406},{"$f":"(SUMPRODUCT(AP$9:AP$229,Nutrients!$BS$8:$BS$228)+(IF($A$7=Nutrients!$B$8,Nutrients!$BS$8,Nutrients!$BS$9)*AP$7)+(((IF($A$8=Nutrients!$B$79,Nutrients!$BS$79,(IF($A$8=Nutrients!$B$77,Nutrients!$BS$77,Nutrients!$BS$78)))))*AP$8))/2000","v":0.51239879411972589},null,{"$f":"(SUMPRODUCT(AR$9:AR$229,Nutrients!$BS$8:$BS$228)+(IF($A$7=Nutrients!$B$8,Nutrients!$BS$8,Nutrients!$BS$9)*AR$7)+(((IF($A$8=Nutrients!$B$79,Nutrients!$BS$79,(IF($A$8=Nutrients!$B$77,Nutrients!$BS$77,Nutrients!$BS$78)))))*AR$8))/2000","v":0.69488140099454243},{"$f":"(SUMPRODUCT(AS$9:AS$229,Nutrients!$BS$8:$BS$228)+(IF($A$7=Nutrients!$B$8,Nutrients!$BS$8,Nutrients!$BS$9)*AS$7)+(((IF($A$8=Nutrients!$B$79,Nutrients!$BS$79,(IF($A$8=Nutrients!$B$77,Nutrients!$BS$77,Nutrients!$BS$78)))))*AS$8))/2000","v":0.62625643311671819},{"$f":"(SUMPRODUCT(AT$9:AT$229,Nutrients!$BS$8:$BS$228)+(IF($A$7=Nutrients!$B$8,Nutrients!$BS$8,Nutrients!$BS$9)*AT$7)+(((IF($A$8=Nutrients!$B$79,Nutrients!$BS$79,(IF($A$8=Nutrients!$B$77,Nutrients!$BS$77,Nutrients!$BS$78)))))*AT$8))/2000","v":0.57620130315289597},{"$f":"(SUMPRODUCT(AU$9:AU$229,Nutrients!$BS$8:$BS$228)+(IF($A$7=Nutrients!$B$8,Nutrients!$BS$8,Nutrients!$BS$9)*AU$7)+(((IF($A$8=Nutrients!$B$79,Nutrients!$BS$79,(IF($A$8=Nutrients!$B$77,Nutrients!$BS$77,Nutrients!$BS$78)))))*AU$8))/2000","v":0.55810225983282347},{"$f":"(SUMPRODUCT(AV$9:AV$229,Nutrients!$BS$8:$BS$228)+(IF($A$7=Nutrients!$B$8,Nutrients!$BS$8,Nutrients!$BS$9)*AV$7)+(((IF($A$8=Nutrients!$B$79,Nutrients!$BS$79,(IF($A$8=Nutrients!$B$77,Nutrients!$BS$77,Nutrients!$BS$78)))))*AV$8))/2000","v":0.53996746183626676},{"$f":"(SUMPRODUCT(AW$9:AW$229,Nutrients!$BS$8:$BS$228)+(IF($A$7=Nutrients!$B$8,Nutrients!$BS$8,Nutrients!$BS$9)*AW$7)+(((IF($A$8=Nutrients!$B$79,Nutrients!$BS$79,(IF($A$8=Nutrients!$B$77,Nutrients!$BS$77,Nutrients!$BS$78)))))*AW$8))/2000","v":0.5338922835299551}]
["P, %",{"$f":"(SUMPRODUCT(B$9:B$229,Nutrients!$BX$8:$BX$228)+(IF($A$7=Nutrients!$B$8,Nutrients!$BX$8,Nutrients!$BX$9)*B$7)+(((IF($A$8=Nutrients!$B$79,Nutrients!$BX$79,(IF($A$8=Nutrients!$B$77,Nutrients!$BX$77,Nutrients!$BX$78)))))*B$8))/2000","v":0.5346695452711987},{"$f":"(SUMPRODUCT(C$9:C$229,Nutrients!$BX$8:$BX$228)+(IF($A$7=Nutrients!$B$8,Nutrients!$BX$8,Nutrients!$BX$9)*C$7)+(((IF($A$8=Nutrients!$B$79,Nutrients!$BX$79,(IF($A$8=Nutrients!$B$77,Nutrients!$BX$77,Nutrients!$BX$78)))))*C$8))/2000","v":0.48121097221673825},{"$f":"(SUMPRODUCT(D$9:D$229,Nutrients!$BX$8:$BX$228)+(IF($A$7=Nutrients!$B$8,Nutrients!$BX$8,Nutrients!$BX$9)*D$7)+(((IF($A$8=Nutrients!$B$79,Nutrients!$BX$79,(IF($A$8=Nutrients!$B$77,Nutrients!$BX$77,Nutrients!$BX$78)))))*D$8))/2000","v":0.42976285680817727},{"$f":"(SUMPRODUCT(E$9:E$229,Nutrients!$BX$8:$BX$228)+(IF($A$7=Nutrients!$B$8,Nutrients!$BX$8,Nutrients!$BX$9)*E$7)+(((IF($A$8=Nutrients!$B$79,Nutrients!$BX$79,(IF($A$8=Nutrients!$B$77,Nutrients!$BX$77,Nutrients!$BX$78)))))*E$8))/2000","v":0.3909770634935561},{"$f":"(SUMPRODUCT(F$9:F$229,Nutrients!$BX$8:$BX$228)+(IF($A$7=Nutrients!$B$8,Nutrients!$BX$8,Nutrients!$BX$9)*F$7)+(((IF($A$8=Nutrients!$B$79,Nutrients!$BX$79,(IF($A$8=Nutrients!$B$77,Nutrients!$BX$77,Nutrients!$BX$78)))))*F$8))/2000","v":0.36342201195104268},{"$f":"(SUMPRODUCT(G$9:G$229,Nutrients!$BX$8:$BX$228)+(IF($A$7=Nutrients!$B$8,Nutrients!$BX$8,Nutrients!$BX$9)*G$7)+(((IF($A$8=Nutrients!$B$79,Nutrients!$BX$79,(IF($A$8=Nutrients!$B$77,Nutrients!$BX$77,Nutrients!$BX$78)))))*G$8))/2000","v":0.35071811324744068},null,{"$f":"(SUMPRODUCT(I$9:I$229,Nutrients!$BX$8:$BX$228)+(IF($A$7=Nutrients!$B$8,Nutrients!$BX$8,Nutrients!$BX$9)*I$7)+(((IF($A$8=Nutrients!$B$79,Nutrients!$BX$79,(IF($A$8=Nutrients!$B$77,Nutrients!$BX$77,Nutrients!$BX$78)))))*I$8))/2000","v":0.53450166864639903},{"$f":"(SUMPRODUCT(J$9:J$229,Nutrients!$BX$8:$BX$228)+(IF($A$7=Nutrients!$B$8,Nutrients!$BX$8,Nutrients!$BX$9)*J$7)+(((IF($A$8=Nutrients!$B$79,Nutrients!$BX$79,(IF($A$8=Nutrients!$B$77,Nutrients!$BX$77,Nutrients!$BX$78)))))*J$8))/2000","v":0.48102845472648448},{"$f":"(SUMPRODUCT(K$9:K$229,Nutrients!$BX$8:$BX$228)+(IF($A$7=Nutrients!$B$8,Nutrients!$BX$8,Nutrients!$BX$9)*K$7)+(((IF($A$8=Nutrients!$B$79,Nutrients!$BX$79,(IF($A$8=Nutrients!$B$77,Nutrients!$BX$77,Nutrients!$BX$78)))))*K$8))/2000","v":0.4270394386275293},{"$f":"(SUMPRODUCT(L$9:L$229,Nutrients!$BX$8:$BX$228)+(IF($A$7=Nutrients!$B$8,Nutrients!$BX$8,Nutrients!$BX$9)*L$7)+(((IF($A$8=Nutrients!$B$79,Nutrients!$BX$79,(IF($A$8=Nutrients!$B$77,Nutrients!$BX$77,Nutrients!$BX$78)))))*L$8))/2000","v":0.387667940289663},{"$f":"(SUMPRODUCT(M$9:M$229,Nutrients!$BX$8:$BX$228)+(IF($A$7=Nutrients!$B$8,Nutrients!$BX$8,Nutrients!$BX$9)*M$7)+(((IF($A$8=Nutrients!$B$79,Nutrients!$BX$79,(IF($A$8=Nutrients!$B$77,Nutrients!$BX$77,Nutrients!$BX$78)))))*M$8))/2000","v":0.36134985960540678},{"$f":"(SUMPRODUCT(N$9:N$229,Nutrients!$BX$8:$BX$228)+(IF($A$7=Nutrients!$B$8,Nutrients!$BX$8,Nutrients!$BX$9)*N$7)+(((IF($A$8=Nutrients!$B$79,Nutrients!$BX$79,(IF($A$8=Nutrients!$B$77,Nutrients!$BX$77,Nutrients!$BX$78)))))*N$8))/2000","v":0.34784942080999781},null,{"$f":"(SUMPRODUCT(P$9:P$229,Nutrients!$BX$8:$BX$228)+(IF($A$7=Nutrients!$B$8,Nutrients!$BX$8,Nutrients!$BX$9)*P$7)+(((IF($A$8=Nutrients!$B$79,Nutrients!$BX$79,(IF($A$8=Nutrients!$B$77,Nutrients!$BX$77,Nutrients!$BX$78)))))*P$8))/2000","v":0.53325651276949138},{"$f":"(SUMPRODUCT(Q$9:Q$229,Nutrients!$BX$8:$BX$228)+(IF($A$7=Nutrients!$B$8,Nutrients!$BX$8,Nutrients!$BX$9)*Q$7)+(((IF($A$8=Nutrients!$B$79,Nutrients!$BX$79,(IF($A$8=Nutrients!$B$77,Nutrients!$BX$77,Nutrients!$BX$78)))))*Q$8))/2000","v":0.47977901249519955},{"$f":"(SUMPRODUCT(R$9:R$229,Nutrients!$BX$8:$BX$228)+(IF($A$7=Nutrients!$B$8,Nutrients!$BX$8,Nutrients!$BX$9)*R$7)+(((IF($A$8=Nutrients!$B$79,Nutrients!$BX$79,(IF($A$8=Nutrients!$B$77,Nutrients!$BX$77,Nutrients!$BX$78)))))*R$8))/2000","v":0.42578352659627206},{"$f":"(SUMPRODUCT(S$9:S$229,Nutrients!$BX$8:$BX$228)+(IF($A$7=Nutrients!$B$8,Nutrients!$BX$8,Nutrients!$BX$9)*S$7)+(((IF($A$8=Nutrients!$B$79,Nutrients!$BX$79,(IF($A$8=Nutrients!$B$77,Nutrients!$BX$77,Nutrients!$BX$78)))))*S$8))/2000","v":0.38641457304023824},{"$f":"(SUMPRODUCT(T$9:T$229,Nutrients!$BX$8:$BX$228)+(IF($A$7=Nutrients!$B$8,Nutrients!$BX$8,Nutrients!$BX$9)*T$7)+(((IF($A$8=Nutrients!$B$79,Nutrients!$BX$79,(IF($A$8=Nutrients!$B$77,Nutrients!$BX$77,Nutrients!$BX$78)))))*T$8))/2000","v":0.36009014696163977},{"$f":"(SUMPRODUCT(U$9:U$229,Nutrients!$BX$8:$BX$228)+(IF($A$7=Nutrients!$B$8,Nutrients!$BX$8,Nutrients!$BX$9)*U$7)+(((IF($A$8=Nutrients!$B$79,Nutrients!$BX$79,(IF($A$8=Nutrients!$B$77,Nutrients!$BX$77,Nutrients!$BX$78)))))*U$8))/2000","v":0.3465831188072182},null,{"$f":"(SUMPRODUCT(W$9:W$229,Nutrients!$BX$8:$BX$228)+(IF($A$7=Nutrients!$B$8,Nutrients!$BX$8,Nutrients!$BX$9)*W$7)+(((IF($A$8=Nutrients!$B$79,Nutrients!$BX$79,(IF($A$8=Nutrients!$B$77,Nutrients!$BX$77,Nutrients!$BX$78)))))*W$8))/2000","v":0.53200797512823772},{"$f":"(SUMPRODUCT(X$9:X$229,Nutrients!$BX$8:$BX$228)+(IF($A$7=Nutrients!$B$8,Nutrients!$BX$8,Nutrients!$BX$9)*X$7)+(((IF($A$8=Nutrients!$B$79,Nutrients!$BX$79,(IF($A$8=Nutrients!$B$77,Nutrients!$BX$77,Nutrients!$BX$78)))))*X$8))/2000","v":0.47852551135639965},{"$f":"(SUMPRODUCT(Y$9:Y$229,Nutrients!$BX$8:$BX$228)+(IF($A$7=Nutrients!$B$8,Nutrients!$BX$8,Nutrients!$BX$9)*Y$7)+(((IF($A$8=Nutrients!$B$79,Nutrients!$BX$79,(IF($A$8=Nutrients!$B$77,Nutrients!$BX$77,Nutrients!$BX$78)))))*Y$8))/2000","v":0.42453690265371458},{"$f":"(SUMPRODUCT(Z$9:Z$229,Nutrients!$BX$8:$BX$228)+(IF($A$7=Nutrients!$B$8,Nutrients!$BX$8,Nutrients!$BX$9)*Z$7)+(((IF($A$8=Nutrients!$B$79,Nutrients!$BX$79,(IF($A$8=Nutrients!$B$77,Nutrients!$BX$77,Nutrients!$BX$78)))))*Z$8))/2000","v":0.38517267213028716},{"$f":"(SUMPRODUCT(AA$9:AA$229,Nutrients!$BX$8:$BX$228)+(IF($A$7=Nutrients!$B$8,Nutrients!$BX$8,Nutrients!$BX$9)*AA$7)+(((IF($A$8=Nutrients!$B$79,Nutrients!$BX$79,(IF($A$8=Nutrients!$B$77,Nutrients!$BX$77,Nutrients!$BX$78)))))*AA$8))/2000","v":0.35882206995636079},{"$f":"(SUMPRODUCT(AB$9:AB$229,Nutrients!$BX$8:$BX$228)+(IF($A$7=Nutrients!$B$8,Nutrients!$BX$8,Nutrients!$BX$9)*AB$7)+(((IF($A$8=Nutrients!$B$79,Nutrients!$BX$79,(IF($A$8=Nutrients!$B$77,Nutrients!$BX$77,Nutrients!$BX$78)))))*AB$8))/2000","v":0.35050859844683713},null,{"$f":"(SUMPRODUCT(AD$9:AD$229,Nutrients!$BX$8:$BX$228)+(IF($A$7=Nutrients!$B$8,Nutrients!$BX$8,Nutrients!$BX$9)*AD$7)+(((IF($A$8=Nutrients!$B$79,Nutrients!$BX$79,(IF($A$8=Nutrients!$B$77,Nutrients!$BX$77,Nutrients!$BX$78)))))*AD$8))/2000","v":0.53075508692466766},{"$f":"(SUMPRODUCT(AE$9:AE$229,Nutrients!$BX$8:$BX$228)+(IF($A$7=Nutrients!$B$8,Nutrients!$BX$8,Nutrients!$BX$9)*AE$7)+(((IF($A$8=Nutrients!$B$79,Nutrients!$BX$79,(IF($A$8=Nutrients!$B$77,Nutrients!$BX$77,Nutrients!$BX$78)))))*AE$8))/2000","v":0.47727445274538483},{"$f":"(SUMPRODUCT(AF$9:AF$229,Nutrients!$BX$8:$BX$228)+(IF($A$7=Nutrients!$B$8,Nutrients!$BX$8,Nutrients!$BX$9)*AF$7)+(((IF($A$8=Nutrients!$B$79,Nutrients!$BX$79,(IF($A$8=Nutrients!$B$77,Nutrients!$BX$77,Nutrients!$BX$78)))))*AF$8))/2000","v":0.4233010616413011},{"$f":"(SUMPRODUCT(AG$9:AG$229,Nutrients!$BX$8:$BX$228)+(IF($A$7=Nutrients!$B$8,Nutrients!$BX$8,Nutrients!$BX$9)*AG$7)+(((IF($A$8=Nutrients!$B$79,Nutrients!$BX$79,(IF($A$8=Nutrients!$B$77,Nutrients!$BX$77,Nutrients!$BX$78)))))*AG$8))/2000","v":0.38389780266593476},{"$f":"(SUMPRODUCT(AH$9:AH$229,Nutrients!$BX$8:$BX$228)+(IF($A$7=Nutrients!$B$8,Nutrients!$BX$8,Nutrients!$BX$9)*AH$7)+(((IF($A$8=Nutrients!$B$79,Nutrients!$BX$79,(IF($A$8=Nutrients!$B$77,Nutrients!$BX$77,Nutrients!$BX$78)))))*AH$8))/2000","v":0.36922162898605482},{"$f":"(SUMPRODUCT(AI$9:AI$229,Nutrients!$BX$8:$BX$228)+(IF($A$7=Nutrients!$B$8,Nutrients!$BX$8,Nutrients!$BX$9)*AI$7)+(((IF($A$8=Nutrients!$B$79,Nutrients!$BX$79,(IF($A$8=Nutrients!$B$77,Nutrients!$BX$77,Nutrients!$BX$78)))))*AI$8))/2000","v":0.36308478209611611},null,{"$f":"(SUMPRODUCT(AK$9:AK$229,Nutrients!$BX$8:$BX$228)+(IF($A$7=Nutrients!$B$8,Nutrients!$BX$8,Nutrients!$BX$9)*AK$7)+(((IF($A$8=Nutrients!$B$79,Nutrients!$BX$79,(IF($A$8=Nutrients!$B$77,Nutrients!$BX$77,Nutrients!$BX$78)))))*AK$8))/2000","v":0.52947297763174184},{"$f":"(SUMPRODUCT(AL$9:AL$229,Nutrients!$BX$8:$BX$228)+(IF($A$7=Nutrients!$B$8,Nutrients!$BX$8,Nutrients!$BX$9)*AL$7)+(((IF($A$8=Nutrients!$B$79,Nutrients!$BX$79,(IF($A$8=Nutrients!$B$77,Nutrients!$BX$77,Nutrients!$BX$78)))))*AL$8))/2000","v":0.4760237238684763},{"$f":"(SUMPRODUCT(AM$9:AM$229,Nutrients!$BX$8:$BX$228)+(IF($A$7=Nutrients!$B$8,Nutrients!$BX$8,Nutrients!$BX$9)*AM$7)+(((IF($A$8=Nutrients!$B$79,Nutrients!$BX$79,(IF($A$8=Nutrients!$B$77,Nutrients!$BX$77,Nutrients!$BX$78)))))*AM$8))/2000","v":0.42203362358339697},{"$f":"(SUMPRODUCT(AN$9:AN$229,Nutrients!$BX$8:$BX$228)+(IF($A$7=Nutrients!$B$8,Nutrients!$BX$8,Nutrients!$BX$9)*AN$7)+(((IF($A$8=Nutrients!$B$79,Nutrients!$BX$79,(IF($A$8=Nutrients!$B$77,Nutrients!$BX$77,Nutrients!$BX$78)))))*AN$8))/2000","v":0.39380428584002719},{"$f":"(SUMPRODUCT(AO$9:AO$229,Nutrients!$BX$8:$BX$228)+(IF($A$7=Nutrients!$B$8,Nutrients!$BX$8,Nutrients!$BX$9)*AO$7)+(((IF($A$8=Nutrients!$B$79,Nutrients!$BX$79,(IF($A$8=Nutrients!$B$77,Nutrients!$BX$77,Nutrients!$BX$78)))))*AO$8))/2000","v":0.3818198565876384},{"$f":"(SUMPRODUCT(AP$9:AP$229,Nutrients!$BX$8:$BX$228)+(IF($A$7=Nutrients!$B$8,Nutrients!$BX$8,Nutrients!$BX$9)*AP$7)+(((IF($A$8=Nutrients!$B$79,Nutrients!$BX$79,(IF($A$8=Nutrients!$B$77,Nutrients!$BX$77,Nutrients!$BX$78)))))*AP$8))/2000","v":0.37568106188559464},null,{"$f":"(SUMPRODUCT(AR$9:AR$229,Nutrients!$BX$8:$BX$228)+(IF($A$7=Nutrients!$B$8,Nutrients!$BX$8,Nutrients!$BX$9)*AR$7)+(((IF($A$8=Nutrients!$B$79,Nutrients!$BX$79,(IF($A$8=Nutrients!$B$77,Nutrients!$BX$77,Nutrients!$BX$78)))))*AR$8))/2000","v":0.52823493918782216},{"$f":"(SUMPRODUCT(AS$9:AS$229,Nutrients!$BX$8:$BX$228)+(IF($A$7=Nutrients!$B$8,Nutrients!$BX$8,Nutrients!$BX$9)*AS$7)+(((IF($A$8=Nutrients!$B$79,Nutrients!$BX$79,(IF($A$8=Nutrients!$B$77,Nutrients!$BX$77,Nutrients!$BX$78)))))*AS$8))/2000","v":0.47477305818982823},{"$f":"(SUMPRODUCT(AT$9:AT$229,Nutrients!$BX$8:$BX$228)+(IF($A$7=Nutrients!$B$8,Nutrients!$BX$8,Nutrients!$BX$9)*AT$7)+(((IF($A$8=Nutrients!$B$79,Nutrients!$BX$79,(IF($A$8=Nutrients!$B$77,Nutrients!$BX$77,Nutrients!$BX$78)))))*AT$8))/2000","v":0.42446001255490406},{"$f":"(SUMPRODUCT(AU$9:AU$229,Nutrients!$BX$8:$BX$228)+(IF($A$7=Nutrients!$B$8,Nutrients!$BX$8,Nutrients!$BX$9)*AU$7)+(((IF($A$8=Nutrients!$B$79,Nutrients!$BX$79,(IF($A$8=Nutrients!$B$77,Nutrients!$BX$77,Nutrients!$BX$78)))))*AU$8))/2000","v":0.40640352560061455},{"$f":"(SUMPRODUCT(AV$9:AV$229,Nutrients!$BX$8:$BX$228)+(IF($A$7=Nutrients!$B$8,Nutrients!$BX$8,Nutrients!$BX$9)*AV$7)+(((IF($A$8=Nutrients!$B$79,Nutrients!$BX$79,(IF($A$8=Nutrients!$B$77,Nutrients!$BX$77,Nutrients!$BX$78)))))*AV$8))/2000","v":0.39441331284495029},{"$f":"(SUMPRODUCT(AW$9:AW$229,Nutrients!$BX$8:$BX$228)+(IF($A$7=Nutrients!$B$8,Nutrients!$BX$8,Nutrients!$BX$9)*AW$7)+(((IF($A$8=Nutrients!$B$79,Nutrients!$BX$79,(IF($A$8=Nutrients!$B$77,Nutrients!$BX$77,Nutrients!$BX$78)))))*AW$8))/2000","v":0.38827278456160014}]
["Available P w/o phytase, %",{"$f":"(SUMPRODUCT(B$9:B$229,Nutrients!$EB$8:$EB$228)+(IF($A$7=Nutrients!$B$8,Nutrients!$EB$8,Nutrients!$EB$9)*B$7)+(((IF($A$8=Nutrients!$B$79,Nutrients!$EB$79,(IF($A$8=Nutrients!$B$77,Nutrients!$EB$77,Nutrients!$EB$78)))))*B$8))/2000","v":0.21736490825429733},{"$f":"(SUMPRODUCT(C$9:C$229,Nutrients!$EB$8:$EB$228)+(IF($A$7=Nutrients!$B$8,Nutrients!$EB$8,Nutrients!$EB$9)*C$7)+(((IF($A$8=Nutrients!$B$79,Nutrients!$EB$79,(IF($A$8=Nutrients!$B$77,Nutrients!$EB$77,Nutrients!$EB$78)))))*C$8))/2000","v":0.18121360963694014},{"$f":"(SUMPRODUCT(D$9:D$229,Nutrients!$EB$8:$EB$228)+(IF($A$7=Nutrients!$B$8,Nutrients!$EB$8,Nutrients!$EB$9)*D$7)+(((IF($A$8=Nutrients!$B$79,Nutrients!$EB$79,(IF($A$8=Nutrients!$B$77,Nutrients!$EB$77,Nutrients!$EB$78)))))*D$8))/2000","v":0.1446187906188299},{"$f":"(SUMPRODUCT(E$9:E$229,Nutrients!$EB$8:$EB$228)+(IF($A$7=Nutrients!$B$8,Nutrients!$EB$8,Nutrients!$EB$9)*E$7)+(((IF($A$8=Nutrients!$B$79,Nutrients!$EB$79,(IF($A$8=Nutrients!$B$77,Nutrients!$EB$77,Nutrients!$EB$78)))))*E$8))/2000","v":0.11837941481999412},{"$f":"(SUMPRODUCT(F$9:F$229,Nutrients!$EB$8:$EB$228)+(IF($A$7=Nutrients!$B$8,Nutrients!$EB$8,Nutrients!$EB$9)*F$7)+(((IF($A$8=Nutrients!$B$79,Nutrients!$EB$79,(IF($A$8=Nutrients!$B$77,Nutrients!$EB$77,Nutrients!$EB$78)))))*F$8))/2000","v":9.9071678699147347E-2},{"$f":"(SUMPRODUCT(G$9:G$229,Nutrients!$EB$8:$EB$228)+(IF($A$7=Nutrients!$B$8,Nutrients!$EB$8,Nutrients!$EB$9)*G$7)+(((IF($A$8=Nutrients!$B$79,Nutrients!$EB$79,(IF($A$8=Nutrients!$B$77,Nutrients!$EB$77,Nutrients!$EB$78)))))*G$8))/2000","v":9.0636415067427589E-2},null,{"$f":"(SUMPRODUCT(I$9:I$229,Nutrients!$EB$8:$EB$228)+(IF($A$7=Nutrients!$B$8,Nutrients!$EB$8,Nutrients!$EB$9)*I$7)+(((IF($A$8=Nutrients!$B$79,Nutrients!$EB$79,(IF($A$8=Nutrients!$B$77,Nutrients!$EB$77,Nutrients!$EB$78)))))*I$8))/2000","v":0.20032876812813466},{"$f":"(SUMPRODUCT(J$9:J$229,Nutrients!$EB$8:$EB$228)+(IF($A$7=Nutrients!$B$8,Nutrients!$EB$8,Nutrients!$EB$9)*J$7)+(((IF($A$8=Nutrients!$B$79,Nutrients!$EB$79,(IF($A$8=Nutrients!$B$77,Nutrients!$EB$77,Nutrients!$EB$78)))))*J$8))/2000","v":0.16417568719866785},{"$f":"(SUMPRODUCT(K$9:K$229,Nutrients!$EB$8:$EB$228)+(IF($A$7=Nutrients!$B$8,Nutrients!$EB$8,Nutrients!$EB$9)*K$7)+(((IF($A$8=Nutrients!$B$79,Nutrients!$EB$79,(IF($A$8=Nutrients!$B$77,Nutrients!$EB$77,Nutrients!$EB$78)))))*K$8))/2000","v":0.12501672494352439},{"$f":"(SUMPRODUCT(L$9:L$229,Nutrients!$EB$8:$EB$228)+(IF($A$7=Nutrients!$B$8,Nutrients!$EB$8,Nutrients!$EB$9)*L$7)+(((IF($A$8=Nutrients!$B$79,Nutrients!$EB$79,(IF($A$8=Nutrients!$B$77,Nutrients!$EB$77,Nutrients!$EB$78)))))*L$8))/2000","v":9.8157072418378358E-2},{"$f":"(SUMPRODUCT(M$9:M$229,Nutrients!$EB$8:$EB$228)+(IF($A$7=Nutrients!$B$8,Nutrients!$EB$8,Nutrients!$EB$9)*M$7)+(((IF($A$8=Nutrients!$B$79,Nutrients!$EB$79,(IF($A$8=Nutrients!$B$77,Nutrients!$EB$77,Nutrients!$EB$78)))))*M$8))/2000","v":8.0111141837727329E-2},{"$f":"(SUMPRODUCT(N$9:N$229,Nutrients!$EB$8:$EB$228)+(IF($A$7=Nutrients!$B$8,Nutrients!$EB$8,Nutrients!$EB$9)*N$7)+(((IF($A$8=Nutrients!$B$79,Nutrients!$EB$79,(IF($A$8=Nutrients!$B$77,Nutrients!$EB$77,Nutrients!$EB$78)))))*N$8))/2000","v":7.0862353745697854E-2},null,{"$f":"(SUMPRODUCT(P$9:P$229,Nutrients!$EB$8:$EB$228)+(IF($A$7=Nutrients!$B$8,Nutrients!$EB$8,Nutrients!$EB$9)*P$7)+(((IF($A$8=Nutrients!$B$79,Nutrients!$EB$79,(IF($A$8=Nutrients!$B$77,Nutrients!$EB$77,Nutrients!$EB$78)))))*P$8))/2000","v":0.18221735980300099},{"$f":"(SUMPRODUCT(Q$9:Q$229,Nutrients!$EB$8:$EB$228)+(IF($A$7=Nutrients!$B$8,Nutrients!$EB$8,Nutrients!$EB$9)*Q$7)+(((IF($A$8=Nutrients!$B$79,Nutrients!$EB$79,(IF($A$8=Nutrients!$B$77,Nutrients!$EB$77,Nutrients!$EB$78)))))*Q$8))/2000","v":0.14606377031514869},{"$f":"(SUMPRODUCT(R$9:R$229,Nutrients!$EB$8:$EB$228)+(IF($A$7=Nutrients!$B$8,Nutrients!$EB$8,Nutrients!$EB$9)*R$7)+(((IF($A$8=Nutrients!$B$79,Nutrients!$EB$79,(IF($A$8=Nutrients!$B$77,Nutrients!$EB$77,Nutrients!$EB$78)))))*R$8))/2000","v":0.10690404044474559},{"$f":"(SUMPRODUCT(S$9:S$229,Nutrients!$EB$8:$EB$228)+(IF($A$7=Nutrients!$B$8,Nutrients!$EB$8,Nutrients!$EB$9)*S$7)+(((IF($A$8=Nutrients!$B$79,Nutrients!$EB$79,(IF($A$8=Nutrients!$B$77,Nutrients!$EB$77,Nutrients!$EB$78)))))*S$8))/2000","v":8.0044689847537889E-2},{"$f":"(SUMPRODUCT(T$9:T$229,Nutrients!$EB$8:$EB$228)+(IF($A$7=Nutrients!$B$8,Nutrients!$EB$8,Nutrients!$EB$9)*T$7)+(((IF($A$8=Nutrients!$B$79,Nutrients!$EB$79,(IF($A$8=Nutrients!$B$77,Nutrients!$EB$77,Nutrients!$EB$78)))))*T$8))/2000","v":6.1998006411845524E-2},{"$f":"(SUMPRODUCT(U$9:U$229,Nutrients!$EB$8:$EB$228)+(IF($A$7=Nutrients!$B$8,Nutrients!$EB$8,Nutrients!$EB$9)*U$7)+(((IF($A$8=Nutrients!$B$79,Nutrients!$EB$79,(IF($A$8=Nutrients!$B$77,Nutrients!$EB$77,Nutrients!$EB$78)))))*U$8))/2000","v":5.2748436519366122E-2},null,{"$f":"(SUMPRODUCT(W$9:W$229,Nutrients!$EB$8:$EB$228)+(IF($A$7=Nutrients!$B$8,Nutrients!$EB$8,Nutrients!$EB$9)*W$7)+(((IF($A$8=Nutrients!$B$79,Nutrients!$EB$79,(IF($A$8=Nutrients!$B$77,Nutrients!$EB$77,Nutrients!$EB$78)))))*W$8))/2000","v":0.16410555024538293},{"$f":"(SUMPRODUCT(X$9:X$229,Nutrients!$EB$8:$EB$228)+(IF($A$7=Nutrients!$B$8,Nutrients!$EB$8,Nutrients!$EB$9)*X$7)+(((IF($A$8=Nutrients!$B$79,Nutrients!$EB$79,(IF($A$8=Nutrients!$B$77,Nutrients!$EB$77,Nutrients!$EB$78)))))*X$8))/2000","v":0.12795137185888245},{"$f":"(SUMPRODUCT(Y$9:Y$229,Nutrients!$EB$8:$EB$228)+(IF($A$7=Nutrients!$B$8,Nutrients!$EB$8,Nutrients!$EB$9)*Y$7)+(((IF($A$8=Nutrients!$B$79,Nutrients!$EB$79,(IF($A$8=Nutrients!$B$77,Nutrients!$EB$77,Nutrients!$EB$78)))))*Y$8))/2000","v":8.8792505397998461E-2},{"$f":"(SUMPRODUCT(Z$9:Z$229,Nutrients!$EB$8:$EB$228)+(IF($A$7=Nutrients!$B$8,Nutrients!$EB$8,Nutrients!$EB$9)*Z$7)+(((IF($A$8=Nutrients!$B$79,Nutrients!$EB$79,(IF($A$8=Nutrients!$B$77,Nutrients!$EB$77,Nutrients!$EB$78)))))*Z$8))/2000","v":6.1933715169259072E-2},{"$f":"(SUMPRODUCT(AA$9:AA$229,Nutrients!$EB$8:$EB$228)+(IF($A$7=Nutrients!$B$8,Nutrients!$EB$8,Nutrients!$EB$9)*AA$7)+(((IF($A$8=Nutrients!$B$79,Nutrients!$EB$79,(IF($A$8=Nutrients!$B$77,Nutrients!$EB$77,Nutrients!$EB$78)))))*AA$8))/2000","v":4.3883926047100688E-2},{"$f":"(SUMPRODUCT(AB$9:AB$229,Nutrients!$EB$8:$EB$228)+(IF($A$7=Nutrients!$B$8,Nutrients!$EB$8,Nutrients!$EB$9)*AB$7)+(((IF($A$8=Nutrients!$B$79,Nutrients!$EB$79,(IF($A$8=Nutrients!$B$77,Nutrients!$EB$77,Nutrients!$EB$78)))))*AB$8))/2000","v":3.9906587302750381E-2},null,{"$f":"(SUMPRODUCT(AD$9:AD$229,Nutrients!$EB$8:$EB$228)+(IF($A$7=Nutrients!$B$8,Nutrients!$EB$8,Nutrients!$EB$9)*AD$7)+(((IF($A$8=Nutrients!$B$79,Nutrients!$EB$79,(IF($A$8=Nutrients!$B$77,Nutrients!$EB$77,Nutrients!$EB$78)))))*AD$8))/2000","v":0.14599324824055099},{"$f":"(SUMPRODUCT(AE$9:AE$229,Nutrients!$EB$8:$EB$228)+(IF($A$7=Nutrients!$B$8,Nutrients!$EB$8,Nutrients!$EB$9)*AE$7)+(((IF($A$8=Nutrients!$B$79,Nutrients!$EB$79,(IF($A$8=Nutrients!$B$77,Nutrients!$EB$77,Nutrients!$EB$78)))))*AE$8))/2000","v":0.10983928692771132},{"$f":"(SUMPRODUCT(AF$9:AF$229,Nutrients!$EB$8:$EB$228)+(IF($A$7=Nutrients!$B$8,Nutrients!$EB$8,Nutrients!$EB$9)*AF$7)+(((IF($A$8=Nutrients!$B$79,Nutrients!$EB$79,(IF($A$8=Nutrients!$B$77,Nutrients!$EB$77,Nutrients!$EB$78)))))*AF$8))/2000","v":7.0682225972554191E-2},{"$f":"(SUMPRODUCT(AG$9:AG$229,Nutrients!$EB$8:$EB$228)+(IF($A$7=Nutrients!$B$8,Nutrients!$EB$8,Nutrients!$EB$9)*AG$7)+(((IF($A$8=Nutrients!$B$79,Nutrients!$EB$79,(IF($A$8=Nutrients!$B$77,Nutrients!$EB$77,Nutrients!$EB$78)))))*AG$8))/2000","v":4.3818805177893598E-2},{"$f":"(SUMPRODUCT(AH$9:AH$229,Nutrients!$EB$8:$EB$228)+(IF($A$7=Nutrients!$B$8,Nutrients!$EB$8,Nutrients!$EB$9)*AH$7)+(((IF($A$8=Nutrients!$B$79,Nutrients!$EB$79,(IF($A$8=Nutrients!$B$77,Nutrients!$EB$77,Nutrients!$EB$78)))))*AH$8))/2000","v":3.7664280280643996E-2},{"$f":"(SUMPRODUCT(AI$9:AI$229,Nutrients!$EB$8:$EB$228)+(IF($A$7=Nutrients!$B$8,Nutrients!$EB$8,Nutrients!$EB$9)*AI$7)+(((IF($A$8=Nutrients!$B$79,Nutrients!$EB$79,(IF($A$8=Nutrients!$B$77,Nutrients!$EB$77,Nutrients!$EB$78)))))*AI$8))/2000","v":3.5940627482818059E-2},null,{"$f":"(SUMPRODUCT(AK$9:AK$229,Nutrients!$EB$8:$EB$228)+(IF($A$7=Nutrients!$B$8,Nutrients!$EB$8,Nutrients!$EB$9)*AK$7)+(((IF($A$8=Nutrients!$B$79,Nutrients!$EB$79,(IF($A$8=Nutrients!$B$77,Nutrients!$EB$77,Nutrients!$EB$78)))))*AK$8))/2000","v":0.12787749113777752},{"$f":"(SUMPRODUCT(AL$9:AL$229,Nutrients!$EB$8:$EB$228)+(IF($A$7=Nutrients!$B$8,Nutrients!$EB$8,Nutrients!$EB$9)*AL$7)+(((IF($A$8=Nutrients!$B$79,Nutrients!$EB$79,(IF($A$8=Nutrients!$B$77,Nutrients!$EB$77,Nutrients!$EB$78)))))*AL$8))/2000","v":9.1727252982731253E-2},{"$f":"(SUMPRODUCT(AM$9:AM$229,Nutrients!$EB$8:$EB$228)+(IF($A$7=Nutrients!$B$8,Nutrients!$EB$8,Nutrients!$EB$9)*AM$7)+(((IF($A$8=Nutrients!$B$79,Nutrients!$EB$79,(IF($A$8=Nutrients!$B$77,Nutrients!$EB$77,Nutrients!$EB$78)))))*AM$8))/2000","v":5.2568209551707296E-2},{"$f":"(SUMPRODUCT(AN$9:AN$229,Nutrients!$EB$8:$EB$228)+(IF($A$7=Nutrients!$B$8,Nutrients!$EB$8,Nutrients!$EB$9)*AN$7)+(((IF($A$8=Nutrients!$B$79,Nutrients!$EB$79,(IF($A$8=Nutrients!$B$77,Nutrients!$EB$77,Nutrients!$EB$78)))))*AN$8))/2000","v":3.7080067628940186E-2},{"$f":"(SUMPRODUCT(AO$9:AO$229,Nutrients!$EB$8:$EB$228)+(IF($A$7=Nutrients!$B$8,Nutrients!$EB$8,Nutrients!$EB$9)*AO$7)+(((IF($A$8=Nutrients!$B$79,Nutrients!$EB$79,(IF($A$8=Nutrients!$B$77,Nutrients!$EB$77,Nutrients!$EB$78)))))*AO$8))/2000","v":3.3701143823074049E-2},{"$f":"(SUMPRODUCT(AP$9:AP$229,Nutrients!$EB$8:$EB$228)+(IF($A$7=Nutrients!$B$8,Nutrients!$EB$8,Nutrients!$EB$9)*AP$7)+(((IF($A$8=Nutrients!$B$79,Nutrients!$EB$79,(IF($A$8=Nutrients!$B$77,Nutrients!$EB$77,Nutrients!$EB$78)))))*AP$8))/2000","v":3.1977260028172153E-2},null,{"$f":"(SUMPRODUCT(AR$9:AR$229,Nutrients!$EB$8:$EB$228)+(IF($A$7=Nutrients!$B$8,Nutrients!$EB$8,Nutrients!$EB$9)*AR$7)+(((IF($A$8=Nutrients!$B$79,Nutrients!$EB$79,(IF($A$8=Nutrients!$B$77,Nutrients!$EB$77,Nutrients!$EB$78)))))*AR$8))/2000","v":0.1097669272669074},{"$f":"(SUMPRODUCT(AS$9:AS$229,Nutrients!$EB$8:$EB$228)+(IF($A$7=Nutrients!$B$8,Nutrients!$EB$8,Nutrients!$EB$9)*AS$7)+(((IF($A$8=Nutrients!$B$79,Nutrients!$EB$79,(IF($A$8=Nutrients!$B$77,Nutrients!$EB$77,Nutrients!$EB$78)))))*AS$8))/2000","v":7.3615190942195E-2},{"$f":"(SUMPRODUCT(AT$9:AT$229,Nutrients!$EB$8:$EB$228)+(IF($A$7=Nutrients!$B$8,Nutrients!$EB$8,Nutrients!$EB$9)*AT$7)+(((IF($A$8=Nutrients!$B$79,Nutrients!$EB$79,(IF($A$8=Nutrients!$B$77,Nutrients!$EB$77,Nutrients!$EB$78)))))*AT$8))/2000","v":3.8198301972294811E-2},{"$f":"(SUMPRODUCT(AU$9:AU$229,Nutrients!$EB$8:$EB$228)+(IF($A$7=Nutrients!$B$8,Nutrients!$EB$8,Nutrients!$EB$9)*AU$7)+(((IF($A$8=Nutrients!$B$79,Nutrients!$EB$79,(IF($A$8=Nutrients!$B$77,Nutrients!$EB$77,Nutrients!$EB$78)))))*AU$8))/2000","v":3.3117036251500136E-2},{"$f":"(SUMPRODUCT(AV$9:AV$229,Nutrients!$EB$8:$EB$228)+(IF($A$7=Nutrients!$B$8,Nutrients!$EB$8,Nutrients!$EB$9)*AV$7)+(((IF($A$8=Nutrients!$B$79,Nutrients!$EB$79,(IF($A$8=Nutrients!$B$77,Nutrients!$EB$77,Nutrients!$EB$78)))))*AV$8))/2000","v":2.9737441431680514E-2},{"$f":"(SUMPRODUCT(AW$9:AW$229,Nutrients!$EB$8:$EB$228)+(IF($A$7=Nutrients!$B$8,Nutrients!$EB$8,Nutrients!$EB$9)*AW$7)+(((IF($A$8=Nutrients!$B$79,Nutrients!$EB$79,(IF($A$8=Nutrients!$B$77,Nutrients!$EB$77,Nutrients!$EB$78)))))*AW$8))/2000","v":2.801335201410177E-2}]
["Available P, %",{"$f":"IF((SUMPRODUCT(B$9:B$229,Nutrients!$EE$8:$EE$228))=0,B256,IF((SUMPRODUCT(B$9:B$229,Nutrients!$EE$8:$EE$228))>(1500*907),B256+0.14,B256+0.00000000006666*((SUMPRODUCT(B$9:B$229,Nutrients!$EE$8:$EE$228)/907))^3-0.00000023623322*((SUMPRODUCT(B$9:B$229,Nutrients!$EE$8:$EE$228)/907))^2+0.00029262722672*((SUMPRODUCT(B$9:B$229,Nutrients!$EE$8:$EE$228)/907))+0.007028328))","v":0.32997934872513002},{"$f":"IF((SUMPRODUCT(C$9:C$229,Nutrients!$EE$8:$EE$228))=0,C256,IF((SUMPRODUCT(C$9:C$229,Nutrients!$EE$8:$EE$228))>(1500*907),C256+0.14,C256+0.00000000006666*((SUMPRODUCT(C$9:C$229,Nutrients!$EE$8:$EE$228)/907))^3-0.00000023623322*((SUMPRODUCT(C$9:C$229,Nutrients!$EE$8:$EE$228)/907))^2+0.00029262722672*((SUMPRODUCT(C$9:C$229,Nutrients!$EE$8:$EE$228)/907))+0.007028328))","v":0.2938280501077728},{"$f":"IF((SUMPRODUCT(D$9:D$229,Nutrients!$EE$8:$EE$228))=0,D256,IF((SUMPRODUCT(D$9:D$229,Nutrients!$EE$8:$EE$228))>(1500*907),D256+0.14,D256+0.00000000006666*((SUMPRODUCT(D$9:D$229,Nutrients!$EE$8:$EE$228)/907))^3-0.00000023623322*((SUMPRODUCT(D$9:D$229,Nutrients!$EE$8:$EE$228)/907))^2+0.00029262722672*((SUMPRODUCT(D$9:D$229,Nutrients!$EE$8:$EE$228)/907))+0.007028328))","v":0.25723323108966256},{"$f":"IF((SUMPRODUCT(E$9:E$229,Nutrients!$EE$8:$EE$228))=0,E256,IF((SUMPRODUCT(E$9:E$229,Nutrients!$EE$8:$EE$228))>(1500*907),E256+0.14,E256+0.00000000006666*((SUMPRODUCT(E$9:E$229,Nutrients!$EE$8:$EE$228)/907))^3-0.00000023623322*((SUMPRODUCT(E$9:E$229,Nutrients!$EE$8:$EE$228)/907))^2+0.00029262722672*((SUMPRODUCT(E$9:E$229,Nutrients!$EE$8:$EE$228)/907))+0.007028328))","v":0.23099385529082681},{"$f":"IF((SUMPRODUCT(F$9:F$229,Nutrients!$EE$8:$EE$228))=0,F256,IF((SUMPRODUCT(F$9:F$229,Nutrients!$EE$8:$EE$228))>(1500*907),F256+0.14,F256+0.00000000006666*((SUMPRODUCT(F$9:F$229,Nutrients!$EE$8:$EE$228)/907))^3-0.00000023623322*((SUMPRODUCT(F$9:F$229,Nutrients!$EE$8:$EE$228)/907))^2+0.00029262722672*((SUMPRODUCT(F$9:F$229,Nutrients!$EE$8:$EE$228)/907))+0.007028328))","v":0.21168611916998004},{"$f":"IF((SUMPRODUCT(G$9:G$229,Nutrients!$EE$8:$EE$228))=0,G256,IF((SUMPRODUCT(G$9:G$229,Nutrients!$EE$8:$EE$228))>(1500*907),G256+0.14,G256+0.00000000006666*((SUMPRODUCT(G$9:G$229,Nutrients!$EE$8:$EE$228)/907))^3-0.00000023623322*((SUMPRODUCT(G$9:G$229,Nutrients!$EE$8:$EE$228)/907))^2+0.00029262722672*((SUMPRODUCT(G$9:G$229,Nutrients!$EE$8:$EE$228)/907))+0.007028328))","v":0.20325085553826028},null,{"$f":"IF((SUMPRODUCT(I$9:I$229,Nutrients!$EE$8:$EE$228))=0,I256,IF((SUMPRODUCT(I$9:I$229,Nutrients!$EE$8:$EE$228))>(1500*907),I256+0.14,I256+0.00000000006666*((SUMPRODUCT(I$9:I$229,Nutrients!$EE$8:$EE$228)/907))^3-0.00000023623322*((SUMPRODUCT(I$9:I$229,Nutrients!$EE$8:$EE$228)/907))^2+0.00029262722672*((SUMPRODUCT(I$9:I$229,Nutrients!$EE$8:$EE$228)/907))+0.007028328))","v":0.31294320859896729},{"$f":"IF((SUMPRODUCT(J$9:J$229,Nutrients!$EE$8:$EE$228))=0,J256,IF((SUMPRODUCT(J$9:J$229,Nutrients!$EE$8:$EE$228))>(1500*907),J256+0.14,J256+0.00000000006666*((SUMPRODUCT(J$9:J$229,Nutrients!$EE$8:$EE$228)/907))^3-0.00000023623322*((SUMPRODUCT(J$9:J$229,Nutrients!$EE$8:$EE$228)/907))^2+0.00029262722672*((SUMPRODUCT(J$9:J$229,Nutrients!$EE$8:$EE$228)/907))+0.007028328))","v":0.27679012766950051},{"$f":"IF((SUMPRODUCT(K$9:K$229,Nutrients!$EE$8:$EE$228))=0,K256,IF((SUMPRODUCT(K$9:K$229,Nutrients!$EE$8:$EE$228))>(1500*907),K256+0.14,K256+0.00000000006666*((SUMPRODUCT(K$9:K$229,Nutrients!$EE$8:$EE$228)/907))^3-0.00000023623322*((SUMPRODUCT(K$9:K$229,Nutrients!$EE$8:$EE$228)/907))^2+0.00029262722672*((SUMPRODUCT(K$9:K$229,Nutrients!$EE$8:$EE$228)/907))+0.007028328))","v":0.23763116541435705},{"$f":"IF((SUMPRODUCT(L$9:L$229,Nutrients!$EE$8:$EE$228))=0,L256,IF((SUMPRODUCT(L$9:L$229,Nutrients!$EE$8:$EE$228))>(1500*907),L256+0.14,L256+0.00000000006666*((SUMPRODUCT(L$9:L$229,Nutrients!$EE$8:$EE$228)/907))^3-0.00000023623322*((SUMPRODUCT(L$9:L$229,Nutrients!$EE$8:$EE$228)/907))^2+0.00029262722672*((SUMPRODUCT(L$9:L$229,Nutrients!$EE$8:$EE$228)/907))+0.007028328))","v":0.21077151288921106},{"$f":"IF((SUMPRODUCT(M$9:M$229,Nutrients!$EE$8:$EE$228))=0,M256,IF((SUMPRODUCT(M$9:M$229,Nutrients!$EE$8:$EE$228))>(1500*907),M256+0.14,M256+0.00000000006666*((SUMPRODUCT(M$9:M$229,Nutrients!$EE$8:$EE$228)/907))^3-0.00000023623322*((SUMPRODUCT(M$9:M$229,Nutrients!$EE$8:$EE$228)/907))^2+0.00029262722672*((SUMPRODUCT(M$9:M$229,Nutrients!$EE$8:$EE$228)/907))+0.007028328))","v":0.19272558230856002},{"$f":"IF((SUMPRODUCT(N$9:N$229,Nutrients!$EE$8:$EE$228))=0,N256,IF((SUMPRODUCT(N$9:N$229,Nutrients!$EE$8:$EE$228))>(1500*907),N256+0.14,N256+0.00000000006666*((SUMPRODUCT(N$9:N$229,Nutrients!$EE$8:$EE$228)/907))^3-0.00000023623322*((SUMPRODUCT(N$9:N$229,Nutrients!$EE$8:$EE$228)/907))^2+0.00029262722672*((SUMPRODUCT(N$9:N$229,Nutrients!$EE$8:$EE$228)/907))+0.007028328))","v":0.18347679421653054},null,{"$f":"IF((SUMPRODUCT(P$9:P$229,Nutrients!$EE$8:$EE$228))=0,P256,IF((SUMPRODUCT(P$9:P$229,Nutrients!$EE$8:$EE$228))>(1500*907),P256+0.14,P256+0.00000000006666*((SUMPRODUCT(P$9:P$229,Nutrients!$EE$8:$EE$228)/907))^3-0.00000023623322*((SUMPRODUCT(P$9:P$229,Nutrients!$EE$8:$EE$228)/907))^2+0.00029262722672*((SUMPRODUCT(P$9:P$229,Nutrients!$EE$8:$EE$228)/907))+0.007028328))","v":0.29483180027383371},{"$f":"IF((SUMPRODUCT(Q$9:Q$229,Nutrients!$EE$8:$EE$228))=0,Q256,IF((SUMPRODUCT(Q$9:Q$229,Nutrients!$EE$8:$EE$228))>(1500*907),Q256+0.14,Q256+0.00000000006666*((SUMPRODUCT(Q$9:Q$229,Nutrients!$EE$8:$EE$228)/907))^3-0.00000023623322*((SUMPRODUCT(Q$9:Q$229,Nutrients!$EE$8:$EE$228)/907))^2+0.00029262722672*((SUMPRODUCT(Q$9:Q$229,Nutrients!$EE$8:$EE$228)/907))+0.007028328))","v":0.25867821078598141},{"$f":"IF((SUMPRODUCT(R$9:R$229,Nutrients!$EE$8:$EE$228))=0,R256,IF((SUMPRODUCT(R$9:R$229,Nutrients!$EE$8:$EE$228))>(1500*907),R256+0.14,R256+0.00000000006666*((SUMPRODUCT(R$9:R$229,Nutrients!$EE$8:$EE$228)/907))^3-0.00000023623322*((SUMPRODUCT(R$9:R$229,Nutrients!$EE$8:$EE$228)/907))^2+0.00029262722672*((SUMPRODUCT(R$9:R$229,Nutrients!$EE$8:$EE$228)/907))+0.007028328))","v":0.21951848091557827},{"$f":"IF((SUMPRODUCT(S$9:S$229,Nutrients!$EE$8:$EE$228))=0,S256,IF((SUMPRODUCT(S$9:S$229,Nutrients!$EE$8:$EE$228))>(1500*907),S256+0.14,S256+0.00000000006666*((SUMPRODUCT(S$9:S$229,Nutrients!$EE$8:$EE$228)/907))^3-0.00000023623322*((SUMPRODUCT(S$9:S$229,Nutrients!$EE$8:$EE$228)/907))^2+0.00029262722672*((SUMPRODUCT(S$9:S$229,Nutrients!$EE$8:$EE$228)/907))+0.007028328))","v":0.19265913031837059},{"$f":"IF((SUMPRODUCT(T$9:T$229,Nutrients!$EE$8:$EE$228))=0,T256,IF((SUMPRODUCT(T$9:T$229,Nutrients!$EE$8:$EE$228))>(1500*907),T256+0.14,T256+0.00000000006666*((SUMPRODUCT(T$9:T$229,Nutrients!$EE$8:$EE$228)/907))^3-0.00000023623322*((SUMPRODUCT(T$9:T$229,Nutrients!$EE$8:$EE$228)/907))^2+0.00029262722672*((SUMPRODUCT(T$9:T$229,Nutrients!$EE$8:$EE$228)/907))+0.007028328))","v":0.17461244688267821},{"$f":"IF((SUMPRODUCT(U$9:U$229,Nutrients!$EE$8:$EE$228))=0,U256,IF((SUMPRODUCT(U$9:U$229,Nutrients!$EE$8:$EE$228))>(1500*907),U256+0.14,U256+0.00000000006666*((SUMPRODUCT(U$9:U$229,Nutrients!$EE$8:$EE$228)/907))^3-0.00000023623322*((SUMPRODUCT(U$9:U$229,Nutrients!$EE$8:$EE$228)/907))^2+0.00029262722672*((SUMPRODUCT(U$9:U$229,Nutrients!$EE$8:$EE$228)/907))+0.007028328))","v":0.1653628769901988},null,{"$f":"IF((SUMPRODUCT(W$9:W$229,Nutrients!$EE$8:$EE$228))=0,W256,IF((SUMPRODUCT(W$9:W$229,Nutrients!$EE$8:$EE$228))>(1500*907),W256+0.14,W256+0.00000000006666*((SUMPRODUCT(W$9:W$229,Nutrients!$EE$8:$EE$228)/907))^3-0.00000023623322*((SUMPRODUCT(W$9:W$229,Nutrients!$EE$8:$EE$228)/907))^2+0.00029262722672*((SUMPRODUCT(W$9:W$229,Nutrients!$EE$8:$EE$228)/907))+0.007028328))","v":0.27671999071621556},{"$f":"IF((SUMPRODUCT(X$9:X$229,Nutrients!$EE$8:$EE$228))=0,X256,IF((SUMPRODUCT(X$9:X$229,Nutrients!$EE$8:$EE$228))>(1500*907),X256+0.14,X256+0.00000000006666*((SUMPRODUCT(X$9:X$229,Nutrients!$EE$8:$EE$228)/907))^3-0.00000023623322*((SUMPRODUCT(X$9:X$229,Nutrients!$EE$8:$EE$228)/907))^2+0.00029262722672*((SUMPRODUCT(X$9:X$229,Nutrients!$EE$8:$EE$228)/907))+0.007028328))","v":0.24056581232971511},{"$f":"IF((SUMPRODUCT(Y$9:Y$229,Nutrients!$EE$8:$EE$228))=0,Y256,IF((SUMPRODUCT(Y$9:Y$229,Nutrients!$EE$8:$EE$228))>(1500*907),Y256+0.14,Y256+0.00000000006666*((SUMPRODUCT(Y$9:Y$229,Nutrients!$EE$8:$EE$228)/907))^3-0.00000023623322*((SUMPRODUCT(Y$9:Y$229,Nutrients!$EE$8:$EE$228)/907))^2+0.00029262722672*((SUMPRODUCT(Y$9:Y$229,Nutrients!$EE$8:$EE$228)/907))+0.007028328))","v":0.20140694586883115},{"$f":"IF((SUMPRODUCT(Z$9:Z$229,Nutrients!$EE$8:$EE$228))=0,Z256,IF((SUMPRODUCT(Z$9:Z$229,Nutrients!$EE$8:$EE$228))>(1500*907),Z256+0.14,Z256+0.00000000006666*((SUMPRODUCT(Z$9:Z$229,Nutrients!$EE$8:$EE$228)/907))^3-0.00000023623322*((SUMPRODUCT(Z$9:Z$229,Nutrients!$EE$8:$EE$228)/907))^2+0.00029262722672*((SUMPRODUCT(Z$9:Z$229,Nutrients!$EE$8:$EE$228)/907))+0.007028328))","v":0.17454815564009177},{"$f":"IF((SUMPRODUCT(AA$9:AA$229,Nutrients!$EE$8:$EE$228))=0,AA256,IF((SUMPRODUCT(AA$9:AA$229,Nutrients!$EE$8:$EE$228))>(1500*907),AA256+0.14,AA256+0.00000000006666*((SUMPRODUCT(AA$9:AA$229,Nutrients!$EE$8:$EE$228)/907))^3-0.00000023623322*((SUMPRODUCT(AA$9:AA$229,Nutrients!$EE$8:$EE$228)/907))^2+0.00029262722672*((SUMPRODUCT(AA$9:AA$229,Nutrients!$EE$8:$EE$228)/907))+0.007028328))","v":0.15649836651793339},{"$f":"IF((SUMPRODUCT(AB$9:AB$229,Nutrients!$EE$8:$EE$228))=0,AB256,IF((SUMPRODUCT(AB$9:AB$229,Nutrients!$EE$8:$EE$228))>(1500*907),AB256+0.14,AB256+0.00000000006666*((SUMPRODUCT(AB$9:AB$229,Nutrients!$EE$8:$EE$228)/907))^3-0.00000023623322*((SUMPRODUCT(AB$9:AB$229,Nutrients!$EE$8:$EE$228)/907))^2+0.00029262722672*((SUMPRODUCT(AB$9:AB$229,Nutrients!$EE$8:$EE$228)/907))+0.007028328))","v":0.15252102777358306},null,{"$f":"IF((SUMPRODUCT(AD$9:AD$229,Nutrients!$EE$8:$EE$228))=0,AD256,IF((SUMPRODUCT(AD$9:AD$229,Nutrients!$EE$8:$EE$228))>(1500*907),AD256+0.14,AD256+0.00000000006666*((SUMPRODUCT(AD$9:AD$229,Nutrients!$EE$8:$EE$228)/907))^3-0.00000023623322*((SUMPRODUCT(AD$9:AD$229,Nutrients!$EE$8:$EE$228)/907))^2+0.00029262722672*((SUMPRODUCT(AD$9:AD$229,Nutrients!$EE$8:$EE$228)/907))+0.007028328))","v":0.25860768871138362},{"$f":"IF((SUMPRODUCT(AE$9:AE$229,Nutrients!$EE$8:$EE$228))=0,AE256,IF((SUMPRODUCT(AE$9:AE$229,Nutrients!$EE$8:$EE$228))>(1500*907),AE256+0.14,AE256+0.00000000006666*((SUMPRODUCT(AE$9:AE$229,Nutrients!$EE$8:$EE$228)/907))^3-0.00000023623322*((SUMPRODUCT(AE$9:AE$229,Nutrients!$EE$8:$EE$228)/907))^2+0.00029262722672*((SUMPRODUCT(AE$9:AE$229,Nutrients!$EE$8:$EE$228)/907))+0.007028328))","v":0.22245372739854399},{"$f":"IF((SUMPRODUCT(AF$9:AF$229,Nutrients!$EE$8:$EE$228))=0,AF256,IF((SUMPRODUCT(AF$9:AF$229,Nutrients!$EE$8:$EE$228))>(1500*907),AF256+0.14,AF256+0.00000000006666*((SUMPRODUCT(AF$9:AF$229,Nutrients!$EE$8:$EE$228)/907))^3-0.00000023623322*((SUMPRODUCT(AF$9:AF$229,Nutrients!$EE$8:$EE$228)/907))^2+0.00029262722672*((SUMPRODUCT(AF$9:AF$229,Nutrients!$EE$8:$EE$228)/907))+0.007028328))","v":0.18329666644338688},{"$f":"IF((SUMPRODUCT(AG$9:AG$229,Nutrients!$EE$8:$EE$228))=0,AG256,IF((SUMPRODUCT(AG$9:AG$229,Nutrients!$EE$8:$EE$228))>(1500*907),AG256+0.14,AG256+0.00000000006666*((SUMPRODUCT(AG$9:AG$229,Nutrients!$EE$8:$EE$228)/907))^3-0.00000023623322*((SUMPRODUCT(AG$9:AG$229,Nutrients!$EE$8:$EE$228)/907))^2+0.00029262722672*((SUMPRODUCT(AG$9:AG$229,Nutrients!$EE$8:$EE$228)/907))+0.007028328))","v":0.15643324564872627},{"$f":"IF((SUMPRODUCT(AH$9:AH$229,Nutrients!$EE$8:$EE$228))=0,AH256,IF((SUMPRODUCT(AH$9:AH$229,Nutrients!$EE$8:$EE$228))>(1500*907),AH256+0.14,AH256+0.00000000006666*((SUMPRODUCT(AH$9:AH$229,Nutrients!$EE$8:$EE$228)/907))^3-0.00000023623322*((SUMPRODUCT(AH$9:AH$229,Nutrients!$EE$8:$EE$228)/907))^2+0.00029262722672*((SUMPRODUCT(AH$9:AH$229,Nutrients!$EE$8:$EE$228)/907))+0.007028328))","v":0.15027872075147666},{"$f":"IF((SUMPRODUCT(AI$9:AI$229,Nutrients!$EE$8:$EE$228))=0,AI256,IF((SUMPRODUCT(AI$9:AI$229,Nutrients!$EE$8:$EE$228))>(1500*907),AI256+0.14,AI256+0.00000000006666*((SUMPRODUCT(AI$9:AI$229,Nutrients!$EE$8:$EE$228)/907))^3-0.00000023623322*((SUMPRODUCT(AI$9:AI$229,Nutrients!$EE$8:$EE$228)/907))^2+0.00029262722672*((SUMPRODUCT(AI$9:AI$229,Nutrients!$EE$8:$EE$228)/907))+0.007028328))","v":0.14855506795365073},null,{"$f":"IF((SUMPRODUCT(AK$9:AK$229,Nutrients!$EE$8:$EE$228))=0,AK256,IF((SUMPRODUCT(AK$9:AK$229,Nutrients!$EE$8:$EE$228))>(1500*907),AK256+0.14,AK256+0.00000000006666*((SUMPRODUCT(AK$9:AK$229,Nutrients!$EE$8:$EE$228)/907))^3-0.00000023623322*((SUMPRODUCT(AK$9:AK$229,Nutrients!$EE$8:$EE$228)/907))^2+0.00029262722672*((SUMPRODUCT(AK$9:AK$229,Nutrients!$EE$8:$EE$228)/907))+0.007028328))","v":0.24049193160861018},{"$f":"IF((SUMPRODUCT(AL$9:AL$229,Nutrients!$EE$8:$EE$228))=0,AL256,IF((SUMPRODUCT(AL$9:AL$229,Nutrients!$EE$8:$EE$228))>(1500*907),AL256+0.14,AL256+0.00000000006666*((SUMPRODUCT(AL$9:AL$229,Nutrients!$EE$8:$EE$228)/907))^3-0.00000023623322*((SUMPRODUCT(AL$9:AL$229,Nutrients!$EE$8:$EE$228)/907))^2+0.00029262722672*((SUMPRODUCT(AL$9:AL$229,Nutrients!$EE$8:$EE$228)/907))+0.007028328))","v":0.20434169345356393},{"$f":"IF((SUMPRODUCT(AM$9:AM$229,Nutrients!$EE$8:$EE$228))=0,AM256,IF((SUMPRODUCT(AM$9:AM$229,Nutrients!$EE$8:$EE$228))>(1500*907),AM256+0.14,AM256+0.00000000006666*((SUMPRODUCT(AM$9:AM$229,Nutrients!$EE$8:$EE$228)/907))^3-0.00000023623322*((SUMPRODUCT(AM$9:AM$229,Nutrients!$EE$8:$EE$228)/907))^2+0.00029262722672*((SUMPRODUCT(AM$9:AM$229,Nutrients!$EE$8:$EE$228)/907))+0.007028328))","v":0.16518265002253998},{"$f":"IF((SUMPRODUCT(AN$9:AN$229,Nutrients!$EE$8:$EE$228))=0,AN256,IF((SUMPRODUCT(AN$9:AN$229,Nutrients!$EE$8:$EE$228))>(1500*907),AN256+0.14,AN256+0.00000000006666*((SUMPRODUCT(AN$9:AN$229,Nutrients!$EE$8:$EE$228)/907))^3-0.00000023623322*((SUMPRODUCT(AN$9:AN$229,Nutrients!$EE$8:$EE$228)/907))^2+0.00029262722672*((SUMPRODUCT(AN$9:AN$229,Nutrients!$EE$8:$EE$228)/907))+0.007028328))","v":0.14969450809977289},{"$f":"IF((SUMPRODUCT(AO$9:AO$229,Nutrients!$EE$8:$EE$228))=0,AO256,IF((SUMPRODUCT(AO$9:AO$229,Nutrients!$EE$8:$EE$228))>(1500*907),AO256+0.14,AO256+0.00000000006666*((SUMPRODUCT(AO$9:AO$229,Nutrients!$EE$8:$EE$228)/907))^3-0.00000023623322*((SUMPRODUCT(AO$9:AO$229,Nutrients!$EE$8:$EE$228)/907))^2+0.00029262722672*((SUMPRODUCT(AO$9:AO$229,Nutrients!$EE$8:$EE$228)/907))+0.007028328))","v":0.14631558429390673},{"$f":"IF((SUMPRODUCT(AP$9:AP$229,Nutrients!$EE$8:$EE$228))=0,AP256,IF((SUMPRODUCT(AP$9:AP$229,Nutrients!$EE$8:$EE$228))>(1500*907),AP256+0.14,AP256+0.00000000006666*((SUMPRODUCT(AP$9:AP$229,Nutrients!$EE$8:$EE$228)/907))^3-0.00000023623322*((SUMPRODUCT(AP$9:AP$229,Nutrients!$EE$8:$EE$228)/907))^2+0.00029262722672*((SUMPRODUCT(AP$9:AP$229,Nutrients!$EE$8:$EE$228)/907))+0.007028328))","v":0.14459170049900485},null,{"$f":"IF((SUMPRODUCT(AR$9:AR$229,Nutrients!$EE$8:$EE$228))=0,AR256,IF((SUMPRODUCT(AR$9:AR$229,Nutrients!$EE$8:$EE$228))>(1500*907),AR256+0.14,AR256+0.00000000006666*((SUMPRODUCT(AR$9:AR$229,Nutrients!$EE$8:$EE$228)/907))^3-0.00000023623322*((SUMPRODUCT(AR$9:AR$229,Nutrients!$EE$8:$EE$228)/907))^2+0.00029262722672*((SUMPRODUCT(AR$9:AR$229,Nutrients!$EE$8:$EE$228)/907))+0.007028328))","v":0.22238136773774009},{"$f":"IF((SUMPRODUCT(AS$9:AS$229,Nutrients!$EE$8:$EE$228))=0,AS256,IF((SUMPRODUCT(AS$9:AS$229,Nutrients!$EE$8:$EE$228))>(1500*907),AS256+0.14,AS256+0.00000000006666*((SUMPRODUCT(AS$9:AS$229,Nutrients!$EE$8:$EE$228)/907))^3-0.00000023623322*((SUMPRODUCT(AS$9:AS$229,Nutrients!$EE$8:$EE$228)/907))^2+0.00029262722672*((SUMPRODUCT(AS$9:AS$229,Nutrients!$EE$8:$EE$228)/907))+0.007028328))","v":0.1862296314130277},{"$f":"IF((SUMPRODUCT(AT$9:AT$229,Nutrients!$EE$8:$EE$228))=0,AT256,IF((SUMPRODUCT(AT$9:AT$229,Nutrients!$EE$8:$EE$228))>(1500*907),AT256+0.14,AT256+0.00000000006666*((SUMPRODUCT(AT$9:AT$229,Nutrients!$EE$8:$EE$228)/907))^3-0.00000023623322*((SUMPRODUCT(AT$9:AT$229,Nutrients!$EE$8:$EE$228)/907))^2+0.00029262722672*((SUMPRODUCT(AT$9:AT$229,Nutrients!$EE$8:$EE$228)/907))+0.007028328))","v":0.15081274244312751},{"$f":"IF((SUMPRODUCT(AU$9:AU$229,Nutrients!$EE$8:$EE$228))=0,AU256,IF((SUMPRODUCT(AU$9:AU$229,Nutrients!$EE$8:$EE$228))>(1500*907),AU256+0.14,AU256+0.00000000006666*((SUMPRODUCT(AU$9:AU$229,Nutrients!$EE$8:$EE$228)/907))^3-0.00000023623322*((SUMPRODUCT(AU$9:AU$229,Nutrients!$EE$8:$EE$228)/907))^2+0.00029262722672*((SUMPRODUCT(AU$9:AU$229,Nutrients!$EE$8:$EE$228)/907))+0.007028328))","v":0.1457314767223328},{"$f":"IF((SUMPRODUCT(AV$9:AV$229,Nutrients!$EE$8:$EE$228))=0,AV256,IF((SUMPRODUCT(AV$9:AV$229,Nutrients!$EE$8:$EE$228))>(1500*907),AV256+0.14,AV256+0.00000000006666*((SUMPRODUCT(AV$9:AV$229,Nutrients!$EE$8:$EE$228)/907))^3-0.00000023623322*((SUMPRODUCT(AV$9:AV$229,Nutrients!$EE$8:$EE$228)/907))^2+0.00029262722672*((SUMPRODUCT(AV$9:AV$229,Nutrients!$EE$8:$EE$228)/907))+0.007028328))","v":0.14235188190251322},{"$f":"IF((SUMPRODUCT(AW$9:AW$229,Nutrients!$EE$8:$EE$228))=0,AW256,IF((SUMPRODUCT(AW$9:AW$229,Nutrients!$EE$8:$EE$228))>(1500*907),AW256+0.14,AW256+0.00000000006666*((SUMPRODUCT(AW$9:AW$229,Nutrients!$EE$8:$EE$228)/907))^3-0.00000023623322*((SUMPRODUCT(AW$9:AW$229,Nutrients!$EE$8:$EE$228)/907))^2+0.00029262722672*((SUMPRODUCT(AW$9:AW$229,Nutrients!$EE$8:$EE$228)/907))+0.007028328))","v":0.14062779248493446}]
["Avail P:calorie ratio g/mcal",{"$f":"IF(B$5=\"\",\"\",(B257)/(B246*2.2046)*10000)","v":1.0033088419067715},0.89010895745377694,0.77668715413339373,0.69541943453482424,0.63585195401614236,0.60998469661164556,null,{"$f":"IF(I$5=\"\",\"\",(I257)/(I246*2.2046)*10000)","v":0.94302978854330266},0.8310093042883554,0.71097367964041902,0.62883445148104844,0.57372597585416241,0.54571197827220963,null,{"$f":"IF(P$5=\"\",\"\",(P257)/(P246*2.2046)*10000)","v":0.88048392023312938},0.76967106088733794,0.65088954538218047,0.56966285127162175,0.51516800075999702,0.48744435791615065,null,{"$f":"IF(W$5=\"\",\"\",(W257)/(W246*2.2046)*10000)","v":0.81903171735349201},0.70940339956122989,0.59188425004749656,0.51153721860401025,0.45761659630429302,0.44563014200359419,null,{"$f":"IF(AD$5=\"\",\"\",(AD257)/(AD246*2.2046)*10000)","v":0.7586261038797022},0.65019593377556328,0.53392499630836199,0.45438810164298332,0.43567790380288546,0.43033209953305934,null,{"$f":"IF(AK$5=\"\",\"\",(AK257)/(AK246*2.2046)*10000)","v":0.69914190052454295},0.59202042189890325,0.47694022646098433,0.43116751664028624,0.42056223632993189,0.41526875333962243,null,{"$f":"IF(AR$5=\"\",\"\",(AR257)/(AR246*2.2046)*10000)","v":0.64091660667815353},0.53486807163997718,0.43177171675165033,0.41619543851599911,0.40569389319367288,0.40045246951213159]
["Stand. Dig. P w/out phytase, %",{"$f":"((SUMPRODUCT(B$9:B$229,Nutrients!$DR$8:$DR$228)+(IF($A$7=Nutrients!$B$8,Nutrients!$DR$8,Nutrients!$DR$9)*B$7)+(((IF($A$8=Nutrients!$B$79,Nutrients!$DR$79,(IF($A$8=Nutrients!$B$77,Nutrients!$DR$77,Nutrients!$DR$78)))))*B$8))/2000)","v":0.28998961246592625},{"$f":"((SUMPRODUCT(C$9:C$229,Nutrients!$DR$8:$DR$228)+(IF($A$7=Nutrients!$B$8,Nutrients!$DR$8,Nutrients!$DR$9)*C$7)+(((IF($A$8=Nutrients!$B$79,Nutrients!$DR$79,(IF($A$8=Nutrients!$B$77,Nutrients!$DR$77,Nutrients!$DR$78)))))*C$8))/2000)","v":0.25045553392749997},{"$f":"((SUMPRODUCT(D$9:D$229,Nutrients!$DR$8:$DR$228)+(IF($A$7=Nutrients!$B$8,Nutrients!$DR$8,Nutrients!$DR$9)*D$7)+(((IF($A$8=Nutrients!$B$79,Nutrients!$DR$79,(IF($A$8=Nutrients!$B$77,Nutrients!$DR$77,Nutrients!$DR$78)))))*D$8))/2000)","v":0.21159356316179678},{"$f":"((SUMPRODUCT(E$9:E$229,Nutrients!$DR$8:$DR$228)+(IF($A$7=Nutrients!$B$8,Nutrients!$DR$8,Nutrients!$DR$9)*E$7)+(((IF($A$8=Nutrients!$B$79,Nutrients!$DR$79,(IF($A$8=Nutrients!$B$77,Nutrients!$DR$77,Nutrients!$DR$78)))))*E$8))/2000)","v":0.18289955187368459},{"$f":"((SUMPRODUCT(F$9:F$229,Nutrients!$DR$8:$DR$228)+(IF($A$7=Nutrients!$B$8,Nutrients!$DR$8,Nutrients!$DR$9)*F$7)+(((IF($A$8=Nutrients!$B$79,Nutrients!$DR$79,(IF($A$8=Nutrients!$B$77,Nutrients!$DR$77,Nutrients!$DR$78)))))*F$8))/2000)","v":0.16219699119534683},{"$f":"((SUMPRODUCT(G$9:G$229,Nutrients!$DR$8:$DR$228)+(IF($A$7=Nutrients!$B$8,Nutrients!$DR$8,Nutrients!$DR$9)*G$7)+(((IF($A$8=Nutrients!$B$79,Nutrients!$DR$79,(IF($A$8=Nutrients!$B$77,Nutrients!$DR$77,Nutrients!$DR$78)))))*G$8))/2000)","v":0.15287313523350393},null,{"$f":"((SUMPRODUCT(I$9:I$229,Nutrients!$DR$8:$DR$228)+(IF($A$7=Nutrients!$B$8,Nutrients!$DR$8,Nutrients!$DR$9)*I$7)+(((IF($A$8=Nutrients!$B$79,Nutrients!$DR$79,(IF($A$8=Nutrients!$B$77,Nutrients!$DR$77,Nutrients!$DR$78)))))*I$8))/2000)","v":0.29063539005684463},{"$f":"((SUMPRODUCT(J$9:J$229,Nutrients!$DR$8:$DR$228)+(IF($A$7=Nutrients!$B$8,Nutrients!$DR$8,Nutrients!$DR$9)*J$7)+(((IF($A$8=Nutrients!$B$79,Nutrients!$DR$79,(IF($A$8=Nutrients!$B$77,Nutrients!$DR$77,Nutrients!$DR$78)))))*J$8))/2000)","v":0.25109670299693432},{"$f":"((SUMPRODUCT(K$9:K$229,Nutrients!$DR$8:$DR$228)+(IF($A$7=Nutrients!$B$8,Nutrients!$DR$8,Nutrients!$DR$9)*K$7)+(((IF($A$8=Nutrients!$B$79,Nutrients!$DR$79,(IF($A$8=Nutrients!$B$77,Nutrients!$DR$77,Nutrients!$DR$78)))))*K$8))/2000)","v":0.2099760712944779},{"$f":"((SUMPRODUCT(L$9:L$229,Nutrients!$DR$8:$DR$228)+(IF($A$7=Nutrients!$B$8,Nutrients!$DR$8,Nutrients!$DR$9)*L$7)+(((IF($A$8=Nutrients!$B$79,Nutrients!$DR$79,(IF($A$8=Nutrients!$B$77,Nutrients!$DR$77,Nutrients!$DR$78)))))*L$8))/2000)","v":0.18074246472987032},{"$f":"((SUMPRODUCT(M$9:M$229,Nutrients!$DR$8:$DR$228)+(IF($A$7=Nutrients!$B$8,Nutrients!$DR$8,Nutrients!$DR$9)*M$7)+(((IF($A$8=Nutrients!$B$79,Nutrients!$DR$79,(IF($A$8=Nutrients!$B$77,Nutrients!$DR$77,Nutrients!$DR$78)))))*M$8))/2000)","v":0.16114825179142095},{"$f":"((SUMPRODUCT(N$9:N$229,Nutrients!$DR$8:$DR$228)+(IF($A$7=Nutrients!$B$8,Nutrients!$DR$8,Nutrients!$DR$9)*N$7)+(((IF($A$8=Nutrients!$B$79,Nutrients!$DR$79,(IF($A$8=Nutrients!$B$77,Nutrients!$DR$77,Nutrients!$DR$78)))))*N$8))/2000)","v":0.15111004508100334},null,{"$f":"((SUMPRODUCT(P$9:P$229,Nutrients!$DR$8:$DR$228)+(IF($A$7=Nutrients!$B$8,Nutrients!$DR$8,Nutrients!$DR$9)*P$7)+(((IF($A$8=Nutrients!$B$79,Nutrients!$DR$79,(IF($A$8=Nutrients!$B$77,Nutrients!$DR$77,Nutrients!$DR$78)))))*P$8))/2000)","v":0.29033124916612574},{"$f":"((SUMPRODUCT(Q$9:Q$229,Nutrients!$DR$8:$DR$228)+(IF($A$7=Nutrients!$B$8,Nutrients!$DR$8,Nutrients!$DR$9)*Q$7)+(((IF($A$8=Nutrients!$B$79,Nutrients!$DR$79,(IF($A$8=Nutrients!$B$77,Nutrients!$DR$77,Nutrients!$DR$78)))))*Q$8))/2000)","v":0.2507912471276364},{"$f":"((SUMPRODUCT(R$9:R$229,Nutrients!$DR$8:$DR$228)+(IF($A$7=Nutrients!$B$8,Nutrients!$DR$8,Nutrients!$DR$9)*R$7)+(((IF($A$8=Nutrients!$B$79,Nutrients!$DR$79,(IF($A$8=Nutrients!$B$77,Nutrients!$DR$77,Nutrients!$DR$78)))))*R$8))/2000)","v":0.20966863060366833},{"$f":"((SUMPRODUCT(S$9:S$229,Nutrients!$DR$8:$DR$228)+(IF($A$7=Nutrients!$B$8,Nutrients!$DR$8,Nutrients!$DR$9)*S$7)+(((IF($A$8=Nutrients!$B$79,Nutrients!$DR$79,(IF($A$8=Nutrients!$B$77,Nutrients!$DR$77,Nutrients!$DR$78)))))*S$8))/2000)","v":0.18043580473363321},{"$f":"((SUMPRODUCT(T$9:T$229,Nutrients!$DR$8:$DR$228)+(IF($A$7=Nutrients!$B$8,Nutrients!$DR$8,Nutrients!$DR$9)*T$7)+(((IF($A$8=Nutrients!$B$79,Nutrients!$DR$79,(IF($A$8=Nutrients!$B$77,Nutrients!$DR$77,Nutrients!$DR$78)))))*T$8))/2000)","v":0.16083964513914442},{"$f":"((SUMPRODUCT(U$9:U$229,Nutrients!$DR$8:$DR$228)+(IF($A$7=Nutrients!$B$8,Nutrients!$DR$8,Nutrients!$DR$9)*U$7)+(((IF($A$8=Nutrients!$B$79,Nutrients!$DR$79,(IF($A$8=Nutrients!$B$77,Nutrients!$DR$77,Nutrients!$DR$78)))))*U$8))/2000)","v":0.15079941692859203},null,{"$f":"((SUMPRODUCT(W$9:W$229,Nutrients!$DR$8:$DR$228)+(IF($A$7=Nutrients!$B$8,Nutrients!$DR$8,Nutrients!$DR$9)*W$7)+(((IF($A$8=Nutrients!$B$79,Nutrients!$DR$79,(IF($A$8=Nutrients!$B$77,Nutrients!$DR$77,Nutrients!$DR$78)))))*W$8))/2000)","v":0.29002607080923326},{"$f":"((SUMPRODUCT(X$9:X$229,Nutrients!$DR$8:$DR$228)+(IF($A$7=Nutrients!$B$8,Nutrients!$DR$8,Nutrients!$DR$9)*X$7)+(((IF($A$8=Nutrients!$B$79,Nutrients!$DR$79,(IF($A$8=Nutrients!$B$77,Nutrients!$DR$77,Nutrients!$DR$78)))))*X$8))/2000)","v":0.25048454605647996},{"$f":"((SUMPRODUCT(Y$9:Y$229,Nutrients!$DR$8:$DR$228)+(IF($A$7=Nutrients!$B$8,Nutrients!$DR$8,Nutrients!$DR$9)*Y$7)+(((IF($A$8=Nutrients!$B$79,Nutrients!$DR$79,(IF($A$8=Nutrients!$B$77,Nutrients!$DR$77,Nutrients!$DR$78)))))*Y$8))/2000)","v":0.20936416204908243},{"$f":"((SUMPRODUCT(Z$9:Z$229,Nutrients!$DR$8:$DR$228)+(IF($A$7=Nutrients!$B$8,Nutrients!$DR$8,Nutrients!$DR$9)*Z$7)+(((IF($A$8=Nutrients!$B$79,Nutrients!$DR$79,(IF($A$8=Nutrients!$B$77,Nutrients!$DR$77,Nutrients!$DR$78)))))*Z$8))/2000)","v":0.18013278512287215},{"$f":"((SUMPRODUCT(AA$9:AA$229,Nutrients!$DR$8:$DR$228)+(IF($A$7=Nutrients!$B$8,Nutrients!$DR$8,Nutrients!$DR$9)*AA$7)+(((IF($A$8=Nutrients!$B$79,Nutrients!$DR$79,(IF($A$8=Nutrients!$B$77,Nutrients!$DR$77,Nutrients!$DR$78)))))*AA$8))/2000)","v":0.16052859516000723},{"$f":"((SUMPRODUCT(AB$9:AB$229,Nutrients!$DR$8:$DR$228)+(IF($A$7=Nutrients!$B$8,Nutrients!$DR$8,Nutrients!$DR$9)*AB$7)+(((IF($A$8=Nutrients!$B$79,Nutrients!$DR$79,(IF($A$8=Nutrients!$B$77,Nutrients!$DR$77,Nutrients!$DR$78)))))*AB$8))/2000)","v":0.15512562211623898},null,{"$f":"((SUMPRODUCT(AD$9:AD$229,Nutrients!$DR$8:$DR$228)+(IF($A$7=Nutrients!$B$8,Nutrients!$DR$8,Nutrients!$DR$9)*AD$7)+(((IF($A$8=Nutrients!$B$79,Nutrients!$DR$79,(IF($A$8=Nutrients!$B$77,Nutrients!$DR$77,Nutrients!$DR$78)))))*AD$8))/2000)","v":0.2897196191323918},{"$f":"((SUMPRODUCT(AE$9:AE$229,Nutrients!$DR$8:$DR$228)+(IF($A$7=Nutrients!$B$8,Nutrients!$DR$8,Nutrients!$DR$9)*AE$7)+(((IF($A$8=Nutrients!$B$79,Nutrients!$DR$79,(IF($A$8=Nutrients!$B$77,Nutrients!$DR$77,Nutrients!$DR$78)))))*AE$8))/2000)","v":0.25017865566664527},{"$f":"((SUMPRODUCT(AF$9:AF$229,Nutrients!$DR$8:$DR$228)+(IF($A$7=Nutrients!$B$8,Nutrients!$DR$8,Nutrients!$DR$9)*AF$7)+(((IF($A$8=Nutrients!$B$79,Nutrients!$DR$79,(IF($A$8=Nutrients!$B$77,Nutrients!$DR$77,Nutrients!$DR$78)))))*AF$8))/2000)","v":0.20906294015242968},{"$f":"((SUMPRODUCT(AG$9:AG$229,Nutrients!$DR$8:$DR$228)+(IF($A$7=Nutrients!$B$8,Nutrients!$DR$8,Nutrients!$DR$9)*AG$7)+(((IF($A$8=Nutrients!$B$79,Nutrients!$DR$79,(IF($A$8=Nutrients!$B$77,Nutrients!$DR$77,Nutrients!$DR$78)))))*AG$8))/2000)","v":0.17981958997954944},{"$f":"((SUMPRODUCT(AH$9:AH$229,Nutrients!$DR$8:$DR$228)+(IF($A$7=Nutrients!$B$8,Nutrients!$DR$8,Nutrients!$DR$9)*AH$7)+(((IF($A$8=Nutrients!$B$79,Nutrients!$DR$79,(IF($A$8=Nutrients!$B$77,Nutrients!$DR$77,Nutrients!$DR$78)))))*AH$8))/2000)","v":0.1706672322404624},{"$f":"((SUMPRODUCT(AI$9:AI$229,Nutrients!$DR$8:$DR$228)+(IF($A$7=Nutrients!$B$8,Nutrients!$DR$8,Nutrients!$DR$9)*AI$7)+(((IF($A$8=Nutrients!$B$79,Nutrients!$DR$79,(IF($A$8=Nutrients!$B$77,Nutrients!$DR$77,Nutrients!$DR$78)))))*AI$8))/2000)","v":0.16723605449885276},null,{"$f":"((SUMPRODUCT(AK$9:AK$229,Nutrients!$DR$8:$DR$228)+(IF($A$7=Nutrients!$B$8,Nutrients!$DR$8,Nutrients!$DR$9)*AK$7)+(((IF($A$8=Nutrients!$B$79,Nutrients!$DR$79,(IF($A$8=Nutrients!$B$77,Nutrients!$DR$77,Nutrients!$DR$78)))))*AK$8))/2000)","v":0.28940423361449769},{"$f":"((SUMPRODUCT(AL$9:AL$229,Nutrients!$DR$8:$DR$228)+(IF($A$7=Nutrients!$B$8,Nutrients!$DR$8,Nutrients!$DR$9)*AL$7)+(((IF($A$8=Nutrients!$B$79,Nutrients!$DR$79,(IF($A$8=Nutrients!$B$77,Nutrients!$DR$77,Nutrients!$DR$78)))))*AL$8))/2000)","v":0.24987289711172081},{"$f":"((SUMPRODUCT(AM$9:AM$229,Nutrients!$DR$8:$DR$228)+(IF($A$7=Nutrients!$B$8,Nutrients!$DR$8,Nutrients!$DR$9)*AM$7)+(((IF($A$8=Nutrients!$B$79,Nutrients!$DR$79,(IF($A$8=Nutrients!$B$77,Nutrients!$DR$77,Nutrients!$DR$78)))))*AM$8))/2000)","v":0.20875205551292406},{"$f":"((SUMPRODUCT(AN$9:AN$229,Nutrients!$DR$8:$DR$228)+(IF($A$7=Nutrients!$B$8,Nutrients!$DR$8,Nutrients!$DR$9)*AN$7)+(((IF($A$8=Nutrients!$B$79,Nutrients!$DR$79,(IF($A$8=Nutrients!$B$77,Nutrients!$DR$77,Nutrients!$DR$78)))))*AN$8))/2000)","v":0.1895058823612876},{"$f":"((SUMPRODUCT(AO$9:AO$229,Nutrients!$DR$8:$DR$228)+(IF($A$7=Nutrients!$B$8,Nutrients!$DR$8,Nutrients!$DR$9)*AO$7)+(((IF($A$8=Nutrients!$B$79,Nutrients!$DR$79,(IF($A$8=Nutrients!$B$77,Nutrients!$DR$77,Nutrients!$DR$78)))))*AO$8))/2000)","v":0.18278496498648283},{"$f":"((SUMPRODUCT(AP$9:AP$229,Nutrients!$DR$8:$DR$228)+(IF($A$7=Nutrients!$B$8,Nutrients!$DR$8,Nutrients!$DR$9)*AP$7)+(((IF($A$8=Nutrients!$B$79,Nutrients!$DR$79,(IF($A$8=Nutrients!$B$77,Nutrients!$DR$77,Nutrients!$DR$78)))))*AP$8))/2000)","v":0.17935318995611466},null,{"$f":"((SUMPRODUCT(AR$9:AR$229,Nutrients!$DR$8:$DR$228)+(IF($A$7=Nutrients!$B$8,Nutrients!$DR$8,Nutrients!$DR$9)*AR$7)+(((IF($A$8=Nutrients!$B$79,Nutrients!$DR$79,(IF($A$8=Nutrients!$B$77,Nutrients!$DR$77,Nutrients!$DR$78)))))*AR$8))/2000)","v":0.28910227622777618},{"$f":"((SUMPRODUCT(AS$9:AS$229,Nutrients!$DR$8:$DR$228)+(IF($A$7=Nutrients!$B$8,Nutrients!$DR$8,Nutrients!$DR$9)*AS$7)+(((IF($A$8=Nutrients!$B$79,Nutrients!$DR$79,(IF($A$8=Nutrients!$B$77,Nutrients!$DR$77,Nutrients!$DR$78)))))*AS$8))/2000)","v":0.24956706591016301},{"$f":"((SUMPRODUCT(AT$9:AT$229,Nutrients!$DR$8:$DR$228)+(IF($A$7=Nutrients!$B$8,Nutrients!$DR$8,Nutrients!$DR$9)*AT$7)+(((IF($A$8=Nutrients!$B$79,Nutrients!$DR$79,(IF($A$8=Nutrients!$B$77,Nutrients!$DR$77,Nutrients!$DR$78)))))*AT$8))/2000)","v":0.21173528142680961},{"$f":"((SUMPRODUCT(AU$9:AU$229,Nutrients!$DR$8:$DR$228)+(IF($A$7=Nutrients!$B$8,Nutrients!$DR$8,Nutrients!$DR$9)*AU$7)+(((IF($A$8=Nutrients!$B$79,Nutrients!$DR$79,(IF($A$8=Nutrients!$B$77,Nutrients!$DR$77,Nutrients!$DR$78)))))*AU$8))/2000)","v":0.20162388681282672},{"$f":"((SUMPRODUCT(AV$9:AV$229,Nutrients!$DR$8:$DR$228)+(IF($A$7=Nutrients!$B$8,Nutrients!$DR$8,Nutrients!$DR$9)*AV$7)+(((IF($A$8=Nutrients!$B$79,Nutrients!$DR$79,(IF($A$8=Nutrients!$B$77,Nutrients!$DR$77,Nutrients!$DR$78)))))*AV$8))/2000)","v":0.19490123439834847},{"$f":"((SUMPRODUCT(AW$9:AW$229,Nutrients!$DR$8:$DR$228)+(IF($A$7=Nutrients!$B$8,Nutrients!$DR$8,Nutrients!$DR$9)*AW$7)+(((IF($A$8=Nutrients!$B$79,Nutrients!$DR$79,(IF($A$8=Nutrients!$B$77,Nutrients!$DR$77,Nutrients!$DR$78)))))*AW$8))/2000)","v":0.19146892768976367}]
["Stand. Dig. P with phytase, %",{"$f":"B259+0.11","v":0.39998961246592624},0.36045553392749996,0.32159356316179677,0.2928995518736846,0.27219699119534685,0.26287313523350392,null,{"$f":"I259+0.11","v":0.40063539005684462},0.3610967029969343,0.31997607129447792,0.29074246472987031,0.27114825179142094,0.26111004508100333,null,{"$f":"P259+0.11","v":0.40033124916612572},0.36079124712763638,0.31966863060366835,0.29043580473363323,0.27083964513914444,0.26079941692859204,null,{"$f":"W259+0.11","v":0.40002607080923325},0.36048454605647995,0.31936416204908241,0.29013278512287216,0.27052859516000721,0.26512562211623897,null,{"$f":"AD259+0.11","v":0.39971961913239179},0.36017865566664525,0.3190629401524297,0.28981958997954943,0.28066723224046242,0.27723605449885275,null,{"$f":"AK259+0.11","v":0.39940423361449767},0.35987289711172082,0.31875205551292407,0.29950588236128761,0.29278496498648282,0.28935318995611464,null,{"$f":"AR259+0.11","v":0.39910227622777616},0.35956706591016302,0.32173528142680963,0.31162388681282671,0.30490123439834849,0.30146892768976369]
["Ca:P",{"$f":"B254/B255","v":1.3017138684764227},1.3021894221424188,1.3373095283032115,1.3415645597438779,1.3249751835185248,1.3266649538806439,null,{"$f":"I254/I255","v":1.3035373793667819},1.3057816051169919,1.3413429570053543,1.3427101194906674,1.3275661168740231,1.3280665200209849,null,{"$f":"P254/P255","v":1.30624373983498},1.3088072492290455,1.3448772608278659,1.3466000091149726,1.3317113255983364,1.3324006313504164,null,{"$f":"W254/W255","v":1.3089711851814325},1.3118599486446652,1.3465888892835964,1.3484754424927274,1.3337712039295542,1.3295885287660878,null,{"$f":"AD254/AD255","v":1.3109969508789856},1.3141152064639363,1.3491853939261091,1.3514831520307136,1.346009901834416,1.3520351039276515,null,{"$f":"AK254/AK255","v":1.3127420298103183},1.3159770014902363,1.3514433137183299,1.362000676020483,1.3578996010096973,1.3639196810931227,null,{"$f":"AR254/AR255","v":1.3154779236355407},1.3190648085728622,1.3574925460813911,1.3732712062672605,1.3690396450906208,1.3750443110061765]
["Ca:STTD P",{"$f":"B254/B260","v":1.7400120914159756},1.7384331182595809,1.7871189885452841,1.7907878953733971,1.7690318502967193,1.7699999245766229,null,{"$f":"I254/I260","v":1.7390947522525178},1.7394733945411514,1.7901536857091915,1.7903324404732424,1.7692012645478592,1.7692431926283587,null,{"$f":"P254/P260","v":1.7399665476584543},1.7404475706682694,1.7913130289733596,1.7916037179209594,1.7705536672772642,1.7706618049708802,null,{"$f":"W254/W260","v":1.7408443112740986},1.7414295831001108,1.7900464239206151,1.7902006119957432,1.7690793239772846,1.7577788521867992,null,{"$f":"AD254/AD260","v":1.7407659452194344},1.7413403213708134,1.789965357076617,1.7901875178321547,1.770694657226239,1.7707053722981851,null,{"$f":"AK254/AK260","v":1.7402455279351765},1.7407153408948701,1.7893359709894476,1.7908219341310927,1.7708321564321812,1.7708420432394054,null,{"$f":"AR254/AR260","v":1.741111094535474},1.7416957571781251,1.7909173672144312,1.7909482663247864,1.7709585954998401,1.7709695245255066]
["Cost/ton",{"$f":"(SUMPRODUCT(B$9:B$229,Nutrients!$DX$8:$DX$228)+(IF($A$7=Nutrients!$B$8,Nutrients!$DX$8,Nutrients!$DX$9)*B$7)+(((IF($A$8=Nutrients!$B$79,Nutrients!$DX$79,(IF($A$8=Nutrients!$B$77,Nutrients!$DX$77,Nutrients!$DX$78)))))*B$8))","v":219.06090724554412},{"$f":"(SUMPRODUCT(C$9:C$229,Nutrients!$DX$8:$DX$228)+(IF($A$7=Nutrients!$B$8,Nutrients!$DX$8,Nutrients!$DX$9)*C$7)+(((IF($A$8=Nutrients!$B$79,Nutrients!$DX$79,(IF($A$8=Nutrients!$B$77,Nutrients!$DX$77,Nutrients!$DX$78)))))*C$8))","v":210.20700601537649},{"$f":"(SUMPRODUCT(D$9:D$229,Nutrients!$DX$8:$DX$228)+(IF($A$7=Nutrients!$B$8,Nutrients!$DX$8,Nutrients!$DX$9)*D$7)+(((IF($A$8=Nutrients!$B$79,Nutrients!$DX$79,(IF($A$8=Nutrients!$B$77,Nutrients!$DX$77,Nutrients!$DX$78)))))*D$8))","v":201.64110105420281},{"$f":"(SUMPRODUCT(E$9:E$229,Nutrients!$DX$8:$DX$228)+(IF($A$7=Nutrients!$B$8,Nutrients!$DX$8,Nutrients!$DX$9)*E$7)+(((IF($A$8=Nutrients!$B$79,Nutrients!$DX$79,(IF($A$8=Nutrients!$B$77,Nutrients!$DX$77,Nutrients!$DX$78)))))*E$8))","v":194.82283976807454},{"$f":"(SUMPRODUCT(F$9:F$229,Nutrients!$DX$8:$DX$228)+(IF($A$7=Nutrients!$B$8,Nutrients!$DX$8,Nutrients!$DX$9)*F$7)+(((IF($A$8=Nutrients!$B$79,Nutrients!$DX$79,(IF($A$8=Nutrients!$B$77,Nutrients!$DX$77,Nutrients!$DX$78)))))*F$8))","v":189.69608954240206},{"$f":"(SUMPRODUCT(G$9:G$229,Nutrients!$DX$8:$DX$228)+(IF($A$7=Nutrients!$B$8,Nutrients!$DX$8,Nutrients!$DX$9)*G$7)+(((IF($A$8=Nutrients!$B$79,Nutrients!$DX$79,(IF($A$8=Nutrients!$B$77,Nutrients!$DX$77,Nutrients!$DX$78)))))*G$8))","v":187.52702006837634},null,{"$f":"(SUMPRODUCT(I$9:I$229,Nutrients!$DX$8:$DX$228)+(IF($A$7=Nutrients!$B$8,Nutrients!$DX$8,Nutrients!$DX$9)*I$7)+(((IF($A$8=Nutrients!$B$79,Nutrients!$DX$79,(IF($A$8=Nutrients!$B$77,Nutrients!$DX$77,Nutrients!$DX$78)))))*I$8))","v":221.12341011021954},{"$f":"(SUMPRODUCT(J$9:J$229,Nutrients!$DX$8:$DX$228)+(IF($A$7=Nutrients!$B$8,Nutrients!$DX$8,Nutrients!$DX$9)*J$7)+(((IF($A$8=Nutrients!$B$79,Nutrients!$DX$79,(IF($A$8=Nutrients!$B$77,Nutrients!$DX$77,Nutrients!$DX$78)))))*J$8))","v":212.29854094844274},{"$f":"(SUMPRODUCT(K$9:K$229,Nutrients!$DX$8:$DX$228)+(IF($A$7=Nutrients!$B$8,Nutrients!$DX$8,Nutrients!$DX$9)*K$7)+(((IF($A$8=Nutrients!$B$79,Nutrients!$DX$79,(IF($A$8=Nutrients!$B$77,Nutrients!$DX$77,Nutrients!$DX$78)))))*K$8))","v":203.69694872551875},{"$f":"(SUMPRODUCT(L$9:L$229,Nutrients!$DX$8:$DX$228)+(IF($A$7=Nutrients!$B$8,Nutrients!$DX$8,Nutrients!$DX$9)*L$7)+(((IF($A$8=Nutrients!$B$79,Nutrients!$DX$79,(IF($A$8=Nutrients!$B$77,Nutrients!$DX$77,Nutrients!$DX$78)))))*L$8))","v":196.79554869619744},{"$f":"(SUMPRODUCT(M$9:M$229,Nutrients!$DX$8:$DX$228)+(IF($A$7=Nutrients!$B$8,Nutrients!$DX$8,Nutrients!$DX$9)*M$7)+(((IF($A$8=Nutrients!$B$79,Nutrients!$DX$79,(IF($A$8=Nutrients!$B$77,Nutrients!$DX$77,Nutrients!$DX$78)))))*M$8))","v":191.72160983318818},{"$f":"(SUMPRODUCT(N$9:N$229,Nutrients!$DX$8:$DX$228)+(IF($A$7=Nutrients!$B$8,Nutrients!$DX$8,Nutrients!$DX$9)*N$7)+(((IF($A$8=Nutrients!$B$79,Nutrients!$DX$79,(IF($A$8=Nutrients!$B$77,Nutrients!$DX$77,Nutrients!$DX$78)))))*N$8))","v":189.51667887287192},null,{"$f":"(SUMPRODUCT(P$9:P$229,Nutrients!$DX$8:$DX$228)+(IF($A$7=Nutrients!$B$8,Nutrients!$DX$8,Nutrients!$DX$9)*P$7)+(((IF($A$8=Nutrients!$B$79,Nutrients!$DX$79,(IF($A$8=Nutrients!$B$77,Nutrients!$DX$77,Nutrients!$DX$78)))))*P$8))","v":223.23155012037256},{"$f":"(SUMPRODUCT(Q$9:Q$229,Nutrients!$DX$8:$DX$228)+(IF($A$7=Nutrients!$B$8,Nutrients!$DX$8,Nutrients!$DX$9)*Q$7)+(((IF($A$8=Nutrients!$B$79,Nutrients!$DX$79,(IF($A$8=Nutrients!$B$77,Nutrients!$DX$77,Nutrients!$DX$78)))))*Q$8))","v":214.41900462645975},{"$f":"(SUMPRODUCT(R$9:R$229,Nutrients!$DX$8:$DX$228)+(IF($A$7=Nutrients!$B$8,Nutrients!$DX$8,Nutrients!$DX$9)*R$7)+(((IF($A$8=Nutrients!$B$79,Nutrients!$DX$79,(IF($A$8=Nutrients!$B$77,Nutrients!$DX$77,Nutrients!$DX$78)))))*R$8))","v":205.83601368074918},{"$f":"(SUMPRODUCT(S$9:S$229,Nutrients!$DX$8:$DX$228)+(IF($A$7=Nutrients!$B$8,Nutrients!$DX$8,Nutrients!$DX$9)*S$7)+(((IF($A$8=Nutrients!$B$79,Nutrients!$DX$79,(IF($A$8=Nutrients!$B$77,Nutrients!$DX$77,Nutrients!$DX$78)))))*S$8))","v":198.92729716675862},{"$f":"(SUMPRODUCT(T$9:T$229,Nutrients!$DX$8:$DX$228)+(IF($A$7=Nutrients!$B$8,Nutrients!$DX$8,Nutrients!$DX$9)*T$7)+(((IF($A$8=Nutrients!$B$79,Nutrients!$DX$79,(IF($A$8=Nutrients!$B$77,Nutrients!$DX$77,Nutrients!$DX$78)))))*T$8))","v":193.93421060165059},{"$f":"(SUMPRODUCT(U$9:U$229,Nutrients!$DX$8:$DX$228)+(IF($A$7=Nutrients!$B$8,Nutrients!$DX$8,Nutrients!$DX$9)*U$7)+(((IF($A$8=Nutrients!$B$79,Nutrients!$DX$79,(IF($A$8=Nutrients!$B$77,Nutrients!$DX$77,Nutrients!$DX$78)))))*U$8))","v":191.79788761190926},null,{"$f":"(SUMPRODUCT(W$9:W$229,Nutrients!$DX$8:$DX$228)+(IF($A$7=Nutrients!$B$8,Nutrients!$DX$8,Nutrients!$DX$9)*W$7)+(((IF($A$8=Nutrients!$B$79,Nutrients!$DX$79,(IF($A$8=Nutrients!$B$77,Nutrients!$DX$77,Nutrients!$DX$78)))))*W$8))","v":225.34941301783888},{"$f":"(SUMPRODUCT(X$9:X$229,Nutrients!$DX$8:$DX$228)+(IF($A$7=Nutrients!$B$8,Nutrients!$DX$8,Nutrients!$DX$9)*X$7)+(((IF($A$8=Nutrients!$B$79,Nutrients!$DX$79,(IF($A$8=Nutrients!$B$77,Nutrients!$DX$77,Nutrients!$DX$78)))))*X$8))","v":216.55113804143812},{"$f":"(SUMPRODUCT(Y$9:Y$229,Nutrients!$DX$8:$DX$228)+(IF($A$7=Nutrients!$B$8,Nutrients!$DX$8,Nutrients!$DX$9)*Y$7)+(((IF($A$8=Nutrients!$B$79,Nutrients!$DX$79,(IF($A$8=Nutrients!$B$77,Nutrients!$DX$77,Nutrients!$DX$78)))))*Y$8))","v":207.9614844790747},{"$f":"(SUMPRODUCT(Z$9:Z$229,Nutrients!$DX$8:$DX$228)+(IF($A$7=Nutrients!$B$8,Nutrients!$DX$8,Nutrients!$DX$9)*Z$7)+(((IF($A$8=Nutrients!$B$79,Nutrients!$DX$79,(IF($A$8=Nutrients!$B$77,Nutrients!$DX$77,Nutrients!$DX$78)))))*Z$8))","v":200.96333027121486},{"$f":"(SUMPRODUCT(AA$9:AA$229,Nutrients!$DX$8:$DX$228)+(IF($A$7=Nutrients!$B$8,Nutrients!$DX$8,Nutrients!$DX$9)*AA$7)+(((IF($A$8=Nutrients!$B$79,Nutrients!$DX$79,(IF($A$8=Nutrients!$B$77,Nutrients!$DX$77,Nutrients!$DX$78)))))*AA$8))","v":196.26586095243016},{"$f":"(SUMPRODUCT(AB$9:AB$229,Nutrients!$DX$8:$DX$228)+(IF($A$7=Nutrients!$B$8,Nutrients!$DX$8,Nutrients!$DX$9)*AB$7)+(((IF($A$8=Nutrients!$B$79,Nutrients!$DX$79,(IF($A$8=Nutrients!$B$77,Nutrients!$DX$77,Nutrients!$DX$78)))))*AB$8))","v":194.33391497632641},null,{"$f":"(SUMPRODUCT(AD$9:AD$229,Nutrients!$DX$8:$DX$228)+(IF($A$7=Nutrients!$B$8,Nutrients!$DX$8,Nutrients!$DX$9)*AD$7)+(((IF($A$8=Nutrients!$B$79,Nutrients!$DX$79,(IF($A$8=Nutrients!$B$77,Nutrients!$DX$77,Nutrients!$DX$78)))))*AD$8))","v":227.48633916835263},{"$f":"(SUMPRODUCT(AE$9:AE$229,Nutrients!$DX$8:$DX$228)+(IF($A$7=Nutrients!$B$8,Nutrients!$DX$8,Nutrients!$DX$9)*AE$7)+(((IF($A$8=Nutrients!$B$79,Nutrients!$DX$79,(IF($A$8=Nutrients!$B$77,Nutrients!$DX$77,Nutrients!$DX$78)))))*AE$8))","v":218.68280394303346},{"$f":"(SUMPRODUCT(AF$9:AF$229,Nutrients!$DX$8:$DX$228)+(IF($A$7=Nutrients!$B$8,Nutrients!$DX$8,Nutrients!$DX$9)*AF$7)+(((IF($A$8=Nutrients!$B$79,Nutrients!$DX$79,(IF($A$8=Nutrients!$B$77,Nutrients!$DX$77,Nutrients!$DX$78)))))*AF$8))","v":209.843696131456},{"$f":"(SUMPRODUCT(AG$9:AG$229,Nutrients!$DX$8:$DX$228)+(IF($A$7=Nutrients!$B$8,Nutrients!$DX$8,Nutrients!$DX$9)*AG$7)+(((IF($A$8=Nutrients!$B$79,Nutrients!$DX$79,(IF($A$8=Nutrients!$B$77,Nutrients!$DX$77,Nutrients!$DX$78)))))*AG$8))","v":203.30795459277886},{"$f":"(SUMPRODUCT(AH$9:AH$229,Nutrients!$DX$8:$DX$228)+(IF($A$7=Nutrients!$B$8,Nutrients!$DX$8,Nutrients!$DX$9)*AH$7)+(((IF($A$8=Nutrients!$B$79,Nutrients!$DX$79,(IF($A$8=Nutrients!$B$77,Nutrients!$DX$77,Nutrients!$DX$78)))))*AH$8))","v":199.06270951004774},{"$f":"(SUMPRODUCT(AI$9:AI$229,Nutrients!$DX$8:$DX$228)+(IF($A$7=Nutrients!$B$8,Nutrients!$DX$8,Nutrients!$DX$9)*AI$7)+(((IF($A$8=Nutrients!$B$79,Nutrients!$DX$79,(IF($A$8=Nutrients!$B$77,Nutrients!$DX$77,Nutrients!$DX$78)))))*AI$8))","v":197.28607248489175},null,{"$f":"(SUMPRODUCT(AK$9:AK$229,Nutrients!$DX$8:$DX$228)+(IF($A$7=Nutrients!$B$8,Nutrients!$DX$8,Nutrients!$DX$9)*AK$7)+(((IF($A$8=Nutrients!$B$79,Nutrients!$DX$79,(IF($A$8=Nutrients!$B$77,Nutrients!$DX$77,Nutrients!$DX$78)))))*AK$8))","v":229.71055616173334},{"$f":"(SUMPRODUCT(AL$9:AL$229,Nutrients!$DX$8:$DX$228)+(IF($A$7=Nutrients!$B$8,Nutrients!$DX$8,Nutrients!$DX$9)*AL$7)+(((IF($A$8=Nutrients!$B$79,Nutrients!$DX$79,(IF($A$8=Nutrients!$B$77,Nutrients!$DX$77,Nutrients!$DX$78)))))*AL$8))","v":220.81679931906831},{"$f":"(SUMPRODUCT(AM$9:AM$229,Nutrients!$DX$8:$DX$228)+(IF($A$7=Nutrients!$B$8,Nutrients!$DX$8,Nutrients!$DX$9)*AM$7)+(((IF($A$8=Nutrients!$B$79,Nutrients!$DX$79,(IF($A$8=Nutrients!$B$77,Nutrients!$DX$77,Nutrients!$DX$78)))))*AM$8))","v":212.17023195836035},{"$f":"(SUMPRODUCT(AN$9:AN$229,Nutrients!$DX$8:$DX$228)+(IF($A$7=Nutrients!$B$8,Nutrients!$DX$8,Nutrients!$DX$9)*AN$7)+(((IF($A$8=Nutrients!$B$79,Nutrients!$DX$79,(IF($A$8=Nutrients!$B$77,Nutrients!$DX$77,Nutrients!$DX$78)))))*AN$8))","v":206.01965830470911},{"$f":"(SUMPRODUCT(AO$9:AO$229,Nutrients!$DX$8:$DX$228)+(IF($A$7=Nutrients!$B$8,Nutrients!$DX$8,Nutrients!$DX$9)*AO$7)+(((IF($A$8=Nutrients!$B$79,Nutrients!$DX$79,(IF($A$8=Nutrients!$B$77,Nutrients!$DX$77,Nutrients!$DX$78)))))*AO$8))","v":201.9606867839482},{"$f":"(SUMPRODUCT(AP$9:AP$229,Nutrients!$DX$8:$DX$228)+(IF($A$7=Nutrients!$B$8,Nutrients!$DX$8,Nutrients!$DX$9)*AP$7)+(((IF($A$8=Nutrients!$B$79,Nutrients!$DX$79,(IF($A$8=Nutrients!$B$77,Nutrients!$DX$77,Nutrients!$DX$78)))))*AP$8))","v":200.19211060992478},null,{"$f":"(SUMPRODUCT(AR$9:AR$229,Nutrients!$DX$8:$DX$228)+(IF($A$7=Nutrients!$B$8,Nutrients!$DX$8,Nutrients!$DX$9)*AR$7)+(((IF($A$8=Nutrients!$B$79,Nutrients!$DX$79,(IF($A$8=Nutrients!$B$77,Nutrients!$DX$77,Nutrients!$DX$78)))))*AR$8))","v":231.66117750955806},{"$f":"(SUMPRODUCT(AS$9:AS$229,Nutrients!$DX$8:$DX$228)+(IF($A$7=Nutrients!$B$8,Nutrients!$DX$8,Nutrients!$DX$9)*AS$7)+(((IF($A$8=Nutrients!$B$79,Nutrients!$DX$79,(IF($A$8=Nutrients!$B$77,Nutrients!$DX$77,Nutrients!$DX$78)))))*AS$8))","v":222.80373013763227},{"$f":"(SUMPRODUCT(AT$9:AT$229,Nutrients!$DX$8:$DX$228)+(IF($A$7=Nutrients!$B$8,Nutrients!$DX$8,Nutrients!$DX$9)*AT$7)+(((IF($A$8=Nutrients!$B$79,Nutrients!$DX$79,(IF($A$8=Nutrients!$B$77,Nutrients!$DX$77,Nutrients!$DX$78)))))*AT$8))","v":214.45712763674561},{"$f":"(SUMPRODUCT(AU$9:AU$229,Nutrients!$DX$8:$DX$228)+(IF($A$7=Nutrients!$B$8,Nutrients!$DX$8,Nutrients!$DX$9)*AU$7)+(((IF($A$8=Nutrients!$B$79,Nutrients!$DX$79,(IF($A$8=Nutrients!$B$77,Nutrients!$DX$77,Nutrients!$DX$78)))))*AU$8))","v":208.8931643521492},{"$f":"(SUMPRODUCT(AV$9:AV$229,Nutrients!$DX$8:$DX$228)+(IF($A$7=Nutrients!$B$8,Nutrients!$DX$8,Nutrients!$DX$9)*AV$7)+(((IF($A$8=Nutrients!$B$79,Nutrients!$DX$79,(IF($A$8=Nutrients!$B$77,Nutrients!$DX$77,Nutrients!$DX$78)))))*AV$8))","v":205.00139313868357},{"$f":"(SUMPRODUCT(AW$9:AW$229,Nutrients!$DX$8:$DX$228)+(IF($A$7=Nutrients!$B$8,Nutrients!$DX$8,Nutrients!$DX$9)*AW$7)+(((IF($A$8=Nutrients!$B$79,Nutrients!$DX$79,(IF($A$8=Nutrients!$B$77,Nutrients!$DX$77,Nutrients!$DX$78)))))*AW$8))","v":203.23379561952365}]
["Cost with processing",{"$f":"IF(B$5=\"\",\"\",B263+Nutrients!$DV$5)","v":231.06090724554412},{"$f":"IF(C$5=\"\",\"\",C263+Nutrients!$DV$5)","v":222.20700601537649},{"$f":"IF(D$5=\"\",\"\",D263+Nutrients!$DV$5)","v":213.64110105420281},{"$f":"IF(E$5=\"\",\"\",E263+Nutrients!$DV$5)","v":206.82283976807454},{"$f":"IF(F$5=\"\",\"\",F263+Nutrients!$DV$5)","v":201.69608954240206},{"$f":"IF(G$5=\"\",\"\",G263+Nutrients!$DV$5)","v":199.52702006837634},null,{"$f":"IF(I$5=\"\",\"\",I263+Nutrients!$DV$5)","v":233.12341011021954},{"$f":"IF(J$5=\"\",\"\",J263+Nutrients!$DV$5)","v":224.29854094844274},{"$f":"IF(K$5=\"\",\"\",K263+Nutrients!$DV$5)","v":215.69694872551875},{"$f":"IF(L$5=\"\",\"\",L263+Nutrients!$DV$5)","v":208.79554869619744},{"$f":"IF(M$5=\"\",\"\",M263+Nutrients!$DV$5)","v":203.72160983318818},{"$f":"IF(N$5=\"\",\"\",N263+Nutrients!$DV$5)","v":201.51667887287192},null,{"$f":"IF(P$5=\"\",\"\",P263+Nutrients!$DV$5)","v":235.23155012037256},{"$f":"IF(Q$5=\"\",\"\",Q263+Nutrients!$DV$5)","v":226.41900462645975},{"$f":"IF(R$5=\"\",\"\",R263+Nutrients!$DV$5)","v":217.83601368074918},{"$f":"IF(S$5=\"\",\"\",S263+Nutrients!$DV$5)","v":210.92729716675862},{"$f":"IF(T$5=\"\",\"\",T263+Nutrients!$DV$5)","v":205.93421060165059},{"$f":"IF(U$5=\"\",\"\",U263+Nutrients!$DV$5)","v":203.79788761190926},null,{"$f":"IF(W$5=\"\",\"\",W263+Nutrients!$DV$5)","v":237.34941301783888},{"$f":"IF(X$5=\"\",\"\",X263+Nutrients!$DV$5)","v":228.55113804143812},{"$f":"IF(Y$5=\"\",\"\",Y263+Nutrients!$DV$5)","v":219.9614844790747},{"$f":"IF(Z$5=\"\",\"\",Z263+Nutrients!$DV$5)","v":212.96333027121486},{"$f":"IF(AA$5=\"\",\"\",AA263+Nutrients!$DV$5)","v":208.26586095243016},{"$f":"IF(AB$5=\"\",\"\",AB263+Nutrients!$DV$5)","v":206.33391497632641},null,{"$f":"IF(AD$5=\"\",\"\",AD263+Nutrients!$DV$5)","v":239.48633916835263},{"$f":"IF(AE$5=\"\",\"\",AE263+Nutrients!$DV$5)","v":230.68280394303346},{"$f":"IF(AF$5=\"\",\"\",AF263+Nutrients!$DV$5)","v":221.843696131456},{"$f":"IF(AG$5=\"\",\"\",AG263+Nutrients!$DV$5)","v":215.30795459277886},{"$f":"IF(AH$5=\"\",\"\",AH263+Nutrients!$DV$5)","v":211.06270951004774},{"$f":"IF(AI$5=\"\",\"\",AI263+Nutrients!$DV$5)","v":209.28607248489175},null,{"$f":"IF(AK$5=\"\",\"\",AK263+Nutrients!$DV$5)","v":241.71055616173334},{"$f":"IF(AL$5=\"\",\"\",AL263+Nutrients!$DV$5)","v":232.81679931906831},{"$f":"IF(AM$5=\"\",\"\",AM263+Nutrients!$DV$5)","v":224.17023195836035},{"$f":"IF(AN$5=\"\",\"\",AN263+Nutrients!$DV$5)","v":218.01965830470911},{"$f":"IF(AO$5=\"\",\"\",AO263+Nutrients!$DV$5)","v":213.9606867839482},{"$f":"IF(AP$5=\"\",\"\",AP263+Nutrients!$DV$5)","v":212.19211060992478},null,{"$f":"IF(AR$5=\"\",\"\",AR263+Nutrients!$DV$5)","v":243.66117750955806},{"$f":"IF(AS$5=\"\",\"\",AS263+Nutrients!$DV$5)","v":234.80373013763227},{"$f":"IF(AT$5=\"\",\"\",AT263+Nutrients!$DV$5)","v":226.45712763674561},{"$f":"IF(AU$5=\"\",\"\",AU263+Nutrients!$DV$5)","v":220.8931643521492},{"$f":"IF(AV$5=\"\",\"\",AV263+Nutrients!$DV$5)","v":217.00139313868357},{"$f":"IF(AW$5=\"\",\"\",AW263+Nutrients!$DV$5)","v":215.23379561952365}]
["Feed budget, lb/pig- adjusted for gain ",64.919933148666814,74.047956546633458,95.803407561009578,107.72572383590483,119.6480401107998,148.85493879698549,{"$f":"SUM(B265:G265)","v":611},{"$f":"($B$265*$B$250/I250)-($B$265*$B$250/I250)/(I6-I5)*I268","v":64.661847743707668},{"$f":"($C$265*$C$250/J250)-($C$265*$C$250/J250)/(J6-J5)*J268","v":73.839631445831316},{"$f":"($D$265*$D$250/K250)-($D$265*$D$250/K250)/(K6-K5)*K268","v":95.538431994731098},{"$f":"($E$265*$E$250/L250)-($E$265*$E$250/L250)/(L6-L5)*L268","v":107.36851717976371},{"$f":"($F$265*$F$250/M250)-($F$265*$F$250/M250)/(M6-M5)*M268","v":119.06602662228403},{"$f":"($G$265*$G$250/N250)-($G$265*$G$250/N250)/(N6-N5)*N268","v":147.68018846992726},{"$f":"SUM(I265:N265)","v":608.15464345624514},{"$f":"($B$265*$B$250/P250)-($B$265*$B$250/P250)/(P6-P5)*P268","v":64.39516783310323},{"$f":"($C$265*$C$250/Q250)-($C$265*$C$250/Q250)/(Q6-Q5)*Q268","v":73.623174096984698},{"$f":"($D$265*$D$250/R250)-($D$265*$D$250/R250)/(R6-R5)*R268","v":95.276800183866698},{"$f":"($E$265*$E$250/S250)-($E$265*$E$250/S250)/(S6-S5)*S268","v":107.00781693180063},{"$f":"($F$265*$F$250/T250)-($F$265*$F$250/T250)/(T6-T5)*T268","v":118.4749320166067},{"$f":"($G$265*$G$250/U250)-($G$265*$G$250/U250)/(U6-U5)*U268","v":146.4873671562984},{"$f":"SUM(P265:U265)","v":605.26525821866039},{"$f":"($B$265*$B$250/W250)-($B$265*$B$250/W250)/(W6-W5)*W268","v":64.12699870145272},{"$f":"($C$265*$C$250/X250)-($C$265*$C$250/X250)/(X6-X5)*X268","v":73.40467201363505},{"$f":"($D$265*$D$250/Y250)-($D$265*$D$250/Y250)/(Y6-Y5)*Y268","v":95.016608030100357},{"$f":"($E$265*$E$250/Z250)-($E$265*$E$250/Z250)/(Z6-Z5)*Z268","v":106.64697445661967},{"$f":"($F$265*$F$250/AA250)-($F$265*$F$250/AA250)/(AA6-AA5)*AA268","v":117.87476310098526},{"$f":"($G$265*$G$250/AB250)-($G$265*$G$250/AB250)/(AB6-AB5)*AB268","v":145.29824536753983},{"$f":"SUM(W265:AB265)","v":602.36826167033291},{"$f":"($B$265*$B$250/AD250)-($B$265*$B$250/AD250)/(AD6-AD5)*AD268","v":63.855488888837613},{"$f":"($C$265*$C$250/AE250)-($C$265*$C$250/AE250)/(AE6-AE5)*AE268","v":73.185681511568674},{"$f":"($D$265*$D$250/AF250)-($D$265*$D$250/AF250)/(AF6-AF5)*AF268","v":94.753657163706094},{"$f":"($E$265*$E$250/AG250)-($E$265*$E$250/AG250)/(AG6-AG5)*AG268","v":106.27685287565144},{"$f":"($F$265*$F$250/AH250)-($F$265*$F$250/AH250)/(AH6-AH5)*AH268","v":117.29975771564472},{"$f":"($G$265*$G$250/AI250)-($G$265*$G$250/AI250)/(AI6-AI5)*AI268","v":144.13921730626748},{"$f":"SUM(AD265:AI265)","v":599.51065546167604},{"$f":"($B$265*$B$250/AK250)-($B$265*$B$250/AK250)/(AK6-AK5)*AK268","v":63.570827890920569},{"$f":"($C$265*$C$250/AL250)-($C$265*$C$250/AL250)/(AL6-AL5)*AL268","v":72.966007793673185},{"$f":"($D$265*$D$250/AM250)-($D$265*$D$250/AM250)/(AM6-AM5)*AM268","v":94.491449961372965},{"$f":"($E$265*$E$250/AN250)-($E$265*$E$250/AN250)/(AN6-AN5)*AN268","v":105.93866721130277},{"$f":"($F$265*$F$250/AO250)-($F$265*$F$250/AO250)/(AO6-AO5)*AO268","v":116.71933164459944},{"$f":"($G$265*$G$250/AP250)-($G$265*$G$250/AP250)/(AP6-AP5)*AP268","v":142.97683845425547},{"$f":"SUM(AK265:AP265)","v":596.66312295612443},{"$f":"($B$265*$B$250/AR250)-($B$265*$B$250/AR250)/(AR6-AR5)*AR268","v":63.304326350000231},{"$f":"($C$265*$C$250/AS250)-($C$265*$C$250/AS250)/(AS6-AS5)*AS268","v":72.746447860413653},{"$f":"($D$265*$D$250/AT250)-($D$265*$D$250/AT250)/(AT6-AT5)*AT268","v":94.250062723826375},{"$f":"($E$265*$E$250/AU250)-($E$265*$E$250/AU250)/(AU6-AU5)*AU268","v":105.58373366139794},{"$f":"($F$265*$F$250/AV250)-($F$265*$F$250/AV250)/(AV6-AV5)*AV268","v":116.13478502558662},{"$f":"($G$265*$G$250/AW250)-($G$265*$G$250/AW250)/(AW6-AW5)*AW268","v":141.80693050407351},{"$f":"SUM(AR265:AW265)","v":593.82628612529834}]
["Feed cost, $/pig",{"$f":"IF(B$265=\"\",\"\",B265*B264/2000)","v":7.5002293258255142},8.2269873628920589,10.233772738039312,11.140070059906597,12.066270905880396,14.85029118031153,null,{"$f":"IF(I$265=\"\",\"\",I265*I264/2000)","v":7.5370952250204679},{"$f":"IF(J$265=\"\",\"\",J265*J264/2000)","v":8.2810607987353571},10.303674133641987,11.209034228622933,12.128161309966472,14.880010557889767,null,{"$f":"IF(P$265=\"\",\"\",P265*P264/2000)","v":7.573887574821212},8.3348428982399145,10.377359174155396,11.285434800570009,12.19902080046206,14.926907994141896,null,{"$f":"IF(W$265=\"\",\"\",W265*W264/2000)","v":7.6102527501927595},8.3883606631373961,10.449997076233622,11.355947421815456,12.274644510895222,14.989977902937687,null,{"$f":"IF(AD$265=\"\",\"\",AD265*AD264/2000)","v":7.6462586348965687},8.4413391097852415,10.510250763584686,11.4411259066071,12.378802344168051,15.08316534053753,null,{"$f":"IF(AK$265=\"\",\"\",AK265*AK264/2000)","v":7.6828700825881198},8.4938561968065915,10.591085127961389,11.548356013332262,12.486674179820957,15.169278559971362,null,{"$f":"IF(AR$265=\"\",\"\",AR265*AR264/2000)","v":7.7124033499452},8.540568655943952,10.671799242010415,11.661362516290362,12.600705071206912,15.260821948772875]
["ADG, lb",{"$f":"B342*0.00220462","v":1.669925476729073},1.9189525389204525,2.0860530832674886,2.166293944697927,2.1531120876854954,2.0276943879552971,null,{"$f":"I342*0.00220462","v":1.6629124701852978},1.9132473031982666,2.080400780313989,2.1589864260295188,2.14246496436779,2.01155699850039,null,{"$f":"P342*0.00220462","v":1.6559454057269123},1.9075775620311994,2.0747406551115013,2.1517297907499815,2.1318369060974223,1.9953492267979323,null,{"$f":"W342*0.00220462","v":1.6489844257671697},1.9019149100730077,2.0690729486326238,2.1445064196202157,2.1211721165973674,1.9791779243688492,null,{"$f":"AD342*0.00220462","v":1.6420376336269249},1.8962540252550233,2.0633650549899287,2.1372550188547921,2.1105447980945446,1.9632616841856263,null,{"$f":"AK342*0.00220462","v":1.6351465950415662},1.8905955811153681,2.0577499760104576,2.1298971316510085,2.1001044777411368,1.947460671473312,null,{"$f":"AR342*0.00220462","v":1.6281251388194953},1.8848993573449198,2.0520410379053153,2.1227178379408125,2.0896299772767546,1.9315919311434824]
["Change in gain, lb",null,null,null,null,null,null,null,{"$f":"($B$6-$B$5)-(($B$6-$B$5)/$B$267)*I267","v":0.14698573825756256},{"$f":"($C$6-$C$5)-(($C$6-$C$5)/$C$267)*J267","v":0.10405846222170823},{"$f":"($D$6-$D$5)-(($D$6-$D$5)/$D$267)*K267","v":0.10838272523048431},{"$f":"($E$6-$E$5)-(($E$6-$E$5)/$E$267)*L267","v":0.13493124857397021},{"$f":"($F$6-$F$5)-(($F$6-$F$5)/$F$267)*M267","v":0.19779970357512866},{"$f":"($G$6-$G$5)-(($G$6-$G$5)/$G$267)*N267","v":0.35813213755702122},null,{"$f":"($B$6-$B$5)-(($B$6-$B$5)/$B$267)*P267","v":0.29300857546891024},{"$f":"($C$6-$C$5)-(($C$6-$C$5)/$C$267)*Q267","v":0.20746953509743093},{"$f":"($D$6-$D$5)-(($D$6-$D$5)/$D$267)*R267","v":0.2169154418308139},{"$f":"($E$6-$E$5)-(($E$6-$E$5)/$E$267)*S267","v":0.26892294988114429},{"$f":"($F$6-$F$5)-(($F$6-$F$5)/$F$267)*T267","v":0.39524522127304351},{"$f":"($G$6-$G$5)-(($G$6-$G$5)/$G$267)*U267","v":0.71782624675957862},null,{"$f":"($B$6-$B$5)-(($B$6-$B$5)/$B$267)*W267","v":0.43890388755684739},{"$f":"($C$6-$C$5)-(($C$6-$C$5)/$C$267)*X267","v":0.31075130706256715},{"$f":"($D$6-$D$5)-(($D$6-$D$5)/$D$267)*Y267","v":0.32559352915924933},{"$f":"($E$6-$E$5)-(($E$6-$E$5)/$E$267)*Z267","v":0.40230043814759142},{"$f":"($F$6-$F$5)-(($F$6-$F$5)/$F$267)*AA267","v":0.59337312294711353},{"$f":"($G$6-$G$5)-(($G$6-$G$5)/$G$267)*AB267","v":1.0767110045571044},null,{"$f":"($B$6-$B$5)-(($B$6-$B$5)/$B$267)*AD267","v":0.58450183686462509},{"$f":"($C$6-$C$5)-(($C$6-$C$5)/$C$267)*AE267","v":0.41400084795059655},{"$f":"($D$6-$D$5)-(($D$6-$D$5)/$D$267)*AF267","v":0.43504220404636129},{"$f":"($E$6-$E$5)-(($E$6-$E$5)/$E$267)*AG267","v":0.53619548564419972},{"$f":"($F$6-$F$5)-(($F$6-$F$5)/$F$267)*AH267","v":0.79080489742099047},{"$f":"($G$6-$G$5)-(($G$6-$G$5)/$G$267)*AI267","v":1.4299352441168267},null,{"$f":"($B$6-$B$5)-(($B$6-$B$5)/$B$267)*AK267","v":0.7289312463493971},{"$f":"($C$6-$C$5)-(($C$6-$C$5)/$C$267)*AL267","v":0.51720587302086329},{"$f":"($D$6-$D$5)-(($D$6-$D$5)/$D$267)*AM267","v":0.54271116078596293},{"$f":"($E$6-$E$5)-(($E$6-$E$5)/$E$267)*AN267","v":0.67205677486198567},{"$f":"($F$6-$F$5)-(($F$6-$F$5)/$F$267)*AO267","v":0.98476266512143695},{"$f":"($G$6-$G$5)-(($G$6-$G$5)/$G$267)*AP267","v":1.7806022757355109},null,{"$f":"($B$6-$B$5)-(($B$6-$B$5)/$B$267)*AR267","v":0.8760940815759426},{"$f":"($C$6-$C$5)-(($C$6-$C$5)/$C$267)*AS267","v":0.62109996519984634},{"$f":"($D$6-$D$5)-(($D$6-$D$5)/$D$267)*AT267","v":0.65217986320651988},{"$f":"($E$6-$E$5)-(($E$6-$E$5)/$E$267)*AU267","v":0.80462038614415121},{"$f":"($F$6-$F$5)-(($F$6-$F$5)/$F$267)*AV267","v":1.1793554227263954},{"$f":"($G$6-$G$5)-(($G$6-$G$5)/$G$267)*AW267","v":2.1327723656090711}]
["Feed budget, lb/pig- adjusted for energy intake ",64.919933148666814,74.047956546633458,95.803407561009578,107.72572383590483,119.6480401107998,148.85493879698549,{"$f":"SUM(B269:G269)","v":611},{"$f":"($B$269*$B$250/I250)","v":64.934546379077631},{"$f":"($C$269*$C$250/J250)","v":74.059818612609803},{"$f":"($D$269*$D$250/K250)","v":95.798003211222877},{"$f":"($E$269*$E$250/L250)","v":107.73192726619641},{"$f":"($F$269*$F$250/M250)","v":119.65773322635012},{"$f":"($G$269*$G$250/N250)","v":148.86492880683539},{"$f":"SUM(I269:N269)","v":611.04695750229223},{"$f":"($B$269*$B$250/P250)","v":64.938814390163273},{"$f":"($C$269*$C$250/Q250)","v":74.062192630508932},{"$f":"($D$269*$D$250/R250)","v":95.796292562037905},{"$f":"($E$269*$E$250/S250)","v":107.73210783771644},{"$f":"($F$269*$F$250/T250)","v":119.65728123153896},{"$f":"($G$269*$G$250/U250)","v":148.86196776984221},{"$f":"SUM(P269:U269)","v":611.04865642180766},{"$f":"($B$269*$B$250/W250)","v":64.941370703308507},{"$f":"($C$269*$C$250/X250)","v":74.062241682400469},{"$f":"($D$269*$D$250/Y250)","v":95.796375025732644},{"$f":"($E$269*$E$250/Z250)","v":107.73047488785043},{"$f":"($F$269*$F$250/AA250)","v":119.64968579396542},{"$f":"($G$269*$G$250/AB250)","v":148.860005502267},{"$f":"SUM(W269:AB269)","v":611.04015359552454},{"$f":"($B$269*$B$250/AD250)","v":64.939990132216209},{"$f":"($C$269*$C$250/AE250)","v":74.061727742600752},{"$f":"($D$269*$D$250/AF250)","v":95.795534677301418},{"$f":"($E$269*$E$250/AG250)","v":107.72083855928383},{"$f":"($F$269*$F$250/AH250)","v":119.66556049800599},{"$f":"($G$269*$G$250/AI250)","v":148.86975300871478},{"$f":"SUM(AD269:AI269)","v":611.05340461812307},{"$f":"($B$269*$B$250/AK250)","v":64.922952714896354},{"$f":"($C$269*$C$250/AL250)","v":74.060421651865951},{"$f":"($D$269*$D$250/AM250)","v":95.791122746846256},{"$f":"($E$269*$E$250/AN250)","v":107.74900340436605},{"$f":"($F$269*$F$250/AO250)","v":119.66538164847253},{"$f":"($G$269*$G$250/AP250)","v":148.8673620925843},{"$f":"SUM(AK269:AP269)","v":611.05624425903147},{"$f":"($B$269*$B$250/AR250)","v":64.92959591280966},{"$f":"($C$269*$C$250/AS250)","v":74.060707949851619},{"$f":"($D$269*$D$250/AT250)","v":95.812232948269212},{"$f":"($E$269*$E$250/AU250)","v":107.75120404658445},{"$f":"($F$269*$F$250/AV250)","v":119.66291264887889},{"$f":"($G$269*$G$250/AW250)","v":148.8622480349953},{"$f":"SUM(AR269:AW269)","v":611.07890154138909}]
["Feed cost, $/pig- adjusted for energy intake",{"$f":"B269*B264/2000","v":7.5002293258255142},8.2269873628920589,10.233772738039312,11.140070059906597,12.066270905880396,14.85029118031153,null,{"$f":"I269*I264/2000","v":7.5688814429253926},8.3057546288573505,10.331668493329111,11.246973432822157,12.188433020931109,14.999383026899993,null,{"$f":"P269*P264/2000","v":7.6378289859886319},8.3845439679264775,10.43394124855457,11.36182116214365,12.320763876578338,15.16887728862298,null,{"$f":"W269*W264/2000","v":7.7068981085020765},8.4635048112063309,10.535756429187154,11.471320351908055,12.459472412283979,15.357433859340121,null,{"$f":"AD269*AD264/2000","v":7.7761202511967022},8.5423835102643455,10.625817742850806,11.596576708609172,12.62846871687384,15.578182959494907,null,{"$f":"AK269*AK264/2000","v":7.8462815041897569},8.6212551626040277,10.736759102856148,11.745700452446412,12.801843620885228,15.794239881678687,null,{"$f":"AR269*AR264/2000","v":7.9104108976674956},8.6948652416294792,10.848681532963903,11.900752212302072,12.98350937591966,16.020093334513508]
[]
["Targets"]
["- SID Ile:Lys",0.56000000000000005,0.56000000000000005,0.56000000000000005,0.56000000000000005,0.56000000000000005,0.56000000000000005,null,0.56000000000000005,0.56000000000000005,0.56000000000000005,0.56000000000000005,0.56000000000000005,0.56000000000000005,null,0.56000000000000005,0.56000000000000005,0.56000000000000005,0.56000000000000005,0.56000000000000005,0.56000000000000005,null,0.56000000000000005,0.56000000000000005,0.56000000000000005,0.56000000000000005,0.56000000000000005,0.56000000000000005,null,0.56000000000000005,0.56000000000000005,0.56000000000000005,0.56000000000000005,0.56000000000000005,0.56000000000000005,null,0.56000000000000005,0.56000000000000005,0.56000000000000005,0.56000000000000005,0.56000000000000005,0.56000000000000005,null,0.56000000000000005,0.56000000000000005,0.56000000000000005,0.56000000000000005,0.56000000000000005,0.56000000000000005]
["- SID Leu:Lys"]
["- SID Met:Lys",{"$f":" 0.000000416*((B5+B6)/2)^2 - 0.000036654*((B5+B6)/2) + 0.280606061","v":0.28002731600000003},0.281219626,0.28362810100000002,0.28748674100000005,0.29267658100000005,0.29964938600000002,null,{"$f":" 0.000000416*((I5+I6)/2)^2 - 0.000036654*((I5+I6)/2) + 0.280606061","v":0.28002731600000003},0.281219626,0.28362810100000002,0.28748674100000005,0.29267658100000005,0.29964938600000002,null,{"$f":" 0.000000416*((P5+P6)/2)^2 - 0.000036654*((P5+P6)/2) + 0.280606061","v":0.28002731600000003},0.281219626,0.28362810100000002,0.28748674100000005,0.29267658100000005,0.29964938600000002,null,{"$f":" 0.000000416*((W5+W6)/2)^2 - 0.000036654*((W5+W6)/2) + 0.280606061","v":0.28002731600000003},0.281219626,0.28362810100000002,0.28748674100000005,0.29267658100000005,0.29964938600000002,null,{"$f":" 0.000000416*((AD5+AD6)/2)^2 - 0.000036654*((AD5+AD6)/2) + 0.280606061","v":0.28002731600000003},0.281219626,0.28362810100000002,0.28748674100000005,0.29267658100000005,0.29964938600000002,null,{"$f":" 0.000000416*((AK5+AK6)/2)^2 - 0.000036654*((AK5+AK6)/2) + 0.280606061","v":0.28002731600000003},0.281219626,0.28362810100000002,0.28748674100000005,0.29267658100000005,0.29964938600000002,null,{"$f":" 0.000000416*((AR5+AR6)/2)^2 - 0.000036654*((AR5+AR6)/2) + 0.280606061","v":0.28002731600000003},0.281219626,0.28362810100000002,0.28748674100000005,0.29267658100000005,0.29964938600000002]
["- SID Met & Cys:Lys",0.55900000000000005,0.55900000000000005,0.55900000000000005,0.56899999999999995,0.56899999999999995,0.57899999999999996,null,0.55900000000000005,0.55900000000000005,0.55900000000000005,0.56899999999999995,0.56899999999999995,0.57899999999999996,null,0.55900000000000005,0.55900000000000005,0.55900000000000005,0.56899999999999995,0.56899999999999995,0.57899999999999996,null,0.55900000000000005,0.55900000000000005,0.55900000000000005,0.56899999999999995,0.56899999999999995,0.57899999999999996,null,0.55900000000000005,0.55900000000000005,0.55900000000000005,0.56899999999999995,0.56899999999999995,0.57899999999999996,null,0.55900000000000005,0.55900000000000005,0.55900000000000005,0.56899999999999995,0.56899999999999995,0.57899999999999996,null,0.55900000000000005,0.55900000000000005,0.55900000000000005,0.56899999999999995,0.56899999999999995,0.57899999999999996]
["- SID Thr:Lys",0.61899999999999999,0.61899999999999999,0.61899999999999999,0.629,0.629,0.63900000000000001,null,0.61899999999999999,0.61899999999999999,0.61899999999999999,0.629,0.629,0.63900000000000001,null,0.61899999999999999,0.61899999999999999,0.61899999999999999,0.629,0.629,0.63900000000000001,null,0.61899999999999999,0.61899999999999999,0.61899999999999999,0.629,0.629,0.63900000000000001,null,0.61899999999999999,0.61899999999999999,0.61899999999999999,0.629,0.629,0.63900000000000001,null,0.61899999999999999,0.61899999999999999,0.61899999999999999,0.629,0.629,0.63900000000000001,null,0.61899999999999999,0.61899999999999999,0.61899999999999999,0.629,0.629,0.63900000000000001]
["- SID Trp:Lys",0.189,0.189,0.189,0.189,0.189,0.189,null,0.189,0.189,0.189,0.189,0.189,0.189,null,0.189,0.189,0.189,0.189,0.189,0.189,null,0.189,0.189,0.189,0.189,0.189,0.189,null,0.189,0.189,0.189,0.189,0.189,0.189,null,0.189,0.189,0.189,0.189,0.189,0.189,null,0.189,0.189,0.189,0.189,0.189,0.189]
["- SID Val:Lys",0.67900000000000005,0.67900000000000005,0.67900000000000005,0.67900000000000005,0.67900000000000005,0.67900000000000005,null,0.67900000000000005,0.67900000000000005,0.67900000000000005,0.67900000000000005,0.67900000000000005,0.67900000000000005,null,0.67900000000000005,0.67900000000000005,0.67900000000000005,0.67900000000000005,0.67900000000000005,0.67900000000000005,null,0.67900000000000005,0.67900000000000005,0.67900000000000005,0.67900000000000005,0.67900000000000005,0.67900000000000005,null,0.67900000000000005,0.67900000000000005,0.67900000000000005,0.67900000000000005,0.67900000000000005,0.67900000000000005,null,0.67900000000000005,0.67900000000000005,0.67900000000000005,0.67900000000000005,0.67900000000000005,0.67900000000000005,null,0.67900000000000005,0.67900000000000005,0.67900000000000005,0.67900000000000005,0.67900000000000005,0.67900000000000005]
["- SID His:Lys",0.31,0.31,0.31,0.31,0.31,0.31,null,0.31,0.31,0.31,0.31,0.31,0.31,null,0.31,0.31,0.31,0.31,0.31,0.31,null,0.31,0.31,0.31,0.31,0.31,0.31,null,0.31,0.31,0.31,0.31,0.31,0.31,null,0.31,0.31,0.31,0.31,0.31,0.31,null,0.31,0.31,0.31,0.31,0.31,0.31]
["- Avail P:ME, g/mcal (terminal)",{"$f":"IF(AVERAGE(B5:B6)<51,0.000025*((B6+B5)/2)^2 - 0.01005*((B6+B5)/2) + 1.5955,(0.00000649518*((B5+B6)/2)^2 - 0.00338103746*((B5+B6)/2) + 1.049852))","v":0.85122563532500006},0.77153564522499996,0.70381228360000003,0.65170908920000004,0.62039047080000009,0.60988816362500009,null,{"$f":"IF(AVERAGE(I5:I6)<51,0.000025*((I6+I5)/2)^2 - 0.01005*((I6+I5)/2) + 1.5955,(0.00000649518*((I5+I6)/2)^2 - 0.00338103746*((I5+I6)/2) + 1.049852))","v":0.85122563532500006},0.77153564522499996,0.70381228360000003,0.65170908920000004,0.62039047080000009,0.60988816362500009,null,{"$f":"IF(AVERAGE(P5:P6)<51,0.000025*((P6+P5)/2)^2 - 0.01005*((P6+P5)/2) + 1.5955,(0.00000649518*((P5+P6)/2)^2 - 0.00338103746*((P5+P6)/2) + 1.049852))","v":0.85122563532500006},0.77153564522499996,0.70381228360000003,0.65170908920000004,0.62039047080000009,0.60988816362500009,null,{"$f":"IF(AVERAGE(W5:W6)<51,0.000025*((W6+W5)/2)^2 - 0.01005*((W6+W5)/2) + 1.5955,(0.00000649518*((W5+W6)/2)^2 - 0.00338103746*((W5+W6)/2) + 1.049852))","v":0.85122563532500006},0.77153564522499996,0.70381228360000003,0.65170908920000004,0.62039047080000009,0.60988816362500009,null,{"$f":"IF(AVERAGE(AD5:AD6)<51,0.000025*((AD6+AD5)/2)^2 - 0.01005*((AD6+AD5)/2) + 1.5955,(0.00000649518*((AD5+AD6)/2)^2 - 0.00338103746*((AD5+AD6)/2) + 1.049852))","v":0.85122563532500006},0.77153564522499996,0.70381228360000003,0.65170908920000004,0.62039047080000009,0.60988816362500009,null,{"$f":"IF(AVERAGE(AK5:AK6)<51,0.000025*((AK6+AK5)/2)^2 - 0.01005*((AK6+AK5)/2) + 1.5955,(0.00000649518*((AK5+AK6)/2)^2 - 0.00338103746*((AK5+AK6)/2) + 1.049852))","v":0.85122563532500006},0.77153564522499996,0.70381228360000003,0.65170908920000004,0.62039047080000009,0.60988816362500009,null,{"$f":"IF(AVERAGE(AR5:AR6)<51,0.000025*((AR6+AR5)/2)^2 - 0.01005*((AR6+AR5)/2) + 1.5955,(0.00000649518*((AR5+AR6)/2)^2 - 0.00338103746*((AR5+AR6)/2) + 1.049852))","v":0.85122563532500006},0.77153564522499996,0.70381228360000003,0.65170908920000004,0.62039047080000009,0.60988816362500009]
["- Avail P:ME, g/mcal (Replacements)",{"$f":"IF(AVERAGE(B5:B6)<51,0.000025*((B6+B5)/2)^2 - 0.01005*((B6+B5)/2) + 1.5955,0.00000649518*((B6+B5)/2)^2 - 0.00338103746*((B6+B5)/2) + 1.3529)","v":1.154273635325},1.0745836452249999,1.0068602836,0.95475708920000002,0.92343847080000008,0.91293616362500007,null,{"$f":"IF(AVERAGE(I5:I6)<51,0.000025*((I6+I5)/2)^2 - 0.01005*((I6+I5)/2) + 1.5955,0.00000649518*((I6+I5)/2)^2 - 0.00338103746*((I6+I5)/2) + 1.3529)","v":1.154273635325},1.0745836452249999,1.0068602836,0.95475708920000002,0.92343847080000008,0.91293616362500007,null,{"$f":"IF(AVERAGE(P5:P6)<51,0.000025*((P6+P5)/2)^2 - 0.01005*((P6+P5)/2) + 1.5955,0.00000649518*((P6+P5)/2)^2 - 0.00338103746*((P6+P5)/2) + 1.3529)","v":1.154273635325},1.0745836452249999,1.0068602836,0.95475708920000002,0.92343847080000008,0.91293616362500007,null,{"$f":"IF(AVERAGE(W5:W6)<51,0.000025*((W6+W5)/2)^2 - 0.01005*((W6+W5)/2) + 1.5955,0.00000649518*((W6+W5)/2)^2 - 0.00338103746*((W6+W5)/2) + 1.3529)","v":1.154273635325},1.0745836452249999,1.0068602836,0.95475708920000002,0.92343847080000008,0.91293616362500007,null,{"$f":"IF(AVERAGE(AD5:AD6)<51,0.000025*((AD6+AD5)/2)^2 - 0.01005*((AD6+AD5)/2) + 1.5955,0.00000649518*((AD6+AD5)/2)^2 - 0.00338103746*((AD6+AD5)/2) + 1.3529)","v":1.154273635325},1.0745836452249999,1.0068602836,0.95475708920000002,0.92343847080000008,0.91293616362500007,null,{"$f":"IF(AVERAGE(AK5:AK6)<51,0.000025*((AK6+AK5)/2)^2 - 0.01005*((AK6+AK5)/2) + 1.5955,0.00000649518*((AK6+AK5)/2)^2 - 0.00338103746*((AK6+AK5)/2) + 1.3529)","v":1.154273635325},1.0745836452249999,1.0068602836,0.95475708920000002,0.92343847080000008,0.91293616362500007,null,{"$f":"IF(AVERAGE(AR5:AR6)<51,0.000025*((AR6+AR5)/2)^2 - 0.01005*((AR6+AR5)/2) + 1.5955,0.00000649518*((AR6+AR5)/2)^2 - 0.00338103746*((AR6+AR5)/2) + 1.3529)","v":1.154273635325},1.0745836452249999,1.0068602836,0.95475708920000002,0.92343847080000008,0.91293616362500007]
["- Available P, % (Terminal)",{"$f":"B281*(B246*2.2046)/10000","v":0.27996053561020928},0.25468658901444263,0.23309759512248635,0.21647481730659451,0.20653872384003844,0.20321869012127139,null,{"$f":"I281*(I246*2.2046)/10000","v":0.28247811977581866},0.25698081675063461,0.23523758751434365,0.21843858963327417,0.20840108305293892,0.20505381876866963,null,{"$f":"P281*(P246*2.2046)/10000","v":0.28503460510176915},0.25930487763736321,0.23736716074442257,0.22040704614242446,0.21027683778743048,0.20690127958491553,null,{"$f":"W281*(W246*2.2046)/10000","v":0.28759710388953769},0.26163548039053774,0.23949392553268395,0.22237799205340611,0.21216471620039634,0.20873985122460131,null,{"$f":"AD281*(AD246*2.2046)/10000","v":0.29017389857465892},0.26396809205574945,0.24161904064757719,0.22436539969621266,0.21399177122466886,0.21053966852518943,null,{"$f":"AK281*(AK246*2.2046)/10000","v":0.2928059341322361},0.26630314508303732,0.24375712442232803,0.22626303644607565,0.21583676893486567,0.21235589237949057,null,{"$f":"AR281*(AR246*2.2046)/10000","v":0.29535312248830309},0.26863222250622204,0.24583328767671192,0.22819694588947678,0.21768568005189659,0.21417579523922992]
["- STTD P, % (Terminal)",{"$f":" -0.096629122*LN(AVERAGE(B5:B6)/2.2046) + 0.7201091526","v":0.38948473530861316},0.34911934963648045,0.31899235830889017,0.29470806575817415,0.27531743264453717,0.25825045546730907,null,{"$f":" -0.096629122*LN(AVERAGE(I5:I6)/2.2046) + 0.7201091526","v":0.38948473530861316},0.34911934963648045,0.31899235830889017,0.29470806575817415,0.27531743264453717,0.25825045546730907,null,{"$f":" -0.096629122*LN(AVERAGE(P5:P6)/2.2046) + 0.7201091526","v":0.38948473530861316},0.34911934963648045,0.31899235830889017,0.29470806575817415,0.27531743264453717,0.25825045546730907,null,{"$f":" -0.096629122*LN(AVERAGE(W5:W6)/2.2046) + 0.7201091526","v":0.38948473530861316},0.34911934963648045,0.31899235830889017,0.29470806575817415,0.27531743264453717,0.25825045546730907,null,{"$f":" -0.096629122*LN(AVERAGE(AD5:AD6)/2.2046) + 0.7201091526","v":0.38948473530861316},0.34911934963648045,0.31899235830889017,0.29470806575817415,0.27531743264453717,0.25825045546730907,null,{"$f":" -0.096629122*LN(AVERAGE(AK5:AK6)/2.2046) + 0.7201091526","v":0.38948473530861316},0.34911934963648045,0.31899235830889017,0.29470806575817415,0.27531743264453717,0.25825045546730907,null,{"$f":" -0.096629122*LN(AVERAGE(AR5:AR6)/2.2046) + 0.7201091526","v":0.38948473530861316},0.34911934963648045,0.31899235830889017,0.29470806575817415,0.27531743264453717,0.25825045546730907]
["- Ca:P, Minimum",1,1,1,1,1,1,null,1,1,1,1,1,1,null,1,1,1,1,1,1,null,1,1,1,1,1,1,null,1,1,1,1,1,1,null,1,1,1,1,1,1,null,1,1,1,1,1,1]
["- Ca:P, Maximum",1.5,1.5,1.5,1.5,1.5,1.5,null,1.5,1.5,1.5,1.5,1.5,1.5,null,1.5,1.5,1.5,1.5,1.5,1.5,null,1.5,1.5,1.5,1.5,1.5,1.5,null,1.5,1.5,1.5,1.5,1.5,1.5,null,1.5,1.5,1.5,1.5,1.5,1.5,null,1.5,1.5,1.5,1.5,1.5,1.5]
["NRC Ca, %",{"$f":"-0.12264*LN(AVERAGE(B5:B6)/2.2046) + 1.07262","v":0.65299724345031629},0.60176619843647083,0.56352954534532851,0.53270834386095811,0.50809808976948001,0.48643697935376851,null,{"$f":"-0.12264*LN(AVERAGE(I5:I6)/2.2046) + 1.07262","v":0.65299724345031629},0.60176619843647083,0.56352954534532851,0.53270834386095811,0.50809808976948001,0.48643697935376851,null,{"$f":"-0.12264*LN(AVERAGE(P5:P6)/2.2046) + 1.07262","v":0.65299724345031629},0.60176619843647083,0.56352954534532851,0.53270834386095811,0.50809808976948001,0.48643697935376851,null,{"$f":"-0.12264*LN(AVERAGE(W5:W6)/2.2046) + 1.07262","v":0.65299724345031629},0.60176619843647083,0.56352954534532851,0.53270834386095811,0.50809808976948001,0.48643697935376851,null,{"$f":"-0.12264*LN(AVERAGE(AD5:AD6)/2.2046) + 1.07262","v":0.65299724345031629},0.60176619843647083,0.56352954534532851,0.53270834386095811,0.50809808976948001,0.48643697935376851,null,{"$f":"-0.12264*LN(AVERAGE(AK5:AK6)/2.2046) + 1.07262","v":0.65299724345031629},0.60176619843647083,0.56352954534532851,0.53270834386095811,0.50809808976948001,0.48643697935376851,null,{"$f":"-0.12264*LN(AVERAGE(AR5:AR6)/2.2046) + 1.07262","v":0.65299724345031629},0.60176619843647083,0.56352954534532851,0.53270834386095811,0.50809808976948001,0.48643697935376851]
["NRC STTD P, %",0.4,0.36,0.32,0.28999999999999998,0.27,0.26,null,0.4,0.36,0.32,0.28999999999999998,0.27,0.26,null,0.4,0.36,0.32,0.28999999999999998,0.27,0.26,null,0.4,0.36,0.32,0.28999999999999998,0.27,0.26,null,0.4,0.36,0.32,0.28999999999999998,0.27,0.26,null,0.4,0.36,0.32,0.28999999999999998,0.27,0.26,null,0.4,0.36,0.32,0.28999999999999998,0.27,0.26]
["NRC Ca:STTD P",1.74,1.74,1.79,1.79,1.77,1.77,null,1.74,1.74,1.79,1.79,1.77,1.77,null,1.74,1.74,1.79,1.79,1.77,1.77,null,1.74,1.74,1.79,1.79,1.77,1.77,null,1.74,1.74,1.79,1.79,1.77,1.77,null,1.74,1.74,1.79,1.79,1.77,1.77,null,1.74,1.74,1.79,1.79,1.77,1.77]
["- Lysine:CP, Maximum",7.3,8.3000000000000007,9.3000000000000007,10.3,11.3,11.3,null,7.3,8.3000000000000007,9.3000000000000007,10.3,11.3,11.3,null,7.3,8.3000000000000007,9.3000000000000007,10.3,11.3,11.3,null,7.3,8.3000000000000007,9.3000000000000007,10.3,11.3,11.3,null,7.3,8.3000000000000007,9.3000000000000007,10.3,11.3,11.3,null,7.3,8.3000000000000007,9.3000000000000007,10.3,11.3,11.3,null,7.3,8.3000000000000007,9.3000000000000007,10.3,11.3,11.3]
[]
["Required SID Lys:ME Ratio",{"$f":"IF(AVERAGE(B5:B6)<15,-0.0525*((B5+B6)/2) + 5.0586,IF(AVERAGE(B5:B6)<50,(-0.007855*((B5+B6)/2) + 4.1),(0.000025*((B5+B6)/2)^2 - 0.016*((B5+B6)/2)+ 4.53)*0.87))","v":3.1005984375},2.7428109375000003,2.4186000000000001,2.1402000000000005,1.9314000000000002,1.7858109375,null,{"$f":"IF(AVERAGE(I5:I6)<15,-0.0525*((I5+I6)/2) + 5.0586,IF(AVERAGE(I5:I6)<50,(-0.007855*((I5+I6)/2) + 4.1),(0.000025*((I5+I6)/2)^2 - 0.016*((I5+I6)/2)+ 4.53)*0.87))","v":3.1005984375},2.7428109375000003,2.4186000000000001,2.1402000000000005,1.9314000000000002,1.7858109375,null,{"$f":"IF(AVERAGE(P5:P6)<15,-0.0525*((P5+P6)/2) + 5.0586,IF(AVERAGE(P5:P6)<50,(-0.007855*((P5+P6)/2) + 4.1),(0.000025*((P5+P6)/2)^2 - 0.016*((P5+P6)/2)+ 4.53)*0.87))","v":3.1005984375},2.7428109375000003,2.4186000000000001,2.1402000000000005,1.9314000000000002,1.7858109375,null,{"$f":"IF(AVERAGE(W5:W6)<15,-0.0525*((W5+W6)/2) + 5.0586,IF(AVERAGE(W5:W6)<50,(-0.007855*((W5+W6)/2) + 4.1),(0.000025*((W5+W6)/2)^2 - 0.016*((W5+W6)/2)+ 4.53)*0.87))","v":3.1005984375},2.7428109375000003,2.4186000000000001,2.1402000000000005,1.9314000000000002,1.7858109375,null,{"$f":"IF(AVERAGE(AD5:AD6)<15,-0.0525*((AD5+AD6)/2) + 5.0586,IF(AVERAGE(AD5:AD6)<50,(-0.007855*((AD5+AD6)/2) + 4.1),(0.000025*((AD5+AD6)/2)^2 - 0.016*((AD5+AD6)/2)+ 4.53)*0.87))","v":3.1005984375},2.7428109375000003,2.4186000000000001,2.1402000000000005,1.9314000000000002,1.7858109375,null,{"$f":"IF(AVERAGE(AK5:AK6)<15,-0.0525*((AK5+AK6)/2) + 5.0586,IF(AVERAGE(AK5:AK6)<50,(-0.007855*((AK5+AK6)/2) + 4.1),(0.000025*((AK5+AK6)/2)^2 - 0.016*((AK5+AK6)/2)+ 4.53)*0.87))","v":3.1005984375},2.7428109375000003,2.4186000000000001,2.1402000000000005,1.9314000000000002,1.7858109375,null,{"$f":"IF(AVERAGE(AR5:AR6)<15,-0.0525*((AR5+AR6)/2) + 5.0586,IF(AVERAGE(AR5:AR6)<50,(-0.007855*((AR5+AR6)/2) + 4.1),(0.000025*((AR5+AR6)/2)^2 - 0.016*((AR5+AR6)/2)+ 4.53)*0.87))","v":3.1005984375},2.7428109375000003,2.4186000000000001,2.1402000000000005,1.9314000000000002,1.7858109375]
["Calculated SID Lysine Required, %",{"$f":"IF(B292=\"\",\"\",B246*2.2046*B292/10000)","v":1.0197592309861019},0.90541139130346093,0.80102302375224621,0.71089909850466104,0.6429964836665738,0.59504378206974184,null,{"$f":"IF(I292=\"\",\"\",I246*2.2046*I292/10000)","v":1.0289295581076325},0.91356737601640048,0.80837695280343014,0.71734808871088784,0.64879438152783153,0.60041721445571361,null,{"$f":"IF(P292=\"\",\"\",P246*2.2046*P292/10000)","v":1.0382415831197873},0.92182941764595649,0.81569507715886702,0.72381246168143343,0.65463398233524772,0.60582675661282814,null,{"$f":"IF(W292=\"\",\"\",W246*2.2046*W292/10000)","v":1.0475755122306245},0.93011471562530079,0.82300355050715612,0.73028500979927702,0.66051132658603928,0.61121027040987064,null,{"$f":"IF(AD292=\"\",\"\",AD246*2.2046*AD292/10000)","v":1.0569615142997406},0.93840715529141239,0.83030635487224991,0.73681161792492988,0.66619931542527722,0.61648030779145901,null,{"$f":"IF(AK292=\"\",\"\",AK246*2.2046*AK292/10000)","v":1.0665487318347864},0.94670827400514312,0.83765372509881364,0.74304342018050706,0.67194316344550731,0.62179838513318242,null,{"$f":"IF(AR292=\"\",\"\",AR246*2.2046*AR292/10000)","v":1.0758268925351795},0.9549881494329755,0.84478830993636189,0.74939434125765192,0.67769919468632989,0.62712723495507916]
[]
[]
["Other nutrients, calculated"]
["Other ingredients TID Lysine, %",{"$f":"SUMPRODUCT(B$9:B$229,Nutrients!$DA$8:$DA$228)/2000","v":0.24855419080599378},{"$f":"SUMPRODUCT(C$9:C$229,Nutrients!$DA$8:$DA$228)/2000","v":0.24598837503388346},{"$f":"SUMPRODUCT(D$9:D$229,Nutrients!$DA$8:$DA$228)/2000","v":0.24037497861787219},{"$f":"SUMPRODUCT(E$9:E$229,Nutrients!$DA$8:$DA$228)/2000","v":0.23743614434297908},{"$f":"SUMPRODUCT(F$9:F$229,Nutrients!$DA$8:$DA$228)/2000","v":0.23330638337529597},{"$f":"SUMPRODUCT(G$9:G$229,Nutrients!$DA$8:$DA$228)/2000","v":0.2281455840399364},null,{"$f":"SUMPRODUCT(I$9:I$229,Nutrients!$DA$8:$DA$228)/2000","v":0.29595419080599378},{"$f":"SUMPRODUCT(J$9:J$229,Nutrients!$DA$8:$DA$228)/2000","v":0.29338837503388343},{"$f":"SUMPRODUCT(K$9:K$229,Nutrients!$DA$8:$DA$228)/2000","v":0.28777497861787221},{"$f":"SUMPRODUCT(L$9:L$229,Nutrients!$DA$8:$DA$228)/2000","v":0.2848361443429791},{"$f":"SUMPRODUCT(M$9:M$229,Nutrients!$DA$8:$DA$228)/2000","v":0.28070638337529596},{"$f":"SUMPRODUCT(N$9:N$229,Nutrients!$DA$8:$DA$228)/2000","v":0.2755455840399364},null,{"$f":"SUMPRODUCT(P$9:P$229,Nutrients!$DA$8:$DA$228)/2000","v":0.34335419080599378},{"$f":"SUMPRODUCT(Q$9:Q$229,Nutrients!$DA$8:$DA$228)/2000","v":0.34078837503388343},{"$f":"SUMPRODUCT(R$9:R$229,Nutrients!$DA$8:$DA$228)/2000","v":0.33517497861787215},{"$f":"SUMPRODUCT(S$9:S$229,Nutrients!$DA$8:$DA$228)/2000","v":0.33223614434297905},{"$f":"SUMPRODUCT(T$9:T$229,Nutrients!$DA$8:$DA$228)/2000","v":0.32810638337529602},{"$f":"SUMPRODUCT(U$9:U$229,Nutrients!$DA$8:$DA$228)/2000","v":0.3229455840399364},null,{"$f":"SUMPRODUCT(W$9:W$229,Nutrients!$DA$8:$DA$228)/2000","v":0.39075419080599372},{"$f":"SUMPRODUCT(X$9:X$229,Nutrients!$DA$8:$DA$228)/2000","v":0.38818837503388348},{"$f":"SUMPRODUCT(Y$9:Y$229,Nutrients!$DA$8:$DA$228)/2000","v":0.38257497861787215},{"$f":"SUMPRODUCT(Z$9:Z$229,Nutrients!$DA$8:$DA$228)/2000","v":0.37963614434297904},{"$f":"SUMPRODUCT(AA$9:AA$229,Nutrients!$DA$8:$DA$228)/2000","v":0.37550638337529596},{"$f":"SUMPRODUCT(AB$9:AB$229,Nutrients!$DA$8:$DA$228)/2000","v":0.37034558403993639},null,{"$f":"SUMPRODUCT(AD$9:AD$229,Nutrients!$DA$8:$DA$228)/2000","v":0.43815419080599377},{"$f":"SUMPRODUCT(AE$9:AE$229,Nutrients!$DA$8:$DA$228)/2000","v":0.43558837503388342},{"$f":"SUMPRODUCT(AF$9:AF$229,Nutrients!$DA$8:$DA$228)/2000","v":0.42997497861787221},{"$f":"SUMPRODUCT(AG$9:AG$229,Nutrients!$DA$8:$DA$228)/2000","v":0.4270361443429791},{"$f":"SUMPRODUCT(AH$9:AH$229,Nutrients!$DA$8:$DA$228)/2000","v":0.42290638337529601},{"$f":"SUMPRODUCT(AI$9:AI$229,Nutrients!$DA$8:$DA$228)/2000","v":0.41774558403993639},null,{"$f":"SUMPRODUCT(AK$9:AK$229,Nutrients!$DA$8:$DA$228)/2000","v":0.48555419080599382},{"$f":"SUMPRODUCT(AL$9:AL$229,Nutrients!$DA$8:$DA$228)/2000","v":0.48298837503388348},{"$f":"SUMPRODUCT(AM$9:AM$229,Nutrients!$DA$8:$DA$228)/2000","v":0.4773749786178722},{"$f":"SUMPRODUCT(AN$9:AN$229,Nutrients!$DA$8:$DA$228)/2000","v":0.47443614434297909},{"$f":"SUMPRODUCT(AO$9:AO$229,Nutrients!$DA$8:$DA$228)/2000","v":0.47030638337529601},{"$f":"SUMPRODUCT(AP$9:AP$229,Nutrients!$DA$8:$DA$228)/2000","v":0.46514558403993644},null,{"$f":"SUMPRODUCT(AR$9:AR$229,Nutrients!$DA$8:$DA$228)/2000","v":0.53295419080599382},{"$f":"SUMPRODUCT(AS$9:AS$229,Nutrients!$DA$8:$DA$228)/2000","v":0.53038837503388359},{"$f":"SUMPRODUCT(AT$9:AT$229,Nutrients!$DA$8:$DA$228)/2000","v":0.52477497861787226},{"$f":"SUMPRODUCT(AU$9:AU$229,Nutrients!$DA$8:$DA$228)/2000","v":0.5218361443429792},{"$f":"SUMPRODUCT(AV$9:AV$229,Nutrients!$DA$8:$DA$228)/2000","v":0.51770638337529606},{"$f":"SUMPRODUCT(AW$9:AW$229,Nutrients!$DA$8:$DA$228)/2000","v":0.51254558403993644}]
["Total Lys:ME, g/mcal",{"$f":"IF(B$5=\"\",\"\",B245/(B246*2.2046)*10000)","v":4.0434845516419928},3.5693197159555714,3.1528272192975133,2.8088586731646132,2.5736429013234892,2.4458370650662657,null,{"$f":"IF(I$5=\"\",\"\",I245/(I246*2.2046)*10000)","v":4.0323091111899432},3.5622155309279555,3.1488374182162602,2.8082532866660155,2.5752185320725345,2.4485129631058822,null,{"$f":"IF(P$5=\"\",\"\",P245/(P246*2.2046)*10000)","v":4.0207809333635325},3.5548330949797315,3.1450426720584019,2.8075618430917633,2.5765783146723584,2.4509559553936691,null,{"$f":"IF(W$5=\"\",\"\",W245/(W246*2.2046)*10000)","v":4.0093718685426092},3.547490713246451,3.1413579561417566,2.8068581920746225,2.5777620734582865,2.4534068155571691,null,{"$f":"IF(AD$5=\"\",\"\",AD245/(AD246*2.2046)*10000)","v":3.9979649009332054},3.5402525914631071,3.1377657107801658,2.8059416977353226,2.5795051760984089,2.4561140154833168,null,{"$f":"IF(AK$5=\"\",\"\",AK245/(AK246*2.2046)*10000)","v":3.9859896237134458},3.5331091308468845,3.1340511181367496,2.8060236417305022,2.5809659525798745,2.4585979403159359,null,{"$f":"IF(AR$5=\"\",\"\",AR245/(AR246*2.2046)*10000)","v":3.9753947057160897},3.5261681547282162,3.1311556875424227,2.8056036557981519,2.5823528165599265,2.4609948608673804]
["SID Lys:ME, g/mcal",{"$f":"IF(B$5=\"\",\"\",B236/(B246*2.2046)*10000)","v":3.6063972315389758},3.1769527308876992,2.7987491648675547,2.4869234391841561,2.2730285254980038,2.1560010424593594,null,{"$f":"IF(I$5=\"\",\"\",I236/(I246*2.2046)*10000)","v":3.5742552427285665},3.1485900960267239,2.7732885147103237,2.4645658903799825,2.2527157922164234,2.1367059164256363,null,{"$f":"IF(P$5=\"\",\"\",P236/(P246*2.2046)*10000)","v":3.5421976226512615},3.1203703604120689,2.7484075625108271,2.442554839217792,2.2326206530790094,2.117626863534535,null,{"$f":"IF(W$5=\"\",\"\",W236/(W246*2.2046)*10000)","v":3.5106365360084459},3.0925746511220087,2.7240010293816943,2.4209063683945251,2.2127544075940224,2.0989748971184907,null,{"$f":"IF(AD$5=\"\",\"\",AD236/(AD246*2.2046)*10000)","v":3.4794614730141036},3.0652464401607324,2.7000425874269176,2.3994622071041447,2.1938619799331884,2.0810316213462956,null,{"$f":"IF(AK$5=\"\",\"\",AK236/(AK246*2.2046)*10000)","v":3.4481845579975618},3.0383691271750042,2.6763595165792666,2.3793382498920996,2.1751085935225247,2.0632331075876578,null,{"$f":"IF(AR$5=\"\",\"\",AR236/(AR246*2.2046)*10000)","v":3.4184466785341434},3.0120260590524119,2.6537565593623835,2.359173980416116,2.1566343307306202,2.0457013233418539]
["Lysine:CP",{"$f":"B245/B253*100","v":6.4370478420696102},6.3776088080946991,6.2955955211424843,6.2166350165421349,6.1431562205295167,6.0778386851000716,null,{"$f":"I245/I253*100","v":6.37084815218142},6.3049180961614244,6.2162640539522558,6.1306164795804952,6.052770100566029,5.9853853173214855,null,{"$f":"P245/P253*100","v":6.3067057997087117},6.2346743221838974,6.1401563589347283,6.048721163939085,5.9659369220641123,5.8962309264196193,null,{"$f":"W245/W253*100","v":6.2446198502468757},6.1669360471271331,6.0669555840387135,5.971227494136838,5.8820690044773354,5.8116469501979537,null,{"$f":"AD245/AD253*100","v":6.1844975565342857},6.1015308173977889,5.9985556470150003,5.8944681967351462,5.804123741029577,5.7331943518327382,null,{"$f":"AK245/AK253*100","v":6.1263841543621478},6.0383531012962353,5.9292692854908218,5.8226410234786341,5.730296001533957,5.6583259271547961,null,{"$f":"AR245/AR253*100","v":6.0702563864006516},5.9777978088090977,5.8634088183468602,5.7545742427694435,5.6590646150332073,5.5862252625515341]
["Crude fat, %",{"$f":"(SUMPRODUCT(B$9:B$229,Nutrients!$K$8:$K$228)+(IF($A$7=Nutrients!$B$8,Nutrients!$K$8,Nutrients!$K$9)*B$7)+(((IF($A$8=Nutrients!$B$79,Nutrients!$K$79,(IF($A$8=Nutrients!$B$77,Nutrients!$K$77,Nutrients!$K$78)))))*B$8))/2000","v":2.7726851771066428},{"$f":"(SUMPRODUCT(C$9:C$229,Nutrients!$K$8:$K$228)+(IF($A$7=Nutrients!$B$8,Nutrients!$K$8,Nutrients!$K$9)*C$7)+(((IF($A$8=Nutrients!$B$79,Nutrients!$K$79,(IF($A$8=Nutrients!$B$77,Nutrients!$K$77,Nutrients!$K$78)))))*C$8))/2000","v":2.8895248185748268},{"$f":"(SUMPRODUCT(D$9:D$229,Nutrients!$K$8:$K$228)+(IF($A$7=Nutrients!$B$8,Nutrients!$K$8,Nutrients!$K$9)*D$7)+(((IF($A$8=Nutrients!$B$79,Nutrients!$K$79,(IF($A$8=Nutrients!$B$77,Nutrients!$K$77,Nutrients!$K$78)))))*D$8))/2000","v":2.9911114387020761},{"$f":"(SUMPRODUCT(E$9:E$229,Nutrients!$K$8:$K$228)+(IF($A$7=Nutrients!$B$8,Nutrients!$K$8,Nutrients!$K$9)*E$7)+(((IF($A$8=Nutrients!$B$79,Nutrients!$K$79,(IF($A$8=Nutrients!$B$77,Nutrients!$K$77,Nutrients!$K$78)))))*E$8))/2000","v":3.0762951752970258},{"$f":"(SUMPRODUCT(F$9:F$229,Nutrients!$K$8:$K$228)+(IF($A$7=Nutrients!$B$8,Nutrients!$K$8,Nutrients!$K$9)*F$7)+(((IF($A$8=Nutrients!$B$79,Nutrients!$K$79,(IF($A$8=Nutrients!$B$77,Nutrients!$K$77,Nutrients!$K$78)))))*F$8))/2000","v":3.1350305214620882},{"$f":"(SUMPRODUCT(G$9:G$229,Nutrients!$K$8:$K$228)+(IF($A$7=Nutrients!$B$8,Nutrients!$K$8,Nutrients!$K$9)*G$7)+(((IF($A$8=Nutrients!$B$79,Nutrients!$K$79,(IF($A$8=Nutrients!$B$77,Nutrients!$K$77,Nutrients!$K$78)))))*G$8))/2000","v":3.1635989425624271},null,{"$f":"(SUMPRODUCT(I$9:I$229,Nutrients!$K$8:$K$228)+(IF($A$7=Nutrients!$B$8,Nutrients!$K$8,Nutrients!$K$9)*I$7)+(((IF($A$8=Nutrients!$B$79,Nutrients!$K$79,(IF($A$8=Nutrients!$B$77,Nutrients!$K$77,Nutrients!$K$78)))))*I$8))/2000","v":3.6711713178515257},{"$f":"(SUMPRODUCT(J$9:J$229,Nutrients!$K$8:$K$228)+(IF($A$7=Nutrients!$B$8,Nutrients!$K$8,Nutrients!$K$9)*J$7)+(((IF($A$8=Nutrients!$B$79,Nutrients!$K$79,(IF($A$8=Nutrients!$B$77,Nutrients!$K$77,Nutrients!$K$78)))))*J$8))/2000","v":3.792400289663433},{"$f":"(SUMPRODUCT(K$9:K$229,Nutrients!$K$8:$K$228)+(IF($A$7=Nutrients!$B$8,Nutrients!$K$8,Nutrients!$K$9)*K$7)+(((IF($A$8=Nutrients!$B$79,Nutrients!$K$79,(IF($A$8=Nutrients!$B$77,Nutrients!$K$77,Nutrients!$K$78)))))*K$8))/2000","v":3.8975528769669689},{"$f":"(SUMPRODUCT(L$9:L$229,Nutrients!$K$8:$K$228)+(IF($A$7=Nutrients!$B$8,Nutrients!$K$8,Nutrients!$K$9)*L$7)+(((IF($A$8=Nutrients!$B$79,Nutrients!$K$79,(IF($A$8=Nutrients!$B$77,Nutrients!$K$77,Nutrients!$K$78)))))*L$8))/2000","v":3.972947157110859},{"$f":"(SUMPRODUCT(M$9:M$229,Nutrients!$K$8:$K$228)+(IF($A$7=Nutrients!$B$8,Nutrients!$K$8,Nutrients!$K$9)*M$7)+(((IF($A$8=Nutrients!$B$79,Nutrients!$K$79,(IF($A$8=Nutrients!$B$77,Nutrients!$K$77,Nutrients!$K$78)))))*M$8))/2000","v":4.0350426378319115},{"$f":"(SUMPRODUCT(N$9:N$229,Nutrients!$K$8:$K$228)+(IF($A$7=Nutrients!$B$8,Nutrients!$K$8,Nutrients!$K$9)*N$7)+(((IF($A$8=Nutrients!$B$79,Nutrients!$K$79,(IF($A$8=Nutrients!$B$77,Nutrients!$K$77,Nutrients!$K$78)))))*N$8))/2000","v":4.0612335527843122},null,{"$f":"(SUMPRODUCT(P$9:P$229,Nutrients!$K$8:$K$228)+(IF($A$7=Nutrients!$B$8,Nutrients!$K$8,Nutrients!$K$9)*P$7)+(((IF($A$8=Nutrients!$B$79,Nutrients!$K$79,(IF($A$8=Nutrients!$B$77,Nutrients!$K$77,Nutrients!$K$78)))))*P$8))/2000","v":4.5752487345595556},{"$f":"(SUMPRODUCT(Q$9:Q$229,Nutrients!$K$8:$K$228)+(IF($A$7=Nutrients!$B$8,Nutrients!$K$8,Nutrients!$K$9)*Q$7)+(((IF($A$8=Nutrients!$B$79,Nutrients!$K$79,(IF($A$8=Nutrients!$B$77,Nutrients!$K$77,Nutrients!$K$78)))))*Q$8))/2000","v":4.6982485202031041},{"$f":"(SUMPRODUCT(R$9:R$229,Nutrients!$K$8:$K$228)+(IF($A$7=Nutrients!$B$8,Nutrients!$K$8,Nutrients!$K$9)*R$7)+(((IF($A$8=Nutrients!$B$79,Nutrients!$K$79,(IF($A$8=Nutrients!$B$77,Nutrients!$K$77,Nutrients!$K$78)))))*R$8))/2000","v":4.8060739642680526},{"$f":"(SUMPRODUCT(S$9:S$229,Nutrients!$K$8:$K$228)+(IF($A$7=Nutrients!$B$8,Nutrients!$K$8,Nutrients!$K$9)*S$7)+(((IF($A$8=Nutrients!$B$79,Nutrients!$K$79,(IF($A$8=Nutrients!$B$77,Nutrients!$K$77,Nutrients!$K$78)))))*S$8))/2000","v":4.8804169232959946},{"$f":"(SUMPRODUCT(T$9:T$229,Nutrients!$K$8:$K$228)+(IF($A$7=Nutrients!$B$8,Nutrients!$K$8,Nutrients!$K$9)*T$7)+(((IF($A$8=Nutrients!$B$79,Nutrients!$K$79,(IF($A$8=Nutrients!$B$77,Nutrients!$K$77,Nutrients!$K$78)))))*T$8))/2000","v":4.9415614866287925},{"$f":"(SUMPRODUCT(U$9:U$229,Nutrients!$K$8:$K$228)+(IF($A$7=Nutrients!$B$8,Nutrients!$K$8,Nutrients!$K$9)*U$7)+(((IF($A$8=Nutrients!$B$79,Nutrients!$K$79,(IF($A$8=Nutrients!$B$77,Nutrients!$K$77,Nutrients!$K$78)))))*U$8))/2000","v":4.9676409420532099},null,{"$f":"(SUMPRODUCT(W$9:W$229,Nutrients!$K$8:$K$228)+(IF($A$7=Nutrients!$B$8,Nutrients!$K$8,Nutrients!$K$9)*W$7)+(((IF($A$8=Nutrients!$B$79,Nutrients!$K$79,(IF($A$8=Nutrients!$B$77,Nutrients!$K$77,Nutrients!$K$78)))))*W$8))/2000","v":5.4807232534556682},{"$f":"(SUMPRODUCT(X$9:X$229,Nutrients!$K$8:$K$228)+(IF($A$7=Nutrients!$B$8,Nutrients!$K$8,Nutrients!$K$9)*X$7)+(((IF($A$8=Nutrients!$B$79,Nutrients!$K$79,(IF($A$8=Nutrients!$B$77,Nutrients!$K$77,Nutrients!$K$78)))))*X$8))/2000","v":5.6057735998635767},{"$f":"(SUMPRODUCT(Y$9:Y$229,Nutrients!$K$8:$K$228)+(IF($A$7=Nutrients!$B$8,Nutrients!$K$8,Nutrients!$K$9)*Y$7)+(((IF($A$8=Nutrients!$B$79,Nutrients!$K$79,(IF($A$8=Nutrients!$B$77,Nutrients!$K$77,Nutrients!$K$78)))))*Y$8))/2000","v":5.7125326290062963},{"$f":"(SUMPRODUCT(Z$9:Z$229,Nutrients!$K$8:$K$228)+(IF($A$7=Nutrients!$B$8,Nutrients!$K$8,Nutrients!$K$9)*Z$7)+(((IF($A$8=Nutrients!$B$79,Nutrients!$K$79,(IF($A$8=Nutrients!$B$77,Nutrients!$K$77,Nutrients!$K$78)))))*Z$8))/2000","v":5.7892527689027142},{"$f":"(SUMPRODUCT(AA$9:AA$229,Nutrients!$K$8:$K$228)+(IF($A$7=Nutrients!$B$8,Nutrients!$K$8,Nutrients!$K$9)*AA$7)+(((IF($A$8=Nutrients!$B$79,Nutrients!$K$79,(IF($A$8=Nutrients!$B$77,Nutrients!$K$77,Nutrients!$K$78)))))*AA$8))/2000","v":5.8486380163695797},{"$f":"(SUMPRODUCT(AB$9:AB$229,Nutrients!$K$8:$K$228)+(IF($A$7=Nutrients!$B$8,Nutrients!$K$8,Nutrients!$K$9)*AB$7)+(((IF($A$8=Nutrients!$B$79,Nutrients!$K$79,(IF($A$8=Nutrients!$B$77,Nutrients!$K$77,Nutrients!$K$78)))))*AB$8))/2000","v":5.8860086875794426},null,{"$f":"(SUMPRODUCT(AD$9:AD$229,Nutrients!$K$8:$K$228)+(IF($A$7=Nutrients!$B$8,Nutrients!$K$8,Nutrients!$K$9)*AD$7)+(((IF($A$8=Nutrients!$B$79,Nutrients!$K$79,(IF($A$8=Nutrients!$B$77,Nutrients!$K$77,Nutrients!$K$78)))))*AD$8))/2000","v":6.3888824866548513},{"$f":"(SUMPRODUCT(AE$9:AE$229,Nutrients!$K$8:$K$228)+(IF($A$7=Nutrients!$B$8,Nutrients!$K$8,Nutrients!$K$9)*AE$7)+(((IF($A$8=Nutrients!$B$79,Nutrients!$K$79,(IF($A$8=Nutrients!$B$77,Nutrients!$K$77,Nutrients!$K$78)))))*AE$8))/2000","v":6.5131769767994037},{"$f":"(SUMPRODUCT(AF$9:AF$229,Nutrients!$K$8:$K$228)+(IF($A$7=Nutrients!$B$8,Nutrients!$K$8,Nutrients!$K$9)*AF$7)+(((IF($A$8=Nutrients!$B$79,Nutrients!$K$79,(IF($A$8=Nutrients!$B$77,Nutrients!$K$77,Nutrients!$K$78)))))*AF$8))/2000","v":6.6235904113595403},{"$f":"(SUMPRODUCT(AG$9:AG$229,Nutrients!$K$8:$K$228)+(IF($A$7=Nutrients!$B$8,Nutrients!$K$8,Nutrients!$K$9)*AG$7)+(((IF($A$8=Nutrients!$B$79,Nutrients!$K$79,(IF($A$8=Nutrients!$B$77,Nutrients!$K$77,Nutrients!$K$78)))))*AG$8))/2000","v":6.6982480806140074},{"$f":"(SUMPRODUCT(AH$9:AH$229,Nutrients!$K$8:$K$228)+(IF($A$7=Nutrients!$B$8,Nutrients!$K$8,Nutrients!$K$9)*AH$7)+(((IF($A$8=Nutrients!$B$79,Nutrients!$K$79,(IF($A$8=Nutrients!$B$77,Nutrients!$K$77,Nutrients!$K$78)))))*AH$8))/2000","v":6.7873461210862658},{"$f":"(SUMPRODUCT(AI$9:AI$229,Nutrients!$K$8:$K$228)+(IF($A$7=Nutrients!$B$8,Nutrients!$K$8,Nutrients!$K$9)*AI$7)+(((IF($A$8=Nutrients!$B$79,Nutrients!$K$79,(IF($A$8=Nutrients!$B$77,Nutrients!$K$77,Nutrients!$K$78)))))*AI$8))/2000","v":6.8402179897473561},null,{"$f":"(SUMPRODUCT(AK$9:AK$229,Nutrients!$K$8:$K$228)+(IF($A$7=Nutrients!$B$8,Nutrients!$K$8,Nutrients!$K$9)*AK$7)+(((IF($A$8=Nutrients!$B$79,Nutrients!$K$79,(IF($A$8=Nutrients!$B$77,Nutrients!$K$77,Nutrients!$K$78)))))*AK$8))/2000","v":7.3095574628317488},{"$f":"(SUMPRODUCT(AL$9:AL$229,Nutrients!$K$8:$K$228)+(IF($A$7=Nutrients!$B$8,Nutrients!$K$8,Nutrients!$K$9)*AL$7)+(((IF($A$8=Nutrients!$B$79,Nutrients!$K$79,(IF($A$8=Nutrients!$B$77,Nutrients!$K$77,Nutrients!$K$78)))))*AL$8))/2000","v":7.4208878184611544},{"$f":"(SUMPRODUCT(AM$9:AM$229,Nutrients!$K$8:$K$228)+(IF($A$7=Nutrients!$B$8,Nutrients!$K$8,Nutrients!$K$9)*AM$7)+(((IF($A$8=Nutrients!$B$79,Nutrients!$K$79,(IF($A$8=Nutrients!$B$77,Nutrients!$K$77,Nutrients!$K$78)))))*AM$8))/2000","v":7.5299592867460463},{"$f":"(SUMPRODUCT(AN$9:AN$229,Nutrients!$K$8:$K$228)+(IF($A$7=Nutrients!$B$8,Nutrients!$K$8,Nutrients!$K$9)*AN$7)+(((IF($A$8=Nutrients!$B$79,Nutrients!$K$79,(IF($A$8=Nutrients!$B$77,Nutrients!$K$77,Nutrients!$K$78)))))*AN$8))/2000","v":7.6282383083872691},{"$f":"(SUMPRODUCT(AO$9:AO$229,Nutrients!$K$8:$K$228)+(IF($A$7=Nutrients!$B$8,Nutrients!$K$8,Nutrients!$K$9)*AO$7)+(((IF($A$8=Nutrients!$B$79,Nutrients!$K$79,(IF($A$8=Nutrients!$B$77,Nutrients!$K$77,Nutrients!$K$78)))))*AO$8))/2000","v":7.7409126362231016},{"$f":"(SUMPRODUCT(AP$9:AP$229,Nutrients!$K$8:$K$228)+(IF($A$7=Nutrients!$B$8,Nutrients!$K$8,Nutrients!$K$9)*AP$7)+(((IF($A$8=Nutrients!$B$79,Nutrients!$K$79,(IF($A$8=Nutrients!$B$77,Nutrients!$K$77,Nutrients!$K$78)))))*AP$8))/2000","v":7.7945583511233254},null,{"$f":"(SUMPRODUCT(AR$9:AR$229,Nutrients!$K$8:$K$228)+(IF($A$7=Nutrients!$B$8,Nutrients!$K$8,Nutrients!$K$9)*AR$7)+(((IF($A$8=Nutrients!$B$79,Nutrients!$K$79,(IF($A$8=Nutrients!$B$77,Nutrients!$K$77,Nutrients!$K$78)))))*AR$8))/2000","v":8.2126495220058491},{"$f":"(SUMPRODUCT(AS$9:AS$229,Nutrients!$K$8:$K$228)+(IF($A$7=Nutrients!$B$8,Nutrients!$K$8,Nutrients!$K$9)*AS$7)+(((IF($A$8=Nutrients!$B$79,Nutrients!$K$79,(IF($A$8=Nutrients!$B$77,Nutrients!$K$77,Nutrients!$K$78)))))*AS$8))/2000","v":8.3291964730234405},{"$f":"(SUMPRODUCT(AT$9:AT$229,Nutrients!$K$8:$K$228)+(IF($A$7=Nutrients!$B$8,Nutrients!$K$8,Nutrients!$K$9)*AT$7)+(((IF($A$8=Nutrients!$B$79,Nutrients!$K$79,(IF($A$8=Nutrients!$B$77,Nutrients!$K$77,Nutrients!$K$78)))))*AT$8))/2000","v":8.4367691585733695},{"$f":"(SUMPRODUCT(AU$9:AU$229,Nutrients!$K$8:$K$228)+(IF($A$7=Nutrients!$B$8,Nutrients!$K$8,Nutrients!$K$9)*AU$7)+(((IF($A$8=Nutrients!$B$79,Nutrients!$K$79,(IF($A$8=Nutrients!$B$77,Nutrients!$K$77,Nutrients!$K$78)))))*AU$8))/2000","v":8.5810738429376237},{"$f":"(SUMPRODUCT(AV$9:AV$229,Nutrients!$K$8:$K$228)+(IF($A$7=Nutrients!$B$8,Nutrients!$K$8,Nutrients!$K$9)*AV$7)+(((IF($A$8=Nutrients!$B$79,Nutrients!$K$79,(IF($A$8=Nutrients!$B$77,Nutrients!$K$77,Nutrients!$K$78)))))*AV$8))/2000","v":8.6946169116219973},{"$f":"(SUMPRODUCT(AW$9:AW$229,Nutrients!$K$8:$K$228)+(IF($A$7=Nutrients!$B$8,Nutrients!$K$8,Nutrients!$K$9)*AW$7)+(((IF($A$8=Nutrients!$B$79,Nutrients!$K$79,(IF($A$8=Nutrients!$B$77,Nutrients!$K$77,Nutrients!$K$78)))))*AW$8))/2000","v":8.7490384212752783}]
["Crude fiber, %",{"$f":"(SUMPRODUCT(B$9:B$229,Nutrients!$J$8:$J$228)+(IF($A$7=Nutrients!$B$8,Nutrients!$J$8,Nutrients!$J$9)*B$7)+(((IF($A$8=Nutrients!$B$79,Nutrients!$J$79,(IF($A$8=Nutrients!$B$77,Nutrients!$J$77,Nutrients!$J$78)))))*B$8))/2000","v":2.513641643841301},{"$f":"(SUMPRODUCT(C$9:C$229,Nutrients!$J$8:$J$228)+(IF($A$7=Nutrients!$B$8,Nutrients!$J$8,Nutrients!$J$9)*C$7)+(((IF($A$8=Nutrients!$B$79,Nutrients!$J$79,(IF($A$8=Nutrients!$B$77,Nutrients!$J$77,Nutrients!$J$78)))))*C$8))/2000","v":2.4130399696967721},{"$f":"(SUMPRODUCT(D$9:D$229,Nutrients!$J$8:$J$228)+(IF($A$7=Nutrients!$B$8,Nutrients!$J$8,Nutrients!$J$9)*D$7)+(((IF($A$8=Nutrients!$B$79,Nutrients!$J$79,(IF($A$8=Nutrients!$B$77,Nutrients!$J$77,Nutrients!$J$78)))))*D$8))/2000","v":2.3268016052434768},{"$f":"(SUMPRODUCT(E$9:E$229,Nutrients!$J$8:$J$228)+(IF($A$7=Nutrients!$B$8,Nutrients!$J$8,Nutrients!$J$9)*E$7)+(((IF($A$8=Nutrients!$B$79,Nutrients!$J$79,(IF($A$8=Nutrients!$B$77,Nutrients!$J$77,Nutrients!$J$78)))))*E$8))/2000","v":2.2539022615675171},{"$f":"(SUMPRODUCT(F$9:F$229,Nutrients!$J$8:$J$228)+(IF($A$7=Nutrients!$B$8,Nutrients!$J$8,Nutrients!$J$9)*F$7)+(((IF($A$8=Nutrients!$B$79,Nutrients!$J$79,(IF($A$8=Nutrients!$B$77,Nutrients!$J$77,Nutrients!$J$78)))))*F$8))/2000","v":2.2063713720102678},{"$f":"(SUMPRODUCT(G$9:G$229,Nutrients!$J$8:$J$228)+(IF($A$7=Nutrients!$B$8,Nutrients!$J$8,Nutrients!$J$9)*G$7)+(((IF($A$8=Nutrients!$B$79,Nutrients!$J$79,(IF($A$8=Nutrients!$B$77,Nutrients!$J$77,Nutrients!$J$78)))))*G$8))/2000","v":2.1815237128108387},null,{"$f":"(SUMPRODUCT(I$9:I$229,Nutrients!$J$8:$J$228)+(IF($A$7=Nutrients!$B$8,Nutrients!$J$8,Nutrients!$J$9)*I$7)+(((IF($A$8=Nutrients!$B$79,Nutrients!$J$79,(IF($A$8=Nutrients!$B$77,Nutrients!$J$77,Nutrients!$J$78)))))*I$8))/2000","v":2.7578601504386424},{"$f":"(SUMPRODUCT(J$9:J$229,Nutrients!$J$8:$J$228)+(IF($A$7=Nutrients!$B$8,Nutrients!$J$8,Nutrients!$J$9)*J$7)+(((IF($A$8=Nutrients!$B$79,Nutrients!$J$79,(IF($A$8=Nutrients!$B$77,Nutrients!$J$77,Nutrients!$J$78)))))*J$8))/2000","v":2.6571364620412314},{"$f":"(SUMPRODUCT(K$9:K$229,Nutrients!$J$8:$J$228)+(IF($A$7=Nutrients!$B$8,Nutrients!$J$8,Nutrients!$J$9)*K$7)+(((IF($A$8=Nutrients!$B$79,Nutrients!$J$79,(IF($A$8=Nutrients!$B$77,Nutrients!$J$77,Nutrients!$J$78)))))*K$8))/2000","v":2.5711183267223752},{"$f":"(SUMPRODUCT(L$9:L$229,Nutrients!$J$8:$J$228)+(IF($A$7=Nutrients!$B$8,Nutrients!$J$8,Nutrients!$J$9)*L$7)+(((IF($A$8=Nutrients!$B$79,Nutrients!$J$79,(IF($A$8=Nutrients!$B$77,Nutrients!$J$77,Nutrients!$J$78)))))*L$8))/2000","v":2.4985450150950168},{"$f":"(SUMPRODUCT(M$9:M$229,Nutrients!$J$8:$J$228)+(IF($A$7=Nutrients!$B$8,Nutrients!$J$8,Nutrients!$J$9)*M$7)+(((IF($A$8=Nutrients!$B$79,Nutrients!$J$79,(IF($A$8=Nutrients!$B$77,Nutrients!$J$77,Nutrients!$J$78)))))*M$8))/2000","v":2.4507798641422696},{"$f":"(SUMPRODUCT(N$9:N$229,Nutrients!$J$8:$J$228)+(IF($A$7=Nutrients!$B$8,Nutrients!$J$8,Nutrients!$J$9)*N$7)+(((IF($A$8=Nutrients!$B$79,Nutrients!$J$79,(IF($A$8=Nutrients!$B$77,Nutrients!$J$77,Nutrients!$J$78)))))*N$8))/2000","v":2.4260926804995271},null,{"$f":"(SUMPRODUCT(P$9:P$229,Nutrients!$J$8:$J$228)+(IF($A$7=Nutrients!$B$8,Nutrients!$J$8,Nutrients!$J$9)*P$7)+(((IF($A$8=Nutrients!$B$79,Nutrients!$J$79,(IF($A$8=Nutrients!$B$77,Nutrients!$J$77,Nutrients!$J$78)))))*P$8))/2000","v":3.0020602965609049},{"$f":"(SUMPRODUCT(Q$9:Q$229,Nutrients!$J$8:$J$228)+(IF($A$7=Nutrients!$B$8,Nutrients!$J$8,Nutrients!$J$9)*Q$7)+(((IF($A$8=Nutrients!$B$79,Nutrients!$J$79,(IF($A$8=Nutrients!$B$77,Nutrients!$J$77,Nutrients!$J$78)))))*Q$8))/2000","v":2.9013017930651079},{"$f":"(SUMPRODUCT(R$9:R$229,Nutrients!$J$8:$J$228)+(IF($A$7=Nutrients!$B$8,Nutrients!$J$8,Nutrients!$J$9)*R$7)+(((IF($A$8=Nutrients!$B$79,Nutrients!$J$79,(IF($A$8=Nutrients!$B$77,Nutrients!$J$77,Nutrients!$J$78)))))*R$8))/2000","v":2.8152311080261985},{"$f":"(SUMPRODUCT(S$9:S$229,Nutrients!$J$8:$J$228)+(IF($A$7=Nutrients!$B$8,Nutrients!$J$8,Nutrients!$J$9)*S$7)+(((IF($A$8=Nutrients!$B$79,Nutrients!$J$79,(IF($A$8=Nutrients!$B$77,Nutrients!$J$77,Nutrients!$J$78)))))*S$8))/2000","v":2.7426784659053878},{"$f":"(SUMPRODUCT(T$9:T$229,Nutrients!$J$8:$J$228)+(IF($A$7=Nutrients!$B$8,Nutrients!$J$8,Nutrients!$J$9)*T$7)+(((IF($A$8=Nutrients!$B$79,Nutrients!$J$79,(IF($A$8=Nutrients!$B$77,Nutrients!$J$77,Nutrients!$J$78)))))*T$8))/2000","v":2.694861775693663},{"$f":"(SUMPRODUCT(U$9:U$229,Nutrients!$J$8:$J$228)+(IF($A$7=Nutrients!$B$8,Nutrients!$J$8,Nutrients!$J$9)*U$7)+(((IF($A$8=Nutrients!$B$79,Nutrients!$J$79,(IF($A$8=Nutrients!$B$77,Nutrients!$J$77,Nutrients!$J$78)))))*U$8))/2000","v":2.6701210712352967},null,{"$f":"(SUMPRODUCT(W$9:W$229,Nutrients!$J$8:$J$228)+(IF($A$7=Nutrients!$B$8,Nutrients!$J$8,Nutrients!$J$9)*W$7)+(((IF($A$8=Nutrients!$B$79,Nutrients!$J$79,(IF($A$8=Nutrients!$B$77,Nutrients!$J$77,Nutrients!$J$78)))))*W$8))/2000","v":3.2462329749453041},{"$f":"(SUMPRODUCT(X$9:X$229,Nutrients!$J$8:$J$228)+(IF($A$7=Nutrients!$B$8,Nutrients!$J$8,Nutrients!$J$9)*X$7)+(((IF($A$8=Nutrients!$B$79,Nutrients!$J$79,(IF($A$8=Nutrients!$B$77,Nutrients!$J$77,Nutrients!$J$78)))))*X$8))/2000","v":3.1454341563844892},{"$f":"(SUMPRODUCT(Y$9:Y$229,Nutrients!$J$8:$J$228)+(IF($A$7=Nutrients!$B$8,Nutrients!$J$8,Nutrients!$J$9)*Y$7)+(((IF($A$8=Nutrients!$B$79,Nutrients!$J$79,(IF($A$8=Nutrients!$B$77,Nutrients!$J$77,Nutrients!$J$78)))))*Y$8))/2000","v":3.059422578988312},{"$f":"(SUMPRODUCT(Z$9:Z$229,Nutrients!$J$8:$J$228)+(IF($A$7=Nutrients!$B$8,Nutrients!$J$8,Nutrients!$J$9)*Z$7)+(((IF($A$8=Nutrients!$B$79,Nutrients!$J$79,(IF($A$8=Nutrients!$B$77,Nutrients!$J$77,Nutrients!$J$78)))))*Z$8))/2000","v":2.9869082988017697},{"$f":"(SUMPRODUCT(AA$9:AA$229,Nutrients!$J$8:$J$228)+(IF($A$7=Nutrients!$B$8,Nutrients!$J$8,Nutrients!$J$9)*AA$7)+(((IF($A$8=Nutrients!$B$79,Nutrients!$J$79,(IF($A$8=Nutrients!$B$77,Nutrients!$J$77,Nutrients!$J$78)))))*AA$8))/2000","v":2.9388789982330858},{"$f":"(SUMPRODUCT(AB$9:AB$229,Nutrients!$J$8:$J$228)+(IF($A$7=Nutrients!$B$8,Nutrients!$J$8,Nutrients!$J$9)*AB$7)+(((IF($A$8=Nutrients!$B$79,Nutrients!$J$79,(IF($A$8=Nutrients!$B$77,Nutrients!$J$77,Nutrients!$J$78)))))*AB$8))/2000","v":2.9134095655385197},null,{"$f":"(SUMPRODUCT(AD$9:AD$229,Nutrients!$J$8:$J$228)+(IF($A$7=Nutrients!$B$8,Nutrients!$J$8,Nutrients!$J$9)*AD$7)+(((IF($A$8=Nutrients!$B$79,Nutrients!$J$79,(IF($A$8=Nutrients!$B$77,Nutrients!$J$77,Nutrients!$J$78)))))*AD$8))/2000","v":3.4903719411765124},{"$f":"(SUMPRODUCT(AE$9:AE$229,Nutrients!$J$8:$J$228)+(IF($A$7=Nutrients!$B$8,Nutrients!$J$8,Nutrients!$J$9)*AE$7)+(((IF($A$8=Nutrients!$B$79,Nutrients!$J$79,(IF($A$8=Nutrients!$B$77,Nutrients!$J$77,Nutrients!$J$78)))))*AE$8))/2000","v":3.3895879831333326},{"$f":"(SUMPRODUCT(AF$9:AF$229,Nutrients!$J$8:$J$228)+(IF($A$7=Nutrients!$B$8,Nutrients!$J$8,Nutrients!$J$9)*AF$7)+(((IF($A$8=Nutrients!$B$79,Nutrients!$J$79,(IF($A$8=Nutrients!$B$77,Nutrients!$J$77,Nutrients!$J$78)))))*AF$8))/2000","v":3.3037000077881928},{"$f":"(SUMPRODUCT(AG$9:AG$229,Nutrients!$J$8:$J$228)+(IF($A$7=Nutrients!$B$8,Nutrients!$J$8,Nutrients!$J$9)*AG$7)+(((IF($A$8=Nutrients!$B$79,Nutrients!$J$79,(IF($A$8=Nutrients!$B$77,Nutrients!$J$77,Nutrients!$J$78)))))*AG$8))/2000","v":3.2308687264219733},{"$f":"(SUMPRODUCT(AH$9:AH$229,Nutrients!$J$8:$J$228)+(IF($A$7=Nutrients!$B$8,Nutrients!$J$8,Nutrients!$J$9)*AH$7)+(((IF($A$8=Nutrients!$B$79,Nutrients!$J$79,(IF($A$8=Nutrients!$B$77,Nutrients!$J$77,Nutrients!$J$78)))))*AH$8))/2000","v":3.1807613435486108},{"$f":"(SUMPRODUCT(AI$9:AI$229,Nutrients!$J$8:$J$228)+(IF($A$7=Nutrients!$B$8,Nutrients!$J$8,Nutrients!$J$9)*AI$7)+(((IF($A$8=Nutrients!$B$79,Nutrients!$J$79,(IF($A$8=Nutrients!$B$77,Nutrients!$J$77,Nutrients!$J$78)))))*AI$8))/2000","v":3.1545597871703652},null,{"$f":"(SUMPRODUCT(AK$9:AK$229,Nutrients!$J$8:$J$228)+(IF($A$7=Nutrients!$B$8,Nutrients!$J$8,Nutrients!$J$9)*AK$7)+(((IF($A$8=Nutrients!$B$79,Nutrients!$J$79,(IF($A$8=Nutrients!$B$77,Nutrients!$J$77,Nutrients!$J$78)))))*AK$8))/2000","v":3.7342743768967552},{"$f":"(SUMPRODUCT(AL$9:AL$229,Nutrients!$J$8:$J$228)+(IF($A$7=Nutrients!$B$8,Nutrients!$J$8,Nutrients!$J$9)*AL$7)+(((IF($A$8=Nutrients!$B$79,Nutrients!$J$79,(IF($A$8=Nutrients!$B$77,Nutrients!$J$77,Nutrients!$J$78)))))*AL$8))/2000","v":3.6337453003157409},{"$f":"(SUMPRODUCT(AM$9:AM$229,Nutrients!$J$8:$J$228)+(IF($A$7=Nutrients!$B$8,Nutrients!$J$8,Nutrients!$J$9)*AM$7)+(((IF($A$8=Nutrients!$B$79,Nutrients!$J$79,(IF($A$8=Nutrients!$B$77,Nutrients!$J$77,Nutrients!$J$78)))))*AM$8))/2000","v":3.5477216078251881},{"$f":"(SUMPRODUCT(AN$9:AN$229,Nutrients!$J$8:$J$228)+(IF($A$7=Nutrients!$B$8,Nutrients!$J$8,Nutrients!$J$9)*AN$7)+(((IF($A$8=Nutrients!$B$79,Nutrients!$J$79,(IF($A$8=Nutrients!$B$77,Nutrients!$J$77,Nutrients!$J$78)))))*AN$8))/2000","v":3.4729928433065824},{"$f":"(SUMPRODUCT(AO$9:AO$229,Nutrients!$J$8:$J$228)+(IF($A$7=Nutrients!$B$8,Nutrients!$J$8,Nutrients!$J$9)*AO$7)+(((IF($A$8=Nutrients!$B$79,Nutrients!$J$79,(IF($A$8=Nutrients!$B$77,Nutrients!$J$77,Nutrients!$J$78)))))*AO$8))/2000","v":3.4221048480782179},{"$f":"(SUMPRODUCT(AP$9:AP$229,Nutrients!$J$8:$J$228)+(IF($A$7=Nutrients!$B$8,Nutrients!$J$8,Nutrients!$J$9)*AP$7)+(((IF($A$8=Nutrients!$B$79,Nutrients!$J$79,(IF($A$8=Nutrients!$B$77,Nutrients!$J$77,Nutrients!$J$78)))))*AP$8))/2000","v":3.3958874780074715},null,{"$f":"(SUMPRODUCT(AR$9:AR$229,Nutrients!$J$8:$J$228)+(IF($A$7=Nutrients!$B$8,Nutrients!$J$8,Nutrients!$J$9)*AR$7)+(((IF($A$8=Nutrients!$B$79,Nutrients!$J$79,(IF($A$8=Nutrients!$B$77,Nutrients!$J$77,Nutrients!$J$78)))))*AR$8))/2000","v":3.9785323330150946},{"$f":"(SUMPRODUCT(AS$9:AS$229,Nutrients!$J$8:$J$228)+(IF($A$7=Nutrients!$B$8,Nutrients!$J$8,Nutrients!$J$9)*AS$7)+(((IF($A$8=Nutrients!$B$79,Nutrients!$J$79,(IF($A$8=Nutrients!$B$77,Nutrients!$J$77,Nutrients!$J$78)))))*AS$8))/2000","v":3.8779006941210472},{"$f":"(SUMPRODUCT(AT$9:AT$229,Nutrients!$J$8:$J$228)+(IF($A$7=Nutrients!$B$8,Nutrients!$J$8,Nutrients!$J$9)*AT$7)+(((IF($A$8=Nutrients!$B$79,Nutrients!$J$79,(IF($A$8=Nutrients!$B$77,Nutrients!$J$77,Nutrients!$J$78)))))*AT$8))/2000","v":3.7912632485459445},{"$f":"(SUMPRODUCT(AU$9:AU$229,Nutrients!$J$8:$J$228)+(IF($A$7=Nutrients!$B$8,Nutrients!$J$8,Nutrients!$J$9)*AU$7)+(((IF($A$8=Nutrients!$B$79,Nutrients!$J$79,(IF($A$8=Nutrients!$B$77,Nutrients!$J$77,Nutrients!$J$78)))))*AU$8))/2000","v":3.7143435414547894},{"$f":"(SUMPRODUCT(AV$9:AV$229,Nutrients!$J$8:$J$228)+(IF($A$7=Nutrients!$B$8,Nutrients!$J$8,Nutrients!$J$9)*AV$7)+(((IF($A$8=Nutrients!$B$79,Nutrients!$J$79,(IF($A$8=Nutrients!$B$77,Nutrients!$J$77,Nutrients!$J$78)))))*AV$8))/2000","v":3.6634096096781814},{"$f":"(SUMPRODUCT(AW$9:AW$229,Nutrients!$J$8:$J$228)+(IF($A$7=Nutrients!$B$8,Nutrients!$J$8,Nutrients!$J$9)*AW$7)+(((IF($A$8=Nutrients!$B$79,Nutrients!$J$79,(IF($A$8=Nutrients!$B$77,Nutrients!$J$77,Nutrients!$J$78)))))*AW$8))/2000","v":3.6371781630059496}]
["Lactose, %",{"$f":"(SUMPRODUCT(B$9:B$229,Nutrients!$ED$8:$ED$228)+(IF($A$7=Nutrients!$B$8,Nutrients!$ED$8,Nutrients!$ED$9)*B$7)+(((IF($A$8=Nutrients!$B$79,Nutrients!$ED$79,(IF($A$8=Nutrients!$B$77,Nutrients!$ED$77,Nutrients!$ED$78)))))*B$8))/2000","v":0},{"$f":"(SUMPRODUCT(C$9:C$229,Nutrients!$ED$8:$ED$228)+(IF($A$7=Nutrients!$B$8,Nutrients!$ED$8,Nutrients!$ED$9)*C$7)+(((IF($A$8=Nutrients!$B$79,Nutrients!$ED$79,(IF($A$8=Nutrients!$B$77,Nutrients!$ED$77,Nutrients!$ED$78)))))*C$8))/2000","v":0},{"$f":"(SUMPRODUCT(D$9:D$229,Nutrients!$ED$8:$ED$228)+(IF($A$7=Nutrients!$B$8,Nutrients!$ED$8,Nutrients!$ED$9)*D$7)+(((IF($A$8=Nutrients!$B$79,Nutrients!$ED$79,(IF($A$8=Nutrients!$B$77,Nutrients!$ED$77,Nutrients!$ED$78)))))*D$8))/2000","v":0},{"$f":"(SUMPRODUCT(E$9:E$229,Nutrients!$ED$8:$ED$228)+(IF($A$7=Nutrients!$B$8,Nutrients!$ED$8,Nutrients!$ED$9)*E$7)+(((IF($A$8=Nutrients!$B$79,Nutrients!$ED$79,(IF($A$8=Nutrients!$B$77,Nutrients!$ED$77,Nutrients!$ED$78)))))*E$8))/2000","v":0},{"$f":"(SUMPRODUCT(F$9:F$229,Nutrients!$ED$8:$ED$228)+(IF($A$7=Nutrients!$B$8,Nutrients!$ED$8,Nutrients!$ED$9)*F$7)+(((IF($A$8=Nutrients!$B$79,Nutrients!$ED$79,(IF($A$8=Nutrients!$B$77,Nutrients!$ED$77,Nutrients!$ED$78)))))*F$8))/2000","v":0},{"$f":"(SUMPRODUCT(G$9:G$229,Nutrients!$ED$8:$ED$228)+(IF($A$7=Nutrients!$B$8,Nutrients!$ED$8,Nutrients!$ED$9)*G$7)+(((IF($A$8=Nutrients!$B$79,Nutrients!$ED$79,(IF($A$8=Nutrients!$B$77,Nutrients!$ED$77,Nutrients!$ED$78)))))*G$8))/2000","v":0},null,{"$f":"(SUMPRODUCT(I$9:I$229,Nutrients!$ED$8:$ED$228)+(IF($A$7=Nutrients!$B$8,Nutrients!$ED$8,Nutrients!$ED$9)*I$7)+(((IF($A$8=Nutrients!$B$79,Nutrients!$ED$79,(IF($A$8=Nutrients!$B$77,Nutrients!$ED$77,Nutrients!$ED$78)))))*I$8))/2000","v":0},{"$f":"(SUMPRODUCT(J$9:J$229,Nutrients!$ED$8:$ED$228)+(IF($A$7=Nutrients!$B$8,Nutrients!$ED$8,Nutrients!$ED$9)*J$7)+(((IF($A$8=Nutrients!$B$79,Nutrients!$ED$79,(IF($A$8=Nutrients!$B$77,Nutrients!$ED$77,Nutrients!$ED$78)))))*J$8))/2000","v":0},{"$f":"(SUMPRODUCT(K$9:K$229,Nutrients!$ED$8:$ED$228)+(IF($A$7=Nutrients!$B$8,Nutrients!$ED$8,Nutrients!$ED$9)*K$7)+(((IF($A$8=Nutrients!$B$79,Nutrients!$ED$79,(IF($A$8=Nutrients!$B$77,Nutrients!$ED$77,Nutrients!$ED$78)))))*K$8))/2000","v":0},{"$f":"(SUMPRODUCT(L$9:L$229,Nutrients!$ED$8:$ED$228)+(IF($A$7=Nutrients!$B$8,Nutrients!$ED$8,Nutrients!$ED$9)*L$7)+(((IF($A$8=Nutrients!$B$79,Nutrients!$ED$79,(IF($A$8=Nutrients!$B$77,Nutrients!$ED$77,Nutrients!$ED$78)))))*L$8))/2000","v":0},{"$f":"(SUMPRODUCT(M$9:M$229,Nutrients!$ED$8:$ED$228)+(IF($A$7=Nutrients!$B$8,Nutrients!$ED$8,Nutrients!$ED$9)*M$7)+(((IF($A$8=Nutrients!$B$79,Nutrients!$ED$79,(IF($A$8=Nutrients!$B$77,Nutrients!$ED$77,Nutrients!$ED$78)))))*M$8))/2000","v":0},{"$f":"(SUMPRODUCT(N$9:N$229,Nutrients!$ED$8:$ED$228)+(IF($A$7=Nutrients!$B$8,Nutrients!$ED$8,Nutrients!$ED$9)*N$7)+(((IF($A$8=Nutrients!$B$79,Nutrients!$ED$79,(IF($A$8=Nutrients!$B$77,Nutrients!$ED$77,Nutrients!$ED$78)))))*N$8))/2000","v":0},null,{"$f":"(SUMPRODUCT(P$9:P$229,Nutrients!$ED$8:$ED$228)+(IF($A$7=Nutrients!$B$8,Nutrients!$ED$8,Nutrients!$ED$9)*P$7)+(((IF($A$8=Nutrients!$B$79,Nutrients!$ED$79,(IF($A$8=Nutrients!$B$77,Nutrients!$ED$77,Nutrients!$ED$78)))))*P$8))/2000","v":0},{"$f":"(SUMPRODUCT(Q$9:Q$229,Nutrients!$ED$8:$ED$228)+(IF($A$7=Nutrients!$B$8,Nutrients!$ED$8,Nutrients!$ED$9)*Q$7)+(((IF($A$8=Nutrients!$B$79,Nutrients!$ED$79,(IF($A$8=Nutrients!$B$77,Nutrients!$ED$77,Nutrients!$ED$78)))))*Q$8))/2000","v":0},{"$f":"(SUMPRODUCT(R$9:R$229,Nutrients!$ED$8:$ED$228)+(IF($A$7=Nutrients!$B$8,Nutrients!$ED$8,Nutrients!$ED$9)*R$7)+(((IF($A$8=Nutrients!$B$79,Nutrients!$ED$79,(IF($A$8=Nutrients!$B$77,Nutrients!$ED$77,Nutrients!$ED$78)))))*R$8))/2000","v":0},{"$f":"(SUMPRODUCT(S$9:S$229,Nutrients!$ED$8:$ED$228)+(IF($A$7=Nutrients!$B$8,Nutrients!$ED$8,Nutrients!$ED$9)*S$7)+(((IF($A$8=Nutrients!$B$79,Nutrients!$ED$79,(IF($A$8=Nutrients!$B$77,Nutrients!$ED$77,Nutrients!$ED$78)))))*S$8))/2000","v":0},{"$f":"(SUMPRODUCT(T$9:T$229,Nutrients!$ED$8:$ED$228)+(IF($A$7=Nutrients!$B$8,Nutrients!$ED$8,Nutrients!$ED$9)*T$7)+(((IF($A$8=Nutrients!$B$79,Nutrients!$ED$79,(IF($A$8=Nutrients!$B$77,Nutrients!$ED$77,Nutrients!$ED$78)))))*T$8))/2000","v":0},{"$f":"(SUMPRODUCT(U$9:U$229,Nutrients!$ED$8:$ED$228)+(IF($A$7=Nutrients!$B$8,Nutrients!$ED$8,Nutrients!$ED$9)*U$7)+(((IF($A$8=Nutrients!$B$79,Nutrients!$ED$79,(IF($A$8=Nutrients!$B$77,Nutrients!$ED$77,Nutrients!$ED$78)))))*U$8))/2000","v":0},null,{"$f":"(SUMPRODUCT(W$9:W$229,Nutrients!$ED$8:$ED$228)+(IF($A$7=Nutrients!$B$8,Nutrients!$ED$8,Nutrients!$ED$9)*W$7)+(((IF($A$8=Nutrients!$B$79,Nutrients!$ED$79,(IF($A$8=Nutrients!$B$77,Nutrients!$ED$77,Nutrients!$ED$78)))))*W$8))/2000","v":0},{"$f":"(SUMPRODUCT(X$9:X$229,Nutrients!$ED$8:$ED$228)+(IF($A$7=Nutrients!$B$8,Nutrients!$ED$8,Nutrients!$ED$9)*X$7)+(((IF($A$8=Nutrients!$B$79,Nutrients!$ED$79,(IF($A$8=Nutrients!$B$77,Nutrients!$ED$77,Nutrients!$ED$78)))))*X$8))/2000","v":0},{"$f":"(SUMPRODUCT(Y$9:Y$229,Nutrients!$ED$8:$ED$228)+(IF($A$7=Nutrients!$B$8,Nutrients!$ED$8,Nutrients!$ED$9)*Y$7)+(((IF($A$8=Nutrients!$B$79,Nutrients!$ED$79,(IF($A$8=Nutrients!$B$77,Nutrients!$ED$77,Nutrients!$ED$78)))))*Y$8))/2000","v":0},{"$f":"(SUMPRODUCT(Z$9:Z$229,Nutrients!$ED$8:$ED$228)+(IF($A$7=Nutrients!$B$8,Nutrients!$ED$8,Nutrients!$ED$9)*Z$7)+(((IF($A$8=Nutrients!$B$79,Nutrients!$ED$79,(IF($A$8=Nutrients!$B$77,Nutrients!$ED$77,Nutrients!$ED$78)))))*Z$8))/2000","v":0},{"$f":"(SUMPRODUCT(AA$9:AA$229,Nutrients!$ED$8:$ED$228)+(IF($A$7=Nutrients!$B$8,Nutrients!$ED$8,Nutrients!$ED$9)*AA$7)+(((IF($A$8=Nutrients!$B$79,Nutrients!$ED$79,(IF($A$8=Nutrients!$B$77,Nutrients!$ED$77,Nutrients!$ED$78)))))*AA$8))/2000","v":0},{"$f":"(SUMPRODUCT(AB$9:AB$229,Nutrients!$ED$8:$ED$228)+(IF($A$7=Nutrients!$B$8,Nutrients!$ED$8,Nutrients!$ED$9)*AB$7)+(((IF($A$8=Nutrients!$B$79,Nutrients!$ED$79,(IF($A$8=Nutrients!$B$77,Nutrients!$ED$77,Nutrients!$ED$78)))))*AB$8))/2000","v":0},null,{"$f":"(SUMPRODUCT(AD$9:AD$229,Nutrients!$ED$8:$ED$228)+(IF($A$7=Nutrients!$B$8,Nutrients!$ED$8,Nutrients!$ED$9)*AD$7)+(((IF($A$8=Nutrients!$B$79,Nutrients!$ED$79,(IF($A$8=Nutrients!$B$77,Nutrients!$ED$77,Nutrients!$ED$78)))))*AD$8))/2000","v":0},{"$f":"(SUMPRODUCT(AE$9:AE$229,Nutrients!$ED$8:$ED$228)+(IF($A$7=Nutrients!$B$8,Nutrients!$ED$8,Nutrients!$ED$9)*AE$7)+(((IF($A$8=Nutrients!$B$79,Nutrients!$ED$79,(IF($A$8=Nutrients!$B$77,Nutrients!$ED$77,Nutrients!$ED$78)))))*AE$8))/2000","v":0},{"$f":"(SUMPRODUCT(AF$9:AF$229,Nutrients!$ED$8:$ED$228)+(IF($A$7=Nutrients!$B$8,Nutrients!$ED$8,Nutrients!$ED$9)*AF$7)+(((IF($A$8=Nutrients!$B$79,Nutrients!$ED$79,(IF($A$8=Nutrients!$B$77,Nutrients!$ED$77,Nutrients!$ED$78)))))*AF$8))/2000","v":0},{"$f":"(SUMPRODUCT(AG$9:AG$229,Nutrients!$ED$8:$ED$228)+(IF($A$7=Nutrients!$B$8,Nutrients!$ED$8,Nutrients!$ED$9)*AG$7)+(((IF($A$8=Nutrients!$B$79,Nutrients!$ED$79,(IF($A$8=Nutrients!$B$77,Nutrients!$ED$77,Nutrients!$ED$78)))))*AG$8))/2000","v":0},{"$f":"(SUMPRODUCT(AH$9:AH$229,Nutrients!$ED$8:$ED$228)+(IF($A$7=Nutrients!$B$8,Nutrients!$ED$8,Nutrients!$ED$9)*AH$7)+(((IF($A$8=Nutrients!$B$79,Nutrients!$ED$79,(IF($A$8=Nutrients!$B$77,Nutrients!$ED$77,Nutrients!$ED$78)))))*AH$8))/2000","v":0},{"$f":"(SUMPRODUCT(AI$9:AI$229,Nutrients!$ED$8:$ED$228)+(IF($A$7=Nutrients!$B$8,Nutrients!$ED$8,Nutrients!$ED$9)*AI$7)+(((IF($A$8=Nutrients!$B$79,Nutrients!$ED$79,(IF($A$8=Nutrients!$B$77,Nutrients!$ED$77,Nutrients!$ED$78)))))*AI$8))/2000","v":0},null,{"$f":"(SUMPRODUCT(AK$9:AK$229,Nutrients!$ED$8:$ED$228)+(IF($A$7=Nutrients!$B$8,Nutrients!$ED$8,Nutrients!$ED$9)*AK$7)+(((IF($A$8=Nutrients!$B$79,Nutrients!$ED$79,(IF($A$8=Nutrients!$B$77,Nutrients!$ED$77,Nutrients!$ED$78)))))*AK$8))/2000","v":0},{"$f":"(SUMPRODUCT(AL$9:AL$229,Nutrients!$ED$8:$ED$228)+(IF($A$7=Nutrients!$B$8,Nutrients!$ED$8,Nutrients!$ED$9)*AL$7)+(((IF($A$8=Nutrients!$B$79,Nutrients!$ED$79,(IF($A$8=Nutrients!$B$77,Nutrients!$ED$77,Nutrients!$ED$78)))))*AL$8))/2000","v":0},{"$f":"(SUMPRODUCT(AM$9:AM$229,Nutrients!$ED$8:$ED$228)+(IF($A$7=Nutrients!$B$8,Nutrients!$ED$8,Nutrients!$ED$9)*AM$7)+(((IF($A$8=Nutrients!$B$79,Nutrients!$ED$79,(IF($A$8=Nutrients!$B$77,Nutrients!$ED$77,Nutrients!$ED$78)))))*AM$8))/2000","v":0},{"$f":"(SUMPRODUCT(AN$9:AN$229,Nutrients!$ED$8:$ED$228)+(IF($A$7=Nutrients!$B$8,Nutrients!$ED$8,Nutrients!$ED$9)*AN$7)+(((IF($A$8=Nutrients!$B$79,Nutrients!$ED$79,(IF($A$8=Nutrients!$B$77,Nutrients!$ED$77,Nutrients!$ED$78)))))*AN$8))/2000","v":0},{"$f":"(SUMPRODUCT(AO$9:AO$229,Nutrients!$ED$8:$ED$228)+(IF($A$7=Nutrients!$B$8,Nutrients!$ED$8,Nutrients!$ED$9)*AO$7)+(((IF($A$8=Nutrients!$B$79,Nutrients!$ED$79,(IF($A$8=Nutrients!$B$77,Nutrients!$ED$77,Nutrients!$ED$78)))))*AO$8))/2000","v":0},{"$f":"(SUMPRODUCT(AP$9:AP$229,Nutrients!$ED$8:$ED$228)+(IF($A$7=Nutrients!$B$8,Nutrients!$ED$8,Nutrients!$ED$9)*AP$7)+(((IF($A$8=Nutrients!$B$79,Nutrients!$ED$79,(IF($A$8=Nutrients!$B$77,Nutrients!$ED$77,Nutrients!$ED$78)))))*AP$8))/2000","v":0},null,{"$f":"(SUMPRODUCT(AR$9:AR$229,Nutrients!$ED$8:$ED$228)+(IF($A$7=Nutrients!$B$8,Nutrients!$ED$8,Nutrients!$ED$9)*AR$7)+(((IF($A$8=Nutrients!$B$79,Nutrients!$ED$79,(IF($A$8=Nutrients!$B$77,Nutrients!$ED$77,Nutrients!$ED$78)))))*AR$8))/2000","v":0},{"$f":"(SUMPRODUCT(AS$9:AS$229,Nutrients!$ED$8:$ED$228)+(IF($A$7=Nutrients!$B$8,Nutrients!$ED$8,Nutrients!$ED$9)*AS$7)+(((IF($A$8=Nutrients!$B$79,Nutrients!$ED$79,(IF($A$8=Nutrients!$B$77,Nutrients!$ED$77,Nutrients!$ED$78)))))*AS$8))/2000","v":0},{"$f":"(SUMPRODUCT(AT$9:AT$229,Nutrients!$ED$8:$ED$228)+(IF($A$7=Nutrients!$B$8,Nutrients!$ED$8,Nutrients!$ED$9)*AT$7)+(((IF($A$8=Nutrients!$B$79,Nutrients!$ED$79,(IF($A$8=Nutrients!$B$77,Nutrients!$ED$77,Nutrients!$ED$78)))))*AT$8))/2000","v":0},{"$f":"(SUMPRODUCT(AU$9:AU$229,Nutrients!$ED$8:$ED$228)+(IF($A$7=Nutrients!$B$8,Nutrients!$ED$8,Nutrients!$ED$9)*AU$7)+(((IF($A$8=Nutrients!$B$79,Nutrients!$ED$79,(IF($A$8=Nutrients!$B$77,Nutrients!$ED$77,Nutrients!$ED$78)))))*AU$8))/2000","v":0},{"$f":"(SUMPRODUCT(AV$9:AV$229,Nutrients!$ED$8:$ED$228)+(IF($A$7=Nutrients!$B$8,Nutrients!$ED$8,Nutrients!$ED$9)*AV$7)+(((IF($A$8=Nutrients!$B$79,Nutrients!$ED$79,(IF($A$8=Nutrients!$B$77,Nutrients!$ED$77,Nutrients!$ED$78)))))*AV$8))/2000","v":0},{"$f":"(SUMPRODUCT(AW$9:AW$229,Nutrients!$ED$8:$ED$228)+(IF($A$7=Nutrients!$B$8,Nutrients!$ED$8,Nutrients!$ED$9)*AW$7)+(((IF($A$8=Nutrients!$B$79,Nutrients!$ED$79,(IF($A$8=Nutrients!$B$77,Nutrients!$ED$77,Nutrients!$ED$78)))))*AW$8))/2000","v":0}]
["IV value of diet",{"$f":"(SUMPRODUCT(B$9:B$229,Nutrients!$EH$8:$EH$228)+(IF($A$7=Nutrients!$B$8,Nutrients!$EH$8,Nutrients!$EH$9)*B$7)+(((IF($A$8=Nutrients!$B$79,Nutrients!$EH$79,(IF($A$8=Nutrients!$B$77,Nutrients!$EH$77,Nutrients!$EH$78)))))*B$8))/2000","v":34.658564713833037},{"$f":"(SUMPRODUCT(C$9:C$229,Nutrients!$EH$8:$EH$228)+(IF($A$7=Nutrients!$B$8,Nutrients!$EH$8,Nutrients!$EH$9)*C$7)+(((IF($A$8=Nutrients!$B$79,Nutrients!$EH$79,(IF($A$8=Nutrients!$B$77,Nutrients!$EH$77,Nutrients!$EH$78)))))*C$8))/2000","v":36.119060232185333},{"$f":"(SUMPRODUCT(D$9:D$229,Nutrients!$EH$8:$EH$228)+(IF($A$7=Nutrients!$B$8,Nutrients!$EH$8,Nutrients!$EH$9)*D$7)+(((IF($A$8=Nutrients!$B$79,Nutrients!$EH$79,(IF($A$8=Nutrients!$B$77,Nutrients!$EH$77,Nutrients!$EH$78)))))*D$8))/2000","v":37.38889298377596},{"$f":"(SUMPRODUCT(E$9:E$229,Nutrients!$EH$8:$EH$228)+(IF($A$7=Nutrients!$B$8,Nutrients!$EH$8,Nutrients!$EH$9)*E$7)+(((IF($A$8=Nutrients!$B$79,Nutrients!$EH$79,(IF($A$8=Nutrients!$B$77,Nutrients!$EH$77,Nutrients!$EH$78)))))*E$8))/2000","v":38.453689691212816},{"$f":"(SUMPRODUCT(F$9:F$229,Nutrients!$EH$8:$EH$228)+(IF($A$7=Nutrients!$B$8,Nutrients!$EH$8,Nutrients!$EH$9)*F$7)+(((IF($A$8=Nutrients!$B$79,Nutrients!$EH$79,(IF($A$8=Nutrients!$B$77,Nutrients!$EH$77,Nutrients!$EH$78)))))*F$8))/2000","v":39.1878815182761},{"$f":"(SUMPRODUCT(G$9:G$229,Nutrients!$EH$8:$EH$228)+(IF($A$7=Nutrients!$B$8,Nutrients!$EH$8,Nutrients!$EH$9)*G$7)+(((IF($A$8=Nutrients!$B$79,Nutrients!$EH$79,(IF($A$8=Nutrients!$B$77,Nutrients!$EH$77,Nutrients!$EH$78)))))*G$8))/2000","v":39.544986782030342},null,{"$f":"(SUMPRODUCT(I$9:I$229,Nutrients!$EH$8:$EH$228)+(IF($A$7=Nutrients!$B$8,Nutrients!$EH$8,Nutrients!$EH$9)*I$7)+(((IF($A$8=Nutrients!$B$79,Nutrients!$EH$79,(IF($A$8=Nutrients!$B$77,Nutrients!$EH$77,Nutrients!$EH$78)))))*I$8))/2000","v":36.229938874171069},{"$f":"(SUMPRODUCT(J$9:J$229,Nutrients!$EH$8:$EH$228)+(IF($A$7=Nutrients!$B$8,Nutrients!$EH$8,Nutrients!$EH$9)*J$7)+(((IF($A$8=Nutrients!$B$79,Nutrients!$EH$79,(IF($A$8=Nutrients!$B$77,Nutrients!$EH$77,Nutrients!$EH$78)))))*J$8))/2000","v":37.71606222111928},{"$f":"(SUMPRODUCT(K$9:K$229,Nutrients!$EH$8:$EH$228)+(IF($A$7=Nutrients!$B$8,Nutrients!$EH$8,Nutrients!$EH$9)*K$7)+(((IF($A$8=Nutrients!$B$79,Nutrients!$EH$79,(IF($A$8=Nutrients!$B$77,Nutrients!$EH$77,Nutrients!$EH$78)))))*K$8))/2000","v":39.010700835788739},{"$f":"(SUMPRODUCT(L$9:L$229,Nutrients!$EH$8:$EH$228)+(IF($A$7=Nutrients!$B$8,Nutrients!$EH$8,Nutrients!$EH$9)*L$7)+(((IF($A$8=Nutrients!$B$79,Nutrients!$EH$79,(IF($A$8=Nutrients!$B$77,Nutrients!$EH$77,Nutrients!$EH$78)))))*L$8))/2000","v":40.019012898608928},{"$f":"(SUMPRODUCT(M$9:M$229,Nutrients!$EH$8:$EH$228)+(IF($A$7=Nutrients!$B$8,Nutrients!$EH$8,Nutrients!$EH$9)*M$7)+(((IF($A$8=Nutrients!$B$79,Nutrients!$EH$79,(IF($A$8=Nutrients!$B$77,Nutrients!$EH$77,Nutrients!$EH$78)))))*M$8))/2000","v":40.771065614353446},{"$f":"(SUMPRODUCT(N$9:N$229,Nutrients!$EH$8:$EH$228)+(IF($A$7=Nutrients!$B$8,Nutrients!$EH$8,Nutrients!$EH$9)*N$7)+(((IF($A$8=Nutrients!$B$79,Nutrients!$EH$79,(IF($A$8=Nutrients!$B$77,Nutrients!$EH$77,Nutrients!$EH$78)))))*N$8))/2000","v":41.115467298051364},null,{"$f":"(SUMPRODUCT(P$9:P$229,Nutrients!$EH$8:$EH$228)+(IF($A$7=Nutrients!$B$8,Nutrients!$EH$8,Nutrients!$EH$9)*P$7)+(((IF($A$8=Nutrients!$B$79,Nutrients!$EH$79,(IF($A$8=Nutrients!$B$77,Nutrients!$EH$77,Nutrients!$EH$78)))))*P$8))/2000","v":37.835669118381595},{"$f":"(SUMPRODUCT(Q$9:Q$229,Nutrients!$EH$8:$EH$228)+(IF($A$7=Nutrients!$B$8,Nutrients!$EH$8,Nutrients!$EH$9)*Q$7)+(((IF($A$8=Nutrients!$B$79,Nutrients!$EH$79,(IF($A$8=Nutrients!$B$77,Nutrients!$EH$77,Nutrients!$EH$78)))))*Q$8))/2000","v":39.332311480351322},{"$f":"(SUMPRODUCT(R$9:R$229,Nutrients!$EH$8:$EH$228)+(IF($A$7=Nutrients!$B$8,Nutrients!$EH$8,Nutrients!$EH$9)*R$7)+(((IF($A$8=Nutrients!$B$79,Nutrients!$EH$79,(IF($A$8=Nutrients!$B$77,Nutrients!$EH$77,Nutrients!$EH$78)))))*R$8))/2000","v":40.642827439053967},{"$f":"(SUMPRODUCT(S$9:S$229,Nutrients!$EH$8:$EH$228)+(IF($A$7=Nutrients!$B$8,Nutrients!$EH$8,Nutrients!$EH$9)*S$7)+(((IF($A$8=Nutrients!$B$79,Nutrients!$EH$79,(IF($A$8=Nutrients!$B$77,Nutrients!$EH$77,Nutrients!$EH$78)))))*S$8))/2000","v":41.644894428330289},{"$f":"(SUMPRODUCT(T$9:T$229,Nutrients!$EH$8:$EH$228)+(IF($A$7=Nutrients!$B$8,Nutrients!$EH$8,Nutrients!$EH$9)*T$7)+(((IF($A$8=Nutrients!$B$79,Nutrients!$EH$79,(IF($A$8=Nutrients!$B$77,Nutrients!$EH$77,Nutrients!$EH$78)))))*T$8))/2000","v":42.390422000253672},{"$f":"(SUMPRODUCT(U$9:U$229,Nutrients!$EH$8:$EH$228)+(IF($A$7=Nutrients!$B$8,Nutrients!$EH$8,Nutrients!$EH$9)*U$7)+(((IF($A$8=Nutrients!$B$79,Nutrients!$EH$79,(IF($A$8=Nutrients!$B$77,Nutrients!$EH$77,Nutrients!$EH$78)))))*U$8))/2000","v":42.733466334279257},null,{"$f":"(SUMPRODUCT(W$9:W$229,Nutrients!$EH$8:$EH$228)+(IF($A$7=Nutrients!$B$8,Nutrients!$EH$8,Nutrients!$EH$9)*W$7)+(((IF($A$8=Nutrients!$B$79,Nutrients!$EH$79,(IF($A$8=Nutrients!$B$77,Nutrients!$EH$77,Nutrients!$EH$78)))))*W$8))/2000","v":39.449698450074074},{"$f":"(SUMPRODUCT(X$9:X$229,Nutrients!$EH$8:$EH$228)+(IF($A$7=Nutrients!$B$8,Nutrients!$EH$8,Nutrients!$EH$9)*X$7)+(((IF($A$8=Nutrients!$B$79,Nutrients!$EH$79,(IF($A$8=Nutrients!$B$77,Nutrients!$EH$77,Nutrients!$EH$78)))))*X$8))/2000","v":40.958521584012857},{"$f":"(SUMPRODUCT(Y$9:Y$229,Nutrients!$EH$8:$EH$228)+(IF($A$7=Nutrients!$B$8,Nutrients!$EH$8,Nutrients!$EH$9)*Y$7)+(((IF($A$8=Nutrients!$B$79,Nutrients!$EH$79,(IF($A$8=Nutrients!$B$77,Nutrients!$EH$77,Nutrients!$EH$78)))))*Y$8))/2000","v":42.263178791466338},{"$f":"(SUMPRODUCT(Z$9:Z$229,Nutrients!$EH$8:$EH$228)+(IF($A$7=Nutrients!$B$8,Nutrients!$EH$8,Nutrients!$EH$9)*Z$7)+(((IF($A$8=Nutrients!$B$79,Nutrients!$EH$79,(IF($A$8=Nutrients!$B$77,Nutrients!$EH$77,Nutrients!$EH$78)))))*Z$8))/2000","v":43.280428727388596},{"$f":"(SUMPRODUCT(AA$9:AA$229,Nutrients!$EH$8:$EH$228)+(IF($A$7=Nutrients!$B$8,Nutrients!$EH$8,Nutrients!$EH$9)*AA$7)+(((IF($A$8=Nutrients!$B$79,Nutrients!$EH$79,(IF($A$8=Nutrients!$B$77,Nutrients!$EH$77,Nutrients!$EH$78)))))*AA$8))/2000","v":44.012420676980831},{"$f":"(SUMPRODUCT(AB$9:AB$229,Nutrients!$EH$8:$EH$228)+(IF($A$7=Nutrients!$B$8,Nutrients!$EH$8,Nutrients!$EH$9)*AB$7)+(((IF($A$8=Nutrients!$B$79,Nutrients!$EH$79,(IF($A$8=Nutrients!$B$77,Nutrients!$EH$77,Nutrients!$EH$78)))))*AB$8))/2000","v":44.416213469577315},null,{"$f":"(SUMPRODUCT(AD$9:AD$229,Nutrients!$EH$8:$EH$228)+(IF($A$7=Nutrients!$B$8,Nutrients!$EH$8,Nutrients!$EH$9)*AD$7)+(((IF($A$8=Nutrients!$B$79,Nutrients!$EH$79,(IF($A$8=Nutrients!$B$77,Nutrients!$EH$77,Nutrients!$EH$78)))))*AD$8))/2000","v":41.079913553522651},{"$f":"(SUMPRODUCT(AE$9:AE$229,Nutrients!$EH$8:$EH$228)+(IF($A$7=Nutrients!$B$8,Nutrients!$EH$8,Nutrients!$EH$9)*AE$7)+(((IF($A$8=Nutrients!$B$79,Nutrients!$EH$79,(IF($A$8=Nutrients!$B$77,Nutrients!$EH$77,Nutrients!$EH$78)))))*AE$8))/2000","v":42.5842467386897},{"$f":"(SUMPRODUCT(AF$9:AF$229,Nutrients!$EH$8:$EH$228)+(IF($A$7=Nutrients!$B$8,Nutrients!$EH$8,Nutrients!$EH$9)*AF$7)+(((IF($A$8=Nutrients!$B$79,Nutrients!$EH$79,(IF($A$8=Nutrients!$B$77,Nutrients!$EH$77,Nutrients!$EH$78)))))*AF$8))/2000","v":43.913050998927581},{"$f":"(SUMPRODUCT(AG$9:AG$229,Nutrients!$EH$8:$EH$228)+(IF($A$7=Nutrients!$B$8,Nutrients!$EH$8,Nutrients!$EH$9)*AG$7)+(((IF($A$8=Nutrients!$B$79,Nutrients!$EH$79,(IF($A$8=Nutrients!$B$77,Nutrients!$EH$77,Nutrients!$EH$78)))))*AG$8))/2000","v":44.913587390331529},{"$f":"(SUMPRODUCT(AH$9:AH$229,Nutrients!$EH$8:$EH$228)+(IF($A$7=Nutrients!$B$8,Nutrients!$EH$8,Nutrients!$EH$9)*AH$7)+(((IF($A$8=Nutrients!$B$79,Nutrients!$EH$79,(IF($A$8=Nutrients!$B$77,Nutrients!$EH$77,Nutrients!$EH$78)))))*AH$8))/2000","v":45.803436528653449},{"$f":"(SUMPRODUCT(AI$9:AI$229,Nutrients!$EH$8:$EH$228)+(IF($A$7=Nutrients!$B$8,Nutrients!$EH$8,Nutrients!$EH$9)*AI$7)+(((IF($A$8=Nutrients!$B$79,Nutrients!$EH$79,(IF($A$8=Nutrients!$B$77,Nutrients!$EH$77,Nutrients!$EH$78)))))*AI$8))/2000","v":46.293976530276261},null,{"$f":"(SUMPRODUCT(AK$9:AK$229,Nutrients!$EH$8:$EH$228)+(IF($A$7=Nutrients!$B$8,Nutrients!$EH$8,Nutrients!$EH$9)*AK$7)+(((IF($A$8=Nutrients!$B$79,Nutrients!$EH$79,(IF($A$8=Nutrients!$B$77,Nutrients!$EH$77,Nutrients!$EH$78)))))*AK$8))/2000","v":42.784593857796679},{"$f":"(SUMPRODUCT(AL$9:AL$229,Nutrients!$EH$8:$EH$228)+(IF($A$7=Nutrients!$B$8,Nutrients!$EH$8,Nutrients!$EH$9)*AL$7)+(((IF($A$8=Nutrients!$B$79,Nutrients!$EH$79,(IF($A$8=Nutrients!$B$77,Nutrients!$EH$77,Nutrients!$EH$78)))))*AL$8))/2000","v":44.211917295654729},{"$f":"(SUMPRODUCT(AM$9:AM$229,Nutrients!$EH$8:$EH$228)+(IF($A$7=Nutrients!$B$8,Nutrients!$EH$8,Nutrients!$EH$9)*AM$7)+(((IF($A$8=Nutrients!$B$79,Nutrients!$EH$79,(IF($A$8=Nutrients!$B$77,Nutrients!$EH$77,Nutrients!$EH$78)))))*AM$8))/2000","v":45.530727060902443},{"$f":"(SUMPRODUCT(AN$9:AN$229,Nutrients!$EH$8:$EH$228)+(IF($A$7=Nutrients!$B$8,Nutrients!$EH$8,Nutrients!$EH$9)*AN$7)+(((IF($A$8=Nutrients!$B$79,Nutrients!$EH$79,(IF($A$8=Nutrients!$B$77,Nutrients!$EH$77,Nutrients!$EH$78)))))*AN$8))/2000","v":46.653695401449951},{"$f":"(SUMPRODUCT(AO$9:AO$229,Nutrients!$EH$8:$EH$228)+(IF($A$7=Nutrients!$B$8,Nutrients!$EH$8,Nutrients!$EH$9)*AO$7)+(((IF($A$8=Nutrients!$B$79,Nutrients!$EH$79,(IF($A$8=Nutrients!$B$77,Nutrients!$EH$77,Nutrients!$EH$78)))))*AO$8))/2000","v":47.679635647566734},{"$f":"(SUMPRODUCT(AP$9:AP$229,Nutrients!$EH$8:$EH$228)+(IF($A$7=Nutrients!$B$8,Nutrients!$EH$8,Nutrients!$EH$9)*AP$7)+(((IF($A$8=Nutrients!$B$79,Nutrients!$EH$79,(IF($A$8=Nutrients!$B$77,Nutrients!$EH$77,Nutrients!$EH$78)))))*AP$8))/2000","v":48.174764981082582},null,{"$f":"(SUMPRODUCT(AR$9:AR$229,Nutrients!$EH$8:$EH$228)+(IF($A$7=Nutrients!$B$8,Nutrients!$EH$8,Nutrients!$EH$9)*AR$7)+(((IF($A$8=Nutrients!$B$79,Nutrients!$EH$79,(IF($A$8=Nutrients!$B$77,Nutrients!$EH$77,Nutrients!$EH$78)))))*AR$8))/2000","v":44.384950542773936},{"$f":"(SUMPRODUCT(AS$9:AS$229,Nutrients!$EH$8:$EH$228)+(IF($A$7=Nutrients!$B$8,Nutrients!$EH$8,Nutrients!$EH$9)*AS$7)+(((IF($A$8=Nutrients!$B$79,Nutrients!$EH$79,(IF($A$8=Nutrients!$B$77,Nutrients!$EH$77,Nutrients!$EH$78)))))*AS$8))/2000","v":45.843261661725016},{"$f":"(SUMPRODUCT(AT$9:AT$229,Nutrients!$EH$8:$EH$228)+(IF($A$7=Nutrients!$B$8,Nutrients!$EH$8,Nutrients!$EH$9)*AT$7)+(((IF($A$8=Nutrients!$B$79,Nutrients!$EH$79,(IF($A$8=Nutrients!$B$77,Nutrients!$EH$77,Nutrients!$EH$78)))))*AT$8))/2000","v":47.145141317035616},{"$f":"(SUMPRODUCT(AU$9:AU$229,Nutrients!$EH$8:$EH$228)+(IF($A$7=Nutrients!$B$8,Nutrients!$EH$8,Nutrients!$EH$9)*AU$7)+(((IF($A$8=Nutrients!$B$79,Nutrients!$EH$79,(IF($A$8=Nutrients!$B$77,Nutrients!$EH$77,Nutrients!$EH$78)))))*AU$8))/2000","v":48.525462763224894},{"$f":"(SUMPRODUCT(AV$9:AV$229,Nutrients!$EH$8:$EH$228)+(IF($A$7=Nutrients!$B$8,Nutrients!$EH$8,Nutrients!$EH$9)*AV$7)+(((IF($A$8=Nutrients!$B$79,Nutrients!$EH$79,(IF($A$8=Nutrients!$B$77,Nutrients!$EH$77,Nutrients!$EH$78)))))*AV$8))/2000","v":49.556203402118712},{"$f":"(SUMPRODUCT(AW$9:AW$229,Nutrients!$EH$8:$EH$228)+(IF($A$7=Nutrients!$B$8,Nutrients!$EH$8,Nutrients!$EH$9)*AW$7)+(((IF($A$8=Nutrients!$B$79,Nutrients!$EH$79,(IF($A$8=Nutrients!$B$77,Nutrients!$EH$77,Nutrients!$EH$78)))))*AW$8))/2000","v":50.055955798097436}]
["IV value of product, estimate",{"$f":"(0.4472*B304)+51.796","v":67.295310140026132},67.94844373583328,68.516312942344612,68.992490029910371,69.320820614973073,69.480518088923972,null,{"$f":"(0.4472*I304)+51.796","v":67.998028664529301},68.662623025284546,69.241585413764724,69.692502568257908,70.028820542738856,70.182836975688573,null,{"$f":"(0.4472*P304)+51.796","v":68.71611122974025},69.385409694013106,69.971472430744939,70.41959678834931,70.752996718513444,70.906406144689683,null,{"$f":"(0.4472*W304)+51.796","v":69.437905146873121},70.11265085237055,70.69609355554374,71.151007726888182,71.478354526745818,71.658930663594973,null,{"$f":"(0.4472*AD304)+51.796","v":70.166937341135323},70.839675141542031,71.433916406720414,71.881356280956254,72.279296815613819,72.498666304339537,null,{"$f":"(0.4472*AK304)+51.796","v":70.929270373206677},71.567569414616798,72.15734114163557,72.659532583528417,73.118333061591841,73.339754899540125,null,{"$f":"(0.4472*AR304)+51.796","v":71.644949882728497},72.297106615123425,72.879307196978331,73.496586947714178,73.957534161427489,74.181023432909171]
["Na, %",{"$f":"(SUMPRODUCT(B$9:B$229,Nutrients!$BW$8:$BW$228)+(IF($A$7=Nutrients!$B$8,Nutrients!$BW$8,Nutrients!$BW$9)*B$7)+(((IF($A$8=Nutrients!$B$79,Nutrients!$BW$79,(IF($A$8=Nutrients!$B$77,Nutrients!$BW$77,Nutrients!$BW$78)))))*B$8))/2000","v":0.17839028042000546},{"$f":"(SUMPRODUCT(C$9:C$229,Nutrients!$BW$8:$BW$228)+(IF($A$7=Nutrients!$B$8,Nutrients!$BW$8,Nutrients!$BW$9)*C$7)+(((IF($A$8=Nutrients!$B$79,Nutrients!$BW$79,(IF($A$8=Nutrients!$B$77,Nutrients!$BW$77,Nutrients!$BW$78)))))*C$8))/2000","v":0.1747961379454851},{"$f":"(SUMPRODUCT(D$9:D$229,Nutrients!$BW$8:$BW$228)+(IF($A$7=Nutrients!$B$8,Nutrients!$BW$8,Nutrients!$BW$9)*D$7)+(((IF($A$8=Nutrients!$B$79,Nutrients!$BW$79,(IF($A$8=Nutrients!$B$77,Nutrients!$BW$77,Nutrients!$BW$78)))))*D$8))/2000","v":0.17169952789434653},{"$f":"(SUMPRODUCT(E$9:E$229,Nutrients!$BW$8:$BW$228)+(IF($A$7=Nutrients!$B$8,Nutrients!$BW$8,Nutrients!$BW$9)*E$7)+(((IF($A$8=Nutrients!$B$79,Nutrients!$BW$79,(IF($A$8=Nutrients!$B$77,Nutrients!$BW$77,Nutrients!$BW$78)))))*E$8))/2000","v":0.16911270535843034},{"$f":"(SUMPRODUCT(F$9:F$229,Nutrients!$BW$8:$BW$228)+(IF($A$7=Nutrients!$B$8,Nutrients!$BW$8,Nutrients!$BW$9)*F$7)+(((IF($A$8=Nutrients!$B$79,Nutrients!$BW$79,(IF($A$8=Nutrients!$B$77,Nutrients!$BW$77,Nutrients!$BW$78)))))*F$8))/2000","v":0.16737197925804595},{"$f":"(SUMPRODUCT(G$9:G$229,Nutrients!$BW$8:$BW$228)+(IF($A$7=Nutrients!$B$8,Nutrients!$BW$8,Nutrients!$BW$9)*G$7)+(((IF($A$8=Nutrients!$B$79,Nutrients!$BW$79,(IF($A$8=Nutrients!$B$77,Nutrients!$BW$77,Nutrients!$BW$78)))))*G$8))/2000","v":0.1664919947730959},null,{"$f":"(SUMPRODUCT(I$9:I$229,Nutrients!$BW$8:$BW$228)+(IF($A$7=Nutrients!$B$8,Nutrients!$BW$8,Nutrients!$BW$9)*I$7)+(((IF($A$8=Nutrients!$B$79,Nutrients!$BW$79,(IF($A$8=Nutrients!$B$77,Nutrients!$BW$77,Nutrients!$BW$78)))))*I$8))/2000","v":0.18578794211770608},{"$f":"(SUMPRODUCT(J$9:J$229,Nutrients!$BW$8:$BW$228)+(IF($A$7=Nutrients!$B$8,Nutrients!$BW$8,Nutrients!$BW$9)*J$7)+(((IF($A$8=Nutrients!$B$79,Nutrients!$BW$79,(IF($A$8=Nutrients!$B$77,Nutrients!$BW$77,Nutrients!$BW$78)))))*J$8))/2000","v":0.18219429651752395},{"$f":"(SUMPRODUCT(K$9:K$229,Nutrients!$BW$8:$BW$228)+(IF($A$7=Nutrients!$B$8,Nutrients!$BW$8,Nutrients!$BW$9)*K$7)+(((IF($A$8=Nutrients!$B$79,Nutrients!$BW$79,(IF($A$8=Nutrients!$B$77,Nutrients!$BW$77,Nutrients!$BW$78)))))*K$8))/2000","v":0.17907304142467681},{"$f":"(SUMPRODUCT(L$9:L$229,Nutrients!$BW$8:$BW$228)+(IF($A$7=Nutrients!$B$8,Nutrients!$BW$8,Nutrients!$BW$9)*L$7)+(((IF($A$8=Nutrients!$B$79,Nutrients!$BW$79,(IF($A$8=Nutrients!$B$77,Nutrients!$BW$77,Nutrients!$BW$78)))))*L$8))/2000","v":0.17647992727520151},{"$f":"(SUMPRODUCT(M$9:M$229,Nutrients!$BW$8:$BW$228)+(IF($A$7=Nutrients!$B$8,Nutrients!$BW$8,Nutrients!$BW$9)*M$7)+(((IF($A$8=Nutrients!$B$79,Nutrients!$BW$79,(IF($A$8=Nutrients!$B$77,Nutrients!$BW$77,Nutrients!$BW$78)))))*M$8))/2000","v":0.17475133715260913},{"$f":"(SUMPRODUCT(N$9:N$229,Nutrients!$BW$8:$BW$228)+(IF($A$7=Nutrients!$B$8,Nutrients!$BW$8,Nutrients!$BW$9)*N$7)+(((IF($A$8=Nutrients!$B$79,Nutrients!$BW$79,(IF($A$8=Nutrients!$B$77,Nutrients!$BW$77,Nutrients!$BW$78)))))*N$8))/2000","v":0.17386339987354416},null,{"$f":"(SUMPRODUCT(P$9:P$229,Nutrients!$BW$8:$BW$228)+(IF($A$7=Nutrients!$B$8,Nutrients!$BW$8,Nutrients!$BW$9)*P$7)+(((IF($A$8=Nutrients!$B$79,Nutrients!$BW$79,(IF($A$8=Nutrients!$B$77,Nutrients!$BW$77,Nutrients!$BW$78)))))*P$8))/2000","v":0.19317537409517643},{"$f":"(SUMPRODUCT(Q$9:Q$229,Nutrients!$BW$8:$BW$228)+(IF($A$7=Nutrients!$B$8,Nutrients!$BW$8,Nutrients!$BW$9)*Q$7)+(((IF($A$8=Nutrients!$B$79,Nutrients!$BW$79,(IF($A$8=Nutrients!$B$77,Nutrients!$BW$77,Nutrients!$BW$78)))))*Q$8))/2000","v":0.18958143513669443},{"$f":"(SUMPRODUCT(R$9:R$229,Nutrients!$BW$8:$BW$228)+(IF($A$7=Nutrients!$B$8,Nutrients!$BW$8,Nutrients!$BW$9)*R$7)+(((IF($A$8=Nutrients!$B$79,Nutrients!$BW$79,(IF($A$8=Nutrients!$B$77,Nutrients!$BW$77,Nutrients!$BW$78)))))*R$8))/2000","v":0.18645973725042586},{"$f":"(SUMPRODUCT(S$9:S$229,Nutrients!$BW$8:$BW$228)+(IF($A$7=Nutrients!$B$8,Nutrients!$BW$8,Nutrients!$BW$9)*S$7)+(((IF($A$8=Nutrients!$B$79,Nutrients!$BW$79,(IF($A$8=Nutrients!$B$77,Nutrients!$BW$77,Nutrients!$BW$78)))))*S$8))/2000","v":0.1838667972659416},{"$f":"(SUMPRODUCT(T$9:T$229,Nutrients!$BW$8:$BW$228)+(IF($A$7=Nutrients!$B$8,Nutrients!$BW$8,Nutrients!$BW$9)*T$7)+(((IF($A$8=Nutrients!$B$79,Nutrients!$BW$79,(IF($A$8=Nutrients!$B$77,Nutrients!$BW$77,Nutrients!$BW$78)))))*T$8))/2000","v":0.18213777286425512},{"$f":"(SUMPRODUCT(U$9:U$229,Nutrients!$BW$8:$BW$228)+(IF($A$7=Nutrients!$B$8,Nutrients!$BW$8,Nutrients!$BW$9)*U$7)+(((IF($A$8=Nutrients!$B$79,Nutrients!$BW$79,(IF($A$8=Nutrients!$B$77,Nutrients!$BW$77,Nutrients!$BW$78)))))*U$8))/2000","v":0.18124938460914225},null,{"$f":"(SUMPRODUCT(W$9:W$229,Nutrients!$BW$8:$BW$228)+(IF($A$7=Nutrients!$B$8,Nutrients!$BW$8,Nutrients!$BW$9)*W$7)+(((IF($A$8=Nutrients!$B$79,Nutrients!$BW$79,(IF($A$8=Nutrients!$B$77,Nutrients!$BW$77,Nutrients!$BW$78)))))*W$8))/2000","v":0.2005625746245322},{"$f":"(SUMPRODUCT(X$9:X$229,Nutrients!$BW$8:$BW$228)+(IF($A$7=Nutrients!$B$8,Nutrients!$BW$8,Nutrients!$BW$9)*X$7)+(((IF($A$8=Nutrients!$B$79,Nutrients!$BW$79,(IF($A$8=Nutrients!$B$77,Nutrients!$BW$77,Nutrients!$BW$78)))))*X$8))/2000","v":0.19696829596403931},{"$f":"(SUMPRODUCT(Y$9:Y$229,Nutrients!$BW$8:$BW$228)+(IF($A$7=Nutrients!$B$8,Nutrients!$BW$8,Nutrients!$BW$9)*Y$7)+(((IF($A$8=Nutrients!$B$79,Nutrients!$BW$79,(IF($A$8=Nutrients!$B$77,Nutrients!$BW$77,Nutrients!$BW$78)))))*Y$8))/2000","v":0.19384549612943172},{"$f":"(SUMPRODUCT(Z$9:Z$229,Nutrients!$BW$8:$BW$228)+(IF($A$7=Nutrients!$B$8,Nutrients!$BW$8,Nutrients!$BW$9)*Z$7)+(((IF($A$8=Nutrients!$B$79,Nutrients!$BW$79,(IF($A$8=Nutrients!$B$77,Nutrients!$BW$77,Nutrients!$BW$78)))))*Z$8))/2000","v":0.1912528793895264},{"$f":"(SUMPRODUCT(AA$9:AA$229,Nutrients!$BW$8:$BW$228)+(IF($A$7=Nutrients!$B$8,Nutrients!$BW$8,Nutrients!$BW$9)*AA$7)+(((IF($A$8=Nutrients!$B$79,Nutrients!$BW$79,(IF($A$8=Nutrients!$B$77,Nutrients!$BW$77,Nutrients!$BW$78)))))*AA$8))/2000","v":0.18952206349461595},{"$f":"(SUMPRODUCT(AB$9:AB$229,Nutrients!$BW$8:$BW$228)+(IF($A$7=Nutrients!$B$8,Nutrients!$BW$8,Nutrients!$BW$9)*AB$7)+(((IF($A$8=Nutrients!$B$79,Nutrients!$BW$79,(IF($A$8=Nutrients!$B$77,Nutrients!$BW$77,Nutrients!$BW$78)))))*AB$8))/2000","v":0.18867827787628652},null,{"$f":"(SUMPRODUCT(AD$9:AD$229,Nutrients!$BW$8:$BW$228)+(IF($A$7=Nutrients!$B$8,Nutrients!$BW$8,Nutrients!$BW$9)*AD$7)+(((IF($A$8=Nutrients!$B$79,Nutrients!$BW$79,(IF($A$8=Nutrients!$B$77,Nutrients!$BW$77,Nutrients!$BW$78)))))*AD$8))/2000","v":0.20794869108920333},{"$f":"(SUMPRODUCT(AE$9:AE$229,Nutrients!$BW$8:$BW$228)+(IF($A$7=Nutrients!$B$8,Nutrients!$BW$8,Nutrients!$BW$9)*AE$7)+(((IF($A$8=Nutrients!$B$79,Nutrients!$BW$79,(IF($A$8=Nutrients!$B$77,Nutrients!$BW$77,Nutrients!$BW$78)))))*AE$8))/2000","v":0.20435453764611294},{"$f":"(SUMPRODUCT(AF$9:AF$229,Nutrients!$BW$8:$BW$228)+(IF($A$7=Nutrients!$B$8,Nutrients!$BW$8,Nutrients!$BW$9)*AF$7)+(((IF($A$8=Nutrients!$B$79,Nutrients!$BW$79,(IF($A$8=Nutrients!$B$77,Nutrients!$BW$77,Nutrients!$BW$78)))))*AF$8))/2000","v":0.20123277930468592},{"$f":"(SUMPRODUCT(AG$9:AG$229,Nutrients!$BW$8:$BW$228)+(IF($A$7=Nutrients!$B$8,Nutrients!$BW$8,Nutrients!$BW$9)*AG$7)+(((IF($A$8=Nutrients!$B$79,Nutrients!$BW$79,(IF($A$8=Nutrients!$B$77,Nutrients!$BW$77,Nutrients!$BW$78)))))*AG$8))/2000","v":0.19863749145565177},{"$f":"(SUMPRODUCT(AH$9:AH$229,Nutrients!$BW$8:$BW$228)+(IF($A$7=Nutrients!$B$8,Nutrients!$BW$8,Nutrients!$BW$9)*AH$7)+(((IF($A$8=Nutrients!$B$79,Nutrients!$BW$79,(IF($A$8=Nutrients!$B$77,Nutrients!$BW$77,Nutrients!$BW$78)))))*AH$8))/2000","v":0.19701873148871532},{"$f":"(SUMPRODUCT(AI$9:AI$229,Nutrients!$BW$8:$BW$228)+(IF($A$7=Nutrients!$B$8,Nutrients!$BW$8,Nutrients!$BW$9)*AI$7)+(((IF($A$8=Nutrients!$B$79,Nutrients!$BW$79,(IF($A$8=Nutrients!$B$77,Nutrients!$BW$77,Nutrients!$BW$78)))))*AI$8))/2000","v":0.19619936733661458},null,{"$f":"(SUMPRODUCT(AK$9:AK$229,Nutrients!$BW$8:$BW$228)+(IF($A$7=Nutrients!$B$8,Nutrients!$BW$8,Nutrients!$BW$9)*AK$7)+(((IF($A$8=Nutrients!$B$79,Nutrients!$BW$79,(IF($A$8=Nutrients!$B$77,Nutrients!$BW$77,Nutrients!$BW$78)))))*AK$8))/2000","v":0.21533241450511756},{"$f":"(SUMPRODUCT(AL$9:AL$229,Nutrients!$BW$8:$BW$228)+(IF($A$7=Nutrients!$B$8,Nutrients!$BW$8,Nutrients!$BW$9)*AL$7)+(((IF($A$8=Nutrients!$B$79,Nutrients!$BW$79,(IF($A$8=Nutrients!$B$77,Nutrients!$BW$77,Nutrients!$BW$78)))))*AL$8))/2000","v":0.21174040873920949},{"$f":"(SUMPRODUCT(AM$9:AM$229,Nutrients!$BW$8:$BW$228)+(IF($A$7=Nutrients!$B$8,Nutrients!$BW$8,Nutrients!$BW$9)*AM$7)+(((IF($A$8=Nutrients!$B$79,Nutrients!$BW$79,(IF($A$8=Nutrients!$B$77,Nutrients!$BW$77,Nutrients!$BW$78)))))*AM$8))/2000","v":0.2086175068206311},{"$f":"(SUMPRODUCT(AN$9:AN$229,Nutrients!$BW$8:$BW$228)+(IF($A$7=Nutrients!$B$8,Nutrients!$BW$8,Nutrients!$BW$9)*AN$7)+(((IF($A$8=Nutrients!$B$79,Nutrients!$BW$79,(IF($A$8=Nutrients!$B$77,Nutrients!$BW$77,Nutrients!$BW$78)))))*AN$8))/2000","v":0.20613045995446339},{"$f":"(SUMPRODUCT(AO$9:AO$229,Nutrients!$BW$8:$BW$228)+(IF($A$7=Nutrients!$B$8,Nutrients!$BW$8,Nutrients!$BW$9)*AO$7)+(((IF($A$8=Nutrients!$B$79,Nutrients!$BW$79,(IF($A$8=Nutrients!$B$77,Nutrients!$BW$77,Nutrients!$BW$78)))))*AO$8))/2000","v":0.2045344392217846},{"$f":"(SUMPRODUCT(AP$9:AP$229,Nutrients!$BW$8:$BW$228)+(IF($A$7=Nutrients!$B$8,Nutrients!$BW$8,Nutrients!$BW$9)*AP$7)+(((IF($A$8=Nutrients!$B$79,Nutrients!$BW$79,(IF($A$8=Nutrients!$B$77,Nutrients!$BW$77,Nutrients!$BW$78)))))*AP$8))/2000","v":0.20371493835319637},null,{"$f":"(SUMPRODUCT(AR$9:AR$229,Nutrients!$BW$8:$BW$228)+(IF($A$7=Nutrients!$B$8,Nutrients!$BW$8,Nutrients!$BW$9)*AR$7)+(((IF($A$8=Nutrients!$B$79,Nutrients!$BW$79,(IF($A$8=Nutrients!$B$77,Nutrients!$BW$77,Nutrients!$BW$78)))))*AR$8))/2000","v":0.22272033360004412},{"$f":"(SUMPRODUCT(AS$9:AS$229,Nutrients!$BW$8:$BW$228)+(IF($A$7=Nutrients!$B$8,Nutrients!$BW$8,Nutrients!$BW$9)*AS$7)+(((IF($A$8=Nutrients!$B$79,Nutrients!$BW$79,(IF($A$8=Nutrients!$B$77,Nutrients!$BW$77,Nutrients!$BW$78)))))*AS$8))/2000","v":0.21912746362558358},{"$f":"(SUMPRODUCT(AT$9:AT$229,Nutrients!$BW$8:$BW$228)+(IF($A$7=Nutrients!$B$8,Nutrients!$BW$8,Nutrients!$BW$9)*AT$7)+(((IF($A$8=Nutrients!$B$79,Nutrients!$BW$79,(IF($A$8=Nutrients!$B$77,Nutrients!$BW$77,Nutrients!$BW$78)))))*AT$8))/2000","v":0.21604027907704085},{"$f":"(SUMPRODUCT(AU$9:AU$229,Nutrients!$BW$8:$BW$228)+(IF($A$7=Nutrients!$B$8,Nutrients!$BW$8,Nutrients!$BW$9)*AU$7)+(((IF($A$8=Nutrients!$B$79,Nutrients!$BW$79,(IF($A$8=Nutrients!$B$77,Nutrients!$BW$77,Nutrients!$BW$78)))))*AU$8))/2000","v":0.21364673429155018},{"$f":"(SUMPRODUCT(AV$9:AV$229,Nutrients!$BW$8:$BW$228)+(IF($A$7=Nutrients!$B$8,Nutrients!$BW$8,Nutrients!$BW$9)*AV$7)+(((IF($A$8=Nutrients!$B$79,Nutrients!$BW$79,(IF($A$8=Nutrients!$B$77,Nutrients!$BW$77,Nutrients!$BW$78)))))*AV$8))/2000","v":0.21204981488235475},{"$f":"(SUMPRODUCT(AW$9:AW$229,Nutrients!$BW$8:$BW$228)+(IF($A$7=Nutrients!$B$8,Nutrients!$BW$8,Nutrients!$BW$9)*AW$7)+(((IF($A$8=Nutrients!$B$79,Nutrients!$BW$79,(IF($A$8=Nutrients!$B$77,Nutrients!$BW$77,Nutrients!$BW$78)))))*AW$8))/2000","v":0.21123019339100649}]
["Cl, %",{"$f":"(SUMPRODUCT(B$9:B$229,Nutrients!$BT$8:$BT$228)+(IF($A$7=Nutrients!$B$8,Nutrients!$BT$8,Nutrients!$BT$9)*B$7)+(((IF($A$8=Nutrients!$B$79,Nutrients!$BT$79,(IF($A$8=Nutrients!$B$77,Nutrients!$BT$77,Nutrients!$BT$78)))))*B$8))/2000","v":0.31519434822612252},{"$f":"(SUMPRODUCT(C$9:C$229,Nutrients!$BT$8:$BT$228)+(IF($A$7=Nutrients!$B$8,Nutrients!$BT$8,Nutrients!$BT$9)*C$7)+(((IF($A$8=Nutrients!$B$79,Nutrients!$BT$79,(IF($A$8=Nutrients!$B$77,Nutrients!$BT$77,Nutrients!$BT$78)))))*C$8))/2000","v":0.3147366231672945},{"$f":"(SUMPRODUCT(D$9:D$229,Nutrients!$BT$8:$BT$228)+(IF($A$7=Nutrients!$B$8,Nutrients!$BT$8,Nutrients!$BT$9)*D$7)+(((IF($A$8=Nutrients!$B$79,Nutrients!$BT$79,(IF($A$8=Nutrients!$B$77,Nutrients!$BT$77,Nutrients!$BT$78)))))*D$8))/2000","v":0.31354180150272754},{"$f":"(SUMPRODUCT(E$9:E$229,Nutrients!$BT$8:$BT$228)+(IF($A$7=Nutrients!$B$8,Nutrients!$BT$8,Nutrients!$BT$9)*E$7)+(((IF($A$8=Nutrients!$B$79,Nutrients!$BT$79,(IF($A$8=Nutrients!$B$77,Nutrients!$BT$77,Nutrients!$BT$78)))))*E$8))/2000","v":0.31295871729246166},{"$f":"(SUMPRODUCT(F$9:F$229,Nutrients!$BT$8:$BT$228)+(IF($A$7=Nutrients!$B$8,Nutrients!$BT$8,Nutrients!$BT$9)*F$7)+(((IF($A$8=Nutrients!$B$79,Nutrients!$BT$79,(IF($A$8=Nutrients!$B$77,Nutrients!$BT$77,Nutrients!$BT$78)))))*F$8))/2000","v":0.31206915279820541},{"$f":"(SUMPRODUCT(G$9:G$229,Nutrients!$BT$8:$BT$228)+(IF($A$7=Nutrients!$B$8,Nutrients!$BT$8,Nutrients!$BT$9)*G$7)+(((IF($A$8=Nutrients!$B$79,Nutrients!$BT$79,(IF($A$8=Nutrients!$B$77,Nutrients!$BT$77,Nutrients!$BT$78)))))*G$8))/2000","v":0.31085636054251664},null,{"$f":"(SUMPRODUCT(I$9:I$229,Nutrients!$BT$8:$BT$228)+(IF($A$7=Nutrients!$B$8,Nutrients!$BT$8,Nutrients!$BT$9)*I$7)+(((IF($A$8=Nutrients!$B$79,Nutrients!$BT$79,(IF($A$8=Nutrients!$B$77,Nutrients!$BT$77,Nutrients!$BT$78)))))*I$8))/2000","v":0.32773618409760291},{"$f":"(SUMPRODUCT(J$9:J$229,Nutrients!$BT$8:$BT$228)+(IF($A$7=Nutrients!$B$8,Nutrients!$BT$8,Nutrients!$BT$9)*J$7)+(((IF($A$8=Nutrients!$B$79,Nutrients!$BT$79,(IF($A$8=Nutrients!$B$77,Nutrients!$BT$77,Nutrients!$BT$78)))))*J$8))/2000","v":0.32727551196726867},{"$f":"(SUMPRODUCT(K$9:K$229,Nutrients!$BT$8:$BT$228)+(IF($A$7=Nutrients!$B$8,Nutrients!$BT$8,Nutrients!$BT$9)*K$7)+(((IF($A$8=Nutrients!$B$79,Nutrients!$BT$79,(IF($A$8=Nutrients!$B$77,Nutrients!$BT$77,Nutrients!$BT$78)))))*K$8))/2000","v":0.32608604316010609},{"$f":"(SUMPRODUCT(L$9:L$229,Nutrients!$BT$8:$BT$228)+(IF($A$7=Nutrients!$B$8,Nutrients!$BT$8,Nutrients!$BT$9)*L$7)+(((IF($A$8=Nutrients!$B$79,Nutrients!$BT$79,(IF($A$8=Nutrients!$B$77,Nutrients!$BT$77,Nutrients!$BT$78)))))*L$8))/2000","v":0.32551104636396283},{"$f":"(SUMPRODUCT(M$9:M$229,Nutrients!$BT$8:$BT$228)+(IF($A$7=Nutrients!$B$8,Nutrients!$BT$8,Nutrients!$BT$9)*M$7)+(((IF($A$8=Nutrients!$B$79,Nutrients!$BT$79,(IF($A$8=Nutrients!$B$77,Nutrients!$BT$77,Nutrients!$BT$78)))))*M$8))/2000","v":0.32461567674793873},{"$f":"(SUMPRODUCT(N$9:N$229,Nutrients!$BT$8:$BT$228)+(IF($A$7=Nutrients!$B$8,Nutrients!$BT$8,Nutrients!$BT$9)*N$7)+(((IF($A$8=Nutrients!$B$79,Nutrients!$BT$79,(IF($A$8=Nutrients!$B$77,Nutrients!$BT$77,Nutrients!$BT$78)))))*N$8))/2000","v":0.32340683308396428},null,{"$f":"(SUMPRODUCT(P$9:P$229,Nutrients!$BT$8:$BT$228)+(IF($A$7=Nutrients!$B$8,Nutrients!$BT$8,Nutrients!$BT$9)*P$7)+(((IF($A$8=Nutrients!$B$79,Nutrients!$BT$79,(IF($A$8=Nutrients!$B$77,Nutrients!$BT$77,Nutrients!$BT$78)))))*P$8))/2000","v":0.34027750037707466},{"$f":"(SUMPRODUCT(Q$9:Q$229,Nutrients!$BT$8:$BT$228)+(IF($A$7=Nutrients!$B$8,Nutrients!$BT$8,Nutrients!$BT$9)*Q$7)+(((IF($A$8=Nutrients!$B$79,Nutrients!$BT$79,(IF($A$8=Nutrients!$B$77,Nutrients!$BT$77,Nutrients!$BT$78)))))*Q$8))/2000","v":0.33981587855654122},{"$f":"(SUMPRODUCT(R$9:R$229,Nutrients!$BT$8:$BT$228)+(IF($A$7=Nutrients!$B$8,Nutrients!$BT$8,Nutrients!$BT$9)*R$7)+(((IF($A$8=Nutrients!$B$79,Nutrients!$BT$79,(IF($A$8=Nutrients!$B$77,Nutrients!$BT$77,Nutrients!$BT$78)))))*R$8))/2000","v":0.33862497629215982},{"$f":"(SUMPRODUCT(S$9:S$229,Nutrients!$BT$8:$BT$228)+(IF($A$7=Nutrients!$B$8,Nutrients!$BT$8,Nutrients!$BT$9)*S$7)+(((IF($A$8=Nutrients!$B$79,Nutrients!$BT$79,(IF($A$8=Nutrients!$B$77,Nutrients!$BT$77,Nutrients!$BT$78)))))*S$8))/2000","v":0.33805054332115853},{"$f":"(SUMPRODUCT(T$9:T$229,Nutrients!$BT$8:$BT$228)+(IF($A$7=Nutrients!$B$8,Nutrients!$BT$8,Nutrients!$BT$9)*T$7)+(((IF($A$8=Nutrients!$B$79,Nutrients!$BT$79,(IF($A$8=Nutrients!$B$77,Nutrients!$BT$77,Nutrients!$BT$78)))))*T$8))/2000","v":0.33715376781138728},{"$f":"(SUMPRODUCT(U$9:U$229,Nutrients!$BT$8:$BT$228)+(IF($A$7=Nutrients!$B$8,Nutrients!$BT$8,Nutrients!$BT$9)*U$7)+(((IF($A$8=Nutrients!$B$79,Nutrients!$BT$79,(IF($A$8=Nutrients!$B$77,Nutrients!$BT$77,Nutrients!$BT$78)))))*U$8))/2000","v":0.33594346420053894},null,{"$f":"(SUMPRODUCT(W$9:W$229,Nutrients!$BT$8:$BT$228)+(IF($A$7=Nutrients!$B$8,Nutrients!$BT$8,Nutrients!$BT$9)*W$7)+(((IF($A$8=Nutrients!$B$79,Nutrients!$BT$79,(IF($A$8=Nutrients!$B$77,Nutrients!$BT$77,Nutrients!$BT$78)))))*W$8))/2000","v":0.35281806738848021},{"$f":"(SUMPRODUCT(X$9:X$229,Nutrients!$BT$8:$BT$228)+(IF($A$7=Nutrients!$B$8,Nutrients!$BT$8,Nutrients!$BT$9)*X$7)+(((IF($A$8=Nutrients!$B$79,Nutrients!$BT$79,(IF($A$8=Nutrients!$B$77,Nutrients!$BT$77,Nutrients!$BT$78)))))*X$8))/2000","v":0.3523553458490345},{"$f":"(SUMPRODUCT(Y$9:Y$229,Nutrients!$BT$8:$BT$228)+(IF($A$7=Nutrients!$B$8,Nutrients!$BT$8,Nutrients!$BT$9)*Y$7)+(((IF($A$8=Nutrients!$B$79,Nutrients!$BT$79,(IF($A$8=Nutrients!$B$77,Nutrients!$BT$77,Nutrients!$BT$78)))))*Y$8))/2000","v":0.35116565592962989},{"$f":"(SUMPRODUCT(Z$9:Z$229,Nutrients!$BT$8:$BT$228)+(IF($A$7=Nutrients!$B$8,Nutrients!$BT$8,Nutrients!$BT$9)*Z$7)+(((IF($A$8=Nutrients!$B$79,Nutrients!$BT$79,(IF($A$8=Nutrients!$B$77,Nutrients!$BT$77,Nutrients!$BT$78)))))*Z$8))/2000","v":0.35059226939981891},{"$f":"(SUMPRODUCT(AA$9:AA$229,Nutrients!$BT$8:$BT$228)+(IF($A$7=Nutrients!$B$8,Nutrients!$BT$8,Nutrients!$BT$9)*AA$7)+(((IF($A$8=Nutrients!$B$79,Nutrients!$BT$79,(IF($A$8=Nutrients!$B$77,Nutrients!$BT$77,Nutrients!$BT$78)))))*AA$8))/2000","v":0.3496896942806364},{"$f":"(SUMPRODUCT(AB$9:AB$229,Nutrients!$BT$8:$BT$228)+(IF($A$7=Nutrients!$B$8,Nutrients!$BT$8,Nutrients!$BT$9)*AB$7)+(((IF($A$8=Nutrients!$B$79,Nutrients!$BT$79,(IF($A$8=Nutrients!$B$77,Nutrients!$BT$77,Nutrients!$BT$78)))))*AB$8))/2000","v":0.34845991233837753},null,{"$f":"(SUMPRODUCT(AD$9:AD$229,Nutrients!$BT$8:$BT$228)+(IF($A$7=Nutrients!$B$8,Nutrients!$BT$8,Nutrients!$BT$9)*AD$7)+(((IF($A$8=Nutrients!$B$79,Nutrients!$BT$79,(IF($A$8=Nutrients!$B$77,Nutrients!$BT$77,Nutrients!$BT$78)))))*AD$8))/2000","v":0.36535751479595047},{"$f":"(SUMPRODUCT(AE$9:AE$229,Nutrients!$BT$8:$BT$228)+(IF($A$7=Nutrients!$B$8,Nutrients!$BT$8,Nutrients!$BT$9)*AE$7)+(((IF($A$8=Nutrients!$B$79,Nutrients!$BT$79,(IF($A$8=Nutrients!$B$77,Nutrients!$BT$77,Nutrients!$BT$78)))))*AE$8))/2000","v":0.36489519862338887},{"$f":"(SUMPRODUCT(AF$9:AF$229,Nutrients!$BT$8:$BT$228)+(IF($A$7=Nutrients!$B$8,Nutrients!$BT$8,Nutrients!$BT$9)*AF$7)+(((IF($A$8=Nutrients!$B$79,Nutrients!$BT$79,(IF($A$8=Nutrients!$B$77,Nutrients!$BT$77,Nutrients!$BT$78)))))*AF$8))/2000","v":0.36370888033473975},{"$f":"(SUMPRODUCT(AG$9:AG$229,Nutrients!$BT$8:$BT$228)+(IF($A$7=Nutrients!$B$8,Nutrients!$BT$8,Nutrients!$BT$9)*AG$7)+(((IF($A$8=Nutrients!$B$79,Nutrients!$BT$79,(IF($A$8=Nutrients!$B$77,Nutrients!$BT$77,Nutrients!$BT$78)))))*AG$8))/2000","v":0.36312684661082534},{"$f":"(SUMPRODUCT(AH$9:AH$229,Nutrients!$BT$8:$BT$228)+(IF($A$7=Nutrients!$B$8,Nutrients!$BT$8,Nutrients!$BT$9)*AH$7)+(((IF($A$8=Nutrients!$B$79,Nutrients!$BT$79,(IF($A$8=Nutrients!$B$77,Nutrients!$BT$77,Nutrients!$BT$78)))))*AH$8))/2000","v":0.36217224288400485},{"$f":"(SUMPRODUCT(AI$9:AI$229,Nutrients!$BT$8:$BT$228)+(IF($A$7=Nutrients!$B$8,Nutrients!$BT$8,Nutrients!$BT$9)*AI$7)+(((IF($A$8=Nutrients!$B$79,Nutrients!$BT$79,(IF($A$8=Nutrients!$B$77,Nutrients!$BT$77,Nutrients!$BT$78)))))*AI$8))/2000","v":0.36092487160617487},null,{"$f":"(SUMPRODUCT(AK$9:AK$229,Nutrients!$BT$8:$BT$228)+(IF($A$7=Nutrients!$B$8,Nutrients!$BT$8,Nutrients!$BT$9)*AK$7)+(((IF($A$8=Nutrients!$B$79,Nutrients!$BT$79,(IF($A$8=Nutrients!$B$77,Nutrients!$BT$77,Nutrients!$BT$78)))))*AK$8))/2000","v":0.37789041009733776},{"$f":"(SUMPRODUCT(AL$9:AL$229,Nutrients!$BT$8:$BT$228)+(IF($A$7=Nutrients!$B$8,Nutrients!$BT$8,Nutrients!$BT$9)*AL$7)+(((IF($A$8=Nutrients!$B$79,Nutrients!$BT$79,(IF($A$8=Nutrients!$B$77,Nutrients!$BT$77,Nutrients!$BT$78)))))*AL$8))/2000","v":0.37743504661018573},{"$f":"(SUMPRODUCT(AM$9:AM$229,Nutrients!$BT$8:$BT$228)+(IF($A$7=Nutrients!$B$8,Nutrients!$BT$8,Nutrients!$BT$9)*AM$7)+(((IF($A$8=Nutrients!$B$79,Nutrients!$BT$79,(IF($A$8=Nutrients!$B$77,Nutrients!$BT$77,Nutrients!$BT$78)))))*AM$8))/2000","v":0.37624502621386391},{"$f":"(SUMPRODUCT(AN$9:AN$229,Nutrients!$BT$8:$BT$228)+(IF($A$7=Nutrients!$B$8,Nutrients!$BT$8,Nutrients!$BT$9)*AN$7)+(((IF($A$8=Nutrients!$B$79,Nutrients!$BT$79,(IF($A$8=Nutrients!$B$77,Nutrients!$BT$77,Nutrients!$BT$78)))))*AN$8))/2000","v":0.37561577151326347},{"$f":"(SUMPRODUCT(AO$9:AO$229,Nutrients!$BT$8:$BT$228)+(IF($A$7=Nutrients!$B$8,Nutrients!$BT$8,Nutrients!$BT$9)*AO$7)+(((IF($A$8=Nutrients!$B$79,Nutrients!$BT$79,(IF($A$8=Nutrients!$B$77,Nutrients!$BT$77,Nutrients!$BT$78)))))*AO$8))/2000","v":0.37464072195363507},{"$f":"(SUMPRODUCT(AP$9:AP$229,Nutrients!$BT$8:$BT$228)+(IF($A$7=Nutrients!$B$8,Nutrients!$BT$8,Nutrients!$BT$9)*AP$7)+(((IF($A$8=Nutrients!$B$79,Nutrients!$BT$79,(IF($A$8=Nutrients!$B$77,Nutrients!$BT$77,Nutrients!$BT$78)))))*AP$8))/2000","v":0.3733929184412435},null,{"$f":"(SUMPRODUCT(AR$9:AR$229,Nutrients!$BT$8:$BT$228)+(IF($A$7=Nutrients!$B$8,Nutrients!$BT$8,Nutrients!$BT$9)*AR$7)+(((IF($A$8=Nutrients!$B$79,Nutrients!$BT$79,(IF($A$8=Nutrients!$B$77,Nutrients!$BT$77,Nutrients!$BT$78)))))*AR$8))/2000","v":0.39043330332443382},{"$f":"(SUMPRODUCT(AS$9:AS$229,Nutrients!$BT$8:$BT$228)+(IF($A$7=Nutrients!$B$8,Nutrients!$BT$8,Nutrients!$BT$9)*AS$7)+(((IF($A$8=Nutrients!$B$79,Nutrients!$BT$79,(IF($A$8=Nutrients!$B$77,Nutrients!$BT$77,Nutrients!$BT$78)))))*AS$8))/2000","v":0.38997514213088402},{"$f":"(SUMPRODUCT(AT$9:AT$229,Nutrients!$BT$8:$BT$228)+(IF($A$7=Nutrients!$B$8,Nutrients!$BT$8,Nutrients!$BT$9)*AT$7)+(((IF($A$8=Nutrients!$B$79,Nutrients!$BT$79,(IF($A$8=Nutrients!$B$77,Nutrients!$BT$77,Nutrients!$BT$78)))))*AT$8))/2000","v":0.38876987841500377},{"$f":"(SUMPRODUCT(AU$9:AU$229,Nutrients!$BT$8:$BT$228)+(IF($A$7=Nutrients!$B$8,Nutrients!$BT$8,Nutrients!$BT$9)*AU$7)+(((IF($A$8=Nutrients!$B$79,Nutrients!$BT$79,(IF($A$8=Nutrients!$B$77,Nutrients!$BT$77,Nutrients!$BT$78)))))*AU$8))/2000","v":0.38808457330855944},{"$f":"(SUMPRODUCT(AV$9:AV$229,Nutrients!$BT$8:$BT$228)+(IF($A$7=Nutrients!$B$8,Nutrients!$BT$8,Nutrients!$BT$9)*AV$7)+(((IF($A$8=Nutrients!$B$79,Nutrients!$BT$79,(IF($A$8=Nutrients!$B$77,Nutrients!$BT$77,Nutrients!$BT$78)))))*AV$8))/2000","v":0.38710814278484379},{"$f":"(SUMPRODUCT(AW$9:AW$229,Nutrients!$BT$8:$BT$228)+(IF($A$7=Nutrients!$B$8,Nutrients!$BT$8,Nutrients!$BT$9)*AW$7)+(((IF($A$8=Nutrients!$B$79,Nutrients!$BT$79,(IF($A$8=Nutrients!$B$77,Nutrients!$BT$77,Nutrients!$BT$78)))))*AW$8))/2000","v":0.3858599547866276}]
["K, %",{"$f":"(SUMPRODUCT(B$9:B$229,Nutrients!$BU$8:$BU$228)+(IF($A$7=Nutrients!$B$8,Nutrients!$BU$8,Nutrients!$BU$9)*B$7)+(((IF($A$8=Nutrients!$B$79,Nutrients!$BU$79,(IF($A$8=Nutrients!$B$77,Nutrients!$BU$77,Nutrients!$BU$78)))))*B$8))/2000","v":0.90672227094333946},{"$f":"(SUMPRODUCT(C$9:C$229,Nutrients!$BU$8:$BU$228)+(IF($A$7=Nutrients!$B$8,Nutrients!$BU$8,Nutrients!$BU$9)*C$7)+(((IF($A$8=Nutrients!$B$79,Nutrients!$BU$79,(IF($A$8=Nutrients!$B$77,Nutrients!$BU$77,Nutrients!$BU$78)))))*C$8))/2000","v":0.80119571619411978},{"$f":"(SUMPRODUCT(D$9:D$229,Nutrients!$BU$8:$BU$228)+(IF($A$7=Nutrients!$B$8,Nutrients!$BU$8,Nutrients!$BU$9)*D$7)+(((IF($A$8=Nutrients!$B$79,Nutrients!$BU$79,(IF($A$8=Nutrients!$B$77,Nutrients!$BU$77,Nutrients!$BU$78)))))*D$8))/2000","v":0.71030836475916248},{"$f":"(SUMPRODUCT(E$9:E$229,Nutrients!$BU$8:$BU$228)+(IF($A$7=Nutrients!$B$8,Nutrients!$BU$8,Nutrients!$BU$9)*E$7)+(((IF($A$8=Nutrients!$B$79,Nutrients!$BU$79,(IF($A$8=Nutrients!$B$77,Nutrients!$BU$77,Nutrients!$BU$78)))))*E$8))/2000","v":0.63370500360255355},{"$f":"(SUMPRODUCT(F$9:F$229,Nutrients!$BU$8:$BU$228)+(IF($A$7=Nutrients!$B$8,Nutrients!$BU$8,Nutrients!$BU$9)*F$7)+(((IF($A$8=Nutrients!$B$79,Nutrients!$BU$79,(IF($A$8=Nutrients!$B$77,Nutrients!$BU$77,Nutrients!$BU$78)))))*F$8))/2000","v":0.58276518762548057},{"$f":"(SUMPRODUCT(G$9:G$229,Nutrients!$BU$8:$BU$228)+(IF($A$7=Nutrients!$B$8,Nutrients!$BU$8,Nutrients!$BU$9)*G$7)+(((IF($A$8=Nutrients!$B$79,Nutrients!$BU$79,(IF($A$8=Nutrients!$B$77,Nutrients!$BU$77,Nutrients!$BU$78)))))*G$8))/2000","v":0.55679357869744972},null,{"$f":"(SUMPRODUCT(I$9:I$229,Nutrients!$BU$8:$BU$228)+(IF($A$7=Nutrients!$B$8,Nutrients!$BU$8,Nutrients!$BU$9)*I$7)+(((IF($A$8=Nutrients!$B$79,Nutrients!$BU$79,(IF($A$8=Nutrients!$B$77,Nutrients!$BU$77,Nutrients!$BU$78)))))*I$8))/2000","v":0.90643292507164752},{"$f":"(SUMPRODUCT(J$9:J$229,Nutrients!$BU$8:$BU$228)+(IF($A$7=Nutrients!$B$8,Nutrients!$BU$8,Nutrients!$BU$9)*J$7)+(((IF($A$8=Nutrients!$B$79,Nutrients!$BU$79,(IF($A$8=Nutrients!$B$77,Nutrients!$BU$77,Nutrients!$BU$78)))))*J$8))/2000","v":0.80089626477003872},{"$f":"(SUMPRODUCT(K$9:K$229,Nutrients!$BU$8:$BU$228)+(IF($A$7=Nutrients!$B$8,Nutrients!$BU$8,Nutrients!$BU$9)*K$7)+(((IF($A$8=Nutrients!$B$79,Nutrients!$BU$79,(IF($A$8=Nutrients!$B$77,Nutrients!$BU$77,Nutrients!$BU$78)))))*K$8))/2000","v":0.71000818158492163},{"$f":"(SUMPRODUCT(L$9:L$229,Nutrients!$BU$8:$BU$228)+(IF($A$7=Nutrients!$B$8,Nutrients!$BU$8,Nutrients!$BU$9)*L$7)+(((IF($A$8=Nutrients!$B$79,Nutrients!$BU$79,(IF($A$8=Nutrients!$B$77,Nutrients!$BU$77,Nutrients!$BU$78)))))*L$8))/2000","v":0.63342802222851446},{"$f":"(SUMPRODUCT(M$9:M$229,Nutrients!$BU$8:$BU$228)+(IF($A$7=Nutrients!$B$8,Nutrients!$BU$8,Nutrients!$BU$9)*M$7)+(((IF($A$8=Nutrients!$B$79,Nutrients!$BU$79,(IF($A$8=Nutrients!$B$77,Nutrients!$BU$77,Nutrients!$BU$78)))))*M$8))/2000","v":0.58247763217707049},{"$f":"(SUMPRODUCT(N$9:N$229,Nutrients!$BU$8:$BU$228)+(IF($A$7=Nutrients!$B$8,Nutrients!$BU$8,Nutrients!$BU$9)*N$7)+(((IF($A$8=Nutrients!$B$79,Nutrients!$BU$79,(IF($A$8=Nutrients!$B$77,Nutrients!$BU$77,Nutrients!$BU$78)))))*N$8))/2000","v":0.55651353287114103},null,{"$f":"(SUMPRODUCT(P$9:P$229,Nutrients!$BU$8:$BU$228)+(IF($A$7=Nutrients!$B$8,Nutrients!$BU$8,Nutrients!$BU$9)*P$7)+(((IF($A$8=Nutrients!$B$79,Nutrients!$BU$79,(IF($A$8=Nutrients!$B$77,Nutrients!$BU$77,Nutrients!$BU$78)))))*P$8))/2000","v":0.90613375404651042},{"$f":"(SUMPRODUCT(Q$9:Q$229,Nutrients!$BU$8:$BU$228)+(IF($A$7=Nutrients!$B$8,Nutrients!$BU$8,Nutrients!$BU$9)*Q$7)+(((IF($A$8=Nutrients!$B$79,Nutrients!$BU$79,(IF($A$8=Nutrients!$B$77,Nutrients!$BU$77,Nutrients!$BU$78)))))*Q$8))/2000","v":0.80059377512913465},{"$f":"(SUMPRODUCT(R$9:R$229,Nutrients!$BU$8:$BU$228)+(IF($A$7=Nutrients!$B$8,Nutrients!$BU$8,Nutrients!$BU$9)*R$7)+(((IF($A$8=Nutrients!$B$79,Nutrients!$BU$79,(IF($A$8=Nutrients!$B$77,Nutrients!$BU$77,Nutrients!$BU$78)))))*R$8))/2000","v":0.70970068284343757},{"$f":"(SUMPRODUCT(S$9:S$229,Nutrients!$BU$8:$BU$228)+(IF($A$7=Nutrients!$B$8,Nutrients!$BU$8,Nutrients!$BU$9)*S$7)+(((IF($A$8=Nutrients!$B$79,Nutrients!$BU$79,(IF($A$8=Nutrients!$B$77,Nutrients!$BU$77,Nutrients!$BU$78)))))*S$8))/2000","v":0.63312249372849194},{"$f":"(SUMPRODUCT(T$9:T$229,Nutrients!$BU$8:$BU$228)+(IF($A$7=Nutrients!$B$8,Nutrients!$BU$8,Nutrients!$BU$9)*T$7)+(((IF($A$8=Nutrients!$B$79,Nutrients!$BU$79,(IF($A$8=Nutrients!$B$77,Nutrients!$BU$77,Nutrients!$BU$78)))))*T$8))/2000","v":0.58216719089479552},{"$f":"(SUMPRODUCT(U$9:U$229,Nutrients!$BU$8:$BU$228)+(IF($A$7=Nutrients!$B$8,Nutrients!$BU$8,Nutrients!$BU$9)*U$7)+(((IF($A$8=Nutrients!$B$79,Nutrients!$BU$79,(IF($A$8=Nutrients!$B$77,Nutrients!$BU$77,Nutrients!$BU$78)))))*U$8))/2000","v":0.55619798992232405},null,{"$f":"(SUMPRODUCT(W$9:W$229,Nutrients!$BU$8:$BU$228)+(IF($A$7=Nutrients!$B$8,Nutrients!$BU$8,Nutrients!$BU$9)*W$7)+(((IF($A$8=Nutrients!$B$79,Nutrients!$BU$79,(IF($A$8=Nutrients!$B$77,Nutrients!$BU$77,Nutrients!$BU$78)))))*W$8))/2000","v":0.90583196476457739},{"$f":"(SUMPRODUCT(X$9:X$229,Nutrients!$BU$8:$BU$228)+(IF($A$7=Nutrients!$B$8,Nutrients!$BU$8,Nutrients!$BU$9)*X$7)+(((IF($A$8=Nutrients!$B$79,Nutrients!$BU$79,(IF($A$8=Nutrients!$B$77,Nutrients!$BU$77,Nutrients!$BU$78)))))*X$8))/2000","v":0.80028814296820305},{"$f":"(SUMPRODUCT(Y$9:Y$229,Nutrients!$BU$8:$BU$228)+(IF($A$7=Nutrients!$B$8,Nutrients!$BU$8,Nutrients!$BU$9)*Y$7)+(((IF($A$8=Nutrients!$B$79,Nutrients!$BU$79,(IF($A$8=Nutrients!$B$77,Nutrients!$BU$77,Nutrients!$BU$78)))))*Y$8))/2000","v":0.70939908489192138},{"$f":"(SUMPRODUCT(Z$9:Z$229,Nutrients!$BU$8:$BU$228)+(IF($A$7=Nutrients!$B$8,Nutrients!$BU$8,Nutrients!$BU$9)*Z$7)+(((IF($A$8=Nutrients!$B$79,Nutrients!$BU$79,(IF($A$8=Nutrients!$B$77,Nutrients!$BU$77,Nutrients!$BU$78)))))*Z$8))/2000","v":0.63282455248127445},{"$f":"(SUMPRODUCT(AA$9:AA$229,Nutrients!$BU$8:$BU$228)+(IF($A$7=Nutrients!$B$8,Nutrients!$BU$8,Nutrients!$BU$9)*AA$7)+(((IF($A$8=Nutrients!$B$79,Nutrients!$BU$79,(IF($A$8=Nutrients!$B$77,Nutrients!$BU$77,Nutrients!$BU$78)))))*AA$8))/2000","v":0.58184898338048263},{"$f":"(SUMPRODUCT(AB$9:AB$229,Nutrients!$BU$8:$BU$228)+(IF($A$7=Nutrients!$B$8,Nutrients!$BU$8,Nutrients!$BU$9)*AB$7)+(((IF($A$8=Nutrients!$B$79,Nutrients!$BU$79,(IF($A$8=Nutrients!$B$77,Nutrients!$BU$77,Nutrients!$BU$78)))))*AB$8))/2000","v":0.55585123360885014},null,{"$f":"(SUMPRODUCT(AD$9:AD$229,Nutrients!$BU$8:$BU$228)+(IF($A$7=Nutrients!$B$8,Nutrients!$BU$8,Nutrients!$BU$9)*AD$7)+(((IF($A$8=Nutrients!$B$79,Nutrients!$BU$79,(IF($A$8=Nutrients!$B$77,Nutrients!$BU$77,Nutrients!$BU$78)))))*AD$8))/2000","v":0.90552616200089908},{"$f":"(SUMPRODUCT(AE$9:AE$229,Nutrients!$BU$8:$BU$228)+(IF($A$7=Nutrients!$B$8,Nutrients!$BU$8,Nutrients!$BU$9)*AE$7)+(((IF($A$8=Nutrients!$B$79,Nutrients!$BU$79,(IF($A$8=Nutrients!$B$77,Nutrients!$BU$77,Nutrients!$BU$78)))))*AE$8))/2000","v":0.79998375672639099},{"$f":"(SUMPRODUCT(AF$9:AF$229,Nutrients!$BU$8:$BU$228)+(IF($A$7=Nutrients!$B$8,Nutrients!$BU$8,Nutrients!$BU$9)*AF$7)+(((IF($A$8=Nutrients!$B$79,Nutrients!$BU$79,(IF($A$8=Nutrients!$B$77,Nutrients!$BU$77,Nutrients!$BU$78)))))*AF$8))/2000","v":0.7091064805417141},{"$f":"(SUMPRODUCT(AG$9:AG$229,Nutrients!$BU$8:$BU$228)+(IF($A$7=Nutrients!$B$8,Nutrients!$BU$8,Nutrients!$BU$9)*AG$7)+(((IF($A$8=Nutrients!$B$79,Nutrients!$BU$79,(IF($A$8=Nutrients!$B$77,Nutrients!$BU$77,Nutrients!$BU$78)))))*AG$8))/2000","v":0.6325017312090474},{"$f":"(SUMPRODUCT(AH$9:AH$229,Nutrients!$BU$8:$BU$228)+(IF($A$7=Nutrients!$B$8,Nutrients!$BU$8,Nutrients!$BU$9)*AH$7)+(((IF($A$8=Nutrients!$B$79,Nutrients!$BU$79,(IF($A$8=Nutrients!$B$77,Nutrients!$BU$77,Nutrients!$BU$78)))))*AH$8))/2000","v":0.58143545590533219},{"$f":"(SUMPRODUCT(AI$9:AI$229,Nutrients!$BU$8:$BU$228)+(IF($A$7=Nutrients!$B$8,Nutrients!$BU$8,Nutrients!$BU$9)*AI$7)+(((IF($A$8=Nutrients!$B$79,Nutrients!$BU$79,(IF($A$8=Nutrients!$B$77,Nutrients!$BU$77,Nutrients!$BU$78)))))*AI$8))/2000","v":0.55539429692239728},null,{"$f":"(SUMPRODUCT(AK$9:AK$229,Nutrients!$BU$8:$BU$228)+(IF($A$7=Nutrients!$B$8,Nutrients!$BU$8,Nutrients!$BU$9)*AK$7)+(((IF($A$8=Nutrients!$B$79,Nutrients!$BU$79,(IF($A$8=Nutrients!$B$77,Nutrients!$BU$77,Nutrients!$BU$78)))))*AK$8))/2000","v":0.90519741287315858},{"$f":"(SUMPRODUCT(AL$9:AL$229,Nutrients!$BU$8:$BU$228)+(IF($A$7=Nutrients!$B$8,Nutrients!$BU$8,Nutrients!$BU$9)*AL$7)+(((IF($A$8=Nutrients!$B$79,Nutrients!$BU$79,(IF($A$8=Nutrients!$B$77,Nutrients!$BU$77,Nutrients!$BU$78)))))*AL$8))/2000","v":0.79967930319677516},{"$f":"(SUMPRODUCT(AM$9:AM$229,Nutrients!$BU$8:$BU$228)+(IF($A$7=Nutrients!$B$8,Nutrients!$BU$8,Nutrients!$BU$9)*AM$7)+(((IF($A$8=Nutrients!$B$79,Nutrients!$BU$79,(IF($A$8=Nutrients!$B$77,Nutrients!$BU$77,Nutrients!$BU$78)))))*AM$8))/2000","v":0.70878909029557324},{"$f":"(SUMPRODUCT(AN$9:AN$229,Nutrients!$BU$8:$BU$228)+(IF($A$7=Nutrients!$B$8,Nutrients!$BU$8,Nutrients!$BU$9)*AN$7)+(((IF($A$8=Nutrients!$B$79,Nutrients!$BU$79,(IF($A$8=Nutrients!$B$77,Nutrients!$BU$77,Nutrients!$BU$78)))))*AN$8))/2000","v":0.63210648529826008},{"$f":"(SUMPRODUCT(AO$9:AO$229,Nutrients!$BU$8:$BU$228)+(IF($A$7=Nutrients!$B$8,Nutrients!$BU$8,Nutrients!$BU$9)*AO$7)+(((IF($A$8=Nutrients!$B$79,Nutrients!$BU$79,(IF($A$8=Nutrients!$B$77,Nutrients!$BU$77,Nutrients!$BU$78)))))*AO$8))/2000","v":0.58098993280620703},{"$f":"(SUMPRODUCT(AP$9:AP$229,Nutrients!$BU$8:$BU$228)+(IF($A$7=Nutrients!$B$8,Nutrients!$BU$8,Nutrients!$BU$9)*AP$7)+(((IF($A$8=Nutrients!$B$79,Nutrients!$BU$79,(IF($A$8=Nutrients!$B$77,Nutrients!$BU$77,Nutrients!$BU$78)))))*AP$8))/2000","v":0.554947262976205},null,{"$f":"(SUMPRODUCT(AR$9:AR$229,Nutrients!$BU$8:$BU$228)+(IF($A$7=Nutrients!$B$8,Nutrients!$BU$8,Nutrients!$BU$9)*AR$7)+(((IF($A$8=Nutrients!$B$79,Nutrients!$BU$79,(IF($A$8=Nutrients!$B$77,Nutrients!$BU$77,Nutrients!$BU$78)))))*AR$8))/2000","v":0.90490375236424492},{"$f":"(SUMPRODUCT(AS$9:AS$229,Nutrients!$BU$8:$BU$228)+(IF($A$7=Nutrients!$B$8,Nutrients!$BU$8,Nutrients!$BU$9)*AS$7)+(((IF($A$8=Nutrients!$B$79,Nutrients!$BU$79,(IF($A$8=Nutrients!$B$77,Nutrients!$BU$77,Nutrients!$BU$78)))))*AS$8))/2000","v":0.79937586632861191},{"$f":"(SUMPRODUCT(AT$9:AT$229,Nutrients!$BU$8:$BU$228)+(IF($A$7=Nutrients!$B$8,Nutrients!$BU$8,Nutrients!$BU$9)*AT$7)+(((IF($A$8=Nutrients!$B$79,Nutrients!$BU$79,(IF($A$8=Nutrients!$B$77,Nutrients!$BU$77,Nutrients!$BU$78)))))*AT$8))/2000","v":0.70846105990456132},{"$f":"(SUMPRODUCT(AU$9:AU$229,Nutrients!$BU$8:$BU$228)+(IF($A$7=Nutrients!$B$8,Nutrients!$BU$8,Nutrients!$BU$9)*AU$7)+(((IF($A$8=Nutrients!$B$79,Nutrients!$BU$79,(IF($A$8=Nutrients!$B$77,Nutrients!$BU$77,Nutrients!$BU$78)))))*AU$8))/2000","v":0.63166215389253555},{"$f":"(SUMPRODUCT(AV$9:AV$229,Nutrients!$BU$8:$BU$228)+(IF($A$7=Nutrients!$B$8,Nutrients!$BU$8,Nutrients!$BU$9)*AV$7)+(((IF($A$8=Nutrients!$B$79,Nutrients!$BU$79,(IF($A$8=Nutrients!$B$77,Nutrients!$BU$77,Nutrients!$BU$78)))))*AV$8))/2000","v":0.58054071106827532},{"$f":"(SUMPRODUCT(AW$9:AW$229,Nutrients!$BU$8:$BU$228)+(IF($A$7=Nutrients!$B$8,Nutrients!$BU$8,Nutrients!$BU$9)*AW$7)+(((IF($A$8=Nutrients!$B$79,Nutrients!$BU$79,(IF($A$8=Nutrients!$B$77,Nutrients!$BU$77,Nutrients!$BU$78)))))*AW$8))/2000","v":0.55449669742943208}]
["DCAD",{"$f":"(B306 * 434.98) + (B308* 255.74) - (B307*282.06)","v":220.57763988748351},192.15600461244421,167.90252131513171,147.35122639861532,133.81760738274346,127.13493264786482,null,{"$f":"(I306 * 434.98) + (I308* 255.74) - (I307*282.06)","v":220.18392723361302},191.76075494599445,167.49485458369429,146.94447543346809,133.41506850408234,126.72974123379689,null,{"$f":"(P306 * 434.98) + (P308* 255.74) - (P307*282.06)","v":219.78339872741674},191.35951800162624,167.09254832660437,146.54258977169786,133.01213409104884,126.32571774761583,null,{"$f":"(W306 * 434.98) + (W308* 255.74) - (W307*282.06)","v":219.38231129147732},190.95761021094739,166.69085096512882,146.1416730215044,132.6068910198164,125.93806891959169,null,{"$f":"(AD306 * 434.98) + (AD308* 255.74) - (AD307*282.06)","v":218.98004169674581},190.55564300680041,166.29139888847357,145.73577041773177,132.24120848832865,125.57686901377683,null,{"$f":"(AK306 * 434.98) + (AK308* 255.74) - (AK307*282.06)","v":218.57271095756249},190.15349874605562,165.88649297514559,145.37135550813844,131.87959375430896,125.21493034287089,null,{"$f":"(AR306 * 434.98) + (AR308* 255.74) - (AR307*282.06)","v":218.17335880328937},189.75205959329841,165.49860014718777,145.01020097120326,131.51718717223437,124.85223607470681]
["Phytate P, %",{"$f":"(SUMPRODUCT(B$9:B$229,Nutrients!$EG$8:$EG$228)+(IF($A$7=Nutrients!$B$8,Nutrients!$EG$8,Nutrients!$EG$9)*B$7)+(((IF($A$8=Nutrients!$B$79,Nutrients!$EG$79,(IF($A$8=Nutrients!$B$77,Nutrients!$EG$77,Nutrients!$EG$78)))))*B$8))/2000","v":0.27113524017910468},{"$f":"(SUMPRODUCT(C$9:C$229,Nutrients!$EG$8:$EG$228)+(IF($A$7=Nutrients!$B$8,Nutrients!$EG$8,Nutrients!$EG$9)*C$7)+(((IF($A$8=Nutrients!$B$79,Nutrients!$EG$79,(IF($A$8=Nutrients!$B$77,Nutrients!$EG$77,Nutrients!$EG$78)))))*C$8))/2000","v":0.25613988263521914},{"$f":"(SUMPRODUCT(D$9:D$229,Nutrients!$EG$8:$EG$228)+(IF($A$7=Nutrients!$B$8,Nutrients!$EG$8,Nutrients!$EG$9)*D$7)+(((IF($A$8=Nutrients!$B$79,Nutrients!$EG$79,(IF($A$8=Nutrients!$B$77,Nutrients!$EG$77,Nutrients!$EG$78)))))*D$8))/2000","v":0.24325948567864156},{"$f":"(SUMPRODUCT(E$9:E$229,Nutrients!$EG$8:$EG$228)+(IF($A$7=Nutrients!$B$8,Nutrients!$EG$8,Nutrients!$EG$9)*E$7)+(((IF($A$8=Nutrients!$B$79,Nutrients!$EG$79,(IF($A$8=Nutrients!$B$77,Nutrients!$EG$77,Nutrients!$EG$78)))))*E$8))/2000","v":0.23238392794271739},{"$f":"(SUMPRODUCT(F$9:F$229,Nutrients!$EG$8:$EG$228)+(IF($A$7=Nutrients!$B$8,Nutrients!$EG$8,Nutrients!$EG$9)*F$7)+(((IF($A$8=Nutrients!$B$79,Nutrients!$EG$79,(IF($A$8=Nutrients!$B$77,Nutrients!$EG$77,Nutrients!$EG$78)))))*F$8))/2000","v":0.2252348701473687},{"$f":"(SUMPRODUCT(G$9:G$229,Nutrients!$EG$8:$EG$228)+(IF($A$7=Nutrients!$B$8,Nutrients!$EG$8,Nutrients!$EG$9)*G$7)+(((IF($A$8=Nutrients!$B$79,Nutrients!$EG$79,(IF($A$8=Nutrients!$B$77,Nutrients!$EG$77,Nutrients!$EG$78)))))*G$8))/2000","v":0.2215364317520549},null,{"$f":"(SUMPRODUCT(I$9:I$229,Nutrients!$EG$8:$EG$228)+(IF($A$7=Nutrients!$B$8,Nutrients!$EG$8,Nutrients!$EG$9)*I$7)+(((IF($A$8=Nutrients!$B$79,Nutrients!$EG$79,(IF($A$8=Nutrients!$B$77,Nutrients!$EG$77,Nutrients!$EG$78)))))*I$8))/2000","v":0.26548932440567385},{"$f":"(SUMPRODUCT(J$9:J$229,Nutrients!$EG$8:$EG$228)+(IF($A$7=Nutrients!$B$8,Nutrients!$EG$8,Nutrients!$EG$9)*J$7)+(((IF($A$8=Nutrients!$B$79,Nutrients!$EG$79,(IF($A$8=Nutrients!$B$77,Nutrients!$EG$77,Nutrients!$EG$78)))))*J$8))/2000","v":0.25048274395213355},{"$f":"(SUMPRODUCT(K$9:K$229,Nutrients!$EG$8:$EG$228)+(IF($A$7=Nutrients!$B$8,Nutrients!$EG$8,Nutrients!$EG$9)*K$7)+(((IF($A$8=Nutrients!$B$79,Nutrients!$EG$79,(IF($A$8=Nutrients!$B$77,Nutrients!$EG$77,Nutrients!$EG$78)))))*K$8))/2000","v":0.23762260374114752},{"$f":"(SUMPRODUCT(L$9:L$229,Nutrients!$EG$8:$EG$228)+(IF($A$7=Nutrients!$B$8,Nutrients!$EG$8,Nutrients!$EG$9)*L$7)+(((IF($A$8=Nutrients!$B$79,Nutrients!$EG$79,(IF($A$8=Nutrients!$B$77,Nutrients!$EG$77,Nutrients!$EG$78)))))*L$8))/2000","v":0.22677703453639583},{"$f":"(SUMPRODUCT(M$9:M$229,Nutrients!$EG$8:$EG$228)+(IF($A$7=Nutrients!$B$8,Nutrients!$EG$8,Nutrients!$EG$9)*M$7)+(((IF($A$8=Nutrients!$B$79,Nutrients!$EG$79,(IF($A$8=Nutrients!$B$77,Nutrients!$EG$77,Nutrients!$EG$78)))))*M$8))/2000","v":0.21960642930363558},{"$f":"(SUMPRODUCT(N$9:N$229,Nutrients!$EG$8:$EG$228)+(IF($A$7=Nutrients!$B$8,Nutrients!$EG$8,Nutrients!$EG$9)*N$7)+(((IF($A$8=Nutrients!$B$79,Nutrients!$EG$79,(IF($A$8=Nutrients!$B$77,Nutrients!$EG$77,Nutrients!$EG$78)))))*N$8))/2000","v":0.2159227515008916},null,{"$f":"(SUMPRODUCT(P$9:P$229,Nutrients!$EG$8:$EG$228)+(IF($A$7=Nutrients!$B$8,Nutrients!$EG$8,Nutrients!$EG$9)*P$7)+(((IF($A$8=Nutrients!$B$79,Nutrients!$EG$79,(IF($A$8=Nutrients!$B$77,Nutrients!$EG$77,Nutrients!$EG$78)))))*P$8))/2000","v":0.25984171982992577},{"$f":"(SUMPRODUCT(Q$9:Q$229,Nutrients!$EG$8:$EG$228)+(IF($A$7=Nutrients!$B$8,Nutrients!$EG$8,Nutrients!$EG$9)*Q$7)+(((IF($A$8=Nutrients!$B$79,Nutrients!$EG$79,(IF($A$8=Nutrients!$B$77,Nutrients!$EG$77,Nutrients!$EG$78)))))*Q$8))/2000","v":0.24483193707260048},{"$f":"(SUMPRODUCT(R$9:R$229,Nutrients!$EG$8:$EG$228)+(IF($A$7=Nutrients!$B$8,Nutrients!$EG$8,Nutrients!$EG$9)*R$7)+(((IF($A$8=Nutrients!$B$79,Nutrients!$EG$79,(IF($A$8=Nutrients!$B$77,Nutrients!$EG$77,Nutrients!$EG$78)))))*R$8))/2000","v":0.23196696332170727},{"$f":"(SUMPRODUCT(S$9:S$229,Nutrients!$EG$8:$EG$228)+(IF($A$7=Nutrients!$B$8,Nutrients!$EG$8,Nutrients!$EG$9)*S$7)+(((IF($A$8=Nutrients!$B$79,Nutrients!$EG$79,(IF($A$8=Nutrients!$B$77,Nutrients!$EG$77,Nutrients!$EG$78)))))*S$8))/2000","v":0.22112329530471947},{"$f":"(SUMPRODUCT(T$9:T$229,Nutrients!$EG$8:$EG$228)+(IF($A$7=Nutrients!$B$8,Nutrients!$EG$8,Nutrients!$EG$9)*T$7)+(((IF($A$8=Nutrients!$B$79,Nutrients!$EG$79,(IF($A$8=Nutrients!$B$77,Nutrients!$EG$77,Nutrients!$EG$78)))))*T$8))/2000","v":0.21394794947458215},{"$f":"(SUMPRODUCT(U$9:U$229,Nutrients!$EG$8:$EG$228)+(IF($A$7=Nutrients!$B$8,Nutrients!$EG$8,Nutrients!$EG$9)*U$7)+(((IF($A$8=Nutrients!$B$79,Nutrients!$EG$79,(IF($A$8=Nutrients!$B$77,Nutrients!$EG$77,Nutrients!$EG$78)))))*U$8))/2000","v":0.21025934881025263},null,{"$f":"(SUMPRODUCT(W$9:W$229,Nutrients!$EG$8:$EG$228)+(IF($A$7=Nutrients!$B$8,Nutrients!$EG$8,Nutrients!$EG$9)*W$7)+(((IF($A$8=Nutrients!$B$79,Nutrients!$EG$79,(IF($A$8=Nutrients!$B$77,Nutrients!$EG$77,Nutrients!$EG$78)))))*W$8))/2000","v":0.2541915887629424},{"$f":"(SUMPRODUCT(X$9:X$229,Nutrients!$EG$8:$EG$228)+(IF($A$7=Nutrients!$B$8,Nutrients!$EG$8,Nutrients!$EG$9)*X$7)+(((IF($A$8=Nutrients!$B$79,Nutrients!$EG$79,(IF($A$8=Nutrients!$B$77,Nutrients!$EG$77,Nutrients!$EG$78)))))*X$8))/2000","v":0.23917809781315819},{"$f":"(SUMPRODUCT(Y$9:Y$229,Nutrients!$EG$8:$EG$228)+(IF($A$7=Nutrients!$B$8,Nutrients!$EG$8,Nutrients!$EG$9)*Y$7)+(((IF($A$8=Nutrients!$B$79,Nutrients!$EG$79,(IF($A$8=Nutrients!$B$77,Nutrients!$EG$77,Nutrients!$EG$78)))))*Y$8))/2000","v":0.22631856080197885},{"$f":"(SUMPRODUCT(Z$9:Z$229,Nutrients!$EG$8:$EG$228)+(IF($A$7=Nutrients!$B$8,Nutrients!$EG$8,Nutrients!$EG$9)*Z$7)+(((IF($A$8=Nutrients!$B$79,Nutrients!$EG$79,(IF($A$8=Nutrients!$B$77,Nutrients!$EG$77,Nutrients!$EG$78)))))*Z$8))/2000","v":0.21547842132786457},{"$f":"(SUMPRODUCT(AA$9:AA$229,Nutrients!$EG$8:$EG$228)+(IF($A$7=Nutrients!$B$8,Nutrients!$EG$8,Nutrients!$EG$9)*AA$7)+(((IF($A$8=Nutrients!$B$79,Nutrients!$EG$79,(IF($A$8=Nutrients!$B$77,Nutrients!$EG$77,Nutrients!$EG$78)))))*AA$8))/2000","v":0.2082835195297032},{"$f":"(SUMPRODUCT(AB$9:AB$229,Nutrients!$EG$8:$EG$228)+(IF($A$7=Nutrients!$B$8,Nutrients!$EG$8,Nutrients!$EG$9)*AB$7)+(((IF($A$8=Nutrients!$B$79,Nutrients!$EG$79,(IF($A$8=Nutrients!$B$77,Nutrients!$EG$77,Nutrients!$EG$78)))))*AB$8))/2000","v":0.20452789021122361},null,{"$f":"(SUMPRODUCT(AD$9:AD$229,Nutrients!$EG$8:$EG$228)+(IF($A$7=Nutrients!$B$8,Nutrients!$EG$8,Nutrients!$EG$9)*AD$7)+(((IF($A$8=Nutrients!$B$79,Nutrients!$EG$79,(IF($A$8=Nutrients!$B$77,Nutrients!$EG$77,Nutrients!$EG$78)))))*AD$8))/2000","v":0.24853835684142286},{"$f":"(SUMPRODUCT(AE$9:AE$229,Nutrients!$EG$8:$EG$228)+(IF($A$7=Nutrients!$B$8,Nutrients!$EG$8,Nutrients!$EG$9)*AE$7)+(((IF($A$8=Nutrients!$B$79,Nutrients!$EG$79,(IF($A$8=Nutrients!$B$77,Nutrients!$EG$77,Nutrients!$EG$78)))))*AE$8))/2000","v":0.2335262327667611},{"$f":"(SUMPRODUCT(AF$9:AF$229,Nutrients!$EG$8:$EG$228)+(IF($A$7=Nutrients!$B$8,Nutrients!$EG$8,Nutrients!$EG$9)*AF$7)+(((IF($A$8=Nutrients!$B$79,Nutrients!$EG$79,(IF($A$8=Nutrients!$B$77,Nutrients!$EG$77,Nutrients!$EG$78)))))*AF$8))/2000","v":0.22067806471141418},{"$f":"(SUMPRODUCT(AG$9:AG$229,Nutrients!$EG$8:$EG$228)+(IF($A$7=Nutrients!$B$8,Nutrients!$EG$8,Nutrients!$EG$9)*AG$7)+(((IF($A$8=Nutrients!$B$79,Nutrients!$EG$79,(IF($A$8=Nutrients!$B$77,Nutrients!$EG$77,Nutrients!$EG$78)))))*AG$8))/2000","v":0.20980876736831364},{"$f":"(SUMPRODUCT(AH$9:AH$229,Nutrients!$EG$8:$EG$228)+(IF($A$7=Nutrients!$B$8,Nutrients!$EG$8,Nutrients!$EG$9)*AH$7)+(((IF($A$8=Nutrients!$B$79,Nutrients!$EG$79,(IF($A$8=Nutrients!$B$77,Nutrients!$EG$77,Nutrients!$EG$78)))))*AH$8))/2000","v":0.20242272290107982},{"$f":"(SUMPRODUCT(AI$9:AI$229,Nutrients!$EG$8:$EG$228)+(IF($A$7=Nutrients!$B$8,Nutrients!$EG$8,Nutrients!$EG$9)*AI$7)+(((IF($A$8=Nutrients!$B$79,Nutrients!$EG$79,(IF($A$8=Nutrients!$B$77,Nutrients!$EG$77,Nutrients!$EG$78)))))*AI$8))/2000","v":0.19859975261411467},null,{"$f":"(SUMPRODUCT(AK$9:AK$229,Nutrients!$EG$8:$EG$228)+(IF($A$7=Nutrients!$B$8,Nutrients!$EG$8,Nutrients!$EG$9)*AK$7)+(((IF($A$8=Nutrients!$B$79,Nutrients!$EG$79,(IF($A$8=Nutrients!$B$77,Nutrients!$EG$77,Nutrients!$EG$78)))))*AK$8))/2000","v":0.24286336876853187},{"$f":"(SUMPRODUCT(AL$9:AL$229,Nutrients!$EG$8:$EG$228)+(IF($A$7=Nutrients!$B$8,Nutrients!$EG$8,Nutrients!$EG$9)*AL$7)+(((IF($A$8=Nutrients!$B$79,Nutrients!$EG$79,(IF($A$8=Nutrients!$B$77,Nutrients!$EG$77,Nutrients!$EG$78)))))*AL$8))/2000","v":0.22787468877154962},{"$f":"(SUMPRODUCT(AM$9:AM$229,Nutrients!$EG$8:$EG$228)+(IF($A$7=Nutrients!$B$8,Nutrients!$EG$8,Nutrients!$EG$9)*AM$7)+(((IF($A$8=Nutrients!$B$79,Nutrients!$EG$79,(IF($A$8=Nutrients!$B$77,Nutrients!$EG$77,Nutrients!$EG$78)))))*AM$8))/2000","v":0.21501403741014952},{"$f":"(SUMPRODUCT(AN$9:AN$229,Nutrients!$EG$8:$EG$228)+(IF($A$7=Nutrients!$B$8,Nutrients!$EG$8,Nutrients!$EG$9)*AN$7)+(((IF($A$8=Nutrients!$B$79,Nutrients!$EG$79,(IF($A$8=Nutrients!$B$77,Nutrients!$EG$77,Nutrients!$EG$78)))))*AN$8))/2000","v":0.20397020896524867},{"$f":"(SUMPRODUCT(AO$9:AO$229,Nutrients!$EG$8:$EG$228)+(IF($A$7=Nutrients!$B$8,Nutrients!$EG$8,Nutrients!$EG$9)*AO$7)+(((IF($A$8=Nutrients!$B$79,Nutrients!$EG$79,(IF($A$8=Nutrients!$B$77,Nutrients!$EG$77,Nutrients!$EG$78)))))*AO$8))/2000","v":0.19651236352617171},{"$f":"(SUMPRODUCT(AP$9:AP$229,Nutrients!$EG$8:$EG$228)+(IF($A$7=Nutrients!$B$8,Nutrients!$EG$8,Nutrients!$EG$9)*AP$7)+(((IF($A$8=Nutrients!$B$79,Nutrients!$EG$79,(IF($A$8=Nutrients!$B$77,Nutrients!$EG$77,Nutrients!$EG$78)))))*AP$8))/2000","v":0.19268793869075793},null,{"$f":"(SUMPRODUCT(AR$9:AR$229,Nutrients!$EG$8:$EG$228)+(IF($A$7=Nutrients!$B$8,Nutrients!$EG$8,Nutrients!$EG$9)*AR$7)+(((IF($A$8=Nutrients!$B$79,Nutrients!$EG$79,(IF($A$8=Nutrients!$B$77,Nutrients!$EG$77,Nutrients!$EG$78)))))*AR$8))/2000","v":0.23722108157454677},{"$f":"(SUMPRODUCT(AS$9:AS$229,Nutrients!$EG$8:$EG$228)+(IF($A$7=Nutrients!$B$8,Nutrients!$EG$8,Nutrients!$EG$9)*AS$7)+(((IF($A$8=Nutrients!$B$79,Nutrients!$EG$79,(IF($A$8=Nutrients!$B$77,Nutrients!$EG$77,Nutrients!$EG$78)))))*AS$8))/2000","v":0.22222296786350268},{"$f":"(SUMPRODUCT(AT$9:AT$229,Nutrients!$EG$8:$EG$228)+(IF($A$7=Nutrients!$B$8,Nutrients!$EG$8,Nutrients!$EG$9)*AT$7)+(((IF($A$8=Nutrients!$B$79,Nutrients!$EG$79,(IF($A$8=Nutrients!$B$77,Nutrients!$EG$77,Nutrients!$EG$78)))))*AT$8))/2000","v":0.20930586329884476},{"$f":"(SUMPRODUCT(AU$9:AU$229,Nutrients!$EG$8:$EG$228)+(IF($A$7=Nutrients!$B$8,Nutrients!$EG$8,Nutrients!$EG$9)*AU$7)+(((IF($A$8=Nutrients!$B$79,Nutrients!$EG$79,(IF($A$8=Nutrients!$B$77,Nutrients!$EG$77,Nutrients!$EG$78)))))*AU$8))/2000","v":0.19806051126165961},{"$f":"(SUMPRODUCT(AV$9:AV$229,Nutrients!$EG$8:$EG$228)+(IF($A$7=Nutrients!$B$8,Nutrients!$EG$8,Nutrients!$EG$9)*AV$7)+(((IF($A$8=Nutrients!$B$79,Nutrients!$EG$79,(IF($A$8=Nutrients!$B$77,Nutrients!$EG$77,Nutrients!$EG$78)))))*AV$8))/2000","v":0.19059844056431474},{"$f":"(SUMPRODUCT(AW$9:AW$229,Nutrients!$EG$8:$EG$228)+(IF($A$7=Nutrients!$B$8,Nutrients!$EG$8,Nutrients!$EG$9)*AW$7)+(((IF($A$8=Nutrients!$B$79,Nutrients!$EG$79,(IF($A$8=Nutrients!$B$77,Nutrients!$EG$77,Nutrients!$EG$78)))))*AW$8))/2000","v":0.18677272095863437}]
["Total P - Avail P, %",{"$f":"B255-B256","v":0.31730463701690137},0.29999736257979814,0.2851440661893474,0.27259764867356195,0.26435033325189533,0.26008169818001309,null,{"$f":"I255-I256","v":0.33417290051826437},0.31685276752781666,0.30202271368400491,0.28951086787128466,0.28123871776767945,0.27698706706429999,null,{"$f":"P255-P256","v":0.35103915296649035},0.33371524218005089,0.31887948615152645,0.30636988319270037,0.29809214054979427,0.29383468228785209,null,{"$f":"W255-W256","v":0.36790242488285479},0.3505741394975172,0.33574439725571614,0.32323895696102811,0.31493814390926012,0.31060201114408675,null,{"$f":"AD255-AD256","v":0.38476183868411667},0.36743516581767349,0.35261883566874691,0.34007899748804116,0.33155734870541081,0.32714415461329804,null,{"$f":"AK255-AK256","v":0.40159548649396432},0.38429647088574503,0.36946541403168964,0.35672421821108702,0.34811871276456435,0.3437038018574225,null,{"$f":"AR255-AR256","v":0.41846801192091476},0.40115786724763325,0.38626171058260927,0.3732864893491144,0.36467587141326979,0.36025943254749837]
["Phytate P released, %",{"$f":"B257-B256","v":0.11261444047083269},0.11261444047083266,0.11261444047083266,0.11261444047083269,0.11261444047083269,0.11261444047083269,null,{"$f":"I257-I256","v":0.11261444047083263},0.11261444047083266,0.11261444047083266,0.1126144404708327,0.11261444047083269,0.11261444047083269,null,{"$f":"P257-P256","v":0.11261444047083272},0.11261444047083272,0.11261444047083267,0.1126144404708327,0.11261444047083269,0.11261444047083269,null,{"$f":"W257-W256","v":0.11261444047083263},0.11261444047083266,0.11261444047083269,0.11261444047083269,0.1126144404708327,0.11261444047083269,null,{"$f":"AD257-AD256","v":0.11261444047083263},0.11261444047083267,0.11261444047083269,0.11261444047083266,0.11261444047083266,0.11261444047083266,null,{"$f":"AK257-AK256","v":0.11261444047083266},0.11261444047083267,0.11261444047083269,0.1126144404708327,0.11261444047083269,0.1126144404708327,null,{"$f":"AR257-AR256","v":0.11261444047083269},0.1126144404708327,0.11261444047083269,0.11261444047083266,0.1126144404708327,0.11261444047083269]
["Percent of total phytate phos released, %",{"$f":"B312/B310","v":0.41534416697896814},0.4396599206348985,0.46293956495329519,0.48460511648891713,0.49998670453269645,0.50833372904042951,null,{"$f":"I312/I310","v":0.42417690701097704},0.44958961521258695,0.47392141445225638,0.49658661734003323,0.51280119998275642,0.52154967314950906,null,{"$f":"P312/P310","v":0.43339630196622103},0.45996630103628572,0.48547620255153079,0.50928347606091939,0.52636372887608218,0.53559778011326842,null,{"$f":"W312/W310","v":0.44302976750287443},0.47083926789486019,0.49759259723008997,0.52262514165853491,0.54067859389505279,0.55060676739261105,null,{"$f":"AD312/AD310","v":0.45310688419286937},0.48223464720260595,0.51031098454711032,0.53674802003455391,0.55633299886922882,0.56704219913932086,null,{"$f":"AK312/AK310","v":0.46369463226116736},0.49419459913659658,0.52375389917457005,0.55211219835549286,0.57306542168699015,0.58443948923843114,null,{"$f":"AR312/AR310","v":0.47472357736234155},0.50676328173244689,0.53803767699542626,0.56858603339691804,0.59084659946539575,0.60294908106936052]
["Phytase units, FTU/kg",{"$f":"((SUMPRODUCT(B$9:B$229,Nutrients!$EE$8:$EE$228)+(IF($A$7=Nutrients!$B$8,Nutrients!$EE$8,Nutrients!$EE$9)*B$7)+(((IF($A$8=Nutrients!$B$79,Nutrients!$EE$79,(IF($A$8=Nutrients!$B$77,Nutrients!$EE$77,Nutrients!$EE$78)))))*B$8))/2000)*2.2046","v":608.03970300000003},{"$f":"((SUMPRODUCT(C$9:C$229,Nutrients!$EE$8:$EE$228)+(IF($A$7=Nutrients!$B$8,Nutrients!$EE$8,Nutrients!$EE$9)*C$7)+(((IF($A$8=Nutrients!$B$79,Nutrients!$EE$79,(IF($A$8=Nutrients!$B$77,Nutrients!$EE$77,Nutrients!$EE$78)))))*C$8))/2000)*2.2046","v":608.03970300000003},{"$f":"((SUMPRODUCT(D$9:D$229,Nutrients!$EE$8:$EE$228)+(IF($A$7=Nutrients!$B$8,Nutrients!$EE$8,Nutrients!$EE$9)*D$7)+(((IF($A$8=Nutrients!$B$79,Nutrients!$EE$79,(IF($A$8=Nutrients!$B$77,Nutrients!$EE$77,Nutrients!$EE$78)))))*D$8))/2000)*2.2046","v":608.03970300000003},{"$f":"((SUMPRODUCT(E$9:E$229,Nutrients!$EE$8:$EE$228)+(IF($A$7=Nutrients!$B$8,Nutrients!$EE$8,Nutrients!$EE$9)*E$7)+(((IF($A$8=Nutrients!$B$79,Nutrients!$EE$79,(IF($A$8=Nutrients!$B$77,Nutrients!$EE$77,Nutrients!$EE$78)))))*E$8))/2000)*2.2046","v":608.03970300000003},{"$f":"((SUMPRODUCT(F$9:F$229,Nutrients!$EE$8:$EE$228)+(IF($A$7=Nutrients!$B$8,Nutrients!$EE$8,Nutrients!$EE$9)*F$7)+(((IF($A$8=Nutrients!$B$79,Nutrients!$EE$79,(IF($A$8=Nutrients!$B$77,Nutrients!$EE$77,Nutrients!$EE$78)))))*F$8))/2000)*2.2046","v":608.03970300000003},{"$f":"((SUMPRODUCT(G$9:G$229,Nutrients!$EE$8:$EE$228)+(IF($A$7=Nutrients!$B$8,Nutrients!$EE$8,Nutrients!$EE$9)*G$7)+(((IF($A$8=Nutrients!$B$79,Nutrients!$EE$79,(IF($A$8=Nutrients!$B$77,Nutrients!$EE$77,Nutrients!$EE$78)))))*G$8))/2000)*2.2046","v":608.03970300000003},null,{"$f":"((SUMPRODUCT(I$9:I$229,Nutrients!$EE$8:$EE$228)+(IF($A$7=Nutrients!$B$8,Nutrients!$EE$8,Nutrients!$EE$9)*I$7)+(((IF($A$8=Nutrients!$B$79,Nutrients!$EE$79,(IF($A$8=Nutrients!$B$77,Nutrients!$EE$77,Nutrients!$EE$78)))))*I$8))/2000)*2.2046","v":608.03970300000003},{"$f":"((SUMPRODUCT(J$9:J$229,Nutrients!$EE$8:$EE$228)+(IF($A$7=Nutrients!$B$8,Nutrients!$EE$8,Nutrients!$EE$9)*J$7)+(((IF($A$8=Nutrients!$B$79,Nutrients!$EE$79,(IF($A$8=Nutrients!$B$77,Nutrients!$EE$77,Nutrients!$EE$78)))))*J$8))/2000)*2.2046","v":608.03970300000003},{"$f":"((SUMPRODUCT(K$9:K$229,Nutrients!$EE$8:$EE$228)+(IF($A$7=Nutrients!$B$8,Nutrients!$EE$8,Nutrients!$EE$9)*K$7)+(((IF($A$8=Nutrients!$B$79,Nutrients!$EE$79,(IF($A$8=Nutrients!$B$77,Nutrients!$EE$77,Nutrients!$EE$78)))))*K$8))/2000)*2.2046","v":608.03970300000003},{"$f":"((SUMPRODUCT(L$9:L$229,Nutrients!$EE$8:$EE$228)+(IF($A$7=Nutrients!$B$8,Nutrients!$EE$8,Nutrients!$EE$9)*L$7)+(((IF($A$8=Nutrients!$B$79,Nutrients!$EE$79,(IF($A$8=Nutrients!$B$77,Nutrients!$EE$77,Nutrients!$EE$78)))))*L$8))/2000)*2.2046","v":608.03970300000003},{"$f":"((SUMPRODUCT(M$9:M$229,Nutrients!$EE$8:$EE$228)+(IF($A$7=Nutrients!$B$8,Nutrients!$EE$8,Nutrients!$EE$9)*M$7)+(((IF($A$8=Nutrients!$B$79,Nutrients!$EE$79,(IF($A$8=Nutrients!$B$77,Nutrients!$EE$77,Nutrients!$EE$78)))))*M$8))/2000)*2.2046","v":608.03970300000003},{"$f":"((SUMPRODUCT(N$9:N$229,Nutrients!$EE$8:$EE$228)+(IF($A$7=Nutrients!$B$8,Nutrients!$EE$8,Nutrients!$EE$9)*N$7)+(((IF($A$8=Nutrients!$B$79,Nutrients!$EE$79,(IF($A$8=Nutrients!$B$77,Nutrients!$EE$77,Nutrients!$EE$78)))))*N$8))/2000)*2.2046","v":608.03970300000003},null,{"$f":"((SUMPRODUCT(P$9:P$229,Nutrients!$EE$8:$EE$228)+(IF($A$7=Nutrients!$B$8,Nutrients!$EE$8,Nutrients!$EE$9)*P$7)+(((IF($A$8=Nutrients!$B$79,Nutrients!$EE$79,(IF($A$8=Nutrients!$B$77,Nutrients!$EE$77,Nutrients!$EE$78)))))*P$8))/2000)*2.2046","v":608.03970300000003},{"$f":"((SUMPRODUCT(Q$9:Q$229,Nutrients!$EE$8:$EE$228)+(IF($A$7=Nutrients!$B$8,Nutrients!$EE$8,Nutrients!$EE$9)*Q$7)+(((IF($A$8=Nutrients!$B$79,Nutrients!$EE$79,(IF($A$8=Nutrients!$B$77,Nutrients!$EE$77,Nutrients!$EE$78)))))*Q$8))/2000)*2.2046","v":608.03970300000003},{"$f":"((SUMPRODUCT(R$9:R$229,Nutrients!$EE$8:$EE$228)+(IF($A$7=Nutrients!$B$8,Nutrients!$EE$8,Nutrients!$EE$9)*R$7)+(((IF($A$8=Nutrients!$B$79,Nutrients!$EE$79,(IF($A$8=Nutrients!$B$77,Nutrients!$EE$77,Nutrients!$EE$78)))))*R$8))/2000)*2.2046","v":608.03970300000003},{"$f":"((SUMPRODUCT(S$9:S$229,Nutrients!$EE$8:$EE$228)+(IF($A$7=Nutrients!$B$8,Nutrients!$EE$8,Nutrients!$EE$9)*S$7)+(((IF($A$8=Nutrients!$B$79,Nutrients!$EE$79,(IF($A$8=Nutrients!$B$77,Nutrients!$EE$77,Nutrients!$EE$78)))))*S$8))/2000)*2.2046","v":608.03970300000003},{"$f":"((SUMPRODUCT(T$9:T$229,Nutrients!$EE$8:$EE$228)+(IF($A$7=Nutrients!$B$8,Nutrients!$EE$8,Nutrients!$EE$9)*T$7)+(((IF($A$8=Nutrients!$B$79,Nutrients!$EE$79,(IF($A$8=Nutrients!$B$77,Nutrients!$EE$77,Nutrients!$EE$78)))))*T$8))/2000)*2.2046","v":608.03970300000003},{"$f":"((SUMPRODUCT(U$9:U$229,Nutrients!$EE$8:$EE$228)+(IF($A$7=Nutrients!$B$8,Nutrients!$EE$8,Nutrients!$EE$9)*U$7)+(((IF($A$8=Nutrients!$B$79,Nutrients!$EE$79,(IF($A$8=Nutrients!$B$77,Nutrients!$EE$77,Nutrients!$EE$78)))))*U$8))/2000)*2.2046","v":608.03970300000003},null,{"$f":"((SUMPRODUCT(W$9:W$229,Nutrients!$EE$8:$EE$228)+(IF($A$7=Nutrients!$B$8,Nutrients!$EE$8,Nutrients!$EE$9)*W$7)+(((IF($A$8=Nutrients!$B$79,Nutrients!$EE$79,(IF($A$8=Nutrients!$B$77,Nutrients!$EE$77,Nutrients!$EE$78)))))*W$8))/2000)*2.2046","v":608.03970300000003},{"$f":"((SUMPRODUCT(X$9:X$229,Nutrients!$EE$8:$EE$228)+(IF($A$7=Nutrients!$B$8,Nutrients!$EE$8,Nutrients!$EE$9)*X$7)+(((IF($A$8=Nutrients!$B$79,Nutrients!$EE$79,(IF($A$8=Nutrients!$B$77,Nutrients!$EE$77,Nutrients!$EE$78)))))*X$8))/2000)*2.2046","v":608.03970300000003},{"$f":"((SUMPRODUCT(Y$9:Y$229,Nutrients!$EE$8:$EE$228)+(IF($A$7=Nutrients!$B$8,Nutrients!$EE$8,Nutrients!$EE$9)*Y$7)+(((IF($A$8=Nutrients!$B$79,Nutrients!$EE$79,(IF($A$8=Nutrients!$B$77,Nutrients!$EE$77,Nutrients!$EE$78)))))*Y$8))/2000)*2.2046","v":608.03970300000003},{"$f":"((SUMPRODUCT(Z$9:Z$229,Nutrients!$EE$8:$EE$228)+(IF($A$7=Nutrients!$B$8,Nutrients!$EE$8,Nutrients!$EE$9)*Z$7)+(((IF($A$8=Nutrients!$B$79,Nutrients!$EE$79,(IF($A$8=Nutrients!$B$77,Nutrients!$EE$77,Nutrients!$EE$78)))))*Z$8))/2000)*2.2046","v":608.03970300000003},{"$f":"((SUMPRODUCT(AA$9:AA$229,Nutrients!$EE$8:$EE$228)+(IF($A$7=Nutrients!$B$8,Nutrients!$EE$8,Nutrients!$EE$9)*AA$7)+(((IF($A$8=Nutrients!$B$79,Nutrients!$EE$79,(IF($A$8=Nutrients!$B$77,Nutrients!$EE$77,Nutrients!$EE$78)))))*AA$8))/2000)*2.2046","v":608.03970300000003},{"$f":"((SUMPRODUCT(AB$9:AB$229,Nutrients!$EE$8:$EE$228)+(IF($A$7=Nutrients!$B$8,Nutrients!$EE$8,Nutrients!$EE$9)*AB$7)+(((IF($A$8=Nutrients!$B$79,Nutrients!$EE$79,(IF($A$8=Nutrients!$B$77,Nutrients!$EE$77,Nutrients!$EE$78)))))*AB$8))/2000)*2.2046","v":608.03970300000003},null,{"$f":"((SUMPRODUCT(AD$9:AD$229,Nutrients!$EE$8:$EE$228)+(IF($A$7=Nutrients!$B$8,Nutrients!$EE$8,Nutrients!$EE$9)*AD$7)+(((IF($A$8=Nutrients!$B$79,Nutrients!$EE$79,(IF($A$8=Nutrients!$B$77,Nutrients!$EE$77,Nutrients!$EE$78)))))*AD$8))/2000)*2.2046","v":608.03970300000003},{"$f":"((SUMPRODUCT(AE$9:AE$229,Nutrients!$EE$8:$EE$228)+(IF($A$7=Nutrients!$B$8,Nutrients!$EE$8,Nutrients!$EE$9)*AE$7)+(((IF($A$8=Nutrients!$B$79,Nutrients!$EE$79,(IF($A$8=Nutrients!$B$77,Nutrients!$EE$77,Nutrients!$EE$78)))))*AE$8))/2000)*2.2046","v":608.03970300000003},{"$f":"((SUMPRODUCT(AF$9:AF$229,Nutrients!$EE$8:$EE$228)+(IF($A$7=Nutrients!$B$8,Nutrients!$EE$8,Nutrients!$EE$9)*AF$7)+(((IF($A$8=Nutrients!$B$79,Nutrients!$EE$79,(IF($A$8=Nutrients!$B$77,Nutrients!$EE$77,Nutrients!$EE$78)))))*AF$8))/2000)*2.2046","v":608.03970300000003},{"$f":"((SUMPRODUCT(AG$9:AG$229,Nutrients!$EE$8:$EE$228)+(IF($A$7=Nutrients!$B$8,Nutrients!$EE$8,Nutrients!$EE$9)*AG$7)+(((IF($A$8=Nutrients!$B$79,Nutrients!$EE$79,(IF($A$8=Nutrients!$B$77,Nutrients!$EE$77,Nutrients!$EE$78)))))*AG$8))/2000)*2.2046","v":608.03970300000003},{"$f":"((SUMPRODUCT(AH$9:AH$229,Nutrients!$EE$8:$EE$228)+(IF($A$7=Nutrients!$B$8,Nutrients!$EE$8,Nutrients!$EE$9)*AH$7)+(((IF($A$8=Nutrients!$B$79,Nutrients!$EE$79,(IF($A$8=Nutrients!$B$77,Nutrients!$EE$77,Nutrients!$EE$78)))))*AH$8))/2000)*2.2046","v":608.03970300000003},{"$f":"((SUMPRODUCT(AI$9:AI$229,Nutrients!$EE$8:$EE$228)+(IF($A$7=Nutrients!$B$8,Nutrients!$EE$8,Nutrients!$EE$9)*AI$7)+(((IF($A$8=Nutrients!$B$79,Nutrients!$EE$79,(IF($A$8=Nutrients!$B$77,Nutrients!$EE$77,Nutrients!$EE$78)))))*AI$8))/2000)*2.2046","v":608.03970300000003},null,{"$f":"((SUMPRODUCT(AK$9:AK$229,Nutrients!$EE$8:$EE$228)+(IF($A$7=Nutrients!$B$8,Nutrients!$EE$8,Nutrients!$EE$9)*AK$7)+(((IF($A$8=Nutrients!$B$79,Nutrients!$EE$79,(IF($A$8=Nutrients!$B$77,Nutrients!$EE$77,Nutrients!$EE$78)))))*AK$8))/2000)*2.2046","v":608.03970300000003},{"$f":"((SUMPRODUCT(AL$9:AL$229,Nutrients!$EE$8:$EE$228)+(IF($A$7=Nutrients!$B$8,Nutrients!$EE$8,Nutrients!$EE$9)*AL$7)+(((IF($A$8=Nutrients!$B$79,Nutrients!$EE$79,(IF($A$8=Nutrients!$B$77,Nutrients!$EE$77,Nutrients!$EE$78)))))*AL$8))/2000)*2.2046","v":608.03970300000003},{"$f":"((SUMPRODUCT(AM$9:AM$229,Nutrients!$EE$8:$EE$228)+(IF($A$7=Nutrients!$B$8,Nutrients!$EE$8,Nutrients!$EE$9)*AM$7)+(((IF($A$8=Nutrients!$B$79,Nutrients!$EE$79,(IF($A$8=Nutrients!$B$77,Nutrients!$EE$77,Nutrients!$EE$78)))))*AM$8))/2000)*2.2046","v":608.03970300000003},{"$f":"((SUMPRODUCT(AN$9:AN$229,Nutrients!$EE$8:$EE$228)+(IF($A$7=Nutrients!$B$8,Nutrients!$EE$8,Nutrients!$EE$9)*AN$7)+(((IF($A$8=Nutrients!$B$79,Nutrients!$EE$79,(IF($A$8=Nutrients!$B$77,Nutrients!$EE$77,Nutrients!$EE$78)))))*AN$8))/2000)*2.2046","v":608.03970300000003},{"$f":"((SUMPRODUCT(AO$9:AO$229,Nutrients!$EE$8:$EE$228)+(IF($A$7=Nutrients!$B$8,Nutrients!$EE$8,Nutrients!$EE$9)*AO$7)+(((IF($A$8=Nutrients!$B$79,Nutrients!$EE$79,(IF($A$8=Nutrients!$B$77,Nutrients!$EE$77,Nutrients!$EE$78)))))*AO$8))/2000)*2.2046","v":608.03970300000003},{"$f":"((SUMPRODUCT(AP$9:AP$229,Nutrients!$EE$8:$EE$228)+(IF($A$7=Nutrients!$B$8,Nutrients!$EE$8,Nutrients!$EE$9)*AP$7)+(((IF($A$8=Nutrients!$B$79,Nutrients!$EE$79,(IF($A$8=Nutrients!$B$77,Nutrients!$EE$77,Nutrients!$EE$78)))))*AP$8))/2000)*2.2046","v":608.03970300000003},null,{"$f":"((SUMPRODUCT(AR$9:AR$229,Nutrients!$EE$8:$EE$228)+(IF($A$7=Nutrients!$B$8,Nutrients!$EE$8,Nutrients!$EE$9)*AR$7)+(((IF($A$8=Nutrients!$B$79,Nutrients!$EE$79,(IF($A$8=Nutrients!$B$77,Nutrients!$EE$77,Nutrients!$EE$78)))))*AR$8))/2000)*2.2046","v":608.03970300000003},{"$f":"((SUMPRODUCT(AS$9:AS$229,Nutrients!$EE$8:$EE$228)+(IF($A$7=Nutrients!$B$8,Nutrients!$EE$8,Nutrients!$EE$9)*AS$7)+(((IF($A$8=Nutrients!$B$79,Nutrients!$EE$79,(IF($A$8=Nutrients!$B$77,Nutrients!$EE$77,Nutrients!$EE$78)))))*AS$8))/2000)*2.2046","v":608.03970300000003},{"$f":"((SUMPRODUCT(AT$9:AT$229,Nutrients!$EE$8:$EE$228)+(IF($A$7=Nutrients!$B$8,Nutrients!$EE$8,Nutrients!$EE$9)*AT$7)+(((IF($A$8=Nutrients!$B$79,Nutrients!$EE$79,(IF($A$8=Nutrients!$B$77,Nutrients!$EE$77,Nutrients!$EE$78)))))*AT$8))/2000)*2.2046","v":608.03970300000003},{"$f":"((SUMPRODUCT(AU$9:AU$229,Nutrients!$EE$8:$EE$228)+(IF($A$7=Nutrients!$B$8,Nutrients!$EE$8,Nutrients!$EE$9)*AU$7)+(((IF($A$8=Nutrients!$B$79,Nutrients!$EE$79,(IF($A$8=Nutrients!$B$77,Nutrients!$EE$77,Nutrients!$EE$78)))))*AU$8))/2000)*2.2046","v":608.03970300000003},{"$f":"((SUMPRODUCT(AV$9:AV$229,Nutrients!$EE$8:$EE$228)+(IF($A$7=Nutrients!$B$8,Nutrients!$EE$8,Nutrients!$EE$9)*AV$7)+(((IF($A$8=Nutrients!$B$79,Nutrients!$EE$79,(IF($A$8=Nutrients!$B$77,Nutrients!$EE$77,Nutrients!$EE$78)))))*AV$8))/2000)*2.2046","v":608.03970300000003},{"$f":"((SUMPRODUCT(AW$9:AW$229,Nutrients!$EE$8:$EE$228)+(IF($A$7=Nutrients!$B$8,Nutrients!$EE$8,Nutrients!$EE$9)*AW$7)+(((IF($A$8=Nutrients!$B$79,Nutrients!$EE$79,(IF($A$8=Nutrients!$B$77,Nutrients!$EE$77,Nutrients!$EE$78)))))*AW$8))/2000)*2.2046","v":608.03970300000003}]
["EFA, %",{"$f":"((SUMPRODUCT(B$9:B$229,Nutrients!$FK$8:$FK$228)+(IF($A$7=Nutrients!$B$8,Nutrients!$FK$8,Nutrients!$FK$9)*B$7)+(((IF($A$8=Nutrients!$B$79,Nutrients!$FK$79,(IF($A$8=Nutrients!$B$77,Nutrients!$FK$77,Nutrients!$FK$78)))))*B$8))/2000)","v":1.5203643016438457},{"$f":"((SUMPRODUCT(C$9:C$229,Nutrients!$FK$8:$FK$228)+(IF($A$7=Nutrients!$B$8,Nutrients!$FK$8,Nutrients!$FK$9)*C$7)+(((IF($A$8=Nutrients!$B$79,Nutrients!$FK$79,(IF($A$8=Nutrients!$B$77,Nutrients!$FK$77,Nutrients!$FK$78)))))*C$8))/2000)","v":1.5749887728173662},{"$f":"((SUMPRODUCT(D$9:D$229,Nutrients!$FK$8:$FK$228)+(IF($A$7=Nutrients!$B$8,Nutrients!$FK$8,Nutrients!$FK$9)*D$7)+(((IF($A$8=Nutrients!$B$79,Nutrients!$FK$79,(IF($A$8=Nutrients!$B$77,Nutrients!$FK$77,Nutrients!$FK$78)))))*D$8))/2000)","v":1.622538447302484},{"$f":"((SUMPRODUCT(E$9:E$229,Nutrients!$FK$8:$FK$228)+(IF($A$7=Nutrients!$B$8,Nutrients!$FK$8,Nutrients!$FK$9)*E$7)+(((IF($A$8=Nutrients!$B$79,Nutrients!$FK$79,(IF($A$8=Nutrients!$B$77,Nutrients!$FK$77,Nutrients!$FK$78)))))*E$8))/2000)","v":1.6623836434171375},{"$f":"((SUMPRODUCT(F$9:F$229,Nutrients!$FK$8:$FK$228)+(IF($A$7=Nutrients!$B$8,Nutrients!$FK$8,Nutrients!$FK$9)*F$7)+(((IF($A$8=Nutrients!$B$79,Nutrients!$FK$79,(IF($A$8=Nutrients!$B$77,Nutrients!$FK$77,Nutrients!$FK$78)))))*F$8))/2000)","v":1.689982464517773},{"$f":"((SUMPRODUCT(G$9:G$229,Nutrients!$FK$8:$FK$228)+(IF($A$7=Nutrients!$B$8,Nutrients!$FK$8,Nutrients!$FK$9)*G$7)+(((IF($A$8=Nutrients!$B$79,Nutrients!$FK$79,(IF($A$8=Nutrients!$B$77,Nutrients!$FK$77,Nutrients!$FK$78)))))*G$8))/2000)","v":1.7033272639768986},null,{"$f":"((SUMPRODUCT(I$9:I$229,Nutrients!$FK$8:$FK$228)+(IF($A$7=Nutrients!$B$8,Nutrients!$FK$8,Nutrients!$FK$9)*I$7)+(((IF($A$8=Nutrients!$B$79,Nutrients!$FK$79,(IF($A$8=Nutrients!$B$77,Nutrients!$FK$77,Nutrients!$FK$78)))))*I$8))/2000)","v":1.4791564114996694},{"$f":"((SUMPRODUCT(J$9:J$229,Nutrients!$FK$8:$FK$228)+(IF($A$7=Nutrients!$B$8,Nutrients!$FK$8,Nutrients!$FK$9)*J$7)+(((IF($A$8=Nutrients!$B$79,Nutrients!$FK$79,(IF($A$8=Nutrients!$B$77,Nutrients!$FK$77,Nutrients!$FK$78)))))*J$8))/2000)","v":1.534120750639838},{"$f":"((SUMPRODUCT(K$9:K$229,Nutrients!$FK$8:$FK$228)+(IF($A$7=Nutrients!$B$8,Nutrients!$FK$8,Nutrients!$FK$9)*K$7)+(((IF($A$8=Nutrients!$B$79,Nutrients!$FK$79,(IF($A$8=Nutrients!$B$77,Nutrients!$FK$77,Nutrients!$FK$78)))))*K$8))/2000)","v":1.5822173174089862},{"$f":"((SUMPRODUCT(L$9:L$229,Nutrients!$FK$8:$FK$228)+(IF($A$7=Nutrients!$B$8,Nutrients!$FK$8,Nutrients!$FK$9)*L$7)+(((IF($A$8=Nutrients!$B$79,Nutrients!$FK$79,(IF($A$8=Nutrients!$B$77,Nutrients!$FK$77,Nutrients!$FK$78)))))*L$8))/2000)","v":1.6213502170228395},{"$f":"((SUMPRODUCT(M$9:M$229,Nutrients!$FK$8:$FK$228)+(IF($A$7=Nutrients!$B$8,Nutrients!$FK$8,Nutrients!$FK$9)*M$7)+(((IF($A$8=Nutrients!$B$79,Nutrients!$FK$79,(IF($A$8=Nutrients!$B$77,Nutrients!$FK$77,Nutrients!$FK$78)))))*M$8))/2000)","v":1.6490897843312589},{"$f":"((SUMPRODUCT(N$9:N$229,Nutrients!$FK$8:$FK$228)+(IF($A$7=Nutrients!$B$8,Nutrients!$FK$8,Nutrients!$FK$9)*N$7)+(((IF($A$8=Nutrients!$B$79,Nutrients!$FK$79,(IF($A$8=Nutrients!$B$77,Nutrients!$FK$77,Nutrients!$FK$78)))))*N$8))/2000)","v":1.662330520938291},null,{"$f":"((SUMPRODUCT(P$9:P$229,Nutrients!$FK$8:$FK$228)+(IF($A$7=Nutrients!$B$8,Nutrients!$FK$8,Nutrients!$FK$9)*P$7)+(((IF($A$8=Nutrients!$B$79,Nutrients!$FK$79,(IF($A$8=Nutrients!$B$77,Nutrients!$FK$77,Nutrients!$FK$78)))))*P$8))/2000)","v":1.4384976726047054},{"$f":"((SUMPRODUCT(Q$9:Q$229,Nutrients!$FK$8:$FK$228)+(IF($A$7=Nutrients!$B$8,Nutrients!$FK$8,Nutrients!$FK$9)*Q$7)+(((IF($A$8=Nutrients!$B$79,Nutrients!$FK$79,(IF($A$8=Nutrients!$B$77,Nutrients!$FK$77,Nutrients!$FK$78)))))*Q$8))/2000)","v":1.4936113446442294},{"$f":"((SUMPRODUCT(R$9:R$229,Nutrients!$FK$8:$FK$228)+(IF($A$7=Nutrients!$B$8,Nutrients!$FK$8,Nutrients!$FK$9)*R$7)+(((IF($A$8=Nutrients!$B$79,Nutrients!$FK$79,(IF($A$8=Nutrients!$B$77,Nutrients!$FK$77,Nutrients!$FK$78)))))*R$8))/2000)","v":1.5419333136790543},{"$f":"((SUMPRODUCT(S$9:S$229,Nutrients!$FK$8:$FK$228)+(IF($A$7=Nutrients!$B$8,Nutrients!$FK$8,Nutrients!$FK$9)*S$7)+(((IF($A$8=Nutrients!$B$79,Nutrients!$FK$79,(IF($A$8=Nutrients!$B$77,Nutrients!$FK$77,Nutrients!$FK$78)))))*S$8))/2000)","v":1.5809775552829053},{"$f":"((SUMPRODUCT(T$9:T$229,Nutrients!$FK$8:$FK$228)+(IF($A$7=Nutrients!$B$8,Nutrients!$FK$8,Nutrients!$FK$9)*T$7)+(((IF($A$8=Nutrients!$B$79,Nutrients!$FK$79,(IF($A$8=Nutrients!$B$77,Nutrients!$FK$77,Nutrients!$FK$78)))))*T$8))/2000)","v":1.6085773804255177},{"$f":"((SUMPRODUCT(U$9:U$229,Nutrients!$FK$8:$FK$228)+(IF($A$7=Nutrients!$B$8,Nutrients!$FK$8,Nutrients!$FK$9)*U$7)+(((IF($A$8=Nutrients!$B$79,Nutrients!$FK$79,(IF($A$8=Nutrients!$B$77,Nutrients!$FK$77,Nutrients!$FK$78)))))*U$8))/2000)","v":1.6217614799728977},null,{"$f":"((SUMPRODUCT(W$9:W$229,Nutrients!$FK$8:$FK$228)+(IF($A$7=Nutrients!$B$8,Nutrients!$FK$8,Nutrients!$FK$9)*W$7)+(((IF($A$8=Nutrients!$B$79,Nutrients!$FK$79,(IF($A$8=Nutrients!$B$77,Nutrients!$FK$77,Nutrients!$FK$78)))))*W$8))/2000)","v":1.3979567514705442},{"$f":"((SUMPRODUCT(X$9:X$229,Nutrients!$FK$8:$FK$228)+(IF($A$7=Nutrients!$B$8,Nutrients!$FK$8,Nutrients!$FK$9)*X$7)+(((IF($A$8=Nutrients!$B$79,Nutrients!$FK$79,(IF($A$8=Nutrients!$B$77,Nutrients!$FK$77,Nutrients!$FK$78)))))*X$8))/2000)","v":1.4532433474949471},{"$f":"((SUMPRODUCT(Y$9:Y$229,Nutrients!$FK$8:$FK$228)+(IF($A$7=Nutrients!$B$8,Nutrients!$FK$8,Nutrients!$FK$9)*Y$7)+(((IF($A$8=Nutrients!$B$79,Nutrients!$FK$79,(IF($A$8=Nutrients!$B$77,Nutrients!$FK$77,Nutrients!$FK$78)))))*Y$8))/2000)","v":1.5015077252725728},{"$f":"((SUMPRODUCT(Z$9:Z$229,Nutrients!$FK$8:$FK$228)+(IF($A$7=Nutrients!$B$8,Nutrients!$FK$8,Nutrients!$FK$9)*Z$7)+(((IF($A$8=Nutrients!$B$79,Nutrients!$FK$79,(IF($A$8=Nutrients!$B$77,Nutrients!$FK$77,Nutrients!$FK$78)))))*Z$8))/2000)","v":1.5408245887607004},{"$f":"((SUMPRODUCT(AA$9:AA$229,Nutrients!$FK$8:$FK$228)+(IF($A$7=Nutrients!$B$8,Nutrients!$FK$8,Nutrients!$FK$9)*AA$7)+(((IF($A$8=Nutrients!$B$79,Nutrients!$FK$79,(IF($A$8=Nutrients!$B$77,Nutrients!$FK$77,Nutrients!$FK$78)))))*AA$8))/2000)","v":1.5680664532702053},{"$f":"((SUMPRODUCT(AB$9:AB$229,Nutrients!$FK$8:$FK$228)+(IF($A$7=Nutrients!$B$8,Nutrients!$FK$8,Nutrients!$FK$9)*AB$7)+(((IF($A$8=Nutrients!$B$79,Nutrients!$FK$79,(IF($A$8=Nutrients!$B$77,Nutrients!$FK$77,Nutrients!$FK$78)))))*AB$8))/2000)","v":1.5817730858212287},null,{"$f":"((SUMPRODUCT(AD$9:AD$229,Nutrients!$FK$8:$FK$228)+(IF($A$7=Nutrients!$B$8,Nutrients!$FK$8,Nutrients!$FK$9)*AD$7)+(((IF($A$8=Nutrients!$B$79,Nutrients!$FK$79,(IF($A$8=Nutrients!$B$77,Nutrients!$FK$77,Nutrients!$FK$78)))))*AD$8))/2000)","v":1.3576584023571421},{"$f":"((SUMPRODUCT(AE$9:AE$229,Nutrients!$FK$8:$FK$228)+(IF($A$7=Nutrients!$B$8,Nutrients!$FK$8,Nutrients!$FK$9)*AE$7)+(((IF($A$8=Nutrients!$B$79,Nutrients!$FK$79,(IF($A$8=Nutrients!$B$77,Nutrients!$FK$77,Nutrients!$FK$78)))))*AE$8))/2000)","v":1.4128812569507483},{"$f":"((SUMPRODUCT(AF$9:AF$229,Nutrients!$FK$8:$FK$228)+(IF($A$7=Nutrients!$B$8,Nutrients!$FK$8,Nutrients!$FK$9)*AF$7)+(((IF($A$8=Nutrients!$B$79,Nutrients!$FK$79,(IF($A$8=Nutrients!$B$77,Nutrients!$FK$77,Nutrients!$FK$78)))))*AF$8))/2000)","v":1.4616195303483082},{"$f":"((SUMPRODUCT(AG$9:AG$229,Nutrients!$FK$8:$FK$228)+(IF($A$7=Nutrients!$B$8,Nutrients!$FK$8,Nutrients!$FK$9)*AG$7)+(((IF($A$8=Nutrients!$B$79,Nutrients!$FK$79,(IF($A$8=Nutrients!$B$77,Nutrients!$FK$77,Nutrients!$FK$78)))))*AG$8))/2000)","v":1.5004593028645468},{"$f":"((SUMPRODUCT(AH$9:AH$229,Nutrients!$FK$8:$FK$228)+(IF($A$7=Nutrients!$B$8,Nutrients!$FK$8,Nutrients!$FK$9)*AH$7)+(((IF($A$8=Nutrients!$B$79,Nutrients!$FK$79,(IF($A$8=Nutrients!$B$77,Nutrients!$FK$77,Nutrients!$FK$78)))))*AH$8))/2000)","v":1.528940178806409},{"$f":"((SUMPRODUCT(AI$9:AI$229,Nutrients!$FK$8:$FK$228)+(IF($A$7=Nutrients!$B$8,Nutrients!$FK$8,Nutrients!$FK$9)*AI$7)+(((IF($A$8=Nutrients!$B$79,Nutrients!$FK$79,(IF($A$8=Nutrients!$B$77,Nutrients!$FK$77,Nutrients!$FK$78)))))*AI$8))/2000)","v":1.5435916735507806},null,{"$f":"((SUMPRODUCT(AK$9:AK$229,Nutrients!$FK$8:$FK$228)+(IF($A$7=Nutrients!$B$8,Nutrients!$FK$8,Nutrients!$FK$9)*AK$7)+(((IF($A$8=Nutrients!$B$79,Nutrients!$FK$79,(IF($A$8=Nutrients!$B$77,Nutrients!$FK$77,Nutrients!$FK$78)))))*AK$8))/2000)","v":1.3184235919467664},{"$f":"((SUMPRODUCT(AL$9:AL$229,Nutrients!$FK$8:$FK$228)+(IF($A$7=Nutrients!$B$8,Nutrients!$FK$8,Nutrients!$FK$9)*AL$7)+(((IF($A$8=Nutrients!$B$79,Nutrients!$FK$79,(IF($A$8=Nutrients!$B$77,Nutrients!$FK$77,Nutrients!$FK$78)))))*AL$8))/2000)","v":1.3725531798399504},{"$f":"((SUMPRODUCT(AM$9:AM$229,Nutrients!$FK$8:$FK$228)+(IF($A$7=Nutrients!$B$8,Nutrients!$FK$8,Nutrients!$FK$9)*AM$7)+(((IF($A$8=Nutrients!$B$79,Nutrients!$FK$79,(IF($A$8=Nutrients!$B$77,Nutrients!$FK$77,Nutrients!$FK$78)))))*AM$8))/2000)","v":1.4210408417300584},{"$f":"((SUMPRODUCT(AN$9:AN$229,Nutrients!$FK$8:$FK$228)+(IF($A$7=Nutrients!$B$8,Nutrients!$FK$8,Nutrients!$FK$9)*AN$7)+(((IF($A$8=Nutrients!$B$79,Nutrients!$FK$79,(IF($A$8=Nutrients!$B$77,Nutrients!$FK$77,Nutrients!$FK$78)))))*AN$8))/2000)","v":1.4606575179964951},{"$f":"((SUMPRODUCT(AO$9:AO$229,Nutrients!$FK$8:$FK$228)+(IF($A$7=Nutrients!$B$8,Nutrients!$FK$8,Nutrients!$FK$9)*AO$7)+(((IF($A$8=Nutrients!$B$79,Nutrients!$FK$79,(IF($A$8=Nutrients!$B$77,Nutrients!$FK$77,Nutrients!$FK$78)))))*AO$8))/2000)","v":1.4908577272593544},{"$f":"((SUMPRODUCT(AP$9:AP$229,Nutrients!$FK$8:$FK$228)+(IF($A$7=Nutrients!$B$8,Nutrients!$FK$8,Nutrients!$FK$9)*AP$7)+(((IF($A$8=Nutrients!$B$79,Nutrients!$FK$79,(IF($A$8=Nutrients!$B$77,Nutrients!$FK$77,Nutrients!$FK$78)))))*AP$8))/2000)","v":1.5055739722367234},null,{"$f":"((SUMPRODUCT(AR$9:AR$229,Nutrients!$FK$8:$FK$228)+(IF($A$7=Nutrients!$B$8,Nutrients!$FK$8,Nutrients!$FK$9)*AR$7)+(((IF($A$8=Nutrients!$B$79,Nutrients!$FK$79,(IF($A$8=Nutrients!$B$77,Nutrients!$FK$77,Nutrients!$FK$78)))))*AR$8))/2000)","v":1.2777143483320366},{"$f":"((SUMPRODUCT(AS$9:AS$229,Nutrients!$FK$8:$FK$228)+(IF($A$7=Nutrients!$B$8,Nutrients!$FK$8,Nutrients!$FK$9)*AS$7)+(((IF($A$8=Nutrients!$B$79,Nutrients!$FK$79,(IF($A$8=Nutrients!$B$77,Nutrients!$FK$77,Nutrients!$FK$78)))))*AS$8))/2000)","v":1.3322838510241022},{"$f":"((SUMPRODUCT(AT$9:AT$229,Nutrients!$FK$8:$FK$228)+(IF($A$7=Nutrients!$B$8,Nutrients!$FK$8,Nutrients!$FK$9)*AT$7)+(((IF($A$8=Nutrients!$B$79,Nutrients!$FK$79,(IF($A$8=Nutrients!$B$77,Nutrients!$FK$77,Nutrients!$FK$78)))))*AT$8))/2000)","v":1.3800997420972081},{"$f":"((SUMPRODUCT(AU$9:AU$229,Nutrients!$FK$8:$FK$228)+(IF($A$7=Nutrients!$B$8,Nutrients!$FK$8,Nutrients!$FK$9)*AU$7)+(((IF($A$8=Nutrients!$B$79,Nutrients!$FK$79,(IF($A$8=Nutrients!$B$77,Nutrients!$FK$77,Nutrients!$FK$78)))))*AU$8))/2000)","v":1.4225073367917505},{"$f":"((SUMPRODUCT(AV$9:AV$229,Nutrients!$FK$8:$FK$228)+(IF($A$7=Nutrients!$B$8,Nutrients!$FK$8,Nutrients!$FK$9)*AV$7)+(((IF($A$8=Nutrients!$B$79,Nutrients!$FK$79,(IF($A$8=Nutrients!$B$77,Nutrients!$FK$77,Nutrients!$FK$78)))))*AV$8))/2000)","v":1.4527563398408716},{"$f":"((SUMPRODUCT(AW$9:AW$229,Nutrients!$FK$8:$FK$228)+(IF($A$7=Nutrients!$B$8,Nutrients!$FK$8,Nutrients!$FK$9)*AW$7)+(((IF($A$8=Nutrients!$B$79,Nutrients!$FK$79,(IF($A$8=Nutrients!$B$77,Nutrients!$FK$77,Nutrients!$FK$78)))))*AW$8))/2000)","v":1.4675390047094463}]
["NDF, %",{"$f":"(SUMPRODUCT(B$9:B$229,Nutrients!$U$8:$U$228)+(IF($A$7=Nutrients!$B$8,Nutrients!$U$8,Nutrients!$U$9)*B$7)+(((IF($A$8=Nutrients!$B$79,Nutrients!$U$79,(IF($A$8=Nutrients!$B$77,Nutrients!$U$77,Nutrients!$U$78)))))*B$8))/2000","v":8.5675537105360302},{"$f":"(SUMPRODUCT(C$9:C$229,Nutrients!$U$8:$U$228)+(IF($A$7=Nutrients!$B$8,Nutrients!$U$8,Nutrients!$U$9)*C$7)+(((IF($A$8=Nutrients!$B$79,Nutrients!$U$79,(IF($A$8=Nutrients!$B$77,Nutrients!$U$77,Nutrients!$U$78)))))*C$8))/2000","v":8.6397459364158564},{"$f":"(SUMPRODUCT(D$9:D$229,Nutrients!$U$8:$U$228)+(IF($A$7=Nutrients!$B$8,Nutrients!$U$8,Nutrients!$U$9)*D$7)+(((IF($A$8=Nutrients!$B$79,Nutrients!$U$79,(IF($A$8=Nutrients!$B$77,Nutrients!$U$77,Nutrients!$U$78)))))*D$8))/2000","v":8.7042340935531328},{"$f":"(SUMPRODUCT(E$9:E$229,Nutrients!$U$8:$U$228)+(IF($A$7=Nutrients!$B$8,Nutrients!$U$8,Nutrients!$U$9)*E$7)+(((IF($A$8=Nutrients!$B$79,Nutrients!$U$79,(IF($A$8=Nutrients!$B$77,Nutrients!$U$77,Nutrients!$U$78)))))*E$8))/2000","v":8.7574905031042753},{"$f":"(SUMPRODUCT(F$9:F$229,Nutrients!$U$8:$U$228)+(IF($A$7=Nutrients!$B$8,Nutrients!$U$8,Nutrients!$U$9)*F$7)+(((IF($A$8=Nutrients!$B$79,Nutrients!$U$79,(IF($A$8=Nutrients!$B$77,Nutrients!$U$77,Nutrients!$U$78)))))*F$8))/2000","v":8.7980354970428483},{"$f":"(SUMPRODUCT(G$9:G$229,Nutrients!$U$8:$U$228)+(IF($A$7=Nutrients!$B$8,Nutrients!$U$8,Nutrients!$U$9)*G$7)+(((IF($A$8=Nutrients!$B$79,Nutrients!$U$79,(IF($A$8=Nutrients!$B$77,Nutrients!$U$77,Nutrients!$U$78)))))*G$8))/2000","v":8.8153381410832843},null,{"$f":"(SUMPRODUCT(I$9:I$229,Nutrients!$U$8:$U$228)+(IF($A$7=Nutrients!$B$8,Nutrients!$U$8,Nutrients!$U$9)*I$7)+(((IF($A$8=Nutrients!$B$79,Nutrients!$U$79,(IF($A$8=Nutrients!$B$77,Nutrients!$U$77,Nutrients!$U$78)))))*I$8))/2000","v":9.7249109022549316},{"$f":"(SUMPRODUCT(J$9:J$229,Nutrients!$U$8:$U$228)+(IF($A$7=Nutrients!$B$8,Nutrients!$U$8,Nutrients!$U$9)*J$7)+(((IF($A$8=Nutrients!$B$79,Nutrients!$U$79,(IF($A$8=Nutrients!$B$77,Nutrients!$U$77,Nutrients!$U$78)))))*J$8))/2000","v":9.7964931050631989},{"$f":"(SUMPRODUCT(K$9:K$229,Nutrients!$U$8:$U$228)+(IF($A$7=Nutrients!$B$8,Nutrients!$U$8,Nutrients!$U$9)*K$7)+(((IF($A$8=Nutrients!$B$79,Nutrients!$U$79,(IF($A$8=Nutrients!$B$77,Nutrients!$U$77,Nutrients!$U$78)))))*K$8))/2000","v":9.8620823208871773},{"$f":"(SUMPRODUCT(L$9:L$229,Nutrients!$U$8:$U$228)+(IF($A$7=Nutrients!$B$8,Nutrients!$U$8,Nutrients!$U$9)*L$7)+(((IF($A$8=Nutrients!$B$79,Nutrients!$U$79,(IF($A$8=Nutrients!$B$77,Nutrients!$U$77,Nutrients!$U$78)))))*L$8))/2000","v":9.9169687619060998},{"$f":"(SUMPRODUCT(M$9:M$229,Nutrients!$U$8:$U$228)+(IF($A$7=Nutrients!$B$8,Nutrients!$U$8,Nutrients!$U$9)*M$7)+(((IF($A$8=Nutrients!$B$79,Nutrients!$U$79,(IF($A$8=Nutrients!$B$77,Nutrients!$U$77,Nutrients!$U$78)))))*M$8))/2000","v":9.9563425413950952},{"$f":"(SUMPRODUCT(N$9:N$229,Nutrients!$U$8:$U$228)+(IF($A$7=Nutrients!$B$8,Nutrients!$U$8,Nutrients!$U$9)*N$7)+(((IF($A$8=Nutrients!$B$79,Nutrients!$U$79,(IF($A$8=Nutrients!$B$77,Nutrients!$U$77,Nutrients!$U$78)))))*N$8))/2000","v":9.9744474998347776},null,{"$f":"(SUMPRODUCT(P$9:P$229,Nutrients!$U$8:$U$228)+(IF($A$7=Nutrients!$B$8,Nutrients!$U$8,Nutrients!$U$9)*P$7)+(((IF($A$8=Nutrients!$B$79,Nutrients!$U$79,(IF($A$8=Nutrients!$B$77,Nutrients!$U$77,Nutrients!$U$78)))))*P$8))/2000","v":10.88217629885041},{"$f":"(SUMPRODUCT(Q$9:Q$229,Nutrients!$U$8:$U$228)+(IF($A$7=Nutrients!$B$8,Nutrients!$U$8,Nutrients!$U$9)*Q$7)+(((IF($A$8=Nutrients!$B$79,Nutrients!$U$79,(IF($A$8=Nutrients!$B$77,Nutrients!$U$77,Nutrients!$U$78)))))*Q$8))/2000","v":10.953584439917918},{"$f":"(SUMPRODUCT(R$9:R$229,Nutrients!$U$8:$U$228)+(IF($A$7=Nutrients!$B$8,Nutrients!$U$8,Nutrients!$U$9)*R$7)+(((IF($A$8=Nutrients!$B$79,Nutrients!$U$79,(IF($A$8=Nutrients!$B$77,Nutrients!$U$77,Nutrients!$U$78)))))*R$8))/2000","v":11.018910927897572},{"$f":"(SUMPRODUCT(S$9:S$229,Nutrients!$U$8:$U$228)+(IF($A$7=Nutrients!$B$8,Nutrients!$U$8,Nutrients!$U$9)*S$7)+(((IF($A$8=Nutrients!$B$79,Nutrients!$U$79,(IF($A$8=Nutrients!$B$77,Nutrients!$U$77,Nutrients!$U$78)))))*S$8))/2000","v":11.073900708285247},{"$f":"(SUMPRODUCT(T$9:T$229,Nutrients!$U$8:$U$228)+(IF($A$7=Nutrients!$B$8,Nutrients!$U$8,Nutrients!$U$9)*T$7)+(((IF($A$8=Nutrients!$B$79,Nutrients!$U$79,(IF($A$8=Nutrients!$B$77,Nutrients!$U$77,Nutrients!$U$78)))))*T$8))/2000","v":11.113016811836189},{"$f":"(SUMPRODUCT(U$9:U$229,Nutrients!$U$8:$U$228)+(IF($A$7=Nutrients!$B$8,Nutrients!$U$8,Nutrients!$U$9)*U$7)+(((IF($A$8=Nutrients!$B$79,Nutrients!$U$79,(IF($A$8=Nutrients!$B$77,Nutrients!$U$77,Nutrients!$U$78)))))*U$8))/2000","v":11.130854187337256},null,{"$f":"(SUMPRODUCT(W$9:W$229,Nutrients!$U$8:$U$228)+(IF($A$7=Nutrients!$B$8,Nutrients!$U$8,Nutrients!$U$9)*W$7)+(((IF($A$8=Nutrients!$B$79,Nutrients!$U$79,(IF($A$8=Nutrients!$B$77,Nutrients!$U$77,Nutrients!$U$78)))))*W$8))/2000","v":12.039304367605698},{"$f":"(SUMPRODUCT(X$9:X$229,Nutrients!$U$8:$U$228)+(IF($A$7=Nutrients!$B$8,Nutrients!$U$8,Nutrients!$U$9)*X$7)+(((IF($A$8=Nutrients!$B$79,Nutrients!$U$79,(IF($A$8=Nutrients!$B$77,Nutrients!$U$77,Nutrients!$U$78)))))*X$8))/2000","v":12.110510949271651},{"$f":"(SUMPRODUCT(Y$9:Y$229,Nutrients!$U$8:$U$228)+(IF($A$7=Nutrients!$B$8,Nutrients!$U$8,Nutrients!$U$9)*Y$7)+(((IF($A$8=Nutrients!$B$79,Nutrients!$U$79,(IF($A$8=Nutrients!$B$77,Nutrients!$U$77,Nutrients!$U$78)))))*Y$8))/2000","v":12.176132952118794},{"$f":"(SUMPRODUCT(Z$9:Z$229,Nutrients!$U$8:$U$228)+(IF($A$7=Nutrients!$B$8,Nutrients!$U$8,Nutrients!$U$9)*Z$7)+(((IF($A$8=Nutrients!$B$79,Nutrients!$U$79,(IF($A$8=Nutrients!$B$77,Nutrients!$U$77,Nutrients!$U$78)))))*Z$8))/2000","v":12.231314527025717},{"$f":"(SUMPRODUCT(AA$9:AA$229,Nutrients!$U$8:$U$228)+(IF($A$7=Nutrients!$B$8,Nutrients!$U$8,Nutrients!$U$9)*AA$7)+(((IF($A$8=Nutrients!$B$79,Nutrients!$U$79,(IF($A$8=Nutrients!$B$77,Nutrients!$U$77,Nutrients!$U$78)))))*AA$8))/2000","v":12.26936766276811},{"$f":"(SUMPRODUCT(AB$9:AB$229,Nutrients!$U$8:$U$228)+(IF($A$7=Nutrients!$B$8,Nutrients!$U$8,Nutrients!$U$9)*AB$7)+(((IF($A$8=Nutrients!$B$79,Nutrients!$U$79,(IF($A$8=Nutrients!$B$77,Nutrients!$U$77,Nutrients!$U$78)))))*AB$8))/2000","v":12.283561684919222},null,{"$f":"(SUMPRODUCT(AD$9:AD$229,Nutrients!$U$8:$U$228)+(IF($A$7=Nutrients!$B$8,Nutrients!$U$8,Nutrients!$U$9)*AD$7)+(((IF($A$8=Nutrients!$B$79,Nutrients!$U$79,(IF($A$8=Nutrients!$B$77,Nutrients!$U$77,Nutrients!$U$78)))))*AD$8))/2000","v":13.196263888910565},{"$f":"(SUMPRODUCT(AE$9:AE$229,Nutrients!$U$8:$U$228)+(IF($A$7=Nutrients!$B$8,Nutrients!$U$8,Nutrients!$U$9)*AE$7)+(((IF($A$8=Nutrients!$B$79,Nutrients!$U$79,(IF($A$8=Nutrients!$B$77,Nutrients!$U$77,Nutrients!$U$78)))))*AE$8))/2000","v":13.26754476729513},{"$f":"(SUMPRODUCT(AF$9:AF$229,Nutrients!$U$8:$U$228)+(IF($A$7=Nutrients!$B$8,Nutrients!$U$8,Nutrients!$U$9)*AF$7)+(((IF($A$8=Nutrients!$B$79,Nutrients!$U$79,(IF($A$8=Nutrients!$B$77,Nutrients!$U$77,Nutrients!$U$78)))))*AF$8))/2000","v":13.333784731577465},{"$f":"(SUMPRODUCT(AG$9:AG$229,Nutrients!$U$8:$U$228)+(IF($A$7=Nutrients!$B$8,Nutrients!$U$8,Nutrients!$U$9)*AG$7)+(((IF($A$8=Nutrients!$B$79,Nutrients!$U$79,(IF($A$8=Nutrients!$B$77,Nutrients!$U$77,Nutrients!$U$78)))))*AG$8))/2000","v":13.387381425794249},{"$f":"(SUMPRODUCT(AH$9:AH$229,Nutrients!$U$8:$U$228)+(IF($A$7=Nutrients!$B$8,Nutrients!$U$8,Nutrients!$U$9)*AH$7)+(((IF($A$8=Nutrients!$B$79,Nutrients!$U$79,(IF($A$8=Nutrients!$B$77,Nutrients!$U$77,Nutrients!$U$78)))))*AH$8))/2000","v":13.41504497080839},{"$f":"(SUMPRODUCT(AI$9:AI$229,Nutrients!$U$8:$U$228)+(IF($A$7=Nutrients!$B$8,Nutrients!$U$8,Nutrients!$U$9)*AI$7)+(((IF($A$8=Nutrients!$B$79,Nutrients!$U$79,(IF($A$8=Nutrients!$B$77,Nutrients!$U$77,Nutrients!$U$78)))))*AI$8))/2000","v":13.425578663713271},null,{"$f":"(SUMPRODUCT(AK$9:AK$229,Nutrients!$U$8:$U$228)+(IF($A$7=Nutrients!$B$8,Nutrients!$U$8,Nutrients!$U$9)*AK$7)+(((IF($A$8=Nutrients!$B$79,Nutrients!$U$79,(IF($A$8=Nutrients!$B$77,Nutrients!$U$77,Nutrients!$U$78)))))*AK$8))/2000","v":14.352040851084766},{"$f":"(SUMPRODUCT(AL$9:AL$229,Nutrients!$U$8:$U$228)+(IF($A$7=Nutrients!$B$8,Nutrients!$U$8,Nutrients!$U$9)*AL$7)+(((IF($A$8=Nutrients!$B$79,Nutrients!$U$79,(IF($A$8=Nutrients!$B$77,Nutrients!$U$77,Nutrients!$U$78)))))*AL$8))/2000","v":14.424596036107788},{"$f":"(SUMPRODUCT(AM$9:AM$229,Nutrients!$U$8:$U$228)+(IF($A$7=Nutrients!$B$8,Nutrients!$U$8,Nutrients!$U$9)*AM$7)+(((IF($A$8=Nutrients!$B$79,Nutrients!$U$79,(IF($A$8=Nutrients!$B$77,Nutrients!$U$77,Nutrients!$U$78)))))*AM$8))/2000","v":14.490157468268242},{"$f":"(SUMPRODUCT(AN$9:AN$229,Nutrients!$U$8:$U$228)+(IF($A$7=Nutrients!$B$8,Nutrients!$U$8,Nutrients!$U$9)*AN$7)+(((IF($A$8=Nutrients!$B$79,Nutrients!$U$79,(IF($A$8=Nutrients!$B$77,Nutrients!$U$77,Nutrients!$U$78)))))*AN$8))/2000","v":14.534267496185688},{"$f":"(SUMPRODUCT(AO$9:AO$229,Nutrients!$U$8:$U$228)+(IF($A$7=Nutrients!$B$8,Nutrients!$U$8,Nutrients!$U$9)*AO$7)+(((IF($A$8=Nutrients!$B$79,Nutrients!$U$79,(IF($A$8=Nutrients!$B$77,Nutrients!$U$77,Nutrients!$U$78)))))*AO$8))/2000","v":14.558028287748904},{"$f":"(SUMPRODUCT(AP$9:AP$229,Nutrients!$U$8:$U$228)+(IF($A$7=Nutrients!$B$8,Nutrients!$U$8,Nutrients!$U$9)*AP$7)+(((IF($A$8=Nutrients!$B$79,Nutrients!$U$79,(IF($A$8=Nutrients!$B$77,Nutrients!$U$77,Nutrients!$U$78)))))*AP$8))/2000","v":14.568482918437331},null,{"$f":"(SUMPRODUCT(AR$9:AR$229,Nutrients!$U$8:$U$228)+(IF($A$7=Nutrients!$B$8,Nutrients!$U$8,Nutrients!$U$9)*AR$7)+(((IF($A$8=Nutrients!$B$79,Nutrients!$U$79,(IF($A$8=Nutrients!$B$77,Nutrients!$U$77,Nutrients!$U$78)))))*AR$8))/2000","v":15.509595274826999},{"$f":"(SUMPRODUCT(AS$9:AS$229,Nutrients!$U$8:$U$228)+(IF($A$7=Nutrients!$B$8,Nutrients!$U$8,Nutrients!$U$9)*AS$7)+(((IF($A$8=Nutrients!$B$79,Nutrients!$U$79,(IF($A$8=Nutrients!$B$77,Nutrients!$U$77,Nutrients!$U$78)))))*AS$8))/2000","v":15.581637688794629},{"$f":"(SUMPRODUCT(AT$9:AT$229,Nutrients!$U$8:$U$228)+(IF($A$7=Nutrients!$B$8,Nutrients!$U$8,Nutrients!$U$9)*AT$7)+(((IF($A$8=Nutrients!$B$79,Nutrients!$U$79,(IF($A$8=Nutrients!$B$77,Nutrients!$U$77,Nutrients!$U$78)))))*AT$8))/2000","v":15.644130597950809},{"$f":"(SUMPRODUCT(AU$9:AU$229,Nutrients!$U$8:$U$228)+(IF($A$7=Nutrients!$B$8,Nutrients!$U$8,Nutrients!$U$9)*AU$7)+(((IF($A$8=Nutrients!$B$79,Nutrients!$U$79,(IF($A$8=Nutrients!$B$77,Nutrients!$U$77,Nutrients!$U$78)))))*AU$8))/2000","v":15.677286778377889},{"$f":"(SUMPRODUCT(AV$9:AV$229,Nutrients!$U$8:$U$228)+(IF($A$7=Nutrients!$B$8,Nutrients!$U$8,Nutrients!$U$9)*AV$7)+(((IF($A$8=Nutrients!$B$79,Nutrients!$U$79,(IF($A$8=Nutrients!$B$77,Nutrients!$U$77,Nutrients!$U$78)))))*AV$8))/2000","v":15.700817905343778},{"$f":"(SUMPRODUCT(AW$9:AW$229,Nutrients!$U$8:$U$228)+(IF($A$7=Nutrients!$B$8,Nutrients!$U$8,Nutrients!$U$9)*AW$7)+(((IF($A$8=Nutrients!$B$79,Nutrients!$U$79,(IF($A$8=Nutrients!$B$77,Nutrients!$U$77,Nutrients!$U$78)))))*AW$8))/2000","v":15.711202158584708}]
["SID Lys:CP ratio",{"$f":"B236/B253*100","v":5.7412242387563301},5.6765331580798346,5.5885690783484616,5.5041200481878318,5.4256048182416317,5.3576040399978782,null,{"$f":"I236/I253*100","v":5.6471457868571635},5.5728246933621666,5.474875776532846,5.3803224710237618,5.2947626084481865,5.2231735801738992,null,{"$f":"P236/P253*100","v":5.556034676030265},5.4726881521495914,5.3657943409874909,5.2623357830610029,5.1695203329617048,5.0943457290254806,null,{"$f":"W236/W253*100","v":5.4678366882763232},5.3761127614010435,5.2609073804604982,5.1501649454558676,5.049175891539095,4.9720661824323091,null,{"$f":"AD236/AD253*100","v":5.3824186832875913},5.2828703981910428,5.1617479451528947,5.0405728958868146,4.9363911033247669,4.8576567139291047,null,{"$f":"AK236/AK253*100","v":5.2997888182538793},5.192804683494793,5.063368681752336,4.9372472478562859,4.8292059273023451,4.7484158328576536,null,{"$f":"AR236/AR253*100","v":5.2198207519130149},5.1061894912005954,4.9694301927618243,4.8389022426092705,4.72612919130923,4.6435482632660383]
["Trace minerals (added levels)"]
["  Zinc added, ppm",{"$f":"(SUMPRODUCT(B$9:B$229,Nutrients!$EK$8:$EK$228)+(IF($A$7=Nutrients!$B$8,Nutrients!$EK$8,Nutrients!$EK$9)*B$7)+(((IF($A$8=Nutrients!$B$79,Nutrients!$EK$79,(IF($A$8=Nutrients!$B$77,Nutrients!$EK$77,Nutrients!$EK$78)))))*B$8))/2000*1000000","v":110.11950000000002},{"$f":"(SUMPRODUCT(C$9:C$229,Nutrients!$EK$8:$EK$228)+(IF($A$7=Nutrients!$B$8,Nutrients!$EK$8,Nutrients!$EK$9)*C$7)+(((IF($A$8=Nutrients!$B$79,Nutrients!$EK$79,(IF($A$8=Nutrients!$B$77,Nutrients!$EK$77,Nutrients!$EK$78)))))*C$8))/2000*1000000","v":110.11950000000002},{"$f":"(SUMPRODUCT(D$9:D$229,Nutrients!$EK$8:$EK$228)+(IF($A$7=Nutrients!$B$8,Nutrients!$EK$8,Nutrients!$EK$9)*D$7)+(((IF($A$8=Nutrients!$B$79,Nutrients!$EK$79,(IF($A$8=Nutrients!$B$77,Nutrients!$EK$77,Nutrients!$EK$78)))))*D$8))/2000*1000000","v":91.766249999999999},{"$f":"(SUMPRODUCT(E$9:E$229,Nutrients!$EK$8:$EK$228)+(IF($A$7=Nutrients!$B$8,Nutrients!$EK$8,Nutrients!$EK$9)*E$7)+(((IF($A$8=Nutrients!$B$79,Nutrients!$EK$79,(IF($A$8=Nutrients!$B$77,Nutrients!$EK$77,Nutrients!$EK$78)))))*E$8))/2000*1000000","v":73.413000000000011},{"$f":"(SUMPRODUCT(F$9:F$229,Nutrients!$EK$8:$EK$228)+(IF($A$7=Nutrients!$B$8,Nutrients!$EK$8,Nutrients!$EK$9)*F$7)+(((IF($A$8=Nutrients!$B$79,Nutrients!$EK$79,(IF($A$8=Nutrients!$B$77,Nutrients!$EK$77,Nutrients!$EK$78)))))*F$8))/2000*1000000","v":55.059750000000008},{"$f":"(SUMPRODUCT(G$9:G$229,Nutrients!$EK$8:$EK$228)+(IF($A$7=Nutrients!$B$8,Nutrients!$EK$8,Nutrients!$EK$9)*G$7)+(((IF($A$8=Nutrients!$B$79,Nutrients!$EK$79,(IF($A$8=Nutrients!$B$77,Nutrients!$EK$77,Nutrients!$EK$78)))))*G$8))/2000*1000000","v":55.059750000000008},null,{"$f":"(SUMPRODUCT(I$9:I$229,Nutrients!$EK$8:$EK$228)+(IF($A$7=Nutrients!$B$8,Nutrients!$EK$8,Nutrients!$EK$9)*I$7)+(((IF($A$8=Nutrients!$B$79,Nutrients!$EK$79,(IF($A$8=Nutrients!$B$77,Nutrients!$EK$77,Nutrients!$EK$78)))))*I$8))/2000*1000000","v":110.11950000000002},{"$f":"(SUMPRODUCT(J$9:J$229,Nutrients!$EK$8:$EK$228)+(IF($A$7=Nutrients!$B$8,Nutrients!$EK$8,Nutrients!$EK$9)*J$7)+(((IF($A$8=Nutrients!$B$79,Nutrients!$EK$79,(IF($A$8=Nutrients!$B$77,Nutrients!$EK$77,Nutrients!$EK$78)))))*J$8))/2000*1000000","v":110.11950000000002},{"$f":"(SUMPRODUCT(K$9:K$229,Nutrients!$EK$8:$EK$228)+(IF($A$7=Nutrients!$B$8,Nutrients!$EK$8,Nutrients!$EK$9)*K$7)+(((IF($A$8=Nutrients!$B$79,Nutrients!$EK$79,(IF($A$8=Nutrients!$B$77,Nutrients!$EK$77,Nutrients!$EK$78)))))*K$8))/2000*1000000","v":91.766249999999999},{"$f":"(SUMPRODUCT(L$9:L$229,Nutrients!$EK$8:$EK$228)+(IF($A$7=Nutrients!$B$8,Nutrients!$EK$8,Nutrients!$EK$9)*L$7)+(((IF($A$8=Nutrients!$B$79,Nutrients!$EK$79,(IF($A$8=Nutrients!$B$77,Nutrients!$EK$77,Nutrients!$EK$78)))))*L$8))/2000*1000000","v":73.413000000000011},{"$f":"(SUMPRODUCT(M$9:M$229,Nutrients!$EK$8:$EK$228)+(IF($A$7=Nutrients!$B$8,Nutrients!$EK$8,Nutrients!$EK$9)*M$7)+(((IF($A$8=Nutrients!$B$79,Nutrients!$EK$79,(IF($A$8=Nutrients!$B$77,Nutrients!$EK$77,Nutrients!$EK$78)))))*M$8))/2000*1000000","v":55.059750000000008},{"$f":"(SUMPRODUCT(N$9:N$229,Nutrients!$EK$8:$EK$228)+(IF($A$7=Nutrients!$B$8,Nutrients!$EK$8,Nutrients!$EK$9)*N$7)+(((IF($A$8=Nutrients!$B$79,Nutrients!$EK$79,(IF($A$8=Nutrients!$B$77,Nutrients!$EK$77,Nutrients!$EK$78)))))*N$8))/2000*1000000","v":55.059750000000008},null,{"$f":"(SUMPRODUCT(P$9:P$229,Nutrients!$EK$8:$EK$228)+(IF($A$7=Nutrients!$B$8,Nutrients!$EK$8,Nutrients!$EK$9)*P$7)+(((IF($A$8=Nutrients!$B$79,Nutrients!$EK$79,(IF($A$8=Nutrients!$B$77,Nutrients!$EK$77,Nutrients!$EK$78)))))*P$8))/2000*1000000","v":110.11950000000002},{"$f":"(SUMPRODUCT(Q$9:Q$229,Nutrients!$EK$8:$EK$228)+(IF($A$7=Nutrients!$B$8,Nutrients!$EK$8,Nutrients!$EK$9)*Q$7)+(((IF($A$8=Nutrients!$B$79,Nutrients!$EK$79,(IF($A$8=Nutrients!$B$77,Nutrients!$EK$77,Nutrients!$EK$78)))))*Q$8))/2000*1000000","v":110.11950000000002},{"$f":"(SUMPRODUCT(R$9:R$229,Nutrients!$EK$8:$EK$228)+(IF($A$7=Nutrients!$B$8,Nutrients!$EK$8,Nutrients!$EK$9)*R$7)+(((IF($A$8=Nutrients!$B$79,Nutrients!$EK$79,(IF($A$8=Nutrients!$B$77,Nutrients!$EK$77,Nutrients!$EK$78)))))*R$8))/2000*1000000","v":91.766249999999999},{"$f":"(SUMPRODUCT(S$9:S$229,Nutrients!$EK$8:$EK$228)+(IF($A$7=Nutrients!$B$8,Nutrients!$EK$8,Nutrients!$EK$9)*S$7)+(((IF($A$8=Nutrients!$B$79,Nutrients!$EK$79,(IF($A$8=Nutrients!$B$77,Nutrients!$EK$77,Nutrients!$EK$78)))))*S$8))/2000*1000000","v":73.413000000000011},{"$f":"(SUMPRODUCT(T$9:T$229,Nutrients!$EK$8:$EK$228)+(IF($A$7=Nutrients!$B$8,Nutrients!$EK$8,Nutrients!$EK$9)*T$7)+(((IF($A$8=Nutrients!$B$79,Nutrients!$EK$79,(IF($A$8=Nutrients!$B$77,Nutrients!$EK$77,Nutrients!$EK$78)))))*T$8))/2000*1000000","v":55.059750000000008},{"$f":"(SUMPRODUCT(U$9:U$229,Nutrients!$EK$8:$EK$228)+(IF($A$7=Nutrients!$B$8,Nutrients!$EK$8,Nutrients!$EK$9)*U$7)+(((IF($A$8=Nutrients!$B$79,Nutrients!$EK$79,(IF($A$8=Nutrients!$B$77,Nutrients!$EK$77,Nutrients!$EK$78)))))*U$8))/2000*1000000","v":55.059750000000008},null,{"$f":"(SUMPRODUCT(W$9:W$229,Nutrients!$EK$8:$EK$228)+(IF($A$7=Nutrients!$B$8,Nutrients!$EK$8,Nutrients!$EK$9)*W$7)+(((IF($A$8=Nutrients!$B$79,Nutrients!$EK$79,(IF($A$8=Nutrients!$B$77,Nutrients!$EK$77,Nutrients!$EK$78)))))*W$8))/2000*1000000","v":110.11950000000002},{"$f":"(SUMPRODUCT(X$9:X$229,Nutrients!$EK$8:$EK$228)+(IF($A$7=Nutrients!$B$8,Nutrients!$EK$8,Nutrients!$EK$9)*X$7)+(((IF($A$8=Nutrients!$B$79,Nutrients!$EK$79,(IF($A$8=Nutrients!$B$77,Nutrients!$EK$77,Nutrients!$EK$78)))))*X$8))/2000*1000000","v":110.11950000000002},{"$f":"(SUMPRODUCT(Y$9:Y$229,Nutrients!$EK$8:$EK$228)+(IF($A$7=Nutrients!$B$8,Nutrients!$EK$8,Nutrients!$EK$9)*Y$7)+(((IF($A$8=Nutrients!$B$79,Nutrients!$EK$79,(IF($A$8=Nutrients!$B$77,Nutrients!$EK$77,Nutrients!$EK$78)))))*Y$8))/2000*1000000","v":91.766249999999999},{"$f":"(SUMPRODUCT(Z$9:Z$229,Nutrients!$EK$8:$EK$228)+(IF($A$7=Nutrients!$B$8,Nutrients!$EK$8,Nutrients!$EK$9)*Z$7)+(((IF($A$8=Nutrients!$B$79,Nutrients!$EK$79,(IF($A$8=Nutrients!$B$77,Nutrients!$EK$77,Nutrients!$EK$78)))))*Z$8))/2000*1000000","v":73.413000000000011},{"$f":"(SUMPRODUCT(AA$9:AA$229,Nutrients!$EK$8:$EK$228)+(IF($A$7=Nutrients!$B$8,Nutrients!$EK$8,Nutrients!$EK$9)*AA$7)+(((IF($A$8=Nutrients!$B$79,Nutrients!$EK$79,(IF($A$8=Nutrients!$B$77,Nutrients!$EK$77,Nutrients!$EK$78)))))*AA$8))/2000*1000000","v":55.059750000000008},{"$f":"(SUMPRODUCT(AB$9:AB$229,Nutrients!$EK$8:$EK$228)+(IF($A$7=Nutrients!$B$8,Nutrients!$EK$8,Nutrients!$EK$9)*AB$7)+(((IF($A$8=Nutrients!$B$79,Nutrients!$EK$79,(IF($A$8=Nutrients!$B$77,Nutrients!$EK$77,Nutrients!$EK$78)))))*AB$8))/2000*1000000","v":55.059750000000008},null,{"$f":"(SUMPRODUCT(AD$9:AD$229,Nutrients!$EK$8:$EK$228)+(IF($A$7=Nutrients!$B$8,Nutrients!$EK$8,Nutrients!$EK$9)*AD$7)+(((IF($A$8=Nutrients!$B$79,Nutrients!$EK$79,(IF($A$8=Nutrients!$B$77,Nutrients!$EK$77,Nutrients!$EK$78)))))*AD$8))/2000*1000000","v":110.11950000000002},{"$f":"(SUMPRODUCT(AE$9:AE$229,Nutrients!$EK$8:$EK$228)+(IF($A$7=Nutrients!$B$8,Nutrients!$EK$8,Nutrients!$EK$9)*AE$7)+(((IF($A$8=Nutrients!$B$79,Nutrients!$EK$79,(IF($A$8=Nutrients!$B$77,Nutrients!$EK$77,Nutrients!$EK$78)))))*AE$8))/2000*1000000","v":110.11950000000002},{"$f":"(SUMPRODUCT(AF$9:AF$229,Nutrients!$EK$8:$EK$228)+(IF($A$7=Nutrients!$B$8,Nutrients!$EK$8,Nutrients!$EK$9)*AF$7)+(((IF($A$8=Nutrients!$B$79,Nutrients!$EK$79,(IF($A$8=Nutrients!$B$77,Nutrients!$EK$77,Nutrients!$EK$78)))))*AF$8))/2000*1000000","v":91.766249999999999},{"$f":"(SUMPRODUCT(AG$9:AG$229,Nutrients!$EK$8:$EK$228)+(IF($A$7=Nutrients!$B$8,Nutrients!$EK$8,Nutrients!$EK$9)*AG$7)+(((IF($A$8=Nutrients!$B$79,Nutrients!$EK$79,(IF($A$8=Nutrients!$B$77,Nutrients!$EK$77,Nutrients!$EK$78)))))*AG$8))/2000*1000000","v":73.413000000000011},{"$f":"(SUMPRODUCT(AH$9:AH$229,Nutrients!$EK$8:$EK$228)+(IF($A$7=Nutrients!$B$8,Nutrients!$EK$8,Nutrients!$EK$9)*AH$7)+(((IF($A$8=Nutrients!$B$79,Nutrients!$EK$79,(IF($A$8=Nutrients!$B$77,Nutrients!$EK$77,Nutrients!$EK$78)))))*AH$8))/2000*1000000","v":55.059750000000008},{"$f":"(SUMPRODUCT(AI$9:AI$229,Nutrients!$EK$8:$EK$228)+(IF($A$7=Nutrients!$B$8,Nutrients!$EK$8,Nutrients!$EK$9)*AI$7)+(((IF($A$8=Nutrients!$B$79,Nutrients!$EK$79,(IF($A$8=Nutrients!$B$77,Nutrients!$EK$77,Nutrients!$EK$78)))))*AI$8))/2000*1000000","v":55.059750000000008},null,{"$f":"(SUMPRODUCT(AK$9:AK$229,Nutrients!$EK$8:$EK$228)+(IF($A$7=Nutrients!$B$8,Nutrients!$EK$8,Nutrients!$EK$9)*AK$7)+(((IF($A$8=Nutrients!$B$79,Nutrients!$EK$79,(IF($A$8=Nutrients!$B$77,Nutrients!$EK$77,Nutrients!$EK$78)))))*AK$8))/2000*1000000","v":110.11950000000002},{"$f":"(SUMPRODUCT(AL$9:AL$229,Nutrients!$EK$8:$EK$228)+(IF($A$7=Nutrients!$B$8,Nutrients!$EK$8,Nutrients!$EK$9)*AL$7)+(((IF($A$8=Nutrients!$B$79,Nutrients!$EK$79,(IF($A$8=Nutrients!$B$77,Nutrients!$EK$77,Nutrients!$EK$78)))))*AL$8))/2000*1000000","v":110.11950000000002},{"$f":"(SUMPRODUCT(AM$9:AM$229,Nutrients!$EK$8:$EK$228)+(IF($A$7=Nutrients!$B$8,Nutrients!$EK$8,Nutrients!$EK$9)*AM$7)+(((IF($A$8=Nutrients!$B$79,Nutrients!$EK$79,(IF($A$8=Nutrients!$B$77,Nutrients!$EK$77,Nutrients!$EK$78)))))*AM$8))/2000*1000000","v":91.766249999999999},{"$f":"(SUMPRODUCT(AN$9:AN$229,Nutrients!$EK$8:$EK$228)+(IF($A$7=Nutrients!$B$8,Nutrients!$EK$8,Nutrients!$EK$9)*AN$7)+(((IF($A$8=Nutrients!$B$79,Nutrients!$EK$79,(IF($A$8=Nutrients!$B$77,Nutrients!$EK$77,Nutrients!$EK$78)))))*AN$8))/2000*1000000","v":73.413000000000011},{"$f":"(SUMPRODUCT(AO$9:AO$229,Nutrients!$EK$8:$EK$228)+(IF($A$7=Nutrients!$B$8,Nutrients!$EK$8,Nutrients!$EK$9)*AO$7)+(((IF($A$8=Nutrients!$B$79,Nutrients!$EK$79,(IF($A$8=Nutrients!$B$77,Nutrients!$EK$77,Nutrients!$EK$78)))))*AO$8))/2000*1000000","v":55.059750000000008},{"$f":"(SUMPRODUCT(AP$9:AP$229,Nutrients!$EK$8:$EK$228)+(IF($A$7=Nutrients!$B$8,Nutrients!$EK$8,Nutrients!$EK$9)*AP$7)+(((IF($A$8=Nutrients!$B$79,Nutrients!$EK$79,(IF($A$8=Nutrients!$B$77,Nutrients!$EK$77,Nutrients!$EK$78)))))*AP$8))/2000*1000000","v":55.059750000000008},null,{"$f":"(SUMPRODUCT(AR$9:AR$229,Nutrients!$EK$8:$EK$228)+(IF($A$7=Nutrients!$B$8,Nutrients!$EK$8,Nutrients!$EK$9)*AR$7)+(((IF($A$8=Nutrients!$B$79,Nutrients!$EK$79,(IF($A$8=Nutrients!$B$77,Nutrients!$EK$77,Nutrients!$EK$78)))))*AR$8))/2000*1000000","v":110.11950000000002},{"$f":"(SUMPRODUCT(AS$9:AS$229,Nutrients!$EK$8:$EK$228)+(IF($A$7=Nutrients!$B$8,Nutrients!$EK$8,Nutrients!$EK$9)*AS$7)+(((IF($A$8=Nutrients!$B$79,Nutrients!$EK$79,(IF($A$8=Nutrients!$B$77,Nutrients!$EK$77,Nutrients!$EK$78)))))*AS$8))/2000*1000000","v":110.11950000000002},{"$f":"(SUMPRODUCT(AT$9:AT$229,Nutrients!$EK$8:$EK$228)+(IF($A$7=Nutrients!$B$8,Nutrients!$EK$8,Nutrients!$EK$9)*AT$7)+(((IF($A$8=Nutrients!$B$79,Nutrients!$EK$79,(IF($A$8=Nutrients!$B$77,Nutrients!$EK$77,Nutrients!$EK$78)))))*AT$8))/2000*1000000","v":91.766249999999999},{"$f":"(SUMPRODUCT(AU$9:AU$229,Nutrients!$EK$8:$EK$228)+(IF($A$7=Nutrients!$B$8,Nutrients!$EK$8,Nutrients!$EK$9)*AU$7)+(((IF($A$8=Nutrients!$B$79,Nutrients!$EK$79,(IF($A$8=Nutrients!$B$77,Nutrients!$EK$77,Nutrients!$EK$78)))))*AU$8))/2000*1000000","v":73.413000000000011},{"$f":"(SUMPRODUCT(AV$9:AV$229,Nutrients!$EK$8:$EK$228)+(IF($A$7=Nutrients!$B$8,Nutrients!$EK$8,Nutrients!$EK$9)*AV$7)+(((IF($A$8=Nutrients!$B$79,Nutrients!$EK$79,(IF($A$8=Nutrients!$B$77,Nutrients!$EK$77,Nutrients!$EK$78)))))*AV$8))/2000*1000000","v":55.059750000000008},{"$f":"(SUMPRODUCT(AW$9:AW$229,Nutrients!$EK$8:$EK$228)+(IF($A$7=Nutrients!$B$8,Nutrients!$EK$8,Nutrients!$EK$9)*AW$7)+(((IF($A$8=Nutrients!$B$79,Nutrients!$EK$79,(IF($A$8=Nutrients!$B$77,Nutrients!$EK$77,Nutrients!$EK$78)))))*AW$8))/2000*1000000","v":55.059750000000008}]
["  Iron added, ppm",{"$f":"(SUMPRODUCT(B$9:B$229,Nutrients!$EL$8:$EL$228)+(IF($A$7=Nutrients!$B$8,Nutrients!$EL$8,Nutrients!$EL$9)*B$7)+(((IF($A$8=Nutrients!$B$79,Nutrients!$EL$79,(IF($A$8=Nutrients!$B$77,Nutrients!$EL$77,Nutrients!$EL$78)))))*B$8))/2000*1000000","v":110.11950000000002},{"$f":"(SUMPRODUCT(C$9:C$229,Nutrients!$EL$8:$EL$228)+(IF($A$7=Nutrients!$B$8,Nutrients!$EL$8,Nutrients!$EL$9)*C$7)+(((IF($A$8=Nutrients!$B$79,Nutrients!$EL$79,(IF($A$8=Nutrients!$B$77,Nutrients!$EL$77,Nutrients!$EL$78)))))*C$8))/2000*1000000","v":110.11950000000002},{"$f":"(SUMPRODUCT(D$9:D$229,Nutrients!$EL$8:$EL$228)+(IF($A$7=Nutrients!$B$8,Nutrients!$EL$8,Nutrients!$EL$9)*D$7)+(((IF($A$8=Nutrients!$B$79,Nutrients!$EL$79,(IF($A$8=Nutrients!$B$77,Nutrients!$EL$77,Nutrients!$EL$78)))))*D$8))/2000*1000000","v":91.766249999999999},{"$f":"(SUMPRODUCT(E$9:E$229,Nutrients!$EL$8:$EL$228)+(IF($A$7=Nutrients!$B$8,Nutrients!$EL$8,Nutrients!$EL$9)*E$7)+(((IF($A$8=Nutrients!$B$79,Nutrients!$EL$79,(IF($A$8=Nutrients!$B$77,Nutrients!$EL$77,Nutrients!$EL$78)))))*E$8))/2000*1000000","v":73.413000000000011},{"$f":"(SUMPRODUCT(F$9:F$229,Nutrients!$EL$8:$EL$228)+(IF($A$7=Nutrients!$B$8,Nutrients!$EL$8,Nutrients!$EL$9)*F$7)+(((IF($A$8=Nutrients!$B$79,Nutrients!$EL$79,(IF($A$8=Nutrients!$B$77,Nutrients!$EL$77,Nutrients!$EL$78)))))*F$8))/2000*1000000","v":55.059750000000008},{"$f":"(SUMPRODUCT(G$9:G$229,Nutrients!$EL$8:$EL$228)+(IF($A$7=Nutrients!$B$8,Nutrients!$EL$8,Nutrients!$EL$9)*G$7)+(((IF($A$8=Nutrients!$B$79,Nutrients!$EL$79,(IF($A$8=Nutrients!$B$77,Nutrients!$EL$77,Nutrients!$EL$78)))))*G$8))/2000*1000000","v":55.059750000000008},null,{"$f":"(SUMPRODUCT(I$9:I$229,Nutrients!$EL$8:$EL$228)+(IF($A$7=Nutrients!$B$8,Nutrients!$EL$8,Nutrients!$EL$9)*I$7)+(((IF($A$8=Nutrients!$B$79,Nutrients!$EL$79,(IF($A$8=Nutrients!$B$77,Nutrients!$EL$77,Nutrients!$EL$78)))))*I$8))/2000*1000000","v":110.11950000000002},{"$f":"(SUMPRODUCT(J$9:J$229,Nutrients!$EL$8:$EL$228)+(IF($A$7=Nutrients!$B$8,Nutrients!$EL$8,Nutrients!$EL$9)*J$7)+(((IF($A$8=Nutrients!$B$79,Nutrients!$EL$79,(IF($A$8=Nutrients!$B$77,Nutrients!$EL$77,Nutrients!$EL$78)))))*J$8))/2000*1000000","v":110.11950000000002},{"$f":"(SUMPRODUCT(K$9:K$229,Nutrients!$EL$8:$EL$228)+(IF($A$7=Nutrients!$B$8,Nutrients!$EL$8,Nutrients!$EL$9)*K$7)+(((IF($A$8=Nutrients!$B$79,Nutrients!$EL$79,(IF($A$8=Nutrients!$B$77,Nutrients!$EL$77,Nutrients!$EL$78)))))*K$8))/2000*1000000","v":91.766249999999999},{"$f":"(SUMPRODUCT(L$9:L$229,Nutrients!$EL$8:$EL$228)+(IF($A$7=Nutrients!$B$8,Nutrients!$EL$8,Nutrients!$EL$9)*L$7)+(((IF($A$8=Nutrients!$B$79,Nutrients!$EL$79,(IF($A$8=Nutrients!$B$77,Nutrients!$EL$77,Nutrients!$EL$78)))))*L$8))/2000*1000000","v":73.413000000000011},{"$f":"(SUMPRODUCT(M$9:M$229,Nutrients!$EL$8:$EL$228)+(IF($A$7=Nutrients!$B$8,Nutrients!$EL$8,Nutrients!$EL$9)*M$7)+(((IF($A$8=Nutrients!$B$79,Nutrients!$EL$79,(IF($A$8=Nutrients!$B$77,Nutrients!$EL$77,Nutrients!$EL$78)))))*M$8))/2000*1000000","v":55.059750000000008},{"$f":"(SUMPRODUCT(N$9:N$229,Nutrients!$EL$8:$EL$228)+(IF($A$7=Nutrients!$B$8,Nutrients!$EL$8,Nutrients!$EL$9)*N$7)+(((IF($A$8=Nutrients!$B$79,Nutrients!$EL$79,(IF($A$8=Nutrients!$B$77,Nutrients!$EL$77,Nutrients!$EL$78)))))*N$8))/2000*1000000","v":55.059750000000008},null,{"$f":"(SUMPRODUCT(P$9:P$229,Nutrients!$EL$8:$EL$228)+(IF($A$7=Nutrients!$B$8,Nutrients!$EL$8,Nutrients!$EL$9)*P$7)+(((IF($A$8=Nutrients!$B$79,Nutrients!$EL$79,(IF($A$8=Nutrients!$B$77,Nutrients!$EL$77,Nutrients!$EL$78)))))*P$8))/2000*1000000","v":110.11950000000002},{"$f":"(SUMPRODUCT(Q$9:Q$229,Nutrients!$EL$8:$EL$228)+(IF($A$7=Nutrients!$B$8,Nutrients!$EL$8,Nutrients!$EL$9)*Q$7)+(((IF($A$8=Nutrients!$B$79,Nutrients!$EL$79,(IF($A$8=Nutrients!$B$77,Nutrients!$EL$77,Nutrients!$EL$78)))))*Q$8))/2000*1000000","v":110.11950000000002},{"$f":"(SUMPRODUCT(R$9:R$229,Nutrients!$EL$8:$EL$228)+(IF($A$7=Nutrients!$B$8,Nutrients!$EL$8,Nutrients!$EL$9)*R$7)+(((IF($A$8=Nutrients!$B$79,Nutrients!$EL$79,(IF($A$8=Nutrients!$B$77,Nutrients!$EL$77,Nutrients!$EL$78)))))*R$8))/2000*1000000","v":91.766249999999999},{"$f":"(SUMPRODUCT(S$9:S$229,Nutrients!$EL$8:$EL$228)+(IF($A$7=Nutrients!$B$8,Nutrients!$EL$8,Nutrients!$EL$9)*S$7)+(((IF($A$8=Nutrients!$B$79,Nutrients!$EL$79,(IF($A$8=Nutrients!$B$77,Nutrients!$EL$77,Nutrients!$EL$78)))))*S$8))/2000*1000000","v":73.413000000000011},{"$f":"(SUMPRODUCT(T$9:T$229,Nutrients!$EL$8:$EL$228)+(IF($A$7=Nutrients!$B$8,Nutrients!$EL$8,Nutrients!$EL$9)*T$7)+(((IF($A$8=Nutrients!$B$79,Nutrients!$EL$79,(IF($A$8=Nutrients!$B$77,Nutrients!$EL$77,Nutrients!$EL$78)))))*T$8))/2000*1000000","v":55.059750000000008},{"$f":"(SUMPRODUCT(U$9:U$229,Nutrients!$EL$8:$EL$228)+(IF($A$7=Nutrients!$B$8,Nutrients!$EL$8,Nutrients!$EL$9)*U$7)+(((IF($A$8=Nutrients!$B$79,Nutrients!$EL$79,(IF($A$8=Nutrients!$B$77,Nutrients!$EL$77,Nutrients!$EL$78)))))*U$8))/2000*1000000","v":55.059750000000008},null,{"$f":"(SUMPRODUCT(W$9:W$229,Nutrients!$EL$8:$EL$228)+(IF($A$7=Nutrients!$B$8,Nutrients!$EL$8,Nutrients!$EL$9)*W$7)+(((IF($A$8=Nutrients!$B$79,Nutrients!$EL$79,(IF($A$8=Nutrients!$B$77,Nutrients!$EL$77,Nutrients!$EL$78)))))*W$8))/2000*1000000","v":110.11950000000002},{"$f":"(SUMPRODUCT(X$9:X$229,Nutrients!$EL$8:$EL$228)+(IF($A$7=Nutrients!$B$8,Nutrients!$EL$8,Nutrients!$EL$9)*X$7)+(((IF($A$8=Nutrients!$B$79,Nutrients!$EL$79,(IF($A$8=Nutrients!$B$77,Nutrients!$EL$77,Nutrients!$EL$78)))))*X$8))/2000*1000000","v":110.11950000000002},{"$f":"(SUMPRODUCT(Y$9:Y$229,Nutrients!$EL$8:$EL$228)+(IF($A$7=Nutrients!$B$8,Nutrients!$EL$8,Nutrients!$EL$9)*Y$7)+(((IF($A$8=Nutrients!$B$79,Nutrients!$EL$79,(IF($A$8=Nutrients!$B$77,Nutrients!$EL$77,Nutrients!$EL$78)))))*Y$8))/2000*1000000","v":91.766249999999999},{"$f":"(SUMPRODUCT(Z$9:Z$229,Nutrients!$EL$8:$EL$228)+(IF($A$7=Nutrients!$B$8,Nutrients!$EL$8,Nutrients!$EL$9)*Z$7)+(((IF($A$8=Nutrients!$B$79,Nutrients!$EL$79,(IF($A$8=Nutrients!$B$77,Nutrients!$EL$77,Nutrients!$EL$78)))))*Z$8))/2000*1000000","v":73.413000000000011},{"$f":"(SUMPRODUCT(AA$9:AA$229,Nutrients!$EL$8:$EL$228)+(IF($A$7=Nutrients!$B$8,Nutrients!$EL$8,Nutrients!$EL$9)*AA$7)+(((IF($A$8=Nutrients!$B$79,Nutrients!$EL$79,(IF($A$8=Nutrients!$B$77,Nutrients!$EL$77,Nutrients!$EL$78)))))*AA$8))/2000*1000000","v":55.059750000000008},{"$f":"(SUMPRODUCT(AB$9:AB$229,Nutrients!$EL$8:$EL$228)+(IF($A$7=Nutrients!$B$8,Nutrients!$EL$8,Nutrients!$EL$9)*AB$7)+(((IF($A$8=Nutrients!$B$79,Nutrients!$EL$79,(IF($A$8=Nutrients!$B$77,Nutrients!$EL$77,Nutrients!$EL$78)))))*AB$8))/2000*1000000","v":55.059750000000008},null,{"$f":"(SUMPRODUCT(AD$9:AD$229,Nutrients!$EL$8:$EL$228)+(IF($A$7=Nutrients!$B$8,Nutrients!$EL$8,Nutrients!$EL$9)*AD$7)+(((IF($A$8=Nutrients!$B$79,Nutrients!$EL$79,(IF($A$8=Nutrients!$B$77,Nutrients!$EL$77,Nutrients!$EL$78)))))*AD$8))/2000*1000000","v":110.11950000000002},{"$f":"(SUMPRODUCT(AE$9:AE$229,Nutrients!$EL$8:$EL$228)+(IF($A$7=Nutrients!$B$8,Nutrients!$EL$8,Nutrients!$EL$9)*AE$7)+(((IF($A$8=Nutrients!$B$79,Nutrients!$EL$79,(IF($A$8=Nutrients!$B$77,Nutrients!$EL$77,Nutrients!$EL$78)))))*AE$8))/2000*1000000","v":110.11950000000002},{"$f":"(SUMPRODUCT(AF$9:AF$229,Nutrients!$EL$8:$EL$228)+(IF($A$7=Nutrients!$B$8,Nutrients!$EL$8,Nutrients!$EL$9)*AF$7)+(((IF($A$8=Nutrients!$B$79,Nutrients!$EL$79,(IF($A$8=Nutrients!$B$77,Nutrients!$EL$77,Nutrients!$EL$78)))))*AF$8))/2000*1000000","v":91.766249999999999},{"$f":"(SUMPRODUCT(AG$9:AG$229,Nutrients!$EL$8:$EL$228)+(IF($A$7=Nutrients!$B$8,Nutrients!$EL$8,Nutrients!$EL$9)*AG$7)+(((IF($A$8=Nutrients!$B$79,Nutrients!$EL$79,(IF($A$8=Nutrients!$B$77,Nutrients!$EL$77,Nutrients!$EL$78)))))*AG$8))/2000*1000000","v":73.413000000000011},{"$f":"(SUMPRODUCT(AH$9:AH$229,Nutrients!$EL$8:$EL$228)+(IF($A$7=Nutrients!$B$8,Nutrients!$EL$8,Nutrients!$EL$9)*AH$7)+(((IF($A$8=Nutrients!$B$79,Nutrients!$EL$79,(IF($A$8=Nutrients!$B$77,Nutrients!$EL$77,Nutrients!$EL$78)))))*AH$8))/2000*1000000","v":55.059750000000008},{"$f":"(SUMPRODUCT(AI$9:AI$229,Nutrients!$EL$8:$EL$228)+(IF($A$7=Nutrients!$B$8,Nutrients!$EL$8,Nutrients!$EL$9)*AI$7)+(((IF($A$8=Nutrients!$B$79,Nutrients!$EL$79,(IF($A$8=Nutrients!$B$77,Nutrients!$EL$77,Nutrients!$EL$78)))))*AI$8))/2000*1000000","v":55.059750000000008},null,{"$f":"(SUMPRODUCT(AK$9:AK$229,Nutrients!$EL$8:$EL$228)+(IF($A$7=Nutrients!$B$8,Nutrients!$EL$8,Nutrients!$EL$9)*AK$7)+(((IF($A$8=Nutrients!$B$79,Nutrients!$EL$79,(IF($A$8=Nutrients!$B$77,Nutrients!$EL$77,Nutrients!$EL$78)))))*AK$8))/2000*1000000","v":110.11950000000002},{"$f":"(SUMPRODUCT(AL$9:AL$229,Nutrients!$EL$8:$EL$228)+(IF($A$7=Nutrients!$B$8,Nutrients!$EL$8,Nutrients!$EL$9)*AL$7)+(((IF($A$8=Nutrients!$B$79,Nutrients!$EL$79,(IF($A$8=Nutrients!$B$77,Nutrients!$EL$77,Nutrients!$EL$78)))))*AL$8))/2000*1000000","v":110.11950000000002},{"$f":"(SUMPRODUCT(AM$9:AM$229,Nutrients!$EL$8:$EL$228)+(IF($A$7=Nutrients!$B$8,Nutrients!$EL$8,Nutrients!$EL$9)*AM$7)+(((IF($A$8=Nutrients!$B$79,Nutrients!$EL$79,(IF($A$8=Nutrients!$B$77,Nutrients!$EL$77,Nutrients!$EL$78)))))*AM$8))/2000*1000000","v":91.766249999999999},{"$f":"(SUMPRODUCT(AN$9:AN$229,Nutrients!$EL$8:$EL$228)+(IF($A$7=Nutrients!$B$8,Nutrients!$EL$8,Nutrients!$EL$9)*AN$7)+(((IF($A$8=Nutrients!$B$79,Nutrients!$EL$79,(IF($A$8=Nutrients!$B$77,Nutrients!$EL$77,Nutrients!$EL$78)))))*AN$8))/2000*1000000","v":73.413000000000011},{"$f":"(SUMPRODUCT(AO$9:AO$229,Nutrients!$EL$8:$EL$228)+(IF($A$7=Nutrients!$B$8,Nutrients!$EL$8,Nutrients!$EL$9)*AO$7)+(((IF($A$8=Nutrients!$B$79,Nutrients!$EL$79,(IF($A$8=Nutrients!$B$77,Nutrients!$EL$77,Nutrients!$EL$78)))))*AO$8))/2000*1000000","v":55.059750000000008},{"$f":"(SUMPRODUCT(AP$9:AP$229,Nutrients!$EL$8:$EL$228)+(IF($A$7=Nutrients!$B$8,Nutrients!$EL$8,Nutrients!$EL$9)*AP$7)+(((IF($A$8=Nutrients!$B$79,Nutrients!$EL$79,(IF($A$8=Nutrients!$B$77,Nutrients!$EL$77,Nutrients!$EL$78)))))*AP$8))/2000*1000000","v":55.059750000000008},null,{"$f":"(SUMPRODUCT(AR$9:AR$229,Nutrients!$EL$8:$EL$228)+(IF($A$7=Nutrients!$B$8,Nutrients!$EL$8,Nutrients!$EL$9)*AR$7)+(((IF($A$8=Nutrients!$B$79,Nutrients!$EL$79,(IF($A$8=Nutrients!$B$77,Nutrients!$EL$77,Nutrients!$EL$78)))))*AR$8))/2000*1000000","v":110.11950000000002},{"$f":"(SUMPRODUCT(AS$9:AS$229,Nutrients!$EL$8:$EL$228)+(IF($A$7=Nutrients!$B$8,Nutrients!$EL$8,Nutrients!$EL$9)*AS$7)+(((IF($A$8=Nutrients!$B$79,Nutrients!$EL$79,(IF($A$8=Nutrients!$B$77,Nutrients!$EL$77,Nutrients!$EL$78)))))*AS$8))/2000*1000000","v":110.11950000000002},{"$f":"(SUMPRODUCT(AT$9:AT$229,Nutrients!$EL$8:$EL$228)+(IF($A$7=Nutrients!$B$8,Nutrients!$EL$8,Nutrients!$EL$9)*AT$7)+(((IF($A$8=Nutrients!$B$79,Nutrients!$EL$79,(IF($A$8=Nutrients!$B$77,Nutrients!$EL$77,Nutrients!$EL$78)))))*AT$8))/2000*1000000","v":91.766249999999999},{"$f":"(SUMPRODUCT(AU$9:AU$229,Nutrients!$EL$8:$EL$228)+(IF($A$7=Nutrients!$B$8,Nutrients!$EL$8,Nutrients!$EL$9)*AU$7)+(((IF($A$8=Nutrients!$B$79,Nutrients!$EL$79,(IF($A$8=Nutrients!$B$77,Nutrients!$EL$77,Nutrients!$EL$78)))))*AU$8))/2000*1000000","v":73.413000000000011},{"$f":"(SUMPRODUCT(AV$9:AV$229,Nutrients!$EL$8:$EL$228)+(IF($A$7=Nutrients!$B$8,Nutrients!$EL$8,Nutrients!$EL$9)*AV$7)+(((IF($A$8=Nutrients!$B$79,Nutrients!$EL$79,(IF($A$8=Nutrients!$B$77,Nutrients!$EL$77,Nutrients!$EL$78)))))*AV$8))/2000*1000000","v":55.059750000000008},{"$f":"(SUMPRODUCT(AW$9:AW$229,Nutrients!$EL$8:$EL$228)+(IF($A$7=Nutrients!$B$8,Nutrients!$EL$8,Nutrients!$EL$9)*AW$7)+(((IF($A$8=Nutrients!$B$79,Nutrients!$EL$79,(IF($A$8=Nutrients!$B$77,Nutrients!$EL$77,Nutrients!$EL$78)))))*AW$8))/2000*1000000","v":55.059750000000008}]
["  Manganese added, ppm",{"$f":"(SUMPRODUCT(B$9:B$229,Nutrients!$EM$8:$EM$228)+(IF($A$7=Nutrients!$B$8,Nutrients!$EM$8,Nutrients!$EM$9)*B$7)+(((IF($A$8=Nutrients!$B$79,Nutrients!$EM$79,(IF($A$8=Nutrients!$B$77,Nutrients!$EM$77,Nutrients!$EM$78)))))*B$8))/2000*1000000","v":33.068999999999996},{"$f":"(SUMPRODUCT(C$9:C$229,Nutrients!$EM$8:$EM$228)+(IF($A$7=Nutrients!$B$8,Nutrients!$EM$8,Nutrients!$EM$9)*C$7)+(((IF($A$8=Nutrients!$B$79,Nutrients!$EM$79,(IF($A$8=Nutrients!$B$77,Nutrients!$EM$77,Nutrients!$EM$78)))))*C$8))/2000*1000000","v":33.068999999999996},{"$f":"(SUMPRODUCT(D$9:D$229,Nutrients!$EM$8:$EM$228)+(IF($A$7=Nutrients!$B$8,Nutrients!$EM$8,Nutrients!$EM$9)*D$7)+(((IF($A$8=Nutrients!$B$79,Nutrients!$EM$79,(IF($A$8=Nutrients!$B$77,Nutrients!$EM$77,Nutrients!$EM$78)))))*D$8))/2000*1000000","v":27.557499999999997},{"$f":"(SUMPRODUCT(E$9:E$229,Nutrients!$EM$8:$EM$228)+(IF($A$7=Nutrients!$B$8,Nutrients!$EM$8,Nutrients!$EM$9)*E$7)+(((IF($A$8=Nutrients!$B$79,Nutrients!$EM$79,(IF($A$8=Nutrients!$B$77,Nutrients!$EM$77,Nutrients!$EM$78)))))*E$8))/2000*1000000","v":22.045999999999999},{"$f":"(SUMPRODUCT(F$9:F$229,Nutrients!$EM$8:$EM$228)+(IF($A$7=Nutrients!$B$8,Nutrients!$EM$8,Nutrients!$EM$9)*F$7)+(((IF($A$8=Nutrients!$B$79,Nutrients!$EM$79,(IF($A$8=Nutrients!$B$77,Nutrients!$EM$77,Nutrients!$EM$78)))))*F$8))/2000*1000000","v":16.534499999999998},{"$f":"(SUMPRODUCT(G$9:G$229,Nutrients!$EM$8:$EM$228)+(IF($A$7=Nutrients!$B$8,Nutrients!$EM$8,Nutrients!$EM$9)*G$7)+(((IF($A$8=Nutrients!$B$79,Nutrients!$EM$79,(IF($A$8=Nutrients!$B$77,Nutrients!$EM$77,Nutrients!$EM$78)))))*G$8))/2000*1000000","v":16.534499999999998},null,{"$f":"(SUMPRODUCT(I$9:I$229,Nutrients!$EM$8:$EM$228)+(IF($A$7=Nutrients!$B$8,Nutrients!$EM$8,Nutrients!$EM$9)*I$7)+(((IF($A$8=Nutrients!$B$79,Nutrients!$EM$79,(IF($A$8=Nutrients!$B$77,Nutrients!$EM$77,Nutrients!$EM$78)))))*I$8))/2000*1000000","v":33.068999999999996},{"$f":"(SUMPRODUCT(J$9:J$229,Nutrients!$EM$8:$EM$228)+(IF($A$7=Nutrients!$B$8,Nutrients!$EM$8,Nutrients!$EM$9)*J$7)+(((IF($A$8=Nutrients!$B$79,Nutrients!$EM$79,(IF($A$8=Nutrients!$B$77,Nutrients!$EM$77,Nutrients!$EM$78)))))*J$8))/2000*1000000","v":33.068999999999996},{"$f":"(SUMPRODUCT(K$9:K$229,Nutrients!$EM$8:$EM$228)+(IF($A$7=Nutrients!$B$8,Nutrients!$EM$8,Nutrients!$EM$9)*K$7)+(((IF($A$8=Nutrients!$B$79,Nutrients!$EM$79,(IF($A$8=Nutrients!$B$77,Nutrients!$EM$77,Nutrients!$EM$78)))))*K$8))/2000*1000000","v":27.557499999999997},{"$f":"(SUMPRODUCT(L$9:L$229,Nutrients!$EM$8:$EM$228)+(IF($A$7=Nutrients!$B$8,Nutrients!$EM$8,Nutrients!$EM$9)*L$7)+(((IF($A$8=Nutrients!$B$79,Nutrients!$EM$79,(IF($A$8=Nutrients!$B$77,Nutrients!$EM$77,Nutrients!$EM$78)))))*L$8))/2000*1000000","v":22.045999999999999},{"$f":"(SUMPRODUCT(M$9:M$229,Nutrients!$EM$8:$EM$228)+(IF($A$7=Nutrients!$B$8,Nutrients!$EM$8,Nutrients!$EM$9)*M$7)+(((IF($A$8=Nutrients!$B$79,Nutrients!$EM$79,(IF($A$8=Nutrients!$B$77,Nutrients!$EM$77,Nutrients!$EM$78)))))*M$8))/2000*1000000","v":16.534499999999998},{"$f":"(SUMPRODUCT(N$9:N$229,Nutrients!$EM$8:$EM$228)+(IF($A$7=Nutrients!$B$8,Nutrients!$EM$8,Nutrients!$EM$9)*N$7)+(((IF($A$8=Nutrients!$B$79,Nutrients!$EM$79,(IF($A$8=Nutrients!$B$77,Nutrients!$EM$77,Nutrients!$EM$78)))))*N$8))/2000*1000000","v":16.534499999999998},null,{"$f":"(SUMPRODUCT(P$9:P$229,Nutrients!$EM$8:$EM$228)+(IF($A$7=Nutrients!$B$8,Nutrients!$EM$8,Nutrients!$EM$9)*P$7)+(((IF($A$8=Nutrients!$B$79,Nutrients!$EM$79,(IF($A$8=Nutrients!$B$77,Nutrients!$EM$77,Nutrients!$EM$78)))))*P$8))/2000*1000000","v":33.068999999999996},{"$f":"(SUMPRODUCT(Q$9:Q$229,Nutrients!$EM$8:$EM$228)+(IF($A$7=Nutrients!$B$8,Nutrients!$EM$8,Nutrients!$EM$9)*Q$7)+(((IF($A$8=Nutrients!$B$79,Nutrients!$EM$79,(IF($A$8=Nutrients!$B$77,Nutrients!$EM$77,Nutrients!$EM$78)))))*Q$8))/2000*1000000","v":33.068999999999996},{"$f":"(SUMPRODUCT(R$9:R$229,Nutrients!$EM$8:$EM$228)+(IF($A$7=Nutrients!$B$8,Nutrients!$EM$8,Nutrients!$EM$9)*R$7)+(((IF($A$8=Nutrients!$B$79,Nutrients!$EM$79,(IF($A$8=Nutrients!$B$77,Nutrients!$EM$77,Nutrients!$EM$78)))))*R$8))/2000*1000000","v":27.557499999999997},{"$f":"(SUMPRODUCT(S$9:S$229,Nutrients!$EM$8:$EM$228)+(IF($A$7=Nutrients!$B$8,Nutrients!$EM$8,Nutrients!$EM$9)*S$7)+(((IF($A$8=Nutrients!$B$79,Nutrients!$EM$79,(IF($A$8=Nutrients!$B$77,Nutrients!$EM$77,Nutrients!$EM$78)))))*S$8))/2000*1000000","v":22.045999999999999},{"$f":"(SUMPRODUCT(T$9:T$229,Nutrients!$EM$8:$EM$228)+(IF($A$7=Nutrients!$B$8,Nutrients!$EM$8,Nutrients!$EM$9)*T$7)+(((IF($A$8=Nutrients!$B$79,Nutrients!$EM$79,(IF($A$8=Nutrients!$B$77,Nutrients!$EM$77,Nutrients!$EM$78)))))*T$8))/2000*1000000","v":16.534499999999998},{"$f":"(SUMPRODUCT(U$9:U$229,Nutrients!$EM$8:$EM$228)+(IF($A$7=Nutrients!$B$8,Nutrients!$EM$8,Nutrients!$EM$9)*U$7)+(((IF($A$8=Nutrients!$B$79,Nutrients!$EM$79,(IF($A$8=Nutrients!$B$77,Nutrients!$EM$77,Nutrients!$EM$78)))))*U$8))/2000*1000000","v":16.534499999999998},null,{"$f":"(SUMPRODUCT(W$9:W$229,Nutrients!$EM$8:$EM$228)+(IF($A$7=Nutrients!$B$8,Nutrients!$EM$8,Nutrients!$EM$9)*W$7)+(((IF($A$8=Nutrients!$B$79,Nutrients!$EM$79,(IF($A$8=Nutrients!$B$77,Nutrients!$EM$77,Nutrients!$EM$78)))))*W$8))/2000*1000000","v":33.068999999999996},{"$f":"(SUMPRODUCT(X$9:X$229,Nutrients!$EM$8:$EM$228)+(IF($A$7=Nutrients!$B$8,Nutrients!$EM$8,Nutrients!$EM$9)*X$7)+(((IF($A$8=Nutrients!$B$79,Nutrients!$EM$79,(IF($A$8=Nutrients!$B$77,Nutrients!$EM$77,Nutrients!$EM$78)))))*X$8))/2000*1000000","v":33.068999999999996},{"$f":"(SUMPRODUCT(Y$9:Y$229,Nutrients!$EM$8:$EM$228)+(IF($A$7=Nutrients!$B$8,Nutrients!$EM$8,Nutrients!$EM$9)*Y$7)+(((IF($A$8=Nutrients!$B$79,Nutrients!$EM$79,(IF($A$8=Nutrients!$B$77,Nutrients!$EM$77,Nutrients!$EM$78)))))*Y$8))/2000*1000000","v":27.557499999999997},{"$f":"(SUMPRODUCT(Z$9:Z$229,Nutrients!$EM$8:$EM$228)+(IF($A$7=Nutrients!$B$8,Nutrients!$EM$8,Nutrients!$EM$9)*Z$7)+(((IF($A$8=Nutrients!$B$79,Nutrients!$EM$79,(IF($A$8=Nutrients!$B$77,Nutrients!$EM$77,Nutrients!$EM$78)))))*Z$8))/2000*1000000","v":22.045999999999999},{"$f":"(SUMPRODUCT(AA$9:AA$229,Nutrients!$EM$8:$EM$228)+(IF($A$7=Nutrients!$B$8,Nutrients!$EM$8,Nutrients!$EM$9)*AA$7)+(((IF($A$8=Nutrients!$B$79,Nutrients!$EM$79,(IF($A$8=Nutrients!$B$77,Nutrients!$EM$77,Nutrients!$EM$78)))))*AA$8))/2000*1000000","v":16.534499999999998},{"$f":"(SUMPRODUCT(AB$9:AB$229,Nutrients!$EM$8:$EM$228)+(IF($A$7=Nutrients!$B$8,Nutrients!$EM$8,Nutrients!$EM$9)*AB$7)+(((IF($A$8=Nutrients!$B$79,Nutrients!$EM$79,(IF($A$8=Nutrients!$B$77,Nutrients!$EM$77,Nutrients!$EM$78)))))*AB$8))/2000*1000000","v":16.534499999999998},null,{"$f":"(SUMPRODUCT(AD$9:AD$229,Nutrients!$EM$8:$EM$228)+(IF($A$7=Nutrients!$B$8,Nutrients!$EM$8,Nutrients!$EM$9)*AD$7)+(((IF($A$8=Nutrients!$B$79,Nutrients!$EM$79,(IF($A$8=Nutrients!$B$77,Nutrients!$EM$77,Nutrients!$EM$78)))))*AD$8))/2000*1000000","v":33.068999999999996},{"$f":"(SUMPRODUCT(AE$9:AE$229,Nutrients!$EM$8:$EM$228)+(IF($A$7=Nutrients!$B$8,Nutrients!$EM$8,Nutrients!$EM$9)*AE$7)+(((IF($A$8=Nutrients!$B$79,Nutrients!$EM$79,(IF($A$8=Nutrients!$B$77,Nutrients!$EM$77,Nutrients!$EM$78)))))*AE$8))/2000*1000000","v":33.068999999999996},{"$f":"(SUMPRODUCT(AF$9:AF$229,Nutrients!$EM$8:$EM$228)+(IF($A$7=Nutrients!$B$8,Nutrients!$EM$8,Nutrients!$EM$9)*AF$7)+(((IF($A$8=Nutrients!$B$79,Nutrients!$EM$79,(IF($A$8=Nutrients!$B$77,Nutrients!$EM$77,Nutrients!$EM$78)))))*AF$8))/2000*1000000","v":27.557499999999997},{"$f":"(SUMPRODUCT(AG$9:AG$229,Nutrients!$EM$8:$EM$228)+(IF($A$7=Nutrients!$B$8,Nutrients!$EM$8,Nutrients!$EM$9)*AG$7)+(((IF($A$8=Nutrients!$B$79,Nutrients!$EM$79,(IF($A$8=Nutrients!$B$77,Nutrients!$EM$77,Nutrients!$EM$78)))))*AG$8))/2000*1000000","v":22.045999999999999},{"$f":"(SUMPRODUCT(AH$9:AH$229,Nutrients!$EM$8:$EM$228)+(IF($A$7=Nutrients!$B$8,Nutrients!$EM$8,Nutrients!$EM$9)*AH$7)+(((IF($A$8=Nutrients!$B$79,Nutrients!$EM$79,(IF($A$8=Nutrients!$B$77,Nutrients!$EM$77,Nutrients!$EM$78)))))*AH$8))/2000*1000000","v":16.534499999999998},{"$f":"(SUMPRODUCT(AI$9:AI$229,Nutrients!$EM$8:$EM$228)+(IF($A$7=Nutrients!$B$8,Nutrients!$EM$8,Nutrients!$EM$9)*AI$7)+(((IF($A$8=Nutrients!$B$79,Nutrients!$EM$79,(IF($A$8=Nutrients!$B$77,Nutrients!$EM$77,Nutrients!$EM$78)))))*AI$8))/2000*1000000","v":16.534499999999998},null,{"$f":"(SUMPRODUCT(AK$9:AK$229,Nutrients!$EM$8:$EM$228)+(IF($A$7=Nutrients!$B$8,Nutrients!$EM$8,Nutrients!$EM$9)*AK$7)+(((IF($A$8=Nutrients!$B$79,Nutrients!$EM$79,(IF($A$8=Nutrients!$B$77,Nutrients!$EM$77,Nutrients!$EM$78)))))*AK$8))/2000*1000000","v":33.068999999999996},{"$f":"(SUMPRODUCT(AL$9:AL$229,Nutrients!$EM$8:$EM$228)+(IF($A$7=Nutrients!$B$8,Nutrients!$EM$8,Nutrients!$EM$9)*AL$7)+(((IF($A$8=Nutrients!$B$79,Nutrients!$EM$79,(IF($A$8=Nutrients!$B$77,Nutrients!$EM$77,Nutrients!$EM$78)))))*AL$8))/2000*1000000","v":33.068999999999996},{"$f":"(SUMPRODUCT(AM$9:AM$229,Nutrients!$EM$8:$EM$228)+(IF($A$7=Nutrients!$B$8,Nutrients!$EM$8,Nutrients!$EM$9)*AM$7)+(((IF($A$8=Nutrients!$B$79,Nutrients!$EM$79,(IF($A$8=Nutrients!$B$77,Nutrients!$EM$77,Nutrients!$EM$78)))))*AM$8))/2000*1000000","v":27.557499999999997},{"$f":"(SUMPRODUCT(AN$9:AN$229,Nutrients!$EM$8:$EM$228)+(IF($A$7=Nutrients!$B$8,Nutrients!$EM$8,Nutrients!$EM$9)*AN$7)+(((IF($A$8=Nutrients!$B$79,Nutrients!$EM$79,(IF($A$8=Nutrients!$B$77,Nutrients!$EM$77,Nutrients!$EM$78)))))*AN$8))/2000*1000000","v":22.045999999999999},{"$f":"(SUMPRODUCT(AO$9:AO$229,Nutrients!$EM$8:$EM$228)+(IF($A$7=Nutrients!$B$8,Nutrients!$EM$8,Nutrients!$EM$9)*AO$7)+(((IF($A$8=Nutrients!$B$79,Nutrients!$EM$79,(IF($A$8=Nutrients!$B$77,Nutrients!$EM$77,Nutrients!$EM$78)))))*AO$8))/2000*1000000","v":16.534499999999998},{"$f":"(SUMPRODUCT(AP$9:AP$229,Nutrients!$EM$8:$EM$228)+(IF($A$7=Nutrients!$B$8,Nutrients!$EM$8,Nutrients!$EM$9)*AP$7)+(((IF($A$8=Nutrients!$B$79,Nutrients!$EM$79,(IF($A$8=Nutrients!$B$77,Nutrients!$EM$77,Nutrients!$EM$78)))))*AP$8))/2000*1000000","v":16.534499999999998},null,{"$f":"(SUMPRODUCT(AR$9:AR$229,Nutrients!$EM$8:$EM$228)+(IF($A$7=Nutrients!$B$8,Nutrients!$EM$8,Nutrients!$EM$9)*AR$7)+(((IF($A$8=Nutrients!$B$79,Nutrients!$EM$79,(IF($A$8=Nutrients!$B$77,Nutrients!$EM$77,Nutrients!$EM$78)))))*AR$8))/2000*1000000","v":33.068999999999996},{"$f":"(SUMPRODUCT(AS$9:AS$229,Nutrients!$EM$8:$EM$228)+(IF($A$7=Nutrients!$B$8,Nutrients!$EM$8,Nutrients!$EM$9)*AS$7)+(((IF($A$8=Nutrients!$B$79,Nutrients!$EM$79,(IF($A$8=Nutrients!$B$77,Nutrients!$EM$77,Nutrients!$EM$78)))))*AS$8))/2000*1000000","v":33.068999999999996},{"$f":"(SUMPRODUCT(AT$9:AT$229,Nutrients!$EM$8:$EM$228)+(IF($A$7=Nutrients!$B$8,Nutrients!$EM$8,Nutrients!$EM$9)*AT$7)+(((IF($A$8=Nutrients!$B$79,Nutrients!$EM$79,(IF($A$8=Nutrients!$B$77,Nutrients!$EM$77,Nutrients!$EM$78)))))*AT$8))/2000*1000000","v":27.557499999999997},{"$f":"(SUMPRODUCT(AU$9:AU$229,Nutrients!$EM$8:$EM$228)+(IF($A$7=Nutrients!$B$8,Nutrients!$EM$8,Nutrients!$EM$9)*AU$7)+(((IF($A$8=Nutrients!$B$79,Nutrients!$EM$79,(IF($A$8=Nutrients!$B$77,Nutrients!$EM$77,Nutrients!$EM$78)))))*AU$8))/2000*1000000","v":22.045999999999999},{"$f":"(SUMPRODUCT(AV$9:AV$229,Nutrients!$EM$8:$EM$228)+(IF($A$7=Nutrients!$B$8,Nutrients!$EM$8,Nutrients!$EM$9)*AV$7)+(((IF($A$8=Nutrients!$B$79,Nutrients!$EM$79,(IF($A$8=Nutrients!$B$77,Nutrients!$EM$77,Nutrients!$EM$78)))))*AV$8))/2000*1000000","v":16.534499999999998},{"$f":"(SUMPRODUCT(AW$9:AW$229,Nutrients!$EM$8:$EM$228)+(IF($A$7=Nutrients!$B$8,Nutrients!$EM$8,Nutrients!$EM$9)*AW$7)+(((IF($A$8=Nutrients!$B$79,Nutrients!$EM$79,(IF($A$8=Nutrients!$B$77,Nutrients!$EM$77,Nutrients!$EM$78)))))*AW$8))/2000*1000000","v":16.534499999999998}]
["  Copper added, ppm",{"$f":"(SUMPRODUCT(B$9:B$229,Nutrients!$EN$8:$EN$228)+(IF($A$7=Nutrients!$B$8,Nutrients!$EN$8,Nutrients!$EN$9)*B$7)+(((IF($A$8=Nutrients!$B$79,Nutrients!$EN$79,(IF($A$8=Nutrients!$B$77,Nutrients!$EN$77,Nutrients!$EN$78)))))*B$8))/2000*1000000","v":16.5},{"$f":"(SUMPRODUCT(C$9:C$229,Nutrients!$EN$8:$EN$228)+(IF($A$7=Nutrients!$B$8,Nutrients!$EN$8,Nutrients!$EN$9)*C$7)+(((IF($A$8=Nutrients!$B$79,Nutrients!$EN$79,(IF($A$8=Nutrients!$B$77,Nutrients!$EN$77,Nutrients!$EN$78)))))*C$8))/2000*1000000","v":16.5},{"$f":"(SUMPRODUCT(D$9:D$229,Nutrients!$EN$8:$EN$228)+(IF($A$7=Nutrients!$B$8,Nutrients!$EN$8,Nutrients!$EN$9)*D$7)+(((IF($A$8=Nutrients!$B$79,Nutrients!$EN$79,(IF($A$8=Nutrients!$B$77,Nutrients!$EN$77,Nutrients!$EN$78)))))*D$8))/2000*1000000","v":13.749999999999998},{"$f":"(SUMPRODUCT(E$9:E$229,Nutrients!$EN$8:$EN$228)+(IF($A$7=Nutrients!$B$8,Nutrients!$EN$8,Nutrients!$EN$9)*E$7)+(((IF($A$8=Nutrients!$B$79,Nutrients!$EN$79,(IF($A$8=Nutrients!$B$77,Nutrients!$EN$77,Nutrients!$EN$78)))))*E$8))/2000*1000000","v":11},{"$f":"(SUMPRODUCT(F$9:F$229,Nutrients!$EN$8:$EN$228)+(IF($A$7=Nutrients!$B$8,Nutrients!$EN$8,Nutrients!$EN$9)*F$7)+(((IF($A$8=Nutrients!$B$79,Nutrients!$EN$79,(IF($A$8=Nutrients!$B$77,Nutrients!$EN$77,Nutrients!$EN$78)))))*F$8))/2000*1000000","v":8.25},{"$f":"(SUMPRODUCT(G$9:G$229,Nutrients!$EN$8:$EN$228)+(IF($A$7=Nutrients!$B$8,Nutrients!$EN$8,Nutrients!$EN$9)*G$7)+(((IF($A$8=Nutrients!$B$79,Nutrients!$EN$79,(IF($A$8=Nutrients!$B$77,Nutrients!$EN$77,Nutrients!$EN$78)))))*G$8))/2000*1000000","v":8.25},null,{"$f":"(SUMPRODUCT(I$9:I$229,Nutrients!$EN$8:$EN$228)+(IF($A$7=Nutrients!$B$8,Nutrients!$EN$8,Nutrients!$EN$9)*I$7)+(((IF($A$8=Nutrients!$B$79,Nutrients!$EN$79,(IF($A$8=Nutrients!$B$77,Nutrients!$EN$77,Nutrients!$EN$78)))))*I$8))/2000*1000000","v":16.5},{"$f":"(SUMPRODUCT(J$9:J$229,Nutrients!$EN$8:$EN$228)+(IF($A$7=Nutrients!$B$8,Nutrients!$EN$8,Nutrients!$EN$9)*J$7)+(((IF($A$8=Nutrients!$B$79,Nutrients!$EN$79,(IF($A$8=Nutrients!$B$77,Nutrients!$EN$77,Nutrients!$EN$78)))))*J$8))/2000*1000000","v":16.5},{"$f":"(SUMPRODUCT(K$9:K$229,Nutrients!$EN$8:$EN$228)+(IF($A$7=Nutrients!$B$8,Nutrients!$EN$8,Nutrients!$EN$9)*K$7)+(((IF($A$8=Nutrients!$B$79,Nutrients!$EN$79,(IF($A$8=Nutrients!$B$77,Nutrients!$EN$77,Nutrients!$EN$78)))))*K$8))/2000*1000000","v":13.749999999999998},{"$f":"(SUMPRODUCT(L$9:L$229,Nutrients!$EN$8:$EN$228)+(IF($A$7=Nutrients!$B$8,Nutrients!$EN$8,Nutrients!$EN$9)*L$7)+(((IF($A$8=Nutrients!$B$79,Nutrients!$EN$79,(IF($A$8=Nutrients!$B$77,Nutrients!$EN$77,Nutrients!$EN$78)))))*L$8))/2000*1000000","v":11},{"$f":"(SUMPRODUCT(M$9:M$229,Nutrients!$EN$8:$EN$228)+(IF($A$7=Nutrients!$B$8,Nutrients!$EN$8,Nutrients!$EN$9)*M$7)+(((IF($A$8=Nutrients!$B$79,Nutrients!$EN$79,(IF($A$8=Nutrients!$B$77,Nutrients!$EN$77,Nutrients!$EN$78)))))*M$8))/2000*1000000","v":8.25},{"$f":"(SUMPRODUCT(N$9:N$229,Nutrients!$EN$8:$EN$228)+(IF($A$7=Nutrients!$B$8,Nutrients!$EN$8,Nutrients!$EN$9)*N$7)+(((IF($A$8=Nutrients!$B$79,Nutrients!$EN$79,(IF($A$8=Nutrients!$B$77,Nutrients!$EN$77,Nutrients!$EN$78)))))*N$8))/2000*1000000","v":8.25},null,{"$f":"(SUMPRODUCT(P$9:P$229,Nutrients!$EN$8:$EN$228)+(IF($A$7=Nutrients!$B$8,Nutrients!$EN$8,Nutrients!$EN$9)*P$7)+(((IF($A$8=Nutrients!$B$79,Nutrients!$EN$79,(IF($A$8=Nutrients!$B$77,Nutrients!$EN$77,Nutrients!$EN$78)))))*P$8))/2000*1000000","v":16.5},{"$f":"(SUMPRODUCT(Q$9:Q$229,Nutrients!$EN$8:$EN$228)+(IF($A$7=Nutrients!$B$8,Nutrients!$EN$8,Nutrients!$EN$9)*Q$7)+(((IF($A$8=Nutrients!$B$79,Nutrients!$EN$79,(IF($A$8=Nutrients!$B$77,Nutrients!$EN$77,Nutrients!$EN$78)))))*Q$8))/2000*1000000","v":16.5},{"$f":"(SUMPRODUCT(R$9:R$229,Nutrients!$EN$8:$EN$228)+(IF($A$7=Nutrients!$B$8,Nutrients!$EN$8,Nutrients!$EN$9)*R$7)+(((IF($A$8=Nutrients!$B$79,Nutrients!$EN$79,(IF($A$8=Nutrients!$B$77,Nutrients!$EN$77,Nutrients!$EN$78)))))*R$8))/2000*1000000","v":13.749999999999998},{"$f":"(SUMPRODUCT(S$9:S$229,Nutrients!$EN$8:$EN$228)+(IF($A$7=Nutrients!$B$8,Nutrients!$EN$8,Nutrients!$EN$9)*S$7)+(((IF($A$8=Nutrients!$B$79,Nutrients!$EN$79,(IF($A$8=Nutrients!$B$77,Nutrients!$EN$77,Nutrients!$EN$78)))))*S$8))/2000*1000000","v":11},{"$f":"(SUMPRODUCT(T$9:T$229,Nutrients!$EN$8:$EN$228)+(IF($A$7=Nutrients!$B$8,Nutrients!$EN$8,Nutrients!$EN$9)*T$7)+(((IF($A$8=Nutrients!$B$79,Nutrients!$EN$79,(IF($A$8=Nutrients!$B$77,Nutrients!$EN$77,Nutrients!$EN$78)))))*T$8))/2000*1000000","v":8.25},{"$f":"(SUMPRODUCT(U$9:U$229,Nutrients!$EN$8:$EN$228)+(IF($A$7=Nutrients!$B$8,Nutrients!$EN$8,Nutrients!$EN$9)*U$7)+(((IF($A$8=Nutrients!$B$79,Nutrients!$EN$79,(IF($A$8=Nutrients!$B$77,Nutrients!$EN$77,Nutrients!$EN$78)))))*U$8))/2000*1000000","v":8.25},null,{"$f":"(SUMPRODUCT(W$9:W$229,Nutrients!$EN$8:$EN$228)+(IF($A$7=Nutrients!$B$8,Nutrients!$EN$8,Nutrients!$EN$9)*W$7)+(((IF($A$8=Nutrients!$B$79,Nutrients!$EN$79,(IF($A$8=Nutrients!$B$77,Nutrients!$EN$77,Nutrients!$EN$78)))))*W$8))/2000*1000000","v":16.5},{"$f":"(SUMPRODUCT(X$9:X$229,Nutrients!$EN$8:$EN$228)+(IF($A$7=Nutrients!$B$8,Nutrients!$EN$8,Nutrients!$EN$9)*X$7)+(((IF($A$8=Nutrients!$B$79,Nutrients!$EN$79,(IF($A$8=Nutrients!$B$77,Nutrients!$EN$77,Nutrients!$EN$78)))))*X$8))/2000*1000000","v":16.5},{"$f":"(SUMPRODUCT(Y$9:Y$229,Nutrients!$EN$8:$EN$228)+(IF($A$7=Nutrients!$B$8,Nutrients!$EN$8,Nutrients!$EN$9)*Y$7)+(((IF($A$8=Nutrients!$B$79,Nutrients!$EN$79,(IF($A$8=Nutrients!$B$77,Nutrients!$EN$77,Nutrients!$EN$78)))))*Y$8))/2000*1000000","v":13.749999999999998},{"$f":"(SUMPRODUCT(Z$9:Z$229,Nutrients!$EN$8:$EN$228)+(IF($A$7=Nutrients!$B$8,Nutrients!$EN$8,Nutrients!$EN$9)*Z$7)+(((IF($A$8=Nutrients!$B$79,Nutrients!$EN$79,(IF($A$8=Nutrients!$B$77,Nutrients!$EN$77,Nutrients!$EN$78)))))*Z$8))/2000*1000000","v":11},{"$f":"(SUMPRODUCT(AA$9:AA$229,Nutrients!$EN$8:$EN$228)+(IF($A$7=Nutrients!$B$8,Nutrients!$EN$8,Nutrients!$EN$9)*AA$7)+(((IF($A$8=Nutrients!$B$79,Nutrients!$EN$79,(IF($A$8=Nutrients!$B$77,Nutrients!$EN$77,Nutrients!$EN$78)))))*AA$8))/2000*1000000","v":8.25},{"$f":"(SUMPRODUCT(AB$9:AB$229,Nutrients!$EN$8:$EN$228)+(IF($A$7=Nutrients!$B$8,Nutrients!$EN$8,Nutrients!$EN$9)*AB$7)+(((IF($A$8=Nutrients!$B$79,Nutrients!$EN$79,(IF($A$8=Nutrients!$B$77,Nutrients!$EN$77,Nutrients!$EN$78)))))*AB$8))/2000*1000000","v":8.25},null,{"$f":"(SUMPRODUCT(AD$9:AD$229,Nutrients!$EN$8:$EN$228)+(IF($A$7=Nutrients!$B$8,Nutrients!$EN$8,Nutrients!$EN$9)*AD$7)+(((IF($A$8=Nutrients!$B$79,Nutrients!$EN$79,(IF($A$8=Nutrients!$B$77,Nutrients!$EN$77,Nutrients!$EN$78)))))*AD$8))/2000*1000000","v":16.5},{"$f":"(SUMPRODUCT(AE$9:AE$229,Nutrients!$EN$8:$EN$228)+(IF($A$7=Nutrients!$B$8,Nutrients!$EN$8,Nutrients!$EN$9)*AE$7)+(((IF($A$8=Nutrients!$B$79,Nutrients!$EN$79,(IF($A$8=Nutrients!$B$77,Nutrients!$EN$77,Nutrients!$EN$78)))))*AE$8))/2000*1000000","v":16.5},{"$f":"(SUMPRODUCT(AF$9:AF$229,Nutrients!$EN$8:$EN$228)+(IF($A$7=Nutrients!$B$8,Nutrients!$EN$8,Nutrients!$EN$9)*AF$7)+(((IF($A$8=Nutrients!$B$79,Nutrients!$EN$79,(IF($A$8=Nutrients!$B$77,Nutrients!$EN$77,Nutrients!$EN$78)))))*AF$8))/2000*1000000","v":13.749999999999998},{"$f":"(SUMPRODUCT(AG$9:AG$229,Nutrients!$EN$8:$EN$228)+(IF($A$7=Nutrients!$B$8,Nutrients!$EN$8,Nutrients!$EN$9)*AG$7)+(((IF($A$8=Nutrients!$B$79,Nutrients!$EN$79,(IF($A$8=Nutrients!$B$77,Nutrients!$EN$77,Nutrients!$EN$78)))))*AG$8))/2000*1000000","v":11},{"$f":"(SUMPRODUCT(AH$9:AH$229,Nutrients!$EN$8:$EN$228)+(IF($A$7=Nutrients!$B$8,Nutrients!$EN$8,Nutrients!$EN$9)*AH$7)+(((IF($A$8=Nutrients!$B$79,Nutrients!$EN$79,(IF($A$8=Nutrients!$B$77,Nutrients!$EN$77,Nutrients!$EN$78)))))*AH$8))/2000*1000000","v":8.25},{"$f":"(SUMPRODUCT(AI$9:AI$229,Nutrients!$EN$8:$EN$228)+(IF($A$7=Nutrients!$B$8,Nutrients!$EN$8,Nutrients!$EN$9)*AI$7)+(((IF($A$8=Nutrients!$B$79,Nutrients!$EN$79,(IF($A$8=Nutrients!$B$77,Nutrients!$EN$77,Nutrients!$EN$78)))))*AI$8))/2000*1000000","v":8.25},null,{"$f":"(SUMPRODUCT(AK$9:AK$229,Nutrients!$EN$8:$EN$228)+(IF($A$7=Nutrients!$B$8,Nutrients!$EN$8,Nutrients!$EN$9)*AK$7)+(((IF($A$8=Nutrients!$B$79,Nutrients!$EN$79,(IF($A$8=Nutrients!$B$77,Nutrients!$EN$77,Nutrients!$EN$78)))))*AK$8))/2000*1000000","v":16.5},{"$f":"(SUMPRODUCT(AL$9:AL$229,Nutrients!$EN$8:$EN$228)+(IF($A$7=Nutrients!$B$8,Nutrients!$EN$8,Nutrients!$EN$9)*AL$7)+(((IF($A$8=Nutrients!$B$79,Nutrients!$EN$79,(IF($A$8=Nutrients!$B$77,Nutrients!$EN$77,Nutrients!$EN$78)))))*AL$8))/2000*1000000","v":16.5},{"$f":"(SUMPRODUCT(AM$9:AM$229,Nutrients!$EN$8:$EN$228)+(IF($A$7=Nutrients!$B$8,Nutrients!$EN$8,Nutrients!$EN$9)*AM$7)+(((IF($A$8=Nutrients!$B$79,Nutrients!$EN$79,(IF($A$8=Nutrients!$B$77,Nutrients!$EN$77,Nutrients!$EN$78)))))*AM$8))/2000*1000000","v":13.749999999999998},{"$f":"(SUMPRODUCT(AN$9:AN$229,Nutrients!$EN$8:$EN$228)+(IF($A$7=Nutrients!$B$8,Nutrients!$EN$8,Nutrients!$EN$9)*AN$7)+(((IF($A$8=Nutrients!$B$79,Nutrients!$EN$79,(IF($A$8=Nutrients!$B$77,Nutrients!$EN$77,Nutrients!$EN$78)))))*AN$8))/2000*1000000","v":11},{"$f":"(SUMPRODUCT(AO$9:AO$229,Nutrients!$EN$8:$EN$228)+(IF($A$7=Nutrients!$B$8,Nutrients!$EN$8,Nutrients!$EN$9)*AO$7)+(((IF($A$8=Nutrients!$B$79,Nutrients!$EN$79,(IF($A$8=Nutrients!$B$77,Nutrients!$EN$77,Nutrients!$EN$78)))))*AO$8))/2000*1000000","v":8.25},{"$f":"(SUMPRODUCT(AP$9:AP$229,Nutrients!$EN$8:$EN$228)+(IF($A$7=Nutrients!$B$8,Nutrients!$EN$8,Nutrients!$EN$9)*AP$7)+(((IF($A$8=Nutrients!$B$79,Nutrients!$EN$79,(IF($A$8=Nutrients!$B$77,Nutrients!$EN$77,Nutrients!$EN$78)))))*AP$8))/2000*1000000","v":8.25},null,{"$f":"(SUMPRODUCT(AR$9:AR$229,Nutrients!$EN$8:$EN$228)+(IF($A$7=Nutrients!$B$8,Nutrients!$EN$8,Nutrients!$EN$9)*AR$7)+(((IF($A$8=Nutrients!$B$79,Nutrients!$EN$79,(IF($A$8=Nutrients!$B$77,Nutrients!$EN$77,Nutrients!$EN$78)))))*AR$8))/2000*1000000","v":16.5},{"$f":"(SUMPRODUCT(AS$9:AS$229,Nutrients!$EN$8:$EN$228)+(IF($A$7=Nutrients!$B$8,Nutrients!$EN$8,Nutrients!$EN$9)*AS$7)+(((IF($A$8=Nutrients!$B$79,Nutrients!$EN$79,(IF($A$8=Nutrients!$B$77,Nutrients!$EN$77,Nutrients!$EN$78)))))*AS$8))/2000*1000000","v":16.5},{"$f":"(SUMPRODUCT(AT$9:AT$229,Nutrients!$EN$8:$EN$228)+(IF($A$7=Nutrients!$B$8,Nutrients!$EN$8,Nutrients!$EN$9)*AT$7)+(((IF($A$8=Nutrients!$B$79,Nutrients!$EN$79,(IF($A$8=Nutrients!$B$77,Nutrients!$EN$77,Nutrients!$EN$78)))))*AT$8))/2000*1000000","v":13.749999999999998},{"$f":"(SUMPRODUCT(AU$9:AU$229,Nutrients!$EN$8:$EN$228)+(IF($A$7=Nutrients!$B$8,Nutrients!$EN$8,Nutrients!$EN$9)*AU$7)+(((IF($A$8=Nutrients!$B$79,Nutrients!$EN$79,(IF($A$8=Nutrients!$B$77,Nutrients!$EN$77,Nutrients!$EN$78)))))*AU$8))/2000*1000000","v":11},{"$f":"(SUMPRODUCT(AV$9:AV$229,Nutrients!$EN$8:$EN$228)+(IF($A$7=Nutrients!$B$8,Nutrients!$EN$8,Nutrients!$EN$9)*AV$7)+(((IF($A$8=Nutrients!$B$79,Nutrients!$EN$79,(IF($A$8=Nutrients!$B$77,Nutrients!$EN$77,Nutrients!$EN$78)))))*AV$8))/2000*1000000","v":8.25},{"$f":"(SUMPRODUCT(AW$9:AW$229,Nutrients!$EN$8:$EN$228)+(IF($A$7=Nutrients!$B$8,Nutrients!$EN$8,Nutrients!$EN$9)*AW$7)+(((IF($A$8=Nutrients!$B$79,Nutrients!$EN$79,(IF($A$8=Nutrients!$B$77,Nutrients!$EN$77,Nutrients!$EN$78)))))*AW$8))/2000*1000000","v":8.25}]
["  Iodine added, ppm",{"$f":"(SUMPRODUCT(B$9:B$229,Nutrients!$EO$8:$EO$228)+(IF($A$7=Nutrients!$B$8,Nutrients!$EO$8,Nutrients!$EO$9)*B$7)+(((IF($A$8=Nutrients!$B$79,Nutrients!$EO$79,(IF($A$8=Nutrients!$B$77,Nutrients!$EO$77,Nutrients!$EO$78)))))*B$8))/2000*1000000","v":0.29699999999999999},{"$f":"(SUMPRODUCT(C$9:C$229,Nutrients!$EO$8:$EO$228)+(IF($A$7=Nutrients!$B$8,Nutrients!$EO$8,Nutrients!$EO$9)*C$7)+(((IF($A$8=Nutrients!$B$79,Nutrients!$EO$79,(IF($A$8=Nutrients!$B$77,Nutrients!$EO$77,Nutrients!$EO$78)))))*C$8))/2000*1000000","v":0.29699999999999999},{"$f":"(SUMPRODUCT(D$9:D$229,Nutrients!$EO$8:$EO$228)+(IF($A$7=Nutrients!$B$8,Nutrients!$EO$8,Nutrients!$EO$9)*D$7)+(((IF($A$8=Nutrients!$B$79,Nutrients!$EO$79,(IF($A$8=Nutrients!$B$77,Nutrients!$EO$77,Nutrients!$EO$78)))))*D$8))/2000*1000000","v":0.24750000000000003},{"$f":"(SUMPRODUCT(E$9:E$229,Nutrients!$EO$8:$EO$228)+(IF($A$7=Nutrients!$B$8,Nutrients!$EO$8,Nutrients!$EO$9)*E$7)+(((IF($A$8=Nutrients!$B$79,Nutrients!$EO$79,(IF($A$8=Nutrients!$B$77,Nutrients!$EO$77,Nutrients!$EO$78)))))*E$8))/2000*1000000","v":0.19800000000000001},{"$f":"(SUMPRODUCT(F$9:F$229,Nutrients!$EO$8:$EO$228)+(IF($A$7=Nutrients!$B$8,Nutrients!$EO$8,Nutrients!$EO$9)*F$7)+(((IF($A$8=Nutrients!$B$79,Nutrients!$EO$79,(IF($A$8=Nutrients!$B$77,Nutrients!$EO$77,Nutrients!$EO$78)))))*F$8))/2000*1000000","v":0.14849999999999999},{"$f":"(SUMPRODUCT(G$9:G$229,Nutrients!$EO$8:$EO$228)+(IF($A$7=Nutrients!$B$8,Nutrients!$EO$8,Nutrients!$EO$9)*G$7)+(((IF($A$8=Nutrients!$B$79,Nutrients!$EO$79,(IF($A$8=Nutrients!$B$77,Nutrients!$EO$77,Nutrients!$EO$78)))))*G$8))/2000*1000000","v":0.14849999999999999},null,{"$f":"(SUMPRODUCT(I$9:I$229,Nutrients!$EO$8:$EO$228)+(IF($A$7=Nutrients!$B$8,Nutrients!$EO$8,Nutrients!$EO$9)*I$7)+(((IF($A$8=Nutrients!$B$79,Nutrients!$EO$79,(IF($A$8=Nutrients!$B$77,Nutrients!$EO$77,Nutrients!$EO$78)))))*I$8))/2000*1000000","v":0.29699999999999999},{"$f":"(SUMPRODUCT(J$9:J$229,Nutrients!$EO$8:$EO$228)+(IF($A$7=Nutrients!$B$8,Nutrients!$EO$8,Nutrients!$EO$9)*J$7)+(((IF($A$8=Nutrients!$B$79,Nutrients!$EO$79,(IF($A$8=Nutrients!$B$77,Nutrients!$EO$77,Nutrients!$EO$78)))))*J$8))/2000*1000000","v":0.29699999999999999},{"$f":"(SUMPRODUCT(K$9:K$229,Nutrients!$EO$8:$EO$228)+(IF($A$7=Nutrients!$B$8,Nutrients!$EO$8,Nutrients!$EO$9)*K$7)+(((IF($A$8=Nutrients!$B$79,Nutrients!$EO$79,(IF($A$8=Nutrients!$B$77,Nutrients!$EO$77,Nutrients!$EO$78)))))*K$8))/2000*1000000","v":0.24750000000000003},{"$f":"(SUMPRODUCT(L$9:L$229,Nutrients!$EO$8:$EO$228)+(IF($A$7=Nutrients!$B$8,Nutrients!$EO$8,Nutrients!$EO$9)*L$7)+(((IF($A$8=Nutrients!$B$79,Nutrients!$EO$79,(IF($A$8=Nutrients!$B$77,Nutrients!$EO$77,Nutrients!$EO$78)))))*L$8))/2000*1000000","v":0.19800000000000001},{"$f":"(SUMPRODUCT(M$9:M$229,Nutrients!$EO$8:$EO$228)+(IF($A$7=Nutrients!$B$8,Nutrients!$EO$8,Nutrients!$EO$9)*M$7)+(((IF($A$8=Nutrients!$B$79,Nutrients!$EO$79,(IF($A$8=Nutrients!$B$77,Nutrients!$EO$77,Nutrients!$EO$78)))))*M$8))/2000*1000000","v":0.14849999999999999},{"$f":"(SUMPRODUCT(N$9:N$229,Nutrients!$EO$8:$EO$228)+(IF($A$7=Nutrients!$B$8,Nutrients!$EO$8,Nutrients!$EO$9)*N$7)+(((IF($A$8=Nutrients!$B$79,Nutrients!$EO$79,(IF($A$8=Nutrients!$B$77,Nutrients!$EO$77,Nutrients!$EO$78)))))*N$8))/2000*1000000","v":0.14849999999999999},null,{"$f":"(SUMPRODUCT(P$9:P$229,Nutrients!$EO$8:$EO$228)+(IF($A$7=Nutrients!$B$8,Nutrients!$EO$8,Nutrients!$EO$9)*P$7)+(((IF($A$8=Nutrients!$B$79,Nutrients!$EO$79,(IF($A$8=Nutrients!$B$77,Nutrients!$EO$77,Nutrients!$EO$78)))))*P$8))/2000*1000000","v":0.29699999999999999},{"$f":"(SUMPRODUCT(Q$9:Q$229,Nutrients!$EO$8:$EO$228)+(IF($A$7=Nutrients!$B$8,Nutrients!$EO$8,Nutrients!$EO$9)*Q$7)+(((IF($A$8=Nutrients!$B$79,Nutrients!$EO$79,(IF($A$8=Nutrients!$B$77,Nutrients!$EO$77,Nutrients!$EO$78)))))*Q$8))/2000*1000000","v":0.29699999999999999},{"$f":"(SUMPRODUCT(R$9:R$229,Nutrients!$EO$8:$EO$228)+(IF($A$7=Nutrients!$B$8,Nutrients!$EO$8,Nutrients!$EO$9)*R$7)+(((IF($A$8=Nutrients!$B$79,Nutrients!$EO$79,(IF($A$8=Nutrients!$B$77,Nutrients!$EO$77,Nutrients!$EO$78)))))*R$8))/2000*1000000","v":0.24750000000000003},{"$f":"(SUMPRODUCT(S$9:S$229,Nutrients!$EO$8:$EO$228)+(IF($A$7=Nutrients!$B$8,Nutrients!$EO$8,Nutrients!$EO$9)*S$7)+(((IF($A$8=Nutrients!$B$79,Nutrients!$EO$79,(IF($A$8=Nutrients!$B$77,Nutrients!$EO$77,Nutrients!$EO$78)))))*S$8))/2000*1000000","v":0.19800000000000001},{"$f":"(SUMPRODUCT(T$9:T$229,Nutrients!$EO$8:$EO$228)+(IF($A$7=Nutrients!$B$8,Nutrients!$EO$8,Nutrients!$EO$9)*T$7)+(((IF($A$8=Nutrients!$B$79,Nutrients!$EO$79,(IF($A$8=Nutrients!$B$77,Nutrients!$EO$77,Nutrients!$EO$78)))))*T$8))/2000*1000000","v":0.14849999999999999},{"$f":"(SUMPRODUCT(U$9:U$229,Nutrients!$EO$8:$EO$228)+(IF($A$7=Nutrients!$B$8,Nutrients!$EO$8,Nutrients!$EO$9)*U$7)+(((IF($A$8=Nutrients!$B$79,Nutrients!$EO$79,(IF($A$8=Nutrients!$B$77,Nutrients!$EO$77,Nutrients!$EO$78)))))*U$8))/2000*1000000","v":0.14849999999999999},null,{"$f":"(SUMPRODUCT(W$9:W$229,Nutrients!$EO$8:$EO$228)+(IF($A$7=Nutrients!$B$8,Nutrients!$EO$8,Nutrients!$EO$9)*W$7)+(((IF($A$8=Nutrients!$B$79,Nutrients!$EO$79,(IF($A$8=Nutrients!$B$77,Nutrients!$EO$77,Nutrients!$EO$78)))))*W$8))/2000*1000000","v":0.29699999999999999},{"$f":"(SUMPRODUCT(X$9:X$229,Nutrients!$EO$8:$EO$228)+(IF($A$7=Nutrients!$B$8,Nutrients!$EO$8,Nutrients!$EO$9)*X$7)+(((IF($A$8=Nutrients!$B$79,Nutrients!$EO$79,(IF($A$8=Nutrients!$B$77,Nutrients!$EO$77,Nutrients!$EO$78)))))*X$8))/2000*1000000","v":0.29699999999999999},{"$f":"(SUMPRODUCT(Y$9:Y$229,Nutrients!$EO$8:$EO$228)+(IF($A$7=Nutrients!$B$8,Nutrients!$EO$8,Nutrients!$EO$9)*Y$7)+(((IF($A$8=Nutrients!$B$79,Nutrients!$EO$79,(IF($A$8=Nutrients!$B$77,Nutrients!$EO$77,Nutrients!$EO$78)))))*Y$8))/2000*1000000","v":0.24750000000000003},{"$f":"(SUMPRODUCT(Z$9:Z$229,Nutrients!$EO$8:$EO$228)+(IF($A$7=Nutrients!$B$8,Nutrients!$EO$8,Nutrients!$EO$9)*Z$7)+(((IF($A$8=Nutrients!$B$79,Nutrients!$EO$79,(IF($A$8=Nutrients!$B$77,Nutrients!$EO$77,Nutrients!$EO$78)))))*Z$8))/2000*1000000","v":0.19800000000000001},{"$f":"(SUMPRODUCT(AA$9:AA$229,Nutrients!$EO$8:$EO$228)+(IF($A$7=Nutrients!$B$8,Nutrients!$EO$8,Nutrients!$EO$9)*AA$7)+(((IF($A$8=Nutrients!$B$79,Nutrients!$EO$79,(IF($A$8=Nutrients!$B$77,Nutrients!$EO$77,Nutrients!$EO$78)))))*AA$8))/2000*1000000","v":0.14849999999999999},{"$f":"(SUMPRODUCT(AB$9:AB$229,Nutrients!$EO$8:$EO$228)+(IF($A$7=Nutrients!$B$8,Nutrients!$EO$8,Nutrients!$EO$9)*AB$7)+(((IF($A$8=Nutrients!$B$79,Nutrients!$EO$79,(IF($A$8=Nutrients!$B$77,Nutrients!$EO$77,Nutrients!$EO$78)))))*AB$8))/2000*1000000","v":0.14849999999999999},null,{"$f":"(SUMPRODUCT(AD$9:AD$229,Nutrients!$EO$8:$EO$228)+(IF($A$7=Nutrients!$B$8,Nutrients!$EO$8,Nutrients!$EO$9)*AD$7)+(((IF($A$8=Nutrients!$B$79,Nutrients!$EO$79,(IF($A$8=Nutrients!$B$77,Nutrients!$EO$77,Nutrients!$EO$78)))))*AD$8))/2000*1000000","v":0.29699999999999999},{"$f":"(SUMPRODUCT(AE$9:AE$229,Nutrients!$EO$8:$EO$228)+(IF($A$7=Nutrients!$B$8,Nutrients!$EO$8,Nutrients!$EO$9)*AE$7)+(((IF($A$8=Nutrients!$B$79,Nutrients!$EO$79,(IF($A$8=Nutrients!$B$77,Nutrients!$EO$77,Nutrients!$EO$78)))))*AE$8))/2000*1000000","v":0.29699999999999999},{"$f":"(SUMPRODUCT(AF$9:AF$229,Nutrients!$EO$8:$EO$228)+(IF($A$7=Nutrients!$B$8,Nutrients!$EO$8,Nutrients!$EO$9)*AF$7)+(((IF($A$8=Nutrients!$B$79,Nutrients!$EO$79,(IF($A$8=Nutrients!$B$77,Nutrients!$EO$77,Nutrients!$EO$78)))))*AF$8))/2000*1000000","v":0.24750000000000003},{"$f":"(SUMPRODUCT(AG$9:AG$229,Nutrients!$EO$8:$EO$228)+(IF($A$7=Nutrients!$B$8,Nutrients!$EO$8,Nutrients!$EO$9)*AG$7)+(((IF($A$8=Nutrients!$B$79,Nutrients!$EO$79,(IF($A$8=Nutrients!$B$77,Nutrients!$EO$77,Nutrients!$EO$78)))))*AG$8))/2000*1000000","v":0.19800000000000001},{"$f":"(SUMPRODUCT(AH$9:AH$229,Nutrients!$EO$8:$EO$228)+(IF($A$7=Nutrients!$B$8,Nutrients!$EO$8,Nutrients!$EO$9)*AH$7)+(((IF($A$8=Nutrients!$B$79,Nutrients!$EO$79,(IF($A$8=Nutrients!$B$77,Nutrients!$EO$77,Nutrients!$EO$78)))))*AH$8))/2000*1000000","v":0.14849999999999999},{"$f":"(SUMPRODUCT(AI$9:AI$229,Nutrients!$EO$8:$EO$228)+(IF($A$7=Nutrients!$B$8,Nutrients!$EO$8,Nutrients!$EO$9)*AI$7)+(((IF($A$8=Nutrients!$B$79,Nutrients!$EO$79,(IF($A$8=Nutrients!$B$77,Nutrients!$EO$77,Nutrients!$EO$78)))))*AI$8))/2000*1000000","v":0.14849999999999999},null,{"$f":"(SUMPRODUCT(AK$9:AK$229,Nutrients!$EO$8:$EO$228)+(IF($A$7=Nutrients!$B$8,Nutrients!$EO$8,Nutrients!$EO$9)*AK$7)+(((IF($A$8=Nutrients!$B$79,Nutrients!$EO$79,(IF($A$8=Nutrients!$B$77,Nutrients!$EO$77,Nutrients!$EO$78)))))*AK$8))/2000*1000000","v":0.29699999999999999},{"$f":"(SUMPRODUCT(AL$9:AL$229,Nutrients!$EO$8:$EO$228)+(IF($A$7=Nutrients!$B$8,Nutrients!$EO$8,Nutrients!$EO$9)*AL$7)+(((IF($A$8=Nutrients!$B$79,Nutrients!$EO$79,(IF($A$8=Nutrients!$B$77,Nutrients!$EO$77,Nutrients!$EO$78)))))*AL$8))/2000*1000000","v":0.29699999999999999},{"$f":"(SUMPRODUCT(AM$9:AM$229,Nutrients!$EO$8:$EO$228)+(IF($A$7=Nutrients!$B$8,Nutrients!$EO$8,Nutrients!$EO$9)*AM$7)+(((IF($A$8=Nutrients!$B$79,Nutrients!$EO$79,(IF($A$8=Nutrients!$B$77,Nutrients!$EO$77,Nutrients!$EO$78)))))*AM$8))/2000*1000000","v":0.24750000000000003},{"$f":"(SUMPRODUCT(AN$9:AN$229,Nutrients!$EO$8:$EO$228)+(IF($A$7=Nutrients!$B$8,Nutrients!$EO$8,Nutrients!$EO$9)*AN$7)+(((IF($A$8=Nutrients!$B$79,Nutrients!$EO$79,(IF($A$8=Nutrients!$B$77,Nutrients!$EO$77,Nutrients!$EO$78)))))*AN$8))/2000*1000000","v":0.19800000000000001},{"$f":"(SUMPRODUCT(AO$9:AO$229,Nutrients!$EO$8:$EO$228)+(IF($A$7=Nutrients!$B$8,Nutrients!$EO$8,Nutrients!$EO$9)*AO$7)+(((IF($A$8=Nutrients!$B$79,Nutrients!$EO$79,(IF($A$8=Nutrients!$B$77,Nutrients!$EO$77,Nutrients!$EO$78)))))*AO$8))/2000*1000000","v":0.14849999999999999},{"$f":"(SUMPRODUCT(AP$9:AP$229,Nutrients!$EO$8:$EO$228)+(IF($A$7=Nutrients!$B$8,Nutrients!$EO$8,Nutrients!$EO$9)*AP$7)+(((IF($A$8=Nutrients!$B$79,Nutrients!$EO$79,(IF($A$8=Nutrients!$B$77,Nutrients!$EO$77,Nutrients!$EO$78)))))*AP$8))/2000*1000000","v":0.14849999999999999},null,{"$f":"(SUMPRODUCT(AR$9:AR$229,Nutrients!$EO$8:$EO$228)+(IF($A$7=Nutrients!$B$8,Nutrients!$EO$8,Nutrients!$EO$9)*AR$7)+(((IF($A$8=Nutrients!$B$79,Nutrients!$EO$79,(IF($A$8=Nutrients!$B$77,Nutrients!$EO$77,Nutrients!$EO$78)))))*AR$8))/2000*1000000","v":0.29699999999999999},{"$f":"(SUMPRODUCT(AS$9:AS$229,Nutrients!$EO$8:$EO$228)+(IF($A$7=Nutrients!$B$8,Nutrients!$EO$8,Nutrients!$EO$9)*AS$7)+(((IF($A$8=Nutrients!$B$79,Nutrients!$EO$79,(IF($A$8=Nutrients!$B$77,Nutrients!$EO$77,Nutrients!$EO$78)))))*AS$8))/2000*1000000","v":0.29699999999999999},{"$f":"(SUMPRODUCT(AT$9:AT$229,Nutrients!$EO$8:$EO$228)+(IF($A$7=Nutrients!$B$8,Nutrients!$EO$8,Nutrients!$EO$9)*AT$7)+(((IF($A$8=Nutrients!$B$79,Nutrients!$EO$79,(IF($A$8=Nutrients!$B$77,Nutrients!$EO$77,Nutrients!$EO$78)))))*AT$8))/2000*1000000","v":0.24750000000000003},{"$f":"(SUMPRODUCT(AU$9:AU$229,Nutrients!$EO$8:$EO$228)+(IF($A$7=Nutrients!$B$8,Nutrients!$EO$8,Nutrients!$EO$9)*AU$7)+(((IF($A$8=Nutrients!$B$79,Nutrients!$EO$79,(IF($A$8=Nutrients!$B$77,Nutrients!$EO$77,Nutrients!$EO$78)))))*AU$8))/2000*1000000","v":0.19800000000000001},{"$f":"(SUMPRODUCT(AV$9:AV$229,Nutrients!$EO$8:$EO$228)+(IF($A$7=Nutrients!$B$8,Nutrients!$EO$8,Nutrients!$EO$9)*AV$7)+(((IF($A$8=Nutrients!$B$79,Nutrients!$EO$79,(IF($A$8=Nutrients!$B$77,Nutrients!$EO$77,Nutrients!$EO$78)))))*AV$8))/2000*1000000","v":0.14849999999999999},{"$f":"(SUMPRODUCT(AW$9:AW$229,Nutrients!$EO$8:$EO$228)+(IF($A$7=Nutrients!$B$8,Nutrients!$EO$8,Nutrients!$EO$9)*AW$7)+(((IF($A$8=Nutrients!$B$79,Nutrients!$EO$79,(IF($A$8=Nutrients!$B$77,Nutrients!$EO$77,Nutrients!$EO$78)))))*AW$8))/2000*1000000","v":0.14849999999999999}]
["  Selenium added, ppm",{"$f":"(SUMPRODUCT(B$9:B$229,Nutrients!$EP$8:$EP$228)+(IF($A$7=Nutrients!$B$8,Nutrients!$EP$8,Nutrients!$EP$9)*B$7)+(((IF($A$8=Nutrients!$B$79,Nutrients!$EP$79,(IF($A$8=Nutrients!$B$77,Nutrients!$EP$77,Nutrients!$EP$78)))))*B$8))/2000*1000000","v":0.29699999999999999},{"$f":"(SUMPRODUCT(C$9:C$229,Nutrients!$EP$8:$EP$228)+(IF($A$7=Nutrients!$B$8,Nutrients!$EP$8,Nutrients!$EP$9)*C$7)+(((IF($A$8=Nutrients!$B$79,Nutrients!$EP$79,(IF($A$8=Nutrients!$B$77,Nutrients!$EP$77,Nutrients!$EP$78)))))*C$8))/2000*1000000","v":0.29699999999999999},{"$f":"(SUMPRODUCT(D$9:D$229,Nutrients!$EP$8:$EP$228)+(IF($A$7=Nutrients!$B$8,Nutrients!$EP$8,Nutrients!$EP$9)*D$7)+(((IF($A$8=Nutrients!$B$79,Nutrients!$EP$79,(IF($A$8=Nutrients!$B$77,Nutrients!$EP$77,Nutrients!$EP$78)))))*D$8))/2000*1000000","v":0.24750000000000003},{"$f":"(SUMPRODUCT(E$9:E$229,Nutrients!$EP$8:$EP$228)+(IF($A$7=Nutrients!$B$8,Nutrients!$EP$8,Nutrients!$EP$9)*E$7)+(((IF($A$8=Nutrients!$B$79,Nutrients!$EP$79,(IF($A$8=Nutrients!$B$77,Nutrients!$EP$77,Nutrients!$EP$78)))))*E$8))/2000*1000000","v":0.19800000000000001},{"$f":"(SUMPRODUCT(F$9:F$229,Nutrients!$EP$8:$EP$228)+(IF($A$7=Nutrients!$B$8,Nutrients!$EP$8,Nutrients!$EP$9)*F$7)+(((IF($A$8=Nutrients!$B$79,Nutrients!$EP$79,(IF($A$8=Nutrients!$B$77,Nutrients!$EP$77,Nutrients!$EP$78)))))*F$8))/2000*1000000","v":0.14849999999999999},{"$f":"(SUMPRODUCT(G$9:G$229,Nutrients!$EP$8:$EP$228)+(IF($A$7=Nutrients!$B$8,Nutrients!$EP$8,Nutrients!$EP$9)*G$7)+(((IF($A$8=Nutrients!$B$79,Nutrients!$EP$79,(IF($A$8=Nutrients!$B$77,Nutrients!$EP$77,Nutrients!$EP$78)))))*G$8))/2000*1000000","v":0.14849999999999999},null,{"$f":"(SUMPRODUCT(I$9:I$229,Nutrients!$EP$8:$EP$228)+(IF($A$7=Nutrients!$B$8,Nutrients!$EP$8,Nutrients!$EP$9)*I$7)+(((IF($A$8=Nutrients!$B$79,Nutrients!$EP$79,(IF($A$8=Nutrients!$B$77,Nutrients!$EP$77,Nutrients!$EP$78)))))*I$8))/2000*1000000","v":0.29699999999999999},{"$f":"(SUMPRODUCT(J$9:J$229,Nutrients!$EP$8:$EP$228)+(IF($A$7=Nutrients!$B$8,Nutrients!$EP$8,Nutrients!$EP$9)*J$7)+(((IF($A$8=Nutrients!$B$79,Nutrients!$EP$79,(IF($A$8=Nutrients!$B$77,Nutrients!$EP$77,Nutrients!$EP$78)))))*J$8))/2000*1000000","v":0.29699999999999999},{"$f":"(SUMPRODUCT(K$9:K$229,Nutrients!$EP$8:$EP$228)+(IF($A$7=Nutrients!$B$8,Nutrients!$EP$8,Nutrients!$EP$9)*K$7)+(((IF($A$8=Nutrients!$B$79,Nutrients!$EP$79,(IF($A$8=Nutrients!$B$77,Nutrients!$EP$77,Nutrients!$EP$78)))))*K$8))/2000*1000000","v":0.24750000000000003},{"$f":"(SUMPRODUCT(L$9:L$229,Nutrients!$EP$8:$EP$228)+(IF($A$7=Nutrients!$B$8,Nutrients!$EP$8,Nutrients!$EP$9)*L$7)+(((IF($A$8=Nutrients!$B$79,Nutrients!$EP$79,(IF($A$8=Nutrients!$B$77,Nutrients!$EP$77,Nutrients!$EP$78)))))*L$8))/2000*1000000","v":0.19800000000000001},{"$f":"(SUMPRODUCT(M$9:M$229,Nutrients!$EP$8:$EP$228)+(IF($A$7=Nutrients!$B$8,Nutrients!$EP$8,Nutrients!$EP$9)*M$7)+(((IF($A$8=Nutrients!$B$79,Nutrients!$EP$79,(IF($A$8=Nutrients!$B$77,Nutrients!$EP$77,Nutrients!$EP$78)))))*M$8))/2000*1000000","v":0.14849999999999999},{"$f":"(SUMPRODUCT(N$9:N$229,Nutrients!$EP$8:$EP$228)+(IF($A$7=Nutrients!$B$8,Nutrients!$EP$8,Nutrients!$EP$9)*N$7)+(((IF($A$8=Nutrients!$B$79,Nutrients!$EP$79,(IF($A$8=Nutrients!$B$77,Nutrients!$EP$77,Nutrients!$EP$78)))))*N$8))/2000*1000000","v":0.14849999999999999},null,{"$f":"(SUMPRODUCT(P$9:P$229,Nutrients!$EP$8:$EP$228)+(IF($A$7=Nutrients!$B$8,Nutrients!$EP$8,Nutrients!$EP$9)*P$7)+(((IF($A$8=Nutrients!$B$79,Nutrients!$EP$79,(IF($A$8=Nutrients!$B$77,Nutrients!$EP$77,Nutrients!$EP$78)))))*P$8))/2000*1000000","v":0.29699999999999999},{"$f":"(SUMPRODUCT(Q$9:Q$229,Nutrients!$EP$8:$EP$228)+(IF($A$7=Nutrients!$B$8,Nutrients!$EP$8,Nutrients!$EP$9)*Q$7)+(((IF($A$8=Nutrients!$B$79,Nutrients!$EP$79,(IF($A$8=Nutrients!$B$77,Nutrients!$EP$77,Nutrients!$EP$78)))))*Q$8))/2000*1000000","v":0.29699999999999999},{"$f":"(SUMPRODUCT(R$9:R$229,Nutrients!$EP$8:$EP$228)+(IF($A$7=Nutrients!$B$8,Nutrients!$EP$8,Nutrients!$EP$9)*R$7)+(((IF($A$8=Nutrients!$B$79,Nutrients!$EP$79,(IF($A$8=Nutrients!$B$77,Nutrients!$EP$77,Nutrients!$EP$78)))))*R$8))/2000*1000000","v":0.24750000000000003},{"$f":"(SUMPRODUCT(S$9:S$229,Nutrients!$EP$8:$EP$228)+(IF($A$7=Nutrients!$B$8,Nutrients!$EP$8,Nutrients!$EP$9)*S$7)+(((IF($A$8=Nutrients!$B$79,Nutrients!$EP$79,(IF($A$8=Nutrients!$B$77,Nutrients!$EP$77,Nutrients!$EP$78)))))*S$8))/2000*1000000","v":0.19800000000000001},{"$f":"(SUMPRODUCT(T$9:T$229,Nutrients!$EP$8:$EP$228)+(IF($A$7=Nutrients!$B$8,Nutrients!$EP$8,Nutrients!$EP$9)*T$7)+(((IF($A$8=Nutrients!$B$79,Nutrients!$EP$79,(IF($A$8=Nutrients!$B$77,Nutrients!$EP$77,Nutrients!$EP$78)))))*T$8))/2000*1000000","v":0.14849999999999999},{"$f":"(SUMPRODUCT(U$9:U$229,Nutrients!$EP$8:$EP$228)+(IF($A$7=Nutrients!$B$8,Nutrients!$EP$8,Nutrients!$EP$9)*U$7)+(((IF($A$8=Nutrients!$B$79,Nutrients!$EP$79,(IF($A$8=Nutrients!$B$77,Nutrients!$EP$77,Nutrients!$EP$78)))))*U$8))/2000*1000000","v":0.14849999999999999},null,{"$f":"(SUMPRODUCT(W$9:W$229,Nutrients!$EP$8:$EP$228)+(IF($A$7=Nutrients!$B$8,Nutrients!$EP$8,Nutrients!$EP$9)*W$7)+(((IF($A$8=Nutrients!$B$79,Nutrients!$EP$79,(IF($A$8=Nutrients!$B$77,Nutrients!$EP$77,Nutrients!$EP$78)))))*W$8))/2000*1000000","v":0.29699999999999999},{"$f":"(SUMPRODUCT(X$9:X$229,Nutrients!$EP$8:$EP$228)+(IF($A$7=Nutrients!$B$8,Nutrients!$EP$8,Nutrients!$EP$9)*X$7)+(((IF($A$8=Nutrients!$B$79,Nutrients!$EP$79,(IF($A$8=Nutrients!$B$77,Nutrients!$EP$77,Nutrients!$EP$78)))))*X$8))/2000*1000000","v":0.29699999999999999},{"$f":"(SUMPRODUCT(Y$9:Y$229,Nutrients!$EP$8:$EP$228)+(IF($A$7=Nutrients!$B$8,Nutrients!$EP$8,Nutrients!$EP$9)*Y$7)+(((IF($A$8=Nutrients!$B$79,Nutrients!$EP$79,(IF($A$8=Nutrients!$B$77,Nutrients!$EP$77,Nutrients!$EP$78)))))*Y$8))/2000*1000000","v":0.24750000000000003},{"$f":"(SUMPRODUCT(Z$9:Z$229,Nutrients!$EP$8:$EP$228)+(IF($A$7=Nutrients!$B$8,Nutrients!$EP$8,Nutrients!$EP$9)*Z$7)+(((IF($A$8=Nutrients!$B$79,Nutrients!$EP$79,(IF($A$8=Nutrients!$B$77,Nutrients!$EP$77,Nutrients!$EP$78)))))*Z$8))/2000*1000000","v":0.19800000000000001},{"$f":"(SUMPRODUCT(AA$9:AA$229,Nutrients!$EP$8:$EP$228)+(IF($A$7=Nutrients!$B$8,Nutrients!$EP$8,Nutrients!$EP$9)*AA$7)+(((IF($A$8=Nutrients!$B$79,Nutrients!$EP$79,(IF($A$8=Nutrients!$B$77,Nutrients!$EP$77,Nutrients!$EP$78)))))*AA$8))/2000*1000000","v":0.14849999999999999},{"$f":"(SUMPRODUCT(AB$9:AB$229,Nutrients!$EP$8:$EP$228)+(IF($A$7=Nutrients!$B$8,Nutrients!$EP$8,Nutrients!$EP$9)*AB$7)+(((IF($A$8=Nutrients!$B$79,Nutrients!$EP$79,(IF($A$8=Nutrients!$B$77,Nutrients!$EP$77,Nutrients!$EP$78)))))*AB$8))/2000*1000000","v":0.14849999999999999},null,{"$f":"(SUMPRODUCT(AD$9:AD$229,Nutrients!$EP$8:$EP$228)+(IF($A$7=Nutrients!$B$8,Nutrients!$EP$8,Nutrients!$EP$9)*AD$7)+(((IF($A$8=Nutrients!$B$79,Nutrients!$EP$79,(IF($A$8=Nutrients!$B$77,Nutrients!$EP$77,Nutrients!$EP$78)))))*AD$8))/2000*1000000","v":0.29699999999999999},{"$f":"(SUMPRODUCT(AE$9:AE$229,Nutrients!$EP$8:$EP$228)+(IF($A$7=Nutrients!$B$8,Nutrients!$EP$8,Nutrients!$EP$9)*AE$7)+(((IF($A$8=Nutrients!$B$79,Nutrients!$EP$79,(IF($A$8=Nutrients!$B$77,Nutrients!$EP$77,Nutrients!$EP$78)))))*AE$8))/2000*1000000","v":0.29699999999999999},{"$f":"(SUMPRODUCT(AF$9:AF$229,Nutrients!$EP$8:$EP$228)+(IF($A$7=Nutrients!$B$8,Nutrients!$EP$8,Nutrients!$EP$9)*AF$7)+(((IF($A$8=Nutrients!$B$79,Nutrients!$EP$79,(IF($A$8=Nutrients!$B$77,Nutrients!$EP$77,Nutrients!$EP$78)))))*AF$8))/2000*1000000","v":0.24750000000000003},{"$f":"(SUMPRODUCT(AG$9:AG$229,Nutrients!$EP$8:$EP$228)+(IF($A$7=Nutrients!$B$8,Nutrients!$EP$8,Nutrients!$EP$9)*AG$7)+(((IF($A$8=Nutrients!$B$79,Nutrients!$EP$79,(IF($A$8=Nutrients!$B$77,Nutrients!$EP$77,Nutrients!$EP$78)))))*AG$8))/2000*1000000","v":0.19800000000000001},{"$f":"(SUMPRODUCT(AH$9:AH$229,Nutrients!$EP$8:$EP$228)+(IF($A$7=Nutrients!$B$8,Nutrients!$EP$8,Nutrients!$EP$9)*AH$7)+(((IF($A$8=Nutrients!$B$79,Nutrients!$EP$79,(IF($A$8=Nutrients!$B$77,Nutrients!$EP$77,Nutrients!$EP$78)))))*AH$8))/2000*1000000","v":0.14849999999999999},{"$f":"(SUMPRODUCT(AI$9:AI$229,Nutrients!$EP$8:$EP$228)+(IF($A$7=Nutrients!$B$8,Nutrients!$EP$8,Nutrients!$EP$9)*AI$7)+(((IF($A$8=Nutrients!$B$79,Nutrients!$EP$79,(IF($A$8=Nutrients!$B$77,Nutrients!$EP$77,Nutrients!$EP$78)))))*AI$8))/2000*1000000","v":0.14849999999999999},null,{"$f":"(SUMPRODUCT(AK$9:AK$229,Nutrients!$EP$8:$EP$228)+(IF($A$7=Nutrients!$B$8,Nutrients!$EP$8,Nutrients!$EP$9)*AK$7)+(((IF($A$8=Nutrients!$B$79,Nutrients!$EP$79,(IF($A$8=Nutrients!$B$77,Nutrients!$EP$77,Nutrients!$EP$78)))))*AK$8))/2000*1000000","v":0.29699999999999999},{"$f":"(SUMPRODUCT(AL$9:AL$229,Nutrients!$EP$8:$EP$228)+(IF($A$7=Nutrients!$B$8,Nutrients!$EP$8,Nutrients!$EP$9)*AL$7)+(((IF($A$8=Nutrients!$B$79,Nutrients!$EP$79,(IF($A$8=Nutrients!$B$77,Nutrients!$EP$77,Nutrients!$EP$78)))))*AL$8))/2000*1000000","v":0.29699999999999999},{"$f":"(SUMPRODUCT(AM$9:AM$229,Nutrients!$EP$8:$EP$228)+(IF($A$7=Nutrients!$B$8,Nutrients!$EP$8,Nutrients!$EP$9)*AM$7)+(((IF($A$8=Nutrients!$B$79,Nutrients!$EP$79,(IF($A$8=Nutrients!$B$77,Nutrients!$EP$77,Nutrients!$EP$78)))))*AM$8))/2000*1000000","v":0.24750000000000003},{"$f":"(SUMPRODUCT(AN$9:AN$229,Nutrients!$EP$8:$EP$228)+(IF($A$7=Nutrients!$B$8,Nutrients!$EP$8,Nutrients!$EP$9)*AN$7)+(((IF($A$8=Nutrients!$B$79,Nutrients!$EP$79,(IF($A$8=Nutrients!$B$77,Nutrients!$EP$77,Nutrients!$EP$78)))))*AN$8))/2000*1000000","v":0.19800000000000001},{"$f":"(SUMPRODUCT(AO$9:AO$229,Nutrients!$EP$8:$EP$228)+(IF($A$7=Nutrients!$B$8,Nutrients!$EP$8,Nutrients!$EP$9)*AO$7)+(((IF($A$8=Nutrients!$B$79,Nutrients!$EP$79,(IF($A$8=Nutrients!$B$77,Nutrients!$EP$77,Nutrients!$EP$78)))))*AO$8))/2000*1000000","v":0.14849999999999999},{"$f":"(SUMPRODUCT(AP$9:AP$229,Nutrients!$EP$8:$EP$228)+(IF($A$7=Nutrients!$B$8,Nutrients!$EP$8,Nutrients!$EP$9)*AP$7)+(((IF($A$8=Nutrients!$B$79,Nutrients!$EP$79,(IF($A$8=Nutrients!$B$77,Nutrients!$EP$77,Nutrients!$EP$78)))))*AP$8))/2000*1000000","v":0.14849999999999999},null,{"$f":"(SUMPRODUCT(AR$9:AR$229,Nutrients!$EP$8:$EP$228)+(IF($A$7=Nutrients!$B$8,Nutrients!$EP$8,Nutrients!$EP$9)*AR$7)+(((IF($A$8=Nutrients!$B$79,Nutrients!$EP$79,(IF($A$8=Nutrients!$B$77,Nutrients!$EP$77,Nutrients!$EP$78)))))*AR$8))/2000*1000000","v":0.29699999999999999},{"$f":"(SUMPRODUCT(AS$9:AS$229,Nutrients!$EP$8:$EP$228)+(IF($A$7=Nutrients!$B$8,Nutrients!$EP$8,Nutrients!$EP$9)*AS$7)+(((IF($A$8=Nutrients!$B$79,Nutrients!$EP$79,(IF($A$8=Nutrients!$B$77,Nutrients!$EP$77,Nutrients!$EP$78)))))*AS$8))/2000*1000000","v":0.29699999999999999},{"$f":"(SUMPRODUCT(AT$9:AT$229,Nutrients!$EP$8:$EP$228)+(IF($A$7=Nutrients!$B$8,Nutrients!$EP$8,Nutrients!$EP$9)*AT$7)+(((IF($A$8=Nutrients!$B$79,Nutrients!$EP$79,(IF($A$8=Nutrients!$B$77,Nutrients!$EP$77,Nutrients!$EP$78)))))*AT$8))/2000*1000000","v":0.24750000000000003},{"$f":"(SUMPRODUCT(AU$9:AU$229,Nutrients!$EP$8:$EP$228)+(IF($A$7=Nutrients!$B$8,Nutrients!$EP$8,Nutrients!$EP$9)*AU$7)+(((IF($A$8=Nutrients!$B$79,Nutrients!$EP$79,(IF($A$8=Nutrients!$B$77,Nutrients!$EP$77,Nutrients!$EP$78)))))*AU$8))/2000*1000000","v":0.19800000000000001},{"$f":"(SUMPRODUCT(AV$9:AV$229,Nutrients!$EP$8:$EP$228)+(IF($A$7=Nutrients!$B$8,Nutrients!$EP$8,Nutrients!$EP$9)*AV$7)+(((IF($A$8=Nutrients!$B$79,Nutrients!$EP$79,(IF($A$8=Nutrients!$B$77,Nutrients!$EP$77,Nutrients!$EP$78)))))*AV$8))/2000*1000000","v":0.14849999999999999},{"$f":"(SUMPRODUCT(AW$9:AW$229,Nutrients!$EP$8:$EP$228)+(IF($A$7=Nutrients!$B$8,Nutrients!$EP$8,Nutrients!$EP$9)*AW$7)+(((IF($A$8=Nutrients!$B$79,Nutrients!$EP$79,(IF($A$8=Nutrients!$B$77,Nutrients!$EP$77,Nutrients!$EP$78)))))*AW$8))/2000*1000000","v":0.14849999999999999}]
["  Chromium added, ppb",{"$f":"(SUMPRODUCT(B$9:B$229,Nutrients!$EQ$8:$EQ$228)+(IF($A$7=Nutrients!$B$8,Nutrients!$EQ$8,Nutrients!$EQ$9)*B$7)+(((IF($A$8=Nutrients!$B$79,Nutrients!$EQ$79,(IF($A$8=Nutrients!$B$77,Nutrients!$EQ$77,Nutrients!$EQ$78)))))*B$8))/2000*1000000000","v":0},{"$f":"(SUMPRODUCT(C$9:C$229,Nutrients!$EQ$8:$EQ$228)+(IF($A$7=Nutrients!$B$8,Nutrients!$EQ$8,Nutrients!$EQ$9)*C$7)+(((IF($A$8=Nutrients!$B$79,Nutrients!$EQ$79,(IF($A$8=Nutrients!$B$77,Nutrients!$EQ$77,Nutrients!$EQ$78)))))*C$8))/2000*1000000000","v":0},{"$f":"(SUMPRODUCT(D$9:D$229,Nutrients!$EQ$8:$EQ$228)+(IF($A$7=Nutrients!$B$8,Nutrients!$EQ$8,Nutrients!$EQ$9)*D$7)+(((IF($A$8=Nutrients!$B$79,Nutrients!$EQ$79,(IF($A$8=Nutrients!$B$77,Nutrients!$EQ$77,Nutrients!$EQ$78)))))*D$8))/2000*1000000000","v":0},{"$f":"(SUMPRODUCT(E$9:E$229,Nutrients!$EQ$8:$EQ$228)+(IF($A$7=Nutrients!$B$8,Nutrients!$EQ$8,Nutrients!$EQ$9)*E$7)+(((IF($A$8=Nutrients!$B$79,Nutrients!$EQ$79,(IF($A$8=Nutrients!$B$77,Nutrients!$EQ$77,Nutrients!$EQ$78)))))*E$8))/2000*1000000000","v":0},{"$f":"(SUMPRODUCT(F$9:F$229,Nutrients!$EQ$8:$EQ$228)+(IF($A$7=Nutrients!$B$8,Nutrients!$EQ$8,Nutrients!$EQ$9)*F$7)+(((IF($A$8=Nutrients!$B$79,Nutrients!$EQ$79,(IF($A$8=Nutrients!$B$77,Nutrients!$EQ$77,Nutrients!$EQ$78)))))*F$8))/2000*1000000000","v":0},{"$f":"(SUMPRODUCT(G$9:G$229,Nutrients!$EQ$8:$EQ$228)+(IF($A$7=Nutrients!$B$8,Nutrients!$EQ$8,Nutrients!$EQ$9)*G$7)+(((IF($A$8=Nutrients!$B$79,Nutrients!$EQ$79,(IF($A$8=Nutrients!$B$77,Nutrients!$EQ$77,Nutrients!$EQ$78)))))*G$8))/2000*1000000000","v":0},null,{"$f":"(SUMPRODUCT(I$9:I$229,Nutrients!$EQ$8:$EQ$228)+(IF($A$7=Nutrients!$B$8,Nutrients!$EQ$8,Nutrients!$EQ$9)*I$7)+(((IF($A$8=Nutrients!$B$79,Nutrients!$EQ$79,(IF($A$8=Nutrients!$B$77,Nutrients!$EQ$77,Nutrients!$EQ$78)))))*I$8))/2000*1000000000","v":0},{"$f":"(SUMPRODUCT(J$9:J$229,Nutrients!$EQ$8:$EQ$228)+(IF($A$7=Nutrients!$B$8,Nutrients!$EQ$8,Nutrients!$EQ$9)*J$7)+(((IF($A$8=Nutrients!$B$79,Nutrients!$EQ$79,(IF($A$8=Nutrients!$B$77,Nutrients!$EQ$77,Nutrients!$EQ$78)))))*J$8))/2000*1000000000","v":0},{"$f":"(SUMPRODUCT(K$9:K$229,Nutrients!$EQ$8:$EQ$228)+(IF($A$7=Nutrients!$B$8,Nutrients!$EQ$8,Nutrients!$EQ$9)*K$7)+(((IF($A$8=Nutrients!$B$79,Nutrients!$EQ$79,(IF($A$8=Nutrients!$B$77,Nutrients!$EQ$77,Nutrients!$EQ$78)))))*K$8))/2000*1000000000","v":0},{"$f":"(SUMPRODUCT(L$9:L$229,Nutrients!$EQ$8:$EQ$228)+(IF($A$7=Nutrients!$B$8,Nutrients!$EQ$8,Nutrients!$EQ$9)*L$7)+(((IF($A$8=Nutrients!$B$79,Nutrients!$EQ$79,(IF($A$8=Nutrients!$B$77,Nutrients!$EQ$77,Nutrients!$EQ$78)))))*L$8))/2000*1000000000","v":0},{"$f":"(SUMPRODUCT(M$9:M$229,Nutrients!$EQ$8:$EQ$228)+(IF($A$7=Nutrients!$B$8,Nutrients!$EQ$8,Nutrients!$EQ$9)*M$7)+(((IF($A$8=Nutrients!$B$79,Nutrients!$EQ$79,(IF($A$8=Nutrients!$B$77,Nutrients!$EQ$77,Nutrients!$EQ$78)))))*M$8))/2000*1000000000","v":0},{"$f":"(SUMPRODUCT(N$9:N$229,Nutrients!$EQ$8:$EQ$228)+(IF($A$7=Nutrients!$B$8,Nutrients!$EQ$8,Nutrients!$EQ$9)*N$7)+(((IF($A$8=Nutrients!$B$79,Nutrients!$EQ$79,(IF($A$8=Nutrients!$B$77,Nutrients!$EQ$77,Nutrients!$EQ$78)))))*N$8))/2000*1000000000","v":0},null,{"$f":"(SUMPRODUCT(P$9:P$229,Nutrients!$EQ$8:$EQ$228)+(IF($A$7=Nutrients!$B$8,Nutrients!$EQ$8,Nutrients!$EQ$9)*P$7)+(((IF($A$8=Nutrients!$B$79,Nutrients!$EQ$79,(IF($A$8=Nutrients!$B$77,Nutrients!$EQ$77,Nutrients!$EQ$78)))))*P$8))/2000*1000000000","v":0},{"$f":"(SUMPRODUCT(Q$9:Q$229,Nutrients!$EQ$8:$EQ$228)+(IF($A$7=Nutrients!$B$8,Nutrients!$EQ$8,Nutrients!$EQ$9)*Q$7)+(((IF($A$8=Nutrients!$B$79,Nutrients!$EQ$79,(IF($A$8=Nutrients!$B$77,Nutrients!$EQ$77,Nutrients!$EQ$78)))))*Q$8))/2000*1000000000","v":0},{"$f":"(SUMPRODUCT(R$9:R$229,Nutrients!$EQ$8:$EQ$228)+(IF($A$7=Nutrients!$B$8,Nutrients!$EQ$8,Nutrients!$EQ$9)*R$7)+(((IF($A$8=Nutrients!$B$79,Nutrients!$EQ$79,(IF($A$8=Nutrients!$B$77,Nutrients!$EQ$77,Nutrients!$EQ$78)))))*R$8))/2000*1000000000","v":0},{"$f":"(SUMPRODUCT(S$9:S$229,Nutrients!$EQ$8:$EQ$228)+(IF($A$7=Nutrients!$B$8,Nutrients!$EQ$8,Nutrients!$EQ$9)*S$7)+(((IF($A$8=Nutrients!$B$79,Nutrients!$EQ$79,(IF($A$8=Nutrients!$B$77,Nutrients!$EQ$77,Nutrients!$EQ$78)))))*S$8))/2000*1000000000","v":0},{"$f":"(SUMPRODUCT(T$9:T$229,Nutrients!$EQ$8:$EQ$228)+(IF($A$7=Nutrients!$B$8,Nutrients!$EQ$8,Nutrients!$EQ$9)*T$7)+(((IF($A$8=Nutrients!$B$79,Nutrients!$EQ$79,(IF($A$8=Nutrients!$B$77,Nutrients!$EQ$77,Nutrients!$EQ$78)))))*T$8))/2000*1000000000","v":0},{"$f":"(SUMPRODUCT(U$9:U$229,Nutrients!$EQ$8:$EQ$228)+(IF($A$7=Nutrients!$B$8,Nutrients!$EQ$8,Nutrients!$EQ$9)*U$7)+(((IF($A$8=Nutrients!$B$79,Nutrients!$EQ$79,(IF($A$8=Nutrients!$B$77,Nutrients!$EQ$77,Nutrients!$EQ$78)))))*U$8))/2000*1000000000","v":0},null,{"$f":"(SUMPRODUCT(W$9:W$229,Nutrients!$EQ$8:$EQ$228)+(IF($A$7=Nutrients!$B$8,Nutrients!$EQ$8,Nutrients!$EQ$9)*W$7)+(((IF($A$8=Nutrients!$B$79,Nutrients!$EQ$79,(IF($A$8=Nutrients!$B$77,Nutrients!$EQ$77,Nutrients!$EQ$78)))))*W$8))/2000*1000000000","v":0},{"$f":"(SUMPRODUCT(X$9:X$229,Nutrients!$EQ$8:$EQ$228)+(IF($A$7=Nutrients!$B$8,Nutrients!$EQ$8,Nutrients!$EQ$9)*X$7)+(((IF($A$8=Nutrients!$B$79,Nutrients!$EQ$79,(IF($A$8=Nutrients!$B$77,Nutrients!$EQ$77,Nutrients!$EQ$78)))))*X$8))/2000*1000000000","v":0},{"$f":"(SUMPRODUCT(Y$9:Y$229,Nutrients!$EQ$8:$EQ$228)+(IF($A$7=Nutrients!$B$8,Nutrients!$EQ$8,Nutrients!$EQ$9)*Y$7)+(((IF($A$8=Nutrients!$B$79,Nutrients!$EQ$79,(IF($A$8=Nutrients!$B$77,Nutrients!$EQ$77,Nutrients!$EQ$78)))))*Y$8))/2000*1000000000","v":0},{"$f":"(SUMPRODUCT(Z$9:Z$229,Nutrients!$EQ$8:$EQ$228)+(IF($A$7=Nutrients!$B$8,Nutrients!$EQ$8,Nutrients!$EQ$9)*Z$7)+(((IF($A$8=Nutrients!$B$79,Nutrients!$EQ$79,(IF($A$8=Nutrients!$B$77,Nutrients!$EQ$77,Nutrients!$EQ$78)))))*Z$8))/2000*1000000000","v":0},{"$f":"(SUMPRODUCT(AA$9:AA$229,Nutrients!$EQ$8:$EQ$228)+(IF($A$7=Nutrients!$B$8,Nutrients!$EQ$8,Nutrients!$EQ$9)*AA$7)+(((IF($A$8=Nutrients!$B$79,Nutrients!$EQ$79,(IF($A$8=Nutrients!$B$77,Nutrients!$EQ$77,Nutrients!$EQ$78)))))*AA$8))/2000*1000000000","v":0},{"$f":"(SUMPRODUCT(AB$9:AB$229,Nutrients!$EQ$8:$EQ$228)+(IF($A$7=Nutrients!$B$8,Nutrients!$EQ$8,Nutrients!$EQ$9)*AB$7)+(((IF($A$8=Nutrients!$B$79,Nutrients!$EQ$79,(IF($A$8=Nutrients!$B$77,Nutrients!$EQ$77,Nutrients!$EQ$78)))))*AB$8))/2000*1000000000","v":0},null,{"$f":"(SUMPRODUCT(AD$9:AD$229,Nutrients!$EQ$8:$EQ$228)+(IF($A$7=Nutrients!$B$8,Nutrients!$EQ$8,Nutrients!$EQ$9)*AD$7)+(((IF($A$8=Nutrients!$B$79,Nutrients!$EQ$79,(IF($A$8=Nutrients!$B$77,Nutrients!$EQ$77,Nutrients!$EQ$78)))))*AD$8))/2000*1000000000","v":0},{"$f":"(SUMPRODUCT(AE$9:AE$229,Nutrients!$EQ$8:$EQ$228)+(IF($A$7=Nutrients!$B$8,Nutrients!$EQ$8,Nutrients!$EQ$9)*AE$7)+(((IF($A$8=Nutrients!$B$79,Nutrients!$EQ$79,(IF($A$8=Nutrients!$B$77,Nutrients!$EQ$77,Nutrients!$EQ$78)))))*AE$8))/2000*1000000000","v":0},{"$f":"(SUMPRODUCT(AF$9:AF$229,Nutrients!$EQ$8:$EQ$228)+(IF($A$7=Nutrients!$B$8,Nutrients!$EQ$8,Nutrients!$EQ$9)*AF$7)+(((IF($A$8=Nutrients!$B$79,Nutrients!$EQ$79,(IF($A$8=Nutrients!$B$77,Nutrients!$EQ$77,Nutrients!$EQ$78)))))*AF$8))/2000*1000000000","v":0},{"$f":"(SUMPRODUCT(AG$9:AG$229,Nutrients!$EQ$8:$EQ$228)+(IF($A$7=Nutrients!$B$8,Nutrients!$EQ$8,Nutrients!$EQ$9)*AG$7)+(((IF($A$8=Nutrients!$B$79,Nutrients!$EQ$79,(IF($A$8=Nutrients!$B$77,Nutrients!$EQ$77,Nutrients!$EQ$78)))))*AG$8))/2000*1000000000","v":0},{"$f":"(SUMPRODUCT(AH$9:AH$229,Nutrients!$EQ$8:$EQ$228)+(IF($A$7=Nutrients!$B$8,Nutrients!$EQ$8,Nutrients!$EQ$9)*AH$7)+(((IF($A$8=Nutrients!$B$79,Nutrients!$EQ$79,(IF($A$8=Nutrients!$B$77,Nutrients!$EQ$77,Nutrients!$EQ$78)))))*AH$8))/2000*1000000000","v":0},{"$f":"(SUMPRODUCT(AI$9:AI$229,Nutrients!$EQ$8:$EQ$228)+(IF($A$7=Nutrients!$B$8,Nutrients!$EQ$8,Nutrients!$EQ$9)*AI$7)+(((IF($A$8=Nutrients!$B$79,Nutrients!$EQ$79,(IF($A$8=Nutrients!$B$77,Nutrients!$EQ$77,Nutrients!$EQ$78)))))*AI$8))/2000*1000000000","v":0},null,{"$f":"(SUMPRODUCT(AK$9:AK$229,Nutrients!$EQ$8:$EQ$228)+(IF($A$7=Nutrients!$B$8,Nutrients!$EQ$8,Nutrients!$EQ$9)*AK$7)+(((IF($A$8=Nutrients!$B$79,Nutrients!$EQ$79,(IF($A$8=Nutrients!$B$77,Nutrients!$EQ$77,Nutrients!$EQ$78)))))*AK$8))/2000*1000000000","v":0},{"$f":"(SUMPRODUCT(AL$9:AL$229,Nutrients!$EQ$8:$EQ$228)+(IF($A$7=Nutrients!$B$8,Nutrients!$EQ$8,Nutrients!$EQ$9)*AL$7)+(((IF($A$8=Nutrients!$B$79,Nutrients!$EQ$79,(IF($A$8=Nutrients!$B$77,Nutrients!$EQ$77,Nutrients!$EQ$78)))))*AL$8))/2000*1000000000","v":0},{"$f":"(SUMPRODUCT(AM$9:AM$229,Nutrients!$EQ$8:$EQ$228)+(IF($A$7=Nutrients!$B$8,Nutrients!$EQ$8,Nutrients!$EQ$9)*AM$7)+(((IF($A$8=Nutrients!$B$79,Nutrients!$EQ$79,(IF($A$8=Nutrients!$B$77,Nutrients!$EQ$77,Nutrients!$EQ$78)))))*AM$8))/2000*1000000000","v":0},{"$f":"(SUMPRODUCT(AN$9:AN$229,Nutrients!$EQ$8:$EQ$228)+(IF($A$7=Nutrients!$B$8,Nutrients!$EQ$8,Nutrients!$EQ$9)*AN$7)+(((IF($A$8=Nutrients!$B$79,Nutrients!$EQ$79,(IF($A$8=Nutrients!$B$77,Nutrients!$EQ$77,Nutrients!$EQ$78)))))*AN$8))/2000*1000000000","v":0},{"$f":"(SUMPRODUCT(AO$9:AO$229,Nutrients!$EQ$8:$EQ$228)+(IF($A$7=Nutrients!$B$8,Nutrients!$EQ$8,Nutrients!$EQ$9)*AO$7)+(((IF($A$8=Nutrients!$B$79,Nutrients!$EQ$79,(IF($A$8=Nutrients!$B$77,Nutrients!$EQ$77,Nutrients!$EQ$78)))))*AO$8))/2000*1000000000","v":0},{"$f":"(SUMPRODUCT(AP$9:AP$229,Nutrients!$EQ$8:$EQ$228)+(IF($A$7=Nutrients!$B$8,Nutrients!$EQ$8,Nutrients!$EQ$9)*AP$7)+(((IF($A$8=Nutrients!$B$79,Nutrients!$EQ$79,(IF($A$8=Nutrients!$B$77,Nutrients!$EQ$77,Nutrients!$EQ$78)))))*AP$8))/2000*1000000000","v":0},null,{"$f":"(SUMPRODUCT(AR$9:AR$229,Nutrients!$EQ$8:$EQ$228)+(IF($A$7=Nutrients!$B$8,Nutrients!$EQ$8,Nutrients!$EQ$9)*AR$7)+(((IF($A$8=Nutrients!$B$79,Nutrients!$EQ$79,(IF($A$8=Nutrients!$B$77,Nutrients!$EQ$77,Nutrients!$EQ$78)))))*AR$8))/2000*1000000000","v":0},{"$f":"(SUMPRODUCT(AS$9:AS$229,Nutrients!$EQ$8:$EQ$228)+(IF($A$7=Nutrients!$B$8,Nutrients!$EQ$8,Nutrients!$EQ$9)*AS$7)+(((IF($A$8=Nutrients!$B$79,Nutrients!$EQ$79,(IF($A$8=Nutrients!$B$77,Nutrients!$EQ$77,Nutrients!$EQ$78)))))*AS$8))/2000*1000000000","v":0},{"$f":"(SUMPRODUCT(AT$9:AT$229,Nutrients!$EQ$8:$EQ$228)+(IF($A$7=Nutrients!$B$8,Nutrients!$EQ$8,Nutrients!$EQ$9)*AT$7)+(((IF($A$8=Nutrients!$B$79,Nutrients!$EQ$79,(IF($A$8=Nutrients!$B$77,Nutrients!$EQ$77,Nutrients!$EQ$78)))))*AT$8))/2000*1000000000","v":0},{"$f":"(SUMPRODUCT(AU$9:AU$229,Nutrients!$EQ$8:$EQ$228)+(IF($A$7=Nutrients!$B$8,Nutrients!$EQ$8,Nutrients!$EQ$9)*AU$7)+(((IF($A$8=Nutrients!$B$79,Nutrients!$EQ$79,(IF($A$8=Nutrients!$B$77,Nutrients!$EQ$77,Nutrients!$EQ$78)))))*AU$8))/2000*1000000000","v":0},{"$f":"(SUMPRODUCT(AV$9:AV$229,Nutrients!$EQ$8:$EQ$228)+(IF($A$7=Nutrients!$B$8,Nutrients!$EQ$8,Nutrients!$EQ$9)*AV$7)+(((IF($A$8=Nutrients!$B$79,Nutrients!$EQ$79,(IF($A$8=Nutrients!$B$77,Nutrients!$EQ$77,Nutrients!$EQ$78)))))*AV$8))/2000*1000000000","v":0},{"$f":"(SUMPRODUCT(AW$9:AW$229,Nutrients!$EQ$8:$EQ$228)+(IF($A$7=Nutrients!$B$8,Nutrients!$EQ$8,Nutrients!$EQ$9)*AW$7)+(((IF($A$8=Nutrients!$B$79,Nutrients!$EQ$79,(IF($A$8=Nutrients!$B$77,Nutrients!$EQ$77,Nutrients!$EQ$78)))))*AW$8))/2000*1000000000","v":0}]
[]
["Vitamins (added levels)"]
["  Vit A, IU/ton",{"$f":"(SUMPRODUCT(B$9:B$229,Nutrients!$ES$8:$ES$228)+(IF($A$7=Nutrients!$B$8,Nutrients!$ES$8,Nutrients!$ES$9)*B$7)+(((IF($A$8=Nutrients!$B$79,Nutrients!$ES$79,(IF($A$8=Nutrients!$B$77,Nutrients!$ES$77,Nutrients!$ES$78)))))*B$8))","v":2250000},{"$f":"(SUMPRODUCT(C$9:C$229,Nutrients!$ES$8:$ES$228)+(IF($A$7=Nutrients!$B$8,Nutrients!$ES$8,Nutrients!$ES$9)*C$7)+(((IF($A$8=Nutrients!$B$79,Nutrients!$ES$79,(IF($A$8=Nutrients!$B$77,Nutrients!$ES$77,Nutrients!$ES$78)))))*C$8))","v":2250000},{"$f":"(SUMPRODUCT(D$9:D$229,Nutrients!$ES$8:$ES$228)+(IF($A$7=Nutrients!$B$8,Nutrients!$ES$8,Nutrients!$ES$9)*D$7)+(((IF($A$8=Nutrients!$B$79,Nutrients!$ES$79,(IF($A$8=Nutrients!$B$77,Nutrients!$ES$77,Nutrients!$ES$78)))))*D$8))","v":1875000},{"$f":"(SUMPRODUCT(E$9:E$229,Nutrients!$ES$8:$ES$228)+(IF($A$7=Nutrients!$B$8,Nutrients!$ES$8,Nutrients!$ES$9)*E$7)+(((IF($A$8=Nutrients!$B$79,Nutrients!$ES$79,(IF($A$8=Nutrients!$B$77,Nutrients!$ES$77,Nutrients!$ES$78)))))*E$8))","v":1500000},{"$f":"(SUMPRODUCT(F$9:F$229,Nutrients!$ES$8:$ES$228)+(IF($A$7=Nutrients!$B$8,Nutrients!$ES$8,Nutrients!$ES$9)*F$7)+(((IF($A$8=Nutrients!$B$79,Nutrients!$ES$79,(IF($A$8=Nutrients!$B$77,Nutrients!$ES$77,Nutrients!$ES$78)))))*F$8))","v":1125000},{"$f":"(SUMPRODUCT(G$9:G$229,Nutrients!$ES$8:$ES$228)+(IF($A$7=Nutrients!$B$8,Nutrients!$ES$8,Nutrients!$ES$9)*G$7)+(((IF($A$8=Nutrients!$B$79,Nutrients!$ES$79,(IF($A$8=Nutrients!$B$77,Nutrients!$ES$77,Nutrients!$ES$78)))))*G$8))","v":1125000},null,{"$f":"(SUMPRODUCT(I$9:I$229,Nutrients!$ES$8:$ES$228)+(IF($A$7=Nutrients!$B$8,Nutrients!$ES$8,Nutrients!$ES$9)*I$7)+(((IF($A$8=Nutrients!$B$79,Nutrients!$ES$79,(IF($A$8=Nutrients!$B$77,Nutrients!$ES$77,Nutrients!$ES$78)))))*I$8))","v":2250000},{"$f":"(SUMPRODUCT(J$9:J$229,Nutrients!$ES$8:$ES$228)+(IF($A$7=Nutrients!$B$8,Nutrients!$ES$8,Nutrients!$ES$9)*J$7)+(((IF($A$8=Nutrients!$B$79,Nutrients!$ES$79,(IF($A$8=Nutrients!$B$77,Nutrients!$ES$77,Nutrients!$ES$78)))))*J$8))","v":2250000},{"$f":"(SUMPRODUCT(K$9:K$229,Nutrients!$ES$8:$ES$228)+(IF($A$7=Nutrients!$B$8,Nutrients!$ES$8,Nutrients!$ES$9)*K$7)+(((IF($A$8=Nutrients!$B$79,Nutrients!$ES$79,(IF($A$8=Nutrients!$B$77,Nutrients!$ES$77,Nutrients!$ES$78)))))*K$8))","v":1875000},{"$f":"(SUMPRODUCT(L$9:L$229,Nutrients!$ES$8:$ES$228)+(IF($A$7=Nutrients!$B$8,Nutrients!$ES$8,Nutrients!$ES$9)*L$7)+(((IF($A$8=Nutrients!$B$79,Nutrients!$ES$79,(IF($A$8=Nutrients!$B$77,Nutrients!$ES$77,Nutrients!$ES$78)))))*L$8))","v":1500000},{"$f":"(SUMPRODUCT(M$9:M$229,Nutrients!$ES$8:$ES$228)+(IF($A$7=Nutrients!$B$8,Nutrients!$ES$8,Nutrients!$ES$9)*M$7)+(((IF($A$8=Nutrients!$B$79,Nutrients!$ES$79,(IF($A$8=Nutrients!$B$77,Nutrients!$ES$77,Nutrients!$ES$78)))))*M$8))","v":1125000},{"$f":"(SUMPRODUCT(N$9:N$229,Nutrients!$ES$8:$ES$228)+(IF($A$7=Nutrients!$B$8,Nutrients!$ES$8,Nutrients!$ES$9)*N$7)+(((IF($A$8=Nutrients!$B$79,Nutrients!$ES$79,(IF($A$8=Nutrients!$B$77,Nutrients!$ES$77,Nutrients!$ES$78)))))*N$8))","v":1125000},null,{"$f":"(SUMPRODUCT(P$9:P$229,Nutrients!$ES$8:$ES$228)+(IF($A$7=Nutrients!$B$8,Nutrients!$ES$8,Nutrients!$ES$9)*P$7)+(((IF($A$8=Nutrients!$B$79,Nutrients!$ES$79,(IF($A$8=Nutrients!$B$77,Nutrients!$ES$77,Nutrients!$ES$78)))))*P$8))","v":2250000},{"$f":"(SUMPRODUCT(Q$9:Q$229,Nutrients!$ES$8:$ES$228)+(IF($A$7=Nutrients!$B$8,Nutrients!$ES$8,Nutrients!$ES$9)*Q$7)+(((IF($A$8=Nutrients!$B$79,Nutrients!$ES$79,(IF($A$8=Nutrients!$B$77,Nutrients!$ES$77,Nutrients!$ES$78)))))*Q$8))","v":2250000},{"$f":"(SUMPRODUCT(R$9:R$229,Nutrients!$ES$8:$ES$228)+(IF($A$7=Nutrients!$B$8,Nutrients!$ES$8,Nutrients!$ES$9)*R$7)+(((IF($A$8=Nutrients!$B$79,Nutrients!$ES$79,(IF($A$8=Nutrients!$B$77,Nutrients!$ES$77,Nutrients!$ES$78)))))*R$8))","v":1875000},{"$f":"(SUMPRODUCT(S$9:S$229,Nutrients!$ES$8:$ES$228)+(IF($A$7=Nutrients!$B$8,Nutrients!$ES$8,Nutrients!$ES$9)*S$7)+(((IF($A$8=Nutrients!$B$79,Nutrients!$ES$79,(IF($A$8=Nutrients!$B$77,Nutrients!$ES$77,Nutrients!$ES$78)))))*S$8))","v":1500000},{"$f":"(SUMPRODUCT(T$9:T$229,Nutrients!$ES$8:$ES$228)+(IF($A$7=Nutrients!$B$8,Nutrients!$ES$8,Nutrients!$ES$9)*T$7)+(((IF($A$8=Nutrients!$B$79,Nutrients!$ES$79,(IF($A$8=Nutrients!$B$77,Nutrients!$ES$77,Nutrients!$ES$78)))))*T$8))","v":1125000},{"$f":"(SUMPRODUCT(U$9:U$229,Nutrients!$ES$8:$ES$228)+(IF($A$7=Nutrients!$B$8,Nutrients!$ES$8,Nutrients!$ES$9)*U$7)+(((IF($A$8=Nutrients!$B$79,Nutrients!$ES$79,(IF($A$8=Nutrients!$B$77,Nutrients!$ES$77,Nutrients!$ES$78)))))*U$8))","v":1125000},null,{"$f":"(SUMPRODUCT(W$9:W$229,Nutrients!$ES$8:$ES$228)+(IF($A$7=Nutrients!$B$8,Nutrients!$ES$8,Nutrients!$ES$9)*W$7)+(((IF($A$8=Nutrients!$B$79,Nutrients!$ES$79,(IF($A$8=Nutrients!$B$77,Nutrients!$ES$77,Nutrients!$ES$78)))))*W$8))","v":2250000},{"$f":"(SUMPRODUCT(X$9:X$229,Nutrients!$ES$8:$ES$228)+(IF($A$7=Nutrients!$B$8,Nutrients!$ES$8,Nutrients!$ES$9)*X$7)+(((IF($A$8=Nutrients!$B$79,Nutrients!$ES$79,(IF($A$8=Nutrients!$B$77,Nutrients!$ES$77,Nutrients!$ES$78)))))*X$8))","v":2250000},{"$f":"(SUMPRODUCT(Y$9:Y$229,Nutrients!$ES$8:$ES$228)+(IF($A$7=Nutrients!$B$8,Nutrients!$ES$8,Nutrients!$ES$9)*Y$7)+(((IF($A$8=Nutrients!$B$79,Nutrients!$ES$79,(IF($A$8=Nutrients!$B$77,Nutrients!$ES$77,Nutrients!$ES$78)))))*Y$8))","v":1875000},{"$f":"(SUMPRODUCT(Z$9:Z$229,Nutrients!$ES$8:$ES$228)+(IF($A$7=Nutrients!$B$8,Nutrients!$ES$8,Nutrients!$ES$9)*Z$7)+(((IF($A$8=Nutrients!$B$79,Nutrients!$ES$79,(IF($A$8=Nutrients!$B$77,Nutrients!$ES$77,Nutrients!$ES$78)))))*Z$8))","v":1500000},{"$f":"(SUMPRODUCT(AA$9:AA$229,Nutrients!$ES$8:$ES$228)+(IF($A$7=Nutrients!$B$8,Nutrients!$ES$8,Nutrients!$ES$9)*AA$7)+(((IF($A$8=Nutrients!$B$79,Nutrients!$ES$79,(IF($A$8=Nutrients!$B$77,Nutrients!$ES$77,Nutrients!$ES$78)))))*AA$8))","v":1125000},{"$f":"(SUMPRODUCT(AB$9:AB$229,Nutrients!$ES$8:$ES$228)+(IF($A$7=Nutrients!$B$8,Nutrients!$ES$8,Nutrients!$ES$9)*AB$7)+(((IF($A$8=Nutrients!$B$79,Nutrients!$ES$79,(IF($A$8=Nutrients!$B$77,Nutrients!$ES$77,Nutrients!$ES$78)))))*AB$8))","v":1125000},null,{"$f":"(SUMPRODUCT(AD$9:AD$229,Nutrients!$ES$8:$ES$228)+(IF($A$7=Nutrients!$B$8,Nutrients!$ES$8,Nutrients!$ES$9)*AD$7)+(((IF($A$8=Nutrients!$B$79,Nutrients!$ES$79,(IF($A$8=Nutrients!$B$77,Nutrients!$ES$77,Nutrients!$ES$78)))))*AD$8))","v":2250000},{"$f":"(SUMPRODUCT(AE$9:AE$229,Nutrients!$ES$8:$ES$228)+(IF($A$7=Nutrients!$B$8,Nutrients!$ES$8,Nutrients!$ES$9)*AE$7)+(((IF($A$8=Nutrients!$B$79,Nutrients!$ES$79,(IF($A$8=Nutrients!$B$77,Nutrients!$ES$77,Nutrients!$ES$78)))))*AE$8))","v":2250000},{"$f":"(SUMPRODUCT(AF$9:AF$229,Nutrients!$ES$8:$ES$228)+(IF($A$7=Nutrients!$B$8,Nutrients!$ES$8,Nutrients!$ES$9)*AF$7)+(((IF($A$8=Nutrients!$B$79,Nutrients!$ES$79,(IF($A$8=Nutrients!$B$77,Nutrients!$ES$77,Nutrients!$ES$78)))))*AF$8))","v":1875000},{"$f":"(SUMPRODUCT(AG$9:AG$229,Nutrients!$ES$8:$ES$228)+(IF($A$7=Nutrients!$B$8,Nutrients!$ES$8,Nutrients!$ES$9)*AG$7)+(((IF($A$8=Nutrients!$B$79,Nutrients!$ES$79,(IF($A$8=Nutrients!$B$77,Nutrients!$ES$77,Nutrients!$ES$78)))))*AG$8))","v":1500000},{"$f":"(SUMPRODUCT(AH$9:AH$229,Nutrients!$ES$8:$ES$228)+(IF($A$7=Nutrients!$B$8,Nutrients!$ES$8,Nutrients!$ES$9)*AH$7)+(((IF($A$8=Nutrients!$B$79,Nutrients!$ES$79,(IF($A$8=Nutrients!$B$77,Nutrients!$ES$77,Nutrients!$ES$78)))))*AH$8))","v":1125000},{"$f":"(SUMPRODUCT(AI$9:AI$229,Nutrients!$ES$8:$ES$228)+(IF($A$7=Nutrients!$B$8,Nutrients!$ES$8,Nutrients!$ES$9)*AI$7)+(((IF($A$8=Nutrients!$B$79,Nutrients!$ES$79,(IF($A$8=Nutrients!$B$77,Nutrients!$ES$77,Nutrients!$ES$78)))))*AI$8))","v":1125000},null,{"$f":"(SUMPRODUCT(AK$9:AK$229,Nutrients!$ES$8:$ES$228)+(IF($A$7=Nutrients!$B$8,Nutrients!$ES$8,Nutrients!$ES$9)*AK$7)+(((IF($A$8=Nutrients!$B$79,Nutrients!$ES$79,(IF($A$8=Nutrients!$B$77,Nutrients!$ES$77,Nutrients!$ES$78)))))*AK$8))","v":2250000},{"$f":"(SUMPRODUCT(AL$9:AL$229,Nutrients!$ES$8:$ES$228)+(IF($A$7=Nutrients!$B$8,Nutrients!$ES$8,Nutrients!$ES$9)*AL$7)+(((IF($A$8=Nutrients!$B$79,Nutrients!$ES$79,(IF($A$8=Nutrients!$B$77,Nutrients!$ES$77,Nutrients!$ES$78)))))*AL$8))","v":2250000},{"$f":"(SUMPRODUCT(AM$9:AM$229,Nutrients!$ES$8:$ES$228)+(IF($A$7=Nutrients!$B$8,Nutrients!$ES$8,Nutrients!$ES$9)*AM$7)+(((IF($A$8=Nutrients!$B$79,Nutrients!$ES$79,(IF($A$8=Nutrients!$B$77,Nutrients!$ES$77,Nutrients!$ES$78)))))*AM$8))","v":1875000},{"$f":"(SUMPRODUCT(AN$9:AN$229,Nutrients!$ES$8:$ES$228)+(IF($A$7=Nutrients!$B$8,Nutrients!$ES$8,Nutrients!$ES$9)*AN$7)+(((IF($A$8=Nutrients!$B$79,Nutrients!$ES$79,(IF($A$8=Nutrients!$B$77,Nutrients!$ES$77,Nutrients!$ES$78)))))*AN$8))","v":1500000},{"$f":"(SUMPRODUCT(AO$9:AO$229,Nutrients!$ES$8:$ES$228)+(IF($A$7=Nutrients!$B$8,Nutrients!$ES$8,Nutrients!$ES$9)*AO$7)+(((IF($A$8=Nutrients!$B$79,Nutrients!$ES$79,(IF($A$8=Nutrients!$B$77,Nutrients!$ES$77,Nutrients!$ES$78)))))*AO$8))","v":1125000},{"$f":"(SUMPRODUCT(AP$9:AP$229,Nutrients!$ES$8:$ES$228)+(IF($A$7=Nutrients!$B$8,Nutrients!$ES$8,Nutrients!$ES$9)*AP$7)+(((IF($A$8=Nutrients!$B$79,Nutrients!$ES$79,(IF($A$8=Nutrients!$B$77,Nutrients!$ES$77,Nutrients!$ES$78)))))*AP$8))","v":1125000},null,{"$f":"(SUMPRODUCT(AR$9:AR$229,Nutrients!$ES$8:$ES$228)+(IF($A$7=Nutrients!$B$8,Nutrients!$ES$8,Nutrients!$ES$9)*AR$7)+(((IF($A$8=Nutrients!$B$79,Nutrients!$ES$79,(IF($A$8=Nutrients!$B$77,Nutrients!$ES$77,Nutrients!$ES$78)))))*AR$8))","v":2250000},{"$f":"(SUMPRODUCT(AS$9:AS$229,Nutrients!$ES$8:$ES$228)+(IF($A$7=Nutrients!$B$8,Nutrients!$ES$8,Nutrients!$ES$9)*AS$7)+(((IF($A$8=Nutrients!$B$79,Nutrients!$ES$79,(IF($A$8=Nutrients!$B$77,Nutrients!$ES$77,Nutrients!$ES$78)))))*AS$8))","v":2250000},{"$f":"(SUMPRODUCT(AT$9:AT$229,Nutrients!$ES$8:$ES$228)+(IF($A$7=Nutrients!$B$8,Nutrients!$ES$8,Nutrients!$ES$9)*AT$7)+(((IF($A$8=Nutrients!$B$79,Nutrients!$ES$79,(IF($A$8=Nutrients!$B$77,Nutrients!$ES$77,Nutrients!$ES$78)))))*AT$8))","v":1875000},{"$f":"(SUMPRODUCT(AU$9:AU$229,Nutrients!$ES$8:$ES$228)+(IF($A$7=Nutrients!$B$8,Nutrients!$ES$8,Nutrients!$ES$9)*AU$7)+(((IF($A$8=Nutrients!$B$79,Nutrients!$ES$79,(IF($A$8=Nutrients!$B$77,Nutrients!$ES$77,Nutrients!$ES$78)))))*AU$8))","v":1500000},{"$f":"(SUMPRODUCT(AV$9:AV$229,Nutrients!$ES$8:$ES$228)+(IF($A$7=Nutrients!$B$8,Nutrients!$ES$8,Nutrients!$ES$9)*AV$7)+(((IF($A$8=Nutrients!$B$79,Nutrients!$ES$79,(IF($A$8=Nutrients!$B$77,Nutrients!$ES$77,Nutrients!$ES$78)))))*AV$8))","v":1125000},{"$f":"(SUMPRODUCT(AW$9:AW$229,Nutrients!$ES$8:$ES$228)+(IF($A$7=Nutrients!$B$8,Nutrients!$ES$8,Nutrients!$ES$9)*AW$7)+(((IF($A$8=Nutrients!$B$79,Nutrients!$ES$79,(IF($A$8=Nutrients!$B$77,Nutrients!$ES$77,Nutrients!$ES$78)))))*AW$8))","v":1125000}]
["  Vit D, IU/ton",{"$f":"(SUMPRODUCT(B$9:B$229,Nutrients!$ET$8:$ET$228)+(IF($A$7=Nutrients!$B$8,Nutrients!$ET$8,Nutrients!$ET$9)*B$7)+(((IF($A$8=Nutrients!$B$79,Nutrients!$ET$79,(IF($A$8=Nutrients!$B$77,Nutrients!$ET$77,Nutrients!$ET$78)))))*B$8))","v":900000},{"$f":"(SUMPRODUCT(C$9:C$229,Nutrients!$ET$8:$ET$228)+(IF($A$7=Nutrients!$B$8,Nutrients!$ET$8,Nutrients!$ET$9)*C$7)+(((IF($A$8=Nutrients!$B$79,Nutrients!$ET$79,(IF($A$8=Nutrients!$B$77,Nutrients!$ET$77,Nutrients!$ET$78)))))*C$8))","v":900000},{"$f":"(SUMPRODUCT(D$9:D$229,Nutrients!$ET$8:$ET$228)+(IF($A$7=Nutrients!$B$8,Nutrients!$ET$8,Nutrients!$ET$9)*D$7)+(((IF($A$8=Nutrients!$B$79,Nutrients!$ET$79,(IF($A$8=Nutrients!$B$77,Nutrients!$ET$77,Nutrients!$ET$78)))))*D$8))","v":750000},{"$f":"(SUMPRODUCT(E$9:E$229,Nutrients!$ET$8:$ET$228)+(IF($A$7=Nutrients!$B$8,Nutrients!$ET$8,Nutrients!$ET$9)*E$7)+(((IF($A$8=Nutrients!$B$79,Nutrients!$ET$79,(IF($A$8=Nutrients!$B$77,Nutrients!$ET$77,Nutrients!$ET$78)))))*E$8))","v":600000},{"$f":"(SUMPRODUCT(F$9:F$229,Nutrients!$ET$8:$ET$228)+(IF($A$7=Nutrients!$B$8,Nutrients!$ET$8,Nutrients!$ET$9)*F$7)+(((IF($A$8=Nutrients!$B$79,Nutrients!$ET$79,(IF($A$8=Nutrients!$B$77,Nutrients!$ET$77,Nutrients!$ET$78)))))*F$8))","v":450000},{"$f":"(SUMPRODUCT(G$9:G$229,Nutrients!$ET$8:$ET$228)+(IF($A$7=Nutrients!$B$8,Nutrients!$ET$8,Nutrients!$ET$9)*G$7)+(((IF($A$8=Nutrients!$B$79,Nutrients!$ET$79,(IF($A$8=Nutrients!$B$77,Nutrients!$ET$77,Nutrients!$ET$78)))))*G$8))","v":450000},null,{"$f":"(SUMPRODUCT(I$9:I$229,Nutrients!$ET$8:$ET$228)+(IF($A$7=Nutrients!$B$8,Nutrients!$ET$8,Nutrients!$ET$9)*I$7)+(((IF($A$8=Nutrients!$B$79,Nutrients!$ET$79,(IF($A$8=Nutrients!$B$77,Nutrients!$ET$77,Nutrients!$ET$78)))))*I$8))","v":900000},{"$f":"(SUMPRODUCT(J$9:J$229,Nutrients!$ET$8:$ET$228)+(IF($A$7=Nutrients!$B$8,Nutrients!$ET$8,Nutrients!$ET$9)*J$7)+(((IF($A$8=Nutrients!$B$79,Nutrients!$ET$79,(IF($A$8=Nutrients!$B$77,Nutrients!$ET$77,Nutrients!$ET$78)))))*J$8))","v":900000},{"$f":"(SUMPRODUCT(K$9:K$229,Nutrients!$ET$8:$ET$228)+(IF($A$7=Nutrients!$B$8,Nutrients!$ET$8,Nutrients!$ET$9)*K$7)+(((IF($A$8=Nutrients!$B$79,Nutrients!$ET$79,(IF($A$8=Nutrients!$B$77,Nutrients!$ET$77,Nutrients!$ET$78)))))*K$8))","v":750000},{"$f":"(SUMPRODUCT(L$9:L$229,Nutrients!$ET$8:$ET$228)+(IF($A$7=Nutrients!$B$8,Nutrients!$ET$8,Nutrients!$ET$9)*L$7)+(((IF($A$8=Nutrients!$B$79,Nutrients!$ET$79,(IF($A$8=Nutrients!$B$77,Nutrients!$ET$77,Nutrients!$ET$78)))))*L$8))","v":600000},{"$f":"(SUMPRODUCT(M$9:M$229,Nutrients!$ET$8:$ET$228)+(IF($A$7=Nutrients!$B$8,Nutrients!$ET$8,Nutrients!$ET$9)*M$7)+(((IF($A$8=Nutrients!$B$79,Nutrients!$ET$79,(IF($A$8=Nutrients!$B$77,Nutrients!$ET$77,Nutrients!$ET$78)))))*M$8))","v":450000},{"$f":"(SUMPRODUCT(N$9:N$229,Nutrients!$ET$8:$ET$228)+(IF($A$7=Nutrients!$B$8,Nutrients!$ET$8,Nutrients!$ET$9)*N$7)+(((IF($A$8=Nutrients!$B$79,Nutrients!$ET$79,(IF($A$8=Nutrients!$B$77,Nutrients!$ET$77,Nutrients!$ET$78)))))*N$8))","v":450000},null,{"$f":"(SUMPRODUCT(P$9:P$229,Nutrients!$ET$8:$ET$228)+(IF($A$7=Nutrients!$B$8,Nutrients!$ET$8,Nutrients!$ET$9)*P$7)+(((IF($A$8=Nutrients!$B$79,Nutrients!$ET$79,(IF($A$8=Nutrients!$B$77,Nutrients!$ET$77,Nutrients!$ET$78)))))*P$8))","v":900000},{"$f":"(SUMPRODUCT(Q$9:Q$229,Nutrients!$ET$8:$ET$228)+(IF($A$7=Nutrients!$B$8,Nutrients!$ET$8,Nutrients!$ET$9)*Q$7)+(((IF($A$8=Nutrients!$B$79,Nutrients!$ET$79,(IF($A$8=Nutrients!$B$77,Nutrients!$ET$77,Nutrients!$ET$78)))))*Q$8))","v":900000},{"$f":"(SUMPRODUCT(R$9:R$229,Nutrients!$ET$8:$ET$228)+(IF($A$7=Nutrients!$B$8,Nutrients!$ET$8,Nutrients!$ET$9)*R$7)+(((IF($A$8=Nutrients!$B$79,Nutrients!$ET$79,(IF($A$8=Nutrients!$B$77,Nutrients!$ET$77,Nutrients!$ET$78)))))*R$8))","v":750000},{"$f":"(SUMPRODUCT(S$9:S$229,Nutrients!$ET$8:$ET$228)+(IF($A$7=Nutrients!$B$8,Nutrients!$ET$8,Nutrients!$ET$9)*S$7)+(((IF($A$8=Nutrients!$B$79,Nutrients!$ET$79,(IF($A$8=Nutrients!$B$77,Nutrients!$ET$77,Nutrients!$ET$78)))))*S$8))","v":600000},{"$f":"(SUMPRODUCT(T$9:T$229,Nutrients!$ET$8:$ET$228)+(IF($A$7=Nutrients!$B$8,Nutrients!$ET$8,Nutrients!$ET$9)*T$7)+(((IF($A$8=Nutrients!$B$79,Nutrients!$ET$79,(IF($A$8=Nutrients!$B$77,Nutrients!$ET$77,Nutrients!$ET$78)))))*T$8))","v":450000},{"$f":"(SUMPRODUCT(U$9:U$229,Nutrients!$ET$8:$ET$228)+(IF($A$7=Nutrients!$B$8,Nutrients!$ET$8,Nutrients!$ET$9)*U$7)+(((IF($A$8=Nutrients!$B$79,Nutrients!$ET$79,(IF($A$8=Nutrients!$B$77,Nutrients!$ET$77,Nutrients!$ET$78)))))*U$8))","v":450000},null,{"$f":"(SUMPRODUCT(W$9:W$229,Nutrients!$ET$8:$ET$228)+(IF($A$7=Nutrients!$B$8,Nutrients!$ET$8,Nutrients!$ET$9)*W$7)+(((IF($A$8=Nutrients!$B$79,Nutrients!$ET$79,(IF($A$8=Nutrients!$B$77,Nutrients!$ET$77,Nutrients!$ET$78)))))*W$8))","v":900000},{"$f":"(SUMPRODUCT(X$9:X$229,Nutrients!$ET$8:$ET$228)+(IF($A$7=Nutrients!$B$8,Nutrients!$ET$8,Nutrients!$ET$9)*X$7)+(((IF($A$8=Nutrients!$B$79,Nutrients!$ET$79,(IF($A$8=Nutrients!$B$77,Nutrients!$ET$77,Nutrients!$ET$78)))))*X$8))","v":900000},{"$f":"(SUMPRODUCT(Y$9:Y$229,Nutrients!$ET$8:$ET$228)+(IF($A$7=Nutrients!$B$8,Nutrients!$ET$8,Nutrients!$ET$9)*Y$7)+(((IF($A$8=Nutrients!$B$79,Nutrients!$ET$79,(IF($A$8=Nutrients!$B$77,Nutrients!$ET$77,Nutrients!$ET$78)))))*Y$8))","v":750000},{"$f":"(SUMPRODUCT(Z$9:Z$229,Nutrients!$ET$8:$ET$228)+(IF($A$7=Nutrients!$B$8,Nutrients!$ET$8,Nutrients!$ET$9)*Z$7)+(((IF($A$8=Nutrients!$B$79,Nutrients!$ET$79,(IF($A$8=Nutrients!$B$77,Nutrients!$ET$77,Nutrients!$ET$78)))))*Z$8))","v":600000},{"$f":"(SUMPRODUCT(AA$9:AA$229,Nutrients!$ET$8:$ET$228)+(IF($A$7=Nutrients!$B$8,Nutrients!$ET$8,Nutrients!$ET$9)*AA$7)+(((IF($A$8=Nutrients!$B$79,Nutrients!$ET$79,(IF($A$8=Nutrients!$B$77,Nutrients!$ET$77,Nutrients!$ET$78)))))*AA$8))","v":450000},{"$f":"(SUMPRODUCT(AB$9:AB$229,Nutrients!$ET$8:$ET$228)+(IF($A$7=Nutrients!$B$8,Nutrients!$ET$8,Nutrients!$ET$9)*AB$7)+(((IF($A$8=Nutrients!$B$79,Nutrients!$ET$79,(IF($A$8=Nutrients!$B$77,Nutrients!$ET$77,Nutrients!$ET$78)))))*AB$8))","v":450000},null,{"$f":"(SUMPRODUCT(AD$9:AD$229,Nutrients!$ET$8:$ET$228)+(IF($A$7=Nutrients!$B$8,Nutrients!$ET$8,Nutrients!$ET$9)*AD$7)+(((IF($A$8=Nutrients!$B$79,Nutrients!$ET$79,(IF($A$8=Nutrients!$B$77,Nutrients!$ET$77,Nutrients!$ET$78)))))*AD$8))","v":900000},{"$f":"(SUMPRODUCT(AE$9:AE$229,Nutrients!$ET$8:$ET$228)+(IF($A$7=Nutrients!$B$8,Nutrients!$ET$8,Nutrients!$ET$9)*AE$7)+(((IF($A$8=Nutrients!$B$79,Nutrients!$ET$79,(IF($A$8=Nutrients!$B$77,Nutrients!$ET$77,Nutrients!$ET$78)))))*AE$8))","v":900000},{"$f":"(SUMPRODUCT(AF$9:AF$229,Nutrients!$ET$8:$ET$228)+(IF($A$7=Nutrients!$B$8,Nutrients!$ET$8,Nutrients!$ET$9)*AF$7)+(((IF($A$8=Nutrients!$B$79,Nutrients!$ET$79,(IF($A$8=Nutrients!$B$77,Nutrients!$ET$77,Nutrients!$ET$78)))))*AF$8))","v":750000},{"$f":"(SUMPRODUCT(AG$9:AG$229,Nutrients!$ET$8:$ET$228)+(IF($A$7=Nutrients!$B$8,Nutrients!$ET$8,Nutrients!$ET$9)*AG$7)+(((IF($A$8=Nutrients!$B$79,Nutrients!$ET$79,(IF($A$8=Nutrients!$B$77,Nutrients!$ET$77,Nutrients!$ET$78)))))*AG$8))","v":600000},{"$f":"(SUMPRODUCT(AH$9:AH$229,Nutrients!$ET$8:$ET$228)+(IF($A$7=Nutrients!$B$8,Nutrients!$ET$8,Nutrients!$ET$9)*AH$7)+(((IF($A$8=Nutrients!$B$79,Nutrients!$ET$79,(IF($A$8=Nutrients!$B$77,Nutrients!$ET$77,Nutrients!$ET$78)))))*AH$8))","v":450000},{"$f":"(SUMPRODUCT(AI$9:AI$229,Nutrients!$ET$8:$ET$228)+(IF($A$7=Nutrients!$B$8,Nutrients!$ET$8,Nutrients!$ET$9)*AI$7)+(((IF($A$8=Nutrients!$B$79,Nutrients!$ET$79,(IF($A$8=Nutrients!$B$77,Nutrients!$ET$77,Nutrients!$ET$78)))))*AI$8))","v":450000},null,{"$f":"(SUMPRODUCT(AK$9:AK$229,Nutrients!$ET$8:$ET$228)+(IF($A$7=Nutrients!$B$8,Nutrients!$ET$8,Nutrients!$ET$9)*AK$7)+(((IF($A$8=Nutrients!$B$79,Nutrients!$ET$79,(IF($A$8=Nutrients!$B$77,Nutrients!$ET$77,Nutrients!$ET$78)))))*AK$8))","v":900000},{"$f":"(SUMPRODUCT(AL$9:AL$229,Nutrients!$ET$8:$ET$228)+(IF($A$7=Nutrients!$B$8,Nutrients!$ET$8,Nutrients!$ET$9)*AL$7)+(((IF($A$8=Nutrients!$B$79,Nutrients!$ET$79,(IF($A$8=Nutrients!$B$77,Nutrients!$ET$77,Nutrients!$ET$78)))))*AL$8))","v":900000},{"$f":"(SUMPRODUCT(AM$9:AM$229,Nutrients!$ET$8:$ET$228)+(IF($A$7=Nutrients!$B$8,Nutrients!$ET$8,Nutrients!$ET$9)*AM$7)+(((IF($A$8=Nutrients!$B$79,Nutrients!$ET$79,(IF($A$8=Nutrients!$B$77,Nutrients!$ET$77,Nutrients!$ET$78)))))*AM$8))","v":750000},{"$f":"(SUMPRODUCT(AN$9:AN$229,Nutrients!$ET$8:$ET$228)+(IF($A$7=Nutrients!$B$8,Nutrients!$ET$8,Nutrients!$ET$9)*AN$7)+(((IF($A$8=Nutrients!$B$79,Nutrients!$ET$79,(IF($A$8=Nutrients!$B$77,Nutrients!$ET$77,Nutrients!$ET$78)))))*AN$8))","v":600000},{"$f":"(SUMPRODUCT(AO$9:AO$229,Nutrients!$ET$8:$ET$228)+(IF($A$7=Nutrients!$B$8,Nutrients!$ET$8,Nutrients!$ET$9)*AO$7)+(((IF($A$8=Nutrients!$B$79,Nutrients!$ET$79,(IF($A$8=Nutrients!$B$77,Nutrients!$ET$77,Nutrients!$ET$78)))))*AO$8))","v":450000},{"$f":"(SUMPRODUCT(AP$9:AP$229,Nutrients!$ET$8:$ET$228)+(IF($A$7=Nutrients!$B$8,Nutrients!$ET$8,Nutrients!$ET$9)*AP$7)+(((IF($A$8=Nutrients!$B$79,Nutrients!$ET$79,(IF($A$8=Nutrients!$B$77,Nutrients!$ET$77,Nutrients!$ET$78)))))*AP$8))","v":450000},null,{"$f":"(SUMPRODUCT(AR$9:AR$229,Nutrients!$ET$8:$ET$228)+(IF($A$7=Nutrients!$B$8,Nutrients!$ET$8,Nutrients!$ET$9)*AR$7)+(((IF($A$8=Nutrients!$B$79,Nutrients!$ET$79,(IF($A$8=Nutrients!$B$77,Nutrients!$ET$77,Nutrients!$ET$78)))))*AR$8))","v":900000},{"$f":"(SUMPRODUCT(AS$9:AS$229,Nutrients!$ET$8:$ET$228)+(IF($A$7=Nutrients!$B$8,Nutrients!$ET$8,Nutrients!$ET$9)*AS$7)+(((IF($A$8=Nutrients!$B$79,Nutrients!$ET$79,(IF($A$8=Nutrients!$B$77,Nutrients!$ET$77,Nutrients!$ET$78)))))*AS$8))","v":900000},{"$f":"(SUMPRODUCT(AT$9:AT$229,Nutrients!$ET$8:$ET$228)+(IF($A$7=Nutrients!$B$8,Nutrients!$ET$8,Nutrients!$ET$9)*AT$7)+(((IF($A$8=Nutrients!$B$79,Nutrients!$ET$79,(IF($A$8=Nutrients!$B$77,Nutrients!$ET$77,Nutrients!$ET$78)))))*AT$8))","v":750000},{"$f":"(SUMPRODUCT(AU$9:AU$229,Nutrients!$ET$8:$ET$228)+(IF($A$7=Nutrients!$B$8,Nutrients!$ET$8,Nutrients!$ET$9)*AU$7)+(((IF($A$8=Nutrients!$B$79,Nutrients!$ET$79,(IF($A$8=Nutrients!$B$77,Nutrients!$ET$77,Nutrients!$ET$78)))))*AU$8))","v":600000},{"$f":"(SUMPRODUCT(AV$9:AV$229,Nutrients!$ET$8:$ET$228)+(IF($A$7=Nutrients!$B$8,Nutrients!$ET$8,Nutrients!$ET$9)*AV$7)+(((IF($A$8=Nutrients!$B$79,Nutrients!$ET$79,(IF($A$8=Nutrients!$B$77,Nutrients!$ET$77,Nutrients!$ET$78)))))*AV$8))","v":450000},{"$f":"(SUMPRODUCT(AW$9:AW$229,Nutrients!$ET$8:$ET$228)+(IF($A$7=Nutrients!$B$8,Nutrients!$ET$8,Nutrients!$ET$9)*AW$7)+(((IF($A$8=Nutrients!$B$79,Nutrients!$ET$79,(IF($A$8=Nutrients!$B$77,Nutrients!$ET$77,Nutrients!$ET$78)))))*AW$8))","v":450000}]
["  Vit E, IU/ton",{"$f":"(SUMPRODUCT(B$9:B$229,Nutrients!$EU$8:$EU$228)+(IF($A$7=Nutrients!$B$8,Nutrients!$EU$8,Nutrients!$EU$9)*B$7)+(((IF($A$8=Nutrients!$B$79,Nutrients!$EU$79,(IF($A$8=Nutrients!$B$77,Nutrients!$EU$77,Nutrients!$EU$78)))))*B$8))","v":24000},{"$f":"(SUMPRODUCT(C$9:C$229,Nutrients!$EU$8:$EU$228)+(IF($A$7=Nutrients!$B$8,Nutrients!$EU$8,Nutrients!$EU$9)*C$7)+(((IF($A$8=Nutrients!$B$79,Nutrients!$EU$79,(IF($A$8=Nutrients!$B$77,Nutrients!$EU$77,Nutrients!$EU$78)))))*C$8))","v":24000},{"$f":"(SUMPRODUCT(D$9:D$229,Nutrients!$EU$8:$EU$228)+(IF($A$7=Nutrients!$B$8,Nutrients!$EU$8,Nutrients!$EU$9)*D$7)+(((IF($A$8=Nutrients!$B$79,Nutrients!$EU$79,(IF($A$8=Nutrients!$B$77,Nutrients!$EU$77,Nutrients!$EU$78)))))*D$8))","v":20000},{"$f":"(SUMPRODUCT(E$9:E$229,Nutrients!$EU$8:$EU$228)+(IF($A$7=Nutrients!$B$8,Nutrients!$EU$8,Nutrients!$EU$9)*E$7)+(((IF($A$8=Nutrients!$B$79,Nutrients!$EU$79,(IF($A$8=Nutrients!$B$77,Nutrients!$EU$77,Nutrients!$EU$78)))))*E$8))","v":16000},{"$f":"(SUMPRODUCT(F$9:F$229,Nutrients!$EU$8:$EU$228)+(IF($A$7=Nutrients!$B$8,Nutrients!$EU$8,Nutrients!$EU$9)*F$7)+(((IF($A$8=Nutrients!$B$79,Nutrients!$EU$79,(IF($A$8=Nutrients!$B$77,Nutrients!$EU$77,Nutrients!$EU$78)))))*F$8))","v":12000},{"$f":"(SUMPRODUCT(G$9:G$229,Nutrients!$EU$8:$EU$228)+(IF($A$7=Nutrients!$B$8,Nutrients!$EU$8,Nutrients!$EU$9)*G$7)+(((IF($A$8=Nutrients!$B$79,Nutrients!$EU$79,(IF($A$8=Nutrients!$B$77,Nutrients!$EU$77,Nutrients!$EU$78)))))*G$8))","v":12000},null,{"$f":"(SUMPRODUCT(I$9:I$229,Nutrients!$EU$8:$EU$228)+(IF($A$7=Nutrients!$B$8,Nutrients!$EU$8,Nutrients!$EU$9)*I$7)+(((IF($A$8=Nutrients!$B$79,Nutrients!$EU$79,(IF($A$8=Nutrients!$B$77,Nutrients!$EU$77,Nutrients!$EU$78)))))*I$8))","v":24000},{"$f":"(SUMPRODUCT(J$9:J$229,Nutrients!$EU$8:$EU$228)+(IF($A$7=Nutrients!$B$8,Nutrients!$EU$8,Nutrients!$EU$9)*J$7)+(((IF($A$8=Nutrients!$B$79,Nutrients!$EU$79,(IF($A$8=Nutrients!$B$77,Nutrients!$EU$77,Nutrients!$EU$78)))))*J$8))","v":24000},{"$f":"(SUMPRODUCT(K$9:K$229,Nutrients!$EU$8:$EU$228)+(IF($A$7=Nutrients!$B$8,Nutrients!$EU$8,Nutrients!$EU$9)*K$7)+(((IF($A$8=Nutrients!$B$79,Nutrients!$EU$79,(IF($A$8=Nutrients!$B$77,Nutrients!$EU$77,Nutrients!$EU$78)))))*K$8))","v":20000},{"$f":"(SUMPRODUCT(L$9:L$229,Nutrients!$EU$8:$EU$228)+(IF($A$7=Nutrients!$B$8,Nutrients!$EU$8,Nutrients!$EU$9)*L$7)+(((IF($A$8=Nutrients!$B$79,Nutrients!$EU$79,(IF($A$8=Nutrients!$B$77,Nutrients!$EU$77,Nutrients!$EU$78)))))*L$8))","v":16000},{"$f":"(SUMPRODUCT(M$9:M$229,Nutrients!$EU$8:$EU$228)+(IF($A$7=Nutrients!$B$8,Nutrients!$EU$8,Nutrients!$EU$9)*M$7)+(((IF($A$8=Nutrients!$B$79,Nutrients!$EU$79,(IF($A$8=Nutrients!$B$77,Nutrients!$EU$77,Nutrients!$EU$78)))))*M$8))","v":12000},{"$f":"(SUMPRODUCT(N$9:N$229,Nutrients!$EU$8:$EU$228)+(IF($A$7=Nutrients!$B$8,Nutrients!$EU$8,Nutrients!$EU$9)*N$7)+(((IF($A$8=Nutrients!$B$79,Nutrients!$EU$79,(IF($A$8=Nutrients!$B$77,Nutrients!$EU$77,Nutrients!$EU$78)))))*N$8))","v":12000},null,{"$f":"(SUMPRODUCT(P$9:P$229,Nutrients!$EU$8:$EU$228)+(IF($A$7=Nutrients!$B$8,Nutrients!$EU$8,Nutrients!$EU$9)*P$7)+(((IF($A$8=Nutrients!$B$79,Nutrients!$EU$79,(IF($A$8=Nutrients!$B$77,Nutrients!$EU$77,Nutrients!$EU$78)))))*P$8))","v":24000},{"$f":"(SUMPRODUCT(Q$9:Q$229,Nutrients!$EU$8:$EU$228)+(IF($A$7=Nutrients!$B$8,Nutrients!$EU$8,Nutrients!$EU$9)*Q$7)+(((IF($A$8=Nutrients!$B$79,Nutrients!$EU$79,(IF($A$8=Nutrients!$B$77,Nutrients!$EU$77,Nutrients!$EU$78)))))*Q$8))","v":24000},{"$f":"(SUMPRODUCT(R$9:R$229,Nutrients!$EU$8:$EU$228)+(IF($A$7=Nutrients!$B$8,Nutrients!$EU$8,Nutrients!$EU$9)*R$7)+(((IF($A$8=Nutrients!$B$79,Nutrients!$EU$79,(IF($A$8=Nutrients!$B$77,Nutrients!$EU$77,Nutrients!$EU$78)))))*R$8))","v":20000},{"$f":"(SUMPRODUCT(S$9:S$229,Nutrients!$EU$8:$EU$228)+(IF($A$7=Nutrients!$B$8,Nutrients!$EU$8,Nutrients!$EU$9)*S$7)+(((IF($A$8=Nutrients!$B$79,Nutrients!$EU$79,(IF($A$8=Nutrients!$B$77,Nutrients!$EU$77,Nutrients!$EU$78)))))*S$8))","v":16000},{"$f":"(SUMPRODUCT(T$9:T$229,Nutrients!$EU$8:$EU$228)+(IF($A$7=Nutrients!$B$8,Nutrients!$EU$8,Nutrients!$EU$9)*T$7)+(((IF($A$8=Nutrients!$B$79,Nutrients!$EU$79,(IF($A$8=Nutrients!$B$77,Nutrients!$EU$77,Nutrients!$EU$78)))))*T$8))","v":12000},{"$f":"(SUMPRODUCT(U$9:U$229,Nutrients!$EU$8:$EU$228)+(IF($A$7=Nutrients!$B$8,Nutrients!$EU$8,Nutrients!$EU$9)*U$7)+(((IF($A$8=Nutrients!$B$79,Nutrients!$EU$79,(IF($A$8=Nutrients!$B$77,Nutrients!$EU$77,Nutrients!$EU$78)))))*U$8))","v":12000},null,{"$f":"(SUMPRODUCT(W$9:W$229,Nutrients!$EU$8:$EU$228)+(IF($A$7=Nutrients!$B$8,Nutrients!$EU$8,Nutrients!$EU$9)*W$7)+(((IF($A$8=Nutrients!$B$79,Nutrients!$EU$79,(IF($A$8=Nutrients!$B$77,Nutrients!$EU$77,Nutrients!$EU$78)))))*W$8))","v":24000},{"$f":"(SUMPRODUCT(X$9:X$229,Nutrients!$EU$8:$EU$228)+(IF($A$7=Nutrients!$B$8,Nutrients!$EU$8,Nutrients!$EU$9)*X$7)+(((IF($A$8=Nutrients!$B$79,Nutrients!$EU$79,(IF($A$8=Nutrients!$B$77,Nutrients!$EU$77,Nutrients!$EU$78)))))*X$8))","v":24000},{"$f":"(SUMPRODUCT(Y$9:Y$229,Nutrients!$EU$8:$EU$228)+(IF($A$7=Nutrients!$B$8,Nutrients!$EU$8,Nutrients!$EU$9)*Y$7)+(((IF($A$8=Nutrients!$B$79,Nutrients!$EU$79,(IF($A$8=Nutrients!$B$77,Nutrients!$EU$77,Nutrients!$EU$78)))))*Y$8))","v":20000},{"$f":"(SUMPRODUCT(Z$9:Z$229,Nutrients!$EU$8:$EU$228)+(IF($A$7=Nutrients!$B$8,Nutrients!$EU$8,Nutrients!$EU$9)*Z$7)+(((IF($A$8=Nutrients!$B$79,Nutrients!$EU$79,(IF($A$8=Nutrients!$B$77,Nutrients!$EU$77,Nutrients!$EU$78)))))*Z$8))","v":16000},{"$f":"(SUMPRODUCT(AA$9:AA$229,Nutrients!$EU$8:$EU$228)+(IF($A$7=Nutrients!$B$8,Nutrients!$EU$8,Nutrients!$EU$9)*AA$7)+(((IF($A$8=Nutrients!$B$79,Nutrients!$EU$79,(IF($A$8=Nutrients!$B$77,Nutrients!$EU$77,Nutrients!$EU$78)))))*AA$8))","v":12000},{"$f":"(SUMPRODUCT(AB$9:AB$229,Nutrients!$EU$8:$EU$228)+(IF($A$7=Nutrients!$B$8,Nutrients!$EU$8,Nutrients!$EU$9)*AB$7)+(((IF($A$8=Nutrients!$B$79,Nutrients!$EU$79,(IF($A$8=Nutrients!$B$77,Nutrients!$EU$77,Nutrients!$EU$78)))))*AB$8))","v":12000},null,{"$f":"(SUMPRODUCT(AD$9:AD$229,Nutrients!$EU$8:$EU$228)+(IF($A$7=Nutrients!$B$8,Nutrients!$EU$8,Nutrients!$EU$9)*AD$7)+(((IF($A$8=Nutrients!$B$79,Nutrients!$EU$79,(IF($A$8=Nutrients!$B$77,Nutrients!$EU$77,Nutrients!$EU$78)))))*AD$8))","v":24000},{"$f":"(SUMPRODUCT(AE$9:AE$229,Nutrients!$EU$8:$EU$228)+(IF($A$7=Nutrients!$B$8,Nutrients!$EU$8,Nutrients!$EU$9)*AE$7)+(((IF($A$8=Nutrients!$B$79,Nutrients!$EU$79,(IF($A$8=Nutrients!$B$77,Nutrients!$EU$77,Nutrients!$EU$78)))))*AE$8))","v":24000},{"$f":"(SUMPRODUCT(AF$9:AF$229,Nutrients!$EU$8:$EU$228)+(IF($A$7=Nutrients!$B$8,Nutrients!$EU$8,Nutrients!$EU$9)*AF$7)+(((IF($A$8=Nutrients!$B$79,Nutrients!$EU$79,(IF($A$8=Nutrients!$B$77,Nutrients!$EU$77,Nutrients!$EU$78)))))*AF$8))","v":20000},{"$f":"(SUMPRODUCT(AG$9:AG$229,Nutrients!$EU$8:$EU$228)+(IF($A$7=Nutrients!$B$8,Nutrients!$EU$8,Nutrients!$EU$9)*AG$7)+(((IF($A$8=Nutrients!$B$79,Nutrients!$EU$79,(IF($A$8=Nutrients!$B$77,Nutrients!$EU$77,Nutrients!$EU$78)))))*AG$8))","v":16000},{"$f":"(SUMPRODUCT(AH$9:AH$229,Nutrients!$EU$8:$EU$228)+(IF($A$7=Nutrients!$B$8,Nutrients!$EU$8,Nutrients!$EU$9)*AH$7)+(((IF($A$8=Nutrients!$B$79,Nutrients!$EU$79,(IF($A$8=Nutrients!$B$77,Nutrients!$EU$77,Nutrients!$EU$78)))))*AH$8))","v":12000},{"$f":"(SUMPRODUCT(AI$9:AI$229,Nutrients!$EU$8:$EU$228)+(IF($A$7=Nutrients!$B$8,Nutrients!$EU$8,Nutrients!$EU$9)*AI$7)+(((IF($A$8=Nutrients!$B$79,Nutrients!$EU$79,(IF($A$8=Nutrients!$B$77,Nutrients!$EU$77,Nutrients!$EU$78)))))*AI$8))","v":12000},null,{"$f":"(SUMPRODUCT(AK$9:AK$229,Nutrients!$EU$8:$EU$228)+(IF($A$7=Nutrients!$B$8,Nutrients!$EU$8,Nutrients!$EU$9)*AK$7)+(((IF($A$8=Nutrients!$B$79,Nutrients!$EU$79,(IF($A$8=Nutrients!$B$77,Nutrients!$EU$77,Nutrients!$EU$78)))))*AK$8))","v":24000},{"$f":"(SUMPRODUCT(AL$9:AL$229,Nutrients!$EU$8:$EU$228)+(IF($A$7=Nutrients!$B$8,Nutrients!$EU$8,Nutrients!$EU$9)*AL$7)+(((IF($A$8=Nutrients!$B$79,Nutrients!$EU$79,(IF($A$8=Nutrients!$B$77,Nutrients!$EU$77,Nutrients!$EU$78)))))*AL$8))","v":24000},{"$f":"(SUMPRODUCT(AM$9:AM$229,Nutrients!$EU$8:$EU$228)+(IF($A$7=Nutrients!$B$8,Nutrients!$EU$8,Nutrients!$EU$9)*AM$7)+(((IF($A$8=Nutrients!$B$79,Nutrients!$EU$79,(IF($A$8=Nutrients!$B$77,Nutrients!$EU$77,Nutrients!$EU$78)))))*AM$8))","v":20000},{"$f":"(SUMPRODUCT(AN$9:AN$229,Nutrients!$EU$8:$EU$228)+(IF($A$7=Nutrients!$B$8,Nutrients!$EU$8,Nutrients!$EU$9)*AN$7)+(((IF($A$8=Nutrients!$B$79,Nutrients!$EU$79,(IF($A$8=Nutrients!$B$77,Nutrients!$EU$77,Nutrients!$EU$78)))))*AN$8))","v":16000},{"$f":"(SUMPRODUCT(AO$9:AO$229,Nutrients!$EU$8:$EU$228)+(IF($A$7=Nutrients!$B$8,Nutrients!$EU$8,Nutrients!$EU$9)*AO$7)+(((IF($A$8=Nutrients!$B$79,Nutrients!$EU$79,(IF($A$8=Nutrients!$B$77,Nutrients!$EU$77,Nutrients!$EU$78)))))*AO$8))","v":12000},{"$f":"(SUMPRODUCT(AP$9:AP$229,Nutrients!$EU$8:$EU$228)+(IF($A$7=Nutrients!$B$8,Nutrients!$EU$8,Nutrients!$EU$9)*AP$7)+(((IF($A$8=Nutrients!$B$79,Nutrients!$EU$79,(IF($A$8=Nutrients!$B$77,Nutrients!$EU$77,Nutrients!$EU$78)))))*AP$8))","v":12000},null,{"$f":"(SUMPRODUCT(AR$9:AR$229,Nutrients!$EU$8:$EU$228)+(IF($A$7=Nutrients!$B$8,Nutrients!$EU$8,Nutrients!$EU$9)*AR$7)+(((IF($A$8=Nutrients!$B$79,Nutrients!$EU$79,(IF($A$8=Nutrients!$B$77,Nutrients!$EU$77,Nutrients!$EU$78)))))*AR$8))","v":24000},{"$f":"(SUMPRODUCT(AS$9:AS$229,Nutrients!$EU$8:$EU$228)+(IF($A$7=Nutrients!$B$8,Nutrients!$EU$8,Nutrients!$EU$9)*AS$7)+(((IF($A$8=Nutrients!$B$79,Nutrients!$EU$79,(IF($A$8=Nutrients!$B$77,Nutrients!$EU$77,Nutrients!$EU$78)))))*AS$8))","v":24000},{"$f":"(SUMPRODUCT(AT$9:AT$229,Nutrients!$EU$8:$EU$228)+(IF($A$7=Nutrients!$B$8,Nutrients!$EU$8,Nutrients!$EU$9)*AT$7)+(((IF($A$8=Nutrients!$B$79,Nutrients!$EU$79,(IF($A$8=Nutrients!$B$77,Nutrients!$EU$77,Nutrients!$EU$78)))))*AT$8))","v":20000},{"$f":"(SUMPRODUCT(AU$9:AU$229,Nutrients!$EU$8:$EU$228)+(IF($A$7=Nutrients!$B$8,Nutrients!$EU$8,Nutrients!$EU$9)*AU$7)+(((IF($A$8=Nutrients!$B$79,Nutrients!$EU$79,(IF($A$8=Nutrients!$B$77,Nutrients!$EU$77,Nutrients!$EU$78)))))*AU$8))","v":16000},{"$f":"(SUMPRODUCT(AV$9:AV$229,Nutrients!$EU$8:$EU$228)+(IF($A$7=Nutrients!$B$8,Nutrients!$EU$8,Nutrients!$EU$9)*AV$7)+(((IF($A$8=Nutrients!$B$79,Nutrients!$EU$79,(IF($A$8=Nutrients!$B$77,Nutrients!$EU$77,Nutrients!$EU$78)))))*AV$8))","v":12000},{"$f":"(SUMPRODUCT(AW$9:AW$229,Nutrients!$EU$8:$EU$228)+(IF($A$7=Nutrients!$B$8,Nutrients!$EU$8,Nutrients!$EU$9)*AW$7)+(((IF($A$8=Nutrients!$B$79,Nutrients!$EU$79,(IF($A$8=Nutrients!$B$77,Nutrients!$EU$77,Nutrients!$EU$78)))))*AW$8))","v":12000}]
["  Vit K (menadione), mg/ton",{"$f":"(SUMPRODUCT(B$9:B$229,Nutrients!$EV$8:$EV$228)+(IF($A$7=Nutrients!$B$8,Nutrients!$EV$8,Nutrients!$EV$9)*B$7)+(((IF($A$8=Nutrients!$B$79,Nutrients!$EV$79,(IF($A$8=Nutrients!$B$77,Nutrients!$EV$77,Nutrients!$EV$78)))))*B$8))","v":1800},{"$f":"(SUMPRODUCT(C$9:C$229,Nutrients!$EV$8:$EV$228)+(IF($A$7=Nutrients!$B$8,Nutrients!$EV$8,Nutrients!$EV$9)*C$7)+(((IF($A$8=Nutrients!$B$79,Nutrients!$EV$79,(IF($A$8=Nutrients!$B$77,Nutrients!$EV$77,Nutrients!$EV$78)))))*C$8))","v":1800},{"$f":"(SUMPRODUCT(D$9:D$229,Nutrients!$EV$8:$EV$228)+(IF($A$7=Nutrients!$B$8,Nutrients!$EV$8,Nutrients!$EV$9)*D$7)+(((IF($A$8=Nutrients!$B$79,Nutrients!$EV$79,(IF($A$8=Nutrients!$B$77,Nutrients!$EV$77,Nutrients!$EV$78)))))*D$8))","v":1500},{"$f":"(SUMPRODUCT(E$9:E$229,Nutrients!$EV$8:$EV$228)+(IF($A$7=Nutrients!$B$8,Nutrients!$EV$8,Nutrients!$EV$9)*E$7)+(((IF($A$8=Nutrients!$B$79,Nutrients!$EV$79,(IF($A$8=Nutrients!$B$77,Nutrients!$EV$77,Nutrients!$EV$78)))))*E$8))","v":1200},{"$f":"(SUMPRODUCT(F$9:F$229,Nutrients!$EV$8:$EV$228)+(IF($A$7=Nutrients!$B$8,Nutrients!$EV$8,Nutrients!$EV$9)*F$7)+(((IF($A$8=Nutrients!$B$79,Nutrients!$EV$79,(IF($A$8=Nutrients!$B$77,Nutrients!$EV$77,Nutrients!$EV$78)))))*F$8))","v":900},{"$f":"(SUMPRODUCT(G$9:G$229,Nutrients!$EV$8:$EV$228)+(IF($A$7=Nutrients!$B$8,Nutrients!$EV$8,Nutrients!$EV$9)*G$7)+(((IF($A$8=Nutrients!$B$79,Nutrients!$EV$79,(IF($A$8=Nutrients!$B$77,Nutrients!$EV$77,Nutrients!$EV$78)))))*G$8))","v":900},null,{"$f":"(SUMPRODUCT(I$9:I$229,Nutrients!$EV$8:$EV$228)+(IF($A$7=Nutrients!$B$8,Nutrients!$EV$8,Nutrients!$EV$9)*I$7)+(((IF($A$8=Nutrients!$B$79,Nutrients!$EV$79,(IF($A$8=Nutrients!$B$77,Nutrients!$EV$77,Nutrients!$EV$78)))))*I$8))","v":1800},{"$f":"(SUMPRODUCT(J$9:J$229,Nutrients!$EV$8:$EV$228)+(IF($A$7=Nutrients!$B$8,Nutrients!$EV$8,Nutrients!$EV$9)*J$7)+(((IF($A$8=Nutrients!$B$79,Nutrients!$EV$79,(IF($A$8=Nutrients!$B$77,Nutrients!$EV$77,Nutrients!$EV$78)))))*J$8))","v":1800},{"$f":"(SUMPRODUCT(K$9:K$229,Nutrients!$EV$8:$EV$228)+(IF($A$7=Nutrients!$B$8,Nutrients!$EV$8,Nutrients!$EV$9)*K$7)+(((IF($A$8=Nutrients!$B$79,Nutrients!$EV$79,(IF($A$8=Nutrients!$B$77,Nutrients!$EV$77,Nutrients!$EV$78)))))*K$8))","v":1500},{"$f":"(SUMPRODUCT(L$9:L$229,Nutrients!$EV$8:$EV$228)+(IF($A$7=Nutrients!$B$8,Nutrients!$EV$8,Nutrients!$EV$9)*L$7)+(((IF($A$8=Nutrients!$B$79,Nutrients!$EV$79,(IF($A$8=Nutrients!$B$77,Nutrients!$EV$77,Nutrients!$EV$78)))))*L$8))","v":1200},{"$f":"(SUMPRODUCT(M$9:M$229,Nutrients!$EV$8:$EV$228)+(IF($A$7=Nutrients!$B$8,Nutrients!$EV$8,Nutrients!$EV$9)*M$7)+(((IF($A$8=Nutrients!$B$79,Nutrients!$EV$79,(IF($A$8=Nutrients!$B$77,Nutrients!$EV$77,Nutrients!$EV$78)))))*M$8))","v":900},{"$f":"(SUMPRODUCT(N$9:N$229,Nutrients!$EV$8:$EV$228)+(IF($A$7=Nutrients!$B$8,Nutrients!$EV$8,Nutrients!$EV$9)*N$7)+(((IF($A$8=Nutrients!$B$79,Nutrients!$EV$79,(IF($A$8=Nutrients!$B$77,Nutrients!$EV$77,Nutrients!$EV$78)))))*N$8))","v":900},null,{"$f":"(SUMPRODUCT(P$9:P$229,Nutrients!$EV$8:$EV$228)+(IF($A$7=Nutrients!$B$8,Nutrients!$EV$8,Nutrients!$EV$9)*P$7)+(((IF($A$8=Nutrients!$B$79,Nutrients!$EV$79,(IF($A$8=Nutrients!$B$77,Nutrients!$EV$77,Nutrients!$EV$78)))))*P$8))","v":1800},{"$f":"(SUMPRODUCT(Q$9:Q$229,Nutrients!$EV$8:$EV$228)+(IF($A$7=Nutrients!$B$8,Nutrients!$EV$8,Nutrients!$EV$9)*Q$7)+(((IF($A$8=Nutrients!$B$79,Nutrients!$EV$79,(IF($A$8=Nutrients!$B$77,Nutrients!$EV$77,Nutrients!$EV$78)))))*Q$8))","v":1800},{"$f":"(SUMPRODUCT(R$9:R$229,Nutrients!$EV$8:$EV$228)+(IF($A$7=Nutrients!$B$8,Nutrients!$EV$8,Nutrients!$EV$9)*R$7)+(((IF($A$8=Nutrients!$B$79,Nutrients!$EV$79,(IF($A$8=Nutrients!$B$77,Nutrients!$EV$77,Nutrients!$EV$78)))))*R$8))","v":1500},{"$f":"(SUMPRODUCT(S$9:S$229,Nutrients!$EV$8:$EV$228)+(IF($A$7=Nutrients!$B$8,Nutrients!$EV$8,Nutrients!$EV$9)*S$7)+(((IF($A$8=Nutrients!$B$79,Nutrients!$EV$79,(IF($A$8=Nutrients!$B$77,Nutrients!$EV$77,Nutrients!$EV$78)))))*S$8))","v":1200},{"$f":"(SUMPRODUCT(T$9:T$229,Nutrients!$EV$8:$EV$228)+(IF($A$7=Nutrients!$B$8,Nutrients!$EV$8,Nutrients!$EV$9)*T$7)+(((IF($A$8=Nutrients!$B$79,Nutrients!$EV$79,(IF($A$8=Nutrients!$B$77,Nutrients!$EV$77,Nutrients!$EV$78)))))*T$8))","v":900},{"$f":"(SUMPRODUCT(U$9:U$229,Nutrients!$EV$8:$EV$228)+(IF($A$7=Nutrients!$B$8,Nutrients!$EV$8,Nutrients!$EV$9)*U$7)+(((IF($A$8=Nutrients!$B$79,Nutrients!$EV$79,(IF($A$8=Nutrients!$B$77,Nutrients!$EV$77,Nutrients!$EV$78)))))*U$8))","v":900},null,{"$f":"(SUMPRODUCT(W$9:W$229,Nutrients!$EV$8:$EV$228)+(IF($A$7=Nutrients!$B$8,Nutrients!$EV$8,Nutrients!$EV$9)*W$7)+(((IF($A$8=Nutrients!$B$79,Nutrients!$EV$79,(IF($A$8=Nutrients!$B$77,Nutrients!$EV$77,Nutrients!$EV$78)))))*W$8))","v":1800},{"$f":"(SUMPRODUCT(X$9:X$229,Nutrients!$EV$8:$EV$228)+(IF($A$7=Nutrients!$B$8,Nutrients!$EV$8,Nutrients!$EV$9)*X$7)+(((IF($A$8=Nutrients!$B$79,Nutrients!$EV$79,(IF($A$8=Nutrients!$B$77,Nutrients!$EV$77,Nutrients!$EV$78)))))*X$8))","v":1800},{"$f":"(SUMPRODUCT(Y$9:Y$229,Nutrients!$EV$8:$EV$228)+(IF($A$7=Nutrients!$B$8,Nutrients!$EV$8,Nutrients!$EV$9)*Y$7)+(((IF($A$8=Nutrients!$B$79,Nutrients!$EV$79,(IF($A$8=Nutrients!$B$77,Nutrients!$EV$77,Nutrients!$EV$78)))))*Y$8))","v":1500},{"$f":"(SUMPRODUCT(Z$9:Z$229,Nutrients!$EV$8:$EV$228)+(IF($A$7=Nutrients!$B$8,Nutrients!$EV$8,Nutrients!$EV$9)*Z$7)+(((IF($A$8=Nutrients!$B$79,Nutrients!$EV$79,(IF($A$8=Nutrients!$B$77,Nutrients!$EV$77,Nutrients!$EV$78)))))*Z$8))","v":1200},{"$f":"(SUMPRODUCT(AA$9:AA$229,Nutrients!$EV$8:$EV$228)+(IF($A$7=Nutrients!$B$8,Nutrients!$EV$8,Nutrients!$EV$9)*AA$7)+(((IF($A$8=Nutrients!$B$79,Nutrients!$EV$79,(IF($A$8=Nutrients!$B$77,Nutrients!$EV$77,Nutrients!$EV$78)))))*AA$8))","v":900},{"$f":"(SUMPRODUCT(AB$9:AB$229,Nutrients!$EV$8:$EV$228)+(IF($A$7=Nutrients!$B$8,Nutrients!$EV$8,Nutrients!$EV$9)*AB$7)+(((IF($A$8=Nutrients!$B$79,Nutrients!$EV$79,(IF($A$8=Nutrients!$B$77,Nutrients!$EV$77,Nutrients!$EV$78)))))*AB$8))","v":900},null,{"$f":"(SUMPRODUCT(AD$9:AD$229,Nutrients!$EV$8:$EV$228)+(IF($A$7=Nutrients!$B$8,Nutrients!$EV$8,Nutrients!$EV$9)*AD$7)+(((IF($A$8=Nutrients!$B$79,Nutrients!$EV$79,(IF($A$8=Nutrients!$B$77,Nutrients!$EV$77,Nutrients!$EV$78)))))*AD$8))","v":1800},{"$f":"(SUMPRODUCT(AE$9:AE$229,Nutrients!$EV$8:$EV$228)+(IF($A$7=Nutrients!$B$8,Nutrients!$EV$8,Nutrients!$EV$9)*AE$7)+(((IF($A$8=Nutrients!$B$79,Nutrients!$EV$79,(IF($A$8=Nutrients!$B$77,Nutrients!$EV$77,Nutrients!$EV$78)))))*AE$8))","v":1800},{"$f":"(SUMPRODUCT(AF$9:AF$229,Nutrients!$EV$8:$EV$228)+(IF($A$7=Nutrients!$B$8,Nutrients!$EV$8,Nutrients!$EV$9)*AF$7)+(((IF($A$8=Nutrients!$B$79,Nutrients!$EV$79,(IF($A$8=Nutrients!$B$77,Nutrients!$EV$77,Nutrients!$EV$78)))))*AF$8))","v":1500},{"$f":"(SUMPRODUCT(AG$9:AG$229,Nutrients!$EV$8:$EV$228)+(IF($A$7=Nutrients!$B$8,Nutrients!$EV$8,Nutrients!$EV$9)*AG$7)+(((IF($A$8=Nutrients!$B$79,Nutrients!$EV$79,(IF($A$8=Nutrients!$B$77,Nutrients!$EV$77,Nutrients!$EV$78)))))*AG$8))","v":1200},{"$f":"(SUMPRODUCT(AH$9:AH$229,Nutrients!$EV$8:$EV$228)+(IF($A$7=Nutrients!$B$8,Nutrients!$EV$8,Nutrients!$EV$9)*AH$7)+(((IF($A$8=Nutrients!$B$79,Nutrients!$EV$79,(IF($A$8=Nutrients!$B$77,Nutrients!$EV$77,Nutrients!$EV$78)))))*AH$8))","v":900},{"$f":"(SUMPRODUCT(AI$9:AI$229,Nutrients!$EV$8:$EV$228)+(IF($A$7=Nutrients!$B$8,Nutrients!$EV$8,Nutrients!$EV$9)*AI$7)+(((IF($A$8=Nutrients!$B$79,Nutrients!$EV$79,(IF($A$8=Nutrients!$B$77,Nutrients!$EV$77,Nutrients!$EV$78)))))*AI$8))","v":900},null,{"$f":"(SUMPRODUCT(AK$9:AK$229,Nutrients!$EV$8:$EV$228)+(IF($A$7=Nutrients!$B$8,Nutrients!$EV$8,Nutrients!$EV$9)*AK$7)+(((IF($A$8=Nutrients!$B$79,Nutrients!$EV$79,(IF($A$8=Nutrients!$B$77,Nutrients!$EV$77,Nutrients!$EV$78)))))*AK$8))","v":1800},{"$f":"(SUMPRODUCT(AL$9:AL$229,Nutrients!$EV$8:$EV$228)+(IF($A$7=Nutrients!$B$8,Nutrients!$EV$8,Nutrients!$EV$9)*AL$7)+(((IF($A$8=Nutrients!$B$79,Nutrients!$EV$79,(IF($A$8=Nutrients!$B$77,Nutrients!$EV$77,Nutrients!$EV$78)))))*AL$8))","v":1800},{"$f":"(SUMPRODUCT(AM$9:AM$229,Nutrients!$EV$8:$EV$228)+(IF($A$7=Nutrients!$B$8,Nutrients!$EV$8,Nutrients!$EV$9)*AM$7)+(((IF($A$8=Nutrients!$B$79,Nutrients!$EV$79,(IF($A$8=Nutrients!$B$77,Nutrients!$EV$77,Nutrients!$EV$78)))))*AM$8))","v":1500},{"$f":"(SUMPRODUCT(AN$9:AN$229,Nutrients!$EV$8:$EV$228)+(IF($A$7=Nutrients!$B$8,Nutrients!$EV$8,Nutrients!$EV$9)*AN$7)+(((IF($A$8=Nutrients!$B$79,Nutrients!$EV$79,(IF($A$8=Nutrients!$B$77,Nutrients!$EV$77,Nutrients!$EV$78)))))*AN$8))","v":1200},{"$f":"(SUMPRODUCT(AO$9:AO$229,Nutrients!$EV$8:$EV$228)+(IF($A$7=Nutrients!$B$8,Nutrients!$EV$8,Nutrients!$EV$9)*AO$7)+(((IF($A$8=Nutrients!$B$79,Nutrients!$EV$79,(IF($A$8=Nutrients!$B$77,Nutrients!$EV$77,Nutrients!$EV$78)))))*AO$8))","v":900},{"$f":"(SUMPRODUCT(AP$9:AP$229,Nutrients!$EV$8:$EV$228)+(IF($A$7=Nutrients!$B$8,Nutrients!$EV$8,Nutrients!$EV$9)*AP$7)+(((IF($A$8=Nutrients!$B$79,Nutrients!$EV$79,(IF($A$8=Nutrients!$B$77,Nutrients!$EV$77,Nutrients!$EV$78)))))*AP$8))","v":900},null,{"$f":"(SUMPRODUCT(AR$9:AR$229,Nutrients!$EV$8:$EV$228)+(IF($A$7=Nutrients!$B$8,Nutrients!$EV$8,Nutrients!$EV$9)*AR$7)+(((IF($A$8=Nutrients!$B$79,Nutrients!$EV$79,(IF($A$8=Nutrients!$B$77,Nutrients!$EV$77,Nutrients!$EV$78)))))*AR$8))","v":1800},{"$f":"(SUMPRODUCT(AS$9:AS$229,Nutrients!$EV$8:$EV$228)+(IF($A$7=Nutrients!$B$8,Nutrients!$EV$8,Nutrients!$EV$9)*AS$7)+(((IF($A$8=Nutrients!$B$79,Nutrients!$EV$79,(IF($A$8=Nutrients!$B$77,Nutrients!$EV$77,Nutrients!$EV$78)))))*AS$8))","v":1800},{"$f":"(SUMPRODUCT(AT$9:AT$229,Nutrients!$EV$8:$EV$228)+(IF($A$7=Nutrients!$B$8,Nutrients!$EV$8,Nutrients!$EV$9)*AT$7)+(((IF($A$8=Nutrients!$B$79,Nutrients!$EV$79,(IF($A$8=Nutrients!$B$77,Nutrients!$EV$77,Nutrients!$EV$78)))))*AT$8))","v":1500},{"$f":"(SUMPRODUCT(AU$9:AU$229,Nutrients!$EV$8:$EV$228)+(IF($A$7=Nutrients!$B$8,Nutrients!$EV$8,Nutrients!$EV$9)*AU$7)+(((IF($A$8=Nutrients!$B$79,Nutrients!$EV$79,(IF($A$8=Nutrients!$B$77,Nutrients!$EV$77,Nutrients!$EV$78)))))*AU$8))","v":1200},{"$f":"(SUMPRODUCT(AV$9:AV$229,Nutrients!$EV$8:$EV$228)+(IF($A$7=Nutrients!$B$8,Nutrients!$EV$8,Nutrients!$EV$9)*AV$7)+(((IF($A$8=Nutrients!$B$79,Nutrients!$EV$79,(IF($A$8=Nutrients!$B$77,Nutrients!$EV$77,Nutrients!$EV$78)))))*AV$8))","v":900},{"$f":"(SUMPRODUCT(AW$9:AW$229,Nutrients!$EV$8:$EV$228)+(IF($A$7=Nutrients!$B$8,Nutrients!$EV$8,Nutrients!$EV$9)*AW$7)+(((IF($A$8=Nutrients!$B$79,Nutrients!$EV$79,(IF($A$8=Nutrients!$B$77,Nutrients!$EV$77,Nutrients!$EV$78)))))*AW$8))","v":900}]
["  Vit B12, mg/ton",{"$f":"(SUMPRODUCT(B$9:B$229,Nutrients!$EW$8:$EW$228)+(IF($A$7=Nutrients!$B$8,Nutrients!$EW$8,Nutrients!$EW$9)*B$7)+(((IF($A$8=Nutrients!$B$79,Nutrients!$EW$79,(IF($A$8=Nutrients!$B$77,Nutrients!$EW$77,Nutrients!$EW$78)))))*B$8))","v":18},{"$f":"(SUMPRODUCT(C$9:C$229,Nutrients!$EW$8:$EW$228)+(IF($A$7=Nutrients!$B$8,Nutrients!$EW$8,Nutrients!$EW$9)*C$7)+(((IF($A$8=Nutrients!$B$79,Nutrients!$EW$79,(IF($A$8=Nutrients!$B$77,Nutrients!$EW$77,Nutrients!$EW$78)))))*C$8))","v":18},{"$f":"(SUMPRODUCT(D$9:D$229,Nutrients!$EW$8:$EW$228)+(IF($A$7=Nutrients!$B$8,Nutrients!$EW$8,Nutrients!$EW$9)*D$7)+(((IF($A$8=Nutrients!$B$79,Nutrients!$EW$79,(IF($A$8=Nutrients!$B$77,Nutrients!$EW$77,Nutrients!$EW$78)))))*D$8))","v":15},{"$f":"(SUMPRODUCT(E$9:E$229,Nutrients!$EW$8:$EW$228)+(IF($A$7=Nutrients!$B$8,Nutrients!$EW$8,Nutrients!$EW$9)*E$7)+(((IF($A$8=Nutrients!$B$79,Nutrients!$EW$79,(IF($A$8=Nutrients!$B$77,Nutrients!$EW$77,Nutrients!$EW$78)))))*E$8))","v":12},{"$f":"(SUMPRODUCT(F$9:F$229,Nutrients!$EW$8:$EW$228)+(IF($A$7=Nutrients!$B$8,Nutrients!$EW$8,Nutrients!$EW$9)*F$7)+(((IF($A$8=Nutrients!$B$79,Nutrients!$EW$79,(IF($A$8=Nutrients!$B$77,Nutrients!$EW$77,Nutrients!$EW$78)))))*F$8))","v":9},{"$f":"(SUMPRODUCT(G$9:G$229,Nutrients!$EW$8:$EW$228)+(IF($A$7=Nutrients!$B$8,Nutrients!$EW$8,Nutrients!$EW$9)*G$7)+(((IF($A$8=Nutrients!$B$79,Nutrients!$EW$79,(IF($A$8=Nutrients!$B$77,Nutrients!$EW$77,Nutrients!$EW$78)))))*G$8))","v":9},null,{"$f":"(SUMPRODUCT(I$9:I$229,Nutrients!$EW$8:$EW$228)+(IF($A$7=Nutrients!$B$8,Nutrients!$EW$8,Nutrients!$EW$9)*I$7)+(((IF($A$8=Nutrients!$B$79,Nutrients!$EW$79,(IF($A$8=Nutrients!$B$77,Nutrients!$EW$77,Nutrients!$EW$78)))))*I$8))","v":18},{"$f":"(SUMPRODUCT(J$9:J$229,Nutrients!$EW$8:$EW$228)+(IF($A$7=Nutrients!$B$8,Nutrients!$EW$8,Nutrients!$EW$9)*J$7)+(((IF($A$8=Nutrients!$B$79,Nutrients!$EW$79,(IF($A$8=Nutrients!$B$77,Nutrients!$EW$77,Nutrients!$EW$78)))))*J$8))","v":18},{"$f":"(SUMPRODUCT(K$9:K$229,Nutrients!$EW$8:$EW$228)+(IF($A$7=Nutrients!$B$8,Nutrients!$EW$8,Nutrients!$EW$9)*K$7)+(((IF($A$8=Nutrients!$B$79,Nutrients!$EW$79,(IF($A$8=Nutrients!$B$77,Nutrients!$EW$77,Nutrients!$EW$78)))))*K$8))","v":15},{"$f":"(SUMPRODUCT(L$9:L$229,Nutrients!$EW$8:$EW$228)+(IF($A$7=Nutrients!$B$8,Nutrients!$EW$8,Nutrients!$EW$9)*L$7)+(((IF($A$8=Nutrients!$B$79,Nutrients!$EW$79,(IF($A$8=Nutrients!$B$77,Nutrients!$EW$77,Nutrients!$EW$78)))))*L$8))","v":12},{"$f":"(SUMPRODUCT(M$9:M$229,Nutrients!$EW$8:$EW$228)+(IF($A$7=Nutrients!$B$8,Nutrients!$EW$8,Nutrients!$EW$9)*M$7)+(((IF($A$8=Nutrients!$B$79,Nutrients!$EW$79,(IF($A$8=Nutrients!$B$77,Nutrients!$EW$77,Nutrients!$EW$78)))))*M$8))","v":9},{"$f":"(SUMPRODUCT(N$9:N$229,Nutrients!$EW$8:$EW$228)+(IF($A$7=Nutrients!$B$8,Nutrients!$EW$8,Nutrients!$EW$9)*N$7)+(((IF($A$8=Nutrients!$B$79,Nutrients!$EW$79,(IF($A$8=Nutrients!$B$77,Nutrients!$EW$77,Nutrients!$EW$78)))))*N$8))","v":9},null,{"$f":"(SUMPRODUCT(P$9:P$229,Nutrients!$EW$8:$EW$228)+(IF($A$7=Nutrients!$B$8,Nutrients!$EW$8,Nutrients!$EW$9)*P$7)+(((IF($A$8=Nutrients!$B$79,Nutrients!$EW$79,(IF($A$8=Nutrients!$B$77,Nutrients!$EW$77,Nutrients!$EW$78)))))*P$8))","v":18},{"$f":"(SUMPRODUCT(Q$9:Q$229,Nutrients!$EW$8:$EW$228)+(IF($A$7=Nutrients!$B$8,Nutrients!$EW$8,Nutrients!$EW$9)*Q$7)+(((IF($A$8=Nutrients!$B$79,Nutrients!$EW$79,(IF($A$8=Nutrients!$B$77,Nutrients!$EW$77,Nutrients!$EW$78)))))*Q$8))","v":18},{"$f":"(SUMPRODUCT(R$9:R$229,Nutrients!$EW$8:$EW$228)+(IF($A$7=Nutrients!$B$8,Nutrients!$EW$8,Nutrients!$EW$9)*R$7)+(((IF($A$8=Nutrients!$B$79,Nutrients!$EW$79,(IF($A$8=Nutrients!$B$77,Nutrients!$EW$77,Nutrients!$EW$78)))))*R$8))","v":15},{"$f":"(SUMPRODUCT(S$9:S$229,Nutrients!$EW$8:$EW$228)+(IF($A$7=Nutrients!$B$8,Nutrients!$EW$8,Nutrients!$EW$9)*S$7)+(((IF($A$8=Nutrients!$B$79,Nutrients!$EW$79,(IF($A$8=Nutrients!$B$77,Nutrients!$EW$77,Nutrients!$EW$78)))))*S$8))","v":12},{"$f":"(SUMPRODUCT(T$9:T$229,Nutrients!$EW$8:$EW$228)+(IF($A$7=Nutrients!$B$8,Nutrients!$EW$8,Nutrients!$EW$9)*T$7)+(((IF($A$8=Nutrients!$B$79,Nutrients!$EW$79,(IF($A$8=Nutrients!$B$77,Nutrients!$EW$77,Nutrients!$EW$78)))))*T$8))","v":9},{"$f":"(SUMPRODUCT(U$9:U$229,Nutrients!$EW$8:$EW$228)+(IF($A$7=Nutrients!$B$8,Nutrients!$EW$8,Nutrients!$EW$9)*U$7)+(((IF($A$8=Nutrients!$B$79,Nutrients!$EW$79,(IF($A$8=Nutrients!$B$77,Nutrients!$EW$77,Nutrients!$EW$78)))))*U$8))","v":9},null,{"$f":"(SUMPRODUCT(W$9:W$229,Nutrients!$EW$8:$EW$228)+(IF($A$7=Nutrients!$B$8,Nutrients!$EW$8,Nutrients!$EW$9)*W$7)+(((IF($A$8=Nutrients!$B$79,Nutrients!$EW$79,(IF($A$8=Nutrients!$B$77,Nutrients!$EW$77,Nutrients!$EW$78)))))*W$8))","v":18},{"$f":"(SUMPRODUCT(X$9:X$229,Nutrients!$EW$8:$EW$228)+(IF($A$7=Nutrients!$B$8,Nutrients!$EW$8,Nutrients!$EW$9)*X$7)+(((IF($A$8=Nutrients!$B$79,Nutrients!$EW$79,(IF($A$8=Nutrients!$B$77,Nutrients!$EW$77,Nutrients!$EW$78)))))*X$8))","v":18},{"$f":"(SUMPRODUCT(Y$9:Y$229,Nutrients!$EW$8:$EW$228)+(IF($A$7=Nutrients!$B$8,Nutrients!$EW$8,Nutrients!$EW$9)*Y$7)+(((IF($A$8=Nutrients!$B$79,Nutrients!$EW$79,(IF($A$8=Nutrients!$B$77,Nutrients!$EW$77,Nutrients!$EW$78)))))*Y$8))","v":15},{"$f":"(SUMPRODUCT(Z$9:Z$229,Nutrients!$EW$8:$EW$228)+(IF($A$7=Nutrients!$B$8,Nutrients!$EW$8,Nutrients!$EW$9)*Z$7)+(((IF($A$8=Nutrients!$B$79,Nutrients!$EW$79,(IF($A$8=Nutrients!$B$77,Nutrients!$EW$77,Nutrients!$EW$78)))))*Z$8))","v":12},{"$f":"(SUMPRODUCT(AA$9:AA$229,Nutrients!$EW$8:$EW$228)+(IF($A$7=Nutrients!$B$8,Nutrients!$EW$8,Nutrients!$EW$9)*AA$7)+(((IF($A$8=Nutrients!$B$79,Nutrients!$EW$79,(IF($A$8=Nutrients!$B$77,Nutrients!$EW$77,Nutrients!$EW$78)))))*AA$8))","v":9},{"$f":"(SUMPRODUCT(AB$9:AB$229,Nutrients!$EW$8:$EW$228)+(IF($A$7=Nutrients!$B$8,Nutrients!$EW$8,Nutrients!$EW$9)*AB$7)+(((IF($A$8=Nutrients!$B$79,Nutrients!$EW$79,(IF($A$8=Nutrients!$B$77,Nutrients!$EW$77,Nutrients!$EW$78)))))*AB$8))","v":9},null,{"$f":"(SUMPRODUCT(AD$9:AD$229,Nutrients!$EW$8:$EW$228)+(IF($A$7=Nutrients!$B$8,Nutrients!$EW$8,Nutrients!$EW$9)*AD$7)+(((IF($A$8=Nutrients!$B$79,Nutrients!$EW$79,(IF($A$8=Nutrients!$B$77,Nutrients!$EW$77,Nutrients!$EW$78)))))*AD$8))","v":18},{"$f":"(SUMPRODUCT(AE$9:AE$229,Nutrients!$EW$8:$EW$228)+(IF($A$7=Nutrients!$B$8,Nutrients!$EW$8,Nutrients!$EW$9)*AE$7)+(((IF($A$8=Nutrients!$B$79,Nutrients!$EW$79,(IF($A$8=Nutrients!$B$77,Nutrients!$EW$77,Nutrients!$EW$78)))))*AE$8))","v":18},{"$f":"(SUMPRODUCT(AF$9:AF$229,Nutrients!$EW$8:$EW$228)+(IF($A$7=Nutrients!$B$8,Nutrients!$EW$8,Nutrients!$EW$9)*AF$7)+(((IF($A$8=Nutrients!$B$79,Nutrients!$EW$79,(IF($A$8=Nutrients!$B$77,Nutrients!$EW$77,Nutrients!$EW$78)))))*AF$8))","v":15},{"$f":"(SUMPRODUCT(AG$9:AG$229,Nutrients!$EW$8:$EW$228)+(IF($A$7=Nutrients!$B$8,Nutrients!$EW$8,Nutrients!$EW$9)*AG$7)+(((IF($A$8=Nutrients!$B$79,Nutrients!$EW$79,(IF($A$8=Nutrients!$B$77,Nutrients!$EW$77,Nutrients!$EW$78)))))*AG$8))","v":12},{"$f":"(SUMPRODUCT(AH$9:AH$229,Nutrients!$EW$8:$EW$228)+(IF($A$7=Nutrients!$B$8,Nutrients!$EW$8,Nutrients!$EW$9)*AH$7)+(((IF($A$8=Nutrients!$B$79,Nutrients!$EW$79,(IF($A$8=Nutrients!$B$77,Nutrients!$EW$77,Nutrients!$EW$78)))))*AH$8))","v":9},{"$f":"(SUMPRODUCT(AI$9:AI$229,Nutrients!$EW$8:$EW$228)+(IF($A$7=Nutrients!$B$8,Nutrients!$EW$8,Nutrients!$EW$9)*AI$7)+(((IF($A$8=Nutrients!$B$79,Nutrients!$EW$79,(IF($A$8=Nutrients!$B$77,Nutrients!$EW$77,Nutrients!$EW$78)))))*AI$8))","v":9},null,{"$f":"(SUMPRODUCT(AK$9:AK$229,Nutrients!$EW$8:$EW$228)+(IF($A$7=Nutrients!$B$8,Nutrients!$EW$8,Nutrients!$EW$9)*AK$7)+(((IF($A$8=Nutrients!$B$79,Nutrients!$EW$79,(IF($A$8=Nutrients!$B$77,Nutrients!$EW$77,Nutrients!$EW$78)))))*AK$8))","v":18},{"$f":"(SUMPRODUCT(AL$9:AL$229,Nutrients!$EW$8:$EW$228)+(IF($A$7=Nutrients!$B$8,Nutrients!$EW$8,Nutrients!$EW$9)*AL$7)+(((IF($A$8=Nutrients!$B$79,Nutrients!$EW$79,(IF($A$8=Nutrients!$B$77,Nutrients!$EW$77,Nutrients!$EW$78)))))*AL$8))","v":18},{"$f":"(SUMPRODUCT(AM$9:AM$229,Nutrients!$EW$8:$EW$228)+(IF($A$7=Nutrients!$B$8,Nutrients!$EW$8,Nutrients!$EW$9)*AM$7)+(((IF($A$8=Nutrients!$B$79,Nutrients!$EW$79,(IF($A$8=Nutrients!$B$77,Nutrients!$EW$77,Nutrients!$EW$78)))))*AM$8))","v":15},{"$f":"(SUMPRODUCT(AN$9:AN$229,Nutrients!$EW$8:$EW$228)+(IF($A$7=Nutrients!$B$8,Nutrients!$EW$8,Nutrients!$EW$9)*AN$7)+(((IF($A$8=Nutrients!$B$79,Nutrients!$EW$79,(IF($A$8=Nutrients!$B$77,Nutrients!$EW$77,Nutrients!$EW$78)))))*AN$8))","v":12},{"$f":"(SUMPRODUCT(AO$9:AO$229,Nutrients!$EW$8:$EW$228)+(IF($A$7=Nutrients!$B$8,Nutrients!$EW$8,Nutrients!$EW$9)*AO$7)+(((IF($A$8=Nutrients!$B$79,Nutrients!$EW$79,(IF($A$8=Nutrients!$B$77,Nutrients!$EW$77,Nutrients!$EW$78)))))*AO$8))","v":9},{"$f":"(SUMPRODUCT(AP$9:AP$229,Nutrients!$EW$8:$EW$228)+(IF($A$7=Nutrients!$B$8,Nutrients!$EW$8,Nutrients!$EW$9)*AP$7)+(((IF($A$8=Nutrients!$B$79,Nutrients!$EW$79,(IF($A$8=Nutrients!$B$77,Nutrients!$EW$77,Nutrients!$EW$78)))))*AP$8))","v":9},null,{"$f":"(SUMPRODUCT(AR$9:AR$229,Nutrients!$EW$8:$EW$228)+(IF($A$7=Nutrients!$B$8,Nutrients!$EW$8,Nutrients!$EW$9)*AR$7)+(((IF($A$8=Nutrients!$B$79,Nutrients!$EW$79,(IF($A$8=Nutrients!$B$77,Nutrients!$EW$77,Nutrients!$EW$78)))))*AR$8))","v":18},{"$f":"(SUMPRODUCT(AS$9:AS$229,Nutrients!$EW$8:$EW$228)+(IF($A$7=Nutrients!$B$8,Nutrients!$EW$8,Nutrients!$EW$9)*AS$7)+(((IF($A$8=Nutrients!$B$79,Nutrients!$EW$79,(IF($A$8=Nutrients!$B$77,Nutrients!$EW$77,Nutrients!$EW$78)))))*AS$8))","v":18},{"$f":"(SUMPRODUCT(AT$9:AT$229,Nutrients!$EW$8:$EW$228)+(IF($A$7=Nutrients!$B$8,Nutrients!$EW$8,Nutrients!$EW$9)*AT$7)+(((IF($A$8=Nutrients!$B$79,Nutrients!$EW$79,(IF($A$8=Nutrients!$B$77,Nutrients!$EW$77,Nutrients!$EW$78)))))*AT$8))","v":15},{"$f":"(SUMPRODUCT(AU$9:AU$229,Nutrients!$EW$8:$EW$228)+(IF($A$7=Nutrients!$B$8,Nutrients!$EW$8,Nutrients!$EW$9)*AU$7)+(((IF($A$8=Nutrients!$B$79,Nutrients!$EW$79,(IF($A$8=Nutrients!$B$77,Nutrients!$EW$77,Nutrients!$EW$78)))))*AU$8))","v":12},{"$f":"(SUMPRODUCT(AV$9:AV$229,Nutrients!$EW$8:$EW$228)+(IF($A$7=Nutrients!$B$8,Nutrients!$EW$8,Nutrients!$EW$9)*AV$7)+(((IF($A$8=Nutrients!$B$79,Nutrients!$EW$79,(IF($A$8=Nutrients!$B$77,Nutrients!$EW$77,Nutrients!$EW$78)))))*AV$8))","v":9},{"$f":"(SUMPRODUCT(AW$9:AW$229,Nutrients!$EW$8:$EW$228)+(IF($A$7=Nutrients!$B$8,Nutrients!$EW$8,Nutrients!$EW$9)*AW$7)+(((IF($A$8=Nutrients!$B$79,Nutrients!$EW$79,(IF($A$8=Nutrients!$B$77,Nutrients!$EW$77,Nutrients!$EW$78)))))*AW$8))","v":9}]
["  Niacin, mg/ton",{"$f":"(SUMPRODUCT(B$9:B$229,Nutrients!$EX$8:$EX$228)+(IF($A$7=Nutrients!$B$8,Nutrients!$EX$8,Nutrients!$EX$9)*B$7)+(((IF($A$8=Nutrients!$B$79,Nutrients!$EX$79,(IF($A$8=Nutrients!$B$77,Nutrients!$EX$77,Nutrients!$EX$78)))))*B$8))","v":27000},{"$f":"(SUMPRODUCT(C$9:C$229,Nutrients!$EX$8:$EX$228)+(IF($A$7=Nutrients!$B$8,Nutrients!$EX$8,Nutrients!$EX$9)*C$7)+(((IF($A$8=Nutrients!$B$79,Nutrients!$EX$79,(IF($A$8=Nutrients!$B$77,Nutrients!$EX$77,Nutrients!$EX$78)))))*C$8))","v":27000},{"$f":"(SUMPRODUCT(D$9:D$229,Nutrients!$EX$8:$EX$228)+(IF($A$7=Nutrients!$B$8,Nutrients!$EX$8,Nutrients!$EX$9)*D$7)+(((IF($A$8=Nutrients!$B$79,Nutrients!$EX$79,(IF($A$8=Nutrients!$B$77,Nutrients!$EX$77,Nutrients!$EX$78)))))*D$8))","v":22500},{"$f":"(SUMPRODUCT(E$9:E$229,Nutrients!$EX$8:$EX$228)+(IF($A$7=Nutrients!$B$8,Nutrients!$EX$8,Nutrients!$EX$9)*E$7)+(((IF($A$8=Nutrients!$B$79,Nutrients!$EX$79,(IF($A$8=Nutrients!$B$77,Nutrients!$EX$77,Nutrients!$EX$78)))))*E$8))","v":18000},{"$f":"(SUMPRODUCT(F$9:F$229,Nutrients!$EX$8:$EX$228)+(IF($A$7=Nutrients!$B$8,Nutrients!$EX$8,Nutrients!$EX$9)*F$7)+(((IF($A$8=Nutrients!$B$79,Nutrients!$EX$79,(IF($A$8=Nutrients!$B$77,Nutrients!$EX$77,Nutrients!$EX$78)))))*F$8))","v":13500},{"$f":"(SUMPRODUCT(G$9:G$229,Nutrients!$EX$8:$EX$228)+(IF($A$7=Nutrients!$B$8,Nutrients!$EX$8,Nutrients!$EX$9)*G$7)+(((IF($A$8=Nutrients!$B$79,Nutrients!$EX$79,(IF($A$8=Nutrients!$B$77,Nutrients!$EX$77,Nutrients!$EX$78)))))*G$8))","v":13500},null,{"$f":"(SUMPRODUCT(I$9:I$229,Nutrients!$EX$8:$EX$228)+(IF($A$7=Nutrients!$B$8,Nutrients!$EX$8,Nutrients!$EX$9)*I$7)+(((IF($A$8=Nutrients!$B$79,Nutrients!$EX$79,(IF($A$8=Nutrients!$B$77,Nutrients!$EX$77,Nutrients!$EX$78)))))*I$8))","v":27000},{"$f":"(SUMPRODUCT(J$9:J$229,Nutrients!$EX$8:$EX$228)+(IF($A$7=Nutrients!$B$8,Nutrients!$EX$8,Nutrients!$EX$9)*J$7)+(((IF($A$8=Nutrients!$B$79,Nutrients!$EX$79,(IF($A$8=Nutrients!$B$77,Nutrients!$EX$77,Nutrients!$EX$78)))))*J$8))","v":27000},{"$f":"(SUMPRODUCT(K$9:K$229,Nutrients!$EX$8:$EX$228)+(IF($A$7=Nutrients!$B$8,Nutrients!$EX$8,Nutrients!$EX$9)*K$7)+(((IF($A$8=Nutrients!$B$79,Nutrients!$EX$79,(IF($A$8=Nutrients!$B$77,Nutrients!$EX$77,Nutrients!$EX$78)))))*K$8))","v":22500},{"$f":"(SUMPRODUCT(L$9:L$229,Nutrients!$EX$8:$EX$228)+(IF($A$7=Nutrients!$B$8,Nutrients!$EX$8,Nutrients!$EX$9)*L$7)+(((IF($A$8=Nutrients!$B$79,Nutrients!$EX$79,(IF($A$8=Nutrients!$B$77,Nutrients!$EX$77,Nutrients!$EX$78)))))*L$8))","v":18000},{"$f":"(SUMPRODUCT(M$9:M$229,Nutrients!$EX$8:$EX$228)+(IF($A$7=Nutrients!$B$8,Nutrients!$EX$8,Nutrients!$EX$9)*M$7)+(((IF($A$8=Nutrients!$B$79,Nutrients!$EX$79,(IF($A$8=Nutrients!$B$77,Nutrients!$EX$77,Nutrients!$EX$78)))))*M$8))","v":13500},{"$f":"(SUMPRODUCT(N$9:N$229,Nutrients!$EX$8:$EX$228)+(IF($A$7=Nutrients!$B$8,Nutrients!$EX$8,Nutrients!$EX$9)*N$7)+(((IF($A$8=Nutrients!$B$79,Nutrients!$EX$79,(IF($A$8=Nutrients!$B$77,Nutrients!$EX$77,Nutrients!$EX$78)))))*N$8))","v":13500},null,{"$f":"(SUMPRODUCT(P$9:P$229,Nutrients!$EX$8:$EX$228)+(IF($A$7=Nutrients!$B$8,Nutrients!$EX$8,Nutrients!$EX$9)*P$7)+(((IF($A$8=Nutrients!$B$79,Nutrients!$EX$79,(IF($A$8=Nutrients!$B$77,Nutrients!$EX$77,Nutrients!$EX$78)))))*P$8))","v":27000},{"$f":"(SUMPRODUCT(Q$9:Q$229,Nutrients!$EX$8:$EX$228)+(IF($A$7=Nutrients!$B$8,Nutrients!$EX$8,Nutrients!$EX$9)*Q$7)+(((IF($A$8=Nutrients!$B$79,Nutrients!$EX$79,(IF($A$8=Nutrients!$B$77,Nutrients!$EX$77,Nutrients!$EX$78)))))*Q$8))","v":27000},{"$f":"(SUMPRODUCT(R$9:R$229,Nutrients!$EX$8:$EX$228)+(IF($A$7=Nutrients!$B$8,Nutrients!$EX$8,Nutrients!$EX$9)*R$7)+(((IF($A$8=Nutrients!$B$79,Nutrients!$EX$79,(IF($A$8=Nutrients!$B$77,Nutrients!$EX$77,Nutrients!$EX$78)))))*R$8))","v":22500},{"$f":"(SUMPRODUCT(S$9:S$229,Nutrients!$EX$8:$EX$228)+(IF($A$7=Nutrients!$B$8,Nutrients!$EX$8,Nutrients!$EX$9)*S$7)+(((IF($A$8=Nutrients!$B$79,Nutrients!$EX$79,(IF($A$8=Nutrients!$B$77,Nutrients!$EX$77,Nutrients!$EX$78)))))*S$8))","v":18000},{"$f":"(SUMPRODUCT(T$9:T$229,Nutrients!$EX$8:$EX$228)+(IF($A$7=Nutrients!$B$8,Nutrients!$EX$8,Nutrients!$EX$9)*T$7)+(((IF($A$8=Nutrients!$B$79,Nutrients!$EX$79,(IF($A$8=Nutrients!$B$77,Nutrients!$EX$77,Nutrients!$EX$78)))))*T$8))","v":13500},{"$f":"(SUMPRODUCT(U$9:U$229,Nutrients!$EX$8:$EX$228)+(IF($A$7=Nutrients!$B$8,Nutrients!$EX$8,Nutrients!$EX$9)*U$7)+(((IF($A$8=Nutrients!$B$79,Nutrients!$EX$79,(IF($A$8=Nutrients!$B$77,Nutrients!$EX$77,Nutrients!$EX$78)))))*U$8))","v":13500},null,{"$f":"(SUMPRODUCT(W$9:W$229,Nutrients!$EX$8:$EX$228)+(IF($A$7=Nutrients!$B$8,Nutrients!$EX$8,Nutrients!$EX$9)*W$7)+(((IF($A$8=Nutrients!$B$79,Nutrients!$EX$79,(IF($A$8=Nutrients!$B$77,Nutrients!$EX$77,Nutrients!$EX$78)))))*W$8))","v":27000},{"$f":"(SUMPRODUCT(X$9:X$229,Nutrients!$EX$8:$EX$228)+(IF($A$7=Nutrients!$B$8,Nutrients!$EX$8,Nutrients!$EX$9)*X$7)+(((IF($A$8=Nutrients!$B$79,Nutrients!$EX$79,(IF($A$8=Nutrients!$B$77,Nutrients!$EX$77,Nutrients!$EX$78)))))*X$8))","v":27000},{"$f":"(SUMPRODUCT(Y$9:Y$229,Nutrients!$EX$8:$EX$228)+(IF($A$7=Nutrients!$B$8,Nutrients!$EX$8,Nutrients!$EX$9)*Y$7)+(((IF($A$8=Nutrients!$B$79,Nutrients!$EX$79,(IF($A$8=Nutrients!$B$77,Nutrients!$EX$77,Nutrients!$EX$78)))))*Y$8))","v":22500},{"$f":"(SUMPRODUCT(Z$9:Z$229,Nutrients!$EX$8:$EX$228)+(IF($A$7=Nutrients!$B$8,Nutrients!$EX$8,Nutrients!$EX$9)*Z$7)+(((IF($A$8=Nutrients!$B$79,Nutrients!$EX$79,(IF($A$8=Nutrients!$B$77,Nutrients!$EX$77,Nutrients!$EX$78)))))*Z$8))","v":18000},{"$f":"(SUMPRODUCT(AA$9:AA$229,Nutrients!$EX$8:$EX$228)+(IF($A$7=Nutrients!$B$8,Nutrients!$EX$8,Nutrients!$EX$9)*AA$7)+(((IF($A$8=Nutrients!$B$79,Nutrients!$EX$79,(IF($A$8=Nutrients!$B$77,Nutrients!$EX$77,Nutrients!$EX$78)))))*AA$8))","v":13500},{"$f":"(SUMPRODUCT(AB$9:AB$229,Nutrients!$EX$8:$EX$228)+(IF($A$7=Nutrients!$B$8,Nutrients!$EX$8,Nutrients!$EX$9)*AB$7)+(((IF($A$8=Nutrients!$B$79,Nutrients!$EX$79,(IF($A$8=Nutrients!$B$77,Nutrients!$EX$77,Nutrients!$EX$78)))))*AB$8))","v":13500},null,{"$f":"(SUMPRODUCT(AD$9:AD$229,Nutrients!$EX$8:$EX$228)+(IF($A$7=Nutrients!$B$8,Nutrients!$EX$8,Nutrients!$EX$9)*AD$7)+(((IF($A$8=Nutrients!$B$79,Nutrients!$EX$79,(IF($A$8=Nutrients!$B$77,Nutrients!$EX$77,Nutrients!$EX$78)))))*AD$8))","v":27000},{"$f":"(SUMPRODUCT(AE$9:AE$229,Nutrients!$EX$8:$EX$228)+(IF($A$7=Nutrients!$B$8,Nutrients!$EX$8,Nutrients!$EX$9)*AE$7)+(((IF($A$8=Nutrients!$B$79,Nutrients!$EX$79,(IF($A$8=Nutrients!$B$77,Nutrients!$EX$77,Nutrients!$EX$78)))))*AE$8))","v":27000},{"$f":"(SUMPRODUCT(AF$9:AF$229,Nutrients!$EX$8:$EX$228)+(IF($A$7=Nutrients!$B$8,Nutrients!$EX$8,Nutrients!$EX$9)*AF$7)+(((IF($A$8=Nutrients!$B$79,Nutrients!$EX$79,(IF($A$8=Nutrients!$B$77,Nutrients!$EX$77,Nutrients!$EX$78)))))*AF$8))","v":22500},{"$f":"(SUMPRODUCT(AG$9:AG$229,Nutrients!$EX$8:$EX$228)+(IF($A$7=Nutrients!$B$8,Nutrients!$EX$8,Nutrients!$EX$9)*AG$7)+(((IF($A$8=Nutrients!$B$79,Nutrients!$EX$79,(IF($A$8=Nutrients!$B$77,Nutrients!$EX$77,Nutrients!$EX$78)))))*AG$8))","v":18000},{"$f":"(SUMPRODUCT(AH$9:AH$229,Nutrients!$EX$8:$EX$228)+(IF($A$7=Nutrients!$B$8,Nutrients!$EX$8,Nutrients!$EX$9)*AH$7)+(((IF($A$8=Nutrients!$B$79,Nutrients!$EX$79,(IF($A$8=Nutrients!$B$77,Nutrients!$EX$77,Nutrients!$EX$78)))))*AH$8))","v":13500},{"$f":"(SUMPRODUCT(AI$9:AI$229,Nutrients!$EX$8:$EX$228)+(IF($A$7=Nutrients!$B$8,Nutrients!$EX$8,Nutrients!$EX$9)*AI$7)+(((IF($A$8=Nutrients!$B$79,Nutrients!$EX$79,(IF($A$8=Nutrients!$B$77,Nutrients!$EX$77,Nutrients!$EX$78)))))*AI$8))","v":13500},null,{"$f":"(SUMPRODUCT(AK$9:AK$229,Nutrients!$EX$8:$EX$228)+(IF($A$7=Nutrients!$B$8,Nutrients!$EX$8,Nutrients!$EX$9)*AK$7)+(((IF($A$8=Nutrients!$B$79,Nutrients!$EX$79,(IF($A$8=Nutrients!$B$77,Nutrients!$EX$77,Nutrients!$EX$78)))))*AK$8))","v":27000},{"$f":"(SUMPRODUCT(AL$9:AL$229,Nutrients!$EX$8:$EX$228)+(IF($A$7=Nutrients!$B$8,Nutrients!$EX$8,Nutrients!$EX$9)*AL$7)+(((IF($A$8=Nutrients!$B$79,Nutrients!$EX$79,(IF($A$8=Nutrients!$B$77,Nutrients!$EX$77,Nutrients!$EX$78)))))*AL$8))","v":27000},{"$f":"(SUMPRODUCT(AM$9:AM$229,Nutrients!$EX$8:$EX$228)+(IF($A$7=Nutrients!$B$8,Nutrients!$EX$8,Nutrients!$EX$9)*AM$7)+(((IF($A$8=Nutrients!$B$79,Nutrients!$EX$79,(IF($A$8=Nutrients!$B$77,Nutrients!$EX$77,Nutrients!$EX$78)))))*AM$8))","v":22500},{"$f":"(SUMPRODUCT(AN$9:AN$229,Nutrients!$EX$8:$EX$228)+(IF($A$7=Nutrients!$B$8,Nutrients!$EX$8,Nutrients!$EX$9)*AN$7)+(((IF($A$8=Nutrients!$B$79,Nutrients!$EX$79,(IF($A$8=Nutrients!$B$77,Nutrients!$EX$77,Nutrients!$EX$78)))))*AN$8))","v":18000},{"$f":"(SUMPRODUCT(AO$9:AO$229,Nutrients!$EX$8:$EX$228)+(IF($A$7=Nutrients!$B$8,Nutrients!$EX$8,Nutrients!$EX$9)*AO$7)+(((IF($A$8=Nutrients!$B$79,Nutrients!$EX$79,(IF($A$8=Nutrients!$B$77,Nutrients!$EX$77,Nutrients!$EX$78)))))*AO$8))","v":13500},{"$f":"(SUMPRODUCT(AP$9:AP$229,Nutrients!$EX$8:$EX$228)+(IF($A$7=Nutrients!$B$8,Nutrients!$EX$8,Nutrients!$EX$9)*AP$7)+(((IF($A$8=Nutrients!$B$79,Nutrients!$EX$79,(IF($A$8=Nutrients!$B$77,Nutrients!$EX$77,Nutrients!$EX$78)))))*AP$8))","v":13500},null,{"$f":"(SUMPRODUCT(AR$9:AR$229,Nutrients!$EX$8:$EX$228)+(IF($A$7=Nutrients!$B$8,Nutrients!$EX$8,Nutrients!$EX$9)*AR$7)+(((IF($A$8=Nutrients!$B$79,Nutrients!$EX$79,(IF($A$8=Nutrients!$B$77,Nutrients!$EX$77,Nutrients!$EX$78)))))*AR$8))","v":27000},{"$f":"(SUMPRODUCT(AS$9:AS$229,Nutrients!$EX$8:$EX$228)+(IF($A$7=Nutrients!$B$8,Nutrients!$EX$8,Nutrients!$EX$9)*AS$7)+(((IF($A$8=Nutrients!$B$79,Nutrients!$EX$79,(IF($A$8=Nutrients!$B$77,Nutrients!$EX$77,Nutrients!$EX$78)))))*AS$8))","v":27000},{"$f":"(SUMPRODUCT(AT$9:AT$229,Nutrients!$EX$8:$EX$228)+(IF($A$7=Nutrients!$B$8,Nutrients!$EX$8,Nutrients!$EX$9)*AT$7)+(((IF($A$8=Nutrients!$B$79,Nutrients!$EX$79,(IF($A$8=Nutrients!$B$77,Nutrients!$EX$77,Nutrients!$EX$78)))))*AT$8))","v":22500},{"$f":"(SUMPRODUCT(AU$9:AU$229,Nutrients!$EX$8:$EX$228)+(IF($A$7=Nutrients!$B$8,Nutrients!$EX$8,Nutrients!$EX$9)*AU$7)+(((IF($A$8=Nutrients!$B$79,Nutrients!$EX$79,(IF($A$8=Nutrients!$B$77,Nutrients!$EX$77,Nutrients!$EX$78)))))*AU$8))","v":18000},{"$f":"(SUMPRODUCT(AV$9:AV$229,Nutrients!$EX$8:$EX$228)+(IF($A$7=Nutrients!$B$8,Nutrients!$EX$8,Nutrients!$EX$9)*AV$7)+(((IF($A$8=Nutrients!$B$79,Nutrients!$EX$79,(IF($A$8=Nutrients!$B$77,Nutrients!$EX$77,Nutrients!$EX$78)))))*AV$8))","v":13500},{"$f":"(SUMPRODUCT(AW$9:AW$229,Nutrients!$EX$8:$EX$228)+(IF($A$7=Nutrients!$B$8,Nutrients!$EX$8,Nutrients!$EX$9)*AW$7)+(((IF($A$8=Nutrients!$B$79,Nutrients!$EX$79,(IF($A$8=Nutrients!$B$77,Nutrients!$EX$77,Nutrients!$EX$78)))))*AW$8))","v":13500}]
["  Pantothenic Acid, mg/ton",{"$f":"(SUMPRODUCT(B$9:B$229,Nutrients!$EY$8:$EY$228)+(IF($A$7=Nutrients!$B$8,Nutrients!$EY$8,Nutrients!$EY$9)*B$7)+(((IF($A$8=Nutrients!$B$79,Nutrients!$EY$79,(IF($A$8=Nutrients!$B$77,Nutrients!$EY$77,Nutrients!$EY$78)))))*B$8))","v":15000},{"$f":"(SUMPRODUCT(C$9:C$229,Nutrients!$EY$8:$EY$228)+(IF($A$7=Nutrients!$B$8,Nutrients!$EY$8,Nutrients!$EY$9)*C$7)+(((IF($A$8=Nutrients!$B$79,Nutrients!$EY$79,(IF($A$8=Nutrients!$B$77,Nutrients!$EY$77,Nutrients!$EY$78)))))*C$8))","v":15000},{"$f":"(SUMPRODUCT(D$9:D$229,Nutrients!$EY$8:$EY$228)+(IF($A$7=Nutrients!$B$8,Nutrients!$EY$8,Nutrients!$EY$9)*D$7)+(((IF($A$8=Nutrients!$B$79,Nutrients!$EY$79,(IF($A$8=Nutrients!$B$77,Nutrients!$EY$77,Nutrients!$EY$78)))))*D$8))","v":12500},{"$f":"(SUMPRODUCT(E$9:E$229,Nutrients!$EY$8:$EY$228)+(IF($A$7=Nutrients!$B$8,Nutrients!$EY$8,Nutrients!$EY$9)*E$7)+(((IF($A$8=Nutrients!$B$79,Nutrients!$EY$79,(IF($A$8=Nutrients!$B$77,Nutrients!$EY$77,Nutrients!$EY$78)))))*E$8))","v":10000},{"$f":"(SUMPRODUCT(F$9:F$229,Nutrients!$EY$8:$EY$228)+(IF($A$7=Nutrients!$B$8,Nutrients!$EY$8,Nutrients!$EY$9)*F$7)+(((IF($A$8=Nutrients!$B$79,Nutrients!$EY$79,(IF($A$8=Nutrients!$B$77,Nutrients!$EY$77,Nutrients!$EY$78)))))*F$8))","v":7500},{"$f":"(SUMPRODUCT(G$9:G$229,Nutrients!$EY$8:$EY$228)+(IF($A$7=Nutrients!$B$8,Nutrients!$EY$8,Nutrients!$EY$9)*G$7)+(((IF($A$8=Nutrients!$B$79,Nutrients!$EY$79,(IF($A$8=Nutrients!$B$77,Nutrients!$EY$77,Nutrients!$EY$78)))))*G$8))","v":7500},null,{"$f":"(SUMPRODUCT(I$9:I$229,Nutrients!$EY$8:$EY$228)+(IF($A$7=Nutrients!$B$8,Nutrients!$EY$8,Nutrients!$EY$9)*I$7)+(((IF($A$8=Nutrients!$B$79,Nutrients!$EY$79,(IF($A$8=Nutrients!$B$77,Nutrients!$EY$77,Nutrients!$EY$78)))))*I$8))","v":15000},{"$f":"(SUMPRODUCT(J$9:J$229,Nutrients!$EY$8:$EY$228)+(IF($A$7=Nutrients!$B$8,Nutrients!$EY$8,Nutrients!$EY$9)*J$7)+(((IF($A$8=Nutrients!$B$79,Nutrients!$EY$79,(IF($A$8=Nutrients!$B$77,Nutrients!$EY$77,Nutrients!$EY$78)))))*J$8))","v":15000},{"$f":"(SUMPRODUCT(K$9:K$229,Nutrients!$EY$8:$EY$228)+(IF($A$7=Nutrients!$B$8,Nutrients!$EY$8,Nutrients!$EY$9)*K$7)+(((IF($A$8=Nutrients!$B$79,Nutrients!$EY$79,(IF($A$8=Nutrients!$B$77,Nutrients!$EY$77,Nutrients!$EY$78)))))*K$8))","v":12500},{"$f":"(SUMPRODUCT(L$9:L$229,Nutrients!$EY$8:$EY$228)+(IF($A$7=Nutrients!$B$8,Nutrients!$EY$8,Nutrients!$EY$9)*L$7)+(((IF($A$8=Nutrients!$B$79,Nutrients!$EY$79,(IF($A$8=Nutrients!$B$77,Nutrients!$EY$77,Nutrients!$EY$78)))))*L$8))","v":10000},{"$f":"(SUMPRODUCT(M$9:M$229,Nutrients!$EY$8:$EY$228)+(IF($A$7=Nutrients!$B$8,Nutrients!$EY$8,Nutrients!$EY$9)*M$7)+(((IF($A$8=Nutrients!$B$79,Nutrients!$EY$79,(IF($A$8=Nutrients!$B$77,Nutrients!$EY$77,Nutrients!$EY$78)))))*M$8))","v":7500},{"$f":"(SUMPRODUCT(N$9:N$229,Nutrients!$EY$8:$EY$228)+(IF($A$7=Nutrients!$B$8,Nutrients!$EY$8,Nutrients!$EY$9)*N$7)+(((IF($A$8=Nutrients!$B$79,Nutrients!$EY$79,(IF($A$8=Nutrients!$B$77,Nutrients!$EY$77,Nutrients!$EY$78)))))*N$8))","v":7500},null,{"$f":"(SUMPRODUCT(P$9:P$229,Nutrients!$EY$8:$EY$228)+(IF($A$7=Nutrients!$B$8,Nutrients!$EY$8,Nutrients!$EY$9)*P$7)+(((IF($A$8=Nutrients!$B$79,Nutrients!$EY$79,(IF($A$8=Nutrients!$B$77,Nutrients!$EY$77,Nutrients!$EY$78)))))*P$8))","v":15000},{"$f":"(SUMPRODUCT(Q$9:Q$229,Nutrients!$EY$8:$EY$228)+(IF($A$7=Nutrients!$B$8,Nutrients!$EY$8,Nutrients!$EY$9)*Q$7)+(((IF($A$8=Nutrients!$B$79,Nutrients!$EY$79,(IF($A$8=Nutrients!$B$77,Nutrients!$EY$77,Nutrients!$EY$78)))))*Q$8))","v":15000},{"$f":"(SUMPRODUCT(R$9:R$229,Nutrients!$EY$8:$EY$228)+(IF($A$7=Nutrients!$B$8,Nutrients!$EY$8,Nutrients!$EY$9)*R$7)+(((IF($A$8=Nutrients!$B$79,Nutrients!$EY$79,(IF($A$8=Nutrients!$B$77,Nutrients!$EY$77,Nutrients!$EY$78)))))*R$8))","v":12500},{"$f":"(SUMPRODUCT(S$9:S$229,Nutrients!$EY$8:$EY$228)+(IF($A$7=Nutrients!$B$8,Nutrients!$EY$8,Nutrients!$EY$9)*S$7)+(((IF($A$8=Nutrients!$B$79,Nutrients!$EY$79,(IF($A$8=Nutrients!$B$77,Nutrients!$EY$77,Nutrients!$EY$78)))))*S$8))","v":10000},{"$f":"(SUMPRODUCT(T$9:T$229,Nutrients!$EY$8:$EY$228)+(IF($A$7=Nutrients!$B$8,Nutrients!$EY$8,Nutrients!$EY$9)*T$7)+(((IF($A$8=Nutrients!$B$79,Nutrients!$EY$79,(IF($A$8=Nutrients!$B$77,Nutrients!$EY$77,Nutrients!$EY$78)))))*T$8))","v":7500},{"$f":"(SUMPRODUCT(U$9:U$229,Nutrients!$EY$8:$EY$228)+(IF($A$7=Nutrients!$B$8,Nutrients!$EY$8,Nutrients!$EY$9)*U$7)+(((IF($A$8=Nutrients!$B$79,Nutrients!$EY$79,(IF($A$8=Nutrients!$B$77,Nutrients!$EY$77,Nutrients!$EY$78)))))*U$8))","v":7500},null,{"$f":"(SUMPRODUCT(W$9:W$229,Nutrients!$EY$8:$EY$228)+(IF($A$7=Nutrients!$B$8,Nutrients!$EY$8,Nutrients!$EY$9)*W$7)+(((IF($A$8=Nutrients!$B$79,Nutrients!$EY$79,(IF($A$8=Nutrients!$B$77,Nutrients!$EY$77,Nutrients!$EY$78)))))*W$8))","v":15000},{"$f":"(SUMPRODUCT(X$9:X$229,Nutrients!$EY$8:$EY$228)+(IF($A$7=Nutrients!$B$8,Nutrients!$EY$8,Nutrients!$EY$9)*X$7)+(((IF($A$8=Nutrients!$B$79,Nutrients!$EY$79,(IF($A$8=Nutrients!$B$77,Nutrients!$EY$77,Nutrients!$EY$78)))))*X$8))","v":15000},{"$f":"(SUMPRODUCT(Y$9:Y$229,Nutrients!$EY$8:$EY$228)+(IF($A$7=Nutrients!$B$8,Nutrients!$EY$8,Nutrients!$EY$9)*Y$7)+(((IF($A$8=Nutrients!$B$79,Nutrients!$EY$79,(IF($A$8=Nutrients!$B$77,Nutrients!$EY$77,Nutrients!$EY$78)))))*Y$8))","v":12500},{"$f":"(SUMPRODUCT(Z$9:Z$229,Nutrients!$EY$8:$EY$228)+(IF($A$7=Nutrients!$B$8,Nutrients!$EY$8,Nutrients!$EY$9)*Z$7)+(((IF($A$8=Nutrients!$B$79,Nutrients!$EY$79,(IF($A$8=Nutrients!$B$77,Nutrients!$EY$77,Nutrients!$EY$78)))))*Z$8))","v":10000},{"$f":"(SUMPRODUCT(AA$9:AA$229,Nutrients!$EY$8:$EY$228)+(IF($A$7=Nutrients!$B$8,Nutrients!$EY$8,Nutrients!$EY$9)*AA$7)+(((IF($A$8=Nutrients!$B$79,Nutrients!$EY$79,(IF($A$8=Nutrients!$B$77,Nutrients!$EY$77,Nutrients!$EY$78)))))*AA$8))","v":7500},{"$f":"(SUMPRODUCT(AB$9:AB$229,Nutrients!$EY$8:$EY$228)+(IF($A$7=Nutrients!$B$8,Nutrients!$EY$8,Nutrients!$EY$9)*AB$7)+(((IF($A$8=Nutrients!$B$79,Nutrients!$EY$79,(IF($A$8=Nutrients!$B$77,Nutrients!$EY$77,Nutrients!$EY$78)))))*AB$8))","v":7500},null,{"$f":"(SUMPRODUCT(AD$9:AD$229,Nutrients!$EY$8:$EY$228)+(IF($A$7=Nutrients!$B$8,Nutrients!$EY$8,Nutrients!$EY$9)*AD$7)+(((IF($A$8=Nutrients!$B$79,Nutrients!$EY$79,(IF($A$8=Nutrients!$B$77,Nutrients!$EY$77,Nutrients!$EY$78)))))*AD$8))","v":15000},{"$f":"(SUMPRODUCT(AE$9:AE$229,Nutrients!$EY$8:$EY$228)+(IF($A$7=Nutrients!$B$8,Nutrients!$EY$8,Nutrients!$EY$9)*AE$7)+(((IF($A$8=Nutrients!$B$79,Nutrients!$EY$79,(IF($A$8=Nutrients!$B$77,Nutrients!$EY$77,Nutrients!$EY$78)))))*AE$8))","v":15000},{"$f":"(SUMPRODUCT(AF$9:AF$229,Nutrients!$EY$8:$EY$228)+(IF($A$7=Nutrients!$B$8,Nutrients!$EY$8,Nutrients!$EY$9)*AF$7)+(((IF($A$8=Nutrients!$B$79,Nutrients!$EY$79,(IF($A$8=Nutrients!$B$77,Nutrients!$EY$77,Nutrients!$EY$78)))))*AF$8))","v":12500},{"$f":"(SUMPRODUCT(AG$9:AG$229,Nutrients!$EY$8:$EY$228)+(IF($A$7=Nutrients!$B$8,Nutrients!$EY$8,Nutrients!$EY$9)*AG$7)+(((IF($A$8=Nutrients!$B$79,Nutrients!$EY$79,(IF($A$8=Nutrients!$B$77,Nutrients!$EY$77,Nutrients!$EY$78)))))*AG$8))","v":10000},{"$f":"(SUMPRODUCT(AH$9:AH$229,Nutrients!$EY$8:$EY$228)+(IF($A$7=Nutrients!$B$8,Nutrients!$EY$8,Nutrients!$EY$9)*AH$7)+(((IF($A$8=Nutrients!$B$79,Nutrients!$EY$79,(IF($A$8=Nutrients!$B$77,Nutrients!$EY$77,Nutrients!$EY$78)))))*AH$8))","v":7500},{"$f":"(SUMPRODUCT(AI$9:AI$229,Nutrients!$EY$8:$EY$228)+(IF($A$7=Nutrients!$B$8,Nutrients!$EY$8,Nutrients!$EY$9)*AI$7)+(((IF($A$8=Nutrients!$B$79,Nutrients!$EY$79,(IF($A$8=Nutrients!$B$77,Nutrients!$EY$77,Nutrients!$EY$78)))))*AI$8))","v":7500},null,{"$f":"(SUMPRODUCT(AK$9:AK$229,Nutrients!$EY$8:$EY$228)+(IF($A$7=Nutrients!$B$8,Nutrients!$EY$8,Nutrients!$EY$9)*AK$7)+(((IF($A$8=Nutrients!$B$79,Nutrients!$EY$79,(IF($A$8=Nutrients!$B$77,Nutrients!$EY$77,Nutrients!$EY$78)))))*AK$8))","v":15000},{"$f":"(SUMPRODUCT(AL$9:AL$229,Nutrients!$EY$8:$EY$228)+(IF($A$7=Nutrients!$B$8,Nutrients!$EY$8,Nutrients!$EY$9)*AL$7)+(((IF($A$8=Nutrients!$B$79,Nutrients!$EY$79,(IF($A$8=Nutrients!$B$77,Nutrients!$EY$77,Nutrients!$EY$78)))))*AL$8))","v":15000},{"$f":"(SUMPRODUCT(AM$9:AM$229,Nutrients!$EY$8:$EY$228)+(IF($A$7=Nutrients!$B$8,Nutrients!$EY$8,Nutrients!$EY$9)*AM$7)+(((IF($A$8=Nutrients!$B$79,Nutrients!$EY$79,(IF($A$8=Nutrients!$B$77,Nutrients!$EY$77,Nutrients!$EY$78)))))*AM$8))","v":12500},{"$f":"(SUMPRODUCT(AN$9:AN$229,Nutrients!$EY$8:$EY$228)+(IF($A$7=Nutrients!$B$8,Nutrients!$EY$8,Nutrients!$EY$9)*AN$7)+(((IF($A$8=Nutrients!$B$79,Nutrients!$EY$79,(IF($A$8=Nutrients!$B$77,Nutrients!$EY$77,Nutrients!$EY$78)))))*AN$8))","v":10000},{"$f":"(SUMPRODUCT(AO$9:AO$229,Nutrients!$EY$8:$EY$228)+(IF($A$7=Nutrients!$B$8,Nutrients!$EY$8,Nutrients!$EY$9)*AO$7)+(((IF($A$8=Nutrients!$B$79,Nutrients!$EY$79,(IF($A$8=Nutrients!$B$77,Nutrients!$EY$77,Nutrients!$EY$78)))))*AO$8))","v":7500},{"$f":"(SUMPRODUCT(AP$9:AP$229,Nutrients!$EY$8:$EY$228)+(IF($A$7=Nutrients!$B$8,Nutrients!$EY$8,Nutrients!$EY$9)*AP$7)+(((IF($A$8=Nutrients!$B$79,Nutrients!$EY$79,(IF($A$8=Nutrients!$B$77,Nutrients!$EY$77,Nutrients!$EY$78)))))*AP$8))","v":7500},null,{"$f":"(SUMPRODUCT(AR$9:AR$229,Nutrients!$EY$8:$EY$228)+(IF($A$7=Nutrients!$B$8,Nutrients!$EY$8,Nutrients!$EY$9)*AR$7)+(((IF($A$8=Nutrients!$B$79,Nutrients!$EY$79,(IF($A$8=Nutrients!$B$77,Nutrients!$EY$77,Nutrients!$EY$78)))))*AR$8))","v":15000},{"$f":"(SUMPRODUCT(AS$9:AS$229,Nutrients!$EY$8:$EY$228)+(IF($A$7=Nutrients!$B$8,Nutrients!$EY$8,Nutrients!$EY$9)*AS$7)+(((IF($A$8=Nutrients!$B$79,Nutrients!$EY$79,(IF($A$8=Nutrients!$B$77,Nutrients!$EY$77,Nutrients!$EY$78)))))*AS$8))","v":15000},{"$f":"(SUMPRODUCT(AT$9:AT$229,Nutrients!$EY$8:$EY$228)+(IF($A$7=Nutrients!$B$8,Nutrients!$EY$8,Nutrients!$EY$9)*AT$7)+(((IF($A$8=Nutrients!$B$79,Nutrients!$EY$79,(IF($A$8=Nutrients!$B$77,Nutrients!$EY$77,Nutrients!$EY$78)))))*AT$8))","v":12500},{"$f":"(SUMPRODUCT(AU$9:AU$229,Nutrients!$EY$8:$EY$228)+(IF($A$7=Nutrients!$B$8,Nutrients!$EY$8,Nutrients!$EY$9)*AU$7)+(((IF($A$8=Nutrients!$B$79,Nutrients!$EY$79,(IF($A$8=Nutrients!$B$77,Nutrients!$EY$77,Nutrients!$EY$78)))))*AU$8))","v":10000},{"$f":"(SUMPRODUCT(AV$9:AV$229,Nutrients!$EY$8:$EY$228)+(IF($A$7=Nutrients!$B$8,Nutrients!$EY$8,Nutrients!$EY$9)*AV$7)+(((IF($A$8=Nutrients!$B$79,Nutrients!$EY$79,(IF($A$8=Nutrients!$B$77,Nutrients!$EY$77,Nutrients!$EY$78)))))*AV$8))","v":7500},{"$f":"(SUMPRODUCT(AW$9:AW$229,Nutrients!$EY$8:$EY$228)+(IF($A$7=Nutrients!$B$8,Nutrients!$EY$8,Nutrients!$EY$9)*AW$7)+(((IF($A$8=Nutrients!$B$79,Nutrients!$EY$79,(IF($A$8=Nutrients!$B$77,Nutrients!$EY$77,Nutrients!$EY$78)))))*AW$8))","v":7500}]
["  Riboflavin, mg/ton",{"$f":"(SUMPRODUCT(B$9:B$229,Nutrients!$EZ$8:$EZ$228)+(IF($A$7=Nutrients!$B$8,Nutrients!$EZ$8,Nutrients!$EZ$9)*B$7)+(((IF($A$8=Nutrients!$B$79,Nutrients!$EZ$79,(IF($A$8=Nutrients!$B$77,Nutrients!$EZ$77,Nutrients!$EZ$78)))))*B$8))","v":4500},{"$f":"(SUMPRODUCT(C$9:C$229,Nutrients!$EZ$8:$EZ$228)+(IF($A$7=Nutrients!$B$8,Nutrients!$EZ$8,Nutrients!$EZ$9)*C$7)+(((IF($A$8=Nutrients!$B$79,Nutrients!$EZ$79,(IF($A$8=Nutrients!$B$77,Nutrients!$EZ$77,Nutrients!$EZ$78)))))*C$8))","v":4500},{"$f":"(SUMPRODUCT(D$9:D$229,Nutrients!$EZ$8:$EZ$228)+(IF($A$7=Nutrients!$B$8,Nutrients!$EZ$8,Nutrients!$EZ$9)*D$7)+(((IF($A$8=Nutrients!$B$79,Nutrients!$EZ$79,(IF($A$8=Nutrients!$B$77,Nutrients!$EZ$77,Nutrients!$EZ$78)))))*D$8))","v":3750},{"$f":"(SUMPRODUCT(E$9:E$229,Nutrients!$EZ$8:$EZ$228)+(IF($A$7=Nutrients!$B$8,Nutrients!$EZ$8,Nutrients!$EZ$9)*E$7)+(((IF($A$8=Nutrients!$B$79,Nutrients!$EZ$79,(IF($A$8=Nutrients!$B$77,Nutrients!$EZ$77,Nutrients!$EZ$78)))))*E$8))","v":3000},{"$f":"(SUMPRODUCT(F$9:F$229,Nutrients!$EZ$8:$EZ$228)+(IF($A$7=Nutrients!$B$8,Nutrients!$EZ$8,Nutrients!$EZ$9)*F$7)+(((IF($A$8=Nutrients!$B$79,Nutrients!$EZ$79,(IF($A$8=Nutrients!$B$77,Nutrients!$EZ$77,Nutrients!$EZ$78)))))*F$8))","v":2250},{"$f":"(SUMPRODUCT(G$9:G$229,Nutrients!$EZ$8:$EZ$228)+(IF($A$7=Nutrients!$B$8,Nutrients!$EZ$8,Nutrients!$EZ$9)*G$7)+(((IF($A$8=Nutrients!$B$79,Nutrients!$EZ$79,(IF($A$8=Nutrients!$B$77,Nutrients!$EZ$77,Nutrients!$EZ$78)))))*G$8))","v":2250},null,{"$f":"(SUMPRODUCT(I$9:I$229,Nutrients!$EZ$8:$EZ$228)+(IF($A$7=Nutrients!$B$8,Nutrients!$EZ$8,Nutrients!$EZ$9)*I$7)+(((IF($A$8=Nutrients!$B$79,Nutrients!$EZ$79,(IF($A$8=Nutrients!$B$77,Nutrients!$EZ$77,Nutrients!$EZ$78)))))*I$8))","v":4500},{"$f":"(SUMPRODUCT(J$9:J$229,Nutrients!$EZ$8:$EZ$228)+(IF($A$7=Nutrients!$B$8,Nutrients!$EZ$8,Nutrients!$EZ$9)*J$7)+(((IF($A$8=Nutrients!$B$79,Nutrients!$EZ$79,(IF($A$8=Nutrients!$B$77,Nutrients!$EZ$77,Nutrients!$EZ$78)))))*J$8))","v":4500},{"$f":"(SUMPRODUCT(K$9:K$229,Nutrients!$EZ$8:$EZ$228)+(IF($A$7=Nutrients!$B$8,Nutrients!$EZ$8,Nutrients!$EZ$9)*K$7)+(((IF($A$8=Nutrients!$B$79,Nutrients!$EZ$79,(IF($A$8=Nutrients!$B$77,Nutrients!$EZ$77,Nutrients!$EZ$78)))))*K$8))","v":3750},{"$f":"(SUMPRODUCT(L$9:L$229,Nutrients!$EZ$8:$EZ$228)+(IF($A$7=Nutrients!$B$8,Nutrients!$EZ$8,Nutrients!$EZ$9)*L$7)+(((IF($A$8=Nutrients!$B$79,Nutrients!$EZ$79,(IF($A$8=Nutrients!$B$77,Nutrients!$EZ$77,Nutrients!$EZ$78)))))*L$8))","v":3000},{"$f":"(SUMPRODUCT(M$9:M$229,Nutrients!$EZ$8:$EZ$228)+(IF($A$7=Nutrients!$B$8,Nutrients!$EZ$8,Nutrients!$EZ$9)*M$7)+(((IF($A$8=Nutrients!$B$79,Nutrients!$EZ$79,(IF($A$8=Nutrients!$B$77,Nutrients!$EZ$77,Nutrients!$EZ$78)))))*M$8))","v":2250},{"$f":"(SUMPRODUCT(N$9:N$229,Nutrients!$EZ$8:$EZ$228)+(IF($A$7=Nutrients!$B$8,Nutrients!$EZ$8,Nutrients!$EZ$9)*N$7)+(((IF($A$8=Nutrients!$B$79,Nutrients!$EZ$79,(IF($A$8=Nutrients!$B$77,Nutrients!$EZ$77,Nutrients!$EZ$78)))))*N$8))","v":2250},null,{"$f":"(SUMPRODUCT(P$9:P$229,Nutrients!$EZ$8:$EZ$228)+(IF($A$7=Nutrients!$B$8,Nutrients!$EZ$8,Nutrients!$EZ$9)*P$7)+(((IF($A$8=Nutrients!$B$79,Nutrients!$EZ$79,(IF($A$8=Nutrients!$B$77,Nutrients!$EZ$77,Nutrients!$EZ$78)))))*P$8))","v":4500},{"$f":"(SUMPRODUCT(Q$9:Q$229,Nutrients!$EZ$8:$EZ$228)+(IF($A$7=Nutrients!$B$8,Nutrients!$EZ$8,Nutrients!$EZ$9)*Q$7)+(((IF($A$8=Nutrients!$B$79,Nutrients!$EZ$79,(IF($A$8=Nutrients!$B$77,Nutrients!$EZ$77,Nutrients!$EZ$78)))))*Q$8))","v":4500},{"$f":"(SUMPRODUCT(R$9:R$229,Nutrients!$EZ$8:$EZ$228)+(IF($A$7=Nutrients!$B$8,Nutrients!$EZ$8,Nutrients!$EZ$9)*R$7)+(((IF($A$8=Nutrients!$B$79,Nutrients!$EZ$79,(IF($A$8=Nutrients!$B$77,Nutrients!$EZ$77,Nutrients!$EZ$78)))))*R$8))","v":3750},{"$f":"(SUMPRODUCT(S$9:S$229,Nutrients!$EZ$8:$EZ$228)+(IF($A$7=Nutrients!$B$8,Nutrients!$EZ$8,Nutrients!$EZ$9)*S$7)+(((IF($A$8=Nutrients!$B$79,Nutrients!$EZ$79,(IF($A$8=Nutrients!$B$77,Nutrients!$EZ$77,Nutrients!$EZ$78)))))*S$8))","v":3000},{"$f":"(SUMPRODUCT(T$9:T$229,Nutrients!$EZ$8:$EZ$228)+(IF($A$7=Nutrients!$B$8,Nutrients!$EZ$8,Nutrients!$EZ$9)*T$7)+(((IF($A$8=Nutrients!$B$79,Nutrients!$EZ$79,(IF($A$8=Nutrients!$B$77,Nutrients!$EZ$77,Nutrients!$EZ$78)))))*T$8))","v":2250},{"$f":"(SUMPRODUCT(U$9:U$229,Nutrients!$EZ$8:$EZ$228)+(IF($A$7=Nutrients!$B$8,Nutrients!$EZ$8,Nutrients!$EZ$9)*U$7)+(((IF($A$8=Nutrients!$B$79,Nutrients!$EZ$79,(IF($A$8=Nutrients!$B$77,Nutrients!$EZ$77,Nutrients!$EZ$78)))))*U$8))","v":2250},null,{"$f":"(SUMPRODUCT(W$9:W$229,Nutrients!$EZ$8:$EZ$228)+(IF($A$7=Nutrients!$B$8,Nutrients!$EZ$8,Nutrients!$EZ$9)*W$7)+(((IF($A$8=Nutrients!$B$79,Nutrients!$EZ$79,(IF($A$8=Nutrients!$B$77,Nutrients!$EZ$77,Nutrients!$EZ$78)))))*W$8))","v":4500},{"$f":"(SUMPRODUCT(X$9:X$229,Nutrients!$EZ$8:$EZ$228)+(IF($A$7=Nutrients!$B$8,Nutrients!$EZ$8,Nutrients!$EZ$9)*X$7)+(((IF($A$8=Nutrients!$B$79,Nutrients!$EZ$79,(IF($A$8=Nutrients!$B$77,Nutrients!$EZ$77,Nutrients!$EZ$78)))))*X$8))","v":4500},{"$f":"(SUMPRODUCT(Y$9:Y$229,Nutrients!$EZ$8:$EZ$228)+(IF($A$7=Nutrients!$B$8,Nutrients!$EZ$8,Nutrients!$EZ$9)*Y$7)+(((IF($A$8=Nutrients!$B$79,Nutrients!$EZ$79,(IF($A$8=Nutrients!$B$77,Nutrients!$EZ$77,Nutrients!$EZ$78)))))*Y$8))","v":3750},{"$f":"(SUMPRODUCT(Z$9:Z$229,Nutrients!$EZ$8:$EZ$228)+(IF($A$7=Nutrients!$B$8,Nutrients!$EZ$8,Nutrients!$EZ$9)*Z$7)+(((IF($A$8=Nutrients!$B$79,Nutrients!$EZ$79,(IF($A$8=Nutrients!$B$77,Nutrients!$EZ$77,Nutrients!$EZ$78)))))*Z$8))","v":3000},{"$f":"(SUMPRODUCT(AA$9:AA$229,Nutrients!$EZ$8:$EZ$228)+(IF($A$7=Nutrients!$B$8,Nutrients!$EZ$8,Nutrients!$EZ$9)*AA$7)+(((IF($A$8=Nutrients!$B$79,Nutrients!$EZ$79,(IF($A$8=Nutrients!$B$77,Nutrients!$EZ$77,Nutrients!$EZ$78)))))*AA$8))","v":2250},{"$f":"(SUMPRODUCT(AB$9:AB$229,Nutrients!$EZ$8:$EZ$228)+(IF($A$7=Nutrients!$B$8,Nutrients!$EZ$8,Nutrients!$EZ$9)*AB$7)+(((IF($A$8=Nutrients!$B$79,Nutrients!$EZ$79,(IF($A$8=Nutrients!$B$77,Nutrients!$EZ$77,Nutrients!$EZ$78)))))*AB$8))","v":2250},null,{"$f":"(SUMPRODUCT(AD$9:AD$229,Nutrients!$EZ$8:$EZ$228)+(IF($A$7=Nutrients!$B$8,Nutrients!$EZ$8,Nutrients!$EZ$9)*AD$7)+(((IF($A$8=Nutrients!$B$79,Nutrients!$EZ$79,(IF($A$8=Nutrients!$B$77,Nutrients!$EZ$77,Nutrients!$EZ$78)))))*AD$8))","v":4500},{"$f":"(SUMPRODUCT(AE$9:AE$229,Nutrients!$EZ$8:$EZ$228)+(IF($A$7=Nutrients!$B$8,Nutrients!$EZ$8,Nutrients!$EZ$9)*AE$7)+(((IF($A$8=Nutrients!$B$79,Nutrients!$EZ$79,(IF($A$8=Nutrients!$B$77,Nutrients!$EZ$77,Nutrients!$EZ$78)))))*AE$8))","v":4500},{"$f":"(SUMPRODUCT(AF$9:AF$229,Nutrients!$EZ$8:$EZ$228)+(IF($A$7=Nutrients!$B$8,Nutrients!$EZ$8,Nutrients!$EZ$9)*AF$7)+(((IF($A$8=Nutrients!$B$79,Nutrients!$EZ$79,(IF($A$8=Nutrients!$B$77,Nutrients!$EZ$77,Nutrients!$EZ$78)))))*AF$8))","v":3750},{"$f":"(SUMPRODUCT(AG$9:AG$229,Nutrients!$EZ$8:$EZ$228)+(IF($A$7=Nutrients!$B$8,Nutrients!$EZ$8,Nutrients!$EZ$9)*AG$7)+(((IF($A$8=Nutrients!$B$79,Nutrients!$EZ$79,(IF($A$8=Nutrients!$B$77,Nutrients!$EZ$77,Nutrients!$EZ$78)))))*AG$8))","v":3000},{"$f":"(SUMPRODUCT(AH$9:AH$229,Nutrients!$EZ$8:$EZ$228)+(IF($A$7=Nutrients!$B$8,Nutrients!$EZ$8,Nutrients!$EZ$9)*AH$7)+(((IF($A$8=Nutrients!$B$79,Nutrients!$EZ$79,(IF($A$8=Nutrients!$B$77,Nutrients!$EZ$77,Nutrients!$EZ$78)))))*AH$8))","v":2250},{"$f":"(SUMPRODUCT(AI$9:AI$229,Nutrients!$EZ$8:$EZ$228)+(IF($A$7=Nutrients!$B$8,Nutrients!$EZ$8,Nutrients!$EZ$9)*AI$7)+(((IF($A$8=Nutrients!$B$79,Nutrients!$EZ$79,(IF($A$8=Nutrients!$B$77,Nutrients!$EZ$77,Nutrients!$EZ$78)))))*AI$8))","v":2250},null,{"$f":"(SUMPRODUCT(AK$9:AK$229,Nutrients!$EZ$8:$EZ$228)+(IF($A$7=Nutrients!$B$8,Nutrients!$EZ$8,Nutrients!$EZ$9)*AK$7)+(((IF($A$8=Nutrients!$B$79,Nutrients!$EZ$79,(IF($A$8=Nutrients!$B$77,Nutrients!$EZ$77,Nutrients!$EZ$78)))))*AK$8))","v":4500},{"$f":"(SUMPRODUCT(AL$9:AL$229,Nutrients!$EZ$8:$EZ$228)+(IF($A$7=Nutrients!$B$8,Nutrients!$EZ$8,Nutrients!$EZ$9)*AL$7)+(((IF($A$8=Nutrients!$B$79,Nutrients!$EZ$79,(IF($A$8=Nutrients!$B$77,Nutrients!$EZ$77,Nutrients!$EZ$78)))))*AL$8))","v":4500},{"$f":"(SUMPRODUCT(AM$9:AM$229,Nutrients!$EZ$8:$EZ$228)+(IF($A$7=Nutrients!$B$8,Nutrients!$EZ$8,Nutrients!$EZ$9)*AM$7)+(((IF($A$8=Nutrients!$B$79,Nutrients!$EZ$79,(IF($A$8=Nutrients!$B$77,Nutrients!$EZ$77,Nutrients!$EZ$78)))))*AM$8))","v":3750},{"$f":"(SUMPRODUCT(AN$9:AN$229,Nutrients!$EZ$8:$EZ$228)+(IF($A$7=Nutrients!$B$8,Nutrients!$EZ$8,Nutrients!$EZ$9)*AN$7)+(((IF($A$8=Nutrients!$B$79,Nutrients!$EZ$79,(IF($A$8=Nutrients!$B$77,Nutrients!$EZ$77,Nutrients!$EZ$78)))))*AN$8))","v":3000},{"$f":"(SUMPRODUCT(AO$9:AO$229,Nutrients!$EZ$8:$EZ$228)+(IF($A$7=Nutrients!$B$8,Nutrients!$EZ$8,Nutrients!$EZ$9)*AO$7)+(((IF($A$8=Nutrients!$B$79,Nutrients!$EZ$79,(IF($A$8=Nutrients!$B$77,Nutrients!$EZ$77,Nutrients!$EZ$78)))))*AO$8))","v":2250},{"$f":"(SUMPRODUCT(AP$9:AP$229,Nutrients!$EZ$8:$EZ$228)+(IF($A$7=Nutrients!$B$8,Nutrients!$EZ$8,Nutrients!$EZ$9)*AP$7)+(((IF($A$8=Nutrients!$B$79,Nutrients!$EZ$79,(IF($A$8=Nutrients!$B$77,Nutrients!$EZ$77,Nutrients!$EZ$78)))))*AP$8))","v":2250},null,{"$f":"(SUMPRODUCT(AR$9:AR$229,Nutrients!$EZ$8:$EZ$228)+(IF($A$7=Nutrients!$B$8,Nutrients!$EZ$8,Nutrients!$EZ$9)*AR$7)+(((IF($A$8=Nutrients!$B$79,Nutrients!$EZ$79,(IF($A$8=Nutrients!$B$77,Nutrients!$EZ$77,Nutrients!$EZ$78)))))*AR$8))","v":4500},{"$f":"(SUMPRODUCT(AS$9:AS$229,Nutrients!$EZ$8:$EZ$228)+(IF($A$7=Nutrients!$B$8,Nutrients!$EZ$8,Nutrients!$EZ$9)*AS$7)+(((IF($A$8=Nutrients!$B$79,Nutrients!$EZ$79,(IF($A$8=Nutrients!$B$77,Nutrients!$EZ$77,Nutrients!$EZ$78)))))*AS$8))","v":4500},{"$f":"(SUMPRODUCT(AT$9:AT$229,Nutrients!$EZ$8:$EZ$228)+(IF($A$7=Nutrients!$B$8,Nutrients!$EZ$8,Nutrients!$EZ$9)*AT$7)+(((IF($A$8=Nutrients!$B$79,Nutrients!$EZ$79,(IF($A$8=Nutrients!$B$77,Nutrients!$EZ$77,Nutrients!$EZ$78)))))*AT$8))","v":3750},{"$f":"(SUMPRODUCT(AU$9:AU$229,Nutrients!$EZ$8:$EZ$228)+(IF($A$7=Nutrients!$B$8,Nutrients!$EZ$8,Nutrients!$EZ$9)*AU$7)+(((IF($A$8=Nutrients!$B$79,Nutrients!$EZ$79,(IF($A$8=Nutrients!$B$77,Nutrients!$EZ$77,Nutrients!$EZ$78)))))*AU$8))","v":3000},{"$f":"(SUMPRODUCT(AV$9:AV$229,Nutrients!$EZ$8:$EZ$228)+(IF($A$7=Nutrients!$B$8,Nutrients!$EZ$8,Nutrients!$EZ$9)*AV$7)+(((IF($A$8=Nutrients!$B$79,Nutrients!$EZ$79,(IF($A$8=Nutrients!$B$77,Nutrients!$EZ$77,Nutrients!$EZ$78)))))*AV$8))","v":2250},{"$f":"(SUMPRODUCT(AW$9:AW$229,Nutrients!$EZ$8:$EZ$228)+(IF($A$7=Nutrients!$B$8,Nutrients!$EZ$8,Nutrients!$EZ$9)*AW$7)+(((IF($A$8=Nutrients!$B$79,Nutrients!$EZ$79,(IF($A$8=Nutrients!$B$77,Nutrients!$EZ$77,Nutrients!$EZ$78)))))*AW$8))","v":2250}]
["  Biotin, mg/ton",{"$f":"(SUMPRODUCT(B$9:B$229,Nutrients!$FA$8:$FA$228)+(IF($A$7=Nutrients!$B$8,Nutrients!$FA$8,Nutrients!$FA$9)*B$7)+(((IF($A$8=Nutrients!$B$79,Nutrients!$FA$79,(IF($A$8=Nutrients!$B$77,Nutrients!$FA$77,Nutrients!$FA$78)))))*B$8))","v":0},{"$f":"(SUMPRODUCT(C$9:C$229,Nutrients!$FA$8:$FA$228)+(IF($A$7=Nutrients!$B$8,Nutrients!$FA$8,Nutrients!$FA$9)*C$7)+(((IF($A$8=Nutrients!$B$79,Nutrients!$FA$79,(IF($A$8=Nutrients!$B$77,Nutrients!$FA$77,Nutrients!$FA$78)))))*C$8))","v":0},{"$f":"(SUMPRODUCT(D$9:D$229,Nutrients!$FA$8:$FA$228)+(IF($A$7=Nutrients!$B$8,Nutrients!$FA$8,Nutrients!$FA$9)*D$7)+(((IF($A$8=Nutrients!$B$79,Nutrients!$FA$79,(IF($A$8=Nutrients!$B$77,Nutrients!$FA$77,Nutrients!$FA$78)))))*D$8))","v":0},{"$f":"(SUMPRODUCT(E$9:E$229,Nutrients!$FA$8:$FA$228)+(IF($A$7=Nutrients!$B$8,Nutrients!$FA$8,Nutrients!$FA$9)*E$7)+(((IF($A$8=Nutrients!$B$79,Nutrients!$FA$79,(IF($A$8=Nutrients!$B$77,Nutrients!$FA$77,Nutrients!$FA$78)))))*E$8))","v":0},{"$f":"(SUMPRODUCT(F$9:F$229,Nutrients!$FA$8:$FA$228)+(IF($A$7=Nutrients!$B$8,Nutrients!$FA$8,Nutrients!$FA$9)*F$7)+(((IF($A$8=Nutrients!$B$79,Nutrients!$FA$79,(IF($A$8=Nutrients!$B$77,Nutrients!$FA$77,Nutrients!$FA$78)))))*F$8))","v":0},{"$f":"(SUMPRODUCT(G$9:G$229,Nutrients!$FA$8:$FA$228)+(IF($A$7=Nutrients!$B$8,Nutrients!$FA$8,Nutrients!$FA$9)*G$7)+(((IF($A$8=Nutrients!$B$79,Nutrients!$FA$79,(IF($A$8=Nutrients!$B$77,Nutrients!$FA$77,Nutrients!$FA$78)))))*G$8))","v":0},null,{"$f":"(SUMPRODUCT(I$9:I$229,Nutrients!$FA$8:$FA$228)+(IF($A$7=Nutrients!$B$8,Nutrients!$FA$8,Nutrients!$FA$9)*I$7)+(((IF($A$8=Nutrients!$B$79,Nutrients!$FA$79,(IF($A$8=Nutrients!$B$77,Nutrients!$FA$77,Nutrients!$FA$78)))))*I$8))","v":0},{"$f":"(SUMPRODUCT(J$9:J$229,Nutrients!$FA$8:$FA$228)+(IF($A$7=Nutrients!$B$8,Nutrients!$FA$8,Nutrients!$FA$9)*J$7)+(((IF($A$8=Nutrients!$B$79,Nutrients!$FA$79,(IF($A$8=Nutrients!$B$77,Nutrients!$FA$77,Nutrients!$FA$78)))))*J$8))","v":0},{"$f":"(SUMPRODUCT(K$9:K$229,Nutrients!$FA$8:$FA$228)+(IF($A$7=Nutrients!$B$8,Nutrients!$FA$8,Nutrients!$FA$9)*K$7)+(((IF($A$8=Nutrients!$B$79,Nutrients!$FA$79,(IF($A$8=Nutrients!$B$77,Nutrients!$FA$77,Nutrients!$FA$78)))))*K$8))","v":0},{"$f":"(SUMPRODUCT(L$9:L$229,Nutrients!$FA$8:$FA$228)+(IF($A$7=Nutrients!$B$8,Nutrients!$FA$8,Nutrients!$FA$9)*L$7)+(((IF($A$8=Nutrients!$B$79,Nutrients!$FA$79,(IF($A$8=Nutrients!$B$77,Nutrients!$FA$77,Nutrients!$FA$78)))))*L$8))","v":0},{"$f":"(SUMPRODUCT(M$9:M$229,Nutrients!$FA$8:$FA$228)+(IF($A$7=Nutrients!$B$8,Nutrients!$FA$8,Nutrients!$FA$9)*M$7)+(((IF($A$8=Nutrients!$B$79,Nutrients!$FA$79,(IF($A$8=Nutrients!$B$77,Nutrients!$FA$77,Nutrients!$FA$78)))))*M$8))","v":0},{"$f":"(SUMPRODUCT(N$9:N$229,Nutrients!$FA$8:$FA$228)+(IF($A$7=Nutrients!$B$8,Nutrients!$FA$8,Nutrients!$FA$9)*N$7)+(((IF($A$8=Nutrients!$B$79,Nutrients!$FA$79,(IF($A$8=Nutrients!$B$77,Nutrients!$FA$77,Nutrients!$FA$78)))))*N$8))","v":0},null,{"$f":"(SUMPRODUCT(P$9:P$229,Nutrients!$FA$8:$FA$228)+(IF($A$7=Nutrients!$B$8,Nutrients!$FA$8,Nutrients!$FA$9)*P$7)+(((IF($A$8=Nutrients!$B$79,Nutrients!$FA$79,(IF($A$8=Nutrients!$B$77,Nutrients!$FA$77,Nutrients!$FA$78)))))*P$8))","v":0},{"$f":"(SUMPRODUCT(Q$9:Q$229,Nutrients!$FA$8:$FA$228)+(IF($A$7=Nutrients!$B$8,Nutrients!$FA$8,Nutrients!$FA$9)*Q$7)+(((IF($A$8=Nutrients!$B$79,Nutrients!$FA$79,(IF($A$8=Nutrients!$B$77,Nutrients!$FA$77,Nutrients!$FA$78)))))*Q$8))","v":0},{"$f":"(SUMPRODUCT(R$9:R$229,Nutrients!$FA$8:$FA$228)+(IF($A$7=Nutrients!$B$8,Nutrients!$FA$8,Nutrients!$FA$9)*R$7)+(((IF($A$8=Nutrients!$B$79,Nutrients!$FA$79,(IF($A$8=Nutrients!$B$77,Nutrients!$FA$77,Nutrients!$FA$78)))))*R$8))","v":0},{"$f":"(SUMPRODUCT(S$9:S$229,Nutrients!$FA$8:$FA$228)+(IF($A$7=Nutrients!$B$8,Nutrients!$FA$8,Nutrients!$FA$9)*S$7)+(((IF($A$8=Nutrients!$B$79,Nutrients!$FA$79,(IF($A$8=Nutrients!$B$77,Nutrients!$FA$77,Nutrients!$FA$78)))))*S$8))","v":0},{"$f":"(SUMPRODUCT(T$9:T$229,Nutrients!$FA$8:$FA$228)+(IF($A$7=Nutrients!$B$8,Nutrients!$FA$8,Nutrients!$FA$9)*T$7)+(((IF($A$8=Nutrients!$B$79,Nutrients!$FA$79,(IF($A$8=Nutrients!$B$77,Nutrients!$FA$77,Nutrients!$FA$78)))))*T$8))","v":0},{"$f":"(SUMPRODUCT(U$9:U$229,Nutrients!$FA$8:$FA$228)+(IF($A$7=Nutrients!$B$8,Nutrients!$FA$8,Nutrients!$FA$9)*U$7)+(((IF($A$8=Nutrients!$B$79,Nutrients!$FA$79,(IF($A$8=Nutrients!$B$77,Nutrients!$FA$77,Nutrients!$FA$78)))))*U$8))","v":0},null,{"$f":"(SUMPRODUCT(W$9:W$229,Nutrients!$FA$8:$FA$228)+(IF($A$7=Nutrients!$B$8,Nutrients!$FA$8,Nutrients!$FA$9)*W$7)+(((IF($A$8=Nutrients!$B$79,Nutrients!$FA$79,(IF($A$8=Nutrients!$B$77,Nutrients!$FA$77,Nutrients!$FA$78)))))*W$8))","v":0},{"$f":"(SUMPRODUCT(X$9:X$229,Nutrients!$FA$8:$FA$228)+(IF($A$7=Nutrients!$B$8,Nutrients!$FA$8,Nutrients!$FA$9)*X$7)+(((IF($A$8=Nutrients!$B$79,Nutrients!$FA$79,(IF($A$8=Nutrients!$B$77,Nutrients!$FA$77,Nutrients!$FA$78)))))*X$8))","v":0},{"$f":"(SUMPRODUCT(Y$9:Y$229,Nutrients!$FA$8:$FA$228)+(IF($A$7=Nutrients!$B$8,Nutrients!$FA$8,Nutrients!$FA$9)*Y$7)+(((IF($A$8=Nutrients!$B$79,Nutrients!$FA$79,(IF($A$8=Nutrients!$B$77,Nutrients!$FA$77,Nutrients!$FA$78)))))*Y$8))","v":0},{"$f":"(SUMPRODUCT(Z$9:Z$229,Nutrients!$FA$8:$FA$228)+(IF($A$7=Nutrients!$B$8,Nutrients!$FA$8,Nutrients!$FA$9)*Z$7)+(((IF($A$8=Nutrients!$B$79,Nutrients!$FA$79,(IF($A$8=Nutrients!$B$77,Nutrients!$FA$77,Nutrients!$FA$78)))))*Z$8))","v":0},{"$f":"(SUMPRODUCT(AA$9:AA$229,Nutrients!$FA$8:$FA$228)+(IF($A$7=Nutrients!$B$8,Nutrients!$FA$8,Nutrients!$FA$9)*AA$7)+(((IF($A$8=Nutrients!$B$79,Nutrients!$FA$79,(IF($A$8=Nutrients!$B$77,Nutrients!$FA$77,Nutrients!$FA$78)))))*AA$8))","v":0},{"$f":"(SUMPRODUCT(AB$9:AB$229,Nutrients!$FA$8:$FA$228)+(IF($A$7=Nutrients!$B$8,Nutrients!$FA$8,Nutrients!$FA$9)*AB$7)+(((IF($A$8=Nutrients!$B$79,Nutrients!$FA$79,(IF($A$8=Nutrients!$B$77,Nutrients!$FA$77,Nutrients!$FA$78)))))*AB$8))","v":0},null,{"$f":"(SUMPRODUCT(AD$9:AD$229,Nutrients!$FA$8:$FA$228)+(IF($A$7=Nutrients!$B$8,Nutrients!$FA$8,Nutrients!$FA$9)*AD$7)+(((IF($A$8=Nutrients!$B$79,Nutrients!$FA$79,(IF($A$8=Nutrients!$B$77,Nutrients!$FA$77,Nutrients!$FA$78)))))*AD$8))","v":0},{"$f":"(SUMPRODUCT(AE$9:AE$229,Nutrients!$FA$8:$FA$228)+(IF($A$7=Nutrients!$B$8,Nutrients!$FA$8,Nutrients!$FA$9)*AE$7)+(((IF($A$8=Nutrients!$B$79,Nutrients!$FA$79,(IF($A$8=Nutrients!$B$77,Nutrients!$FA$77,Nutrients!$FA$78)))))*AE$8))","v":0},{"$f":"(SUMPRODUCT(AF$9:AF$229,Nutrients!$FA$8:$FA$228)+(IF($A$7=Nutrients!$B$8,Nutrients!$FA$8,Nutrients!$FA$9)*AF$7)+(((IF($A$8=Nutrients!$B$79,Nutrients!$FA$79,(IF($A$8=Nutrients!$B$77,Nutrients!$FA$77,Nutrients!$FA$78)))))*AF$8))","v":0},{"$f":"(SUMPRODUCT(AG$9:AG$229,Nutrients!$FA$8:$FA$228)+(IF($A$7=Nutrients!$B$8,Nutrients!$FA$8,Nutrients!$FA$9)*AG$7)+(((IF($A$8=Nutrients!$B$79,Nutrients!$FA$79,(IF($A$8=Nutrients!$B$77,Nutrients!$FA$77,Nutrients!$FA$78)))))*AG$8))","v":0},{"$f":"(SUMPRODUCT(AH$9:AH$229,Nutrients!$FA$8:$FA$228)+(IF($A$7=Nutrients!$B$8,Nutrients!$FA$8,Nutrients!$FA$9)*AH$7)+(((IF($A$8=Nutrients!$B$79,Nutrients!$FA$79,(IF($A$8=Nutrients!$B$77,Nutrients!$FA$77,Nutrients!$FA$78)))))*AH$8))","v":0},{"$f":"(SUMPRODUCT(AI$9:AI$229,Nutrients!$FA$8:$FA$228)+(IF($A$7=Nutrients!$B$8,Nutrients!$FA$8,Nutrients!$FA$9)*AI$7)+(((IF($A$8=Nutrients!$B$79,Nutrients!$FA$79,(IF($A$8=Nutrients!$B$77,Nutrients!$FA$77,Nutrients!$FA$78)))))*AI$8))","v":0},null,{"$f":"(SUMPRODUCT(AK$9:AK$229,Nutrients!$FA$8:$FA$228)+(IF($A$7=Nutrients!$B$8,Nutrients!$FA$8,Nutrients!$FA$9)*AK$7)+(((IF($A$8=Nutrients!$B$79,Nutrients!$FA$79,(IF($A$8=Nutrients!$B$77,Nutrients!$FA$77,Nutrients!$FA$78)))))*AK$8))","v":0},{"$f":"(SUMPRODUCT(AL$9:AL$229,Nutrients!$FA$8:$FA$228)+(IF($A$7=Nutrients!$B$8,Nutrients!$FA$8,Nutrients!$FA$9)*AL$7)+(((IF($A$8=Nutrients!$B$79,Nutrients!$FA$79,(IF($A$8=Nutrients!$B$77,Nutrients!$FA$77,Nutrients!$FA$78)))))*AL$8))","v":0},{"$f":"(SUMPRODUCT(AM$9:AM$229,Nutrients!$FA$8:$FA$228)+(IF($A$7=Nutrients!$B$8,Nutrients!$FA$8,Nutrients!$FA$9)*AM$7)+(((IF($A$8=Nutrients!$B$79,Nutrients!$FA$79,(IF($A$8=Nutrients!$B$77,Nutrients!$FA$77,Nutrients!$FA$78)))))*AM$8))","v":0},{"$f":"(SUMPRODUCT(AN$9:AN$229,Nutrients!$FA$8:$FA$228)+(IF($A$7=Nutrients!$B$8,Nutrients!$FA$8,Nutrients!$FA$9)*AN$7)+(((IF($A$8=Nutrients!$B$79,Nutrients!$FA$79,(IF($A$8=Nutrients!$B$77,Nutrients!$FA$77,Nutrients!$FA$78)))))*AN$8))","v":0},{"$f":"(SUMPRODUCT(AO$9:AO$229,Nutrients!$FA$8:$FA$228)+(IF($A$7=Nutrients!$B$8,Nutrients!$FA$8,Nutrients!$FA$9)*AO$7)+(((IF($A$8=Nutrients!$B$79,Nutrients!$FA$79,(IF($A$8=Nutrients!$B$77,Nutrients!$FA$77,Nutrients!$FA$78)))))*AO$8))","v":0},{"$f":"(SUMPRODUCT(AP$9:AP$229,Nutrients!$FA$8:$FA$228)+(IF($A$7=Nutrients!$B$8,Nutrients!$FA$8,Nutrients!$FA$9)*AP$7)+(((IF($A$8=Nutrients!$B$79,Nutrients!$FA$79,(IF($A$8=Nutrients!$B$77,Nutrients!$FA$77,Nutrients!$FA$78)))))*AP$8))","v":0},null,{"$f":"(SUMPRODUCT(AR$9:AR$229,Nutrients!$FA$8:$FA$228)+(IF($A$7=Nutrients!$B$8,Nutrients!$FA$8,Nutrients!$FA$9)*AR$7)+(((IF($A$8=Nutrients!$B$79,Nutrients!$FA$79,(IF($A$8=Nutrients!$B$77,Nutrients!$FA$77,Nutrients!$FA$78)))))*AR$8))","v":0},{"$f":"(SUMPRODUCT(AS$9:AS$229,Nutrients!$FA$8:$FA$228)+(IF($A$7=Nutrients!$B$8,Nutrients!$FA$8,Nutrients!$FA$9)*AS$7)+(((IF($A$8=Nutrients!$B$79,Nutrients!$FA$79,(IF($A$8=Nutrients!$B$77,Nutrients!$FA$77,Nutrients!$FA$78)))))*AS$8))","v":0},{"$f":"(SUMPRODUCT(AT$9:AT$229,Nutrients!$FA$8:$FA$228)+(IF($A$7=Nutrients!$B$8,Nutrients!$FA$8,Nutrients!$FA$9)*AT$7)+(((IF($A$8=Nutrients!$B$79,Nutrients!$FA$79,(IF($A$8=Nutrients!$B$77,Nutrients!$FA$77,Nutrients!$FA$78)))))*AT$8))","v":0},{"$f":"(SUMPRODUCT(AU$9:AU$229,Nutrients!$FA$8:$FA$228)+(IF($A$7=Nutrients!$B$8,Nutrients!$FA$8,Nutrients!$FA$9)*AU$7)+(((IF($A$8=Nutrients!$B$79,Nutrients!$FA$79,(IF($A$8=Nutrients!$B$77,Nutrients!$FA$77,Nutrients!$FA$78)))))*AU$8))","v":0},{"$f":"(SUMPRODUCT(AV$9:AV$229,Nutrients!$FA$8:$FA$228)+(IF($A$7=Nutrients!$B$8,Nutrients!$FA$8,Nutrients!$FA$9)*AV$7)+(((IF($A$8=Nutrients!$B$79,Nutrients!$FA$79,(IF($A$8=Nutrients!$B$77,Nutrients!$FA$77,Nutrients!$FA$78)))))*AV$8))","v":0},{"$f":"(SUMPRODUCT(AW$9:AW$229,Nutrients!$FA$8:$FA$228)+(IF($A$7=Nutrients!$B$8,Nutrients!$FA$8,Nutrients!$FA$9)*AW$7)+(((IF($A$8=Nutrients!$B$79,Nutrients!$FA$79,(IF($A$8=Nutrients!$B$77,Nutrients!$FA$77,Nutrients!$FA$78)))))*AW$8))","v":0}]
["  Folic acid, mg/ton",{"$f":"(SUMPRODUCT(B$9:B$229,Nutrients!$FB$8:$FB$228)+(IF($A$7=Nutrients!$B$8,Nutrients!$FB$8,Nutrients!$FB$9)*B$7)+(((IF($A$8=Nutrients!$B$79,Nutrients!$FB$79,(IF($A$8=Nutrients!$B$77,Nutrients!$FB$77,Nutrients!$FB$78)))))*B$8))","v":0},{"$f":"(SUMPRODUCT(C$9:C$229,Nutrients!$FB$8:$FB$228)+(IF($A$7=Nutrients!$B$8,Nutrients!$FB$8,Nutrients!$FB$9)*C$7)+(((IF($A$8=Nutrients!$B$79,Nutrients!$FB$79,(IF($A$8=Nutrients!$B$77,Nutrients!$FB$77,Nutrients!$FB$78)))))*C$8))","v":0},{"$f":"(SUMPRODUCT(D$9:D$229,Nutrients!$FB$8:$FB$228)+(IF($A$7=Nutrients!$B$8,Nutrients!$FB$8,Nutrients!$FB$9)*D$7)+(((IF($A$8=Nutrients!$B$79,Nutrients!$FB$79,(IF($A$8=Nutrients!$B$77,Nutrients!$FB$77,Nutrients!$FB$78)))))*D$8))","v":0},{"$f":"(SUMPRODUCT(E$9:E$229,Nutrients!$FB$8:$FB$228)+(IF($A$7=Nutrients!$B$8,Nutrients!$FB$8,Nutrients!$FB$9)*E$7)+(((IF($A$8=Nutrients!$B$79,Nutrients!$FB$79,(IF($A$8=Nutrients!$B$77,Nutrients!$FB$77,Nutrients!$FB$78)))))*E$8))","v":0},{"$f":"(SUMPRODUCT(F$9:F$229,Nutrients!$FB$8:$FB$228)+(IF($A$7=Nutrients!$B$8,Nutrients!$FB$8,Nutrients!$FB$9)*F$7)+(((IF($A$8=Nutrients!$B$79,Nutrients!$FB$79,(IF($A$8=Nutrients!$B$77,Nutrients!$FB$77,Nutrients!$FB$78)))))*F$8))","v":0},{"$f":"(SUMPRODUCT(G$9:G$229,Nutrients!$FB$8:$FB$228)+(IF($A$7=Nutrients!$B$8,Nutrients!$FB$8,Nutrients!$FB$9)*G$7)+(((IF($A$8=Nutrients!$B$79,Nutrients!$FB$79,(IF($A$8=Nutrients!$B$77,Nutrients!$FB$77,Nutrients!$FB$78)))))*G$8))","v":0},null,{"$f":"(SUMPRODUCT(I$9:I$229,Nutrients!$FB$8:$FB$228)+(IF($A$7=Nutrients!$B$8,Nutrients!$FB$8,Nutrients!$FB$9)*I$7)+(((IF($A$8=Nutrients!$B$79,Nutrients!$FB$79,(IF($A$8=Nutrients!$B$77,Nutrients!$FB$77,Nutrients!$FB$78)))))*I$8))","v":0},{"$f":"(SUMPRODUCT(J$9:J$229,Nutrients!$FB$8:$FB$228)+(IF($A$7=Nutrients!$B$8,Nutrients!$FB$8,Nutrients!$FB$9)*J$7)+(((IF($A$8=Nutrients!$B$79,Nutrients!$FB$79,(IF($A$8=Nutrients!$B$77,Nutrients!$FB$77,Nutrients!$FB$78)))))*J$8))","v":0},{"$f":"(SUMPRODUCT(K$9:K$229,Nutrients!$FB$8:$FB$228)+(IF($A$7=Nutrients!$B$8,Nutrients!$FB$8,Nutrients!$FB$9)*K$7)+(((IF($A$8=Nutrients!$B$79,Nutrients!$FB$79,(IF($A$8=Nutrients!$B$77,Nutrients!$FB$77,Nutrients!$FB$78)))))*K$8))","v":0},{"$f":"(SUMPRODUCT(L$9:L$229,Nutrients!$FB$8:$FB$228)+(IF($A$7=Nutrients!$B$8,Nutrients!$FB$8,Nutrients!$FB$9)*L$7)+(((IF($A$8=Nutrients!$B$79,Nutrients!$FB$79,(IF($A$8=Nutrients!$B$77,Nutrients!$FB$77,Nutrients!$FB$78)))))*L$8))","v":0},{"$f":"(SUMPRODUCT(M$9:M$229,Nutrients!$FB$8:$FB$228)+(IF($A$7=Nutrients!$B$8,Nutrients!$FB$8,Nutrients!$FB$9)*M$7)+(((IF($A$8=Nutrients!$B$79,Nutrients!$FB$79,(IF($A$8=Nutrients!$B$77,Nutrients!$FB$77,Nutrients!$FB$78)))))*M$8))","v":0},{"$f":"(SUMPRODUCT(N$9:N$229,Nutrients!$FB$8:$FB$228)+(IF($A$7=Nutrients!$B$8,Nutrients!$FB$8,Nutrients!$FB$9)*N$7)+(((IF($A$8=Nutrients!$B$79,Nutrients!$FB$79,(IF($A$8=Nutrients!$B$77,Nutrients!$FB$77,Nutrients!$FB$78)))))*N$8))","v":0},null,{"$f":"(SUMPRODUCT(P$9:P$229,Nutrients!$FB$8:$FB$228)+(IF($A$7=Nutrients!$B$8,Nutrients!$FB$8,Nutrients!$FB$9)*P$7)+(((IF($A$8=Nutrients!$B$79,Nutrients!$FB$79,(IF($A$8=Nutrients!$B$77,Nutrients!$FB$77,Nutrients!$FB$78)))))*P$8))","v":0},{"$f":"(SUMPRODUCT(Q$9:Q$229,Nutrients!$FB$8:$FB$228)+(IF($A$7=Nutrients!$B$8,Nutrients!$FB$8,Nutrients!$FB$9)*Q$7)+(((IF($A$8=Nutrients!$B$79,Nutrients!$FB$79,(IF($A$8=Nutrients!$B$77,Nutrients!$FB$77,Nutrients!$FB$78)))))*Q$8))","v":0},{"$f":"(SUMPRODUCT(R$9:R$229,Nutrients!$FB$8:$FB$228)+(IF($A$7=Nutrients!$B$8,Nutrients!$FB$8,Nutrients!$FB$9)*R$7)+(((IF($A$8=Nutrients!$B$79,Nutrients!$FB$79,(IF($A$8=Nutrients!$B$77,Nutrients!$FB$77,Nutrients!$FB$78)))))*R$8))","v":0},{"$f":"(SUMPRODUCT(S$9:S$229,Nutrients!$FB$8:$FB$228)+(IF($A$7=Nutrients!$B$8,Nutrients!$FB$8,Nutrients!$FB$9)*S$7)+(((IF($A$8=Nutrients!$B$79,Nutrients!$FB$79,(IF($A$8=Nutrients!$B$77,Nutrients!$FB$77,Nutrients!$FB$78)))))*S$8))","v":0},{"$f":"(SUMPRODUCT(T$9:T$229,Nutrients!$FB$8:$FB$228)+(IF($A$7=Nutrients!$B$8,Nutrients!$FB$8,Nutrients!$FB$9)*T$7)+(((IF($A$8=Nutrients!$B$79,Nutrients!$FB$79,(IF($A$8=Nutrients!$B$77,Nutrients!$FB$77,Nutrients!$FB$78)))))*T$8))","v":0},{"$f":"(SUMPRODUCT(U$9:U$229,Nutrients!$FB$8:$FB$228)+(IF($A$7=Nutrients!$B$8,Nutrients!$FB$8,Nutrients!$FB$9)*U$7)+(((IF($A$8=Nutrients!$B$79,Nutrients!$FB$79,(IF($A$8=Nutrients!$B$77,Nutrients!$FB$77,Nutrients!$FB$78)))))*U$8))","v":0},null,{"$f":"(SUMPRODUCT(W$9:W$229,Nutrients!$FB$8:$FB$228)+(IF($A$7=Nutrients!$B$8,Nutrients!$FB$8,Nutrients!$FB$9)*W$7)+(((IF($A$8=Nutrients!$B$79,Nutrients!$FB$79,(IF($A$8=Nutrients!$B$77,Nutrients!$FB$77,Nutrients!$FB$78)))))*W$8))","v":0},{"$f":"(SUMPRODUCT(X$9:X$229,Nutrients!$FB$8:$FB$228)+(IF($A$7=Nutrients!$B$8,Nutrients!$FB$8,Nutrients!$FB$9)*X$7)+(((IF($A$8=Nutrients!$B$79,Nutrients!$FB$79,(IF($A$8=Nutrients!$B$77,Nutrients!$FB$77,Nutrients!$FB$78)))))*X$8))","v":0},{"$f":"(SUMPRODUCT(Y$9:Y$229,Nutrients!$FB$8:$FB$228)+(IF($A$7=Nutrients!$B$8,Nutrients!$FB$8,Nutrients!$FB$9)*Y$7)+(((IF($A$8=Nutrients!$B$79,Nutrients!$FB$79,(IF($A$8=Nutrients!$B$77,Nutrients!$FB$77,Nutrients!$FB$78)))))*Y$8))","v":0},{"$f":"(SUMPRODUCT(Z$9:Z$229,Nutrients!$FB$8:$FB$228)+(IF($A$7=Nutrients!$B$8,Nutrients!$FB$8,Nutrients!$FB$9)*Z$7)+(((IF($A$8=Nutrients!$B$79,Nutrients!$FB$79,(IF($A$8=Nutrients!$B$77,Nutrients!$FB$77,Nutrients!$FB$78)))))*Z$8))","v":0},{"$f":"(SUMPRODUCT(AA$9:AA$229,Nutrients!$FB$8:$FB$228)+(IF($A$7=Nutrients!$B$8,Nutrients!$FB$8,Nutrients!$FB$9)*AA$7)+(((IF($A$8=Nutrients!$B$79,Nutrients!$FB$79,(IF($A$8=Nutrients!$B$77,Nutrients!$FB$77,Nutrients!$FB$78)))))*AA$8))","v":0},{"$f":"(SUMPRODUCT(AB$9:AB$229,Nutrients!$FB$8:$FB$228)+(IF($A$7=Nutrients!$B$8,Nutrients!$FB$8,Nutrients!$FB$9)*AB$7)+(((IF($A$8=Nutrients!$B$79,Nutrients!$FB$79,(IF($A$8=Nutrients!$B$77,Nutrients!$FB$77,Nutrients!$FB$78)))))*AB$8))","v":0},null,{"$f":"(SUMPRODUCT(AD$9:AD$229,Nutrients!$FB$8:$FB$228)+(IF($A$7=Nutrients!$B$8,Nutrients!$FB$8,Nutrients!$FB$9)*AD$7)+(((IF($A$8=Nutrients!$B$79,Nutrients!$FB$79,(IF($A$8=Nutrients!$B$77,Nutrients!$FB$77,Nutrients!$FB$78)))))*AD$8))","v":0},{"$f":"(SUMPRODUCT(AE$9:AE$229,Nutrients!$FB$8:$FB$228)+(IF($A$7=Nutrients!$B$8,Nutrients!$FB$8,Nutrients!$FB$9)*AE$7)+(((IF($A$8=Nutrients!$B$79,Nutrients!$FB$79,(IF($A$8=Nutrients!$B$77,Nutrients!$FB$77,Nutrients!$FB$78)))))*AE$8))","v":0},{"$f":"(SUMPRODUCT(AF$9:AF$229,Nutrients!$FB$8:$FB$228)+(IF($A$7=Nutrients!$B$8,Nutrients!$FB$8,Nutrients!$FB$9)*AF$7)+(((IF($A$8=Nutrients!$B$79,Nutrients!$FB$79,(IF($A$8=Nutrients!$B$77,Nutrients!$FB$77,Nutrients!$FB$78)))))*AF$8))","v":0},{"$f":"(SUMPRODUCT(AG$9:AG$229,Nutrients!$FB$8:$FB$228)+(IF($A$7=Nutrients!$B$8,Nutrients!$FB$8,Nutrients!$FB$9)*AG$7)+(((IF($A$8=Nutrients!$B$79,Nutrients!$FB$79,(IF($A$8=Nutrients!$B$77,Nutrients!$FB$77,Nutrients!$FB$78)))))*AG$8))","v":0},{"$f":"(SUMPRODUCT(AH$9:AH$229,Nutrients!$FB$8:$FB$228)+(IF($A$7=Nutrients!$B$8,Nutrients!$FB$8,Nutrients!$FB$9)*AH$7)+(((IF($A$8=Nutrients!$B$79,Nutrients!$FB$79,(IF($A$8=Nutrients!$B$77,Nutrients!$FB$77,Nutrients!$FB$78)))))*AH$8))","v":0},{"$f":"(SUMPRODUCT(AI$9:AI$229,Nutrients!$FB$8:$FB$228)+(IF($A$7=Nutrients!$B$8,Nutrients!$FB$8,Nutrients!$FB$9)*AI$7)+(((IF($A$8=Nutrients!$B$79,Nutrients!$FB$79,(IF($A$8=Nutrients!$B$77,Nutrients!$FB$77,Nutrients!$FB$78)))))*AI$8))","v":0},null,{"$f":"(SUMPRODUCT(AK$9:AK$229,Nutrients!$FB$8:$FB$228)+(IF($A$7=Nutrients!$B$8,Nutrients!$FB$8,Nutrients!$FB$9)*AK$7)+(((IF($A$8=Nutrients!$B$79,Nutrients!$FB$79,(IF($A$8=Nutrients!$B$77,Nutrients!$FB$77,Nutrients!$FB$78)))))*AK$8))","v":0},{"$f":"(SUMPRODUCT(AL$9:AL$229,Nutrients!$FB$8:$FB$228)+(IF($A$7=Nutrients!$B$8,Nutrients!$FB$8,Nutrients!$FB$9)*AL$7)+(((IF($A$8=Nutrients!$B$79,Nutrients!$FB$79,(IF($A$8=Nutrients!$B$77,Nutrients!$FB$77,Nutrients!$FB$78)))))*AL$8))","v":0},{"$f":"(SUMPRODUCT(AM$9:AM$229,Nutrients!$FB$8:$FB$228)+(IF($A$7=Nutrients!$B$8,Nutrients!$FB$8,Nutrients!$FB$9)*AM$7)+(((IF($A$8=Nutrients!$B$79,Nutrients!$FB$79,(IF($A$8=Nutrients!$B$77,Nutrients!$FB$77,Nutrients!$FB$78)))))*AM$8))","v":0},{"$f":"(SUMPRODUCT(AN$9:AN$229,Nutrients!$FB$8:$FB$228)+(IF($A$7=Nutrients!$B$8,Nutrients!$FB$8,Nutrients!$FB$9)*AN$7)+(((IF($A$8=Nutrients!$B$79,Nutrients!$FB$79,(IF($A$8=Nutrients!$B$77,Nutrients!$FB$77,Nutrients!$FB$78)))))*AN$8))","v":0},{"$f":"(SUMPRODUCT(AO$9:AO$229,Nutrients!$FB$8:$FB$228)+(IF($A$7=Nutrients!$B$8,Nutrients!$FB$8,Nutrients!$FB$9)*AO$7)+(((IF($A$8=Nutrients!$B$79,Nutrients!$FB$79,(IF($A$8=Nutrients!$B$77,Nutrients!$FB$77,Nutrients!$FB$78)))))*AO$8))","v":0},{"$f":"(SUMPRODUCT(AP$9:AP$229,Nutrients!$FB$8:$FB$228)+(IF($A$7=Nutrients!$B$8,Nutrients!$FB$8,Nutrients!$FB$9)*AP$7)+(((IF($A$8=Nutrients!$B$79,Nutrients!$FB$79,(IF($A$8=Nutrients!$B$77,Nutrients!$FB$77,Nutrients!$FB$78)))))*AP$8))","v":0},null,{"$f":"(SUMPRODUCT(AR$9:AR$229,Nutrients!$FB$8:$FB$228)+(IF($A$7=Nutrients!$B$8,Nutrients!$FB$8,Nutrients!$FB$9)*AR$7)+(((IF($A$8=Nutrients!$B$79,Nutrients!$FB$79,(IF($A$8=Nutrients!$B$77,Nutrients!$FB$77,Nutrients!$FB$78)))))*AR$8))","v":0},{"$f":"(SUMPRODUCT(AS$9:AS$229,Nutrients!$FB$8:$FB$228)+(IF($A$7=Nutrients!$B$8,Nutrients!$FB$8,Nutrients!$FB$9)*AS$7)+(((IF($A$8=Nutrients!$B$79,Nutrients!$FB$79,(IF($A$8=Nutrients!$B$77,Nutrients!$FB$77,Nutrients!$FB$78)))))*AS$8))","v":0},{"$f":"(SUMPRODUCT(AT$9:AT$229,Nutrients!$FB$8:$FB$228)+(IF($A$7=Nutrients!$B$8,Nutrients!$FB$8,Nutrients!$FB$9)*AT$7)+(((IF($A$8=Nutrients!$B$79,Nutrients!$FB$79,(IF($A$8=Nutrients!$B$77,Nutrients!$FB$77,Nutrients!$FB$78)))))*AT$8))","v":0},{"$f":"(SUMPRODUCT(AU$9:AU$229,Nutrients!$FB$8:$FB$228)+(IF($A$7=Nutrients!$B$8,Nutrients!$FB$8,Nutrients!$FB$9)*AU$7)+(((IF($A$8=Nutrients!$B$79,Nutrients!$FB$79,(IF($A$8=Nutrients!$B$77,Nutrients!$FB$77,Nutrients!$FB$78)))))*AU$8))","v":0},{"$f":"(SUMPRODUCT(AV$9:AV$229,Nutrients!$FB$8:$FB$228)+(IF($A$7=Nutrients!$B$8,Nutrients!$FB$8,Nutrients!$FB$9)*AV$7)+(((IF($A$8=Nutrients!$B$79,Nutrients!$FB$79,(IF($A$8=Nutrients!$B$77,Nutrients!$FB$77,Nutrients!$FB$78)))))*AV$8))","v":0},{"$f":"(SUMPRODUCT(AW$9:AW$229,Nutrients!$FB$8:$FB$228)+(IF($A$7=Nutrients!$B$8,Nutrients!$FB$8,Nutrients!$FB$9)*AW$7)+(((IF($A$8=Nutrients!$B$79,Nutrients!$FB$79,(IF($A$8=Nutrients!$B$77,Nutrients!$FB$77,Nutrients!$FB$78)))))*AW$8))","v":0}]
["  Pyridoxine, mg/ton",{"$f":"(SUMPRODUCT(B$9:B$229,Nutrients!$FC$8:$FC$228)+(IF($A$7=Nutrients!$B$8,Nutrients!$FC$8,Nutrients!$FC$9)*B$7)+(((IF($A$8=Nutrients!$B$79,Nutrients!$FC$79,(IF($A$8=Nutrients!$B$77,Nutrients!$FC$77,Nutrients!$FC$78)))))*B$8))","v":0},{"$f":"(SUMPRODUCT(C$9:C$229,Nutrients!$FC$8:$FC$228)+(IF($A$7=Nutrients!$B$8,Nutrients!$FC$8,Nutrients!$FC$9)*C$7)+(((IF($A$8=Nutrients!$B$79,Nutrients!$FC$79,(IF($A$8=Nutrients!$B$77,Nutrients!$FC$77,Nutrients!$FC$78)))))*C$8))","v":0},{"$f":"(SUMPRODUCT(D$9:D$229,Nutrients!$FC$8:$FC$228)+(IF($A$7=Nutrients!$B$8,Nutrients!$FC$8,Nutrients!$FC$9)*D$7)+(((IF($A$8=Nutrients!$B$79,Nutrients!$FC$79,(IF($A$8=Nutrients!$B$77,Nutrients!$FC$77,Nutrients!$FC$78)))))*D$8))","v":0},{"$f":"(SUMPRODUCT(E$9:E$229,Nutrients!$FC$8:$FC$228)+(IF($A$7=Nutrients!$B$8,Nutrients!$FC$8,Nutrients!$FC$9)*E$7)+(((IF($A$8=Nutrients!$B$79,Nutrients!$FC$79,(IF($A$8=Nutrients!$B$77,Nutrients!$FC$77,Nutrients!$FC$78)))))*E$8))","v":0},{"$f":"(SUMPRODUCT(F$9:F$229,Nutrients!$FC$8:$FC$228)+(IF($A$7=Nutrients!$B$8,Nutrients!$FC$8,Nutrients!$FC$9)*F$7)+(((IF($A$8=Nutrients!$B$79,Nutrients!$FC$79,(IF($A$8=Nutrients!$B$77,Nutrients!$FC$77,Nutrients!$FC$78)))))*F$8))","v":0},{"$f":"(SUMPRODUCT(G$9:G$229,Nutrients!$FC$8:$FC$228)+(IF($A$7=Nutrients!$B$8,Nutrients!$FC$8,Nutrients!$FC$9)*G$7)+(((IF($A$8=Nutrients!$B$79,Nutrients!$FC$79,(IF($A$8=Nutrients!$B$77,Nutrients!$FC$77,Nutrients!$FC$78)))))*G$8))","v":0},null,{"$f":"(SUMPRODUCT(I$9:I$229,Nutrients!$FC$8:$FC$228)+(IF($A$7=Nutrients!$B$8,Nutrients!$FC$8,Nutrients!$FC$9)*I$7)+(((IF($A$8=Nutrients!$B$79,Nutrients!$FC$79,(IF($A$8=Nutrients!$B$77,Nutrients!$FC$77,Nutrients!$FC$78)))))*I$8))","v":0},{"$f":"(SUMPRODUCT(J$9:J$229,Nutrients!$FC$8:$FC$228)+(IF($A$7=Nutrients!$B$8,Nutrients!$FC$8,Nutrients!$FC$9)*J$7)+(((IF($A$8=Nutrients!$B$79,Nutrients!$FC$79,(IF($A$8=Nutrients!$B$77,Nutrients!$FC$77,Nutrients!$FC$78)))))*J$8))","v":0},{"$f":"(SUMPRODUCT(K$9:K$229,Nutrients!$FC$8:$FC$228)+(IF($A$7=Nutrients!$B$8,Nutrients!$FC$8,Nutrients!$FC$9)*K$7)+(((IF($A$8=Nutrients!$B$79,Nutrients!$FC$79,(IF($A$8=Nutrients!$B$77,Nutrients!$FC$77,Nutrients!$FC$78)))))*K$8))","v":0},{"$f":"(SUMPRODUCT(L$9:L$229,Nutrients!$FC$8:$FC$228)+(IF($A$7=Nutrients!$B$8,Nutrients!$FC$8,Nutrients!$FC$9)*L$7)+(((IF($A$8=Nutrients!$B$79,Nutrients!$FC$79,(IF($A$8=Nutrients!$B$77,Nutrients!$FC$77,Nutrients!$FC$78)))))*L$8))","v":0},{"$f":"(SUMPRODUCT(M$9:M$229,Nutrients!$FC$8:$FC$228)+(IF($A$7=Nutrients!$B$8,Nutrients!$FC$8,Nutrients!$FC$9)*M$7)+(((IF($A$8=Nutrients!$B$79,Nutrients!$FC$79,(IF($A$8=Nutrients!$B$77,Nutrients!$FC$77,Nutrients!$FC$78)))))*M$8))","v":0},{"$f":"(SUMPRODUCT(N$9:N$229,Nutrients!$FC$8:$FC$228)+(IF($A$7=Nutrients!$B$8,Nutrients!$FC$8,Nutrients!$FC$9)*N$7)+(((IF($A$8=Nutrients!$B$79,Nutrients!$FC$79,(IF($A$8=Nutrients!$B$77,Nutrients!$FC$77,Nutrients!$FC$78)))))*N$8))","v":0},null,{"$f":"(SUMPRODUCT(P$9:P$229,Nutrients!$FC$8:$FC$228)+(IF($A$7=Nutrients!$B$8,Nutrients!$FC$8,Nutrients!$FC$9)*P$7)+(((IF($A$8=Nutrients!$B$79,Nutrients!$FC$79,(IF($A$8=Nutrients!$B$77,Nutrients!$FC$77,Nutrients!$FC$78)))))*P$8))","v":0},{"$f":"(SUMPRODUCT(Q$9:Q$229,Nutrients!$FC$8:$FC$228)+(IF($A$7=Nutrients!$B$8,Nutrients!$FC$8,Nutrients!$FC$9)*Q$7)+(((IF($A$8=Nutrients!$B$79,Nutrients!$FC$79,(IF($A$8=Nutrients!$B$77,Nutrients!$FC$77,Nutrients!$FC$78)))))*Q$8))","v":0},{"$f":"(SUMPRODUCT(R$9:R$229,Nutrients!$FC$8:$FC$228)+(IF($A$7=Nutrients!$B$8,Nutrients!$FC$8,Nutrients!$FC$9)*R$7)+(((IF($A$8=Nutrients!$B$79,Nutrients!$FC$79,(IF($A$8=Nutrients!$B$77,Nutrients!$FC$77,Nutrients!$FC$78)))))*R$8))","v":0},{"$f":"(SUMPRODUCT(S$9:S$229,Nutrients!$FC$8:$FC$228)+(IF($A$7=Nutrients!$B$8,Nutrients!$FC$8,Nutrients!$FC$9)*S$7)+(((IF($A$8=Nutrients!$B$79,Nutrients!$FC$79,(IF($A$8=Nutrients!$B$77,Nutrients!$FC$77,Nutrients!$FC$78)))))*S$8))","v":0},{"$f":"(SUMPRODUCT(T$9:T$229,Nutrients!$FC$8:$FC$228)+(IF($A$7=Nutrients!$B$8,Nutrients!$FC$8,Nutrients!$FC$9)*T$7)+(((IF($A$8=Nutrients!$B$79,Nutrients!$FC$79,(IF($A$8=Nutrients!$B$77,Nutrients!$FC$77,Nutrients!$FC$78)))))*T$8))","v":0},{"$f":"(SUMPRODUCT(U$9:U$229,Nutrients!$FC$8:$FC$228)+(IF($A$7=Nutrients!$B$8,Nutrients!$FC$8,Nutrients!$FC$9)*U$7)+(((IF($A$8=Nutrients!$B$79,Nutrients!$FC$79,(IF($A$8=Nutrients!$B$77,Nutrients!$FC$77,Nutrients!$FC$78)))))*U$8))","v":0},null,{"$f":"(SUMPRODUCT(W$9:W$229,Nutrients!$FC$8:$FC$228)+(IF($A$7=Nutrients!$B$8,Nutrients!$FC$8,Nutrients!$FC$9)*W$7)+(((IF($A$8=Nutrients!$B$79,Nutrients!$FC$79,(IF($A$8=Nutrients!$B$77,Nutrients!$FC$77,Nutrients!$FC$78)))))*W$8))","v":0},{"$f":"(SUMPRODUCT(X$9:X$229,Nutrients!$FC$8:$FC$228)+(IF($A$7=Nutrients!$B$8,Nutrients!$FC$8,Nutrients!$FC$9)*X$7)+(((IF($A$8=Nutrients!$B$79,Nutrients!$FC$79,(IF($A$8=Nutrients!$B$77,Nutrients!$FC$77,Nutrients!$FC$78)))))*X$8))","v":0},{"$f":"(SUMPRODUCT(Y$9:Y$229,Nutrients!$FC$8:$FC$228)+(IF($A$7=Nutrients!$B$8,Nutrients!$FC$8,Nutrients!$FC$9)*Y$7)+(((IF($A$8=Nutrients!$B$79,Nutrients!$FC$79,(IF($A$8=Nutrients!$B$77,Nutrients!$FC$77,Nutrients!$FC$78)))))*Y$8))","v":0},{"$f":"(SUMPRODUCT(Z$9:Z$229,Nutrients!$FC$8:$FC$228)+(IF($A$7=Nutrients!$B$8,Nutrients!$FC$8,Nutrients!$FC$9)*Z$7)+(((IF($A$8=Nutrients!$B$79,Nutrients!$FC$79,(IF($A$8=Nutrients!$B$77,Nutrients!$FC$77,Nutrients!$FC$78)))))*Z$8))","v":0},{"$f":"(SUMPRODUCT(AA$9:AA$229,Nutrients!$FC$8:$FC$228)+(IF($A$7=Nutrients!$B$8,Nutrients!$FC$8,Nutrients!$FC$9)*AA$7)+(((IF($A$8=Nutrients!$B$79,Nutrients!$FC$79,(IF($A$8=Nutrients!$B$77,Nutrients!$FC$77,Nutrients!$FC$78)))))*AA$8))","v":0},{"$f":"(SUMPRODUCT(AB$9:AB$229,Nutrients!$FC$8:$FC$228)+(IF($A$7=Nutrients!$B$8,Nutrients!$FC$8,Nutrients!$FC$9)*AB$7)+(((IF($A$8=Nutrients!$B$79,Nutrients!$FC$79,(IF($A$8=Nutrients!$B$77,Nutrients!$FC$77,Nutrients!$FC$78)))))*AB$8))","v":0},null,{"$f":"(SUMPRODUCT(AD$9:AD$229,Nutrients!$FC$8:$FC$228)+(IF($A$7=Nutrients!$B$8,Nutrients!$FC$8,Nutrients!$FC$9)*AD$7)+(((IF($A$8=Nutrients!$B$79,Nutrients!$FC$79,(IF($A$8=Nutrients!$B$77,Nutrients!$FC$77,Nutrients!$FC$78)))))*AD$8))","v":0},{"$f":"(SUMPRODUCT(AE$9:AE$229,Nutrients!$FC$8:$FC$228)+(IF($A$7=Nutrients!$B$8,Nutrients!$FC$8,Nutrients!$FC$9)*AE$7)+(((IF($A$8=Nutrients!$B$79,Nutrients!$FC$79,(IF($A$8=Nutrients!$B$77,Nutrients!$FC$77,Nutrients!$FC$78)))))*AE$8))","v":0},{"$f":"(SUMPRODUCT(AF$9:AF$229,Nutrients!$FC$8:$FC$228)+(IF($A$7=Nutrients!$B$8,Nutrients!$FC$8,Nutrients!$FC$9)*AF$7)+(((IF($A$8=Nutrients!$B$79,Nutrients!$FC$79,(IF($A$8=Nutrients!$B$77,Nutrients!$FC$77,Nutrients!$FC$78)))))*AF$8))","v":0},{"$f":"(SUMPRODUCT(AG$9:AG$229,Nutrients!$FC$8:$FC$228)+(IF($A$7=Nutrients!$B$8,Nutrients!$FC$8,Nutrients!$FC$9)*AG$7)+(((IF($A$8=Nutrients!$B$79,Nutrients!$FC$79,(IF($A$8=Nutrients!$B$77,Nutrients!$FC$77,Nutrients!$FC$78)))))*AG$8))","v":0},{"$f":"(SUMPRODUCT(AH$9:AH$229,Nutrients!$FC$8:$FC$228)+(IF($A$7=Nutrients!$B$8,Nutrients!$FC$8,Nutrients!$FC$9)*AH$7)+(((IF($A$8=Nutrients!$B$79,Nutrients!$FC$79,(IF($A$8=Nutrients!$B$77,Nutrients!$FC$77,Nutrients!$FC$78)))))*AH$8))","v":0},{"$f":"(SUMPRODUCT(AI$9:AI$229,Nutrients!$FC$8:$FC$228)+(IF($A$7=Nutrients!$B$8,Nutrients!$FC$8,Nutrients!$FC$9)*AI$7)+(((IF($A$8=Nutrients!$B$79,Nutrients!$FC$79,(IF($A$8=Nutrients!$B$77,Nutrients!$FC$77,Nutrients!$FC$78)))))*AI$8))","v":0},null,{"$f":"(SUMPRODUCT(AK$9:AK$229,Nutrients!$FC$8:$FC$228)+(IF($A$7=Nutrients!$B$8,Nutrients!$FC$8,Nutrients!$FC$9)*AK$7)+(((IF($A$8=Nutrients!$B$79,Nutrients!$FC$79,(IF($A$8=Nutrients!$B$77,Nutrients!$FC$77,Nutrients!$FC$78)))))*AK$8))","v":0},{"$f":"(SUMPRODUCT(AL$9:AL$229,Nutrients!$FC$8:$FC$228)+(IF($A$7=Nutrients!$B$8,Nutrients!$FC$8,Nutrients!$FC$9)*AL$7)+(((IF($A$8=Nutrients!$B$79,Nutrients!$FC$79,(IF($A$8=Nutrients!$B$77,Nutrients!$FC$77,Nutrients!$FC$78)))))*AL$8))","v":0},{"$f":"(SUMPRODUCT(AM$9:AM$229,Nutrients!$FC$8:$FC$228)+(IF($A$7=Nutrients!$B$8,Nutrients!$FC$8,Nutrients!$FC$9)*AM$7)+(((IF($A$8=Nutrients!$B$79,Nutrients!$FC$79,(IF($A$8=Nutrients!$B$77,Nutrients!$FC$77,Nutrients!$FC$78)))))*AM$8))","v":0},{"$f":"(SUMPRODUCT(AN$9:AN$229,Nutrients!$FC$8:$FC$228)+(IF($A$7=Nutrients!$B$8,Nutrients!$FC$8,Nutrients!$FC$9)*AN$7)+(((IF($A$8=Nutrients!$B$79,Nutrients!$FC$79,(IF($A$8=Nutrients!$B$77,Nutrients!$FC$77,Nutrients!$FC$78)))))*AN$8))","v":0},{"$f":"(SUMPRODUCT(AO$9:AO$229,Nutrients!$FC$8:$FC$228)+(IF($A$7=Nutrients!$B$8,Nutrients!$FC$8,Nutrients!$FC$9)*AO$7)+(((IF($A$8=Nutrients!$B$79,Nutrients!$FC$79,(IF($A$8=Nutrients!$B$77,Nutrients!$FC$77,Nutrients!$FC$78)))))*AO$8))","v":0},{"$f":"(SUMPRODUCT(AP$9:AP$229,Nutrients!$FC$8:$FC$228)+(IF($A$7=Nutrients!$B$8,Nutrients!$FC$8,Nutrients!$FC$9)*AP$7)+(((IF($A$8=Nutrients!$B$79,Nutrients!$FC$79,(IF($A$8=Nutrients!$B$77,Nutrients!$FC$77,Nutrients!$FC$78)))))*AP$8))","v":0},null,{"$f":"(SUMPRODUCT(AR$9:AR$229,Nutrients!$FC$8:$FC$228)+(IF($A$7=Nutrients!$B$8,Nutrients!$FC$8,Nutrients!$FC$9)*AR$7)+(((IF($A$8=Nutrients!$B$79,Nutrients!$FC$79,(IF($A$8=Nutrients!$B$77,Nutrients!$FC$77,Nutrients!$FC$78)))))*AR$8))","v":0},{"$f":"(SUMPRODUCT(AS$9:AS$229,Nutrients!$FC$8:$FC$228)+(IF($A$7=Nutrients!$B$8,Nutrients!$FC$8,Nutrients!$FC$9)*AS$7)+(((IF($A$8=Nutrients!$B$79,Nutrients!$FC$79,(IF($A$8=Nutrients!$B$77,Nutrients!$FC$77,Nutrients!$FC$78)))))*AS$8))","v":0},{"$f":"(SUMPRODUCT(AT$9:AT$229,Nutrients!$FC$8:$FC$228)+(IF($A$7=Nutrients!$B$8,Nutrients!$FC$8,Nutrients!$FC$9)*AT$7)+(((IF($A$8=Nutrients!$B$79,Nutrients!$FC$79,(IF($A$8=Nutrients!$B$77,Nutrients!$FC$77,Nutrients!$FC$78)))))*AT$8))","v":0},{"$f":"(SUMPRODUCT(AU$9:AU$229,Nutrients!$FC$8:$FC$228)+(IF($A$7=Nutrients!$B$8,Nutrients!$FC$8,Nutrients!$FC$9)*AU$7)+(((IF($A$8=Nutrients!$B$79,Nutrients!$FC$79,(IF($A$8=Nutrients!$B$77,Nutrients!$FC$77,Nutrients!$FC$78)))))*AU$8))","v":0},{"$f":"(SUMPRODUCT(AV$9:AV$229,Nutrients!$FC$8:$FC$228)+(IF($A$7=Nutrients!$B$8,Nutrients!$FC$8,Nutrients!$FC$9)*AV$7)+(((IF($A$8=Nutrients!$B$79,Nutrients!$FC$79,(IF($A$8=Nutrients!$B$77,Nutrients!$FC$77,Nutrients!$FC$78)))))*AV$8))","v":0},{"$f":"(SUMPRODUCT(AW$9:AW$229,Nutrients!$FC$8:$FC$228)+(IF($A$7=Nutrients!$B$8,Nutrients!$FC$8,Nutrients!$FC$9)*AW$7)+(((IF($A$8=Nutrients!$B$79,Nutrients!$FC$79,(IF($A$8=Nutrients!$B$77,Nutrients!$FC$77,Nutrients!$FC$78)))))*AW$8))","v":0}]
["  Choline, mg/ton",{"$f":"(SUMPRODUCT(B$9:B$229,Nutrients!$FD$8:$FD$228)+(IF($A$7=Nutrients!$B$8,Nutrients!$FD$8,Nutrients!$FD$9)*B$7)+(((IF($A$8=Nutrients!$B$79,Nutrients!$FD$79,(IF($A$8=Nutrients!$B$77,Nutrients!$FD$77,Nutrients!$FD$78)))))*B$8))","v":0},{"$f":"(SUMPRODUCT(C$9:C$229,Nutrients!$FD$8:$FD$228)+(IF($A$7=Nutrients!$B$8,Nutrients!$FD$8,Nutrients!$FD$9)*C$7)+(((IF($A$8=Nutrients!$B$79,Nutrients!$FD$79,(IF($A$8=Nutrients!$B$77,Nutrients!$FD$77,Nutrients!$FD$78)))))*C$8))","v":0},{"$f":"(SUMPRODUCT(D$9:D$229,Nutrients!$FD$8:$FD$228)+(IF($A$7=Nutrients!$B$8,Nutrients!$FD$8,Nutrients!$FD$9)*D$7)+(((IF($A$8=Nutrients!$B$79,Nutrients!$FD$79,(IF($A$8=Nutrients!$B$77,Nutrients!$FD$77,Nutrients!$FD$78)))))*D$8))","v":0},{"$f":"(SUMPRODUCT(E$9:E$229,Nutrients!$FD$8:$FD$228)+(IF($A$7=Nutrients!$B$8,Nutrients!$FD$8,Nutrients!$FD$9)*E$7)+(((IF($A$8=Nutrients!$B$79,Nutrients!$FD$79,(IF($A$8=Nutrients!$B$77,Nutrients!$FD$77,Nutrients!$FD$78)))))*E$8))","v":0},{"$f":"(SUMPRODUCT(F$9:F$229,Nutrients!$FD$8:$FD$228)+(IF($A$7=Nutrients!$B$8,Nutrients!$FD$8,Nutrients!$FD$9)*F$7)+(((IF($A$8=Nutrients!$B$79,Nutrients!$FD$79,(IF($A$8=Nutrients!$B$77,Nutrients!$FD$77,Nutrients!$FD$78)))))*F$8))","v":0},{"$f":"(SUMPRODUCT(G$9:G$229,Nutrients!$FD$8:$FD$228)+(IF($A$7=Nutrients!$B$8,Nutrients!$FD$8,Nutrients!$FD$9)*G$7)+(((IF($A$8=Nutrients!$B$79,Nutrients!$FD$79,(IF($A$8=Nutrients!$B$77,Nutrients!$FD$77,Nutrients!$FD$78)))))*G$8))","v":0},null,{"$f":"(SUMPRODUCT(I$9:I$229,Nutrients!$FD$8:$FD$228)+(IF($A$7=Nutrients!$B$8,Nutrients!$FD$8,Nutrients!$FD$9)*I$7)+(((IF($A$8=Nutrients!$B$79,Nutrients!$FD$79,(IF($A$8=Nutrients!$B$77,Nutrients!$FD$77,Nutrients!$FD$78)))))*I$8))","v":0},{"$f":"(SUMPRODUCT(J$9:J$229,Nutrients!$FD$8:$FD$228)+(IF($A$7=Nutrients!$B$8,Nutrients!$FD$8,Nutrients!$FD$9)*J$7)+(((IF($A$8=Nutrients!$B$79,Nutrients!$FD$79,(IF($A$8=Nutrients!$B$77,Nutrients!$FD$77,Nutrients!$FD$78)))))*J$8))","v":0},{"$f":"(SUMPRODUCT(K$9:K$229,Nutrients!$FD$8:$FD$228)+(IF($A$7=Nutrients!$B$8,Nutrients!$FD$8,Nutrients!$FD$9)*K$7)+(((IF($A$8=Nutrients!$B$79,Nutrients!$FD$79,(IF($A$8=Nutrients!$B$77,Nutrients!$FD$77,Nutrients!$FD$78)))))*K$8))","v":0},{"$f":"(SUMPRODUCT(L$9:L$229,Nutrients!$FD$8:$FD$228)+(IF($A$7=Nutrients!$B$8,Nutrients!$FD$8,Nutrients!$FD$9)*L$7)+(((IF($A$8=Nutrients!$B$79,Nutrients!$FD$79,(IF($A$8=Nutrients!$B$77,Nutrients!$FD$77,Nutrients!$FD$78)))))*L$8))","v":0},{"$f":"(SUMPRODUCT(M$9:M$229,Nutrients!$FD$8:$FD$228)+(IF($A$7=Nutrients!$B$8,Nutrients!$FD$8,Nutrients!$FD$9)*M$7)+(((IF($A$8=Nutrients!$B$79,Nutrients!$FD$79,(IF($A$8=Nutrients!$B$77,Nutrients!$FD$77,Nutrients!$FD$78)))))*M$8))","v":0},{"$f":"(SUMPRODUCT(N$9:N$229,Nutrients!$FD$8:$FD$228)+(IF($A$7=Nutrients!$B$8,Nutrients!$FD$8,Nutrients!$FD$9)*N$7)+(((IF($A$8=Nutrients!$B$79,Nutrients!$FD$79,(IF($A$8=Nutrients!$B$77,Nutrients!$FD$77,Nutrients!$FD$78)))))*N$8))","v":0},null,{"$f":"(SUMPRODUCT(P$9:P$229,Nutrients!$FD$8:$FD$228)+(IF($A$7=Nutrients!$B$8,Nutrients!$FD$8,Nutrients!$FD$9)*P$7)+(((IF($A$8=Nutrients!$B$79,Nutrients!$FD$79,(IF($A$8=Nutrients!$B$77,Nutrients!$FD$77,Nutrients!$FD$78)))))*P$8))","v":0},{"$f":"(SUMPRODUCT(Q$9:Q$229,Nutrients!$FD$8:$FD$228)+(IF($A$7=Nutrients!$B$8,Nutrients!$FD$8,Nutrients!$FD$9)*Q$7)+(((IF($A$8=Nutrients!$B$79,Nutrients!$FD$79,(IF($A$8=Nutrients!$B$77,Nutrients!$FD$77,Nutrients!$FD$78)))))*Q$8))","v":0},{"$f":"(SUMPRODUCT(R$9:R$229,Nutrients!$FD$8:$FD$228)+(IF($A$7=Nutrients!$B$8,Nutrients!$FD$8,Nutrients!$FD$9)*R$7)+(((IF($A$8=Nutrients!$B$79,Nutrients!$FD$79,(IF($A$8=Nutrients!$B$77,Nutrients!$FD$77,Nutrients!$FD$78)))))*R$8))","v":0},{"$f":"(SUMPRODUCT(S$9:S$229,Nutrients!$FD$8:$FD$228)+(IF($A$7=Nutrients!$B$8,Nutrients!$FD$8,Nutrients!$FD$9)*S$7)+(((IF($A$8=Nutrients!$B$79,Nutrients!$FD$79,(IF($A$8=Nutrients!$B$77,Nutrients!$FD$77,Nutrients!$FD$78)))))*S$8))","v":0},{"$f":"(SUMPRODUCT(T$9:T$229,Nutrients!$FD$8:$FD$228)+(IF($A$7=Nutrients!$B$8,Nutrients!$FD$8,Nutrients!$FD$9)*T$7)+(((IF($A$8=Nutrients!$B$79,Nutrients!$FD$79,(IF($A$8=Nutrients!$B$77,Nutrients!$FD$77,Nutrients!$FD$78)))))*T$8))","v":0},{"$f":"(SUMPRODUCT(U$9:U$229,Nutrients!$FD$8:$FD$228)+(IF($A$7=Nutrients!$B$8,Nutrients!$FD$8,Nutrients!$FD$9)*U$7)+(((IF($A$8=Nutrients!$B$79,Nutrients!$FD$79,(IF($A$8=Nutrients!$B$77,Nutrients!$FD$77,Nutrients!$FD$78)))))*U$8))","v":0},null,{"$f":"(SUMPRODUCT(W$9:W$229,Nutrients!$FD$8:$FD$228)+(IF($A$7=Nutrients!$B$8,Nutrients!$FD$8,Nutrients!$FD$9)*W$7)+(((IF($A$8=Nutrients!$B$79,Nutrients!$FD$79,(IF($A$8=Nutrients!$B$77,Nutrients!$FD$77,Nutrients!$FD$78)))))*W$8))","v":0},{"$f":"(SUMPRODUCT(X$9:X$229,Nutrients!$FD$8:$FD$228)+(IF($A$7=Nutrients!$B$8,Nutrients!$FD$8,Nutrients!$FD$9)*X$7)+(((IF($A$8=Nutrients!$B$79,Nutrients!$FD$79,(IF($A$8=Nutrients!$B$77,Nutrients!$FD$77,Nutrients!$FD$78)))))*X$8))","v":0},{"$f":"(SUMPRODUCT(Y$9:Y$229,Nutrients!$FD$8:$FD$228)+(IF($A$7=Nutrients!$B$8,Nutrients!$FD$8,Nutrients!$FD$9)*Y$7)+(((IF($A$8=Nutrients!$B$79,Nutrients!$FD$79,(IF($A$8=Nutrients!$B$77,Nutrients!$FD$77,Nutrients!$FD$78)))))*Y$8))","v":0},{"$f":"(SUMPRODUCT(Z$9:Z$229,Nutrients!$FD$8:$FD$228)+(IF($A$7=Nutrients!$B$8,Nutrients!$FD$8,Nutrients!$FD$9)*Z$7)+(((IF($A$8=Nutrients!$B$79,Nutrients!$FD$79,(IF($A$8=Nutrients!$B$77,Nutrients!$FD$77,Nutrients!$FD$78)))))*Z$8))","v":0},{"$f":"(SUMPRODUCT(AA$9:AA$229,Nutrients!$FD$8:$FD$228)+(IF($A$7=Nutrients!$B$8,Nutrients!$FD$8,Nutrients!$FD$9)*AA$7)+(((IF($A$8=Nutrients!$B$79,Nutrients!$FD$79,(IF($A$8=Nutrients!$B$77,Nutrients!$FD$77,Nutrients!$FD$78)))))*AA$8))","v":0},{"$f":"(SUMPRODUCT(AB$9:AB$229,Nutrients!$FD$8:$FD$228)+(IF($A$7=Nutrients!$B$8,Nutrients!$FD$8,Nutrients!$FD$9)*AB$7)+(((IF($A$8=Nutrients!$B$79,Nutrients!$FD$79,(IF($A$8=Nutrients!$B$77,Nutrients!$FD$77,Nutrients!$FD$78)))))*AB$8))","v":0},null,{"$f":"(SUMPRODUCT(AD$9:AD$229,Nutrients!$FD$8:$FD$228)+(IF($A$7=Nutrients!$B$8,Nutrients!$FD$8,Nutrients!$FD$9)*AD$7)+(((IF($A$8=Nutrients!$B$79,Nutrients!$FD$79,(IF($A$8=Nutrients!$B$77,Nutrients!$FD$77,Nutrients!$FD$78)))))*AD$8))","v":0},{"$f":"(SUMPRODUCT(AE$9:AE$229,Nutrients!$FD$8:$FD$228)+(IF($A$7=Nutrients!$B$8,Nutrients!$FD$8,Nutrients!$FD$9)*AE$7)+(((IF($A$8=Nutrients!$B$79,Nutrients!$FD$79,(IF($A$8=Nutrients!$B$77,Nutrients!$FD$77,Nutrients!$FD$78)))))*AE$8))","v":0},{"$f":"(SUMPRODUCT(AF$9:AF$229,Nutrients!$FD$8:$FD$228)+(IF($A$7=Nutrients!$B$8,Nutrients!$FD$8,Nutrients!$FD$9)*AF$7)+(((IF($A$8=Nutrients!$B$79,Nutrients!$FD$79,(IF($A$8=Nutrients!$B$77,Nutrients!$FD$77,Nutrients!$FD$78)))))*AF$8))","v":0},{"$f":"(SUMPRODUCT(AG$9:AG$229,Nutrients!$FD$8:$FD$228)+(IF($A$7=Nutrients!$B$8,Nutrients!$FD$8,Nutrients!$FD$9)*AG$7)+(((IF($A$8=Nutrients!$B$79,Nutrients!$FD$79,(IF($A$8=Nutrients!$B$77,Nutrients!$FD$77,Nutrients!$FD$78)))))*AG$8))","v":0},{"$f":"(SUMPRODUCT(AH$9:AH$229,Nutrients!$FD$8:$FD$228)+(IF($A$7=Nutrients!$B$8,Nutrients!$FD$8,Nutrients!$FD$9)*AH$7)+(((IF($A$8=Nutrients!$B$79,Nutrients!$FD$79,(IF($A$8=Nutrients!$B$77,Nutrients!$FD$77,Nutrients!$FD$78)))))*AH$8))","v":0},{"$f":"(SUMPRODUCT(AI$9:AI$229,Nutrients!$FD$8:$FD$228)+(IF($A$7=Nutrients!$B$8,Nutrients!$FD$8,Nutrients!$FD$9)*AI$7)+(((IF($A$8=Nutrients!$B$79,Nutrients!$FD$79,(IF($A$8=Nutrients!$B$77,Nutrients!$FD$77,Nutrients!$FD$78)))))*AI$8))","v":0},null,{"$f":"(SUMPRODUCT(AK$9:AK$229,Nutrients!$FD$8:$FD$228)+(IF($A$7=Nutrients!$B$8,Nutrients!$FD$8,Nutrients!$FD$9)*AK$7)+(((IF($A$8=Nutrients!$B$79,Nutrients!$FD$79,(IF($A$8=Nutrients!$B$77,Nutrients!$FD$77,Nutrients!$FD$78)))))*AK$8))","v":0},{"$f":"(SUMPRODUCT(AL$9:AL$229,Nutrients!$FD$8:$FD$228)+(IF($A$7=Nutrients!$B$8,Nutrients!$FD$8,Nutrients!$FD$9)*AL$7)+(((IF($A$8=Nutrients!$B$79,Nutrients!$FD$79,(IF($A$8=Nutrients!$B$77,Nutrients!$FD$77,Nutrients!$FD$78)))))*AL$8))","v":0},{"$f":"(SUMPRODUCT(AM$9:AM$229,Nutrients!$FD$8:$FD$228)+(IF($A$7=Nutrients!$B$8,Nutrients!$FD$8,Nutrients!$FD$9)*AM$7)+(((IF($A$8=Nutrients!$B$79,Nutrients!$FD$79,(IF($A$8=Nutrients!$B$77,Nutrients!$FD$77,Nutrients!$FD$78)))))*AM$8))","v":0},{"$f":"(SUMPRODUCT(AN$9:AN$229,Nutrients!$FD$8:$FD$228)+(IF($A$7=Nutrients!$B$8,Nutrients!$FD$8,Nutrients!$FD$9)*AN$7)+(((IF($A$8=Nutrients!$B$79,Nutrients!$FD$79,(IF($A$8=Nutrients!$B$77,Nutrients!$FD$77,Nutrients!$FD$78)))))*AN$8))","v":0},{"$f":"(SUMPRODUCT(AO$9:AO$229,Nutrients!$FD$8:$FD$228)+(IF($A$7=Nutrients!$B$8,Nutrients!$FD$8,Nutrients!$FD$9)*AO$7)+(((IF($A$8=Nutrients!$B$79,Nutrients!$FD$79,(IF($A$8=Nutrients!$B$77,Nutrients!$FD$77,Nutrients!$FD$78)))))*AO$8))","v":0},{"$f":"(SUMPRODUCT(AP$9:AP$229,Nutrients!$FD$8:$FD$228)+(IF($A$7=Nutrients!$B$8,Nutrients!$FD$8,Nutrients!$FD$9)*AP$7)+(((IF($A$8=Nutrients!$B$79,Nutrients!$FD$79,(IF($A$8=Nutrients!$B$77,Nutrients!$FD$77,Nutrients!$FD$78)))))*AP$8))","v":0},null,{"$f":"(SUMPRODUCT(AR$9:AR$229,Nutrients!$FD$8:$FD$228)+(IF($A$7=Nutrients!$B$8,Nutrients!$FD$8,Nutrients!$FD$9)*AR$7)+(((IF($A$8=Nutrients!$B$79,Nutrients!$FD$79,(IF($A$8=Nutrients!$B$77,Nutrients!$FD$77,Nutrients!$FD$78)))))*AR$8))","v":0},{"$f":"(SUMPRODUCT(AS$9:AS$229,Nutrients!$FD$8:$FD$228)+(IF($A$7=Nutrients!$B$8,Nutrients!$FD$8,Nutrients!$FD$9)*AS$7)+(((IF($A$8=Nutrients!$B$79,Nutrients!$FD$79,(IF($A$8=Nutrients!$B$77,Nutrients!$FD$77,Nutrients!$FD$78)))))*AS$8))","v":0},{"$f":"(SUMPRODUCT(AT$9:AT$229,Nutrients!$FD$8:$FD$228)+(IF($A$7=Nutrients!$B$8,Nutrients!$FD$8,Nutrients!$FD$9)*AT$7)+(((IF($A$8=Nutrients!$B$79,Nutrients!$FD$79,(IF($A$8=Nutrients!$B$77,Nutrients!$FD$77,Nutrients!$FD$78)))))*AT$8))","v":0},{"$f":"(SUMPRODUCT(AU$9:AU$229,Nutrients!$FD$8:$FD$228)+(IF($A$7=Nutrients!$B$8,Nutrients!$FD$8,Nutrients!$FD$9)*AU$7)+(((IF($A$8=Nutrients!$B$79,Nutrients!$FD$79,(IF($A$8=Nutrients!$B$77,Nutrients!$FD$77,Nutrients!$FD$78)))))*AU$8))","v":0},{"$f":"(SUMPRODUCT(AV$9:AV$229,Nutrients!$FD$8:$FD$228)+(IF($A$7=Nutrients!$B$8,Nutrients!$FD$8,Nutrients!$FD$9)*AV$7)+(((IF($A$8=Nutrients!$B$79,Nutrients!$FD$79,(IF($A$8=Nutrients!$B$77,Nutrients!$FD$77,Nutrients!$FD$78)))))*AV$8))","v":0},{"$f":"(SUMPRODUCT(AW$9:AW$229,Nutrients!$FD$8:$FD$228)+(IF($A$7=Nutrients!$B$8,Nutrients!$FD$8,Nutrients!$FD$9)*AW$7)+(((IF($A$8=Nutrients!$B$79,Nutrients!$FD$79,(IF($A$8=Nutrients!$B$77,Nutrients!$FD$77,Nutrients!$FD$78)))))*AW$8))","v":0}]
["  Carnitine, mg/ton",{"$f":"(SUMPRODUCT(B$9:B$229,Nutrients!$FE$8:$FE$228)+(IF($A$7=Nutrients!$B$8,Nutrients!$FE$8,Nutrients!$FE$9)*B$7)+(((IF($A$8=Nutrients!$B$79,Nutrients!$FE$79,(IF($A$8=Nutrients!$B$77,Nutrients!$FE$77,Nutrients!$FE$78)))))*B$8))","v":0},{"$f":"(SUMPRODUCT(C$9:C$229,Nutrients!$FE$8:$FE$228)+(IF($A$7=Nutrients!$B$8,Nutrients!$FE$8,Nutrients!$FE$9)*C$7)+(((IF($A$8=Nutrients!$B$79,Nutrients!$FE$79,(IF($A$8=Nutrients!$B$77,Nutrients!$FE$77,Nutrients!$FE$78)))))*C$8))","v":0},{"$f":"(SUMPRODUCT(D$9:D$229,Nutrients!$FE$8:$FE$228)+(IF($A$7=Nutrients!$B$8,Nutrients!$FE$8,Nutrients!$FE$9)*D$7)+(((IF($A$8=Nutrients!$B$79,Nutrients!$FE$79,(IF($A$8=Nutrients!$B$77,Nutrients!$FE$77,Nutrients!$FE$78)))))*D$8))","v":0},{"$f":"(SUMPRODUCT(E$9:E$229,Nutrients!$FE$8:$FE$228)+(IF($A$7=Nutrients!$B$8,Nutrients!$FE$8,Nutrients!$FE$9)*E$7)+(((IF($A$8=Nutrients!$B$79,Nutrients!$FE$79,(IF($A$8=Nutrients!$B$77,Nutrients!$FE$77,Nutrients!$FE$78)))))*E$8))","v":0},{"$f":"(SUMPRODUCT(F$9:F$229,Nutrients!$FE$8:$FE$228)+(IF($A$7=Nutrients!$B$8,Nutrients!$FE$8,Nutrients!$FE$9)*F$7)+(((IF($A$8=Nutrients!$B$79,Nutrients!$FE$79,(IF($A$8=Nutrients!$B$77,Nutrients!$FE$77,Nutrients!$FE$78)))))*F$8))","v":0},{"$f":"(SUMPRODUCT(G$9:G$229,Nutrients!$FE$8:$FE$228)+(IF($A$7=Nutrients!$B$8,Nutrients!$FE$8,Nutrients!$FE$9)*G$7)+(((IF($A$8=Nutrients!$B$79,Nutrients!$FE$79,(IF($A$8=Nutrients!$B$77,Nutrients!$FE$77,Nutrients!$FE$78)))))*G$8))","v":0},null,{"$f":"(SUMPRODUCT(I$9:I$229,Nutrients!$FE$8:$FE$228)+(IF($A$7=Nutrients!$B$8,Nutrients!$FE$8,Nutrients!$FE$9)*I$7)+(((IF($A$8=Nutrients!$B$79,Nutrients!$FE$79,(IF($A$8=Nutrients!$B$77,Nutrients!$FE$77,Nutrients!$FE$78)))))*I$8))","v":0},{"$f":"(SUMPRODUCT(J$9:J$229,Nutrients!$FE$8:$FE$228)+(IF($A$7=Nutrients!$B$8,Nutrients!$FE$8,Nutrients!$FE$9)*J$7)+(((IF($A$8=Nutrients!$B$79,Nutrients!$FE$79,(IF($A$8=Nutrients!$B$77,Nutrients!$FE$77,Nutrients!$FE$78)))))*J$8))","v":0},{"$f":"(SUMPRODUCT(K$9:K$229,Nutrients!$FE$8:$FE$228)+(IF($A$7=Nutrients!$B$8,Nutrients!$FE$8,Nutrients!$FE$9)*K$7)+(((IF($A$8=Nutrients!$B$79,Nutrients!$FE$79,(IF($A$8=Nutrients!$B$77,Nutrients!$FE$77,Nutrients!$FE$78)))))*K$8))","v":0},{"$f":"(SUMPRODUCT(L$9:L$229,Nutrients!$FE$8:$FE$228)+(IF($A$7=Nutrients!$B$8,Nutrients!$FE$8,Nutrients!$FE$9)*L$7)+(((IF($A$8=Nutrients!$B$79,Nutrients!$FE$79,(IF($A$8=Nutrients!$B$77,Nutrients!$FE$77,Nutrients!$FE$78)))))*L$8))","v":0},{"$f":"(SUMPRODUCT(M$9:M$229,Nutrients!$FE$8:$FE$228)+(IF($A$7=Nutrients!$B$8,Nutrients!$FE$8,Nutrients!$FE$9)*M$7)+(((IF($A$8=Nutrients!$B$79,Nutrients!$FE$79,(IF($A$8=Nutrients!$B$77,Nutrients!$FE$77,Nutrients!$FE$78)))))*M$8))","v":0},{"$f":"(SUMPRODUCT(N$9:N$229,Nutrients!$FE$8:$FE$228)+(IF($A$7=Nutrients!$B$8,Nutrients!$FE$8,Nutrients!$FE$9)*N$7)+(((IF($A$8=Nutrients!$B$79,Nutrients!$FE$79,(IF($A$8=Nutrients!$B$77,Nutrients!$FE$77,Nutrients!$FE$78)))))*N$8))","v":0},null,{"$f":"(SUMPRODUCT(P$9:P$229,Nutrients!$FE$8:$FE$228)+(IF($A$7=Nutrients!$B$8,Nutrients!$FE$8,Nutrients!$FE$9)*P$7)+(((IF($A$8=Nutrients!$B$79,Nutrients!$FE$79,(IF($A$8=Nutrients!$B$77,Nutrients!$FE$77,Nutrients!$FE$78)))))*P$8))","v":0},{"$f":"(SUMPRODUCT(Q$9:Q$229,Nutrients!$FE$8:$FE$228)+(IF($A$7=Nutrients!$B$8,Nutrients!$FE$8,Nutrients!$FE$9)*Q$7)+(((IF($A$8=Nutrients!$B$79,Nutrients!$FE$79,(IF($A$8=Nutrients!$B$77,Nutrients!$FE$77,Nutrients!$FE$78)))))*Q$8))","v":0},{"$f":"(SUMPRODUCT(R$9:R$229,Nutrients!$FE$8:$FE$228)+(IF($A$7=Nutrients!$B$8,Nutrients!$FE$8,Nutrients!$FE$9)*R$7)+(((IF($A$8=Nutrients!$B$79,Nutrients!$FE$79,(IF($A$8=Nutrients!$B$77,Nutrients!$FE$77,Nutrients!$FE$78)))))*R$8))","v":0},{"$f":"(SUMPRODUCT(S$9:S$229,Nutrients!$FE$8:$FE$228)+(IF($A$7=Nutrients!$B$8,Nutrients!$FE$8,Nutrients!$FE$9)*S$7)+(((IF($A$8=Nutrients!$B$79,Nutrients!$FE$79,(IF($A$8=Nutrients!$B$77,Nutrients!$FE$77,Nutrients!$FE$78)))))*S$8))","v":0},{"$f":"(SUMPRODUCT(T$9:T$229,Nutrients!$FE$8:$FE$228)+(IF($A$7=Nutrients!$B$8,Nutrients!$FE$8,Nutrients!$FE$9)*T$7)+(((IF($A$8=Nutrients!$B$79,Nutrients!$FE$79,(IF($A$8=Nutrients!$B$77,Nutrients!$FE$77,Nutrients!$FE$78)))))*T$8))","v":0},{"$f":"(SUMPRODUCT(U$9:U$229,Nutrients!$FE$8:$FE$228)+(IF($A$7=Nutrients!$B$8,Nutrients!$FE$8,Nutrients!$FE$9)*U$7)+(((IF($A$8=Nutrients!$B$79,Nutrients!$FE$79,(IF($A$8=Nutrients!$B$77,Nutrients!$FE$77,Nutrients!$FE$78)))))*U$8))","v":0},null,{"$f":"(SUMPRODUCT(W$9:W$229,Nutrients!$FE$8:$FE$228)+(IF($A$7=Nutrients!$B$8,Nutrients!$FE$8,Nutrients!$FE$9)*W$7)+(((IF($A$8=Nutrients!$B$79,Nutrients!$FE$79,(IF($A$8=Nutrients!$B$77,Nutrients!$FE$77,Nutrients!$FE$78)))))*W$8))","v":0},{"$f":"(SUMPRODUCT(X$9:X$229,Nutrients!$FE$8:$FE$228)+(IF($A$7=Nutrients!$B$8,Nutrients!$FE$8,Nutrients!$FE$9)*X$7)+(((IF($A$8=Nutrients!$B$79,Nutrients!$FE$79,(IF($A$8=Nutrients!$B$77,Nutrients!$FE$77,Nutrients!$FE$78)))))*X$8))","v":0},{"$f":"(SUMPRODUCT(Y$9:Y$229,Nutrients!$FE$8:$FE$228)+(IF($A$7=Nutrients!$B$8,Nutrients!$FE$8,Nutrients!$FE$9)*Y$7)+(((IF($A$8=Nutrients!$B$79,Nutrients!$FE$79,(IF($A$8=Nutrients!$B$77,Nutrients!$FE$77,Nutrients!$FE$78)))))*Y$8))","v":0},{"$f":"(SUMPRODUCT(Z$9:Z$229,Nutrients!$FE$8:$FE$228)+(IF($A$7=Nutrients!$B$8,Nutrients!$FE$8,Nutrients!$FE$9)*Z$7)+(((IF($A$8=Nutrients!$B$79,Nutrients!$FE$79,(IF($A$8=Nutrients!$B$77,Nutrients!$FE$77,Nutrients!$FE$78)))))*Z$8))","v":0},{"$f":"(SUMPRODUCT(AA$9:AA$229,Nutrients!$FE$8:$FE$228)+(IF($A$7=Nutrients!$B$8,Nutrients!$FE$8,Nutrients!$FE$9)*AA$7)+(((IF($A$8=Nutrients!$B$79,Nutrients!$FE$79,(IF($A$8=Nutrients!$B$77,Nutrients!$FE$77,Nutrients!$FE$78)))))*AA$8))","v":0},{"$f":"(SUMPRODUCT(AB$9:AB$229,Nutrients!$FE$8:$FE$228)+(IF($A$7=Nutrients!$B$8,Nutrients!$FE$8,Nutrients!$FE$9)*AB$7)+(((IF($A$8=Nutrients!$B$79,Nutrients!$FE$79,(IF($A$8=Nutrients!$B$77,Nutrients!$FE$77,Nutrients!$FE$78)))))*AB$8))","v":0},null,{"$f":"(SUMPRODUCT(AD$9:AD$229,Nutrients!$FE$8:$FE$228)+(IF($A$7=Nutrients!$B$8,Nutrients!$FE$8,Nutrients!$FE$9)*AD$7)+(((IF($A$8=Nutrients!$B$79,Nutrients!$FE$79,(IF($A$8=Nutrients!$B$77,Nutrients!$FE$77,Nutrients!$FE$78)))))*AD$8))","v":0},{"$f":"(SUMPRODUCT(AE$9:AE$229,Nutrients!$FE$8:$FE$228)+(IF($A$7=Nutrients!$B$8,Nutrients!$FE$8,Nutrients!$FE$9)*AE$7)+(((IF($A$8=Nutrients!$B$79,Nutrients!$FE$79,(IF($A$8=Nutrients!$B$77,Nutrients!$FE$77,Nutrients!$FE$78)))))*AE$8))","v":0},{"$f":"(SUMPRODUCT(AF$9:AF$229,Nutrients!$FE$8:$FE$228)+(IF($A$7=Nutrients!$B$8,Nutrients!$FE$8,Nutrients!$FE$9)*AF$7)+(((IF($A$8=Nutrients!$B$79,Nutrients!$FE$79,(IF($A$8=Nutrients!$B$77,Nutrients!$FE$77,Nutrients!$FE$78)))))*AF$8))","v":0},{"$f":"(SUMPRODUCT(AG$9:AG$229,Nutrients!$FE$8:$FE$228)+(IF($A$7=Nutrients!$B$8,Nutrients!$FE$8,Nutrients!$FE$9)*AG$7)+(((IF($A$8=Nutrients!$B$79,Nutrients!$FE$79,(IF($A$8=Nutrients!$B$77,Nutrients!$FE$77,Nutrients!$FE$78)))))*AG$8))","v":0},{"$f":"(SUMPRODUCT(AH$9:AH$229,Nutrients!$FE$8:$FE$228)+(IF($A$7=Nutrients!$B$8,Nutrients!$FE$8,Nutrients!$FE$9)*AH$7)+(((IF($A$8=Nutrients!$B$79,Nutrients!$FE$79,(IF($A$8=Nutrients!$B$77,Nutrients!$FE$77,Nutrients!$FE$78)))))*AH$8))","v":0},{"$f":"(SUMPRODUCT(AI$9:AI$229,Nutrients!$FE$8:$FE$228)+(IF($A$7=Nutrients!$B$8,Nutrients!$FE$8,Nutrients!$FE$9)*AI$7)+(((IF($A$8=Nutrients!$B$79,Nutrients!$FE$79,(IF($A$8=Nutrients!$B$77,Nutrients!$FE$77,Nutrients!$FE$78)))))*AI$8))","v":0},null,{"$f":"(SUMPRODUCT(AK$9:AK$229,Nutrients!$FE$8:$FE$228)+(IF($A$7=Nutrients!$B$8,Nutrients!$FE$8,Nutrients!$FE$9)*AK$7)+(((IF($A$8=Nutrients!$B$79,Nutrients!$FE$79,(IF($A$8=Nutrients!$B$77,Nutrients!$FE$77,Nutrients!$FE$78)))))*AK$8))","v":0},{"$f":"(SUMPRODUCT(AL$9:AL$229,Nutrients!$FE$8:$FE$228)+(IF($A$7=Nutrients!$B$8,Nutrients!$FE$8,Nutrients!$FE$9)*AL$7)+(((IF($A$8=Nutrients!$B$79,Nutrients!$FE$79,(IF($A$8=Nutrients!$B$77,Nutrients!$FE$77,Nutrients!$FE$78)))))*AL$8))","v":0},{"$f":"(SUMPRODUCT(AM$9:AM$229,Nutrients!$FE$8:$FE$228)+(IF($A$7=Nutrients!$B$8,Nutrients!$FE$8,Nutrients!$FE$9)*AM$7)+(((IF($A$8=Nutrients!$B$79,Nutrients!$FE$79,(IF($A$8=Nutrients!$B$77,Nutrients!$FE$77,Nutrients!$FE$78)))))*AM$8))","v":0},{"$f":"(SUMPRODUCT(AN$9:AN$229,Nutrients!$FE$8:$FE$228)+(IF($A$7=Nutrients!$B$8,Nutrients!$FE$8,Nutrients!$FE$9)*AN$7)+(((IF($A$8=Nutrients!$B$79,Nutrients!$FE$79,(IF($A$8=Nutrients!$B$77,Nutrients!$FE$77,Nutrients!$FE$78)))))*AN$8))","v":0},{"$f":"(SUMPRODUCT(AO$9:AO$229,Nutrients!$FE$8:$FE$228)+(IF($A$7=Nutrients!$B$8,Nutrients!$FE$8,Nutrients!$FE$9)*AO$7)+(((IF($A$8=Nutrients!$B$79,Nutrients!$FE$79,(IF($A$8=Nutrients!$B$77,Nutrients!$FE$77,Nutrients!$FE$78)))))*AO$8))","v":0},{"$f":"(SUMPRODUCT(AP$9:AP$229,Nutrients!$FE$8:$FE$228)+(IF($A$7=Nutrients!$B$8,Nutrients!$FE$8,Nutrients!$FE$9)*AP$7)+(((IF($A$8=Nutrients!$B$79,Nutrients!$FE$79,(IF($A$8=Nutrients!$B$77,Nutrients!$FE$77,Nutrients!$FE$78)))))*AP$8))","v":0},null,{"$f":"(SUMPRODUCT(AR$9:AR$229,Nutrients!$FE$8:$FE$228)+(IF($A$7=Nutrients!$B$8,Nutrients!$FE$8,Nutrients!$FE$9)*AR$7)+(((IF($A$8=Nutrients!$B$79,Nutrients!$FE$79,(IF($A$8=Nutrients!$B$77,Nutrients!$FE$77,Nutrients!$FE$78)))))*AR$8))","v":0},{"$f":"(SUMPRODUCT(AS$9:AS$229,Nutrients!$FE$8:$FE$228)+(IF($A$7=Nutrients!$B$8,Nutrients!$FE$8,Nutrients!$FE$9)*AS$7)+(((IF($A$8=Nutrients!$B$79,Nutrients!$FE$79,(IF($A$8=Nutrients!$B$77,Nutrients!$FE$77,Nutrients!$FE$78)))))*AS$8))","v":0},{"$f":"(SUMPRODUCT(AT$9:AT$229,Nutrients!$FE$8:$FE$228)+(IF($A$7=Nutrients!$B$8,Nutrients!$FE$8,Nutrients!$FE$9)*AT$7)+(((IF($A$8=Nutrients!$B$79,Nutrients!$FE$79,(IF($A$8=Nutrients!$B$77,Nutrients!$FE$77,Nutrients!$FE$78)))))*AT$8))","v":0},{"$f":"(SUMPRODUCT(AU$9:AU$229,Nutrients!$FE$8:$FE$228)+(IF($A$7=Nutrients!$B$8,Nutrients!$FE$8,Nutrients!$FE$9)*AU$7)+(((IF($A$8=Nutrients!$B$79,Nutrients!$FE$79,(IF($A$8=Nutrients!$B$77,Nutrients!$FE$77,Nutrients!$FE$78)))))*AU$8))","v":0},{"$f":"(SUMPRODUCT(AV$9:AV$229,Nutrients!$FE$8:$FE$228)+(IF($A$7=Nutrients!$B$8,Nutrients!$FE$8,Nutrients!$FE$9)*AV$7)+(((IF($A$8=Nutrients!$B$79,Nutrients!$FE$79,(IF($A$8=Nutrients!$B$77,Nutrients!$FE$77,Nutrients!$FE$78)))))*AV$8))","v":0},{"$f":"(SUMPRODUCT(AW$9:AW$229,Nutrients!$FE$8:$FE$228)+(IF($A$7=Nutrients!$B$8,Nutrients!$FE$8,Nutrients!$FE$9)*AW$7)+(((IF($A$8=Nutrients!$B$79,Nutrients!$FE$79,(IF($A$8=Nutrients!$B$77,Nutrients!$FE$77,Nutrients!$FE$78)))))*AW$8))","v":0}]
[]
["ADG, g/d",{"$f":" (-1619.2980797296 + 25.9248064834 * (B251/1000) - 2657.6209162609 * B236 +\n123.0469725298 * B253 - 9.2854579989 * B316 + 872.0182830582 * B252 + 26.664395965 * (AVERAGE(B5:B6)*0.453592) +\n2599.7646012325 * B236 * B236- 0.1016237102 *  (AVERAGE(B5:B6)*0.453592) *  (AVERAGE(B5:B6)*0.453592) - 71.8618465276 * B236 * B253 -\n607.1294449572 * B236 * B252 + 25.6463076451 * B236 * (AVERAGE(B5:B6)*0.453592) - 0.8399854508 * B253 * (AVERAGE(B5:B6)*0.453592) +\n0.0967347393 * B316 * (AVERAGE(B5:B6)*0.453592) - 5.2553838048 * B252 * (AVERAGE(B5:B6)*0.453592))","v":757.46635553023782},{"$f":" -1619.2980797296 + 25.9248064834 * (C251/1000) - 2657.6209162609 * C236 +\n123.0469725298 * C253 - 9.2854579989 * C316 + 872.0182830582 * C252 + 26.664395965 * (AVERAGE(C5:C6)*0.453592) +\n2599.7646012325 * C236 * C236- 0.1016237102 *  (AVERAGE(C5:C6)*0.453592) *  (AVERAGE(C5:C6)*0.453592) - 71.8618465276 * C236 * C253 -\n607.1294449572 * C236 * C252 + 25.6463076451 * C236 * (AVERAGE(C5:C6)*0.453592) - 0.8399854508 * C253 * (AVERAGE(C5:C6)*0.453592) +\n0.0967347393 * C316 * (AVERAGE(C5:C6)*0.453592) - 5.2553838048 * C252 * (AVERAGE(C5:C6)*0.453592)","v":870.42326519783569},{"$f":" -1619.2980797296 + 25.9248064834 * (D251/1000) - 2657.6209162609 * D236 +\n123.0469725298 * D253 - 9.2854579989 * D316 + 872.0182830582 * D252 + 26.664395965 * (AVERAGE(D5:D6)*0.453592) +\n2599.7646012325 * D236 * D236- 0.1016237102 *  (AVERAGE(D5:D6)*0.453592) *  (AVERAGE(D5:D6)*0.453592) - 71.8618465276 * D236 * D253 -\n607.1294449572 * D236 * D252 + 25.6463076451 * D236 * (AVERAGE(D5:D6)*0.453592) - 0.8399854508 * D253 * (AVERAGE(D5:D6)*0.453592) +\n0.0967347393 * D316 * (AVERAGE(D5:D6)*0.453592) - 5.2553838048 * D252 * (AVERAGE(D5:D6)*0.453592)","v":946.21888727648684},{"$f":" -1619.2980797296 + 25.9248064834 * (E251/1000) - 2657.6209162609 * E236 +\n123.0469725298 * E253 - 9.2854579989 * E316 + 872.0182830582 * E252 + 26.664395965 * (AVERAGE(E5:E6)*0.453592) +\n2599.7646012325 * E236 * E236- 0.1016237102 *  (AVERAGE(E5:E6)*0.453592) *  (AVERAGE(E5:E6)*0.453592) - 71.8618465276 * E236 * E253 -\n607.1294449572 * E236 * E252 + 25.6463076451 * E236 * (AVERAGE(E5:E6)*0.453592) - 0.8399854508 * E253 * (AVERAGE(E5:E6)*0.453592) +\n0.0967347393 * E316 * (AVERAGE(E5:E6)*0.453592) - 5.2553838048 * E252 * (AVERAGE(E5:E6)*0.453592)","v":982.61557306834152},{"$f":" -1619.2980797296 + 25.9248064834 * (F251/1000) - 2657.6209162609 * F236 +\n123.0469725298 * F253 - 9.2854579989 * F316 + 872.0182830582 * F252 + 26.664395965 * (AVERAGE(F5:F6)*0.453592) +\n2599.7646012325 * F236 * F236- 0.1016237102 *  (AVERAGE(F5:F6)*0.453592) *  (AVERAGE(F5:F6)*0.453592) - 71.8618465276 * F236 * F253 -\n607.1294449572 * F236 * F252 + 25.6463076451 * F236 * (AVERAGE(F5:F6)*0.453592) - 0.8399854508 * F253 * (AVERAGE(F5:F6)*0.453592) +\n0.0967347393 * F316 * (AVERAGE(F5:F6)*0.453592) - 5.2553838048 * F252 * (AVERAGE(F5:F6)*0.453592)","v":976.63637619430801},{"$f":" -1619.2980797296 + 25.9248064834 * (G251/1000) - 2657.6209162609 * G236 +\n123.0469725298 * G253 - 9.2854579989 * G316 + 872.0182830582 * G252 + 26.664395965 * (AVERAGE(G5:G6)*0.453592) +\n2599.7646012325 * G236 * G236- 0.1016237102 *  (AVERAGE(G5:G6)*0.453592) *  (AVERAGE(G5:G6)*0.453592) - 71.8618465276 * G236 * G253 -\n607.1294449572 * G236 * G252 + 25.6463076451 * G236 * (AVERAGE(G5:G6)*0.453592) - 0.8399854508 * G253 * (AVERAGE(G5:G6)*0.453592) +\n0.0967347393 * G316 * (AVERAGE(G5:G6)*0.453592) - 5.2553838048 * G252 * (AVERAGE(G5:G6)*0.453592)","v":919.74779687896194},null,{"$f":" (-1619.2980797296 + 25.9248064834 * (I251/1000) - 2657.6209162609 * I236 +\n123.0469725298 * I253 - 9.2854579989 * I316 + 872.0182830582 * I252 + 26.664395965 * (AVERAGE(I5:I6)*0.453592) +\n2599.7646012325 * I236 * I236- 0.1016237102 *  (AVERAGE(I5:I6)*0.453592) *  (AVERAGE(I5:I6)*0.453592) - 71.8618465276 * I236 * I253 -\n607.1294449572 * I236 * I252 + 25.6463076451 * I236 * (AVERAGE(I5:I6)*0.453592) - 0.8399854508 * I253 * (AVERAGE(I5:I6)*0.453592) +\n0.0967347393 * I316 * (AVERAGE(I5:I6)*0.453592) - 5.2553838048 * I252 * (AVERAGE(I5:I6)*0.453592))","v":754.2853054881557},{"$f":" -1619.2980797296 + 25.9248064834 * (J251/1000) - 2657.6209162609 * J236 +\n123.0469725298 * J253 - 9.2854579989 * J316 + 872.0182830582 * J252 + 26.664395965 * (AVERAGE(J5:J6)*0.453592) +\n2599.7646012325 * J236 * J236- 0.1016237102 *  (AVERAGE(J5:J6)*0.453592) *  (AVERAGE(J5:J6)*0.453592) - 71.8618465276 * J236 * J253 -\n607.1294449572 * J236 * J252 + 25.6463076451 * J236 * (AVERAGE(J5:J6)*0.453592) - 0.8399854508 * J253 * (AVERAGE(J5:J6)*0.453592) +\n0.0967347393 * J316 * (AVERAGE(J5:J6)*0.453592) - 5.2553838048 * J252 * (AVERAGE(J5:J6)*0.453592)","v":867.83541072759328},{"$f":" -1619.2980797296 + 25.9248064834 * (K251/1000) - 2657.6209162609 * K236 +\n123.0469725298 * K253 - 9.2854579989 * K316 + 872.0182830582 * K252 + 26.664395965 * (AVERAGE(K5:K6)*0.453592) +\n2599.7646012325 * K236 * K236- 0.1016237102 *  (AVERAGE(K5:K6)*0.453592) *  (AVERAGE(K5:K6)*0.453592) - 71.8618465276 * K236 * K253 -\n607.1294449572 * K236 * K252 + 25.6463076451 * K236 * (AVERAGE(K5:K6)*0.453592) - 0.8399854508 * K253 * (AVERAGE(K5:K6)*0.453592) +\n0.0967347393 * K316 * (AVERAGE(K5:K6)*0.453592) - 5.2553838048 * K252 * (AVERAGE(K5:K6)*0.453592)","v":943.65504273479746},{"$f":" -1619.2980797296 + 25.9248064834 * (L251/1000) - 2657.6209162609 * L236 +\n123.0469725298 * L253 - 9.2854579989 * L316 + 872.0182830582 * L252 + 26.664395965 * (AVERAGE(L5:L6)*0.453592) +\n2599.7646012325 * L236 * L236- 0.1016237102 *  (AVERAGE(L5:L6)*0.453592) *  (AVERAGE(L5:L6)*0.453592) - 71.8618465276 * L236 * L253 -\n607.1294449572 * L236 * L252 + 25.6463076451 * L236 * (AVERAGE(L5:L6)*0.453592) - 0.8399854508 * L253 * (AVERAGE(L5:L6)*0.453592) +\n0.0967347393 * L316 * (AVERAGE(L5:L6)*0.453592) - 5.2553838048 * L252 * (AVERAGE(L5:L6)*0.453592)","v":979.30093441478289},{"$f":" -1619.2980797296 + 25.9248064834 * (M251/1000) - 2657.6209162609 * M236 +\n123.0469725298 * M253 - 9.2854579989 * M316 + 872.0182830582 * M252 + 26.664395965 * (AVERAGE(M5:M6)*0.453592) +\n2599.7646012325 * M236 * M236- 0.1016237102 *  (AVERAGE(M5:M6)*0.453592) *  (AVERAGE(M5:M6)*0.453592) - 71.8618465276 * M236 * M253 -\n607.1294449572 * M236 * M252 + 25.6463076451 * M236 * (AVERAGE(M5:M6)*0.453592) - 0.8399854508 * M253 * (AVERAGE(M5:M6)*0.453592) +\n0.0967347393 * M316 * (AVERAGE(M5:M6)*0.453592) - 5.2553838048 * M252 * (AVERAGE(M5:M6)*0.453592)","v":971.80691655151008},{"$f":" -1619.2980797296 + 25.9248064834 * (N251/1000) - 2657.6209162609 * N236 +\n123.0469725298 * N253 - 9.2854579989 * N316 + 872.0182830582 * N252 + 26.664395965 * (AVERAGE(N5:N6)*0.453592) +\n2599.7646012325 * N236 * N236- 0.1016237102 *  (AVERAGE(N5:N6)*0.453592) *  (AVERAGE(N5:N6)*0.453592) - 71.8618465276 * N236 * N253 -\n607.1294449572 * N236 * N252 + 25.6463076451 * N236 * (AVERAGE(N5:N6)*0.453592) - 0.8399854508 * N253 * (AVERAGE(N5:N6)*0.453592) +\n0.0967347393 * N316 * (AVERAGE(N5:N6)*0.453592) - 5.2553838048 * N252 * (AVERAGE(N5:N6)*0.453592)","v":912.42799144541459},null,{"$f":" (-1619.2980797296 + 25.9248064834 * (P251/1000) - 2657.6209162609 * P236 +\n123.0469725298 * P253 - 9.2854579989 * P316 + 872.0182830582 * P252 + 26.664395965 * (AVERAGE(P5:P6)*0.453592) +\n2599.7646012325 * P236 * P236- 0.1016237102 *  (AVERAGE(P5:P6)*0.453592) *  (AVERAGE(P5:P6)*0.453592) - 71.8618465276 * P236 * P253 -\n607.1294449572 * P236 * P252 + 25.6463076451 * P236 * (AVERAGE(P5:P6)*0.453592) - 0.8399854508 * P253 * (AVERAGE(P5:P6)*0.453592) +\n0.0967347393 * P316 * (AVERAGE(P5:P6)*0.453592) - 5.2553838048 * P252 * (AVERAGE(P5:P6)*0.453592))","v":751.12509445025091},{"$f":" -1619.2980797296 + 25.9248064834 * (Q251/1000) - 2657.6209162609 * Q236 +\n123.0469725298 * Q253 - 9.2854579989 * Q316 + 872.0182830582 * Q252 + 26.664395965 * (AVERAGE(Q5:Q6)*0.453592) +\n2599.7646012325 * Q236 * Q236- 0.1016237102 *  (AVERAGE(Q5:Q6)*0.453592) *  (AVERAGE(Q5:Q6)*0.453592) - 71.8618465276 * Q236 * Q253 -\n607.1294449572 * Q236 * Q252 + 25.6463076451 * Q236 * (AVERAGE(Q5:Q6)*0.453592) - 0.8399854508 * Q253 * (AVERAGE(Q5:Q6)*0.453592) +\n0.0967347393 * Q316 * (AVERAGE(Q5:Q6)*0.453592) - 5.2553838048 * Q252 * (AVERAGE(Q5:Q6)*0.453592)","v":865.26365633587625},{"$f":" -1619.2980797296 + 25.9248064834 * (R251/1000) - 2657.6209162609 * R236 +\n123.0469725298 * R253 - 9.2854579989 * R316 + 872.0182830582 * R252 + 26.664395965 * (AVERAGE(R5:R6)*0.453592) +\n2599.7646012325 * R236 * R236- 0.1016237102 *  (AVERAGE(R5:R6)*0.453592) *  (AVERAGE(R5:R6)*0.453592) - 71.8618465276 * R236 * R253 -\n607.1294449572 * R236 * R252 + 25.6463076451 * R236 * (AVERAGE(R5:R6)*0.453592) - 0.8399854508 * R253 * (AVERAGE(R5:R6)*0.453592) +\n0.0967347393 * R316 * (AVERAGE(R5:R6)*0.453592) - 5.2553838048 * R252 * (AVERAGE(R5:R6)*0.453592)","v":941.08765007643092},{"$f":" -1619.2980797296 + 25.9248064834 * (S251/1000) - 2657.6209162609 * S236 +\n123.0469725298 * S253 - 9.2854579989 * S316 + 872.0182830582 * S252 + 26.664395965 * (AVERAGE(S5:S6)*0.453592) +\n2599.7646012325 * S236 * S236- 0.1016237102 *  (AVERAGE(S5:S6)*0.453592) *  (AVERAGE(S5:S6)*0.453592) - 71.8618465276 * S236 * S253 -\n607.1294449572 * S236 * S252 + 25.6463076451 * S236 * (AVERAGE(S5:S6)*0.453592) - 0.8399854508 * S253 * (AVERAGE(S5:S6)*0.453592) +\n0.0967347393 * S316 * (AVERAGE(S5:S6)*0.453592) - 5.2553838048 * S252 * (AVERAGE(S5:S6)*0.453592)","v":976.00937610562437},{"$f":" -1619.2980797296 + 25.9248064834 * (T251/1000) - 2657.6209162609 * T236 +\n123.0469725298 * T253 - 9.2854579989 * T316 + 872.0182830582 * T252 + 26.664395965 * (AVERAGE(T5:T6)*0.453592) +\n2599.7646012325 * T236 * T236- 0.1016237102 *  (AVERAGE(T5:T6)*0.453592) *  (AVERAGE(T5:T6)*0.453592) - 71.8618465276 * T236 * T253 -\n607.1294449572 * T236 * T252 + 25.6463076451 * T236 * (AVERAGE(T5:T6)*0.453592) - 0.8399854508 * T253 * (AVERAGE(T5:T6)*0.453592) +\n0.0967347393 * T316 * (AVERAGE(T5:T6)*0.453592) - 5.2553838048 * T252 * (AVERAGE(T5:T6)*0.453592)","v":966.98610467900244},{"$f":" -1619.2980797296 + 25.9248064834 * (U251/1000) - 2657.6209162609 * U236 +\n123.0469725298 * U253 - 9.2854579989 * U316 + 872.0182830582 * U252 + 26.664395965 * (AVERAGE(U5:U6)*0.453592) +\n2599.7646012325 * U236 * U236- 0.1016237102 *  (AVERAGE(U5:U6)*0.453592) *  (AVERAGE(U5:U6)*0.453592) - 71.8618465276 * U236 * U253 -\n607.1294449572 * U236 * U252 + 25.6463076451 * U236 * (AVERAGE(U5:U6)*0.453592) - 0.8399854508 * U253 * (AVERAGE(U5:U6)*0.453592) +\n0.0967347393 * U316 * (AVERAGE(U5:U6)*0.453592) - 5.2553838048 * U252 * (AVERAGE(U5:U6)*0.453592)","v":905.07626112342814},null,{"$f":" (-1619.2980797296 + 25.9248064834 * (W251/1000) - 2657.6209162609 * W236 +\n123.0469725298 * W253 - 9.2854579989 * W316 + 872.0182830582 * W252 + 26.664395965 * (AVERAGE(W5:W6)*0.453592) +\n2599.7646012325 * W236 * W236- 0.1016237102 *  (AVERAGE(W5:W6)*0.453592) *  (AVERAGE(W5:W6)*0.453592) - 71.8618465276 * W236 * W253 -\n607.1294449572 * W236 * W252 + 25.6463076451 * W236 * (AVERAGE(W5:W6)*0.453592) - 0.8399854508 * W253 * (AVERAGE(W5:W6)*0.453592) +\n0.0967347393 * W316 * (AVERAGE(W5:W6)*0.453592) - 5.2553838048 * W252 * (AVERAGE(W5:W6)*0.453592))","v":747.96764329778819},{"$f":" -1619.2980797296 + 25.9248064834 * (X251/1000) - 2657.6209162609 * X236 +\n123.0469725298 * X253 - 9.2854579989 * X316 + 872.0182830582 * X252 + 26.664395965 * (AVERAGE(X5:X6)*0.453592) +\n2599.7646012325 * X236 * X236- 0.1016237102 *  (AVERAGE(X5:X6)*0.453592) *  (AVERAGE(X5:X6)*0.453592) - 71.8618465276 * X236 * X253 -\n607.1294449572 * X236 * X252 + 25.6463076451 * X236 * (AVERAGE(X5:X6)*0.453592) - 0.8399854508 * X253 * (AVERAGE(X5:X6)*0.453592) +\n0.0967347393 * X316 * (AVERAGE(X5:X6)*0.453592) - 5.2553838048 * X252 * (AVERAGE(X5:X6)*0.453592)","v":862.69511755903864},{"$f":" -1619.2980797296 + 25.9248064834 * (Y251/1000) - 2657.6209162609 * Y236 +\n123.0469725298 * Y253 - 9.2854579989 * Y316 + 872.0182830582 * Y252 + 26.664395965 * (AVERAGE(Y5:Y6)*0.453592) +\n2599.7646012325 * Y236 * Y236- 0.1016237102 *  (AVERAGE(Y5:Y6)*0.453592) *  (AVERAGE(Y5:Y6)*0.453592) - 71.8618465276 * Y236 * Y253 -\n607.1294449572 * Y236 * Y252 + 25.6463076451 * Y236 * (AVERAGE(Y5:Y6)*0.453592) - 0.8399854508 * Y253 * (AVERAGE(Y5:Y6)*0.453592) +\n0.0967347393 * Y316 * (AVERAGE(Y5:Y6)*0.453592) - 5.2553838048 * Y252 * (AVERAGE(Y5:Y6)*0.453592)","v":938.51681860484973},{"$f":" -1619.2980797296 + 25.9248064834 * (Z251/1000) - 2657.6209162609 * Z236 +\n123.0469725298 * Z253 - 9.2854579989 * Z316 + 872.0182830582 * Z252 + 26.664395965 * (AVERAGE(Z5:Z6)*0.453592) +\n2599.7646012325 * Z236 * Z236- 0.1016237102 *  (AVERAGE(Z5:Z6)*0.453592) *  (AVERAGE(Z5:Z6)*0.453592) - 71.8618465276 * Z236 * Z253 -\n607.1294449572 * Z236 * Z252 + 25.6463076451 * Z236 * (AVERAGE(Z5:Z6)*0.453592) - 0.8399854508 * Z253 * (AVERAGE(Z5:Z6)*0.453592) +\n0.0967347393 * Z316 * (AVERAGE(Z5:Z6)*0.453592) - 5.2553838048 * Z252 * (AVERAGE(Z5:Z6)*0.453592)","v":972.73290617894054},{"$f":" -1619.2980797296 + 25.9248064834 * (AA251/1000) - 2657.6209162609 * AA236 +\n123.0469725298 * AA253 - 9.2854579989 * AA316 + 872.0182830582 * AA252 + 26.664395965 * (AVERAGE(AA5:AA6)*0.453592) +\n2599.7646012325 * AA236 * AA236- 0.1016237102 *  (AVERAGE(AA5:AA6)*0.453592) *  (AVERAGE(AA5:AA6)*0.453592) - 71.8618465276 * AA236 * AA253 -\n607.1294449572 * AA236 * AA252 + 25.6463076451 * AA236 * (AVERAGE(AA5:AA6)*0.453592) - 0.8399854508 * AA253 * (AVERAGE(AA5:AA6)*0.453592) +\n0.0967347393 * AA316 * (AVERAGE(AA5:AA6)*0.453592) - 5.2553838048 * AA252 * (AVERAGE(AA5:AA6)*0.453592)","v":962.14863178115388},{"$f":" -1619.2980797296 + 25.9248064834 * (AB251/1000) - 2657.6209162609 * AB236 +\n123.0469725298 * AB253 - 9.2854579989 * AB316 + 872.0182830582 * AB252 + 26.664395965 * (AVERAGE(AB5:AB6)*0.453592) +\n2599.7646012325 * AB236 * AB236- 0.1016237102 *  (AVERAGE(AB5:AB6)*0.453592) *  (AVERAGE(AB5:AB6)*0.453592) - 71.8618465276 * AB236 * AB253 -\n607.1294449572 * AB236 * AB252 + 25.6463076451 * AB236 * (AVERAGE(AB5:AB6)*0.453592) - 0.8399854508 * AB253 * (AVERAGE(AB5:AB6)*0.453592) +\n0.0967347393 * AB316 * (AVERAGE(AB5:AB6)*0.453592) - 5.2553838048 * AB252 * (AVERAGE(AB5:AB6)*0.453592)","v":897.74107300525679},null,{"$f":" (-1619.2980797296 + 25.9248064834 * (AD251/1000) - 2657.6209162609 * AD236 +\n123.0469725298 * AD253 - 9.2854579989 * AD316 + 872.0182830582 * AD252 + 26.664395965 * (AVERAGE(AD5:AD6)*0.453592) +\n2599.7646012325 * AD236 * AD236- 0.1016237102 *  (AVERAGE(AD5:AD6)*0.453592) *  (AVERAGE(AD5:AD6)*0.453592) - 71.8618465276 * AD236 * AD253 -\n607.1294449572 * AD236 * AD252 + 25.6463076451 * AD236 * (AVERAGE(AD5:AD6)*0.453592) - 0.8399854508 * AD253 * (AVERAGE(AD5:AD6)*0.453592) +\n0.0967347393 * AD316 * (AVERAGE(AD5:AD6)*0.453592) - 5.2553838048 * AD252 * (AVERAGE(AD5:AD6)*0.453592))","v":744.81662763964982},{"$f":" -1619.2980797296 + 25.9248064834 * (AE251/1000) - 2657.6209162609 * AE236 +\n123.0469725298 * AE253 - 9.2854579989 * AE316 + 872.0182830582 * AE252 + 26.664395965 * (AVERAGE(AE5:AE6)*0.453592) +\n2599.7646012325 * AE236 * AE236- 0.1016237102 *  (AVERAGE(AE5:AE6)*0.453592) *  (AVERAGE(AE5:AE6)*0.453592) - 71.8618465276 * AE236 * AE253 -\n607.1294449572 * AE236 * AE252 + 25.6463076451 * AE236 * (AVERAGE(AE5:AE6)*0.453592) - 0.8399854508 * AE253 * (AVERAGE(AE5:AE6)*0.453592) +\n0.0967347393 * AE316 * (AVERAGE(AE5:AE6)*0.453592) - 5.2553838048 * AE252 * (AVERAGE(AE5:AE6)*0.453592)","v":860.12738034446897},{"$f":" -1619.2980797296 + 25.9248064834 * (AF251/1000) - 2657.6209162609 * AF236 +\n123.0469725298 * AF253 - 9.2854579989 * AF316 + 872.0182830582 * AF252 + 26.664395965 * (AVERAGE(AF5:AF6)*0.453592) +\n2599.7646012325 * AF236 * AF236- 0.1016237102 *  (AVERAGE(AF5:AF6)*0.453592) *  (AVERAGE(AF5:AF6)*0.453592) - 71.8618465276 * AF236 * AF253 -\n607.1294449572 * AF236 * AF252 + 25.6463076451 * AF236 * (AVERAGE(AF5:AF6)*0.453592) - 0.8399854508 * AF253 * (AVERAGE(AF5:AF6)*0.453592) +\n0.0967347393 * AF316 * (AVERAGE(AF5:AF6)*0.453592) - 5.2553838048 * AF252 * (AVERAGE(AF5:AF6)*0.453592)","v":935.92775852071054},{"$f":" -1619.2980797296 + 25.9248064834 * (AG251/1000) - 2657.6209162609 * AG236 +\n123.0469725298 * AG253 - 9.2854579989 * AG316 + 872.0182830582 * AG252 + 26.664395965 * (AVERAGE(AG5:AG6)*0.453592) +\n2599.7646012325 * AG236 * AG236- 0.1016237102 *  (AVERAGE(AG5:AG6)*0.453592) *  (AVERAGE(AG5:AG6)*0.453592) - 71.8618465276 * AG236 * AG253 -\n607.1294449572 * AG236 * AG252 + 25.6463076451 * AG236 * (AVERAGE(AG5:AG6)*0.453592) - 0.8399854508 * AG253 * (AVERAGE(AG5:AG6)*0.453592) +\n0.0967347393 * AG316 * (AVERAGE(AG5:AG6)*0.453592) - 5.2553838048 * AG252 * (AVERAGE(AG5:AG6)*0.453592)","v":969.44372220826813},{"$f":" -1619.2980797296 + 25.9248064834 * (AH251/1000) - 2657.6209162609 * AH236 +\n123.0469725298 * AH253 - 9.2854579989 * AH316 + 872.0182830582 * AH252 + 26.664395965 * (AVERAGE(AH5:AH6)*0.453592) +\n2599.7646012325 * AH236 * AH236- 0.1016237102 *  (AVERAGE(AH5:AH6)*0.453592) *  (AVERAGE(AH5:AH6)*0.453592) - 71.8618465276 * AH236 * AH253 -\n607.1294449572 * AH236 * AH252 + 25.6463076451 * AH236 * (AVERAGE(AH5:AH6)*0.453592) - 0.8399854508 * AH253 * (AVERAGE(AH5:AH6)*0.453592) +\n0.0967347393 * AH316 * (AVERAGE(AH5:AH6)*0.453592) - 5.2553838048 * AH252 * (AVERAGE(AH5:AH6)*0.453592)","v":957.32815546195934},{"$f":" -1619.2980797296 + 25.9248064834 * (AI251/1000) - 2657.6209162609 * AI236 +\n123.0469725298 * AI253 - 9.2854579989 * AI316 + 872.0182830582 * AI252 + 26.664395965 * (AVERAGE(AI5:AI6)*0.453592) +\n2599.7646012325 * AI236 * AI236- 0.1016237102 *  (AVERAGE(AI5:AI6)*0.453592) *  (AVERAGE(AI5:AI6)*0.453592) - 71.8618465276 * AI236 * AI253 -\n607.1294449572 * AI236 * AI252 + 25.6463076451 * AI236 * (AVERAGE(AI5:AI6)*0.453592) - 0.8399854508 * AI253 * (AVERAGE(AI5:AI6)*0.453592) +\n0.0967347393 * AI316 * (AVERAGE(AI5:AI6)*0.453592) - 5.2553838048 * AI252 * (AVERAGE(AI5:AI6)*0.453592)","v":890.52157931327224},null,{"$f":" (-1619.2980797296 + 25.9248064834 * (AK251/1000) - 2657.6209162609 * AK236 +\n123.0469725298 * AK253 - 9.2854579989 * AK316 + 872.0182830582 * AK252 + 26.664395965 * (AVERAGE(AK5:AK6)*0.453592) +\n2599.7646012325 * AK236 * AK236- 0.1016237102 *  (AVERAGE(AK5:AK6)*0.453592) *  (AVERAGE(AK5:AK6)*0.453592) - 71.8618465276 * AK236 * AK253 -\n607.1294449572 * AK236 * AK252 + 25.6463076451 * AK236 * (AVERAGE(AK5:AK6)*0.453592) - 0.8399854508 * AK253 * (AVERAGE(AK5:AK6)*0.453592) +\n0.0967347393 * AK316 * (AVERAGE(AK5:AK6)*0.453592) - 5.2553838048 * AK252 * (AVERAGE(AK5:AK6)*0.453592))","v":741.69090139868376},{"$f":" -1619.2980797296 + 25.9248064834 * (AL251/1000) - 2657.6209162609 * AL236 +\n123.0469725298 * AL253 - 9.2854579989 * AL316 + 872.0182830582 * AL252 + 26.664395965 * (AVERAGE(AL5:AL6)*0.453592) +\n2599.7646012325 * AL236 * AL236- 0.1016237102 *  (AVERAGE(AL5:AL6)*0.453592) *  (AVERAGE(AL5:AL6)*0.453592) - 71.8618465276 * AL236 * AL253 -\n607.1294449572 * AL236 * AL252 + 25.6463076451 * AL236 * (AVERAGE(AL5:AL6)*0.453592) - 0.8399854508 * AL253 * (AVERAGE(AL5:AL6)*0.453592) +\n0.0967347393 * AL316 * (AVERAGE(AL5:AL6)*0.453592) - 5.2553838048 * AL252 * (AVERAGE(AL5:AL6)*0.453592)","v":857.56075020428375},{"$f":" -1619.2980797296 + 25.9248064834 * (AM251/1000) - 2657.6209162609 * AM236 +\n123.0469725298 * AM253 - 9.2854579989 * AM316 + 872.0182830582 * AM252 + 26.664395965 * (AVERAGE(AM5:AM6)*0.453592) +\n2599.7646012325 * AM236 * AM236- 0.1016237102 *  (AVERAGE(AM5:AM6)*0.453592) *  (AVERAGE(AM5:AM6)*0.453592) - 71.8618465276 * AM236 * AM253 -\n607.1294449572 * AM236 * AM252 + 25.6463076451 * AM236 * (AVERAGE(AM5:AM6)*0.453592) - 0.8399854508 * AM253 * (AVERAGE(AM5:AM6)*0.453592) +\n0.0967347393 * AM316 * (AVERAGE(AM5:AM6)*0.453592) - 5.2553838048 * AM252 * (AVERAGE(AM5:AM6)*0.453592)","v":933.38079850970121},{"$f":" -1619.2980797296 + 25.9248064834 * (AN251/1000) - 2657.6209162609 * AN236 +\n123.0469725298 * AN253 - 9.2854579989 * AN316 + 872.0182830582 * AN252 + 26.664395965 * (AVERAGE(AN5:AN6)*0.453592) +\n2599.7646012325 * AN236 * AN236- 0.1016237102 *  (AVERAGE(AN5:AN6)*0.453592) *  (AVERAGE(AN5:AN6)*0.453592) - 71.8618465276 * AN236 * AN253 -\n607.1294449572 * AN236 * AN252 + 25.6463076451 * AN236 * (AVERAGE(AN5:AN6)*0.453592) - 0.8399854508 * AN253 * (AVERAGE(AN5:AN6)*0.453592) +\n0.0967347393 * AN316 * (AVERAGE(AN5:AN6)*0.453592) - 5.2553838048 * AN252 * (AVERAGE(AN5:AN6)*0.453592)","v":966.10623674420458},{"$f":" -1619.2980797296 + 25.9248064834 * (AO251/1000) - 2657.6209162609 * AO236 +\n123.0469725298 * AO253 - 9.2854579989 * AO316 + 872.0182830582 * AO252 + 26.664395965 * (AVERAGE(AO5:AO6)*0.453592) +\n2599.7646012325 * AO236 * AO236- 0.1016237102 *  (AVERAGE(AO5:AO6)*0.453592) *  (AVERAGE(AO5:AO6)*0.453592) - 71.8618465276 * AO236 * AO253 -\n607.1294449572 * AO236 * AO252 + 25.6463076451 * AO236 * (AVERAGE(AO5:AO6)*0.453592) - 0.8399854508 * AO253 * (AVERAGE(AO5:AO6)*0.453592) +\n0.0967347393 * AO316 * (AVERAGE(AO5:AO6)*0.453592) - 5.2553838048 * AO252 * (AVERAGE(AO5:AO6)*0.453592)","v":952.59250017741692},{"$f":" -1619.2980797296 + 25.9248064834 * (AP251/1000) - 2657.6209162609 * AP236 +\n123.0469725298 * AP253 - 9.2854579989 * AP316 + 872.0182830582 * AP252 + 26.664395965 * (AVERAGE(AP5:AP6)*0.453592) +\n2599.7646012325 * AP236 * AP236- 0.1016237102 *  (AVERAGE(AP5:AP6)*0.453592) *  (AVERAGE(AP5:AP6)*0.453592) - 71.8618465276 * AP236 * AP253 -\n607.1294449572 * AP236 * AP252 + 25.6463076451 * AP236 * (AVERAGE(AP5:AP6)*0.453592) - 0.8399854508 * AP253 * (AVERAGE(AP5:AP6)*0.453592) +\n0.0967347393 * AP316 * (AVERAGE(AP5:AP6)*0.453592) - 5.2553838048 * AP252 * (AVERAGE(AP5:AP6)*0.453592)","v":883.35435198506411},null,{"$f":" (-1619.2980797296 + 25.9248064834 * (AR251/1000) - 2657.6209162609 * AR236 +\n123.0469725298 * AR253 - 9.2854579989 * AR316 + 872.0182830582 * AR252 + 26.664395965 * (AVERAGE(AR5:AR6)*0.453592) +\n2599.7646012325 * AR236 * AR236- 0.1016237102 *  (AVERAGE(AR5:AR6)*0.453592) *  (AVERAGE(AR5:AR6)*0.453592) - 71.8618465276 * AR236 * AR253 -\n607.1294449572 * AR236 * AR252 + 25.6463076451 * AR236 * (AVERAGE(AR5:AR6)*0.453592) - 0.8399854508 * AR253 * (AVERAGE(AR5:AR6)*0.453592) +\n0.0967347393 * AR316 * (AVERAGE(AR5:AR6)*0.453592) - 5.2553838048 * AR252 * (AVERAGE(AR5:AR6)*0.453592))","v":738.50601864243959},{"$f":" -1619.2980797296 + 25.9248064834 * (AS251/1000) - 2657.6209162609 * AS236 +\n123.0469725298 * AS253 - 9.2854579989 * AS316 + 872.0182830582 * AS252 + 26.664395965 * (AVERAGE(AS5:AS6)*0.453592) +\n2599.7646012325 * AS236 * AS236- 0.1016237102 *  (AVERAGE(AS5:AS6)*0.453592) *  (AVERAGE(AS5:AS6)*0.453592) - 71.8618465276 * AS236 * AS253 -\n607.1294449572 * AS236 * AS252 + 25.6463076451 * AS236 * (AVERAGE(AS5:AS6)*0.453592) - 0.8399854508 * AS253 * (AVERAGE(AS5:AS6)*0.453592) +\n0.0967347393 * AS316 * (AVERAGE(AS5:AS6)*0.453592) - 5.2553838048 * AS252 * (AVERAGE(AS5:AS6)*0.453592)","v":854.97698349144969},{"$f":" -1619.2980797296 + 25.9248064834 * (AT251/1000) - 2657.6209162609 * AT236 +\n123.0469725298 * AT253 - 9.2854579989 * AT316 + 872.0182830582 * AT252 + 26.664395965 * (AVERAGE(AT5:AT6)*0.453592) +\n2599.7646012325 * AT236 * AT236- 0.1016237102 *  (AVERAGE(AT5:AT6)*0.453592) *  (AVERAGE(AT5:AT6)*0.453592) - 71.8618465276 * AT236 * AT253 -\n607.1294449572 * AT236 * AT252 + 25.6463076451 * AT236 * (AVERAGE(AT5:AT6)*0.453592) - 0.8399854508 * AT253 * (AVERAGE(AT5:AT6)*0.453592) +\n0.0967347393 * AT316 * (AVERAGE(AT5:AT6)*0.453592) - 5.2553838048 * AT252 * (AVERAGE(AT5:AT6)*0.453592)","v":930.7912646648017},{"$f":" -1619.2980797296 + 25.9248064834 * (AU251/1000) - 2657.6209162609 * AU236 +\n123.0469725298 * AU253 - 9.2854579989 * AU316 + 872.0182830582 * AU252 + 26.664395965 * (AVERAGE(AU5:AU6)*0.453592) +\n2599.7646012325 * AU236 * AU236- 0.1016237102 *  (AVERAGE(AU5:AU6)*0.453592) *  (AVERAGE(AU5:AU6)*0.453592) - 71.8618465276 * AU236 * AU253 -\n607.1294449572 * AU236 * AU252 + 25.6463076451 * AU236 * (AVERAGE(AU5:AU6)*0.453592) - 0.8399854508 * AU253 * (AVERAGE(AU5:AU6)*0.453592) +\n0.0967347393 * AU316 * (AVERAGE(AU5:AU6)*0.453592) - 5.2553838048 * AU252 * (AVERAGE(AU5:AU6)*0.453592)","v":962.84976002250392},{"$f":" -1619.2980797296 + 25.9248064834 * (AV251/1000) - 2657.6209162609 * AV236 +\n123.0469725298 * AV253 - 9.2854579989 * AV316 + 872.0182830582 * AV252 + 26.664395965 * (AVERAGE(AV5:AV6)*0.453592) +\n2599.7646012325 * AV236 * AV236- 0.1016237102 *  (AVERAGE(AV5:AV6)*0.453592) *  (AVERAGE(AV5:AV6)*0.453592) - 71.8618465276 * AV236 * AV253 -\n607.1294449572 * AV236 * AV252 + 25.6463076451 * AV236 * (AVERAGE(AV5:AV6)*0.453592) - 0.8399854508 * AV253 * (AVERAGE(AV5:AV6)*0.453592) +\n0.0967347393 * AV316 * (AVERAGE(AV5:AV6)*0.453592) - 5.2553838048 * AV252 * (AVERAGE(AV5:AV6)*0.453592)","v":947.8413410368928},{"$f":" -1619.2980797296 + 25.9248064834 * (AW251/1000) - 2657.6209162609 * AW236 +\n123.0469725298 * AW253 - 9.2854579989 * AW316 + 872.0182830582 * AW252 + 26.664395965 * (AVERAGE(AW5:AW6)*0.453592) +\n2599.7646012325 * AW236 * AW236- 0.1016237102 *  (AVERAGE(AW5:AW6)*0.453592) *  (AVERAGE(AW5:AW6)*0.453592) - 71.8618465276 * AW236 * AW253 -\n607.1294449572 * AW236 * AW252 + 25.6463076451 * AW236 * (AVERAGE(AW5:AW6)*0.453592) - 0.8399854508 * AW253 * (AVERAGE(AW5:AW6)*0.453592) +\n0.0967347393 * AW316 * (AVERAGE(AW5:AW6)*0.453592) - 5.2553838048 * AW252 * (AVERAGE(AW5:AW6)*0.453592)","v":876.15640388977795}]
["ADFI, g/d",{"$f":"B342/B344*1000","v":1398.8783014207611},1847.8320572748494,2307.7192145327367,2723.4676222335261,2993.2160501056624,3054.344258459666,null,{"$f":"I342/I344*1000","v":1384.8178703440515},1827.8821510668606,2281.8852409848309,2696.3568872501928,2973.0335700186461,3050.5652509603924,null,{"$f":"P342/P344*1000","v":1370.9248483394197},1808.1611070771439,2256.545152153898,2669.5965519110086,2952.7354356657133,3046.347303244409,null,{"$f":"W342/W344*1000","v":1357.2007967233028},1788.7168969347399,2231.6475490154621,2643.2062063754647,2932.2357565168368,3042.0714480832485,null,{"$f":"AD342/AD344*1000","v":1343.5873925477269},1769.5592677108589,2207.1280510128104,2616.8043508723986,2912.5891888139122,3038.2259012637737,null,{"$f":"AK342/AK344*1000","v":1329.8128544808828},1750.6708620967338,2182.9396267330862,2591.9329441969489,2892.8898506768778,3034.2526434341903,null,{"$f":"AR342/AR344*1000","v":1316.5870523345172},1732.0818854807085,2159.9157935776343,2566.9314733469296,2873.118242204031,3030.0223427166179]
["GF, g/kg",{"$f":" -232.8670000513 - (102.0339177026 * (B251/1000)) + (1386.8135453223 * B236) - (3.1583174866 * B253) + (80.3303777865 * B316) - (115.1570451563 * B252) + (4.1836503117 * (AVERAGE(B5:B6)*0.453592)) + (2553.6417073224 * B236 * B236) + (228.757399518 * B252 * B252) + (12.736240264 *  (B251/1000) * B253) - (24.4502664605 *  (B251/1000) * B316) - (23.0415882284 * B236 * B253) + (101.5847297779 * B236 * B316) - (1559.9331198689 * B236 *B252) - (3.9239483753 * B236 * (AVERAGE(B5:B6)*0.453592)) - (0.1078600966 * B253 * (AVERAGE(B5:B6)*0.453592)) - (28.1879330488 * B316 * B252) - (0.1153929924 * B316 * (AVERAGE(B5:B6)*0.453592))","v":541.48123876174384},471.05106861362759,410.02340376494885,360.7957609066396,326.28328855841602,301.12774430436968,null,{"$f":" -232.8670000513 - (102.0339177026 * (I251/1000)) + (1386.8135453223 * I236) - (3.1583174866 * I253) + (80.3303777865 * I316) - (115.1570451563 * I252) + (4.1836503117 * (AVERAGE(I5:I6)*0.453592)) + (2553.6417073224 * I236 * I236) + (228.757399518 * I252 * I252) + (12.736240264 *  (I251/1000) * I253) - (24.4502664605 *  (I251/1000) * I316) - (23.0415882284 * I236 * I253) + (101.5847297779 * I236 * I316) - (1559.9331198689 * I236 *I252) - (3.9239483753 * I236 * (AVERAGE(I5:I6)*0.453592)) - (0.1078600966 * I253 * (AVERAGE(I5:I6)*0.453592)) - (28.1879330488 * I316 * I252) - (0.1153929924 * I316 * (AVERAGE(I5:I6)*0.453592))","v":544.68195539732392},474.77645657903764,413.54184942601609,363.19410796302145,326.87384574181419,299.1012866084933,null,{"$f":" -232.8670000513 - (102.0339177026 * (P251/1000)) + (1386.8135453223 * P236) - (3.1583174866 * P253) + (80.3303777865 * P316) - (115.1570451563 * P252) + (4.1836503117 * (AVERAGE(P5:P6)*0.453592)) + (2553.6417073224 * P236 * P236) + (228.757399518 * P252 * P252) + (12.736240264 *  (P251/1000) * P253) - (24.4502664605 *  (P251/1000) * P316) - (23.0415882284 * P236 * P253) + (101.5847297779 * P236 * P316) - (1559.9331198689 * P236 *P252) - (3.9239483753 * P236 * (AVERAGE(P5:P6)*0.453592)) - (0.1078600966 * P253 * (AVERAGE(P5:P6)*0.453592)) - (28.1879330488 * P316 * P252) - (0.1153929924 * P316 * (AVERAGE(P5:P6)*0.453592))","v":547.89662275074909},478.5323901444587,417.04800330636067,365.60182676552984,327.48823108189816,297.10212626101668,null,{"$f":" -232.8670000513 - (102.0339177026 * (W251/1000)) + (1386.8135453223 * W236) - (3.1583174866 * W253) + (80.3303777865 * W316) - (115.1570451563 * W252) + (4.1836503117 * (AVERAGE(W5:W6)*0.453592)) + (2553.6417073224 * W236 * W236) + (228.757399518 * W252 * W252) + (12.736240264 *  (W251/1000) * W253) - (24.4502664605 *  (W251/1000) * W316) - (23.0415882284 * W236 * W253) + (101.5847297779 * W236 * W316) - (1559.9331198689 * W236 *W252) - (3.9239483753 * W236 * (AVERAGE(W5:W6)*0.453592)) - (0.1078600966 * W253 * (AVERAGE(W5:W6)*0.453592)) - (28.1879330488 * W316 * W252) - (0.1153929924 * W316 * (AVERAGE(W5:W6)*0.453592))","v":551.11052476804502},482.29829943319055,420.54885370178459,368.01249324880132,328.12799231535098,295.10847734063134,null,{"$f":" -232.8670000513 - (102.0339177026 * (AD251/1000)) + (1386.8135453223 * AD236) - (3.1583174866 * AD253) + (80.3303777865 * AD316) - (115.1570451563 * AD252) + (4.1836503117 * (AVERAGE(AD5:AD6)*0.453592)) + (2553.6417073224 * AD236 * AD236) + (228.757399518 * AD252 * AD252) + (12.736240264 *  (AD251/1000) * AD253) - (24.4502664605 *  (AD251/1000) * AD316) - (23.0415882284 * AD236 * AD253) + (101.5847297779 * AD236 * AD316) - (1559.9331198689 * AD236 *AD252) - (3.9239483753 * AD236 * (AVERAGE(AD5:AD6)*0.453592)) - (0.1078600966 * AD253 * (AVERAGE(AD5:AD6)*0.453592)) - (28.1879330488 * AD316 * AD252) - (0.1153929924 * AD316 * (AVERAGE(AD5:AD6)*0.453592))","v":554.34922340802814},486.06870424698963,424.04778376643372,370.46855332729479,328.6862971059129,293.10578220758794,null,{"$f":" -232.8670000513 - (102.0339177026 * (AK251/1000)) + (1386.8135453223 * AK236) - (3.1583174866 * AK253) + (80.3303777865 * AK316) - (115.1570451563 * AK252) + (4.1836503117 * (AVERAGE(AK5:AK6)*0.453592)) + (2553.6417073224 * AK236 * AK236) + (228.757399518 * AK252 * AK252) + (12.736240264 *  (AK251/1000) * AK253) - (24.4502664605 *  (AK251/1000) * AK316) - (23.0415882284 * AK236 * AK253) + (101.5847297779 * AK236 * AK316) - (1559.9331198689 * AK236 *AK252) - (3.9239483753 * AK236 * (AVERAGE(AK5:AK6)*0.453592)) - (0.1078600966 * AK253 * (AVERAGE(AK5:AK6)*0.453592)) - (28.1879330488 * AK316 * AK252) - (0.1153929924 * AK316 * (AVERAGE(AK5:AK6)*0.453592))","v":557.74081209962173},489.84693169406222,427.5797585417273,372.73581436865857,329.28751157066336,291.1274886409185,null,{"$f":" -232.8670000513 - (102.0339177026 * (AR251/1000)) + (1386.8135453223 * AR236) - (3.1583174866 * AR253) + (80.3303777865 * AR316) - (115.1570451563 * AR252) + (4.1836503117 * (AVERAGE(AR5:AR6)*0.453592)) + (2553.6417073224 * AR236 * AR236) + (228.757399518 * AR252 * AR252) + (12.736240264 *  (AR251/1000) * AR253) - (24.4502664605 *  (AR251/1000) * AR316) - (23.0415882284 * AR236 * AR253) + (101.5847297779 * AR236 * AR316) - (1559.9331198689 * AR236 *AR252) - (3.9239483753 * AR236 * (AVERAGE(AR5:AR6)*0.453592)) - (0.1078600966 * AR253 * (AVERAGE(AR5:AR6)*0.453592)) - (28.1879330488 * AR316 * AR252) - (0.1153929924 * AR316 * (AVERAGE(AR5:AR6)*0.453592))","v":560.92456426101978},493.61233476220207,430.93868169881779,375.09757078441942,329.89987224117283,289.15839713057858]
["F/G",{"$f":"IF(B323=\"\",\"0\",1/B344*1000)","v":1.846786053542306},2.1229120718123973,2.4388851729382321,2.7716511898230491,3.0648213839519558,3.3208497686258824,null,{"$f":"IF(I323=\"\",\"0\",1/I344*1000)","v":1.8359337776676292},2.106254398555095,2.41813495148791,2.7533486311452355,3.0592842254802601,3.343349041854653,null,{"$f":"IF(P323=\"\",\"0\",1/P344*1000)","v":1.8251618251987716},2.0897227034059727,2.3978055093706008,2.7352160924549391,3.0535448455548324,3.3658459890033168,null,{"$f":"IF(W323=\"\",\"0\",1/W344*1000)","v":1.8145180595505528},2.0734056105427405,2.3778450260837238,2.7172990546381599,3.0475912553018003,3.3885844588793086,null,{"$f":"IF(AD323=\"\",\"0\",1/AD344*1000)","v":1.803917021570266},2.0573223317250697,2.3582247998513344,2.6992844359357493,3.0424146330559347,3.411737538810355,null,{"$f":"IF(AK323=\"\",\"0\",1/AK344*1000)","v":1.7929475094990599},2.0414540447189284,2.3387449476339288,2.6828653471193911,3.0368597801663224,3.4349212596458614,null,{"$f":"IF(AR323=\"\",\"0\",1/AR344*1000)","v":1.7827709173646771},2.0258813031520986,2.320515754255029,2.6659730104590094,3.0312227561850991,3.4583121566703747]
["Days on phase",{"$f":"(B6-B5)*0.453592/(B342/1000)","v":20.958977100556179},18.239080496534822,19.17492901903826,18.464677842774325,18.577722929695792,22.192648973190369,null,{"$f":"(I351-I5)*0.453592/(I342/1000)","v":20.958934901426296},{"$f":"(J351-I351)*0.453592/(J342/1000)","v":18.315905611255403},{"$f":"(K351-J351)*0.453592/(K342/1000)","v":19.224942569212494},{"$f":"(L351-K351)*0.453592/(L342/1000)","v":18.514878486289618},{"$f":"(M351-L351)*0.453592/(M342/1000)","v":18.640702245710891},{"$f":"(N351-M351)*0.453592/(N342/1000)","v":22.290975434912379},null,{"$f":"(P351-P5)*0.453592/(P342/1000)","v":20.958934723881768},{"$f":"(Q351-P351)*0.453592/(Q342/1000)","v":18.392682632474418},{"$f":"(R351-Q351)*0.453592/(R342/1000)","v":19.274921803118666},{"$f":"(S351-R351)*0.453592/(S342/1000)","v":18.56548743692343},{"$f":"(T351-S351)*0.453592/(T342/1000)","v":18.703868794762762},{"$f":"(U351-T351)*0.453592/(U342/1000)","v":22.390726782695708},null,{"$f":"(W351-W5)*0.453592/(W342/1000)","v":20.958934544993976},{"$f":"(X351-W351)*0.453592/(X342/1000)","v":18.469849499526269},{"$f":"(Y351-X351)*0.453592/(Y342/1000)","v":19.325112539365119},{"$f":"(Z351-Y351)*0.453592/(Z342/1000)","v":18.616504329922311},{"$f":"(AA351-Z351)*0.453592/(AA342/1000)","v":18.767382047125935},{"$f":"(AB351-AA351)*0.453592/(AB342/1000)","v":22.492451179536744},null,{"$f":"(AD351-AD5)*0.453592/(AD342/1000)","v":20.958934364958733},{"$f":"(AE351-AD351)*0.453592/(AE342/1000)","v":18.547320140157048},{"$f":"(AF351-AE351)*0.453592/(AF342/1000)","v":19.375567288119335},{"$f":"(AG351-AF351)*0.453592/(AG342/1000)","v":18.66822928046717},{"$f":"(AH351-AG351)*0.453592/(AH342/1000)","v":18.831777906912002},{"$f":"(AI351-AH351)*0.453592/(AI342/1000)","v":22.595444633839602},null,{"$f":"(AK351-AK5)*0.453592/(AK342/1000)","v":20.958934184857057},{"$f":"(AL351-AK351)*0.453592/(AL342/1000)","v":18.624636134214544},{"$f":"(AM351-AL351)*0.453592/(AM342/1000)","v":19.426268986135046},{"$f":"(AN351-AM351)*0.453592/(AN342/1000)","v":18.719483609966993},{"$f":"(AO351-AN351)*0.453592/(AO342/1000)","v":18.897733402764203},{"$f":"(AP351-AO351)*0.453592/(AP342/1000)","v":22.6983077936002},null,{"$f":"(AR351-AR5)*0.453592/(AR342/1000)","v":20.958933999778708},{"$f":"(AS351-AR351)*0.453592/(AS342/1000)","v":18.703875776785974},{"$f":"(AT351-AS351)*0.453592/(AT342/1000)","v":19.477597768671728},{"$f":"(AU351-AT351)*0.453592/(AU342/1000)","v":18.771915358733882},{"$f":"(AV351-AU351)*0.453592/(AV342/1000)","v":18.962776160010314},{"$f":"(AW351-AV351)*0.453592/(AW342/1000)","v":22.803203932740168}]
["Dressing, %",{"$f":" 51.6684755267 + 7.1030096064 * (B251/1000) + 54.0870565413 * B236 + 1.6439820046 * B253 + 0.4039153805 * B316 - 20.5375389219 * B252 + 0.2869358688 *(AVERAGE(B5:B6)*0.453592) - 0.016597667 * B316 * B316 - 0.1531408962 * (B251/1000) * (AVERAGE(B5:B6)*0.453592) - 4.8153797375 * B236 * B253 + 0.5304361357 * B236 * (AVERAGE(B5:B6)*0.453592) + 0.9830652207 * B253 * B252 - 0.0127129553 * B253 *(AVERAGE(B5:B6)*0.453592)","v":59.07643336708562},66.187005535002854,71.339528706858943,74.764464309798441,76.836980679644768,78.432360226639787,null,{"$f":" 51.6684755267 + 7.1030096064 * (I251/1000) + 54.0870565413 * I236 + 1.6439820046 * I253 + 0.4039153805 * I316 - 20.5375389219 * I252 + 0.2869358688 *(AVERAGE(I5:I6)*0.453592) - 0.016597667 * I316 * I316 - 0.1531408962 * (I251/1000) * (AVERAGE(I5:I6)*0.453592) - 4.8153797375 * I236 * I253 + 0.5304361357 * I236 * (AVERAGE(I5:I6)*0.453592) + 0.9830652207 * I253 * I252 - 0.0127129553 * I253 *(AVERAGE(I5:I6)*0.453592)","v":59.243479327988396},66.314682198181842,71.423989215062747,74.794604233590505,76.806432001497171,78.328720442931086,null,{"$f":" 51.6684755267 + 7.1030096064 * (P251/1000) + 54.0870565413 * P236 + 1.6439820046 * P253 + 0.4039153805 * P316 - 20.5375389219 * P252 + 0.2869358688 *(AVERAGE(P5:P6)*0.453592) - 0.016597667 * P316 * P316 - 0.1531408962 * (P251/1000) * (AVERAGE(P5:P6)*0.453592) - 4.8153797375 * P236 * P253 + 0.5304361357 * P236 * (AVERAGE(P5:P6)*0.453592) + 0.9830652207 * P253 * P252 - 0.0127129553 * P253 *(AVERAGE(P5:P6)*0.453592)","v":59.36744799757264},66.399315096503798,71.463555262742716,74.78052970997615,76.730534311286107,78.177949163716193,null,{"$f":" 51.6684755267 + 7.1030096064 * (W251/1000) + 54.0870565413 * W236 + 1.6439820046 * W253 + 0.4039153805 * W316 - 20.5375389219 * W252 + 0.2869358688 *(AVERAGE(W5:W6)*0.453592) - 0.016597667 * W316 * W316 - 0.1531408962 * (W251/1000) * (AVERAGE(W5:W6)*0.453592) - 4.8153797375 * W236 * W253 + 0.5304361357 * W236 * (AVERAGE(W5:W6)*0.453592) + 0.9830652207 * W253 * W252 - 0.0127129553 * W253 *(AVERAGE(W5:W6)*0.453592)","v":59.447219082438615},66.439762970964395,71.458544885255478,74.722581015382374,76.608905340313939,77.983455074685651,null,{"$f":" 51.6684755267 + 7.1030096064 * (AD251/1000) + 54.0870565413 * AD236 + 1.6439820046 * AD253 + 0.4039153805 * AD316 - 20.5375389219 * AD252 + 0.2869358688 *(AVERAGE(AD5:AD6)*0.453592) - 0.016597667 * AD316 * AD316 - 0.1531408962 * (AD251/1000) * (AVERAGE(AD5:AD6)*0.453592) - 4.8153797375 * AD236 * AD253 + 0.5304361357 * AD236 * (AVERAGE(AD5:AD6)*0.453592) + 0.9830652207 * AD253 * AD252 - 0.0127129553 * AD253 *(AVERAGE(AD5:AD6)*0.453592)","v":59.482709418021351},66.435812016540055,71.409565286860925,74.618645670294839,76.446831743390234,77.750226743330074,null,{"$f":" 51.6684755267 + 7.1030096064 * (AK251/1000) + 54.0870565413 * AK236 + 1.6439820046 * AK253 + 0.4039153805 * AK316 - 20.5375389219 * AK252 + 0.2869358688 *(AVERAGE(AK5:AK6)*0.453592) - 0.016597667 * AK316 * AK316 - 0.1531408962 * (AK251/1000) * (AVERAGE(AK5:AK6)*0.453592) - 4.8153797375 * AK236 * AK253 + 0.5304361357 * AK236 * (AVERAGE(AK5:AK6)*0.453592) + 0.9830652207 * AK253 * AK252 - 0.0127129553 * AK253 *(AVERAGE(AK5:AK6)*0.453592)","v":59.47349826761198},66.387431021857651,71.31545090986981,74.472489558054363,76.24169507308261,77.47271641271557,null,{"$f":" 51.6684755267 + 7.1030096064 * (AR251/1000) + 54.0870565413 * AR236 + 1.6439820046 * AR253 + 0.4039153805 * AR316 - 20.5375389219 * AR252 + 0.2869358688 *(AVERAGE(AR5:AR6)*0.453592) - 0.016597667 * AR316 * AR316 - 0.1531408962 * (AR251/1000) * (AVERAGE(AR5:AR6)*0.453592) - 4.8153797375 * AR236 * AR253 + 0.5304361357 * AR236 * (AVERAGE(AR5:AR6)*0.453592) + 0.9830652207 * AR253 * AR252 - 0.0127129553 * AR253 *(AVERAGE(AR5:AR6)*0.453592)","v":59.419660946152376},66.294450943031634,71.177011875452706,74.283880076076372,75.99246713277175,77.1506983950826]
["Backfat, mm",{"$f":" 41.4410513954 + (14.8656283053 * B236) - (0.6326892081 * B253) - (12.1380129342 * B252) -\n(0.0133880688 * (B253^2)) + (1.1112817574 * (B252^2))","v":7.8081201670684095},9.6497372018873726,11.707280587456946,13.756142379711502,15.307913140289045,16.16672623849167,null,{"$f":" 41.4410513954 + (14.8656283053 * I236) - (0.6326892081 * I253) - (12.1380129342 * I252) -\n(0.0133880688 * (I253^2)) + (1.1112817574 * (I252^2))","v":7.3965712519540681},9.2585808082621668,11.33564432453878,13.396360195626425,14.95820516594468,15.821766941290225,null,{"$f":" 41.4410513954 + (14.8656283053 * P236) - (0.6326892081 * P253) - (12.1380129342 * P252) -\n(0.0133880688 * (P253^2)) + (1.1112817574 * (P252^2))","v":6.9828278317269579},8.865238822029351,10.960534446788438,13.035429377706016,14.605084043765288,15.472324660184686,null,{"$f":" 41.4410513954 + (14.8656283053 * W236) - (0.6326892081 * W253) - (12.1380129342 * W252) -\n(0.0133880688 * (W253^2)) + (1.1112817574 * (W252^2))","v":6.566215549972533},8.4692180548235783,10.581725706686701,12.674084929772935,14.24700579792202,15.120558002225403,null,{"$f":" 41.4410513954 + (14.8656283053 * AD236) - (0.6326892081 * AD253) - (12.1380129342 * AD252) -\n(0.0133880688 * (AD253^2)) + (1.1112817574 * (AD252^2))","v":6.1470339280943271},8.070046440699981,10.206494085490409,12.303481423881458,13.889187174720101,14.770965148427734,null,{"$f":" 41.4410513954 + (14.8656283053 * AK236) - (0.6326892081 * AK253) - (12.1380129342 * AK252) -\n(0.0133880688 * (AK253^2)) + (1.1112817574 * (AK252^2))","v":5.7274548126901372},7.6678208184835022,9.8170298217134011,11.930203962508784,13.532733677069459,14.419694661359173,null,{"$f":" 41.4410513954 + (14.8656283053 * AR236) - (0.6326892081 * AR253) - (12.1380129342 * AR252) -\n(0.0133880688 * (AR253^2)) + (1.1112817574 * (AR252^2))","v":5.302659914214658},7.2642063728480295,9.4235824207212637,11.560843876657216,13.17188771098798,14.064121356935306]
["Loin depth, mm",{"$f":" -16.7992454106 + 17.2658536059 * (B251/1000) - 106.6634904715 * B236 + 0.1550376119 * B253 - 0.0727312562 * B316 + 48.6541457906 * B252 - 0.1535643762 * B253 * B253 - 0.0358142801 * B316 * B316 - 5.4618633046 * B252 * B252 + 4.2267870055 * B236 * B253 - 2.0313848595 * B236 * B316 + 0.1484978883 * B253 * B316","v":52.048652387826927},57.424545894850155,60.138112629899155,61.003481994612869,60.913721975717699,60.653455485036048,null,{"$f":" -16.7992454106 + 17.2658536059 * (I251/1000) - 106.6634904715 * I236 + 0.1550376119 * I253 - 0.0727312562 * I316 + 48.6541457906 * I252 - 0.1535643762 * I253 * I253 - 0.0358142801 * I316 * I316 - 5.4618633046 * I252 * I252 + 4.2267870055 * I236 * I253 - 2.0313848595 * I236 * I316 + 0.1484978883 * I253 * I316","v":52.029648828494423},57.389746218661493,60.090743298145505,60.939824450938623,60.841065722641474,60.579090503786553,null,{"$f":" -16.7992454106 + 17.2658536059 * (P251/1000) - 106.6634904715 * P236 + 0.1550376119 * P253 - 0.0727312562 * P316 + 48.6541457906 * P252 - 0.1535643762 * P253 * P253 - 0.0358142801 * P316 * P316 - 5.4618633046 * P252 * P252 + 4.2267870055 * P236 * P253 - 2.0313848595 * P236 * P316 + 0.1484978883 * P253 * P316","v":52.005561038897824},57.344714229760882,60.029009681374546,60.862233643135781,60.755224681577914,60.492207968769122,null,{"$f":" -16.7992454106 + 17.2658536059 * (W251/1000) - 106.6634904715 * W236 + 0.1550376119 * W253 - 0.0727312562 * W316 + 48.6541457906 * W252 - 0.1535643762 * W253 * W253 - 0.0358142801 * W316 * W316 - 5.4618633046 * W252 * W252 + 4.2267870055 * W236 * W253 - 2.0313848595 * W236 * W316 + 0.1484978883 * W253 * W316","v":51.968952507299406},57.28658983370552,59.953103644496998,60.769293439626431,60.657026859387699,60.392284583579297,null,{"$f":" -16.7992454106 + 17.2658536059 * (AD251/1000) - 106.6634904715 * AD236 + 0.1550376119 * AD253 - 0.0727312562 * AD316 + 48.6541457906 * AD252 - 0.1535643762 * AD253 * AD253 - 0.0358142801 * AD316 * AD316 - 5.4618633046 * AD252 * AD252 + 4.2267870055 * AD236 * AD253 - 2.0313848595 * AD236 * AD316 + 0.1484978883 * AD253 * AD316","v":51.921729306831878},57.21470287971529,59.860029744773321,60.666568793346606,60.545322645779621,60.27845418983464,null,{"$f":" -16.7992454106 + 17.2658536059 * (AK251/1000) - 106.6634904715 * AK236 + 0.1550376119 * AK253 - 0.0727312562 * AK316 + 48.6541457906 * AK252 - 0.1535643762 * AK253 * AK253 - 0.0358142801 * AK316 * AK316 - 5.4618633046 * AK252 * AK252 + 4.2267870055 * AK236 * AK253 - 2.0313848595 * AK236 * AK316 + 0.1484978883 * AK253 * AK316","v":51.873882788224464},57.129138344589478,59.759217935422242,60.549226277809069,60.41888764263328,60.150216981536019,null,{"$f":" -16.7992454106 + 17.2658536059 * (AR251/1000) - 106.6634904715 * AR236 + 0.1550376119 * AR253 - 0.0727312562 * AR316 + 48.6541457906 * AR252 - 0.1535643762 * AR253 * AR253 - 0.0358142801 * AR316 * AR316 - 5.4618633046 * AR252 * AR252 + 4.2267870055 * AR236 * AR253 - 2.0313848595 * AR236 * AR316 + 0.1484978883 * AR253 * AR316","v":51.790983057993152},57.027944580405247,59.640949723015538,60.41770641573207,60.279973353152371,60.00941792739826]
["Lean, %",{"$f":" 49.3215904687 - 4.5564383267 * (B251/1000) + 31.3355706686 * B236 + 0.0864922401 * B253 - 16.201377828 * B236 * B236","v":53.954378874327247},54.343913736532443,54.182582260957595,53.680906160604707,53.144530833046296,52.790842861934969,null,{"$f":" 49.3215904687 - 4.5564383267 * (I251/1000) + 31.3355706686 * I236 + 0.0864922401 * I253 - 16.201377828 * I236 * I236","v":53.986741985879277},54.375511548263077,54.211713052498474,53.711452016938907,53.175298869125847,52.821486611290091,null,{"$f":" 49.3215904687 - 4.5564383267 * (P251/1000) + 31.3355706686 * P236 + 0.0864922401 * P253 - 16.201377828 * P236 * P236","v":54.017290176452079},54.405665981888021,54.241273151528993,53.74124588701099,53.205202559785491,52.851334474453424,null,{"$f":" 49.3215904687 - 4.5564383267 * (W251/1000) + 31.3355706686 * W236 + 0.0864922401 * W253 - 16.201377828 * W236 * W236","v":54.047527708341519},54.435447552493699,54.271071741030603,53.770639019734659,53.234629212748196,52.881174727303254,null,{"$f":" 49.3215904687 - 4.5564383267 * (AD251/1000) + 31.3355706686 * AD236 + 0.0864922401 * AD253 - 16.201377828 * AD236 * AD236","v":54.07705821480468},54.465146130636654,54.300244223028464,53.799749067852758,53.265813858864178,52.911383194976423,null,{"$f":" 49.3215904687 - 4.5564383267 * (AK251/1000) + 31.3355706686 * AK236 + 0.0864922401 * AK253 - 16.201377828 * AK236 * AK236","v":54.103750702153462},54.494721314035743,54.329883256626069,53.83248986650176,53.295224678600192,52.94062026471282,null,{"$f":" 49.3215904687 - 4.5564383267 * (AR251/1000) + 31.3355706686 * AR236 + 0.0864922401 * AR253 - 16.201377828 * AR236 * AR236","v":54.134585674168065},54.52439632501455,54.362392148605544,53.862141434038364,53.324540410280648,52.969765200666387]
["Final BW",{"$f":"B5+(B342*0.00220462*B346)","v":84.999929826400006},119.99992982640001,159.99991980160002,199.99991980160002,239.99991980160002,284.9999097768,null,{"$f":"$B$351-I268","v":84.852944088142436},{"$f":"$C$351-J268","v":119.8958713641783},{"$f":"$D$351-K268","v":159.89153707636953},{"$f":"$E$351-L268","v":199.86498855302605},{"$f":"$F$351-M268","v":239.80212009802489},{"$f":"$G$351-N268","v":284.64177763924295},null,{"$f":"$B$351-P268","v":84.706921250931089},{"$f":"$C$351-Q268","v":119.79246029130258},{"$f":"$D$351-R268","v":159.78300435976919},{"$f":"$E$351-S268","v":199.73099685171888},{"$f":"$F$351-T268","v":239.60467458032696},{"$f":"$G$351-U268","v":284.28208353004044},null,{"$f":"$B$351-W268","v":84.561025938843159},{"$f":"$C$351-X268","v":119.68917851933745},{"$f":"$D$351-Y268","v":159.67432627244077},{"$f":"$E$351-Z268","v":199.59761936345242},{"$f":"$F$351-AA268","v":239.40654667865289},{"$f":"$G$351-AB268","v":283.92319877224287},null,{"$f":"$B$351-AD268","v":84.415427989535374},{"$f":"$C$351-AE268","v":119.5859289784494},{"$f":"$D$351-AF268","v":159.56487759755365},{"$f":"$E$351-AG268","v":199.4637243159558},{"$f":"$F$351-AH268","v":239.20911490417902},{"$f":"$G$351-AI268","v":283.56997453268315},null,{"$f":"$B$351-AK268","v":84.270998580050616},{"$f":"$C$351-AL268","v":119.48272395337915},{"$f":"$D$351-AM268","v":159.45720864081406},{"$f":"$E$351-AN268","v":199.32786302673804},{"$f":"$F$351-AO268","v":239.01515713647859},{"$f":"$G$351-AP268","v":283.21930750106446},null,{"$f":"$B$351-AR268","v":84.123835744824063},{"$f":"$C$351-AS268","v":119.37882986120016},{"$f":"$D$351-AT268","v":159.34773993839349},{"$f":"$E$351-AU268","v":199.19529941545585},{"$f":"$F$351-AV268","v":238.82056437887363},{"$f":"$G$351-AW268","v":282.86713741119092}]
["Withdrawal Period",0,0,0,0,0,0,null,0,0,0,0,0,0,null,0,0,0,0,0,0,null,0,0,0,0,0,0,null,0,0,0,0,0,0,null,0,0,0,0,0,0,null,0,0,0,0,0,0]
["Soto Model for Yield",{"$f":" 0.03492* B352 - 0.05092 * B316- 0.06897 * B316 - 0.00289 * (B316 * B352) +76.0769-(75.02-'DDGS Calculator'!$G$9)","v":75.029735985643839},{"$f":" 0.03492* C352 - 0.05092 * B316- 0.06897 * C316 - 0.00289 * (C316 * C352) +76.0769-(75.02-'DDGS Calculator'!$G$9)","v":75.024756887824907},{"$f":" 0.03492* D352 - 0.05092 * C316- 0.06897 * D316 - 0.00289 * (D316 * D352) +76.0769-(75.02-'DDGS Calculator'!$G$9)","v":75.016633111485348},{"$f":" 0.03492* E352 - 0.05092 * D316- 0.06897 * E316 - 0.00289 * (E316 * E352) +76.0769-(75.02-'DDGS Calculator'!$G$9)","v":75.009676279957176},{"$f":" 0.03492* F352 - 0.05092 * E316- 0.06897 * F316 - 0.00289 * (F316 * F352) + 76.0769-(75.02-'DDGS Calculator'!$G$9)","v":75.00416807535089},{"$f":"0.03492*G352-0.05092*F316-0.06897*G316-0.00289*(G316*G352)+76.0769-(75.02-'DDGS Calculator'!$G$9)","v":75.000910160900062},null,{"$f":" 0.03492* I352 - 0.05092 * I316- 0.06897 * I316 - 0.00289 * (I316 * I352) +76.0769-(75.02-'DDGS Calculator'!$G$9)","v":74.890980431928654},{"$f":" 0.03492* J352 - 0.05092 * I316- 0.06897 * J316 - 0.00289 * (J316 * J352) +76.0769-(75.02-'DDGS Calculator'!$G$9)","v":74.886043407400976},{"$f":" 0.03492* K352 - 0.05092 * J316- 0.06897 * K316 - 0.00289 * (K316 * K352) +76.0769-(75.02-'DDGS Calculator'!$G$9)","v":74.877874753418595},{"$f":" 0.03492* L352 - 0.05092 * K316- 0.06897 * L316 - 0.00289 * (L316 * L352) +76.0769-(75.02-'DDGS Calculator'!$G$9)","v":74.870749432711762},{"$f":" 0.03492* M352 - 0.05092 * L316- 0.06897 * M316 - 0.00289 * (M316 * M352) + 76.0769-(75.02-'DDGS Calculator'!$G$9)","v":74.865239005563723},{"$f":"0.03492*N352-0.05092*M316-0.06897*N316-0.00289*(N316*N352)+76.0769-(75.02-'DDGS Calculator'!$G$9)","v":74.86198539372856},null,{"$f":" 0.03492* P352 - 0.05092 * P316- 0.06897 * P316 - 0.00289 * (P316 * P352) +76.0769-(75.02-'DDGS Calculator'!$G$9)","v":74.75223588353083},{"$f":" 0.03492* Q352 - 0.05092 * P316- 0.06897 * Q316 - 0.00289 * (Q316 * Q352) +76.0769-(75.02-'DDGS Calculator'!$G$9)","v":74.747310864041395},{"$f":" 0.03492* R352 - 0.05092 * Q316- 0.06897 * R316 - 0.00289 * (R316 * R352) +76.0769-(75.02-'DDGS Calculator'!$G$9)","v":74.739169193622288},{"$f":" 0.03492* S352 - 0.05092 * R316- 0.06897 * S316 - 0.00289 * (S316 * S352) +76.0769-(75.02-'DDGS Calculator'!$G$9)","v":74.732050123701015},{"$f":" 0.03492* T352 - 0.05092 * S316- 0.06897 * T316 - 0.00289 * (T316 * T352) + 76.0769-(75.02-'DDGS Calculator'!$G$9)","v":74.726552206421772},{"$f":"0.03492*U352-0.05092*T316-0.06897*U316-0.00289*(U316*U352)+76.0769-(75.02-'DDGS Calculator'!$G$9)","v":74.723330170640651},null,{"$f":" 0.03492* W352 - 0.05092 * W316- 0.06897 * W316 - 0.00289 * (W316 * W352) +76.0769-(75.02-'DDGS Calculator'!$G$9)","v":74.613507799367753},{"$f":" 0.03492* X352 - 0.05092 * W316- 0.06897 * X316 - 0.00289 * (X316 * X352) +76.0769-(75.02-'DDGS Calculator'!$G$9)","v":74.608596681430257},{"$f":" 0.03492* Y352 - 0.05092 * X316- 0.06897 * Y316 - 0.00289 * (Y316 * Y352) +76.0769-(75.02-'DDGS Calculator'!$G$9)","v":74.600444892755448},{"$f":" 0.03492* Z352 - 0.05092 * Y316- 0.06897 * Z316 - 0.00289 * (Z316 * Z352) +76.0769-(75.02-'DDGS Calculator'!$G$9)","v":74.593297547149149},{"$f":" 0.03492* AA352 - 0.05092 * Z316- 0.06897 * AA316 - 0.00289 * (AA316 * AA352) + 76.0769-(75.02-'DDGS Calculator'!$G$9)","v":74.587863176582729},{"$f":"0.03492*AB352-0.05092*AA316-0.06897*AB316-0.00289*(AB316*AB352)+76.0769-(75.02-'DDGS Calculator'!$G$9)","v":74.584946549202968},null,{"$f":" 0.03492* AD352 - 0.05092 * AD316- 0.06897 * AD316 - 0.00289 * (AD316 * AD352) +76.0769-(75.02-'DDGS Calculator'!$G$9)","v":74.474799922358514},{"$f":" 0.03492* AE352 - 0.05092 * AD316- 0.06897 * AE316 - 0.00289 * (AE316 * AE352) +76.0769-(75.02-'DDGS Calculator'!$G$9)","v":74.469883680176324},{"$f":" 0.03492* AF352 - 0.05092 * AE316- 0.06897 * AF316 - 0.00289 * (AF316 * AF352) +76.0769-(75.02-'DDGS Calculator'!$G$9)","v":74.461685487512426},{"$f":" 0.03492* AG352 - 0.05092 * AF316- 0.06897 * AG316 - 0.00289 * (AG316 * AG352) +76.0769-(75.02-'DDGS Calculator'!$G$9)","v":74.454615984531046},{"$f":" 0.03492* AH352 - 0.05092 * AG316- 0.06897 * AH316 - 0.00289 * (AH316 * AH352) + 76.0769-(75.02-'DDGS Calculator'!$G$9)","v":74.449978886161901},{"$f":"0.03492*AI352-0.05092*AH316-0.06897*AI316-0.00289*(AI316*AI352)+76.0769-(75.02-'DDGS Calculator'!$G$9)","v":74.447843749650133},null,{"$f":" 0.03492* AK352 - 0.05092 * AK316- 0.06897 * AK316 - 0.00289 * (AK316 * AK352) +76.0769-(75.02-'DDGS Calculator'!$G$9)","v":74.33623382236344},{"$f":" 0.03492* AL352 - 0.05092 * AK316- 0.06897 * AL316 - 0.00289 * (AL316 * AL352) +76.0769-(75.02-'DDGS Calculator'!$G$9)","v":74.331229691252403},{"$f":" 0.03492* AM352 - 0.05092 * AL316- 0.06897 * AM316 - 0.00289 * (AM316 * AM352) +76.0769-(75.02-'DDGS Calculator'!$G$9)","v":74.323013409254926},{"$f":" 0.03492* AN352 - 0.05092 * AM316- 0.06897 * AN316 - 0.00289 * (AN316 * AN352) +76.0769-(75.02-'DDGS Calculator'!$G$9)","v":74.31663275250385},{"$f":" 0.03492* AO352 - 0.05092 * AN316- 0.06897 * AO316 - 0.00289 * (AO316 * AO352) + 76.0769-(75.02-'DDGS Calculator'!$G$9)","v":74.312747888088182},{"$f":"0.03492*AP352-0.05092*AO316-0.06897*AP316-0.00289*(AP316*AP352)+76.0769-(75.02-'DDGS Calculator'!$G$9)","v":74.310816932703204},null,{"$f":" 0.03492* AR352 - 0.05092 * AR316- 0.06897 * AR316 - 0.00289 * (AR316 * AR352) +76.0769-(75.02-'DDGS Calculator'!$G$9)","v":74.197454622500985},{"$f":" 0.03492* AS352 - 0.05092 * AR316- 0.06897 * AS316 - 0.00289 * (AS316 * AS352) +76.0769-(75.02-'DDGS Calculator'!$G$9)","v":74.192485857209647},{"$f":" 0.03492* AT352 - 0.05092 * AS316- 0.06897 * AT316 - 0.00289 * (AT316 * AT352) +76.0769-(75.02-'DDGS Calculator'!$G$9)","v":74.184507321545908},{"$f":" 0.03492* AU352 - 0.05092 * AT316- 0.06897 * AU316 - 0.00289 * (AU316 * AU352) +76.0769-(75.02-'DDGS Calculator'!$G$9)","v":74.179038400847617},{"$f":" 0.03492* AV352 - 0.05092 * AU316- 0.06897 * AV316 - 0.00289 * (AV316 * AV352) + 76.0769-(75.02-'DDGS Calculator'!$G$9)","v":74.175727146313434},{"$f":"0.03492*AW352-0.05092*AV316-0.06897*AW316-0.00289*(AW316*AW352)+76.0769-(75.02-'DDGS Calculator'!$G$9)","v":74.173812739382313}]

{"sheet":"GF diets L-Val","index":7,"n_rows":353,"n_cols":50,"rows_kept":353,"cut":false,"hidden":true,"merged":[[3,36,3,40],[3,43,3,47],[3,1,3,5],[3,8,3,12],[3,15,3,19],[3,22,3,26],[3,29,3,33]]}
["Corn",null,null,null,null,null,null,null,{"$f":"B7-I7","v":63.789109889335123},{"$f":"C7-J7","v":65.149994542463219},66.11510081960364,66.788938181161939,66.688859631779451,67.134832271415235,null,{"$f":"I7-P7","v":65.418531271642451},{"$f":"J7-Q7","v":66.283963308040256},67.035655773499684,66.728602693196535,67.384062196562354,67.620571588881603,null,{"$f":"P7-W7","v":65.471590096287173},{"$f":"Q7-X7","v":66.247123285707858},65.984796659512995,67.127401431758244,67.816410698558457,68.308917517852706,null,{"$f":"W7-AD7","v":65.462625375353809},{"$f":"X7-AE7","v":65.221158447268863},66.362261066153678,67.426293862590455,68.860809922171484,69.493554201103279,null,{"$f":"AD7-AK7","v":65.776218580573413},{"$f":"AE7-AL7","v":65.465737091472647},66.604811735053318,68.211780203257831,69.213371174924987,69.479043116129105,null,{"$f":"AK7-AR7","v":67.892536930548317},{"$f":"AL7-AS7","v":65.652092522674138},66.991285188586744,68.861672265394873,69.218974661154789,69.481213773233094]
["SBM",null,null,null,null,null,null,null,{"$f":"B8-I8","v":35.320222042977775},34.116983925017394,33.138379984742187,32.486249419974229,32.536482658629893,32.199237899243599,null,{"$f":"I8-P8","v":33.779747158007467},33.048764602227266,32.280583008157237,32.635298298839416,32.003339981902855,31.749947749442754,null,{"$f":"P8-W8","v":33.776757545360852},33.04840831111801,33.389395431325511,32.342598568241783,31.903589301441571,31.81752421514193,null,{"$f":"W8-AD8","v":33.858637056689986},34.13786518117513,33.11773893384634,32.3390201510324,32.223858555663583,32.064565155970513,null,{"$f":"AD8-AK8","v":33.568713645087428},33.827251635648963,32.982406726295039,32.591101927869204,32.333858893615115,32.069158344173729,null,{"$f":"AK8-AR8","v":31.424187924327839},33.807907477325898,32.757426012777842,32.696921624659808,32.328334223451748,32.067050393741965]
[null,"Diet 1","Diet 2","Diet 3","Diet 4","Diet 5","Diet 6",null,"Diet 1","Diet 2","Diet 3","Diet 4","Diet 5","Diet 6",null,"Diet 1","Diet 2","Diet 3","Diet 4","Diet 5","Diet 6",null,"Diet 1","Diet 2","Diet 3","Diet 4","Diet 5","Diet 6",null,"Diet 1","Diet 2","Diet 3","Diet 4","Diet 5","Diet 6",null,"Diet 1","Diet 2","Diet 3","Diet 4","Diet 5","Diet 6",null,"Diet 1","Diet 2","Diet 3","Diet 4","Diet 5","Diet 6"]
[null,"Weight Range",null,null,null,null,null,null,"Weight Range",null,null,null,null,null,null,"Weight Range",null,null,null,null,null,null,"Weight Range",null,null,null,null,null,null,"Weight Range",null,null,null,null,null,null,"Weight Range",null,null,null,null,null,null,"Weight Range"]
[null,50,85,120,160,200,240,null,50,85,120,160,200,240,null,50,85,120,160,200,240,null,50,85,120,160,200,240,null,50,85,120,160,200,240,null,50,85,120,160,200,240,null,50,85,120,160,200,240]
["Ingredient",85,120,160,200,240,285,null,85,120,160,200,240,285,null,85,120,160,200,240,285,null,85,120,160,200,240,285,null,85,120,160,200,240,285,null,85,120,160,200,240,285,null,85,120,160,200,240,285]
["Corn",{"$f":"IF(B5=\"\",\"\",((((B236-B297)*2000)+((SUM(B9:B229)-2000)*((IF($A8=Nutrients!$B$79,Nutrients!$DA$79,(IF($A8=Nutrients!$B$77,Nutrients!$DA$77,Nutrients!$DA$78)))))))/((IF($A7=Nutrients!$B$8,Nutrients!$DA$8,Nutrients!$DA$9))-((IF($A8=Nutrients!$B$79,Nutrients!$DA$79,(IF($A8=Nutrients!$B$77,Nutrients!$DA$77,Nutrients!$DA$78))))))))","v":1401.204118179855},{"$f":"IF(C5=\"\",\"\",((((C236-C297)*2000)+((SUM(C9:C229)-2000)*((IF($A8=Nutrients!$B$79,Nutrients!$DA$79,(IF($A8=Nutrients!$B$77,Nutrients!$DA$77,Nutrients!$DA$78)))))))/((IF($A7=Nutrients!$B$8,Nutrients!$DA$8,Nutrients!$DA$9))-((IF($A8=Nutrients!$B$79,Nutrients!$DA$79,(IF($A8=Nutrients!$B$77,Nutrients!$DA$77,Nutrients!$DA$78))))))))","v":1489.6346777263973},{"$f":"IF(D5=\"\",\"\",((((D236-D297)*2000)+((SUM(D9:D229)-2000)*((IF($A8=Nutrients!$B$79,Nutrients!$DA$79,(IF($A8=Nutrients!$B$77,Nutrients!$DA$77,Nutrients!$DA$78)))))))/((IF($A7=Nutrients!$B$8,Nutrients!$DA$8,Nutrients!$DA$9))-((IF($A8=Nutrients!$B$79,Nutrients!$DA$79,(IF($A8=Nutrients!$B$77,Nutrients!$DA$77,Nutrients!$DA$78))))))))","v":1564.8539711032211},{"$f":"IF(E5=\"\",\"\",((((E236-E297)*2000)+((SUM(E9:E229)-2000)*((IF($A8=Nutrients!$B$79,Nutrients!$DA$79,(IF($A8=Nutrients!$B$77,Nutrients!$DA$77,Nutrients!$DA$78)))))))/((IF($A7=Nutrients!$B$8,Nutrients!$DA$8,Nutrients!$DA$9))-((IF($A8=Nutrients!$B$79,Nutrients!$DA$79,(IF($A8=Nutrients!$B$77,Nutrients!$DA$77,Nutrients!$DA$78))))))))","v":1637.2122226458096},{"$f":"IF(F5=\"\",\"\",((((F236-F297)*2000)+((SUM(F9:F229)-2000)*((IF($A8=Nutrients!$B$79,Nutrients!$DA$79,(IF($A8=Nutrients!$B$77,Nutrients!$DA$77,Nutrients!$DA$78)))))))/((IF($A7=Nutrients!$B$8,Nutrients!$DA$8,Nutrients!$DA$9))-((IF($A8=Nutrients!$B$79,Nutrients!$DA$79,(IF($A8=Nutrients!$B$77,Nutrients!$DA$77,Nutrients!$DA$78))))))))","v":1697.3820399240099},{"$f":"IF(G5=\"\",\"\",((((G236-G297)*2000)+((SUM(G9:G229)-2000)*((IF($A8=Nutrients!$B$79,Nutrients!$DA$79,(IF($A8=Nutrients!$B$77,Nutrients!$DA$77,Nutrients!$DA$78)))))))/((IF($A7=Nutrients!$B$8,Nutrients!$DA$8,Nutrients!$DA$9))-((IF($A8=Nutrients!$B$79,Nutrients!$DA$79,(IF($A8=Nutrients!$B$77,Nutrients!$DA$77,Nutrients!$DA$78))))))))","v":1729.7239606988965},null,{"$f":"IF(I5=\"\",\"\",((((I236-I297)*2000)+((SUM(I9:I229)-2000)*((IF($A8=Nutrients!$B$79,Nutrients!$DA$79,(IF($A8=Nutrients!$B$77,Nutrients!$DA$77,Nutrients!$DA$78)))))))/((IF($A7=Nutrients!$B$8,Nutrients!$DA$8,Nutrients!$DA$9))-((IF($A8=Nutrients!$B$79,Nutrients!$DA$79,(IF($A8=Nutrients!$B$77,Nutrients!$DA$77,Nutrients!$DA$78))))))))","v":1337.4150082905198},{"$f":"IF(J5=\"\",\"\",((((J236-J297)*2000)+((SUM(J9:J229)-2000)*((IF($A8=Nutrients!$B$79,Nutrients!$DA$79,(IF($A8=Nutrients!$B$77,Nutrients!$DA$77,Nutrients!$DA$78)))))))/((IF($A7=Nutrients!$B$8,Nutrients!$DA$8,Nutrients!$DA$9))-((IF($A8=Nutrients!$B$79,Nutrients!$DA$79,(IF($A8=Nutrients!$B$77,Nutrients!$DA$77,Nutrients!$DA$78))))))))","v":1424.4846831839341},{"$f":"IF(K5=\"\",\"\",((((K236-K297)*2000)+((SUM(K9:K229)-2000)*((IF($A8=Nutrients!$B$79,Nutrients!$DA$79,(IF($A8=Nutrients!$B$77,Nutrients!$DA$77,Nutrients!$DA$78)))))))/((IF($A7=Nutrients!$B$8,Nutrients!$DA$8,Nutrients!$DA$9))-((IF($A8=Nutrients!$B$79,Nutrients!$DA$79,(IF($A8=Nutrients!$B$77,Nutrients!$DA$77,Nutrients!$DA$78))))))))","v":1498.7388702836174},{"$f":"IF(L5=\"\",\"\",((((L236-L297)*2000)+((SUM(L9:L229)-2000)*((IF($A8=Nutrients!$B$79,Nutrients!$DA$79,(IF($A8=Nutrients!$B$77,Nutrients!$DA$77,Nutrients!$DA$78)))))))/((IF($A7=Nutrients!$B$8,Nutrients!$DA$8,Nutrients!$DA$9))-((IF($A8=Nutrients!$B$79,Nutrients!$DA$79,(IF($A8=Nutrients!$B$77,Nutrients!$DA$77,Nutrients!$DA$78))))))))","v":1570.4232844646476},{"$f":"IF(M5=\"\",\"\",((((M236-M297)*2000)+((SUM(M9:M229)-2000)*((IF($A8=Nutrients!$B$79,Nutrients!$DA$79,(IF($A8=Nutrients!$B$77,Nutrients!$DA$77,Nutrients!$DA$78)))))))/((IF($A7=Nutrients!$B$8,Nutrients!$DA$8,Nutrients!$DA$9))-((IF($A8=Nutrients!$B$79,Nutrients!$DA$79,(IF($A8=Nutrients!$B$77,Nutrients!$DA$77,Nutrients!$DA$78))))))))","v":1630.6931802922304},{"$f":"IF(N5=\"\",\"\",((((N236-N297)*2000)+((SUM(N9:N229)-2000)*((IF($A8=Nutrients!$B$79,Nutrients!$DA$79,(IF($A8=Nutrients!$B$77,Nutrients!$DA$77,Nutrients!$DA$78)))))))/((IF($A7=Nutrients!$B$8,Nutrients!$DA$8,Nutrients!$DA$9))-((IF($A8=Nutrients!$B$79,Nutrients!$DA$79,(IF($A8=Nutrients!$B$77,Nutrients!$DA$77,Nutrients!$DA$78))))))))","v":1662.5891284274812},null,{"$f":"IF(P5=\"\",\"\",((((P236-P297)*2000)+((SUM(P9:P229)-2000)*((IF($A8=Nutrients!$B$79,Nutrients!$DA$79,(IF($A8=Nutrients!$B$77,Nutrients!$DA$77,Nutrients!$DA$78)))))))/((IF($A7=Nutrients!$B$8,Nutrients!$DA$8,Nutrients!$DA$9))-((IF($A8=Nutrients!$B$79,Nutrients!$DA$79,(IF($A8=Nutrients!$B$77,Nutrients!$DA$77,Nutrients!$DA$78))))))))","v":1271.9964770188774},{"$f":"IF(Q5=\"\",\"\",((((Q236-Q297)*2000)+((SUM(Q9:Q229)-2000)*((IF($A8=Nutrients!$B$79,Nutrients!$DA$79,(IF($A8=Nutrients!$B$77,Nutrients!$DA$77,Nutrients!$DA$78)))))))/((IF($A7=Nutrients!$B$8,Nutrients!$DA$8,Nutrients!$DA$9))-((IF($A8=Nutrients!$B$79,Nutrients!$DA$79,(IF($A8=Nutrients!$B$77,Nutrients!$DA$77,Nutrients!$DA$78))))))))","v":1358.2007198758938},{"$f":"IF(R5=\"\",\"\",((((R236-R297)*2000)+((SUM(R9:R229)-2000)*((IF($A8=Nutrients!$B$79,Nutrients!$DA$79,(IF($A8=Nutrients!$B$77,Nutrients!$DA$77,Nutrients!$DA$78)))))))/((IF($A7=Nutrients!$B$8,Nutrients!$DA$8,Nutrients!$DA$9))-((IF($A8=Nutrients!$B$79,Nutrients!$DA$79,(IF($A8=Nutrients!$B$77,Nutrients!$DA$77,Nutrients!$DA$78))))))))","v":1431.7032145101177},{"$f":"IF(S5=\"\",\"\",((((S236-S297)*2000)+((SUM(S9:S229)-2000)*((IF($A8=Nutrients!$B$79,Nutrients!$DA$79,(IF($A8=Nutrients!$B$77,Nutrients!$DA$77,Nutrients!$DA$78)))))))/((IF($A7=Nutrients!$B$8,Nutrients!$DA$8,Nutrients!$DA$9))-((IF($A8=Nutrients!$B$79,Nutrients!$DA$79,(IF($A8=Nutrients!$B$77,Nutrients!$DA$77,Nutrients!$DA$78))))))))","v":1503.6946817714511},{"$f":"IF(T5=\"\",\"\",((((T236-T297)*2000)+((SUM(T9:T229)-2000)*((IF($A8=Nutrients!$B$79,Nutrients!$DA$79,(IF($A8=Nutrients!$B$77,Nutrients!$DA$77,Nutrients!$DA$78)))))))/((IF($A7=Nutrients!$B$8,Nutrients!$DA$8,Nutrients!$DA$9))-((IF($A8=Nutrients!$B$79,Nutrients!$DA$79,(IF($A8=Nutrients!$B$77,Nutrients!$DA$77,Nutrients!$DA$78))))))))","v":1563.3091180956681},{"$f":"IF(U5=\"\",\"\",((((U236-U297)*2000)+((SUM(U9:U229)-2000)*((IF($A8=Nutrients!$B$79,Nutrients!$DA$79,(IF($A8=Nutrients!$B$77,Nutrients!$DA$77,Nutrients!$DA$78)))))))/((IF($A7=Nutrients!$B$8,Nutrients!$DA$8,Nutrients!$DA$9))-((IF($A8=Nutrients!$B$79,Nutrients!$DA$79,(IF($A8=Nutrients!$B$77,Nutrients!$DA$77,Nutrients!$DA$78))))))))","v":1594.9685568385996},null,{"$f":"IF(W5=\"\",\"\",((((W236-W297)*2000)+((SUM(W9:W229)-2000)*((IF($A8=Nutrients!$B$79,Nutrients!$DA$79,(IF($A8=Nutrients!$B$77,Nutrients!$DA$77,Nutrients!$DA$78)))))))/((IF($A7=Nutrients!$B$8,Nutrients!$DA$8,Nutrients!$DA$9))-((IF($A8=Nutrients!$B$79,Nutrients!$DA$79,(IF($A8=Nutrients!$B$77,Nutrients!$DA$77,Nutrients!$DA$78))))))))","v":1206.5248869225902},{"$f":"IF(X5=\"\",\"\",((((X236-X297)*2000)+((SUM(X9:X229)-2000)*((IF($A8=Nutrients!$B$79,Nutrients!$DA$79,(IF($A8=Nutrients!$B$77,Nutrients!$DA$77,Nutrients!$DA$78)))))))/((IF($A7=Nutrients!$B$8,Nutrients!$DA$8,Nutrients!$DA$9))-((IF($A8=Nutrients!$B$79,Nutrients!$DA$79,(IF($A8=Nutrients!$B$77,Nutrients!$DA$77,Nutrients!$DA$78))))))))","v":1291.953596590186},{"$f":"IF(Y5=\"\",\"\",((((Y236-Y297)*2000)+((SUM(Y9:Y229)-2000)*((IF($A8=Nutrients!$B$79,Nutrients!$DA$79,(IF($A8=Nutrients!$B$77,Nutrients!$DA$77,Nutrients!$DA$78)))))))/((IF($A7=Nutrients!$B$8,Nutrients!$DA$8,Nutrients!$DA$9))-((IF($A8=Nutrients!$B$79,Nutrients!$DA$79,(IF($A8=Nutrients!$B$77,Nutrients!$DA$77,Nutrients!$DA$78))))))))","v":1365.7184178506047},{"$f":"IF(Z5=\"\",\"\",((((Z236-Z297)*2000)+((SUM(Z9:Z229)-2000)*((IF($A8=Nutrients!$B$79,Nutrients!$DA$79,(IF($A8=Nutrients!$B$77,Nutrients!$DA$77,Nutrients!$DA$78)))))))/((IF($A7=Nutrients!$B$8,Nutrients!$DA$8,Nutrients!$DA$9))-((IF($A8=Nutrients!$B$79,Nutrients!$DA$79,(IF($A8=Nutrients!$B$77,Nutrients!$DA$77,Nutrients!$DA$78))))))))","v":1436.5672803396928},{"$f":"IF(AA5=\"\",\"\",((((AA236-AA297)*2000)+((SUM(AA9:AA229)-2000)*((IF($A8=Nutrients!$B$79,Nutrients!$DA$79,(IF($A8=Nutrients!$B$77,Nutrients!$DA$77,Nutrients!$DA$78)))))))/((IF($A7=Nutrients!$B$8,Nutrients!$DA$8,Nutrients!$DA$9))-((IF($A8=Nutrients!$B$79,Nutrients!$DA$79,(IF($A8=Nutrients!$B$77,Nutrients!$DA$77,Nutrients!$DA$78))))))))","v":1495.4927073971096},{"$f":"IF(AB5=\"\",\"\",((((AB236-AB297)*2000)+((SUM(AB9:AB229)-2000)*((IF($A8=Nutrients!$B$79,Nutrients!$DA$79,(IF($A8=Nutrients!$B$77,Nutrients!$DA$77,Nutrients!$DA$78)))))))/((IF($A7=Nutrients!$B$8,Nutrients!$DA$8,Nutrients!$DA$9))-((IF($A8=Nutrients!$B$79,Nutrients!$DA$79,(IF($A8=Nutrients!$B$77,Nutrients!$DA$77,Nutrients!$DA$78))))))))","v":1526.6596393207469},null,{"$f":"IF(AD5=\"\",\"\",((((AD236-AD297)*2000)+((SUM(AD9:AD229)-2000)*((IF($A8=Nutrients!$B$79,Nutrients!$DA$79,(IF($A8=Nutrients!$B$77,Nutrients!$DA$77,Nutrients!$DA$78)))))))/((IF($A7=Nutrients!$B$8,Nutrients!$DA$8,Nutrients!$DA$9))-((IF($A8=Nutrients!$B$79,Nutrients!$DA$79,(IF($A8=Nutrients!$B$77,Nutrients!$DA$77,Nutrients!$DA$78))))))))","v":1141.0622615472364},{"$f":"IF(AE5=\"\",\"\",((((AE236-AE297)*2000)+((SUM(AE9:AE229)-2000)*((IF($A8=Nutrients!$B$79,Nutrients!$DA$79,(IF($A8=Nutrients!$B$77,Nutrients!$DA$77,Nutrients!$DA$78)))))))/((IF($A7=Nutrients!$B$8,Nutrients!$DA$8,Nutrients!$DA$9))-((IF($A8=Nutrients!$B$79,Nutrients!$DA$79,(IF($A8=Nutrients!$B$77,Nutrients!$DA$77,Nutrients!$DA$78))))))))","v":1226.7324381429171},{"$f":"IF(AF5=\"\",\"\",((((AF236-AF297)*2000)+((SUM(AF9:AF229)-2000)*((IF($A8=Nutrients!$B$79,Nutrients!$DA$79,(IF($A8=Nutrients!$B$77,Nutrients!$DA$77,Nutrients!$DA$78)))))))/((IF($A7=Nutrients!$B$8,Nutrients!$DA$8,Nutrients!$DA$9))-((IF($A8=Nutrients!$B$79,Nutrients!$DA$79,(IF($A8=Nutrients!$B$77,Nutrients!$DA$77,Nutrients!$DA$78))))))))","v":1299.3561567844511},{"$f":"IF(AG5=\"\",\"\",((((AG236-AG297)*2000)+((SUM(AG9:AG229)-2000)*((IF($A8=Nutrients!$B$79,Nutrients!$DA$79,(IF($A8=Nutrients!$B$77,Nutrients!$DA$77,Nutrients!$DA$78)))))))/((IF($A7=Nutrients!$B$8,Nutrients!$DA$8,Nutrients!$DA$9))-((IF($A8=Nutrients!$B$79,Nutrients!$DA$79,(IF($A8=Nutrients!$B$77,Nutrients!$DA$77,Nutrients!$DA$78))))))))","v":1369.1409864771024},{"$f":"IF(AH5=\"\",\"\",((((AH236-AH297)*2000)+((SUM(AH9:AH229)-2000)*((IF($A8=Nutrients!$B$79,Nutrients!$DA$79,(IF($A8=Nutrients!$B$77,Nutrients!$DA$77,Nutrients!$DA$78)))))))/((IF($A7=Nutrients!$B$8,Nutrients!$DA$8,Nutrients!$DA$9))-((IF($A8=Nutrients!$B$79,Nutrients!$DA$79,(IF($A8=Nutrients!$B$77,Nutrients!$DA$77,Nutrients!$DA$78))))))))","v":1426.6318974749381},{"$f":"IF(AI5=\"\",\"\",((((AI236-AI297)*2000)+((SUM(AI9:AI229)-2000)*((IF($A8=Nutrients!$B$79,Nutrients!$DA$79,(IF($A8=Nutrients!$B$77,Nutrients!$DA$77,Nutrients!$DA$78)))))))/((IF($A7=Nutrients!$B$8,Nutrients!$DA$8,Nutrients!$DA$9))-((IF($A8=Nutrients!$B$79,Nutrients!$DA$79,(IF($A8=Nutrients!$B$77,Nutrients!$DA$77,Nutrients!$DA$78))))))))","v":1457.1660851196436},null,{"$f":"IF(AK5=\"\",\"\",((((AK236-AK297)*2000)+((SUM(AK9:AK229)-2000)*((IF($A8=Nutrients!$B$79,Nutrients!$DA$79,(IF($A8=Nutrients!$B$77,Nutrients!$DA$77,Nutrients!$DA$78)))))))/((IF($A7=Nutrients!$B$8,Nutrients!$DA$8,Nutrients!$DA$9))-((IF($A8=Nutrients!$B$79,Nutrients!$DA$79,(IF($A8=Nutrients!$B$77,Nutrients!$DA$77,Nutrients!$DA$78))))))))","v":1075.286042966663},{"$f":"IF(AL5=\"\",\"\",((((AL236-AL297)*2000)+((SUM(AL9:AL229)-2000)*((IF($A8=Nutrients!$B$79,Nutrients!$DA$79,(IF($A8=Nutrients!$B$77,Nutrients!$DA$77,Nutrients!$DA$78)))))))/((IF($A7=Nutrients!$B$8,Nutrients!$DA$8,Nutrients!$DA$9))-((IF($A8=Nutrients!$B$79,Nutrients!$DA$79,(IF($A8=Nutrients!$B$77,Nutrients!$DA$77,Nutrients!$DA$78))))))))","v":1161.2667010514444},{"$f":"IF(AM5=\"\",\"\",((((AM236-AM297)*2000)+((SUM(AM9:AM229)-2000)*((IF($A8=Nutrients!$B$79,Nutrients!$DA$79,(IF($A8=Nutrients!$B$77,Nutrients!$DA$77,Nutrients!$DA$78)))))))/((IF($A7=Nutrients!$B$8,Nutrients!$DA$8,Nutrients!$DA$9))-((IF($A8=Nutrients!$B$79,Nutrients!$DA$79,(IF($A8=Nutrients!$B$77,Nutrients!$DA$77,Nutrients!$DA$78))))))))","v":1232.7513450493977},{"$f":"IF(AN5=\"\",\"\",((((AN236-AN297)*2000)+((SUM(AN9:AN229)-2000)*((IF($A8=Nutrients!$B$79,Nutrients!$DA$79,(IF($A8=Nutrients!$B$77,Nutrients!$DA$77,Nutrients!$DA$78)))))))/((IF($A7=Nutrients!$B$8,Nutrients!$DA$8,Nutrients!$DA$9))-((IF($A8=Nutrients!$B$79,Nutrients!$DA$79,(IF($A8=Nutrients!$B$77,Nutrients!$DA$77,Nutrients!$DA$78))))))))","v":1300.9292062738446},{"$f":"IF(AO5=\"\",\"\",((((AO236-AO297)*2000)+((SUM(AO9:AO229)-2000)*((IF($A8=Nutrients!$B$79,Nutrients!$DA$79,(IF($A8=Nutrients!$B$77,Nutrients!$DA$77,Nutrients!$DA$78)))))))/((IF($A7=Nutrients!$B$8,Nutrients!$DA$8,Nutrients!$DA$9))-((IF($A8=Nutrients!$B$79,Nutrients!$DA$79,(IF($A8=Nutrients!$B$77,Nutrients!$DA$77,Nutrients!$DA$78))))))))","v":1357.4185263000131},{"$f":"IF(AP5=\"\",\"\",((((AP236-AP297)*2000)+((SUM(AP9:AP229)-2000)*((IF($A8=Nutrients!$B$79,Nutrients!$DA$79,(IF($A8=Nutrients!$B$77,Nutrients!$DA$77,Nutrients!$DA$78)))))))/((IF($A7=Nutrients!$B$8,Nutrients!$DA$8,Nutrients!$DA$9))-((IF($A8=Nutrients!$B$79,Nutrients!$DA$79,(IF($A8=Nutrients!$B$77,Nutrients!$DA$77,Nutrients!$DA$78))))))))","v":1387.6870420035145},null,{"$f":"IF(AR5=\"\",\"\",((((AR236-AR297)*2000)+((SUM(AR9:AR229)-2000)*((IF($A8=Nutrients!$B$79,Nutrients!$DA$79,(IF($A8=Nutrients!$B$77,Nutrients!$DA$77,Nutrients!$DA$78)))))))/((IF($A7=Nutrients!$B$8,Nutrients!$DA$8,Nutrients!$DA$9))-((IF($A8=Nutrients!$B$79,Nutrients!$DA$79,(IF($A8=Nutrients!$B$77,Nutrients!$DA$77,Nutrients!$DA$78))))))))","v":1007.3935060361147},{"$f":"IF(AS5=\"\",\"\",((((AS236-AS297)*2000)+((SUM(AS9:AS229)-2000)*((IF($A8=Nutrients!$B$79,Nutrients!$DA$79,(IF($A8=Nutrients!$B$77,Nutrients!$DA$77,Nutrients!$DA$78)))))))/((IF($A7=Nutrients!$B$8,Nutrients!$DA$8,Nutrients!$DA$9))-((IF($A8=Nutrients!$B$79,Nutrients!$DA$79,(IF($A8=Nutrients!$B$77,Nutrients!$DA$77,Nutrients!$DA$78))))))))","v":1095.6146085287703},{"$f":"IF(AT5=\"\",\"\",((((AT236-AT297)*2000)+((SUM(AT9:AT229)-2000)*((IF($A8=Nutrients!$B$79,Nutrients!$DA$79,(IF($A8=Nutrients!$B$77,Nutrients!$DA$77,Nutrients!$DA$78)))))))/((IF($A7=Nutrients!$B$8,Nutrients!$DA$8,Nutrients!$DA$9))-((IF($A8=Nutrients!$B$79,Nutrients!$DA$79,(IF($A8=Nutrients!$B$77,Nutrients!$DA$77,Nutrients!$DA$78))))))))","v":1165.760059860811},{"$f":"IF(AU5=\"\",\"\",((((AU236-AU297)*2000)+((SUM(AU9:AU229)-2000)*((IF($A8=Nutrients!$B$79,Nutrients!$DA$79,(IF($A8=Nutrients!$B$77,Nutrients!$DA$77,Nutrients!$DA$78)))))))/((IF($A7=Nutrients!$B$8,Nutrients!$DA$8,Nutrients!$DA$9))-((IF($A8=Nutrients!$B$79,Nutrients!$DA$79,(IF($A8=Nutrients!$B$77,Nutrients!$DA$77,Nutrients!$DA$78))))))))","v":1232.0675340084497},{"$f":"IF(AV5=\"\",\"\",((((AV236-AV297)*2000)+((SUM(AV9:AV229)-2000)*((IF($A8=Nutrients!$B$79,Nutrients!$DA$79,(IF($A8=Nutrients!$B$77,Nutrients!$DA$77,Nutrients!$DA$78)))))))/((IF($A7=Nutrients!$B$8,Nutrients!$DA$8,Nutrients!$DA$9))-((IF($A8=Nutrients!$B$79,Nutrients!$DA$79,(IF($A8=Nutrients!$B$77,Nutrients!$DA$77,Nutrients!$DA$78))))))))","v":1288.1995516388583},{"$f":"IF(AW5=\"\",\"\",((((AW236-AW297)*2000)+((SUM(AW9:AW229)-2000)*((IF($A8=Nutrients!$B$79,Nutrients!$DA$79,(IF($A8=Nutrients!$B$77,Nutrients!$DA$77,Nutrients!$DA$78)))))))/((IF($A7=Nutrients!$B$8,Nutrients!$DA$8,Nutrients!$DA$9))-((IF($A8=Nutrients!$B$79,Nutrients!$DA$79,(IF($A8=Nutrients!$B$77,Nutrients!$DA$77,Nutrients!$DA$78))))))))","v":1318.2058282302814}]
["Soybean Meal, Dehull, Sol Extr",{"$f":"IF(B5=\"\",\"\",2000-SUM(B9:B218)-B7)","v":532.87319453405121},452.27140406672561,384.4341908979336,317.11390951924227,260.24813699960987,228.872010022209,null,{"$f":"IF(I5=\"\",\"\",2000-SUM(I9:I220)-I7)","v":497.55297249107343},418.15442014170821,351.29581091319142,284.62766009926804,227.71165434097998,196.6727721229654,null,{"$f":"IF(P5=\"\",\"\",2000-SUM(P9:P220)-P7)","v":463.77322533306597},385.10565553948095,319.01522790503418,251.99236180042863,195.70831435907712,164.92282437352264,null,{"$f":"IF(W5=\"\",\"\",2000-SUM(W9:W220)-W7)","v":429.99646778770511},352.05724722836294,285.62583247370867,219.64976323218684,163.80472505763555,133.10530015838071,null,{"$f":"IF(AD5=\"\",\"\",2000-SUM(AD9:AD220)-AD7)","v":396.13783073101513},317.91938204718781,252.50809353986233,187.31074308115444,131.58086650197197,101.0407350024102,null,{"$f":"IF(AK5=\"\",\"\",2000-SUM(AK9:AK220)-AK7)","v":362.5691170859277},{"$f":"IF(AL5=\"\",\"\",2000-SUM(AL9:AL220)-AL7)","v":284.09213041153885},219.52568681356729,154.71964115328524,99.247007608356853,68.971576658236472,null,{"$f":"IF(AR5=\"\",\"\",2000-SUM(AR9:AR220)-AR7)","v":331.14492916159986},250.28422293421295,186.76826080078945,122.02271952862543,66.918673384905105,36.904526264494507]
[{"$f":"Nutrients!B8","v":"Corn"}]
[{"$f":"Nutrients!B9","v":"Milo"}]
[{"$f":"Nutrients!B10","v":"Alfalfa Meal"}]
[{"$f":"Nutrients!B11","v":"Bakery Meal"}]
[{"$f":"Nutrients!B12","v":"Barley"}]
[{"$f":"Nutrients!B13","v":"Barley, Hulless"}]
[{"$f":"Nutrients!B14","v":"Beans, Faba"}]
[{"$f":"Nutrients!B15","v":"Blood Meal"}]
[{"$f":"Nutrients!B16","v":"Blood Plasma"}]
[{"$f":"Nutrients!B17","v":"Brewers Grain"}]
[{"$f":"Nutrients!B18","v":"Canola, Full Fat"}]
[{"$f":"Nutrients!B19","v":"Canola Meal, Expelled"}]
[{"$f":"Nutrients!B20","v":"Canola Meal, Solvent Extracted"}]
[{"$f":"Nutrients!B21","v":"Casava Meal"}]
[{"$f":"Nutrients!B22","v":"Citrus Pulp"}]
[{"$f":"Nutrients!B23","v":"Copra Meal"}]
[{"$f":"Nutrients!B24","v":"Corn, Yellow Dent"}]
[{"$f":"Nutrients!B25","v":"Corn, Nutridense"}]
[{"$f":"Nutrients!B26","v":"Corn Bran"}]
[{"$f":"Nutrients!B27","v":"Corn DDG"}]
[{"$f":"Nutrients!B28","v":"Corn DDGS, >10% Oil"}]
[{"$f":"Nutrients!B29","v":"Corn DDGS, >6 and <9% Oil"}]
[{"$f":"Nutrients!B30","v":"Corn DDGS, <4% Oil"}]
[{"$f":"Nutrients!B31","v":"Corn HP DDG"}]
[{"$f":"Nutrients!B32","v":"Corn Germ"}]
[{"$f":"Nutrients!B33","v":"Corn Germ Meal"}]
[{"$f":"Nutrients!B34","v":"Corn Gluten Feed"}]
[{"$f":"Nutrients!B35","v":"Corn Gluten Meal"}]
[{"$f":"Nutrients!B36","v":"Corn Grits, Hominy Feed"}]
[{"$f":"Nutrients!B37","v":"Cotton Seeds, Fullfat"}]
[{"$f":"Nutrients!B38","v":"Cotton Seed Meal"}]
[{"$f":"Nutrients!B39","v":"Feather Meal"}]
[{"$f":"Nutrients!B40","v":"Fish Meal Combined"}]
[{"$f":"Nutrients!B41","v":"Flaxseed"}]
[{"$f":"Nutrients!B42","v":"Flaxseed Meal"}]
[{"$f":"Nutrients!B43","v":"Lupins"}]
[{"$f":"Nutrients!B44","v":"Meat Meal"}]
[{"$f":"Nutrients!B45","v":"Meat and Bone Meal, P >4%"}]
[{"$f":"Nutrients!B46","v":"Milk, Casein"}]
[{"$f":"Nutrients!B47","v":"Milk, Lactose"}]
[{"$f":"Nutrients!B48","v":"Milk, Skim Milk Powder"}]
[{"$f":"Nutrients!B49","v":"Milk, Whey Powder"}]
[{"$f":"Nutrients!B50","v":"Milk, Whey Permeate, 80% lactose"}]
[{"$f":"Nutrients!B51","v":"Milk, Whey Protein Concentrate"}]
[{"$f":"Nutrients!B52","v":"Millet"}]
[{"$f":"Nutrients!B53","v":"Molasses, Sugarbeet"}]
[{"$f":"Nutrients!B54","v":"Molasses, Sugarcane"}]
[{"$f":"Nutrients!B55","v":"Oats"}]
[{"$f":"Nutrients!B56","v":"Oats, Naked"}]
[{"$f":"Nutrients!B57","v":"Oat Groats"}]
[{"$f":"Nutrients!B58","v":"Peanut Meal, Expelled"}]
[{"$f":"Nutrients!B59","v":"Peanut Meal, Extracted"}]
[{"$f":"Nutrients!B60","v":"Peas, Field Peas"}]
[{"$f":"Nutrients!B61","v":"Pea Protein Concentrate"}]
[{"$f":"Nutrients!B62","v":"Potato Protein Concentrate"}]
[{"$f":"Nutrients!B63","v":"Poultry Byproduct"}]
[{"$f":"Nutrients!B64","v":"Rice"}]
[{"$f":"Nutrients!B65","v":"Rice Bran"}]
[{"$f":"Nutrients!B66","v":"Rice Bran, Defatted"}]
[{"$f":"Nutrients!B67","v":"Rice, Broken"}]
[{"$f":"Nutrients!B68","v":"Rye"}]
[{"$f":"Nutrients!B69","v":"Sesame Meal"}]
[{"$f":"Nutrients!B70","v":"Sorghum"}]
[{"$f":"Nutrients!B71","v":"Soybeans, Full Fat"}]
[{"$f":"Nutrients!B72","v":"Soybeans, High Protein, Full Fat"}]
[{"$f":"Nutrients!B73","v":"Soybeans, Low Oligosaccharide, Full Fat"}]
[{"$f":"Nutrients!B74","v":"Soybean Meal, High Protein, Expelled"}]
[{"$f":"Nutrients!B75","v":"Soybean Meal, Low Oligosacch, Expell"}]
[{"$f":"Nutrients!B76","v":"Soybean Meal, Expelled"}]
[{"$f":"Nutrients!B77","v":"Soybean Meal, Dehulled, Expelled"}]
[{"$f":"Nutrients!B78","v":"Soybean Meal, Solvent Extracted"}]
[{"$f":"Nutrients!B79","v":"Soybean Meal, Dehull, Sol Extr"}]
[{"$f":"Nutrients!B80","v":"Soybean Meal, High Prot, Dehull, Solv Extr"}]
[{"$f":"Nutrients!B81","v":"Soybean Meal, Enzyme Treated"}]
[{"$f":"Nutrients!B82","v":"Soybean Meal, Fermented"}]
[{"$f":"Nutrients!B83","v":"Soybean Hulls"}]
[{"$f":"Nutrients!B84","v":"Soy Protein Concentrate"}]
[{"$f":"Nutrients!B85","v":"Soy Protein Isolate"}]
[{"$f":"Nutrients!B86","v":"Sugar Beet Pulp"}]
[{"$f":"Nutrients!B87","v":"Sunflower, Full Fat"}]
[{"$f":"Nutrients!B88","v":"Sunflower Meal, Solvent Extracted"}]
[{"$f":"Nutrients!B89","v":"Sunflower Meal, Dehulled, Solvent Extr"}]
[{"$f":"Nutrients!B90","v":"Triticale"}]
[{"$f":"Nutrients!B91","v":"Wheat, Hard Red"}]
[{"$f":"Nutrients!B92","v":"Wheat, Soft Red"}]
[{"$f":"Nutrients!B93","v":"Wheat Bran"}]
[{"$f":"Nutrients!B94","v":"Wheat Middlings"}]
[{"$f":"Nutrients!B95","v":"Wheat Shorts"}]
[{"$f":"Nutrients!B96","v":"Wheat DDGS"}]
[{"$f":"Nutrients!B97","v":"Yeast, Brewers' Yeast"}]
[{"$f":"Nutrients!B98","v":"Yeast, Single Cell Protein"}]
[{"$f":"Nutrients!B99","v":"Beef Tallow"}]
[{"$f":"Nutrients!B100","v":"Choice White Grease"}]
[{"$f":"Nutrients!B101","v":"Poultry Fat"}]
[{"$f":"Nutrients!B102","v":"Lard"}]
[{"$f":"Nutrients!B103","v":"Restaurant Grease"}]
[{"$f":"Nutrients!B104","v":"Canola oil"}]
[{"$f":"Nutrients!B105","v":"Coconut oil"}]
[{"$f":"Nutrients!B106","v":"Corn oil"}]
[{"$f":"Nutrients!B107","v":"Palm Kernel oil"}]
[{"$f":"Nutrients!B108","v":"Soybean oil"}]
[{"$f":"Nutrients!B109","v":"Soybean Lecithin"}]
[{"$f":"Nutrients!B110","v":"Sunflower oil"}]
[{"$f":"Nutrients!B111","v":"Fat, A/V blend"}]
["Calcium carbonate",20.784768068928035,19.294892849162764,19.202445555729952,18.570305542378705,18,17.663512601760306,null,21.444409694945055,19.98553862860571,19.840873680160215,19.236124633910652,18.688958388234227,18.326770533828554,null,22.108119813047963,20.660220383685797,20.500873680160215,19.896124633910652,19.348958388234227,18.986770533828555,null,22.768119813047964,21.320220383685797,21.160873680160215,20.556124633910652,20.008958388234227,19.776948503520693,null,23.428119813047964,21.980220383685797,21.820873680160215,21.243448046973779,21.073538708709563,20.965067860594516,null,24.088119813047964,22.640220383685797,22.480873680160215,22.222553735248766,22.260768777249535,22.153269320897163,null,24.748119813047964,23.300220383685797,23.169584881524777,23.421147625303597,23.448077661856235,23.341533487872475]
[{"$f":"Nutrients!B113","v":"Calcium phosphate (tricalcium)"}]
[{"$f":"Nutrients!B114","v":"Calcium phosphate (dicalcium)"}]
["Calcium phosphate (monocalcium)",14.460830899366599,11.269382271474324,7.9992000000000001,5.7362235571478868,4.249911842640179,3.6237362366975527,null,13.135843328864507,10.032841615499999,6.6376572816597772,4.436223557147887,2.9499118426401791,2.3237362366975525,null,11.835843328864506,8.7328416154999982,5.3376572816597774,3.1362235571478871,1.6499118426401791,1.0237362366975524,null,10.535843328864505,7.4328416154999983,4.0376572816597776,1.8362235571478871,0.34991184264017905,null,null,9.2358433288645045,6.1328416154999985,2.7376572816597777,0.53622355714788705,null,null,null,7.9358433288645047,4.8328416154999987,1.4376572816597777,null,null,null,null,6.6358433288645049,3.5328416154999989,0.13765728165977764]
[{"$f":"Nutrients!B116","v":"Calcium sulfate, dihydrate"}]
[{"$f":"Nutrients!B117","v":"Limestone, ground"}]
[{"$f":"Nutrients!B118","v":"Magnesium phosphate"}]
[{"$f":"Nutrients!B119","v":"Sodium carbonate"}]
[{"$f":"Nutrients!B120","v":"Sodium bicarbonate"}]
[{"$f":"Nutrients!B121","v":"Sodium chloride"},7,7,7,7,7,7,null,7,7,7,7,7,7,null,7,7,7,7,7,7,null,7,7,7,7,7,7,null,7,7,7,7,7,7,null,7,7,7,7,7,7,null,7,7,7,7,7,7]
[{"$f":"Nutrients!B122","v":"Sodium phosphate, monobasic"}]
[{"$f":"Nutrients!B123","v":"Sodium sulfate, decahydrate"}]
["L-Lys-HCl",9,8,7,6.5209098242968704,6.5209098242968704,6.5209098242968704,null,9.43,8.43,7.43,6.9509098242968701,6.9509098242968701,6.9509098242968701,null,9.86,8.86,7.8599999999999994,7.3809098242968698,7.3809098242968698,7.3809098242968698,null,10.29,9.2899999999999991,8.2899999999999991,7.8109098242968695,7.8109098242968695,7.8109098242968695,null,10.719999999999999,9.7199999999999989,8.7199999999999989,8.2409098242968692,8.2409098242968692,8.2409098242968692,null,11.149999999999999,10.149999999999999,9.1499999999999986,8.670909824296869,8.670909824296869,8.670909824296869,null,11.579999999999998,10.579999999999998,9.5799999999999983,9.1009098242968687,9.1009098242968687,9.1009098242968687]
["DL-Met",2.7899868108851815,1.9290679550175049,1.13207908850893,0.75200939944039891,0.4642187503637718,0.41815988679019511,null,2.5299868108851813,1.6690679550175049,0.88278153865148223,0.4920093994403989,0.18898309487451329,0.16855734086394303,null,2.2799868108851813,1.4190679550175049,0.63278153865148223,0.2420093994403989,null,null,null,2.0199868108851815,1.1690679550175049,0.38278153865148223,-7.990600559601102E-3,null,null,null,1.7599868108851815,0.91906795501750493,0.13278153865148223,null,null,null,null,1.5199868108851815,0.65906795501750493,null,null,null,null,null,1.2599868108851815,0.39906795501750492]
["L-Thr",3.311714981497218,2.6822978939662598,2.0730406828281205,1.9101926587313733,1.8273540665098165,1.8754623140236151,null,3.1748372375899616,2.5422978939662597,1.9406205514746149,1.7602215425154948,1.6537673570424269,1.7412122000761558,null,3.0403521048893358,2.4143454920119956,1.8082894669109586,1.6260816125761768,1.5209850918036218,1.6079057932299738,null,2.9103521048893359,2.2843454920119957,1.6782894669109587,1.4960816125761767,1.3909850918036217,1.477905793229974,null,2.780352104889336,2.1543454920119958,1.5482894669109588,1.3660816125761768,1.2609850918036218,1.3479057932299741,null,2.6503521048893361,2.0243454920119959,1.4182894669109589,1.2360816125761769,1.1309850918036219,1.2179057932299742,null,2.5203521048893363,1.894345492011996,1.288289466910959,1.106081612576177,1.0009850918036221,1.0879057932299743]
["L-Trp",0.64715411983197724,0.56508100549263673,0.47170370784158877,0.46467722263870981,0.5242318057378007,0.53625865021646124,null,0.71347901910320866,0.6303749007613858,0.53614770830416902,0.52160740074835188,0.57180239827998214,0.59929639982485594,null,0.77844506115054912,0.69469309080141695,0.59614770830416908,0.58160740074835182,0.63180239827998208,0.65929639982485599,null,0.83844506115054918,0.75469309080141689,0.65614770830416913,0.64160740074835187,0.69180239827998213,0.71929639982485605,null,0.90844506115054924,0.82469309080141695,0.72614770830416919,0.71160740074835194,0.7618023982799822,0.78929639982485611,null,0.96844506115054929,0.884693090801417,0.78614770830416925,0.77160740074835199,0.82180239827998225,0.84929639982485616,null,1.0284450611505493,0.94469309080141706,0.8461477083041693,0.83160740074835204,0.8818023982799823,0.90929639982485622]
["L-Val",1.4782324055847444,0.90319623176357955,0.3833689639367559,0.26954963031428469,0.33319678683181891,0.31598976510963955,null,1.1534631270189402,0.62077568050685106,0.2472380429409072,0.10195907802470887,0.14083246142135958,0.17761691396538071,null,0.87755052921916477,0.46245604760860204,9.5807909161483171E-2,null,null,null,null,0.66589817086726644,0.2879876444344644,null,null,null,null,null,0.51716060291089117,0.16701127287845019,null,null,null,null,null,0.38209282857183691,null,null,null,null,null,null,0.23881768344794968]
[{"$f":"Nutrients!B129","v":"L-Ile"}]
[{"$f":"Nutrients!B130","v":"Methionine hydroxy analog"}]
[{"$f":"Nutrients!B131","v":"Glutamine"}]
[{"$f":"Nutrients!B132","v":"Glutamic acid"}]
[{"$f":"Nutrients!B133","v":"Biolys"}]
[{"$f":"Nutrients!B134","v":"Liquid lysine 60%"}]
[{"$f":"Nutrients!B135","v":"MHA dry"}]
[{"$f":"Nutrients!B136","v":"Paylean, 9 g/lb"}]
[{"$f":"Nutrients!B137","v":"Tribasic copper chloride"}]
[{"$f":"Nutrients!B138","v":"2018 Starter base mix"}]
[{"$f":"Nutrients!B139","v":"2018 Grow-finish base mix"}]
[{"$f":"Nutrients!B140","v":"Developer base mix"}]
[{"$f":"Nutrients!B141","v":"2018 Sow base mix"}]
[{"$f":"Nutrients!B142","v":"Vitamin premix with phytase"}]
[{"$f":"Nutrients!B143","v":"Trace mineral premix"},3,3,2.5,2,1.5,1.5,null,3,3,2.5,2,1.5,1.5,null,3,3,2.5,2,1.5,1.5,null,3,3,2.5,2,1.5,1.5,null,3,3,2.5,2,1.5,1.5,null,3,3,2.5,2,1.5,1.5,null,3,3,2.5,2,1.5,1.5]
[{"$f":"Nutrients!B144","v":"Sow add pack"}]
[{"$f":"Nutrients!B145","v":"Vitamin premix without phytase"},3,3,2.5,2,1.5,1.5,null,3,3,2.5,2,1.5,1.5,null,3,3,2.5,2,1.5,1.5,null,3,3,2.5,2,1.5,1.5,null,3,3,2.5,2,1.5,1.5,null,3,3,2.5,2,1.5,1.5,null,3,3,2.5,2,1.5,1.5]
[{"$f":"Nutrients!B146","v":"GF DDGS Base Mix"}]
[{"$f":"Nutrients!B147","v":"GF synthetics Base Mix"}]
[{"$f":"Nutrients!B148","v":"Choline chloride 60%"}]
[{"$f":"Nutrients!B149","v":"Natuphos 600"}]
[{"$f":"Nutrients!B150","v":"Natuphos 1200"}]
[{"$f":"Nutrients!B151","v":"Optiphos 2000"}]
[{"$f":"Nutrients!B152","v":"Phyzyme 1200"}]
[{"$f":"Nutrients!B153","v":"Phyzyme 5000"}]
[{"$f":"Nutrients!B154","v":"Ronozyme Hiphos GT (10,000)"}]
[{"$f":"Nutrients!B155","v":"Ronozyme Hiphos M (50,000)"}]
[{"$f":"Nutrients!B156","v":"Ronozyme HiPhos 2700"},0.45,0.45,0.45,0.45,0.45,0.45,null,0.45,0.45,0.45,0.45,0.45,0.45,null,0.45,0.45,0.45,0.45,0.45,0.45,null,0.45,0.45,0.45,0.45,0.45,0.45,null,0.45,0.45,0.45,0.45,0.45,0.45,null,0.45,0.45,0.45,0.45,0.45,0.45,null,0.45,0.45,0.45,0.45,0.45,0.45]
[{"$f":"Nutrients!B157","v":"Zinc oxide"}]
[{"$f":"Nutrients!B158","v":"Copper sulfate"}]
[{"$f":"Nutrients!B159","v":"Potassium chloride"}]
[{"$f":"Nutrients!B160","v":"Calcium chloride"}]
[{"$f":"Nutrients!B161","v":"Acidifier"}]
[{"$f":"Nutrients!B162","v":"Vitamin E, 20,000 IU"}]
[{"$f":"Nutrients!B163","v":"Other ingredient"}]
[{"$f":"Nutrients!B164","v":"DPS 50"}]
[{"$f":"Nutrients!B165","v":"PEP2+"}]
[{"$f":"Nutrients!B166","v":"PEP NS"}]
[{"$f":"Nutrients!B167","v":"Vitamin premix (2x) with phytase"}]
[{"$f":"Nutrients!B168","v":"Vitamin premix (2x) without phytase"}]
[{"$f":"Nutrients!B169","v":"Corn DDGS, 10.5% Oil"}]
[{"$f":"Nutrients!B170","v":"Corn DDGS, 7.5% Oil"}]
[{"$f":"Nutrients!B171","v":"Corn DDGS, 4.5% Oil"}]
[{"$f":"Nutrients!B172","v":"MEPRO Hubbard"}]
[{"$f":"Nutrients!B173","v":"HP 300 Apr 2022 loadings"}]
[{"$f":"Nutrients!B174","v":"Glycine"}]
[{"$f":"Nutrients!B175","v":"Phase 2 supplement 2018"}]
[{"$f":"Nutrients!B176","v":"Fermex 200"}]
[{"$f":"Nutrients!B177","v":"Soybean meal with 88% NE of corn"}]
[{"$f":"Nutrients!B178","v":"Blue Dye NFP"}]
[{"$f":"Nutrients!B179","v":"HP 300 2022 NFP"}]
[{"$f":"Nutrients!B180","v":"AX3 Digest NFP"}]
[{"$f":"Nutrients!B181","v":"Phase 2 supplement 2018 NFP"}]
[{"$f":"Nutrients!B182","v":"Femex 200 NFP"}]
[{"$f":"Nutrients!B183","v":"NFP Soybean meal w/88% NE of corn "}]
[{"$f":"Nutrients!B184","v":"AV-E Digest NFP"}]
[{"$f":"Nutrients!B185","v":"QFP Cereal Blend NFP"}]
[{"$f":"Nutrients!B186","v":"FXP Ani-Tek NFP"}]
[{"$f":"Nutrients!B187","v":"NFP VTM Grower (2021)"}]
[{"$f":"Nutrients!B188","v":"NFP VTM Sow (2021)"}]
[{"$f":"Nutrients!B189","v":"VevoVitall NFP"}]
[{"$f":"Nutrients!B190","v":"MEPRO NFP"}]
[{"$f":"Nutrients!B191","v":"AlphaGal 280 P NFP"}]
[{"$f":"Nutrients!B192","v":"NFP Custom Manganese "}]
[{"$f":"Nutrients!B193","v":"Fat Build R2 All Veg 4000 NFP"}]
[{"$f":"Nutrients!B194","v":"LipoVital GL 90 NFP"}]
[{"$f":"Nutrients!B195","v":"NFP Custom Zinc"}]
[{"$f":"Nutrients!B196","v":"THRPRO-L Threonine 80% NFP"}]
[{"$f":"Nutrients!B197","v":"Copper Chloride Intellibond TBCC NFP"}]
[{"$f":"Nutrients!B198","v":"DDGS 7.5% Oil Green Plains NFP"}]
[{"$f":"Nutrients!B199","v":"NHF GF VTM 2#"}]
[{"$f":"Nutrients!B200","v":"Hubbard Vit Premix "}]
[{"$f":"Nutrients!B201","v":"Hubbard TMP"}]
[{"$f":"Nutrients!B202","v":"Inorganic Se 600 ppm Hubbard"}]
[{"$f":"Nutrients!B203","v":"Quantum Blue  5G Hubbard"}]
[{"$f":"Nutrients!B204","v":"TASA Prime meal Hubbard"}]
[{"$f":"Nutrients!B205","v":"TASA Swine Hubbard"}]
[{"$f":"Nutrients!B206","v":"TASA fish solubles Hubbard"}]
[{"$f":"Nutrients!B207","v":"Mepro + TASA additive Hubbard"}]
[{"$f":"Nutrients!B208","v":"TASA Prime + TASA additive Hubbard"}]
[{"$f":"Nutrients!B209","v":"NHF SOW VTM 4# 2022"}]
[{"$f":"Nutrients!B210","v":"ThrPro "}]
[{"$f":"Nutrients!B211","v":"NHF Optiphos Plus 2500 G"}]
[{"$f":"Nutrients!B212","v":"NHF Corn DDGS, Valero, Aurora"}]
[{"$f":"Nutrients!B213","v":"HP 300 Hubbard"}]
[{"$f":"Nutrients!B214","v":"NHF Corn DDGS, Illuminate for Aurora"}]
[{"$f":"Nutrients!B215","v":"NFP Corn DDGS, MO analysis"}]
[{"$f":"Nutrients!B216","v":"NFP Smizyme 2500"}]
[{"$f":"Nutrients!B217","v":"NHF HP300 2022 loadings"}]
[{"$f":"Nutrients!B218","v":"NHF Liquid Lys 55%"}]
[{"$f":"Nutrients!B219","v":"Corn DDGS with varying energy"},null,null,null,null,null,null,null,100,100,100,100,100,100,null,200,200,200,200,200,200,null,300,300,300,300,300,300,null,400,400,400,400,400,400,null,500,500,500,500,500,500,null,600,600,600,600,600,600]
[{"$f":"Nutrients!B220","v":"Other ingredient"}]
[{"$f":"Nutrients!B221","v":"Other ingredient"}]
[{"$f":"Nutrients!B222","v":"Other ingredient"}]
[{"$f":"Nutrients!B223","v":"Other ingredient"}]
[{"$f":"Nutrients!B224","v":"Other ingredient"}]
[{"$f":"Nutrients!B225","v":"Other ingredient"}]
[{"$f":"Nutrients!B226","v":"Other ingredient"}]
[{"$f":"Nutrients!B227","v":"Other ingredient"}]
[{"$f":"Nutrients!B228","v":"Other ingredient"}]
["TOTAL",{"$f":"SUM(B7:B229)","v":2000.0000000000002},2000,2000.0000000000002,2000.0000000000002,2000,2000.0000000000002,null,{"$f":"SUM(I7:I229)","v":2000.0000000000005},2000,2000.0000000000002,1999.9999999999998,1999.9999999999995,2000.0000000000002,null,{"$f":"SUM(P7:P229)","v":2000},2000,2000,2000,2000,2000,null,{"$f":"SUM(W7:W229)","v":2000.0000000000002},2000,1999.9999999999998,2000.0000000000002,2000.0000000000005,2000,null,{"$f":"SUM(AD7:AD229)","v":2000.0000000000002},2000,2000,2000,2000.0000000000002,2000.0000000000002,null,{"$f":"SUM(AK7:AK229)","v":2000.0000000000002},{"$f":"SUM(AL7:AL229)","v":2000},2000.0000000000002,1999.9999999999998,2000,1999.9999999999998,null,{"$f":"SUM(AR7:AR229)","v":1999.9999999999998},2000,2000.0000000000002,2000.0000000000002,2000,2000.0000000000002]
[]
["Required SID Lys:NE Ratio",{"$f":"  0.0000415*((B5+B6)/2)^2 - 0.0236*((B5+B6)/2) + 6.096","v":4.6920843750000003},4.1130093749999999,3.6054000000000004,3.1925999999999997,2.9125999999999999,2.7606093749999996,null,{"$f":"  0.0000415*((I5+I6)/2)^2 - 0.0236*((I5+I6)/2) + 6.096","v":4.6920843750000003},4.1130093749999999,3.6054000000000004,3.1925999999999997,2.9125999999999999,2.7606093749999996,null,{"$f":"  0.0000415*((P5+P6)/2)^2 - 0.0236*((P5+P6)/2) + 6.096","v":4.6920843750000003},4.1130093749999999,3.6054000000000004,3.1925999999999997,2.9125999999999999,2.7606093749999996,null,{"$f":"  0.0000415*((W5+W6)/2)^2 - 0.0236*((W5+W6)/2) + 6.096","v":4.6920843750000003},4.1130093749999999,3.6054000000000004,3.1925999999999997,2.9125999999999999,2.7606093749999996,null,{"$f":"  0.0000415*((AD5+AD6)/2)^2 - 0.0236*((AD5+AD6)/2) + 6.096","v":4.6920843750000003},4.1130093749999999,3.6054000000000004,3.1925999999999997,2.9125999999999999,2.7606093749999996,null,{"$f":"  0.0000415*((AK5+AK6)/2)^2 - 0.0236*((AK5+AK6)/2) + 6.096","v":4.6920843750000003},{"$f":"  0.0000415*((AL5+AL6)/2)^2 - 0.0236*((AL5+AL6)/2) + 6.096","v":4.1130093749999999},3.6054000000000004,3.1925999999999997,2.9125999999999999,2.7606093749999996,null,{"$f":"  0.0000415*((AR5+AR6)/2)^2 - 0.0236*((AR5+AR6)/2) + 6.096","v":4.6920843750000003},4.1130093749999999,3.6054000000000004,3.1925999999999997,2.9125999999999999,2.7606093749999996]
["Calculated SID Lysine Required, %",{"$f":"IF(B232=\"\",\"\",B250*2.2046*B232/10000)","v":1.1933289345334586},1.0523868858191809,0.92731901794478477,0.82549698291879381,0.75646982136751284,0.71849863102392231,null,{"$f":"IF(I232=\"\",\"\",I250*2.2046*I232/10000)","v":1.1833022056984819},1.0434796386124037,0.91959577411897075,0.81857817798280041,0.75013775739994371,0.71251749730524427,null,{"$f":"IF(P232=\"\",\"\",P250*2.2046*P232/10000)","v":1.1731825649149317},1.0346027980460959,0.91178474561411771,0.81168958667566926,0.743832413489533,0.70652755222647978,null,{"$f":"IF(W232=\"\",\"\",W250*2.2046*W232/10000)","v":1.1630843915073792},1.0257265277242038,0.90404382385441473,0.80481560797029361,0.73759748334783681,0.70046490760455016,null,{"$f":"IF(AD232=\"\",\"\",AD250*2.2046*AD232/10000)","v":1.1530207094405109},1.0169326530509482,0.89632218371363492,0.79799343812895596,0.73085095236158992,0.6938899445022374,null,{"$f":"IF(AK232=\"\",\"\",AK250*2.2046*AK232/10000)","v":1.1429460765890198},1.0080987078638128,0.88862113939206977,0.79072656035556588,0.72392174711107149,0.68731221084132166,null,{"$f":"IF(AR232=\"\",\"\",AR250*2.2046*AR232/10000)","v":1.1327269621982992},0.99932050791454563,0.88093044765470518,0.78314186135979102,0.71699229621355876,0.68073437630821132]
[]
["SID amino acids, %"]
["  Lys",1.1861119527718891,1.0487231011263827,0.92692570857780632,0.82606841929078001,0.75673053182615369,0.71839352504319809,null,1.176359663632115,1.0404298354051722,0.9198321876360902,0.81977155477303221,0.75037675735226672,0.71244271689720895,null,1.1684857665329609,1.0334387360651245,0.91378340553869708,0.81328394410468086,0.74466093217492246,0.70703878284967125,null,1.1606108994103048,1.0264515137337917,0.90637130018555012,0.80714498863815465,0.73903650635744667,0.70148216508308492,null,1.1526290098320124,1.0181241605607756,0.89928210531326824,0.80098309911292542,0.73289361495012595,0.69549056609603865,null,1.145,1.0101833240253375,0.89234873408789994,0.79441650998473456,0.72657321918177553,0.6894942592368507,null,1.1399999999999999,1.0022507297378567,0.8856759586639249,0.78765042013618369,0.720259582186488,0.68350052818418994]
["  Ile:Lys",{"$f":"(SUMPRODUCT(B$9:B$229,Nutrients!$CY$8:$CY$228)+(IF($A$7=Nutrients!$B$8,Nutrients!$CY$8,Nutrients!$CY$9)*B$7)+(((IF($A$8=Nutrients!$B$79,Nutrients!$CY$79,(IF($A$8=Nutrients!$B$77,Nutrients!$CY$77,Nutrients!$CY$78)))))*B$8))/2000/B$236*100","v":56.344881641231822},{"$f":"(SUMPRODUCT(C$9:C$229,Nutrients!$CY$8:$CY$228)+(IF($A$7=Nutrients!$B$8,Nutrients!$CY$8,Nutrients!$CY$9)*C$7)+(((IF($A$8=Nutrients!$B$79,Nutrients!$CY$79,(IF($A$8=Nutrients!$B$77,Nutrients!$CY$77,Nutrients!$CY$78)))))*C$8))/2000/C$236*100","v":57.375308930399996},{"$f":"(SUMPRODUCT(D$9:D$229,Nutrients!$CY$8:$CY$228)+(IF($A$7=Nutrients!$B$8,Nutrients!$CY$8,Nutrients!$CY$9)*D$7)+(((IF($A$8=Nutrients!$B$79,Nutrients!$CY$79,(IF($A$8=Nutrients!$B$77,Nutrients!$CY$77,Nutrients!$CY$78)))))*D$8))/2000/D$236*100","v":58.876554056537131},{"$f":"(SUMPRODUCT(E$9:E$229,Nutrients!$CY$8:$CY$228)+(IF($A$7=Nutrients!$B$8,Nutrients!$CY$8,Nutrients!$CY$9)*E$7)+(((IF($A$8=Nutrients!$B$79,Nutrients!$CY$79,(IF($A$8=Nutrients!$B$77,Nutrients!$CY$77,Nutrients!$CY$78)))))*E$8))/2000/E$236*100","v":59.309801434553123},{"$f":"(SUMPRODUCT(F$9:F$229,Nutrients!$CY$8:$CY$228)+(IF($A$7=Nutrients!$B$8,Nutrients!$CY$8,Nutrients!$CY$9)*F$7)+(((IF($A$8=Nutrients!$B$79,Nutrients!$CY$79,(IF($A$8=Nutrients!$B$77,Nutrients!$CY$77,Nutrients!$CY$78)))))*F$8))/2000/F$236*100","v":58.50084547001024},{"$f":"(SUMPRODUCT(G$9:G$229,Nutrients!$CY$8:$CY$228)+(IF($A$7=Nutrients!$B$8,Nutrients!$CY$8,Nutrients!$CY$9)*G$7)+(((IF($A$8=Nutrients!$B$79,Nutrients!$CY$79,(IF($A$8=Nutrients!$B$77,Nutrients!$CY$77,Nutrients!$CY$78)))))*G$8))/2000/G$236*100","v":57.980356352367814},null,{"$f":"(SUMPRODUCT(I$9:I$229,Nutrients!$CY$8:$CY$228)+(IF($A$7=Nutrients!$B$8,Nutrients!$CY$8,Nutrients!$CY$9)*I$7)+(((IF($A$8=Nutrients!$B$79,Nutrients!$CY$79,(IF($A$8=Nutrients!$B$77,Nutrients!$CY$77,Nutrients!$CY$78)))))*I$8))/2000/I$236*100","v":56.482295270436168},{"$f":"(SUMPRODUCT(J$9:J$229,Nutrients!$CY$8:$CY$228)+(IF($A$7=Nutrients!$B$8,Nutrients!$CY$8,Nutrients!$CY$9)*J$7)+(((IF($A$8=Nutrients!$B$79,Nutrients!$CY$79,(IF($A$8=Nutrients!$B$77,Nutrients!$CY$77,Nutrients!$CY$78)))))*J$8))/2000/J$236*100","v":57.55499078871258},{"$f":"(SUMPRODUCT(K$9:K$229,Nutrients!$CY$8:$CY$228)+(IF($A$7=Nutrients!$B$8,Nutrients!$CY$8,Nutrients!$CY$9)*K$7)+(((IF($A$8=Nutrients!$B$79,Nutrients!$CY$79,(IF($A$8=Nutrients!$B$77,Nutrients!$CY$77,Nutrients!$CY$78)))))*K$8))/2000/K$236*100","v":59.105805422878213},{"$f":"(SUMPRODUCT(L$9:L$229,Nutrients!$CY$8:$CY$228)+(IF($A$7=Nutrients!$B$8,Nutrients!$CY$8,Nutrients!$CY$9)*L$7)+(((IF($A$8=Nutrients!$B$79,Nutrients!$CY$79,(IF($A$8=Nutrients!$B$77,Nutrients!$CY$77,Nutrients!$CY$78)))))*L$8))/2000/L$236*100","v":59.579465879893903},{"$f":"(SUMPRODUCT(M$9:M$229,Nutrients!$CY$8:$CY$228)+(IF($A$7=Nutrients!$B$8,Nutrients!$CY$8,Nutrients!$CY$9)*M$7)+(((IF($A$8=Nutrients!$B$79,Nutrients!$CY$79,(IF($A$8=Nutrients!$B$77,Nutrients!$CY$77,Nutrients!$CY$78)))))*M$8))/2000/M$236*100","v":58.788252861538439},{"$f":"(SUMPRODUCT(N$9:N$229,Nutrients!$CY$8:$CY$228)+(IF($A$7=Nutrients!$B$8,Nutrients!$CY$8,Nutrients!$CY$9)*N$7)+(((IF($A$8=Nutrients!$B$79,Nutrients!$CY$79,(IF($A$8=Nutrients!$B$77,Nutrients!$CY$77,Nutrients!$CY$78)))))*N$8))/2000/N$236*100","v":58.283522729320701},null,{"$f":"(SUMPRODUCT(P$9:P$229,Nutrients!$CY$8:$CY$228)+(IF($A$7=Nutrients!$B$8,Nutrients!$CY$8,Nutrients!$CY$9)*P$7)+(((IF($A$8=Nutrients!$B$79,Nutrients!$CY$79,(IF($A$8=Nutrients!$B$77,Nutrients!$CY$77,Nutrients!$CY$78)))))*P$8))/2000/P$236*100","v":56.640522033074902},{"$f":"(SUMPRODUCT(Q$9:Q$229,Nutrients!$CY$8:$CY$228)+(IF($A$7=Nutrients!$B$8,Nutrients!$CY$8,Nutrients!$CY$9)*Q$7)+(((IF($A$8=Nutrients!$B$79,Nutrients!$CY$79,(IF($A$8=Nutrients!$B$77,Nutrients!$CY$77,Nutrients!$CY$78)))))*Q$8))/2000/Q$236*100","v":57.750647192151561},{"$f":"(SUMPRODUCT(R$9:R$229,Nutrients!$CY$8:$CY$228)+(IF($A$7=Nutrients!$B$8,Nutrients!$CY$8,Nutrients!$CY$9)*R$7)+(((IF($A$8=Nutrients!$B$79,Nutrients!$CY$79,(IF($A$8=Nutrients!$B$77,Nutrients!$CY$77,Nutrients!$CY$78)))))*R$8))/2000/R$236*100","v":59.348607916557242},{"$f":"(SUMPRODUCT(S$9:S$229,Nutrients!$CY$8:$CY$228)+(IF($A$7=Nutrients!$B$8,Nutrients!$CY$8,Nutrients!$CY$9)*S$7)+(((IF($A$8=Nutrients!$B$79,Nutrients!$CY$79,(IF($A$8=Nutrients!$B$77,Nutrients!$CY$77,Nutrients!$CY$78)))))*S$8))/2000/S$236*100","v":59.850742061035753},{"$f":"(SUMPRODUCT(T$9:T$229,Nutrients!$CY$8:$CY$228)+(IF($A$7=Nutrients!$B$8,Nutrients!$CY$8,Nutrients!$CY$9)*T$7)+(((IF($A$8=Nutrients!$B$79,Nutrients!$CY$79,(IF($A$8=Nutrients!$B$77,Nutrients!$CY$77,Nutrients!$CY$78)))))*T$8))/2000/T$236*100","v":59.087417576268756},{"$f":"(SUMPRODUCT(U$9:U$229,Nutrients!$CY$8:$CY$228)+(IF($A$7=Nutrients!$B$8,Nutrients!$CY$8,Nutrients!$CY$9)*U$7)+(((IF($A$8=Nutrients!$B$79,Nutrients!$CY$79,(IF($A$8=Nutrients!$B$77,Nutrients!$CY$77,Nutrients!$CY$78)))))*U$8))/2000/U$236*100","v":58.599104607260024},null,{"$f":"(SUMPRODUCT(W$9:W$229,Nutrients!$CY$8:$CY$228)+(IF($A$7=Nutrients!$B$8,Nutrients!$CY$8,Nutrients!$CY$9)*W$7)+(((IF($A$8=Nutrients!$B$79,Nutrients!$CY$79,(IF($A$8=Nutrients!$B$77,Nutrients!$CY$77,Nutrients!$CY$78)))))*W$8))/2000/W$236*100","v":56.800663652900006},{"$f":"(SUMPRODUCT(X$9:X$229,Nutrients!$CY$8:$CY$228)+(IF($A$7=Nutrients!$B$8,Nutrients!$CY$8,Nutrients!$CY$9)*X$7)+(((IF($A$8=Nutrients!$B$79,Nutrients!$CY$79,(IF($A$8=Nutrients!$B$77,Nutrients!$CY$77,Nutrients!$CY$78)))))*X$8))/2000/X$236*100","v":57.949195014620926},{"$f":"(SUMPRODUCT(Y$9:Y$229,Nutrients!$CY$8:$CY$228)+(IF($A$7=Nutrients!$B$8,Nutrients!$CY$8,Nutrients!$CY$9)*Y$7)+(((IF($A$8=Nutrients!$B$79,Nutrients!$CY$79,(IF($A$8=Nutrients!$B$77,Nutrients!$CY$77,Nutrients!$CY$78)))))*Y$8))/2000/Y$236*100","v":59.581096016986557},{"$f":"(SUMPRODUCT(Z$9:Z$229,Nutrients!$CY$8:$CY$228)+(IF($A$7=Nutrients!$B$8,Nutrients!$CY$8,Nutrients!$CY$9)*Z$7)+(((IF($A$8=Nutrients!$B$79,Nutrients!$CY$79,(IF($A$8=Nutrients!$B$77,Nutrients!$CY$77,Nutrients!$CY$78)))))*Z$8))/2000/Z$236*100","v":60.129270470708853},{"$f":"(SUMPRODUCT(AA$9:AA$229,Nutrients!$CY$8:$CY$228)+(IF($A$7=Nutrients!$B$8,Nutrients!$CY$8,Nutrients!$CY$9)*AA$7)+(((IF($A$8=Nutrients!$B$79,Nutrients!$CY$79,(IF($A$8=Nutrients!$B$77,Nutrients!$CY$77,Nutrients!$CY$78)))))*AA$8))/2000/AA$236*100","v":59.390002889693108},{"$f":"(SUMPRODUCT(AB$9:AB$229,Nutrients!$CY$8:$CY$228)+(IF($A$7=Nutrients!$B$8,Nutrients!$CY$8,Nutrients!$CY$9)*AB$7)+(((IF($A$8=Nutrients!$B$79,Nutrients!$CY$79,(IF($A$8=Nutrients!$B$77,Nutrients!$CY$77,Nutrients!$CY$78)))))*AB$8))/2000/AB$236*100","v":58.9119331189127},null,{"$f":"(SUMPRODUCT(AD$9:AD$229,Nutrients!$CY$8:$CY$228)+(IF($A$7=Nutrients!$B$8,Nutrients!$CY$8,Nutrients!$CY$9)*AD$7)+(((IF($A$8=Nutrients!$B$79,Nutrients!$CY$79,(IF($A$8=Nutrients!$B$77,Nutrients!$CY$77,Nutrients!$CY$78)))))*AD$8))/2000/AD$236*100","v":56.961606746862714},{"$f":"(SUMPRODUCT(AE$9:AE$229,Nutrients!$CY$8:$CY$228)+(IF($A$7=Nutrients!$B$8,Nutrients!$CY$8,Nutrients!$CY$9)*AE$7)+(((IF($A$8=Nutrients!$B$79,Nutrients!$CY$79,(IF($A$8=Nutrients!$B$77,Nutrients!$CY$77,Nutrients!$CY$78)))))*AE$8))/2000/AE$236*100","v":58.136672750829099},{"$f":"(SUMPRODUCT(AF$9:AF$229,Nutrients!$CY$8:$CY$228)+(IF($A$7=Nutrients!$B$8,Nutrients!$CY$8,Nutrients!$CY$9)*AF$7)+(((IF($A$8=Nutrients!$B$79,Nutrients!$CY$79,(IF($A$8=Nutrients!$B$77,Nutrients!$CY$77,Nutrients!$CY$78)))))*AF$8))/2000/AF$236*100","v":59.819887563477003},{"$f":"(SUMPRODUCT(AG$9:AG$229,Nutrients!$CY$8:$CY$228)+(IF($A$7=Nutrients!$B$8,Nutrients!$CY$8,Nutrients!$CY$9)*AG$7)+(((IF($A$8=Nutrients!$B$79,Nutrients!$CY$79,(IF($A$8=Nutrients!$B$77,Nutrients!$CY$77,Nutrients!$CY$78)))))*AG$8))/2000/AG$236*100","v":60.409939538004721},{"$f":"(SUMPRODUCT(AH$9:AH$229,Nutrients!$CY$8:$CY$228)+(IF($A$7=Nutrients!$B$8,Nutrients!$CY$8,Nutrients!$CY$9)*AH$7)+(((IF($A$8=Nutrients!$B$79,Nutrients!$CY$79,(IF($A$8=Nutrients!$B$77,Nutrients!$CY$77,Nutrients!$CY$78)))))*AH$8))/2000/AH$236*100","v":59.68148610896499},{"$f":"(SUMPRODUCT(AI$9:AI$229,Nutrients!$CY$8:$CY$228)+(IF($A$7=Nutrients!$B$8,Nutrients!$CY$8,Nutrients!$CY$9)*AI$7)+(((IF($A$8=Nutrients!$B$79,Nutrients!$CY$79,(IF($A$8=Nutrients!$B$77,Nutrients!$CY$77,Nutrients!$CY$78)))))*AI$8))/2000/AI$236*100","v":59.213421229593287},null,{"$f":"(SUMPRODUCT(AK$9:AK$229,Nutrients!$CY$8:$CY$228)+(IF($A$7=Nutrients!$B$8,Nutrients!$CY$8,Nutrients!$CY$9)*AK$7)+(((IF($A$8=Nutrients!$B$79,Nutrients!$CY$79,(IF($A$8=Nutrients!$B$77,Nutrients!$CY$77,Nutrients!$CY$78)))))*AK$8))/2000/AK$236*100","v":57.128157898122431},{"$f":"(SUMPRODUCT(AL$9:AL$229,Nutrients!$CY$8:$CY$228)+(IF($A$7=Nutrients!$B$8,Nutrients!$CY$8,Nutrients!$CY$9)*AL$7)+(((IF($A$8=Nutrients!$B$79,Nutrients!$CY$79,(IF($A$8=Nutrients!$B$77,Nutrients!$CY$77,Nutrients!$CY$78)))))*AL$8))/2000/AL$236*100","v":58.331427480269369},{"$f":"(SUMPRODUCT(AM$9:AM$229,Nutrients!$CY$8:$CY$228)+(IF($A$7=Nutrients!$B$8,Nutrients!$CY$8,Nutrients!$CY$9)*AM$7)+(((IF($A$8=Nutrients!$B$79,Nutrients!$CY$79,(IF($A$8=Nutrients!$B$77,Nutrients!$CY$77,Nutrients!$CY$78)))))*AM$8))/2000/AM$236*100","v":60.063307705822922},{"$f":"(SUMPRODUCT(AN$9:AN$229,Nutrients!$CY$8:$CY$228)+(IF($A$7=Nutrients!$B$8,Nutrients!$CY$8,Nutrients!$CY$9)*AN$7)+(((IF($A$8=Nutrients!$B$79,Nutrients!$CY$79,(IF($A$8=Nutrients!$B$77,Nutrients!$CY$77,Nutrients!$CY$78)))))*AN$8))/2000/AN$236*100","v":60.684311200905746},{"$f":"(SUMPRODUCT(AO$9:AO$229,Nutrients!$CY$8:$CY$228)+(IF($A$7=Nutrients!$B$8,Nutrients!$CY$8,Nutrients!$CY$9)*AO$7)+(((IF($A$8=Nutrients!$B$79,Nutrients!$CY$79,(IF($A$8=Nutrients!$B$77,Nutrients!$CY$77,Nutrients!$CY$78)))))*AO$8))/2000/AO$236*100","v":59.972561699341185},{"$f":"(SUMPRODUCT(AP$9:AP$229,Nutrients!$CY$8:$CY$228)+(IF($A$7=Nutrients!$B$8,Nutrients!$CY$8,Nutrients!$CY$9)*AP$7)+(((IF($A$8=Nutrients!$B$79,Nutrients!$CY$79,(IF($A$8=Nutrients!$B$77,Nutrients!$CY$77,Nutrients!$CY$78)))))*AP$8))/2000/AP$236*100","v":59.520162695461707},null,{"$f":"(SUMPRODUCT(AR$9:AR$229,Nutrients!$CY$8:$CY$228)+(IF($A$7=Nutrients!$B$8,Nutrients!$CY$8,Nutrients!$CY$9)*AR$7)+(((IF($A$8=Nutrients!$B$79,Nutrients!$CY$79,(IF($A$8=Nutrients!$B$77,Nutrients!$CY$77,Nutrients!$CY$78)))))*AR$8))/2000/AR$236*100","v":57.322639520485744},{"$f":"(SUMPRODUCT(AS$9:AS$229,Nutrients!$CY$8:$CY$228)+(IF($A$7=Nutrients!$B$8,Nutrients!$CY$8,Nutrients!$CY$9)*AS$7)+(((IF($A$8=Nutrients!$B$79,Nutrients!$CY$79,(IF($A$8=Nutrients!$B$77,Nutrients!$CY$77,Nutrients!$CY$78)))))*AS$8))/2000/AS$236*100","v":58.528490441985738},{"$f":"(SUMPRODUCT(AT$9:AT$229,Nutrients!$CY$8:$CY$228)+(IF($A$7=Nutrients!$B$8,Nutrients!$CY$8,Nutrients!$CY$9)*AT$7)+(((IF($A$8=Nutrients!$B$79,Nutrients!$CY$79,(IF($A$8=Nutrients!$B$77,Nutrients!$CY$77,Nutrients!$CY$78)))))*AT$8))/2000/AT$236*100","v":60.311975774799855},{"$f":"(SUMPRODUCT(AU$9:AU$229,Nutrients!$CY$8:$CY$228)+(IF($A$7=Nutrients!$B$8,Nutrients!$CY$8,Nutrients!$CY$9)*AU$7)+(((IF($A$8=Nutrients!$B$79,Nutrients!$CY$79,(IF($A$8=Nutrients!$B$77,Nutrients!$CY$77,Nutrients!$CY$78)))))*AU$8))/2000/AU$236*100","v":60.956431487495088},{"$f":"(SUMPRODUCT(AV$9:AV$229,Nutrients!$CY$8:$CY$228)+(IF($A$7=Nutrients!$B$8,Nutrients!$CY$8,Nutrients!$CY$9)*AV$7)+(((IF($A$8=Nutrients!$B$79,Nutrients!$CY$79,(IF($A$8=Nutrients!$B$77,Nutrients!$CY$77,Nutrients!$CY$78)))))*AV$8))/2000/AV$236*100","v":60.268821398365226},{"$f":"(SUMPRODUCT(AW$9:AW$229,Nutrients!$CY$8:$CY$228)+(IF($A$7=Nutrients!$B$8,Nutrients!$CY$8,Nutrients!$CY$9)*AW$7)+(((IF($A$8=Nutrients!$B$79,Nutrients!$CY$79,(IF($A$8=Nutrients!$B$77,Nutrients!$CY$77,Nutrients!$CY$78)))))*AW$8))/2000/AW$236*100","v":59.832317983565531}]
["  Leu:Lys",{"$f":"(SUMPRODUCT(B$9:B$229,Nutrients!$CZ$8:$CZ$228)+(IF($A$7=Nutrients!$B$8,Nutrients!$CZ$8,Nutrients!$CZ$9)*B$7)+(((IF($A$8=Nutrients!$B$79,Nutrients!$CZ$79,(IF($A$8=Nutrients!$B$77,Nutrients!$CZ$77,Nutrients!$CZ$78)))))*B$8))/2000/B$236*100","v":120.89105591211504},{"$f":"(SUMPRODUCT(C$9:C$229,Nutrients!$CZ$8:$CZ$228)+(IF($A$7=Nutrients!$B$8,Nutrients!$CZ$8,Nutrients!$CZ$9)*C$7)+(((IF($A$8=Nutrients!$B$79,Nutrients!$CZ$79,(IF($A$8=Nutrients!$B$77,Nutrients!$CZ$77,Nutrients!$CZ$78)))))*C$8))/2000/C$236*100","v":128.00798727272854},{"$f":"(SUMPRODUCT(D$9:D$229,Nutrients!$CZ$8:$CZ$228)+(IF($A$7=Nutrients!$B$8,Nutrients!$CZ$8,Nutrients!$CZ$9)*D$7)+(((IF($A$8=Nutrients!$B$79,Nutrients!$CZ$79,(IF($A$8=Nutrients!$B$77,Nutrients!$CZ$77,Nutrients!$CZ$78)))))*D$8))/2000/D$236*100","v":136.56000538997691},{"$f":"(SUMPRODUCT(E$9:E$229,Nutrients!$CZ$8:$CZ$228)+(IF($A$7=Nutrients!$B$8,Nutrients!$CZ$8,Nutrients!$CZ$9)*E$7)+(((IF($A$8=Nutrients!$B$79,Nutrients!$CZ$79,(IF($A$8=Nutrients!$B$77,Nutrients!$CZ$77,Nutrients!$CZ$78)))))*E$8))/2000/E$236*100","v":143.9104596541508},{"$f":"(SUMPRODUCT(F$9:F$229,Nutrients!$CZ$8:$CZ$228)+(IF($A$7=Nutrients!$B$8,Nutrients!$CZ$8,Nutrients!$CZ$9)*F$7)+(((IF($A$8=Nutrients!$B$79,Nutrients!$CZ$79,(IF($A$8=Nutrients!$B$77,Nutrients!$CZ$77,Nutrients!$CZ$78)))))*F$8))/2000/F$236*100","v":148.44781930158939},{"$f":"(SUMPRODUCT(G$9:G$229,Nutrients!$CZ$8:$CZ$228)+(IF($A$7=Nutrients!$B$8,Nutrients!$CZ$8,Nutrients!$CZ$9)*G$7)+(((IF($A$8=Nutrients!$B$79,Nutrients!$CZ$79,(IF($A$8=Nutrients!$B$77,Nutrients!$CZ$77,Nutrients!$CZ$78)))))*G$8))/2000/G$236*100","v":151.29313192040226},null,{"$f":"(SUMPRODUCT(I$9:I$229,Nutrients!$CZ$8:$CZ$228)+(IF($A$7=Nutrients!$B$8,Nutrients!$CZ$8,Nutrients!$CZ$9)*I$7)+(((IF($A$8=Nutrients!$B$79,Nutrients!$CZ$79,(IF($A$8=Nutrients!$B$77,Nutrients!$CZ$77,Nutrients!$CZ$78)))))*I$8))/2000/I$236*100","v":126.6795290689207},{"$f":"(SUMPRODUCT(J$9:J$229,Nutrients!$CZ$8:$CZ$228)+(IF($A$7=Nutrients!$B$8,Nutrients!$CZ$8,Nutrients!$CZ$9)*J$7)+(((IF($A$8=Nutrients!$B$79,Nutrients!$CZ$79,(IF($A$8=Nutrients!$B$77,Nutrients!$CZ$77,Nutrients!$CZ$78)))))*J$8))/2000/J$236*100","v":134.56949392018208},{"$f":"(SUMPRODUCT(K$9:K$229,Nutrients!$CZ$8:$CZ$228)+(IF($A$7=Nutrients!$B$8,Nutrients!$CZ$8,Nutrients!$CZ$9)*K$7)+(((IF($A$8=Nutrients!$B$79,Nutrients!$CZ$79,(IF($A$8=Nutrients!$B$77,Nutrients!$CZ$77,Nutrients!$CZ$78)))))*K$8))/2000/K$236*100","v":144.00641091470737},{"$f":"(SUMPRODUCT(L$9:L$229,Nutrients!$CZ$8:$CZ$228)+(IF($A$7=Nutrients!$B$8,Nutrients!$CZ$8,Nutrients!$CZ$9)*L$7)+(((IF($A$8=Nutrients!$B$79,Nutrients!$CZ$79,(IF($A$8=Nutrients!$B$77,Nutrients!$CZ$77,Nutrients!$CZ$78)))))*L$8))/2000/L$236*100","v":152.28190016231801},{"$f":"(SUMPRODUCT(M$9:M$229,Nutrients!$CZ$8:$CZ$228)+(IF($A$7=Nutrients!$B$8,Nutrients!$CZ$8,Nutrients!$CZ$9)*M$7)+(((IF($A$8=Nutrients!$B$79,Nutrients!$CZ$79,(IF($A$8=Nutrients!$B$77,Nutrients!$CZ$77,Nutrients!$CZ$78)))))*M$8))/2000/M$236*100","v":157.63769113773913},{"$f":"(SUMPRODUCT(N$9:N$229,Nutrients!$CZ$8:$CZ$228)+(IF($A$7=Nutrients!$B$8,Nutrients!$CZ$8,Nutrients!$CZ$9)*N$7)+(((IF($A$8=Nutrients!$B$79,Nutrients!$CZ$79,(IF($A$8=Nutrients!$B$77,Nutrients!$CZ$77,Nutrients!$CZ$78)))))*N$8))/2000/N$236*100","v":160.96137756352829},null,{"$f":"(SUMPRODUCT(P$9:P$229,Nutrients!$CZ$8:$CZ$228)+(IF($A$7=Nutrients!$B$8,Nutrients!$CZ$8,Nutrients!$CZ$9)*P$7)+(((IF($A$8=Nutrients!$B$79,Nutrients!$CZ$79,(IF($A$8=Nutrients!$B$77,Nutrients!$CZ$77,Nutrients!$CZ$78)))))*P$8))/2000/P$236*100","v":132.50343020501964},{"$f":"(SUMPRODUCT(Q$9:Q$229,Nutrients!$CZ$8:$CZ$228)+(IF($A$7=Nutrients!$B$8,Nutrients!$CZ$8,Nutrients!$CZ$9)*Q$7)+(((IF($A$8=Nutrients!$B$79,Nutrients!$CZ$79,(IF($A$8=Nutrients!$B$77,Nutrients!$CZ$77,Nutrients!$CZ$78)))))*Q$8))/2000/Q$236*100","v":141.1773003902108},{"$f":"(SUMPRODUCT(R$9:R$229,Nutrients!$CZ$8:$CZ$228)+(IF($A$7=Nutrients!$B$8,Nutrients!$CZ$8,Nutrients!$CZ$9)*R$7)+(((IF($A$8=Nutrients!$B$79,Nutrients!$CZ$79,(IF($A$8=Nutrients!$B$77,Nutrients!$CZ$77,Nutrients!$CZ$78)))))*R$8))/2000/R$236*100","v":151.50272033780507},{"$f":"(SUMPRODUCT(S$9:S$229,Nutrients!$CZ$8:$CZ$228)+(IF($A$7=Nutrients!$B$8,Nutrients!$CZ$8,Nutrients!$CZ$9)*S$7)+(((IF($A$8=Nutrients!$B$79,Nutrients!$CZ$79,(IF($A$8=Nutrients!$B$77,Nutrients!$CZ$77,Nutrients!$CZ$78)))))*S$8))/2000/S$236*100","v":160.79455920196546},{"$f":"(SUMPRODUCT(T$9:T$229,Nutrients!$CZ$8:$CZ$228)+(IF($A$7=Nutrients!$B$8,Nutrients!$CZ$8,Nutrients!$CZ$9)*T$7)+(((IF($A$8=Nutrients!$B$79,Nutrients!$CZ$79,(IF($A$8=Nutrients!$B$77,Nutrients!$CZ$77,Nutrients!$CZ$78)))))*T$8))/2000/T$236*100","v":166.91651691697913},{"$f":"(SUMPRODUCT(U$9:U$229,Nutrients!$CZ$8:$CZ$228)+(IF($A$7=Nutrients!$B$8,Nutrients!$CZ$8,Nutrients!$CZ$9)*U$7)+(((IF($A$8=Nutrients!$B$79,Nutrients!$CZ$79,(IF($A$8=Nutrients!$B$77,Nutrients!$CZ$77,Nutrients!$CZ$78)))))*U$8))/2000/U$236*100","v":170.73291780864116},null,{"$f":"(SUMPRODUCT(W$9:W$229,Nutrients!$CZ$8:$CZ$228)+(IF($A$7=Nutrients!$B$8,Nutrients!$CZ$8,Nutrients!$CZ$9)*W$7)+(((IF($A$8=Nutrients!$B$79,Nutrients!$CZ$79,(IF($A$8=Nutrients!$B$77,Nutrients!$CZ$77,Nutrients!$CZ$78)))))*W$8))/2000/W$236*100","v":138.40496995912218},{"$f":"(SUMPRODUCT(X$9:X$229,Nutrients!$CZ$8:$CZ$228)+(IF($A$7=Nutrients!$B$8,Nutrients!$CZ$8,Nutrients!$CZ$9)*X$7)+(((IF($A$8=Nutrients!$B$79,Nutrients!$CZ$79,(IF($A$8=Nutrients!$B$77,Nutrients!$CZ$77,Nutrients!$CZ$78)))))*X$8))/2000/X$236*100","v":147.8761134853815},{"$f":"(SUMPRODUCT(Y$9:Y$229,Nutrients!$CZ$8:$CZ$228)+(IF($A$7=Nutrients!$B$8,Nutrients!$CZ$8,Nutrients!$CZ$9)*Y$7)+(((IF($A$8=Nutrients!$B$79,Nutrients!$CZ$79,(IF($A$8=Nutrients!$B$77,Nutrients!$CZ$77,Nutrients!$CZ$78)))))*Y$8))/2000/Y$236*100","v":159.19180549551325},{"$f":"(SUMPRODUCT(Z$9:Z$229,Nutrients!$CZ$8:$CZ$228)+(IF($A$7=Nutrients!$B$8,Nutrients!$CZ$8,Nutrients!$CZ$9)*Z$7)+(((IF($A$8=Nutrients!$B$79,Nutrients!$CZ$79,(IF($A$8=Nutrients!$B$77,Nutrients!$CZ$77,Nutrients!$CZ$78)))))*Z$8))/2000/Z$236*100","v":169.40805659379222},{"$f":"(SUMPRODUCT(AA$9:AA$229,Nutrients!$CZ$8:$CZ$228)+(IF($A$7=Nutrients!$B$8,Nutrients!$CZ$8,Nutrients!$CZ$9)*AA$7)+(((IF($A$8=Nutrients!$B$79,Nutrients!$CZ$79,(IF($A$8=Nutrients!$B$77,Nutrients!$CZ$77,Nutrients!$CZ$78)))))*AA$8))/2000/AA$236*100","v":176.31414814718315},{"$f":"(SUMPRODUCT(AB$9:AB$229,Nutrients!$CZ$8:$CZ$228)+(IF($A$7=Nutrients!$B$8,Nutrients!$CZ$8,Nutrients!$CZ$9)*AB$7)+(((IF($A$8=Nutrients!$B$79,Nutrients!$CZ$79,(IF($A$8=Nutrients!$B$77,Nutrients!$CZ$77,Nutrients!$CZ$78)))))*AB$8))/2000/AB$236*100","v":180.63797635147714},null,{"$f":"(SUMPRODUCT(AD$9:AD$229,Nutrients!$CZ$8:$CZ$228)+(IF($A$7=Nutrients!$B$8,Nutrients!$CZ$8,Nutrients!$CZ$9)*AD$7)+(((IF($A$8=Nutrients!$B$79,Nutrients!$CZ$79,(IF($A$8=Nutrients!$B$77,Nutrients!$CZ$77,Nutrients!$CZ$78)))))*AD$8))/2000/AD$236*100","v":144.38955839338485},{"$f":"(SUMPRODUCT(AE$9:AE$229,Nutrients!$CZ$8:$CZ$228)+(IF($A$7=Nutrients!$B$8,Nutrients!$CZ$8,Nutrients!$CZ$9)*AE$7)+(((IF($A$8=Nutrients!$B$79,Nutrients!$CZ$79,(IF($A$8=Nutrients!$B$77,Nutrients!$CZ$77,Nutrients!$CZ$78)))))*AE$8))/2000/AE$236*100","v":154.74197734640612},{"$f":"(SUMPRODUCT(AF$9:AF$229,Nutrients!$CZ$8:$CZ$228)+(IF($A$7=Nutrients!$B$8,Nutrients!$CZ$8,Nutrients!$CZ$9)*AF$7)+(((IF($A$8=Nutrients!$B$79,Nutrients!$CZ$79,(IF($A$8=Nutrients!$B$77,Nutrients!$CZ$77,Nutrients!$CZ$78)))))*AF$8))/2000/AF$236*100","v":166.97830564974819},{"$f":"(SUMPRODUCT(AG$9:AG$229,Nutrients!$CZ$8:$CZ$228)+(IF($A$7=Nutrients!$B$8,Nutrients!$CZ$8,Nutrients!$CZ$9)*AG$7)+(((IF($A$8=Nutrients!$B$79,Nutrients!$CZ$79,(IF($A$8=Nutrients!$B$77,Nutrients!$CZ$77,Nutrients!$CZ$78)))))*AG$8))/2000/AG$236*100","v":178.14381216192569},{"$f":"(SUMPRODUCT(AH$9:AH$229,Nutrients!$CZ$8:$CZ$228)+(IF($A$7=Nutrients!$B$8,Nutrients!$CZ$8,Nutrients!$CZ$9)*AH$7)+(((IF($A$8=Nutrients!$B$79,Nutrients!$CZ$79,(IF($A$8=Nutrients!$B$77,Nutrients!$CZ$77,Nutrients!$CZ$78)))))*AH$8))/2000/AH$236*100","v":185.85828239785803},{"$f":"(SUMPRODUCT(AI$9:AI$229,Nutrients!$CZ$8:$CZ$228)+(IF($A$7=Nutrients!$B$8,Nutrients!$CZ$8,Nutrients!$CZ$9)*AI$7)+(((IF($A$8=Nutrients!$B$79,Nutrients!$CZ$79,(IF($A$8=Nutrients!$B$77,Nutrients!$CZ$77,Nutrients!$CZ$78)))))*AI$8))/2000/AI$236*100","v":190.69277205331113},null,{"$f":"(SUMPRODUCT(AK$9:AK$229,Nutrients!$CZ$8:$CZ$228)+(IF($A$7=Nutrients!$B$8,Nutrients!$CZ$8,Nutrients!$CZ$9)*AK$7)+(((IF($A$8=Nutrients!$B$79,Nutrients!$CZ$79,(IF($A$8=Nutrients!$B$77,Nutrients!$CZ$77,Nutrients!$CZ$78)))))*AK$8))/2000/AK$236*100","v":150.44013460588158},{"$f":"(SUMPRODUCT(AL$9:AL$229,Nutrients!$CZ$8:$CZ$228)+(IF($A$7=Nutrients!$B$8,Nutrients!$CZ$8,Nutrients!$CZ$9)*AL$7)+(((IF($A$8=Nutrients!$B$79,Nutrients!$CZ$79,(IF($A$8=Nutrients!$B$77,Nutrients!$CZ$77,Nutrients!$CZ$78)))))*AL$8))/2000/AL$236*100","v":161.69806814565987},{"$f":"(SUMPRODUCT(AM$9:AM$229,Nutrients!$CZ$8:$CZ$228)+(IF($A$7=Nutrients!$B$8,Nutrients!$CZ$8,Nutrients!$CZ$9)*AM$7)+(((IF($A$8=Nutrients!$B$79,Nutrients!$CZ$79,(IF($A$8=Nutrients!$B$77,Nutrients!$CZ$77,Nutrients!$CZ$78)))))*AM$8))/2000/AM$236*100","v":174.87081182944416},{"$f":"(SUMPRODUCT(AN$9:AN$229,Nutrients!$CZ$8:$CZ$228)+(IF($A$7=Nutrients!$B$8,Nutrients!$CZ$8,Nutrients!$CZ$9)*AN$7)+(((IF($A$8=Nutrients!$B$79,Nutrients!$CZ$79,(IF($A$8=Nutrients!$B$77,Nutrients!$CZ$77,Nutrients!$CZ$78)))))*AN$8))/2000/AN$236*100","v":187.0184547143235},{"$f":"(SUMPRODUCT(AO$9:AO$229,Nutrients!$CZ$8:$CZ$228)+(IF($A$7=Nutrients!$B$8,Nutrients!$CZ$8,Nutrients!$CZ$9)*AO$7)+(((IF($A$8=Nutrients!$B$79,Nutrients!$CZ$79,(IF($A$8=Nutrients!$B$77,Nutrients!$CZ$77,Nutrients!$CZ$78)))))*AO$8))/2000/AO$236*100","v":195.56716003125672},{"$f":"(SUMPRODUCT(AP$9:AP$229,Nutrients!$CZ$8:$CZ$228)+(IF($A$7=Nutrients!$B$8,Nutrients!$CZ$8,Nutrients!$CZ$9)*AP$7)+(((IF($A$8=Nutrients!$B$79,Nutrients!$CZ$79,(IF($A$8=Nutrients!$B$77,Nutrients!$CZ$77,Nutrients!$CZ$78)))))*AP$8))/2000/AP$236*100","v":200.92350552349095},null,{"$f":"(SUMPRODUCT(AR$9:AR$229,Nutrients!$CZ$8:$CZ$228)+(IF($A$7=Nutrients!$B$8,Nutrients!$CZ$8,Nutrients!$CZ$9)*AR$7)+(((IF($A$8=Nutrients!$B$79,Nutrients!$CZ$79,(IF($A$8=Nutrients!$B$77,Nutrients!$CZ$77,Nutrients!$CZ$78)))))*AR$8))/2000/AR$236*100","v":156.43290976221735},{"$f":"(SUMPRODUCT(AS$9:AS$229,Nutrients!$CZ$8:$CZ$228)+(IF($A$7=Nutrients!$B$8,Nutrients!$CZ$8,Nutrients!$CZ$9)*AS$7)+(((IF($A$8=Nutrients!$B$79,Nutrients!$CZ$79,(IF($A$8=Nutrients!$B$77,Nutrients!$CZ$77,Nutrients!$CZ$78)))))*AS$8))/2000/AS$236*100","v":168.7583077393835},{"$f":"(SUMPRODUCT(AT$9:AT$229,Nutrients!$CZ$8:$CZ$228)+(IF($A$7=Nutrients!$B$8,Nutrients!$CZ$8,Nutrients!$CZ$9)*AT$7)+(((IF($A$8=Nutrients!$B$79,Nutrients!$CZ$79,(IF($A$8=Nutrients!$B$77,Nutrients!$CZ$77,Nutrients!$CZ$78)))))*AT$8))/2000/AT$236*100","v":182.85535143625856},{"$f":"(SUMPRODUCT(AU$9:AU$229,Nutrients!$CZ$8:$CZ$228)+(IF($A$7=Nutrients!$B$8,Nutrients!$CZ$8,Nutrients!$CZ$9)*AU$7)+(((IF($A$8=Nutrients!$B$79,Nutrients!$CZ$79,(IF($A$8=Nutrients!$B$77,Nutrients!$CZ$77,Nutrients!$CZ$78)))))*AU$8))/2000/AU$236*100","v":196.03483352426267},{"$f":"(SUMPRODUCT(AV$9:AV$229,Nutrients!$CZ$8:$CZ$228)+(IF($A$7=Nutrients!$B$8,Nutrients!$CZ$8,Nutrients!$CZ$9)*AV$7)+(((IF($A$8=Nutrients!$B$79,Nutrients!$CZ$79,(IF($A$8=Nutrients!$B$77,Nutrients!$CZ$77,Nutrients!$CZ$78)))))*AV$8))/2000/AV$236*100","v":205.44540223121018},{"$f":"(SUMPRODUCT(AW$9:AW$229,Nutrients!$CZ$8:$CZ$228)+(IF($A$7=Nutrients!$B$8,Nutrients!$CZ$8,Nutrients!$CZ$9)*AW$7)+(((IF($A$8=Nutrients!$B$79,Nutrients!$CZ$79,(IF($A$8=Nutrients!$B$77,Nutrients!$CZ$77,Nutrients!$CZ$78)))))*AW$8))/2000/AW$236*100","v":211.33330900862123}]
["  Met:Lys",{"$f":"(SUMPRODUCT(B$9:B$229,Nutrients!$DB$8:$DB$228)+(IF($A$7=Nutrients!$B$8,Nutrients!$DB$8,Nutrients!$DB$9)*B$7)+(((IF($A$8=Nutrients!$B$79,Nutrients!$DB$79,(IF($A$8=Nutrients!$B$77,Nutrients!$DB$77,Nutrients!$DB$78)))))*B$8))/2000/B$236*100","v":33.81111138845354},{"$f":"(SUMPRODUCT(C$9:C$229,Nutrients!$DB$8:$DB$228)+(IF($A$7=Nutrients!$B$8,Nutrients!$DB$8,Nutrients!$DB$9)*C$7)+(((IF($A$8=Nutrients!$B$79,Nutrients!$DB$79,(IF($A$8=Nutrients!$B$77,Nutrients!$DB$77,Nutrients!$DB$78)))))*C$8))/2000/C$236*100","v":32.524236458699015},{"$f":"(SUMPRODUCT(D$9:D$229,Nutrients!$DB$8:$DB$228)+(IF($A$7=Nutrients!$B$8,Nutrients!$DB$8,Nutrients!$DB$9)*D$7)+(((IF($A$8=Nutrients!$B$79,Nutrients!$DB$79,(IF($A$8=Nutrients!$B$77,Nutrients!$DB$77,Nutrients!$DB$78)))))*D$8))/2000/D$236*100","v":30.974376755587524},{"$f":"(SUMPRODUCT(E$9:E$229,Nutrients!$DB$8:$DB$228)+(IF($A$7=Nutrients!$B$8,Nutrients!$DB$8,Nutrients!$DB$9)*E$7)+(((IF($A$8=Nutrients!$B$79,Nutrients!$DB$79,(IF($A$8=Nutrients!$B$77,Nutrients!$DB$77,Nutrients!$DB$78)))))*E$8))/2000/E$236*100","v":30.712595168445802},{"$f":"(SUMPRODUCT(F$9:F$229,Nutrients!$DB$8:$DB$228)+(IF($A$7=Nutrients!$B$8,Nutrients!$DB$8,Nutrients!$DB$9)*F$7)+(((IF($A$8=Nutrients!$B$79,Nutrients!$DB$79,(IF($A$8=Nutrients!$B$77,Nutrients!$DB$77,Nutrients!$DB$78)))))*F$8))/2000/F$236*100","v":30.00631713197205},{"$f":"(SUMPRODUCT(G$9:G$229,Nutrients!$DB$8:$DB$228)+(IF($A$7=Nutrients!$B$8,Nutrients!$DB$8,Nutrients!$DB$9)*G$7)+(((IF($A$8=Nutrients!$B$79,Nutrients!$DB$79,(IF($A$8=Nutrients!$B$77,Nutrients!$DB$77,Nutrients!$DB$78)))))*G$8))/2000/G$236*100","v":30.329377095070086},null,{"$f":"(SUMPRODUCT(I$9:I$229,Nutrients!$DB$8:$DB$228)+(IF($A$7=Nutrients!$B$8,Nutrients!$DB$8,Nutrients!$DB$9)*I$7)+(((IF($A$8=Nutrients!$B$79,Nutrients!$DB$79,(IF($A$8=Nutrients!$B$77,Nutrients!$DB$77,Nutrients!$DB$78)))))*I$8))/2000/I$236*100","v":33.570726139031301},{"$f":"(SUMPRODUCT(J$9:J$229,Nutrients!$DB$8:$DB$228)+(IF($A$7=Nutrients!$B$8,Nutrients!$DB$8,Nutrients!$DB$9)*J$7)+(((IF($A$8=Nutrients!$B$79,Nutrients!$DB$79,(IF($A$8=Nutrients!$B$77,Nutrients!$DB$77,Nutrients!$DB$78)))))*J$8))/2000/J$236*100","v":32.219350212957885},{"$f":"(SUMPRODUCT(K$9:K$229,Nutrients!$DB$8:$DB$228)+(IF($A$7=Nutrients!$B$8,Nutrients!$DB$8,Nutrients!$DB$9)*K$7)+(((IF($A$8=Nutrients!$B$79,Nutrients!$DB$79,(IF($A$8=Nutrients!$B$77,Nutrients!$DB$77,Nutrients!$DB$78)))))*K$8))/2000/K$236*100","v":30.656497935709815},{"$f":"(SUMPRODUCT(L$9:L$229,Nutrients!$DB$8:$DB$228)+(IF($A$7=Nutrients!$B$8,Nutrients!$DB$8,Nutrients!$DB$9)*L$7)+(((IF($A$8=Nutrients!$B$79,Nutrients!$DB$79,(IF($A$8=Nutrients!$B$77,Nutrients!$DB$77,Nutrients!$DB$78)))))*L$8))/2000/L$236*100","v":30.276666496437514},{"$f":"(SUMPRODUCT(M$9:M$229,Nutrients!$DB$8:$DB$228)+(IF($A$7=Nutrients!$B$8,Nutrients!$DB$8,Nutrients!$DB$9)*M$7)+(((IF($A$8=Nutrients!$B$79,Nutrients!$DB$79,(IF($A$8=Nutrients!$B$77,Nutrients!$DB$77,Nutrients!$DB$78)))))*M$8))/2000/M$236*100","v":29.424925937536045},{"$f":"(SUMPRODUCT(N$9:N$229,Nutrients!$DB$8:$DB$228)+(IF($A$7=Nutrients!$B$8,Nutrients!$DB$8,Nutrients!$DB$9)*N$7)+(((IF($A$8=Nutrients!$B$79,Nutrients!$DB$79,(IF($A$8=Nutrients!$B$77,Nutrients!$DB$77,Nutrients!$DB$78)))))*N$8))/2000/N$236*100","v":29.890236019851578},null,{"$f":"(SUMPRODUCT(P$9:P$229,Nutrients!$DB$8:$DB$228)+(IF($A$7=Nutrients!$B$8,Nutrients!$DB$8,Nutrients!$DB$9)*P$7)+(((IF($A$8=Nutrients!$B$79,Nutrients!$DB$79,(IF($A$8=Nutrients!$B$77,Nutrients!$DB$77,Nutrients!$DB$78)))))*P$8))/2000/P$236*100","v":33.343849198274064},{"$f":"(SUMPRODUCT(Q$9:Q$229,Nutrients!$DB$8:$DB$228)+(IF($A$7=Nutrients!$B$8,Nutrients!$DB$8,Nutrients!$DB$9)*Q$7)+(((IF($A$8=Nutrients!$B$79,Nutrients!$DB$79,(IF($A$8=Nutrients!$B$77,Nutrients!$DB$77,Nutrients!$DB$78)))))*Q$8))/2000/Q$236*100","v":31.93975856760618},{"$f":"(SUMPRODUCT(R$9:R$229,Nutrients!$DB$8:$DB$228)+(IF($A$7=Nutrients!$B$8,Nutrients!$DB$8,Nutrients!$DB$9)*R$7)+(((IF($A$8=Nutrients!$B$79,Nutrients!$DB$79,(IF($A$8=Nutrients!$B$77,Nutrients!$DB$77,Nutrients!$DB$78)))))*R$8))/2000/R$236*100","v":30.315547130300573},{"$f":"(SUMPRODUCT(S$9:S$229,Nutrients!$DB$8:$DB$228)+(IF($A$7=Nutrients!$B$8,Nutrients!$DB$8,Nutrients!$DB$9)*S$7)+(((IF($A$8=Nutrients!$B$79,Nutrients!$DB$79,(IF($A$8=Nutrients!$B$77,Nutrients!$DB$77,Nutrients!$DB$78)))))*S$8))/2000/S$236*100","v":29.896961721410559},{"$f":"(SUMPRODUCT(T$9:T$229,Nutrients!$DB$8:$DB$228)+(IF($A$7=Nutrients!$B$8,Nutrients!$DB$8,Nutrients!$DB$9)*T$7)+(((IF($A$8=Nutrients!$B$79,Nutrients!$DB$79,(IF($A$8=Nutrients!$B$77,Nutrients!$DB$77,Nutrients!$DB$78)))))*T$8))/2000/T$236*100","v":29.396541570542762},{"$f":"(SUMPRODUCT(U$9:U$229,Nutrients!$DB$8:$DB$228)+(IF($A$7=Nutrients!$B$8,Nutrients!$DB$8,Nutrients!$DB$9)*U$7)+(((IF($A$8=Nutrients!$B$79,Nutrients!$DB$79,(IF($A$8=Nutrients!$B$77,Nutrients!$DB$77,Nutrients!$DB$78)))))*U$8))/2000/U$236*100","v":30.002064268641593},null,{"$f":"(SUMPRODUCT(W$9:W$229,Nutrients!$DB$8:$DB$228)+(IF($A$7=Nutrients!$B$8,Nutrients!$DB$8,Nutrients!$DB$9)*W$7)+(((IF($A$8=Nutrients!$B$79,Nutrients!$DB$79,(IF($A$8=Nutrients!$B$77,Nutrients!$DB$77,Nutrients!$DB$78)))))*W$8))/2000/W$236*100","v":33.071006598326839},{"$f":"(SUMPRODUCT(X$9:X$229,Nutrients!$DB$8:$DB$228)+(IF($A$7=Nutrients!$B$8,Nutrients!$DB$8,Nutrients!$DB$9)*X$7)+(((IF($A$8=Nutrients!$B$79,Nutrients!$DB$79,(IF($A$8=Nutrients!$B$77,Nutrients!$DB$77,Nutrients!$DB$78)))))*X$8))/2000/X$236*100","v":31.65651718740116},{"$f":"(SUMPRODUCT(Y$9:Y$229,Nutrients!$DB$8:$DB$228)+(IF($A$7=Nutrients!$B$8,Nutrients!$DB$8,Nutrients!$DB$9)*Y$7)+(((IF($A$8=Nutrients!$B$79,Nutrients!$DB$79,(IF($A$8=Nutrients!$B$77,Nutrients!$DB$77,Nutrients!$DB$78)))))*Y$8))/2000/Y$236*100","v":29.987459241674824},{"$f":"(SUMPRODUCT(Z$9:Z$229,Nutrients!$DB$8:$DB$228)+(IF($A$7=Nutrients!$B$8,Nutrients!$DB$8,Nutrients!$DB$9)*Z$7)+(((IF($A$8=Nutrients!$B$79,Nutrients!$DB$79,(IF($A$8=Nutrients!$B$77,Nutrients!$DB$77,Nutrients!$DB$78)))))*Z$8))/2000/Z$236*100","v":29.505482180525377},{"$f":"(SUMPRODUCT(AA$9:AA$229,Nutrients!$DB$8:$DB$228)+(IF($A$7=Nutrients!$B$8,Nutrients!$DB$8,Nutrients!$DB$9)*AA$7)+(((IF($A$8=Nutrients!$B$79,Nutrients!$DB$79,(IF($A$8=Nutrients!$B$77,Nutrients!$DB$77,Nutrients!$DB$78)))))*AA$8))/2000/AA$236*100","v":30.629516490379931},{"$f":"(SUMPRODUCT(AB$9:AB$229,Nutrients!$DB$8:$DB$228)+(IF($A$7=Nutrients!$B$8,Nutrients!$DB$8,Nutrients!$DB$9)*AB$7)+(((IF($A$8=Nutrients!$B$79,Nutrients!$DB$79,(IF($A$8=Nutrients!$B$77,Nutrients!$DB$77,Nutrients!$DB$78)))))*AB$8))/2000/AB$236*100","v":31.301401537171241},null,{"$f":"(SUMPRODUCT(AD$9:AD$229,Nutrients!$DB$8:$DB$228)+(IF($A$7=Nutrients!$B$8,Nutrients!$DB$8,Nutrients!$DB$9)*AD$7)+(((IF($A$8=Nutrients!$B$79,Nutrients!$DB$79,(IF($A$8=Nutrients!$B$77,Nutrients!$DB$77,Nutrients!$DB$78)))))*AD$8))/2000/AD$236*100","v":32.7954294555365},{"$f":"(SUMPRODUCT(AE$9:AE$229,Nutrients!$DB$8:$DB$228)+(IF($A$7=Nutrients!$B$8,Nutrients!$DB$8,Nutrients!$DB$9)*AE$7)+(((IF($A$8=Nutrients!$B$79,Nutrients!$DB$79,(IF($A$8=Nutrients!$B$77,Nutrients!$DB$77,Nutrients!$DB$78)))))*AE$8))/2000/AE$236*100","v":31.386430628917573},{"$f":"(SUMPRODUCT(AF$9:AF$229,Nutrients!$DB$8:$DB$228)+(IF($A$7=Nutrients!$B$8,Nutrients!$DB$8,Nutrients!$DB$9)*AF$7)+(((IF($A$8=Nutrients!$B$79,Nutrients!$DB$79,(IF($A$8=Nutrients!$B$77,Nutrients!$DB$77,Nutrients!$DB$78)))))*AF$8))/2000/AF$236*100","v":29.649149391614394},{"$f":"(SUMPRODUCT(AG$9:AG$229,Nutrients!$DB$8:$DB$228)+(IF($A$7=Nutrients!$B$8,Nutrients!$DB$8,Nutrients!$DB$9)*AG$7)+(((IF($A$8=Nutrients!$B$79,Nutrients!$DB$79,(IF($A$8=Nutrients!$B$77,Nutrients!$DB$77,Nutrients!$DB$78)))))*AG$8))/2000/AG$236*100","v":30.700538208269201},{"$f":"(SUMPRODUCT(AH$9:AH$229,Nutrients!$DB$8:$DB$228)+(IF($A$7=Nutrients!$B$8,Nutrients!$DB$8,Nutrients!$DB$9)*AH$7)+(((IF($A$8=Nutrients!$B$79,Nutrients!$DB$79,(IF($A$8=Nutrients!$B$77,Nutrients!$DB$77,Nutrients!$DB$78)))))*AH$8))/2000/AH$236*100","v":31.880332332867106},{"$f":"(SUMPRODUCT(AI$9:AI$229,Nutrients!$DB$8:$DB$228)+(IF($A$7=Nutrients!$B$8,Nutrients!$DB$8,Nutrients!$DB$9)*AI$7)+(((IF($A$8=Nutrients!$B$79,Nutrients!$DB$79,(IF($A$8=Nutrients!$B$77,Nutrients!$DB$77,Nutrients!$DB$78)))))*AI$8))/2000/AI$236*100","v":32.618617119074869},null,{"$f":"(SUMPRODUCT(AK$9:AK$229,Nutrients!$DB$8:$DB$228)+(IF($A$7=Nutrients!$B$8,Nutrients!$DB$8,Nutrients!$DB$9)*AK$7)+(((IF($A$8=Nutrients!$B$79,Nutrients!$DB$79,(IF($A$8=Nutrients!$B$77,Nutrients!$DB$77,Nutrients!$DB$78)))))*AK$8))/2000/AK$236*100","v":32.59792509370714},{"$f":"(SUMPRODUCT(AL$9:AL$229,Nutrients!$DB$8:$DB$228)+(IF($A$7=Nutrients!$B$8,Nutrients!$DB$8,Nutrients!$DB$9)*AL$7)+(((IF($A$8=Nutrients!$B$79,Nutrients!$DB$79,(IF($A$8=Nutrients!$B$77,Nutrients!$DB$77,Nutrients!$DB$78)))))*AL$8))/2000/AL$236*100","v":31.05830809242967},{"$f":"(SUMPRODUCT(AM$9:AM$229,Nutrients!$DB$8:$DB$228)+(IF($A$7=Nutrients!$B$8,Nutrients!$DB$8,Nutrients!$DB$9)*AM$7)+(((IF($A$8=Nutrients!$B$79,Nutrients!$DB$79,(IF($A$8=Nutrients!$B$77,Nutrients!$DB$77,Nutrients!$DB$78)))))*AM$8))/2000/AM$236*100","v":29.953049099354782},{"$f":"(SUMPRODUCT(AN$9:AN$229,Nutrients!$DB$8:$DB$228)+(IF($A$7=Nutrients!$B$8,Nutrients!$DB$8,Nutrients!$DB$9)*AN$7)+(((IF($A$8=Nutrients!$B$79,Nutrients!$DB$79,(IF($A$8=Nutrients!$B$77,Nutrients!$DB$77,Nutrients!$DB$78)))))*AN$8))/2000/AN$236*100","v":31.863782027395938},{"$f":"(SUMPRODUCT(AO$9:AO$229,Nutrients!$DB$8:$DB$228)+(IF($A$7=Nutrients!$B$8,Nutrients!$DB$8,Nutrients!$DB$9)*AO$7)+(((IF($A$8=Nutrients!$B$79,Nutrients!$DB$79,(IF($A$8=Nutrients!$B$77,Nutrients!$DB$77,Nutrients!$DB$78)))))*AO$8))/2000/AO$236*100","v":33.15227134927337},{"$f":"(SUMPRODUCT(AP$9:AP$229,Nutrients!$DB$8:$DB$228)+(IF($A$7=Nutrients!$B$8,Nutrients!$DB$8,Nutrients!$DB$9)*AP$7)+(((IF($A$8=Nutrients!$B$79,Nutrients!$DB$79,(IF($A$8=Nutrients!$B$77,Nutrients!$DB$77,Nutrients!$DB$78)))))*AP$8))/2000/AP$236*100","v":33.958916578118583},null,{"$f":"(SUMPRODUCT(AR$9:AR$229,Nutrients!$DB$8:$DB$228)+(IF($A$7=Nutrients!$B$8,Nutrients!$DB$8,Nutrients!$DB$9)*AR$7)+(((IF($A$8=Nutrients!$B$79,Nutrients!$DB$79,(IF($A$8=Nutrients!$B$77,Nutrients!$DB$77,Nutrients!$DB$78)))))*AR$8))/2000/AR$236*100","v":32.278218070237678},{"$f":"(SUMPRODUCT(AS$9:AS$229,Nutrients!$DB$8:$DB$228)+(IF($A$7=Nutrients!$B$8,Nutrients!$DB$8,Nutrients!$DB$9)*AS$7)+(((IF($A$8=Nutrients!$B$79,Nutrients!$DB$79,(IF($A$8=Nutrients!$B$77,Nutrients!$DB$77,Nutrients!$DB$78)))))*AS$8))/2000/AS$236*100","v":30.723917688986624},{"$f":"(SUMPRODUCT(AT$9:AT$229,Nutrients!$DB$8:$DB$228)+(IF($A$7=Nutrients!$B$8,Nutrients!$DB$8,Nutrients!$DB$9)*AT$7)+(((IF($A$8=Nutrients!$B$79,Nutrients!$DB$79,(IF($A$8=Nutrients!$B$77,Nutrients!$DB$77,Nutrients!$DB$78)))))*AT$8))/2000/AT$236*100","v":30.999198662184497},{"$f":"(SUMPRODUCT(AU$9:AU$229,Nutrients!$DB$8:$DB$228)+(IF($A$7=Nutrients!$B$8,Nutrients!$DB$8,Nutrients!$DB$9)*AU$7)+(((IF($A$8=Nutrients!$B$79,Nutrients!$DB$79,(IF($A$8=Nutrients!$B$77,Nutrients!$DB$77,Nutrients!$DB$78)))))*AU$8))/2000/AU$236*100","v":33.0446332327775},{"$f":"(SUMPRODUCT(AV$9:AV$229,Nutrients!$DB$8:$DB$228)+(IF($A$7=Nutrients!$B$8,Nutrients!$DB$8,Nutrients!$DB$9)*AV$7)+(((IF($A$8=Nutrients!$B$79,Nutrients!$DB$79,(IF($A$8=Nutrients!$B$77,Nutrients!$DB$77,Nutrients!$DB$78)))))*AV$8))/2000/AV$236*100","v":34.446379977281744},{"$f":"(SUMPRODUCT(AW$9:AW$229,Nutrients!$DB$8:$DB$228)+(IF($A$7=Nutrients!$B$8,Nutrients!$DB$8,Nutrients!$DB$9)*AW$7)+(((IF($A$8=Nutrients!$B$79,Nutrients!$DB$79,(IF($A$8=Nutrients!$B$77,Nutrients!$DB$77,Nutrients!$DB$78)))))*AW$8))/2000/AW$236*100","v":35.322667607989914}]
["  Met & Cys:Lys",{"$f":"(SUMPRODUCT(B$9:B$229,Nutrients!$DC$8:$DC$228)+(IF($A$7=Nutrients!$B$8,Nutrients!$DC$8,Nutrients!$DC$9)*B$7)+(((IF($A$8=Nutrients!$B$79,Nutrients!$DC$79,(IF($A$8=Nutrients!$B$77,Nutrients!$DC$77,Nutrients!$DC$78)))))*B$8))/2000/B$236*100","v":55.997569552010205},{"$f":"(SUMPRODUCT(C$9:C$229,Nutrients!$DC$8:$DC$228)+(IF($A$7=Nutrients!$B$8,Nutrients!$DC$8,Nutrients!$DC$9)*C$7)+(((IF($A$8=Nutrients!$B$79,Nutrients!$DC$79,(IF($A$8=Nutrients!$B$77,Nutrients!$DC$77,Nutrients!$DC$78)))))*C$8))/2000/C$236*100","v":55.998500355280811},{"$f":"(SUMPRODUCT(D$9:D$229,Nutrients!$DC$8:$DC$228)+(IF($A$7=Nutrients!$B$8,Nutrients!$DC$8,Nutrients!$DC$9)*D$7)+(((IF($A$8=Nutrients!$B$79,Nutrients!$DC$79,(IF($A$8=Nutrients!$B$77,Nutrients!$DC$77,Nutrients!$DC$78)))))*D$8))/2000/D$236*100","v":55.998232689384523},{"$f":"(SUMPRODUCT(E$9:E$229,Nutrients!$DC$8:$DC$228)+(IF($A$7=Nutrients!$B$8,Nutrients!$DC$8,Nutrients!$DC$9)*E$7)+(((IF($A$8=Nutrients!$B$79,Nutrients!$DC$79,(IF($A$8=Nutrients!$B$77,Nutrients!$DC$77,Nutrients!$DC$78)))))*E$8))/2000/E$236*100","v":57.061456017842524},{"$f":"(SUMPRODUCT(F$9:F$229,Nutrients!$DC$8:$DC$228)+(IF($A$7=Nutrients!$B$8,Nutrients!$DC$8,Nutrients!$DC$9)*F$7)+(((IF($A$8=Nutrients!$B$79,Nutrients!$DC$79,(IF($A$8=Nutrients!$B$77,Nutrients!$DC$77,Nutrients!$DC$78)))))*F$8))/2000/F$236*100","v":57.164463746746605},{"$f":"(SUMPRODUCT(G$9:G$229,Nutrients!$DC$8:$DC$228)+(IF($A$7=Nutrients!$B$8,Nutrients!$DC$8,Nutrients!$DC$9)*G$7)+(((IF($A$8=Nutrients!$B$79,Nutrients!$DC$79,(IF($A$8=Nutrients!$B$77,Nutrients!$DC$77,Nutrients!$DC$78)))))*G$8))/2000/G$236*100","v":57.994909290351856},null,{"$f":"(SUMPRODUCT(I$9:I$229,Nutrients!$DC$8:$DC$228)+(IF($A$7=Nutrients!$B$8,Nutrients!$DC$8,Nutrients!$DC$9)*I$7)+(((IF($A$8=Nutrients!$B$79,Nutrients!$DC$79,(IF($A$8=Nutrients!$B$77,Nutrients!$DC$77,Nutrients!$DC$78)))))*I$8))/2000/I$236*100","v":56.01149172320482},{"$f":"(SUMPRODUCT(J$9:J$229,Nutrients!$DC$8:$DC$228)+(IF($A$7=Nutrients!$B$8,Nutrients!$DC$8,Nutrients!$DC$9)*J$7)+(((IF($A$8=Nutrients!$B$79,Nutrients!$DC$79,(IF($A$8=Nutrients!$B$77,Nutrients!$DC$77,Nutrients!$DC$78)))))*J$8))/2000/J$236*100","v":55.984358388386838},{"$f":"(SUMPRODUCT(K$9:K$229,Nutrients!$DC$8:$DC$228)+(IF($A$7=Nutrients!$B$8,Nutrients!$DC$8,Nutrients!$DC$9)*K$7)+(((IF($A$8=Nutrients!$B$79,Nutrients!$DC$79,(IF($A$8=Nutrients!$B$77,Nutrients!$DC$77,Nutrients!$DC$78)))))*K$8))/2000/K$236*100","v":56.013853949686464},{"$f":"(SUMPRODUCT(L$9:L$229,Nutrients!$DC$8:$DC$228)+(IF($A$7=Nutrients!$B$8,Nutrients!$DC$8,Nutrients!$DC$9)*L$7)+(((IF($A$8=Nutrients!$B$79,Nutrients!$DC$79,(IF($A$8=Nutrients!$B$77,Nutrients!$DC$77,Nutrients!$DC$78)))))*L$8))/2000/L$236*100","v":57.002734315313909},{"$f":"(SUMPRODUCT(M$9:M$229,Nutrients!$DC$8:$DC$228)+(IF($A$7=Nutrients!$B$8,Nutrients!$DC$8,Nutrients!$DC$9)*M$7)+(((IF($A$8=Nutrients!$B$79,Nutrients!$DC$79,(IF($A$8=Nutrients!$B$77,Nutrients!$DC$77,Nutrients!$DC$78)))))*M$8))/2000/M$236*100","v":57.00305999497315},{"$f":"(SUMPRODUCT(N$9:N$229,Nutrients!$DC$8:$DC$228)+(IF($A$7=Nutrients!$B$8,Nutrients!$DC$8,Nutrients!$DC$9)*N$7)+(((IF($A$8=Nutrients!$B$79,Nutrients!$DC$79,(IF($A$8=Nutrients!$B$77,Nutrients!$DC$77,Nutrients!$DC$78)))))*N$8))/2000/N$236*100","v":57.996154434837742},null,{"$f":"(SUMPRODUCT(P$9:P$229,Nutrients!$DC$8:$DC$228)+(IF($A$7=Nutrients!$B$8,Nutrients!$DC$8,Nutrients!$DC$9)*P$7)+(((IF($A$8=Nutrients!$B$79,Nutrients!$DC$79,(IF($A$8=Nutrients!$B$77,Nutrients!$DC$77,Nutrients!$DC$78)))))*P$8))/2000/P$236*100","v":56.034845365738015},{"$f":"(SUMPRODUCT(Q$9:Q$229,Nutrients!$DC$8:$DC$228)+(IF($A$7=Nutrients!$B$8,Nutrients!$DC$8,Nutrients!$DC$9)*Q$7)+(((IF($A$8=Nutrients!$B$79,Nutrients!$DC$79,(IF($A$8=Nutrients!$B$77,Nutrients!$DC$77,Nutrients!$DC$78)))))*Q$8))/2000/Q$236*100","v":55.991916548987632},{"$f":"(SUMPRODUCT(R$9:R$229,Nutrients!$DC$8:$DC$228)+(IF($A$7=Nutrients!$B$8,Nutrients!$DC$8,Nutrients!$DC$9)*R$7)+(((IF($A$8=Nutrients!$B$79,Nutrients!$DC$79,(IF($A$8=Nutrients!$B$77,Nutrients!$DC$77,Nutrients!$DC$78)))))*R$8))/2000/R$236*100","v":56.002150748197963},{"$f":"(SUMPRODUCT(S$9:S$229,Nutrients!$DC$8:$DC$228)+(IF($A$7=Nutrients!$B$8,Nutrients!$DC$8,Nutrients!$DC$9)*S$7)+(((IF($A$8=Nutrients!$B$79,Nutrients!$DC$79,(IF($A$8=Nutrients!$B$77,Nutrients!$DC$77,Nutrients!$DC$78)))))*S$8))/2000/S$236*100","v":57.007610072729378},{"$f":"(SUMPRODUCT(T$9:T$229,Nutrients!$DC$8:$DC$228)+(IF($A$7=Nutrients!$B$8,Nutrients!$DC$8,Nutrients!$DC$9)*T$7)+(((IF($A$8=Nutrients!$B$79,Nutrients!$DC$79,(IF($A$8=Nutrients!$B$77,Nutrients!$DC$77,Nutrients!$DC$78)))))*T$8))/2000/T$236*100","v":57.391797987173121},{"$f":"(SUMPRODUCT(U$9:U$229,Nutrients!$DC$8:$DC$228)+(IF($A$7=Nutrients!$B$8,Nutrients!$DC$8,Nutrients!$DC$9)*U$7)+(((IF($A$8=Nutrients!$B$79,Nutrients!$DC$79,(IF($A$8=Nutrients!$B$77,Nutrients!$DC$77,Nutrients!$DC$78)))))*U$8))/2000/U$236*100","v":58.54716329024091},null,{"$f":"(SUMPRODUCT(W$9:W$229,Nutrients!$DC$8:$DC$228)+(IF($A$7=Nutrients!$B$8,Nutrients!$DC$8,Nutrients!$DC$9)*W$7)+(((IF($A$8=Nutrients!$B$79,Nutrients!$DC$79,(IF($A$8=Nutrients!$B$77,Nutrients!$DC$77,Nutrients!$DC$78)))))*W$8))/2000/W$236*100","v":56.015376074005907},{"$f":"(SUMPRODUCT(X$9:X$229,Nutrients!$DC$8:$DC$228)+(IF($A$7=Nutrients!$B$8,Nutrients!$DC$8,Nutrients!$DC$9)*X$7)+(((IF($A$8=Nutrients!$B$79,Nutrients!$DC$79,(IF($A$8=Nutrients!$B$77,Nutrients!$DC$77,Nutrients!$DC$78)))))*X$8))/2000/X$236*100","v":55.999927536815584},{"$f":"(SUMPRODUCT(Y$9:Y$229,Nutrients!$DC$8:$DC$228)+(IF($A$7=Nutrients!$B$8,Nutrients!$DC$8,Nutrients!$DC$9)*Y$7)+(((IF($A$8=Nutrients!$B$79,Nutrients!$DC$79,(IF($A$8=Nutrients!$B$77,Nutrients!$DC$77,Nutrients!$DC$78)))))*Y$8))/2000/Y$236*100","v":56.019681847974631},{"$f":"(SUMPRODUCT(Z$9:Z$229,Nutrients!$DC$8:$DC$228)+(IF($A$7=Nutrients!$B$8,Nutrients!$DC$8,Nutrients!$DC$9)*Z$7)+(((IF($A$8=Nutrients!$B$79,Nutrients!$DC$79,(IF($A$8=Nutrients!$B$77,Nutrients!$DC$77,Nutrients!$DC$78)))))*Z$8))/2000/Z$236*100","v":57.001922946457483},{"$f":"(SUMPRODUCT(AA$9:AA$229,Nutrients!$DC$8:$DC$228)+(IF($A$7=Nutrients!$B$8,Nutrients!$DC$8,Nutrients!$DC$9)*AA$7)+(((IF($A$8=Nutrients!$B$79,Nutrients!$DC$79,(IF($A$8=Nutrients!$B$77,Nutrients!$DC$77,Nutrients!$DC$78)))))*AA$8))/2000/AA$236*100","v":59.044355692864102},{"$f":"(SUMPRODUCT(AB$9:AB$229,Nutrients!$DC$8:$DC$228)+(IF($A$7=Nutrients!$B$8,Nutrients!$DC$8,Nutrients!$DC$9)*AB$7)+(((IF($A$8=Nutrients!$B$79,Nutrients!$DC$79,(IF($A$8=Nutrients!$B$77,Nutrients!$DC$77,Nutrients!$DC$78)))))*AB$8))/2000/AB$236*100","v":60.288466491396683},null,{"$f":"(SUMPRODUCT(AD$9:AD$229,Nutrients!$DC$8:$DC$228)+(IF($A$7=Nutrients!$B$8,Nutrients!$DC$8,Nutrients!$DC$9)*AD$7)+(((IF($A$8=Nutrients!$B$79,Nutrients!$DC$79,(IF($A$8=Nutrients!$B$77,Nutrients!$DC$77,Nutrients!$DC$78)))))*AD$8))/2000/AD$236*100","v":55.996758923331491},{"$f":"(SUMPRODUCT(AE$9:AE$229,Nutrients!$DC$8:$DC$228)+(IF($A$7=Nutrients!$B$8,Nutrients!$DC$8,Nutrients!$DC$9)*AE$7)+(((IF($A$8=Nutrients!$B$79,Nutrients!$DC$79,(IF($A$8=Nutrients!$B$77,Nutrients!$DC$77,Nutrients!$DC$78)))))*AE$8))/2000/AE$236*100","v":56.033715640061885},{"$f":"(SUMPRODUCT(AF$9:AF$229,Nutrients!$DC$8:$DC$228)+(IF($A$7=Nutrients!$B$8,Nutrients!$DC$8,Nutrients!$DC$9)*AF$7)+(((IF($A$8=Nutrients!$B$79,Nutrients!$DC$79,(IF($A$8=Nutrients!$B$77,Nutrients!$DC$77,Nutrients!$DC$78)))))*AF$8))/2000/AF$236*100","v":56.028907869483625},{"$f":"(SUMPRODUCT(AG$9:AG$229,Nutrients!$DC$8:$DC$228)+(IF($A$7=Nutrients!$B$8,Nutrients!$DC$8,Nutrients!$DC$9)*AG$7)+(((IF($A$8=Nutrients!$B$79,Nutrients!$DC$79,(IF($A$8=Nutrients!$B$77,Nutrients!$DC$77,Nutrients!$DC$78)))))*AG$8))/2000/AG$236*100","v":58.586778715152676},{"$f":"(SUMPRODUCT(AH$9:AH$229,Nutrients!$DC$8:$DC$228)+(IF($A$7=Nutrients!$B$8,Nutrients!$DC$8,Nutrients!$DC$9)*AH$7)+(((IF($A$8=Nutrients!$B$79,Nutrients!$DC$79,(IF($A$8=Nutrients!$B$77,Nutrients!$DC$77,Nutrients!$DC$78)))))*AH$8))/2000/AH$236*100","v":60.71791457514896},{"$f":"(SUMPRODUCT(AI$9:AI$229,Nutrients!$DC$8:$DC$228)+(IF($A$7=Nutrients!$B$8,Nutrients!$DC$8,Nutrients!$DC$9)*AI$7)+(((IF($A$8=Nutrients!$B$79,Nutrients!$DC$79,(IF($A$8=Nutrients!$B$77,Nutrients!$DC$77,Nutrients!$DC$78)))))*AI$8))/2000/AI$236*100","v":62.04972783978252},null,{"$f":"(SUMPRODUCT(AK$9:AK$229,Nutrients!$DC$8:$DC$228)+(IF($A$7=Nutrients!$B$8,Nutrients!$DC$8,Nutrients!$DC$9)*AK$7)+(((IF($A$8=Nutrients!$B$79,Nutrients!$DC$79,(IF($A$8=Nutrients!$B$77,Nutrients!$DC$77,Nutrients!$DC$78)))))*AK$8))/2000/AK$236*100","v":56.057930306696576},{"$f":"(SUMPRODUCT(AL$9:AL$229,Nutrients!$DC$8:$DC$228)+(IF($A$7=Nutrients!$B$8,Nutrients!$DC$8,Nutrients!$DC$9)*AL$7)+(((IF($A$8=Nutrients!$B$79,Nutrients!$DC$79,(IF($A$8=Nutrients!$B$77,Nutrients!$DC$77,Nutrients!$DC$78)))))*AL$8))/2000/AL$236*100","v":56.012130792296333},{"$f":"(SUMPRODUCT(AM$9:AM$229,Nutrients!$DC$8:$DC$228)+(IF($A$7=Nutrients!$B$8,Nutrients!$DC$8,Nutrients!$DC$9)*AM$7)+(((IF($A$8=Nutrients!$B$79,Nutrients!$DC$79,(IF($A$8=Nutrients!$B$77,Nutrients!$DC$77,Nutrients!$DC$78)))))*AM$8))/2000/AM$236*100","v":56.683591210870446},{"$f":"(SUMPRODUCT(AN$9:AN$229,Nutrients!$DC$8:$DC$228)+(IF($A$7=Nutrients!$B$8,Nutrients!$DC$8,Nutrients!$DC$9)*AN$7)+(((IF($A$8=Nutrients!$B$79,Nutrients!$DC$79,(IF($A$8=Nutrients!$B$77,Nutrients!$DC$77,Nutrients!$DC$78)))))*AN$8))/2000/AN$236*100","v":60.143430216001072},{"$f":"(SUMPRODUCT(AO$9:AO$229,Nutrients!$DC$8:$DC$228)+(IF($A$7=Nutrients!$B$8,Nutrients!$DC$8,Nutrients!$DC$9)*AO$7)+(((IF($A$8=Nutrients!$B$79,Nutrients!$DC$79,(IF($A$8=Nutrients!$B$77,Nutrients!$DC$77,Nutrients!$DC$78)))))*AO$8))/2000/AO$236*100","v":62.418754426522405},{"$f":"(SUMPRODUCT(AP$9:AP$229,Nutrients!$DC$8:$DC$228)+(IF($A$7=Nutrients!$B$8,Nutrients!$DC$8,Nutrients!$DC$9)*AP$7)+(((IF($A$8=Nutrients!$B$79,Nutrients!$DC$79,(IF($A$8=Nutrients!$B$77,Nutrients!$DC$77,Nutrients!$DC$78)))))*AP$8))/2000/AP$236*100","v":63.841958528002372},null,{"$f":"(SUMPRODUCT(AR$9:AR$229,Nutrients!$DC$8:$DC$228)+(IF($A$7=Nutrients!$B$8,Nutrients!$DC$8,Nutrients!$DC$9)*AR$7)+(((IF($A$8=Nutrients!$B$79,Nutrients!$DC$79,(IF($A$8=Nutrients!$B$77,Nutrients!$DC$77,Nutrients!$DC$78)))))*AR$8))/2000/AR$236*100","v":55.986859792365316},{"$f":"(SUMPRODUCT(AS$9:AS$229,Nutrients!$DC$8:$DC$228)+(IF($A$7=Nutrients!$B$8,Nutrients!$DC$8,Nutrients!$DC$9)*AS$7)+(((IF($A$8=Nutrients!$B$79,Nutrients!$DC$79,(IF($A$8=Nutrients!$B$77,Nutrients!$DC$77,Nutrients!$DC$78)))))*AS$8))/2000/AS$236*100","v":55.988082062014676},{"$f":"(SUMPRODUCT(AT$9:AT$229,Nutrients!$DC$8:$DC$228)+(IF($A$7=Nutrients!$B$8,Nutrients!$DC$8,Nutrients!$DC$9)*AT$7)+(((IF($A$8=Nutrients!$B$79,Nutrients!$DC$79,(IF($A$8=Nutrients!$B$77,Nutrients!$DC$77,Nutrients!$DC$78)))))*AT$8))/2000/AT$236*100","v":58.082200168367734},{"$f":"(SUMPRODUCT(AU$9:AU$229,Nutrients!$DC$8:$DC$228)+(IF($A$7=Nutrients!$B$8,Nutrients!$DC$8,Nutrients!$DC$9)*AU$7)+(((IF($A$8=Nutrients!$B$79,Nutrients!$DC$79,(IF($A$8=Nutrients!$B$77,Nutrients!$DC$77,Nutrients!$DC$78)))))*AU$8))/2000/AU$236*100","v":61.721290586303077},{"$f":"(SUMPRODUCT(AV$9:AV$229,Nutrients!$DC$8:$DC$228)+(IF($A$7=Nutrients!$B$8,Nutrients!$DC$8,Nutrients!$DC$9)*AV$7)+(((IF($A$8=Nutrients!$B$79,Nutrients!$DC$79,(IF($A$8=Nutrients!$B$77,Nutrients!$DC$77,Nutrients!$DC$78)))))*AV$8))/2000/AV$236*100","v":64.149178966816493},{"$f":"(SUMPRODUCT(AW$9:AW$229,Nutrients!$DC$8:$DC$228)+(IF($A$7=Nutrients!$B$8,Nutrients!$DC$8,Nutrients!$DC$9)*AW$7)+(((IF($A$8=Nutrients!$B$79,Nutrients!$DC$79,(IF($A$8=Nutrients!$B$77,Nutrients!$DC$77,Nutrients!$DC$78)))))*AW$8))/2000/AW$236*100","v":65.665522531340372}]
["  Thr:Lys",{"$f":"(SUMPRODUCT(B$9:B$229,Nutrients!$DF$8:$DF$228)+(IF($A$7=Nutrients!$B$8,Nutrients!$DF$8,Nutrients!$DF$9)*B$7)+(((IF($A$8=Nutrients!$B$79,Nutrients!$DF$79,(IF($A$8=Nutrients!$B$77,Nutrients!$DF$77,Nutrients!$DF$78)))))*B$8))/2000/B$236*100","v":61.999883344833172},{"$f":"(SUMPRODUCT(C$9:C$229,Nutrients!$DF$8:$DF$228)+(IF($A$7=Nutrients!$B$8,Nutrients!$DF$8,Nutrients!$DF$9)*C$7)+(((IF($A$8=Nutrients!$B$79,Nutrients!$DF$79,(IF($A$8=Nutrients!$B$77,Nutrients!$DF$77,Nutrients!$DF$78)))))*C$8))/2000/C$236*100","v":61.999810412599423},{"$f":"(SUMPRODUCT(D$9:D$229,Nutrients!$DF$8:$DF$228)+(IF($A$7=Nutrients!$B$8,Nutrients!$DF$8,Nutrients!$DF$9)*D$7)+(((IF($A$8=Nutrients!$B$79,Nutrients!$DF$79,(IF($A$8=Nutrients!$B$77,Nutrients!$DF$77,Nutrients!$DF$78)))))*D$8))/2000/D$236*100","v":61.998899620636607},{"$f":"(SUMPRODUCT(E$9:E$229,Nutrients!$DF$8:$DF$228)+(IF($A$7=Nutrients!$B$8,Nutrients!$DF$8,Nutrients!$DF$9)*E$7)+(((IF($A$8=Nutrients!$B$79,Nutrients!$DF$79,(IF($A$8=Nutrients!$B$77,Nutrients!$DF$77,Nutrients!$DF$78)))))*E$8))/2000/E$236*100","v":63.099738392882202},{"$f":"(SUMPRODUCT(F$9:F$229,Nutrients!$DF$8:$DF$228)+(IF($A$7=Nutrients!$B$8,Nutrients!$DF$8,Nutrients!$DF$9)*F$7)+(((IF($A$8=Nutrients!$B$79,Nutrients!$DF$79,(IF($A$8=Nutrients!$B$77,Nutrients!$DF$77,Nutrients!$DF$78)))))*F$8))/2000/F$236*100","v":63.259126445235324},{"$f":"(SUMPRODUCT(G$9:G$229,Nutrients!$DF$8:$DF$228)+(IF($A$7=Nutrients!$B$8,Nutrients!$DF$8,Nutrients!$DF$9)*G$7)+(((IF($A$8=Nutrients!$B$79,Nutrients!$DF$79,(IF($A$8=Nutrients!$B$77,Nutrients!$DF$77,Nutrients!$DF$78)))))*G$8))/2000/G$236*100","v":63.997526400855939},null,{"$f":"(SUMPRODUCT(I$9:I$229,Nutrients!$DF$8:$DF$228)+(IF($A$7=Nutrients!$B$8,Nutrients!$DF$8,Nutrients!$DF$9)*I$7)+(((IF($A$8=Nutrients!$B$79,Nutrients!$DF$79,(IF($A$8=Nutrients!$B$77,Nutrients!$DF$77,Nutrients!$DF$78)))))*I$8))/2000/I$236*100","v":62.000569991263156},{"$f":"(SUMPRODUCT(J$9:J$229,Nutrients!$DF$8:$DF$228)+(IF($A$7=Nutrients!$B$8,Nutrients!$DF$8,Nutrients!$DF$9)*J$7)+(((IF($A$8=Nutrients!$B$79,Nutrients!$DF$79,(IF($A$8=Nutrients!$B$77,Nutrients!$DF$77,Nutrients!$DF$78)))))*J$8))/2000/J$236*100","v":61.976182084011121},{"$f":"(SUMPRODUCT(K$9:K$229,Nutrients!$DF$8:$DF$228)+(IF($A$7=Nutrients!$B$8,Nutrients!$DF$8,Nutrients!$DF$9)*K$7)+(((IF($A$8=Nutrients!$B$79,Nutrients!$DF$79,(IF($A$8=Nutrients!$B$77,Nutrients!$DF$77,Nutrients!$DF$78)))))*K$8))/2000/K$236*100","v":62.004674175330955},{"$f":"(SUMPRODUCT(L$9:L$229,Nutrients!$DF$8:$DF$228)+(IF($A$7=Nutrients!$B$8,Nutrients!$DF$8,Nutrients!$DF$9)*L$7)+(((IF($A$8=Nutrients!$B$79,Nutrients!$DF$79,(IF($A$8=Nutrients!$B$77,Nutrients!$DF$77,Nutrients!$DF$78)))))*L$8))/2000/L$236*100","v":63.003004109558923},{"$f":"(SUMPRODUCT(M$9:M$229,Nutrients!$DF$8:$DF$228)+(IF($A$7=Nutrients!$B$8,Nutrients!$DF$8,Nutrients!$DF$9)*M$7)+(((IF($A$8=Nutrients!$B$79,Nutrients!$DF$79,(IF($A$8=Nutrients!$B$77,Nutrients!$DF$77,Nutrients!$DF$78)))))*M$8))/2000/M$236*100","v":63.000729339549096},{"$f":"(SUMPRODUCT(N$9:N$229,Nutrients!$DF$8:$DF$228)+(IF($A$7=Nutrients!$B$8,Nutrients!$DF$8,Nutrients!$DF$9)*N$7)+(((IF($A$8=Nutrients!$B$79,Nutrients!$DF$79,(IF($A$8=Nutrients!$B$77,Nutrients!$DF$77,Nutrients!$DF$78)))))*N$8))/2000/N$236*100","v":63.998357264029963},null,{"$f":"(SUMPRODUCT(P$9:P$229,Nutrients!$DF$8:$DF$228)+(IF($A$7=Nutrients!$B$8,Nutrients!$DF$8,Nutrients!$DF$9)*P$7)+(((IF($A$8=Nutrients!$B$79,Nutrients!$DF$79,(IF($A$8=Nutrients!$B$77,Nutrients!$DF$77,Nutrients!$DF$78)))))*P$8))/2000/P$236*100","v":62.000866143523311},{"$f":"(SUMPRODUCT(Q$9:Q$229,Nutrients!$DF$8:$DF$228)+(IF($A$7=Nutrients!$B$8,Nutrients!$DF$8,Nutrients!$DF$9)*Q$7)+(((IF($A$8=Nutrients!$B$79,Nutrients!$DF$79,(IF($A$8=Nutrients!$B$77,Nutrients!$DF$77,Nutrients!$DF$78)))))*Q$8))/2000/Q$236*100","v":62.001408639650002},{"$f":"(SUMPRODUCT(R$9:R$229,Nutrients!$DF$8:$DF$228)+(IF($A$7=Nutrients!$B$8,Nutrients!$DF$8,Nutrients!$DF$9)*R$7)+(((IF($A$8=Nutrients!$B$79,Nutrients!$DF$79,(IF($A$8=Nutrients!$B$77,Nutrients!$DF$77,Nutrients!$DF$78)))))*R$8))/2000/R$236*100","v":62.00346788903154},{"$f":"(SUMPRODUCT(S$9:S$229,Nutrients!$DF$8:$DF$228)+(IF($A$7=Nutrients!$B$8,Nutrients!$DF$8,Nutrients!$DF$9)*S$7)+(((IF($A$8=Nutrients!$B$79,Nutrients!$DF$79,(IF($A$8=Nutrients!$B$77,Nutrients!$DF$77,Nutrients!$DF$78)))))*S$8))/2000/S$236*100","v":63.001707070664516},{"$f":"(SUMPRODUCT(T$9:T$229,Nutrients!$DF$8:$DF$228)+(IF($A$7=Nutrients!$B$8,Nutrients!$DF$8,Nutrients!$DF$9)*T$7)+(((IF($A$8=Nutrients!$B$79,Nutrients!$DF$79,(IF($A$8=Nutrients!$B$77,Nutrients!$DF$77,Nutrients!$DF$78)))))*T$8))/2000/T$236*100","v":63.00057394345616},{"$f":"(SUMPRODUCT(U$9:U$229,Nutrients!$DF$8:$DF$228)+(IF($A$7=Nutrients!$B$8,Nutrients!$DF$8,Nutrients!$DF$9)*U$7)+(((IF($A$8=Nutrients!$B$79,Nutrients!$DF$79,(IF($A$8=Nutrients!$B$77,Nutrients!$DF$77,Nutrients!$DF$78)))))*U$8))/2000/U$236*100","v":63.99910081131376},null,{"$f":"(SUMPRODUCT(W$9:W$229,Nutrients!$DF$8:$DF$228)+(IF($A$7=Nutrients!$B$8,Nutrients!$DF$8,Nutrients!$DF$9)*W$7)+(((IF($A$8=Nutrients!$B$79,Nutrients!$DF$79,(IF($A$8=Nutrients!$B$77,Nutrients!$DF$77,Nutrients!$DF$78)))))*W$8))/2000/W$236*100","v":62.019961395155306},{"$f":"(SUMPRODUCT(X$9:X$229,Nutrients!$DF$8:$DF$228)+(IF($A$7=Nutrients!$B$8,Nutrients!$DF$8,Nutrients!$DF$9)*X$7)+(((IF($A$8=Nutrients!$B$79,Nutrients!$DF$79,(IF($A$8=Nutrients!$B$77,Nutrients!$DF$77,Nutrients!$DF$78)))))*X$8))/2000/X$236*100","v":62.017334341729956},{"$f":"(SUMPRODUCT(Y$9:Y$229,Nutrients!$DF$8:$DF$228)+(IF($A$7=Nutrients!$B$8,Nutrients!$DF$8,Nutrients!$DF$9)*Y$7)+(((IF($A$8=Nutrients!$B$79,Nutrients!$DF$79,(IF($A$8=Nutrients!$B$77,Nutrients!$DF$77,Nutrients!$DF$78)))))*Y$8))/2000/Y$236*100","v":62.02396547033662},{"$f":"(SUMPRODUCT(Z$9:Z$229,Nutrients!$DF$8:$DF$228)+(IF($A$7=Nutrients!$B$8,Nutrients!$DF$8,Nutrients!$DF$9)*Z$7)+(((IF($A$8=Nutrients!$B$79,Nutrients!$DF$79,(IF($A$8=Nutrients!$B$77,Nutrients!$DF$77,Nutrients!$DF$78)))))*Z$8))/2000/Z$236*100","v":63.021776413838424},{"$f":"(SUMPRODUCT(AA$9:AA$229,Nutrients!$DF$8:$DF$228)+(IF($A$7=Nutrients!$B$8,Nutrients!$DF$8,Nutrients!$DF$9)*AA$7)+(((IF($A$8=Nutrients!$B$79,Nutrients!$DF$79,(IF($A$8=Nutrients!$B$77,Nutrients!$DF$77,Nutrients!$DF$78)))))*AA$8))/2000/AA$236*100","v":63.015529108591942},{"$f":"(SUMPRODUCT(AB$9:AB$229,Nutrients!$DF$8:$DF$228)+(IF($A$7=Nutrients!$B$8,Nutrients!$DF$8,Nutrients!$DF$9)*AB$7)+(((IF($A$8=Nutrients!$B$79,Nutrients!$DF$79,(IF($A$8=Nutrients!$B$77,Nutrients!$DF$77,Nutrients!$DF$78)))))*AB$8))/2000/AB$236*100","v":64.018806402207346},null,{"$f":"(SUMPRODUCT(AD$9:AD$229,Nutrients!$DF$8:$DF$228)+(IF($A$7=Nutrients!$B$8,Nutrients!$DF$8,Nutrients!$DF$9)*AD$7)+(((IF($A$8=Nutrients!$B$79,Nutrients!$DF$79,(IF($A$8=Nutrients!$B$77,Nutrients!$DF$77,Nutrients!$DF$78)))))*AD$8))/2000/AD$236*100","v":62.039546294056755},{"$f":"(SUMPRODUCT(AE$9:AE$229,Nutrients!$DF$8:$DF$228)+(IF($A$7=Nutrients!$B$8,Nutrients!$DF$8,Nutrients!$DF$9)*AE$7)+(((IF($A$8=Nutrients!$B$79,Nutrients!$DF$79,(IF($A$8=Nutrients!$B$77,Nutrients!$DF$77,Nutrients!$DF$78)))))*AE$8))/2000/AE$236*100","v":62.041405978794003},{"$f":"(SUMPRODUCT(AF$9:AF$229,Nutrients!$DF$8:$DF$228)+(IF($A$7=Nutrients!$B$8,Nutrients!$DF$8,Nutrients!$DF$9)*AF$7)+(((IF($A$8=Nutrients!$B$79,Nutrients!$DF$79,(IF($A$8=Nutrients!$B$77,Nutrients!$DF$77,Nutrients!$DF$78)))))*AF$8))/2000/AF$236*100","v":62.041877025411537},{"$f":"(SUMPRODUCT(AG$9:AG$229,Nutrients!$DF$8:$DF$228)+(IF($A$7=Nutrients!$B$8,Nutrients!$DF$8,Nutrients!$DF$9)*AG$7)+(((IF($A$8=Nutrients!$B$79,Nutrients!$DF$79,(IF($A$8=Nutrients!$B$77,Nutrients!$DF$77,Nutrients!$DF$78)))))*AG$8))/2000/AG$236*100","v":63.040288955718957},{"$f":"(SUMPRODUCT(AH$9:AH$229,Nutrients!$DF$8:$DF$228)+(IF($A$7=Nutrients!$B$8,Nutrients!$DF$8,Nutrients!$DF$9)*AH$7)+(((IF($A$8=Nutrients!$B$79,Nutrients!$DF$79,(IF($A$8=Nutrients!$B$77,Nutrients!$DF$77,Nutrients!$DF$78)))))*AH$8))/2000/AH$236*100","v":63.025396847040184},{"$f":"(SUMPRODUCT(AI$9:AI$229,Nutrients!$DF$8:$DF$228)+(IF($A$7=Nutrients!$B$8,Nutrients!$DF$8,Nutrients!$DF$9)*AI$7)+(((IF($A$8=Nutrients!$B$79,Nutrients!$DF$79,(IF($A$8=Nutrients!$B$77,Nutrients!$DF$77,Nutrients!$DF$78)))))*AI$8))/2000/AI$236*100","v":64.032437968451632},null,{"$f":"(SUMPRODUCT(AK$9:AK$229,Nutrients!$DF$8:$DF$228)+(IF($A$7=Nutrients!$B$8,Nutrients!$DF$8,Nutrients!$DF$9)*AK$7)+(((IF($A$8=Nutrients!$B$79,Nutrients!$DF$79,(IF($A$8=Nutrients!$B$77,Nutrients!$DF$77,Nutrients!$DF$78)))))*AK$8))/2000/AK$236*100","v":62.057341803845581},{"$f":"(SUMPRODUCT(AL$9:AL$229,Nutrients!$DF$8:$DF$228)+(IF($A$7=Nutrients!$B$8,Nutrients!$DF$8,Nutrients!$DF$9)*AL$7)+(((IF($A$8=Nutrients!$B$79,Nutrients!$DF$79,(IF($A$8=Nutrients!$B$77,Nutrients!$DF$77,Nutrients!$DF$78)))))*AL$8))/2000/AL$236*100","v":62.063823469880653},{"$f":"(SUMPRODUCT(AM$9:AM$229,Nutrients!$DF$8:$DF$228)+(IF($A$7=Nutrients!$B$8,Nutrients!$DF$8,Nutrients!$DF$9)*AM$7)+(((IF($A$8=Nutrients!$B$79,Nutrients!$DF$79,(IF($A$8=Nutrients!$B$77,Nutrients!$DF$77,Nutrients!$DF$78)))))*AM$8))/2000/AM$236*100","v":62.058294645741661},{"$f":"(SUMPRODUCT(AN$9:AN$229,Nutrients!$DF$8:$DF$228)+(IF($A$7=Nutrients!$B$8,Nutrients!$DF$8,Nutrients!$DF$9)*AN$7)+(((IF($A$8=Nutrients!$B$79,Nutrients!$DF$79,(IF($A$8=Nutrients!$B$77,Nutrients!$DF$77,Nutrients!$DF$78)))))*AN$8))/2000/AN$236*100","v":63.05547000741398},{"$f":"(SUMPRODUCT(AO$9:AO$229,Nutrients!$DF$8:$DF$228)+(IF($A$7=Nutrients!$B$8,Nutrients!$DF$8,Nutrients!$DF$9)*AO$7)+(((IF($A$8=Nutrients!$B$79,Nutrients!$DF$79,(IF($A$8=Nutrients!$B$77,Nutrients!$DF$77,Nutrients!$DF$78)))))*AO$8))/2000/AO$236*100","v":63.033632444729037},{"$f":"(SUMPRODUCT(AP$9:AP$229,Nutrients!$DF$8:$DF$228)+(IF($A$7=Nutrients!$B$8,Nutrients!$DF$8,Nutrients!$DF$9)*AP$7)+(((IF($A$8=Nutrients!$B$79,Nutrients!$DF$79,(IF($A$8=Nutrients!$B$77,Nutrients!$DF$77,Nutrients!$DF$78)))))*AP$8))/2000/AP$236*100","v":64.046444024299916},null,{"$f":"(SUMPRODUCT(AR$9:AR$229,Nutrients!$DF$8:$DF$228)+(IF($A$7=Nutrients!$B$8,Nutrients!$DF$8,Nutrients!$DF$9)*AR$7)+(((IF($A$8=Nutrients!$B$79,Nutrients!$DF$79,(IF($A$8=Nutrients!$B$77,Nutrients!$DF$77,Nutrients!$DF$78)))))*AR$8))/2000/AR$236*100","v":62.060914703398041},{"$f":"(SUMPRODUCT(AS$9:AS$229,Nutrients!$DF$8:$DF$228)+(IF($A$7=Nutrients!$B$8,Nutrients!$DF$8,Nutrients!$DF$9)*AS$7)+(((IF($A$8=Nutrients!$B$79,Nutrients!$DF$79,(IF($A$8=Nutrients!$B$77,Nutrients!$DF$77,Nutrients!$DF$78)))))*AS$8))/2000/AS$236*100","v":62.085606929240235},{"$f":"(SUMPRODUCT(AT$9:AT$229,Nutrients!$DF$8:$DF$228)+(IF($A$7=Nutrients!$B$8,Nutrients!$DF$8,Nutrients!$DF$9)*AT$7)+(((IF($A$8=Nutrients!$B$79,Nutrients!$DF$79,(IF($A$8=Nutrients!$B$77,Nutrients!$DF$77,Nutrients!$DF$78)))))*AT$8))/2000/AT$236*100","v":62.072081271203729},{"$f":"(SUMPRODUCT(AU$9:AU$229,Nutrients!$DF$8:$DF$228)+(IF($A$7=Nutrients!$B$8,Nutrients!$DF$8,Nutrients!$DF$9)*AU$7)+(((IF($A$8=Nutrients!$B$79,Nutrients!$DF$79,(IF($A$8=Nutrients!$B$77,Nutrients!$DF$77,Nutrients!$DF$78)))))*AU$8))/2000/AU$236*100","v":63.067364235897763},{"$f":"(SUMPRODUCT(AV$9:AV$229,Nutrients!$DF$8:$DF$228)+(IF($A$7=Nutrients!$B$8,Nutrients!$DF$8,Nutrients!$DF$9)*AV$7)+(((IF($A$8=Nutrients!$B$79,Nutrients!$DF$79,(IF($A$8=Nutrients!$B$77,Nutrients!$DF$77,Nutrients!$DF$78)))))*AV$8))/2000/AV$236*100","v":63.041943485202964},{"$f":"(SUMPRODUCT(AW$9:AW$229,Nutrients!$DF$8:$DF$228)+(IF($A$7=Nutrients!$B$8,Nutrients!$DF$8,Nutrients!$DF$9)*AW$7)+(((IF($A$8=Nutrients!$B$79,Nutrients!$DF$79,(IF($A$8=Nutrients!$B$77,Nutrients!$DF$77,Nutrients!$DF$78)))))*AW$8))/2000/AW$236*100","v":64.060663972726331}]
["  Trp:Lys",{"$f":"(SUMPRODUCT(B$9:B$229,Nutrients!$DG$8:$DG$228)+(IF($A$7=Nutrients!$B$8,Nutrients!$DG$8,Nutrients!$DG$9)*B$7)+(((IF($A$8=Nutrients!$B$79,Nutrients!$DG$79,(IF($A$8=Nutrients!$B$77,Nutrients!$DG$77,Nutrients!$DG$78)))))*B$8))/2000/B$236*100","v":19.000000000000007},{"$f":"(SUMPRODUCT(C$9:C$229,Nutrients!$DG$8:$DG$228)+(IF($A$7=Nutrients!$B$8,Nutrients!$DG$8,Nutrients!$DG$9)*C$7)+(((IF($A$8=Nutrients!$B$79,Nutrients!$DG$79,(IF($A$8=Nutrients!$B$77,Nutrients!$DG$77,Nutrients!$DG$78)))))*C$8))/2000/C$236*100","v":18.999991891262606},{"$f":"(SUMPRODUCT(D$9:D$229,Nutrients!$DG$8:$DG$228)+(IF($A$7=Nutrients!$B$8,Nutrients!$DG$8,Nutrients!$DG$9)*D$7)+(((IF($A$8=Nutrients!$B$79,Nutrients!$DG$79,(IF($A$8=Nutrients!$B$77,Nutrients!$DG$77,Nutrients!$DG$78)))))*D$8))/2000/D$236*100","v":18.999965465148328},{"$f":"(SUMPRODUCT(E$9:E$229,Nutrients!$DG$8:$DG$228)+(IF($A$7=Nutrients!$B$8,Nutrients!$DG$8,Nutrients!$DG$9)*E$7)+(((IF($A$8=Nutrients!$B$79,Nutrients!$DG$79,(IF($A$8=Nutrients!$B$77,Nutrients!$DG$77,Nutrients!$DG$78)))))*E$8))/2000/E$236*100","v":19.040987478551372},{"$f":"(SUMPRODUCT(F$9:F$229,Nutrients!$DG$8:$DG$228)+(IF($A$7=Nutrients!$B$8,Nutrients!$DG$8,Nutrients!$DG$9)*F$7)+(((IF($A$8=Nutrients!$B$79,Nutrients!$DG$79,(IF($A$8=Nutrients!$B$77,Nutrients!$DG$77,Nutrients!$DG$78)))))*F$8))/2000/F$236*100","v":19.105485625301228},{"$f":"(SUMPRODUCT(G$9:G$229,Nutrients!$DG$8:$DG$228)+(IF($A$7=Nutrients!$B$8,Nutrients!$DG$8,Nutrients!$DG$9)*G$7)+(((IF($A$8=Nutrients!$B$79,Nutrients!$DG$79,(IF($A$8=Nutrients!$B$77,Nutrients!$DG$77,Nutrients!$DG$78)))))*G$8))/2000/G$236*100","v":19.003555679157927},null,{"$f":"(SUMPRODUCT(I$9:I$229,Nutrients!$DG$8:$DG$228)+(IF($A$7=Nutrients!$B$8,Nutrients!$DG$8,Nutrients!$DG$9)*I$7)+(((IF($A$8=Nutrients!$B$79,Nutrients!$DG$79,(IF($A$8=Nutrients!$B$77,Nutrients!$DG$77,Nutrients!$DG$78)))))*I$8))/2000/I$236*100","v":19.000021565173054},{"$f":"(SUMPRODUCT(J$9:J$229,Nutrients!$DG$8:$DG$228)+(IF($A$7=Nutrients!$B$8,Nutrients!$DG$8,Nutrients!$DG$9)*J$7)+(((IF($A$8=Nutrients!$B$79,Nutrients!$DG$79,(IF($A$8=Nutrients!$B$77,Nutrients!$DG$77,Nutrients!$DG$78)))))*J$8))/2000/J$236*100","v":19.000106319067076},{"$f":"(SUMPRODUCT(K$9:K$229,Nutrients!$DG$8:$DG$228)+(IF($A$7=Nutrients!$B$8,Nutrients!$DG$8,Nutrients!$DG$9)*K$7)+(((IF($A$8=Nutrients!$B$79,Nutrients!$DG$79,(IF($A$8=Nutrients!$B$77,Nutrients!$DG$77,Nutrients!$DG$78)))))*K$8))/2000/K$236*100","v":19.000216013324174},{"$f":"(SUMPRODUCT(L$9:L$229,Nutrients!$DG$8:$DG$228)+(IF($A$7=Nutrients!$B$8,Nutrients!$DG$8,Nutrients!$DG$9)*L$7)+(((IF($A$8=Nutrients!$B$79,Nutrients!$DG$79,(IF($A$8=Nutrients!$B$77,Nutrients!$DG$77,Nutrients!$DG$78)))))*L$8))/2000/L$236*100","v":19.000123495960423},{"$f":"(SUMPRODUCT(M$9:M$229,Nutrients!$DG$8:$DG$228)+(IF($A$7=Nutrients!$B$8,Nutrients!$DG$8,Nutrients!$DG$9)*M$7)+(((IF($A$8=Nutrients!$B$79,Nutrients!$DG$79,(IF($A$8=Nutrients!$B$77,Nutrients!$DG$77,Nutrients!$DG$78)))))*M$8))/2000/M$236*100","v":19.0000239538867},{"$f":"(SUMPRODUCT(N$9:N$229,Nutrients!$DG$8:$DG$228)+(IF($A$7=Nutrients!$B$8,Nutrients!$DG$8,Nutrients!$DG$9)*N$7)+(((IF($A$8=Nutrients!$B$79,Nutrients!$DG$79,(IF($A$8=Nutrients!$B$77,Nutrients!$DG$77,Nutrients!$DG$78)))))*N$8))/2000/N$236*100","v":18.999912965877677},null,{"$f":"(SUMPRODUCT(P$9:P$229,Nutrients!$DG$8:$DG$228)+(IF($A$7=Nutrients!$B$8,Nutrients!$DG$8,Nutrients!$DG$9)*P$7)+(((IF($A$8=Nutrients!$B$79,Nutrients!$DG$79,(IF($A$8=Nutrients!$B$77,Nutrients!$DG$77,Nutrients!$DG$78)))))*P$8))/2000/P$236*100","v":19.000045132863594},{"$f":"(SUMPRODUCT(Q$9:Q$229,Nutrients!$DG$8:$DG$228)+(IF($A$7=Nutrients!$B$8,Nutrients!$DG$8,Nutrients!$DG$9)*Q$7)+(((IF($A$8=Nutrients!$B$79,Nutrients!$DG$79,(IF($A$8=Nutrients!$B$77,Nutrients!$DG$77,Nutrients!$DG$78)))))*Q$8))/2000/Q$236*100","v":19.000062629007488},{"$f":"(SUMPRODUCT(R$9:R$229,Nutrients!$DG$8:$DG$228)+(IF($A$7=Nutrients!$B$8,Nutrients!$DG$8,Nutrients!$DG$9)*R$7)+(((IF($A$8=Nutrients!$B$79,Nutrients!$DG$79,(IF($A$8=Nutrients!$B$77,Nutrients!$DG$77,Nutrients!$DG$78)))))*R$8))/2000/R$236*100","v":18.980689159350675},{"$f":"(SUMPRODUCT(S$9:S$229,Nutrients!$DG$8:$DG$228)+(IF($A$7=Nutrients!$B$8,Nutrients!$DG$8,Nutrients!$DG$9)*S$7)+(((IF($A$8=Nutrients!$B$79,Nutrients!$DG$79,(IF($A$8=Nutrients!$B$77,Nutrients!$DG$77,Nutrients!$DG$78)))))*S$8))/2000/S$236*100","v":18.976243459195636},{"$f":"(SUMPRODUCT(T$9:T$229,Nutrients!$DG$8:$DG$228)+(IF($A$7=Nutrients!$B$8,Nutrients!$DG$8,Nutrients!$DG$9)*T$7)+(((IF($A$8=Nutrients!$B$79,Nutrients!$DG$79,(IF($A$8=Nutrients!$B$77,Nutrients!$DG$77,Nutrients!$DG$78)))))*T$8))/2000/T$236*100","v":18.977622840948218},{"$f":"(SUMPRODUCT(U$9:U$229,Nutrients!$DG$8:$DG$228)+(IF($A$7=Nutrients!$B$8,Nutrients!$DG$8,Nutrients!$DG$9)*U$7)+(((IF($A$8=Nutrients!$B$79,Nutrients!$DG$79,(IF($A$8=Nutrients!$B$77,Nutrients!$DG$77,Nutrients!$DG$78)))))*U$8))/2000/U$236*100","v":18.97789716344916},null,{"$f":"(SUMPRODUCT(W$9:W$229,Nutrients!$DG$8:$DG$228)+(IF($A$7=Nutrients!$B$8,Nutrients!$DG$8,Nutrients!$DG$9)*W$7)+(((IF($A$8=Nutrients!$B$79,Nutrients!$DG$79,(IF($A$8=Nutrients!$B$77,Nutrients!$DG$77,Nutrients!$DG$78)))))*W$8))/2000/W$236*100","v":18.979086330404591},{"$f":"(SUMPRODUCT(X$9:X$229,Nutrients!$DG$8:$DG$228)+(IF($A$7=Nutrients!$B$8,Nutrients!$DG$8,Nutrients!$DG$9)*X$7)+(((IF($A$8=Nutrients!$B$79,Nutrients!$DG$79,(IF($A$8=Nutrients!$B$77,Nutrients!$DG$77,Nutrients!$DG$78)))))*X$8))/2000/X$236*100","v":18.979429276835386},{"$f":"(SUMPRODUCT(Y$9:Y$229,Nutrients!$DG$8:$DG$228)+(IF($A$7=Nutrients!$B$8,Nutrients!$DG$8,Nutrients!$DG$9)*Y$7)+(((IF($A$8=Nutrients!$B$79,Nutrients!$DG$79,(IF($A$8=Nutrients!$B$77,Nutrients!$DG$77,Nutrients!$DG$78)))))*Y$8))/2000/Y$236*100","v":18.955467499026245},{"$f":"(SUMPRODUCT(Z$9:Z$229,Nutrients!$DG$8:$DG$228)+(IF($A$7=Nutrients!$B$8,Nutrients!$DG$8,Nutrients!$DG$9)*Z$7)+(((IF($A$8=Nutrients!$B$79,Nutrients!$DG$79,(IF($A$8=Nutrients!$B$77,Nutrients!$DG$77,Nutrients!$DG$78)))))*Z$8))/2000/Z$236*100","v":18.953497006970814},{"$f":"(SUMPRODUCT(AA$9:AA$229,Nutrients!$DG$8:$DG$228)+(IF($A$7=Nutrients!$B$8,Nutrients!$DG$8,Nutrients!$DG$9)*AA$7)+(((IF($A$8=Nutrients!$B$79,Nutrients!$DG$79,(IF($A$8=Nutrients!$B$77,Nutrients!$DG$77,Nutrients!$DG$78)))))*AA$8))/2000/AA$236*100","v":18.95518018703978},{"$f":"(SUMPRODUCT(AB$9:AB$229,Nutrients!$DG$8:$DG$228)+(IF($A$7=Nutrients!$B$8,Nutrients!$DG$8,Nutrients!$DG$9)*AB$7)+(((IF($A$8=Nutrients!$B$79,Nutrients!$DG$79,(IF($A$8=Nutrients!$B$77,Nutrients!$DG$77,Nutrients!$DG$78)))))*AB$8))/2000/AB$236*100","v":18.954420110870437},null,{"$f":"(SUMPRODUCT(AD$9:AD$229,Nutrients!$DG$8:$DG$228)+(IF($A$7=Nutrients!$B$8,Nutrients!$DG$8,Nutrients!$DG$9)*AD$7)+(((IF($A$8=Nutrients!$B$79,Nutrients!$DG$79,(IF($A$8=Nutrients!$B$77,Nutrients!$DG$77,Nutrients!$DG$78)))))*AD$8))/2000/AD$236*100","v":18.999998349334629},{"$f":"(SUMPRODUCT(AE$9:AE$229,Nutrients!$DG$8:$DG$228)+(IF($A$7=Nutrients!$B$8,Nutrients!$DG$8,Nutrients!$DG$9)*AE$7)+(((IF($A$8=Nutrients!$B$79,Nutrients!$DG$79,(IF($A$8=Nutrients!$B$77,Nutrients!$DG$77,Nutrients!$DG$78)))))*AE$8))/2000/AE$236*100","v":19.001879916778723},{"$f":"(SUMPRODUCT(AF$9:AF$229,Nutrients!$DG$8:$DG$228)+(IF($A$7=Nutrients!$B$8,Nutrients!$DG$8,Nutrients!$DG$9)*AF$7)+(((IF($A$8=Nutrients!$B$79,Nutrients!$DG$79,(IF($A$8=Nutrients!$B$77,Nutrients!$DG$77,Nutrients!$DG$78)))))*AF$8))/2000/AF$236*100","v":18.985584718187621},{"$f":"(SUMPRODUCT(AG$9:AG$229,Nutrients!$DG$8:$DG$228)+(IF($A$7=Nutrients!$B$8,Nutrients!$DG$8,Nutrients!$DG$9)*AG$7)+(((IF($A$8=Nutrients!$B$79,Nutrients!$DG$79,(IF($A$8=Nutrients!$B$77,Nutrients!$DG$77,Nutrients!$DG$78)))))*AG$8))/2000/AG$236*100","v":18.991357324250398},{"$f":"(SUMPRODUCT(AH$9:AH$229,Nutrients!$DG$8:$DG$228)+(IF($A$7=Nutrients!$B$8,Nutrients!$DG$8,Nutrients!$DG$9)*AH$7)+(((IF($A$8=Nutrients!$B$79,Nutrients!$DG$79,(IF($A$8=Nutrients!$B$77,Nutrients!$DG$77,Nutrients!$DG$78)))))*AH$8))/2000/AH$236*100","v":18.996101811466037},{"$f":"(SUMPRODUCT(AI$9:AI$229,Nutrients!$DG$8:$DG$228)+(IF($A$7=Nutrients!$B$8,Nutrients!$DG$8,Nutrients!$DG$9)*AI$7)+(((IF($A$8=Nutrients!$B$79,Nutrients!$DG$79,(IF($A$8=Nutrients!$B$77,Nutrients!$DG$77,Nutrients!$DG$78)))))*AI$8))/2000/AI$236*100","v":18.998107062356279},null,{"$f":"(SUMPRODUCT(AK$9:AK$229,Nutrients!$DG$8:$DG$228)+(IF($A$7=Nutrients!$B$8,Nutrients!$DG$8,Nutrients!$DG$9)*AK$7)+(((IF($A$8=Nutrients!$B$79,Nutrients!$DG$79,(IF($A$8=Nutrients!$B$77,Nutrients!$DG$77,Nutrients!$DG$78)))))*AK$8))/2000/AK$236*100","v":18.979491605980865},{"$f":"(SUMPRODUCT(AL$9:AL$229,Nutrients!$DG$8:$DG$228)+(IF($A$7=Nutrients!$B$8,Nutrients!$DG$8,Nutrients!$DG$9)*AL$7)+(((IF($A$8=Nutrients!$B$79,Nutrients!$DG$79,(IF($A$8=Nutrients!$B$77,Nutrients!$DG$77,Nutrients!$DG$78)))))*AL$8))/2000/AL$236*100","v":18.97756817774204},{"$f":"(SUMPRODUCT(AM$9:AM$229,Nutrients!$DG$8:$DG$228)+(IF($A$7=Nutrients!$B$8,Nutrients!$DG$8,Nutrients!$DG$9)*AM$7)+(((IF($A$8=Nutrients!$B$79,Nutrients!$DG$79,(IF($A$8=Nutrients!$B$77,Nutrients!$DG$77,Nutrients!$DG$78)))))*AM$8))/2000/AM$236*100","v":18.96185059433688},{"$f":"(SUMPRODUCT(AN$9:AN$229,Nutrients!$DG$8:$DG$228)+(IF($A$7=Nutrients!$B$8,Nutrients!$DG$8,Nutrients!$DG$9)*AN$7)+(((IF($A$8=Nutrients!$B$79,Nutrients!$DG$79,(IF($A$8=Nutrients!$B$77,Nutrients!$DG$77,Nutrients!$DG$78)))))*AN$8))/2000/AN$236*100","v":18.965916484851039},{"$f":"(SUMPRODUCT(AO$9:AO$229,Nutrients!$DG$8:$DG$228)+(IF($A$7=Nutrients!$B$8,Nutrients!$DG$8,Nutrients!$DG$9)*AO$7)+(((IF($A$8=Nutrients!$B$79,Nutrients!$DG$79,(IF($A$8=Nutrients!$B$77,Nutrients!$DG$77,Nutrients!$DG$78)))))*AO$8))/2000/AO$236*100","v":18.969215337570489},{"$f":"(SUMPRODUCT(AP$9:AP$229,Nutrients!$DG$8:$DG$228)+(IF($A$7=Nutrients!$B$8,Nutrients!$DG$8,Nutrients!$DG$9)*AP$7)+(((IF($A$8=Nutrients!$B$79,Nutrients!$DG$79,(IF($A$8=Nutrients!$B$77,Nutrients!$DG$77,Nutrients!$DG$78)))))*AP$8))/2000/AP$236*100","v":18.971467175774798},null,{"$f":"(SUMPRODUCT(AR$9:AR$229,Nutrients!$DG$8:$DG$228)+(IF($A$7=Nutrients!$B$8,Nutrients!$DG$8,Nutrients!$DG$9)*AR$7)+(((IF($A$8=Nutrients!$B$79,Nutrients!$DG$79,(IF($A$8=Nutrients!$B$77,Nutrients!$DG$77,Nutrients!$DG$78)))))*AR$8))/2000/AR$236*100","v":18.967024067409842},{"$f":"(SUMPRODUCT(AS$9:AS$229,Nutrients!$DG$8:$DG$228)+(IF($A$7=Nutrients!$B$8,Nutrients!$DG$8,Nutrients!$DG$9)*AS$7)+(((IF($A$8=Nutrients!$B$79,Nutrients!$DG$79,(IF($A$8=Nutrients!$B$77,Nutrients!$DG$77,Nutrients!$DG$78)))))*AS$8))/2000/AS$236*100","v":18.952848679969303},{"$f":"(SUMPRODUCT(AT$9:AT$229,Nutrients!$DG$8:$DG$228)+(IF($A$7=Nutrients!$B$8,Nutrients!$DG$8,Nutrients!$DG$9)*AT$7)+(((IF($A$8=Nutrients!$B$79,Nutrients!$DG$79,(IF($A$8=Nutrients!$B$77,Nutrients!$DG$77,Nutrients!$DG$78)))))*AT$8))/2000/AT$236*100","v":18.938753640222636},{"$f":"(SUMPRODUCT(AU$9:AU$229,Nutrients!$DG$8:$DG$228)+(IF($A$7=Nutrients!$B$8,Nutrients!$DG$8,Nutrients!$DG$9)*AU$7)+(((IF($A$8=Nutrients!$B$79,Nutrients!$DG$79,(IF($A$8=Nutrients!$B$77,Nutrients!$DG$77,Nutrients!$DG$78)))))*AU$8))/2000/AU$236*100","v":18.938834070770465},{"$f":"(SUMPRODUCT(AV$9:AV$229,Nutrients!$DG$8:$DG$228)+(IF($A$7=Nutrients!$B$8,Nutrients!$DG$8,Nutrients!$DG$9)*AV$7)+(((IF($A$8=Nutrients!$B$79,Nutrients!$DG$79,(IF($A$8=Nutrients!$B$77,Nutrients!$DG$77,Nutrients!$DG$78)))))*AV$8))/2000/AV$236*100","v":18.941890916379979},{"$f":"(SUMPRODUCT(AW$9:AW$229,Nutrients!$DG$8:$DG$228)+(IF($A$7=Nutrients!$B$8,Nutrients!$DG$8,Nutrients!$DG$9)*AW$7)+(((IF($A$8=Nutrients!$B$79,Nutrients!$DG$79,(IF($A$8=Nutrients!$B$77,Nutrients!$DG$77,Nutrients!$DG$78)))))*AW$8))/2000/AW$236*100","v":18.944373466713511}]
["  Val:Lys",{"$f":"(SUMPRODUCT(B$9:B$229,Nutrients!$DH$8:$DH$228)+(IF($A$7=Nutrients!$B$8,Nutrients!$DH$8,Nutrients!$DH$9)*B$7)+(((IF($A$8=Nutrients!$B$79,Nutrients!$DH$79,(IF($A$8=Nutrients!$B$77,Nutrients!$DH$77,Nutrients!$DH$78)))))*B$8))/2000/B$236*100","v":67.999142547613729},{"$f":"(SUMPRODUCT(C$9:C$229,Nutrients!$DH$8:$DH$228)+(IF($A$7=Nutrients!$B$8,Nutrients!$DH$8,Nutrients!$DH$9)*C$7)+(((IF($A$8=Nutrients!$B$79,Nutrients!$DH$79,(IF($A$8=Nutrients!$B$77,Nutrients!$DH$77,Nutrients!$DH$78)))))*C$8))/2000/C$236*100","v":68.120000000000076},{"$f":"(SUMPRODUCT(D$9:D$229,Nutrients!$DH$8:$DH$228)+(IF($A$7=Nutrients!$B$8,Nutrients!$DH$8,Nutrients!$DH$9)*D$7)+(((IF($A$8=Nutrients!$B$79,Nutrients!$DH$79,(IF($A$8=Nutrients!$B$77,Nutrients!$DH$77,Nutrients!$DH$78)))))*D$8))/2000/D$236*100","v":68.530000000000015},{"$f":"(SUMPRODUCT(E$9:E$229,Nutrients!$DH$8:$DH$228)+(IF($A$7=Nutrients!$B$8,Nutrients!$DH$8,Nutrients!$DH$9)*E$7)+(((IF($A$8=Nutrients!$B$79,Nutrients!$DH$79,(IF($A$8=Nutrients!$B$77,Nutrients!$DH$77,Nutrients!$DH$78)))))*E$8))/2000/E$236*100","v":69.691537460576043},{"$f":"(SUMPRODUCT(F$9:F$229,Nutrients!$DH$8:$DH$228)+(IF($A$7=Nutrients!$B$8,Nutrients!$DH$8,Nutrients!$DH$9)*F$7)+(((IF($A$8=Nutrients!$B$79,Nutrients!$DH$79,(IF($A$8=Nutrients!$B$77,Nutrients!$DH$77,Nutrients!$DH$78)))))*F$8))/2000/F$236*100","v":70.432280668663623},{"$f":"(SUMPRODUCT(G$9:G$229,Nutrients!$DH$8:$DH$228)+(IF($A$7=Nutrients!$B$8,Nutrients!$DH$8,Nutrients!$DH$9)*G$7)+(((IF($A$8=Nutrients!$B$79,Nutrients!$DH$79,(IF($A$8=Nutrients!$B$77,Nutrients!$DH$77,Nutrients!$DH$78)))))*G$8))/2000/G$236*100","v":70.540000000000006},null,{"$f":"(SUMPRODUCT(I$9:I$229,Nutrients!$DH$8:$DH$228)+(IF($A$7=Nutrients!$B$8,Nutrients!$DH$8,Nutrients!$DH$9)*I$7)+(((IF($A$8=Nutrients!$B$79,Nutrients!$DH$79,(IF($A$8=Nutrients!$B$77,Nutrients!$DH$77,Nutrients!$DH$78)))))*I$8))/2000/I$236*100","v":68.040000000000134},{"$f":"(SUMPRODUCT(J$9:J$229,Nutrients!$DH$8:$DH$228)+(IF($A$7=Nutrients!$B$8,Nutrients!$DH$8,Nutrients!$DH$9)*J$7)+(((IF($A$8=Nutrients!$B$79,Nutrients!$DH$79,(IF($A$8=Nutrients!$B$77,Nutrients!$DH$77,Nutrients!$DH$78)))))*J$8))/2000/J$236*100","v":68.36000000000007},{"$f":"(SUMPRODUCT(K$9:K$229,Nutrients!$DH$8:$DH$228)+(IF($A$7=Nutrients!$B$8,Nutrients!$DH$8,Nutrients!$DH$9)*K$7)+(((IF($A$8=Nutrients!$B$79,Nutrients!$DH$79,(IF($A$8=Nutrients!$B$77,Nutrients!$DH$77,Nutrients!$DH$78)))))*K$8))/2000/K$236*100","v":69.569999999999979},{"$f":"(SUMPRODUCT(L$9:L$229,Nutrients!$DH$8:$DH$228)+(IF($A$7=Nutrients!$B$8,Nutrients!$DH$8,Nutrients!$DH$9)*L$7)+(((IF($A$8=Nutrients!$B$79,Nutrients!$DH$79,(IF($A$8=Nutrients!$B$77,Nutrients!$DH$77,Nutrients!$DH$78)))))*L$8))/2000/L$236*100","v":70.679999999999993},{"$f":"(SUMPRODUCT(M$9:M$229,Nutrients!$DH$8:$DH$228)+(IF($A$7=Nutrients!$B$8,Nutrients!$DH$8,Nutrients!$DH$9)*M$7)+(((IF($A$8=Nutrients!$B$79,Nutrients!$DH$79,(IF($A$8=Nutrients!$B$77,Nutrients!$DH$77,Nutrients!$DH$78)))))*M$8))/2000/M$236*100","v":71.360000000000028},{"$f":"(SUMPRODUCT(N$9:N$229,Nutrients!$DH$8:$DH$228)+(IF($A$7=Nutrients!$B$8,Nutrients!$DH$8,Nutrients!$DH$9)*N$7)+(((IF($A$8=Nutrients!$B$79,Nutrients!$DH$79,(IF($A$8=Nutrients!$B$77,Nutrients!$DH$77,Nutrients!$DH$78)))))*N$8))/2000/N$236*100","v":71.88},null,{"$f":"(SUMPRODUCT(P$9:P$229,Nutrients!$DH$8:$DH$228)+(IF($A$7=Nutrients!$B$8,Nutrients!$DH$8,Nutrients!$DH$9)*P$7)+(((IF($A$8=Nutrients!$B$79,Nutrients!$DH$79,(IF($A$8=Nutrients!$B$77,Nutrients!$DH$77,Nutrients!$DH$78)))))*P$8))/2000/P$236*100","v":68.280000000000072},{"$f":"(SUMPRODUCT(Q$9:Q$229,Nutrients!$DH$8:$DH$228)+(IF($A$7=Nutrients!$B$8,Nutrients!$DH$8,Nutrients!$DH$9)*Q$7)+(((IF($A$8=Nutrients!$B$79,Nutrients!$DH$79,(IF($A$8=Nutrients!$B$77,Nutrients!$DH$77,Nutrients!$DH$78)))))*Q$8))/2000/Q$236*100","v":69.179999999999964},{"$f":"(SUMPRODUCT(R$9:R$229,Nutrients!$DH$8:$DH$228)+(IF($A$7=Nutrients!$B$8,Nutrients!$DH$8,Nutrients!$DH$9)*R$7)+(((IF($A$8=Nutrients!$B$79,Nutrients!$DH$79,(IF($A$8=Nutrients!$B$77,Nutrients!$DH$77,Nutrients!$DH$78)))))*R$8))/2000/R$236*100","v":70.539999999999935},{"$f":"(SUMPRODUCT(S$9:S$229,Nutrients!$DH$8:$DH$228)+(IF($A$7=Nutrients!$B$8,Nutrients!$DH$8,Nutrients!$DH$9)*S$7)+(((IF($A$8=Nutrients!$B$79,Nutrients!$DH$79,(IF($A$8=Nutrients!$B$77,Nutrients!$DH$77,Nutrients!$DH$78)))))*S$8))/2000/S$236*100","v":72.073330136842202},{"$f":"(SUMPRODUCT(T$9:T$229,Nutrients!$DH$8:$DH$228)+(IF($A$7=Nutrients!$B$8,Nutrients!$DH$8,Nutrients!$DH$9)*T$7)+(((IF($A$8=Nutrients!$B$79,Nutrients!$DH$79,(IF($A$8=Nutrients!$B$77,Nutrients!$DH$77,Nutrients!$DH$78)))))*T$8))/2000/T$236*100","v":72.630426490036513},{"$f":"(SUMPRODUCT(U$9:U$229,Nutrients!$DH$8:$DH$228)+(IF($A$7=Nutrients!$B$8,Nutrients!$DH$8,Nutrients!$DH$9)*U$7)+(((IF($A$8=Nutrients!$B$79,Nutrients!$DH$79,(IF($A$8=Nutrients!$B$77,Nutrients!$DH$77,Nutrients!$DH$78)))))*U$8))/2000/U$236*100","v":72.969050560368316},null,{"$f":"(SUMPRODUCT(W$9:W$229,Nutrients!$DH$8:$DH$228)+(IF($A$7=Nutrients!$B$8,Nutrients!$DH$8,Nutrients!$DH$9)*W$7)+(((IF($A$8=Nutrients!$B$79,Nutrients!$DH$79,(IF($A$8=Nutrients!$B$77,Nutrients!$DH$77,Nutrients!$DH$78)))))*W$8))/2000/W$236*100","v":68.789999999999978},{"$f":"(SUMPRODUCT(X$9:X$229,Nutrients!$DH$8:$DH$228)+(IF($A$7=Nutrients!$B$8,Nutrients!$DH$8,Nutrients!$DH$9)*X$7)+(((IF($A$8=Nutrients!$B$79,Nutrients!$DH$79,(IF($A$8=Nutrients!$B$77,Nutrients!$DH$77,Nutrients!$DH$78)))))*X$8))/2000/X$236*100","v":69.935588506790552},{"$f":"(SUMPRODUCT(Y$9:Y$229,Nutrients!$DH$8:$DH$228)+(IF($A$7=Nutrients!$B$8,Nutrients!$DH$8,Nutrients!$DH$9)*Y$7)+(((IF($A$8=Nutrients!$B$79,Nutrients!$DH$79,(IF($A$8=Nutrients!$B$77,Nutrients!$DH$77,Nutrients!$DH$78)))))*Y$8))/2000/Y$236*100","v":71.826002010320948},{"$f":"(SUMPRODUCT(Z$9:Z$229,Nutrients!$DH$8:$DH$228)+(IF($A$7=Nutrients!$B$8,Nutrients!$DH$8,Nutrients!$DH$9)*Z$7)+(((IF($A$8=Nutrients!$B$79,Nutrients!$DH$79,(IF($A$8=Nutrients!$B$77,Nutrients!$DH$77,Nutrients!$DH$78)))))*Z$8))/2000/Z$236*100","v":74.094300716573443},{"$f":"(SUMPRODUCT(AA$9:AA$229,Nutrients!$DH$8:$DH$228)+(IF($A$7=Nutrients!$B$8,Nutrients!$DH$8,Nutrients!$DH$9)*AA$7)+(((IF($A$8=Nutrients!$B$79,Nutrients!$DH$79,(IF($A$8=Nutrients!$B$77,Nutrients!$DH$77,Nutrients!$DH$78)))))*AA$8))/2000/AA$236*100","v":74.834806210118998},{"$f":"(SUMPRODUCT(AB$9:AB$229,Nutrients!$DH$8:$DH$228)+(IF($A$7=Nutrients!$B$8,Nutrients!$DH$8,Nutrients!$DH$9)*AB$7)+(((IF($A$8=Nutrients!$B$79,Nutrients!$DH$79,(IF($A$8=Nutrients!$B$77,Nutrients!$DH$77,Nutrients!$DH$78)))))*AB$8))/2000/AB$236*100","v":75.288067824540704},null,{"$f":"(SUMPRODUCT(AD$9:AD$229,Nutrients!$DH$8:$DH$228)+(IF($A$7=Nutrients!$B$8,Nutrients!$DH$8,Nutrients!$DH$9)*AD$7)+(((IF($A$8=Nutrients!$B$79,Nutrients!$DH$79,(IF($A$8=Nutrients!$B$77,Nutrients!$DH$77,Nutrients!$DH$78)))))*AD$8))/2000/AD$236*100","v":69.570000000000007},{"$f":"(SUMPRODUCT(AE$9:AE$229,Nutrients!$DH$8:$DH$228)+(IF($A$7=Nutrients!$B$8,Nutrients!$DH$8,Nutrients!$DH$9)*AE$7)+(((IF($A$8=Nutrients!$B$79,Nutrients!$DH$79,(IF($A$8=Nutrients!$B$77,Nutrients!$DH$77,Nutrients!$DH$78)))))*AE$8))/2000/AE$236*100","v":70.959999999999994},{"$f":"(SUMPRODUCT(AF$9:AF$229,Nutrients!$DH$8:$DH$228)+(IF($A$7=Nutrients!$B$8,Nutrients!$DH$8,Nutrients!$DH$9)*AF$7)+(((IF($A$8=Nutrients!$B$79,Nutrients!$DH$79,(IF($A$8=Nutrients!$B$77,Nutrients!$DH$77,Nutrients!$DH$78)))))*AF$8))/2000/AF$236*100","v":73.643761112610846},{"$f":"(SUMPRODUCT(AG$9:AG$229,Nutrients!$DH$8:$DH$228)+(IF($A$7=Nutrients!$B$8,Nutrients!$DH$8,Nutrients!$DH$9)*AG$7)+(((IF($A$8=Nutrients!$B$79,Nutrients!$DH$79,(IF($A$8=Nutrients!$B$77,Nutrients!$DH$77,Nutrients!$DH$78)))))*AG$8))/2000/AG$236*100","v":76.14304879771521},{"$f":"(SUMPRODUCT(AH$9:AH$229,Nutrients!$DH$8:$DH$228)+(IF($A$7=Nutrients!$B$8,Nutrients!$DH$8,Nutrients!$DH$9)*AH$7)+(((IF($A$8=Nutrients!$B$79,Nutrients!$DH$79,(IF($A$8=Nutrients!$B$77,Nutrients!$DH$77,Nutrients!$DH$78)))))*AH$8))/2000/AH$236*100","v":77.062926686196832},{"$f":"(SUMPRODUCT(AI$9:AI$229,Nutrients!$DH$8:$DH$228)+(IF($A$7=Nutrients!$B$8,Nutrients!$DH$8,Nutrients!$DH$9)*AI$7)+(((IF($A$8=Nutrients!$B$79,Nutrients!$DH$79,(IF($A$8=Nutrients!$B$77,Nutrients!$DH$77,Nutrients!$DH$78)))))*AI$8))/2000/AI$236*100","v":77.631684363662828},null,{"$f":"(SUMPRODUCT(AK$9:AK$229,Nutrients!$DH$8:$DH$228)+(IF($A$7=Nutrients!$B$8,Nutrients!$DH$8,Nutrients!$DH$9)*AK$7)+(((IF($A$8=Nutrients!$B$79,Nutrients!$DH$79,(IF($A$8=Nutrients!$B$77,Nutrients!$DH$77,Nutrients!$DH$78)))))*AK$8))/2000/AK$236*100","v":70.41709314427959},{"$f":"(SUMPRODUCT(AL$9:AL$229,Nutrients!$DH$8:$DH$228)+(IF($A$7=Nutrients!$B$8,Nutrients!$DH$8,Nutrients!$DH$9)*AL$7)+(((IF($A$8=Nutrients!$B$79,Nutrients!$DH$79,(IF($A$8=Nutrients!$B$77,Nutrients!$DH$77,Nutrients!$DH$78)))))*AL$8))/2000/AL$236*100","v":71.779933986649453},{"$f":"(SUMPRODUCT(AM$9:AM$229,Nutrients!$DH$8:$DH$228)+(IF($A$7=Nutrients!$B$8,Nutrients!$DH$8,Nutrients!$DH$9)*AM$7)+(((IF($A$8=Nutrients!$B$79,Nutrients!$DH$79,(IF($A$8=Nutrients!$B$77,Nutrients!$DH$77,Nutrients!$DH$78)))))*AM$8))/2000/AM$236*100","v":75.48770187260034},{"$f":"(SUMPRODUCT(AN$9:AN$229,Nutrients!$DH$8:$DH$228)+(IF($A$7=Nutrients!$B$8,Nutrients!$DH$8,Nutrients!$DH$9)*AN$7)+(((IF($A$8=Nutrients!$B$79,Nutrients!$DH$79,(IF($A$8=Nutrients!$B$77,Nutrients!$DH$77,Nutrients!$DH$78)))))*AN$8))/2000/AN$236*100","v":78.217226156358393},{"$f":"(SUMPRODUCT(AO$9:AO$229,Nutrients!$DH$8:$DH$228)+(IF($A$7=Nutrients!$B$8,Nutrients!$DH$8,Nutrients!$DH$9)*AO$7)+(((IF($A$8=Nutrients!$B$79,Nutrients!$DH$79,(IF($A$8=Nutrients!$B$77,Nutrients!$DH$77,Nutrients!$DH$78)))))*AO$8))/2000/AO$236*100","v":79.325847817112248},{"$f":"(SUMPRODUCT(AP$9:AP$229,Nutrients!$DH$8:$DH$228)+(IF($A$7=Nutrients!$B$8,Nutrients!$DH$8,Nutrients!$DH$9)*AP$7)+(((IF($A$8=Nutrients!$B$79,Nutrients!$DH$79,(IF($A$8=Nutrients!$B$77,Nutrients!$DH$77,Nutrients!$DH$78)))))*AP$8))/2000/AP$236*100","v":80.016259989185897},null,{"$f":"(SUMPRODUCT(AR$9:AR$229,Nutrients!$DH$8:$DH$228)+(IF($A$7=Nutrients!$B$8,Nutrients!$DH$8,Nutrients!$DH$9)*AR$7)+(((IF($A$8=Nutrients!$B$79,Nutrients!$DH$79,(IF($A$8=Nutrients!$B$77,Nutrients!$DH$77,Nutrients!$DH$78)))))*AR$8))/2000/AR$236*100","v":71.230000000000018},{"$f":"(SUMPRODUCT(AS$9:AS$229,Nutrients!$DH$8:$DH$228)+(IF($A$7=Nutrients!$B$8,Nutrients!$DH$8,Nutrients!$DH$9)*AS$7)+(((IF($A$8=Nutrients!$B$79,Nutrients!$DH$79,(IF($A$8=Nutrients!$B$77,Nutrients!$DH$77,Nutrients!$DH$78)))))*AS$8))/2000/AS$236*100","v":73.415258740551764},{"$f":"(SUMPRODUCT(AT$9:AT$229,Nutrients!$DH$8:$DH$228)+(IF($A$7=Nutrients!$B$8,Nutrients!$DH$8,Nutrients!$DH$9)*AT$7)+(((IF($A$8=Nutrients!$B$79,Nutrients!$DH$79,(IF($A$8=Nutrients!$B$77,Nutrients!$DH$77,Nutrients!$DH$78)))))*AT$8))/2000/AT$236*100","v":77.355601900908439},{"$f":"(SUMPRODUCT(AU$9:AU$229,Nutrients!$DH$8:$DH$228)+(IF($A$7=Nutrients!$B$8,Nutrients!$DH$8,Nutrients!$DH$9)*AU$7)+(((IF($A$8=Nutrients!$B$79,Nutrients!$DH$79,(IF($A$8=Nutrients!$B$77,Nutrients!$DH$77,Nutrients!$DH$78)))))*AU$8))/2000/AU$236*100","v":80.320437176669842},{"$f":"(SUMPRODUCT(AV$9:AV$229,Nutrients!$DH$8:$DH$228)+(IF($A$7=Nutrients!$B$8,Nutrients!$DH$8,Nutrients!$DH$9)*AV$7)+(((IF($A$8=Nutrients!$B$79,Nutrients!$DH$79,(IF($A$8=Nutrients!$B$77,Nutrients!$DH$77,Nutrients!$DH$78)))))*AV$8))/2000/AV$236*100","v":81.628341198539474},{"$f":"(SUMPRODUCT(AW$9:AW$229,Nutrients!$DH$8:$DH$228)+(IF($A$7=Nutrients!$B$8,Nutrients!$DH$8,Nutrients!$DH$9)*AW$7)+(((IF($A$8=Nutrients!$B$79,Nutrients!$DH$79,(IF($A$8=Nutrients!$B$77,Nutrients!$DH$77,Nutrients!$DH$78)))))*AW$8))/2000/AW$236*100","v":82.442614234425236}]
["  His:Lys",{"$f":"(SUMPRODUCT(B$9:B$229,Nutrients!$CX$8:$CX$228)+(IF($A$7=Nutrients!$B$8,Nutrients!$CX$8,Nutrients!$CX$9)*B$7)+(((IF($A$8=Nutrients!$B$79,Nutrients!$CX$79,(IF($A$8=Nutrients!$B$77,Nutrients!$CX$77,Nutrients!$CX$78)))))*B$8))/2000/B$236*100","v":37.643570590355239},{"$f":"(SUMPRODUCT(C$9:C$229,Nutrients!$CX$8:$CX$228)+(IF($A$7=Nutrients!$B$8,Nutrients!$CX$8,Nutrients!$CX$9)*C$7)+(((IF($A$8=Nutrients!$B$79,Nutrients!$CX$79,(IF($A$8=Nutrients!$B$77,Nutrients!$CX$77,Nutrients!$CX$78)))))*C$8))/2000/C$236*100","v":38.987979019898518},{"$f":"(SUMPRODUCT(D$9:D$229,Nutrients!$CX$8:$CX$228)+(IF($A$7=Nutrients!$B$8,Nutrients!$CX$8,Nutrients!$CX$9)*D$7)+(((IF($A$8=Nutrients!$B$79,Nutrients!$CX$79,(IF($A$8=Nutrients!$B$77,Nutrients!$CX$77,Nutrients!$CX$78)))))*D$8))/2000/D$236*100","v":40.703752845303732},{"$f":"(SUMPRODUCT(E$9:E$229,Nutrients!$CX$8:$CX$228)+(IF($A$7=Nutrients!$B$8,Nutrients!$CX$8,Nutrients!$CX$9)*E$7)+(((IF($A$8=Nutrients!$B$79,Nutrients!$CX$79,(IF($A$8=Nutrients!$B$77,Nutrients!$CX$77,Nutrients!$CX$78)))))*E$8))/2000/E$236*100","v":41.851733002385814},{"$f":"(SUMPRODUCT(F$9:F$229,Nutrients!$CX$8:$CX$228)+(IF($A$7=Nutrients!$B$8,Nutrients!$CX$8,Nutrients!$CX$9)*F$7)+(((IF($A$8=Nutrients!$B$79,Nutrients!$CX$79,(IF($A$8=Nutrients!$B$77,Nutrients!$CX$77,Nutrients!$CX$78)))))*F$8))/2000/F$236*100","v":42.150034216074545},{"$f":"(SUMPRODUCT(G$9:G$229,Nutrients!$CX$8:$CX$228)+(IF($A$7=Nutrients!$B$8,Nutrients!$CX$8,Nutrients!$CX$9)*G$7)+(((IF($A$8=Nutrients!$B$79,Nutrients!$CX$79,(IF($A$8=Nutrients!$B$77,Nutrients!$CX$77,Nutrients!$CX$78)))))*G$8))/2000/G$236*100","v":42.332060863176054},null,{"$f":"(SUMPRODUCT(I$9:I$229,Nutrients!$CX$8:$CX$228)+(IF($A$7=Nutrients!$B$8,Nutrients!$CX$8,Nutrients!$CX$9)*I$7)+(((IF($A$8=Nutrients!$B$79,Nutrients!$CX$79,(IF($A$8=Nutrients!$B$77,Nutrients!$CX$77,Nutrients!$CX$78)))))*I$8))/2000/I$236*100","v":38.168347730852638},{"$f":"(SUMPRODUCT(J$9:J$229,Nutrients!$CX$8:$CX$228)+(IF($A$7=Nutrients!$B$8,Nutrients!$CX$8,Nutrients!$CX$9)*J$7)+(((IF($A$8=Nutrients!$B$79,Nutrients!$CX$79,(IF($A$8=Nutrients!$B$77,Nutrients!$CX$77,Nutrients!$CX$78)))))*J$8))/2000/J$236*100","v":39.592830427274762},{"$f":"(SUMPRODUCT(K$9:K$229,Nutrients!$CX$8:$CX$228)+(IF($A$7=Nutrients!$B$8,Nutrients!$CX$8,Nutrients!$CX$9)*K$7)+(((IF($A$8=Nutrients!$B$79,Nutrients!$CX$79,(IF($A$8=Nutrients!$B$77,Nutrients!$CX$77,Nutrients!$CX$78)))))*K$8))/2000/K$236*100","v":41.401114647328392},{"$f":"(SUMPRODUCT(L$9:L$229,Nutrients!$CX$8:$CX$228)+(IF($A$7=Nutrients!$B$8,Nutrients!$CX$8,Nutrients!$CX$9)*L$7)+(((IF($A$8=Nutrients!$B$79,Nutrients!$CX$79,(IF($A$8=Nutrients!$B$77,Nutrients!$CX$77,Nutrients!$CX$78)))))*L$8))/2000/L$236*100","v":42.641110113492395},{"$f":"(SUMPRODUCT(M$9:M$229,Nutrients!$CX$8:$CX$228)+(IF($A$7=Nutrients!$B$8,Nutrients!$CX$8,Nutrients!$CX$9)*M$7)+(((IF($A$8=Nutrients!$B$79,Nutrients!$CX$79,(IF($A$8=Nutrients!$B$77,Nutrients!$CX$77,Nutrients!$CX$78)))))*M$8))/2000/M$236*100","v":43.015585237001289},{"$f":"(SUMPRODUCT(N$9:N$229,Nutrients!$CX$8:$CX$228)+(IF($A$7=Nutrients!$B$8,Nutrients!$CX$8,Nutrients!$CX$9)*N$7)+(((IF($A$8=Nutrients!$B$79,Nutrients!$CX$79,(IF($A$8=Nutrients!$B$77,Nutrients!$CX$77,Nutrients!$CX$78)))))*N$8))/2000/N$236*100","v":43.242409056538158},null,{"$f":"(SUMPRODUCT(P$9:P$229,Nutrients!$CX$8:$CX$228)+(IF($A$7=Nutrients!$B$8,Nutrients!$CX$8,Nutrients!$CX$9)*P$7)+(((IF($A$8=Nutrients!$B$79,Nutrients!$CX$79,(IF($A$8=Nutrients!$B$77,Nutrients!$CX$77,Nutrients!$CX$78)))))*P$8))/2000/P$236*100","v":38.701731750206115},{"$f":"(SUMPRODUCT(Q$9:Q$229,Nutrients!$CX$8:$CX$228)+(IF($A$7=Nutrients!$B$8,Nutrients!$CX$8,Nutrients!$CX$9)*Q$7)+(((IF($A$8=Nutrients!$B$79,Nutrients!$CX$79,(IF($A$8=Nutrients!$B$77,Nutrients!$CX$77,Nutrients!$CX$78)))))*Q$8))/2000/Q$236*100","v":40.205348879451769},{"$f":"(SUMPRODUCT(R$9:R$229,Nutrients!$CX$8:$CX$228)+(IF($A$7=Nutrients!$B$8,Nutrients!$CX$8,Nutrients!$CX$9)*R$7)+(((IF($A$8=Nutrients!$B$79,Nutrients!$CX$79,(IF($A$8=Nutrients!$B$77,Nutrients!$CX$77,Nutrients!$CX$78)))))*R$8))/2000/R$236*100","v":42.105208860921245},{"$f":"(SUMPRODUCT(S$9:S$229,Nutrients!$CX$8:$CX$228)+(IF($A$7=Nutrients!$B$8,Nutrients!$CX$8,Nutrients!$CX$9)*S$7)+(((IF($A$8=Nutrients!$B$79,Nutrients!$CX$79,(IF($A$8=Nutrients!$B$77,Nutrients!$CX$77,Nutrients!$CX$78)))))*S$8))/2000/S$236*100","v":43.443079537299568},{"$f":"(SUMPRODUCT(T$9:T$229,Nutrients!$CX$8:$CX$228)+(IF($A$7=Nutrients!$B$8,Nutrients!$CX$8,Nutrients!$CX$9)*T$7)+(((IF($A$8=Nutrients!$B$79,Nutrients!$CX$79,(IF($A$8=Nutrients!$B$77,Nutrients!$CX$77,Nutrients!$CX$78)))))*T$8))/2000/T$236*100","v":43.890254357587679},{"$f":"(SUMPRODUCT(U$9:U$229,Nutrients!$CX$8:$CX$228)+(IF($A$7=Nutrients!$B$8,Nutrients!$CX$8,Nutrients!$CX$9)*U$7)+(((IF($A$8=Nutrients!$B$79,Nutrients!$CX$79,(IF($A$8=Nutrients!$B$77,Nutrients!$CX$77,Nutrients!$CX$78)))))*U$8))/2000/U$236*100","v":44.163689839156156},null,{"$f":"(SUMPRODUCT(W$9:W$229,Nutrients!$CX$8:$CX$228)+(IF($A$7=Nutrients!$B$8,Nutrients!$CX$8,Nutrients!$CX$9)*W$7)+(((IF($A$8=Nutrients!$B$79,Nutrients!$CX$79,(IF($A$8=Nutrients!$B$77,Nutrients!$CX$77,Nutrients!$CX$78)))))*W$8))/2000/W$236*100","v":39.242078840946334},{"$f":"(SUMPRODUCT(X$9:X$229,Nutrients!$CX$8:$CX$228)+(IF($A$7=Nutrients!$B$8,Nutrients!$CX$8,Nutrients!$CX$9)*X$7)+(((IF($A$8=Nutrients!$B$79,Nutrients!$CX$79,(IF($A$8=Nutrients!$B$77,Nutrients!$CX$77,Nutrients!$CX$78)))))*X$8))/2000/X$236*100","v":40.826434275453067},{"$f":"(SUMPRODUCT(Y$9:Y$229,Nutrients!$CX$8:$CX$228)+(IF($A$7=Nutrients!$B$8,Nutrients!$CX$8,Nutrients!$CX$9)*Y$7)+(((IF($A$8=Nutrients!$B$79,Nutrients!$CX$79,(IF($A$8=Nutrients!$B$77,Nutrients!$CX$77,Nutrients!$CX$78)))))*Y$8))/2000/Y$236*100","v":42.824175240689563},{"$f":"(SUMPRODUCT(Z$9:Z$229,Nutrients!$CX$8:$CX$228)+(IF($A$7=Nutrients!$B$8,Nutrients!$CX$8,Nutrients!$CX$9)*Z$7)+(((IF($A$8=Nutrients!$B$79,Nutrients!$CX$79,(IF($A$8=Nutrients!$B$77,Nutrients!$CX$77,Nutrients!$CX$78)))))*Z$8))/2000/Z$236*100","v":44.254795578456715},{"$f":"(SUMPRODUCT(AA$9:AA$229,Nutrients!$CX$8:$CX$228)+(IF($A$7=Nutrients!$B$8,Nutrients!$CX$8,Nutrients!$CX$9)*AA$7)+(((IF($A$8=Nutrients!$B$79,Nutrients!$CX$79,(IF($A$8=Nutrients!$B$77,Nutrients!$CX$77,Nutrients!$CX$78)))))*AA$8))/2000/AA$236*100","v":44.774864630287148},{"$f":"(SUMPRODUCT(AB$9:AB$229,Nutrients!$CX$8:$CX$228)+(IF($A$7=Nutrients!$B$8,Nutrients!$CX$8,Nutrients!$CX$9)*AB$7)+(((IF($A$8=Nutrients!$B$79,Nutrients!$CX$79,(IF($A$8=Nutrients!$B$77,Nutrients!$CX$77,Nutrients!$CX$78)))))*AB$8))/2000/AB$236*100","v":45.093655792390344},null,{"$f":"(SUMPRODUCT(AD$9:AD$229,Nutrients!$CX$8:$CX$228)+(IF($A$7=Nutrients!$B$8,Nutrients!$CX$8,Nutrients!$CX$9)*AD$7)+(((IF($A$8=Nutrients!$B$79,Nutrients!$CX$79,(IF($A$8=Nutrients!$B$77,Nutrients!$CX$77,Nutrients!$CX$78)))))*AD$8))/2000/AD$236*100","v":39.789488884893757},{"$f":"(SUMPRODUCT(AE$9:AE$229,Nutrients!$CX$8:$CX$228)+(IF($A$7=Nutrients!$B$8,Nutrients!$CX$8,Nutrients!$CX$9)*AE$7)+(((IF($A$8=Nutrients!$B$79,Nutrients!$CX$79,(IF($A$8=Nutrients!$B$77,Nutrients!$CX$77,Nutrients!$CX$78)))))*AE$8))/2000/AE$236*100","v":41.459001883004404},{"$f":"(SUMPRODUCT(AF$9:AF$229,Nutrients!$CX$8:$CX$228)+(IF($A$7=Nutrients!$B$8,Nutrients!$CX$8,Nutrients!$CX$9)*AF$7)+(((IF($A$8=Nutrients!$B$79,Nutrients!$CX$79,(IF($A$8=Nutrients!$B$77,Nutrients!$CX$77,Nutrients!$CX$78)))))*AF$8))/2000/AF$236*100","v":43.55257741487646},{"$f":"(SUMPRODUCT(AG$9:AG$229,Nutrients!$CX$8:$CX$228)+(IF($A$7=Nutrients!$B$8,Nutrients!$CX$8,Nutrients!$CX$9)*AG$7)+(((IF($A$8=Nutrients!$B$79,Nutrients!$CX$79,(IF($A$8=Nutrients!$B$77,Nutrients!$CX$77,Nutrients!$CX$78)))))*AG$8))/2000/AG$236*100","v":45.076785099177378},{"$f":"(SUMPRODUCT(AH$9:AH$229,Nutrients!$CX$8:$CX$228)+(IF($A$7=Nutrients!$B$8,Nutrients!$CX$8,Nutrients!$CX$9)*AH$7)+(((IF($A$8=Nutrients!$B$79,Nutrients!$CX$79,(IF($A$8=Nutrients!$B$77,Nutrients!$CX$77,Nutrients!$CX$78)))))*AH$8))/2000/AH$236*100","v":45.665988796534293},{"$f":"(SUMPRODUCT(AI$9:AI$229,Nutrients!$CX$8:$CX$228)+(IF($A$7=Nutrients!$B$8,Nutrients!$CX$8,Nutrients!$CX$9)*AI$7)+(((IF($A$8=Nutrients!$B$79,Nutrients!$CX$79,(IF($A$8=Nutrients!$B$77,Nutrients!$CX$77,Nutrients!$CX$78)))))*AI$8))/2000/AI$236*100","v":46.02984153132256},null,{"$f":"(SUMPRODUCT(AK$9:AK$229,Nutrients!$CX$8:$CX$228)+(IF($A$7=Nutrients!$B$8,Nutrients!$CX$8,Nutrients!$CX$9)*AK$7)+(((IF($A$8=Nutrients!$B$79,Nutrients!$CX$79,(IF($A$8=Nutrients!$B$77,Nutrients!$CX$77,Nutrients!$CX$78)))))*AK$8))/2000/AK$236*100","v":40.34395644724664},{"$f":"(SUMPRODUCT(AL$9:AL$229,Nutrients!$CX$8:$CX$228)+(IF($A$7=Nutrients!$B$8,Nutrients!$CX$8,Nutrients!$CX$9)*AL$7)+(((IF($A$8=Nutrients!$B$79,Nutrients!$CX$79,(IF($A$8=Nutrients!$B$77,Nutrients!$CX$77,Nutrients!$CX$78)))))*AL$8))/2000/AL$236*100","v":42.101192964367613},{"$f":"(SUMPRODUCT(AM$9:AM$229,Nutrients!$CX$8:$CX$228)+(IF($A$7=Nutrients!$B$8,Nutrients!$CX$8,Nutrients!$CX$9)*AM$7)+(((IF($A$8=Nutrients!$B$79,Nutrients!$CX$79,(IF($A$8=Nutrients!$B$77,Nutrients!$CX$77,Nutrients!$CX$78)))))*AM$8))/2000/AM$236*100","v":44.290848910713329},{"$f":"(SUMPRODUCT(AN$9:AN$229,Nutrients!$CX$8:$CX$228)+(IF($A$7=Nutrients!$B$8,Nutrients!$CX$8,Nutrients!$CX$9)*AN$7)+(((IF($A$8=Nutrients!$B$79,Nutrients!$CX$79,(IF($A$8=Nutrients!$B$77,Nutrients!$CX$77,Nutrients!$CX$78)))))*AN$8))/2000/AN$236*100","v":45.906782860816314},{"$f":"(SUMPRODUCT(AO$9:AO$229,Nutrients!$CX$8:$CX$228)+(IF($A$7=Nutrients!$B$8,Nutrients!$CX$8,Nutrients!$CX$9)*AO$7)+(((IF($A$8=Nutrients!$B$79,Nutrients!$CX$79,(IF($A$8=Nutrients!$B$77,Nutrients!$CX$77,Nutrients!$CX$78)))))*AO$8))/2000/AO$236*100","v":46.570001848257228},{"$f":"(SUMPRODUCT(AP$9:AP$229,Nutrients!$CX$8:$CX$228)+(IF($A$7=Nutrients!$B$8,Nutrients!$CX$8,Nutrients!$CX$9)*AP$7)+(((IF($A$8=Nutrients!$B$79,Nutrients!$CX$79,(IF($A$8=Nutrients!$B$77,Nutrients!$CX$77,Nutrients!$CX$78)))))*AP$8))/2000/AP$236*100","v":46.982444479993269},null,{"$f":"(SUMPRODUCT(AR$9:AR$229,Nutrients!$CX$8:$CX$228)+(IF($A$7=Nutrients!$B$8,Nutrients!$CX$8,Nutrients!$CX$9)*AR$7)+(((IF($A$8=Nutrients!$B$79,Nutrients!$CX$79,(IF($A$8=Nutrients!$B$77,Nutrients!$CX$77,Nutrients!$CX$78)))))*AR$8))/2000/AR$236*100","v":40.901392315638475},{"$f":"(SUMPRODUCT(AS$9:AS$229,Nutrients!$CX$8:$CX$228)+(IF($A$7=Nutrients!$B$8,Nutrients!$CX$8,Nutrients!$CX$9)*AS$7)+(((IF($A$8=Nutrients!$B$79,Nutrients!$CX$79,(IF($A$8=Nutrients!$B$77,Nutrients!$CX$77,Nutrients!$CX$78)))))*AS$8))/2000/AS$236*100","v":42.752468489760538},{"$f":"(SUMPRODUCT(AT$9:AT$229,Nutrients!$CX$8:$CX$228)+(IF($A$7=Nutrients!$B$8,Nutrients!$CX$8,Nutrients!$CX$9)*AT$7)+(((IF($A$8=Nutrients!$B$79,Nutrients!$CX$79,(IF($A$8=Nutrients!$B$77,Nutrients!$CX$77,Nutrients!$CX$78)))))*AT$8))/2000/AT$236*100","v":45.03771568837989},{"$f":"(SUMPRODUCT(AU$9:AU$229,Nutrients!$CX$8:$CX$228)+(IF($A$7=Nutrients!$B$8,Nutrients!$CX$8,Nutrients!$CX$9)*AU$7)+(((IF($A$8=Nutrients!$B$79,Nutrients!$CX$79,(IF($A$8=Nutrients!$B$77,Nutrients!$CX$77,Nutrients!$CX$78)))))*AU$8))/2000/AU$236*100","v":46.746501166351017},{"$f":"(SUMPRODUCT(AV$9:AV$229,Nutrients!$CX$8:$CX$228)+(IF($A$7=Nutrients!$B$8,Nutrients!$CX$8,Nutrients!$CX$9)*AV$7)+(((IF($A$8=Nutrients!$B$79,Nutrients!$CX$79,(IF($A$8=Nutrients!$B$77,Nutrients!$CX$77,Nutrients!$CX$78)))))*AV$8))/2000/AV$236*100","v":47.489799465711627},{"$f":"(SUMPRODUCT(AW$9:AW$229,Nutrients!$CX$8:$CX$228)+(IF($A$7=Nutrients!$B$8,Nutrients!$CX$8,Nutrients!$CX$9)*AW$7)+(((IF($A$8=Nutrients!$B$79,Nutrients!$CX$79,(IF($A$8=Nutrients!$B$77,Nutrients!$CX$77,Nutrients!$CX$78)))))*AW$8))/2000/AW$236*100","v":47.951727044132234}]
["Total Lys, %",{"$f":"(SUMPRODUCT(B$9:B$229,Nutrients!$AJ$8:$AJ$228)+(IF($A7=Nutrients!$B$8,Nutrients!$AJ$8,Nutrients!$AJ$9)*B$7)+(((IF($A8=Nutrients!$B$79,Nutrients!$AJ$79,(IF($A8=Nutrients!$B$77,Nutrients!$AJ$77,Nutrients!$AJ$78)))))*B$8))/2000","v":1.3184028426828778},{"$f":"(SUMPRODUCT(C$9:C$229,Nutrients!$AJ$8:$AJ$228)+(IF($A7=Nutrients!$B$8,Nutrients!$AJ$8,Nutrients!$AJ$9)*C$7)+(((IF($A8=Nutrients!$B$79,Nutrients!$AJ$79,(IF($A8=Nutrients!$B$77,Nutrients!$AJ$77,Nutrients!$AJ$78)))))*C$8))/2000","v":1.1707660127345534},{"$f":"(SUMPRODUCT(D$9:D$229,Nutrients!$AJ$8:$AJ$228)+(IF($A7=Nutrients!$B$8,Nutrients!$AJ$8,Nutrients!$AJ$9)*D$7)+(((IF($A8=Nutrients!$B$79,Nutrients!$AJ$79,(IF($A8=Nutrients!$B$77,Nutrients!$AJ$77,Nutrients!$AJ$78)))))*D$8))/2000","v":1.0403693489168444},{"$f":"(SUMPRODUCT(E$9:E$229,Nutrients!$AJ$8:$AJ$228)+(IF($A7=Nutrients!$B$8,Nutrients!$AJ$8,Nutrients!$AJ$9)*E$7)+(((IF($A8=Nutrients!$B$79,Nutrients!$AJ$79,(IF($A8=Nutrients!$B$77,Nutrients!$AJ$77,Nutrients!$AJ$78)))))*E$8))/2000","v":0.93090396099650141},{"$f":"(SUMPRODUCT(F$9:F$229,Nutrients!$AJ$8:$AJ$228)+(IF($A7=Nutrients!$B$8,Nutrients!$AJ$8,Nutrients!$AJ$9)*F$7)+(((IF($A8=Nutrients!$B$79,Nutrients!$AJ$79,(IF($A8=Nutrients!$B$77,Nutrients!$AJ$77,Nutrients!$AJ$78)))))*F$8))/2000","v":0.85426384482722051},{"$f":"(SUMPRODUCT(G$9:G$229,Nutrients!$AJ$8:$AJ$228)+(IF($A7=Nutrients!$B$8,Nutrients!$AJ$8,Nutrients!$AJ$9)*G$7)+(((IF($A8=Nutrients!$B$79,Nutrients!$AJ$79,(IF($A8=Nutrients!$B$77,Nutrients!$AJ$77,Nutrients!$AJ$78)))))*G$8))/2000","v":0.81186991699752797},null,{"$f":"(SUMPRODUCT(I$9:I$229,Nutrients!$AJ$8:$AJ$228)+(IF($A7=Nutrients!$B$8,Nutrients!$AJ$8,Nutrients!$AJ$9)*I$7)+(((IF($A8=Nutrients!$B$79,Nutrients!$AJ$79,(IF($A8=Nutrients!$B$77,Nutrients!$AJ$77,Nutrients!$AJ$78)))))*I$8))/2000","v":1.3165972753231034},{"$f":"(SUMPRODUCT(J$9:J$229,Nutrients!$AJ$8:$AJ$228)+(IF($A7=Nutrients!$B$8,Nutrients!$AJ$8,Nutrients!$AJ$9)*J$7)+(((IF($A8=Nutrients!$B$79,Nutrients!$AJ$79,(IF($A8=Nutrients!$B$77,Nutrients!$AJ$77,Nutrients!$AJ$78)))))*J$8))/2000","v":1.1705711272077199},{"$f":"(SUMPRODUCT(K$9:K$229,Nutrients!$AJ$8:$AJ$228)+(IF($A7=Nutrients!$B$8,Nutrients!$AJ$8,Nutrients!$AJ$9)*K$7)+(((IF($A8=Nutrients!$B$79,Nutrients!$AJ$79,(IF($A8=Nutrients!$B$77,Nutrients!$AJ$77,Nutrients!$AJ$78)))))*K$8))/2000","v":1.0415021589369753},{"$f":"(SUMPRODUCT(L$9:L$229,Nutrients!$AJ$8:$AJ$228)+(IF($A7=Nutrients!$B$8,Nutrients!$AJ$8,Nutrients!$AJ$9)*L$7)+(((IF($A8=Nutrients!$B$79,Nutrients!$AJ$79,(IF($A8=Nutrients!$B$77,Nutrients!$AJ$77,Nutrients!$AJ$78)))))*L$8))/2000","v":0.93291769458229434},{"$f":"(SUMPRODUCT(M$9:M$229,Nutrients!$AJ$8:$AJ$228)+(IF($A7=Nutrients!$B$8,Nutrients!$AJ$8,Nutrients!$AJ$9)*M$7)+(((IF($A8=Nutrients!$B$79,Nutrients!$AJ$79,(IF($A8=Nutrients!$B$77,Nutrients!$AJ$77,Nutrients!$AJ$78)))))*M$8))/2000","v":0.85621574303847592},{"$f":"(SUMPRODUCT(N$9:N$229,Nutrients!$AJ$8:$AJ$228)+(IF($A7=Nutrients!$B$8,Nutrients!$AJ$8,Nutrients!$AJ$9)*N$7)+(((IF($A8=Nutrients!$B$79,Nutrients!$AJ$79,(IF($A8=Nutrients!$B$77,Nutrients!$AJ$77,Nutrients!$AJ$78)))))*N$8))/2000","v":0.81426519087272076},null,{"$f":"(SUMPRODUCT(P$9:P$229,Nutrients!$AJ$8:$AJ$228)+(IF($A7=Nutrients!$B$8,Nutrients!$AJ$8,Nutrients!$AJ$9)*P$7)+(((IF($A8=Nutrients!$B$79,Nutrients!$AJ$79,(IF($A8=Nutrients!$B$77,Nutrients!$AJ$77,Nutrients!$AJ$78)))))*P$8))/2000","v":1.3168679331202973},{"$f":"(SUMPRODUCT(Q$9:Q$229,Nutrients!$AJ$8:$AJ$228)+(IF($A7=Nutrients!$B$8,Nutrients!$AJ$8,Nutrients!$AJ$9)*Q$7)+(((IF($A8=Nutrients!$B$79,Nutrients!$AJ$79,(IF($A8=Nutrients!$B$77,Nutrients!$AJ$77,Nutrients!$AJ$78)))))*Q$8))/2000","v":1.1718154601829185},{"$f":"(SUMPRODUCT(R$9:R$229,Nutrients!$AJ$8:$AJ$228)+(IF($A7=Nutrients!$B$8,Nutrients!$AJ$8,Nutrients!$AJ$9)*R$7)+(((IF($A8=Nutrients!$B$79,Nutrients!$AJ$79,(IF($A8=Nutrients!$B$77,Nutrients!$AJ$77,Nutrients!$AJ$78)))))*R$8))/2000","v":1.0437894391132152},{"$f":"(SUMPRODUCT(S$9:S$229,Nutrients!$AJ$8:$AJ$228)+(IF($A7=Nutrients!$B$8,Nutrients!$AJ$8,Nutrients!$AJ$9)*S$7)+(((IF($A8=Nutrients!$B$79,Nutrients!$AJ$79,(IF($A8=Nutrients!$B$77,Nutrients!$AJ$77,Nutrients!$AJ$78)))))*S$8))/2000","v":0.93471837776336242},{"$f":"(SUMPRODUCT(T$9:T$229,Nutrients!$AJ$8:$AJ$228)+(IF($A7=Nutrients!$B$8,Nutrients!$AJ$8,Nutrients!$AJ$9)*T$7)+(((IF($A8=Nutrients!$B$79,Nutrients!$AJ$79,(IF($A8=Nutrients!$B$77,Nutrients!$AJ$77,Nutrients!$AJ$78)))))*T$8))/2000","v":0.85886979209068937},{"$f":"(SUMPRODUCT(U$9:U$229,Nutrients!$AJ$8:$AJ$228)+(IF($A7=Nutrients!$B$8,Nutrients!$AJ$8,Nutrients!$AJ$9)*U$7)+(((IF($A8=Nutrients!$B$79,Nutrients!$AJ$79,(IF($A8=Nutrients!$B$77,Nutrients!$AJ$77,Nutrients!$AJ$78)))))*U$8))/2000","v":0.81726469675493518},null,{"$f":"(SUMPRODUCT(W$9:W$229,Nutrients!$AJ$8:$AJ$228)+(IF($A7=Nutrients!$B$8,Nutrients!$AJ$8,Nutrients!$AJ$9)*W$7)+(((IF($A8=Nutrients!$B$79,Nutrients!$AJ$79,(IF($A8=Nutrients!$B$77,Nutrients!$AJ$77,Nutrients!$AJ$78)))))*W$8))/2000","v":1.3171363831911274},{"$f":"(SUMPRODUCT(X$9:X$229,Nutrients!$AJ$8:$AJ$228)+(IF($A7=Nutrients!$B$8,Nutrients!$AJ$8,Nutrients!$AJ$9)*X$7)+(((IF($A8=Nutrients!$B$79,Nutrients!$AJ$79,(IF($A8=Nutrients!$B$77,Nutrients!$AJ$77,Nutrients!$AJ$78)))))*X$8))/2000","v":1.1730649254717505},{"$f":"(SUMPRODUCT(Y$9:Y$229,Nutrients!$AJ$8:$AJ$228)+(IF($A7=Nutrients!$B$8,Nutrients!$AJ$8,Nutrients!$AJ$9)*Y$7)+(((IF($A8=Nutrients!$B$79,Nutrients!$AJ$79,(IF($A8=Nutrients!$B$77,Nutrients!$AJ$77,Nutrients!$AJ$78)))))*Y$8))/2000","v":1.0445670342924145},{"$f":"(SUMPRODUCT(Z$9:Z$229,Nutrients!$AJ$8:$AJ$228)+(IF($A7=Nutrients!$B$8,Nutrients!$AJ$8,Nutrients!$AJ$9)*Z$7)+(((IF($A8=Nutrients!$B$79,Nutrients!$AJ$79,(IF($A8=Nutrients!$B$77,Nutrients!$AJ$77,Nutrients!$AJ$78)))))*Z$8))/2000","v":0.93690240670339475},{"$f":"(SUMPRODUCT(AA$9:AA$229,Nutrients!$AJ$8:$AJ$228)+(IF($A7=Nutrients!$B$8,Nutrients!$AJ$8,Nutrients!$AJ$9)*AA$7)+(((IF($A8=Nutrients!$B$79,Nutrients!$AJ$79,(IF($A8=Nutrients!$B$77,Nutrients!$AJ$77,Nutrients!$AJ$78)))))*AA$8))/2000","v":0.861617428587236},{"$f":"(SUMPRODUCT(AB$9:AB$229,Nutrients!$AJ$8:$AJ$228)+(IF($A7=Nutrients!$B$8,Nutrients!$AJ$8,Nutrients!$AJ$9)*AB$7)+(((IF($A8=Nutrients!$B$79,Nutrients!$AJ$79,(IF($A8=Nutrients!$B$77,Nutrients!$AJ$77,Nutrients!$AJ$78)))))*AB$8))/2000","v":0.82007814622679343},null,{"$f":"(SUMPRODUCT(AD$9:AD$229,Nutrients!$AJ$8:$AJ$228)+(IF($A7=Nutrients!$B$8,Nutrients!$AJ$8,Nutrients!$AJ$9)*AD$7)+(((IF($A8=Nutrients!$B$79,Nutrients!$AJ$79,(IF($A8=Nutrients!$B$77,Nutrients!$AJ$77,Nutrients!$AJ$78)))))*AD$8))/2000","v":1.3172847721753069},{"$f":"(SUMPRODUCT(AE$9:AE$229,Nutrients!$AJ$8:$AJ$228)+(IF($A7=Nutrients!$B$8,Nutrients!$AJ$8,Nutrients!$AJ$9)*AE$7)+(((IF($A8=Nutrients!$B$79,Nutrients!$AJ$79,(IF($A8=Nutrients!$B$77,Nutrients!$AJ$77,Nutrients!$AJ$78)))))*AE$8))/2000","v":1.1728302401977027},{"$f":"(SUMPRODUCT(AF$9:AF$229,Nutrients!$AJ$8:$AJ$228)+(IF($A7=Nutrients!$B$8,Nutrients!$AJ$8,Nutrients!$AJ$9)*AF$7)+(((IF($A8=Nutrients!$B$79,Nutrients!$AJ$79,(IF($A8=Nutrients!$B$77,Nutrients!$AJ$77,Nutrients!$AJ$78)))))*AF$8))/2000","v":1.0456994980370526},{"$f":"(SUMPRODUCT(AG$9:AG$229,Nutrients!$AJ$8:$AJ$228)+(IF($A7=Nutrients!$B$8,Nutrients!$AJ$8,Nutrients!$AJ$9)*AG$7)+(((IF($A8=Nutrients!$B$79,Nutrients!$AJ$79,(IF($A8=Nutrients!$B$77,Nutrients!$AJ$77,Nutrients!$AJ$78)))))*AG$8))/2000","v":0.93905437014704296},{"$f":"(SUMPRODUCT(AH$9:AH$229,Nutrients!$AJ$8:$AJ$228)+(IF($A7=Nutrients!$B$8,Nutrients!$AJ$8,Nutrients!$AJ$9)*AH$7)+(((IF($A8=Nutrients!$B$79,Nutrients!$AJ$79,(IF($A8=Nutrients!$B$77,Nutrients!$AJ$77,Nutrients!$AJ$78)))))*AH$8))/2000","v":0.86376051668458242},{"$f":"(SUMPRODUCT(AI$9:AI$229,Nutrients!$AJ$8:$AJ$228)+(IF($A7=Nutrients!$B$8,Nutrients!$AJ$8,Nutrients!$AJ$9)*AI$7)+(((IF($A8=Nutrients!$B$79,Nutrients!$AJ$79,(IF($A8=Nutrients!$B$77,Nutrients!$AJ$77,Nutrients!$AJ$78)))))*AI$8))/2000","v":0.8223778955208193},null,{"$f":"(SUMPRODUCT(AK$9:AK$229,Nutrients!$AJ$8:$AJ$228)+(IF($A7=Nutrients!$B$8,Nutrients!$AJ$8,Nutrients!$AJ$9)*AK$7)+(((IF($A8=Nutrients!$B$79,Nutrients!$AJ$79,(IF($A8=Nutrients!$B$77,Nutrients!$AJ$77,Nutrients!$AJ$78)))))*AK$8))/2000","v":1.317823048658006},{"$f":"(SUMPRODUCT(AL$9:AL$229,Nutrients!$AJ$8:$AJ$228)+(IF($A7=Nutrients!$B$8,Nutrients!$AJ$8,Nutrients!$AJ$9)*AL$7)+(((IF($A8=Nutrients!$B$79,Nutrients!$AJ$79,(IF($A8=Nutrients!$B$77,Nutrients!$AJ$77,Nutrients!$AJ$78)))))*AL$8))/2000","v":1.1730246906405077},{"$f":"(SUMPRODUCT(AM$9:AM$229,Nutrients!$AJ$8:$AJ$228)+(IF($A7=Nutrients!$B$8,Nutrients!$AJ$8,Nutrients!$AJ$9)*AM$7)+(((IF($A8=Nutrients!$B$79,Nutrients!$AJ$79,(IF($A8=Nutrients!$B$77,Nutrients!$AJ$77,Nutrients!$AJ$78)))))*AM$8))/2000","v":1.0470019346152544},{"$f":"(SUMPRODUCT(AN$9:AN$229,Nutrients!$AJ$8:$AJ$228)+(IF($A7=Nutrients!$B$8,Nutrients!$AJ$8,Nutrients!$AJ$9)*AN$7)+(((IF($A8=Nutrients!$B$79,Nutrients!$AJ$79,(IF($A8=Nutrients!$B$77,Nutrients!$AJ$77,Nutrients!$AJ$78)))))*AN$8))/2000","v":0.94073506676838925},{"$f":"(SUMPRODUCT(AO$9:AO$229,Nutrients!$AJ$8:$AJ$228)+(IF($A7=Nutrients!$B$8,Nutrients!$AJ$8,Nutrients!$AJ$9)*AO$7)+(((IF($A8=Nutrients!$B$79,Nutrients!$AJ$79,(IF($A8=Nutrients!$B$77,Nutrients!$AJ$77,Nutrients!$AJ$78)))))*AO$8))/2000","v":0.86569673412516635},{"$f":"(SUMPRODUCT(AP$9:AP$229,Nutrients!$AJ$8:$AJ$228)+(IF($A7=Nutrients!$B$8,Nutrients!$AJ$8,Nutrients!$AJ$9)*AP$7)+(((IF($A8=Nutrients!$B$79,Nutrients!$AJ$79,(IF($A8=Nutrients!$B$77,Nutrients!$AJ$77,Nutrients!$AJ$78)))))*AP$8))/2000","v":0.82467266078192591},null,{"$f":"(SUMPRODUCT(AR$9:AR$229,Nutrients!$AJ$8:$AJ$228)+(IF($A7=Nutrients!$B$8,Nutrients!$AJ$8,Nutrients!$AJ$9)*AR$7)+(((IF($A8=Nutrients!$B$79,Nutrients!$AJ$79,(IF($A8=Nutrients!$B$77,Nutrients!$AJ$77,Nutrients!$AJ$78)))))*AR$8))/2000","v":1.321270683413682},{"$f":"(SUMPRODUCT(AS$9:AS$229,Nutrients!$AJ$8:$AJ$228)+(IF($A7=Nutrients!$B$8,Nutrients!$AJ$8,Nutrients!$AJ$9)*AS$7)+(((IF($A8=Nutrients!$B$79,Nutrients!$AJ$79,(IF($A8=Nutrients!$B$77,Nutrients!$AJ$77,Nutrients!$AJ$78)))))*AS$8))/2000","v":1.1732244760087311},{"$f":"(SUMPRODUCT(AT$9:AT$229,Nutrients!$AJ$8:$AJ$228)+(IF($A7=Nutrients!$B$8,Nutrients!$AJ$8,Nutrients!$AJ$9)*AT$7)+(((IF($A8=Nutrients!$B$79,Nutrients!$AJ$79,(IF($A8=Nutrients!$B$77,Nutrients!$AJ$77,Nutrients!$AJ$78)))))*AT$8))/2000","v":1.0485890334677697},{"$f":"(SUMPRODUCT(AU$9:AU$229,Nutrients!$AJ$8:$AJ$228)+(IF($A7=Nutrients!$B$8,Nutrients!$AJ$8,Nutrients!$AJ$9)*AU$7)+(((IF($A8=Nutrients!$B$79,Nutrients!$AJ$79,(IF($A8=Nutrients!$B$77,Nutrients!$AJ$77,Nutrients!$AJ$78)))))*AU$8))/2000","v":0.94217791373071846},{"$f":"(SUMPRODUCT(AV$9:AV$229,Nutrients!$AJ$8:$AJ$228)+(IF($A7=Nutrients!$B$8,Nutrients!$AJ$8,Nutrients!$AJ$9)*AV$7)+(((IF($A8=Nutrients!$B$79,Nutrients!$AJ$79,(IF($A8=Nutrients!$B$77,Nutrients!$AJ$77,Nutrients!$AJ$78)))))*AV$8))/2000","v":0.86764042764181337},{"$f":"(SUMPRODUCT(AW$9:AW$229,Nutrients!$AJ$8:$AJ$228)+(IF($A7=Nutrients!$B$8,Nutrients!$AJ$8,Nutrients!$AJ$9)*AW$7)+(((IF($A8=Nutrients!$B$79,Nutrients!$AJ$79,(IF($A8=Nutrients!$B$77,Nutrients!$AJ$77,Nutrients!$AJ$78)))))*AW$8))/2000","v":0.82697027447753368}]
["ME, kcal/lb",{"$f":"(SUMPRODUCT(B$9:B$229,Nutrients!$E$8:$E$228)+(IF($A$7=Nutrients!$B$8,Nutrients!$E$8,Nutrients!$E$9)*B$7)+(((IF($A$8=Nutrients!$B$79,Nutrients!$E$79,(IF($A$8=Nutrients!$B$77,Nutrients!$E$77,Nutrients!$E$78)))))*B$8))/2000/2.2046","v":1494.8752150724465},{"$f":"(SUMPRODUCT(C$9:C$229,Nutrients!$E$8:$E$228)+(IF($A$7=Nutrients!$B$8,Nutrients!$E$8,Nutrients!$E$9)*C$7)+(((IF($A$8=Nutrients!$B$79,Nutrients!$E$79,(IF($A$8=Nutrients!$B$77,Nutrients!$E$77,Nutrients!$E$78)))))*C$8))/2000/2.2046","v":1499.3360353372043},{"$f":"(SUMPRODUCT(D$9:D$229,Nutrients!$E$8:$E$228)+(IF($A$7=Nutrients!$B$8,Nutrients!$E$8,Nutrients!$E$9)*D$7)+(((IF($A$8=Nutrients!$B$79,Nutrients!$E$79,(IF($A$8=Nutrients!$B$77,Nutrients!$E$77,Nutrients!$E$78)))))*D$8))/2000/2.2046","v":1503.3094742023004},{"$f":"(SUMPRODUCT(E$9:E$229,Nutrients!$E$8:$E$228)+(IF($A$7=Nutrients!$B$8,Nutrients!$E$8,Nutrients!$E$9)*E$7)+(((IF($A$8=Nutrients!$B$79,Nutrients!$E$79,(IF($A$8=Nutrients!$B$77,Nutrients!$E$77,Nutrients!$E$78)))))*E$8))/2000/2.2046","v":1507.503198782209},{"$f":"(SUMPRODUCT(F$9:F$229,Nutrients!$E$8:$E$228)+(IF($A$7=Nutrients!$B$8,Nutrients!$E$8,Nutrients!$E$9)*F$7)+(((IF($A$8=Nutrients!$B$79,Nutrients!$E$79,(IF($A$8=Nutrients!$B$77,Nutrients!$E$77,Nutrients!$E$78)))))*F$8))/2000/2.2046","v":1511.0932854222328},{"$f":"(SUMPRODUCT(G$9:G$229,Nutrients!$E$8:$E$228)+(IF($A$7=Nutrients!$B$8,Nutrients!$E$8,Nutrients!$E$9)*G$7)+(((IF($A$8=Nutrients!$B$79,Nutrients!$E$79,(IF($A$8=Nutrients!$B$77,Nutrients!$E$77,Nutrients!$E$78)))))*G$8))/2000/2.2046","v":1512.5359640705287},null,{"$f":"(SUMPRODUCT(I$9:I$229,Nutrients!$E$8:$E$228)+(IF($A$7=Nutrients!$B$8,Nutrients!$E$8,Nutrients!$E$9)*I$7)+(((IF($A$8=Nutrients!$B$79,Nutrients!$E$79,(IF($A$8=Nutrients!$B$77,Nutrients!$E$77,Nutrients!$E$78)))))*I$8))/2000/2.2046","v":1498.0868445992664},{"$f":"(SUMPRODUCT(J$9:J$229,Nutrients!$E$8:$E$228)+(IF($A$7=Nutrients!$B$8,Nutrients!$E$8,Nutrients!$E$9)*J$7)+(((IF($A$8=Nutrients!$B$79,Nutrients!$E$79,(IF($A$8=Nutrients!$B$77,Nutrients!$E$77,Nutrients!$E$78)))))*J$8))/2000/2.2046","v":1502.4481960379085},{"$f":"(SUMPRODUCT(K$9:K$229,Nutrients!$E$8:$E$228)+(IF($A$7=Nutrients!$B$8,Nutrients!$E$8,Nutrients!$E$9)*K$7)+(((IF($A$8=Nutrients!$B$79,Nutrients!$E$79,(IF($A$8=Nutrients!$B$77,Nutrients!$E$77,Nutrients!$E$78)))))*K$8))/2000/2.2046","v":1506.6130446272007},{"$f":"(SUMPRODUCT(L$9:L$229,Nutrients!$E$8:$E$228)+(IF($A$7=Nutrients!$B$8,Nutrients!$E$8,Nutrients!$E$9)*L$7)+(((IF($A$8=Nutrients!$B$79,Nutrients!$E$79,(IF($A$8=Nutrients!$B$77,Nutrients!$E$77,Nutrients!$E$78)))))*L$8))/2000/2.2046","v":1510.6967700756811},{"$f":"(SUMPRODUCT(M$9:M$229,Nutrients!$E$8:$E$228)+(IF($A$7=Nutrients!$B$8,Nutrients!$E$8,Nutrients!$E$9)*M$7)+(((IF($A$8=Nutrients!$B$79,Nutrients!$E$79,(IF($A$8=Nutrients!$B$77,Nutrients!$E$77,Nutrients!$E$78)))))*M$8))/2000/2.2046","v":1514.2432218950551},{"$f":"(SUMPRODUCT(N$9:N$229,Nutrients!$E$8:$E$228)+(IF($A$7=Nutrients!$B$8,Nutrients!$E$8,Nutrients!$E$9)*N$7)+(((IF($A$8=Nutrients!$B$79,Nutrients!$E$79,(IF($A$8=Nutrients!$B$77,Nutrients!$E$77,Nutrients!$E$78)))))*N$8))/2000/2.2046","v":1515.7492282889773},null,{"$f":"(SUMPRODUCT(P$9:P$229,Nutrients!$E$8:$E$228)+(IF($A$7=Nutrients!$B$8,Nutrients!$E$8,Nutrients!$E$9)*P$7)+(((IF($A$8=Nutrients!$B$79,Nutrients!$E$79,(IF($A$8=Nutrients!$B$77,Nutrients!$E$77,Nutrients!$E$78)))))*P$8))/2000/2.2046","v":1501.2688212963453},{"$f":"(SUMPRODUCT(Q$9:Q$229,Nutrients!$E$8:$E$228)+(IF($A$7=Nutrients!$B$8,Nutrients!$E$8,Nutrients!$E$9)*Q$7)+(((IF($A$8=Nutrients!$B$79,Nutrients!$E$79,(IF($A$8=Nutrients!$B$77,Nutrients!$E$77,Nutrients!$E$78)))))*Q$8))/2000/2.2046","v":1505.663411520967},{"$f":"(SUMPRODUCT(R$9:R$229,Nutrients!$E$8:$E$228)+(IF($A$7=Nutrients!$B$8,Nutrients!$E$8,Nutrients!$E$9)*R$7)+(((IF($A$8=Nutrients!$B$79,Nutrients!$E$79,(IF($A$8=Nutrients!$B$77,Nutrients!$E$77,Nutrients!$E$78)))))*R$8))/2000/2.2046","v":1509.8222902722835},{"$f":"(SUMPRODUCT(S$9:S$229,Nutrients!$E$8:$E$228)+(IF($A$7=Nutrients!$B$8,Nutrients!$E$8,Nutrients!$E$9)*S$7)+(((IF($A$8=Nutrients!$B$79,Nutrients!$E$79,(IF($A$8=Nutrients!$B$77,Nutrients!$E$77,Nutrients!$E$78)))))*S$8))/2000/2.2046","v":1513.9385003735563},{"$f":"(SUMPRODUCT(T$9:T$229,Nutrients!$E$8:$E$228)+(IF($A$7=Nutrients!$B$8,Nutrients!$E$8,Nutrients!$E$9)*T$7)+(((IF($A$8=Nutrients!$B$79,Nutrients!$E$79,(IF($A$8=Nutrients!$B$77,Nutrients!$E$77,Nutrients!$E$78)))))*T$8))/2000/2.2046","v":1517.4784392778117},{"$f":"(SUMPRODUCT(U$9:U$229,Nutrients!$E$8:$E$228)+(IF($A$7=Nutrients!$B$8,Nutrients!$E$8,Nutrients!$E$9)*U$7)+(((IF($A$8=Nutrients!$B$79,Nutrients!$E$79,(IF($A$8=Nutrients!$B$77,Nutrients!$E$77,Nutrients!$E$78)))))*U$8))/2000/2.2046","v":1518.9694424307534},null,{"$f":"(SUMPRODUCT(W$9:W$229,Nutrients!$E$8:$E$228)+(IF($A$7=Nutrients!$B$8,Nutrients!$E$8,Nutrients!$E$9)*W$7)+(((IF($A$8=Nutrients!$B$79,Nutrients!$E$79,(IF($A$8=Nutrients!$B$77,Nutrients!$E$77,Nutrients!$E$78)))))*W$8))/2000/2.2046","v":1504.4782543248048},{"$f":"(SUMPRODUCT(X$9:X$229,Nutrients!$E$8:$E$228)+(IF($A$7=Nutrients!$B$8,Nutrients!$E$8,Nutrients!$E$9)*X$7)+(((IF($A$8=Nutrients!$B$79,Nutrients!$E$79,(IF($A$8=Nutrients!$B$77,Nutrients!$E$77,Nutrients!$E$78)))))*X$8))/2000/2.2046","v":1508.8790301770694},{"$f":"(SUMPRODUCT(Y$9:Y$229,Nutrients!$E$8:$E$228)+(IF($A$7=Nutrients!$B$8,Nutrients!$E$8,Nutrients!$E$9)*Y$7)+(((IF($A$8=Nutrients!$B$79,Nutrients!$E$79,(IF($A$8=Nutrients!$B$77,Nutrients!$E$77,Nutrients!$E$78)))))*Y$8))/2000/2.2046","v":1513.0847003822912},{"$f":"(SUMPRODUCT(Z$9:Z$229,Nutrients!$E$8:$E$228)+(IF($A$7=Nutrients!$B$8,Nutrients!$E$8,Nutrients!$E$9)*Z$7)+(((IF($A$8=Nutrients!$B$79,Nutrients!$E$79,(IF($A$8=Nutrients!$B$77,Nutrients!$E$77,Nutrients!$E$78)))))*Z$8))/2000/2.2046","v":1517.2244099388729},{"$f":"(SUMPRODUCT(AA$9:AA$229,Nutrients!$E$8:$E$228)+(IF($A$7=Nutrients!$B$8,Nutrients!$E$8,Nutrients!$E$9)*AA$7)+(((IF($A$8=Nutrients!$B$79,Nutrients!$E$79,(IF($A$8=Nutrients!$B$77,Nutrients!$E$77,Nutrients!$E$78)))))*AA$8))/2000/2.2046","v":1520.865367182975},{"$f":"(SUMPRODUCT(AB$9:AB$229,Nutrients!$E$8:$E$228)+(IF($A$7=Nutrients!$B$8,Nutrients!$E$8,Nutrients!$E$9)*AB$7)+(((IF($A$8=Nutrients!$B$79,Nutrients!$E$79,(IF($A$8=Nutrients!$B$77,Nutrients!$E$77,Nutrients!$E$78)))))*AB$8))/2000/2.2046","v":1522.0414464818762},null,{"$f":"(SUMPRODUCT(AD$9:AD$229,Nutrients!$E$8:$E$228)+(IF($A$7=Nutrients!$B$8,Nutrients!$E$8,Nutrients!$E$9)*AD$7)+(((IF($A$8=Nutrients!$B$79,Nutrients!$E$79,(IF($A$8=Nutrients!$B$77,Nutrients!$E$77,Nutrients!$E$78)))))*AD$8))/2000/2.2046","v":1507.7270252484961},{"$f":"(SUMPRODUCT(AE$9:AE$229,Nutrients!$E$8:$E$228)+(IF($A$7=Nutrients!$B$8,Nutrients!$E$8,Nutrients!$E$9)*AE$7)+(((IF($A$8=Nutrients!$B$79,Nutrients!$E$79,(IF($A$8=Nutrients!$B$77,Nutrients!$E$77,Nutrients!$E$78)))))*AE$8))/2000/2.2046","v":1512.1523974571769},{"$f":"(SUMPRODUCT(AF$9:AF$229,Nutrients!$E$8:$E$228)+(IF($A$7=Nutrients!$B$8,Nutrients!$E$8,Nutrients!$E$9)*AF$7)+(((IF($A$8=Nutrients!$B$79,Nutrients!$E$79,(IF($A$8=Nutrients!$B$77,Nutrients!$E$77,Nutrients!$E$78)))))*AF$8))/2000/2.2046","v":1516.3946504032288},{"$f":"(SUMPRODUCT(AG$9:AG$229,Nutrients!$E$8:$E$228)+(IF($A$7=Nutrients!$B$8,Nutrients!$E$8,Nutrients!$E$9)*AG$7)+(((IF($A$8=Nutrients!$B$79,Nutrients!$E$79,(IF($A$8=Nutrients!$B$77,Nutrients!$E$77,Nutrients!$E$78)))))*AG$8))/2000/2.2046","v":1520.6101083953729},{"$f":"(SUMPRODUCT(AH$9:AH$229,Nutrients!$E$8:$E$228)+(IF($A$7=Nutrients!$B$8,Nutrients!$E$8,Nutrients!$E$9)*AH$7)+(((IF($A$8=Nutrients!$B$79,Nutrients!$E$79,(IF($A$8=Nutrients!$B$77,Nutrients!$E$77,Nutrients!$E$78)))))*AH$8))/2000/2.2046","v":1523.2228470504961},{"$f":"(SUMPRODUCT(AI$9:AI$229,Nutrients!$E$8:$E$228)+(IF($A$7=Nutrients!$B$8,Nutrients!$E$8,Nutrients!$E$9)*AI$7)+(((IF($A$8=Nutrients!$B$79,Nutrients!$E$79,(IF($A$8=Nutrients!$B$77,Nutrients!$E$77,Nutrients!$E$78)))))*AI$8))/2000/2.2046","v":1524.0307293140199},null,{"$f":"(SUMPRODUCT(AK$9:AK$229,Nutrients!$E$8:$E$228)+(IF($A$7=Nutrients!$B$8,Nutrients!$E$8,Nutrients!$E$9)*AK$7)+(((IF($A$8=Nutrients!$B$79,Nutrients!$E$79,(IF($A$8=Nutrients!$B$77,Nutrients!$E$77,Nutrients!$E$78)))))*AK$8))/2000/2.2046","v":1510.978530508231},{"$f":"(SUMPRODUCT(AL$9:AL$229,Nutrients!$E$8:$E$228)+(IF($A$7=Nutrients!$B$8,Nutrients!$E$8,Nutrients!$E$9)*AL$7)+(((IF($A$8=Nutrients!$B$79,Nutrients!$E$79,(IF($A$8=Nutrients!$B$77,Nutrients!$E$77,Nutrients!$E$78)))))*AL$8))/2000/2.2046","v":1515.38510923799},{"$f":"(SUMPRODUCT(AM$9:AM$229,Nutrients!$E$8:$E$228)+(IF($A$7=Nutrients!$B$8,Nutrients!$E$8,Nutrients!$E$9)*AM$7)+(((IF($A$8=Nutrients!$B$79,Nutrients!$E$79,(IF($A$8=Nutrients!$B$77,Nutrients!$E$77,Nutrients!$E$78)))))*AM$8))/2000/2.2046","v":1519.7472957913126},{"$f":"(SUMPRODUCT(AN$9:AN$229,Nutrients!$E$8:$E$228)+(IF($A$7=Nutrients!$B$8,Nutrients!$E$8,Nutrients!$E$9)*AN$7)+(((IF($A$8=Nutrients!$B$79,Nutrients!$E$79,(IF($A$8=Nutrients!$B$77,Nutrients!$E$77,Nutrients!$E$78)))))*AN$8))/2000/2.2046","v":1523.1789863005572},{"$f":"(SUMPRODUCT(AO$9:AO$229,Nutrients!$E$8:$E$228)+(IF($A$7=Nutrients!$B$8,Nutrients!$E$8,Nutrients!$E$9)*AO$7)+(((IF($A$8=Nutrients!$B$79,Nutrients!$E$79,(IF($A$8=Nutrients!$B$77,Nutrients!$E$77,Nutrients!$E$78)))))*AO$8))/2000/2.2046","v":1525.2126986484188},{"$f":"(SUMPRODUCT(AP$9:AP$229,Nutrients!$E$8:$E$228)+(IF($A$7=Nutrients!$B$8,Nutrients!$E$8,Nutrients!$E$9)*AP$7)+(((IF($A$8=Nutrients!$B$79,Nutrients!$E$79,(IF($A$8=Nutrients!$B$77,Nutrients!$E$77,Nutrients!$E$78)))))*AP$8))/2000/2.2046","v":1526.0137695560213},null,{"$f":"(SUMPRODUCT(AR$9:AR$229,Nutrients!$E$8:$E$228)+(IF($A$7=Nutrients!$B$8,Nutrients!$E$8,Nutrients!$E$9)*AR$7)+(((IF($A$8=Nutrients!$B$79,Nutrients!$E$79,(IF($A$8=Nutrients!$B$77,Nutrients!$E$77,Nutrients!$E$78)))))*AR$8))/2000/2.2046","v":1514.1679587011597},{"$f":"(SUMPRODUCT(AS$9:AS$229,Nutrients!$E$8:$E$228)+(IF($A$7=Nutrients!$B$8,Nutrients!$E$8,Nutrients!$E$9)*AS$7)+(((IF($A$8=Nutrients!$B$79,Nutrients!$E$79,(IF($A$8=Nutrients!$B$77,Nutrients!$E$77,Nutrients!$E$78)))))*AS$8))/2000/2.2046","v":1518.7001411383822},{"$f":"(SUMPRODUCT(AT$9:AT$229,Nutrients!$E$8:$E$228)+(IF($A$7=Nutrients!$B$8,Nutrients!$E$8,Nutrients!$E$9)*AT$7)+(((IF($A$8=Nutrients!$B$79,Nutrients!$E$79,(IF($A$8=Nutrients!$B$77,Nutrients!$E$77,Nutrients!$E$78)))))*AT$8))/2000/2.2046","v":1523.1316751568793},{"$f":"(SUMPRODUCT(AU$9:AU$229,Nutrients!$E$8:$E$228)+(IF($A$7=Nutrients!$B$8,Nutrients!$E$8,Nutrients!$E$9)*AU$7)+(((IF($A$8=Nutrients!$B$79,Nutrients!$E$79,(IF($A$8=Nutrients!$B$77,Nutrients!$E$77,Nutrients!$E$78)))))*AU$8))/2000/2.2046","v":1525.1684045232175},{"$f":"(SUMPRODUCT(AV$9:AV$229,Nutrients!$E$8:$E$228)+(IF($A$7=Nutrients!$B$8,Nutrients!$E$8,Nutrients!$E$9)*AV$7)+(((IF($A$8=Nutrients!$B$79,Nutrients!$E$79,(IF($A$8=Nutrients!$B$77,Nutrients!$E$77,Nutrients!$E$78)))))*AV$8))/2000/2.2046","v":1527.2023630077874},{"$f":"(SUMPRODUCT(AW$9:AW$229,Nutrients!$E$8:$E$228)+(IF($A$7=Nutrients!$B$8,Nutrients!$E$8,Nutrients!$E$9)*AW$7)+(((IF($A$8=Nutrients!$B$79,Nutrients!$E$79,(IF($A$8=Nutrients!$B$77,Nutrients!$E$77,Nutrients!$E$78)))))*AW$8))/2000/2.2046","v":1527.9967132289976}]
["NE Noblet Grow/Finish, kcal/lb",{"$f":"(SUMPRODUCT(B$9:B$229,Nutrients!$DY$8:$DY$228)+(IF($A$7=Nutrients!$B$8,Nutrients!$DY$8,Nutrients!$DY$9)*B$7)+(((IF($A$8=Nutrients!$B$79,Nutrients!$DY$79,(IF($A$8=Nutrients!$B$77,Nutrients!$DY$77,Nutrients!$DY$78)))))*B$8))/2000/2.2046","v":1097.7096913668909},{"$f":"(SUMPRODUCT(C$9:C$229,Nutrients!$DY$8:$DY$228)+(IF($A$7=Nutrients!$B$8,Nutrients!$DY$8,Nutrients!$DY$9)*C$7)+(((IF($A$8=Nutrients!$B$79,Nutrients!$DY$79,(IF($A$8=Nutrients!$B$77,Nutrients!$DY$77,Nutrients!$DY$78)))))*C$8))/2000/2.2046","v":1111.6567624325369},{"$f":"(SUMPRODUCT(D$9:D$229,Nutrients!$DY$8:$DY$228)+(IF($A$7=Nutrients!$B$8,Nutrients!$DY$8,Nutrients!$DY$9)*D$7)+(((IF($A$8=Nutrients!$B$79,Nutrients!$DY$79,(IF($A$8=Nutrients!$B$77,Nutrients!$DY$77,Nutrients!$DY$78)))))*D$8))/2000/2.2046","v":1123.5684729276254},{"$f":"(SUMPRODUCT(E$9:E$229,Nutrients!$DY$8:$DY$228)+(IF($A$7=Nutrients!$B$8,Nutrients!$DY$8,Nutrients!$DY$9)*E$7)+(((IF($A$8=Nutrients!$B$79,Nutrients!$DY$79,(IF($A$8=Nutrients!$B$77,Nutrients!$DY$77,Nutrients!$DY$78)))))*E$8))/2000/2.2046","v":1135.5706715184997},{"$f":"(SUMPRODUCT(F$9:F$229,Nutrients!$DY$8:$DY$228)+(IF($A$7=Nutrients!$B$8,Nutrients!$DY$8,Nutrients!$DY$9)*F$7)+(((IF($A$8=Nutrients!$B$79,Nutrients!$DY$79,(IF($A$8=Nutrients!$B$77,Nutrients!$DY$77,Nutrients!$DY$78)))))*F$8))/2000/2.2046","v":1145.7413873005344},{"$f":"(SUMPRODUCT(G$9:G$229,Nutrients!$DY$8:$DY$228)+(IF($A$7=Nutrients!$B$8,Nutrients!$DY$8,Nutrients!$DY$9)*G$7)+(((IF($A$8=Nutrients!$B$79,Nutrients!$DY$79,(IF($A$8=Nutrients!$B$77,Nutrients!$DY$77,Nutrients!$DY$78)))))*G$8))/2000/2.2046","v":1150.9323531256127},null,{"$f":"(SUMPRODUCT(I$9:I$229,Nutrients!$DY$8:$DY$228)+(IF($A$7=Nutrients!$B$8,Nutrients!$DY$8,Nutrients!$DY$9)*I$7)+(((IF($A$8=Nutrients!$B$79,Nutrients!$DY$79,(IF($A$8=Nutrients!$B$77,Nutrients!$DY$77,Nutrients!$DY$78)))))*I$8))/2000/2.2046","v":1043.1006759003428},{"$f":"(SUMPRODUCT(J$9:J$229,Nutrients!$DY$8:$DY$228)+(IF($A$7=Nutrients!$B$8,Nutrients!$DY$8,Nutrients!$DY$9)*J$7)+(((IF($A$8=Nutrients!$B$79,Nutrients!$DY$79,(IF($A$8=Nutrients!$B$77,Nutrients!$DY$77,Nutrients!$DY$78)))))*J$8))/2000/2.2046","v":1056.8136957429654},{"$f":"(SUMPRODUCT(K$9:K$229,Nutrients!$DY$8:$DY$228)+(IF($A$7=Nutrients!$B$8,Nutrients!$DY$8,Nutrients!$DY$9)*K$7)+(((IF($A$8=Nutrients!$B$79,Nutrients!$DY$79,(IF($A$8=Nutrients!$B$77,Nutrients!$DY$77,Nutrients!$DY$78)))))*K$8))/2000/2.2046","v":1068.7459497397103},{"$f":"(SUMPRODUCT(L$9:L$229,Nutrients!$DY$8:$DY$228)+(IF($A$7=Nutrients!$B$8,Nutrients!$DY$8,Nutrients!$DY$9)*L$7)+(((IF($A$8=Nutrients!$B$79,Nutrients!$DY$79,(IF($A$8=Nutrients!$B$77,Nutrients!$DY$77,Nutrients!$DY$78)))))*L$8))/2000/2.2046","v":1080.5784931169928},{"$f":"(SUMPRODUCT(M$9:M$229,Nutrients!$DY$8:$DY$228)+(IF($A$7=Nutrients!$B$8,Nutrients!$DY$8,Nutrients!$DY$9)*M$7)+(((IF($A$8=Nutrients!$B$79,Nutrients!$DY$79,(IF($A$8=Nutrients!$B$77,Nutrients!$DY$77,Nutrients!$DY$78)))))*M$8))/2000/2.2046","v":1090.7223415571982},{"$f":"(SUMPRODUCT(N$9:N$229,Nutrients!$DY$8:$DY$228)+(IF($A$7=Nutrients!$B$8,Nutrients!$DY$8,Nutrients!$DY$9)*N$7)+(((IF($A$8=Nutrients!$B$79,Nutrients!$DY$79,(IF($A$8=Nutrients!$B$77,Nutrients!$DY$77,Nutrients!$DY$78)))))*N$8))/2000/2.2046","v":1095.9177392743759},null,{"$f":"(SUMPRODUCT(P$9:P$229,Nutrients!$DY$8:$DY$228)+(IF($A$7=Nutrients!$B$8,Nutrients!$DY$8,Nutrients!$DY$9)*P$7)+(((IF($A$8=Nutrients!$B$79,Nutrients!$DY$79,(IF($A$8=Nutrients!$B$77,Nutrients!$DY$77,Nutrients!$DY$78)))))*P$8))/2000/2.2046","v":988.26820251019899},{"$f":"(SUMPRODUCT(Q$9:Q$229,Nutrients!$DY$8:$DY$228)+(IF($A$7=Nutrients!$B$8,Nutrients!$DY$8,Nutrients!$DY$9)*Q$7)+(((IF($A$8=Nutrients!$B$79,Nutrients!$DY$79,(IF($A$8=Nutrients!$B$77,Nutrients!$DY$77,Nutrients!$DY$78)))))*Q$8))/2000/2.2046","v":1001.9108855105634},{"$f":"(SUMPRODUCT(R$9:R$229,Nutrients!$DY$8:$DY$228)+(IF($A$7=Nutrients!$B$8,Nutrients!$DY$8,Nutrients!$DY$9)*R$7)+(((IF($A$8=Nutrients!$B$79,Nutrients!$DY$79,(IF($A$8=Nutrients!$B$77,Nutrients!$DY$77,Nutrients!$DY$78)))))*R$8))/2000/2.2046","v":1013.7389374457214},{"$f":"(SUMPRODUCT(S$9:S$229,Nutrients!$DY$8:$DY$228)+(IF($A$7=Nutrients!$B$8,Nutrients!$DY$8,Nutrients!$DY$9)*S$7)+(((IF($A$8=Nutrients!$B$79,Nutrients!$DY$79,(IF($A$8=Nutrients!$B$77,Nutrients!$DY$77,Nutrients!$DY$78)))))*S$8))/2000/2.2046","v":1025.6421325291283},{"$f":"(SUMPRODUCT(T$9:T$229,Nutrients!$DY$8:$DY$228)+(IF($A$7=Nutrients!$B$8,Nutrients!$DY$8,Nutrients!$DY$9)*T$7)+(((IF($A$8=Nutrients!$B$79,Nutrients!$DY$79,(IF($A$8=Nutrients!$B$77,Nutrients!$DY$77,Nutrients!$DY$78)))))*T$8))/2000/2.2046","v":1035.6988684197988},{"$f":"(SUMPRODUCT(U$9:U$229,Nutrients!$DY$8:$DY$228)+(IF($A$7=Nutrients!$B$8,Nutrients!$DY$8,Nutrients!$DY$9)*U$7)+(((IF($A$8=Nutrients!$B$79,Nutrients!$DY$79,(IF($A$8=Nutrients!$B$77,Nutrients!$DY$77,Nutrients!$DY$78)))))*U$8))/2000/2.2046","v":1040.8499971370738},null,{"$f":"(SUMPRODUCT(W$9:W$229,Nutrients!$DY$8:$DY$228)+(IF($A$7=Nutrients!$B$8,Nutrients!$DY$8,Nutrients!$DY$9)*W$7)+(((IF($A$8=Nutrients!$B$79,Nutrients!$DY$79,(IF($A$8=Nutrients!$B$77,Nutrients!$DY$77,Nutrients!$DY$78)))))*W$8))/2000/2.2046","v":933.45605645903834},{"$f":"(SUMPRODUCT(X$9:X$229,Nutrients!$DY$8:$DY$228)+(IF($A$7=Nutrients!$B$8,Nutrients!$DY$8,Nutrients!$DY$9)*X$7)+(((IF($A$8=Nutrients!$B$79,Nutrients!$DY$79,(IF($A$8=Nutrients!$B$77,Nutrients!$DY$77,Nutrients!$DY$78)))))*X$8))/2000/2.2046","v":947.00860975295654},{"$f":"(SUMPRODUCT(Y$9:Y$229,Nutrients!$DY$8:$DY$228)+(IF($A$7=Nutrients!$B$8,Nutrients!$DY$8,Nutrients!$DY$9)*Y$7)+(((IF($A$8=Nutrients!$B$79,Nutrients!$DY$79,(IF($A$8=Nutrients!$B$77,Nutrients!$DY$77,Nutrients!$DY$78)))))*Y$8))/2000/2.2046","v":958.91630516030352},{"$f":"(SUMPRODUCT(Z$9:Z$229,Nutrients!$DY$8:$DY$228)+(IF($A$7=Nutrients!$B$8,Nutrients!$DY$8,Nutrients!$DY$9)*Z$7)+(((IF($A$8=Nutrients!$B$79,Nutrients!$DY$79,(IF($A$8=Nutrients!$B$77,Nutrients!$DY$77,Nutrients!$DY$78)))))*Z$8))/2000/2.2046","v":970.70096158413992},{"$f":"(SUMPRODUCT(AA$9:AA$229,Nutrients!$DY$8:$DY$228)+(IF($A$7=Nutrients!$B$8,Nutrients!$DY$8,Nutrients!$DY$9)*AA$7)+(((IF($A$8=Nutrients!$B$79,Nutrients!$DY$79,(IF($A$8=Nutrients!$B$77,Nutrients!$DY$77,Nutrients!$DY$78)))))*AA$8))/2000/2.2046","v":980.77689460276588},{"$f":"(SUMPRODUCT(AB$9:AB$229,Nutrients!$DY$8:$DY$228)+(IF($A$7=Nutrients!$B$8,Nutrients!$DY$8,Nutrients!$DY$9)*AB$7)+(((IF($A$8=Nutrients!$B$79,Nutrients!$DY$79,(IF($A$8=Nutrients!$B$77,Nutrients!$DY$77,Nutrients!$DY$78)))))*AB$8))/2000/2.2046","v":985.67105768034855},null,{"$f":"(SUMPRODUCT(AD$9:AD$229,Nutrients!$DY$8:$DY$228)+(IF($A$7=Nutrients!$B$8,Nutrients!$DY$8,Nutrients!$DY$9)*AD$7)+(((IF($A$8=Nutrients!$B$79,Nutrients!$DY$79,(IF($A$8=Nutrients!$B$77,Nutrients!$DY$77,Nutrients!$DY$78)))))*AD$8))/2000/2.2046","v":878.68428443859273},{"$f":"(SUMPRODUCT(AE$9:AE$229,Nutrients!$DY$8:$DY$228)+(IF($A$7=Nutrients!$B$8,Nutrients!$DY$8,Nutrients!$DY$9)*AE$7)+(((IF($A$8=Nutrients!$B$79,Nutrients!$DY$79,(IF($A$8=Nutrients!$B$77,Nutrients!$DY$77,Nutrients!$DY$78)))))*AE$8))/2000/2.2046","v":892.29172521026396},{"$f":"(SUMPRODUCT(AF$9:AF$229,Nutrients!$DY$8:$DY$228)+(IF($A$7=Nutrients!$B$8,Nutrients!$DY$8,Nutrients!$DY$9)*AF$7)+(((IF($A$8=Nutrients!$B$79,Nutrients!$DY$79,(IF($A$8=Nutrients!$B$77,Nutrients!$DY$77,Nutrients!$DY$78)))))*AF$8))/2000/2.2046","v":904.09421278685716},{"$f":"(SUMPRODUCT(AG$9:AG$229,Nutrients!$DY$8:$DY$228)+(IF($A$7=Nutrients!$B$8,Nutrients!$DY$8,Nutrients!$DY$9)*AG$7)+(((IF($A$8=Nutrients!$B$79,Nutrients!$DY$79,(IF($A$8=Nutrients!$B$77,Nutrients!$DY$77,Nutrients!$DY$78)))))*AG$8))/2000/2.2046","v":915.83424701967965},{"$f":"(SUMPRODUCT(AH$9:AH$229,Nutrients!$DY$8:$DY$228)+(IF($A$7=Nutrients!$B$8,Nutrients!$DY$8,Nutrients!$DY$9)*AH$7)+(((IF($A$8=Nutrients!$B$79,Nutrients!$DY$79,(IF($A$8=Nutrients!$B$77,Nutrients!$DY$77,Nutrients!$DY$78)))))*AH$8))/2000/2.2046","v":925.09276519038235},{"$f":"(SUMPRODUCT(AI$9:AI$229,Nutrients!$DY$8:$DY$228)+(IF($A$7=Nutrients!$B$8,Nutrients!$DY$8,Nutrients!$DY$9)*AI$7)+(((IF($A$8=Nutrients!$B$79,Nutrients!$DY$79,(IF($A$8=Nutrients!$B$77,Nutrients!$DY$77,Nutrients!$DY$78)))))*AI$8))/2000/2.2046","v":929.67889380824806},null,{"$f":"(SUMPRODUCT(AK$9:AK$229,Nutrients!$DY$8:$DY$228)+(IF($A$7=Nutrients!$B$8,Nutrients!$DY$8,Nutrients!$DY$9)*AK$7)+(((IF($A$8=Nutrients!$B$79,Nutrients!$DY$79,(IF($A$8=Nutrients!$B$77,Nutrients!$DY$77,Nutrients!$DY$78)))))*AK$8))/2000/2.2046","v":823.87678223231501},{"$f":"(SUMPRODUCT(AL$9:AL$229,Nutrients!$DY$8:$DY$228)+(IF($A$7=Nutrients!$B$8,Nutrients!$DY$8,Nutrients!$DY$9)*AL$7)+(((IF($A$8=Nutrients!$B$79,Nutrients!$DY$79,(IF($A$8=Nutrients!$B$77,Nutrients!$DY$77,Nutrients!$DY$78)))))*AL$8))/2000/2.2046","v":837.50369400307216},{"$f":"(SUMPRODUCT(AM$9:AM$229,Nutrients!$DY$8:$DY$228)+(IF($A$7=Nutrients!$B$8,Nutrients!$DY$8,Nutrients!$DY$9)*AM$7)+(((IF($A$8=Nutrients!$B$79,Nutrients!$DY$79,(IF($A$8=Nutrients!$B$77,Nutrients!$DY$77,Nutrients!$DY$78)))))*AM$8))/2000/2.2046","v":849.28670750129254},{"$f":"(SUMPRODUCT(AN$9:AN$229,Nutrients!$DY$8:$DY$228)+(IF($A$7=Nutrients!$B$8,Nutrients!$DY$8,Nutrients!$DY$9)*AN$7)+(((IF($A$8=Nutrients!$B$79,Nutrients!$DY$79,(IF($A$8=Nutrients!$B$77,Nutrients!$DY$77,Nutrients!$DY$78)))))*AN$8))/2000/2.2046","v":860.36279610015413},{"$f":"(SUMPRODUCT(AO$9:AO$229,Nutrients!$DY$8:$DY$228)+(IF($A$7=Nutrients!$B$8,Nutrients!$DY$8,Nutrients!$DY$9)*AO$7)+(((IF($A$8=Nutrients!$B$79,Nutrients!$DY$79,(IF($A$8=Nutrients!$B$77,Nutrients!$DY$77,Nutrients!$DY$78)))))*AO$8))/2000/2.2046","v":869.1360266888895},{"$f":"(SUMPRODUCT(AP$9:AP$229,Nutrients!$DY$8:$DY$228)+(IF($A$7=Nutrients!$B$8,Nutrients!$DY$8,Nutrients!$DY$9)*AP$7)+(((IF($A$8=Nutrients!$B$79,Nutrients!$DY$79,(IF($A$8=Nutrients!$B$77,Nutrients!$DY$77,Nutrients!$DY$78)))))*AP$8))/2000/2.2046","v":873.68254958569321},null,{"$f":"(SUMPRODUCT(AR$9:AR$229,Nutrients!$DY$8:$DY$228)+(IF($A$7=Nutrients!$B$8,Nutrients!$DY$8,Nutrients!$DY$9)*AR$7)+(((IF($A$8=Nutrients!$B$79,Nutrients!$DY$79,(IF($A$8=Nutrients!$B$77,Nutrients!$DY$77,Nutrients!$DY$78)))))*AR$8))/2000/2.2046","v":768.74335786890504},{"$f":"(SUMPRODUCT(AS$9:AS$229,Nutrients!$DY$8:$DY$228)+(IF($A$7=Nutrients!$B$8,Nutrients!$DY$8,Nutrients!$DY$9)*AS$7)+(((IF($A$8=Nutrients!$B$79,Nutrients!$DY$79,(IF($A$8=Nutrients!$B$77,Nutrients!$DY$77,Nutrients!$DY$78)))))*AS$8))/2000/2.2046","v":782.77518086242571},{"$f":"(SUMPRODUCT(AT$9:AT$229,Nutrients!$DY$8:$DY$228)+(IF($A$7=Nutrients!$B$8,Nutrients!$DY$8,Nutrients!$DY$9)*AT$7)+(((IF($A$8=Nutrients!$B$79,Nutrients!$DY$79,(IF($A$8=Nutrients!$B$77,Nutrients!$DY$77,Nutrients!$DY$78)))))*AT$8))/2000/2.2046","v":794.47334957347994},{"$f":"(SUMPRODUCT(AU$9:AU$229,Nutrients!$DY$8:$DY$228)+(IF($A$7=Nutrients!$B$8,Nutrients!$DY$8,Nutrients!$DY$9)*AU$7)+(((IF($A$8=Nutrients!$B$79,Nutrients!$DY$79,(IF($A$8=Nutrients!$B$77,Nutrients!$DY$77,Nutrients!$DY$78)))))*AU$8))/2000/2.2046","v":804.45275011616241},{"$f":"(SUMPRODUCT(AV$9:AV$229,Nutrients!$DY$8:$DY$228)+(IF($A$7=Nutrients!$B$8,Nutrients!$DY$8,Nutrients!$DY$9)*AV$7)+(((IF($A$8=Nutrients!$B$79,Nutrients!$DY$79,(IF($A$8=Nutrients!$B$77,Nutrients!$DY$77,Nutrients!$DY$78)))))*AV$8))/2000/2.2046","v":813.17842637614274},{"$f":"(SUMPRODUCT(AW$9:AW$229,Nutrients!$DY$8:$DY$228)+(IF($A$7=Nutrients!$B$8,Nutrients!$DY$8,Nutrients!$DY$9)*AW$7)+(((IF($A$8=Nutrients!$B$79,Nutrients!$DY$79,(IF($A$8=Nutrients!$B$77,Nutrients!$DY$77,Nutrients!$DY$78)))))*AW$8))/2000/2.2046","v":817.68585692340707}]
["NE Noblet Sow, kcal/lb",{"$f":"(SUMPRODUCT(B$9:B$229,Nutrients!$DZ$8:$DZ$228)+(IF($A$7=Nutrients!$B$8,Nutrients!$DZ$8,Nutrients!$DZ$9)*B$7)+(((IF($A$8=Nutrients!$B$79,Nutrients!$DZ$79,(IF($A$8=Nutrients!$B$77,Nutrients!$DZ$77,Nutrients!$DZ$78)))))*B$8))/2000/2.2046","v":1137.6355538359269},{"$f":"(SUMPRODUCT(C$9:C$229,Nutrients!$DZ$8:$DZ$228)+(IF($A$7=Nutrients!$B$8,Nutrients!$DZ$8,Nutrients!$DZ$9)*C$7)+(((IF($A$8=Nutrients!$B$79,Nutrients!$DZ$79,(IF($A$8=Nutrients!$B$77,Nutrients!$DZ$77,Nutrients!$DZ$78)))))*C$8))/2000/2.2046","v":1150.9934545095848},{"$f":"(SUMPRODUCT(D$9:D$229,Nutrients!$DZ$8:$DZ$228)+(IF($A$7=Nutrients!$B$8,Nutrients!$DZ$8,Nutrients!$DZ$9)*D$7)+(((IF($A$8=Nutrients!$B$79,Nutrients!$DZ$79,(IF($A$8=Nutrients!$B$77,Nutrients!$DZ$77,Nutrients!$DZ$78)))))*D$8))/2000/2.2046","v":1162.42368942858},{"$f":"(SUMPRODUCT(E$9:E$229,Nutrients!$DZ$8:$DZ$228)+(IF($A$7=Nutrients!$B$8,Nutrients!$DZ$8,Nutrients!$DZ$9)*E$7)+(((IF($A$8=Nutrients!$B$79,Nutrients!$DZ$79,(IF($A$8=Nutrients!$B$77,Nutrients!$DZ$77,Nutrients!$DZ$78)))))*E$8))/2000/2.2046","v":1173.9065707641619},{"$f":"(SUMPRODUCT(F$9:F$229,Nutrients!$DZ$8:$DZ$228)+(IF($A$7=Nutrients!$B$8,Nutrients!$DZ$8,Nutrients!$DZ$9)*F$7)+(((IF($A$8=Nutrients!$B$79,Nutrients!$DZ$79,(IF($A$8=Nutrients!$B$77,Nutrients!$DZ$77,Nutrients!$DZ$78)))))*F$8))/2000/2.2046","v":1183.6213518369293},{"$f":"(SUMPRODUCT(G$9:G$229,Nutrients!$DZ$8:$DZ$228)+(IF($A$7=Nutrients!$B$8,Nutrients!$DZ$8,Nutrients!$DZ$9)*G$7)+(((IF($A$8=Nutrients!$B$79,Nutrients!$DZ$79,(IF($A$8=Nutrients!$B$77,Nutrients!$DZ$77,Nutrients!$DZ$78)))))*G$8))/2000/2.2046","v":1188.5451985530322},null,{"$f":"(SUMPRODUCT(I$9:I$229,Nutrients!$DZ$8:$DZ$228)+(IF($A$7=Nutrients!$B$8,Nutrients!$DZ$8,Nutrients!$DZ$9)*I$7)+(((IF($A$8=Nutrients!$B$79,Nutrients!$DZ$79,(IF($A$8=Nutrients!$B$77,Nutrients!$DZ$77,Nutrients!$DZ$78)))))*I$8))/2000/2.2046","v":1080.9078874947747},{"$f":"(SUMPRODUCT(J$9:J$229,Nutrients!$DZ$8:$DZ$228)+(IF($A$7=Nutrients!$B$8,Nutrients!$DZ$8,Nutrients!$DZ$9)*J$7)+(((IF($A$8=Nutrients!$B$79,Nutrients!$DZ$79,(IF($A$8=Nutrients!$B$77,Nutrients!$DZ$77,Nutrients!$DZ$78)))))*J$8))/2000/2.2046","v":1094.0397923300377},{"$f":"(SUMPRODUCT(K$9:K$229,Nutrients!$DZ$8:$DZ$228)+(IF($A$7=Nutrients!$B$8,Nutrients!$DZ$8,Nutrients!$DZ$9)*K$7)+(((IF($A$8=Nutrients!$B$79,Nutrients!$DZ$79,(IF($A$8=Nutrients!$B$77,Nutrients!$DZ$77,Nutrients!$DZ$78)))))*K$8))/2000/2.2046","v":1105.4996934873909},{"$f":"(SUMPRODUCT(L$9:L$229,Nutrients!$DZ$8:$DZ$228)+(IF($A$7=Nutrients!$B$8,Nutrients!$DZ$8,Nutrients!$DZ$9)*L$7)+(((IF($A$8=Nutrients!$B$79,Nutrients!$DZ$79,(IF($A$8=Nutrients!$B$77,Nutrients!$DZ$77,Nutrients!$DZ$78)))))*L$8))/2000/2.2046","v":1116.8184418535177},{"$f":"(SUMPRODUCT(M$9:M$229,Nutrients!$DZ$8:$DZ$228)+(IF($A$7=Nutrients!$B$8,Nutrients!$DZ$8,Nutrients!$DZ$9)*M$7)+(((IF($A$8=Nutrients!$B$79,Nutrients!$DZ$79,(IF($A$8=Nutrients!$B$77,Nutrients!$DZ$77,Nutrients!$DZ$78)))))*M$8))/2000/2.2046","v":1126.5068042588891},{"$f":"(SUMPRODUCT(N$9:N$229,Nutrients!$DZ$8:$DZ$228)+(IF($A$7=Nutrients!$B$8,Nutrients!$DZ$8,Nutrients!$DZ$9)*N$7)+(((IF($A$8=Nutrients!$B$79,Nutrients!$DZ$79,(IF($A$8=Nutrients!$B$77,Nutrients!$DZ$77,Nutrients!$DZ$78)))))*N$8))/2000/2.2046","v":1131.4361695857599},null,{"$f":"(SUMPRODUCT(P$9:P$229,Nutrients!$DZ$8:$DZ$228)+(IF($A$7=Nutrients!$B$8,Nutrients!$DZ$8,Nutrients!$DZ$9)*P$7)+(((IF($A$8=Nutrients!$B$79,Nutrients!$DZ$79,(IF($A$8=Nutrients!$B$77,Nutrients!$DZ$77,Nutrients!$DZ$78)))))*P$8))/2000/2.2046","v":1023.9691244918459},{"$f":"(SUMPRODUCT(Q$9:Q$229,Nutrients!$DZ$8:$DZ$228)+(IF($A$7=Nutrients!$B$8,Nutrients!$DZ$8,Nutrients!$DZ$9)*Q$7)+(((IF($A$8=Nutrients!$B$79,Nutrients!$DZ$79,(IF($A$8=Nutrients!$B$77,Nutrients!$DZ$77,Nutrients!$DZ$78)))))*Q$8))/2000/2.2046","v":1037.0348844797206},{"$f":"(SUMPRODUCT(R$9:R$229,Nutrients!$DZ$8:$DZ$228)+(IF($A$7=Nutrients!$B$8,Nutrients!$DZ$8,Nutrients!$DZ$9)*R$7)+(((IF($A$8=Nutrients!$B$79,Nutrients!$DZ$79,(IF($A$8=Nutrients!$B$77,Nutrients!$DZ$77,Nutrients!$DZ$78)))))*R$8))/2000/2.2046","v":1048.397851649979},{"$f":"(SUMPRODUCT(S$9:S$229,Nutrients!$DZ$8:$DZ$228)+(IF($A$7=Nutrients!$B$8,Nutrients!$DZ$8,Nutrients!$DZ$9)*S$7)+(((IF($A$8=Nutrients!$B$79,Nutrients!$DZ$79,(IF($A$8=Nutrients!$B$77,Nutrients!$DZ$77,Nutrients!$DZ$78)))))*S$8))/2000/2.2046","v":1059.7831689887507},{"$f":"(SUMPRODUCT(T$9:T$229,Nutrients!$DZ$8:$DZ$228)+(IF($A$7=Nutrients!$B$8,Nutrients!$DZ$8,Nutrients!$DZ$9)*T$7)+(((IF($A$8=Nutrients!$B$79,Nutrients!$DZ$79,(IF($A$8=Nutrients!$B$77,Nutrients!$DZ$77,Nutrients!$DZ$78)))))*T$8))/2000/2.2046","v":1069.3897255301006},{"$f":"(SUMPRODUCT(U$9:U$229,Nutrients!$DZ$8:$DZ$228)+(IF($A$7=Nutrients!$B$8,Nutrients!$DZ$8,Nutrients!$DZ$9)*U$7)+(((IF($A$8=Nutrients!$B$79,Nutrients!$DZ$79,(IF($A$8=Nutrients!$B$77,Nutrients!$DZ$77,Nutrients!$DZ$78)))))*U$8))/2000/2.2046","v":1074.2774269365636},null,{"$f":"(SUMPRODUCT(W$9:W$229,Nutrients!$DZ$8:$DZ$228)+(IF($A$7=Nutrients!$B$8,Nutrients!$DZ$8,Nutrients!$DZ$9)*W$7)+(((IF($A$8=Nutrients!$B$79,Nutrients!$DZ$79,(IF($A$8=Nutrients!$B$77,Nutrients!$DZ$77,Nutrients!$DZ$78)))))*W$8))/2000/2.2046","v":967.04980749966523},{"$f":"(SUMPRODUCT(X$9:X$229,Nutrients!$DZ$8:$DZ$228)+(IF($A$7=Nutrients!$B$8,Nutrients!$DZ$8,Nutrients!$DZ$9)*X$7)+(((IF($A$8=Nutrients!$B$79,Nutrients!$DZ$79,(IF($A$8=Nutrients!$B$77,Nutrients!$DZ$77,Nutrients!$DZ$78)))))*X$8))/2000/2.2046","v":980.03118922193448},{"$f":"(SUMPRODUCT(Y$9:Y$229,Nutrients!$DZ$8:$DZ$228)+(IF($A$7=Nutrients!$B$8,Nutrients!$DZ$8,Nutrients!$DZ$9)*Y$7)+(((IF($A$8=Nutrients!$B$79,Nutrients!$DZ$79,(IF($A$8=Nutrients!$B$77,Nutrients!$DZ$77,Nutrients!$DZ$78)))))*Y$8))/2000/2.2046","v":991.46927924287922},{"$f":"(SUMPRODUCT(Z$9:Z$229,Nutrients!$DZ$8:$DZ$228)+(IF($A$7=Nutrients!$B$8,Nutrients!$DZ$8,Nutrients!$DZ$9)*Z$7)+(((IF($A$8=Nutrients!$B$79,Nutrients!$DZ$79,(IF($A$8=Nutrients!$B$77,Nutrients!$DZ$77,Nutrients!$DZ$78)))))*Z$8))/2000/2.2046","v":1002.743816073625},{"$f":"(SUMPRODUCT(AA$9:AA$229,Nutrients!$DZ$8:$DZ$228)+(IF($A$7=Nutrients!$B$8,Nutrients!$DZ$8,Nutrients!$DZ$9)*AA$7)+(((IF($A$8=Nutrients!$B$79,Nutrients!$DZ$79,(IF($A$8=Nutrients!$B$77,Nutrients!$DZ$77,Nutrients!$DZ$78)))))*AA$8))/2000/2.2046","v":1012.3690164386284},{"$f":"(SUMPRODUCT(AB$9:AB$229,Nutrients!$DZ$8:$DZ$228)+(IF($A$7=Nutrients!$B$8,Nutrients!$DZ$8,Nutrients!$DZ$9)*AB$7)+(((IF($A$8=Nutrients!$B$79,Nutrients!$DZ$79,(IF($A$8=Nutrients!$B$77,Nutrients!$DZ$77,Nutrients!$DZ$78)))))*AB$8))/2000/2.2046","v":1016.993158552313},null,{"$f":"(SUMPRODUCT(AD$9:AD$229,Nutrients!$DZ$8:$DZ$228)+(IF($A$7=Nutrients!$B$8,Nutrients!$DZ$8,Nutrients!$DZ$9)*AD$7)+(((IF($A$8=Nutrients!$B$79,Nutrients!$DZ$79,(IF($A$8=Nutrients!$B$77,Nutrients!$DZ$77,Nutrients!$DZ$78)))))*AD$8))/2000/2.2046","v":910.16879877486713},{"$f":"(SUMPRODUCT(AE$9:AE$229,Nutrients!$DZ$8:$DZ$228)+(IF($A$7=Nutrients!$B$8,Nutrients!$DZ$8,Nutrients!$DZ$9)*AE$7)+(((IF($A$8=Nutrients!$B$79,Nutrients!$DZ$79,(IF($A$8=Nutrients!$B$77,Nutrients!$DZ$77,Nutrients!$DZ$78)))))*AE$8))/2000/2.2046","v":923.2018496993087},{"$f":"(SUMPRODUCT(AF$9:AF$229,Nutrients!$DZ$8:$DZ$228)+(IF($A$7=Nutrients!$B$8,Nutrients!$DZ$8,Nutrients!$DZ$9)*AF$7)+(((IF($A$8=Nutrients!$B$79,Nutrients!$DZ$79,(IF($A$8=Nutrients!$B$77,Nutrients!$DZ$77,Nutrients!$DZ$78)))))*AF$8))/2000/2.2046","v":934.54179143321926},{"$f":"(SUMPRODUCT(AG$9:AG$229,Nutrients!$DZ$8:$DZ$228)+(IF($A$7=Nutrients!$B$8,Nutrients!$DZ$8,Nutrients!$DZ$9)*AG$7)+(((IF($A$8=Nutrients!$B$79,Nutrients!$DZ$79,(IF($A$8=Nutrients!$B$77,Nutrients!$DZ$77,Nutrients!$DZ$78)))))*AG$8))/2000/2.2046","v":945.77359385990167},{"$f":"(SUMPRODUCT(AH$9:AH$229,Nutrients!$DZ$8:$DZ$228)+(IF($A$7=Nutrients!$B$8,Nutrients!$DZ$8,Nutrients!$DZ$9)*AH$7)+(((IF($A$8=Nutrients!$B$79,Nutrients!$DZ$79,(IF($A$8=Nutrients!$B$77,Nutrients!$DZ$77,Nutrients!$DZ$78)))))*AH$8))/2000/2.2046","v":954.55848590575727},{"$f":"(SUMPRODUCT(AI$9:AI$229,Nutrients!$DZ$8:$DZ$228)+(IF($A$7=Nutrients!$B$8,Nutrients!$DZ$8,Nutrients!$DZ$9)*AI$7)+(((IF($A$8=Nutrients!$B$79,Nutrients!$DZ$79,(IF($A$8=Nutrients!$B$77,Nutrients!$DZ$77,Nutrients!$DZ$78)))))*AI$8))/2000/2.2046","v":958.86744842356609},null,{"$f":"(SUMPRODUCT(AK$9:AK$229,Nutrients!$DZ$8:$DZ$228)+(IF($A$7=Nutrients!$B$8,Nutrients!$DZ$8,Nutrients!$DZ$9)*AK$7)+(((IF($A$8=Nutrients!$B$79,Nutrients!$DZ$79,(IF($A$8=Nutrients!$B$77,Nutrients!$DZ$77,Nutrients!$DZ$78)))))*AK$8))/2000/2.2046","v":853.25426057025481},{"$f":"(SUMPRODUCT(AL$9:AL$229,Nutrients!$DZ$8:$DZ$228)+(IF($A$7=Nutrients!$B$8,Nutrients!$DZ$8,Nutrients!$DZ$9)*AL$7)+(((IF($A$8=Nutrients!$B$79,Nutrients!$DZ$79,(IF($A$8=Nutrients!$B$77,Nutrients!$DZ$77,Nutrients!$DZ$78)))))*AL$8))/2000/2.2046","v":866.30537950917301},{"$f":"(SUMPRODUCT(AM$9:AM$229,Nutrients!$DZ$8:$DZ$228)+(IF($A$7=Nutrients!$B$8,Nutrients!$DZ$8,Nutrients!$DZ$9)*AM$7)+(((IF($A$8=Nutrients!$B$79,Nutrients!$DZ$79,(IF($A$8=Nutrients!$B$77,Nutrients!$DZ$77,Nutrients!$DZ$78)))))*AM$8))/2000/2.2046","v":877.62817307817272},{"$f":"(SUMPRODUCT(AN$9:AN$229,Nutrients!$DZ$8:$DZ$228)+(IF($A$7=Nutrients!$B$8,Nutrients!$DZ$8,Nutrients!$DZ$9)*AN$7)+(((IF($A$8=Nutrients!$B$79,Nutrients!$DZ$79,(IF($A$8=Nutrients!$B$77,Nutrients!$DZ$77,Nutrients!$DZ$78)))))*AN$8))/2000/2.2046","v":888.17752290780686},{"$f":"(SUMPRODUCT(AO$9:AO$229,Nutrients!$DZ$8:$DZ$228)+(IF($A$7=Nutrients!$B$8,Nutrients!$DZ$8,Nutrients!$DZ$9)*AO$7)+(((IF($A$8=Nutrients!$B$79,Nutrients!$DZ$79,(IF($A$8=Nutrients!$B$77,Nutrients!$DZ$77,Nutrients!$DZ$78)))))*AO$8))/2000/2.2046","v":896.46595570481168},{"$f":"(SUMPRODUCT(AP$9:AP$229,Nutrients!$DZ$8:$DZ$228)+(IF($A$7=Nutrients!$B$8,Nutrients!$DZ$8,Nutrients!$DZ$9)*AP$7)+(((IF($A$8=Nutrients!$B$79,Nutrients!$DZ$79,(IF($A$8=Nutrients!$B$77,Nutrients!$DZ$77,Nutrients!$DZ$78)))))*AP$8))/2000/2.2046","v":900.73769622437351},null,{"$f":"(SUMPRODUCT(AR$9:AR$229,Nutrients!$DZ$8:$DZ$228)+(IF($A$7=Nutrients!$B$8,Nutrients!$DZ$8,Nutrients!$DZ$9)*AR$7)+(((IF($A$8=Nutrients!$B$79,Nutrients!$DZ$79,(IF($A$8=Nutrients!$B$77,Nutrients!$DZ$77,Nutrients!$DZ$78)))))*AR$8))/2000/2.2046","v":796.03376700940237},{"$f":"(SUMPRODUCT(AS$9:AS$229,Nutrients!$DZ$8:$DZ$228)+(IF($A$7=Nutrients!$B$8,Nutrients!$DZ$8,Nutrients!$DZ$9)*AS$7)+(((IF($A$8=Nutrients!$B$79,Nutrients!$DZ$79,(IF($A$8=Nutrients!$B$77,Nutrients!$DZ$77,Nutrients!$DZ$78)))))*AS$8))/2000/2.2046","v":809.46557264197918},{"$f":"(SUMPRODUCT(AT$9:AT$229,Nutrients!$DZ$8:$DZ$228)+(IF($A$7=Nutrients!$B$8,Nutrients!$DZ$8,Nutrients!$DZ$9)*AT$7)+(((IF($A$8=Nutrients!$B$79,Nutrients!$DZ$79,(IF($A$8=Nutrients!$B$77,Nutrients!$DZ$77,Nutrients!$DZ$78)))))*AT$8))/2000/2.2046","v":820.70781298746886},{"$f":"(SUMPRODUCT(AU$9:AU$229,Nutrients!$DZ$8:$DZ$228)+(IF($A$7=Nutrients!$B$8,Nutrients!$DZ$8,Nutrients!$DZ$9)*AU$7)+(((IF($A$8=Nutrients!$B$79,Nutrients!$DZ$79,(IF($A$8=Nutrients!$B$77,Nutrients!$DZ$77,Nutrients!$DZ$78)))))*AU$8))/2000/2.2046","v":830.12818535704764},{"$f":"(SUMPRODUCT(AV$9:AV$229,Nutrients!$DZ$8:$DZ$228)+(IF($A$7=Nutrients!$B$8,Nutrients!$DZ$8,Nutrients!$DZ$9)*AV$7)+(((IF($A$8=Nutrients!$B$79,Nutrients!$DZ$79,(IF($A$8=Nutrients!$B$77,Nutrients!$DZ$77,Nutrients!$DZ$78)))))*AV$8))/2000/2.2046","v":838.37261238206145},{"$f":"(SUMPRODUCT(AW$9:AW$229,Nutrients!$DZ$8:$DZ$228)+(IF($A$7=Nutrients!$B$8,Nutrients!$DZ$8,Nutrients!$DZ$9)*AW$7)+(((IF($A$8=Nutrients!$B$79,Nutrients!$DZ$79,(IF($A$8=Nutrients!$B$77,Nutrients!$DZ$77,Nutrients!$DZ$78)))))*AW$8))/2000/2.2046","v":842.60761357090826}]
["DE NRC, kcal/lb",{"$f":"(SUMPRODUCT(B$9:B$229,Nutrients!$D$8:$D$228)+(IF($A$7=Nutrients!$B$8,Nutrients!$D$8,Nutrients!$D$9)*B$7)+(((IF($A$8=Nutrients!$B$79,Nutrients!$D$79,(IF($A$8=Nutrients!$B$77,Nutrients!$D$77,Nutrients!$D$78)))))*B$8))/2000/2.2046","v":1553.447657374518},{"$f":"(SUMPRODUCT(C$9:C$229,Nutrients!$D$8:$D$228)+(IF($A$7=Nutrients!$B$8,Nutrients!$D$8,Nutrients!$D$9)*C$7)+(((IF($A$8=Nutrients!$B$79,Nutrients!$D$79,(IF($A$8=Nutrients!$B$77,Nutrients!$D$77,Nutrients!$D$78)))))*C$8))/2000/2.2046","v":1552.8317239882158},{"$f":"(SUMPRODUCT(D$9:D$229,Nutrients!$D$8:$D$228)+(IF($A$7=Nutrients!$B$8,Nutrients!$D$8,Nutrients!$D$9)*D$7)+(((IF($A$8=Nutrients!$B$79,Nutrients!$D$79,(IF($A$8=Nutrients!$B$77,Nutrients!$D$77,Nutrients!$D$78)))))*D$8))/2000/2.2046","v":1552.5109280788211},{"$f":"(SUMPRODUCT(E$9:E$229,Nutrients!$D$8:$D$228)+(IF($A$7=Nutrients!$B$8,Nutrients!$D$8,Nutrients!$D$9)*E$7)+(((IF($A$8=Nutrients!$B$79,Nutrients!$D$79,(IF($A$8=Nutrients!$B$77,Nutrients!$D$77,Nutrients!$D$78)))))*E$8))/2000/2.2046","v":1552.5671760275247},{"$f":"(SUMPRODUCT(F$9:F$229,Nutrients!$D$8:$D$228)+(IF($A$7=Nutrients!$B$8,Nutrients!$D$8,Nutrients!$D$9)*F$7)+(((IF($A$8=Nutrients!$B$79,Nutrients!$D$79,(IF($A$8=Nutrients!$B$77,Nutrients!$D$77,Nutrients!$D$78)))))*F$8))/2000/2.2046","v":1552.7159321016593},{"$f":"(SUMPRODUCT(G$9:G$229,Nutrients!$D$8:$D$228)+(IF($A$7=Nutrients!$B$8,Nutrients!$D$8,Nutrients!$D$9)*G$7)+(((IF($A$8=Nutrients!$B$79,Nutrients!$D$79,(IF($A$8=Nutrients!$B$77,Nutrients!$D$77,Nutrients!$D$78)))))*G$8))/2000/2.2046","v":1552.2569188768136},null,{"$f":"(SUMPRODUCT(I$9:I$229,Nutrients!$D$8:$D$228)+(IF($A$7=Nutrients!$B$8,Nutrients!$D$8,Nutrients!$D$9)*I$7)+(((IF($A$8=Nutrients!$B$79,Nutrients!$D$79,(IF($A$8=Nutrients!$B$77,Nutrients!$D$77,Nutrients!$D$78)))))*I$8))/2000/2.2046","v":1559.4683924343319},{"$f":"(SUMPRODUCT(J$9:J$229,Nutrients!$D$8:$D$228)+(IF($A$7=Nutrients!$B$8,Nutrients!$D$8,Nutrients!$D$9)*J$7)+(((IF($A$8=Nutrients!$B$79,Nutrients!$D$79,(IF($A$8=Nutrients!$B$77,Nutrients!$D$77,Nutrients!$D$78)))))*J$8))/2000/2.2046","v":1558.8277430020455},{"$f":"(SUMPRODUCT(K$9:K$229,Nutrients!$D$8:$D$228)+(IF($A$7=Nutrients!$B$8,Nutrients!$D$8,Nutrients!$D$9)*K$7)+(((IF($A$8=Nutrients!$B$79,Nutrients!$D$79,(IF($A$8=Nutrients!$B$77,Nutrients!$D$77,Nutrients!$D$78)))))*K$8))/2000/2.2046","v":1558.7721313404782},{"$f":"(SUMPRODUCT(L$9:L$229,Nutrients!$D$8:$D$228)+(IF($A$7=Nutrients!$B$8,Nutrients!$D$8,Nutrients!$D$9)*L$7)+(((IF($A$8=Nutrients!$B$79,Nutrients!$D$79,(IF($A$8=Nutrients!$B$77,Nutrients!$D$77,Nutrients!$D$78)))))*L$8))/2000/2.2046","v":1558.7524377520301},{"$f":"(SUMPRODUCT(M$9:M$229,Nutrients!$D$8:$D$228)+(IF($A$7=Nutrients!$B$8,Nutrients!$D$8,Nutrients!$D$9)*M$7)+(((IF($A$8=Nutrients!$B$79,Nutrients!$D$79,(IF($A$8=Nutrients!$B$77,Nutrients!$D$77,Nutrients!$D$78)))))*M$8))/2000/2.2046","v":1558.8493309025705},{"$f":"(SUMPRODUCT(N$9:N$229,Nutrients!$D$8:$D$228)+(IF($A$7=Nutrients!$B$8,Nutrients!$D$8,Nutrients!$D$9)*N$7)+(((IF($A$8=Nutrients!$B$79,Nutrients!$D$79,(IF($A$8=Nutrients!$B$77,Nutrients!$D$77,Nutrients!$D$78)))))*N$8))/2000/2.2046","v":1558.483605296321},null,{"$f":"(SUMPRODUCT(P$9:P$229,Nutrients!$D$8:$D$228)+(IF($A$7=Nutrients!$B$8,Nutrients!$D$8,Nutrients!$D$9)*P$7)+(((IF($A$8=Nutrients!$B$79,Nutrients!$D$79,(IF($A$8=Nutrients!$B$77,Nutrients!$D$77,Nutrients!$D$78)))))*P$8))/2000/2.2046","v":1565.5572781040751},{"$f":"(SUMPRODUCT(Q$9:Q$229,Nutrients!$D$8:$D$228)+(IF($A$7=Nutrients!$B$8,Nutrients!$D$8,Nutrients!$D$9)*Q$7)+(((IF($A$8=Nutrients!$B$79,Nutrients!$D$79,(IF($A$8=Nutrients!$B$77,Nutrients!$D$77,Nutrients!$D$78)))))*Q$8))/2000/2.2046","v":1565.0034058544047},{"$f":"(SUMPRODUCT(R$9:R$229,Nutrients!$D$8:$D$228)+(IF($A$7=Nutrients!$B$8,Nutrients!$D$8,Nutrients!$D$9)*R$7)+(((IF($A$8=Nutrients!$B$79,Nutrients!$D$79,(IF($A$8=Nutrients!$B$77,Nutrients!$D$77,Nutrients!$D$78)))))*R$8))/2000/2.2046","v":1564.9887677765321},{"$f":"(SUMPRODUCT(S$9:S$229,Nutrients!$D$8:$D$228)+(IF($A$7=Nutrients!$B$8,Nutrients!$D$8,Nutrients!$D$9)*S$7)+(((IF($A$8=Nutrients!$B$79,Nutrients!$D$79,(IF($A$8=Nutrients!$B$77,Nutrients!$D$77,Nutrients!$D$78)))))*S$8))/2000/2.2046","v":1564.983472966574},{"$f":"(SUMPRODUCT(T$9:T$229,Nutrients!$D$8:$D$228)+(IF($A$7=Nutrients!$B$8,Nutrients!$D$8,Nutrients!$D$9)*T$7)+(((IF($A$8=Nutrients!$B$79,Nutrients!$D$79,(IF($A$8=Nutrients!$B$77,Nutrients!$D$77,Nutrients!$D$78)))))*T$8))/2000/2.2046","v":1565.1128075535237},{"$f":"(SUMPRODUCT(U$9:U$229,Nutrients!$D$8:$D$228)+(IF($A$7=Nutrients!$B$8,Nutrients!$D$8,Nutrients!$D$9)*U$7)+(((IF($A$8=Nutrients!$B$79,Nutrients!$D$79,(IF($A$8=Nutrients!$B$77,Nutrients!$D$77,Nutrients!$D$78)))))*U$8))/2000/2.2046","v":1564.7458468801933},null,{"$f":"(SUMPRODUCT(W$9:W$229,Nutrients!$D$8:$D$228)+(IF($A$7=Nutrients!$B$8,Nutrients!$D$8,Nutrients!$D$9)*W$7)+(((IF($A$8=Nutrients!$B$79,Nutrients!$D$79,(IF($A$8=Nutrients!$B$77,Nutrients!$D$77,Nutrients!$D$78)))))*W$8))/2000/2.2046","v":1571.6779789133373},{"$f":"(SUMPRODUCT(X$9:X$229,Nutrients!$D$8:$D$228)+(IF($A$7=Nutrients!$B$8,Nutrients!$D$8,Nutrients!$D$9)*X$7)+(((IF($A$8=Nutrients!$B$79,Nutrients!$D$79,(IF($A$8=Nutrients!$B$77,Nutrients!$D$77,Nutrients!$D$78)))))*X$8))/2000/2.2046","v":1571.1780095863651},{"$f":"(SUMPRODUCT(Y$9:Y$229,Nutrients!$D$8:$D$228)+(IF($A$7=Nutrients!$B$8,Nutrients!$D$8,Nutrients!$D$9)*Y$7)+(((IF($A$8=Nutrients!$B$79,Nutrients!$D$79,(IF($A$8=Nutrients!$B$77,Nutrients!$D$77,Nutrients!$D$78)))))*Y$8))/2000/2.2046","v":1571.1951934545968},{"$f":"(SUMPRODUCT(Z$9:Z$229,Nutrients!$D$8:$D$228)+(IF($A$7=Nutrients!$B$8,Nutrients!$D$8,Nutrients!$D$9)*Z$7)+(((IF($A$8=Nutrients!$B$79,Nutrients!$D$79,(IF($A$8=Nutrients!$B$77,Nutrients!$D$77,Nutrients!$D$78)))))*Z$8))/2000/2.2046","v":1571.2843673330203},{"$f":"(SUMPRODUCT(AA$9:AA$229,Nutrients!$D$8:$D$228)+(IF($A$7=Nutrients!$B$8,Nutrients!$D$8,Nutrients!$D$9)*AA$7)+(((IF($A$8=Nutrients!$B$79,Nutrients!$D$79,(IF($A$8=Nutrients!$B$77,Nutrients!$D$77,Nutrients!$D$78)))))*AA$8))/2000/2.2046","v":1571.5546013023575},{"$f":"(SUMPRODUCT(AB$9:AB$229,Nutrients!$D$8:$D$228)+(IF($A$7=Nutrients!$B$8,Nutrients!$D$8,Nutrients!$D$9)*AB$7)+(((IF($A$8=Nutrients!$B$79,Nutrients!$D$79,(IF($A$8=Nutrients!$B$77,Nutrients!$D$77,Nutrients!$D$78)))))*AB$8))/2000/2.2046","v":1570.8728054013063},null,{"$f":"(SUMPRODUCT(AD$9:AD$229,Nutrients!$D$8:$D$228)+(IF($A$7=Nutrients!$B$8,Nutrients!$D$8,Nutrients!$D$9)*AD$7)+(((IF($A$8=Nutrients!$B$79,Nutrients!$D$79,(IF($A$8=Nutrients!$B$77,Nutrients!$D$77,Nutrients!$D$78)))))*AD$8))/2000/2.2046","v":1577.8384842666369},{"$f":"(SUMPRODUCT(AE$9:AE$229,Nutrients!$D$8:$D$228)+(IF($A$7=Nutrients!$B$8,Nutrients!$D$8,Nutrients!$D$9)*AE$7)+(((IF($A$8=Nutrients!$B$79,Nutrients!$D$79,(IF($A$8=Nutrients!$B$77,Nutrients!$D$77,Nutrients!$D$78)))))*AE$8))/2000/2.2046","v":1577.3486586846627},{"$f":"(SUMPRODUCT(AF$9:AF$229,Nutrients!$D$8:$D$228)+(IF($A$7=Nutrients!$B$8,Nutrients!$D$8,Nutrients!$D$9)*AF$7)+(((IF($A$8=Nutrients!$B$79,Nutrients!$D$79,(IF($A$8=Nutrients!$B$77,Nutrients!$D$77,Nutrients!$D$78)))))*AF$8))/2000/2.2046","v":1577.4736339560745},{"$f":"(SUMPRODUCT(AG$9:AG$229,Nutrients!$D$8:$D$228)+(IF($A$7=Nutrients!$B$8,Nutrients!$D$8,Nutrients!$D$9)*AG$7)+(((IF($A$8=Nutrients!$B$79,Nutrients!$D$79,(IF($A$8=Nutrients!$B$77,Nutrients!$D$77,Nutrients!$D$78)))))*AG$8))/2000/2.2046","v":1577.6992341867285},{"$f":"(SUMPRODUCT(AH$9:AH$229,Nutrients!$D$8:$D$228)+(IF($A$7=Nutrients!$B$8,Nutrients!$D$8,Nutrients!$D$9)*AH$7)+(((IF($A$8=Nutrients!$B$79,Nutrients!$D$79,(IF($A$8=Nutrients!$B$77,Nutrients!$D$77,Nutrients!$D$78)))))*AH$8))/2000/2.2046","v":1576.9309985729824},{"$f":"(SUMPRODUCT(AI$9:AI$229,Nutrients!$D$8:$D$228)+(IF($A$7=Nutrients!$B$8,Nutrients!$D$8,Nutrients!$D$9)*AI$7)+(((IF($A$8=Nutrients!$B$79,Nutrients!$D$79,(IF($A$8=Nutrients!$B$77,Nutrients!$D$77,Nutrients!$D$78)))))*AI$8))/2000/2.2046","v":1575.8847107702024},null,{"$f":"(SUMPRODUCT(AK$9:AK$229,Nutrients!$D$8:$D$228)+(IF($A$7=Nutrients!$B$8,Nutrients!$D$8,Nutrients!$D$9)*AK$7)+(((IF($A$8=Nutrients!$B$79,Nutrients!$D$79,(IF($A$8=Nutrients!$B$77,Nutrients!$D$77,Nutrients!$D$78)))))*AK$8))/2000/2.2046","v":1584.0206773761545},{"$f":"(SUMPRODUCT(AL$9:AL$229,Nutrients!$D$8:$D$228)+(IF($A$7=Nutrients!$B$8,Nutrients!$D$8,Nutrients!$D$9)*AL$7)+(((IF($A$8=Nutrients!$B$79,Nutrients!$D$79,(IF($A$8=Nutrients!$B$77,Nutrients!$D$77,Nutrients!$D$78)))))*AL$8))/2000/2.2046","v":1583.4928683843225},{"$f":"(SUMPRODUCT(AM$9:AM$229,Nutrients!$D$8:$D$228)+(IF($A$7=Nutrients!$B$8,Nutrients!$D$8,Nutrients!$D$9)*AM$7)+(((IF($A$8=Nutrients!$B$79,Nutrients!$D$79,(IF($A$8=Nutrients!$B$77,Nutrients!$D$77,Nutrients!$D$78)))))*AM$8))/2000/2.2046","v":1583.8083713461531},{"$f":"(SUMPRODUCT(AN$9:AN$229,Nutrients!$D$8:$D$228)+(IF($A$7=Nutrients!$B$8,Nutrients!$D$8,Nutrients!$D$9)*AN$7)+(((IF($A$8=Nutrients!$B$79,Nutrients!$D$79,(IF($A$8=Nutrients!$B$77,Nutrients!$D$77,Nutrients!$D$78)))))*AN$8))/2000/2.2046","v":1583.2672802362613},{"$f":"(SUMPRODUCT(AO$9:AO$229,Nutrients!$D$8:$D$228)+(IF($A$7=Nutrients!$B$8,Nutrients!$D$8,Nutrients!$D$9)*AO$7)+(((IF($A$8=Nutrients!$B$79,Nutrients!$D$79,(IF($A$8=Nutrients!$B$77,Nutrients!$D$77,Nutrients!$D$78)))))*AO$8))/2000/2.2046","v":1581.9262586517586},{"$f":"(SUMPRODUCT(AP$9:AP$229,Nutrients!$D$8:$D$228)+(IF($A$7=Nutrients!$B$8,Nutrients!$D$8,Nutrients!$D$9)*AP$7)+(((IF($A$8=Nutrients!$B$79,Nutrients!$D$79,(IF($A$8=Nutrients!$B$77,Nutrients!$D$77,Nutrients!$D$78)))))*AP$8))/2000/2.2046","v":1580.8892962185089},null,{"$f":"(SUMPRODUCT(AR$9:AR$229,Nutrients!$D$8:$D$228)+(IF($A$7=Nutrients!$B$8,Nutrients!$D$8,Nutrients!$D$9)*AR$7)+(((IF($A$8=Nutrients!$B$79,Nutrients!$D$79,(IF($A$8=Nutrients!$B$77,Nutrients!$D$77,Nutrients!$D$78)))))*AR$8))/2000/2.2046","v":1590.2699718658946},{"$f":"(SUMPRODUCT(AS$9:AS$229,Nutrients!$D$8:$D$228)+(IF($A$7=Nutrients!$B$8,Nutrients!$D$8,Nutrients!$D$9)*AS$7)+(((IF($A$8=Nutrients!$B$79,Nutrients!$D$79,(IF($A$8=Nutrients!$B$77,Nutrients!$D$77,Nutrients!$D$78)))))*AS$8))/2000/2.2046","v":1589.732964443428},{"$f":"(SUMPRODUCT(AT$9:AT$229,Nutrients!$D$8:$D$228)+(IF($A$7=Nutrients!$B$8,Nutrients!$D$8,Nutrients!$D$9)*AT$7)+(((IF($A$8=Nutrients!$B$79,Nutrients!$D$79,(IF($A$8=Nutrients!$B$77,Nutrients!$D$77,Nutrients!$D$78)))))*AT$8))/2000/2.2046","v":1590.1951603495881},{"$f":"(SUMPRODUCT(AU$9:AU$229,Nutrients!$D$8:$D$228)+(IF($A$7=Nutrients!$B$8,Nutrients!$D$8,Nutrients!$D$9)*AU$7)+(((IF($A$8=Nutrients!$B$79,Nutrients!$D$79,(IF($A$8=Nutrients!$B$77,Nutrients!$D$77,Nutrients!$D$78)))))*AU$8))/2000/2.2046","v":1588.2398125896307},{"$f":"(SUMPRODUCT(AV$9:AV$229,Nutrients!$D$8:$D$228)+(IF($A$7=Nutrients!$B$8,Nutrients!$D$8,Nutrients!$D$9)*AV$7)+(((IF($A$8=Nutrients!$B$79,Nutrients!$D$79,(IF($A$8=Nutrients!$B$77,Nutrients!$D$77,Nutrients!$D$78)))))*AV$8))/2000/2.2046","v":1586.9216675444563},{"$f":"(SUMPRODUCT(AW$9:AW$229,Nutrients!$D$8:$D$228)+(IF($A$7=Nutrients!$B$8,Nutrients!$D$8,Nutrients!$D$9)*AW$7)+(((IF($A$8=Nutrients!$B$79,Nutrients!$D$79,(IF($A$8=Nutrients!$B$77,Nutrients!$D$77,Nutrients!$D$78)))))*AW$8))/2000/2.2046","v":1585.8939129048965}]
["NE NRC, kcal/lb",{"$f":"(SUMPRODUCT(B$9:B$229,Nutrients!$F$8:$F$228)+(IF($A$7=Nutrients!$B$8,Nutrients!$F$8,Nutrients!$F$9)*B$7)+(((IF($A$8=Nutrients!$B$79,Nutrients!$F$79,(IF($A$8=Nutrients!$B$77,Nutrients!$F$77,Nutrients!$F$78)))))*B$8))/2000/2.2046","v":1153.6247232105659},{"$f":"(SUMPRODUCT(C$9:C$229,Nutrients!$F$8:$F$228)+(IF($A$7=Nutrients!$B$8,Nutrients!$F$8,Nutrients!$F$9)*C$7)+(((IF($A$8=Nutrients!$B$79,Nutrients!$F$79,(IF($A$8=Nutrients!$B$77,Nutrients!$F$77,Nutrients!$F$78)))))*C$8))/2000/2.2046","v":1160.6089760708783},{"$f":"(SUMPRODUCT(D$9:D$229,Nutrients!$F$8:$F$228)+(IF($A$7=Nutrients!$B$8,Nutrients!$F$8,Nutrients!$F$9)*D$7)+(((IF($A$8=Nutrients!$B$79,Nutrients!$F$79,(IF($A$8=Nutrients!$B$77,Nutrients!$F$77,Nutrients!$F$78)))))*D$8))/2000/2.2046","v":1166.664301360594},{"$f":"(SUMPRODUCT(E$9:E$229,Nutrients!$F$8:$F$228)+(IF($A$7=Nutrients!$B$8,Nutrients!$F$8,Nutrients!$F$9)*E$7)+(((IF($A$8=Nutrients!$B$79,Nutrients!$F$79,(IF($A$8=Nutrients!$B$77,Nutrients!$F$77,Nutrients!$F$78)))))*E$8))/2000/2.2046","v":1172.8465047486318},{"$f":"(SUMPRODUCT(F$9:F$229,Nutrients!$F$8:$F$228)+(IF($A$7=Nutrients!$B$8,Nutrients!$F$8,Nutrients!$F$9)*F$7)+(((IF($A$8=Nutrients!$B$79,Nutrients!$F$79,(IF($A$8=Nutrients!$B$77,Nutrients!$F$77,Nutrients!$F$78)))))*F$8))/2000/2.2046","v":1178.0967521230723},{"$f":"(SUMPRODUCT(G$9:G$229,Nutrients!$F$8:$F$228)+(IF($A$7=Nutrients!$B$8,Nutrients!$F$8,Nutrients!$F$9)*G$7)+(((IF($A$8=Nutrients!$B$79,Nutrients!$F$79,(IF($A$8=Nutrients!$B$77,Nutrients!$F$77,Nutrients!$F$78)))))*G$8))/2000/2.2046","v":1180.5684789085878},null,{"$f":"(SUMPRODUCT(I$9:I$229,Nutrients!$F$8:$F$228)+(IF($A$7=Nutrients!$B$8,Nutrients!$F$8,Nutrients!$F$9)*I$7)+(((IF($A$8=Nutrients!$B$79,Nutrients!$F$79,(IF($A$8=Nutrients!$B$77,Nutrients!$F$77,Nutrients!$F$78)))))*I$8))/2000/2.2046","v":1143.9316017733656},{"$f":"(SUMPRODUCT(J$9:J$229,Nutrients!$F$8:$F$228)+(IF($A$7=Nutrients!$B$8,Nutrients!$F$8,Nutrients!$F$9)*J$7)+(((IF($A$8=Nutrients!$B$79,Nutrients!$F$79,(IF($A$8=Nutrients!$B$77,Nutrients!$F$77,Nutrients!$F$78)))))*J$8))/2000/2.2046","v":1150.7857530722176},{"$f":"(SUMPRODUCT(K$9:K$229,Nutrients!$F$8:$F$228)+(IF($A$7=Nutrients!$B$8,Nutrients!$F$8,Nutrients!$F$9)*K$7)+(((IF($A$8=Nutrients!$B$79,Nutrients!$F$79,(IF($A$8=Nutrients!$B$77,Nutrients!$F$77,Nutrients!$F$78)))))*K$8))/2000/2.2046","v":1156.9476529495107},{"$f":"(SUMPRODUCT(L$9:L$229,Nutrients!$F$8:$F$228)+(IF($A$7=Nutrients!$B$8,Nutrients!$F$8,Nutrients!$F$9)*L$7)+(((IF($A$8=Nutrients!$B$79,Nutrients!$F$79,(IF($A$8=Nutrients!$B$77,Nutrients!$F$77,Nutrients!$F$78)))))*L$8))/2000/2.2046","v":1163.0164310425773},{"$f":"(SUMPRODUCT(M$9:M$229,Nutrients!$F$8:$F$228)+(IF($A$7=Nutrients!$B$8,Nutrients!$F$8,Nutrients!$F$9)*M$7)+(((IF($A$8=Nutrients!$B$79,Nutrients!$F$79,(IF($A$8=Nutrients!$B$77,Nutrients!$F$77,Nutrients!$F$78)))))*M$8))/2000/2.2046","v":1168.2354413559842},{"$f":"(SUMPRODUCT(N$9:N$229,Nutrients!$F$8:$F$228)+(IF($A$7=Nutrients!$B$8,Nutrients!$F$8,Nutrients!$F$9)*N$7)+(((IF($A$8=Nutrients!$B$79,Nutrients!$F$79,(IF($A$8=Nutrients!$B$77,Nutrients!$F$77,Nutrients!$F$78)))))*N$8))/2000/2.2046","v":1170.7408499730313},null,{"$f":"(SUMPRODUCT(P$9:P$229,Nutrients!$F$8:$F$228)+(IF($A$7=Nutrients!$B$8,Nutrients!$F$8,Nutrients!$F$9)*P$7)+(((IF($A$8=Nutrients!$B$79,Nutrients!$F$79,(IF($A$8=Nutrients!$B$77,Nutrients!$F$77,Nutrients!$F$78)))))*P$8))/2000/2.2046","v":1134.1486597361163},{"$f":"(SUMPRODUCT(Q$9:Q$229,Nutrients!$F$8:$F$228)+(IF($A$7=Nutrients!$B$8,Nutrients!$F$8,Nutrients!$F$9)*Q$7)+(((IF($A$8=Nutrients!$B$79,Nutrients!$F$79,(IF($A$8=Nutrients!$B$77,Nutrients!$F$77,Nutrients!$F$78)))))*Q$8))/2000/2.2046","v":1140.9960635775719},{"$f":"(SUMPRODUCT(R$9:R$229,Nutrients!$F$8:$F$228)+(IF($A$7=Nutrients!$B$8,Nutrients!$F$8,Nutrients!$F$9)*R$7)+(((IF($A$8=Nutrients!$B$79,Nutrients!$F$79,(IF($A$8=Nutrients!$B$77,Nutrients!$F$77,Nutrients!$F$78)))))*R$8))/2000/2.2046","v":1147.1205622318855},{"$f":"(SUMPRODUCT(S$9:S$229,Nutrients!$F$8:$F$228)+(IF($A$7=Nutrients!$B$8,Nutrients!$F$8,Nutrients!$F$9)*S$7)+(((IF($A$8=Nutrients!$B$79,Nutrients!$F$79,(IF($A$8=Nutrients!$B$77,Nutrients!$F$77,Nutrients!$F$78)))))*S$8))/2000/2.2046","v":1153.2292841427254},{"$f":"(SUMPRODUCT(T$9:T$229,Nutrients!$F$8:$F$228)+(IF($A$7=Nutrients!$B$8,Nutrients!$F$8,Nutrients!$F$9)*T$7)+(((IF($A$8=Nutrients!$B$79,Nutrients!$F$79,(IF($A$8=Nutrients!$B$77,Nutrients!$F$77,Nutrients!$F$78)))))*T$8))/2000/2.2046","v":1158.4157433692949},{"$f":"(SUMPRODUCT(U$9:U$229,Nutrients!$F$8:$F$228)+(IF($A$7=Nutrients!$B$8,Nutrients!$F$8,Nutrients!$F$9)*U$7)+(((IF($A$8=Nutrients!$B$79,Nutrients!$F$79,(IF($A$8=Nutrients!$B$77,Nutrients!$F$77,Nutrients!$F$78)))))*U$8))/2000/2.2046","v":1160.8987430502868},null,{"$f":"(SUMPRODUCT(W$9:W$229,Nutrients!$F$8:$F$228)+(IF($A$7=Nutrients!$B$8,Nutrients!$F$8,Nutrients!$F$9)*W$7)+(((IF($A$8=Nutrients!$B$79,Nutrients!$F$79,(IF($A$8=Nutrients!$B$77,Nutrients!$F$77,Nutrients!$F$78)))))*W$8))/2000/2.2046","v":1124.3864708164497},{"$f":"(SUMPRODUCT(X$9:X$229,Nutrients!$F$8:$F$228)+(IF($A$7=Nutrients!$B$8,Nutrients!$F$8,Nutrients!$F$9)*X$7)+(((IF($A$8=Nutrients!$B$79,Nutrients!$F$79,(IF($A$8=Nutrients!$B$77,Nutrients!$F$77,Nutrients!$F$78)))))*X$8))/2000/2.2046","v":1131.2070029683641},{"$f":"(SUMPRODUCT(Y$9:Y$229,Nutrients!$F$8:$F$228)+(IF($A$7=Nutrients!$B$8,Nutrients!$F$8,Nutrients!$F$9)*Y$7)+(((IF($A$8=Nutrients!$B$79,Nutrients!$F$79,(IF($A$8=Nutrients!$B$77,Nutrients!$F$77,Nutrients!$F$78)))))*Y$8))/2000/2.2046","v":1137.3816731312543},{"$f":"(SUMPRODUCT(Z$9:Z$229,Nutrients!$F$8:$F$228)+(IF($A$7=Nutrients!$B$8,Nutrients!$F$8,Nutrients!$F$9)*Z$7)+(((IF($A$8=Nutrients!$B$79,Nutrients!$F$79,(IF($A$8=Nutrients!$B$77,Nutrients!$F$77,Nutrients!$F$78)))))*Z$8))/2000/2.2046","v":1143.4628984803453},{"$f":"(SUMPRODUCT(AA$9:AA$229,Nutrients!$F$8:$F$228)+(IF($A$7=Nutrients!$B$8,Nutrients!$F$8,Nutrients!$F$9)*AA$7)+(((IF($A$8=Nutrients!$B$79,Nutrients!$F$79,(IF($A$8=Nutrients!$B$77,Nutrients!$F$77,Nutrients!$F$78)))))*AA$8))/2000/2.2046","v":1148.7057050542594},{"$f":"(SUMPRODUCT(AB$9:AB$229,Nutrients!$F$8:$F$228)+(IF($A$7=Nutrients!$B$8,Nutrients!$F$8,Nutrients!$F$9)*AB$7)+(((IF($A$8=Nutrients!$B$79,Nutrients!$F$79,(IF($A$8=Nutrients!$B$77,Nutrients!$F$77,Nutrients!$F$78)))))*AB$8))/2000/2.2046","v":1150.9371831663452},null,{"$f":"(SUMPRODUCT(AD$9:AD$229,Nutrients!$F$8:$F$228)+(IF($A$7=Nutrients!$B$8,Nutrients!$F$8,Nutrients!$F$9)*AD$7)+(((IF($A$8=Nutrients!$B$79,Nutrients!$F$79,(IF($A$8=Nutrients!$B$77,Nutrients!$F$77,Nutrients!$F$78)))))*AD$8))/2000/2.2046","v":1114.6576256481987},{"$f":"(SUMPRODUCT(AE$9:AE$229,Nutrients!$F$8:$F$228)+(IF($A$7=Nutrients!$B$8,Nutrients!$F$8,Nutrients!$F$9)*AE$7)+(((IF($A$8=Nutrients!$B$79,Nutrients!$F$79,(IF($A$8=Nutrients!$B$77,Nutrients!$F$77,Nutrients!$F$78)))))*AE$8))/2000/2.2046","v":1121.5088111553043},{"$f":"(SUMPRODUCT(AF$9:AF$229,Nutrients!$F$8:$F$228)+(IF($A$7=Nutrients!$B$8,Nutrients!$F$8,Nutrients!$F$9)*AF$7)+(((IF($A$8=Nutrients!$B$79,Nutrients!$F$79,(IF($A$8=Nutrients!$B$77,Nutrients!$F$77,Nutrients!$F$78)))))*AF$8))/2000/2.2046","v":1127.6670423236528},{"$f":"(SUMPRODUCT(AG$9:AG$229,Nutrients!$F$8:$F$228)+(IF($A$7=Nutrients!$B$8,Nutrients!$F$8,Nutrients!$F$9)*AG$7)+(((IF($A$8=Nutrients!$B$79,Nutrients!$F$79,(IF($A$8=Nutrients!$B$77,Nutrients!$F$77,Nutrients!$F$78)))))*AG$8))/2000/2.2046","v":1133.7701216213393},{"$f":"(SUMPRODUCT(AH$9:AH$229,Nutrients!$F$8:$F$228)+(IF($A$7=Nutrients!$B$8,Nutrients!$F$8,Nutrients!$F$9)*AH$7)+(((IF($A$8=Nutrients!$B$79,Nutrients!$F$79,(IF($A$8=Nutrients!$B$77,Nutrients!$F$77,Nutrients!$F$78)))))*AH$8))/2000/2.2046","v":1138.198919431765},{"$f":"(SUMPRODUCT(AI$9:AI$229,Nutrients!$F$8:$F$228)+(IF($A$7=Nutrients!$B$8,Nutrients!$F$8,Nutrients!$F$9)*AI$7)+(((IF($A$8=Nutrients!$B$79,Nutrients!$F$79,(IF($A$8=Nutrients!$B$77,Nutrients!$F$77,Nutrients!$F$78)))))*AI$8))/2000/2.2046","v":1140.1338303784414},null,{"$f":"(SUMPRODUCT(AK$9:AK$229,Nutrients!$F$8:$F$228)+(IF($A$7=Nutrients!$B$8,Nutrients!$F$8,Nutrients!$F$9)*AK$7)+(((IF($A$8=Nutrients!$B$79,Nutrients!$F$79,(IF($A$8=Nutrients!$B$77,Nutrients!$F$77,Nutrients!$F$78)))))*AK$8))/2000/2.2046","v":1104.9181940477295},{"$f":"(SUMPRODUCT(AL$9:AL$229,Nutrients!$F$8:$F$228)+(IF($A$7=Nutrients!$B$8,Nutrients!$F$8,Nutrients!$F$9)*AL$7)+(((IF($A$8=Nutrients!$B$79,Nutrients!$F$79,(IF($A$8=Nutrients!$B$77,Nutrients!$F$77,Nutrients!$F$78)))))*AL$8))/2000/2.2046","v":1111.766428181455},{"$f":"(SUMPRODUCT(AM$9:AM$229,Nutrients!$F$8:$F$228)+(IF($A$7=Nutrients!$B$8,Nutrients!$F$8,Nutrients!$F$9)*AM$7)+(((IF($A$8=Nutrients!$B$79,Nutrients!$F$79,(IF($A$8=Nutrients!$B$77,Nutrients!$F$77,Nutrients!$F$78)))))*AM$8))/2000/2.2046","v":1117.9783232104851},{"$f":"(SUMPRODUCT(AN$9:AN$229,Nutrients!$F$8:$F$228)+(IF($A$7=Nutrients!$B$8,Nutrients!$F$8,Nutrients!$F$9)*AN$7)+(((IF($A$8=Nutrients!$B$79,Nutrients!$F$79,(IF($A$8=Nutrients!$B$77,Nutrients!$F$77,Nutrients!$F$78)))))*AN$8))/2000/2.2046","v":1123.4455142959187},{"$f":"(SUMPRODUCT(AO$9:AO$229,Nutrients!$F$8:$F$228)+(IF($A$7=Nutrients!$B$8,Nutrients!$F$8,Nutrients!$F$9)*AO$7)+(((IF($A$8=Nutrients!$B$79,Nutrients!$F$79,(IF($A$8=Nutrients!$B$77,Nutrients!$F$77,Nutrients!$F$78)))))*AO$8))/2000/2.2046","v":1127.4076439970456},{"$f":"(SUMPRODUCT(AP$9:AP$229,Nutrients!$F$8:$F$228)+(IF($A$7=Nutrients!$B$8,Nutrients!$F$8,Nutrients!$F$9)*AP$7)+(((IF($A$8=Nutrients!$B$79,Nutrients!$F$79,(IF($A$8=Nutrients!$B$77,Nutrients!$F$77,Nutrients!$F$78)))))*AP$8))/2000/2.2046","v":1129.32592527267},null,{"$f":"(SUMPRODUCT(AR$9:AR$229,Nutrients!$F$8:$F$228)+(IF($A$7=Nutrients!$B$8,Nutrients!$F$8,Nutrients!$F$9)*AR$7)+(((IF($A$8=Nutrients!$B$79,Nutrients!$F$79,(IF($A$8=Nutrients!$B$77,Nutrients!$F$77,Nutrients!$F$78)))))*AR$8))/2000/2.2046","v":1095.0390880700795},{"$f":"(SUMPRODUCT(AS$9:AS$229,Nutrients!$F$8:$F$228)+(IF($A$7=Nutrients!$B$8,Nutrients!$F$8,Nutrients!$F$9)*AS$7)+(((IF($A$8=Nutrients!$B$79,Nutrients!$F$79,(IF($A$8=Nutrients!$B$77,Nutrients!$F$77,Nutrients!$F$78)))))*AS$8))/2000/2.2046","v":1102.0855230009099},{"$f":"(SUMPRODUCT(AT$9:AT$229,Nutrients!$F$8:$F$228)+(IF($A$7=Nutrients!$B$8,Nutrients!$F$8,Nutrients!$F$9)*AT$7)+(((IF($A$8=Nutrients!$B$79,Nutrients!$F$79,(IF($A$8=Nutrients!$B$77,Nutrients!$F$77,Nutrients!$F$78)))))*AT$8))/2000/2.2046","v":1108.3026287308896},{"$f":"(SUMPRODUCT(AU$9:AU$229,Nutrients!$F$8:$F$228)+(IF($A$7=Nutrients!$B$8,Nutrients!$F$8,Nutrients!$F$9)*AU$7)+(((IF($A$8=Nutrients!$B$79,Nutrients!$F$79,(IF($A$8=Nutrients!$B$77,Nutrients!$F$77,Nutrients!$F$78)))))*AU$8))/2000/2.2046","v":1112.6693541271541},{"$f":"(SUMPRODUCT(AV$9:AV$229,Nutrients!$F$8:$F$228)+(IF($A$7=Nutrients!$B$8,Nutrients!$F$8,Nutrients!$F$9)*AV$7)+(((IF($A$8=Nutrients!$B$79,Nutrients!$F$79,(IF($A$8=Nutrients!$B$77,Nutrients!$F$77,Nutrients!$F$78)))))*AV$8))/2000/2.2046","v":1116.6159860012272},{"$f":"(SUMPRODUCT(AW$9:AW$229,Nutrients!$F$8:$F$228)+(IF($A$7=Nutrients!$B$8,Nutrients!$F$8,Nutrients!$F$9)*AW$7)+(((IF($A$8=Nutrients!$B$79,Nutrients!$F$79,(IF($A$8=Nutrients!$B$77,Nutrients!$F$77,Nutrients!$F$78)))))*AW$8))/2000/2.2046","v":1118.5178544233213}]
["NE NRC, kcal/kg",{"$f":"B250*2.20462","v":2543.3041372844777},2558.7017608253796,2572.0514520655925,2585.6808612989284,2597.2556616655675,2602.7048799714507,null,{"$f":"I250*2.20462","v":2521.9344879015971},2537.0452869380724,2550.6299346455503,2564.0092842050867,2575.5152187222297,2581.0386926675442,null,{"$f":"P250*2.20462","v":2500.3668182274364},2515.4627416843864,2528.9649339076591,2542.432344406735,2553.8665161468148,2559.3405869035232,null,{"$f":"W250*2.20462","v":2478.8449012913611},2493.8815828841148,2507.4943842186258,2520.9011752477386,2532.4595714767211,2537.3791327521876,null,{"$f":"AD250*2.20462","v":2457.3964946565316},2472.500755249207,2486.0773148475714,2499.5322855288368,2509.2961017576577,2513.5618451289192,null,{"$f":"AK250*2.20462","v":2435.924748961505},2451.0225028973991,2464.7173709162994,2476.7704497270679,2485.5054401087664,2489.7345213746335,null,{"$f":"AR250*2.20462","v":2414.1450743410583},2429.679785718266,2443.3861413526938,2453.0131114958062,2461.7139350580251,2465.9068322187422]
["SID Lys:NE, g/Mcal",{"$f":"IF(B$5=\"\",\"\",B236/(B250*2.2046)*10000)","v":4.6637077167474628},4.098690324665454,3.6038708201123204,3.1948100235360672,2.913603801156885,2.7602055376881007,null,{"$f":"IF(I$5=\"\",\"\",I236/(I250*2.2046)*10000)","v":4.6645554876240558},4.1009881829047439,3.6063268912696329,3.1972543810267244,2.9135279779004173,2.76031964247235,null,{"$f":"IF(P$5=\"\",\"\",P236/(P250*2.2046)*10000)","v":4.6732997672504224},4.1083817074063509,3.6133031465778971,3.1988710494398598,2.9158442032362433,2.7626069022680046,null,{"$f":"IF(W$5=\"\",\"\",W236/(W250*2.2046)*10000)","v":4.682105878422183},4.115916460050042,3.6146821641416653,3.2018403535003106,2.9182823653990333,2.7646184987998423,null,{"$f":"IF(AD$5=\"\",\"\",AD236/(AD250*2.2046)*10000)","v":4.6904903987620354},4.1178284567195229,3.6173060997587987,3.2045609901552576,2.9207404546797751,2.7669773747277442,null,4.7005162530575086,4.1215145399692075,3.6205239592674339,3.2074983653474169,2.9232678347265448,2.7693736354952811,null,{"$f":"IF(AR$5=\"\",\"\",AR236/(AR250*2.2046)*10000)","v":4.7222114119356409},4.1250695996573103,3.6248220388660553,3.2109798433715677,2.92587252353339,2.7718270614681253]
["CP, %",{"$f":"(SUMPRODUCT(B$9:B$229,Nutrients!$I$8:$I$228)+(IF($A$7=Nutrients!$B$8,Nutrients!$I$8,Nutrients!$I$9)*B$7)+(((IF($A$8=Nutrients!$B$79,Nutrients!$I$79,(IF($A$8=Nutrients!$B$77,Nutrients!$I$77,Nutrients!$I$78)))))*B$8))/2000","v":19.197144454100709},{"$f":"(SUMPRODUCT(C$9:C$229,Nutrients!$I$8:$I$228)+(IF($A$7=Nutrients!$B$8,Nutrients!$I$8,Nutrients!$I$9)*C$7)+(((IF($A$8=Nutrients!$B$79,Nutrients!$I$79,(IF($A$8=Nutrients!$B$77,Nutrients!$I$77,Nutrients!$I$78)))))*C$8))/2000","v":17.518322949293985},{"$f":"(SUMPRODUCT(D$9:D$229,Nutrients!$I$8:$I$228)+(IF($A$7=Nutrients!$B$8,Nutrients!$I$8,Nutrients!$I$9)*D$7)+(((IF($A$8=Nutrients!$B$79,Nutrients!$I$79,(IF($A$8=Nutrients!$B$77,Nutrients!$I$77,Nutrients!$I$78)))))*D$8))/2000","v":16.093820180294312},{"$f":"(SUMPRODUCT(E$9:E$229,Nutrients!$I$8:$I$228)+(IF($A$7=Nutrients!$B$8,Nutrients!$I$8,Nutrients!$I$9)*E$7)+(((IF($A$8=Nutrients!$B$79,Nutrients!$I$79,(IF($A$8=Nutrients!$B$77,Nutrients!$I$77,Nutrients!$I$78)))))*E$8))/2000","v":14.741302120356609},{"$f":"(SUMPRODUCT(F$9:F$229,Nutrients!$I$8:$I$228)+(IF($A$7=Nutrients!$B$8,Nutrients!$I$8,Nutrients!$I$9)*F$7)+(((IF($A$8=Nutrients!$B$79,Nutrients!$I$79,(IF($A$8=Nutrients!$B$77,Nutrients!$I$77,Nutrients!$I$78)))))*F$8))/2000","v":13.625458454243304},{"$f":"(SUMPRODUCT(G$9:G$229,Nutrients!$I$8:$I$228)+(IF($A$7=Nutrients!$B$8,Nutrients!$I$8,Nutrients!$I$9)*G$7)+(((IF($A$8=Nutrients!$B$79,Nutrients!$I$79,(IF($A$8=Nutrients!$B$77,Nutrients!$I$77,Nutrients!$I$78)))))*G$8))/2000","v":13.010227616088669},null,{"$f":"(SUMPRODUCT(I$9:I$229,Nutrients!$I$8:$I$228)+(IF($A$7=Nutrients!$B$8,Nutrients!$I$8,Nutrients!$I$9)*I$7)+(((IF($A$8=Nutrients!$B$79,Nutrients!$I$79,(IF($A$8=Nutrients!$B$77,Nutrients!$I$77,Nutrients!$I$78)))))*I$8))/2000","v":19.46358051277635},{"$f":"(SUMPRODUCT(J$9:J$229,Nutrients!$I$8:$I$228)+(IF($A$7=Nutrients!$B$8,Nutrients!$I$8,Nutrients!$I$9)*J$7)+(((IF($A$8=Nutrients!$B$79,Nutrients!$I$79,(IF($A$8=Nutrients!$B$77,Nutrients!$I$77,Nutrients!$I$78)))))*J$8))/2000","v":17.809235165295341},{"$f":"(SUMPRODUCT(K$9:K$229,Nutrients!$I$8:$I$228)+(IF($A$7=Nutrients!$B$8,Nutrients!$I$8,Nutrients!$I$9)*K$7)+(((IF($A$8=Nutrients!$B$79,Nutrients!$I$79,(IF($A$8=Nutrients!$B$77,Nutrients!$I$77,Nutrients!$I$78)))))*K$8))/2000","v":16.409940466971797},{"$f":"(SUMPRODUCT(L$9:L$229,Nutrients!$I$8:$I$228)+(IF($A$7=Nutrients!$B$8,Nutrients!$I$8,Nutrients!$I$9)*L$7)+(((IF($A$8=Nutrients!$B$79,Nutrients!$I$79,(IF($A$8=Nutrients!$B$77,Nutrients!$I$77,Nutrients!$I$78)))))*L$8))/2000","v":15.067793956098017},{"$f":"(SUMPRODUCT(M$9:M$229,Nutrients!$I$8:$I$228)+(IF($A$7=Nutrients!$B$8,Nutrients!$I$8,Nutrients!$I$9)*M$7)+(((IF($A$8=Nutrients!$B$79,Nutrients!$I$79,(IF($A$8=Nutrients!$B$77,Nutrients!$I$77,Nutrients!$I$78)))))*M$8))/2000","v":13.948554447253111},{"$f":"(SUMPRODUCT(N$9:N$229,Nutrients!$I$8:$I$228)+(IF($A$7=Nutrients!$B$8,Nutrients!$I$8,Nutrients!$I$9)*N$7)+(((IF($A$8=Nutrients!$B$79,Nutrients!$I$79,(IF($A$8=Nutrients!$B$77,Nutrients!$I$77,Nutrients!$I$78)))))*N$8))/2000","v":13.344341918497925},null,{"$f":"(SUMPRODUCT(P$9:P$229,Nutrients!$I$8:$I$228)+(IF($A$7=Nutrients!$B$8,Nutrients!$I$8,Nutrients!$I$9)*P$7)+(((IF($A$8=Nutrients!$B$79,Nutrients!$I$79,(IF($A$8=Nutrients!$B$77,Nutrients!$I$77,Nutrients!$I$78)))))*P$8))/2000","v":19.762151189286683},{"$f":"(SUMPRODUCT(Q$9:Q$229,Nutrients!$I$8:$I$228)+(IF($A$7=Nutrients!$B$8,Nutrients!$I$8,Nutrients!$I$9)*Q$7)+(((IF($A$8=Nutrients!$B$79,Nutrients!$I$79,(IF($A$8=Nutrients!$B$77,Nutrients!$I$77,Nutrients!$I$78)))))*Q$8))/2000","v":18.126136688094224},{"$f":"(SUMPRODUCT(R$9:R$229,Nutrients!$I$8:$I$228)+(IF($A$7=Nutrients!$B$8,Nutrients!$I$8,Nutrients!$I$9)*R$7)+(((IF($A$8=Nutrients!$B$79,Nutrients!$I$79,(IF($A$8=Nutrients!$B$77,Nutrients!$I$77,Nutrients!$I$78)))))*R$8))/2000","v":16.741979978014847},{"$f":"(SUMPRODUCT(S$9:S$229,Nutrients!$I$8:$I$228)+(IF($A$7=Nutrients!$B$8,Nutrients!$I$8,Nutrients!$I$9)*S$7)+(((IF($A$8=Nutrients!$B$79,Nutrients!$I$79,(IF($A$8=Nutrients!$B$77,Nutrients!$I$77,Nutrients!$I$78)))))*S$8))/2000","v":15.394350201912184},{"$f":"(SUMPRODUCT(T$9:T$229,Nutrients!$I$8:$I$228)+(IF($A$7=Nutrients!$B$8,Nutrients!$I$8,Nutrients!$I$9)*T$7)+(((IF($A$8=Nutrients!$B$79,Nutrients!$I$79,(IF($A$8=Nutrients!$B$77,Nutrients!$I$77,Nutrients!$I$78)))))*T$8))/2000","v":14.287930934934302},{"$f":"(SUMPRODUCT(U$9:U$229,Nutrients!$I$8:$I$228)+(IF($A$7=Nutrients!$B$8,Nutrients!$I$8,Nutrients!$I$9)*U$7)+(((IF($A$8=Nutrients!$B$79,Nutrients!$I$79,(IF($A$8=Nutrients!$B$77,Nutrients!$I$77,Nutrients!$I$78)))))*U$8))/2000","v":13.688045245143577},null,{"$f":"(SUMPRODUCT(W$9:W$229,Nutrients!$I$8:$I$228)+(IF($A$7=Nutrients!$B$8,Nutrients!$I$8,Nutrients!$I$9)*W$7)+(((IF($A$8=Nutrients!$B$79,Nutrients!$I$79,(IF($A$8=Nutrients!$B$77,Nutrients!$I$77,Nutrients!$I$78)))))*W$8))/2000","v":20.062549651751358},{"$f":"(SUMPRODUCT(X$9:X$229,Nutrients!$I$8:$I$228)+(IF($A$7=Nutrients!$B$8,Nutrients!$I$8,Nutrients!$I$9)*X$7)+(((IF($A$8=Nutrients!$B$79,Nutrients!$I$79,(IF($A$8=Nutrients!$B$77,Nutrients!$I$77,Nutrients!$I$78)))))*X$8))/2000","v":18.442355939877849},{"$f":"(SUMPRODUCT(Y$9:Y$229,Nutrients!$I$8:$I$228)+(IF($A$7=Nutrients!$B$8,Nutrients!$I$8,Nutrients!$I$9)*Y$7)+(((IF($A$8=Nutrients!$B$79,Nutrients!$I$79,(IF($A$8=Nutrients!$B$77,Nutrients!$I$77,Nutrients!$I$78)))))*Y$8))/2000","v":17.053978068683794},{"$f":"(SUMPRODUCT(Z$9:Z$229,Nutrients!$I$8:$I$228)+(IF($A$7=Nutrients!$B$8,Nutrients!$I$8,Nutrients!$I$9)*Z$7)+(((IF($A$8=Nutrients!$B$79,Nutrients!$I$79,(IF($A$8=Nutrients!$B$77,Nutrients!$I$77,Nutrients!$I$78)))))*Z$8))/2000","v":15.73007644318225},{"$f":"(SUMPRODUCT(AA$9:AA$229,Nutrients!$I$8:$I$228)+(IF($A$7=Nutrients!$B$8,Nutrients!$I$8,Nutrients!$I$9)*AA$7)+(((IF($A$8=Nutrients!$B$79,Nutrients!$I$79,(IF($A$8=Nutrients!$B$77,Nutrients!$I$77,Nutrients!$I$78)))))*AA$8))/2000","v":14.638631664177339},{"$f":"(SUMPRODUCT(AB$9:AB$229,Nutrients!$I$8:$I$228)+(IF($A$7=Nutrients!$B$8,Nutrients!$I$8,Nutrients!$I$9)*AB$7)+(((IF($A$8=Nutrients!$B$79,Nutrients!$I$79,(IF($A$8=Nutrients!$B$77,Nutrients!$I$77,Nutrients!$I$78)))))*AB$8))/2000","v":14.038770789575663},null,{"$f":"(SUMPRODUCT(AD$9:AD$229,Nutrients!$I$8:$I$228)+(IF($A$7=Nutrients!$B$8,Nutrients!$I$8,Nutrients!$I$9)*AD$7)+(((IF($A$8=Nutrients!$B$79,Nutrients!$I$79,(IF($A$8=Nutrients!$B$77,Nutrients!$I$77,Nutrients!$I$78)))))*AD$8))/2000","v":20.363727822522169},{"$f":"(SUMPRODUCT(AE$9:AE$229,Nutrients!$I$8:$I$228)+(IF($A$7=Nutrients!$B$8,Nutrients!$I$8,Nutrients!$I$9)*AE$7)+(((IF($A$8=Nutrients!$B$79,Nutrients!$I$79,(IF($A$8=Nutrients!$B$77,Nutrients!$I$77,Nutrients!$I$78)))))*AE$8))/2000","v":18.739159416331763},{"$f":"(SUMPRODUCT(AF$9:AF$229,Nutrients!$I$8:$I$228)+(IF($A$7=Nutrients!$B$8,Nutrients!$I$8,Nutrients!$I$9)*AF$7)+(((IF($A$8=Nutrients!$B$79,Nutrients!$I$79,(IF($A$8=Nutrients!$B$77,Nutrients!$I$77,Nutrients!$I$78)))))*AF$8))/2000","v":17.374786713434997},{"$f":"(SUMPRODUCT(AG$9:AG$229,Nutrients!$I$8:$I$228)+(IF($A$7=Nutrients!$B$8,Nutrients!$I$8,Nutrients!$I$9)*AG$7)+(((IF($A$8=Nutrients!$B$79,Nutrients!$I$79,(IF($A$8=Nutrients!$B$77,Nutrients!$I$77,Nutrients!$I$78)))))*AG$8))/2000","v":16.072656130737411},{"$f":"(SUMPRODUCT(AH$9:AH$229,Nutrients!$I$8:$I$228)+(IF($A$7=Nutrients!$B$8,Nutrients!$I$8,Nutrients!$I$9)*AH$7)+(((IF($A$8=Nutrients!$B$79,Nutrients!$I$79,(IF($A$8=Nutrients!$B$77,Nutrients!$I$77,Nutrients!$I$78)))))*AH$8))/2000","v":14.977814992867081},{"$f":"(SUMPRODUCT(AI$9:AI$229,Nutrients!$I$8:$I$228)+(IF($A$7=Nutrients!$B$8,Nutrients!$I$8,Nutrients!$I$9)*AI$7)+(((IF($A$8=Nutrients!$B$79,Nutrients!$I$79,(IF($A$8=Nutrients!$B$77,Nutrients!$I$77,Nutrients!$I$78)))))*AI$8))/2000","v":14.37914874881988},null,{"$f":"(SUMPRODUCT(AK$9:AK$229,Nutrients!$I$8:$I$228)+(IF($A$7=Nutrients!$B$8,Nutrients!$I$8,Nutrients!$I$9)*AK$7)+(((IF($A$8=Nutrients!$B$79,Nutrients!$I$79,(IF($A$8=Nutrients!$B$77,Nutrients!$I$77,Nutrients!$I$78)))))*AK$8))/2000","v":20.671183957565269},{"$f":"(SUMPRODUCT(AL$9:AL$229,Nutrients!$I$8:$I$228)+(IF($A$7=Nutrients!$B$8,Nutrients!$I$8,Nutrients!$I$9)*AL$7)+(((IF($A$8=Nutrients!$B$79,Nutrients!$I$79,(IF($A$8=Nutrients!$B$77,Nutrients!$I$77,Nutrients!$I$78)))))*AL$8))/2000","v":19.039986262842863},{"$f":"(SUMPRODUCT(AM$9:AM$229,Nutrients!$I$8:$I$228)+(IF($A$7=Nutrients!$B$8,Nutrients!$I$8,Nutrients!$I$9)*AM$7)+(((IF($A$8=Nutrients!$B$79,Nutrients!$I$79,(IF($A$8=Nutrients!$B$77,Nutrients!$I$77,Nutrients!$I$78)))))*AM$8))/2000","v":17.700836778311817},{"$f":"(SUMPRODUCT(AN$9:AN$229,Nutrients!$I$8:$I$228)+(IF($A$7=Nutrients!$B$8,Nutrients!$I$8,Nutrients!$I$9)*AN$7)+(((IF($A$8=Nutrients!$B$79,Nutrients!$I$79,(IF($A$8=Nutrients!$B$77,Nutrients!$I$77,Nutrients!$I$78)))))*AN$8))/2000","v":16.40532044879139},{"$f":"(SUMPRODUCT(AO$9:AO$229,Nutrients!$I$8:$I$228)+(IF($A$7=Nutrients!$B$8,Nutrients!$I$8,Nutrients!$I$9)*AO$7)+(((IF($A$8=Nutrients!$B$79,Nutrients!$I$79,(IF($A$8=Nutrients!$B$77,Nutrients!$I$77,Nutrients!$I$78)))))*AO$8))/2000","v":15.312491861130265},{"$f":"(SUMPRODUCT(AP$9:AP$229,Nutrients!$I$8:$I$228)+(IF($A$7=Nutrients!$B$8,Nutrients!$I$8,Nutrients!$I$9)*AP$7)+(((IF($A$8=Nutrients!$B$79,Nutrients!$I$79,(IF($A$8=Nutrients!$B$77,Nutrients!$I$77,Nutrients!$I$78)))))*AP$8))/2000","v":14.719048127297725},null,{"$f":"(SUMPRODUCT(AR$9:AR$229,Nutrients!$I$8:$I$228)+(IF($A$7=Nutrients!$B$8,Nutrients!$I$8,Nutrients!$I$9)*AR$7)+(((IF($A$8=Nutrients!$B$79,Nutrients!$I$79,(IF($A$8=Nutrients!$B$77,Nutrients!$I$77,Nutrients!$I$78)))))*AR$8))/2000","v":21.020217191615608},{"$f":"(SUMPRODUCT(AS$9:AS$229,Nutrients!$I$8:$I$228)+(IF($A$7=Nutrients!$B$8,Nutrients!$I$8,Nutrients!$I$9)*AS$7)+(((IF($A$8=Nutrients!$B$79,Nutrients!$I$79,(IF($A$8=Nutrients!$B$77,Nutrients!$I$77,Nutrients!$I$78)))))*AS$8))/2000","v":19.346527729703066},{"$f":"(SUMPRODUCT(AT$9:AT$229,Nutrients!$I$8:$I$228)+(IF($A$7=Nutrients!$B$8,Nutrients!$I$8,Nutrients!$I$9)*AT$7)+(((IF($A$8=Nutrients!$B$79,Nutrients!$I$79,(IF($A$8=Nutrients!$B$77,Nutrients!$I$77,Nutrients!$I$78)))))*AT$8))/2000","v":18.034560211539901},{"$f":"(SUMPRODUCT(AU$9:AU$229,Nutrients!$I$8:$I$228)+(IF($A$7=Nutrients!$B$8,Nutrients!$I$8,Nutrients!$I$9)*AU$7)+(((IF($A$8=Nutrients!$B$79,Nutrients!$I$79,(IF($A$8=Nutrients!$B$77,Nutrients!$I$77,Nutrients!$I$78)))))*AU$8))/2000","v":16.732781824485457},{"$f":"(SUMPRODUCT(AV$9:AV$229,Nutrients!$I$8:$I$228)+(IF($A$7=Nutrients!$B$8,Nutrients!$I$8,Nutrients!$I$9)*AV$7)+(((IF($A$8=Nutrients!$B$79,Nutrients!$I$79,(IF($A$8=Nutrients!$B$77,Nutrients!$I$77,Nutrients!$I$78)))))*AV$8))/2000","v":15.647277489283631},{"$f":"(SUMPRODUCT(AW$9:AW$229,Nutrients!$I$8:$I$228)+(IF($A$7=Nutrients!$B$8,Nutrients!$I$8,Nutrients!$I$9)*AW$7)+(((IF($A$8=Nutrients!$B$79,Nutrients!$I$79,(IF($A$8=Nutrients!$B$77,Nutrients!$I$77,Nutrients!$I$78)))))*AW$8))/2000","v":15.058988868905352}]
["Ca, %",{"$f":"(SUMPRODUCT(B$9:B$229,Nutrients!$BS$8:$BS$228)+(IF($A$7=Nutrients!$B$8,Nutrients!$BS$8,Nutrients!$BS$9)*B$7)+(((IF($A$8=Nutrients!$B$79,Nutrients!$BS$79,(IF($A$8=Nutrients!$B$77,Nutrients!$BS$77,Nutrients!$BS$78)))))*B$8))/2000","v":0.69579038170108098},{"$f":"(SUMPRODUCT(C$9:C$229,Nutrients!$BS$8:$BS$228)+(IF($A$7=Nutrients!$B$8,Nutrients!$BS$8,Nutrients!$BS$9)*C$7)+(((IF($A$8=Nutrients!$B$79,Nutrients!$BS$79,(IF($A$8=Nutrients!$B$77,Nutrients!$BS$77,Nutrients!$BS$78)))))*C$8))/2000","v":0.62597225623792574},{"$f":"(SUMPRODUCT(D$9:D$229,Nutrients!$BS$8:$BS$228)+(IF($A$7=Nutrients!$B$8,Nutrients!$BS$8,Nutrients!$BS$9)*D$7)+(((IF($A$8=Nutrients!$B$79,Nutrients!$BS$79,(IF($A$8=Nutrients!$B$77,Nutrients!$BS$77,Nutrients!$BS$78)))))*D$8))/2000","v":0.57389505815699282},{"$f":"(SUMPRODUCT(E$9:E$229,Nutrients!$BS$8:$BS$228)+(IF($A$7=Nutrients!$B$8,Nutrients!$BS$8,Nutrients!$BS$9)*E$7)+(((IF($A$8=Nutrients!$B$79,Nutrients!$BS$79,(IF($A$8=Nutrients!$B$77,Nutrients!$BS$77,Nutrients!$BS$78)))))*E$8))/2000","v":0.52055031100225413},{"$f":"(SUMPRODUCT(F$9:F$229,Nutrients!$BS$8:$BS$228)+(IF($A$7=Nutrients!$B$8,Nutrients!$BS$8,Nutrients!$BS$9)*F$7)+(((IF($A$8=Nutrients!$B$79,Nutrients!$BS$79,(IF($A$8=Nutrients!$B$77,Nutrients!$BS$77,Nutrients!$BS$78)))))*F$8))/2000","v":0.47698896958793735},{"$f":"(SUMPRODUCT(G$9:G$229,Nutrients!$BS$8:$BS$228)+(IF($A$7=Nutrients!$B$8,Nutrients!$BS$8,Nutrients!$BS$9)*G$7)+(((IF($A$8=Nutrients!$B$79,Nutrients!$BS$79,(IF($A$8=Nutrients!$B$77,Nutrients!$BS$77,Nutrients!$BS$78)))))*G$8))/2000","v":0.4600223649748173},null,{"$f":"(SUMPRODUCT(I$9:I$229,Nutrients!$BS$8:$BS$228)+(IF($A$7=Nutrients!$B$8,Nutrients!$BS$8,Nutrients!$BS$9)*I$7)+(((IF($A$8=Nutrients!$B$79,Nutrients!$BS$79,(IF($A$8=Nutrients!$B$77,Nutrients!$BS$77,Nutrients!$BS$78)))))*I$8))/2000","v":0.69509786713140509},{"$f":"(SUMPRODUCT(J$9:J$229,Nutrients!$BS$8:$BS$228)+(IF($A$7=Nutrients!$B$8,Nutrients!$BS$8,Nutrients!$BS$9)*J$7)+(((IF($A$8=Nutrients!$B$79,Nutrients!$BS$79,(IF($A$8=Nutrients!$B$77,Nutrients!$BS$77,Nutrients!$BS$78)))))*J$8))/2000","v":0.62685751929538103},{"$f":"(SUMPRODUCT(K$9:K$229,Nutrients!$BS$8:$BS$228)+(IF($A$7=Nutrients!$B$8,Nutrients!$BS$8,Nutrients!$BS$9)*K$7)+(((IF($A$8=Nutrients!$B$79,Nutrients!$BS$79,(IF($A$8=Nutrients!$B$77,Nutrients!$BS$77,Nutrients!$BS$78)))))*K$8))/2000","v":0.5728019313815349},{"$f":"(SUMPRODUCT(L$9:L$229,Nutrients!$BS$8:$BS$228)+(IF($A$7=Nutrients!$B$8,Nutrients!$BS$8,Nutrients!$BS$9)*L$7)+(((IF($A$8=Nutrients!$B$79,Nutrients!$BS$79,(IF($A$8=Nutrients!$B$77,Nutrients!$BS$77,Nutrients!$BS$78)))))*L$8))/2000","v":0.52063920797813668},{"$f":"(SUMPRODUCT(M$9:M$229,Nutrients!$BS$8:$BS$228)+(IF($A$7=Nutrients!$B$8,Nutrients!$BS$8,Nutrients!$BS$9)*M$7)+(((IF($A$8=Nutrients!$B$79,Nutrients!$BS$79,(IF($A$8=Nutrients!$B$77,Nutrients!$BS$77,Nutrients!$BS$78)))))*M$8))/2000","v":0.47751601032645441},{"$f":"(SUMPRODUCT(N$9:N$229,Nutrients!$BS$8:$BS$228)+(IF($A$7=Nutrients!$B$8,Nutrients!$BS$8,Nutrients!$BS$9)*N$7)+(((IF($A$8=Nutrients!$B$79,Nutrients!$BS$79,(IF($A$8=Nutrients!$B$77,Nutrients!$BS$77,Nutrients!$BS$78)))))*N$8))/2000","v":0.46010585759104172},null,{"$f":"(SUMPRODUCT(P$9:P$229,Nutrients!$BS$8:$BS$228)+(IF($A$7=Nutrients!$B$8,Nutrients!$BS$8,Nutrients!$BS$9)*P$7)+(((IF($A$8=Nutrients!$B$79,Nutrients!$BS$79,(IF($A$8=Nutrients!$B$77,Nutrients!$BS$77,Nutrients!$BS$78)))))*P$8))/2000","v":0.69494644331109834},{"$f":"(SUMPRODUCT(Q$9:Q$229,Nutrients!$BS$8:$BS$228)+(IF($A$7=Nutrients!$B$8,Nutrients!$BS$8,Nutrients!$BS$9)*Q$7)+(((IF($A$8=Nutrients!$B$79,Nutrients!$BS$79,(IF($A$8=Nutrients!$B$77,Nutrients!$BS$77,Nutrients!$BS$78)))))*Q$8))/2000","v":0.62702925728822478},{"$f":"(SUMPRODUCT(R$9:R$229,Nutrients!$BS$8:$BS$228)+(IF($A$7=Nutrients!$B$8,Nutrients!$BS$8,Nutrients!$BS$9)*R$7)+(((IF($A$8=Nutrients!$B$79,Nutrients!$BS$79,(IF($A$8=Nutrients!$B$77,Nutrients!$BS$77,Nutrients!$BS$78)))))*R$8))/2000","v":0.57281027862745393},{"$f":"(SUMPRODUCT(S$9:S$229,Nutrients!$BS$8:$BS$228)+(IF($A$7=Nutrients!$B$8,Nutrients!$BS$8,Nutrients!$BS$9)*S$7)+(((IF($A$8=Nutrients!$B$79,Nutrients!$BS$79,(IF($A$8=Nutrients!$B$77,Nutrients!$BS$77,Nutrients!$BS$78)))))*S$8))/2000","v":0.5205920977318963},{"$f":"(SUMPRODUCT(T$9:T$229,Nutrients!$BS$8:$BS$228)+(IF($A$7=Nutrients!$B$8,Nutrients!$BS$8,Nutrients!$BS$9)*T$7)+(((IF($A$8=Nutrients!$B$79,Nutrients!$BS$79,(IF($A$8=Nutrients!$B$77,Nutrients!$BS$77,Nutrients!$BS$78)))))*T$8))/2000","v":0.4775666186074749},{"$f":"(SUMPRODUCT(U$9:U$229,Nutrients!$BS$8:$BS$228)+(IF($A$7=Nutrients!$B$8,Nutrients!$BS$8,Nutrients!$BS$9)*U$7)+(((IF($A$8=Nutrients!$B$79,Nutrients!$BS$79,(IF($A$8=Nutrients!$B$77,Nutrients!$BS$77,Nutrients!$BS$78)))))*U$8))/2000","v":0.46019591049649489},null,{"$f":"(SUMPRODUCT(W$9:W$229,Nutrients!$BS$8:$BS$228)+(IF($A$7=Nutrients!$B$8,Nutrients!$BS$8,Nutrients!$BS$9)*W$7)+(((IF($A$8=Nutrients!$B$79,Nutrients!$BS$79,(IF($A$8=Nutrients!$B$77,Nutrients!$BS$77,Nutrients!$BS$78)))))*W$8))/2000","v":0.69472356241515099},{"$f":"(SUMPRODUCT(X$9:X$229,Nutrients!$BS$8:$BS$228)+(IF($A$7=Nutrients!$B$8,Nutrients!$BS$8,Nutrients!$BS$9)*X$7)+(((IF($A$8=Nutrients!$B$79,Nutrients!$BS$79,(IF($A$8=Nutrients!$B$77,Nutrients!$BS$77,Nutrients!$BS$78)))))*X$8))/2000","v":0.62691879868403333},{"$f":"(SUMPRODUCT(Y$9:Y$229,Nutrients!$BS$8:$BS$228)+(IF($A$7=Nutrients!$B$8,Nutrients!$BS$8,Nutrients!$BS$9)*Y$7)+(((IF($A$8=Nutrients!$B$79,Nutrients!$BS$79,(IF($A$8=Nutrients!$B$77,Nutrients!$BS$77,Nutrients!$BS$78)))))*Y$8))/2000","v":0.57264618041469006},{"$f":"(SUMPRODUCT(Z$9:Z$229,Nutrients!$BS$8:$BS$228)+(IF($A$7=Nutrients!$B$8,Nutrients!$BS$8,Nutrients!$BS$9)*Z$7)+(((IF($A$8=Nutrients!$B$79,Nutrients!$BS$79,(IF($A$8=Nutrients!$B$77,Nutrients!$BS$77,Nutrients!$BS$78)))))*Z$8))/2000","v":0.52058929495381878},{"$f":"(SUMPRODUCT(AA$9:AA$229,Nutrients!$BS$8:$BS$228)+(IF($A$7=Nutrients!$B$8,Nutrients!$BS$8,Nutrients!$BS$9)*AA$7)+(((IF($A$8=Nutrients!$B$79,Nutrients!$BS$79,(IF($A$8=Nutrients!$B$77,Nutrients!$BS$77,Nutrients!$BS$78)))))*AA$8))/2000","v":0.47762936226575142},{"$f":"(SUMPRODUCT(AB$9:AB$229,Nutrients!$BS$8:$BS$228)+(IF($A$7=Nutrients!$B$8,Nutrients!$BS$8,Nutrients!$BS$9)*AB$7)+(((IF($A$8=Nutrients!$B$79,Nutrients!$BS$79,(IF($A$8=Nutrients!$B$77,Nutrients!$BS$77,Nutrients!$BS$78)))))*AB$8))/2000","v":0.46526022961211361},null,{"$f":"(SUMPRODUCT(AD$9:AD$229,Nutrients!$BS$8:$BS$228)+(IF($A$7=Nutrients!$B$8,Nutrients!$BS$8,Nutrients!$BS$9)*AD$7)+(((IF($A$8=Nutrients!$B$79,Nutrients!$BS$79,(IF($A$8=Nutrients!$B$77,Nutrients!$BS$77,Nutrients!$BS$78)))))*AD$8))/2000","v":0.69448726104704361},{"$f":"(SUMPRODUCT(AE$9:AE$229,Nutrients!$BS$8:$BS$228)+(IF($A$7=Nutrients!$B$8,Nutrients!$BS$8,Nutrients!$BS$9)*AE$7)+(((IF($A$8=Nutrients!$B$79,Nutrients!$BS$79,(IF($A$8=Nutrients!$B$77,Nutrients!$BS$77,Nutrients!$BS$78)))))*AE$8))/2000","v":0.62663883934466658},{"$f":"(SUMPRODUCT(AF$9:AF$229,Nutrients!$BS$8:$BS$228)+(IF($A$7=Nutrients!$B$8,Nutrients!$BS$8,Nutrients!$BS$9)*AF$7)+(((IF($A$8=Nutrients!$B$79,Nutrients!$BS$79,(IF($A$8=Nutrients!$B$77,Nutrients!$BS$77,Nutrients!$BS$78)))))*AF$8))/2000","v":0.572523130879944},{"$f":"(SUMPRODUCT(AG$9:AG$229,Nutrients!$BS$8:$BS$228)+(IF($A$7=Nutrients!$B$8,Nutrients!$BS$8,Nutrients!$BS$9)*AG$7)+(((IF($A$8=Nutrients!$B$79,Nutrients!$BS$79,(IF($A$8=Nutrients!$B$77,Nutrients!$BS$77,Nutrients!$BS$78)))))*AG$8))/2000","v":0.52111006939173765},{"$f":"(SUMPRODUCT(AH$9:AH$229,Nutrients!$BS$8:$BS$228)+(IF($A$7=Nutrients!$B$8,Nutrients!$BS$8,Nutrients!$BS$9)*AH$7)+(((IF($A$8=Nutrients!$B$79,Nutrients!$BS$79,(IF($A$8=Nutrients!$B$77,Nutrients!$BS$77,Nutrients!$BS$78)))))*AH$8))/2000","v":0.49396778209023379},{"$f":"(SUMPRODUCT(AI$9:AI$229,Nutrients!$BS$8:$BS$228)+(IF($A$7=Nutrients!$B$8,Nutrients!$BS$8,Nutrients!$BS$9)*AI$7)+(((IF($A$8=Nutrients!$B$79,Nutrients!$BS$79,(IF($A$8=Nutrients!$B$77,Nutrients!$BS$77,Nutrients!$BS$78)))))*AI$8))/2000","v":0.4871459384430385},null,{"$f":"(SUMPRODUCT(AK$9:AK$229,Nutrients!$BS$8:$BS$228)+(IF($A$7=Nutrients!$B$8,Nutrients!$BS$8,Nutrients!$BS$9)*AK$7)+(((IF($A$8=Nutrients!$B$79,Nutrients!$BS$79,(IF($A$8=Nutrients!$B$77,Nutrients!$BS$77,Nutrients!$BS$78)))))*AK$8))/2000","v":0.69429566110979846},{"$f":"(SUMPRODUCT(AL$9:AL$229,Nutrients!$BS$8:$BS$228)+(IF($A$7=Nutrients!$B$8,Nutrients!$BS$8,Nutrients!$BS$9)*AL$7)+(((IF($A$8=Nutrients!$B$79,Nutrients!$BS$79,(IF($A$8=Nutrients!$B$77,Nutrients!$BS$77,Nutrients!$BS$78)))))*AL$8))/2000","v":0.62640768545386993},{"$f":"(SUMPRODUCT(AM$9:AM$229,Nutrients!$BS$8:$BS$228)+(IF($A$7=Nutrients!$B$8,Nutrients!$BS$8,Nutrients!$BS$9)*AM$7)+(((IF($A$8=Nutrients!$B$79,Nutrients!$BS$79,(IF($A$8=Nutrients!$B$77,Nutrients!$BS$77,Nutrients!$BS$78)))))*AM$8))/2000","v":0.57241998565275465},{"$f":"(SUMPRODUCT(AN$9:AN$229,Nutrients!$BS$8:$BS$228)+(IF($A$7=Nutrients!$B$8,Nutrients!$BS$8,Nutrients!$BS$9)*AN$7)+(((IF($A$8=Nutrients!$B$79,Nutrients!$BS$79,(IF($A$8=Nutrients!$B$77,Nutrients!$BS$77,Nutrients!$BS$78)))))*AN$8))/2000","v":0.53407219225656921},{"$f":"(SUMPRODUCT(AO$9:AO$229,Nutrients!$BS$8:$BS$228)+(IF($A$7=Nutrients!$B$8,Nutrients!$BS$8,Nutrients!$BS$9)*AO$7)+(((IF($A$8=Nutrients!$B$79,Nutrients!$BS$79,(IF($A$8=Nutrients!$B$77,Nutrients!$BS$77,Nutrients!$BS$78)))))*AO$8))/2000","v":0.5157947404804325},{"$f":"(SUMPRODUCT(AP$9:AP$229,Nutrients!$BS$8:$BS$228)+(IF($A$7=Nutrients!$B$8,Nutrients!$BS$8,Nutrients!$BS$9)*AP$7)+(((IF($A$8=Nutrients!$B$79,Nutrients!$BS$79,(IF($A$8=Nutrients!$B$77,Nutrients!$BS$77,Nutrients!$BS$78)))))*AP$8))/2000","v":0.50903261499591457},null,{"$f":"(SUMPRODUCT(AR$9:AR$229,Nutrients!$BS$8:$BS$228)+(IF($A$7=Nutrients!$B$8,Nutrients!$BS$8,Nutrients!$BS$9)*AR$7)+(((IF($A$8=Nutrients!$B$79,Nutrients!$BS$79,(IF($A$8=Nutrients!$B$77,Nutrients!$BS$77,Nutrients!$BS$78)))))*AR$8))/2000","v":0.69443674473297878},{"$f":"(SUMPRODUCT(AS$9:AS$229,Nutrients!$BS$8:$BS$228)+(IF($A$7=Nutrients!$B$8,Nutrients!$BS$8,Nutrients!$BS$9)*AS$7)+(((IF($A$8=Nutrients!$B$79,Nutrients!$BS$79,(IF($A$8=Nutrients!$B$77,Nutrients!$BS$77,Nutrients!$BS$78)))))*AS$8))/2000","v":0.62617785979488438},{"$f":"(SUMPRODUCT(AT$9:AT$229,Nutrients!$BS$8:$BS$228)+(IF($A$7=Nutrients!$B$8,Nutrients!$BS$8,Nutrients!$BS$9)*AT$7)+(((IF($A$8=Nutrients!$B$79,Nutrients!$BS$79,(IF($A$8=Nutrients!$B$77,Nutrients!$BS$77,Nutrients!$BS$78)))))*AT$8))/2000","v":0.57290278813502837},{"$f":"(SUMPRODUCT(AU$9:AU$229,Nutrients!$BS$8:$BS$228)+(IF($A$7=Nutrients!$B$8,Nutrients!$BS$8,Nutrients!$BS$9)*AU$7)+(((IF($A$8=Nutrients!$B$79,Nutrients!$BS$79,(IF($A$8=Nutrients!$B$77,Nutrients!$BS$77,Nutrients!$BS$78)))))*AU$8))/2000","v":0.556061515849402},{"$f":"(SUMPRODUCT(AV$9:AV$229,Nutrients!$BS$8:$BS$228)+(IF($A$7=Nutrients!$B$8,Nutrients!$BS$8,Nutrients!$BS$9)*AV$7)+(((IF($A$8=Nutrients!$B$79,Nutrients!$BS$79,(IF($A$8=Nutrients!$B$77,Nutrients!$BS$77,Nutrients!$BS$78)))))*AV$8))/2000","v":0.53762407161563042},{"$f":"(SUMPRODUCT(AW$9:AW$229,Nutrients!$BS$8:$BS$228)+(IF($A$7=Nutrients!$B$8,Nutrients!$BS$8,Nutrients!$BS$9)*AW$7)+(((IF($A$8=Nutrients!$B$79,Nutrients!$BS$79,(IF($A$8=Nutrients!$B$77,Nutrients!$BS$77,Nutrients!$BS$78)))))*AW$8))/2000","v":0.53092082475748947}]
["P, %",{"$f":"(SUMPRODUCT(B$9:B$229,Nutrients!$BX$8:$BX$228)+(IF($A$7=Nutrients!$B$8,Nutrients!$BX$8,Nutrients!$BX$9)*B$7)+(((IF($A$8=Nutrients!$B$79,Nutrients!$BX$79,(IF($A$8=Nutrients!$B$77,Nutrients!$BX$77,Nutrients!$BX$78)))))*B$8))/2000","v":0.52698829927184954},{"$f":"(SUMPRODUCT(C$9:C$229,Nutrients!$BX$8:$BX$228)+(IF($A$7=Nutrients!$B$8,Nutrients!$BX$8,Nutrients!$BX$9)*C$7)+(((IF($A$8=Nutrients!$B$79,Nutrients!$BX$79,(IF($A$8=Nutrients!$B$77,Nutrients!$BX$77,Nutrients!$BX$78)))))*C$8))/2000","v":0.47554766489495992},{"$f":"(SUMPRODUCT(D$9:D$229,Nutrients!$BX$8:$BX$228)+(IF($A$7=Nutrients!$B$8,Nutrients!$BX$8,Nutrients!$BX$9)*D$7)+(((IF($A$8=Nutrients!$B$79,Nutrients!$BX$79,(IF($A$8=Nutrients!$B$77,Nutrients!$BX$77,Nutrients!$BX$78)))))*D$8))/2000","v":0.42608857846774251},{"$f":"(SUMPRODUCT(E$9:E$229,Nutrients!$BX$8:$BX$228)+(IF($A$7=Nutrients!$B$8,Nutrients!$BX$8,Nutrients!$BX$9)*E$7)+(((IF($A$8=Nutrients!$B$79,Nutrients!$BX$79,(IF($A$8=Nutrients!$B$77,Nutrients!$BX$77,Nutrients!$BX$78)))))*E$8))/2000","v":0.38726313311804977},{"$f":"(SUMPRODUCT(F$9:F$229,Nutrients!$BX$8:$BX$228)+(IF($A$7=Nutrients!$B$8,Nutrients!$BX$8,Nutrients!$BX$9)*F$7)+(((IF($A$8=Nutrients!$B$79,Nutrients!$BX$79,(IF($A$8=Nutrients!$B$77,Nutrients!$BX$77,Nutrients!$BX$78)))))*F$8))/2000","v":0.35891430613336472},{"$f":"(SUMPRODUCT(G$9:G$229,Nutrients!$BX$8:$BX$228)+(IF($A$7=Nutrients!$B$8,Nutrients!$BX$8,Nutrients!$BX$9)*G$7)+(((IF($A$8=Nutrients!$B$79,Nutrients!$BX$79,(IF($A$8=Nutrients!$B$77,Nutrients!$BX$77,Nutrients!$BX$78)))))*G$8))/2000","v":0.34524547811925704},null,{"$f":"(SUMPRODUCT(I$9:I$229,Nutrients!$BX$8:$BX$228)+(IF($A$7=Nutrients!$B$8,Nutrients!$BX$8,Nutrients!$BX$9)*I$7)+(((IF($A$8=Nutrients!$B$79,Nutrients!$BX$79,(IF($A$8=Nutrients!$B$77,Nutrients!$BX$77,Nutrients!$BX$78)))))*I$8))/2000","v":0.52592001619434159},{"$f":"(SUMPRODUCT(J$9:J$229,Nutrients!$BX$8:$BX$228)+(IF($A$7=Nutrients!$B$8,Nutrients!$BX$8,Nutrients!$BX$9)*J$7)+(((IF($A$8=Nutrients!$B$79,Nutrients!$BX$79,(IF($A$8=Nutrients!$B$77,Nutrients!$BX$77,Nutrients!$BX$78)))))*J$8))/2000","v":0.47568073071712891},{"$f":"(SUMPRODUCT(K$9:K$229,Nutrients!$BX$8:$BX$228)+(IF($A$7=Nutrients!$B$8,Nutrients!$BX$8,Nutrients!$BX$9)*K$7)+(((IF($A$8=Nutrients!$B$79,Nutrients!$BX$79,(IF($A$8=Nutrients!$B$77,Nutrients!$BX$77,Nutrients!$BX$78)))))*K$8))/2000","v":0.42509929052569745},{"$f":"(SUMPRODUCT(L$9:L$229,Nutrients!$BX$8:$BX$228)+(IF($A$7=Nutrients!$B$8,Nutrients!$BX$8,Nutrients!$BX$9)*L$7)+(((IF($A$8=Nutrients!$B$79,Nutrients!$BX$79,(IF($A$8=Nutrients!$B$77,Nutrients!$BX$77,Nutrients!$BX$78)))))*L$8))/2000","v":0.38707961080132319},{"$f":"(SUMPRODUCT(M$9:M$229,Nutrients!$BX$8:$BX$228)+(IF($A$7=Nutrients!$B$8,Nutrients!$BX$8,Nutrients!$BX$9)*M$7)+(((IF($A$8=Nutrients!$B$79,Nutrients!$BX$79,(IF($A$8=Nutrients!$B$77,Nutrients!$BX$77,Nutrients!$BX$78)))))*M$8))/2000","v":0.35872619262130212},{"$f":"(SUMPRODUCT(N$9:N$229,Nutrients!$BX$8:$BX$228)+(IF($A$7=Nutrients!$B$8,Nutrients!$BX$8,Nutrients!$BX$9)*N$7)+(((IF($A$8=Nutrients!$B$79,Nutrients!$BX$79,(IF($A$8=Nutrients!$B$77,Nutrients!$BX$77,Nutrients!$BX$78)))))*N$8))/2000","v":0.34511885304906226},null,{"$f":"(SUMPRODUCT(P$9:P$229,Nutrients!$BX$8:$BX$228)+(IF($A$7=Nutrients!$B$8,Nutrients!$BX$8,Nutrients!$BX$9)*P$7)+(((IF($A$8=Nutrients!$B$79,Nutrients!$BX$79,(IF($A$8=Nutrients!$B$77,Nutrients!$BX$77,Nutrients!$BX$78)))))*P$8))/2000","v":0.52545543398911643},{"$f":"(SUMPRODUCT(Q$9:Q$229,Nutrients!$BX$8:$BX$228)+(IF($A$7=Nutrients!$B$8,Nutrients!$BX$8,Nutrients!$BX$9)*Q$7)+(((IF($A$8=Nutrients!$B$79,Nutrients!$BX$79,(IF($A$8=Nutrients!$B$77,Nutrients!$BX$77,Nutrients!$BX$78)))))*Q$8))/2000","v":0.4753632508708438},{"$f":"(SUMPRODUCT(R$9:R$229,Nutrients!$BX$8:$BX$228)+(IF($A$7=Nutrients!$B$8,Nutrients!$BX$8,Nutrients!$BX$9)*R$7)+(((IF($A$8=Nutrients!$B$79,Nutrients!$BX$79,(IF($A$8=Nutrients!$B$77,Nutrients!$BX$77,Nutrients!$BX$78)))))*R$8))/2000","v":0.42495664830724666},{"$f":"(SUMPRODUCT(S$9:S$229,Nutrients!$BX$8:$BX$228)+(IF($A$7=Nutrients!$B$8,Nutrients!$BX$8,Nutrients!$BX$9)*S$7)+(((IF($A$8=Nutrients!$B$79,Nutrients!$BX$79,(IF($A$8=Nutrients!$B$77,Nutrients!$BX$77,Nutrients!$BX$78)))))*S$8))/2000","v":0.38685096155511967},{"$f":"(SUMPRODUCT(T$9:T$229,Nutrients!$BX$8:$BX$228)+(IF($A$7=Nutrients!$B$8,Nutrients!$BX$8,Nutrients!$BX$9)*T$7)+(((IF($A$8=Nutrients!$B$79,Nutrients!$BX$79,(IF($A$8=Nutrients!$B$77,Nutrients!$BX$77,Nutrients!$BX$78)))))*T$8))/2000","v":0.35863667884217348},{"$f":"(SUMPRODUCT(U$9:U$229,Nutrients!$BX$8:$BX$228)+(IF($A$7=Nutrients!$B$8,Nutrients!$BX$8,Nutrients!$BX$9)*U$7)+(((IF($A$8=Nutrients!$B$79,Nutrients!$BX$79,(IF($A$8=Nutrients!$B$77,Nutrients!$BX$77,Nutrients!$BX$78)))))*U$8))/2000","v":0.34508854729145549},null,{"$f":"(SUMPRODUCT(W$9:W$229,Nutrients!$BX$8:$BX$228)+(IF($A$7=Nutrients!$B$8,Nutrients!$BX$8,Nutrients!$BX$9)*W$7)+(((IF($A$8=Nutrients!$B$79,Nutrients!$BX$79,(IF($A$8=Nutrients!$B$77,Nutrients!$BX$77,Nutrients!$BX$78)))))*W$8))/2000","v":0.52498497834799607},{"$f":"(SUMPRODUCT(X$9:X$229,Nutrients!$BX$8:$BX$228)+(IF($A$7=Nutrients!$B$8,Nutrients!$BX$8,Nutrients!$BX$9)*X$7)+(((IF($A$8=Nutrients!$B$79,Nutrients!$BX$79,(IF($A$8=Nutrients!$B$77,Nutrients!$BX$77,Nutrients!$BX$78)))))*X$8))/2000","v":0.47505053989325485},{"$f":"(SUMPRODUCT(Y$9:Y$229,Nutrients!$BX$8:$BX$228)+(IF($A$7=Nutrients!$B$8,Nutrients!$BX$8,Nutrients!$BX$9)*Y$7)+(((IF($A$8=Nutrients!$B$79,Nutrients!$BX$79,(IF($A$8=Nutrients!$B$77,Nutrients!$BX$77,Nutrients!$BX$78)))))*Y$8))/2000","v":0.42455698936338937},{"$f":"(SUMPRODUCT(Z$9:Z$229,Nutrients!$BX$8:$BX$228)+(IF($A$7=Nutrients!$B$8,Nutrients!$BX$8,Nutrients!$BX$9)*Z$7)+(((IF($A$8=Nutrients!$B$79,Nutrients!$BX$79,(IF($A$8=Nutrients!$B$77,Nutrients!$BX$77,Nutrients!$BX$78)))))*Z$8))/2000","v":0.38667437687726525},{"$f":"(SUMPRODUCT(AA$9:AA$229,Nutrients!$BX$8:$BX$228)+(IF($A$7=Nutrients!$B$8,Nutrients!$BX$8,Nutrients!$BX$9)*AA$7)+(((IF($A$8=Nutrients!$B$79,Nutrients!$BX$79,(IF($A$8=Nutrients!$B$77,Nutrients!$BX$77,Nutrients!$BX$78)))))*AA$8))/2000","v":0.35852637124934916},{"$f":"(SUMPRODUCT(AB$9:AB$229,Nutrients!$BX$8:$BX$228)+(IF($A$7=Nutrients!$B$8,Nutrients!$BX$8,Nutrients!$BX$9)*AB$7)+(((IF($A$8=Nutrients!$B$79,Nutrients!$BX$79,(IF($A$8=Nutrients!$B$77,Nutrients!$BX$77,Nutrients!$BX$78)))))*AB$8))/2000","v":0.34791590415295748},null,{"$f":"(SUMPRODUCT(AD$9:AD$229,Nutrients!$BX$8:$BX$228)+(IF($A$7=Nutrients!$B$8,Nutrients!$BX$8,Nutrients!$BX$9)*AD$7)+(((IF($A$8=Nutrients!$B$79,Nutrients!$BX$79,(IF($A$8=Nutrients!$B$77,Nutrients!$BX$77,Nutrients!$BX$78)))))*AD$8))/2000","v":0.52448662089407505},{"$f":"(SUMPRODUCT(AE$9:AE$229,Nutrients!$BX$8:$BX$228)+(IF($A$7=Nutrients!$B$8,Nutrients!$BX$8,Nutrients!$BX$9)*AE$7)+(((IF($A$8=Nutrients!$B$79,Nutrients!$BX$79,(IF($A$8=Nutrients!$B$77,Nutrients!$BX$77,Nutrients!$BX$78)))))*AE$8))/2000","v":0.4744844471557928},{"$f":"(SUMPRODUCT(AF$9:AF$229,Nutrients!$BX$8:$BX$228)+(IF($A$7=Nutrients!$B$8,Nutrients!$BX$8,Nutrients!$BX$9)*AF$7)+(((IF($A$8=Nutrients!$B$79,Nutrients!$BX$79,(IF($A$8=Nutrients!$B$77,Nutrients!$BX$77,Nutrients!$BX$78)))))*AF$8))/2000","v":0.42420469810327399},{"$f":"(SUMPRODUCT(AG$9:AG$229,Nutrients!$BX$8:$BX$228)+(IF($A$7=Nutrients!$B$8,Nutrients!$BX$8,Nutrients!$BX$9)*AG$7)+(((IF($A$8=Nutrients!$B$79,Nutrients!$BX$79,(IF($A$8=Nutrients!$B$77,Nutrients!$BX$77,Nutrients!$BX$78)))))*AG$8))/2000","v":0.38646047975564268},{"$f":"(SUMPRODUCT(AH$9:AH$229,Nutrients!$BX$8:$BX$228)+(IF($A$7=Nutrients!$B$8,Nutrients!$BX$8,Nutrients!$BX$9)*AH$7)+(((IF($A$8=Nutrients!$B$79,Nutrients!$BX$79,(IF($A$8=Nutrients!$B$77,Nutrients!$BX$77,Nutrients!$BX$78)))))*AH$8))/2000","v":0.36838408966702907},{"$f":"(SUMPRODUCT(AI$9:AI$229,Nutrients!$BX$8:$BX$228)+(IF($A$7=Nutrients!$B$8,Nutrients!$BX$8,Nutrients!$BX$9)*AI$7)+(((IF($A$8=Nutrients!$B$79,Nutrients!$BX$79,(IF($A$8=Nutrients!$B$77,Nutrients!$BX$77,Nutrients!$BX$78)))))*AI$8))/2000","v":0.36151070267001523},null,{"$f":"(SUMPRODUCT(AK$9:AK$229,Nutrients!$BX$8:$BX$228)+(IF($A$7=Nutrients!$B$8,Nutrients!$BX$8,Nutrients!$BX$9)*AK$7)+(((IF($A$8=Nutrients!$B$79,Nutrients!$BX$79,(IF($A$8=Nutrients!$B$77,Nutrients!$BX$77,Nutrients!$BX$78)))))*AK$8))/2000","v":0.52405041913459449},{"$f":"(SUMPRODUCT(AL$9:AL$229,Nutrients!$BX$8:$BX$228)+(IF($A$7=Nutrients!$B$8,Nutrients!$BX$8,Nutrients!$BX$9)*AL$7)+(((IF($A$8=Nutrients!$B$79,Nutrients!$BX$79,(IF($A$8=Nutrients!$B$77,Nutrients!$BX$77,Nutrients!$BX$78)))))*AL$8))/2000","v":0.47399682700324586},{"$f":"(SUMPRODUCT(AM$9:AM$229,Nutrients!$BX$8:$BX$228)+(IF($A$7=Nutrients!$B$8,Nutrients!$BX$8,Nutrients!$BX$9)*AM$7)+(((IF($A$8=Nutrients!$B$79,Nutrients!$BX$79,(IF($A$8=Nutrients!$B$77,Nutrients!$BX$77,Nutrients!$BX$78)))))*AM$8))/2000","v":0.42386891818988232},{"$f":"(SUMPRODUCT(AN$9:AN$229,Nutrients!$BX$8:$BX$228)+(IF($A$7=Nutrients!$B$8,Nutrients!$BX$8,Nutrients!$BX$9)*AN$7)+(((IF($A$8=Nutrients!$B$79,Nutrients!$BX$79,(IF($A$8=Nutrients!$B$77,Nutrients!$BX$77,Nutrients!$BX$78)))))*AN$8))/2000","v":0.39426849496236854},{"$f":"(SUMPRODUCT(AO$9:AO$229,Nutrients!$BX$8:$BX$228)+(IF($A$7=Nutrients!$B$8,Nutrients!$BX$8,Nutrients!$BX$9)*AO$7)+(((IF($A$8=Nutrients!$B$79,Nutrients!$BX$79,(IF($A$8=Nutrients!$B$77,Nutrients!$BX$77,Nutrients!$BX$78)))))*AO$8))/2000","v":0.38191970380774087},{"$f":"(SUMPRODUCT(AP$9:AP$229,Nutrients!$BX$8:$BX$228)+(IF($A$7=Nutrients!$B$8,Nutrients!$BX$8,Nutrients!$BX$9)*AP$7)+(((IF($A$8=Nutrients!$B$79,Nutrients!$BX$79,(IF($A$8=Nutrients!$B$77,Nutrients!$BX$77,Nutrients!$BX$78)))))*AP$8))/2000","v":0.37510575786733985},null,{"$f":"(SUMPRODUCT(AR$9:AR$229,Nutrients!$BX$8:$BX$228)+(IF($A$7=Nutrients!$B$8,Nutrients!$BX$8,Nutrients!$BX$9)*AR$7)+(((IF($A$8=Nutrients!$B$79,Nutrients!$BX$79,(IF($A$8=Nutrients!$B$77,Nutrients!$BX$77,Nutrients!$BX$78)))))*AR$8))/2000","v":0.52410040262048674},{"$f":"(SUMPRODUCT(AS$9:AS$229,Nutrients!$BX$8:$BX$228)+(IF($A$7=Nutrients!$B$8,Nutrients!$BX$8,Nutrients!$BX$9)*AS$7)+(((IF($A$8=Nutrients!$B$79,Nutrients!$BX$79,(IF($A$8=Nutrients!$B$77,Nutrients!$BX$77,Nutrients!$BX$78)))))*AS$8))/2000","v":0.47349184782084758},{"$f":"(SUMPRODUCT(AT$9:AT$229,Nutrients!$BX$8:$BX$228)+(IF($A$7=Nutrients!$B$8,Nutrients!$BX$8,Nutrients!$BX$9)*AT$7)+(((IF($A$8=Nutrients!$B$79,Nutrients!$BX$79,(IF($A$8=Nutrients!$B$77,Nutrients!$BX$77,Nutrients!$BX$78)))))*AT$8))/2000","v":0.42356305199284355},{"$f":"(SUMPRODUCT(AU$9:AU$229,Nutrients!$BX$8:$BX$228)+(IF($A$7=Nutrients!$B$8,Nutrients!$BX$8,Nutrients!$BX$9)*AU$7)+(((IF($A$8=Nutrients!$B$79,Nutrients!$BX$79,(IF($A$8=Nutrients!$B$77,Nutrients!$BX$77,Nutrients!$BX$78)))))*AU$8))/2000","v":0.40772105633001354},{"$f":"(SUMPRODUCT(AV$9:AV$229,Nutrients!$BX$8:$BX$228)+(IF($A$7=Nutrients!$B$8,Nutrients!$BX$8,Nutrients!$BX$9)*AV$7)+(((IF($A$8=Nutrients!$B$79,Nutrients!$BX$79,(IF($A$8=Nutrients!$B$77,Nutrients!$BX$77,Nutrients!$BX$78)))))*AV$8))/2000","v":0.39545655154131149},{"$f":"(SUMPRODUCT(AW$9:AW$229,Nutrients!$BX$8:$BX$228)+(IF($A$7=Nutrients!$B$8,Nutrients!$BX$8,Nutrients!$BX$9)*AW$7)+(((IF($A$8=Nutrients!$B$79,Nutrients!$BX$79,(IF($A$8=Nutrients!$B$77,Nutrients!$BX$77,Nutrients!$BX$78)))))*AW$8))/2000","v":0.38870127982871089}]
["Available P w/o phytase, %",{"$f":"(SUMPRODUCT(B$9:B$229,Nutrients!$EB$8:$EB$228)+(IF($A$7=Nutrients!$B$8,Nutrients!$EB$8,Nutrients!$EB$9)*B$7)+(((IF($A$8=Nutrients!$B$79,Nutrients!$EB$79,(IF($A$8=Nutrients!$B$77,Nutrients!$EB$77,Nutrients!$EB$78)))))*B$8))/2000","v":0.22446494345276957},{"$f":"(SUMPRODUCT(C$9:C$229,Nutrients!$EB$8:$EB$228)+(IF($A$7=Nutrients!$B$8,Nutrients!$EB$8,Nutrients!$EB$9)*C$7)+(((IF($A$8=Nutrients!$B$79,Nutrients!$EB$79,(IF($A$8=Nutrients!$B$77,Nutrients!$EB$77,Nutrients!$EB$78)))))*C$8))/2000","v":0.18518517069501755},{"$f":"(SUMPRODUCT(D$9:D$229,Nutrients!$EB$8:$EB$228)+(IF($A$7=Nutrients!$B$8,Nutrients!$EB$8,Nutrients!$EB$9)*D$7)+(((IF($A$8=Nutrients!$B$79,Nutrients!$EB$79,(IF($A$8=Nutrients!$B$77,Nutrients!$EB$77,Nutrients!$EB$78)))))*D$8))/2000","v":0.14586079396089491},{"$f":"(SUMPRODUCT(E$9:E$229,Nutrients!$EB$8:$EB$228)+(IF($A$7=Nutrients!$B$8,Nutrients!$EB$8,Nutrients!$EB$9)*E$7)+(((IF($A$8=Nutrients!$B$79,Nutrients!$EB$79,(IF($A$8=Nutrients!$B$77,Nutrients!$EB$77,Nutrients!$EB$78)))))*E$8))/2000","v":0.11735401640373964},{"$f":"(SUMPRODUCT(F$9:F$229,Nutrients!$EB$8:$EB$228)+(IF($A$7=Nutrients!$B$8,Nutrients!$EB$8,Nutrients!$EB$9)*F$7)+(((IF($A$8=Nutrients!$B$79,Nutrients!$EB$79,(IF($A$8=Nutrients!$B$77,Nutrients!$EB$77,Nutrients!$EB$78)))))*F$8))/2000","v":9.7828165821017068E-2},{"$f":"(SUMPRODUCT(G$9:G$229,Nutrients!$EB$8:$EB$228)+(IF($A$7=Nutrients!$B$8,Nutrients!$EB$8,Nutrients!$EB$9)*G$7)+(((IF($A$8=Nutrients!$B$79,Nutrients!$EB$79,(IF($A$8=Nutrients!$B$77,Nutrients!$EB$77,Nutrients!$EB$78)))))*G$8))/2000","v":8.9123540247531982E-2},null,{"$f":"(SUMPRODUCT(I$9:I$229,Nutrients!$EB$8:$EB$228)+(IF($A$7=Nutrients!$B$8,Nutrients!$EB$8,Nutrients!$EB$9)*I$7)+(((IF($A$8=Nutrients!$B$79,Nutrients!$EB$79,(IF($A$8=Nutrients!$B$77,Nutrients!$EB$77,Nutrients!$EB$78)))))*I$8))/2000","v":0.20617646914007706},{"$f":"(SUMPRODUCT(J$9:J$229,Nutrients!$EB$8:$EB$228)+(IF($A$7=Nutrients!$B$8,Nutrients!$EB$8,Nutrients!$EB$9)*J$7)+(((IF($A$8=Nutrients!$B$79,Nutrients!$EB$79,(IF($A$8=Nutrients!$B$77,Nutrients!$EB$77,Nutrients!$EB$78)))))*J$8))/2000","v":0.16792097700514308},{"$f":"(SUMPRODUCT(K$9:K$229,Nutrients!$EB$8:$EB$228)+(IF($A$7=Nutrients!$B$8,Nutrients!$EB$8,Nutrients!$EB$9)*K$7)+(((IF($A$8=Nutrients!$B$79,Nutrients!$EB$79,(IF($A$8=Nutrients!$B$77,Nutrients!$EB$77,Nutrients!$EB$78)))))*K$8))/2000","v":0.12731516617806651},{"$f":"(SUMPRODUCT(L$9:L$229,Nutrients!$EB$8:$EB$228)+(IF($A$7=Nutrients!$B$8,Nutrients!$EB$8,Nutrients!$EB$9)*L$7)+(((IF($A$8=Nutrients!$B$79,Nutrients!$EB$79,(IF($A$8=Nutrients!$B$77,Nutrients!$EB$77,Nutrients!$EB$78)))))*L$8))/2000","v":9.9510955463701603E-2},{"$f":"(SUMPRODUCT(M$9:M$229,Nutrients!$EB$8:$EB$228)+(IF($A$7=Nutrients!$B$8,Nutrients!$EB$8,Nutrients!$EB$9)*M$7)+(((IF($A$8=Nutrients!$B$79,Nutrients!$EB$79,(IF($A$8=Nutrients!$B$77,Nutrients!$EB$77,Nutrients!$EB$78)))))*M$8))/2000","v":7.9982824766641522E-2},{"$f":"(SUMPRODUCT(N$9:N$229,Nutrients!$EB$8:$EB$228)+(IF($A$7=Nutrients!$B$8,Nutrients!$EB$8,Nutrients!$EB$9)*N$7)+(((IF($A$8=Nutrients!$B$79,Nutrients!$EB$79,(IF($A$8=Nutrients!$B$77,Nutrients!$EB$77,Nutrients!$EB$78)))))*N$8))/2000","v":7.1297618525718975E-2},null,{"$f":"(SUMPRODUCT(P$9:P$229,Nutrients!$EB$8:$EB$228)+(IF($A$7=Nutrients!$B$8,Nutrients!$EB$8,Nutrients!$EB$9)*P$7)+(((IF($A$8=Nutrients!$B$79,Nutrients!$EB$79,(IF($A$8=Nutrients!$B$77,Nutrients!$EB$77,Nutrients!$EB$78)))))*P$8))/2000","v":0.18825273551548186},{"$f":"(SUMPRODUCT(Q$9:Q$229,Nutrients!$EB$8:$EB$228)+(IF($A$7=Nutrients!$B$8,Nutrients!$EB$8,Nutrients!$EB$9)*Q$7)+(((IF($A$8=Nutrients!$B$79,Nutrients!$EB$79,(IF($A$8=Nutrients!$B$77,Nutrients!$EB$77,Nutrients!$EB$78)))))*Q$8))/2000","v":0.15004117724316487},{"$f":"(SUMPRODUCT(R$9:R$229,Nutrients!$EB$8:$EB$228)+(IF($A$7=Nutrients!$B$8,Nutrients!$EB$8,Nutrients!$EB$9)*R$7)+(((IF($A$8=Nutrients!$B$79,Nutrients!$EB$79,(IF($A$8=Nutrients!$B$77,Nutrients!$EB$77,Nutrients!$EB$78)))))*R$8))/2000","v":0.10948440764037279},{"$f":"(SUMPRODUCT(S$9:S$229,Nutrients!$EB$8:$EB$228)+(IF($A$7=Nutrients!$B$8,Nutrients!$EB$8,Nutrients!$EB$9)*S$7)+(((IF($A$8=Nutrients!$B$79,Nutrients!$EB$79,(IF($A$8=Nutrients!$B$77,Nutrients!$EB$77,Nutrients!$EB$78)))))*S$8))/2000","v":8.1656822788585201E-2},{"$f":"(SUMPRODUCT(T$9:T$229,Nutrients!$EB$8:$EB$228)+(IF($A$7=Nutrients!$B$8,Nutrients!$EB$8,Nutrients!$EB$9)*T$7)+(((IF($A$8=Nutrients!$B$79,Nutrients!$EB$79,(IF($A$8=Nutrients!$B$77,Nutrients!$EB$77,Nutrients!$EB$78)))))*T$8))/2000","v":6.2168362125141735E-2},{"$f":"(SUMPRODUCT(U$9:U$229,Nutrients!$EB$8:$EB$228)+(IF($A$7=Nutrients!$B$8,Nutrients!$EB$8,Nutrients!$EB$9)*U$7)+(((IF($A$8=Nutrients!$B$79,Nutrients!$EB$79,(IF($A$8=Nutrients!$B$77,Nutrients!$EB$77,Nutrients!$EB$78)))))*U$8))/2000","v":5.3499540889059324E-2},null,{"$f":"(SUMPRODUCT(W$9:W$229,Nutrients!$EB$8:$EB$228)+(IF($A$7=Nutrients!$B$8,Nutrients!$EB$8,Nutrients!$EB$9)*W$7)+(((IF($A$8=Nutrients!$B$79,Nutrients!$EB$79,(IF($A$8=Nutrients!$B$77,Nutrients!$EB$77,Nutrients!$EB$78)))))*W$8))/2000","v":0.17032828032215069},{"$f":"(SUMPRODUCT(X$9:X$229,Nutrients!$EB$8:$EB$228)+(IF($A$7=Nutrients!$B$8,Nutrients!$EB$8,Nutrients!$EB$9)*X$7)+(((IF($A$8=Nutrients!$B$79,Nutrients!$EB$79,(IF($A$8=Nutrients!$B$77,Nutrients!$EB$77,Nutrients!$EB$78)))))*X$8))/2000","v":0.13216207706076222},{"$f":"(SUMPRODUCT(Y$9:Y$229,Nutrients!$EB$8:$EB$228)+(IF($A$7=Nutrients!$B$8,Nutrients!$EB$8,Nutrients!$EB$9)*Y$7)+(((IF($A$8=Nutrients!$B$79,Nutrients!$EB$79,(IF($A$8=Nutrients!$B$77,Nutrients!$EB$77,Nutrients!$EB$78)))))*Y$8))/2000","v":9.1582240204201942E-2},{"$f":"(SUMPRODUCT(Z$9:Z$229,Nutrients!$EB$8:$EB$228)+(IF($A$7=Nutrients!$B$8,Nutrients!$EB$8,Nutrients!$EB$9)*Z$7)+(((IF($A$8=Nutrients!$B$79,Nutrients!$EB$79,(IF($A$8=Nutrients!$B$77,Nutrients!$EB$77,Nutrients!$EB$78)))))*Z$8))/2000","v":6.3819330909430247E-2},{"$f":"(SUMPRODUCT(AA$9:AA$229,Nutrients!$EB$8:$EB$228)+(IF($A$7=Nutrients!$B$8,Nutrients!$EB$8,Nutrients!$EB$9)*AA$7)+(((IF($A$8=Nutrients!$B$79,Nutrients!$EB$79,(IF($A$8=Nutrients!$B$77,Nutrients!$EB$77,Nutrients!$EB$78)))))*AA$8))/2000","v":4.4354175383965265E-2},{"$f":"(SUMPRODUCT(AB$9:AB$229,Nutrients!$EB$8:$EB$228)+(IF($A$7=Nutrients!$B$8,Nutrients!$EB$8,Nutrients!$EB$9)*AB$7)+(((IF($A$8=Nutrients!$B$79,Nutrients!$EB$79,(IF($A$8=Nutrients!$B$77,Nutrients!$EB$77,Nutrients!$EB$78)))))*AB$8))/2000","v":3.8653253193569381E-2},null,{"$f":"(SUMPRODUCT(AD$9:AD$229,Nutrients!$EB$8:$EB$228)+(IF($A$7=Nutrients!$B$8,Nutrients!$EB$8,Nutrients!$EB$9)*AD$7)+(((IF($A$8=Nutrients!$B$79,Nutrients!$EB$79,(IF($A$8=Nutrients!$B$77,Nutrients!$EB$77,Nutrients!$EB$78)))))*AD$8))/2000","v":0.15239730282464051},{"$f":"(SUMPRODUCT(AE$9:AE$229,Nutrients!$EB$8:$EB$228)+(IF($A$7=Nutrients!$B$8,Nutrients!$EB$8,Nutrients!$EB$9)*AE$7)+(((IF($A$8=Nutrients!$B$79,Nutrients!$EB$79,(IF($A$8=Nutrients!$B$77,Nutrients!$EB$77,Nutrients!$EB$78)))))*AE$8))/2000","v":0.11421269528497896},{"$f":"(SUMPRODUCT(AF$9:AF$229,Nutrients!$EB$8:$EB$228)+(IF($A$7=Nutrients!$B$8,Nutrients!$EB$8,Nutrients!$EB$9)*AF$7)+(((IF($A$8=Nutrients!$B$79,Nutrients!$EB$79,(IF($A$8=Nutrients!$B$77,Nutrients!$EB$77,Nutrients!$EB$78)))))*AF$8))/2000","v":7.3695383668849382E-2},{"$f":"(SUMPRODUCT(AG$9:AG$229,Nutrients!$EB$8:$EB$228)+(IF($A$7=Nutrients!$B$8,Nutrients!$EB$8,Nutrients!$EB$9)*AG$7)+(((IF($A$8=Nutrients!$B$79,Nutrients!$EB$79,(IF($A$8=Nutrients!$B$77,Nutrients!$EB$77,Nutrients!$EB$78)))))*AG$8))/2000","v":4.5976691365799315E-2},{"$f":"(SUMPRODUCT(AH$9:AH$229,Nutrients!$EB$8:$EB$228)+(IF($A$7=Nutrients!$B$8,Nutrients!$EB$8,Nutrients!$EB$9)*AH$7)+(((IF($A$8=Nutrients!$B$79,Nutrients!$EB$79,(IF($A$8=Nutrients!$B$77,Nutrients!$EB$77,Nutrients!$EB$78)))))*AH$8))/2000","v":3.6708278283929884E-2},{"$f":"(SUMPRODUCT(AI$9:AI$229,Nutrients!$EB$8:$EB$228)+(IF($A$7=Nutrients!$B$8,Nutrients!$EB$8,Nutrients!$EB$9)*AI$7)+(((IF($A$8=Nutrients!$B$79,Nutrients!$EB$79,(IF($A$8=Nutrients!$B$77,Nutrients!$EB$77,Nutrients!$EB$78)))))*AI$8))/2000","v":3.4770398762124309E-2},null,{"$f":"(SUMPRODUCT(AK$9:AK$229,Nutrients!$EB$8:$EB$228)+(IF($A$7=Nutrients!$B$8,Nutrients!$EB$8,Nutrients!$EB$9)*AK$7)+(((IF($A$8=Nutrients!$B$79,Nutrients!$EB$79,(IF($A$8=Nutrients!$B$77,Nutrients!$EB$77,Nutrients!$EB$78)))))*AK$8))/2000","v":0.13448429017735269},{"$f":"(SUMPRODUCT(AL$9:AL$229,Nutrients!$EB$8:$EB$228)+(IF($A$7=Nutrients!$B$8,Nutrients!$EB$8,Nutrients!$EB$9)*AL$7)+(((IF($A$8=Nutrients!$B$79,Nutrients!$EB$79,(IF($A$8=Nutrients!$B$77,Nutrients!$EB$77,Nutrients!$EB$78)))))*AL$8))/2000","v":9.628422377386342E-2},{"$f":"(SUMPRODUCT(AM$9:AM$229,Nutrients!$EB$8:$EB$228)+(IF($A$7=Nutrients!$B$8,Nutrients!$EB$8,Nutrients!$EB$9)*AM$7)+(((IF($A$8=Nutrients!$B$79,Nutrients!$EB$79,(IF($A$8=Nutrients!$B$77,Nutrients!$EB$77,Nutrients!$EB$78)))))*AM$8))/2000","v":5.5815162586069417E-2},{"$f":"(SUMPRODUCT(AN$9:AN$229,Nutrients!$EB$8:$EB$228)+(IF($A$7=Nutrients!$B$8,Nutrients!$EB$8,Nutrients!$EB$9)*AN$7)+(((IF($A$8=Nutrients!$B$79,Nutrients!$EB$79,(IF($A$8=Nutrients!$B$77,Nutrients!$EB$77,Nutrients!$EB$78)))))*AN$8))/2000","v":3.6309770254349713E-2},{"$f":"(SUMPRODUCT(AO$9:AO$229,Nutrients!$EB$8:$EB$228)+(IF($A$7=Nutrients!$B$8,Nutrients!$EB$8,Nutrients!$EB$9)*AO$7)+(((IF($A$8=Nutrients!$B$79,Nutrients!$EB$79,(IF($A$8=Nutrients!$B$77,Nutrients!$EB$77,Nutrients!$EB$78)))))*AO$8))/2000","v":3.2808535349882574E-2},{"$f":"(SUMPRODUCT(AP$9:AP$229,Nutrients!$EB$8:$EB$228)+(IF($A$7=Nutrients!$B$8,Nutrients!$EB$8,Nutrients!$EB$9)*AP$7)+(((IF($A$8=Nutrients!$B$79,Nutrients!$EB$79,(IF($A$8=Nutrients!$B$77,Nutrients!$EB$77,Nutrients!$EB$78)))))*AP$8))/2000","v":3.0887433398608978E-2},null,{"$f":"(SUMPRODUCT(AR$9:AR$229,Nutrients!$EB$8:$EB$228)+(IF($A$7=Nutrients!$B$8,Nutrients!$EB$8,Nutrients!$EB$9)*AR$7)+(((IF($A$8=Nutrients!$B$79,Nutrients!$EB$79,(IF($A$8=Nutrients!$B$77,Nutrients!$EB$77,Nutrients!$EB$78)))))*AR$8))/2000","v":0.11670786106119536},{"$f":"(SUMPRODUCT(AS$9:AS$229,Nutrients!$EB$8:$EB$228)+(IF($A$7=Nutrients!$B$8,Nutrients!$EB$8,Nutrients!$EB$9)*AS$7)+(((IF($A$8=Nutrients!$B$79,Nutrients!$EB$79,(IF($A$8=Nutrients!$B$77,Nutrients!$EB$77,Nutrients!$EB$78)))))*AS$8))/2000","v":7.8353940044427098E-2},{"$f":"(SUMPRODUCT(AT$9:AT$229,Nutrients!$EB$8:$EB$228)+(IF($A$7=Nutrients!$B$8,Nutrients!$EB$8,Nutrients!$EB$9)*AT$7)+(((IF($A$8=Nutrients!$B$79,Nutrients!$EB$79,(IF($A$8=Nutrients!$B$77,Nutrients!$EB$77,Nutrients!$EB$78)))))*AT$8))/2000","v":3.7946277361693828E-2},{"$f":"(SUMPRODUCT(AU$9:AU$229,Nutrients!$EB$8:$EB$228)+(IF($A$7=Nutrients!$B$8,Nutrients!$EB$8,Nutrients!$EB$9)*AU$7)+(((IF($A$8=Nutrients!$B$79,Nutrients!$EB$79,(IF($A$8=Nutrients!$B$77,Nutrients!$EB$77,Nutrients!$EB$78)))))*AU$8))/2000","v":3.2386784168466048E-2},{"$f":"(SUMPRODUCT(AV$9:AV$229,Nutrients!$EB$8:$EB$228)+(IF($A$7=Nutrients!$B$8,Nutrients!$EB$8,Nutrients!$EB$9)*AV$7)+(((IF($A$8=Nutrients!$B$79,Nutrients!$EB$79,(IF($A$8=Nutrients!$B$77,Nutrients!$EB$77,Nutrients!$EB$78)))))*AV$8))/2000","v":2.8909141521704727E-2},{"$f":"(SUMPRODUCT(AW$9:AW$229,Nutrients!$EB$8:$EB$228)+(IF($A$7=Nutrients!$B$8,Nutrients!$EB$8,Nutrients!$EB$9)*AW$7)+(((IF($A$8=Nutrients!$B$79,Nutrients!$EB$79,(IF($A$8=Nutrients!$B$77,Nutrients!$EB$77,Nutrients!$EB$78)))))*AW$8))/2000","v":2.7004600643287101E-2}]
["Available P, %",{"$f":"IF((SUMPRODUCT(B$9:B$229,Nutrients!$EE$8:$EE$228))=0,B256,IF((SUMPRODUCT(B$9:B$229,Nutrients!$EE$8:$EE$228))>(1500*907),B256+0.14,B256+0.00000000006666*((SUMPRODUCT(B$9:B$229,Nutrients!$EE$8:$EE$228)/907))^3-0.00000023623322*((SUMPRODUCT(B$9:B$229,Nutrients!$EE$8:$EE$228)/907))^2+0.00029262722672*((SUMPRODUCT(B$9:B$229,Nutrients!$EE$8:$EE$228)/907))+0.007028328))","v":0.33707938392360226},{"$f":"IF((SUMPRODUCT(C$9:C$229,Nutrients!$EE$8:$EE$228))=0,C256,IF((SUMPRODUCT(C$9:C$229,Nutrients!$EE$8:$EE$228))>(1500*907),C256+0.14,C256+0.00000000006666*((SUMPRODUCT(C$9:C$229,Nutrients!$EE$8:$EE$228)/907))^3-0.00000023623322*((SUMPRODUCT(C$9:C$229,Nutrients!$EE$8:$EE$228)/907))^2+0.00029262722672*((SUMPRODUCT(C$9:C$229,Nutrients!$EE$8:$EE$228)/907))+0.007028328))","v":0.29779961116585019},{"$f":"IF((SUMPRODUCT(D$9:D$229,Nutrients!$EE$8:$EE$228))=0,D256,IF((SUMPRODUCT(D$9:D$229,Nutrients!$EE$8:$EE$228))>(1500*907),D256+0.14,D256+0.00000000006666*((SUMPRODUCT(D$9:D$229,Nutrients!$EE$8:$EE$228)/907))^3-0.00000023623322*((SUMPRODUCT(D$9:D$229,Nutrients!$EE$8:$EE$228)/907))^2+0.00029262722672*((SUMPRODUCT(D$9:D$229,Nutrients!$EE$8:$EE$228)/907))+0.007028328))","v":0.2584752344317276},{"$f":"IF((SUMPRODUCT(E$9:E$229,Nutrients!$EE$8:$EE$228))=0,E256,IF((SUMPRODUCT(E$9:E$229,Nutrients!$EE$8:$EE$228))>(1500*907),E256+0.14,E256+0.00000000006666*((SUMPRODUCT(E$9:E$229,Nutrients!$EE$8:$EE$228)/907))^3-0.00000023623322*((SUMPRODUCT(E$9:E$229,Nutrients!$EE$8:$EE$228)/907))^2+0.00029262722672*((SUMPRODUCT(E$9:E$229,Nutrients!$EE$8:$EE$228)/907))+0.007028328))","v":0.22996845687457232},{"$f":"IF((SUMPRODUCT(F$9:F$229,Nutrients!$EE$8:$EE$228))=0,F256,IF((SUMPRODUCT(F$9:F$229,Nutrients!$EE$8:$EE$228))>(1500*907),F256+0.14,F256+0.00000000006666*((SUMPRODUCT(F$9:F$229,Nutrients!$EE$8:$EE$228)/907))^3-0.00000023623322*((SUMPRODUCT(F$9:F$229,Nutrients!$EE$8:$EE$228)/907))^2+0.00029262722672*((SUMPRODUCT(F$9:F$229,Nutrients!$EE$8:$EE$228)/907))+0.007028328))","v":0.21044260629184977},{"$f":"IF((SUMPRODUCT(G$9:G$229,Nutrients!$EE$8:$EE$228))=0,G256,IF((SUMPRODUCT(G$9:G$229,Nutrients!$EE$8:$EE$228))>(1500*907),G256+0.14,G256+0.00000000006666*((SUMPRODUCT(G$9:G$229,Nutrients!$EE$8:$EE$228)/907))^3-0.00000023623322*((SUMPRODUCT(G$9:G$229,Nutrients!$EE$8:$EE$228)/907))^2+0.00029262722672*((SUMPRODUCT(G$9:G$229,Nutrients!$EE$8:$EE$228)/907))+0.007028328))","v":0.20173798071836466},null,{"$f":"IF((SUMPRODUCT(I$9:I$229,Nutrients!$EE$8:$EE$228))=0,I256,IF((SUMPRODUCT(I$9:I$229,Nutrients!$EE$8:$EE$228))>(1500*907),I256+0.14,I256+0.00000000006666*((SUMPRODUCT(I$9:I$229,Nutrients!$EE$8:$EE$228)/907))^3-0.00000023623322*((SUMPRODUCT(I$9:I$229,Nutrients!$EE$8:$EE$228)/907))^2+0.00029262722672*((SUMPRODUCT(I$9:I$229,Nutrients!$EE$8:$EE$228)/907))+0.007028328))","v":0.31879090961090972},{"$f":"IF((SUMPRODUCT(J$9:J$229,Nutrients!$EE$8:$EE$228))=0,J256,IF((SUMPRODUCT(J$9:J$229,Nutrients!$EE$8:$EE$228))>(1500*907),J256+0.14,J256+0.00000000006666*((SUMPRODUCT(J$9:J$229,Nutrients!$EE$8:$EE$228)/907))^3-0.00000023623322*((SUMPRODUCT(J$9:J$229,Nutrients!$EE$8:$EE$228)/907))^2+0.00029262722672*((SUMPRODUCT(J$9:J$229,Nutrients!$EE$8:$EE$228)/907))+0.007028328))","v":0.28053541747597577},{"$f":"IF((SUMPRODUCT(K$9:K$229,Nutrients!$EE$8:$EE$228))=0,K256,IF((SUMPRODUCT(K$9:K$229,Nutrients!$EE$8:$EE$228))>(1500*907),K256+0.14,K256+0.00000000006666*((SUMPRODUCT(K$9:K$229,Nutrients!$EE$8:$EE$228)/907))^3-0.00000023623322*((SUMPRODUCT(K$9:K$229,Nutrients!$EE$8:$EE$228)/907))^2+0.00029262722672*((SUMPRODUCT(K$9:K$229,Nutrients!$EE$8:$EE$228)/907))+0.007028328))","v":0.2399296066488992},{"$f":"IF((SUMPRODUCT(L$9:L$229,Nutrients!$EE$8:$EE$228))=0,L256,IF((SUMPRODUCT(L$9:L$229,Nutrients!$EE$8:$EE$228))>(1500*907),L256+0.14,L256+0.00000000006666*((SUMPRODUCT(L$9:L$229,Nutrients!$EE$8:$EE$228)/907))^3-0.00000023623322*((SUMPRODUCT(L$9:L$229,Nutrients!$EE$8:$EE$228)/907))^2+0.00029262722672*((SUMPRODUCT(L$9:L$229,Nutrients!$EE$8:$EE$228)/907))+0.007028328))","v":0.21212539593453431},{"$f":"IF((SUMPRODUCT(M$9:M$229,Nutrients!$EE$8:$EE$228))=0,M256,IF((SUMPRODUCT(M$9:M$229,Nutrients!$EE$8:$EE$228))>(1500*907),M256+0.14,M256+0.00000000006666*((SUMPRODUCT(M$9:M$229,Nutrients!$EE$8:$EE$228)/907))^3-0.00000023623322*((SUMPRODUCT(M$9:M$229,Nutrients!$EE$8:$EE$228)/907))^2+0.00029262722672*((SUMPRODUCT(M$9:M$229,Nutrients!$EE$8:$EE$228)/907))+0.007028328))","v":0.1925972652374742},{"$f":"IF((SUMPRODUCT(N$9:N$229,Nutrients!$EE$8:$EE$228))=0,N256,IF((SUMPRODUCT(N$9:N$229,Nutrients!$EE$8:$EE$228))>(1500*907),N256+0.14,N256+0.00000000006666*((SUMPRODUCT(N$9:N$229,Nutrients!$EE$8:$EE$228)/907))^3-0.00000023623322*((SUMPRODUCT(N$9:N$229,Nutrients!$EE$8:$EE$228)/907))^2+0.00029262722672*((SUMPRODUCT(N$9:N$229,Nutrients!$EE$8:$EE$228)/907))+0.007028328))","v":0.18391205899655166},null,{"$f":"IF((SUMPRODUCT(P$9:P$229,Nutrients!$EE$8:$EE$228))=0,P256,IF((SUMPRODUCT(P$9:P$229,Nutrients!$EE$8:$EE$228))>(1500*907),P256+0.14,P256+0.00000000006666*((SUMPRODUCT(P$9:P$229,Nutrients!$EE$8:$EE$228)/907))^3-0.00000023623322*((SUMPRODUCT(P$9:P$229,Nutrients!$EE$8:$EE$228)/907))^2+0.00029262722672*((SUMPRODUCT(P$9:P$229,Nutrients!$EE$8:$EE$228)/907))+0.007028328))","v":0.30086717598631452},{"$f":"IF((SUMPRODUCT(Q$9:Q$229,Nutrients!$EE$8:$EE$228))=0,Q256,IF((SUMPRODUCT(Q$9:Q$229,Nutrients!$EE$8:$EE$228))>(1500*907),Q256+0.14,Q256+0.00000000006666*((SUMPRODUCT(Q$9:Q$229,Nutrients!$EE$8:$EE$228)/907))^3-0.00000023623322*((SUMPRODUCT(Q$9:Q$229,Nutrients!$EE$8:$EE$228)/907))^2+0.00029262722672*((SUMPRODUCT(Q$9:Q$229,Nutrients!$EE$8:$EE$228)/907))+0.007028328))","v":0.26265561771399759},{"$f":"IF((SUMPRODUCT(R$9:R$229,Nutrients!$EE$8:$EE$228))=0,R256,IF((SUMPRODUCT(R$9:R$229,Nutrients!$EE$8:$EE$228))>(1500*907),R256+0.14,R256+0.00000000006666*((SUMPRODUCT(R$9:R$229,Nutrients!$EE$8:$EE$228)/907))^3-0.00000023623322*((SUMPRODUCT(R$9:R$229,Nutrients!$EE$8:$EE$228)/907))^2+0.00029262722672*((SUMPRODUCT(R$9:R$229,Nutrients!$EE$8:$EE$228)/907))+0.007028328))","v":0.22209884811120548},{"$f":"IF((SUMPRODUCT(S$9:S$229,Nutrients!$EE$8:$EE$228))=0,S256,IF((SUMPRODUCT(S$9:S$229,Nutrients!$EE$8:$EE$228))>(1500*907),S256+0.14,S256+0.00000000006666*((SUMPRODUCT(S$9:S$229,Nutrients!$EE$8:$EE$228)/907))^3-0.00000023623322*((SUMPRODUCT(S$9:S$229,Nutrients!$EE$8:$EE$228)/907))^2+0.00029262722672*((SUMPRODUCT(S$9:S$229,Nutrients!$EE$8:$EE$228)/907))+0.007028328))","v":0.19427126325941788},{"$f":"IF((SUMPRODUCT(T$9:T$229,Nutrients!$EE$8:$EE$228))=0,T256,IF((SUMPRODUCT(T$9:T$229,Nutrients!$EE$8:$EE$228))>(1500*907),T256+0.14,T256+0.00000000006666*((SUMPRODUCT(T$9:T$229,Nutrients!$EE$8:$EE$228)/907))^3-0.00000023623322*((SUMPRODUCT(T$9:T$229,Nutrients!$EE$8:$EE$228)/907))^2+0.00029262722672*((SUMPRODUCT(T$9:T$229,Nutrients!$EE$8:$EE$228)/907))+0.007028328))","v":0.17478280259597442},{"$f":"IF((SUMPRODUCT(U$9:U$229,Nutrients!$EE$8:$EE$228))=0,U256,IF((SUMPRODUCT(U$9:U$229,Nutrients!$EE$8:$EE$228))>(1500*907),U256+0.14,U256+0.00000000006666*((SUMPRODUCT(U$9:U$229,Nutrients!$EE$8:$EE$228)/907))^3-0.00000023623322*((SUMPRODUCT(U$9:U$229,Nutrients!$EE$8:$EE$228)/907))^2+0.00029262722672*((SUMPRODUCT(U$9:U$229,Nutrients!$EE$8:$EE$228)/907))+0.007028328))","v":0.166113981359892},null,{"$f":"IF((SUMPRODUCT(W$9:W$229,Nutrients!$EE$8:$EE$228))=0,W256,IF((SUMPRODUCT(W$9:W$229,Nutrients!$EE$8:$EE$228))>(1500*907),W256+0.14,W256+0.00000000006666*((SUMPRODUCT(W$9:W$229,Nutrients!$EE$8:$EE$228)/907))^3-0.00000023623322*((SUMPRODUCT(W$9:W$229,Nutrients!$EE$8:$EE$228)/907))^2+0.00029262722672*((SUMPRODUCT(W$9:W$229,Nutrients!$EE$8:$EE$228)/907))+0.007028328))","v":0.28294272079298333},{"$f":"IF((SUMPRODUCT(X$9:X$229,Nutrients!$EE$8:$EE$228))=0,X256,IF((SUMPRODUCT(X$9:X$229,Nutrients!$EE$8:$EE$228))>(1500*907),X256+0.14,X256+0.00000000006666*((SUMPRODUCT(X$9:X$229,Nutrients!$EE$8:$EE$228)/907))^3-0.00000023623322*((SUMPRODUCT(X$9:X$229,Nutrients!$EE$8:$EE$228)/907))^2+0.00029262722672*((SUMPRODUCT(X$9:X$229,Nutrients!$EE$8:$EE$228)/907))+0.007028328))","v":0.24477651753159488},{"$f":"IF((SUMPRODUCT(Y$9:Y$229,Nutrients!$EE$8:$EE$228))=0,Y256,IF((SUMPRODUCT(Y$9:Y$229,Nutrients!$EE$8:$EE$228))>(1500*907),Y256+0.14,Y256+0.00000000006666*((SUMPRODUCT(Y$9:Y$229,Nutrients!$EE$8:$EE$228)/907))^3-0.00000023623322*((SUMPRODUCT(Y$9:Y$229,Nutrients!$EE$8:$EE$228)/907))^2+0.00029262722672*((SUMPRODUCT(Y$9:Y$229,Nutrients!$EE$8:$EE$228)/907))+0.007028328))","v":0.20419668067503463},{"$f":"IF((SUMPRODUCT(Z$9:Z$229,Nutrients!$EE$8:$EE$228))=0,Z256,IF((SUMPRODUCT(Z$9:Z$229,Nutrients!$EE$8:$EE$228))>(1500*907),Z256+0.14,Z256+0.00000000006666*((SUMPRODUCT(Z$9:Z$229,Nutrients!$EE$8:$EE$228)/907))^3-0.00000023623322*((SUMPRODUCT(Z$9:Z$229,Nutrients!$EE$8:$EE$228)/907))^2+0.00029262722672*((SUMPRODUCT(Z$9:Z$229,Nutrients!$EE$8:$EE$228)/907))+0.007028328))","v":0.17643377138026292},{"$f":"IF((SUMPRODUCT(AA$9:AA$229,Nutrients!$EE$8:$EE$228))=0,AA256,IF((SUMPRODUCT(AA$9:AA$229,Nutrients!$EE$8:$EE$228))>(1500*907),AA256+0.14,AA256+0.00000000006666*((SUMPRODUCT(AA$9:AA$229,Nutrients!$EE$8:$EE$228)/907))^3-0.00000023623322*((SUMPRODUCT(AA$9:AA$229,Nutrients!$EE$8:$EE$228)/907))^2+0.00029262722672*((SUMPRODUCT(AA$9:AA$229,Nutrients!$EE$8:$EE$228)/907))+0.007028328))","v":0.15696861585479796},{"$f":"IF((SUMPRODUCT(AB$9:AB$229,Nutrients!$EE$8:$EE$228))=0,AB256,IF((SUMPRODUCT(AB$9:AB$229,Nutrients!$EE$8:$EE$228))>(1500*907),AB256+0.14,AB256+0.00000000006666*((SUMPRODUCT(AB$9:AB$229,Nutrients!$EE$8:$EE$228)/907))^3-0.00000023623322*((SUMPRODUCT(AB$9:AB$229,Nutrients!$EE$8:$EE$228)/907))^2+0.00029262722672*((SUMPRODUCT(AB$9:AB$229,Nutrients!$EE$8:$EE$228)/907))+0.007028328))","v":0.15126769366440207},null,{"$f":"IF((SUMPRODUCT(AD$9:AD$229,Nutrients!$EE$8:$EE$228))=0,AD256,IF((SUMPRODUCT(AD$9:AD$229,Nutrients!$EE$8:$EE$228))>(1500*907),AD256+0.14,AD256+0.00000000006666*((SUMPRODUCT(AD$9:AD$229,Nutrients!$EE$8:$EE$228)/907))^3-0.00000023623322*((SUMPRODUCT(AD$9:AD$229,Nutrients!$EE$8:$EE$228)/907))^2+0.00029262722672*((SUMPRODUCT(AD$9:AD$229,Nutrients!$EE$8:$EE$228)/907))+0.007028328))","v":0.26501174329547317},{"$f":"IF((SUMPRODUCT(AE$9:AE$229,Nutrients!$EE$8:$EE$228))=0,AE256,IF((SUMPRODUCT(AE$9:AE$229,Nutrients!$EE$8:$EE$228))>(1500*907),AE256+0.14,AE256+0.00000000006666*((SUMPRODUCT(AE$9:AE$229,Nutrients!$EE$8:$EE$228)/907))^3-0.00000023623322*((SUMPRODUCT(AE$9:AE$229,Nutrients!$EE$8:$EE$228)/907))^2+0.00029262722672*((SUMPRODUCT(AE$9:AE$229,Nutrients!$EE$8:$EE$228)/907))+0.007028328))","v":0.22682713575581162},{"$f":"IF((SUMPRODUCT(AF$9:AF$229,Nutrients!$EE$8:$EE$228))=0,AF256,IF((SUMPRODUCT(AF$9:AF$229,Nutrients!$EE$8:$EE$228))>(1500*907),AF256+0.14,AF256+0.00000000006666*((SUMPRODUCT(AF$9:AF$229,Nutrients!$EE$8:$EE$228)/907))^3-0.00000023623322*((SUMPRODUCT(AF$9:AF$229,Nutrients!$EE$8:$EE$228)/907))^2+0.00029262722672*((SUMPRODUCT(AF$9:AF$229,Nutrients!$EE$8:$EE$228)/907))+0.007028328))","v":0.18630982413968208},{"$f":"IF((SUMPRODUCT(AG$9:AG$229,Nutrients!$EE$8:$EE$228))=0,AG256,IF((SUMPRODUCT(AG$9:AG$229,Nutrients!$EE$8:$EE$228))>(1500*907),AG256+0.14,AG256+0.00000000006666*((SUMPRODUCT(AG$9:AG$229,Nutrients!$EE$8:$EE$228)/907))^3-0.00000023623322*((SUMPRODUCT(AG$9:AG$229,Nutrients!$EE$8:$EE$228)/907))^2+0.00029262722672*((SUMPRODUCT(AG$9:AG$229,Nutrients!$EE$8:$EE$228)/907))+0.007028328))","v":0.15859113183663201},{"$f":"IF((SUMPRODUCT(AH$9:AH$229,Nutrients!$EE$8:$EE$228))=0,AH256,IF((SUMPRODUCT(AH$9:AH$229,Nutrients!$EE$8:$EE$228))>(1500*907),AH256+0.14,AH256+0.00000000006666*((SUMPRODUCT(AH$9:AH$229,Nutrients!$EE$8:$EE$228)/907))^3-0.00000023623322*((SUMPRODUCT(AH$9:AH$229,Nutrients!$EE$8:$EE$228)/907))^2+0.00029262722672*((SUMPRODUCT(AH$9:AH$229,Nutrients!$EE$8:$EE$228)/907))+0.007028328))","v":0.14932271875476258},{"$f":"IF((SUMPRODUCT(AI$9:AI$229,Nutrients!$EE$8:$EE$228))=0,AI256,IF((SUMPRODUCT(AI$9:AI$229,Nutrients!$EE$8:$EE$228))>(1500*907),AI256+0.14,AI256+0.00000000006666*((SUMPRODUCT(AI$9:AI$229,Nutrients!$EE$8:$EE$228)/907))^3-0.00000023623322*((SUMPRODUCT(AI$9:AI$229,Nutrients!$EE$8:$EE$228)/907))^2+0.00029262722672*((SUMPRODUCT(AI$9:AI$229,Nutrients!$EE$8:$EE$228)/907))+0.007028328))","v":0.147384839232957},null,{"$f":"IF((SUMPRODUCT(AK$9:AK$229,Nutrients!$EE$8:$EE$228))=0,AK256,IF((SUMPRODUCT(AK$9:AK$229,Nutrients!$EE$8:$EE$228))>(1500*907),AK256+0.14,AK256+0.00000000006666*((SUMPRODUCT(AK$9:AK$229,Nutrients!$EE$8:$EE$228)/907))^3-0.00000023623322*((SUMPRODUCT(AK$9:AK$229,Nutrients!$EE$8:$EE$228)/907))^2+0.00029262722672*((SUMPRODUCT(AK$9:AK$229,Nutrients!$EE$8:$EE$228)/907))+0.007028328))","v":0.24709873064818536},{"$f":"IF((SUMPRODUCT(AL$9:AL$229,Nutrients!$EE$8:$EE$228))=0,AL256,IF((SUMPRODUCT(AL$9:AL$229,Nutrients!$EE$8:$EE$228))>(1500*907),AL256+0.14,AL256+0.00000000006666*((SUMPRODUCT(AL$9:AL$229,Nutrients!$EE$8:$EE$228)/907))^3-0.00000023623322*((SUMPRODUCT(AL$9:AL$229,Nutrients!$EE$8:$EE$228)/907))^2+0.00029262722672*((SUMPRODUCT(AL$9:AL$229,Nutrients!$EE$8:$EE$228)/907))+0.007028328))","v":0.20889866424469611},{"$f":"IF((SUMPRODUCT(AM$9:AM$229,Nutrients!$EE$8:$EE$228))=0,AM256,IF((SUMPRODUCT(AM$9:AM$229,Nutrients!$EE$8:$EE$228))>(1500*907),AM256+0.14,AM256+0.00000000006666*((SUMPRODUCT(AM$9:AM$229,Nutrients!$EE$8:$EE$228)/907))^3-0.00000023623322*((SUMPRODUCT(AM$9:AM$229,Nutrients!$EE$8:$EE$228)/907))^2+0.00029262722672*((SUMPRODUCT(AM$9:AM$229,Nutrients!$EE$8:$EE$228)/907))+0.007028328))","v":0.16842960305690211},{"$f":"IF((SUMPRODUCT(AN$9:AN$229,Nutrients!$EE$8:$EE$228))=0,AN256,IF((SUMPRODUCT(AN$9:AN$229,Nutrients!$EE$8:$EE$228))>(1500*907),AN256+0.14,AN256+0.00000000006666*((SUMPRODUCT(AN$9:AN$229,Nutrients!$EE$8:$EE$228)/907))^3-0.00000023623322*((SUMPRODUCT(AN$9:AN$229,Nutrients!$EE$8:$EE$228)/907))^2+0.00029262722672*((SUMPRODUCT(AN$9:AN$229,Nutrients!$EE$8:$EE$228)/907))+0.007028328))","v":0.14892421072518239},{"$f":"IF((SUMPRODUCT(AO$9:AO$229,Nutrients!$EE$8:$EE$228))=0,AO256,IF((SUMPRODUCT(AO$9:AO$229,Nutrients!$EE$8:$EE$228))>(1500*907),AO256+0.14,AO256+0.00000000006666*((SUMPRODUCT(AO$9:AO$229,Nutrients!$EE$8:$EE$228)/907))^3-0.00000023623322*((SUMPRODUCT(AO$9:AO$229,Nutrients!$EE$8:$EE$228)/907))^2+0.00029262722672*((SUMPRODUCT(AO$9:AO$229,Nutrients!$EE$8:$EE$228)/907))+0.007028328))","v":0.14542297582071526},{"$f":"IF((SUMPRODUCT(AP$9:AP$229,Nutrients!$EE$8:$EE$228))=0,AP256,IF((SUMPRODUCT(AP$9:AP$229,Nutrients!$EE$8:$EE$228))>(1500*907),AP256+0.14,AP256+0.00000000006666*((SUMPRODUCT(AP$9:AP$229,Nutrients!$EE$8:$EE$228)/907))^3-0.00000023623322*((SUMPRODUCT(AP$9:AP$229,Nutrients!$EE$8:$EE$228)/907))^2+0.00029262722672*((SUMPRODUCT(AP$9:AP$229,Nutrients!$EE$8:$EE$228)/907))+0.007028328))","v":0.14350187386944166},null,{"$f":"IF((SUMPRODUCT(AR$9:AR$229,Nutrients!$EE$8:$EE$228))=0,AR256,IF((SUMPRODUCT(AR$9:AR$229,Nutrients!$EE$8:$EE$228))>(1500*907),AR256+0.14,AR256+0.00000000006666*((SUMPRODUCT(AR$9:AR$229,Nutrients!$EE$8:$EE$228)/907))^3-0.00000023623322*((SUMPRODUCT(AR$9:AR$229,Nutrients!$EE$8:$EE$228)/907))^2+0.00029262722672*((SUMPRODUCT(AR$9:AR$229,Nutrients!$EE$8:$EE$228)/907))+0.007028328))","v":0.22932230153202807},{"$f":"IF((SUMPRODUCT(AS$9:AS$229,Nutrients!$EE$8:$EE$228))=0,AS256,IF((SUMPRODUCT(AS$9:AS$229,Nutrients!$EE$8:$EE$228))>(1500*907),AS256+0.14,AS256+0.00000000006666*((SUMPRODUCT(AS$9:AS$229,Nutrients!$EE$8:$EE$228)/907))^3-0.00000023623322*((SUMPRODUCT(AS$9:AS$229,Nutrients!$EE$8:$EE$228)/907))^2+0.00029262722672*((SUMPRODUCT(AS$9:AS$229,Nutrients!$EE$8:$EE$228)/907))+0.007028328))","v":0.1909683805152598},{"$f":"IF((SUMPRODUCT(AT$9:AT$229,Nutrients!$EE$8:$EE$228))=0,AT256,IF((SUMPRODUCT(AT$9:AT$229,Nutrients!$EE$8:$EE$228))>(1500*907),AT256+0.14,AT256+0.00000000006666*((SUMPRODUCT(AT$9:AT$229,Nutrients!$EE$8:$EE$228)/907))^3-0.00000023623322*((SUMPRODUCT(AT$9:AT$229,Nutrients!$EE$8:$EE$228)/907))^2+0.00029262722672*((SUMPRODUCT(AT$9:AT$229,Nutrients!$EE$8:$EE$228)/907))+0.007028328))","v":0.15056071783252653},{"$f":"IF((SUMPRODUCT(AU$9:AU$229,Nutrients!$EE$8:$EE$228))=0,AU256,IF((SUMPRODUCT(AU$9:AU$229,Nutrients!$EE$8:$EE$228))>(1500*907),AU256+0.14,AU256+0.00000000006666*((SUMPRODUCT(AU$9:AU$229,Nutrients!$EE$8:$EE$228)/907))^3-0.00000023623322*((SUMPRODUCT(AU$9:AU$229,Nutrients!$EE$8:$EE$228)/907))^2+0.00029262722672*((SUMPRODUCT(AU$9:AU$229,Nutrients!$EE$8:$EE$228)/907))+0.007028328))","v":0.14500122463929874},{"$f":"IF((SUMPRODUCT(AV$9:AV$229,Nutrients!$EE$8:$EE$228))=0,AV256,IF((SUMPRODUCT(AV$9:AV$229,Nutrients!$EE$8:$EE$228))>(1500*907),AV256+0.14,AV256+0.00000000006666*((SUMPRODUCT(AV$9:AV$229,Nutrients!$EE$8:$EE$228)/907))^3-0.00000023623322*((SUMPRODUCT(AV$9:AV$229,Nutrients!$EE$8:$EE$228)/907))^2+0.00029262722672*((SUMPRODUCT(AV$9:AV$229,Nutrients!$EE$8:$EE$228)/907))+0.007028328))","v":0.14152358199253742},{"$f":"IF((SUMPRODUCT(AW$9:AW$229,Nutrients!$EE$8:$EE$228))=0,AW256,IF((SUMPRODUCT(AW$9:AW$229,Nutrients!$EE$8:$EE$228))>(1500*907),AW256+0.14,AW256+0.00000000006666*((SUMPRODUCT(AW$9:AW$229,Nutrients!$EE$8:$EE$228)/907))^3-0.00000023623322*((SUMPRODUCT(AW$9:AW$229,Nutrients!$EE$8:$EE$228)/907))^2+0.00029262722672*((SUMPRODUCT(AW$9:AW$229,Nutrients!$EE$8:$EE$228)/907))+0.007028328))","v":0.1396190411141198}]
["Avail P:calorie ratio g/mcal",{"$f":"IF(B$5=\"\",\"\",(B257)/(B246*2.2046)*10000)","v":1.0228158443854305},0.90093891102253687,0.7799032683037318,0.69195878210567852,0.63170249608403195,0.60499551704383758,null,{"$f":"IF(I$5=\"\",\"\",(I257)/(I246*2.2046)*10000)","v":0.96524850029692955},0.84695120232745225,0.72235771507724533,0.63692099104377498,0.57693206188264778,0.55036783892629537,null,{"$f":"IF(P$5=\"\",\"\",(P257)/(P246*2.2046)*10000)","v":0.90904742596491472},0.79127782296035887,0.66725320771707464,0.58206371606139518,0.52245196453778064,0.49605216241934885,null,{"$f":"IF(W$5=\"\",\"\",(W257)/(W246*2.2046)*10000)","v":0.85306634282947358},0.73584361486658023,0.61214687270229895,0.52747525796531625,0.46815779103680133,0.45080622405621851,null,{"$f":"IF(AD$5=\"\",\"\",(AD257)/(AD246*2.2046)*10000)","v":0.79728316981652503},0.68040836363996915,0.55730598775477536,0.47307633364211765,0.44466468602514725,0.43866126340084854,null,{"$f":"IF(AK$5=\"\",\"\",(AK257)/(AK246*2.2046)*10000)","v":0.74179246556338252},0.62529195994879472,0.50270967403364741,0.44349074832401914,0.43248675526131902,0.42654938167724304,null,{"$f":"IF(AR$5=\"\",\"\",(AR257)/(AR246*2.2046)*10000)","v":0.68697737926988012},0.57037387967812159,0.44837813246748925,0.43124499456054011,0.42034164711684124,0.41446935750015712]
["Stand. Dig. P w/out phytase, %",{"$f":"((SUMPRODUCT(B$9:B$229,Nutrients!$DR$8:$DR$228)+(IF($A$7=Nutrients!$B$8,Nutrients!$DR$8,Nutrients!$DR$9)*B$7)+(((IF($A$8=Nutrients!$B$79,Nutrients!$DR$79,(IF($A$8=Nutrients!$B$77,Nutrients!$DR$77,Nutrients!$DR$78)))))*B$8))/2000)","v":0.29000063647666452},{"$f":"((SUMPRODUCT(C$9:C$229,Nutrients!$DR$8:$DR$228)+(IF($A$7=Nutrients!$B$8,Nutrients!$DR$8,Nutrients!$DR$9)*C$7)+(((IF($A$8=Nutrients!$B$79,Nutrients!$DR$79,(IF($A$8=Nutrients!$B$77,Nutrients!$DR$77,Nutrients!$DR$78)))))*C$8))/2000)","v":0.24988069387487893},{"$f":"((SUMPRODUCT(D$9:D$229,Nutrients!$DR$8:$DR$228)+(IF($A$7=Nutrients!$B$8,Nutrients!$DR$8,Nutrients!$DR$9)*D$7)+(((IF($A$8=Nutrients!$B$79,Nutrients!$DR$79,(IF($A$8=Nutrients!$B$77,Nutrients!$DR$77,Nutrients!$DR$78)))))*D$8))/2000)","v":0.21060453785177027},{"$f":"((SUMPRODUCT(E$9:E$229,Nutrients!$DR$8:$DR$228)+(IF($A$7=Nutrients!$B$8,Nutrients!$DR$8,Nutrients!$DR$9)*E$7)+(((IF($A$8=Nutrients!$B$79,Nutrients!$DR$79,(IF($A$8=Nutrients!$B$77,Nutrients!$DR$77,Nutrients!$DR$78)))))*E$8))/2000)","v":0.18085065848336068},{"$f":"((SUMPRODUCT(F$9:F$229,Nutrients!$DR$8:$DR$228)+(IF($A$7=Nutrients!$B$8,Nutrients!$DR$8,Nutrients!$DR$9)*F$7)+(((IF($A$8=Nutrients!$B$79,Nutrients!$DR$79,(IF($A$8=Nutrients!$B$77,Nutrients!$DR$77,Nutrients!$DR$78)))))*F$8))/2000)","v":0.15971179439767599},{"$f":"((SUMPRODUCT(G$9:G$229,Nutrients!$DR$8:$DR$228)+(IF($A$7=Nutrients!$B$8,Nutrients!$DR$8,Nutrients!$DR$9)*G$7)+(((IF($A$8=Nutrients!$B$79,Nutrients!$DR$79,(IF($A$8=Nutrients!$B$77,Nutrients!$DR$77,Nutrients!$DR$78)))))*G$8))/2000)","v":0.14985099986346795},null,{"$f":"((SUMPRODUCT(I$9:I$229,Nutrients!$DR$8:$DR$228)+(IF($A$7=Nutrients!$B$8,Nutrients!$DR$8,Nutrients!$DR$9)*I$7)+(((IF($A$8=Nutrients!$B$79,Nutrients!$DR$79,(IF($A$8=Nutrients!$B$77,Nutrients!$DR$77,Nutrients!$DR$78)))))*I$8))/2000)","v":0.28948527871733398},{"$f":"((SUMPRODUCT(J$9:J$229,Nutrients!$DR$8:$DR$228)+(IF($A$7=Nutrients!$B$8,Nutrients!$DR$8,Nutrients!$DR$9)*J$7)+(((IF($A$8=Nutrients!$B$79,Nutrients!$DR$79,(IF($A$8=Nutrients!$B$77,Nutrients!$DR$77,Nutrients!$DR$78)))))*J$8))/2000)","v":0.25034977701360678},{"$f":"((SUMPRODUCT(K$9:K$229,Nutrients!$DR$8:$DR$228)+(IF($A$7=Nutrients!$B$8,Nutrients!$DR$8,Nutrients!$DR$9)*K$7)+(((IF($A$8=Nutrients!$B$79,Nutrients!$DR$79,(IF($A$8=Nutrients!$B$77,Nutrients!$DR$77,Nutrients!$DR$78)))))*K$8))/2000)","v":0.21001116657797872},{"$f":"((SUMPRODUCT(L$9:L$229,Nutrients!$DR$8:$DR$228)+(IF($A$7=Nutrients!$B$8,Nutrients!$DR$8,Nutrients!$DR$9)*L$7)+(((IF($A$8=Nutrients!$B$79,Nutrients!$DR$79,(IF($A$8=Nutrients!$B$77,Nutrients!$DR$77,Nutrients!$DR$78)))))*L$8))/2000)","v":0.1809228055145897},{"$f":"((SUMPRODUCT(M$9:M$229,Nutrients!$DR$8:$DR$228)+(IF($A$7=Nutrients!$B$8,Nutrients!$DR$8,Nutrients!$DR$9)*M$7)+(((IF($A$8=Nutrients!$B$79,Nutrients!$DR$79,(IF($A$8=Nutrients!$B$77,Nutrients!$DR$77,Nutrients!$DR$78)))))*M$8))/2000)","v":0.15977980515692081},{"$f":"((SUMPRODUCT(N$9:N$229,Nutrients!$DR$8:$DR$228)+(IF($A$7=Nutrients!$B$8,Nutrients!$DR$8,Nutrients!$DR$9)*N$7)+(((IF($A$8=Nutrients!$B$79,Nutrients!$DR$79,(IF($A$8=Nutrients!$B$77,Nutrients!$DR$77,Nutrients!$DR$78)))))*N$8))/2000)","v":0.14995676513904033},null,{"$f":"((SUMPRODUCT(P$9:P$229,Nutrients!$DR$8:$DR$228)+(IF($A$7=Nutrients!$B$8,Nutrients!$DR$8,Nutrients!$DR$9)*P$7)+(((IF($A$8=Nutrients!$B$79,Nutrients!$DR$79,(IF($A$8=Nutrients!$B$77,Nutrients!$DR$77,Nutrients!$DR$78)))))*P$8))/2000)","v":0.28939758571940299},{"$f":"((SUMPRODUCT(Q$9:Q$229,Nutrients!$DR$8:$DR$228)+(IF($A$7=Nutrients!$B$8,Nutrients!$DR$8,Nutrients!$DR$9)*Q$7)+(((IF($A$8=Nutrients!$B$79,Nutrients!$DR$79,(IF($A$8=Nutrients!$B$77,Nutrients!$DR$77,Nutrients!$DR$78)))))*Q$8))/2000)","v":0.25034839134717191},{"$f":"((SUMPRODUCT(R$9:R$229,Nutrients!$DR$8:$DR$228)+(IF($A$7=Nutrients!$B$8,Nutrients!$DR$8,Nutrients!$DR$9)*R$7)+(((IF($A$8=Nutrients!$B$79,Nutrients!$DR$79,(IF($A$8=Nutrients!$B$77,Nutrients!$DR$77,Nutrients!$DR$78)))))*R$8))/2000)","v":0.21010745424820004},{"$f":"((SUMPRODUCT(S$9:S$229,Nutrients!$DR$8:$DR$228)+(IF($A$7=Nutrients!$B$8,Nutrients!$DR$8,Nutrients!$DR$9)*S$7)+(((IF($A$8=Nutrients!$B$79,Nutrients!$DR$79,(IF($A$8=Nutrients!$B$77,Nutrients!$DR$77,Nutrients!$DR$78)))))*S$8))/2000)","v":0.18097222144542821},{"$f":"((SUMPRODUCT(T$9:T$229,Nutrients!$DR$8:$DR$228)+(IF($A$7=Nutrients!$B$8,Nutrients!$DR$8,Nutrients!$DR$9)*T$7)+(((IF($A$8=Nutrients!$B$79,Nutrients!$DR$79,(IF($A$8=Nutrients!$B$77,Nutrients!$DR$77,Nutrients!$DR$78)))))*T$8))/2000)","v":0.15990793547491652},{"$f":"((SUMPRODUCT(U$9:U$229,Nutrients!$DR$8:$DR$228)+(IF($A$7=Nutrients!$B$8,Nutrients!$DR$8,Nutrients!$DR$9)*U$7)+(((IF($A$8=Nutrients!$B$79,Nutrients!$DR$79,(IF($A$8=Nutrients!$B$77,Nutrients!$DR$77,Nutrients!$DR$78)))))*U$8))/2000)","v":0.1501176197783067},null,{"$f":"((SUMPRODUCT(W$9:W$229,Nutrients!$DR$8:$DR$228)+(IF($A$7=Nutrients!$B$8,Nutrients!$DR$8,Nutrients!$DR$9)*W$7)+(((IF($A$8=Nutrients!$B$79,Nutrients!$DR$79,(IF($A$8=Nutrients!$B$77,Nutrients!$DR$77,Nutrients!$DR$78)))))*W$8))/2000)","v":0.28930805695141754},{"$f":"((SUMPRODUCT(X$9:X$229,Nutrients!$DR$8:$DR$228)+(IF($A$7=Nutrients!$B$8,Nutrients!$DR$8,Nutrients!$DR$9)*X$7)+(((IF($A$8=Nutrients!$B$79,Nutrients!$DR$79,(IF($A$8=Nutrients!$B$77,Nutrients!$DR$77,Nutrients!$DR$78)))))*X$8))/2000)","v":0.2503486947217291},{"$f":"((SUMPRODUCT(Y$9:Y$229,Nutrients!$DR$8:$DR$228)+(IF($A$7=Nutrients!$B$8,Nutrients!$DR$8,Nutrients!$DR$9)*Y$7)+(((IF($A$8=Nutrients!$B$79,Nutrients!$DR$79,(IF($A$8=Nutrients!$B$77,Nutrients!$DR$77,Nutrients!$DR$78)))))*Y$8))/2000)","v":0.21006124825435171},{"$f":"((SUMPRODUCT(Z$9:Z$229,Nutrients!$DR$8:$DR$228)+(IF($A$7=Nutrients!$B$8,Nutrients!$DR$8,Nutrients!$DR$9)*Z$7)+(((IF($A$8=Nutrients!$B$79,Nutrients!$DR$79,(IF($A$8=Nutrients!$B$77,Nutrients!$DR$77,Nutrients!$DR$78)))))*Z$8))/2000)","v":0.18105388650611606},{"$f":"((SUMPRODUCT(AA$9:AA$229,Nutrients!$DR$8:$DR$228)+(IF($A$7=Nutrients!$B$8,Nutrients!$DR$8,Nutrients!$DR$9)*AA$7)+(((IF($A$8=Nutrients!$B$79,Nutrients!$DR$79,(IF($A$8=Nutrients!$B$77,Nutrients!$DR$77,Nutrients!$DR$78)))))*AA$8))/2000)","v":0.16003395350507457},{"$f":"((SUMPRODUCT(AB$9:AB$229,Nutrients!$DR$8:$DR$228)+(IF($A$7=Nutrients!$B$8,Nutrients!$DR$8,Nutrients!$DR$9)*AB$7)+(((IF($A$8=Nutrients!$B$79,Nutrients!$DR$79,(IF($A$8=Nutrients!$B$77,Nutrients!$DR$77,Nutrients!$DR$78)))))*AB$8))/2000)","v":0.15285889920496507},null,{"$f":"((SUMPRODUCT(AD$9:AD$229,Nutrients!$DR$8:$DR$228)+(IF($A$7=Nutrients!$B$8,Nutrients!$DR$8,Nutrients!$DR$9)*AD$7)+(((IF($A$8=Nutrients!$B$79,Nutrients!$DR$79,(IF($A$8=Nutrients!$B$77,Nutrients!$DR$77,Nutrients!$DR$78)))))*AD$8))/2000)","v":0.28920497215536695},{"$f":"((SUMPRODUCT(AE$9:AE$229,Nutrients!$DR$8:$DR$228)+(IF($A$7=Nutrients!$B$8,Nutrients!$DR$8,Nutrients!$DR$9)*AE$7)+(((IF($A$8=Nutrients!$B$79,Nutrients!$DR$79,(IF($A$8=Nutrients!$B$77,Nutrients!$DR$77,Nutrients!$DR$78)))))*AE$8))/2000)","v":0.25020870229148762},{"$f":"((SUMPRODUCT(AF$9:AF$229,Nutrients!$DR$8:$DR$228)+(IF($A$7=Nutrients!$B$8,Nutrients!$DR$8,Nutrients!$DR$9)*AF$7)+(((IF($A$8=Nutrients!$B$79,Nutrients!$DR$79,(IF($A$8=Nutrients!$B$77,Nutrients!$DR$77,Nutrients!$DR$78)))))*AF$8))/2000)","v":0.2100446486009003},{"$f":"((SUMPRODUCT(AG$9:AG$229,Nutrients!$DR$8:$DR$228)+(IF($A$7=Nutrients!$B$8,Nutrients!$DR$8,Nutrients!$DR$9)*AG$7)+(((IF($A$8=Nutrients!$B$79,Nutrients!$DR$79,(IF($A$8=Nutrients!$B$77,Nutrients!$DR$77,Nutrients!$DR$78)))))*AG$8))/2000)","v":0.18112295028365366},{"$f":"((SUMPRODUCT(AH$9:AH$229,Nutrients!$DR$8:$DR$228)+(IF($A$7=Nutrients!$B$8,Nutrients!$DR$8,Nutrients!$DR$9)*AH$7)+(((IF($A$8=Nutrients!$B$79,Nutrients!$DR$79,(IF($A$8=Nutrients!$B$77,Nutrients!$DR$77,Nutrients!$DR$78)))))*AH$8))/2000)","v":0.1690777095203283},{"$f":"((SUMPRODUCT(AI$9:AI$229,Nutrients!$DR$8:$DR$228)+(IF($A$7=Nutrients!$B$8,Nutrients!$DR$8,Nutrients!$DR$9)*AI$7)+(((IF($A$8=Nutrients!$B$79,Nutrients!$DR$79,(IF($A$8=Nutrients!$B$77,Nutrients!$DR$77,Nutrients!$DR$78)))))*AI$8))/2000)","v":0.16522328220669896},null,{"$f":"((SUMPRODUCT(AK$9:AK$229,Nutrients!$DR$8:$DR$228)+(IF($A$7=Nutrients!$B$8,Nutrients!$DR$8,Nutrients!$DR$9)*AK$7)+(((IF($A$8=Nutrients!$B$79,Nutrients!$DR$79,(IF($A$8=Nutrients!$B$77,Nutrients!$DR$77,Nutrients!$DR$78)))))*AK$8))/2000)","v":0.28913742948898269},{"$f":"((SUMPRODUCT(AL$9:AL$229,Nutrients!$DR$8:$DR$228)+(IF($A$7=Nutrients!$B$8,Nutrients!$DR$8,Nutrients!$DR$9)*AL$7)+(((IF($A$8=Nutrients!$B$79,Nutrients!$DR$79,(IF($A$8=Nutrients!$B$77,Nutrients!$DR$77,Nutrients!$DR$78)))))*AL$8))/2000)","v":0.25011082803332996},{"$f":"((SUMPRODUCT(AM$9:AM$229,Nutrients!$DR$8:$DR$228)+(IF($A$7=Nutrients!$B$8,Nutrients!$DR$8,Nutrients!$DR$9)*AM$7)+(((IF($A$8=Nutrients!$B$79,Nutrients!$DR$79,(IF($A$8=Nutrients!$B$77,Nutrients!$DR$77,Nutrients!$DR$78)))))*AM$8))/2000)","v":0.21004038881605028},{"$f":"((SUMPRODUCT(AN$9:AN$229,Nutrients!$DR$8:$DR$228)+(IF($A$7=Nutrients!$B$8,Nutrients!$DR$8,Nutrients!$DR$9)*AN$7)+(((IF($A$8=Nutrients!$B$79,Nutrients!$DR$79,(IF($A$8=Nutrients!$B$77,Nutrients!$DR$77,Nutrients!$DR$78)))))*AN$8))/2000)","v":0.18836429776982375},{"$f":"((SUMPRODUCT(AO$9:AO$229,Nutrients!$DR$8:$DR$228)+(IF($A$7=Nutrients!$B$8,Nutrients!$DR$8,Nutrients!$DR$9)*AO$7)+(((IF($A$8=Nutrients!$B$79,Nutrients!$DR$79,(IF($A$8=Nutrients!$B$77,Nutrients!$DR$77,Nutrients!$DR$78)))))*AO$8))/2000)","v":0.18140858895892459},{"$f":"((SUMPRODUCT(AP$9:AP$229,Nutrients!$DR$8:$DR$228)+(IF($A$7=Nutrients!$B$8,Nutrients!$DR$8,Nutrients!$DR$9)*AP$7)+(((IF($A$8=Nutrients!$B$79,Nutrients!$DR$79,(IF($A$8=Nutrients!$B$77,Nutrients!$DR$77,Nutrients!$DR$78)))))*AP$8))/2000)","v":0.17758752391911883},null,{"$f":"((SUMPRODUCT(AR$9:AR$229,Nutrients!$DR$8:$DR$228)+(IF($A$7=Nutrients!$B$8,Nutrients!$DR$8,Nutrients!$DR$9)*AR$7)+(((IF($A$8=Nutrients!$B$79,Nutrients!$DR$79,(IF($A$8=Nutrients!$B$77,Nutrients!$DR$77,Nutrients!$DR$78)))))*AR$8))/2000)","v":0.28934177273434697},{"$f":"((SUMPRODUCT(AS$9:AS$229,Nutrients!$DR$8:$DR$228)+(IF($A$7=Nutrients!$B$8,Nutrients!$DR$8,Nutrients!$DR$9)*AS$7)+(((IF($A$8=Nutrients!$B$79,Nutrients!$DR$79,(IF($A$8=Nutrients!$B$77,Nutrients!$DR$77,Nutrients!$DR$78)))))*AS$8))/2000)","v":0.2500080131096914},{"$f":"((SUMPRODUCT(AT$9:AT$229,Nutrients!$DR$8:$DR$228)+(IF($A$7=Nutrients!$B$8,Nutrients!$DR$8,Nutrients!$DR$9)*AT$7)+(((IF($A$8=Nutrients!$B$79,Nutrients!$DR$79,(IF($A$8=Nutrients!$B$77,Nutrients!$DR$77,Nutrients!$DR$78)))))*AT$8))/2000)","v":0.21005738361813739},{"$f":"((SUMPRODUCT(AU$9:AU$229,Nutrients!$DR$8:$DR$228)+(IF($A$7=Nutrients!$B$8,Nutrients!$DR$8,Nutrients!$DR$9)*AU$7)+(((IF($A$8=Nutrients!$B$79,Nutrients!$DR$79,(IF($A$8=Nutrients!$B$77,Nutrients!$DR$77,Nutrients!$DR$78)))))*AU$8))/2000)","v":0.20064885641085126},{"$f":"((SUMPRODUCT(AV$9:AV$229,Nutrients!$DR$8:$DR$228)+(IF($A$7=Nutrients!$B$8,Nutrients!$DR$8,Nutrients!$DR$9)*AV$7)+(((IF($A$8=Nutrients!$B$79,Nutrients!$DR$79,(IF($A$8=Nutrients!$B$77,Nutrients!$DR$77,Nutrients!$DR$78)))))*AV$8))/2000)","v":0.19374016212722536},{"$f":"((SUMPRODUCT(AW$9:AW$229,Nutrients!$DR$8:$DR$228)+(IF($A$7=Nutrients!$B$8,Nutrients!$DR$8,Nutrients!$DR$9)*AW$7)+(((IF($A$8=Nutrients!$B$79,Nutrients!$DR$79,(IF($A$8=Nutrients!$B$77,Nutrients!$DR$77,Nutrients!$DR$78)))))*AW$8))/2000)","v":0.18995202888324833}]
["Stand. Dig. P with phytase, %",{"$f":"B259+0.11","v":0.40000063647666451},0.35988069387487892,0.32060453785177029,0.29085065848336067,0.26971179439767601,0.25985099986346794,null,{"$f":"I259+0.11","v":0.39948527871733397},0.36034977701360676,0.32001116657797873,0.29092280551458971,0.26977980515692079,0.25995676513904031,null,{"$f":"P259+0.11","v":0.39939758571940298},0.36034839134717189,0.32010745424820003,0.29097222144542823,0.26990793547491654,0.26011761977830672,null,{"$f":"W259+0.11","v":0.39930805695141752},0.36034869472172909,0.32006124825435173,0.29105388650611608,0.27003395350507459,0.26285889920496508,null,{"$f":"AD259+0.11","v":0.39920497215536693},0.3602087022914876,0.32004464860090032,0.29112295028365365,0.27907770952032829,0.27522328220669895,null,{"$f":"AK259+0.11","v":0.39913742948898268},0.36011082803332994,0.32004038881605029,0.29836429776982376,0.29140858895892457,0.28758752391911885,null,{"$f":"AR259+0.11","v":0.39934177273434696},0.36000801310969138,0.3200573836181374,0.31064885641085127,0.30374016212722538,0.29995202888324835]
["Ca:P",{"$f":"B254/B255","v":1.3203146685846132},1.3163186415313215,1.3468914379746515,1.3441772957085856,1.3289773113995034,1.3324500801018839,null,{"$f":"I254/I255","v":1.3216798100997695},1.3178114622182411,1.3474544515780809,1.3450442582091098,1.3311434184304338,1.3331808839942825,null,{"$f":"P254/P255","v":1.3225601989406632},1.3190528635512648,1.3479263847480933,1.3457174712430455,1.3316167775958001,1.3335589201916394,null,{"$f":"W254/W255","v":1.3233208397719916},1.3196886352868975,1.3488087459668396,1.3463247788954467,1.3322014796327719,1.3372778423132015,null,{"$f":"AD254/AD255","v":1.3241276962664446},1.3206730865488521,1.349638826349258,1.3484174881768851,1.3409042245464942,1.3475283991459095,null,{"$f":"AK254/AK255","v":1.324864241605499},1.3215440479089544,1.3504646391560262,1.3545900803145441,1.350531892798295,1.3570375935843122,null,{"$f":"AR254/AR255","v":1.3250070812020278},1.3224680903731372,1.3525797055232949,1.3638283017674715,1.3595022500454574,1.3658839121688782]
["Ca:STTD P",{"$f":"B254/B260","v":1.7394731864174733},1.7393882664224269,1.790040346909656,1.7897511861126985,1.7685135744736544,1.770331325323067,null,{"$f":"I254/I260","v":1.7399836844131604},1.7395807054203087,1.7899435744907275,1.7896129079919338,1.770021332948555,1.7699322321731068,null,{"$f":"P254/P260","v":1.7399865902027094},1.7400639834801523,1.7894312394965881,1.7891470709671617,1.7693685729068043,1.7691839210612148,null,{"$f":"W254/W260","v":1.7398185444068706},1.739755985985066,1.789176863922026,1.7886354351872891,1.7687752079546382,1.7699999163784272,null,{"$f":"AD254/AD260","v":1.7396758795297658},1.7396549149375595,1.7888851864349948,1.7899999600993244,1.7700008464998982,1.7700026485302243,null,{"$f":"AK254/AK260","v":1.7394902352272703},1.7394858379429039,1.7885867086037215,1.7900003326422946,1.7700052778922595,1.770009380306341,null,{"$f":"AR254/AR260","v":1.7389534282328563},1.7393442284410856,1.7900002232679704,1.7900002023956532,1.7700131186156405,1.7700191151703866]
["Cost/ton",{"$f":"(SUMPRODUCT(B$9:B$229,Nutrients!$DX$8:$DX$228)+(IF($A$7=Nutrients!$B$8,Nutrients!$DX$8,Nutrients!$DX$9)*B$7)+(((IF($A$8=Nutrients!$B$79,Nutrients!$DX$79,(IF($A$8=Nutrients!$B$77,Nutrients!$DX$77,Nutrients!$DX$78)))))*B$8))","v":221.26773173804173},{"$f":"(SUMPRODUCT(C$9:C$229,Nutrients!$DX$8:$DX$228)+(IF($A$7=Nutrients!$B$8,Nutrients!$DX$8,Nutrients!$DX$9)*C$7)+(((IF($A$8=Nutrients!$B$79,Nutrients!$DX$79,(IF($A$8=Nutrients!$B$77,Nutrients!$DX$77,Nutrients!$DX$78)))))*C$8))","v":211.54330280629557},{"$f":"(SUMPRODUCT(D$9:D$229,Nutrients!$DX$8:$DX$228)+(IF($A$7=Nutrients!$B$8,Nutrients!$DX$8,Nutrients!$DX$9)*D$7)+(((IF($A$8=Nutrients!$B$79,Nutrients!$DX$79,(IF($A$8=Nutrients!$B$77,Nutrients!$DX$77,Nutrients!$DX$78)))))*D$8))","v":202.16843206547495},{"$f":"(SUMPRODUCT(E$9:E$229,Nutrients!$DX$8:$DX$228)+(IF($A$7=Nutrients!$B$8,Nutrients!$DX$8,Nutrients!$DX$9)*E$7)+(((IF($A$8=Nutrients!$B$79,Nutrients!$DX$79,(IF($A$8=Nutrients!$B$77,Nutrients!$DX$77,Nutrients!$DX$78)))))*E$8))","v":195.22426532952818},{"$f":"(SUMPRODUCT(F$9:F$229,Nutrients!$DX$8:$DX$228)+(IF($A$7=Nutrients!$B$8,Nutrients!$DX$8,Nutrients!$DX$9)*F$7)+(((IF($A$8=Nutrients!$B$79,Nutrients!$DX$79,(IF($A$8=Nutrients!$B$77,Nutrients!$DX$77,Nutrients!$DX$78)))))*F$8))","v":190.24981497998971},{"$f":"(SUMPRODUCT(G$9:G$229,Nutrients!$DX$8:$DX$228)+(IF($A$7=Nutrients!$B$8,Nutrients!$DX$8,Nutrients!$DX$9)*G$7)+(((IF($A$8=Nutrients!$B$79,Nutrients!$DX$79,(IF($A$8=Nutrients!$B$77,Nutrients!$DX$77,Nutrients!$DX$78)))))*G$8))","v":187.92809138061614},null,{"$f":"(SUMPRODUCT(I$9:I$229,Nutrients!$DX$8:$DX$228)+(IF($A$7=Nutrients!$B$8,Nutrients!$DX$8,Nutrients!$DX$9)*I$7)+(((IF($A$8=Nutrients!$B$79,Nutrients!$DX$79,(IF($A$8=Nutrients!$B$77,Nutrients!$DX$77,Nutrients!$DX$78)))))*I$8))","v":219.16586470791503},{"$f":"(SUMPRODUCT(J$9:J$229,Nutrients!$DX$8:$DX$228)+(IF($A$7=Nutrients!$B$8,Nutrients!$DX$8,Nutrients!$DX$9)*J$7)+(((IF($A$8=Nutrients!$B$79,Nutrients!$DX$79,(IF($A$8=Nutrients!$B$77,Nutrients!$DX$77,Nutrients!$DX$78)))))*J$8))","v":209.5993238555823},{"$f":"(SUMPRODUCT(K$9:K$229,Nutrients!$DX$8:$DX$228)+(IF($A$7=Nutrients!$B$8,Nutrients!$DX$8,Nutrients!$DX$9)*K$7)+(((IF($A$8=Nutrients!$B$79,Nutrients!$DX$79,(IF($A$8=Nutrients!$B$77,Nutrients!$DX$77,Nutrients!$DX$78)))))*K$8))","v":200.48706519759159},{"$f":"(SUMPRODUCT(L$9:L$229,Nutrients!$DX$8:$DX$228)+(IF($A$7=Nutrients!$B$8,Nutrients!$DX$8,Nutrients!$DX$9)*L$7)+(((IF($A$8=Nutrients!$B$79,Nutrients!$DX$79,(IF($A$8=Nutrients!$B$77,Nutrients!$DX$77,Nutrients!$DX$78)))))*L$8))","v":193.50429475572273},{"$f":"(SUMPRODUCT(M$9:M$229,Nutrients!$DX$8:$DX$228)+(IF($A$7=Nutrients!$B$8,Nutrients!$DX$8,Nutrients!$DX$9)*M$7)+(((IF($A$8=Nutrients!$B$79,Nutrients!$DX$79,(IF($A$8=Nutrients!$B$77,Nutrients!$DX$77,Nutrients!$DX$78)))))*M$8))","v":188.42069387728165},{"$f":"(SUMPRODUCT(N$9:N$229,Nutrients!$DX$8:$DX$228)+(IF($A$7=Nutrients!$B$8,Nutrients!$DX$8,Nutrients!$DX$9)*N$7)+(((IF($A$8=Nutrients!$B$79,Nutrients!$DX$79,(IF($A$8=Nutrients!$B$77,Nutrients!$DX$77,Nutrients!$DX$78)))))*N$8))","v":186.31587500647987},null,{"$f":"(SUMPRODUCT(P$9:P$229,Nutrients!$DX$8:$DX$228)+(IF($A$7=Nutrients!$B$8,Nutrients!$DX$8,Nutrients!$DX$9)*P$7)+(((IF($A$8=Nutrients!$B$79,Nutrients!$DX$79,(IF($A$8=Nutrients!$B$77,Nutrients!$DX$77,Nutrients!$DX$78)))))*P$8))","v":217.25484171837127},{"$f":"(SUMPRODUCT(Q$9:Q$229,Nutrients!$DX$8:$DX$228)+(IF($A$7=Nutrients!$B$8,Nutrients!$DX$8,Nutrients!$DX$9)*Q$7)+(((IF($A$8=Nutrients!$B$79,Nutrients!$DX$79,(IF($A$8=Nutrients!$B$77,Nutrients!$DX$77,Nutrients!$DX$78)))))*Q$8))","v":207.90803566415372},{"$f":"(SUMPRODUCT(R$9:R$229,Nutrients!$DX$8:$DX$228)+(IF($A$7=Nutrients!$B$8,Nutrients!$DX$8,Nutrients!$DX$9)*R$7)+(((IF($A$8=Nutrients!$B$79,Nutrients!$DX$79,(IF($A$8=Nutrients!$B$77,Nutrients!$DX$77,Nutrients!$DX$78)))))*R$8))","v":198.84038391053457},{"$f":"(SUMPRODUCT(S$9:S$229,Nutrients!$DX$8:$DX$228)+(IF($A$7=Nutrients!$B$8,Nutrients!$DX$8,Nutrients!$DX$9)*S$7)+(((IF($A$8=Nutrients!$B$79,Nutrients!$DX$79,(IF($A$8=Nutrients!$B$77,Nutrients!$DX$77,Nutrients!$DX$78)))))*S$8))","v":191.90183959063353},{"$f":"(SUMPRODUCT(T$9:T$229,Nutrients!$DX$8:$DX$228)+(IF($A$7=Nutrients!$B$8,Nutrients!$DX$8,Nutrients!$DX$9)*T$7)+(((IF($A$8=Nutrients!$B$79,Nutrients!$DX$79,(IF($A$8=Nutrients!$B$77,Nutrients!$DX$77,Nutrients!$DX$78)))))*T$8))","v":186.87940879485626},{"$f":"(SUMPRODUCT(U$9:U$229,Nutrients!$DX$8:$DX$228)+(IF($A$7=Nutrients!$B$8,Nutrients!$DX$8,Nutrients!$DX$9)*U$7)+(((IF($A$8=Nutrients!$B$79,Nutrients!$DX$79,(IF($A$8=Nutrients!$B$77,Nutrients!$DX$77,Nutrients!$DX$78)))))*U$8))","v":184.76352974030911},null,{"$f":"(SUMPRODUCT(W$9:W$229,Nutrients!$DX$8:$DX$228)+(IF($A$7=Nutrients!$B$8,Nutrients!$DX$8,Nutrients!$DX$9)*W$7)+(((IF($A$8=Nutrients!$B$79,Nutrients!$DX$79,(IF($A$8=Nutrients!$B$77,Nutrients!$DX$77,Nutrients!$DX$78)))))*W$8))","v":215.40844963058765},{"$f":"(SUMPRODUCT(X$9:X$229,Nutrients!$DX$8:$DX$228)+(IF($A$7=Nutrients!$B$8,Nutrients!$DX$8,Nutrients!$DX$9)*X$7)+(((IF($A$8=Nutrients!$B$79,Nutrients!$DX$79,(IF($A$8=Nutrients!$B$77,Nutrients!$DX$77,Nutrients!$DX$78)))))*X$8))","v":206.17685226298042},{"$f":"(SUMPRODUCT(Y$9:Y$229,Nutrients!$DX$8:$DX$228)+(IF($A$7=Nutrients!$B$8,Nutrients!$DX$8,Nutrients!$DX$9)*Y$7)+(((IF($A$8=Nutrients!$B$79,Nutrients!$DX$79,(IF($A$8=Nutrients!$B$77,Nutrients!$DX$77,Nutrients!$DX$78)))))*Y$8))","v":197.19712300052555},{"$f":"(SUMPRODUCT(Z$9:Z$229,Nutrients!$DX$8:$DX$228)+(IF($A$7=Nutrients!$B$8,Nutrients!$DX$8,Nutrients!$DX$9)*Z$7)+(((IF($A$8=Nutrients!$B$79,Nutrients!$DX$79,(IF($A$8=Nutrients!$B$77,Nutrients!$DX$77,Nutrients!$DX$78)))))*Z$8))","v":190.46749361891673},{"$f":"(SUMPRODUCT(AA$9:AA$229,Nutrients!$DX$8:$DX$228)+(IF($A$7=Nutrients!$B$8,Nutrients!$DX$8,Nutrients!$DX$9)*AA$7)+(((IF($A$8=Nutrients!$B$79,Nutrients!$DX$79,(IF($A$8=Nutrients!$B$77,Nutrients!$DX$77,Nutrients!$DX$78)))))*AA$8))","v":185.76804739707728},{"$f":"(SUMPRODUCT(AB$9:AB$229,Nutrients!$DX$8:$DX$228)+(IF($A$7=Nutrients!$B$8,Nutrients!$DX$8,Nutrients!$DX$9)*AB$7)+(((IF($A$8=Nutrients!$B$79,Nutrients!$DX$79,(IF($A$8=Nutrients!$B$77,Nutrients!$DX$77,Nutrients!$DX$78)))))*AB$8))","v":183.71956881057733},null,{"$f":"(SUMPRODUCT(AD$9:AD$229,Nutrients!$DX$8:$DX$228)+(IF($A$7=Nutrients!$B$8,Nutrients!$DX$8,Nutrients!$DX$9)*AD$7)+(((IF($A$8=Nutrients!$B$79,Nutrients!$DX$79,(IF($A$8=Nutrients!$B$77,Nutrients!$DX$77,Nutrients!$DX$78)))))*AD$8))","v":213.68286818105867},{"$f":"(SUMPRODUCT(AE$9:AE$229,Nutrients!$DX$8:$DX$228)+(IF($A$7=Nutrients!$B$8,Nutrients!$DX$8,Nutrients!$DX$9)*AE$7)+(((IF($A$8=Nutrients!$B$79,Nutrients!$DX$79,(IF($A$8=Nutrients!$B$77,Nutrients!$DX$77,Nutrients!$DX$78)))))*AE$8))","v":204.4829319818146},{"$f":"(SUMPRODUCT(AF$9:AF$229,Nutrients!$DX$8:$DX$228)+(IF($A$7=Nutrients!$B$8,Nutrients!$DX$8,Nutrients!$DX$9)*AF$7)+(((IF($A$8=Nutrients!$B$79,Nutrients!$DX$79,(IF($A$8=Nutrients!$B$77,Nutrients!$DX$77,Nutrients!$DX$78)))))*AF$8))","v":195.74599046763265},{"$f":"(SUMPRODUCT(AG$9:AG$229,Nutrients!$DX$8:$DX$228)+(IF($A$7=Nutrients!$B$8,Nutrients!$DX$8,Nutrients!$DX$9)*AG$7)+(((IF($A$8=Nutrients!$B$79,Nutrients!$DX$79,(IF($A$8=Nutrients!$B$77,Nutrients!$DX$77,Nutrients!$DX$78)))))*AG$8))","v":189.37134308718575},{"$f":"(SUMPRODUCT(AH$9:AH$229,Nutrients!$DX$8:$DX$228)+(IF($A$7=Nutrients!$B$8,Nutrients!$DX$8,Nutrients!$DX$9)*AH$7)+(((IF($A$8=Nutrients!$B$79,Nutrients!$DX$79,(IF($A$8=Nutrients!$B$77,Nutrients!$DX$77,Nutrients!$DX$78)))))*AH$8))","v":184.88434812784908},{"$f":"(SUMPRODUCT(AI$9:AI$229,Nutrients!$DX$8:$DX$228)+(IF($A$7=Nutrients!$B$8,Nutrients!$DX$8,Nutrients!$DX$9)*AI$7)+(((IF($A$8=Nutrients!$B$79,Nutrients!$DX$79,(IF($A$8=Nutrients!$B$77,Nutrients!$DX$77,Nutrients!$DX$78)))))*AI$8))","v":182.92626376662579},null,{"$f":"(SUMPRODUCT(AK$9:AK$229,Nutrients!$DX$8:$DX$228)+(IF($A$7=Nutrients!$B$8,Nutrients!$DX$8,Nutrients!$DX$9)*AK$7)+(((IF($A$8=Nutrients!$B$79,Nutrients!$DX$79,(IF($A$8=Nutrients!$B$77,Nutrients!$DX$77,Nutrients!$DX$78)))))*AK$8))","v":211.98308047970517},{"$f":"(SUMPRODUCT(AL$9:AL$229,Nutrients!$DX$8:$DX$228)+(IF($A$7=Nutrients!$B$8,Nutrients!$DX$8,Nutrients!$DX$9)*AL$7)+(((IF($A$8=Nutrients!$B$79,Nutrients!$DX$79,(IF($A$8=Nutrients!$B$77,Nutrients!$DX$77,Nutrients!$DX$78)))))*AL$8))","v":202.69639773944195},{"$f":"(SUMPRODUCT(AM$9:AM$229,Nutrients!$DX$8:$DX$228)+(IF($A$7=Nutrients!$B$8,Nutrients!$DX$8,Nutrients!$DX$9)*AM$7)+(((IF($A$8=Nutrients!$B$79,Nutrients!$DX$79,(IF($A$8=Nutrients!$B$77,Nutrients!$DX$77,Nutrients!$DX$78)))))*AM$8))","v":194.40419016380727},{"$f":"(SUMPRODUCT(AN$9:AN$229,Nutrients!$DX$8:$DX$228)+(IF($A$7=Nutrients!$B$8,Nutrients!$DX$8,Nutrients!$DX$9)*AN$7)+(((IF($A$8=Nutrients!$B$79,Nutrients!$DX$79,(IF($A$8=Nutrients!$B$77,Nutrients!$DX$77,Nutrients!$DX$78)))))*AN$8))","v":188.38337359082476},{"$f":"(SUMPRODUCT(AO$9:AO$229,Nutrients!$DX$8:$DX$228)+(IF($A$7=Nutrients!$B$8,Nutrients!$DX$8,Nutrients!$DX$9)*AO$7)+(((IF($A$8=Nutrients!$B$79,Nutrients!$DX$79,(IF($A$8=Nutrients!$B$77,Nutrients!$DX$77,Nutrients!$DX$78)))))*AO$8))","v":184.0351250466604},{"$f":"(SUMPRODUCT(AP$9:AP$229,Nutrients!$DX$8:$DX$228)+(IF($A$7=Nutrients!$B$8,Nutrients!$DX$8,Nutrients!$DX$9)*AP$7)+(((IF($A$8=Nutrients!$B$79,Nutrients!$DX$79,(IF($A$8=Nutrients!$B$77,Nutrients!$DX$77,Nutrients!$DX$78)))))*AP$8))","v":182.09543938526255},null,{"$f":"(SUMPRODUCT(AR$9:AR$229,Nutrients!$DX$8:$DX$228)+(IF($A$7=Nutrients!$B$8,Nutrients!$DX$8,Nutrients!$DX$9)*AR$7)+(((IF($A$8=Nutrients!$B$79,Nutrients!$DX$79,(IF($A$8=Nutrients!$B$77,Nutrients!$DX$77,Nutrients!$DX$78)))))*AR$8))","v":210.39759928430823},{"$f":"(SUMPRODUCT(AS$9:AS$229,Nutrients!$DX$8:$DX$228)+(IF($A$7=Nutrients!$B$8,Nutrients!$DX$8,Nutrients!$DX$9)*AS$7)+(((IF($A$8=Nutrients!$B$79,Nutrients!$DX$79,(IF($A$8=Nutrients!$B$77,Nutrients!$DX$77,Nutrients!$DX$78)))))*AS$8))","v":201.14830704012817},{"$f":"(SUMPRODUCT(AT$9:AT$229,Nutrients!$DX$8:$DX$228)+(IF($A$7=Nutrients!$B$8,Nutrients!$DX$8,Nutrients!$DX$9)*AT$7)+(((IF($A$8=Nutrients!$B$79,Nutrients!$DX$79,(IF($A$8=Nutrients!$B$77,Nutrients!$DX$77,Nutrients!$DX$78)))))*AT$8))","v":193.23230692506709},{"$f":"(SUMPRODUCT(AU$9:AU$229,Nutrients!$DX$8:$DX$228)+(IF($A$7=Nutrients!$B$8,Nutrients!$DX$8,Nutrients!$DX$9)*AU$7)+(((IF($A$8=Nutrients!$B$79,Nutrients!$DX$79,(IF($A$8=Nutrients!$B$77,Nutrients!$DX$77,Nutrients!$DX$78)))))*AU$8))","v":187.50844694573112},{"$f":"(SUMPRODUCT(AV$9:AV$229,Nutrients!$DX$8:$DX$228)+(IF($A$7=Nutrients!$B$8,Nutrients!$DX$8,Nutrients!$DX$9)*AV$7)+(((IF($A$8=Nutrients!$B$79,Nutrients!$DX$79,(IF($A$8=Nutrients!$B$77,Nutrients!$DX$77,Nutrients!$DX$78)))))*AV$8))","v":183.18628381435167},{"$f":"(SUMPRODUCT(AW$9:AW$229,Nutrients!$DX$8:$DX$228)+(IF($A$7=Nutrients!$B$8,Nutrients!$DX$8,Nutrients!$DX$9)*AW$7)+(((IF($A$8=Nutrients!$B$79,Nutrients!$DX$79,(IF($A$8=Nutrients!$B$77,Nutrients!$DX$77,Nutrients!$DX$78)))))*AW$8))","v":181.2647594964013}]
["Cost with processing",{"$f":"IF(B$5=\"\",\"\",B263+Nutrients!$DV$5)","v":233.26773173804173},{"$f":"IF(C$5=\"\",\"\",C263+Nutrients!$DV$5)","v":223.54330280629557},{"$f":"IF(D$5=\"\",\"\",D263+Nutrients!$DV$5)","v":214.16843206547495},{"$f":"IF(E$5=\"\",\"\",E263+Nutrients!$DV$5)","v":207.22426532952818},{"$f":"IF(F$5=\"\",\"\",F263+Nutrients!$DV$5)","v":202.24981497998971},{"$f":"IF(G$5=\"\",\"\",G263+Nutrients!$DV$5)","v":199.92809138061614},null,{"$f":"IF(I$5=\"\",\"\",I263+Nutrients!$DV$5)","v":231.16586470791503},{"$f":"IF(J$5=\"\",\"\",J263+Nutrients!$DV$5)","v":221.5993238555823},{"$f":"IF(K$5=\"\",\"\",K263+Nutrients!$DV$5)","v":212.48706519759159},{"$f":"IF(L$5=\"\",\"\",L263+Nutrients!$DV$5)","v":205.50429475572273},{"$f":"IF(M$5=\"\",\"\",M263+Nutrients!$DV$5)","v":200.42069387728165},{"$f":"IF(N$5=\"\",\"\",N263+Nutrients!$DV$5)","v":198.31587500647987},null,{"$f":"IF(P$5=\"\",\"\",P263+Nutrients!$DV$5)","v":229.25484171837127},{"$f":"IF(Q$5=\"\",\"\",Q263+Nutrients!$DV$5)","v":219.90803566415372},{"$f":"IF(R$5=\"\",\"\",R263+Nutrients!$DV$5)","v":210.84038391053457},{"$f":"IF(S$5=\"\",\"\",S263+Nutrients!$DV$5)","v":203.90183959063353},{"$f":"IF(T$5=\"\",\"\",T263+Nutrients!$DV$5)","v":198.87940879485626},{"$f":"IF(U$5=\"\",\"\",U263+Nutrients!$DV$5)","v":196.76352974030911},null,{"$f":"IF(W$5=\"\",\"\",W263+Nutrients!$DV$5)","v":227.40844963058765},{"$f":"IF(X$5=\"\",\"\",X263+Nutrients!$DV$5)","v":218.17685226298042},{"$f":"IF(Y$5=\"\",\"\",Y263+Nutrients!$DV$5)","v":209.19712300052555},{"$f":"IF(Z$5=\"\",\"\",Z263+Nutrients!$DV$5)","v":202.46749361891673},{"$f":"IF(AA$5=\"\",\"\",AA263+Nutrients!$DV$5)","v":197.76804739707728},{"$f":"IF(AB$5=\"\",\"\",AB263+Nutrients!$DV$5)","v":195.71956881057733},null,{"$f":"IF(AD$5=\"\",\"\",AD263+Nutrients!$DV$5)","v":225.68286818105867},{"$f":"IF(AE$5=\"\",\"\",AE263+Nutrients!$DV$5)","v":216.4829319818146},{"$f":"IF(AF$5=\"\",\"\",AF263+Nutrients!$DV$5)","v":207.74599046763265},{"$f":"IF(AG$5=\"\",\"\",AG263+Nutrients!$DV$5)","v":201.37134308718575},{"$f":"IF(AH$5=\"\",\"\",AH263+Nutrients!$DV$5)","v":196.88434812784908},{"$f":"IF(AI$5=\"\",\"\",AI263+Nutrients!$DV$5)","v":194.92626376662579},null,{"$f":"IF(AK$5=\"\",\"\",AK263+Nutrients!$DV$5)","v":223.98308047970517},{"$f":"IF(AL$5=\"\",\"\",AL263+Nutrients!$DV$5)","v":214.69639773944195},{"$f":"IF(AM$5=\"\",\"\",AM263+Nutrients!$DV$5)","v":206.40419016380727},{"$f":"IF(AN$5=\"\",\"\",AN263+Nutrients!$DV$5)","v":200.38337359082476},{"$f":"IF(AO$5=\"\",\"\",AO263+Nutrients!$DV$5)","v":196.0351250466604},{"$f":"IF(AP$5=\"\",\"\",AP263+Nutrients!$DV$5)","v":194.09543938526255},null,{"$f":"IF(AR$5=\"\",\"\",AR263+Nutrients!$DV$5)","v":222.39759928430823},{"$f":"IF(AS$5=\"\",\"\",AS263+Nutrients!$DV$5)","v":213.14830704012817},{"$f":"IF(AT$5=\"\",\"\",AT263+Nutrients!$DV$5)","v":205.23230692506709},{"$f":"IF(AU$5=\"\",\"\",AU263+Nutrients!$DV$5)","v":199.50844694573112},{"$f":"IF(AV$5=\"\",\"\",AV263+Nutrients!$DV$5)","v":195.18628381435167},{"$f":"IF(AW$5=\"\",\"\",AW263+Nutrients!$DV$5)","v":193.2647594964013}]
["Feed budget, lb/pig- adjusted for gain ",64.670241098095005,73.763156713761802,95.43493291654417,107.31139412884363,119.18785534114284,148.28241980161249,{"$f":"SUM(B265:G265)","v":608.65},{"$f":"($B$265*$B$250/I250)-($B$265*$B$250/I250)/(I6-I5)*I268","v":64.747437580907231},{"$f":"($C$265*$C$250/J250)-($C$265*$C$250/J250)/(J6-J5)*J268","v":73.921130002190367},{"$f":"($D$265*$D$250/K250)-($D$265*$D$250/K250)/(K6-K5)*K268","v":95.596567443474342},{"$f":"($E$265*$E$250/L250)-($E$265*$E$250/L250)/(L6-L5)*L268","v":107.30285759887951},{"$f":"($F$265*$F$250/M250)-($F$265*$F$250/M250)/(M6-M5)*M268","v":118.76552119687163},{"$f":"($G$265*$G$250/N250)-($G$265*$G$250/N250)/(N6-N5)*N268","v":146.91815251886126},{"$f":"SUM(I265:N265)","v":607.25166634118432},{"$f":"($B$265*$B$250/P250)-($B$265*$B$250/P250)/(P6-P5)*P268","v":64.939905694473097},{"$f":"($C$265*$C$250/Q250)-($C$265*$C$250/Q250)/(Q6-Q5)*Q268","v":74.178310748408308},{"$f":"($D$265*$D$250/R250)-($D$265*$D$250/R250)/(R6-R5)*R268","v":95.865865448278157},{"$f":"($E$265*$E$250/S250)-($E$265*$E$250/S250)/(S6-S5)*S268","v":107.33979946917425},{"$f":"($F$265*$F$250/T250)-($F$265*$F$250/T250)/(T6-T5)*T268","v":118.4116407499326},{"$f":"($G$265*$G$250/U250)-($G$265*$G$250/U250)/(U6-U5)*U268","v":145.62598330741554},{"$f":"SUM(P265:U265)","v":606.36150541768188},{"$f":"($B$265*$B$250/W250)-($B$265*$B$250/W250)/(W6-W5)*W268","v":65.203752307387106},{"$f":"($C$265*$C$250/X250)-($C$265*$C$250/X250)/(X6-X5)*X268","v":74.495038080297178},{"$f":"($D$265*$D$250/Y250)-($D$265*$D$250/Y250)/(Y6-Y5)*Y268","v":96.148147548251586},{"$f":"($E$265*$E$250/Z250)-($E$265*$E$250/Z250)/(Z6-Z5)*Z268","v":107.44665924111253},{"$f":"($F$265*$F$250/AA250)-($F$265*$F$250/AA250)/(AA6-AA5)*AA268","v":118.0883719295216},{"$f":"($G$265*$G$250/AB250)-($G$265*$G$250/AB250)/(AB6-AB5)*AB268","v":144.33802639626936},{"$f":"SUM(W265:AB265)","v":605.71999550283931},{"$f":"($B$265*$B$250/AD250)-($B$265*$B$250/AD250)/(AD6-AD5)*AD268","v":65.54053689313838},{"$f":"($C$265*$C$250/AE250)-($C$265*$C$250/AE250)/(AE6-AE5)*AE268","v":74.846789124193165},{"$f":"($D$265*$D$250/AF250)-($D$265*$D$250/AF250)/(AF6-AF5)*AF268","v":96.509960473562387},{"$f":"($E$265*$E$250/AG250)-($E$265*$E$250/AG250)/(AG6-AG5)*AG268","v":107.60459991070412},{"$f":"($F$265*$F$250/AH250)-($F$265*$F$250/AH250)/(AH6-AH5)*AH268","v":117.8573706667184},{"$f":"($G$265*$G$250/AI250)-($G$265*$G$250/AI250)/(AI6-AI5)*AI268","v":143.14046213068491},{"$f":"SUM(AD265:AI265)","v":605.49971919900133},{"$f":"($B$265*$B$250/AK250)-($B$265*$B$250/AK250)/(AK6-AK5)*AK268","v":65.955811176786028},{"$f":"($C$265*$C$250/AL250)-($C$265*$C$250/AL250)/(AL6-AL5)*AL268","v":75.276510448246839},{"$f":"($D$265*$D$250/AM250)-($D$265*$D$250/AM250)/(AM6-AM5)*AM268","v":96.945703260221052},{"$f":"($E$265*$E$250/AN250)-($E$265*$E$250/AN250)/(AN6-AN5)*AN268","v":107.86348337217572},{"$f":"($F$265*$F$250/AO250)-($F$265*$F$250/AO250)/(AO6-AO5)*AO268","v":117.70326602306585},{"$f":"($G$265*$G$250/AP250)-($G$265*$G$250/AP250)/(AP6-AP5)*AP268","v":142.00324114952605},{"$f":"SUM(AK265:AP265)","v":605.7480154300215},{"$f":"($B$265*$B$250/AR250)-($B$265*$B$250/AR250)/(AR6-AR5)*AR268","v":66.456208463197754},{"$f":"($C$265*$C$250/AS250)-($C$265*$C$250/AS250)/(AS6-AS5)*AS268","v":75.77972939142488},{"$f":"($D$265*$D$250/AT250)-($D$265*$D$250/AT250)/(AT6-AT5)*AT268","v":97.459494277371164},{"$f":"($E$265*$E$250/AU250)-($E$265*$E$250/AU250)/(AU6-AU5)*AU268","v":108.22352211185532},{"$f":"($F$265*$F$250/AV250)-($F$265*$F$250/AV250)/(AV6-AV5)*AV268","v":117.61381298773611},{"$f":"($G$265*$G$250/AW250)-($G$265*$G$250/AW250)/(AW6-AW5)*AW268","v":140.92628146251289},{"$f":"SUM(AR265:AW265)","v":606.4590486940981}]
["Feed cost, $/pig",{"$f":"IF(B$265=\"\",\"\",B265*B264/2000)","v":7.5427402259524534},8.244629838606345,10.219574973505026,11.118762404918533,12.052860845303957,14.822910588117834,{"$f":"SUM(B266:G266)","v":64.00147887640415},{"$f":"IF(I$265=\"\",\"\",I265*I264/2000)","v":7.4836986980060871},8.1904362135629913,10.156517029513747,11.025599038065739,11.901534083487007,14.568100985556717,{"$f":"SUM(I266:N266)","v":63.325886048192295},{"$f":"IF(P$265=\"\",\"\",P265*P264/2000)","v":7.4438939005961942},8.1562033027838243,10.10619793751531,10.943391286527168,11.774818553387753,14.326941248735208,{"$f":"SUM(P266:U266)","v":62.751446229545458},{"$f":"IF(W$265=\"\",\"\",W265*W264/2000)","v":7.4139421111598764},8.1265464587850484,10.056957924462132,10.877227897136937,11.677053368400658,14.124888144623784,{"$f":"SUM(W266:AB266)","v":62.276615904568438},{"$f":"IF(AD$265=\"\",\"\",AD265*AD264/2000)","v":7.39568817408498},8.1015261795149645,10.024778664286149,10.834241403188878,11.602135797889567,13.9509177384813,{"$f":"SUM(AD266:AI266)","v":61.909287957445841},{"$f":"IF(AK$265=\"\",\"\",AK265*AK264/2000)","v":7.3864928814571513},8.0807978138170302,10.004999685643348,10.8070243426872,11.536987236616023,13.781090742524327,{"$f":"SUM(AK266:AP266)","v":61.597392702745076},{"$f":"IF(AR$265=\"\",\"\",AR265*AR264/2000)","v":7.3898506098763539},8.0761605138706276,10.000918421147629,10.795753409766624,11.478301541156171,13.618041946787354,{"$f":"SUM(AR266:AW266)","v":61.359026442604758}]
["ADG, lb",{"$f":"B342*0.00220462","v":1.6321378734194845},1.9015014314603687,2.0832697080984475,2.1697909739378729,2.165030725567227,2.0548911695876653,null,{"$f":"I342*0.00220462","v":1.6203560357453834},1.8894452465992644,2.0694180136965357,2.151433970194125,2.1393008156269522,2.0190366784792531,null,{"$f":"P342*0.00220462","v":1.6112741707755625},1.8798895016486989,2.0576205051596923,2.1340634360538431,2.1149979476689058,1.9844547006782236,null,{"$f":"W342*0.00220462","v":1.6038952753081919},1.8717190864343911,2.0461589361478998,2.1180971601365686,2.0915440386856172,1.9500258185974315,null,{"$f":"AD342*0.00220462","v":1.598230057086039},1.8644343752145927,2.0363163242013318,2.1032298079835123,2.0683594611675247,1.9156943802841191,null,{"$f":"AK342*0.00220462","v":1.5943034969604615},1.8588496824230634,2.0279356303026748,2.089090909318001,2.0460704779280126,1.8824590301614519,null,{"$f":"AR342*0.00220462","v":1.5920363862934326},1.8549815101464444,2.0210391858127648,2.0759585304399599,2.0249451840920929,1.8503031637565608]
["Change in gain, lb",null,null,null,null,null,null,null,{"$f":"($B$6-$B$5)-(($B$6-$B$5)/$B$267)*I267","v":0.25265287039114526},{"$f":"($C$6-$C$5)-(($C$6-$C$5)/$C$267)*J267","v":0.22191225478835719},{"$f":"($D$6-$D$5)-(($D$6-$D$5)/$D$267)*K267","v":0.26596065498509347},{"$f":"($E$6-$E$5)-(($E$6-$E$5)/$E$267)*L267","v":0.33841054671607651},{"$f":"($F$6-$F$5)-(($F$6-$F$5)/$F$267)*M267","v":0.47537265197072287},{"$f":"($G$6-$G$5)-(($G$6-$G$5)/$G$267)*N267","v":0.78517642382117003},null,{"$f":"($B$6-$B$5)-(($B$6-$B$5)/$B$267)*P267","v":0.44740680577883296},{"$f":"($C$6-$C$5)-(($C$6-$C$5)/$C$267)*Q267","v":0.3978001440827228},{"$f":"($D$6-$D$5)-(($D$6-$D$5)/$D$267)*R267","v":0.49247973681078605},{"$f":"($E$6-$E$5)-(($E$6-$E$5)/$E$267)*S267","v":0.65863557021236119},{"$f":"($F$6-$F$5)-(($F$6-$F$5)/$F$267)*T267","v":0.92438000638929196},{"$f":"($G$6-$G$5)-(($G$6-$G$5)/$G$267)*U267","v":1.5424861169464705},null,{"$f":"($B$6-$B$5)-(($B$6-$B$5)/$B$267)*W267","v":0.6056418088162232},{"$f":"($C$6-$C$5)-(($C$6-$C$5)/$C$267)*X267","v":0.54818895145856317},{"$f":"($D$6-$D$5)-(($D$6-$D$5)/$D$267)*Y267","v":0.71254858276456901},{"$f":"($E$6-$E$5)-(($E$6-$E$5)/$E$267)*Z267","v":0.95297315588859988},{"$f":"($F$6-$F$5)-(($F$6-$F$5)/$F$267)*AA267","v":1.3577024291395503},{"$f":"($G$6-$G$5)-(($G$6-$G$5)/$G$267)*AB267","v":2.2964431714928324},null,{"$f":"($B$6-$B$5)-(($B$6-$B$5)/$B$267)*AD267","v":0.72712825981066231},{"$f":"($C$6-$C$5)-(($C$6-$C$5)/$C$267)*AE267","v":0.68227504178410925},{"$f":"($D$6-$D$5)-(($D$6-$D$5)/$D$267)*AF267","v":0.90153250372893012},{"$f":"($E$6-$E$5)-(($E$6-$E$5)/$E$267)*AG267","v":1.2270521308983291},{"$f":"($F$6-$F$5)-(($F$6-$F$5)/$F$267)*AH267","v":1.7860488215357719},{"$f":"($G$6-$G$5)-(($G$6-$G$5)/$G$267)*AI267","v":3.0482663079020753},null,{"$f":"($B$6-$B$5)-(($B$6-$B$5)/$B$267)*AK267","v":0.81133046272093878},{"$f":"($C$6-$C$5)-(($C$6-$C$5)/$C$267)*AL267","v":0.78506973048092732},{"$f":"($D$6-$D$5)-(($D$6-$D$5)/$D$267)*AM267","v":1.0624467409220912},{"$f":"($E$6-$E$5)-(($E$6-$E$5)/$E$267)*AN267","v":1.4877020982977456},{"$f":"($F$6-$F$5)-(($F$6-$F$5)/$F$267)*AO267","v":2.197848672250089},{"$f":"($G$6-$G$5)-(($G$6-$G$5)/$G$267)*AP267","v":3.7760862419476027},null,{"$f":"($B$6-$B$5)-(($B$6-$B$5)/$B$267)*AR267","v":0.8599469887131761},{"$f":"($C$6-$C$5)-(($C$6-$C$5)/$C$267)*AS267","v":0.85626927177061418},{"$f":"($D$6-$D$5)-(($D$6-$D$5)/$D$267)*AT267","v":1.194862519121159},{"$f":"($E$6-$E$5)-(($E$6-$E$5)/$E$267)*AU267","v":1.7297969182279402},{"$f":"($F$6-$F$5)-(($F$6-$F$5)/$F$267)*AV267","v":2.5881487929171456},{"$f":"($G$6-$G$5)-(($G$6-$G$5)/$G$267)*AW267","v":4.4802665944820177}]
["Feed budget, lb/pig- adjusted for energy intake ",64.670241098095005,73.763156713761802,95.43493291654417,107.31139412884363,119.18785534114284,148.28241980161249,{"$f":"SUM(B269:G269)","v":608.65},{"$f":"($B$269*$B$250/I250)","v":65.21822534764722},{"$f":"($C$269*$C$250/J250)","v":74.392806442697022},{"$f":"($D$269*$D$250/K250)","v":96.236445143066518},{"$f":"($E$269*$E$250/L250)","v":108.21841391431678},{"$f":"($F$269*$F$250/M250)","v":120.19394404516085},{"$f":"($G$269*$G$250/N250)","v":149.52715692640848},{"$f":"SUM(I269:N269)","v":613.78699181929687},{"$f":"($B$269*$B$250/P250)","v":65.780784861226991},{"$f":"($C$269*$C$250/Q250)","v":75.031093023130751},{"$f":"($D$269*$D$250/R250)","v":97.060878343812774},{"$f":"($E$269*$E$250/S250)","v":109.13683449972166},{"$f":"($F$269*$F$250/T250)","v":121.21280815945514},{"$f":"($G$269*$G$250/U250)","v":150.79484911328854},{"$f":"SUM(P269:U269)","v":619.01724800063585},{"$f":"($B$269*$B$250/W250)","v":66.351909172810849},{"$f":"($C$269*$C$250/X250)","v":75.680385252803305},{"$f":"($D$269*$D$250/Y250)","v":97.891967108939355},{"$f":"($E$269*$E$250/Z250)","v":110.06897879326382},{"$f":"($F$269*$F$250/AA250)","v":122.23742308590904},{"$f":"($G$269*$G$250/AB250)","v":152.10000454800948},{"$f":"SUM(W269:AB269)","v":624.33066796173591},{"$f":"($B$269*$B$250/AD250)","v":66.931035387090986},{"$f":"($C$269*$C$250/AE250)","v":76.334827630221511},{"$f":"($D$269*$D$250/AF250)","v":98.735287241390537},{"$f":"($E$269*$E$250/AG250)","v":111.00997558811328},{"$f":"($F$269*$F$250/AH250)","v":123.365804406154},{"$f":"($G$269*$G$250/AI250)","v":153.54123009924891},{"$f":"SUM(AD269:AI269)","v":629.91816035221916},{"$f":"($B$269*$B$250/AK250)","v":67.521006884178135},{"$f":"($C$269*$C$250/AL250)","v":77.003747923338167},{"$f":"($D$269*$D$250/AM250)","v":99.590955410244334},{"$f":"($E$269*$E$250/AN250)","v":112.03017139873975},{"$f":"($F$269*$F$250/AO250)","v":124.54663228297476},{"$f":"($G$269*$G$250/AP250)","v":155.01065447674688},{"$f":"SUM(AK269:AP269)","v":635.70316837622204},{"$f":"($B$269*$B$250/AR250)","v":68.130160648636021},{"$f":"($C$269*$C$250/AS250)","v":77.680161837353282},{"$f":"($D$269*$D$250/AT250)","v":100.46040354877665},{"$f":"($E$269*$E$250/AU250)","v":113.11517932697016},{"$f":"($F$269*$F$250/AV250)","v":125.75032690760764},{"$f":"($G$269*$G$250/AW250)","v":156.50849926247216},{"$f":"SUM(AR269:AW269)","v":641.64473153181598}]
["Feed cost, $/pig- adjusted for energy intake",{"$f":"B269*B264/2000","v":7.5427402259524534},8.244629838606345,10.219574973505026,11.118762404918533,12.052860845303957,14.822910588117834,null,{"$f":"I269*I264/2000","v":7.5381137286022657},8.242697803710433,10.224499896749609,11.119674415522281,12.04467683268915,14.826804481545963,null,{"$f":"P269*P264/2000","v":7.540281710735413},8.2499701402255354,10.23217642635159,11.126600660795882,12.053365812558383,14.835463389093988,null,{"$f":"W269*W264/2000","v":7.5444923975092415},8.255854116253154,10.239358942026094,11.142695130732912,12.087328241275324,14.884473653111632,null,{"$f":"AD269*AD264/2000","v":7.5525940182433144},8.2625936488583918,10.255930021034445,11.177113940127038,12.144397990886681,14.964609158689187,null,{"$f":"AK269*AK264/2000","v":7.5617815595047988},8.266213645788369,10.277995249545661,11.2244918444189,12.207757316866694,15.043430545030651,null,{"$f":"AR269*AR264/2000","v":7.5759920835554491},8.2786974931175124,10.308860187469314,11.283716876755845,12.272369498767905,15.123788734552191]
[]
["Targets"]
["- SID Ile:Lys",0.56000000000000005,0.56000000000000005,0.56000000000000005,0.56000000000000005,0.56000000000000005,0.56000000000000005,null,0.56000000000000005,0.56000000000000005,0.56000000000000005,0.56000000000000005,0.56000000000000005,0.56000000000000005,null,0.56000000000000005,0.56000000000000005,0.56000000000000005,0.56000000000000005,0.56000000000000005,0.56000000000000005,null,0.56000000000000005,0.56000000000000005,0.56000000000000005,0.56000000000000005,0.56000000000000005,0.56000000000000005,null,0.56000000000000005,0.56000000000000005,0.56000000000000005,0.56000000000000005,0.56000000000000005,0.56000000000000005,null,0.56000000000000005,0.56000000000000005,0.56000000000000005,0.56000000000000005,0.56000000000000005,0.56000000000000005,null,0.56000000000000005,0.56000000000000005,0.56000000000000005,0.56000000000000005,0.56000000000000005,0.56000000000000005]
["- SID Leu:Lys"]
["- SID Met:Lys",{"$f":" 0.000000416*((B5+B6)/2)^2 - 0.000036654*((B5+B6)/2) + 0.280606061","v":0.28002731600000003},0.281219626,0.28362810100000002,0.28748674100000005,0.29267658100000005,0.29964938600000002,null,{"$f":" 0.000000416*((I5+I6)/2)^2 - 0.000036654*((I5+I6)/2) + 0.280606061","v":0.28002731600000003},0.281219626,0.28362810100000002,0.28748674100000005,0.29267658100000005,0.29964938600000002,null,{"$f":" 0.000000416*((P5+P6)/2)^2 - 0.000036654*((P5+P6)/2) + 0.280606061","v":0.28002731600000003},0.281219626,0.28362810100000002,0.28748674100000005,0.29267658100000005,0.29964938600000002,null,{"$f":" 0.000000416*((W5+W6)/2)^2 - 0.000036654*((W5+W6)/2) + 0.280606061","v":0.28002731600000003},0.281219626,0.28362810100000002,0.28748674100000005,0.29267658100000005,0.29964938600000002,null,{"$f":" 0.000000416*((AD5+AD6)/2)^2 - 0.000036654*((AD5+AD6)/2) + 0.280606061","v":0.28002731600000003},0.281219626,0.28362810100000002,0.28748674100000005,0.29267658100000005,0.29964938600000002,null,{"$f":" 0.000000416*((AK5+AK6)/2)^2 - 0.000036654*((AK5+AK6)/2) + 0.280606061","v":0.28002731600000003},0.281219626,0.28362810100000002,0.28748674100000005,0.29267658100000005,0.29964938600000002,null,{"$f":" 0.000000416*((AR5+AR6)/2)^2 - 0.000036654*((AR5+AR6)/2) + 0.280606061","v":0.28002731600000003},0.281219626,0.28362810100000002,0.28748674100000005,0.29267658100000005,0.29964938600000002]
["- SID Met & Cys:Lys",0.55900000000000005,0.55900000000000005,0.55900000000000005,0.56899999999999995,0.56899999999999995,0.57899999999999996,null,0.55900000000000005,0.55900000000000005,0.55900000000000005,0.56899999999999995,0.56899999999999995,0.57899999999999996,null,0.55900000000000005,0.55900000000000005,0.55900000000000005,0.56899999999999995,0.56899999999999995,0.57899999999999996,null,0.55900000000000005,0.55900000000000005,0.55900000000000005,0.56899999999999995,0.56899999999999995,0.57899999999999996,null,0.55900000000000005,0.55900000000000005,0.55900000000000005,0.56899999999999995,0.56899999999999995,0.57899999999999996,null,0.55900000000000005,0.55900000000000005,0.55900000000000005,0.56899999999999995,0.56899999999999995,0.57899999999999996,null,0.55900000000000005,0.55900000000000005,0.55900000000000005,0.56899999999999995,0.56899999999999995,0.57899999999999996]
["- SID Thr:Lys",0.61899999999999999,0.61899999999999999,0.61899999999999999,0.629,0.629,0.63900000000000001,null,0.61899999999999999,0.61899999999999999,0.61899999999999999,0.629,0.629,0.63900000000000001,null,0.61899999999999999,0.61899999999999999,0.61899999999999999,0.629,0.629,0.63900000000000001,null,0.61899999999999999,0.61899999999999999,0.61899999999999999,0.629,0.629,0.63900000000000001,null,0.61899999999999999,0.61899999999999999,0.61899999999999999,0.629,0.629,0.63900000000000001,null,0.61899999999999999,0.61899999999999999,0.61899999999999999,0.629,0.629,0.63900000000000001,null,0.61899999999999999,0.61899999999999999,0.61899999999999999,0.629,0.629,0.63900000000000001]
["- SID Trp:Lys",0.189,0.189,0.189,0.189,0.189,0.189,null,0.189,0.189,0.189,0.189,0.189,0.189,null,0.189,0.189,0.189,0.189,0.189,0.189,null,0.189,0.189,0.189,0.189,0.189,0.189,null,0.189,0.189,0.189,0.189,0.189,0.189,null,0.189,0.189,0.189,0.189,0.189,0.189,null,0.189,0.189,0.189,0.189,0.189,0.189]
["- SID Val:Lys",0.67900000000000005,0.67900000000000005,0.67900000000000005,0.67900000000000005,0.67900000000000005,0.67900000000000005,null,0.67900000000000005,0.67900000000000005,0.67900000000000005,0.67900000000000005,0.67900000000000005,0.67900000000000005,null,0.67900000000000005,0.67900000000000005,0.67900000000000005,0.67900000000000005,0.67900000000000005,0.67900000000000005,null,0.67900000000000005,0.67900000000000005,0.67900000000000005,0.67900000000000005,0.67900000000000005,0.67900000000000005,null,0.67900000000000005,0.67900000000000005,0.67900000000000005,0.67900000000000005,0.67900000000000005,0.67900000000000005,null,0.67900000000000005,0.67900000000000005,0.67900000000000005,0.67900000000000005,0.67900000000000005,0.67900000000000005,null,0.67900000000000005,0.67900000000000005,0.67900000000000005,0.67900000000000005,0.67900000000000005,0.67900000000000005]
["- SID His:Lys",0.31,0.31,0.31,0.31,0.31,0.31,null,0.31,0.31,0.31,0.31,0.31,0.31,null,0.31,0.31,0.31,0.31,0.31,0.31,null,0.31,0.31,0.31,0.31,0.31,0.31,null,0.31,0.31,0.31,0.31,0.31,0.31,null,0.31,0.31,0.31,0.31,0.31,0.31,null,0.31,0.31,0.31,0.31,0.31,0.31]
["- Avail P:ME, g/mcal (terminal)",{"$f":"IF(AVERAGE(B5:B6)<51,0.000025*((B6+B5)/2)^2 - 0.01005*((B6+B5)/2) + 1.5955,(0.00000649518*((B5+B6)/2)^2 - 0.00338103746*((B5+B6)/2) + 1.049852))","v":0.85122563532500006},0.77153564522499996,0.70381228360000003,0.65170908920000004,0.62039047080000009,0.60988816362500009,null,{"$f":"IF(AVERAGE(I5:I6)<51,0.000025*((I6+I5)/2)^2 - 0.01005*((I6+I5)/2) + 1.5955,(0.00000649518*((I5+I6)/2)^2 - 0.00338103746*((I5+I6)/2) + 1.049852))","v":0.85122563532500006},0.77153564522499996,0.70381228360000003,0.65170908920000004,0.62039047080000009,0.60988816362500009,null,{"$f":"IF(AVERAGE(P5:P6)<51,0.000025*((P6+P5)/2)^2 - 0.01005*((P6+P5)/2) + 1.5955,(0.00000649518*((P5+P6)/2)^2 - 0.00338103746*((P5+P6)/2) + 1.049852))","v":0.85122563532500006},0.77153564522499996,0.70381228360000003,0.65170908920000004,0.62039047080000009,0.60988816362500009,null,{"$f":"IF(AVERAGE(W5:W6)<51,0.000025*((W6+W5)/2)^2 - 0.01005*((W6+W5)/2) + 1.5955,(0.00000649518*((W5+W6)/2)^2 - 0.00338103746*((W5+W6)/2) + 1.049852))","v":0.85122563532500006},0.77153564522499996,0.70381228360000003,0.65170908920000004,0.62039047080000009,0.60988816362500009,null,{"$f":"IF(AVERAGE(AD5:AD6)<51,0.000025*((AD6+AD5)/2)^2 - 0.01005*((AD6+AD5)/2) + 1.5955,(0.00000649518*((AD5+AD6)/2)^2 - 0.00338103746*((AD5+AD6)/2) + 1.049852))","v":0.85122563532500006},0.77153564522499996,0.70381228360000003,0.65170908920000004,0.62039047080000009,0.60988816362500009,null,{"$f":"IF(AVERAGE(AK5:AK6)<51,0.000025*((AK6+AK5)/2)^2 - 0.01005*((AK6+AK5)/2) + 1.5955,(0.00000649518*((AK5+AK6)/2)^2 - 0.00338103746*((AK5+AK6)/2) + 1.049852))","v":0.85122563532500006},0.77153564522499996,0.70381228360000003,0.65170908920000004,0.62039047080000009,0.60988816362500009,null,{"$f":"IF(AVERAGE(AR5:AR6)<51,0.000025*((AR6+AR5)/2)^2 - 0.01005*((AR6+AR5)/2) + 1.5955,(0.00000649518*((AR5+AR6)/2)^2 - 0.00338103746*((AR5+AR6)/2) + 1.049852))","v":0.85122563532500006},0.77153564522499996,0.70381228360000003,0.65170908920000004,0.62039047080000009,0.60988816362500009]
["- Avail P:ME, g/mcal (Replacements)",{"$f":"IF(AVERAGE(B5:B6)<51,0.000025*((B6+B5)/2)^2 - 0.01005*((B6+B5)/2) + 1.5955,0.00000649518*((B6+B5)/2)^2 - 0.00338103746*((B6+B5)/2) + 1.3529)","v":1.154273635325},1.0745836452249999,1.0068602836,0.95475708920000002,0.92343847080000008,0.91293616362500007,null,{"$f":"IF(AVERAGE(I5:I6)<51,0.000025*((I6+I5)/2)^2 - 0.01005*((I6+I5)/2) + 1.5955,0.00000649518*((I6+I5)/2)^2 - 0.00338103746*((I6+I5)/2) + 1.3529)","v":1.154273635325},1.0745836452249999,1.0068602836,0.95475708920000002,0.92343847080000008,0.91293616362500007,null,{"$f":"IF(AVERAGE(P5:P6)<51,0.000025*((P6+P5)/2)^2 - 0.01005*((P6+P5)/2) + 1.5955,0.00000649518*((P6+P5)/2)^2 - 0.00338103746*((P6+P5)/2) + 1.3529)","v":1.154273635325},1.0745836452249999,1.0068602836,0.95475708920000002,0.92343847080000008,0.91293616362500007,null,{"$f":"IF(AVERAGE(W5:W6)<51,0.000025*((W6+W5)/2)^2 - 0.01005*((W6+W5)/2) + 1.5955,0.00000649518*((W6+W5)/2)^2 - 0.00338103746*((W6+W5)/2) + 1.3529)","v":1.154273635325},1.0745836452249999,1.0068602836,0.95475708920000002,0.92343847080000008,0.91293616362500007,null,{"$f":"IF(AVERAGE(AD5:AD6)<51,0.000025*((AD6+AD5)/2)^2 - 0.01005*((AD6+AD5)/2) + 1.5955,0.00000649518*((AD6+AD5)/2)^2 - 0.00338103746*((AD6+AD5)/2) + 1.3529)","v":1.154273635325},1.0745836452249999,1.0068602836,0.95475708920000002,0.92343847080000008,0.91293616362500007,null,{"$f":"IF(AVERAGE(AK5:AK6)<51,0.000025*((AK6+AK5)/2)^2 - 0.01005*((AK6+AK5)/2) + 1.5955,0.00000649518*((AK6+AK5)/2)^2 - 0.00338103746*((AK6+AK5)/2) + 1.3529)","v":1.154273635325},1.0745836452249999,1.0068602836,0.95475708920000002,0.92343847080000008,0.91293616362500007,null,{"$f":"IF(AVERAGE(AR5:AR6)<51,0.000025*((AR6+AR5)/2)^2 - 0.01005*((AR6+AR5)/2) + 1.5955,0.00000649518*((AR6+AR5)/2)^2 - 0.00338103746*((AR6+AR5)/2) + 1.3529)","v":1.154273635325},1.0745836452249999,1.0068602836,0.95475708920000002,0.92343847080000008,0.91293616362500007]
["- Available P, % (Terminal)",{"$f":"B281*(B246*2.2046)/10000","v":0.28053008203811425},0.2550261869451555,0.23325719020912211,0.21659170668863326,0.20667416767087224,0.20336945171913379,null,{"$f":"I281*(I246*2.2046)/10000","v":0.28113278030051814},0.25555554291203364,0.23376978030995887,0.21705054555374728,0.2071049885242352,0.20380149419472288,null,{"$f":"P281*(P246*2.2046)/10000","v":0.28172991387720375},0.25610242775007264,0.23426773474629345,0.21751630370166244,0.20754747335708176,0.2042344711288176,null,{"$f":"W281*(W246*2.2046)/10000","v":0.2823321999420817},0.25664938116492275,0.23477393831158003,0.21798840934054362,0.20801070783275163,0.20464752033518124,null,{"$f":"AD281*(AD246*2.2046)/10000","v":0.28294186820372458},0.25720615720194312,0.23528751828620642,0.21847485222678009,0.20833314337933312,0.20491499123735971,null,{"$f":"AK281*(AK246*2.2046)/10000","v":0.2835520495941603},0.25775601803335307,0.23580772297886091,0.21884393777844466,0.20860529793574384,0.20518162278618415,null,{"$f":"AR281*(AR246*2.2046)/10000","v":0.28415058152752543},0.25831988092014646,0.23633285159340167,0.21912976900488021,0.20887742688329716,0.20544824135072914]
["- STTD P, % (Terminal)",{"$f":" -0.096629122*LN(AVERAGE(B5:B6)/2.2046) + 0.7201091526","v":0.38948473530861316},0.34911934963648045,0.31899235830889017,0.29470806575817415,0.27531743264453717,0.25825045546730907,null,{"$f":" -0.096629122*LN(AVERAGE(I5:I6)/2.2046) + 0.7201091526","v":0.38948473530861316},0.34911934963648045,0.31899235830889017,0.29470806575817415,0.27531743264453717,0.25825045546730907,null,{"$f":" -0.096629122*LN(AVERAGE(P5:P6)/2.2046) + 0.7201091526","v":0.38948473530861316},0.34911934963648045,0.31899235830889017,0.29470806575817415,0.27531743264453717,0.25825045546730907,null,{"$f":" -0.096629122*LN(AVERAGE(W5:W6)/2.2046) + 0.7201091526","v":0.38948473530861316},0.34911934963648045,0.31899235830889017,0.29470806575817415,0.27531743264453717,0.25825045546730907,null,{"$f":" -0.096629122*LN(AVERAGE(AD5:AD6)/2.2046) + 0.7201091526","v":0.38948473530861316},0.34911934963648045,0.31899235830889017,0.29470806575817415,0.27531743264453717,0.25825045546730907,null,{"$f":" -0.096629122*LN(AVERAGE(AK5:AK6)/2.2046) + 0.7201091526","v":0.38948473530861316},0.34911934963648045,0.31899235830889017,0.29470806575817415,0.27531743264453717,0.25825045546730907,null,{"$f":" -0.096629122*LN(AVERAGE(AR5:AR6)/2.2046) + 0.7201091526","v":0.38948473530861316},0.34911934963648045,0.31899235830889017,0.29470806575817415,0.27531743264453717,0.25825045546730907]
["- Ca:P, Minimum",1,1,1,1,1,1,null,1,1,1,1,1,1,null,1,1,1,1,1,1,null,1,1,1,1,1,1,null,1,1,1,1,1,1,null,1,1,1,1,1,1,null,1,1,1,1,1,1]
["- Ca:P, Maximum",1.5,1.5,1.5,1.5,1.5,1.5,null,1.5,1.5,1.5,1.5,1.5,1.5,null,1.5,1.5,1.5,1.5,1.5,1.5,null,1.5,1.5,1.5,1.5,1.5,1.5,null,1.5,1.5,1.5,1.5,1.5,1.5,null,1.5,1.5,1.5,1.5,1.5,1.5,null,1.5,1.5,1.5,1.5,1.5,1.5]
["NRC Ca, %",{"$f":"-0.12264*LN(AVERAGE(B5:B6)/2.2046) + 1.07262","v":0.65299724345031629},0.60176619843647083,0.56352954534532851,0.53270834386095811,0.50809808976948001,0.48643697935376851,null,{"$f":"-0.12264*LN(AVERAGE(I5:I6)/2.2046) + 1.07262","v":0.65299724345031629},0.60176619843647083,0.56352954534532851,0.53270834386095811,0.50809808976948001,0.48643697935376851,null,{"$f":"-0.12264*LN(AVERAGE(P5:P6)/2.2046) + 1.07262","v":0.65299724345031629},0.60176619843647083,0.56352954534532851,0.53270834386095811,0.50809808976948001,0.48643697935376851,null,{"$f":"-0.12264*LN(AVERAGE(W5:W6)/2.2046) + 1.07262","v":0.65299724345031629},0.60176619843647083,0.56352954534532851,0.53270834386095811,0.50809808976948001,0.48643697935376851,null,{"$f":"-0.12264*LN(AVERAGE(AD5:AD6)/2.2046) + 1.07262","v":0.65299724345031629},0.60176619843647083,0.56352954534532851,0.53270834386095811,0.50809808976948001,0.48643697935376851,null,{"$f":"-0.12264*LN(AVERAGE(AK5:AK6)/2.2046) + 1.07262","v":0.65299724345031629},0.60176619843647083,0.56352954534532851,0.53270834386095811,0.50809808976948001,0.48643697935376851,null,{"$f":"-0.12264*LN(AVERAGE(AR5:AR6)/2.2046) + 1.07262","v":0.65299724345031629},0.60176619843647083,0.56352954534532851,0.53270834386095811,0.50809808976948001,0.48643697935376851]
["NRC STTD P, %",0.4,0.36,0.32,0.28999999999999998,0.27,0.26,null,0.4,0.36,0.32,0.28999999999999998,0.27,0.26,null,0.4,0.36,0.32,0.28999999999999998,0.27,0.26,null,0.4,0.36,0.32,0.28999999999999998,0.27,0.26,null,0.4,0.36,0.32,0.28999999999999998,0.27,0.26,null,0.4,0.36,0.32,0.28999999999999998,0.27,0.26,null,0.4,0.36,0.32,0.28999999999999998,0.27,0.26]
["NRC Ca:STTD P",1.74,1.74,1.79,1.79,1.77,1.77,null,1.74,1.74,1.79,1.79,1.77,1.77,null,1.74,1.74,1.79,1.79,1.77,1.77,null,1.74,1.74,1.79,1.79,1.77,1.77,null,1.74,1.74,1.79,1.79,1.77,1.77,null,1.74,1.74,1.79,1.79,1.77,1.77,null,1.74,1.74,1.79,1.79,1.77,1.77]
["- Lysine:CP, Maximum",7.3,8.3000000000000007,9.3000000000000007,10.3,11.3,11.3,null,7.3,8.3000000000000007,9.3000000000000007,10.3,11.3,11.3,null,7.3,8.3000000000000007,9.3000000000000007,10.3,11.3,11.3,null,7.3,8.3000000000000007,9.3000000000000007,10.3,11.3,11.3,null,7.3,8.3000000000000007,9.3000000000000007,10.3,11.3,11.3,null,7.3,8.3000000000000007,9.3000000000000007,10.3,11.3,11.3,null,7.3,8.3000000000000007,9.3000000000000007,10.3,11.3,11.3]
[]
["Required SID Lys:ME Ratio",{"$f":"IF(AVERAGE(B5:B6)<15,-0.0525*((B5+B6)/2) + 5.0586,IF(AVERAGE(B5:B6)<50,(-0.007855*((B5+B6)/2) + 4.1),(0.000025*((B5+B6)/2)^2 - 0.016*((B5+B6)/2)+ 4.53)*0.87))","v":3.1005984375},2.7428109375000003,2.4186000000000001,2.1402000000000005,1.9314000000000002,1.7858109375,null,{"$f":"IF(AVERAGE(I5:I6)<15,-0.0525*((I5+I6)/2) + 5.0586,IF(AVERAGE(I5:I6)<50,(-0.007855*((I5+I6)/2) + 4.1),(0.000025*((I5+I6)/2)^2 - 0.016*((I5+I6)/2)+ 4.53)*0.87))","v":3.1005984375},2.7428109375000003,2.4186000000000001,2.1402000000000005,1.9314000000000002,1.7858109375,null,{"$f":"IF(AVERAGE(P5:P6)<15,-0.0525*((P5+P6)/2) + 5.0586,IF(AVERAGE(P5:P6)<50,(-0.007855*((P5+P6)/2) + 4.1),(0.000025*((P5+P6)/2)^2 - 0.016*((P5+P6)/2)+ 4.53)*0.87))","v":3.1005984375},2.7428109375000003,2.4186000000000001,2.1402000000000005,1.9314000000000002,1.7858109375,null,{"$f":"IF(AVERAGE(W5:W6)<15,-0.0525*((W5+W6)/2) + 5.0586,IF(AVERAGE(W5:W6)<50,(-0.007855*((W5+W6)/2) + 4.1),(0.000025*((W5+W6)/2)^2 - 0.016*((W5+W6)/2)+ 4.53)*0.87))","v":3.1005984375},2.7428109375000003,2.4186000000000001,2.1402000000000005,1.9314000000000002,1.7858109375,null,{"$f":"IF(AVERAGE(AD5:AD6)<15,-0.0525*((AD5+AD6)/2) + 5.0586,IF(AVERAGE(AD5:AD6)<50,(-0.007855*((AD5+AD6)/2) + 4.1),(0.000025*((AD5+AD6)/2)^2 - 0.016*((AD5+AD6)/2)+ 4.53)*0.87))","v":3.1005984375},2.7428109375000003,2.4186000000000001,2.1402000000000005,1.9314000000000002,1.7858109375,null,{"$f":"IF(AVERAGE(AK5:AK6)<15,-0.0525*((AK5+AK6)/2) + 5.0586,IF(AVERAGE(AK5:AK6)<50,(-0.007855*((AK5+AK6)/2) + 4.1),(0.000025*((AK5+AK6)/2)^2 - 0.016*((AK5+AK6)/2)+ 4.53)*0.87))","v":3.1005984375},2.7428109375000003,2.4186000000000001,2.1402000000000005,1.9314000000000002,1.7858109375,null,{"$f":"IF(AVERAGE(AR5:AR6)<15,-0.0525*((AR5+AR6)/2) + 5.0586,IF(AVERAGE(AR5:AR6)<50,(-0.007855*((AR5+AR6)/2) + 4.1),(0.000025*((AR5+AR6)/2)^2 - 0.016*((AR5+AR6)/2)+ 4.53)*0.87))","v":3.1005984375},2.7428109375000003,2.4186000000000001,2.1402000000000005,1.9314000000000002,1.7858109375]
["Calculated SID Lysine Required, %",{"$f":"IF(B292=\"\",\"\",B246*2.2046*B292/10000)","v":1.0218338099122541},0.90661866270365665,0.80157146072263108,0.71128296096658616,0.64341814748506398,0.5954852264631163,null,{"$f":"IF(I292=\"\",\"\",I246*2.2046*I292/10000)","v":1.0240291447484517},0.90850052434513762,0.80333293952425489,0.71278977889407957,0.64475937923401738,0.59675028819801823,null,{"$f":"IF(P292=\"\",\"\",P246*2.2046*P292/10000)","v":1.0262042101576878},0.91044470116264398,0.80504412392353608,0.71431931961199679,0.64613692329116235,0.59801808611689522,null,{"$f":"IF(W292=\"\",\"\",W246*2.2046*W292/10000)","v":1.0283980435600095},0.91238912177086662,0.80678365585773271,0.71586970536704853,0.64757906514926511,0.59922753374097382,null,{"$f":"IF(AD292=\"\",\"\",AD246*2.2046*AD292/10000)","v":1.030618766692627},0.91436846182278608,0.8085485362890289,0.71746717436414553,0.64858287169365725,0.60001071415184504,null,{"$f":"IF(AK292=\"\",\"\",AK246*2.2046*AK292/10000)","v":1.0328413589023342},0.91632321830335584,0.81033618208460745,0.71867924415228079,0.64943014342814054,0.60079143685573078,null,{"$f":"IF(AR292=\"\",\"\",AR246*2.2046*AR292/10000)","v":1.0350215178406599},0.91832775212200546,0.81214074858156005,0.71961790835223594,0.65027733543711308,0.60157212154040307]
[]
[]
["Other nutrients, calculated"]
["Other ingredients TID Lysine, %",{"$f":"SUMPRODUCT(B$9:B$229,Nutrients!$DA$8:$DA$228)/2000","v":0.35459999999999997},{"$f":"SUMPRODUCT(C$9:C$229,Nutrients!$DA$8:$DA$228)/2000","v":0.31519999999999998},{"$f":"SUMPRODUCT(D$9:D$229,Nutrients!$DA$8:$DA$228)/2000","v":0.27579999999999999},{"$f":"SUMPRODUCT(E$9:E$229,Nutrients!$DA$8:$DA$228)/2000","v":0.25692384707729665},{"$f":"SUMPRODUCT(F$9:F$229,Nutrients!$DA$8:$DA$228)/2000","v":0.25692384707729665},{"$f":"SUMPRODUCT(G$9:G$229,Nutrients!$DA$8:$DA$228)/2000","v":0.25692384707729665},null,{"$f":"SUMPRODUCT(I$9:I$229,Nutrients!$DA$8:$DA$228)/2000","v":0.39727200000000001},{"$f":"SUMPRODUCT(J$9:J$229,Nutrients!$DA$8:$DA$228)/2000","v":0.35787200000000002},{"$f":"SUMPRODUCT(K$9:K$229,Nutrients!$DA$8:$DA$228)/2000","v":0.31847199999999998},{"$f":"SUMPRODUCT(L$9:L$229,Nutrients!$DA$8:$DA$228)/2000","v":0.2995958470772967},{"$f":"SUMPRODUCT(M$9:M$229,Nutrients!$DA$8:$DA$228)/2000","v":0.2995958470772967},{"$f":"SUMPRODUCT(N$9:N$229,Nutrients!$DA$8:$DA$228)/2000","v":0.2995958470772967},null,{"$f":"SUMPRODUCT(P$9:P$229,Nutrients!$DA$8:$DA$228)/2000","v":0.43994399999999995},{"$f":"SUMPRODUCT(Q$9:Q$229,Nutrients!$DA$8:$DA$228)/2000","v":0.40054399999999996},{"$f":"SUMPRODUCT(R$9:R$229,Nutrients!$DA$8:$DA$228)/2000","v":0.36114400000000002},{"$f":"SUMPRODUCT(S$9:S$229,Nutrients!$DA$8:$DA$228)/2000","v":0.34226784707729668},{"$f":"SUMPRODUCT(T$9:T$229,Nutrients!$DA$8:$DA$228)/2000","v":0.34226784707729668},{"$f":"SUMPRODUCT(U$9:U$229,Nutrients!$DA$8:$DA$228)/2000","v":0.34226784707729668},null,{"$f":"SUMPRODUCT(W$9:W$229,Nutrients!$DA$8:$DA$228)/2000","v":0.48261599999999993},{"$f":"SUMPRODUCT(X$9:X$229,Nutrients!$DA$8:$DA$228)/2000","v":0.44321599999999994},{"$f":"SUMPRODUCT(Y$9:Y$229,Nutrients!$DA$8:$DA$228)/2000","v":0.40381599999999995},{"$f":"SUMPRODUCT(Z$9:Z$229,Nutrients!$DA$8:$DA$228)/2000","v":0.38493984707729662},{"$f":"SUMPRODUCT(AA$9:AA$229,Nutrients!$DA$8:$DA$228)/2000","v":0.38493984707729662},{"$f":"SUMPRODUCT(AB$9:AB$229,Nutrients!$DA$8:$DA$228)/2000","v":0.38493984707729662},null,{"$f":"SUMPRODUCT(AD$9:AD$229,Nutrients!$DA$8:$DA$228)/2000","v":0.52528799999999998},{"$f":"SUMPRODUCT(AE$9:AE$229,Nutrients!$DA$8:$DA$228)/2000","v":0.48588799999999999},{"$f":"SUMPRODUCT(AF$9:AF$229,Nutrients!$DA$8:$DA$228)/2000","v":0.44648799999999994},{"$f":"SUMPRODUCT(AG$9:AG$229,Nutrients!$DA$8:$DA$228)/2000","v":0.42761184707729666},{"$f":"SUMPRODUCT(AH$9:AH$229,Nutrients!$DA$8:$DA$228)/2000","v":0.42761184707729666},{"$f":"SUMPRODUCT(AI$9:AI$229,Nutrients!$DA$8:$DA$228)/2000","v":0.42761184707729666},null,{"$f":"SUMPRODUCT(AK$9:AK$229,Nutrients!$DA$8:$DA$228)/2000","v":0.56795999999999991},{"$f":"SUMPRODUCT(AL$9:AL$229,Nutrients!$DA$8:$DA$228)/2000","v":0.52855999999999992},{"$f":"SUMPRODUCT(AM$9:AM$229,Nutrients!$DA$8:$DA$228)/2000","v":0.48915999999999998},{"$f":"SUMPRODUCT(AN$9:AN$229,Nutrients!$DA$8:$DA$228)/2000","v":0.47028384707729665},{"$f":"SUMPRODUCT(AO$9:AO$229,Nutrients!$DA$8:$DA$228)/2000","v":0.47028384707729665},{"$f":"SUMPRODUCT(AP$9:AP$229,Nutrients!$DA$8:$DA$228)/2000","v":0.47028384707729665},null,{"$f":"SUMPRODUCT(AR$9:AR$229,Nutrients!$DA$8:$DA$228)/2000","v":0.61063199999999995},{"$f":"SUMPRODUCT(AS$9:AS$229,Nutrients!$DA$8:$DA$228)/2000","v":0.57123199999999996},{"$f":"SUMPRODUCT(AT$9:AT$229,Nutrients!$DA$8:$DA$228)/2000","v":0.53183199999999997},{"$f":"SUMPRODUCT(AU$9:AU$229,Nutrients!$DA$8:$DA$228)/2000","v":0.51295584707729669},{"$f":"SUMPRODUCT(AV$9:AV$229,Nutrients!$DA$8:$DA$228)/2000","v":0.51295584707729669},{"$f":"SUMPRODUCT(AW$9:AW$229,Nutrients!$DA$8:$DA$228)/2000","v":0.51295584707729669}]
["Total Lys:ME, g/mcal",{"$f":"IF(B$5=\"\",\"\",B245/(B246*2.2046)*10000)","v":4.0004918161487684},3.5419410134415341,3.1391303590347972,2.8010240180887811,2.5643124869082041,2.4347307257524458,null,{"$f":"IF(I$5=\"\",\"\",I245/(I246*2.2046)*10000)","v":3.9864485064889008},3.5340158918910172,3.1356577051312526,2.8011491032361246,2.5648251725614659,2.4367372963940848,null,{"$f":"IF(P$5=\"\",\"\",P245/(P246*2.2046)*10000)","v":3.9788169015592301},3.5302179877777511,3.1358643115554283,2.8005462223474087,2.5672903941080913,2.4405285863081705,null,{"$f":"IF(W$5=\"\",\"\",W245/(W246*2.2046)*10000)","v":3.9711384490381958},3.5264507557221485,3.1314340725627372,2.8010104573408361,2.5697679111813336,2.4439873681932456,null,{"$f":"IF(AD$5=\"\",\"\",AD245/(AD246*2.2046)*10000)","v":3.9630280743446122},3.5181130419046216,3.1279863761305937,2.8011931901551494,2.5721725545545535,2.4476420269516206,null,{"$f":"IF(AK$5=\"\",\"\",AK245/(AK246*2.2046)*10000)","v":3.9561158646018915},3.5111900333635315,3.1249732333882854,2.8014739625221403,2.5745750935787202,2.4512823704496887,null,{"$f":"IF(AR$5=\"\",\"\",AR245/(AR246*2.2046)*10000)","v":3.9581107695750393},3.504122485140722,3.1227560503208212,2.8021108807362807,2.5769938926457594,2.4549218759802023]
["SID Lys:ME, g/mcal",{"$f":"IF(B$5=\"\",\"\",B236/(B246*2.2046)*10000)","v":3.5990753406176657},3.1727222375948116,2.7968342544845632,2.4855813058752307,2.2715388971881016,2.1544027583542169,null,{"$f":"IF(I$5=\"\",\"\",I236/(I246*2.2046)*10000)","v":3.5618311780488763},3.1411124768558918,2.7693450866513083,2.4614200897316159,2.2477806695451705,2.1320274515813415,null,{"$f":"IF(P$5=\"\",\"\",P236/(P246*2.2046)*10000)","v":3.5304914032620984},3.1133434736847709,2.7452862258836985,2.4367117749500187,2.2259030130592716,2.1113702427434964,null,{"$f":"IF(W$5=\"\",\"\",W236/(W246*2.2046)*10000)","v":3.499217412744013},3.0857036449734365,2.7171467973011745,2.4130811678888708,2.2041711741403605,2.0905490023895674,null,{"$f":"IF(AD$5=\"\",\"\",AD236/(AD246*2.2046)*10000)","v":3.4676641085929081},3.0540446219593269,2.6900100640750897,2.3893274702647513,2.1824670210891051,2.0699874695038449,null,{"$f":"IF(AK$5=\"\",\"\",AK236/(AK246*2.2046)*10000)","v":3.4372996204475261},3.0237604097242543,2.6633818111303991,2.3657427545090925,2.1608228840750709,2.04947393380426,null,{"$f":"IF(AR$5=\"\",\"\",AR236/(AR246*2.2046)*10000)","v":3.4150809020128592},2.9934674818333606,2.637591916630011,2.3425340164691066,2.1392554856611854,2.029021417902217]
["Lysine:CP",{"$f":"B245/B253*100","v":6.8677028806815752},6.6830941302046103,6.4644027164582063,6.3149371296786221,6.2696154239212527,6.2402437601749243,null,{"$f":"I245/I253*100","v":6.7644145662657404},6.5728321084152954,6.3467759741919929,6.1914683549594036,6.1383833448568614,6.1019508930896507,null,{"$f":"P245/P253*100","v":6.6635859654498963},6.4647833145415987,6.2345638955720508,6.0718274269690049,6.0111558209644897,5.9706457870227672,null,{"$f":"W245/W253*100","v":6.5651495251310106},6.3607107969065702,6.1250637832738395,5.9561211294015557,5.8859150797251587,5.8415238664323343,null,{"$f":"AD245/AD253*100","v":6.4687800959429316},6.2587131799281481,6.0184882570585394,5.8425587065923201,5.7669327408299074,5.7192390863076179,null,{"$f":"AK245/AK253*100","v":6.3751696630599017},6.1608484084345303,5.9149855327636667,5.7343291141728043,5.6535326972005091,5.6027580971931226,null,{"$f":"AR245/AR253*100","v":6.2857137553302769},6.0642637914164768,5.8143310464360622,5.6307308827275113,5.5449929116169594,5.4915391841819368]
["Crude fat, %",{"$f":"(SUMPRODUCT(B$9:B$229,Nutrients!$K$8:$K$228)+(IF($A$7=Nutrients!$B$8,Nutrients!$K$8,Nutrients!$K$9)*B$7)+(((IF($A$8=Nutrients!$B$79,Nutrients!$K$79,(IF($A$8=Nutrients!$B$77,Nutrients!$K$77,Nutrients!$K$78)))))*B$8))/2000","v":2.8430787934788264},{"$f":"(SUMPRODUCT(C$9:C$229,Nutrients!$K$8:$K$228)+(IF($A$7=Nutrients!$B$8,Nutrients!$K$8,Nutrients!$K$9)*C$7)+(((IF($A$8=Nutrients!$B$79,Nutrients!$K$79,(IF($A$8=Nutrients!$B$77,Nutrients!$K$77,Nutrients!$K$78)))))*C$8))/2000","v":2.9356906063346426},{"$f":"(SUMPRODUCT(D$9:D$229,Nutrients!$K$8:$K$228)+(IF($A$7=Nutrients!$B$8,Nutrients!$K$8,Nutrients!$K$9)*D$7)+(((IF($A$8=Nutrients!$B$79,Nutrients!$K$79,(IF($A$8=Nutrients!$B$77,Nutrients!$K$77,Nutrients!$K$78)))))*D$8))/2000","v":3.0150158948020342},{"$f":"(SUMPRODUCT(E$9:E$229,Nutrients!$K$8:$K$228)+(IF($A$7=Nutrients!$B$8,Nutrients!$K$8,Nutrients!$K$9)*E$7)+(((IF($A$8=Nutrients!$B$79,Nutrients!$K$79,(IF($A$8=Nutrients!$B$77,Nutrients!$K$77,Nutrients!$K$78)))))*E$8))/2000","v":3.0897558386383324},{"$f":"(SUMPRODUCT(F$9:F$229,Nutrients!$K$8:$K$228)+(IF($A$7=Nutrients!$B$8,Nutrients!$K$8,Nutrients!$K$9)*F$7)+(((IF($A$8=Nutrients!$B$79,Nutrients!$K$79,(IF($A$8=Nutrients!$B$77,Nutrients!$K$77,Nutrients!$K$78)))))*F$8))/2000","v":3.1512333335874807},{"$f":"(SUMPRODUCT(G$9:G$229,Nutrients!$K$8:$K$228)+(IF($A$7=Nutrients!$B$8,Nutrients!$K$8,Nutrients!$K$9)*G$7)+(((IF($A$8=Nutrients!$B$79,Nutrients!$K$79,(IF($A$8=Nutrients!$B$77,Nutrients!$K$77,Nutrients!$K$78)))))*G$8))/2000","v":3.1836624192329586},null,{"$f":"(SUMPRODUCT(I$9:I$229,Nutrients!$K$8:$K$228)+(IF($A$7=Nutrients!$B$8,Nutrients!$K$8,Nutrients!$K$9)*I$7)+(((IF($A$8=Nutrients!$B$79,Nutrients!$K$79,(IF($A$8=Nutrients!$B$77,Nutrients!$K$77,Nutrients!$K$78)))))*I$8))/2000","v":3.3052423735187202},{"$f":"(SUMPRODUCT(J$9:J$229,Nutrients!$K$8:$K$228)+(IF($A$7=Nutrients!$B$8,Nutrients!$K$8,Nutrients!$K$9)*J$7)+(((IF($A$8=Nutrients!$B$79,Nutrients!$K$79,(IF($A$8=Nutrients!$B$77,Nutrients!$K$77,Nutrients!$K$78)))))*J$8))/2000","v":3.3964007080477434},{"$f":"(SUMPRODUCT(K$9:K$229,Nutrients!$K$8:$K$228)+(IF($A$7=Nutrients!$B$8,Nutrients!$K$8,Nutrients!$K$9)*K$7)+(((IF($A$8=Nutrients!$B$79,Nutrients!$K$79,(IF($A$8=Nutrients!$B$77,Nutrients!$K$77,Nutrients!$K$78)))))*K$8))/2000","v":3.4747904505875198},{"$f":"(SUMPRODUCT(L$9:L$229,Nutrients!$K$8:$K$228)+(IF($A$7=Nutrients!$B$8,Nutrients!$K$8,Nutrients!$K$9)*L$7)+(((IF($A$8=Nutrients!$B$79,Nutrients!$K$79,(IF($A$8=Nutrients!$B$77,Nutrients!$K$77,Nutrients!$K$78)))))*L$8))/2000","v":3.5488535366439304},{"$f":"(SUMPRODUCT(M$9:M$229,Nutrients!$K$8:$K$228)+(IF($A$7=Nutrients!$B$8,Nutrients!$K$8,Nutrients!$K$9)*M$7)+(((IF($A$8=Nutrients!$B$79,Nutrients!$K$79,(IF($A$8=Nutrients!$B$77,Nutrients!$K$77,Nutrients!$K$78)))))*M$8))/2000","v":3.6104669910076255},{"$f":"(SUMPRODUCT(N$9:N$229,Nutrients!$K$8:$K$228)+(IF($A$7=Nutrients!$B$8,Nutrients!$K$8,Nutrients!$K$9)*N$7)+(((IF($A$8=Nutrients!$B$79,Nutrients!$K$79,(IF($A$8=Nutrients!$B$77,Nutrients!$K$77,Nutrients!$K$78)))))*N$8))/2000","v":3.642376390277271},null,{"$f":"(SUMPRODUCT(P$9:P$229,Nutrients!$K$8:$K$228)+(IF($A$7=Nutrients!$B$8,Nutrients!$K$8,Nutrients!$K$9)*P$7)+(((IF($A$8=Nutrients!$B$79,Nutrients!$K$79,(IF($A$8=Nutrients!$B$77,Nutrients!$K$77,Nutrients!$K$78)))))*P$8))/2000","v":3.7657415212659768},{"$f":"(SUMPRODUCT(Q$9:Q$229,Nutrients!$K$8:$K$228)+(IF($A$7=Nutrients!$B$8,Nutrients!$K$8,Nutrients!$K$9)*Q$7)+(((IF($A$8=Nutrients!$B$79,Nutrients!$K$79,(IF($A$8=Nutrients!$B$77,Nutrients!$K$77,Nutrients!$K$78)))))*Q$8))/2000","v":3.8559495507940609},{"$f":"(SUMPRODUCT(R$9:R$229,Nutrients!$K$8:$K$228)+(IF($A$7=Nutrients!$B$8,Nutrients!$K$8,Nutrients!$K$9)*R$7)+(((IF($A$8=Nutrients!$B$79,Nutrients!$K$79,(IF($A$8=Nutrients!$B$77,Nutrients!$K$77,Nutrients!$K$78)))))*R$8))/2000","v":3.9336151664554309},{"$f":"(SUMPRODUCT(S$9:S$229,Nutrients!$K$8:$K$228)+(IF($A$7=Nutrients!$B$8,Nutrients!$K$8,Nutrients!$K$9)*S$7)+(((IF($A$8=Nutrients!$B$79,Nutrients!$K$79,(IF($A$8=Nutrients!$B$77,Nutrients!$K$77,Nutrients!$K$78)))))*S$8))/2000","v":4.0079429412506506},{"$f":"(SUMPRODUCT(T$9:T$229,Nutrients!$K$8:$K$228)+(IF($A$7=Nutrients!$B$8,Nutrients!$K$8,Nutrients!$K$9)*T$7)+(((IF($A$8=Nutrients!$B$79,Nutrients!$K$79,(IF($A$8=Nutrients!$B$77,Nutrients!$K$77,Nutrients!$K$78)))))*T$8))/2000","v":4.0688961843993612},{"$f":"(SUMPRODUCT(U$9:U$229,Nutrients!$K$8:$K$228)+(IF($A$7=Nutrients!$B$8,Nutrients!$K$8,Nutrients!$K$9)*U$7)+(((IF($A$8=Nutrients!$B$79,Nutrients!$K$79,(IF($A$8=Nutrients!$B$77,Nutrients!$K$77,Nutrients!$K$78)))))*U$8))/2000","v":4.1005866354230402},null,{"$f":"(SUMPRODUCT(W$9:W$229,Nutrients!$K$8:$K$228)+(IF($A$7=Nutrients!$B$8,Nutrients!$K$8,Nutrients!$K$9)*W$7)+(((IF($A$8=Nutrients!$B$79,Nutrients!$K$79,(IF($A$8=Nutrients!$B$77,Nutrients!$K$77,Nutrients!$K$78)))))*W$8))/2000","v":4.2261506187639624},{"$f":"(SUMPRODUCT(X$9:X$229,Nutrients!$K$8:$K$228)+(IF($A$7=Nutrients!$B$8,Nutrients!$K$8,Nutrients!$K$9)*X$7)+(((IF($A$8=Nutrients!$B$79,Nutrients!$K$79,(IF($A$8=Nutrients!$B$77,Nutrients!$K$77,Nutrients!$K$78)))))*X$8))/2000","v":4.3155627659604798},{"$f":"(SUMPRODUCT(Y$9:Y$229,Nutrients!$K$8:$K$228)+(IF($A$7=Nutrients!$B$8,Nutrients!$K$8,Nutrients!$K$9)*Y$7)+(((IF($A$8=Nutrients!$B$79,Nutrients!$K$79,(IF($A$8=Nutrients!$B$77,Nutrients!$K$77,Nutrients!$K$78)))))*Y$8))/2000","v":4.3934256797400701},{"$f":"(SUMPRODUCT(Z$9:Z$229,Nutrients!$K$8:$K$228)+(IF($A$7=Nutrients!$B$8,Nutrients!$K$8,Nutrients!$K$9)*Z$7)+(((IF($A$8=Nutrients!$B$79,Nutrients!$K$79,(IF($A$8=Nutrients!$B$77,Nutrients!$K$77,Nutrients!$K$78)))))*Z$8))/2000","v":4.4665608878475265},{"$f":"(SUMPRODUCT(AA$9:AA$229,Nutrients!$K$8:$K$228)+(IF($A$7=Nutrients!$B$8,Nutrients!$K$8,Nutrients!$K$9)*AA$7)+(((IF($A$8=Nutrients!$B$79,Nutrients!$K$79,(IF($A$8=Nutrients!$B$77,Nutrients!$K$77,Nutrients!$K$78)))))*AA$8))/2000","v":4.5266489019147738},{"$f":"(SUMPRODUCT(AB$9:AB$229,Nutrients!$K$8:$K$228)+(IF($A$7=Nutrients!$B$8,Nutrients!$K$8,Nutrients!$K$9)*AB$7)+(((IF($A$8=Nutrients!$B$79,Nutrients!$K$79,(IF($A$8=Nutrients!$B$77,Nutrients!$K$77,Nutrients!$K$78)))))*AB$8))/2000","v":4.5575478005384698},null,{"$f":"(SUMPRODUCT(AD$9:AD$229,Nutrients!$K$8:$K$228)+(IF($A$7=Nutrients!$B$8,Nutrients!$K$8,Nutrients!$K$9)*AD$7)+(((IF($A$8=Nutrients!$B$79,Nutrients!$K$79,(IF($A$8=Nutrients!$B$77,Nutrients!$K$77,Nutrients!$K$78)))))*AD$8))/2000","v":4.6865130864477624},{"$f":"(SUMPRODUCT(AE$9:AE$229,Nutrients!$K$8:$K$228)+(IF($A$7=Nutrients!$B$8,Nutrients!$K$8,Nutrients!$K$9)*AE$7)+(((IF($A$8=Nutrients!$B$79,Nutrients!$K$79,(IF($A$8=Nutrients!$B$77,Nutrients!$K$77,Nutrients!$K$78)))))*AE$8))/2000","v":4.7761331727245384},{"$f":"(SUMPRODUCT(AF$9:AF$229,Nutrients!$K$8:$K$228)+(IF($A$7=Nutrients!$B$8,Nutrients!$K$8,Nutrients!$K$9)*AF$7)+(((IF($A$8=Nutrients!$B$79,Nutrients!$K$79,(IF($A$8=Nutrients!$B$77,Nutrients!$K$77,Nutrients!$K$78)))))*AF$8))/2000","v":4.8527858638952406},{"$f":"(SUMPRODUCT(AG$9:AG$229,Nutrients!$K$8:$K$228)+(IF($A$7=Nutrients!$B$8,Nutrients!$K$8,Nutrients!$K$9)*AG$7)+(((IF($A$8=Nutrients!$B$79,Nutrients!$K$79,(IF($A$8=Nutrients!$B$77,Nutrients!$K$77,Nutrients!$K$78)))))*AG$8))/2000","v":4.9246614812118352},{"$f":"(SUMPRODUCT(AH$9:AH$229,Nutrients!$K$8:$K$228)+(IF($A$7=Nutrients!$B$8,Nutrients!$K$8,Nutrients!$K$9)*AH$7)+(((IF($A$8=Nutrients!$B$79,Nutrients!$K$79,(IF($A$8=Nutrients!$B$77,Nutrients!$K$77,Nutrients!$K$78)))))*AH$8))/2000","v":4.9823409601478907},{"$f":"(SUMPRODUCT(AI$9:AI$229,Nutrients!$K$8:$K$228)+(IF($A$7=Nutrients!$B$8,Nutrients!$K$8,Nutrients!$K$9)*AI$7)+(((IF($A$8=Nutrients!$B$79,Nutrients!$K$79,(IF($A$8=Nutrients!$B$77,Nutrients!$K$77,Nutrients!$K$78)))))*AI$8))/2000","v":5.0122599467100111},null,{"$f":"(SUMPRODUCT(AK$9:AK$229,Nutrients!$K$8:$K$228)+(IF($A$7=Nutrients!$B$8,Nutrients!$K$8,Nutrients!$K$9)*AK$7)+(((IF($A$8=Nutrients!$B$79,Nutrients!$K$79,(IF($A$8=Nutrients!$B$77,Nutrients!$K$77,Nutrients!$K$78)))))*AK$8))/2000","v":5.1465502437472983},{"$f":"(SUMPRODUCT(AL$9:AL$229,Nutrients!$K$8:$K$228)+(IF($A$7=Nutrients!$B$8,Nutrients!$K$8,Nutrients!$K$9)*AL$7)+(((IF($A$8=Nutrients!$B$79,Nutrients!$K$79,(IF($A$8=Nutrients!$B$77,Nutrients!$K$77,Nutrients!$K$78)))))*AL$8))/2000","v":5.2365140789422817},{"$f":"(SUMPRODUCT(AM$9:AM$229,Nutrients!$K$8:$K$228)+(IF($A$7=Nutrients!$B$8,Nutrients!$K$8,Nutrients!$K$9)*AM$7)+(((IF($A$8=Nutrients!$B$79,Nutrients!$K$79,(IF($A$8=Nutrients!$B$77,Nutrients!$K$77,Nutrients!$K$78)))))*AM$8))/2000","v":5.3118268623642635},{"$f":"(SUMPRODUCT(AN$9:AN$229,Nutrients!$K$8:$K$228)+(IF($A$7=Nutrients!$B$8,Nutrients!$K$8,Nutrients!$K$9)*AN$7)+(((IF($A$8=Nutrients!$B$79,Nutrients!$K$79,(IF($A$8=Nutrients!$B$77,Nutrients!$K$77,Nutrients!$K$78)))))*AN$8))/2000","v":5.3812037461929858},{"$f":"(SUMPRODUCT(AO$9:AO$229,Nutrients!$K$8:$K$228)+(IF($A$7=Nutrients!$B$8,Nutrients!$K$8,Nutrients!$K$9)*AO$7)+(((IF($A$8=Nutrients!$B$79,Nutrients!$K$79,(IF($A$8=Nutrients!$B$77,Nutrients!$K$77,Nutrients!$K$78)))))*AO$8))/2000","v":5.4373359615443739},{"$f":"(SUMPRODUCT(AP$9:AP$229,Nutrients!$K$8:$K$228)+(IF($A$7=Nutrients!$B$8,Nutrients!$K$8,Nutrients!$K$9)*AP$7)+(((IF($A$8=Nutrients!$B$79,Nutrients!$K$79,(IF($A$8=Nutrients!$B$77,Nutrients!$K$77,Nutrients!$K$78)))))*AP$8))/2000","v":5.4669938513463761},null,{"$f":"(SUMPRODUCT(AR$9:AR$229,Nutrients!$K$8:$K$228)+(IF($A$7=Nutrients!$B$8,Nutrients!$K$8,Nutrients!$K$9)*AR$7)+(((IF($A$8=Nutrients!$B$79,Nutrients!$K$79,(IF($A$8=Nutrients!$B$77,Nutrients!$K$77,Nutrients!$K$78)))))*AR$8))/2000","v":5.6045348466656559},{"$f":"(SUMPRODUCT(AS$9:AS$229,Nutrients!$K$8:$K$228)+(IF($A$7=Nutrients!$B$8,Nutrients!$K$8,Nutrients!$K$9)*AS$7)+(((IF($A$8=Nutrients!$B$79,Nutrients!$K$79,(IF($A$8=Nutrients!$B$77,Nutrients!$K$77,Nutrients!$K$78)))))*AS$8))/2000","v":5.6965854282700619},{"$f":"(SUMPRODUCT(AT$9:AT$229,Nutrients!$K$8:$K$228)+(IF($A$7=Nutrients!$B$8,Nutrients!$K$8,Nutrients!$K$9)*AT$7)+(((IF($A$8=Nutrients!$B$79,Nutrients!$K$79,(IF($A$8=Nutrients!$B$77,Nutrients!$K$77,Nutrients!$K$78)))))*AT$8))/2000","v":5.7703663823664106},{"$f":"(SUMPRODUCT(AU$9:AU$229,Nutrients!$K$8:$K$228)+(IF($A$7=Nutrients!$B$8,Nutrients!$K$8,Nutrients!$K$9)*AU$7)+(((IF($A$8=Nutrients!$B$79,Nutrients!$K$79,(IF($A$8=Nutrients!$B$77,Nutrients!$K$77,Nutrients!$K$78)))))*AU$8))/2000","v":5.8365347760164585},{"$f":"(SUMPRODUCT(AV$9:AV$229,Nutrients!$K$8:$K$228)+(IF($A$7=Nutrients!$B$8,Nutrients!$K$8,Nutrients!$K$9)*AV$7)+(((IF($A$8=Nutrients!$B$79,Nutrients!$K$79,(IF($A$8=Nutrients!$B$77,Nutrients!$K$77,Nutrients!$K$78)))))*AV$8))/2000","v":5.8923254116241415},{"$f":"(SUMPRODUCT(AW$9:AW$229,Nutrients!$K$8:$K$228)+(IF($A$7=Nutrients!$B$8,Nutrients!$K$8,Nutrients!$K$9)*AW$7)+(((IF($A$8=Nutrients!$B$79,Nutrients!$K$79,(IF($A$8=Nutrients!$B$77,Nutrients!$K$77,Nutrients!$K$78)))))*AW$8))/2000","v":5.9217255810817058}]
["Crude fiber, %",{"$f":"(SUMPRODUCT(B$9:B$229,Nutrients!$J$8:$J$228)+(IF($A$7=Nutrients!$B$8,Nutrients!$J$8,Nutrients!$J$9)*B$7)+(((IF($A$8=Nutrients!$B$79,Nutrients!$J$79,(IF($A$8=Nutrients!$B$77,Nutrients!$J$77,Nutrients!$J$78)))))*B$8))/2000","v":2.4236304403667859},{"$f":"(SUMPRODUCT(C$9:C$229,Nutrients!$J$8:$J$228)+(IF($A$7=Nutrients!$B$8,Nutrients!$J$8,Nutrients!$J$9)*C$7)+(((IF($A$8=Nutrients!$B$79,Nutrients!$J$79,(IF($A$8=Nutrients!$B$77,Nutrients!$J$77,Nutrients!$J$78)))))*C$8))/2000","v":2.3544062118589144},{"$f":"(SUMPRODUCT(D$9:D$229,Nutrients!$J$8:$J$228)+(IF($A$7=Nutrients!$B$8,Nutrients!$J$8,Nutrients!$J$9)*D$7)+(((IF($A$8=Nutrients!$B$79,Nutrients!$J$79,(IF($A$8=Nutrients!$B$77,Nutrients!$J$77,Nutrients!$J$78)))))*D$8))/2000","v":2.2969299326886694},{"$f":"(SUMPRODUCT(E$9:E$229,Nutrients!$J$8:$J$228)+(IF($A$7=Nutrients!$B$8,Nutrients!$J$8,Nutrients!$J$9)*E$7)+(((IF($A$8=Nutrients!$B$79,Nutrients!$J$79,(IF($A$8=Nutrients!$B$77,Nutrients!$J$77,Nutrients!$J$78)))))*E$8))/2000","v":2.237626654434278},{"$f":"(SUMPRODUCT(F$9:F$229,Nutrients!$J$8:$J$228)+(IF($A$7=Nutrients!$B$8,Nutrients!$J$8,Nutrients!$J$9)*F$7)+(((IF($A$8=Nutrients!$B$79,Nutrients!$J$79,(IF($A$8=Nutrients!$B$77,Nutrients!$J$77,Nutrients!$J$78)))))*F$8))/2000","v":2.1865908459890111},{"$f":"(SUMPRODUCT(G$9:G$229,Nutrients!$J$8:$J$228)+(IF($A$7=Nutrients!$B$8,Nutrients!$J$8,Nutrients!$J$9)*G$7)+(((IF($A$8=Nutrients!$B$79,Nutrients!$J$79,(IF($A$8=Nutrients!$B$77,Nutrients!$J$77,Nutrients!$J$78)))))*G$8))/2000","v":2.1575827805851042},null,{"$f":"(SUMPRODUCT(I$9:I$229,Nutrients!$J$8:$J$228)+(IF($A$7=Nutrients!$B$8,Nutrients!$J$8,Nutrients!$J$9)*I$7)+(((IF($A$8=Nutrients!$B$79,Nutrients!$J$79,(IF($A$8=Nutrients!$B$77,Nutrients!$J$77,Nutrients!$J$78)))))*I$8))/2000","v":2.6732813897027521},{"$f":"(SUMPRODUCT(J$9:J$229,Nutrients!$J$8:$J$228)+(IF($A$7=Nutrients!$B$8,Nutrients!$J$8,Nutrients!$J$9)*J$7)+(((IF($A$8=Nutrients!$B$79,Nutrients!$J$79,(IF($A$8=Nutrients!$B$77,Nutrients!$J$77,Nutrients!$J$78)))))*J$8))/2000","v":2.6050501835277173},{"$f":"(SUMPRODUCT(K$9:K$229,Nutrients!$J$8:$J$228)+(IF($A$7=Nutrients!$B$8,Nutrients!$J$8,Nutrients!$J$9)*K$7)+(((IF($A$8=Nutrients!$B$79,Nutrients!$J$79,(IF($A$8=Nutrients!$B$77,Nutrients!$J$77,Nutrients!$J$78)))))*K$8))/2000","v":2.5485218338069386},{"$f":"(SUMPRODUCT(L$9:L$229,Nutrients!$J$8:$J$228)+(IF($A$7=Nutrients!$B$8,Nutrients!$J$8,Nutrients!$J$9)*L$7)+(((IF($A$8=Nutrients!$B$79,Nutrients!$J$79,(IF($A$8=Nutrients!$B$77,Nutrients!$J$77,Nutrients!$J$78)))))*L$8))/2000","v":2.4898198505130775},{"$f":"(SUMPRODUCT(M$9:M$229,Nutrients!$J$8:$J$228)+(IF($A$7=Nutrients!$B$8,Nutrients!$J$8,Nutrients!$J$9)*M$7)+(((IF($A$8=Nutrients!$B$79,Nutrients!$J$79,(IF($A$8=Nutrients!$B$77,Nutrients!$J$77,Nutrients!$J$78)))))*M$8))/2000","v":2.4387854161825144},{"$f":"(SUMPRODUCT(N$9:N$229,Nutrients!$J$8:$J$228)+(IF($A$7=Nutrients!$B$8,Nutrients!$J$8,Nutrients!$J$9)*N$7)+(((IF($A$8=Nutrients!$B$79,Nutrients!$J$79,(IF($A$8=Nutrients!$B$77,Nutrients!$J$77,Nutrients!$J$78)))))*N$8))/2000","v":2.4099917789223739},null,{"$f":"(SUMPRODUCT(P$9:P$229,Nutrients!$J$8:$J$228)+(IF($A$7=Nutrients!$B$8,Nutrients!$J$8,Nutrients!$J$9)*P$7)+(((IF($A$8=Nutrients!$B$79,Nutrients!$J$79,(IF($A$8=Nutrients!$B$77,Nutrients!$J$77,Nutrients!$J$78)))))*P$8))/2000","v":2.924315435521502},{"$f":"(SUMPRODUCT(Q$9:Q$229,Nutrients!$J$8:$J$228)+(IF($A$7=Nutrients!$B$8,Nutrients!$J$8,Nutrients!$J$9)*Q$7)+(((IF($A$8=Nutrients!$B$79,Nutrients!$J$79,(IF($A$8=Nutrients!$B$77,Nutrients!$J$77,Nutrients!$J$78)))))*Q$8))/2000","v":2.8566492127014254},{"$f":"(SUMPRODUCT(R$9:R$229,Nutrients!$J$8:$J$228)+(IF($A$7=Nutrients!$B$8,Nutrients!$J$8,Nutrients!$J$9)*R$7)+(((IF($A$8=Nutrients!$B$79,Nutrients!$J$79,(IF($A$8=Nutrients!$B$77,Nutrients!$J$77,Nutrients!$J$78)))))*R$8))/2000","v":2.8008708006403085},{"$f":"(SUMPRODUCT(S$9:S$229,Nutrients!$J$8:$J$228)+(IF($A$7=Nutrients!$B$8,Nutrients!$J$8,Nutrients!$J$9)*S$7)+(((IF($A$8=Nutrients!$B$79,Nutrients!$J$79,(IF($A$8=Nutrients!$B$77,Nutrients!$J$77,Nutrients!$J$78)))))*S$8))/2000","v":2.7417828786555702},{"$f":"(SUMPRODUCT(T$9:T$229,Nutrients!$J$8:$J$228)+(IF($A$7=Nutrients!$B$8,Nutrients!$J$8,Nutrients!$J$9)*T$7)+(((IF($A$8=Nutrients!$B$79,Nutrients!$J$79,(IF($A$8=Nutrients!$B$77,Nutrients!$J$77,Nutrients!$J$78)))))*T$8))/2000","v":2.6913286983431166},{"$f":"(SUMPRODUCT(U$9:U$229,Nutrients!$J$8:$J$228)+(IF($A$7=Nutrients!$B$8,Nutrients!$J$8,Nutrients!$J$9)*U$7)+(((IF($A$8=Nutrients!$B$79,Nutrients!$J$79,(IF($A$8=Nutrients!$B$77,Nutrients!$J$77,Nutrients!$J$78)))))*U$8))/2000","v":2.6627937646767155},null,{"$f":"(SUMPRODUCT(W$9:W$229,Nutrients!$J$8:$J$228)+(IF($A$7=Nutrients!$B$8,Nutrients!$J$8,Nutrients!$J$9)*W$7)+(((IF($A$8=Nutrients!$B$79,Nutrients!$J$79,(IF($A$8=Nutrients!$B$77,Nutrients!$J$77,Nutrients!$J$78)))))*W$8))/2000","v":3.1753027679004502},{"$f":"(SUMPRODUCT(X$9:X$229,Nutrients!$J$8:$J$228)+(IF($A$7=Nutrients!$B$8,Nutrients!$J$8,Nutrients!$J$9)*X$7)+(((IF($A$8=Nutrients!$B$79,Nutrients!$J$79,(IF($A$8=Nutrients!$B$77,Nutrients!$J$77,Nutrients!$J$78)))))*X$8))/2000","v":3.10828540648345},{"$f":"(SUMPRODUCT(Y$9:Y$229,Nutrients!$J$8:$J$228)+(IF($A$7=Nutrients!$B$8,Nutrients!$J$8,Nutrients!$J$9)*Y$7)+(((IF($A$8=Nutrients!$B$79,Nutrients!$J$79,(IF($A$8=Nutrients!$B$77,Nutrients!$J$77,Nutrients!$J$78)))))*Y$8))/2000","v":3.0521034778334619},{"$f":"(SUMPRODUCT(Z$9:Z$229,Nutrients!$J$8:$J$228)+(IF($A$7=Nutrients!$B$8,Nutrients!$J$8,Nutrients!$J$9)*Z$7)+(((IF($A$8=Nutrients!$B$79,Nutrients!$J$79,(IF($A$8=Nutrients!$B$77,Nutrients!$J$77,Nutrients!$J$78)))))*Z$8))/2000","v":2.9939203970228991},{"$f":"(SUMPRODUCT(AA$9:AA$229,Nutrients!$J$8:$J$228)+(IF($A$7=Nutrients!$B$8,Nutrients!$J$8,Nutrients!$J$9)*AA$7)+(((IF($A$8=Nutrients!$B$79,Nutrients!$J$79,(IF($A$8=Nutrients!$B$77,Nutrients!$J$77,Nutrients!$J$78)))))*AA$8))/2000","v":2.94363797056024},{"$f":"(SUMPRODUCT(AB$9:AB$229,Nutrients!$J$8:$J$228)+(IF($A$7=Nutrients!$B$8,Nutrients!$J$8,Nutrients!$J$9)*AB$7)+(((IF($A$8=Nutrients!$B$79,Nutrients!$J$79,(IF($A$8=Nutrients!$B$77,Nutrients!$J$77,Nutrients!$J$78)))))*AB$8))/2000","v":2.9147828517355903},null,{"$f":"(SUMPRODUCT(AD$9:AD$229,Nutrients!$J$8:$J$228)+(IF($A$7=Nutrients!$B$8,Nutrients!$J$8,Nutrients!$J$9)*AD$7)+(((IF($A$8=Nutrients!$B$79,Nutrients!$J$79,(IF($A$8=Nutrients!$B$77,Nutrients!$J$77,Nutrients!$J$78)))))*AD$8))/2000","v":3.4261397197035883},{"$f":"(SUMPRODUCT(AE$9:AE$229,Nutrients!$J$8:$J$228)+(IF($A$7=Nutrients!$B$8,Nutrients!$J$8,Nutrients!$J$9)*AE$7)+(((IF($A$8=Nutrients!$B$79,Nutrients!$J$79,(IF($A$8=Nutrients!$B$77,Nutrients!$J$77,Nutrients!$J$78)))))*AE$8))/2000","v":3.358818311843268},{"$f":"(SUMPRODUCT(AF$9:AF$229,Nutrients!$J$8:$J$228)+(IF($A$7=Nutrients!$B$8,Nutrients!$J$8,Nutrients!$J$9)*AF$7)+(((IF($A$8=Nutrients!$B$79,Nutrients!$J$79,(IF($A$8=Nutrients!$B$77,Nutrients!$J$77,Nutrients!$J$78)))))*AF$8))/2000","v":3.3034908371516392},{"$f":"(SUMPRODUCT(AG$9:AG$229,Nutrients!$J$8:$J$228)+(IF($A$7=Nutrients!$B$8,Nutrients!$J$8,Nutrients!$J$9)*AG$7)+(((IF($A$8=Nutrients!$B$79,Nutrients!$J$79,(IF($A$8=Nutrients!$B$77,Nutrients!$J$77,Nutrients!$J$78)))))*AG$8))/2000","v":3.2457689719051768},{"$f":"(SUMPRODUCT(AH$9:AH$229,Nutrients!$J$8:$J$228)+(IF($A$7=Nutrients!$B$8,Nutrients!$J$8,Nutrients!$J$9)*AH$7)+(((IF($A$8=Nutrients!$B$79,Nutrients!$J$79,(IF($A$8=Nutrients!$B$77,Nutrients!$J$77,Nutrients!$J$78)))))*AH$8))/2000","v":3.1942903638465241},{"$f":"(SUMPRODUCT(AI$9:AI$229,Nutrients!$J$8:$J$228)+(IF($A$7=Nutrients!$B$8,Nutrients!$J$8,Nutrients!$J$9)*AI$7)+(((IF($A$8=Nutrients!$B$79,Nutrients!$J$79,(IF($A$8=Nutrients!$B$77,Nutrients!$J$77,Nutrients!$J$78)))))*AI$8))/2000","v":3.1651186538481353},null,{"$f":"(SUMPRODUCT(AK$9:AK$229,Nutrients!$J$8:$J$228)+(IF($A$7=Nutrients!$B$8,Nutrients!$J$8,Nutrients!$J$9)*AK$7)+(((IF($A$8=Nutrients!$B$79,Nutrients!$J$79,(IF($A$8=Nutrients!$B$77,Nutrients!$J$77,Nutrients!$J$78)))))*AK$8))/2000","v":3.6772301152691256},{"$f":"(SUMPRODUCT(AL$9:AL$229,Nutrients!$J$8:$J$228)+(IF($A$7=Nutrients!$B$8,Nutrients!$J$8,Nutrients!$J$9)*AL$7)+(((IF($A$8=Nutrients!$B$79,Nutrients!$J$79,(IF($A$8=Nutrients!$B$77,Nutrients!$J$77,Nutrients!$J$78)))))*AL$8))/2000","v":3.609713227691373},{"$f":"(SUMPRODUCT(AM$9:AM$229,Nutrients!$J$8:$J$228)+(IF($A$7=Nutrients!$B$8,Nutrients!$J$8,Nutrients!$J$9)*AM$7)+(((IF($A$8=Nutrients!$B$79,Nutrients!$J$79,(IF($A$8=Nutrients!$B$77,Nutrients!$J$77,Nutrients!$J$78)))))*AM$8))/2000","v":3.5549012924512922},{"$f":"(SUMPRODUCT(AN$9:AN$229,Nutrients!$J$8:$J$228)+(IF($A$7=Nutrients!$B$8,Nutrients!$J$8,Nutrients!$J$9)*AN$7)+(((IF($A$8=Nutrients!$B$79,Nutrients!$J$79,(IF($A$8=Nutrients!$B$77,Nutrients!$J$77,Nutrients!$J$78)))))*AN$8))/2000","v":3.4963496162542462},{"$f":"(SUMPRODUCT(AO$9:AO$229,Nutrients!$J$8:$J$228)+(IF($A$7=Nutrients!$B$8,Nutrients!$J$8,Nutrients!$J$9)*AO$7)+(((IF($A$8=Nutrients!$B$79,Nutrients!$J$79,(IF($A$8=Nutrients!$B$77,Nutrients!$J$77,Nutrients!$J$78)))))*AO$8))/2000","v":3.4443797708352668},{"$f":"(SUMPRODUCT(AP$9:AP$229,Nutrients!$J$8:$J$228)+(IF($A$7=Nutrients!$B$8,Nutrients!$J$8,Nutrients!$J$9)*AP$7)+(((IF($A$8=Nutrients!$B$79,Nutrients!$J$79,(IF($A$8=Nutrients!$B$77,Nutrients!$J$77,Nutrients!$J$78)))))*AP$8))/2000","v":3.415459888183749},null,{"$f":"(SUMPRODUCT(AR$9:AR$229,Nutrients!$J$8:$J$228)+(IF($A$7=Nutrients!$B$8,Nutrients!$J$8,Nutrients!$J$9)*AR$7)+(((IF($A$8=Nutrients!$B$79,Nutrients!$J$79,(IF($A$8=Nutrients!$B$77,Nutrients!$J$77,Nutrients!$J$78)))))*AR$8))/2000","v":3.9303964581950654},{"$f":"(SUMPRODUCT(AS$9:AS$229,Nutrients!$J$8:$J$228)+(IF($A$7=Nutrients!$B$8,Nutrients!$J$8,Nutrients!$J$9)*AS$7)+(((IF($A$8=Nutrients!$B$79,Nutrients!$J$79,(IF($A$8=Nutrients!$B$77,Nutrients!$J$77,Nutrients!$J$78)))))*AS$8))/2000","v":3.8604612760505268},{"$f":"(SUMPRODUCT(AT$9:AT$229,Nutrients!$J$8:$J$228)+(IF($A$7=Nutrients!$B$8,Nutrients!$J$8,Nutrients!$J$9)*AT$7)+(((IF($A$8=Nutrients!$B$79,Nutrients!$J$79,(IF($A$8=Nutrients!$B$77,Nutrients!$J$77,Nutrients!$J$78)))))*AT$8))/2000","v":3.8063667265197383},{"$f":"(SUMPRODUCT(AU$9:AU$229,Nutrients!$J$8:$J$228)+(IF($A$7=Nutrients!$B$8,Nutrients!$J$8,Nutrients!$J$9)*AU$7)+(((IF($A$8=Nutrients!$B$79,Nutrients!$J$79,(IF($A$8=Nutrients!$B$77,Nutrients!$J$77,Nutrients!$J$78)))))*AU$8))/2000","v":3.7460810481515416},{"$f":"(SUMPRODUCT(AV$9:AV$229,Nutrients!$J$8:$J$228)+(IF($A$7=Nutrients!$B$8,Nutrients!$J$8,Nutrients!$J$9)*AV$7)+(((IF($A$8=Nutrients!$B$79,Nutrients!$J$79,(IF($A$8=Nutrients!$B$77,Nutrients!$J$77,Nutrients!$J$78)))))*AV$8))/2000","v":3.6944743758561103},{"$f":"(SUMPRODUCT(AW$9:AW$229,Nutrients!$J$8:$J$228)+(IF($A$7=Nutrients!$B$8,Nutrients!$J$8,Nutrients!$J$9)*AW$7)+(((IF($A$8=Nutrients!$B$79,Nutrients!$J$79,(IF($A$8=Nutrients!$B$77,Nutrients!$J$77,Nutrients!$J$78)))))*AW$8))/2000","v":3.6658030735324205}]
["Lactose, %",{"$f":"(SUMPRODUCT(B$9:B$229,Nutrients!$ED$8:$ED$228)+(IF($A$7=Nutrients!$B$8,Nutrients!$ED$8,Nutrients!$ED$9)*B$7)+(((IF($A$8=Nutrients!$B$79,Nutrients!$ED$79,(IF($A$8=Nutrients!$B$77,Nutrients!$ED$77,Nutrients!$ED$78)))))*B$8))/2000","v":0},{"$f":"(SUMPRODUCT(C$9:C$229,Nutrients!$ED$8:$ED$228)+(IF($A$7=Nutrients!$B$8,Nutrients!$ED$8,Nutrients!$ED$9)*C$7)+(((IF($A$8=Nutrients!$B$79,Nutrients!$ED$79,(IF($A$8=Nutrients!$B$77,Nutrients!$ED$77,Nutrients!$ED$78)))))*C$8))/2000","v":0},{"$f":"(SUMPRODUCT(D$9:D$229,Nutrients!$ED$8:$ED$228)+(IF($A$7=Nutrients!$B$8,Nutrients!$ED$8,Nutrients!$ED$9)*D$7)+(((IF($A$8=Nutrients!$B$79,Nutrients!$ED$79,(IF($A$8=Nutrients!$B$77,Nutrients!$ED$77,Nutrients!$ED$78)))))*D$8))/2000","v":0},{"$f":"(SUMPRODUCT(E$9:E$229,Nutrients!$ED$8:$ED$228)+(IF($A$7=Nutrients!$B$8,Nutrients!$ED$8,Nutrients!$ED$9)*E$7)+(((IF($A$8=Nutrients!$B$79,Nutrients!$ED$79,(IF($A$8=Nutrients!$B$77,Nutrients!$ED$77,Nutrients!$ED$78)))))*E$8))/2000","v":0},{"$f":"(SUMPRODUCT(F$9:F$229,Nutrients!$ED$8:$ED$228)+(IF($A$7=Nutrients!$B$8,Nutrients!$ED$8,Nutrients!$ED$9)*F$7)+(((IF($A$8=Nutrients!$B$79,Nutrients!$ED$79,(IF($A$8=Nutrients!$B$77,Nutrients!$ED$77,Nutrients!$ED$78)))))*F$8))/2000","v":0},{"$f":"(SUMPRODUCT(G$9:G$229,Nutrients!$ED$8:$ED$228)+(IF($A$7=Nutrients!$B$8,Nutrients!$ED$8,Nutrients!$ED$9)*G$7)+(((IF($A$8=Nutrients!$B$79,Nutrients!$ED$79,(IF($A$8=Nutrients!$B$77,Nutrients!$ED$77,Nutrients!$ED$78)))))*G$8))/2000","v":0},null,{"$f":"(SUMPRODUCT(I$9:I$229,Nutrients!$ED$8:$ED$228)+(IF($A$7=Nutrients!$B$8,Nutrients!$ED$8,Nutrients!$ED$9)*I$7)+(((IF($A$8=Nutrients!$B$79,Nutrients!$ED$79,(IF($A$8=Nutrients!$B$77,Nutrients!$ED$77,Nutrients!$ED$78)))))*I$8))/2000","v":0},{"$f":"(SUMPRODUCT(J$9:J$229,Nutrients!$ED$8:$ED$228)+(IF($A$7=Nutrients!$B$8,Nutrients!$ED$8,Nutrients!$ED$9)*J$7)+(((IF($A$8=Nutrients!$B$79,Nutrients!$ED$79,(IF($A$8=Nutrients!$B$77,Nutrients!$ED$77,Nutrients!$ED$78)))))*J$8))/2000","v":0},{"$f":"(SUMPRODUCT(K$9:K$229,Nutrients!$ED$8:$ED$228)+(IF($A$7=Nutrients!$B$8,Nutrients!$ED$8,Nutrients!$ED$9)*K$7)+(((IF($A$8=Nutrients!$B$79,Nutrients!$ED$79,(IF($A$8=Nutrients!$B$77,Nutrients!$ED$77,Nutrients!$ED$78)))))*K$8))/2000","v":0},{"$f":"(SUMPRODUCT(L$9:L$229,Nutrients!$ED$8:$ED$228)+(IF($A$7=Nutrients!$B$8,Nutrients!$ED$8,Nutrients!$ED$9)*L$7)+(((IF($A$8=Nutrients!$B$79,Nutrients!$ED$79,(IF($A$8=Nutrients!$B$77,Nutrients!$ED$77,Nutrients!$ED$78)))))*L$8))/2000","v":0},{"$f":"(SUMPRODUCT(M$9:M$229,Nutrients!$ED$8:$ED$228)+(IF($A$7=Nutrients!$B$8,Nutrients!$ED$8,Nutrients!$ED$9)*M$7)+(((IF($A$8=Nutrients!$B$79,Nutrients!$ED$79,(IF($A$8=Nutrients!$B$77,Nutrients!$ED$77,Nutrients!$ED$78)))))*M$8))/2000","v":0},{"$f":"(SUMPRODUCT(N$9:N$229,Nutrients!$ED$8:$ED$228)+(IF($A$7=Nutrients!$B$8,Nutrients!$ED$8,Nutrients!$ED$9)*N$7)+(((IF($A$8=Nutrients!$B$79,Nutrients!$ED$79,(IF($A$8=Nutrients!$B$77,Nutrients!$ED$77,Nutrients!$ED$78)))))*N$8))/2000","v":0},null,{"$f":"(SUMPRODUCT(P$9:P$229,Nutrients!$ED$8:$ED$228)+(IF($A$7=Nutrients!$B$8,Nutrients!$ED$8,Nutrients!$ED$9)*P$7)+(((IF($A$8=Nutrients!$B$79,Nutrients!$ED$79,(IF($A$8=Nutrients!$B$77,Nutrients!$ED$77,Nutrients!$ED$78)))))*P$8))/2000","v":0},{"$f":"(SUMPRODUCT(Q$9:Q$229,Nutrients!$ED$8:$ED$228)+(IF($A$7=Nutrients!$B$8,Nutrients!$ED$8,Nutrients!$ED$9)*Q$7)+(((IF($A$8=Nutrients!$B$79,Nutrients!$ED$79,(IF($A$8=Nutrients!$B$77,Nutrients!$ED$77,Nutrients!$ED$78)))))*Q$8))/2000","v":0},{"$f":"(SUMPRODUCT(R$9:R$229,Nutrients!$ED$8:$ED$228)+(IF($A$7=Nutrients!$B$8,Nutrients!$ED$8,Nutrients!$ED$9)*R$7)+(((IF($A$8=Nutrients!$B$79,Nutrients!$ED$79,(IF($A$8=Nutrients!$B$77,Nutrients!$ED$77,Nutrients!$ED$78)))))*R$8))/2000","v":0},{"$f":"(SUMPRODUCT(S$9:S$229,Nutrients!$ED$8:$ED$228)+(IF($A$7=Nutrients!$B$8,Nutrients!$ED$8,Nutrients!$ED$9)*S$7)+(((IF($A$8=Nutrients!$B$79,Nutrients!$ED$79,(IF($A$8=Nutrients!$B$77,Nutrients!$ED$77,Nutrients!$ED$78)))))*S$8))/2000","v":0},{"$f":"(SUMPRODUCT(T$9:T$229,Nutrients!$ED$8:$ED$228)+(IF($A$7=Nutrients!$B$8,Nutrients!$ED$8,Nutrients!$ED$9)*T$7)+(((IF($A$8=Nutrients!$B$79,Nutrients!$ED$79,(IF($A$8=Nutrients!$B$77,Nutrients!$ED$77,Nutrients!$ED$78)))))*T$8))/2000","v":0},{"$f":"(SUMPRODUCT(U$9:U$229,Nutrients!$ED$8:$ED$228)+(IF($A$7=Nutrients!$B$8,Nutrients!$ED$8,Nutrients!$ED$9)*U$7)+(((IF($A$8=Nutrients!$B$79,Nutrients!$ED$79,(IF($A$8=Nutrients!$B$77,Nutrients!$ED$77,Nutrients!$ED$78)))))*U$8))/2000","v":0},null,{"$f":"(SUMPRODUCT(W$9:W$229,Nutrients!$ED$8:$ED$228)+(IF($A$7=Nutrients!$B$8,Nutrients!$ED$8,Nutrients!$ED$9)*W$7)+(((IF($A$8=Nutrients!$B$79,Nutrients!$ED$79,(IF($A$8=Nutrients!$B$77,Nutrients!$ED$77,Nutrients!$ED$78)))))*W$8))/2000","v":0},{"$f":"(SUMPRODUCT(X$9:X$229,Nutrients!$ED$8:$ED$228)+(IF($A$7=Nutrients!$B$8,Nutrients!$ED$8,Nutrients!$ED$9)*X$7)+(((IF($A$8=Nutrients!$B$79,Nutrients!$ED$79,(IF($A$8=Nutrients!$B$77,Nutrients!$ED$77,Nutrients!$ED$78)))))*X$8))/2000","v":0},{"$f":"(SUMPRODUCT(Y$9:Y$229,Nutrients!$ED$8:$ED$228)+(IF($A$7=Nutrients!$B$8,Nutrients!$ED$8,Nutrients!$ED$9)*Y$7)+(((IF($A$8=Nutrients!$B$79,Nutrients!$ED$79,(IF($A$8=Nutrients!$B$77,Nutrients!$ED$77,Nutrients!$ED$78)))))*Y$8))/2000","v":0},{"$f":"(SUMPRODUCT(Z$9:Z$229,Nutrients!$ED$8:$ED$228)+(IF($A$7=Nutrients!$B$8,Nutrients!$ED$8,Nutrients!$ED$9)*Z$7)+(((IF($A$8=Nutrients!$B$79,Nutrients!$ED$79,(IF($A$8=Nutrients!$B$77,Nutrients!$ED$77,Nutrients!$ED$78)))))*Z$8))/2000","v":0},{"$f":"(SUMPRODUCT(AA$9:AA$229,Nutrients!$ED$8:$ED$228)+(IF($A$7=Nutrients!$B$8,Nutrients!$ED$8,Nutrients!$ED$9)*AA$7)+(((IF($A$8=Nutrients!$B$79,Nutrients!$ED$79,(IF($A$8=Nutrients!$B$77,Nutrients!$ED$77,Nutrients!$ED$78)))))*AA$8))/2000","v":0},{"$f":"(SUMPRODUCT(AB$9:AB$229,Nutrients!$ED$8:$ED$228)+(IF($A$7=Nutrients!$B$8,Nutrients!$ED$8,Nutrients!$ED$9)*AB$7)+(((IF($A$8=Nutrients!$B$79,Nutrients!$ED$79,(IF($A$8=Nutrients!$B$77,Nutrients!$ED$77,Nutrients!$ED$78)))))*AB$8))/2000","v":0},null,{"$f":"(SUMPRODUCT(AD$9:AD$229,Nutrients!$ED$8:$ED$228)+(IF($A$7=Nutrients!$B$8,Nutrients!$ED$8,Nutrients!$ED$9)*AD$7)+(((IF($A$8=Nutrients!$B$79,Nutrients!$ED$79,(IF($A$8=Nutrients!$B$77,Nutrients!$ED$77,Nutrients!$ED$78)))))*AD$8))/2000","v":0},{"$f":"(SUMPRODUCT(AE$9:AE$229,Nutrients!$ED$8:$ED$228)+(IF($A$7=Nutrients!$B$8,Nutrients!$ED$8,Nutrients!$ED$9)*AE$7)+(((IF($A$8=Nutrients!$B$79,Nutrients!$ED$79,(IF($A$8=Nutrients!$B$77,Nutrients!$ED$77,Nutrients!$ED$78)))))*AE$8))/2000","v":0},{"$f":"(SUMPRODUCT(AF$9:AF$229,Nutrients!$ED$8:$ED$228)+(IF($A$7=Nutrients!$B$8,Nutrients!$ED$8,Nutrients!$ED$9)*AF$7)+(((IF($A$8=Nutrients!$B$79,Nutrients!$ED$79,(IF($A$8=Nutrients!$B$77,Nutrients!$ED$77,Nutrients!$ED$78)))))*AF$8))/2000","v":0},{"$f":"(SUMPRODUCT(AG$9:AG$229,Nutrients!$ED$8:$ED$228)+(IF($A$7=Nutrients!$B$8,Nutrients!$ED$8,Nutrients!$ED$9)*AG$7)+(((IF($A$8=Nutrients!$B$79,Nutrients!$ED$79,(IF($A$8=Nutrients!$B$77,Nutrients!$ED$77,Nutrients!$ED$78)))))*AG$8))/2000","v":0},{"$f":"(SUMPRODUCT(AH$9:AH$229,Nutrients!$ED$8:$ED$228)+(IF($A$7=Nutrients!$B$8,Nutrients!$ED$8,Nutrients!$ED$9)*AH$7)+(((IF($A$8=Nutrients!$B$79,Nutrients!$ED$79,(IF($A$8=Nutrients!$B$77,Nutrients!$ED$77,Nutrients!$ED$78)))))*AH$8))/2000","v":0},{"$f":"(SUMPRODUCT(AI$9:AI$229,Nutrients!$ED$8:$ED$228)+(IF($A$7=Nutrients!$B$8,Nutrients!$ED$8,Nutrients!$ED$9)*AI$7)+(((IF($A$8=Nutrients!$B$79,Nutrients!$ED$79,(IF($A$8=Nutrients!$B$77,Nutrients!$ED$77,Nutrients!$ED$78)))))*AI$8))/2000","v":0},null,{"$f":"(SUMPRODUCT(AK$9:AK$229,Nutrients!$ED$8:$ED$228)+(IF($A$7=Nutrients!$B$8,Nutrients!$ED$8,Nutrients!$ED$9)*AK$7)+(((IF($A$8=Nutrients!$B$79,Nutrients!$ED$79,(IF($A$8=Nutrients!$B$77,Nutrients!$ED$77,Nutrients!$ED$78)))))*AK$8))/2000","v":0},{"$f":"(SUMPRODUCT(AL$9:AL$229,Nutrients!$ED$8:$ED$228)+(IF($A$7=Nutrients!$B$8,Nutrients!$ED$8,Nutrients!$ED$9)*AL$7)+(((IF($A$8=Nutrients!$B$79,Nutrients!$ED$79,(IF($A$8=Nutrients!$B$77,Nutrients!$ED$77,Nutrients!$ED$78)))))*AL$8))/2000","v":0},{"$f":"(SUMPRODUCT(AM$9:AM$229,Nutrients!$ED$8:$ED$228)+(IF($A$7=Nutrients!$B$8,Nutrients!$ED$8,Nutrients!$ED$9)*AM$7)+(((IF($A$8=Nutrients!$B$79,Nutrients!$ED$79,(IF($A$8=Nutrients!$B$77,Nutrients!$ED$77,Nutrients!$ED$78)))))*AM$8))/2000","v":0},{"$f":"(SUMPRODUCT(AN$9:AN$229,Nutrients!$ED$8:$ED$228)+(IF($A$7=Nutrients!$B$8,Nutrients!$ED$8,Nutrients!$ED$9)*AN$7)+(((IF($A$8=Nutrients!$B$79,Nutrients!$ED$79,(IF($A$8=Nutrients!$B$77,Nutrients!$ED$77,Nutrients!$ED$78)))))*AN$8))/2000","v":0},{"$f":"(SUMPRODUCT(AO$9:AO$229,Nutrients!$ED$8:$ED$228)+(IF($A$7=Nutrients!$B$8,Nutrients!$ED$8,Nutrients!$ED$9)*AO$7)+(((IF($A$8=Nutrients!$B$79,Nutrients!$ED$79,(IF($A$8=Nutrients!$B$77,Nutrients!$ED$77,Nutrients!$ED$78)))))*AO$8))/2000","v":0},{"$f":"(SUMPRODUCT(AP$9:AP$229,Nutrients!$ED$8:$ED$228)+(IF($A$7=Nutrients!$B$8,Nutrients!$ED$8,Nutrients!$ED$9)*AP$7)+(((IF($A$8=Nutrients!$B$79,Nutrients!$ED$79,(IF($A$8=Nutrients!$B$77,Nutrients!$ED$77,Nutrients!$ED$78)))))*AP$8))/2000","v":0},null,{"$f":"(SUMPRODUCT(AR$9:AR$229,Nutrients!$ED$8:$ED$228)+(IF($A$7=Nutrients!$B$8,Nutrients!$ED$8,Nutrients!$ED$9)*AR$7)+(((IF($A$8=Nutrients!$B$79,Nutrients!$ED$79,(IF($A$8=Nutrients!$B$77,Nutrients!$ED$77,Nutrients!$ED$78)))))*AR$8))/2000","v":0},{"$f":"(SUMPRODUCT(AS$9:AS$229,Nutrients!$ED$8:$ED$228)+(IF($A$7=Nutrients!$B$8,Nutrients!$ED$8,Nutrients!$ED$9)*AS$7)+(((IF($A$8=Nutrients!$B$79,Nutrients!$ED$79,(IF($A$8=Nutrients!$B$77,Nutrients!$ED$77,Nutrients!$ED$78)))))*AS$8))/2000","v":0},{"$f":"(SUMPRODUCT(AT$9:AT$229,Nutrients!$ED$8:$ED$228)+(IF($A$7=Nutrients!$B$8,Nutrients!$ED$8,Nutrients!$ED$9)*AT$7)+(((IF($A$8=Nutrients!$B$79,Nutrients!$ED$79,(IF($A$8=Nutrients!$B$77,Nutrients!$ED$77,Nutrients!$ED$78)))))*AT$8))/2000","v":0},{"$f":"(SUMPRODUCT(AU$9:AU$229,Nutrients!$ED$8:$ED$228)+(IF($A$7=Nutrients!$B$8,Nutrients!$ED$8,Nutrients!$ED$9)*AU$7)+(((IF($A$8=Nutrients!$B$79,Nutrients!$ED$79,(IF($A$8=Nutrients!$B$77,Nutrients!$ED$77,Nutrients!$ED$78)))))*AU$8))/2000","v":0},{"$f":"(SUMPRODUCT(AV$9:AV$229,Nutrients!$ED$8:$ED$228)+(IF($A$7=Nutrients!$B$8,Nutrients!$ED$8,Nutrients!$ED$9)*AV$7)+(((IF($A$8=Nutrients!$B$79,Nutrients!$ED$79,(IF($A$8=Nutrients!$B$77,Nutrients!$ED$77,Nutrients!$ED$78)))))*AV$8))/2000","v":0},{"$f":"(SUMPRODUCT(AW$9:AW$229,Nutrients!$ED$8:$ED$228)+(IF($A$7=Nutrients!$B$8,Nutrients!$ED$8,Nutrients!$ED$9)*AW$7)+(((IF($A$8=Nutrients!$B$79,Nutrients!$ED$79,(IF($A$8=Nutrients!$B$77,Nutrients!$ED$77,Nutrients!$ED$78)))))*AW$8))/2000","v":0}]
["IV value of diet",{"$f":"(SUMPRODUCT(B$9:B$229,Nutrients!$EH$8:$EH$228)+(IF($A$7=Nutrients!$B$8,Nutrients!$EH$8,Nutrients!$EH$9)*B$7)+(((IF($A$8=Nutrients!$B$79,Nutrients!$EH$79,(IF($A$8=Nutrients!$B$77,Nutrients!$EH$77,Nutrients!$EH$78)))))*B$8))/2000","v":35.538484918485338},{"$f":"(SUMPRODUCT(C$9:C$229,Nutrients!$EH$8:$EH$228)+(IF($A$7=Nutrients!$B$8,Nutrients!$EH$8,Nutrients!$EH$9)*C$7)+(((IF($A$8=Nutrients!$B$79,Nutrients!$EH$79,(IF($A$8=Nutrients!$B$77,Nutrients!$EH$77,Nutrients!$EH$78)))))*C$8))/2000","v":36.696132579183029},{"$f":"(SUMPRODUCT(D$9:D$229,Nutrients!$EH$8:$EH$228)+(IF($A$7=Nutrients!$B$8,Nutrients!$EH$8,Nutrients!$EH$9)*D$7)+(((IF($A$8=Nutrients!$B$79,Nutrients!$EH$79,(IF($A$8=Nutrients!$B$77,Nutrients!$EH$77,Nutrients!$EH$78)))))*D$8))/2000","v":37.687698685025424},{"$f":"(SUMPRODUCT(E$9:E$229,Nutrients!$EH$8:$EH$228)+(IF($A$7=Nutrients!$B$8,Nutrients!$EH$8,Nutrients!$EH$9)*E$7)+(((IF($A$8=Nutrients!$B$79,Nutrients!$EH$79,(IF($A$8=Nutrients!$B$77,Nutrients!$EH$77,Nutrients!$EH$78)))))*E$8))/2000","v":38.621947982979158},{"$f":"(SUMPRODUCT(F$9:F$229,Nutrients!$EH$8:$EH$228)+(IF($A$7=Nutrients!$B$8,Nutrients!$EH$8,Nutrients!$EH$9)*F$7)+(((IF($A$8=Nutrients!$B$79,Nutrients!$EH$79,(IF($A$8=Nutrients!$B$77,Nutrients!$EH$77,Nutrients!$EH$78)))))*F$8))/2000","v":39.390416669843518},{"$f":"(SUMPRODUCT(G$9:G$229,Nutrients!$EH$8:$EH$228)+(IF($A$7=Nutrients!$B$8,Nutrients!$EH$8,Nutrients!$EH$9)*G$7)+(((IF($A$8=Nutrients!$B$79,Nutrients!$EH$79,(IF($A$8=Nutrients!$B$77,Nutrients!$EH$77,Nutrients!$EH$78)))))*G$8))/2000","v":39.795780240411979},null,{"$f":"(SUMPRODUCT(I$9:I$229,Nutrients!$EH$8:$EH$228)+(IF($A$7=Nutrients!$B$8,Nutrients!$EH$8,Nutrients!$EH$9)*I$7)+(((IF($A$8=Nutrients!$B$79,Nutrients!$EH$79,(IF($A$8=Nutrients!$B$77,Nutrients!$EH$77,Nutrients!$EH$78)))))*I$8))/2000","v":34.553029668984003},{"$f":"(SUMPRODUCT(J$9:J$229,Nutrients!$EH$8:$EH$228)+(IF($A$7=Nutrients!$B$8,Nutrients!$EH$8,Nutrients!$EH$9)*J$7)+(((IF($A$8=Nutrients!$B$79,Nutrients!$EH$79,(IF($A$8=Nutrients!$B$77,Nutrients!$EH$77,Nutrients!$EH$78)))))*J$8))/2000","v":35.692508850596795},{"$f":"(SUMPRODUCT(K$9:K$229,Nutrients!$EH$8:$EH$228)+(IF($A$7=Nutrients!$B$8,Nutrients!$EH$8,Nutrients!$EH$9)*K$7)+(((IF($A$8=Nutrients!$B$79,Nutrients!$EH$79,(IF($A$8=Nutrients!$B$77,Nutrients!$EH$77,Nutrients!$EH$78)))))*K$8))/2000","v":36.672380632344002},{"$f":"(SUMPRODUCT(L$9:L$229,Nutrients!$EH$8:$EH$228)+(IF($A$7=Nutrients!$B$8,Nutrients!$EH$8,Nutrients!$EH$9)*L$7)+(((IF($A$8=Nutrients!$B$79,Nutrients!$EH$79,(IF($A$8=Nutrients!$B$77,Nutrients!$EH$77,Nutrients!$EH$78)))))*L$8))/2000","v":37.598169208049136},{"$f":"(SUMPRODUCT(M$9:M$229,Nutrients!$EH$8:$EH$228)+(IF($A$7=Nutrients!$B$8,Nutrients!$EH$8,Nutrients!$EH$9)*M$7)+(((IF($A$8=Nutrients!$B$79,Nutrients!$EH$79,(IF($A$8=Nutrients!$B$77,Nutrients!$EH$77,Nutrients!$EH$78)))))*M$8))/2000","v":38.368337387595318},{"$f":"(SUMPRODUCT(N$9:N$229,Nutrients!$EH$8:$EH$228)+(IF($A$7=Nutrients!$B$8,Nutrients!$EH$8,Nutrients!$EH$9)*N$7)+(((IF($A$8=Nutrients!$B$79,Nutrients!$EH$79,(IF($A$8=Nutrients!$B$77,Nutrients!$EH$77,Nutrients!$EH$78)))))*N$8))/2000","v":38.767204878465883},null,{"$f":"(SUMPRODUCT(P$9:P$229,Nutrients!$EH$8:$EH$228)+(IF($A$7=Nutrients!$B$8,Nutrients!$EH$8,Nutrients!$EH$9)*P$7)+(((IF($A$8=Nutrients!$B$79,Nutrients!$EH$79,(IF($A$8=Nutrients!$B$77,Nutrients!$EH$77,Nutrients!$EH$78)))))*P$8))/2000","v":33.546769015824715},{"$f":"(SUMPRODUCT(Q$9:Q$229,Nutrients!$EH$8:$EH$228)+(IF($A$7=Nutrients!$B$8,Nutrients!$EH$8,Nutrients!$EH$9)*Q$7)+(((IF($A$8=Nutrients!$B$79,Nutrients!$EH$79,(IF($A$8=Nutrients!$B$77,Nutrients!$EH$77,Nutrients!$EH$78)))))*Q$8))/2000","v":34.674369384925761},{"$f":"(SUMPRODUCT(R$9:R$229,Nutrients!$EH$8:$EH$228)+(IF($A$7=Nutrients!$B$8,Nutrients!$EH$8,Nutrients!$EH$9)*R$7)+(((IF($A$8=Nutrients!$B$79,Nutrients!$EH$79,(IF($A$8=Nutrients!$B$77,Nutrients!$EH$77,Nutrients!$EH$78)))))*R$8))/2000","v":35.645189580692879},{"$f":"(SUMPRODUCT(S$9:S$229,Nutrients!$EH$8:$EH$228)+(IF($A$7=Nutrients!$B$8,Nutrients!$EH$8,Nutrients!$EH$9)*S$7)+(((IF($A$8=Nutrients!$B$79,Nutrients!$EH$79,(IF($A$8=Nutrients!$B$77,Nutrients!$EH$77,Nutrients!$EH$78)))))*S$8))/2000","v":36.57428676563314},{"$f":"(SUMPRODUCT(T$9:T$229,Nutrients!$EH$8:$EH$228)+(IF($A$7=Nutrients!$B$8,Nutrients!$EH$8,Nutrients!$EH$9)*T$7)+(((IF($A$8=Nutrients!$B$79,Nutrients!$EH$79,(IF($A$8=Nutrients!$B$77,Nutrients!$EH$77,Nutrients!$EH$78)))))*T$8))/2000","v":37.336202304992007},{"$f":"(SUMPRODUCT(U$9:U$229,Nutrients!$EH$8:$EH$228)+(IF($A$7=Nutrients!$B$8,Nutrients!$EH$8,Nutrients!$EH$9)*U$7)+(((IF($A$8=Nutrients!$B$79,Nutrients!$EH$79,(IF($A$8=Nutrients!$B$77,Nutrients!$EH$77,Nutrients!$EH$78)))))*U$8))/2000","v":37.732332942787998},null,{"$f":"(SUMPRODUCT(W$9:W$229,Nutrients!$EH$8:$EH$228)+(IF($A$7=Nutrients!$B$8,Nutrients!$EH$8,Nutrients!$EH$9)*W$7)+(((IF($A$8=Nutrients!$B$79,Nutrients!$EH$79,(IF($A$8=Nutrients!$B$77,Nutrients!$EH$77,Nutrients!$EH$78)))))*W$8))/2000","v":32.539382734549534},{"$f":"(SUMPRODUCT(X$9:X$229,Nutrients!$EH$8:$EH$228)+(IF($A$7=Nutrients!$B$8,Nutrients!$EH$8,Nutrients!$EH$9)*X$7)+(((IF($A$8=Nutrients!$B$79,Nutrients!$EH$79,(IF($A$8=Nutrients!$B$77,Nutrients!$EH$77,Nutrients!$EH$78)))))*X$8))/2000","v":33.657034574506},{"$f":"(SUMPRODUCT(Y$9:Y$229,Nutrients!$EH$8:$EH$228)+(IF($A$7=Nutrients!$B$8,Nutrients!$EH$8,Nutrients!$EH$9)*Y$7)+(((IF($A$8=Nutrients!$B$79,Nutrients!$EH$79,(IF($A$8=Nutrients!$B$77,Nutrients!$EH$77,Nutrients!$EH$78)))))*Y$8))/2000","v":34.630320996750889},{"$f":"(SUMPRODUCT(Z$9:Z$229,Nutrients!$EH$8:$EH$228)+(IF($A$7=Nutrients!$B$8,Nutrients!$EH$8,Nutrients!$EH$9)*Z$7)+(((IF($A$8=Nutrients!$B$79,Nutrients!$EH$79,(IF($A$8=Nutrients!$B$77,Nutrients!$EH$77,Nutrients!$EH$78)))))*Z$8))/2000","v":35.544511098094091},{"$f":"(SUMPRODUCT(AA$9:AA$229,Nutrients!$EH$8:$EH$228)+(IF($A$7=Nutrients!$B$8,Nutrients!$EH$8,Nutrients!$EH$9)*AA$7)+(((IF($A$8=Nutrients!$B$79,Nutrients!$EH$79,(IF($A$8=Nutrients!$B$77,Nutrients!$EH$77,Nutrients!$EH$78)))))*AA$8))/2000","v":36.295611273934675},{"$f":"(SUMPRODUCT(AB$9:AB$229,Nutrients!$EH$8:$EH$228)+(IF($A$7=Nutrients!$B$8,Nutrients!$EH$8,Nutrients!$EH$9)*AB$7)+(((IF($A$8=Nutrients!$B$79,Nutrients!$EH$79,(IF($A$8=Nutrients!$B$77,Nutrients!$EH$77,Nutrients!$EH$78)))))*AB$8))/2000","v":36.681847506730868},null,{"$f":"(SUMPRODUCT(AD$9:AD$229,Nutrients!$EH$8:$EH$228)+(IF($A$7=Nutrients!$B$8,Nutrients!$EH$8,Nutrients!$EH$9)*AD$7)+(((IF($A$8=Nutrients!$B$79,Nutrients!$EH$79,(IF($A$8=Nutrients!$B$77,Nutrients!$EH$77,Nutrients!$EH$78)))))*AD$8))/2000","v":31.531413580597036},{"$f":"(SUMPRODUCT(AE$9:AE$229,Nutrients!$EH$8:$EH$228)+(IF($A$7=Nutrients!$B$8,Nutrients!$EH$8,Nutrients!$EH$9)*AE$7)+(((IF($A$8=Nutrients!$B$79,Nutrients!$EH$79,(IF($A$8=Nutrients!$B$77,Nutrients!$EH$77,Nutrients!$EH$78)))))*AE$8))/2000","v":32.651664659056728},{"$f":"(SUMPRODUCT(AF$9:AF$229,Nutrients!$EH$8:$EH$228)+(IF($A$7=Nutrients!$B$8,Nutrients!$EH$8,Nutrients!$EH$9)*AF$7)+(((IF($A$8=Nutrients!$B$79,Nutrients!$EH$79,(IF($A$8=Nutrients!$B$77,Nutrients!$EH$77,Nutrients!$EH$78)))))*AF$8))/2000","v":33.6098232986905},{"$f":"(SUMPRODUCT(AG$9:AG$229,Nutrients!$EH$8:$EH$228)+(IF($A$7=Nutrients!$B$8,Nutrients!$EH$8,Nutrients!$EH$9)*AG$7)+(((IF($A$8=Nutrients!$B$79,Nutrients!$EH$79,(IF($A$8=Nutrients!$B$77,Nutrients!$EH$77,Nutrients!$EH$78)))))*AG$8))/2000","v":34.508268515147947},{"$f":"(SUMPRODUCT(AH$9:AH$229,Nutrients!$EH$8:$EH$228)+(IF($A$7=Nutrients!$B$8,Nutrients!$EH$8,Nutrients!$EH$9)*AH$7)+(((IF($A$8=Nutrients!$B$79,Nutrients!$EH$79,(IF($A$8=Nutrients!$B$77,Nutrients!$EH$77,Nutrients!$EH$78)))))*AH$8))/2000","v":35.229262001848639},{"$f":"(SUMPRODUCT(AI$9:AI$229,Nutrients!$EH$8:$EH$228)+(IF($A$7=Nutrients!$B$8,Nutrients!$EH$8,Nutrients!$EH$9)*AI$7)+(((IF($A$8=Nutrients!$B$79,Nutrients!$EH$79,(IF($A$8=Nutrients!$B$77,Nutrients!$EH$77,Nutrients!$EH$78)))))*AI$8))/2000","v":35.603249333875148},null,{"$f":"(SUMPRODUCT(AK$9:AK$229,Nutrients!$EH$8:$EH$228)+(IF($A$7=Nutrients!$B$8,Nutrients!$EH$8,Nutrients!$EH$9)*AK$7)+(((IF($A$8=Nutrients!$B$79,Nutrients!$EH$79,(IF($A$8=Nutrients!$B$77,Nutrients!$EH$77,Nutrients!$EH$78)))))*AK$8))/2000","v":30.519378046841233},{"$f":"(SUMPRODUCT(AL$9:AL$229,Nutrients!$EH$8:$EH$228)+(IF($A$7=Nutrients!$B$8,Nutrients!$EH$8,Nutrients!$EH$9)*AL$7)+(((IF($A$8=Nutrients!$B$79,Nutrients!$EH$79,(IF($A$8=Nutrients!$B$77,Nutrients!$EH$77,Nutrients!$EH$78)))))*AL$8))/2000","v":31.643925986778537},{"$f":"(SUMPRODUCT(AM$9:AM$229,Nutrients!$EH$8:$EH$228)+(IF($A$7=Nutrients!$B$8,Nutrients!$EH$8,Nutrients!$EH$9)*AM$7)+(((IF($A$8=Nutrients!$B$79,Nutrients!$EH$79,(IF($A$8=Nutrients!$B$77,Nutrients!$EH$77,Nutrients!$EH$78)))))*AM$8))/2000","v":32.58533577955329},{"$f":"(SUMPRODUCT(AN$9:AN$229,Nutrients!$EH$8:$EH$228)+(IF($A$7=Nutrients!$B$8,Nutrients!$EH$8,Nutrients!$EH$9)*AN$7)+(((IF($A$8=Nutrients!$B$79,Nutrients!$EH$79,(IF($A$8=Nutrients!$B$77,Nutrients!$EH$77,Nutrients!$EH$78)))))*AN$8))/2000","v":33.452546827412327},{"$f":"(SUMPRODUCT(AO$9:AO$229,Nutrients!$EH$8:$EH$228)+(IF($A$7=Nutrients!$B$8,Nutrients!$EH$8,Nutrients!$EH$9)*AO$7)+(((IF($A$8=Nutrients!$B$79,Nutrients!$EH$79,(IF($A$8=Nutrients!$B$77,Nutrients!$EH$77,Nutrients!$EH$78)))))*AO$8))/2000","v":34.154199519304676},{"$f":"(SUMPRODUCT(AP$9:AP$229,Nutrients!$EH$8:$EH$228)+(IF($A$7=Nutrients!$B$8,Nutrients!$EH$8,Nutrients!$EH$9)*AP$7)+(((IF($A$8=Nutrients!$B$79,Nutrients!$EH$79,(IF($A$8=Nutrients!$B$77,Nutrients!$EH$77,Nutrients!$EH$78)))))*AP$8))/2000","v":34.524923141829689},null,{"$f":"(SUMPRODUCT(AR$9:AR$229,Nutrients!$EH$8:$EH$228)+(IF($A$7=Nutrients!$B$8,Nutrients!$EH$8,Nutrients!$EH$9)*AR$7)+(((IF($A$8=Nutrients!$B$79,Nutrients!$EH$79,(IF($A$8=Nutrients!$B$77,Nutrients!$EH$77,Nutrients!$EH$78)))))*AR$8))/2000","v":29.48168558332069},{"$f":"(SUMPRODUCT(AS$9:AS$229,Nutrients!$EH$8:$EH$228)+(IF($A$7=Nutrients!$B$8,Nutrients!$EH$8,Nutrients!$EH$9)*AS$7)+(((IF($A$8=Nutrients!$B$79,Nutrients!$EH$79,(IF($A$8=Nutrients!$B$77,Nutrients!$EH$77,Nutrients!$EH$78)))))*AS$8))/2000","v":30.632317853375774},{"$f":"(SUMPRODUCT(AT$9:AT$229,Nutrients!$EH$8:$EH$228)+(IF($A$7=Nutrients!$B$8,Nutrients!$EH$8,Nutrients!$EH$9)*AT$7)+(((IF($A$8=Nutrients!$B$79,Nutrients!$EH$79,(IF($A$8=Nutrients!$B$77,Nutrients!$EH$77,Nutrients!$EH$78)))))*AT$8))/2000","v":31.554579779580138},{"$f":"(SUMPRODUCT(AU$9:AU$229,Nutrients!$EH$8:$EH$228)+(IF($A$7=Nutrients!$B$8,Nutrients!$EH$8,Nutrients!$EH$9)*AU$7)+(((IF($A$8=Nutrients!$B$79,Nutrients!$EH$79,(IF($A$8=Nutrients!$B$77,Nutrients!$EH$77,Nutrients!$EH$78)))))*AU$8))/2000","v":32.381684700205724},{"$f":"(SUMPRODUCT(AV$9:AV$229,Nutrients!$EH$8:$EH$228)+(IF($A$7=Nutrients!$B$8,Nutrients!$EH$8,Nutrients!$EH$9)*AV$7)+(((IF($A$8=Nutrients!$B$79,Nutrients!$EH$79,(IF($A$8=Nutrients!$B$77,Nutrients!$EH$77,Nutrients!$EH$78)))))*AV$8))/2000","v":33.079067645301762},{"$f":"(SUMPRODUCT(AW$9:AW$229,Nutrients!$EH$8:$EH$228)+(IF($A$7=Nutrients!$B$8,Nutrients!$EH$8,Nutrients!$EH$9)*AW$7)+(((IF($A$8=Nutrients!$B$79,Nutrients!$EH$79,(IF($A$8=Nutrients!$B$77,Nutrients!$EH$77,Nutrients!$EH$78)))))*AW$8))/2000","v":33.446569763521325}]
["IV value of product, estimate",{"$f":"(0.4472*B304)+51.796","v":67.688810455546644},68.206510489410647,68.649938851943375,69.067735137988279,69.411394334754021,69.592672923512239,null,{"$f":"(0.4472*I304)+51.796","v":67.248114867969647},67.757689957986884,68.195888618784238,68.609901269839568,68.95432047973263,69.132694021649939,null,{"$f":"(0.4472*P304)+51.796","v":66.79811510387681},67.302377988938801,67.736528780485855,68.152021041591141,68.492749670792421,68.66989929201479,null,{"$f":"(0.4472*W304)+51.796","v":66.347611958890553},66.847425861719074,67.282679549747002,67.691505363067677,68.027397361703578,68.200122205010047,null,{"$f":"(0.4472*AD304)+51.796","v":65.896848153242999},66.397824435530168,66.826312979174389,67.228097679974155,67.550525967226704,67.717773102108964,null,{"$f":"(0.4472*AK304)+51.796","v":65.444265862547397},65.947163701287366,66.368162160616237,66.755978941218785,67.069758025033053,67.235545629026234,null,{"$f":"(0.4472*AR304)+51.796","v":64.980209792861018},65.494772544029644,65.907208077428237,66.277089397932002,66.588959050978943,66.753305998246731]
["Na, %",{"$f":"(SUMPRODUCT(B$9:B$229,Nutrients!$BW$8:$BW$228)+(IF($A$7=Nutrients!$B$8,Nutrients!$BW$8,Nutrients!$BW$9)*B$7)+(((IF($A$8=Nutrients!$B$79,Nutrients!$BW$79,(IF($A$8=Nutrients!$B$77,Nutrients!$BW$77,Nutrients!$BW$78)))))*B$8))/2000","v":0.17585444277585438},{"$f":"(SUMPRODUCT(C$9:C$229,Nutrients!$BW$8:$BW$228)+(IF($A$7=Nutrients!$B$8,Nutrients!$BW$8,Nutrients!$BW$9)*C$7)+(((IF($A$8=Nutrients!$B$79,Nutrients!$BW$79,(IF($A$8=Nutrients!$B$77,Nutrients!$BW$77,Nutrients!$BW$78)))))*C$8))/2000","v":0.17313593688104692},{"$f":"(SUMPRODUCT(D$9:D$229,Nutrients!$BW$8:$BW$228)+(IF($A$7=Nutrients!$B$8,Nutrients!$BW$8,Nutrients!$BW$9)*D$7)+(((IF($A$8=Nutrients!$B$79,Nutrients!$BW$79,(IF($A$8=Nutrients!$B$77,Nutrients!$BW$77,Nutrients!$BW$78)))))*D$8))/2000","v":0.17084392516917876},{"$f":"(SUMPRODUCT(E$9:E$229,Nutrients!$BW$8:$BW$228)+(IF($A$7=Nutrients!$B$8,Nutrients!$BW$8,Nutrients!$BW$9)*E$7)+(((IF($A$8=Nutrients!$B$79,Nutrients!$BW$79,(IF($A$8=Nutrients!$B$77,Nutrients!$BW$77,Nutrients!$BW$78)))))*E$8))/2000","v":0.16862311318463774},{"$f":"(SUMPRODUCT(F$9:F$229,Nutrients!$BW$8:$BW$228)+(IF($A$7=Nutrients!$B$8,Nutrients!$BW$8,Nutrients!$BW$9)*F$7)+(((IF($A$8=Nutrients!$B$79,Nutrients!$BW$79,(IF($A$8=Nutrients!$B$77,Nutrients!$BW$77,Nutrients!$BW$78)))))*F$8))/2000","v":0.16677873706348853},{"$f":"(SUMPRODUCT(G$9:G$229,Nutrients!$BW$8:$BW$228)+(IF($A$7=Nutrients!$B$8,Nutrients!$BW$8,Nutrients!$BW$9)*G$7)+(((IF($A$8=Nutrients!$B$79,Nutrients!$BW$79,(IF($A$8=Nutrients!$B$77,Nutrients!$BW$77,Nutrients!$BW$78)))))*G$8))/2000","v":0.16577103413561747},null,{"$f":"(SUMPRODUCT(I$9:I$229,Nutrients!$BW$8:$BW$228)+(IF($A$7=Nutrients!$B$8,Nutrients!$BW$8,Nutrients!$BW$9)*I$7)+(((IF($A$8=Nutrients!$B$79,Nutrients!$BW$79,(IF($A$8=Nutrients!$B$77,Nutrients!$BW$77,Nutrients!$BW$78)))))*I$8))/2000","v":0.18319762970323239},{"$f":"(SUMPRODUCT(J$9:J$229,Nutrients!$BW$8:$BW$228)+(IF($A$7=Nutrients!$B$8,Nutrients!$BW$8,Nutrients!$BW$9)*J$7)+(((IF($A$8=Nutrients!$B$79,Nutrients!$BW$79,(IF($A$8=Nutrients!$B$77,Nutrients!$BW$77,Nutrients!$BW$78)))))*J$8))/2000","v":0.18052372934420191},{"$f":"(SUMPRODUCT(K$9:K$229,Nutrients!$BW$8:$BW$228)+(IF($A$7=Nutrients!$B$8,Nutrients!$BW$8,Nutrients!$BW$9)*K$7)+(((IF($A$8=Nutrients!$B$79,Nutrients!$BW$79,(IF($A$8=Nutrients!$B$77,Nutrients!$BW$77,Nutrients!$BW$78)))))*K$8))/2000","v":0.17824662181473622},{"$f":"(SUMPRODUCT(L$9:L$229,Nutrients!$BW$8:$BW$228)+(IF($A$7=Nutrients!$B$8,Nutrients!$BW$8,Nutrients!$BW$9)*L$7)+(((IF($A$8=Nutrients!$B$79,Nutrients!$BW$79,(IF($A$8=Nutrients!$B$77,Nutrients!$BW$77,Nutrients!$BW$78)))))*L$8))/2000","v":0.1760524065896884},{"$f":"(SUMPRODUCT(M$9:M$229,Nutrients!$BW$8:$BW$228)+(IF($A$7=Nutrients!$B$8,Nutrients!$BW$8,Nutrients!$BW$9)*M$7)+(((IF($A$8=Nutrients!$B$79,Nutrients!$BW$79,(IF($A$8=Nutrients!$B$77,Nutrients!$BW$77,Nutrients!$BW$78)))))*M$8))/2000","v":0.17420794749635488},{"$f":"(SUMPRODUCT(N$9:N$229,Nutrients!$BW$8:$BW$228)+(IF($A$7=Nutrients!$B$8,Nutrients!$BW$8,Nutrients!$BW$9)*N$7)+(((IF($A$8=Nutrients!$B$79,Nutrients!$BW$79,(IF($A$8=Nutrients!$B$77,Nutrients!$BW$77,Nutrients!$BW$78)))))*N$8))/2000","v":0.17320824661421633},null,{"$f":"(SUMPRODUCT(P$9:P$229,Nutrients!$BW$8:$BW$228)+(IF($A$7=Nutrients!$B$8,Nutrients!$BW$8,Nutrients!$BW$9)*P$7)+(((IF($A$8=Nutrients!$B$79,Nutrients!$BW$79,(IF($A$8=Nutrients!$B$77,Nutrients!$BW$77,Nutrients!$BW$78)))))*P$8))/2000","v":0.19058880290891977},{"$f":"(SUMPRODUCT(Q$9:Q$229,Nutrients!$BW$8:$BW$228)+(IF($A$7=Nutrients!$B$8,Nutrients!$BW$8,Nutrients!$BW$9)*Q$7)+(((IF($A$8=Nutrients!$B$79,Nutrients!$BW$79,(IF($A$8=Nutrients!$B$77,Nutrients!$BW$77,Nutrients!$BW$78)))))*Q$8))/2000","v":0.18793592639723561},{"$f":"(SUMPRODUCT(R$9:R$229,Nutrients!$BW$8:$BW$228)+(IF($A$7=Nutrients!$B$8,Nutrients!$BW$8,Nutrients!$BW$9)*R$7)+(((IF($A$8=Nutrients!$B$79,Nutrients!$BW$79,(IF($A$8=Nutrients!$B$77,Nutrients!$BW$77,Nutrients!$BW$78)))))*R$8))/2000","v":0.18568144193667493},{"$f":"(SUMPRODUCT(S$9:S$229,Nutrients!$BW$8:$BW$228)+(IF($A$7=Nutrients!$B$8,Nutrients!$BW$8,Nutrients!$BW$9)*S$7)+(((IF($A$8=Nutrients!$B$79,Nutrients!$BW$79,(IF($A$8=Nutrients!$B$77,Nutrients!$BW$77,Nutrients!$BW$78)))))*S$8))/2000","v":0.18347610863080288},{"$f":"(SUMPRODUCT(T$9:T$229,Nutrients!$BW$8:$BW$228)+(IF($A$7=Nutrients!$B$8,Nutrients!$BW$8,Nutrients!$BW$9)*T$7)+(((IF($A$8=Nutrients!$B$79,Nutrients!$BW$79,(IF($A$8=Nutrients!$B$77,Nutrients!$BW$77,Nutrients!$BW$78)))))*T$8))/2000","v":0.18165037327511316},{"$f":"(SUMPRODUCT(U$9:U$229,Nutrients!$BW$8:$BW$228)+(IF($A$7=Nutrients!$B$8,Nutrients!$BW$8,Nutrients!$BW$9)*U$7)+(((IF($A$8=Nutrients!$B$79,Nutrients!$BW$79,(IF($A$8=Nutrients!$B$77,Nutrients!$BW$77,Nutrients!$BW$78)))))*U$8))/2000","v":0.18065844298834979},null,{"$f":"(SUMPRODUCT(W$9:W$229,Nutrients!$BW$8:$BW$228)+(IF($A$7=Nutrients!$B$8,Nutrients!$BW$8,Nutrients!$BW$9)*W$7)+(((IF($A$8=Nutrients!$B$79,Nutrients!$BW$79,(IF($A$8=Nutrients!$B$77,Nutrients!$BW$77,Nutrients!$BW$78)))))*W$8))/2000","v":0.19797941670614247},{"$f":"(SUMPRODUCT(X$9:X$229,Nutrients!$BW$8:$BW$228)+(IF($A$7=Nutrients!$B$8,Nutrients!$BW$8,Nutrients!$BW$9)*X$7)+(((IF($A$8=Nutrients!$B$79,Nutrients!$BW$79,(IF($A$8=Nutrients!$B$77,Nutrients!$BW$77,Nutrients!$BW$78)))))*X$8))/2000","v":0.19534791883193384},{"$f":"(SUMPRODUCT(Y$9:Y$229,Nutrients!$BW$8:$BW$228)+(IF($A$7=Nutrients!$B$8,Nutrients!$BW$8,Nutrients!$BW$9)*Y$7)+(((IF($A$8=Nutrients!$B$79,Nutrients!$BW$79,(IF($A$8=Nutrients!$B$77,Nutrients!$BW$77,Nutrients!$BW$78)))))*Y$8))/2000","v":0.19308241815282676},{"$f":"(SUMPRODUCT(Z$9:Z$229,Nutrients!$BW$8:$BW$228)+(IF($A$7=Nutrients!$B$8,Nutrients!$BW$8,Nutrients!$BW$9)*Z$7)+(((IF($A$8=Nutrients!$B$79,Nutrients!$BW$79,(IF($A$8=Nutrients!$B$77,Nutrients!$BW$77,Nutrients!$BW$78)))))*Z$8))/2000","v":0.19090753067375563},{"$f":"(SUMPRODUCT(AA$9:AA$229,Nutrients!$BW$8:$BW$228)+(IF($A$7=Nutrients!$B$8,Nutrients!$BW$8,Nutrients!$BW$9)*AA$7)+(((IF($A$8=Nutrients!$B$79,Nutrients!$BW$79,(IF($A$8=Nutrients!$B$77,Nutrients!$BW$77,Nutrients!$BW$78)))))*AA$8))/2000","v":0.18909246559606993},{"$f":"(SUMPRODUCT(AB$9:AB$229,Nutrients!$BW$8:$BW$228)+(IF($A$7=Nutrients!$B$8,Nutrients!$BW$8,Nutrients!$BW$9)*AB$7)+(((IF($A$8=Nutrients!$B$79,Nutrients!$BW$79,(IF($A$8=Nutrients!$B$77,Nutrients!$BW$77,Nutrients!$BW$78)))))*AB$8))/2000","v":0.18813188633968353},null,{"$f":"(SUMPRODUCT(AD$9:AD$229,Nutrients!$BW$8:$BW$228)+(IF($A$7=Nutrients!$B$8,Nutrients!$BW$8,Nutrients!$BW$9)*AD$7)+(((IF($A$8=Nutrients!$B$79,Nutrients!$BW$79,(IF($A$8=Nutrients!$B$77,Nutrients!$BW$77,Nutrients!$BW$78)))))*AD$8))/2000","v":0.20536684497012131},{"$f":"(SUMPRODUCT(AE$9:AE$229,Nutrients!$BW$8:$BW$228)+(IF($A$7=Nutrients!$B$8,Nutrients!$BW$8,Nutrients!$BW$9)*AE$7)+(((IF($A$8=Nutrients!$B$79,Nutrients!$BW$79,(IF($A$8=Nutrients!$B$77,Nutrients!$BW$77,Nutrients!$BW$78)))))*AE$8))/2000","v":0.20272659264021414},{"$f":"(SUMPRODUCT(AF$9:AF$229,Nutrients!$BW$8:$BW$228)+(IF($A$7=Nutrients!$B$8,Nutrients!$BW$8,Nutrients!$BW$9)*AF$7)+(((IF($A$8=Nutrients!$B$79,Nutrients!$BW$79,(IF($A$8=Nutrients!$B$77,Nutrients!$BW$77,Nutrients!$BW$78)))))*AF$8))/2000","v":0.20049048598481142},{"$f":"(SUMPRODUCT(AG$9:AG$229,Nutrients!$BW$8:$BW$228)+(IF($A$7=Nutrients!$B$8,Nutrients!$BW$8,Nutrients!$BW$9)*AG$7)+(((IF($A$8=Nutrients!$B$79,Nutrients!$BW$79,(IF($A$8=Nutrients!$B$77,Nutrients!$BW$77,Nutrients!$BW$78)))))*AG$8))/2000","v":0.19833719986561096},{"$f":"(SUMPRODUCT(AH$9:AH$229,Nutrients!$BW$8:$BW$228)+(IF($A$7=Nutrients!$B$8,Nutrients!$BW$8,Nutrients!$BW$9)*AH$7)+(((IF($A$8=Nutrients!$B$79,Nutrients!$BW$79,(IF($A$8=Nutrients!$B$77,Nutrients!$BW$77,Nutrients!$BW$78)))))*AH$8))/2000","v":0.19662249518317662},{"$f":"(SUMPRODUCT(AI$9:AI$229,Nutrients!$BW$8:$BW$228)+(IF($A$7=Nutrients!$B$8,Nutrients!$BW$8,Nutrients!$BW$9)*AI$7)+(((IF($A$8=Nutrients!$B$79,Nutrients!$BW$79,(IF($A$8=Nutrients!$B$77,Nutrients!$BW$77,Nutrients!$BW$78)))))*AI$8))/2000","v":0.19570189296571663},null,{"$f":"(SUMPRODUCT(AK$9:AK$229,Nutrients!$BW$8:$BW$228)+(IF($A$7=Nutrients!$B$8,Nutrients!$BW$8,Nutrients!$BW$9)*AK$7)+(((IF($A$8=Nutrients!$B$79,Nutrients!$BW$79,(IF($A$8=Nutrients!$B$77,Nutrients!$BW$77,Nutrients!$BW$78)))))*AK$8))/2000","v":0.21276273423851211},{"$f":"(SUMPRODUCT(AL$9:AL$229,Nutrients!$BW$8:$BW$228)+(IF($A$7=Nutrients!$B$8,Nutrients!$BW$8,Nutrients!$BW$9)*AL$7)+(((IF($A$8=Nutrients!$B$79,Nutrients!$BW$79,(IF($A$8=Nutrients!$B$77,Nutrients!$BW$77,Nutrients!$BW$78)))))*AL$8))/2000","v":0.21011524520387345},{"$f":"(SUMPRODUCT(AM$9:AM$229,Nutrients!$BW$8:$BW$228)+(IF($A$7=Nutrients!$B$8,Nutrients!$BW$8,Nutrients!$BW$9)*AM$7)+(((IF($A$8=Nutrients!$B$79,Nutrients!$BW$79,(IF($A$8=Nutrients!$B$77,Nutrients!$BW$77,Nutrients!$BW$78)))))*AM$8))/2000","v":0.20790154159840904},{"$f":"(SUMPRODUCT(AN$9:AN$229,Nutrients!$BW$8:$BW$228)+(IF($A$7=Nutrients!$B$8,Nutrients!$BW$8,Nutrients!$BW$9)*AN$7)+(((IF($A$8=Nutrients!$B$79,Nutrients!$BW$79,(IF($A$8=Nutrients!$B$77,Nutrients!$BW$77,Nutrients!$BW$78)))))*AN$8))/2000","v":0.20583697985827978},{"$f":"(SUMPRODUCT(AO$9:AO$229,Nutrients!$BW$8:$BW$228)+(IF($A$7=Nutrients!$B$8,Nutrients!$BW$8,Nutrients!$BW$9)*AO$7)+(((IF($A$8=Nutrients!$B$79,Nutrients!$BW$79,(IF($A$8=Nutrients!$B$77,Nutrients!$BW$77,Nutrients!$BW$78)))))*AO$8))/2000","v":0.20418449631842439},{"$f":"(SUMPRODUCT(AP$9:AP$229,Nutrients!$BW$8:$BW$228)+(IF($A$7=Nutrients!$B$8,Nutrients!$BW$8,Nutrients!$BW$9)*AP$7)+(((IF($A$8=Nutrients!$B$79,Nutrients!$BW$79,(IF($A$8=Nutrients!$B$77,Nutrients!$BW$77,Nutrients!$BW$78)))))*AP$8))/2000","v":0.20327186425920049},null,{"$f":"(SUMPRODUCT(AR$9:AR$229,Nutrients!$BW$8:$BW$228)+(IF($A$7=Nutrients!$B$8,Nutrients!$BW$8,Nutrients!$BW$9)*AR$7)+(((IF($A$8=Nutrients!$B$79,Nutrients!$BW$79,(IF($A$8=Nutrients!$B$77,Nutrients!$BW$77,Nutrients!$BW$78)))))*AR$8))/2000","v":0.22022324135223351},{"$f":"(SUMPRODUCT(AS$9:AS$229,Nutrients!$BW$8:$BW$228)+(IF($A$7=Nutrients!$B$8,Nutrients!$BW$8,Nutrients!$BW$9)*AS$7)+(((IF($A$8=Nutrients!$B$79,Nutrients!$BW$79,(IF($A$8=Nutrients!$B$77,Nutrients!$BW$77,Nutrients!$BW$78)))))*AS$8))/2000","v":0.21750280797955365},{"$f":"(SUMPRODUCT(AT$9:AT$229,Nutrients!$BW$8:$BW$228)+(IF($A$7=Nutrients!$B$8,Nutrients!$BW$8,Nutrients!$BW$9)*AT$7)+(((IF($A$8=Nutrients!$B$79,Nutrients!$BW$79,(IF($A$8=Nutrients!$B$77,Nutrients!$BW$77,Nutrients!$BW$78)))))*AT$8))/2000","v":0.21531888015406664},{"$f":"(SUMPRODUCT(AU$9:AU$229,Nutrients!$BW$8:$BW$228)+(IF($A$7=Nutrients!$B$8,Nutrients!$BW$8,Nutrients!$BW$9)*AU$7)+(((IF($A$8=Nutrients!$B$79,Nutrients!$BW$79,(IF($A$8=Nutrients!$B$77,Nutrients!$BW$77,Nutrients!$BW$78)))))*AU$8))/2000","v":0.21338843002624167},{"$f":"(SUMPRODUCT(AV$9:AV$229,Nutrients!$BW$8:$BW$228)+(IF($A$7=Nutrients!$B$8,Nutrients!$BW$8,Nutrients!$BW$9)*AV$7)+(((IF($A$8=Nutrients!$B$79,Nutrients!$BW$79,(IF($A$8=Nutrients!$B$77,Nutrients!$BW$77,Nutrients!$BW$78)))))*AV$8))/2000","v":0.21174666555825902},{"$f":"(SUMPRODUCT(AW$9:AW$229,Nutrients!$BW$8:$BW$228)+(IF($A$7=Nutrients!$B$8,Nutrients!$BW$8,Nutrients!$BW$9)*AW$7)+(((IF($A$8=Nutrients!$B$79,Nutrients!$BW$79,(IF($A$8=Nutrients!$B$77,Nutrients!$BW$77,Nutrients!$BW$78)))))*AW$8))/2000","v":0.21084190067239753}]
["Cl, %",{"$f":"(SUMPRODUCT(B$9:B$229,Nutrients!$BT$8:$BT$228)+(IF($A$7=Nutrients!$B$8,Nutrients!$BT$8,Nutrients!$BT$9)*B$7)+(((IF($A$8=Nutrients!$B$79,Nutrients!$BT$79,(IF($A$8=Nutrients!$B$77,Nutrients!$BT$77,Nutrients!$BT$78)))))*B$8))/2000","v":0.34074334390126987},{"$f":"(SUMPRODUCT(C$9:C$229,Nutrients!$BT$8:$BT$228)+(IF($A$7=Nutrients!$B$8,Nutrients!$BT$8,Nutrients!$BT$9)*C$7)+(((IF($A$8=Nutrients!$B$79,Nutrients!$BT$79,(IF($A$8=Nutrients!$B$77,Nutrients!$BT$77,Nutrients!$BT$78)))))*C$8))/2000","v":0.33141446527128632},{"$f":"(SUMPRODUCT(D$9:D$229,Nutrients!$BT$8:$BT$228)+(IF($A$7=Nutrients!$B$8,Nutrients!$BT$8,Nutrients!$BT$9)*D$7)+(((IF($A$8=Nutrients!$B$79,Nutrients!$BT$79,(IF($A$8=Nutrients!$B$77,Nutrients!$BT$77,Nutrients!$BT$78)))))*D$8))/2000","v":0.32208201141013715},{"$f":"(SUMPRODUCT(E$9:E$229,Nutrients!$BT$8:$BT$228)+(IF($A$7=Nutrients!$B$8,Nutrients!$BT$8,Nutrients!$BT$9)*E$7)+(((IF($A$8=Nutrients!$B$79,Nutrients!$BT$79,(IF($A$8=Nutrients!$B$77,Nutrients!$BT$77,Nutrients!$BT$78)))))*E$8))/2000","v":0.31765998822682556},{"$f":"(SUMPRODUCT(F$9:F$229,Nutrients!$BT$8:$BT$228)+(IF($A$7=Nutrients!$B$8,Nutrients!$BT$8,Nutrients!$BT$9)*F$7)+(((IF($A$8=Nutrients!$B$79,Nutrients!$BT$79,(IF($A$8=Nutrients!$B$77,Nutrients!$BT$77,Nutrients!$BT$78)))))*F$8))/2000","v":0.31776531917662576},{"$f":"(SUMPRODUCT(G$9:G$229,Nutrients!$BT$8:$BT$228)+(IF($A$7=Nutrients!$B$8,Nutrients!$BT$8,Nutrients!$BT$9)*G$7)+(((IF($A$8=Nutrients!$B$79,Nutrients!$BT$79,(IF($A$8=Nutrients!$B$77,Nutrients!$BT$77,Nutrients!$BT$78)))))*G$8))/2000","v":0.31780178721106933},null,{"$f":"(SUMPRODUCT(I$9:I$229,Nutrients!$BT$8:$BT$228)+(IF($A$7=Nutrients!$B$8,Nutrients!$BT$8,Nutrients!$BT$9)*I$7)+(((IF($A$8=Nutrients!$B$79,Nutrients!$BT$79,(IF($A$8=Nutrients!$B$77,Nutrients!$BT$77,Nutrients!$BT$78)))))*I$8))/2000","v":0.35239636713024375},{"$f":"(SUMPRODUCT(J$9:J$229,Nutrients!$BT$8:$BT$228)+(IF($A$7=Nutrients!$B$8,Nutrients!$BT$8,Nutrients!$BT$9)*J$7)+(((IF($A$8=Nutrients!$B$79,Nutrients!$BT$79,(IF($A$8=Nutrients!$B$77,Nutrients!$BT$77,Nutrients!$BT$78)))))*J$8))/2000","v":0.34306325575935631},{"$f":"(SUMPRODUCT(K$9:K$229,Nutrients!$BT$8:$BT$228)+(IF($A$7=Nutrients!$B$8,Nutrients!$BT$8,Nutrients!$BT$9)*K$7)+(((IF($A$8=Nutrients!$B$79,Nutrients!$BT$79,(IF($A$8=Nutrients!$B$77,Nutrients!$BT$77,Nutrients!$BT$78)))))*K$8))/2000","v":0.33373012786126527},{"$f":"(SUMPRODUCT(L$9:L$229,Nutrients!$BT$8:$BT$228)+(IF($A$7=Nutrients!$B$8,Nutrients!$BT$8,Nutrients!$BT$9)*L$7)+(((IF($A$8=Nutrients!$B$79,Nutrients!$BT$79,(IF($A$8=Nutrients!$B$77,Nutrients!$BT$77,Nutrients!$BT$78)))))*L$8))/2000","v":0.32930750985242252},{"$f":"(SUMPRODUCT(M$9:M$229,Nutrients!$BT$8:$BT$228)+(IF($A$7=Nutrients!$B$8,Nutrients!$BT$8,Nutrients!$BT$9)*M$7)+(((IF($A$8=Nutrients!$B$79,Nutrients!$BT$79,(IF($A$8=Nutrients!$B$77,Nutrients!$BT$77,Nutrients!$BT$78)))))*M$8))/2000","v":0.32941434344457726},{"$f":"(SUMPRODUCT(N$9:N$229,Nutrients!$BT$8:$BT$228)+(IF($A$7=Nutrients!$B$8,Nutrients!$BT$8,Nutrients!$BT$9)*N$7)+(((IF($A$8=Nutrients!$B$79,Nutrients!$BT$79,(IF($A$8=Nutrients!$B$77,Nutrients!$BT$77,Nutrients!$BT$78)))))*N$8))/2000","v":0.32944766765507305},null,{"$f":"(SUMPRODUCT(P$9:P$229,Nutrients!$BT$8:$BT$228)+(IF($A$7=Nutrients!$B$8,Nutrients!$BT$8,Nutrients!$BT$9)*P$7)+(((IF($A$8=Nutrients!$B$79,Nutrients!$BT$79,(IF($A$8=Nutrients!$B$77,Nutrients!$BT$77,Nutrients!$BT$78)))))*P$8))/2000","v":0.36404643714426255},{"$f":"(SUMPRODUCT(Q$9:Q$229,Nutrients!$BT$8:$BT$228)+(IF($A$7=Nutrients!$B$8,Nutrients!$BT$8,Nutrients!$BT$9)*Q$7)+(((IF($A$8=Nutrients!$B$79,Nutrients!$BT$79,(IF($A$8=Nutrients!$B$77,Nutrients!$BT$77,Nutrients!$BT$78)))))*Q$8))/2000","v":0.35470970876145158},{"$f":"(SUMPRODUCT(R$9:R$229,Nutrients!$BT$8:$BT$228)+(IF($A$7=Nutrients!$B$8,Nutrients!$BT$8,Nutrients!$BT$9)*R$7)+(((IF($A$8=Nutrients!$B$79,Nutrients!$BT$79,(IF($A$8=Nutrients!$B$77,Nutrients!$BT$77,Nutrients!$BT$78)))))*R$8))/2000","v":0.34537646218322793},{"$f":"(SUMPRODUCT(S$9:S$229,Nutrients!$BT$8:$BT$228)+(IF($A$7=Nutrients!$B$8,Nutrients!$BT$8,Nutrients!$BT$9)*S$7)+(((IF($A$8=Nutrients!$B$79,Nutrients!$BT$79,(IF($A$8=Nutrients!$B$77,Nutrients!$BT$77,Nutrients!$BT$78)))))*S$8))/2000","v":0.34095282997677101},{"$f":"(SUMPRODUCT(T$9:T$229,Nutrients!$BT$8:$BT$228)+(IF($A$7=Nutrients!$B$8,Nutrients!$BT$8,Nutrients!$BT$9)*T$7)+(((IF($A$8=Nutrients!$B$79,Nutrients!$BT$79,(IF($A$8=Nutrients!$B$77,Nutrients!$BT$77,Nutrients!$BT$78)))))*T$8))/2000","v":0.3410587600601066},{"$f":"(SUMPRODUCT(U$9:U$229,Nutrients!$BT$8:$BT$228)+(IF($A$7=Nutrients!$B$8,Nutrients!$BT$8,Nutrients!$BT$9)*U$7)+(((IF($A$8=Nutrients!$B$79,Nutrients!$BT$79,(IF($A$8=Nutrients!$B$77,Nutrients!$BT$77,Nutrients!$BT$78)))))*U$8))/2000","v":0.34109237964548972},null,{"$f":"(SUMPRODUCT(W$9:W$229,Nutrients!$BT$8:$BT$228)+(IF($A$7=Nutrients!$B$8,Nutrients!$BT$8,Nutrients!$BT$9)*W$7)+(((IF($A$8=Nutrients!$B$79,Nutrients!$BT$79,(IF($A$8=Nutrients!$B$77,Nutrients!$BT$77,Nutrients!$BT$78)))))*W$8))/2000","v":0.37569521683199403},{"$f":"(SUMPRODUCT(X$9:X$229,Nutrients!$BT$8:$BT$228)+(IF($A$7=Nutrients!$B$8,Nutrients!$BT$8,Nutrients!$BT$9)*X$7)+(((IF($A$8=Nutrients!$B$79,Nutrients!$BT$79,(IF($A$8=Nutrients!$B$77,Nutrients!$BT$77,Nutrients!$BT$78)))))*X$8))/2000","v":0.36635694467568641},{"$f":"(SUMPRODUCT(Y$9:Y$229,Nutrients!$BT$8:$BT$228)+(IF($A$7=Nutrients!$B$8,Nutrients!$BT$8,Nutrients!$BT$9)*Y$7)+(((IF($A$8=Nutrients!$B$79,Nutrients!$BT$79,(IF($A$8=Nutrients!$B$77,Nutrients!$BT$77,Nutrients!$BT$78)))))*Y$8))/2000","v":0.35702190207867263},{"$f":"(SUMPRODUCT(Z$9:Z$229,Nutrients!$BT$8:$BT$228)+(IF($A$7=Nutrients!$B$8,Nutrients!$BT$8,Nutrients!$BT$9)*Z$7)+(((IF($A$8=Nutrients!$B$79,Nutrients!$BT$79,(IF($A$8=Nutrients!$B$77,Nutrients!$BT$77,Nutrients!$BT$78)))))*Z$8))/2000","v":0.35259535127605518},{"$f":"(SUMPRODUCT(AA$9:AA$229,Nutrients!$BT$8:$BT$228)+(IF($A$7=Nutrients!$B$8,Nutrients!$BT$8,Nutrients!$BT$9)*AA$7)+(((IF($A$8=Nutrients!$B$79,Nutrients!$BT$79,(IF($A$8=Nutrients!$B$77,Nutrients!$BT$77,Nutrients!$BT$78)))))*AA$8))/2000","v":0.35269481185475721},{"$f":"(SUMPRODUCT(AB$9:AB$229,Nutrients!$BT$8:$BT$228)+(IF($A$7=Nutrients!$B$8,Nutrients!$BT$8,Nutrients!$BT$9)*AB$7)+(((IF($A$8=Nutrients!$B$79,Nutrients!$BT$79,(IF($A$8=Nutrients!$B$77,Nutrients!$BT$77,Nutrients!$BT$78)))))*AB$8))/2000","v":0.35271952914396931},null,{"$f":"(SUMPRODUCT(AD$9:AD$229,Nutrients!$BT$8:$BT$228)+(IF($A$7=Nutrients!$B$8,Nutrients!$BT$8,Nutrients!$BT$9)*AD$7)+(((IF($A$8=Nutrients!$B$79,Nutrients!$BT$79,(IF($A$8=Nutrients!$B$77,Nutrients!$BT$77,Nutrients!$BT$78)))))*AD$8))/2000","v":0.38734221458972123},{"$f":"(SUMPRODUCT(AE$9:AE$229,Nutrients!$BT$8:$BT$228)+(IF($A$7=Nutrients!$B$8,Nutrients!$BT$8,Nutrients!$BT$9)*AE$7)+(((IF($A$8=Nutrients!$B$79,Nutrients!$BT$79,(IF($A$8=Nutrients!$B$77,Nutrients!$BT$77,Nutrients!$BT$78)))))*AE$8))/2000","v":0.37800313801756585},{"$f":"(SUMPRODUCT(AF$9:AF$229,Nutrients!$BT$8:$BT$228)+(IF($A$7=Nutrients!$B$8,Nutrients!$BT$8,Nutrients!$BT$9)*AF$7)+(((IF($A$8=Nutrients!$B$79,Nutrients!$BT$79,(IF($A$8=Nutrients!$B$77,Nutrients!$BT$77,Nutrients!$BT$78)))))*AF$8))/2000","v":0.36866456094813954},{"$f":"(SUMPRODUCT(AG$9:AG$229,Nutrients!$BT$8:$BT$228)+(IF($A$7=Nutrients!$B$8,Nutrients!$BT$8,Nutrients!$BT$9)*AG$7)+(((IF($A$8=Nutrients!$B$79,Nutrients!$BT$79,(IF($A$8=Nutrients!$B$77,Nutrients!$BT$77,Nutrients!$BT$78)))))*AG$8))/2000","v":0.3642307611699207},{"$f":"(SUMPRODUCT(AH$9:AH$229,Nutrients!$BT$8:$BT$228)+(IF($A$7=Nutrients!$B$8,Nutrients!$BT$8,Nutrients!$BT$9)*AH$7)+(((IF($A$8=Nutrients!$B$79,Nutrients!$BT$79,(IF($A$8=Nutrients!$B$77,Nutrients!$BT$77,Nutrients!$BT$78)))))*AH$8))/2000","v":0.36430095287529396},{"$f":"(SUMPRODUCT(AI$9:AI$229,Nutrients!$BT$8:$BT$228)+(IF($A$7=Nutrients!$B$8,Nutrients!$BT$8,Nutrients!$BT$9)*AI$7)+(((IF($A$8=Nutrients!$B$79,Nutrients!$BT$79,(IF($A$8=Nutrients!$B$77,Nutrients!$BT$77,Nutrients!$BT$78)))))*AI$8))/2000","v":0.36431498963619119},null,{"$f":"(SUMPRODUCT(AK$9:AK$229,Nutrients!$BT$8:$BT$228)+(IF($A$7=Nutrients!$B$8,Nutrients!$BT$8,Nutrients!$BT$9)*AK$7)+(((IF($A$8=Nutrients!$B$79,Nutrients!$BT$79,(IF($A$8=Nutrients!$B$77,Nutrients!$BT$77,Nutrients!$BT$78)))))*AK$8))/2000","v":0.39898847564090234},{"$f":"(SUMPRODUCT(AL$9:AL$229,Nutrients!$BT$8:$BT$228)+(IF($A$7=Nutrients!$B$8,Nutrients!$BT$8,Nutrients!$BT$9)*AL$7)+(((IF($A$8=Nutrients!$B$79,Nutrients!$BT$79,(IF($A$8=Nutrients!$B$77,Nutrients!$BT$77,Nutrients!$BT$78)))))*AL$8))/2000","v":0.3896508269252057},{"$f":"(SUMPRODUCT(AM$9:AM$229,Nutrients!$BT$8:$BT$228)+(IF($A$7=Nutrients!$B$8,Nutrients!$BT$8,Nutrients!$BT$9)*AM$7)+(((IF($A$8=Nutrients!$B$79,Nutrients!$BT$79,(IF($A$8=Nutrients!$B$77,Nutrients!$BT$77,Nutrients!$BT$78)))))*AM$8))/2000","v":0.380304471689969},{"$f":"(SUMPRODUCT(AN$9:AN$229,Nutrients!$BT$8:$BT$228)+(IF($A$7=Nutrients!$B$8,Nutrients!$BT$8,Nutrients!$BT$9)*AN$7)+(((IF($A$8=Nutrients!$B$79,Nutrients!$BT$79,(IF($A$8=Nutrients!$B$77,Nutrients!$BT$77,Nutrients!$BT$78)))))*AN$8))/2000","v":0.37584327572448922},{"$f":"(SUMPRODUCT(AO$9:AO$229,Nutrients!$BT$8:$BT$228)+(IF($A$7=Nutrients!$B$8,Nutrients!$BT$8,Nutrients!$BT$9)*AO$7)+(((IF($A$8=Nutrients!$B$79,Nutrients!$BT$79,(IF($A$8=Nutrients!$B$77,Nutrients!$BT$77,Nutrients!$BT$78)))))*AO$8))/2000","v":0.37589681135371272},{"$f":"(SUMPRODUCT(AP$9:AP$229,Nutrients!$BT$8:$BT$228)+(IF($A$7=Nutrients!$B$8,Nutrients!$BT$8,Nutrients!$BT$9)*AP$7)+(((IF($A$8=Nutrients!$B$79,Nutrients!$BT$79,(IF($A$8=Nutrients!$B$77,Nutrients!$BT$77,Nutrients!$BT$78)))))*AP$8))/2000","v":0.37591070119345882},null,{"$f":"(SUMPRODUCT(AR$9:AR$229,Nutrients!$BT$8:$BT$228)+(IF($A$7=Nutrients!$B$8,Nutrients!$BT$8,Nutrients!$BT$9)*AR$7)+(((IF($A$8=Nutrients!$B$79,Nutrients!$BT$79,(IF($A$8=Nutrients!$B$77,Nutrients!$BT$77,Nutrients!$BT$78)))))*AR$8))/2000","v":0.41063436961349259},{"$f":"(SUMPRODUCT(AS$9:AS$229,Nutrients!$BT$8:$BT$228)+(IF($A$7=Nutrients!$B$8,Nutrients!$BT$8,Nutrients!$BT$9)*AS$7)+(((IF($A$8=Nutrients!$B$79,Nutrients!$BT$79,(IF($A$8=Nutrients!$B$77,Nutrients!$BT$77,Nutrients!$BT$78)))))*AS$8))/2000","v":0.40129433087894434},{"$f":"(SUMPRODUCT(AT$9:AT$229,Nutrients!$BT$8:$BT$228)+(IF($A$7=Nutrients!$B$8,Nutrients!$BT$8,Nutrients!$BT$9)*AT$7)+(((IF($A$8=Nutrients!$B$79,Nutrients!$BT$79,(IF($A$8=Nutrients!$B$77,Nutrients!$BT$77,Nutrients!$BT$78)))))*AT$8))/2000","v":0.39194051973495486},{"$f":"(SUMPRODUCT(AU$9:AU$229,Nutrients!$BT$8:$BT$228)+(IF($A$7=Nutrients!$B$8,Nutrients!$BT$8,Nutrients!$BT$9)*AU$7)+(((IF($A$8=Nutrients!$B$79,Nutrients!$BT$79,(IF($A$8=Nutrients!$B$77,Nutrients!$BT$77,Nutrients!$BT$78)))))*AU$8))/2000","v":0.38743914527695067},{"$f":"(SUMPRODUCT(AV$9:AV$229,Nutrients!$BT$8:$BT$228)+(IF($A$7=Nutrients!$B$8,Nutrients!$BT$8,Nutrients!$BT$9)*AV$7)+(((IF($A$8=Nutrients!$B$79,Nutrients!$BT$79,(IF($A$8=Nutrients!$B$77,Nutrients!$BT$77,Nutrients!$BT$78)))))*AV$8))/2000","v":0.38749266588755532},{"$f":"(SUMPRODUCT(AW$9:AW$229,Nutrients!$BT$8:$BT$228)+(IF($A$7=Nutrients!$B$8,Nutrients!$BT$8,Nutrients!$BT$9)*AW$7)+(((IF($A$8=Nutrients!$B$79,Nutrients!$BT$79,(IF($A$8=Nutrients!$B$77,Nutrients!$BT$77,Nutrients!$BT$78)))))*AW$8))/2000","v":0.387506410756151}]
["K, %",{"$f":"(SUMPRODUCT(B$9:B$229,Nutrients!$BU$8:$BU$228)+(IF($A$7=Nutrients!$B$8,Nutrients!$BU$8,Nutrients!$BU$9)*B$7)+(((IF($A$8=Nutrients!$B$79,Nutrients!$BU$79,(IF($A$8=Nutrients!$B$77,Nutrients!$BU$77,Nutrients!$BU$78)))))*B$8))/2000","v":0.82299889398162063},{"$f":"(SUMPRODUCT(C$9:C$229,Nutrients!$BU$8:$BU$228)+(IF($A$7=Nutrients!$B$8,Nutrients!$BU$8,Nutrients!$BU$9)*C$7)+(((IF($A$8=Nutrients!$B$79,Nutrients!$BU$79,(IF($A$8=Nutrients!$B$77,Nutrients!$BU$77,Nutrients!$BU$78)))))*C$8))/2000","v":0.74655886728664078},{"$f":"(SUMPRODUCT(D$9:D$229,Nutrients!$BU$8:$BU$228)+(IF($A$7=Nutrients!$B$8,Nutrients!$BU$8,Nutrients!$BU$9)*D$7)+(((IF($A$8=Nutrients!$B$79,Nutrients!$BU$79,(IF($A$8=Nutrients!$B$77,Nutrients!$BU$77,Nutrients!$BU$78)))))*D$8))/2000","v":0.68235096300443021},{"$f":"(SUMPRODUCT(E$9:E$229,Nutrients!$BU$8:$BU$228)+(IF($A$7=Nutrients!$B$8,Nutrients!$BU$8,Nutrients!$BU$9)*E$7)+(((IF($A$8=Nutrients!$B$79,Nutrients!$BU$79,(IF($A$8=Nutrients!$B$77,Nutrients!$BU$77,Nutrients!$BU$78)))))*E$8))/2000","v":0.61832324439114794},{"$f":"(SUMPRODUCT(F$9:F$229,Nutrients!$BU$8:$BU$228)+(IF($A$7=Nutrients!$B$8,Nutrients!$BU$8,Nutrients!$BU$9)*F$7)+(((IF($A$8=Nutrients!$B$79,Nutrients!$BU$79,(IF($A$8=Nutrients!$B$77,Nutrients!$BU$77,Nutrients!$BU$78)))))*F$8))/2000","v":0.5641190327748159},{"$f":"(SUMPRODUCT(G$9:G$229,Nutrients!$BU$8:$BU$228)+(IF($A$7=Nutrients!$B$8,Nutrients!$BU$8,Nutrients!$BU$9)*G$7)+(((IF($A$8=Nutrients!$B$79,Nutrients!$BU$79,(IF($A$8=Nutrients!$B$77,Nutrients!$BU$77,Nutrients!$BU$78)))))*G$8))/2000","v":0.53408892433970367},null,{"$f":"(SUMPRODUCT(I$9:I$229,Nutrients!$BU$8:$BU$228)+(IF($A$7=Nutrients!$B$8,Nutrients!$BU$8,Nutrients!$BU$9)*I$7)+(((IF($A$8=Nutrients!$B$79,Nutrients!$BU$79,(IF($A$8=Nutrients!$B$77,Nutrients!$BU$77,Nutrients!$BU$78)))))*I$8))/2000","v":0.81965437437059241},{"$f":"(SUMPRODUCT(J$9:J$229,Nutrients!$BU$8:$BU$228)+(IF($A$7=Nutrients!$B$8,Nutrients!$BU$8,Nutrients!$BU$9)*J$7)+(((IF($A$8=Nutrients!$B$79,Nutrients!$BU$79,(IF($A$8=Nutrients!$B$77,Nutrients!$BU$77,Nutrients!$BU$78)))))*J$8))/2000","v":0.74435254874252699},{"$f":"(SUMPRODUCT(K$9:K$229,Nutrients!$BU$8:$BU$228)+(IF($A$7=Nutrients!$B$8,Nutrients!$BU$8,Nutrients!$BU$9)*K$7)+(((IF($A$8=Nutrients!$B$79,Nutrients!$BU$79,(IF($A$8=Nutrients!$B$77,Nutrients!$BU$77,Nutrients!$BU$78)))))*K$8))/2000","v":0.68107417499789247},{"$f":"(SUMPRODUCT(L$9:L$229,Nutrients!$BU$8:$BU$228)+(IF($A$7=Nutrients!$B$8,Nutrients!$BU$8,Nutrients!$BU$9)*L$7)+(((IF($A$8=Nutrients!$B$79,Nutrients!$BU$79,(IF($A$8=Nutrients!$B$77,Nutrients!$BU$77,Nutrients!$BU$78)))))*L$8))/2000","v":0.61767504769545212},{"$f":"(SUMPRODUCT(M$9:M$229,Nutrients!$BU$8:$BU$228)+(IF($A$7=Nutrients!$B$8,Nutrients!$BU$8,Nutrients!$BU$9)*M$7)+(((IF($A$8=Nutrients!$B$79,Nutrients!$BU$79,(IF($A$8=Nutrients!$B$77,Nutrients!$BU$77,Nutrients!$BU$78)))))*M$8))/2000","v":0.563431512991595},{"$f":"(SUMPRODUCT(N$9:N$229,Nutrients!$BU$8:$BU$228)+(IF($A$7=Nutrients!$B$8,Nutrients!$BU$8,Nutrients!$BU$9)*N$7)+(((IF($A$8=Nutrients!$B$79,Nutrients!$BU$79,(IF($A$8=Nutrients!$B$77,Nutrients!$BU$77,Nutrients!$BU$78)))))*N$8))/2000","v":0.5337067350464072},null,{"$f":"(SUMPRODUCT(P$9:P$229,Nutrients!$BU$8:$BU$228)+(IF($A$7=Nutrients!$B$8,Nutrients!$BU$8,Nutrients!$BU$9)*P$7)+(((IF($A$8=Nutrients!$B$79,Nutrients!$BU$79,(IF($A$8=Nutrients!$B$77,Nutrients!$BU$77,Nutrients!$BU$78)))))*P$8))/2000","v":0.81777664095488534},{"$f":"(SUMPRODUCT(Q$9:Q$229,Nutrients!$BU$8:$BU$228)+(IF($A$7=Nutrients!$B$8,Nutrients!$BU$8,Nutrients!$BU$9)*Q$7)+(((IF($A$8=Nutrients!$B$79,Nutrients!$BU$79,(IF($A$8=Nutrients!$B$77,Nutrients!$BU$77,Nutrients!$BU$78)))))*Q$8))/2000","v":0.74315548552894917},{"$f":"(SUMPRODUCT(R$9:R$229,Nutrients!$BU$8:$BU$228)+(IF($A$7=Nutrients!$B$8,Nutrients!$BU$8,Nutrients!$BU$9)*R$7)+(((IF($A$8=Nutrients!$B$79,Nutrients!$BU$79,(IF($A$8=Nutrients!$B$77,Nutrients!$BU$77,Nutrients!$BU$78)))))*R$8))/2000","v":0.68061661710499632},{"$f":"(SUMPRODUCT(S$9:S$229,Nutrients!$BU$8:$BU$228)+(IF($A$7=Nutrients!$B$8,Nutrients!$BU$8,Nutrients!$BU$9)*S$7)+(((IF($A$8=Nutrients!$B$79,Nutrients!$BU$79,(IF($A$8=Nutrients!$B$77,Nutrients!$BU$77,Nutrients!$BU$78)))))*S$8))/2000","v":0.61686933716984049},{"$f":"(SUMPRODUCT(T$9:T$229,Nutrients!$BU$8:$BU$228)+(IF($A$7=Nutrients!$B$8,Nutrients!$BU$8,Nutrients!$BU$9)*T$7)+(((IF($A$8=Nutrients!$B$79,Nutrients!$BU$79,(IF($A$8=Nutrients!$B$77,Nutrients!$BU$77,Nutrients!$BU$78)))))*T$8))/2000","v":0.56322872226041387},{"$f":"(SUMPRODUCT(U$9:U$229,Nutrients!$BU$8:$BU$228)+(IF($A$7=Nutrients!$B$8,Nutrients!$BU$8,Nutrients!$BU$9)*U$7)+(((IF($A$8=Nutrients!$B$79,Nutrients!$BU$79,(IF($A$8=Nutrients!$B$77,Nutrients!$BU$77,Nutrients!$BU$78)))))*U$8))/2000","v":0.53374990211281037},null,{"$f":"(SUMPRODUCT(W$9:W$229,Nutrients!$BU$8:$BU$228)+(IF($A$7=Nutrients!$B$8,Nutrients!$BU$8,Nutrients!$BU$9)*W$7)+(((IF($A$8=Nutrients!$B$79,Nutrients!$BU$79,(IF($A$8=Nutrients!$B$77,Nutrients!$BU$77,Nutrients!$BU$78)))))*W$8))/2000","v":0.81589361808867533},{"$f":"(SUMPRODUCT(X$9:X$229,Nutrients!$BU$8:$BU$228)+(IF($A$7=Nutrients!$B$8,Nutrients!$BU$8,Nutrients!$BU$9)*X$7)+(((IF($A$8=Nutrients!$B$79,Nutrients!$BU$79,(IF($A$8=Nutrients!$B$77,Nutrients!$BU$77,Nutrients!$BU$78)))))*X$8))/2000","v":0.74196412849478377},{"$f":"(SUMPRODUCT(Y$9:Y$229,Nutrients!$BU$8:$BU$228)+(IF($A$7=Nutrients!$B$8,Nutrients!$BU$8,Nutrients!$BU$9)*Y$7)+(((IF($A$8=Nutrients!$B$79,Nutrients!$BU$79,(IF($A$8=Nutrients!$B$77,Nutrients!$BU$77,Nutrients!$BU$78)))))*Y$8))/2000","v":0.67908532675638966},{"$f":"(SUMPRODUCT(Z$9:Z$229,Nutrients!$BU$8:$BU$228)+(IF($A$7=Nutrients!$B$8,Nutrients!$BU$8,Nutrients!$BU$9)*Z$7)+(((IF($A$8=Nutrients!$B$79,Nutrients!$BU$79,(IF($A$8=Nutrients!$B$77,Nutrients!$BU$77,Nutrients!$BU$78)))))*Z$8))/2000","v":0.61632764254432848},{"$f":"(SUMPRODUCT(AA$9:AA$229,Nutrients!$BU$8:$BU$228)+(IF($A$7=Nutrients!$B$8,Nutrients!$BU$8,Nutrients!$BU$9)*AA$7)+(((IF($A$8=Nutrients!$B$79,Nutrients!$BU$79,(IF($A$8=Nutrients!$B$77,Nutrients!$BU$77,Nutrients!$BU$78)))))*AA$8))/2000","v":0.56306847653102987},{"$f":"(SUMPRODUCT(AB$9:AB$229,Nutrients!$BU$8:$BU$228)+(IF($A$7=Nutrients!$B$8,Nutrients!$BU$8,Nutrients!$BU$9)*AB$7)+(((IF($A$8=Nutrients!$B$79,Nutrients!$BU$79,(IF($A$8=Nutrients!$B$77,Nutrients!$BU$77,Nutrients!$BU$78)))))*AB$8))/2000","v":0.53363455640884672},null,{"$f":"(SUMPRODUCT(AD$9:AD$229,Nutrients!$BU$8:$BU$228)+(IF($A$7=Nutrients!$B$8,Nutrients!$BU$8,Nutrients!$BU$9)*AD$7)+(((IF($A$8=Nutrients!$B$79,Nutrients!$BU$79,(IF($A$8=Nutrients!$B$77,Nutrients!$BU$77,Nutrients!$BU$78)))))*AD$8))/2000","v":0.81392032452512597},{"$f":"(SUMPRODUCT(AE$9:AE$229,Nutrients!$BU$8:$BU$228)+(IF($A$7=Nutrients!$B$8,Nutrients!$BU$8,Nutrients!$BU$9)*AE$7)+(((IF($A$8=Nutrients!$B$79,Nutrients!$BU$79,(IF($A$8=Nutrients!$B$77,Nutrients!$BU$77,Nutrients!$BU$78)))))*AE$8))/2000","v":0.73971673414030459},{"$f":"(SUMPRODUCT(AF$9:AF$229,Nutrients!$BU$8:$BU$228)+(IF($A$7=Nutrients!$B$8,Nutrients!$BU$8,Nutrients!$BU$9)*AF$7)+(((IF($A$8=Nutrients!$B$79,Nutrients!$BU$79,(IF($A$8=Nutrients!$B$77,Nutrients!$BU$77,Nutrients!$BU$78)))))*AF$8))/2000","v":0.67779789737989726},{"$f":"(SUMPRODUCT(AG$9:AG$229,Nutrients!$BU$8:$BU$228)+(IF($A$7=Nutrients!$B$8,Nutrients!$BU$8,Nutrients!$BU$9)*AG$7)+(((IF($A$8=Nutrients!$B$79,Nutrients!$BU$79,(IF($A$8=Nutrients!$B$77,Nutrients!$BU$77,Nutrients!$BU$78)))))*AG$8))/2000","v":0.61574322589368025},{"$f":"(SUMPRODUCT(AH$9:AH$229,Nutrients!$BU$8:$BU$228)+(IF($A$7=Nutrients!$B$8,Nutrients!$BU$8,Nutrients!$BU$9)*AH$7)+(((IF($A$8=Nutrients!$B$79,Nutrients!$BU$79,(IF($A$8=Nutrients!$B$77,Nutrients!$BU$77,Nutrients!$BU$78)))))*AH$8))/2000","v":0.5624746156265471},{"$f":"(SUMPRODUCT(AI$9:AI$229,Nutrients!$BU$8:$BU$228)+(IF($A$7=Nutrients!$B$8,Nutrients!$BU$8,Nutrients!$BU$9)*AI$7)+(((IF($A$8=Nutrients!$B$79,Nutrients!$BU$79,(IF($A$8=Nutrients!$B$77,Nutrients!$BU$77,Nutrients!$BU$78)))))*AI$8))/2000","v":0.53315079953626621},null,{"$f":"(SUMPRODUCT(AK$9:AK$229,Nutrients!$BU$8:$BU$228)+(IF($A$7=Nutrients!$B$8,Nutrients!$BU$8,Nutrients!$BU$9)*AK$7)+(((IF($A$8=Nutrients!$B$79,Nutrients!$BU$79,(IF($A$8=Nutrients!$B$77,Nutrients!$BU$77,Nutrients!$BU$78)))))*AK$8))/2000","v":0.81222157026973629},{"$f":"(SUMPRODUCT(AL$9:AL$229,Nutrients!$BU$8:$BU$228)+(IF($A$7=Nutrients!$B$8,Nutrients!$BU$8,Nutrients!$BU$9)*AL$7)+(((IF($A$8=Nutrients!$B$79,Nutrients!$BU$79,(IF($A$8=Nutrients!$B$77,Nutrients!$BU$77,Nutrients!$BU$78)))))*AL$8))/2000","v":0.73777809437374209},{"$f":"(SUMPRODUCT(AM$9:AM$229,Nutrients!$BU$8:$BU$228)+(IF($A$7=Nutrients!$B$8,Nutrients!$BU$8,Nutrients!$BU$9)*AM$7)+(((IF($A$8=Nutrients!$B$79,Nutrients!$BU$79,(IF($A$8=Nutrients!$B$77,Nutrients!$BU$77,Nutrients!$BU$78)))))*AM$8))/2000","v":0.67662323196883822},{"$f":"(SUMPRODUCT(AN$9:AN$229,Nutrients!$BU$8:$BU$228)+(IF($A$7=Nutrients!$B$8,Nutrients!$BU$8,Nutrients!$BU$9)*AN$7)+(((IF($A$8=Nutrients!$B$79,Nutrients!$BU$79,(IF($A$8=Nutrients!$B$77,Nutrients!$BU$77,Nutrients!$BU$78)))))*AN$8))/2000","v":0.61482357324490455},{"$f":"(SUMPRODUCT(AO$9:AO$229,Nutrients!$BU$8:$BU$228)+(IF($A$7=Nutrients!$B$8,Nutrients!$BU$8,Nutrients!$BU$9)*AO$7)+(((IF($A$8=Nutrients!$B$79,Nutrients!$BU$79,(IF($A$8=Nutrients!$B$77,Nutrients!$BU$77,Nutrients!$BU$78)))))*AO$8))/2000","v":0.56173404348045175},{"$f":"(SUMPRODUCT(AP$9:AP$229,Nutrients!$BU$8:$BU$228)+(IF($A$7=Nutrients!$B$8,Nutrients!$BU$8,Nutrients!$BU$9)*AP$7)+(((IF($A$8=Nutrients!$B$79,Nutrients!$BU$79,(IF($A$8=Nutrients!$B$77,Nutrients!$BU$77,Nutrients!$BU$78)))))*AP$8))/2000","v":0.53266422335062302},null,{"$f":"(SUMPRODUCT(AR$9:AR$229,Nutrients!$BU$8:$BU$228)+(IF($A$7=Nutrients!$B$8,Nutrients!$BU$8,Nutrients!$BU$9)*AR$7)+(((IF($A$8=Nutrients!$B$79,Nutrients!$BU$79,(IF($A$8=Nutrients!$B$77,Nutrients!$BU$77,Nutrients!$BU$78)))))*AR$8))/2000","v":0.81258607388560133},{"$f":"(SUMPRODUCT(AS$9:AS$229,Nutrients!$BU$8:$BU$228)+(IF($A$7=Nutrients!$B$8,Nutrients!$BU$8,Nutrients!$BU$9)*AS$7)+(((IF($A$8=Nutrients!$B$79,Nutrients!$BU$79,(IF($A$8=Nutrients!$B$77,Nutrients!$BU$77,Nutrients!$BU$78)))))*AS$8))/2000","v":0.73583130319550927},{"$f":"(SUMPRODUCT(AT$9:AT$229,Nutrients!$BU$8:$BU$228)+(IF($A$7=Nutrients!$B$8,Nutrients!$BU$8,Nutrients!$BU$9)*AT$7)+(((IF($A$8=Nutrients!$B$79,Nutrients!$BU$79,(IF($A$8=Nutrients!$B$77,Nutrients!$BU$77,Nutrients!$BU$78)))))*AT$8))/2000","v":0.67563985765240775},{"$f":"(SUMPRODUCT(AU$9:AU$229,Nutrients!$BU$8:$BU$228)+(IF($A$7=Nutrients!$B$8,Nutrients!$BU$8,Nutrients!$BU$9)*AU$7)+(((IF($A$8=Nutrients!$B$79,Nutrients!$BU$79,(IF($A$8=Nutrients!$B$77,Nutrients!$BU$77,Nutrients!$BU$78)))))*AU$8))/2000","v":0.61373309721842451},{"$f":"(SUMPRODUCT(AV$9:AV$229,Nutrients!$BU$8:$BU$228)+(IF($A$7=Nutrients!$B$8,Nutrients!$BU$8,Nutrients!$BU$9)*AV$7)+(((IF($A$8=Nutrients!$B$79,Nutrients!$BU$79,(IF($A$8=Nutrients!$B$77,Nutrients!$BU$77,Nutrients!$BU$78)))))*AV$8))/2000","v":0.56099876555978545},{"$f":"(SUMPRODUCT(AW$9:AW$229,Nutrients!$BU$8:$BU$228)+(IF($A$7=Nutrients!$B$8,Nutrients!$BU$8,Nutrients!$BU$9)*AW$7)+(((IF($A$8=Nutrients!$B$79,Nutrients!$BU$79,(IF($A$8=Nutrients!$B$77,Nutrients!$BU$77,Nutrients!$BU$78)))))*AW$8))/2000","v":0.53217966327259392}]
["DCAD",{"$f":"(B306 * 434.98) + (B308* 255.74) - (B307*282.06)","v":190.85683508470862},172.75687046998428,157.97167371049909,141.87849201438749,127.1843305627486,119.05581383819251,null,{"$f":"(I306 * 434.98) + (I308* 255.74) - (I307*282.06)","v":189.90879535709081},172.12051068607076,157.57970520638651,141.6590162870433,126.9543384224575,118.90827439423012,null,{"$f":"(P306 * 434.98) + (P308* 255.74) - (P307*282.06)","v":189.35757758621361},171.75353268018796,157.41172234864541,141.39744679679364,126.85535893553332,118.87549289459569,null,{"$f":"(W306 * 434.98) + (W308* 255.74) - (W307*282.06)","v":188.80512770920348},171.38770413954646,156.95467401248527,141.20754421583268,126.7694742412713,118.81723898568603,null,{"$f":"(AD306 * 434.98) + (AD308* 255.74) - (AD307*282.06)","v":188.22870897198231},170.7376057464472,156.56385980857596,141.00795929200541,126.61938438710592,118.71570889884804,null,{"$f":"(AK306 * 434.98) + (AK308* 255.74) - (AK307*282.06)","v":187.72638908057746},170.17038697139813,156.20395862331404,140.759595769557,126.44858187785074,118.61337161652837,null,{"$f":"(AR306 * 434.98) + (AR308* 255.74) - (AR307*282.06)","v":187.77993776571651},169.60178992645075,155.89680068900128,140.49471625863777,126.27920754854721,118.51157882193269]
["Phytate P, %",{"$f":"(SUMPRODUCT(B$9:B$229,Nutrients!$EG$8:$EG$228)+(IF($A$7=Nutrients!$B$8,Nutrients!$EG$8,Nutrients!$EG$9)*B$7)+(((IF($A$8=Nutrients!$B$79,Nutrients!$EG$79,(IF($A$8=Nutrients!$B$77,Nutrients!$EG$77,Nutrients!$EG$78)))))*B$8))/2000","v":0.25833959194258826},{"$f":"(SUMPRODUCT(C$9:C$229,Nutrients!$EG$8:$EG$228)+(IF($A$7=Nutrients!$B$8,Nutrients!$EG$8,Nutrients!$EG$9)*C$7)+(((IF($A$8=Nutrients!$B$79,Nutrients!$EG$79,(IF($A$8=Nutrients!$B$77,Nutrients!$EG$77,Nutrients!$EG$78)))))*C$8))/2000","v":0.24779907433968829},{"$f":"(SUMPRODUCT(D$9:D$229,Nutrients!$EG$8:$EG$228)+(IF($A$7=Nutrients!$B$8,Nutrients!$EG$8,Nutrients!$EG$9)*D$7)+(((IF($A$8=Nutrients!$B$79,Nutrients!$EG$79,(IF($A$8=Nutrients!$B$77,Nutrients!$EG$77,Nutrients!$EG$78)))))*D$8))/2000","v":0.23900316211582037},{"$f":"(SUMPRODUCT(E$9:E$229,Nutrients!$EG$8:$EG$228)+(IF($A$7=Nutrients!$B$8,Nutrients!$EG$8,Nutrients!$EG$9)*E$7)+(((IF($A$8=Nutrients!$B$79,Nutrients!$EG$79,(IF($A$8=Nutrients!$B$77,Nutrients!$EG$77,Nutrients!$EG$78)))))*E$8))/2000","v":0.23005692988837381},{"$f":"(SUMPRODUCT(F$9:F$229,Nutrients!$EG$8:$EG$228)+(IF($A$7=Nutrients!$B$8,Nutrients!$EG$8,Nutrients!$EG$9)*F$7)+(((IF($A$8=Nutrients!$B$79,Nutrients!$EG$79,(IF($A$8=Nutrients!$B$77,Nutrients!$EG$77,Nutrients!$EG$78)))))*F$8))/2000","v":0.22240960598768925},{"$f":"(SUMPRODUCT(G$9:G$229,Nutrients!$EG$8:$EG$228)+(IF($A$7=Nutrients!$B$8,Nutrients!$EG$8,Nutrients!$EG$9)*G$7)+(((IF($A$8=Nutrients!$B$79,Nutrients!$EG$79,(IF($A$8=Nutrients!$B$77,Nutrients!$EG$77,Nutrients!$EG$78)))))*G$8))/2000","v":0.21810869862161428},null,{"$f":"(SUMPRODUCT(I$9:I$229,Nutrients!$EG$8:$EG$228)+(IF($A$7=Nutrients!$B$8,Nutrients!$EG$8,Nutrients!$EG$9)*I$7)+(((IF($A$8=Nutrients!$B$79,Nutrients!$EG$79,(IF($A$8=Nutrients!$B$77,Nutrients!$EG$77,Nutrients!$EG$78)))))*I$8))/2000","v":0.2529793743230016},{"$f":"(SUMPRODUCT(J$9:J$229,Nutrients!$EG$8:$EG$228)+(IF($A$7=Nutrients!$B$8,Nutrients!$EG$8,Nutrients!$EG$9)*J$7)+(((IF($A$8=Nutrients!$B$79,Nutrients!$EG$79,(IF($A$8=Nutrients!$B$77,Nutrients!$EG$77,Nutrients!$EG$78)))))*J$8))/2000","v":0.24259233363577518},{"$f":"(SUMPRODUCT(K$9:K$229,Nutrients!$EG$8:$EG$228)+(IF($A$7=Nutrients!$B$8,Nutrients!$EG$8,Nutrients!$EG$9)*K$7)+(((IF($A$8=Nutrients!$B$79,Nutrients!$EG$79,(IF($A$8=Nutrients!$B$77,Nutrients!$EG$77,Nutrients!$EG$78)))))*K$8))/2000","v":0.23393470824154367},{"$f":"(SUMPRODUCT(L$9:L$229,Nutrients!$EG$8:$EG$228)+(IF($A$7=Nutrients!$B$8,Nutrients!$EG$8,Nutrients!$EG$9)*L$7)+(((IF($A$8=Nutrients!$B$79,Nutrients!$EG$79,(IF($A$8=Nutrients!$B$77,Nutrients!$EG$77,Nutrients!$EG$78)))))*L$8))/2000","v":0.22507771214746949},{"$f":"(SUMPRODUCT(M$9:M$229,Nutrients!$EG$8:$EG$228)+(IF($A$7=Nutrients!$B$8,Nutrients!$EG$8,Nutrients!$EG$9)*M$7)+(((IF($A$8=Nutrients!$B$79,Nutrients!$EG$79,(IF($A$8=Nutrients!$B$77,Nutrients!$EG$77,Nutrients!$EG$78)))))*M$8))/2000","v":0.2174280908978922},{"$f":"(SUMPRODUCT(N$9:N$229,Nutrients!$EG$8:$EG$228)+(IF($A$7=Nutrients!$B$8,Nutrients!$EG$8,Nutrients!$EG$9)*N$7)+(((IF($A$8=Nutrients!$B$79,Nutrients!$EG$79,(IF($A$8=Nutrients!$B$77,Nutrients!$EG$77,Nutrients!$EG$78)))))*N$8))/2000","v":0.21316406864950757},null,{"$f":"(SUMPRODUCT(P$9:P$229,Nutrients!$EG$8:$EG$228)+(IF($A$7=Nutrients!$B$8,Nutrients!$EG$8,Nutrients!$EG$9)*P$7)+(((IF($A$8=Nutrients!$B$79,Nutrients!$EG$79,(IF($A$8=Nutrients!$B$77,Nutrients!$EG$77,Nutrients!$EG$78)))))*P$8))/2000","v":0.24782637327006385},{"$f":"(SUMPRODUCT(Q$9:Q$229,Nutrients!$EG$8:$EG$228)+(IF($A$7=Nutrients!$B$8,Nutrients!$EG$8,Nutrients!$EG$9)*Q$7)+(((IF($A$8=Nutrients!$B$79,Nutrients!$EG$79,(IF($A$8=Nutrients!$B$77,Nutrients!$EG$77,Nutrients!$EG$78)))))*Q$8))/2000","v":0.23752889743998792},{"$f":"(SUMPRODUCT(R$9:R$229,Nutrients!$EG$8:$EG$228)+(IF($A$7=Nutrients!$B$8,Nutrients!$EG$8,Nutrients!$EG$9)*R$7)+(((IF($A$8=Nutrients!$B$79,Nutrients!$EG$79,(IF($A$8=Nutrients!$B$77,Nutrients!$EG$77,Nutrients!$EG$78)))))*R$8))/2000","v":0.22898038393614423},{"$f":"(SUMPRODUCT(S$9:S$229,Nutrients!$EG$8:$EG$228)+(IF($A$7=Nutrients!$B$8,Nutrients!$EG$8,Nutrients!$EG$9)*S$7)+(((IF($A$8=Nutrients!$B$79,Nutrients!$EG$79,(IF($A$8=Nutrients!$B$77,Nutrients!$EG$77,Nutrients!$EG$78)))))*S$8))/2000","v":0.22006919979138856},{"$f":"(SUMPRODUCT(T$9:T$229,Nutrients!$EG$8:$EG$228)+(IF($A$7=Nutrients!$B$8,Nutrients!$EG$8,Nutrients!$EG$9)*T$7)+(((IF($A$8=Nutrients!$B$79,Nutrients!$EG$79,(IF($A$8=Nutrients!$B$77,Nutrients!$EG$77,Nutrients!$EG$78)))))*T$8))/2000","v":0.21250582009347158},{"$f":"(SUMPRODUCT(U$9:U$229,Nutrients!$EG$8:$EG$228)+(IF($A$7=Nutrients!$B$8,Nutrients!$EG$8,Nutrients!$EG$9)*U$7)+(((IF($A$8=Nutrients!$B$79,Nutrients!$EG$79,(IF($A$8=Nutrients!$B$77,Nutrients!$EG$77,Nutrients!$EG$78)))))*U$8))/2000","v":0.20827887662744479},null,{"$f":"(SUMPRODUCT(W$9:W$229,Nutrients!$EG$8:$EG$228)+(IF($A$7=Nutrients!$B$8,Nutrients!$EG$8,Nutrients!$EG$9)*W$7)+(((IF($A$8=Nutrients!$B$79,Nutrients!$EG$79,(IF($A$8=Nutrients!$B$77,Nutrients!$EG$77,Nutrients!$EG$78)))))*W$8))/2000","v":0.24266903418775679},{"$f":"(SUMPRODUCT(X$9:X$229,Nutrients!$EG$8:$EG$228)+(IF($A$7=Nutrients!$B$8,Nutrients!$EG$8,Nutrients!$EG$9)*X$7)+(((IF($A$8=Nutrients!$B$79,Nutrients!$EG$79,(IF($A$8=Nutrients!$B$77,Nutrients!$EG$77,Nutrients!$EG$78)))))*X$8))/2000","v":0.23246904477473293},{"$f":"(SUMPRODUCT(Y$9:Y$229,Nutrients!$EG$8:$EG$228)+(IF($A$7=Nutrients!$B$8,Nutrients!$EG$8,Nutrients!$EG$9)*Y$7)+(((IF($A$8=Nutrients!$B$79,Nutrients!$EG$79,(IF($A$8=Nutrients!$B$77,Nutrients!$EG$77,Nutrients!$EG$78)))))*Y$8))/2000","v":0.223865320327129},{"$f":"(SUMPRODUCT(Z$9:Z$229,Nutrients!$EG$8:$EG$228)+(IF($A$7=Nutrients!$B$8,Nutrients!$EG$8,Nutrients!$EG$9)*Z$7)+(((IF($A$8=Nutrients!$B$79,Nutrients!$EG$79,(IF($A$8=Nutrients!$B$77,Nutrients!$EG$77,Nutrients!$EG$78)))))*Z$8))/2000","v":0.21509158599183473},{"$f":"(SUMPRODUCT(AA$9:AA$229,Nutrients!$EG$8:$EG$228)+(IF($A$7=Nutrients!$B$8,Nutrients!$EG$8,Nutrients!$EG$9)*AA$7)+(((IF($A$8=Nutrients!$B$79,Nutrients!$EG$79,(IF($A$8=Nutrients!$B$77,Nutrients!$EG$77,Nutrients!$EG$78)))))*AA$8))/2000","v":0.20756591759126977},{"$f":"(SUMPRODUCT(AB$9:AB$229,Nutrients!$EG$8:$EG$228)+(IF($A$7=Nutrients!$B$8,Nutrients!$EG$8,Nutrients!$EG$9)*AB$7)+(((IF($A$8=Nutrients!$B$79,Nutrients!$EG$79,(IF($A$8=Nutrients!$B$77,Nutrients!$EG$77,Nutrients!$EG$78)))))*AB$8))/2000","v":0.20331241127269045},null,{"$f":"(SUMPRODUCT(AD$9:AD$229,Nutrients!$EG$8:$EG$228)+(IF($A$7=Nutrients!$B$8,Nutrients!$EG$8,Nutrients!$EG$9)*AD$7)+(((IF($A$8=Nutrients!$B$79,Nutrients!$EG$79,(IF($A$8=Nutrients!$B$77,Nutrients!$EG$77,Nutrients!$EG$78)))))*AD$8))/2000","v":0.237493305068776},{"$f":"(SUMPRODUCT(AE$9:AE$229,Nutrients!$EG$8:$EG$228)+(IF($A$7=Nutrients!$B$8,Nutrients!$EG$8,Nutrients!$EG$9)*AE$7)+(((IF($A$8=Nutrients!$B$79,Nutrients!$EG$79,(IF($A$8=Nutrients!$B$77,Nutrients!$EG$77,Nutrients!$EG$78)))))*AE$8))/2000","v":0.22725063640466628},{"$f":"(SUMPRODUCT(AF$9:AF$229,Nutrients!$EG$8:$EG$228)+(IF($A$7=Nutrients!$B$8,Nutrients!$EG$8,Nutrients!$EG$9)*AF$7)+(((IF($A$8=Nutrients!$B$79,Nutrients!$EG$79,(IF($A$8=Nutrients!$B$77,Nutrients!$EG$77,Nutrients!$EG$78)))))*AF$8))/2000","v":0.2187782368763905},{"$f":"(SUMPRODUCT(AG$9:AG$229,Nutrients!$EG$8:$EG$228)+(IF($A$7=Nutrients!$B$8,Nutrients!$EG$8,Nutrients!$EG$9)*AG$7)+(((IF($A$8=Nutrients!$B$79,Nutrients!$EG$79,(IF($A$8=Nutrients!$B$77,Nutrients!$EG$77,Nutrients!$EG$78)))))*AG$8))/2000","v":0.21008641833939604},{"$f":"(SUMPRODUCT(AH$9:AH$229,Nutrients!$EG$8:$EG$228)+(IF($A$7=Nutrients!$B$8,Nutrients!$EG$8,Nutrients!$EG$9)*AH$7)+(((IF($A$8=Nutrients!$B$79,Nutrients!$EG$79,(IF($A$8=Nutrients!$B$77,Nutrients!$EG$77,Nutrients!$EG$78)))))*AH$8))/2000","v":0.20245153388808254},{"$f":"(SUMPRODUCT(AI$9:AI$229,Nutrients!$EG$8:$EG$228)+(IF($A$7=Nutrients!$B$8,Nutrients!$EG$8,Nutrients!$EG$9)*AI$7)+(((IF($A$8=Nutrients!$B$79,Nutrients!$EG$79,(IF($A$8=Nutrients!$B$77,Nutrients!$EG$77,Nutrients!$EG$78)))))*AI$8))/2000","v":0.19817535081193255},null,{"$f":"(SUMPRODUCT(AK$9:AK$229,Nutrients!$EG$8:$EG$228)+(IF($A$7=Nutrients!$B$8,Nutrients!$EG$8,Nutrients!$EG$9)*AK$7)+(((IF($A$8=Nutrients!$B$79,Nutrients!$EG$79,(IF($A$8=Nutrients!$B$77,Nutrients!$EG$77,Nutrients!$EG$78)))))*AK$8))/2000","v":0.23235591659702598},{"$f":"(SUMPRODUCT(AL$9:AL$229,Nutrients!$EG$8:$EG$228)+(IF($A$7=Nutrients!$B$8,Nutrients!$EG$8,Nutrients!$EG$9)*AL$7)+(((IF($A$8=Nutrients!$B$79,Nutrients!$EG$79,(IF($A$8=Nutrients!$B$77,Nutrients!$EG$77,Nutrients!$EG$78)))))*AL$8))/2000","v":0.22208198724659889},{"$f":"(SUMPRODUCT(AM$9:AM$229,Nutrients!$EG$8:$EG$228)+(IF($A$7=Nutrients!$B$8,Nutrients!$EG$8,Nutrients!$EG$9)*AM$7)+(((IF($A$8=Nutrients!$B$79,Nutrients!$EG$79,(IF($A$8=Nutrients!$B$77,Nutrients!$EG$77,Nutrients!$EG$78)))))*AM$8))/2000","v":0.21369991418088108},{"$f":"(SUMPRODUCT(AN$9:AN$229,Nutrients!$EG$8:$EG$228)+(IF($A$7=Nutrients!$B$8,Nutrients!$EG$8,Nutrients!$EG$9)*AN$7)+(((IF($A$8=Nutrients!$B$79,Nutrients!$EG$79,(IF($A$8=Nutrients!$B$77,Nutrients!$EG$77,Nutrients!$EG$78)))))*AN$8))/2000","v":0.20494739026703729},{"$f":"(SUMPRODUCT(AO$9:AO$229,Nutrients!$EG$8:$EG$228)+(IF($A$7=Nutrients!$B$8,Nutrients!$EG$8,Nutrients!$EG$9)*AO$7)+(((IF($A$8=Nutrients!$B$79,Nutrients!$EG$79,(IF($A$8=Nutrients!$B$77,Nutrients!$EG$77,Nutrients!$EG$78)))))*AO$8))/2000","v":0.19727780678646512},{"$f":"(SUMPRODUCT(AP$9:AP$229,Nutrients!$EG$8:$EG$228)+(IF($A$7=Nutrients!$B$8,Nutrients!$EG$8,Nutrients!$EG$9)*AP$7)+(((IF($A$8=Nutrients!$B$79,Nutrients!$EG$79,(IF($A$8=Nutrients!$B$77,Nutrients!$EG$77,Nutrients!$EG$78)))))*AP$8))/2000","v":0.19303858950501945},null,{"$f":"(SUMPRODUCT(AR$9:AR$229,Nutrients!$EG$8:$EG$228)+(IF($A$7=Nutrients!$B$8,Nutrients!$EG$8,Nutrients!$EG$9)*AR$7)+(((IF($A$8=Nutrients!$B$79,Nutrients!$EG$79,(IF($A$8=Nutrients!$B$77,Nutrients!$EG$77,Nutrients!$EG$78)))))*AR$8))/2000","v":0.22752144142640685},{"$f":"(SUMPRODUCT(AS$9:AS$229,Nutrients!$EG$8:$EG$228)+(IF($A$7=Nutrients!$B$8,Nutrients!$EG$8,Nutrients!$EG$9)*AS$7)+(((IF($A$8=Nutrients!$B$79,Nutrients!$EG$79,(IF($A$8=Nutrients!$B$77,Nutrients!$EG$77,Nutrients!$EG$78)))))*AS$8))/2000","v":0.21690018019977322},{"$f":"(SUMPRODUCT(AT$9:AT$229,Nutrients!$EG$8:$EG$228)+(IF($A$7=Nutrients!$B$8,Nutrients!$EG$8,Nutrients!$EG$9)*AT$7)+(((IF($A$8=Nutrients!$B$79,Nutrients!$EG$79,(IF($A$8=Nutrients!$B$77,Nutrients!$EG$77,Nutrients!$EG$78)))))*AT$8))/2000","v":0.20863774697496257},{"$f":"(SUMPRODUCT(AU$9:AU$229,Nutrients!$EG$8:$EG$228)+(IF($A$7=Nutrients!$B$8,Nutrients!$EG$8,Nutrients!$EG$9)*AU$7)+(((IF($A$8=Nutrients!$B$79,Nutrients!$EG$79,(IF($A$8=Nutrients!$B$77,Nutrients!$EG$77,Nutrients!$EG$78)))))*AU$8))/2000","v":0.19972175482002971},{"$f":"(SUMPRODUCT(AV$9:AV$229,Nutrients!$EG$8:$EG$228)+(IF($A$7=Nutrients!$B$8,Nutrients!$EG$8,Nutrients!$EG$9)*AV$7)+(((IF($A$8=Nutrients!$B$79,Nutrients!$EG$79,(IF($A$8=Nutrients!$B$77,Nutrients!$EG$77,Nutrients!$EG$78)))))*AV$8))/2000","v":0.19210484565114425},{"$f":"(SUMPRODUCT(AW$9:AW$229,Nutrients!$EG$8:$EG$228)+(IF($A$7=Nutrients!$B$8,Nutrients!$EG$8,Nutrients!$EG$9)*AW$7)+(((IF($A$8=Nutrients!$B$79,Nutrients!$EG$79,(IF($A$8=Nutrients!$B$77,Nutrients!$EG$77,Nutrients!$EG$78)))))*AW$8))/2000","v":0.18790211735403292}]
["Total P - Avail P, %",{"$f":"B255-B256","v":0.30252335581907996},0.29036249419994237,0.2802277845068476,0.26990911671431012,0.26108614031234767,0.25612193787172505,null,{"$f":"I255-I256","v":0.31974354705426455},0.30775975371198583,0.29778412434763091,0.2875686553376216,0.27874336785466058,0.27382123452334328,null,{"$f":"P255-P256","v":0.3372026984736346},0.32532207362767895,0.31547224066687385,0.30519413876653445,0.29646831671703178,0.29158900640239616,null,{"$f":"W255-W256","v":0.35465669802584537},0.34288846283249264,0.33297474915918746,0.32285504596783499,0.31417219586538392,0.3092626509593881,null,{"$f":"AD255-AD256","v":0.37208931806943457},0.36027175187081384,0.35050931443442462,0.34048378838984339,0.33167581138309921,0.32674030390789094,null,{"$f":"AK255-AK256","v":0.3895661289572418},0.37771260322938244,0.36805375560381293,0.35795872470801882,0.34911116845785828,0.34421832446873085,null,{"$f":"AR255-AR256","v":0.40739254155929139},0.39513790777642049,0.38561677463114974,0.37533427216154747,0.36654741001960678,0.36169667918542381]
["Phytate P released, %",{"$f":"B257-B256","v":0.11261444047083269},0.11261444047083263,0.11261444047083269,0.11261444047083267,0.1126144404708327,0.11261444047083267,null,{"$f":"I257-I256","v":0.11261444047083266},0.11261444047083269,0.11261444047083269,0.1126144404708327,0.11261444047083267,0.11261444047083269,null,{"$f":"P257-P256","v":0.11261444047083266},0.11261444047083272,0.11261444047083269,0.11261444047083267,0.11261444047083269,0.11261444047083267,null,{"$f":"W257-W256","v":0.11261444047083263},0.11261444047083266,0.11261444047083269,0.11261444047083267,0.11261444047083269,0.11261444047083269,null,{"$f":"AD257-AD256","v":0.11261444047083266},0.11261444047083266,0.1126144404708327,0.11261444047083269,0.11261444047083269,0.11261444047083269,null,{"$f":"AK257-AK256","v":0.11261444047083266},0.11261444047083269,0.11261444047083269,0.11261444047083267,0.11261444047083269,0.11261444047083269,null,{"$f":"AR257-AR256","v":0.1126144404708327},0.1126144404708327,0.1126144404708327,0.11261444047083269,0.11261444047083269,0.11261444047083269]
["Percent of total phytate phos released, %",{"$f":"B312/B310","v":0.43591630544906723},0.45445868097335318,0.47118389344263151,0.4895068387006401,0.50633802425362018,0.51632255468270782,null,{"$f":"I312/I310","v":0.44515265630725942},0.4642126928871152,0.48139261299591063,0.50033581466763988,0.51793878153360717,0.52829935731803668,null,{"$f":"P312/P310","v":0.45440862078110356},0.47410837874698991,0.49180824372378329,0.51172286070737716,0.52993579385872236,0.54069064657127852,null,{"$f":"W312/W310","v":0.46406596889367063},0.4844276818875316,0.50304549318434821,0.52356506625557975,0.54254784107951859,0.5538985041094705,null,{"$f":"AD312/AD310","v":0.47417943187165001},0.49555170560798606,0.51474242629745548,0.53603865190801292,0.55625382682003888,0.5682565465858731,null,{"$f":"AK312/AK310","v":0.48466353738751344},0.50708498184405248,0.52697466399314008,0.54947974855450021,0.57084191225182945,0.58337786636129796,null,{"$f":"AR312/AR310","v":0.4949618803608824},0.51919938640489172,0.53976062387381385,0.56385665433547849,0.58621342990658665,0.59932502122183062]
["Phytase units, FTU/kg",{"$f":"((SUMPRODUCT(B$9:B$229,Nutrients!$EE$8:$EE$228)+(IF($A$7=Nutrients!$B$8,Nutrients!$EE$8,Nutrients!$EE$9)*B$7)+(((IF($A$8=Nutrients!$B$79,Nutrients!$EE$79,(IF($A$8=Nutrients!$B$77,Nutrients!$EE$77,Nutrients!$EE$78)))))*B$8))/2000)*2.2046","v":608.03970300000003},{"$f":"((SUMPRODUCT(C$9:C$229,Nutrients!$EE$8:$EE$228)+(IF($A$7=Nutrients!$B$8,Nutrients!$EE$8,Nutrients!$EE$9)*C$7)+(((IF($A$8=Nutrients!$B$79,Nutrients!$EE$79,(IF($A$8=Nutrients!$B$77,Nutrients!$EE$77,Nutrients!$EE$78)))))*C$8))/2000)*2.2046","v":608.03970300000003},{"$f":"((SUMPRODUCT(D$9:D$229,Nutrients!$EE$8:$EE$228)+(IF($A$7=Nutrients!$B$8,Nutrients!$EE$8,Nutrients!$EE$9)*D$7)+(((IF($A$8=Nutrients!$B$79,Nutrients!$EE$79,(IF($A$8=Nutrients!$B$77,Nutrients!$EE$77,Nutrients!$EE$78)))))*D$8))/2000)*2.2046","v":608.03970300000003},{"$f":"((SUMPRODUCT(E$9:E$229,Nutrients!$EE$8:$EE$228)+(IF($A$7=Nutrients!$B$8,Nutrients!$EE$8,Nutrients!$EE$9)*E$7)+(((IF($A$8=Nutrients!$B$79,Nutrients!$EE$79,(IF($A$8=Nutrients!$B$77,Nutrients!$EE$77,Nutrients!$EE$78)))))*E$8))/2000)*2.2046","v":608.03970300000003},{"$f":"((SUMPRODUCT(F$9:F$229,Nutrients!$EE$8:$EE$228)+(IF($A$7=Nutrients!$B$8,Nutrients!$EE$8,Nutrients!$EE$9)*F$7)+(((IF($A$8=Nutrients!$B$79,Nutrients!$EE$79,(IF($A$8=Nutrients!$B$77,Nutrients!$EE$77,Nutrients!$EE$78)))))*F$8))/2000)*2.2046","v":608.03970300000003},{"$f":"((SUMPRODUCT(G$9:G$229,Nutrients!$EE$8:$EE$228)+(IF($A$7=Nutrients!$B$8,Nutrients!$EE$8,Nutrients!$EE$9)*G$7)+(((IF($A$8=Nutrients!$B$79,Nutrients!$EE$79,(IF($A$8=Nutrients!$B$77,Nutrients!$EE$77,Nutrients!$EE$78)))))*G$8))/2000)*2.2046","v":608.03970300000003},null,{"$f":"((SUMPRODUCT(I$9:I$229,Nutrients!$EE$8:$EE$228)+(IF($A$7=Nutrients!$B$8,Nutrients!$EE$8,Nutrients!$EE$9)*I$7)+(((IF($A$8=Nutrients!$B$79,Nutrients!$EE$79,(IF($A$8=Nutrients!$B$77,Nutrients!$EE$77,Nutrients!$EE$78)))))*I$8))/2000)*2.2046","v":608.03970300000003},{"$f":"((SUMPRODUCT(J$9:J$229,Nutrients!$EE$8:$EE$228)+(IF($A$7=Nutrients!$B$8,Nutrients!$EE$8,Nutrients!$EE$9)*J$7)+(((IF($A$8=Nutrients!$B$79,Nutrients!$EE$79,(IF($A$8=Nutrients!$B$77,Nutrients!$EE$77,Nutrients!$EE$78)))))*J$8))/2000)*2.2046","v":608.03970300000003},{"$f":"((SUMPRODUCT(K$9:K$229,Nutrients!$EE$8:$EE$228)+(IF($A$7=Nutrients!$B$8,Nutrients!$EE$8,Nutrients!$EE$9)*K$7)+(((IF($A$8=Nutrients!$B$79,Nutrients!$EE$79,(IF($A$8=Nutrients!$B$77,Nutrients!$EE$77,Nutrients!$EE$78)))))*K$8))/2000)*2.2046","v":608.03970300000003},{"$f":"((SUMPRODUCT(L$9:L$229,Nutrients!$EE$8:$EE$228)+(IF($A$7=Nutrients!$B$8,Nutrients!$EE$8,Nutrients!$EE$9)*L$7)+(((IF($A$8=Nutrients!$B$79,Nutrients!$EE$79,(IF($A$8=Nutrients!$B$77,Nutrients!$EE$77,Nutrients!$EE$78)))))*L$8))/2000)*2.2046","v":608.03970300000003},{"$f":"((SUMPRODUCT(M$9:M$229,Nutrients!$EE$8:$EE$228)+(IF($A$7=Nutrients!$B$8,Nutrients!$EE$8,Nutrients!$EE$9)*M$7)+(((IF($A$8=Nutrients!$B$79,Nutrients!$EE$79,(IF($A$8=Nutrients!$B$77,Nutrients!$EE$77,Nutrients!$EE$78)))))*M$8))/2000)*2.2046","v":608.03970300000003},{"$f":"((SUMPRODUCT(N$9:N$229,Nutrients!$EE$8:$EE$228)+(IF($A$7=Nutrients!$B$8,Nutrients!$EE$8,Nutrients!$EE$9)*N$7)+(((IF($A$8=Nutrients!$B$79,Nutrients!$EE$79,(IF($A$8=Nutrients!$B$77,Nutrients!$EE$77,Nutrients!$EE$78)))))*N$8))/2000)*2.2046","v":608.03970300000003},null,{"$f":"((SUMPRODUCT(P$9:P$229,Nutrients!$EE$8:$EE$228)+(IF($A$7=Nutrients!$B$8,Nutrients!$EE$8,Nutrients!$EE$9)*P$7)+(((IF($A$8=Nutrients!$B$79,Nutrients!$EE$79,(IF($A$8=Nutrients!$B$77,Nutrients!$EE$77,Nutrients!$EE$78)))))*P$8))/2000)*2.2046","v":608.03970300000003},{"$f":"((SUMPRODUCT(Q$9:Q$229,Nutrients!$EE$8:$EE$228)+(IF($A$7=Nutrients!$B$8,Nutrients!$EE$8,Nutrients!$EE$9)*Q$7)+(((IF($A$8=Nutrients!$B$79,Nutrients!$EE$79,(IF($A$8=Nutrients!$B$77,Nutrients!$EE$77,Nutrients!$EE$78)))))*Q$8))/2000)*2.2046","v":608.03970300000003},{"$f":"((SUMPRODUCT(R$9:R$229,Nutrients!$EE$8:$EE$228)+(IF($A$7=Nutrients!$B$8,Nutrients!$EE$8,Nutrients!$EE$9)*R$7)+(((IF($A$8=Nutrients!$B$79,Nutrients!$EE$79,(IF($A$8=Nutrients!$B$77,Nutrients!$EE$77,Nutrients!$EE$78)))))*R$8))/2000)*2.2046","v":608.03970300000003},{"$f":"((SUMPRODUCT(S$9:S$229,Nutrients!$EE$8:$EE$228)+(IF($A$7=Nutrients!$B$8,Nutrients!$EE$8,Nutrients!$EE$9)*S$7)+(((IF($A$8=Nutrients!$B$79,Nutrients!$EE$79,(IF($A$8=Nutrients!$B$77,Nutrients!$EE$77,Nutrients!$EE$78)))))*S$8))/2000)*2.2046","v":608.03970300000003},{"$f":"((SUMPRODUCT(T$9:T$229,Nutrients!$EE$8:$EE$228)+(IF($A$7=Nutrients!$B$8,Nutrients!$EE$8,Nutrients!$EE$9)*T$7)+(((IF($A$8=Nutrients!$B$79,Nutrients!$EE$79,(IF($A$8=Nutrients!$B$77,Nutrients!$EE$77,Nutrients!$EE$78)))))*T$8))/2000)*2.2046","v":608.03970300000003},{"$f":"((SUMPRODUCT(U$9:U$229,Nutrients!$EE$8:$EE$228)+(IF($A$7=Nutrients!$B$8,Nutrients!$EE$8,Nutrients!$EE$9)*U$7)+(((IF($A$8=Nutrients!$B$79,Nutrients!$EE$79,(IF($A$8=Nutrients!$B$77,Nutrients!$EE$77,Nutrients!$EE$78)))))*U$8))/2000)*2.2046","v":608.03970300000003},null,{"$f":"((SUMPRODUCT(W$9:W$229,Nutrients!$EE$8:$EE$228)+(IF($A$7=Nutrients!$B$8,Nutrients!$EE$8,Nutrients!$EE$9)*W$7)+(((IF($A$8=Nutrients!$B$79,Nutrients!$EE$79,(IF($A$8=Nutrients!$B$77,Nutrients!$EE$77,Nutrients!$EE$78)))))*W$8))/2000)*2.2046","v":608.03970300000003},{"$f":"((SUMPRODUCT(X$9:X$229,Nutrients!$EE$8:$EE$228)+(IF($A$7=Nutrients!$B$8,Nutrients!$EE$8,Nutrients!$EE$9)*X$7)+(((IF($A$8=Nutrients!$B$79,Nutrients!$EE$79,(IF($A$8=Nutrients!$B$77,Nutrients!$EE$77,Nutrients!$EE$78)))))*X$8))/2000)*2.2046","v":608.03970300000003},{"$f":"((SUMPRODUCT(Y$9:Y$229,Nutrients!$EE$8:$EE$228)+(IF($A$7=Nutrients!$B$8,Nutrients!$EE$8,Nutrients!$EE$9)*Y$7)+(((IF($A$8=Nutrients!$B$79,Nutrients!$EE$79,(IF($A$8=Nutrients!$B$77,Nutrients!$EE$77,Nutrients!$EE$78)))))*Y$8))/2000)*2.2046","v":608.03970300000003},{"$f":"((SUMPRODUCT(Z$9:Z$229,Nutrients!$EE$8:$EE$228)+(IF($A$7=Nutrients!$B$8,Nutrients!$EE$8,Nutrients!$EE$9)*Z$7)+(((IF($A$8=Nutrients!$B$79,Nutrients!$EE$79,(IF($A$8=Nutrients!$B$77,Nutrients!$EE$77,Nutrients!$EE$78)))))*Z$8))/2000)*2.2046","v":608.03970300000003},{"$f":"((SUMPRODUCT(AA$9:AA$229,Nutrients!$EE$8:$EE$228)+(IF($A$7=Nutrients!$B$8,Nutrients!$EE$8,Nutrients!$EE$9)*AA$7)+(((IF($A$8=Nutrients!$B$79,Nutrients!$EE$79,(IF($A$8=Nutrients!$B$77,Nutrients!$EE$77,Nutrients!$EE$78)))))*AA$8))/2000)*2.2046","v":608.03970300000003},{"$f":"((SUMPRODUCT(AB$9:AB$229,Nutrients!$EE$8:$EE$228)+(IF($A$7=Nutrients!$B$8,Nutrients!$EE$8,Nutrients!$EE$9)*AB$7)+(((IF($A$8=Nutrients!$B$79,Nutrients!$EE$79,(IF($A$8=Nutrients!$B$77,Nutrients!$EE$77,Nutrients!$EE$78)))))*AB$8))/2000)*2.2046","v":608.03970300000003},null,{"$f":"((SUMPRODUCT(AD$9:AD$229,Nutrients!$EE$8:$EE$228)+(IF($A$7=Nutrients!$B$8,Nutrients!$EE$8,Nutrients!$EE$9)*AD$7)+(((IF($A$8=Nutrients!$B$79,Nutrients!$EE$79,(IF($A$8=Nutrients!$B$77,Nutrients!$EE$77,Nutrients!$EE$78)))))*AD$8))/2000)*2.2046","v":608.03970300000003},{"$f":"((SUMPRODUCT(AE$9:AE$229,Nutrients!$EE$8:$EE$228)+(IF($A$7=Nutrients!$B$8,Nutrients!$EE$8,Nutrients!$EE$9)*AE$7)+(((IF($A$8=Nutrients!$B$79,Nutrients!$EE$79,(IF($A$8=Nutrients!$B$77,Nutrients!$EE$77,Nutrients!$EE$78)))))*AE$8))/2000)*2.2046","v":608.03970300000003},{"$f":"((SUMPRODUCT(AF$9:AF$229,Nutrients!$EE$8:$EE$228)+(IF($A$7=Nutrients!$B$8,Nutrients!$EE$8,Nutrients!$EE$9)*AF$7)+(((IF($A$8=Nutrients!$B$79,Nutrients!$EE$79,(IF($A$8=Nutrients!$B$77,Nutrients!$EE$77,Nutrients!$EE$78)))))*AF$8))/2000)*2.2046","v":608.03970300000003},{"$f":"((SUMPRODUCT(AG$9:AG$229,Nutrients!$EE$8:$EE$228)+(IF($A$7=Nutrients!$B$8,Nutrients!$EE$8,Nutrients!$EE$9)*AG$7)+(((IF($A$8=Nutrients!$B$79,Nutrients!$EE$79,(IF($A$8=Nutrients!$B$77,Nutrients!$EE$77,Nutrients!$EE$78)))))*AG$8))/2000)*2.2046","v":608.03970300000003},{"$f":"((SUMPRODUCT(AH$9:AH$229,Nutrients!$EE$8:$EE$228)+(IF($A$7=Nutrients!$B$8,Nutrients!$EE$8,Nutrients!$EE$9)*AH$7)+(((IF($A$8=Nutrients!$B$79,Nutrients!$EE$79,(IF($A$8=Nutrients!$B$77,Nutrients!$EE$77,Nutrients!$EE$78)))))*AH$8))/2000)*2.2046","v":608.03970300000003},{"$f":"((SUMPRODUCT(AI$9:AI$229,Nutrients!$EE$8:$EE$228)+(IF($A$7=Nutrients!$B$8,Nutrients!$EE$8,Nutrients!$EE$9)*AI$7)+(((IF($A$8=Nutrients!$B$79,Nutrients!$EE$79,(IF($A$8=Nutrients!$B$77,Nutrients!$EE$77,Nutrients!$EE$78)))))*AI$8))/2000)*2.2046","v":608.03970300000003},null,{"$f":"((SUMPRODUCT(AK$9:AK$229,Nutrients!$EE$8:$EE$228)+(IF($A$7=Nutrients!$B$8,Nutrients!$EE$8,Nutrients!$EE$9)*AK$7)+(((IF($A$8=Nutrients!$B$79,Nutrients!$EE$79,(IF($A$8=Nutrients!$B$77,Nutrients!$EE$77,Nutrients!$EE$78)))))*AK$8))/2000)*2.2046","v":608.03970300000003},{"$f":"((SUMPRODUCT(AL$9:AL$229,Nutrients!$EE$8:$EE$228)+(IF($A$7=Nutrients!$B$8,Nutrients!$EE$8,Nutrients!$EE$9)*AL$7)+(((IF($A$8=Nutrients!$B$79,Nutrients!$EE$79,(IF($A$8=Nutrients!$B$77,Nutrients!$EE$77,Nutrients!$EE$78)))))*AL$8))/2000)*2.2046","v":608.03970300000003},{"$f":"((SUMPRODUCT(AM$9:AM$229,Nutrients!$EE$8:$EE$228)+(IF($A$7=Nutrients!$B$8,Nutrients!$EE$8,Nutrients!$EE$9)*AM$7)+(((IF($A$8=Nutrients!$B$79,Nutrients!$EE$79,(IF($A$8=Nutrients!$B$77,Nutrients!$EE$77,Nutrients!$EE$78)))))*AM$8))/2000)*2.2046","v":608.03970300000003},{"$f":"((SUMPRODUCT(AN$9:AN$229,Nutrients!$EE$8:$EE$228)+(IF($A$7=Nutrients!$B$8,Nutrients!$EE$8,Nutrients!$EE$9)*AN$7)+(((IF($A$8=Nutrients!$B$79,Nutrients!$EE$79,(IF($A$8=Nutrients!$B$77,Nutrients!$EE$77,Nutrients!$EE$78)))))*AN$8))/2000)*2.2046","v":608.03970300000003},{"$f":"((SUMPRODUCT(AO$9:AO$229,Nutrients!$EE$8:$EE$228)+(IF($A$7=Nutrients!$B$8,Nutrients!$EE$8,Nutrients!$EE$9)*AO$7)+(((IF($A$8=Nutrients!$B$79,Nutrients!$EE$79,(IF($A$8=Nutrients!$B$77,Nutrients!$EE$77,Nutrients!$EE$78)))))*AO$8))/2000)*2.2046","v":608.03970300000003},{"$f":"((SUMPRODUCT(AP$9:AP$229,Nutrients!$EE$8:$EE$228)+(IF($A$7=Nutrients!$B$8,Nutrients!$EE$8,Nutrients!$EE$9)*AP$7)+(((IF($A$8=Nutrients!$B$79,Nutrients!$EE$79,(IF($A$8=Nutrients!$B$77,Nutrients!$EE$77,Nutrients!$EE$78)))))*AP$8))/2000)*2.2046","v":608.03970300000003},null,{"$f":"((SUMPRODUCT(AR$9:AR$229,Nutrients!$EE$8:$EE$228)+(IF($A$7=Nutrients!$B$8,Nutrients!$EE$8,Nutrients!$EE$9)*AR$7)+(((IF($A$8=Nutrients!$B$79,Nutrients!$EE$79,(IF($A$8=Nutrients!$B$77,Nutrients!$EE$77,Nutrients!$EE$78)))))*AR$8))/2000)*2.2046","v":608.03970300000003},{"$f":"((SUMPRODUCT(AS$9:AS$229,Nutrients!$EE$8:$EE$228)+(IF($A$7=Nutrients!$B$8,Nutrients!$EE$8,Nutrients!$EE$9)*AS$7)+(((IF($A$8=Nutrients!$B$79,Nutrients!$EE$79,(IF($A$8=Nutrients!$B$77,Nutrients!$EE$77,Nutrients!$EE$78)))))*AS$8))/2000)*2.2046","v":608.03970300000003},{"$f":"((SUMPRODUCT(AT$9:AT$229,Nutrients!$EE$8:$EE$228)+(IF($A$7=Nutrients!$B$8,Nutrients!$EE$8,Nutrients!$EE$9)*AT$7)+(((IF($A$8=Nutrients!$B$79,Nutrients!$EE$79,(IF($A$8=Nutrients!$B$77,Nutrients!$EE$77,Nutrients!$EE$78)))))*AT$8))/2000)*2.2046","v":608.03970300000003},{"$f":"((SUMPRODUCT(AU$9:AU$229,Nutrients!$EE$8:$EE$228)+(IF($A$7=Nutrients!$B$8,Nutrients!$EE$8,Nutrients!$EE$9)*AU$7)+(((IF($A$8=Nutrients!$B$79,Nutrients!$EE$79,(IF($A$8=Nutrients!$B$77,Nutrients!$EE$77,Nutrients!$EE$78)))))*AU$8))/2000)*2.2046","v":608.03970300000003},{"$f":"((SUMPRODUCT(AV$9:AV$229,Nutrients!$EE$8:$EE$228)+(IF($A$7=Nutrients!$B$8,Nutrients!$EE$8,Nutrients!$EE$9)*AV$7)+(((IF($A$8=Nutrients!$B$79,Nutrients!$EE$79,(IF($A$8=Nutrients!$B$77,Nutrients!$EE$77,Nutrients!$EE$78)))))*AV$8))/2000)*2.2046","v":608.03970300000003},{"$f":"((SUMPRODUCT(AW$9:AW$229,Nutrients!$EE$8:$EE$228)+(IF($A$7=Nutrients!$B$8,Nutrients!$EE$8,Nutrients!$EE$9)*AW$7)+(((IF($A$8=Nutrients!$B$79,Nutrients!$EE$79,(IF($A$8=Nutrients!$B$77,Nutrients!$EE$77,Nutrients!$EE$78)))))*AW$8))/2000)*2.2046","v":608.03970300000003}]
["EFA, %",{"$f":"((SUMPRODUCT(B$9:B$229,Nutrients!$FK$8:$FK$228)+(IF($A$7=Nutrients!$B$8,Nutrients!$FK$8,Nutrients!$FK$9)*B$7)+(((IF($A$8=Nutrients!$B$79,Nutrients!$FK$79,(IF($A$8=Nutrients!$B$77,Nutrients!$FK$77,Nutrients!$FK$78)))))*B$8))/2000)","v":1.5519301991788417},{"$f":"((SUMPRODUCT(C$9:C$229,Nutrients!$FK$8:$FK$228)+(IF($A$7=Nutrients!$B$8,Nutrients!$FK$8,Nutrients!$FK$9)*C$7)+(((IF($A$8=Nutrients!$B$79,Nutrients!$FK$79,(IF($A$8=Nutrients!$B$77,Nutrients!$FK$77,Nutrients!$FK$78)))))*C$8))/2000)","v":1.595708614420986},{"$f":"((SUMPRODUCT(D$9:D$229,Nutrients!$FK$8:$FK$228)+(IF($A$7=Nutrients!$B$8,Nutrients!$FK$8,Nutrients!$FK$9)*D$7)+(((IF($A$8=Nutrients!$B$79,Nutrients!$FK$79,(IF($A$8=Nutrients!$B$77,Nutrients!$FK$77,Nutrients!$FK$78)))))*D$8))/2000)","v":1.633289438982505},{"$f":"((SUMPRODUCT(E$9:E$229,Nutrients!$FK$8:$FK$228)+(IF($A$7=Nutrients!$B$8,Nutrients!$FK$8,Nutrients!$FK$9)*E$7)+(((IF($A$8=Nutrients!$B$79,Nutrients!$FK$79,(IF($A$8=Nutrients!$B$77,Nutrients!$FK$77,Nutrients!$FK$78)))))*E$8))/2000)","v":1.6684624843927185},{"$f":"((SUMPRODUCT(F$9:F$229,Nutrients!$FK$8:$FK$228)+(IF($A$7=Nutrients!$B$8,Nutrients!$FK$8,Nutrients!$FK$9)*F$7)+(((IF($A$8=Nutrients!$B$79,Nutrients!$FK$79,(IF($A$8=Nutrients!$B$77,Nutrients!$FK$77,Nutrients!$FK$78)))))*F$8))/2000)","v":1.6972910046236616},{"$f":"((SUMPRODUCT(G$9:G$229,Nutrients!$FK$8:$FK$228)+(IF($A$7=Nutrients!$B$8,Nutrients!$FK$8,Nutrients!$FK$9)*G$7)+(((IF($A$8=Nutrients!$B$79,Nutrients!$FK$79,(IF($A$8=Nutrients!$B$77,Nutrients!$FK$77,Nutrients!$FK$78)))))*G$8))/2000)","v":1.7124024914223799},null,{"$f":"((SUMPRODUCT(I$9:I$229,Nutrients!$FK$8:$FK$228)+(IF($A$7=Nutrients!$B$8,Nutrients!$FK$8,Nutrients!$FK$9)*I$7)+(((IF($A$8=Nutrients!$B$79,Nutrients!$FK$79,(IF($A$8=Nutrients!$B$77,Nutrients!$FK$77,Nutrients!$FK$78)))))*I$8))/2000)","v":1.4760344244256087},{"$f":"((SUMPRODUCT(J$9:J$229,Nutrients!$FK$8:$FK$228)+(IF($A$7=Nutrients!$B$8,Nutrients!$FK$8,Nutrients!$FK$9)*J$7)+(((IF($A$8=Nutrients!$B$79,Nutrients!$FK$79,(IF($A$8=Nutrients!$B$77,Nutrients!$FK$77,Nutrients!$FK$78)))))*J$8))/2000)","v":1.5191214970156433},{"$f":"((SUMPRODUCT(K$9:K$229,Nutrients!$FK$8:$FK$228)+(IF($A$7=Nutrients!$B$8,Nutrients!$FK$8,Nutrients!$FK$9)*K$7)+(((IF($A$8=Nutrients!$B$79,Nutrients!$FK$79,(IF($A$8=Nutrients!$B$77,Nutrients!$FK$77,Nutrients!$FK$78)))))*K$8))/2000)","v":1.5562714494008456},{"$f":"((SUMPRODUCT(L$9:L$229,Nutrients!$FK$8:$FK$228)+(IF($A$7=Nutrients!$B$8,Nutrients!$FK$8,Nutrients!$FK$9)*L$7)+(((IF($A$8=Nutrients!$B$79,Nutrients!$FK$79,(IF($A$8=Nutrients!$B$77,Nutrients!$FK$77,Nutrients!$FK$78)))))*L$8))/2000)","v":1.5911288986500161},{"$f":"((SUMPRODUCT(M$9:M$229,Nutrients!$FK$8:$FK$228)+(IF($A$7=Nutrients!$B$8,Nutrients!$FK$8,Nutrients!$FK$9)*M$7)+(((IF($A$8=Nutrients!$B$79,Nutrients!$FK$79,(IF($A$8=Nutrients!$B$77,Nutrients!$FK$77,Nutrients!$FK$78)))))*M$8))/2000)","v":1.6200263975221858},{"$f":"((SUMPRODUCT(N$9:N$229,Nutrients!$FK$8:$FK$228)+(IF($A$7=Nutrients!$B$8,Nutrients!$FK$8,Nutrients!$FK$9)*N$7)+(((IF($A$8=Nutrients!$B$79,Nutrients!$FK$79,(IF($A$8=Nutrients!$B$77,Nutrients!$FK$77,Nutrients!$FK$78)))))*N$8))/2000)","v":1.634884267298782},null,{"$f":"((SUMPRODUCT(P$9:P$229,Nutrients!$FK$8:$FK$228)+(IF($A$7=Nutrients!$B$8,Nutrients!$FK$8,Nutrients!$FK$9)*P$7)+(((IF($A$8=Nutrients!$B$79,Nutrients!$FK$79,(IF($A$8=Nutrients!$B$77,Nutrients!$FK$77,Nutrients!$FK$78)))))*P$8))/2000)","v":1.399358212946674},{"$f":"((SUMPRODUCT(Q$9:Q$229,Nutrients!$FK$8:$FK$228)+(IF($A$7=Nutrients!$B$8,Nutrients!$FK$8,Nutrients!$FK$9)*Q$7)+(((IF($A$8=Nutrients!$B$79,Nutrients!$FK$79,(IF($A$8=Nutrients!$B$77,Nutrients!$FK$77,Nutrients!$FK$78)))))*Q$8))/2000)","v":1.4419894227552654},{"$f":"((SUMPRODUCT(R$9:R$229,Nutrients!$FK$8:$FK$228)+(IF($A$7=Nutrients!$B$8,Nutrients!$FK$8,Nutrients!$FK$9)*R$7)+(((IF($A$8=Nutrients!$B$79,Nutrients!$FK$79,(IF($A$8=Nutrients!$B$77,Nutrients!$FK$77,Nutrients!$FK$78)))))*R$8))/2000)","v":1.4788066153660113},{"$f":"((SUMPRODUCT(S$9:S$229,Nutrients!$FK$8:$FK$228)+(IF($A$7=Nutrients!$B$8,Nutrients!$FK$8,Nutrients!$FK$9)*S$7)+(((IF($A$8=Nutrients!$B$79,Nutrients!$FK$79,(IF($A$8=Nutrients!$B$77,Nutrients!$FK$77,Nutrients!$FK$78)))))*S$8))/2000)","v":1.5137805851345894},{"$f":"((SUMPRODUCT(T$9:T$229,Nutrients!$FK$8:$FK$228)+(IF($A$7=Nutrients!$B$8,Nutrients!$FK$8,Nutrients!$FK$9)*T$7)+(((IF($A$8=Nutrients!$B$79,Nutrients!$FK$79,(IF($A$8=Nutrients!$B$77,Nutrients!$FK$77,Nutrients!$FK$78)))))*T$8))/2000)","v":1.5423699636874932},{"$f":"((SUMPRODUCT(U$9:U$229,Nutrients!$FK$8:$FK$228)+(IF($A$7=Nutrients!$B$8,Nutrients!$FK$8,Nutrients!$FK$9)*U$7)+(((IF($A$8=Nutrients!$B$79,Nutrients!$FK$79,(IF($A$8=Nutrients!$B$77,Nutrients!$FK$77,Nutrients!$FK$78)))))*U$8))/2000)","v":1.5571286805506113},null,{"$f":"((SUMPRODUCT(W$9:W$229,Nutrients!$FK$8:$FK$228)+(IF($A$7=Nutrients!$B$8,Nutrients!$FK$8,Nutrients!$FK$9)*W$7)+(((IF($A$8=Nutrients!$B$79,Nutrients!$FK$79,(IF($A$8=Nutrients!$B$77,Nutrients!$FK$77,Nutrients!$FK$78)))))*W$8))/2000)","v":1.3226342204515136},{"$f":"((SUMPRODUCT(X$9:X$229,Nutrients!$FK$8:$FK$228)+(IF($A$7=Nutrients!$B$8,Nutrients!$FK$8,Nutrients!$FK$9)*X$7)+(((IF($A$8=Nutrients!$B$79,Nutrients!$FK$79,(IF($A$8=Nutrients!$B$77,Nutrients!$FK$77,Nutrients!$FK$78)))))*X$8))/2000)","v":1.3648916771986532},{"$f":"((SUMPRODUCT(Y$9:Y$229,Nutrients!$FK$8:$FK$228)+(IF($A$7=Nutrients!$B$8,Nutrients!$FK$8,Nutrients!$FK$9)*Y$7)+(((IF($A$8=Nutrients!$B$79,Nutrients!$FK$79,(IF($A$8=Nutrients!$B$77,Nutrients!$FK$77,Nutrients!$FK$78)))))*Y$8))/2000)","v":1.4017904273073654},{"$f":"((SUMPRODUCT(Z$9:Z$229,Nutrients!$FK$8:$FK$228)+(IF($A$7=Nutrients!$B$8,Nutrients!$FK$8,Nutrients!$FK$9)*Z$7)+(((IF($A$8=Nutrients!$B$79,Nutrients!$FK$79,(IF($A$8=Nutrients!$B$77,Nutrients!$FK$77,Nutrients!$FK$78)))))*Z$8))/2000)","v":1.4362012747590855},{"$f":"((SUMPRODUCT(AA$9:AA$229,Nutrients!$FK$8:$FK$228)+(IF($A$7=Nutrients!$B$8,Nutrients!$FK$8,Nutrients!$FK$9)*AA$7)+(((IF($A$8=Nutrients!$B$79,Nutrients!$FK$79,(IF($A$8=Nutrients!$B$77,Nutrients!$FK$77,Nutrients!$FK$78)))))*AA$8))/2000)","v":1.4643599346153693},{"$f":"((SUMPRODUCT(AB$9:AB$229,Nutrients!$FK$8:$FK$228)+(IF($A$7=Nutrients!$B$8,Nutrients!$FK$8,Nutrients!$FK$9)*AB$7)+(((IF($A$8=Nutrients!$B$79,Nutrients!$FK$79,(IF($A$8=Nutrients!$B$77,Nutrients!$FK$77,Nutrients!$FK$78)))))*AB$8))/2000)","v":1.4787027854659036},null,{"$f":"((SUMPRODUCT(AD$9:AD$229,Nutrients!$FK$8:$FK$228)+(IF($A$7=Nutrients!$B$8,Nutrients!$FK$8,Nutrients!$FK$9)*AD$7)+(((IF($A$8=Nutrients!$B$79,Nutrients!$FK$79,(IF($A$8=Nutrients!$B$77,Nutrients!$FK$77,Nutrients!$FK$78)))))*AD$8))/2000)","v":1.2458797161413699},{"$f":"((SUMPRODUCT(AE$9:AE$229,Nutrients!$FK$8:$FK$228)+(IF($A$7=Nutrients!$B$8,Nutrients!$FK$8,Nutrients!$FK$9)*AE$7)+(((IF($A$8=Nutrients!$B$79,Nutrients!$FK$79,(IF($A$8=Nutrients!$B$77,Nutrients!$FK$77,Nutrients!$FK$78)))))*AE$8))/2000)","v":1.2882286722072902},{"$f":"((SUMPRODUCT(AF$9:AF$229,Nutrients!$FK$8:$FK$228)+(IF($A$7=Nutrients!$B$8,Nutrients!$FK$8,Nutrients!$FK$9)*AF$7)+(((IF($A$8=Nutrients!$B$79,Nutrients!$FK$79,(IF($A$8=Nutrients!$B$77,Nutrients!$FK$77,Nutrients!$FK$78)))))*AF$8))/2000)","v":1.3245530466189905},{"$f":"((SUMPRODUCT(AG$9:AG$229,Nutrients!$FK$8:$FK$228)+(IF($A$7=Nutrients!$B$8,Nutrients!$FK$8,Nutrients!$FK$9)*AG$7)+(((IF($A$8=Nutrients!$B$79,Nutrients!$FK$79,(IF($A$8=Nutrients!$B$77,Nutrients!$FK$77,Nutrients!$FK$78)))))*AG$8))/2000)","v":1.3583465143292797},{"$f":"((SUMPRODUCT(AH$9:AH$229,Nutrients!$FK$8:$FK$228)+(IF($A$7=Nutrients!$B$8,Nutrients!$FK$8,Nutrients!$FK$9)*AH$7)+(((IF($A$8=Nutrients!$B$79,Nutrients!$FK$79,(IF($A$8=Nutrients!$B$77,Nutrients!$FK$77,Nutrients!$FK$78)))))*AH$8))/2000)","v":1.3852296303900873},{"$f":"((SUMPRODUCT(AI$9:AI$229,Nutrients!$FK$8:$FK$228)+(IF($A$7=Nutrients!$B$8,Nutrients!$FK$8,Nutrients!$FK$9)*AI$7)+(((IF($A$8=Nutrients!$B$79,Nutrients!$FK$79,(IF($A$8=Nutrients!$B$77,Nutrients!$FK$77,Nutrients!$FK$78)))))*AI$8))/2000)","v":1.399061302834532},null,{"$f":"((SUMPRODUCT(AK$9:AK$229,Nutrients!$FK$8:$FK$228)+(IF($A$7=Nutrients!$B$8,Nutrients!$FK$8,Nutrients!$FK$9)*AK$7)+(((IF($A$8=Nutrients!$B$79,Nutrients!$FK$79,(IF($A$8=Nutrients!$B$77,Nutrients!$FK$77,Nutrients!$FK$78)))))*AK$8))/2000)","v":1.1689719050305982},{"$f":"((SUMPRODUCT(AL$9:AL$229,Nutrients!$FK$8:$FK$228)+(IF($A$7=Nutrients!$B$8,Nutrients!$FK$8,Nutrients!$FK$9)*AL$7)+(((IF($A$8=Nutrients!$B$79,Nutrients!$FK$79,(IF($A$8=Nutrients!$B$77,Nutrients!$FK$77,Nutrients!$FK$78)))))*AL$8))/2000)","v":1.2114861644076045},{"$f":"((SUMPRODUCT(AM$9:AM$229,Nutrients!$FK$8:$FK$228)+(IF($A$7=Nutrients!$B$8,Nutrients!$FK$8,Nutrients!$FK$9)*AM$7)+(((IF($A$8=Nutrients!$B$79,Nutrients!$FK$79,(IF($A$8=Nutrients!$B$77,Nutrients!$FK$77,Nutrients!$FK$78)))))*AM$8))/2000)","v":1.2471549314539421},{"$f":"((SUMPRODUCT(AN$9:AN$229,Nutrients!$FK$8:$FK$228)+(IF($A$7=Nutrients!$B$8,Nutrients!$FK$8,Nutrients!$FK$9)*AN$7)+(((IF($A$8=Nutrients!$B$79,Nutrients!$FK$79,(IF($A$8=Nutrients!$B$77,Nutrients!$FK$77,Nutrients!$FK$78)))))*AN$8))/2000)","v":1.2796438867284037},{"$f":"((SUMPRODUCT(AO$9:AO$229,Nutrients!$FK$8:$FK$228)+(IF($A$7=Nutrients!$B$8,Nutrients!$FK$8,Nutrients!$FK$9)*AO$7)+(((IF($A$8=Nutrients!$B$79,Nutrients!$FK$79,(IF($A$8=Nutrients!$B$77,Nutrients!$FK$77,Nutrients!$FK$78)))))*AO$8))/2000)","v":1.3057202569531909},{"$f":"((SUMPRODUCT(AP$9:AP$229,Nutrients!$FK$8:$FK$228)+(IF($A$7=Nutrients!$B$8,Nutrients!$FK$8,Nutrients!$FK$9)*AP$7)+(((IF($A$8=Nutrients!$B$79,Nutrients!$FK$79,(IF($A$8=Nutrients!$B$77,Nutrients!$FK$77,Nutrients!$FK$78)))))*AP$8))/2000)","v":1.3194310976241668},null,{"$f":"((SUMPRODUCT(AR$9:AR$229,Nutrients!$FK$8:$FK$228)+(IF($A$7=Nutrients!$B$8,Nutrients!$FK$8,Nutrients!$FK$9)*AR$7)+(((IF($A$8=Nutrients!$B$79,Nutrients!$FK$79,(IF($A$8=Nutrients!$B$77,Nutrients!$FK$77,Nutrients!$FK$78)))))*AR$8))/2000)","v":1.0911186030889439},{"$f":"((SUMPRODUCT(AS$9:AS$229,Nutrients!$FK$8:$FK$228)+(IF($A$7=Nutrients!$B$8,Nutrients!$FK$8,Nutrients!$FK$9)*AS$7)+(((IF($A$8=Nutrients!$B$79,Nutrients!$FK$79,(IF($A$8=Nutrients!$B$77,Nutrients!$FK$77,Nutrients!$FK$78)))))*AS$8))/2000)","v":1.1345800315832464},{"$f":"((SUMPRODUCT(AT$9:AT$229,Nutrients!$FK$8:$FK$228)+(IF($A$7=Nutrients!$B$8,Nutrients!$FK$8,Nutrients!$FK$9)*AT$7)+(((IF($A$8=Nutrients!$B$79,Nutrients!$FK$79,(IF($A$8=Nutrients!$B$77,Nutrients!$FK$77,Nutrients!$FK$78)))))*AT$8))/2000)","v":1.1695051380800432},{"$f":"((SUMPRODUCT(AU$9:AU$229,Nutrients!$FK$8:$FK$228)+(IF($A$7=Nutrients!$B$8,Nutrients!$FK$8,Nutrients!$FK$9)*AU$7)+(((IF($A$8=Nutrients!$B$79,Nutrients!$FK$79,(IF($A$8=Nutrients!$B$77,Nutrients!$FK$77,Nutrients!$FK$78)))))*AU$8))/2000)","v":1.20028847342177},{"$f":"((SUMPRODUCT(AV$9:AV$229,Nutrients!$FK$8:$FK$228)+(IF($A$7=Nutrients!$B$8,Nutrients!$FK$8,Nutrients!$FK$9)*AV$7)+(((IF($A$8=Nutrients!$B$79,Nutrients!$FK$79,(IF($A$8=Nutrients!$B$77,Nutrients!$FK$77,Nutrients!$FK$78)))))*AV$8))/2000)","v":1.226208307305805},{"$f":"((SUMPRODUCT(AW$9:AW$229,Nutrients!$FK$8:$FK$228)+(IF($A$7=Nutrients!$B$8,Nutrients!$FK$8,Nutrients!$FK$9)*AW$7)+(((IF($A$8=Nutrients!$B$79,Nutrients!$FK$79,(IF($A$8=Nutrients!$B$77,Nutrients!$FK$77,Nutrients!$FK$78)))))*AW$8))/2000)","v":1.2397998791948934}]
["NDF, %",{"$f":"(SUMPRODUCT(B$9:B$229,Nutrients!$U$8:$U$228)+(IF($A$7=Nutrients!$B$8,Nutrients!$U$8,Nutrients!$U$9)*B$7)+(((IF($A$8=Nutrients!$B$79,Nutrients!$U$79,(IF($A$8=Nutrients!$B$77,Nutrients!$U$77,Nutrients!$U$78)))))*B$8))/2000","v":8.5699292218715204},{"$f":"(SUMPRODUCT(C$9:C$229,Nutrients!$U$8:$U$228)+(IF($A$7=Nutrients!$B$8,Nutrients!$U$8,Nutrients!$U$9)*C$7)+(((IF($A$8=Nutrients!$B$79,Nutrients!$U$79,(IF($A$8=Nutrients!$B$77,Nutrients!$U$77,Nutrients!$U$78)))))*C$8))/2000","v":8.6418600707376481},{"$f":"(SUMPRODUCT(D$9:D$229,Nutrients!$U$8:$U$228)+(IF($A$7=Nutrients!$B$8,Nutrients!$U$8,Nutrients!$U$9)*D$7)+(((IF($A$8=Nutrients!$B$79,Nutrients!$U$79,(IF($A$8=Nutrients!$B$77,Nutrients!$U$77,Nutrients!$U$78)))))*D$8))/2000","v":8.7060121920111886},{"$f":"(SUMPRODUCT(E$9:E$229,Nutrients!$U$8:$U$228)+(IF($A$7=Nutrients!$B$8,Nutrients!$U$8,Nutrients!$U$9)*E$7)+(((IF($A$8=Nutrients!$B$79,Nutrients!$U$79,(IF($A$8=Nutrients!$B$77,Nutrients!$U$77,Nutrients!$U$78)))))*E$8))/2000","v":8.7592542727281515},{"$f":"(SUMPRODUCT(F$9:F$229,Nutrients!$U$8:$U$228)+(IF($A$7=Nutrients!$B$8,Nutrients!$U$8,Nutrients!$U$9)*F$7)+(((IF($A$8=Nutrients!$B$79,Nutrients!$U$79,(IF($A$8=Nutrients!$B$77,Nutrients!$U$77,Nutrients!$U$78)))))*F$8))/2000","v":8.7998937942372635},{"$f":"(SUMPRODUCT(G$9:G$229,Nutrients!$U$8:$U$228)+(IF($A$7=Nutrients!$B$8,Nutrients!$U$8,Nutrients!$U$9)*G$7)+(((IF($A$8=Nutrients!$B$79,Nutrients!$U$79,(IF($A$8=Nutrients!$B$77,Nutrients!$U$77,Nutrients!$U$78)))))*G$8))/2000","v":8.8184122421246407},null,{"$f":"(SUMPRODUCT(I$9:I$229,Nutrients!$U$8:$U$228)+(IF($A$7=Nutrients!$B$8,Nutrients!$U$8,Nutrients!$U$9)*I$7)+(((IF($A$8=Nutrients!$B$79,Nutrients!$U$79,(IF($A$8=Nutrients!$B$77,Nutrients!$U$77,Nutrients!$U$78)))))*I$8))/2000","v":9.7758803148391742},{"$f":"(SUMPRODUCT(J$9:J$229,Nutrients!$U$8:$U$228)+(IF($A$7=Nutrients!$B$8,Nutrients!$U$8,Nutrients!$U$9)*J$7)+(((IF($A$8=Nutrients!$B$79,Nutrients!$U$79,(IF($A$8=Nutrients!$B$77,Nutrients!$U$77,Nutrients!$U$78)))))*J$8))/2000","v":9.8465516265845316},{"$f":"(SUMPRODUCT(K$9:K$229,Nutrients!$U$8:$U$228)+(IF($A$7=Nutrients!$B$8,Nutrients!$U$8,Nutrients!$U$9)*K$7)+(((IF($A$8=Nutrients!$B$79,Nutrients!$U$79,(IF($A$8=Nutrients!$B$77,Nutrients!$U$77,Nutrients!$U$78)))))*K$8))/2000","v":9.9103248579405285},{"$f":"(SUMPRODUCT(L$9:L$229,Nutrients!$U$8:$U$228)+(IF($A$7=Nutrients!$B$8,Nutrients!$U$8,Nutrients!$U$9)*L$7)+(((IF($A$8=Nutrients!$B$79,Nutrients!$U$79,(IF($A$8=Nutrients!$B$77,Nutrients!$U$77,Nutrients!$U$78)))))*L$8))/2000","v":9.9631746054439638},{"$f":"(SUMPRODUCT(M$9:M$229,Nutrients!$U$8:$U$228)+(IF($A$7=Nutrients!$B$8,Nutrients!$U$8,Nutrients!$U$9)*M$7)+(((IF($A$8=Nutrients!$B$79,Nutrients!$U$79,(IF($A$8=Nutrients!$B$77,Nutrients!$U$77,Nutrients!$U$78)))))*M$8))/2000","v":10.00406377730083},{"$f":"(SUMPRODUCT(N$9:N$229,Nutrients!$U$8:$U$228)+(IF($A$7=Nutrients!$B$8,Nutrients!$U$8,Nutrients!$U$9)*N$7)+(((IF($A$8=Nutrients!$B$79,Nutrients!$U$79,(IF($A$8=Nutrients!$B$77,Nutrients!$U$77,Nutrients!$U$78)))))*N$8))/2000","v":10.021935209551948},null,{"$f":"(SUMPRODUCT(P$9:P$229,Nutrients!$U$8:$U$228)+(IF($A$7=Nutrients!$B$8,Nutrients!$U$8,Nutrients!$U$9)*P$7)+(((IF($A$8=Nutrients!$B$79,Nutrients!$U$79,(IF($A$8=Nutrients!$B$77,Nutrients!$U$77,Nutrients!$U$78)))))*P$8))/2000","v":10.980733042813222},{"$f":"(SUMPRODUCT(Q$9:Q$229,Nutrients!$U$8:$U$228)+(IF($A$7=Nutrients!$B$8,Nutrients!$U$8,Nutrients!$U$9)*Q$7)+(((IF($A$8=Nutrients!$B$79,Nutrients!$U$79,(IF($A$8=Nutrients!$B$77,Nutrients!$U$77,Nutrients!$U$78)))))*Q$8))/2000","v":11.050462995024263},{"$f":"(SUMPRODUCT(R$9:R$229,Nutrients!$U$8:$U$228)+(IF($A$7=Nutrients!$B$8,Nutrients!$U$8,Nutrients!$U$9)*R$7)+(((IF($A$8=Nutrients!$B$79,Nutrients!$U$79,(IF($A$8=Nutrients!$B$77,Nutrients!$U$77,Nutrients!$U$78)))))*R$8))/2000","v":11.113965652643751},{"$f":"(SUMPRODUCT(S$9:S$229,Nutrients!$U$8:$U$228)+(IF($A$7=Nutrients!$B$8,Nutrients!$U$8,Nutrients!$U$9)*S$7)+(((IF($A$8=Nutrients!$B$79,Nutrients!$U$79,(IF($A$8=Nutrients!$B$77,Nutrients!$U$77,Nutrients!$U$78)))))*S$8))/2000","v":11.166757920659718},{"$f":"(SUMPRODUCT(T$9:T$229,Nutrients!$U$8:$U$228)+(IF($A$7=Nutrients!$B$8,Nutrients!$U$8,Nutrients!$U$9)*T$7)+(((IF($A$8=Nutrients!$B$79,Nutrients!$U$79,(IF($A$8=Nutrients!$B$77,Nutrients!$U$77,Nutrients!$U$78)))))*T$8))/2000","v":11.207255663369779},{"$f":"(SUMPRODUCT(U$9:U$229,Nutrients!$U$8:$U$228)+(IF($A$7=Nutrients!$B$8,Nutrients!$U$8,Nutrients!$U$9)*U$7)+(((IF($A$8=Nutrients!$B$79,Nutrients!$U$79,(IF($A$8=Nutrients!$B$77,Nutrients!$U$77,Nutrients!$U$78)))))*U$8))/2000","v":11.225089970453132},null,{"$f":"(SUMPRODUCT(W$9:W$229,Nutrients!$U$8:$U$228)+(IF($A$7=Nutrients!$B$8,Nutrients!$U$8,Nutrients!$U$9)*W$7)+(((IF($A$8=Nutrients!$B$79,Nutrients!$U$79,(IF($A$8=Nutrients!$B$77,Nutrients!$U$77,Nutrients!$U$78)))))*W$8))/2000","v":12.185356360200929},{"$f":"(SUMPRODUCT(X$9:X$229,Nutrients!$U$8:$U$228)+(IF($A$7=Nutrients!$B$8,Nutrients!$U$8,Nutrients!$U$9)*X$7)+(((IF($A$8=Nutrients!$B$79,Nutrients!$U$79,(IF($A$8=Nutrients!$B$77,Nutrients!$U$77,Nutrients!$U$78)))))*X$8))/2000","v":12.254543632340727},{"$f":"(SUMPRODUCT(Y$9:Y$229,Nutrients!$U$8:$U$228)+(IF($A$7=Nutrients!$B$8,Nutrients!$U$8,Nutrients!$U$9)*Y$7)+(((IF($A$8=Nutrients!$B$79,Nutrients!$U$79,(IF($A$8=Nutrients!$B$77,Nutrients!$U$77,Nutrients!$U$78)))))*Y$8))/2000","v":12.317841435614078},{"$f":"(SUMPRODUCT(Z$9:Z$229,Nutrients!$U$8:$U$228)+(IF($A$7=Nutrients!$B$8,Nutrients!$U$8,Nutrients!$U$9)*Z$7)+(((IF($A$8=Nutrients!$B$79,Nutrients!$U$79,(IF($A$8=Nutrients!$B$77,Nutrients!$U$77,Nutrients!$U$78)))))*Z$8))/2000","v":12.369726240015426},{"$f":"(SUMPRODUCT(AA$9:AA$229,Nutrients!$U$8:$U$228)+(IF($A$7=Nutrients!$B$8,Nutrients!$U$8,Nutrients!$U$9)*AA$7)+(((IF($A$8=Nutrients!$B$79,Nutrients!$U$79,(IF($A$8=Nutrients!$B$77,Nutrients!$U$77,Nutrients!$U$78)))))*AA$8))/2000","v":12.408887678555427},{"$f":"(SUMPRODUCT(AB$9:AB$229,Nutrients!$U$8:$U$228)+(IF($A$7=Nutrients!$B$8,Nutrients!$U$8,Nutrients!$U$9)*AB$7)+(((IF($A$8=Nutrients!$B$79,Nutrients!$U$79,(IF($A$8=Nutrients!$B$77,Nutrients!$U$77,Nutrients!$U$78)))))*AB$8))/2000","v":12.424831914256155},null,{"$f":"(SUMPRODUCT(AD$9:AD$229,Nutrients!$U$8:$U$228)+(IF($A$7=Nutrients!$B$8,Nutrients!$U$8,Nutrients!$U$9)*AD$7)+(((IF($A$8=Nutrients!$B$79,Nutrients!$U$79,(IF($A$8=Nutrients!$B$77,Nutrients!$U$77,Nutrients!$U$78)))))*AD$8))/2000","v":13.389684396498479},{"$f":"(SUMPRODUCT(AE$9:AE$229,Nutrients!$U$8:$U$228)+(IF($A$7=Nutrients!$B$8,Nutrients!$U$8,Nutrients!$U$9)*AE$7)+(((IF($A$8=Nutrients!$B$79,Nutrients!$U$79,(IF($A$8=Nutrients!$B$77,Nutrients!$U$77,Nutrients!$U$78)))))*AE$8))/2000","v":13.458825319044692},{"$f":"(SUMPRODUCT(AF$9:AF$229,Nutrients!$U$8:$U$228)+(IF($A$7=Nutrients!$B$8,Nutrients!$U$8,Nutrients!$U$9)*AF$7)+(((IF($A$8=Nutrients!$B$79,Nutrients!$U$79,(IF($A$8=Nutrients!$B$77,Nutrients!$U$77,Nutrients!$U$78)))))*AF$8))/2000","v":13.521113018134308},{"$f":"(SUMPRODUCT(AG$9:AG$229,Nutrients!$U$8:$U$228)+(IF($A$7=Nutrients!$B$8,Nutrients!$U$8,Nutrients!$U$9)*AG$7)+(((IF($A$8=Nutrients!$B$79,Nutrients!$U$79,(IF($A$8=Nutrients!$B$77,Nutrients!$U$77,Nutrients!$U$78)))))*AG$8))/2000","v":13.57134779375134},{"$f":"(SUMPRODUCT(AH$9:AH$229,Nutrients!$U$8:$U$228)+(IF($A$7=Nutrients!$B$8,Nutrients!$U$8,Nutrients!$U$9)*AH$7)+(((IF($A$8=Nutrients!$B$79,Nutrients!$U$79,(IF($A$8=Nutrients!$B$77,Nutrients!$U$77,Nutrients!$U$78)))))*AH$8))/2000","v":13.604447749988939},{"$f":"(SUMPRODUCT(AI$9:AI$229,Nutrients!$U$8:$U$228)+(IF($A$7=Nutrients!$B$8,Nutrients!$U$8,Nutrients!$U$9)*AI$7)+(((IF($A$8=Nutrients!$B$79,Nutrients!$U$79,(IF($A$8=Nutrients!$B$77,Nutrients!$U$77,Nutrients!$U$78)))))*AI$8))/2000","v":13.61816373490487},null,{"$f":"(SUMPRODUCT(AK$9:AK$229,Nutrients!$U$8:$U$228)+(IF($A$7=Nutrients!$B$8,Nutrients!$U$8,Nutrients!$U$9)*AK$7)+(((IF($A$8=Nutrients!$B$79,Nutrients!$U$79,(IF($A$8=Nutrients!$B$77,Nutrients!$U$77,Nutrients!$U$78)))))*AK$8))/2000","v":14.593774151350882},{"$f":"(SUMPRODUCT(AL$9:AL$229,Nutrients!$U$8:$U$228)+(IF($A$7=Nutrients!$B$8,Nutrients!$U$8,Nutrients!$U$9)*AL$7)+(((IF($A$8=Nutrients!$B$79,Nutrients!$U$79,(IF($A$8=Nutrients!$B$77,Nutrients!$U$77,Nutrients!$U$78)))))*AL$8))/2000","v":14.663268018628695},{"$f":"(SUMPRODUCT(AM$9:AM$229,Nutrients!$U$8:$U$228)+(IF($A$7=Nutrients!$B$8,Nutrients!$U$8,Nutrients!$U$9)*AM$7)+(((IF($A$8=Nutrients!$B$79,Nutrients!$U$79,(IF($A$8=Nutrients!$B$77,Nutrients!$U$77,Nutrients!$U$78)))))*AM$8))/2000","v":14.7238353210697},{"$f":"(SUMPRODUCT(AN$9:AN$229,Nutrients!$U$8:$U$228)+(IF($A$7=Nutrients!$B$8,Nutrients!$U$8,Nutrients!$U$9)*AN$7)+(((IF($A$8=Nutrients!$B$79,Nutrients!$U$79,(IF($A$8=Nutrients!$B$77,Nutrients!$U$77,Nutrients!$U$78)))))*AN$8))/2000","v":14.768356661511596},{"$f":"(SUMPRODUCT(AO$9:AO$229,Nutrients!$U$8:$U$228)+(IF($A$7=Nutrients!$B$8,Nutrients!$U$8,Nutrients!$U$9)*AO$7)+(((IF($A$8=Nutrients!$B$79,Nutrients!$U$79,(IF($A$8=Nutrients!$B$77,Nutrients!$U$77,Nutrients!$U$78)))))*AO$8))/2000","v":14.797950353528863},{"$f":"(SUMPRODUCT(AP$9:AP$229,Nutrients!$U$8:$U$228)+(IF($A$7=Nutrients!$B$8,Nutrients!$U$8,Nutrients!$U$9)*AP$7)+(((IF($A$8=Nutrients!$B$79,Nutrients!$U$79,(IF($A$8=Nutrients!$B$77,Nutrients!$U$77,Nutrients!$U$78)))))*AP$8))/2000","v":14.81154279850807},null,{"$f":"(SUMPRODUCT(AR$9:AR$229,Nutrients!$U$8:$U$228)+(IF($A$7=Nutrients!$B$8,Nutrients!$U$8,Nutrients!$U$9)*AR$7)+(((IF($A$8=Nutrients!$B$79,Nutrients!$U$79,(IF($A$8=Nutrients!$B$77,Nutrients!$U$77,Nutrients!$U$78)))))*AR$8))/2000","v":15.79702735420287},{"$f":"(SUMPRODUCT(AS$9:AS$229,Nutrients!$U$8:$U$228)+(IF($A$7=Nutrients!$B$8,Nutrients!$U$8,Nutrients!$U$9)*AS$7)+(((IF($A$8=Nutrients!$B$79,Nutrients!$U$79,(IF($A$8=Nutrients!$B$77,Nutrients!$U$77,Nutrients!$U$78)))))*AS$8))/2000","v":15.866941276993494},{"$f":"(SUMPRODUCT(AT$9:AT$229,Nutrients!$U$8:$U$228)+(IF($A$7=Nutrients!$B$8,Nutrients!$U$8,Nutrients!$U$9)*AT$7)+(((IF($A$8=Nutrients!$B$79,Nutrients!$U$79,(IF($A$8=Nutrients!$B$77,Nutrients!$U$77,Nutrients!$U$78)))))*AT$8))/2000","v":15.925720783253233},{"$f":"(SUMPRODUCT(AU$9:AU$229,Nutrients!$U$8:$U$228)+(IF($A$7=Nutrients!$B$8,Nutrients!$U$8,Nutrients!$U$9)*AU$7)+(((IF($A$8=Nutrients!$B$79,Nutrients!$U$79,(IF($A$8=Nutrients!$B$77,Nutrients!$U$77,Nutrients!$U$78)))))*AU$8))/2000","v":15.961970881073496},{"$f":"(SUMPRODUCT(AV$9:AV$229,Nutrients!$U$8:$U$228)+(IF($A$7=Nutrients!$B$8,Nutrients!$U$8,Nutrients!$U$9)*AV$7)+(((IF($A$8=Nutrients!$B$79,Nutrients!$U$79,(IF($A$8=Nutrients!$B$77,Nutrients!$U$77,Nutrients!$U$78)))))*AV$8))/2000","v":15.991450111960036},{"$f":"(SUMPRODUCT(AW$9:AW$229,Nutrients!$U$8:$U$228)+(IF($A$7=Nutrients!$B$8,Nutrients!$U$8,Nutrients!$U$9)*AW$7)+(((IF($A$8=Nutrients!$B$79,Nutrients!$U$79,(IF($A$8=Nutrients!$B$77,Nutrients!$U$77,Nutrients!$U$78)))))*AW$8))/2000","v":16.004920627904681}]
["SID Lys:CP ratio",{"$f":"B236/B253*100","v":6.1785853391259096},5.9864354833614239,5.7595132677868364,5.6037683275620731,5.5537986803701944,5.52175985110991,null,{"$f":"I236/I253*100","v":6.0439016493390048},5.8420803911481061,5.605335311772957,5.4405545839128377,5.3796023106898971,5.3389123363934567,null,{"$f":"P236/P253*100","v":5.9127458106201107},5.7013734026617886,5.4580366643530507,5.2830027473563659,5.2118178311893315,5.1653743846333624,null,{"$f":"W236/W253*100","v":5.7849621287241995},5.5657287880140025,5.3147206859021301,5.1312210182423392,5.048535432215064,4.9967491855053492,null,{"$f":"AD236/AD253*100","v":5.6602063231134485},5.4331367695898285,5.1757878824371488,4.9835141907946516,4.8931944699487442,4.8367993004670655,null,{"$f":"AK236/AK253*100","v":5.5391118493769254},5.3055885129326086,5.0412799420943868,4.8424321394054859,4.7449704840407652,4.6843671769652344,null,{"$f":"AR236/AR253*100","v":5.4233502423310584},5.1805199555219588,4.9109928286313362,4.7072293680635768,4.6030984155535872,4.538820860645699]
["Trace minerals (added levels)"]
["  Zinc added, ppm",{"$f":"(SUMPRODUCT(B$9:B$229,Nutrients!$EK$8:$EK$228)+(IF($A$7=Nutrients!$B$8,Nutrients!$EK$8,Nutrients!$EK$9)*B$7)+(((IF($A$8=Nutrients!$B$79,Nutrients!$EK$79,(IF($A$8=Nutrients!$B$77,Nutrients!$EK$77,Nutrients!$EK$78)))))*B$8))/2000*1000000","v":110.11950000000002},{"$f":"(SUMPRODUCT(C$9:C$229,Nutrients!$EK$8:$EK$228)+(IF($A$7=Nutrients!$B$8,Nutrients!$EK$8,Nutrients!$EK$9)*C$7)+(((IF($A$8=Nutrients!$B$79,Nutrients!$EK$79,(IF($A$8=Nutrients!$B$77,Nutrients!$EK$77,Nutrients!$EK$78)))))*C$8))/2000*1000000","v":110.11950000000002},{"$f":"(SUMPRODUCT(D$9:D$229,Nutrients!$EK$8:$EK$228)+(IF($A$7=Nutrients!$B$8,Nutrients!$EK$8,Nutrients!$EK$9)*D$7)+(((IF($A$8=Nutrients!$B$79,Nutrients!$EK$79,(IF($A$8=Nutrients!$B$77,Nutrients!$EK$77,Nutrients!$EK$78)))))*D$8))/2000*1000000","v":91.766249999999999},{"$f":"(SUMPRODUCT(E$9:E$229,Nutrients!$EK$8:$EK$228)+(IF($A$7=Nutrients!$B$8,Nutrients!$EK$8,Nutrients!$EK$9)*E$7)+(((IF($A$8=Nutrients!$B$79,Nutrients!$EK$79,(IF($A$8=Nutrients!$B$77,Nutrients!$EK$77,Nutrients!$EK$78)))))*E$8))/2000*1000000","v":73.413000000000011},{"$f":"(SUMPRODUCT(F$9:F$229,Nutrients!$EK$8:$EK$228)+(IF($A$7=Nutrients!$B$8,Nutrients!$EK$8,Nutrients!$EK$9)*F$7)+(((IF($A$8=Nutrients!$B$79,Nutrients!$EK$79,(IF($A$8=Nutrients!$B$77,Nutrients!$EK$77,Nutrients!$EK$78)))))*F$8))/2000*1000000","v":55.059750000000008},{"$f":"(SUMPRODUCT(G$9:G$229,Nutrients!$EK$8:$EK$228)+(IF($A$7=Nutrients!$B$8,Nutrients!$EK$8,Nutrients!$EK$9)*G$7)+(((IF($A$8=Nutrients!$B$79,Nutrients!$EK$79,(IF($A$8=Nutrients!$B$77,Nutrients!$EK$77,Nutrients!$EK$78)))))*G$8))/2000*1000000","v":55.059750000000008},null,{"$f":"(SUMPRODUCT(I$9:I$229,Nutrients!$EK$8:$EK$228)+(IF($A$7=Nutrients!$B$8,Nutrients!$EK$8,Nutrients!$EK$9)*I$7)+(((IF($A$8=Nutrients!$B$79,Nutrients!$EK$79,(IF($A$8=Nutrients!$B$77,Nutrients!$EK$77,Nutrients!$EK$78)))))*I$8))/2000*1000000","v":110.11950000000002},{"$f":"(SUMPRODUCT(J$9:J$229,Nutrients!$EK$8:$EK$228)+(IF($A$7=Nutrients!$B$8,Nutrients!$EK$8,Nutrients!$EK$9)*J$7)+(((IF($A$8=Nutrients!$B$79,Nutrients!$EK$79,(IF($A$8=Nutrients!$B$77,Nutrients!$EK$77,Nutrients!$EK$78)))))*J$8))/2000*1000000","v":110.11950000000002},{"$f":"(SUMPRODUCT(K$9:K$229,Nutrients!$EK$8:$EK$228)+(IF($A$7=Nutrients!$B$8,Nutrients!$EK$8,Nutrients!$EK$9)*K$7)+(((IF($A$8=Nutrients!$B$79,Nutrients!$EK$79,(IF($A$8=Nutrients!$B$77,Nutrients!$EK$77,Nutrients!$EK$78)))))*K$8))/2000*1000000","v":91.766249999999999},{"$f":"(SUMPRODUCT(L$9:L$229,Nutrients!$EK$8:$EK$228)+(IF($A$7=Nutrients!$B$8,Nutrients!$EK$8,Nutrients!$EK$9)*L$7)+(((IF($A$8=Nutrients!$B$79,Nutrients!$EK$79,(IF($A$8=Nutrients!$B$77,Nutrients!$EK$77,Nutrients!$EK$78)))))*L$8))/2000*1000000","v":73.413000000000011},{"$f":"(SUMPRODUCT(M$9:M$229,Nutrients!$EK$8:$EK$228)+(IF($A$7=Nutrients!$B$8,Nutrients!$EK$8,Nutrients!$EK$9)*M$7)+(((IF($A$8=Nutrients!$B$79,Nutrients!$EK$79,(IF($A$8=Nutrients!$B$77,Nutrients!$EK$77,Nutrients!$EK$78)))))*M$8))/2000*1000000","v":55.059750000000008},{"$f":"(SUMPRODUCT(N$9:N$229,Nutrients!$EK$8:$EK$228)+(IF($A$7=Nutrients!$B$8,Nutrients!$EK$8,Nutrients!$EK$9)*N$7)+(((IF($A$8=Nutrients!$B$79,Nutrients!$EK$79,(IF($A$8=Nutrients!$B$77,Nutrients!$EK$77,Nutrients!$EK$78)))))*N$8))/2000*1000000","v":55.059750000000008},null,{"$f":"(SUMPRODUCT(P$9:P$229,Nutrients!$EK$8:$EK$228)+(IF($A$7=Nutrients!$B$8,Nutrients!$EK$8,Nutrients!$EK$9)*P$7)+(((IF($A$8=Nutrients!$B$79,Nutrients!$EK$79,(IF($A$8=Nutrients!$B$77,Nutrients!$EK$77,Nutrients!$EK$78)))))*P$8))/2000*1000000","v":110.11950000000002},{"$f":"(SUMPRODUCT(Q$9:Q$229,Nutrients!$EK$8:$EK$228)+(IF($A$7=Nutrients!$B$8,Nutrients!$EK$8,Nutrients!$EK$9)*Q$7)+(((IF($A$8=Nutrients!$B$79,Nutrients!$EK$79,(IF($A$8=Nutrients!$B$77,Nutrients!$EK$77,Nutrients!$EK$78)))))*Q$8))/2000*1000000","v":110.11950000000002},{"$f":"(SUMPRODUCT(R$9:R$229,Nutrients!$EK$8:$EK$228)+(IF($A$7=Nutrients!$B$8,Nutrients!$EK$8,Nutrients!$EK$9)*R$7)+(((IF($A$8=Nutrients!$B$79,Nutrients!$EK$79,(IF($A$8=Nutrients!$B$77,Nutrients!$EK$77,Nutrients!$EK$78)))))*R$8))/2000*1000000","v":91.766249999999999},{"$f":"(SUMPRODUCT(S$9:S$229,Nutrients!$EK$8:$EK$228)+(IF($A$7=Nutrients!$B$8,Nutrients!$EK$8,Nutrients!$EK$9)*S$7)+(((IF($A$8=Nutrients!$B$79,Nutrients!$EK$79,(IF($A$8=Nutrients!$B$77,Nutrients!$EK$77,Nutrients!$EK$78)))))*S$8))/2000*1000000","v":73.413000000000011},{"$f":"(SUMPRODUCT(T$9:T$229,Nutrients!$EK$8:$EK$228)+(IF($A$7=Nutrients!$B$8,Nutrients!$EK$8,Nutrients!$EK$9)*T$7)+(((IF($A$8=Nutrients!$B$79,Nutrients!$EK$79,(IF($A$8=Nutrients!$B$77,Nutrients!$EK$77,Nutrients!$EK$78)))))*T$8))/2000*1000000","v":55.059750000000008},{"$f":"(SUMPRODUCT(U$9:U$229,Nutrients!$EK$8:$EK$228)+(IF($A$7=Nutrients!$B$8,Nutrients!$EK$8,Nutrients!$EK$9)*U$7)+(((IF($A$8=Nutrients!$B$79,Nutrients!$EK$79,(IF($A$8=Nutrients!$B$77,Nutrients!$EK$77,Nutrients!$EK$78)))))*U$8))/2000*1000000","v":55.059750000000008},null,{"$f":"(SUMPRODUCT(W$9:W$229,Nutrients!$EK$8:$EK$228)+(IF($A$7=Nutrients!$B$8,Nutrients!$EK$8,Nutrients!$EK$9)*W$7)+(((IF($A$8=Nutrients!$B$79,Nutrients!$EK$79,(IF($A$8=Nutrients!$B$77,Nutrients!$EK$77,Nutrients!$EK$78)))))*W$8))/2000*1000000","v":110.11950000000002},{"$f":"(SUMPRODUCT(X$9:X$229,Nutrients!$EK$8:$EK$228)+(IF($A$7=Nutrients!$B$8,Nutrients!$EK$8,Nutrients!$EK$9)*X$7)+(((IF($A$8=Nutrients!$B$79,Nutrients!$EK$79,(IF($A$8=Nutrients!$B$77,Nutrients!$EK$77,Nutrients!$EK$78)))))*X$8))/2000*1000000","v":110.11950000000002},{"$f":"(SUMPRODUCT(Y$9:Y$229,Nutrients!$EK$8:$EK$228)+(IF($A$7=Nutrients!$B$8,Nutrients!$EK$8,Nutrients!$EK$9)*Y$7)+(((IF($A$8=Nutrients!$B$79,Nutrients!$EK$79,(IF($A$8=Nutrients!$B$77,Nutrients!$EK$77,Nutrients!$EK$78)))))*Y$8))/2000*1000000","v":91.766249999999999},{"$f":"(SUMPRODUCT(Z$9:Z$229,Nutrients!$EK$8:$EK$228)+(IF($A$7=Nutrients!$B$8,Nutrients!$EK$8,Nutrients!$EK$9)*Z$7)+(((IF($A$8=Nutrients!$B$79,Nutrients!$EK$79,(IF($A$8=Nutrients!$B$77,Nutrients!$EK$77,Nutrients!$EK$78)))))*Z$8))/2000*1000000","v":73.413000000000011},{"$f":"(SUMPRODUCT(AA$9:AA$229,Nutrients!$EK$8:$EK$228)+(IF($A$7=Nutrients!$B$8,Nutrients!$EK$8,Nutrients!$EK$9)*AA$7)+(((IF($A$8=Nutrients!$B$79,Nutrients!$EK$79,(IF($A$8=Nutrients!$B$77,Nutrients!$EK$77,Nutrients!$EK$78)))))*AA$8))/2000*1000000","v":55.059750000000008},{"$f":"(SUMPRODUCT(AB$9:AB$229,Nutrients!$EK$8:$EK$228)+(IF($A$7=Nutrients!$B$8,Nutrients!$EK$8,Nutrients!$EK$9)*AB$7)+(((IF($A$8=Nutrients!$B$79,Nutrients!$EK$79,(IF($A$8=Nutrients!$B$77,Nutrients!$EK$77,Nutrients!$EK$78)))))*AB$8))/2000*1000000","v":55.059750000000008},null,{"$f":"(SUMPRODUCT(AD$9:AD$229,Nutrients!$EK$8:$EK$228)+(IF($A$7=Nutrients!$B$8,Nutrients!$EK$8,Nutrients!$EK$9)*AD$7)+(((IF($A$8=Nutrients!$B$79,Nutrients!$EK$79,(IF($A$8=Nutrients!$B$77,Nutrients!$EK$77,Nutrients!$EK$78)))))*AD$8))/2000*1000000","v":110.11950000000002},{"$f":"(SUMPRODUCT(AE$9:AE$229,Nutrients!$EK$8:$EK$228)+(IF($A$7=Nutrients!$B$8,Nutrients!$EK$8,Nutrients!$EK$9)*AE$7)+(((IF($A$8=Nutrients!$B$79,Nutrients!$EK$79,(IF($A$8=Nutrients!$B$77,Nutrients!$EK$77,Nutrients!$EK$78)))))*AE$8))/2000*1000000","v":110.11950000000002},{"$f":"(SUMPRODUCT(AF$9:AF$229,Nutrients!$EK$8:$EK$228)+(IF($A$7=Nutrients!$B$8,Nutrients!$EK$8,Nutrients!$EK$9)*AF$7)+(((IF($A$8=Nutrients!$B$79,Nutrients!$EK$79,(IF($A$8=Nutrients!$B$77,Nutrients!$EK$77,Nutrients!$EK$78)))))*AF$8))/2000*1000000","v":91.766249999999999},{"$f":"(SUMPRODUCT(AG$9:AG$229,Nutrients!$EK$8:$EK$228)+(IF($A$7=Nutrients!$B$8,Nutrients!$EK$8,Nutrients!$EK$9)*AG$7)+(((IF($A$8=Nutrients!$B$79,Nutrients!$EK$79,(IF($A$8=Nutrients!$B$77,Nutrients!$EK$77,Nutrients!$EK$78)))))*AG$8))/2000*1000000","v":73.413000000000011},{"$f":"(SUMPRODUCT(AH$9:AH$229,Nutrients!$EK$8:$EK$228)+(IF($A$7=Nutrients!$B$8,Nutrients!$EK$8,Nutrients!$EK$9)*AH$7)+(((IF($A$8=Nutrients!$B$79,Nutrients!$EK$79,(IF($A$8=Nutrients!$B$77,Nutrients!$EK$77,Nutrients!$EK$78)))))*AH$8))/2000*1000000","v":55.059750000000008},{"$f":"(SUMPRODUCT(AI$9:AI$229,Nutrients!$EK$8:$EK$228)+(IF($A$7=Nutrients!$B$8,Nutrients!$EK$8,Nutrients!$EK$9)*AI$7)+(((IF($A$8=Nutrients!$B$79,Nutrients!$EK$79,(IF($A$8=Nutrients!$B$77,Nutrients!$EK$77,Nutrients!$EK$78)))))*AI$8))/2000*1000000","v":55.059750000000008},null,{"$f":"(SUMPRODUCT(AK$9:AK$229,Nutrients!$EK$8:$EK$228)+(IF($A$7=Nutrients!$B$8,Nutrients!$EK$8,Nutrients!$EK$9)*AK$7)+(((IF($A$8=Nutrients!$B$79,Nutrients!$EK$79,(IF($A$8=Nutrients!$B$77,Nutrients!$EK$77,Nutrients!$EK$78)))))*AK$8))/2000*1000000","v":110.11950000000002},{"$f":"(SUMPRODUCT(AL$9:AL$229,Nutrients!$EK$8:$EK$228)+(IF($A$7=Nutrients!$B$8,Nutrients!$EK$8,Nutrients!$EK$9)*AL$7)+(((IF($A$8=Nutrients!$B$79,Nutrients!$EK$79,(IF($A$8=Nutrients!$B$77,Nutrients!$EK$77,Nutrients!$EK$78)))))*AL$8))/2000*1000000","v":110.11950000000002},{"$f":"(SUMPRODUCT(AM$9:AM$229,Nutrients!$EK$8:$EK$228)+(IF($A$7=Nutrients!$B$8,Nutrients!$EK$8,Nutrients!$EK$9)*AM$7)+(((IF($A$8=Nutrients!$B$79,Nutrients!$EK$79,(IF($A$8=Nutrients!$B$77,Nutrients!$EK$77,Nutrients!$EK$78)))))*AM$8))/2000*1000000","v":91.766249999999999},{"$f":"(SUMPRODUCT(AN$9:AN$229,Nutrients!$EK$8:$EK$228)+(IF($A$7=Nutrients!$B$8,Nutrients!$EK$8,Nutrients!$EK$9)*AN$7)+(((IF($A$8=Nutrients!$B$79,Nutrients!$EK$79,(IF($A$8=Nutrients!$B$77,Nutrients!$EK$77,Nutrients!$EK$78)))))*AN$8))/2000*1000000","v":73.413000000000011},{"$f":"(SUMPRODUCT(AO$9:AO$229,Nutrients!$EK$8:$EK$228)+(IF($A$7=Nutrients!$B$8,Nutrients!$EK$8,Nutrients!$EK$9)*AO$7)+(((IF($A$8=Nutrients!$B$79,Nutrients!$EK$79,(IF($A$8=Nutrients!$B$77,Nutrients!$EK$77,Nutrients!$EK$78)))))*AO$8))/2000*1000000","v":55.059750000000008},{"$f":"(SUMPRODUCT(AP$9:AP$229,Nutrients!$EK$8:$EK$228)+(IF($A$7=Nutrients!$B$8,Nutrients!$EK$8,Nutrients!$EK$9)*AP$7)+(((IF($A$8=Nutrients!$B$79,Nutrients!$EK$79,(IF($A$8=Nutrients!$B$77,Nutrients!$EK$77,Nutrients!$EK$78)))))*AP$8))/2000*1000000","v":55.059750000000008},null,{"$f":"(SUMPRODUCT(AR$9:AR$229,Nutrients!$EK$8:$EK$228)+(IF($A$7=Nutrients!$B$8,Nutrients!$EK$8,Nutrients!$EK$9)*AR$7)+(((IF($A$8=Nutrients!$B$79,Nutrients!$EK$79,(IF($A$8=Nutrients!$B$77,Nutrients!$EK$77,Nutrients!$EK$78)))))*AR$8))/2000*1000000","v":110.11950000000002},{"$f":"(SUMPRODUCT(AS$9:AS$229,Nutrients!$EK$8:$EK$228)+(IF($A$7=Nutrients!$B$8,Nutrients!$EK$8,Nutrients!$EK$9)*AS$7)+(((IF($A$8=Nutrients!$B$79,Nutrients!$EK$79,(IF($A$8=Nutrients!$B$77,Nutrients!$EK$77,Nutrients!$EK$78)))))*AS$8))/2000*1000000","v":110.11950000000002},{"$f":"(SUMPRODUCT(AT$9:AT$229,Nutrients!$EK$8:$EK$228)+(IF($A$7=Nutrients!$B$8,Nutrients!$EK$8,Nutrients!$EK$9)*AT$7)+(((IF($A$8=Nutrients!$B$79,Nutrients!$EK$79,(IF($A$8=Nutrients!$B$77,Nutrients!$EK$77,Nutrients!$EK$78)))))*AT$8))/2000*1000000","v":91.766249999999999},{"$f":"(SUMPRODUCT(AU$9:AU$229,Nutrients!$EK$8:$EK$228)+(IF($A$7=Nutrients!$B$8,Nutrients!$EK$8,Nutrients!$EK$9)*AU$7)+(((IF($A$8=Nutrients!$B$79,Nutrients!$EK$79,(IF($A$8=Nutrients!$B$77,Nutrients!$EK$77,Nutrients!$EK$78)))))*AU$8))/2000*1000000","v":73.413000000000011},{"$f":"(SUMPRODUCT(AV$9:AV$229,Nutrients!$EK$8:$EK$228)+(IF($A$7=Nutrients!$B$8,Nutrients!$EK$8,Nutrients!$EK$9)*AV$7)+(((IF($A$8=Nutrients!$B$79,Nutrients!$EK$79,(IF($A$8=Nutrients!$B$77,Nutrients!$EK$77,Nutrients!$EK$78)))))*AV$8))/2000*1000000","v":55.059750000000008},{"$f":"(SUMPRODUCT(AW$9:AW$229,Nutrients!$EK$8:$EK$228)+(IF($A$7=Nutrients!$B$8,Nutrients!$EK$8,Nutrients!$EK$9)*AW$7)+(((IF($A$8=Nutrients!$B$79,Nutrients!$EK$79,(IF($A$8=Nutrients!$B$77,Nutrients!$EK$77,Nutrients!$EK$78)))))*AW$8))/2000*1000000","v":55.059750000000008}]
["  Iron added, ppm",{"$f":"(SUMPRODUCT(B$9:B$229,Nutrients!$EL$8:$EL$228)+(IF($A$7=Nutrients!$B$8,Nutrients!$EL$8,Nutrients!$EL$9)*B$7)+(((IF($A$8=Nutrients!$B$79,Nutrients!$EL$79,(IF($A$8=Nutrients!$B$77,Nutrients!$EL$77,Nutrients!$EL$78)))))*B$8))/2000*1000000","v":110.11950000000002},{"$f":"(SUMPRODUCT(C$9:C$229,Nutrients!$EL$8:$EL$228)+(IF($A$7=Nutrients!$B$8,Nutrients!$EL$8,Nutrients!$EL$9)*C$7)+(((IF($A$8=Nutrients!$B$79,Nutrients!$EL$79,(IF($A$8=Nutrients!$B$77,Nutrients!$EL$77,Nutrients!$EL$78)))))*C$8))/2000*1000000","v":110.11950000000002},{"$f":"(SUMPRODUCT(D$9:D$229,Nutrients!$EL$8:$EL$228)+(IF($A$7=Nutrients!$B$8,Nutrients!$EL$8,Nutrients!$EL$9)*D$7)+(((IF($A$8=Nutrients!$B$79,Nutrients!$EL$79,(IF($A$8=Nutrients!$B$77,Nutrients!$EL$77,Nutrients!$EL$78)))))*D$8))/2000*1000000","v":91.766249999999999},{"$f":"(SUMPRODUCT(E$9:E$229,Nutrients!$EL$8:$EL$228)+(IF($A$7=Nutrients!$B$8,Nutrients!$EL$8,Nutrients!$EL$9)*E$7)+(((IF($A$8=Nutrients!$B$79,Nutrients!$EL$79,(IF($A$8=Nutrients!$B$77,Nutrients!$EL$77,Nutrients!$EL$78)))))*E$8))/2000*1000000","v":73.413000000000011},{"$f":"(SUMPRODUCT(F$9:F$229,Nutrients!$EL$8:$EL$228)+(IF($A$7=Nutrients!$B$8,Nutrients!$EL$8,Nutrients!$EL$9)*F$7)+(((IF($A$8=Nutrients!$B$79,Nutrients!$EL$79,(IF($A$8=Nutrients!$B$77,Nutrients!$EL$77,Nutrients!$EL$78)))))*F$8))/2000*1000000","v":55.059750000000008},{"$f":"(SUMPRODUCT(G$9:G$229,Nutrients!$EL$8:$EL$228)+(IF($A$7=Nutrients!$B$8,Nutrients!$EL$8,Nutrients!$EL$9)*G$7)+(((IF($A$8=Nutrients!$B$79,Nutrients!$EL$79,(IF($A$8=Nutrients!$B$77,Nutrients!$EL$77,Nutrients!$EL$78)))))*G$8))/2000*1000000","v":55.059750000000008},null,{"$f":"(SUMPRODUCT(I$9:I$229,Nutrients!$EL$8:$EL$228)+(IF($A$7=Nutrients!$B$8,Nutrients!$EL$8,Nutrients!$EL$9)*I$7)+(((IF($A$8=Nutrients!$B$79,Nutrients!$EL$79,(IF($A$8=Nutrients!$B$77,Nutrients!$EL$77,Nutrients!$EL$78)))))*I$8))/2000*1000000","v":110.11950000000002},{"$f":"(SUMPRODUCT(J$9:J$229,Nutrients!$EL$8:$EL$228)+(IF($A$7=Nutrients!$B$8,Nutrients!$EL$8,Nutrients!$EL$9)*J$7)+(((IF($A$8=Nutrients!$B$79,Nutrients!$EL$79,(IF($A$8=Nutrients!$B$77,Nutrients!$EL$77,Nutrients!$EL$78)))))*J$8))/2000*1000000","v":110.11950000000002},{"$f":"(SUMPRODUCT(K$9:K$229,Nutrients!$EL$8:$EL$228)+(IF($A$7=Nutrients!$B$8,Nutrients!$EL$8,Nutrients!$EL$9)*K$7)+(((IF($A$8=Nutrients!$B$79,Nutrients!$EL$79,(IF($A$8=Nutrients!$B$77,Nutrients!$EL$77,Nutrients!$EL$78)))))*K$8))/2000*1000000","v":91.766249999999999},{"$f":"(SUMPRODUCT(L$9:L$229,Nutrients!$EL$8:$EL$228)+(IF($A$7=Nutrients!$B$8,Nutrients!$EL$8,Nutrients!$EL$9)*L$7)+(((IF($A$8=Nutrients!$B$79,Nutrients!$EL$79,(IF($A$8=Nutrients!$B$77,Nutrients!$EL$77,Nutrients!$EL$78)))))*L$8))/2000*1000000","v":73.413000000000011},{"$f":"(SUMPRODUCT(M$9:M$229,Nutrients!$EL$8:$EL$228)+(IF($A$7=Nutrients!$B$8,Nutrients!$EL$8,Nutrients!$EL$9)*M$7)+(((IF($A$8=Nutrients!$B$79,Nutrients!$EL$79,(IF($A$8=Nutrients!$B$77,Nutrients!$EL$77,Nutrients!$EL$78)))))*M$8))/2000*1000000","v":55.059750000000008},{"$f":"(SUMPRODUCT(N$9:N$229,Nutrients!$EL$8:$EL$228)+(IF($A$7=Nutrients!$B$8,Nutrients!$EL$8,Nutrients!$EL$9)*N$7)+(((IF($A$8=Nutrients!$B$79,Nutrients!$EL$79,(IF($A$8=Nutrients!$B$77,Nutrients!$EL$77,Nutrients!$EL$78)))))*N$8))/2000*1000000","v":55.059750000000008},null,{"$f":"(SUMPRODUCT(P$9:P$229,Nutrients!$EL$8:$EL$228)+(IF($A$7=Nutrients!$B$8,Nutrients!$EL$8,Nutrients!$EL$9)*P$7)+(((IF($A$8=Nutrients!$B$79,Nutrients!$EL$79,(IF($A$8=Nutrients!$B$77,Nutrients!$EL$77,Nutrients!$EL$78)))))*P$8))/2000*1000000","v":110.11950000000002},{"$f":"(SUMPRODUCT(Q$9:Q$229,Nutrients!$EL$8:$EL$228)+(IF($A$7=Nutrients!$B$8,Nutrients!$EL$8,Nutrients!$EL$9)*Q$7)+(((IF($A$8=Nutrients!$B$79,Nutrients!$EL$79,(IF($A$8=Nutrients!$B$77,Nutrients!$EL$77,Nutrients!$EL$78)))))*Q$8))/2000*1000000","v":110.11950000000002},{"$f":"(SUMPRODUCT(R$9:R$229,Nutrients!$EL$8:$EL$228)+(IF($A$7=Nutrients!$B$8,Nutrients!$EL$8,Nutrients!$EL$9)*R$7)+(((IF($A$8=Nutrients!$B$79,Nutrients!$EL$79,(IF($A$8=Nutrients!$B$77,Nutrients!$EL$77,Nutrients!$EL$78)))))*R$8))/2000*1000000","v":91.766249999999999},{"$f":"(SUMPRODUCT(S$9:S$229,Nutrients!$EL$8:$EL$228)+(IF($A$7=Nutrients!$B$8,Nutrients!$EL$8,Nutrients!$EL$9)*S$7)+(((IF($A$8=Nutrients!$B$79,Nutrients!$EL$79,(IF($A$8=Nutrients!$B$77,Nutrients!$EL$77,Nutrients!$EL$78)))))*S$8))/2000*1000000","v":73.413000000000011},{"$f":"(SUMPRODUCT(T$9:T$229,Nutrients!$EL$8:$EL$228)+(IF($A$7=Nutrients!$B$8,Nutrients!$EL$8,Nutrients!$EL$9)*T$7)+(((IF($A$8=Nutrients!$B$79,Nutrients!$EL$79,(IF($A$8=Nutrients!$B$77,Nutrients!$EL$77,Nutrients!$EL$78)))))*T$8))/2000*1000000","v":55.059750000000008},{"$f":"(SUMPRODUCT(U$9:U$229,Nutrients!$EL$8:$EL$228)+(IF($A$7=Nutrients!$B$8,Nutrients!$EL$8,Nutrients!$EL$9)*U$7)+(((IF($A$8=Nutrients!$B$79,Nutrients!$EL$79,(IF($A$8=Nutrients!$B$77,Nutrients!$EL$77,Nutrients!$EL$78)))))*U$8))/2000*1000000","v":55.059750000000008},null,{"$f":"(SUMPRODUCT(W$9:W$229,Nutrients!$EL$8:$EL$228)+(IF($A$7=Nutrients!$B$8,Nutrients!$EL$8,Nutrients!$EL$9)*W$7)+(((IF($A$8=Nutrients!$B$79,Nutrients!$EL$79,(IF($A$8=Nutrients!$B$77,Nutrients!$EL$77,Nutrients!$EL$78)))))*W$8))/2000*1000000","v":110.11950000000002},{"$f":"(SUMPRODUCT(X$9:X$229,Nutrients!$EL$8:$EL$228)+(IF($A$7=Nutrients!$B$8,Nutrients!$EL$8,Nutrients!$EL$9)*X$7)+(((IF($A$8=Nutrients!$B$79,Nutrients!$EL$79,(IF($A$8=Nutrients!$B$77,Nutrients!$EL$77,Nutrients!$EL$78)))))*X$8))/2000*1000000","v":110.11950000000002},{"$f":"(SUMPRODUCT(Y$9:Y$229,Nutrients!$EL$8:$EL$228)+(IF($A$7=Nutrients!$B$8,Nutrients!$EL$8,Nutrients!$EL$9)*Y$7)+(((IF($A$8=Nutrients!$B$79,Nutrients!$EL$79,(IF($A$8=Nutrients!$B$77,Nutrients!$EL$77,Nutrients!$EL$78)))))*Y$8))/2000*1000000","v":91.766249999999999},{"$f":"(SUMPRODUCT(Z$9:Z$229,Nutrients!$EL$8:$EL$228)+(IF($A$7=Nutrients!$B$8,Nutrients!$EL$8,Nutrients!$EL$9)*Z$7)+(((IF($A$8=Nutrients!$B$79,Nutrients!$EL$79,(IF($A$8=Nutrients!$B$77,Nutrients!$EL$77,Nutrients!$EL$78)))))*Z$8))/2000*1000000","v":73.413000000000011},{"$f":"(SUMPRODUCT(AA$9:AA$229,Nutrients!$EL$8:$EL$228)+(IF($A$7=Nutrients!$B$8,Nutrients!$EL$8,Nutrients!$EL$9)*AA$7)+(((IF($A$8=Nutrients!$B$79,Nutrients!$EL$79,(IF($A$8=Nutrients!$B$77,Nutrients!$EL$77,Nutrients!$EL$78)))))*AA$8))/2000*1000000","v":55.059750000000008},{"$f":"(SUMPRODUCT(AB$9:AB$229,Nutrients!$EL$8:$EL$228)+(IF($A$7=Nutrients!$B$8,Nutrients!$EL$8,Nutrients!$EL$9)*AB$7)+(((IF($A$8=Nutrients!$B$79,Nutrients!$EL$79,(IF($A$8=Nutrients!$B$77,Nutrients!$EL$77,Nutrients!$EL$78)))))*AB$8))/2000*1000000","v":55.059750000000008},null,{"$f":"(SUMPRODUCT(AD$9:AD$229,Nutrients!$EL$8:$EL$228)+(IF($A$7=Nutrients!$B$8,Nutrients!$EL$8,Nutrients!$EL$9)*AD$7)+(((IF($A$8=Nutrients!$B$79,Nutrients!$EL$79,(IF($A$8=Nutrients!$B$77,Nutrients!$EL$77,Nutrients!$EL$78)))))*AD$8))/2000*1000000","v":110.11950000000002},{"$f":"(SUMPRODUCT(AE$9:AE$229,Nutrients!$EL$8:$EL$228)+(IF($A$7=Nutrients!$B$8,Nutrients!$EL$8,Nutrients!$EL$9)*AE$7)+(((IF($A$8=Nutrients!$B$79,Nutrients!$EL$79,(IF($A$8=Nutrients!$B$77,Nutrients!$EL$77,Nutrients!$EL$78)))))*AE$8))/2000*1000000","v":110.11950000000002},{"$f":"(SUMPRODUCT(AF$9:AF$229,Nutrients!$EL$8:$EL$228)+(IF($A$7=Nutrients!$B$8,Nutrients!$EL$8,Nutrients!$EL$9)*AF$7)+(((IF($A$8=Nutrients!$B$79,Nutrients!$EL$79,(IF($A$8=Nutrients!$B$77,Nutrients!$EL$77,Nutrients!$EL$78)))))*AF$8))/2000*1000000","v":91.766249999999999},{"$f":"(SUMPRODUCT(AG$9:AG$229,Nutrients!$EL$8:$EL$228)+(IF($A$7=Nutrients!$B$8,Nutrients!$EL$8,Nutrients!$EL$9)*AG$7)+(((IF($A$8=Nutrients!$B$79,Nutrients!$EL$79,(IF($A$8=Nutrients!$B$77,Nutrients!$EL$77,Nutrients!$EL$78)))))*AG$8))/2000*1000000","v":73.413000000000011},{"$f":"(SUMPRODUCT(AH$9:AH$229,Nutrients!$EL$8:$EL$228)+(IF($A$7=Nutrients!$B$8,Nutrients!$EL$8,Nutrients!$EL$9)*AH$7)+(((IF($A$8=Nutrients!$B$79,Nutrients!$EL$79,(IF($A$8=Nutrients!$B$77,Nutrients!$EL$77,Nutrients!$EL$78)))))*AH$8))/2000*1000000","v":55.059750000000008},{"$f":"(SUMPRODUCT(AI$9:AI$229,Nutrients!$EL$8:$EL$228)+(IF($A$7=Nutrients!$B$8,Nutrients!$EL$8,Nutrients!$EL$9)*AI$7)+(((IF($A$8=Nutrients!$B$79,Nutrients!$EL$79,(IF($A$8=Nutrients!$B$77,Nutrients!$EL$77,Nutrients!$EL$78)))))*AI$8))/2000*1000000","v":55.059750000000008},null,{"$f":"(SUMPRODUCT(AK$9:AK$229,Nutrients!$EL$8:$EL$228)+(IF($A$7=Nutrients!$B$8,Nutrients!$EL$8,Nutrients!$EL$9)*AK$7)+(((IF($A$8=Nutrients!$B$79,Nutrients!$EL$79,(IF($A$8=Nutrients!$B$77,Nutrients!$EL$77,Nutrients!$EL$78)))))*AK$8))/2000*1000000","v":110.11950000000002},{"$f":"(SUMPRODUCT(AL$9:AL$229,Nutrients!$EL$8:$EL$228)+(IF($A$7=Nutrients!$B$8,Nutrients!$EL$8,Nutrients!$EL$9)*AL$7)+(((IF($A$8=Nutrients!$B$79,Nutrients!$EL$79,(IF($A$8=Nutrients!$B$77,Nutrients!$EL$77,Nutrients!$EL$78)))))*AL$8))/2000*1000000","v":110.11950000000002},{"$f":"(SUMPRODUCT(AM$9:AM$229,Nutrients!$EL$8:$EL$228)+(IF($A$7=Nutrients!$B$8,Nutrients!$EL$8,Nutrients!$EL$9)*AM$7)+(((IF($A$8=Nutrients!$B$79,Nutrients!$EL$79,(IF($A$8=Nutrients!$B$77,Nutrients!$EL$77,Nutrients!$EL$78)))))*AM$8))/2000*1000000","v":91.766249999999999},{"$f":"(SUMPRODUCT(AN$9:AN$229,Nutrients!$EL$8:$EL$228)+(IF($A$7=Nutrients!$B$8,Nutrients!$EL$8,Nutrients!$EL$9)*AN$7)+(((IF($A$8=Nutrients!$B$79,Nutrients!$EL$79,(IF($A$8=Nutrients!$B$77,Nutrients!$EL$77,Nutrients!$EL$78)))))*AN$8))/2000*1000000","v":73.413000000000011},{"$f":"(SUMPRODUCT(AO$9:AO$229,Nutrients!$EL$8:$EL$228)+(IF($A$7=Nutrients!$B$8,Nutrients!$EL$8,Nutrients!$EL$9)*AO$7)+(((IF($A$8=Nutrients!$B$79,Nutrients!$EL$79,(IF($A$8=Nutrients!$B$77,Nutrients!$EL$77,Nutrients!$EL$78)))))*AO$8))/2000*1000000","v":55.059750000000008},{"$f":"(SUMPRODUCT(AP$9:AP$229,Nutrients!$EL$8:$EL$228)+(IF($A$7=Nutrients!$B$8,Nutrients!$EL$8,Nutrients!$EL$9)*AP$7)+(((IF($A$8=Nutrients!$B$79,Nutrients!$EL$79,(IF($A$8=Nutrients!$B$77,Nutrients!$EL$77,Nutrients!$EL$78)))))*AP$8))/2000*1000000","v":55.059750000000008},null,{"$f":"(SUMPRODUCT(AR$9:AR$229,Nutrients!$EL$8:$EL$228)+(IF($A$7=Nutrients!$B$8,Nutrients!$EL$8,Nutrients!$EL$9)*AR$7)+(((IF($A$8=Nutrients!$B$79,Nutrients!$EL$79,(IF($A$8=Nutrients!$B$77,Nutrients!$EL$77,Nutrients!$EL$78)))))*AR$8))/2000*1000000","v":110.11950000000002},{"$f":"(SUMPRODUCT(AS$9:AS$229,Nutrients!$EL$8:$EL$228)+(IF($A$7=Nutrients!$B$8,Nutrients!$EL$8,Nutrients!$EL$9)*AS$7)+(((IF($A$8=Nutrients!$B$79,Nutrients!$EL$79,(IF($A$8=Nutrients!$B$77,Nutrients!$EL$77,Nutrients!$EL$78)))))*AS$8))/2000*1000000","v":110.11950000000002},{"$f":"(SUMPRODUCT(AT$9:AT$229,Nutrients!$EL$8:$EL$228)+(IF($A$7=Nutrients!$B$8,Nutrients!$EL$8,Nutrients!$EL$9)*AT$7)+(((IF($A$8=Nutrients!$B$79,Nutrients!$EL$79,(IF($A$8=Nutrients!$B$77,Nutrients!$EL$77,Nutrients!$EL$78)))))*AT$8))/2000*1000000","v":91.766249999999999},{"$f":"(SUMPRODUCT(AU$9:AU$229,Nutrients!$EL$8:$EL$228)+(IF($A$7=Nutrients!$B$8,Nutrients!$EL$8,Nutrients!$EL$9)*AU$7)+(((IF($A$8=Nutrients!$B$79,Nutrients!$EL$79,(IF($A$8=Nutrients!$B$77,Nutrients!$EL$77,Nutrients!$EL$78)))))*AU$8))/2000*1000000","v":73.413000000000011},{"$f":"(SUMPRODUCT(AV$9:AV$229,Nutrients!$EL$8:$EL$228)+(IF($A$7=Nutrients!$B$8,Nutrients!$EL$8,Nutrients!$EL$9)*AV$7)+(((IF($A$8=Nutrients!$B$79,Nutrients!$EL$79,(IF($A$8=Nutrients!$B$77,Nutrients!$EL$77,Nutrients!$EL$78)))))*AV$8))/2000*1000000","v":55.059750000000008},{"$f":"(SUMPRODUCT(AW$9:AW$229,Nutrients!$EL$8:$EL$228)+(IF($A$7=Nutrients!$B$8,Nutrients!$EL$8,Nutrients!$EL$9)*AW$7)+(((IF($A$8=Nutrients!$B$79,Nutrients!$EL$79,(IF($A$8=Nutrients!$B$77,Nutrients!$EL$77,Nutrients!$EL$78)))))*AW$8))/2000*1000000","v":55.059750000000008}]
["  Manganese added, ppm",{"$f":"(SUMPRODUCT(B$9:B$229,Nutrients!$EM$8:$EM$228)+(IF($A$7=Nutrients!$B$8,Nutrients!$EM$8,Nutrients!$EM$9)*B$7)+(((IF($A$8=Nutrients!$B$79,Nutrients!$EM$79,(IF($A$8=Nutrients!$B$77,Nutrients!$EM$77,Nutrients!$EM$78)))))*B$8))/2000*1000000","v":33.068999999999996},{"$f":"(SUMPRODUCT(C$9:C$229,Nutrients!$EM$8:$EM$228)+(IF($A$7=Nutrients!$B$8,Nutrients!$EM$8,Nutrients!$EM$9)*C$7)+(((IF($A$8=Nutrients!$B$79,Nutrients!$EM$79,(IF($A$8=Nutrients!$B$77,Nutrients!$EM$77,Nutrients!$EM$78)))))*C$8))/2000*1000000","v":33.068999999999996},{"$f":"(SUMPRODUCT(D$9:D$229,Nutrients!$EM$8:$EM$228)+(IF($A$7=Nutrients!$B$8,Nutrients!$EM$8,Nutrients!$EM$9)*D$7)+(((IF($A$8=Nutrients!$B$79,Nutrients!$EM$79,(IF($A$8=Nutrients!$B$77,Nutrients!$EM$77,Nutrients!$EM$78)))))*D$8))/2000*1000000","v":27.557499999999997},{"$f":"(SUMPRODUCT(E$9:E$229,Nutrients!$EM$8:$EM$228)+(IF($A$7=Nutrients!$B$8,Nutrients!$EM$8,Nutrients!$EM$9)*E$7)+(((IF($A$8=Nutrients!$B$79,Nutrients!$EM$79,(IF($A$8=Nutrients!$B$77,Nutrients!$EM$77,Nutrients!$EM$78)))))*E$8))/2000*1000000","v":22.045999999999999},{"$f":"(SUMPRODUCT(F$9:F$229,Nutrients!$EM$8:$EM$228)+(IF($A$7=Nutrients!$B$8,Nutrients!$EM$8,Nutrients!$EM$9)*F$7)+(((IF($A$8=Nutrients!$B$79,Nutrients!$EM$79,(IF($A$8=Nutrients!$B$77,Nutrients!$EM$77,Nutrients!$EM$78)))))*F$8))/2000*1000000","v":16.534499999999998},{"$f":"(SUMPRODUCT(G$9:G$229,Nutrients!$EM$8:$EM$228)+(IF($A$7=Nutrients!$B$8,Nutrients!$EM$8,Nutrients!$EM$9)*G$7)+(((IF($A$8=Nutrients!$B$79,Nutrients!$EM$79,(IF($A$8=Nutrients!$B$77,Nutrients!$EM$77,Nutrients!$EM$78)))))*G$8))/2000*1000000","v":16.534499999999998},null,{"$f":"(SUMPRODUCT(I$9:I$229,Nutrients!$EM$8:$EM$228)+(IF($A$7=Nutrients!$B$8,Nutrients!$EM$8,Nutrients!$EM$9)*I$7)+(((IF($A$8=Nutrients!$B$79,Nutrients!$EM$79,(IF($A$8=Nutrients!$B$77,Nutrients!$EM$77,Nutrients!$EM$78)))))*I$8))/2000*1000000","v":33.068999999999996},{"$f":"(SUMPRODUCT(J$9:J$229,Nutrients!$EM$8:$EM$228)+(IF($A$7=Nutrients!$B$8,Nutrients!$EM$8,Nutrients!$EM$9)*J$7)+(((IF($A$8=Nutrients!$B$79,Nutrients!$EM$79,(IF($A$8=Nutrients!$B$77,Nutrients!$EM$77,Nutrients!$EM$78)))))*J$8))/2000*1000000","v":33.068999999999996},{"$f":"(SUMPRODUCT(K$9:K$229,Nutrients!$EM$8:$EM$228)+(IF($A$7=Nutrients!$B$8,Nutrients!$EM$8,Nutrients!$EM$9)*K$7)+(((IF($A$8=Nutrients!$B$79,Nutrients!$EM$79,(IF($A$8=Nutrients!$B$77,Nutrients!$EM$77,Nutrients!$EM$78)))))*K$8))/2000*1000000","v":27.557499999999997},{"$f":"(SUMPRODUCT(L$9:L$229,Nutrients!$EM$8:$EM$228)+(IF($A$7=Nutrients!$B$8,Nutrients!$EM$8,Nutrients!$EM$9)*L$7)+(((IF($A$8=Nutrients!$B$79,Nutrients!$EM$79,(IF($A$8=Nutrients!$B$77,Nutrients!$EM$77,Nutrients!$EM$78)))))*L$8))/2000*1000000","v":22.045999999999999},{"$f":"(SUMPRODUCT(M$9:M$229,Nutrients!$EM$8:$EM$228)+(IF($A$7=Nutrients!$B$8,Nutrients!$EM$8,Nutrients!$EM$9)*M$7)+(((IF($A$8=Nutrients!$B$79,Nutrients!$EM$79,(IF($A$8=Nutrients!$B$77,Nutrients!$EM$77,Nutrients!$EM$78)))))*M$8))/2000*1000000","v":16.534499999999998},{"$f":"(SUMPRODUCT(N$9:N$229,Nutrients!$EM$8:$EM$228)+(IF($A$7=Nutrients!$B$8,Nutrients!$EM$8,Nutrients!$EM$9)*N$7)+(((IF($A$8=Nutrients!$B$79,Nutrients!$EM$79,(IF($A$8=Nutrients!$B$77,Nutrients!$EM$77,Nutrients!$EM$78)))))*N$8))/2000*1000000","v":16.534499999999998},null,{"$f":"(SUMPRODUCT(P$9:P$229,Nutrients!$EM$8:$EM$228)+(IF($A$7=Nutrients!$B$8,Nutrients!$EM$8,Nutrients!$EM$9)*P$7)+(((IF($A$8=Nutrients!$B$79,Nutrients!$EM$79,(IF($A$8=Nutrients!$B$77,Nutrients!$EM$77,Nutrients!$EM$78)))))*P$8))/2000*1000000","v":33.068999999999996},{"$f":"(SUMPRODUCT(Q$9:Q$229,Nutrients!$EM$8:$EM$228)+(IF($A$7=Nutrients!$B$8,Nutrients!$EM$8,Nutrients!$EM$9)*Q$7)+(((IF($A$8=Nutrients!$B$79,Nutrients!$EM$79,(IF($A$8=Nutrients!$B$77,Nutrients!$EM$77,Nutrients!$EM$78)))))*Q$8))/2000*1000000","v":33.068999999999996},{"$f":"(SUMPRODUCT(R$9:R$229,Nutrients!$EM$8:$EM$228)+(IF($A$7=Nutrients!$B$8,Nutrients!$EM$8,Nutrients!$EM$9)*R$7)+(((IF($A$8=Nutrients!$B$79,Nutrients!$EM$79,(IF($A$8=Nutrients!$B$77,Nutrients!$EM$77,Nutrients!$EM$78)))))*R$8))/2000*1000000","v":27.557499999999997},{"$f":"(SUMPRODUCT(S$9:S$229,Nutrients!$EM$8:$EM$228)+(IF($A$7=Nutrients!$B$8,Nutrients!$EM$8,Nutrients!$EM$9)*S$7)+(((IF($A$8=Nutrients!$B$79,Nutrients!$EM$79,(IF($A$8=Nutrients!$B$77,Nutrients!$EM$77,Nutrients!$EM$78)))))*S$8))/2000*1000000","v":22.045999999999999},{"$f":"(SUMPRODUCT(T$9:T$229,Nutrients!$EM$8:$EM$228)+(IF($A$7=Nutrients!$B$8,Nutrients!$EM$8,Nutrients!$EM$9)*T$7)+(((IF($A$8=Nutrients!$B$79,Nutrients!$EM$79,(IF($A$8=Nutrients!$B$77,Nutrients!$EM$77,Nutrients!$EM$78)))))*T$8))/2000*1000000","v":16.534499999999998},{"$f":"(SUMPRODUCT(U$9:U$229,Nutrients!$EM$8:$EM$228)+(IF($A$7=Nutrients!$B$8,Nutrients!$EM$8,Nutrients!$EM$9)*U$7)+(((IF($A$8=Nutrients!$B$79,Nutrients!$EM$79,(IF($A$8=Nutrients!$B$77,Nutrients!$EM$77,Nutrients!$EM$78)))))*U$8))/2000*1000000","v":16.534499999999998},null,{"$f":"(SUMPRODUCT(W$9:W$229,Nutrients!$EM$8:$EM$228)+(IF($A$7=Nutrients!$B$8,Nutrients!$EM$8,Nutrients!$EM$9)*W$7)+(((IF($A$8=Nutrients!$B$79,Nutrients!$EM$79,(IF($A$8=Nutrients!$B$77,Nutrients!$EM$77,Nutrients!$EM$78)))))*W$8))/2000*1000000","v":33.068999999999996},{"$f":"(SUMPRODUCT(X$9:X$229,Nutrients!$EM$8:$EM$228)+(IF($A$7=Nutrients!$B$8,Nutrients!$EM$8,Nutrients!$EM$9)*X$7)+(((IF($A$8=Nutrients!$B$79,Nutrients!$EM$79,(IF($A$8=Nutrients!$B$77,Nutrients!$EM$77,Nutrients!$EM$78)))))*X$8))/2000*1000000","v":33.068999999999996},{"$f":"(SUMPRODUCT(Y$9:Y$229,Nutrients!$EM$8:$EM$228)+(IF($A$7=Nutrients!$B$8,Nutrients!$EM$8,Nutrients!$EM$9)*Y$7)+(((IF($A$8=Nutrients!$B$79,Nutrients!$EM$79,(IF($A$8=Nutrients!$B$77,Nutrients!$EM$77,Nutrients!$EM$78)))))*Y$8))/2000*1000000","v":27.557499999999997},{"$f":"(SUMPRODUCT(Z$9:Z$229,Nutrients!$EM$8:$EM$228)+(IF($A$7=Nutrients!$B$8,Nutrients!$EM$8,Nutrients!$EM$9)*Z$7)+(((IF($A$8=Nutrients!$B$79,Nutrients!$EM$79,(IF($A$8=Nutrients!$B$77,Nutrients!$EM$77,Nutrients!$EM$78)))))*Z$8))/2000*1000000","v":22.045999999999999},{"$f":"(SUMPRODUCT(AA$9:AA$229,Nutrients!$EM$8:$EM$228)+(IF($A$7=Nutrients!$B$8,Nutrients!$EM$8,Nutrients!$EM$9)*AA$7)+(((IF($A$8=Nutrients!$B$79,Nutrients!$EM$79,(IF($A$8=Nutrients!$B$77,Nutrients!$EM$77,Nutrients!$EM$78)))))*AA$8))/2000*1000000","v":16.534499999999998},{"$f":"(SUMPRODUCT(AB$9:AB$229,Nutrients!$EM$8:$EM$228)+(IF($A$7=Nutrients!$B$8,Nutrients!$EM$8,Nutrients!$EM$9)*AB$7)+(((IF($A$8=Nutrients!$B$79,Nutrients!$EM$79,(IF($A$8=Nutrients!$B$77,Nutrients!$EM$77,Nutrients!$EM$78)))))*AB$8))/2000*1000000","v":16.534499999999998},null,{"$f":"(SUMPRODUCT(AD$9:AD$229,Nutrients!$EM$8:$EM$228)+(IF($A$7=Nutrients!$B$8,Nutrients!$EM$8,Nutrients!$EM$9)*AD$7)+(((IF($A$8=Nutrients!$B$79,Nutrients!$EM$79,(IF($A$8=Nutrients!$B$77,Nutrients!$EM$77,Nutrients!$EM$78)))))*AD$8))/2000*1000000","v":33.068999999999996},{"$f":"(SUMPRODUCT(AE$9:AE$229,Nutrients!$EM$8:$EM$228)+(IF($A$7=Nutrients!$B$8,Nutrients!$EM$8,Nutrients!$EM$9)*AE$7)+(((IF($A$8=Nutrients!$B$79,Nutrients!$EM$79,(IF($A$8=Nutrients!$B$77,Nutrients!$EM$77,Nutrients!$EM$78)))))*AE$8))/2000*1000000","v":33.068999999999996},{"$f":"(SUMPRODUCT(AF$9:AF$229,Nutrients!$EM$8:$EM$228)+(IF($A$7=Nutrients!$B$8,Nutrients!$EM$8,Nutrients!$EM$9)*AF$7)+(((IF($A$8=Nutrients!$B$79,Nutrients!$EM$79,(IF($A$8=Nutrients!$B$77,Nutrients!$EM$77,Nutrients!$EM$78)))))*AF$8))/2000*1000000","v":27.557499999999997},{"$f":"(SUMPRODUCT(AG$9:AG$229,Nutrients!$EM$8:$EM$228)+(IF($A$7=Nutrients!$B$8,Nutrients!$EM$8,Nutrients!$EM$9)*AG$7)+(((IF($A$8=Nutrients!$B$79,Nutrients!$EM$79,(IF($A$8=Nutrients!$B$77,Nutrients!$EM$77,Nutrients!$EM$78)))))*AG$8))/2000*1000000","v":22.045999999999999},{"$f":"(SUMPRODUCT(AH$9:AH$229,Nutrients!$EM$8:$EM$228)+(IF($A$7=Nutrients!$B$8,Nutrients!$EM$8,Nutrients!$EM$9)*AH$7)+(((IF($A$8=Nutrients!$B$79,Nutrients!$EM$79,(IF($A$8=Nutrients!$B$77,Nutrients!$EM$77,Nutrients!$EM$78)))))*AH$8))/2000*1000000","v":16.534499999999998},{"$f":"(SUMPRODUCT(AI$9:AI$229,Nutrients!$EM$8:$EM$228)+(IF($A$7=Nutrients!$B$8,Nutrients!$EM$8,Nutrients!$EM$9)*AI$7)+(((IF($A$8=Nutrients!$B$79,Nutrients!$EM$79,(IF($A$8=Nutrients!$B$77,Nutrients!$EM$77,Nutrients!$EM$78)))))*AI$8))/2000*1000000","v":16.534499999999998},null,{"$f":"(SUMPRODUCT(AK$9:AK$229,Nutrients!$EM$8:$EM$228)+(IF($A$7=Nutrients!$B$8,Nutrients!$EM$8,Nutrients!$EM$9)*AK$7)+(((IF($A$8=Nutrients!$B$79,Nutrients!$EM$79,(IF($A$8=Nutrients!$B$77,Nutrients!$EM$77,Nutrients!$EM$78)))))*AK$8))/2000*1000000","v":33.068999999999996},{"$f":"(SUMPRODUCT(AL$9:AL$229,Nutrients!$EM$8:$EM$228)+(IF($A$7=Nutrients!$B$8,Nutrients!$EM$8,Nutrients!$EM$9)*AL$7)+(((IF($A$8=Nutrients!$B$79,Nutrients!$EM$79,(IF($A$8=Nutrients!$B$77,Nutrients!$EM$77,Nutrients!$EM$78)))))*AL$8))/2000*1000000","v":33.068999999999996},{"$f":"(SUMPRODUCT(AM$9:AM$229,Nutrients!$EM$8:$EM$228)+(IF($A$7=Nutrients!$B$8,Nutrients!$EM$8,Nutrients!$EM$9)*AM$7)+(((IF($A$8=Nutrients!$B$79,Nutrients!$EM$79,(IF($A$8=Nutrients!$B$77,Nutrients!$EM$77,Nutrients!$EM$78)))))*AM$8))/2000*1000000","v":27.557499999999997},{"$f":"(SUMPRODUCT(AN$9:AN$229,Nutrients!$EM$8:$EM$228)+(IF($A$7=Nutrients!$B$8,Nutrients!$EM$8,Nutrients!$EM$9)*AN$7)+(((IF($A$8=Nutrients!$B$79,Nutrients!$EM$79,(IF($A$8=Nutrients!$B$77,Nutrients!$EM$77,Nutrients!$EM$78)))))*AN$8))/2000*1000000","v":22.045999999999999},{"$f":"(SUMPRODUCT(AO$9:AO$229,Nutrients!$EM$8:$EM$228)+(IF($A$7=Nutrients!$B$8,Nutrients!$EM$8,Nutrients!$EM$9)*AO$7)+(((IF($A$8=Nutrients!$B$79,Nutrients!$EM$79,(IF($A$8=Nutrients!$B$77,Nutrients!$EM$77,Nutrients!$EM$78)))))*AO$8))/2000*1000000","v":16.534499999999998},{"$f":"(SUMPRODUCT(AP$9:AP$229,Nutrients!$EM$8:$EM$228)+(IF($A$7=Nutrients!$B$8,Nutrients!$EM$8,Nutrients!$EM$9)*AP$7)+(((IF($A$8=Nutrients!$B$79,Nutrients!$EM$79,(IF($A$8=Nutrients!$B$77,Nutrients!$EM$77,Nutrients!$EM$78)))))*AP$8))/2000*1000000","v":16.534499999999998},null,{"$f":"(SUMPRODUCT(AR$9:AR$229,Nutrients!$EM$8:$EM$228)+(IF($A$7=Nutrients!$B$8,Nutrients!$EM$8,Nutrients!$EM$9)*AR$7)+(((IF($A$8=Nutrients!$B$79,Nutrients!$EM$79,(IF($A$8=Nutrients!$B$77,Nutrients!$EM$77,Nutrients!$EM$78)))))*AR$8))/2000*1000000","v":33.068999999999996},{"$f":"(SUMPRODUCT(AS$9:AS$229,Nutrients!$EM$8:$EM$228)+(IF($A$7=Nutrients!$B$8,Nutrients!$EM$8,Nutrients!$EM$9)*AS$7)+(((IF($A$8=Nutrients!$B$79,Nutrients!$EM$79,(IF($A$8=Nutrients!$B$77,Nutrients!$EM$77,Nutrients!$EM$78)))))*AS$8))/2000*1000000","v":33.068999999999996},{"$f":"(SUMPRODUCT(AT$9:AT$229,Nutrients!$EM$8:$EM$228)+(IF($A$7=Nutrients!$B$8,Nutrients!$EM$8,Nutrients!$EM$9)*AT$7)+(((IF($A$8=Nutrients!$B$79,Nutrients!$EM$79,(IF($A$8=Nutrients!$B$77,Nutrients!$EM$77,Nutrients!$EM$78)))))*AT$8))/2000*1000000","v":27.557499999999997},{"$f":"(SUMPRODUCT(AU$9:AU$229,Nutrients!$EM$8:$EM$228)+(IF($A$7=Nutrients!$B$8,Nutrients!$EM$8,Nutrients!$EM$9)*AU$7)+(((IF($A$8=Nutrients!$B$79,Nutrients!$EM$79,(IF($A$8=Nutrients!$B$77,Nutrients!$EM$77,Nutrients!$EM$78)))))*AU$8))/2000*1000000","v":22.045999999999999},{"$f":"(SUMPRODUCT(AV$9:AV$229,Nutrients!$EM$8:$EM$228)+(IF($A$7=Nutrients!$B$8,Nutrients!$EM$8,Nutrients!$EM$9)*AV$7)+(((IF($A$8=Nutrients!$B$79,Nutrients!$EM$79,(IF($A$8=Nutrients!$B$77,Nutrients!$EM$77,Nutrients!$EM$78)))))*AV$8))/2000*1000000","v":16.534499999999998},{"$f":"(SUMPRODUCT(AW$9:AW$229,Nutrients!$EM$8:$EM$228)+(IF($A$7=Nutrients!$B$8,Nutrients!$EM$8,Nutrients!$EM$9)*AW$7)+(((IF($A$8=Nutrients!$B$79,Nutrients!$EM$79,(IF($A$8=Nutrients!$B$77,Nutrients!$EM$77,Nutrients!$EM$78)))))*AW$8))/2000*1000000","v":16.534499999999998}]
["  Copper added, ppm",{"$f":"(SUMPRODUCT(B$9:B$229,Nutrients!$EN$8:$EN$228)+(IF($A$7=Nutrients!$B$8,Nutrients!$EN$8,Nutrients!$EN$9)*B$7)+(((IF($A$8=Nutrients!$B$79,Nutrients!$EN$79,(IF($A$8=Nutrients!$B$77,Nutrients!$EN$77,Nutrients!$EN$78)))))*B$8))/2000*1000000","v":16.5},{"$f":"(SUMPRODUCT(C$9:C$229,Nutrients!$EN$8:$EN$228)+(IF($A$7=Nutrients!$B$8,Nutrients!$EN$8,Nutrients!$EN$9)*C$7)+(((IF($A$8=Nutrients!$B$79,Nutrients!$EN$79,(IF($A$8=Nutrients!$B$77,Nutrients!$EN$77,Nutrients!$EN$78)))))*C$8))/2000*1000000","v":16.5},{"$f":"(SUMPRODUCT(D$9:D$229,Nutrients!$EN$8:$EN$228)+(IF($A$7=Nutrients!$B$8,Nutrients!$EN$8,Nutrients!$EN$9)*D$7)+(((IF($A$8=Nutrients!$B$79,Nutrients!$EN$79,(IF($A$8=Nutrients!$B$77,Nutrients!$EN$77,Nutrients!$EN$78)))))*D$8))/2000*1000000","v":13.749999999999998},{"$f":"(SUMPRODUCT(E$9:E$229,Nutrients!$EN$8:$EN$228)+(IF($A$7=Nutrients!$B$8,Nutrients!$EN$8,Nutrients!$EN$9)*E$7)+(((IF($A$8=Nutrients!$B$79,Nutrients!$EN$79,(IF($A$8=Nutrients!$B$77,Nutrients!$EN$77,Nutrients!$EN$78)))))*E$8))/2000*1000000","v":11},{"$f":"(SUMPRODUCT(F$9:F$229,Nutrients!$EN$8:$EN$228)+(IF($A$7=Nutrients!$B$8,Nutrients!$EN$8,Nutrients!$EN$9)*F$7)+(((IF($A$8=Nutrients!$B$79,Nutrients!$EN$79,(IF($A$8=Nutrients!$B$77,Nutrients!$EN$77,Nutrients!$EN$78)))))*F$8))/2000*1000000","v":8.25},{"$f":"(SUMPRODUCT(G$9:G$229,Nutrients!$EN$8:$EN$228)+(IF($A$7=Nutrients!$B$8,Nutrients!$EN$8,Nutrients!$EN$9)*G$7)+(((IF($A$8=Nutrients!$B$79,Nutrients!$EN$79,(IF($A$8=Nutrients!$B$77,Nutrients!$EN$77,Nutrients!$EN$78)))))*G$8))/2000*1000000","v":8.25},null,{"$f":"(SUMPRODUCT(I$9:I$229,Nutrients!$EN$8:$EN$228)+(IF($A$7=Nutrients!$B$8,Nutrients!$EN$8,Nutrients!$EN$9)*I$7)+(((IF($A$8=Nutrients!$B$79,Nutrients!$EN$79,(IF($A$8=Nutrients!$B$77,Nutrients!$EN$77,Nutrients!$EN$78)))))*I$8))/2000*1000000","v":16.5},{"$f":"(SUMPRODUCT(J$9:J$229,Nutrients!$EN$8:$EN$228)+(IF($A$7=Nutrients!$B$8,Nutrients!$EN$8,Nutrients!$EN$9)*J$7)+(((IF($A$8=Nutrients!$B$79,Nutrients!$EN$79,(IF($A$8=Nutrients!$B$77,Nutrients!$EN$77,Nutrients!$EN$78)))))*J$8))/2000*1000000","v":16.5},{"$f":"(SUMPRODUCT(K$9:K$229,Nutrients!$EN$8:$EN$228)+(IF($A$7=Nutrients!$B$8,Nutrients!$EN$8,Nutrients!$EN$9)*K$7)+(((IF($A$8=Nutrients!$B$79,Nutrients!$EN$79,(IF($A$8=Nutrients!$B$77,Nutrients!$EN$77,Nutrients!$EN$78)))))*K$8))/2000*1000000","v":13.749999999999998},{"$f":"(SUMPRODUCT(L$9:L$229,Nutrients!$EN$8:$EN$228)+(IF($A$7=Nutrients!$B$8,Nutrients!$EN$8,Nutrients!$EN$9)*L$7)+(((IF($A$8=Nutrients!$B$79,Nutrients!$EN$79,(IF($A$8=Nutrients!$B$77,Nutrients!$EN$77,Nutrients!$EN$78)))))*L$8))/2000*1000000","v":11},{"$f":"(SUMPRODUCT(M$9:M$229,Nutrients!$EN$8:$EN$228)+(IF($A$7=Nutrients!$B$8,Nutrients!$EN$8,Nutrients!$EN$9)*M$7)+(((IF($A$8=Nutrients!$B$79,Nutrients!$EN$79,(IF($A$8=Nutrients!$B$77,Nutrients!$EN$77,Nutrients!$EN$78)))))*M$8))/2000*1000000","v":8.25},{"$f":"(SUMPRODUCT(N$9:N$229,Nutrients!$EN$8:$EN$228)+(IF($A$7=Nutrients!$B$8,Nutrients!$EN$8,Nutrients!$EN$9)*N$7)+(((IF($A$8=Nutrients!$B$79,Nutrients!$EN$79,(IF($A$8=Nutrients!$B$77,Nutrients!$EN$77,Nutrients!$EN$78)))))*N$8))/2000*1000000","v":8.25},null,{"$f":"(SUMPRODUCT(P$9:P$229,Nutrients!$EN$8:$EN$228)+(IF($A$7=Nutrients!$B$8,Nutrients!$EN$8,Nutrients!$EN$9)*P$7)+(((IF($A$8=Nutrients!$B$79,Nutrients!$EN$79,(IF($A$8=Nutrients!$B$77,Nutrients!$EN$77,Nutrients!$EN$78)))))*P$8))/2000*1000000","v":16.5},{"$f":"(SUMPRODUCT(Q$9:Q$229,Nutrients!$EN$8:$EN$228)+(IF($A$7=Nutrients!$B$8,Nutrients!$EN$8,Nutrients!$EN$9)*Q$7)+(((IF($A$8=Nutrients!$B$79,Nutrients!$EN$79,(IF($A$8=Nutrients!$B$77,Nutrients!$EN$77,Nutrients!$EN$78)))))*Q$8))/2000*1000000","v":16.5},{"$f":"(SUMPRODUCT(R$9:R$229,Nutrients!$EN$8:$EN$228)+(IF($A$7=Nutrients!$B$8,Nutrients!$EN$8,Nutrients!$EN$9)*R$7)+(((IF($A$8=Nutrients!$B$79,Nutrients!$EN$79,(IF($A$8=Nutrients!$B$77,Nutrients!$EN$77,Nutrients!$EN$78)))))*R$8))/2000*1000000","v":13.749999999999998},{"$f":"(SUMPRODUCT(S$9:S$229,Nutrients!$EN$8:$EN$228)+(IF($A$7=Nutrients!$B$8,Nutrients!$EN$8,Nutrients!$EN$9)*S$7)+(((IF($A$8=Nutrients!$B$79,Nutrients!$EN$79,(IF($A$8=Nutrients!$B$77,Nutrients!$EN$77,Nutrients!$EN$78)))))*S$8))/2000*1000000","v":11},{"$f":"(SUMPRODUCT(T$9:T$229,Nutrients!$EN$8:$EN$228)+(IF($A$7=Nutrients!$B$8,Nutrients!$EN$8,Nutrients!$EN$9)*T$7)+(((IF($A$8=Nutrients!$B$79,Nutrients!$EN$79,(IF($A$8=Nutrients!$B$77,Nutrients!$EN$77,Nutrients!$EN$78)))))*T$8))/2000*1000000","v":8.25},{"$f":"(SUMPRODUCT(U$9:U$229,Nutrients!$EN$8:$EN$228)+(IF($A$7=Nutrients!$B$8,Nutrients!$EN$8,Nutrients!$EN$9)*U$7)+(((IF($A$8=Nutrients!$B$79,Nutrients!$EN$79,(IF($A$8=Nutrients!$B$77,Nutrients!$EN$77,Nutrients!$EN$78)))))*U$8))/2000*1000000","v":8.25},null,{"$f":"(SUMPRODUCT(W$9:W$229,Nutrients!$EN$8:$EN$228)+(IF($A$7=Nutrients!$B$8,Nutrients!$EN$8,Nutrients!$EN$9)*W$7)+(((IF($A$8=Nutrients!$B$79,Nutrients!$EN$79,(IF($A$8=Nutrients!$B$77,Nutrients!$EN$77,Nutrients!$EN$78)))))*W$8))/2000*1000000","v":16.5},{"$f":"(SUMPRODUCT(X$9:X$229,Nutrients!$EN$8:$EN$228)+(IF($A$7=Nutrients!$B$8,Nutrients!$EN$8,Nutrients!$EN$9)*X$7)+(((IF($A$8=Nutrients!$B$79,Nutrients!$EN$79,(IF($A$8=Nutrients!$B$77,Nutrients!$EN$77,Nutrients!$EN$78)))))*X$8))/2000*1000000","v":16.5},{"$f":"(SUMPRODUCT(Y$9:Y$229,Nutrients!$EN$8:$EN$228)+(IF($A$7=Nutrients!$B$8,Nutrients!$EN$8,Nutrients!$EN$9)*Y$7)+(((IF($A$8=Nutrients!$B$79,Nutrients!$EN$79,(IF($A$8=Nutrients!$B$77,Nutrients!$EN$77,Nutrients!$EN$78)))))*Y$8))/2000*1000000","v":13.749999999999998},{"$f":"(SUMPRODUCT(Z$9:Z$229,Nutrients!$EN$8:$EN$228)+(IF($A$7=Nutrients!$B$8,Nutrients!$EN$8,Nutrients!$EN$9)*Z$7)+(((IF($A$8=Nutrients!$B$79,Nutrients!$EN$79,(IF($A$8=Nutrients!$B$77,Nutrients!$EN$77,Nutrients!$EN$78)))))*Z$8))/2000*1000000","v":11},{"$f":"(SUMPRODUCT(AA$9:AA$229,Nutrients!$EN$8:$EN$228)+(IF($A$7=Nutrients!$B$8,Nutrients!$EN$8,Nutrients!$EN$9)*AA$7)+(((IF($A$8=Nutrients!$B$79,Nutrients!$EN$79,(IF($A$8=Nutrients!$B$77,Nutrients!$EN$77,Nutrients!$EN$78)))))*AA$8))/2000*1000000","v":8.25},{"$f":"(SUMPRODUCT(AB$9:AB$229,Nutrients!$EN$8:$EN$228)+(IF($A$7=Nutrients!$B$8,Nutrients!$EN$8,Nutrients!$EN$9)*AB$7)+(((IF($A$8=Nutrients!$B$79,Nutrients!$EN$79,(IF($A$8=Nutrients!$B$77,Nutrients!$EN$77,Nutrients!$EN$78)))))*AB$8))/2000*1000000","v":8.25},null,{"$f":"(SUMPRODUCT(AD$9:AD$229,Nutrients!$EN$8:$EN$228)+(IF($A$7=Nutrients!$B$8,Nutrients!$EN$8,Nutrients!$EN$9)*AD$7)+(((IF($A$8=Nutrients!$B$79,Nutrients!$EN$79,(IF($A$8=Nutrients!$B$77,Nutrients!$EN$77,Nutrients!$EN$78)))))*AD$8))/2000*1000000","v":16.5},{"$f":"(SUMPRODUCT(AE$9:AE$229,Nutrients!$EN$8:$EN$228)+(IF($A$7=Nutrients!$B$8,Nutrients!$EN$8,Nutrients!$EN$9)*AE$7)+(((IF($A$8=Nutrients!$B$79,Nutrients!$EN$79,(IF($A$8=Nutrients!$B$77,Nutrients!$EN$77,Nutrients!$EN$78)))))*AE$8))/2000*1000000","v":16.5},{"$f":"(SUMPRODUCT(AF$9:AF$229,Nutrients!$EN$8:$EN$228)+(IF($A$7=Nutrients!$B$8,Nutrients!$EN$8,Nutrients!$EN$9)*AF$7)+(((IF($A$8=Nutrients!$B$79,Nutrients!$EN$79,(IF($A$8=Nutrients!$B$77,Nutrients!$EN$77,Nutrients!$EN$78)))))*AF$8))/2000*1000000","v":13.749999999999998},{"$f":"(SUMPRODUCT(AG$9:AG$229,Nutrients!$EN$8:$EN$228)+(IF($A$7=Nutrients!$B$8,Nutrients!$EN$8,Nutrients!$EN$9)*AG$7)+(((IF($A$8=Nutrients!$B$79,Nutrients!$EN$79,(IF($A$8=Nutrients!$B$77,Nutrients!$EN$77,Nutrients!$EN$78)))))*AG$8))/2000*1000000","v":11},{"$f":"(SUMPRODUCT(AH$9:AH$229,Nutrients!$EN$8:$EN$228)+(IF($A$7=Nutrients!$B$8,Nutrients!$EN$8,Nutrients!$EN$9)*AH$7)+(((IF($A$8=Nutrients!$B$79,Nutrients!$EN$79,(IF($A$8=Nutrients!$B$77,Nutrients!$EN$77,Nutrients!$EN$78)))))*AH$8))/2000*1000000","v":8.25},{"$f":"(SUMPRODUCT(AI$9:AI$229,Nutrients!$EN$8:$EN$228)+(IF($A$7=Nutrients!$B$8,Nutrients!$EN$8,Nutrients!$EN$9)*AI$7)+(((IF($A$8=Nutrients!$B$79,Nutrients!$EN$79,(IF($A$8=Nutrients!$B$77,Nutrients!$EN$77,Nutrients!$EN$78)))))*AI$8))/2000*1000000","v":8.25},null,{"$f":"(SUMPRODUCT(AK$9:AK$229,Nutrients!$EN$8:$EN$228)+(IF($A$7=Nutrients!$B$8,Nutrients!$EN$8,Nutrients!$EN$9)*AK$7)+(((IF($A$8=Nutrients!$B$79,Nutrients!$EN$79,(IF($A$8=Nutrients!$B$77,Nutrients!$EN$77,Nutrients!$EN$78)))))*AK$8))/2000*1000000","v":16.5},{"$f":"(SUMPRODUCT(AL$9:AL$229,Nutrients!$EN$8:$EN$228)+(IF($A$7=Nutrients!$B$8,Nutrients!$EN$8,Nutrients!$EN$9)*AL$7)+(((IF($A$8=Nutrients!$B$79,Nutrients!$EN$79,(IF($A$8=Nutrients!$B$77,Nutrients!$EN$77,Nutrients!$EN$78)))))*AL$8))/2000*1000000","v":16.5},{"$f":"(SUMPRODUCT(AM$9:AM$229,Nutrients!$EN$8:$EN$228)+(IF($A$7=Nutrients!$B$8,Nutrients!$EN$8,Nutrients!$EN$9)*AM$7)+(((IF($A$8=Nutrients!$B$79,Nutrients!$EN$79,(IF($A$8=Nutrients!$B$77,Nutrients!$EN$77,Nutrients!$EN$78)))))*AM$8))/2000*1000000","v":13.749999999999998},{"$f":"(SUMPRODUCT(AN$9:AN$229,Nutrients!$EN$8:$EN$228)+(IF($A$7=Nutrients!$B$8,Nutrients!$EN$8,Nutrients!$EN$9)*AN$7)+(((IF($A$8=Nutrients!$B$79,Nutrients!$EN$79,(IF($A$8=Nutrients!$B$77,Nutrients!$EN$77,Nutrients!$EN$78)))))*AN$8))/2000*1000000","v":11},{"$f":"(SUMPRODUCT(AO$9:AO$229,Nutrients!$EN$8:$EN$228)+(IF($A$7=Nutrients!$B$8,Nutrients!$EN$8,Nutrients!$EN$9)*AO$7)+(((IF($A$8=Nutrients!$B$79,Nutrients!$EN$79,(IF($A$8=Nutrients!$B$77,Nutrients!$EN$77,Nutrients!$EN$78)))))*AO$8))/2000*1000000","v":8.25},{"$f":"(SUMPRODUCT(AP$9:AP$229,Nutrients!$EN$8:$EN$228)+(IF($A$7=Nutrients!$B$8,Nutrients!$EN$8,Nutrients!$EN$9)*AP$7)+(((IF($A$8=Nutrients!$B$79,Nutrients!$EN$79,(IF($A$8=Nutrients!$B$77,Nutrients!$EN$77,Nutrients!$EN$78)))))*AP$8))/2000*1000000","v":8.25},null,{"$f":"(SUMPRODUCT(AR$9:AR$229,Nutrients!$EN$8:$EN$228)+(IF($A$7=Nutrients!$B$8,Nutrients!$EN$8,Nutrients!$EN$9)*AR$7)+(((IF($A$8=Nutrients!$B$79,Nutrients!$EN$79,(IF($A$8=Nutrients!$B$77,Nutrients!$EN$77,Nutrients!$EN$78)))))*AR$8))/2000*1000000","v":16.5},{"$f":"(SUMPRODUCT(AS$9:AS$229,Nutrients!$EN$8:$EN$228)+(IF($A$7=Nutrients!$B$8,Nutrients!$EN$8,Nutrients!$EN$9)*AS$7)+(((IF($A$8=Nutrients!$B$79,Nutrients!$EN$79,(IF($A$8=Nutrients!$B$77,Nutrients!$EN$77,Nutrients!$EN$78)))))*AS$8))/2000*1000000","v":16.5},{"$f":"(SUMPRODUCT(AT$9:AT$229,Nutrients!$EN$8:$EN$228)+(IF($A$7=Nutrients!$B$8,Nutrients!$EN$8,Nutrients!$EN$9)*AT$7)+(((IF($A$8=Nutrients!$B$79,Nutrients!$EN$79,(IF($A$8=Nutrients!$B$77,Nutrients!$EN$77,Nutrients!$EN$78)))))*AT$8))/2000*1000000","v":13.749999999999998},{"$f":"(SUMPRODUCT(AU$9:AU$229,Nutrients!$EN$8:$EN$228)+(IF($A$7=Nutrients!$B$8,Nutrients!$EN$8,Nutrients!$EN$9)*AU$7)+(((IF($A$8=Nutrients!$B$79,Nutrients!$EN$79,(IF($A$8=Nutrients!$B$77,Nutrients!$EN$77,Nutrients!$EN$78)))))*AU$8))/2000*1000000","v":11},{"$f":"(SUMPRODUCT(AV$9:AV$229,Nutrients!$EN$8:$EN$228)+(IF($A$7=Nutrients!$B$8,Nutrients!$EN$8,Nutrients!$EN$9)*AV$7)+(((IF($A$8=Nutrients!$B$79,Nutrients!$EN$79,(IF($A$8=Nutrients!$B$77,Nutrients!$EN$77,Nutrients!$EN$78)))))*AV$8))/2000*1000000","v":8.25},{"$f":"(SUMPRODUCT(AW$9:AW$229,Nutrients!$EN$8:$EN$228)+(IF($A$7=Nutrients!$B$8,Nutrients!$EN$8,Nutrients!$EN$9)*AW$7)+(((IF($A$8=Nutrients!$B$79,Nutrients!$EN$79,(IF($A$8=Nutrients!$B$77,Nutrients!$EN$77,Nutrients!$EN$78)))))*AW$8))/2000*1000000","v":8.25}]
["  Iodine added, ppm",{"$f":"(SUMPRODUCT(B$9:B$229,Nutrients!$EO$8:$EO$228)+(IF($A$7=Nutrients!$B$8,Nutrients!$EO$8,Nutrients!$EO$9)*B$7)+(((IF($A$8=Nutrients!$B$79,Nutrients!$EO$79,(IF($A$8=Nutrients!$B$77,Nutrients!$EO$77,Nutrients!$EO$78)))))*B$8))/2000*1000000","v":0.29699999999999999},{"$f":"(SUMPRODUCT(C$9:C$229,Nutrients!$EO$8:$EO$228)+(IF($A$7=Nutrients!$B$8,Nutrients!$EO$8,Nutrients!$EO$9)*C$7)+(((IF($A$8=Nutrients!$B$79,Nutrients!$EO$79,(IF($A$8=Nutrients!$B$77,Nutrients!$EO$77,Nutrients!$EO$78)))))*C$8))/2000*1000000","v":0.29699999999999999},{"$f":"(SUMPRODUCT(D$9:D$229,Nutrients!$EO$8:$EO$228)+(IF($A$7=Nutrients!$B$8,Nutrients!$EO$8,Nutrients!$EO$9)*D$7)+(((IF($A$8=Nutrients!$B$79,Nutrients!$EO$79,(IF($A$8=Nutrients!$B$77,Nutrients!$EO$77,Nutrients!$EO$78)))))*D$8))/2000*1000000","v":0.24750000000000003},{"$f":"(SUMPRODUCT(E$9:E$229,Nutrients!$EO$8:$EO$228)+(IF($A$7=Nutrients!$B$8,Nutrients!$EO$8,Nutrients!$EO$9)*E$7)+(((IF($A$8=Nutrients!$B$79,Nutrients!$EO$79,(IF($A$8=Nutrients!$B$77,Nutrients!$EO$77,Nutrients!$EO$78)))))*E$8))/2000*1000000","v":0.19800000000000001},{"$f":"(SUMPRODUCT(F$9:F$229,Nutrients!$EO$8:$EO$228)+(IF($A$7=Nutrients!$B$8,Nutrients!$EO$8,Nutrients!$EO$9)*F$7)+(((IF($A$8=Nutrients!$B$79,Nutrients!$EO$79,(IF($A$8=Nutrients!$B$77,Nutrients!$EO$77,Nutrients!$EO$78)))))*F$8))/2000*1000000","v":0.14849999999999999},{"$f":"(SUMPRODUCT(G$9:G$229,Nutrients!$EO$8:$EO$228)+(IF($A$7=Nutrients!$B$8,Nutrients!$EO$8,Nutrients!$EO$9)*G$7)+(((IF($A$8=Nutrients!$B$79,Nutrients!$EO$79,(IF($A$8=Nutrients!$B$77,Nutrients!$EO$77,Nutrients!$EO$78)))))*G$8))/2000*1000000","v":0.14849999999999999},null,{"$f":"(SUMPRODUCT(I$9:I$229,Nutrients!$EO$8:$EO$228)+(IF($A$7=Nutrients!$B$8,Nutrients!$EO$8,Nutrients!$EO$9)*I$7)+(((IF($A$8=Nutrients!$B$79,Nutrients!$EO$79,(IF($A$8=Nutrients!$B$77,Nutrients!$EO$77,Nutrients!$EO$78)))))*I$8))/2000*1000000","v":0.29699999999999999},{"$f":"(SUMPRODUCT(J$9:J$229,Nutrients!$EO$8:$EO$228)+(IF($A$7=Nutrients!$B$8,Nutrients!$EO$8,Nutrients!$EO$9)*J$7)+(((IF($A$8=Nutrients!$B$79,Nutrients!$EO$79,(IF($A$8=Nutrients!$B$77,Nutrients!$EO$77,Nutrients!$EO$78)))))*J$8))/2000*1000000","v":0.29699999999999999},{"$f":"(SUMPRODUCT(K$9:K$229,Nutrients!$EO$8:$EO$228)+(IF($A$7=Nutrients!$B$8,Nutrients!$EO$8,Nutrients!$EO$9)*K$7)+(((IF($A$8=Nutrients!$B$79,Nutrients!$EO$79,(IF($A$8=Nutrients!$B$77,Nutrients!$EO$77,Nutrients!$EO$78)))))*K$8))/2000*1000000","v":0.24750000000000003},{"$f":"(SUMPRODUCT(L$9:L$229,Nutrients!$EO$8:$EO$228)+(IF($A$7=Nutrients!$B$8,Nutrients!$EO$8,Nutrients!$EO$9)*L$7)+(((IF($A$8=Nutrients!$B$79,Nutrients!$EO$79,(IF($A$8=Nutrients!$B$77,Nutrients!$EO$77,Nutrients!$EO$78)))))*L$8))/2000*1000000","v":0.19800000000000001},{"$f":"(SUMPRODUCT(M$9:M$229,Nutrients!$EO$8:$EO$228)+(IF($A$7=Nutrients!$B$8,Nutrients!$EO$8,Nutrients!$EO$9)*M$7)+(((IF($A$8=Nutrients!$B$79,Nutrients!$EO$79,(IF($A$8=Nutrients!$B$77,Nutrients!$EO$77,Nutrients!$EO$78)))))*M$8))/2000*1000000","v":0.14849999999999999},{"$f":"(SUMPRODUCT(N$9:N$229,Nutrients!$EO$8:$EO$228)+(IF($A$7=Nutrients!$B$8,Nutrients!$EO$8,Nutrients!$EO$9)*N$7)+(((IF($A$8=Nutrients!$B$79,Nutrients!$EO$79,(IF($A$8=Nutrients!$B$77,Nutrients!$EO$77,Nutrients!$EO$78)))))*N$8))/2000*1000000","v":0.14849999999999999},null,{"$f":"(SUMPRODUCT(P$9:P$229,Nutrients!$EO$8:$EO$228)+(IF($A$7=Nutrients!$B$8,Nutrients!$EO$8,Nutrients!$EO$9)*P$7)+(((IF($A$8=Nutrients!$B$79,Nutrients!$EO$79,(IF($A$8=Nutrients!$B$77,Nutrients!$EO$77,Nutrients!$EO$78)))))*P$8))/2000*1000000","v":0.29699999999999999},{"$f":"(SUMPRODUCT(Q$9:Q$229,Nutrients!$EO$8:$EO$228)+(IF($A$7=Nutrients!$B$8,Nutrients!$EO$8,Nutrients!$EO$9)*Q$7)+(((IF($A$8=Nutrients!$B$79,Nutrients!$EO$79,(IF($A$8=Nutrients!$B$77,Nutrients!$EO$77,Nutrients!$EO$78)))))*Q$8))/2000*1000000","v":0.29699999999999999},{"$f":"(SUMPRODUCT(R$9:R$229,Nutrients!$EO$8:$EO$228)+(IF($A$7=Nutrients!$B$8,Nutrients!$EO$8,Nutrients!$EO$9)*R$7)+(((IF($A$8=Nutrients!$B$79,Nutrients!$EO$79,(IF($A$8=Nutrients!$B$77,Nutrients!$EO$77,Nutrients!$EO$78)))))*R$8))/2000*1000000","v":0.24750000000000003},{"$f":"(SUMPRODUCT(S$9:S$229,Nutrients!$EO$8:$EO$228)+(IF($A$7=Nutrients!$B$8,Nutrients!$EO$8,Nutrients!$EO$9)*S$7)+(((IF($A$8=Nutrients!$B$79,Nutrients!$EO$79,(IF($A$8=Nutrients!$B$77,Nutrients!$EO$77,Nutrients!$EO$78)))))*S$8))/2000*1000000","v":0.19800000000000001},{"$f":"(SUMPRODUCT(T$9:T$229,Nutrients!$EO$8:$EO$228)+(IF($A$7=Nutrients!$B$8,Nutrients!$EO$8,Nutrients!$EO$9)*T$7)+(((IF($A$8=Nutrients!$B$79,Nutrients!$EO$79,(IF($A$8=Nutrients!$B$77,Nutrients!$EO$77,Nutrients!$EO$78)))))*T$8))/2000*1000000","v":0.14849999999999999},{"$f":"(SUMPRODUCT(U$9:U$229,Nutrients!$EO$8:$EO$228)+(IF($A$7=Nutrients!$B$8,Nutrients!$EO$8,Nutrients!$EO$9)*U$7)+(((IF($A$8=Nutrients!$B$79,Nutrients!$EO$79,(IF($A$8=Nutrients!$B$77,Nutrients!$EO$77,Nutrients!$EO$78)))))*U$8))/2000*1000000","v":0.14849999999999999},null,{"$f":"(SUMPRODUCT(W$9:W$229,Nutrients!$EO$8:$EO$228)+(IF($A$7=Nutrients!$B$8,Nutrients!$EO$8,Nutrients!$EO$9)*W$7)+(((IF($A$8=Nutrients!$B$79,Nutrients!$EO$79,(IF($A$8=Nutrients!$B$77,Nutrients!$EO$77,Nutrients!$EO$78)))))*W$8))/2000*1000000","v":0.29699999999999999},{"$f":"(SUMPRODUCT(X$9:X$229,Nutrients!$EO$8:$EO$228)+(IF($A$7=Nutrients!$B$8,Nutrients!$EO$8,Nutrients!$EO$9)*X$7)+(((IF($A$8=Nutrients!$B$79,Nutrients!$EO$79,(IF($A$8=Nutrients!$B$77,Nutrients!$EO$77,Nutrients!$EO$78)))))*X$8))/2000*1000000","v":0.29699999999999999},{"$f":"(SUMPRODUCT(Y$9:Y$229,Nutrients!$EO$8:$EO$228)+(IF($A$7=Nutrients!$B$8,Nutrients!$EO$8,Nutrients!$EO$9)*Y$7)+(((IF($A$8=Nutrients!$B$79,Nutrients!$EO$79,(IF($A$8=Nutrients!$B$77,Nutrients!$EO$77,Nutrients!$EO$78)))))*Y$8))/2000*1000000","v":0.24750000000000003},{"$f":"(SUMPRODUCT(Z$9:Z$229,Nutrients!$EO$8:$EO$228)+(IF($A$7=Nutrients!$B$8,Nutrients!$EO$8,Nutrients!$EO$9)*Z$7)+(((IF($A$8=Nutrients!$B$79,Nutrients!$EO$79,(IF($A$8=Nutrients!$B$77,Nutrients!$EO$77,Nutrients!$EO$78)))))*Z$8))/2000*1000000","v":0.19800000000000001},{"$f":"(SUMPRODUCT(AA$9:AA$229,Nutrients!$EO$8:$EO$228)+(IF($A$7=Nutrients!$B$8,Nutrients!$EO$8,Nutrients!$EO$9)*AA$7)+(((IF($A$8=Nutrients!$B$79,Nutrients!$EO$79,(IF($A$8=Nutrients!$B$77,Nutrients!$EO$77,Nutrients!$EO$78)))))*AA$8))/2000*1000000","v":0.14849999999999999},{"$f":"(SUMPRODUCT(AB$9:AB$229,Nutrients!$EO$8:$EO$228)+(IF($A$7=Nutrients!$B$8,Nutrients!$EO$8,Nutrients!$EO$9)*AB$7)+(((IF($A$8=Nutrients!$B$79,Nutrients!$EO$79,(IF($A$8=Nutrients!$B$77,Nutrients!$EO$77,Nutrients!$EO$78)))))*AB$8))/2000*1000000","v":0.14849999999999999},null,{"$f":"(SUMPRODUCT(AD$9:AD$229,Nutrients!$EO$8:$EO$228)+(IF($A$7=Nutrients!$B$8,Nutrients!$EO$8,Nutrients!$EO$9)*AD$7)+(((IF($A$8=Nutrients!$B$79,Nutrients!$EO$79,(IF($A$8=Nutrients!$B$77,Nutrients!$EO$77,Nutrients!$EO$78)))))*AD$8))/2000*1000000","v":0.29699999999999999},{"$f":"(SUMPRODUCT(AE$9:AE$229,Nutrients!$EO$8:$EO$228)+(IF($A$7=Nutrients!$B$8,Nutrients!$EO$8,Nutrients!$EO$9)*AE$7)+(((IF($A$8=Nutrients!$B$79,Nutrients!$EO$79,(IF($A$8=Nutrients!$B$77,Nutrients!$EO$77,Nutrients!$EO$78)))))*AE$8))/2000*1000000","v":0.29699999999999999},{"$f":"(SUMPRODUCT(AF$9:AF$229,Nutrients!$EO$8:$EO$228)+(IF($A$7=Nutrients!$B$8,Nutrients!$EO$8,Nutrients!$EO$9)*AF$7)+(((IF($A$8=Nutrients!$B$79,Nutrients!$EO$79,(IF($A$8=Nutrients!$B$77,Nutrients!$EO$77,Nutrients!$EO$78)))))*AF$8))/2000*1000000","v":0.24750000000000003},{"$f":"(SUMPRODUCT(AG$9:AG$229,Nutrients!$EO$8:$EO$228)+(IF($A$7=Nutrients!$B$8,Nutrients!$EO$8,Nutrients!$EO$9)*AG$7)+(((IF($A$8=Nutrients!$B$79,Nutrients!$EO$79,(IF($A$8=Nutrients!$B$77,Nutrients!$EO$77,Nutrients!$EO$78)))))*AG$8))/2000*1000000","v":0.19800000000000001},{"$f":"(SUMPRODUCT(AH$9:AH$229,Nutrients!$EO$8:$EO$228)+(IF($A$7=Nutrients!$B$8,Nutrients!$EO$8,Nutrients!$EO$9)*AH$7)+(((IF($A$8=Nutrients!$B$79,Nutrients!$EO$79,(IF($A$8=Nutrients!$B$77,Nutrients!$EO$77,Nutrients!$EO$78)))))*AH$8))/2000*1000000","v":0.14849999999999999},{"$f":"(SUMPRODUCT(AI$9:AI$229,Nutrients!$EO$8:$EO$228)+(IF($A$7=Nutrients!$B$8,Nutrients!$EO$8,Nutrients!$EO$9)*AI$7)+(((IF($A$8=Nutrients!$B$79,Nutrients!$EO$79,(IF($A$8=Nutrients!$B$77,Nutrients!$EO$77,Nutrients!$EO$78)))))*AI$8))/2000*1000000","v":0.14849999999999999},null,{"$f":"(SUMPRODUCT(AK$9:AK$229,Nutrients!$EO$8:$EO$228)+(IF($A$7=Nutrients!$B$8,Nutrients!$EO$8,Nutrients!$EO$9)*AK$7)+(((IF($A$8=Nutrients!$B$79,Nutrients!$EO$79,(IF($A$8=Nutrients!$B$77,Nutrients!$EO$77,Nutrients!$EO$78)))))*AK$8))/2000*1000000","v":0.29699999999999999},{"$f":"(SUMPRODUCT(AL$9:AL$229,Nutrients!$EO$8:$EO$228)+(IF($A$7=Nutrients!$B$8,Nutrients!$EO$8,Nutrients!$EO$9)*AL$7)+(((IF($A$8=Nutrients!$B$79,Nutrients!$EO$79,(IF($A$8=Nutrients!$B$77,Nutrients!$EO$77,Nutrients!$EO$78)))))*AL$8))/2000*1000000","v":0.29699999999999999},{"$f":"(SUMPRODUCT(AM$9:AM$229,Nutrients!$EO$8:$EO$228)+(IF($A$7=Nutrients!$B$8,Nutrients!$EO$8,Nutrients!$EO$9)*AM$7)+(((IF($A$8=Nutrients!$B$79,Nutrients!$EO$79,(IF($A$8=Nutrients!$B$77,Nutrients!$EO$77,Nutrients!$EO$78)))))*AM$8))/2000*1000000","v":0.24750000000000003},{"$f":"(SUMPRODUCT(AN$9:AN$229,Nutrients!$EO$8:$EO$228)+(IF($A$7=Nutrients!$B$8,Nutrients!$EO$8,Nutrients!$EO$9)*AN$7)+(((IF($A$8=Nutrients!$B$79,Nutrients!$EO$79,(IF($A$8=Nutrients!$B$77,Nutrients!$EO$77,Nutrients!$EO$78)))))*AN$8))/2000*1000000","v":0.19800000000000001},{"$f":"(SUMPRODUCT(AO$9:AO$229,Nutrients!$EO$8:$EO$228)+(IF($A$7=Nutrients!$B$8,Nutrients!$EO$8,Nutrients!$EO$9)*AO$7)+(((IF($A$8=Nutrients!$B$79,Nutrients!$EO$79,(IF($A$8=Nutrients!$B$77,Nutrients!$EO$77,Nutrients!$EO$78)))))*AO$8))/2000*1000000","v":0.14849999999999999},{"$f":"(SUMPRODUCT(AP$9:AP$229,Nutrients!$EO$8:$EO$228)+(IF($A$7=Nutrients!$B$8,Nutrients!$EO$8,Nutrients!$EO$9)*AP$7)+(((IF($A$8=Nutrients!$B$79,Nutrients!$EO$79,(IF($A$8=Nutrients!$B$77,Nutrients!$EO$77,Nutrients!$EO$78)))))*AP$8))/2000*1000000","v":0.14849999999999999},null,{"$f":"(SUMPRODUCT(AR$9:AR$229,Nutrients!$EO$8:$EO$228)+(IF($A$7=Nutrients!$B$8,Nutrients!$EO$8,Nutrients!$EO$9)*AR$7)+(((IF($A$8=Nutrients!$B$79,Nutrients!$EO$79,(IF($A$8=Nutrients!$B$77,Nutrients!$EO$77,Nutrients!$EO$78)))))*AR$8))/2000*1000000","v":0.29699999999999999},{"$f":"(SUMPRODUCT(AS$9:AS$229,Nutrients!$EO$8:$EO$228)+(IF($A$7=Nutrients!$B$8,Nutrients!$EO$8,Nutrients!$EO$9)*AS$7)+(((IF($A$8=Nutrients!$B$79,Nutrients!$EO$79,(IF($A$8=Nutrients!$B$77,Nutrients!$EO$77,Nutrients!$EO$78)))))*AS$8))/2000*1000000","v":0.29699999999999999},{"$f":"(SUMPRODUCT(AT$9:AT$229,Nutrients!$EO$8:$EO$228)+(IF($A$7=Nutrients!$B$8,Nutrients!$EO$8,Nutrients!$EO$9)*AT$7)+(((IF($A$8=Nutrients!$B$79,Nutrients!$EO$79,(IF($A$8=Nutrients!$B$77,Nutrients!$EO$77,Nutrients!$EO$78)))))*AT$8))/2000*1000000","v":0.24750000000000003},{"$f":"(SUMPRODUCT(AU$9:AU$229,Nutrients!$EO$8:$EO$228)+(IF($A$7=Nutrients!$B$8,Nutrients!$EO$8,Nutrients!$EO$9)*AU$7)+(((IF($A$8=Nutrients!$B$79,Nutrients!$EO$79,(IF($A$8=Nutrients!$B$77,Nutrients!$EO$77,Nutrients!$EO$78)))))*AU$8))/2000*1000000","v":0.19800000000000001},{"$f":"(SUMPRODUCT(AV$9:AV$229,Nutrients!$EO$8:$EO$228)+(IF($A$7=Nutrients!$B$8,Nutrients!$EO$8,Nutrients!$EO$9)*AV$7)+(((IF($A$8=Nutrients!$B$79,Nutrients!$EO$79,(IF($A$8=Nutrients!$B$77,Nutrients!$EO$77,Nutrients!$EO$78)))))*AV$8))/2000*1000000","v":0.14849999999999999},{"$f":"(SUMPRODUCT(AW$9:AW$229,Nutrients!$EO$8:$EO$228)+(IF($A$7=Nutrients!$B$8,Nutrients!$EO$8,Nutrients!$EO$9)*AW$7)+(((IF($A$8=Nutrients!$B$79,Nutrients!$EO$79,(IF($A$8=Nutrients!$B$77,Nutrients!$EO$77,Nutrients!$EO$78)))))*AW$8))/2000*1000000","v":0.14849999999999999}]
["  Selenium added, ppm",{"$f":"(SUMPRODUCT(B$9:B$229,Nutrients!$EP$8:$EP$228)+(IF($A$7=Nutrients!$B$8,Nutrients!$EP$8,Nutrients!$EP$9)*B$7)+(((IF($A$8=Nutrients!$B$79,Nutrients!$EP$79,(IF($A$8=Nutrients!$B$77,Nutrients!$EP$77,Nutrients!$EP$78)))))*B$8))/2000*1000000","v":0.29699999999999999},{"$f":"(SUMPRODUCT(C$9:C$229,Nutrients!$EP$8:$EP$228)+(IF($A$7=Nutrients!$B$8,Nutrients!$EP$8,Nutrients!$EP$9)*C$7)+(((IF($A$8=Nutrients!$B$79,Nutrients!$EP$79,(IF($A$8=Nutrients!$B$77,Nutrients!$EP$77,Nutrients!$EP$78)))))*C$8))/2000*1000000","v":0.29699999999999999},{"$f":"(SUMPRODUCT(D$9:D$229,Nutrients!$EP$8:$EP$228)+(IF($A$7=Nutrients!$B$8,Nutrients!$EP$8,Nutrients!$EP$9)*D$7)+(((IF($A$8=Nutrients!$B$79,Nutrients!$EP$79,(IF($A$8=Nutrients!$B$77,Nutrients!$EP$77,Nutrients!$EP$78)))))*D$8))/2000*1000000","v":0.24750000000000003},{"$f":"(SUMPRODUCT(E$9:E$229,Nutrients!$EP$8:$EP$228)+(IF($A$7=Nutrients!$B$8,Nutrients!$EP$8,Nutrients!$EP$9)*E$7)+(((IF($A$8=Nutrients!$B$79,Nutrients!$EP$79,(IF($A$8=Nutrients!$B$77,Nutrients!$EP$77,Nutrients!$EP$78)))))*E$8))/2000*1000000","v":0.19800000000000001},{"$f":"(SUMPRODUCT(F$9:F$229,Nutrients!$EP$8:$EP$228)+(IF($A$7=Nutrients!$B$8,Nutrients!$EP$8,Nutrients!$EP$9)*F$7)+(((IF($A$8=Nutrients!$B$79,Nutrients!$EP$79,(IF($A$8=Nutrients!$B$77,Nutrients!$EP$77,Nutrients!$EP$78)))))*F$8))/2000*1000000","v":0.14849999999999999},{"$f":"(SUMPRODUCT(G$9:G$229,Nutrients!$EP$8:$EP$228)+(IF($A$7=Nutrients!$B$8,Nutrients!$EP$8,Nutrients!$EP$9)*G$7)+(((IF($A$8=Nutrients!$B$79,Nutrients!$EP$79,(IF($A$8=Nutrients!$B$77,Nutrients!$EP$77,Nutrients!$EP$78)))))*G$8))/2000*1000000","v":0.14849999999999999},null,{"$f":"(SUMPRODUCT(I$9:I$229,Nutrients!$EP$8:$EP$228)+(IF($A$7=Nutrients!$B$8,Nutrients!$EP$8,Nutrients!$EP$9)*I$7)+(((IF($A$8=Nutrients!$B$79,Nutrients!$EP$79,(IF($A$8=Nutrients!$B$77,Nutrients!$EP$77,Nutrients!$EP$78)))))*I$8))/2000*1000000","v":0.29699999999999999},{"$f":"(SUMPRODUCT(J$9:J$229,Nutrients!$EP$8:$EP$228)+(IF($A$7=Nutrients!$B$8,Nutrients!$EP$8,Nutrients!$EP$9)*J$7)+(((IF($A$8=Nutrients!$B$79,Nutrients!$EP$79,(IF($A$8=Nutrients!$B$77,Nutrients!$EP$77,Nutrients!$EP$78)))))*J$8))/2000*1000000","v":0.29699999999999999},{"$f":"(SUMPRODUCT(K$9:K$229,Nutrients!$EP$8:$EP$228)+(IF($A$7=Nutrients!$B$8,Nutrients!$EP$8,Nutrients!$EP$9)*K$7)+(((IF($A$8=Nutrients!$B$79,Nutrients!$EP$79,(IF($A$8=Nutrients!$B$77,Nutrients!$EP$77,Nutrients!$EP$78)))))*K$8))/2000*1000000","v":0.24750000000000003},{"$f":"(SUMPRODUCT(L$9:L$229,Nutrients!$EP$8:$EP$228)+(IF($A$7=Nutrients!$B$8,Nutrients!$EP$8,Nutrients!$EP$9)*L$7)+(((IF($A$8=Nutrients!$B$79,Nutrients!$EP$79,(IF($A$8=Nutrients!$B$77,Nutrients!$EP$77,Nutrients!$EP$78)))))*L$8))/2000*1000000","v":0.19800000000000001},{"$f":"(SUMPRODUCT(M$9:M$229,Nutrients!$EP$8:$EP$228)+(IF($A$7=Nutrients!$B$8,Nutrients!$EP$8,Nutrients!$EP$9)*M$7)+(((IF($A$8=Nutrients!$B$79,Nutrients!$EP$79,(IF($A$8=Nutrients!$B$77,Nutrients!$EP$77,Nutrients!$EP$78)))))*M$8))/2000*1000000","v":0.14849999999999999},{"$f":"(SUMPRODUCT(N$9:N$229,Nutrients!$EP$8:$EP$228)+(IF($A$7=Nutrients!$B$8,Nutrients!$EP$8,Nutrients!$EP$9)*N$7)+(((IF($A$8=Nutrients!$B$79,Nutrients!$EP$79,(IF($A$8=Nutrients!$B$77,Nutrients!$EP$77,Nutrients!$EP$78)))))*N$8))/2000*1000000","v":0.14849999999999999},null,{"$f":"(SUMPRODUCT(P$9:P$229,Nutrients!$EP$8:$EP$228)+(IF($A$7=Nutrients!$B$8,Nutrients!$EP$8,Nutrients!$EP$9)*P$7)+(((IF($A$8=Nutrients!$B$79,Nutrients!$EP$79,(IF($A$8=Nutrients!$B$77,Nutrients!$EP$77,Nutrients!$EP$78)))))*P$8))/2000*1000000","v":0.29699999999999999},{"$f":"(SUMPRODUCT(Q$9:Q$229,Nutrients!$EP$8:$EP$228)+(IF($A$7=Nutrients!$B$8,Nutrients!$EP$8,Nutrients!$EP$9)*Q$7)+(((IF($A$8=Nutrients!$B$79,Nutrients!$EP$79,(IF($A$8=Nutrients!$B$77,Nutrients!$EP$77,Nutrients!$EP$78)))))*Q$8))/2000*1000000","v":0.29699999999999999},{"$f":"(SUMPRODUCT(R$9:R$229,Nutrients!$EP$8:$EP$228)+(IF($A$7=Nutrients!$B$8,Nutrients!$EP$8,Nutrients!$EP$9)*R$7)+(((IF($A$8=Nutrients!$B$79,Nutrients!$EP$79,(IF($A$8=Nutrients!$B$77,Nutrients!$EP$77,Nutrients!$EP$78)))))*R$8))/2000*1000000","v":0.24750000000000003},{"$f":"(SUMPRODUCT(S$9:S$229,Nutrients!$EP$8:$EP$228)+(IF($A$7=Nutrients!$B$8,Nutrients!$EP$8,Nutrients!$EP$9)*S$7)+(((IF($A$8=Nutrients!$B$79,Nutrients!$EP$79,(IF($A$8=Nutrients!$B$77,Nutrients!$EP$77,Nutrients!$EP$78)))))*S$8))/2000*1000000","v":0.19800000000000001},{"$f":"(SUMPRODUCT(T$9:T$229,Nutrients!$EP$8:$EP$228)+(IF($A$7=Nutrients!$B$8,Nutrients!$EP$8,Nutrients!$EP$9)*T$7)+(((IF($A$8=Nutrients!$B$79,Nutrients!$EP$79,(IF($A$8=Nutrients!$B$77,Nutrients!$EP$77,Nutrients!$EP$78)))))*T$8))/2000*1000000","v":0.14849999999999999},{"$f":"(SUMPRODUCT(U$9:U$229,Nutrients!$EP$8:$EP$228)+(IF($A$7=Nutrients!$B$8,Nutrients!$EP$8,Nutrients!$EP$9)*U$7)+(((IF($A$8=Nutrients!$B$79,Nutrients!$EP$79,(IF($A$8=Nutrients!$B$77,Nutrients!$EP$77,Nutrients!$EP$78)))))*U$8))/2000*1000000","v":0.14849999999999999},null,{"$f":"(SUMPRODUCT(W$9:W$229,Nutrients!$EP$8:$EP$228)+(IF($A$7=Nutrients!$B$8,Nutrients!$EP$8,Nutrients!$EP$9)*W$7)+(((IF($A$8=Nutrients!$B$79,Nutrients!$EP$79,(IF($A$8=Nutrients!$B$77,Nutrients!$EP$77,Nutrients!$EP$78)))))*W$8))/2000*1000000","v":0.29699999999999999},{"$f":"(SUMPRODUCT(X$9:X$229,Nutrients!$EP$8:$EP$228)+(IF($A$7=Nutrients!$B$8,Nutrients!$EP$8,Nutrients!$EP$9)*X$7)+(((IF($A$8=Nutrients!$B$79,Nutrients!$EP$79,(IF($A$8=Nutrients!$B$77,Nutrients!$EP$77,Nutrients!$EP$78)))))*X$8))/2000*1000000","v":0.29699999999999999},{"$f":"(SUMPRODUCT(Y$9:Y$229,Nutrients!$EP$8:$EP$228)+(IF($A$7=Nutrients!$B$8,Nutrients!$EP$8,Nutrients!$EP$9)*Y$7)+(((IF($A$8=Nutrients!$B$79,Nutrients!$EP$79,(IF($A$8=Nutrients!$B$77,Nutrients!$EP$77,Nutrients!$EP$78)))))*Y$8))/2000*1000000","v":0.24750000000000003},{"$f":"(SUMPRODUCT(Z$9:Z$229,Nutrients!$EP$8:$EP$228)+(IF($A$7=Nutrients!$B$8,Nutrients!$EP$8,Nutrients!$EP$9)*Z$7)+(((IF($A$8=Nutrients!$B$79,Nutrients!$EP$79,(IF($A$8=Nutrients!$B$77,Nutrients!$EP$77,Nutrients!$EP$78)))))*Z$8))/2000*1000000","v":0.19800000000000001},{"$f":"(SUMPRODUCT(AA$9:AA$229,Nutrients!$EP$8:$EP$228)+(IF($A$7=Nutrients!$B$8,Nutrients!$EP$8,Nutrients!$EP$9)*AA$7)+(((IF($A$8=Nutrients!$B$79,Nutrients!$EP$79,(IF($A$8=Nutrients!$B$77,Nutrients!$EP$77,Nutrients!$EP$78)))))*AA$8))/2000*1000000","v":0.14849999999999999},{"$f":"(SUMPRODUCT(AB$9:AB$229,Nutrients!$EP$8:$EP$228)+(IF($A$7=Nutrients!$B$8,Nutrients!$EP$8,Nutrients!$EP$9)*AB$7)+(((IF($A$8=Nutrients!$B$79,Nutrients!$EP$79,(IF($A$8=Nutrients!$B$77,Nutrients!$EP$77,Nutrients!$EP$78)))))*AB$8))/2000*1000000","v":0.14849999999999999},null,{"$f":"(SUMPRODUCT(AD$9:AD$229,Nutrients!$EP$8:$EP$228)+(IF($A$7=Nutrients!$B$8,Nutrients!$EP$8,Nutrients!$EP$9)*AD$7)+(((IF($A$8=Nutrients!$B$79,Nutrients!$EP$79,(IF($A$8=Nutrients!$B$77,Nutrients!$EP$77,Nutrients!$EP$78)))))*AD$8))/2000*1000000","v":0.29699999999999999},{"$f":"(SUMPRODUCT(AE$9:AE$229,Nutrients!$EP$8:$EP$228)+(IF($A$7=Nutrients!$B$8,Nutrients!$EP$8,Nutrients!$EP$9)*AE$7)+(((IF($A$8=Nutrients!$B$79,Nutrients!$EP$79,(IF($A$8=Nutrients!$B$77,Nutrients!$EP$77,Nutrients!$EP$78)))))*AE$8))/2000*1000000","v":0.29699999999999999},{"$f":"(SUMPRODUCT(AF$9:AF$229,Nutrients!$EP$8:$EP$228)+(IF($A$7=Nutrients!$B$8,Nutrients!$EP$8,Nutrients!$EP$9)*AF$7)+(((IF($A$8=Nutrients!$B$79,Nutrients!$EP$79,(IF($A$8=Nutrients!$B$77,Nutrients!$EP$77,Nutrients!$EP$78)))))*AF$8))/2000*1000000","v":0.24750000000000003},{"$f":"(SUMPRODUCT(AG$9:AG$229,Nutrients!$EP$8:$EP$228)+(IF($A$7=Nutrients!$B$8,Nutrients!$EP$8,Nutrients!$EP$9)*AG$7)+(((IF($A$8=Nutrients!$B$79,Nutrients!$EP$79,(IF($A$8=Nutrients!$B$77,Nutrients!$EP$77,Nutrients!$EP$78)))))*AG$8))/2000*1000000","v":0.19800000000000001},{"$f":"(SUMPRODUCT(AH$9:AH$229,Nutrients!$EP$8:$EP$228)+(IF($A$7=Nutrients!$B$8,Nutrients!$EP$8,Nutrients!$EP$9)*AH$7)+(((IF($A$8=Nutrients!$B$79,Nutrients!$EP$79,(IF($A$8=Nutrients!$B$77,Nutrients!$EP$77,Nutrients!$EP$78)))))*AH$8))/2000*1000000","v":0.14849999999999999},{"$f":"(SUMPRODUCT(AI$9:AI$229,Nutrients!$EP$8:$EP$228)+(IF($A$7=Nutrients!$B$8,Nutrients!$EP$8,Nutrients!$EP$9)*AI$7)+(((IF($A$8=Nutrients!$B$79,Nutrients!$EP$79,(IF($A$8=Nutrients!$B$77,Nutrients!$EP$77,Nutrients!$EP$78)))))*AI$8))/2000*1000000","v":0.14849999999999999},null,{"$f":"(SUMPRODUCT(AK$9:AK$229,Nutrients!$EP$8:$EP$228)+(IF($A$7=Nutrients!$B$8,Nutrients!$EP$8,Nutrients!$EP$9)*AK$7)+(((IF($A$8=Nutrients!$B$79,Nutrients!$EP$79,(IF($A$8=Nutrients!$B$77,Nutrients!$EP$77,Nutrients!$EP$78)))))*AK$8))/2000*1000000","v":0.29699999999999999},{"$f":"(SUMPRODUCT(AL$9:AL$229,Nutrients!$EP$8:$EP$228)+(IF($A$7=Nutrients!$B$8,Nutrients!$EP$8,Nutrients!$EP$9)*AL$7)+(((IF($A$8=Nutrients!$B$79,Nutrients!$EP$79,(IF($A$8=Nutrients!$B$77,Nutrients!$EP$77,Nutrients!$EP$78)))))*AL$8))/2000*1000000","v":0.29699999999999999},{"$f":"(SUMPRODUCT(AM$9:AM$229,Nutrients!$EP$8:$EP$228)+(IF($A$7=Nutrients!$B$8,Nutrients!$EP$8,Nutrients!$EP$9)*AM$7)+(((IF($A$8=Nutrients!$B$79,Nutrients!$EP$79,(IF($A$8=Nutrients!$B$77,Nutrients!$EP$77,Nutrients!$EP$78)))))*AM$8))/2000*1000000","v":0.24750000000000003},{"$f":"(SUMPRODUCT(AN$9:AN$229,Nutrients!$EP$8:$EP$228)+(IF($A$7=Nutrients!$B$8,Nutrients!$EP$8,Nutrients!$EP$9)*AN$7)+(((IF($A$8=Nutrients!$B$79,Nutrients!$EP$79,(IF($A$8=Nutrients!$B$77,Nutrients!$EP$77,Nutrients!$EP$78)))))*AN$8))/2000*1000000","v":0.19800000000000001},{"$f":"(SUMPRODUCT(AO$9:AO$229,Nutrients!$EP$8:$EP$228)+(IF($A$7=Nutrients!$B$8,Nutrients!$EP$8,Nutrients!$EP$9)*AO$7)+(((IF($A$8=Nutrients!$B$79,Nutrients!$EP$79,(IF($A$8=Nutrients!$B$77,Nutrients!$EP$77,Nutrients!$EP$78)))))*AO$8))/2000*1000000","v":0.14849999999999999},{"$f":"(SUMPRODUCT(AP$9:AP$229,Nutrients!$EP$8:$EP$228)+(IF($A$7=Nutrients!$B$8,Nutrients!$EP$8,Nutrients!$EP$9)*AP$7)+(((IF($A$8=Nutrients!$B$79,Nutrients!$EP$79,(IF($A$8=Nutrients!$B$77,Nutrients!$EP$77,Nutrients!$EP$78)))))*AP$8))/2000*1000000","v":0.14849999999999999},null,{"$f":"(SUMPRODUCT(AR$9:AR$229,Nutrients!$EP$8:$EP$228)+(IF($A$7=Nutrients!$B$8,Nutrients!$EP$8,Nutrients!$EP$9)*AR$7)+(((IF($A$8=Nutrients!$B$79,Nutrients!$EP$79,(IF($A$8=Nutrients!$B$77,Nutrients!$EP$77,Nutrients!$EP$78)))))*AR$8))/2000*1000000","v":0.29699999999999999},{"$f":"(SUMPRODUCT(AS$9:AS$229,Nutrients!$EP$8:$EP$228)+(IF($A$7=Nutrients!$B$8,Nutrients!$EP$8,Nutrients!$EP$9)*AS$7)+(((IF($A$8=Nutrients!$B$79,Nutrients!$EP$79,(IF($A$8=Nutrients!$B$77,Nutrients!$EP$77,Nutrients!$EP$78)))))*AS$8))/2000*1000000","v":0.29699999999999999},{"$f":"(SUMPRODUCT(AT$9:AT$229,Nutrients!$EP$8:$EP$228)+(IF($A$7=Nutrients!$B$8,Nutrients!$EP$8,Nutrients!$EP$9)*AT$7)+(((IF($A$8=Nutrients!$B$79,Nutrients!$EP$79,(IF($A$8=Nutrients!$B$77,Nutrients!$EP$77,Nutrients!$EP$78)))))*AT$8))/2000*1000000","v":0.24750000000000003},{"$f":"(SUMPRODUCT(AU$9:AU$229,Nutrients!$EP$8:$EP$228)+(IF($A$7=Nutrients!$B$8,Nutrients!$EP$8,Nutrients!$EP$9)*AU$7)+(((IF($A$8=Nutrients!$B$79,Nutrients!$EP$79,(IF($A$8=Nutrients!$B$77,Nutrients!$EP$77,Nutrients!$EP$78)))))*AU$8))/2000*1000000","v":0.19800000000000001},{"$f":"(SUMPRODUCT(AV$9:AV$229,Nutrients!$EP$8:$EP$228)+(IF($A$7=Nutrients!$B$8,Nutrients!$EP$8,Nutrients!$EP$9)*AV$7)+(((IF($A$8=Nutrients!$B$79,Nutrients!$EP$79,(IF($A$8=Nutrients!$B$77,Nutrients!$EP$77,Nutrients!$EP$78)))))*AV$8))/2000*1000000","v":0.14849999999999999},{"$f":"(SUMPRODUCT(AW$9:AW$229,Nutrients!$EP$8:$EP$228)+(IF($A$7=Nutrients!$B$8,Nutrients!$EP$8,Nutrients!$EP$9)*AW$7)+(((IF($A$8=Nutrients!$B$79,Nutrients!$EP$79,(IF($A$8=Nutrients!$B$77,Nutrients!$EP$77,Nutrients!$EP$78)))))*AW$8))/2000*1000000","v":0.14849999999999999}]
["  Chromium added, ppb",{"$f":"(SUMPRODUCT(B$9:B$229,Nutrients!$EQ$8:$EQ$228)+(IF($A$7=Nutrients!$B$8,Nutrients!$EQ$8,Nutrients!$EQ$9)*B$7)+(((IF($A$8=Nutrients!$B$79,Nutrients!$EQ$79,(IF($A$8=Nutrients!$B$77,Nutrients!$EQ$77,Nutrients!$EQ$78)))))*B$8))/2000*1000000000","v":0},{"$f":"(SUMPRODUCT(C$9:C$229,Nutrients!$EQ$8:$EQ$228)+(IF($A$7=Nutrients!$B$8,Nutrients!$EQ$8,Nutrients!$EQ$9)*C$7)+(((IF($A$8=Nutrients!$B$79,Nutrients!$EQ$79,(IF($A$8=Nutrients!$B$77,Nutrients!$EQ$77,Nutrients!$EQ$78)))))*C$8))/2000*1000000000","v":0},{"$f":"(SUMPRODUCT(D$9:D$229,Nutrients!$EQ$8:$EQ$228)+(IF($A$7=Nutrients!$B$8,Nutrients!$EQ$8,Nutrients!$EQ$9)*D$7)+(((IF($A$8=Nutrients!$B$79,Nutrients!$EQ$79,(IF($A$8=Nutrients!$B$77,Nutrients!$EQ$77,Nutrients!$EQ$78)))))*D$8))/2000*1000000000","v":0},{"$f":"(SUMPRODUCT(E$9:E$229,Nutrients!$EQ$8:$EQ$228)+(IF($A$7=Nutrients!$B$8,Nutrients!$EQ$8,Nutrients!$EQ$9)*E$7)+(((IF($A$8=Nutrients!$B$79,Nutrients!$EQ$79,(IF($A$8=Nutrients!$B$77,Nutrients!$EQ$77,Nutrients!$EQ$78)))))*E$8))/2000*1000000000","v":0},{"$f":"(SUMPRODUCT(F$9:F$229,Nutrients!$EQ$8:$EQ$228)+(IF($A$7=Nutrients!$B$8,Nutrients!$EQ$8,Nutrients!$EQ$9)*F$7)+(((IF($A$8=Nutrients!$B$79,Nutrients!$EQ$79,(IF($A$8=Nutrients!$B$77,Nutrients!$EQ$77,Nutrients!$EQ$78)))))*F$8))/2000*1000000000","v":0},{"$f":"(SUMPRODUCT(G$9:G$229,Nutrients!$EQ$8:$EQ$228)+(IF($A$7=Nutrients!$B$8,Nutrients!$EQ$8,Nutrients!$EQ$9)*G$7)+(((IF($A$8=Nutrients!$B$79,Nutrients!$EQ$79,(IF($A$8=Nutrients!$B$77,Nutrients!$EQ$77,Nutrients!$EQ$78)))))*G$8))/2000*1000000000","v":0},null,{"$f":"(SUMPRODUCT(I$9:I$229,Nutrients!$EQ$8:$EQ$228)+(IF($A$7=Nutrients!$B$8,Nutrients!$EQ$8,Nutrients!$EQ$9)*I$7)+(((IF($A$8=Nutrients!$B$79,Nutrients!$EQ$79,(IF($A$8=Nutrients!$B$77,Nutrients!$EQ$77,Nutrients!$EQ$78)))))*I$8))/2000*1000000000","v":0},{"$f":"(SUMPRODUCT(J$9:J$229,Nutrients!$EQ$8:$EQ$228)+(IF($A$7=Nutrients!$B$8,Nutrients!$EQ$8,Nutrients!$EQ$9)*J$7)+(((IF($A$8=Nutrients!$B$79,Nutrients!$EQ$79,(IF($A$8=Nutrients!$B$77,Nutrients!$EQ$77,Nutrients!$EQ$78)))))*J$8))/2000*1000000000","v":0},{"$f":"(SUMPRODUCT(K$9:K$229,Nutrients!$EQ$8:$EQ$228)+(IF($A$7=Nutrients!$B$8,Nutrients!$EQ$8,Nutrients!$EQ$9)*K$7)+(((IF($A$8=Nutrients!$B$79,Nutrients!$EQ$79,(IF($A$8=Nutrients!$B$77,Nutrients!$EQ$77,Nutrients!$EQ$78)))))*K$8))/2000*1000000000","v":0},{"$f":"(SUMPRODUCT(L$9:L$229,Nutrients!$EQ$8:$EQ$228)+(IF($A$7=Nutrients!$B$8,Nutrients!$EQ$8,Nutrients!$EQ$9)*L$7)+(((IF($A$8=Nutrients!$B$79,Nutrients!$EQ$79,(IF($A$8=Nutrients!$B$77,Nutrients!$EQ$77,Nutrients!$EQ$78)))))*L$8))/2000*1000000000","v":0},{"$f":"(SUMPRODUCT(M$9:M$229,Nutrients!$EQ$8:$EQ$228)+(IF($A$7=Nutrients!$B$8,Nutrients!$EQ$8,Nutrients!$EQ$9)*M$7)+(((IF($A$8=Nutrients!$B$79,Nutrients!$EQ$79,(IF($A$8=Nutrients!$B$77,Nutrients!$EQ$77,Nutrients!$EQ$78)))))*M$8))/2000*1000000000","v":0},{"$f":"(SUMPRODUCT(N$9:N$229,Nutrients!$EQ$8:$EQ$228)+(IF($A$7=Nutrients!$B$8,Nutrients!$EQ$8,Nutrients!$EQ$9)*N$7)+(((IF($A$8=Nutrients!$B$79,Nutrients!$EQ$79,(IF($A$8=Nutrients!$B$77,Nutrients!$EQ$77,Nutrients!$EQ$78)))))*N$8))/2000*1000000000","v":0},null,{"$f":"(SUMPRODUCT(P$9:P$229,Nutrients!$EQ$8:$EQ$228)+(IF($A$7=Nutrients!$B$8,Nutrients!$EQ$8,Nutrients!$EQ$9)*P$7)+(((IF($A$8=Nutrients!$B$79,Nutrients!$EQ$79,(IF($A$8=Nutrients!$B$77,Nutrients!$EQ$77,Nutrients!$EQ$78)))))*P$8))/2000*1000000000","v":0},{"$f":"(SUMPRODUCT(Q$9:Q$229,Nutrients!$EQ$8:$EQ$228)+(IF($A$7=Nutrients!$B$8,Nutrients!$EQ$8,Nutrients!$EQ$9)*Q$7)+(((IF($A$8=Nutrients!$B$79,Nutrients!$EQ$79,(IF($A$8=Nutrients!$B$77,Nutrients!$EQ$77,Nutrients!$EQ$78)))))*Q$8))/2000*1000000000","v":0},{"$f":"(SUMPRODUCT(R$9:R$229,Nutrients!$EQ$8:$EQ$228)+(IF($A$7=Nutrients!$B$8,Nutrients!$EQ$8,Nutrients!$EQ$9)*R$7)+(((IF($A$8=Nutrients!$B$79,Nutrients!$EQ$79,(IF($A$8=Nutrients!$B$77,Nutrients!$EQ$77,Nutrients!$EQ$78)))))*R$8))/2000*1000000000","v":0},{"$f":"(SUMPRODUCT(S$9:S$229,Nutrients!$EQ$8:$EQ$228)+(IF($A$7=Nutrients!$B$8,Nutrients!$EQ$8,Nutrients!$EQ$9)*S$7)+(((IF($A$8=Nutrients!$B$79,Nutrients!$EQ$79,(IF($A$8=Nutrients!$B$77,Nutrients!$EQ$77,Nutrients!$EQ$78)))))*S$8))/2000*1000000000","v":0},{"$f":"(SUMPRODUCT(T$9:T$229,Nutrients!$EQ$8:$EQ$228)+(IF($A$7=Nutrients!$B$8,Nutrients!$EQ$8,Nutrients!$EQ$9)*T$7)+(((IF($A$8=Nutrients!$B$79,Nutrients!$EQ$79,(IF($A$8=Nutrients!$B$77,Nutrients!$EQ$77,Nutrients!$EQ$78)))))*T$8))/2000*1000000000","v":0},{"$f":"(SUMPRODUCT(U$9:U$229,Nutrients!$EQ$8:$EQ$228)+(IF($A$7=Nutrients!$B$8,Nutrients!$EQ$8,Nutrients!$EQ$9)*U$7)+(((IF($A$8=Nutrients!$B$79,Nutrients!$EQ$79,(IF($A$8=Nutrients!$B$77,Nutrients!$EQ$77,Nutrients!$EQ$78)))))*U$8))/2000*1000000000","v":0},null,{"$f":"(SUMPRODUCT(W$9:W$229,Nutrients!$EQ$8:$EQ$228)+(IF($A$7=Nutrients!$B$8,Nutrients!$EQ$8,Nutrients!$EQ$9)*W$7)+(((IF($A$8=Nutrients!$B$79,Nutrients!$EQ$79,(IF($A$8=Nutrients!$B$77,Nutrients!$EQ$77,Nutrients!$EQ$78)))))*W$8))/2000*1000000000","v":0},{"$f":"(SUMPRODUCT(X$9:X$229,Nutrients!$EQ$8:$EQ$228)+(IF($A$7=Nutrients!$B$8,Nutrients!$EQ$8,Nutrients!$EQ$9)*X$7)+(((IF($A$8=Nutrients!$B$79,Nutrients!$EQ$79,(IF($A$8=Nutrients!$B$77,Nutrients!$EQ$77,Nutrients!$EQ$78)))))*X$8))/2000*1000000000","v":0},{"$f":"(SUMPRODUCT(Y$9:Y$229,Nutrients!$EQ$8:$EQ$228)+(IF($A$7=Nutrients!$B$8,Nutrients!$EQ$8,Nutrients!$EQ$9)*Y$7)+(((IF($A$8=Nutrients!$B$79,Nutrients!$EQ$79,(IF($A$8=Nutrients!$B$77,Nutrients!$EQ$77,Nutrients!$EQ$78)))))*Y$8))/2000*1000000000","v":0},{"$f":"(SUMPRODUCT(Z$9:Z$229,Nutrients!$EQ$8:$EQ$228)+(IF($A$7=Nutrients!$B$8,Nutrients!$EQ$8,Nutrients!$EQ$9)*Z$7)+(((IF($A$8=Nutrients!$B$79,Nutrients!$EQ$79,(IF($A$8=Nutrients!$B$77,Nutrients!$EQ$77,Nutrients!$EQ$78)))))*Z$8))/2000*1000000000","v":0},{"$f":"(SUMPRODUCT(AA$9:AA$229,Nutrients!$EQ$8:$EQ$228)+(IF($A$7=Nutrients!$B$8,Nutrients!$EQ$8,Nutrients!$EQ$9)*AA$7)+(((IF($A$8=Nutrients!$B$79,Nutrients!$EQ$79,(IF($A$8=Nutrients!$B$77,Nutrients!$EQ$77,Nutrients!$EQ$78)))))*AA$8))/2000*1000000000","v":0},{"$f":"(SUMPRODUCT(AB$9:AB$229,Nutrients!$EQ$8:$EQ$228)+(IF($A$7=Nutrients!$B$8,Nutrients!$EQ$8,Nutrients!$EQ$9)*AB$7)+(((IF($A$8=Nutrients!$B$79,Nutrients!$EQ$79,(IF($A$8=Nutrients!$B$77,Nutrients!$EQ$77,Nutrients!$EQ$78)))))*AB$8))/2000*1000000000","v":0},null,{"$f":"(SUMPRODUCT(AD$9:AD$229,Nutrients!$EQ$8:$EQ$228)+(IF($A$7=Nutrients!$B$8,Nutrients!$EQ$8,Nutrients!$EQ$9)*AD$7)+(((IF($A$8=Nutrients!$B$79,Nutrients!$EQ$79,(IF($A$8=Nutrients!$B$77,Nutrients!$EQ$77,Nutrients!$EQ$78)))))*AD$8))/2000*1000000000","v":0},{"$f":"(SUMPRODUCT(AE$9:AE$229,Nutrients!$EQ$8:$EQ$228)+(IF($A$7=Nutrients!$B$8,Nutrients!$EQ$8,Nutrients!$EQ$9)*AE$7)+(((IF($A$8=Nutrients!$B$79,Nutrients!$EQ$79,(IF($A$8=Nutrients!$B$77,Nutrients!$EQ$77,Nutrients!$EQ$78)))))*AE$8))/2000*1000000000","v":0},{"$f":"(SUMPRODUCT(AF$9:AF$229,Nutrients!$EQ$8:$EQ$228)+(IF($A$7=Nutrients!$B$8,Nutrients!$EQ$8,Nutrients!$EQ$9)*AF$7)+(((IF($A$8=Nutrients!$B$79,Nutrients!$EQ$79,(IF($A$8=Nutrients!$B$77,Nutrients!$EQ$77,Nutrients!$EQ$78)))))*AF$8))/2000*1000000000","v":0},{"$f":"(SUMPRODUCT(AG$9:AG$229,Nutrients!$EQ$8:$EQ$228)+(IF($A$7=Nutrients!$B$8,Nutrients!$EQ$8,Nutrients!$EQ$9)*AG$7)+(((IF($A$8=Nutrients!$B$79,Nutrients!$EQ$79,(IF($A$8=Nutrients!$B$77,Nutrients!$EQ$77,Nutrients!$EQ$78)))))*AG$8))/2000*1000000000","v":0},{"$f":"(SUMPRODUCT(AH$9:AH$229,Nutrients!$EQ$8:$EQ$228)+(IF($A$7=Nutrients!$B$8,Nutrients!$EQ$8,Nutrients!$EQ$9)*AH$7)+(((IF($A$8=Nutrients!$B$79,Nutrients!$EQ$79,(IF($A$8=Nutrients!$B$77,Nutrients!$EQ$77,Nutrients!$EQ$78)))))*AH$8))/2000*1000000000","v":0},{"$f":"(SUMPRODUCT(AI$9:AI$229,Nutrients!$EQ$8:$EQ$228)+(IF($A$7=Nutrients!$B$8,Nutrients!$EQ$8,Nutrients!$EQ$9)*AI$7)+(((IF($A$8=Nutrients!$B$79,Nutrients!$EQ$79,(IF($A$8=Nutrients!$B$77,Nutrients!$EQ$77,Nutrients!$EQ$78)))))*AI$8))/2000*1000000000","v":0},null,{"$f":"(SUMPRODUCT(AK$9:AK$229,Nutrients!$EQ$8:$EQ$228)+(IF($A$7=Nutrients!$B$8,Nutrients!$EQ$8,Nutrients!$EQ$9)*AK$7)+(((IF($A$8=Nutrients!$B$79,Nutrients!$EQ$79,(IF($A$8=Nutrients!$B$77,Nutrients!$EQ$77,Nutrients!$EQ$78)))))*AK$8))/2000*1000000000","v":0},{"$f":"(SUMPRODUCT(AL$9:AL$229,Nutrients!$EQ$8:$EQ$228)+(IF($A$7=Nutrients!$B$8,Nutrients!$EQ$8,Nutrients!$EQ$9)*AL$7)+(((IF($A$8=Nutrients!$B$79,Nutrients!$EQ$79,(IF($A$8=Nutrients!$B$77,Nutrients!$EQ$77,Nutrients!$EQ$78)))))*AL$8))/2000*1000000000","v":0},{"$f":"(SUMPRODUCT(AM$9:AM$229,Nutrients!$EQ$8:$EQ$228)+(IF($A$7=Nutrients!$B$8,Nutrients!$EQ$8,Nutrients!$EQ$9)*AM$7)+(((IF($A$8=Nutrients!$B$79,Nutrients!$EQ$79,(IF($A$8=Nutrients!$B$77,Nutrients!$EQ$77,Nutrients!$EQ$78)))))*AM$8))/2000*1000000000","v":0},{"$f":"(SUMPRODUCT(AN$9:AN$229,Nutrients!$EQ$8:$EQ$228)+(IF($A$7=Nutrients!$B$8,Nutrients!$EQ$8,Nutrients!$EQ$9)*AN$7)+(((IF($A$8=Nutrients!$B$79,Nutrients!$EQ$79,(IF($A$8=Nutrients!$B$77,Nutrients!$EQ$77,Nutrients!$EQ$78)))))*AN$8))/2000*1000000000","v":0},{"$f":"(SUMPRODUCT(AO$9:AO$229,Nutrients!$EQ$8:$EQ$228)+(IF($A$7=Nutrients!$B$8,Nutrients!$EQ$8,Nutrients!$EQ$9)*AO$7)+(((IF($A$8=Nutrients!$B$79,Nutrients!$EQ$79,(IF($A$8=Nutrients!$B$77,Nutrients!$EQ$77,Nutrients!$EQ$78)))))*AO$8))/2000*1000000000","v":0},{"$f":"(SUMPRODUCT(AP$9:AP$229,Nutrients!$EQ$8:$EQ$228)+(IF($A$7=Nutrients!$B$8,Nutrients!$EQ$8,Nutrients!$EQ$9)*AP$7)+(((IF($A$8=Nutrients!$B$79,Nutrients!$EQ$79,(IF($A$8=Nutrients!$B$77,Nutrients!$EQ$77,Nutrients!$EQ$78)))))*AP$8))/2000*1000000000","v":0},null,{"$f":"(SUMPRODUCT(AR$9:AR$229,Nutrients!$EQ$8:$EQ$228)+(IF($A$7=Nutrients!$B$8,Nutrients!$EQ$8,Nutrients!$EQ$9)*AR$7)+(((IF($A$8=Nutrients!$B$79,Nutrients!$EQ$79,(IF($A$8=Nutrients!$B$77,Nutrients!$EQ$77,Nutrients!$EQ$78)))))*AR$8))/2000*1000000000","v":0},{"$f":"(SUMPRODUCT(AS$9:AS$229,Nutrients!$EQ$8:$EQ$228)+(IF($A$7=Nutrients!$B$8,Nutrients!$EQ$8,Nutrients!$EQ$9)*AS$7)+(((IF($A$8=Nutrients!$B$79,Nutrients!$EQ$79,(IF($A$8=Nutrients!$B$77,Nutrients!$EQ$77,Nutrients!$EQ$78)))))*AS$8))/2000*1000000000","v":0},{"$f":"(SUMPRODUCT(AT$9:AT$229,Nutrients!$EQ$8:$EQ$228)+(IF($A$7=Nutrients!$B$8,Nutrients!$EQ$8,Nutrients!$EQ$9)*AT$7)+(((IF($A$8=Nutrients!$B$79,Nutrients!$EQ$79,(IF($A$8=Nutrients!$B$77,Nutrients!$EQ$77,Nutrients!$EQ$78)))))*AT$8))/2000*1000000000","v":0},{"$f":"(SUMPRODUCT(AU$9:AU$229,Nutrients!$EQ$8:$EQ$228)+(IF($A$7=Nutrients!$B$8,Nutrients!$EQ$8,Nutrients!$EQ$9)*AU$7)+(((IF($A$8=Nutrients!$B$79,Nutrients!$EQ$79,(IF($A$8=Nutrients!$B$77,Nutrients!$EQ$77,Nutrients!$EQ$78)))))*AU$8))/2000*1000000000","v":0},{"$f":"(SUMPRODUCT(AV$9:AV$229,Nutrients!$EQ$8:$EQ$228)+(IF($A$7=Nutrients!$B$8,Nutrients!$EQ$8,Nutrients!$EQ$9)*AV$7)+(((IF($A$8=Nutrients!$B$79,Nutrients!$EQ$79,(IF($A$8=Nutrients!$B$77,Nutrients!$EQ$77,Nutrients!$EQ$78)))))*AV$8))/2000*1000000000","v":0},{"$f":"(SUMPRODUCT(AW$9:AW$229,Nutrients!$EQ$8:$EQ$228)+(IF($A$7=Nutrients!$B$8,Nutrients!$EQ$8,Nutrients!$EQ$9)*AW$7)+(((IF($A$8=Nutrients!$B$79,Nutrients!$EQ$79,(IF($A$8=Nutrients!$B$77,Nutrients!$EQ$77,Nutrients!$EQ$78)))))*AW$8))/2000*1000000000","v":0}]
[]
["Vitamins (added levels)"]
["  Vit A, IU/ton",{"$f":"(SUMPRODUCT(B$9:B$229,Nutrients!$ES$8:$ES$228)+(IF($A$7=Nutrients!$B$8,Nutrients!$ES$8,Nutrients!$ES$9)*B$7)+(((IF($A$8=Nutrients!$B$79,Nutrients!$ES$79,(IF($A$8=Nutrients!$B$77,Nutrients!$ES$77,Nutrients!$ES$78)))))*B$8))","v":2250000},{"$f":"(SUMPRODUCT(C$9:C$229,Nutrients!$ES$8:$ES$228)+(IF($A$7=Nutrients!$B$8,Nutrients!$ES$8,Nutrients!$ES$9)*C$7)+(((IF($A$8=Nutrients!$B$79,Nutrients!$ES$79,(IF($A$8=Nutrients!$B$77,Nutrients!$ES$77,Nutrients!$ES$78)))))*C$8))","v":2250000},{"$f":"(SUMPRODUCT(D$9:D$229,Nutrients!$ES$8:$ES$228)+(IF($A$7=Nutrients!$B$8,Nutrients!$ES$8,Nutrients!$ES$9)*D$7)+(((IF($A$8=Nutrients!$B$79,Nutrients!$ES$79,(IF($A$8=Nutrients!$B$77,Nutrients!$ES$77,Nutrients!$ES$78)))))*D$8))","v":1875000},{"$f":"(SUMPRODUCT(E$9:E$229,Nutrients!$ES$8:$ES$228)+(IF($A$7=Nutrients!$B$8,Nutrients!$ES$8,Nutrients!$ES$9)*E$7)+(((IF($A$8=Nutrients!$B$79,Nutrients!$ES$79,(IF($A$8=Nutrients!$B$77,Nutrients!$ES$77,Nutrients!$ES$78)))))*E$8))","v":1500000},{"$f":"(SUMPRODUCT(F$9:F$229,Nutrients!$ES$8:$ES$228)+(IF($A$7=Nutrients!$B$8,Nutrients!$ES$8,Nutrients!$ES$9)*F$7)+(((IF($A$8=Nutrients!$B$79,Nutrients!$ES$79,(IF($A$8=Nutrients!$B$77,Nutrients!$ES$77,Nutrients!$ES$78)))))*F$8))","v":1125000},{"$f":"(SUMPRODUCT(G$9:G$229,Nutrients!$ES$8:$ES$228)+(IF($A$7=Nutrients!$B$8,Nutrients!$ES$8,Nutrients!$ES$9)*G$7)+(((IF($A$8=Nutrients!$B$79,Nutrients!$ES$79,(IF($A$8=Nutrients!$B$77,Nutrients!$ES$77,Nutrients!$ES$78)))))*G$8))","v":1125000},null,{"$f":"(SUMPRODUCT(I$9:I$229,Nutrients!$ES$8:$ES$228)+(IF($A$7=Nutrients!$B$8,Nutrients!$ES$8,Nutrients!$ES$9)*I$7)+(((IF($A$8=Nutrients!$B$79,Nutrients!$ES$79,(IF($A$8=Nutrients!$B$77,Nutrients!$ES$77,Nutrients!$ES$78)))))*I$8))","v":2250000},{"$f":"(SUMPRODUCT(J$9:J$229,Nutrients!$ES$8:$ES$228)+(IF($A$7=Nutrients!$B$8,Nutrients!$ES$8,Nutrients!$ES$9)*J$7)+(((IF($A$8=Nutrients!$B$79,Nutrients!$ES$79,(IF($A$8=Nutrients!$B$77,Nutrients!$ES$77,Nutrients!$ES$78)))))*J$8))","v":2250000},{"$f":"(SUMPRODUCT(K$9:K$229,Nutrients!$ES$8:$ES$228)+(IF($A$7=Nutrients!$B$8,Nutrients!$ES$8,Nutrients!$ES$9)*K$7)+(((IF($A$8=Nutrients!$B$79,Nutrients!$ES$79,(IF($A$8=Nutrients!$B$77,Nutrients!$ES$77,Nutrients!$ES$78)))))*K$8))","v":1875000},{"$f":"(SUMPRODUCT(L$9:L$229,Nutrients!$ES$8:$ES$228)+(IF($A$7=Nutrients!$B$8,Nutrients!$ES$8,Nutrients!$ES$9)*L$7)+(((IF($A$8=Nutrients!$B$79,Nutrients!$ES$79,(IF($A$8=Nutrients!$B$77,Nutrients!$ES$77,Nutrients!$ES$78)))))*L$8))","v":1500000},{"$f":"(SUMPRODUCT(M$9:M$229,Nutrients!$ES$8:$ES$228)+(IF($A$7=Nutrients!$B$8,Nutrients!$ES$8,Nutrients!$ES$9)*M$7)+(((IF($A$8=Nutrients!$B$79,Nutrients!$ES$79,(IF($A$8=Nutrients!$B$77,Nutrients!$ES$77,Nutrients!$ES$78)))))*M$8))","v":1125000},{"$f":"(SUMPRODUCT(N$9:N$229,Nutrients!$ES$8:$ES$228)+(IF($A$7=Nutrients!$B$8,Nutrients!$ES$8,Nutrients!$ES$9)*N$7)+(((IF($A$8=Nutrients!$B$79,Nutrients!$ES$79,(IF($A$8=Nutrients!$B$77,Nutrients!$ES$77,Nutrients!$ES$78)))))*N$8))","v":1125000},null,{"$f":"(SUMPRODUCT(P$9:P$229,Nutrients!$ES$8:$ES$228)+(IF($A$7=Nutrients!$B$8,Nutrients!$ES$8,Nutrients!$ES$9)*P$7)+(((IF($A$8=Nutrients!$B$79,Nutrients!$ES$79,(IF($A$8=Nutrients!$B$77,Nutrients!$ES$77,Nutrients!$ES$78)))))*P$8))","v":2250000},{"$f":"(SUMPRODUCT(Q$9:Q$229,Nutrients!$ES$8:$ES$228)+(IF($A$7=Nutrients!$B$8,Nutrients!$ES$8,Nutrients!$ES$9)*Q$7)+(((IF($A$8=Nutrients!$B$79,Nutrients!$ES$79,(IF($A$8=Nutrients!$B$77,Nutrients!$ES$77,Nutrients!$ES$78)))))*Q$8))","v":2250000},{"$f":"(SUMPRODUCT(R$9:R$229,Nutrients!$ES$8:$ES$228)+(IF($A$7=Nutrients!$B$8,Nutrients!$ES$8,Nutrients!$ES$9)*R$7)+(((IF($A$8=Nutrients!$B$79,Nutrients!$ES$79,(IF($A$8=Nutrients!$B$77,Nutrients!$ES$77,Nutrients!$ES$78)))))*R$8))","v":1875000},{"$f":"(SUMPRODUCT(S$9:S$229,Nutrients!$ES$8:$ES$228)+(IF($A$7=Nutrients!$B$8,Nutrients!$ES$8,Nutrients!$ES$9)*S$7)+(((IF($A$8=Nutrients!$B$79,Nutrients!$ES$79,(IF($A$8=Nutrients!$B$77,Nutrients!$ES$77,Nutrients!$ES$78)))))*S$8))","v":1500000},{"$f":"(SUMPRODUCT(T$9:T$229,Nutrients!$ES$8:$ES$228)+(IF($A$7=Nutrients!$B$8,Nutrients!$ES$8,Nutrients!$ES$9)*T$7)+(((IF($A$8=Nutrients!$B$79,Nutrients!$ES$79,(IF($A$8=Nutrients!$B$77,Nutrients!$ES$77,Nutrients!$ES$78)))))*T$8))","v":1125000},{"$f":"(SUMPRODUCT(U$9:U$229,Nutrients!$ES$8:$ES$228)+(IF($A$7=Nutrients!$B$8,Nutrients!$ES$8,Nutrients!$ES$9)*U$7)+(((IF($A$8=Nutrients!$B$79,Nutrients!$ES$79,(IF($A$8=Nutrients!$B$77,Nutrients!$ES$77,Nutrients!$ES$78)))))*U$8))","v":1125000},null,{"$f":"(SUMPRODUCT(W$9:W$229,Nutrients!$ES$8:$ES$228)+(IF($A$7=Nutrients!$B$8,Nutrients!$ES$8,Nutrients!$ES$9)*W$7)+(((IF($A$8=Nutrients!$B$79,Nutrients!$ES$79,(IF($A$8=Nutrients!$B$77,Nutrients!$ES$77,Nutrients!$ES$78)))))*W$8))","v":2250000},{"$f":"(SUMPRODUCT(X$9:X$229,Nutrients!$ES$8:$ES$228)+(IF($A$7=Nutrients!$B$8,Nutrients!$ES$8,Nutrients!$ES$9)*X$7)+(((IF($A$8=Nutrients!$B$79,Nutrients!$ES$79,(IF($A$8=Nutrients!$B$77,Nutrients!$ES$77,Nutrients!$ES$78)))))*X$8))","v":2250000},{"$f":"(SUMPRODUCT(Y$9:Y$229,Nutrients!$ES$8:$ES$228)+(IF($A$7=Nutrients!$B$8,Nutrients!$ES$8,Nutrients!$ES$9)*Y$7)+(((IF($A$8=Nutrients!$B$79,Nutrients!$ES$79,(IF($A$8=Nutrients!$B$77,Nutrients!$ES$77,Nutrients!$ES$78)))))*Y$8))","v":1875000},{"$f":"(SUMPRODUCT(Z$9:Z$229,Nutrients!$ES$8:$ES$228)+(IF($A$7=Nutrients!$B$8,Nutrients!$ES$8,Nutrients!$ES$9)*Z$7)+(((IF($A$8=Nutrients!$B$79,Nutrients!$ES$79,(IF($A$8=Nutrients!$B$77,Nutrients!$ES$77,Nutrients!$ES$78)))))*Z$8))","v":1500000},{"$f":"(SUMPRODUCT(AA$9:AA$229,Nutrients!$ES$8:$ES$228)+(IF($A$7=Nutrients!$B$8,Nutrients!$ES$8,Nutrients!$ES$9)*AA$7)+(((IF($A$8=Nutrients!$B$79,Nutrients!$ES$79,(IF($A$8=Nutrients!$B$77,Nutrients!$ES$77,Nutrients!$ES$78)))))*AA$8))","v":1125000},{"$f":"(SUMPRODUCT(AB$9:AB$229,Nutrients!$ES$8:$ES$228)+(IF($A$7=Nutrients!$B$8,Nutrients!$ES$8,Nutrients!$ES$9)*AB$7)+(((IF($A$8=Nutrients!$B$79,Nutrients!$ES$79,(IF($A$8=Nutrients!$B$77,Nutrients!$ES$77,Nutrients!$ES$78)))))*AB$8))","v":1125000},null,{"$f":"(SUMPRODUCT(AD$9:AD$229,Nutrients!$ES$8:$ES$228)+(IF($A$7=Nutrients!$B$8,Nutrients!$ES$8,Nutrients!$ES$9)*AD$7)+(((IF($A$8=Nutrients!$B$79,Nutrients!$ES$79,(IF($A$8=Nutrients!$B$77,Nutrients!$ES$77,Nutrients!$ES$78)))))*AD$8))","v":2250000},{"$f":"(SUMPRODUCT(AE$9:AE$229,Nutrients!$ES$8:$ES$228)+(IF($A$7=Nutrients!$B$8,Nutrients!$ES$8,Nutrients!$ES$9)*AE$7)+(((IF($A$8=Nutrients!$B$79,Nutrients!$ES$79,(IF($A$8=Nutrients!$B$77,Nutrients!$ES$77,Nutrients!$ES$78)))))*AE$8))","v":2250000},{"$f":"(SUMPRODUCT(AF$9:AF$229,Nutrients!$ES$8:$ES$228)+(IF($A$7=Nutrients!$B$8,Nutrients!$ES$8,Nutrients!$ES$9)*AF$7)+(((IF($A$8=Nutrients!$B$79,Nutrients!$ES$79,(IF($A$8=Nutrients!$B$77,Nutrients!$ES$77,Nutrients!$ES$78)))))*AF$8))","v":1875000},{"$f":"(SUMPRODUCT(AG$9:AG$229,Nutrients!$ES$8:$ES$228)+(IF($A$7=Nutrients!$B$8,Nutrients!$ES$8,Nutrients!$ES$9)*AG$7)+(((IF($A$8=Nutrients!$B$79,Nutrients!$ES$79,(IF($A$8=Nutrients!$B$77,Nutrients!$ES$77,Nutrients!$ES$78)))))*AG$8))","v":1500000},{"$f":"(SUMPRODUCT(AH$9:AH$229,Nutrients!$ES$8:$ES$228)+(IF($A$7=Nutrients!$B$8,Nutrients!$ES$8,Nutrients!$ES$9)*AH$7)+(((IF($A$8=Nutrients!$B$79,Nutrients!$ES$79,(IF($A$8=Nutrients!$B$77,Nutrients!$ES$77,Nutrients!$ES$78)))))*AH$8))","v":1125000},{"$f":"(SUMPRODUCT(AI$9:AI$229,Nutrients!$ES$8:$ES$228)+(IF($A$7=Nutrients!$B$8,Nutrients!$ES$8,Nutrients!$ES$9)*AI$7)+(((IF($A$8=Nutrients!$B$79,Nutrients!$ES$79,(IF($A$8=Nutrients!$B$77,Nutrients!$ES$77,Nutrients!$ES$78)))))*AI$8))","v":1125000},null,{"$f":"(SUMPRODUCT(AK$9:AK$229,Nutrients!$ES$8:$ES$228)+(IF($A$7=Nutrients!$B$8,Nutrients!$ES$8,Nutrients!$ES$9)*AK$7)+(((IF($A$8=Nutrients!$B$79,Nutrients!$ES$79,(IF($A$8=Nutrients!$B$77,Nutrients!$ES$77,Nutrients!$ES$78)))))*AK$8))","v":2250000},{"$f":"(SUMPRODUCT(AL$9:AL$229,Nutrients!$ES$8:$ES$228)+(IF($A$7=Nutrients!$B$8,Nutrients!$ES$8,Nutrients!$ES$9)*AL$7)+(((IF($A$8=Nutrients!$B$79,Nutrients!$ES$79,(IF($A$8=Nutrients!$B$77,Nutrients!$ES$77,Nutrients!$ES$78)))))*AL$8))","v":2250000},{"$f":"(SUMPRODUCT(AM$9:AM$229,Nutrients!$ES$8:$ES$228)+(IF($A$7=Nutrients!$B$8,Nutrients!$ES$8,Nutrients!$ES$9)*AM$7)+(((IF($A$8=Nutrients!$B$79,Nutrients!$ES$79,(IF($A$8=Nutrients!$B$77,Nutrients!$ES$77,Nutrients!$ES$78)))))*AM$8))","v":1875000},{"$f":"(SUMPRODUCT(AN$9:AN$229,Nutrients!$ES$8:$ES$228)+(IF($A$7=Nutrients!$B$8,Nutrients!$ES$8,Nutrients!$ES$9)*AN$7)+(((IF($A$8=Nutrients!$B$79,Nutrients!$ES$79,(IF($A$8=Nutrients!$B$77,Nutrients!$ES$77,Nutrients!$ES$78)))))*AN$8))","v":1500000},{"$f":"(SUMPRODUCT(AO$9:AO$229,Nutrients!$ES$8:$ES$228)+(IF($A$7=Nutrients!$B$8,Nutrients!$ES$8,Nutrients!$ES$9)*AO$7)+(((IF($A$8=Nutrients!$B$79,Nutrients!$ES$79,(IF($A$8=Nutrients!$B$77,Nutrients!$ES$77,Nutrients!$ES$78)))))*AO$8))","v":1125000},{"$f":"(SUMPRODUCT(AP$9:AP$229,Nutrients!$ES$8:$ES$228)+(IF($A$7=Nutrients!$B$8,Nutrients!$ES$8,Nutrients!$ES$9)*AP$7)+(((IF($A$8=Nutrients!$B$79,Nutrients!$ES$79,(IF($A$8=Nutrients!$B$77,Nutrients!$ES$77,Nutrients!$ES$78)))))*AP$8))","v":1125000},null,{"$f":"(SUMPRODUCT(AR$9:AR$229,Nutrients!$ES$8:$ES$228)+(IF($A$7=Nutrients!$B$8,Nutrients!$ES$8,Nutrients!$ES$9)*AR$7)+(((IF($A$8=Nutrients!$B$79,Nutrients!$ES$79,(IF($A$8=Nutrients!$B$77,Nutrients!$ES$77,Nutrients!$ES$78)))))*AR$8))","v":2250000},{"$f":"(SUMPRODUCT(AS$9:AS$229,Nutrients!$ES$8:$ES$228)+(IF($A$7=Nutrients!$B$8,Nutrients!$ES$8,Nutrients!$ES$9)*AS$7)+(((IF($A$8=Nutrients!$B$79,Nutrients!$ES$79,(IF($A$8=Nutrients!$B$77,Nutrients!$ES$77,Nutrients!$ES$78)))))*AS$8))","v":2250000},{"$f":"(SUMPRODUCT(AT$9:AT$229,Nutrients!$ES$8:$ES$228)+(IF($A$7=Nutrients!$B$8,Nutrients!$ES$8,Nutrients!$ES$9)*AT$7)+(((IF($A$8=Nutrients!$B$79,Nutrients!$ES$79,(IF($A$8=Nutrients!$B$77,Nutrients!$ES$77,Nutrients!$ES$78)))))*AT$8))","v":1875000},{"$f":"(SUMPRODUCT(AU$9:AU$229,Nutrients!$ES$8:$ES$228)+(IF($A$7=Nutrients!$B$8,Nutrients!$ES$8,Nutrients!$ES$9)*AU$7)+(((IF($A$8=Nutrients!$B$79,Nutrients!$ES$79,(IF($A$8=Nutrients!$B$77,Nutrients!$ES$77,Nutrients!$ES$78)))))*AU$8))","v":1500000},{"$f":"(SUMPRODUCT(AV$9:AV$229,Nutrients!$ES$8:$ES$228)+(IF($A$7=Nutrients!$B$8,Nutrients!$ES$8,Nutrients!$ES$9)*AV$7)+(((IF($A$8=Nutrients!$B$79,Nutrients!$ES$79,(IF($A$8=Nutrients!$B$77,Nutrients!$ES$77,Nutrients!$ES$78)))))*AV$8))","v":1125000},{"$f":"(SUMPRODUCT(AW$9:AW$229,Nutrients!$ES$8:$ES$228)+(IF($A$7=Nutrients!$B$8,Nutrients!$ES$8,Nutrients!$ES$9)*AW$7)+(((IF($A$8=Nutrients!$B$79,Nutrients!$ES$79,(IF($A$8=Nutrients!$B$77,Nutrients!$ES$77,Nutrients!$ES$78)))))*AW$8))","v":1125000}]
["  Vit D, IU/ton",{"$f":"(SUMPRODUCT(B$9:B$229,Nutrients!$ET$8:$ET$228)+(IF($A$7=Nutrients!$B$8,Nutrients!$ET$8,Nutrients!$ET$9)*B$7)+(((IF($A$8=Nutrients!$B$79,Nutrients!$ET$79,(IF($A$8=Nutrients!$B$77,Nutrients!$ET$77,Nutrients!$ET$78)))))*B$8))","v":900000},{"$f":"(SUMPRODUCT(C$9:C$229,Nutrients!$ET$8:$ET$228)+(IF($A$7=Nutrients!$B$8,Nutrients!$ET$8,Nutrients!$ET$9)*C$7)+(((IF($A$8=Nutrients!$B$79,Nutrients!$ET$79,(IF($A$8=Nutrients!$B$77,Nutrients!$ET$77,Nutrients!$ET$78)))))*C$8))","v":900000},{"$f":"(SUMPRODUCT(D$9:D$229,Nutrients!$ET$8:$ET$228)+(IF($A$7=Nutrients!$B$8,Nutrients!$ET$8,Nutrients!$ET$9)*D$7)+(((IF($A$8=Nutrients!$B$79,Nutrients!$ET$79,(IF($A$8=Nutrients!$B$77,Nutrients!$ET$77,Nutrients!$ET$78)))))*D$8))","v":750000},{"$f":"(SUMPRODUCT(E$9:E$229,Nutrients!$ET$8:$ET$228)+(IF($A$7=Nutrients!$B$8,Nutrients!$ET$8,Nutrients!$ET$9)*E$7)+(((IF($A$8=Nutrients!$B$79,Nutrients!$ET$79,(IF($A$8=Nutrients!$B$77,Nutrients!$ET$77,Nutrients!$ET$78)))))*E$8))","v":600000},{"$f":"(SUMPRODUCT(F$9:F$229,Nutrients!$ET$8:$ET$228)+(IF($A$7=Nutrients!$B$8,Nutrients!$ET$8,Nutrients!$ET$9)*F$7)+(((IF($A$8=Nutrients!$B$79,Nutrients!$ET$79,(IF($A$8=Nutrients!$B$77,Nutrients!$ET$77,Nutrients!$ET$78)))))*F$8))","v":450000},{"$f":"(SUMPRODUCT(G$9:G$229,Nutrients!$ET$8:$ET$228)+(IF($A$7=Nutrients!$B$8,Nutrients!$ET$8,Nutrients!$ET$9)*G$7)+(((IF($A$8=Nutrients!$B$79,Nutrients!$ET$79,(IF($A$8=Nutrients!$B$77,Nutrients!$ET$77,Nutrients!$ET$78)))))*G$8))","v":450000},null,{"$f":"(SUMPRODUCT(I$9:I$229,Nutrients!$ET$8:$ET$228)+(IF($A$7=Nutrients!$B$8,Nutrients!$ET$8,Nutrients!$ET$9)*I$7)+(((IF($A$8=Nutrients!$B$79,Nutrients!$ET$79,(IF($A$8=Nutrients!$B$77,Nutrients!$ET$77,Nutrients!$ET$78)))))*I$8))","v":900000},{"$f":"(SUMPRODUCT(J$9:J$229,Nutrients!$ET$8:$ET$228)+(IF($A$7=Nutrients!$B$8,Nutrients!$ET$8,Nutrients!$ET$9)*J$7)+(((IF($A$8=Nutrients!$B$79,Nutrients!$ET$79,(IF($A$8=Nutrients!$B$77,Nutrients!$ET$77,Nutrients!$ET$78)))))*J$8))","v":900000},{"$f":"(SUMPRODUCT(K$9:K$229,Nutrients!$ET$8:$ET$228)+(IF($A$7=Nutrients!$B$8,Nutrients!$ET$8,Nutrients!$ET$9)*K$7)+(((IF($A$8=Nutrients!$B$79,Nutrients!$ET$79,(IF($A$8=Nutrients!$B$77,Nutrients!$ET$77,Nutrients!$ET$78)))))*K$8))","v":750000},{"$f":"(SUMPRODUCT(L$9:L$229,Nutrients!$ET$8:$ET$228)+(IF($A$7=Nutrients!$B$8,Nutrients!$ET$8,Nutrients!$ET$9)*L$7)+(((IF($A$8=Nutrients!$B$79,Nutrients!$ET$79,(IF($A$8=Nutrients!$B$77,Nutrients!$ET$77,Nutrients!$ET$78)))))*L$8))","v":600000},{"$f":"(SUMPRODUCT(M$9:M$229,Nutrients!$ET$8:$ET$228)+(IF($A$7=Nutrients!$B$8,Nutrients!$ET$8,Nutrients!$ET$9)*M$7)+(((IF($A$8=Nutrients!$B$79,Nutrients!$ET$79,(IF($A$8=Nutrients!$B$77,Nutrients!$ET$77,Nutrients!$ET$78)))))*M$8))","v":450000},{"$f":"(SUMPRODUCT(N$9:N$229,Nutrients!$ET$8:$ET$228)+(IF($A$7=Nutrients!$B$8,Nutrients!$ET$8,Nutrients!$ET$9)*N$7)+(((IF($A$8=Nutrients!$B$79,Nutrients!$ET$79,(IF($A$8=Nutrients!$B$77,Nutrients!$ET$77,Nutrients!$ET$78)))))*N$8))","v":450000},null,{"$f":"(SUMPRODUCT(P$9:P$229,Nutrients!$ET$8:$ET$228)+(IF($A$7=Nutrients!$B$8,Nutrients!$ET$8,Nutrients!$ET$9)*P$7)+(((IF($A$8=Nutrients!$B$79,Nutrients!$ET$79,(IF($A$8=Nutrients!$B$77,Nutrients!$ET$77,Nutrients!$ET$78)))))*P$8))","v":900000},{"$f":"(SUMPRODUCT(Q$9:Q$229,Nutrients!$ET$8:$ET$228)+(IF($A$7=Nutrients!$B$8,Nutrients!$ET$8,Nutrients!$ET$9)*Q$7)+(((IF($A$8=Nutrients!$B$79,Nutrients!$ET$79,(IF($A$8=Nutrients!$B$77,Nutrients!$ET$77,Nutrients!$ET$78)))))*Q$8))","v":900000},{"$f":"(SUMPRODUCT(R$9:R$229,Nutrients!$ET$8:$ET$228)+(IF($A$7=Nutrients!$B$8,Nutrients!$ET$8,Nutrients!$ET$9)*R$7)+(((IF($A$8=Nutrients!$B$79,Nutrients!$ET$79,(IF($A$8=Nutrients!$B$77,Nutrients!$ET$77,Nutrients!$ET$78)))))*R$8))","v":750000},{"$f":"(SUMPRODUCT(S$9:S$229,Nutrients!$ET$8:$ET$228)+(IF($A$7=Nutrients!$B$8,Nutrients!$ET$8,Nutrients!$ET$9)*S$7)+(((IF($A$8=Nutrients!$B$79,Nutrients!$ET$79,(IF($A$8=Nutrients!$B$77,Nutrients!$ET$77,Nutrients!$ET$78)))))*S$8))","v":600000},{"$f":"(SUMPRODUCT(T$9:T$229,Nutrients!$ET$8:$ET$228)+(IF($A$7=Nutrients!$B$8,Nutrients!$ET$8,Nutrients!$ET$9)*T$7)+(((IF($A$8=Nutrients!$B$79,Nutrients!$ET$79,(IF($A$8=Nutrients!$B$77,Nutrients!$ET$77,Nutrients!$ET$78)))))*T$8))","v":450000},{"$f":"(SUMPRODUCT(U$9:U$229,Nutrients!$ET$8:$ET$228)+(IF($A$7=Nutrients!$B$8,Nutrients!$ET$8,Nutrients!$ET$9)*U$7)+(((IF($A$8=Nutrients!$B$79,Nutrients!$ET$79,(IF($A$8=Nutrients!$B$77,Nutrients!$ET$77,Nutrients!$ET$78)))))*U$8))","v":450000},null,{"$f":"(SUMPRODUCT(W$9:W$229,Nutrients!$ET$8:$ET$228)+(IF($A$7=Nutrients!$B$8,Nutrients!$ET$8,Nutrients!$ET$9)*W$7)+(((IF($A$8=Nutrients!$B$79,Nutrients!$ET$79,(IF($A$8=Nutrients!$B$77,Nutrients!$ET$77,Nutrients!$ET$78)))))*W$8))","v":900000},{"$f":"(SUMPRODUCT(X$9:X$229,Nutrients!$ET$8:$ET$228)+(IF($A$7=Nutrients!$B$8,Nutrients!$ET$8,Nutrients!$ET$9)*X$7)+(((IF($A$8=Nutrients!$B$79,Nutrients!$ET$79,(IF($A$8=Nutrients!$B$77,Nutrients!$ET$77,Nutrients!$ET$78)))))*X$8))","v":900000},{"$f":"(SUMPRODUCT(Y$9:Y$229,Nutrients!$ET$8:$ET$228)+(IF($A$7=Nutrients!$B$8,Nutrients!$ET$8,Nutrients!$ET$9)*Y$7)+(((IF($A$8=Nutrients!$B$79,Nutrients!$ET$79,(IF($A$8=Nutrients!$B$77,Nutrients!$ET$77,Nutrients!$ET$78)))))*Y$8))","v":750000},{"$f":"(SUMPRODUCT(Z$9:Z$229,Nutrients!$ET$8:$ET$228)+(IF($A$7=Nutrients!$B$8,Nutrients!$ET$8,Nutrients!$ET$9)*Z$7)+(((IF($A$8=Nutrients!$B$79,Nutrients!$ET$79,(IF($A$8=Nutrients!$B$77,Nutrients!$ET$77,Nutrients!$ET$78)))))*Z$8))","v":600000},{"$f":"(SUMPRODUCT(AA$9:AA$229,Nutrients!$ET$8:$ET$228)+(IF($A$7=Nutrients!$B$8,Nutrients!$ET$8,Nutrients!$ET$9)*AA$7)+(((IF($A$8=Nutrients!$B$79,Nutrients!$ET$79,(IF($A$8=Nutrients!$B$77,Nutrients!$ET$77,Nutrients!$ET$78)))))*AA$8))","v":450000},{"$f":"(SUMPRODUCT(AB$9:AB$229,Nutrients!$ET$8:$ET$228)+(IF($A$7=Nutrients!$B$8,Nutrients!$ET$8,Nutrients!$ET$9)*AB$7)+(((IF($A$8=Nutrients!$B$79,Nutrients!$ET$79,(IF($A$8=Nutrients!$B$77,Nutrients!$ET$77,Nutrients!$ET$78)))))*AB$8))","v":450000},null,{"$f":"(SUMPRODUCT(AD$9:AD$229,Nutrients!$ET$8:$ET$228)+(IF($A$7=Nutrients!$B$8,Nutrients!$ET$8,Nutrients!$ET$9)*AD$7)+(((IF($A$8=Nutrients!$B$79,Nutrients!$ET$79,(IF($A$8=Nutrients!$B$77,Nutrients!$ET$77,Nutrients!$ET$78)))))*AD$8))","v":900000},{"$f":"(SUMPRODUCT(AE$9:AE$229,Nutrients!$ET$8:$ET$228)+(IF($A$7=Nutrients!$B$8,Nutrients!$ET$8,Nutrients!$ET$9)*AE$7)+(((IF($A$8=Nutrients!$B$79,Nutrients!$ET$79,(IF($A$8=Nutrients!$B$77,Nutrients!$ET$77,Nutrients!$ET$78)))))*AE$8))","v":900000},{"$f":"(SUMPRODUCT(AF$9:AF$229,Nutrients!$ET$8:$ET$228)+(IF($A$7=Nutrients!$B$8,Nutrients!$ET$8,Nutrients!$ET$9)*AF$7)+(((IF($A$8=Nutrients!$B$79,Nutrients!$ET$79,(IF($A$8=Nutrients!$B$77,Nutrients!$ET$77,Nutrients!$ET$78)))))*AF$8))","v":750000},{"$f":"(SUMPRODUCT(AG$9:AG$229,Nutrients!$ET$8:$ET$228)+(IF($A$7=Nutrients!$B$8,Nutrients!$ET$8,Nutrients!$ET$9)*AG$7)+(((IF($A$8=Nutrients!$B$79,Nutrients!$ET$79,(IF($A$8=Nutrients!$B$77,Nutrients!$ET$77,Nutrients!$ET$78)))))*AG$8))","v":600000},{"$f":"(SUMPRODUCT(AH$9:AH$229,Nutrients!$ET$8:$ET$228)+(IF($A$7=Nutrients!$B$8,Nutrients!$ET$8,Nutrients!$ET$9)*AH$7)+(((IF($A$8=Nutrients!$B$79,Nutrients!$ET$79,(IF($A$8=Nutrients!$B$77,Nutrients!$ET$77,Nutrients!$ET$78)))))*AH$8))","v":450000},{"$f":"(SUMPRODUCT(AI$9:AI$229,Nutrients!$ET$8:$ET$228)+(IF($A$7=Nutrients!$B$8,Nutrients!$ET$8,Nutrients!$ET$9)*AI$7)+(((IF($A$8=Nutrients!$B$79,Nutrients!$ET$79,(IF($A$8=Nutrients!$B$77,Nutrients!$ET$77,Nutrients!$ET$78)))))*AI$8))","v":450000},null,{"$f":"(SUMPRODUCT(AK$9:AK$229,Nutrients!$ET$8:$ET$228)+(IF($A$7=Nutrients!$B$8,Nutrients!$ET$8,Nutrients!$ET$9)*AK$7)+(((IF($A$8=Nutrients!$B$79,Nutrients!$ET$79,(IF($A$8=Nutrients!$B$77,Nutrients!$ET$77,Nutrients!$ET$78)))))*AK$8))","v":900000},{"$f":"(SUMPRODUCT(AL$9:AL$229,Nutrients!$ET$8:$ET$228)+(IF($A$7=Nutrients!$B$8,Nutrients!$ET$8,Nutrients!$ET$9)*AL$7)+(((IF($A$8=Nutrients!$B$79,Nutrients!$ET$79,(IF($A$8=Nutrients!$B$77,Nutrients!$ET$77,Nutrients!$ET$78)))))*AL$8))","v":900000},{"$f":"(SUMPRODUCT(AM$9:AM$229,Nutrients!$ET$8:$ET$228)+(IF($A$7=Nutrients!$B$8,Nutrients!$ET$8,Nutrients!$ET$9)*AM$7)+(((IF($A$8=Nutrients!$B$79,Nutrients!$ET$79,(IF($A$8=Nutrients!$B$77,Nutrients!$ET$77,Nutrients!$ET$78)))))*AM$8))","v":750000},{"$f":"(SUMPRODUCT(AN$9:AN$229,Nutrients!$ET$8:$ET$228)+(IF($A$7=Nutrients!$B$8,Nutrients!$ET$8,Nutrients!$ET$9)*AN$7)+(((IF($A$8=Nutrients!$B$79,Nutrients!$ET$79,(IF($A$8=Nutrients!$B$77,Nutrients!$ET$77,Nutrients!$ET$78)))))*AN$8))","v":600000},{"$f":"(SUMPRODUCT(AO$9:AO$229,Nutrients!$ET$8:$ET$228)+(IF($A$7=Nutrients!$B$8,Nutrients!$ET$8,Nutrients!$ET$9)*AO$7)+(((IF($A$8=Nutrients!$B$79,Nutrients!$ET$79,(IF($A$8=Nutrients!$B$77,Nutrients!$ET$77,Nutrients!$ET$78)))))*AO$8))","v":450000},{"$f":"(SUMPRODUCT(AP$9:AP$229,Nutrients!$ET$8:$ET$228)+(IF($A$7=Nutrients!$B$8,Nutrients!$ET$8,Nutrients!$ET$9)*AP$7)+(((IF($A$8=Nutrients!$B$79,Nutrients!$ET$79,(IF($A$8=Nutrients!$B$77,Nutrients!$ET$77,Nutrients!$ET$78)))))*AP$8))","v":450000},null,{"$f":"(SUMPRODUCT(AR$9:AR$229,Nutrients!$ET$8:$ET$228)+(IF($A$7=Nutrients!$B$8,Nutrients!$ET$8,Nutrients!$ET$9)*AR$7)+(((IF($A$8=Nutrients!$B$79,Nutrients!$ET$79,(IF($A$8=Nutrients!$B$77,Nutrients!$ET$77,Nutrients!$ET$78)))))*AR$8))","v":900000},{"$f":"(SUMPRODUCT(AS$9:AS$229,Nutrients!$ET$8:$ET$228)+(IF($A$7=Nutrients!$B$8,Nutrients!$ET$8,Nutrients!$ET$9)*AS$7)+(((IF($A$8=Nutrients!$B$79,Nutrients!$ET$79,(IF($A$8=Nutrients!$B$77,Nutrients!$ET$77,Nutrients!$ET$78)))))*AS$8))","v":900000},{"$f":"(SUMPRODUCT(AT$9:AT$229,Nutrients!$ET$8:$ET$228)+(IF($A$7=Nutrients!$B$8,Nutrients!$ET$8,Nutrients!$ET$9)*AT$7)+(((IF($A$8=Nutrients!$B$79,Nutrients!$ET$79,(IF($A$8=Nutrients!$B$77,Nutrients!$ET$77,Nutrients!$ET$78)))))*AT$8))","v":750000},{"$f":"(SUMPRODUCT(AU$9:AU$229,Nutrients!$ET$8:$ET$228)+(IF($A$7=Nutrients!$B$8,Nutrients!$ET$8,Nutrients!$ET$9)*AU$7)+(((IF($A$8=Nutrients!$B$79,Nutrients!$ET$79,(IF($A$8=Nutrients!$B$77,Nutrients!$ET$77,Nutrients!$ET$78)))))*AU$8))","v":600000},{"$f":"(SUMPRODUCT(AV$9:AV$229,Nutrients!$ET$8:$ET$228)+(IF($A$7=Nutrients!$B$8,Nutrients!$ET$8,Nutrients!$ET$9)*AV$7)+(((IF($A$8=Nutrients!$B$79,Nutrients!$ET$79,(IF($A$8=Nutrients!$B$77,Nutrients!$ET$77,Nutrients!$ET$78)))))*AV$8))","v":450000},{"$f":"(SUMPRODUCT(AW$9:AW$229,Nutrients!$ET$8:$ET$228)+(IF($A$7=Nutrients!$B$8,Nutrients!$ET$8,Nutrients!$ET$9)*AW$7)+(((IF($A$8=Nutrients!$B$79,Nutrients!$ET$79,(IF($A$8=Nutrients!$B$77,Nutrients!$ET$77,Nutrients!$ET$78)))))*AW$8))","v":450000}]
["  Vit E, IU/ton",{"$f":"(SUMPRODUCT(B$9:B$229,Nutrients!$EU$8:$EU$228)+(IF($A$7=Nutrients!$B$8,Nutrients!$EU$8,Nutrients!$EU$9)*B$7)+(((IF($A$8=Nutrients!$B$79,Nutrients!$EU$79,(IF($A$8=Nutrients!$B$77,Nutrients!$EU$77,Nutrients!$EU$78)))))*B$8))","v":24000},{"$f":"(SUMPRODUCT(C$9:C$229,Nutrients!$EU$8:$EU$228)+(IF($A$7=Nutrients!$B$8,Nutrients!$EU$8,Nutrients!$EU$9)*C$7)+(((IF($A$8=Nutrients!$B$79,Nutrients!$EU$79,(IF($A$8=Nutrients!$B$77,Nutrients!$EU$77,Nutrients!$EU$78)))))*C$8))","v":24000},{"$f":"(SUMPRODUCT(D$9:D$229,Nutrients!$EU$8:$EU$228)+(IF($A$7=Nutrients!$B$8,Nutrients!$EU$8,Nutrients!$EU$9)*D$7)+(((IF($A$8=Nutrients!$B$79,Nutrients!$EU$79,(IF($A$8=Nutrients!$B$77,Nutrients!$EU$77,Nutrients!$EU$78)))))*D$8))","v":20000},{"$f":"(SUMPRODUCT(E$9:E$229,Nutrients!$EU$8:$EU$228)+(IF($A$7=Nutrients!$B$8,Nutrients!$EU$8,Nutrients!$EU$9)*E$7)+(((IF($A$8=Nutrients!$B$79,Nutrients!$EU$79,(IF($A$8=Nutrients!$B$77,Nutrients!$EU$77,Nutrients!$EU$78)))))*E$8))","v":16000},{"$f":"(SUMPRODUCT(F$9:F$229,Nutrients!$EU$8:$EU$228)+(IF($A$7=Nutrients!$B$8,Nutrients!$EU$8,Nutrients!$EU$9)*F$7)+(((IF($A$8=Nutrients!$B$79,Nutrients!$EU$79,(IF($A$8=Nutrients!$B$77,Nutrients!$EU$77,Nutrients!$EU$78)))))*F$8))","v":12000},{"$f":"(SUMPRODUCT(G$9:G$229,Nutrients!$EU$8:$EU$228)+(IF($A$7=Nutrients!$B$8,Nutrients!$EU$8,Nutrients!$EU$9)*G$7)+(((IF($A$8=Nutrients!$B$79,Nutrients!$EU$79,(IF($A$8=Nutrients!$B$77,Nutrients!$EU$77,Nutrients!$EU$78)))))*G$8))","v":12000},null,{"$f":"(SUMPRODUCT(I$9:I$229,Nutrients!$EU$8:$EU$228)+(IF($A$7=Nutrients!$B$8,Nutrients!$EU$8,Nutrients!$EU$9)*I$7)+(((IF($A$8=Nutrients!$B$79,Nutrients!$EU$79,(IF($A$8=Nutrients!$B$77,Nutrients!$EU$77,Nutrients!$EU$78)))))*I$8))","v":24000},{"$f":"(SUMPRODUCT(J$9:J$229,Nutrients!$EU$8:$EU$228)+(IF($A$7=Nutrients!$B$8,Nutrients!$EU$8,Nutrients!$EU$9)*J$7)+(((IF($A$8=Nutrients!$B$79,Nutrients!$EU$79,(IF($A$8=Nutrients!$B$77,Nutrients!$EU$77,Nutrients!$EU$78)))))*J$8))","v":24000},{"$f":"(SUMPRODUCT(K$9:K$229,Nutrients!$EU$8:$EU$228)+(IF($A$7=Nutrients!$B$8,Nutrients!$EU$8,Nutrients!$EU$9)*K$7)+(((IF($A$8=Nutrients!$B$79,Nutrients!$EU$79,(IF($A$8=Nutrients!$B$77,Nutrients!$EU$77,Nutrients!$EU$78)))))*K$8))","v":20000},{"$f":"(SUMPRODUCT(L$9:L$229,Nutrients!$EU$8:$EU$228)+(IF($A$7=Nutrients!$B$8,Nutrients!$EU$8,Nutrients!$EU$9)*L$7)+(((IF($A$8=Nutrients!$B$79,Nutrients!$EU$79,(IF($A$8=Nutrients!$B$77,Nutrients!$EU$77,Nutrients!$EU$78)))))*L$8))","v":16000},{"$f":"(SUMPRODUCT(M$9:M$229,Nutrients!$EU$8:$EU$228)+(IF($A$7=Nutrients!$B$8,Nutrients!$EU$8,Nutrients!$EU$9)*M$7)+(((IF($A$8=Nutrients!$B$79,Nutrients!$EU$79,(IF($A$8=Nutrients!$B$77,Nutrients!$EU$77,Nutrients!$EU$78)))))*M$8))","v":12000},{"$f":"(SUMPRODUCT(N$9:N$229,Nutrients!$EU$8:$EU$228)+(IF($A$7=Nutrients!$B$8,Nutrients!$EU$8,Nutrients!$EU$9)*N$7)+(((IF($A$8=Nutrients!$B$79,Nutrients!$EU$79,(IF($A$8=Nutrients!$B$77,Nutrients!$EU$77,Nutrients!$EU$78)))))*N$8))","v":12000},null,{"$f":"(SUMPRODUCT(P$9:P$229,Nutrients!$EU$8:$EU$228)+(IF($A$7=Nutrients!$B$8,Nutrients!$EU$8,Nutrients!$EU$9)*P$7)+(((IF($A$8=Nutrients!$B$79,Nutrients!$EU$79,(IF($A$8=Nutrients!$B$77,Nutrients!$EU$77,Nutrients!$EU$78)))))*P$8))","v":24000},{"$f":"(SUMPRODUCT(Q$9:Q$229,Nutrients!$EU$8:$EU$228)+(IF($A$7=Nutrients!$B$8,Nutrients!$EU$8,Nutrients!$EU$9)*Q$7)+(((IF($A$8=Nutrients!$B$79,Nutrients!$EU$79,(IF($A$8=Nutrients!$B$77,Nutrients!$EU$77,Nutrients!$EU$78)))))*Q$8))","v":24000},{"$f":"(SUMPRODUCT(R$9:R$229,Nutrients!$EU$8:$EU$228)+(IF($A$7=Nutrients!$B$8,Nutrients!$EU$8,Nutrients!$EU$9)*R$7)+(((IF($A$8=Nutrients!$B$79,Nutrients!$EU$79,(IF($A$8=Nutrients!$B$77,Nutrients!$EU$77,Nutrients!$EU$78)))))*R$8))","v":20000},{"$f":"(SUMPRODUCT(S$9:S$229,Nutrients!$EU$8:$EU$228)+(IF($A$7=Nutrients!$B$8,Nutrients!$EU$8,Nutrients!$EU$9)*S$7)+(((IF($A$8=Nutrients!$B$79,Nutrients!$EU$79,(IF($A$8=Nutrients!$B$77,Nutrients!$EU$77,Nutrients!$EU$78)))))*S$8))","v":16000},{"$f":"(SUMPRODUCT(T$9:T$229,Nutrients!$EU$8:$EU$228)+(IF($A$7=Nutrients!$B$8,Nutrients!$EU$8,Nutrients!$EU$9)*T$7)+(((IF($A$8=Nutrients!$B$79,Nutrients!$EU$79,(IF($A$8=Nutrients!$B$77,Nutrients!$EU$77,Nutrients!$EU$78)))))*T$8))","v":12000},{"$f":"(SUMPRODUCT(U$9:U$229,Nutrients!$EU$8:$EU$228)+(IF($A$7=Nutrients!$B$8,Nutrients!$EU$8,Nutrients!$EU$9)*U$7)+(((IF($A$8=Nutrients!$B$79,Nutrients!$EU$79,(IF($A$8=Nutrients!$B$77,Nutrients!$EU$77,Nutrients!$EU$78)))))*U$8))","v":12000},null,{"$f":"(SUMPRODUCT(W$9:W$229,Nutrients!$EU$8:$EU$228)+(IF($A$7=Nutrients!$B$8,Nutrients!$EU$8,Nutrients!$EU$9)*W$7)+(((IF($A$8=Nutrients!$B$79,Nutrients!$EU$79,(IF($A$8=Nutrients!$B$77,Nutrients!$EU$77,Nutrients!$EU$78)))))*W$8))","v":24000},{"$f":"(SUMPRODUCT(X$9:X$229,Nutrients!$EU$8:$EU$228)+(IF($A$7=Nutrients!$B$8,Nutrients!$EU$8,Nutrients!$EU$9)*X$7)+(((IF($A$8=Nutrients!$B$79,Nutrients!$EU$79,(IF($A$8=Nutrients!$B$77,Nutrients!$EU$77,Nutrients!$EU$78)))))*X$8))","v":24000},{"$f":"(SUMPRODUCT(Y$9:Y$229,Nutrients!$EU$8:$EU$228)+(IF($A$7=Nutrients!$B$8,Nutrients!$EU$8,Nutrients!$EU$9)*Y$7)+(((IF($A$8=Nutrients!$B$79,Nutrients!$EU$79,(IF($A$8=Nutrients!$B$77,Nutrients!$EU$77,Nutrients!$EU$78)))))*Y$8))","v":20000},{"$f":"(SUMPRODUCT(Z$9:Z$229,Nutrients!$EU$8:$EU$228)+(IF($A$7=Nutrients!$B$8,Nutrients!$EU$8,Nutrients!$EU$9)*Z$7)+(((IF($A$8=Nutrients!$B$79,Nutrients!$EU$79,(IF($A$8=Nutrients!$B$77,Nutrients!$EU$77,Nutrients!$EU$78)))))*Z$8))","v":16000},{"$f":"(SUMPRODUCT(AA$9:AA$229,Nutrients!$EU$8:$EU$228)+(IF($A$7=Nutrients!$B$8,Nutrients!$EU$8,Nutrients!$EU$9)*AA$7)+(((IF($A$8=Nutrients!$B$79,Nutrients!$EU$79,(IF($A$8=Nutrients!$B$77,Nutrients!$EU$77,Nutrients!$EU$78)))))*AA$8))","v":12000},{"$f":"(SUMPRODUCT(AB$9:AB$229,Nutrients!$EU$8:$EU$228)+(IF($A$7=Nutrients!$B$8,Nutrients!$EU$8,Nutrients!$EU$9)*AB$7)+(((IF($A$8=Nutrients!$B$79,Nutrients!$EU$79,(IF($A$8=Nutrients!$B$77,Nutrients!$EU$77,Nutrients!$EU$78)))))*AB$8))","v":12000},null,{"$f":"(SUMPRODUCT(AD$9:AD$229,Nutrients!$EU$8:$EU$228)+(IF($A$7=Nutrients!$B$8,Nutrients!$EU$8,Nutrients!$EU$9)*AD$7)+(((IF($A$8=Nutrients!$B$79,Nutrients!$EU$79,(IF($A$8=Nutrients!$B$77,Nutrients!$EU$77,Nutrients!$EU$78)))))*AD$8))","v":24000},{"$f":"(SUMPRODUCT(AE$9:AE$229,Nutrients!$EU$8:$EU$228)+(IF($A$7=Nutrients!$B$8,Nutrients!$EU$8,Nutrients!$EU$9)*AE$7)+(((IF($A$8=Nutrients!$B$79,Nutrients!$EU$79,(IF($A$8=Nutrients!$B$77,Nutrients!$EU$77,Nutrients!$EU$78)))))*AE$8))","v":24000},{"$f":"(SUMPRODUCT(AF$9:AF$229,Nutrients!$EU$8:$EU$228)+(IF($A$7=Nutrients!$B$8,Nutrients!$EU$8,Nutrients!$EU$9)*AF$7)+(((IF($A$8=Nutrients!$B$79,Nutrients!$EU$79,(IF($A$8=Nutrients!$B$77,Nutrients!$EU$77,Nutrients!$EU$78)))))*AF$8))","v":20000},{"$f":"(SUMPRODUCT(AG$9:AG$229,Nutrients!$EU$8:$EU$228)+(IF($A$7=Nutrients!$B$8,Nutrients!$EU$8,Nutrients!$EU$9)*AG$7)+(((IF($A$8=Nutrients!$B$79,Nutrients!$EU$79,(IF($A$8=Nutrients!$B$77,Nutrients!$EU$77,Nutrients!$EU$78)))))*AG$8))","v":16000},{"$f":"(SUMPRODUCT(AH$9:AH$229,Nutrients!$EU$8:$EU$228)+(IF($A$7=Nutrients!$B$8,Nutrients!$EU$8,Nutrients!$EU$9)*AH$7)+(((IF($A$8=Nutrients!$B$79,Nutrients!$EU$79,(IF($A$8=Nutrients!$B$77,Nutrients!$EU$77,Nutrients!$EU$78)))))*AH$8))","v":12000},{"$f":"(SUMPRODUCT(AI$9:AI$229,Nutrients!$EU$8:$EU$228)+(IF($A$7=Nutrients!$B$8,Nutrients!$EU$8,Nutrients!$EU$9)*AI$7)+(((IF($A$8=Nutrients!$B$79,Nutrients!$EU$79,(IF($A$8=Nutrients!$B$77,Nutrients!$EU$77,Nutrients!$EU$78)))))*AI$8))","v":12000},null,{"$f":"(SUMPRODUCT(AK$9:AK$229,Nutrients!$EU$8:$EU$228)+(IF($A$7=Nutrients!$B$8,Nutrients!$EU$8,Nutrients!$EU$9)*AK$7)+(((IF($A$8=Nutrients!$B$79,Nutrients!$EU$79,(IF($A$8=Nutrients!$B$77,Nutrients!$EU$77,Nutrients!$EU$78)))))*AK$8))","v":24000},{"$f":"(SUMPRODUCT(AL$9:AL$229,Nutrients!$EU$8:$EU$228)+(IF($A$7=Nutrients!$B$8,Nutrients!$EU$8,Nutrients!$EU$9)*AL$7)+(((IF($A$8=Nutrients!$B$79,Nutrients!$EU$79,(IF($A$8=Nutrients!$B$77,Nutrients!$EU$77,Nutrients!$EU$78)))))*AL$8))","v":24000},{"$f":"(SUMPRODUCT(AM$9:AM$229,Nutrients!$EU$8:$EU$228)+(IF($A$7=Nutrients!$B$8,Nutrients!$EU$8,Nutrients!$EU$9)*AM$7)+(((IF($A$8=Nutrients!$B$79,Nutrients!$EU$79,(IF($A$8=Nutrients!$B$77,Nutrients!$EU$77,Nutrients!$EU$78)))))*AM$8))","v":20000},{"$f":"(SUMPRODUCT(AN$9:AN$229,Nutrients!$EU$8:$EU$228)+(IF($A$7=Nutrients!$B$8,Nutrients!$EU$8,Nutrients!$EU$9)*AN$7)+(((IF($A$8=Nutrients!$B$79,Nutrients!$EU$79,(IF($A$8=Nutrients!$B$77,Nutrients!$EU$77,Nutrients!$EU$78)))))*AN$8))","v":16000},{"$f":"(SUMPRODUCT(AO$9:AO$229,Nutrients!$EU$8:$EU$228)+(IF($A$7=Nutrients!$B$8,Nutrients!$EU$8,Nutrients!$EU$9)*AO$7)+(((IF($A$8=Nutrients!$B$79,Nutrients!$EU$79,(IF($A$8=Nutrients!$B$77,Nutrients!$EU$77,Nutrients!$EU$78)))))*AO$8))","v":12000},{"$f":"(SUMPRODUCT(AP$9:AP$229,Nutrients!$EU$8:$EU$228)+(IF($A$7=Nutrients!$B$8,Nutrients!$EU$8,Nutrients!$EU$9)*AP$7)+(((IF($A$8=Nutrients!$B$79,Nutrients!$EU$79,(IF($A$8=Nutrients!$B$77,Nutrients!$EU$77,Nutrients!$EU$78)))))*AP$8))","v":12000},null,{"$f":"(SUMPRODUCT(AR$9:AR$229,Nutrients!$EU$8:$EU$228)+(IF($A$7=Nutrients!$B$8,Nutrients!$EU$8,Nutrients!$EU$9)*AR$7)+(((IF($A$8=Nutrients!$B$79,Nutrients!$EU$79,(IF($A$8=Nutrients!$B$77,Nutrients!$EU$77,Nutrients!$EU$78)))))*AR$8))","v":24000},{"$f":"(SUMPRODUCT(AS$9:AS$229,Nutrients!$EU$8:$EU$228)+(IF($A$7=Nutrients!$B$8,Nutrients!$EU$8,Nutrients!$EU$9)*AS$7)+(((IF($A$8=Nutrients!$B$79,Nutrients!$EU$79,(IF($A$8=Nutrients!$B$77,Nutrients!$EU$77,Nutrients!$EU$78)))))*AS$8))","v":24000},{"$f":"(SUMPRODUCT(AT$9:AT$229,Nutrients!$EU$8:$EU$228)+(IF($A$7=Nutrients!$B$8,Nutrients!$EU$8,Nutrients!$EU$9)*AT$7)+(((IF($A$8=Nutrients!$B$79,Nutrients!$EU$79,(IF($A$8=Nutrients!$B$77,Nutrients!$EU$77,Nutrients!$EU$78)))))*AT$8))","v":20000},{"$f":"(SUMPRODUCT(AU$9:AU$229,Nutrients!$EU$8:$EU$228)+(IF($A$7=Nutrients!$B$8,Nutrients!$EU$8,Nutrients!$EU$9)*AU$7)+(((IF($A$8=Nutrients!$B$79,Nutrients!$EU$79,(IF($A$8=Nutrients!$B$77,Nutrients!$EU$77,Nutrients!$EU$78)))))*AU$8))","v":16000},{"$f":"(SUMPRODUCT(AV$9:AV$229,Nutrients!$EU$8:$EU$228)+(IF($A$7=Nutrients!$B$8,Nutrients!$EU$8,Nutrients!$EU$9)*AV$7)+(((IF($A$8=Nutrients!$B$79,Nutrients!$EU$79,(IF($A$8=Nutrients!$B$77,Nutrients!$EU$77,Nutrients!$EU$78)))))*AV$8))","v":12000},{"$f":"(SUMPRODUCT(AW$9:AW$229,Nutrients!$EU$8:$EU$228)+(IF($A$7=Nutrients!$B$8,Nutrients!$EU$8,Nutrients!$EU$9)*AW$7)+(((IF($A$8=Nutrients!$B$79,Nutrients!$EU$79,(IF($A$8=Nutrients!$B$77,Nutrients!$EU$77,Nutrients!$EU$78)))))*AW$8))","v":12000}]
["  Vit K (menadione), mg/ton",{"$f":"(SUMPRODUCT(B$9:B$229,Nutrients!$EV$8:$EV$228)+(IF($A$7=Nutrients!$B$8,Nutrients!$EV$8,Nutrients!$EV$9)*B$7)+(((IF($A$8=Nutrients!$B$79,Nutrients!$EV$79,(IF($A$8=Nutrients!$B$77,Nutrients!$EV$77,Nutrients!$EV$78)))))*B$8))","v":1800},{"$f":"(SUMPRODUCT(C$9:C$229,Nutrients!$EV$8:$EV$228)+(IF($A$7=Nutrients!$B$8,Nutrients!$EV$8,Nutrients!$EV$9)*C$7)+(((IF($A$8=Nutrients!$B$79,Nutrients!$EV$79,(IF($A$8=Nutrients!$B$77,Nutrients!$EV$77,Nutrients!$EV$78)))))*C$8))","v":1800},{"$f":"(SUMPRODUCT(D$9:D$229,Nutrients!$EV$8:$EV$228)+(IF($A$7=Nutrients!$B$8,Nutrients!$EV$8,Nutrients!$EV$9)*D$7)+(((IF($A$8=Nutrients!$B$79,Nutrients!$EV$79,(IF($A$8=Nutrients!$B$77,Nutrients!$EV$77,Nutrients!$EV$78)))))*D$8))","v":1500},{"$f":"(SUMPRODUCT(E$9:E$229,Nutrients!$EV$8:$EV$228)+(IF($A$7=Nutrients!$B$8,Nutrients!$EV$8,Nutrients!$EV$9)*E$7)+(((IF($A$8=Nutrients!$B$79,Nutrients!$EV$79,(IF($A$8=Nutrients!$B$77,Nutrients!$EV$77,Nutrients!$EV$78)))))*E$8))","v":1200},{"$f":"(SUMPRODUCT(F$9:F$229,Nutrients!$EV$8:$EV$228)+(IF($A$7=Nutrients!$B$8,Nutrients!$EV$8,Nutrients!$EV$9)*F$7)+(((IF($A$8=Nutrients!$B$79,Nutrients!$EV$79,(IF($A$8=Nutrients!$B$77,Nutrients!$EV$77,Nutrients!$EV$78)))))*F$8))","v":900},{"$f":"(SUMPRODUCT(G$9:G$229,Nutrients!$EV$8:$EV$228)+(IF($A$7=Nutrients!$B$8,Nutrients!$EV$8,Nutrients!$EV$9)*G$7)+(((IF($A$8=Nutrients!$B$79,Nutrients!$EV$79,(IF($A$8=Nutrients!$B$77,Nutrients!$EV$77,Nutrients!$EV$78)))))*G$8))","v":900},null,{"$f":"(SUMPRODUCT(I$9:I$229,Nutrients!$EV$8:$EV$228)+(IF($A$7=Nutrients!$B$8,Nutrients!$EV$8,Nutrients!$EV$9)*I$7)+(((IF($A$8=Nutrients!$B$79,Nutrients!$EV$79,(IF($A$8=Nutrients!$B$77,Nutrients!$EV$77,Nutrients!$EV$78)))))*I$8))","v":1800},{"$f":"(SUMPRODUCT(J$9:J$229,Nutrients!$EV$8:$EV$228)+(IF($A$7=Nutrients!$B$8,Nutrients!$EV$8,Nutrients!$EV$9)*J$7)+(((IF($A$8=Nutrients!$B$79,Nutrients!$EV$79,(IF($A$8=Nutrients!$B$77,Nutrients!$EV$77,Nutrients!$EV$78)))))*J$8))","v":1800},{"$f":"(SUMPRODUCT(K$9:K$229,Nutrients!$EV$8:$EV$228)+(IF($A$7=Nutrients!$B$8,Nutrients!$EV$8,Nutrients!$EV$9)*K$7)+(((IF($A$8=Nutrients!$B$79,Nutrients!$EV$79,(IF($A$8=Nutrients!$B$77,Nutrients!$EV$77,Nutrients!$EV$78)))))*K$8))","v":1500},{"$f":"(SUMPRODUCT(L$9:L$229,Nutrients!$EV$8:$EV$228)+(IF($A$7=Nutrients!$B$8,Nutrients!$EV$8,Nutrients!$EV$9)*L$7)+(((IF($A$8=Nutrients!$B$79,Nutrients!$EV$79,(IF($A$8=Nutrients!$B$77,Nutrients!$EV$77,Nutrients!$EV$78)))))*L$8))","v":1200},{"$f":"(SUMPRODUCT(M$9:M$229,Nutrients!$EV$8:$EV$228)+(IF($A$7=Nutrients!$B$8,Nutrients!$EV$8,Nutrients!$EV$9)*M$7)+(((IF($A$8=Nutrients!$B$79,Nutrients!$EV$79,(IF($A$8=Nutrients!$B$77,Nutrients!$EV$77,Nutrients!$EV$78)))))*M$8))","v":900},{"$f":"(SUMPRODUCT(N$9:N$229,Nutrients!$EV$8:$EV$228)+(IF($A$7=Nutrients!$B$8,Nutrients!$EV$8,Nutrients!$EV$9)*N$7)+(((IF($A$8=Nutrients!$B$79,Nutrients!$EV$79,(IF($A$8=Nutrients!$B$77,Nutrients!$EV$77,Nutrients!$EV$78)))))*N$8))","v":900},null,{"$f":"(SUMPRODUCT(P$9:P$229,Nutrients!$EV$8:$EV$228)+(IF($A$7=Nutrients!$B$8,Nutrients!$EV$8,Nutrients!$EV$9)*P$7)+(((IF($A$8=Nutrients!$B$79,Nutrients!$EV$79,(IF($A$8=Nutrients!$B$77,Nutrients!$EV$77,Nutrients!$EV$78)))))*P$8))","v":1800},{"$f":"(SUMPRODUCT(Q$9:Q$229,Nutrients!$EV$8:$EV$228)+(IF($A$7=Nutrients!$B$8,Nutrients!$EV$8,Nutrients!$EV$9)*Q$7)+(((IF($A$8=Nutrients!$B$79,Nutrients!$EV$79,(IF($A$8=Nutrients!$B$77,Nutrients!$EV$77,Nutrients!$EV$78)))))*Q$8))","v":1800},{"$f":"(SUMPRODUCT(R$9:R$229,Nutrients!$EV$8:$EV$228)+(IF($A$7=Nutrients!$B$8,Nutrients!$EV$8,Nutrients!$EV$9)*R$7)+(((IF($A$8=Nutrients!$B$79,Nutrients!$EV$79,(IF($A$8=Nutrients!$B$77,Nutrients!$EV$77,Nutrients!$EV$78)))))*R$8))","v":1500},{"$f":"(SUMPRODUCT(S$9:S$229,Nutrients!$EV$8:$EV$228)+(IF($A$7=Nutrients!$B$8,Nutrients!$EV$8,Nutrients!$EV$9)*S$7)+(((IF($A$8=Nutrients!$B$79,Nutrients!$EV$79,(IF($A$8=Nutrients!$B$77,Nutrients!$EV$77,Nutrients!$EV$78)))))*S$8))","v":1200},{"$f":"(SUMPRODUCT(T$9:T$229,Nutrients!$EV$8:$EV$228)+(IF($A$7=Nutrients!$B$8,Nutrients!$EV$8,Nutrients!$EV$9)*T$7)+(((IF($A$8=Nutrients!$B$79,Nutrients!$EV$79,(IF($A$8=Nutrients!$B$77,Nutrients!$EV$77,Nutrients!$EV$78)))))*T$8))","v":900},{"$f":"(SUMPRODUCT(U$9:U$229,Nutrients!$EV$8:$EV$228)+(IF($A$7=Nutrients!$B$8,Nutrients!$EV$8,Nutrients!$EV$9)*U$7)+(((IF($A$8=Nutrients!$B$79,Nutrients!$EV$79,(IF($A$8=Nutrients!$B$77,Nutrients!$EV$77,Nutrients!$EV$78)))))*U$8))","v":900},null,{"$f":"(SUMPRODUCT(W$9:W$229,Nutrients!$EV$8:$EV$228)+(IF($A$7=Nutrients!$B$8,Nutrients!$EV$8,Nutrients!$EV$9)*W$7)+(((IF($A$8=Nutrients!$B$79,Nutrients!$EV$79,(IF($A$8=Nutrients!$B$77,Nutrients!$EV$77,Nutrients!$EV$78)))))*W$8))","v":1800},{"$f":"(SUMPRODUCT(X$9:X$229,Nutrients!$EV$8:$EV$228)+(IF($A$7=Nutrients!$B$8,Nutrients!$EV$8,Nutrients!$EV$9)*X$7)+(((IF($A$8=Nutrients!$B$79,Nutrients!$EV$79,(IF($A$8=Nutrients!$B$77,Nutrients!$EV$77,Nutrients!$EV$78)))))*X$8))","v":1800},{"$f":"(SUMPRODUCT(Y$9:Y$229,Nutrients!$EV$8:$EV$228)+(IF($A$7=Nutrients!$B$8,Nutrients!$EV$8,Nutrients!$EV$9)*Y$7)+(((IF($A$8=Nutrients!$B$79,Nutrients!$EV$79,(IF($A$8=Nutrients!$B$77,Nutrients!$EV$77,Nutrients!$EV$78)))))*Y$8))","v":1500},{"$f":"(SUMPRODUCT(Z$9:Z$229,Nutrients!$EV$8:$EV$228)+(IF($A$7=Nutrients!$B$8,Nutrients!$EV$8,Nutrients!$EV$9)*Z$7)+(((IF($A$8=Nutrients!$B$79,Nutrients!$EV$79,(IF($A$8=Nutrients!$B$77,Nutrients!$EV$77,Nutrients!$EV$78)))))*Z$8))","v":1200},{"$f":"(SUMPRODUCT(AA$9:AA$229,Nutrients!$EV$8:$EV$228)+(IF($A$7=Nutrients!$B$8,Nutrients!$EV$8,Nutrients!$EV$9)*AA$7)+(((IF($A$8=Nutrients!$B$79,Nutrients!$EV$79,(IF($A$8=Nutrients!$B$77,Nutrients!$EV$77,Nutrients!$EV$78)))))*AA$8))","v":900},{"$f":"(SUMPRODUCT(AB$9:AB$229,Nutrients!$EV$8:$EV$228)+(IF($A$7=Nutrients!$B$8,Nutrients!$EV$8,Nutrients!$EV$9)*AB$7)+(((IF($A$8=Nutrients!$B$79,Nutrients!$EV$79,(IF($A$8=Nutrients!$B$77,Nutrients!$EV$77,Nutrients!$EV$78)))))*AB$8))","v":900},null,{"$f":"(SUMPRODUCT(AD$9:AD$229,Nutrients!$EV$8:$EV$228)+(IF($A$7=Nutrients!$B$8,Nutrients!$EV$8,Nutrients!$EV$9)*AD$7)+(((IF($A$8=Nutrients!$B$79,Nutrients!$EV$79,(IF($A$8=Nutrients!$B$77,Nutrients!$EV$77,Nutrients!$EV$78)))))*AD$8))","v":1800},{"$f":"(SUMPRODUCT(AE$9:AE$229,Nutrients!$EV$8:$EV$228)+(IF($A$7=Nutrients!$B$8,Nutrients!$EV$8,Nutrients!$EV$9)*AE$7)+(((IF($A$8=Nutrients!$B$79,Nutrients!$EV$79,(IF($A$8=Nutrients!$B$77,Nutrients!$EV$77,Nutrients!$EV$78)))))*AE$8))","v":1800},{"$f":"(SUMPRODUCT(AF$9:AF$229,Nutrients!$EV$8:$EV$228)+(IF($A$7=Nutrients!$B$8,Nutrients!$EV$8,Nutrients!$EV$9)*AF$7)+(((IF($A$8=Nutrients!$B$79,Nutrients!$EV$79,(IF($A$8=Nutrients!$B$77,Nutrients!$EV$77,Nutrients!$EV$78)))))*AF$8))","v":1500},{"$f":"(SUMPRODUCT(AG$9:AG$229,Nutrients!$EV$8:$EV$228)+(IF($A$7=Nutrients!$B$8,Nutrients!$EV$8,Nutrients!$EV$9)*AG$7)+(((IF($A$8=Nutrients!$B$79,Nutrients!$EV$79,(IF($A$8=Nutrients!$B$77,Nutrients!$EV$77,Nutrients!$EV$78)))))*AG$8))","v":1200},{"$f":"(SUMPRODUCT(AH$9:AH$229,Nutrients!$EV$8:$EV$228)+(IF($A$7=Nutrients!$B$8,Nutrients!$EV$8,Nutrients!$EV$9)*AH$7)+(((IF($A$8=Nutrients!$B$79,Nutrients!$EV$79,(IF($A$8=Nutrients!$B$77,Nutrients!$EV$77,Nutrients!$EV$78)))))*AH$8))","v":900},{"$f":"(SUMPRODUCT(AI$9:AI$229,Nutrients!$EV$8:$EV$228)+(IF($A$7=Nutrients!$B$8,Nutrients!$EV$8,Nutrients!$EV$9)*AI$7)+(((IF($A$8=Nutrients!$B$79,Nutrients!$EV$79,(IF($A$8=Nutrients!$B$77,Nutrients!$EV$77,Nutrients!$EV$78)))))*AI$8))","v":900},null,{"$f":"(SUMPRODUCT(AK$9:AK$229,Nutrients!$EV$8:$EV$228)+(IF($A$7=Nutrients!$B$8,Nutrients!$EV$8,Nutrients!$EV$9)*AK$7)+(((IF($A$8=Nutrients!$B$79,Nutrients!$EV$79,(IF($A$8=Nutrients!$B$77,Nutrients!$EV$77,Nutrients!$EV$78)))))*AK$8))","v":1800},{"$f":"(SUMPRODUCT(AL$9:AL$229,Nutrients!$EV$8:$EV$228)+(IF($A$7=Nutrients!$B$8,Nutrients!$EV$8,Nutrients!$EV$9)*AL$7)+(((IF($A$8=Nutrients!$B$79,Nutrients!$EV$79,(IF($A$8=Nutrients!$B$77,Nutrients!$EV$77,Nutrients!$EV$78)))))*AL$8))","v":1800},{"$f":"(SUMPRODUCT(AM$9:AM$229,Nutrients!$EV$8:$EV$228)+(IF($A$7=Nutrients!$B$8,Nutrients!$EV$8,Nutrients!$EV$9)*AM$7)+(((IF($A$8=Nutrients!$B$79,Nutrients!$EV$79,(IF($A$8=Nutrients!$B$77,Nutrients!$EV$77,Nutrients!$EV$78)))))*AM$8))","v":1500},{"$f":"(SUMPRODUCT(AN$9:AN$229,Nutrients!$EV$8:$EV$228)+(IF($A$7=Nutrients!$B$8,Nutrients!$EV$8,Nutrients!$EV$9)*AN$7)+(((IF($A$8=Nutrients!$B$79,Nutrients!$EV$79,(IF($A$8=Nutrients!$B$77,Nutrients!$EV$77,Nutrients!$EV$78)))))*AN$8))","v":1200},{"$f":"(SUMPRODUCT(AO$9:AO$229,Nutrients!$EV$8:$EV$228)+(IF($A$7=Nutrients!$B$8,Nutrients!$EV$8,Nutrients!$EV$9)*AO$7)+(((IF($A$8=Nutrients!$B$79,Nutrients!$EV$79,(IF($A$8=Nutrients!$B$77,Nutrients!$EV$77,Nutrients!$EV$78)))))*AO$8))","v":900},{"$f":"(SUMPRODUCT(AP$9:AP$229,Nutrients!$EV$8:$EV$228)+(IF($A$7=Nutrients!$B$8,Nutrients!$EV$8,Nutrients!$EV$9)*AP$7)+(((IF($A$8=Nutrients!$B$79,Nutrients!$EV$79,(IF($A$8=Nutrients!$B$77,Nutrients!$EV$77,Nutrients!$EV$78)))))*AP$8))","v":900},null,{"$f":"(SUMPRODUCT(AR$9:AR$229,Nutrients!$EV$8:$EV$228)+(IF($A$7=Nutrients!$B$8,Nutrients!$EV$8,Nutrients!$EV$9)*AR$7)+(((IF($A$8=Nutrients!$B$79,Nutrients!$EV$79,(IF($A$8=Nutrients!$B$77,Nutrients!$EV$77,Nutrients!$EV$78)))))*AR$8))","v":1800},{"$f":"(SUMPRODUCT(AS$9:AS$229,Nutrients!$EV$8:$EV$228)+(IF($A$7=Nutrients!$B$8,Nutrients!$EV$8,Nutrients!$EV$9)*AS$7)+(((IF($A$8=Nutrients!$B$79,Nutrients!$EV$79,(IF($A$8=Nutrients!$B$77,Nutrients!$EV$77,Nutrients!$EV$78)))))*AS$8))","v":1800},{"$f":"(SUMPRODUCT(AT$9:AT$229,Nutrients!$EV$8:$EV$228)+(IF($A$7=Nutrients!$B$8,Nutrients!$EV$8,Nutrients!$EV$9)*AT$7)+(((IF($A$8=Nutrients!$B$79,Nutrients!$EV$79,(IF($A$8=Nutrients!$B$77,Nutrients!$EV$77,Nutrients!$EV$78)))))*AT$8))","v":1500},{"$f":"(SUMPRODUCT(AU$9:AU$229,Nutrients!$EV$8:$EV$228)+(IF($A$7=Nutrients!$B$8,Nutrients!$EV$8,Nutrients!$EV$9)*AU$7)+(((IF($A$8=Nutrients!$B$79,Nutrients!$EV$79,(IF($A$8=Nutrients!$B$77,Nutrients!$EV$77,Nutrients!$EV$78)))))*AU$8))","v":1200},{"$f":"(SUMPRODUCT(AV$9:AV$229,Nutrients!$EV$8:$EV$228)+(IF($A$7=Nutrients!$B$8,Nutrients!$EV$8,Nutrients!$EV$9)*AV$7)+(((IF($A$8=Nutrients!$B$79,Nutrients!$EV$79,(IF($A$8=Nutrients!$B$77,Nutrients!$EV$77,Nutrients!$EV$78)))))*AV$8))","v":900},{"$f":"(SUMPRODUCT(AW$9:AW$229,Nutrients!$EV$8:$EV$228)+(IF($A$7=Nutrients!$B$8,Nutrients!$EV$8,Nutrients!$EV$9)*AW$7)+(((IF($A$8=Nutrients!$B$79,Nutrients!$EV$79,(IF($A$8=Nutrients!$B$77,Nutrients!$EV$77,Nutrients!$EV$78)))))*AW$8))","v":900}]
["  Vit B12, mg/ton",{"$f":"(SUMPRODUCT(B$9:B$229,Nutrients!$EW$8:$EW$228)+(IF($A$7=Nutrients!$B$8,Nutrients!$EW$8,Nutrients!$EW$9)*B$7)+(((IF($A$8=Nutrients!$B$79,Nutrients!$EW$79,(IF($A$8=Nutrients!$B$77,Nutrients!$EW$77,Nutrients!$EW$78)))))*B$8))","v":18},{"$f":"(SUMPRODUCT(C$9:C$229,Nutrients!$EW$8:$EW$228)+(IF($A$7=Nutrients!$B$8,Nutrients!$EW$8,Nutrients!$EW$9)*C$7)+(((IF($A$8=Nutrients!$B$79,Nutrients!$EW$79,(IF($A$8=Nutrients!$B$77,Nutrients!$EW$77,Nutrients!$EW$78)))))*C$8))","v":18},{"$f":"(SUMPRODUCT(D$9:D$229,Nutrients!$EW$8:$EW$228)+(IF($A$7=Nutrients!$B$8,Nutrients!$EW$8,Nutrients!$EW$9)*D$7)+(((IF($A$8=Nutrients!$B$79,Nutrients!$EW$79,(IF($A$8=Nutrients!$B$77,Nutrients!$EW$77,Nutrients!$EW$78)))))*D$8))","v":15},{"$f":"(SUMPRODUCT(E$9:E$229,Nutrients!$EW$8:$EW$228)+(IF($A$7=Nutrients!$B$8,Nutrients!$EW$8,Nutrients!$EW$9)*E$7)+(((IF($A$8=Nutrients!$B$79,Nutrients!$EW$79,(IF($A$8=Nutrients!$B$77,Nutrients!$EW$77,Nutrients!$EW$78)))))*E$8))","v":12},{"$f":"(SUMPRODUCT(F$9:F$229,Nutrients!$EW$8:$EW$228)+(IF($A$7=Nutrients!$B$8,Nutrients!$EW$8,Nutrients!$EW$9)*F$7)+(((IF($A$8=Nutrients!$B$79,Nutrients!$EW$79,(IF($A$8=Nutrients!$B$77,Nutrients!$EW$77,Nutrients!$EW$78)))))*F$8))","v":9},{"$f":"(SUMPRODUCT(G$9:G$229,Nutrients!$EW$8:$EW$228)+(IF($A$7=Nutrients!$B$8,Nutrients!$EW$8,Nutrients!$EW$9)*G$7)+(((IF($A$8=Nutrients!$B$79,Nutrients!$EW$79,(IF($A$8=Nutrients!$B$77,Nutrients!$EW$77,Nutrients!$EW$78)))))*G$8))","v":9},null,{"$f":"(SUMPRODUCT(I$9:I$229,Nutrients!$EW$8:$EW$228)+(IF($A$7=Nutrients!$B$8,Nutrients!$EW$8,Nutrients!$EW$9)*I$7)+(((IF($A$8=Nutrients!$B$79,Nutrients!$EW$79,(IF($A$8=Nutrients!$B$77,Nutrients!$EW$77,Nutrients!$EW$78)))))*I$8))","v":18},{"$f":"(SUMPRODUCT(J$9:J$229,Nutrients!$EW$8:$EW$228)+(IF($A$7=Nutrients!$B$8,Nutrients!$EW$8,Nutrients!$EW$9)*J$7)+(((IF($A$8=Nutrients!$B$79,Nutrients!$EW$79,(IF($A$8=Nutrients!$B$77,Nutrients!$EW$77,Nutrients!$EW$78)))))*J$8))","v":18},{"$f":"(SUMPRODUCT(K$9:K$229,Nutrients!$EW$8:$EW$228)+(IF($A$7=Nutrients!$B$8,Nutrients!$EW$8,Nutrients!$EW$9)*K$7)+(((IF($A$8=Nutrients!$B$79,Nutrients!$EW$79,(IF($A$8=Nutrients!$B$77,Nutrients!$EW$77,Nutrients!$EW$78)))))*K$8))","v":15},{"$f":"(SUMPRODUCT(L$9:L$229,Nutrients!$EW$8:$EW$228)+(IF($A$7=Nutrients!$B$8,Nutrients!$EW$8,Nutrients!$EW$9)*L$7)+(((IF($A$8=Nutrients!$B$79,Nutrients!$EW$79,(IF($A$8=Nutrients!$B$77,Nutrients!$EW$77,Nutrients!$EW$78)))))*L$8))","v":12},{"$f":"(SUMPRODUCT(M$9:M$229,Nutrients!$EW$8:$EW$228)+(IF($A$7=Nutrients!$B$8,Nutrients!$EW$8,Nutrients!$EW$9)*M$7)+(((IF($A$8=Nutrients!$B$79,Nutrients!$EW$79,(IF($A$8=Nutrients!$B$77,Nutrients!$EW$77,Nutrients!$EW$78)))))*M$8))","v":9},{"$f":"(SUMPRODUCT(N$9:N$229,Nutrients!$EW$8:$EW$228)+(IF($A$7=Nutrients!$B$8,Nutrients!$EW$8,Nutrients!$EW$9)*N$7)+(((IF($A$8=Nutrients!$B$79,Nutrients!$EW$79,(IF($A$8=Nutrients!$B$77,Nutrients!$EW$77,Nutrients!$EW$78)))))*N$8))","v":9},null,{"$f":"(SUMPRODUCT(P$9:P$229,Nutrients!$EW$8:$EW$228)+(IF($A$7=Nutrients!$B$8,Nutrients!$EW$8,Nutrients!$EW$9)*P$7)+(((IF($A$8=Nutrients!$B$79,Nutrients!$EW$79,(IF($A$8=Nutrients!$B$77,Nutrients!$EW$77,Nutrients!$EW$78)))))*P$8))","v":18},{"$f":"(SUMPRODUCT(Q$9:Q$229,Nutrients!$EW$8:$EW$228)+(IF($A$7=Nutrients!$B$8,Nutrients!$EW$8,Nutrients!$EW$9)*Q$7)+(((IF($A$8=Nutrients!$B$79,Nutrients!$EW$79,(IF($A$8=Nutrients!$B$77,Nutrients!$EW$77,Nutrients!$EW$78)))))*Q$8))","v":18},{"$f":"(SUMPRODUCT(R$9:R$229,Nutrients!$EW$8:$EW$228)+(IF($A$7=Nutrients!$B$8,Nutrients!$EW$8,Nutrients!$EW$9)*R$7)+(((IF($A$8=Nutrients!$B$79,Nutrients!$EW$79,(IF($A$8=Nutrients!$B$77,Nutrients!$EW$77,Nutrients!$EW$78)))))*R$8))","v":15},{"$f":"(SUMPRODUCT(S$9:S$229,Nutrients!$EW$8:$EW$228)+(IF($A$7=Nutrients!$B$8,Nutrients!$EW$8,Nutrients!$EW$9)*S$7)+(((IF($A$8=Nutrients!$B$79,Nutrients!$EW$79,(IF($A$8=Nutrients!$B$77,Nutrients!$EW$77,Nutrients!$EW$78)))))*S$8))","v":12},{"$f":"(SUMPRODUCT(T$9:T$229,Nutrients!$EW$8:$EW$228)+(IF($A$7=Nutrients!$B$8,Nutrients!$EW$8,Nutrients!$EW$9)*T$7)+(((IF($A$8=Nutrients!$B$79,Nutrients!$EW$79,(IF($A$8=Nutrients!$B$77,Nutrients!$EW$77,Nutrients!$EW$78)))))*T$8))","v":9},{"$f":"(SUMPRODUCT(U$9:U$229,Nutrients!$EW$8:$EW$228)+(IF($A$7=Nutrients!$B$8,Nutrients!$EW$8,Nutrients!$EW$9)*U$7)+(((IF($A$8=Nutrients!$B$79,Nutrients!$EW$79,(IF($A$8=Nutrients!$B$77,Nutrients!$EW$77,Nutrients!$EW$78)))))*U$8))","v":9},null,{"$f":"(SUMPRODUCT(W$9:W$229,Nutrients!$EW$8:$EW$228)+(IF($A$7=Nutrients!$B$8,Nutrients!$EW$8,Nutrients!$EW$9)*W$7)+(((IF($A$8=Nutrients!$B$79,Nutrients!$EW$79,(IF($A$8=Nutrients!$B$77,Nutrients!$EW$77,Nutrients!$EW$78)))))*W$8))","v":18},{"$f":"(SUMPRODUCT(X$9:X$229,Nutrients!$EW$8:$EW$228)+(IF($A$7=Nutrients!$B$8,Nutrients!$EW$8,Nutrients!$EW$9)*X$7)+(((IF($A$8=Nutrients!$B$79,Nutrients!$EW$79,(IF($A$8=Nutrients!$B$77,Nutrients!$EW$77,Nutrients!$EW$78)))))*X$8))","v":18},{"$f":"(SUMPRODUCT(Y$9:Y$229,Nutrients!$EW$8:$EW$228)+(IF($A$7=Nutrients!$B$8,Nutrients!$EW$8,Nutrients!$EW$9)*Y$7)+(((IF($A$8=Nutrients!$B$79,Nutrients!$EW$79,(IF($A$8=Nutrients!$B$77,Nutrients!$EW$77,Nutrients!$EW$78)))))*Y$8))","v":15},{"$f":"(SUMPRODUCT(Z$9:Z$229,Nutrients!$EW$8:$EW$228)+(IF($A$7=Nutrients!$B$8,Nutrients!$EW$8,Nutrients!$EW$9)*Z$7)+(((IF($A$8=Nutrients!$B$79,Nutrients!$EW$79,(IF($A$8=Nutrients!$B$77,Nutrients!$EW$77,Nutrients!$EW$78)))))*Z$8))","v":12},{"$f":"(SUMPRODUCT(AA$9:AA$229,Nutrients!$EW$8:$EW$228)+(IF($A$7=Nutrients!$B$8,Nutrients!$EW$8,Nutrients!$EW$9)*AA$7)+(((IF($A$8=Nutrients!$B$79,Nutrients!$EW$79,(IF($A$8=Nutrients!$B$77,Nutrients!$EW$77,Nutrients!$EW$78)))))*AA$8))","v":9},{"$f":"(SUMPRODUCT(AB$9:AB$229,Nutrients!$EW$8:$EW$228)+(IF($A$7=Nutrients!$B$8,Nutrients!$EW$8,Nutrients!$EW$9)*AB$7)+(((IF($A$8=Nutrients!$B$79,Nutrients!$EW$79,(IF($A$8=Nutrients!$B$77,Nutrients!$EW$77,Nutrients!$EW$78)))))*AB$8))","v":9},null,{"$f":"(SUMPRODUCT(AD$9:AD$229,Nutrients!$EW$8:$EW$228)+(IF($A$7=Nutrients!$B$8,Nutrients!$EW$8,Nutrients!$EW$9)*AD$7)+(((IF($A$8=Nutrients!$B$79,Nutrients!$EW$79,(IF($A$8=Nutrients!$B$77,Nutrients!$EW$77,Nutrients!$EW$78)))))*AD$8))","v":18},{"$f":"(SUMPRODUCT(AE$9:AE$229,Nutrients!$EW$8:$EW$228)+(IF($A$7=Nutrients!$B$8,Nutrients!$EW$8,Nutrients!$EW$9)*AE$7)+(((IF($A$8=Nutrients!$B$79,Nutrients!$EW$79,(IF($A$8=Nutrients!$B$77,Nutrients!$EW$77,Nutrients!$EW$78)))))*AE$8))","v":18},{"$f":"(SUMPRODUCT(AF$9:AF$229,Nutrients!$EW$8:$EW$228)+(IF($A$7=Nutrients!$B$8,Nutrients!$EW$8,Nutrients!$EW$9)*AF$7)+(((IF($A$8=Nutrients!$B$79,Nutrients!$EW$79,(IF($A$8=Nutrients!$B$77,Nutrients!$EW$77,Nutrients!$EW$78)))))*AF$8))","v":15},{"$f":"(SUMPRODUCT(AG$9:AG$229,Nutrients!$EW$8:$EW$228)+(IF($A$7=Nutrients!$B$8,Nutrients!$EW$8,Nutrients!$EW$9)*AG$7)+(((IF($A$8=Nutrients!$B$79,Nutrients!$EW$79,(IF($A$8=Nutrients!$B$77,Nutrients!$EW$77,Nutrients!$EW$78)))))*AG$8))","v":12},{"$f":"(SUMPRODUCT(AH$9:AH$229,Nutrients!$EW$8:$EW$228)+(IF($A$7=Nutrients!$B$8,Nutrients!$EW$8,Nutrients!$EW$9)*AH$7)+(((IF($A$8=Nutrients!$B$79,Nutrients!$EW$79,(IF($A$8=Nutrients!$B$77,Nutrients!$EW$77,Nutrients!$EW$78)))))*AH$8))","v":9},{"$f":"(SUMPRODUCT(AI$9:AI$229,Nutrients!$EW$8:$EW$228)+(IF($A$7=Nutrients!$B$8,Nutrients!$EW$8,Nutrients!$EW$9)*AI$7)+(((IF($A$8=Nutrients!$B$79,Nutrients!$EW$79,(IF($A$8=Nutrients!$B$77,Nutrients!$EW$77,Nutrients!$EW$78)))))*AI$8))","v":9},null,{"$f":"(SUMPRODUCT(AK$9:AK$229,Nutrients!$EW$8:$EW$228)+(IF($A$7=Nutrients!$B$8,Nutrients!$EW$8,Nutrients!$EW$9)*AK$7)+(((IF($A$8=Nutrients!$B$79,Nutrients!$EW$79,(IF($A$8=Nutrients!$B$77,Nutrients!$EW$77,Nutrients!$EW$78)))))*AK$8))","v":18},{"$f":"(SUMPRODUCT(AL$9:AL$229,Nutrients!$EW$8:$EW$228)+(IF($A$7=Nutrients!$B$8,Nutrients!$EW$8,Nutrients!$EW$9)*AL$7)+(((IF($A$8=Nutrients!$B$79,Nutrients!$EW$79,(IF($A$8=Nutrients!$B$77,Nutrients!$EW$77,Nutrients!$EW$78)))))*AL$8))","v":18},{"$f":"(SUMPRODUCT(AM$9:AM$229,Nutrients!$EW$8:$EW$228)+(IF($A$7=Nutrients!$B$8,Nutrients!$EW$8,Nutrients!$EW$9)*AM$7)+(((IF($A$8=Nutrients!$B$79,Nutrients!$EW$79,(IF($A$8=Nutrients!$B$77,Nutrients!$EW$77,Nutrients!$EW$78)))))*AM$8))","v":15},{"$f":"(SUMPRODUCT(AN$9:AN$229,Nutrients!$EW$8:$EW$228)+(IF($A$7=Nutrients!$B$8,Nutrients!$EW$8,Nutrients!$EW$9)*AN$7)+(((IF($A$8=Nutrients!$B$79,Nutrients!$EW$79,(IF($A$8=Nutrients!$B$77,Nutrients!$EW$77,Nutrients!$EW$78)))))*AN$8))","v":12},{"$f":"(SUMPRODUCT(AO$9:AO$229,Nutrients!$EW$8:$EW$228)+(IF($A$7=Nutrients!$B$8,Nutrients!$EW$8,Nutrients!$EW$9)*AO$7)+(((IF($A$8=Nutrients!$B$79,Nutrients!$EW$79,(IF($A$8=Nutrients!$B$77,Nutrients!$EW$77,Nutrients!$EW$78)))))*AO$8))","v":9},{"$f":"(SUMPRODUCT(AP$9:AP$229,Nutrients!$EW$8:$EW$228)+(IF($A$7=Nutrients!$B$8,Nutrients!$EW$8,Nutrients!$EW$9)*AP$7)+(((IF($A$8=Nutrients!$B$79,Nutrients!$EW$79,(IF($A$8=Nutrients!$B$77,Nutrients!$EW$77,Nutrients!$EW$78)))))*AP$8))","v":9},null,{"$f":"(SUMPRODUCT(AR$9:AR$229,Nutrients!$EW$8:$EW$228)+(IF($A$7=Nutrients!$B$8,Nutrients!$EW$8,Nutrients!$EW$9)*AR$7)+(((IF($A$8=Nutrients!$B$79,Nutrients!$EW$79,(IF($A$8=Nutrients!$B$77,Nutrients!$EW$77,Nutrients!$EW$78)))))*AR$8))","v":18},{"$f":"(SUMPRODUCT(AS$9:AS$229,Nutrients!$EW$8:$EW$228)+(IF($A$7=Nutrients!$B$8,Nutrients!$EW$8,Nutrients!$EW$9)*AS$7)+(((IF($A$8=Nutrients!$B$79,Nutrients!$EW$79,(IF($A$8=Nutrients!$B$77,Nutrients!$EW$77,Nutrients!$EW$78)))))*AS$8))","v":18},{"$f":"(SUMPRODUCT(AT$9:AT$229,Nutrients!$EW$8:$EW$228)+(IF($A$7=Nutrients!$B$8,Nutrients!$EW$8,Nutrients!$EW$9)*AT$7)+(((IF($A$8=Nutrients!$B$79,Nutrients!$EW$79,(IF($A$8=Nutrients!$B$77,Nutrients!$EW$77,Nutrients!$EW$78)))))*AT$8))","v":15},{"$f":"(SUMPRODUCT(AU$9:AU$229,Nutrients!$EW$8:$EW$228)+(IF($A$7=Nutrients!$B$8,Nutrients!$EW$8,Nutrients!$EW$9)*AU$7)+(((IF($A$8=Nutrients!$B$79,Nutrients!$EW$79,(IF($A$8=Nutrients!$B$77,Nutrients!$EW$77,Nutrients!$EW$78)))))*AU$8))","v":12},{"$f":"(SUMPRODUCT(AV$9:AV$229,Nutrients!$EW$8:$EW$228)+(IF($A$7=Nutrients!$B$8,Nutrients!$EW$8,Nutrients!$EW$9)*AV$7)+(((IF($A$8=Nutrients!$B$79,Nutrients!$EW$79,(IF($A$8=Nutrients!$B$77,Nutrients!$EW$77,Nutrients!$EW$78)))))*AV$8))","v":9},{"$f":"(SUMPRODUCT(AW$9:AW$229,Nutrients!$EW$8:$EW$228)+(IF($A$7=Nutrients!$B$8,Nutrients!$EW$8,Nutrients!$EW$9)*AW$7)+(((IF($A$8=Nutrients!$B$79,Nutrients!$EW$79,(IF($A$8=Nutrients!$B$77,Nutrients!$EW$77,Nutrients!$EW$78)))))*AW$8))","v":9}]
["  Niacin, mg/ton",{"$f":"(SUMPRODUCT(B$9:B$229,Nutrients!$EX$8:$EX$228)+(IF($A$7=Nutrients!$B$8,Nutrients!$EX$8,Nutrients!$EX$9)*B$7)+(((IF($A$8=Nutrients!$B$79,Nutrients!$EX$79,(IF($A$8=Nutrients!$B$77,Nutrients!$EX$77,Nutrients!$EX$78)))))*B$8))","v":27000},{"$f":"(SUMPRODUCT(C$9:C$229,Nutrients!$EX$8:$EX$228)+(IF($A$7=Nutrients!$B$8,Nutrients!$EX$8,Nutrients!$EX$9)*C$7)+(((IF($A$8=Nutrients!$B$79,Nutrients!$EX$79,(IF($A$8=Nutrients!$B$77,Nutrients!$EX$77,Nutrients!$EX$78)))))*C$8))","v":27000},{"$f":"(SUMPRODUCT(D$9:D$229,Nutrients!$EX$8:$EX$228)+(IF($A$7=Nutrients!$B$8,Nutrients!$EX$8,Nutrients!$EX$9)*D$7)+(((IF($A$8=Nutrients!$B$79,Nutrients!$EX$79,(IF($A$8=Nutrients!$B$77,Nutrients!$EX$77,Nutrients!$EX$78)))))*D$8))","v":22500},{"$f":"(SUMPRODUCT(E$9:E$229,Nutrients!$EX$8:$EX$228)+(IF($A$7=Nutrients!$B$8,Nutrients!$EX$8,Nutrients!$EX$9)*E$7)+(((IF($A$8=Nutrients!$B$79,Nutrients!$EX$79,(IF($A$8=Nutrients!$B$77,Nutrients!$EX$77,Nutrients!$EX$78)))))*E$8))","v":18000},{"$f":"(SUMPRODUCT(F$9:F$229,Nutrients!$EX$8:$EX$228)+(IF($A$7=Nutrients!$B$8,Nutrients!$EX$8,Nutrients!$EX$9)*F$7)+(((IF($A$8=Nutrients!$B$79,Nutrients!$EX$79,(IF($A$8=Nutrients!$B$77,Nutrients!$EX$77,Nutrients!$EX$78)))))*F$8))","v":13500},{"$f":"(SUMPRODUCT(G$9:G$229,Nutrients!$EX$8:$EX$228)+(IF($A$7=Nutrients!$B$8,Nutrients!$EX$8,Nutrients!$EX$9)*G$7)+(((IF($A$8=Nutrients!$B$79,Nutrients!$EX$79,(IF($A$8=Nutrients!$B$77,Nutrients!$EX$77,Nutrients!$EX$78)))))*G$8))","v":13500},null,{"$f":"(SUMPRODUCT(I$9:I$229,Nutrients!$EX$8:$EX$228)+(IF($A$7=Nutrients!$B$8,Nutrients!$EX$8,Nutrients!$EX$9)*I$7)+(((IF($A$8=Nutrients!$B$79,Nutrients!$EX$79,(IF($A$8=Nutrients!$B$77,Nutrients!$EX$77,Nutrients!$EX$78)))))*I$8))","v":27000},{"$f":"(SUMPRODUCT(J$9:J$229,Nutrients!$EX$8:$EX$228)+(IF($A$7=Nutrients!$B$8,Nutrients!$EX$8,Nutrients!$EX$9)*J$7)+(((IF($A$8=Nutrients!$B$79,Nutrients!$EX$79,(IF($A$8=Nutrients!$B$77,Nutrients!$EX$77,Nutrients!$EX$78)))))*J$8))","v":27000},{"$f":"(SUMPRODUCT(K$9:K$229,Nutrients!$EX$8:$EX$228)+(IF($A$7=Nutrients!$B$8,Nutrients!$EX$8,Nutrients!$EX$9)*K$7)+(((IF($A$8=Nutrients!$B$79,Nutrients!$EX$79,(IF($A$8=Nutrients!$B$77,Nutrients!$EX$77,Nutrients!$EX$78)))))*K$8))","v":22500},{"$f":"(SUMPRODUCT(L$9:L$229,Nutrients!$EX$8:$EX$228)+(IF($A$7=Nutrients!$B$8,Nutrients!$EX$8,Nutrients!$EX$9)*L$7)+(((IF($A$8=Nutrients!$B$79,Nutrients!$EX$79,(IF($A$8=Nutrients!$B$77,Nutrients!$EX$77,Nutrients!$EX$78)))))*L$8))","v":18000},{"$f":"(SUMPRODUCT(M$9:M$229,Nutrients!$EX$8:$EX$228)+(IF($A$7=Nutrients!$B$8,Nutrients!$EX$8,Nutrients!$EX$9)*M$7)+(((IF($A$8=Nutrients!$B$79,Nutrients!$EX$79,(IF($A$8=Nutrients!$B$77,Nutrients!$EX$77,Nutrients!$EX$78)))))*M$8))","v":13500},{"$f":"(SUMPRODUCT(N$9:N$229,Nutrients!$EX$8:$EX$228)+(IF($A$7=Nutrients!$B$8,Nutrients!$EX$8,Nutrients!$EX$9)*N$7)+(((IF($A$8=Nutrients!$B$79,Nutrients!$EX$79,(IF($A$8=Nutrients!$B$77,Nutrients!$EX$77,Nutrients!$EX$78)))))*N$8))","v":13500},null,{"$f":"(SUMPRODUCT(P$9:P$229,Nutrients!$EX$8:$EX$228)+(IF($A$7=Nutrients!$B$8,Nutrients!$EX$8,Nutrients!$EX$9)*P$7)+(((IF($A$8=Nutrients!$B$79,Nutrients!$EX$79,(IF($A$8=Nutrients!$B$77,Nutrients!$EX$77,Nutrients!$EX$78)))))*P$8))","v":27000},{"$f":"(SUMPRODUCT(Q$9:Q$229,Nutrients!$EX$8:$EX$228)+(IF($A$7=Nutrients!$B$8,Nutrients!$EX$8,Nutrients!$EX$9)*Q$7)+(((IF($A$8=Nutrients!$B$79,Nutrients!$EX$79,(IF($A$8=Nutrients!$B$77,Nutrients!$EX$77,Nutrients!$EX$78)))))*Q$8))","v":27000},{"$f":"(SUMPRODUCT(R$9:R$229,Nutrients!$EX$8:$EX$228)+(IF($A$7=Nutrients!$B$8,Nutrients!$EX$8,Nutrients!$EX$9)*R$7)+(((IF($A$8=Nutrients!$B$79,Nutrients!$EX$79,(IF($A$8=Nutrients!$B$77,Nutrients!$EX$77,Nutrients!$EX$78)))))*R$8))","v":22500},{"$f":"(SUMPRODUCT(S$9:S$229,Nutrients!$EX$8:$EX$228)+(IF($A$7=Nutrients!$B$8,Nutrients!$EX$8,Nutrients!$EX$9)*S$7)+(((IF($A$8=Nutrients!$B$79,Nutrients!$EX$79,(IF($A$8=Nutrients!$B$77,Nutrients!$EX$77,Nutrients!$EX$78)))))*S$8))","v":18000},{"$f":"(SUMPRODUCT(T$9:T$229,Nutrients!$EX$8:$EX$228)+(IF($A$7=Nutrients!$B$8,Nutrients!$EX$8,Nutrients!$EX$9)*T$7)+(((IF($A$8=Nutrients!$B$79,Nutrients!$EX$79,(IF($A$8=Nutrients!$B$77,Nutrients!$EX$77,Nutrients!$EX$78)))))*T$8))","v":13500},{"$f":"(SUMPRODUCT(U$9:U$229,Nutrients!$EX$8:$EX$228)+(IF($A$7=Nutrients!$B$8,Nutrients!$EX$8,Nutrients!$EX$9)*U$7)+(((IF($A$8=Nutrients!$B$79,Nutrients!$EX$79,(IF($A$8=Nutrients!$B$77,Nutrients!$EX$77,Nutrients!$EX$78)))))*U$8))","v":13500},null,{"$f":"(SUMPRODUCT(W$9:W$229,Nutrients!$EX$8:$EX$228)+(IF($A$7=Nutrients!$B$8,Nutrients!$EX$8,Nutrients!$EX$9)*W$7)+(((IF($A$8=Nutrients!$B$79,Nutrients!$EX$79,(IF($A$8=Nutrients!$B$77,Nutrients!$EX$77,Nutrients!$EX$78)))))*W$8))","v":27000},{"$f":"(SUMPRODUCT(X$9:X$229,Nutrients!$EX$8:$EX$228)+(IF($A$7=Nutrients!$B$8,Nutrients!$EX$8,Nutrients!$EX$9)*X$7)+(((IF($A$8=Nutrients!$B$79,Nutrients!$EX$79,(IF($A$8=Nutrients!$B$77,Nutrients!$EX$77,Nutrients!$EX$78)))))*X$8))","v":27000},{"$f":"(SUMPRODUCT(Y$9:Y$229,Nutrients!$EX$8:$EX$228)+(IF($A$7=Nutrients!$B$8,Nutrients!$EX$8,Nutrients!$EX$9)*Y$7)+(((IF($A$8=Nutrients!$B$79,Nutrients!$EX$79,(IF($A$8=Nutrients!$B$77,Nutrients!$EX$77,Nutrients!$EX$78)))))*Y$8))","v":22500},{"$f":"(SUMPRODUCT(Z$9:Z$229,Nutrients!$EX$8:$EX$228)+(IF($A$7=Nutrients!$B$8,Nutrients!$EX$8,Nutrients!$EX$9)*Z$7)+(((IF($A$8=Nutrients!$B$79,Nutrients!$EX$79,(IF($A$8=Nutrients!$B$77,Nutrients!$EX$77,Nutrients!$EX$78)))))*Z$8))","v":18000},{"$f":"(SUMPRODUCT(AA$9:AA$229,Nutrients!$EX$8:$EX$228)+(IF($A$7=Nutrients!$B$8,Nutrients!$EX$8,Nutrients!$EX$9)*AA$7)+(((IF($A$8=Nutrients!$B$79,Nutrients!$EX$79,(IF($A$8=Nutrients!$B$77,Nutrients!$EX$77,Nutrients!$EX$78)))))*AA$8))","v":13500},{"$f":"(SUMPRODUCT(AB$9:AB$229,Nutrients!$EX$8:$EX$228)+(IF($A$7=Nutrients!$B$8,Nutrients!$EX$8,Nutrients!$EX$9)*AB$7)+(((IF($A$8=Nutrients!$B$79,Nutrients!$EX$79,(IF($A$8=Nutrients!$B$77,Nutrients!$EX$77,Nutrients!$EX$78)))))*AB$8))","v":13500},null,{"$f":"(SUMPRODUCT(AD$9:AD$229,Nutrients!$EX$8:$EX$228)+(IF($A$7=Nutrients!$B$8,Nutrients!$EX$8,Nutrients!$EX$9)*AD$7)+(((IF($A$8=Nutrients!$B$79,Nutrients!$EX$79,(IF($A$8=Nutrients!$B$77,Nutrients!$EX$77,Nutrients!$EX$78)))))*AD$8))","v":27000},{"$f":"(SUMPRODUCT(AE$9:AE$229,Nutrients!$EX$8:$EX$228)+(IF($A$7=Nutrients!$B$8,Nutrients!$EX$8,Nutrients!$EX$9)*AE$7)+(((IF($A$8=Nutrients!$B$79,Nutrients!$EX$79,(IF($A$8=Nutrients!$B$77,Nutrients!$EX$77,Nutrients!$EX$78)))))*AE$8))","v":27000},{"$f":"(SUMPRODUCT(AF$9:AF$229,Nutrients!$EX$8:$EX$228)+(IF($A$7=Nutrients!$B$8,Nutrients!$EX$8,Nutrients!$EX$9)*AF$7)+(((IF($A$8=Nutrients!$B$79,Nutrients!$EX$79,(IF($A$8=Nutrients!$B$77,Nutrients!$EX$77,Nutrients!$EX$78)))))*AF$8))","v":22500},{"$f":"(SUMPRODUCT(AG$9:AG$229,Nutrients!$EX$8:$EX$228)+(IF($A$7=Nutrients!$B$8,Nutrients!$EX$8,Nutrients!$EX$9)*AG$7)+(((IF($A$8=Nutrients!$B$79,Nutrients!$EX$79,(IF($A$8=Nutrients!$B$77,Nutrients!$EX$77,Nutrients!$EX$78)))))*AG$8))","v":18000},{"$f":"(SUMPRODUCT(AH$9:AH$229,Nutrients!$EX$8:$EX$228)+(IF($A$7=Nutrients!$B$8,Nutrients!$EX$8,Nutrients!$EX$9)*AH$7)+(((IF($A$8=Nutrients!$B$79,Nutrients!$EX$79,(IF($A$8=Nutrients!$B$77,Nutrients!$EX$77,Nutrients!$EX$78)))))*AH$8))","v":13500},{"$f":"(SUMPRODUCT(AI$9:AI$229,Nutrients!$EX$8:$EX$228)+(IF($A$7=Nutrients!$B$8,Nutrients!$EX$8,Nutrients!$EX$9)*AI$7)+(((IF($A$8=Nutrients!$B$79,Nutrients!$EX$79,(IF($A$8=Nutrients!$B$77,Nutrients!$EX$77,Nutrients!$EX$78)))))*AI$8))","v":13500},null,{"$f":"(SUMPRODUCT(AK$9:AK$229,Nutrients!$EX$8:$EX$228)+(IF($A$7=Nutrients!$B$8,Nutrients!$EX$8,Nutrients!$EX$9)*AK$7)+(((IF($A$8=Nutrients!$B$79,Nutrients!$EX$79,(IF($A$8=Nutrients!$B$77,Nutrients!$EX$77,Nutrients!$EX$78)))))*AK$8))","v":27000},{"$f":"(SUMPRODUCT(AL$9:AL$229,Nutrients!$EX$8:$EX$228)+(IF($A$7=Nutrients!$B$8,Nutrients!$EX$8,Nutrients!$EX$9)*AL$7)+(((IF($A$8=Nutrients!$B$79,Nutrients!$EX$79,(IF($A$8=Nutrients!$B$77,Nutrients!$EX$77,Nutrients!$EX$78)))))*AL$8))","v":27000},{"$f":"(SUMPRODUCT(AM$9:AM$229,Nutrients!$EX$8:$EX$228)+(IF($A$7=Nutrients!$B$8,Nutrients!$EX$8,Nutrients!$EX$9)*AM$7)+(((IF($A$8=Nutrients!$B$79,Nutrients!$EX$79,(IF($A$8=Nutrients!$B$77,Nutrients!$EX$77,Nutrients!$EX$78)))))*AM$8))","v":22500},{"$f":"(SUMPRODUCT(AN$9:AN$229,Nutrients!$EX$8:$EX$228)+(IF($A$7=Nutrients!$B$8,Nutrients!$EX$8,Nutrients!$EX$9)*AN$7)+(((IF($A$8=Nutrients!$B$79,Nutrients!$EX$79,(IF($A$8=Nutrients!$B$77,Nutrients!$EX$77,Nutrients!$EX$78)))))*AN$8))","v":18000},{"$f":"(SUMPRODUCT(AO$9:AO$229,Nutrients!$EX$8:$EX$228)+(IF($A$7=Nutrients!$B$8,Nutrients!$EX$8,Nutrients!$EX$9)*AO$7)+(((IF($A$8=Nutrients!$B$79,Nutrients!$EX$79,(IF($A$8=Nutrients!$B$77,Nutrients!$EX$77,Nutrients!$EX$78)))))*AO$8))","v":13500},{"$f":"(SUMPRODUCT(AP$9:AP$229,Nutrients!$EX$8:$EX$228)+(IF($A$7=Nutrients!$B$8,Nutrients!$EX$8,Nutrients!$EX$9)*AP$7)+(((IF($A$8=Nutrients!$B$79,Nutrients!$EX$79,(IF($A$8=Nutrients!$B$77,Nutrients!$EX$77,Nutrients!$EX$78)))))*AP$8))","v":13500},null,{"$f":"(SUMPRODUCT(AR$9:AR$229,Nutrients!$EX$8:$EX$228)+(IF($A$7=Nutrients!$B$8,Nutrients!$EX$8,Nutrients!$EX$9)*AR$7)+(((IF($A$8=Nutrients!$B$79,Nutrients!$EX$79,(IF($A$8=Nutrients!$B$77,Nutrients!$EX$77,Nutrients!$EX$78)))))*AR$8))","v":27000},{"$f":"(SUMPRODUCT(AS$9:AS$229,Nutrients!$EX$8:$EX$228)+(IF($A$7=Nutrients!$B$8,Nutrients!$EX$8,Nutrients!$EX$9)*AS$7)+(((IF($A$8=Nutrients!$B$79,Nutrients!$EX$79,(IF($A$8=Nutrients!$B$77,Nutrients!$EX$77,Nutrients!$EX$78)))))*AS$8))","v":27000},{"$f":"(SUMPRODUCT(AT$9:AT$229,Nutrients!$EX$8:$EX$228)+(IF($A$7=Nutrients!$B$8,Nutrients!$EX$8,Nutrients!$EX$9)*AT$7)+(((IF($A$8=Nutrients!$B$79,Nutrients!$EX$79,(IF($A$8=Nutrients!$B$77,Nutrients!$EX$77,Nutrients!$EX$78)))))*AT$8))","v":22500},{"$f":"(SUMPRODUCT(AU$9:AU$229,Nutrients!$EX$8:$EX$228)+(IF($A$7=Nutrients!$B$8,Nutrients!$EX$8,Nutrients!$EX$9)*AU$7)+(((IF($A$8=Nutrients!$B$79,Nutrients!$EX$79,(IF($A$8=Nutrients!$B$77,Nutrients!$EX$77,Nutrients!$EX$78)))))*AU$8))","v":18000},{"$f":"(SUMPRODUCT(AV$9:AV$229,Nutrients!$EX$8:$EX$228)+(IF($A$7=Nutrients!$B$8,Nutrients!$EX$8,Nutrients!$EX$9)*AV$7)+(((IF($A$8=Nutrients!$B$79,Nutrients!$EX$79,(IF($A$8=Nutrients!$B$77,Nutrients!$EX$77,Nutrients!$EX$78)))))*AV$8))","v":13500},{"$f":"(SUMPRODUCT(AW$9:AW$229,Nutrients!$EX$8:$EX$228)+(IF($A$7=Nutrients!$B$8,Nutrients!$EX$8,Nutrients!$EX$9)*AW$7)+(((IF($A$8=Nutrients!$B$79,Nutrients!$EX$79,(IF($A$8=Nutrients!$B$77,Nutrients!$EX$77,Nutrients!$EX$78)))))*AW$8))","v":13500}]
["  Pantothenic Acid, mg/ton",{"$f":"(SUMPRODUCT(B$9:B$229,Nutrients!$EY$8:$EY$228)+(IF($A$7=Nutrients!$B$8,Nutrients!$EY$8,Nutrients!$EY$9)*B$7)+(((IF($A$8=Nutrients!$B$79,Nutrients!$EY$79,(IF($A$8=Nutrients!$B$77,Nutrients!$EY$77,Nutrients!$EY$78)))))*B$8))","v":15000},{"$f":"(SUMPRODUCT(C$9:C$229,Nutrients!$EY$8:$EY$228)+(IF($A$7=Nutrients!$B$8,Nutrients!$EY$8,Nutrients!$EY$9)*C$7)+(((IF($A$8=Nutrients!$B$79,Nutrients!$EY$79,(IF($A$8=Nutrients!$B$77,Nutrients!$EY$77,Nutrients!$EY$78)))))*C$8))","v":15000},{"$f":"(SUMPRODUCT(D$9:D$229,Nutrients!$EY$8:$EY$228)+(IF($A$7=Nutrients!$B$8,Nutrients!$EY$8,Nutrients!$EY$9)*D$7)+(((IF($A$8=Nutrients!$B$79,Nutrients!$EY$79,(IF($A$8=Nutrients!$B$77,Nutrients!$EY$77,Nutrients!$EY$78)))))*D$8))","v":12500},{"$f":"(SUMPRODUCT(E$9:E$229,Nutrients!$EY$8:$EY$228)+(IF($A$7=Nutrients!$B$8,Nutrients!$EY$8,Nutrients!$EY$9)*E$7)+(((IF($A$8=Nutrients!$B$79,Nutrients!$EY$79,(IF($A$8=Nutrients!$B$77,Nutrients!$EY$77,Nutrients!$EY$78)))))*E$8))","v":10000},{"$f":"(SUMPRODUCT(F$9:F$229,Nutrients!$EY$8:$EY$228)+(IF($A$7=Nutrients!$B$8,Nutrients!$EY$8,Nutrients!$EY$9)*F$7)+(((IF($A$8=Nutrients!$B$79,Nutrients!$EY$79,(IF($A$8=Nutrients!$B$77,Nutrients!$EY$77,Nutrients!$EY$78)))))*F$8))","v":7500},{"$f":"(SUMPRODUCT(G$9:G$229,Nutrients!$EY$8:$EY$228)+(IF($A$7=Nutrients!$B$8,Nutrients!$EY$8,Nutrients!$EY$9)*G$7)+(((IF($A$8=Nutrients!$B$79,Nutrients!$EY$79,(IF($A$8=Nutrients!$B$77,Nutrients!$EY$77,Nutrients!$EY$78)))))*G$8))","v":7500},null,{"$f":"(SUMPRODUCT(I$9:I$229,Nutrients!$EY$8:$EY$228)+(IF($A$7=Nutrients!$B$8,Nutrients!$EY$8,Nutrients!$EY$9)*I$7)+(((IF($A$8=Nutrients!$B$79,Nutrients!$EY$79,(IF($A$8=Nutrients!$B$77,Nutrients!$EY$77,Nutrients!$EY$78)))))*I$8))","v":15000},{"$f":"(SUMPRODUCT(J$9:J$229,Nutrients!$EY$8:$EY$228)+(IF($A$7=Nutrients!$B$8,Nutrients!$EY$8,Nutrients!$EY$9)*J$7)+(((IF($A$8=Nutrients!$B$79,Nutrients!$EY$79,(IF($A$8=Nutrients!$B$77,Nutrients!$EY$77,Nutrients!$EY$78)))))*J$8))","v":15000},{"$f":"(SUMPRODUCT(K$9:K$229,Nutrients!$EY$8:$EY$228)+(IF($A$7=Nutrients!$B$8,Nutrients!$EY$8,Nutrients!$EY$9)*K$7)+(((IF($A$8=Nutrients!$B$79,Nutrients!$EY$79,(IF($A$8=Nutrients!$B$77,Nutrients!$EY$77,Nutrients!$EY$78)))))*K$8))","v":12500},{"$f":"(SUMPRODUCT(L$9:L$229,Nutrients!$EY$8:$EY$228)+(IF($A$7=Nutrients!$B$8,Nutrients!$EY$8,Nutrients!$EY$9)*L$7)+(((IF($A$8=Nutrients!$B$79,Nutrients!$EY$79,(IF($A$8=Nutrients!$B$77,Nutrients!$EY$77,Nutrients!$EY$78)))))*L$8))","v":10000},{"$f":"(SUMPRODUCT(M$9:M$229,Nutrients!$EY$8:$EY$228)+(IF($A$7=Nutrients!$B$8,Nutrients!$EY$8,Nutrients!$EY$9)*M$7)+(((IF($A$8=Nutrients!$B$79,Nutrients!$EY$79,(IF($A$8=Nutrients!$B$77,Nutrients!$EY$77,Nutrients!$EY$78)))))*M$8))","v":7500},{"$f":"(SUMPRODUCT(N$9:N$229,Nutrients!$EY$8:$EY$228)+(IF($A$7=Nutrients!$B$8,Nutrients!$EY$8,Nutrients!$EY$9)*N$7)+(((IF($A$8=Nutrients!$B$79,Nutrients!$EY$79,(IF($A$8=Nutrients!$B$77,Nutrients!$EY$77,Nutrients!$EY$78)))))*N$8))","v":7500},null,{"$f":"(SUMPRODUCT(P$9:P$229,Nutrients!$EY$8:$EY$228)+(IF($A$7=Nutrients!$B$8,Nutrients!$EY$8,Nutrients!$EY$9)*P$7)+(((IF($A$8=Nutrients!$B$79,Nutrients!$EY$79,(IF($A$8=Nutrients!$B$77,Nutrients!$EY$77,Nutrients!$EY$78)))))*P$8))","v":15000},{"$f":"(SUMPRODUCT(Q$9:Q$229,Nutrients!$EY$8:$EY$228)+(IF($A$7=Nutrients!$B$8,Nutrients!$EY$8,Nutrients!$EY$9)*Q$7)+(((IF($A$8=Nutrients!$B$79,Nutrients!$EY$79,(IF($A$8=Nutrients!$B$77,Nutrients!$EY$77,Nutrients!$EY$78)))))*Q$8))","v":15000},{"$f":"(SUMPRODUCT(R$9:R$229,Nutrients!$EY$8:$EY$228)+(IF($A$7=Nutrients!$B$8,Nutrients!$EY$8,Nutrients!$EY$9)*R$7)+(((IF($A$8=Nutrients!$B$79,Nutrients!$EY$79,(IF($A$8=Nutrients!$B$77,Nutrients!$EY$77,Nutrients!$EY$78)))))*R$8))","v":12500},{"$f":"(SUMPRODUCT(S$9:S$229,Nutrients!$EY$8:$EY$228)+(IF($A$7=Nutrients!$B$8,Nutrients!$EY$8,Nutrients!$EY$9)*S$7)+(((IF($A$8=Nutrients!$B$79,Nutrients!$EY$79,(IF($A$8=Nutrients!$B$77,Nutrients!$EY$77,Nutrients!$EY$78)))))*S$8))","v":10000},{"$f":"(SUMPRODUCT(T$9:T$229,Nutrients!$EY$8:$EY$228)+(IF($A$7=Nutrients!$B$8,Nutrients!$EY$8,Nutrients!$EY$9)*T$7)+(((IF($A$8=Nutrients!$B$79,Nutrients!$EY$79,(IF($A$8=Nutrients!$B$77,Nutrients!$EY$77,Nutrients!$EY$78)))))*T$8))","v":7500},{"$f":"(SUMPRODUCT(U$9:U$229,Nutrients!$EY$8:$EY$228)+(IF($A$7=Nutrients!$B$8,Nutrients!$EY$8,Nutrients!$EY$9)*U$7)+(((IF($A$8=Nutrients!$B$79,Nutrients!$EY$79,(IF($A$8=Nutrients!$B$77,Nutrients!$EY$77,Nutrients!$EY$78)))))*U$8))","v":7500},null,{"$f":"(SUMPRODUCT(W$9:W$229,Nutrients!$EY$8:$EY$228)+(IF($A$7=Nutrients!$B$8,Nutrients!$EY$8,Nutrients!$EY$9)*W$7)+(((IF($A$8=Nutrients!$B$79,Nutrients!$EY$79,(IF($A$8=Nutrients!$B$77,Nutrients!$EY$77,Nutrients!$EY$78)))))*W$8))","v":15000},{"$f":"(SUMPRODUCT(X$9:X$229,Nutrients!$EY$8:$EY$228)+(IF($A$7=Nutrients!$B$8,Nutrients!$EY$8,Nutrients!$EY$9)*X$7)+(((IF($A$8=Nutrients!$B$79,Nutrients!$EY$79,(IF($A$8=Nutrients!$B$77,Nutrients!$EY$77,Nutrients!$EY$78)))))*X$8))","v":15000},{"$f":"(SUMPRODUCT(Y$9:Y$229,Nutrients!$EY$8:$EY$228)+(IF($A$7=Nutrients!$B$8,Nutrients!$EY$8,Nutrients!$EY$9)*Y$7)+(((IF($A$8=Nutrients!$B$79,Nutrients!$EY$79,(IF($A$8=Nutrients!$B$77,Nutrients!$EY$77,Nutrients!$EY$78)))))*Y$8))","v":12500},{"$f":"(SUMPRODUCT(Z$9:Z$229,Nutrients!$EY$8:$EY$228)+(IF($A$7=Nutrients!$B$8,Nutrients!$EY$8,Nutrients!$EY$9)*Z$7)+(((IF($A$8=Nutrients!$B$79,Nutrients!$EY$79,(IF($A$8=Nutrients!$B$77,Nutrients!$EY$77,Nutrients!$EY$78)))))*Z$8))","v":10000},{"$f":"(SUMPRODUCT(AA$9:AA$229,Nutrients!$EY$8:$EY$228)+(IF($A$7=Nutrients!$B$8,Nutrients!$EY$8,Nutrients!$EY$9)*AA$7)+(((IF($A$8=Nutrients!$B$79,Nutrients!$EY$79,(IF($A$8=Nutrients!$B$77,Nutrients!$EY$77,Nutrients!$EY$78)))))*AA$8))","v":7500},{"$f":"(SUMPRODUCT(AB$9:AB$229,Nutrients!$EY$8:$EY$228)+(IF($A$7=Nutrients!$B$8,Nutrients!$EY$8,Nutrients!$EY$9)*AB$7)+(((IF($A$8=Nutrients!$B$79,Nutrients!$EY$79,(IF($A$8=Nutrients!$B$77,Nutrients!$EY$77,Nutrients!$EY$78)))))*AB$8))","v":7500},null,{"$f":"(SUMPRODUCT(AD$9:AD$229,Nutrients!$EY$8:$EY$228)+(IF($A$7=Nutrients!$B$8,Nutrients!$EY$8,Nutrients!$EY$9)*AD$7)+(((IF($A$8=Nutrients!$B$79,Nutrients!$EY$79,(IF($A$8=Nutrients!$B$77,Nutrients!$EY$77,Nutrients!$EY$78)))))*AD$8))","v":15000},{"$f":"(SUMPRODUCT(AE$9:AE$229,Nutrients!$EY$8:$EY$228)+(IF($A$7=Nutrients!$B$8,Nutrients!$EY$8,Nutrients!$EY$9)*AE$7)+(((IF($A$8=Nutrients!$B$79,Nutrients!$EY$79,(IF($A$8=Nutrients!$B$77,Nutrients!$EY$77,Nutrients!$EY$78)))))*AE$8))","v":15000},{"$f":"(SUMPRODUCT(AF$9:AF$229,Nutrients!$EY$8:$EY$228)+(IF($A$7=Nutrients!$B$8,Nutrients!$EY$8,Nutrients!$EY$9)*AF$7)+(((IF($A$8=Nutrients!$B$79,Nutrients!$EY$79,(IF($A$8=Nutrients!$B$77,Nutrients!$EY$77,Nutrients!$EY$78)))))*AF$8))","v":12500},{"$f":"(SUMPRODUCT(AG$9:AG$229,Nutrients!$EY$8:$EY$228)+(IF($A$7=Nutrients!$B$8,Nutrients!$EY$8,Nutrients!$EY$9)*AG$7)+(((IF($A$8=Nutrients!$B$79,Nutrients!$EY$79,(IF($A$8=Nutrients!$B$77,Nutrients!$EY$77,Nutrients!$EY$78)))))*AG$8))","v":10000},{"$f":"(SUMPRODUCT(AH$9:AH$229,Nutrients!$EY$8:$EY$228)+(IF($A$7=Nutrients!$B$8,Nutrients!$EY$8,Nutrients!$EY$9)*AH$7)+(((IF($A$8=Nutrients!$B$79,Nutrients!$EY$79,(IF($A$8=Nutrients!$B$77,Nutrients!$EY$77,Nutrients!$EY$78)))))*AH$8))","v":7500},{"$f":"(SUMPRODUCT(AI$9:AI$229,Nutrients!$EY$8:$EY$228)+(IF($A$7=Nutrients!$B$8,Nutrients!$EY$8,Nutrients!$EY$9)*AI$7)+(((IF($A$8=Nutrients!$B$79,Nutrients!$EY$79,(IF($A$8=Nutrients!$B$77,Nutrients!$EY$77,Nutrients!$EY$78)))))*AI$8))","v":7500},null,{"$f":"(SUMPRODUCT(AK$9:AK$229,Nutrients!$EY$8:$EY$228)+(IF($A$7=Nutrients!$B$8,Nutrients!$EY$8,Nutrients!$EY$9)*AK$7)+(((IF($A$8=Nutrients!$B$79,Nutrients!$EY$79,(IF($A$8=Nutrients!$B$77,Nutrients!$EY$77,Nutrients!$EY$78)))))*AK$8))","v":15000},{"$f":"(SUMPRODUCT(AL$9:AL$229,Nutrients!$EY$8:$EY$228)+(IF($A$7=Nutrients!$B$8,Nutrients!$EY$8,Nutrients!$EY$9)*AL$7)+(((IF($A$8=Nutrients!$B$79,Nutrients!$EY$79,(IF($A$8=Nutrients!$B$77,Nutrients!$EY$77,Nutrients!$EY$78)))))*AL$8))","v":15000},{"$f":"(SUMPRODUCT(AM$9:AM$229,Nutrients!$EY$8:$EY$228)+(IF($A$7=Nutrients!$B$8,Nutrients!$EY$8,Nutrients!$EY$9)*AM$7)+(((IF($A$8=Nutrients!$B$79,Nutrients!$EY$79,(IF($A$8=Nutrients!$B$77,Nutrients!$EY$77,Nutrients!$EY$78)))))*AM$8))","v":12500},{"$f":"(SUMPRODUCT(AN$9:AN$229,Nutrients!$EY$8:$EY$228)+(IF($A$7=Nutrients!$B$8,Nutrients!$EY$8,Nutrients!$EY$9)*AN$7)+(((IF($A$8=Nutrients!$B$79,Nutrients!$EY$79,(IF($A$8=Nutrients!$B$77,Nutrients!$EY$77,Nutrients!$EY$78)))))*AN$8))","v":10000},{"$f":"(SUMPRODUCT(AO$9:AO$229,Nutrients!$EY$8:$EY$228)+(IF($A$7=Nutrients!$B$8,Nutrients!$EY$8,Nutrients!$EY$9)*AO$7)+(((IF($A$8=Nutrients!$B$79,Nutrients!$EY$79,(IF($A$8=Nutrients!$B$77,Nutrients!$EY$77,Nutrients!$EY$78)))))*AO$8))","v":7500},{"$f":"(SUMPRODUCT(AP$9:AP$229,Nutrients!$EY$8:$EY$228)+(IF($A$7=Nutrients!$B$8,Nutrients!$EY$8,Nutrients!$EY$9)*AP$7)+(((IF($A$8=Nutrients!$B$79,Nutrients!$EY$79,(IF($A$8=Nutrients!$B$77,Nutrients!$EY$77,Nutrients!$EY$78)))))*AP$8))","v":7500},null,{"$f":"(SUMPRODUCT(AR$9:AR$229,Nutrients!$EY$8:$EY$228)+(IF($A$7=Nutrients!$B$8,Nutrients!$EY$8,Nutrients!$EY$9)*AR$7)+(((IF($A$8=Nutrients!$B$79,Nutrients!$EY$79,(IF($A$8=Nutrients!$B$77,Nutrients!$EY$77,Nutrients!$EY$78)))))*AR$8))","v":15000},{"$f":"(SUMPRODUCT(AS$9:AS$229,Nutrients!$EY$8:$EY$228)+(IF($A$7=Nutrients!$B$8,Nutrients!$EY$8,Nutrients!$EY$9)*AS$7)+(((IF($A$8=Nutrients!$B$79,Nutrients!$EY$79,(IF($A$8=Nutrients!$B$77,Nutrients!$EY$77,Nutrients!$EY$78)))))*AS$8))","v":15000},{"$f":"(SUMPRODUCT(AT$9:AT$229,Nutrients!$EY$8:$EY$228)+(IF($A$7=Nutrients!$B$8,Nutrients!$EY$8,Nutrients!$EY$9)*AT$7)+(((IF($A$8=Nutrients!$B$79,Nutrients!$EY$79,(IF($A$8=Nutrients!$B$77,Nutrients!$EY$77,Nutrients!$EY$78)))))*AT$8))","v":12500},{"$f":"(SUMPRODUCT(AU$9:AU$229,Nutrients!$EY$8:$EY$228)+(IF($A$7=Nutrients!$B$8,Nutrients!$EY$8,Nutrients!$EY$9)*AU$7)+(((IF($A$8=Nutrients!$B$79,Nutrients!$EY$79,(IF($A$8=Nutrients!$B$77,Nutrients!$EY$77,Nutrients!$EY$78)))))*AU$8))","v":10000},{"$f":"(SUMPRODUCT(AV$9:AV$229,Nutrients!$EY$8:$EY$228)+(IF($A$7=Nutrients!$B$8,Nutrients!$EY$8,Nutrients!$EY$9)*AV$7)+(((IF($A$8=Nutrients!$B$79,Nutrients!$EY$79,(IF($A$8=Nutrients!$B$77,Nutrients!$EY$77,Nutrients!$EY$78)))))*AV$8))","v":7500},{"$f":"(SUMPRODUCT(AW$9:AW$229,Nutrients!$EY$8:$EY$228)+(IF($A$7=Nutrients!$B$8,Nutrients!$EY$8,Nutrients!$EY$9)*AW$7)+(((IF($A$8=Nutrients!$B$79,Nutrients!$EY$79,(IF($A$8=Nutrients!$B$77,Nutrients!$EY$77,Nutrients!$EY$78)))))*AW$8))","v":7500}]
["  Riboflavin, mg/ton",{"$f":"(SUMPRODUCT(B$9:B$229,Nutrients!$EZ$8:$EZ$228)+(IF($A$7=Nutrients!$B$8,Nutrients!$EZ$8,Nutrients!$EZ$9)*B$7)+(((IF($A$8=Nutrients!$B$79,Nutrients!$EZ$79,(IF($A$8=Nutrients!$B$77,Nutrients!$EZ$77,Nutrients!$EZ$78)))))*B$8))","v":4500},{"$f":"(SUMPRODUCT(C$9:C$229,Nutrients!$EZ$8:$EZ$228)+(IF($A$7=Nutrients!$B$8,Nutrients!$EZ$8,Nutrients!$EZ$9)*C$7)+(((IF($A$8=Nutrients!$B$79,Nutrients!$EZ$79,(IF($A$8=Nutrients!$B$77,Nutrients!$EZ$77,Nutrients!$EZ$78)))))*C$8))","v":4500},{"$f":"(SUMPRODUCT(D$9:D$229,Nutrients!$EZ$8:$EZ$228)+(IF($A$7=Nutrients!$B$8,Nutrients!$EZ$8,Nutrients!$EZ$9)*D$7)+(((IF($A$8=Nutrients!$B$79,Nutrients!$EZ$79,(IF($A$8=Nutrients!$B$77,Nutrients!$EZ$77,Nutrients!$EZ$78)))))*D$8))","v":3750},{"$f":"(SUMPRODUCT(E$9:E$229,Nutrients!$EZ$8:$EZ$228)+(IF($A$7=Nutrients!$B$8,Nutrients!$EZ$8,Nutrients!$EZ$9)*E$7)+(((IF($A$8=Nutrients!$B$79,Nutrients!$EZ$79,(IF($A$8=Nutrients!$B$77,Nutrients!$EZ$77,Nutrients!$EZ$78)))))*E$8))","v":3000},{"$f":"(SUMPRODUCT(F$9:F$229,Nutrients!$EZ$8:$EZ$228)+(IF($A$7=Nutrients!$B$8,Nutrients!$EZ$8,Nutrients!$EZ$9)*F$7)+(((IF($A$8=Nutrients!$B$79,Nutrients!$EZ$79,(IF($A$8=Nutrients!$B$77,Nutrients!$EZ$77,Nutrients!$EZ$78)))))*F$8))","v":2250},{"$f":"(SUMPRODUCT(G$9:G$229,Nutrients!$EZ$8:$EZ$228)+(IF($A$7=Nutrients!$B$8,Nutrients!$EZ$8,Nutrients!$EZ$9)*G$7)+(((IF($A$8=Nutrients!$B$79,Nutrients!$EZ$79,(IF($A$8=Nutrients!$B$77,Nutrients!$EZ$77,Nutrients!$EZ$78)))))*G$8))","v":2250},null,{"$f":"(SUMPRODUCT(I$9:I$229,Nutrients!$EZ$8:$EZ$228)+(IF($A$7=Nutrients!$B$8,Nutrients!$EZ$8,Nutrients!$EZ$9)*I$7)+(((IF($A$8=Nutrients!$B$79,Nutrients!$EZ$79,(IF($A$8=Nutrients!$B$77,Nutrients!$EZ$77,Nutrients!$EZ$78)))))*I$8))","v":4500},{"$f":"(SUMPRODUCT(J$9:J$229,Nutrients!$EZ$8:$EZ$228)+(IF($A$7=Nutrients!$B$8,Nutrients!$EZ$8,Nutrients!$EZ$9)*J$7)+(((IF($A$8=Nutrients!$B$79,Nutrients!$EZ$79,(IF($A$8=Nutrients!$B$77,Nutrients!$EZ$77,Nutrients!$EZ$78)))))*J$8))","v":4500},{"$f":"(SUMPRODUCT(K$9:K$229,Nutrients!$EZ$8:$EZ$228)+(IF($A$7=Nutrients!$B$8,Nutrients!$EZ$8,Nutrients!$EZ$9)*K$7)+(((IF($A$8=Nutrients!$B$79,Nutrients!$EZ$79,(IF($A$8=Nutrients!$B$77,Nutrients!$EZ$77,Nutrients!$EZ$78)))))*K$8))","v":3750},{"$f":"(SUMPRODUCT(L$9:L$229,Nutrients!$EZ$8:$EZ$228)+(IF($A$7=Nutrients!$B$8,Nutrients!$EZ$8,Nutrients!$EZ$9)*L$7)+(((IF($A$8=Nutrients!$B$79,Nutrients!$EZ$79,(IF($A$8=Nutrients!$B$77,Nutrients!$EZ$77,Nutrients!$EZ$78)))))*L$8))","v":3000},{"$f":"(SUMPRODUCT(M$9:M$229,Nutrients!$EZ$8:$EZ$228)+(IF($A$7=Nutrients!$B$8,Nutrients!$EZ$8,Nutrients!$EZ$9)*M$7)+(((IF($A$8=Nutrients!$B$79,Nutrients!$EZ$79,(IF($A$8=Nutrients!$B$77,Nutrients!$EZ$77,Nutrients!$EZ$78)))))*M$8))","v":2250},{"$f":"(SUMPRODUCT(N$9:N$229,Nutrients!$EZ$8:$EZ$228)+(IF($A$7=Nutrients!$B$8,Nutrients!$EZ$8,Nutrients!$EZ$9)*N$7)+(((IF($A$8=Nutrients!$B$79,Nutrients!$EZ$79,(IF($A$8=Nutrients!$B$77,Nutrients!$EZ$77,Nutrients!$EZ$78)))))*N$8))","v":2250},null,{"$f":"(SUMPRODUCT(P$9:P$229,Nutrients!$EZ$8:$EZ$228)+(IF($A$7=Nutrients!$B$8,Nutrients!$EZ$8,Nutrients!$EZ$9)*P$7)+(((IF($A$8=Nutrients!$B$79,Nutrients!$EZ$79,(IF($A$8=Nutrients!$B$77,Nutrients!$EZ$77,Nutrients!$EZ$78)))))*P$8))","v":4500},{"$f":"(SUMPRODUCT(Q$9:Q$229,Nutrients!$EZ$8:$EZ$228)+(IF($A$7=Nutrients!$B$8,Nutrients!$EZ$8,Nutrients!$EZ$9)*Q$7)+(((IF($A$8=Nutrients!$B$79,Nutrients!$EZ$79,(IF($A$8=Nutrients!$B$77,Nutrients!$EZ$77,Nutrients!$EZ$78)))))*Q$8))","v":4500},{"$f":"(SUMPRODUCT(R$9:R$229,Nutrients!$EZ$8:$EZ$228)+(IF($A$7=Nutrients!$B$8,Nutrients!$EZ$8,Nutrients!$EZ$9)*R$7)+(((IF($A$8=Nutrients!$B$79,Nutrients!$EZ$79,(IF($A$8=Nutrients!$B$77,Nutrients!$EZ$77,Nutrients!$EZ$78)))))*R$8))","v":3750},{"$f":"(SUMPRODUCT(S$9:S$229,Nutrients!$EZ$8:$EZ$228)+(IF($A$7=Nutrients!$B$8,Nutrients!$EZ$8,Nutrients!$EZ$9)*S$7)+(((IF($A$8=Nutrients!$B$79,Nutrients!$EZ$79,(IF($A$8=Nutrients!$B$77,Nutrients!$EZ$77,Nutrients!$EZ$78)))))*S$8))","v":3000},{"$f":"(SUMPRODUCT(T$9:T$229,Nutrients!$EZ$8:$EZ$228)+(IF($A$7=Nutrients!$B$8,Nutrients!$EZ$8,Nutrients!$EZ$9)*T$7)+(((IF($A$8=Nutrients!$B$79,Nutrients!$EZ$79,(IF($A$8=Nutrients!$B$77,Nutrients!$EZ$77,Nutrients!$EZ$78)))))*T$8))","v":2250},{"$f":"(SUMPRODUCT(U$9:U$229,Nutrients!$EZ$8:$EZ$228)+(IF($A$7=Nutrients!$B$8,Nutrients!$EZ$8,Nutrients!$EZ$9)*U$7)+(((IF($A$8=Nutrients!$B$79,Nutrients!$EZ$79,(IF($A$8=Nutrients!$B$77,Nutrients!$EZ$77,Nutrients!$EZ$78)))))*U$8))","v":2250},null,{"$f":"(SUMPRODUCT(W$9:W$229,Nutrients!$EZ$8:$EZ$228)+(IF($A$7=Nutrients!$B$8,Nutrients!$EZ$8,Nutrients!$EZ$9)*W$7)+(((IF($A$8=Nutrients!$B$79,Nutrients!$EZ$79,(IF($A$8=Nutrients!$B$77,Nutrients!$EZ$77,Nutrients!$EZ$78)))))*W$8))","v":4500},{"$f":"(SUMPRODUCT(X$9:X$229,Nutrients!$EZ$8:$EZ$228)+(IF($A$7=Nutrients!$B$8,Nutrients!$EZ$8,Nutrients!$EZ$9)*X$7)+(((IF($A$8=Nutrients!$B$79,Nutrients!$EZ$79,(IF($A$8=Nutrients!$B$77,Nutrients!$EZ$77,Nutrients!$EZ$78)))))*X$8))","v":4500},{"$f":"(SUMPRODUCT(Y$9:Y$229,Nutrients!$EZ$8:$EZ$228)+(IF($A$7=Nutrients!$B$8,Nutrients!$EZ$8,Nutrients!$EZ$9)*Y$7)+(((IF($A$8=Nutrients!$B$79,Nutrients!$EZ$79,(IF($A$8=Nutrients!$B$77,Nutrients!$EZ$77,Nutrients!$EZ$78)))))*Y$8))","v":3750},{"$f":"(SUMPRODUCT(Z$9:Z$229,Nutrients!$EZ$8:$EZ$228)+(IF($A$7=Nutrients!$B$8,Nutrients!$EZ$8,Nutrients!$EZ$9)*Z$7)+(((IF($A$8=Nutrients!$B$79,Nutrients!$EZ$79,(IF($A$8=Nutrients!$B$77,Nutrients!$EZ$77,Nutrients!$EZ$78)))))*Z$8))","v":3000},{"$f":"(SUMPRODUCT(AA$9:AA$229,Nutrients!$EZ$8:$EZ$228)+(IF($A$7=Nutrients!$B$8,Nutrients!$EZ$8,Nutrients!$EZ$9)*AA$7)+(((IF($A$8=Nutrients!$B$79,Nutrients!$EZ$79,(IF($A$8=Nutrients!$B$77,Nutrients!$EZ$77,Nutrients!$EZ$78)))))*AA$8))","v":2250},{"$f":"(SUMPRODUCT(AB$9:AB$229,Nutrients!$EZ$8:$EZ$228)+(IF($A$7=Nutrients!$B$8,Nutrients!$EZ$8,Nutrients!$EZ$9)*AB$7)+(((IF($A$8=Nutrients!$B$79,Nutrients!$EZ$79,(IF($A$8=Nutrients!$B$77,Nutrients!$EZ$77,Nutrients!$EZ$78)))))*AB$8))","v":2250},null,{"$f":"(SUMPRODUCT(AD$9:AD$229,Nutrients!$EZ$8:$EZ$228)+(IF($A$7=Nutrients!$B$8,Nutrients!$EZ$8,Nutrients!$EZ$9)*AD$7)+(((IF($A$8=Nutrients!$B$79,Nutrients!$EZ$79,(IF($A$8=Nutrients!$B$77,Nutrients!$EZ$77,Nutrients!$EZ$78)))))*AD$8))","v":4500},{"$f":"(SUMPRODUCT(AE$9:AE$229,Nutrients!$EZ$8:$EZ$228)+(IF($A$7=Nutrients!$B$8,Nutrients!$EZ$8,Nutrients!$EZ$9)*AE$7)+(((IF($A$8=Nutrients!$B$79,Nutrients!$EZ$79,(IF($A$8=Nutrients!$B$77,Nutrients!$EZ$77,Nutrients!$EZ$78)))))*AE$8))","v":4500},{"$f":"(SUMPRODUCT(AF$9:AF$229,Nutrients!$EZ$8:$EZ$228)+(IF($A$7=Nutrients!$B$8,Nutrients!$EZ$8,Nutrients!$EZ$9)*AF$7)+(((IF($A$8=Nutrients!$B$79,Nutrients!$EZ$79,(IF($A$8=Nutrients!$B$77,Nutrients!$EZ$77,Nutrients!$EZ$78)))))*AF$8))","v":3750},{"$f":"(SUMPRODUCT(AG$9:AG$229,Nutrients!$EZ$8:$EZ$228)+(IF($A$7=Nutrients!$B$8,Nutrients!$EZ$8,Nutrients!$EZ$9)*AG$7)+(((IF($A$8=Nutrients!$B$79,Nutrients!$EZ$79,(IF($A$8=Nutrients!$B$77,Nutrients!$EZ$77,Nutrients!$EZ$78)))))*AG$8))","v":3000},{"$f":"(SUMPRODUCT(AH$9:AH$229,Nutrients!$EZ$8:$EZ$228)+(IF($A$7=Nutrients!$B$8,Nutrients!$EZ$8,Nutrients!$EZ$9)*AH$7)+(((IF($A$8=Nutrients!$B$79,Nutrients!$EZ$79,(IF($A$8=Nutrients!$B$77,Nutrients!$EZ$77,Nutrients!$EZ$78)))))*AH$8))","v":2250},{"$f":"(SUMPRODUCT(AI$9:AI$229,Nutrients!$EZ$8:$EZ$228)+(IF($A$7=Nutrients!$B$8,Nutrients!$EZ$8,Nutrients!$EZ$9)*AI$7)+(((IF($A$8=Nutrients!$B$79,Nutrients!$EZ$79,(IF($A$8=Nutrients!$B$77,Nutrients!$EZ$77,Nutrients!$EZ$78)))))*AI$8))","v":2250},null,{"$f":"(SUMPRODUCT(AK$9:AK$229,Nutrients!$EZ$8:$EZ$228)+(IF($A$7=Nutrients!$B$8,Nutrients!$EZ$8,Nutrients!$EZ$9)*AK$7)+(((IF($A$8=Nutrients!$B$79,Nutrients!$EZ$79,(IF($A$8=Nutrients!$B$77,Nutrients!$EZ$77,Nutrients!$EZ$78)))))*AK$8))","v":4500},{"$f":"(SUMPRODUCT(AL$9:AL$229,Nutrients!$EZ$8:$EZ$228)+(IF($A$7=Nutrients!$B$8,Nutrients!$EZ$8,Nutrients!$EZ$9)*AL$7)+(((IF($A$8=Nutrients!$B$79,Nutrients!$EZ$79,(IF($A$8=Nutrients!$B$77,Nutrients!$EZ$77,Nutrients!$EZ$78)))))*AL$8))","v":4500},{"$f":"(SUMPRODUCT(AM$9:AM$229,Nutrients!$EZ$8:$EZ$228)+(IF($A$7=Nutrients!$B$8,Nutrients!$EZ$8,Nutrients!$EZ$9)*AM$7)+(((IF($A$8=Nutrients!$B$79,Nutrients!$EZ$79,(IF($A$8=Nutrients!$B$77,Nutrients!$EZ$77,Nutrients!$EZ$78)))))*AM$8))","v":3750},{"$f":"(SUMPRODUCT(AN$9:AN$229,Nutrients!$EZ$8:$EZ$228)+(IF($A$7=Nutrients!$B$8,Nutrients!$EZ$8,Nutrients!$EZ$9)*AN$7)+(((IF($A$8=Nutrients!$B$79,Nutrients!$EZ$79,(IF($A$8=Nutrients!$B$77,Nutrients!$EZ$77,Nutrients!$EZ$78)))))*AN$8))","v":3000},{"$f":"(SUMPRODUCT(AO$9:AO$229,Nutrients!$EZ$8:$EZ$228)+(IF($A$7=Nutrients!$B$8,Nutrients!$EZ$8,Nutrients!$EZ$9)*AO$7)+(((IF($A$8=Nutrients!$B$79,Nutrients!$EZ$79,(IF($A$8=Nutrients!$B$77,Nutrients!$EZ$77,Nutrients!$EZ$78)))))*AO$8))","v":2250},{"$f":"(SUMPRODUCT(AP$9:AP$229,Nutrients!$EZ$8:$EZ$228)+(IF($A$7=Nutrients!$B$8,Nutrients!$EZ$8,Nutrients!$EZ$9)*AP$7)+(((IF($A$8=Nutrients!$B$79,Nutrients!$EZ$79,(IF($A$8=Nutrients!$B$77,Nutrients!$EZ$77,Nutrients!$EZ$78)))))*AP$8))","v":2250},null,{"$f":"(SUMPRODUCT(AR$9:AR$229,Nutrients!$EZ$8:$EZ$228)+(IF($A$7=Nutrients!$B$8,Nutrients!$EZ$8,Nutrients!$EZ$9)*AR$7)+(((IF($A$8=Nutrients!$B$79,Nutrients!$EZ$79,(IF($A$8=Nutrients!$B$77,Nutrients!$EZ$77,Nutrients!$EZ$78)))))*AR$8))","v":4500},{"$f":"(SUMPRODUCT(AS$9:AS$229,Nutrients!$EZ$8:$EZ$228)+(IF($A$7=Nutrients!$B$8,Nutrients!$EZ$8,Nutrients!$EZ$9)*AS$7)+(((IF($A$8=Nutrients!$B$79,Nutrients!$EZ$79,(IF($A$8=Nutrients!$B$77,Nutrients!$EZ$77,Nutrients!$EZ$78)))))*AS$8))","v":4500},{"$f":"(SUMPRODUCT(AT$9:AT$229,Nutrients!$EZ$8:$EZ$228)+(IF($A$7=Nutrients!$B$8,Nutrients!$EZ$8,Nutrients!$EZ$9)*AT$7)+(((IF($A$8=Nutrients!$B$79,Nutrients!$EZ$79,(IF($A$8=Nutrients!$B$77,Nutrients!$EZ$77,Nutrients!$EZ$78)))))*AT$8))","v":3750},{"$f":"(SUMPRODUCT(AU$9:AU$229,Nutrients!$EZ$8:$EZ$228)+(IF($A$7=Nutrients!$B$8,Nutrients!$EZ$8,Nutrients!$EZ$9)*AU$7)+(((IF($A$8=Nutrients!$B$79,Nutrients!$EZ$79,(IF($A$8=Nutrients!$B$77,Nutrients!$EZ$77,Nutrients!$EZ$78)))))*AU$8))","v":3000},{"$f":"(SUMPRODUCT(AV$9:AV$229,Nutrients!$EZ$8:$EZ$228)+(IF($A$7=Nutrients!$B$8,Nutrients!$EZ$8,Nutrients!$EZ$9)*AV$7)+(((IF($A$8=Nutrients!$B$79,Nutrients!$EZ$79,(IF($A$8=Nutrients!$B$77,Nutrients!$EZ$77,Nutrients!$EZ$78)))))*AV$8))","v":2250},{"$f":"(SUMPRODUCT(AW$9:AW$229,Nutrients!$EZ$8:$EZ$228)+(IF($A$7=Nutrients!$B$8,Nutrients!$EZ$8,Nutrients!$EZ$9)*AW$7)+(((IF($A$8=Nutrients!$B$79,Nutrients!$EZ$79,(IF($A$8=Nutrients!$B$77,Nutrients!$EZ$77,Nutrients!$EZ$78)))))*AW$8))","v":2250}]
["  Biotin, mg/ton",{"$f":"(SUMPRODUCT(B$9:B$229,Nutrients!$FA$8:$FA$228)+(IF($A$7=Nutrients!$B$8,Nutrients!$FA$8,Nutrients!$FA$9)*B$7)+(((IF($A$8=Nutrients!$B$79,Nutrients!$FA$79,(IF($A$8=Nutrients!$B$77,Nutrients!$FA$77,Nutrients!$FA$78)))))*B$8))","v":0},{"$f":"(SUMPRODUCT(C$9:C$229,Nutrients!$FA$8:$FA$228)+(IF($A$7=Nutrients!$B$8,Nutrients!$FA$8,Nutrients!$FA$9)*C$7)+(((IF($A$8=Nutrients!$B$79,Nutrients!$FA$79,(IF($A$8=Nutrients!$B$77,Nutrients!$FA$77,Nutrients!$FA$78)))))*C$8))","v":0},{"$f":"(SUMPRODUCT(D$9:D$229,Nutrients!$FA$8:$FA$228)+(IF($A$7=Nutrients!$B$8,Nutrients!$FA$8,Nutrients!$FA$9)*D$7)+(((IF($A$8=Nutrients!$B$79,Nutrients!$FA$79,(IF($A$8=Nutrients!$B$77,Nutrients!$FA$77,Nutrients!$FA$78)))))*D$8))","v":0},{"$f":"(SUMPRODUCT(E$9:E$229,Nutrients!$FA$8:$FA$228)+(IF($A$7=Nutrients!$B$8,Nutrients!$FA$8,Nutrients!$FA$9)*E$7)+(((IF($A$8=Nutrients!$B$79,Nutrients!$FA$79,(IF($A$8=Nutrients!$B$77,Nutrients!$FA$77,Nutrients!$FA$78)))))*E$8))","v":0},{"$f":"(SUMPRODUCT(F$9:F$229,Nutrients!$FA$8:$FA$228)+(IF($A$7=Nutrients!$B$8,Nutrients!$FA$8,Nutrients!$FA$9)*F$7)+(((IF($A$8=Nutrients!$B$79,Nutrients!$FA$79,(IF($A$8=Nutrients!$B$77,Nutrients!$FA$77,Nutrients!$FA$78)))))*F$8))","v":0},{"$f":"(SUMPRODUCT(G$9:G$229,Nutrients!$FA$8:$FA$228)+(IF($A$7=Nutrients!$B$8,Nutrients!$FA$8,Nutrients!$FA$9)*G$7)+(((IF($A$8=Nutrients!$B$79,Nutrients!$FA$79,(IF($A$8=Nutrients!$B$77,Nutrients!$FA$77,Nutrients!$FA$78)))))*G$8))","v":0},null,{"$f":"(SUMPRODUCT(I$9:I$229,Nutrients!$FA$8:$FA$228)+(IF($A$7=Nutrients!$B$8,Nutrients!$FA$8,Nutrients!$FA$9)*I$7)+(((IF($A$8=Nutrients!$B$79,Nutrients!$FA$79,(IF($A$8=Nutrients!$B$77,Nutrients!$FA$77,Nutrients!$FA$78)))))*I$8))","v":0},{"$f":"(SUMPRODUCT(J$9:J$229,Nutrients!$FA$8:$FA$228)+(IF($A$7=Nutrients!$B$8,Nutrients!$FA$8,Nutrients!$FA$9)*J$7)+(((IF($A$8=Nutrients!$B$79,Nutrients!$FA$79,(IF($A$8=Nutrients!$B$77,Nutrients!$FA$77,Nutrients!$FA$78)))))*J$8))","v":0},{"$f":"(SUMPRODUCT(K$9:K$229,Nutrients!$FA$8:$FA$228)+(IF($A$7=Nutrients!$B$8,Nutrients!$FA$8,Nutrients!$FA$9)*K$7)+(((IF($A$8=Nutrients!$B$79,Nutrients!$FA$79,(IF($A$8=Nutrients!$B$77,Nutrients!$FA$77,Nutrients!$FA$78)))))*K$8))","v":0},{"$f":"(SUMPRODUCT(L$9:L$229,Nutrients!$FA$8:$FA$228)+(IF($A$7=Nutrients!$B$8,Nutrients!$FA$8,Nutrients!$FA$9)*L$7)+(((IF($A$8=Nutrients!$B$79,Nutrients!$FA$79,(IF($A$8=Nutrients!$B$77,Nutrients!$FA$77,Nutrients!$FA$78)))))*L$8))","v":0},{"$f":"(SUMPRODUCT(M$9:M$229,Nutrients!$FA$8:$FA$228)+(IF($A$7=Nutrients!$B$8,Nutrients!$FA$8,Nutrients!$FA$9)*M$7)+(((IF($A$8=Nutrients!$B$79,Nutrients!$FA$79,(IF($A$8=Nutrients!$B$77,Nutrients!$FA$77,Nutrients!$FA$78)))))*M$8))","v":0},{"$f":"(SUMPRODUCT(N$9:N$229,Nutrients!$FA$8:$FA$228)+(IF($A$7=Nutrients!$B$8,Nutrients!$FA$8,Nutrients!$FA$9)*N$7)+(((IF($A$8=Nutrients!$B$79,Nutrients!$FA$79,(IF($A$8=Nutrients!$B$77,Nutrients!$FA$77,Nutrients!$FA$78)))))*N$8))","v":0},null,{"$f":"(SUMPRODUCT(P$9:P$229,Nutrients!$FA$8:$FA$228)+(IF($A$7=Nutrients!$B$8,Nutrients!$FA$8,Nutrients!$FA$9)*P$7)+(((IF($A$8=Nutrients!$B$79,Nutrients!$FA$79,(IF($A$8=Nutrients!$B$77,Nutrients!$FA$77,Nutrients!$FA$78)))))*P$8))","v":0},{"$f":"(SUMPRODUCT(Q$9:Q$229,Nutrients!$FA$8:$FA$228)+(IF($A$7=Nutrients!$B$8,Nutrients!$FA$8,Nutrients!$FA$9)*Q$7)+(((IF($A$8=Nutrients!$B$79,Nutrients!$FA$79,(IF($A$8=Nutrients!$B$77,Nutrients!$FA$77,Nutrients!$FA$78)))))*Q$8))","v":0},{"$f":"(SUMPRODUCT(R$9:R$229,Nutrients!$FA$8:$FA$228)+(IF($A$7=Nutrients!$B$8,Nutrients!$FA$8,Nutrients!$FA$9)*R$7)+(((IF($A$8=Nutrients!$B$79,Nutrients!$FA$79,(IF($A$8=Nutrients!$B$77,Nutrients!$FA$77,Nutrients!$FA$78)))))*R$8))","v":0},{"$f":"(SUMPRODUCT(S$9:S$229,Nutrients!$FA$8:$FA$228)+(IF($A$7=Nutrients!$B$8,Nutrients!$FA$8,Nutrients!$FA$9)*S$7)+(((IF($A$8=Nutrients!$B$79,Nutrients!$FA$79,(IF($A$8=Nutrients!$B$77,Nutrients!$FA$77,Nutrients!$FA$78)))))*S$8))","v":0},{"$f":"(SUMPRODUCT(T$9:T$229,Nutrients!$FA$8:$FA$228)+(IF($A$7=Nutrients!$B$8,Nutrients!$FA$8,Nutrients!$FA$9)*T$7)+(((IF($A$8=Nutrients!$B$79,Nutrients!$FA$79,(IF($A$8=Nutrients!$B$77,Nutrients!$FA$77,Nutrients!$FA$78)))))*T$8))","v":0},{"$f":"(SUMPRODUCT(U$9:U$229,Nutrients!$FA$8:$FA$228)+(IF($A$7=Nutrients!$B$8,Nutrients!$FA$8,Nutrients!$FA$9)*U$7)+(((IF($A$8=Nutrients!$B$79,Nutrients!$FA$79,(IF($A$8=Nutrients!$B$77,Nutrients!$FA$77,Nutrients!$FA$78)))))*U$8))","v":0},null,{"$f":"(SUMPRODUCT(W$9:W$229,Nutrients!$FA$8:$FA$228)+(IF($A$7=Nutrients!$B$8,Nutrients!$FA$8,Nutrients!$FA$9)*W$7)+(((IF($A$8=Nutrients!$B$79,Nutrients!$FA$79,(IF($A$8=Nutrients!$B$77,Nutrients!$FA$77,Nutrients!$FA$78)))))*W$8))","v":0},{"$f":"(SUMPRODUCT(X$9:X$229,Nutrients!$FA$8:$FA$228)+(IF($A$7=Nutrients!$B$8,Nutrients!$FA$8,Nutrients!$FA$9)*X$7)+(((IF($A$8=Nutrients!$B$79,Nutrients!$FA$79,(IF($A$8=Nutrients!$B$77,Nutrients!$FA$77,Nutrients!$FA$78)))))*X$8))","v":0},{"$f":"(SUMPRODUCT(Y$9:Y$229,Nutrients!$FA$8:$FA$228)+(IF($A$7=Nutrients!$B$8,Nutrients!$FA$8,Nutrients!$FA$9)*Y$7)+(((IF($A$8=Nutrients!$B$79,Nutrients!$FA$79,(IF($A$8=Nutrients!$B$77,Nutrients!$FA$77,Nutrients!$FA$78)))))*Y$8))","v":0},{"$f":"(SUMPRODUCT(Z$9:Z$229,Nutrients!$FA$8:$FA$228)+(IF($A$7=Nutrients!$B$8,Nutrients!$FA$8,Nutrients!$FA$9)*Z$7)+(((IF($A$8=Nutrients!$B$79,Nutrients!$FA$79,(IF($A$8=Nutrients!$B$77,Nutrients!$FA$77,Nutrients!$FA$78)))))*Z$8))","v":0},{"$f":"(SUMPRODUCT(AA$9:AA$229,Nutrients!$FA$8:$FA$228)+(IF($A$7=Nutrients!$B$8,Nutrients!$FA$8,Nutrients!$FA$9)*AA$7)+(((IF($A$8=Nutrients!$B$79,Nutrients!$FA$79,(IF($A$8=Nutrients!$B$77,Nutrients!$FA$77,Nutrients!$FA$78)))))*AA$8))","v":0},{"$f":"(SUMPRODUCT(AB$9:AB$229,Nutrients!$FA$8:$FA$228)+(IF($A$7=Nutrients!$B$8,Nutrients!$FA$8,Nutrients!$FA$9)*AB$7)+(((IF($A$8=Nutrients!$B$79,Nutrients!$FA$79,(IF($A$8=Nutrients!$B$77,Nutrients!$FA$77,Nutrients!$FA$78)))))*AB$8))","v":0},null,{"$f":"(SUMPRODUCT(AD$9:AD$229,Nutrients!$FA$8:$FA$228)+(IF($A$7=Nutrients!$B$8,Nutrients!$FA$8,Nutrients!$FA$9)*AD$7)+(((IF($A$8=Nutrients!$B$79,Nutrients!$FA$79,(IF($A$8=Nutrients!$B$77,Nutrients!$FA$77,Nutrients!$FA$78)))))*AD$8))","v":0},{"$f":"(SUMPRODUCT(AE$9:AE$229,Nutrients!$FA$8:$FA$228)+(IF($A$7=Nutrients!$B$8,Nutrients!$FA$8,Nutrients!$FA$9)*AE$7)+(((IF($A$8=Nutrients!$B$79,Nutrients!$FA$79,(IF($A$8=Nutrients!$B$77,Nutrients!$FA$77,Nutrients!$FA$78)))))*AE$8))","v":0},{"$f":"(SUMPRODUCT(AF$9:AF$229,Nutrients!$FA$8:$FA$228)+(IF($A$7=Nutrients!$B$8,Nutrients!$FA$8,Nutrients!$FA$9)*AF$7)+(((IF($A$8=Nutrients!$B$79,Nutrients!$FA$79,(IF($A$8=Nutrients!$B$77,Nutrients!$FA$77,Nutrients!$FA$78)))))*AF$8))","v":0},{"$f":"(SUMPRODUCT(AG$9:AG$229,Nutrients!$FA$8:$FA$228)+(IF($A$7=Nutrients!$B$8,Nutrients!$FA$8,Nutrients!$FA$9)*AG$7)+(((IF($A$8=Nutrients!$B$79,Nutrients!$FA$79,(IF($A$8=Nutrients!$B$77,Nutrients!$FA$77,Nutrients!$FA$78)))))*AG$8))","v":0},{"$f":"(SUMPRODUCT(AH$9:AH$229,Nutrients!$FA$8:$FA$228)+(IF($A$7=Nutrients!$B$8,Nutrients!$FA$8,Nutrients!$FA$9)*AH$7)+(((IF($A$8=Nutrients!$B$79,Nutrients!$FA$79,(IF($A$8=Nutrients!$B$77,Nutrients!$FA$77,Nutrients!$FA$78)))))*AH$8))","v":0},{"$f":"(SUMPRODUCT(AI$9:AI$229,Nutrients!$FA$8:$FA$228)+(IF($A$7=Nutrients!$B$8,Nutrients!$FA$8,Nutrients!$FA$9)*AI$7)+(((IF($A$8=Nutrients!$B$79,Nutrients!$FA$79,(IF($A$8=Nutrients!$B$77,Nutrients!$FA$77,Nutrients!$FA$78)))))*AI$8))","v":0},null,{"$f":"(SUMPRODUCT(AK$9:AK$229,Nutrients!$FA$8:$FA$228)+(IF($A$7=Nutrients!$B$8,Nutrients!$FA$8,Nutrients!$FA$9)*AK$7)+(((IF($A$8=Nutrients!$B$79,Nutrients!$FA$79,(IF($A$8=Nutrients!$B$77,Nutrients!$FA$77,Nutrients!$FA$78)))))*AK$8))","v":0},{"$f":"(SUMPRODUCT(AL$9:AL$229,Nutrients!$FA$8:$FA$228)+(IF($A$7=Nutrients!$B$8,Nutrients!$FA$8,Nutrients!$FA$9)*AL$7)+(((IF($A$8=Nutrients!$B$79,Nutrients!$FA$79,(IF($A$8=Nutrients!$B$77,Nutrients!$FA$77,Nutrients!$FA$78)))))*AL$8))","v":0},{"$f":"(SUMPRODUCT(AM$9:AM$229,Nutrients!$FA$8:$FA$228)+(IF($A$7=Nutrients!$B$8,Nutrients!$FA$8,Nutrients!$FA$9)*AM$7)+(((IF($A$8=Nutrients!$B$79,Nutrients!$FA$79,(IF($A$8=Nutrients!$B$77,Nutrients!$FA$77,Nutrients!$FA$78)))))*AM$8))","v":0},{"$f":"(SUMPRODUCT(AN$9:AN$229,Nutrients!$FA$8:$FA$228)+(IF($A$7=Nutrients!$B$8,Nutrients!$FA$8,Nutrients!$FA$9)*AN$7)+(((IF($A$8=Nutrients!$B$79,Nutrients!$FA$79,(IF($A$8=Nutrients!$B$77,Nutrients!$FA$77,Nutrients!$FA$78)))))*AN$8))","v":0},{"$f":"(SUMPRODUCT(AO$9:AO$229,Nutrients!$FA$8:$FA$228)+(IF($A$7=Nutrients!$B$8,Nutrients!$FA$8,Nutrients!$FA$9)*AO$7)+(((IF($A$8=Nutrients!$B$79,Nutrients!$FA$79,(IF($A$8=Nutrients!$B$77,Nutrients!$FA$77,Nutrients!$FA$78)))))*AO$8))","v":0},{"$f":"(SUMPRODUCT(AP$9:AP$229,Nutrients!$FA$8:$FA$228)+(IF($A$7=Nutrients!$B$8,Nutrients!$FA$8,Nutrients!$FA$9)*AP$7)+(((IF($A$8=Nutrients!$B$79,Nutrients!$FA$79,(IF($A$8=Nutrients!$B$77,Nutrients!$FA$77,Nutrients!$FA$78)))))*AP$8))","v":0},null,{"$f":"(SUMPRODUCT(AR$9:AR$229,Nutrients!$FA$8:$FA$228)+(IF($A$7=Nutrients!$B$8,Nutrients!$FA$8,Nutrients!$FA$9)*AR$7)+(((IF($A$8=Nutrients!$B$79,Nutrients!$FA$79,(IF($A$8=Nutrients!$B$77,Nutrients!$FA$77,Nutrients!$FA$78)))))*AR$8))","v":0},{"$f":"(SUMPRODUCT(AS$9:AS$229,Nutrients!$FA$8:$FA$228)+(IF($A$7=Nutrients!$B$8,Nutrients!$FA$8,Nutrients!$FA$9)*AS$7)+(((IF($A$8=Nutrients!$B$79,Nutrients!$FA$79,(IF($A$8=Nutrients!$B$77,Nutrients!$FA$77,Nutrients!$FA$78)))))*AS$8))","v":0},{"$f":"(SUMPRODUCT(AT$9:AT$229,Nutrients!$FA$8:$FA$228)+(IF($A$7=Nutrients!$B$8,Nutrients!$FA$8,Nutrients!$FA$9)*AT$7)+(((IF($A$8=Nutrients!$B$79,Nutrients!$FA$79,(IF($A$8=Nutrients!$B$77,Nutrients!$FA$77,Nutrients!$FA$78)))))*AT$8))","v":0},{"$f":"(SUMPRODUCT(AU$9:AU$229,Nutrients!$FA$8:$FA$228)+(IF($A$7=Nutrients!$B$8,Nutrients!$FA$8,Nutrients!$FA$9)*AU$7)+(((IF($A$8=Nutrients!$B$79,Nutrients!$FA$79,(IF($A$8=Nutrients!$B$77,Nutrients!$FA$77,Nutrients!$FA$78)))))*AU$8))","v":0},{"$f":"(SUMPRODUCT(AV$9:AV$229,Nutrients!$FA$8:$FA$228)+(IF($A$7=Nutrients!$B$8,Nutrients!$FA$8,Nutrients!$FA$9)*AV$7)+(((IF($A$8=Nutrients!$B$79,Nutrients!$FA$79,(IF($A$8=Nutrients!$B$77,Nutrients!$FA$77,Nutrients!$FA$78)))))*AV$8))","v":0},{"$f":"(SUMPRODUCT(AW$9:AW$229,Nutrients!$FA$8:$FA$228)+(IF($A$7=Nutrients!$B$8,Nutrients!$FA$8,Nutrients!$FA$9)*AW$7)+(((IF($A$8=Nutrients!$B$79,Nutrients!$FA$79,(IF($A$8=Nutrients!$B$77,Nutrients!$FA$77,Nutrients!$FA$78)))))*AW$8))","v":0}]
["  Folic acid, mg/ton",{"$f":"(SUMPRODUCT(B$9:B$229,Nutrients!$FB$8:$FB$228)+(IF($A$7=Nutrients!$B$8,Nutrients!$FB$8,Nutrients!$FB$9)*B$7)+(((IF($A$8=Nutrients!$B$79,Nutrients!$FB$79,(IF($A$8=Nutrients!$B$77,Nutrients!$FB$77,Nutrients!$FB$78)))))*B$8))","v":0},{"$f":"(SUMPRODUCT(C$9:C$229,Nutrients!$FB$8:$FB$228)+(IF($A$7=Nutrients!$B$8,Nutrients!$FB$8,Nutrients!$FB$9)*C$7)+(((IF($A$8=Nutrients!$B$79,Nutrients!$FB$79,(IF($A$8=Nutrients!$B$77,Nutrients!$FB$77,Nutrients!$FB$78)))))*C$8))","v":0},{"$f":"(SUMPRODUCT(D$9:D$229,Nutrients!$FB$8:$FB$228)+(IF($A$7=Nutrients!$B$8,Nutrients!$FB$8,Nutrients!$FB$9)*D$7)+(((IF($A$8=Nutrients!$B$79,Nutrients!$FB$79,(IF($A$8=Nutrients!$B$77,Nutrients!$FB$77,Nutrients!$FB$78)))))*D$8))","v":0},{"$f":"(SUMPRODUCT(E$9:E$229,Nutrients!$FB$8:$FB$228)+(IF($A$7=Nutrients!$B$8,Nutrients!$FB$8,Nutrients!$FB$9)*E$7)+(((IF($A$8=Nutrients!$B$79,Nutrients!$FB$79,(IF($A$8=Nutrients!$B$77,Nutrients!$FB$77,Nutrients!$FB$78)))))*E$8))","v":0},{"$f":"(SUMPRODUCT(F$9:F$229,Nutrients!$FB$8:$FB$228)+(IF($A$7=Nutrients!$B$8,Nutrients!$FB$8,Nutrients!$FB$9)*F$7)+(((IF($A$8=Nutrients!$B$79,Nutrients!$FB$79,(IF($A$8=Nutrients!$B$77,Nutrients!$FB$77,Nutrients!$FB$78)))))*F$8))","v":0},{"$f":"(SUMPRODUCT(G$9:G$229,Nutrients!$FB$8:$FB$228)+(IF($A$7=Nutrients!$B$8,Nutrients!$FB$8,Nutrients!$FB$9)*G$7)+(((IF($A$8=Nutrients!$B$79,Nutrients!$FB$79,(IF($A$8=Nutrients!$B$77,Nutrients!$FB$77,Nutrients!$FB$78)))))*G$8))","v":0},null,{"$f":"(SUMPRODUCT(I$9:I$229,Nutrients!$FB$8:$FB$228)+(IF($A$7=Nutrients!$B$8,Nutrients!$FB$8,Nutrients!$FB$9)*I$7)+(((IF($A$8=Nutrients!$B$79,Nutrients!$FB$79,(IF($A$8=Nutrients!$B$77,Nutrients!$FB$77,Nutrients!$FB$78)))))*I$8))","v":0},{"$f":"(SUMPRODUCT(J$9:J$229,Nutrients!$FB$8:$FB$228)+(IF($A$7=Nutrients!$B$8,Nutrients!$FB$8,Nutrients!$FB$9)*J$7)+(((IF($A$8=Nutrients!$B$79,Nutrients!$FB$79,(IF($A$8=Nutrients!$B$77,Nutrients!$FB$77,Nutrients!$FB$78)))))*J$8))","v":0},{"$f":"(SUMPRODUCT(K$9:K$229,Nutrients!$FB$8:$FB$228)+(IF($A$7=Nutrients!$B$8,Nutrients!$FB$8,Nutrients!$FB$9)*K$7)+(((IF($A$8=Nutrients!$B$79,Nutrients!$FB$79,(IF($A$8=Nutrients!$B$77,Nutrients!$FB$77,Nutrients!$FB$78)))))*K$8))","v":0},{"$f":"(SUMPRODUCT(L$9:L$229,Nutrients!$FB$8:$FB$228)+(IF($A$7=Nutrients!$B$8,Nutrients!$FB$8,Nutrients!$FB$9)*L$7)+(((IF($A$8=Nutrients!$B$79,Nutrients!$FB$79,(IF($A$8=Nutrients!$B$77,Nutrients!$FB$77,Nutrients!$FB$78)))))*L$8))","v":0},{"$f":"(SUMPRODUCT(M$9:M$229,Nutrients!$FB$8:$FB$228)+(IF($A$7=Nutrients!$B$8,Nutrients!$FB$8,Nutrients!$FB$9)*M$7)+(((IF($A$8=Nutrients!$B$79,Nutrients!$FB$79,(IF($A$8=Nutrients!$B$77,Nutrients!$FB$77,Nutrients!$FB$78)))))*M$8))","v":0},{"$f":"(SUMPRODUCT(N$9:N$229,Nutrients!$FB$8:$FB$228)+(IF($A$7=Nutrients!$B$8,Nutrients!$FB$8,Nutrients!$FB$9)*N$7)+(((IF($A$8=Nutrients!$B$79,Nutrients!$FB$79,(IF($A$8=Nutrients!$B$77,Nutrients!$FB$77,Nutrients!$FB$78)))))*N$8))","v":0},null,{"$f":"(SUMPRODUCT(P$9:P$229,Nutrients!$FB$8:$FB$228)+(IF($A$7=Nutrients!$B$8,Nutrients!$FB$8,Nutrients!$FB$9)*P$7)+(((IF($A$8=Nutrients!$B$79,Nutrients!$FB$79,(IF($A$8=Nutrients!$B$77,Nutrients!$FB$77,Nutrients!$FB$78)))))*P$8))","v":0},{"$f":"(SUMPRODUCT(Q$9:Q$229,Nutrients!$FB$8:$FB$228)+(IF($A$7=Nutrients!$B$8,Nutrients!$FB$8,Nutrients!$FB$9)*Q$7)+(((IF($A$8=Nutrients!$B$79,Nutrients!$FB$79,(IF($A$8=Nutrients!$B$77,Nutrients!$FB$77,Nutrients!$FB$78)))))*Q$8))","v":0},{"$f":"(SUMPRODUCT(R$9:R$229,Nutrients!$FB$8:$FB$228)+(IF($A$7=Nutrients!$B$8,Nutrients!$FB$8,Nutrients!$FB$9)*R$7)+(((IF($A$8=Nutrients!$B$79,Nutrients!$FB$79,(IF($A$8=Nutrients!$B$77,Nutrients!$FB$77,Nutrients!$FB$78)))))*R$8))","v":0},{"$f":"(SUMPRODUCT(S$9:S$229,Nutrients!$FB$8:$FB$228)+(IF($A$7=Nutrients!$B$8,Nutrients!$FB$8,Nutrients!$FB$9)*S$7)+(((IF($A$8=Nutrients!$B$79,Nutrients!$FB$79,(IF($A$8=Nutrients!$B$77,Nutrients!$FB$77,Nutrients!$FB$78)))))*S$8))","v":0},{"$f":"(SUMPRODUCT(T$9:T$229,Nutrients!$FB$8:$FB$228)+(IF($A$7=Nutrients!$B$8,Nutrients!$FB$8,Nutrients!$FB$9)*T$7)+(((IF($A$8=Nutrients!$B$79,Nutrients!$FB$79,(IF($A$8=Nutrients!$B$77,Nutrients!$FB$77,Nutrients!$FB$78)))))*T$8))","v":0},{"$f":"(SUMPRODUCT(U$9:U$229,Nutrients!$FB$8:$FB$228)+(IF($A$7=Nutrients!$B$8,Nutrients!$FB$8,Nutrients!$FB$9)*U$7)+(((IF($A$8=Nutrients!$B$79,Nutrients!$FB$79,(IF($A$8=Nutrients!$B$77,Nutrients!$FB$77,Nutrients!$FB$78)))))*U$8))","v":0},null,{"$f":"(SUMPRODUCT(W$9:W$229,Nutrients!$FB$8:$FB$228)+(IF($A$7=Nutrients!$B$8,Nutrients!$FB$8,Nutrients!$FB$9)*W$7)+(((IF($A$8=Nutrients!$B$79,Nutrients!$FB$79,(IF($A$8=Nutrients!$B$77,Nutrients!$FB$77,Nutrients!$FB$78)))))*W$8))","v":0},{"$f":"(SUMPRODUCT(X$9:X$229,Nutrients!$FB$8:$FB$228)+(IF($A$7=Nutrients!$B$8,Nutrients!$FB$8,Nutrients!$FB$9)*X$7)+(((IF($A$8=Nutrients!$B$79,Nutrients!$FB$79,(IF($A$8=Nutrients!$B$77,Nutrients!$FB$77,Nutrients!$FB$78)))))*X$8))","v":0},{"$f":"(SUMPRODUCT(Y$9:Y$229,Nutrients!$FB$8:$FB$228)+(IF($A$7=Nutrients!$B$8,Nutrients!$FB$8,Nutrients!$FB$9)*Y$7)+(((IF($A$8=Nutrients!$B$79,Nutrients!$FB$79,(IF($A$8=Nutrients!$B$77,Nutrients!$FB$77,Nutrients!$FB$78)))))*Y$8))","v":0},{"$f":"(SUMPRODUCT(Z$9:Z$229,Nutrients!$FB$8:$FB$228)+(IF($A$7=Nutrients!$B$8,Nutrients!$FB$8,Nutrients!$FB$9)*Z$7)+(((IF($A$8=Nutrients!$B$79,Nutrients!$FB$79,(IF($A$8=Nutrients!$B$77,Nutrients!$FB$77,Nutrients!$FB$78)))))*Z$8))","v":0},{"$f":"(SUMPRODUCT(AA$9:AA$229,Nutrients!$FB$8:$FB$228)+(IF($A$7=Nutrients!$B$8,Nutrients!$FB$8,Nutrients!$FB$9)*AA$7)+(((IF($A$8=Nutrients!$B$79,Nutrients!$FB$79,(IF($A$8=Nutrients!$B$77,Nutrients!$FB$77,Nutrients!$FB$78)))))*AA$8))","v":0},{"$f":"(SUMPRODUCT(AB$9:AB$229,Nutrients!$FB$8:$FB$228)+(IF($A$7=Nutrients!$B$8,Nutrients!$FB$8,Nutrients!$FB$9)*AB$7)+(((IF($A$8=Nutrients!$B$79,Nutrients!$FB$79,(IF($A$8=Nutrients!$B$77,Nutrients!$FB$77,Nutrients!$FB$78)))))*AB$8))","v":0},null,{"$f":"(SUMPRODUCT(AD$9:AD$229,Nutrients!$FB$8:$FB$228)+(IF($A$7=Nutrients!$B$8,Nutrients!$FB$8,Nutrients!$FB$9)*AD$7)+(((IF($A$8=Nutrients!$B$79,Nutrients!$FB$79,(IF($A$8=Nutrients!$B$77,Nutrients!$FB$77,Nutrients!$FB$78)))))*AD$8))","v":0},{"$f":"(SUMPRODUCT(AE$9:AE$229,Nutrients!$FB$8:$FB$228)+(IF($A$7=Nutrients!$B$8,Nutrients!$FB$8,Nutrients!$FB$9)*AE$7)+(((IF($A$8=Nutrients!$B$79,Nutrients!$FB$79,(IF($A$8=Nutrients!$B$77,Nutrients!$FB$77,Nutrients!$FB$78)))))*AE$8))","v":0},{"$f":"(SUMPRODUCT(AF$9:AF$229,Nutrients!$FB$8:$FB$228)+(IF($A$7=Nutrients!$B$8,Nutrients!$FB$8,Nutrients!$FB$9)*AF$7)+(((IF($A$8=Nutrients!$B$79,Nutrients!$FB$79,(IF($A$8=Nutrients!$B$77,Nutrients!$FB$77,Nutrients!$FB$78)))))*AF$8))","v":0},{"$f":"(SUMPRODUCT(AG$9:AG$229,Nutrients!$FB$8:$FB$228)+(IF($A$7=Nutrients!$B$8,Nutrients!$FB$8,Nutrients!$FB$9)*AG$7)+(((IF($A$8=Nutrients!$B$79,Nutrients!$FB$79,(IF($A$8=Nutrients!$B$77,Nutrients!$FB$77,Nutrients!$FB$78)))))*AG$8))","v":0},{"$f":"(SUMPRODUCT(AH$9:AH$229,Nutrients!$FB$8:$FB$228)+(IF($A$7=Nutrients!$B$8,Nutrients!$FB$8,Nutrients!$FB$9)*AH$7)+(((IF($A$8=Nutrients!$B$79,Nutrients!$FB$79,(IF($A$8=Nutrients!$B$77,Nutrients!$FB$77,Nutrients!$FB$78)))))*AH$8))","v":0},{"$f":"(SUMPRODUCT(AI$9:AI$229,Nutrients!$FB$8:$FB$228)+(IF($A$7=Nutrients!$B$8,Nutrients!$FB$8,Nutrients!$FB$9)*AI$7)+(((IF($A$8=Nutrients!$B$79,Nutrients!$FB$79,(IF($A$8=Nutrients!$B$77,Nutrients!$FB$77,Nutrients!$FB$78)))))*AI$8))","v":0},null,{"$f":"(SUMPRODUCT(AK$9:AK$229,Nutrients!$FB$8:$FB$228)+(IF($A$7=Nutrients!$B$8,Nutrients!$FB$8,Nutrients!$FB$9)*AK$7)+(((IF($A$8=Nutrients!$B$79,Nutrients!$FB$79,(IF($A$8=Nutrients!$B$77,Nutrients!$FB$77,Nutrients!$FB$78)))))*AK$8))","v":0},{"$f":"(SUMPRODUCT(AL$9:AL$229,Nutrients!$FB$8:$FB$228)+(IF($A$7=Nutrients!$B$8,Nutrients!$FB$8,Nutrients!$FB$9)*AL$7)+(((IF($A$8=Nutrients!$B$79,Nutrients!$FB$79,(IF($A$8=Nutrients!$B$77,Nutrients!$FB$77,Nutrients!$FB$78)))))*AL$8))","v":0},{"$f":"(SUMPRODUCT(AM$9:AM$229,Nutrients!$FB$8:$FB$228)+(IF($A$7=Nutrients!$B$8,Nutrients!$FB$8,Nutrients!$FB$9)*AM$7)+(((IF($A$8=Nutrients!$B$79,Nutrients!$FB$79,(IF($A$8=Nutrients!$B$77,Nutrients!$FB$77,Nutrients!$FB$78)))))*AM$8))","v":0},{"$f":"(SUMPRODUCT(AN$9:AN$229,Nutrients!$FB$8:$FB$228)+(IF($A$7=Nutrients!$B$8,Nutrients!$FB$8,Nutrients!$FB$9)*AN$7)+(((IF($A$8=Nutrients!$B$79,Nutrients!$FB$79,(IF($A$8=Nutrients!$B$77,Nutrients!$FB$77,Nutrients!$FB$78)))))*AN$8))","v":0},{"$f":"(SUMPRODUCT(AO$9:AO$229,Nutrients!$FB$8:$FB$228)+(IF($A$7=Nutrients!$B$8,Nutrients!$FB$8,Nutrients!$FB$9)*AO$7)+(((IF($A$8=Nutrients!$B$79,Nutrients!$FB$79,(IF($A$8=Nutrients!$B$77,Nutrients!$FB$77,Nutrients!$FB$78)))))*AO$8))","v":0},{"$f":"(SUMPRODUCT(AP$9:AP$229,Nutrients!$FB$8:$FB$228)+(IF($A$7=Nutrients!$B$8,Nutrients!$FB$8,Nutrients!$FB$9)*AP$7)+(((IF($A$8=Nutrients!$B$79,Nutrients!$FB$79,(IF($A$8=Nutrients!$B$77,Nutrients!$FB$77,Nutrients!$FB$78)))))*AP$8))","v":0},null,{"$f":"(SUMPRODUCT(AR$9:AR$229,Nutrients!$FB$8:$FB$228)+(IF($A$7=Nutrients!$B$8,Nutrients!$FB$8,Nutrients!$FB$9)*AR$7)+(((IF($A$8=Nutrients!$B$79,Nutrients!$FB$79,(IF($A$8=Nutrients!$B$77,Nutrients!$FB$77,Nutrients!$FB$78)))))*AR$8))","v":0},{"$f":"(SUMPRODUCT(AS$9:AS$229,Nutrients!$FB$8:$FB$228)+(IF($A$7=Nutrients!$B$8,Nutrients!$FB$8,Nutrients!$FB$9)*AS$7)+(((IF($A$8=Nutrients!$B$79,Nutrients!$FB$79,(IF($A$8=Nutrients!$B$77,Nutrients!$FB$77,Nutrients!$FB$78)))))*AS$8))","v":0},{"$f":"(SUMPRODUCT(AT$9:AT$229,Nutrients!$FB$8:$FB$228)+(IF($A$7=Nutrients!$B$8,Nutrients!$FB$8,Nutrients!$FB$9)*AT$7)+(((IF($A$8=Nutrients!$B$79,Nutrients!$FB$79,(IF($A$8=Nutrients!$B$77,Nutrients!$FB$77,Nutrients!$FB$78)))))*AT$8))","v":0},{"$f":"(SUMPRODUCT(AU$9:AU$229,Nutrients!$FB$8:$FB$228)+(IF($A$7=Nutrients!$B$8,Nutrients!$FB$8,Nutrients!$FB$9)*AU$7)+(((IF($A$8=Nutrients!$B$79,Nutrients!$FB$79,(IF($A$8=Nutrients!$B$77,Nutrients!$FB$77,Nutrients!$FB$78)))))*AU$8))","v":0},{"$f":"(SUMPRODUCT(AV$9:AV$229,Nutrients!$FB$8:$FB$228)+(IF($A$7=Nutrients!$B$8,Nutrients!$FB$8,Nutrients!$FB$9)*AV$7)+(((IF($A$8=Nutrients!$B$79,Nutrients!$FB$79,(IF($A$8=Nutrients!$B$77,Nutrients!$FB$77,Nutrients!$FB$78)))))*AV$8))","v":0},{"$f":"(SUMPRODUCT(AW$9:AW$229,Nutrients!$FB$8:$FB$228)+(IF($A$7=Nutrients!$B$8,Nutrients!$FB$8,Nutrients!$FB$9)*AW$7)+(((IF($A$8=Nutrients!$B$79,Nutrients!$FB$79,(IF($A$8=Nutrients!$B$77,Nutrients!$FB$77,Nutrients!$FB$78)))))*AW$8))","v":0}]
["  Pyridoxine, mg/ton",{"$f":"(SUMPRODUCT(B$9:B$229,Nutrients!$FC$8:$FC$228)+(IF($A$7=Nutrients!$B$8,Nutrients!$FC$8,Nutrients!$FC$9)*B$7)+(((IF($A$8=Nutrients!$B$79,Nutrients!$FC$79,(IF($A$8=Nutrients!$B$77,Nutrients!$FC$77,Nutrients!$FC$78)))))*B$8))","v":0},{"$f":"(SUMPRODUCT(C$9:C$229,Nutrients!$FC$8:$FC$228)+(IF($A$7=Nutrients!$B$8,Nutrients!$FC$8,Nutrients!$FC$9)*C$7)+(((IF($A$8=Nutrients!$B$79,Nutrients!$FC$79,(IF($A$8=Nutrients!$B$77,Nutrients!$FC$77,Nutrients!$FC$78)))))*C$8))","v":0},{"$f":"(SUMPRODUCT(D$9:D$229,Nutrients!$FC$8:$FC$228)+(IF($A$7=Nutrients!$B$8,Nutrients!$FC$8,Nutrients!$FC$9)*D$7)+(((IF($A$8=Nutrients!$B$79,Nutrients!$FC$79,(IF($A$8=Nutrients!$B$77,Nutrients!$FC$77,Nutrients!$FC$78)))))*D$8))","v":0},{"$f":"(SUMPRODUCT(E$9:E$229,Nutrients!$FC$8:$FC$228)+(IF($A$7=Nutrients!$B$8,Nutrients!$FC$8,Nutrients!$FC$9)*E$7)+(((IF($A$8=Nutrients!$B$79,Nutrients!$FC$79,(IF($A$8=Nutrients!$B$77,Nutrients!$FC$77,Nutrients!$FC$78)))))*E$8))","v":0},{"$f":"(SUMPRODUCT(F$9:F$229,Nutrients!$FC$8:$FC$228)+(IF($A$7=Nutrients!$B$8,Nutrients!$FC$8,Nutrients!$FC$9)*F$7)+(((IF($A$8=Nutrients!$B$79,Nutrients!$FC$79,(IF($A$8=Nutrients!$B$77,Nutrients!$FC$77,Nutrients!$FC$78)))))*F$8))","v":0},{"$f":"(SUMPRODUCT(G$9:G$229,Nutrients!$FC$8:$FC$228)+(IF($A$7=Nutrients!$B$8,Nutrients!$FC$8,Nutrients!$FC$9)*G$7)+(((IF($A$8=Nutrients!$B$79,Nutrients!$FC$79,(IF($A$8=Nutrients!$B$77,Nutrients!$FC$77,Nutrients!$FC$78)))))*G$8))","v":0},null,{"$f":"(SUMPRODUCT(I$9:I$229,Nutrients!$FC$8:$FC$228)+(IF($A$7=Nutrients!$B$8,Nutrients!$FC$8,Nutrients!$FC$9)*I$7)+(((IF($A$8=Nutrients!$B$79,Nutrients!$FC$79,(IF($A$8=Nutrients!$B$77,Nutrients!$FC$77,Nutrients!$FC$78)))))*I$8))","v":0},{"$f":"(SUMPRODUCT(J$9:J$229,Nutrients!$FC$8:$FC$228)+(IF($A$7=Nutrients!$B$8,Nutrients!$FC$8,Nutrients!$FC$9)*J$7)+(((IF($A$8=Nutrients!$B$79,Nutrients!$FC$79,(IF($A$8=Nutrients!$B$77,Nutrients!$FC$77,Nutrients!$FC$78)))))*J$8))","v":0},{"$f":"(SUMPRODUCT(K$9:K$229,Nutrients!$FC$8:$FC$228)+(IF($A$7=Nutrients!$B$8,Nutrients!$FC$8,Nutrients!$FC$9)*K$7)+(((IF($A$8=Nutrients!$B$79,Nutrients!$FC$79,(IF($A$8=Nutrients!$B$77,Nutrients!$FC$77,Nutrients!$FC$78)))))*K$8))","v":0},{"$f":"(SUMPRODUCT(L$9:L$229,Nutrients!$FC$8:$FC$228)+(IF($A$7=Nutrients!$B$8,Nutrients!$FC$8,Nutrients!$FC$9)*L$7)+(((IF($A$8=Nutrients!$B$79,Nutrients!$FC$79,(IF($A$8=Nutrients!$B$77,Nutrients!$FC$77,Nutrients!$FC$78)))))*L$8))","v":0},{"$f":"(SUMPRODUCT(M$9:M$229,Nutrients!$FC$8:$FC$228)+(IF($A$7=Nutrients!$B$8,Nutrients!$FC$8,Nutrients!$FC$9)*M$7)+(((IF($A$8=Nutrients!$B$79,Nutrients!$FC$79,(IF($A$8=Nutrients!$B$77,Nutrients!$FC$77,Nutrients!$FC$78)))))*M$8))","v":0},{"$f":"(SUMPRODUCT(N$9:N$229,Nutrients!$FC$8:$FC$228)+(IF($A$7=Nutrients!$B$8,Nutrients!$FC$8,Nutrients!$FC$9)*N$7)+(((IF($A$8=Nutrients!$B$79,Nutrients!$FC$79,(IF($A$8=Nutrients!$B$77,Nutrients!$FC$77,Nutrients!$FC$78)))))*N$8))","v":0},null,{"$f":"(SUMPRODUCT(P$9:P$229,Nutrients!$FC$8:$FC$228)+(IF($A$7=Nutrients!$B$8,Nutrients!$FC$8,Nutrients!$FC$9)*P$7)+(((IF($A$8=Nutrients!$B$79,Nutrients!$FC$79,(IF($A$8=Nutrients!$B$77,Nutrients!$FC$77,Nutrients!$FC$78)))))*P$8))","v":0},{"$f":"(SUMPRODUCT(Q$9:Q$229,Nutrients!$FC$8:$FC$228)+(IF($A$7=Nutrients!$B$8,Nutrients!$FC$8,Nutrients!$FC$9)*Q$7)+(((IF($A$8=Nutrients!$B$79,Nutrients!$FC$79,(IF($A$8=Nutrients!$B$77,Nutrients!$FC$77,Nutrients!$FC$78)))))*Q$8))","v":0},{"$f":"(SUMPRODUCT(R$9:R$229,Nutrients!$FC$8:$FC$228)+(IF($A$7=Nutrients!$B$8,Nutrients!$FC$8,Nutrients!$FC$9)*R$7)+(((IF($A$8=Nutrients!$B$79,Nutrients!$FC$79,(IF($A$8=Nutrients!$B$77,Nutrients!$FC$77,Nutrients!$FC$78)))))*R$8))","v":0},{"$f":"(SUMPRODUCT(S$9:S$229,Nutrients!$FC$8:$FC$228)+(IF($A$7=Nutrients!$B$8,Nutrients!$FC$8,Nutrients!$FC$9)*S$7)+(((IF($A$8=Nutrients!$B$79,Nutrients!$FC$79,(IF($A$8=Nutrients!$B$77,Nutrients!$FC$77,Nutrients!$FC$78)))))*S$8))","v":0},{"$f":"(SUMPRODUCT(T$9:T$229,Nutrients!$FC$8:$FC$228)+(IF($A$7=Nutrients!$B$8,Nutrients!$FC$8,Nutrients!$FC$9)*T$7)+(((IF($A$8=Nutrients!$B$79,Nutrients!$FC$79,(IF($A$8=Nutrients!$B$77,Nutrients!$FC$77,Nutrients!$FC$78)))))*T$8))","v":0},{"$f":"(SUMPRODUCT(U$9:U$229,Nutrients!$FC$8:$FC$228)+(IF($A$7=Nutrients!$B$8,Nutrients!$FC$8,Nutrients!$FC$9)*U$7)+(((IF($A$8=Nutrients!$B$79,Nutrients!$FC$79,(IF($A$8=Nutrients!$B$77,Nutrients!$FC$77,Nutrients!$FC$78)))))*U$8))","v":0},null,{"$f":"(SUMPRODUCT(W$9:W$229,Nutrients!$FC$8:$FC$228)+(IF($A$7=Nutrients!$B$8,Nutrients!$FC$8,Nutrients!$FC$9)*W$7)+(((IF($A$8=Nutrients!$B$79,Nutrients!$FC$79,(IF($A$8=Nutrients!$B$77,Nutrients!$FC$77,Nutrients!$FC$78)))))*W$8))","v":0},{"$f":"(SUMPRODUCT(X$9:X$229,Nutrients!$FC$8:$FC$228)+(IF($A$7=Nutrients!$B$8,Nutrients!$FC$8,Nutrients!$FC$9)*X$7)+(((IF($A$8=Nutrients!$B$79,Nutrients!$FC$79,(IF($A$8=Nutrients!$B$77,Nutrients!$FC$77,Nutrients!$FC$78)))))*X$8))","v":0},{"$f":"(SUMPRODUCT(Y$9:Y$229,Nutrients!$FC$8:$FC$228)+(IF($A$7=Nutrients!$B$8,Nutrients!$FC$8,Nutrients!$FC$9)*Y$7)+(((IF($A$8=Nutrients!$B$79,Nutrients!$FC$79,(IF($A$8=Nutrients!$B$77,Nutrients!$FC$77,Nutrients!$FC$78)))))*Y$8))","v":0},{"$f":"(SUMPRODUCT(Z$9:Z$229,Nutrients!$FC$8:$FC$228)+(IF($A$7=Nutrients!$B$8,Nutrients!$FC$8,Nutrients!$FC$9)*Z$7)+(((IF($A$8=Nutrients!$B$79,Nutrients!$FC$79,(IF($A$8=Nutrients!$B$77,Nutrients!$FC$77,Nutrients!$FC$78)))))*Z$8))","v":0},{"$f":"(SUMPRODUCT(AA$9:AA$229,Nutrients!$FC$8:$FC$228)+(IF($A$7=Nutrients!$B$8,Nutrients!$FC$8,Nutrients!$FC$9)*AA$7)+(((IF($A$8=Nutrients!$B$79,Nutrients!$FC$79,(IF($A$8=Nutrients!$B$77,Nutrients!$FC$77,Nutrients!$FC$78)))))*AA$8))","v":0},{"$f":"(SUMPRODUCT(AB$9:AB$229,Nutrients!$FC$8:$FC$228)+(IF($A$7=Nutrients!$B$8,Nutrients!$FC$8,Nutrients!$FC$9)*AB$7)+(((IF($A$8=Nutrients!$B$79,Nutrients!$FC$79,(IF($A$8=Nutrients!$B$77,Nutrients!$FC$77,Nutrients!$FC$78)))))*AB$8))","v":0},null,{"$f":"(SUMPRODUCT(AD$9:AD$229,Nutrients!$FC$8:$FC$228)+(IF($A$7=Nutrients!$B$8,Nutrients!$FC$8,Nutrients!$FC$9)*AD$7)+(((IF($A$8=Nutrients!$B$79,Nutrients!$FC$79,(IF($A$8=Nutrients!$B$77,Nutrients!$FC$77,Nutrients!$FC$78)))))*AD$8))","v":0},{"$f":"(SUMPRODUCT(AE$9:AE$229,Nutrients!$FC$8:$FC$228)+(IF($A$7=Nutrients!$B$8,Nutrients!$FC$8,Nutrients!$FC$9)*AE$7)+(((IF($A$8=Nutrients!$B$79,Nutrients!$FC$79,(IF($A$8=Nutrients!$B$77,Nutrients!$FC$77,Nutrients!$FC$78)))))*AE$8))","v":0},{"$f":"(SUMPRODUCT(AF$9:AF$229,Nutrients!$FC$8:$FC$228)+(IF($A$7=Nutrients!$B$8,Nutrients!$FC$8,Nutrients!$FC$9)*AF$7)+(((IF($A$8=Nutrients!$B$79,Nutrients!$FC$79,(IF($A$8=Nutrients!$B$77,Nutrients!$FC$77,Nutrients!$FC$78)))))*AF$8))","v":0},{"$f":"(SUMPRODUCT(AG$9:AG$229,Nutrients!$FC$8:$FC$228)+(IF($A$7=Nutrients!$B$8,Nutrients!$FC$8,Nutrients!$FC$9)*AG$7)+(((IF($A$8=Nutrients!$B$79,Nutrients!$FC$79,(IF($A$8=Nutrients!$B$77,Nutrients!$FC$77,Nutrients!$FC$78)))))*AG$8))","v":0},{"$f":"(SUMPRODUCT(AH$9:AH$229,Nutrients!$FC$8:$FC$228)+(IF($A$7=Nutrients!$B$8,Nutrients!$FC$8,Nutrients!$FC$9)*AH$7)+(((IF($A$8=Nutrients!$B$79,Nutrients!$FC$79,(IF($A$8=Nutrients!$B$77,Nutrients!$FC$77,Nutrients!$FC$78)))))*AH$8))","v":0},{"$f":"(SUMPRODUCT(AI$9:AI$229,Nutrients!$FC$8:$FC$228)+(IF($A$7=Nutrients!$B$8,Nutrients!$FC$8,Nutrients!$FC$9)*AI$7)+(((IF($A$8=Nutrients!$B$79,Nutrients!$FC$79,(IF($A$8=Nutrients!$B$77,Nutrients!$FC$77,Nutrients!$FC$78)))))*AI$8))","v":0},null,{"$f":"(SUMPRODUCT(AK$9:AK$229,Nutrients!$FC$8:$FC$228)+(IF($A$7=Nutrients!$B$8,Nutrients!$FC$8,Nutrients!$FC$9)*AK$7)+(((IF($A$8=Nutrients!$B$79,Nutrients!$FC$79,(IF($A$8=Nutrients!$B$77,Nutrients!$FC$77,Nutrients!$FC$78)))))*AK$8))","v":0},{"$f":"(SUMPRODUCT(AL$9:AL$229,Nutrients!$FC$8:$FC$228)+(IF($A$7=Nutrients!$B$8,Nutrients!$FC$8,Nutrients!$FC$9)*AL$7)+(((IF($A$8=Nutrients!$B$79,Nutrients!$FC$79,(IF($A$8=Nutrients!$B$77,Nutrients!$FC$77,Nutrients!$FC$78)))))*AL$8))","v":0},{"$f":"(SUMPRODUCT(AM$9:AM$229,Nutrients!$FC$8:$FC$228)+(IF($A$7=Nutrients!$B$8,Nutrients!$FC$8,Nutrients!$FC$9)*AM$7)+(((IF($A$8=Nutrients!$B$79,Nutrients!$FC$79,(IF($A$8=Nutrients!$B$77,Nutrients!$FC$77,Nutrients!$FC$78)))))*AM$8))","v":0},{"$f":"(SUMPRODUCT(AN$9:AN$229,Nutrients!$FC$8:$FC$228)+(IF($A$7=Nutrients!$B$8,Nutrients!$FC$8,Nutrients!$FC$9)*AN$7)+(((IF($A$8=Nutrients!$B$79,Nutrients!$FC$79,(IF($A$8=Nutrients!$B$77,Nutrients!$FC$77,Nutrients!$FC$78)))))*AN$8))","v":0},{"$f":"(SUMPRODUCT(AO$9:AO$229,Nutrients!$FC$8:$FC$228)+(IF($A$7=Nutrients!$B$8,Nutrients!$FC$8,Nutrients!$FC$9)*AO$7)+(((IF($A$8=Nutrients!$B$79,Nutrients!$FC$79,(IF($A$8=Nutrients!$B$77,Nutrients!$FC$77,Nutrients!$FC$78)))))*AO$8))","v":0},{"$f":"(SUMPRODUCT(AP$9:AP$229,Nutrients!$FC$8:$FC$228)+(IF($A$7=Nutrients!$B$8,Nutrients!$FC$8,Nutrients!$FC$9)*AP$7)+(((IF($A$8=Nutrients!$B$79,Nutrients!$FC$79,(IF($A$8=Nutrients!$B$77,Nutrients!$FC$77,Nutrients!$FC$78)))))*AP$8))","v":0},null,{"$f":"(SUMPRODUCT(AR$9:AR$229,Nutrients!$FC$8:$FC$228)+(IF($A$7=Nutrients!$B$8,Nutrients!$FC$8,Nutrients!$FC$9)*AR$7)+(((IF($A$8=Nutrients!$B$79,Nutrients!$FC$79,(IF($A$8=Nutrients!$B$77,Nutrients!$FC$77,Nutrients!$FC$78)))))*AR$8))","v":0},{"$f":"(SUMPRODUCT(AS$9:AS$229,Nutrients!$FC$8:$FC$228)+(IF($A$7=Nutrients!$B$8,Nutrients!$FC$8,Nutrients!$FC$9)*AS$7)+(((IF($A$8=Nutrients!$B$79,Nutrients!$FC$79,(IF($A$8=Nutrients!$B$77,Nutrients!$FC$77,Nutrients!$FC$78)))))*AS$8))","v":0},{"$f":"(SUMPRODUCT(AT$9:AT$229,Nutrients!$FC$8:$FC$228)+(IF($A$7=Nutrients!$B$8,Nutrients!$FC$8,Nutrients!$FC$9)*AT$7)+(((IF($A$8=Nutrients!$B$79,Nutrients!$FC$79,(IF($A$8=Nutrients!$B$77,Nutrients!$FC$77,Nutrients!$FC$78)))))*AT$8))","v":0},{"$f":"(SUMPRODUCT(AU$9:AU$229,Nutrients!$FC$8:$FC$228)+(IF($A$7=Nutrients!$B$8,Nutrients!$FC$8,Nutrients!$FC$9)*AU$7)+(((IF($A$8=Nutrients!$B$79,Nutrients!$FC$79,(IF($A$8=Nutrients!$B$77,Nutrients!$FC$77,Nutrients!$FC$78)))))*AU$8))","v":0},{"$f":"(SUMPRODUCT(AV$9:AV$229,Nutrients!$FC$8:$FC$228)+(IF($A$7=Nutrients!$B$8,Nutrients!$FC$8,Nutrients!$FC$9)*AV$7)+(((IF($A$8=Nutrients!$B$79,Nutrients!$FC$79,(IF($A$8=Nutrients!$B$77,Nutrients!$FC$77,Nutrients!$FC$78)))))*AV$8))","v":0},{"$f":"(SUMPRODUCT(AW$9:AW$229,Nutrients!$FC$8:$FC$228)+(IF($A$7=Nutrients!$B$8,Nutrients!$FC$8,Nutrients!$FC$9)*AW$7)+(((IF($A$8=Nutrients!$B$79,Nutrients!$FC$79,(IF($A$8=Nutrients!$B$77,Nutrients!$FC$77,Nutrients!$FC$78)))))*AW$8))","v":0}]
["  Choline, mg/ton",{"$f":"(SUMPRODUCT(B$9:B$229,Nutrients!$FD$8:$FD$228)+(IF($A$7=Nutrients!$B$8,Nutrients!$FD$8,Nutrients!$FD$9)*B$7)+(((IF($A$8=Nutrients!$B$79,Nutrients!$FD$79,(IF($A$8=Nutrients!$B$77,Nutrients!$FD$77,Nutrients!$FD$78)))))*B$8))","v":0},{"$f":"(SUMPRODUCT(C$9:C$229,Nutrients!$FD$8:$FD$228)+(IF($A$7=Nutrients!$B$8,Nutrients!$FD$8,Nutrients!$FD$9)*C$7)+(((IF($A$8=Nutrients!$B$79,Nutrients!$FD$79,(IF($A$8=Nutrients!$B$77,Nutrients!$FD$77,Nutrients!$FD$78)))))*C$8))","v":0},{"$f":"(SUMPRODUCT(D$9:D$229,Nutrients!$FD$8:$FD$228)+(IF($A$7=Nutrients!$B$8,Nutrients!$FD$8,Nutrients!$FD$9)*D$7)+(((IF($A$8=Nutrients!$B$79,Nutrients!$FD$79,(IF($A$8=Nutrients!$B$77,Nutrients!$FD$77,Nutrients!$FD$78)))))*D$8))","v":0},{"$f":"(SUMPRODUCT(E$9:E$229,Nutrients!$FD$8:$FD$228)+(IF($A$7=Nutrients!$B$8,Nutrients!$FD$8,Nutrients!$FD$9)*E$7)+(((IF($A$8=Nutrients!$B$79,Nutrients!$FD$79,(IF($A$8=Nutrients!$B$77,Nutrients!$FD$77,Nutrients!$FD$78)))))*E$8))","v":0},{"$f":"(SUMPRODUCT(F$9:F$229,Nutrients!$FD$8:$FD$228)+(IF($A$7=Nutrients!$B$8,Nutrients!$FD$8,Nutrients!$FD$9)*F$7)+(((IF($A$8=Nutrients!$B$79,Nutrients!$FD$79,(IF($A$8=Nutrients!$B$77,Nutrients!$FD$77,Nutrients!$FD$78)))))*F$8))","v":0},{"$f":"(SUMPRODUCT(G$9:G$229,Nutrients!$FD$8:$FD$228)+(IF($A$7=Nutrients!$B$8,Nutrients!$FD$8,Nutrients!$FD$9)*G$7)+(((IF($A$8=Nutrients!$B$79,Nutrients!$FD$79,(IF($A$8=Nutrients!$B$77,Nutrients!$FD$77,Nutrients!$FD$78)))))*G$8))","v":0},null,{"$f":"(SUMPRODUCT(I$9:I$229,Nutrients!$FD$8:$FD$228)+(IF($A$7=Nutrients!$B$8,Nutrients!$FD$8,Nutrients!$FD$9)*I$7)+(((IF($A$8=Nutrients!$B$79,Nutrients!$FD$79,(IF($A$8=Nutrients!$B$77,Nutrients!$FD$77,Nutrients!$FD$78)))))*I$8))","v":0},{"$f":"(SUMPRODUCT(J$9:J$229,Nutrients!$FD$8:$FD$228)+(IF($A$7=Nutrients!$B$8,Nutrients!$FD$8,Nutrients!$FD$9)*J$7)+(((IF($A$8=Nutrients!$B$79,Nutrients!$FD$79,(IF($A$8=Nutrients!$B$77,Nutrients!$FD$77,Nutrients!$FD$78)))))*J$8))","v":0},{"$f":"(SUMPRODUCT(K$9:K$229,Nutrients!$FD$8:$FD$228)+(IF($A$7=Nutrients!$B$8,Nutrients!$FD$8,Nutrients!$FD$9)*K$7)+(((IF($A$8=Nutrients!$B$79,Nutrients!$FD$79,(IF($A$8=Nutrients!$B$77,Nutrients!$FD$77,Nutrients!$FD$78)))))*K$8))","v":0},{"$f":"(SUMPRODUCT(L$9:L$229,Nutrients!$FD$8:$FD$228)+(IF($A$7=Nutrients!$B$8,Nutrients!$FD$8,Nutrients!$FD$9)*L$7)+(((IF($A$8=Nutrients!$B$79,Nutrients!$FD$79,(IF($A$8=Nutrients!$B$77,Nutrients!$FD$77,Nutrients!$FD$78)))))*L$8))","v":0},{"$f":"(SUMPRODUCT(M$9:M$229,Nutrients!$FD$8:$FD$228)+(IF($A$7=Nutrients!$B$8,Nutrients!$FD$8,Nutrients!$FD$9)*M$7)+(((IF($A$8=Nutrients!$B$79,Nutrients!$FD$79,(IF($A$8=Nutrients!$B$77,Nutrients!$FD$77,Nutrients!$FD$78)))))*M$8))","v":0},{"$f":"(SUMPRODUCT(N$9:N$229,Nutrients!$FD$8:$FD$228)+(IF($A$7=Nutrients!$B$8,Nutrients!$FD$8,Nutrients!$FD$9)*N$7)+(((IF($A$8=Nutrients!$B$79,Nutrients!$FD$79,(IF($A$8=Nutrients!$B$77,Nutrients!$FD$77,Nutrients!$FD$78)))))*N$8))","v":0},null,{"$f":"(SUMPRODUCT(P$9:P$229,Nutrients!$FD$8:$FD$228)+(IF($A$7=Nutrients!$B$8,Nutrients!$FD$8,Nutrients!$FD$9)*P$7)+(((IF($A$8=Nutrients!$B$79,Nutrients!$FD$79,(IF($A$8=Nutrients!$B$77,Nutrients!$FD$77,Nutrients!$FD$78)))))*P$8))","v":0},{"$f":"(SUMPRODUCT(Q$9:Q$229,Nutrients!$FD$8:$FD$228)+(IF($A$7=Nutrients!$B$8,Nutrients!$FD$8,Nutrients!$FD$9)*Q$7)+(((IF($A$8=Nutrients!$B$79,Nutrients!$FD$79,(IF($A$8=Nutrients!$B$77,Nutrients!$FD$77,Nutrients!$FD$78)))))*Q$8))","v":0},{"$f":"(SUMPRODUCT(R$9:R$229,Nutrients!$FD$8:$FD$228)+(IF($A$7=Nutrients!$B$8,Nutrients!$FD$8,Nutrients!$FD$9)*R$7)+(((IF($A$8=Nutrients!$B$79,Nutrients!$FD$79,(IF($A$8=Nutrients!$B$77,Nutrients!$FD$77,Nutrients!$FD$78)))))*R$8))","v":0},{"$f":"(SUMPRODUCT(S$9:S$229,Nutrients!$FD$8:$FD$228)+(IF($A$7=Nutrients!$B$8,Nutrients!$FD$8,Nutrients!$FD$9)*S$7)+(((IF($A$8=Nutrients!$B$79,Nutrients!$FD$79,(IF($A$8=Nutrients!$B$77,Nutrients!$FD$77,Nutrients!$FD$78)))))*S$8))","v":0},{"$f":"(SUMPRODUCT(T$9:T$229,Nutrients!$FD$8:$FD$228)+(IF($A$7=Nutrients!$B$8,Nutrients!$FD$8,Nutrients!$FD$9)*T$7)+(((IF($A$8=Nutrients!$B$79,Nutrients!$FD$79,(IF($A$8=Nutrients!$B$77,Nutrients!$FD$77,Nutrients!$FD$78)))))*T$8))","v":0},{"$f":"(SUMPRODUCT(U$9:U$229,Nutrients!$FD$8:$FD$228)+(IF($A$7=Nutrients!$B$8,Nutrients!$FD$8,Nutrients!$FD$9)*U$7)+(((IF($A$8=Nutrients!$B$79,Nutrients!$FD$79,(IF($A$8=Nutrients!$B$77,Nutrients!$FD$77,Nutrients!$FD$78)))))*U$8))","v":0},null,{"$f":"(SUMPRODUCT(W$9:W$229,Nutrients!$FD$8:$FD$228)+(IF($A$7=Nutrients!$B$8,Nutrients!$FD$8,Nutrients!$FD$9)*W$7)+(((IF($A$8=Nutrients!$B$79,Nutrients!$FD$79,(IF($A$8=Nutrients!$B$77,Nutrients!$FD$77,Nutrients!$FD$78)))))*W$8))","v":0},{"$f":"(SUMPRODUCT(X$9:X$229,Nutrients!$FD$8:$FD$228)+(IF($A$7=Nutrients!$B$8,Nutrients!$FD$8,Nutrients!$FD$9)*X$7)+(((IF($A$8=Nutrients!$B$79,Nutrients!$FD$79,(IF($A$8=Nutrients!$B$77,Nutrients!$FD$77,Nutrients!$FD$78)))))*X$8))","v":0},{"$f":"(SUMPRODUCT(Y$9:Y$229,Nutrients!$FD$8:$FD$228)+(IF($A$7=Nutrients!$B$8,Nutrients!$FD$8,Nutrients!$FD$9)*Y$7)+(((IF($A$8=Nutrients!$B$79,Nutrients!$FD$79,(IF($A$8=Nutrients!$B$77,Nutrients!$FD$77,Nutrients!$FD$78)))))*Y$8))","v":0},{"$f":"(SUMPRODUCT(Z$9:Z$229,Nutrients!$FD$8:$FD$228)+(IF($A$7=Nutrients!$B$8,Nutrients!$FD$8,Nutrients!$FD$9)*Z$7)+(((IF($A$8=Nutrients!$B$79,Nutrients!$FD$79,(IF($A$8=Nutrients!$B$77,Nutrients!$FD$77,Nutrients!$FD$78)))))*Z$8))","v":0},{"$f":"(SUMPRODUCT(AA$9:AA$229,Nutrients!$FD$8:$FD$228)+(IF($A$7=Nutrients!$B$8,Nutrients!$FD$8,Nutrients!$FD$9)*AA$7)+(((IF($A$8=Nutrients!$B$79,Nutrients!$FD$79,(IF($A$8=Nutrients!$B$77,Nutrients!$FD$77,Nutrients!$FD$78)))))*AA$8))","v":0},{"$f":"(SUMPRODUCT(AB$9:AB$229,Nutrients!$FD$8:$FD$228)+(IF($A$7=Nutrients!$B$8,Nutrients!$FD$8,Nutrients!$FD$9)*AB$7)+(((IF($A$8=Nutrients!$B$79,Nutrients!$FD$79,(IF($A$8=Nutrients!$B$77,Nutrients!$FD$77,Nutrients!$FD$78)))))*AB$8))","v":0},null,{"$f":"(SUMPRODUCT(AD$9:AD$229,Nutrients!$FD$8:$FD$228)+(IF($A$7=Nutrients!$B$8,Nutrients!$FD$8,Nutrients!$FD$9)*AD$7)+(((IF($A$8=Nutrients!$B$79,Nutrients!$FD$79,(IF($A$8=Nutrients!$B$77,Nutrients!$FD$77,Nutrients!$FD$78)))))*AD$8))","v":0},{"$f":"(SUMPRODUCT(AE$9:AE$229,Nutrients!$FD$8:$FD$228)+(IF($A$7=Nutrients!$B$8,Nutrients!$FD$8,Nutrients!$FD$9)*AE$7)+(((IF($A$8=Nutrients!$B$79,Nutrients!$FD$79,(IF($A$8=Nutrients!$B$77,Nutrients!$FD$77,Nutrients!$FD$78)))))*AE$8))","v":0},{"$f":"(SUMPRODUCT(AF$9:AF$229,Nutrients!$FD$8:$FD$228)+(IF($A$7=Nutrients!$B$8,Nutrients!$FD$8,Nutrients!$FD$9)*AF$7)+(((IF($A$8=Nutrients!$B$79,Nutrients!$FD$79,(IF($A$8=Nutrients!$B$77,Nutrients!$FD$77,Nutrients!$FD$78)))))*AF$8))","v":0},{"$f":"(SUMPRODUCT(AG$9:AG$229,Nutrients!$FD$8:$FD$228)+(IF($A$7=Nutrients!$B$8,Nutrients!$FD$8,Nutrients!$FD$9)*AG$7)+(((IF($A$8=Nutrients!$B$79,Nutrients!$FD$79,(IF($A$8=Nutrients!$B$77,Nutrients!$FD$77,Nutrients!$FD$78)))))*AG$8))","v":0},{"$f":"(SUMPRODUCT(AH$9:AH$229,Nutrients!$FD$8:$FD$228)+(IF($A$7=Nutrients!$B$8,Nutrients!$FD$8,Nutrients!$FD$9)*AH$7)+(((IF($A$8=Nutrients!$B$79,Nutrients!$FD$79,(IF($A$8=Nutrients!$B$77,Nutrients!$FD$77,Nutrients!$FD$78)))))*AH$8))","v":0},{"$f":"(SUMPRODUCT(AI$9:AI$229,Nutrients!$FD$8:$FD$228)+(IF($A$7=Nutrients!$B$8,Nutrients!$FD$8,Nutrients!$FD$9)*AI$7)+(((IF($A$8=Nutrients!$B$79,Nutrients!$FD$79,(IF($A$8=Nutrients!$B$77,Nutrients!$FD$77,Nutrients!$FD$78)))))*AI$8))","v":0},null,{"$f":"(SUMPRODUCT(AK$9:AK$229,Nutrients!$FD$8:$FD$228)+(IF($A$7=Nutrients!$B$8,Nutrients!$FD$8,Nutrients!$FD$9)*AK$7)+(((IF($A$8=Nutrients!$B$79,Nutrients!$FD$79,(IF($A$8=Nutrients!$B$77,Nutrients!$FD$77,Nutrients!$FD$78)))))*AK$8))","v":0},{"$f":"(SUMPRODUCT(AL$9:AL$229,Nutrients!$FD$8:$FD$228)+(IF($A$7=Nutrients!$B$8,Nutrients!$FD$8,Nutrients!$FD$9)*AL$7)+(((IF($A$8=Nutrients!$B$79,Nutrients!$FD$79,(IF($A$8=Nutrients!$B$77,Nutrients!$FD$77,Nutrients!$FD$78)))))*AL$8))","v":0},{"$f":"(SUMPRODUCT(AM$9:AM$229,Nutrients!$FD$8:$FD$228)+(IF($A$7=Nutrients!$B$8,Nutrients!$FD$8,Nutrients!$FD$9)*AM$7)+(((IF($A$8=Nutrients!$B$79,Nutrients!$FD$79,(IF($A$8=Nutrients!$B$77,Nutrients!$FD$77,Nutrients!$FD$78)))))*AM$8))","v":0},{"$f":"(SUMPRODUCT(AN$9:AN$229,Nutrients!$FD$8:$FD$228)+(IF($A$7=Nutrients!$B$8,Nutrients!$FD$8,Nutrients!$FD$9)*AN$7)+(((IF($A$8=Nutrients!$B$79,Nutrients!$FD$79,(IF($A$8=Nutrients!$B$77,Nutrients!$FD$77,Nutrients!$FD$78)))))*AN$8))","v":0},{"$f":"(SUMPRODUCT(AO$9:AO$229,Nutrients!$FD$8:$FD$228)+(IF($A$7=Nutrients!$B$8,Nutrients!$FD$8,Nutrients!$FD$9)*AO$7)+(((IF($A$8=Nutrients!$B$79,Nutrients!$FD$79,(IF($A$8=Nutrients!$B$77,Nutrients!$FD$77,Nutrients!$FD$78)))))*AO$8))","v":0},{"$f":"(SUMPRODUCT(AP$9:AP$229,Nutrients!$FD$8:$FD$228)+(IF($A$7=Nutrients!$B$8,Nutrients!$FD$8,Nutrients!$FD$9)*AP$7)+(((IF($A$8=Nutrients!$B$79,Nutrients!$FD$79,(IF($A$8=Nutrients!$B$77,Nutrients!$FD$77,Nutrients!$FD$78)))))*AP$8))","v":0},null,{"$f":"(SUMPRODUCT(AR$9:AR$229,Nutrients!$FD$8:$FD$228)+(IF($A$7=Nutrients!$B$8,Nutrients!$FD$8,Nutrients!$FD$9)*AR$7)+(((IF($A$8=Nutrients!$B$79,Nutrients!$FD$79,(IF($A$8=Nutrients!$B$77,Nutrients!$FD$77,Nutrients!$FD$78)))))*AR$8))","v":0},{"$f":"(SUMPRODUCT(AS$9:AS$229,Nutrients!$FD$8:$FD$228)+(IF($A$7=Nutrients!$B$8,Nutrients!$FD$8,Nutrients!$FD$9)*AS$7)+(((IF($A$8=Nutrients!$B$79,Nutrients!$FD$79,(IF($A$8=Nutrients!$B$77,Nutrients!$FD$77,Nutrients!$FD$78)))))*AS$8))","v":0},{"$f":"(SUMPRODUCT(AT$9:AT$229,Nutrients!$FD$8:$FD$228)+(IF($A$7=Nutrients!$B$8,Nutrients!$FD$8,Nutrients!$FD$9)*AT$7)+(((IF($A$8=Nutrients!$B$79,Nutrients!$FD$79,(IF($A$8=Nutrients!$B$77,Nutrients!$FD$77,Nutrients!$FD$78)))))*AT$8))","v":0},{"$f":"(SUMPRODUCT(AU$9:AU$229,Nutrients!$FD$8:$FD$228)+(IF($A$7=Nutrients!$B$8,Nutrients!$FD$8,Nutrients!$FD$9)*AU$7)+(((IF($A$8=Nutrients!$B$79,Nutrients!$FD$79,(IF($A$8=Nutrients!$B$77,Nutrients!$FD$77,Nutrients!$FD$78)))))*AU$8))","v":0},{"$f":"(SUMPRODUCT(AV$9:AV$229,Nutrients!$FD$8:$FD$228)+(IF($A$7=Nutrients!$B$8,Nutrients!$FD$8,Nutrients!$FD$9)*AV$7)+(((IF($A$8=Nutrients!$B$79,Nutrients!$FD$79,(IF($A$8=Nutrients!$B$77,Nutrients!$FD$77,Nutrients!$FD$78)))))*AV$8))","v":0},{"$f":"(SUMPRODUCT(AW$9:AW$229,Nutrients!$FD$8:$FD$228)+(IF($A$7=Nutrients!$B$8,Nutrients!$FD$8,Nutrients!$FD$9)*AW$7)+(((IF($A$8=Nutrients!$B$79,Nutrients!$FD$79,(IF($A$8=Nutrients!$B$77,Nutrients!$FD$77,Nutrients!$FD$78)))))*AW$8))","v":0}]
["  Carnitine, mg/ton",{"$f":"(SUMPRODUCT(B$9:B$229,Nutrients!$FE$8:$FE$228)+(IF($A$7=Nutrients!$B$8,Nutrients!$FE$8,Nutrients!$FE$9)*B$7)+(((IF($A$8=Nutrients!$B$79,Nutrients!$FE$79,(IF($A$8=Nutrients!$B$77,Nutrients!$FE$77,Nutrients!$FE$78)))))*B$8))","v":0},{"$f":"(SUMPRODUCT(C$9:C$229,Nutrients!$FE$8:$FE$228)+(IF($A$7=Nutrients!$B$8,Nutrients!$FE$8,Nutrients!$FE$9)*C$7)+(((IF($A$8=Nutrients!$B$79,Nutrients!$FE$79,(IF($A$8=Nutrients!$B$77,Nutrients!$FE$77,Nutrients!$FE$78)))))*C$8))","v":0},{"$f":"(SUMPRODUCT(D$9:D$229,Nutrients!$FE$8:$FE$228)+(IF($A$7=Nutrients!$B$8,Nutrients!$FE$8,Nutrients!$FE$9)*D$7)+(((IF($A$8=Nutrients!$B$79,Nutrients!$FE$79,(IF($A$8=Nutrients!$B$77,Nutrients!$FE$77,Nutrients!$FE$78)))))*D$8))","v":0},{"$f":"(SUMPRODUCT(E$9:E$229,Nutrients!$FE$8:$FE$228)+(IF($A$7=Nutrients!$B$8,Nutrients!$FE$8,Nutrients!$FE$9)*E$7)+(((IF($A$8=Nutrients!$B$79,Nutrients!$FE$79,(IF($A$8=Nutrients!$B$77,Nutrients!$FE$77,Nutrients!$FE$78)))))*E$8))","v":0},{"$f":"(SUMPRODUCT(F$9:F$229,Nutrients!$FE$8:$FE$228)+(IF($A$7=Nutrients!$B$8,Nutrients!$FE$8,Nutrients!$FE$9)*F$7)+(((IF($A$8=Nutrients!$B$79,Nutrients!$FE$79,(IF($A$8=Nutrients!$B$77,Nutrients!$FE$77,Nutrients!$FE$78)))))*F$8))","v":0},{"$f":"(SUMPRODUCT(G$9:G$229,Nutrients!$FE$8:$FE$228)+(IF($A$7=Nutrients!$B$8,Nutrients!$FE$8,Nutrients!$FE$9)*G$7)+(((IF($A$8=Nutrients!$B$79,Nutrients!$FE$79,(IF($A$8=Nutrients!$B$77,Nutrients!$FE$77,Nutrients!$FE$78)))))*G$8))","v":0},null,{"$f":"(SUMPRODUCT(I$9:I$229,Nutrients!$FE$8:$FE$228)+(IF($A$7=Nutrients!$B$8,Nutrients!$FE$8,Nutrients!$FE$9)*I$7)+(((IF($A$8=Nutrients!$B$79,Nutrients!$FE$79,(IF($A$8=Nutrients!$B$77,Nutrients!$FE$77,Nutrients!$FE$78)))))*I$8))","v":0},{"$f":"(SUMPRODUCT(J$9:J$229,Nutrients!$FE$8:$FE$228)+(IF($A$7=Nutrients!$B$8,Nutrients!$FE$8,Nutrients!$FE$9)*J$7)+(((IF($A$8=Nutrients!$B$79,Nutrients!$FE$79,(IF($A$8=Nutrients!$B$77,Nutrients!$FE$77,Nutrients!$FE$78)))))*J$8))","v":0},{"$f":"(SUMPRODUCT(K$9:K$229,Nutrients!$FE$8:$FE$228)+(IF($A$7=Nutrients!$B$8,Nutrients!$FE$8,Nutrients!$FE$9)*K$7)+(((IF($A$8=Nutrients!$B$79,Nutrients!$FE$79,(IF($A$8=Nutrients!$B$77,Nutrients!$FE$77,Nutrients!$FE$78)))))*K$8))","v":0},{"$f":"(SUMPRODUCT(L$9:L$229,Nutrients!$FE$8:$FE$228)+(IF($A$7=Nutrients!$B$8,Nutrients!$FE$8,Nutrients!$FE$9)*L$7)+(((IF($A$8=Nutrients!$B$79,Nutrients!$FE$79,(IF($A$8=Nutrients!$B$77,Nutrients!$FE$77,Nutrients!$FE$78)))))*L$8))","v":0},{"$f":"(SUMPRODUCT(M$9:M$229,Nutrients!$FE$8:$FE$228)+(IF($A$7=Nutrients!$B$8,Nutrients!$FE$8,Nutrients!$FE$9)*M$7)+(((IF($A$8=Nutrients!$B$79,Nutrients!$FE$79,(IF($A$8=Nutrients!$B$77,Nutrients!$FE$77,Nutrients!$FE$78)))))*M$8))","v":0},{"$f":"(SUMPRODUCT(N$9:N$229,Nutrients!$FE$8:$FE$228)+(IF($A$7=Nutrients!$B$8,Nutrients!$FE$8,Nutrients!$FE$9)*N$7)+(((IF($A$8=Nutrients!$B$79,Nutrients!$FE$79,(IF($A$8=Nutrients!$B$77,Nutrients!$FE$77,Nutrients!$FE$78)))))*N$8))","v":0},null,{"$f":"(SUMPRODUCT(P$9:P$229,Nutrients!$FE$8:$FE$228)+(IF($A$7=Nutrients!$B$8,Nutrients!$FE$8,Nutrients!$FE$9)*P$7)+(((IF($A$8=Nutrients!$B$79,Nutrients!$FE$79,(IF($A$8=Nutrients!$B$77,Nutrients!$FE$77,Nutrients!$FE$78)))))*P$8))","v":0},{"$f":"(SUMPRODUCT(Q$9:Q$229,Nutrients!$FE$8:$FE$228)+(IF($A$7=Nutrients!$B$8,Nutrients!$FE$8,Nutrients!$FE$9)*Q$7)+(((IF($A$8=Nutrients!$B$79,Nutrients!$FE$79,(IF($A$8=Nutrients!$B$77,Nutrients!$FE$77,Nutrients!$FE$78)))))*Q$8))","v":0},{"$f":"(SUMPRODUCT(R$9:R$229,Nutrients!$FE$8:$FE$228)+(IF($A$7=Nutrients!$B$8,Nutrients!$FE$8,Nutrients!$FE$9)*R$7)+(((IF($A$8=Nutrients!$B$79,Nutrients!$FE$79,(IF($A$8=Nutrients!$B$77,Nutrients!$FE$77,Nutrients!$FE$78)))))*R$8))","v":0},{"$f":"(SUMPRODUCT(S$9:S$229,Nutrients!$FE$8:$FE$228)+(IF($A$7=Nutrients!$B$8,Nutrients!$FE$8,Nutrients!$FE$9)*S$7)+(((IF($A$8=Nutrients!$B$79,Nutrients!$FE$79,(IF($A$8=Nutrients!$B$77,Nutrients!$FE$77,Nutrients!$FE$78)))))*S$8))","v":0},{"$f":"(SUMPRODUCT(T$9:T$229,Nutrients!$FE$8:$FE$228)+(IF($A$7=Nutrients!$B$8,Nutrients!$FE$8,Nutrients!$FE$9)*T$7)+(((IF($A$8=Nutrients!$B$79,Nutrients!$FE$79,(IF($A$8=Nutrients!$B$77,Nutrients!$FE$77,Nutrients!$FE$78)))))*T$8))","v":0},{"$f":"(SUMPRODUCT(U$9:U$229,Nutrients!$FE$8:$FE$228)+(IF($A$7=Nutrients!$B$8,Nutrients!$FE$8,Nutrients!$FE$9)*U$7)+(((IF($A$8=Nutrients!$B$79,Nutrients!$FE$79,(IF($A$8=Nutrients!$B$77,Nutrients!$FE$77,Nutrients!$FE$78)))))*U$8))","v":0},null,{"$f":"(SUMPRODUCT(W$9:W$229,Nutrients!$FE$8:$FE$228)+(IF($A$7=Nutrients!$B$8,Nutrients!$FE$8,Nutrients!$FE$9)*W$7)+(((IF($A$8=Nutrients!$B$79,Nutrients!$FE$79,(IF($A$8=Nutrients!$B$77,Nutrients!$FE$77,Nutrients!$FE$78)))))*W$8))","v":0},{"$f":"(SUMPRODUCT(X$9:X$229,Nutrients!$FE$8:$FE$228)+(IF($A$7=Nutrients!$B$8,Nutrients!$FE$8,Nutrients!$FE$9)*X$7)+(((IF($A$8=Nutrients!$B$79,Nutrients!$FE$79,(IF($A$8=Nutrients!$B$77,Nutrients!$FE$77,Nutrients!$FE$78)))))*X$8))","v":0},{"$f":"(SUMPRODUCT(Y$9:Y$229,Nutrients!$FE$8:$FE$228)+(IF($A$7=Nutrients!$B$8,Nutrients!$FE$8,Nutrients!$FE$9)*Y$7)+(((IF($A$8=Nutrients!$B$79,Nutrients!$FE$79,(IF($A$8=Nutrients!$B$77,Nutrients!$FE$77,Nutrients!$FE$78)))))*Y$8))","v":0},{"$f":"(SUMPRODUCT(Z$9:Z$229,Nutrients!$FE$8:$FE$228)+(IF($A$7=Nutrients!$B$8,Nutrients!$FE$8,Nutrients!$FE$9)*Z$7)+(((IF($A$8=Nutrients!$B$79,Nutrients!$FE$79,(IF($A$8=Nutrients!$B$77,Nutrients!$FE$77,Nutrients!$FE$78)))))*Z$8))","v":0},{"$f":"(SUMPRODUCT(AA$9:AA$229,Nutrients!$FE$8:$FE$228)+(IF($A$7=Nutrients!$B$8,Nutrients!$FE$8,Nutrients!$FE$9)*AA$7)+(((IF($A$8=Nutrients!$B$79,Nutrients!$FE$79,(IF($A$8=Nutrients!$B$77,Nutrients!$FE$77,Nutrients!$FE$78)))))*AA$8))","v":0},{"$f":"(SUMPRODUCT(AB$9:AB$229,Nutrients!$FE$8:$FE$228)+(IF($A$7=Nutrients!$B$8,Nutrients!$FE$8,Nutrients!$FE$9)*AB$7)+(((IF($A$8=Nutrients!$B$79,Nutrients!$FE$79,(IF($A$8=Nutrients!$B$77,Nutrients!$FE$77,Nutrients!$FE$78)))))*AB$8))","v":0},null,{"$f":"(SUMPRODUCT(AD$9:AD$229,Nutrients!$FE$8:$FE$228)+(IF($A$7=Nutrients!$B$8,Nutrients!$FE$8,Nutrients!$FE$9)*AD$7)+(((IF($A$8=Nutrients!$B$79,Nutrients!$FE$79,(IF($A$8=Nutrients!$B$77,Nutrients!$FE$77,Nutrients!$FE$78)))))*AD$8))","v":0},{"$f":"(SUMPRODUCT(AE$9:AE$229,Nutrients!$FE$8:$FE$228)+(IF($A$7=Nutrients!$B$8,Nutrients!$FE$8,Nutrients!$FE$9)*AE$7)+(((IF($A$8=Nutrients!$B$79,Nutrients!$FE$79,(IF($A$8=Nutrients!$B$77,Nutrients!$FE$77,Nutrients!$FE$78)))))*AE$8))","v":0},{"$f":"(SUMPRODUCT(AF$9:AF$229,Nutrients!$FE$8:$FE$228)+(IF($A$7=Nutrients!$B$8,Nutrients!$FE$8,Nutrients!$FE$9)*AF$7)+(((IF($A$8=Nutrients!$B$79,Nutrients!$FE$79,(IF($A$8=Nutrients!$B$77,Nutrients!$FE$77,Nutrients!$FE$78)))))*AF$8))","v":0},{"$f":"(SUMPRODUCT(AG$9:AG$229,Nutrients!$FE$8:$FE$228)+(IF($A$7=Nutrients!$B$8,Nutrients!$FE$8,Nutrients!$FE$9)*AG$7)+(((IF($A$8=Nutrients!$B$79,Nutrients!$FE$79,(IF($A$8=Nutrients!$B$77,Nutrients!$FE$77,Nutrients!$FE$78)))))*AG$8))","v":0},{"$f":"(SUMPRODUCT(AH$9:AH$229,Nutrients!$FE$8:$FE$228)+(IF($A$7=Nutrients!$B$8,Nutrients!$FE$8,Nutrients!$FE$9)*AH$7)+(((IF($A$8=Nutrients!$B$79,Nutrients!$FE$79,(IF($A$8=Nutrients!$B$77,Nutrients!$FE$77,Nutrients!$FE$78)))))*AH$8))","v":0},{"$f":"(SUMPRODUCT(AI$9:AI$229,Nutrients!$FE$8:$FE$228)+(IF($A$7=Nutrients!$B$8,Nutrients!$FE$8,Nutrients!$FE$9)*AI$7)+(((IF($A$8=Nutrients!$B$79,Nutrients!$FE$79,(IF($A$8=Nutrients!$B$77,Nutrients!$FE$77,Nutrients!$FE$78)))))*AI$8))","v":0},null,{"$f":"(SUMPRODUCT(AK$9:AK$229,Nutrients!$FE$8:$FE$228)+(IF($A$7=Nutrients!$B$8,Nutrients!$FE$8,Nutrients!$FE$9)*AK$7)+(((IF($A$8=Nutrients!$B$79,Nutrients!$FE$79,(IF($A$8=Nutrients!$B$77,Nutrients!$FE$77,Nutrients!$FE$78)))))*AK$8))","v":0},{"$f":"(SUMPRODUCT(AL$9:AL$229,Nutrients!$FE$8:$FE$228)+(IF($A$7=Nutrients!$B$8,Nutrients!$FE$8,Nutrients!$FE$9)*AL$7)+(((IF($A$8=Nutrients!$B$79,Nutrients!$FE$79,(IF($A$8=Nutrients!$B$77,Nutrients!$FE$77,Nutrients!$FE$78)))))*AL$8))","v":0},{"$f":"(SUMPRODUCT(AM$9:AM$229,Nutrients!$FE$8:$FE$228)+(IF($A$7=Nutrients!$B$8,Nutrients!$FE$8,Nutrients!$FE$9)*AM$7)+(((IF($A$8=Nutrients!$B$79,Nutrients!$FE$79,(IF($A$8=Nutrients!$B$77,Nutrients!$FE$77,Nutrients!$FE$78)))))*AM$8))","v":0},{"$f":"(SUMPRODUCT(AN$9:AN$229,Nutrients!$FE$8:$FE$228)+(IF($A$7=Nutrients!$B$8,Nutrients!$FE$8,Nutrients!$FE$9)*AN$7)+(((IF($A$8=Nutrients!$B$79,Nutrients!$FE$79,(IF($A$8=Nutrients!$B$77,Nutrients!$FE$77,Nutrients!$FE$78)))))*AN$8))","v":0},{"$f":"(SUMPRODUCT(AO$9:AO$229,Nutrients!$FE$8:$FE$228)+(IF($A$7=Nutrients!$B$8,Nutrients!$FE$8,Nutrients!$FE$9)*AO$7)+(((IF($A$8=Nutrients!$B$79,Nutrients!$FE$79,(IF($A$8=Nutrients!$B$77,Nutrients!$FE$77,Nutrients!$FE$78)))))*AO$8))","v":0},{"$f":"(SUMPRODUCT(AP$9:AP$229,Nutrients!$FE$8:$FE$228)+(IF($A$7=Nutrients!$B$8,Nutrients!$FE$8,Nutrients!$FE$9)*AP$7)+(((IF($A$8=Nutrients!$B$79,Nutrients!$FE$79,(IF($A$8=Nutrients!$B$77,Nutrients!$FE$77,Nutrients!$FE$78)))))*AP$8))","v":0},null,{"$f":"(SUMPRODUCT(AR$9:AR$229,Nutrients!$FE$8:$FE$228)+(IF($A$7=Nutrients!$B$8,Nutrients!$FE$8,Nutrients!$FE$9)*AR$7)+(((IF($A$8=Nutrients!$B$79,Nutrients!$FE$79,(IF($A$8=Nutrients!$B$77,Nutrients!$FE$77,Nutrients!$FE$78)))))*AR$8))","v":0},{"$f":"(SUMPRODUCT(AS$9:AS$229,Nutrients!$FE$8:$FE$228)+(IF($A$7=Nutrients!$B$8,Nutrients!$FE$8,Nutrients!$FE$9)*AS$7)+(((IF($A$8=Nutrients!$B$79,Nutrients!$FE$79,(IF($A$8=Nutrients!$B$77,Nutrients!$FE$77,Nutrients!$FE$78)))))*AS$8))","v":0},{"$f":"(SUMPRODUCT(AT$9:AT$229,Nutrients!$FE$8:$FE$228)+(IF($A$7=Nutrients!$B$8,Nutrients!$FE$8,Nutrients!$FE$9)*AT$7)+(((IF($A$8=Nutrients!$B$79,Nutrients!$FE$79,(IF($A$8=Nutrients!$B$77,Nutrients!$FE$77,Nutrients!$FE$78)))))*AT$8))","v":0},{"$f":"(SUMPRODUCT(AU$9:AU$229,Nutrients!$FE$8:$FE$228)+(IF($A$7=Nutrients!$B$8,Nutrients!$FE$8,Nutrients!$FE$9)*AU$7)+(((IF($A$8=Nutrients!$B$79,Nutrients!$FE$79,(IF($A$8=Nutrients!$B$77,Nutrients!$FE$77,Nutrients!$FE$78)))))*AU$8))","v":0},{"$f":"(SUMPRODUCT(AV$9:AV$229,Nutrients!$FE$8:$FE$228)+(IF($A$7=Nutrients!$B$8,Nutrients!$FE$8,Nutrients!$FE$9)*AV$7)+(((IF($A$8=Nutrients!$B$79,Nutrients!$FE$79,(IF($A$8=Nutrients!$B$77,Nutrients!$FE$77,Nutrients!$FE$78)))))*AV$8))","v":0},{"$f":"(SUMPRODUCT(AW$9:AW$229,Nutrients!$FE$8:$FE$228)+(IF($A$7=Nutrients!$B$8,Nutrients!$FE$8,Nutrients!$FE$9)*AW$7)+(((IF($A$8=Nutrients!$B$79,Nutrients!$FE$79,(IF($A$8=Nutrients!$B$77,Nutrients!$FE$77,Nutrients!$FE$78)))))*AW$8))","v":0}]
[]
["ADG, g/d",{"$f":" (-1619.2980797296 + 25.9248064834 * (B251/1000) - 2657.6209162609 * B236 +\n123.0469725298 * B253 - 9.2854579989 * B316 + 872.0182830582 * B252 + 26.664395965 * (AVERAGE(B5:B6)*0.453592) +\n2599.7646012325 * B236 * B236- 0.1016237102 *  (AVERAGE(B5:B6)*0.453592) *  (AVERAGE(B5:B6)*0.453592) - 71.8618465276 * B236 * B253 -\n607.1294449572 * B236 * B252 + 25.6463076451 * B236 * (AVERAGE(B5:B6)*0.453592) - 0.8399854508 * B253 * (AVERAGE(B5:B6)*0.453592) +\n0.0967347393 * B316 * (AVERAGE(B5:B6)*0.453592) - 5.2553838048 * B252 * (AVERAGE(B5:B6)*0.453592))","v":740.32616660444182},{"$f":" -1619.2980797296 + 25.9248064834 * (C251/1000) - 2657.6209162609 * C236 +\n123.0469725298 * C253 - 9.2854579989 * C316 + 872.0182830582 * C252 + 26.664395965 * (AVERAGE(C5:C6)*0.453592) +\n2599.7646012325 * C236 * C236- 0.1016237102 *  (AVERAGE(C5:C6)*0.453592) *  (AVERAGE(C5:C6)*0.453592) - 71.8618465276 * C236 * C253 -\n607.1294449572 * C236 * C252 + 25.6463076451 * C236 * (AVERAGE(C5:C6)*0.453592) - 0.8399854508 * C253 * (AVERAGE(C5:C6)*0.453592) +\n0.0967347393 * C316 * (AVERAGE(C5:C6)*0.453592) - 5.2553838048 * C252 * (AVERAGE(C5:C6)*0.453592)","v":862.50756659214221},{"$f":" -1619.2980797296 + 25.9248064834 * (D251/1000) - 2657.6209162609 * D236 +\n123.0469725298 * D253 - 9.2854579989 * D316 + 872.0182830582 * D252 + 26.664395965 * (AVERAGE(D5:D6)*0.453592) +\n2599.7646012325 * D236 * D236- 0.1016237102 *  (AVERAGE(D5:D6)*0.453592) *  (AVERAGE(D5:D6)*0.453592) - 71.8618465276 * D236 * D253 -\n607.1294449572 * D236 * D252 + 25.6463076451 * D236 * (AVERAGE(D5:D6)*0.453592) - 0.8399854508 * D253 * (AVERAGE(D5:D6)*0.453592) +\n0.0967347393 * D316 * (AVERAGE(D5:D6)*0.453592) - 5.2553838048 * D252 * (AVERAGE(D5:D6)*0.453592)","v":944.95636803551065},{"$f":" -1619.2980797296 + 25.9248064834 * (E251/1000) - 2657.6209162609 * E236 +\n123.0469725298 * E253 - 9.2854579989 * E316 + 872.0182830582 * E252 + 26.664395965 * (AVERAGE(E5:E6)*0.453592) +\n2599.7646012325 * E236 * E236- 0.1016237102 *  (AVERAGE(E5:E6)*0.453592) *  (AVERAGE(E5:E6)*0.453592) - 71.8618465276 * E236 * E253 -\n607.1294449572 * E236 * E252 + 25.6463076451 * E236 * (AVERAGE(E5:E6)*0.453592) - 0.8399854508 * E253 * (AVERAGE(E5:E6)*0.453592) +\n0.0967347393 * E316 * (AVERAGE(E5:E6)*0.453592) - 5.2553838048 * E252 * (AVERAGE(E5:E6)*0.453592)","v":984.20180073567008},{"$f":" -1619.2980797296 + 25.9248064834 * (F251/1000) - 2657.6209162609 * F236 +\n123.0469725298 * F253 - 9.2854579989 * F316 + 872.0182830582 * F252 + 26.664395965 * (AVERAGE(F5:F6)*0.453592) +\n2599.7646012325 * F236 * F236- 0.1016237102 *  (AVERAGE(F5:F6)*0.453592) *  (AVERAGE(F5:F6)*0.453592) - 71.8618465276 * F236 * F253 -\n607.1294449572 * F236 * F252 + 25.6463076451 * F236 * (AVERAGE(F5:F6)*0.453592) - 0.8399854508 * F253 * (AVERAGE(F5:F6)*0.453592) +\n0.0967347393 * F316 * (AVERAGE(F5:F6)*0.453592) - 5.2553838048 * F252 * (AVERAGE(F5:F6)*0.453592)","v":982.04258582759257},{"$f":" -1619.2980797296 + 25.9248064834 * (G251/1000) - 2657.6209162609 * G236 +\n123.0469725298 * G253 - 9.2854579989 * G316 + 872.0182830582 * G252 + 26.664395965 * (AVERAGE(G5:G6)*0.453592) +\n2599.7646012325 * G236 * G236- 0.1016237102 *  (AVERAGE(G5:G6)*0.453592) *  (AVERAGE(G5:G6)*0.453592) - 71.8618465276 * G236 * G253 -\n607.1294449572 * G236 * G252 + 25.6463076451 * G236 * (AVERAGE(G5:G6)*0.453592) - 0.8399854508 * G253 * (AVERAGE(G5:G6)*0.453592) +\n0.0967347393 * G316 * (AVERAGE(G5:G6)*0.453592) - 5.2553838048 * G252 * (AVERAGE(G5:G6)*0.453592)","v":932.08406418687355},null,{"$f":" (-1619.2980797296 + 25.9248064834 * (I251/1000) - 2657.6209162609 * I236 +\n123.0469725298 * I253 - 9.2854579989 * I316 + 872.0182830582 * I252 + 26.664395965 * (AVERAGE(I5:I6)*0.453592) +\n2599.7646012325 * I236 * I236- 0.1016237102 *  (AVERAGE(I5:I6)*0.453592) *  (AVERAGE(I5:I6)*0.453592) - 71.8618465276 * I236 * I253 -\n607.1294449572 * I236 * I252 + 25.6463076451 * I236 * (AVERAGE(I5:I6)*0.453592) - 0.8399854508 * I253 * (AVERAGE(I5:I6)*0.453592) +\n0.0967347393 * I316 * (AVERAGE(I5:I6)*0.453592) - 5.2553838048 * I252 * (AVERAGE(I5:I6)*0.453592))","v":734.98200857534789},{"$f":" -1619.2980797296 + 25.9248064834 * (J251/1000) - 2657.6209162609 * J236 +\n123.0469725298 * J253 - 9.2854579989 * J316 + 872.0182830582 * J252 + 26.664395965 * (AVERAGE(J5:J6)*0.453592) +\n2599.7646012325 * J236 * J236- 0.1016237102 *  (AVERAGE(J5:J6)*0.453592) *  (AVERAGE(J5:J6)*0.453592) - 71.8618465276 * J236 * J253 -\n607.1294449572 * J236 * J252 + 25.6463076451 * J236 * (AVERAGE(J5:J6)*0.453592) - 0.8399854508 * J253 * (AVERAGE(J5:J6)*0.453592) +\n0.0967347393 * J316 * (AVERAGE(J5:J6)*0.453592) - 5.2553838048 * J252 * (AVERAGE(J5:J6)*0.453592)","v":857.03896662430009},{"$f":" -1619.2980797296 + 25.9248064834 * (K251/1000) - 2657.6209162609 * K236 +\n123.0469725298 * K253 - 9.2854579989 * K316 + 872.0182830582 * K252 + 26.664395965 * (AVERAGE(K5:K6)*0.453592) +\n2599.7646012325 * K236 * K236- 0.1016237102 *  (AVERAGE(K5:K6)*0.453592) *  (AVERAGE(K5:K6)*0.453592) - 71.8618465276 * K236 * K253 -\n607.1294449572 * K236 * K252 + 25.6463076451 * K236 * (AVERAGE(K5:K6)*0.453592) - 0.8399854508 * K253 * (AVERAGE(K5:K6)*0.453592) +\n0.0967347393 * K316 * (AVERAGE(K5:K6)*0.453592) - 5.2553838048 * K252 * (AVERAGE(K5:K6)*0.453592)","v":938.67333767113405},{"$f":" -1619.2980797296 + 25.9248064834 * (L251/1000) - 2657.6209162609 * L236 +\n123.0469725298 * L253 - 9.2854579989 * L316 + 872.0182830582 * L252 + 26.664395965 * (AVERAGE(L5:L6)*0.453592) +\n2599.7646012325 * L236 * L236- 0.1016237102 *  (AVERAGE(L5:L6)*0.453592) *  (AVERAGE(L5:L6)*0.453592) - 71.8618465276 * L236 * L253 -\n607.1294449572 * L236 * L252 + 25.6463076451 * L236 * (AVERAGE(L5:L6)*0.453592) - 0.8399854508 * L253 * (AVERAGE(L5:L6)*0.453592) +\n0.0967347393 * L316 * (AVERAGE(L5:L6)*0.453592) - 5.2553838048 * L252 * (AVERAGE(L5:L6)*0.453592)","v":975.87519399902249},{"$f":" -1619.2980797296 + 25.9248064834 * (M251/1000) - 2657.6209162609 * M236 +\n123.0469725298 * M253 - 9.2854579989 * M316 + 872.0182830582 * M252 + 26.664395965 * (AVERAGE(M5:M6)*0.453592) +\n2599.7646012325 * M236 * M236- 0.1016237102 *  (AVERAGE(M5:M6)*0.453592) *  (AVERAGE(M5:M6)*0.453592) - 71.8618465276 * M236 * M253 -\n607.1294449572 * M236 * M252 + 25.6463076451 * M236 * (AVERAGE(M5:M6)*0.453592) - 0.8399854508 * M253 * (AVERAGE(M5:M6)*0.453592) +\n0.0967347393 * M316 * (AVERAGE(M5:M6)*0.453592) - 5.2553838048 * M252 * (AVERAGE(M5:M6)*0.453592)","v":970.37168111826622},{"$f":" -1619.2980797296 + 25.9248064834 * (N251/1000) - 2657.6209162609 * N236 +\n123.0469725298 * N253 - 9.2854579989 * N316 + 872.0182830582 * N252 + 26.664395965 * (AVERAGE(N5:N6)*0.453592) +\n2599.7646012325 * N236 * N236- 0.1016237102 *  (AVERAGE(N5:N6)*0.453592) *  (AVERAGE(N5:N6)*0.453592) - 71.8618465276 * N236 * N253 -\n607.1294449572 * N236 * N252 + 25.6463076451 * N236 * (AVERAGE(N5:N6)*0.453592) - 0.8399854508 * N253 * (AVERAGE(N5:N6)*0.453592) +\n0.0967347393 * N316 * (AVERAGE(N5:N6)*0.453592) - 5.2553838048 * N252 * (AVERAGE(N5:N6)*0.453592)","v":915.82072124867454},null,{"$f":" (-1619.2980797296 + 25.9248064834 * (P251/1000) - 2657.6209162609 * P236 +\n123.0469725298 * P253 - 9.2854579989 * P316 + 872.0182830582 * P252 + 26.664395965 * (AVERAGE(P5:P6)*0.453592) +\n2599.7646012325 * P236 * P236- 0.1016237102 *  (AVERAGE(P5:P6)*0.453592) *  (AVERAGE(P5:P6)*0.453592) - 71.8618465276 * P236 * P253 -\n607.1294449572 * P236 * P252 + 25.6463076451 * P236 * (AVERAGE(P5:P6)*0.453592) - 0.8399854508 * P253 * (AVERAGE(P5:P6)*0.453592) +\n0.0967347393 * P316 * (AVERAGE(P5:P6)*0.453592) - 5.2553838048 * P252 * (AVERAGE(P5:P6)*0.453592))","v":730.86253902058513},{"$f":" -1619.2980797296 + 25.9248064834 * (Q251/1000) - 2657.6209162609 * Q236 +\n123.0469725298 * Q253 - 9.2854579989 * Q316 + 872.0182830582 * Q252 + 26.664395965 * (AVERAGE(Q5:Q6)*0.453592) +\n2599.7646012325 * Q236 * Q236- 0.1016237102 *  (AVERAGE(Q5:Q6)*0.453592) *  (AVERAGE(Q5:Q6)*0.453592) - 71.8618465276 * Q236 * Q253 -\n607.1294449572 * Q236 * Q252 + 25.6463076451 * Q236 * (AVERAGE(Q5:Q6)*0.453592) - 0.8399854508 * Q253 * (AVERAGE(Q5:Q6)*0.453592) +\n0.0967347393 * Q316 * (AVERAGE(Q5:Q6)*0.453592) - 5.2553838048 * Q252 * (AVERAGE(Q5:Q6)*0.453592)","v":852.70454847034819},{"$f":" -1619.2980797296 + 25.9248064834 * (R251/1000) - 2657.6209162609 * R236 +\n123.0469725298 * R253 - 9.2854579989 * R316 + 872.0182830582 * R252 + 26.664395965 * (AVERAGE(R5:R6)*0.453592) +\n2599.7646012325 * R236 * R236- 0.1016237102 *  (AVERAGE(R5:R6)*0.453592) *  (AVERAGE(R5:R6)*0.453592) - 71.8618465276 * R236 * R253 -\n607.1294449572 * R236 * R252 + 25.6463076451 * R236 * (AVERAGE(R5:R6)*0.453592) - 0.8399854508 * R253 * (AVERAGE(R5:R6)*0.453592) +\n0.0967347393 * R316 * (AVERAGE(R5:R6)*0.453592) - 5.2553838048 * R252 * (AVERAGE(R5:R6)*0.453592)","v":933.32207144981544},{"$f":" -1619.2980797296 + 25.9248064834 * (S251/1000) - 2657.6209162609 * S236 +\n123.0469725298 * S253 - 9.2854579989 * S316 + 872.0182830582 * S252 + 26.664395965 * (AVERAGE(S5:S6)*0.453592) +\n2599.7646012325 * S236 * S236- 0.1016237102 *  (AVERAGE(S5:S6)*0.453592) *  (AVERAGE(S5:S6)*0.453592) - 71.8618465276 * S236 * S253 -\n607.1294449572 * S236 * S252 + 25.6463076451 * S236 * (AVERAGE(S5:S6)*0.453592) - 0.8399854508 * S253 * (AVERAGE(S5:S6)*0.453592) +\n0.0967347393 * S316 * (AVERAGE(S5:S6)*0.453592) - 5.2553838048 * S252 * (AVERAGE(S5:S6)*0.453592)","v":967.99604287988086},{"$f":" -1619.2980797296 + 25.9248064834 * (T251/1000) - 2657.6209162609 * T236 +\n123.0469725298 * T253 - 9.2854579989 * T316 + 872.0182830582 * T252 + 26.664395965 * (AVERAGE(T5:T6)*0.453592) +\n2599.7646012325 * T236 * T236- 0.1016237102 *  (AVERAGE(T5:T6)*0.453592) *  (AVERAGE(T5:T6)*0.453592) - 71.8618465276 * T236 * T253 -\n607.1294449572 * T236 * T252 + 25.6463076451 * T236 * (AVERAGE(T5:T6)*0.453592) - 0.8399854508 * T253 * (AVERAGE(T5:T6)*0.453592) +\n0.0967347393 * T316 * (AVERAGE(T5:T6)*0.453592) - 5.2553838048 * T252 * (AVERAGE(T5:T6)*0.453592)","v":959.34807253354575},{"$f":" -1619.2980797296 + 25.9248064834 * (U251/1000) - 2657.6209162609 * U236 +\n123.0469725298 * U253 - 9.2854579989 * U316 + 872.0182830582 * U252 + 26.664395965 * (AVERAGE(U5:U6)*0.453592) +\n2599.7646012325 * U236 * U236- 0.1016237102 *  (AVERAGE(U5:U6)*0.453592) *  (AVERAGE(U5:U6)*0.453592) - 71.8618465276 * U236 * U253 -\n607.1294449572 * U236 * U252 + 25.6463076451 * U236 * (AVERAGE(U5:U6)*0.453592) - 0.8399854508 * U253 * (AVERAGE(U5:U6)*0.453592) +\n0.0967347393 * U316 * (AVERAGE(U5:U6)*0.453592) - 5.2553838048 * U252 * (AVERAGE(U5:U6)*0.453592)","v":900.134581323867},null,{"$f":" (-1619.2980797296 + 25.9248064834 * (W251/1000) - 2657.6209162609 * W236 +\n123.0469725298 * W253 - 9.2854579989 * W316 + 872.0182830582 * W252 + 26.664395965 * (AVERAGE(W5:W6)*0.453592) +\n2599.7646012325 * W236 * W236- 0.1016237102 *  (AVERAGE(W5:W6)*0.453592) *  (AVERAGE(W5:W6)*0.453592) - 71.8618465276 * W236 * W253 -\n607.1294449572 * W236 * W252 + 25.6463076451 * W236 * (AVERAGE(W5:W6)*0.453592) - 0.8399854508 * W253 * (AVERAGE(W5:W6)*0.453592) +\n0.0967347393 * W316 * (AVERAGE(W5:W6)*0.453592) - 5.2553838048 * W252 * (AVERAGE(W5:W6)*0.453592))","v":727.51552435711903},{"$f":" -1619.2980797296 + 25.9248064834 * (X251/1000) - 2657.6209162609 * X236 +\n123.0469725298 * X253 - 9.2854579989 * X316 + 872.0182830582 * X252 + 26.664395965 * (AVERAGE(X5:X6)*0.453592) +\n2599.7646012325 * X236 * X236- 0.1016237102 *  (AVERAGE(X5:X6)*0.453592) *  (AVERAGE(X5:X6)*0.453592) - 71.8618465276 * X236 * X253 -\n607.1294449572 * X236 * X252 + 25.6463076451 * X236 * (AVERAGE(X5:X6)*0.453592) - 0.8399854508 * X253 * (AVERAGE(X5:X6)*0.453592) +\n0.0967347393 * X316 * (AVERAGE(X5:X6)*0.453592) - 5.2553838048 * X252 * (AVERAGE(X5:X6)*0.453592)","v":848.998506061993},{"$f":" -1619.2980797296 + 25.9248064834 * (Y251/1000) - 2657.6209162609 * Y236 +\n123.0469725298 * Y253 - 9.2854579989 * Y316 + 872.0182830582 * Y252 + 26.664395965 * (AVERAGE(Y5:Y6)*0.453592) +\n2599.7646012325 * Y236 * Y236- 0.1016237102 *  (AVERAGE(Y5:Y6)*0.453592) *  (AVERAGE(Y5:Y6)*0.453592) - 71.8618465276 * Y236 * Y253 -\n607.1294449572 * Y236 * Y252 + 25.6463076451 * Y236 * (AVERAGE(Y5:Y6)*0.453592) - 0.8399854508 * Y253 * (AVERAGE(Y5:Y6)*0.453592) +\n0.0967347393 * Y316 * (AVERAGE(Y5:Y6)*0.453592) - 5.2553838048 * Y252 * (AVERAGE(Y5:Y6)*0.453592)","v":928.12318501505911},{"$f":" -1619.2980797296 + 25.9248064834 * (Z251/1000) - 2657.6209162609 * Z236 +\n123.0469725298 * Z253 - 9.2854579989 * Z316 + 872.0182830582 * Z252 + 26.664395965 * (AVERAGE(Z5:Z6)*0.453592) +\n2599.7646012325 * Z236 * Z236- 0.1016237102 *  (AVERAGE(Z5:Z6)*0.453592) *  (AVERAGE(Z5:Z6)*0.453592) - 71.8618465276 * Z236 * Z253 -\n607.1294449572 * Z236 * Z252 + 25.6463076451 * Z236 * (AVERAGE(Z5:Z6)*0.453592) - 0.8399854508 * Z253 * (AVERAGE(Z5:Z6)*0.453592) +\n0.0967347393 * Z316 * (AVERAGE(Z5:Z6)*0.453592) - 5.2553838048 * Z252 * (AVERAGE(Z5:Z6)*0.453592)","v":960.75385333371219},{"$f":" -1619.2980797296 + 25.9248064834 * (AA251/1000) - 2657.6209162609 * AA236 +\n123.0469725298 * AA253 - 9.2854579989 * AA316 + 872.0182830582 * AA252 + 26.664395965 * (AVERAGE(AA5:AA6)*0.453592) +\n2599.7646012325 * AA236 * AA236- 0.1016237102 *  (AVERAGE(AA5:AA6)*0.453592) *  (AVERAGE(AA5:AA6)*0.453592) - 71.8618465276 * AA236 * AA253 -\n607.1294449572 * AA236 * AA252 + 25.6463076451 * AA236 * (AVERAGE(AA5:AA6)*0.453592) - 0.8399854508 * AA253 * (AVERAGE(AA5:AA6)*0.453592) +\n0.0967347393 * AA316 * (AVERAGE(AA5:AA6)*0.453592) - 5.2553838048 * AA252 * (AVERAGE(AA5:AA6)*0.453592)","v":948.70954572017718},{"$f":" -1619.2980797296 + 25.9248064834 * (AB251/1000) - 2657.6209162609 * AB236 +\n123.0469725298 * AB253 - 9.2854579989 * AB316 + 872.0182830582 * AB252 + 26.664395965 * (AVERAGE(AB5:AB6)*0.453592) +\n2599.7646012325 * AB236 * AB236- 0.1016237102 *  (AVERAGE(AB5:AB6)*0.453592) *  (AVERAGE(AB5:AB6)*0.453592) - 71.8618465276 * AB236 * AB253 -\n607.1294449572 * AB236 * AB252 + 25.6463076451 * AB236 * (AVERAGE(AB5:AB6)*0.453592) - 0.8399854508 * AB253 * (AVERAGE(AB5:AB6)*0.453592) +\n0.0967347393 * AB316 * (AVERAGE(AB5:AB6)*0.453592) - 5.2553838048 * AB252 * (AVERAGE(AB5:AB6)*0.453592)","v":884.51788453222389},null,{"$f":" (-1619.2980797296 + 25.9248064834 * (AD251/1000) - 2657.6209162609 * AD236 +\n123.0469725298 * AD253 - 9.2854579989 * AD316 + 872.0182830582 * AD252 + 26.664395965 * (AVERAGE(AD5:AD6)*0.453592) +\n2599.7646012325 * AD236 * AD236- 0.1016237102 *  (AVERAGE(AD5:AD6)*0.453592) *  (AVERAGE(AD5:AD6)*0.453592) - 71.8618465276 * AD236 * AD253 -\n607.1294449572 * AD236 * AD252 + 25.6463076451 * AD236 * (AVERAGE(AD5:AD6)*0.453592) - 0.8399854508 * AD253 * (AVERAGE(AD5:AD6)*0.453592) +\n0.0967347393 * AD316 * (AVERAGE(AD5:AD6)*0.453592) - 5.2553838048 * AD252 * (AVERAGE(AD5:AD6)*0.453592))","v":724.94582154114494},{"$f":" -1619.2980797296 + 25.9248064834 * (AE251/1000) - 2657.6209162609 * AE236 +\n123.0469725298 * AE253 - 9.2854579989 * AE316 + 872.0182830582 * AE252 + 26.664395965 * (AVERAGE(AE5:AE6)*0.453592) +\n2599.7646012325 * AE236 * AE236- 0.1016237102 *  (AVERAGE(AE5:AE6)*0.453592) *  (AVERAGE(AE5:AE6)*0.453592) - 71.8618465276 * AE236 * AE253 -\n607.1294449572 * AE236 * AE252 + 25.6463076451 * AE236 * (AVERAGE(AE5:AE6)*0.453592) - 0.8399854508 * AE253 * (AVERAGE(AE5:AE6)*0.453592) +\n0.0967347393 * AE316 * (AVERAGE(AE5:AE6)*0.453592) - 5.2553838048 * AE252 * (AVERAGE(AE5:AE6)*0.453592)","v":845.69421270540624},{"$f":" -1619.2980797296 + 25.9248064834 * (AF251/1000) - 2657.6209162609 * AF236 +\n123.0469725298 * AF253 - 9.2854579989 * AF316 + 872.0182830582 * AF252 + 26.664395965 * (AVERAGE(AF5:AF6)*0.453592) +\n2599.7646012325 * AF236 * AF236- 0.1016237102 *  (AVERAGE(AF5:AF6)*0.453592) *  (AVERAGE(AF5:AF6)*0.453592) - 71.8618465276 * AF236 * AF253 -\n607.1294449572 * AF236 * AF252 + 25.6463076451 * AF236 * (AVERAGE(AF5:AF6)*0.453592) - 0.8399854508 * AF253 * (AVERAGE(AF5:AF6)*0.453592) +\n0.0967347393 * AF316 * (AVERAGE(AF5:AF6)*0.453592) - 5.2553838048 * AF252 * (AVERAGE(AF5:AF6)*0.453592)","v":923.65864602576949},{"$f":" -1619.2980797296 + 25.9248064834 * (AG251/1000) - 2657.6209162609 * AG236 +\n123.0469725298 * AG253 - 9.2854579989 * AG316 + 872.0182830582 * AG252 + 26.664395965 * (AVERAGE(AG5:AG6)*0.453592) +\n2599.7646012325 * AG236 * AG236- 0.1016237102 *  (AVERAGE(AG5:AG6)*0.453592) *  (AVERAGE(AG5:AG6)*0.453592) - 71.8618465276 * AG236 * AG253 -\n607.1294449572 * AG236 * AG252 + 25.6463076451 * AG236 * (AVERAGE(AG5:AG6)*0.453592) - 0.8399854508 * AG253 * (AVERAGE(AG5:AG6)*0.453592) +\n0.0967347393 * AG316 * (AVERAGE(AG5:AG6)*0.453592) - 5.2553838048 * AG252 * (AVERAGE(AG5:AG6)*0.453592)","v":954.01012781500322},{"$f":" -1619.2980797296 + 25.9248064834 * (AH251/1000) - 2657.6209162609 * AH236 +\n123.0469725298 * AH253 - 9.2854579989 * AH316 + 872.0182830582 * AH252 + 26.664395965 * (AVERAGE(AH5:AH6)*0.453592) +\n2599.7646012325 * AH236 * AH236- 0.1016237102 *  (AVERAGE(AH5:AH6)*0.453592) *  (AVERAGE(AH5:AH6)*0.453592) - 71.8618465276 * AH236 * AH253 -\n607.1294449572 * AH236 * AH252 + 25.6463076451 * AH236 * (AVERAGE(AH5:AH6)*0.453592) - 0.8399854508 * AH253 * (AVERAGE(AH5:AH6)*0.453592) +\n0.0967347393 * AH316 * (AVERAGE(AH5:AH6)*0.453592) - 5.2553838048 * AH252 * (AVERAGE(AH5:AH6)*0.453592)","v":938.19318574970953},{"$f":" -1619.2980797296 + 25.9248064834 * (AI251/1000) - 2657.6209162609 * AI236 +\n123.0469725298 * AI253 - 9.2854579989 * AI316 + 872.0182830582 * AI252 + 26.664395965 * (AVERAGE(AI5:AI6)*0.453592) +\n2599.7646012325 * AI236 * AI236- 0.1016237102 *  (AVERAGE(AI5:AI6)*0.453592) *  (AVERAGE(AI5:AI6)*0.453592) - 71.8618465276 * AI236 * AI253 -\n607.1294449572 * AI236 * AI252 + 25.6463076451 * AI236 * (AVERAGE(AI5:AI6)*0.453592) - 0.8399854508 * AI253 * (AVERAGE(AI5:AI6)*0.453592) +\n0.0967347393 * AI316 * (AVERAGE(AI5:AI6)*0.453592) - 5.2553838048 * AI252 * (AVERAGE(AI5:AI6)*0.453592)","v":868.94538754257837},null,{"$f":" (-1619.2980797296 + 25.9248064834 * (AK251/1000) - 2657.6209162609 * AK236 +\n123.0469725298 * AK253 - 9.2854579989 * AK316 + 872.0182830582 * AK252 + 26.664395965 * (AVERAGE(AK5:AK6)*0.453592) +\n2599.7646012325 * AK236 * AK236- 0.1016237102 *  (AVERAGE(AK5:AK6)*0.453592) *  (AVERAGE(AK5:AK6)*0.453592) - 71.8618465276 * AK236 * AK253 -\n607.1294449572 * AK236 * AK252 + 25.6463076451 * AK236 * (AVERAGE(AK5:AK6)*0.453592) - 0.8399854508 * AK253 * (AVERAGE(AK5:AK6)*0.453592) +\n0.0967347393 * AK316 * (AVERAGE(AK5:AK6)*0.453592) - 5.2553838048 * AK252 * (AVERAGE(AK5:AK6)*0.453592))","v":723.16476170971032},{"$f":" -1619.2980797296 + 25.9248064834 * (AL251/1000) - 2657.6209162609 * AL236 +\n123.0469725298 * AL253 - 9.2854579989 * AL316 + 872.0182830582 * AL252 + 26.664395965 * (AVERAGE(AL5:AL6)*0.453592) +\n2599.7646012325 * AL236 * AL236- 0.1016237102 *  (AVERAGE(AL5:AL6)*0.453592) *  (AVERAGE(AL5:AL6)*0.453592) - 71.8618465276 * AL236 * AL253 -\n607.1294449572 * AL236 * AL252 + 25.6463076451 * AL236 * (AVERAGE(AL5:AL6)*0.453592) - 0.8399854508 * AL253 * (AVERAGE(AL5:AL6)*0.453592) +\n0.0967347393 * AL316 * (AVERAGE(AL5:AL6)*0.453592) - 5.2553838048 * AL252 * (AVERAGE(AL5:AL6)*0.453592)","v":843.16103565379217},{"$f":" -1619.2980797296 + 25.9248064834 * (AM251/1000) - 2657.6209162609 * AM236 +\n123.0469725298 * AM253 - 9.2854579989 * AM316 + 872.0182830582 * AM252 + 26.664395965 * (AVERAGE(AM5:AM6)*0.453592) +\n2599.7646012325 * AM236 * AM236- 0.1016237102 *  (AVERAGE(AM5:AM6)*0.453592) *  (AVERAGE(AM5:AM6)*0.453592) - 71.8618465276 * AM236 * AM253 -\n607.1294449572 * AM236 * AM252 + 25.6463076451 * AM236 * (AVERAGE(AM5:AM6)*0.453592) - 0.8399854508 * AM253 * (AVERAGE(AM5:AM6)*0.453592) +\n0.0967347393 * AM316 * (AVERAGE(AM5:AM6)*0.453592) - 5.2553838048 * AM252 * (AVERAGE(AM5:AM6)*0.453592)","v":919.85722269718804},{"$f":" -1619.2980797296 + 25.9248064834 * (AN251/1000) - 2657.6209162609 * AN236 +\n123.0469725298 * AN253 - 9.2854579989 * AN316 + 872.0182830582 * AN252 + 26.664395965 * (AVERAGE(AN5:AN6)*0.453592) +\n2599.7646012325 * AN236 * AN236- 0.1016237102 *  (AVERAGE(AN5:AN6)*0.453592) *  (AVERAGE(AN5:AN6)*0.453592) - 71.8618465276 * AN236 * AN253 -\n607.1294449572 * AN236 * AN252 + 25.6463076451 * AN236 * (AVERAGE(AN5:AN6)*0.453592) - 0.8399854508 * AN253 * (AVERAGE(AN5:AN6)*0.453592) +\n0.0967347393 * AN316 * (AVERAGE(AN5:AN6)*0.453592) - 5.2553838048 * AN252 * (AVERAGE(AN5:AN6)*0.453592)","v":947.59682363309821},{"$f":" -1619.2980797296 + 25.9248064834 * (AO251/1000) - 2657.6209162609 * AO236 +\n123.0469725298 * AO253 - 9.2854579989 * AO316 + 872.0182830582 * AO252 + 26.664395965 * (AVERAGE(AO5:AO6)*0.453592) +\n2599.7646012325 * AO236 * AO236- 0.1016237102 *  (AVERAGE(AO5:AO6)*0.453592) *  (AVERAGE(AO5:AO6)*0.453592) - 71.8618465276 * AO236 * AO253 -\n607.1294449572 * AO236 * AO252 + 25.6463076451 * AO236 * (AVERAGE(AO5:AO6)*0.453592) - 0.8399854508 * AO253 * (AVERAGE(AO5:AO6)*0.453592) +\n0.0967347393 * AO316 * (AVERAGE(AO5:AO6)*0.453592) - 5.2553838048 * AO252 * (AVERAGE(AO5:AO6)*0.453592)","v":928.08306099373704},{"$f":" -1619.2980797296 + 25.9248064834 * (AP251/1000) - 2657.6209162609 * AP236 +\n123.0469725298 * AP253 - 9.2854579989 * AP316 + 872.0182830582 * AP252 + 26.664395965 * (AVERAGE(AP5:AP6)*0.453592) +\n2599.7646012325 * AP236 * AP236- 0.1016237102 *  (AVERAGE(AP5:AP6)*0.453592) *  (AVERAGE(AP5:AP6)*0.453592) - 71.8618465276 * AP236 * AP253 -\n607.1294449572 * AP236 * AP252 + 25.6463076451 * AP236 * (AVERAGE(AP5:AP6)*0.453592) - 0.8399854508 * AP253 * (AVERAGE(AP5:AP6)*0.453592) +\n0.0967347393 * AP316 * (AVERAGE(AP5:AP6)*0.453592) - 5.2553838048 * AP252 * (AVERAGE(AP5:AP6)*0.453592)","v":853.87006838432558},null,{"$f":" (-1619.2980797296 + 25.9248064834 * (AR251/1000) - 2657.6209162609 * AR236 +\n123.0469725298 * AR253 - 9.2854579989 * AR316 + 872.0182830582 * AR252 + 26.664395965 * (AVERAGE(AR5:AR6)*0.453592) +\n2599.7646012325 * AR236 * AR236- 0.1016237102 *  (AVERAGE(AR5:AR6)*0.453592) *  (AVERAGE(AR5:AR6)*0.453592) - 71.8618465276 * AR236 * AR253 -\n607.1294449572 * AR236 * AR252 + 25.6463076451 * AR236 * (AVERAGE(AR5:AR6)*0.453592) - 0.8399854508 * AR253 * (AVERAGE(AR5:AR6)*0.453592) +\n0.0967347393 * AR316 * (AVERAGE(AR5:AR6)*0.453592) - 5.2553838048 * AR252 * (AVERAGE(AR5:AR6)*0.453592))","v":722.13641638624006},{"$f":" -1619.2980797296 + 25.9248064834 * (AS251/1000) - 2657.6209162609 * AS236 +\n123.0469725298 * AS253 - 9.2854579989 * AS316 + 872.0182830582 * AS252 + 26.664395965 * (AVERAGE(AS5:AS6)*0.453592) +\n2599.7646012325 * AS236 * AS236- 0.1016237102 *  (AVERAGE(AS5:AS6)*0.453592) *  (AVERAGE(AS5:AS6)*0.453592) - 71.8618465276 * AS236 * AS253 -\n607.1294449572 * AS236 * AS252 + 25.6463076451 * AS236 * (AVERAGE(AS5:AS6)*0.453592) - 0.8399854508 * AS253 * (AVERAGE(AS5:AS6)*0.453592) +\n0.0967347393 * AS316 * (AVERAGE(AS5:AS6)*0.453592) - 5.2553838048 * AS252 * (AVERAGE(AS5:AS6)*0.453592)","v":841.40646013664229},{"$f":" -1619.2980797296 + 25.9248064834 * (AT251/1000) - 2657.6209162609 * AT236 +\n123.0469725298 * AT253 - 9.2854579989 * AT316 + 872.0182830582 * AT252 + 26.664395965 * (AVERAGE(AT5:AT6)*0.453592) +\n2599.7646012325 * AT236 * AT236- 0.1016237102 *  (AVERAGE(AT5:AT6)*0.453592) *  (AVERAGE(AT5:AT6)*0.453592) - 71.8618465276 * AT236 * AT253 -\n607.1294449572 * AT236 * AT252 + 25.6463076451 * AT236 * (AVERAGE(AT5:AT6)*0.453592) - 0.8399854508 * AT253 * (AVERAGE(AT5:AT6)*0.453592) +\n0.0967347393 * AT316 * (AVERAGE(AT5:AT6)*0.453592) - 5.2553838048 * AT252 * (AVERAGE(AT5:AT6)*0.453592)","v":916.72904437624834},{"$f":" -1619.2980797296 + 25.9248064834 * (AU251/1000) - 2657.6209162609 * AU236 +\n123.0469725298 * AU253 - 9.2854579989 * AU316 + 872.0182830582 * AU252 + 26.664395965 * (AVERAGE(AU5:AU6)*0.453592) +\n2599.7646012325 * AU236 * AU236- 0.1016237102 *  (AVERAGE(AU5:AU6)*0.453592) *  (AVERAGE(AU5:AU6)*0.453592) - 71.8618465276 * AU236 * AU253 -\n607.1294449572 * AU236 * AU252 + 25.6463076451 * AU236 * (AVERAGE(AU5:AU6)*0.453592) - 0.8399854508 * AU253 * (AVERAGE(AU5:AU6)*0.453592) +\n0.0967347393 * AU316 * (AVERAGE(AU5:AU6)*0.453592) - 5.2553838048 * AU252 * (AVERAGE(AU5:AU6)*0.453592)","v":941.64006968999638},{"$f":" -1619.2980797296 + 25.9248064834 * (AV251/1000) - 2657.6209162609 * AV236 +\n123.0469725298 * AV253 - 9.2854579989 * AV316 + 872.0182830582 * AV252 + 26.664395965 * (AVERAGE(AV5:AV6)*0.453592) +\n2599.7646012325 * AV236 * AV236- 0.1016237102 *  (AVERAGE(AV5:AV6)*0.453592) *  (AVERAGE(AV5:AV6)*0.453592) - 71.8618465276 * AV236 * AV253 -\n607.1294449572 * AV236 * AV252 + 25.6463076451 * AV236 * (AVERAGE(AV5:AV6)*0.453592) - 0.8399854508 * AV253 * (AVERAGE(AV5:AV6)*0.453592) +\n0.0967347393 * AV316 * (AVERAGE(AV5:AV6)*0.453592) - 5.2553838048 * AV252 * (AVERAGE(AV5:AV6)*0.453592)","v":918.50077750001947},{"$f":" -1619.2980797296 + 25.9248064834 * (AW251/1000) - 2657.6209162609 * AW236 +\n123.0469725298 * AW253 - 9.2854579989 * AW316 + 872.0182830582 * AW252 + 26.664395965 * (AVERAGE(AW5:AW6)*0.453592) +\n2599.7646012325 * AW236 * AW236- 0.1016237102 *  (AVERAGE(AW5:AW6)*0.453592) *  (AVERAGE(AW5:AW6)*0.453592) - 71.8618465276 * AW236 * AW253 -\n607.1294449572 * AW236 * AW252 + 25.6463076451 * AW236 * (AVERAGE(AW5:AW6)*0.453592) - 0.8399854508 * AW253 * (AVERAGE(AW5:AW6)*0.453592) +\n0.0967347393 * AW316 * (AVERAGE(AW5:AW6)*0.453592) - 5.2553838048 * AW252 * (AVERAGE(AW5:AW6)*0.453592)","v":839.28439538630732}]
["ADFI, g/d",{"$f":"B342/B344*1000","v":1359.5480024980595},1828.292464469157,2305.5922105887325,2729.415034120711,3011.820185199786,3094.1334754619566,null,{"$f":"I342/I344*1000","v":1348.7826007278509},1815.68177892228,2290.067197897029,2711.4157746123528,2994.3858231473955,3081.7572508536787,null,{"$f":"P342/P344*1000","v":1341.39899974334},1806.839086588014,2278.4572570527534,2696.6793919520519,2979.536691801507,3072.0880938159512,null,{"$f":"W342/W344*1000","v":1337.2933270276556},1801.6127543216869,2270.4372365023082,2685.3276063188227,2966.9564816925654,3063.8303600626064,null,{"$f":"AD342/AD344*1000","v":1336.515183527601},1800.0075173063415,2266.1761342156888,2677.2240023138611,2958.2648530923721,3058.3696976822557,null,{"$f":"AK342/AK344*1000","v":1339.0267496662491},1802.1045793076732,2265.7188386996818,2673.778103049729,2953.0939340480559,3055.8215599373511,null,{"$f":"AR342/AR344*1000","v":1344.5555326317949},1808.0599837870654,2269.2107982590765,2674.9271955846516,2951.2306264149029,3056.337834167]
["GF, g/kg",{"$f":" -232.8670000513 - (102.0339177026 * (B251/1000)) + (1386.8135453223 * B236) - (3.1583174866 * B253) + (80.3303777865 * B316) - (115.1570451563 * B252) + (4.1836503117 * (AVERAGE(B5:B6)*0.453592)) + (2553.6417073224 * B236 * B236) + (228.757399518 * B252 * B252) + (12.736240264 *  (B251/1000) * B253) - (24.4502664605 *  (B251/1000) * B316) - (23.0415882284 * B236 * B253) + (101.5847297779 * B236 * B316) - (1559.9331198689 * B236 *B252) - (3.9239483753 * B236 * (AVERAGE(B5:B6)*0.453592)) - (0.1078600966 * B253 * (AVERAGE(B5:B6)*0.453592)) - (28.1879330488 * B316 * B252) - (0.1153929924 * B316 * (AVERAGE(B5:B6)*0.453592))","v":544.53845340080113},471.75579583355693,409.85407727163351,360.59074506150858,326.06282096567122,301.24235802326291,null,{"$f":" -232.8670000513 - (102.0339177026 * (I251/1000)) + (1386.8135453223 * I236) - (3.1583174866 * I253) + (80.3303777865 * I316) - (115.1570451563 * I252) + (4.1836503117 * (AVERAGE(I5:I6)*0.453592)) + (2553.6417073224 * I236 * I236) + (228.757399518 * I252 * I252) + (12.736240264 *  (I251/1000) * I253) - (24.4502664605 *  (I251/1000) * I316) - (23.0415882284 * I236 * I253) + (101.5847297779 * I236 * I316) - (1559.9331198689 * I236 *I252) - (3.9239483753 * I236 * (AVERAGE(I5:I6)*0.453592)) - (0.1078600966 * I253 * (AVERAGE(I5:I6)*0.453592)) - (28.1879330488 * I316 * I252) - (0.1153929924 * I316 * (AVERAGE(I5:I6)*0.453592))","v":544.92251618513285},472.02046998180811,409.88899300995126,359.91351940059508,324.0636773047201,297.1748410732165,null,{"$f":" -232.8670000513 - (102.0339177026 * (P251/1000)) + (1386.8135453223 * P236) - (3.1583174866 * P253) + (80.3303777865 * P316) - (115.1570451563 * P252) + (4.1836503117 * (AVERAGE(P5:P6)*0.453592)) + (2553.6417073224 * P236 * P236) + (228.757399518 * P252 * P252) + (12.736240264 *  (P251/1000) * P253) - (24.4502664605 *  (P251/1000) * P316) - (23.0415882284 * P236 * P253) + (101.5847297779 * P236 * P316) - (1559.9331198689 * P236 *P252) - (3.9239483753 * P236 * (AVERAGE(P5:P6)*0.453592)) - (0.1078600966 * P253 * (AVERAGE(P5:P6)*0.453592)) - (28.1879330488 * P316 * P252) - (0.1153929924 * P316 * (AVERAGE(P5:P6)*0.453592))","v":544.85096467227618},471.93164836862832,409.62895773480216,358.95851978872997,321.97894228766768,293.00415672838903,null,{"$f":" -232.8670000513 - (102.0339177026 * (W251/1000)) + (1386.8135453223 * W236) - (3.1583174866 * W253) + (80.3303777865 * W316) - (115.1570451563 * W252) + (4.1836503117 * (AVERAGE(W5:W6)*0.453592)) + (2553.6417073224 * W236 * W236) + (228.757399518 * W252 * W252) + (12.736240264 *  (W251/1000) * W253) - (24.4502664605 *  (W251/1000) * W316) - (23.0415882284 * W236 * W253) + (101.5847297779 * W236 * W316) - (1559.9331198689 * W236 *W252) - (3.9239483753 * W236 * (AVERAGE(W5:W6)*0.453592)) - (0.1078600966 * W253 * (AVERAGE(W5:W6)*0.453592)) - (28.1879330488 * W316 * W252) - (0.1153929924 * W316 * (AVERAGE(W5:W6)*0.453592))","v":544.02090375649789},471.24361438129569,408.78610079742481,357.7790103051002,319.75849715832874,288.69675555866928,null,{"$f":" -232.8670000513 - (102.0339177026 * (AD251/1000)) + (1386.8135453223 * AD236) - (3.1583174866 * AD253) + (80.3303777865 * AD316) - (115.1570451563 * AD252) + (4.1836503117 * (AVERAGE(AD5:AD6)*0.453592)) + (2553.6417073224 * AD236 * AD236) + (228.757399518 * AD252 * AD252) + (12.736240264 *  (AD251/1000) * AD253) - (24.4502664605 *  (AD251/1000) * AD316) - (23.0415882284 * AD236 * AD253) + (101.5847297779 * AD236 * AD316) - (1559.9331198689 * AD236 *AD252) - (3.9239483753 * AD236 * (AVERAGE(AD5:AD6)*0.453592)) - (0.1078600966 * AD253 * (AVERAGE(AD5:AD6)*0.453592)) - (28.1879330488 * AD316 * AD252) - (0.1153929924 * AD316 * (AVERAGE(AD5:AD6)*0.453592))","v":542.41495381124025},469.82815603512751,407.58466744044267,356.34303554371058,317.14306606759203,284.12045417566651,null,{"$f":" -232.8670000513 - (102.0339177026 * (AK251/1000)) + (1386.8135453223 * AK236) - (3.1583174866 * AK253) + (80.3303777865 * AK316) - (115.1570451563 * AK252) + (4.1836503117 * (AVERAGE(AK5:AK6)*0.453592)) + (2553.6417073224 * AK236 * AK236) + (228.757399518 * AK252 * AK252) + (12.736240264 *  (AK251/1000) * AK253) - (24.4502664605 *  (AK251/1000) * AK316) - (23.0415882284 * AK236 * AK253) + (101.5847297779 * AK236 * AK316) - (1559.9331198689 * AK236 *AK252) - (3.9239483753 * AK236 * (AVERAGE(AK5:AK6)*0.453592)) - (0.1078600966 * AK253 * (AVERAGE(AK5:AK6)*0.453592)) - (28.1879330488 * AK316 * AK252) - (0.1153929924 * AK316 * (AVERAGE(AK5:AK6)*0.453592))","v":540.06744965323378},467.87575223726196,405.98913112498241,354.40368912897554,314.274818790317,279.42406048140822,null,{"$f":" -232.8670000513 - (102.0339177026 * (AR251/1000)) + (1386.8135453223 * AR236) - (3.1583174866 * AR253) + (80.3303777865 * AR316) - (115.1570451563 * AR252) + (4.1836503117 * (AVERAGE(AR5:AR6)*0.453592)) + (2553.6417073224 * AR236 * AR236) + (228.757399518 * AR252 * AR252) + (12.736240264 *  (AR251/1000) * AR253) - (24.4502664605 *  (AR251/1000) * AR316) - (23.0415882284 * AR236 * AR253) + (101.5847297779 * AR236 * AR316) - (1559.9331198689 * AR236 *AR252) - (3.9239483753 * AR236 * (AVERAGE(AR5:AR6)*0.453592)) - (0.1078600966 * AR253 * (AVERAGE(AR5:AR6)*0.453592)) - (28.1879330488 * AR316 * AR252) - (0.1153929924 * AR316 * (AVERAGE(AR5:AR6)*0.453592))","v":537.08188234721013},465.36423994865339,403.98584612745401,352.02456023637109,311.22636410689336,274.60458919295252]
["F/G",{"$f":"IF(B323=\"\",\"0\",1/B344*1000)","v":1.8364176005472321},2.1197407829045858,2.4398927702681932,2.7732270273032733,3.0668936649642822,3.319586284485188,null,{"$f":"IF(I323=\"\",\"0\",1/I344*1000)","v":1.8351232887213975},2.1185521891424335,2.4396849319047758,2.7784452266906055,3.0858132831088341,3.3650224103379762,null,{"$f":"IF(P323=\"\",\"0\",1/P344*1000)","v":1.8353642827841785},2.11895091896633,2.4412336606520135,2.7858372064509398,3.1057931704942483,3.412920864897445,null,{"$f":"IF(W323=\"\",\"0\",1/W344*1000)","v":1.8381646607601625},2.1220446696406023,2.4462671261309668,2.7950214271855645,3.1273602074281985,3.4638421830022224,null,{"$f":"IF(AD323=\"\",\"0\",1/AD344*1000)","v":1.8436069893972702},2.1284377855064807,2.4534779639278814,2.8062846758719258,3.1531510759465009,3.5196339626492299,null,{"$f":"IF(AK323=\"\",\"0\",1/AK344*1000)","v":1.8516205719157477},2.1373195666119824,2.4631201264650437,2.8216410570040011,3.1819284912775538,3.5787898804317035,null,{"$f":"IF(AR323=\"\",\"0\",1/AR344*1000)","v":1.8619134863192512},2.1488544115687453,2.4753342464490915,2.840710884855699,3.2130954036289205,3.6415997377864073]
["Days on phase",{"$f":"(B6-B5)*0.453592/(B342/1000)","v":21.444223797755399},18.406470406661629,19.20054789166538,18.43491851613966,18.475451331583397,21.898926056424528,null,{"$f":"(I351-I5)*0.453592/(I342/1000)","v":21.444180490323113},{"$f":"(J351-I351)*0.453592/(J342/1000)","v":18.54018815491974},{"$f":"(K351-J351)*0.453592/(K342/1000)","v":19.307776969413119},{"$f":"(L351-K351)*0.453592/(L342/1000)","v":18.55853844844027},{"$f":"(M351-L351)*0.453592/(M342/1000)","v":18.633638467186056},{"$f":"(N351-M351)*0.453592/(N342/1000)","v":22.134365897193419},null,{"$f":"(P351-P5)*0.453592/(P342/1000)","v":21.444180246222977},{"$f":"(Q351-P351)*0.453592/(Q342/1000)","v":18.644466261393351},{"$f":"(R351-Q351)*0.453592/(R342/1000)","v":19.393872812724403},{"$f":"(S351-R351)*0.453592/(S342/1000)","v":18.665688952054769},{"$f":"(T351-S351)*0.453592/(T342/1000)","v":18.786862626521202},{"$f":"(U351-T351)*0.453592/(U342/1000)","v":22.364730656523772},null,{"$f":"(W351-W5)*0.453592/(W342/1000)","v":21.444180045859394},{"$f":"(X351-W351)*0.453592/(X342/1000)","v":18.730044921084275},{"$f":"(Y351-X351)*0.453592/(Y342/1000)","v":19.468453682314134},{"$f":"(Z351-Y351)*0.453592/(Z342/1000)","v":18.77132761367476},{"$f":"(AA351-Z351)*0.453592/(AA342/1000)","v":18.931081826370587},{"$f":"(AB351-AA351)*0.453592/(AB342/1000)","v":22.595167957055928},null,{"$f":"(AD351-AD5)*0.453592/(AD342/1000)","v":21.444179890772812},{"$f":"(AE351-AD351)*0.453592/(AE342/1000)","v":18.796469009784296},{"$f":"(AF351-AE351)*0.453592/(AF342/1000)","v":19.535595860864181},{"$f":"(AG351-AF351)*0.453592/(AG342/1000)","v":18.863559596049374},{"$f":"(AH351-AG351)*0.453592/(AH342/1000)","v":19.068699117447089},{"$f":"(AI351-AH351)*0.453592/(AI342/1000)","v":22.831243462677289},null,{"$f":"(AK351-AK5)*0.453592/(AK342/1000)","v":21.444179782635668},{"$f":"(AL351-AK351)*0.453592/(AL342/1000)","v":18.842938639519613},{"$f":"(AM351-AL351)*0.453592/(AM342/1000)","v":19.58766971147897},{"$f":"(AN351-AM351)*0.453592/(AN342/1000)","v":18.943486432461576},{"$f":"(AO351-AN351)*0.453592/(AO342/1000)","v":19.2025519527805},{"$f":"(AP351-AO351)*0.453592/(AP342/1000)","v":23.066459694956379},null,{"$f":"(AR351-AR5)*0.453592/(AR342/1000)","v":21.44417971995674},{"$f":"(AS351-AR351)*0.453592/(AS342/1000)","v":18.870057380359263},{"$f":"(AT351-AS351)*0.453592/(AT342/1000)","v":19.624219800758382},{"$f":"(AU351-AT351)*0.453592/(AU342/1000)","v":19.010488839895785},{"$f":"(AV351-AU351)*0.453592/(AV342/1000)","v":19.329693443243265},{"$f":"(AW351-AV351)*0.453592/(AW342/1000)","v":23.297687961877848}]
["Dressing, %",{"$f":" 51.6684755267 + 7.1030096064 * (B251/1000) + 54.0870565413 * B236 + 1.6439820046 * B253 + 0.4039153805 * B316 - 20.5375389219 * B252 + 0.2869358688 *(AVERAGE(B5:B6)*0.453592) - 0.016597667 * B316 * B316 - 0.1531408962 * (B251/1000) * (AVERAGE(B5:B6)*0.453592) - 4.8153797375 * B236 * B253 + 0.5304361357 * B236 * (AVERAGE(B5:B6)*0.453592) + 0.9830652207 * B253 * B252 - 0.0127129553 * B253 *(AVERAGE(B5:B6)*0.453592)","v":58.926946242378264},66.189194917789251,71.395755678401272,74.83136084114436,76.96558226351317,78.664524560378098,null,{"$f":" 51.6684755267 + 7.1030096064 * (I251/1000) + 54.0870565413 * I236 + 1.6439820046 * I253 + 0.4039153805 * I316 - 20.5375389219 * I252 + 0.2869358688 *(AVERAGE(I5:I6)*0.453592) - 0.016597667 * I316 * I316 - 0.1531408962 * (I251/1000) * (AVERAGE(I5:I6)*0.453592) - 4.8153797375 * I236 * I253 + 0.5304361357 * I236 * (AVERAGE(I5:I6)*0.453592) + 0.9830652207 * I253 * I252 - 0.0127129553 * I253 *(AVERAGE(I5:I6)*0.453592)","v":59.256306467592132},66.367015134120294,71.46679607070223,74.814708578542152,76.870626445897727,78.493625382870434,null,{"$f":" 51.6684755267 + 7.1030096064 * (P251/1000) + 54.0870565413 * P236 + 1.6439820046 * P253 + 0.4039153805 * P316 - 20.5375389219 * P252 + 0.2869358688 *(AVERAGE(P5:P6)*0.453592) - 0.016597667 * P316 * P316 - 0.1531408962 * (P251/1000) * (AVERAGE(P5:P6)*0.453592) - 4.8153797375 * P236 * P253 + 0.5304361357 * P236 * (AVERAGE(P5:P6)*0.453592) + 0.9830652207 * P253 * P252 - 0.0127129553 * P253 *(AVERAGE(P5:P6)*0.453592)","v":59.514103916213948},66.499242398773589,71.502289957165786,74.770812876218599,76.74974151558925,78.301542938239308,null,{"$f":" 51.6684755267 + 7.1030096064 * (W251/1000) + 54.0870565413 * W236 + 1.6439820046 * W253 + 0.4039153805 * W316 - 20.5375389219 * W252 + 0.2869358688 *(AVERAGE(W5:W6)*0.453592) - 0.016597667 * W316 * W316 - 0.1531408962 * (W251/1000) * (AVERAGE(W5:W6)*0.453592) - 4.8153797375 * W236 * W253 + 0.5304361357 * W236 * (AVERAGE(W5:W6)*0.453592) + 0.9830652207 * W253 * W252 - 0.0127129553 * W253 *(AVERAGE(W5:W6)*0.453592)","v":59.752063785782312},66.608813671194355,71.525998193160518,74.699496213849145,76.598094339391096,78.07435509612759,null,{"$f":" 51.6684755267 + 7.1030096064 * (AD251/1000) + 54.0870565413 * AD236 + 1.6439820046 * AD253 + 0.4039153805 * AD316 - 20.5375389219 * AD252 + 0.2869358688 *(AVERAGE(AD5:AD6)*0.453592) - 0.016597667 * AD316 * AD316 - 0.1531408962 * (AD251/1000) * (AVERAGE(AD5:AD6)*0.453592) - 4.8153797375 * AD236 * AD253 + 0.5304361357 * AD236 * (AVERAGE(AD5:AD6)*0.453592) + 0.9830652207 * AD253 * AD252 - 0.0127129553 * AD253 *(AVERAGE(AD5:AD6)*0.453592)","v":59.973458805908173},66.719667287807752,71.522174498494138,74.601166796203174,76.418925247056848,77.822590450270184,null,{"$f":" 51.6684755267 + 7.1030096064 * (AK251/1000) + 54.0870565413 * AK236 + 1.6439820046 * AK253 + 0.4039153805 * AK316 - 20.5375389219 * AK252 + 0.2869358688 *(AVERAGE(AK5:AK6)*0.453592) - 0.016597667 * AK316 * AK316 - 0.1531408962 * (AK251/1000) * (AVERAGE(AK5:AK6)*0.453592) - 4.8153797375 * AK236 * AK253 + 0.5304361357 * AK236 * (AVERAGE(AK5:AK6)*0.453592) + 0.9830652207 * AK253 * AK252 - 0.0127129553 * AK253 *(AVERAGE(AK5:AK6)*0.453592)","v":60.166396912108425},66.800023372360315,71.49279477845046,74.477267086053544,76.214163950856815,77.544660131999564,null,{"$f":" 51.6684755267 + 7.1030096064 * (AR251/1000) + 54.0870565413 * AR236 + 1.6439820046 * AR253 + 0.4039153805 * AR316 - 20.5375389219 * AR252 + 0.2869358688 *(AVERAGE(AR5:AR6)*0.453592) - 0.016597667 * AR316 * AR316 - 0.1531408962 * (AR251/1000) * (AVERAGE(AR5:AR6)*0.453592) - 4.8153797375 * AR236 * AR253 + 0.5304361357 * AR236 * (AVERAGE(AR5:AR6)*0.453592) + 0.9830652207 * AR253 * AR252 - 0.0127129553 * AR253 *(AVERAGE(AR5:AR6)*0.453592)","v":60.276466664575793},66.859194238658858,71.437507554301305,74.329152219885884,75.98395173551873,77.240458431752501]
["Backfat, mm",{"$f":" 41.4410513954 + (14.8656283053 * B236) - (0.6326892081 * B253) - (12.1380129342 * B252) -\n(0.0133880688 * (B253^2)) + (1.1112817574 * (B252^2))","v":9.5560371255009784},10.757396605242121,12.259709285644082,14.049104759357949,15.652515990358797,16.585997021003028,null,{"$f":" 41.4410513954 + (14.8656283053 * I236) - (0.6326892081 * I253) - (12.1380129342 * I252) -\n(0.0133880688 * (I253^2)) + (1.1112817574 * (I252^2))","v":9.1030847275408817},10.305509878608344,11.80655762230802,13.606325223804614,15.234798120870087,16.167571198992839,null,{"$f":" 41.4410513954 + (14.8656283053 * P236) - (0.6326892081 * P253) - (12.1380129342 * P252) -\n(0.0133880688 * (P253^2)) + (1.1112817574 * (P252^2))","v":8.6249365428602918},9.8263274993130985,11.330481300635393,13.161962974540518,14.79370407992214,15.731666096979342,null,{"$f":" 41.4410513954 + (14.8656283053 * W236) - (0.6326892081 * W253) - (12.1380129342 * W252) -\n(0.0133880688 * (W253^2)) + (1.1112817574 * (W252^2))","v":8.1423115986948211},9.3449814882317455,10.876068590363264,12.703476594817129,14.33860576939837,15.284909959372253,null,{"$f":" 41.4410513954 + (14.8656283053 * AD236) - (0.6326892081 * AD253) - (12.1380129342 * AD252) -\n(0.0133880688 * (AD253^2)) + (1.1112817574 * (AD252^2))","v":7.6556553743262796},8.879947331605095,10.409077879673632,12.235613105516206,13.884315353758383,14.836855379516226,null,{"$f":" 41.4410513954 + (14.8656283053 * AK236) - (0.6326892081 * AK253) - (12.1380129342 * AK252) -\n(0.0133880688 * (AK253^2)) + (1.1112817574 * (AK252^2))","v":7.161747877848704},8.4084256625830598,9.9334328557634741,11.76815195558817,13.428627470540391,14.385908716439655,null,{"$f":" 41.4410513954 + (14.8656283053 * AR236) - (0.6326892081 * AR253) - (12.1380129342 * AR252) -\n(0.0133880688 * (AR253^2)) + (1.1112817574 * (AR252^2))","v":6.6356117359756333},7.9284471969483086,9.445868384140848,11.297682804889151,12.969505073923386,13.931535062420066]
["Loin depth, mm",{"$f":" -16.7992454106 + 17.2658536059 * (B251/1000) - 106.6634904715 * B236 + 0.1550376119 * B253 - 0.0727312562 * B316 + 48.6541457906 * B252 - 0.1535643762 * B253 * B253 - 0.0358142801 * B316 * B316 - 5.4618633046 * B252 * B252 + 4.2267870055 * B236 * B253 - 2.0313848595 * B236 * B316 + 0.1484978883 * B253 * B316","v":51.865570489059841},57.191564116130472,59.985859623399051,60.902879894464405,60.770621726469166,60.466263275736296,null,{"$f":" -16.7992454106 + 17.2658536059 * (I251/1000) - 106.6634904715 * I236 + 0.1550376119 * I253 - 0.0727312562 * I316 + 48.6541457906 * I252 - 0.1535643762 * I253 * I253 - 0.0358142801 * I316 * I316 - 5.4618633046 * I252 * I252 + 4.2267870055 * I236 * I253 - 2.0313848595 * I236 * I316 + 0.1484978883 * I253 * I316","v":51.760378730115342},57.116711951056431,59.941048790236486,60.8598012284709,60.7084798007822,60.395140309021286,null,{"$f":" -16.7992454106 + 17.2658536059 * (P251/1000) - 106.6634904715 * P236 + 0.1550376119 * P253 - 0.0727312562 * P316 + 48.6541457906 * P252 - 0.1535643762 * P253 * P253 - 0.0358142801 * P316 * P316 - 5.4618633046 * P252 * P252 + 4.2267870055 * P236 * P253 - 2.0313848595 * P236 * P316 + 0.1484978883 * P253 * P316","v":51.564383022474743},57.004125727873273,59.875239356438691,60.812923277768796,60.647135830635534,60.324071240925804,null,{"$f":" -16.7992454106 + 17.2658536059 * (W251/1000) - 106.6634904715 * W236 + 0.1550376119 * W253 - 0.0727312562 * W316 + 48.6541457906 * W252 - 0.1535643762 * W253 * W253 - 0.0358142801 * W316 * W316 - 5.4618633046 * W252 * W252 + 4.2267870055 * W236 * W253 - 2.0313848595 * W236 * W316 + 0.1484978883 * W253 * W316","v":51.36375182922437},56.884900906553185,59.824341205821518,60.761990922695603,60.586855208223852,60.253590357412463,null,{"$f":" -16.7992454106 + 17.2658536059 * (AD251/1000) - 106.6634904715 * AD236 + 0.1550376119 * AD253 - 0.0727312562 * AD316 + 48.6541457906 * AD252 - 0.1535643762 * AD253 * AD253 - 0.0358142801 * AD316 * AD316 - 5.4618633046 * AD252 * AD252 + 4.2267870055 * AD236 * AD253 - 2.0313848595 * AD236 * AD316 + 0.1484978883 * AD253 * AD316","v":51.164803681444724},56.801760235365194,59.766387181758517,60.710785086977566,60.522198947372814,60.17894694782531,null,{"$f":" -16.7992454106 + 17.2658536059 * (AK251/1000) - 106.6634904715 * AK236 + 0.1550376119 * AK253 - 0.0727312562 * AK316 + 48.6541457906 * AK252 - 0.1535643762 * AK253 * AK253 - 0.0358142801 * AK316 * AK316 - 5.4618633046 * AK252 * AK252 + 4.2267870055 * AK236 * AK253 - 2.0313848595 * AK236 * AK316 + 0.1484978883 * AK253 * AK316","v":50.94290975293066},56.69976786992531,59.703609749018526,60.655471088189302,60.452970367087858,60.099592040766282,null,{"$f":" -16.7992454106 + 17.2658536059 * (AR251/1000) - 106.6634904715 * AR236 + 0.1550376119 * AR253 - 0.0727312562 * AR316 + 48.6541457906 * AR252 - 0.1535643762 * AR253 * AR253 - 0.0358142801 * AR316 * AR316 - 5.4618633046 * AR252 * AR252 + 4.2267870055 * AR236 * AR253 - 2.0313848595 * AR236 * AR316 + 0.1484978883 * AR253 * AR316","v":50.580550318529227},56.598490848196249,59.635455727621,60.596415736436171,60.379503525965447,60.015877351282917]
["Lean, %",{"$f":" 49.3215904687 - 4.5564383267 * (B251/1000) + 31.3355706686 * B236 + 0.0864922401 * B253 - 16.201377828 * B236 * B236","v":53.767985207144591},54.221957863966054,54.11985087991409,53.644786108848308,53.100859923606755,52.737723960313936,null,{"$f":" 49.3215904687 - 4.5564383267 * (I251/1000) + 31.3355706686 * I236 + 0.0864922401 * I253 - 16.201377828 * I236 * I236","v":53.956077548996447},54.366625145917489,54.234757433588257,53.742359587401396,53.183906533208742,52.816819701326807,null,{"$f":" 49.3215904687 - 4.5564383267 * (P251/1000) + 31.3355706686 * P236 + 0.0864922401 * P253 - 16.201377828 * P236 * P236","v":54.132567492720966},54.508201757543986,54.35234124423387,53.837272757177388,53.27123913416856,52.900355371867242,null,{"$f":" 49.3215904687 - 4.5564383267 * (W251/1000) + 31.3355706686 * W236 + 0.0864922401 * W253 - 16.201377828 * W236 * W236","v":54.307004225333472},54.648121880587475,54.463469021621179,53.933215354730756,53.358066482317938,52.983438539180334,null,{"$f":" 49.3215904687 - 4.5564383267 * (AD251/1000) + 31.3355706686 * AD236 + 0.0864922401 * AD253 - 16.201377828 * AD236 * AD236","v":54.479807730815537},54.78611423596584,54.574045893424795,54.027666739240473,53.446946471505626,53.069257579100167,null,{"$f":" 49.3215904687 - 4.5564383267 * (AK251/1000) + 31.3355706686 * AK236 + 0.0864922401 * AK253 - 16.201377828 * AK236 * AK236","v":54.649163636177029},54.922113926009153,54.683565008213925,54.124115745648581,53.535689017141308,53.153875377100881,null,{"$f":" 49.3215904687 - 4.5564383267 * (AR251/1000) + 31.3355706686 * AR236 + 0.0864922401 * AR253 - 16.201377828 * AR236 * AR236","v":54.807012934984947},55.055937715870606,54.792747672122793,54.222094315597218,53.623204458478163,53.237357021304462]
["Final BW",{"$f":"B5+(B342*0.00220462*B346)","v":84.999929826400006},119.99992982640001,159.99991980159999,199.99991980160002,239.99991980159999,284.9999097768,null,{"$f":"$B$351-I268","v":84.747276956008861},{"$f":"$C$351-J268","v":119.77801757161166},{"$f":"$D$351-K268","v":159.73395914661489},{"$f":"$E$351-L268","v":199.66150925488392},{"$f":"$F$351-M268","v":239.52454714962926},{"$f":"$G$351-N268","v":284.21473335297884},null,{"$f":"$B$351-P268","v":84.55252302062118},{"$f":"$C$351-Q268","v":119.60212968231728},{"$f":"$D$351-R268","v":159.50744006478919},{"$f":"$E$351-S268","v":199.34128423138765},{"$f":"$F$351-T268","v":239.07553979521069},{"$f":"$G$351-U268","v":283.45742365985353},null,{"$f":"$B$351-W268","v":84.39428801758379},{"$f":"$C$351-X268","v":119.45174087494144},{"$f":"$D$351-Y268","v":159.2873712188354},{"$f":"$E$351-Z268","v":199.04694664571142},{"$f":"$F$351-AA268","v":238.64221737246044},{"$f":"$G$351-AB268","v":282.70346660530714},null,{"$f":"$B$351-AD268","v":84.272801566589351},{"$f":"$C$351-AE268","v":119.3176547846159},{"$f":"$D$351-AF268","v":159.09838729787106},{"$f":"$E$351-AG268","v":198.77286767070169},{"$f":"$F$351-AH268","v":238.2138709800642},{"$f":"$G$351-AI268","v":281.95164346889794},null,{"$f":"$B$351-AK268","v":84.18859936367906},{"$f":"$C$351-AL268","v":119.21486009591908},{"$f":"$D$351-AM268","v":158.93747306067789},{"$f":"$E$351-AN268","v":198.51221770330227},{"$f":"$F$351-AO268","v":237.80207112934988},{"$f":"$G$351-AP268","v":281.22382353485239},null,{"$f":"$B$351-AR268","v":84.13998283768683},{"$f":"$C$351-AS268","v":119.14366055462939},{"$f":"$D$351-AT268","v":158.80505728247883},{"$f":"$E$351-AU268","v":198.27012288337207},{"$f":"$F$351-AV268","v":237.41177100868285},{"$f":"$G$351-AW268","v":280.51964318231796}]
["Withdrawal Period",0,0,0,0,0,0,null,0,0,0,0,0,0,null,0,0,0,0,0,0,null,0,0,0,0,0,0,null,0,0,0,0,0,0,null,0,0,0,0,0,0,null,0,0,0,0,0,0]
["Soto Model for Yield",{"$f":" 0.03492* B352 - 0.05092 * B316- 0.06897 * B316 - 0.00289 * (B316 * B352) +76.0769-(75.02-'DDGS Calculator'!$G$9)","v":75.029451185589821},{"$f":" 0.03492* C352 - 0.05092 * B316- 0.06897 * C316 - 0.00289 * (C316 * C352) +76.0769-(75.02-'DDGS Calculator'!$G$9)","v":75.024490114943532},{"$f":" 0.03492* D352 - 0.05092 * C316- 0.06897 * D316 - 0.00289 * (D316 * D352) +76.0769-(75.02-'DDGS Calculator'!$G$9)","v":75.016402824315023},{"$f":" 0.03492* E352 - 0.05092 * D316- 0.06897 * E316 - 0.00289 * (E316 * E352) +76.0769-(75.02-'DDGS Calculator'!$G$9)","v":75.009464091992726},{"$f":" 0.03492* F352 - 0.05092 * E316- 0.06897 * F316 - 0.00289 * (F316 * F352) + 76.0769-(75.02-'DDGS Calculator'!$G$9)","v":75.003950097444132},{"$f":"0.03492*G352-0.05092*F316-0.06897*G316-0.00289*(G316*G352)+76.0769-(75.02-'DDGS Calculator'!$G$9)","v":75.000603515658099},null,{"$f":" 0.03492* I352 - 0.05092 * I316- 0.06897 * I316 - 0.00289 * (I316 * I352) +76.0769-(75.02-'DDGS Calculator'!$G$9)","v":74.88486970905393},{"$f":" 0.03492* J352 - 0.05092 * I316- 0.06897 * J316 - 0.00289 * (J316 * J352) +76.0769-(75.02-'DDGS Calculator'!$G$9)","v":74.879995508682853},{"$f":" 0.03492* K352 - 0.05092 * J316- 0.06897 * K316 - 0.00289 * (K316 * K352) +76.0769-(75.02-'DDGS Calculator'!$G$9)","v":74.871998485722159},{"$f":" 0.03492* L352 - 0.05092 * K316- 0.06897 * L316 - 0.00289 * (L316 * L352) +76.0769-(75.02-'DDGS Calculator'!$G$9)","v":74.865106105696199},{"$f":" 0.03492* M352 - 0.05092 * L316- 0.06897 * M316 - 0.00289 * (M316 * M352) + 76.0769-(75.02-'DDGS Calculator'!$G$9)","v":74.859594870370358},{"$f":"0.03492*N352-0.05092*M316-0.06897*N316-0.00289*(N316*N352)+76.0769-(75.02-'DDGS Calculator'!$G$9)","v":74.856280201057046},null,{"$f":" 0.03492* P352 - 0.05092 * P316- 0.06897 * P316 - 0.00289 * (P316 * P352) +76.0769-(75.02-'DDGS Calculator'!$G$9)","v":74.740419915497128},{"$f":" 0.03492* Q352 - 0.05092 * P316- 0.06897 * Q316 - 0.00289 * (Q316 * Q352) +76.0769-(75.02-'DDGS Calculator'!$G$9)","v":74.735610640693125},{"$f":" 0.03492* R352 - 0.05092 * Q316- 0.06897 * R316 - 0.00289 * (R316 * R352) +76.0769-(75.02-'DDGS Calculator'!$G$9)","v":74.727680213230528},{"$f":" 0.03492* S352 - 0.05092 * R316- 0.06897 * S316 - 0.00289 * (S316 * S352) +76.0769-(75.02-'DDGS Calculator'!$G$9)","v":74.720805575179483},{"$f":" 0.03492* T352 - 0.05092 * S316- 0.06897 * T316 - 0.00289 * (T316 * T352) + 76.0769-(75.02-'DDGS Calculator'!$G$9)","v":74.715324263577386},{"$f":"0.03492*U352-0.05092*T316-0.06897*U316-0.00289*(U316*U352)+76.0769-(75.02-'DDGS Calculator'!$G$9)","v":74.712032086359059},null,{"$f":" 0.03492* W352 - 0.05092 * W316- 0.06897 * W316 - 0.00289 * (W316 * W352) +76.0769-(75.02-'DDGS Calculator'!$G$9)","v":74.595997625975514},{"$f":" 0.03492* X352 - 0.05092 * W316- 0.06897 * X316 - 0.00289 * (X316 * X352) +76.0769-(75.02-'DDGS Calculator'!$G$9)","v":74.591225779816028},{"$f":" 0.03492* Y352 - 0.05092 * X316- 0.06897 * Y316 - 0.00289 * (Y316 * Y352) +76.0769-(75.02-'DDGS Calculator'!$G$9)","v":74.583337114426911},{"$f":" 0.03492* Z352 - 0.05092 * Y316- 0.06897 * Z316 - 0.00289 * (Z316 * Z352) +76.0769-(75.02-'DDGS Calculator'!$G$9)","v":74.576535495324663},{"$f":" 0.03492* AA352 - 0.05092 * Z316- 0.06897 * AA316 - 0.00289 * (AA316 * AA352) + 76.0769-(75.02-'DDGS Calculator'!$G$9)","v":74.57119255666845},{"$f":"0.03492*AB352-0.05092*AA316-0.06897*AB316-0.00289*(AB316*AB352)+76.0769-(75.02-'DDGS Calculator'!$G$9)","v":74.568098782281709},null,{"$f":" 0.03492* AD352 - 0.05092 * AD316- 0.06897 * AD316 - 0.00289 * (AD316 * AD352) +76.0769-(75.02-'DDGS Calculator'!$G$9)","v":74.451610737703803},{"$f":" 0.03492* AE352 - 0.05092 * AD316- 0.06897 * AE316 - 0.00289 * (AE316 * AE352) +76.0769-(75.02-'DDGS Calculator'!$G$9)","v":74.446842088275787},{"$f":" 0.03492* AF352 - 0.05092 * AE316- 0.06897 * AF316 - 0.00289 * (AF316 * AF352) +76.0769-(75.02-'DDGS Calculator'!$G$9)","v":74.439025449893521},{"$f":" 0.03492* AG352 - 0.05092 * AF316- 0.06897 * AG316 - 0.00289 * (AG316 * AG352) +76.0769-(75.02-'DDGS Calculator'!$G$9)","v":74.432389067781571},{"$f":" 0.03492* AH352 - 0.05092 * AG316- 0.06897 * AH316 - 0.00289 * (AH316 * AH352) + 76.0769-(75.02-'DDGS Calculator'!$G$9)","v":74.427548209025446},{"$f":"0.03492*AI352-0.05092*AH316-0.06897*AI316-0.00289*(AI316*AI352)+76.0769-(75.02-'DDGS Calculator'!$G$9)","v":74.424916767774178},null,{"$f":" 0.03492* AK352 - 0.05092 * AK316- 0.06897 * AK316 - 0.00289 * (AK316 * AK352) +76.0769-(75.02-'DDGS Calculator'!$G$9)","v":74.307252416994544},{"$f":" 0.03492* AL352 - 0.05092 * AK316- 0.06897 * AL316 - 0.00289 * (AL316 * AL352) +76.0769-(75.02-'DDGS Calculator'!$G$9)","v":74.30245942496839},{"$f":" 0.03492* AM352 - 0.05092 * AL316- 0.06897 * AM316 - 0.00289 * (AM316 * AM352) +76.0769-(75.02-'DDGS Calculator'!$G$9)","v":74.29474347039725},{"$f":" 0.03492* AN352 - 0.05092 * AM316- 0.06897 * AN316 - 0.00289 * (AN316 * AN352) +76.0769-(75.02-'DDGS Calculator'!$G$9)","v":74.288588746506676},{"$f":" 0.03492* AO352 - 0.05092 * AN316- 0.06897 * AO316 - 0.00289 * (AO316 * AO352) + 76.0769-(75.02-'DDGS Calculator'!$G$9)","v":74.284280642912947},{"$f":"0.03492*AP352-0.05092*AO316-0.06897*AP316-0.00289*(AP316*AP352)+76.0769-(75.02-'DDGS Calculator'!$G$9)","v":74.281836261185205},null,{"$f":" 0.03492* AR352 - 0.05092 * AR316- 0.06897 * AR316 - 0.00289 * (AR316 * AR352) +76.0769-(75.02-'DDGS Calculator'!$G$9)","v":74.162994390504622},{"$f":" 0.03492* AS352 - 0.05092 * AR316- 0.06897 * AS316 - 0.00289 * (AS316 * AS352) +76.0769-(75.02-'DDGS Calculator'!$G$9)","v":74.158172427249752},{"$f":" 0.03492* AT352 - 0.05092 * AS316- 0.06897 * AT316 - 0.00289 * (AT316 * AT352) +76.0769-(75.02-'DDGS Calculator'!$G$9)","v":74.150558387754515},{"$f":" 0.03492* AU352 - 0.05092 * AT316- 0.06897 * AU316 - 0.00289 * (AU316 * AU352) +76.0769-(75.02-'DDGS Calculator'!$G$9)","v":74.145065166049108},{"$f":" 0.03492* AV352 - 0.05092 * AU316- 0.06897 * AV316 - 0.00289 * (AV316 * AV352) + 76.0769-(75.02-'DDGS Calculator'!$G$9)","v":74.141186128513851},{"$f":"0.03492*AW352-0.05092*AV316-0.06897*AW316-0.00289*(AW316*AW352)+76.0769-(75.02-'DDGS Calculator'!$G$9)","v":74.138755984592407}]

{"sheet":"GF diets L-Val + Fat","index":8,"n_rows":353,"n_cols":50,"rows_kept":353,"cut":false,"hidden":true,"merged":[[3,36,3,40],[3,43,3,47],[3,1,3,5],[3,8,3,12],[3,15,3,19],[3,22,3,26],[3,29,3,33]]}
["Corn",null,null,null,null,null,null,null,{"$f":"B7-I7","v":82.36576274423237},{"$f":"C7-J7","v":82.701965234004547},82.528955754677099,82.674559526328949,82.675336185561036,82.739950017385809,null,{"$f":"I7-P7","v":82.581472590025896},{"$f":"J7-Q7","v":82.666285192887244},82.753503782033704,82.729318604659966,82.674444951338046,82.697766013459386,null,{"$f":"P7-W7","v":82.506008568100015},{"$f":"Q7-X7","v":82.642780463570944},82.618962361468448,82.773112757807667,82.927615308699615,83.742826594127791,null,{"$f":"W7-AD7","v":82.636095451643087},{"$f":"X7-AE7","v":82.581907933398043},82.771225361127563,82.850233769434453,85.510406908593268,86.231030545737212,null,{"$f":"AD7-AK7","v":82.729118692952738},{"$f":"AE7-AL7","v":82.772825041090982},82.708854609684067,85.12970777509986,86.217084550415166,86.236014998638666,null,{"$f":"AK7-AR7","v":82.901579466484463},{"$f":"AL7-AS7","v":82.798681375446108},83.149937937093682,86.213049764250172,86.217580774798762,86.236260703439484]
["SBM",null,null,null,null,null,null,null,{"$f":"B8-I8","v":26.611878944851469},26.588269219446147,26.600418761533547,26.590193777569539,26.590139236893037,26.585601748703311,null,{"$f":"I8-P8","v":26.596730781523092},26.590774840311497,26.584649939388328,26.586348336675428,26.590201823566076,26.588564108529454,null,{"$f":"P8-W8","v":26.602030221265295},26.59242545332495,26.594098072854422,26.583272904572368,26.572423006335839,26.515175022808307,null,{"$f":"W8-AD8","v":26.592894906410038},26.596700209657229,26.583405446473989,26.577857103194219,26.391047191736334,26.340441599240421,null,{"$f":"AD8-AK8","v":26.586362375419071},26.583293109398028,26.587785414974633,26.417781681447877,26.341420952844146,26.340091567435366,null,{"$f":"AK8-AR8","v":26.574251366041608},26.581477355580887,26.556810462206613,26.341704294569354,26.341386105626498,26.340074312884781]
[null,"Diet 1","Diet 2","Diet 3","Diet 4","Diet 5","Diet 6",null,"Diet 1","Diet 2","Diet 3","Diet 4","Diet 5","Diet 6",null,"Diet 1","Diet 2","Diet 3","Diet 4","Diet 5","Diet 6",null,"Diet 1","Diet 2","Diet 3","Diet 4","Diet 5","Diet 6",null,"Diet 1","Diet 2","Diet 3","Diet 4","Diet 5","Diet 6",null,"Diet 1","Diet 2","Diet 3","Diet 4","Diet 5","Diet 6",null,"Diet 1","Diet 2","Diet 3","Diet 4","Diet 5","Diet 6"]
[null,"Weight Range",null,null,null,null,null,null,"Weight Range",null,null,null,null,null,null,"Weight Range",null,null,null,null,null,null,"Weight Range",null,null,null,null,null,null,"Weight Range",null,null,null,null,null,null,"Weight Range",null,null,null,null,null,null,"Weight Range"]
[null,50,85,120,160,200,240,null,50,85,120,160,200,240,null,50,85,120,160,200,240,null,50,85,120,160,200,240,null,50,85,120,160,200,240,null,50,85,120,160,200,240,null,50,85,120,160,200,240]
["Ingredient",85,120,160,200,240,285,null,85,120,160,200,240,285,null,85,120,160,200,240,285,null,85,120,160,200,240,285,null,85,120,160,200,240,285,null,85,120,160,200,240,285,null,85,120,160,200,240,285]
["Corn",{"$f":"IF(B5=\"\",\"\",((((B236-B297)*2000)+((SUM(B9:B229)-2000)*((IF($A8=Nutrients!$B$79,Nutrients!$DA$79,(IF($A8=Nutrients!$B$77,Nutrients!$DA$77,Nutrients!$DA$78)))))))/((IF($A7=Nutrients!$B$8,Nutrients!$DA$8,Nutrients!$DA$9))-((IF($A8=Nutrients!$B$79,Nutrients!$DA$79,(IF($A8=Nutrients!$B$77,Nutrients!$DA$77,Nutrients!$DA$78))))))))","v":1401.204118179855},{"$f":"IF(C5=\"\",\"\",((((C236-C297)*2000)+((SUM(C9:C229)-2000)*((IF($A8=Nutrients!$B$79,Nutrients!$DA$79,(IF($A8=Nutrients!$B$77,Nutrients!$DA$77,Nutrients!$DA$78)))))))/((IF($A7=Nutrients!$B$8,Nutrients!$DA$8,Nutrients!$DA$9))-((IF($A8=Nutrients!$B$79,Nutrients!$DA$79,(IF($A8=Nutrients!$B$77,Nutrients!$DA$77,Nutrients!$DA$78))))))))","v":1489.6346777263973},{"$f":"IF(D5=\"\",\"\",((((D236-D297)*2000)+((SUM(D9:D229)-2000)*((IF($A8=Nutrients!$B$79,Nutrients!$DA$79,(IF($A8=Nutrients!$B$77,Nutrients!$DA$77,Nutrients!$DA$78)))))))/((IF($A7=Nutrients!$B$8,Nutrients!$DA$8,Nutrients!$DA$9))-((IF($A8=Nutrients!$B$79,Nutrients!$DA$79,(IF($A8=Nutrients!$B$77,Nutrients!$DA$77,Nutrients!$DA$78))))))))","v":1564.8539711032211},{"$f":"IF(E5=\"\",\"\",((((E236-E297)*2000)+((SUM(E9:E229)-2000)*((IF($A8=Nutrients!$B$79,Nutrients!$DA$79,(IF($A8=Nutrients!$B$77,Nutrients!$DA$77,Nutrients!$DA$78)))))))/((IF($A7=Nutrients!$B$8,Nutrients!$DA$8,Nutrients!$DA$9))-((IF($A8=Nutrients!$B$79,Nutrients!$DA$79,(IF($A8=Nutrients!$B$77,Nutrients!$DA$77,Nutrients!$DA$78))))))))","v":1637.2122226458096},{"$f":"IF(F5=\"\",\"\",((((F236-F297)*2000)+((SUM(F9:F229)-2000)*((IF($A8=Nutrients!$B$79,Nutrients!$DA$79,(IF($A8=Nutrients!$B$77,Nutrients!$DA$77,Nutrients!$DA$78)))))))/((IF($A7=Nutrients!$B$8,Nutrients!$DA$8,Nutrients!$DA$9))-((IF($A8=Nutrients!$B$79,Nutrients!$DA$79,(IF($A8=Nutrients!$B$77,Nutrients!$DA$77,Nutrients!$DA$78))))))))","v":1697.3820399240099},{"$f":"IF(G5=\"\",\"\",((((G236-G297)*2000)+((SUM(G9:G229)-2000)*((IF($A8=Nutrients!$B$79,Nutrients!$DA$79,(IF($A8=Nutrients!$B$77,Nutrients!$DA$77,Nutrients!$DA$78)))))))/((IF($A7=Nutrients!$B$8,Nutrients!$DA$8,Nutrients!$DA$9))-((IF($A8=Nutrients!$B$79,Nutrients!$DA$79,(IF($A8=Nutrients!$B$77,Nutrients!$DA$77,Nutrients!$DA$78))))))))","v":1729.7239606988965},null,{"$f":"IF(I5=\"\",\"\",((((I236-I297)*2000)+((SUM(I9:I229)-2000)*((IF($A8=Nutrients!$B$79,Nutrients!$DA$79,(IF($A8=Nutrients!$B$77,Nutrients!$DA$77,Nutrients!$DA$78)))))))/((IF($A7=Nutrients!$B$8,Nutrients!$DA$8,Nutrients!$DA$9))-((IF($A8=Nutrients!$B$79,Nutrients!$DA$79,(IF($A8=Nutrients!$B$77,Nutrients!$DA$77,Nutrients!$DA$78))))))))","v":1318.8383554356226},{"$f":"IF(J5=\"\",\"\",((((J236-J297)*2000)+((SUM(J9:J229)-2000)*((IF($A8=Nutrients!$B$79,Nutrients!$DA$79,(IF($A8=Nutrients!$B$77,Nutrients!$DA$77,Nutrients!$DA$78)))))))/((IF($A7=Nutrients!$B$8,Nutrients!$DA$8,Nutrients!$DA$9))-((IF($A8=Nutrients!$B$79,Nutrients!$DA$79,(IF($A8=Nutrients!$B$77,Nutrients!$DA$77,Nutrients!$DA$78))))))))","v":1406.9327124923927},{"$f":"IF(K5=\"\",\"\",((((K236-K297)*2000)+((SUM(K9:K229)-2000)*((IF($A8=Nutrients!$B$79,Nutrients!$DA$79,(IF($A8=Nutrients!$B$77,Nutrients!$DA$77,Nutrients!$DA$78)))))))/((IF($A7=Nutrients!$B$8,Nutrients!$DA$8,Nutrients!$DA$9))-((IF($A8=Nutrients!$B$79,Nutrients!$DA$79,(IF($A8=Nutrients!$B$77,Nutrients!$DA$77,Nutrients!$DA$78))))))))","v":1482.325015348544},{"$f":"IF(L5=\"\",\"\",((((L236-L297)*2000)+((SUM(L9:L229)-2000)*((IF($A8=Nutrients!$B$79,Nutrients!$DA$79,(IF($A8=Nutrients!$B$77,Nutrients!$DA$77,Nutrients!$DA$78)))))))/((IF($A7=Nutrients!$B$8,Nutrients!$DA$8,Nutrients!$DA$9))-((IF($A8=Nutrients!$B$79,Nutrients!$DA$79,(IF($A8=Nutrients!$B$77,Nutrients!$DA$77,Nutrients!$DA$78))))))))","v":1554.5376631194806},{"$f":"IF(M5=\"\",\"\",((((M236-M297)*2000)+((SUM(M9:M229)-2000)*((IF($A8=Nutrients!$B$79,Nutrients!$DA$79,(IF($A8=Nutrients!$B$77,Nutrients!$DA$77,Nutrients!$DA$78)))))))/((IF($A7=Nutrients!$B$8,Nutrients!$DA$8,Nutrients!$DA$9))-((IF($A8=Nutrients!$B$79,Nutrients!$DA$79,(IF($A8=Nutrients!$B$77,Nutrients!$DA$77,Nutrients!$DA$78))))))))","v":1614.7067037384488},{"$f":"IF(N5=\"\",\"\",((((N236-N297)*2000)+((SUM(N9:N229)-2000)*((IF($A8=Nutrients!$B$79,Nutrients!$DA$79,(IF($A8=Nutrients!$B$77,Nutrients!$DA$77,Nutrients!$DA$78)))))))/((IF($A7=Nutrients!$B$8,Nutrients!$DA$8,Nutrients!$DA$9))-((IF($A8=Nutrients!$B$79,Nutrients!$DA$79,(IF($A8=Nutrients!$B$77,Nutrients!$DA$77,Nutrients!$DA$78))))))))","v":1646.9840106815107},null,{"$f":"IF(P5=\"\",\"\",((((P236-P297)*2000)+((SUM(P9:P229)-2000)*((IF($A8=Nutrients!$B$79,Nutrients!$DA$79,(IF($A8=Nutrients!$B$77,Nutrients!$DA$77,Nutrients!$DA$78)))))))/((IF($A7=Nutrients!$B$8,Nutrients!$DA$8,Nutrients!$DA$9))-((IF($A8=Nutrients!$B$79,Nutrients!$DA$79,(IF($A8=Nutrients!$B$77,Nutrients!$DA$77,Nutrients!$DA$78))))))))","v":1236.2568828455967},{"$f":"IF(Q5=\"\",\"\",((((Q236-Q297)*2000)+((SUM(Q9:Q229)-2000)*((IF($A8=Nutrients!$B$79,Nutrients!$DA$79,(IF($A8=Nutrients!$B$77,Nutrients!$DA$77,Nutrients!$DA$78)))))))/((IF($A7=Nutrients!$B$8,Nutrients!$DA$8,Nutrients!$DA$9))-((IF($A8=Nutrients!$B$79,Nutrients!$DA$79,(IF($A8=Nutrients!$B$77,Nutrients!$DA$77,Nutrients!$DA$78))))))))","v":1324.2664272995055},{"$f":"IF(R5=\"\",\"\",((((R236-R297)*2000)+((SUM(R9:R229)-2000)*((IF($A8=Nutrients!$B$79,Nutrients!$DA$79,(IF($A8=Nutrients!$B$77,Nutrients!$DA$77,Nutrients!$DA$78)))))))/((IF($A7=Nutrients!$B$8,Nutrients!$DA$8,Nutrients!$DA$9))-((IF($A8=Nutrients!$B$79,Nutrients!$DA$79,(IF($A8=Nutrients!$B$77,Nutrients!$DA$77,Nutrients!$DA$78))))))))","v":1399.5715115665103},{"$f":"IF(S5=\"\",\"\",((((S236-S297)*2000)+((SUM(S9:S229)-2000)*((IF($A8=Nutrients!$B$79,Nutrients!$DA$79,(IF($A8=Nutrients!$B$77,Nutrients!$DA$77,Nutrients!$DA$78)))))))/((IF($A7=Nutrients!$B$8,Nutrients!$DA$8,Nutrients!$DA$9))-((IF($A8=Nutrients!$B$79,Nutrients!$DA$79,(IF($A8=Nutrients!$B$77,Nutrients!$DA$77,Nutrients!$DA$78))))))))","v":1471.8083445148206},{"$f":"IF(T5=\"\",\"\",((((T236-T297)*2000)+((SUM(T9:T229)-2000)*((IF($A8=Nutrients!$B$79,Nutrients!$DA$79,(IF($A8=Nutrients!$B$77,Nutrients!$DA$77,Nutrients!$DA$78)))))))/((IF($A7=Nutrients!$B$8,Nutrients!$DA$8,Nutrients!$DA$9))-((IF($A8=Nutrients!$B$79,Nutrients!$DA$79,(IF($A8=Nutrients!$B$77,Nutrients!$DA$77,Nutrients!$DA$78))))))))","v":1532.0322587871108},{"$f":"IF(U5=\"\",\"\",((((U236-U297)*2000)+((SUM(U9:U229)-2000)*((IF($A8=Nutrients!$B$79,Nutrients!$DA$79,(IF($A8=Nutrients!$B$77,Nutrients!$DA$77,Nutrients!$DA$78)))))))/((IF($A7=Nutrients!$B$8,Nutrients!$DA$8,Nutrients!$DA$9))-((IF($A8=Nutrients!$B$79,Nutrients!$DA$79,(IF($A8=Nutrients!$B$77,Nutrients!$DA$77,Nutrients!$DA$78))))))))","v":1564.2862446680513},null,{"$f":"IF(W5=\"\",\"\",((((W236-W297)*2000)+((SUM(W9:W229)-2000)*((IF($A8=Nutrients!$B$79,Nutrients!$DA$79,(IF($A8=Nutrients!$B$77,Nutrients!$DA$77,Nutrients!$DA$78)))))))/((IF($A7=Nutrients!$B$8,Nutrients!$DA$8,Nutrients!$DA$9))-((IF($A8=Nutrients!$B$79,Nutrients!$DA$79,(IF($A8=Nutrients!$B$77,Nutrients!$DA$77,Nutrients!$DA$78))))))))","v":1153.7508742774967},{"$f":"IF(X5=\"\",\"\",((((X236-X297)*2000)+((SUM(X9:X229)-2000)*((IF($A8=Nutrients!$B$79,Nutrients!$DA$79,(IF($A8=Nutrients!$B$77,Nutrients!$DA$77,Nutrients!$DA$78)))))))/((IF($A7=Nutrients!$B$8,Nutrients!$DA$8,Nutrients!$DA$9))-((IF($A8=Nutrients!$B$79,Nutrients!$DA$79,(IF($A8=Nutrients!$B$77,Nutrients!$DA$77,Nutrients!$DA$78))))))))","v":1241.6236468359346},{"$f":"IF(Y5=\"\",\"\",((((Y236-Y297)*2000)+((SUM(Y9:Y229)-2000)*((IF($A8=Nutrients!$B$79,Nutrients!$DA$79,(IF($A8=Nutrients!$B$77,Nutrients!$DA$77,Nutrients!$DA$78)))))))/((IF($A7=Nutrients!$B$8,Nutrients!$DA$8,Nutrients!$DA$9))-((IF($A8=Nutrients!$B$79,Nutrients!$DA$79,(IF($A8=Nutrients!$B$77,Nutrients!$DA$77,Nutrients!$DA$78))))))))","v":1316.9525492050418},{"$f":"IF(Z5=\"\",\"\",((((Z236-Z297)*2000)+((SUM(Z9:Z229)-2000)*((IF($A8=Nutrients!$B$79,Nutrients!$DA$79,(IF($A8=Nutrients!$B$77,Nutrients!$DA$77,Nutrients!$DA$78)))))))/((IF($A7=Nutrients!$B$8,Nutrients!$DA$8,Nutrients!$DA$9))-((IF($A8=Nutrients!$B$79,Nutrients!$DA$79,(IF($A8=Nutrients!$B$77,Nutrients!$DA$77,Nutrients!$DA$78))))))))","v":1389.035231757013},{"$f":"IF(AA5=\"\",\"\",((((AA236-AA297)*2000)+((SUM(AA9:AA229)-2000)*((IF($A8=Nutrients!$B$79,Nutrients!$DA$79,(IF($A8=Nutrients!$B$77,Nutrients!$DA$77,Nutrients!$DA$78)))))))/((IF($A7=Nutrients!$B$8,Nutrients!$DA$8,Nutrients!$DA$9))-((IF($A8=Nutrients!$B$79,Nutrients!$DA$79,(IF($A8=Nutrients!$B$77,Nutrients!$DA$77,Nutrients!$DA$78))))))))","v":1449.1046434784112},{"$f":"IF(AB5=\"\",\"\",((((AB236-AB297)*2000)+((SUM(AB9:AB229)-2000)*((IF($A8=Nutrients!$B$79,Nutrients!$DA$79,(IF($A8=Nutrients!$B$77,Nutrients!$DA$77,Nutrients!$DA$78)))))))/((IF($A7=Nutrients!$B$8,Nutrients!$DA$8,Nutrients!$DA$9))-((IF($A8=Nutrients!$B$79,Nutrients!$DA$79,(IF($A8=Nutrients!$B$77,Nutrients!$DA$77,Nutrients!$DA$78))))))))","v":1480.5434180739235},null,{"$f":"IF(AD5=\"\",\"\",((((AD236-AD297)*2000)+((SUM(AD9:AD229)-2000)*((IF($A8=Nutrients!$B$79,Nutrients!$DA$79,(IF($A8=Nutrients!$B$77,Nutrients!$DA$77,Nutrients!$DA$78)))))))/((IF($A7=Nutrients!$B$8,Nutrients!$DA$8,Nutrients!$DA$9))-((IF($A8=Nutrients!$B$79,Nutrients!$DA$79,(IF($A8=Nutrients!$B$77,Nutrients!$DA$77,Nutrients!$DA$78))))))))","v":1071.1147788258536},{"$f":"IF(AE5=\"\",\"\",((((AE236-AE297)*2000)+((SUM(AE9:AE229)-2000)*((IF($A8=Nutrients!$B$79,Nutrients!$DA$79,(IF($A8=Nutrients!$B$77,Nutrients!$DA$77,Nutrients!$DA$78)))))))/((IF($A7=Nutrients!$B$8,Nutrients!$DA$8,Nutrients!$DA$9))-((IF($A8=Nutrients!$B$79,Nutrients!$DA$79,(IF($A8=Nutrients!$B$77,Nutrients!$DA$77,Nutrients!$DA$78))))))))","v":1159.0417389025365},{"$f":"IF(AF5=\"\",\"\",((((AF236-AF297)*2000)+((SUM(AF9:AF229)-2000)*((IF($A8=Nutrients!$B$79,Nutrients!$DA$79,(IF($A8=Nutrients!$B$77,Nutrients!$DA$77,Nutrients!$DA$78)))))))/((IF($A7=Nutrients!$B$8,Nutrients!$DA$8,Nutrients!$DA$9))-((IF($A8=Nutrients!$B$79,Nutrients!$DA$79,(IF($A8=Nutrients!$B$77,Nutrients!$DA$77,Nutrients!$DA$78))))))))","v":1234.1813238439142},{"$f":"IF(AG5=\"\",\"\",((((AG236-AG297)*2000)+((SUM(AG9:AG229)-2000)*((IF($A8=Nutrients!$B$79,Nutrients!$DA$79,(IF($A8=Nutrients!$B$77,Nutrients!$DA$77,Nutrients!$DA$78)))))))/((IF($A7=Nutrients!$B$8,Nutrients!$DA$8,Nutrients!$DA$9))-((IF($A8=Nutrients!$B$79,Nutrients!$DA$79,(IF($A8=Nutrients!$B$77,Nutrients!$DA$77,Nutrients!$DA$78))))))))","v":1306.1849979875785},{"$f":"IF(AH5=\"\",\"\",((((AH236-AH297)*2000)+((SUM(AH9:AH229)-2000)*((IF($A8=Nutrients!$B$79,Nutrients!$DA$79,(IF($A8=Nutrients!$B$77,Nutrients!$DA$77,Nutrients!$DA$78)))))))/((IF($A7=Nutrients!$B$8,Nutrients!$DA$8,Nutrients!$DA$9))-((IF($A8=Nutrients!$B$79,Nutrients!$DA$79,(IF($A8=Nutrients!$B$77,Nutrients!$DA$77,Nutrients!$DA$78))))))))","v":1363.5942365698179},{"$f":"IF(AI5=\"\",\"\",((((AI236-AI297)*2000)+((SUM(AI9:AI229)-2000)*((IF($A8=Nutrients!$B$79,Nutrients!$DA$79,(IF($A8=Nutrients!$B$77,Nutrients!$DA$77,Nutrients!$DA$78)))))))/((IF($A7=Nutrients!$B$8,Nutrients!$DA$8,Nutrients!$DA$9))-((IF($A8=Nutrients!$B$79,Nutrients!$DA$79,(IF($A8=Nutrients!$B$77,Nutrients!$DA$77,Nutrients!$DA$78))))))))","v":1394.3123875281863},null,{"$f":"IF(AK5=\"\",\"\",((((AK236-AK297)*2000)+((SUM(AK9:AK229)-2000)*((IF($A8=Nutrients!$B$79,Nutrients!$DA$79,(IF($A8=Nutrients!$B$77,Nutrients!$DA$77,Nutrients!$DA$78)))))))/((IF($A7=Nutrients!$B$8,Nutrients!$DA$8,Nutrients!$DA$9))-((IF($A8=Nutrients!$B$79,Nutrients!$DA$79,(IF($A8=Nutrients!$B$77,Nutrients!$DA$77,Nutrients!$DA$78))))))))","v":988.38566013290085},{"$f":"IF(AL5=\"\",\"\",((((AL236-AL297)*2000)+((SUM(AL9:AL229)-2000)*((IF($A8=Nutrients!$B$79,Nutrients!$DA$79,(IF($A8=Nutrients!$B$77,Nutrients!$DA$77,Nutrients!$DA$78)))))))/((IF($A7=Nutrients!$B$8,Nutrients!$DA$8,Nutrients!$DA$9))-((IF($A8=Nutrients!$B$79,Nutrients!$DA$79,(IF($A8=Nutrients!$B$77,Nutrients!$DA$77,Nutrients!$DA$78))))))))","v":1076.2689138614455},{"$f":"IF(AM5=\"\",\"\",((((AM236-AM297)*2000)+((SUM(AM9:AM229)-2000)*((IF($A8=Nutrients!$B$79,Nutrients!$DA$79,(IF($A8=Nutrients!$B$77,Nutrients!$DA$77,Nutrients!$DA$78)))))))/((IF($A7=Nutrients!$B$8,Nutrients!$DA$8,Nutrients!$DA$9))-((IF($A8=Nutrients!$B$79,Nutrients!$DA$79,(IF($A8=Nutrients!$B$77,Nutrients!$DA$77,Nutrients!$DA$78))))))))","v":1151.4724692342302},{"$f":"IF(AN5=\"\",\"\",((((AN236-AN297)*2000)+((SUM(AN9:AN229)-2000)*((IF($A8=Nutrients!$B$79,Nutrients!$DA$79,(IF($A8=Nutrients!$B$77,Nutrients!$DA$77,Nutrients!$DA$78)))))))/((IF($A7=Nutrients!$B$8,Nutrients!$DA$8,Nutrients!$DA$9))-((IF($A8=Nutrients!$B$79,Nutrients!$DA$79,(IF($A8=Nutrients!$B$77,Nutrients!$DA$77,Nutrients!$DA$78))))))))","v":1221.0552902124787},{"$f":"IF(AO5=\"\",\"\",((((AO236-AO297)*2000)+((SUM(AO9:AO229)-2000)*((IF($A8=Nutrients!$B$79,Nutrients!$DA$79,(IF($A8=Nutrients!$B$77,Nutrients!$DA$77,Nutrients!$DA$78)))))))/((IF($A7=Nutrients!$B$8,Nutrients!$DA$8,Nutrients!$DA$9))-((IF($A8=Nutrients!$B$79,Nutrients!$DA$79,(IF($A8=Nutrients!$B$77,Nutrients!$DA$77,Nutrients!$DA$78))))))))","v":1277.3771520194027},{"$f":"IF(AP5=\"\",\"\",((((AP236-AP297)*2000)+((SUM(AP9:AP229)-2000)*((IF($A8=Nutrients!$B$79,Nutrients!$DA$79,(IF($A8=Nutrients!$B$77,Nutrients!$DA$77,Nutrients!$DA$78)))))))/((IF($A7=Nutrients!$B$8,Nutrients!$DA$8,Nutrients!$DA$9))-((IF($A8=Nutrients!$B$79,Nutrients!$DA$79,(IF($A8=Nutrients!$B$77,Nutrients!$DA$77,Nutrients!$DA$78))))))))","v":1308.0763725295476},null,{"$f":"IF(AR5=\"\",\"\",((((AR236-AR297)*2000)+((SUM(AR9:AR229)-2000)*((IF($A8=Nutrients!$B$79,Nutrients!$DA$79,(IF($A8=Nutrients!$B$77,Nutrients!$DA$77,Nutrients!$DA$78)))))))/((IF($A7=Nutrients!$B$8,Nutrients!$DA$8,Nutrients!$DA$9))-((IF($A8=Nutrients!$B$79,Nutrients!$DA$79,(IF($A8=Nutrients!$B$77,Nutrients!$DA$77,Nutrients!$DA$78))))))))","v":905.48408066641639},{"$f":"IF(AS5=\"\",\"\",((((AS236-AS297)*2000)+((SUM(AS9:AS229)-2000)*((IF($A8=Nutrients!$B$79,Nutrients!$DA$79,(IF($A8=Nutrients!$B$77,Nutrients!$DA$77,Nutrients!$DA$78)))))))/((IF($A7=Nutrients!$B$8,Nutrients!$DA$8,Nutrients!$DA$9))-((IF($A8=Nutrients!$B$79,Nutrients!$DA$79,(IF($A8=Nutrients!$B$77,Nutrients!$DA$77,Nutrients!$DA$78))))))))","v":993.47023248599942},{"$f":"IF(AT5=\"\",\"\",((((AT236-AT297)*2000)+((SUM(AT9:AT229)-2000)*((IF($A8=Nutrients!$B$79,Nutrients!$DA$79,(IF($A8=Nutrients!$B$77,Nutrients!$DA$77,Nutrients!$DA$78)))))))/((IF($A7=Nutrients!$B$8,Nutrients!$DA$8,Nutrients!$DA$9))-((IF($A8=Nutrients!$B$79,Nutrients!$DA$79,(IF($A8=Nutrients!$B$77,Nutrients!$DA$77,Nutrients!$DA$78))))))))","v":1068.3225312971365},{"$f":"IF(AU5=\"\",\"\",((((AU236-AU297)*2000)+((SUM(AU9:AU229)-2000)*((IF($A8=Nutrients!$B$79,Nutrients!$DA$79,(IF($A8=Nutrients!$B$77,Nutrients!$DA$77,Nutrients!$DA$78)))))))/((IF($A7=Nutrients!$B$8,Nutrients!$DA$8,Nutrients!$DA$9))-((IF($A8=Nutrients!$B$79,Nutrients!$DA$79,(IF($A8=Nutrients!$B$77,Nutrients!$DA$77,Nutrients!$DA$78))))))))","v":1134.8422404482285},{"$f":"IF(AV5=\"\",\"\",((((AV236-AV297)*2000)+((SUM(AV9:AV229)-2000)*((IF($A8=Nutrients!$B$79,Nutrients!$DA$79,(IF($A8=Nutrients!$B$77,Nutrients!$DA$77,Nutrients!$DA$78)))))))/((IF($A7=Nutrients!$B$8,Nutrients!$DA$8,Nutrients!$DA$9))-((IF($A8=Nutrients!$B$79,Nutrients!$DA$79,(IF($A8=Nutrients!$B$77,Nutrients!$DA$77,Nutrients!$DA$78))))))))","v":1191.159571244604},{"$f":"IF(AW5=\"\",\"\",((((AW236-AW297)*2000)+((SUM(AW9:AW229)-2000)*((IF($A8=Nutrients!$B$79,Nutrients!$DA$79,(IF($A8=Nutrients!$B$77,Nutrients!$DA$77,Nutrients!$DA$78)))))))/((IF($A7=Nutrients!$B$8,Nutrients!$DA$8,Nutrients!$DA$9))-((IF($A8=Nutrients!$B$79,Nutrients!$DA$79,(IF($A8=Nutrients!$B$77,Nutrients!$DA$77,Nutrients!$DA$78))))))))","v":1221.8401118261081}]
["Soybean Meal, Dehull, Sol Extr",{"$f":"IF(B5=\"\",\"\",2000-SUM(B9:B218)-B7)","v":532.87319453405121},452.27140406672561,384.4341908979336,317.11390951924227,260.24813699960987,228.872010022209,null,{"$f":"IF(I5=\"\",\"\",2000-SUM(I9:I220)-I7)","v":506.26131558919974},425.68313484727946,357.83377213640006,290.52371574167273,233.65799776271683,202.28640827350569,null,{"$f":"IF(P5=\"\",\"\",2000-SUM(P9:P220)-P7)","v":479.66458480767665},399.09236000696797,331.24912219701173,263.9373674049973,207.06779593915076,175.69784416497623,null,{"$f":"IF(W5=\"\",\"\",2000-SUM(W9:W220)-W7)","v":453.06255458641135},372.49993455364302,304.65502412415731,237.35409450042494,180.49537293281492,149.18266914216792,null,{"$f":"IF(AD5=\"\",\"\",2000-SUM(AD9:AD220)-AD7)","v":426.46965968000131},345.90323434398579,278.07161867768332,210.77623739723072,154.10432574107858,122.8422275429275,null,{"$f":"IF(AK5=\"\",\"\",2000-SUM(AK9:AK220)-AK7)","v":399.88329730458224},319.31994123458776,251.48383326270869,184.35845571578284,127.76290478823444,96.502135975492138,null,{"$f":"IF(AR5=\"\",\"\",2000-SUM(AR9:AR220)-AR7)","v":373.30904593854063},292.73846387900687,224.92702280050207,158.01675142121348,101.42151868260794,70.162061662607357]
[{"$f":"Nutrients!B8","v":"Corn"}]
[{"$f":"Nutrients!B9","v":"Milo"}]
[{"$f":"Nutrients!B10","v":"Alfalfa Meal"}]
[{"$f":"Nutrients!B11","v":"Bakery Meal"}]
[{"$f":"Nutrients!B12","v":"Barley"}]
[{"$f":"Nutrients!B13","v":"Barley, Hulless"}]
[{"$f":"Nutrients!B14","v":"Beans, Faba"}]
[{"$f":"Nutrients!B15","v":"Blood Meal"}]
[{"$f":"Nutrients!B16","v":"Blood Plasma"}]
[{"$f":"Nutrients!B17","v":"Brewers Grain"}]
[{"$f":"Nutrients!B18","v":"Canola, Full Fat"}]
[{"$f":"Nutrients!B19","v":"Canola Meal, Expelled"}]
[{"$f":"Nutrients!B20","v":"Canola Meal, Solvent Extracted"}]
[{"$f":"Nutrients!B21","v":"Casava Meal"}]
[{"$f":"Nutrients!B22","v":"Citrus Pulp"}]
[{"$f":"Nutrients!B23","v":"Copra Meal"}]
[{"$f":"Nutrients!B24","v":"Corn, Yellow Dent"}]
[{"$f":"Nutrients!B25","v":"Corn, Nutridense"}]
[{"$f":"Nutrients!B26","v":"Corn Bran"}]
[{"$f":"Nutrients!B27","v":"Corn DDG"}]
[{"$f":"Nutrients!B28","v":"Corn DDGS, >10% Oil"}]
[{"$f":"Nutrients!B29","v":"Corn DDGS, >6 and <9% Oil"}]
[{"$f":"Nutrients!B30","v":"Corn DDGS, <4% Oil"}]
[{"$f":"Nutrients!B31","v":"Corn HP DDG"}]
[{"$f":"Nutrients!B32","v":"Corn Germ"}]
[{"$f":"Nutrients!B33","v":"Corn Germ Meal"}]
[{"$f":"Nutrients!B34","v":"Corn Gluten Feed"}]
[{"$f":"Nutrients!B35","v":"Corn Gluten Meal"}]
[{"$f":"Nutrients!B36","v":"Corn Grits, Hominy Feed"}]
[{"$f":"Nutrients!B37","v":"Cotton Seeds, Fullfat"}]
[{"$f":"Nutrients!B38","v":"Cotton Seed Meal"}]
[{"$f":"Nutrients!B39","v":"Feather Meal"}]
[{"$f":"Nutrients!B40","v":"Fish Meal Combined"}]
[{"$f":"Nutrients!B41","v":"Flaxseed"}]
[{"$f":"Nutrients!B42","v":"Flaxseed Meal"}]
[{"$f":"Nutrients!B43","v":"Lupins"}]
[{"$f":"Nutrients!B44","v":"Meat Meal"}]
[{"$f":"Nutrients!B45","v":"Meat and Bone Meal, P >4%"}]
[{"$f":"Nutrients!B46","v":"Milk, Casein"}]
[{"$f":"Nutrients!B47","v":"Milk, Lactose"}]
[{"$f":"Nutrients!B48","v":"Milk, Skim Milk Powder"}]
[{"$f":"Nutrients!B49","v":"Milk, Whey Powder"}]
[{"$f":"Nutrients!B50","v":"Milk, Whey Permeate, 80% lactose"}]
[{"$f":"Nutrients!B51","v":"Milk, Whey Protein Concentrate"}]
[{"$f":"Nutrients!B52","v":"Millet"}]
[{"$f":"Nutrients!B53","v":"Molasses, Sugarbeet"}]
[{"$f":"Nutrients!B54","v":"Molasses, Sugarcane"}]
[{"$f":"Nutrients!B55","v":"Oats"}]
[{"$f":"Nutrients!B56","v":"Oats, Naked"}]
[{"$f":"Nutrients!B57","v":"Oat Groats"}]
[{"$f":"Nutrients!B58","v":"Peanut Meal, Expelled"}]
[{"$f":"Nutrients!B59","v":"Peanut Meal, Extracted"}]
[{"$f":"Nutrients!B60","v":"Peas, Field Peas"}]
[{"$f":"Nutrients!B61","v":"Pea Protein Concentrate"}]
[{"$f":"Nutrients!B62","v":"Potato Protein Concentrate"}]
[{"$f":"Nutrients!B63","v":"Poultry Byproduct"}]
[{"$f":"Nutrients!B64","v":"Rice"}]
[{"$f":"Nutrients!B65","v":"Rice Bran"}]
[{"$f":"Nutrients!B66","v":"Rice Bran, Defatted"}]
[{"$f":"Nutrients!B67","v":"Rice, Broken"}]
[{"$f":"Nutrients!B68","v":"Rye"}]
[{"$f":"Nutrients!B69","v":"Sesame Meal"}]
[{"$f":"Nutrients!B70","v":"Sorghum"}]
[{"$f":"Nutrients!B71","v":"Soybeans, Full Fat"}]
[{"$f":"Nutrients!B72","v":"Soybeans, High Protein, Full Fat"}]
[{"$f":"Nutrients!B73","v":"Soybeans, Low Oligosaccharide, Full Fat"}]
[{"$f":"Nutrients!B74","v":"Soybean Meal, High Protein, Expelled"}]
[{"$f":"Nutrients!B75","v":"Soybean Meal, Low Oligosacch, Expell"}]
[{"$f":"Nutrients!B76","v":"Soybean Meal, Expelled"}]
[{"$f":"Nutrients!B77","v":"Soybean Meal, Dehulled, Expelled"}]
[{"$f":"Nutrients!B78","v":"Soybean Meal, Solvent Extracted"}]
[{"$f":"Nutrients!B79","v":"Soybean Meal, Dehull, Sol Extr"}]
[{"$f":"Nutrients!B80","v":"Soybean Meal, High Prot, Dehull, Solv Extr"}]
[{"$f":"Nutrients!B81","v":"Soybean Meal, Enzyme Treated"}]
[{"$f":"Nutrients!B82","v":"Soybean Meal, Fermented"}]
[{"$f":"Nutrients!B83","v":"Soybean Hulls"}]
[{"$f":"Nutrients!B84","v":"Soy Protein Concentrate"}]
[{"$f":"Nutrients!B85","v":"Soy Protein Isolate"}]
[{"$f":"Nutrients!B86","v":"Sugar Beet Pulp"}]
[{"$f":"Nutrients!B87","v":"Sunflower, Full Fat"}]
[{"$f":"Nutrients!B88","v":"Sunflower Meal, Solvent Extracted"}]
[{"$f":"Nutrients!B89","v":"Sunflower Meal, Dehulled, Solvent Extr"}]
[{"$f":"Nutrients!B90","v":"Triticale"}]
[{"$f":"Nutrients!B91","v":"Wheat, Hard Red"}]
[{"$f":"Nutrients!B92","v":"Wheat, Soft Red"}]
[{"$f":"Nutrients!B93","v":"Wheat Bran"}]
[{"$f":"Nutrients!B94","v":"Wheat Middlings"}]
[{"$f":"Nutrients!B95","v":"Wheat Shorts"}]
[{"$f":"Nutrients!B96","v":"Wheat DDGS"}]
[{"$f":"Nutrients!B97","v":"Yeast, Brewers' Yeast"}]
[{"$f":"Nutrients!B98","v":"Yeast, Single Cell Protein"}]
[{"$f":"Nutrients!B99","v":"Beef Tallow"}]
[{"$f":"Nutrients!B100","v":"Choice White Grease"},null,null,null,null,null,null,null,{"$f":"IF('GF diets L-Val'!B250-'GF diets L-Val'!I250<0,0,'GF diets L-Val'!B250-'GF diets L-Val'!I250+0.1)","v":9.7931214372002611},{"$f":"IF('GF diets L-Val'!C250-'GF diets L-Val'!J250<0,0,'GF diets L-Val'!C250-'GF diets L-Val'!J250+0.1)","v":9.9232229986606395},{"$f":"IF('GF diets L-Val'!D250-'GF diets L-Val'!K250<0,0,'GF diets L-Val'!D250-'GF diets L-Val'!K250+0.1)","v":9.8166484110832695},{"$f":"IF('GF diets L-Val'!E250-'GF diets L-Val'!L250<0,0,'GF diets L-Val'!E250-'GF diets L-Val'!L250+0.1)","v":9.930073706054463},{"$f":"IF('GF diets L-Val'!F250-'GF diets L-Val'!M250<0,0,'GF diets L-Val'!F250-'GF diets L-Val'!M250+0.1)","v":9.9613107670880705},{"$f":"IF('GF diets L-Val'!G250-'GF diets L-Val'!N250<0,0,'GF diets L-Val'!G250-'GF diets L-Val'!N250+0.1)","v":9.9276289355565037},null,{"$f":"IF('GF diets L-Val'!B250-'GF diets L-Val'!P250<0,0,'GF diets L-Val'!B250-'GF diets L-Val'!P250+0.2)","v":19.676063474449574},{"$f":"IF('GF diets L-Val'!C250-'GF diets L-Val'!Q250<0,0,'GF diets L-Val'!C250-'GF diets L-Val'!Q250+0.2)","v":19.812912493306339},{"$f":"IF('GF diets L-Val'!D250-'GF diets L-Val'!R250<0,0,'GF diets L-Val'!D250-'GF diets L-Val'!R250+0.2)","v":19.743739128708466},{"$f":"IF('GF diets L-Val'!E250-'GF diets L-Val'!S250<0,0,'GF diets L-Val'!E250-'GF diets L-Val'!S250+0.2)","v":19.817220605906368},{"$f":"IF('GF diets L-Val'!F250-'GF diets L-Val'!T250<0,0,'GF diets L-Val'!F250-'GF diets L-Val'!T250+0.2)","v":19.881008753777405},{"$f":"IF('GF diets L-Val'!G250-'GF diets L-Val'!U250<0,0,'GF diets L-Val'!G250-'GF diets L-Val'!U250+0.2)","v":19.869735858301009},null,{"$f":"IF('GF diets L-Val'!B250-'GF diets L-Val'!W250<0,0,'GF diets L-Val'!B250-'GF diets L-Val'!W250+0.35)","v":29.588252394116218},{"$f":"IF('GF diets L-Val'!C250-'GF diets L-Val'!X250<0,0,'GF diets L-Val'!C250-'GF diets L-Val'!X250+0.35)","v":29.75197310251415},{"$f":"IF('GF diets L-Val'!D250-'GF diets L-Val'!Y250<0,0,'GF diets L-Val'!D250-'GF diets L-Val'!Y250+0.35)","v":29.632628229339709},{"$f":"IF('GF diets L-Val'!E250-'GF diets L-Val'!Z250<0,0,'GF diets L-Val'!E250-'GF diets L-Val'!Z250+0.35)","v":29.733606268286486},{"$f":"IF('GF diets L-Val'!F250-'GF diets L-Val'!AA250<0,0,'GF diets L-Val'!F250-'GF diets L-Val'!AA250+0.35)","v":29.741047068812897},{"$f":"IF('GF diets L-Val'!G250-'GF diets L-Val'!AB250<0,0,'GF diets L-Val'!G250-'GF diets L-Val'!AB250+0.35)","v":29.981295742242629},null,{"$f":"IF('GF diets L-Val'!B250-'GF diets L-Val'!AD250<0,0,'GF diets L-Val'!B250-'GF diets L-Val'!AD250+0.55)","v":39.517097562367141},{"$f":"IF('GF diets L-Val'!C250-'GF diets L-Val'!AE250<0,0,'GF diets L-Val'!C250-'GF diets L-Val'!AE250+0.55)","v":39.650164915573939},{"$f":"IF('GF diets L-Val'!D250-'GF diets L-Val'!AF250<0,0,'GF diets L-Val'!D250-'GF diets L-Val'!AF250+0.55)","v":39.547259036941156},{"$f":"IF('GF diets L-Val'!E250-'GF diets L-Val'!AG250<0,0,'GF diets L-Val'!E250-'GF diets L-Val'!AG250+0.55)","v":39.626383127292499},{"$f":"IF('GF diets L-Val'!F250-'GF diets L-Val'!AH250<0,0,'GF diets L-Val'!F250-'GF diets L-Val'!AH250+0.55)","v":40.447832691307255},{"$f":"IF('GF diets L-Val'!G250-'GF diets L-Val'!AI250<0,0,'GF diets L-Val'!G250-'GF diets L-Val'!AI250+0.55)","v":40.98464853014643},null,{"$f":"IF('GF diets L-Val'!B250-'GF diets L-Val'!AK250<0,0,'GF diets L-Val'!B250-'GF diets L-Val'!AK250+0.75)","v":49.456529162836432},{"$f":"IF('GF diets L-Val'!C250-'GF diets L-Val'!AL250<0,0,'GF diets L-Val'!C250-'GF diets L-Val'!AL250+0.75)","v":49.592547889423258},{"$f":"IF('GF diets L-Val'!D250-'GF diets L-Val'!AM250<0,0,'GF diets L-Val'!D250-'GF diets L-Val'!AM250+0.75)","v":49.435978150108895},{"$f":"IF('GF diets L-Val'!E250-'GF diets L-Val'!AN250<0,0,'GF diets L-Val'!E250-'GF diets L-Val'!AN250+0.75)","v":50.150990452713131},{"$f":"IF('GF diets L-Val'!F250-'GF diets L-Val'!AO250<0,0,'GF diets L-Val'!F250-'GF diets L-Val'!AO250+0.75)","v":51.439108126026667},{"$f":"IF('GF diets L-Val'!G250-'GF diets L-Val'!AP250<0,0,'GF diets L-Val'!G250-'GF diets L-Val'!AP250+0.75)","v":51.99255363591783},null,{"$f":"IF('GF diets L-Val'!B250-'GF diets L-Val'!AR250<0,0,'GF diets L-Val'!B250-'GF diets L-Val'!AR250+0.95)","v":59.535635140486377},{"$f":"IF('GF diets L-Val'!C250-'GF diets L-Val'!AS250<0,0,'GF diets L-Val'!C250-'GF diets L-Val'!AS250+0.95)","v":59.473453069968357},{"$f":"IF('GF diets L-Val'!D250-'GF diets L-Val'!AT250<0,0,'GF diets L-Val'!D250-'GF diets L-Val'!AT250+0.95)","v":59.311672629704347},{"$f":"IF('GF diets L-Val'!E250-'GF diets L-Val'!AU250<0,0,'GF diets L-Val'!E250-'GF diets L-Val'!AU250+0.95)","v":61.127150621477725},{"$f":"IF('GF diets L-Val'!F250-'GF diets L-Val'!AV250<0,0,'GF diets L-Val'!F250-'GF diets L-Val'!AV250+0.95)","v":62.430766121845139},{"$f":"IF('GF diets L-Val'!G250-'GF diets L-Val'!AW250<0,0,'GF diets L-Val'!G250-'GF diets L-Val'!AW250+0.95)","v":63.000624485266556}]
[{"$f":"Nutrients!B101","v":"Poultry Fat"}]
[{"$f":"Nutrients!B102","v":"Lard"}]
[{"$f":"Nutrients!B103","v":"Restaurant Grease"}]
[{"$f":"Nutrients!B104","v":"Canola oil"}]
[{"$f":"Nutrients!B105","v":"Coconut oil"}]
[{"$f":"Nutrients!B106","v":"Corn oil"}]
[{"$f":"Nutrients!B107","v":"Palm Kernel oil"}]
[{"$f":"Nutrients!B108","v":"Soybean oil"}]
[{"$f":"Nutrients!B109","v":"Soybean Lecithin"}]
[{"$f":"Nutrients!B110","v":"Sunflower oil"}]
[{"$f":"Nutrients!B111","v":"Fat, A/V blend"}]
["Calcium carbonate",20.784768068928035,19.294892849162764,19.202445555729952,18.570305542378705,18,17.663512601760306,null,21.444409694945055,19.98553862860571,19.840873680160215,19.236124633910652,18.688958388234227,18.326770533828554,null,22.108119813047963,20.660220383685797,20.500873680160215,19.896124633910652,19.348958388234227,18.986770533828555,null,22.768119813047964,21.320220383685797,21.160873680160215,20.556124633910652,20.008958388234227,19.776948503520693,null,23.428119813047964,21.980220383685797,21.820873680160215,21.243448046973779,21.073538708709563,20.965067860594516,null,24.088119813047964,22.640220383685797,22.480873680160215,22.222553735248766,22.260768777249535,22.153269320897163,null,24.748119813047964,23.300220383685797,23.169584881524777,23.421147625303597,23.448077661856235,23.341533487872475]
[{"$f":"Nutrients!B113","v":"Calcium phosphate (tricalcium)"}]
[{"$f":"Nutrients!B114","v":"Calcium phosphate (dicalcium)"}]
["Calcium phosphate (monocalcium)",14.460830899366599,11.269382271474324,7.9992000000000001,5.7362235571478868,4.249911842640179,3.6237362366975527,null,13.135843328864507,10.032841615499999,6.6376572816597772,4.436223557147887,2.9499118426401791,2.3237362366975525,null,11.835843328864506,8.7328416154999982,5.3376572816597774,3.1362235571478871,1.6499118426401791,1.0237362366975524,null,10.435843328864506,7.3328416154999978,3.9376572816597775,1.7362235571478872,0.24991184264017918,null,null,9.0358433288645053,5.9328416154999974,2.5376572816597776,0.33622355714788732,null,null,null,7.7358433288645054,4.6328416154999976,1.2376572816597775,null,null,null,null,6.4358433288645056,3.3328416154999978]
[{"$f":"Nutrients!B116","v":"Calcium sulfate, dihydrate"}]
[{"$f":"Nutrients!B117","v":"Limestone, ground"}]
[{"$f":"Nutrients!B118","v":"Magnesium phosphate"}]
[{"$f":"Nutrients!B119","v":"Sodium carbonate"}]
[{"$f":"Nutrients!B120","v":"Sodium bicarbonate"}]
[{"$f":"Nutrients!B121","v":"Sodium chloride"},7,7,7,7,7,7,null,7,7,7,7,7,7,null,7,7,7,7,7,7,null,7,7,7,7,7,7,null,7,7,7,7,7,7,null,7,7,7,7,7,7,null,7,7,7,7,7,7]
[{"$f":"Nutrients!B122","v":"Sodium phosphate, monobasic"}]
[{"$f":"Nutrients!B123","v":"Sodium sulfate, decahydrate"}]
["L-Lys-HCl",9,8,7,6.5209098242968704,6.5209098242968704,6.5209098242968704,null,9.43,8.43,7.43,6.9509098242968701,6.9509098242968701,6.9509098242968701,null,9.86,8.86,7.8599999999999994,7.3809098242968698,7.3809098242968698,7.3809098242968698,null,10.29,9.2899999999999991,8.2899999999999991,7.8109098242968695,7.8109098242968695,7.8109098242968695,null,10.719999999999999,9.7199999999999989,8.7199999999999989,8.2409098242968692,8.2409098242968692,8.2409098242968692,null,11.149999999999999,10.149999999999999,9.1499999999999986,8.670909824296869,8.670909824296869,8.670909824296869,null,11.579999999999998,10.579999999999998,9.5799999999999983,9.1009098242968687,9.1009098242968687,9.1009098242968687]
["DL-Met",2.7899868108851815,1.9290679550175049,1.13207908850893,0.75200939944039891,0.4642187503637718,0.41815988679019511,null,2.5882973865483634,1.7277975810719512,0.93207908850893006,0.53200939944039893,0.2442187503637718,0.2181598867901951,null,2.3882973865483632,1.5277975810719513,0.73207908850893011,0.33200939944039892,null,null,null,2.188297386548363,1.3277975810719513,0.53207908850893015,0.13200939944039891,null,null,null,1.9882973865483631,1.1277975810719514,0.33207908850893014,null,null,null,null,1.7882973865483631,0.92779758107195143,null,null,null,null,null,1.5882973865483632,0.72779758107195147]
["L-Thr",3.311714981497218,2.6822978939662598,2.0730406828281205,1.9101926587313733,1.8273540665098165,1.8754623140236151,null,3.1917149814972179,2.5622978939662597,1.9530406828281204,1.7801926587313734,1.6773540665098166,1.7554623140236152,null,3.0717149814972178,2.4522978939662599,1.8430406828281203,1.6601926587313733,1.5573540665098164,1.6454623140236151,null,2.9617149814972179,2.34229789396626,1.7330406828281202,1.5501926587313732,1.4473540665098164,1.535462314023615,null,2.851714981497218,2.2322978939662601,1.6230406828281201,1.4401926587313731,1.3373540665098163,1.4254623140236149,null,2.7417149814972182,2.1222978939662602,1.51304068282812,1.330192658731373,1.2273540665098162,1.3154623140236148,null,2.6317149814972183,2.0122978939662604,1.4030406828281199,1.2201926587313729,1.1173540665098161,1.2054623140236147]
["L-Trp",0.64715411983197724,0.56508100549263673,0.47170370784158877,0.46467722263870981,0.5242318057378007,0.53625865021646124,null,0.71347901910320866,0.6303749007613858,0.53614770830416902,0.52160740074835188,0.57180239827998214,0.59929639982485594,null,0.77844506115054912,0.69469309080141695,0.59614770830416908,0.58160740074835182,0.63180239827998208,0.65929639982485599,null,0.83844506115054918,0.75469309080141689,0.65614770830416913,0.64160740074835187,0.69180239827998213,0.71929639982485605,null,0.87844506115054921,0.79469309080141692,0.71614770830416918,0.70160740074835193,0.75180239827998219,0.7792963998248561,null,0.93844506115054926,0.85469309080141698,0.77614770830416924,0.76160740074835198,0.81180239827998224,0.83929639982485615,null,0.99844506115054932,0.91469309080141703,0.83614770830416929,0.82160740074835203,0.87180239827998229,0.89929639982485621]
["L-Val",1.4782324055847444,0.90319623176357955,0.3833689639367559,0.26954963031428469,0.33319678683181891,0.31598976510963955,null,1.1534631270189402,0.64207904176193298,0.24476566251149814,0.10147995851664067,0.14083246142135958,0.17761691396538071,null,0.91004830116844904,0.45044963519489228,0.11582866630828675,null,null,null,null,0.66589817086726644,0.30659494288285954,null,null,null,null,null,0.5460433606692181,0.16701127287845019,null,null,null,null,null,0.38209282857183691,4.0746449517981703E-2,null,null,null,null,null,0.23881768344794968]
[{"$f":"Nutrients!B129","v":"L-Ile"}]
[{"$f":"Nutrients!B130","v":"Methionine hydroxy analog"}]
[{"$f":"Nutrients!B131","v":"Glutamine"}]
[{"$f":"Nutrients!B132","v":"Glutamic acid"}]
[{"$f":"Nutrients!B133","v":"Biolys"}]
[{"$f":"Nutrients!B134","v":"Liquid lysine 60%"}]
[{"$f":"Nutrients!B135","v":"MHA dry"}]
[{"$f":"Nutrients!B136","v":"Paylean, 9 g/lb"}]
[{"$f":"Nutrients!B137","v":"Tribasic copper chloride"}]
[{"$f":"Nutrients!B138","v":"2018 Starter base mix"}]
[{"$f":"Nutrients!B139","v":"2018 Grow-finish base mix"}]
[{"$f":"Nutrients!B140","v":"Developer base mix"}]
[{"$f":"Nutrients!B141","v":"2018 Sow base mix"}]
[{"$f":"Nutrients!B142","v":"Vitamin premix with phytase"}]
[{"$f":"Nutrients!B143","v":"Trace mineral premix"},3,3,2.5,2,1.5,1.5,null,3,3,2.5,2,1.5,1.5,null,3,3,2.5,2,1.5,1.5,null,3,3,2.5,2,1.5,1.5,null,3,3,2.5,2,1.5,1.5,null,3,3,2.5,2,1.5,1.5,null,3,3,2.5,2,1.5,1.5]
[{"$f":"Nutrients!B144","v":"Sow add pack"}]
[{"$f":"Nutrients!B145","v":"Vitamin premix without phytase"},3,3,2.5,2,1.5,1.5,null,3,3,2.5,2,1.5,1.5,null,3,3,2.5,2,1.5,1.5,null,3,3,2.5,2,1.5,1.5,null,3,3,2.5,2,1.5,1.5,null,3,3,2.5,2,1.5,1.5,null,3,3,2.5,2,1.5,1.5]
[{"$f":"Nutrients!B146","v":"GF DDGS Base Mix"}]
[{"$f":"Nutrients!B147","v":"GF synthetics Base Mix"}]
[{"$f":"Nutrients!B148","v":"Choline chloride 60%"}]
[{"$f":"Nutrients!B149","v":"Natuphos 600"}]
[{"$f":"Nutrients!B150","v":"Natuphos 1200"}]
[{"$f":"Nutrients!B151","v":"Optiphos 2000"}]
[{"$f":"Nutrients!B152","v":"Phyzyme 1200"}]
[{"$f":"Nutrients!B153","v":"Phyzyme 5000"}]
[{"$f":"Nutrients!B154","v":"Ronozyme Hiphos GT (10,000)"}]
[{"$f":"Nutrients!B155","v":"Ronozyme Hiphos M (50,000)"}]
[{"$f":"Nutrients!B156","v":"Ronozyme HiPhos 2700"},0.45,0.45,0.45,0.45,0.45,0.45,null,0.45,0.45,0.45,0.45,0.45,0.45,null,0.45,0.45,0.45,0.45,0.45,0.45,null,0.45,0.45,0.45,0.45,0.45,0.45,null,0.45,0.45,0.45,0.45,0.45,0.45,null,0.45,0.45,0.45,0.45,0.45,0.45,null,0.45,0.45,0.45,0.45,0.45,0.45]
[{"$f":"Nutrients!B157","v":"Zinc oxide"}]
[{"$f":"Nutrients!B158","v":"Copper sulfate"}]
[{"$f":"Nutrients!B159","v":"Potassium chloride"}]
[{"$f":"Nutrients!B160","v":"Calcium chloride"}]
[{"$f":"Nutrients!B161","v":"Acidifier"}]
[{"$f":"Nutrients!B162","v":"Vitamin E, 20,000 IU"}]
[{"$f":"Nutrients!B163","v":"Other ingredient"}]
[{"$f":"Nutrients!B164","v":"DPS 50"}]
[{"$f":"Nutrients!B165","v":"PEP2+"}]
[{"$f":"Nutrients!B166","v":"PEP NS"}]
[{"$f":"Nutrients!B167","v":"Vitamin premix (2x) with phytase"}]
[{"$f":"Nutrients!B168","v":"Vitamin premix (2x) without phytase"}]
[{"$f":"Nutrients!B169","v":"Corn DDGS, 10.5% Oil"}]
[{"$f":"Nutrients!B170","v":"Corn DDGS, 7.5% Oil"}]
[{"$f":"Nutrients!B171","v":"Corn DDGS, 4.5% Oil"}]
[{"$f":"Nutrients!B172","v":"MEPRO Hubbard"}]
[{"$f":"Nutrients!B173","v":"HP 300 Apr 2022 loadings"}]
[{"$f":"Nutrients!B174","v":"Glycine"}]
[{"$f":"Nutrients!B175","v":"Phase 2 supplement 2018"}]
[{"$f":"Nutrients!B176","v":"Fermex 200"}]
[{"$f":"Nutrients!B177","v":"Soybean meal with 88% NE of corn"}]
[{"$f":"Nutrients!B178","v":"Blue Dye NFP"}]
[{"$f":"Nutrients!B179","v":"HP 300 2022 NFP"}]
[{"$f":"Nutrients!B180","v":"AX3 Digest NFP"}]
[{"$f":"Nutrients!B181","v":"Phase 2 supplement 2018 NFP"}]
[{"$f":"Nutrients!B182","v":"Femex 200 NFP"}]
[{"$f":"Nutrients!B183","v":"NFP Soybean meal w/88% NE of corn "}]
[{"$f":"Nutrients!B184","v":"AV-E Digest NFP"}]
[{"$f":"Nutrients!B185","v":"QFP Cereal Blend NFP"}]
[{"$f":"Nutrients!B186","v":"FXP Ani-Tek NFP"}]
[{"$f":"Nutrients!B187","v":"NFP VTM Grower (2021)"}]
[{"$f":"Nutrients!B188","v":"NFP VTM Sow (2021)"}]
[{"$f":"Nutrients!B189","v":"VevoVitall NFP"}]
[{"$f":"Nutrients!B190","v":"MEPRO NFP"}]
[{"$f":"Nutrients!B191","v":"AlphaGal 280 P NFP"}]
[{"$f":"Nutrients!B192","v":"NFP Custom Manganese "}]
[{"$f":"Nutrients!B193","v":"Fat Build R2 All Veg 4000 NFP"}]
[{"$f":"Nutrients!B194","v":"LipoVital GL 90 NFP"}]
[{"$f":"Nutrients!B195","v":"NFP Custom Zinc"}]
[{"$f":"Nutrients!B196","v":"THRPRO-L Threonine 80% NFP"}]
[{"$f":"Nutrients!B197","v":"Copper Chloride Intellibond TBCC NFP"}]
[{"$f":"Nutrients!B198","v":"DDGS 7.5% Oil Green Plains NFP"}]
[{"$f":"Nutrients!B199","v":"NHF GF VTM 2#"}]
[{"$f":"Nutrients!B200","v":"Hubbard Vit Premix "}]
[{"$f":"Nutrients!B201","v":"Hubbard TMP"}]
[{"$f":"Nutrients!B202","v":"Inorganic Se 600 ppm Hubbard"}]
[{"$f":"Nutrients!B203","v":"Quantum Blue  5G Hubbard"}]
[{"$f":"Nutrients!B204","v":"TASA Prime meal Hubbard"}]
[{"$f":"Nutrients!B205","v":"TASA Swine Hubbard"}]
[{"$f":"Nutrients!B206","v":"TASA fish solubles Hubbard"}]
[{"$f":"Nutrients!B207","v":"Mepro + TASA additive Hubbard"}]
[{"$f":"Nutrients!B208","v":"TASA Prime + TASA additive Hubbard"}]
[{"$f":"Nutrients!B209","v":"NHF SOW VTM 4# 2022"}]
[{"$f":"Nutrients!B210","v":"ThrPro "}]
[{"$f":"Nutrients!B211","v":"NHF Optiphos Plus 2500 G"}]
[{"$f":"Nutrients!B212","v":"NHF Corn DDGS, Valero, Aurora"}]
[{"$f":"Nutrients!B213","v":"HP 300 Hubbard"}]
[{"$f":"Nutrients!B214","v":"NHF Corn DDGS, Illuminate for Aurora"}]
[{"$f":"Nutrients!B215","v":"NFP Corn DDGS, MO analysis"}]
[{"$f":"Nutrients!B216","v":"NFP Smizyme 2500"}]
[{"$f":"Nutrients!B217","v":"NHF HP300 2022 loadings"}]
[{"$f":"Nutrients!B218","v":"NHF Liquid Lys 55%"}]
[{"$f":"Nutrients!B219","v":"Corn DDGS with varying energy"},null,null,null,null,null,null,null,100,100,100,100,100,100,null,200,200,200,200,200,200,null,300,300,300,300,300,300,null,400,400,400,400,400,400,null,500,500,500,500,500,500,null,600,600,600,600,600,600]
[{"$f":"Nutrients!B220","v":"Other ingredient"}]
[{"$f":"Nutrients!B221","v":"Other ingredient"}]
[{"$f":"Nutrients!B222","v":"Other ingredient"}]
[{"$f":"Nutrients!B223","v":"Other ingredient"}]
[{"$f":"Nutrients!B224","v":"Other ingredient"}]
[{"$f":"Nutrients!B225","v":"Other ingredient"}]
[{"$f":"Nutrients!B226","v":"Other ingredient"}]
[{"$f":"Nutrients!B227","v":"Other ingredient"}]
[{"$f":"Nutrients!B228","v":"Other ingredient"}]
["TOTAL",{"$f":"SUM(B7:B229)","v":2000.0000000000002},2000,2000.0000000000002,2000.0000000000002,2000,2000.0000000000002,null,{"$f":"SUM(I7:I229)","v":2000},2000,2000.0000000000002,1999.9999999999995,1999.9999999999998,1999.9999999999998,null,{"$f":"SUM(P7:P229)","v":2000},2000.0000000000002,2000,2000,2000,2000,null,{"$f":"SUM(W7:W229)","v":1999.9999999999998},2000,2000,2000.0000000000002,2000.0000000000002,2000,null,{"$f":"SUM(AD7:AD229)","v":2000},2000,1999.9999999999998,2000,2000,2000.0000000000002,null,{"$f":"SUM(AK7:AK229)","v":2000},2000,2000.0000000000002,2000,2000,2000,null,{"$f":"SUM(AR7:AR229)","v":1999.9999999999998},2000,2000,2000,1999.9999999999998,2000]
[]
["Required SID Lys:NE Ratio",{"$f":"  0.0000415*((B5+B6)/2)^2 - 0.0236*((B5+B6)/2) + 6.096","v":4.6920843750000003},4.1130093749999999,3.6054000000000004,3.1925999999999997,2.9125999999999999,2.7606093749999996,null,{"$f":"  0.0000415*((I5+I6)/2)^2 - 0.0236*((I5+I6)/2) + 6.096","v":4.6920843750000003},4.1130093749999999,3.6054000000000004,3.1925999999999997,2.9125999999999999,2.7606093749999996,null,{"$f":"  0.0000415*((P5+P6)/2)^2 - 0.0236*((P5+P6)/2) + 6.096","v":4.6920843750000003},4.1130093749999999,3.6054000000000004,3.1925999999999997,2.9125999999999999,2.7606093749999996,null,{"$f":"  0.0000415*((W5+W6)/2)^2 - 0.0236*((W5+W6)/2) + 6.096","v":4.6920843750000003},4.1130093749999999,3.6054000000000004,3.1925999999999997,2.9125999999999999,2.7606093749999996,null,{"$f":"  0.0000415*((AD5+AD6)/2)^2 - 0.0236*((AD5+AD6)/2) + 6.096","v":4.6920843750000003},4.1130093749999999,3.6054000000000004,3.1925999999999997,2.9125999999999999,2.7606093749999996,null,{"$f":"  0.0000415*((AK5+AK6)/2)^2 - 0.0236*((AK5+AK6)/2) + 6.096","v":4.6920843750000003},4.1130093749999999,3.6054000000000004,3.1925999999999997,2.9125999999999999,2.7606093749999996,null,{"$f":"  0.0000415*((AR5+AR6)/2)^2 - 0.0236*((AR5+AR6)/2) + 6.096","v":4.6920843750000003},4.1130093749999999,3.6054000000000004,3.1925999999999997,2.9125999999999999,2.7606093749999996]
["Calculated SID Lysine Required, %",{"$f":"IF(B232=\"\",\"\",B250*2.2046*B232/10000)","v":1.1933289345334586},1.0523868858191809,0.92731901794478477,0.82549698291879381,0.75646982136751284,0.71849863102392231,null,{"$f":"IF(I232=\"\",\"\",I250*2.2046*I232/10000)","v":1.1930633287666585},1.0522282386472619,0.92721642757073841,0.82543342347670134,0.75641369045533269,0.71845590192796471,null,{"$f":"IF(P232=\"\",\"\",P250*2.2046*P232/10000)","v":1.1929043761561808},1.0521066443036233,0.92716385395510914,0.82536521694506593,0.75635393859604416,0.71841028986072275,null,{"$f":"IF(W232=\"\",\"\",W250*2.2046*W232/10000)","v":1.1928393738850456},1.0521079922946255,0.927132980715624,0.82538764961017985,0.75637985534244878,0.71840138911169715,null,{"$f":"IF(AD232=\"\",\"\",AD250*2.2046*AD232/10000)","v":1.1928296334653752},1.0520647299454347,0.92715690399776762,0.82539720306734854,0.75634582348552681,0.71841279891793297,null,{"$f":"IF(AK232=\"\",\"\",AK250*2.2046*AK232/10000)","v":1.192760696686529},1.05201966832369,0.92707712371126294,0.82530411598327313,0.75635037137305416,0.71842697869460026,null,{"$f":"IF(AR232=\"\",\"\",AR250*2.2046*AR232/10000)","v":1.1928457267186132},1.0519469932197556,0.92702906154208287,0.82529346380773971,0.75635513665971499,0.71844123713087704]
[null,null,null,null,null,null,null,null,{"$f":"B127-I127","v":0.12000000000000011},{"$f":"C126-J126","v":0.20127037394555369}]
["SID amino acids, %"]
["  Lys",1.1861119527718891,1.0487231011263827,0.92692570857780632,0.82606841929078001,0.75673053182615369,0.71839352504319809,null,1.1861119527718891,1.0487231011263827,0.92692570857780632,0.82606841929078001,0.75673053182615369,0.71839352504319809,null,1.1861119527718891,1.0487231011263827,0.92692570857780632,0.82606841929078001,0.75673053182615369,0.71839352504319809,null,1.1861119527718891,1.0487231011263827,0.92692570857780632,0.82606841929078001,0.75673053182615369,0.71839352504319809,null,1.1861119527718891,1.0487231011263827,0.92692570857780632,0.82606841929078001,0.75673053182615369,0.71839352504319809,null,1.1861119527718891,1.0487231011263827,0.92692570857780632,0.82606841929078001,0.75673053182615369,0.71839352504319809,null,1.1861119527718891,1.0487231011263827,0.92692570857780632,0.82606841929078001,0.75673053182615369,0.71839352504319809]
["  Ile:Lys",{"$f":"(SUMPRODUCT(B$9:B$229,Nutrients!$CY$8:$CY$228)+(IF($A$7=Nutrients!$B$8,Nutrients!$CY$8,Nutrients!$CY$9)*B$7)+(((IF($A$8=Nutrients!$B$79,Nutrients!$CY$79,(IF($A$8=Nutrients!$B$77,Nutrients!$CY$77,Nutrients!$CY$78)))))*B$8))/2000/B$236*100","v":56.344881641231822},{"$f":"(SUMPRODUCT(C$9:C$229,Nutrients!$CY$8:$CY$228)+(IF($A$7=Nutrients!$B$8,Nutrients!$CY$8,Nutrients!$CY$9)*C$7)+(((IF($A$8=Nutrients!$B$79,Nutrients!$CY$79,(IF($A$8=Nutrients!$B$77,Nutrients!$CY$77,Nutrients!$CY$78)))))*C$8))/2000/C$236*100","v":57.375308930399996},{"$f":"(SUMPRODUCT(D$9:D$229,Nutrients!$CY$8:$CY$228)+(IF($A$7=Nutrients!$B$8,Nutrients!$CY$8,Nutrients!$CY$9)*D$7)+(((IF($A$8=Nutrients!$B$79,Nutrients!$CY$79,(IF($A$8=Nutrients!$B$77,Nutrients!$CY$77,Nutrients!$CY$78)))))*D$8))/2000/D$236*100","v":58.876554056537131},{"$f":"(SUMPRODUCT(E$9:E$229,Nutrients!$CY$8:$CY$228)+(IF($A$7=Nutrients!$B$8,Nutrients!$CY$8,Nutrients!$CY$9)*E$7)+(((IF($A$8=Nutrients!$B$79,Nutrients!$CY$79,(IF($A$8=Nutrients!$B$77,Nutrients!$CY$77,Nutrients!$CY$78)))))*E$8))/2000/E$236*100","v":59.309801434553123},{"$f":"(SUMPRODUCT(F$9:F$229,Nutrients!$CY$8:$CY$228)+(IF($A$7=Nutrients!$B$8,Nutrients!$CY$8,Nutrients!$CY$9)*F$7)+(((IF($A$8=Nutrients!$B$79,Nutrients!$CY$79,(IF($A$8=Nutrients!$B$77,Nutrients!$CY$77,Nutrients!$CY$78)))))*F$8))/2000/F$236*100","v":58.50084547001024},{"$f":"(SUMPRODUCT(G$9:G$229,Nutrients!$CY$8:$CY$228)+(IF($A$7=Nutrients!$B$8,Nutrients!$CY$8,Nutrients!$CY$9)*G$7)+(((IF($A$8=Nutrients!$B$79,Nutrients!$CY$79,(IF($A$8=Nutrients!$B$77,Nutrients!$CY$77,Nutrients!$CY$78)))))*G$8))/2000/G$236*100","v":57.980356352367814},null,{"$f":"(SUMPRODUCT(I$9:I$229,Nutrients!$CY$8:$CY$228)+(IF($A$7=Nutrients!$B$8,Nutrients!$CY$8,Nutrients!$CY$9)*I$7)+(((IF($A$8=Nutrients!$B$79,Nutrients!$CY$79,(IF($A$8=Nutrients!$B$77,Nutrients!$CY$77,Nutrients!$CY$78)))))*I$8))/2000/I$236*100","v":56.537268043918964},{"$f":"(SUMPRODUCT(J$9:J$229,Nutrients!$CY$8:$CY$228)+(IF($A$7=Nutrients!$B$8,Nutrients!$CY$8,Nutrients!$CY$9)*J$7)+(((IF($A$8=Nutrients!$B$79,Nutrients!$CY$79,(IF($A$8=Nutrients!$B$77,Nutrients!$CY$77,Nutrients!$CY$78)))))*J$8))/2000/J$236*100","v":57.591362682913314},{"$f":"(SUMPRODUCT(K$9:K$229,Nutrients!$CY$8:$CY$228)+(IF($A$7=Nutrients!$B$8,Nutrients!$CY$8,Nutrients!$CY$9)*K$7)+(((IF($A$8=Nutrients!$B$79,Nutrients!$CY$79,(IF($A$8=Nutrients!$B$77,Nutrients!$CY$77,Nutrients!$CY$78)))))*K$8))/2000/K$236*100","v":59.121891635558853},{"$f":"(SUMPRODUCT(L$9:L$229,Nutrients!$CY$8:$CY$228)+(IF($A$7=Nutrients!$B$8,Nutrients!$CY$8,Nutrients!$CY$9)*L$7)+(((IF($A$8=Nutrients!$B$79,Nutrients!$CY$79,(IF($A$8=Nutrients!$B$77,Nutrients!$CY$77,Nutrients!$CY$78)))))*L$8))/2000/L$236*100","v":59.584248318013991},{"$f":"(SUMPRODUCT(M$9:M$229,Nutrients!$CY$8:$CY$228)+(IF($A$7=Nutrients!$B$8,Nutrients!$CY$8,Nutrients!$CY$9)*M$7)+(((IF($A$8=Nutrients!$B$79,Nutrients!$CY$79,(IF($A$8=Nutrients!$B$77,Nutrients!$CY$77,Nutrients!$CY$78)))))*M$8))/2000/M$236*100","v":58.800434519910652},{"$f":"(SUMPRODUCT(N$9:N$229,Nutrients!$CY$8:$CY$228)+(IF($A$7=Nutrients!$B$8,Nutrients!$CY$8,Nutrients!$CY$9)*N$7)+(((IF($A$8=Nutrients!$B$79,Nutrients!$CY$79,(IF($A$8=Nutrients!$B$77,Nutrients!$CY$77,Nutrients!$CY$78)))))*N$8))/2000/N$236*100","v":58.295501897781499},null,{"$f":"(SUMPRODUCT(P$9:P$229,Nutrients!$CY$8:$CY$228)+(IF($A$7=Nutrients!$B$8,Nutrients!$CY$8,Nutrients!$CY$9)*P$7)+(((IF($A$8=Nutrients!$B$79,Nutrients!$CY$79,(IF($A$8=Nutrients!$B$77,Nutrients!$CY$77,Nutrients!$CY$78)))))*P$8))/2000/P$236*100","v":56.728782868309025},{"$f":"(SUMPRODUCT(Q$9:Q$229,Nutrients!$CY$8:$CY$228)+(IF($A$7=Nutrients!$B$8,Nutrients!$CY$8,Nutrients!$CY$9)*Q$7)+(((IF($A$8=Nutrients!$B$79,Nutrients!$CY$79,(IF($A$8=Nutrients!$B$77,Nutrients!$CY$77,Nutrients!$CY$78)))))*Q$8))/2000/Q$236*100","v":57.807579487615392},{"$f":"(SUMPRODUCT(R$9:R$229,Nutrients!$CY$8:$CY$228)+(IF($A$7=Nutrients!$B$8,Nutrients!$CY$8,Nutrients!$CY$9)*R$7)+(((IF($A$8=Nutrients!$B$79,Nutrients!$CY$79,(IF($A$8=Nutrients!$B$77,Nutrients!$CY$77,Nutrients!$CY$78)))))*R$8))/2000/R$236*100","v":59.366068230036483},{"$f":"(SUMPRODUCT(S$9:S$229,Nutrients!$CY$8:$CY$228)+(IF($A$7=Nutrients!$B$8,Nutrients!$CY$8,Nutrients!$CY$9)*S$7)+(((IF($A$8=Nutrients!$B$79,Nutrients!$CY$79,(IF($A$8=Nutrients!$B$77,Nutrients!$CY$77,Nutrients!$CY$78)))))*S$8))/2000/S$236*100","v":59.858377512435098},{"$f":"(SUMPRODUCT(T$9:T$229,Nutrients!$CY$8:$CY$228)+(IF($A$7=Nutrients!$B$8,Nutrients!$CY$8,Nutrients!$CY$9)*T$7)+(((IF($A$8=Nutrients!$B$79,Nutrients!$CY$79,(IF($A$8=Nutrients!$B$77,Nutrients!$CY$77,Nutrients!$CY$78)))))*T$8))/2000/T$236*100","v":59.100029214145252},{"$f":"(SUMPRODUCT(U$9:U$229,Nutrients!$CY$8:$CY$228)+(IF($A$7=Nutrients!$B$8,Nutrients!$CY$8,Nutrients!$CY$9)*U$7)+(((IF($A$8=Nutrients!$B$79,Nutrients!$CY$79,(IF($A$8=Nutrients!$B$77,Nutrients!$CY$77,Nutrients!$CY$78)))))*U$8))/2000/U$236*100","v":58.610928858369149},null,{"$f":"(SUMPRODUCT(W$9:W$229,Nutrients!$CY$8:$CY$228)+(IF($A$7=Nutrients!$B$8,Nutrients!$CY$8,Nutrients!$CY$9)*W$7)+(((IF($A$8=Nutrients!$B$79,Nutrients!$CY$79,(IF($A$8=Nutrients!$B$77,Nutrients!$CY$77,Nutrients!$CY$78)))))*W$8))/2000/W$236*100","v":56.920602606012039},{"$f":"(SUMPRODUCT(X$9:X$229,Nutrients!$CY$8:$CY$228)+(IF($A$7=Nutrients!$B$8,Nutrients!$CY$8,Nutrients!$CY$9)*X$7)+(((IF($A$8=Nutrients!$B$79,Nutrients!$CY$79,(IF($A$8=Nutrients!$B$77,Nutrients!$CY$77,Nutrients!$CY$78)))))*X$8))/2000/X$236*100","v":58.023903705241949},{"$f":"(SUMPRODUCT(Y$9:Y$229,Nutrients!$CY$8:$CY$228)+(IF($A$7=Nutrients!$B$8,Nutrients!$CY$8,Nutrients!$CY$9)*Y$7)+(((IF($A$8=Nutrients!$B$79,Nutrients!$CY$79,(IF($A$8=Nutrients!$B$77,Nutrients!$CY$77,Nutrients!$CY$78)))))*Y$8))/2000/Y$236*100","v":59.610940446344607},{"$f":"(SUMPRODUCT(Z$9:Z$229,Nutrients!$CY$8:$CY$228)+(IF($A$7=Nutrients!$B$8,Nutrients!$CY$8,Nutrients!$CY$9)*Z$7)+(((IF($A$8=Nutrients!$B$79,Nutrients!$CY$79,(IF($A$8=Nutrients!$B$77,Nutrients!$CY$77,Nutrients!$CY$78)))))*Z$8))/2000/Z$236*100","v":60.132252631680281},{"$f":"(SUMPRODUCT(AA$9:AA$229,Nutrients!$CY$8:$CY$228)+(IF($A$7=Nutrients!$B$8,Nutrients!$CY$8,Nutrients!$CY$9)*AA$7)+(((IF($A$8=Nutrients!$B$79,Nutrients!$CY$79,(IF($A$8=Nutrients!$B$77,Nutrients!$CY$77,Nutrients!$CY$78)))))*AA$8))/2000/AA$236*100","v":59.398020538505577},{"$f":"(SUMPRODUCT(AB$9:AB$229,Nutrients!$CY$8:$CY$228)+(IF($A$7=Nutrients!$B$8,Nutrients!$CY$8,Nutrients!$CY$9)*AB$7)+(((IF($A$8=Nutrients!$B$79,Nutrients!$CY$79,(IF($A$8=Nutrients!$B$77,Nutrients!$CY$77,Nutrients!$CY$78)))))*AB$8))/2000/AB$236*100","v":58.919384079014478},null,{"$f":"(SUMPRODUCT(AD$9:AD$229,Nutrients!$CY$8:$CY$228)+(IF($A$7=Nutrients!$B$8,Nutrients!$CY$8,Nutrients!$CY$9)*AD$7)+(((IF($A$8=Nutrients!$B$79,Nutrients!$CY$79,(IF($A$8=Nutrients!$B$77,Nutrients!$CY$77,Nutrients!$CY$78)))))*AD$8))/2000/AD$236*100","v":57.111896726054802},{"$f":"(SUMPRODUCT(AE$9:AE$229,Nutrients!$CY$8:$CY$228)+(IF($A$7=Nutrients!$B$8,Nutrients!$CY$8,Nutrients!$CY$9)*AE$7)+(((IF($A$8=Nutrients!$B$79,Nutrients!$CY$79,(IF($A$8=Nutrients!$B$77,Nutrients!$CY$77,Nutrients!$CY$78)))))*AE$8))/2000/AE$236*100","v":58.240506100778923},{"$f":"(SUMPRODUCT(AF$9:AF$229,Nutrients!$CY$8:$CY$228)+(IF($A$7=Nutrients!$B$8,Nutrients!$CY$8,Nutrients!$CY$9)*AF$7)+(((IF($A$8=Nutrients!$B$79,Nutrients!$CY$79,(IF($A$8=Nutrients!$B$77,Nutrients!$CY$77,Nutrients!$CY$78)))))*AF$8))/2000/AF$236*100","v":59.855025414635818},{"$f":"(SUMPRODUCT(AG$9:AG$229,Nutrients!$CY$8:$CY$228)+(IF($A$7=Nutrients!$B$8,Nutrients!$CY$8,Nutrients!$CY$9)*AG$7)+(((IF($A$8=Nutrients!$B$79,Nutrients!$CY$79,(IF($A$8=Nutrients!$B$77,Nutrients!$CY$77,Nutrients!$CY$78)))))*AG$8))/2000/AG$236*100","v":60.405680327395395},{"$f":"(SUMPRODUCT(AH$9:AH$229,Nutrients!$CY$8:$CY$228)+(IF($A$7=Nutrients!$B$8,Nutrients!$CY$8,Nutrients!$CY$9)*AH$7)+(((IF($A$8=Nutrients!$B$79,Nutrients!$CY$79,(IF($A$8=Nutrients!$B$77,Nutrients!$CY$77,Nutrients!$CY$78)))))*AH$8))/2000/AH$236*100","v":59.679654615177483},{"$f":"(SUMPRODUCT(AI$9:AI$229,Nutrients!$CY$8:$CY$228)+(IF($A$7=Nutrients!$B$8,Nutrients!$CY$8,Nutrients!$CY$9)*AI$7)+(((IF($A$8=Nutrients!$B$79,Nutrients!$CY$79,(IF($A$8=Nutrients!$B$77,Nutrients!$CY$77,Nutrients!$CY$78)))))*AI$8))/2000/AI$236*100","v":59.2112401558446},null,{"$f":"(SUMPRODUCT(AK$9:AK$229,Nutrients!$CY$8:$CY$228)+(IF($A$7=Nutrients!$B$8,Nutrients!$CY$8,Nutrients!$CY$9)*AK$7)+(((IF($A$8=Nutrients!$B$79,Nutrients!$CY$79,(IF($A$8=Nutrients!$B$77,Nutrients!$CY$77,Nutrients!$CY$78)))))*AK$8))/2000/AK$236*100","v":57.30281498454174},{"$f":"(SUMPRODUCT(AL$9:AL$229,Nutrients!$CY$8:$CY$228)+(IF($A$7=Nutrients!$B$8,Nutrients!$CY$8,Nutrients!$CY$9)*AL$7)+(((IF($A$8=Nutrients!$B$79,Nutrients!$CY$79,(IF($A$8=Nutrients!$B$77,Nutrients!$CY$77,Nutrients!$CY$78)))))*AL$8))/2000/AL$236*100","v":58.456236035093625},{"$f":"(SUMPRODUCT(AM$9:AM$229,Nutrients!$CY$8:$CY$228)+(IF($A$7=Nutrients!$B$8,Nutrients!$CY$8,Nutrients!$CY$9)*AM$7)+(((IF($A$8=Nutrients!$B$79,Nutrients!$CY$79,(IF($A$8=Nutrients!$B$77,Nutrients!$CY$77,Nutrients!$CY$78)))))*AM$8))/2000/AM$236*100","v":60.099432859500403},{"$f":"(SUMPRODUCT(AN$9:AN$229,Nutrients!$CY$8:$CY$228)+(IF($A$7=Nutrients!$B$8,Nutrients!$CY$8,Nutrients!$CY$9)*AN$7)+(((IF($A$8=Nutrients!$B$79,Nutrients!$CY$79,(IF($A$8=Nutrients!$B$77,Nutrients!$CY$77,Nutrients!$CY$78)))))*AN$8))/2000/AN$236*100","v":60.665883477882751},{"$f":"(SUMPRODUCT(AO$9:AO$229,Nutrients!$CY$8:$CY$228)+(IF($A$7=Nutrients!$B$8,Nutrients!$CY$8,Nutrients!$CY$9)*AO$7)+(((IF($A$8=Nutrients!$B$79,Nutrients!$CY$79,(IF($A$8=Nutrients!$B$77,Nutrients!$CY$77,Nutrients!$CY$78)))))*AO$8))/2000/AO$236*100","v":59.956813185105595},{"$f":"(SUMPRODUCT(AP$9:AP$229,Nutrients!$CY$8:$CY$228)+(IF($A$7=Nutrients!$B$8,Nutrients!$CY$8,Nutrients!$CY$9)*AP$7)+(((IF($A$8=Nutrients!$B$79,Nutrients!$CY$79,(IF($A$8=Nutrients!$B$77,Nutrients!$CY$77,Nutrients!$CY$78)))))*AP$8))/2000/AP$236*100","v":59.503062980717857},null,{"$f":"(SUMPRODUCT(AR$9:AR$229,Nutrients!$CY$8:$CY$228)+(IF($A$7=Nutrients!$B$8,Nutrients!$CY$8,Nutrients!$CY$9)*AR$7)+(((IF($A$8=Nutrients!$B$79,Nutrients!$CY$79,(IF($A$8=Nutrients!$B$77,Nutrients!$CY$77,Nutrients!$CY$78)))))*AR$8))/2000/AR$236*100","v":57.49303641314242},{"$f":"(SUMPRODUCT(AS$9:AS$229,Nutrients!$CY$8:$CY$228)+(IF($A$7=Nutrients!$B$8,Nutrients!$CY$8,Nutrients!$CY$9)*AS$7)+(((IF($A$8=Nutrients!$B$79,Nutrients!$CY$79,(IF($A$8=Nutrients!$B$77,Nutrients!$CY$77,Nutrients!$CY$78)))))*AS$8))/2000/AS$236*100","v":58.671847810017866},{"$f":"(SUMPRODUCT(AT$9:AT$229,Nutrients!$CY$8:$CY$228)+(IF($A$7=Nutrients!$B$8,Nutrients!$CY$8,Nutrients!$CY$9)*AT$7)+(((IF($A$8=Nutrients!$B$79,Nutrients!$CY$79,(IF($A$8=Nutrients!$B$77,Nutrients!$CY$77,Nutrients!$CY$78)))))*AT$8))/2000/AT$236*100","v":60.341559763619379},{"$f":"(SUMPRODUCT(AU$9:AU$229,Nutrients!$CY$8:$CY$228)+(IF($A$7=Nutrients!$B$8,Nutrients!$CY$8,Nutrients!$CY$9)*AU$7)+(((IF($A$8=Nutrients!$B$79,Nutrients!$CY$79,(IF($A$8=Nutrients!$B$77,Nutrients!$CY$77,Nutrients!$CY$78)))))*AU$8))/2000/AU$236*100","v":60.919801535801795},{"$f":"(SUMPRODUCT(AV$9:AV$229,Nutrients!$CY$8:$CY$228)+(IF($A$7=Nutrients!$B$8,Nutrients!$CY$8,Nutrients!$CY$9)*AV$7)+(((IF($A$8=Nutrients!$B$79,Nutrients!$CY$79,(IF($A$8=Nutrients!$B$77,Nutrients!$CY$77,Nutrients!$CY$78)))))*AV$8))/2000/AV$236*100","v":60.233968612362347},{"$f":"(SUMPRODUCT(AW$9:AW$229,Nutrients!$CY$8:$CY$228)+(IF($A$7=Nutrients!$B$8,Nutrients!$CY$8,Nutrients!$CY$9)*AW$7)+(((IF($A$8=Nutrients!$B$79,Nutrients!$CY$79,(IF($A$8=Nutrients!$B$77,Nutrients!$CY$77,Nutrients!$CY$78)))))*AW$8))/2000/AW$236*100","v":59.794884166461273}]
["  Leu:Lys",{"$f":"(SUMPRODUCT(B$9:B$229,Nutrients!$CZ$8:$CZ$228)+(IF($A$7=Nutrients!$B$8,Nutrients!$CZ$8,Nutrients!$CZ$9)*B$7)+(((IF($A$8=Nutrients!$B$79,Nutrients!$CZ$79,(IF($A$8=Nutrients!$B$77,Nutrients!$CZ$77,Nutrients!$CZ$78)))))*B$8))/2000/B$236*100","v":120.89105591211504},{"$f":"(SUMPRODUCT(C$9:C$229,Nutrients!$CZ$8:$CZ$228)+(IF($A$7=Nutrients!$B$8,Nutrients!$CZ$8,Nutrients!$CZ$9)*C$7)+(((IF($A$8=Nutrients!$B$79,Nutrients!$CZ$79,(IF($A$8=Nutrients!$B$77,Nutrients!$CZ$77,Nutrients!$CZ$78)))))*C$8))/2000/C$236*100","v":128.00798727272854},{"$f":"(SUMPRODUCT(D$9:D$229,Nutrients!$CZ$8:$CZ$228)+(IF($A$7=Nutrients!$B$8,Nutrients!$CZ$8,Nutrients!$CZ$9)*D$7)+(((IF($A$8=Nutrients!$B$79,Nutrients!$CZ$79,(IF($A$8=Nutrients!$B$77,Nutrients!$CZ$77,Nutrients!$CZ$78)))))*D$8))/2000/D$236*100","v":136.56000538997691},{"$f":"(SUMPRODUCT(E$9:E$229,Nutrients!$CZ$8:$CZ$228)+(IF($A$7=Nutrients!$B$8,Nutrients!$CZ$8,Nutrients!$CZ$9)*E$7)+(((IF($A$8=Nutrients!$B$79,Nutrients!$CZ$79,(IF($A$8=Nutrients!$B$77,Nutrients!$CZ$77,Nutrients!$CZ$78)))))*E$8))/2000/E$236*100","v":143.9104596541508},{"$f":"(SUMPRODUCT(F$9:F$229,Nutrients!$CZ$8:$CZ$228)+(IF($A$7=Nutrients!$B$8,Nutrients!$CZ$8,Nutrients!$CZ$9)*F$7)+(((IF($A$8=Nutrients!$B$79,Nutrients!$CZ$79,(IF($A$8=Nutrients!$B$77,Nutrients!$CZ$77,Nutrients!$CZ$78)))))*F$8))/2000/F$236*100","v":148.44781930158939},{"$f":"(SUMPRODUCT(G$9:G$229,Nutrients!$CZ$8:$CZ$228)+(IF($A$7=Nutrients!$B$8,Nutrients!$CZ$8,Nutrients!$CZ$9)*G$7)+(((IF($A$8=Nutrients!$B$79,Nutrients!$CZ$79,(IF($A$8=Nutrients!$B$77,Nutrients!$CZ$77,Nutrients!$CZ$78)))))*G$8))/2000/G$236*100","v":151.29313192040226},null,{"$f":"(SUMPRODUCT(I$9:I$229,Nutrients!$CZ$8:$CZ$228)+(IF($A$7=Nutrients!$B$8,Nutrients!$CZ$8,Nutrients!$CZ$9)*I$7)+(((IF($A$8=Nutrients!$B$79,Nutrients!$CZ$79,(IF($A$8=Nutrients!$B$77,Nutrients!$CZ$77,Nutrients!$CZ$78)))))*I$8))/2000/I$236*100","v":126.15334641924505},{"$f":"(SUMPRODUCT(J$9:J$229,Nutrients!$CZ$8:$CZ$228)+(IF($A$7=Nutrients!$B$8,Nutrients!$CZ$8,Nutrients!$CZ$9)*J$7)+(((IF($A$8=Nutrients!$B$79,Nutrients!$CZ$79,(IF($A$8=Nutrients!$B$77,Nutrients!$CZ$77,Nutrients!$CZ$78)))))*J$8))/2000/J$236*100","v":133.94986688219049},{"$f":"(SUMPRODUCT(K$9:K$229,Nutrients!$CZ$8:$CZ$228)+(IF($A$7=Nutrients!$B$8,Nutrients!$CZ$8,Nutrients!$CZ$9)*K$7)+(((IF($A$8=Nutrients!$B$79,Nutrients!$CZ$79,(IF($A$8=Nutrients!$B$77,Nutrients!$CZ$77,Nutrients!$CZ$78)))))*K$8))/2000/K$236*100","v":143.28835055252139},{"$f":"(SUMPRODUCT(L$9:L$229,Nutrients!$CZ$8:$CZ$228)+(IF($A$7=Nutrients!$B$8,Nutrients!$CZ$8,Nutrients!$CZ$9)*L$7)+(((IF($A$8=Nutrients!$B$79,Nutrients!$CZ$79,(IF($A$8=Nutrients!$B$77,Nutrients!$CZ$77,Nutrients!$CZ$78)))))*L$8))/2000/L$236*100","v":151.45490050644713},{"$f":"(SUMPRODUCT(M$9:M$229,Nutrients!$CZ$8:$CZ$228)+(IF($A$7=Nutrients!$B$8,Nutrients!$CZ$8,Nutrients!$CZ$9)*M$7)+(((IF($A$8=Nutrients!$B$79,Nutrients!$CZ$79,(IF($A$8=Nutrients!$B$77,Nutrients!$CZ$77,Nutrients!$CZ$78)))))*M$8))/2000/M$236*100","v":156.68351261793944},{"$f":"(SUMPRODUCT(N$9:N$229,Nutrients!$CZ$8:$CZ$228)+(IF($A$7=Nutrients!$B$8,Nutrients!$CZ$8,Nutrients!$CZ$9)*N$7)+(((IF($A$8=Nutrients!$B$79,Nutrients!$CZ$79,(IF($A$8=Nutrients!$B$77,Nutrients!$CZ$77,Nutrients!$CZ$78)))))*N$8))/2000/N$236*100","v":159.96557233579415},null,{"$f":"(SUMPRODUCT(P$9:P$229,Nutrients!$CZ$8:$CZ$228)+(IF($A$7=Nutrients!$B$8,Nutrients!$CZ$8,Nutrients!$CZ$9)*P$7)+(((IF($A$8=Nutrients!$B$79,Nutrients!$CZ$79,(IF($A$8=Nutrients!$B$77,Nutrients!$CZ$77,Nutrients!$CZ$78)))))*P$8))/2000/P$236*100","v":131.41007653750111},{"$f":"(SUMPRODUCT(Q$9:Q$229,Nutrients!$CZ$8:$CZ$228)+(IF($A$7=Nutrients!$B$8,Nutrients!$CZ$8,Nutrients!$CZ$9)*Q$7)+(((IF($A$8=Nutrients!$B$79,Nutrients!$CZ$79,(IF($A$8=Nutrients!$B$77,Nutrients!$CZ$77,Nutrients!$CZ$78)))))*Q$8))/2000/Q$236*100","v":139.89278671211153},{"$f":"(SUMPRODUCT(R$9:R$229,Nutrients!$CZ$8:$CZ$228)+(IF($A$7=Nutrients!$B$8,Nutrients!$CZ$8,Nutrients!$CZ$9)*R$7)+(((IF($A$8=Nutrients!$B$79,Nutrients!$CZ$79,(IF($A$8=Nutrients!$B$77,Nutrients!$CZ$77,Nutrients!$CZ$78)))))*R$8))/2000/R$236*100","v":150.00928900752982},{"$f":"(SUMPRODUCT(S$9:S$229,Nutrients!$CZ$8:$CZ$228)+(IF($A$7=Nutrients!$B$8,Nutrients!$CZ$8,Nutrients!$CZ$9)*S$7)+(((IF($A$8=Nutrients!$B$79,Nutrients!$CZ$79,(IF($A$8=Nutrients!$B$77,Nutrients!$CZ$77,Nutrients!$CZ$78)))))*S$8))/2000/S$236*100","v":158.99731460497054},{"$f":"(SUMPRODUCT(T$9:T$229,Nutrients!$CZ$8:$CZ$228)+(IF($A$7=Nutrients!$B$8,Nutrients!$CZ$8,Nutrients!$CZ$9)*T$7)+(((IF($A$8=Nutrients!$B$79,Nutrients!$CZ$79,(IF($A$8=Nutrients!$B$77,Nutrients!$CZ$77,Nutrients!$CZ$78)))))*T$8))/2000/T$236*100","v":164.91924194332404},{"$f":"(SUMPRODUCT(U$9:U$229,Nutrients!$CZ$8:$CZ$228)+(IF($A$7=Nutrients!$B$8,Nutrients!$CZ$8,Nutrients!$CZ$9)*U$7)+(((IF($A$8=Nutrients!$B$79,Nutrients!$CZ$79,(IF($A$8=Nutrients!$B$77,Nutrients!$CZ$77,Nutrients!$CZ$78)))))*U$8))/2000/U$236*100","v":168.63980808937592},null,{"$f":"(SUMPRODUCT(W$9:W$229,Nutrients!$CZ$8:$CZ$228)+(IF($A$7=Nutrients!$B$8,Nutrients!$CZ$8,Nutrients!$CZ$9)*W$7)+(((IF($A$8=Nutrients!$B$79,Nutrients!$CZ$79,(IF($A$8=Nutrients!$B$77,Nutrients!$CZ$77,Nutrients!$CZ$78)))))*W$8))/2000/W$236*100","v":136.66875190450719},{"$f":"(SUMPRODUCT(X$9:X$229,Nutrients!$CZ$8:$CZ$228)+(IF($A$7=Nutrients!$B$8,Nutrients!$CZ$8,Nutrients!$CZ$9)*X$7)+(((IF($A$8=Nutrients!$B$79,Nutrients!$CZ$79,(IF($A$8=Nutrients!$B$77,Nutrients!$CZ$77,Nutrients!$CZ$78)))))*X$8))/2000/X$236*100","v":145.83639180190204},{"$f":"(SUMPRODUCT(Y$9:Y$229,Nutrients!$CZ$8:$CZ$228)+(IF($A$7=Nutrients!$B$8,Nutrients!$CZ$8,Nutrients!$CZ$9)*Y$7)+(((IF($A$8=Nutrients!$B$79,Nutrients!$CZ$79,(IF($A$8=Nutrients!$B$77,Nutrients!$CZ$77,Nutrients!$CZ$78)))))*Y$8))/2000/Y$236*100","v":156.73466530581547},{"$f":"(SUMPRODUCT(Z$9:Z$229,Nutrients!$CZ$8:$CZ$228)+(IF($A$7=Nutrients!$B$8,Nutrients!$CZ$8,Nutrients!$CZ$9)*Z$7)+(((IF($A$8=Nutrients!$B$79,Nutrients!$CZ$79,(IF($A$8=Nutrients!$B$77,Nutrients!$CZ$77,Nutrients!$CZ$78)))))*Z$8))/2000/Z$236*100","v":166.53810778568766},{"$f":"(SUMPRODUCT(AA$9:AA$229,Nutrients!$CZ$8:$CZ$228)+(IF($A$7=Nutrients!$B$8,Nutrients!$CZ$8,Nutrients!$CZ$9)*AA$7)+(((IF($A$8=Nutrients!$B$79,Nutrients!$CZ$79,(IF($A$8=Nutrients!$B$77,Nutrients!$CZ$77,Nutrients!$CZ$78)))))*AA$8))/2000/AA$236*100","v":173.14474228522045},{"$f":"(SUMPRODUCT(AB$9:AB$229,Nutrients!$CZ$8:$CZ$228)+(IF($A$7=Nutrients!$B$8,Nutrients!$CZ$8,Nutrients!$CZ$9)*AB$7)+(((IF($A$8=Nutrients!$B$79,Nutrients!$CZ$79,(IF($A$8=Nutrients!$B$77,Nutrients!$CZ$77,Nutrients!$CZ$78)))))*AB$8))/2000/AB$236*100","v":177.26956638713284},null,{"$f":"(SUMPRODUCT(AD$9:AD$229,Nutrients!$CZ$8:$CZ$228)+(IF($A$7=Nutrients!$B$8,Nutrients!$CZ$8,Nutrients!$CZ$9)*AD$7)+(((IF($A$8=Nutrients!$B$79,Nutrients!$CZ$79,(IF($A$8=Nutrients!$B$77,Nutrients!$CZ$77,Nutrients!$CZ$78)))))*AD$8))/2000/AD$236*100","v":141.92407400009793},{"$f":"(SUMPRODUCT(AE$9:AE$229,Nutrients!$CZ$8:$CZ$228)+(IF($A$7=Nutrients!$B$8,Nutrients!$CZ$8,Nutrients!$CZ$9)*AE$7)+(((IF($A$8=Nutrients!$B$79,Nutrients!$CZ$79,(IF($A$8=Nutrients!$B$77,Nutrients!$CZ$77,Nutrients!$CZ$78)))))*AE$8))/2000/AE$236*100","v":151.78177157718335},{"$f":"(SUMPRODUCT(AF$9:AF$229,Nutrients!$CZ$8:$CZ$228)+(IF($A$7=Nutrients!$B$8,Nutrients!$CZ$8,Nutrients!$CZ$9)*AF$7)+(((IF($A$8=Nutrients!$B$79,Nutrients!$CZ$79,(IF($A$8=Nutrients!$B$77,Nutrients!$CZ$77,Nutrients!$CZ$78)))))*AF$8))/2000/AF$236*100","v":163.4550192152594},{"$f":"(SUMPRODUCT(AG$9:AG$229,Nutrients!$CZ$8:$CZ$228)+(IF($A$7=Nutrients!$B$8,Nutrients!$CZ$8,Nutrients!$CZ$9)*AG$7)+(((IF($A$8=Nutrients!$B$79,Nutrients!$CZ$79,(IF($A$8=Nutrients!$B$77,Nutrients!$CZ$77,Nutrients!$CZ$78)))))*AG$8))/2000/AG$236*100","v":174.07604654836027},{"$f":"(SUMPRODUCT(AH$9:AH$229,Nutrients!$CZ$8:$CZ$228)+(IF($A$7=Nutrients!$B$8,Nutrients!$CZ$8,Nutrients!$CZ$9)*AH$7)+(((IF($A$8=Nutrients!$B$79,Nutrients!$CZ$79,(IF($A$8=Nutrients!$B$77,Nutrients!$CZ$77,Nutrients!$CZ$78)))))*AH$8))/2000/AH$236*100","v":181.26588865414911},{"$f":"(SUMPRODUCT(AI$9:AI$229,Nutrients!$CZ$8:$CZ$228)+(IF($A$7=Nutrients!$B$8,Nutrients!$CZ$8,Nutrients!$CZ$9)*AI$7)+(((IF($A$8=Nutrients!$B$79,Nutrients!$CZ$79,(IF($A$8=Nutrients!$B$77,Nutrients!$CZ$77,Nutrients!$CZ$78)))))*AI$8))/2000/AI$236*100","v":185.79342749252737},null,{"$f":"(SUMPRODUCT(AK$9:AK$229,Nutrients!$CZ$8:$CZ$228)+(IF($A$7=Nutrients!$B$8,Nutrients!$CZ$8,Nutrients!$CZ$9)*AK$7)+(((IF($A$8=Nutrients!$B$79,Nutrients!$CZ$79,(IF($A$8=Nutrients!$B$77,Nutrients!$CZ$77,Nutrients!$CZ$78)))))*AK$8))/2000/AK$236*100","v":147.1769982199956},{"$f":"(SUMPRODUCT(AL$9:AL$229,Nutrients!$CZ$8:$CZ$228)+(IF($A$7=Nutrients!$B$8,Nutrients!$CZ$8,Nutrients!$CZ$9)*AL$7)+(((IF($A$8=Nutrients!$B$79,Nutrients!$CZ$79,(IF($A$8=Nutrients!$B$77,Nutrients!$CZ$77,Nutrients!$CZ$78)))))*AL$8))/2000/AL$236*100","v":157.72158533081253},{"$f":"(SUMPRODUCT(AM$9:AM$229,Nutrients!$CZ$8:$CZ$228)+(IF($A$7=Nutrients!$B$8,Nutrients!$CZ$8,Nutrients!$CZ$9)*AM$7)+(((IF($A$8=Nutrients!$B$79,Nutrients!$CZ$79,(IF($A$8=Nutrients!$B$77,Nutrients!$CZ$77,Nutrients!$CZ$78)))))*AM$8))/2000/AM$236*100","v":170.17743042139909},{"$f":"(SUMPRODUCT(AN$9:AN$229,Nutrients!$CZ$8:$CZ$228)+(IF($A$7=Nutrients!$B$8,Nutrients!$CZ$8,Nutrients!$CZ$9)*AN$7)+(((IF($A$8=Nutrients!$B$79,Nutrients!$CZ$79,(IF($A$8=Nutrients!$B$77,Nutrients!$CZ$77,Nutrients!$CZ$78)))))*AN$8))/2000/AN$236*100","v":181.52961697098581},{"$f":"(SUMPRODUCT(AO$9:AO$229,Nutrients!$CZ$8:$CZ$228)+(IF($A$7=Nutrients!$B$8,Nutrients!$CZ$8,Nutrients!$CZ$9)*AO$7)+(((IF($A$8=Nutrients!$B$79,Nutrients!$CZ$79,(IF($A$8=Nutrients!$B$77,Nutrients!$CZ$77,Nutrients!$CZ$78)))))*AO$8))/2000/AO$236*100","v":189.35848273123401},{"$f":"(SUMPRODUCT(AP$9:AP$229,Nutrients!$CZ$8:$CZ$228)+(IF($A$7=Nutrients!$B$8,Nutrients!$CZ$8,Nutrients!$CZ$9)*AP$7)+(((IF($A$8=Nutrients!$B$79,Nutrients!$CZ$79,(IF($A$8=Nutrients!$B$77,Nutrients!$CZ$77,Nutrients!$CZ$78)))))*AP$8))/2000/AP$236*100","v":194.31707646114458},null,{"$f":"(SUMPRODUCT(AR$9:AR$229,Nutrients!$CZ$8:$CZ$228)+(IF($A$7=Nutrients!$B$8,Nutrients!$CZ$8,Nutrients!$CZ$9)*AR$7)+(((IF($A$8=Nutrients!$B$79,Nutrients!$CZ$79,(IF($A$8=Nutrients!$B$77,Nutrients!$CZ$77,Nutrients!$CZ$78)))))*AR$8))/2000/AR$236*100","v":152.42547688960877},{"$f":"(SUMPRODUCT(AS$9:AS$229,Nutrients!$CZ$8:$CZ$228)+(IF($A$7=Nutrients!$B$8,Nutrients!$CZ$8,Nutrients!$CZ$9)*AS$7)+(((IF($A$8=Nutrients!$B$79,Nutrients!$CZ$79,(IF($A$8=Nutrients!$B$77,Nutrients!$CZ$77,Nutrients!$CZ$78)))))*AS$8))/2000/AS$236*100","v":163.66064526557969},{"$f":"(SUMPRODUCT(AT$9:AT$229,Nutrients!$CZ$8:$CZ$228)+(IF($A$7=Nutrients!$B$8,Nutrients!$CZ$8,Nutrients!$CZ$9)*AT$7)+(((IF($A$8=Nutrients!$B$79,Nutrients!$CZ$79,(IF($A$8=Nutrients!$B$77,Nutrients!$CZ$77,Nutrients!$CZ$78)))))*AT$8))/2000/AT$236*100","v":176.88529251195064},{"$f":"(SUMPRODUCT(AU$9:AU$229,Nutrients!$CZ$8:$CZ$228)+(IF($A$7=Nutrients!$B$8,Nutrients!$CZ$8,Nutrients!$CZ$9)*AU$7)+(((IF($A$8=Nutrients!$B$79,Nutrients!$CZ$79,(IF($A$8=Nutrients!$B$77,Nutrients!$CZ$77,Nutrients!$CZ$78)))))*AU$8))/2000/AU$236*100","v":188.94309052692159},{"$f":"(SUMPRODUCT(AV$9:AV$229,Nutrients!$CZ$8:$CZ$228)+(IF($A$7=Nutrients!$B$8,Nutrients!$CZ$8,Nutrients!$CZ$9)*AV$7)+(((IF($A$8=Nutrients!$B$79,Nutrients!$CZ$79,(IF($A$8=Nutrients!$B$77,Nutrients!$CZ$77,Nutrients!$CZ$78)))))*AV$8))/2000/AV$236*100","v":197.45105675908766},{"$f":"(SUMPRODUCT(AW$9:AW$229,Nutrients!$CZ$8:$CZ$228)+(IF($A$7=Nutrients!$B$8,Nutrients!$CZ$8,Nutrients!$CZ$9)*AW$7)+(((IF($A$8=Nutrients!$B$79,Nutrients!$CZ$79,(IF($A$8=Nutrients!$B$77,Nutrients!$CZ$77,Nutrients!$CZ$78)))))*AW$8))/2000/AW$236*100","v":202.84071497264128}]
["  Met:Lys",{"$f":"(SUMPRODUCT(B$9:B$229,Nutrients!$DB$8:$DB$228)+(IF($A$7=Nutrients!$B$8,Nutrients!$DB$8,Nutrients!$DB$9)*B$7)+(((IF($A$8=Nutrients!$B$79,Nutrients!$DB$79,(IF($A$8=Nutrients!$B$77,Nutrients!$DB$77,Nutrients!$DB$78)))))*B$8))/2000/B$236*100","v":33.81111138845354},{"$f":"(SUMPRODUCT(C$9:C$229,Nutrients!$DB$8:$DB$228)+(IF($A$7=Nutrients!$B$8,Nutrients!$DB$8,Nutrients!$DB$9)*C$7)+(((IF($A$8=Nutrients!$B$79,Nutrients!$DB$79,(IF($A$8=Nutrients!$B$77,Nutrients!$DB$77,Nutrients!$DB$78)))))*C$8))/2000/C$236*100","v":32.524236458699015},{"$f":"(SUMPRODUCT(D$9:D$229,Nutrients!$DB$8:$DB$228)+(IF($A$7=Nutrients!$B$8,Nutrients!$DB$8,Nutrients!$DB$9)*D$7)+(((IF($A$8=Nutrients!$B$79,Nutrients!$DB$79,(IF($A$8=Nutrients!$B$77,Nutrients!$DB$77,Nutrients!$DB$78)))))*D$8))/2000/D$236*100","v":30.974376755587524},{"$f":"(SUMPRODUCT(E$9:E$229,Nutrients!$DB$8:$DB$228)+(IF($A$7=Nutrients!$B$8,Nutrients!$DB$8,Nutrients!$DB$9)*E$7)+(((IF($A$8=Nutrients!$B$79,Nutrients!$DB$79,(IF($A$8=Nutrients!$B$77,Nutrients!$DB$77,Nutrients!$DB$78)))))*E$8))/2000/E$236*100","v":30.712595168445802},{"$f":"(SUMPRODUCT(F$9:F$229,Nutrients!$DB$8:$DB$228)+(IF($A$7=Nutrients!$B$8,Nutrients!$DB$8,Nutrients!$DB$9)*F$7)+(((IF($A$8=Nutrients!$B$79,Nutrients!$DB$79,(IF($A$8=Nutrients!$B$77,Nutrients!$DB$77,Nutrients!$DB$78)))))*F$8))/2000/F$236*100","v":30.00631713197205},{"$f":"(SUMPRODUCT(G$9:G$229,Nutrients!$DB$8:$DB$228)+(IF($A$7=Nutrients!$B$8,Nutrients!$DB$8,Nutrients!$DB$9)*G$7)+(((IF($A$8=Nutrients!$B$79,Nutrients!$DB$79,(IF($A$8=Nutrients!$B$77,Nutrients!$DB$77,Nutrients!$DB$78)))))*G$8))/2000/G$236*100","v":30.329377095070086},null,{"$f":"(SUMPRODUCT(I$9:I$229,Nutrients!$DB$8:$DB$228)+(IF($A$7=Nutrients!$B$8,Nutrients!$DB$8,Nutrients!$DB$9)*I$7)+(((IF($A$8=Nutrients!$B$79,Nutrients!$DB$79,(IF($A$8=Nutrients!$B$77,Nutrients!$DB$77,Nutrients!$DB$78)))))*I$8))/2000/I$236*100","v":33.639114383995413},{"$f":"(SUMPRODUCT(J$9:J$229,Nutrients!$DB$8:$DB$228)+(IF($A$7=Nutrients!$B$8,Nutrients!$DB$8,Nutrients!$DB$9)*J$7)+(((IF($A$8=Nutrients!$B$79,Nutrients!$DB$79,(IF($A$8=Nutrients!$B$77,Nutrients!$DB$77,Nutrients!$DB$78)))))*J$8))/2000/J$236*100","v":32.329958648925178},{"$f":"(SUMPRODUCT(K$9:K$229,Nutrients!$DB$8:$DB$228)+(IF($A$7=Nutrients!$B$8,Nutrients!$DB$8,Nutrients!$DB$9)*K$7)+(((IF($A$8=Nutrients!$B$79,Nutrients!$DB$79,(IF($A$8=Nutrients!$B$77,Nutrients!$DB$77,Nutrients!$DB$78)))))*K$8))/2000/K$236*100","v":30.762360048222149},{"$f":"(SUMPRODUCT(L$9:L$229,Nutrients!$DB$8:$DB$228)+(IF($A$7=Nutrients!$B$8,Nutrients!$DB$8,Nutrients!$DB$9)*L$7)+(((IF($A$8=Nutrients!$B$79,Nutrients!$DB$79,(IF($A$8=Nutrients!$B$77,Nutrients!$DB$77,Nutrients!$DB$78)))))*L$8))/2000/L$236*100","v":30.353898832965641},{"$f":"(SUMPRODUCT(M$9:M$229,Nutrients!$DB$8:$DB$228)+(IF($A$7=Nutrients!$B$8,Nutrients!$DB$8,Nutrients!$DB$9)*M$7)+(((IF($A$8=Nutrients!$B$79,Nutrients!$DB$79,(IF($A$8=Nutrients!$B$77,Nutrients!$DB$77,Nutrients!$DB$78)))))*M$8))/2000/M$236*100","v":29.614748556131985},{"$f":"(SUMPRODUCT(N$9:N$229,Nutrients!$DB$8:$DB$228)+(IF($A$7=Nutrients!$B$8,Nutrients!$DB$8,Nutrients!$DB$9)*N$7)+(((IF($A$8=Nutrients!$B$79,Nutrients!$DB$79,(IF($A$8=Nutrients!$B$77,Nutrients!$DB$77,Nutrients!$DB$78)))))*N$8))/2000/N$236*100","v":30.054235697387703},null,{"$f":"(SUMPRODUCT(P$9:P$229,Nutrients!$DB$8:$DB$228)+(IF($A$7=Nutrients!$B$8,Nutrients!$DB$8,Nutrients!$DB$9)*P$7)+(((IF($A$8=Nutrients!$B$79,Nutrients!$DB$79,(IF($A$8=Nutrients!$B$77,Nutrients!$DB$77,Nutrients!$DB$78)))))*P$8))/2000/P$236*100","v":33.473188643175746},{"$f":"(SUMPRODUCT(Q$9:Q$229,Nutrients!$DB$8:$DB$228)+(IF($A$7=Nutrients!$B$8,Nutrients!$DB$8,Nutrients!$DB$9)*Q$7)+(((IF($A$8=Nutrients!$B$79,Nutrients!$DB$79,(IF($A$8=Nutrients!$B$77,Nutrients!$DB$77,Nutrients!$DB$78)))))*Q$8))/2000/Q$236*100","v":32.141860224339851},{"$f":"(SUMPRODUCT(R$9:R$229,Nutrients!$DB$8:$DB$228)+(IF($A$7=Nutrients!$B$8,Nutrients!$DB$8,Nutrients!$DB$9)*R$7)+(((IF($A$8=Nutrients!$B$79,Nutrients!$DB$79,(IF($A$8=Nutrients!$B$77,Nutrients!$DB$77,Nutrients!$DB$78)))))*R$8))/2000/R$236*100","v":30.549038986327115},{"$f":"(SUMPRODUCT(S$9:S$229,Nutrients!$DB$8:$DB$228)+(IF($A$7=Nutrients!$B$8,Nutrients!$DB$8,Nutrients!$DB$9)*S$7)+(((IF($A$8=Nutrients!$B$79,Nutrients!$DB$79,(IF($A$8=Nutrients!$B$77,Nutrients!$DB$77,Nutrients!$DB$78)))))*S$8))/2000/S$236*100","v":30.114690371582114},{"$f":"(SUMPRODUCT(T$9:T$229,Nutrients!$DB$8:$DB$228)+(IF($A$7=Nutrients!$B$8,Nutrients!$DB$8,Nutrients!$DB$9)*T$7)+(((IF($A$8=Nutrients!$B$79,Nutrients!$DB$79,(IF($A$8=Nutrients!$B$77,Nutrients!$DB$77,Nutrients!$DB$78)))))*T$8))/2000/T$236*100","v":29.064764255587484},{"$f":"(SUMPRODUCT(U$9:U$229,Nutrients!$DB$8:$DB$228)+(IF($A$7=Nutrients!$B$8,Nutrients!$DB$8,Nutrients!$DB$9)*U$7)+(((IF($A$8=Nutrients!$B$79,Nutrients!$DB$79,(IF($A$8=Nutrients!$B$77,Nutrients!$DB$77,Nutrients!$DB$78)))))*U$8))/2000/U$236*100","v":29.654282056744773},null,{"$f":"(SUMPRODUCT(W$9:W$229,Nutrients!$DB$8:$DB$228)+(IF($A$7=Nutrients!$B$8,Nutrients!$DB$8,Nutrients!$DB$9)*W$7)+(((IF($A$8=Nutrients!$B$79,Nutrients!$DB$79,(IF($A$8=Nutrients!$B$77,Nutrients!$DB$77,Nutrients!$DB$78)))))*W$8))/2000/W$236*100","v":33.307605469415201},{"$f":"(SUMPRODUCT(X$9:X$229,Nutrients!$DB$8:$DB$228)+(IF($A$7=Nutrients!$B$8,Nutrients!$DB$8,Nutrients!$DB$9)*X$7)+(((IF($A$8=Nutrients!$B$79,Nutrients!$DB$79,(IF($A$8=Nutrients!$B$77,Nutrients!$DB$77,Nutrients!$DB$78)))))*X$8))/2000/X$236*100","v":31.95388247710143},{"$f":"(SUMPRODUCT(Y$9:Y$229,Nutrients!$DB$8:$DB$228)+(IF($A$7=Nutrients!$B$8,Nutrients!$DB$8,Nutrients!$DB$9)*Y$7)+(((IF($A$8=Nutrients!$B$79,Nutrients!$DB$79,(IF($A$8=Nutrients!$B$77,Nutrients!$DB$77,Nutrients!$DB$78)))))*Y$8))/2000/Y$236*100","v":30.336499448604915},{"$f":"(SUMPRODUCT(Z$9:Z$229,Nutrients!$DB$8:$DB$228)+(IF($A$7=Nutrients!$B$8,Nutrients!$DB$8,Nutrients!$DB$9)*Z$7)+(((IF($A$8=Nutrients!$B$79,Nutrients!$DB$79,(IF($A$8=Nutrients!$B$77,Nutrients!$DB$77,Nutrients!$DB$78)))))*Z$8))/2000/Z$236*100","v":29.875196459278243},{"$f":"(SUMPRODUCT(AA$9:AA$229,Nutrients!$DB$8:$DB$228)+(IF($A$7=Nutrients!$B$8,Nutrients!$DB$8,Nutrients!$DB$9)*AA$7)+(((IF($A$8=Nutrients!$B$79,Nutrients!$DB$79,(IF($A$8=Nutrients!$B$77,Nutrients!$DB$77,Nutrients!$DB$78)))))*AA$8))/2000/AA$236*100","v":30.110486235968249},{"$f":"(SUMPRODUCT(AB$9:AB$229,Nutrients!$DB$8:$DB$228)+(IF($A$7=Nutrients!$B$8,Nutrients!$DB$8,Nutrients!$DB$9)*AB$7)+(((IF($A$8=Nutrients!$B$79,Nutrients!$DB$79,(IF($A$8=Nutrients!$B$77,Nutrients!$DB$77,Nutrients!$DB$78)))))*AB$8))/2000/AB$236*100","v":30.749698927487231},null,{"$f":"(SUMPRODUCT(AD$9:AD$229,Nutrients!$DB$8:$DB$228)+(IF($A$7=Nutrients!$B$8,Nutrients!$DB$8,Nutrients!$DB$9)*AD$7)+(((IF($A$8=Nutrients!$B$79,Nutrients!$DB$79,(IF($A$8=Nutrients!$B$77,Nutrients!$DB$77,Nutrients!$DB$78)))))*AD$8))/2000/AD$236*100","v":33.141431769467623},{"$f":"(SUMPRODUCT(AE$9:AE$229,Nutrients!$DB$8:$DB$228)+(IF($A$7=Nutrients!$B$8,Nutrients!$DB$8,Nutrients!$DB$9)*AE$7)+(((IF($A$8=Nutrients!$B$79,Nutrients!$DB$79,(IF($A$8=Nutrients!$B$77,Nutrients!$DB$77,Nutrients!$DB$78)))))*AE$8))/2000/AE$236*100","v":31.766217259964591},{"$f":"(SUMPRODUCT(AF$9:AF$229,Nutrients!$DB$8:$DB$228)+(IF($A$7=Nutrients!$B$8,Nutrients!$DB$8,Nutrients!$DB$9)*AF$7)+(((IF($A$8=Nutrients!$B$79,Nutrients!$DB$79,(IF($A$8=Nutrients!$B$77,Nutrients!$DB$77,Nutrients!$DB$78)))))*AF$8))/2000/AF$236*100","v":30.123075445605334},{"$f":"(SUMPRODUCT(AG$9:AG$229,Nutrients!$DB$8:$DB$228)+(IF($A$7=Nutrients!$B$8,Nutrients!$DB$8,Nutrients!$DB$9)*AG$7)+(((IF($A$8=Nutrients!$B$79,Nutrients!$DB$79,(IF($A$8=Nutrients!$B$77,Nutrients!$DB$77,Nutrients!$DB$78)))))*AG$8))/2000/AG$236*100","v":30.042615848904852},{"$f":"(SUMPRODUCT(AH$9:AH$229,Nutrients!$DB$8:$DB$228)+(IF($A$7=Nutrients!$B$8,Nutrients!$DB$8,Nutrients!$DB$9)*AH$7)+(((IF($A$8=Nutrients!$B$79,Nutrients!$DB$79,(IF($A$8=Nutrients!$B$77,Nutrients!$DB$77,Nutrients!$DB$78)))))*AH$8))/2000/AH$236*100","v":31.137831012083133},{"$f":"(SUMPRODUCT(AI$9:AI$229,Nutrients!$DB$8:$DB$228)+(IF($A$7=Nutrients!$B$8,Nutrients!$DB$8,Nutrients!$DB$9)*AI$7)+(((IF($A$8=Nutrients!$B$79,Nutrients!$DB$79,(IF($A$8=Nutrients!$B$77,Nutrients!$DB$77,Nutrients!$DB$78)))))*AI$8))/2000/AI$236*100","v":31.826466826083461},null,{"$f":"(SUMPRODUCT(AK$9:AK$229,Nutrients!$DB$8:$DB$228)+(IF($A$7=Nutrients!$B$8,Nutrients!$DB$8,Nutrients!$DB$9)*AK$7)+(((IF($A$8=Nutrients!$B$79,Nutrients!$DB$79,(IF($A$8=Nutrients!$B$77,Nutrients!$DB$77,Nutrients!$DB$78)))))*AK$8))/2000/AK$236*100","v":32.974835792819277},{"$f":"(SUMPRODUCT(AL$9:AL$229,Nutrients!$DB$8:$DB$228)+(IF($A$7=Nutrients!$B$8,Nutrients!$DB$8,Nutrients!$DB$9)*AL$7)+(((IF($A$8=Nutrients!$B$79,Nutrients!$DB$79,(IF($A$8=Nutrients!$B$77,Nutrients!$DB$77,Nutrients!$DB$78)))))*AL$8))/2000/AL$236*100","v":31.577571841365927},{"$f":"(SUMPRODUCT(AM$9:AM$229,Nutrients!$DB$8:$DB$228)+(IF($A$7=Nutrients!$B$8,Nutrients!$DB$8,Nutrients!$DB$9)*AM$7)+(((IF($A$8=Nutrients!$B$79,Nutrients!$DB$79,(IF($A$8=Nutrients!$B$77,Nutrients!$DB$77,Nutrients!$DB$78)))))*AM$8))/2000/AM$236*100","v":29.204680528946447},{"$f":"(SUMPRODUCT(AN$9:AN$229,Nutrients!$DB$8:$DB$228)+(IF($A$7=Nutrients!$B$8,Nutrients!$DB$8,Nutrients!$DB$9)*AN$7)+(((IF($A$8=Nutrients!$B$79,Nutrients!$DB$79,(IF($A$8=Nutrients!$B$77,Nutrients!$DB$77,Nutrients!$DB$78)))))*AN$8))/2000/AN$236*100","v":30.986209561941617},{"$f":"(SUMPRODUCT(AO$9:AO$229,Nutrients!$DB$8:$DB$228)+(IF($A$7=Nutrients!$B$8,Nutrients!$DB$8,Nutrients!$DB$9)*AO$7)+(((IF($A$8=Nutrients!$B$79,Nutrients!$DB$79,(IF($A$8=Nutrients!$B$77,Nutrients!$DB$77,Nutrients!$DB$78)))))*AO$8))/2000/AO$236*100","v":32.160147601109905},{"$f":"(SUMPRODUCT(AP$9:AP$229,Nutrients!$DB$8:$DB$228)+(IF($A$7=Nutrients!$B$8,Nutrients!$DB$8,Nutrients!$DB$9)*AP$7)+(((IF($A$8=Nutrients!$B$79,Nutrients!$DB$79,(IF($A$8=Nutrients!$B$77,Nutrients!$DB$77,Nutrients!$DB$78)))))*AP$8))/2000/AP$236*100","v":32.903197366438519},null,{"$f":"(SUMPRODUCT(AR$9:AR$229,Nutrients!$DB$8:$DB$228)+(IF($A$7=Nutrients!$B$8,Nutrients!$DB$8,Nutrients!$DB$9)*AR$7)+(((IF($A$8=Nutrients!$B$79,Nutrients!$DB$79,(IF($A$8=Nutrients!$B$77,Nutrients!$DB$77,Nutrients!$DB$78)))))*AR$8))/2000/AR$236*100","v":32.80745693475945},{"$f":"(SUMPRODUCT(AS$9:AS$229,Nutrients!$DB$8:$DB$228)+(IF($A$7=Nutrients!$B$8,Nutrients!$DB$8,Nutrients!$DB$9)*AS$7)+(((IF($A$8=Nutrients!$B$79,Nutrients!$DB$79,(IF($A$8=Nutrients!$B$77,Nutrients!$DB$77,Nutrients!$DB$78)))))*AS$8))/2000/AS$236*100","v":31.388793671873238},{"$f":"(SUMPRODUCT(AT$9:AT$229,Nutrients!$DB$8:$DB$228)+(IF($A$7=Nutrients!$B$8,Nutrients!$DB$8,Nutrients!$DB$9)*AT$7)+(((IF($A$8=Nutrients!$B$79,Nutrients!$DB$79,(IF($A$8=Nutrients!$B$77,Nutrients!$DB$77,Nutrients!$DB$78)))))*AT$8))/2000/AT$236*100","v":30.057103420630703},{"$f":"(SUMPRODUCT(AU$9:AU$229,Nutrients!$DB$8:$DB$228)+(IF($A$7=Nutrients!$B$8,Nutrients!$DB$8,Nutrients!$DB$9)*AU$7)+(((IF($A$8=Nutrients!$B$79,Nutrients!$DB$79,(IF($A$8=Nutrients!$B$77,Nutrients!$DB$77,Nutrients!$DB$78)))))*AU$8))/2000/AU$236*100","v":31.922742036305614},{"$f":"(SUMPRODUCT(AV$9:AV$229,Nutrients!$DB$8:$DB$228)+(IF($A$7=Nutrients!$B$8,Nutrients!$DB$8,Nutrients!$DB$9)*AV$7)+(((IF($A$8=Nutrients!$B$79,Nutrients!$DB$79,(IF($A$8=Nutrients!$B$77,Nutrients!$DB$77,Nutrients!$DB$78)))))*AV$8))/2000/AV$236*100","v":33.182460659376822},{"$f":"(SUMPRODUCT(AW$9:AW$229,Nutrients!$DB$8:$DB$228)+(IF($A$7=Nutrients!$B$8,Nutrients!$DB$8,Nutrients!$DB$9)*AW$7)+(((IF($A$8=Nutrients!$B$79,Nutrients!$DB$79,(IF($A$8=Nutrients!$B$77,Nutrients!$DB$77,Nutrients!$DB$78)))))*AW$8))/2000/AW$236*100","v":33.979926065247597}]
["  Met & Cys:Lys",{"$f":"(SUMPRODUCT(B$9:B$229,Nutrients!$DC$8:$DC$228)+(IF($A$7=Nutrients!$B$8,Nutrients!$DC$8,Nutrients!$DC$9)*B$7)+(((IF($A$8=Nutrients!$B$79,Nutrients!$DC$79,(IF($A$8=Nutrients!$B$77,Nutrients!$DC$77,Nutrients!$DC$78)))))*B$8))/2000/B$236*100","v":55.997569552010205},{"$f":"(SUMPRODUCT(C$9:C$229,Nutrients!$DC$8:$DC$228)+(IF($A$7=Nutrients!$B$8,Nutrients!$DC$8,Nutrients!$DC$9)*C$7)+(((IF($A$8=Nutrients!$B$79,Nutrients!$DC$79,(IF($A$8=Nutrients!$B$77,Nutrients!$DC$77,Nutrients!$DC$78)))))*C$8))/2000/C$236*100","v":55.998500355280811},{"$f":"(SUMPRODUCT(D$9:D$229,Nutrients!$DC$8:$DC$228)+(IF($A$7=Nutrients!$B$8,Nutrients!$DC$8,Nutrients!$DC$9)*D$7)+(((IF($A$8=Nutrients!$B$79,Nutrients!$DC$79,(IF($A$8=Nutrients!$B$77,Nutrients!$DC$77,Nutrients!$DC$78)))))*D$8))/2000/D$236*100","v":55.998232689384523},{"$f":"(SUMPRODUCT(E$9:E$229,Nutrients!$DC$8:$DC$228)+(IF($A$7=Nutrients!$B$8,Nutrients!$DC$8,Nutrients!$DC$9)*E$7)+(((IF($A$8=Nutrients!$B$79,Nutrients!$DC$79,(IF($A$8=Nutrients!$B$77,Nutrients!$DC$77,Nutrients!$DC$78)))))*E$8))/2000/E$236*100","v":57.061456017842524},{"$f":"(SUMPRODUCT(F$9:F$229,Nutrients!$DC$8:$DC$228)+(IF($A$7=Nutrients!$B$8,Nutrients!$DC$8,Nutrients!$DC$9)*F$7)+(((IF($A$8=Nutrients!$B$79,Nutrients!$DC$79,(IF($A$8=Nutrients!$B$77,Nutrients!$DC$77,Nutrients!$DC$78)))))*F$8))/2000/F$236*100","v":57.164463746746605},{"$f":"(SUMPRODUCT(G$9:G$229,Nutrients!$DC$8:$DC$228)+(IF($A$7=Nutrients!$B$8,Nutrients!$DC$8,Nutrients!$DC$9)*G$7)+(((IF($A$8=Nutrients!$B$79,Nutrients!$DC$79,(IF($A$8=Nutrients!$B$77,Nutrients!$DC$77,Nutrients!$DC$78)))))*G$8))/2000/G$236*100","v":57.994909290351856},null,{"$f":"(SUMPRODUCT(I$9:I$229,Nutrients!$DC$8:$DC$228)+(IF($A$7=Nutrients!$B$8,Nutrients!$DC$8,Nutrients!$DC$9)*I$7)+(((IF($A$8=Nutrients!$B$79,Nutrients!$DC$79,(IF($A$8=Nutrients!$B$77,Nutrients!$DC$77,Nutrients!$DC$78)))))*I$8))/2000/I$236*100","v":55.992193381026787},{"$f":"(SUMPRODUCT(J$9:J$229,Nutrients!$DC$8:$DC$228)+(IF($A$7=Nutrients!$B$8,Nutrients!$DC$8,Nutrients!$DC$9)*J$7)+(((IF($A$8=Nutrients!$B$79,Nutrients!$DC$79,(IF($A$8=Nutrients!$B$77,Nutrients!$DC$77,Nutrients!$DC$78)))))*J$8))/2000/J$236*100","v":55.99089713001797},{"$f":"(SUMPRODUCT(K$9:K$229,Nutrients!$DC$8:$DC$228)+(IF($A$7=Nutrients!$B$8,Nutrients!$DC$8,Nutrients!$DC$9)*K$7)+(((IF($A$8=Nutrients!$B$79,Nutrients!$DC$79,(IF($A$8=Nutrients!$B$77,Nutrients!$DC$77,Nutrients!$DC$78)))))*K$8))/2000/K$236*100","v":55.998452650885746},{"$f":"(SUMPRODUCT(L$9:L$229,Nutrients!$DC$8:$DC$228)+(IF($A$7=Nutrients!$B$8,Nutrients!$DC$8,Nutrients!$DC$9)*L$7)+(((IF($A$8=Nutrients!$B$79,Nutrients!$DC$79,(IF($A$8=Nutrients!$B$77,Nutrients!$DC$77,Nutrients!$DC$78)))))*L$8))/2000/L$236*100","v":56.939933318303517},{"$f":"(SUMPRODUCT(M$9:M$229,Nutrients!$DC$8:$DC$228)+(IF($A$7=Nutrients!$B$8,Nutrients!$DC$8,Nutrients!$DC$9)*M$7)+(((IF($A$8=Nutrients!$B$79,Nutrients!$DC$79,(IF($A$8=Nutrients!$B$77,Nutrients!$DC$77,Nutrients!$DC$78)))))*M$8))/2000/M$236*100","v":57.031794928726917},{"$f":"(SUMPRODUCT(N$9:N$229,Nutrients!$DC$8:$DC$228)+(IF($A$7=Nutrients!$B$8,Nutrients!$DC$8,Nutrients!$DC$9)*N$7)+(((IF($A$8=Nutrients!$B$79,Nutrients!$DC$79,(IF($A$8=Nutrients!$B$77,Nutrients!$DC$77,Nutrients!$DC$78)))))*N$8))/2000/N$236*100","v":57.991985948148503},null,{"$f":"(SUMPRODUCT(P$9:P$229,Nutrients!$DC$8:$DC$228)+(IF($A$7=Nutrients!$B$8,Nutrients!$DC$8,Nutrients!$DC$9)*P$7)+(((IF($A$8=Nutrients!$B$79,Nutrients!$DC$79,(IF($A$8=Nutrients!$B$77,Nutrients!$DC$77,Nutrients!$DC$78)))))*P$8))/2000/P$236*100","v":55.991881790608325},{"$f":"(SUMPRODUCT(Q$9:Q$229,Nutrients!$DC$8:$DC$228)+(IF($A$7=Nutrients!$B$8,Nutrients!$DC$8,Nutrients!$DC$9)*Q$7)+(((IF($A$8=Nutrients!$B$79,Nutrients!$DC$79,(IF($A$8=Nutrients!$B$77,Nutrients!$DC$77,Nutrients!$DC$78)))))*Q$8))/2000/Q$236*100","v":55.989661617118692},{"$f":"(SUMPRODUCT(R$9:R$229,Nutrients!$DC$8:$DC$228)+(IF($A$7=Nutrients!$B$8,Nutrients!$DC$8,Nutrients!$DC$9)*R$7)+(((IF($A$8=Nutrients!$B$79,Nutrients!$DC$79,(IF($A$8=Nutrients!$B$77,Nutrients!$DC$77,Nutrients!$DC$78)))))*R$8))/2000/R$236*100","v":55.996027307201459},{"$f":"(SUMPRODUCT(S$9:S$229,Nutrients!$DC$8:$DC$228)+(IF($A$7=Nutrients!$B$8,Nutrients!$DC$8,Nutrients!$DC$9)*S$7)+(((IF($A$8=Nutrients!$B$79,Nutrients!$DC$79,(IF($A$8=Nutrients!$B$77,Nutrients!$DC$77,Nutrients!$DC$78)))))*S$8))/2000/S$236*100","v":56.937531558324061},{"$f":"(SUMPRODUCT(T$9:T$229,Nutrients!$DC$8:$DC$228)+(IF($A$7=Nutrients!$B$8,Nutrients!$DC$8,Nutrients!$DC$9)*T$7)+(((IF($A$8=Nutrients!$B$79,Nutrients!$DC$79,(IF($A$8=Nutrients!$B$77,Nutrients!$DC$77,Nutrients!$DC$78)))))*T$8))/2000/T$236*100","v":56.740716905274446},{"$f":"(SUMPRODUCT(U$9:U$229,Nutrients!$DC$8:$DC$228)+(IF($A$7=Nutrients!$B$8,Nutrients!$DC$8,Nutrients!$DC$9)*U$7)+(((IF($A$8=Nutrients!$B$79,Nutrients!$DC$79,(IF($A$8=Nutrients!$B$77,Nutrients!$DC$77,Nutrients!$DC$78)))))*U$8))/2000/U$236*100","v":57.86457540078468},null,{"$f":"(SUMPRODUCT(W$9:W$229,Nutrients!$DC$8:$DC$228)+(IF($A$7=Nutrients!$B$8,Nutrients!$DC$8,Nutrients!$DC$9)*W$7)+(((IF($A$8=Nutrients!$B$79,Nutrients!$DC$79,(IF($A$8=Nutrients!$B$77,Nutrients!$DC$77,Nutrients!$DC$78)))))*W$8))/2000/W$236*100","v":55.992264945673},{"$f":"(SUMPRODUCT(X$9:X$229,Nutrients!$DC$8:$DC$228)+(IF($A$7=Nutrients!$B$8,Nutrients!$DC$8,Nutrients!$DC$9)*X$7)+(((IF($A$8=Nutrients!$B$79,Nutrients!$DC$79,(IF($A$8=Nutrients!$B$77,Nutrients!$DC$77,Nutrients!$DC$78)))))*X$8))/2000/X$236*100","v":55.988670844743801},{"$f":"(SUMPRODUCT(Y$9:Y$229,Nutrients!$DC$8:$DC$228)+(IF($A$7=Nutrients!$B$8,Nutrients!$DC$8,Nutrients!$DC$9)*Y$7)+(((IF($A$8=Nutrients!$B$79,Nutrients!$DC$79,(IF($A$8=Nutrients!$B$77,Nutrients!$DC$77,Nutrients!$DC$78)))))*Y$8))/2000/Y$236*100","v":55.995186938997385},{"$f":"(SUMPRODUCT(Z$9:Z$229,Nutrients!$DC$8:$DC$228)+(IF($A$7=Nutrients!$B$8,Nutrients!$DC$8,Nutrients!$DC$9)*Z$7)+(((IF($A$8=Nutrients!$B$79,Nutrients!$DC$79,(IF($A$8=Nutrients!$B$77,Nutrients!$DC$77,Nutrients!$DC$78)))))*Z$8))/2000/Z$236*100","v":56.934550887640022},{"$f":"(SUMPRODUCT(AA$9:AA$229,Nutrients!$DC$8:$DC$228)+(IF($A$7=Nutrients!$B$8,Nutrients!$DC$8,Nutrients!$DC$9)*AA$7)+(((IF($A$8=Nutrients!$B$79,Nutrients!$DC$79,(IF($A$8=Nutrients!$B$77,Nutrients!$DC$77,Nutrients!$DC$78)))))*AA$8))/2000/AA$236*100","v":58.043493251888066},{"$f":"(SUMPRODUCT(AB$9:AB$229,Nutrients!$DC$8:$DC$228)+(IF($A$7=Nutrients!$B$8,Nutrients!$DC$8,Nutrients!$DC$9)*AB$7)+(((IF($A$8=Nutrients!$B$79,Nutrients!$DC$79,(IF($A$8=Nutrients!$B$77,Nutrients!$DC$77,Nutrients!$DC$78)))))*AB$8))/2000/AB$236*100","v":59.224482924059998},null,{"$f":"(SUMPRODUCT(AD$9:AD$229,Nutrients!$DC$8:$DC$228)+(IF($A$7=Nutrients!$B$8,Nutrients!$DC$8,Nutrients!$DC$9)*AD$7)+(((IF($A$8=Nutrients!$B$79,Nutrients!$DC$79,(IF($A$8=Nutrients!$B$77,Nutrients!$DC$77,Nutrients!$DC$78)))))*AD$8))/2000/AD$236*100","v":55.991450480037741},{"$f":"(SUMPRODUCT(AE$9:AE$229,Nutrients!$DC$8:$DC$228)+(IF($A$7=Nutrients!$B$8,Nutrients!$DC$8,Nutrients!$DC$9)*AE$7)+(((IF($A$8=Nutrients!$B$79,Nutrients!$DC$79,(IF($A$8=Nutrients!$B$77,Nutrients!$DC$77,Nutrients!$DC$78)))))*AE$8))/2000/AE$236*100","v":55.988313901193443},{"$f":"(SUMPRODUCT(AF$9:AF$229,Nutrients!$DC$8:$DC$228)+(IF($A$7=Nutrients!$B$8,Nutrients!$DC$8,Nutrients!$DC$9)*AF$7)+(((IF($A$8=Nutrients!$B$79,Nutrients!$DC$79,(IF($A$8=Nutrients!$B$77,Nutrients!$DC$77,Nutrients!$DC$78)))))*AF$8))/2000/AF$236*100","v":55.992552824897182},{"$f":"(SUMPRODUCT(AG$9:AG$229,Nutrients!$DC$8:$DC$228)+(IF($A$7=Nutrients!$B$8,Nutrients!$DC$8,Nutrients!$DC$9)*AG$7)+(((IF($A$8=Nutrients!$B$79,Nutrients!$DC$79,(IF($A$8=Nutrients!$B$77,Nutrients!$DC$77,Nutrients!$DC$78)))))*AG$8))/2000/AG$236*100","v":57.337966739503713},{"$f":"(SUMPRODUCT(AH$9:AH$229,Nutrients!$DC$8:$DC$228)+(IF($A$7=Nutrients!$B$8,Nutrients!$DC$8,Nutrients!$DC$9)*AH$7)+(((IF($A$8=Nutrients!$B$79,Nutrients!$DC$79,(IF($A$8=Nutrients!$B$77,Nutrients!$DC$77,Nutrients!$DC$78)))))*AH$8))/2000/AH$236*100","v":59.308999582846958},{"$f":"(SUMPRODUCT(AI$9:AI$229,Nutrients!$DC$8:$DC$228)+(IF($A$7=Nutrients!$B$8,Nutrients!$DC$8,Nutrients!$DC$9)*AI$7)+(((IF($A$8=Nutrients!$B$79,Nutrients!$DC$79,(IF($A$8=Nutrients!$B$77,Nutrients!$DC$77,Nutrients!$DC$78)))))*AI$8))/2000/AI$236*100","v":60.546569270959516},null,{"$f":"(SUMPRODUCT(AK$9:AK$229,Nutrients!$DC$8:$DC$228)+(IF($A$7=Nutrients!$B$8,Nutrients!$DC$8,Nutrients!$DC$9)*AK$7)+(((IF($A$8=Nutrients!$B$79,Nutrients!$DC$79,(IF($A$8=Nutrients!$B$77,Nutrients!$DC$77,Nutrients!$DC$78)))))*AK$8))/2000/AK$236*100","v":55.989779613231761},{"$f":"(SUMPRODUCT(AL$9:AL$229,Nutrients!$DC$8:$DC$228)+(IF($A$7=Nutrients!$B$8,Nutrients!$DC$8,Nutrients!$DC$9)*AL$7)+(((IF($A$8=Nutrients!$B$79,Nutrients!$DC$79,(IF($A$8=Nutrients!$B$77,Nutrients!$DC$77,Nutrients!$DC$78)))))*AL$8))/2000/AL$236*100","v":55.985969053318897},{"$f":"(SUMPRODUCT(AM$9:AM$229,Nutrients!$DC$8:$DC$228)+(IF($A$7=Nutrients!$B$8,Nutrients!$DC$8,Nutrients!$DC$9)*AM$7)+(((IF($A$8=Nutrients!$B$79,Nutrients!$DC$79,(IF($A$8=Nutrients!$B$77,Nutrients!$DC$77,Nutrients!$DC$78)))))*AM$8))/2000/AM$236*100","v":55.285320261331805},{"$f":"(SUMPRODUCT(AN$9:AN$229,Nutrients!$DC$8:$DC$228)+(IF($A$7=Nutrients!$B$8,Nutrients!$DC$8,Nutrients!$DC$9)*AN$7)+(((IF($A$8=Nutrients!$B$79,Nutrients!$DC$79,(IF($A$8=Nutrients!$B$77,Nutrients!$DC$77,Nutrients!$DC$78)))))*AN$8))/2000/AN$236*100","v":58.502282411178264},{"$f":"(SUMPRODUCT(AO$9:AO$229,Nutrients!$DC$8:$DC$228)+(IF($A$7=Nutrients!$B$8,Nutrients!$DC$8,Nutrients!$DC$9)*AO$7)+(((IF($A$8=Nutrients!$B$79,Nutrients!$DC$79,(IF($A$8=Nutrients!$B$77,Nutrients!$DC$77,Nutrients!$DC$78)))))*AO$8))/2000/AO$236*100","v":60.564308464358277},{"$f":"(SUMPRODUCT(AP$9:AP$229,Nutrients!$DC$8:$DC$228)+(IF($A$7=Nutrients!$B$8,Nutrients!$DC$8,Nutrients!$DC$9)*AP$7)+(((IF($A$8=Nutrients!$B$79,Nutrients!$DC$79,(IF($A$8=Nutrients!$B$77,Nutrients!$DC$77,Nutrients!$DC$78)))))*AP$8))/2000/AP$236*100","v":61.868579853220787},null,{"$f":"(SUMPRODUCT(AR$9:AR$229,Nutrients!$DC$8:$DC$228)+(IF($A$7=Nutrients!$B$8,Nutrients!$DC$8,Nutrients!$DC$9)*AR$7)+(((IF($A$8=Nutrients!$B$79,Nutrients!$DC$79,(IF($A$8=Nutrients!$B$77,Nutrients!$DC$77,Nutrients!$DC$78)))))*AR$8))/2000/AR$236*100","v":55.986521018388366},{"$f":"(SUMPRODUCT(AS$9:AS$229,Nutrients!$DC$8:$DC$228)+(IF($A$7=Nutrients!$B$8,Nutrients!$DC$8,Nutrients!$DC$9)*AS$7)+(((IF($A$8=Nutrients!$B$79,Nutrients!$DC$79,(IF($A$8=Nutrients!$B$77,Nutrients!$DC$77,Nutrients!$DC$78)))))*AS$8))/2000/AS$236*100","v":55.9833549790796},{"$f":"(SUMPRODUCT(AT$9:AT$229,Nutrients!$DC$8:$DC$228)+(IF($A$7=Nutrients!$B$8,Nutrients!$DC$8,Nutrients!$DC$9)*AT$7)+(((IF($A$8=Nutrients!$B$79,Nutrients!$DC$79,(IF($A$8=Nutrients!$B$77,Nutrients!$DC$77,Nutrients!$DC$78)))))*AT$8))/2000/AT$236*100","v":56.346271455015348},{"$f":"(SUMPRODUCT(AU$9:AU$229,Nutrients!$DC$8:$DC$228)+(IF($A$7=Nutrients!$B$8,Nutrients!$DC$8,Nutrients!$DC$9)*AU$7)+(((IF($A$8=Nutrients!$B$79,Nutrients!$DC$79,(IF($A$8=Nutrients!$B$77,Nutrients!$DC$77,Nutrients!$DC$78)))))*AU$8))/2000/AU$236*100","v":59.652277489139585},{"$f":"(SUMPRODUCT(AV$9:AV$229,Nutrients!$DC$8:$DC$228)+(IF($A$7=Nutrients!$B$8,Nutrients!$DC$8,Nutrients!$DC$9)*AV$7)+(((IF($A$8=Nutrients!$B$79,Nutrients!$DC$79,(IF($A$8=Nutrients!$B$77,Nutrients!$DC$77,Nutrients!$DC$78)))))*AV$8))/2000/AV$236*100","v":61.819610185287765},{"$f":"(SUMPRODUCT(AW$9:AW$229,Nutrients!$DC$8:$DC$228)+(IF($A$7=Nutrients!$B$8,Nutrients!$DC$8,Nutrients!$DC$9)*AW$7)+(((IF($A$8=Nutrients!$B$79,Nutrients!$DC$79,(IF($A$8=Nutrients!$B$77,Nutrients!$DC$77,Nutrients!$DC$78)))))*AW$8))/2000/AW$236*100","v":63.190586700722051}]
["  Thr:Lys",{"$f":"(SUMPRODUCT(B$9:B$229,Nutrients!$DF$8:$DF$228)+(IF($A$7=Nutrients!$B$8,Nutrients!$DF$8,Nutrients!$DF$9)*B$7)+(((IF($A$8=Nutrients!$B$79,Nutrients!$DF$79,(IF($A$8=Nutrients!$B$77,Nutrients!$DF$77,Nutrients!$DF$78)))))*B$8))/2000/B$236*100","v":61.999883344833172},{"$f":"(SUMPRODUCT(C$9:C$229,Nutrients!$DF$8:$DF$228)+(IF($A$7=Nutrients!$B$8,Nutrients!$DF$8,Nutrients!$DF$9)*C$7)+(((IF($A$8=Nutrients!$B$79,Nutrients!$DF$79,(IF($A$8=Nutrients!$B$77,Nutrients!$DF$77,Nutrients!$DF$78)))))*C$8))/2000/C$236*100","v":61.999810412599423},{"$f":"(SUMPRODUCT(D$9:D$229,Nutrients!$DF$8:$DF$228)+(IF($A$7=Nutrients!$B$8,Nutrients!$DF$8,Nutrients!$DF$9)*D$7)+(((IF($A$8=Nutrients!$B$79,Nutrients!$DF$79,(IF($A$8=Nutrients!$B$77,Nutrients!$DF$77,Nutrients!$DF$78)))))*D$8))/2000/D$236*100","v":61.998899620636607},{"$f":"(SUMPRODUCT(E$9:E$229,Nutrients!$DF$8:$DF$228)+(IF($A$7=Nutrients!$B$8,Nutrients!$DF$8,Nutrients!$DF$9)*E$7)+(((IF($A$8=Nutrients!$B$79,Nutrients!$DF$79,(IF($A$8=Nutrients!$B$77,Nutrients!$DF$77,Nutrients!$DF$78)))))*E$8))/2000/E$236*100","v":63.099738392882202},{"$f":"(SUMPRODUCT(F$9:F$229,Nutrients!$DF$8:$DF$228)+(IF($A$7=Nutrients!$B$8,Nutrients!$DF$8,Nutrients!$DF$9)*F$7)+(((IF($A$8=Nutrients!$B$79,Nutrients!$DF$79,(IF($A$8=Nutrients!$B$77,Nutrients!$DF$77,Nutrients!$DF$78)))))*F$8))/2000/F$236*100","v":63.259126445235324},{"$f":"(SUMPRODUCT(G$9:G$229,Nutrients!$DF$8:$DF$228)+(IF($A$7=Nutrients!$B$8,Nutrients!$DF$8,Nutrients!$DF$9)*G$7)+(((IF($A$8=Nutrients!$B$79,Nutrients!$DF$79,(IF($A$8=Nutrients!$B$77,Nutrients!$DF$77,Nutrients!$DF$78)))))*G$8))/2000/G$236*100","v":63.997526400855939},null,{"$f":"(SUMPRODUCT(I$9:I$229,Nutrients!$DF$8:$DF$228)+(IF($A$7=Nutrients!$B$8,Nutrients!$DF$8,Nutrients!$DF$9)*I$7)+(((IF($A$8=Nutrients!$B$79,Nutrients!$DF$79,(IF($A$8=Nutrients!$B$77,Nutrients!$DF$77,Nutrients!$DF$78)))))*I$8))/2000/I$236*100","v":61.972422233007066},{"$f":"(SUMPRODUCT(J$9:J$229,Nutrients!$DF$8:$DF$228)+(IF($A$7=Nutrients!$B$8,Nutrients!$DF$8,Nutrients!$DF$9)*J$7)+(((IF($A$8=Nutrients!$B$79,Nutrients!$DF$79,(IF($A$8=Nutrients!$B$77,Nutrients!$DF$77,Nutrients!$DF$78)))))*J$8))/2000/J$236*100","v":61.967075492406551},{"$f":"(SUMPRODUCT(K$9:K$229,Nutrients!$DF$8:$DF$228)+(IF($A$7=Nutrients!$B$8,Nutrients!$DF$8,Nutrients!$DF$9)*K$7)+(((IF($A$8=Nutrients!$B$79,Nutrients!$DF$79,(IF($A$8=Nutrients!$B$77,Nutrients!$DF$77,Nutrients!$DF$78)))))*K$8))/2000/K$236*100","v":61.962839291501993},{"$f":"(SUMPRODUCT(L$9:L$229,Nutrients!$DF$8:$DF$228)+(IF($A$7=Nutrients!$B$8,Nutrients!$DF$8,Nutrients!$DF$9)*L$7)+(((IF($A$8=Nutrients!$B$79,Nutrients!$DF$79,(IF($A$8=Nutrients!$B$77,Nutrients!$DF$77,Nutrients!$DF$78)))))*L$8))/2000/L$236*100","v":62.998733962907352},{"$f":"(SUMPRODUCT(M$9:M$229,Nutrients!$DF$8:$DF$228)+(IF($A$7=Nutrients!$B$8,Nutrients!$DF$8,Nutrients!$DF$9)*M$7)+(((IF($A$8=Nutrients!$B$79,Nutrients!$DF$79,(IF($A$8=Nutrients!$B$77,Nutrients!$DF$77,Nutrients!$DF$78)))))*M$8))/2000/M$236*100","v":63.018696565502999},{"$f":"(SUMPRODUCT(N$9:N$229,Nutrients!$DF$8:$DF$228)+(IF($A$7=Nutrients!$B$8,Nutrients!$DF$8,Nutrients!$DF$9)*N$7)+(((IF($A$8=Nutrients!$B$79,Nutrients!$DF$79,(IF($A$8=Nutrients!$B$77,Nutrients!$DF$77,Nutrients!$DF$78)))))*N$8))/2000/N$236*100","v":63.949462939509537},null,{"$f":"(SUMPRODUCT(P$9:P$229,Nutrients!$DF$8:$DF$228)+(IF($A$7=Nutrients!$B$8,Nutrients!$DF$8,Nutrients!$DF$9)*P$7)+(((IF($A$8=Nutrients!$B$79,Nutrients!$DF$79,(IF($A$8=Nutrients!$B$77,Nutrients!$DF$77,Nutrients!$DF$78)))))*P$8))/2000/P$236*100","v":61.944010207716261},{"$f":"(SUMPRODUCT(Q$9:Q$229,Nutrients!$DF$8:$DF$228)+(IF($A$7=Nutrients!$B$8,Nutrients!$DF$8,Nutrients!$DF$9)*Q$7)+(((IF($A$8=Nutrients!$B$79,Nutrients!$DF$79,(IF($A$8=Nutrients!$B$77,Nutrients!$DF$77,Nutrients!$DF$78)))))*Q$8))/2000/Q$236*100","v":61.981480338144976},{"$f":"(SUMPRODUCT(R$9:R$229,Nutrients!$DF$8:$DF$228)+(IF($A$7=Nutrients!$B$8,Nutrients!$DF$8,Nutrients!$DF$9)*R$7)+(((IF($A$8=Nutrients!$B$79,Nutrients!$DF$79,(IF($A$8=Nutrients!$B$77,Nutrients!$DF$77,Nutrients!$DF$78)))))*R$8))/2000/R$236*100","v":61.978644928766613},{"$f":"(SUMPRODUCT(S$9:S$229,Nutrients!$DF$8:$DF$228)+(IF($A$7=Nutrients!$B$8,Nutrients!$DF$8,Nutrients!$DF$9)*S$7)+(((IF($A$8=Nutrients!$B$79,Nutrients!$DF$79,(IF($A$8=Nutrients!$B$77,Nutrients!$DF$77,Nutrients!$DF$78)))))*S$8))/2000/S$236*100","v":62.957002685246323},{"$f":"(SUMPRODUCT(T$9:T$229,Nutrients!$DF$8:$DF$228)+(IF($A$7=Nutrients!$B$8,Nutrients!$DF$8,Nutrients!$DF$9)*T$7)+(((IF($A$8=Nutrients!$B$79,Nutrients!$DF$79,(IF($A$8=Nutrients!$B$77,Nutrients!$DF$77,Nutrients!$DF$78)))))*T$8))/2000/T$236*100","v":62.973520681498648},{"$f":"(SUMPRODUCT(U$9:U$229,Nutrients!$DF$8:$DF$228)+(IF($A$7=Nutrients!$B$8,Nutrients!$DF$8,Nutrients!$DF$9)*U$7)+(((IF($A$8=Nutrients!$B$79,Nutrients!$DF$79,(IF($A$8=Nutrients!$B$77,Nutrients!$DF$77,Nutrients!$DF$78)))))*U$8))/2000/U$236*100","v":63.970262249462607},null,{"$f":"(SUMPRODUCT(W$9:W$229,Nutrients!$DF$8:$DF$228)+(IF($A$7=Nutrients!$B$8,Nutrients!$DF$8,Nutrients!$DF$9)*W$7)+(((IF($A$8=Nutrients!$B$79,Nutrients!$DF$79,(IF($A$8=Nutrients!$B$77,Nutrients!$DF$77,Nutrients!$DF$78)))))*W$8))/2000/W$236*100","v":61.957453069165894},{"$f":"(SUMPRODUCT(X$9:X$229,Nutrients!$DF$8:$DF$228)+(IF($A$7=Nutrients!$B$8,Nutrients!$DF$8,Nutrients!$DF$9)*X$7)+(((IF($A$8=Nutrients!$B$79,Nutrients!$DF$79,(IF($A$8=Nutrients!$B$77,Nutrients!$DF$77,Nutrients!$DF$78)))))*X$8))/2000/X$236*100","v":61.996002374038916},{"$f":"(SUMPRODUCT(Y$9:Y$229,Nutrients!$DF$8:$DF$228)+(IF($A$7=Nutrients!$B$8,Nutrients!$DF$8,Nutrients!$DF$9)*Y$7)+(((IF($A$8=Nutrients!$B$79,Nutrients!$DF$79,(IF($A$8=Nutrients!$B$77,Nutrients!$DF$77,Nutrients!$DF$78)))))*Y$8))/2000/Y$236*100","v":61.995209506641778},{"$f":"(SUMPRODUCT(Z$9:Z$229,Nutrients!$DF$8:$DF$228)+(IF($A$7=Nutrients!$B$8,Nutrients!$DF$8,Nutrients!$DF$9)*Z$7)+(((IF($A$8=Nutrients!$B$79,Nutrients!$DF$79,(IF($A$8=Nutrients!$B$77,Nutrients!$DF$77,Nutrients!$DF$78)))))*Z$8))/2000/Z$236*100","v":62.974613964196891},{"$f":"(SUMPRODUCT(AA$9:AA$229,Nutrients!$DF$8:$DF$228)+(IF($A$7=Nutrients!$B$8,Nutrients!$DF$8,Nutrients!$DF$9)*AA$7)+(((IF($A$8=Nutrients!$B$79,Nutrients!$DF$79,(IF($A$8=Nutrients!$B$77,Nutrients!$DF$77,Nutrients!$DF$78)))))*AA$8))/2000/AA$236*100","v":62.99167809387135},{"$f":"(SUMPRODUCT(AB$9:AB$229,Nutrients!$DF$8:$DF$228)+(IF($A$7=Nutrients!$B$8,Nutrients!$DF$8,Nutrients!$DF$9)*AB$7)+(((IF($A$8=Nutrients!$B$79,Nutrients!$DF$79,(IF($A$8=Nutrients!$B$77,Nutrients!$DF$77,Nutrients!$DF$78)))))*AB$8))/2000/AB$236*100","v":63.98345521881982},null,{"$f":"(SUMPRODUCT(AD$9:AD$229,Nutrients!$DF$8:$DF$228)+(IF($A$7=Nutrients!$B$8,Nutrients!$DF$8,Nutrients!$DF$9)*AD$7)+(((IF($A$8=Nutrients!$B$79,Nutrients!$DF$79,(IF($A$8=Nutrients!$B$77,Nutrients!$DF$77,Nutrients!$DF$78)))))*AD$8))/2000/AD$236*100","v":61.970322468756635},{"$f":"(SUMPRODUCT(AE$9:AE$229,Nutrients!$DF$8:$DF$228)+(IF($A$7=Nutrients!$B$8,Nutrients!$DF$8,Nutrients!$DF$9)*AE$7)+(((IF($A$8=Nutrients!$B$79,Nutrients!$DF$79,(IF($A$8=Nutrients!$B$77,Nutrients!$DF$77,Nutrients!$DF$78)))))*AE$8))/2000/AE$236*100","v":62.010827908908773},{"$f":"(SUMPRODUCT(AF$9:AF$229,Nutrients!$DF$8:$DF$228)+(IF($A$7=Nutrients!$B$8,Nutrients!$DF$8,Nutrients!$DF$9)*AF$7)+(((IF($A$8=Nutrients!$B$79,Nutrients!$DF$79,(IF($A$8=Nutrients!$B$77,Nutrients!$DF$77,Nutrients!$DF$78)))))*AF$8))/2000/AF$236*100","v":62.010915177472292},{"$f":"(SUMPRODUCT(AG$9:AG$229,Nutrients!$DF$8:$DF$228)+(IF($A$7=Nutrients!$B$8,Nutrients!$DF$8,Nutrients!$DF$9)*AG$7)+(((IF($A$8=Nutrients!$B$79,Nutrients!$DF$79,(IF($A$8=Nutrients!$B$77,Nutrients!$DF$77,Nutrients!$DF$78)))))*AG$8))/2000/AG$236*100","v":62.991737093017306},{"$f":"(SUMPRODUCT(AH$9:AH$229,Nutrients!$DF$8:$DF$228)+(IF($A$7=Nutrients!$B$8,Nutrients!$DF$8,Nutrients!$DF$9)*AH$7)+(((IF($A$8=Nutrients!$B$79,Nutrients!$DF$79,(IF($A$8=Nutrients!$B$77,Nutrients!$DF$77,Nutrients!$DF$78)))))*AH$8))/2000/AH$236*100","v":62.991989344717858},{"$f":"(SUMPRODUCT(AI$9:AI$229,Nutrients!$DF$8:$DF$228)+(IF($A$7=Nutrients!$B$8,Nutrients!$DF$8,Nutrients!$DF$9)*AI$7)+(((IF($A$8=Nutrients!$B$79,Nutrients!$DF$79,(IF($A$8=Nutrients!$B$77,Nutrients!$DF$77,Nutrients!$DF$78)))))*AI$8))/2000/AI$236*100","v":63.978538111997615},null,{"$f":"(SUMPRODUCT(AK$9:AK$229,Nutrients!$DF$8:$DF$228)+(IF($A$7=Nutrients!$B$8,Nutrients!$DF$8,Nutrients!$DF$9)*AK$7)+(((IF($A$8=Nutrients!$B$79,Nutrients!$DF$79,(IF($A$8=Nutrients!$B$77,Nutrients!$DF$77,Nutrients!$DF$78)))))*AK$8))/2000/AK$236*100","v":61.982781794099886},{"$f":"(SUMPRODUCT(AL$9:AL$229,Nutrients!$DF$8:$DF$228)+(IF($A$7=Nutrients!$B$8,Nutrients!$DF$8,Nutrients!$DF$9)*AL$7)+(((IF($A$8=Nutrients!$B$79,Nutrients!$DF$79,(IF($A$8=Nutrients!$B$77,Nutrients!$DF$77,Nutrients!$DF$78)))))*AL$8))/2000/AL$236*100","v":62.02470156702072},{"$f":"(SUMPRODUCT(AM$9:AM$229,Nutrients!$DF$8:$DF$228)+(IF($A$7=Nutrients!$B$8,Nutrients!$DF$8,Nutrients!$DF$9)*AM$7)+(((IF($A$8=Nutrients!$B$79,Nutrients!$DF$79,(IF($A$8=Nutrients!$B$77,Nutrients!$DF$77,Nutrients!$DF$78)))))*AM$8))/2000/AM$236*100","v":62.026972678214932},{"$f":"(SUMPRODUCT(AN$9:AN$229,Nutrients!$DF$8:$DF$228)+(IF($A$7=Nutrients!$B$8,Nutrients!$DF$8,Nutrients!$DF$9)*AN$7)+(((IF($A$8=Nutrients!$B$79,Nutrients!$DF$79,(IF($A$8=Nutrients!$B$77,Nutrients!$DF$77,Nutrients!$DF$78)))))*AN$8))/2000/AN$236*100","v":62.994431916126359},{"$f":"(SUMPRODUCT(AO$9:AO$229,Nutrients!$DF$8:$DF$228)+(IF($A$7=Nutrients!$B$8,Nutrients!$DF$8,Nutrients!$DF$9)*AO$7)+(((IF($A$8=Nutrients!$B$79,Nutrients!$DF$79,(IF($A$8=Nutrients!$B$77,Nutrients!$DF$77,Nutrients!$DF$78)))))*AO$8))/2000/AO$236*100","v":62.98741770708687},{"$f":"(SUMPRODUCT(AP$9:AP$229,Nutrients!$DF$8:$DF$228)+(IF($A$7=Nutrients!$B$8,Nutrients!$DF$8,Nutrients!$DF$9)*AP$7)+(((IF($A$8=Nutrients!$B$79,Nutrients!$DF$79,(IF($A$8=Nutrients!$B$77,Nutrients!$DF$77,Nutrients!$DF$78)))))*AP$8))/2000/AP$236*100","v":63.973584726468616},null,{"$f":"(SUMPRODUCT(AR$9:AR$229,Nutrients!$DF$8:$DF$228)+(IF($A$7=Nutrients!$B$8,Nutrients!$DF$8,Nutrients!$DF$9)*AR$7)+(((IF($A$8=Nutrients!$B$79,Nutrients!$DF$79,(IF($A$8=Nutrients!$B$77,Nutrients!$DF$77,Nutrients!$DF$78)))))*AR$8))/2000/AR$236*100","v":61.994480860813837},{"$f":"(SUMPRODUCT(AS$9:AS$229,Nutrients!$DF$8:$DF$228)+(IF($A$7=Nutrients!$B$8,Nutrients!$DF$8,Nutrients!$DF$9)*AS$7)+(((IF($A$8=Nutrients!$B$79,Nutrients!$DF$79,(IF($A$8=Nutrients!$B$77,Nutrients!$DF$77,Nutrients!$DF$78)))))*AS$8))/2000/AS$236*100","v":62.038446310317156},{"$f":"(SUMPRODUCT(AT$9:AT$229,Nutrients!$DF$8:$DF$228)+(IF($A$7=Nutrients!$B$8,Nutrients!$DF$8,Nutrients!$DF$9)*AT$7)+(((IF($A$8=Nutrients!$B$79,Nutrients!$DF$79,(IF($A$8=Nutrients!$B$77,Nutrients!$DF$77,Nutrients!$DF$78)))))*AT$8))/2000/AT$236*100","v":62.040542052636525},{"$f":"(SUMPRODUCT(AU$9:AU$229,Nutrients!$DF$8:$DF$228)+(IF($A$7=Nutrients!$B$8,Nutrients!$DF$8,Nutrients!$DF$9)*AU$7)+(((IF($A$8=Nutrients!$B$79,Nutrients!$DF$79,(IF($A$8=Nutrients!$B$77,Nutrients!$DF$77,Nutrients!$DF$78)))))*AU$8))/2000/AU$236*100","v":62.990269547896268},{"$f":"(SUMPRODUCT(AV$9:AV$229,Nutrients!$DF$8:$DF$228)+(IF($A$7=Nutrients!$B$8,Nutrients!$DF$8,Nutrients!$DF$9)*AV$7)+(((IF($A$8=Nutrients!$B$79,Nutrients!$DF$79,(IF($A$8=Nutrients!$B$77,Nutrients!$DF$77,Nutrients!$DF$78)))))*AV$8))/2000/AV$236*100","v":62.982842640723746},{"$f":"(SUMPRODUCT(AW$9:AW$229,Nutrients!$DF$8:$DF$228)+(IF($A$7=Nutrients!$B$8,Nutrients!$DF$8,Nutrients!$DF$9)*AW$7)+(((IF($A$8=Nutrients!$B$79,Nutrients!$DF$79,(IF($A$8=Nutrients!$B$77,Nutrients!$DF$77,Nutrients!$DF$78)))))*AW$8))/2000/AW$236*100","v":63.968629552608427}]
["  Trp:Lys",{"$f":"(SUMPRODUCT(B$9:B$229,Nutrients!$DG$8:$DG$228)+(IF($A$7=Nutrients!$B$8,Nutrients!$DG$8,Nutrients!$DG$9)*B$7)+(((IF($A$8=Nutrients!$B$79,Nutrients!$DG$79,(IF($A$8=Nutrients!$B$77,Nutrients!$DG$77,Nutrients!$DG$78)))))*B$8))/2000/B$236*100","v":19.000000000000007},{"$f":"(SUMPRODUCT(C$9:C$229,Nutrients!$DG$8:$DG$228)+(IF($A$7=Nutrients!$B$8,Nutrients!$DG$8,Nutrients!$DG$9)*C$7)+(((IF($A$8=Nutrients!$B$79,Nutrients!$DG$79,(IF($A$8=Nutrients!$B$77,Nutrients!$DG$77,Nutrients!$DG$78)))))*C$8))/2000/C$236*100","v":18.999991891262606},{"$f":"(SUMPRODUCT(D$9:D$229,Nutrients!$DG$8:$DG$228)+(IF($A$7=Nutrients!$B$8,Nutrients!$DG$8,Nutrients!$DG$9)*D$7)+(((IF($A$8=Nutrients!$B$79,Nutrients!$DG$79,(IF($A$8=Nutrients!$B$77,Nutrients!$DG$77,Nutrients!$DG$78)))))*D$8))/2000/D$236*100","v":18.999965465148328},{"$f":"(SUMPRODUCT(E$9:E$229,Nutrients!$DG$8:$DG$228)+(IF($A$7=Nutrients!$B$8,Nutrients!$DG$8,Nutrients!$DG$9)*E$7)+(((IF($A$8=Nutrients!$B$79,Nutrients!$DG$79,(IF($A$8=Nutrients!$B$77,Nutrients!$DG$77,Nutrients!$DG$78)))))*E$8))/2000/E$236*100","v":19.040987478551372},{"$f":"(SUMPRODUCT(F$9:F$229,Nutrients!$DG$8:$DG$228)+(IF($A$7=Nutrients!$B$8,Nutrients!$DG$8,Nutrients!$DG$9)*F$7)+(((IF($A$8=Nutrients!$B$79,Nutrients!$DG$79,(IF($A$8=Nutrients!$B$77,Nutrients!$DG$77,Nutrients!$DG$78)))))*F$8))/2000/F$236*100","v":19.105485625301228},{"$f":"(SUMPRODUCT(G$9:G$229,Nutrients!$DG$8:$DG$228)+(IF($A$7=Nutrients!$B$8,Nutrients!$DG$8,Nutrients!$DG$9)*G$7)+(((IF($A$8=Nutrients!$B$79,Nutrients!$DG$79,(IF($A$8=Nutrients!$B$77,Nutrients!$DG$77,Nutrients!$DG$78)))))*G$8))/2000/G$236*100","v":19.003555679157927},null,{"$f":"(SUMPRODUCT(I$9:I$229,Nutrients!$DG$8:$DG$228)+(IF($A$7=Nutrients!$B$8,Nutrients!$DG$8,Nutrients!$DG$9)*I$7)+(((IF($A$8=Nutrients!$B$79,Nutrients!$DG$79,(IF($A$8=Nutrients!$B$77,Nutrients!$DG$77,Nutrients!$DG$78)))))*I$8))/2000/I$236*100","v":19.02669178997396},{"$f":"(SUMPRODUCT(J$9:J$229,Nutrients!$DG$8:$DG$228)+(IF($A$7=Nutrients!$B$8,Nutrients!$DG$8,Nutrients!$DG$9)*J$7)+(((IF($A$8=Nutrients!$B$79,Nutrients!$DG$79,(IF($A$8=Nutrients!$B$77,Nutrients!$DG$77,Nutrients!$DG$78)))))*J$8))/2000/J$236*100","v":19.025269913236961},{"$f":"(SUMPRODUCT(K$9:K$229,Nutrients!$DG$8:$DG$228)+(IF($A$7=Nutrients!$B$8,Nutrients!$DG$8,Nutrients!$DG$9)*K$7)+(((IF($A$8=Nutrients!$B$79,Nutrients!$DG$79,(IF($A$8=Nutrients!$B$77,Nutrients!$DG$77,Nutrients!$DG$78)))))*K$8))/2000/K$236*100","v":19.024126552535716},{"$f":"(SUMPRODUCT(L$9:L$229,Nutrients!$DG$8:$DG$228)+(IF($A$7=Nutrients!$B$8,Nutrients!$DG$8,Nutrients!$DG$9)*L$7)+(((IF($A$8=Nutrients!$B$79,Nutrients!$DG$79,(IF($A$8=Nutrients!$B$77,Nutrients!$DG$77,Nutrients!$DG$78)))))*L$8))/2000/L$236*100","v":19.023477319672793},{"$f":"(SUMPRODUCT(M$9:M$229,Nutrients!$DG$8:$DG$228)+(IF($A$7=Nutrients!$B$8,Nutrients!$DG$8,Nutrients!$DG$9)*M$7)+(((IF($A$8=Nutrients!$B$79,Nutrients!$DG$79,(IF($A$8=Nutrients!$B$77,Nutrients!$DG$77,Nutrients!$DG$78)))))*M$8))/2000/M$236*100","v":19.025765325755533},{"$f":"(SUMPRODUCT(N$9:N$229,Nutrients!$DG$8:$DG$228)+(IF($A$7=Nutrients!$B$8,Nutrients!$DG$8,Nutrients!$DG$9)*N$7)+(((IF($A$8=Nutrients!$B$79,Nutrients!$DG$79,(IF($A$8=Nutrients!$B$77,Nutrients!$DG$77,Nutrients!$DG$78)))))*N$8))/2000/N$236*100","v":19.02505291150689},null,{"$f":"(SUMPRODUCT(P$9:P$229,Nutrients!$DG$8:$DG$228)+(IF($A$7=Nutrients!$B$8,Nutrients!$DG$8,Nutrients!$DG$9)*P$7)+(((IF($A$8=Nutrients!$B$79,Nutrients!$DG$79,(IF($A$8=Nutrients!$B$77,Nutrients!$DG$77,Nutrients!$DG$78)))))*P$8))/2000/P$236*100","v":19.047716994541275},{"$f":"(SUMPRODUCT(Q$9:Q$229,Nutrients!$DG$8:$DG$228)+(IF($A$7=Nutrients!$B$8,Nutrients!$DG$8,Nutrients!$DG$9)*Q$7)+(((IF($A$8=Nutrients!$B$79,Nutrients!$DG$79,(IF($A$8=Nutrients!$B$77,Nutrients!$DG$77,Nutrients!$DG$78)))))*Q$8))/2000/Q$236*100","v":19.045999005840457},{"$f":"(SUMPRODUCT(R$9:R$229,Nutrients!$DG$8:$DG$228)+(IF($A$7=Nutrients!$B$8,Nutrients!$DG$8,Nutrients!$DG$9)*R$7)+(((IF($A$8=Nutrients!$B$79,Nutrients!$DG$79,(IF($A$8=Nutrients!$B$77,Nutrients!$DG$77,Nutrients!$DG$78)))))*R$8))/2000/R$236*100","v":19.024724824045673},{"$f":"(SUMPRODUCT(S$9:S$229,Nutrients!$DG$8:$DG$228)+(IF($A$7=Nutrients!$B$8,Nutrients!$DG$8,Nutrients!$DG$9)*S$7)+(((IF($A$8=Nutrients!$B$79,Nutrients!$DG$79,(IF($A$8=Nutrients!$B$77,Nutrients!$DG$77,Nutrients!$DG$78)))))*S$8))/2000/S$236*100","v":19.024157160210624},{"$f":"(SUMPRODUCT(T$9:T$229,Nutrients!$DG$8:$DG$228)+(IF($A$7=Nutrients!$B$8,Nutrients!$DG$8,Nutrients!$DG$9)*T$7)+(((IF($A$8=Nutrients!$B$79,Nutrients!$DG$79,(IF($A$8=Nutrients!$B$77,Nutrients!$DG$77,Nutrients!$DG$78)))))*T$8))/2000/T$236*100","v":19.026528571495998},{"$f":"(SUMPRODUCT(U$9:U$229,Nutrients!$DG$8:$DG$228)+(IF($A$7=Nutrients!$B$8,Nutrients!$DG$8,Nutrients!$DG$9)*U$7)+(((IF($A$8=Nutrients!$B$79,Nutrients!$DG$79,(IF($A$8=Nutrients!$B$77,Nutrients!$DG$77,Nutrients!$DG$78)))))*U$8))/2000/U$236*100","v":19.025847436191011},null,{"$f":"(SUMPRODUCT(W$9:W$229,Nutrients!$DG$8:$DG$228)+(IF($A$7=Nutrients!$B$8,Nutrients!$DG$8,Nutrients!$DG$9)*W$7)+(((IF($A$8=Nutrients!$B$79,Nutrients!$DG$79,(IF($A$8=Nutrients!$B$77,Nutrients!$DG$77,Nutrients!$DG$78)))))*W$8))/2000/W$236*100","v":19.048245285222858},{"$f":"(SUMPRODUCT(X$9:X$229,Nutrients!$DG$8:$DG$228)+(IF($A$7=Nutrients!$B$8,Nutrients!$DG$8,Nutrients!$DG$9)*X$7)+(((IF($A$8=Nutrients!$B$79,Nutrients!$DG$79,(IF($A$8=Nutrients!$B$77,Nutrients!$DG$77,Nutrients!$DG$78)))))*X$8))/2000/X$236*100","v":19.046558534398041},{"$f":"(SUMPRODUCT(Y$9:Y$229,Nutrients!$DG$8:$DG$228)+(IF($A$7=Nutrients!$B$8,Nutrients!$DG$8,Nutrients!$DG$9)*Y$7)+(((IF($A$8=Nutrients!$B$79,Nutrients!$DG$79,(IF($A$8=Nutrients!$B$77,Nutrients!$DG$77,Nutrients!$DG$78)))))*Y$8))/2000/Y$236*100","v":19.025365355642933},{"$f":"(SUMPRODUCT(Z$9:Z$229,Nutrients!$DG$8:$DG$228)+(IF($A$7=Nutrients!$B$8,Nutrients!$DG$8,Nutrients!$DG$9)*Z$7)+(((IF($A$8=Nutrients!$B$79,Nutrients!$DG$79,(IF($A$8=Nutrients!$B$77,Nutrients!$DG$77,Nutrients!$DG$78)))))*Z$8))/2000/Z$236*100","v":19.024821565293955},{"$f":"(SUMPRODUCT(AA$9:AA$229,Nutrients!$DG$8:$DG$228)+(IF($A$7=Nutrients!$B$8,Nutrients!$DG$8,Nutrients!$DG$9)*AA$7)+(((IF($A$8=Nutrients!$B$79,Nutrients!$DG$79,(IF($A$8=Nutrients!$B$77,Nutrients!$DG$77,Nutrients!$DG$78)))))*AA$8))/2000/AA$236*100","v":19.027194410070848},{"$f":"(SUMPRODUCT(AB$9:AB$229,Nutrients!$DG$8:$DG$228)+(IF($A$7=Nutrients!$B$8,Nutrients!$DG$8,Nutrients!$DG$9)*AB$7)+(((IF($A$8=Nutrients!$B$79,Nutrients!$DG$79,(IF($A$8=Nutrients!$B$77,Nutrients!$DG$77,Nutrients!$DG$78)))))*AB$8))/2000/AB$236*100","v":19.026218417039072},null,{"$f":"(SUMPRODUCT(AD$9:AD$229,Nutrients!$DG$8:$DG$228)+(IF($A$7=Nutrients!$B$8,Nutrients!$DG$8,Nutrients!$DG$9)*AD$7)+(((IF($A$8=Nutrients!$B$79,Nutrients!$DG$79,(IF($A$8=Nutrients!$B$77,Nutrients!$DG$77,Nutrients!$DG$78)))))*AD$8))/2000/AD$236*100","v":18.966118751639087},{"$f":"(SUMPRODUCT(AE$9:AE$229,Nutrients!$DG$8:$DG$228)+(IF($A$7=Nutrients!$B$8,Nutrients!$DG$8,Nutrients!$DG$9)*AE$7)+(((IF($A$8=Nutrients!$B$79,Nutrients!$DG$79,(IF($A$8=Nutrients!$B$77,Nutrients!$DG$77,Nutrients!$DG$78)))))*AE$8))/2000/AE$236*100","v":18.953687989035252},{"$f":"(SUMPRODUCT(AF$9:AF$229,Nutrients!$DG$8:$DG$228)+(IF($A$7=Nutrients!$B$8,Nutrients!$DG$8,Nutrients!$DG$9)*AF$7)+(((IF($A$8=Nutrients!$B$79,Nutrients!$DG$79,(IF($A$8=Nutrients!$B$77,Nutrients!$DG$77,Nutrients!$DG$78)))))*AF$8))/2000/AF$236*100","v":19.02595806072231},{"$f":"(SUMPRODUCT(AG$9:AG$229,Nutrients!$DG$8:$DG$228)+(IF($A$7=Nutrients!$B$8,Nutrients!$DG$8,Nutrients!$DG$9)*AG$7)+(((IF($A$8=Nutrients!$B$79,Nutrients!$DG$79,(IF($A$8=Nutrients!$B$77,Nutrients!$DG$77,Nutrients!$DG$78)))))*AG$8))/2000/AG$236*100","v":19.025458788715333},{"$f":"(SUMPRODUCT(AH$9:AH$229,Nutrients!$DG$8:$DG$228)+(IF($A$7=Nutrients!$B$8,Nutrients!$DG$8,Nutrients!$DG$9)*AH$7)+(((IF($A$8=Nutrients!$B$79,Nutrients!$DG$79,(IF($A$8=Nutrients!$B$77,Nutrients!$DG$77,Nutrients!$DG$78)))))*AH$8))/2000/AH$236*100","v":19.026866520897581},{"$f":"(SUMPRODUCT(AI$9:AI$229,Nutrients!$DG$8:$DG$228)+(IF($A$7=Nutrients!$B$8,Nutrients!$DG$8,Nutrients!$DG$9)*AI$7)+(((IF($A$8=Nutrients!$B$79,Nutrients!$DG$79,(IF($A$8=Nutrients!$B$77,Nutrients!$DG$77,Nutrients!$DG$78)))))*AI$8))/2000/AI$236*100","v":19.025580974580315},null,{"$f":"(SUMPRODUCT(AK$9:AK$229,Nutrients!$DG$8:$DG$228)+(IF($A$7=Nutrients!$B$8,Nutrients!$DG$8,Nutrients!$DG$9)*AK$7)+(((IF($A$8=Nutrients!$B$79,Nutrients!$DG$79,(IF($A$8=Nutrients!$B$77,Nutrients!$DG$77,Nutrients!$DG$78)))))*AK$8))/2000/AK$236*100","v":18.966592276083187},{"$f":"(SUMPRODUCT(AL$9:AL$229,Nutrients!$DG$8:$DG$228)+(IF($A$7=Nutrients!$B$8,Nutrients!$DG$8,Nutrients!$DG$9)*AL$7)+(((IF($A$8=Nutrients!$B$79,Nutrients!$DG$79,(IF($A$8=Nutrients!$B$77,Nutrients!$DG$77,Nutrients!$DG$78)))))*AL$8))/2000/AL$236*100","v":18.954211413975138},{"$f":"(SUMPRODUCT(AM$9:AM$229,Nutrients!$DG$8:$DG$228)+(IF($A$7=Nutrients!$B$8,Nutrients!$DG$8,Nutrients!$DG$9)*AM$7)+(((IF($A$8=Nutrients!$B$79,Nutrients!$DG$79,(IF($A$8=Nutrients!$B$77,Nutrients!$DG$77,Nutrients!$DG$78)))))*AM$8))/2000/AM$236*100","v":19.026570356745406},{"$f":"(SUMPRODUCT(AN$9:AN$229,Nutrients!$DG$8:$DG$228)+(IF($A$7=Nutrients!$B$8,Nutrients!$DG$8,Nutrients!$DG$9)*AN$7)+(((IF($A$8=Nutrients!$B$79,Nutrients!$DG$79,(IF($A$8=Nutrients!$B$77,Nutrients!$DG$77,Nutrients!$DG$78)))))*AN$8))/2000/AN$236*100","v":19.025292600841649},{"$f":"(SUMPRODUCT(AO$9:AO$229,Nutrients!$DG$8:$DG$228)+(IF($A$7=Nutrients!$B$8,Nutrients!$DG$8,Nutrients!$DG$9)*AO$7)+(((IF($A$8=Nutrients!$B$79,Nutrients!$DG$79,(IF($A$8=Nutrients!$B$77,Nutrients!$DG$77,Nutrients!$DG$78)))))*AO$8))/2000/AO$236*100","v":19.02626673786278},{"$f":"(SUMPRODUCT(AP$9:AP$229,Nutrients!$DG$8:$DG$228)+(IF($A$7=Nutrients!$B$8,Nutrients!$DG$8,Nutrients!$DG$9)*AP$7)+(((IF($A$8=Nutrients!$B$79,Nutrients!$DG$79,(IF($A$8=Nutrients!$B$77,Nutrients!$DG$77,Nutrients!$DG$78)))))*AP$8))/2000/AP$236*100","v":19.024941512014458},null,{"$f":"(SUMPRODUCT(AR$9:AR$229,Nutrients!$DG$8:$DG$228)+(IF($A$7=Nutrients!$B$8,Nutrients!$DG$8,Nutrients!$DG$9)*AR$7)+(((IF($A$8=Nutrients!$B$79,Nutrients!$DG$79,(IF($A$8=Nutrients!$B$77,Nutrients!$DG$77,Nutrients!$DG$78)))))*AR$8))/2000/AR$236*100","v":18.967023467048776},{"$f":"(SUMPRODUCT(AS$9:AS$229,Nutrients!$DG$8:$DG$228)+(IF($A$7=Nutrients!$B$8,Nutrients!$DG$8,Nutrients!$DG$9)*AS$7)+(((IF($A$8=Nutrients!$B$79,Nutrients!$DG$79,(IF($A$8=Nutrients!$B$77,Nutrients!$DG$77,Nutrients!$DG$78)))))*AS$8))/2000/AS$236*100","v":18.954727660551811},{"$f":"(SUMPRODUCT(AT$9:AT$229,Nutrients!$DG$8:$DG$228)+(IF($A$7=Nutrients!$B$8,Nutrients!$DG$8,Nutrients!$DG$9)*AT$7)+(((IF($A$8=Nutrients!$B$79,Nutrients!$DG$79,(IF($A$8=Nutrients!$B$77,Nutrients!$DG$77,Nutrients!$DG$78)))))*AT$8))/2000/AT$236*100","v":19.027044106439529},{"$f":"(SUMPRODUCT(AU$9:AU$229,Nutrients!$DG$8:$DG$228)+(IF($A$7=Nutrients!$B$8,Nutrients!$DG$8,Nutrients!$DG$9)*AU$7)+(((IF($A$8=Nutrients!$B$79,Nutrients!$DG$79,(IF($A$8=Nutrients!$B$77,Nutrients!$DG$77,Nutrients!$DG$78)))))*AU$8))/2000/AU$236*100","v":19.024744584007276},{"$f":"(SUMPRODUCT(AV$9:AV$229,Nutrients!$DG$8:$DG$228)+(IF($A$7=Nutrients!$B$8,Nutrients!$DG$8,Nutrients!$DG$9)*AV$7)+(((IF($A$8=Nutrients!$B$79,Nutrients!$DG$79,(IF($A$8=Nutrients!$B$77,Nutrients!$DG$77,Nutrients!$DG$78)))))*AV$8))/2000/AV$236*100","v":19.025666763905889},{"$f":"(SUMPRODUCT(AW$9:AW$229,Nutrients!$DG$8:$DG$228)+(IF($A$7=Nutrients!$B$8,Nutrients!$DG$8,Nutrients!$DG$9)*AW$7)+(((IF($A$8=Nutrients!$B$79,Nutrients!$DG$79,(IF($A$8=Nutrients!$B$77,Nutrients!$DG$77,Nutrients!$DG$78)))))*AW$8))/2000/AW$236*100","v":19.024301949868967}]
["  Val:Lys",{"$f":"(SUMPRODUCT(B$9:B$229,Nutrients!$DH$8:$DH$228)+(IF($A$7=Nutrients!$B$8,Nutrients!$DH$8,Nutrients!$DH$9)*B$7)+(((IF($A$8=Nutrients!$B$79,Nutrients!$DH$79,(IF($A$8=Nutrients!$B$77,Nutrients!$DH$77,Nutrients!$DH$78)))))*B$8))/2000/B$236*100","v":67.999142547613729},{"$f":"(SUMPRODUCT(C$9:C$229,Nutrients!$DH$8:$DH$228)+(IF($A$7=Nutrients!$B$8,Nutrients!$DH$8,Nutrients!$DH$9)*C$7)+(((IF($A$8=Nutrients!$B$79,Nutrients!$DH$79,(IF($A$8=Nutrients!$B$77,Nutrients!$DH$77,Nutrients!$DH$78)))))*C$8))/2000/C$236*100","v":68.120000000000076},{"$f":"(SUMPRODUCT(D$9:D$229,Nutrients!$DH$8:$DH$228)+(IF($A$7=Nutrients!$B$8,Nutrients!$DH$8,Nutrients!$DH$9)*D$7)+(((IF($A$8=Nutrients!$B$79,Nutrients!$DH$79,(IF($A$8=Nutrients!$B$77,Nutrients!$DH$77,Nutrients!$DH$78)))))*D$8))/2000/D$236*100","v":68.530000000000015},{"$f":"(SUMPRODUCT(E$9:E$229,Nutrients!$DH$8:$DH$228)+(IF($A$7=Nutrients!$B$8,Nutrients!$DH$8,Nutrients!$DH$9)*E$7)+(((IF($A$8=Nutrients!$B$79,Nutrients!$DH$79,(IF($A$8=Nutrients!$B$77,Nutrients!$DH$77,Nutrients!$DH$78)))))*E$8))/2000/E$236*100","v":69.691537460576043},{"$f":"(SUMPRODUCT(F$9:F$229,Nutrients!$DH$8:$DH$228)+(IF($A$7=Nutrients!$B$8,Nutrients!$DH$8,Nutrients!$DH$9)*F$7)+(((IF($A$8=Nutrients!$B$79,Nutrients!$DH$79,(IF($A$8=Nutrients!$B$77,Nutrients!$DH$77,Nutrients!$DH$78)))))*F$8))/2000/F$236*100","v":70.432280668663623},{"$f":"(SUMPRODUCT(G$9:G$229,Nutrients!$DH$8:$DH$228)+(IF($A$7=Nutrients!$B$8,Nutrients!$DH$8,Nutrients!$DH$9)*G$7)+(((IF($A$8=Nutrients!$B$79,Nutrients!$DH$79,(IF($A$8=Nutrients!$B$77,Nutrients!$DH$77,Nutrients!$DH$78)))))*G$8))/2000/G$236*100","v":70.540000000000006},null,{"$f":"(SUMPRODUCT(I$9:I$229,Nutrients!$DH$8:$DH$228)+(IF($A$7=Nutrients!$B$8,Nutrients!$DH$8,Nutrients!$DH$9)*I$7)+(((IF($A$8=Nutrients!$B$79,Nutrients!$DH$79,(IF($A$8=Nutrients!$B$77,Nutrients!$DH$77,Nutrients!$DH$78)))))*I$8))/2000/I$236*100","v":67.948763096044402},{"$f":"(SUMPRODUCT(J$9:J$229,Nutrients!$DH$8:$DH$228)+(IF($A$7=Nutrients!$B$8,Nutrients!$DH$8,Nutrients!$DH$9)*J$7)+(((IF($A$8=Nutrients!$B$79,Nutrients!$DH$79,(IF($A$8=Nutrients!$B$77,Nutrients!$DH$77,Nutrients!$DH$78)))))*J$8))/2000/J$236*100","v":68.35306236317426},{"$f":"(SUMPRODUCT(K$9:K$229,Nutrients!$DH$8:$DH$228)+(IF($A$7=Nutrients!$B$8,Nutrients!$DH$8,Nutrients!$DH$9)*K$7)+(((IF($A$8=Nutrients!$B$79,Nutrients!$DH$79,(IF($A$8=Nutrients!$B$77,Nutrients!$DH$77,Nutrients!$DH$78)))))*K$8))/2000/K$236*100","v":69.433054376695438},{"$f":"(SUMPRODUCT(L$9:L$229,Nutrients!$DH$8:$DH$228)+(IF($A$7=Nutrients!$B$8,Nutrients!$DH$8,Nutrients!$DH$9)*L$7)+(((IF($A$8=Nutrients!$B$79,Nutrients!$DH$79,(IF($A$8=Nutrients!$B$77,Nutrients!$DH$77,Nutrients!$DH$78)))))*L$8))/2000/L$236*100","v":70.531192424457274},{"$f":"(SUMPRODUCT(M$9:M$229,Nutrients!$DH$8:$DH$228)+(IF($A$7=Nutrients!$B$8,Nutrients!$DH$8,Nutrients!$DH$9)*M$7)+(((IF($A$8=Nutrients!$B$79,Nutrients!$DH$79,(IF($A$8=Nutrients!$B$77,Nutrients!$DH$77,Nutrients!$DH$78)))))*M$8))/2000/M$236*100","v":71.193957264502501},{"$f":"(SUMPRODUCT(N$9:N$229,Nutrients!$DH$8:$DH$228)+(IF($A$7=Nutrients!$B$8,Nutrients!$DH$8,Nutrients!$DH$9)*N$7)+(((IF($A$8=Nutrients!$B$79,Nutrients!$DH$79,(IF($A$8=Nutrients!$B$77,Nutrients!$DH$77,Nutrients!$DH$78)))))*N$8))/2000/N$236*100","v":71.704161765342789},null,{"$f":"(SUMPRODUCT(P$9:P$229,Nutrients!$DH$8:$DH$228)+(IF($A$7=Nutrients!$B$8,Nutrients!$DH$8,Nutrients!$DH$9)*P$7)+(((IF($A$8=Nutrients!$B$79,Nutrients!$DH$79,(IF($A$8=Nutrients!$B$77,Nutrients!$DH$77,Nutrients!$DH$78)))))*P$8))/2000/P$236*100","v":68.227731916891258},{"$f":"(SUMPRODUCT(Q$9:Q$229,Nutrients!$DH$8:$DH$228)+(IF($A$7=Nutrients!$B$8,Nutrients!$DH$8,Nutrients!$DH$9)*Q$7)+(((IF($A$8=Nutrients!$B$79,Nutrients!$DH$79,(IF($A$8=Nutrients!$B$77,Nutrients!$DH$77,Nutrients!$DH$78)))))*Q$8))/2000/Q$236*100","v":68.906124726348565},{"$f":"(SUMPRODUCT(R$9:R$229,Nutrients!$DH$8:$DH$228)+(IF($A$7=Nutrients!$B$8,Nutrients!$DH$8,Nutrients!$DH$9)*R$7)+(((IF($A$8=Nutrients!$B$79,Nutrients!$DH$79,(IF($A$8=Nutrients!$B$77,Nutrients!$DH$77,Nutrients!$DH$78)))))*R$8))/2000/R$236*100","v":70.384301525054198},{"$f":"(SUMPRODUCT(S$9:S$229,Nutrients!$DH$8:$DH$228)+(IF($A$7=Nutrients!$B$8,Nutrients!$DH$8,Nutrients!$DH$9)*S$7)+(((IF($A$8=Nutrients!$B$79,Nutrients!$DH$79,(IF($A$8=Nutrients!$B$77,Nutrients!$DH$77,Nutrients!$DH$78)))))*S$8))/2000/S$236*100","v":71.759211402314264},{"$f":"(SUMPRODUCT(T$9:T$229,Nutrients!$DH$8:$DH$228)+(IF($A$7=Nutrients!$B$8,Nutrients!$DH$8,Nutrients!$DH$9)*T$7)+(((IF($A$8=Nutrients!$B$79,Nutrients!$DH$79,(IF($A$8=Nutrients!$B$77,Nutrients!$DH$77,Nutrients!$DH$78)))))*T$8))/2000/T$236*100","v":72.284217216633792},{"$f":"(SUMPRODUCT(U$9:U$229,Nutrients!$DH$8:$DH$228)+(IF($A$7=Nutrients!$B$8,Nutrients!$DH$8,Nutrients!$DH$9)*U$7)+(((IF($A$8=Nutrients!$B$79,Nutrients!$DH$79,(IF($A$8=Nutrients!$B$77,Nutrients!$DH$77,Nutrients!$DH$78)))))*U$8))/2000/U$236*100","v":72.605260552724701},null,{"$f":"(SUMPRODUCT(W$9:W$229,Nutrients!$DH$8:$DH$228)+(IF($A$7=Nutrients!$B$8,Nutrients!$DH$8,Nutrients!$DH$9)*W$7)+(((IF($A$8=Nutrients!$B$79,Nutrients!$DH$79,(IF($A$8=Nutrients!$B$77,Nutrients!$DH$77,Nutrients!$DH$78)))))*W$8))/2000/W$236*100","v":68.50426742049649},{"$f":"(SUMPRODUCT(X$9:X$229,Nutrients!$DH$8:$DH$228)+(IF($A$7=Nutrients!$B$8,Nutrients!$DH$8,Nutrients!$DH$9)*X$7)+(((IF($A$8=Nutrients!$B$79,Nutrients!$DH$79,(IF($A$8=Nutrients!$B$77,Nutrients!$DH$77,Nutrients!$DH$78)))))*X$8))/2000/X$236*100","v":69.679187089522841},{"$f":"(SUMPRODUCT(Y$9:Y$229,Nutrients!$DH$8:$DH$228)+(IF($A$7=Nutrients!$B$8,Nutrients!$DH$8,Nutrients!$DH$9)*Y$7)+(((IF($A$8=Nutrients!$B$79,Nutrients!$DH$79,(IF($A$8=Nutrients!$B$77,Nutrients!$DH$77,Nutrients!$DH$78)))))*Y$8))/2000/Y$236*100","v":71.405055140104196},{"$f":"(SUMPRODUCT(Z$9:Z$229,Nutrients!$DH$8:$DH$228)+(IF($A$7=Nutrients!$B$8,Nutrients!$DH$8,Nutrients!$DH$9)*Z$7)+(((IF($A$8=Nutrients!$B$79,Nutrients!$DH$79,(IF($A$8=Nutrients!$B$77,Nutrients!$DH$77,Nutrients!$DH$78)))))*Z$8))/2000/Z$236*100","v":73.579501925484621},{"$f":"(SUMPRODUCT(AA$9:AA$229,Nutrients!$DH$8:$DH$228)+(IF($A$7=Nutrients!$B$8,Nutrients!$DH$8,Nutrients!$DH$9)*AA$7)+(((IF($A$8=Nutrients!$B$79,Nutrients!$DH$79,(IF($A$8=Nutrients!$B$77,Nutrients!$DH$77,Nutrients!$DH$78)))))*AA$8))/2000/AA$236*100","v":74.269507616025237},{"$f":"(SUMPRODUCT(AB$9:AB$229,Nutrients!$DH$8:$DH$228)+(IF($A$7=Nutrients!$B$8,Nutrients!$DH$8,Nutrients!$DH$9)*AB$7)+(((IF($A$8=Nutrients!$B$79,Nutrients!$DH$79,(IF($A$8=Nutrients!$B$77,Nutrients!$DH$77,Nutrients!$DH$78)))))*AB$8))/2000/AB$236*100","v":74.686546305524402},null,{"$f":"(SUMPRODUCT(AD$9:AD$229,Nutrients!$DH$8:$DH$228)+(IF($A$7=Nutrients!$B$8,Nutrients!$DH$8,Nutrients!$DH$9)*AD$7)+(((IF($A$8=Nutrients!$B$79,Nutrients!$DH$79,(IF($A$8=Nutrients!$B$77,Nutrients!$DH$77,Nutrients!$DH$78)))))*AD$8))/2000/AD$236*100","v":69.28546383378287},{"$f":"(SUMPRODUCT(AE$9:AE$229,Nutrients!$DH$8:$DH$228)+(IF($A$7=Nutrients!$B$8,Nutrients!$DH$8,Nutrients!$DH$9)*AE$7)+(((IF($A$8=Nutrients!$B$79,Nutrients!$DH$79,(IF($A$8=Nutrients!$B$77,Nutrients!$DH$77,Nutrients!$DH$78)))))*AE$8))/2000/AE$236*100","v":70.472408638561959},{"$f":"(SUMPRODUCT(AF$9:AF$229,Nutrients!$DH$8:$DH$228)+(IF($A$7=Nutrients!$B$8,Nutrients!$DH$8,Nutrients!$DH$9)*AF$7)+(((IF($A$8=Nutrients!$B$79,Nutrients!$DH$79,(IF($A$8=Nutrients!$B$77,Nutrients!$DH$77,Nutrients!$DH$78)))))*AF$8))/2000/AF$236*100","v":73.02730064438046},{"$f":"(SUMPRODUCT(AG$9:AG$229,Nutrients!$DH$8:$DH$228)+(IF($A$7=Nutrients!$B$8,Nutrients!$DH$8,Nutrients!$DH$9)*AG$7)+(((IF($A$8=Nutrients!$B$79,Nutrients!$DH$79,(IF($A$8=Nutrients!$B$77,Nutrients!$DH$77,Nutrients!$DH$78)))))*AG$8))/2000/AG$236*100","v":75.398973889885895},{"$f":"(SUMPRODUCT(AH$9:AH$229,Nutrients!$DH$8:$DH$228)+(IF($A$7=Nutrients!$B$8,Nutrients!$DH$8,Nutrients!$DH$9)*AH$7)+(((IF($A$8=Nutrients!$B$79,Nutrients!$DH$79,(IF($A$8=Nutrients!$B$77,Nutrients!$DH$77,Nutrients!$DH$78)))))*AH$8))/2000/AH$236*100","v":76.224872525062196},{"$f":"(SUMPRODUCT(AI$9:AI$229,Nutrients!$DH$8:$DH$228)+(IF($A$7=Nutrients!$B$8,Nutrients!$DH$8,Nutrients!$DH$9)*AI$7)+(((IF($A$8=Nutrients!$B$79,Nutrients!$DH$79,(IF($A$8=Nutrients!$B$77,Nutrients!$DH$77,Nutrients!$DH$78)))))*AI$8))/2000/AI$236*100","v":76.737464020400125},null,{"$f":"(SUMPRODUCT(AK$9:AK$229,Nutrients!$DH$8:$DH$228)+(IF($A$7=Nutrients!$B$8,Nutrients!$DH$8,Nutrients!$DH$9)*AK$7)+(((IF($A$8=Nutrients!$B$79,Nutrients!$DH$79,(IF($A$8=Nutrients!$B$77,Nutrients!$DH$77,Nutrients!$DH$78)))))*AK$8))/2000/AK$236*100","v":69.886595058790888},{"$f":"(SUMPRODUCT(AL$9:AL$229,Nutrients!$DH$8:$DH$228)+(IF($A$7=Nutrients!$B$8,Nutrients!$DH$8,Nutrients!$DH$9)*AL$7)+(((IF($A$8=Nutrients!$B$79,Nutrients!$DH$79,(IF($A$8=Nutrients!$B$77,Nutrients!$DH$77,Nutrients!$DH$78)))))*AL$8))/2000/AL$236*100","v":71.325311815871288},{"$f":"(SUMPRODUCT(AM$9:AM$229,Nutrients!$DH$8:$DH$228)+(IF($A$7=Nutrients!$B$8,Nutrients!$DH$8,Nutrients!$DH$9)*AM$7)+(((IF($A$8=Nutrients!$B$79,Nutrients!$DH$79,(IF($A$8=Nutrients!$B$77,Nutrients!$DH$77,Nutrients!$DH$78)))))*AM$8))/2000/AM$236*100","v":74.650136117688788},{"$f":"(SUMPRODUCT(AN$9:AN$229,Nutrients!$DH$8:$DH$228)+(IF($A$7=Nutrients!$B$8,Nutrients!$DH$8,Nutrients!$DH$9)*AN$7)+(((IF($A$8=Nutrients!$B$79,Nutrients!$DH$79,(IF($A$8=Nutrients!$B$77,Nutrients!$DH$77,Nutrients!$DH$78)))))*AN$8))/2000/AN$236*100","v":77.19425162502597},{"$f":"(SUMPRODUCT(AO$9:AO$229,Nutrients!$DH$8:$DH$228)+(IF($A$7=Nutrients!$B$8,Nutrients!$DH$8,Nutrients!$DH$9)*AO$7)+(((IF($A$8=Nutrients!$B$79,Nutrients!$DH$79,(IF($A$8=Nutrients!$B$77,Nutrients!$DH$77,Nutrients!$DH$78)))))*AO$8))/2000/AO$236*100","v":78.172049520310495},{"$f":"(SUMPRODUCT(AP$9:AP$229,Nutrients!$DH$8:$DH$228)+(IF($A$7=Nutrients!$B$8,Nutrients!$DH$8,Nutrients!$DH$9)*AP$7)+(((IF($A$8=Nutrients!$B$79,Nutrients!$DH$79,(IF($A$8=Nutrients!$B$77,Nutrients!$DH$77,Nutrients!$DH$78)))))*AP$8))/2000/AP$236*100","v":78.788320901012384},null,{"$f":"(SUMPRODUCT(AR$9:AR$229,Nutrients!$DH$8:$DH$228)+(IF($A$7=Nutrients!$B$8,Nutrients!$DH$8,Nutrients!$DH$9)*AR$7)+(((IF($A$8=Nutrients!$B$79,Nutrients!$DH$79,(IF($A$8=Nutrients!$B$77,Nutrients!$DH$77,Nutrients!$DH$78)))))*AR$8))/2000/AR$236*100","v":70.570557108941941},{"$f":"(SUMPRODUCT(AS$9:AS$229,Nutrients!$DH$8:$DH$228)+(IF($A$7=Nutrients!$B$8,Nutrients!$DH$8,Nutrients!$DH$9)*AS$7)+(((IF($A$8=Nutrients!$B$79,Nutrients!$DH$79,(IF($A$8=Nutrients!$B$77,Nutrients!$DH$77,Nutrients!$DH$78)))))*AS$8))/2000/AS$236*100","v":72.571454589845203},{"$f":"(SUMPRODUCT(AT$9:AT$229,Nutrients!$DH$8:$DH$228)+(IF($A$7=Nutrients!$B$8,Nutrients!$DH$8,Nutrients!$DH$9)*AT$7)+(((IF($A$8=Nutrients!$B$79,Nutrients!$DH$79,(IF($A$8=Nutrients!$B$77,Nutrients!$DH$77,Nutrients!$DH$78)))))*AT$8))/2000/AT$236*100","v":76.268799354849151},{"$f":"(SUMPRODUCT(AU$9:AU$229,Nutrients!$DH$8:$DH$228)+(IF($A$7=Nutrients!$B$8,Nutrients!$DH$8,Nutrients!$DH$9)*AU$7)+(((IF($A$8=Nutrients!$B$79,Nutrients!$DH$79,(IF($A$8=Nutrients!$B$77,Nutrients!$DH$77,Nutrients!$DH$78)))))*AU$8))/2000/AU$236*100","v":78.978030819542795},{"$f":"(SUMPRODUCT(AV$9:AV$229,Nutrients!$DH$8:$DH$228)+(IF($A$7=Nutrients!$B$8,Nutrients!$DH$8,Nutrients!$DH$9)*AV$7)+(((IF($A$8=Nutrients!$B$79,Nutrients!$DH$79,(IF($A$8=Nutrients!$B$77,Nutrients!$DH$77,Nutrients!$DH$78)))))*AV$8))/2000/AV$236*100","v":80.119220766059613},{"$f":"(SUMPRODUCT(AW$9:AW$229,Nutrients!$DH$8:$DH$228)+(IF($A$7=Nutrients!$B$8,Nutrients!$DH$8,Nutrients!$DH$9)*AW$7)+(((IF($A$8=Nutrients!$B$79,Nutrients!$DH$79,(IF($A$8=Nutrients!$B$77,Nutrients!$DH$77,Nutrients!$DH$78)))))*AW$8))/2000/AW$236*100","v":80.839174782846044}]
["  His:Lys",{"$f":"(SUMPRODUCT(B$9:B$229,Nutrients!$CX$8:$CX$228)+(IF($A$7=Nutrients!$B$8,Nutrients!$CX$8,Nutrients!$CX$9)*B$7)+(((IF($A$8=Nutrients!$B$79,Nutrients!$CX$79,(IF($A$8=Nutrients!$B$77,Nutrients!$CX$77,Nutrients!$CX$78)))))*B$8))/2000/B$236*100","v":37.643570590355239},{"$f":"(SUMPRODUCT(C$9:C$229,Nutrients!$CX$8:$CX$228)+(IF($A$7=Nutrients!$B$8,Nutrients!$CX$8,Nutrients!$CX$9)*C$7)+(((IF($A$8=Nutrients!$B$79,Nutrients!$CX$79,(IF($A$8=Nutrients!$B$77,Nutrients!$CX$77,Nutrients!$CX$78)))))*C$8))/2000/C$236*100","v":38.987979019898518},{"$f":"(SUMPRODUCT(D$9:D$229,Nutrients!$CX$8:$CX$228)+(IF($A$7=Nutrients!$B$8,Nutrients!$CX$8,Nutrients!$CX$9)*D$7)+(((IF($A$8=Nutrients!$B$79,Nutrients!$CX$79,(IF($A$8=Nutrients!$B$77,Nutrients!$CX$77,Nutrients!$CX$78)))))*D$8))/2000/D$236*100","v":40.703752845303732},{"$f":"(SUMPRODUCT(E$9:E$229,Nutrients!$CX$8:$CX$228)+(IF($A$7=Nutrients!$B$8,Nutrients!$CX$8,Nutrients!$CX$9)*E$7)+(((IF($A$8=Nutrients!$B$79,Nutrients!$CX$79,(IF($A$8=Nutrients!$B$77,Nutrients!$CX$77,Nutrients!$CX$78)))))*E$8))/2000/E$236*100","v":41.851733002385814},{"$f":"(SUMPRODUCT(F$9:F$229,Nutrients!$CX$8:$CX$228)+(IF($A$7=Nutrients!$B$8,Nutrients!$CX$8,Nutrients!$CX$9)*F$7)+(((IF($A$8=Nutrients!$B$79,Nutrients!$CX$79,(IF($A$8=Nutrients!$B$77,Nutrients!$CX$77,Nutrients!$CX$78)))))*F$8))/2000/F$236*100","v":42.150034216074545},{"$f":"(SUMPRODUCT(G$9:G$229,Nutrients!$CX$8:$CX$228)+(IF($A$7=Nutrients!$B$8,Nutrients!$CX$8,Nutrients!$CX$9)*G$7)+(((IF($A$8=Nutrients!$B$79,Nutrients!$CX$79,(IF($A$8=Nutrients!$B$77,Nutrients!$CX$77,Nutrients!$CX$78)))))*G$8))/2000/G$236*100","v":42.332060863176054},null,{"$f":"(SUMPRODUCT(I$9:I$229,Nutrients!$CX$8:$CX$228)+(IF($A$7=Nutrients!$B$8,Nutrients!$CX$8,Nutrients!$CX$9)*I$7)+(((IF($A$8=Nutrients!$B$79,Nutrients!$CX$79,(IF($A$8=Nutrients!$B$77,Nutrients!$CX$77,Nutrients!$CX$78)))))*I$8))/2000/I$236*100","v":38.1214283292638},{"$f":"(SUMPRODUCT(J$9:J$229,Nutrients!$CX$8:$CX$228)+(IF($A$7=Nutrients!$B$8,Nutrients!$CX$8,Nutrients!$CX$9)*J$7)+(((IF($A$8=Nutrients!$B$79,Nutrients!$CX$79,(IF($A$8=Nutrients!$B$77,Nutrients!$CX$77,Nutrients!$CX$78)))))*J$8))/2000/J$236*100","v":39.526542648965695},{"$f":"(SUMPRODUCT(K$9:K$229,Nutrients!$CX$8:$CX$228)+(IF($A$7=Nutrients!$B$8,Nutrients!$CX$8,Nutrients!$CX$9)*K$7)+(((IF($A$8=Nutrients!$B$79,Nutrients!$CX$79,(IF($A$8=Nutrients!$B$77,Nutrients!$CX$77,Nutrients!$CX$78)))))*K$8))/2000/K$236*100","v":41.314187397698696},{"$f":"(SUMPRODUCT(L$9:L$229,Nutrients!$CX$8:$CX$228)+(IF($A$7=Nutrients!$B$8,Nutrients!$CX$8,Nutrients!$CX$9)*L$7)+(((IF($A$8=Nutrients!$B$79,Nutrients!$CX$79,(IF($A$8=Nutrients!$B$77,Nutrients!$CX$77,Nutrients!$CX$78)))))*L$8))/2000/L$236*100","v":42.535654832994965},{"$f":"(SUMPRODUCT(M$9:M$229,Nutrients!$CX$8:$CX$228)+(IF($A$7=Nutrients!$B$8,Nutrients!$CX$8,Nutrients!$CX$9)*M$7)+(((IF($A$8=Nutrients!$B$79,Nutrients!$CX$79,(IF($A$8=Nutrients!$B$77,Nutrients!$CX$77,Nutrients!$CX$78)))))*M$8))/2000/M$236*100","v":42.896616530103024},{"$f":"(SUMPRODUCT(N$9:N$229,Nutrients!$CX$8:$CX$228)+(IF($A$7=Nutrients!$B$8,Nutrients!$CX$8,Nutrients!$CX$9)*N$7)+(((IF($A$8=Nutrients!$B$79,Nutrients!$CX$79,(IF($A$8=Nutrients!$B$77,Nutrients!$CX$77,Nutrients!$CX$78)))))*N$8))/2000/N$236*100","v":43.117952463559803},null,{"$f":"(SUMPRODUCT(P$9:P$229,Nutrients!$CX$8:$CX$228)+(IF($A$7=Nutrients!$B$8,Nutrients!$CX$8,Nutrients!$CX$9)*P$7)+(((IF($A$8=Nutrients!$B$79,Nutrients!$CX$79,(IF($A$8=Nutrients!$B$77,Nutrients!$CX$77,Nutrients!$CX$78)))))*P$8))/2000/P$236*100","v":38.598210338471304},{"$f":"(SUMPRODUCT(Q$9:Q$229,Nutrients!$CX$8:$CX$228)+(IF($A$7=Nutrients!$B$8,Nutrients!$CX$8,Nutrients!$CX$9)*Q$7)+(((IF($A$8=Nutrients!$B$79,Nutrients!$CX$79,(IF($A$8=Nutrients!$B$77,Nutrients!$CX$77,Nutrients!$CX$78)))))*Q$8))/2000/Q$236*100","v":40.065307522238768},{"$f":"(SUMPRODUCT(R$9:R$229,Nutrients!$CX$8:$CX$228)+(IF($A$7=Nutrients!$B$8,Nutrients!$CX$8,Nutrients!$CX$9)*R$7)+(((IF($A$8=Nutrients!$B$79,Nutrients!$CX$79,(IF($A$8=Nutrients!$B$77,Nutrients!$CX$77,Nutrients!$CX$78)))))*R$8))/2000/R$236*100","v":41.923189025982687},{"$f":"(SUMPRODUCT(S$9:S$229,Nutrients!$CX$8:$CX$228)+(IF($A$7=Nutrients!$B$8,Nutrients!$CX$8,Nutrients!$CX$9)*S$7)+(((IF($A$8=Nutrients!$B$79,Nutrients!$CX$79,(IF($A$8=Nutrients!$B$77,Nutrients!$CX$77,Nutrients!$CX$78)))))*S$8))/2000/S$236*100","v":43.219184561670296},{"$f":"(SUMPRODUCT(T$9:T$229,Nutrients!$CX$8:$CX$228)+(IF($A$7=Nutrients!$B$8,Nutrients!$CX$8,Nutrients!$CX$9)*T$7)+(((IF($A$8=Nutrients!$B$79,Nutrients!$CX$79,(IF($A$8=Nutrients!$B$77,Nutrients!$CX$77,Nutrients!$CX$78)))))*T$8))/2000/T$236*100","v":43.643205810548579},{"$f":"(SUMPRODUCT(U$9:U$229,Nutrients!$CX$8:$CX$228)+(IF($A$7=Nutrients!$B$8,Nutrients!$CX$8,Nutrients!$CX$9)*U$7)+(((IF($A$8=Nutrients!$B$79,Nutrients!$CX$79,(IF($A$8=Nutrients!$B$77,Nutrients!$CX$77,Nutrients!$CX$78)))))*U$8))/2000/U$236*100","v":43.904191395516605},null,{"$f":"(SUMPRODUCT(W$9:W$229,Nutrients!$CX$8:$CX$228)+(IF($A$7=Nutrients!$B$8,Nutrients!$CX$8,Nutrients!$CX$9)*W$7)+(((IF($A$8=Nutrients!$B$79,Nutrients!$CX$79,(IF($A$8=Nutrients!$B$77,Nutrients!$CX$77,Nutrients!$CX$78)))))*W$8))/2000/W$236*100","v":39.075368681403617},{"$f":"(SUMPRODUCT(X$9:X$229,Nutrients!$CX$8:$CX$228)+(IF($A$7=Nutrients!$B$8,Nutrients!$CX$8,Nutrients!$CX$9)*X$7)+(((IF($A$8=Nutrients!$B$79,Nutrients!$CX$79,(IF($A$8=Nutrients!$B$77,Nutrients!$CX$77,Nutrients!$CX$78)))))*X$8))/2000/X$236*100","v":40.60420496796521},{"$f":"(SUMPRODUCT(Y$9:Y$229,Nutrients!$CX$8:$CX$228)+(IF($A$7=Nutrients!$B$8,Nutrients!$CX$8,Nutrients!$CX$9)*Y$7)+(((IF($A$8=Nutrients!$B$79,Nutrients!$CX$79,(IF($A$8=Nutrients!$B$77,Nutrients!$CX$77,Nutrients!$CX$78)))))*Y$8))/2000/Y$236*100","v":42.53304921289098},{"$f":"(SUMPRODUCT(Z$9:Z$229,Nutrients!$CX$8:$CX$228)+(IF($A$7=Nutrients!$B$8,Nutrients!$CX$8,Nutrients!$CX$9)*Z$7)+(((IF($A$8=Nutrients!$B$79,Nutrients!$CX$79,(IF($A$8=Nutrients!$B$77,Nutrients!$CX$77,Nutrients!$CX$78)))))*Z$8))/2000/Z$236*100","v":43.902400702669141},{"$f":"(SUMPRODUCT(AA$9:AA$229,Nutrients!$CX$8:$CX$228)+(IF($A$7=Nutrients!$B$8,Nutrients!$CX$8,Nutrients!$CX$9)*AA$7)+(((IF($A$8=Nutrients!$B$79,Nutrients!$CX$79,(IF($A$8=Nutrients!$B$77,Nutrients!$CX$77,Nutrients!$CX$78)))))*AA$8))/2000/AA$236*100","v":44.387816160815049},{"$f":"(SUMPRODUCT(AB$9:AB$229,Nutrients!$CX$8:$CX$228)+(IF($A$7=Nutrients!$B$8,Nutrients!$CX$8,Nutrients!$CX$9)*AB$7)+(((IF($A$8=Nutrients!$B$79,Nutrients!$CX$79,(IF($A$8=Nutrients!$B$77,Nutrients!$CX$77,Nutrients!$CX$78)))))*AB$8))/2000/AB$236*100","v":44.681825583930454},null,{"$f":"(SUMPRODUCT(AD$9:AD$229,Nutrients!$CX$8:$CX$228)+(IF($A$7=Nutrients!$B$8,Nutrients!$CX$8,Nutrients!$CX$9)*AD$7)+(((IF($A$8=Nutrients!$B$79,Nutrients!$CX$79,(IF($A$8=Nutrients!$B$77,Nutrients!$CX$77,Nutrients!$CX$78)))))*AD$8))/2000/AD$236*100","v":39.551878290274509},{"$f":"(SUMPRODUCT(AE$9:AE$229,Nutrients!$CX$8:$CX$228)+(IF($A$7=Nutrients!$B$8,Nutrients!$CX$8,Nutrients!$CX$9)*AE$7)+(((IF($A$8=Nutrients!$B$79,Nutrients!$CX$79,(IF($A$8=Nutrients!$B$77,Nutrients!$CX$77,Nutrients!$CX$78)))))*AE$8))/2000/AE$236*100","v":41.143445749730873},{"$f":"(SUMPRODUCT(AF$9:AF$229,Nutrients!$CX$8:$CX$228)+(IF($A$7=Nutrients!$B$8,Nutrients!$CX$8,Nutrients!$CX$9)*AF$7)+(((IF($A$8=Nutrients!$B$79,Nutrients!$CX$79,(IF($A$8=Nutrients!$B$77,Nutrients!$CX$77,Nutrients!$CX$78)))))*AF$8))/2000/AF$236*100","v":43.141937753216638},{"$f":"(SUMPRODUCT(AG$9:AG$229,Nutrients!$CX$8:$CX$228)+(IF($A$7=Nutrients!$B$8,Nutrients!$CX$8,Nutrients!$CX$9)*AG$7)+(((IF($A$8=Nutrients!$B$79,Nutrients!$CX$79,(IF($A$8=Nutrients!$B$77,Nutrients!$CX$77,Nutrients!$CX$78)))))*AG$8))/2000/AG$236*100","v":44.585064619293149},{"$f":"(SUMPRODUCT(AH$9:AH$229,Nutrients!$CX$8:$CX$228)+(IF($A$7=Nutrients!$B$8,Nutrients!$CX$8,Nutrients!$CX$9)*AH$7)+(((IF($A$8=Nutrients!$B$79,Nutrients!$CX$79,(IF($A$8=Nutrients!$B$77,Nutrients!$CX$77,Nutrients!$CX$78)))))*AH$8))/2000/AH$236*100","v":45.112237874874204},{"$f":"(SUMPRODUCT(AI$9:AI$229,Nutrients!$CX$8:$CX$228)+(IF($A$7=Nutrients!$B$8,Nutrients!$CX$8,Nutrients!$CX$9)*AI$7)+(((IF($A$8=Nutrients!$B$79,Nutrients!$CX$79,(IF($A$8=Nutrients!$B$77,Nutrients!$CX$77,Nutrients!$CX$78)))))*AI$8))/2000/AI$236*100","v":45.438972580230981},null,{"$f":"(SUMPRODUCT(AK$9:AK$229,Nutrients!$CX$8:$CX$228)+(IF($A$7=Nutrients!$B$8,Nutrients!$CX$8,Nutrients!$CX$9)*AK$7)+(((IF($A$8=Nutrients!$B$79,Nutrients!$CX$79,(IF($A$8=Nutrients!$B$77,Nutrients!$CX$77,Nutrients!$CX$78)))))*AK$8))/2000/AK$236*100","v":40.027923998838958},{"$f":"(SUMPRODUCT(AL$9:AL$229,Nutrients!$CX$8:$CX$228)+(IF($A$7=Nutrients!$B$8,Nutrients!$CX$8,Nutrients!$CX$9)*AL$7)+(((IF($A$8=Nutrients!$B$79,Nutrients!$CX$79,(IF($A$8=Nutrients!$B$77,Nutrients!$CX$77,Nutrients!$CX$78)))))*AL$8))/2000/AL$236*100","v":41.681609712061089},{"$f":"(SUMPRODUCT(AM$9:AM$229,Nutrients!$CX$8:$CX$228)+(IF($A$7=Nutrients!$B$8,Nutrients!$CX$8,Nutrients!$CX$9)*AM$7)+(((IF($A$8=Nutrients!$B$79,Nutrients!$CX$79,(IF($A$8=Nutrients!$B$77,Nutrients!$CX$77,Nutrients!$CX$78)))))*AM$8))/2000/AM$236*100","v":43.751224304402633},{"$f":"(SUMPRODUCT(AN$9:AN$229,Nutrients!$CX$8:$CX$228)+(IF($A$7=Nutrients!$B$8,Nutrients!$CX$8,Nutrients!$CX$9)*AN$7)+(((IF($A$8=Nutrients!$B$79,Nutrients!$CX$79,(IF($A$8=Nutrients!$B$77,Nutrients!$CX$77,Nutrients!$CX$78)))))*AN$8))/2000/AN$236*100","v":45.251406380888618},{"$f":"(SUMPRODUCT(AO$9:AO$229,Nutrients!$CX$8:$CX$228)+(IF($A$7=Nutrients!$B$8,Nutrients!$CX$8,Nutrients!$CX$9)*AO$7)+(((IF($A$8=Nutrients!$B$79,Nutrients!$CX$79,(IF($A$8=Nutrients!$B$77,Nutrients!$CX$77,Nutrients!$CX$78)))))*AO$8))/2000/AO$236*100","v":45.831135775929191},{"$f":"(SUMPRODUCT(AP$9:AP$229,Nutrients!$CX$8:$CX$228)+(IF($A$7=Nutrients!$B$8,Nutrients!$CX$8,Nutrients!$CX$9)*AP$7)+(((IF($A$8=Nutrients!$B$79,Nutrients!$CX$79,(IF($A$8=Nutrients!$B$77,Nutrients!$CX$77,Nutrients!$CX$78)))))*AP$8))/2000/AP$236*100","v":46.196078535906992},null,{"$f":"(SUMPRODUCT(AR$9:AR$229,Nutrients!$CX$8:$CX$228)+(IF($A$7=Nutrients!$B$8,Nutrients!$CX$8,Nutrients!$CX$9)*AR$7)+(((IF($A$8=Nutrients!$B$79,Nutrients!$CX$79,(IF($A$8=Nutrients!$B$77,Nutrients!$CX$77,Nutrients!$CX$78)))))*AR$8))/2000/AR$236*100","v":40.503109657758124},{"$f":"(SUMPRODUCT(AS$9:AS$229,Nutrients!$CX$8:$CX$228)+(IF($A$7=Nutrients!$B$8,Nutrients!$CX$8,Nutrients!$CX$9)*AS$7)+(((IF($A$8=Nutrients!$B$79,Nutrients!$CX$79,(IF($A$8=Nutrients!$B$77,Nutrients!$CX$77,Nutrients!$CX$78)))))*AS$8))/2000/AS$236*100","v":42.219627838307268},{"$f":"(SUMPRODUCT(AT$9:AT$229,Nutrients!$CX$8:$CX$228)+(IF($A$7=Nutrients!$B$8,Nutrients!$CX$8,Nutrients!$CX$9)*AT$7)+(((IF($A$8=Nutrients!$B$79,Nutrients!$CX$79,(IF($A$8=Nutrients!$B$77,Nutrients!$CX$77,Nutrients!$CX$78)))))*AT$8))/2000/AT$236*100","v":44.357696139546746},{"$f":"(SUMPRODUCT(AU$9:AU$229,Nutrients!$CX$8:$CX$228)+(IF($A$7=Nutrients!$B$8,Nutrients!$CX$8,Nutrients!$CX$9)*AU$7)+(((IF($A$8=Nutrients!$B$79,Nutrients!$CX$79,(IF($A$8=Nutrients!$B$77,Nutrients!$CX$77,Nutrients!$CX$78)))))*AU$8))/2000/AU$236*100","v":45.909990881005392},{"$f":"(SUMPRODUCT(AV$9:AV$229,Nutrients!$CX$8:$CX$228)+(IF($A$7=Nutrients!$B$8,Nutrients!$CX$8,Nutrients!$CX$9)*AV$7)+(((IF($A$8=Nutrients!$B$79,Nutrients!$CX$79,(IF($A$8=Nutrients!$B$77,Nutrients!$CX$77,Nutrients!$CX$78)))))*AV$8))/2000/AV$236*100","v":46.550029798199063},{"$f":"(SUMPRODUCT(AW$9:AW$229,Nutrients!$CX$8:$CX$228)+(IF($A$7=Nutrients!$B$8,Nutrients!$CX$8,Nutrients!$CX$9)*AW$7)+(((IF($A$8=Nutrients!$B$79,Nutrients!$CX$79,(IF($A$8=Nutrients!$B$77,Nutrients!$CX$77,Nutrients!$CX$78)))))*AW$8))/2000/AW$236*100","v":46.953182468516722}]
["Total Lys, %",{"$f":"(SUMPRODUCT(B$9:B$229,Nutrients!$AJ$8:$AJ$228)+(IF($A7=Nutrients!$B$8,Nutrients!$AJ$8,Nutrients!$AJ$9)*B$7)+(((IF($A8=Nutrients!$B$79,Nutrients!$AJ$79,(IF($A8=Nutrients!$B$77,Nutrients!$AJ$77,Nutrients!$AJ$78)))))*B$8))/2000","v":1.3184028426828778},{"$f":"(SUMPRODUCT(C$9:C$229,Nutrients!$AJ$8:$AJ$228)+(IF($A7=Nutrients!$B$8,Nutrients!$AJ$8,Nutrients!$AJ$9)*C$7)+(((IF($A8=Nutrients!$B$79,Nutrients!$AJ$79,(IF($A8=Nutrients!$B$77,Nutrients!$AJ$77,Nutrients!$AJ$78)))))*C$8))/2000","v":1.1707660127345534},{"$f":"(SUMPRODUCT(D$9:D$229,Nutrients!$AJ$8:$AJ$228)+(IF($A7=Nutrients!$B$8,Nutrients!$AJ$8,Nutrients!$AJ$9)*D$7)+(((IF($A8=Nutrients!$B$79,Nutrients!$AJ$79,(IF($A8=Nutrients!$B$77,Nutrients!$AJ$77,Nutrients!$AJ$78)))))*D$8))/2000","v":1.0403693489168444},{"$f":"(SUMPRODUCT(E$9:E$229,Nutrients!$AJ$8:$AJ$228)+(IF($A7=Nutrients!$B$8,Nutrients!$AJ$8,Nutrients!$AJ$9)*E$7)+(((IF($A8=Nutrients!$B$79,Nutrients!$AJ$79,(IF($A8=Nutrients!$B$77,Nutrients!$AJ$77,Nutrients!$AJ$78)))))*E$8))/2000","v":0.93090396099650141},{"$f":"(SUMPRODUCT(F$9:F$229,Nutrients!$AJ$8:$AJ$228)+(IF($A7=Nutrients!$B$8,Nutrients!$AJ$8,Nutrients!$AJ$9)*F$7)+(((IF($A8=Nutrients!$B$79,Nutrients!$AJ$79,(IF($A8=Nutrients!$B$77,Nutrients!$AJ$77,Nutrients!$AJ$78)))))*F$8))/2000","v":0.85426384482722051},{"$f":"(SUMPRODUCT(G$9:G$229,Nutrients!$AJ$8:$AJ$228)+(IF($A7=Nutrients!$B$8,Nutrients!$AJ$8,Nutrients!$AJ$9)*G$7)+(((IF($A8=Nutrients!$B$79,Nutrients!$AJ$79,(IF($A8=Nutrients!$B$77,Nutrients!$AJ$77,Nutrients!$AJ$78)))))*G$8))/2000","v":0.81186991699752797},null,{"$f":"(SUMPRODUCT(I$9:I$229,Nutrients!$AJ$8:$AJ$228)+(IF($A7=Nutrients!$B$8,Nutrients!$AJ$8,Nutrients!$AJ$9)*I$7)+(((IF($A8=Nutrients!$B$79,Nutrients!$AJ$79,(IF($A8=Nutrients!$B$77,Nutrients!$AJ$77,Nutrients!$AJ$78)))))*I$8))/2000","v":1.3271635415014684},{"$f":"(SUMPRODUCT(J$9:J$229,Nutrients!$AJ$8:$AJ$228)+(IF($A7=Nutrients!$B$8,Nutrients!$AJ$8,Nutrients!$AJ$9)*J$7)+(((IF($A8=Nutrients!$B$79,Nutrients!$AJ$79,(IF($A8=Nutrients!$B$77,Nutrients!$AJ$77,Nutrients!$AJ$78)))))*J$8))/2000","v":1.1795196286355227},{"$f":"(SUMPRODUCT(K$9:K$229,Nutrients!$AJ$8:$AJ$228)+(IF($A7=Nutrients!$B$8,Nutrients!$AJ$8,Nutrients!$AJ$9)*K$7)+(((IF($A8=Nutrients!$B$79,Nutrients!$AJ$79,(IF($A8=Nutrients!$B$77,Nutrients!$AJ$77,Nutrients!$AJ$78)))))*K$8))/2000","v":1.0491266096804401},{"$f":"(SUMPRODUCT(L$9:L$229,Nutrients!$AJ$8:$AJ$228)+(IF($A7=Nutrients!$B$8,Nutrients!$AJ$8,Nutrients!$AJ$9)*L$7)+(((IF($A8=Nutrients!$B$79,Nutrients!$AJ$79,(IF($A8=Nutrients!$B$77,Nutrients!$AJ$77,Nutrients!$AJ$78)))))*L$8))/2000","v":0.9396581542649074},{"$f":"(SUMPRODUCT(M$9:M$229,Nutrients!$AJ$8:$AJ$228)+(IF($A7=Nutrients!$B$8,Nutrients!$AJ$8,Nutrients!$AJ$9)*M$7)+(((IF($A8=Nutrients!$B$79,Nutrients!$AJ$79,(IF($A8=Nutrients!$B$77,Nutrients!$AJ$77,Nutrients!$AJ$78)))))*M$8))/2000","v":0.86301802173342368},{"$f":"(SUMPRODUCT(N$9:N$229,Nutrients!$AJ$8:$AJ$228)+(IF($A7=Nutrients!$B$8,Nutrients!$AJ$8,Nutrients!$AJ$9)*N$7)+(((IF($A8=Nutrients!$B$79,Nutrients!$AJ$79,(IF($A8=Nutrients!$B$77,Nutrients!$AJ$77,Nutrients!$AJ$78)))))*N$8))/2000","v":0.82062273265727392},null,{"$f":"(SUMPRODUCT(P$9:P$229,Nutrients!$AJ$8:$AJ$228)+(IF($A7=Nutrients!$B$8,Nutrients!$AJ$8,Nutrients!$AJ$9)*P$7)+(((IF($A8=Nutrients!$B$79,Nutrients!$AJ$79,(IF($A8=Nutrients!$B$77,Nutrients!$AJ$77,Nutrients!$AJ$78)))))*P$8))/2000","v":1.3359196958710609},{"$f":"(SUMPRODUCT(Q$9:Q$229,Nutrients!$AJ$8:$AJ$228)+(IF($A7=Nutrients!$B$8,Nutrients!$AJ$8,Nutrients!$AJ$9)*Q$7)+(((IF($A8=Nutrients!$B$79,Nutrients!$AJ$79,(IF($A8=Nutrients!$B$77,Nutrients!$AJ$77,Nutrients!$AJ$78)))))*Q$8))/2000","v":1.1882739962227507},{"$f":"(SUMPRODUCT(R$9:R$229,Nutrients!$AJ$8:$AJ$228)+(IF($A7=Nutrients!$B$8,Nutrients!$AJ$8,Nutrients!$AJ$9)*R$7)+(((IF($A8=Nutrients!$B$79,Nutrients!$AJ$79,(IF($A8=Nutrients!$B$77,Nutrients!$AJ$77,Nutrients!$AJ$78)))))*R$8))/2000","v":1.057879139797391},{"$f":"(SUMPRODUCT(S$9:S$229,Nutrients!$AJ$8:$AJ$228)+(IF($A7=Nutrients!$B$8,Nutrients!$AJ$8,Nutrients!$AJ$9)*S$7)+(((IF($A8=Nutrients!$B$79,Nutrients!$AJ$79,(IF($A8=Nutrients!$B$77,Nutrients!$AJ$77,Nutrients!$AJ$78)))))*S$8))/2000","v":0.94841119390104534},{"$f":"(SUMPRODUCT(T$9:T$229,Nutrients!$AJ$8:$AJ$228)+(IF($A7=Nutrients!$B$8,Nutrients!$AJ$8,Nutrients!$AJ$9)*T$7)+(((IF($A8=Nutrients!$B$79,Nutrients!$AJ$79,(IF($A8=Nutrients!$B$77,Nutrients!$AJ$77,Nutrients!$AJ$78)))))*T$8))/2000","v":0.87177221741562871},{"$f":"(SUMPRODUCT(U$9:U$229,Nutrients!$AJ$8:$AJ$228)+(IF($A7=Nutrients!$B$8,Nutrients!$AJ$8,Nutrients!$AJ$9)*U$7)+(((IF($A8=Nutrients!$B$79,Nutrients!$AJ$79,(IF($A8=Nutrients!$B$77,Nutrients!$AJ$77,Nutrients!$AJ$78)))))*U$8))/2000","v":0.82937643702496799},null,{"$f":"(SUMPRODUCT(W$9:W$229,Nutrients!$AJ$8:$AJ$228)+(IF($A7=Nutrients!$B$8,Nutrients!$AJ$8,Nutrients!$AJ$9)*W$7)+(((IF($A8=Nutrients!$B$79,Nutrients!$AJ$79,(IF($A8=Nutrients!$B$77,Nutrients!$AJ$77,Nutrients!$AJ$78)))))*W$8))/2000","v":1.3446774400725758},{"$f":"(SUMPRODUCT(X$9:X$229,Nutrients!$AJ$8:$AJ$228)+(IF($A7=Nutrients!$B$8,Nutrients!$AJ$8,Nutrients!$AJ$9)*X$7)+(((IF($A8=Nutrients!$B$79,Nutrients!$AJ$79,(IF($A8=Nutrients!$B$77,Nutrients!$AJ$77,Nutrients!$AJ$78)))))*X$8))/2000","v":1.1970288589938833},{"$f":"(SUMPRODUCT(Y$9:Y$229,Nutrients!$AJ$8:$AJ$228)+(IF($A7=Nutrients!$B$8,Nutrients!$AJ$8,Nutrients!$AJ$9)*Y$7)+(((IF($A8=Nutrients!$B$79,Nutrients!$AJ$79,(IF($A8=Nutrients!$B$77,Nutrients!$AJ$77,Nutrients!$AJ$78)))))*Y$8))/2000","v":1.066634504354383},{"$f":"(SUMPRODUCT(Z$9:Z$229,Nutrients!$AJ$8:$AJ$228)+(IF($A7=Nutrients!$B$8,Nutrients!$AJ$8,Nutrients!$AJ$9)*Z$7)+(((IF($A8=Nutrients!$B$79,Nutrients!$AJ$79,(IF($A8=Nutrients!$B$77,Nutrients!$AJ$77,Nutrients!$AJ$78)))))*Z$8))/2000","v":0.95716331090755213},{"$f":"(SUMPRODUCT(AA$9:AA$229,Nutrients!$AJ$8:$AJ$228)+(IF($A7=Nutrients!$B$8,Nutrients!$AJ$8,Nutrients!$AJ$9)*AA$7)+(((IF($A8=Nutrients!$B$79,Nutrients!$AJ$79,(IF($A8=Nutrients!$B$77,Nutrients!$AJ$77,Nutrients!$AJ$78)))))*AA$8))/2000","v":0.880521079452664},{"$f":"(SUMPRODUCT(AB$9:AB$229,Nutrients!$AJ$8:$AJ$228)+(IF($A7=Nutrients!$B$8,Nutrients!$AJ$8,Nutrients!$AJ$9)*AB$7)+(((IF($A8=Nutrients!$B$79,Nutrients!$AJ$79,(IF($A8=Nutrients!$B$77,Nutrients!$AJ$77,Nutrients!$AJ$78)))))*AB$8))/2000","v":0.83810812466694551},null,{"$f":"(SUMPRODUCT(AD$9:AD$229,Nutrients!$AJ$8:$AJ$228)+(IF($A7=Nutrients!$B$8,Nutrients!$AJ$8,Nutrients!$AJ$9)*AD$7)+(((IF($A8=Nutrients!$B$79,Nutrients!$AJ$79,(IF($A8=Nutrients!$B$77,Nutrients!$AJ$77,Nutrients!$AJ$78)))))*AD$8))/2000","v":1.3534324436796334},{"$f":"(SUMPRODUCT(AE$9:AE$229,Nutrients!$AJ$8:$AJ$228)+(IF($A7=Nutrients!$B$8,Nutrients!$AJ$8,Nutrients!$AJ$9)*AE$7)+(((IF($A8=Nutrients!$B$79,Nutrients!$AJ$79,(IF($A8=Nutrients!$B$77,Nutrients!$AJ$77,Nutrients!$AJ$78)))))*AE$8))/2000","v":1.205785004191916},{"$f":"(SUMPRODUCT(AF$9:AF$229,Nutrients!$AJ$8:$AJ$228)+(IF($A7=Nutrients!$B$8,Nutrients!$AJ$8,Nutrients!$AJ$9)*AF$7)+(((IF($A8=Nutrients!$B$79,Nutrients!$AJ$79,(IF($A8=Nutrients!$B$77,Nutrients!$AJ$77,Nutrients!$AJ$78)))))*AF$8))/2000","v":1.0753866611234606},{"$f":"(SUMPRODUCT(AG$9:AG$229,Nutrients!$AJ$8:$AJ$228)+(IF($A7=Nutrients!$B$8,Nutrients!$AJ$8,Nutrients!$AJ$9)*AG$7)+(((IF($A8=Nutrients!$B$79,Nutrients!$AJ$79,(IF($A8=Nutrients!$B$77,Nutrients!$AJ$77,Nutrients!$AJ$78)))))*AG$8))/2000","v":0.96591380317364539},{"$f":"(SUMPRODUCT(AH$9:AH$229,Nutrients!$AJ$8:$AJ$228)+(IF($A7=Nutrients!$B$8,Nutrients!$AJ$8,Nutrients!$AJ$9)*AH$7)+(((IF($A8=Nutrients!$B$79,Nutrients!$AJ$79,(IF($A8=Nutrients!$B$77,Nutrients!$AJ$77,Nutrients!$AJ$78)))))*AH$8))/2000","v":0.88921552874532017},{"$f":"(SUMPRODUCT(AI$9:AI$229,Nutrients!$AJ$8:$AJ$228)+(IF($A7=Nutrients!$B$8,Nutrients!$AJ$8,Nutrients!$AJ$9)*AI$7)+(((IF($A8=Nutrients!$B$79,Nutrients!$AJ$79,(IF($A8=Nutrients!$B$77,Nutrients!$AJ$77,Nutrients!$AJ$78)))))*AI$8))/2000","v":0.84678739228185262},null,{"$f":"(SUMPRODUCT(AK$9:AK$229,Nutrients!$AJ$8:$AJ$228)+(IF($A7=Nutrients!$B$8,Nutrients!$AJ$8,Nutrients!$AJ$9)*AK$7)+(((IF($A8=Nutrients!$B$79,Nutrients!$AJ$79,(IF($A8=Nutrients!$B$77,Nutrients!$AJ$77,Nutrients!$AJ$78)))))*AK$8))/2000","v":1.3621854875273944},{"$f":"(SUMPRODUCT(AL$9:AL$229,Nutrients!$AJ$8:$AJ$228)+(IF($A7=Nutrients!$B$8,Nutrients!$AJ$8,Nutrients!$AJ$9)*AL$7)+(((IF($A8=Nutrients!$B$79,Nutrients!$AJ$79,(IF($A8=Nutrients!$B$77,Nutrients!$AJ$77,Nutrients!$AJ$78)))))*AL$8))/2000","v":1.2145371272598704},{"$f":"(SUMPRODUCT(AM$9:AM$229,Nutrients!$AJ$8:$AJ$228)+(IF($A7=Nutrients!$B$8,Nutrients!$AJ$8,Nutrients!$AJ$9)*AM$7)+(((IF($A8=Nutrients!$B$79,Nutrients!$AJ$79,(IF($A8=Nutrients!$B$77,Nutrients!$AJ$77,Nutrients!$AJ$78)))))*AM$8))/2000","v":1.0841401318830877},{"$f":"(SUMPRODUCT(AN$9:AN$229,Nutrients!$AJ$8:$AJ$228)+(IF($A7=Nutrients!$B$8,Nutrients!$AJ$8,Nutrients!$AJ$9)*AN$7)+(((IF($A8=Nutrients!$B$79,Nutrients!$AJ$79,(IF($A8=Nutrients!$B$77,Nutrients!$AJ$77,Nutrients!$AJ$78)))))*AN$8))/2000","v":0.97461627281321506},{"$f":"(SUMPRODUCT(AO$9:AO$229,Nutrients!$AJ$8:$AJ$228)+(IF($A7=Nutrients!$B$8,Nutrients!$AJ$8,Nutrients!$AJ$9)*AO$7)+(((IF($A8=Nutrients!$B$79,Nutrients!$AJ$79,(IF($A8=Nutrients!$B$77,Nutrients!$AJ$77,Nutrients!$AJ$78)))))*AO$8))/2000","v":0.89789509016630897},{"$f":"(SUMPRODUCT(AP$9:AP$229,Nutrients!$AJ$8:$AJ$228)+(IF($A7=Nutrients!$B$8,Nutrients!$AJ$8,Nutrients!$AJ$9)*AP$7)+(((IF($A8=Nutrients!$B$79,Nutrients!$AJ$79,(IF($A8=Nutrients!$B$77,Nutrients!$AJ$77,Nutrients!$AJ$78)))))*AP$8))/2000","v":0.85546655488721846},null,{"$f":"(SUMPRODUCT(AR$9:AR$229,Nutrients!$AJ$8:$AJ$228)+(IF($A7=Nutrients!$B$8,Nutrients!$AJ$8,Nutrients!$AJ$9)*AR$7)+(((IF($A8=Nutrients!$B$79,Nutrients!$AJ$79,(IF($A8=Nutrients!$B$77,Nutrients!$AJ$77,Nutrients!$AJ$78)))))*AR$8))/2000","v":1.3709348980723421},{"$f":"(SUMPRODUCT(AS$9:AS$229,Nutrients!$AJ$8:$AJ$228)+(IF($A7=Nutrients!$B$8,Nutrients!$AJ$8,Nutrients!$AJ$9)*AS$7)+(((IF($A8=Nutrients!$B$79,Nutrients!$AJ$79,(IF($A8=Nutrients!$B$77,Nutrients!$AJ$77,Nutrients!$AJ$78)))))*AS$8))/2000","v":1.2232887056016799},{"$f":"(SUMPRODUCT(AT$9:AT$229,Nutrients!$AJ$8:$AJ$228)+(IF($A7=Nutrients!$B$8,Nutrients!$AJ$8,Nutrients!$AJ$9)*AT$7)+(((IF($A8=Nutrients!$B$79,Nutrients!$AJ$79,(IF($A8=Nutrients!$B$77,Nutrients!$AJ$77,Nutrients!$AJ$78)))))*AT$8))/2000","v":1.092884310156885},{"$f":"(SUMPRODUCT(AU$9:AU$229,Nutrients!$AJ$8:$AJ$228)+(IF($A7=Nutrients!$B$8,Nutrients!$AJ$8,Nutrients!$AJ$9)*AU$7)+(((IF($A8=Nutrients!$B$79,Nutrients!$AJ$79,(IF($A8=Nutrients!$B$77,Nutrients!$AJ$77,Nutrients!$AJ$78)))))*AU$8))/2000","v":0.98329591923672111},{"$f":"(SUMPRODUCT(AV$9:AV$229,Nutrients!$AJ$8:$AJ$228)+(IF($A7=Nutrients!$B$8,Nutrients!$AJ$8,Nutrients!$AJ$9)*AV$7)+(((IF($A8=Nutrients!$B$79,Nutrients!$AJ$79,(IF($A8=Nutrients!$B$77,Nutrients!$AJ$77,Nutrients!$AJ$78)))))*AV$8))/2000","v":0.90657464113313202},{"$f":"(SUMPRODUCT(AW$9:AW$229,Nutrients!$AJ$8:$AJ$228)+(IF($A7=Nutrients!$B$8,Nutrients!$AJ$8,Nutrients!$AJ$9)*AW$7)+(((IF($A8=Nutrients!$B$79,Nutrients!$AJ$79,(IF($A8=Nutrients!$B$77,Nutrients!$AJ$77,Nutrients!$AJ$78)))))*AW$8))/2000","v":0.86414571231621906}]
["ME, kcal/lb",{"$f":"(SUMPRODUCT(B$9:B$229,Nutrients!$E$8:$E$228)+(IF($A$7=Nutrients!$B$8,Nutrients!$E$8,Nutrients!$E$9)*B$7)+(((IF($A$8=Nutrients!$B$79,Nutrients!$E$79,(IF($A$8=Nutrients!$B$77,Nutrients!$E$77,Nutrients!$E$78)))))*B$8))/2000/2.2046","v":1494.8752150724465},{"$f":"(SUMPRODUCT(C$9:C$229,Nutrients!$E$8:$E$228)+(IF($A$7=Nutrients!$B$8,Nutrients!$E$8,Nutrients!$E$9)*C$7)+(((IF($A$8=Nutrients!$B$79,Nutrients!$E$79,(IF($A$8=Nutrients!$B$77,Nutrients!$E$77,Nutrients!$E$78)))))*C$8))/2000/2.2046","v":1499.3360353372043},{"$f":"(SUMPRODUCT(D$9:D$229,Nutrients!$E$8:$E$228)+(IF($A$7=Nutrients!$B$8,Nutrients!$E$8,Nutrients!$E$9)*D$7)+(((IF($A$8=Nutrients!$B$79,Nutrients!$E$79,(IF($A$8=Nutrients!$B$77,Nutrients!$E$77,Nutrients!$E$78)))))*D$8))/2000/2.2046","v":1503.3094742023004},{"$f":"(SUMPRODUCT(E$9:E$229,Nutrients!$E$8:$E$228)+(IF($A$7=Nutrients!$B$8,Nutrients!$E$8,Nutrients!$E$9)*E$7)+(((IF($A$8=Nutrients!$B$79,Nutrients!$E$79,(IF($A$8=Nutrients!$B$77,Nutrients!$E$77,Nutrients!$E$78)))))*E$8))/2000/2.2046","v":1507.503198782209},{"$f":"(SUMPRODUCT(F$9:F$229,Nutrients!$E$8:$E$228)+(IF($A$7=Nutrients!$B$8,Nutrients!$E$8,Nutrients!$E$9)*F$7)+(((IF($A$8=Nutrients!$B$79,Nutrients!$E$79,(IF($A$8=Nutrients!$B$77,Nutrients!$E$77,Nutrients!$E$78)))))*F$8))/2000/2.2046","v":1511.0932854222328},{"$f":"(SUMPRODUCT(G$9:G$229,Nutrients!$E$8:$E$228)+(IF($A$7=Nutrients!$B$8,Nutrients!$E$8,Nutrients!$E$9)*G$7)+(((IF($A$8=Nutrients!$B$79,Nutrients!$E$79,(IF($A$8=Nutrients!$B$77,Nutrients!$E$77,Nutrients!$E$78)))))*G$8))/2000/2.2046","v":1512.5359640705287},null,{"$f":"(SUMPRODUCT(I$9:I$229,Nutrients!$E$8:$E$228)+(IF($A$7=Nutrients!$B$8,Nutrients!$E$8,Nutrients!$E$9)*I$7)+(((IF($A$8=Nutrients!$B$79,Nutrients!$E$79,(IF($A$8=Nutrients!$B$77,Nutrients!$E$77,Nutrients!$E$78)))))*I$8))/2000/2.2046","v":1508.4181494758338},{"$f":"(SUMPRODUCT(J$9:J$229,Nutrients!$E$8:$E$228)+(IF($A$7=Nutrients!$B$8,Nutrients!$E$8,Nutrients!$E$9)*J$7)+(((IF($A$8=Nutrients!$B$79,Nutrients!$E$79,(IF($A$8=Nutrients!$B$77,Nutrients!$E$77,Nutrients!$E$78)))))*J$8))/2000/2.2046","v":1512.9570730580454},{"$f":"(SUMPRODUCT(K$9:K$229,Nutrients!$E$8:$E$228)+(IF($A$7=Nutrients!$B$8,Nutrients!$E$8,Nutrients!$E$9)*K$7)+(((IF($A$8=Nutrients!$B$79,Nutrients!$E$79,(IF($A$8=Nutrients!$B$77,Nutrients!$E$77,Nutrients!$E$78)))))*K$8))/2000/2.2046","v":1517.0136842152094},{"$f":"(SUMPRODUCT(L$9:L$229,Nutrients!$E$8:$E$228)+(IF($A$7=Nutrients!$B$8,Nutrients!$E$8,Nutrients!$E$9)*L$7)+(((IF($A$8=Nutrients!$B$79,Nutrients!$E$79,(IF($A$8=Nutrients!$B$77,Nutrients!$E$77,Nutrients!$E$78)))))*L$8))/2000/2.2046","v":1521.2312749870487},{"$f":"(SUMPRODUCT(M$9:M$229,Nutrients!$E$8:$E$228)+(IF($A$7=Nutrients!$B$8,Nutrients!$E$8,Nutrients!$E$9)*M$7)+(((IF($A$8=Nutrients!$B$79,Nutrients!$E$79,(IF($A$8=Nutrients!$B$77,Nutrients!$E$77,Nutrients!$E$78)))))*M$8))/2000/2.2046","v":1524.8173966018894},{"$f":"(SUMPRODUCT(N$9:N$229,Nutrients!$E$8:$E$228)+(IF($A$7=Nutrients!$B$8,Nutrients!$E$8,Nutrients!$E$9)*N$7)+(((IF($A$8=Nutrients!$B$79,Nutrients!$E$79,(IF($A$8=Nutrients!$B$77,Nutrients!$E$77,Nutrients!$E$78)))))*N$8))/2000/2.2046","v":1526.291589866117},null,{"$f":"(SUMPRODUCT(P$9:P$229,Nutrients!$E$8:$E$228)+(IF($A$7=Nutrients!$B$8,Nutrients!$E$8,Nutrients!$E$9)*P$7)+(((IF($A$8=Nutrients!$B$79,Nutrients!$E$79,(IF($A$8=Nutrients!$B$77,Nutrients!$E$77,Nutrients!$E$78)))))*P$8))/2000/2.2046","v":1522.0749117819566},{"$f":"(SUMPRODUCT(Q$9:Q$229,Nutrients!$E$8:$E$228)+(IF($A$7=Nutrients!$B$8,Nutrients!$E$8,Nutrients!$E$9)*Q$7)+(((IF($A$8=Nutrients!$B$79,Nutrients!$E$79,(IF($A$8=Nutrients!$B$77,Nutrients!$E$77,Nutrients!$E$78)))))*Q$8))/2000/2.2046","v":1526.6386072982261},{"$f":"(SUMPRODUCT(R$9:R$229,Nutrients!$E$8:$E$228)+(IF($A$7=Nutrients!$B$8,Nutrients!$E$8,Nutrients!$E$9)*R$7)+(((IF($A$8=Nutrients!$B$79,Nutrients!$E$79,(IF($A$8=Nutrients!$B$77,Nutrients!$E$77,Nutrients!$E$78)))))*R$8))/2000/2.2046","v":1530.7748504836536},{"$f":"(SUMPRODUCT(S$9:S$229,Nutrients!$E$8:$E$228)+(IF($A$7=Nutrients!$B$8,Nutrients!$E$8,Nutrients!$E$9)*S$7)+(((IF($A$8=Nutrients!$B$79,Nutrients!$E$79,(IF($A$8=Nutrients!$B$77,Nutrients!$E$77,Nutrients!$E$78)))))*S$8))/2000/2.2046","v":1534.9623815737409},{"$f":"(SUMPRODUCT(T$9:T$229,Nutrients!$E$8:$E$228)+(IF($A$7=Nutrients!$B$8,Nutrients!$E$8,Nutrients!$E$9)*T$7)+(((IF($A$8=Nutrients!$B$79,Nutrients!$E$79,(IF($A$8=Nutrients!$B$77,Nutrients!$E$77,Nutrients!$E$78)))))*T$8))/2000/2.2046","v":1538.5443558468921},{"$f":"(SUMPRODUCT(U$9:U$229,Nutrients!$E$8:$E$228)+(IF($A$7=Nutrients!$B$8,Nutrients!$E$8,Nutrients!$E$9)*U$7)+(((IF($A$8=Nutrients!$B$79,Nutrients!$E$79,(IF($A$8=Nutrients!$B$77,Nutrients!$E$77,Nutrients!$E$78)))))*U$8))/2000/2.2046","v":1540.0367591570048},null,{"$f":"(SUMPRODUCT(W$9:W$229,Nutrients!$E$8:$E$228)+(IF($A$7=Nutrients!$B$8,Nutrients!$E$8,Nutrients!$E$9)*W$7)+(((IF($A$8=Nutrients!$B$79,Nutrients!$E$79,(IF($A$8=Nutrients!$B$77,Nutrients!$E$77,Nutrients!$E$78)))))*W$8))/2000/2.2046","v":1535.8403972257431},{"$f":"(SUMPRODUCT(X$9:X$229,Nutrients!$E$8:$E$228)+(IF($A$7=Nutrients!$B$8,Nutrients!$E$8,Nutrients!$E$9)*X$7)+(((IF($A$8=Nutrients!$B$79,Nutrients!$E$79,(IF($A$8=Nutrients!$B$77,Nutrients!$E$77,Nutrients!$E$78)))))*X$8))/2000/2.2046","v":1540.4823953071684},{"$f":"(SUMPRODUCT(Y$9:Y$229,Nutrients!$E$8:$E$228)+(IF($A$7=Nutrients!$B$8,Nutrients!$E$8,Nutrients!$E$9)*Y$7)+(((IF($A$8=Nutrients!$B$79,Nutrients!$E$79,(IF($A$8=Nutrients!$B$77,Nutrients!$E$77,Nutrients!$E$78)))))*Y$8))/2000/2.2046","v":1544.5787547806597},{"$f":"(SUMPRODUCT(Z$9:Z$229,Nutrients!$E$8:$E$228)+(IF($A$7=Nutrients!$B$8,Nutrients!$E$8,Nutrients!$E$9)*Z$7)+(((IF($A$8=Nutrients!$B$79,Nutrients!$E$79,(IF($A$8=Nutrients!$B$77,Nutrients!$E$77,Nutrients!$E$78)))))*Z$8))/2000/2.2046","v":1548.8529282399747},{"$f":"(SUMPRODUCT(AA$9:AA$229,Nutrients!$E$8:$E$228)+(IF($A$7=Nutrients!$B$8,Nutrients!$E$8,Nutrients!$E$9)*AA$7)+(((IF($A$8=Nutrients!$B$79,Nutrients!$E$79,(IF($A$8=Nutrients!$B$77,Nutrients!$E$77,Nutrients!$E$78)))))*AA$8))/2000/2.2046","v":1552.4630794056879},{"$f":"(SUMPRODUCT(AB$9:AB$229,Nutrients!$E$8:$E$228)+(IF($A$7=Nutrients!$B$8,Nutrients!$E$8,Nutrients!$E$9)*AB$7)+(((IF($A$8=Nutrients!$B$79,Nutrients!$E$79,(IF($A$8=Nutrients!$B$77,Nutrients!$E$77,Nutrients!$E$78)))))*AB$8))/2000/2.2046","v":1553.8339853397474},null,{"$f":"(SUMPRODUCT(AD$9:AD$229,Nutrients!$E$8:$E$228)+(IF($A$7=Nutrients!$B$8,Nutrients!$E$8,Nutrients!$E$9)*AD$7)+(((IF($A$8=Nutrients!$B$79,Nutrients!$E$79,(IF($A$8=Nutrients!$B$77,Nutrients!$E$77,Nutrients!$E$78)))))*AD$8))/2000/2.2046","v":1549.67256370173},{"$f":"(SUMPRODUCT(AE$9:AE$229,Nutrients!$E$8:$E$228)+(IF($A$7=Nutrients!$B$8,Nutrients!$E$8,Nutrients!$E$9)*AE$7)+(((IF($A$8=Nutrients!$B$79,Nutrients!$E$79,(IF($A$8=Nutrients!$B$77,Nutrients!$E$77,Nutrients!$E$78)))))*AE$8))/2000/2.2046","v":1554.271995571655},{"$f":"(SUMPRODUCT(AF$9:AF$229,Nutrients!$E$8:$E$228)+(IF($A$7=Nutrients!$B$8,Nutrients!$E$8,Nutrients!$E$9)*AF$7)+(((IF($A$8=Nutrients!$B$79,Nutrients!$E$79,(IF($A$8=Nutrients!$B$77,Nutrients!$E$77,Nutrients!$E$78)))))*AF$8))/2000/2.2046","v":1558.4674223483003},{"$f":"(SUMPRODUCT(AG$9:AG$229,Nutrients!$E$8:$E$228)+(IF($A$7=Nutrients!$B$8,Nutrients!$E$8,Nutrients!$E$9)*AG$7)+(((IF($A$8=Nutrients!$B$79,Nutrients!$E$79,(IF($A$8=Nutrients!$B$77,Nutrients!$E$77,Nutrients!$E$78)))))*AG$8))/2000/2.2046","v":1562.7271992943179},{"$f":"(SUMPRODUCT(AH$9:AH$229,Nutrients!$E$8:$E$228)+(IF($A$7=Nutrients!$B$8,Nutrients!$E$8,Nutrients!$E$9)*AH$7)+(((IF($A$8=Nutrients!$B$79,Nutrients!$E$79,(IF($A$8=Nutrients!$B$77,Nutrients!$E$77,Nutrients!$E$78)))))*AH$8))/2000/2.2046","v":1566.088745171108},{"$f":"(SUMPRODUCT(AI$9:AI$229,Nutrients!$E$8:$E$228)+(IF($A$7=Nutrients!$B$8,Nutrients!$E$8,Nutrients!$E$9)*AI$7)+(((IF($A$8=Nutrients!$B$79,Nutrients!$E$79,(IF($A$8=Nutrients!$B$77,Nutrients!$E$77,Nutrients!$E$78)))))*AI$8))/2000/2.2046","v":1567.4890190688263},null,{"$f":"(SUMPRODUCT(AK$9:AK$229,Nutrients!$E$8:$E$228)+(IF($A$7=Nutrients!$B$8,Nutrients!$E$8,Nutrients!$E$9)*AK$7)+(((IF($A$8=Nutrients!$B$79,Nutrients!$E$79,(IF($A$8=Nutrients!$B$77,Nutrients!$E$77,Nutrients!$E$78)))))*AK$8))/2000/2.2046","v":1563.4296540414527},{"$f":"(SUMPRODUCT(AL$9:AL$229,Nutrients!$E$8:$E$228)+(IF($A$7=Nutrients!$B$8,Nutrients!$E$8,Nutrients!$E$9)*AL$7)+(((IF($A$8=Nutrients!$B$79,Nutrients!$E$79,(IF($A$8=Nutrients!$B$77,Nutrients!$E$77,Nutrients!$E$78)))))*AL$8))/2000/2.2046","v":1568.0508563736917},{"$f":"(SUMPRODUCT(AM$9:AM$229,Nutrients!$E$8:$E$228)+(IF($A$7=Nutrients!$B$8,Nutrients!$E$8,Nutrients!$E$9)*AM$7)+(((IF($A$8=Nutrients!$B$79,Nutrients!$E$79,(IF($A$8=Nutrients!$B$77,Nutrients!$E$77,Nutrients!$E$78)))))*AM$8))/2000/2.2046","v":1572.1927185650052},{"$f":"(SUMPRODUCT(AN$9:AN$229,Nutrients!$E$8:$E$228)+(IF($A$7=Nutrients!$B$8,Nutrients!$E$8,Nutrients!$E$9)*AN$7)+(((IF($A$8=Nutrients!$B$79,Nutrients!$E$79,(IF($A$8=Nutrients!$B$77,Nutrients!$E$77,Nutrients!$E$78)))))*AN$8))/2000/2.2046","v":1576.2903579527058},{"$f":"(SUMPRODUCT(AO$9:AO$229,Nutrients!$E$8:$E$228)+(IF($A$7=Nutrients!$B$8,Nutrients!$E$8,Nutrients!$E$9)*AO$7)+(((IF($A$8=Nutrients!$B$79,Nutrients!$E$79,(IF($A$8=Nutrients!$B$77,Nutrients!$E$77,Nutrients!$E$78)))))*AO$8))/2000/2.2046","v":1579.7315327435326},{"$f":"(SUMPRODUCT(AP$9:AP$229,Nutrients!$E$8:$E$228)+(IF($A$7=Nutrients!$B$8,Nutrients!$E$8,Nutrients!$E$9)*AP$7)+(((IF($A$8=Nutrients!$B$79,Nutrients!$E$79,(IF($A$8=Nutrients!$B$77,Nutrients!$E$77,Nutrients!$E$78)))))*AP$8))/2000/2.2046","v":1581.1488640601572},null,{"$f":"(SUMPRODUCT(AR$9:AR$229,Nutrients!$E$8:$E$228)+(IF($A$7=Nutrients!$B$8,Nutrients!$E$8,Nutrients!$E$9)*AR$7)+(((IF($A$8=Nutrients!$B$79,Nutrients!$E$79,(IF($A$8=Nutrients!$B$77,Nutrients!$E$77,Nutrients!$E$78)))))*AR$8))/2000/2.2046","v":1577.3465177274234},{"$f":"(SUMPRODUCT(AS$9:AS$229,Nutrients!$E$8:$E$228)+(IF($A$7=Nutrients!$B$8,Nutrients!$E$8,Nutrients!$E$9)*AS$7)+(((IF($A$8=Nutrients!$B$79,Nutrients!$E$79,(IF($A$8=Nutrients!$B$77,Nutrients!$E$77,Nutrients!$E$78)))))*AS$8))/2000/2.2046","v":1581.8061178314424},{"$f":"(SUMPRODUCT(AT$9:AT$229,Nutrients!$E$8:$E$228)+(IF($A$7=Nutrients!$B$8,Nutrients!$E$8,Nutrients!$E$9)*AT$7)+(((IF($A$8=Nutrients!$B$79,Nutrients!$E$79,(IF($A$8=Nutrients!$B$77,Nutrients!$E$77,Nutrients!$E$78)))))*AT$8))/2000/2.2046","v":1585.9807683230772},{"$f":"(SUMPRODUCT(AU$9:AU$229,Nutrients!$E$8:$E$228)+(IF($A$7=Nutrients!$B$8,Nutrients!$E$8,Nutrients!$E$9)*AU$7)+(((IF($A$8=Nutrients!$B$79,Nutrients!$E$79,(IF($A$8=Nutrients!$B$77,Nutrients!$E$77,Nutrients!$E$78)))))*AU$8))/2000/2.2046","v":1589.9081905107892},{"$f":"(SUMPRODUCT(AV$9:AV$229,Nutrients!$E$8:$E$228)+(IF($A$7=Nutrients!$B$8,Nutrients!$E$8,Nutrients!$E$9)*AV$7)+(((IF($A$8=Nutrients!$B$79,Nutrients!$E$79,(IF($A$8=Nutrients!$B$77,Nutrients!$E$77,Nutrients!$E$78)))))*AV$8))/2000/2.2046","v":1593.3746691391718},{"$f":"(SUMPRODUCT(AW$9:AW$229,Nutrients!$E$8:$E$228)+(IF($A$7=Nutrients!$B$8,Nutrients!$E$8,Nutrients!$E$9)*AW$7)+(((IF($A$8=Nutrients!$B$79,Nutrients!$E$79,(IF($A$8=Nutrients!$B$77,Nutrients!$E$77,Nutrients!$E$78)))))*AW$8))/2000/2.2046","v":1594.808838138287}]
["NE Noblet Grow/Finish, kcal/lb",{"$f":"(SUMPRODUCT(B$9:B$229,Nutrients!$DY$8:$DY$228)+(IF($A$7=Nutrients!$B$8,Nutrients!$DY$8,Nutrients!$DY$9)*B$7)+(((IF($A$8=Nutrients!$B$79,Nutrients!$DY$79,(IF($A$8=Nutrients!$B$77,Nutrients!$DY$77,Nutrients!$DY$78)))))*B$8))/2000/2.2046","v":1097.7096913668909},{"$f":"(SUMPRODUCT(C$9:C$229,Nutrients!$DY$8:$DY$228)+(IF($A$7=Nutrients!$B$8,Nutrients!$DY$8,Nutrients!$DY$9)*C$7)+(((IF($A$8=Nutrients!$B$79,Nutrients!$DY$79,(IF($A$8=Nutrients!$B$77,Nutrients!$DY$77,Nutrients!$DY$78)))))*C$8))/2000/2.2046","v":1111.6567624325369},{"$f":"(SUMPRODUCT(D$9:D$229,Nutrients!$DY$8:$DY$228)+(IF($A$7=Nutrients!$B$8,Nutrients!$DY$8,Nutrients!$DY$9)*D$7)+(((IF($A$8=Nutrients!$B$79,Nutrients!$DY$79,(IF($A$8=Nutrients!$B$77,Nutrients!$DY$77,Nutrients!$DY$78)))))*D$8))/2000/2.2046","v":1123.5684729276254},{"$f":"(SUMPRODUCT(E$9:E$229,Nutrients!$DY$8:$DY$228)+(IF($A$7=Nutrients!$B$8,Nutrients!$DY$8,Nutrients!$DY$9)*E$7)+(((IF($A$8=Nutrients!$B$79,Nutrients!$DY$79,(IF($A$8=Nutrients!$B$77,Nutrients!$DY$77,Nutrients!$DY$78)))))*E$8))/2000/2.2046","v":1135.5706715184997},{"$f":"(SUMPRODUCT(F$9:F$229,Nutrients!$DY$8:$DY$228)+(IF($A$7=Nutrients!$B$8,Nutrients!$DY$8,Nutrients!$DY$9)*F$7)+(((IF($A$8=Nutrients!$B$79,Nutrients!$DY$79,(IF($A$8=Nutrients!$B$77,Nutrients!$DY$77,Nutrients!$DY$78)))))*F$8))/2000/2.2046","v":1145.7413873005344},{"$f":"(SUMPRODUCT(G$9:G$229,Nutrients!$DY$8:$DY$228)+(IF($A$7=Nutrients!$B$8,Nutrients!$DY$8,Nutrients!$DY$9)*G$7)+(((IF($A$8=Nutrients!$B$79,Nutrients!$DY$79,(IF($A$8=Nutrients!$B$77,Nutrients!$DY$77,Nutrients!$DY$78)))))*G$8))/2000/2.2046","v":1150.9323531256127},null,{"$f":"(SUMPRODUCT(I$9:I$229,Nutrients!$DY$8:$DY$228)+(IF($A$7=Nutrients!$B$8,Nutrients!$DY$8,Nutrients!$DY$9)*I$7)+(((IF($A$8=Nutrients!$B$79,Nutrients!$DY$79,(IF($A$8=Nutrients!$B$77,Nutrients!$DY$77,Nutrients!$DY$78)))))*I$8))/2000/2.2046","v":1051.7434963703611},{"$f":"(SUMPRODUCT(J$9:J$229,Nutrients!$DY$8:$DY$228)+(IF($A$7=Nutrients!$B$8,Nutrients!$DY$8,Nutrients!$DY$9)*J$7)+(((IF($A$8=Nutrients!$B$79,Nutrients!$DY$79,(IF($A$8=Nutrients!$B$77,Nutrients!$DY$77,Nutrients!$DY$78)))))*J$8))/2000/2.2046","v":1065.770310996664},{"$f":"(SUMPRODUCT(K$9:K$229,Nutrients!$DY$8:$DY$228)+(IF($A$7=Nutrients!$B$8,Nutrients!$DY$8,Nutrients!$DY$9)*K$7)+(((IF($A$8=Nutrients!$B$79,Nutrients!$DY$79,(IF($A$8=Nutrients!$B$77,Nutrients!$DY$77,Nutrients!$DY$78)))))*K$8))/2000/2.2046","v":1077.7282921390797},{"$f":"(SUMPRODUCT(L$9:L$229,Nutrients!$DY$8:$DY$228)+(IF($A$7=Nutrients!$B$8,Nutrients!$DY$8,Nutrients!$DY$9)*L$7)+(((IF($A$8=Nutrients!$B$79,Nutrients!$DY$79,(IF($A$8=Nutrients!$B$77,Nutrients!$DY$77,Nutrients!$DY$78)))))*L$8))/2000/2.2046","v":1089.7682997839161},{"$f":"(SUMPRODUCT(M$9:M$229,Nutrients!$DY$8:$DY$228)+(IF($A$7=Nutrients!$B$8,Nutrients!$DY$8,Nutrients!$DY$9)*M$7)+(((IF($A$8=Nutrients!$B$79,Nutrients!$DY$79,(IF($A$8=Nutrients!$B$77,Nutrients!$DY$77,Nutrients!$DY$78)))))*M$8))/2000/2.2046","v":1099.941854359035},{"$f":"(SUMPRODUCT(N$9:N$229,Nutrients!$DY$8:$DY$228)+(IF($A$7=Nutrients!$B$8,Nutrients!$DY$8,Nutrients!$DY$9)*N$7)+(((IF($A$8=Nutrients!$B$79,Nutrients!$DY$79,(IF($A$8=Nutrients!$B$77,Nutrients!$DY$77,Nutrients!$DY$78)))))*N$8))/2000/2.2046","v":1105.1497458412377},null,{"$f":"(SUMPRODUCT(P$9:P$229,Nutrients!$DY$8:$DY$228)+(IF($A$7=Nutrients!$B$8,Nutrients!$DY$8,Nutrients!$DY$9)*P$7)+(((IF($A$8=Nutrients!$B$79,Nutrients!$DY$79,(IF($A$8=Nutrients!$B$77,Nutrients!$DY$77,Nutrients!$DY$78)))))*P$8))/2000/2.2046","v":1005.8787557911279},{"$f":"(SUMPRODUCT(Q$9:Q$229,Nutrients!$DY$8:$DY$228)+(IF($A$7=Nutrients!$B$8,Nutrients!$DY$8,Nutrients!$DY$9)*Q$7)+(((IF($A$8=Nutrients!$B$79,Nutrients!$DY$79,(IF($A$8=Nutrients!$B$77,Nutrients!$DY$77,Nutrients!$DY$78)))))*Q$8))/2000/2.2046","v":1019.9245860858845},{"$f":"(SUMPRODUCT(R$9:R$229,Nutrients!$DY$8:$DY$228)+(IF($A$7=Nutrients!$B$8,Nutrients!$DY$8,Nutrients!$DY$9)*R$7)+(((IF($A$8=Nutrients!$B$79,Nutrients!$DY$79,(IF($A$8=Nutrients!$B$77,Nutrients!$DY$77,Nutrients!$DY$78)))))*R$8))/2000/2.2046","v":1031.9496564235899},{"$f":"(SUMPRODUCT(S$9:S$229,Nutrients!$DY$8:$DY$228)+(IF($A$7=Nutrients!$B$8,Nutrients!$DY$8,Nutrients!$DY$9)*S$7)+(((IF($A$8=Nutrients!$B$79,Nutrients!$DY$79,(IF($A$8=Nutrients!$B$77,Nutrients!$DY$77,Nutrients!$DY$78)))))*S$8))/2000/2.2046","v":1043.9591291163313},{"$f":"(SUMPRODUCT(T$9:T$229,Nutrients!$DY$8:$DY$228)+(IF($A$7=Nutrients!$B$8,Nutrients!$DY$8,Nutrients!$DY$9)*T$7)+(((IF($A$8=Nutrients!$B$79,Nutrients!$DY$79,(IF($A$8=Nutrients!$B$77,Nutrients!$DY$77,Nutrients!$DY$78)))))*T$8))/2000/2.2046","v":1054.1366392915484},{"$f":"(SUMPRODUCT(U$9:U$229,Nutrients!$DY$8:$DY$228)+(IF($A$7=Nutrients!$B$8,Nutrients!$DY$8,Nutrients!$DY$9)*U$7)+(((IF($A$8=Nutrients!$B$79,Nutrients!$DY$79,(IF($A$8=Nutrients!$B$77,Nutrients!$DY$77,Nutrients!$DY$78)))))*U$8))/2000/2.2046","v":1059.3626014393055},null,{"$f":"(SUMPRODUCT(W$9:W$229,Nutrients!$DY$8:$DY$228)+(IF($A$7=Nutrients!$B$8,Nutrients!$DY$8,Nutrients!$DY$9)*W$7)+(((IF($A$8=Nutrients!$B$79,Nutrients!$DY$79,(IF($A$8=Nutrients!$B$77,Nutrients!$DY$77,Nutrients!$DY$78)))))*W$8))/2000/2.2046","v":960.10468444507478},{"$f":"(SUMPRODUCT(X$9:X$229,Nutrients!$DY$8:$DY$228)+(IF($A$7=Nutrients!$B$8,Nutrients!$DY$8,Nutrients!$DY$9)*X$7)+(((IF($A$8=Nutrients!$B$79,Nutrients!$DY$79,(IF($A$8=Nutrients!$B$77,Nutrients!$DY$77,Nutrients!$DY$78)))))*X$8))/2000/2.2046","v":974.21373507558064},{"$f":"(SUMPRODUCT(Y$9:Y$229,Nutrients!$DY$8:$DY$228)+(IF($A$7=Nutrients!$B$8,Nutrients!$DY$8,Nutrients!$DY$9)*Y$7)+(((IF($A$8=Nutrients!$B$79,Nutrients!$DY$79,(IF($A$8=Nutrients!$B$77,Nutrients!$DY$77,Nutrients!$DY$78)))))*Y$8))/2000/2.2046","v":986.19876865579226},{"$f":"(SUMPRODUCT(Z$9:Z$229,Nutrients!$DY$8:$DY$228)+(IF($A$7=Nutrients!$B$8,Nutrients!$DY$8,Nutrients!$DY$9)*Z$7)+(((IF($A$8=Nutrients!$B$79,Nutrients!$DY$79,(IF($A$8=Nutrients!$B$77,Nutrients!$DY$77,Nutrients!$DY$78)))))*Z$8))/2000/2.2046","v":998.27771467429841},{"$f":"(SUMPRODUCT(AA$9:AA$229,Nutrients!$DY$8:$DY$228)+(IF($A$7=Nutrients!$B$8,Nutrients!$DY$8,Nutrients!$DY$9)*AA$7)+(((IF($A$8=Nutrients!$B$79,Nutrients!$DY$79,(IF($A$8=Nutrients!$B$77,Nutrients!$DY$77,Nutrients!$DY$78)))))*AA$8))/2000/2.2046","v":1008.4637611819539},{"$f":"(SUMPRODUCT(AB$9:AB$229,Nutrients!$DY$8:$DY$228)+(IF($A$7=Nutrients!$B$8,Nutrients!$DY$8,Nutrients!$DY$9)*AB$7)+(((IF($A$8=Nutrients!$B$79,Nutrients!$DY$79,(IF($A$8=Nutrients!$B$77,Nutrients!$DY$77,Nutrients!$DY$78)))))*AB$8))/2000/2.2046","v":1013.6313237142692},null,{"$f":"(SUMPRODUCT(AD$9:AD$229,Nutrients!$DY$8:$DY$228)+(IF($A$7=Nutrients!$B$8,Nutrients!$DY$8,Nutrients!$DY$9)*AD$7)+(((IF($A$8=Nutrients!$B$79,Nutrients!$DY$79,(IF($A$8=Nutrients!$B$77,Nutrients!$DY$77,Nutrients!$DY$78)))))*AD$8))/2000/2.2046","v":914.3829159176986},{"$f":"(SUMPRODUCT(AE$9:AE$229,Nutrients!$DY$8:$DY$228)+(IF($A$7=Nutrients!$B$8,Nutrients!$DY$8,Nutrients!$DY$9)*AE$7)+(((IF($A$8=Nutrients!$B$79,Nutrients!$DY$79,(IF($A$8=Nutrients!$B$77,Nutrients!$DY$77,Nutrients!$DY$78)))))*AE$8))/2000/2.2046","v":928.45415332639584},{"$f":"(SUMPRODUCT(AF$9:AF$229,Nutrients!$DY$8:$DY$228)+(IF($A$7=Nutrients!$B$8,Nutrients!$DY$8,Nutrients!$DY$9)*AF$7)+(((IF($A$8=Nutrients!$B$79,Nutrients!$DY$79,(IF($A$8=Nutrients!$B$77,Nutrients!$DY$77,Nutrients!$DY$78)))))*AF$8))/2000/2.2046","v":940.51559867985804},{"$f":"(SUMPRODUCT(AG$9:AG$229,Nutrients!$DY$8:$DY$228)+(IF($A$7=Nutrients!$B$8,Nutrients!$DY$8,Nutrients!$DY$9)*AG$7)+(((IF($A$8=Nutrients!$B$79,Nutrients!$DY$79,(IF($A$8=Nutrients!$B$77,Nutrients!$DY$77,Nutrients!$DY$78)))))*AG$8))/2000/2.2046","v":952.57802106830491},{"$f":"(SUMPRODUCT(AH$9:AH$229,Nutrients!$DY$8:$DY$228)+(IF($A$7=Nutrients!$B$8,Nutrients!$DY$8,Nutrients!$DY$9)*AH$7)+(((IF($A$8=Nutrients!$B$79,Nutrients!$DY$79,(IF($A$8=Nutrients!$B$77,Nutrients!$DY$77,Nutrients!$DY$78)))))*AH$8))/2000/2.2046","v":962.68626709792295},{"$f":"(SUMPRODUCT(AI$9:AI$229,Nutrients!$DY$8:$DY$228)+(IF($A$7=Nutrients!$B$8,Nutrients!$DY$8,Nutrients!$DY$9)*AI$7)+(((IF($A$8=Nutrients!$B$79,Nutrients!$DY$79,(IF($A$8=Nutrients!$B$77,Nutrients!$DY$77,Nutrients!$DY$78)))))*AI$8))/2000/2.2046","v":967.92190345148049},null,{"$f":"(SUMPRODUCT(AK$9:AK$229,Nutrients!$DY$8:$DY$228)+(IF($A$7=Nutrients!$B$8,Nutrients!$DY$8,Nutrients!$DY$9)*AK$7)+(((IF($A$8=Nutrients!$B$79,Nutrients!$DY$79,(IF($A$8=Nutrients!$B$77,Nutrients!$DY$77,Nutrients!$DY$78)))))*AK$8))/2000/2.2046","v":868.603940034537},{"$f":"(SUMPRODUCT(AL$9:AL$229,Nutrients!$DY$8:$DY$228)+(IF($A$7=Nutrients!$B$8,Nutrients!$DY$8,Nutrients!$DY$9)*AL$7)+(((IF($A$8=Nutrients!$B$79,Nutrients!$DY$79,(IF($A$8=Nutrients!$B$77,Nutrients!$DY$77,Nutrients!$DY$78)))))*AL$8))/2000/2.2046","v":882.69178394563085},{"$f":"(SUMPRODUCT(AM$9:AM$229,Nutrients!$DY$8:$DY$228)+(IF($A$7=Nutrients!$B$8,Nutrients!$DY$8,Nutrients!$DY$9)*AM$7)+(((IF($A$8=Nutrients!$B$79,Nutrients!$DY$79,(IF($A$8=Nutrients!$B$77,Nutrients!$DY$77,Nutrients!$DY$78)))))*AM$8))/2000/2.2046","v":894.70242865206819},{"$f":"(SUMPRODUCT(AN$9:AN$229,Nutrients!$DY$8:$DY$228)+(IF($A$7=Nutrients!$B$8,Nutrients!$DY$8,Nutrients!$DY$9)*AN$7)+(((IF($A$8=Nutrients!$B$79,Nutrients!$DY$79,(IF($A$8=Nutrients!$B$77,Nutrients!$DY$77,Nutrients!$DY$78)))))*AN$8))/2000/2.2046","v":906.72343727007171},{"$f":"(SUMPRODUCT(AO$9:AO$229,Nutrients!$DY$8:$DY$228)+(IF($A$7=Nutrients!$B$8,Nutrients!$DY$8,Nutrients!$DY$9)*AO$7)+(((IF($A$8=Nutrients!$B$79,Nutrients!$DY$79,(IF($A$8=Nutrients!$B$77,Nutrients!$DY$77,Nutrients!$DY$78)))))*AO$8))/2000/2.2046","v":916.96530918641213},{"$f":"(SUMPRODUCT(AP$9:AP$229,Nutrients!$DY$8:$DY$228)+(IF($A$7=Nutrients!$B$8,Nutrients!$DY$8,Nutrients!$DY$9)*AP$7)+(((IF($A$8=Nutrients!$B$79,Nutrients!$DY$79,(IF($A$8=Nutrients!$B$77,Nutrients!$DY$77,Nutrients!$DY$78)))))*AP$8))/2000/2.2046","v":922.21698700876323},null,{"$f":"(SUMPRODUCT(AR$9:AR$229,Nutrients!$DY$8:$DY$228)+(IF($A$7=Nutrients!$B$8,Nutrients!$DY$8,Nutrients!$DY$9)*AR$7)+(((IF($A$8=Nutrients!$B$79,Nutrients!$DY$79,(IF($A$8=Nutrients!$B$77,Nutrients!$DY$77,Nutrients!$DY$78)))))*AR$8))/2000/2.2046","v":822.97218352412347},{"$f":"(SUMPRODUCT(AS$9:AS$229,Nutrients!$DY$8:$DY$228)+(IF($A$7=Nutrients!$B$8,Nutrients!$DY$8,Nutrients!$DY$9)*AS$7)+(((IF($A$8=Nutrients!$B$79,Nutrients!$DY$79,(IF($A$8=Nutrients!$B$77,Nutrients!$DY$77,Nutrients!$DY$78)))))*AS$8))/2000/2.2046","v":836.8988973182569},{"$f":"(SUMPRODUCT(AT$9:AT$229,Nutrients!$DY$8:$DY$228)+(IF($A$7=Nutrients!$B$8,Nutrients!$DY$8,Nutrients!$DY$9)*AT$7)+(((IF($A$8=Nutrients!$B$79,Nutrients!$DY$79,(IF($A$8=Nutrients!$B$77,Nutrients!$DY$77,Nutrients!$DY$78)))))*AT$8))/2000/2.2046","v":848.92825902769459},{"$f":"(SUMPRODUCT(AU$9:AU$229,Nutrients!$DY$8:$DY$228)+(IF($A$7=Nutrients!$B$8,Nutrients!$DY$8,Nutrients!$DY$9)*AU$7)+(((IF($A$8=Nutrients!$B$79,Nutrients!$DY$79,(IF($A$8=Nutrients!$B$77,Nutrients!$DY$77,Nutrients!$DY$78)))))*AU$8))/2000/2.2046","v":860.98040187487868},{"$f":"(SUMPRODUCT(AV$9:AV$229,Nutrients!$DY$8:$DY$228)+(IF($A$7=Nutrients!$B$8,Nutrients!$DY$8,Nutrients!$DY$9)*AV$7)+(((IF($A$8=Nutrients!$B$79,Nutrients!$DY$79,(IF($A$8=Nutrients!$B$77,Nutrients!$DY$77,Nutrients!$DY$78)))))*AV$8))/2000/2.2046","v":871.2446857367612},{"$f":"(SUMPRODUCT(AW$9:AW$229,Nutrients!$DY$8:$DY$228)+(IF($A$7=Nutrients!$B$8,Nutrients!$DY$8,Nutrients!$DY$9)*AW$7)+(((IF($A$8=Nutrients!$B$79,Nutrients!$DY$79,(IF($A$8=Nutrients!$B$77,Nutrients!$DY$77,Nutrients!$DY$78)))))*AW$8))/2000/2.2046","v":876.51219798784894}]
["NE Noblet Sow, kcal/lb",{"$f":"(SUMPRODUCT(B$9:B$229,Nutrients!$DZ$8:$DZ$228)+(IF($A$7=Nutrients!$B$8,Nutrients!$DZ$8,Nutrients!$DZ$9)*B$7)+(((IF($A$8=Nutrients!$B$79,Nutrients!$DZ$79,(IF($A$8=Nutrients!$B$77,Nutrients!$DZ$77,Nutrients!$DZ$78)))))*B$8))/2000/2.2046","v":1137.6355538359269},{"$f":"(SUMPRODUCT(C$9:C$229,Nutrients!$DZ$8:$DZ$228)+(IF($A$7=Nutrients!$B$8,Nutrients!$DZ$8,Nutrients!$DZ$9)*C$7)+(((IF($A$8=Nutrients!$B$79,Nutrients!$DZ$79,(IF($A$8=Nutrients!$B$77,Nutrients!$DZ$77,Nutrients!$DZ$78)))))*C$8))/2000/2.2046","v":1150.9934545095848},{"$f":"(SUMPRODUCT(D$9:D$229,Nutrients!$DZ$8:$DZ$228)+(IF($A$7=Nutrients!$B$8,Nutrients!$DZ$8,Nutrients!$DZ$9)*D$7)+(((IF($A$8=Nutrients!$B$79,Nutrients!$DZ$79,(IF($A$8=Nutrients!$B$77,Nutrients!$DZ$77,Nutrients!$DZ$78)))))*D$8))/2000/2.2046","v":1162.42368942858},{"$f":"(SUMPRODUCT(E$9:E$229,Nutrients!$DZ$8:$DZ$228)+(IF($A$7=Nutrients!$B$8,Nutrients!$DZ$8,Nutrients!$DZ$9)*E$7)+(((IF($A$8=Nutrients!$B$79,Nutrients!$DZ$79,(IF($A$8=Nutrients!$B$77,Nutrients!$DZ$77,Nutrients!$DZ$78)))))*E$8))/2000/2.2046","v":1173.9065707641619},{"$f":"(SUMPRODUCT(F$9:F$229,Nutrients!$DZ$8:$DZ$228)+(IF($A$7=Nutrients!$B$8,Nutrients!$DZ$8,Nutrients!$DZ$9)*F$7)+(((IF($A$8=Nutrients!$B$79,Nutrients!$DZ$79,(IF($A$8=Nutrients!$B$77,Nutrients!$DZ$77,Nutrients!$DZ$78)))))*F$8))/2000/2.2046","v":1183.6213518369293},{"$f":"(SUMPRODUCT(G$9:G$229,Nutrients!$DZ$8:$DZ$228)+(IF($A$7=Nutrients!$B$8,Nutrients!$DZ$8,Nutrients!$DZ$9)*G$7)+(((IF($A$8=Nutrients!$B$79,Nutrients!$DZ$79,(IF($A$8=Nutrients!$B$77,Nutrients!$DZ$77,Nutrients!$DZ$78)))))*G$8))/2000/2.2046","v":1188.5451985530322},null,{"$f":"(SUMPRODUCT(I$9:I$229,Nutrients!$DZ$8:$DZ$228)+(IF($A$7=Nutrients!$B$8,Nutrients!$DZ$8,Nutrients!$DZ$9)*I$7)+(((IF($A$8=Nutrients!$B$79,Nutrients!$DZ$79,(IF($A$8=Nutrients!$B$77,Nutrients!$DZ$77,Nutrients!$DZ$78)))))*I$8))/2000/2.2046","v":1089.4506600974669},{"$f":"(SUMPRODUCT(J$9:J$229,Nutrients!$DZ$8:$DZ$228)+(IF($A$7=Nutrients!$B$8,Nutrients!$DZ$8,Nutrients!$DZ$9)*J$7)+(((IF($A$8=Nutrients!$B$79,Nutrients!$DZ$79,(IF($A$8=Nutrients!$B$77,Nutrients!$DZ$77,Nutrients!$DZ$78)))))*J$8))/2000/2.2046","v":1102.8828468718941},{"$f":"(SUMPRODUCT(K$9:K$229,Nutrients!$DZ$8:$DZ$228)+(IF($A$7=Nutrients!$B$8,Nutrients!$DZ$8,Nutrients!$DZ$9)*K$7)+(((IF($A$8=Nutrients!$B$79,Nutrients!$DZ$79,(IF($A$8=Nutrients!$B$77,Nutrients!$DZ$77,Nutrients!$DZ$78)))))*K$8))/2000/2.2046","v":1114.3621608418489},{"$f":"(SUMPRODUCT(L$9:L$229,Nutrients!$DZ$8:$DZ$228)+(IF($A$7=Nutrients!$B$8,Nutrients!$DZ$8,Nutrients!$DZ$9)*L$7)+(((IF($A$8=Nutrients!$B$79,Nutrients!$DZ$79,(IF($A$8=Nutrients!$B$77,Nutrients!$DZ$77,Nutrients!$DZ$78)))))*L$8))/2000/2.2046","v":1125.8804876952288},{"$f":"(SUMPRODUCT(M$9:M$229,Nutrients!$DZ$8:$DZ$228)+(IF($A$7=Nutrients!$B$8,Nutrients!$DZ$8,Nutrients!$DZ$9)*M$7)+(((IF($A$8=Nutrients!$B$79,Nutrients!$DZ$79,(IF($A$8=Nutrients!$B$77,Nutrients!$DZ$77,Nutrients!$DZ$78)))))*M$8))/2000/2.2046","v":1135.5980949538371},{"$f":"(SUMPRODUCT(N$9:N$229,Nutrients!$DZ$8:$DZ$228)+(IF($A$7=Nutrients!$B$8,Nutrients!$DZ$8,Nutrients!$DZ$9)*N$7)+(((IF($A$8=Nutrients!$B$79,Nutrients!$DZ$79,(IF($A$8=Nutrients!$B$77,Nutrients!$DZ$77,Nutrients!$DZ$78)))))*N$8))/2000/2.2046","v":1140.5378184728584},null,{"$f":"(SUMPRODUCT(P$9:P$229,Nutrients!$DZ$8:$DZ$228)+(IF($A$7=Nutrients!$B$8,Nutrients!$DZ$8,Nutrients!$DZ$9)*P$7)+(((IF($A$8=Nutrients!$B$79,Nutrients!$DZ$79,(IF($A$8=Nutrients!$B$77,Nutrients!$DZ$77,Nutrients!$DZ$78)))))*P$8))/2000/2.2046","v":1041.3637192322442},{"$f":"(SUMPRODUCT(Q$9:Q$229,Nutrients!$DZ$8:$DZ$228)+(IF($A$7=Nutrients!$B$8,Nutrients!$DZ$8,Nutrients!$DZ$9)*Q$7)+(((IF($A$8=Nutrients!$B$79,Nutrients!$DZ$79,(IF($A$8=Nutrients!$B$77,Nutrients!$DZ$77,Nutrients!$DZ$78)))))*Q$8))/2000/2.2046","v":1054.8135449411864},{"$f":"(SUMPRODUCT(R$9:R$229,Nutrients!$DZ$8:$DZ$228)+(IF($A$7=Nutrients!$B$8,Nutrients!$DZ$8,Nutrients!$DZ$9)*R$7)+(((IF($A$8=Nutrients!$B$79,Nutrients!$DZ$79,(IF($A$8=Nutrients!$B$77,Nutrients!$DZ$77,Nutrients!$DZ$78)))))*R$8))/2000/2.2046","v":1066.3585323169407},{"$f":"(SUMPRODUCT(S$9:S$229,Nutrients!$DZ$8:$DZ$228)+(IF($A$7=Nutrients!$B$8,Nutrients!$DZ$8,Nutrients!$DZ$9)*S$7)+(((IF($A$8=Nutrients!$B$79,Nutrients!$DZ$79,(IF($A$8=Nutrients!$B$77,Nutrients!$DZ$77,Nutrients!$DZ$78)))))*S$8))/2000/2.2046","v":1077.8467168079274},{"$f":"(SUMPRODUCT(T$9:T$229,Nutrients!$DZ$8:$DZ$228)+(IF($A$7=Nutrients!$B$8,Nutrients!$DZ$8,Nutrients!$DZ$9)*T$7)+(((IF($A$8=Nutrients!$B$79,Nutrients!$DZ$79,(IF($A$8=Nutrients!$B$77,Nutrients!$DZ$77,Nutrients!$DZ$78)))))*T$8))/2000/2.2046","v":1087.5691704118574},{"$f":"(SUMPRODUCT(U$9:U$229,Nutrients!$DZ$8:$DZ$228)+(IF($A$7=Nutrients!$B$8,Nutrients!$DZ$8,Nutrients!$DZ$9)*U$7)+(((IF($A$8=Nutrients!$B$79,Nutrients!$DZ$79,(IF($A$8=Nutrients!$B$77,Nutrients!$DZ$77,Nutrients!$DZ$78)))))*U$8))/2000/2.2046","v":1092.5265860336176},null,{"$f":"(SUMPRODUCT(W$9:W$229,Nutrients!$DZ$8:$DZ$228)+(IF($A$7=Nutrients!$B$8,Nutrients!$DZ$8,Nutrients!$DZ$9)*W$7)+(((IF($A$8=Nutrients!$B$79,Nutrients!$DZ$79,(IF($A$8=Nutrients!$B$77,Nutrients!$DZ$77,Nutrients!$DZ$78)))))*W$8))/2000/2.2046","v":993.36867258182713},{"$f":"(SUMPRODUCT(X$9:X$229,Nutrients!$DZ$8:$DZ$228)+(IF($A$7=Nutrients!$B$8,Nutrients!$DZ$8,Nutrients!$DZ$9)*X$7)+(((IF($A$8=Nutrients!$B$79,Nutrients!$DZ$79,(IF($A$8=Nutrients!$B$77,Nutrients!$DZ$77,Nutrients!$DZ$78)))))*X$8))/2000/2.2046","v":1006.879498455176},{"$f":"(SUMPRODUCT(Y$9:Y$229,Nutrients!$DZ$8:$DZ$228)+(IF($A$7=Nutrients!$B$8,Nutrients!$DZ$8,Nutrients!$DZ$9)*Y$7)+(((IF($A$8=Nutrients!$B$79,Nutrients!$DZ$79,(IF($A$8=Nutrients!$B$77,Nutrients!$DZ$77,Nutrients!$DZ$78)))))*Y$8))/2000/2.2046","v":1018.3848357045318},{"$f":"(SUMPRODUCT(Z$9:Z$229,Nutrients!$DZ$8:$DZ$228)+(IF($A$7=Nutrients!$B$8,Nutrients!$DZ$8,Nutrients!$DZ$9)*Z$7)+(((IF($A$8=Nutrients!$B$79,Nutrients!$DZ$79,(IF($A$8=Nutrients!$B$77,Nutrients!$DZ$77,Nutrients!$DZ$78)))))*Z$8))/2000/2.2046","v":1029.9399912506867},{"$f":"(SUMPRODUCT(AA$9:AA$229,Nutrients!$DZ$8:$DZ$228)+(IF($A$7=Nutrients!$B$8,Nutrients!$DZ$8,Nutrients!$DZ$9)*AA$7)+(((IF($A$8=Nutrients!$B$79,Nutrients!$DZ$79,(IF($A$8=Nutrients!$B$77,Nutrients!$DZ$77,Nutrients!$DZ$78)))))*AA$8))/2000/2.2046","v":1039.6684732000551},{"$f":"(SUMPRODUCT(AB$9:AB$229,Nutrients!$DZ$8:$DZ$228)+(IF($A$7=Nutrients!$B$8,Nutrients!$DZ$8,Nutrients!$DZ$9)*AB$7)+(((IF($A$8=Nutrients!$B$79,Nutrients!$DZ$79,(IF($A$8=Nutrients!$B$77,Nutrients!$DZ$77,Nutrients!$DZ$78)))))*AB$8))/2000/2.2046","v":1044.5542561607388},null,{"$f":"(SUMPRODUCT(AD$9:AD$229,Nutrients!$DZ$8:$DZ$228)+(IF($A$7=Nutrients!$B$8,Nutrients!$DZ$8,Nutrients!$DZ$9)*AD$7)+(((IF($A$8=Nutrients!$B$79,Nutrients!$DZ$79,(IF($A$8=Nutrients!$B$77,Nutrients!$DZ$77,Nutrients!$DZ$78)))))*AD$8))/2000/2.2046","v":945.42381709425399},{"$f":"(SUMPRODUCT(AE$9:AE$229,Nutrients!$DZ$8:$DZ$228)+(IF($A$7=Nutrients!$B$8,Nutrients!$DZ$8,Nutrients!$DZ$9)*AE$7)+(((IF($A$8=Nutrients!$B$79,Nutrients!$DZ$79,(IF($A$8=Nutrients!$B$77,Nutrients!$DZ$77,Nutrients!$DZ$78)))))*AE$8))/2000/2.2046","v":958.8977093532219},{"$f":"(SUMPRODUCT(AF$9:AF$229,Nutrients!$DZ$8:$DZ$228)+(IF($A$7=Nutrients!$B$8,Nutrients!$DZ$8,Nutrients!$DZ$9)*AF$7)+(((IF($A$8=Nutrients!$B$79,Nutrients!$DZ$79,(IF($A$8=Nutrients!$B$77,Nutrients!$DZ$77,Nutrients!$DZ$78)))))*AF$8))/2000/2.2046","v":970.47638525085381},{"$f":"(SUMPRODUCT(AG$9:AG$229,Nutrients!$DZ$8:$DZ$228)+(IF($A$7=Nutrients!$B$8,Nutrients!$DZ$8,Nutrients!$DZ$9)*AG$7)+(((IF($A$8=Nutrients!$B$79,Nutrients!$DZ$79,(IF($A$8=Nutrients!$B$77,Nutrients!$DZ$77,Nutrients!$DZ$78)))))*AG$8))/2000/2.2046","v":982.01373465051347},{"$f":"(SUMPRODUCT(AH$9:AH$229,Nutrients!$DZ$8:$DZ$228)+(IF($A$7=Nutrients!$B$8,Nutrients!$DZ$8,Nutrients!$DZ$9)*AH$7)+(((IF($A$8=Nutrients!$B$79,Nutrients!$DZ$79,(IF($A$8=Nutrients!$B$77,Nutrients!$DZ$77,Nutrients!$DZ$78)))))*AH$8))/2000/2.2046","v":991.62123444222925},{"$f":"(SUMPRODUCT(AI$9:AI$229,Nutrients!$DZ$8:$DZ$228)+(IF($A$7=Nutrients!$B$8,Nutrients!$DZ$8,Nutrients!$DZ$9)*AI$7)+(((IF($A$8=Nutrients!$B$79,Nutrients!$DZ$79,(IF($A$8=Nutrients!$B$77,Nutrients!$DZ$77,Nutrients!$DZ$78)))))*AI$8))/2000/2.2046","v":996.56339358742468},null,{"$f":"(SUMPRODUCT(AK$9:AK$229,Nutrients!$DZ$8:$DZ$228)+(IF($A$7=Nutrients!$B$8,Nutrients!$DZ$8,Nutrients!$DZ$9)*AK$7)+(((IF($A$8=Nutrients!$B$79,Nutrients!$DZ$79,(IF($A$8=Nutrients!$B$77,Nutrients!$DZ$77,Nutrients!$DZ$78)))))*AK$8))/2000/2.2046","v":897.42024423647422},{"$f":"(SUMPRODUCT(AL$9:AL$229,Nutrients!$DZ$8:$DZ$228)+(IF($A$7=Nutrients!$B$8,Nutrients!$DZ$8,Nutrients!$DZ$9)*AL$7)+(((IF($A$8=Nutrients!$B$79,Nutrients!$DZ$79,(IF($A$8=Nutrients!$B$77,Nutrients!$DZ$77,Nutrients!$DZ$78)))))*AL$8))/2000/2.2046","v":910.91003352765608},{"$f":"(SUMPRODUCT(AM$9:AM$229,Nutrients!$DZ$8:$DZ$228)+(IF($A$7=Nutrients!$B$8,Nutrients!$DZ$8,Nutrients!$DZ$9)*AM$7)+(((IF($A$8=Nutrients!$B$79,Nutrients!$DZ$79,(IF($A$8=Nutrients!$B$77,Nutrients!$DZ$77,Nutrients!$DZ$78)))))*AM$8))/2000/2.2046","v":922.43894718837032},{"$f":"(SUMPRODUCT(AN$9:AN$229,Nutrients!$DZ$8:$DZ$228)+(IF($A$7=Nutrients!$B$8,Nutrients!$DZ$8,Nutrients!$DZ$9)*AN$7)+(((IF($A$8=Nutrients!$B$79,Nutrients!$DZ$79,(IF($A$8=Nutrients!$B$77,Nutrients!$DZ$77,Nutrients!$DZ$78)))))*AN$8))/2000/2.2046","v":933.89558593715253},{"$f":"(SUMPRODUCT(AO$9:AO$229,Nutrients!$DZ$8:$DZ$228)+(IF($A$7=Nutrients!$B$8,Nutrients!$DZ$8,Nutrients!$DZ$9)*AO$7)+(((IF($A$8=Nutrients!$B$79,Nutrients!$DZ$79,(IF($A$8=Nutrients!$B$77,Nutrients!$DZ$77,Nutrients!$DZ$78)))))*AO$8))/2000/2.2046","v":943.61906060075933},{"$f":"(SUMPRODUCT(AP$9:AP$229,Nutrients!$DZ$8:$DZ$228)+(IF($A$7=Nutrients!$B$8,Nutrients!$DZ$8,Nutrients!$DZ$9)*AP$7)+(((IF($A$8=Nutrients!$B$79,Nutrients!$DZ$79,(IF($A$8=Nutrients!$B$77,Nutrients!$DZ$77,Nutrients!$DZ$78)))))*AP$8))/2000/2.2046","v":948.57695392326525},null,{"$f":"(SUMPRODUCT(AR$9:AR$229,Nutrients!$DZ$8:$DZ$228)+(IF($A$7=Nutrients!$B$8,Nutrients!$DZ$8,Nutrients!$DZ$9)*AR$7)+(((IF($A$8=Nutrients!$B$79,Nutrients!$DZ$79,(IF($A$8=Nutrients!$B$77,Nutrients!$DZ$77,Nutrients!$DZ$78)))))*AR$8))/2000/2.2046","v":849.56109125476348},{"$f":"(SUMPRODUCT(AS$9:AS$229,Nutrients!$DZ$8:$DZ$228)+(IF($A$7=Nutrients!$B$8,Nutrients!$DZ$8,Nutrients!$DZ$9)*AS$7)+(((IF($A$8=Nutrients!$B$79,Nutrients!$DZ$79,(IF($A$8=Nutrients!$B$77,Nutrients!$DZ$77,Nutrients!$DZ$78)))))*AS$8))/2000/2.2046","v":862.89142073846028},{"$f":"(SUMPRODUCT(AT$9:AT$229,Nutrients!$DZ$8:$DZ$228)+(IF($A$7=Nutrients!$B$8,Nutrients!$DZ$8,Nutrients!$DZ$9)*AT$7)+(((IF($A$8=Nutrients!$B$79,Nutrients!$DZ$79,(IF($A$8=Nutrients!$B$77,Nutrients!$DZ$77,Nutrients!$DZ$78)))))*AT$8))/2000/2.2046","v":874.43334957469426},{"$f":"(SUMPRODUCT(AU$9:AU$229,Nutrients!$DZ$8:$DZ$228)+(IF($A$7=Nutrients!$B$8,Nutrients!$DZ$8,Nutrients!$DZ$9)*AU$7)+(((IF($A$8=Nutrients!$B$79,Nutrients!$DZ$79,(IF($A$8=Nutrients!$B$77,Nutrients!$DZ$77,Nutrients!$DZ$78)))))*AU$8))/2000/2.2046","v":885.87140010730263},{"$f":"(SUMPRODUCT(AV$9:AV$229,Nutrients!$DZ$8:$DZ$228)+(IF($A$7=Nutrients!$B$8,Nutrients!$DZ$8,Nutrients!$DZ$9)*AV$7)+(((IF($A$8=Nutrients!$B$79,Nutrients!$DZ$79,(IF($A$8=Nutrients!$B$77,Nutrients!$DZ$77,Nutrients!$DZ$78)))))*AV$8))/2000/2.2046","v":895.6172131661092},{"$f":"(SUMPRODUCT(AW$9:AW$229,Nutrients!$DZ$8:$DZ$228)+(IF($A$7=Nutrients!$B$8,Nutrients!$DZ$8,Nutrients!$DZ$9)*AW$7)+(((IF($A$8=Nutrients!$B$79,Nutrients!$DZ$79,(IF($A$8=Nutrients!$B$77,Nutrients!$DZ$77,Nutrients!$DZ$78)))))*AW$8))/2000/2.2046","v":900.59063769246688}]
["DE NRC, kcal/lb",{"$f":"(SUMPRODUCT(B$9:B$229,Nutrients!$D$8:$D$228)+(IF($A$7=Nutrients!$B$8,Nutrients!$D$8,Nutrients!$D$9)*B$7)+(((IF($A$8=Nutrients!$B$79,Nutrients!$D$79,(IF($A$8=Nutrients!$B$77,Nutrients!$D$77,Nutrients!$D$78)))))*B$8))/2000/2.2046","v":1553.447657374518},{"$f":"(SUMPRODUCT(C$9:C$229,Nutrients!$D$8:$D$228)+(IF($A$7=Nutrients!$B$8,Nutrients!$D$8,Nutrients!$D$9)*C$7)+(((IF($A$8=Nutrients!$B$79,Nutrients!$D$79,(IF($A$8=Nutrients!$B$77,Nutrients!$D$77,Nutrients!$D$78)))))*C$8))/2000/2.2046","v":1552.8317239882158},{"$f":"(SUMPRODUCT(D$9:D$229,Nutrients!$D$8:$D$228)+(IF($A$7=Nutrients!$B$8,Nutrients!$D$8,Nutrients!$D$9)*D$7)+(((IF($A$8=Nutrients!$B$79,Nutrients!$D$79,(IF($A$8=Nutrients!$B$77,Nutrients!$D$77,Nutrients!$D$78)))))*D$8))/2000/2.2046","v":1552.5109280788211},{"$f":"(SUMPRODUCT(E$9:E$229,Nutrients!$D$8:$D$228)+(IF($A$7=Nutrients!$B$8,Nutrients!$D$8,Nutrients!$D$9)*E$7)+(((IF($A$8=Nutrients!$B$79,Nutrients!$D$79,(IF($A$8=Nutrients!$B$77,Nutrients!$D$77,Nutrients!$D$78)))))*E$8))/2000/2.2046","v":1552.5671760275247},{"$f":"(SUMPRODUCT(F$9:F$229,Nutrients!$D$8:$D$228)+(IF($A$7=Nutrients!$B$8,Nutrients!$D$8,Nutrients!$D$9)*F$7)+(((IF($A$8=Nutrients!$B$79,Nutrients!$D$79,(IF($A$8=Nutrients!$B$77,Nutrients!$D$77,Nutrients!$D$78)))))*F$8))/2000/2.2046","v":1552.7159321016593},{"$f":"(SUMPRODUCT(G$9:G$229,Nutrients!$D$8:$D$228)+(IF($A$7=Nutrients!$B$8,Nutrients!$D$8,Nutrients!$D$9)*G$7)+(((IF($A$8=Nutrients!$B$79,Nutrients!$D$79,(IF($A$8=Nutrients!$B$77,Nutrients!$D$77,Nutrients!$D$78)))))*G$8))/2000/2.2046","v":1552.2569188768136},null,{"$f":"(SUMPRODUCT(I$9:I$229,Nutrients!$D$8:$D$228)+(IF($A$7=Nutrients!$B$8,Nutrients!$D$8,Nutrients!$D$9)*I$7)+(((IF($A$8=Nutrients!$B$79,Nutrients!$D$79,(IF($A$8=Nutrients!$B$77,Nutrients!$D$77,Nutrients!$D$78)))))*I$8))/2000/2.2046","v":1570.5794191214936},{"$f":"(SUMPRODUCT(J$9:J$229,Nutrients!$D$8:$D$228)+(IF($A$7=Nutrients!$B$8,Nutrients!$D$8,Nutrients!$D$9)*J$7)+(((IF($A$8=Nutrients!$B$79,Nutrients!$D$79,(IF($A$8=Nutrients!$B$77,Nutrients!$D$77,Nutrients!$D$78)))))*J$8))/2000/2.2046","v":1570.0494186088647},{"$f":"(SUMPRODUCT(K$9:K$229,Nutrients!$D$8:$D$228)+(IF($A$7=Nutrients!$B$8,Nutrients!$D$8,Nutrients!$D$9)*K$7)+(((IF($A$8=Nutrients!$B$79,Nutrients!$D$79,(IF($A$8=Nutrients!$B$77,Nutrients!$D$77,Nutrients!$D$78)))))*K$8))/2000/2.2046","v":1569.8197306845409},{"$f":"(SUMPRODUCT(L$9:L$229,Nutrients!$D$8:$D$228)+(IF($A$7=Nutrients!$B$8,Nutrients!$D$8,Nutrients!$D$9)*L$7)+(((IF($A$8=Nutrients!$B$79,Nutrients!$D$79,(IF($A$8=Nutrients!$B$77,Nutrients!$D$77,Nutrients!$D$78)))))*L$8))/2000/2.2046","v":1569.8977070591386},{"$f":"(SUMPRODUCT(M$9:M$229,Nutrients!$D$8:$D$228)+(IF($A$7=Nutrients!$B$8,Nutrients!$D$8,Nutrients!$D$9)*M$7)+(((IF($A$8=Nutrients!$B$79,Nutrients!$D$79,(IF($A$8=Nutrients!$B$77,Nutrients!$D$77,Nutrients!$D$78)))))*M$8))/2000/2.2046","v":1570.0391789983364},{"$f":"(SUMPRODUCT(N$9:N$229,Nutrients!$D$8:$D$228)+(IF($A$7=Nutrients!$B$8,Nutrients!$D$8,Nutrients!$D$9)*N$7)+(((IF($A$8=Nutrients!$B$79,Nutrients!$D$79,(IF($A$8=Nutrients!$B$77,Nutrients!$D$77,Nutrients!$D$78)))))*N$8))/2000/2.2046","v":1569.6196181088762},null,{"$f":"(SUMPRODUCT(P$9:P$229,Nutrients!$D$8:$D$228)+(IF($A$7=Nutrients!$B$8,Nutrients!$D$8,Nutrients!$D$9)*P$7)+(((IF($A$8=Nutrients!$B$79,Nutrients!$D$79,(IF($A$8=Nutrients!$B$77,Nutrients!$D$77,Nutrients!$D$78)))))*P$8))/2000/2.2046","v":1587.8338185749355},{"$f":"(SUMPRODUCT(Q$9:Q$229,Nutrients!$D$8:$D$228)+(IF($A$7=Nutrients!$B$8,Nutrients!$D$8,Nutrients!$D$9)*Q$7)+(((IF($A$8=Nutrients!$B$79,Nutrients!$D$79,(IF($A$8=Nutrients!$B$77,Nutrients!$D$77,Nutrients!$D$78)))))*Q$8))/2000/2.2046","v":1587.3334018427045},{"$f":"(SUMPRODUCT(R$9:R$229,Nutrients!$D$8:$D$228)+(IF($A$7=Nutrients!$B$8,Nutrients!$D$8,Nutrients!$D$9)*R$7)+(((IF($A$8=Nutrients!$B$79,Nutrients!$D$79,(IF($A$8=Nutrients!$B$77,Nutrients!$D$77,Nutrients!$D$78)))))*R$8))/2000/2.2046","v":1587.1891448772083},{"$f":"(SUMPRODUCT(S$9:S$229,Nutrients!$D$8:$D$228)+(IF($A$7=Nutrients!$B$8,Nutrients!$D$8,Nutrients!$D$9)*S$7)+(((IF($A$8=Nutrients!$B$79,Nutrients!$D$79,(IF($A$8=Nutrients!$B$77,Nutrients!$D$77,Nutrients!$D$78)))))*S$8))/2000/2.2046","v":1587.2373672405836},{"$f":"(SUMPRODUCT(T$9:T$229,Nutrients!$D$8:$D$228)+(IF($A$7=Nutrients!$B$8,Nutrients!$D$8,Nutrients!$D$9)*T$7)+(((IF($A$8=Nutrients!$B$79,Nutrients!$D$79,(IF($A$8=Nutrients!$B$77,Nutrients!$D$77,Nutrients!$D$78)))))*T$8))/2000/2.2046","v":1587.3700336760207},{"$f":"(SUMPRODUCT(U$9:U$229,Nutrients!$D$8:$D$228)+(IF($A$7=Nutrients!$B$8,Nutrients!$D$8,Nutrients!$D$9)*U$7)+(((IF($A$8=Nutrients!$B$79,Nutrients!$D$79,(IF($A$8=Nutrients!$B$77,Nutrients!$D$77,Nutrients!$D$78)))))*U$8))/2000/2.2046","v":1586.9686094880328},null,{"$f":"(SUMPRODUCT(W$9:W$229,Nutrients!$D$8:$D$228)+(IF($A$7=Nutrients!$B$8,Nutrients!$D$8,Nutrients!$D$9)*W$7)+(((IF($A$8=Nutrients!$B$79,Nutrients!$D$79,(IF($A$8=Nutrients!$B$77,Nutrients!$D$77,Nutrients!$D$78)))))*W$8))/2000/2.2046","v":1605.1988453321201},{"$f":"(SUMPRODUCT(X$9:X$229,Nutrients!$D$8:$D$228)+(IF($A$7=Nutrients!$B$8,Nutrients!$D$8,Nutrients!$D$9)*X$7)+(((IF($A$8=Nutrients!$B$79,Nutrients!$D$79,(IF($A$8=Nutrients!$B$77,Nutrients!$D$77,Nutrients!$D$78)))))*X$8))/2000/2.2046","v":1604.7854257528716},{"$f":"(SUMPRODUCT(Y$9:Y$229,Nutrients!$D$8:$D$228)+(IF($A$7=Nutrients!$B$8,Nutrients!$D$8,Nutrients!$D$9)*Y$7)+(((IF($A$8=Nutrients!$B$79,Nutrients!$D$79,(IF($A$8=Nutrients!$B$77,Nutrients!$D$77,Nutrients!$D$78)))))*Y$8))/2000/2.2046","v":1604.6020098576921},{"$f":"(SUMPRODUCT(Z$9:Z$229,Nutrients!$D$8:$D$228)+(IF($A$7=Nutrients!$B$8,Nutrients!$D$8,Nutrients!$D$9)*Z$7)+(((IF($A$8=Nutrients!$B$79,Nutrients!$D$79,(IF($A$8=Nutrients!$B$77,Nutrients!$D$77,Nutrients!$D$78)))))*Z$8))/2000/2.2046","v":1604.7468112150666},{"$f":"(SUMPRODUCT(AA$9:AA$229,Nutrients!$D$8:$D$228)+(IF($A$7=Nutrients!$B$8,Nutrients!$D$8,Nutrients!$D$9)*AA$7)+(((IF($A$8=Nutrients!$B$79,Nutrients!$D$79,(IF($A$8=Nutrients!$B$77,Nutrients!$D$77,Nutrients!$D$78)))))*AA$8))/2000/2.2046","v":1604.9173888291984},{"$f":"(SUMPRODUCT(AB$9:AB$229,Nutrients!$D$8:$D$228)+(IF($A$7=Nutrients!$B$8,Nutrients!$D$8,Nutrients!$D$9)*AB$7)+(((IF($A$8=Nutrients!$B$79,Nutrients!$D$79,(IF($A$8=Nutrients!$B$77,Nutrients!$D$77,Nutrients!$D$78)))))*AB$8))/2000/2.2046","v":1604.3978026418924},null,{"$f":"(SUMPRODUCT(AD$9:AD$229,Nutrients!$D$8:$D$228)+(IF($A$7=Nutrients!$B$8,Nutrients!$D$8,Nutrients!$D$9)*AD$7)+(((IF($A$8=Nutrients!$B$79,Nutrients!$D$79,(IF($A$8=Nutrients!$B$77,Nutrients!$D$77,Nutrients!$D$78)))))*AD$8))/2000/2.2046","v":1622.6391519958393},{"$f":"(SUMPRODUCT(AE$9:AE$229,Nutrients!$D$8:$D$228)+(IF($A$7=Nutrients!$B$8,Nutrients!$D$8,Nutrients!$D$9)*AE$7)+(((IF($A$8=Nutrients!$B$79,Nutrients!$D$79,(IF($A$8=Nutrients!$B$77,Nutrients!$D$77,Nutrients!$D$78)))))*AE$8))/2000/2.2046","v":1622.1807061595498},{"$f":"(SUMPRODUCT(AF$9:AF$229,Nutrients!$D$8:$D$228)+(IF($A$7=Nutrients!$B$8,Nutrients!$D$8,Nutrients!$D$9)*AF$7)+(((IF($A$8=Nutrients!$B$79,Nutrients!$D$79,(IF($A$8=Nutrients!$B$77,Nutrients!$D$77,Nutrients!$D$78)))))*AF$8))/2000/2.2046","v":1622.1095228675297},{"$f":"(SUMPRODUCT(AG$9:AG$229,Nutrients!$D$8:$D$228)+(IF($A$7=Nutrients!$B$8,Nutrients!$D$8,Nutrients!$D$9)*AG$7)+(((IF($A$8=Nutrients!$B$79,Nutrients!$D$79,(IF($A$8=Nutrients!$B$77,Nutrients!$D$77,Nutrients!$D$78)))))*AG$8))/2000/2.2046","v":1622.2429360322983},{"$f":"(SUMPRODUCT(AH$9:AH$229,Nutrients!$D$8:$D$228)+(IF($A$7=Nutrients!$B$8,Nutrients!$D$8,Nutrients!$D$9)*AH$7)+(((IF($A$8=Nutrients!$B$79,Nutrients!$D$79,(IF($A$8=Nutrients!$B$77,Nutrients!$D$77,Nutrients!$D$78)))))*AH$8))/2000/2.2046","v":1622.1841308191349},{"$f":"(SUMPRODUCT(AI$9:AI$229,Nutrients!$D$8:$D$228)+(IF($A$7=Nutrients!$B$8,Nutrients!$D$8,Nutrients!$D$9)*AI$7)+(((IF($A$8=Nutrients!$B$79,Nutrients!$D$79,(IF($A$8=Nutrients!$B$77,Nutrients!$D$77,Nutrients!$D$78)))))*AI$8))/2000/2.2046","v":1621.699655597243},null,{"$f":"(SUMPRODUCT(AK$9:AK$229,Nutrients!$D$8:$D$228)+(IF($A$7=Nutrients!$B$8,Nutrients!$D$8,Nutrients!$D$9)*AK$7)+(((IF($A$8=Nutrients!$B$79,Nutrients!$D$79,(IF($A$8=Nutrients!$B$77,Nutrients!$D$77,Nutrients!$D$78)))))*AK$8))/2000/2.2046","v":1640.0020969516074},{"$f":"(SUMPRODUCT(AL$9:AL$229,Nutrients!$D$8:$D$228)+(IF($A$7=Nutrients!$B$8,Nutrients!$D$8,Nutrients!$D$9)*AL$7)+(((IF($A$8=Nutrients!$B$79,Nutrients!$D$79,(IF($A$8=Nutrients!$B$77,Nutrients!$D$77,Nutrients!$D$78)))))*AL$8))/2000/2.2046","v":1639.5684773497417},{"$f":"(SUMPRODUCT(AM$9:AM$229,Nutrients!$D$8:$D$228)+(IF($A$7=Nutrients!$B$8,Nutrients!$D$8,Nutrients!$D$9)*AM$7)+(((IF($A$8=Nutrients!$B$79,Nutrients!$D$79,(IF($A$8=Nutrients!$B$77,Nutrients!$D$77,Nutrients!$D$78)))))*AM$8))/2000/2.2046","v":1639.4445611137123},{"$f":"(SUMPRODUCT(AN$9:AN$229,Nutrients!$D$8:$D$228)+(IF($A$7=Nutrients!$B$8,Nutrients!$D$8,Nutrients!$D$9)*AN$7)+(((IF($A$8=Nutrients!$B$79,Nutrients!$D$79,(IF($A$8=Nutrients!$B$77,Nutrients!$D$77,Nutrients!$D$78)))))*AN$8))/2000/2.2046","v":1639.4431767314516},{"$f":"(SUMPRODUCT(AO$9:AO$229,Nutrients!$D$8:$D$228)+(IF($A$7=Nutrients!$B$8,Nutrients!$D$8,Nutrients!$D$9)*AO$7)+(((IF($A$8=Nutrients!$B$79,Nutrients!$D$79,(IF($A$8=Nutrients!$B$77,Nutrients!$D$77,Nutrients!$D$78)))))*AO$8))/2000/2.2046","v":1639.4733878594141},{"$f":"(SUMPRODUCT(AP$9:AP$229,Nutrients!$D$8:$D$228)+(IF($A$7=Nutrients!$B$8,Nutrients!$D$8,Nutrients!$D$9)*AP$7)+(((IF($A$8=Nutrients!$B$79,Nutrients!$D$79,(IF($A$8=Nutrients!$B$77,Nutrients!$D$77,Nutrients!$D$78)))))*AP$8))/2000/2.2046","v":1639.0064536975774},null,{"$f":"(SUMPRODUCT(AR$9:AR$229,Nutrients!$D$8:$D$228)+(IF($A$7=Nutrients!$B$8,Nutrients!$D$8,Nutrients!$D$9)*AR$7)+(((IF($A$8=Nutrients!$B$79,Nutrients!$D$79,(IF($A$8=Nutrients!$B$77,Nutrients!$D$77,Nutrients!$D$78)))))*AR$8))/2000/2.2046","v":1657.5305720563433},{"$f":"(SUMPRODUCT(AS$9:AS$229,Nutrients!$D$8:$D$228)+(IF($A$7=Nutrients!$B$8,Nutrients!$D$8,Nutrients!$D$9)*AS$7)+(((IF($A$8=Nutrients!$B$79,Nutrients!$D$79,(IF($A$8=Nutrients!$B$77,Nutrients!$D$77,Nutrients!$D$78)))))*AS$8))/2000/2.2046","v":1656.9375685435482},{"$f":"(SUMPRODUCT(AT$9:AT$229,Nutrients!$D$8:$D$228)+(IF($A$7=Nutrients!$B$8,Nutrients!$D$8,Nutrients!$D$9)*AT$7)+(((IF($A$8=Nutrients!$B$79,Nutrients!$D$79,(IF($A$8=Nutrients!$B$77,Nutrients!$D$77,Nutrients!$D$78)))))*AT$8))/2000/2.2046","v":1656.8601590344711},{"$f":"(SUMPRODUCT(AU$9:AU$229,Nutrients!$D$8:$D$228)+(IF($A$7=Nutrients!$B$8,Nutrients!$D$8,Nutrients!$D$9)*AU$7)+(((IF($A$8=Nutrients!$B$79,Nutrients!$D$79,(IF($A$8=Nutrients!$B$77,Nutrients!$D$77,Nutrients!$D$78)))))*AU$8))/2000/2.2046","v":1656.706940049193},{"$f":"(SUMPRODUCT(AV$9:AV$229,Nutrients!$D$8:$D$228)+(IF($A$7=Nutrients!$B$8,Nutrients!$D$8,Nutrients!$D$9)*AV$7)+(((IF($A$8=Nutrients!$B$79,Nutrients!$D$79,(IF($A$8=Nutrients!$B$77,Nutrients!$D$77,Nutrients!$D$78)))))*AV$8))/2000/2.2046","v":1656.7630043919464},{"$f":"(SUMPRODUCT(AW$9:AW$229,Nutrients!$D$8:$D$228)+(IF($A$7=Nutrients!$B$8,Nutrients!$D$8,Nutrients!$D$9)*AW$7)+(((IF($A$8=Nutrients!$B$79,Nutrients!$D$79,(IF($A$8=Nutrients!$B$77,Nutrients!$D$77,Nutrients!$D$78)))))*AW$8))/2000/2.2046","v":1656.313385275914}]
["NE NRC, kcal/lb",{"$f":"(SUMPRODUCT(B$9:B$229,Nutrients!$F$8:$F$228)+(IF($A$7=Nutrients!$B$8,Nutrients!$F$8,Nutrients!$F$9)*B$7)+(((IF($A$8=Nutrients!$B$79,Nutrients!$F$79,(IF($A$8=Nutrients!$B$77,Nutrients!$F$77,Nutrients!$F$78)))))*B$8))/2000/2.2046","v":1153.6247232105659},{"$f":"(SUMPRODUCT(C$9:C$229,Nutrients!$F$8:$F$228)+(IF($A$7=Nutrients!$B$8,Nutrients!$F$8,Nutrients!$F$9)*C$7)+(((IF($A$8=Nutrients!$B$79,Nutrients!$F$79,(IF($A$8=Nutrients!$B$77,Nutrients!$F$77,Nutrients!$F$78)))))*C$8))/2000/2.2046","v":1160.6089760708783},{"$f":"(SUMPRODUCT(D$9:D$229,Nutrients!$F$8:$F$228)+(IF($A$7=Nutrients!$B$8,Nutrients!$F$8,Nutrients!$F$9)*D$7)+(((IF($A$8=Nutrients!$B$79,Nutrients!$F$79,(IF($A$8=Nutrients!$B$77,Nutrients!$F$77,Nutrients!$F$78)))))*D$8))/2000/2.2046","v":1166.664301360594},{"$f":"(SUMPRODUCT(E$9:E$229,Nutrients!$F$8:$F$228)+(IF($A$7=Nutrients!$B$8,Nutrients!$F$8,Nutrients!$F$9)*E$7)+(((IF($A$8=Nutrients!$B$79,Nutrients!$F$79,(IF($A$8=Nutrients!$B$77,Nutrients!$F$77,Nutrients!$F$78)))))*E$8))/2000/2.2046","v":1172.8465047486318},{"$f":"(SUMPRODUCT(F$9:F$229,Nutrients!$F$8:$F$228)+(IF($A$7=Nutrients!$B$8,Nutrients!$F$8,Nutrients!$F$9)*F$7)+(((IF($A$8=Nutrients!$B$79,Nutrients!$F$79,(IF($A$8=Nutrients!$B$77,Nutrients!$F$77,Nutrients!$F$78)))))*F$8))/2000/2.2046","v":1178.0967521230723},{"$f":"(SUMPRODUCT(G$9:G$229,Nutrients!$F$8:$F$228)+(IF($A$7=Nutrients!$B$8,Nutrients!$F$8,Nutrients!$F$9)*G$7)+(((IF($A$8=Nutrients!$B$79,Nutrients!$F$79,(IF($A$8=Nutrients!$B$77,Nutrients!$F$77,Nutrients!$F$78)))))*G$8))/2000/2.2046","v":1180.5684789085878},null,{"$f":"(SUMPRODUCT(I$9:I$229,Nutrients!$F$8:$F$228)+(IF($A$7=Nutrients!$B$8,Nutrients!$F$8,Nutrients!$F$9)*I$7)+(((IF($A$8=Nutrients!$B$79,Nutrients!$F$79,(IF($A$8=Nutrients!$B$77,Nutrients!$F$77,Nutrients!$F$78)))))*I$8))/2000/2.2046","v":1153.3679546278718},{"$f":"(SUMPRODUCT(J$9:J$229,Nutrients!$F$8:$F$228)+(IF($A$7=Nutrients!$B$8,Nutrients!$F$8,Nutrients!$F$9)*J$7)+(((IF($A$8=Nutrients!$B$79,Nutrients!$F$79,(IF($A$8=Nutrients!$B$77,Nutrients!$F$77,Nutrients!$F$78)))))*J$8))/2000/2.2046","v":1160.4340144343939},{"$f":"(SUMPRODUCT(K$9:K$229,Nutrients!$F$8:$F$228)+(IF($A$7=Nutrients!$B$8,Nutrients!$F$8,Nutrients!$F$9)*K$7)+(((IF($A$8=Nutrients!$B$79,Nutrients!$F$79,(IF($A$8=Nutrients!$B$77,Nutrients!$F$77,Nutrients!$F$78)))))*K$8))/2000/2.2046","v":1166.5352319413898},{"$f":"(SUMPRODUCT(L$9:L$229,Nutrients!$F$8:$F$228)+(IF($A$7=Nutrients!$B$8,Nutrients!$F$8,Nutrients!$F$9)*L$7)+(((IF($A$8=Nutrients!$B$79,Nutrients!$F$79,(IF($A$8=Nutrients!$B$77,Nutrients!$F$77,Nutrients!$F$78)))))*L$8))/2000/2.2046","v":1172.7562010030767},{"$f":"(SUMPRODUCT(M$9:M$229,Nutrients!$F$8:$F$228)+(IF($A$7=Nutrients!$B$8,Nutrients!$F$8,Nutrients!$F$9)*M$7)+(((IF($A$8=Nutrients!$B$79,Nutrients!$F$79,(IF($A$8=Nutrients!$B$77,Nutrients!$F$77,Nutrients!$F$78)))))*M$8))/2000/2.2046","v":1178.0093360180736},{"$f":"(SUMPRODUCT(N$9:N$229,Nutrients!$F$8:$F$228)+(IF($A$7=Nutrients!$B$8,Nutrients!$F$8,Nutrients!$F$9)*N$7)+(((IF($A$8=Nutrients!$B$79,Nutrients!$F$79,(IF($A$8=Nutrients!$B$77,Nutrients!$F$77,Nutrients!$F$78)))))*N$8))/2000/2.2046","v":1180.4982705301143},null,{"$f":"(SUMPRODUCT(P$9:P$229,Nutrients!$F$8:$F$228)+(IF($A$7=Nutrients!$B$8,Nutrients!$F$8,Nutrients!$F$9)*P$7)+(((IF($A$8=Nutrients!$B$79,Nutrients!$F$79,(IF($A$8=Nutrients!$B$77,Nutrients!$F$77,Nutrients!$F$78)))))*P$8))/2000/2.2046","v":1153.2142906581487},{"$f":"(SUMPRODUCT(Q$9:Q$229,Nutrients!$F$8:$F$228)+(IF($A$7=Nutrients!$B$8,Nutrients!$F$8,Nutrients!$F$9)*Q$7)+(((IF($A$8=Nutrients!$B$79,Nutrients!$F$79,(IF($A$8=Nutrients!$B$77,Nutrients!$F$77,Nutrients!$F$78)))))*Q$8))/2000/2.2046","v":1160.2999159497322},{"$f":"(SUMPRODUCT(R$9:R$229,Nutrients!$F$8:$F$228)+(IF($A$7=Nutrients!$B$8,Nutrients!$F$8,Nutrients!$F$9)*R$7)+(((IF($A$8=Nutrients!$B$79,Nutrients!$F$79,(IF($A$8=Nutrients!$B$77,Nutrients!$F$77,Nutrients!$F$78)))))*R$8))/2000/2.2046","v":1166.4690888349064},{"$f":"(SUMPRODUCT(S$9:S$229,Nutrients!$F$8:$F$228)+(IF($A$7=Nutrients!$B$8,Nutrients!$F$8,Nutrients!$F$9)*S$7)+(((IF($A$8=Nutrients!$B$79,Nutrients!$F$79,(IF($A$8=Nutrients!$B$77,Nutrients!$F$77,Nutrients!$F$78)))))*S$8))/2000/2.2046","v":1172.6592947830845},{"$f":"(SUMPRODUCT(T$9:T$229,Nutrients!$F$8:$F$228)+(IF($A$7=Nutrients!$B$8,Nutrients!$F$8,Nutrients!$F$9)*T$7)+(((IF($A$8=Nutrients!$B$79,Nutrients!$F$79,(IF($A$8=Nutrients!$B$77,Nutrients!$F$77,Nutrients!$F$78)))))*T$8))/2000/2.2046","v":1177.9162807905248},{"$f":"(SUMPRODUCT(U$9:U$229,Nutrients!$F$8:$F$228)+(IF($A$7=Nutrients!$B$8,Nutrients!$F$8,Nutrients!$F$9)*U$7)+(((IF($A$8=Nutrients!$B$79,Nutrients!$F$79,(IF($A$8=Nutrients!$B$77,Nutrients!$F$77,Nutrients!$F$78)))))*U$8))/2000/2.2046","v":1180.4233251279677},null,{"$f":"(SUMPRODUCT(W$9:W$229,Nutrients!$F$8:$F$228)+(IF($A$7=Nutrients!$B$8,Nutrients!$F$8,Nutrients!$F$9)*W$7)+(((IF($A$8=Nutrients!$B$79,Nutrients!$F$79,(IF($A$8=Nutrients!$B$77,Nutrients!$F$77,Nutrients!$F$78)))))*W$8))/2000/2.2046","v":1153.1514511301054},{"$f":"(SUMPRODUCT(X$9:X$229,Nutrients!$F$8:$F$228)+(IF($A$7=Nutrients!$B$8,Nutrients!$F$8,Nutrients!$F$9)*X$7)+(((IF($A$8=Nutrients!$B$79,Nutrients!$F$79,(IF($A$8=Nutrients!$B$77,Nutrients!$F$77,Nutrients!$F$78)))))*X$8))/2000/2.2046","v":1160.3014025612417},{"$f":"(SUMPRODUCT(Y$9:Y$229,Nutrients!$F$8:$F$228)+(IF($A$7=Nutrients!$B$8,Nutrients!$F$8,Nutrients!$F$9)*Y$7)+(((IF($A$8=Nutrients!$B$79,Nutrients!$F$79,(IF($A$8=Nutrients!$B$77,Nutrients!$F$77,Nutrients!$F$78)))))*Y$8))/2000/2.2046","v":1166.4302470709852},{"$f":"(SUMPRODUCT(Z$9:Z$229,Nutrients!$F$8:$F$228)+(IF($A$7=Nutrients!$B$8,Nutrients!$F$8,Nutrients!$F$9)*Z$7)+(((IF($A$8=Nutrients!$B$79,Nutrients!$F$79,(IF($A$8=Nutrients!$B$77,Nutrients!$F$77,Nutrients!$F$78)))))*Z$8))/2000/2.2046","v":1172.6911665808204},{"$f":"(SUMPRODUCT(AA$9:AA$229,Nutrients!$F$8:$F$228)+(IF($A$7=Nutrients!$B$8,Nutrients!$F$8,Nutrients!$F$9)*AA$7)+(((IF($A$8=Nutrients!$B$79,Nutrients!$F$79,(IF($A$8=Nutrients!$B$77,Nutrients!$F$77,Nutrients!$F$78)))))*AA$8))/2000/2.2046","v":1177.9566425259204},{"$f":"(SUMPRODUCT(AB$9:AB$229,Nutrients!$F$8:$F$228)+(IF($A$7=Nutrients!$B$8,Nutrients!$F$8,Nutrients!$F$9)*AB$7)+(((IF($A$8=Nutrients!$B$79,Nutrients!$F$79,(IF($A$8=Nutrients!$B$77,Nutrients!$F$77,Nutrients!$F$78)))))*AB$8))/2000/2.2046","v":1180.4087002653939},null,{"$f":"(SUMPRODUCT(AD$9:AD$229,Nutrients!$F$8:$F$228)+(IF($A$7=Nutrients!$B$8,Nutrients!$F$8,Nutrients!$F$9)*AD$7)+(((IF($A$8=Nutrients!$B$79,Nutrients!$F$79,(IF($A$8=Nutrients!$B$77,Nutrients!$F$77,Nutrients!$F$78)))))*AD$8))/2000/2.2046","v":1153.142034791809},{"$f":"(SUMPRODUCT(AE$9:AE$229,Nutrients!$F$8:$F$228)+(IF($A$7=Nutrients!$B$8,Nutrients!$F$8,Nutrients!$F$9)*AE$7)+(((IF($A$8=Nutrients!$B$79,Nutrients!$F$79,(IF($A$8=Nutrients!$B$77,Nutrients!$F$77,Nutrients!$F$78)))))*AE$8))/2000/2.2046","v":1160.2536913331055},{"$f":"(SUMPRODUCT(AF$9:AF$229,Nutrients!$F$8:$F$228)+(IF($A$7=Nutrients!$B$8,Nutrients!$F$8,Nutrients!$F$9)*AF$7)+(((IF($A$8=Nutrients!$B$79,Nutrients!$F$79,(IF($A$8=Nutrients!$B$77,Nutrients!$F$77,Nutrients!$F$78)))))*AF$8))/2000/2.2046","v":1166.460345061761},{"$f":"(SUMPRODUCT(AG$9:AG$229,Nutrients!$F$8:$F$228)+(IF($A$7=Nutrients!$B$8,Nutrients!$F$8,Nutrients!$F$9)*AG$7)+(((IF($A$8=Nutrients!$B$79,Nutrients!$F$79,(IF($A$8=Nutrients!$B$77,Nutrients!$F$77,Nutrients!$F$78)))))*AG$8))/2000/2.2046","v":1172.704739905836},{"$f":"(SUMPRODUCT(AH$9:AH$229,Nutrients!$F$8:$F$228)+(IF($A$7=Nutrients!$B$8,Nutrients!$F$8,Nutrients!$F$9)*AH$7)+(((IF($A$8=Nutrients!$B$79,Nutrients!$F$79,(IF($A$8=Nutrients!$B$77,Nutrients!$F$77,Nutrients!$F$78)))))*AH$8))/2000/2.2046","v":1177.9036426322355},{"$f":"(SUMPRODUCT(AI$9:AI$229,Nutrients!$F$8:$F$228)+(IF($A$7=Nutrients!$B$8,Nutrients!$F$8,Nutrients!$F$9)*AI$7)+(((IF($A$8=Nutrients!$B$79,Nutrients!$F$79,(IF($A$8=Nutrients!$B$77,Nutrients!$F$77,Nutrients!$F$78)))))*AI$8))/2000/2.2046","v":1180.4274477716672},null,{"$f":"(SUMPRODUCT(AK$9:AK$229,Nutrients!$F$8:$F$228)+(IF($A$7=Nutrients!$B$8,Nutrients!$F$8,Nutrients!$F$9)*AK$7)+(((IF($A$8=Nutrients!$B$79,Nutrients!$F$79,(IF($A$8=Nutrients!$B$77,Nutrients!$F$77,Nutrients!$F$78)))))*AK$8))/2000/2.2046","v":1153.0753916642404},{"$f":"(SUMPRODUCT(AL$9:AL$229,Nutrients!$F$8:$F$228)+(IF($A$7=Nutrients!$B$8,Nutrients!$F$8,Nutrients!$F$9)*AL$7)+(((IF($A$8=Nutrients!$B$79,Nutrients!$F$79,(IF($A$8=Nutrients!$B$77,Nutrients!$F$77,Nutrients!$F$78)))))*AL$8))/2000/2.2046","v":1160.2039958044193},{"$f":"(SUMPRODUCT(AM$9:AM$229,Nutrients!$F$8:$F$228)+(IF($A$7=Nutrients!$B$8,Nutrients!$F$8,Nutrients!$F$9)*AM$7)+(((IF($A$8=Nutrients!$B$79,Nutrients!$F$79,(IF($A$8=Nutrients!$B$77,Nutrients!$F$77,Nutrients!$F$78)))))*AM$8))/2000/2.2046","v":1166.3599731181082},{"$f":"(SUMPRODUCT(AN$9:AN$229,Nutrients!$F$8:$F$228)+(IF($A$7=Nutrients!$B$8,Nutrients!$F$8,Nutrients!$F$9)*AN$7)+(((IF($A$8=Nutrients!$B$79,Nutrients!$F$79,(IF($A$8=Nutrients!$B$77,Nutrients!$F$77,Nutrients!$F$78)))))*AN$8))/2000/2.2046","v":1172.5724839879415},{"$f":"(SUMPRODUCT(AO$9:AO$229,Nutrients!$F$8:$F$228)+(IF($A$7=Nutrients!$B$8,Nutrients!$F$8,Nutrients!$F$9)*AO$7)+(((IF($A$8=Nutrients!$B$79,Nutrients!$F$79,(IF($A$8=Nutrients!$B$77,Nutrients!$F$77,Nutrients!$F$78)))))*AO$8))/2000/2.2046","v":1177.9107253358327},{"$f":"(SUMPRODUCT(AP$9:AP$229,Nutrients!$F$8:$F$228)+(IF($A$7=Nutrients!$B$8,Nutrients!$F$8,Nutrients!$F$9)*AP$7)+(((IF($A$8=Nutrients!$B$79,Nutrients!$F$79,(IF($A$8=Nutrients!$B$77,Nutrients!$F$77,Nutrients!$F$78)))))*AP$8))/2000/2.2046","v":1180.4507466293803},null,{"$f":"(SUMPRODUCT(AR$9:AR$229,Nutrients!$F$8:$F$228)+(IF($A$7=Nutrients!$B$8,Nutrients!$F$8,Nutrients!$F$9)*AR$7)+(((IF($A$8=Nutrients!$B$79,Nutrients!$F$79,(IF($A$8=Nutrients!$B$77,Nutrients!$F$77,Nutrients!$F$78)))))*AR$8))/2000/2.2046","v":1153.1575925934135},{"$f":"(SUMPRODUCT(AS$9:AS$229,Nutrients!$F$8:$F$228)+(IF($A$7=Nutrients!$B$8,Nutrients!$F$8,Nutrients!$F$9)*AS$7)+(((IF($A$8=Nutrients!$B$79,Nutrients!$F$79,(IF($A$8=Nutrients!$B$77,Nutrients!$F$77,Nutrients!$F$78)))))*AS$8))/2000/2.2046","v":1160.1238471641236},{"$f":"(SUMPRODUCT(AT$9:AT$229,Nutrients!$F$8:$F$228)+(IF($A$7=Nutrients!$B$8,Nutrients!$F$8,Nutrients!$F$9)*AT$7)+(((IF($A$8=Nutrients!$B$79,Nutrients!$F$79,(IF($A$8=Nutrients!$B$77,Nutrients!$F$77,Nutrients!$F$78)))))*AT$8))/2000/2.2046","v":1166.2995058830538},{"$f":"(SUMPRODUCT(AU$9:AU$229,Nutrients!$F$8:$F$228)+(IF($A$7=Nutrients!$B$8,Nutrients!$F$8,Nutrients!$F$9)*AU$7)+(((IF($A$8=Nutrients!$B$79,Nutrients!$F$79,(IF($A$8=Nutrients!$B$77,Nutrients!$F$77,Nutrients!$F$78)))))*AU$8))/2000/2.2046","v":1172.5573496299719},{"$f":"(SUMPRODUCT(AV$9:AV$229,Nutrients!$F$8:$F$228)+(IF($A$7=Nutrients!$B$8,Nutrients!$F$8,Nutrients!$F$9)*AV$7)+(((IF($A$8=Nutrients!$B$79,Nutrients!$F$79,(IF($A$8=Nutrients!$B$77,Nutrients!$F$77,Nutrients!$F$78)))))*AV$8))/2000/2.2046","v":1177.9181466084062},{"$f":"(SUMPRODUCT(AW$9:AW$229,Nutrients!$F$8:$F$228)+(IF($A$7=Nutrients!$B$8,Nutrients!$F$8,Nutrients!$F$9)*AW$7)+(((IF($A$8=Nutrients!$B$79,Nutrients!$F$79,(IF($A$8=Nutrients!$B$77,Nutrients!$F$77,Nutrients!$F$78)))))*AW$8))/2000/2.2046","v":1180.4741747330677}]
["NE NRC, kcal/kg",{"$f":"B250*2.20462","v":2543.3041372844777},2558.7017608253796,2572.0514520655925,2585.6808612989284,2597.2556616655675,2602.7048799714507,null,{"$f":"I250*2.20462","v":2542.7380601316986},2558.3160369023535,2571.7669030426268,2585.4817758554027,2597.0629423721653,2602.5500971761003,null,{"$f":"P250*2.20462","v":2542.3992894707676},2558.0204007010984,2571.6210826272113,2585.2681344646835,2596.8577909564065,2602.38487104362,null,{"$f":"W250*2.20462","v":2542.2607521904529},2558.0236781145645,2571.5354512976351,2585.3383996674083,2596.9467732454946,2602.3526287790924,null,{"$f":"AD250*2.20462","v":2542.2399927427177},2557.9184929867906,2571.6018059300595,2585.3683236912038,2596.8299286198785,2602.3939599063729,null,{"$f":"AK250*2.20462","v":2542.0930699708174},2557.8089332303384,2571.3805239356434,2585.0767496494955,2596.8455432898832,2602.4453250340644,null,{"$f":"AR250*2.20462","v":2542.2742917832911},2557.6322359349701,2571.2472166598977,2585.0433841412282,2596.8619043758245,2602.4969751000153]
["SID Lys:NE, g/Mcal",{"$f":"IF(B$5=\"\",\"\",B236/(B250*2.2046)*10000)","v":4.6637077167474628},4.098690324665454,3.6038708201123204,3.1948100235360672,2.913603801156885,2.7602055376881007,null,{"$f":"IF(I$5=\"\",\"\",I236/(I250*2.2046)*10000)","v":4.6647459748469045},4.0993082948022534,3.6042695646173324,3.1950560280434108,2.9138200098812304,2.7603696968062401,null,{"$f":"IF(P$5=\"\",\"\",P236/(P250*2.2046)*10000)","v":4.6653675448274807},4.0997820611301981,3.6044739400164651,3.1953200610866981,2.9140502012695975,2.7605449534388362,null,{"$f":"IF(W$5=\"\",\"\",W236/(W250*2.2046)*10000)","v":4.6656217781238771},4.0997768083715744,3.6045939678759886,3.1952332175957689,2.9139503536870062,2.7605791556524966,null,{"$f":"IF(AD$5=\"\",\"\",AD236/(AD250*2.2046)*10000)","v":4.6656598767029767},4.0999453968346602,3.6045009591110908,3.195196234766684,2.9140814671782627,2.760535312233626,null,{"$f":"IF(AK$5=\"\",\"\",AK236/(AK250*2.2046)*10000)","v":4.6659295331093169},4.100121011601388,3.6048111470252029,3.195556624948658,2.914063944988468,2.7604808268435028,null,{"$f":"IF(AR$5=\"\",\"\",AR236/(AR250*2.2046)*10000)","v":4.6655969300500812},4.1004042737073529,3.6049980398103352,3.1955978704347654,2.9140455854251188,2.7604260413747284]
["CP, %",{"$f":"(SUMPRODUCT(B$9:B$229,Nutrients!$I$8:$I$228)+(IF($A$7=Nutrients!$B$8,Nutrients!$I$8,Nutrients!$I$9)*B$7)+(((IF($A$8=Nutrients!$B$79,Nutrients!$I$79,(IF($A$8=Nutrients!$B$77,Nutrients!$I$77,Nutrients!$I$78)))))*B$8))/2000","v":19.197144454100709},{"$f":"(SUMPRODUCT(C$9:C$229,Nutrients!$I$8:$I$228)+(IF($A$7=Nutrients!$B$8,Nutrients!$I$8,Nutrients!$I$9)*C$7)+(((IF($A$8=Nutrients!$B$79,Nutrients!$I$79,(IF($A$8=Nutrients!$B$77,Nutrients!$I$77,Nutrients!$I$78)))))*C$8))/2000","v":17.518322949293985},{"$f":"(SUMPRODUCT(D$9:D$229,Nutrients!$I$8:$I$228)+(IF($A$7=Nutrients!$B$8,Nutrients!$I$8,Nutrients!$I$9)*D$7)+(((IF($A$8=Nutrients!$B$79,Nutrients!$I$79,(IF($A$8=Nutrients!$B$77,Nutrients!$I$77,Nutrients!$I$78)))))*D$8))/2000","v":16.093820180294312},{"$f":"(SUMPRODUCT(E$9:E$229,Nutrients!$I$8:$I$228)+(IF($A$7=Nutrients!$B$8,Nutrients!$I$8,Nutrients!$I$9)*E$7)+(((IF($A$8=Nutrients!$B$79,Nutrients!$I$79,(IF($A$8=Nutrients!$B$77,Nutrients!$I$77,Nutrients!$I$78)))))*E$8))/2000","v":14.741302120356609},{"$f":"(SUMPRODUCT(F$9:F$229,Nutrients!$I$8:$I$228)+(IF($A$7=Nutrients!$B$8,Nutrients!$I$8,Nutrients!$I$9)*F$7)+(((IF($A$8=Nutrients!$B$79,Nutrients!$I$79,(IF($A$8=Nutrients!$B$77,Nutrients!$I$77,Nutrients!$I$78)))))*F$8))/2000","v":13.625458454243304},{"$f":"(SUMPRODUCT(G$9:G$229,Nutrients!$I$8:$I$228)+(IF($A$7=Nutrients!$B$8,Nutrients!$I$8,Nutrients!$I$9)*G$7)+(((IF($A$8=Nutrients!$B$79,Nutrients!$I$79,(IF($A$8=Nutrients!$B$77,Nutrients!$I$77,Nutrients!$I$78)))))*G$8))/2000","v":13.010227616088669},null,{"$f":"(SUMPRODUCT(I$9:I$229,Nutrients!$I$8:$I$228)+(IF($A$7=Nutrients!$B$8,Nutrients!$I$8,Nutrients!$I$9)*I$7)+(((IF($A$8=Nutrients!$B$79,Nutrients!$I$79,(IF($A$8=Nutrients!$B$77,Nutrients!$I$77,Nutrients!$I$78)))))*I$8))/2000","v":19.597200691982383},{"$f":"(SUMPRODUCT(J$9:J$229,Nutrients!$I$8:$I$228)+(IF($A$7=Nutrients!$B$8,Nutrients!$I$8,Nutrients!$I$9)*J$7)+(((IF($A$8=Nutrients!$B$79,Nutrients!$I$79,(IF($A$8=Nutrients!$B$77,Nutrients!$I$77,Nutrients!$I$78)))))*J$8))/2000","v":17.91982022954446},{"$f":"(SUMPRODUCT(K$9:K$229,Nutrients!$I$8:$I$228)+(IF($A$7=Nutrients!$B$8,Nutrients!$I$8,Nutrients!$I$9)*K$7)+(((IF($A$8=Nutrients!$B$79,Nutrients!$I$79,(IF($A$8=Nutrients!$B$77,Nutrients!$I$77,Nutrients!$I$78)))))*K$8))/2000","v":16.500157776344498},{"$f":"(SUMPRODUCT(L$9:L$229,Nutrients!$I$8:$I$228)+(IF($A$7=Nutrients!$B$8,Nutrients!$I$8,Nutrients!$I$9)*L$7)+(((IF($A$8=Nutrients!$B$79,Nutrients!$I$79,(IF($A$8=Nutrients!$B$77,Nutrients!$I$77,Nutrients!$I$78)))))*L$8))/2000","v":15.144945030324584},{"$f":"(SUMPRODUCT(M$9:M$229,Nutrients!$I$8:$I$228)+(IF($A$7=Nutrients!$B$8,Nutrients!$I$8,Nutrients!$I$9)*M$7)+(((IF($A$8=Nutrients!$B$79,Nutrients!$I$79,(IF($A$8=Nutrients!$B$77,Nutrients!$I$77,Nutrients!$I$78)))))*M$8))/2000","v":14.027087351494538},{"$f":"(SUMPRODUCT(N$9:N$229,Nutrients!$I$8:$I$228)+(IF($A$7=Nutrients!$B$8,Nutrients!$I$8,Nutrients!$I$9)*N$7)+(((IF($A$8=Nutrients!$B$79,Nutrients!$I$79,(IF($A$8=Nutrients!$B$77,Nutrients!$I$77,Nutrients!$I$78)))))*N$8))/2000","v":13.415997538514945},null,{"$f":"(SUMPRODUCT(P$9:P$229,Nutrients!$I$8:$I$228)+(IF($A$7=Nutrients!$B$8,Nutrients!$I$8,Nutrients!$I$9)*P$7)+(((IF($A$8=Nutrients!$B$79,Nutrients!$I$79,(IF($A$8=Nutrients!$B$77,Nutrients!$I$77,Nutrients!$I$78)))))*P$8))/2000","v":19.999653859391298},{"$f":"(SUMPRODUCT(Q$9:Q$229,Nutrients!$I$8:$I$228)+(IF($A$7=Nutrients!$B$8,Nutrients!$I$8,Nutrients!$I$9)*Q$7)+(((IF($A$8=Nutrients!$B$79,Nutrients!$I$79,(IF($A$8=Nutrients!$B$77,Nutrients!$I$77,Nutrients!$I$78)))))*Q$8))/2000","v":18.324272695276957},{"$f":"(SUMPRODUCT(R$9:R$229,Nutrients!$I$8:$I$228)+(IF($A$7=Nutrients!$B$8,Nutrients!$I$8,Nutrients!$I$9)*R$7)+(((IF($A$8=Nutrients!$B$79,Nutrients!$I$79,(IF($A$8=Nutrients!$B$77,Nutrients!$I$77,Nutrients!$I$78)))))*R$8))/2000","v":16.906471991245891},{"$f":"(SUMPRODUCT(S$9:S$229,Nutrients!$I$8:$I$228)+(IF($A$7=Nutrients!$B$8,Nutrients!$I$8,Nutrients!$I$9)*S$7)+(((IF($A$8=Nutrients!$B$79,Nutrients!$I$79,(IF($A$8=Nutrients!$B$77,Nutrients!$I$77,Nutrients!$I$78)))))*S$8))/2000","v":15.551940682114102},{"$f":"(SUMPRODUCT(T$9:T$229,Nutrients!$I$8:$I$228)+(IF($A$7=Nutrients!$B$8,Nutrients!$I$8,Nutrients!$I$9)*T$7)+(((IF($A$8=Nutrients!$B$79,Nutrients!$I$79,(IF($A$8=Nutrients!$B$77,Nutrients!$I$77,Nutrients!$I$78)))))*T$8))/2000","v":14.431500862311957},{"$f":"(SUMPRODUCT(U$9:U$229,Nutrients!$I$8:$I$228)+(IF($A$7=Nutrients!$B$8,Nutrients!$I$8,Nutrients!$I$9)*U$7)+(((IF($A$8=Nutrients!$B$79,Nutrients!$I$79,(IF($A$8=Nutrients!$B$77,Nutrients!$I$77,Nutrients!$I$78)))))*U$8))/2000","v":13.820160168463124},null,{"$f":"(SUMPRODUCT(W$9:W$229,Nutrients!$I$8:$I$228)+(IF($A$7=Nutrients!$B$8,Nutrients!$I$8,Nutrients!$I$9)*W$7)+(((IF($A$8=Nutrients!$B$79,Nutrients!$I$79,(IF($A$8=Nutrients!$B$77,Nutrients!$I$77,Nutrients!$I$78)))))*W$8))/2000","v":20.402419540662873},{"$f":"(SUMPRODUCT(X$9:X$229,Nutrients!$I$8:$I$228)+(IF($A$7=Nutrients!$B$8,Nutrients!$I$8,Nutrients!$I$9)*X$7)+(((IF($A$8=Nutrients!$B$79,Nutrients!$I$79,(IF($A$8=Nutrients!$B$77,Nutrients!$I$77,Nutrients!$I$78)))))*X$8))/2000","v":18.730319744665589},{"$f":"(SUMPRODUCT(Y$9:Y$229,Nutrients!$I$8:$I$228)+(IF($A$7=Nutrients!$B$8,Nutrients!$I$8,Nutrients!$I$9)*Y$7)+(((IF($A$8=Nutrients!$B$79,Nutrients!$I$79,(IF($A$8=Nutrients!$B$77,Nutrients!$I$77,Nutrients!$I$78)))))*Y$8))/2000","v":17.313587592387552},{"$f":"(SUMPRODUCT(Z$9:Z$229,Nutrients!$I$8:$I$228)+(IF($A$7=Nutrients!$B$8,Nutrients!$I$8,Nutrients!$I$9)*Z$7)+(((IF($A$8=Nutrients!$B$79,Nutrients!$I$79,(IF($A$8=Nutrients!$B$77,Nutrients!$I$77,Nutrients!$I$78)))))*Z$8))/2000","v":15.962855149684314},{"$f":"(SUMPRODUCT(AA$9:AA$229,Nutrients!$I$8:$I$228)+(IF($A$7=Nutrients!$B$8,Nutrients!$I$8,Nutrients!$I$9)*AA$7)+(((IF($A$8=Nutrients!$B$79,Nutrients!$I$79,(IF($A$8=Nutrients!$B$77,Nutrients!$I$77,Nutrients!$I$78)))))*AA$8))/2000","v":14.847906712193907},{"$f":"(SUMPRODUCT(AB$9:AB$229,Nutrients!$I$8:$I$228)+(IF($A$7=Nutrients!$B$8,Nutrients!$I$8,Nutrients!$I$9)*AB$7)+(((IF($A$8=Nutrients!$B$79,Nutrients!$I$79,(IF($A$8=Nutrients!$B$77,Nutrients!$I$77,Nutrients!$I$78)))))*AB$8))/2000","v":14.234573570975998},null,{"$f":"(SUMPRODUCT(AD$9:AD$229,Nutrients!$I$8:$I$228)+(IF($A$7=Nutrients!$B$8,Nutrients!$I$8,Nutrients!$I$9)*AD$7)+(((IF($A$8=Nutrients!$B$79,Nutrients!$I$79,(IF($A$8=Nutrients!$B$77,Nutrients!$I$77,Nutrients!$I$78)))))*AD$8))/2000","v":20.808490624552984},{"$f":"(SUMPRODUCT(AE$9:AE$229,Nutrients!$I$8:$I$228)+(IF($A$7=Nutrients!$B$8,Nutrients!$I$8,Nutrients!$I$9)*AE$7)+(((IF($A$8=Nutrients!$B$79,Nutrients!$I$79,(IF($A$8=Nutrients!$B$77,Nutrients!$I$77,Nutrients!$I$78)))))*AE$8))/2000","v":19.135812042172866},{"$f":"(SUMPRODUCT(AF$9:AF$229,Nutrients!$I$8:$I$228)+(IF($A$7=Nutrients!$B$8,Nutrients!$I$8,Nutrients!$I$9)*AF$7)+(((IF($A$8=Nutrients!$B$79,Nutrients!$I$79,(IF($A$8=Nutrients!$B$77,Nutrients!$I$77,Nutrients!$I$78)))))*AF$8))/2000","v":17.724506672919606},{"$f":"(SUMPRODUCT(AG$9:AG$229,Nutrients!$I$8:$I$228)+(IF($A$7=Nutrients!$B$8,Nutrients!$I$8,Nutrients!$I$9)*AG$7)+(((IF($A$8=Nutrients!$B$79,Nutrients!$I$79,(IF($A$8=Nutrients!$B$77,Nutrients!$I$77,Nutrients!$I$78)))))*AG$8))/2000","v":16.375576310959936},{"$f":"(SUMPRODUCT(AH$9:AH$229,Nutrients!$I$8:$I$228)+(IF($A$7=Nutrients!$B$8,Nutrients!$I$8,Nutrients!$I$9)*AH$7)+(((IF($A$8=Nutrients!$B$79,Nutrients!$I$79,(IF($A$8=Nutrients!$B$77,Nutrients!$I$77,Nutrients!$I$78)))))*AH$8))/2000","v":15.257999994499716},{"$f":"(SUMPRODUCT(AI$9:AI$229,Nutrients!$I$8:$I$228)+(IF($A$7=Nutrients!$B$8,Nutrients!$I$8,Nutrients!$I$9)*AI$7)+(((IF($A$8=Nutrients!$B$79,Nutrients!$I$79,(IF($A$8=Nutrients!$B$77,Nutrients!$I$77,Nutrients!$I$78)))))*AI$8))/2000","v":14.642905586361689},null,{"$f":"(SUMPRODUCT(AK$9:AK$229,Nutrients!$I$8:$I$228)+(IF($A$7=Nutrients!$B$8,Nutrients!$I$8,Nutrients!$I$9)*AK$7)+(((IF($A$8=Nutrients!$B$79,Nutrients!$I$79,(IF($A$8=Nutrients!$B$77,Nutrients!$I$77,Nutrients!$I$78)))))*AK$8))/2000","v":21.213602200766534},{"$f":"(SUMPRODUCT(AL$9:AL$229,Nutrients!$I$8:$I$228)+(IF($A$7=Nutrients!$B$8,Nutrients!$I$8,Nutrients!$I$9)*AL$7)+(((IF($A$8=Nutrients!$B$79,Nutrients!$I$79,(IF($A$8=Nutrients!$B$77,Nutrients!$I$77,Nutrients!$I$78)))))*AL$8))/2000","v":19.542175366065642},{"$f":"(SUMPRODUCT(AM$9:AM$229,Nutrients!$I$8:$I$228)+(IF($A$7=Nutrients!$B$8,Nutrients!$I$8,Nutrients!$I$9)*AM$7)+(((IF($A$8=Nutrients!$B$79,Nutrients!$I$79,(IF($A$8=Nutrients!$B$77,Nutrients!$I$77,Nutrients!$I$78)))))*AM$8))/2000","v":18.131702332147047},{"$f":"(SUMPRODUCT(AN$9:AN$229,Nutrients!$I$8:$I$228)+(IF($A$7=Nutrients!$B$8,Nutrients!$I$8,Nutrients!$I$9)*AN$7)+(((IF($A$8=Nutrients!$B$79,Nutrients!$I$79,(IF($A$8=Nutrients!$B$77,Nutrients!$I$77,Nutrients!$I$78)))))*AN$8))/2000","v":16.78660005509877},{"$f":"(SUMPRODUCT(AO$9:AO$229,Nutrients!$I$8:$I$228)+(IF($A$7=Nutrients!$B$8,Nutrients!$I$8,Nutrients!$I$9)*AO$7)+(((IF($A$8=Nutrients!$B$79,Nutrients!$I$79,(IF($A$8=Nutrients!$B$77,Nutrients!$I$77,Nutrients!$I$78)))))*AO$8))/2000","v":15.666366095112382},{"$f":"(SUMPRODUCT(AP$9:AP$229,Nutrients!$I$8:$I$228)+(IF($A$7=Nutrients!$B$8,Nutrients!$I$8,Nutrients!$I$9)*AP$7)+(((IF($A$8=Nutrients!$B$79,Nutrients!$I$79,(IF($A$8=Nutrients!$B$77,Nutrients!$I$77,Nutrients!$I$78)))))*AP$8))/2000","v":15.051225419310454},null,{"$f":"(SUMPRODUCT(AR$9:AR$229,Nutrients!$I$8:$I$228)+(IF($A$7=Nutrients!$B$8,Nutrients!$I$8,Nutrients!$I$9)*AR$7)+(((IF($A$8=Nutrients!$B$79,Nutrients!$I$79,(IF($A$8=Nutrients!$B$77,Nutrients!$I$77,Nutrients!$I$78)))))*AR$8))/2000","v":21.619037615532317},{"$f":"(SUMPRODUCT(AS$9:AS$229,Nutrients!$I$8:$I$228)+(IF($A$7=Nutrients!$B$8,Nutrients!$I$8,Nutrients!$I$9)*AS$7)+(((IF($A$8=Nutrients!$B$79,Nutrients!$I$79,(IF($A$8=Nutrients!$B$77,Nutrients!$I$77,Nutrients!$I$78)))))*AS$8))/2000","v":19.951558432202741},{"$f":"(SUMPRODUCT(AT$9:AT$229,Nutrients!$I$8:$I$228)+(IF($A$7=Nutrients!$B$8,Nutrients!$I$8,Nutrients!$I$9)*AT$7)+(((IF($A$8=Nutrients!$B$79,Nutrients!$I$79,(IF($A$8=Nutrients!$B$77,Nutrients!$I$77,Nutrients!$I$78)))))*AT$8))/2000","v":18.54756480616566},{"$f":"(SUMPRODUCT(AU$9:AU$229,Nutrients!$I$8:$I$228)+(IF($A$7=Nutrients!$B$8,Nutrients!$I$8,Nutrients!$I$9)*AU$7)+(((IF($A$8=Nutrients!$B$79,Nutrients!$I$79,(IF($A$8=Nutrients!$B$77,Nutrients!$I$77,Nutrients!$I$78)))))*AU$8))/2000","v":17.194976017080162},{"$f":"(SUMPRODUCT(AV$9:AV$229,Nutrients!$I$8:$I$228)+(IF($A$7=Nutrients!$B$8,Nutrients!$I$8,Nutrients!$I$9)*AV$7)+(((IF($A$8=Nutrients!$B$79,Nutrients!$I$79,(IF($A$8=Nutrients!$B$77,Nutrients!$I$77,Nutrients!$I$78)))))*AV$8))/2000","v":16.074730982909433},{"$f":"(SUMPRODUCT(AW$9:AW$229,Nutrients!$I$8:$I$228)+(IF($A$7=Nutrients!$B$8,Nutrients!$I$8,Nutrients!$I$9)*AW$7)+(((IF($A$8=Nutrients!$B$79,Nutrients!$I$79,(IF($A$8=Nutrients!$B$77,Nutrients!$I$77,Nutrients!$I$78)))))*AW$8))/2000","v":15.459544651735287}]
["Ca, %",{"$f":"(SUMPRODUCT(B$9:B$229,Nutrients!$BS$8:$BS$228)+(IF($A$7=Nutrients!$B$8,Nutrients!$BS$8,Nutrients!$BS$9)*B$7)+(((IF($A$8=Nutrients!$B$79,Nutrients!$BS$79,(IF($A$8=Nutrients!$B$77,Nutrients!$BS$77,Nutrients!$BS$78)))))*B$8))/2000","v":0.69579038170108098},{"$f":"(SUMPRODUCT(C$9:C$229,Nutrients!$BS$8:$BS$228)+(IF($A$7=Nutrients!$B$8,Nutrients!$BS$8,Nutrients!$BS$9)*C$7)+(((IF($A$8=Nutrients!$B$79,Nutrients!$BS$79,(IF($A$8=Nutrients!$B$77,Nutrients!$BS$77,Nutrients!$BS$78)))))*C$8))/2000","v":0.62597225623792574},{"$f":"(SUMPRODUCT(D$9:D$229,Nutrients!$BS$8:$BS$228)+(IF($A$7=Nutrients!$B$8,Nutrients!$BS$8,Nutrients!$BS$9)*D$7)+(((IF($A$8=Nutrients!$B$79,Nutrients!$BS$79,(IF($A$8=Nutrients!$B$77,Nutrients!$BS$77,Nutrients!$BS$78)))))*D$8))/2000","v":0.57389505815699282},{"$f":"(SUMPRODUCT(E$9:E$229,Nutrients!$BS$8:$BS$228)+(IF($A$7=Nutrients!$B$8,Nutrients!$BS$8,Nutrients!$BS$9)*E$7)+(((IF($A$8=Nutrients!$B$79,Nutrients!$BS$79,(IF($A$8=Nutrients!$B$77,Nutrients!$BS$77,Nutrients!$BS$78)))))*E$8))/2000","v":0.52055031100225413},{"$f":"(SUMPRODUCT(F$9:F$229,Nutrients!$BS$8:$BS$228)+(IF($A$7=Nutrients!$B$8,Nutrients!$BS$8,Nutrients!$BS$9)*F$7)+(((IF($A$8=Nutrients!$B$79,Nutrients!$BS$79,(IF($A$8=Nutrients!$B$77,Nutrients!$BS$77,Nutrients!$BS$78)))))*F$8))/2000","v":0.47698896958793735},{"$f":"(SUMPRODUCT(G$9:G$229,Nutrients!$BS$8:$BS$228)+(IF($A$7=Nutrients!$B$8,Nutrients!$BS$8,Nutrients!$BS$9)*G$7)+(((IF($A$8=Nutrients!$B$79,Nutrients!$BS$79,(IF($A$8=Nutrients!$B$77,Nutrients!$BS$77,Nutrients!$BS$78)))))*G$8))/2000","v":0.4600223649748173},null,{"$f":"(SUMPRODUCT(I$9:I$229,Nutrients!$BS$8:$BS$228)+(IF($A$7=Nutrients!$B$8,Nutrients!$BS$8,Nutrients!$BS$9)*I$7)+(((IF($A$8=Nutrients!$B$79,Nutrients!$BS$79,(IF($A$8=Nutrients!$B$77,Nutrients!$BS$77,Nutrients!$BS$78)))))*I$8))/2000","v":0.69634897721404698},{"$f":"(SUMPRODUCT(J$9:J$229,Nutrients!$BS$8:$BS$228)+(IF($A$7=Nutrients!$B$8,Nutrients!$BS$8,Nutrients!$BS$9)*J$7)+(((IF($A$8=Nutrients!$B$79,Nutrients!$BS$79,(IF($A$8=Nutrients!$B$77,Nutrients!$BS$77,Nutrients!$BS$78)))))*J$8))/2000","v":0.62792423751488491},{"$f":"(SUMPRODUCT(K$9:K$229,Nutrients!$BS$8:$BS$228)+(IF($A$7=Nutrients!$B$8,Nutrients!$BS$8,Nutrients!$BS$9)*K$7)+(((IF($A$8=Nutrients!$B$79,Nutrients!$BS$79,(IF($A$8=Nutrients!$B$77,Nutrients!$BS$77,Nutrients!$BS$78)))))*K$8))/2000","v":0.57371655643401354},{"$f":"(SUMPRODUCT(L$9:L$229,Nutrients!$BS$8:$BS$228)+(IF($A$7=Nutrients!$B$8,Nutrients!$BS$8,Nutrients!$BS$9)*L$7)+(((IF($A$8=Nutrients!$B$79,Nutrients!$BS$79,(IF($A$8=Nutrients!$B$77,Nutrients!$BS$77,Nutrients!$BS$78)))))*L$8))/2000","v":0.52145320094568182},{"$f":"(SUMPRODUCT(M$9:M$229,Nutrients!$BS$8:$BS$228)+(IF($A$7=Nutrients!$B$8,Nutrients!$BS$8,Nutrients!$BS$9)*M$7)+(((IF($A$8=Nutrients!$B$79,Nutrients!$BS$79,(IF($A$8=Nutrients!$B$77,Nutrients!$BS$77,Nutrients!$BS$78)))))*M$8))/2000","v":0.47833729222550325},{"$f":"(SUMPRODUCT(N$9:N$229,Nutrients!$BS$8:$BS$228)+(IF($A$7=Nutrients!$B$8,Nutrients!$BS$8,Nutrients!$BS$9)*N$7)+(((IF($A$8=Nutrients!$B$79,Nutrients!$BS$79,(IF($A$8=Nutrients!$B$77,Nutrients!$BS$77,Nutrients!$BS$78)))))*N$8))/2000","v":0.46087605637842122},null,{"$f":"(SUMPRODUCT(P$9:P$229,Nutrients!$BS$8:$BS$228)+(IF($A$7=Nutrients!$B$8,Nutrients!$BS$8,Nutrients!$BS$9)*P$7)+(((IF($A$8=Nutrients!$B$79,Nutrients!$BS$79,(IF($A$8=Nutrients!$B$77,Nutrients!$BS$77,Nutrients!$BS$78)))))*P$8))/2000","v":0.6972111216826764},{"$f":"(SUMPRODUCT(Q$9:Q$229,Nutrients!$BS$8:$BS$228)+(IF($A$7=Nutrients!$B$8,Nutrients!$BS$8,Nutrients!$BS$9)*Q$7)+(((IF($A$8=Nutrients!$B$79,Nutrients!$BS$79,(IF($A$8=Nutrients!$B$77,Nutrients!$BS$77,Nutrients!$BS$78)))))*Q$8))/2000","v":0.62899772059959624},{"$f":"(SUMPRODUCT(R$9:R$229,Nutrients!$BS$8:$BS$228)+(IF($A$7=Nutrients!$B$8,Nutrients!$BS$8,Nutrients!$BS$9)*R$7)+(((IF($A$8=Nutrients!$B$79,Nutrients!$BS$79,(IF($A$8=Nutrients!$B$77,Nutrients!$BS$77,Nutrients!$BS$78)))))*R$8))/2000","v":0.57450755415619414},{"$f":"(SUMPRODUCT(S$9:S$229,Nutrients!$BS$8:$BS$228)+(IF($A$7=Nutrients!$B$8,Nutrients!$BS$8,Nutrients!$BS$9)*S$7)+(((IF($A$8=Nutrients!$B$79,Nutrients!$BS$79,(IF($A$8=Nutrients!$B$77,Nutrients!$BS$77,Nutrients!$BS$78)))))*S$8))/2000","v":0.52224416028408382},{"$f":"(SUMPRODUCT(T$9:T$229,Nutrients!$BS$8:$BS$228)+(IF($A$7=Nutrients!$B$8,Nutrients!$BS$8,Nutrients!$BS$9)*T$7)+(((IF($A$8=Nutrients!$B$79,Nutrients!$BS$79,(IF($A$8=Nutrients!$B$77,Nutrients!$BS$77,Nutrients!$BS$78)))))*T$8))/2000","v":0.47912816447510143},{"$f":"(SUMPRODUCT(U$9:U$229,Nutrients!$BS$8:$BS$228)+(IF($A$7=Nutrients!$B$8,Nutrients!$BS$8,Nutrients!$BS$9)*U$7)+(((IF($A$8=Nutrients!$B$79,Nutrients!$BS$79,(IF($A$8=Nutrients!$B$77,Nutrients!$BS$77,Nutrients!$BS$78)))))*U$8))/2000","v":0.46166696564037923},null,{"$f":"(SUMPRODUCT(W$9:W$229,Nutrients!$BS$8:$BS$228)+(IF($A$7=Nutrients!$B$8,Nutrients!$BS$8,Nutrients!$BS$9)*W$7)+(((IF($A$8=Nutrients!$B$79,Nutrients!$BS$79,(IF($A$8=Nutrients!$B$77,Nutrients!$BS$77,Nutrients!$BS$78)))))*W$8))/2000","v":0.69710172661048675},{"$f":"(SUMPRODUCT(X$9:X$229,Nutrients!$BS$8:$BS$228)+(IF($A$7=Nutrients!$B$8,Nutrients!$BS$8,Nutrients!$BS$9)*X$7)+(((IF($A$8=Nutrients!$B$79,Nutrients!$BS$79,(IF($A$8=Nutrients!$B$77,Nutrients!$BS$77,Nutrients!$BS$78)))))*X$8))/2000","v":0.62888854259516203},{"$f":"(SUMPRODUCT(Y$9:Y$229,Nutrients!$BS$8:$BS$228)+(IF($A$7=Nutrients!$B$8,Nutrients!$BS$8,Nutrients!$BS$9)*Y$7)+(((IF($A$8=Nutrients!$B$79,Nutrients!$BS$79,(IF($A$8=Nutrients!$B$77,Nutrients!$BS$77,Nutrients!$BS$78)))))*Y$8))/2000","v":0.57439833835055853},{"$f":"(SUMPRODUCT(Z$9:Z$229,Nutrients!$BS$8:$BS$228)+(IF($A$7=Nutrients!$B$8,Nutrients!$BS$8,Nutrients!$BS$9)*Z$7)+(((IF($A$8=Nutrients!$B$79,Nutrients!$BS$79,(IF($A$8=Nutrients!$B$77,Nutrients!$BS$77,Nutrients!$BS$78)))))*Z$8))/2000","v":0.52213518912725132},{"$f":"(SUMPRODUCT(AA$9:AA$229,Nutrients!$BS$8:$BS$228)+(IF($A$7=Nutrients!$B$8,Nutrients!$BS$8,Nutrients!$BS$9)*AA$7)+(((IF($A$8=Nutrients!$B$79,Nutrients!$BS$79,(IF($A$8=Nutrients!$B$77,Nutrients!$BS$77,Nutrients!$BS$78)))))*AA$8))/2000","v":0.47901943852596907},{"$f":"(SUMPRODUCT(AB$9:AB$229,Nutrients!$BS$8:$BS$228)+(IF($A$7=Nutrients!$B$8,Nutrients!$BS$8,Nutrients!$BS$9)*AB$7)+(((IF($A$8=Nutrients!$B$79,Nutrients!$BS$79,(IF($A$8=Nutrients!$B$77,Nutrients!$BS$77,Nutrients!$BS$78)))))*AB$8))/2000","v":0.46745183328197026},null,{"$f":"(SUMPRODUCT(AD$9:AD$229,Nutrients!$BS$8:$BS$228)+(IF($A$7=Nutrients!$B$8,Nutrients!$BS$8,Nutrients!$BS$9)*AD$7)+(((IF($A$8=Nutrients!$B$79,Nutrients!$BS$79,(IF($A$8=Nutrients!$B$77,Nutrients!$BS$77,Nutrients!$BS$78)))))*AD$8))/2000","v":0.69699253799641248},{"$f":"(SUMPRODUCT(AE$9:AE$229,Nutrients!$BS$8:$BS$228)+(IF($A$7=Nutrients!$B$8,Nutrients!$BS$8,Nutrients!$BS$9)*AE$7)+(((IF($A$8=Nutrients!$B$79,Nutrients!$BS$79,(IF($A$8=Nutrients!$B$77,Nutrients!$BS$77,Nutrients!$BS$78)))))*AE$8))/2000","v":0.62877926798123462},{"$f":"(SUMPRODUCT(AF$9:AF$229,Nutrients!$BS$8:$BS$228)+(IF($A$7=Nutrients!$B$8,Nutrients!$BS$8,Nutrients!$BS$9)*AF$7)+(((IF($A$8=Nutrients!$B$79,Nutrients!$BS$79,(IF($A$8=Nutrients!$B$77,Nutrients!$BS$77,Nutrients!$BS$78)))))*AF$8))/2000","v":0.57428936419827914},{"$f":"(SUMPRODUCT(AG$9:AG$229,Nutrients!$BS$8:$BS$228)+(IF($A$7=Nutrients!$B$8,Nutrients!$BS$8,Nutrients!$BS$9)*AG$7)+(((IF($A$8=Nutrients!$B$79,Nutrients!$BS$79,(IF($A$8=Nutrients!$B$77,Nutrients!$BS$77,Nutrients!$BS$78)))))*AG$8))/2000","v":0.5225523160689951},{"$f":"(SUMPRODUCT(AH$9:AH$229,Nutrients!$BS$8:$BS$228)+(IF($A$7=Nutrients!$B$8,Nutrients!$BS$8,Nutrients!$BS$9)*AH$7)+(((IF($A$8=Nutrients!$B$79,Nutrients!$BS$79,(IF($A$8=Nutrients!$B$77,Nutrients!$BS$77,Nutrients!$BS$78)))))*AH$8))/2000","v":0.49705377625563518},{"$f":"(SUMPRODUCT(AI$9:AI$229,Nutrients!$BS$8:$BS$228)+(IF($A$7=Nutrients!$B$8,Nutrients!$BS$8,Nutrients!$BS$9)*AI$7)+(((IF($A$8=Nutrients!$B$79,Nutrients!$BS$79,(IF($A$8=Nutrients!$B$77,Nutrients!$BS$77,Nutrients!$BS$78)))))*AI$8))/2000","v":0.49011464773630936},null,{"$f":"(SUMPRODUCT(AK$9:AK$229,Nutrients!$BS$8:$BS$228)+(IF($A$7=Nutrients!$B$8,Nutrients!$BS$8,Nutrients!$BS$9)*AK$7)+(((IF($A$8=Nutrients!$B$79,Nutrients!$BS$79,(IF($A$8=Nutrients!$B$77,Nutrients!$BS$77,Nutrients!$BS$78)))))*AK$8))/2000","v":0.69778349701753895},{"$f":"(SUMPRODUCT(AL$9:AL$229,Nutrients!$BS$8:$BS$228)+(IF($A$7=Nutrients!$B$8,Nutrients!$BS$8,Nutrients!$BS$9)*AL$7)+(((IF($A$8=Nutrients!$B$79,Nutrients!$BS$79,(IF($A$8=Nutrients!$B$77,Nutrients!$BS$77,Nutrients!$BS$78)))))*AL$8))/2000","v":0.62957029636777295},{"$f":"(SUMPRODUCT(AM$9:AM$229,Nutrients!$BS$8:$BS$228)+(IF($A$7=Nutrients!$B$8,Nutrients!$BS$8,Nutrients!$BS$9)*AM$7)+(((IF($A$8=Nutrients!$B$79,Nutrients!$BS$79,(IF($A$8=Nutrients!$B$77,Nutrients!$BS$77,Nutrients!$BS$78)))))*AM$8))/2000","v":0.57508029105871128},{"$f":"(SUMPRODUCT(AN$9:AN$229,Nutrients!$BS$8:$BS$228)+(IF($A$7=Nutrients!$B$8,Nutrients!$BS$8,Nutrients!$BS$9)*AN$7)+(((IF($A$8=Nutrients!$B$79,Nutrients!$BS$79,(IF($A$8=Nutrients!$B$77,Nutrients!$BS$77,Nutrients!$BS$78)))))*AN$8))/2000","v":0.53816385749876772},{"$f":"(SUMPRODUCT(AO$9:AO$229,Nutrients!$BS$8:$BS$228)+(IF($A$7=Nutrients!$B$8,Nutrients!$BS$8,Nutrients!$BS$9)*AO$7)+(((IF($A$8=Nutrients!$B$79,Nutrients!$BS$79,(IF($A$8=Nutrients!$B$77,Nutrients!$BS$77,Nutrients!$BS$78)))))*AO$8))/2000","v":0.5196994497723062},{"$f":"(SUMPRODUCT(AP$9:AP$229,Nutrients!$BS$8:$BS$228)+(IF($A$7=Nutrients!$B$8,Nutrients!$BS$8,Nutrients!$BS$9)*AP$7)+(((IF($A$8=Nutrients!$B$79,Nutrients!$BS$79,(IF($A$8=Nutrients!$B$77,Nutrients!$BS$77,Nutrients!$BS$78)))))*AP$8))/2000","v":0.51277905058852202},null,{"$f":"(SUMPRODUCT(AR$9:AR$229,Nutrients!$BS$8:$BS$228)+(IF($A$7=Nutrients!$B$8,Nutrients!$BS$8,Nutrients!$BS$9)*AR$7)+(((IF($A$8=Nutrients!$B$79,Nutrients!$BS$79,(IF($A$8=Nutrients!$B$77,Nutrients!$BS$77,Nutrients!$BS$78)))))*AR$8))/2000","v":0.69857472974747714},{"$f":"(SUMPRODUCT(AS$9:AS$229,Nutrients!$BS$8:$BS$228)+(IF($A$7=Nutrients!$B$8,Nutrients!$BS$8,Nutrients!$BS$9)*AS$7)+(((IF($A$8=Nutrients!$B$79,Nutrients!$BS$79,(IF($A$8=Nutrients!$B$77,Nutrients!$BS$77,Nutrients!$BS$78)))))*AS$8))/2000","v":0.63036136579034774},{"$f":"(SUMPRODUCT(AT$9:AT$229,Nutrients!$BS$8:$BS$228)+(IF($A$7=Nutrients!$B$8,Nutrients!$BS$8,Nutrients!$BS$9)*AT$7)+(((IF($A$8=Nutrients!$B$79,Nutrients!$BS$79,(IF($A$8=Nutrients!$B$77,Nutrients!$BS$77,Nutrients!$BS$78)))))*AT$8))/2000","v":0.57698569304440606},{"$f":"(SUMPRODUCT(AU$9:AU$229,Nutrients!$BS$8:$BS$228)+(IF($A$7=Nutrients!$B$8,Nutrients!$BS$8,Nutrients!$BS$9)*AU$7)+(((IF($A$8=Nutrients!$B$79,Nutrients!$BS$79,(IF($A$8=Nutrients!$B$77,Nutrients!$BS$77,Nutrients!$BS$78)))))*AU$8))/2000","v":0.56102827817607681},{"$f":"(SUMPRODUCT(AV$9:AV$229,Nutrients!$BS$8:$BS$228)+(IF($A$7=Nutrients!$B$8,Nutrients!$BS$8,Nutrients!$BS$9)*AV$7)+(((IF($A$8=Nutrients!$B$79,Nutrients!$BS$79,(IF($A$8=Nutrients!$B$77,Nutrients!$BS$77,Nutrients!$BS$78)))))*AV$8))/2000","v":0.54234664128580878},{"$f":"(SUMPRODUCT(AW$9:AW$229,Nutrients!$BS$8:$BS$228)+(IF($A$7=Nutrients!$B$8,Nutrients!$BS$8,Nutrients!$BS$9)*AW$7)+(((IF($A$8=Nutrients!$B$79,Nutrients!$BS$79,(IF($A$8=Nutrients!$B$77,Nutrients!$BS$77,Nutrients!$BS$78)))))*AW$8))/2000","v":0.53544466093413645}]
["P, %",{"$f":"(SUMPRODUCT(B$9:B$229,Nutrients!$BX$8:$BX$228)+(IF($A$7=Nutrients!$B$8,Nutrients!$BX$8,Nutrients!$BX$9)*B$7)+(((IF($A$8=Nutrients!$B$79,Nutrients!$BX$79,(IF($A$8=Nutrients!$B$77,Nutrients!$BX$77,Nutrients!$BX$78)))))*B$8))/2000","v":0.52698829927184954},{"$f":"(SUMPRODUCT(C$9:C$229,Nutrients!$BX$8:$BX$228)+(IF($A$7=Nutrients!$B$8,Nutrients!$BX$8,Nutrients!$BX$9)*C$7)+(((IF($A$8=Nutrients!$B$79,Nutrients!$BX$79,(IF($A$8=Nutrients!$B$77,Nutrients!$BX$77,Nutrients!$BX$78)))))*C$8))/2000","v":0.47554766489495992},{"$f":"(SUMPRODUCT(D$9:D$229,Nutrients!$BX$8:$BX$228)+(IF($A$7=Nutrients!$B$8,Nutrients!$BX$8,Nutrients!$BX$9)*D$7)+(((IF($A$8=Nutrients!$B$79,Nutrients!$BX$79,(IF($A$8=Nutrients!$B$77,Nutrients!$BX$77,Nutrients!$BX$78)))))*D$8))/2000","v":0.42608857846774251},{"$f":"(SUMPRODUCT(E$9:E$229,Nutrients!$BX$8:$BX$228)+(IF($A$7=Nutrients!$B$8,Nutrients!$BX$8,Nutrients!$BX$9)*E$7)+(((IF($A$8=Nutrients!$B$79,Nutrients!$BX$79,(IF($A$8=Nutrients!$B$77,Nutrients!$BX$77,Nutrients!$BX$78)))))*E$8))/2000","v":0.38726313311804977},{"$f":"(SUMPRODUCT(F$9:F$229,Nutrients!$BX$8:$BX$228)+(IF($A$7=Nutrients!$B$8,Nutrients!$BX$8,Nutrients!$BX$9)*F$7)+(((IF($A$8=Nutrients!$B$79,Nutrients!$BX$79,(IF($A$8=Nutrients!$B$77,Nutrients!$BX$77,Nutrients!$BX$78)))))*F$8))/2000","v":0.35891430613336472},{"$f":"(SUMPRODUCT(G$9:G$229,Nutrients!$BX$8:$BX$228)+(IF($A$7=Nutrients!$B$8,Nutrients!$BX$8,Nutrients!$BX$9)*G$7)+(((IF($A$8=Nutrients!$B$79,Nutrients!$BX$79,(IF($A$8=Nutrients!$B$77,Nutrients!$BX$77,Nutrients!$BX$78)))))*G$8))/2000","v":0.34524547811925704},null,{"$f":"(SUMPRODUCT(I$9:I$229,Nutrients!$BX$8:$BX$228)+(IF($A$7=Nutrients!$B$8,Nutrients!$BX$8,Nutrients!$BX$9)*I$7)+(((IF($A$8=Nutrients!$B$79,Nutrients!$BX$79,(IF($A$8=Nutrients!$B$77,Nutrients!$BX$77,Nutrients!$BX$78)))))*I$8))/2000","v":0.52659651312303979},{"$f":"(SUMPRODUCT(J$9:J$229,Nutrients!$BX$8:$BX$228)+(IF($A$7=Nutrients!$B$8,Nutrients!$BX$8,Nutrients!$BX$9)*J$7)+(((IF($A$8=Nutrients!$B$79,Nutrients!$BX$79,(IF($A$8=Nutrients!$B$77,Nutrients!$BX$77,Nutrients!$BX$78)))))*J$8))/2000","v":0.4760716682477063},{"$f":"(SUMPRODUCT(K$9:K$229,Nutrients!$BX$8:$BX$228)+(IF($A$7=Nutrients!$B$8,Nutrients!$BX$8,Nutrients!$BX$9)*K$7)+(((IF($A$8=Nutrients!$B$79,Nutrients!$BX$79,(IF($A$8=Nutrients!$B$77,Nutrients!$BX$77,Nutrients!$BX$78)))))*K$8))/2000","v":0.42528646561837696},{"$f":"(SUMPRODUCT(L$9:L$229,Nutrients!$BX$8:$BX$228)+(IF($A$7=Nutrients!$B$8,Nutrients!$BX$8,Nutrients!$BX$9)*L$7)+(((IF($A$8=Nutrients!$B$79,Nutrients!$BX$79,(IF($A$8=Nutrients!$B$77,Nutrients!$BX$77,Nutrients!$BX$78)))))*L$8))/2000","v":0.38710757977950516},{"$f":"(SUMPRODUCT(M$9:M$229,Nutrients!$BX$8:$BX$228)+(IF($A$7=Nutrients!$B$8,Nutrients!$BX$8,Nutrients!$BX$9)*M$7)+(((IF($A$8=Nutrients!$B$79,Nutrients!$BX$79,(IF($A$8=Nutrients!$B$77,Nutrients!$BX$77,Nutrients!$BX$78)))))*M$8))/2000","v":0.35875890258402704},{"$f":"(SUMPRODUCT(N$9:N$229,Nutrients!$BX$8:$BX$228)+(IF($A$7=Nutrients!$B$8,Nutrients!$BX$8,Nutrients!$BX$9)*N$7)+(((IF($A$8=Nutrients!$B$79,Nutrients!$BX$79,(IF($A$8=Nutrients!$B$77,Nutrients!$BX$77,Nutrients!$BX$78)))))*N$8))/2000","v":0.34508302857552786},null,{"$f":"(SUMPRODUCT(P$9:P$229,Nutrients!$BX$8:$BX$228)+(IF($A$7=Nutrients!$B$8,Nutrients!$BX$8,Nutrients!$BX$9)*P$7)+(((IF($A$8=Nutrients!$B$79,Nutrients!$BX$79,(IF($A$8=Nutrients!$B$77,Nutrients!$BX$77,Nutrients!$BX$78)))))*P$8))/2000","v":0.5264507193600767},{"$f":"(SUMPRODUCT(Q$9:Q$229,Nutrients!$BX$8:$BX$228)+(IF($A$7=Nutrients!$B$8,Nutrients!$BX$8,Nutrients!$BX$9)*Q$7)+(((IF($A$8=Nutrients!$B$79,Nutrients!$BX$79,(IF($A$8=Nutrients!$B$77,Nutrients!$BX$77,Nutrients!$BX$78)))))*Q$8))/2000","v":0.47591707292187119},{"$f":"(SUMPRODUCT(R$9:R$229,Nutrients!$BX$8:$BX$228)+(IF($A$7=Nutrients!$B$8,Nutrients!$BX$8,Nutrients!$BX$9)*R$7)+(((IF($A$8=Nutrients!$B$79,Nutrients!$BX$79,(IF($A$8=Nutrients!$B$77,Nutrients!$BX$77,Nutrients!$BX$78)))))*R$8))/2000","v":0.42512255939822968},{"$f":"(SUMPRODUCT(S$9:S$229,Nutrients!$BX$8:$BX$228)+(IF($A$7=Nutrients!$B$8,Nutrients!$BX$8,Nutrients!$BX$9)*S$7)+(((IF($A$8=Nutrients!$B$79,Nutrients!$BX$79,(IF($A$8=Nutrients!$B$77,Nutrients!$BX$77,Nutrients!$BX$78)))))*S$8))/2000","v":0.38694621470137963},{"$f":"(SUMPRODUCT(T$9:T$229,Nutrients!$BX$8:$BX$228)+(IF($A$7=Nutrients!$B$8,Nutrients!$BX$8,Nutrients!$BX$9)*T$7)+(((IF($A$8=Nutrients!$B$79,Nutrients!$BX$79,(IF($A$8=Nutrients!$B$77,Nutrients!$BX$77,Nutrients!$BX$78)))))*T$8))/2000","v":0.35860330309298716},{"$f":"(SUMPRODUCT(U$9:U$229,Nutrients!$BX$8:$BX$228)+(IF($A$7=Nutrients!$B$8,Nutrients!$BX$8,Nutrients!$BX$9)*U$7)+(((IF($A$8=Nutrients!$B$79,Nutrients!$BX$79,(IF($A$8=Nutrients!$B$77,Nutrients!$BX$77,Nutrients!$BX$78)))))*U$8))/2000","v":0.34492497873525019},null,{"$f":"(SUMPRODUCT(W$9:W$229,Nutrients!$BX$8:$BX$228)+(IF($A$7=Nutrients!$B$8,Nutrients!$BX$8,Nutrients!$BX$9)*W$7)+(((IF($A$8=Nutrients!$B$79,Nutrients!$BX$79,(IF($A$8=Nutrients!$B$77,Nutrients!$BX$77,Nutrients!$BX$78)))))*W$8))/2000","v":0.52523781751767451},{"$f":"(SUMPRODUCT(X$9:X$229,Nutrients!$BX$8:$BX$228)+(IF($A$7=Nutrients!$B$8,Nutrients!$BX$8,Nutrients!$BX$9)*X$7)+(((IF($A$8=Nutrients!$B$79,Nutrients!$BX$79,(IF($A$8=Nutrients!$B$77,Nutrients!$BX$77,Nutrients!$BX$78)))))*X$8))/2000","v":0.4746898004256766},{"$f":"(SUMPRODUCT(Y$9:Y$229,Nutrients!$BX$8:$BX$228)+(IF($A$7=Nutrients!$B$8,Nutrients!$BX$8,Nutrients!$BX$9)*Y$7)+(((IF($A$8=Nutrients!$B$79,Nutrients!$BX$79,(IF($A$8=Nutrients!$B$77,Nutrients!$BX$77,Nutrients!$BX$78)))))*Y$8))/2000","v":0.42389778947537549},{"$f":"(SUMPRODUCT(Z$9:Z$229,Nutrients!$BX$8:$BX$228)+(IF($A$7=Nutrients!$B$8,Nutrients!$BX$8,Nutrients!$BX$9)*Z$7)+(((IF($A$8=Nutrients!$B$79,Nutrients!$BX$79,(IF($A$8=Nutrients!$B$77,Nutrients!$BX$77,Nutrients!$BX$78)))))*Z$8))/2000","v":0.38570524816174145},{"$f":"(SUMPRODUCT(AA$9:AA$229,Nutrients!$BX$8:$BX$228)+(IF($A$7=Nutrients!$B$8,Nutrients!$BX$8,Nutrients!$BX$9)*AA$7)+(((IF($A$8=Nutrients!$B$79,Nutrients!$BX$79,(IF($A$8=Nutrients!$B$77,Nutrients!$BX$77,Nutrients!$BX$78)))))*AA$8))/2000","v":0.35734610293560709},{"$f":"(SUMPRODUCT(AB$9:AB$229,Nutrients!$BX$8:$BX$228)+(IF($A$7=Nutrients!$B$8,Nutrients!$BX$8,Nutrients!$BX$9)*AB$7)+(((IF($A$8=Nutrients!$B$79,Nutrients!$BX$79,(IF($A$8=Nutrients!$B$77,Nutrients!$BX$77,Nutrients!$BX$78)))))*AB$8))/2000","v":0.34762826138011493},null,{"$f":"(SUMPRODUCT(AD$9:AD$229,Nutrients!$BX$8:$BX$228)+(IF($A$7=Nutrients!$B$8,Nutrients!$BX$8,Nutrients!$BX$9)*AD$7)+(((IF($A$8=Nutrients!$B$79,Nutrients!$BX$79,(IF($A$8=Nutrients!$B$77,Nutrients!$BX$77,Nutrients!$BX$78)))))*AD$8))/2000","v":0.5240112474171853},{"$f":"(SUMPRODUCT(AE$9:AE$229,Nutrients!$BX$8:$BX$228)+(IF($A$7=Nutrients!$B$8,Nutrients!$BX$8,Nutrients!$BX$9)*AE$7)+(((IF($A$8=Nutrients!$B$79,Nutrients!$BX$79,(IF($A$8=Nutrients!$B$77,Nutrients!$BX$77,Nutrients!$BX$78)))))*AE$8))/2000","v":0.47346892381990652},{"$f":"(SUMPRODUCT(AF$9:AF$229,Nutrients!$BX$8:$BX$228)+(IF($A$7=Nutrients!$B$8,Nutrients!$BX$8,Nutrients!$BX$9)*AF$7)+(((IF($A$8=Nutrients!$B$79,Nutrients!$BX$79,(IF($A$8=Nutrients!$B$77,Nutrients!$BX$77,Nutrients!$BX$78)))))*AF$8))/2000","v":0.42265702124493065},{"$f":"(SUMPRODUCT(AG$9:AG$229,Nutrients!$BX$8:$BX$228)+(IF($A$7=Nutrients!$B$8,Nutrients!$BX$8,Nutrients!$BX$9)*AG$7)+(((IF($A$8=Nutrients!$B$79,Nutrients!$BX$79,(IF($A$8=Nutrients!$B$77,Nutrients!$BX$77,Nutrients!$BX$78)))))*AG$8))/2000","v":0.38445645173421161},{"$f":"(SUMPRODUCT(AH$9:AH$229,Nutrients!$BX$8:$BX$228)+(IF($A$7=Nutrients!$B$8,Nutrients!$BX$8,Nutrients!$BX$9)*AH$7)+(((IF($A$8=Nutrients!$B$79,Nutrients!$BX$79,(IF($A$8=Nutrients!$B$77,Nutrients!$BX$77,Nutrients!$BX$78)))))*AH$8))/2000","v":0.36818502177924639},{"$f":"(SUMPRODUCT(AI$9:AI$229,Nutrients!$BX$8:$BX$228)+(IF($A$7=Nutrients!$B$8,Nutrients!$BX$8,Nutrients!$BX$9)*AI$7)+(((IF($A$8=Nutrients!$B$79,Nutrients!$BX$79,(IF($A$8=Nutrients!$B$77,Nutrients!$BX$77,Nutrients!$BX$78)))))*AI$8))/2000","v":0.36107925183500944},null,{"$f":"(SUMPRODUCT(AK$9:AK$229,Nutrients!$BX$8:$BX$228)+(IF($A$7=Nutrients!$B$8,Nutrients!$BX$8,Nutrients!$BX$9)*AK$7)+(((IF($A$8=Nutrients!$B$79,Nutrients!$BX$79,(IF($A$8=Nutrients!$B$77,Nutrients!$BX$77,Nutrients!$BX$78)))))*AK$8))/2000","v":0.52384990334382764},{"$f":"(SUMPRODUCT(AL$9:AL$229,Nutrients!$BX$8:$BX$228)+(IF($A$7=Nutrients!$B$8,Nutrients!$BX$8,Nutrients!$BX$9)*AL$7)+(((IF($A$8=Nutrients!$B$79,Nutrients!$BX$79,(IF($A$8=Nutrients!$B$77,Nutrients!$BX$77,Nutrients!$BX$78)))))*AL$8))/2000","v":0.47330298751072836},{"$f":"(SUMPRODUCT(AM$9:AM$229,Nutrients!$BX$8:$BX$228)+(IF($A$7=Nutrients!$B$8,Nutrients!$BX$8,Nutrients!$BX$9)*AM$7)+(((IF($A$8=Nutrients!$B$79,Nutrients!$BX$79,(IF($A$8=Nutrients!$B$77,Nutrients!$BX$77,Nutrients!$BX$78)))))*AM$8))/2000","v":0.42249780632335576},{"$f":"(SUMPRODUCT(AN$9:AN$229,Nutrients!$BX$8:$BX$228)+(IF($A$7=Nutrients!$B$8,Nutrients!$BX$8,Nutrients!$BX$9)*AN$7)+(((IF($A$8=Nutrients!$B$79,Nutrients!$BX$79,(IF($A$8=Nutrients!$B$77,Nutrients!$BX$77,Nutrients!$BX$78)))))*AN$8))/2000","v":0.39440666504407762},{"$f":"(SUMPRODUCT(AO$9:AO$229,Nutrients!$BX$8:$BX$228)+(IF($A$7=Nutrients!$B$8,Nutrients!$BX$8,Nutrients!$BX$9)*AO$7)+(((IF($A$8=Nutrients!$B$79,Nutrients!$BX$79,(IF($A$8=Nutrients!$B$77,Nutrients!$BX$77,Nutrients!$BX$78)))))*AO$8))/2000","v":0.38163746865011811},{"$f":"(SUMPRODUCT(AP$9:AP$229,Nutrients!$BX$8:$BX$228)+(IF($A$7=Nutrients!$B$8,Nutrients!$BX$8,Nutrients!$BX$9)*AP$7)+(((IF($A$8=Nutrients!$B$79,Nutrients!$BX$79,(IF($A$8=Nutrients!$B$77,Nutrients!$BX$77,Nutrients!$BX$78)))))*AP$8))/2000","v":0.37452971939334989},null,{"$f":"(SUMPRODUCT(AR$9:AR$229,Nutrients!$BX$8:$BX$228)+(IF($A$7=Nutrients!$B$8,Nutrients!$BX$8,Nutrients!$BX$9)*AR$7)+(((IF($A$8=Nutrients!$B$79,Nutrients!$BX$79,(IF($A$8=Nutrients!$B$77,Nutrients!$BX$77,Nutrients!$BX$78)))))*AR$8))/2000","v":0.52367043877823993},{"$f":"(SUMPRODUCT(AS$9:AS$229,Nutrients!$BX$8:$BX$228)+(IF($A$7=Nutrients!$B$8,Nutrients!$BX$8,Nutrients!$BX$9)*AS$7)+(((IF($A$8=Nutrients!$B$79,Nutrients!$BX$79,(IF($A$8=Nutrients!$B$77,Nutrients!$BX$77,Nutrients!$BX$78)))))*AS$8))/2000","v":0.4731343344706892},{"$f":"(SUMPRODUCT(AT$9:AT$229,Nutrients!$BX$8:$BX$228)+(IF($A$7=Nutrients!$B$8,Nutrients!$BX$8,Nutrients!$BX$9)*AT$7)+(((IF($A$8=Nutrients!$B$79,Nutrients!$BX$79,(IF($A$8=Nutrients!$B$77,Nutrients!$BX$77,Nutrients!$BX$78)))))*AT$8))/2000","v":0.42296271801162122},{"$f":"(SUMPRODUCT(AU$9:AU$229,Nutrients!$BX$8:$BX$228)+(IF($A$7=Nutrients!$B$8,Nutrients!$BX$8,Nutrients!$BX$9)*AU$7)+(((IF($A$8=Nutrients!$B$79,Nutrients!$BX$79,(IF($A$8=Nutrients!$B$77,Nutrients!$BX$77,Nutrients!$BX$78)))))*AU$8))/2000","v":0.40785964948905362},{"$f":"(SUMPRODUCT(AV$9:AV$229,Nutrients!$BX$8:$BX$228)+(IF($A$7=Nutrients!$B$8,Nutrients!$BX$8,Nutrients!$BX$9)*AV$7)+(((IF($A$8=Nutrients!$B$79,Nutrients!$BX$79,(IF($A$8=Nutrients!$B$77,Nutrients!$BX$77,Nutrients!$BX$78)))))*AV$8))/2000","v":0.39508986417074288},{"$f":"(SUMPRODUCT(AW$9:AW$229,Nutrients!$BX$8:$BX$228)+(IF($A$7=Nutrients!$B$8,Nutrients!$BX$8,Nutrients!$BX$9)*AW$7)+(((IF($A$8=Nutrients!$B$79,Nutrients!$BX$79,(IF($A$8=Nutrients!$B$77,Nutrients!$BX$77,Nutrients!$BX$78)))))*AW$8))/2000","v":0.38798016176249844}]
["Available P w/o phytase, %",{"$f":"(SUMPRODUCT(B$9:B$229,Nutrients!$EB$8:$EB$228)+(IF($A$7=Nutrients!$B$8,Nutrients!$EB$8,Nutrients!$EB$9)*B$7)+(((IF($A$8=Nutrients!$B$79,Nutrients!$EB$79,(IF($A$8=Nutrients!$B$77,Nutrients!$EB$77,Nutrients!$EB$78)))))*B$8))/2000","v":0.22446494345276957},{"$f":"(SUMPRODUCT(C$9:C$229,Nutrients!$EB$8:$EB$228)+(IF($A$7=Nutrients!$B$8,Nutrients!$EB$8,Nutrients!$EB$9)*C$7)+(((IF($A$8=Nutrients!$B$79,Nutrients!$EB$79,(IF($A$8=Nutrients!$B$77,Nutrients!$EB$77,Nutrients!$EB$78)))))*C$8))/2000","v":0.18518517069501755},{"$f":"(SUMPRODUCT(D$9:D$229,Nutrients!$EB$8:$EB$228)+(IF($A$7=Nutrients!$B$8,Nutrients!$EB$8,Nutrients!$EB$9)*D$7)+(((IF($A$8=Nutrients!$B$79,Nutrients!$EB$79,(IF($A$8=Nutrients!$B$77,Nutrients!$EB$77,Nutrients!$EB$78)))))*D$8))/2000","v":0.14586079396089491},{"$f":"(SUMPRODUCT(E$9:E$229,Nutrients!$EB$8:$EB$228)+(IF($A$7=Nutrients!$B$8,Nutrients!$EB$8,Nutrients!$EB$9)*E$7)+(((IF($A$8=Nutrients!$B$79,Nutrients!$EB$79,(IF($A$8=Nutrients!$B$77,Nutrients!$EB$77,Nutrients!$EB$78)))))*E$8))/2000","v":0.11735401640373964},{"$f":"(SUMPRODUCT(F$9:F$229,Nutrients!$EB$8:$EB$228)+(IF($A$7=Nutrients!$B$8,Nutrients!$EB$8,Nutrients!$EB$9)*F$7)+(((IF($A$8=Nutrients!$B$79,Nutrients!$EB$79,(IF($A$8=Nutrients!$B$77,Nutrients!$EB$77,Nutrients!$EB$78)))))*F$8))/2000","v":9.7828165821017068E-2},{"$f":"(SUMPRODUCT(G$9:G$229,Nutrients!$EB$8:$EB$228)+(IF($A$7=Nutrients!$B$8,Nutrients!$EB$8,Nutrients!$EB$9)*G$7)+(((IF($A$8=Nutrients!$B$79,Nutrients!$EB$79,(IF($A$8=Nutrients!$B$77,Nutrients!$EB$77,Nutrients!$EB$78)))))*G$8))/2000","v":8.9123540247531982E-2},null,{"$f":"(SUMPRODUCT(I$9:I$229,Nutrients!$EB$8:$EB$228)+(IF($A$7=Nutrients!$B$8,Nutrients!$EB$8,Nutrients!$EB$9)*I$7)+(((IF($A$8=Nutrients!$B$79,Nutrients!$EB$79,(IF($A$8=Nutrients!$B$77,Nutrients!$EB$77,Nutrients!$EB$78)))))*I$8))/2000","v":0.20654941027207996},{"$f":"(SUMPRODUCT(J$9:J$229,Nutrients!$EB$8:$EB$228)+(IF($A$7=Nutrients!$B$8,Nutrients!$EB$8,Nutrients!$EB$9)*J$7)+(((IF($A$8=Nutrients!$B$79,Nutrients!$EB$79,(IF($A$8=Nutrients!$B$77,Nutrients!$EB$77,Nutrients!$EB$78)))))*J$8))/2000","v":0.16821625069426691},{"$f":"(SUMPRODUCT(K$9:K$229,Nutrients!$EB$8:$EB$228)+(IF($A$7=Nutrients!$B$8,Nutrients!$EB$8,Nutrients!$EB$9)*K$7)+(((IF($A$8=Nutrients!$B$79,Nutrients!$EB$79,(IF($A$8=Nutrients!$B$77,Nutrients!$EB$77,Nutrients!$EB$78)))))*K$8))/2000","v":0.12755025855212318},{"$f":"(SUMPRODUCT(L$9:L$229,Nutrients!$EB$8:$EB$228)+(IF($A$7=Nutrients!$B$8,Nutrients!$EB$8,Nutrients!$EB$9)*L$7)+(((IF($A$8=Nutrients!$B$79,Nutrients!$EB$79,(IF($A$8=Nutrients!$B$77,Nutrients!$EB$77,Nutrients!$EB$78)))))*L$8))/2000","v":9.9703250098421903E-2},{"$f":"(SUMPRODUCT(M$9:M$229,Nutrients!$EB$8:$EB$228)+(IF($A$7=Nutrients!$B$8,Nutrients!$EB$8,Nutrients!$EB$9)*M$7)+(((IF($A$8=Nutrients!$B$79,Nutrients!$EB$79,(IF($A$8=Nutrients!$B$77,Nutrients!$EB$77,Nutrients!$EB$78)))))*M$8))/2000","v":8.0177389833747531E-2},{"$f":"(SUMPRODUCT(N$9:N$229,Nutrients!$EB$8:$EB$228)+(IF($A$7=Nutrients!$B$8,Nutrients!$EB$8,Nutrients!$EB$9)*N$7)+(((IF($A$8=Nutrients!$B$79,Nutrients!$EB$79,(IF($A$8=Nutrients!$B$77,Nutrients!$EB$77,Nutrients!$EB$78)))))*N$8))/2000","v":7.1471958774433922E-2},null,{"$f":"(SUMPRODUCT(P$9:P$229,Nutrients!$EB$8:$EB$228)+(IF($A$7=Nutrients!$B$8,Nutrients!$EB$8,Nutrients!$EB$9)*P$7)+(((IF($A$8=Nutrients!$B$79,Nutrients!$EB$79,(IF($A$8=Nutrients!$B$77,Nutrients!$EB$77,Nutrients!$EB$78)))))*P$8))/2000","v":0.18889980440263007},{"$f":"(SUMPRODUCT(Q$9:Q$229,Nutrients!$EB$8:$EB$228)+(IF($A$7=Nutrients!$B$8,Nutrients!$EB$8,Nutrients!$EB$9)*Q$7)+(((IF($A$8=Nutrients!$B$79,Nutrients!$EB$79,(IF($A$8=Nutrients!$B$77,Nutrients!$EB$77,Nutrients!$EB$78)))))*Q$8))/2000","v":0.15056558753804491},{"$f":"(SUMPRODUCT(R$9:R$229,Nutrients!$EB$8:$EB$228)+(IF($A$7=Nutrients!$B$8,Nutrients!$EB$8,Nutrients!$EB$9)*R$7)+(((IF($A$8=Nutrients!$B$79,Nutrients!$EB$79,(IF($A$8=Nutrients!$B$77,Nutrients!$EB$77,Nutrients!$EB$78)))))*R$8))/2000","v":0.1098985081157391},{"$f":"(SUMPRODUCT(S$9:S$229,Nutrients!$EB$8:$EB$228)+(IF($A$7=Nutrients!$B$8,Nutrients!$EB$8,Nutrients!$EB$9)*S$7)+(((IF($A$8=Nutrients!$B$79,Nutrients!$EB$79,(IF($A$8=Nutrients!$B$77,Nutrients!$EB$77,Nutrients!$EB$78)))))*S$8))/2000","v":8.205180115812756E-2},{"$f":"(SUMPRODUCT(T$9:T$229,Nutrients!$EB$8:$EB$228)+(IF($A$7=Nutrients!$B$8,Nutrients!$EB$8,Nutrients!$EB$9)*T$7)+(((IF($A$8=Nutrients!$B$79,Nutrients!$EB$79,(IF($A$8=Nutrients!$B$77,Nutrients!$EB$77,Nutrients!$EB$78)))))*T$8))/2000","v":6.2526624956738996E-2},{"$f":"(SUMPRODUCT(U$9:U$229,Nutrients!$EB$8:$EB$228)+(IF($A$7=Nutrients!$B$8,Nutrients!$EB$8,Nutrients!$EB$9)*U$7)+(((IF($A$8=Nutrients!$B$79,Nutrients!$EB$79,(IF($A$8=Nutrients!$B$77,Nutrients!$EB$77,Nutrients!$EB$78)))))*U$8))/2000","v":5.3820903173527536E-2},null,{"$f":"(SUMPRODUCT(W$9:W$229,Nutrients!$EB$8:$EB$228)+(IF($A$7=Nutrients!$B$8,Nutrients!$EB$8,Nutrients!$EB$9)*W$7)+(((IF($A$8=Nutrients!$B$79,Nutrients!$EB$79,(IF($A$8=Nutrients!$B$77,Nutrients!$EB$77,Nutrients!$EB$78)))))*W$8))/2000","v":0.17017613927912439},{"$f":"(SUMPRODUCT(X$9:X$229,Nutrients!$EB$8:$EB$228)+(IF($A$7=Nutrients!$B$8,Nutrients!$EB$8,Nutrients!$EB$9)*X$7)+(((IF($A$8=Nutrients!$B$79,Nutrients!$EB$79,(IF($A$8=Nutrients!$B$77,Nutrients!$EB$77,Nutrients!$EB$78)))))*X$8))/2000","v":0.13184021739534393},{"$f":"(SUMPRODUCT(Y$9:Y$229,Nutrients!$EB$8:$EB$228)+(IF($A$7=Nutrients!$B$8,Nutrients!$EB$8,Nutrients!$EB$9)*Y$7)+(((IF($A$8=Nutrients!$B$79,Nutrients!$EB$79,(IF($A$8=Nutrients!$B$77,Nutrients!$EB$77,Nutrients!$EB$78)))))*Y$8))/2000","v":9.1173434893111818E-2},{"$f":"(SUMPRODUCT(Z$9:Z$229,Nutrients!$EB$8:$EB$228)+(IF($A$7=Nutrients!$B$8,Nutrients!$EB$8,Nutrients!$EB$9)*Z$7)+(((IF($A$8=Nutrients!$B$79,Nutrients!$EB$79,(IF($A$8=Nutrients!$B$77,Nutrients!$EB$77,Nutrients!$EB$78)))))*Z$8))/2000","v":6.3324806273277121E-2},{"$f":"(SUMPRODUCT(AA$9:AA$229,Nutrients!$EB$8:$EB$228)+(IF($A$7=Nutrients!$B$8,Nutrients!$EB$8,Nutrients!$EB$9)*AA$7)+(((IF($A$8=Nutrients!$B$79,Nutrients!$EB$79,(IF($A$8=Nutrients!$B$77,Nutrients!$EB$77,Nutrients!$EB$78)))))*AA$8))/2000","v":4.3797704019653355E-2},{"$f":"(SUMPRODUCT(AB$9:AB$229,Nutrients!$EB$8:$EB$228)+(IF($A$7=Nutrients!$B$8,Nutrients!$EB$8,Nutrients!$EB$9)*AB$7)+(((IF($A$8=Nutrients!$B$79,Nutrients!$EB$79,(IF($A$8=Nutrients!$B$77,Nutrients!$EB$77,Nutrients!$EB$78)))))*AB$8))/2000","v":3.9126655144403416E-2},null,{"$f":"(SUMPRODUCT(AD$9:AD$229,Nutrients!$EB$8:$EB$228)+(IF($A$7=Nutrients!$B$8,Nutrients!$EB$8,Nutrients!$EB$9)*AD$7)+(((IF($A$8=Nutrients!$B$79,Nutrients!$EB$79,(IF($A$8=Nutrients!$B$77,Nutrients!$EB$77,Nutrients!$EB$78)))))*AD$8))/2000","v":0.15145085247279608},{"$f":"(SUMPRODUCT(AE$9:AE$229,Nutrients!$EB$8:$EB$228)+(IF($A$7=Nutrients!$B$8,Nutrients!$EB$8,Nutrients!$EB$9)*AE$7)+(((IF($A$8=Nutrients!$B$79,Nutrients!$EB$79,(IF($A$8=Nutrients!$B$77,Nutrients!$EB$77,Nutrients!$EB$78)))))*AE$8))/2000","v":0.11311560609883757},{"$f":"(SUMPRODUCT(AF$9:AF$229,Nutrients!$EB$8:$EB$228)+(IF($A$7=Nutrients!$B$8,Nutrients!$EB$8,Nutrients!$EB$9)*AF$7)+(((IF($A$8=Nutrients!$B$79,Nutrients!$EB$79,(IF($A$8=Nutrients!$B$77,Nutrients!$EB$77,Nutrients!$EB$78)))))*AF$8))/2000","v":7.2446463536834704E-2},{"$f":"(SUMPRODUCT(AG$9:AG$229,Nutrients!$EB$8:$EB$228)+(IF($A$7=Nutrients!$B$8,Nutrients!$EB$8,Nutrients!$EB$9)*AG$7)+(((IF($A$8=Nutrients!$B$79,Nutrients!$EB$79,(IF($A$8=Nutrients!$B$77,Nutrients!$EB$77,Nutrients!$EB$78)))))*AG$8))/2000","v":4.4596849986197611E-2},{"$f":"(SUMPRODUCT(AH$9:AH$229,Nutrients!$EB$8:$EB$228)+(IF($A$7=Nutrients!$B$8,Nutrients!$EB$8,Nutrients!$EB$9)*AH$7)+(((IF($A$8=Nutrients!$B$79,Nutrients!$EB$79,(IF($A$8=Nutrients!$B$77,Nutrients!$EB$77,Nutrients!$EB$78)))))*AH$8))/2000","v":3.7400033302329751E-2},{"$f":"(SUMPRODUCT(AI$9:AI$229,Nutrients!$EB$8:$EB$228)+(IF($A$7=Nutrients!$B$8,Nutrients!$EB$8,Nutrients!$EB$9)*AI$7)+(((IF($A$8=Nutrients!$B$79,Nutrients!$EB$79,(IF($A$8=Nutrients!$B$77,Nutrients!$EB$77,Nutrients!$EB$78)))))*AI$8))/2000","v":3.540655333189302E-2},null,{"$f":"(SUMPRODUCT(AK$9:AK$229,Nutrients!$EB$8:$EB$228)+(IF($A$7=Nutrients!$B$8,Nutrients!$EB$8,Nutrients!$EB$9)*AK$7)+(((IF($A$8=Nutrients!$B$79,Nutrients!$EB$79,(IF($A$8=Nutrients!$B$77,Nutrients!$EB$77,Nutrients!$EB$78)))))*AK$8))/2000","v":0.13379940602463136},{"$f":"(SUMPRODUCT(AL$9:AL$229,Nutrients!$EB$8:$EB$228)+(IF($A$7=Nutrients!$B$8,Nutrients!$EB$8,Nutrients!$EB$9)*AL$7)+(((IF($A$8=Nutrients!$B$79,Nutrients!$EB$79,(IF($A$8=Nutrients!$B$77,Nutrients!$EB$77,Nutrients!$EB$78)))))*AL$8))/2000","v":9.5463614800707378E-2},{"$f":"(SUMPRODUCT(AM$9:AM$229,Nutrients!$EB$8:$EB$228)+(IF($A$7=Nutrients!$B$8,Nutrients!$EB$8,Nutrients!$EB$9)*AM$7)+(((IF($A$8=Nutrients!$B$79,Nutrients!$EB$79,(IF($A$8=Nutrients!$B$77,Nutrients!$EB$77,Nutrients!$EB$78)))))*AM$8))/2000","v":5.4795269703805764E-2},{"$f":"(SUMPRODUCT(AN$9:AN$229,Nutrients!$EB$8:$EB$228)+(IF($A$7=Nutrients!$B$8,Nutrients!$EB$8,Nutrients!$EB$9)*AN$7)+(((IF($A$8=Nutrients!$B$79,Nutrients!$EB$79,(IF($A$8=Nutrients!$B$77,Nutrients!$EB$77,Nutrients!$EB$78)))))*AN$8))/2000","v":3.7276074191060785E-2},{"$f":"(SUMPRODUCT(AO$9:AO$229,Nutrients!$EB$8:$EB$228)+(IF($A$7=Nutrients!$B$8,Nutrients!$EB$8,Nutrients!$EB$9)*AO$7)+(((IF($A$8=Nutrients!$B$79,Nutrients!$EB$79,(IF($A$8=Nutrients!$B$77,Nutrients!$EB$77,Nutrients!$EB$78)))))*AO$8))/2000","v":3.3680105342712471E-2},{"$f":"(SUMPRODUCT(AP$9:AP$229,Nutrients!$EB$8:$EB$228)+(IF($A$7=Nutrients!$B$8,Nutrients!$EB$8,Nutrients!$EB$9)*AP$7)+(((IF($A$8=Nutrients!$B$79,Nutrients!$EB$79,(IF($A$8=Nutrients!$B$77,Nutrients!$EB$77,Nutrients!$EB$78)))))*AP$8))/2000","v":3.1686389382436703E-2},null,{"$f":"(SUMPRODUCT(AR$9:AR$229,Nutrients!$EB$8:$EB$228)+(IF($A$7=Nutrients!$B$8,Nutrients!$EB$8,Nutrients!$EB$9)*AR$7)+(((IF($A$8=Nutrients!$B$79,Nutrients!$EB$79,(IF($A$8=Nutrients!$B$77,Nutrients!$EB$77,Nutrients!$EB$78)))))*AR$8))/2000","v":0.11614580965430407},{"$f":"(SUMPRODUCT(AS$9:AS$229,Nutrients!$EB$8:$EB$228)+(IF($A$7=Nutrients!$B$8,Nutrients!$EB$8,Nutrients!$EB$9)*AS$7)+(((IF($A$8=Nutrients!$B$79,Nutrients!$EB$79,(IF($A$8=Nutrients!$B$77,Nutrients!$EB$77,Nutrients!$EB$78)))))*AS$8))/2000","v":7.7811301173591071E-2},{"$f":"(SUMPRODUCT(AT$9:AT$229,Nutrients!$EB$8:$EB$228)+(IF($A$7=Nutrients!$B$8,Nutrients!$EB$8,Nutrients!$EB$9)*AT$7)+(((IF($A$8=Nutrients!$B$79,Nutrients!$EB$79,(IF($A$8=Nutrients!$B$77,Nutrients!$EB$77,Nutrients!$EB$78)))))*AT$8))/2000","v":3.7808761481268875E-2},{"$f":"(SUMPRODUCT(AU$9:AU$229,Nutrients!$EB$8:$EB$228)+(IF($A$7=Nutrients!$B$8,Nutrients!$EB$8,Nutrients!$EB$9)*AU$7)+(((IF($A$8=Nutrients!$B$79,Nutrients!$EB$79,(IF($A$8=Nutrients!$B$77,Nutrients!$EB$77,Nutrients!$EB$78)))))*AU$8))/2000","v":3.3556196529699836E-2},{"$f":"(SUMPRODUCT(AV$9:AV$229,Nutrients!$EB$8:$EB$228)+(IF($A$7=Nutrients!$B$8,Nutrients!$EB$8,Nutrients!$EB$9)*AV$7)+(((IF($A$8=Nutrients!$B$79,Nutrients!$EB$79,(IF($A$8=Nutrients!$B$77,Nutrients!$EB$77,Nutrients!$EB$78)))))*AV$8))/2000","v":2.996017119708673E-2},{"$f":"(SUMPRODUCT(AW$9:AW$229,Nutrients!$EB$8:$EB$228)+(IF($A$7=Nutrients!$B$8,Nutrients!$EB$8,Nutrients!$EB$9)*AW$7)+(((IF($A$8=Nutrients!$B$79,Nutrients!$EB$79,(IF($A$8=Nutrients!$B$77,Nutrients!$EB$77,Nutrients!$EB$78)))))*AW$8))/2000","v":2.7966222369987057E-2}]
["Available P, %",{"$f":"IF((SUMPRODUCT(B$9:B$229,Nutrients!$EE$8:$EE$228))=0,B256,IF((SUMPRODUCT(B$9:B$229,Nutrients!$EE$8:$EE$228))>(1500*907),B256+0.14,B256+0.00000000006666*((SUMPRODUCT(B$9:B$229,Nutrients!$EE$8:$EE$228)/907))^3-0.00000023623322*((SUMPRODUCT(B$9:B$229,Nutrients!$EE$8:$EE$228)/907))^2+0.00029262722672*((SUMPRODUCT(B$9:B$229,Nutrients!$EE$8:$EE$228)/907))+0.007028328))","v":0.33707938392360226},{"$f":"IF((SUMPRODUCT(C$9:C$229,Nutrients!$EE$8:$EE$228))=0,C256,IF((SUMPRODUCT(C$9:C$229,Nutrients!$EE$8:$EE$228))>(1500*907),C256+0.14,C256+0.00000000006666*((SUMPRODUCT(C$9:C$229,Nutrients!$EE$8:$EE$228)/907))^3-0.00000023623322*((SUMPRODUCT(C$9:C$229,Nutrients!$EE$8:$EE$228)/907))^2+0.00029262722672*((SUMPRODUCT(C$9:C$229,Nutrients!$EE$8:$EE$228)/907))+0.007028328))","v":0.29779961116585019},{"$f":"IF((SUMPRODUCT(D$9:D$229,Nutrients!$EE$8:$EE$228))=0,D256,IF((SUMPRODUCT(D$9:D$229,Nutrients!$EE$8:$EE$228))>(1500*907),D256+0.14,D256+0.00000000006666*((SUMPRODUCT(D$9:D$229,Nutrients!$EE$8:$EE$228)/907))^3-0.00000023623322*((SUMPRODUCT(D$9:D$229,Nutrients!$EE$8:$EE$228)/907))^2+0.00029262722672*((SUMPRODUCT(D$9:D$229,Nutrients!$EE$8:$EE$228)/907))+0.007028328))","v":0.2584752344317276},{"$f":"IF((SUMPRODUCT(E$9:E$229,Nutrients!$EE$8:$EE$228))=0,E256,IF((SUMPRODUCT(E$9:E$229,Nutrients!$EE$8:$EE$228))>(1500*907),E256+0.14,E256+0.00000000006666*((SUMPRODUCT(E$9:E$229,Nutrients!$EE$8:$EE$228)/907))^3-0.00000023623322*((SUMPRODUCT(E$9:E$229,Nutrients!$EE$8:$EE$228)/907))^2+0.00029262722672*((SUMPRODUCT(E$9:E$229,Nutrients!$EE$8:$EE$228)/907))+0.007028328))","v":0.22996845687457232},{"$f":"IF((SUMPRODUCT(F$9:F$229,Nutrients!$EE$8:$EE$228))=0,F256,IF((SUMPRODUCT(F$9:F$229,Nutrients!$EE$8:$EE$228))>(1500*907),F256+0.14,F256+0.00000000006666*((SUMPRODUCT(F$9:F$229,Nutrients!$EE$8:$EE$228)/907))^3-0.00000023623322*((SUMPRODUCT(F$9:F$229,Nutrients!$EE$8:$EE$228)/907))^2+0.00029262722672*((SUMPRODUCT(F$9:F$229,Nutrients!$EE$8:$EE$228)/907))+0.007028328))","v":0.21044260629184977},{"$f":"IF((SUMPRODUCT(G$9:G$229,Nutrients!$EE$8:$EE$228))=0,G256,IF((SUMPRODUCT(G$9:G$229,Nutrients!$EE$8:$EE$228))>(1500*907),G256+0.14,G256+0.00000000006666*((SUMPRODUCT(G$9:G$229,Nutrients!$EE$8:$EE$228)/907))^3-0.00000023623322*((SUMPRODUCT(G$9:G$229,Nutrients!$EE$8:$EE$228)/907))^2+0.00029262722672*((SUMPRODUCT(G$9:G$229,Nutrients!$EE$8:$EE$228)/907))+0.007028328))","v":0.20173798071836466},null,{"$f":"IF((SUMPRODUCT(I$9:I$229,Nutrients!$EE$8:$EE$228))=0,I256,IF((SUMPRODUCT(I$9:I$229,Nutrients!$EE$8:$EE$228))>(1500*907),I256+0.14,I256+0.00000000006666*((SUMPRODUCT(I$9:I$229,Nutrients!$EE$8:$EE$228)/907))^3-0.00000023623322*((SUMPRODUCT(I$9:I$229,Nutrients!$EE$8:$EE$228)/907))^2+0.00029262722672*((SUMPRODUCT(I$9:I$229,Nutrients!$EE$8:$EE$228)/907))+0.007028328))","v":0.31916385074291265},{"$f":"IF((SUMPRODUCT(J$9:J$229,Nutrients!$EE$8:$EE$228))=0,J256,IF((SUMPRODUCT(J$9:J$229,Nutrients!$EE$8:$EE$228))>(1500*907),J256+0.14,J256+0.00000000006666*((SUMPRODUCT(J$9:J$229,Nutrients!$EE$8:$EE$228)/907))^3-0.00000023623322*((SUMPRODUCT(J$9:J$229,Nutrients!$EE$8:$EE$228)/907))^2+0.00029262722672*((SUMPRODUCT(J$9:J$229,Nutrients!$EE$8:$EE$228)/907))+0.007028328))","v":0.28083069116509962},{"$f":"IF((SUMPRODUCT(K$9:K$229,Nutrients!$EE$8:$EE$228))=0,K256,IF((SUMPRODUCT(K$9:K$229,Nutrients!$EE$8:$EE$228))>(1500*907),K256+0.14,K256+0.00000000006666*((SUMPRODUCT(K$9:K$229,Nutrients!$EE$8:$EE$228)/907))^3-0.00000023623322*((SUMPRODUCT(K$9:K$229,Nutrients!$EE$8:$EE$228)/907))^2+0.00029262722672*((SUMPRODUCT(K$9:K$229,Nutrients!$EE$8:$EE$228)/907))+0.007028328))","v":0.24016469902295587},{"$f":"IF((SUMPRODUCT(L$9:L$229,Nutrients!$EE$8:$EE$228))=0,L256,IF((SUMPRODUCT(L$9:L$229,Nutrients!$EE$8:$EE$228))>(1500*907),L256+0.14,L256+0.00000000006666*((SUMPRODUCT(L$9:L$229,Nutrients!$EE$8:$EE$228)/907))^3-0.00000023623322*((SUMPRODUCT(L$9:L$229,Nutrients!$EE$8:$EE$228)/907))^2+0.00029262722672*((SUMPRODUCT(L$9:L$229,Nutrients!$EE$8:$EE$228)/907))+0.007028328))","v":0.21231769056925459},{"$f":"IF((SUMPRODUCT(M$9:M$229,Nutrients!$EE$8:$EE$228))=0,M256,IF((SUMPRODUCT(M$9:M$229,Nutrients!$EE$8:$EE$228))>(1500*907),M256+0.14,M256+0.00000000006666*((SUMPRODUCT(M$9:M$229,Nutrients!$EE$8:$EE$228)/907))^3-0.00000023623322*((SUMPRODUCT(M$9:M$229,Nutrients!$EE$8:$EE$228)/907))^2+0.00029262722672*((SUMPRODUCT(M$9:M$229,Nutrients!$EE$8:$EE$228)/907))+0.007028328))","v":0.19279183030458022},{"$f":"IF((SUMPRODUCT(N$9:N$229,Nutrients!$EE$8:$EE$228))=0,N256,IF((SUMPRODUCT(N$9:N$229,Nutrients!$EE$8:$EE$228))>(1500*907),N256+0.14,N256+0.00000000006666*((SUMPRODUCT(N$9:N$229,Nutrients!$EE$8:$EE$228)/907))^3-0.00000023623322*((SUMPRODUCT(N$9:N$229,Nutrients!$EE$8:$EE$228)/907))^2+0.00029262722672*((SUMPRODUCT(N$9:N$229,Nutrients!$EE$8:$EE$228)/907))+0.007028328))","v":0.18408639924526662},null,{"$f":"IF((SUMPRODUCT(P$9:P$229,Nutrients!$EE$8:$EE$228))=0,P256,IF((SUMPRODUCT(P$9:P$229,Nutrients!$EE$8:$EE$228))>(1500*907),P256+0.14,P256+0.00000000006666*((SUMPRODUCT(P$9:P$229,Nutrients!$EE$8:$EE$228)/907))^3-0.00000023623322*((SUMPRODUCT(P$9:P$229,Nutrients!$EE$8:$EE$228)/907))^2+0.00029262722672*((SUMPRODUCT(P$9:P$229,Nutrients!$EE$8:$EE$228)/907))+0.007028328))","v":0.30151424487346279},{"$f":"IF((SUMPRODUCT(Q$9:Q$229,Nutrients!$EE$8:$EE$228))=0,Q256,IF((SUMPRODUCT(Q$9:Q$229,Nutrients!$EE$8:$EE$228))>(1500*907),Q256+0.14,Q256+0.00000000006666*((SUMPRODUCT(Q$9:Q$229,Nutrients!$EE$8:$EE$228)/907))^3-0.00000023623322*((SUMPRODUCT(Q$9:Q$229,Nutrients!$EE$8:$EE$228)/907))^2+0.00029262722672*((SUMPRODUCT(Q$9:Q$229,Nutrients!$EE$8:$EE$228)/907))+0.007028328))","v":0.26318002800887763},{"$f":"IF((SUMPRODUCT(R$9:R$229,Nutrients!$EE$8:$EE$228))=0,R256,IF((SUMPRODUCT(R$9:R$229,Nutrients!$EE$8:$EE$228))>(1500*907),R256+0.14,R256+0.00000000006666*((SUMPRODUCT(R$9:R$229,Nutrients!$EE$8:$EE$228)/907))^3-0.00000023623322*((SUMPRODUCT(R$9:R$229,Nutrients!$EE$8:$EE$228)/907))^2+0.00029262722672*((SUMPRODUCT(R$9:R$229,Nutrients!$EE$8:$EE$228)/907))+0.007028328))","v":0.22251294858657181},{"$f":"IF((SUMPRODUCT(S$9:S$229,Nutrients!$EE$8:$EE$228))=0,S256,IF((SUMPRODUCT(S$9:S$229,Nutrients!$EE$8:$EE$228))>(1500*907),S256+0.14,S256+0.00000000006666*((SUMPRODUCT(S$9:S$229,Nutrients!$EE$8:$EE$228)/907))^3-0.00000023623322*((SUMPRODUCT(S$9:S$229,Nutrients!$EE$8:$EE$228)/907))^2+0.00029262722672*((SUMPRODUCT(S$9:S$229,Nutrients!$EE$8:$EE$228)/907))+0.007028328))","v":0.19466624162896026},{"$f":"IF((SUMPRODUCT(T$9:T$229,Nutrients!$EE$8:$EE$228))=0,T256,IF((SUMPRODUCT(T$9:T$229,Nutrients!$EE$8:$EE$228))>(1500*907),T256+0.14,T256+0.00000000006666*((SUMPRODUCT(T$9:T$229,Nutrients!$EE$8:$EE$228)/907))^3-0.00000023623322*((SUMPRODUCT(T$9:T$229,Nutrients!$EE$8:$EE$228)/907))^2+0.00029262722672*((SUMPRODUCT(T$9:T$229,Nutrients!$EE$8:$EE$228)/907))+0.007028328))","v":0.17514106542757168},{"$f":"IF((SUMPRODUCT(U$9:U$229,Nutrients!$EE$8:$EE$228))=0,U256,IF((SUMPRODUCT(U$9:U$229,Nutrients!$EE$8:$EE$228))>(1500*907),U256+0.14,U256+0.00000000006666*((SUMPRODUCT(U$9:U$229,Nutrients!$EE$8:$EE$228)/907))^3-0.00000023623322*((SUMPRODUCT(U$9:U$229,Nutrients!$EE$8:$EE$228)/907))^2+0.00029262722672*((SUMPRODUCT(U$9:U$229,Nutrients!$EE$8:$EE$228)/907))+0.007028328))","v":0.16643534364436022},null,{"$f":"IF((SUMPRODUCT(W$9:W$229,Nutrients!$EE$8:$EE$228))=0,W256,IF((SUMPRODUCT(W$9:W$229,Nutrients!$EE$8:$EE$228))>(1500*907),W256+0.14,W256+0.00000000006666*((SUMPRODUCT(W$9:W$229,Nutrients!$EE$8:$EE$228)/907))^3-0.00000023623322*((SUMPRODUCT(W$9:W$229,Nutrients!$EE$8:$EE$228)/907))^2+0.00029262722672*((SUMPRODUCT(W$9:W$229,Nutrients!$EE$8:$EE$228)/907))+0.007028328))","v":0.28279057974995703},{"$f":"IF((SUMPRODUCT(X$9:X$229,Nutrients!$EE$8:$EE$228))=0,X256,IF((SUMPRODUCT(X$9:X$229,Nutrients!$EE$8:$EE$228))>(1500*907),X256+0.14,X256+0.00000000006666*((SUMPRODUCT(X$9:X$229,Nutrients!$EE$8:$EE$228)/907))^3-0.00000023623322*((SUMPRODUCT(X$9:X$229,Nutrients!$EE$8:$EE$228)/907))^2+0.00029262722672*((SUMPRODUCT(X$9:X$229,Nutrients!$EE$8:$EE$228)/907))+0.007028328))","v":0.24445465786617662},{"$f":"IF((SUMPRODUCT(Y$9:Y$229,Nutrients!$EE$8:$EE$228))=0,Y256,IF((SUMPRODUCT(Y$9:Y$229,Nutrients!$EE$8:$EE$228))>(1500*907),Y256+0.14,Y256+0.00000000006666*((SUMPRODUCT(Y$9:Y$229,Nutrients!$EE$8:$EE$228)/907))^3-0.00000023623322*((SUMPRODUCT(Y$9:Y$229,Nutrients!$EE$8:$EE$228)/907))^2+0.00029262722672*((SUMPRODUCT(Y$9:Y$229,Nutrients!$EE$8:$EE$228)/907))+0.007028328))","v":0.20378787536394452},{"$f":"IF((SUMPRODUCT(Z$9:Z$229,Nutrients!$EE$8:$EE$228))=0,Z256,IF((SUMPRODUCT(Z$9:Z$229,Nutrients!$EE$8:$EE$228))>(1500*907),Z256+0.14,Z256+0.00000000006666*((SUMPRODUCT(Z$9:Z$229,Nutrients!$EE$8:$EE$228)/907))^3-0.00000023623322*((SUMPRODUCT(Z$9:Z$229,Nutrients!$EE$8:$EE$228)/907))^2+0.00029262722672*((SUMPRODUCT(Z$9:Z$229,Nutrients!$EE$8:$EE$228)/907))+0.007028328))","v":0.1759392467441098},{"$f":"IF((SUMPRODUCT(AA$9:AA$229,Nutrients!$EE$8:$EE$228))=0,AA256,IF((SUMPRODUCT(AA$9:AA$229,Nutrients!$EE$8:$EE$228))>(1500*907),AA256+0.14,AA256+0.00000000006666*((SUMPRODUCT(AA$9:AA$229,Nutrients!$EE$8:$EE$228)/907))^3-0.00000023623322*((SUMPRODUCT(AA$9:AA$229,Nutrients!$EE$8:$EE$228)/907))^2+0.00029262722672*((SUMPRODUCT(AA$9:AA$229,Nutrients!$EE$8:$EE$228)/907))+0.007028328))","v":0.15641214449048604},{"$f":"IF((SUMPRODUCT(AB$9:AB$229,Nutrients!$EE$8:$EE$228))=0,AB256,IF((SUMPRODUCT(AB$9:AB$229,Nutrients!$EE$8:$EE$228))>(1500*907),AB256+0.14,AB256+0.00000000006666*((SUMPRODUCT(AB$9:AB$229,Nutrients!$EE$8:$EE$228)/907))^3-0.00000023623322*((SUMPRODUCT(AB$9:AB$229,Nutrients!$EE$8:$EE$228)/907))^2+0.00029262722672*((SUMPRODUCT(AB$9:AB$229,Nutrients!$EE$8:$EE$228)/907))+0.007028328))","v":0.1517410956152361},null,{"$f":"IF((SUMPRODUCT(AD$9:AD$229,Nutrients!$EE$8:$EE$228))=0,AD256,IF((SUMPRODUCT(AD$9:AD$229,Nutrients!$EE$8:$EE$228))>(1500*907),AD256+0.14,AD256+0.00000000006666*((SUMPRODUCT(AD$9:AD$229,Nutrients!$EE$8:$EE$228)/907))^3-0.00000023623322*((SUMPRODUCT(AD$9:AD$229,Nutrients!$EE$8:$EE$228)/907))^2+0.00029262722672*((SUMPRODUCT(AD$9:AD$229,Nutrients!$EE$8:$EE$228)/907))+0.007028328))","v":0.26406529294362879},{"$f":"IF((SUMPRODUCT(AE$9:AE$229,Nutrients!$EE$8:$EE$228))=0,AE256,IF((SUMPRODUCT(AE$9:AE$229,Nutrients!$EE$8:$EE$228))>(1500*907),AE256+0.14,AE256+0.00000000006666*((SUMPRODUCT(AE$9:AE$229,Nutrients!$EE$8:$EE$228)/907))^3-0.00000023623322*((SUMPRODUCT(AE$9:AE$229,Nutrients!$EE$8:$EE$228)/907))^2+0.00029262722672*((SUMPRODUCT(AE$9:AE$229,Nutrients!$EE$8:$EE$228)/907))+0.007028328))","v":0.22573004656967025},{"$f":"IF((SUMPRODUCT(AF$9:AF$229,Nutrients!$EE$8:$EE$228))=0,AF256,IF((SUMPRODUCT(AF$9:AF$229,Nutrients!$EE$8:$EE$228))>(1500*907),AF256+0.14,AF256+0.00000000006666*((SUMPRODUCT(AF$9:AF$229,Nutrients!$EE$8:$EE$228)/907))^3-0.00000023623322*((SUMPRODUCT(AF$9:AF$229,Nutrients!$EE$8:$EE$228)/907))^2+0.00029262722672*((SUMPRODUCT(AF$9:AF$229,Nutrients!$EE$8:$EE$228)/907))+0.007028328))","v":0.18506090400766739},{"$f":"IF((SUMPRODUCT(AG$9:AG$229,Nutrients!$EE$8:$EE$228))=0,AG256,IF((SUMPRODUCT(AG$9:AG$229,Nutrients!$EE$8:$EE$228))>(1500*907),AG256+0.14,AG256+0.00000000006666*((SUMPRODUCT(AG$9:AG$229,Nutrients!$EE$8:$EE$228)/907))^3-0.00000023623322*((SUMPRODUCT(AG$9:AG$229,Nutrients!$EE$8:$EE$228)/907))^2+0.00029262722672*((SUMPRODUCT(AG$9:AG$229,Nutrients!$EE$8:$EE$228)/907))+0.007028328))","v":0.15721129045703028},{"$f":"IF((SUMPRODUCT(AH$9:AH$229,Nutrients!$EE$8:$EE$228))=0,AH256,IF((SUMPRODUCT(AH$9:AH$229,Nutrients!$EE$8:$EE$228))>(1500*907),AH256+0.14,AH256+0.00000000006666*((SUMPRODUCT(AH$9:AH$229,Nutrients!$EE$8:$EE$228)/907))^3-0.00000023623322*((SUMPRODUCT(AH$9:AH$229,Nutrients!$EE$8:$EE$228)/907))^2+0.00029262722672*((SUMPRODUCT(AH$9:AH$229,Nutrients!$EE$8:$EE$228)/907))+0.007028328))","v":0.15001447377316243},{"$f":"IF((SUMPRODUCT(AI$9:AI$229,Nutrients!$EE$8:$EE$228))=0,AI256,IF((SUMPRODUCT(AI$9:AI$229,Nutrients!$EE$8:$EE$228))>(1500*907),AI256+0.14,AI256+0.00000000006666*((SUMPRODUCT(AI$9:AI$229,Nutrients!$EE$8:$EE$228)/907))^3-0.00000023623322*((SUMPRODUCT(AI$9:AI$229,Nutrients!$EE$8:$EE$228)/907))^2+0.00029262722672*((SUMPRODUCT(AI$9:AI$229,Nutrients!$EE$8:$EE$228)/907))+0.007028328))","v":0.14802099380272571},null,{"$f":"IF((SUMPRODUCT(AK$9:AK$229,Nutrients!$EE$8:$EE$228))=0,AK256,IF((SUMPRODUCT(AK$9:AK$229,Nutrients!$EE$8:$EE$228))>(1500*907),AK256+0.14,AK256+0.00000000006666*((SUMPRODUCT(AK$9:AK$229,Nutrients!$EE$8:$EE$228)/907))^3-0.00000023623322*((SUMPRODUCT(AK$9:AK$229,Nutrients!$EE$8:$EE$228)/907))^2+0.00029262722672*((SUMPRODUCT(AK$9:AK$229,Nutrients!$EE$8:$EE$228)/907))+0.007028328))","v":0.24641384649546402},{"$f":"IF((SUMPRODUCT(AL$9:AL$229,Nutrients!$EE$8:$EE$228))=0,AL256,IF((SUMPRODUCT(AL$9:AL$229,Nutrients!$EE$8:$EE$228))>(1500*907),AL256+0.14,AL256+0.00000000006666*((SUMPRODUCT(AL$9:AL$229,Nutrients!$EE$8:$EE$228)/907))^3-0.00000023623322*((SUMPRODUCT(AL$9:AL$229,Nutrients!$EE$8:$EE$228)/907))^2+0.00029262722672*((SUMPRODUCT(AL$9:AL$229,Nutrients!$EE$8:$EE$228)/907))+0.007028328))","v":0.20807805527154008},{"$f":"IF((SUMPRODUCT(AM$9:AM$229,Nutrients!$EE$8:$EE$228))=0,AM256,IF((SUMPRODUCT(AM$9:AM$229,Nutrients!$EE$8:$EE$228))>(1500*907),AM256+0.14,AM256+0.00000000006666*((SUMPRODUCT(AM$9:AM$229,Nutrients!$EE$8:$EE$228)/907))^3-0.00000023623322*((SUMPRODUCT(AM$9:AM$229,Nutrients!$EE$8:$EE$228)/907))^2+0.00029262722672*((SUMPRODUCT(AM$9:AM$229,Nutrients!$EE$8:$EE$228)/907))+0.007028328))","v":0.16740971017463843},{"$f":"IF((SUMPRODUCT(AN$9:AN$229,Nutrients!$EE$8:$EE$228))=0,AN256,IF((SUMPRODUCT(AN$9:AN$229,Nutrients!$EE$8:$EE$228))>(1500*907),AN256+0.14,AN256+0.00000000006666*((SUMPRODUCT(AN$9:AN$229,Nutrients!$EE$8:$EE$228)/907))^3-0.00000023623322*((SUMPRODUCT(AN$9:AN$229,Nutrients!$EE$8:$EE$228)/907))^2+0.00029262722672*((SUMPRODUCT(AN$9:AN$229,Nutrients!$EE$8:$EE$228)/907))+0.007028328))","v":0.14989051466189349},{"$f":"IF((SUMPRODUCT(AO$9:AO$229,Nutrients!$EE$8:$EE$228))=0,AO256,IF((SUMPRODUCT(AO$9:AO$229,Nutrients!$EE$8:$EE$228))>(1500*907),AO256+0.14,AO256+0.00000000006666*((SUMPRODUCT(AO$9:AO$229,Nutrients!$EE$8:$EE$228)/907))^3-0.00000023623322*((SUMPRODUCT(AO$9:AO$229,Nutrients!$EE$8:$EE$228)/907))^2+0.00029262722672*((SUMPRODUCT(AO$9:AO$229,Nutrients!$EE$8:$EE$228)/907))+0.007028328))","v":0.14629454581354515},{"$f":"IF((SUMPRODUCT(AP$9:AP$229,Nutrients!$EE$8:$EE$228))=0,AP256,IF((SUMPRODUCT(AP$9:AP$229,Nutrients!$EE$8:$EE$228))>(1500*907),AP256+0.14,AP256+0.00000000006666*((SUMPRODUCT(AP$9:AP$229,Nutrients!$EE$8:$EE$228)/907))^3-0.00000023623322*((SUMPRODUCT(AP$9:AP$229,Nutrients!$EE$8:$EE$228)/907))^2+0.00029262722672*((SUMPRODUCT(AP$9:AP$229,Nutrients!$EE$8:$EE$228)/907))+0.007028328))","v":0.14430082985326939},null,{"$f":"IF((SUMPRODUCT(AR$9:AR$229,Nutrients!$EE$8:$EE$228))=0,AR256,IF((SUMPRODUCT(AR$9:AR$229,Nutrients!$EE$8:$EE$228))>(1500*907),AR256+0.14,AR256+0.00000000006666*((SUMPRODUCT(AR$9:AR$229,Nutrients!$EE$8:$EE$228)/907))^3-0.00000023623322*((SUMPRODUCT(AR$9:AR$229,Nutrients!$EE$8:$EE$228)/907))^2+0.00029262722672*((SUMPRODUCT(AR$9:AR$229,Nutrients!$EE$8:$EE$228)/907))+0.007028328))","v":0.22876025012513676},{"$f":"IF((SUMPRODUCT(AS$9:AS$229,Nutrients!$EE$8:$EE$228))=0,AS256,IF((SUMPRODUCT(AS$9:AS$229,Nutrients!$EE$8:$EE$228))>(1500*907),AS256+0.14,AS256+0.00000000006666*((SUMPRODUCT(AS$9:AS$229,Nutrients!$EE$8:$EE$228)/907))^3-0.00000023623322*((SUMPRODUCT(AS$9:AS$229,Nutrients!$EE$8:$EE$228)/907))^2+0.00029262722672*((SUMPRODUCT(AS$9:AS$229,Nutrients!$EE$8:$EE$228)/907))+0.007028328))","v":0.19042574164442375},{"$f":"IF((SUMPRODUCT(AT$9:AT$229,Nutrients!$EE$8:$EE$228))=0,AT256,IF((SUMPRODUCT(AT$9:AT$229,Nutrients!$EE$8:$EE$228))>(1500*907),AT256+0.14,AT256+0.00000000006666*((SUMPRODUCT(AT$9:AT$229,Nutrients!$EE$8:$EE$228)/907))^3-0.00000023623322*((SUMPRODUCT(AT$9:AT$229,Nutrients!$EE$8:$EE$228)/907))^2+0.00029262722672*((SUMPRODUCT(AT$9:AT$229,Nutrients!$EE$8:$EE$228)/907))+0.007028328))","v":0.15042320195210154},{"$f":"IF((SUMPRODUCT(AU$9:AU$229,Nutrients!$EE$8:$EE$228))=0,AU256,IF((SUMPRODUCT(AU$9:AU$229,Nutrients!$EE$8:$EE$228))>(1500*907),AU256+0.14,AU256+0.00000000006666*((SUMPRODUCT(AU$9:AU$229,Nutrients!$EE$8:$EE$228)/907))^3-0.00000023623322*((SUMPRODUCT(AU$9:AU$229,Nutrients!$EE$8:$EE$228)/907))^2+0.00029262722672*((SUMPRODUCT(AU$9:AU$229,Nutrients!$EE$8:$EE$228)/907))+0.007028328))","v":0.14617063700053254},{"$f":"IF((SUMPRODUCT(AV$9:AV$229,Nutrients!$EE$8:$EE$228))=0,AV256,IF((SUMPRODUCT(AV$9:AV$229,Nutrients!$EE$8:$EE$228))>(1500*907),AV256+0.14,AV256+0.00000000006666*((SUMPRODUCT(AV$9:AV$229,Nutrients!$EE$8:$EE$228)/907))^3-0.00000023623322*((SUMPRODUCT(AV$9:AV$229,Nutrients!$EE$8:$EE$228)/907))^2+0.00029262722672*((SUMPRODUCT(AV$9:AV$229,Nutrients!$EE$8:$EE$228)/907))+0.007028328))","v":0.14257461166791943},{"$f":"IF((SUMPRODUCT(AW$9:AW$229,Nutrients!$EE$8:$EE$228))=0,AW256,IF((SUMPRODUCT(AW$9:AW$229,Nutrients!$EE$8:$EE$228))>(1500*907),AW256+0.14,AW256+0.00000000006666*((SUMPRODUCT(AW$9:AW$229,Nutrients!$EE$8:$EE$228)/907))^3-0.00000023623322*((SUMPRODUCT(AW$9:AW$229,Nutrients!$EE$8:$EE$228)/907))^2+0.00029262722672*((SUMPRODUCT(AW$9:AW$229,Nutrients!$EE$8:$EE$228)/907))+0.007028328))","v":0.14058066284081974}]
["Avail P:calorie ratio g/mcal",{"$f":"IF(B$5=\"\",\"\",(B257)/(B246*2.2046)*10000)","v":1.0228158443854305},0.90093891102253687,0.7799032683037318,0.69195878210567852,0.63170249608403195,0.60499551704383758,null,{"$f":"IF(I$5=\"\",\"\",(I257)/(I246*2.2046)*10000)","v":0.95975889075891618},0.84195360292807131,0.71810817514105796,0.63308370169592443,0.57350998716535484,0.54708447249018677,null,{"$f":"IF(P$5=\"\",\"\",(P257)/(P246*2.2046)*10000)","v":0.89854949471415535},0.7819642253023521,0.65934720144006032,0.57525857971960315,0.51635473379042773,0.49021282241330261,null,{"$f":"IF(W$5=\"\",\"\",(W257)/(W246*2.2046)*10000)","v":0.83519723622084663},0.71979988701895059,0.59846462078087659,0.51525562785106505,0.45700335333332465,0.44296437135625849,null,{"$f":"IF(AD$5=\"\",\"\",(AD257)/(AD246*2.2046)*10000)","v":0.77293251447489708},0.65876807749348654,0.53862579472349725,0.45632131818111438,0.4344972092467963,0.4283403680751407,null,{"$f":"IF(AK$5=\"\",\"\",(AK257)/(AK246*2.2046)*10000)","v":0.7149191986555774},0.60191661725255041,0.48299769802255271,0.43132847380512235,0.42006359493402451,0.41396751772204604,null,{"$f":"IF(AR$5=\"\",\"\",(AR257)/(AR246*2.2046)*10000)","v":0.65784510627422133},0.54606281266733825,0.43021654593496106,0.417021350002025,0.40587704110417833,0.39984083877857862]
["Stand. Dig. P w/out phytase, %",{"$f":"((SUMPRODUCT(B$9:B$229,Nutrients!$DR$8:$DR$228)+(IF($A$7=Nutrients!$B$8,Nutrients!$DR$8,Nutrients!$DR$9)*B$7)+(((IF($A$8=Nutrients!$B$79,Nutrients!$DR$79,(IF($A$8=Nutrients!$B$77,Nutrients!$DR$77,Nutrients!$DR$78)))))*B$8))/2000)","v":0.29000063647666452},{"$f":"((SUMPRODUCT(C$9:C$229,Nutrients!$DR$8:$DR$228)+(IF($A$7=Nutrients!$B$8,Nutrients!$DR$8,Nutrients!$DR$9)*C$7)+(((IF($A$8=Nutrients!$B$79,Nutrients!$DR$79,(IF($A$8=Nutrients!$B$77,Nutrients!$DR$77,Nutrients!$DR$78)))))*C$8))/2000)","v":0.24988069387487893},{"$f":"((SUMPRODUCT(D$9:D$229,Nutrients!$DR$8:$DR$228)+(IF($A$7=Nutrients!$B$8,Nutrients!$DR$8,Nutrients!$DR$9)*D$7)+(((IF($A$8=Nutrients!$B$79,Nutrients!$DR$79,(IF($A$8=Nutrients!$B$77,Nutrients!$DR$77,Nutrients!$DR$78)))))*D$8))/2000)","v":0.21060453785177027},{"$f":"((SUMPRODUCT(E$9:E$229,Nutrients!$DR$8:$DR$228)+(IF($A$7=Nutrients!$B$8,Nutrients!$DR$8,Nutrients!$DR$9)*E$7)+(((IF($A$8=Nutrients!$B$79,Nutrients!$DR$79,(IF($A$8=Nutrients!$B$77,Nutrients!$DR$77,Nutrients!$DR$78)))))*E$8))/2000)","v":0.18085065848336068},{"$f":"((SUMPRODUCT(F$9:F$229,Nutrients!$DR$8:$DR$228)+(IF($A$7=Nutrients!$B$8,Nutrients!$DR$8,Nutrients!$DR$9)*F$7)+(((IF($A$8=Nutrients!$B$79,Nutrients!$DR$79,(IF($A$8=Nutrients!$B$77,Nutrients!$DR$77,Nutrients!$DR$78)))))*F$8))/2000)","v":0.15971179439767599},{"$f":"((SUMPRODUCT(G$9:G$229,Nutrients!$DR$8:$DR$228)+(IF($A$7=Nutrients!$B$8,Nutrients!$DR$8,Nutrients!$DR$9)*G$7)+(((IF($A$8=Nutrients!$B$79,Nutrients!$DR$79,(IF($A$8=Nutrients!$B$77,Nutrients!$DR$77,Nutrients!$DR$78)))))*G$8))/2000)","v":0.14985099986346795},null,{"$f":"((SUMPRODUCT(I$9:I$229,Nutrients!$DR$8:$DR$228)+(IF($A$7=Nutrients!$B$8,Nutrients!$DR$8,Nutrients!$DR$9)*I$7)+(((IF($A$8=Nutrients!$B$79,Nutrients!$DR$79,(IF($A$8=Nutrients!$B$77,Nutrients!$DR$77,Nutrients!$DR$78)))))*I$8))/2000)","v":0.29014809232506827},{"$f":"((SUMPRODUCT(J$9:J$229,Nutrients!$DR$8:$DR$228)+(IF($A$7=Nutrients!$B$8,Nutrients!$DR$8,Nutrients!$DR$9)*J$7)+(((IF($A$8=Nutrients!$B$79,Nutrients!$DR$79,(IF($A$8=Nutrients!$B$77,Nutrients!$DR$77,Nutrients!$DR$78)))))*J$8))/2000)","v":0.25085687289487002},{"$f":"((SUMPRODUCT(K$9:K$229,Nutrients!$DR$8:$DR$228)+(IF($A$7=Nutrients!$B$8,Nutrients!$DR$8,Nutrients!$DR$9)*K$7)+(((IF($A$8=Nutrients!$B$79,Nutrients!$DR$79,(IF($A$8=Nutrients!$B$77,Nutrients!$DR$77,Nutrients!$DR$78)))))*K$8))/2000)","v":0.21039974278228327},{"$f":"((SUMPRODUCT(L$9:L$229,Nutrients!$DR$8:$DR$228)+(IF($A$7=Nutrients!$B$8,Nutrients!$DR$8,Nutrients!$DR$9)*L$7)+(((IF($A$8=Nutrients!$B$79,Nutrients!$DR$79,(IF($A$8=Nutrients!$B$77,Nutrients!$DR$77,Nutrients!$DR$78)))))*L$8))/2000)","v":0.18122534893259912},{"$f":"((SUMPRODUCT(M$9:M$229,Nutrients!$DR$8:$DR$228)+(IF($A$7=Nutrients!$B$8,Nutrients!$DR$8,Nutrients!$DR$9)*M$7)+(((IF($A$8=Nutrients!$B$79,Nutrients!$DR$79,(IF($A$8=Nutrients!$B$77,Nutrients!$DR$77,Nutrients!$DR$78)))))*M$8))/2000)","v":0.16008645981230762},{"$f":"((SUMPRODUCT(N$9:N$229,Nutrients!$DR$8:$DR$228)+(IF($A$7=Nutrients!$B$8,Nutrients!$DR$8,Nutrients!$DR$9)*N$7)+(((IF($A$8=Nutrients!$B$79,Nutrients!$DR$79,(IF($A$8=Nutrients!$B$77,Nutrients!$DR$77,Nutrients!$DR$78)))))*N$8))/2000)","v":0.15022358253472048},null,{"$f":"((SUMPRODUCT(P$9:P$229,Nutrients!$DR$8:$DR$228)+(IF($A$7=Nutrients!$B$8,Nutrients!$DR$8,Nutrients!$DR$9)*P$7)+(((IF($A$8=Nutrients!$B$79,Nutrients!$DR$79,(IF($A$8=Nutrients!$B$77,Nutrients!$DR$77,Nutrients!$DR$78)))))*P$8))/2000)","v":0.2905257833114176},{"$f":"((SUMPRODUCT(Q$9:Q$229,Nutrients!$DR$8:$DR$228)+(IF($A$7=Nutrients!$B$8,Nutrients!$DR$8,Nutrients!$DR$9)*Q$7)+(((IF($A$8=Nutrients!$B$79,Nutrients!$DR$79,(IF($A$8=Nutrients!$B$77,Nutrients!$DR$77,Nutrients!$DR$78)))))*Q$8))/2000)","v":0.25123183005655536},{"$f":"((SUMPRODUCT(R$9:R$229,Nutrients!$DR$8:$DR$228)+(IF($A$7=Nutrients!$B$8,Nutrients!$DR$8,Nutrients!$DR$9)*R$7)+(((IF($A$8=Nutrients!$B$79,Nutrients!$DR$79,(IF($A$8=Nutrients!$B$77,Nutrients!$DR$77,Nutrients!$DR$78)))))*R$8))/2000)","v":0.21077188856544557},{"$f":"((SUMPRODUCT(S$9:S$229,Nutrients!$DR$8:$DR$228)+(IF($A$7=Nutrients!$B$8,Nutrients!$DR$8,Nutrients!$DR$9)*S$7)+(((IF($A$8=Nutrients!$B$79,Nutrients!$DR$79,(IF($A$8=Nutrients!$B$77,Nutrients!$DR$77,Nutrients!$DR$78)))))*S$8))/2000)","v":0.18159827429370368},{"$f":"((SUMPRODUCT(T$9:T$229,Nutrients!$DR$8:$DR$228)+(IF($A$7=Nutrients!$B$8,Nutrients!$DR$8,Nutrients!$DR$9)*T$7)+(((IF($A$8=Nutrients!$B$79,Nutrients!$DR$79,(IF($A$8=Nutrients!$B$77,Nutrients!$DR$77,Nutrients!$DR$78)))))*T$8))/2000)","v":0.16046115395472282},{"$f":"((SUMPRODUCT(U$9:U$229,Nutrients!$DR$8:$DR$228)+(IF($A$7=Nutrients!$B$8,Nutrients!$DR$8,Nutrients!$DR$9)*U$7)+(((IF($A$8=Nutrients!$B$79,Nutrients!$DR$79,(IF($A$8=Nutrients!$B$77,Nutrients!$DR$77,Nutrients!$DR$78)))))*U$8))/2000)","v":0.15059752495283216},null,{"$f":"((SUMPRODUCT(W$9:W$229,Nutrients!$DR$8:$DR$228)+(IF($A$7=Nutrients!$B$8,Nutrients!$DR$8,Nutrients!$DR$9)*W$7)+(((IF($A$8=Nutrients!$B$79,Nutrients!$DR$79,(IF($A$8=Nutrients!$B$77,Nutrients!$DR$77,Nutrients!$DR$78)))))*W$8))/2000)","v":0.28995668178300393},{"$f":"((SUMPRODUCT(X$9:X$229,Nutrients!$DR$8:$DR$228)+(IF($A$7=Nutrients!$B$8,Nutrients!$DR$8,Nutrients!$DR$9)*X$7)+(((IF($A$8=Nutrients!$B$79,Nutrients!$DR$79,(IF($A$8=Nutrients!$B$77,Nutrients!$DR$77,Nutrients!$DR$78)))))*X$8))/2000)","v":0.25065831986281895},{"$f":"((SUMPRODUCT(Y$9:Y$229,Nutrients!$DR$8:$DR$228)+(IF($A$7=Nutrients!$B$8,Nutrients!$DR$8,Nutrients!$DR$9)*Y$7)+(((IF($A$8=Nutrients!$B$79,Nutrients!$DR$79,(IF($A$8=Nutrients!$B$77,Nutrients!$DR$77,Nutrients!$DR$78)))))*Y$8))/2000)","v":0.21019914611745427},{"$f":"((SUMPRODUCT(Z$9:Z$229,Nutrients!$DR$8:$DR$228)+(IF($A$7=Nutrients!$B$8,Nutrients!$DR$8,Nutrients!$DR$9)*Z$7)+(((IF($A$8=Nutrients!$B$79,Nutrients!$DR$79,(IF($A$8=Nutrients!$B$77,Nutrients!$DR$77,Nutrients!$DR$78)))))*Z$8))/2000)","v":0.18102056300686942},{"$f":"((SUMPRODUCT(AA$9:AA$229,Nutrients!$DR$8:$DR$228)+(IF($A$7=Nutrients!$B$8,Nutrients!$DR$8,Nutrients!$DR$9)*AA$7)+(((IF($A$8=Nutrients!$B$79,Nutrients!$DR$79,(IF($A$8=Nutrients!$B$77,Nutrients!$DR$77,Nutrients!$DR$78)))))*AA$8))/2000)","v":0.15987846247779869},{"$f":"((SUMPRODUCT(AB$9:AB$229,Nutrients!$DR$8:$DR$228)+(IF($A$7=Nutrients!$B$8,Nutrients!$DR$8,Nutrients!$DR$9)*AB$7)+(((IF($A$8=Nutrients!$B$79,Nutrients!$DR$79,(IF($A$8=Nutrients!$B$77,Nutrients!$DR$77,Nutrients!$DR$78)))))*AB$8))/2000)","v":0.15356014590069281},null,{"$f":"((SUMPRODUCT(AD$9:AD$229,Nutrients!$DR$8:$DR$228)+(IF($A$7=Nutrients!$B$8,Nutrients!$DR$8,Nutrients!$DR$9)*AD$7)+(((IF($A$8=Nutrients!$B$79,Nutrients!$DR$79,(IF($A$8=Nutrients!$B$77,Nutrients!$DR$77,Nutrients!$DR$78)))))*AD$8))/2000)","v":0.28938338707198907},{"$f":"((SUMPRODUCT(AE$9:AE$229,Nutrients!$DR$8:$DR$228)+(IF($A$7=Nutrients!$B$8,Nutrients!$DR$8,Nutrients!$DR$9)*AE$7)+(((IF($A$8=Nutrients!$B$79,Nutrients!$DR$79,(IF($A$8=Nutrients!$B$77,Nutrients!$DR$77,Nutrients!$DR$78)))))*AE$8))/2000)","v":0.25008677181643718},{"$f":"((SUMPRODUCT(AF$9:AF$229,Nutrients!$DR$8:$DR$228)+(IF($A$7=Nutrients!$B$8,Nutrients!$DR$8,Nutrients!$DR$9)*AF$7)+(((IF($A$8=Nutrients!$B$79,Nutrients!$DR$79,(IF($A$8=Nutrients!$B$77,Nutrients!$DR$77,Nutrients!$DR$78)))))*AF$8))/2000)","v":0.20962149566841329},{"$f":"((SUMPRODUCT(AG$9:AG$229,Nutrients!$DR$8:$DR$228)+(IF($A$7=Nutrients!$B$8,Nutrients!$DR$8,Nutrients!$DR$9)*AG$7)+(((IF($A$8=Nutrients!$B$79,Nutrients!$DR$79,(IF($A$8=Nutrients!$B$77,Nutrients!$DR$77,Nutrients!$DR$78)))))*AG$8))/2000)","v":0.18044036582387613},{"$f":"((SUMPRODUCT(AH$9:AH$229,Nutrients!$DR$8:$DR$228)+(IF($A$7=Nutrients!$B$8,Nutrients!$DR$8,Nutrients!$DR$9)*AH$7)+(((IF($A$8=Nutrients!$B$79,Nutrients!$DR$79,(IF($A$8=Nutrients!$B$77,Nutrients!$DR$77,Nutrients!$DR$78)))))*AH$8))/2000)","v":0.17012944236266575},{"$f":"((SUMPRODUCT(AI$9:AI$229,Nutrients!$DR$8:$DR$228)+(IF($A$7=Nutrients!$B$8,Nutrients!$DR$8,Nutrients!$DR$9)*AI$7)+(((IF($A$8=Nutrients!$B$79,Nutrients!$DR$79,(IF($A$8=Nutrients!$B$77,Nutrients!$DR$77,Nutrients!$DR$78)))))*AI$8))/2000)","v":0.16616012310206069},null,{"$f":"((SUMPRODUCT(AK$9:AK$229,Nutrients!$DR$8:$DR$228)+(IF($A$7=Nutrients!$B$8,Nutrients!$DR$8,Nutrients!$DR$9)*AK$7)+(((IF($A$8=Nutrients!$B$79,Nutrients!$DR$79,(IF($A$8=Nutrients!$B$77,Nutrients!$DR$77,Nutrients!$DR$78)))))*AK$8))/2000)","v":0.28975631887698911},{"$f":"((SUMPRODUCT(AL$9:AL$229,Nutrients!$DR$8:$DR$228)+(IF($A$7=Nutrients!$B$8,Nutrients!$DR$8,Nutrients!$DR$9)*AL$7)+(((IF($A$8=Nutrients!$B$79,Nutrients!$DR$79,(IF($A$8=Nutrients!$B$77,Nutrients!$DR$77,Nutrients!$DR$78)))))*AL$8))/2000)","v":0.25045829480377951},{"$f":"((SUMPRODUCT(AM$9:AM$229,Nutrients!$DR$8:$DR$228)+(IF($A$7=Nutrients!$B$8,Nutrients!$DR$8,Nutrients!$DR$9)*AM$7)+(((IF($A$8=Nutrients!$B$79,Nutrients!$DR$79,(IF($A$8=Nutrients!$B$77,Nutrients!$DR$77,Nutrients!$DR$78)))))*AM$8))/2000)","v":0.20999508065995354},{"$f":"((SUMPRODUCT(AN$9:AN$229,Nutrients!$DR$8:$DR$228)+(IF($A$7=Nutrients!$B$8,Nutrients!$DR$8,Nutrients!$DR$9)*AN$7)+(((IF($A$8=Nutrients!$B$79,Nutrients!$DR$79,(IF($A$8=Nutrients!$B$77,Nutrients!$DR$77,Nutrients!$DR$78)))))*AN$8))/2000)","v":0.18988432468136096},{"$f":"((SUMPRODUCT(AO$9:AO$229,Nutrients!$DR$8:$DR$228)+(IF($A$7=Nutrients!$B$8,Nutrients!$DR$8,Nutrients!$DR$9)*AO$7)+(((IF($A$8=Nutrients!$B$79,Nutrients!$DR$79,(IF($A$8=Nutrients!$B$77,Nutrients!$DR$77,Nutrients!$DR$78)))))*AO$8))/2000)","v":0.18272986909517275},{"$f":"((SUMPRODUCT(AP$9:AP$229,Nutrients!$DR$8:$DR$228)+(IF($A$7=Nutrients!$B$8,Nutrients!$DR$8,Nutrients!$DR$9)*AP$7)+(((IF($A$8=Nutrients!$B$79,Nutrients!$DR$79,(IF($A$8=Nutrients!$B$77,Nutrients!$DR$77,Nutrients!$DR$78)))))*AP$8))/2000)","v":0.17875993963602985},null,{"$f":"((SUMPRODUCT(AR$9:AR$229,Nutrients!$DR$8:$DR$228)+(IF($A$7=Nutrients!$B$8,Nutrients!$DR$8,Nutrients!$DR$9)*AR$7)+(((IF($A$8=Nutrients!$B$79,Nutrients!$DR$79,(IF($A$8=Nutrients!$B$77,Nutrients!$DR$77,Nutrients!$DR$78)))))*AR$8))/2000)","v":0.29012369163179702},{"$f":"((SUMPRODUCT(AS$9:AS$229,Nutrients!$DR$8:$DR$228)+(IF($A$7=Nutrients!$B$8,Nutrients!$DR$8,Nutrients!$DR$9)*AS$7)+(((IF($A$8=Nutrients!$B$79,Nutrients!$DR$79,(IF($A$8=Nutrients!$B$77,Nutrients!$DR$77,Nutrients!$DR$78)))))*AS$8))/2000)","v":0.25082898434559381},{"$f":"((SUMPRODUCT(AT$9:AT$229,Nutrients!$DR$8:$DR$228)+(IF($A$7=Nutrients!$B$8,Nutrients!$DR$8,Nutrients!$DR$9)*AT$7)+(((IF($A$8=Nutrients!$B$79,Nutrients!$DR$79,(IF($A$8=Nutrients!$B$77,Nutrients!$DR$77,Nutrients!$DR$78)))))*AT$8))/2000)","v":0.21094622056853898},{"$f":"((SUMPRODUCT(AU$9:AU$229,Nutrients!$DR$8:$DR$228)+(IF($A$7=Nutrients!$B$8,Nutrients!$DR$8,Nutrients!$DR$9)*AU$7)+(((IF($A$8=Nutrients!$B$79,Nutrients!$DR$79,(IF($A$8=Nutrients!$B$77,Nutrients!$DR$77,Nutrients!$DR$78)))))*AU$8))/2000)","v":0.20248488146998647},{"$f":"((SUMPRODUCT(AV$9:AV$229,Nutrients!$DR$8:$DR$228)+(IF($A$7=Nutrients!$B$8,Nutrients!$DR$8,Nutrients!$DR$9)*AV$7)+(((IF($A$8=Nutrients!$B$79,Nutrients!$DR$79,(IF($A$8=Nutrients!$B$77,Nutrients!$DR$77,Nutrients!$DR$78)))))*AV$8))/2000)","v":0.1953302798325279},{"$f":"((SUMPRODUCT(AW$9:AW$229,Nutrients!$DR$8:$DR$228)+(IF($A$7=Nutrients!$B$8,Nutrients!$DR$8,Nutrients!$DR$9)*AW$7)+(((IF($A$8=Nutrients!$B$79,Nutrients!$DR$79,(IF($A$8=Nutrients!$B$77,Nutrients!$DR$77,Nutrients!$DR$78)))))*AW$8))/2000)","v":0.19135974825002228}]
["Stand. Dig. P with phytase, %",{"$f":"B259+0.11","v":0.40000063647666451},0.35988069387487892,0.32060453785177029,0.29085065848336067,0.26971179439767601,0.25985099986346794,null,{"$f":"I259+0.11","v":0.40014809232506826},0.36085687289487001,0.32039974278228328,0.2912253489325991,0.27008645981230761,0.2602235825347205,null,{"$f":"P259+0.11","v":0.40052578331141758},0.36123183005655535,0.32077188856544558,0.29159827429370366,0.27046115395472281,0.26059752495283217,null,{"$f":"W259+0.11","v":0.39995668178300392},0.36065831986281893,0.32019914611745426,0.2910205630068694,0.26987846247779868,0.26356014590069282,null,{"$f":"AD259+0.11","v":0.39938338707198906},0.36008677181643717,0.3196214956684133,0.29044036582387611,0.28012944236266574,0.27616012310206067,null,{"$f":"AK259+0.11","v":0.39975631887698909},0.3604582948037795,0.31999508065995352,0.29988432468136095,0.29272986909517273,0.28875993963602986,null,{"$f":"AR259+0.11","v":0.40012369163179701},0.3608289843455938,0.320946220568539,0.31248488146998649,0.30533027983252792,0.30135974825002226]
["Ca:P",{"$f":"B254/B255","v":1.3203146685846132},1.3163186415313215,1.3468914379746515,1.3441772957085856,1.3289773113995034,1.3324500801018839,null,{"$f":"I254/I255","v":1.3223577442324317},1.3189699774114005,1.3490120255762561,1.3470498336475336,1.3333112816997457,1.3355512100403104,null,{"$f":"P254/P255","v":1.3243616088703729},1.3216540367797553,1.3513927724029093,1.3496556897116012,1.3360952348809283,1.3384561690289623,null,{"$f":"W254/W255","v":1.3272116046499811},1.3248410689069119,1.3550397114866901,1.3537155421548721,1.3404915699116697,1.3446888104728458,null,{"$f":"AD254/AD255","v":1.3301098810986212},1.3280264793479952,1.3587597870886361,1.3591976769068608,1.3500108555574402,1.3573603170094664,null,{"$f":"AK254/AK255","v":1.3320294469149694},1.3301633688790153,1.3611438508122751,1.3644897644887017,1.3617621236471467,1.3691277995751674,null,{"$f":"AR254/AR255","v":1.3339968766946273},1.3323094940796329,1.3641526037019485,1.3755424908517067,1.3727171726466441,1.3800825756186683]
["Ca:STTD P",{"$f":"B254/B260","v":1.7394731864174733},1.7393882664224269,1.790040346909656,1.7897511861126985,1.7685135744736544,1.770331325323067,null,{"$f":"I254/I260","v":1.7402281569503373},1.7400922212664098,1.7906273939297856,1.7905488064720849,1.7710524717081941,1.771077209410598,null,{"$f":"P254/P260","v":1.7407396745307142},{"$f":"Q254/Q260","v":1.7412577416035535},1.791015904559168,1.7909713682258248,1.7715230356345777,1.7715707995459296,null,{"$f":"W254/W260","v":1.7429430694914569},1.7437239291592328,1.7938784200875411,1.794152219803542,1.7749450405490406,1.7736059133086914,null,{"$f":"AD254/AD260","v":1.7451715833908215},1.7461881890561919,1.7967795407417382,1.7991724896320795,1.7743717763594851,1.7747480781473195,null,{"$f":"AK254/AK260","v":1.7455221195196597},1.7465829069365384,1.7971535370877374,1.7945714837565727,1.7753550444944202,1.7757970556264111,null,{"$f":"AR254/AR260","v":1.7458969422643476},1.7469809608936568,1.7977644105679353,1.7953773492557348,1.7762622219561162,1.776762371363233]
["Cost/ton",{"$f":"(SUMPRODUCT(B$9:B$229,Nutrients!$DX$8:$DX$228)+(IF($A$7=Nutrients!$B$8,Nutrients!$DX$8,Nutrients!$DX$9)*B$7)+(((IF($A$8=Nutrients!$B$79,Nutrients!$DX$79,(IF($A$8=Nutrients!$B$77,Nutrients!$DX$77,Nutrients!$DX$78)))))*B$8))","v":221.26773173804173},{"$f":"(SUMPRODUCT(C$9:C$229,Nutrients!$DX$8:$DX$228)+(IF($A$7=Nutrients!$B$8,Nutrients!$DX$8,Nutrients!$DX$9)*C$7)+(((IF($A$8=Nutrients!$B$79,Nutrients!$DX$79,(IF($A$8=Nutrients!$B$77,Nutrients!$DX$77,Nutrients!$DX$78)))))*C$8))","v":211.54330280629557},{"$f":"(SUMPRODUCT(D$9:D$229,Nutrients!$DX$8:$DX$228)+(IF($A$7=Nutrients!$B$8,Nutrients!$DX$8,Nutrients!$DX$9)*D$7)+(((IF($A$8=Nutrients!$B$79,Nutrients!$DX$79,(IF($A$8=Nutrients!$B$77,Nutrients!$DX$77,Nutrients!$DX$78)))))*D$8))","v":202.16843206547495},{"$f":"(SUMPRODUCT(E$9:E$229,Nutrients!$DX$8:$DX$228)+(IF($A$7=Nutrients!$B$8,Nutrients!$DX$8,Nutrients!$DX$9)*E$7)+(((IF($A$8=Nutrients!$B$79,Nutrients!$DX$79,(IF($A$8=Nutrients!$B$77,Nutrients!$DX$77,Nutrients!$DX$78)))))*E$8))","v":195.22426532952818},{"$f":"(SUMPRODUCT(F$9:F$229,Nutrients!$DX$8:$DX$228)+(IF($A$7=Nutrients!$B$8,Nutrients!$DX$8,Nutrients!$DX$9)*F$7)+(((IF($A$8=Nutrients!$B$79,Nutrients!$DX$79,(IF($A$8=Nutrients!$B$77,Nutrients!$DX$77,Nutrients!$DX$78)))))*F$8))","v":190.24981497998971},{"$f":"(SUMPRODUCT(G$9:G$229,Nutrients!$DX$8:$DX$228)+(IF($A$7=Nutrients!$B$8,Nutrients!$DX$8,Nutrients!$DX$9)*G$7)+(((IF($A$8=Nutrients!$B$79,Nutrients!$DX$79,(IF($A$8=Nutrients!$B$77,Nutrients!$DX$77,Nutrients!$DX$78)))))*G$8))","v":187.92809138061614},null,{"$f":"(SUMPRODUCT(I$9:I$229,Nutrients!$DX$8:$DX$228)+(IF($A$7=Nutrients!$B$8,Nutrients!$DX$8,Nutrients!$DX$9)*I$7)+(((IF($A$8=Nutrients!$B$79,Nutrients!$DX$79,(IF($A$8=Nutrients!$B$77,Nutrients!$DX$77,Nutrients!$DX$78)))))*I$8))","v":222.98298841495034},{"$f":"(SUMPRODUCT(J$9:J$229,Nutrients!$DX$8:$DX$228)+(IF($A$7=Nutrients!$B$8,Nutrients!$DX$8,Nutrients!$DX$9)*J$7)+(((IF($A$8=Nutrients!$B$79,Nutrients!$DX$79,(IF($A$8=Nutrients!$B$77,Nutrients!$DX$77,Nutrients!$DX$78)))))*J$8))","v":213.40886111904834},{"$f":"(SUMPRODUCT(K$9:K$229,Nutrients!$DX$8:$DX$228)+(IF($A$7=Nutrients!$B$8,Nutrients!$DX$8,Nutrients!$DX$9)*K$7)+(((IF($A$8=Nutrients!$B$79,Nutrients!$DX$79,(IF($A$8=Nutrients!$B$77,Nutrients!$DX$77,Nutrients!$DX$78)))))*K$8))","v":204.14329773141259},{"$f":"(SUMPRODUCT(L$9:L$229,Nutrients!$DX$8:$DX$228)+(IF($A$7=Nutrients!$B$8,Nutrients!$DX$8,Nutrients!$DX$9)*L$7)+(((IF($A$8=Nutrients!$B$79,Nutrients!$DX$79,(IF($A$8=Nutrients!$B$77,Nutrients!$DX$77,Nutrients!$DX$78)))))*L$8))","v":197.14946765440774},{"$f":"(SUMPRODUCT(M$9:M$229,Nutrients!$DX$8:$DX$228)+(IF($A$7=Nutrients!$B$8,Nutrients!$DX$8,Nutrients!$DX$9)*M$7)+(((IF($A$8=Nutrients!$B$79,Nutrients!$DX$79,(IF($A$8=Nutrients!$B$77,Nutrients!$DX$77,Nutrients!$DX$78)))))*M$8))","v":192.10045605409829},{"$f":"(SUMPRODUCT(N$9:N$229,Nutrients!$DX$8:$DX$228)+(IF($A$7=Nutrients!$B$8,Nutrients!$DX$8,Nutrients!$DX$9)*N$7)+(((IF($A$8=Nutrients!$B$79,Nutrients!$DX$79,(IF($A$8=Nutrients!$B$77,Nutrients!$DX$77,Nutrients!$DX$78)))))*N$8))","v":189.94839260083381},null,{"$f":"(SUMPRODUCT(P$9:P$229,Nutrients!$DX$8:$DX$228)+(IF($A$7=Nutrients!$B$8,Nutrients!$DX$8,Nutrients!$DX$9)*P$7)+(((IF($A$8=Nutrients!$B$79,Nutrients!$DX$79,(IF($A$8=Nutrients!$B$77,Nutrients!$DX$77,Nutrients!$DX$78)))))*P$8))","v":224.84626453349327},{"$f":"(SUMPRODUCT(Q$9:Q$229,Nutrients!$DX$8:$DX$228)+(IF($A$7=Nutrients!$B$8,Nutrients!$DX$8,Nutrients!$DX$9)*Q$7)+(((IF($A$8=Nutrients!$B$79,Nutrients!$DX$79,(IF($A$8=Nutrients!$B$77,Nutrients!$DX$77,Nutrients!$DX$78)))))*Q$8))","v":215.35260787079329},{"$f":"(SUMPRODUCT(R$9:R$229,Nutrients!$DX$8:$DX$228)+(IF($A$7=Nutrients!$B$8,Nutrients!$DX$8,Nutrients!$DX$9)*R$7)+(((IF($A$8=Nutrients!$B$79,Nutrients!$DX$79,(IF($A$8=Nutrients!$B$77,Nutrients!$DX$77,Nutrients!$DX$78)))))*R$8))","v":206.17290590790762},{"$f":"(SUMPRODUCT(S$9:S$229,Nutrients!$DX$8:$DX$228)+(IF($A$7=Nutrients!$B$8,Nutrients!$DX$8,Nutrients!$DX$9)*S$7)+(((IF($A$8=Nutrients!$B$79,Nutrients!$DX$79,(IF($A$8=Nutrients!$B$77,Nutrients!$DX$77,Nutrients!$DX$78)))))*S$8))","v":199.19797255248346},{"$f":"(SUMPRODUCT(T$9:T$229,Nutrients!$DX$8:$DX$228)+(IF($A$7=Nutrients!$B$8,Nutrients!$DX$8,Nutrients!$DX$9)*T$7)+(((IF($A$8=Nutrients!$B$79,Nutrients!$DX$79,(IF($A$8=Nutrients!$B$77,Nutrients!$DX$77,Nutrients!$DX$78)))))*T$8))","v":194.0515106615627},{"$f":"(SUMPRODUCT(U$9:U$229,Nutrients!$DX$8:$DX$228)+(IF($A$7=Nutrients!$B$8,Nutrients!$DX$8,Nutrients!$DX$9)*U$7)+(((IF($A$8=Nutrients!$B$79,Nutrients!$DX$79,(IF($A$8=Nutrients!$B$77,Nutrients!$DX$77,Nutrients!$DX$78)))))*U$8))","v":191.89217932670627},null,{"$f":"(SUMPRODUCT(W$9:W$229,Nutrients!$DX$8:$DX$228)+(IF($A$7=Nutrients!$B$8,Nutrients!$DX$8,Nutrients!$DX$9)*W$7)+(((IF($A$8=Nutrients!$B$79,Nutrients!$DX$79,(IF($A$8=Nutrients!$B$77,Nutrients!$DX$77,Nutrients!$DX$78)))))*W$8))","v":226.68237325563888},{"$f":"(SUMPRODUCT(X$9:X$229,Nutrients!$DX$8:$DX$228)+(IF($A$7=Nutrients!$B$8,Nutrients!$DX$8,Nutrients!$DX$9)*X$7)+(((IF($A$8=Nutrients!$B$79,Nutrients!$DX$79,(IF($A$8=Nutrients!$B$77,Nutrients!$DX$77,Nutrients!$DX$78)))))*X$8))","v":217.34035854218695},{"$f":"(SUMPRODUCT(Y$9:Y$229,Nutrients!$DX$8:$DX$228)+(IF($A$7=Nutrients!$B$8,Nutrients!$DX$8,Nutrients!$DX$9)*Y$7)+(((IF($A$8=Nutrients!$B$79,Nutrients!$DX$79,(IF($A$8=Nutrients!$B$77,Nutrients!$DX$77,Nutrients!$DX$78)))))*Y$8))","v":208.18429007658008},{"$f":"(SUMPRODUCT(Z$9:Z$229,Nutrients!$DX$8:$DX$228)+(IF($A$7=Nutrients!$B$8,Nutrients!$DX$8,Nutrients!$DX$9)*Z$7)+(((IF($A$8=Nutrients!$B$79,Nutrients!$DX$79,(IF($A$8=Nutrients!$B$77,Nutrients!$DX$77,Nutrients!$DX$78)))))*Z$8))","v":201.38333503514014},{"$f":"(SUMPRODUCT(AA$9:AA$229,Nutrients!$DX$8:$DX$228)+(IF($A$7=Nutrients!$B$8,Nutrients!$DX$8,Nutrients!$DX$9)*AA$7)+(((IF($A$8=Nutrients!$B$79,Nutrients!$DX$79,(IF($A$8=Nutrients!$B$77,Nutrients!$DX$77,Nutrients!$DX$78)))))*AA$8))","v":196.45354630646318},{"$f":"(SUMPRODUCT(AB$9:AB$229,Nutrients!$DX$8:$DX$228)+(IF($A$7=Nutrients!$B$8,Nutrients!$DX$8,Nutrients!$DX$9)*AB$7)+(((IF($A$8=Nutrients!$B$79,Nutrients!$DX$79,(IF($A$8=Nutrients!$B$77,Nutrients!$DX$77,Nutrients!$DX$78)))))*AB$8))","v":194.46396989291478},null,{"$f":"(SUMPRODUCT(AD$9:AD$229,Nutrients!$DX$8:$DX$228)+(IF($A$7=Nutrients!$B$8,Nutrients!$DX$8,Nutrients!$DX$9)*AD$7)+(((IF($A$8=Nutrients!$B$79,Nutrients!$DX$79,(IF($A$8=Nutrients!$B$77,Nutrients!$DX$77,Nutrients!$DX$78)))))*AD$8))","v":228.62650434431652},{"$f":"(SUMPRODUCT(AE$9:AE$229,Nutrients!$DX$8:$DX$228)+(IF($A$7=Nutrients!$B$8,Nutrients!$DX$8,Nutrients!$DX$9)*AE$7)+(((IF($A$8=Nutrients!$B$79,Nutrients!$DX$79,(IF($A$8=Nutrients!$B$77,Nutrients!$DX$77,Nutrients!$DX$78)))))*AE$8))","v":219.24641855773618},{"$f":"(SUMPRODUCT(AF$9:AF$229,Nutrients!$DX$8:$DX$228)+(IF($A$7=Nutrients!$B$8,Nutrients!$DX$8,Nutrients!$DX$9)*AF$7)+(((IF($A$8=Nutrients!$B$79,Nutrients!$DX$79,(IF($A$8=Nutrients!$B$77,Nutrients!$DX$77,Nutrients!$DX$78)))))*AF$8))","v":210.36908240184468},{"$f":"(SUMPRODUCT(AG$9:AG$229,Nutrients!$DX$8:$DX$228)+(IF($A$7=Nutrients!$B$8,Nutrients!$DX$8,Nutrients!$DX$9)*AG$7)+(((IF($A$8=Nutrients!$B$79,Nutrients!$DX$79,(IF($A$8=Nutrients!$B$77,Nutrients!$DX$77,Nutrients!$DX$78)))))*AG$8))","v":203.64004596167302},{"$f":"(SUMPRODUCT(AH$9:AH$229,Nutrients!$DX$8:$DX$228)+(IF($A$7=Nutrients!$B$8,Nutrients!$DX$8,Nutrients!$DX$9)*AH$7)+(((IF($A$8=Nutrients!$B$79,Nutrients!$DX$79,(IF($A$8=Nutrients!$B$77,Nutrients!$DX$77,Nutrients!$DX$78)))))*AH$8))","v":199.39956894727004},{"$f":"(SUMPRODUCT(AI$9:AI$229,Nutrients!$DX$8:$DX$228)+(IF($A$7=Nutrients!$B$8,Nutrients!$DX$8,Nutrients!$DX$9)*AI$7)+(((IF($A$8=Nutrients!$B$79,Nutrients!$DX$79,(IF($A$8=Nutrients!$B$77,Nutrients!$DX$77,Nutrients!$DX$78)))))*AI$8))","v":197.56364871994049},null,{"$f":"(SUMPRODUCT(AK$9:AK$229,Nutrients!$DX$8:$DX$228)+(IF($A$7=Nutrients!$B$8,Nutrients!$DX$8,Nutrients!$DX$9)*AK$7)+(((IF($A$8=Nutrients!$B$79,Nutrients!$DX$79,(IF($A$8=Nutrients!$B$77,Nutrients!$DX$77,Nutrients!$DX$78)))))*AK$8))","v":230.61023122079018},{"$f":"(SUMPRODUCT(AL$9:AL$229,Nutrients!$DX$8:$DX$228)+(IF($A$7=Nutrients!$B$8,Nutrients!$DX$8,Nutrients!$DX$9)*AL$7)+(((IF($A$8=Nutrients!$B$79,Nutrients!$DX$79,(IF($A$8=Nutrients!$B$77,Nutrients!$DX$77,Nutrients!$DX$78)))))*AL$8))","v":221.28480281930928},{"$f":"(SUMPRODUCT(AM$9:AM$229,Nutrients!$DX$8:$DX$228)+(IF($A$7=Nutrients!$B$8,Nutrients!$DX$8,Nutrients!$DX$9)*AM$7)+(((IF($A$8=Nutrients!$B$79,Nutrients!$DX$79,(IF($A$8=Nutrients!$B$77,Nutrients!$DX$77,Nutrients!$DX$78)))))*AM$8))","v":212.41476612880837},{"$f":"(SUMPRODUCT(AN$9:AN$229,Nutrients!$DX$8:$DX$228)+(IF($A$7=Nutrients!$B$8,Nutrients!$DX$8,Nutrients!$DX$9)*AN$7)+(((IF($A$8=Nutrients!$B$79,Nutrients!$DX$79,(IF($A$8=Nutrients!$B$77,Nutrients!$DX$77,Nutrients!$DX$78)))))*AN$8))","v":206.50844110970621},{"$f":"(SUMPRODUCT(AO$9:AO$229,Nutrients!$DX$8:$DX$228)+(IF($A$7=Nutrients!$B$8,Nutrients!$DX$8,Nutrients!$DX$9)*AO$7)+(((IF($A$8=Nutrients!$B$79,Nutrients!$DX$79,(IF($A$8=Nutrients!$B$77,Nutrients!$DX$77,Nutrients!$DX$78)))))*AO$8))","v":202.49535190626858},{"$f":"(SUMPRODUCT(AP$9:AP$229,Nutrients!$DX$8:$DX$228)+(IF($A$7=Nutrients!$B$8,Nutrients!$DX$8,Nutrients!$DX$9)*AP$7)+(((IF($A$8=Nutrients!$B$79,Nutrients!$DX$79,(IF($A$8=Nutrients!$B$77,Nutrients!$DX$77,Nutrients!$DX$78)))))*AP$8))","v":200.66480401398059},null,{"$f":"(SUMPRODUCT(AR$9:AR$229,Nutrients!$DX$8:$DX$228)+(IF($A$7=Nutrients!$B$8,Nutrients!$DX$8,Nutrients!$DX$9)*AR$7)+(((IF($A$8=Nutrients!$B$79,Nutrients!$DX$79,(IF($A$8=Nutrients!$B$77,Nutrients!$DX$77,Nutrients!$DX$78)))))*AR$8))","v":232.668799124987},{"$f":"(SUMPRODUCT(AS$9:AS$229,Nutrients!$DX$8:$DX$228)+(IF($A$7=Nutrients!$B$8,Nutrients!$DX$8,Nutrients!$DX$9)*AS$7)+(((IF($A$8=Nutrients!$B$79,Nutrients!$DX$79,(IF($A$8=Nutrients!$B$77,Nutrients!$DX$77,Nutrients!$DX$78)))))*AS$8))","v":223.4250681462434},{"$f":"(SUMPRODUCT(AT$9:AT$229,Nutrients!$DX$8:$DX$228)+(IF($A$7=Nutrients!$B$8,Nutrients!$DX$8,Nutrients!$DX$9)*AT$7)+(((IF($A$8=Nutrients!$B$79,Nutrients!$DX$79,(IF($A$8=Nutrients!$B$77,Nutrients!$DX$77,Nutrients!$DX$78)))))*AT$8))","v":214.86073951707016},{"$f":"(SUMPRODUCT(AU$9:AU$229,Nutrients!$DX$8:$DX$228)+(IF($A$7=Nutrients!$B$8,Nutrients!$DX$8,Nutrients!$DX$9)*AU$7)+(((IF($A$8=Nutrients!$B$79,Nutrients!$DX$79,(IF($A$8=Nutrients!$B$77,Nutrients!$DX$77,Nutrients!$DX$78)))))*AU$8))","v":209.5989540111882},{"$f":"(SUMPRODUCT(AV$9:AV$229,Nutrients!$DX$8:$DX$228)+(IF($A$7=Nutrients!$B$8,Nutrients!$DX$8,Nutrients!$DX$9)*AV$7)+(((IF($A$8=Nutrients!$B$79,Nutrients!$DX$79,(IF($A$8=Nutrients!$B$77,Nutrients!$DX$77,Nutrients!$DX$78)))))*AV$8))","v":205.59125667011466},{"$f":"(SUMPRODUCT(AW$9:AW$229,Nutrients!$DX$8:$DX$228)+(IF($A$7=Nutrients!$B$8,Nutrients!$DX$8,Nutrients!$DX$9)*AW$7)+(((IF($A$8=Nutrients!$B$79,Nutrients!$DX$79,(IF($A$8=Nutrients!$B$77,Nutrients!$DX$77,Nutrients!$DX$78)))))*AW$8))","v":203.76601117723871}]
["Cost with processing",{"$f":"IF(B$5=\"\",\"\",B263+Nutrients!$DV$5)","v":233.26773173804173},{"$f":"IF(C$5=\"\",\"\",C263+Nutrients!$DV$5)","v":223.54330280629557},{"$f":"IF(D$5=\"\",\"\",D263+Nutrients!$DV$5)","v":214.16843206547495},{"$f":"IF(E$5=\"\",\"\",E263+Nutrients!$DV$5)","v":207.22426532952818},{"$f":"IF(F$5=\"\",\"\",F263+Nutrients!$DV$5)","v":202.24981497998971},{"$f":"IF(G$5=\"\",\"\",G263+Nutrients!$DV$5)","v":199.92809138061614},null,{"$f":"IF(I$5=\"\",\"\",I263+Nutrients!$DV$5)","v":234.98298841495034},{"$f":"IF(J$5=\"\",\"\",J263+Nutrients!$DV$5)","v":225.40886111904834},{"$f":"IF(K$5=\"\",\"\",K263+Nutrients!$DV$5)","v":216.14329773141259},{"$f":"IF(L$5=\"\",\"\",L263+Nutrients!$DV$5)","v":209.14946765440774},{"$f":"IF(M$5=\"\",\"\",M263+Nutrients!$DV$5)","v":204.10045605409829},{"$f":"IF(N$5=\"\",\"\",N263+Nutrients!$DV$5)","v":201.94839260083381},null,{"$f":"IF(P$5=\"\",\"\",P263+Nutrients!$DV$5)","v":236.84626453349327},{"$f":"IF(Q$5=\"\",\"\",Q263+Nutrients!$DV$5)","v":227.35260787079329},{"$f":"IF(R$5=\"\",\"\",R263+Nutrients!$DV$5)","v":218.17290590790762},{"$f":"IF(S$5=\"\",\"\",S263+Nutrients!$DV$5)","v":211.19797255248346},{"$f":"IF(T$5=\"\",\"\",T263+Nutrients!$DV$5)","v":206.0515106615627},{"$f":"IF(U$5=\"\",\"\",U263+Nutrients!$DV$5)","v":203.89217932670627},null,{"$f":"IF(W$5=\"\",\"\",W263+Nutrients!$DV$5)","v":238.68237325563888},{"$f":"IF(X$5=\"\",\"\",X263+Nutrients!$DV$5)","v":229.34035854218695},{"$f":"IF(Y$5=\"\",\"\",Y263+Nutrients!$DV$5)","v":220.18429007658008},{"$f":"IF(Z$5=\"\",\"\",Z263+Nutrients!$DV$5)","v":213.38333503514014},{"$f":"IF(AA$5=\"\",\"\",AA263+Nutrients!$DV$5)","v":208.45354630646318},{"$f":"IF(AB$5=\"\",\"\",AB263+Nutrients!$DV$5)","v":206.46396989291478},null,{"$f":"IF(AD$5=\"\",\"\",AD263+Nutrients!$DV$5)","v":240.62650434431652},{"$f":"IF(AE$5=\"\",\"\",AE263+Nutrients!$DV$5)","v":231.24641855773618},{"$f":"IF(AF$5=\"\",\"\",AF263+Nutrients!$DV$5)","v":222.36908240184468},{"$f":"IF(AG$5=\"\",\"\",AG263+Nutrients!$DV$5)","v":215.64004596167302},{"$f":"IF(AH$5=\"\",\"\",AH263+Nutrients!$DV$5)","v":211.39956894727004},{"$f":"IF(AI$5=\"\",\"\",AI263+Nutrients!$DV$5)","v":209.56364871994049},null,{"$f":"IF(AK$5=\"\",\"\",AK263+Nutrients!$DV$5)","v":242.61023122079018},{"$f":"IF(AL$5=\"\",\"\",AL263+Nutrients!$DV$5)","v":233.28480281930928},{"$f":"IF(AM$5=\"\",\"\",AM263+Nutrients!$DV$5)","v":224.41476612880837},{"$f":"IF(AN$5=\"\",\"\",AN263+Nutrients!$DV$5)","v":218.50844110970621},{"$f":"IF(AO$5=\"\",\"\",AO263+Nutrients!$DV$5)","v":214.49535190626858},{"$f":"IF(AP$5=\"\",\"\",AP263+Nutrients!$DV$5)","v":212.66480401398059},null,{"$f":"IF(AR$5=\"\",\"\",AR263+Nutrients!$DV$5)","v":244.668799124987},{"$f":"IF(AS$5=\"\",\"\",AS263+Nutrients!$DV$5)","v":235.4250681462434},{"$f":"IF(AT$5=\"\",\"\",AT263+Nutrients!$DV$5)","v":226.86073951707016},{"$f":"IF(AU$5=\"\",\"\",AU263+Nutrients!$DV$5)","v":221.5989540111882},{"$f":"IF(AV$5=\"\",\"\",AV263+Nutrients!$DV$5)","v":217.59125667011466},{"$f":"IF(AW$5=\"\",\"\",AW263+Nutrients!$DV$5)","v":215.76601117723871}]
["Feed budget, lb/pig- adjusted for gain ",64.670241098095005,73.763156713761802,95.43493291654417,107.31139412884363,119.18785534114284,148.28241980161249,{"$f":"SUM(B265:G265)","v":608.65},{"$f":"($B$265*$B$250/I250)-($B$265*$B$250/I250)/(I6-I5)*I268","v":64.465912384557143},{"$f":"($C$265*$C$250/J250)-($C$265*$C$250/J250)/(J6-J5)*J268","v":73.596044001409354},{"$f":"($D$265*$D$250/K250)-($D$265*$D$250/K250)/(K6-K5)*K268","v":95.20373229842302},{"$f":"($E$265*$E$250/L250)-($E$265*$E$250/L250)/(L6-L5)*L268","v":106.92710201486175},{"$f":"($F$265*$F$250/M250)-($F$265*$F$250/M250)/(M6-M5)*M268","v":118.50594294109828},{"$f":"($G$265*$G$250/N250)-($G$265*$G$250/N250)/(N6-N5)*N268","v":146.85016558116206},{"$f":"SUM(I265:N265)","v":605.54889922151165},{"$f":"($B$265*$B$250/P250)-($B$265*$B$250/P250)/(P6-P5)*P268","v":64.259631818774395},{"$f":"($C$265*$C$250/Q250)-($C$265*$C$250/Q250)/(Q6-Q5)*Q268","v":73.42872545565919},{"$f":"($D$265*$D$250/R250)-($D$265*$D$250/R250)/(R6-R5)*R268","v":94.968497810561615},{"$f":"($E$265*$E$250/S250)-($E$265*$E$250/S250)/(S6-S5)*S268","v":106.54143886136792},{"$f":"($F$265*$F$250/T250)-($F$265*$F$250/T250)/(T6-T5)*T268","v":117.81914186833214},{"$f":"($G$265*$G$250/U250)-($G$265*$G$250/U250)/(U6-U5)*U268","v":145.42532233851915},{"$f":"SUM(P265:U265)","v":602.44275815321453},{"$f":"($B$265*$B$250/W250)-($B$265*$B$250/W250)/(W6-W5)*W268","v":64.049146556445066},{"$f":"($C$265*$C$250/X250)-($C$265*$C$250/X250)/(X6-X5)*X268","v":73.254976555764728},{"$f":"($D$265*$D$250/Y250)-($D$265*$D$250/Y250)/(Y6-Y5)*Y268","v":94.731453814830147},{"$f":"($E$265*$E$250/Z250)-($E$265*$E$250/Z250)/(Z6-Z5)*Z268","v":106.14503448905268},{"$f":"($F$265*$F$250/AA250)-($F$265*$F$250/AA250)/(AA6-AA5)*AA268","v":117.10226289967412},{"$f":"($G$265*$G$250/AB250)-($G$265*$G$250/AB250)/(AB6-AB5)*AB268","v":143.94953036688352},{"$f":"SUM(W265:AB265)","v":599.23240468265021},{"$f":"($B$265*$B$250/AD250)-($B$265*$B$250/AD250)/(AD6-AD5)*AD268","v":63.83991765168274},{"$f":"($C$265*$C$250/AE250)-($C$265*$C$250/AE250)/(AE6-AE5)*AE268","v":73.083436114682044},{"$f":"($D$265*$D$250/AF250)-($D$265*$D$250/AF250)/(AF6-AF5)*AF268","v":94.491129265849466},{"$f":"($E$265*$E$250/AG250)-($E$265*$E$250/AG250)/(AG6-AG5)*AG268","v":105.74895393967286},{"$f":"($F$265*$F$250/AH250)-($F$265*$F$250/AH250)/(AH6-AH5)*AH268","v":116.40199548201855},{"$f":"($G$265*$G$250/AI250)-($G$265*$G$250/AI250)/(AI6-AI5)*AI268","v":142.49623075898441},{"$f":"SUM(AD265:AI265)","v":596.06166321289004},{"$f":"($B$265*$B$250/AK250)-($B$265*$B$250/AK250)/(AK6-AK5)*AK268","v":63.632580396376824},{"$f":"($C$265*$C$250/AL250)-($C$265*$C$250/AL250)/(AL6-AL5)*AL268","v":72.91296790783386},{"$f":"($D$265*$D$250/AM250)-($D$265*$D$250/AM250)/(AM6-AM5)*AM268","v":94.258361191903319},{"$f":"($E$265*$E$250/AN250)-($E$265*$E$250/AN250)/(AN6-AN5)*AN268","v":105.36491487288016},{"$f":"($F$265*$F$250/AO250)-($F$265*$F$250/AO250)/(AO6-AO5)*AO268","v":115.70124110285134},{"$f":"($G$265*$G$250/AP250)-($G$265*$G$250/AP250)/(AP6-AP5)*AP268","v":141.04284427217061},{"$f":"SUM(AK265:AP265)","v":592.91290974401613},{"$f":"($B$265*$B$250/AR250)-($B$265*$B$250/AR250)/(AR6-AR5)*AR268","v":63.418999132303121},{"$f":"($C$265*$C$250/AS250)-($C$265*$C$250/AS250)/(AS6-AS5)*AS268","v":72.746437384290246},{"$f":"($D$265*$D$250/AT250)-($D$265*$D$250/AT250)/(AT6-AT5)*AT268","v":94.02617856200709},{"$f":"($E$265*$E$250/AU250)-($E$265*$E$250/AU250)/(AU6-AU5)*AU268","v":104.97518638981782},{"$f":"($F$265*$F$250/AV250)-($F$265*$F$250/AV250)/(AV6-AV5)*AV268","v":115.00047795090505},{"$f":"($G$265*$G$250/AW250)-($G$265*$G$250/AW250)/(AW6-AW5)*AW268","v":139.58951247324353},{"$f":"SUM(AR265:AW265)","v":589.75679189256687}]
["Feed cost, $/pig",{"$f":"IF(B$265=\"\",\"\",B265*B264/2000)","v":7.5427402259524534},8.244629838606345,10.219574973505026,11.118762404918533,12.052860845303957,14.822910588117834,{"$f":"SUM(B266:G266)","v":64.00147887640415},{"$f":"IF(I$265=\"\",\"\",I265*I264/2000)","v":7.5741963715097969},8.2946002306125273,10.288824327659873,11.181873232118441,12.093558499699554,14.828077446140984,{"$f":"SUM(I266:N266)","v":64.261130107741181},{"$f":"IF(P$265=\"\",\"\",P265*P264/2000)","v":7.6098268782871612},8.3471061124863102,10.359776568519495,11.250667940172638,12.138406083409404,14.825542950444706,{"$f":"SUM(P266:U266)","v":64.531326533319714},{"$f":"IF(W$265=\"\",\"\",W265*W264/2000)","v":7.6437011525452698},8.4001612941492905,10.429188953070355,11.324790728347017,12.205190990974423,14.86019575188373,{"$f":"SUM(W266:AB266)","v":64.86322887097009},{"$f":"IF(AD$265=\"\",\"\",AD265*AD264/2000)","v":7.6807881110767227},8.450141428706667,10.505952854980519,11.40185464397495,12.303665834750397,14.931015023345694,{"$f":"SUM(AD266:AI266)","v":65.273417896834957},{"$f":"IF(AK$265=\"\",\"\",AK265*AK264/2000)","v":7.7189575215702506},8.5047436706748236,10.576484041282866,11.511561648264971,12.408689213174062,14.997424417357774,{"$f":"SUM(AK266:AP266)","v":65.717860512324748},{"$f":"IF(AR$265=\"\",\"\",AR265*AR264/2000)","v":7.7583251797045989},8.5631674892964806,10.665424201270509,11.631195750556575,12.51154925750062,15.059336154263583,{"$f":"SUM(AR266:AW266)","v":66.188998032592366}]
["ADG, lb",{"$f":"B342*0.00220462","v":1.6321378734194845},1.9015014314603687,2.0832697080984475,2.1697909739378729,2.165030725567227,2.0548911695876653,null,{"$f":"I342*0.00220462","v":1.6266189298063185},1.8969075195205205,2.077992863816398,2.1618542844514339,2.152484153577106,2.0349220304281577,null,{"$f":"P342*0.00220462","v":1.6211979884286469},1.8923762471764884,2.0727409155317003,2.1538789468597117,2.1398403867341065,2.0150498544184057,null,{"$f":"W342*0.00220462","v":1.6157996318554884},1.8879008776630013,2.0674984498557265,2.1459234202239537,2.1268932516241397,1.9945761974383227,null,{"$f":"AD342*0.00220462","v":1.610508159253081},1.8834025510806229,2.062306619341173,2.1379406451689378,2.1140793814937138,1.9744705203910591,null,{"$f":"AK342*0.00220462","v":1.6051848288081365},1.8789290054923611,2.057049342344869,2.1299362381816995,2.1013649980733211,1.9543705351430742,null,{"$f":"AR342*0.00220462","v":1.5999111105816655},1.8745080983063227,2.0518759195263487,2.1220305449495052,2.0886509026072342,1.9342707244978239]
["Change in gain, lb",null,null,null,null,null,null,null,{"$f":"($B$6-$B$5)-(($B$6-$B$5)/$B$267)*I267","v":0.11834969925433825},{"$f":"($C$6-$C$5)-(($C$6-$C$5)/$C$267)*J267","v":8.4557873706778253E-2},{"$f":"($D$6-$D$5)-(($D$6-$D$5)/$D$267)*K267","v":0.10131850449389646},{"$f":"($E$6-$E$5)-(($E$6-$E$5)/$E$267)*L267","v":0.14631251732115658},{"$f":"($F$6-$F$5)-(($F$6-$F$5)/$F$267)*M267","v":0.23180404493952267},{"$f":"($G$6-$G$5)-(($G$6-$G$5)/$G$267)*N267","v":0.43730357864068736},null,{"$f":"($B$6-$B$5)-(($B$6-$B$5)/$B$267)*P267","v":0.23459781242445388},{"$f":"($C$6-$C$5)-(($C$6-$C$5)/$C$267)*Q267","v":0.16796277123521719},{"$f":"($D$6-$D$5)-(($D$6-$D$5)/$D$267)*R267","v":0.20215899123993353},{"$f":"($E$6-$E$5)-(($E$6-$E$5)/$E$267)*S267","v":0.29333751074248937},{"$f":"($F$6-$F$5)-(($F$6-$F$5)/$F$267)*T267","v":0.46540381225343452},{"$f":"($G$6-$G$5)-(($G$6-$G$5)/$G$267)*U267","v":0.8724837641773675},null,{"$f":"($B$6-$B$5)-(($B$6-$B$5)/$B$267)*W267","v":0.35036161102113539},{"$f":"($C$6-$C$5)-(($C$6-$C$5)/$C$267)*X267","v":0.2503386929045206},{"$f":"($D$6-$D$5)-(($D$6-$D$5)/$D$267)*Y267","v":0.30281740633797227},{"$f":"($E$6-$E$5)-(($E$6-$E$5)/$E$267)*Z267","v":0.43999729007266097},{"$f":"($F$6-$F$5)-(($F$6-$F$5)/$F$267)*AA267","v":0.70460845645681047},{"$f":"($G$6-$G$5)-(($G$6-$G$5)/$G$267)*AB267","v":1.3208357634166319},null,{"$f":"($B$6-$B$5)-(($B$6-$B$5)/$B$267)*AD267","v":0.46383336123317065},{"$f":"($C$6-$C$5)-(($C$6-$C$5)/$C$267)*AE267","v":0.33313717403020604},{"$f":"($D$6-$D$5)-(($D$6-$D$5)/$D$267)*AF267","v":0.4025035966448911},{"$f":"($E$6-$E$5)-(($E$6-$E$5)/$E$267)*AG267","v":0.58715939279867513},{"$f":"($F$6-$F$5)-(($F$6-$F$5)/$F$267)*AH267","v":0.94135096507998384},{"$f":"($G$6-$G$5)-(($G$6-$G$5)/$G$267)*AI267","v":1.7611293811600959},null,{"$f":"($B$6-$B$5)-(($B$6-$B$5)/$B$267)*AK267","v":0.57798827952001375},{"$f":"($C$6-$C$5)-(($C$6-$C$5)/$C$267)*AL267","v":0.41547952360652118},{"$f":"($D$6-$D$5)-(($D$6-$D$5)/$D$267)*AM267","v":0.50344639777845401},{"$f":"($E$6-$E$5)-(($E$6-$E$5)/$E$267)*AN267","v":0.73472027923210703},{"$f":"($F$6-$F$5)-(($F$6-$F$5)/$F$267)*AO267","v":1.176255408148549},{"$f":"($G$6-$G$5)-(($G$6-$G$5)/$G$267)*AP267","v":2.2012983543621232},null,{"$f":"($B$6-$B$5)-(($B$6-$B$5)/$B$267)*AR267","v":0.69107930015773178},{"$f":"($C$6-$C$5)-(($C$6-$C$5)/$C$267)*AS267","v":0.49685298404746447},{"$f":"($D$6-$D$5)-(($D$6-$D$5)/$D$267)*AT267","v":0.60277914952747835},{"$f":"($E$6-$E$5)-(($E$6-$E$5)/$E$267)*AU267","v":0.88046138198628654},{"$f":"($F$6-$F$5)-(($F$6-$F$5)/$F$267)*AV267","v":1.4111545311206868},{"$f":"($G$6-$G$5)-(($G$6-$G$5)/$G$267)*AW267","v":2.6414635039441166}]
["Feed budget, lb/pig- adjusted for energy intake ",64.670241098095005,73.763156713761802,95.43493291654417,107.31139412884363,119.18785534114284,148.28241980161249,{"$f":"SUM(B269:G269)","v":608.65},{"$f":"($B$269*$B$250/I250)","v":64.684638312862944},{"$f":"($C$269*$C$250/J250)","v":73.774278175603101},{"$f":"($D$269*$D$250/K250)","v":95.44549216158542},{"$f":"($E$269*$E$250/L250)","v":107.31965724510111},{"$f":"($F$269*$F$250/M250)","v":119.19669987043351},{"$f":"($G$269*$G$250/N250)","v":148.29123867793811},{"$f":"SUM(I269:N269)","v":608.71200444352417},{"$f":"($B$269*$B$250/P250)","v":64.693257438019288},{"$f":"($C$269*$C$250/Q250)","v":73.782804435731521},{"$f":"($D$269*$D$250/R250)","v":95.450904273583788},{"$f":"($E$269*$E$250/S250)","v":107.32852592704543},{"$f":"($F$269*$F$250/T250)","v":119.20611639367067},{"$f":"($G$269*$G$250/U250)","v":148.30065372953945},{"$f":"SUM(P269:U269)","v":608.76226219759019},{"$f":"($B$269*$B$250/W250)","v":64.696782815159466},{"$f":"($C$269*$C$250/X250)","v":73.78270990308161},{"$f":"($D$269*$D$250/Y250)","v":95.454082758966152},{"$f":"($E$269*$E$250/Z250)","v":107.32560891601378},{"$f":"($F$269*$F$250/AA250)","v":119.20203189212475},{"$f":"($G$269*$G$250/AB250)","v":148.30249112423158},{"$f":"SUM(W269:AB269)","v":608.76370740957736},{"$f":"($B$269*$B$250/AD250)","v":64.697311116769583},{"$f":"($C$269*$C$250/AE250)","v":73.78574394962763},{"$f":"($D$269*$D$250/AF250)","v":95.451619772449249},{"$f":"($E$269*$E$250/AG250)","v":107.32436668911494},{"$f":"($F$269*$F$250/AH250)","v":119.20739539962116},{"$f":"($G$269*$G$250/AI250)","v":148.300135789401},{"$f":"SUM(AD269:AI269)","v":608.76657271698355},{"$f":"($B$269*$B$250/AK250)","v":64.701050361565947},{"$f":"($C$269*$C$250/AL250)","v":73.788904446892204},{"$f":"($D$269*$D$250/AM250)","v":95.459833930018249},{"$f":"($E$269*$E$250/AN250)","v":107.33647193874577},{"$f":"($F$269*$F$250/AO250)","v":119.20667861300053},{"$f":"($G$269*$G$250/AP250)","v":148.2972087517652},{"$f":"SUM(AK269:AP269)","v":608.79014804198789},{"$f":"($B$269*$B$250/AR250)","v":64.696438254346305},{"$f":"($C$269*$C$250/AS250)","v":73.794002247764737},{"$f":"($D$269*$D$250/AT250)","v":95.4647830808902},{"$f":"($E$269*$E$250/AU250)","v":107.33785734525917},{"$f":"($F$269*$F$250/AV250)","v":119.20592757163394},{"$f":"($G$269*$G$250/AW250)","v":148.29426559345006},{"$f":"SUM(AR269:AW269)","v":608.79327409334439}]
["Feed cost, $/pig- adjusted for energy intake",{"$f":"B269*B264/2000","v":7.5427402259524534},8.244629838606345,10.219574973505026,11.118762404918533,12.052860845303957,14.822910588117834,null,{"$f":"I269*I264/2000","v":7.5998948076483632},8.3146880117212785,10.314951714701381,11.2229245908332,12.164050401849478,14.973588643898101,null,{"$f":"P269*P264/2000","v":7.6611781823492482},8.3873565022421488,10.412400578452647,11.333783536419325,12.281300181506959,15.118671742245516,null,{"$f":"W269*W264/2000","v":7.7209908321634479},8.4606765716934511,10.508744723597044,11.450748182588095,12.424043137424764,15.309560531258805,null,{"$f":"AD269*AD264/2000","v":7.7839439072524765},8.5313445144847702,10.612744551284656,11.571715682824097,12.600196001403349,15.539158780844753,null,{"$f":"AK269*AK264/2000","v":7.8485683942237516},8.6069150120730509,10.711298153049965,11.726962578775533,12.784639239336506,15.768798417507256,null,{"$f":"AR269*AR264/2000","v":7.91459992767739},8.6864790039820257,10.828605643783719,11.892978456755783,12.96908379141925,15.998431083778376]
[]
["Targets"]
["- SID Ile:Lys",0.56000000000000005,0.56000000000000005,0.56000000000000005,0.56000000000000005,0.56000000000000005,0.56000000000000005,null,0.56000000000000005,0.56000000000000005,0.56000000000000005,0.56000000000000005,0.56000000000000005,0.56000000000000005,null,0.56000000000000005,0.56000000000000005,0.56000000000000005,0.56000000000000005,0.56000000000000005,0.56000000000000005,null,0.56000000000000005,0.56000000000000005,0.56000000000000005,0.56000000000000005,0.56000000000000005,0.56000000000000005,null,0.56000000000000005,0.56000000000000005,0.56000000000000005,0.56000000000000005,0.56000000000000005,0.56000000000000005,null,0.56000000000000005,0.56000000000000005,0.56000000000000005,0.56000000000000005,0.56000000000000005,0.56000000000000005,null,0.56000000000000005,0.56000000000000005,0.56000000000000005,0.56000000000000005,0.56000000000000005,0.56000000000000005]
["- SID Leu:Lys"]
["- SID Met:Lys",{"$f":" 0.000000416*((B5+B6)/2)^2 - 0.000036654*((B5+B6)/2) + 0.280606061","v":0.28002731600000003},0.281219626,0.28362810100000002,0.28748674100000005,0.29267658100000005,0.29964938600000002,null,{"$f":" 0.000000416*((I5+I6)/2)^2 - 0.000036654*((I5+I6)/2) + 0.280606061","v":0.28002731600000003},0.281219626,0.28362810100000002,0.28748674100000005,0.29267658100000005,0.29964938600000002,null,{"$f":" 0.000000416*((P5+P6)/2)^2 - 0.000036654*((P5+P6)/2) + 0.280606061","v":0.28002731600000003},0.281219626,0.28362810100000002,0.28748674100000005,0.29267658100000005,0.29964938600000002,null,{"$f":" 0.000000416*((W5+W6)/2)^2 - 0.000036654*((W5+W6)/2) + 0.280606061","v":0.28002731600000003},0.281219626,0.28362810100000002,0.28748674100000005,0.29267658100000005,0.29964938600000002,null,{"$f":" 0.000000416*((AD5+AD6)/2)^2 - 0.000036654*((AD5+AD6)/2) + 0.280606061","v":0.28002731600000003},0.281219626,0.28362810100000002,0.28748674100000005,0.29267658100000005,0.29964938600000002,null,{"$f":" 0.000000416*((AK5+AK6)/2)^2 - 0.000036654*((AK5+AK6)/2) + 0.280606061","v":0.28002731600000003},0.281219626,0.28362810100000002,0.28748674100000005,0.29267658100000005,0.29964938600000002,null,{"$f":" 0.000000416*((AR5+AR6)/2)^2 - 0.000036654*((AR5+AR6)/2) + 0.280606061","v":0.28002731600000003},0.281219626,0.28362810100000002,0.28748674100000005,0.29267658100000005,0.29964938600000002]
["- SID Met & Cys:Lys",0.55900000000000005,0.55900000000000005,0.55900000000000005,0.56899999999999995,0.56899999999999995,0.57899999999999996,null,0.55900000000000005,0.55900000000000005,0.55900000000000005,0.56899999999999995,0.56899999999999995,0.57899999999999996,null,0.55900000000000005,0.55900000000000005,0.55900000000000005,0.56899999999999995,0.56899999999999995,0.57899999999999996,null,0.55900000000000005,0.55900000000000005,0.55900000000000005,0.56899999999999995,0.56899999999999995,0.57899999999999996,null,0.55900000000000005,0.55900000000000005,0.55900000000000005,0.56899999999999995,0.56899999999999995,0.57899999999999996,null,0.55900000000000005,0.55900000000000005,0.55900000000000005,0.56899999999999995,0.56899999999999995,0.57899999999999996,null,0.55900000000000005,0.55900000000000005,0.55900000000000005,0.56899999999999995,0.56899999999999995,0.57899999999999996]
["- SID Thr:Lys",0.61899999999999999,0.61899999999999999,0.61899999999999999,0.629,0.629,0.63900000000000001,null,0.61899999999999999,0.61899999999999999,0.61899999999999999,0.629,0.629,0.63900000000000001,null,0.61899999999999999,0.61899999999999999,0.61899999999999999,0.629,0.629,0.63900000000000001,null,0.61899999999999999,0.61899999999999999,0.61899999999999999,0.629,0.629,0.63900000000000001,null,0.61899999999999999,0.61899999999999999,0.61899999999999999,0.629,0.629,0.63900000000000001,null,0.61899999999999999,0.61899999999999999,0.61899999999999999,0.629,0.629,0.63900000000000001,null,0.61899999999999999,0.61899999999999999,0.61899999999999999,0.629,0.629,0.63900000000000001]
["- SID Trp:Lys",0.189,0.189,0.189,0.189,0.189,0.189,null,0.189,0.189,0.189,0.189,0.189,0.189,null,0.189,0.189,0.189,0.189,0.189,0.189,null,0.189,0.189,0.189,0.189,0.189,0.189,null,0.189,0.189,0.189,0.189,0.189,0.189,null,0.189,0.189,0.189,0.189,0.189,0.189,null,0.189,0.189,0.189,0.189,0.189,0.189]
["- SID Val:Lys",0.67900000000000005,0.67900000000000005,0.67900000000000005,0.67900000000000005,0.67900000000000005,0.67900000000000005,null,0.67900000000000005,0.67900000000000005,0.67900000000000005,0.67900000000000005,0.67900000000000005,0.67900000000000005,null,0.67900000000000005,0.67900000000000005,0.67900000000000005,0.67900000000000005,0.67900000000000005,0.67900000000000005,null,0.67900000000000005,0.67900000000000005,0.67900000000000005,0.67900000000000005,0.67900000000000005,0.67900000000000005,null,0.67900000000000005,0.67900000000000005,0.67900000000000005,0.67900000000000005,0.67900000000000005,0.67900000000000005,null,0.67900000000000005,0.67900000000000005,0.67900000000000005,0.67900000000000005,0.67900000000000005,0.67900000000000005,null,0.67900000000000005,0.67900000000000005,0.67900000000000005,0.67900000000000005,0.67900000000000005,0.67900000000000005]
["- SID His:Lys",0.31,0.31,0.31,0.31,0.31,0.31,null,0.31,0.31,0.31,0.31,0.31,0.31,null,0.31,0.31,0.31,0.31,0.31,0.31,null,0.31,0.31,0.31,0.31,0.31,0.31,null,0.31,0.31,0.31,0.31,0.31,0.31,null,0.31,0.31,0.31,0.31,0.31,0.31,null,0.31,0.31,0.31,0.31,0.31,0.31]
["- Avail P:ME, g/mcal (terminal)",{"$f":"IF(AVERAGE(B5:B6)<51,0.000025*((B6+B5)/2)^2 - 0.01005*((B6+B5)/2) + 1.5955,(0.00000649518*((B5+B6)/2)^2 - 0.00338103746*((B5+B6)/2) + 1.049852))","v":0.85122563532500006},0.77153564522499996,0.70381228360000003,0.65170908920000004,0.62039047080000009,0.60988816362500009,null,{"$f":"IF(AVERAGE(I5:I6)<51,0.000025*((I6+I5)/2)^2 - 0.01005*((I6+I5)/2) + 1.5955,(0.00000649518*((I5+I6)/2)^2 - 0.00338103746*((I5+I6)/2) + 1.049852))","v":0.85122563532500006},0.77153564522499996,0.70381228360000003,0.65170908920000004,0.62039047080000009,0.60988816362500009,null,{"$f":"IF(AVERAGE(P5:P6)<51,0.000025*((P6+P5)/2)^2 - 0.01005*((P6+P5)/2) + 1.5955,(0.00000649518*((P5+P6)/2)^2 - 0.00338103746*((P5+P6)/2) + 1.049852))","v":0.85122563532500006},0.77153564522499996,0.70381228360000003,0.65170908920000004,0.62039047080000009,0.60988816362500009,null,{"$f":"IF(AVERAGE(W5:W6)<51,0.000025*((W6+W5)/2)^2 - 0.01005*((W6+W5)/2) + 1.5955,(0.00000649518*((W5+W6)/2)^2 - 0.00338103746*((W5+W6)/2) + 1.049852))","v":0.85122563532500006},0.77153564522499996,0.70381228360000003,0.65170908920000004,0.62039047080000009,0.60988816362500009,null,{"$f":"IF(AVERAGE(AD5:AD6)<51,0.000025*((AD6+AD5)/2)^2 - 0.01005*((AD6+AD5)/2) + 1.5955,(0.00000649518*((AD5+AD6)/2)^2 - 0.00338103746*((AD5+AD6)/2) + 1.049852))","v":0.85122563532500006},0.77153564522499996,0.70381228360000003,0.65170908920000004,0.62039047080000009,0.60988816362500009,null,{"$f":"IF(AVERAGE(AK5:AK6)<51,0.000025*((AK6+AK5)/2)^2 - 0.01005*((AK6+AK5)/2) + 1.5955,(0.00000649518*((AK5+AK6)/2)^2 - 0.00338103746*((AK5+AK6)/2) + 1.049852))","v":0.85122563532500006},0.77153564522499996,0.70381228360000003,0.65170908920000004,0.62039047080000009,0.60988816362500009,null,{"$f":"IF(AVERAGE(AR5:AR6)<51,0.000025*((AR6+AR5)/2)^2 - 0.01005*((AR6+AR5)/2) + 1.5955,(0.00000649518*((AR5+AR6)/2)^2 - 0.00338103746*((AR5+AR6)/2) + 1.049852))","v":0.85122563532500006},0.77153564522499996,0.70381228360000003,0.65170908920000004,0.62039047080000009,0.60988816362500009]
["- Avail P:ME, g/mcal (Replacements)",{"$f":"IF(AVERAGE(B5:B6)<51,0.000025*((B6+B5)/2)^2 - 0.01005*((B6+B5)/2) + 1.5955,0.00000649518*((B6+B5)/2)^2 - 0.00338103746*((B6+B5)/2) + 1.3529)","v":1.154273635325},1.0745836452249999,1.0068602836,0.95475708920000002,0.92343847080000008,0.91293616362500007,null,{"$f":"IF(AVERAGE(I5:I6)<51,0.000025*((I6+I5)/2)^2 - 0.01005*((I6+I5)/2) + 1.5955,0.00000649518*((I6+I5)/2)^2 - 0.00338103746*((I6+I5)/2) + 1.3529)","v":1.154273635325},1.0745836452249999,1.0068602836,0.95475708920000002,0.92343847080000008,0.91293616362500007,null,{"$f":"IF(AVERAGE(P5:P6)<51,0.000025*((P6+P5)/2)^2 - 0.01005*((P6+P5)/2) + 1.5955,0.00000649518*((P6+P5)/2)^2 - 0.00338103746*((P6+P5)/2) + 1.3529)","v":1.154273635325},1.0745836452249999,1.0068602836,0.95475708920000002,0.92343847080000008,0.91293616362500007,null,{"$f":"IF(AVERAGE(W5:W6)<51,0.000025*((W6+W5)/2)^2 - 0.01005*((W6+W5)/2) + 1.5955,0.00000649518*((W6+W5)/2)^2 - 0.00338103746*((W6+W5)/2) + 1.3529)","v":1.154273635325},1.0745836452249999,1.0068602836,0.95475708920000002,0.92343847080000008,0.91293616362500007,null,{"$f":"IF(AVERAGE(AD5:AD6)<51,0.000025*((AD6+AD5)/2)^2 - 0.01005*((AD6+AD5)/2) + 1.5955,0.00000649518*((AD6+AD5)/2)^2 - 0.00338103746*((AD6+AD5)/2) + 1.3529)","v":1.154273635325},1.0745836452249999,1.0068602836,0.95475708920000002,0.92343847080000008,0.91293616362500007,null,{"$f":"IF(AVERAGE(AK5:AK6)<51,0.000025*((AK6+AK5)/2)^2 - 0.01005*((AK6+AK5)/2) + 1.5955,0.00000649518*((AK6+AK5)/2)^2 - 0.00338103746*((AK6+AK5)/2) + 1.3529)","v":1.154273635325},1.0745836452249999,1.0068602836,0.95475708920000002,0.92343847080000008,0.91293616362500007,null,{"$f":"IF(AVERAGE(AR5:AR6)<51,0.000025*((AR6+AR5)/2)^2 - 0.01005*((AR6+AR5)/2) + 1.5955,0.00000649518*((AR6+AR5)/2)^2 - 0.00338103746*((AR6+AR5)/2) + 1.3529)","v":1.154273635325},1.0745836452249999,1.0068602836,0.95475708920000002,0.92343847080000008,0.91293616362500007]
["- Available P, % (Terminal)",{"$f":"B281*(B246*2.2046)/10000","v":0.28053008203811425},0.2550261869451555,0.23325719020912211,0.21659170668863326,0.20667416767087224,0.20336945171913379,null,{"$f":"I281*(I246*2.2046)/10000","v":0.28307156540803879},0.25734302668642206,0.23538356909284666,0.21856409882495495,0.20855123196759132,0.20521897737839398,null,{"$f":"P281*(P246*2.2046)/10000","v":0.28563440985918986},0.25967015644692842,0.23751878544906707,0.22053692635377065,0.21042868579786245,0.20706709709843804,null,{"$f":"W281*(W246*2.2046)/10000","v":0.28821765742521011},0.26202488439689303,0.23966063314276556,0.22253266156130325,0.21233236747940154,0.20892221617704687,null,{"$f":"AD281*(AD246*2.2046)/10000","v":0.29081341843398795},0.26437039540447649,0.24181563291371791,0.224526058357508,0.21419596727049112,0.21075821663499009,null,{"$f":"AK281*(AK246*2.2046)/10000","v":0.29339509056467555},0.26671407970737598,0.24394528358461204,0.22647475583575019,0.21606190883309528,0.21259486399574384,null,{"$f":"AR281*(AR246*2.2046)/10000","v":0.29600674595381743},0.26905374993294684,0.24608467124911007,0.22843130862949415,0.21792789810469809,0.21443152871298513]
["- STTD P, % (Terminal)",{"$f":" -0.096629122*LN(AVERAGE(B5:B6)/2.2046) + 0.7201091526","v":0.38948473530861316},0.34911934963648045,0.31899235830889017,0.29470806575817415,0.27531743264453717,0.25825045546730907,null,{"$f":" -0.096629122*LN(AVERAGE(I5:I6)/2.2046) + 0.7201091526","v":0.38948473530861316},0.34911934963648045,0.31899235830889017,0.29470806575817415,0.27531743264453717,0.25825045546730907,null,{"$f":" -0.096629122*LN(AVERAGE(P5:P6)/2.2046) + 0.7201091526","v":0.38948473530861316},0.34911934963648045,0.31899235830889017,0.29470806575817415,0.27531743264453717,0.25825045546730907,null,{"$f":" -0.096629122*LN(AVERAGE(W5:W6)/2.2046) + 0.7201091526","v":0.38948473530861316},0.34911934963648045,0.31899235830889017,0.29470806575817415,0.27531743264453717,0.25825045546730907,null,{"$f":" -0.096629122*LN(AVERAGE(AD5:AD6)/2.2046) + 0.7201091526","v":0.38948473530861316},0.34911934963648045,0.31899235830889017,0.29470806575817415,0.27531743264453717,0.25825045546730907,null,{"$f":" -0.096629122*LN(AVERAGE(AK5:AK6)/2.2046) + 0.7201091526","v":0.38948473530861316},0.34911934963648045,0.31899235830889017,0.29470806575817415,0.27531743264453717,0.25825045546730907,null,{"$f":" -0.096629122*LN(AVERAGE(AR5:AR6)/2.2046) + 0.7201091526","v":0.38948473530861316},0.34911934963648045,0.31899235830889017,0.29470806575817415,0.27531743264453717,0.25825045546730907]
["- Ca:P, Minimum",1,1,1,1,1,1,null,1,1,1,1,1,1,null,1,1,1,1,1,1,null,1,1,1,1,1,1,null,1,1,1,1,1,1,null,1,1,1,1,1,1,null,1,1,1,1,1,1]
["- Ca:P, Maximum",1.5,1.5,1.5,1.5,1.5,1.5,null,1.5,1.5,1.5,1.5,1.5,1.5,null,1.5,1.5,1.5,1.5,1.5,1.5,null,1.5,1.5,1.5,1.5,1.5,1.5,null,1.5,1.5,1.5,1.5,1.5,1.5,null,1.5,1.5,1.5,1.5,1.5,1.5,null,1.5,1.5,1.5,1.5,1.5,1.5]
["NRC Ca, %",{"$f":"-0.12264*LN(AVERAGE(B5:B6)/2.2046) + 1.07262","v":0.65299724345031629},0.60176619843647083,0.56352954534532851,0.53270834386095811,0.50809808976948001,0.48643697935376851,null,{"$f":"-0.12264*LN(AVERAGE(I5:I6)/2.2046) + 1.07262","v":0.65299724345031629},0.60176619843647083,0.56352954534532851,0.53270834386095811,0.50809808976948001,0.48643697935376851,null,{"$f":"-0.12264*LN(AVERAGE(P5:P6)/2.2046) + 1.07262","v":0.65299724345031629},0.60176619843647083,0.56352954534532851,0.53270834386095811,0.50809808976948001,0.48643697935376851,null,{"$f":"-0.12264*LN(AVERAGE(W5:W6)/2.2046) + 1.07262","v":0.65299724345031629},0.60176619843647083,0.56352954534532851,0.53270834386095811,0.50809808976948001,0.48643697935376851,null,{"$f":"-0.12264*LN(AVERAGE(AD5:AD6)/2.2046) + 1.07262","v":0.65299724345031629},0.60176619843647083,0.56352954534532851,0.53270834386095811,0.50809808976948001,0.48643697935376851,null,{"$f":"-0.12264*LN(AVERAGE(AK5:AK6)/2.2046) + 1.07262","v":0.65299724345031629},0.60176619843647083,0.56352954534532851,0.53270834386095811,0.50809808976948001,0.48643697935376851,null,{"$f":"-0.12264*LN(AVERAGE(AR5:AR6)/2.2046) + 1.07262","v":0.65299724345031629},0.60176619843647083,0.56352954534532851,0.53270834386095811,0.50809808976948001,0.48643697935376851]
["NRC STTD P, %",0.4,0.36,0.32,0.28999999999999998,0.27,0.26,null,0.4,0.36,0.32,0.28999999999999998,0.27,0.26,null,0.4,0.36,0.32,0.28999999999999998,0.27,0.26,null,0.4,0.36,0.32,0.28999999999999998,0.27,0.26,null,0.4,0.36,0.32,0.28999999999999998,0.27,0.26,null,0.4,0.36,0.32,0.28999999999999998,0.27,0.26,null,0.4,0.36,0.32,0.28999999999999998,0.27,0.26]
["NRC Ca:STTD P",1.74,1.74,1.79,1.79,1.77,1.77,null,1.74,1.74,1.79,1.79,1.77,1.77,null,1.74,1.74,1.79,1.79,1.77,1.77,null,1.74,1.74,1.79,1.79,1.77,1.77,null,1.74,1.74,1.79,1.79,1.77,1.77,null,1.74,1.74,1.79,1.79,1.77,1.77,null,1.74,1.74,1.79,1.79,1.77,1.77]
["- Lysine:CP, Maximum",7.3,8.3000000000000007,9.3000000000000007,10.3,11.3,11.3,null,7.3,8.3000000000000007,9.3000000000000007,10.3,11.3,11.3,null,7.3,8.3000000000000007,9.3000000000000007,10.3,11.3,11.3,null,7.3,8.3000000000000007,9.3000000000000007,10.3,11.3,11.3,null,7.3,8.3000000000000007,9.3000000000000007,10.3,11.3,11.3,null,7.3,8.3000000000000007,9.3000000000000007,10.3,11.3,11.3,null,7.3,8.3000000000000007,9.3000000000000007,10.3,11.3,11.3]
[]
["Required SID Lys:ME Ratio",{"$f":"IF(AVERAGE(B5:B6)<15,-0.0525*((B5+B6)/2) + 5.0586,IF(AVERAGE(B5:B6)<50,(-0.007855*((B5+B6)/2) + 4.1),(0.000025*((B5+B6)/2)^2 - 0.016*((B5+B6)/2)+ 4.53)*0.87))","v":3.1005984375},2.7428109375000003,2.4186000000000001,2.1402000000000005,1.9314000000000002,1.7858109375,null,{"$f":"IF(AVERAGE(I5:I6)<15,-0.0525*((I5+I6)/2) + 5.0586,IF(AVERAGE(I5:I6)<50,(-0.007855*((I5+I6)/2) + 4.1),(0.000025*((I5+I6)/2)^2 - 0.016*((I5+I6)/2)+ 4.53)*0.87))","v":3.1005984375},2.7428109375000003,2.4186000000000001,2.1402000000000005,1.9314000000000002,1.7858109375,null,{"$f":"IF(AVERAGE(P5:P6)<15,-0.0525*((P5+P6)/2) + 5.0586,IF(AVERAGE(P5:P6)<50,(-0.007855*((P5+P6)/2) + 4.1),(0.000025*((P5+P6)/2)^2 - 0.016*((P5+P6)/2)+ 4.53)*0.87))","v":3.1005984375},2.7428109375000003,2.4186000000000001,2.1402000000000005,1.9314000000000002,1.7858109375,null,{"$f":"IF(AVERAGE(W5:W6)<15,-0.0525*((W5+W6)/2) + 5.0586,IF(AVERAGE(W5:W6)<50,(-0.007855*((W5+W6)/2) + 4.1),(0.000025*((W5+W6)/2)^2 - 0.016*((W5+W6)/2)+ 4.53)*0.87))","v":3.1005984375},2.7428109375000003,2.4186000000000001,2.1402000000000005,1.9314000000000002,1.7858109375,null,{"$f":"IF(AVERAGE(AD5:AD6)<15,-0.0525*((AD5+AD6)/2) + 5.0586,IF(AVERAGE(AD5:AD6)<50,(-0.007855*((AD5+AD6)/2) + 4.1),(0.000025*((AD5+AD6)/2)^2 - 0.016*((AD5+AD6)/2)+ 4.53)*0.87))","v":3.1005984375},2.7428109375000003,2.4186000000000001,2.1402000000000005,1.9314000000000002,1.7858109375,null,{"$f":"IF(AVERAGE(AK5:AK6)<15,-0.0525*((AK5+AK6)/2) + 5.0586,IF(AVERAGE(AK5:AK6)<50,(-0.007855*((AK5+AK6)/2) + 4.1),(0.000025*((AK5+AK6)/2)^2 - 0.016*((AK5+AK6)/2)+ 4.53)*0.87))","v":3.1005984375},2.7428109375000003,2.4186000000000001,2.1402000000000005,1.9314000000000002,1.7858109375,null,{"$f":"IF(AVERAGE(AR5:AR6)<15,-0.0525*((AR5+AR6)/2) + 5.0586,IF(AVERAGE(AR5:AR6)<50,(-0.007855*((AR5+AR6)/2) + 4.1),(0.000025*((AR5+AR6)/2)^2 - 0.016*((AR5+AR6)/2)+ 4.53)*0.87))","v":3.1005984375},2.7428109375000003,2.4186000000000001,2.1402000000000005,1.9314000000000002,1.7858109375]
["Calculated SID Lysine Required, %",{"$f":"IF(B292=\"\",\"\",B246*2.2046*B292/10000)","v":1.0218338099122541},0.90661866270365665,0.80157146072263108,0.71128296096658616,0.64341814748506398,0.5954852264631163,null,{"$f":"IF(I292=\"\",\"\",I246*2.2046*I292/10000)","v":1.0310911901398969},0.91485503314500838,0.80887860793789501,0.71776025846037672,0.64926182522242237,0.60090081467827738,null,{"$f":"IF(P292=\"\",\"\",P246*2.2046*P292/10000)","v":1.0404263783332841},0.92312798462768075,0.81621612448810299,0.72423898577466694,0.65510671565587741,0.60631228616880029,null,{"$f":"IF(W292=\"\",\"\",W246*2.2046*W292/10000)","v":1.0498358850897622},0.93149904773535652,0.82357642914985463,0.73079294146125173,0.66103325865223161,0.6117442524513621,null,{"$f":"IF(AD292=\"\",\"\",AD246*2.2046*AD292/10000)","v":1.0592909721946839},0.93983734459233514,0.83098192997369003,0.73733921785042167,0.66683501868228001,0.61712023758208201,null,{"$f":"IF(AK292=\"\",\"\",AK246*2.2046*AK292/10000)","v":1.0686947404111933},0.94816914751009318,0.83830032044888669,0.74373870254696561,0.67264406911686592,0.62249811690616952,null,{"$f":"IF(AR292=\"\",\"\",AR246*2.2046*AR292/10000)","v":1.0782077229657776},0.95648668037400553,0.84565217139824544,0.75016398394715456,0.67845326807913608,0.62787604705171429]
[]
[]
["Other nutrients, calculated"]
["Other ingredients TID Lysine, %",{"$f":"SUMPRODUCT(B$9:B$229,Nutrients!$DA$8:$DA$228)/2000","v":0.35459999999999997},{"$f":"SUMPRODUCT(C$9:C$229,Nutrients!$DA$8:$DA$228)/2000","v":0.31519999999999998},{"$f":"SUMPRODUCT(D$9:D$229,Nutrients!$DA$8:$DA$228)/2000","v":0.27579999999999999},{"$f":"SUMPRODUCT(E$9:E$229,Nutrients!$DA$8:$DA$228)/2000","v":0.25692384707729665},{"$f":"SUMPRODUCT(F$9:F$229,Nutrients!$DA$8:$DA$228)/2000","v":0.25692384707729665},{"$f":"SUMPRODUCT(G$9:G$229,Nutrients!$DA$8:$DA$228)/2000","v":0.25692384707729665},null,{"$f":"SUMPRODUCT(I$9:I$229,Nutrients!$DA$8:$DA$228)/2000","v":0.39727200000000001},{"$f":"SUMPRODUCT(J$9:J$229,Nutrients!$DA$8:$DA$228)/2000","v":0.35787200000000002},{"$f":"SUMPRODUCT(K$9:K$229,Nutrients!$DA$8:$DA$228)/2000","v":0.31847199999999998},{"$f":"SUMPRODUCT(L$9:L$229,Nutrients!$DA$8:$DA$228)/2000","v":0.2995958470772967},{"$f":"SUMPRODUCT(M$9:M$229,Nutrients!$DA$8:$DA$228)/2000","v":0.2995958470772967},{"$f":"SUMPRODUCT(N$9:N$229,Nutrients!$DA$8:$DA$228)/2000","v":0.2995958470772967},null,{"$f":"SUMPRODUCT(P$9:P$229,Nutrients!$DA$8:$DA$228)/2000","v":0.43994399999999995},{"$f":"SUMPRODUCT(Q$9:Q$229,Nutrients!$DA$8:$DA$228)/2000","v":0.40054399999999996},{"$f":"SUMPRODUCT(R$9:R$229,Nutrients!$DA$8:$DA$228)/2000","v":0.36114400000000002},{"$f":"SUMPRODUCT(S$9:S$229,Nutrients!$DA$8:$DA$228)/2000","v":0.34226784707729668},{"$f":"SUMPRODUCT(T$9:T$229,Nutrients!$DA$8:$DA$228)/2000","v":0.34226784707729668},{"$f":"SUMPRODUCT(U$9:U$229,Nutrients!$DA$8:$DA$228)/2000","v":0.34226784707729668},null,{"$f":"SUMPRODUCT(W$9:W$229,Nutrients!$DA$8:$DA$228)/2000","v":0.48261599999999993},{"$f":"SUMPRODUCT(X$9:X$229,Nutrients!$DA$8:$DA$228)/2000","v":0.44321599999999994},{"$f":"SUMPRODUCT(Y$9:Y$229,Nutrients!$DA$8:$DA$228)/2000","v":0.40381599999999995},{"$f":"SUMPRODUCT(Z$9:Z$229,Nutrients!$DA$8:$DA$228)/2000","v":0.38493984707729662},{"$f":"SUMPRODUCT(AA$9:AA$229,Nutrients!$DA$8:$DA$228)/2000","v":0.38493984707729662},{"$f":"SUMPRODUCT(AB$9:AB$229,Nutrients!$DA$8:$DA$228)/2000","v":0.38493984707729662},null,{"$f":"SUMPRODUCT(AD$9:AD$229,Nutrients!$DA$8:$DA$228)/2000","v":0.52528799999999998},{"$f":"SUMPRODUCT(AE$9:AE$229,Nutrients!$DA$8:$DA$228)/2000","v":0.48588799999999999},{"$f":"SUMPRODUCT(AF$9:AF$229,Nutrients!$DA$8:$DA$228)/2000","v":0.44648799999999994},{"$f":"SUMPRODUCT(AG$9:AG$229,Nutrients!$DA$8:$DA$228)/2000","v":0.42761184707729666},{"$f":"SUMPRODUCT(AH$9:AH$229,Nutrients!$DA$8:$DA$228)/2000","v":0.42761184707729666},{"$f":"SUMPRODUCT(AI$9:AI$229,Nutrients!$DA$8:$DA$228)/2000","v":0.42761184707729666},null,{"$f":"SUMPRODUCT(AK$9:AK$229,Nutrients!$DA$8:$DA$228)/2000","v":0.56795999999999991},{"$f":"SUMPRODUCT(AL$9:AL$229,Nutrients!$DA$8:$DA$228)/2000","v":0.52855999999999992},{"$f":"SUMPRODUCT(AM$9:AM$229,Nutrients!$DA$8:$DA$228)/2000","v":0.48915999999999998},{"$f":"SUMPRODUCT(AN$9:AN$229,Nutrients!$DA$8:$DA$228)/2000","v":0.47028384707729665},{"$f":"SUMPRODUCT(AO$9:AO$229,Nutrients!$DA$8:$DA$228)/2000","v":0.47028384707729665},{"$f":"SUMPRODUCT(AP$9:AP$229,Nutrients!$DA$8:$DA$228)/2000","v":0.47028384707729665},null,{"$f":"SUMPRODUCT(AR$9:AR$229,Nutrients!$DA$8:$DA$228)/2000","v":0.61063199999999995},{"$f":"SUMPRODUCT(AS$9:AS$229,Nutrients!$DA$8:$DA$228)/2000","v":0.57123199999999996},{"$f":"SUMPRODUCT(AT$9:AT$229,Nutrients!$DA$8:$DA$228)/2000","v":0.53183199999999997},{"$f":"SUMPRODUCT(AU$9:AU$229,Nutrients!$DA$8:$DA$228)/2000","v":0.51295584707729669},{"$f":"SUMPRODUCT(AV$9:AV$229,Nutrients!$DA$8:$DA$228)/2000","v":0.51295584707729669},{"$f":"SUMPRODUCT(AW$9:AW$229,Nutrients!$DA$8:$DA$228)/2000","v":0.51295584707729669}]
["Total Lys:ME, g/mcal",{"$f":"IF(B$5=\"\",\"\",B245/(B246*2.2046)*10000)","v":4.0004918161487684},3.5419410134415341,3.1391303590347972,2.8010240180887811,2.5643124869082041,2.4347307257524458,null,{"$f":"IF(I$5=\"\",\"\",I245/(I246*2.2046)*10000)","v":3.9909187882093167},3.5362972506100401,3.1369572557269727,2.8018497235714168,2.5672740062992552,2.4388002408103162,null,{"$f":"IF(P$5=\"\",\"\",P245/(P246*2.2046)*10000)","v":3.9812048290036857},3.5306165210678899,3.1346924065223649,2.8026517172586285,2.5701779885294318,2.4428162620666738,null,{"$f":"IF(W$5=\"\",\"\",W245/(W246*2.2046)*10000)","v":3.9713871747430769},3.5246668849889673,3.1323895644931188,2.8031481994177971,2.57269719881005,2.4466149863121811,null,{"$f":"IF(AD$5=\"\",\"\",AD245/(AD246*2.2046)*10000)","v":3.9615654530128719},3.5189496531504854,3.1299479384293605,2.8036603391027048,2.5754959234331962,2.4504174304815285,null,{"$f":"IF(AK$5=\"\",\"\",AK245/(AK246*2.2046)*10000)","v":3.9521016006755469},3.5133454040306047,3.1278782305228909,2.8045787316589523,2.5781756753227372,2.4541464285478516,null,{"$f":"IF(AR$5=\"\",\"\",AR245/(AR246*2.2046)*10000)","v":3.9423930216202354},3.5078895611306744,3.125694087883621,2.8053198652345319,2.5808089433217916,2.4578113337725855]
["SID Lys:ME, g/mcal",{"$f":"IF(B$5=\"\",\"\",B236/(B246*2.2046)*10000)","v":3.5990753406176657},3.1727222375948116,2.7968342544845632,2.4855813058752307,2.2715388971881016,2.1544027583542169,null,{"$f":"IF(I$5=\"\",\"\",I236/(I246*2.2046)*10000)","v":3.5667619921819083},3.1441584600458028,2.7715685601842632,2.463150627423218,2.2510939229614184,2.1349863124053119,null,{"$f":"IF(P$5=\"\",\"\",P236/(P246*2.2046)*10000)","v":3.5347593487162761},3.1159809258068383,2.7466530634545916,2.4411163520492831,2.231009565679333,2.1159310865327798,null,{"$f":"IF(W$5=\"\",\"\",W236/(W246*2.2046)*10000)","v":3.5030778807395677},3.0879786717673321,2.722106217974777,2.419223737206647,2.2110072829753817,2.0971427345830667,null,{"$f":"IF(AD$5=\"\",\"\",AD236/(AD246*2.2046)*10000)","v":3.4718098841577665},3.0605819280633639,2.6978474957178222,2.3977452821786271,2.1917705402712251,2.078873672135384,null,{"$f":"IF(AK$5=\"\",\"\",AK236/(AK246*2.2046)*10000)","v":3.4412603790391723},3.0336878179721007,2.674295194788697,2.3771139311584841,2.172842096248532,2.0609138881053033,null,{"$f":"IF(AR$5=\"\",\"\",AR236/(AR246*2.2046)*10000)","v":3.4108982797383671},3.0073071075632876,2.6510456598952148,2.3567535482890785,2.1542373188164161,2.0432615967362384]
["Lysine:CP",{"$f":"B245/B253*100","v":6.8677028806815752},6.6830941302046103,6.4644027164582063,6.3149371296786221,6.2696154239212527,6.2402437601749243,null,{"$f":"I245/I253*100","v":6.7722097781263129},6.5822068163990028,6.3582822897883053,6.2044342345478212,6.152510497066749,6.1167477878660295,null,{"$f":"P245/P253*100","v":6.6797140853702777},6.4846993710644023,6.2572436185690128,6.0983462661466374,6.0407592095446754,6.001207127234033,null,{"$f":"W245/W253*100","v":6.590774380423742},6.390861850261782,6.1606787077645384,5.9961911696384798,5.9302708221458067,5.8878344369643125,null,{"$f":"AD245/AD253*100","v":6.5042317008935315},6.3011959018750865,6.0672304226469134,5.8985026531687517,5.8278642618027874,5.782919156909303,null,{"$f":"AK245/AK253*100","v":6.4212832626708405},6.2149535786526355,5.9792517659025028,5.8059182301015424,5.7313552148282536,5.6837003702679922,null,{"$f":"AR245/AR253*100","v":6.3413317579288835},6.1312940027142702,5.8923331530486625,5.718507070088326,5.6397500032628685,5.589722930288386]
["Crude fat, %",{"$f":"(SUMPRODUCT(B$9:B$229,Nutrients!$K$8:$K$228)+(IF($A$7=Nutrients!$B$8,Nutrients!$K$8,Nutrients!$K$9)*B$7)+(((IF($A$8=Nutrients!$B$79,Nutrients!$K$79,(IF($A$8=Nutrients!$B$77,Nutrients!$K$77,Nutrients!$K$78)))))*B$8))/2000","v":2.8430787934788264},{"$f":"(SUMPRODUCT(C$9:C$229,Nutrients!$K$8:$K$228)+(IF($A$7=Nutrients!$B$8,Nutrients!$K$8,Nutrients!$K$9)*C$7)+(((IF($A$8=Nutrients!$B$79,Nutrients!$K$79,(IF($A$8=Nutrients!$B$77,Nutrients!$K$77,Nutrients!$K$78)))))*C$8))/2000","v":2.9356906063346426},{"$f":"(SUMPRODUCT(D$9:D$229,Nutrients!$K$8:$K$228)+(IF($A$7=Nutrients!$B$8,Nutrients!$K$8,Nutrients!$K$9)*D$7)+(((IF($A$8=Nutrients!$B$79,Nutrients!$K$79,(IF($A$8=Nutrients!$B$77,Nutrients!$K$77,Nutrients!$K$78)))))*D$8))/2000","v":3.0150158948020342},{"$f":"(SUMPRODUCT(E$9:E$229,Nutrients!$K$8:$K$228)+(IF($A$7=Nutrients!$B$8,Nutrients!$K$8,Nutrients!$K$9)*E$7)+(((IF($A$8=Nutrients!$B$79,Nutrients!$K$79,(IF($A$8=Nutrients!$B$77,Nutrients!$K$77,Nutrients!$K$78)))))*E$8))/2000","v":3.0897558386383324},{"$f":"(SUMPRODUCT(F$9:F$229,Nutrients!$K$8:$K$228)+(IF($A$7=Nutrients!$B$8,Nutrients!$K$8,Nutrients!$K$9)*F$7)+(((IF($A$8=Nutrients!$B$79,Nutrients!$K$79,(IF($A$8=Nutrients!$B$77,Nutrients!$K$77,Nutrients!$K$78)))))*F$8))/2000","v":3.1512333335874807},{"$f":"(SUMPRODUCT(G$9:G$229,Nutrients!$K$8:$K$228)+(IF($A$7=Nutrients!$B$8,Nutrients!$K$8,Nutrients!$K$9)*G$7)+(((IF($A$8=Nutrients!$B$79,Nutrients!$K$79,(IF($A$8=Nutrients!$B$77,Nutrients!$K$77,Nutrients!$K$78)))))*G$8))/2000","v":3.1836624192329586},null,{"$f":"(SUMPRODUCT(I$9:I$229,Nutrients!$K$8:$K$228)+(IF($A$7=Nutrients!$B$8,Nutrients!$K$8,Nutrients!$K$9)*I$7)+(((IF($A$8=Nutrients!$B$79,Nutrients!$K$79,(IF($A$8=Nutrients!$B$77,Nutrients!$K$77,Nutrients!$K$78)))))*I$8))/2000","v":3.7545037280099876},{"$f":"(SUMPRODUCT(J$9:J$229,Nutrients!$K$8:$K$228)+(IF($A$7=Nutrients!$B$8,Nutrients!$K$8,Nutrients!$K$9)*J$7)+(((IF($A$8=Nutrients!$B$79,Nutrients!$K$79,(IF($A$8=Nutrients!$B$77,Nutrients!$K$77,Nutrients!$K$78)))))*J$8))/2000","v":3.852858417655737},{"$f":"(SUMPRODUCT(K$9:K$229,Nutrients!$K$8:$K$228)+(IF($A$7=Nutrients!$B$8,Nutrients!$K$8,Nutrients!$K$9)*K$7)+(((IF($A$8=Nutrients!$B$79,Nutrients!$K$79,(IF($A$8=Nutrients!$B$77,Nutrients!$K$77,Nutrients!$K$78)))))*K$8))/2000","v":3.9273066414676694},{"$f":"(SUMPRODUCT(L$9:L$229,Nutrients!$K$8:$K$228)+(IF($A$7=Nutrients!$B$8,Nutrients!$K$8,Nutrients!$K$9)*L$7)+(((IF($A$8=Nutrients!$B$79,Nutrients!$K$79,(IF($A$8=Nutrients!$B$77,Nutrients!$K$77,Nutrients!$K$78)))))*L$8))/2000","v":4.0073021325352087},{"$f":"(SUMPRODUCT(M$9:M$229,Nutrients!$K$8:$K$228)+(IF($A$7=Nutrients!$B$8,Nutrients!$K$8,Nutrients!$K$9)*M$7)+(((IF($A$8=Nutrients!$B$79,Nutrients!$K$79,(IF($A$8=Nutrients!$B$77,Nutrients!$K$77,Nutrients!$K$78)))))*M$8))/2000","v":4.0702933150083371},{"$f":"(SUMPRODUCT(N$9:N$229,Nutrients!$K$8:$K$228)+(IF($A$7=Nutrients!$B$8,Nutrients!$K$8,Nutrients!$K$9)*N$7)+(((IF($A$8=Nutrients!$B$79,Nutrients!$K$79,(IF($A$8=Nutrients!$B$77,Nutrients!$K$77,Nutrients!$K$78)))))*N$8))/2000","v":4.1009798522481837},null,{"$f":"(SUMPRODUCT(P$9:P$229,Nutrients!$K$8:$K$228)+(IF($A$7=Nutrients!$B$8,Nutrients!$K$8,Nutrients!$K$9)*P$7)+(((IF($A$8=Nutrients!$B$79,Nutrients!$K$79,(IF($A$8=Nutrients!$B$77,Nutrients!$K$77,Nutrients!$K$78)))))*P$8))/2000","v":4.6699211391159769},{"$f":"(SUMPRODUCT(Q$9:Q$229,Nutrients!$K$8:$K$228)+(IF($A$7=Nutrients!$B$8,Nutrients!$K$8,Nutrients!$K$9)*Q$7)+(((IF($A$8=Nutrients!$B$79,Nutrients!$K$79,(IF($A$8=Nutrients!$B$77,Nutrients!$K$77,Nutrients!$K$78)))))*Q$8))/2000","v":4.7684600330317926},{"$f":"(SUMPRODUCT(R$9:R$229,Nutrients!$K$8:$K$228)+(IF($A$7=Nutrients!$B$8,Nutrients!$K$8,Nutrients!$K$9)*R$7)+(((IF($A$8=Nutrients!$B$79,Nutrients!$K$79,(IF($A$8=Nutrients!$B$77,Nutrients!$K$77,Nutrients!$K$78)))))*R$8))/2000","v":4.8445751107378179},{"$f":"(SUMPRODUCT(S$9:S$229,Nutrients!$K$8:$K$228)+(IF($A$7=Nutrients!$B$8,Nutrients!$K$8,Nutrients!$K$9)*S$7)+(((IF($A$8=Nutrients!$B$79,Nutrients!$K$79,(IF($A$8=Nutrients!$B$77,Nutrients!$K$77,Nutrients!$K$78)))))*S$8))/2000","v":4.9226741180700433},{"$f":"(SUMPRODUCT(T$9:T$229,Nutrients!$K$8:$K$228)+(IF($A$7=Nutrients!$B$8,Nutrients!$K$8,Nutrients!$K$9)*T$7)+(((IF($A$8=Nutrients!$B$79,Nutrients!$K$79,(IF($A$8=Nutrients!$B$77,Nutrients!$K$77,Nutrients!$K$78)))))*T$8))/2000","v":4.9873365797615312},{"$f":"(SUMPRODUCT(U$9:U$229,Nutrients!$K$8:$K$228)+(IF($A$7=Nutrients!$B$8,Nutrients!$K$8,Nutrients!$K$9)*U$7)+(((IF($A$8=Nutrients!$B$79,Nutrients!$K$79,(IF($A$8=Nutrients!$B$77,Nutrients!$K$77,Nutrients!$K$78)))))*U$8))/2000","v":5.01907061641539},null,{"$f":"(SUMPRODUCT(W$9:W$229,Nutrients!$K$8:$K$228)+(IF($A$7=Nutrients!$B$8,Nutrients!$K$8,Nutrients!$K$9)*W$7)+(((IF($A$8=Nutrients!$B$79,Nutrients!$K$79,(IF($A$8=Nutrients!$B$77,Nutrients!$K$77,Nutrients!$K$78)))))*W$8))/2000","v":5.5868843038431528},{"$f":"(SUMPRODUCT(X$9:X$229,Nutrients!$K$8:$K$228)+(IF($A$7=Nutrients!$B$8,Nutrients!$K$8,Nutrients!$K$9)*X$7)+(((IF($A$8=Nutrients!$B$79,Nutrients!$K$79,(IF($A$8=Nutrients!$B$77,Nutrients!$K$77,Nutrients!$K$78)))))*X$8))/2000","v":5.6864957912272311},{"$f":"(SUMPRODUCT(Y$9:Y$229,Nutrients!$K$8:$K$228)+(IF($A$7=Nutrients!$B$8,Nutrients!$K$8,Nutrients!$K$9)*Y$7)+(((IF($A$8=Nutrients!$B$79,Nutrients!$K$79,(IF($A$8=Nutrients!$B$77,Nutrients!$K$77,Nutrients!$K$78)))))*Y$8))/2000","v":5.7602177230741081},{"$f":"(SUMPRODUCT(Z$9:Z$229,Nutrients!$K$8:$K$228)+(IF($A$7=Nutrients!$B$8,Nutrients!$K$8,Nutrients!$K$9)*Z$7)+(((IF($A$8=Nutrients!$B$79,Nutrients!$K$79,(IF($A$8=Nutrients!$B$77,Nutrients!$K$77,Nutrients!$K$78)))))*Z$8))/2000","v":5.8393903190894196},{"$f":"(SUMPRODUCT(AA$9:AA$229,Nutrients!$K$8:$K$228)+(IF($A$7=Nutrients!$B$8,Nutrients!$K$8,Nutrients!$K$9)*AA$7)+(((IF($A$8=Nutrients!$B$79,Nutrients!$K$79,(IF($A$8=Nutrients!$B$77,Nutrients!$K$77,Nutrients!$K$78)))))*AA$8))/2000","v":5.9010593459188012},{"$f":"(SUMPRODUCT(AB$9:AB$229,Nutrients!$K$8:$K$228)+(IF($A$7=Nutrients!$B$8,Nutrients!$K$8,Nutrients!$K$9)*AB$7)+(((IF($A$8=Nutrients!$B$79,Nutrients!$K$79,(IF($A$8=Nutrients!$B$77,Nutrients!$K$77,Nutrients!$K$78)))))*AB$8))/2000","v":5.943617219495442},null,{"$f":"(SUMPRODUCT(AD$9:AD$229,Nutrients!$K$8:$K$228)+(IF($A$7=Nutrients!$B$8,Nutrients!$K$8,Nutrients!$K$9)*AD$7)+(((IF($A$8=Nutrients!$B$79,Nutrients!$K$79,(IF($A$8=Nutrients!$B$77,Nutrients!$K$77,Nutrients!$K$78)))))*AD$8))/2000","v":6.5044358882885929},{"$f":"(SUMPRODUCT(AE$9:AE$229,Nutrients!$K$8:$K$228)+(IF($A$7=Nutrients!$B$8,Nutrients!$K$8,Nutrients!$K$9)*AE$7)+(((IF($A$8=Nutrients!$B$79,Nutrients!$K$79,(IF($A$8=Nutrients!$B$77,Nutrients!$K$77,Nutrients!$K$78)))))*AE$8))/2000","v":6.6026520821971788},{"$f":"(SUMPRODUCT(AF$9:AF$229,Nutrients!$K$8:$K$228)+(IF($A$7=Nutrients!$B$8,Nutrients!$K$8,Nutrients!$K$9)*AF$7)+(((IF($A$8=Nutrients!$B$79,Nutrients!$K$79,(IF($A$8=Nutrients!$B$77,Nutrients!$K$77,Nutrients!$K$78)))))*AF$8))/2000","v":6.6768519969750972},{"$f":"(SUMPRODUCT(AG$9:AG$229,Nutrients!$K$8:$K$228)+(IF($A$7=Nutrients!$B$8,Nutrients!$K$8,Nutrients!$K$9)*AG$7)+(((IF($A$8=Nutrients!$B$79,Nutrients!$K$79,(IF($A$8=Nutrients!$B$77,Nutrients!$K$77,Nutrients!$K$78)))))*AG$8))/2000","v":6.7548314185939686},{"$f":"(SUMPRODUCT(AH$9:AH$229,Nutrients!$K$8:$K$228)+(IF($A$7=Nutrients!$B$8,Nutrients!$K$8,Nutrients!$K$9)*AH$7)+(((IF($A$8=Nutrients!$B$79,Nutrients!$K$79,(IF($A$8=Nutrients!$B$77,Nutrients!$K$77,Nutrients!$K$78)))))*AH$8))/2000","v":6.851493144723106},{"$f":"(SUMPRODUCT(AI$9:AI$229,Nutrients!$K$8:$K$228)+(IF($A$7=Nutrients!$B$8,Nutrients!$K$8,Nutrients!$K$9)*AI$7)+(((IF($A$8=Nutrients!$B$79,Nutrients!$K$79,(IF($A$8=Nutrients!$B$77,Nutrients!$K$77,Nutrients!$K$78)))))*AI$8))/2000","v":6.9072191009437702},null,{"$f":"(SUMPRODUCT(AK$9:AK$229,Nutrients!$K$8:$K$228)+(IF($A$7=Nutrients!$B$8,Nutrients!$K$8,Nutrients!$K$9)*AK$7)+(((IF($A$8=Nutrients!$B$79,Nutrients!$K$79,(IF($A$8=Nutrients!$B$77,Nutrients!$K$77,Nutrients!$K$78)))))*AK$8))/2000","v":7.4223440189802972},{"$f":"(SUMPRODUCT(AL$9:AL$229,Nutrients!$K$8:$K$228)+(IF($A$7=Nutrients!$B$8,Nutrients!$K$8,Nutrients!$K$9)*AL$7)+(((IF($A$8=Nutrients!$B$79,Nutrients!$K$79,(IF($A$8=Nutrients!$B$77,Nutrients!$K$77,Nutrients!$K$78)))))*AL$8))/2000","v":7.5206296380942304},{"$f":"(SUMPRODUCT(AM$9:AM$229,Nutrients!$K$8:$K$228)+(IF($A$7=Nutrients!$B$8,Nutrients!$K$8,Nutrients!$K$9)*AM$7)+(((IF($A$8=Nutrients!$B$79,Nutrients!$K$79,(IF($A$8=Nutrients!$B$77,Nutrients!$K$77,Nutrients!$K$78)))))*AM$8))/2000","v":7.5923347500274998},{"$f":"(SUMPRODUCT(AN$9:AN$229,Nutrients!$K$8:$K$228)+(IF($A$7=Nutrients!$B$8,Nutrients!$K$8,Nutrients!$K$9)*AN$7)+(((IF($A$8=Nutrients!$B$79,Nutrients!$K$79,(IF($A$8=Nutrients!$B$77,Nutrients!$K$77,Nutrients!$K$78)))))*AN$8))/2000","v":7.6970716682702944},{"$f":"(SUMPRODUCT(AO$9:AO$229,Nutrients!$K$8:$K$228)+(IF($A$7=Nutrients!$B$8,Nutrients!$K$8,Nutrients!$K$9)*AO$7)+(((IF($A$8=Nutrients!$B$79,Nutrients!$K$79,(IF($A$8=Nutrients!$B$77,Nutrients!$K$77,Nutrients!$K$78)))))*AO$8))/2000","v":7.8145327962651105},{"$f":"(SUMPRODUCT(AP$9:AP$229,Nutrients!$K$8:$K$228)+(IF($A$7=Nutrients!$B$8,Nutrients!$K$8,Nutrients!$K$9)*AP$7)+(((IF($A$8=Nutrients!$B$79,Nutrients!$K$79,(IF($A$8=Nutrients!$B$77,Nutrients!$K$77,Nutrients!$K$78)))))*AP$8))/2000","v":7.8710333628848019},null,{"$f":"(SUMPRODUCT(AR$9:AR$229,Nutrients!$K$8:$K$228)+(IF($A$7=Nutrients!$B$8,Nutrients!$K$8,Nutrients!$K$9)*AR$7)+(((IF($A$8=Nutrients!$B$79,Nutrients!$K$79,(IF($A$8=Nutrients!$B$77,Nutrients!$K$77,Nutrients!$K$78)))))*AR$8))/2000","v":8.3467354795864441},{"$f":"(SUMPRODUCT(AS$9:AS$229,Nutrients!$K$8:$K$228)+(IF($A$7=Nutrients!$B$8,Nutrients!$K$8,Nutrients!$K$9)*AS$7)+(((IF($A$8=Nutrients!$B$79,Nutrients!$K$79,(IF($A$8=Nutrients!$B$77,Nutrients!$K$77,Nutrients!$K$78)))))*AS$8))/2000","v":8.4355819109671497},{"$f":"(SUMPRODUCT(AT$9:AT$229,Nutrients!$K$8:$K$228)+(IF($A$7=Nutrients!$B$8,Nutrients!$K$8,Nutrients!$K$9)*AT$7)+(((IF($A$8=Nutrients!$B$79,Nutrients!$K$79,(IF($A$8=Nutrients!$B$77,Nutrients!$K$77,Nutrients!$K$78)))))*AT$8))/2000","v":8.5064418643260602},{"$f":"(SUMPRODUCT(AU$9:AU$229,Nutrients!$K$8:$K$228)+(IF($A$7=Nutrients!$B$8,Nutrients!$K$8,Nutrients!$K$9)*AU$7)+(((IF($A$8=Nutrients!$B$79,Nutrients!$K$79,(IF($A$8=Nutrients!$B$77,Nutrients!$K$77,Nutrients!$K$78)))))*AU$8))/2000","v":8.6593850346017085},{"$f":"(SUMPRODUCT(AV$9:AV$229,Nutrients!$K$8:$K$228)+(IF($A$7=Nutrients!$B$8,Nutrients!$K$8,Nutrients!$K$9)*AV$7)+(((IF($A$8=Nutrients!$B$79,Nutrients!$K$79,(IF($A$8=Nutrients!$B$77,Nutrients!$K$77,Nutrients!$K$78)))))*AV$8))/2000","v":8.7775901650738835},{"$f":"(SUMPRODUCT(AW$9:AW$229,Nutrients!$K$8:$K$228)+(IF($A$7=Nutrients!$B$8,Nutrients!$K$8,Nutrients!$K$9)*AW$7)+(((IF($A$8=Nutrients!$B$79,Nutrients!$K$79,(IF($A$8=Nutrients!$B$77,Nutrients!$K$77,Nutrients!$K$78)))))*AW$8))/2000","v":8.8348552489764369}]
["Crude fiber, %",{"$f":"(SUMPRODUCT(B$9:B$229,Nutrients!$J$8:$J$228)+(IF($A$7=Nutrients!$B$8,Nutrients!$J$8,Nutrients!$J$9)*B$7)+(((IF($A$8=Nutrients!$B$79,Nutrients!$J$79,(IF($A$8=Nutrients!$B$77,Nutrients!$J$77,Nutrients!$J$78)))))*B$8))/2000","v":2.4236304403667859},{"$f":"(SUMPRODUCT(C$9:C$229,Nutrients!$J$8:$J$228)+(IF($A$7=Nutrients!$B$8,Nutrients!$J$8,Nutrients!$J$9)*C$7)+(((IF($A$8=Nutrients!$B$79,Nutrients!$J$79,(IF($A$8=Nutrients!$B$77,Nutrients!$J$77,Nutrients!$J$78)))))*C$8))/2000","v":2.3544062118589144},{"$f":"(SUMPRODUCT(D$9:D$229,Nutrients!$J$8:$J$228)+(IF($A$7=Nutrients!$B$8,Nutrients!$J$8,Nutrients!$J$9)*D$7)+(((IF($A$8=Nutrients!$B$79,Nutrients!$J$79,(IF($A$8=Nutrients!$B$77,Nutrients!$J$77,Nutrients!$J$78)))))*D$8))/2000","v":2.2969299326886694},{"$f":"(SUMPRODUCT(E$9:E$229,Nutrients!$J$8:$J$228)+(IF($A$7=Nutrients!$B$8,Nutrients!$J$8,Nutrients!$J$9)*E$7)+(((IF($A$8=Nutrients!$B$79,Nutrients!$J$79,(IF($A$8=Nutrients!$B$77,Nutrients!$J$77,Nutrients!$J$78)))))*E$8))/2000","v":2.237626654434278},{"$f":"(SUMPRODUCT(F$9:F$229,Nutrients!$J$8:$J$228)+(IF($A$7=Nutrients!$B$8,Nutrients!$J$8,Nutrients!$J$9)*F$7)+(((IF($A$8=Nutrients!$B$79,Nutrients!$J$79,(IF($A$8=Nutrients!$B$77,Nutrients!$J$77,Nutrients!$J$78)))))*F$8))/2000","v":2.1865908459890111},{"$f":"(SUMPRODUCT(G$9:G$229,Nutrients!$J$8:$J$228)+(IF($A$7=Nutrients!$B$8,Nutrients!$J$8,Nutrients!$J$9)*G$7)+(((IF($A$8=Nutrients!$B$79,Nutrients!$J$79,(IF($A$8=Nutrients!$B$77,Nutrients!$J$77,Nutrients!$J$78)))))*G$8))/2000","v":2.1575827805851042},null,{"$f":"(SUMPRODUCT(I$9:I$229,Nutrients!$J$8:$J$228)+(IF($A$7=Nutrients!$B$8,Nutrients!$J$8,Nutrients!$J$9)*I$7)+(((IF($A$8=Nutrients!$B$79,Nutrients!$J$79,(IF($A$8=Nutrients!$B$77,Nutrients!$J$77,Nutrients!$J$78)))))*I$8))/2000","v":2.6718282307022601},{"$f":"(SUMPRODUCT(J$9:J$229,Nutrients!$J$8:$J$228)+(IF($A$7=Nutrients!$B$8,Nutrients!$J$8,Nutrients!$J$9)*J$7)+(((IF($A$8=Nutrients!$B$79,Nutrients!$J$79,(IF($A$8=Nutrients!$B$77,Nutrients!$J$77,Nutrients!$J$78)))))*J$8))/2000","v":2.6023170826454272},{"$f":"(SUMPRODUCT(K$9:K$229,Nutrients!$J$8:$J$228)+(IF($A$7=Nutrients!$B$8,Nutrients!$J$8,Nutrients!$J$9)*K$7)+(((IF($A$8=Nutrients!$B$79,Nutrients!$J$79,(IF($A$8=Nutrients!$B$77,Nutrients!$J$77,Nutrients!$J$78)))))*K$8))/2000","v":2.5449884520003567},{"$f":"(SUMPRODUCT(L$9:L$229,Nutrients!$J$8:$J$228)+(IF($A$7=Nutrients!$B$8,Nutrients!$J$8,Nutrients!$J$9)*L$7)+(((IF($A$8=Nutrients!$B$79,Nutrients!$J$79,(IF($A$8=Nutrients!$B$77,Nutrients!$J$77,Nutrients!$J$78)))))*L$8))/2000","v":2.4855609136058394},{"$f":"(SUMPRODUCT(M$9:M$229,Nutrients!$J$8:$J$228)+(IF($A$7=Nutrients!$B$8,Nutrients!$J$8,Nutrients!$J$9)*M$7)+(((IF($A$8=Nutrients!$B$79,Nutrients!$J$79,(IF($A$8=Nutrients!$B$77,Nutrients!$J$77,Nutrients!$J$78)))))*M$8))/2000","v":2.4345244423495487},{"$f":"(SUMPRODUCT(N$9:N$229,Nutrients!$J$8:$J$228)+(IF($A$7=Nutrients!$B$8,Nutrients!$J$8,Nutrients!$J$9)*N$7)+(((IF($A$8=Nutrients!$B$79,Nutrients!$J$79,(IF($A$8=Nutrients!$B$77,Nutrients!$J$77,Nutrients!$J$78)))))*N$8))/2000","v":2.4054612346666642},null,{"$f":"(SUMPRODUCT(P$9:P$229,Nutrients!$J$8:$J$228)+(IF($A$7=Nutrients!$B$8,Nutrients!$J$8,Nutrients!$J$9)*P$7)+(((IF($A$8=Nutrients!$B$79,Nutrients!$J$79,(IF($A$8=Nutrients!$B$77,Nutrients!$J$77,Nutrients!$J$78)))))*P$8))/2000","v":2.9198419314680719},{"$f":"(SUMPRODUCT(Q$9:Q$229,Nutrients!$J$8:$J$228)+(IF($A$7=Nutrients!$B$8,Nutrients!$J$8,Nutrients!$J$9)*Q$7)+(((IF($A$8=Nutrients!$B$79,Nutrients!$J$79,(IF($A$8=Nutrients!$B$77,Nutrients!$J$77,Nutrients!$J$78)))))*Q$8))/2000","v":2.8502584032400629},{"$f":"(SUMPRODUCT(R$9:R$229,Nutrients!$J$8:$J$228)+(IF($A$7=Nutrients!$B$8,Nutrients!$J$8,Nutrients!$J$9)*R$7)+(((IF($A$8=Nutrients!$B$79,Nutrients!$J$79,(IF($A$8=Nutrients!$B$77,Nutrients!$J$77,Nutrients!$J$78)))))*R$8))/2000","v":2.7928553391240332},{"$f":"(SUMPRODUCT(S$9:S$229,Nutrients!$J$8:$J$228)+(IF($A$7=Nutrients!$B$8,Nutrients!$J$8,Nutrients!$J$9)*S$7)+(((IF($A$8=Nutrients!$B$79,Nutrients!$J$79,(IF($A$8=Nutrients!$B$77,Nutrients!$J$77,Nutrients!$J$78)))))*S$8))/2000","v":2.733448440672392},{"$f":"(SUMPRODUCT(T$9:T$229,Nutrients!$J$8:$J$228)+(IF($A$7=Nutrients!$B$8,Nutrients!$J$8,Nutrients!$J$9)*T$7)+(((IF($A$8=Nutrients!$B$79,Nutrients!$J$79,(IF($A$8=Nutrients!$B$77,Nutrients!$J$77,Nutrients!$J$78)))))*T$8))/2000","v":2.6824587993008882},{"$f":"(SUMPRODUCT(U$9:U$229,Nutrients!$J$8:$J$228)+(IF($A$7=Nutrients!$B$8,Nutrients!$J$8,Nutrients!$J$9)*U$7)+(((IF($A$8=Nutrients!$B$79,Nutrients!$J$79,(IF($A$8=Nutrients!$B$77,Nutrients!$J$77,Nutrients!$J$78)))))*U$8))/2000","v":2.6533756891222495},null,{"$f":"(SUMPRODUCT(W$9:W$229,Nutrients!$J$8:$J$228)+(IF($A$7=Nutrients!$B$8,Nutrients!$J$8,Nutrients!$J$9)*W$7)+(((IF($A$8=Nutrients!$B$79,Nutrients!$J$79,(IF($A$8=Nutrients!$B$77,Nutrients!$J$77,Nutrients!$J$78)))))*W$8))/2000","v":3.167920034205292},{"$f":"(SUMPRODUCT(X$9:X$229,Nutrients!$J$8:$J$228)+(IF($A$7=Nutrients!$B$8,Nutrients!$J$8,Nutrients!$J$9)*X$7)+(((IF($A$8=Nutrients!$B$79,Nutrients!$J$79,(IF($A$8=Nutrients!$B$77,Nutrients!$J$77,Nutrients!$J$78)))))*X$8))/2000","v":3.0982197830744109},{"$f":"(SUMPRODUCT(Y$9:Y$229,Nutrients!$J$8:$J$228)+(IF($A$7=Nutrients!$B$8,Nutrients!$J$8,Nutrients!$J$9)*Y$7)+(((IF($A$8=Nutrients!$B$79,Nutrients!$J$79,(IF($A$8=Nutrients!$B$77,Nutrients!$J$77,Nutrients!$J$78)))))*Y$8))/2000","v":3.0408370456344769},{"$f":"(SUMPRODUCT(Z$9:Z$229,Nutrients!$J$8:$J$228)+(IF($A$7=Nutrients!$B$8,Nutrients!$J$8,Nutrients!$J$9)*Z$7)+(((IF($A$8=Nutrients!$B$79,Nutrients!$J$79,(IF($A$8=Nutrients!$B$77,Nutrients!$J$77,Nutrients!$J$78)))))*Z$8))/2000","v":2.9812985932427689},{"$f":"(SUMPRODUCT(AA$9:AA$229,Nutrients!$J$8:$J$228)+(IF($A$7=Nutrients!$B$8,Nutrients!$J$8,Nutrients!$J$9)*AA$7)+(((IF($A$8=Nutrients!$B$79,Nutrients!$J$79,(IF($A$8=Nutrients!$B$77,Nutrients!$J$77,Nutrients!$J$78)))))*AA$8))/2000","v":2.930177097397952},{"$f":"(SUMPRODUCT(AB$9:AB$229,Nutrients!$J$8:$J$228)+(IF($A$7=Nutrients!$B$8,Nutrients!$J$8,Nutrients!$J$9)*AB$7)+(((IF($A$8=Nutrients!$B$79,Nutrients!$J$79,(IF($A$8=Nutrients!$B$77,Nutrients!$J$77,Nutrients!$J$78)))))*AB$8))/2000","v":2.9003982753747009},null,{"$f":"(SUMPRODUCT(AD$9:AD$229,Nutrients!$J$8:$J$228)+(IF($A$7=Nutrients!$B$8,Nutrients!$J$8,Nutrients!$J$9)*AD$7)+(((IF($A$8=Nutrients!$B$79,Nutrients!$J$79,(IF($A$8=Nutrients!$B$77,Nutrients!$J$77,Nutrients!$J$78)))))*AD$8))/2000","v":3.4158871191151974},{"$f":"(SUMPRODUCT(AE$9:AE$229,Nutrients!$J$8:$J$228)+(IF($A$7=Nutrients!$B$8,Nutrients!$J$8,Nutrients!$J$9)*AE$7)+(((IF($A$8=Nutrients!$B$79,Nutrients!$J$79,(IF($A$8=Nutrients!$B$77,Nutrients!$J$77,Nutrients!$J$78)))))*AE$8))/2000","v":3.3462331123125635},{"$f":"(SUMPRODUCT(AF$9:AF$229,Nutrients!$J$8:$J$228)+(IF($A$7=Nutrients!$B$8,Nutrients!$J$8,Nutrients!$J$9)*AF$7)+(((IF($A$8=Nutrients!$B$79,Nutrients!$J$79,(IF($A$8=Nutrients!$B$77,Nutrients!$J$77,Nutrients!$J$78)))))*AF$8))/2000","v":3.2886888089335691},{"$f":"(SUMPRODUCT(AG$9:AG$229,Nutrients!$J$8:$J$228)+(IF($A$7=Nutrients!$B$8,Nutrients!$J$8,Nutrients!$J$9)*AG$7)+(((IF($A$8=Nutrients!$B$79,Nutrients!$J$79,(IF($A$8=Nutrients!$B$77,Nutrients!$J$77,Nutrients!$J$78)))))*AG$8))/2000","v":3.2290829297453163},{"$f":"(SUMPRODUCT(AH$9:AH$229,Nutrients!$J$8:$J$228)+(IF($A$7=Nutrients!$B$8,Nutrients!$J$8,Nutrients!$J$9)*AH$7)+(((IF($A$8=Nutrients!$B$79,Nutrients!$J$79,(IF($A$8=Nutrients!$B$77,Nutrients!$J$77,Nutrients!$J$78)))))*AH$8))/2000","v":3.1756912077705173},{"$f":"(SUMPRODUCT(AI$9:AI$229,Nutrients!$J$8:$J$228)+(IF($A$7=Nutrients!$B$8,Nutrients!$J$8,Nutrients!$J$9)*AI$7)+(((IF($A$8=Nutrients!$B$79,Nutrients!$J$79,(IF($A$8=Nutrients!$B$77,Nutrients!$J$77,Nutrients!$J$78)))))*AI$8))/2000","v":3.1452973962238984},null,{"$f":"(SUMPRODUCT(AK$9:AK$229,Nutrients!$J$8:$J$228)+(IF($A$7=Nutrients!$B$8,Nutrients!$J$8,Nutrients!$J$9)*AK$7)+(((IF($A$8=Nutrients!$B$79,Nutrients!$J$79,(IF($A$8=Nutrients!$B$77,Nutrients!$J$77,Nutrients!$J$78)))))*AK$8))/2000","v":3.6637748167889841},{"$f":"(SUMPRODUCT(AL$9:AL$229,Nutrients!$J$8:$J$228)+(IF($A$7=Nutrients!$B$8,Nutrients!$J$8,Nutrients!$J$9)*AL$7)+(((IF($A$8=Nutrients!$B$79,Nutrients!$J$79,(IF($A$8=Nutrients!$B$77,Nutrients!$J$77,Nutrients!$J$78)))))*AL$8))/2000","v":3.5940835104241042},{"$f":"(SUMPRODUCT(AM$9:AM$229,Nutrients!$J$8:$J$228)+(IF($A$7=Nutrients!$B$8,Nutrients!$J$8,Nutrients!$J$9)*AM$7)+(((IF($A$8=Nutrients!$B$79,Nutrients!$J$79,(IF($A$8=Nutrients!$B$77,Nutrients!$J$77,Nutrients!$J$78)))))*AM$8))/2000","v":3.5365938002378567},{"$f":"(SUMPRODUCT(AN$9:AN$229,Nutrients!$J$8:$J$228)+(IF($A$7=Nutrients!$B$8,Nutrients!$J$8,Nutrients!$J$9)*AN$7)+(((IF($A$8=Nutrients!$B$79,Nutrients!$J$79,(IF($A$8=Nutrients!$B$77,Nutrients!$J$77,Nutrients!$J$78)))))*AN$8))/2000","v":3.4749219336775514},{"$f":"(SUMPRODUCT(AO$9:AO$229,Nutrients!$J$8:$J$228)+(IF($A$7=Nutrients!$B$8,Nutrients!$J$8,Nutrients!$J$9)*AO$7)+(((IF($A$8=Nutrients!$B$79,Nutrients!$J$79,(IF($A$8=Nutrients!$B$77,Nutrients!$J$77,Nutrients!$J$78)))))*AO$8))/2000","v":3.4206022303123245},{"$f":"(SUMPRODUCT(AP$9:AP$229,Nutrients!$J$8:$J$228)+(IF($A$7=Nutrients!$B$8,Nutrients!$J$8,Nutrients!$J$9)*AP$7)+(((IF($A$8=Nutrients!$B$79,Nutrients!$J$79,(IF($A$8=Nutrients!$B$77,Nutrients!$J$77,Nutrients!$J$78)))))*AP$8))/2000","v":3.390192263276584},null,{"$f":"(SUMPRODUCT(AR$9:AR$229,Nutrients!$J$8:$J$228)+(IF($A$7=Nutrients!$B$8,Nutrients!$J$8,Nutrients!$J$9)*AR$7)+(((IF($A$8=Nutrients!$B$79,Nutrients!$J$79,(IF($A$8=Nutrients!$B$77,Nutrients!$J$77,Nutrients!$J$78)))))*AR$8))/2000","v":3.9115153342102138},{"$f":"(SUMPRODUCT(AS$9:AS$229,Nutrients!$J$8:$J$228)+(IF($A$7=Nutrients!$B$8,Nutrients!$J$8,Nutrients!$J$9)*AS$7)+(((IF($A$8=Nutrients!$B$79,Nutrients!$J$79,(IF($A$8=Nutrients!$B$77,Nutrients!$J$77,Nutrients!$J$78)))))*AS$8))/2000","v":3.8419118424058079},{"$f":"(SUMPRODUCT(AT$9:AT$229,Nutrients!$J$8:$J$228)+(IF($A$7=Nutrients!$B$8,Nutrients!$J$8,Nutrients!$J$9)*AT$7)+(((IF($A$8=Nutrients!$B$79,Nutrients!$J$79,(IF($A$8=Nutrients!$B$77,Nutrients!$J$77,Nutrients!$J$78)))))*AT$8))/2000","v":3.7841223653311413},{"$f":"(SUMPRODUCT(AU$9:AU$229,Nutrients!$J$8:$J$228)+(IF($A$7=Nutrients!$B$8,Nutrients!$J$8,Nutrients!$J$9)*AU$7)+(((IF($A$8=Nutrients!$B$79,Nutrients!$J$79,(IF($A$8=Nutrients!$B$77,Nutrients!$J$77,Nutrients!$J$78)))))*AU$8))/2000","v":3.7198363995580066},{"$f":"(SUMPRODUCT(AV$9:AV$229,Nutrients!$J$8:$J$228)+(IF($A$7=Nutrients!$B$8,Nutrients!$J$8,Nutrients!$J$9)*AV$7)+(((IF($A$8=Nutrients!$B$79,Nutrients!$J$79,(IF($A$8=Nutrients!$B$77,Nutrients!$J$77,Nutrients!$J$78)))))*AV$8))/2000","v":3.6655128293698302},{"$f":"(SUMPRODUCT(AW$9:AW$229,Nutrients!$J$8:$J$228)+(IF($A$7=Nutrients!$B$8,Nutrients!$J$8,Nutrients!$J$9)*AW$7)+(((IF($A$8=Nutrients!$B$79,Nutrients!$J$79,(IF($A$8=Nutrients!$B$77,Nutrients!$J$77,Nutrients!$J$78)))))*AW$8))/2000","v":3.6350869206416188}]
["Lactose, %",{"$f":"(SUMPRODUCT(B$9:B$229,Nutrients!$ED$8:$ED$228)+(IF($A$7=Nutrients!$B$8,Nutrients!$ED$8,Nutrients!$ED$9)*B$7)+(((IF($A$8=Nutrients!$B$79,Nutrients!$ED$79,(IF($A$8=Nutrients!$B$77,Nutrients!$ED$77,Nutrients!$ED$78)))))*B$8))/2000","v":0},{"$f":"(SUMPRODUCT(C$9:C$229,Nutrients!$ED$8:$ED$228)+(IF($A$7=Nutrients!$B$8,Nutrients!$ED$8,Nutrients!$ED$9)*C$7)+(((IF($A$8=Nutrients!$B$79,Nutrients!$ED$79,(IF($A$8=Nutrients!$B$77,Nutrients!$ED$77,Nutrients!$ED$78)))))*C$8))/2000","v":0},{"$f":"(SUMPRODUCT(D$9:D$229,Nutrients!$ED$8:$ED$228)+(IF($A$7=Nutrients!$B$8,Nutrients!$ED$8,Nutrients!$ED$9)*D$7)+(((IF($A$8=Nutrients!$B$79,Nutrients!$ED$79,(IF($A$8=Nutrients!$B$77,Nutrients!$ED$77,Nutrients!$ED$78)))))*D$8))/2000","v":0},{"$f":"(SUMPRODUCT(E$9:E$229,Nutrients!$ED$8:$ED$228)+(IF($A$7=Nutrients!$B$8,Nutrients!$ED$8,Nutrients!$ED$9)*E$7)+(((IF($A$8=Nutrients!$B$79,Nutrients!$ED$79,(IF($A$8=Nutrients!$B$77,Nutrients!$ED$77,Nutrients!$ED$78)))))*E$8))/2000","v":0},{"$f":"(SUMPRODUCT(F$9:F$229,Nutrients!$ED$8:$ED$228)+(IF($A$7=Nutrients!$B$8,Nutrients!$ED$8,Nutrients!$ED$9)*F$7)+(((IF($A$8=Nutrients!$B$79,Nutrients!$ED$79,(IF($A$8=Nutrients!$B$77,Nutrients!$ED$77,Nutrients!$ED$78)))))*F$8))/2000","v":0},{"$f":"(SUMPRODUCT(G$9:G$229,Nutrients!$ED$8:$ED$228)+(IF($A$7=Nutrients!$B$8,Nutrients!$ED$8,Nutrients!$ED$9)*G$7)+(((IF($A$8=Nutrients!$B$79,Nutrients!$ED$79,(IF($A$8=Nutrients!$B$77,Nutrients!$ED$77,Nutrients!$ED$78)))))*G$8))/2000","v":0},null,{"$f":"(SUMPRODUCT(I$9:I$229,Nutrients!$ED$8:$ED$228)+(IF($A$7=Nutrients!$B$8,Nutrients!$ED$8,Nutrients!$ED$9)*I$7)+(((IF($A$8=Nutrients!$B$79,Nutrients!$ED$79,(IF($A$8=Nutrients!$B$77,Nutrients!$ED$77,Nutrients!$ED$78)))))*I$8))/2000","v":0},{"$f":"(SUMPRODUCT(J$9:J$229,Nutrients!$ED$8:$ED$228)+(IF($A$7=Nutrients!$B$8,Nutrients!$ED$8,Nutrients!$ED$9)*J$7)+(((IF($A$8=Nutrients!$B$79,Nutrients!$ED$79,(IF($A$8=Nutrients!$B$77,Nutrients!$ED$77,Nutrients!$ED$78)))))*J$8))/2000","v":0},{"$f":"(SUMPRODUCT(K$9:K$229,Nutrients!$ED$8:$ED$228)+(IF($A$7=Nutrients!$B$8,Nutrients!$ED$8,Nutrients!$ED$9)*K$7)+(((IF($A$8=Nutrients!$B$79,Nutrients!$ED$79,(IF($A$8=Nutrients!$B$77,Nutrients!$ED$77,Nutrients!$ED$78)))))*K$8))/2000","v":0},{"$f":"(SUMPRODUCT(L$9:L$229,Nutrients!$ED$8:$ED$228)+(IF($A$7=Nutrients!$B$8,Nutrients!$ED$8,Nutrients!$ED$9)*L$7)+(((IF($A$8=Nutrients!$B$79,Nutrients!$ED$79,(IF($A$8=Nutrients!$B$77,Nutrients!$ED$77,Nutrients!$ED$78)))))*L$8))/2000","v":0},{"$f":"(SUMPRODUCT(M$9:M$229,Nutrients!$ED$8:$ED$228)+(IF($A$7=Nutrients!$B$8,Nutrients!$ED$8,Nutrients!$ED$9)*M$7)+(((IF($A$8=Nutrients!$B$79,Nutrients!$ED$79,(IF($A$8=Nutrients!$B$77,Nutrients!$ED$77,Nutrients!$ED$78)))))*M$8))/2000","v":0},{"$f":"(SUMPRODUCT(N$9:N$229,Nutrients!$ED$8:$ED$228)+(IF($A$7=Nutrients!$B$8,Nutrients!$ED$8,Nutrients!$ED$9)*N$7)+(((IF($A$8=Nutrients!$B$79,Nutrients!$ED$79,(IF($A$8=Nutrients!$B$77,Nutrients!$ED$77,Nutrients!$ED$78)))))*N$8))/2000","v":0},null,{"$f":"(SUMPRODUCT(P$9:P$229,Nutrients!$ED$8:$ED$228)+(IF($A$7=Nutrients!$B$8,Nutrients!$ED$8,Nutrients!$ED$9)*P$7)+(((IF($A$8=Nutrients!$B$79,Nutrients!$ED$79,(IF($A$8=Nutrients!$B$77,Nutrients!$ED$77,Nutrients!$ED$78)))))*P$8))/2000","v":0},{"$f":"(SUMPRODUCT(Q$9:Q$229,Nutrients!$ED$8:$ED$228)+(IF($A$7=Nutrients!$B$8,Nutrients!$ED$8,Nutrients!$ED$9)*Q$7)+(((IF($A$8=Nutrients!$B$79,Nutrients!$ED$79,(IF($A$8=Nutrients!$B$77,Nutrients!$ED$77,Nutrients!$ED$78)))))*Q$8))/2000","v":0},{"$f":"(SUMPRODUCT(R$9:R$229,Nutrients!$ED$8:$ED$228)+(IF($A$7=Nutrients!$B$8,Nutrients!$ED$8,Nutrients!$ED$9)*R$7)+(((IF($A$8=Nutrients!$B$79,Nutrients!$ED$79,(IF($A$8=Nutrients!$B$77,Nutrients!$ED$77,Nutrients!$ED$78)))))*R$8))/2000","v":0},{"$f":"(SUMPRODUCT(S$9:S$229,Nutrients!$ED$8:$ED$228)+(IF($A$7=Nutrients!$B$8,Nutrients!$ED$8,Nutrients!$ED$9)*S$7)+(((IF($A$8=Nutrients!$B$79,Nutrients!$ED$79,(IF($A$8=Nutrients!$B$77,Nutrients!$ED$77,Nutrients!$ED$78)))))*S$8))/2000","v":0},{"$f":"(SUMPRODUCT(T$9:T$229,Nutrients!$ED$8:$ED$228)+(IF($A$7=Nutrients!$B$8,Nutrients!$ED$8,Nutrients!$ED$9)*T$7)+(((IF($A$8=Nutrients!$B$79,Nutrients!$ED$79,(IF($A$8=Nutrients!$B$77,Nutrients!$ED$77,Nutrients!$ED$78)))))*T$8))/2000","v":0},{"$f":"(SUMPRODUCT(U$9:U$229,Nutrients!$ED$8:$ED$228)+(IF($A$7=Nutrients!$B$8,Nutrients!$ED$8,Nutrients!$ED$9)*U$7)+(((IF($A$8=Nutrients!$B$79,Nutrients!$ED$79,(IF($A$8=Nutrients!$B$77,Nutrients!$ED$77,Nutrients!$ED$78)))))*U$8))/2000","v":0},null,{"$f":"(SUMPRODUCT(W$9:W$229,Nutrients!$ED$8:$ED$228)+(IF($A$7=Nutrients!$B$8,Nutrients!$ED$8,Nutrients!$ED$9)*W$7)+(((IF($A$8=Nutrients!$B$79,Nutrients!$ED$79,(IF($A$8=Nutrients!$B$77,Nutrients!$ED$77,Nutrients!$ED$78)))))*W$8))/2000","v":0},{"$f":"(SUMPRODUCT(X$9:X$229,Nutrients!$ED$8:$ED$228)+(IF($A$7=Nutrients!$B$8,Nutrients!$ED$8,Nutrients!$ED$9)*X$7)+(((IF($A$8=Nutrients!$B$79,Nutrients!$ED$79,(IF($A$8=Nutrients!$B$77,Nutrients!$ED$77,Nutrients!$ED$78)))))*X$8))/2000","v":0},{"$f":"(SUMPRODUCT(Y$9:Y$229,Nutrients!$ED$8:$ED$228)+(IF($A$7=Nutrients!$B$8,Nutrients!$ED$8,Nutrients!$ED$9)*Y$7)+(((IF($A$8=Nutrients!$B$79,Nutrients!$ED$79,(IF($A$8=Nutrients!$B$77,Nutrients!$ED$77,Nutrients!$ED$78)))))*Y$8))/2000","v":0},{"$f":"(SUMPRODUCT(Z$9:Z$229,Nutrients!$ED$8:$ED$228)+(IF($A$7=Nutrients!$B$8,Nutrients!$ED$8,Nutrients!$ED$9)*Z$7)+(((IF($A$8=Nutrients!$B$79,Nutrients!$ED$79,(IF($A$8=Nutrients!$B$77,Nutrients!$ED$77,Nutrients!$ED$78)))))*Z$8))/2000","v":0},{"$f":"(SUMPRODUCT(AA$9:AA$229,Nutrients!$ED$8:$ED$228)+(IF($A$7=Nutrients!$B$8,Nutrients!$ED$8,Nutrients!$ED$9)*AA$7)+(((IF($A$8=Nutrients!$B$79,Nutrients!$ED$79,(IF($A$8=Nutrients!$B$77,Nutrients!$ED$77,Nutrients!$ED$78)))))*AA$8))/2000","v":0},{"$f":"(SUMPRODUCT(AB$9:AB$229,Nutrients!$ED$8:$ED$228)+(IF($A$7=Nutrients!$B$8,Nutrients!$ED$8,Nutrients!$ED$9)*AB$7)+(((IF($A$8=Nutrients!$B$79,Nutrients!$ED$79,(IF($A$8=Nutrients!$B$77,Nutrients!$ED$77,Nutrients!$ED$78)))))*AB$8))/2000","v":0},null,{"$f":"(SUMPRODUCT(AD$9:AD$229,Nutrients!$ED$8:$ED$228)+(IF($A$7=Nutrients!$B$8,Nutrients!$ED$8,Nutrients!$ED$9)*AD$7)+(((IF($A$8=Nutrients!$B$79,Nutrients!$ED$79,(IF($A$8=Nutrients!$B$77,Nutrients!$ED$77,Nutrients!$ED$78)))))*AD$8))/2000","v":0},{"$f":"(SUMPRODUCT(AE$9:AE$229,Nutrients!$ED$8:$ED$228)+(IF($A$7=Nutrients!$B$8,Nutrients!$ED$8,Nutrients!$ED$9)*AE$7)+(((IF($A$8=Nutrients!$B$79,Nutrients!$ED$79,(IF($A$8=Nutrients!$B$77,Nutrients!$ED$77,Nutrients!$ED$78)))))*AE$8))/2000","v":0},{"$f":"(SUMPRODUCT(AF$9:AF$229,Nutrients!$ED$8:$ED$228)+(IF($A$7=Nutrients!$B$8,Nutrients!$ED$8,Nutrients!$ED$9)*AF$7)+(((IF($A$8=Nutrients!$B$79,Nutrients!$ED$79,(IF($A$8=Nutrients!$B$77,Nutrients!$ED$77,Nutrients!$ED$78)))))*AF$8))/2000","v":0},{"$f":"(SUMPRODUCT(AG$9:AG$229,Nutrients!$ED$8:$ED$228)+(IF($A$7=Nutrients!$B$8,Nutrients!$ED$8,Nutrients!$ED$9)*AG$7)+(((IF($A$8=Nutrients!$B$79,Nutrients!$ED$79,(IF($A$8=Nutrients!$B$77,Nutrients!$ED$77,Nutrients!$ED$78)))))*AG$8))/2000","v":0},{"$f":"(SUMPRODUCT(AH$9:AH$229,Nutrients!$ED$8:$ED$228)+(IF($A$7=Nutrients!$B$8,Nutrients!$ED$8,Nutrients!$ED$9)*AH$7)+(((IF($A$8=Nutrients!$B$79,Nutrients!$ED$79,(IF($A$8=Nutrients!$B$77,Nutrients!$ED$77,Nutrients!$ED$78)))))*AH$8))/2000","v":0},{"$f":"(SUMPRODUCT(AI$9:AI$229,Nutrients!$ED$8:$ED$228)+(IF($A$7=Nutrients!$B$8,Nutrients!$ED$8,Nutrients!$ED$9)*AI$7)+(((IF($A$8=Nutrients!$B$79,Nutrients!$ED$79,(IF($A$8=Nutrients!$B$77,Nutrients!$ED$77,Nutrients!$ED$78)))))*AI$8))/2000","v":0},null,{"$f":"(SUMPRODUCT(AK$9:AK$229,Nutrients!$ED$8:$ED$228)+(IF($A$7=Nutrients!$B$8,Nutrients!$ED$8,Nutrients!$ED$9)*AK$7)+(((IF($A$8=Nutrients!$B$79,Nutrients!$ED$79,(IF($A$8=Nutrients!$B$77,Nutrients!$ED$77,Nutrients!$ED$78)))))*AK$8))/2000","v":0},{"$f":"(SUMPRODUCT(AL$9:AL$229,Nutrients!$ED$8:$ED$228)+(IF($A$7=Nutrients!$B$8,Nutrients!$ED$8,Nutrients!$ED$9)*AL$7)+(((IF($A$8=Nutrients!$B$79,Nutrients!$ED$79,(IF($A$8=Nutrients!$B$77,Nutrients!$ED$77,Nutrients!$ED$78)))))*AL$8))/2000","v":0},{"$f":"(SUMPRODUCT(AM$9:AM$229,Nutrients!$ED$8:$ED$228)+(IF($A$7=Nutrients!$B$8,Nutrients!$ED$8,Nutrients!$ED$9)*AM$7)+(((IF($A$8=Nutrients!$B$79,Nutrients!$ED$79,(IF($A$8=Nutrients!$B$77,Nutrients!$ED$77,Nutrients!$ED$78)))))*AM$8))/2000","v":0},{"$f":"(SUMPRODUCT(AN$9:AN$229,Nutrients!$ED$8:$ED$228)+(IF($A$7=Nutrients!$B$8,Nutrients!$ED$8,Nutrients!$ED$9)*AN$7)+(((IF($A$8=Nutrients!$B$79,Nutrients!$ED$79,(IF($A$8=Nutrients!$B$77,Nutrients!$ED$77,Nutrients!$ED$78)))))*AN$8))/2000","v":0},{"$f":"(SUMPRODUCT(AO$9:AO$229,Nutrients!$ED$8:$ED$228)+(IF($A$7=Nutrients!$B$8,Nutrients!$ED$8,Nutrients!$ED$9)*AO$7)+(((IF($A$8=Nutrients!$B$79,Nutrients!$ED$79,(IF($A$8=Nutrients!$B$77,Nutrients!$ED$77,Nutrients!$ED$78)))))*AO$8))/2000","v":0},{"$f":"(SUMPRODUCT(AP$9:AP$229,Nutrients!$ED$8:$ED$228)+(IF($A$7=Nutrients!$B$8,Nutrients!$ED$8,Nutrients!$ED$9)*AP$7)+(((IF($A$8=Nutrients!$B$79,Nutrients!$ED$79,(IF($A$8=Nutrients!$B$77,Nutrients!$ED$77,Nutrients!$ED$78)))))*AP$8))/2000","v":0},null,{"$f":"(SUMPRODUCT(AR$9:AR$229,Nutrients!$ED$8:$ED$228)+(IF($A$7=Nutrients!$B$8,Nutrients!$ED$8,Nutrients!$ED$9)*AR$7)+(((IF($A$8=Nutrients!$B$79,Nutrients!$ED$79,(IF($A$8=Nutrients!$B$77,Nutrients!$ED$77,Nutrients!$ED$78)))))*AR$8))/2000","v":0},{"$f":"(SUMPRODUCT(AS$9:AS$229,Nutrients!$ED$8:$ED$228)+(IF($A$7=Nutrients!$B$8,Nutrients!$ED$8,Nutrients!$ED$9)*AS$7)+(((IF($A$8=Nutrients!$B$79,Nutrients!$ED$79,(IF($A$8=Nutrients!$B$77,Nutrients!$ED$77,Nutrients!$ED$78)))))*AS$8))/2000","v":0},{"$f":"(SUMPRODUCT(AT$9:AT$229,Nutrients!$ED$8:$ED$228)+(IF($A$7=Nutrients!$B$8,Nutrients!$ED$8,Nutrients!$ED$9)*AT$7)+(((IF($A$8=Nutrients!$B$79,Nutrients!$ED$79,(IF($A$8=Nutrients!$B$77,Nutrients!$ED$77,Nutrients!$ED$78)))))*AT$8))/2000","v":0},{"$f":"(SUMPRODUCT(AU$9:AU$229,Nutrients!$ED$8:$ED$228)+(IF($A$7=Nutrients!$B$8,Nutrients!$ED$8,Nutrients!$ED$9)*AU$7)+(((IF($A$8=Nutrients!$B$79,Nutrients!$ED$79,(IF($A$8=Nutrients!$B$77,Nutrients!$ED$77,Nutrients!$ED$78)))))*AU$8))/2000","v":0},{"$f":"(SUMPRODUCT(AV$9:AV$229,Nutrients!$ED$8:$ED$228)+(IF($A$7=Nutrients!$B$8,Nutrients!$ED$8,Nutrients!$ED$9)*AV$7)+(((IF($A$8=Nutrients!$B$79,Nutrients!$ED$79,(IF($A$8=Nutrients!$B$77,Nutrients!$ED$77,Nutrients!$ED$78)))))*AV$8))/2000","v":0},{"$f":"(SUMPRODUCT(AW$9:AW$229,Nutrients!$ED$8:$ED$228)+(IF($A$7=Nutrients!$B$8,Nutrients!$ED$8,Nutrients!$ED$9)*AW$7)+(((IF($A$8=Nutrients!$B$79,Nutrients!$ED$79,(IF($A$8=Nutrients!$B$77,Nutrients!$ED$77,Nutrients!$ED$78)))))*AW$8))/2000","v":0}]
["IV value of diet",{"$f":"(SUMPRODUCT(B$9:B$229,Nutrients!$EH$8:$EH$228)+(IF($A$7=Nutrients!$B$8,Nutrients!$EH$8,Nutrients!$EH$9)*B$7)+(((IF($A$8=Nutrients!$B$79,Nutrients!$EH$79,(IF($A$8=Nutrients!$B$77,Nutrients!$EH$77,Nutrients!$EH$78)))))*B$8))/2000","v":35.538484918485338},{"$f":"(SUMPRODUCT(C$9:C$229,Nutrients!$EH$8:$EH$228)+(IF($A$7=Nutrients!$B$8,Nutrients!$EH$8,Nutrients!$EH$9)*C$7)+(((IF($A$8=Nutrients!$B$79,Nutrients!$EH$79,(IF($A$8=Nutrients!$B$77,Nutrients!$EH$77,Nutrients!$EH$78)))))*C$8))/2000","v":36.696132579183029},{"$f":"(SUMPRODUCT(D$9:D$229,Nutrients!$EH$8:$EH$228)+(IF($A$7=Nutrients!$B$8,Nutrients!$EH$8,Nutrients!$EH$9)*D$7)+(((IF($A$8=Nutrients!$B$79,Nutrients!$EH$79,(IF($A$8=Nutrients!$B$77,Nutrients!$EH$77,Nutrients!$EH$78)))))*D$8))/2000","v":37.687698685025424},{"$f":"(SUMPRODUCT(E$9:E$229,Nutrients!$EH$8:$EH$228)+(IF($A$7=Nutrients!$B$8,Nutrients!$EH$8,Nutrients!$EH$9)*E$7)+(((IF($A$8=Nutrients!$B$79,Nutrients!$EH$79,(IF($A$8=Nutrients!$B$77,Nutrients!$EH$77,Nutrients!$EH$78)))))*E$8))/2000","v":38.621947982979158},{"$f":"(SUMPRODUCT(F$9:F$229,Nutrients!$EH$8:$EH$228)+(IF($A$7=Nutrients!$B$8,Nutrients!$EH$8,Nutrients!$EH$9)*F$7)+(((IF($A$8=Nutrients!$B$79,Nutrients!$EH$79,(IF($A$8=Nutrients!$B$77,Nutrients!$EH$77,Nutrients!$EH$78)))))*F$8))/2000","v":39.390416669843518},{"$f":"(SUMPRODUCT(G$9:G$229,Nutrients!$EH$8:$EH$228)+(IF($A$7=Nutrients!$B$8,Nutrients!$EH$8,Nutrients!$EH$9)*G$7)+(((IF($A$8=Nutrients!$B$79,Nutrients!$EH$79,(IF($A$8=Nutrients!$B$77,Nutrients!$EH$77,Nutrients!$EH$78)))))*G$8))/2000","v":39.795780240411979},null,{"$f":"(SUMPRODUCT(I$9:I$229,Nutrients!$EH$8:$EH$228)+(IF($A$7=Nutrients!$B$8,Nutrients!$EH$8,Nutrients!$EH$9)*I$7)+(((IF($A$8=Nutrients!$B$79,Nutrients!$EH$79,(IF($A$8=Nutrients!$B$77,Nutrients!$EH$77,Nutrients!$EH$78)))))*I$8))/2000","v":37.169653159982261},{"$f":"(SUMPRODUCT(J$9:J$229,Nutrients!$EH$8:$EH$228)+(IF($A$7=Nutrients!$B$8,Nutrients!$EH$8,Nutrients!$EH$9)*J$7)+(((IF($A$8=Nutrients!$B$79,Nutrients!$EH$79,(IF($A$8=Nutrients!$B$77,Nutrients!$EH$77,Nutrients!$EH$78)))))*J$8))/2000","v":38.35924317735688},{"$f":"(SUMPRODUCT(K$9:K$229,Nutrients!$EH$8:$EH$228)+(IF($A$7=Nutrients!$B$8,Nutrients!$EH$8,Nutrients!$EH$9)*K$7)+(((IF($A$8=Nutrients!$B$79,Nutrients!$EH$79,(IF($A$8=Nutrients!$B$77,Nutrients!$EH$77,Nutrients!$EH$78)))))*K$8))/2000","v":39.322484442451611},{"$f":"(SUMPRODUCT(L$9:L$229,Nutrients!$EH$8:$EH$228)+(IF($A$7=Nutrients!$B$8,Nutrients!$EH$8,Nutrients!$EH$9)*L$7)+(((IF($A$8=Nutrients!$B$79,Nutrients!$EH$79,(IF($A$8=Nutrients!$B$77,Nutrients!$EH$77,Nutrients!$EH$78)))))*L$8))/2000","v":40.287691584210933},{"$f":"(SUMPRODUCT(M$9:M$229,Nutrients!$EH$8:$EH$228)+(IF($A$7=Nutrients!$B$8,Nutrients!$EH$8,Nutrients!$EH$9)*M$7)+(((IF($A$8=Nutrients!$B$79,Nutrients!$EH$79,(IF($A$8=Nutrients!$B$77,Nutrients!$EH$77,Nutrients!$EH$78)))))*M$8))/2000","v":41.0655150151835},{"$f":"(SUMPRODUCT(N$9:N$229,Nutrients!$EH$8:$EH$228)+(IF($A$7=Nutrients!$B$8,Nutrients!$EH$8,Nutrients!$EH$9)*N$7)+(((IF($A$8=Nutrients!$B$79,Nutrients!$EH$79,(IF($A$8=Nutrients!$B$77,Nutrients!$EH$77,Nutrients!$EH$78)))))*N$8))/2000","v":41.45941179158811},null,{"$f":"(SUMPRODUCT(P$9:P$229,Nutrients!$EH$8:$EH$228)+(IF($A$7=Nutrients!$B$8,Nutrients!$EH$8,Nutrients!$EH$9)*P$7)+(((IF($A$8=Nutrients!$B$79,Nutrients!$EH$79,(IF($A$8=Nutrients!$B$77,Nutrients!$EH$77,Nutrients!$EH$78)))))*P$8))/2000","v":38.823219799899526},{"$f":"(SUMPRODUCT(Q$9:Q$229,Nutrients!$EH$8:$EH$228)+(IF($A$7=Nutrients!$B$8,Nutrients!$EH$8,Nutrients!$EH$9)*Q$7)+(((IF($A$8=Nutrients!$B$79,Nutrients!$EH$79,(IF($A$8=Nutrients!$B$77,Nutrients!$EH$77,Nutrients!$EH$78)))))*Q$8))/2000","v":40.013045961822343},{"$f":"(SUMPRODUCT(R$9:R$229,Nutrients!$EH$8:$EH$228)+(IF($A$7=Nutrients!$B$8,Nutrients!$EH$8,Nutrients!$EH$9)*R$7)+(((IF($A$8=Nutrients!$B$79,Nutrients!$EH$79,(IF($A$8=Nutrients!$B$77,Nutrients!$EH$77,Nutrients!$EH$78)))))*R$8))/2000","v":40.985668776055746},{"$f":"(SUMPRODUCT(S$9:S$229,Nutrients!$EH$8:$EH$228)+(IF($A$7=Nutrients!$B$8,Nutrients!$EH$8,Nutrients!$EH$9)*S$7)+(((IF($A$8=Nutrients!$B$79,Nutrients!$EH$79,(IF($A$8=Nutrients!$B$77,Nutrients!$EH$77,Nutrients!$EH$78)))))*S$8))/2000","v":41.939402665316734},{"$f":"(SUMPRODUCT(T$9:T$229,Nutrients!$EH$8:$EH$228)+(IF($A$7=Nutrients!$B$8,Nutrients!$EH$8,Nutrients!$EH$9)*T$7)+(((IF($A$8=Nutrients!$B$79,Nutrients!$EH$79,(IF($A$8=Nutrients!$B$77,Nutrients!$EH$77,Nutrients!$EH$78)))))*T$8))/2000","v":42.72814831617481},{"$f":"(SUMPRODUCT(U$9:U$229,Nutrients!$EH$8:$EH$228)+(IF($A$7=Nutrients!$B$8,Nutrients!$EH$8,Nutrients!$EH$9)*U$7)+(((IF($A$8=Nutrients!$B$79,Nutrients!$EH$79,(IF($A$8=Nutrients!$B$77,Nutrients!$EH$77,Nutrients!$EH$78)))))*U$8))/2000","v":43.128276098587691},null,{"$f":"(SUMPRODUCT(W$9:W$229,Nutrients!$EH$8:$EH$228)+(IF($A$7=Nutrients!$B$8,Nutrients!$EH$8,Nutrients!$EH$9)*W$7)+(((IF($A$8=Nutrients!$B$79,Nutrients!$EH$79,(IF($A$8=Nutrients!$B$77,Nutrients!$EH$77,Nutrients!$EH$78)))))*W$8))/2000","v":40.487151502341334},{"$f":"(SUMPRODUCT(X$9:X$229,Nutrients!$EH$8:$EH$228)+(IF($A$7=Nutrients!$B$8,Nutrients!$EH$8,Nutrients!$EH$9)*X$7)+(((IF($A$8=Nutrients!$B$79,Nutrients!$EH$79,(IF($A$8=Nutrients!$B$77,Nutrients!$EH$77,Nutrients!$EH$78)))))*X$8))/2000","v":41.68215562769543},{"$f":"(SUMPRODUCT(Y$9:Y$229,Nutrients!$EH$8:$EH$228)+(IF($A$7=Nutrients!$B$8,Nutrients!$EH$8,Nutrients!$EH$9)*Y$7)+(((IF($A$8=Nutrients!$B$79,Nutrients!$EH$79,(IF($A$8=Nutrients!$B$77,Nutrients!$EH$77,Nutrients!$EH$78)))))*Y$8))/2000","v":42.640229143191064},{"$f":"(SUMPRODUCT(Z$9:Z$229,Nutrients!$EH$8:$EH$228)+(IF($A$7=Nutrients!$B$8,Nutrients!$EH$8,Nutrients!$EH$9)*Z$7)+(((IF($A$8=Nutrients!$B$79,Nutrients!$EH$79,(IF($A$8=Nutrients!$B$77,Nutrients!$EH$77,Nutrients!$EH$78)))))*Z$8))/2000","v":43.598962068955018},{"$f":"(SUMPRODUCT(AA$9:AA$229,Nutrients!$EH$8:$EH$228)+(IF($A$7=Nutrients!$B$8,Nutrients!$EH$8,Nutrients!$EH$9)*AA$7)+(((IF($A$8=Nutrients!$B$79,Nutrients!$EH$79,(IF($A$8=Nutrients!$B$77,Nutrients!$EH$77,Nutrients!$EH$78)))))*AA$8))/2000","v":44.367546159161051},{"$f":"(SUMPRODUCT(AB$9:AB$229,Nutrients!$EH$8:$EH$228)+(IF($A$7=Nutrients!$B$8,Nutrients!$EH$8,Nutrients!$EH$9)*AB$7)+(((IF($A$8=Nutrients!$B$79,Nutrients!$EH$79,(IF($A$8=Nutrients!$B$77,Nutrients!$EH$77,Nutrients!$EH$78)))))*AB$8))/2000","v":44.825943422631212},null,{"$f":"(SUMPRODUCT(AD$9:AD$229,Nutrients!$EH$8:$EH$228)+(IF($A$7=Nutrients!$B$8,Nutrients!$EH$8,Nutrients!$EH$9)*AD$7)+(((IF($A$8=Nutrients!$B$79,Nutrients!$EH$79,(IF($A$8=Nutrients!$B$77,Nutrients!$EH$77,Nutrients!$EH$78)))))*AD$8))/2000","v":42.153337475132474},{"$f":"(SUMPRODUCT(AE$9:AE$229,Nutrients!$EH$8:$EH$228)+(IF($A$7=Nutrients!$B$8,Nutrients!$EH$8,Nutrients!$EH$9)*AE$7)+(((IF($A$8=Nutrients!$B$79,Nutrients!$EH$79,(IF($A$8=Nutrients!$B$77,Nutrients!$EH$77,Nutrients!$EH$78)))))*AE$8))/2000","v":43.340288022070212},{"$f":"(SUMPRODUCT(AF$9:AF$229,Nutrients!$EH$8:$EH$228)+(IF($A$7=Nutrients!$B$8,Nutrients!$EH$8,Nutrients!$EH$9)*AF$7)+(((IF($A$8=Nutrients!$B$79,Nutrients!$EH$79,(IF($A$8=Nutrients!$B$77,Nutrients!$EH$77,Nutrients!$EH$78)))))*AF$8))/2000","v":44.299301882125484},{"$f":"(SUMPRODUCT(AG$9:AG$229,Nutrients!$EH$8:$EH$228)+(IF($A$7=Nutrients!$B$8,Nutrients!$EH$8,Nutrients!$EH$9)*AG$7)+(((IF($A$8=Nutrients!$B$79,Nutrients!$EH$79,(IF($A$8=Nutrients!$B$77,Nutrients!$EH$77,Nutrients!$EH$78)))))*AG$8))/2000","v":45.249812899691278},{"$f":"(SUMPRODUCT(AH$9:AH$229,Nutrients!$EH$8:$EH$228)+(IF($A$7=Nutrients!$B$8,Nutrients!$EH$8,Nutrients!$EH$9)*AH$7)+(((IF($A$8=Nutrients!$B$79,Nutrients!$EH$79,(IF($A$8=Nutrients!$B$77,Nutrients!$EH$77,Nutrients!$EH$78)))))*AH$8))/2000","v":46.206515547325957},{"$f":"(SUMPRODUCT(AI$9:AI$229,Nutrients!$EH$8:$EH$228)+(IF($A$7=Nutrients!$B$8,Nutrients!$EH$8,Nutrients!$EH$9)*AI$7)+(((IF($A$8=Nutrients!$B$79,Nutrients!$EH$79,(IF($A$8=Nutrients!$B$77,Nutrients!$EH$77,Nutrients!$EH$78)))))*AI$8))/2000","v":46.73869014943979},null,{"$f":"(SUMPRODUCT(AK$9:AK$229,Nutrients!$EH$8:$EH$228)+(IF($A$7=Nutrients!$B$8,Nutrients!$EH$8,Nutrients!$EH$9)*AK$7)+(((IF($A$8=Nutrients!$B$79,Nutrients!$EH$79,(IF($A$8=Nutrients!$B$77,Nutrients!$EH$77,Nutrients!$EH$78)))))*AK$8))/2000","v":43.820738181135056},{"$f":"(SUMPRODUCT(AL$9:AL$229,Nutrients!$EH$8:$EH$228)+(IF($A$7=Nutrients!$B$8,Nutrients!$EH$8,Nutrients!$EH$9)*AL$7)+(((IF($A$8=Nutrients!$B$79,Nutrients!$EH$79,(IF($A$8=Nutrients!$B$77,Nutrients!$EH$77,Nutrients!$EH$78)))))*AL$8))/2000","v":45.007652685042004},{"$f":"(SUMPRODUCT(AM$9:AM$229,Nutrients!$EH$8:$EH$228)+(IF($A$7=Nutrients!$B$8,Nutrients!$EH$8,Nutrients!$EH$9)*AM$7)+(((IF($A$8=Nutrients!$B$79,Nutrients!$EH$79,(IF($A$8=Nutrients!$B$77,Nutrients!$EH$77,Nutrients!$EH$78)))))*AM$8))/2000","v":45.951916066872911},{"$f":"(SUMPRODUCT(AN$9:AN$229,Nutrients!$EH$8:$EH$228)+(IF($A$7=Nutrients!$B$8,Nutrients!$EH$8,Nutrients!$EH$9)*AN$7)+(((IF($A$8=Nutrients!$B$79,Nutrients!$EH$79,(IF($A$8=Nutrients!$B$77,Nutrients!$EH$77,Nutrients!$EH$78)))))*AN$8))/2000","v":47.042155027235289},{"$f":"(SUMPRODUCT(AO$9:AO$229,Nutrients!$EH$8:$EH$228)+(IF($A$7=Nutrients!$B$8,Nutrients!$EH$8,Nutrients!$EH$9)*AO$7)+(((IF($A$8=Nutrients!$B$79,Nutrients!$EH$79,(IF($A$8=Nutrients!$B$77,Nutrients!$EH$77,Nutrients!$EH$78)))))*AO$8))/2000","v":48.11593308971824},{"$f":"(SUMPRODUCT(AP$9:AP$229,Nutrients!$EH$8:$EH$228)+(IF($A$7=Nutrients!$B$8,Nutrients!$EH$8,Nutrients!$EH$9)*AP$7)+(((IF($A$8=Nutrients!$B$79,Nutrients!$EH$79,(IF($A$8=Nutrients!$B$77,Nutrients!$EH$77,Nutrients!$EH$78)))))*AP$8))/2000","v":48.652697485060187},null,{"$f":"(SUMPRODUCT(AR$9:AR$229,Nutrients!$EH$8:$EH$228)+(IF($A$7=Nutrients!$B$8,Nutrients!$EH$8,Nutrients!$EH$9)*AR$7)+(((IF($A$8=Nutrients!$B$79,Nutrients!$EH$79,(IF($A$8=Nutrients!$B$77,Nutrients!$EH$77,Nutrients!$EH$78)))))*AR$8))/2000","v":45.526405233056607},{"$f":"(SUMPRODUCT(AS$9:AS$229,Nutrients!$EH$8:$EH$228)+(IF($A$7=Nutrients!$B$8,Nutrients!$EH$8,Nutrients!$EH$9)*AS$7)+(((IF($A$8=Nutrients!$B$79,Nutrients!$EH$79,(IF($A$8=Nutrients!$B$77,Nutrients!$EH$77,Nutrients!$EH$78)))))*AS$8))/2000","v":46.656028884411555},{"$f":"(SUMPRODUCT(AT$9:AT$229,Nutrients!$EH$8:$EH$228)+(IF($A$7=Nutrients!$B$8,Nutrients!$EH$8,Nutrients!$EH$9)*AT$7)+(((IF($A$8=Nutrients!$B$79,Nutrients!$EH$79,(IF($A$8=Nutrients!$B$77,Nutrients!$EH$77,Nutrients!$EH$78)))))*AT$8))/2000","v":47.591323561228798},{"$f":"(SUMPRODUCT(AU$9:AU$229,Nutrients!$EH$8:$EH$228)+(IF($A$7=Nutrients!$B$8,Nutrients!$EH$8,Nutrients!$EH$9)*AU$7)+(((IF($A$8=Nutrients!$B$79,Nutrients!$EH$79,(IF($A$8=Nutrients!$B$77,Nutrients!$EH$77,Nutrients!$EH$78)))))*AU$8))/2000","v":48.947123054693819},{"$f":"(SUMPRODUCT(AV$9:AV$229,Nutrients!$EH$8:$EH$228)+(IF($A$7=Nutrients!$B$8,Nutrients!$EH$8,Nutrients!$EH$9)*AV$7)+(((IF($A$8=Nutrients!$B$79,Nutrients!$EH$79,(IF($A$8=Nutrients!$B$77,Nutrients!$EH$77,Nutrients!$EH$78)))))*AV$8))/2000","v":50.025454938608455},{"$f":"(SUMPRODUCT(AW$9:AW$229,Nutrients!$EH$8:$EH$228)+(IF($A$7=Nutrients!$B$8,Nutrients!$EH$8,Nutrients!$EH$9)*AW$7)+(((IF($A$8=Nutrients!$B$79,Nutrients!$EH$79,(IF($A$8=Nutrients!$B$77,Nutrients!$EH$77,Nutrients!$EH$78)))))*AW$8))/2000","v":50.566749363592592}]
["IV value of product, estimate",{"$f":"(0.4472*B304)+51.796","v":67.688810455546644},68.206510489410647,68.649938851943375,69.067735137988279,69.411394334754021,69.592672923512239,null,{"$f":"(0.4472*I304)+51.796","v":68.418268893144074},68.950253548913992,69.381015042664359,69.81265567645913,70.160498314790061,70.336648953198207,null,{"$f":"(0.4472*P304)+51.796","v":69.157743894515065},69.689834154126942,70.12479107665213,70.551300871929641,70.904027926993379,71.082965071288413,null,{"$f":"(0.4472*W304)+51.796","v":69.901854151847047},70.436259996705388,70.864710472835043,71.293455837236678,71.637166642376826,71.842161898600679,null,{"$f":"(0.4472*AD304)+51.796","v":70.646972518879238},71.177776803469797,71.606647801686506,72.031716328741936,72.459553752764165,72.69754223482947,null,{"$f":"(0.4472*AK304)+51.796","v":71.392634114603595},71.923422280750785,72.345696865105566,72.833251728179619,73.313445277721996,73.553486315318906,null,{"$f":"(0.4472*AR304)+51.796","v":72.155408420222912},72.660576117108846,73.078839896581513,73.685153430059074,74.167383448545706,74.409450315398601]
["Na, %",{"$f":"(SUMPRODUCT(B$9:B$229,Nutrients!$BW$8:$BW$228)+(IF($A$7=Nutrients!$B$8,Nutrients!$BW$8,Nutrients!$BW$9)*B$7)+(((IF($A$8=Nutrients!$B$79,Nutrients!$BW$79,(IF($A$8=Nutrients!$B$77,Nutrients!$BW$77,Nutrients!$BW$78)))))*B$8))/2000","v":0.17585444277585438},{"$f":"(SUMPRODUCT(C$9:C$229,Nutrients!$BW$8:$BW$228)+(IF($A$7=Nutrients!$B$8,Nutrients!$BW$8,Nutrients!$BW$9)*C$7)+(((IF($A$8=Nutrients!$B$79,Nutrients!$BW$79,(IF($A$8=Nutrients!$B$77,Nutrients!$BW$77,Nutrients!$BW$78)))))*C$8))/2000","v":0.17313593688104692},{"$f":"(SUMPRODUCT(D$9:D$229,Nutrients!$BW$8:$BW$228)+(IF($A$7=Nutrients!$B$8,Nutrients!$BW$8,Nutrients!$BW$9)*D$7)+(((IF($A$8=Nutrients!$B$79,Nutrients!$BW$79,(IF($A$8=Nutrients!$B$77,Nutrients!$BW$77,Nutrients!$BW$78)))))*D$8))/2000","v":0.17084392516917876},{"$f":"(SUMPRODUCT(E$9:E$229,Nutrients!$BW$8:$BW$228)+(IF($A$7=Nutrients!$B$8,Nutrients!$BW$8,Nutrients!$BW$9)*E$7)+(((IF($A$8=Nutrients!$B$79,Nutrients!$BW$79,(IF($A$8=Nutrients!$B$77,Nutrients!$BW$77,Nutrients!$BW$78)))))*E$8))/2000","v":0.16862311318463774},{"$f":"(SUMPRODUCT(F$9:F$229,Nutrients!$BW$8:$BW$228)+(IF($A$7=Nutrients!$B$8,Nutrients!$BW$8,Nutrients!$BW$9)*F$7)+(((IF($A$8=Nutrients!$B$79,Nutrients!$BW$79,(IF($A$8=Nutrients!$B$77,Nutrients!$BW$77,Nutrients!$BW$78)))))*F$8))/2000","v":0.16677873706348853},{"$f":"(SUMPRODUCT(G$9:G$229,Nutrients!$BW$8:$BW$228)+(IF($A$7=Nutrients!$B$8,Nutrients!$BW$8,Nutrients!$BW$9)*G$7)+(((IF($A$8=Nutrients!$B$79,Nutrients!$BW$79,(IF($A$8=Nutrients!$B$77,Nutrients!$BW$77,Nutrients!$BW$78)))))*G$8))/2000","v":0.16577103413561747},null,{"$f":"(SUMPRODUCT(I$9:I$229,Nutrients!$BW$8:$BW$228)+(IF($A$7=Nutrients!$B$8,Nutrients!$BW$8,Nutrients!$BW$9)*I$7)+(((IF($A$8=Nutrients!$B$79,Nutrients!$BW$79,(IF($A$8=Nutrients!$B$77,Nutrients!$BW$77,Nutrients!$BW$78)))))*I$8))/2000","v":0.18336019689860844},{"$f":"(SUMPRODUCT(J$9:J$229,Nutrients!$BW$8:$BW$228)+(IF($A$7=Nutrients!$B$8,Nutrients!$BW$8,Nutrients!$BW$9)*J$7)+(((IF($A$8=Nutrients!$B$79,Nutrients!$BW$79,(IF($A$8=Nutrients!$B$77,Nutrients!$BW$77,Nutrients!$BW$78)))))*J$8))/2000","v":0.18064935822550934},{"$f":"(SUMPRODUCT(K$9:K$229,Nutrients!$BW$8:$BW$228)+(IF($A$7=Nutrients!$B$8,Nutrients!$BW$8,Nutrients!$BW$9)*K$7)+(((IF($A$8=Nutrients!$B$79,Nutrients!$BW$79,(IF($A$8=Nutrients!$B$77,Nutrients!$BW$77,Nutrients!$BW$78)))))*K$8))/2000","v":0.17834400171431383},{"$f":"(SUMPRODUCT(L$9:L$229,Nutrients!$BW$8:$BW$228)+(IF($A$7=Nutrients!$B$8,Nutrients!$BW$8,Nutrients!$BW$9)*L$7)+(((IF($A$8=Nutrients!$B$79,Nutrients!$BW$79,(IF($A$8=Nutrients!$B$77,Nutrients!$BW$77,Nutrients!$BW$78)))))*L$8))/2000","v":0.17612939260193294},{"$f":"(SUMPRODUCT(M$9:M$229,Nutrients!$BW$8:$BW$228)+(IF($A$7=Nutrients!$B$8,Nutrients!$BW$8,Nutrients!$BW$9)*M$7)+(((IF($A$8=Nutrients!$B$79,Nutrients!$BW$79,(IF($A$8=Nutrients!$B$77,Nutrients!$BW$77,Nutrients!$BW$78)))))*M$8))/2000","v":0.17428593646768656},{"$f":"(SUMPRODUCT(N$9:N$229,Nutrients!$BW$8:$BW$228)+(IF($A$7=Nutrients!$B$8,Nutrients!$BW$8,Nutrients!$BW$9)*N$7)+(((IF($A$8=Nutrients!$B$79,Nutrients!$BW$79,(IF($A$8=Nutrients!$B$77,Nutrients!$BW$77,Nutrients!$BW$78)))))*N$8))/2000","v":0.17327674088277822},null,{"$f":"(SUMPRODUCT(P$9:P$229,Nutrients!$BW$8:$BW$228)+(IF($A$7=Nutrients!$B$8,Nutrients!$BW$8,Nutrients!$BW$9)*P$7)+(((IF($A$8=Nutrients!$B$79,Nutrients!$BW$79,(IF($A$8=Nutrients!$B$77,Nutrients!$BW$77,Nutrients!$BW$78)))))*P$8))/2000","v":0.1908670613461714},{"$f":"(SUMPRODUCT(Q$9:Q$229,Nutrients!$BW$8:$BW$228)+(IF($A$7=Nutrients!$B$8,Nutrients!$BW$8,Nutrients!$BW$9)*Q$7)+(((IF($A$8=Nutrients!$B$79,Nutrients!$BW$79,(IF($A$8=Nutrients!$B$77,Nutrients!$BW$77,Nutrients!$BW$78)))))*Q$8))/2000","v":0.18815605165017121},{"$f":"(SUMPRODUCT(R$9:R$229,Nutrients!$BW$8:$BW$228)+(IF($A$7=Nutrients!$B$8,Nutrients!$BW$8,Nutrients!$BW$9)*R$7)+(((IF($A$8=Nutrients!$B$79,Nutrients!$BW$79,(IF($A$8=Nutrients!$B$77,Nutrients!$BW$77,Nutrients!$BW$78)))))*R$8))/2000","v":0.18584948067891796},{"$f":"(SUMPRODUCT(S$9:S$229,Nutrients!$BW$8:$BW$228)+(IF($A$7=Nutrients!$B$8,Nutrients!$BW$8,Nutrients!$BW$9)*S$7)+(((IF($A$8=Nutrients!$B$79,Nutrients!$BW$79,(IF($A$8=Nutrients!$B$77,Nutrients!$BW$77,Nutrients!$BW$78)))))*S$8))/2000","v":0.18363504548241932},{"$f":"(SUMPRODUCT(T$9:T$229,Nutrients!$BW$8:$BW$228)+(IF($A$7=Nutrients!$B$8,Nutrients!$BW$8,Nutrients!$BW$9)*T$7)+(((IF($A$8=Nutrients!$B$79,Nutrients!$BW$79,(IF($A$8=Nutrients!$B$77,Nutrients!$BW$77,Nutrients!$BW$78)))))*T$8))/2000","v":0.18179198394523055},{"$f":"(SUMPRODUCT(U$9:U$229,Nutrients!$BW$8:$BW$228)+(IF($A$7=Nutrients!$B$8,Nutrients!$BW$8,Nutrients!$BW$9)*U$7)+(((IF($A$8=Nutrients!$B$79,Nutrients!$BW$79,(IF($A$8=Nutrients!$B$77,Nutrients!$BW$77,Nutrients!$BW$78)))))*U$8))/2000","v":0.18078262065830247},null,{"$f":"(SUMPRODUCT(W$9:W$229,Nutrients!$BW$8:$BW$228)+(IF($A$7=Nutrients!$B$8,Nutrients!$BW$8,Nutrients!$BW$9)*W$7)+(((IF($A$8=Nutrients!$B$79,Nutrients!$BW$79,(IF($A$8=Nutrients!$B$77,Nutrients!$BW$77,Nutrients!$BW$78)))))*W$8))/2000","v":0.19836432005163979},{"$f":"(SUMPRODUCT(X$9:X$229,Nutrients!$BW$8:$BW$228)+(IF($A$7=Nutrients!$B$8,Nutrients!$BW$8,Nutrients!$BW$9)*X$7)+(((IF($A$8=Nutrients!$B$79,Nutrients!$BW$79,(IF($A$8=Nutrients!$B$77,Nutrients!$BW$77,Nutrients!$BW$78)))))*X$8))/2000","v":0.1956523268274025},{"$f":"(SUMPRODUCT(Y$9:Y$229,Nutrients!$BW$8:$BW$228)+(IF($A$7=Nutrients!$B$8,Nutrients!$BW$8,Nutrients!$BW$9)*Y$7)+(((IF($A$8=Nutrients!$B$79,Nutrients!$BW$79,(IF($A$8=Nutrients!$B$77,Nutrients!$BW$77,Nutrients!$BW$78)))))*Y$8))/2000","v":0.1933459271323891},{"$f":"(SUMPRODUCT(Z$9:Z$229,Nutrients!$BW$8:$BW$228)+(IF($A$7=Nutrients!$B$8,Nutrients!$BW$8,Nutrients!$BW$9)*Z$7)+(((IF($A$8=Nutrients!$B$79,Nutrients!$BW$79,(IF($A$8=Nutrients!$B$77,Nutrients!$BW$77,Nutrients!$BW$78)))))*Z$8))/2000","v":0.19113038343865832},{"$f":"(SUMPRODUCT(AA$9:AA$229,Nutrients!$BW$8:$BW$228)+(IF($A$7=Nutrients!$B$8,Nutrients!$BW$8,Nutrients!$BW$9)*AA$7)+(((IF($A$8=Nutrients!$B$79,Nutrients!$BW$79,(IF($A$8=Nutrients!$B$77,Nutrients!$BW$77,Nutrients!$BW$78)))))*AA$8))/2000","v":0.1892862108718901},{"$f":"(SUMPRODUCT(AB$9:AB$229,Nutrients!$BW$8:$BW$228)+(IF($A$7=Nutrients!$B$8,Nutrients!$BW$8,Nutrients!$BW$9)*AB$7)+(((IF($A$8=Nutrients!$B$79,Nutrients!$BW$79,(IF($A$8=Nutrients!$B$77,Nutrients!$BW$77,Nutrients!$BW$78)))))*AB$8))/2000","v":0.18831381888656679},null,{"$f":"(SUMPRODUCT(AD$9:AD$229,Nutrients!$BW$8:$BW$228)+(IF($A$7=Nutrients!$B$8,Nutrients!$BW$8,Nutrients!$BW$9)*AD$7)+(((IF($A$8=Nutrients!$B$79,Nutrients!$BW$79,(IF($A$8=Nutrients!$B$77,Nutrients!$BW$77,Nutrients!$BW$78)))))*AD$8))/2000","v":0.20586064330086698},{"$f":"(SUMPRODUCT(AE$9:AE$229,Nutrients!$BW$8:$BW$228)+(IF($A$7=Nutrients!$B$8,Nutrients!$BW$8,Nutrients!$BW$9)*AE$7)+(((IF($A$8=Nutrients!$B$79,Nutrients!$BW$79,(IF($A$8=Nutrients!$B$77,Nutrients!$BW$77,Nutrients!$BW$78)))))*AE$8))/2000","v":0.20314903973968224},{"$f":"(SUMPRODUCT(AF$9:AF$229,Nutrients!$BW$8:$BW$228)+(IF($A$7=Nutrients!$B$8,Nutrients!$BW$8,Nutrients!$BW$9)*AF$7)+(((IF($A$8=Nutrients!$B$79,Nutrients!$BW$79,(IF($A$8=Nutrients!$B$77,Nutrients!$BW$77,Nutrients!$BW$78)))))*AF$8))/2000","v":0.20084127866091886},{"$f":"(SUMPRODUCT(AG$9:AG$229,Nutrients!$BW$8:$BW$228)+(IF($A$7=Nutrients!$B$8,Nutrients!$BW$8,Nutrients!$BW$9)*AG$7)+(((IF($A$8=Nutrients!$B$79,Nutrients!$BW$79,(IF($A$8=Nutrients!$B$77,Nutrients!$BW$77,Nutrients!$BW$78)))))*AG$8))/2000","v":0.19862625975335874},{"$f":"(SUMPRODUCT(AH$9:AH$229,Nutrients!$BW$8:$BW$228)+(IF($A$7=Nutrients!$B$8,Nutrients!$BW$8,Nutrients!$BW$9)*AH$7)+(((IF($A$8=Nutrients!$B$79,Nutrients!$BW$79,(IF($A$8=Nutrients!$B$77,Nutrients!$BW$77,Nutrients!$BW$78)))))*AH$8))/2000","v":0.19689305694368972},{"$f":"(SUMPRODUCT(AI$9:AI$229,Nutrients!$BW$8:$BW$228)+(IF($A$7=Nutrients!$B$8,Nutrients!$BW$8,Nutrients!$BW$9)*AI$7)+(((IF($A$8=Nutrients!$B$79,Nutrients!$BW$79,(IF($A$8=Nutrients!$B$77,Nutrients!$BW$77,Nutrients!$BW$78)))))*AI$8))/2000","v":0.19594541569142274},null,{"$f":"(SUMPRODUCT(AK$9:AK$229,Nutrients!$BW$8:$BW$228)+(IF($A$7=Nutrients!$B$8,Nutrients!$BW$8,Nutrients!$BW$9)*AK$7)+(((IF($A$8=Nutrients!$B$79,Nutrients!$BW$79,(IF($A$8=Nutrients!$B$77,Nutrients!$BW$77,Nutrients!$BW$78)))))*AK$8))/2000","v":0.21336629761892068},{"$f":"(SUMPRODUCT(AL$9:AL$229,Nutrients!$BW$8:$BW$228)+(IF($A$7=Nutrients!$B$8,Nutrients!$BW$8,Nutrients!$BW$9)*AL$7)+(((IF($A$8=Nutrients!$B$79,Nutrients!$BW$79,(IF($A$8=Nutrients!$B$77,Nutrients!$BW$77,Nutrients!$BW$78)))))*AL$8))/2000","v":0.2106543797648954},{"$f":"(SUMPRODUCT(AM$9:AM$229,Nutrients!$BW$8:$BW$228)+(IF($A$7=Nutrients!$B$8,Nutrients!$BW$8,Nutrients!$BW$9)*AM$7)+(((IF($A$8=Nutrients!$B$79,Nutrients!$BW$79,(IF($A$8=Nutrients!$B$77,Nutrients!$BW$77,Nutrients!$BW$78)))))*AM$8))/2000","v":0.20834707869822303},{"$f":"(SUMPRODUCT(AN$9:AN$229,Nutrients!$BW$8:$BW$228)+(IF($A$7=Nutrients!$B$8,Nutrients!$BW$8,Nutrients!$BW$9)*AN$7)+(((IF($A$8=Nutrients!$B$79,Nutrients!$BW$79,(IF($A$8=Nutrients!$B$77,Nutrients!$BW$77,Nutrients!$BW$78)))))*AN$8))/2000","v":0.20622379328016605},{"$f":"(SUMPRODUCT(AO$9:AO$229,Nutrients!$BW$8:$BW$228)+(IF($A$7=Nutrients!$B$8,Nutrients!$BW$8,Nutrients!$BW$9)*AO$7)+(((IF($A$8=Nutrients!$B$79,Nutrients!$BW$79,(IF($A$8=Nutrients!$B$77,Nutrients!$BW$77,Nutrients!$BW$78)))))*AO$8))/2000","v":0.20452471846281339},{"$f":"(SUMPRODUCT(AP$9:AP$229,Nutrients!$BW$8:$BW$228)+(IF($A$7=Nutrients!$B$8,Nutrients!$BW$8,Nutrients!$BW$9)*AP$7)+(((IF($A$8=Nutrients!$B$79,Nutrients!$BW$79,(IF($A$8=Nutrients!$B$77,Nutrients!$BW$77,Nutrients!$BW$78)))))*AP$8))/2000","v":0.20357697993715104},null,{"$f":"(SUMPRODUCT(AR$9:AR$229,Nutrients!$BW$8:$BW$228)+(IF($A$7=Nutrients!$B$8,Nutrients!$BW$8,Nutrients!$BW$9)*AR$7)+(((IF($A$8=Nutrients!$B$79,Nutrients!$BW$79,(IF($A$8=Nutrients!$B$77,Nutrients!$BW$77,Nutrients!$BW$78)))))*AR$8))/2000","v":0.2208707117696142},{"$f":"(SUMPRODUCT(AS$9:AS$229,Nutrients!$BW$8:$BW$228)+(IF($A$7=Nutrients!$B$8,Nutrients!$BW$8,Nutrients!$BW$9)*AS$7)+(((IF($A$8=Nutrients!$B$79,Nutrients!$BW$79,(IF($A$8=Nutrients!$B$77,Nutrients!$BW$77,Nutrients!$BW$78)))))*AS$8))/2000","v":0.21815953385691766},{"$f":"(SUMPRODUCT(AT$9:AT$229,Nutrients!$BW$8:$BW$228)+(IF($A$7=Nutrients!$B$8,Nutrients!$BW$8,Nutrients!$BW$9)*AT$7)+(((IF($A$8=Nutrients!$B$79,Nutrients!$BW$79,(IF($A$8=Nutrients!$B$77,Nutrients!$BW$77,Nutrients!$BW$78)))))*AT$8))/2000","v":0.21585708962025246},{"$f":"(SUMPRODUCT(AU$9:AU$229,Nutrients!$BW$8:$BW$228)+(IF($A$7=Nutrients!$B$8,Nutrients!$BW$8,Nutrients!$BW$9)*AU$7)+(((IF($A$8=Nutrients!$B$79,Nutrients!$BW$79,(IF($A$8=Nutrients!$B$77,Nutrients!$BW$77,Nutrients!$BW$78)))))*AU$8))/2000","v":0.21385593836634298},{"$f":"(SUMPRODUCT(AV$9:AV$229,Nutrients!$BW$8:$BW$228)+(IF($A$7=Nutrients!$B$8,Nutrients!$BW$8,Nutrients!$BW$9)*AV$7)+(((IF($A$8=Nutrients!$B$79,Nutrients!$BW$79,(IF($A$8=Nutrients!$B$77,Nutrients!$BW$77,Nutrients!$BW$78)))))*AV$8))/2000","v":0.21215637956622457},{"$f":"(SUMPRODUCT(AW$9:AW$229,Nutrients!$BW$8:$BW$228)+(IF($A$7=Nutrients!$B$8,Nutrients!$BW$8,Nutrients!$BW$9)*AW$7)+(((IF($A$8=Nutrients!$B$79,Nutrients!$BW$79,(IF($A$8=Nutrients!$B$77,Nutrients!$BW$77,Nutrients!$BW$78)))))*AW$8))/2000","v":0.21120854492428029}]
["Cl, %",{"$f":"(SUMPRODUCT(B$9:B$229,Nutrients!$BT$8:$BT$228)+(IF($A$7=Nutrients!$B$8,Nutrients!$BT$8,Nutrients!$BT$9)*B$7)+(((IF($A$8=Nutrients!$B$79,Nutrients!$BT$79,(IF($A$8=Nutrients!$B$77,Nutrients!$BT$77,Nutrients!$BT$78)))))*B$8))/2000","v":0.34074334390126987},{"$f":"(SUMPRODUCT(C$9:C$229,Nutrients!$BT$8:$BT$228)+(IF($A$7=Nutrients!$B$8,Nutrients!$BT$8,Nutrients!$BT$9)*C$7)+(((IF($A$8=Nutrients!$B$79,Nutrients!$BT$79,(IF($A$8=Nutrients!$B$77,Nutrients!$BT$77,Nutrients!$BT$78)))))*C$8))/2000","v":0.33141446527128632},{"$f":"(SUMPRODUCT(D$9:D$229,Nutrients!$BT$8:$BT$228)+(IF($A$7=Nutrients!$B$8,Nutrients!$BT$8,Nutrients!$BT$9)*D$7)+(((IF($A$8=Nutrients!$B$79,Nutrients!$BT$79,(IF($A$8=Nutrients!$B$77,Nutrients!$BT$77,Nutrients!$BT$78)))))*D$8))/2000","v":0.32208201141013715},{"$f":"(SUMPRODUCT(E$9:E$229,Nutrients!$BT$8:$BT$228)+(IF($A$7=Nutrients!$B$8,Nutrients!$BT$8,Nutrients!$BT$9)*E$7)+(((IF($A$8=Nutrients!$B$79,Nutrients!$BT$79,(IF($A$8=Nutrients!$B$77,Nutrients!$BT$77,Nutrients!$BT$78)))))*E$8))/2000","v":0.31765998822682556},{"$f":"(SUMPRODUCT(F$9:F$229,Nutrients!$BT$8:$BT$228)+(IF($A$7=Nutrients!$B$8,Nutrients!$BT$8,Nutrients!$BT$9)*F$7)+(((IF($A$8=Nutrients!$B$79,Nutrients!$BT$79,(IF($A$8=Nutrients!$B$77,Nutrients!$BT$77,Nutrients!$BT$78)))))*F$8))/2000","v":0.31776531917662576},{"$f":"(SUMPRODUCT(G$9:G$229,Nutrients!$BT$8:$BT$228)+(IF($A$7=Nutrients!$B$8,Nutrients!$BT$8,Nutrients!$BT$9)*G$7)+(((IF($A$8=Nutrients!$B$79,Nutrients!$BT$79,(IF($A$8=Nutrients!$B$77,Nutrients!$BT$77,Nutrients!$BT$78)))))*G$8))/2000","v":0.31780178721106933},null,{"$f":"(SUMPRODUCT(I$9:I$229,Nutrients!$BT$8:$BT$228)+(IF($A$7=Nutrients!$B$8,Nutrients!$BT$8,Nutrients!$BT$9)*I$7)+(((IF($A$8=Nutrients!$B$79,Nutrients!$BT$79,(IF($A$8=Nutrients!$B$77,Nutrients!$BT$77,Nutrients!$BT$78)))))*I$8))/2000","v":0.35214530521477544},{"$f":"(SUMPRODUCT(J$9:J$229,Nutrients!$BT$8:$BT$228)+(IF($A$7=Nutrients!$B$8,Nutrients!$BT$8,Nutrients!$BT$9)*J$7)+(((IF($A$8=Nutrients!$B$79,Nutrients!$BT$79,(IF($A$8=Nutrients!$B$77,Nutrients!$BT$77,Nutrients!$BT$78)))))*J$8))/2000","v":0.34280891000235425},{"$f":"(SUMPRODUCT(K$9:K$229,Nutrients!$BT$8:$BT$228)+(IF($A$7=Nutrients!$B$8,Nutrients!$BT$8,Nutrients!$BT$9)*K$7)+(((IF($A$8=Nutrients!$B$79,Nutrients!$BT$79,(IF($A$8=Nutrients!$B$77,Nutrients!$BT$77,Nutrients!$BT$78)))))*K$8))/2000","v":0.33347996153785703},{"$f":"(SUMPRODUCT(L$9:L$229,Nutrients!$BT$8:$BT$228)+(IF($A$7=Nutrients!$B$8,Nutrients!$BT$8,Nutrients!$BT$9)*L$7)+(((IF($A$8=Nutrients!$B$79,Nutrients!$BT$79,(IF($A$8=Nutrients!$B$77,Nutrients!$BT$77,Nutrients!$BT$78)))))*L$8))/2000","v":0.32905482268203223},{"$f":"(SUMPRODUCT(M$9:M$229,Nutrients!$BT$8:$BT$228)+(IF($A$7=Nutrients!$B$8,Nutrients!$BT$8,Nutrients!$BT$9)*M$7)+(((IF($A$8=Nutrients!$B$79,Nutrients!$BT$79,(IF($A$8=Nutrients!$B$77,Nutrients!$BT$77,Nutrients!$BT$78)))))*M$8))/2000","v":0.3291603669445653},{"$f":"(SUMPRODUCT(N$9:N$229,Nutrients!$BT$8:$BT$228)+(IF($A$7=Nutrients!$B$8,Nutrients!$BT$8,Nutrients!$BT$9)*N$7)+(((IF($A$8=Nutrients!$B$79,Nutrients!$BT$79,(IF($A$8=Nutrients!$B$77,Nutrients!$BT$77,Nutrients!$BT$78)))))*N$8))/2000","v":0.32919507379711205},null,{"$f":"(SUMPRODUCT(P$9:P$229,Nutrients!$BT$8:$BT$228)+(IF($A$7=Nutrients!$B$8,Nutrients!$BT$8,Nutrients!$BT$9)*P$7)+(((IF($A$8=Nutrients!$B$79,Nutrients!$BT$79,(IF($A$8=Nutrients!$B$77,Nutrients!$BT$77,Nutrients!$BT$78)))))*P$8))/2000","v":0.36354228559705848},{"$f":"(SUMPRODUCT(Q$9:Q$229,Nutrients!$BT$8:$BT$228)+(IF($A$7=Nutrients!$B$8,Nutrients!$BT$8,Nutrients!$BT$9)*Q$7)+(((IF($A$8=Nutrients!$B$79,Nutrients!$BT$79,(IF($A$8=Nutrients!$B$77,Nutrients!$BT$77,Nutrients!$BT$78)))))*Q$8))/2000","v":0.35420402570649528},{"$f":"(SUMPRODUCT(R$9:R$229,Nutrients!$BT$8:$BT$228)+(IF($A$7=Nutrients!$B$8,Nutrients!$BT$8,Nutrients!$BT$9)*R$7)+(((IF($A$8=Nutrients!$B$79,Nutrients!$BT$79,(IF($A$8=Nutrients!$B$77,Nutrients!$BT$77,Nutrients!$BT$78)))))*R$8))/2000","v":0.34487290001979115},{"$f":"(SUMPRODUCT(S$9:S$229,Nutrients!$BT$8:$BT$228)+(IF($A$7=Nutrients!$B$8,Nutrients!$BT$8,Nutrients!$BT$9)*S$7)+(((IF($A$8=Nutrients!$B$79,Nutrients!$BT$79,(IF($A$8=Nutrients!$B$77,Nutrients!$BT$77,Nutrients!$BT$78)))))*S$8))/2000","v":0.34044832418266713},{"$f":"(SUMPRODUCT(T$9:T$229,Nutrients!$BT$8:$BT$228)+(IF($A$7=Nutrients!$B$8,Nutrients!$BT$8,Nutrients!$BT$9)*T$7)+(((IF($A$8=Nutrients!$B$79,Nutrients!$BT$79,(IF($A$8=Nutrients!$B$77,Nutrients!$BT$77,Nutrients!$BT$78)))))*T$8))/2000","v":0.34055514587610441},{"$f":"(SUMPRODUCT(U$9:U$229,Nutrients!$BT$8:$BT$228)+(IF($A$7=Nutrients!$B$8,Nutrients!$BT$8,Nutrients!$BT$9)*U$7)+(((IF($A$8=Nutrients!$B$79,Nutrients!$BT$79,(IF($A$8=Nutrients!$B$77,Nutrients!$BT$77,Nutrients!$BT$78)))))*U$8))/2000","v":0.34058930982611657},null,{"$f":"(SUMPRODUCT(W$9:W$229,Nutrients!$BT$8:$BT$228)+(IF($A$7=Nutrients!$B$8,Nutrients!$BT$8,Nutrients!$BT$9)*W$7)+(((IF($A$8=Nutrients!$B$79,Nutrients!$BT$79,(IF($A$8=Nutrients!$B$77,Nutrients!$BT$77,Nutrients!$BT$78)))))*W$8))/2000","v":0.37494098564243494},{"$f":"(SUMPRODUCT(X$9:X$229,Nutrients!$BT$8:$BT$228)+(IF($A$7=Nutrients!$B$8,Nutrients!$BT$8,Nutrients!$BT$9)*X$7)+(((IF($A$8=Nutrients!$B$79,Nutrients!$BT$79,(IF($A$8=Nutrients!$B$77,Nutrients!$BT$77,Nutrients!$BT$78)))))*X$8))/2000","v":0.36559954177129955},{"$f":"(SUMPRODUCT(Y$9:Y$229,Nutrients!$BT$8:$BT$228)+(IF($A$7=Nutrients!$B$8,Nutrients!$BT$8,Nutrients!$BT$9)*Y$7)+(((IF($A$8=Nutrients!$B$79,Nutrients!$BT$79,(IF($A$8=Nutrients!$B$77,Nutrients!$BT$77,Nutrients!$BT$78)))))*Y$8))/2000","v":0.35626897055796947},{"$f":"(SUMPRODUCT(Z$9:Z$229,Nutrients!$BT$8:$BT$228)+(IF($A$7=Nutrients!$B$8,Nutrients!$BT$8,Nutrients!$BT$9)*Z$7)+(((IF($A$8=Nutrients!$B$79,Nutrients!$BT$79,(IF($A$8=Nutrients!$B$77,Nutrients!$BT$77,Nutrients!$BT$78)))))*Z$8))/2000","v":0.35184080617756003},{"$f":"(SUMPRODUCT(AA$9:AA$229,Nutrients!$BT$8:$BT$228)+(IF($A$7=Nutrients!$B$8,Nutrients!$BT$8,Nutrients!$BT$9)*AA$7)+(((IF($A$8=Nutrients!$B$79,Nutrients!$BT$79,(IF($A$8=Nutrients!$B$77,Nutrients!$BT$77,Nutrients!$BT$78)))))*AA$8))/2000","v":0.35194403112973166},{"$f":"(SUMPRODUCT(AB$9:AB$229,Nutrients!$BT$8:$BT$228)+(IF($A$7=Nutrients!$B$8,Nutrients!$BT$8,Nutrients!$BT$9)*AB$7)+(((IF($A$8=Nutrients!$B$79,Nutrients!$BT$79,(IF($A$8=Nutrients!$B$77,Nutrients!$BT$77,Nutrients!$BT$78)))))*AB$8))/2000","v":0.35196051915290155},null,{"$f":"(SUMPRODUCT(AD$9:AD$229,Nutrients!$BT$8:$BT$228)+(IF($A$7=Nutrients!$B$8,Nutrients!$BT$8,Nutrients!$BT$9)*AD$7)+(((IF($A$8=Nutrients!$B$79,Nutrients!$BT$79,(IF($A$8=Nutrients!$B$77,Nutrients!$BT$77,Nutrients!$BT$78)))))*AD$8))/2000","v":0.38633665733093681},{"$f":"(SUMPRODUCT(AE$9:AE$229,Nutrients!$BT$8:$BT$228)+(IF($A$7=Nutrients!$B$8,Nutrients!$BT$8,Nutrients!$BT$9)*AE$7)+(((IF($A$8=Nutrients!$B$79,Nutrients!$BT$79,(IF($A$8=Nutrients!$B$77,Nutrients!$BT$77,Nutrients!$BT$78)))))*AE$8))/2000","v":0.3769964749178279},{"$f":"(SUMPRODUCT(AF$9:AF$229,Nutrients!$BT$8:$BT$228)+(IF($A$7=Nutrients!$B$8,Nutrients!$BT$8,Nutrients!$BT$9)*AF$7)+(((IF($A$8=Nutrients!$B$79,Nutrients!$BT$79,(IF($A$8=Nutrients!$B$77,Nutrients!$BT$77,Nutrients!$BT$78)))))*AF$8))/2000","v":0.36766149649050273},{"$f":"(SUMPRODUCT(AG$9:AG$229,Nutrients!$BT$8:$BT$228)+(IF($A$7=Nutrients!$B$8,Nutrients!$BT$8,Nutrients!$BT$9)*AG$7)+(((IF($A$8=Nutrients!$B$79,Nutrients!$BT$79,(IF($A$8=Nutrients!$B$77,Nutrients!$BT$77,Nutrients!$BT$78)))))*AG$8))/2000","v":0.36323176606842644},{"$f":"(SUMPRODUCT(AH$9:AH$229,Nutrients!$BT$8:$BT$228)+(IF($A$7=Nutrients!$B$8,Nutrients!$BT$8,Nutrients!$BT$9)*AH$7)+(((IF($A$8=Nutrients!$B$79,Nutrients!$BT$79,(IF($A$8=Nutrients!$B$77,Nutrients!$BT$77,Nutrients!$BT$78)))))*AH$8))/2000","v":0.363276836104024},{"$f":"(SUMPRODUCT(AI$9:AI$229,Nutrients!$BT$8:$BT$228)+(IF($A$7=Nutrients!$B$8,Nutrients!$BT$8,Nutrients!$BT$9)*AI$7)+(((IF($A$8=Nutrients!$B$79,Nutrients!$BT$79,(IF($A$8=Nutrients!$B$77,Nutrients!$BT$77,Nutrients!$BT$78)))))*AI$8))/2000","v":0.36327778376364744},null,{"$f":"(SUMPRODUCT(AK$9:AK$229,Nutrients!$BT$8:$BT$228)+(IF($A$7=Nutrients!$B$8,Nutrients!$BT$8,Nutrients!$BT$9)*AK$7)+(((IF($A$8=Nutrients!$B$79,Nutrients!$BT$79,(IF($A$8=Nutrients!$B$77,Nutrients!$BT$77,Nutrients!$BT$78)))))*AK$8))/2000","v":0.39773016348541529},{"$f":"(SUMPRODUCT(AL$9:AL$229,Nutrients!$BT$8:$BT$228)+(IF($A$7=Nutrients!$B$8,Nutrients!$BT$8,Nutrients!$BT$9)*AL$7)+(((IF($A$8=Nutrients!$B$79,Nutrients!$BT$79,(IF($A$8=Nutrients!$B$77,Nutrients!$BT$77,Nutrients!$BT$78)))))*AL$8))/2000","v":0.38838896361062042},{"$f":"(SUMPRODUCT(AM$9:AM$229,Nutrients!$BT$8:$BT$228)+(IF($A$7=Nutrients!$B$8,Nutrients!$BT$8,Nutrients!$BT$9)*AM$7)+(((IF($A$8=Nutrients!$B$79,Nutrients!$BT$79,(IF($A$8=Nutrients!$B$77,Nutrients!$BT$77,Nutrients!$BT$78)))))*AM$8))/2000","v":0.37905547438259368},{"$f":"(SUMPRODUCT(AN$9:AN$229,Nutrients!$BT$8:$BT$228)+(IF($A$7=Nutrients!$B$8,Nutrients!$BT$8,Nutrients!$BT$9)*AN$7)+(((IF($A$8=Nutrients!$B$79,Nutrients!$BT$79,(IF($A$8=Nutrients!$B$77,Nutrients!$BT$77,Nutrients!$BT$78)))))*AN$8))/2000","v":0.37457257877973621},{"$f":"(SUMPRODUCT(AO$9:AO$229,Nutrients!$BT$8:$BT$228)+(IF($A$7=Nutrients!$B$8,Nutrients!$BT$8,Nutrients!$BT$9)*AO$7)+(((IF($A$8=Nutrients!$B$79,Nutrients!$BT$79,(IF($A$8=Nutrients!$B$77,Nutrients!$BT$77,Nutrients!$BT$78)))))*AO$8))/2000","v":0.37459441647760444},{"$f":"(SUMPRODUCT(AP$9:AP$229,Nutrients!$BT$8:$BT$228)+(IF($A$7=Nutrients!$B$8,Nutrients!$BT$8,Nutrients!$BT$9)*AP$7)+(((IF($A$8=Nutrients!$B$79,Nutrients!$BT$79,(IF($A$8=Nutrients!$B$77,Nutrients!$BT$77,Nutrients!$BT$78)))))*AP$8))/2000","v":0.37459493315988235},null,{"$f":"(SUMPRODUCT(AR$9:AR$229,Nutrients!$BT$8:$BT$228)+(IF($A$7=Nutrients!$B$8,Nutrients!$BT$8,Nutrients!$BT$9)*AR$7)+(((IF($A$8=Nutrients!$B$79,Nutrients!$BT$79,(IF($A$8=Nutrients!$B$77,Nutrients!$BT$77,Nutrients!$BT$78)))))*AR$8))/2000","v":0.40911965484028517},{"$f":"(SUMPRODUCT(AS$9:AS$229,Nutrients!$BT$8:$BT$228)+(IF($A$7=Nutrients!$B$8,Nutrients!$BT$8,Nutrients!$BT$9)*AS$7)+(((IF($A$8=Nutrients!$B$79,Nutrients!$BT$79,(IF($A$8=Nutrients!$B$77,Nutrients!$BT$77,Nutrients!$BT$78)))))*AS$8))/2000","v":0.39978085038102251},{"$f":"(SUMPRODUCT(AT$9:AT$229,Nutrients!$BT$8:$BT$228)+(IF($A$7=Nutrients!$B$8,Nutrients!$BT$8,Nutrients!$BT$9)*AT$7)+(((IF($A$8=Nutrients!$B$79,Nutrients!$BT$79,(IF($A$8=Nutrients!$B$77,Nutrients!$BT$77,Nutrients!$BT$78)))))*AT$8))/2000","v":0.39043947118985589},{"$f":"(SUMPRODUCT(AU$9:AU$229,Nutrients!$BT$8:$BT$228)+(IF($A$7=Nutrients!$B$8,Nutrients!$BT$8,Nutrients!$BT$9)*AU$7)+(((IF($A$8=Nutrients!$B$79,Nutrients!$BT$79,(IF($A$8=Nutrients!$B$77,Nutrients!$BT$77,Nutrients!$BT$78)))))*AU$8))/2000","v":0.38589036671931354},{"$f":"(SUMPRODUCT(AV$9:AV$229,Nutrients!$BT$8:$BT$228)+(IF($A$7=Nutrients!$B$8,Nutrients!$BT$8,Nutrients!$BT$9)*AV$7)+(((IF($A$8=Nutrients!$B$79,Nutrients!$BT$79,(IF($A$8=Nutrients!$B$77,Nutrients!$BT$77,Nutrients!$BT$78)))))*AV$8))/2000","v":0.38591198608749266},{"$f":"(SUMPRODUCT(AW$9:AW$229,Nutrients!$BT$8:$BT$228)+(IF($A$7=Nutrients!$B$8,Nutrients!$BT$8,Nutrients!$BT$9)*AW$7)+(((IF($A$8=Nutrients!$B$79,Nutrients!$BT$79,(IF($A$8=Nutrients!$B$77,Nutrients!$BT$77,Nutrients!$BT$78)))))*AW$8))/2000","v":0.38591207746330042}]
["K, %",{"$f":"(SUMPRODUCT(B$9:B$229,Nutrients!$BU$8:$BU$228)+(IF($A$7=Nutrients!$B$8,Nutrients!$BU$8,Nutrients!$BU$9)*B$7)+(((IF($A$8=Nutrients!$B$79,Nutrients!$BU$79,(IF($A$8=Nutrients!$B$77,Nutrients!$BU$77,Nutrients!$BU$78)))))*B$8))/2000","v":0.82299889398162063},{"$f":"(SUMPRODUCT(C$9:C$229,Nutrients!$BU$8:$BU$228)+(IF($A$7=Nutrients!$B$8,Nutrients!$BU$8,Nutrients!$BU$9)*C$7)+(((IF($A$8=Nutrients!$B$79,Nutrients!$BU$79,(IF($A$8=Nutrients!$B$77,Nutrients!$BU$77,Nutrients!$BU$78)))))*C$8))/2000","v":0.74655886728664078},{"$f":"(SUMPRODUCT(D$9:D$229,Nutrients!$BU$8:$BU$228)+(IF($A$7=Nutrients!$B$8,Nutrients!$BU$8,Nutrients!$BU$9)*D$7)+(((IF($A$8=Nutrients!$B$79,Nutrients!$BU$79,(IF($A$8=Nutrients!$B$77,Nutrients!$BU$77,Nutrients!$BU$78)))))*D$8))/2000","v":0.68235096300443021},{"$f":"(SUMPRODUCT(E$9:E$229,Nutrients!$BU$8:$BU$228)+(IF($A$7=Nutrients!$B$8,Nutrients!$BU$8,Nutrients!$BU$9)*E$7)+(((IF($A$8=Nutrients!$B$79,Nutrients!$BU$79,(IF($A$8=Nutrients!$B$77,Nutrients!$BU$77,Nutrients!$BU$78)))))*E$8))/2000","v":0.61832324439114794},{"$f":"(SUMPRODUCT(F$9:F$229,Nutrients!$BU$8:$BU$228)+(IF($A$7=Nutrients!$B$8,Nutrients!$BU$8,Nutrients!$BU$9)*F$7)+(((IF($A$8=Nutrients!$B$79,Nutrients!$BU$79,(IF($A$8=Nutrients!$B$77,Nutrients!$BU$77,Nutrients!$BU$78)))))*F$8))/2000","v":0.5641190327748159},{"$f":"(SUMPRODUCT(G$9:G$229,Nutrients!$BU$8:$BU$228)+(IF($A$7=Nutrients!$B$8,Nutrients!$BU$8,Nutrients!$BU$9)*G$7)+(((IF($A$8=Nutrients!$B$79,Nutrients!$BU$79,(IF($A$8=Nutrients!$B$77,Nutrients!$BU$77,Nutrients!$BU$78)))))*G$8))/2000","v":0.53408892433970367},null,{"$f":"(SUMPRODUCT(I$9:I$229,Nutrients!$BU$8:$BU$228)+(IF($A$7=Nutrients!$B$8,Nutrients!$BU$8,Nutrients!$BU$9)*I$7)+(((IF($A$8=Nutrients!$B$79,Nutrients!$BU$79,(IF($A$8=Nutrients!$B$77,Nutrients!$BU$77,Nutrients!$BU$78)))))*I$8))/2000","v":0.82643545418371034},{"$f":"(SUMPRODUCT(J$9:J$229,Nutrients!$BU$8:$BU$228)+(IF($A$7=Nutrients!$B$8,Nutrients!$BU$8,Nutrients!$BU$9)*J$7)+(((IF($A$8=Nutrients!$B$79,Nutrients!$BU$79,(IF($A$8=Nutrients!$B$77,Nutrients!$BU$77,Nutrients!$BU$78)))))*J$8))/2000","v":0.74997639390212012},{"$f":"(SUMPRODUCT(K$9:K$229,Nutrients!$BU$8:$BU$228)+(IF($A$7=Nutrients!$B$8,Nutrients!$BU$8,Nutrients!$BU$9)*K$7)+(((IF($A$8=Nutrients!$B$79,Nutrients!$BU$79,(IF($A$8=Nutrients!$B$77,Nutrients!$BU$77,Nutrients!$BU$78)))))*K$8))/2000","v":0.68577047477827435},{"$f":"(SUMPRODUCT(L$9:L$229,Nutrients!$BU$8:$BU$228)+(IF($A$7=Nutrients!$B$8,Nutrients!$BU$8,Nutrients!$BU$9)*L$7)+(((IF($A$8=Nutrients!$B$79,Nutrients!$BU$79,(IF($A$8=Nutrients!$B$77,Nutrients!$BU$77,Nutrients!$BU$78)))))*L$8))/2000","v":0.62173693059971857},{"$f":"(SUMPRODUCT(M$9:M$229,Nutrients!$BU$8:$BU$228)+(IF($A$7=Nutrients!$B$8,Nutrients!$BU$8,Nutrients!$BU$9)*M$7)+(((IF($A$8=Nutrients!$B$79,Nutrients!$BU$79,(IF($A$8=Nutrients!$B$77,Nutrients!$BU$77,Nutrients!$BU$78)))))*M$8))/2000","v":0.56753358137533527},{"$f":"(SUMPRODUCT(N$9:N$229,Nutrients!$BU$8:$BU$228)+(IF($A$7=Nutrients!$B$8,Nutrients!$BU$8,Nutrients!$BU$9)*N$7)+(((IF($A$8=Nutrients!$B$79,Nutrients!$BU$79,(IF($A$8=Nutrients!$B$77,Nutrients!$BU$77,Nutrients!$BU$78)))))*N$8))/2000","v":0.5374971886956571},null,{"$f":"(SUMPRODUCT(P$9:P$229,Nutrients!$BU$8:$BU$228)+(IF($A$7=Nutrients!$B$8,Nutrients!$BU$8,Nutrients!$BU$9)*P$7)+(((IF($A$8=Nutrients!$B$79,Nutrients!$BU$79,(IF($A$8=Nutrients!$B$77,Nutrients!$BU$77,Nutrients!$BU$78)))))*P$8))/2000","v":0.82985662849872444},{"$f":"(SUMPRODUCT(Q$9:Q$229,Nutrients!$BU$8:$BU$228)+(IF($A$7=Nutrients!$B$8,Nutrients!$BU$8,Nutrients!$BU$9)*Q$7)+(((IF($A$8=Nutrients!$B$79,Nutrients!$BU$79,(IF($A$8=Nutrients!$B$77,Nutrients!$BU$77,Nutrients!$BU$78)))))*Q$8))/2000","v":0.75339110772031248},{"$f":"(SUMPRODUCT(R$9:R$229,Nutrients!$BU$8:$BU$228)+(IF($A$7=Nutrients!$B$8,Nutrients!$BU$8,Nutrients!$BU$9)*R$7)+(((IF($A$8=Nutrients!$B$79,Nutrients!$BU$79,(IF($A$8=Nutrients!$B$77,Nutrients!$BU$77,Nutrients!$BU$78)))))*R$8))/2000","v":0.68917750624103402},{"$f":"(SUMPRODUCT(S$9:S$229,Nutrients!$BU$8:$BU$228)+(IF($A$7=Nutrients!$B$8,Nutrients!$BU$8,Nutrients!$BU$9)*S$7)+(((IF($A$8=Nutrients!$B$79,Nutrients!$BU$79,(IF($A$8=Nutrients!$B$77,Nutrients!$BU$77,Nutrients!$BU$78)))))*S$8))/2000","v":0.62514592948589665},{"$f":"(SUMPRODUCT(T$9:T$229,Nutrients!$BU$8:$BU$228)+(IF($A$7=Nutrients!$B$8,Nutrients!$BU$8,Nutrients!$BU$9)*T$7)+(((IF($A$8=Nutrients!$B$79,Nutrients!$BU$79,(IF($A$8=Nutrients!$B$77,Nutrients!$BU$77,Nutrients!$BU$78)))))*T$8))/2000","v":0.57094704414072717},{"$f":"(SUMPRODUCT(U$9:U$229,Nutrients!$BU$8:$BU$228)+(IF($A$7=Nutrients!$B$8,Nutrients!$BU$8,Nutrients!$BU$9)*U$7)+(((IF($A$8=Nutrients!$B$79,Nutrients!$BU$79,(IF($A$8=Nutrients!$B$77,Nutrients!$BU$77,Nutrients!$BU$78)))))*U$8))/2000","v":0.54090875433195063},null,{"$f":"(SUMPRODUCT(W$9:W$229,Nutrients!$BU$8:$BU$228)+(IF($A$7=Nutrients!$B$8,Nutrients!$BU$8,Nutrients!$BU$9)*W$7)+(((IF($A$8=Nutrients!$B$79,Nutrients!$BU$79,(IF($A$8=Nutrients!$B$77,Nutrients!$BU$77,Nutrients!$BU$78)))))*W$8))/2000","v":0.83327579328001122},{"$f":"(SUMPRODUCT(X$9:X$229,Nutrients!$BU$8:$BU$228)+(IF($A$7=Nutrients!$B$8,Nutrients!$BU$8,Nutrients!$BU$9)*X$7)+(((IF($A$8=Nutrients!$B$79,Nutrients!$BU$79,(IF($A$8=Nutrients!$B$77,Nutrients!$BU$77,Nutrients!$BU$78)))))*X$8))/2000","v":0.75679914633841716},{"$f":"(SUMPRODUCT(Y$9:Y$229,Nutrients!$BU$8:$BU$228)+(IF($A$7=Nutrients!$B$8,Nutrients!$BU$8,Nutrients!$BU$9)*Y$7)+(((IF($A$8=Nutrients!$B$79,Nutrients!$BU$79,(IF($A$8=Nutrients!$B$77,Nutrients!$BU$77,Nutrients!$BU$78)))))*Y$8))/2000","v":0.69258748242160206},{"$f":"(SUMPRODUCT(Z$9:Z$229,Nutrients!$BU$8:$BU$228)+(IF($A$7=Nutrients!$B$8,Nutrients!$BU$8,Nutrients!$BU$9)*Z$7)+(((IF($A$8=Nutrients!$B$79,Nutrients!$BU$79,(IF($A$8=Nutrients!$B$77,Nutrients!$BU$77,Nutrients!$BU$78)))))*Z$8))/2000","v":0.62854336579152625},{"$f":"(SUMPRODUCT(AA$9:AA$229,Nutrients!$BU$8:$BU$228)+(IF($A$7=Nutrients!$B$8,Nutrients!$BU$8,Nutrients!$BU$9)*AA$7)+(((IF($A$8=Nutrients!$B$79,Nutrients!$BU$79,(IF($A$8=Nutrients!$B$77,Nutrients!$BU$77,Nutrients!$BU$78)))))*AA$8))/2000","v":0.57433191192423905},{"$f":"(SUMPRODUCT(AB$9:AB$229,Nutrients!$BU$8:$BU$228)+(IF($A$7=Nutrients!$B$8,Nutrients!$BU$8,Nutrients!$BU$9)*AB$7)+(((IF($A$8=Nutrients!$B$79,Nutrients!$BU$79,(IF($A$8=Nutrients!$B$77,Nutrients!$BU$77,Nutrients!$BU$78)))))*AB$8))/2000","v":0.54426261427119671},null,{"$f":"(SUMPRODUCT(AD$9:AD$229,Nutrients!$BU$8:$BU$228)+(IF($A$7=Nutrients!$B$8,Nutrients!$BU$8,Nutrients!$BU$9)*AD$7)+(((IF($A$8=Nutrients!$B$79,Nutrients!$BU$79,(IF($A$8=Nutrients!$B$77,Nutrients!$BU$77,Nutrients!$BU$78)))))*AD$8))/2000","v":0.83668437571256915},{"$f":"(SUMPRODUCT(AE$9:AE$229,Nutrients!$BU$8:$BU$228)+(IF($A$7=Nutrients!$B$8,Nutrients!$BU$8,Nutrients!$BU$9)*AE$7)+(((IF($A$8=Nutrients!$B$79,Nutrients!$BU$79,(IF($A$8=Nutrients!$B$77,Nutrients!$BU$77,Nutrients!$BU$78)))))*AE$8))/2000","v":0.76021213683425737},{"$f":"(SUMPRODUCT(AF$9:AF$229,Nutrients!$BU$8:$BU$228)+(IF($A$7=Nutrients!$B$8,Nutrients!$BU$8,Nutrients!$BU$9)*AF$7)+(((IF($A$8=Nutrients!$B$79,Nutrients!$BU$79,(IF($A$8=Nutrients!$B$77,Nutrients!$BU$77,Nutrients!$BU$78)))))*AF$8))/2000","v":0.69598507226377071},{"$f":"(SUMPRODUCT(AG$9:AG$229,Nutrients!$BU$8:$BU$228)+(IF($A$7=Nutrients!$B$8,Nutrients!$BU$8,Nutrients!$BU$9)*AG$7)+(((IF($A$8=Nutrients!$B$79,Nutrients!$BU$79,(IF($A$8=Nutrients!$B$77,Nutrients!$BU$77,Nutrients!$BU$78)))))*AG$8))/2000","v":0.63193562136936177},{"$f":"(SUMPRODUCT(AH$9:AH$229,Nutrients!$BU$8:$BU$228)+(IF($A$7=Nutrients!$B$8,Nutrients!$BU$8,Nutrients!$BU$9)*AH$7)+(((IF($A$8=Nutrients!$B$79,Nutrients!$BU$79,(IF($A$8=Nutrients!$B$77,Nutrients!$BU$77,Nutrients!$BU$78)))))*AH$8))/2000","v":0.57761486422952724},{"$f":"(SUMPRODUCT(AI$9:AI$229,Nutrients!$BU$8:$BU$228)+(IF($A$7=Nutrients!$B$8,Nutrients!$BU$8,Nutrients!$BU$9)*AI$7)+(((IF($A$8=Nutrients!$B$79,Nutrients!$BU$79,(IF($A$8=Nutrients!$B$77,Nutrients!$BU$77,Nutrients!$BU$78)))))*AI$8))/2000","v":0.54751187956701242},null,{"$f":"(SUMPRODUCT(AK$9:AK$229,Nutrients!$BU$8:$BU$228)+(IF($A$7=Nutrients!$B$8,Nutrients!$BU$8,Nutrients!$BU$9)*AK$7)+(((IF($A$8=Nutrients!$B$79,Nutrients!$BU$79,(IF($A$8=Nutrients!$B$77,Nutrients!$BU$77,Nutrients!$BU$78)))))*AK$8))/2000","v":0.84009339086122736},{"$f":"(SUMPRODUCT(AL$9:AL$229,Nutrients!$BU$8:$BU$228)+(IF($A$7=Nutrients!$B$8,Nutrients!$BU$8,Nutrients!$BU$9)*AL$7)+(((IF($A$8=Nutrients!$B$79,Nutrients!$BU$79,(IF($A$8=Nutrients!$B$77,Nutrients!$BU$77,Nutrients!$BU$78)))))*AL$8))/2000","v":0.76361759654515704},{"$f":"(SUMPRODUCT(AM$9:AM$229,Nutrients!$BU$8:$BU$228)+(IF($A$7=Nutrients!$B$8,Nutrients!$BU$8,Nutrients!$BU$9)*AM$7)+(((IF($A$8=Nutrients!$B$79,Nutrients!$BU$79,(IF($A$8=Nutrients!$B$77,Nutrients!$BU$77,Nutrients!$BU$78)))))*AM$8))/2000","v":0.69939573586144976},{"$f":"(SUMPRODUCT(AN$9:AN$229,Nutrients!$BU$8:$BU$228)+(IF($A$7=Nutrients!$B$8,Nutrients!$BU$8,Nutrients!$BU$9)*AN$7)+(((IF($A$8=Nutrients!$B$79,Nutrients!$BU$79,(IF($A$8=Nutrients!$B$77,Nutrients!$BU$77,Nutrients!$BU$78)))))*AN$8))/2000","v":0.63523921898508329},{"$f":"(SUMPRODUCT(AO$9:AO$229,Nutrients!$BU$8:$BU$228)+(IF($A$7=Nutrients!$B$8,Nutrients!$BU$8,Nutrients!$BU$9)*AO$7)+(((IF($A$8=Nutrients!$B$79,Nutrients!$BU$79,(IF($A$8=Nutrients!$B$77,Nutrients!$BU$77,Nutrients!$BU$78)))))*AO$8))/2000","v":0.58086522843701693},{"$f":"(SUMPRODUCT(AP$9:AP$229,Nutrients!$BU$8:$BU$228)+(IF($A$7=Nutrients!$B$8,Nutrients!$BU$8,Nutrients!$BU$9)*AP$7)+(((IF($A$8=Nutrients!$B$79,Nutrients!$BU$79,(IF($A$8=Nutrients!$B$77,Nutrients!$BU$77,Nutrients!$BU$78)))))*AP$8))/2000","v":0.55076074267011477},null,{"$f":"(SUMPRODUCT(AR$9:AR$229,Nutrients!$BU$8:$BU$228)+(IF($A$7=Nutrients!$B$8,Nutrients!$BU$8,Nutrients!$BU$9)*AR$7)+(((IF($A$8=Nutrients!$B$79,Nutrients!$BU$79,(IF($A$8=Nutrients!$B$77,Nutrients!$BU$77,Nutrients!$BU$78)))))*AR$8))/2000","v":0.84348837661662324},{"$f":"(SUMPRODUCT(AS$9:AS$229,Nutrients!$BU$8:$BU$228)+(IF($A$7=Nutrients!$B$8,Nutrients!$BU$8,Nutrients!$BU$9)*AS$7)+(((IF($A$8=Nutrients!$B$79,Nutrients!$BU$79,(IF($A$8=Nutrients!$B$77,Nutrients!$BU$77,Nutrients!$BU$78)))))*AS$8))/2000","v":0.76702095288683514},{"$f":"(SUMPRODUCT(AT$9:AT$229,Nutrients!$BU$8:$BU$228)+(IF($A$7=Nutrients!$B$8,Nutrients!$BU$8,Nutrients!$BU$9)*AT$7)+(((IF($A$8=Nutrients!$B$79,Nutrients!$BU$79,(IF($A$8=Nutrients!$B$77,Nutrients!$BU$77,Nutrients!$BU$78)))))*AT$8))/2000","v":0.70277665393936517},{"$f":"(SUMPRODUCT(AU$9:AU$229,Nutrients!$BU$8:$BU$228)+(IF($A$7=Nutrients!$B$8,Nutrients!$BU$8,Nutrients!$BU$9)*AU$7)+(((IF($A$8=Nutrients!$B$79,Nutrients!$BU$79,(IF($A$8=Nutrients!$B$77,Nutrients!$BU$77,Nutrients!$BU$78)))))*AU$8))/2000","v":0.63849036596848785},{"$f":"(SUMPRODUCT(AV$9:AV$229,Nutrients!$BU$8:$BU$228)+(IF($A$7=Nutrients!$B$8,Nutrients!$BU$8,Nutrients!$BU$9)*AV$7)+(((IF($A$8=Nutrients!$B$79,Nutrients!$BU$79,(IF($A$8=Nutrients!$B$77,Nutrients!$BU$77,Nutrients!$BU$78)))))*AV$8))/2000","v":0.58411555543013183},{"$f":"(SUMPRODUCT(AW$9:AW$229,Nutrients!$BU$8:$BU$228)+(IF($A$7=Nutrients!$B$8,Nutrients!$BU$8,Nutrients!$BU$9)*AW$7)+(((IF($A$8=Nutrients!$B$79,Nutrients!$BU$79,(IF($A$8=Nutrients!$B$77,Nutrients!$BU$77,Nutrients!$BU$78)))))*AW$8))/2000","v":0.55400958829381253}]
["DCAD",{"$f":"(B306 * 434.98) + (B308* 255.74) - (B307*282.06)","v":190.85683508470862},172.75687046998428,157.97167371049909,141.87849201438749,127.1843305627486,119.05581383819251,null,{"$f":"(I306 * 434.98) + (I308* 255.74) - (I307*282.06)","v":191.78451671101925},173.68513966219621,158.89365713412019,142.80256253986681,128.10896164525849,119.97868527100481,null,{"$f":"(P306 * 434.98) + (P308* 255.74) - (P307*282.06)","v":192.71015144111513},174.60957374441014,159.81621237221549,143.72553777170288,129.03288979923195,120.90220843724703,null,{"$f":"(W306 * 434.98) + (W308* 255.74) - (W307*282.06)","v":193.63060889918714},175.52765605595761,160.73470830296625,144.64135676522992,129.94602574010756,121.82848188072725,null,{"$f":"(AD306 * 434.98) + (AD308* 255.74) - (AD307*282.06)","v":194.54880730097955},176.44679546463743,161.65056007255203,145.55651433925618,130.89790289592443,122.7868933095484,null,{"$f":"(AK306 * 434.98) + (AK308* 255.74) - (AK307*282.06)","v":195.47178600443215},177.36901517458108,162.57389067700581,146.50736189363946,131.85653444576417,123.74522021644069,null,{"$f":"(AR306 * 434.98) + (AR308* 255.74) - (AR307*282.06)","v":196.39176979723118},178.2907858698901,163.49426107765993,147.46634542652339,132.81515933358008,124.70354441212456]
["Phytate P, %",{"$f":"(SUMPRODUCT(B$9:B$229,Nutrients!$EG$8:$EG$228)+(IF($A$7=Nutrients!$B$8,Nutrients!$EG$8,Nutrients!$EG$9)*B$7)+(((IF($A$8=Nutrients!$B$79,Nutrients!$EG$79,(IF($A$8=Nutrients!$B$77,Nutrients!$EG$77,Nutrients!$EG$78)))))*B$8))/2000","v":0.25833959194258826},{"$f":"(SUMPRODUCT(C$9:C$229,Nutrients!$EG$8:$EG$228)+(IF($A$7=Nutrients!$B$8,Nutrients!$EG$8,Nutrients!$EG$9)*C$7)+(((IF($A$8=Nutrients!$B$79,Nutrients!$EG$79,(IF($A$8=Nutrients!$B$77,Nutrients!$EG$77,Nutrients!$EG$78)))))*C$8))/2000","v":0.24779907433968829},{"$f":"(SUMPRODUCT(D$9:D$229,Nutrients!$EG$8:$EG$228)+(IF($A$7=Nutrients!$B$8,Nutrients!$EG$8,Nutrients!$EG$9)*D$7)+(((IF($A$8=Nutrients!$B$79,Nutrients!$EG$79,(IF($A$8=Nutrients!$B$77,Nutrients!$EG$77,Nutrients!$EG$78)))))*D$8))/2000","v":0.23900316211582037},{"$f":"(SUMPRODUCT(E$9:E$229,Nutrients!$EG$8:$EG$228)+(IF($A$7=Nutrients!$B$8,Nutrients!$EG$8,Nutrients!$EG$9)*E$7)+(((IF($A$8=Nutrients!$B$79,Nutrients!$EG$79,(IF($A$8=Nutrients!$B$77,Nutrients!$EG$77,Nutrients!$EG$78)))))*E$8))/2000","v":0.23005692988837381},{"$f":"(SUMPRODUCT(F$9:F$229,Nutrients!$EG$8:$EG$228)+(IF($A$7=Nutrients!$B$8,Nutrients!$EG$8,Nutrients!$EG$9)*F$7)+(((IF($A$8=Nutrients!$B$79,Nutrients!$EG$79,(IF($A$8=Nutrients!$B$77,Nutrients!$EG$77,Nutrients!$EG$78)))))*F$8))/2000","v":0.22240960598768925},{"$f":"(SUMPRODUCT(G$9:G$229,Nutrients!$EG$8:$EG$228)+(IF($A$7=Nutrients!$B$8,Nutrients!$EG$8,Nutrients!$EG$9)*G$7)+(((IF($A$8=Nutrients!$B$79,Nutrients!$EG$79,(IF($A$8=Nutrients!$B$77,Nutrients!$EG$77,Nutrients!$EG$78)))))*G$8))/2000","v":0.21810869862161428},null,{"$f":"(SUMPRODUCT(I$9:I$229,Nutrients!$EG$8:$EG$228)+(IF($A$7=Nutrients!$B$8,Nutrients!$EG$8,Nutrients!$EG$9)*I$7)+(((IF($A$8=Nutrients!$B$79,Nutrients!$EG$79,(IF($A$8=Nutrients!$B$77,Nutrients!$EG$77,Nutrients!$EG$78)))))*I$8))/2000","v":0.25326105292984608},{"$f":"(SUMPRODUCT(J$9:J$229,Nutrients!$EG$8:$EG$228)+(IF($A$7=Nutrients!$B$8,Nutrients!$EG$8,Nutrients!$EG$9)*J$7)+(((IF($A$8=Nutrients!$B$79,Nutrients!$EG$79,(IF($A$8=Nutrients!$B$77,Nutrients!$EG$77,Nutrients!$EG$78)))))*J$8))/2000","v":0.24269414437588799},{"$f":"(SUMPRODUCT(K$9:K$229,Nutrients!$EG$8:$EG$228)+(IF($A$7=Nutrients!$B$8,Nutrients!$EG$8,Nutrients!$EG$9)*K$7)+(((IF($A$8=Nutrients!$B$79,Nutrients!$EG$79,(IF($A$8=Nutrients!$B$77,Nutrients!$EG$77,Nutrients!$EG$78)))))*K$8))/2000","v":0.23391181291016569},{"$f":"(SUMPRODUCT(L$9:L$229,Nutrients!$EG$8:$EG$228)+(IF($A$7=Nutrients!$B$8,Nutrients!$EG$8,Nutrients!$EG$9)*L$7)+(((IF($A$8=Nutrients!$B$79,Nutrients!$EG$79,(IF($A$8=Nutrients!$B$77,Nutrients!$EG$77,Nutrients!$EG$78)))))*L$8))/2000","v":0.22495415119564377},{"$f":"(SUMPRODUCT(M$9:M$229,Nutrients!$EG$8:$EG$228)+(IF($A$7=Nutrients!$B$8,Nutrients!$EG$8,Nutrients!$EG$9)*M$7)+(((IF($A$8=Nutrients!$B$79,Nutrients!$EG$79,(IF($A$8=Nutrients!$B$77,Nutrients!$EG$77,Nutrients!$EG$78)))))*M$8))/2000","v":0.21730676632939108},{"$f":"(SUMPRODUCT(N$9:N$229,Nutrients!$EG$8:$EG$228)+(IF($A$7=Nutrients!$B$8,Nutrients!$EG$8,Nutrients!$EG$9)*N$7)+(((IF($A$8=Nutrients!$B$79,Nutrients!$EG$79,(IF($A$8=Nutrients!$B$77,Nutrients!$EG$77,Nutrients!$EG$78)))))*N$8))/2000","v":0.21300078695901734},null,{"$f":"(SUMPRODUCT(P$9:P$229,Nutrients!$EG$8:$EG$228)+(IF($A$7=Nutrients!$B$8,Nutrients!$EG$8,Nutrients!$EG$9)*P$7)+(((IF($A$8=Nutrients!$B$79,Nutrients!$EG$79,(IF($A$8=Nutrients!$B$77,Nutrients!$EG$77,Nutrients!$EG$78)))))*P$8))/2000","v":0.24816558130013566},{"$f":"(SUMPRODUCT(Q$9:Q$229,Nutrients!$EG$8:$EG$228)+(IF($A$7=Nutrients!$B$8,Nutrients!$EG$8,Nutrients!$EG$9)*Q$7)+(((IF($A$8=Nutrients!$B$79,Nutrients!$EG$79,(IF($A$8=Nutrients!$B$77,Nutrients!$EG$77,Nutrients!$EG$78)))))*Q$8))/2000","v":0.23759201519509052},{"$f":"(SUMPRODUCT(R$9:R$229,Nutrients!$EG$8:$EG$228)+(IF($A$7=Nutrients!$B$8,Nutrients!$EG$8,Nutrients!$EG$9)*R$7)+(((IF($A$8=Nutrients!$B$79,Nutrients!$EG$79,(IF($A$8=Nutrients!$B$77,Nutrients!$EG$77,Nutrients!$EG$78)))))*R$8))/2000","v":0.22880283731511622},{"$f":"(SUMPRODUCT(S$9:S$229,Nutrients!$EG$8:$EG$228)+(IF($A$7=Nutrients!$B$8,Nutrients!$EG$8,Nutrients!$EG$9)*S$7)+(((IF($A$8=Nutrients!$B$79,Nutrients!$EG$79,(IF($A$8=Nutrients!$B$77,Nutrients!$EG$77,Nutrients!$EG$78)))))*S$8))/2000","v":0.2198470740690823},{"$f":"(SUMPRODUCT(T$9:T$229,Nutrients!$EG$8:$EG$228)+(IF($A$7=Nutrients!$B$8,Nutrients!$EG$8,Nutrients!$EG$9)*T$7)+(((IF($A$8=Nutrients!$B$79,Nutrients!$EG$79,(IF($A$8=Nutrients!$B$77,Nutrients!$EG$77,Nutrients!$EG$78)))))*T$8))/2000","v":0.21220399663047596},{"$f":"(SUMPRODUCT(U$9:U$229,Nutrients!$EG$8:$EG$228)+(IF($A$7=Nutrients!$B$8,Nutrients!$EG$8,Nutrients!$EG$9)*U$7)+(((IF($A$8=Nutrients!$B$79,Nutrients!$EG$79,(IF($A$8=Nutrients!$B$77,Nutrients!$EG$77,Nutrients!$EG$78)))))*U$8))/2000","v":0.2078961866222343},null,{"$f":"(SUMPRODUCT(W$9:W$229,Nutrients!$EG$8:$EG$228)+(IF($A$7=Nutrients!$B$8,Nutrients!$EG$8,Nutrients!$EG$9)*W$7)+(((IF($A$8=Nutrients!$B$79,Nutrients!$EG$79,(IF($A$8=Nutrients!$B$77,Nutrients!$EG$77,Nutrients!$EG$78)))))*W$8))/2000","v":0.24307603338416886},{"$f":"(SUMPRODUCT(X$9:X$229,Nutrients!$EG$8:$EG$228)+(IF($A$7=Nutrients!$B$8,Nutrients!$EG$8,Nutrients!$EG$9)*X$7)+(((IF($A$8=Nutrients!$B$79,Nutrients!$EG$79,(IF($A$8=Nutrients!$B$77,Nutrients!$EG$77,Nutrients!$EG$78)))))*X$8))/2000","v":0.23249173106951992},{"$f":"(SUMPRODUCT(Y$9:Y$229,Nutrients!$EG$8:$EG$228)+(IF($A$7=Nutrients!$B$8,Nutrients!$EG$8,Nutrients!$EG$9)*Y$7)+(((IF($A$8=Nutrients!$B$79,Nutrients!$EG$79,(IF($A$8=Nutrients!$B$77,Nutrients!$EG$77,Nutrients!$EG$78)))))*Y$8))/2000","v":0.22370442284365594},{"$f":"(SUMPRODUCT(Z$9:Z$229,Nutrients!$EG$8:$EG$228)+(IF($A$7=Nutrients!$B$8,Nutrients!$EG$8,Nutrients!$EG$9)*Z$7)+(((IF($A$8=Nutrients!$B$79,Nutrients!$EG$79,(IF($A$8=Nutrients!$B$77,Nutrients!$EG$77,Nutrients!$EG$78)))))*Z$8))/2000","v":0.21473655922451609},{"$f":"(SUMPRODUCT(AA$9:AA$229,Nutrients!$EG$8:$EG$228)+(IF($A$7=Nutrients!$B$8,Nutrients!$EG$8,Nutrients!$EG$9)*AA$7)+(((IF($A$8=Nutrients!$B$79,Nutrients!$EG$79,(IF($A$8=Nutrients!$B$77,Nutrients!$EG$77,Nutrients!$EG$78)))))*AA$8))/2000","v":0.20708135376966055},{"$f":"(SUMPRODUCT(AB$9:AB$229,Nutrients!$EG$8:$EG$228)+(IF($A$7=Nutrients!$B$8,Nutrients!$EG$8,Nutrients!$EG$9)*AB$7)+(((IF($A$8=Nutrients!$B$79,Nutrients!$EG$79,(IF($A$8=Nutrients!$B$77,Nutrients!$EG$77,Nutrients!$EG$78)))))*AB$8))/2000","v":0.20270955196543222},null,{"$f":"(SUMPRODUCT(AD$9:AD$229,Nutrients!$EG$8:$EG$228)+(IF($A$7=Nutrients!$B$8,Nutrients!$EG$8,Nutrients!$EG$9)*AD$7)+(((IF($A$8=Nutrients!$B$79,Nutrients!$EG$79,(IF($A$8=Nutrients!$B$77,Nutrients!$EG$77,Nutrients!$EG$78)))))*AD$8))/2000","v":0.23797627401325641},{"$f":"(SUMPRODUCT(AE$9:AE$229,Nutrients!$EG$8:$EG$228)+(IF($A$7=Nutrients!$B$8,Nutrients!$EG$8,Nutrients!$EG$9)*AE$7)+(((IF($A$8=Nutrients!$B$79,Nutrients!$EG$79,(IF($A$8=Nutrients!$B$77,Nutrients!$EG$77,Nutrients!$EG$78)))))*AE$8))/2000","v":0.2273962252665776},{"$f":"(SUMPRODUCT(AF$9:AF$229,Nutrients!$EG$8:$EG$228)+(IF($A$7=Nutrients!$B$8,Nutrients!$EG$8,Nutrients!$EG$9)*AF$7)+(((IF($A$8=Nutrients!$B$79,Nutrients!$EG$79,(IF($A$8=Nutrients!$B$77,Nutrients!$EG$77,Nutrients!$EG$78)))))*AF$8))/2000","v":0.2185940561544274},{"$f":"(SUMPRODUCT(AG$9:AG$229,Nutrients!$EG$8:$EG$228)+(IF($A$7=Nutrients!$B$8,Nutrients!$EG$8,Nutrients!$EG$9)*AG$7)+(((IF($A$8=Nutrients!$B$79,Nutrients!$EG$79,(IF($A$8=Nutrients!$B$77,Nutrients!$EG$77,Nutrients!$EG$78)))))*AG$8))/2000","v":0.20961999059716918},{"$f":"(SUMPRODUCT(AH$9:AH$229,Nutrients!$EG$8:$EG$228)+(IF($A$7=Nutrients!$B$8,Nutrients!$EG$8,Nutrients!$EG$9)*AH$7)+(((IF($A$8=Nutrients!$B$79,Nutrients!$EG$79,(IF($A$8=Nutrients!$B$77,Nutrients!$EG$77,Nutrients!$EG$78)))))*AH$8))/2000","v":0.20175596902328619},{"$f":"(SUMPRODUCT(AI$9:AI$229,Nutrients!$EG$8:$EG$228)+(IF($A$7=Nutrients!$B$8,Nutrients!$EG$8,Nutrients!$EG$9)*AI$7)+(((IF($A$8=Nutrients!$B$79,Nutrients!$EG$79,(IF($A$8=Nutrients!$B$77,Nutrients!$EG$77,Nutrients!$EG$78)))))*AI$8))/2000","v":0.19732760028776564},null,{"$f":"(SUMPRODUCT(AK$9:AK$229,Nutrients!$EG$8:$EG$228)+(IF($A$7=Nutrients!$B$8,Nutrients!$EG$8,Nutrients!$EG$9)*AK$7)+(((IF($A$8=Nutrients!$B$79,Nutrients!$EG$79,(IF($A$8=Nutrients!$B$77,Nutrients!$EG$77,Nutrients!$EG$78)))))*AK$8))/2000","v":0.2328692125792024},{"$f":"(SUMPRODUCT(AL$9:AL$229,Nutrients!$EG$8:$EG$228)+(IF($A$7=Nutrients!$B$8,Nutrients!$EG$8,Nutrients!$EG$9)*AL$7)+(((IF($A$8=Nutrients!$B$79,Nutrients!$EG$79,(IF($A$8=Nutrients!$B$77,Nutrients!$EG$77,Nutrients!$EG$78)))))*AL$8))/2000","v":0.22228573300696547},{"$f":"(SUMPRODUCT(AM$9:AM$229,Nutrients!$EG$8:$EG$228)+(IF($A$7=Nutrients!$B$8,Nutrients!$EG$8,Nutrients!$EG$9)*AM$7)+(((IF($A$8=Nutrients!$B$79,Nutrients!$EG$79,(IF($A$8=Nutrients!$B$77,Nutrients!$EG$77,Nutrients!$EG$78)))))*AM$8))/2000","v":0.21348858539398838},{"$f":"(SUMPRODUCT(AN$9:AN$229,Nutrients!$EG$8:$EG$228)+(IF($A$7=Nutrients!$B$8,Nutrients!$EG$8,Nutrients!$EG$9)*AN$7)+(((IF($A$8=Nutrients!$B$79,Nutrients!$EG$79,(IF($A$8=Nutrients!$B$77,Nutrients!$EG$77,Nutrients!$EG$78)))))*AN$8))/2000","v":0.20432448966339445},{"$f":"(SUMPRODUCT(AO$9:AO$229,Nutrients!$EG$8:$EG$228)+(IF($A$7=Nutrients!$B$8,Nutrients!$EG$8,Nutrients!$EG$9)*AO$7)+(((IF($A$8=Nutrients!$B$79,Nutrients!$EG$79,(IF($A$8=Nutrients!$B$77,Nutrients!$EG$77,Nutrients!$EG$78)))))*AO$8))/2000","v":0.19637511206707833},{"$f":"(SUMPRODUCT(AP$9:AP$229,Nutrients!$EG$8:$EG$228)+(IF($A$7=Nutrients!$B$8,Nutrients!$EG$8,Nutrients!$EG$9)*AP$7)+(((IF($A$8=Nutrients!$B$79,Nutrients!$EG$79,(IF($A$8=Nutrients!$B$77,Nutrients!$EG$77,Nutrients!$EG$78)))))*AP$8))/2000","v":0.19194525734454765},null,{"$f":"(SUMPRODUCT(AR$9:AR$229,Nutrients!$EG$8:$EG$228)+(IF($A$7=Nutrients!$B$8,Nutrients!$EG$8,Nutrients!$EG$9)*AR$7)+(((IF($A$8=Nutrients!$B$79,Nutrients!$EG$79,(IF($A$8=Nutrients!$B$77,Nutrients!$EG$77,Nutrients!$EG$78)))))*AR$8))/2000","v":0.2277486134588666},{"$f":"(SUMPRODUCT(AS$9:AS$229,Nutrients!$EG$8:$EG$228)+(IF($A$7=Nutrients!$B$8,Nutrients!$EG$8,Nutrients!$EG$9)*AS$7)+(((IF($A$8=Nutrients!$B$79,Nutrients!$EG$79,(IF($A$8=Nutrients!$B$77,Nutrients!$EG$77,Nutrients!$EG$78)))))*AS$8))/2000","v":0.21717321109773655},{"$f":"(SUMPRODUCT(AT$9:AT$229,Nutrients!$EG$8:$EG$228)+(IF($A$7=Nutrients!$B$8,Nutrients!$EG$8,Nutrients!$EG$9)*AT$7)+(((IF($A$8=Nutrients!$B$79,Nutrients!$EG$79,(IF($A$8=Nutrients!$B$77,Nutrients!$EG$77,Nutrients!$EG$78)))))*AT$8))/2000","v":0.20834849083134596},{"$f":"(SUMPRODUCT(AU$9:AU$229,Nutrients!$EG$8:$EG$228)+(IF($A$7=Nutrients!$B$8,Nutrients!$EG$8,Nutrients!$EG$9)*AU$7)+(((IF($A$8=Nutrients!$B$79,Nutrients!$EG$79,(IF($A$8=Nutrients!$B$77,Nutrients!$EG$77,Nutrients!$EG$78)))))*AU$8))/2000","v":0.1989439494265669},{"$f":"(SUMPRODUCT(AV$9:AV$229,Nutrients!$EG$8:$EG$228)+(IF($A$7=Nutrients!$B$8,Nutrients!$EG$8,Nutrients!$EG$9)*AV$7)+(((IF($A$8=Nutrients!$B$79,Nutrients!$EG$79,(IF($A$8=Nutrients!$B$77,Nutrients!$EG$77,Nutrients!$EG$78)))))*AV$8))/2000","v":0.19099421615865023},{"$f":"(SUMPRODUCT(AW$9:AW$229,Nutrients!$EG$8:$EG$228)+(IF($A$7=Nutrients!$B$8,Nutrients!$EG$8,Nutrients!$EG$9)*AW$7)+(((IF($A$8=Nutrients!$B$79,Nutrients!$EG$79,(IF($A$8=Nutrients!$B$77,Nutrients!$EG$77,Nutrients!$EG$78)))))*AW$8))/2000","v":0.18656289511419302}]
["Total P - Avail P, %",{"$f":"B255-B256","v":0.30252335581907996},0.29036249419994237,0.2802277845068476,0.26990911671431012,0.26108614031234767,0.25612193787172505,null,{"$f":"I255-I256","v":0.32004710285095983},0.30785541755343937,0.29773620706625381,0.28740432968108326,0.27858151275027954,0.27361106980109395,null,{"$f":"P255-P256","v":0.3375509149574466},0.3253514853838263,0.31522405128249059,0.30489441354325209,0.29607667813624816,0.29110407556172263,null,{"$f":"W255-W256","v":0.35506167823855012},0.34284958303033264,0.33272435458226368,0.32238044188846432,0.31354839891595376,0.30850160623571155,null,{"$f":"AD255-AD256","v":0.37256039494438919},0.36035331772106893,0.35021055770809595,0.339859601748014,0.33078498847691662,0.32567269850311642,null,{"$f":"AK255-AK256","v":0.39005049731919628},0.37783937271002099,0.36770253661954999,0.35713059085301685,0.34795736330740562,0.34284333001091316,null,{"$f":"AR255-AR256","v":0.40752462912393583},0.39532303329709811,0.38515395653035234,0.3743034529593538,0.36512969297365616,0.36001393939251136]
["Phytate P released, %",{"$f":"B257-B256","v":0.11261444047083269},0.11261444047083263,0.11261444047083269,0.11261444047083267,0.1126144404708327,0.11261444047083267,null,{"$f":"I257-I256","v":0.11261444047083269},0.11261444047083272,0.11261444047083269,0.11261444047083269,0.11261444047083269,0.1126144404708327,null,{"$f":"P257-P256","v":0.11261444047083272},0.11261444047083272,0.1126144404708327,0.1126144404708327,0.11261444047083269,0.11261444047083269,null,{"$f":"W257-W256","v":0.11261444047083263},0.11261444047083269,0.1126144404708327,0.11261444047083267,0.11261444047083269,0.11261444047083269,null,{"$f":"AD257-AD256","v":0.11261444047083272},0.11261444047083267,0.11261444047083269,0.11261444047083266,0.11261444047083269,0.11261444047083269,null,{"$f":"AK257-AK256","v":0.11261444047083266},0.1126144404708327,0.11261444047083266,0.1126144404708327,0.11261444047083267,0.11261444047083269,null,{"$f":"AR257-AR256","v":0.11261444047083269},0.11261444047083267,0.11261444047083266,0.1126144404708327,0.1126144404708327,0.11261444047083269]
["Percent of total phytate phos released, %",{"$f":"B312/B310","v":0.43591630544906723},0.45445868097335318,0.47118389344263151,0.4895068387006401,0.50633802425362018,0.51632255468270782,null,{"$f":"I312/I310","v":0.44465755459852391},0.46401795461704237,0.48143973179363325,0.50061063497730851,0.51822795200096539,0.52870433991636101,null,{"$f":"P312/P310","v":0.45378750703803239},0.47398242899014614,0.49218987750460319,0.51223988742031656,0.5306895358193241,0.54168593614207583,null,{"$f":"W312/W310","v":0.46328895079858179},0.48438041195176357,0.50340730433183012,0.52443068324052611,0.54381738587673756,0.55554580126562891,null,{"$f":"AD312/AD310","v":0.4732170924928405},0.49523443205274964,0.51517613265419893,0.53723139739685433,0.55817154266119884,0.57069786642418729,null,{"$f":"AK312/AK310","v":0.48359523023049156},0.5066201908122635,0.52749630741617992,0.55115488435260251,0.57346595138983569,0.58670082308252247,null,{"$f":"AR312/AR310","v":0.49446817155342132},0.51854664717441468,0.54050998892039903,0.56606114835576005,0.58962225524823741,0.60362721323499335]
["Phytase units, FTU/kg",{"$f":"((SUMPRODUCT(B$9:B$229,Nutrients!$EE$8:$EE$228)+(IF($A$7=Nutrients!$B$8,Nutrients!$EE$8,Nutrients!$EE$9)*B$7)+(((IF($A$8=Nutrients!$B$79,Nutrients!$EE$79,(IF($A$8=Nutrients!$B$77,Nutrients!$EE$77,Nutrients!$EE$78)))))*B$8))/2000)*2.2046","v":608.03970300000003},{"$f":"((SUMPRODUCT(C$9:C$229,Nutrients!$EE$8:$EE$228)+(IF($A$7=Nutrients!$B$8,Nutrients!$EE$8,Nutrients!$EE$9)*C$7)+(((IF($A$8=Nutrients!$B$79,Nutrients!$EE$79,(IF($A$8=Nutrients!$B$77,Nutrients!$EE$77,Nutrients!$EE$78)))))*C$8))/2000)*2.2046","v":608.03970300000003},{"$f":"((SUMPRODUCT(D$9:D$229,Nutrients!$EE$8:$EE$228)+(IF($A$7=Nutrients!$B$8,Nutrients!$EE$8,Nutrients!$EE$9)*D$7)+(((IF($A$8=Nutrients!$B$79,Nutrients!$EE$79,(IF($A$8=Nutrients!$B$77,Nutrients!$EE$77,Nutrients!$EE$78)))))*D$8))/2000)*2.2046","v":608.03970300000003},{"$f":"((SUMPRODUCT(E$9:E$229,Nutrients!$EE$8:$EE$228)+(IF($A$7=Nutrients!$B$8,Nutrients!$EE$8,Nutrients!$EE$9)*E$7)+(((IF($A$8=Nutrients!$B$79,Nutrients!$EE$79,(IF($A$8=Nutrients!$B$77,Nutrients!$EE$77,Nutrients!$EE$78)))))*E$8))/2000)*2.2046","v":608.03970300000003},{"$f":"((SUMPRODUCT(F$9:F$229,Nutrients!$EE$8:$EE$228)+(IF($A$7=Nutrients!$B$8,Nutrients!$EE$8,Nutrients!$EE$9)*F$7)+(((IF($A$8=Nutrients!$B$79,Nutrients!$EE$79,(IF($A$8=Nutrients!$B$77,Nutrients!$EE$77,Nutrients!$EE$78)))))*F$8))/2000)*2.2046","v":608.03970300000003},{"$f":"((SUMPRODUCT(G$9:G$229,Nutrients!$EE$8:$EE$228)+(IF($A$7=Nutrients!$B$8,Nutrients!$EE$8,Nutrients!$EE$9)*G$7)+(((IF($A$8=Nutrients!$B$79,Nutrients!$EE$79,(IF($A$8=Nutrients!$B$77,Nutrients!$EE$77,Nutrients!$EE$78)))))*G$8))/2000)*2.2046","v":608.03970300000003},null,{"$f":"((SUMPRODUCT(I$9:I$229,Nutrients!$EE$8:$EE$228)+(IF($A$7=Nutrients!$B$8,Nutrients!$EE$8,Nutrients!$EE$9)*I$7)+(((IF($A$8=Nutrients!$B$79,Nutrients!$EE$79,(IF($A$8=Nutrients!$B$77,Nutrients!$EE$77,Nutrients!$EE$78)))))*I$8))/2000)*2.2046","v":608.03970300000003},{"$f":"((SUMPRODUCT(J$9:J$229,Nutrients!$EE$8:$EE$228)+(IF($A$7=Nutrients!$B$8,Nutrients!$EE$8,Nutrients!$EE$9)*J$7)+(((IF($A$8=Nutrients!$B$79,Nutrients!$EE$79,(IF($A$8=Nutrients!$B$77,Nutrients!$EE$77,Nutrients!$EE$78)))))*J$8))/2000)*2.2046","v":608.03970300000003},{"$f":"((SUMPRODUCT(K$9:K$229,Nutrients!$EE$8:$EE$228)+(IF($A$7=Nutrients!$B$8,Nutrients!$EE$8,Nutrients!$EE$9)*K$7)+(((IF($A$8=Nutrients!$B$79,Nutrients!$EE$79,(IF($A$8=Nutrients!$B$77,Nutrients!$EE$77,Nutrients!$EE$78)))))*K$8))/2000)*2.2046","v":608.03970300000003},{"$f":"((SUMPRODUCT(L$9:L$229,Nutrients!$EE$8:$EE$228)+(IF($A$7=Nutrients!$B$8,Nutrients!$EE$8,Nutrients!$EE$9)*L$7)+(((IF($A$8=Nutrients!$B$79,Nutrients!$EE$79,(IF($A$8=Nutrients!$B$77,Nutrients!$EE$77,Nutrients!$EE$78)))))*L$8))/2000)*2.2046","v":608.03970300000003},{"$f":"((SUMPRODUCT(M$9:M$229,Nutrients!$EE$8:$EE$228)+(IF($A$7=Nutrients!$B$8,Nutrients!$EE$8,Nutrients!$EE$9)*M$7)+(((IF($A$8=Nutrients!$B$79,Nutrients!$EE$79,(IF($A$8=Nutrients!$B$77,Nutrients!$EE$77,Nutrients!$EE$78)))))*M$8))/2000)*2.2046","v":608.03970300000003},{"$f":"((SUMPRODUCT(N$9:N$229,Nutrients!$EE$8:$EE$228)+(IF($A$7=Nutrients!$B$8,Nutrients!$EE$8,Nutrients!$EE$9)*N$7)+(((IF($A$8=Nutrients!$B$79,Nutrients!$EE$79,(IF($A$8=Nutrients!$B$77,Nutrients!$EE$77,Nutrients!$EE$78)))))*N$8))/2000)*2.2046","v":608.03970300000003},null,{"$f":"((SUMPRODUCT(P$9:P$229,Nutrients!$EE$8:$EE$228)+(IF($A$7=Nutrients!$B$8,Nutrients!$EE$8,Nutrients!$EE$9)*P$7)+(((IF($A$8=Nutrients!$B$79,Nutrients!$EE$79,(IF($A$8=Nutrients!$B$77,Nutrients!$EE$77,Nutrients!$EE$78)))))*P$8))/2000)*2.2046","v":608.03970300000003},{"$f":"((SUMPRODUCT(Q$9:Q$229,Nutrients!$EE$8:$EE$228)+(IF($A$7=Nutrients!$B$8,Nutrients!$EE$8,Nutrients!$EE$9)*Q$7)+(((IF($A$8=Nutrients!$B$79,Nutrients!$EE$79,(IF($A$8=Nutrients!$B$77,Nutrients!$EE$77,Nutrients!$EE$78)))))*Q$8))/2000)*2.2046","v":608.03970300000003},{"$f":"((SUMPRODUCT(R$9:R$229,Nutrients!$EE$8:$EE$228)+(IF($A$7=Nutrients!$B$8,Nutrients!$EE$8,Nutrients!$EE$9)*R$7)+(((IF($A$8=Nutrients!$B$79,Nutrients!$EE$79,(IF($A$8=Nutrients!$B$77,Nutrients!$EE$77,Nutrients!$EE$78)))))*R$8))/2000)*2.2046","v":608.03970300000003},{"$f":"((SUMPRODUCT(S$9:S$229,Nutrients!$EE$8:$EE$228)+(IF($A$7=Nutrients!$B$8,Nutrients!$EE$8,Nutrients!$EE$9)*S$7)+(((IF($A$8=Nutrients!$B$79,Nutrients!$EE$79,(IF($A$8=Nutrients!$B$77,Nutrients!$EE$77,Nutrients!$EE$78)))))*S$8))/2000)*2.2046","v":608.03970300000003},{"$f":"((SUMPRODUCT(T$9:T$229,Nutrients!$EE$8:$EE$228)+(IF($A$7=Nutrients!$B$8,Nutrients!$EE$8,Nutrients!$EE$9)*T$7)+(((IF($A$8=Nutrients!$B$79,Nutrients!$EE$79,(IF($A$8=Nutrients!$B$77,Nutrients!$EE$77,Nutrients!$EE$78)))))*T$8))/2000)*2.2046","v":608.03970300000003},{"$f":"((SUMPRODUCT(U$9:U$229,Nutrients!$EE$8:$EE$228)+(IF($A$7=Nutrients!$B$8,Nutrients!$EE$8,Nutrients!$EE$9)*U$7)+(((IF($A$8=Nutrients!$B$79,Nutrients!$EE$79,(IF($A$8=Nutrients!$B$77,Nutrients!$EE$77,Nutrients!$EE$78)))))*U$8))/2000)*2.2046","v":608.03970300000003},null,{"$f":"((SUMPRODUCT(W$9:W$229,Nutrients!$EE$8:$EE$228)+(IF($A$7=Nutrients!$B$8,Nutrients!$EE$8,Nutrients!$EE$9)*W$7)+(((IF($A$8=Nutrients!$B$79,Nutrients!$EE$79,(IF($A$8=Nutrients!$B$77,Nutrients!$EE$77,Nutrients!$EE$78)))))*W$8))/2000)*2.2046","v":608.03970300000003},{"$f":"((SUMPRODUCT(X$9:X$229,Nutrients!$EE$8:$EE$228)+(IF($A$7=Nutrients!$B$8,Nutrients!$EE$8,Nutrients!$EE$9)*X$7)+(((IF($A$8=Nutrients!$B$79,Nutrients!$EE$79,(IF($A$8=Nutrients!$B$77,Nutrients!$EE$77,Nutrients!$EE$78)))))*X$8))/2000)*2.2046","v":608.03970300000003},{"$f":"((SUMPRODUCT(Y$9:Y$229,Nutrients!$EE$8:$EE$228)+(IF($A$7=Nutrients!$B$8,Nutrients!$EE$8,Nutrients!$EE$9)*Y$7)+(((IF($A$8=Nutrients!$B$79,Nutrients!$EE$79,(IF($A$8=Nutrients!$B$77,Nutrients!$EE$77,Nutrients!$EE$78)))))*Y$8))/2000)*2.2046","v":608.03970300000003},{"$f":"((SUMPRODUCT(Z$9:Z$229,Nutrients!$EE$8:$EE$228)+(IF($A$7=Nutrients!$B$8,Nutrients!$EE$8,Nutrients!$EE$9)*Z$7)+(((IF($A$8=Nutrients!$B$79,Nutrients!$EE$79,(IF($A$8=Nutrients!$B$77,Nutrients!$EE$77,Nutrients!$EE$78)))))*Z$8))/2000)*2.2046","v":608.03970300000003},{"$f":"((SUMPRODUCT(AA$9:AA$229,Nutrients!$EE$8:$EE$228)+(IF($A$7=Nutrients!$B$8,Nutrients!$EE$8,Nutrients!$EE$9)*AA$7)+(((IF($A$8=Nutrients!$B$79,Nutrients!$EE$79,(IF($A$8=Nutrients!$B$77,Nutrients!$EE$77,Nutrients!$EE$78)))))*AA$8))/2000)*2.2046","v":608.03970300000003},{"$f":"((SUMPRODUCT(AB$9:AB$229,Nutrients!$EE$8:$EE$228)+(IF($A$7=Nutrients!$B$8,Nutrients!$EE$8,Nutrients!$EE$9)*AB$7)+(((IF($A$8=Nutrients!$B$79,Nutrients!$EE$79,(IF($A$8=Nutrients!$B$77,Nutrients!$EE$77,Nutrients!$EE$78)))))*AB$8))/2000)*2.2046","v":608.03970300000003},null,{"$f":"((SUMPRODUCT(AD$9:AD$229,Nutrients!$EE$8:$EE$228)+(IF($A$7=Nutrients!$B$8,Nutrients!$EE$8,Nutrients!$EE$9)*AD$7)+(((IF($A$8=Nutrients!$B$79,Nutrients!$EE$79,(IF($A$8=Nutrients!$B$77,Nutrients!$EE$77,Nutrients!$EE$78)))))*AD$8))/2000)*2.2046","v":608.03970300000003},{"$f":"((SUMPRODUCT(AE$9:AE$229,Nutrients!$EE$8:$EE$228)+(IF($A$7=Nutrients!$B$8,Nutrients!$EE$8,Nutrients!$EE$9)*AE$7)+(((IF($A$8=Nutrients!$B$79,Nutrients!$EE$79,(IF($A$8=Nutrients!$B$77,Nutrients!$EE$77,Nutrients!$EE$78)))))*AE$8))/2000)*2.2046","v":608.03970300000003},{"$f":"((SUMPRODUCT(AF$9:AF$229,Nutrients!$EE$8:$EE$228)+(IF($A$7=Nutrients!$B$8,Nutrients!$EE$8,Nutrients!$EE$9)*AF$7)+(((IF($A$8=Nutrients!$B$79,Nutrients!$EE$79,(IF($A$8=Nutrients!$B$77,Nutrients!$EE$77,Nutrients!$EE$78)))))*AF$8))/2000)*2.2046","v":608.03970300000003},{"$f":"((SUMPRODUCT(AG$9:AG$229,Nutrients!$EE$8:$EE$228)+(IF($A$7=Nutrients!$B$8,Nutrients!$EE$8,Nutrients!$EE$9)*AG$7)+(((IF($A$8=Nutrients!$B$79,Nutrients!$EE$79,(IF($A$8=Nutrients!$B$77,Nutrients!$EE$77,Nutrients!$EE$78)))))*AG$8))/2000)*2.2046","v":608.03970300000003},{"$f":"((SUMPRODUCT(AH$9:AH$229,Nutrients!$EE$8:$EE$228)+(IF($A$7=Nutrients!$B$8,Nutrients!$EE$8,Nutrients!$EE$9)*AH$7)+(((IF($A$8=Nutrients!$B$79,Nutrients!$EE$79,(IF($A$8=Nutrients!$B$77,Nutrients!$EE$77,Nutrients!$EE$78)))))*AH$8))/2000)*2.2046","v":608.03970300000003},{"$f":"((SUMPRODUCT(AI$9:AI$229,Nutrients!$EE$8:$EE$228)+(IF($A$7=Nutrients!$B$8,Nutrients!$EE$8,Nutrients!$EE$9)*AI$7)+(((IF($A$8=Nutrients!$B$79,Nutrients!$EE$79,(IF($A$8=Nutrients!$B$77,Nutrients!$EE$77,Nutrients!$EE$78)))))*AI$8))/2000)*2.2046","v":608.03970300000003},null,{"$f":"((SUMPRODUCT(AK$9:AK$229,Nutrients!$EE$8:$EE$228)+(IF($A$7=Nutrients!$B$8,Nutrients!$EE$8,Nutrients!$EE$9)*AK$7)+(((IF($A$8=Nutrients!$B$79,Nutrients!$EE$79,(IF($A$8=Nutrients!$B$77,Nutrients!$EE$77,Nutrients!$EE$78)))))*AK$8))/2000)*2.2046","v":608.03970300000003},{"$f":"((SUMPRODUCT(AL$9:AL$229,Nutrients!$EE$8:$EE$228)+(IF($A$7=Nutrients!$B$8,Nutrients!$EE$8,Nutrients!$EE$9)*AL$7)+(((IF($A$8=Nutrients!$B$79,Nutrients!$EE$79,(IF($A$8=Nutrients!$B$77,Nutrients!$EE$77,Nutrients!$EE$78)))))*AL$8))/2000)*2.2046","v":608.03970300000003},{"$f":"((SUMPRODUCT(AM$9:AM$229,Nutrients!$EE$8:$EE$228)+(IF($A$7=Nutrients!$B$8,Nutrients!$EE$8,Nutrients!$EE$9)*AM$7)+(((IF($A$8=Nutrients!$B$79,Nutrients!$EE$79,(IF($A$8=Nutrients!$B$77,Nutrients!$EE$77,Nutrients!$EE$78)))))*AM$8))/2000)*2.2046","v":608.03970300000003},{"$f":"((SUMPRODUCT(AN$9:AN$229,Nutrients!$EE$8:$EE$228)+(IF($A$7=Nutrients!$B$8,Nutrients!$EE$8,Nutrients!$EE$9)*AN$7)+(((IF($A$8=Nutrients!$B$79,Nutrients!$EE$79,(IF($A$8=Nutrients!$B$77,Nutrients!$EE$77,Nutrients!$EE$78)))))*AN$8))/2000)*2.2046","v":608.03970300000003},{"$f":"((SUMPRODUCT(AO$9:AO$229,Nutrients!$EE$8:$EE$228)+(IF($A$7=Nutrients!$B$8,Nutrients!$EE$8,Nutrients!$EE$9)*AO$7)+(((IF($A$8=Nutrients!$B$79,Nutrients!$EE$79,(IF($A$8=Nutrients!$B$77,Nutrients!$EE$77,Nutrients!$EE$78)))))*AO$8))/2000)*2.2046","v":608.03970300000003},{"$f":"((SUMPRODUCT(AP$9:AP$229,Nutrients!$EE$8:$EE$228)+(IF($A$7=Nutrients!$B$8,Nutrients!$EE$8,Nutrients!$EE$9)*AP$7)+(((IF($A$8=Nutrients!$B$79,Nutrients!$EE$79,(IF($A$8=Nutrients!$B$77,Nutrients!$EE$77,Nutrients!$EE$78)))))*AP$8))/2000)*2.2046","v":608.03970300000003},null,{"$f":"((SUMPRODUCT(AR$9:AR$229,Nutrients!$EE$8:$EE$228)+(IF($A$7=Nutrients!$B$8,Nutrients!$EE$8,Nutrients!$EE$9)*AR$7)+(((IF($A$8=Nutrients!$B$79,Nutrients!$EE$79,(IF($A$8=Nutrients!$B$77,Nutrients!$EE$77,Nutrients!$EE$78)))))*AR$8))/2000)*2.2046","v":608.03970300000003},{"$f":"((SUMPRODUCT(AS$9:AS$229,Nutrients!$EE$8:$EE$228)+(IF($A$7=Nutrients!$B$8,Nutrients!$EE$8,Nutrients!$EE$9)*AS$7)+(((IF($A$8=Nutrients!$B$79,Nutrients!$EE$79,(IF($A$8=Nutrients!$B$77,Nutrients!$EE$77,Nutrients!$EE$78)))))*AS$8))/2000)*2.2046","v":608.03970300000003},{"$f":"((SUMPRODUCT(AT$9:AT$229,Nutrients!$EE$8:$EE$228)+(IF($A$7=Nutrients!$B$8,Nutrients!$EE$8,Nutrients!$EE$9)*AT$7)+(((IF($A$8=Nutrients!$B$79,Nutrients!$EE$79,(IF($A$8=Nutrients!$B$77,Nutrients!$EE$77,Nutrients!$EE$78)))))*AT$8))/2000)*2.2046","v":608.03970300000003},{"$f":"((SUMPRODUCT(AU$9:AU$229,Nutrients!$EE$8:$EE$228)+(IF($A$7=Nutrients!$B$8,Nutrients!$EE$8,Nutrients!$EE$9)*AU$7)+(((IF($A$8=Nutrients!$B$79,Nutrients!$EE$79,(IF($A$8=Nutrients!$B$77,Nutrients!$EE$77,Nutrients!$EE$78)))))*AU$8))/2000)*2.2046","v":608.03970300000003},{"$f":"((SUMPRODUCT(AV$9:AV$229,Nutrients!$EE$8:$EE$228)+(IF($A$7=Nutrients!$B$8,Nutrients!$EE$8,Nutrients!$EE$9)*AV$7)+(((IF($A$8=Nutrients!$B$79,Nutrients!$EE$79,(IF($A$8=Nutrients!$B$77,Nutrients!$EE$77,Nutrients!$EE$78)))))*AV$8))/2000)*2.2046","v":608.03970300000003},{"$f":"((SUMPRODUCT(AW$9:AW$229,Nutrients!$EE$8:$EE$228)+(IF($A$7=Nutrients!$B$8,Nutrients!$EE$8,Nutrients!$EE$9)*AW$7)+(((IF($A$8=Nutrients!$B$79,Nutrients!$EE$79,(IF($A$8=Nutrients!$B$77,Nutrients!$EE$77,Nutrients!$EE$78)))))*AW$8))/2000)*2.2046","v":608.03970300000003}]
["EFA, %",{"$f":"((SUMPRODUCT(B$9:B$229,Nutrients!$FK$8:$FK$228)+(IF($A$7=Nutrients!$B$8,Nutrients!$FK$8,Nutrients!$FK$9)*B$7)+(((IF($A$8=Nutrients!$B$79,Nutrients!$FK$79,(IF($A$8=Nutrients!$B$77,Nutrients!$FK$77,Nutrients!$FK$78)))))*B$8))/2000)","v":1.5519301991788417},{"$f":"((SUMPRODUCT(C$9:C$229,Nutrients!$FK$8:$FK$228)+(IF($A$7=Nutrients!$B$8,Nutrients!$FK$8,Nutrients!$FK$9)*C$7)+(((IF($A$8=Nutrients!$B$79,Nutrients!$FK$79,(IF($A$8=Nutrients!$B$77,Nutrients!$FK$77,Nutrients!$FK$78)))))*C$8))/2000)","v":1.595708614420986},{"$f":"((SUMPRODUCT(D$9:D$229,Nutrients!$FK$8:$FK$228)+(IF($A$7=Nutrients!$B$8,Nutrients!$FK$8,Nutrients!$FK$9)*D$7)+(((IF($A$8=Nutrients!$B$79,Nutrients!$FK$79,(IF($A$8=Nutrients!$B$77,Nutrients!$FK$77,Nutrients!$FK$78)))))*D$8))/2000)","v":1.633289438982505},{"$f":"((SUMPRODUCT(E$9:E$229,Nutrients!$FK$8:$FK$228)+(IF($A$7=Nutrients!$B$8,Nutrients!$FK$8,Nutrients!$FK$9)*E$7)+(((IF($A$8=Nutrients!$B$79,Nutrients!$FK$79,(IF($A$8=Nutrients!$B$77,Nutrients!$FK$77,Nutrients!$FK$78)))))*E$8))/2000)","v":1.6684624843927185},{"$f":"((SUMPRODUCT(F$9:F$229,Nutrients!$FK$8:$FK$228)+(IF($A$7=Nutrients!$B$8,Nutrients!$FK$8,Nutrients!$FK$9)*F$7)+(((IF($A$8=Nutrients!$B$79,Nutrients!$FK$79,(IF($A$8=Nutrients!$B$77,Nutrients!$FK$77,Nutrients!$FK$78)))))*F$8))/2000)","v":1.6972910046236616},{"$f":"((SUMPRODUCT(G$9:G$229,Nutrients!$FK$8:$FK$228)+(IF($A$7=Nutrients!$B$8,Nutrients!$FK$8,Nutrients!$FK$9)*G$7)+(((IF($A$8=Nutrients!$B$79,Nutrients!$FK$79,(IF($A$8=Nutrients!$B$77,Nutrients!$FK$77,Nutrients!$FK$78)))))*G$8))/2000)","v":1.7124024914223799},null,{"$f":"((SUMPRODUCT(I$9:I$229,Nutrients!$FK$8:$FK$228)+(IF($A$7=Nutrients!$B$8,Nutrients!$FK$8,Nutrients!$FK$9)*I$7)+(((IF($A$8=Nutrients!$B$79,Nutrients!$FK$79,(IF($A$8=Nutrients!$B$77,Nutrients!$FK$77,Nutrients!$FK$78)))))*I$8))/2000)","v":1.5109100855294222},{"$f":"((SUMPRODUCT(J$9:J$229,Nutrients!$FK$8:$FK$228)+(IF($A$7=Nutrients!$B$8,Nutrients!$FK$8,Nutrients!$FK$9)*J$7)+(((IF($A$8=Nutrients!$B$79,Nutrients!$FK$79,(IF($A$8=Nutrients!$B$77,Nutrients!$FK$77,Nutrients!$FK$78)))))*J$8))/2000)","v":1.5550252557383859},{"$f":"((SUMPRODUCT(K$9:K$229,Nutrients!$FK$8:$FK$228)+(IF($A$7=Nutrients!$B$8,Nutrients!$FK$8,Nutrients!$FK$9)*K$7)+(((IF($A$8=Nutrients!$B$79,Nutrients!$FK$79,(IF($A$8=Nutrients!$B$77,Nutrients!$FK$77,Nutrients!$FK$78)))))*K$8))/2000)","v":1.5922386861548514},{"$f":"((SUMPRODUCT(L$9:L$229,Nutrients!$FK$8:$FK$228)+(IF($A$7=Nutrients!$B$8,Nutrients!$FK$8,Nutrients!$FK$9)*L$7)+(((IF($A$8=Nutrients!$B$79,Nutrients!$FK$79,(IF($A$8=Nutrients!$B$77,Nutrients!$FK$77,Nutrients!$FK$78)))))*L$8))/2000)","v":1.6278371831769283},{"$f":"((SUMPRODUCT(M$9:M$229,Nutrients!$FK$8:$FK$228)+(IF($A$7=Nutrients!$B$8,Nutrients!$FK$8,Nutrients!$FK$9)*M$7)+(((IF($A$8=Nutrients!$B$79,Nutrients!$FK$79,(IF($A$8=Nutrients!$B$77,Nutrients!$FK$77,Nutrients!$FK$78)))))*M$8))/2000)","v":1.6568180238584036},{"$f":"((SUMPRODUCT(N$9:N$229,Nutrients!$FK$8:$FK$228)+(IF($A$7=Nutrients!$B$8,Nutrients!$FK$8,Nutrients!$FK$9)*N$7)+(((IF($A$8=Nutrients!$B$79,Nutrients!$FK$79,(IF($A$8=Nutrients!$B$77,Nutrients!$FK$77,Nutrients!$FK$78)))))*N$8))/2000)","v":1.6717067588018102},null,{"$f":"((SUMPRODUCT(P$9:P$229,Nutrients!$FK$8:$FK$228)+(IF($A$7=Nutrients!$B$8,Nutrients!$FK$8,Nutrients!$FK$9)*P$7)+(((IF($A$8=Nutrients!$B$79,Nutrients!$FK$79,(IF($A$8=Nutrients!$B$77,Nutrients!$FK$77,Nutrients!$FK$78)))))*P$8))/2000)","v":1.4701371247113864},{"$f":"((SUMPRODUCT(Q$9:Q$229,Nutrients!$FK$8:$FK$228)+(IF($A$7=Nutrients!$B$8,Nutrients!$FK$8,Nutrients!$FK$9)*Q$7)+(((IF($A$8=Nutrients!$B$79,Nutrients!$FK$79,(IF($A$8=Nutrients!$B$77,Nutrients!$FK$77,Nutrients!$FK$78)))))*Q$8))/2000)","v":1.5142095292865623},{"$f":"((SUMPRODUCT(R$9:R$229,Nutrients!$FK$8:$FK$228)+(IF($A$7=Nutrients!$B$8,Nutrients!$FK$8,Nutrients!$FK$9)*R$7)+(((IF($A$8=Nutrients!$B$79,Nutrients!$FK$79,(IF($A$8=Nutrients!$B$77,Nutrients!$FK$77,Nutrients!$FK$78)))))*R$8))/2000)","v":1.5515282007134028},{"$f":"((SUMPRODUCT(S$9:S$229,Nutrients!$FK$8:$FK$228)+(IF($A$7=Nutrients!$B$8,Nutrients!$FK$8,Nutrients!$FK$9)*S$7)+(((IF($A$8=Nutrients!$B$79,Nutrients!$FK$79,(IF($A$8=Nutrients!$B$77,Nutrients!$FK$77,Nutrients!$FK$78)))))*S$8))/2000)","v":1.5869526532342451},{"$f":"((SUMPRODUCT(T$9:T$229,Nutrients!$FK$8:$FK$228)+(IF($A$7=Nutrients!$B$8,Nutrients!$FK$8,Nutrients!$FK$9)*T$7)+(((IF($A$8=Nutrients!$B$79,Nutrients!$FK$79,(IF($A$8=Nutrients!$B$77,Nutrients!$FK$77,Nutrients!$FK$78)))))*T$8))/2000)","v":1.6161419996053834},{"$f":"((SUMPRODUCT(U$9:U$229,Nutrients!$FK$8:$FK$228)+(IF($A$7=Nutrients!$B$8,Nutrients!$FK$8,Nutrients!$FK$9)*U$7)+(((IF($A$8=Nutrients!$B$79,Nutrients!$FK$79,(IF($A$8=Nutrients!$B$77,Nutrients!$FK$77,Nutrients!$FK$78)))))*U$8))/2000)","v":1.6311196569060011},null,{"$f":"((SUMPRODUCT(W$9:W$229,Nutrients!$FK$8:$FK$228)+(IF($A$7=Nutrients!$B$8,Nutrients!$FK$8,Nutrients!$FK$9)*W$7)+(((IF($A$8=Nutrients!$B$79,Nutrients!$FK$79,(IF($A$8=Nutrients!$B$77,Nutrients!$FK$77,Nutrients!$FK$78)))))*W$8))/2000)","v":1.429574890655801},{"$f":"((SUMPRODUCT(X$9:X$229,Nutrients!$FK$8:$FK$228)+(IF($A$7=Nutrients!$B$8,Nutrients!$FK$8,Nutrients!$FK$9)*X$7)+(((IF($A$8=Nutrients!$B$79,Nutrients!$FK$79,(IF($A$8=Nutrients!$B$77,Nutrients!$FK$77,Nutrients!$FK$78)))))*X$8))/2000)","v":1.473656659244392},{"$f":"((SUMPRODUCT(Y$9:Y$229,Nutrients!$FK$8:$FK$228)+(IF($A$7=Nutrients!$B$8,Nutrients!$FK$8,Nutrients!$FK$9)*Y$7)+(((IF($A$8=Nutrients!$B$79,Nutrients!$FK$79,(IF($A$8=Nutrients!$B$77,Nutrients!$FK$77,Nutrients!$FK$78)))))*Y$8))/2000)","v":1.5107508576804056},{"$f":"((SUMPRODUCT(Z$9:Z$229,Nutrients!$FK$8:$FK$228)+(IF($A$7=Nutrients!$B$8,Nutrients!$FK$8,Nutrients!$FK$9)*Z$7)+(((IF($A$8=Nutrients!$B$79,Nutrients!$FK$79,(IF($A$8=Nutrients!$B$77,Nutrients!$FK$77,Nutrients!$FK$78)))))*Z$8))/2000)","v":1.5461721996756641},{"$f":"((SUMPRODUCT(AA$9:AA$229,Nutrients!$FK$8:$FK$228)+(IF($A$7=Nutrients!$B$8,Nutrients!$FK$8,Nutrients!$FK$9)*AA$7)+(((IF($A$8=Nutrients!$B$79,Nutrients!$FK$79,(IF($A$8=Nutrients!$B$77,Nutrients!$FK$77,Nutrients!$FK$78)))))*AA$8))/2000)","v":1.574947411324678},{"$f":"((SUMPRODUCT(AB$9:AB$229,Nutrients!$FK$8:$FK$228)+(IF($A$7=Nutrients!$B$8,Nutrients!$FK$8,Nutrients!$FK$9)*AB$7)+(((IF($A$8=Nutrients!$B$79,Nutrients!$FK$79,(IF($A$8=Nutrients!$B$77,Nutrients!$FK$77,Nutrients!$FK$78)))))*AB$8))/2000)","v":1.5904283905598757},null,{"$f":"((SUMPRODUCT(AD$9:AD$229,Nutrients!$FK$8:$FK$228)+(IF($A$7=Nutrients!$B$8,Nutrients!$FK$8,Nutrients!$FK$9)*AD$7)+(((IF($A$8=Nutrients!$B$79,Nutrients!$FK$79,(IF($A$8=Nutrients!$B$77,Nutrients!$FK$77,Nutrients!$FK$78)))))*AD$8))/2000)","v":1.3889779563289211},{"$f":"((SUMPRODUCT(AE$9:AE$229,Nutrients!$FK$8:$FK$228)+(IF($A$7=Nutrients!$B$8,Nutrients!$FK$8,Nutrients!$FK$9)*AE$7)+(((IF($A$8=Nutrients!$B$79,Nutrients!$FK$79,(IF($A$8=Nutrients!$B$77,Nutrients!$FK$77,Nutrients!$FK$78)))))*AE$8))/2000)","v":1.4329580102788417},{"$f":"((SUMPRODUCT(AF$9:AF$229,Nutrients!$FK$8:$FK$228)+(IF($A$7=Nutrients!$B$8,Nutrients!$FK$8,Nutrients!$FK$9)*AF$7)+(((IF($A$8=Nutrients!$B$79,Nutrients!$FK$79,(IF($A$8=Nutrients!$B$77,Nutrients!$FK$77,Nutrients!$FK$78)))))*AF$8))/2000)","v":1.4699634952001155},{"$f":"((SUMPRODUCT(AG$9:AG$229,Nutrients!$FK$8:$FK$228)+(IF($A$7=Nutrients!$B$8,Nutrients!$FK$8,Nutrients!$FK$9)*AG$7)+(((IF($A$8=Nutrients!$B$79,Nutrients!$FK$79,(IF($A$8=Nutrients!$B$77,Nutrients!$FK$77,Nutrients!$FK$78)))))*AG$8))/2000)","v":1.5052071562222529},{"$f":"((SUMPRODUCT(AH$9:AH$229,Nutrients!$FK$8:$FK$228)+(IF($A$7=Nutrients!$B$8,Nutrients!$FK$8,Nutrients!$FK$9)*AH$7)+(((IF($A$8=Nutrients!$B$79,Nutrients!$FK$79,(IF($A$8=Nutrients!$B$77,Nutrients!$FK$77,Nutrients!$FK$78)))))*AH$8))/2000)","v":1.5355917334314786},{"$f":"((SUMPRODUCT(AI$9:AI$229,Nutrients!$FK$8:$FK$228)+(IF($A$7=Nutrients!$B$8,Nutrients!$FK$8,Nutrients!$FK$9)*AI$7)+(((IF($A$8=Nutrients!$B$79,Nutrients!$FK$79,(IF($A$8=Nutrients!$B$77,Nutrients!$FK$77,Nutrients!$FK$78)))))*AI$8))/2000)","v":1.5518812468915475},null,{"$f":"((SUMPRODUCT(AK$9:AK$229,Nutrients!$FK$8:$FK$228)+(IF($A$7=Nutrients!$B$8,Nutrients!$FK$8,Nutrients!$FK$9)*AK$7)+(((IF($A$8=Nutrients!$B$79,Nutrients!$FK$79,(IF($A$8=Nutrients!$B$77,Nutrients!$FK$77,Nutrients!$FK$78)))))*AK$8))/2000)","v":1.3483497217028759},{"$f":"((SUMPRODUCT(AL$9:AL$229,Nutrients!$FK$8:$FK$228)+(IF($A$7=Nutrients!$B$8,Nutrients!$FK$8,Nutrients!$FK$9)*AL$7)+(((IF($A$8=Nutrients!$B$79,Nutrients!$FK$79,(IF($A$8=Nutrients!$B$77,Nutrients!$FK$77,Nutrients!$FK$78)))))*AL$8))/2000)","v":1.392305161754267},{"$f":"((SUMPRODUCT(AM$9:AM$229,Nutrients!$FK$8:$FK$228)+(IF($A$7=Nutrients!$B$8,Nutrients!$FK$8,Nutrients!$FK$9)*AM$7)+(((IF($A$8=Nutrients!$B$79,Nutrients!$FK$79,(IF($A$8=Nutrients!$B$77,Nutrients!$FK$77,Nutrients!$FK$78)))))*AM$8))/2000)","v":1.4291049604910506},{"$f":"((SUMPRODUCT(AN$9:AN$229,Nutrients!$FK$8:$FK$228)+(IF($A$7=Nutrients!$B$8,Nutrients!$FK$8,Nutrients!$FK$9)*AN$7)+(((IF($A$8=Nutrients!$B$79,Nutrients!$FK$79,(IF($A$8=Nutrients!$B$77,Nutrients!$FK$77,Nutrients!$FK$78)))))*AN$8))/2000)","v":1.4652994031569937},{"$f":"((SUMPRODUCT(AO$9:AO$229,Nutrients!$FK$8:$FK$228)+(IF($A$7=Nutrients!$B$8,Nutrients!$FK$8,Nutrients!$FK$9)*AO$7)+(((IF($A$8=Nutrients!$B$79,Nutrients!$FK$79,(IF($A$8=Nutrients!$B$77,Nutrients!$FK$77,Nutrients!$FK$78)))))*AO$8))/2000)","v":1.4969978958427332},{"$f":"((SUMPRODUCT(AP$9:AP$229,Nutrients!$FK$8:$FK$228)+(IF($A$7=Nutrients!$B$8,Nutrients!$FK$8,Nutrients!$FK$9)*AP$7)+(((IF($A$8=Nutrients!$B$79,Nutrients!$FK$79,(IF($A$8=Nutrients!$B$77,Nutrients!$FK$77,Nutrients!$FK$78)))))*AP$8))/2000)","v":1.5133519469107595},null,{"$f":"((SUMPRODUCT(AR$9:AR$229,Nutrients!$FK$8:$FK$228)+(IF($A$7=Nutrients!$B$8,Nutrients!$FK$8,Nutrients!$FK$9)*AR$7)+(((IF($A$8=Nutrients!$B$79,Nutrients!$FK$79,(IF($A$8=Nutrients!$B$77,Nutrients!$FK$77,Nutrients!$FK$78)))))*AR$8))/2000)","v":1.3082515110556867},{"$f":"((SUMPRODUCT(AS$9:AS$229,Nutrients!$FK$8:$FK$228)+(IF($A$7=Nutrients!$B$8,Nutrients!$FK$8,Nutrients!$FK$9)*AS$7)+(((IF($A$8=Nutrients!$B$79,Nutrients!$FK$79,(IF($A$8=Nutrients!$B$77,Nutrients!$FK$77,Nutrients!$FK$78)))))*AS$8))/2000)","v":1.3513280500416787},{"$f":"((SUMPRODUCT(AT$9:AT$229,Nutrients!$FK$8:$FK$228)+(IF($A$7=Nutrients!$B$8,Nutrients!$FK$8,Nutrients!$FK$9)*AT$7)+(((IF($A$8=Nutrients!$B$79,Nutrients!$FK$79,(IF($A$8=Nutrients!$B$77,Nutrients!$FK$77,Nutrients!$FK$78)))))*AT$8))/2000)","v":1.3877883190709288},{"$f":"((SUMPRODUCT(AU$9:AU$229,Nutrients!$FK$8:$FK$228)+(IF($A$7=Nutrients!$B$8,Nutrients!$FK$8,Nutrients!$FK$9)*AU$7)+(((IF($A$8=Nutrients!$B$79,Nutrients!$FK$79,(IF($A$8=Nutrients!$B$77,Nutrients!$FK$77,Nutrients!$FK$78)))))*AU$8))/2000)","v":1.4266351303268547},{"$f":"((SUMPRODUCT(AV$9:AV$229,Nutrients!$FK$8:$FK$228)+(IF($A$7=Nutrients!$B$8,Nutrients!$FK$8,Nutrients!$FK$9)*AV$7)+(((IF($A$8=Nutrients!$B$79,Nutrients!$FK$79,(IF($A$8=Nutrients!$B$77,Nutrients!$FK$77,Nutrients!$FK$78)))))*AV$8))/2000)","v":1.4584054886307525},{"$f":"((SUMPRODUCT(AW$9:AW$229,Nutrients!$FK$8:$FK$228)+(IF($A$7=Nutrients!$B$8,Nutrients!$FK$8,Nutrients!$FK$9)*AW$7)+(((IF($A$8=Nutrients!$B$79,Nutrients!$FK$79,(IF($A$8=Nutrients!$B$77,Nutrients!$FK$77,Nutrients!$FK$78)))))*AW$8))/2000)","v":1.4748232391775784}]
["NDF, %",{"$f":"(SUMPRODUCT(B$9:B$229,Nutrients!$U$8:$U$228)+(IF($A$7=Nutrients!$B$8,Nutrients!$U$8,Nutrients!$U$9)*B$7)+(((IF($A$8=Nutrients!$B$79,Nutrients!$U$79,(IF($A$8=Nutrients!$B$77,Nutrients!$U$77,Nutrients!$U$78)))))*B$8))/2000","v":8.5699292218715204},{"$f":"(SUMPRODUCT(C$9:C$229,Nutrients!$U$8:$U$228)+(IF($A$7=Nutrients!$B$8,Nutrients!$U$8,Nutrients!$U$9)*C$7)+(((IF($A$8=Nutrients!$B$79,Nutrients!$U$79,(IF($A$8=Nutrients!$B$77,Nutrients!$U$77,Nutrients!$U$78)))))*C$8))/2000","v":8.6418600707376481},{"$f":"(SUMPRODUCT(D$9:D$229,Nutrients!$U$8:$U$228)+(IF($A$7=Nutrients!$B$8,Nutrients!$U$8,Nutrients!$U$9)*D$7)+(((IF($A$8=Nutrients!$B$79,Nutrients!$U$79,(IF($A$8=Nutrients!$B$77,Nutrients!$U$77,Nutrients!$U$78)))))*D$8))/2000","v":8.7060121920111886},{"$f":"(SUMPRODUCT(E$9:E$229,Nutrients!$U$8:$U$228)+(IF($A$7=Nutrients!$B$8,Nutrients!$U$8,Nutrients!$U$9)*E$7)+(((IF($A$8=Nutrients!$B$79,Nutrients!$U$79,(IF($A$8=Nutrients!$B$77,Nutrients!$U$77,Nutrients!$U$78)))))*E$8))/2000","v":8.7592542727281515},{"$f":"(SUMPRODUCT(F$9:F$229,Nutrients!$U$8:$U$228)+(IF($A$7=Nutrients!$B$8,Nutrients!$U$8,Nutrients!$U$9)*F$7)+(((IF($A$8=Nutrients!$B$79,Nutrients!$U$79,(IF($A$8=Nutrients!$B$77,Nutrients!$U$77,Nutrients!$U$78)))))*F$8))/2000","v":8.7998937942372635},{"$f":"(SUMPRODUCT(G$9:G$229,Nutrients!$U$8:$U$228)+(IF($A$7=Nutrients!$B$8,Nutrients!$U$8,Nutrients!$U$9)*G$7)+(((IF($A$8=Nutrients!$B$79,Nutrients!$U$79,(IF($A$8=Nutrients!$B$77,Nutrients!$U$77,Nutrients!$U$78)))))*G$8))/2000","v":8.8184122421246407},null,{"$f":"(SUMPRODUCT(I$9:I$229,Nutrients!$U$8:$U$228)+(IF($A$7=Nutrients!$B$8,Nutrients!$U$8,Nutrients!$U$9)*I$7)+(((IF($A$8=Nutrients!$B$79,Nutrients!$U$79,(IF($A$8=Nutrients!$B$77,Nutrients!$U$77,Nutrients!$U$78)))))*I$8))/2000","v":9.727011409502925},{"$f":"(SUMPRODUCT(J$9:J$229,Nutrients!$U$8:$U$228)+(IF($A$7=Nutrients!$B$8,Nutrients!$U$8,Nutrients!$U$9)*J$7)+(((IF($A$8=Nutrients!$B$79,Nutrients!$U$79,(IF($A$8=Nutrients!$B$77,Nutrients!$U$77,Nutrients!$U$78)))))*J$8))/2000","v":9.7975077739509313},{"$f":"(SUMPRODUCT(K$9:K$229,Nutrients!$U$8:$U$228)+(IF($A$7=Nutrients!$B$8,Nutrients!$U$8,Nutrients!$U$9)*K$7)+(((IF($A$8=Nutrients!$B$79,Nutrients!$U$79,(IF($A$8=Nutrients!$B$77,Nutrients!$U$77,Nutrients!$U$78)))))*K$8))/2000","v":9.8623980795325394},{"$f":"(SUMPRODUCT(L$9:L$229,Nutrients!$U$8:$U$228)+(IF($A$7=Nutrients!$B$8,Nutrients!$U$8,Nutrients!$U$9)*L$7)+(((IF($A$8=Nutrients!$B$79,Nutrients!$U$79,(IF($A$8=Nutrients!$B$77,Nutrients!$U$77,Nutrients!$U$78)))))*L$8))/2000","v":9.9150189086288005},{"$f":"(SUMPRODUCT(M$9:M$229,Nutrients!$U$8:$U$228)+(IF($A$7=Nutrients!$B$8,Nutrients!$U$8,Nutrients!$U$9)*M$7)+(((IF($A$8=Nutrients!$B$79,Nutrients!$U$79,(IF($A$8=Nutrients!$B$77,Nutrients!$U$77,Nutrients!$U$78)))))*M$8))/2000","v":9.9556551163445857},{"$f":"(SUMPRODUCT(N$9:N$229,Nutrients!$U$8:$U$228)+(IF($A$7=Nutrients!$B$8,Nutrients!$U$8,Nutrients!$U$9)*N$7)+(((IF($A$8=Nutrients!$B$79,Nutrients!$U$79,(IF($A$8=Nutrients!$B$77,Nutrients!$U$77,Nutrients!$U$78)))))*N$8))/2000","v":9.9738978746170215},null,{"$f":"(SUMPRODUCT(P$9:P$229,Nutrients!$U$8:$U$228)+(IF($A$7=Nutrients!$B$8,Nutrients!$U$8,Nutrients!$U$9)*P$7)+(((IF($A$8=Nutrients!$B$79,Nutrients!$U$79,(IF($A$8=Nutrients!$B$77,Nutrients!$U$77,Nutrients!$U$78)))))*P$8))/2000","v":10.883173221997206},{"$f":"(SUMPRODUCT(Q$9:Q$229,Nutrients!$U$8:$U$228)+(IF($A$7=Nutrients!$B$8,Nutrients!$U$8,Nutrients!$U$9)*Q$7)+(((IF($A$8=Nutrients!$B$79,Nutrients!$U$79,(IF($A$8=Nutrients!$B$77,Nutrients!$U$77,Nutrients!$U$78)))))*Q$8))/2000","v":10.953307714177852},{"$f":"(SUMPRODUCT(R$9:R$229,Nutrients!$U$8:$U$228)+(IF($A$7=Nutrients!$B$8,Nutrients!$U$8,Nutrients!$U$9)*R$7)+(((IF($A$8=Nutrients!$B$79,Nutrients!$U$79,(IF($A$8=Nutrients!$B$77,Nutrients!$U$77,Nutrients!$U$78)))))*R$8))/2000","v":11.017825881804187},{"$f":"(SUMPRODUCT(S$9:S$229,Nutrients!$U$8:$U$228)+(IF($A$7=Nutrients!$B$8,Nutrients!$U$8,Nutrients!$U$9)*S$7)+(((IF($A$8=Nutrients!$B$79,Nutrients!$U$79,(IF($A$8=Nutrients!$B$77,Nutrients!$U$77,Nutrients!$U$78)))))*S$8))/2000","v":11.07054990246252},{"$f":"(SUMPRODUCT(T$9:T$229,Nutrients!$U$8:$U$228)+(IF($A$7=Nutrients!$B$8,Nutrients!$U$8,Nutrients!$U$9)*T$7)+(((IF($A$8=Nutrients!$B$79,Nutrients!$U$79,(IF($A$8=Nutrients!$B$77,Nutrients!$U$77,Nutrients!$U$78)))))*T$8))/2000","v":11.111420241105503},{"$f":"(SUMPRODUCT(U$9:U$229,Nutrients!$U$8:$U$228)+(IF($A$7=Nutrients!$B$8,Nutrients!$U$8,Nutrients!$U$9)*U$7)+(((IF($A$8=Nutrients!$B$79,Nutrients!$U$79,(IF($A$8=Nutrients!$B$77,Nutrients!$U$77,Nutrients!$U$78)))))*U$8))/2000","v":11.129563494760202},null,{"$f":"(SUMPRODUCT(W$9:W$229,Nutrients!$U$8:$U$228)+(IF($A$7=Nutrients!$B$8,Nutrients!$U$8,Nutrients!$U$9)*W$7)+(((IF($A$8=Nutrients!$B$79,Nutrients!$U$79,(IF($A$8=Nutrients!$B$77,Nutrients!$U$77,Nutrients!$U$78)))))*W$8))/2000","v":12.039657018911216},{"$f":"(SUMPRODUCT(X$9:X$229,Nutrients!$U$8:$U$228)+(IF($A$7=Nutrients!$B$8,Nutrients!$U$8,Nutrients!$U$9)*X$7)+(((IF($A$8=Nutrients!$B$79,Nutrients!$U$79,(IF($A$8=Nutrients!$B$77,Nutrients!$U$77,Nutrients!$U$78)))))*X$8))/2000","v":12.109207942680387},{"$f":"(SUMPRODUCT(Y$9:Y$229,Nutrients!$U$8:$U$228)+(IF($A$7=Nutrients!$B$8,Nutrients!$U$8,Nutrients!$U$9)*Y$7)+(((IF($A$8=Nutrients!$B$79,Nutrients!$U$79,(IF($A$8=Nutrients!$B$77,Nutrients!$U$77,Nutrients!$U$78)))))*Y$8))/2000","v":12.17382773565863},{"$f":"(SUMPRODUCT(Z$9:Z$229,Nutrients!$U$8:$U$228)+(IF($A$7=Nutrients!$B$8,Nutrients!$U$8,Nutrients!$U$9)*Z$7)+(((IF($A$8=Nutrients!$B$79,Nutrients!$U$79,(IF($A$8=Nutrients!$B$77,Nutrients!$U$77,Nutrients!$U$78)))))*Z$8))/2000","v":12.225894038577438},{"$f":"(SUMPRODUCT(AA$9:AA$229,Nutrients!$U$8:$U$228)+(IF($A$7=Nutrients!$B$8,Nutrients!$U$8,Nutrients!$U$9)*AA$7)+(((IF($A$8=Nutrients!$B$79,Nutrients!$U$79,(IF($A$8=Nutrients!$B$77,Nutrients!$U$77,Nutrients!$U$78)))))*AA$8))/2000","v":12.266105156933367},{"$f":"(SUMPRODUCT(AB$9:AB$229,Nutrients!$U$8:$U$228)+(IF($A$7=Nutrients!$B$8,Nutrients!$U$8,Nutrients!$U$9)*AB$7)+(((IF($A$8=Nutrients!$B$79,Nutrients!$U$79,(IF($A$8=Nutrients!$B$77,Nutrients!$U$77,Nutrients!$U$78)))))*AB$8))/2000","v":12.280770126155319},null,{"$f":"(SUMPRODUCT(AD$9:AD$229,Nutrients!$U$8:$U$228)+(IF($A$7=Nutrients!$B$8,Nutrients!$U$8,Nutrients!$U$9)*AD$7)+(((IF($A$8=Nutrients!$B$79,Nutrients!$U$79,(IF($A$8=Nutrients!$B$77,Nutrients!$U$77,Nutrients!$U$78)))))*AD$8))/2000","v":13.195585770538168},{"$f":"(SUMPRODUCT(AE$9:AE$229,Nutrients!$U$8:$U$228)+(IF($A$7=Nutrients!$B$8,Nutrients!$U$8,Nutrients!$U$9)*AE$7)+(((IF($A$8=Nutrients!$B$79,Nutrients!$U$79,(IF($A$8=Nutrients!$B$77,Nutrients!$U$77,Nutrients!$U$78)))))*AE$8))/2000","v":13.265367897683115},{"$f":"(SUMPRODUCT(AF$9:AF$229,Nutrients!$U$8:$U$228)+(IF($A$7=Nutrients!$B$8,Nutrients!$U$8,Nutrients!$U$9)*AF$7)+(((IF($A$8=Nutrients!$B$79,Nutrients!$U$79,(IF($A$8=Nutrients!$B$77,Nutrients!$U$77,Nutrients!$U$78)))))*AF$8))/2000","v":13.329179924780918},{"$f":"(SUMPRODUCT(AG$9:AG$229,Nutrients!$U$8:$U$228)+(IF($A$7=Nutrients!$B$8,Nutrients!$U$8,Nutrients!$U$9)*AG$7)+(((IF($A$8=Nutrients!$B$79,Nutrients!$U$79,(IF($A$8=Nutrients!$B$77,Nutrients!$U$77,Nutrients!$U$78)))))*AG$8))/2000","v":13.380909120349052},{"$f":"(SUMPRODUCT(AH$9:AH$229,Nutrients!$U$8:$U$228)+(IF($A$7=Nutrients!$B$8,Nutrients!$U$8,Nutrients!$U$9)*AH$7)+(((IF($A$8=Nutrients!$B$79,Nutrients!$U$79,(IF($A$8=Nutrients!$B$77,Nutrients!$U$77,Nutrients!$U$78)))))*AH$8))/2000","v":13.409770004742649},{"$f":"(SUMPRODUCT(AI$9:AI$229,Nutrients!$U$8:$U$228)+(IF($A$7=Nutrients!$B$8,Nutrients!$U$8,Nutrients!$U$9)*AI$7)+(((IF($A$8=Nutrients!$B$79,Nutrients!$U$79,(IF($A$8=Nutrients!$B$77,Nutrients!$U$77,Nutrients!$U$78)))))*AI$8))/2000","v":13.421360269254606},null,{"$f":"(SUMPRODUCT(AK$9:AK$229,Nutrients!$U$8:$U$228)+(IF($A$7=Nutrients!$B$8,Nutrients!$U$8,Nutrients!$U$9)*AK$7)+(((IF($A$8=Nutrients!$B$79,Nutrients!$U$79,(IF($A$8=Nutrients!$B$77,Nutrients!$U$77,Nutrients!$U$78)))))*AK$8))/2000","v":14.351117617340673},{"$f":"(SUMPRODUCT(AL$9:AL$229,Nutrients!$U$8:$U$228)+(IF($A$7=Nutrients!$B$8,Nutrients!$U$8,Nutrients!$U$9)*AL$7)+(((IF($A$8=Nutrients!$B$79,Nutrients!$U$79,(IF($A$8=Nutrients!$B$77,Nutrients!$U$77,Nutrients!$U$78)))))*AL$8))/2000","v":14.420713261406867},{"$f":"(SUMPRODUCT(AM$9:AM$229,Nutrients!$U$8:$U$228)+(IF($A$7=Nutrients!$B$8,Nutrients!$U$8,Nutrients!$U$9)*AM$7)+(((IF($A$8=Nutrients!$B$79,Nutrients!$U$79,(IF($A$8=Nutrients!$B$77,Nutrients!$U$77,Nutrients!$U$78)))))*AM$8))/2000","v":14.484798232905339},{"$f":"(SUMPRODUCT(AN$9:AN$229,Nutrients!$U$8:$U$228)+(IF($A$7=Nutrients!$B$8,Nutrients!$U$8,Nutrients!$U$9)*AN$7)+(((IF($A$8=Nutrients!$B$79,Nutrients!$U$79,(IF($A$8=Nutrients!$B$77,Nutrients!$U$77,Nutrients!$U$78)))))*AN$8))/2000","v":14.526198307631129},{"$f":"(SUMPRODUCT(AO$9:AO$229,Nutrients!$U$8:$U$228)+(IF($A$7=Nutrients!$B$8,Nutrients!$U$8,Nutrients!$U$9)*AO$7)+(((IF($A$8=Nutrients!$B$79,Nutrients!$U$79,(IF($A$8=Nutrients!$B$77,Nutrients!$U$77,Nutrients!$U$78)))))*AO$8))/2000","v":14.550419651604081},{"$f":"(SUMPRODUCT(AP$9:AP$229,Nutrients!$U$8:$U$228)+(IF($A$7=Nutrients!$B$8,Nutrients!$U$8,Nutrients!$U$9)*AP$7)+(((IF($A$8=Nutrients!$B$79,Nutrients!$U$79,(IF($A$8=Nutrients!$B$77,Nutrients!$U$77,Nutrients!$U$78)))))*AP$8))/2000","v":14.561929145051485},null,{"$f":"(SUMPRODUCT(AR$9:AR$229,Nutrients!$U$8:$U$228)+(IF($A$7=Nutrients!$B$8,Nutrients!$U$8,Nutrients!$U$9)*AR$7)+(((IF($A$8=Nutrients!$B$79,Nutrients!$U$79,(IF($A$8=Nutrients!$B$77,Nutrients!$U$77,Nutrients!$U$78)))))*AR$8))/2000","v":15.505913621013237},{"$f":"(SUMPRODUCT(AS$9:AS$229,Nutrients!$U$8:$U$228)+(IF($A$7=Nutrients!$B$8,Nutrients!$U$8,Nutrients!$U$9)*AS$7)+(((IF($A$8=Nutrients!$B$79,Nutrients!$U$79,(IF($A$8=Nutrients!$B$77,Nutrients!$U$77,Nutrients!$U$78)))))*AS$8))/2000","v":15.57594830319705},{"$f":"(SUMPRODUCT(AT$9:AT$229,Nutrients!$U$8:$U$228)+(IF($A$7=Nutrients!$B$8,Nutrients!$U$8,Nutrients!$U$9)*AT$7)+(((IF($A$8=Nutrients!$B$79,Nutrients!$U$79,(IF($A$8=Nutrients!$B$77,Nutrients!$U$77,Nutrients!$U$78)))))*AT$8))/2000","v":15.638534558654516},{"$f":"(SUMPRODUCT(AU$9:AU$229,Nutrients!$U$8:$U$228)+(IF($A$7=Nutrients!$B$8,Nutrients!$U$8,Nutrients!$U$9)*AU$7)+(((IF($A$8=Nutrients!$B$79,Nutrients!$U$79,(IF($A$8=Nutrients!$B$77,Nutrients!$U$77,Nutrients!$U$78)))))*AU$8))/2000","v":15.666865169825762},{"$f":"(SUMPRODUCT(AV$9:AV$229,Nutrients!$U$8:$U$228)+(IF($A$7=Nutrients!$B$8,Nutrients!$U$8,Nutrients!$U$9)*AV$7)+(((IF($A$8=Nutrients!$B$79,Nutrients!$U$79,(IF($A$8=Nutrients!$B$77,Nutrients!$U$77,Nutrients!$U$78)))))*AV$8))/2000","v":15.691067181211277},{"$f":"(SUMPRODUCT(AW$9:AW$229,Nutrients!$U$8:$U$228)+(IF($A$7=Nutrients!$B$8,Nutrients!$U$8,Nutrients!$U$9)*AW$7)+(((IF($A$8=Nutrients!$B$79,Nutrients!$U$79,(IF($A$8=Nutrients!$B$77,Nutrients!$U$77,Nutrients!$U$78)))))*AW$8))/2000","v":15.702496972492927}]
["SID Lys:CP ratio",{"$f":"B236/B253*100","v":6.1785853391259096},5.9864354833614239,5.7595132677868364,5.6037683275620731,5.5537986803701944,5.52175985110991,null,{"$f":"I236/I253*100","v":6.0524560186657261},5.8523081576306772,5.6176778497639352,5.4544167551400866,5.3947802053540839,5.3547529580325124,null,{"$f":"P236/P253*100","v":5.930662406014207},5.7231362934076442,5.482667874514358,5.3116741902238651,5.2436024433353632,5.1981562896972369,null,{"$f":"W236/W253*100","v":5.8135847584543514},5.5990667293603451,5.3537471863160091,5.1749415223323414,5.0965469173151892,5.0468215395506313,null,{"$f":"AD236/AD253*100","v":5.7001344988104803},5.4804212061402566,5.2296276882786819,5.0445150973886914,4.9595656842243017,4.906085891261263,null,{"$f":"AK236/AK253*100","v":5.5912802622886462},5.3664603938999367,5.1121824724333287,4.9209989907388643,4.8302875550842623,4.7729902717523052,null,{"$f":"AR236/AR253*100","v":5.4864234655835027},5.2563467896006308,4.9975601555503051,4.8041266150660951,4.7075782022772605,4.6469255157690599]
["Trace minerals (added levels)"]
["  Zinc added, ppm",{"$f":"(SUMPRODUCT(B$9:B$229,Nutrients!$EK$8:$EK$228)+(IF($A$7=Nutrients!$B$8,Nutrients!$EK$8,Nutrients!$EK$9)*B$7)+(((IF($A$8=Nutrients!$B$79,Nutrients!$EK$79,(IF($A$8=Nutrients!$B$77,Nutrients!$EK$77,Nutrients!$EK$78)))))*B$8))/2000*1000000","v":110.11950000000002},{"$f":"(SUMPRODUCT(C$9:C$229,Nutrients!$EK$8:$EK$228)+(IF($A$7=Nutrients!$B$8,Nutrients!$EK$8,Nutrients!$EK$9)*C$7)+(((IF($A$8=Nutrients!$B$79,Nutrients!$EK$79,(IF($A$8=Nutrients!$B$77,Nutrients!$EK$77,Nutrients!$EK$78)))))*C$8))/2000*1000000","v":110.11950000000002},{"$f":"(SUMPRODUCT(D$9:D$229,Nutrients!$EK$8:$EK$228)+(IF($A$7=Nutrients!$B$8,Nutrients!$EK$8,Nutrients!$EK$9)*D$7)+(((IF($A$8=Nutrients!$B$79,Nutrients!$EK$79,(IF($A$8=Nutrients!$B$77,Nutrients!$EK$77,Nutrients!$EK$78)))))*D$8))/2000*1000000","v":91.766249999999999},{"$f":"(SUMPRODUCT(E$9:E$229,Nutrients!$EK$8:$EK$228)+(IF($A$7=Nutrients!$B$8,Nutrients!$EK$8,Nutrients!$EK$9)*E$7)+(((IF($A$8=Nutrients!$B$79,Nutrients!$EK$79,(IF($A$8=Nutrients!$B$77,Nutrients!$EK$77,Nutrients!$EK$78)))))*E$8))/2000*1000000","v":73.413000000000011},{"$f":"(SUMPRODUCT(F$9:F$229,Nutrients!$EK$8:$EK$228)+(IF($A$7=Nutrients!$B$8,Nutrients!$EK$8,Nutrients!$EK$9)*F$7)+(((IF($A$8=Nutrients!$B$79,Nutrients!$EK$79,(IF($A$8=Nutrients!$B$77,Nutrients!$EK$77,Nutrients!$EK$78)))))*F$8))/2000*1000000","v":55.059750000000008},{"$f":"(SUMPRODUCT(G$9:G$229,Nutrients!$EK$8:$EK$228)+(IF($A$7=Nutrients!$B$8,Nutrients!$EK$8,Nutrients!$EK$9)*G$7)+(((IF($A$8=Nutrients!$B$79,Nutrients!$EK$79,(IF($A$8=Nutrients!$B$77,Nutrients!$EK$77,Nutrients!$EK$78)))))*G$8))/2000*1000000","v":55.059750000000008},null,{"$f":"(SUMPRODUCT(I$9:I$229,Nutrients!$EK$8:$EK$228)+(IF($A$7=Nutrients!$B$8,Nutrients!$EK$8,Nutrients!$EK$9)*I$7)+(((IF($A$8=Nutrients!$B$79,Nutrients!$EK$79,(IF($A$8=Nutrients!$B$77,Nutrients!$EK$77,Nutrients!$EK$78)))))*I$8))/2000*1000000","v":110.11950000000002},{"$f":"(SUMPRODUCT(J$9:J$229,Nutrients!$EK$8:$EK$228)+(IF($A$7=Nutrients!$B$8,Nutrients!$EK$8,Nutrients!$EK$9)*J$7)+(((IF($A$8=Nutrients!$B$79,Nutrients!$EK$79,(IF($A$8=Nutrients!$B$77,Nutrients!$EK$77,Nutrients!$EK$78)))))*J$8))/2000*1000000","v":110.11950000000002},{"$f":"(SUMPRODUCT(K$9:K$229,Nutrients!$EK$8:$EK$228)+(IF($A$7=Nutrients!$B$8,Nutrients!$EK$8,Nutrients!$EK$9)*K$7)+(((IF($A$8=Nutrients!$B$79,Nutrients!$EK$79,(IF($A$8=Nutrients!$B$77,Nutrients!$EK$77,Nutrients!$EK$78)))))*K$8))/2000*1000000","v":91.766249999999999},{"$f":"(SUMPRODUCT(L$9:L$229,Nutrients!$EK$8:$EK$228)+(IF($A$7=Nutrients!$B$8,Nutrients!$EK$8,Nutrients!$EK$9)*L$7)+(((IF($A$8=Nutrients!$B$79,Nutrients!$EK$79,(IF($A$8=Nutrients!$B$77,Nutrients!$EK$77,Nutrients!$EK$78)))))*L$8))/2000*1000000","v":73.413000000000011},{"$f":"(SUMPRODUCT(M$9:M$229,Nutrients!$EK$8:$EK$228)+(IF($A$7=Nutrients!$B$8,Nutrients!$EK$8,Nutrients!$EK$9)*M$7)+(((IF($A$8=Nutrients!$B$79,Nutrients!$EK$79,(IF($A$8=Nutrients!$B$77,Nutrients!$EK$77,Nutrients!$EK$78)))))*M$8))/2000*1000000","v":55.059750000000008},{"$f":"(SUMPRODUCT(N$9:N$229,Nutrients!$EK$8:$EK$228)+(IF($A$7=Nutrients!$B$8,Nutrients!$EK$8,Nutrients!$EK$9)*N$7)+(((IF($A$8=Nutrients!$B$79,Nutrients!$EK$79,(IF($A$8=Nutrients!$B$77,Nutrients!$EK$77,Nutrients!$EK$78)))))*N$8))/2000*1000000","v":55.059750000000008},null,{"$f":"(SUMPRODUCT(P$9:P$229,Nutrients!$EK$8:$EK$228)+(IF($A$7=Nutrients!$B$8,Nutrients!$EK$8,Nutrients!$EK$9)*P$7)+(((IF($A$8=Nutrients!$B$79,Nutrients!$EK$79,(IF($A$8=Nutrients!$B$77,Nutrients!$EK$77,Nutrients!$EK$78)))))*P$8))/2000*1000000","v":110.11950000000002},{"$f":"(SUMPRODUCT(Q$9:Q$229,Nutrients!$EK$8:$EK$228)+(IF($A$7=Nutrients!$B$8,Nutrients!$EK$8,Nutrients!$EK$9)*Q$7)+(((IF($A$8=Nutrients!$B$79,Nutrients!$EK$79,(IF($A$8=Nutrients!$B$77,Nutrients!$EK$77,Nutrients!$EK$78)))))*Q$8))/2000*1000000","v":110.11950000000002},{"$f":"(SUMPRODUCT(R$9:R$229,Nutrients!$EK$8:$EK$228)+(IF($A$7=Nutrients!$B$8,Nutrients!$EK$8,Nutrients!$EK$9)*R$7)+(((IF($A$8=Nutrients!$B$79,Nutrients!$EK$79,(IF($A$8=Nutrients!$B$77,Nutrients!$EK$77,Nutrients!$EK$78)))))*R$8))/2000*1000000","v":91.766249999999999},{"$f":"(SUMPRODUCT(S$9:S$229,Nutrients!$EK$8:$EK$228)+(IF($A$7=Nutrients!$B$8,Nutrients!$EK$8,Nutrients!$EK$9)*S$7)+(((IF($A$8=Nutrients!$B$79,Nutrients!$EK$79,(IF($A$8=Nutrients!$B$77,Nutrients!$EK$77,Nutrients!$EK$78)))))*S$8))/2000*1000000","v":73.413000000000011},{"$f":"(SUMPRODUCT(T$9:T$229,Nutrients!$EK$8:$EK$228)+(IF($A$7=Nutrients!$B$8,Nutrients!$EK$8,Nutrients!$EK$9)*T$7)+(((IF($A$8=Nutrients!$B$79,Nutrients!$EK$79,(IF($A$8=Nutrients!$B$77,Nutrients!$EK$77,Nutrients!$EK$78)))))*T$8))/2000*1000000","v":55.059750000000008},{"$f":"(SUMPRODUCT(U$9:U$229,Nutrients!$EK$8:$EK$228)+(IF($A$7=Nutrients!$B$8,Nutrients!$EK$8,Nutrients!$EK$9)*U$7)+(((IF($A$8=Nutrients!$B$79,Nutrients!$EK$79,(IF($A$8=Nutrients!$B$77,Nutrients!$EK$77,Nutrients!$EK$78)))))*U$8))/2000*1000000","v":55.059750000000008},null,{"$f":"(SUMPRODUCT(W$9:W$229,Nutrients!$EK$8:$EK$228)+(IF($A$7=Nutrients!$B$8,Nutrients!$EK$8,Nutrients!$EK$9)*W$7)+(((IF($A$8=Nutrients!$B$79,Nutrients!$EK$79,(IF($A$8=Nutrients!$B$77,Nutrients!$EK$77,Nutrients!$EK$78)))))*W$8))/2000*1000000","v":110.11950000000002},{"$f":"(SUMPRODUCT(X$9:X$229,Nutrients!$EK$8:$EK$228)+(IF($A$7=Nutrients!$B$8,Nutrients!$EK$8,Nutrients!$EK$9)*X$7)+(((IF($A$8=Nutrients!$B$79,Nutrients!$EK$79,(IF($A$8=Nutrients!$B$77,Nutrients!$EK$77,Nutrients!$EK$78)))))*X$8))/2000*1000000","v":110.11950000000002},{"$f":"(SUMPRODUCT(Y$9:Y$229,Nutrients!$EK$8:$EK$228)+(IF($A$7=Nutrients!$B$8,Nutrients!$EK$8,Nutrients!$EK$9)*Y$7)+(((IF($A$8=Nutrients!$B$79,Nutrients!$EK$79,(IF($A$8=Nutrients!$B$77,Nutrients!$EK$77,Nutrients!$EK$78)))))*Y$8))/2000*1000000","v":91.766249999999999},{"$f":"(SUMPRODUCT(Z$9:Z$229,Nutrients!$EK$8:$EK$228)+(IF($A$7=Nutrients!$B$8,Nutrients!$EK$8,Nutrients!$EK$9)*Z$7)+(((IF($A$8=Nutrients!$B$79,Nutrients!$EK$79,(IF($A$8=Nutrients!$B$77,Nutrients!$EK$77,Nutrients!$EK$78)))))*Z$8))/2000*1000000","v":73.413000000000011},{"$f":"(SUMPRODUCT(AA$9:AA$229,Nutrients!$EK$8:$EK$228)+(IF($A$7=Nutrients!$B$8,Nutrients!$EK$8,Nutrients!$EK$9)*AA$7)+(((IF($A$8=Nutrients!$B$79,Nutrients!$EK$79,(IF($A$8=Nutrients!$B$77,Nutrients!$EK$77,Nutrients!$EK$78)))))*AA$8))/2000*1000000","v":55.059750000000008},{"$f":"(SUMPRODUCT(AB$9:AB$229,Nutrients!$EK$8:$EK$228)+(IF($A$7=Nutrients!$B$8,Nutrients!$EK$8,Nutrients!$EK$9)*AB$7)+(((IF($A$8=Nutrients!$B$79,Nutrients!$EK$79,(IF($A$8=Nutrients!$B$77,Nutrients!$EK$77,Nutrients!$EK$78)))))*AB$8))/2000*1000000","v":55.059750000000008},null,{"$f":"(SUMPRODUCT(AD$9:AD$229,Nutrients!$EK$8:$EK$228)+(IF($A$7=Nutrients!$B$8,Nutrients!$EK$8,Nutrients!$EK$9)*AD$7)+(((IF($A$8=Nutrients!$B$79,Nutrients!$EK$79,(IF($A$8=Nutrients!$B$77,Nutrients!$EK$77,Nutrients!$EK$78)))))*AD$8))/2000*1000000","v":110.11950000000002},{"$f":"(SUMPRODUCT(AE$9:AE$229,Nutrients!$EK$8:$EK$228)+(IF($A$7=Nutrients!$B$8,Nutrients!$EK$8,Nutrients!$EK$9)*AE$7)+(((IF($A$8=Nutrients!$B$79,Nutrients!$EK$79,(IF($A$8=Nutrients!$B$77,Nutrients!$EK$77,Nutrients!$EK$78)))))*AE$8))/2000*1000000","v":110.11950000000002},{"$f":"(SUMPRODUCT(AF$9:AF$229,Nutrients!$EK$8:$EK$228)+(IF($A$7=Nutrients!$B$8,Nutrients!$EK$8,Nutrients!$EK$9)*AF$7)+(((IF($A$8=Nutrients!$B$79,Nutrients!$EK$79,(IF($A$8=Nutrients!$B$77,Nutrients!$EK$77,Nutrients!$EK$78)))))*AF$8))/2000*1000000","v":91.766249999999999},{"$f":"(SUMPRODUCT(AG$9:AG$229,Nutrients!$EK$8:$EK$228)+(IF($A$7=Nutrients!$B$8,Nutrients!$EK$8,Nutrients!$EK$9)*AG$7)+(((IF($A$8=Nutrients!$B$79,Nutrients!$EK$79,(IF($A$8=Nutrients!$B$77,Nutrients!$EK$77,Nutrients!$EK$78)))))*AG$8))/2000*1000000","v":73.413000000000011},{"$f":"(SUMPRODUCT(AH$9:AH$229,Nutrients!$EK$8:$EK$228)+(IF($A$7=Nutrients!$B$8,Nutrients!$EK$8,Nutrients!$EK$9)*AH$7)+(((IF($A$8=Nutrients!$B$79,Nutrients!$EK$79,(IF($A$8=Nutrients!$B$77,Nutrients!$EK$77,Nutrients!$EK$78)))))*AH$8))/2000*1000000","v":55.059750000000008},{"$f":"(SUMPRODUCT(AI$9:AI$229,Nutrients!$EK$8:$EK$228)+(IF($A$7=Nutrients!$B$8,Nutrients!$EK$8,Nutrients!$EK$9)*AI$7)+(((IF($A$8=Nutrients!$B$79,Nutrients!$EK$79,(IF($A$8=Nutrients!$B$77,Nutrients!$EK$77,Nutrients!$EK$78)))))*AI$8))/2000*1000000","v":55.059750000000008},null,{"$f":"(SUMPRODUCT(AK$9:AK$229,Nutrients!$EK$8:$EK$228)+(IF($A$7=Nutrients!$B$8,Nutrients!$EK$8,Nutrients!$EK$9)*AK$7)+(((IF($A$8=Nutrients!$B$79,Nutrients!$EK$79,(IF($A$8=Nutrients!$B$77,Nutrients!$EK$77,Nutrients!$EK$78)))))*AK$8))/2000*1000000","v":110.11950000000002},{"$f":"(SUMPRODUCT(AL$9:AL$229,Nutrients!$EK$8:$EK$228)+(IF($A$7=Nutrients!$B$8,Nutrients!$EK$8,Nutrients!$EK$9)*AL$7)+(((IF($A$8=Nutrients!$B$79,Nutrients!$EK$79,(IF($A$8=Nutrients!$B$77,Nutrients!$EK$77,Nutrients!$EK$78)))))*AL$8))/2000*1000000","v":110.11950000000002},{"$f":"(SUMPRODUCT(AM$9:AM$229,Nutrients!$EK$8:$EK$228)+(IF($A$7=Nutrients!$B$8,Nutrients!$EK$8,Nutrients!$EK$9)*AM$7)+(((IF($A$8=Nutrients!$B$79,Nutrients!$EK$79,(IF($A$8=Nutrients!$B$77,Nutrients!$EK$77,Nutrients!$EK$78)))))*AM$8))/2000*1000000","v":91.766249999999999},{"$f":"(SUMPRODUCT(AN$9:AN$229,Nutrients!$EK$8:$EK$228)+(IF($A$7=Nutrients!$B$8,Nutrients!$EK$8,Nutrients!$EK$9)*AN$7)+(((IF($A$8=Nutrients!$B$79,Nutrients!$EK$79,(IF($A$8=Nutrients!$B$77,Nutrients!$EK$77,Nutrients!$EK$78)))))*AN$8))/2000*1000000","v":73.413000000000011},{"$f":"(SUMPRODUCT(AO$9:AO$229,Nutrients!$EK$8:$EK$228)+(IF($A$7=Nutrients!$B$8,Nutrients!$EK$8,Nutrients!$EK$9)*AO$7)+(((IF($A$8=Nutrients!$B$79,Nutrients!$EK$79,(IF($A$8=Nutrients!$B$77,Nutrients!$EK$77,Nutrients!$EK$78)))))*AO$8))/2000*1000000","v":55.059750000000008},{"$f":"(SUMPRODUCT(AP$9:AP$229,Nutrients!$EK$8:$EK$228)+(IF($A$7=Nutrients!$B$8,Nutrients!$EK$8,Nutrients!$EK$9)*AP$7)+(((IF($A$8=Nutrients!$B$79,Nutrients!$EK$79,(IF($A$8=Nutrients!$B$77,Nutrients!$EK$77,Nutrients!$EK$78)))))*AP$8))/2000*1000000","v":55.059750000000008},null,{"$f":"(SUMPRODUCT(AR$9:AR$229,Nutrients!$EK$8:$EK$228)+(IF($A$7=Nutrients!$B$8,Nutrients!$EK$8,Nutrients!$EK$9)*AR$7)+(((IF($A$8=Nutrients!$B$79,Nutrients!$EK$79,(IF($A$8=Nutrients!$B$77,Nutrients!$EK$77,Nutrients!$EK$78)))))*AR$8))/2000*1000000","v":110.11950000000002},{"$f":"(SUMPRODUCT(AS$9:AS$229,Nutrients!$EK$8:$EK$228)+(IF($A$7=Nutrients!$B$8,Nutrients!$EK$8,Nutrients!$EK$9)*AS$7)+(((IF($A$8=Nutrients!$B$79,Nutrients!$EK$79,(IF($A$8=Nutrients!$B$77,Nutrients!$EK$77,Nutrients!$EK$78)))))*AS$8))/2000*1000000","v":110.11950000000002},{"$f":"(SUMPRODUCT(AT$9:AT$229,Nutrients!$EK$8:$EK$228)+(IF($A$7=Nutrients!$B$8,Nutrients!$EK$8,Nutrients!$EK$9)*AT$7)+(((IF($A$8=Nutrients!$B$79,Nutrients!$EK$79,(IF($A$8=Nutrients!$B$77,Nutrients!$EK$77,Nutrients!$EK$78)))))*AT$8))/2000*1000000","v":91.766249999999999},{"$f":"(SUMPRODUCT(AU$9:AU$229,Nutrients!$EK$8:$EK$228)+(IF($A$7=Nutrients!$B$8,Nutrients!$EK$8,Nutrients!$EK$9)*AU$7)+(((IF($A$8=Nutrients!$B$79,Nutrients!$EK$79,(IF($A$8=Nutrients!$B$77,Nutrients!$EK$77,Nutrients!$EK$78)))))*AU$8))/2000*1000000","v":73.413000000000011},{"$f":"(SUMPRODUCT(AV$9:AV$229,Nutrients!$EK$8:$EK$228)+(IF($A$7=Nutrients!$B$8,Nutrients!$EK$8,Nutrients!$EK$9)*AV$7)+(((IF($A$8=Nutrients!$B$79,Nutrients!$EK$79,(IF($A$8=Nutrients!$B$77,Nutrients!$EK$77,Nutrients!$EK$78)))))*AV$8))/2000*1000000","v":55.059750000000008},{"$f":"(SUMPRODUCT(AW$9:AW$229,Nutrients!$EK$8:$EK$228)+(IF($A$7=Nutrients!$B$8,Nutrients!$EK$8,Nutrients!$EK$9)*AW$7)+(((IF($A$8=Nutrients!$B$79,Nutrients!$EK$79,(IF($A$8=Nutrients!$B$77,Nutrients!$EK$77,Nutrients!$EK$78)))))*AW$8))/2000*1000000","v":55.059750000000008}]
["  Iron added, ppm",{"$f":"(SUMPRODUCT(B$9:B$229,Nutrients!$EL$8:$EL$228)+(IF($A$7=Nutrients!$B$8,Nutrients!$EL$8,Nutrients!$EL$9)*B$7)+(((IF($A$8=Nutrients!$B$79,Nutrients!$EL$79,(IF($A$8=Nutrients!$B$77,Nutrients!$EL$77,Nutrients!$EL$78)))))*B$8))/2000*1000000","v":110.11950000000002},{"$f":"(SUMPRODUCT(C$9:C$229,Nutrients!$EL$8:$EL$228)+(IF($A$7=Nutrients!$B$8,Nutrients!$EL$8,Nutrients!$EL$9)*C$7)+(((IF($A$8=Nutrients!$B$79,Nutrients!$EL$79,(IF($A$8=Nutrients!$B$77,Nutrients!$EL$77,Nutrients!$EL$78)))))*C$8))/2000*1000000","v":110.11950000000002},{"$f":"(SUMPRODUCT(D$9:D$229,Nutrients!$EL$8:$EL$228)+(IF($A$7=Nutrients!$B$8,Nutrients!$EL$8,Nutrients!$EL$9)*D$7)+(((IF($A$8=Nutrients!$B$79,Nutrients!$EL$79,(IF($A$8=Nutrients!$B$77,Nutrients!$EL$77,Nutrients!$EL$78)))))*D$8))/2000*1000000","v":91.766249999999999},{"$f":"(SUMPRODUCT(E$9:E$229,Nutrients!$EL$8:$EL$228)+(IF($A$7=Nutrients!$B$8,Nutrients!$EL$8,Nutrients!$EL$9)*E$7)+(((IF($A$8=Nutrients!$B$79,Nutrients!$EL$79,(IF($A$8=Nutrients!$B$77,Nutrients!$EL$77,Nutrients!$EL$78)))))*E$8))/2000*1000000","v":73.413000000000011},{"$f":"(SUMPRODUCT(F$9:F$229,Nutrients!$EL$8:$EL$228)+(IF($A$7=Nutrients!$B$8,Nutrients!$EL$8,Nutrients!$EL$9)*F$7)+(((IF($A$8=Nutrients!$B$79,Nutrients!$EL$79,(IF($A$8=Nutrients!$B$77,Nutrients!$EL$77,Nutrients!$EL$78)))))*F$8))/2000*1000000","v":55.059750000000008},{"$f":"(SUMPRODUCT(G$9:G$229,Nutrients!$EL$8:$EL$228)+(IF($A$7=Nutrients!$B$8,Nutrients!$EL$8,Nutrients!$EL$9)*G$7)+(((IF($A$8=Nutrients!$B$79,Nutrients!$EL$79,(IF($A$8=Nutrients!$B$77,Nutrients!$EL$77,Nutrients!$EL$78)))))*G$8))/2000*1000000","v":55.059750000000008},null,{"$f":"(SUMPRODUCT(I$9:I$229,Nutrients!$EL$8:$EL$228)+(IF($A$7=Nutrients!$B$8,Nutrients!$EL$8,Nutrients!$EL$9)*I$7)+(((IF($A$8=Nutrients!$B$79,Nutrients!$EL$79,(IF($A$8=Nutrients!$B$77,Nutrients!$EL$77,Nutrients!$EL$78)))))*I$8))/2000*1000000","v":110.11950000000002},{"$f":"(SUMPRODUCT(J$9:J$229,Nutrients!$EL$8:$EL$228)+(IF($A$7=Nutrients!$B$8,Nutrients!$EL$8,Nutrients!$EL$9)*J$7)+(((IF($A$8=Nutrients!$B$79,Nutrients!$EL$79,(IF($A$8=Nutrients!$B$77,Nutrients!$EL$77,Nutrients!$EL$78)))))*J$8))/2000*1000000","v":110.11950000000002},{"$f":"(SUMPRODUCT(K$9:K$229,Nutrients!$EL$8:$EL$228)+(IF($A$7=Nutrients!$B$8,Nutrients!$EL$8,Nutrients!$EL$9)*K$7)+(((IF($A$8=Nutrients!$B$79,Nutrients!$EL$79,(IF($A$8=Nutrients!$B$77,Nutrients!$EL$77,Nutrients!$EL$78)))))*K$8))/2000*1000000","v":91.766249999999999},{"$f":"(SUMPRODUCT(L$9:L$229,Nutrients!$EL$8:$EL$228)+(IF($A$7=Nutrients!$B$8,Nutrients!$EL$8,Nutrients!$EL$9)*L$7)+(((IF($A$8=Nutrients!$B$79,Nutrients!$EL$79,(IF($A$8=Nutrients!$B$77,Nutrients!$EL$77,Nutrients!$EL$78)))))*L$8))/2000*1000000","v":73.413000000000011},{"$f":"(SUMPRODUCT(M$9:M$229,Nutrients!$EL$8:$EL$228)+(IF($A$7=Nutrients!$B$8,Nutrients!$EL$8,Nutrients!$EL$9)*M$7)+(((IF($A$8=Nutrients!$B$79,Nutrients!$EL$79,(IF($A$8=Nutrients!$B$77,Nutrients!$EL$77,Nutrients!$EL$78)))))*M$8))/2000*1000000","v":55.059750000000008},{"$f":"(SUMPRODUCT(N$9:N$229,Nutrients!$EL$8:$EL$228)+(IF($A$7=Nutrients!$B$8,Nutrients!$EL$8,Nutrients!$EL$9)*N$7)+(((IF($A$8=Nutrients!$B$79,Nutrients!$EL$79,(IF($A$8=Nutrients!$B$77,Nutrients!$EL$77,Nutrients!$EL$78)))))*N$8))/2000*1000000","v":55.059750000000008},null,{"$f":"(SUMPRODUCT(P$9:P$229,Nutrients!$EL$8:$EL$228)+(IF($A$7=Nutrients!$B$8,Nutrients!$EL$8,Nutrients!$EL$9)*P$7)+(((IF($A$8=Nutrients!$B$79,Nutrients!$EL$79,(IF($A$8=Nutrients!$B$77,Nutrients!$EL$77,Nutrients!$EL$78)))))*P$8))/2000*1000000","v":110.11950000000002},{"$f":"(SUMPRODUCT(Q$9:Q$229,Nutrients!$EL$8:$EL$228)+(IF($A$7=Nutrients!$B$8,Nutrients!$EL$8,Nutrients!$EL$9)*Q$7)+(((IF($A$8=Nutrients!$B$79,Nutrients!$EL$79,(IF($A$8=Nutrients!$B$77,Nutrients!$EL$77,Nutrients!$EL$78)))))*Q$8))/2000*1000000","v":110.11950000000002},{"$f":"(SUMPRODUCT(R$9:R$229,Nutrients!$EL$8:$EL$228)+(IF($A$7=Nutrients!$B$8,Nutrients!$EL$8,Nutrients!$EL$9)*R$7)+(((IF($A$8=Nutrients!$B$79,Nutrients!$EL$79,(IF($A$8=Nutrients!$B$77,Nutrients!$EL$77,Nutrients!$EL$78)))))*R$8))/2000*1000000","v":91.766249999999999},{"$f":"(SUMPRODUCT(S$9:S$229,Nutrients!$EL$8:$EL$228)+(IF($A$7=Nutrients!$B$8,Nutrients!$EL$8,Nutrients!$EL$9)*S$7)+(((IF($A$8=Nutrients!$B$79,Nutrients!$EL$79,(IF($A$8=Nutrients!$B$77,Nutrients!$EL$77,Nutrients!$EL$78)))))*S$8))/2000*1000000","v":73.413000000000011},{"$f":"(SUMPRODUCT(T$9:T$229,Nutrients!$EL$8:$EL$228)+(IF($A$7=Nutrients!$B$8,Nutrients!$EL$8,Nutrients!$EL$9)*T$7)+(((IF($A$8=Nutrients!$B$79,Nutrients!$EL$79,(IF($A$8=Nutrients!$B$77,Nutrients!$EL$77,Nutrients!$EL$78)))))*T$8))/2000*1000000","v":55.059750000000008},{"$f":"(SUMPRODUCT(U$9:U$229,Nutrients!$EL$8:$EL$228)+(IF($A$7=Nutrients!$B$8,Nutrients!$EL$8,Nutrients!$EL$9)*U$7)+(((IF($A$8=Nutrients!$B$79,Nutrients!$EL$79,(IF($A$8=Nutrients!$B$77,Nutrients!$EL$77,Nutrients!$EL$78)))))*U$8))/2000*1000000","v":55.059750000000008},null,{"$f":"(SUMPRODUCT(W$9:W$229,Nutrients!$EL$8:$EL$228)+(IF($A$7=Nutrients!$B$8,Nutrients!$EL$8,Nutrients!$EL$9)*W$7)+(((IF($A$8=Nutrients!$B$79,Nutrients!$EL$79,(IF($A$8=Nutrients!$B$77,Nutrients!$EL$77,Nutrients!$EL$78)))))*W$8))/2000*1000000","v":110.11950000000002},{"$f":"(SUMPRODUCT(X$9:X$229,Nutrients!$EL$8:$EL$228)+(IF($A$7=Nutrients!$B$8,Nutrients!$EL$8,Nutrients!$EL$9)*X$7)+(((IF($A$8=Nutrients!$B$79,Nutrients!$EL$79,(IF($A$8=Nutrients!$B$77,Nutrients!$EL$77,Nutrients!$EL$78)))))*X$8))/2000*1000000","v":110.11950000000002},{"$f":"(SUMPRODUCT(Y$9:Y$229,Nutrients!$EL$8:$EL$228)+(IF($A$7=Nutrients!$B$8,Nutrients!$EL$8,Nutrients!$EL$9)*Y$7)+(((IF($A$8=Nutrients!$B$79,Nutrients!$EL$79,(IF($A$8=Nutrients!$B$77,Nutrients!$EL$77,Nutrients!$EL$78)))))*Y$8))/2000*1000000","v":91.766249999999999},{"$f":"(SUMPRODUCT(Z$9:Z$229,Nutrients!$EL$8:$EL$228)+(IF($A$7=Nutrients!$B$8,Nutrients!$EL$8,Nutrients!$EL$9)*Z$7)+(((IF($A$8=Nutrients!$B$79,Nutrients!$EL$79,(IF($A$8=Nutrients!$B$77,Nutrients!$EL$77,Nutrients!$EL$78)))))*Z$8))/2000*1000000","v":73.413000000000011},{"$f":"(SUMPRODUCT(AA$9:AA$229,Nutrients!$EL$8:$EL$228)+(IF($A$7=Nutrients!$B$8,Nutrients!$EL$8,Nutrients!$EL$9)*AA$7)+(((IF($A$8=Nutrients!$B$79,Nutrients!$EL$79,(IF($A$8=Nutrients!$B$77,Nutrients!$EL$77,Nutrients!$EL$78)))))*AA$8))/2000*1000000","v":55.059750000000008},{"$f":"(SUMPRODUCT(AB$9:AB$229,Nutrients!$EL$8:$EL$228)+(IF($A$7=Nutrients!$B$8,Nutrients!$EL$8,Nutrients!$EL$9)*AB$7)+(((IF($A$8=Nutrients!$B$79,Nutrients!$EL$79,(IF($A$8=Nutrients!$B$77,Nutrients!$EL$77,Nutrients!$EL$78)))))*AB$8))/2000*1000000","v":55.059750000000008},null,{"$f":"(SUMPRODUCT(AD$9:AD$229,Nutrients!$EL$8:$EL$228)+(IF($A$7=Nutrients!$B$8,Nutrients!$EL$8,Nutrients!$EL$9)*AD$7)+(((IF($A$8=Nutrients!$B$79,Nutrients!$EL$79,(IF($A$8=Nutrients!$B$77,Nutrients!$EL$77,Nutrients!$EL$78)))))*AD$8))/2000*1000000","v":110.11950000000002},{"$f":"(SUMPRODUCT(AE$9:AE$229,Nutrients!$EL$8:$EL$228)+(IF($A$7=Nutrients!$B$8,Nutrients!$EL$8,Nutrients!$EL$9)*AE$7)+(((IF($A$8=Nutrients!$B$79,Nutrients!$EL$79,(IF($A$8=Nutrients!$B$77,Nutrients!$EL$77,Nutrients!$EL$78)))))*AE$8))/2000*1000000","v":110.11950000000002},{"$f":"(SUMPRODUCT(AF$9:AF$229,Nutrients!$EL$8:$EL$228)+(IF($A$7=Nutrients!$B$8,Nutrients!$EL$8,Nutrients!$EL$9)*AF$7)+(((IF($A$8=Nutrients!$B$79,Nutrients!$EL$79,(IF($A$8=Nutrients!$B$77,Nutrients!$EL$77,Nutrients!$EL$78)))))*AF$8))/2000*1000000","v":91.766249999999999},{"$f":"(SUMPRODUCT(AG$9:AG$229,Nutrients!$EL$8:$EL$228)+(IF($A$7=Nutrients!$B$8,Nutrients!$EL$8,Nutrients!$EL$9)*AG$7)+(((IF($A$8=Nutrients!$B$79,Nutrients!$EL$79,(IF($A$8=Nutrients!$B$77,Nutrients!$EL$77,Nutrients!$EL$78)))))*AG$8))/2000*1000000","v":73.413000000000011},{"$f":"(SUMPRODUCT(AH$9:AH$229,Nutrients!$EL$8:$EL$228)+(IF($A$7=Nutrients!$B$8,Nutrients!$EL$8,Nutrients!$EL$9)*AH$7)+(((IF($A$8=Nutrients!$B$79,Nutrients!$EL$79,(IF($A$8=Nutrients!$B$77,Nutrients!$EL$77,Nutrients!$EL$78)))))*AH$8))/2000*1000000","v":55.059750000000008},{"$f":"(SUMPRODUCT(AI$9:AI$229,Nutrients!$EL$8:$EL$228)+(IF($A$7=Nutrients!$B$8,Nutrients!$EL$8,Nutrients!$EL$9)*AI$7)+(((IF($A$8=Nutrients!$B$79,Nutrients!$EL$79,(IF($A$8=Nutrients!$B$77,Nutrients!$EL$77,Nutrients!$EL$78)))))*AI$8))/2000*1000000","v":55.059750000000008},null,{"$f":"(SUMPRODUCT(AK$9:AK$229,Nutrients!$EL$8:$EL$228)+(IF($A$7=Nutrients!$B$8,Nutrients!$EL$8,Nutrients!$EL$9)*AK$7)+(((IF($A$8=Nutrients!$B$79,Nutrients!$EL$79,(IF($A$8=Nutrients!$B$77,Nutrients!$EL$77,Nutrients!$EL$78)))))*AK$8))/2000*1000000","v":110.11950000000002},{"$f":"(SUMPRODUCT(AL$9:AL$229,Nutrients!$EL$8:$EL$228)+(IF($A$7=Nutrients!$B$8,Nutrients!$EL$8,Nutrients!$EL$9)*AL$7)+(((IF($A$8=Nutrients!$B$79,Nutrients!$EL$79,(IF($A$8=Nutrients!$B$77,Nutrients!$EL$77,Nutrients!$EL$78)))))*AL$8))/2000*1000000","v":110.11950000000002},{"$f":"(SUMPRODUCT(AM$9:AM$229,Nutrients!$EL$8:$EL$228)+(IF($A$7=Nutrients!$B$8,Nutrients!$EL$8,Nutrients!$EL$9)*AM$7)+(((IF($A$8=Nutrients!$B$79,Nutrients!$EL$79,(IF($A$8=Nutrients!$B$77,Nutrients!$EL$77,Nutrients!$EL$78)))))*AM$8))/2000*1000000","v":91.766249999999999},{"$f":"(SUMPRODUCT(AN$9:AN$229,Nutrients!$EL$8:$EL$228)+(IF($A$7=Nutrients!$B$8,Nutrients!$EL$8,Nutrients!$EL$9)*AN$7)+(((IF($A$8=Nutrients!$B$79,Nutrients!$EL$79,(IF($A$8=Nutrients!$B$77,Nutrients!$EL$77,Nutrients!$EL$78)))))*AN$8))/2000*1000000","v":73.413000000000011},{"$f":"(SUMPRODUCT(AO$9:AO$229,Nutrients!$EL$8:$EL$228)+(IF($A$7=Nutrients!$B$8,Nutrients!$EL$8,Nutrients!$EL$9)*AO$7)+(((IF($A$8=Nutrients!$B$79,Nutrients!$EL$79,(IF($A$8=Nutrients!$B$77,Nutrients!$EL$77,Nutrients!$EL$78)))))*AO$8))/2000*1000000","v":55.059750000000008},{"$f":"(SUMPRODUCT(AP$9:AP$229,Nutrients!$EL$8:$EL$228)+(IF($A$7=Nutrients!$B$8,Nutrients!$EL$8,Nutrients!$EL$9)*AP$7)+(((IF($A$8=Nutrients!$B$79,Nutrients!$EL$79,(IF($A$8=Nutrients!$B$77,Nutrients!$EL$77,Nutrients!$EL$78)))))*AP$8))/2000*1000000","v":55.059750000000008},null,{"$f":"(SUMPRODUCT(AR$9:AR$229,Nutrients!$EL$8:$EL$228)+(IF($A$7=Nutrients!$B$8,Nutrients!$EL$8,Nutrients!$EL$9)*AR$7)+(((IF($A$8=Nutrients!$B$79,Nutrients!$EL$79,(IF($A$8=Nutrients!$B$77,Nutrients!$EL$77,Nutrients!$EL$78)))))*AR$8))/2000*1000000","v":110.11950000000002},{"$f":"(SUMPRODUCT(AS$9:AS$229,Nutrients!$EL$8:$EL$228)+(IF($A$7=Nutrients!$B$8,Nutrients!$EL$8,Nutrients!$EL$9)*AS$7)+(((IF($A$8=Nutrients!$B$79,Nutrients!$EL$79,(IF($A$8=Nutrients!$B$77,Nutrients!$EL$77,Nutrients!$EL$78)))))*AS$8))/2000*1000000","v":110.11950000000002},{"$f":"(SUMPRODUCT(AT$9:AT$229,Nutrients!$EL$8:$EL$228)+(IF($A$7=Nutrients!$B$8,Nutrients!$EL$8,Nutrients!$EL$9)*AT$7)+(((IF($A$8=Nutrients!$B$79,Nutrients!$EL$79,(IF($A$8=Nutrients!$B$77,Nutrients!$EL$77,Nutrients!$EL$78)))))*AT$8))/2000*1000000","v":91.766249999999999},{"$f":"(SUMPRODUCT(AU$9:AU$229,Nutrients!$EL$8:$EL$228)+(IF($A$7=Nutrients!$B$8,Nutrients!$EL$8,Nutrients!$EL$9)*AU$7)+(((IF($A$8=Nutrients!$B$79,Nutrients!$EL$79,(IF($A$8=Nutrients!$B$77,Nutrients!$EL$77,Nutrients!$EL$78)))))*AU$8))/2000*1000000","v":73.413000000000011},{"$f":"(SUMPRODUCT(AV$9:AV$229,Nutrients!$EL$8:$EL$228)+(IF($A$7=Nutrients!$B$8,Nutrients!$EL$8,Nutrients!$EL$9)*AV$7)+(((IF($A$8=Nutrients!$B$79,Nutrients!$EL$79,(IF($A$8=Nutrients!$B$77,Nutrients!$EL$77,Nutrients!$EL$78)))))*AV$8))/2000*1000000","v":55.059750000000008},{"$f":"(SUMPRODUCT(AW$9:AW$229,Nutrients!$EL$8:$EL$228)+(IF($A$7=Nutrients!$B$8,Nutrients!$EL$8,Nutrients!$EL$9)*AW$7)+(((IF($A$8=Nutrients!$B$79,Nutrients!$EL$79,(IF($A$8=Nutrients!$B$77,Nutrients!$EL$77,Nutrients!$EL$78)))))*AW$8))/2000*1000000","v":55.059750000000008}]
["  Manganese added, ppm",{"$f":"(SUMPRODUCT(B$9:B$229,Nutrients!$EM$8:$EM$228)+(IF($A$7=Nutrients!$B$8,Nutrients!$EM$8,Nutrients!$EM$9)*B$7)+(((IF($A$8=Nutrients!$B$79,Nutrients!$EM$79,(IF($A$8=Nutrients!$B$77,Nutrients!$EM$77,Nutrients!$EM$78)))))*B$8))/2000*1000000","v":33.068999999999996},{"$f":"(SUMPRODUCT(C$9:C$229,Nutrients!$EM$8:$EM$228)+(IF($A$7=Nutrients!$B$8,Nutrients!$EM$8,Nutrients!$EM$9)*C$7)+(((IF($A$8=Nutrients!$B$79,Nutrients!$EM$79,(IF($A$8=Nutrients!$B$77,Nutrients!$EM$77,Nutrients!$EM$78)))))*C$8))/2000*1000000","v":33.068999999999996},{"$f":"(SUMPRODUCT(D$9:D$229,Nutrients!$EM$8:$EM$228)+(IF($A$7=Nutrients!$B$8,Nutrients!$EM$8,Nutrients!$EM$9)*D$7)+(((IF($A$8=Nutrients!$B$79,Nutrients!$EM$79,(IF($A$8=Nutrients!$B$77,Nutrients!$EM$77,Nutrients!$EM$78)))))*D$8))/2000*1000000","v":27.557499999999997},{"$f":"(SUMPRODUCT(E$9:E$229,Nutrients!$EM$8:$EM$228)+(IF($A$7=Nutrients!$B$8,Nutrients!$EM$8,Nutrients!$EM$9)*E$7)+(((IF($A$8=Nutrients!$B$79,Nutrients!$EM$79,(IF($A$8=Nutrients!$B$77,Nutrients!$EM$77,Nutrients!$EM$78)))))*E$8))/2000*1000000","v":22.045999999999999},{"$f":"(SUMPRODUCT(F$9:F$229,Nutrients!$EM$8:$EM$228)+(IF($A$7=Nutrients!$B$8,Nutrients!$EM$8,Nutrients!$EM$9)*F$7)+(((IF($A$8=Nutrients!$B$79,Nutrients!$EM$79,(IF($A$8=Nutrients!$B$77,Nutrients!$EM$77,Nutrients!$EM$78)))))*F$8))/2000*1000000","v":16.534499999999998},{"$f":"(SUMPRODUCT(G$9:G$229,Nutrients!$EM$8:$EM$228)+(IF($A$7=Nutrients!$B$8,Nutrients!$EM$8,Nutrients!$EM$9)*G$7)+(((IF($A$8=Nutrients!$B$79,Nutrients!$EM$79,(IF($A$8=Nutrients!$B$77,Nutrients!$EM$77,Nutrients!$EM$78)))))*G$8))/2000*1000000","v":16.534499999999998},null,{"$f":"(SUMPRODUCT(I$9:I$229,Nutrients!$EM$8:$EM$228)+(IF($A$7=Nutrients!$B$8,Nutrients!$EM$8,Nutrients!$EM$9)*I$7)+(((IF($A$8=Nutrients!$B$79,Nutrients!$EM$79,(IF($A$8=Nutrients!$B$77,Nutrients!$EM$77,Nutrients!$EM$78)))))*I$8))/2000*1000000","v":33.068999999999996},{"$f":"(SUMPRODUCT(J$9:J$229,Nutrients!$EM$8:$EM$228)+(IF($A$7=Nutrients!$B$8,Nutrients!$EM$8,Nutrients!$EM$9)*J$7)+(((IF($A$8=Nutrients!$B$79,Nutrients!$EM$79,(IF($A$8=Nutrients!$B$77,Nutrients!$EM$77,Nutrients!$EM$78)))))*J$8))/2000*1000000","v":33.068999999999996},{"$f":"(SUMPRODUCT(K$9:K$229,Nutrients!$EM$8:$EM$228)+(IF($A$7=Nutrients!$B$8,Nutrients!$EM$8,Nutrients!$EM$9)*K$7)+(((IF($A$8=Nutrients!$B$79,Nutrients!$EM$79,(IF($A$8=Nutrients!$B$77,Nutrients!$EM$77,Nutrients!$EM$78)))))*K$8))/2000*1000000","v":27.557499999999997},{"$f":"(SUMPRODUCT(L$9:L$229,Nutrients!$EM$8:$EM$228)+(IF($A$7=Nutrients!$B$8,Nutrients!$EM$8,Nutrients!$EM$9)*L$7)+(((IF($A$8=Nutrients!$B$79,Nutrients!$EM$79,(IF($A$8=Nutrients!$B$77,Nutrients!$EM$77,Nutrients!$EM$78)))))*L$8))/2000*1000000","v":22.045999999999999},{"$f":"(SUMPRODUCT(M$9:M$229,Nutrients!$EM$8:$EM$228)+(IF($A$7=Nutrients!$B$8,Nutrients!$EM$8,Nutrients!$EM$9)*M$7)+(((IF($A$8=Nutrients!$B$79,Nutrients!$EM$79,(IF($A$8=Nutrients!$B$77,Nutrients!$EM$77,Nutrients!$EM$78)))))*M$8))/2000*1000000","v":16.534499999999998},{"$f":"(SUMPRODUCT(N$9:N$229,Nutrients!$EM$8:$EM$228)+(IF($A$7=Nutrients!$B$8,Nutrients!$EM$8,Nutrients!$EM$9)*N$7)+(((IF($A$8=Nutrients!$B$79,Nutrients!$EM$79,(IF($A$8=Nutrients!$B$77,Nutrients!$EM$77,Nutrients!$EM$78)))))*N$8))/2000*1000000","v":16.534499999999998},null,{"$f":"(SUMPRODUCT(P$9:P$229,Nutrients!$EM$8:$EM$228)+(IF($A$7=Nutrients!$B$8,Nutrients!$EM$8,Nutrients!$EM$9)*P$7)+(((IF($A$8=Nutrients!$B$79,Nutrients!$EM$79,(IF($A$8=Nutrients!$B$77,Nutrients!$EM$77,Nutrients!$EM$78)))))*P$8))/2000*1000000","v":33.068999999999996},{"$f":"(SUMPRODUCT(Q$9:Q$229,Nutrients!$EM$8:$EM$228)+(IF($A$7=Nutrients!$B$8,Nutrients!$EM$8,Nutrients!$EM$9)*Q$7)+(((IF($A$8=Nutrients!$B$79,Nutrients!$EM$79,(IF($A$8=Nutrients!$B$77,Nutrients!$EM$77,Nutrients!$EM$78)))))*Q$8))/2000*1000000","v":33.068999999999996},{"$f":"(SUMPRODUCT(R$9:R$229,Nutrients!$EM$8:$EM$228)+(IF($A$7=Nutrients!$B$8,Nutrients!$EM$8,Nutrients!$EM$9)*R$7)+(((IF($A$8=Nutrients!$B$79,Nutrients!$EM$79,(IF($A$8=Nutrients!$B$77,Nutrients!$EM$77,Nutrients!$EM$78)))))*R$8))/2000*1000000","v":27.557499999999997},{"$f":"(SUMPRODUCT(S$9:S$229,Nutrients!$EM$8:$EM$228)+(IF($A$7=Nutrients!$B$8,Nutrients!$EM$8,Nutrients!$EM$9)*S$7)+(((IF($A$8=Nutrients!$B$79,Nutrients!$EM$79,(IF($A$8=Nutrients!$B$77,Nutrients!$EM$77,Nutrients!$EM$78)))))*S$8))/2000*1000000","v":22.045999999999999},{"$f":"(SUMPRODUCT(T$9:T$229,Nutrients!$EM$8:$EM$228)+(IF($A$7=Nutrients!$B$8,Nutrients!$EM$8,Nutrients!$EM$9)*T$7)+(((IF($A$8=Nutrients!$B$79,Nutrients!$EM$79,(IF($A$8=Nutrients!$B$77,Nutrients!$EM$77,Nutrients!$EM$78)))))*T$8))/2000*1000000","v":16.534499999999998},{"$f":"(SUMPRODUCT(U$9:U$229,Nutrients!$EM$8:$EM$228)+(IF($A$7=Nutrients!$B$8,Nutrients!$EM$8,Nutrients!$EM$9)*U$7)+(((IF($A$8=Nutrients!$B$79,Nutrients!$EM$79,(IF($A$8=Nutrients!$B$77,Nutrients!$EM$77,Nutrients!$EM$78)))))*U$8))/2000*1000000","v":16.534499999999998},null,{"$f":"(SUMPRODUCT(W$9:W$229,Nutrients!$EM$8:$EM$228)+(IF($A$7=Nutrients!$B$8,Nutrients!$EM$8,Nutrients!$EM$9)*W$7)+(((IF($A$8=Nutrients!$B$79,Nutrients!$EM$79,(IF($A$8=Nutrients!$B$77,Nutrients!$EM$77,Nutrients!$EM$78)))))*W$8))/2000*1000000","v":33.068999999999996},{"$f":"(SUMPRODUCT(X$9:X$229,Nutrients!$EM$8:$EM$228)+(IF($A$7=Nutrients!$B$8,Nutrients!$EM$8,Nutrients!$EM$9)*X$7)+(((IF($A$8=Nutrients!$B$79,Nutrients!$EM$79,(IF($A$8=Nutrients!$B$77,Nutrients!$EM$77,Nutrients!$EM$78)))))*X$8))/2000*1000000","v":33.068999999999996},{"$f":"(SUMPRODUCT(Y$9:Y$229,Nutrients!$EM$8:$EM$228)+(IF($A$7=Nutrients!$B$8,Nutrients!$EM$8,Nutrients!$EM$9)*Y$7)+(((IF($A$8=Nutrients!$B$79,Nutrients!$EM$79,(IF($A$8=Nutrients!$B$77,Nutrients!$EM$77,Nutrients!$EM$78)))))*Y$8))/2000*1000000","v":27.557499999999997},{"$f":"(SUMPRODUCT(Z$9:Z$229,Nutrients!$EM$8:$EM$228)+(IF($A$7=Nutrients!$B$8,Nutrients!$EM$8,Nutrients!$EM$9)*Z$7)+(((IF($A$8=Nutrients!$B$79,Nutrients!$EM$79,(IF($A$8=Nutrients!$B$77,Nutrients!$EM$77,Nutrients!$EM$78)))))*Z$8))/2000*1000000","v":22.045999999999999},{"$f":"(SUMPRODUCT(AA$9:AA$229,Nutrients!$EM$8:$EM$228)+(IF($A$7=Nutrients!$B$8,Nutrients!$EM$8,Nutrients!$EM$9)*AA$7)+(((IF($A$8=Nutrients!$B$79,Nutrients!$EM$79,(IF($A$8=Nutrients!$B$77,Nutrients!$EM$77,Nutrients!$EM$78)))))*AA$8))/2000*1000000","v":16.534499999999998},{"$f":"(SUMPRODUCT(AB$9:AB$229,Nutrients!$EM$8:$EM$228)+(IF($A$7=Nutrients!$B$8,Nutrients!$EM$8,Nutrients!$EM$9)*AB$7)+(((IF($A$8=Nutrients!$B$79,Nutrients!$EM$79,(IF($A$8=Nutrients!$B$77,Nutrients!$EM$77,Nutrients!$EM$78)))))*AB$8))/2000*1000000","v":16.534499999999998},null,{"$f":"(SUMPRODUCT(AD$9:AD$229,Nutrients!$EM$8:$EM$228)+(IF($A$7=Nutrients!$B$8,Nutrients!$EM$8,Nutrients!$EM$9)*AD$7)+(((IF($A$8=Nutrients!$B$79,Nutrients!$EM$79,(IF($A$8=Nutrients!$B$77,Nutrients!$EM$77,Nutrients!$EM$78)))))*AD$8))/2000*1000000","v":33.068999999999996},{"$f":"(SUMPRODUCT(AE$9:AE$229,Nutrients!$EM$8:$EM$228)+(IF($A$7=Nutrients!$B$8,Nutrients!$EM$8,Nutrients!$EM$9)*AE$7)+(((IF($A$8=Nutrients!$B$79,Nutrients!$EM$79,(IF($A$8=Nutrients!$B$77,Nutrients!$EM$77,Nutrients!$EM$78)))))*AE$8))/2000*1000000","v":33.068999999999996},{"$f":"(SUMPRODUCT(AF$9:AF$229,Nutrients!$EM$8:$EM$228)+(IF($A$7=Nutrients!$B$8,Nutrients!$EM$8,Nutrients!$EM$9)*AF$7)+(((IF($A$8=Nutrients!$B$79,Nutrients!$EM$79,(IF($A$8=Nutrients!$B$77,Nutrients!$EM$77,Nutrients!$EM$78)))))*AF$8))/2000*1000000","v":27.557499999999997},{"$f":"(SUMPRODUCT(AG$9:AG$229,Nutrients!$EM$8:$EM$228)+(IF($A$7=Nutrients!$B$8,Nutrients!$EM$8,Nutrients!$EM$9)*AG$7)+(((IF($A$8=Nutrients!$B$79,Nutrients!$EM$79,(IF($A$8=Nutrients!$B$77,Nutrients!$EM$77,Nutrients!$EM$78)))))*AG$8))/2000*1000000","v":22.045999999999999},{"$f":"(SUMPRODUCT(AH$9:AH$229,Nutrients!$EM$8:$EM$228)+(IF($A$7=Nutrients!$B$8,Nutrients!$EM$8,Nutrients!$EM$9)*AH$7)+(((IF($A$8=Nutrients!$B$79,Nutrients!$EM$79,(IF($A$8=Nutrients!$B$77,Nutrients!$EM$77,Nutrients!$EM$78)))))*AH$8))/2000*1000000","v":16.534499999999998},{"$f":"(SUMPRODUCT(AI$9:AI$229,Nutrients!$EM$8:$EM$228)+(IF($A$7=Nutrients!$B$8,Nutrients!$EM$8,Nutrients!$EM$9)*AI$7)+(((IF($A$8=Nutrients!$B$79,Nutrients!$EM$79,(IF($A$8=Nutrients!$B$77,Nutrients!$EM$77,Nutrients!$EM$78)))))*AI$8))/2000*1000000","v":16.534499999999998},null,{"$f":"(SUMPRODUCT(AK$9:AK$229,Nutrients!$EM$8:$EM$228)+(IF($A$7=Nutrients!$B$8,Nutrients!$EM$8,Nutrients!$EM$9)*AK$7)+(((IF($A$8=Nutrients!$B$79,Nutrients!$EM$79,(IF($A$8=Nutrients!$B$77,Nutrients!$EM$77,Nutrients!$EM$78)))))*AK$8))/2000*1000000","v":33.068999999999996},{"$f":"(SUMPRODUCT(AL$9:AL$229,Nutrients!$EM$8:$EM$228)+(IF($A$7=Nutrients!$B$8,Nutrients!$EM$8,Nutrients!$EM$9)*AL$7)+(((IF($A$8=Nutrients!$B$79,Nutrients!$EM$79,(IF($A$8=Nutrients!$B$77,Nutrients!$EM$77,Nutrients!$EM$78)))))*AL$8))/2000*1000000","v":33.068999999999996},{"$f":"(SUMPRODUCT(AM$9:AM$229,Nutrients!$EM$8:$EM$228)+(IF($A$7=Nutrients!$B$8,Nutrients!$EM$8,Nutrients!$EM$9)*AM$7)+(((IF($A$8=Nutrients!$B$79,Nutrients!$EM$79,(IF($A$8=Nutrients!$B$77,Nutrients!$EM$77,Nutrients!$EM$78)))))*AM$8))/2000*1000000","v":27.557499999999997},{"$f":"(SUMPRODUCT(AN$9:AN$229,Nutrients!$EM$8:$EM$228)+(IF($A$7=Nutrients!$B$8,Nutrients!$EM$8,Nutrients!$EM$9)*AN$7)+(((IF($A$8=Nutrients!$B$79,Nutrients!$EM$79,(IF($A$8=Nutrients!$B$77,Nutrients!$EM$77,Nutrients!$EM$78)))))*AN$8))/2000*1000000","v":22.045999999999999},{"$f":"(SUMPRODUCT(AO$9:AO$229,Nutrients!$EM$8:$EM$228)+(IF($A$7=Nutrients!$B$8,Nutrients!$EM$8,Nutrients!$EM$9)*AO$7)+(((IF($A$8=Nutrients!$B$79,Nutrients!$EM$79,(IF($A$8=Nutrients!$B$77,Nutrients!$EM$77,Nutrients!$EM$78)))))*AO$8))/2000*1000000","v":16.534499999999998},{"$f":"(SUMPRODUCT(AP$9:AP$229,Nutrients!$EM$8:$EM$228)+(IF($A$7=Nutrients!$B$8,Nutrients!$EM$8,Nutrients!$EM$9)*AP$7)+(((IF($A$8=Nutrients!$B$79,Nutrients!$EM$79,(IF($A$8=Nutrients!$B$77,Nutrients!$EM$77,Nutrients!$EM$78)))))*AP$8))/2000*1000000","v":16.534499999999998},null,{"$f":"(SUMPRODUCT(AR$9:AR$229,Nutrients!$EM$8:$EM$228)+(IF($A$7=Nutrients!$B$8,Nutrients!$EM$8,Nutrients!$EM$9)*AR$7)+(((IF($A$8=Nutrients!$B$79,Nutrients!$EM$79,(IF($A$8=Nutrients!$B$77,Nutrients!$EM$77,Nutrients!$EM$78)))))*AR$8))/2000*1000000","v":33.068999999999996},{"$f":"(SUMPRODUCT(AS$9:AS$229,Nutrients!$EM$8:$EM$228)+(IF($A$7=Nutrients!$B$8,Nutrients!$EM$8,Nutrients!$EM$9)*AS$7)+(((IF($A$8=Nutrients!$B$79,Nutrients!$EM$79,(IF($A$8=Nutrients!$B$77,Nutrients!$EM$77,Nutrients!$EM$78)))))*AS$8))/2000*1000000","v":33.068999999999996},{"$f":"(SUMPRODUCT(AT$9:AT$229,Nutrients!$EM$8:$EM$228)+(IF($A$7=Nutrients!$B$8,Nutrients!$EM$8,Nutrients!$EM$9)*AT$7)+(((IF($A$8=Nutrients!$B$79,Nutrients!$EM$79,(IF($A$8=Nutrients!$B$77,Nutrients!$EM$77,Nutrients!$EM$78)))))*AT$8))/2000*1000000","v":27.557499999999997},{"$f":"(SUMPRODUCT(AU$9:AU$229,Nutrients!$EM$8:$EM$228)+(IF($A$7=Nutrients!$B$8,Nutrients!$EM$8,Nutrients!$EM$9)*AU$7)+(((IF($A$8=Nutrients!$B$79,Nutrients!$EM$79,(IF($A$8=Nutrients!$B$77,Nutrients!$EM$77,Nutrients!$EM$78)))))*AU$8))/2000*1000000","v":22.045999999999999},{"$f":"(SUMPRODUCT(AV$9:AV$229,Nutrients!$EM$8:$EM$228)+(IF($A$7=Nutrients!$B$8,Nutrients!$EM$8,Nutrients!$EM$9)*AV$7)+(((IF($A$8=Nutrients!$B$79,Nutrients!$EM$79,(IF($A$8=Nutrients!$B$77,Nutrients!$EM$77,Nutrients!$EM$78)))))*AV$8))/2000*1000000","v":16.534499999999998},{"$f":"(SUMPRODUCT(AW$9:AW$229,Nutrients!$EM$8:$EM$228)+(IF($A$7=Nutrients!$B$8,Nutrients!$EM$8,Nutrients!$EM$9)*AW$7)+(((IF($A$8=Nutrients!$B$79,Nutrients!$EM$79,(IF($A$8=Nutrients!$B$77,Nutrients!$EM$77,Nutrients!$EM$78)))))*AW$8))/2000*1000000","v":16.534499999999998}]
["  Copper added, ppm",{"$f":"(SUMPRODUCT(B$9:B$229,Nutrients!$EN$8:$EN$228)+(IF($A$7=Nutrients!$B$8,Nutrients!$EN$8,Nutrients!$EN$9)*B$7)+(((IF($A$8=Nutrients!$B$79,Nutrients!$EN$79,(IF($A$8=Nutrients!$B$77,Nutrients!$EN$77,Nutrients!$EN$78)))))*B$8))/2000*1000000","v":16.5},{"$f":"(SUMPRODUCT(C$9:C$229,Nutrients!$EN$8:$EN$228)+(IF($A$7=Nutrients!$B$8,Nutrients!$EN$8,Nutrients!$EN$9)*C$7)+(((IF($A$8=Nutrients!$B$79,Nutrients!$EN$79,(IF($A$8=Nutrients!$B$77,Nutrients!$EN$77,Nutrients!$EN$78)))))*C$8))/2000*1000000","v":16.5},{"$f":"(SUMPRODUCT(D$9:D$229,Nutrients!$EN$8:$EN$228)+(IF($A$7=Nutrients!$B$8,Nutrients!$EN$8,Nutrients!$EN$9)*D$7)+(((IF($A$8=Nutrients!$B$79,Nutrients!$EN$79,(IF($A$8=Nutrients!$B$77,Nutrients!$EN$77,Nutrients!$EN$78)))))*D$8))/2000*1000000","v":13.749999999999998},{"$f":"(SUMPRODUCT(E$9:E$229,Nutrients!$EN$8:$EN$228)+(IF($A$7=Nutrients!$B$8,Nutrients!$EN$8,Nutrients!$EN$9)*E$7)+(((IF($A$8=Nutrients!$B$79,Nutrients!$EN$79,(IF($A$8=Nutrients!$B$77,Nutrients!$EN$77,Nutrients!$EN$78)))))*E$8))/2000*1000000","v":11},{"$f":"(SUMPRODUCT(F$9:F$229,Nutrients!$EN$8:$EN$228)+(IF($A$7=Nutrients!$B$8,Nutrients!$EN$8,Nutrients!$EN$9)*F$7)+(((IF($A$8=Nutrients!$B$79,Nutrients!$EN$79,(IF($A$8=Nutrients!$B$77,Nutrients!$EN$77,Nutrients!$EN$78)))))*F$8))/2000*1000000","v":8.25},{"$f":"(SUMPRODUCT(G$9:G$229,Nutrients!$EN$8:$EN$228)+(IF($A$7=Nutrients!$B$8,Nutrients!$EN$8,Nutrients!$EN$9)*G$7)+(((IF($A$8=Nutrients!$B$79,Nutrients!$EN$79,(IF($A$8=Nutrients!$B$77,Nutrients!$EN$77,Nutrients!$EN$78)))))*G$8))/2000*1000000","v":8.25},null,{"$f":"(SUMPRODUCT(I$9:I$229,Nutrients!$EN$8:$EN$228)+(IF($A$7=Nutrients!$B$8,Nutrients!$EN$8,Nutrients!$EN$9)*I$7)+(((IF($A$8=Nutrients!$B$79,Nutrients!$EN$79,(IF($A$8=Nutrients!$B$77,Nutrients!$EN$77,Nutrients!$EN$78)))))*I$8))/2000*1000000","v":16.5},{"$f":"(SUMPRODUCT(J$9:J$229,Nutrients!$EN$8:$EN$228)+(IF($A$7=Nutrients!$B$8,Nutrients!$EN$8,Nutrients!$EN$9)*J$7)+(((IF($A$8=Nutrients!$B$79,Nutrients!$EN$79,(IF($A$8=Nutrients!$B$77,Nutrients!$EN$77,Nutrients!$EN$78)))))*J$8))/2000*1000000","v":16.5},{"$f":"(SUMPRODUCT(K$9:K$229,Nutrients!$EN$8:$EN$228)+(IF($A$7=Nutrients!$B$8,Nutrients!$EN$8,Nutrients!$EN$9)*K$7)+(((IF($A$8=Nutrients!$B$79,Nutrients!$EN$79,(IF($A$8=Nutrients!$B$77,Nutrients!$EN$77,Nutrients!$EN$78)))))*K$8))/2000*1000000","v":13.749999999999998},{"$f":"(SUMPRODUCT(L$9:L$229,Nutrients!$EN$8:$EN$228)+(IF($A$7=Nutrients!$B$8,Nutrients!$EN$8,Nutrients!$EN$9)*L$7)+(((IF($A$8=Nutrients!$B$79,Nutrients!$EN$79,(IF($A$8=Nutrients!$B$77,Nutrients!$EN$77,Nutrients!$EN$78)))))*L$8))/2000*1000000","v":11},{"$f":"(SUMPRODUCT(M$9:M$229,Nutrients!$EN$8:$EN$228)+(IF($A$7=Nutrients!$B$8,Nutrients!$EN$8,Nutrients!$EN$9)*M$7)+(((IF($A$8=Nutrients!$B$79,Nutrients!$EN$79,(IF($A$8=Nutrients!$B$77,Nutrients!$EN$77,Nutrients!$EN$78)))))*M$8))/2000*1000000","v":8.25},{"$f":"(SUMPRODUCT(N$9:N$229,Nutrients!$EN$8:$EN$228)+(IF($A$7=Nutrients!$B$8,Nutrients!$EN$8,Nutrients!$EN$9)*N$7)+(((IF($A$8=Nutrients!$B$79,Nutrients!$EN$79,(IF($A$8=Nutrients!$B$77,Nutrients!$EN$77,Nutrients!$EN$78)))))*N$8))/2000*1000000","v":8.25},null,{"$f":"(SUMPRODUCT(P$9:P$229,Nutrients!$EN$8:$EN$228)+(IF($A$7=Nutrients!$B$8,Nutrients!$EN$8,Nutrients!$EN$9)*P$7)+(((IF($A$8=Nutrients!$B$79,Nutrients!$EN$79,(IF($A$8=Nutrients!$B$77,Nutrients!$EN$77,Nutrients!$EN$78)))))*P$8))/2000*1000000","v":16.5},{"$f":"(SUMPRODUCT(Q$9:Q$229,Nutrients!$EN$8:$EN$228)+(IF($A$7=Nutrients!$B$8,Nutrients!$EN$8,Nutrients!$EN$9)*Q$7)+(((IF($A$8=Nutrients!$B$79,Nutrients!$EN$79,(IF($A$8=Nutrients!$B$77,Nutrients!$EN$77,Nutrients!$EN$78)))))*Q$8))/2000*1000000","v":16.5},{"$f":"(SUMPRODUCT(R$9:R$229,Nutrients!$EN$8:$EN$228)+(IF($A$7=Nutrients!$B$8,Nutrients!$EN$8,Nutrients!$EN$9)*R$7)+(((IF($A$8=Nutrients!$B$79,Nutrients!$EN$79,(IF($A$8=Nutrients!$B$77,Nutrients!$EN$77,Nutrients!$EN$78)))))*R$8))/2000*1000000","v":13.749999999999998},{"$f":"(SUMPRODUCT(S$9:S$229,Nutrients!$EN$8:$EN$228)+(IF($A$7=Nutrients!$B$8,Nutrients!$EN$8,Nutrients!$EN$9)*S$7)+(((IF($A$8=Nutrients!$B$79,Nutrients!$EN$79,(IF($A$8=Nutrients!$B$77,Nutrients!$EN$77,Nutrients!$EN$78)))))*S$8))/2000*1000000","v":11},{"$f":"(SUMPRODUCT(T$9:T$229,Nutrients!$EN$8:$EN$228)+(IF($A$7=Nutrients!$B$8,Nutrients!$EN$8,Nutrients!$EN$9)*T$7)+(((IF($A$8=Nutrients!$B$79,Nutrients!$EN$79,(IF($A$8=Nutrients!$B$77,Nutrients!$EN$77,Nutrients!$EN$78)))))*T$8))/2000*1000000","v":8.25},{"$f":"(SUMPRODUCT(U$9:U$229,Nutrients!$EN$8:$EN$228)+(IF($A$7=Nutrients!$B$8,Nutrients!$EN$8,Nutrients!$EN$9)*U$7)+(((IF($A$8=Nutrients!$B$79,Nutrients!$EN$79,(IF($A$8=Nutrients!$B$77,Nutrients!$EN$77,Nutrients!$EN$78)))))*U$8))/2000*1000000","v":8.25},null,{"$f":"(SUMPRODUCT(W$9:W$229,Nutrients!$EN$8:$EN$228)+(IF($A$7=Nutrients!$B$8,Nutrients!$EN$8,Nutrients!$EN$9)*W$7)+(((IF($A$8=Nutrients!$B$79,Nutrients!$EN$79,(IF($A$8=Nutrients!$B$77,Nutrients!$EN$77,Nutrients!$EN$78)))))*W$8))/2000*1000000","v":16.5},{"$f":"(SUMPRODUCT(X$9:X$229,Nutrients!$EN$8:$EN$228)+(IF($A$7=Nutrients!$B$8,Nutrients!$EN$8,Nutrients!$EN$9)*X$7)+(((IF($A$8=Nutrients!$B$79,Nutrients!$EN$79,(IF($A$8=Nutrients!$B$77,Nutrients!$EN$77,Nutrients!$EN$78)))))*X$8))/2000*1000000","v":16.5},{"$f":"(SUMPRODUCT(Y$9:Y$229,Nutrients!$EN$8:$EN$228)+(IF($A$7=Nutrients!$B$8,Nutrients!$EN$8,Nutrients!$EN$9)*Y$7)+(((IF($A$8=Nutrients!$B$79,Nutrients!$EN$79,(IF($A$8=Nutrients!$B$77,Nutrients!$EN$77,Nutrients!$EN$78)))))*Y$8))/2000*1000000","v":13.749999999999998},{"$f":"(SUMPRODUCT(Z$9:Z$229,Nutrients!$EN$8:$EN$228)+(IF($A$7=Nutrients!$B$8,Nutrients!$EN$8,Nutrients!$EN$9)*Z$7)+(((IF($A$8=Nutrients!$B$79,Nutrients!$EN$79,(IF($A$8=Nutrients!$B$77,Nutrients!$EN$77,Nutrients!$EN$78)))))*Z$8))/2000*1000000","v":11},{"$f":"(SUMPRODUCT(AA$9:AA$229,Nutrients!$EN$8:$EN$228)+(IF($A$7=Nutrients!$B$8,Nutrients!$EN$8,Nutrients!$EN$9)*AA$7)+(((IF($A$8=Nutrients!$B$79,Nutrients!$EN$79,(IF($A$8=Nutrients!$B$77,Nutrients!$EN$77,Nutrients!$EN$78)))))*AA$8))/2000*1000000","v":8.25},{"$f":"(SUMPRODUCT(AB$9:AB$229,Nutrients!$EN$8:$EN$228)+(IF($A$7=Nutrients!$B$8,Nutrients!$EN$8,Nutrients!$EN$9)*AB$7)+(((IF($A$8=Nutrients!$B$79,Nutrients!$EN$79,(IF($A$8=Nutrients!$B$77,Nutrients!$EN$77,Nutrients!$EN$78)))))*AB$8))/2000*1000000","v":8.25},null,{"$f":"(SUMPRODUCT(AD$9:AD$229,Nutrients!$EN$8:$EN$228)+(IF($A$7=Nutrients!$B$8,Nutrients!$EN$8,Nutrients!$EN$9)*AD$7)+(((IF($A$8=Nutrients!$B$79,Nutrients!$EN$79,(IF($A$8=Nutrients!$B$77,Nutrients!$EN$77,Nutrients!$EN$78)))))*AD$8))/2000*1000000","v":16.5},{"$f":"(SUMPRODUCT(AE$9:AE$229,Nutrients!$EN$8:$EN$228)+(IF($A$7=Nutrients!$B$8,Nutrients!$EN$8,Nutrients!$EN$9)*AE$7)+(((IF($A$8=Nutrients!$B$79,Nutrients!$EN$79,(IF($A$8=Nutrients!$B$77,Nutrients!$EN$77,Nutrients!$EN$78)))))*AE$8))/2000*1000000","v":16.5},{"$f":"(SUMPRODUCT(AF$9:AF$229,Nutrients!$EN$8:$EN$228)+(IF($A$7=Nutrients!$B$8,Nutrients!$EN$8,Nutrients!$EN$9)*AF$7)+(((IF($A$8=Nutrients!$B$79,Nutrients!$EN$79,(IF($A$8=Nutrients!$B$77,Nutrients!$EN$77,Nutrients!$EN$78)))))*AF$8))/2000*1000000","v":13.749999999999998},{"$f":"(SUMPRODUCT(AG$9:AG$229,Nutrients!$EN$8:$EN$228)+(IF($A$7=Nutrients!$B$8,Nutrients!$EN$8,Nutrients!$EN$9)*AG$7)+(((IF($A$8=Nutrients!$B$79,Nutrients!$EN$79,(IF($A$8=Nutrients!$B$77,Nutrients!$EN$77,Nutrients!$EN$78)))))*AG$8))/2000*1000000","v":11},{"$f":"(SUMPRODUCT(AH$9:AH$229,Nutrients!$EN$8:$EN$228)+(IF($A$7=Nutrients!$B$8,Nutrients!$EN$8,Nutrients!$EN$9)*AH$7)+(((IF($A$8=Nutrients!$B$79,Nutrients!$EN$79,(IF($A$8=Nutrients!$B$77,Nutrients!$EN$77,Nutrients!$EN$78)))))*AH$8))/2000*1000000","v":8.25},{"$f":"(SUMPRODUCT(AI$9:AI$229,Nutrients!$EN$8:$EN$228)+(IF($A$7=Nutrients!$B$8,Nutrients!$EN$8,Nutrients!$EN$9)*AI$7)+(((IF($A$8=Nutrients!$B$79,Nutrients!$EN$79,(IF($A$8=Nutrients!$B$77,Nutrients!$EN$77,Nutrients!$EN$78)))))*AI$8))/2000*1000000","v":8.25},null,{"$f":"(SUMPRODUCT(AK$9:AK$229,Nutrients!$EN$8:$EN$228)+(IF($A$7=Nutrients!$B$8,Nutrients!$EN$8,Nutrients!$EN$9)*AK$7)+(((IF($A$8=Nutrients!$B$79,Nutrients!$EN$79,(IF($A$8=Nutrients!$B$77,Nutrients!$EN$77,Nutrients!$EN$78)))))*AK$8))/2000*1000000","v":16.5},{"$f":"(SUMPRODUCT(AL$9:AL$229,Nutrients!$EN$8:$EN$228)+(IF($A$7=Nutrients!$B$8,Nutrients!$EN$8,Nutrients!$EN$9)*AL$7)+(((IF($A$8=Nutrients!$B$79,Nutrients!$EN$79,(IF($A$8=Nutrients!$B$77,Nutrients!$EN$77,Nutrients!$EN$78)))))*AL$8))/2000*1000000","v":16.5},{"$f":"(SUMPRODUCT(AM$9:AM$229,Nutrients!$EN$8:$EN$228)+(IF($A$7=Nutrients!$B$8,Nutrients!$EN$8,Nutrients!$EN$9)*AM$7)+(((IF($A$8=Nutrients!$B$79,Nutrients!$EN$79,(IF($A$8=Nutrients!$B$77,Nutrients!$EN$77,Nutrients!$EN$78)))))*AM$8))/2000*1000000","v":13.749999999999998},{"$f":"(SUMPRODUCT(AN$9:AN$229,Nutrients!$EN$8:$EN$228)+(IF($A$7=Nutrients!$B$8,Nutrients!$EN$8,Nutrients!$EN$9)*AN$7)+(((IF($A$8=Nutrients!$B$79,Nutrients!$EN$79,(IF($A$8=Nutrients!$B$77,Nutrients!$EN$77,Nutrients!$EN$78)))))*AN$8))/2000*1000000","v":11},{"$f":"(SUMPRODUCT(AO$9:AO$229,Nutrients!$EN$8:$EN$228)+(IF($A$7=Nutrients!$B$8,Nutrients!$EN$8,Nutrients!$EN$9)*AO$7)+(((IF($A$8=Nutrients!$B$79,Nutrients!$EN$79,(IF($A$8=Nutrients!$B$77,Nutrients!$EN$77,Nutrients!$EN$78)))))*AO$8))/2000*1000000","v":8.25},{"$f":"(SUMPRODUCT(AP$9:AP$229,Nutrients!$EN$8:$EN$228)+(IF($A$7=Nutrients!$B$8,Nutrients!$EN$8,Nutrients!$EN$9)*AP$7)+(((IF($A$8=Nutrients!$B$79,Nutrients!$EN$79,(IF($A$8=Nutrients!$B$77,Nutrients!$EN$77,Nutrients!$EN$78)))))*AP$8))/2000*1000000","v":8.25},null,{"$f":"(SUMPRODUCT(AR$9:AR$229,Nutrients!$EN$8:$EN$228)+(IF($A$7=Nutrients!$B$8,Nutrients!$EN$8,Nutrients!$EN$9)*AR$7)+(((IF($A$8=Nutrients!$B$79,Nutrients!$EN$79,(IF($A$8=Nutrients!$B$77,Nutrients!$EN$77,Nutrients!$EN$78)))))*AR$8))/2000*1000000","v":16.5},{"$f":"(SUMPRODUCT(AS$9:AS$229,Nutrients!$EN$8:$EN$228)+(IF($A$7=Nutrients!$B$8,Nutrients!$EN$8,Nutrients!$EN$9)*AS$7)+(((IF($A$8=Nutrients!$B$79,Nutrients!$EN$79,(IF($A$8=Nutrients!$B$77,Nutrients!$EN$77,Nutrients!$EN$78)))))*AS$8))/2000*1000000","v":16.5},{"$f":"(SUMPRODUCT(AT$9:AT$229,Nutrients!$EN$8:$EN$228)+(IF($A$7=Nutrients!$B$8,Nutrients!$EN$8,Nutrients!$EN$9)*AT$7)+(((IF($A$8=Nutrients!$B$79,Nutrients!$EN$79,(IF($A$8=Nutrients!$B$77,Nutrients!$EN$77,Nutrients!$EN$78)))))*AT$8))/2000*1000000","v":13.749999999999998},{"$f":"(SUMPRODUCT(AU$9:AU$229,Nutrients!$EN$8:$EN$228)+(IF($A$7=Nutrients!$B$8,Nutrients!$EN$8,Nutrients!$EN$9)*AU$7)+(((IF($A$8=Nutrients!$B$79,Nutrients!$EN$79,(IF($A$8=Nutrients!$B$77,Nutrients!$EN$77,Nutrients!$EN$78)))))*AU$8))/2000*1000000","v":11},{"$f":"(SUMPRODUCT(AV$9:AV$229,Nutrients!$EN$8:$EN$228)+(IF($A$7=Nutrients!$B$8,Nutrients!$EN$8,Nutrients!$EN$9)*AV$7)+(((IF($A$8=Nutrients!$B$79,Nutrients!$EN$79,(IF($A$8=Nutrients!$B$77,Nutrients!$EN$77,Nutrients!$EN$78)))))*AV$8))/2000*1000000","v":8.25},{"$f":"(SUMPRODUCT(AW$9:AW$229,Nutrients!$EN$8:$EN$228)+(IF($A$7=Nutrients!$B$8,Nutrients!$EN$8,Nutrients!$EN$9)*AW$7)+(((IF($A$8=Nutrients!$B$79,Nutrients!$EN$79,(IF($A$8=Nutrients!$B$77,Nutrients!$EN$77,Nutrients!$EN$78)))))*AW$8))/2000*1000000","v":8.25}]
["  Iodine added, ppm",{"$f":"(SUMPRODUCT(B$9:B$229,Nutrients!$EO$8:$EO$228)+(IF($A$7=Nutrients!$B$8,Nutrients!$EO$8,Nutrients!$EO$9)*B$7)+(((IF($A$8=Nutrients!$B$79,Nutrients!$EO$79,(IF($A$8=Nutrients!$B$77,Nutrients!$EO$77,Nutrients!$EO$78)))))*B$8))/2000*1000000","v":0.29699999999999999},{"$f":"(SUMPRODUCT(C$9:C$229,Nutrients!$EO$8:$EO$228)+(IF($A$7=Nutrients!$B$8,Nutrients!$EO$8,Nutrients!$EO$9)*C$7)+(((IF($A$8=Nutrients!$B$79,Nutrients!$EO$79,(IF($A$8=Nutrients!$B$77,Nutrients!$EO$77,Nutrients!$EO$78)))))*C$8))/2000*1000000","v":0.29699999999999999},{"$f":"(SUMPRODUCT(D$9:D$229,Nutrients!$EO$8:$EO$228)+(IF($A$7=Nutrients!$B$8,Nutrients!$EO$8,Nutrients!$EO$9)*D$7)+(((IF($A$8=Nutrients!$B$79,Nutrients!$EO$79,(IF($A$8=Nutrients!$B$77,Nutrients!$EO$77,Nutrients!$EO$78)))))*D$8))/2000*1000000","v":0.24750000000000003},{"$f":"(SUMPRODUCT(E$9:E$229,Nutrients!$EO$8:$EO$228)+(IF($A$7=Nutrients!$B$8,Nutrients!$EO$8,Nutrients!$EO$9)*E$7)+(((IF($A$8=Nutrients!$B$79,Nutrients!$EO$79,(IF($A$8=Nutrients!$B$77,Nutrients!$EO$77,Nutrients!$EO$78)))))*E$8))/2000*1000000","v":0.19800000000000001},{"$f":"(SUMPRODUCT(F$9:F$229,Nutrients!$EO$8:$EO$228)+(IF($A$7=Nutrients!$B$8,Nutrients!$EO$8,Nutrients!$EO$9)*F$7)+(((IF($A$8=Nutrients!$B$79,Nutrients!$EO$79,(IF($A$8=Nutrients!$B$77,Nutrients!$EO$77,Nutrients!$EO$78)))))*F$8))/2000*1000000","v":0.14849999999999999},{"$f":"(SUMPRODUCT(G$9:G$229,Nutrients!$EO$8:$EO$228)+(IF($A$7=Nutrients!$B$8,Nutrients!$EO$8,Nutrients!$EO$9)*G$7)+(((IF($A$8=Nutrients!$B$79,Nutrients!$EO$79,(IF($A$8=Nutrients!$B$77,Nutrients!$EO$77,Nutrients!$EO$78)))))*G$8))/2000*1000000","v":0.14849999999999999},null,{"$f":"(SUMPRODUCT(I$9:I$229,Nutrients!$EO$8:$EO$228)+(IF($A$7=Nutrients!$B$8,Nutrients!$EO$8,Nutrients!$EO$9)*I$7)+(((IF($A$8=Nutrients!$B$79,Nutrients!$EO$79,(IF($A$8=Nutrients!$B$77,Nutrients!$EO$77,Nutrients!$EO$78)))))*I$8))/2000*1000000","v":0.29699999999999999},{"$f":"(SUMPRODUCT(J$9:J$229,Nutrients!$EO$8:$EO$228)+(IF($A$7=Nutrients!$B$8,Nutrients!$EO$8,Nutrients!$EO$9)*J$7)+(((IF($A$8=Nutrients!$B$79,Nutrients!$EO$79,(IF($A$8=Nutrients!$B$77,Nutrients!$EO$77,Nutrients!$EO$78)))))*J$8))/2000*1000000","v":0.29699999999999999},{"$f":"(SUMPRODUCT(K$9:K$229,Nutrients!$EO$8:$EO$228)+(IF($A$7=Nutrients!$B$8,Nutrients!$EO$8,Nutrients!$EO$9)*K$7)+(((IF($A$8=Nutrients!$B$79,Nutrients!$EO$79,(IF($A$8=Nutrients!$B$77,Nutrients!$EO$77,Nutrients!$EO$78)))))*K$8))/2000*1000000","v":0.24750000000000003},{"$f":"(SUMPRODUCT(L$9:L$229,Nutrients!$EO$8:$EO$228)+(IF($A$7=Nutrients!$B$8,Nutrients!$EO$8,Nutrients!$EO$9)*L$7)+(((IF($A$8=Nutrients!$B$79,Nutrients!$EO$79,(IF($A$8=Nutrients!$B$77,Nutrients!$EO$77,Nutrients!$EO$78)))))*L$8))/2000*1000000","v":0.19800000000000001},{"$f":"(SUMPRODUCT(M$9:M$229,Nutrients!$EO$8:$EO$228)+(IF($A$7=Nutrients!$B$8,Nutrients!$EO$8,Nutrients!$EO$9)*M$7)+(((IF($A$8=Nutrients!$B$79,Nutrients!$EO$79,(IF($A$8=Nutrients!$B$77,Nutrients!$EO$77,Nutrients!$EO$78)))))*M$8))/2000*1000000","v":0.14849999999999999},{"$f":"(SUMPRODUCT(N$9:N$229,Nutrients!$EO$8:$EO$228)+(IF($A$7=Nutrients!$B$8,Nutrients!$EO$8,Nutrients!$EO$9)*N$7)+(((IF($A$8=Nutrients!$B$79,Nutrients!$EO$79,(IF($A$8=Nutrients!$B$77,Nutrients!$EO$77,Nutrients!$EO$78)))))*N$8))/2000*1000000","v":0.14849999999999999},null,{"$f":"(SUMPRODUCT(P$9:P$229,Nutrients!$EO$8:$EO$228)+(IF($A$7=Nutrients!$B$8,Nutrients!$EO$8,Nutrients!$EO$9)*P$7)+(((IF($A$8=Nutrients!$B$79,Nutrients!$EO$79,(IF($A$8=Nutrients!$B$77,Nutrients!$EO$77,Nutrients!$EO$78)))))*P$8))/2000*1000000","v":0.29699999999999999},{"$f":"(SUMPRODUCT(Q$9:Q$229,Nutrients!$EO$8:$EO$228)+(IF($A$7=Nutrients!$B$8,Nutrients!$EO$8,Nutrients!$EO$9)*Q$7)+(((IF($A$8=Nutrients!$B$79,Nutrients!$EO$79,(IF($A$8=Nutrients!$B$77,Nutrients!$EO$77,Nutrients!$EO$78)))))*Q$8))/2000*1000000","v":0.29699999999999999},{"$f":"(SUMPRODUCT(R$9:R$229,Nutrients!$EO$8:$EO$228)+(IF($A$7=Nutrients!$B$8,Nutrients!$EO$8,Nutrients!$EO$9)*R$7)+(((IF($A$8=Nutrients!$B$79,Nutrients!$EO$79,(IF($A$8=Nutrients!$B$77,Nutrients!$EO$77,Nutrients!$EO$78)))))*R$8))/2000*1000000","v":0.24750000000000003},{"$f":"(SUMPRODUCT(S$9:S$229,Nutrients!$EO$8:$EO$228)+(IF($A$7=Nutrients!$B$8,Nutrients!$EO$8,Nutrients!$EO$9)*S$7)+(((IF($A$8=Nutrients!$B$79,Nutrients!$EO$79,(IF($A$8=Nutrients!$B$77,Nutrients!$EO$77,Nutrients!$EO$78)))))*S$8))/2000*1000000","v":0.19800000000000001},{"$f":"(SUMPRODUCT(T$9:T$229,Nutrients!$EO$8:$EO$228)+(IF($A$7=Nutrients!$B$8,Nutrients!$EO$8,Nutrients!$EO$9)*T$7)+(((IF($A$8=Nutrients!$B$79,Nutrients!$EO$79,(IF($A$8=Nutrients!$B$77,Nutrients!$EO$77,Nutrients!$EO$78)))))*T$8))/2000*1000000","v":0.14849999999999999},{"$f":"(SUMPRODUCT(U$9:U$229,Nutrients!$EO$8:$EO$228)+(IF($A$7=Nutrients!$B$8,Nutrients!$EO$8,Nutrients!$EO$9)*U$7)+(((IF($A$8=Nutrients!$B$79,Nutrients!$EO$79,(IF($A$8=Nutrients!$B$77,Nutrients!$EO$77,Nutrients!$EO$78)))))*U$8))/2000*1000000","v":0.14849999999999999},null,{"$f":"(SUMPRODUCT(W$9:W$229,Nutrients!$EO$8:$EO$228)+(IF($A$7=Nutrients!$B$8,Nutrients!$EO$8,Nutrients!$EO$9)*W$7)+(((IF($A$8=Nutrients!$B$79,Nutrients!$EO$79,(IF($A$8=Nutrients!$B$77,Nutrients!$EO$77,Nutrients!$EO$78)))))*W$8))/2000*1000000","v":0.29699999999999999},{"$f":"(SUMPRODUCT(X$9:X$229,Nutrients!$EO$8:$EO$228)+(IF($A$7=Nutrients!$B$8,Nutrients!$EO$8,Nutrients!$EO$9)*X$7)+(((IF($A$8=Nutrients!$B$79,Nutrients!$EO$79,(IF($A$8=Nutrients!$B$77,Nutrients!$EO$77,Nutrients!$EO$78)))))*X$8))/2000*1000000","v":0.29699999999999999},{"$f":"(SUMPRODUCT(Y$9:Y$229,Nutrients!$EO$8:$EO$228)+(IF($A$7=Nutrients!$B$8,Nutrients!$EO$8,Nutrients!$EO$9)*Y$7)+(((IF($A$8=Nutrients!$B$79,Nutrients!$EO$79,(IF($A$8=Nutrients!$B$77,Nutrients!$EO$77,Nutrients!$EO$78)))))*Y$8))/2000*1000000","v":0.24750000000000003},{"$f":"(SUMPRODUCT(Z$9:Z$229,Nutrients!$EO$8:$EO$228)+(IF($A$7=Nutrients!$B$8,Nutrients!$EO$8,Nutrients!$EO$9)*Z$7)+(((IF($A$8=Nutrients!$B$79,Nutrients!$EO$79,(IF($A$8=Nutrients!$B$77,Nutrients!$EO$77,Nutrients!$EO$78)))))*Z$8))/2000*1000000","v":0.19800000000000001},{"$f":"(SUMPRODUCT(AA$9:AA$229,Nutrients!$EO$8:$EO$228)+(IF($A$7=Nutrients!$B$8,Nutrients!$EO$8,Nutrients!$EO$9)*AA$7)+(((IF($A$8=Nutrients!$B$79,Nutrients!$EO$79,(IF($A$8=Nutrients!$B$77,Nutrients!$EO$77,Nutrients!$EO$78)))))*AA$8))/2000*1000000","v":0.14849999999999999},{"$f":"(SUMPRODUCT(AB$9:AB$229,Nutrients!$EO$8:$EO$228)+(IF($A$7=Nutrients!$B$8,Nutrients!$EO$8,Nutrients!$EO$9)*AB$7)+(((IF($A$8=Nutrients!$B$79,Nutrients!$EO$79,(IF($A$8=Nutrients!$B$77,Nutrients!$EO$77,Nutrients!$EO$78)))))*AB$8))/2000*1000000","v":0.14849999999999999},null,{"$f":"(SUMPRODUCT(AD$9:AD$229,Nutrients!$EO$8:$EO$228)+(IF($A$7=Nutrients!$B$8,Nutrients!$EO$8,Nutrients!$EO$9)*AD$7)+(((IF($A$8=Nutrients!$B$79,Nutrients!$EO$79,(IF($A$8=Nutrients!$B$77,Nutrients!$EO$77,Nutrients!$EO$78)))))*AD$8))/2000*1000000","v":0.29699999999999999},{"$f":"(SUMPRODUCT(AE$9:AE$229,Nutrients!$EO$8:$EO$228)+(IF($A$7=Nutrients!$B$8,Nutrients!$EO$8,Nutrients!$EO$9)*AE$7)+(((IF($A$8=Nutrients!$B$79,Nutrients!$EO$79,(IF($A$8=Nutrients!$B$77,Nutrients!$EO$77,Nutrients!$EO$78)))))*AE$8))/2000*1000000","v":0.29699999999999999},{"$f":"(SUMPRODUCT(AF$9:AF$229,Nutrients!$EO$8:$EO$228)+(IF($A$7=Nutrients!$B$8,Nutrients!$EO$8,Nutrients!$EO$9)*AF$7)+(((IF($A$8=Nutrients!$B$79,Nutrients!$EO$79,(IF($A$8=Nutrients!$B$77,Nutrients!$EO$77,Nutrients!$EO$78)))))*AF$8))/2000*1000000","v":0.24750000000000003},{"$f":"(SUMPRODUCT(AG$9:AG$229,Nutrients!$EO$8:$EO$228)+(IF($A$7=Nutrients!$B$8,Nutrients!$EO$8,Nutrients!$EO$9)*AG$7)+(((IF($A$8=Nutrients!$B$79,Nutrients!$EO$79,(IF($A$8=Nutrients!$B$77,Nutrients!$EO$77,Nutrients!$EO$78)))))*AG$8))/2000*1000000","v":0.19800000000000001},{"$f":"(SUMPRODUCT(AH$9:AH$229,Nutrients!$EO$8:$EO$228)+(IF($A$7=Nutrients!$B$8,Nutrients!$EO$8,Nutrients!$EO$9)*AH$7)+(((IF($A$8=Nutrients!$B$79,Nutrients!$EO$79,(IF($A$8=Nutrients!$B$77,Nutrients!$EO$77,Nutrients!$EO$78)))))*AH$8))/2000*1000000","v":0.14849999999999999},{"$f":"(SUMPRODUCT(AI$9:AI$229,Nutrients!$EO$8:$EO$228)+(IF($A$7=Nutrients!$B$8,Nutrients!$EO$8,Nutrients!$EO$9)*AI$7)+(((IF($A$8=Nutrients!$B$79,Nutrients!$EO$79,(IF($A$8=Nutrients!$B$77,Nutrients!$EO$77,Nutrients!$EO$78)))))*AI$8))/2000*1000000","v":0.14849999999999999},null,{"$f":"(SUMPRODUCT(AK$9:AK$229,Nutrients!$EO$8:$EO$228)+(IF($A$7=Nutrients!$B$8,Nutrients!$EO$8,Nutrients!$EO$9)*AK$7)+(((IF($A$8=Nutrients!$B$79,Nutrients!$EO$79,(IF($A$8=Nutrients!$B$77,Nutrients!$EO$77,Nutrients!$EO$78)))))*AK$8))/2000*1000000","v":0.29699999999999999},{"$f":"(SUMPRODUCT(AL$9:AL$229,Nutrients!$EO$8:$EO$228)+(IF($A$7=Nutrients!$B$8,Nutrients!$EO$8,Nutrients!$EO$9)*AL$7)+(((IF($A$8=Nutrients!$B$79,Nutrients!$EO$79,(IF($A$8=Nutrients!$B$77,Nutrients!$EO$77,Nutrients!$EO$78)))))*AL$8))/2000*1000000","v":0.29699999999999999},{"$f":"(SUMPRODUCT(AM$9:AM$229,Nutrients!$EO$8:$EO$228)+(IF($A$7=Nutrients!$B$8,Nutrients!$EO$8,Nutrients!$EO$9)*AM$7)+(((IF($A$8=Nutrients!$B$79,Nutrients!$EO$79,(IF($A$8=Nutrients!$B$77,Nutrients!$EO$77,Nutrients!$EO$78)))))*AM$8))/2000*1000000","v":0.24750000000000003},{"$f":"(SUMPRODUCT(AN$9:AN$229,Nutrients!$EO$8:$EO$228)+(IF($A$7=Nutrients!$B$8,Nutrients!$EO$8,Nutrients!$EO$9)*AN$7)+(((IF($A$8=Nutrients!$B$79,Nutrients!$EO$79,(IF($A$8=Nutrients!$B$77,Nutrients!$EO$77,Nutrients!$EO$78)))))*AN$8))/2000*1000000","v":0.19800000000000001},{"$f":"(SUMPRODUCT(AO$9:AO$229,Nutrients!$EO$8:$EO$228)+(IF($A$7=Nutrients!$B$8,Nutrients!$EO$8,Nutrients!$EO$9)*AO$7)+(((IF($A$8=Nutrients!$B$79,Nutrients!$EO$79,(IF($A$8=Nutrients!$B$77,Nutrients!$EO$77,Nutrients!$EO$78)))))*AO$8))/2000*1000000","v":0.14849999999999999},{"$f":"(SUMPRODUCT(AP$9:AP$229,Nutrients!$EO$8:$EO$228)+(IF($A$7=Nutrients!$B$8,Nutrients!$EO$8,Nutrients!$EO$9)*AP$7)+(((IF($A$8=Nutrients!$B$79,Nutrients!$EO$79,(IF($A$8=Nutrients!$B$77,Nutrients!$EO$77,Nutrients!$EO$78)))))*AP$8))/2000*1000000","v":0.14849999999999999},null,{"$f":"(SUMPRODUCT(AR$9:AR$229,Nutrients!$EO$8:$EO$228)+(IF($A$7=Nutrients!$B$8,Nutrients!$EO$8,Nutrients!$EO$9)*AR$7)+(((IF($A$8=Nutrients!$B$79,Nutrients!$EO$79,(IF($A$8=Nutrients!$B$77,Nutrients!$EO$77,Nutrients!$EO$78)))))*AR$8))/2000*1000000","v":0.29699999999999999},{"$f":"(SUMPRODUCT(AS$9:AS$229,Nutrients!$EO$8:$EO$228)+(IF($A$7=Nutrients!$B$8,Nutrients!$EO$8,Nutrients!$EO$9)*AS$7)+(((IF($A$8=Nutrients!$B$79,Nutrients!$EO$79,(IF($A$8=Nutrients!$B$77,Nutrients!$EO$77,Nutrients!$EO$78)))))*AS$8))/2000*1000000","v":0.29699999999999999},{"$f":"(SUMPRODUCT(AT$9:AT$229,Nutrients!$EO$8:$EO$228)+(IF($A$7=Nutrients!$B$8,Nutrients!$EO$8,Nutrients!$EO$9)*AT$7)+(((IF($A$8=Nutrients!$B$79,Nutrients!$EO$79,(IF($A$8=Nutrients!$B$77,Nutrients!$EO$77,Nutrients!$EO$78)))))*AT$8))/2000*1000000","v":0.24750000000000003},{"$f":"(SUMPRODUCT(AU$9:AU$229,Nutrients!$EO$8:$EO$228)+(IF($A$7=Nutrients!$B$8,Nutrients!$EO$8,Nutrients!$EO$9)*AU$7)+(((IF($A$8=Nutrients!$B$79,Nutrients!$EO$79,(IF($A$8=Nutrients!$B$77,Nutrients!$EO$77,Nutrients!$EO$78)))))*AU$8))/2000*1000000","v":0.19800000000000001},{"$f":"(SUMPRODUCT(AV$9:AV$229,Nutrients!$EO$8:$EO$228)+(IF($A$7=Nutrients!$B$8,Nutrients!$EO$8,Nutrients!$EO$9)*AV$7)+(((IF($A$8=Nutrients!$B$79,Nutrients!$EO$79,(IF($A$8=Nutrients!$B$77,Nutrients!$EO$77,Nutrients!$EO$78)))))*AV$8))/2000*1000000","v":0.14849999999999999},{"$f":"(SUMPRODUCT(AW$9:AW$229,Nutrients!$EO$8:$EO$228)+(IF($A$7=Nutrients!$B$8,Nutrients!$EO$8,Nutrients!$EO$9)*AW$7)+(((IF($A$8=Nutrients!$B$79,Nutrients!$EO$79,(IF($A$8=Nutrients!$B$77,Nutrients!$EO$77,Nutrients!$EO$78)))))*AW$8))/2000*1000000","v":0.14849999999999999}]
["  Selenium added, ppm",{"$f":"(SUMPRODUCT(B$9:B$229,Nutrients!$EP$8:$EP$228)+(IF($A$7=Nutrients!$B$8,Nutrients!$EP$8,Nutrients!$EP$9)*B$7)+(((IF($A$8=Nutrients!$B$79,Nutrients!$EP$79,(IF($A$8=Nutrients!$B$77,Nutrients!$EP$77,Nutrients!$EP$78)))))*B$8))/2000*1000000","v":0.29699999999999999},{"$f":"(SUMPRODUCT(C$9:C$229,Nutrients!$EP$8:$EP$228)+(IF($A$7=Nutrients!$B$8,Nutrients!$EP$8,Nutrients!$EP$9)*C$7)+(((IF($A$8=Nutrients!$B$79,Nutrients!$EP$79,(IF($A$8=Nutrients!$B$77,Nutrients!$EP$77,Nutrients!$EP$78)))))*C$8))/2000*1000000","v":0.29699999999999999},{"$f":"(SUMPRODUCT(D$9:D$229,Nutrients!$EP$8:$EP$228)+(IF($A$7=Nutrients!$B$8,Nutrients!$EP$8,Nutrients!$EP$9)*D$7)+(((IF($A$8=Nutrients!$B$79,Nutrients!$EP$79,(IF($A$8=Nutrients!$B$77,Nutrients!$EP$77,Nutrients!$EP$78)))))*D$8))/2000*1000000","v":0.24750000000000003},{"$f":"(SUMPRODUCT(E$9:E$229,Nutrients!$EP$8:$EP$228)+(IF($A$7=Nutrients!$B$8,Nutrients!$EP$8,Nutrients!$EP$9)*E$7)+(((IF($A$8=Nutrients!$B$79,Nutrients!$EP$79,(IF($A$8=Nutrients!$B$77,Nutrients!$EP$77,Nutrients!$EP$78)))))*E$8))/2000*1000000","v":0.19800000000000001},{"$f":"(SUMPRODUCT(F$9:F$229,Nutrients!$EP$8:$EP$228)+(IF($A$7=Nutrients!$B$8,Nutrients!$EP$8,Nutrients!$EP$9)*F$7)+(((IF($A$8=Nutrients!$B$79,Nutrients!$EP$79,(IF($A$8=Nutrients!$B$77,Nutrients!$EP$77,Nutrients!$EP$78)))))*F$8))/2000*1000000","v":0.14849999999999999},{"$f":"(SUMPRODUCT(G$9:G$229,Nutrients!$EP$8:$EP$228)+(IF($A$7=Nutrients!$B$8,Nutrients!$EP$8,Nutrients!$EP$9)*G$7)+(((IF($A$8=Nutrients!$B$79,Nutrients!$EP$79,(IF($A$8=Nutrients!$B$77,Nutrients!$EP$77,Nutrients!$EP$78)))))*G$8))/2000*1000000","v":0.14849999999999999},null,{"$f":"(SUMPRODUCT(I$9:I$229,Nutrients!$EP$8:$EP$228)+(IF($A$7=Nutrients!$B$8,Nutrients!$EP$8,Nutrients!$EP$9)*I$7)+(((IF($A$8=Nutrients!$B$79,Nutrients!$EP$79,(IF($A$8=Nutrients!$B$77,Nutrients!$EP$77,Nutrients!$EP$78)))))*I$8))/2000*1000000","v":0.29699999999999999},{"$f":"(SUMPRODUCT(J$9:J$229,Nutrients!$EP$8:$EP$228)+(IF($A$7=Nutrients!$B$8,Nutrients!$EP$8,Nutrients!$EP$9)*J$7)+(((IF($A$8=Nutrients!$B$79,Nutrients!$EP$79,(IF($A$8=Nutrients!$B$77,Nutrients!$EP$77,Nutrients!$EP$78)))))*J$8))/2000*1000000","v":0.29699999999999999},{"$f":"(SUMPRODUCT(K$9:K$229,Nutrients!$EP$8:$EP$228)+(IF($A$7=Nutrients!$B$8,Nutrients!$EP$8,Nutrients!$EP$9)*K$7)+(((IF($A$8=Nutrients!$B$79,Nutrients!$EP$79,(IF($A$8=Nutrients!$B$77,Nutrients!$EP$77,Nutrients!$EP$78)))))*K$8))/2000*1000000","v":0.24750000000000003},{"$f":"(SUMPRODUCT(L$9:L$229,Nutrients!$EP$8:$EP$228)+(IF($A$7=Nutrients!$B$8,Nutrients!$EP$8,Nutrients!$EP$9)*L$7)+(((IF($A$8=Nutrients!$B$79,Nutrients!$EP$79,(IF($A$8=Nutrients!$B$77,Nutrients!$EP$77,Nutrients!$EP$78)))))*L$8))/2000*1000000","v":0.19800000000000001},{"$f":"(SUMPRODUCT(M$9:M$229,Nutrients!$EP$8:$EP$228)+(IF($A$7=Nutrients!$B$8,Nutrients!$EP$8,Nutrients!$EP$9)*M$7)+(((IF($A$8=Nutrients!$B$79,Nutrients!$EP$79,(IF($A$8=Nutrients!$B$77,Nutrients!$EP$77,Nutrients!$EP$78)))))*M$8))/2000*1000000","v":0.14849999999999999},{"$f":"(SUMPRODUCT(N$9:N$229,Nutrients!$EP$8:$EP$228)+(IF($A$7=Nutrients!$B$8,Nutrients!$EP$8,Nutrients!$EP$9)*N$7)+(((IF($A$8=Nutrients!$B$79,Nutrients!$EP$79,(IF($A$8=Nutrients!$B$77,Nutrients!$EP$77,Nutrients!$EP$78)))))*N$8))/2000*1000000","v":0.14849999999999999},null,{"$f":"(SUMPRODUCT(P$9:P$229,Nutrients!$EP$8:$EP$228)+(IF($A$7=Nutrients!$B$8,Nutrients!$EP$8,Nutrients!$EP$9)*P$7)+(((IF($A$8=Nutrients!$B$79,Nutrients!$EP$79,(IF($A$8=Nutrients!$B$77,Nutrients!$EP$77,Nutrients!$EP$78)))))*P$8))/2000*1000000","v":0.29699999999999999},{"$f":"(SUMPRODUCT(Q$9:Q$229,Nutrients!$EP$8:$EP$228)+(IF($A$7=Nutrients!$B$8,Nutrients!$EP$8,Nutrients!$EP$9)*Q$7)+(((IF($A$8=Nutrients!$B$79,Nutrients!$EP$79,(IF($A$8=Nutrients!$B$77,Nutrients!$EP$77,Nutrients!$EP$78)))))*Q$8))/2000*1000000","v":0.29699999999999999},{"$f":"(SUMPRODUCT(R$9:R$229,Nutrients!$EP$8:$EP$228)+(IF($A$7=Nutrients!$B$8,Nutrients!$EP$8,Nutrients!$EP$9)*R$7)+(((IF($A$8=Nutrients!$B$79,Nutrients!$EP$79,(IF($A$8=Nutrients!$B$77,Nutrients!$EP$77,Nutrients!$EP$78)))))*R$8))/2000*1000000","v":0.24750000000000003},{"$f":"(SUMPRODUCT(S$9:S$229,Nutrients!$EP$8:$EP$228)+(IF($A$7=Nutrients!$B$8,Nutrients!$EP$8,Nutrients!$EP$9)*S$7)+(((IF($A$8=Nutrients!$B$79,Nutrients!$EP$79,(IF($A$8=Nutrients!$B$77,Nutrients!$EP$77,Nutrients!$EP$78)))))*S$8))/2000*1000000","v":0.19800000000000001},{"$f":"(SUMPRODUCT(T$9:T$229,Nutrients!$EP$8:$EP$228)+(IF($A$7=Nutrients!$B$8,Nutrients!$EP$8,Nutrients!$EP$9)*T$7)+(((IF($A$8=Nutrients!$B$79,Nutrients!$EP$79,(IF($A$8=Nutrients!$B$77,Nutrients!$EP$77,Nutrients!$EP$78)))))*T$8))/2000*1000000","v":0.14849999999999999},{"$f":"(SUMPRODUCT(U$9:U$229,Nutrients!$EP$8:$EP$228)+(IF($A$7=Nutrients!$B$8,Nutrients!$EP$8,Nutrients!$EP$9)*U$7)+(((IF($A$8=Nutrients!$B$79,Nutrients!$EP$79,(IF($A$8=Nutrients!$B$77,Nutrients!$EP$77,Nutrients!$EP$78)))))*U$8))/2000*1000000","v":0.14849999999999999},null,{"$f":"(SUMPRODUCT(W$9:W$229,Nutrients!$EP$8:$EP$228)+(IF($A$7=Nutrients!$B$8,Nutrients!$EP$8,Nutrients!$EP$9)*W$7)+(((IF($A$8=Nutrients!$B$79,Nutrients!$EP$79,(IF($A$8=Nutrients!$B$77,Nutrients!$EP$77,Nutrients!$EP$78)))))*W$8))/2000*1000000","v":0.29699999999999999},{"$f":"(SUMPRODUCT(X$9:X$229,Nutrients!$EP$8:$EP$228)+(IF($A$7=Nutrients!$B$8,Nutrients!$EP$8,Nutrients!$EP$9)*X$7)+(((IF($A$8=Nutrients!$B$79,Nutrients!$EP$79,(IF($A$8=Nutrients!$B$77,Nutrients!$EP$77,Nutrients!$EP$78)))))*X$8))/2000*1000000","v":0.29699999999999999},{"$f":"(SUMPRODUCT(Y$9:Y$229,Nutrients!$EP$8:$EP$228)+(IF($A$7=Nutrients!$B$8,Nutrients!$EP$8,Nutrients!$EP$9)*Y$7)+(((IF($A$8=Nutrients!$B$79,Nutrients!$EP$79,(IF($A$8=Nutrients!$B$77,Nutrients!$EP$77,Nutrients!$EP$78)))))*Y$8))/2000*1000000","v":0.24750000000000003},{"$f":"(SUMPRODUCT(Z$9:Z$229,Nutrients!$EP$8:$EP$228)+(IF($A$7=Nutrients!$B$8,Nutrients!$EP$8,Nutrients!$EP$9)*Z$7)+(((IF($A$8=Nutrients!$B$79,Nutrients!$EP$79,(IF($A$8=Nutrients!$B$77,Nutrients!$EP$77,Nutrients!$EP$78)))))*Z$8))/2000*1000000","v":0.19800000000000001},{"$f":"(SUMPRODUCT(AA$9:AA$229,Nutrients!$EP$8:$EP$228)+(IF($A$7=Nutrients!$B$8,Nutrients!$EP$8,Nutrients!$EP$9)*AA$7)+(((IF($A$8=Nutrients!$B$79,Nutrients!$EP$79,(IF($A$8=Nutrients!$B$77,Nutrients!$EP$77,Nutrients!$EP$78)))))*AA$8))/2000*1000000","v":0.14849999999999999},{"$f":"(SUMPRODUCT(AB$9:AB$229,Nutrients!$EP$8:$EP$228)+(IF($A$7=Nutrients!$B$8,Nutrients!$EP$8,Nutrients!$EP$9)*AB$7)+(((IF($A$8=Nutrients!$B$79,Nutrients!$EP$79,(IF($A$8=Nutrients!$B$77,Nutrients!$EP$77,Nutrients!$EP$78)))))*AB$8))/2000*1000000","v":0.14849999999999999},null,{"$f":"(SUMPRODUCT(AD$9:AD$229,Nutrients!$EP$8:$EP$228)+(IF($A$7=Nutrients!$B$8,Nutrients!$EP$8,Nutrients!$EP$9)*AD$7)+(((IF($A$8=Nutrients!$B$79,Nutrients!$EP$79,(IF($A$8=Nutrients!$B$77,Nutrients!$EP$77,Nutrients!$EP$78)))))*AD$8))/2000*1000000","v":0.29699999999999999},{"$f":"(SUMPRODUCT(AE$9:AE$229,Nutrients!$EP$8:$EP$228)+(IF($A$7=Nutrients!$B$8,Nutrients!$EP$8,Nutrients!$EP$9)*AE$7)+(((IF($A$8=Nutrients!$B$79,Nutrients!$EP$79,(IF($A$8=Nutrients!$B$77,Nutrients!$EP$77,Nutrients!$EP$78)))))*AE$8))/2000*1000000","v":0.29699999999999999},{"$f":"(SUMPRODUCT(AF$9:AF$229,Nutrients!$EP$8:$EP$228)+(IF($A$7=Nutrients!$B$8,Nutrients!$EP$8,Nutrients!$EP$9)*AF$7)+(((IF($A$8=Nutrients!$B$79,Nutrients!$EP$79,(IF($A$8=Nutrients!$B$77,Nutrients!$EP$77,Nutrients!$EP$78)))))*AF$8))/2000*1000000","v":0.24750000000000003},{"$f":"(SUMPRODUCT(AG$9:AG$229,Nutrients!$EP$8:$EP$228)+(IF($A$7=Nutrients!$B$8,Nutrients!$EP$8,Nutrients!$EP$9)*AG$7)+(((IF($A$8=Nutrients!$B$79,Nutrients!$EP$79,(IF($A$8=Nutrients!$B$77,Nutrients!$EP$77,Nutrients!$EP$78)))))*AG$8))/2000*1000000","v":0.19800000000000001},{"$f":"(SUMPRODUCT(AH$9:AH$229,Nutrients!$EP$8:$EP$228)+(IF($A$7=Nutrients!$B$8,Nutrients!$EP$8,Nutrients!$EP$9)*AH$7)+(((IF($A$8=Nutrients!$B$79,Nutrients!$EP$79,(IF($A$8=Nutrients!$B$77,Nutrients!$EP$77,Nutrients!$EP$78)))))*AH$8))/2000*1000000","v":0.14849999999999999},{"$f":"(SUMPRODUCT(AI$9:AI$229,Nutrients!$EP$8:$EP$228)+(IF($A$7=Nutrients!$B$8,Nutrients!$EP$8,Nutrients!$EP$9)*AI$7)+(((IF($A$8=Nutrients!$B$79,Nutrients!$EP$79,(IF($A$8=Nutrients!$B$77,Nutrients!$EP$77,Nutrients!$EP$78)))))*AI$8))/2000*1000000","v":0.14849999999999999},null,{"$f":"(SUMPRODUCT(AK$9:AK$229,Nutrients!$EP$8:$EP$228)+(IF($A$7=Nutrients!$B$8,Nutrients!$EP$8,Nutrients!$EP$9)*AK$7)+(((IF($A$8=Nutrients!$B$79,Nutrients!$EP$79,(IF($A$8=Nutrients!$B$77,Nutrients!$EP$77,Nutrients!$EP$78)))))*AK$8))/2000*1000000","v":0.29699999999999999},{"$f":"(SUMPRODUCT(AL$9:AL$229,Nutrients!$EP$8:$EP$228)+(IF($A$7=Nutrients!$B$8,Nutrients!$EP$8,Nutrients!$EP$9)*AL$7)+(((IF($A$8=Nutrients!$B$79,Nutrients!$EP$79,(IF($A$8=Nutrients!$B$77,Nutrients!$EP$77,Nutrients!$EP$78)))))*AL$8))/2000*1000000","v":0.29699999999999999},{"$f":"(SUMPRODUCT(AM$9:AM$229,Nutrients!$EP$8:$EP$228)+(IF($A$7=Nutrients!$B$8,Nutrients!$EP$8,Nutrients!$EP$9)*AM$7)+(((IF($A$8=Nutrients!$B$79,Nutrients!$EP$79,(IF($A$8=Nutrients!$B$77,Nutrients!$EP$77,Nutrients!$EP$78)))))*AM$8))/2000*1000000","v":0.24750000000000003},{"$f":"(SUMPRODUCT(AN$9:AN$229,Nutrients!$EP$8:$EP$228)+(IF($A$7=Nutrients!$B$8,Nutrients!$EP$8,Nutrients!$EP$9)*AN$7)+(((IF($A$8=Nutrients!$B$79,Nutrients!$EP$79,(IF($A$8=Nutrients!$B$77,Nutrients!$EP$77,Nutrients!$EP$78)))))*AN$8))/2000*1000000","v":0.19800000000000001},{"$f":"(SUMPRODUCT(AO$9:AO$229,Nutrients!$EP$8:$EP$228)+(IF($A$7=Nutrients!$B$8,Nutrients!$EP$8,Nutrients!$EP$9)*AO$7)+(((IF($A$8=Nutrients!$B$79,Nutrients!$EP$79,(IF($A$8=Nutrients!$B$77,Nutrients!$EP$77,Nutrients!$EP$78)))))*AO$8))/2000*1000000","v":0.14849999999999999},{"$f":"(SUMPRODUCT(AP$9:AP$229,Nutrients!$EP$8:$EP$228)+(IF($A$7=Nutrients!$B$8,Nutrients!$EP$8,Nutrients!$EP$9)*AP$7)+(((IF($A$8=Nutrients!$B$79,Nutrients!$EP$79,(IF($A$8=Nutrients!$B$77,Nutrients!$EP$77,Nutrients!$EP$78)))))*AP$8))/2000*1000000","v":0.14849999999999999},null,{"$f":"(SUMPRODUCT(AR$9:AR$229,Nutrients!$EP$8:$EP$228)+(IF($A$7=Nutrients!$B$8,Nutrients!$EP$8,Nutrients!$EP$9)*AR$7)+(((IF($A$8=Nutrients!$B$79,Nutrients!$EP$79,(IF($A$8=Nutrients!$B$77,Nutrients!$EP$77,Nutrients!$EP$78)))))*AR$8))/2000*1000000","v":0.29699999999999999},{"$f":"(SUMPRODUCT(AS$9:AS$229,Nutrients!$EP$8:$EP$228)+(IF($A$7=Nutrients!$B$8,Nutrients!$EP$8,Nutrients!$EP$9)*AS$7)+(((IF($A$8=Nutrients!$B$79,Nutrients!$EP$79,(IF($A$8=Nutrients!$B$77,Nutrients!$EP$77,Nutrients!$EP$78)))))*AS$8))/2000*1000000","v":0.29699999999999999},{"$f":"(SUMPRODUCT(AT$9:AT$229,Nutrients!$EP$8:$EP$228)+(IF($A$7=Nutrients!$B$8,Nutrients!$EP$8,Nutrients!$EP$9)*AT$7)+(((IF($A$8=Nutrients!$B$79,Nutrients!$EP$79,(IF($A$8=Nutrients!$B$77,Nutrients!$EP$77,Nutrients!$EP$78)))))*AT$8))/2000*1000000","v":0.24750000000000003},{"$f":"(SUMPRODUCT(AU$9:AU$229,Nutrients!$EP$8:$EP$228)+(IF($A$7=Nutrients!$B$8,Nutrients!$EP$8,Nutrients!$EP$9)*AU$7)+(((IF($A$8=Nutrients!$B$79,Nutrients!$EP$79,(IF($A$8=Nutrients!$B$77,Nutrients!$EP$77,Nutrients!$EP$78)))))*AU$8))/2000*1000000","v":0.19800000000000001},{"$f":"(SUMPRODUCT(AV$9:AV$229,Nutrients!$EP$8:$EP$228)+(IF($A$7=Nutrients!$B$8,Nutrients!$EP$8,Nutrients!$EP$9)*AV$7)+(((IF($A$8=Nutrients!$B$79,Nutrients!$EP$79,(IF($A$8=Nutrients!$B$77,Nutrients!$EP$77,Nutrients!$EP$78)))))*AV$8))/2000*1000000","v":0.14849999999999999},{"$f":"(SUMPRODUCT(AW$9:AW$229,Nutrients!$EP$8:$EP$228)+(IF($A$7=Nutrients!$B$8,Nutrients!$EP$8,Nutrients!$EP$9)*AW$7)+(((IF($A$8=Nutrients!$B$79,Nutrients!$EP$79,(IF($A$8=Nutrients!$B$77,Nutrients!$EP$77,Nutrients!$EP$78)))))*AW$8))/2000*1000000","v":0.14849999999999999}]
["  Chromium added, ppb",{"$f":"(SUMPRODUCT(B$9:B$229,Nutrients!$EQ$8:$EQ$228)+(IF($A$7=Nutrients!$B$8,Nutrients!$EQ$8,Nutrients!$EQ$9)*B$7)+(((IF($A$8=Nutrients!$B$79,Nutrients!$EQ$79,(IF($A$8=Nutrients!$B$77,Nutrients!$EQ$77,Nutrients!$EQ$78)))))*B$8))/2000*1000000000","v":0},{"$f":"(SUMPRODUCT(C$9:C$229,Nutrients!$EQ$8:$EQ$228)+(IF($A$7=Nutrients!$B$8,Nutrients!$EQ$8,Nutrients!$EQ$9)*C$7)+(((IF($A$8=Nutrients!$B$79,Nutrients!$EQ$79,(IF($A$8=Nutrients!$B$77,Nutrients!$EQ$77,Nutrients!$EQ$78)))))*C$8))/2000*1000000000","v":0},{"$f":"(SUMPRODUCT(D$9:D$229,Nutrients!$EQ$8:$EQ$228)+(IF($A$7=Nutrients!$B$8,Nutrients!$EQ$8,Nutrients!$EQ$9)*D$7)+(((IF($A$8=Nutrients!$B$79,Nutrients!$EQ$79,(IF($A$8=Nutrients!$B$77,Nutrients!$EQ$77,Nutrients!$EQ$78)))))*D$8))/2000*1000000000","v":0},{"$f":"(SUMPRODUCT(E$9:E$229,Nutrients!$EQ$8:$EQ$228)+(IF($A$7=Nutrients!$B$8,Nutrients!$EQ$8,Nutrients!$EQ$9)*E$7)+(((IF($A$8=Nutrients!$B$79,Nutrients!$EQ$79,(IF($A$8=Nutrients!$B$77,Nutrients!$EQ$77,Nutrients!$EQ$78)))))*E$8))/2000*1000000000","v":0},{"$f":"(SUMPRODUCT(F$9:F$229,Nutrients!$EQ$8:$EQ$228)+(IF($A$7=Nutrients!$B$8,Nutrients!$EQ$8,Nutrients!$EQ$9)*F$7)+(((IF($A$8=Nutrients!$B$79,Nutrients!$EQ$79,(IF($A$8=Nutrients!$B$77,Nutrients!$EQ$77,Nutrients!$EQ$78)))))*F$8))/2000*1000000000","v":0},{"$f":"(SUMPRODUCT(G$9:G$229,Nutrients!$EQ$8:$EQ$228)+(IF($A$7=Nutrients!$B$8,Nutrients!$EQ$8,Nutrients!$EQ$9)*G$7)+(((IF($A$8=Nutrients!$B$79,Nutrients!$EQ$79,(IF($A$8=Nutrients!$B$77,Nutrients!$EQ$77,Nutrients!$EQ$78)))))*G$8))/2000*1000000000","v":0},null,{"$f":"(SUMPRODUCT(I$9:I$229,Nutrients!$EQ$8:$EQ$228)+(IF($A$7=Nutrients!$B$8,Nutrients!$EQ$8,Nutrients!$EQ$9)*I$7)+(((IF($A$8=Nutrients!$B$79,Nutrients!$EQ$79,(IF($A$8=Nutrients!$B$77,Nutrients!$EQ$77,Nutrients!$EQ$78)))))*I$8))/2000*1000000000","v":0},{"$f":"(SUMPRODUCT(J$9:J$229,Nutrients!$EQ$8:$EQ$228)+(IF($A$7=Nutrients!$B$8,Nutrients!$EQ$8,Nutrients!$EQ$9)*J$7)+(((IF($A$8=Nutrients!$B$79,Nutrients!$EQ$79,(IF($A$8=Nutrients!$B$77,Nutrients!$EQ$77,Nutrients!$EQ$78)))))*J$8))/2000*1000000000","v":0},{"$f":"(SUMPRODUCT(K$9:K$229,Nutrients!$EQ$8:$EQ$228)+(IF($A$7=Nutrients!$B$8,Nutrients!$EQ$8,Nutrients!$EQ$9)*K$7)+(((IF($A$8=Nutrients!$B$79,Nutrients!$EQ$79,(IF($A$8=Nutrients!$B$77,Nutrients!$EQ$77,Nutrients!$EQ$78)))))*K$8))/2000*1000000000","v":0},{"$f":"(SUMPRODUCT(L$9:L$229,Nutrients!$EQ$8:$EQ$228)+(IF($A$7=Nutrients!$B$8,Nutrients!$EQ$8,Nutrients!$EQ$9)*L$7)+(((IF($A$8=Nutrients!$B$79,Nutrients!$EQ$79,(IF($A$8=Nutrients!$B$77,Nutrients!$EQ$77,Nutrients!$EQ$78)))))*L$8))/2000*1000000000","v":0},{"$f":"(SUMPRODUCT(M$9:M$229,Nutrients!$EQ$8:$EQ$228)+(IF($A$7=Nutrients!$B$8,Nutrients!$EQ$8,Nutrients!$EQ$9)*M$7)+(((IF($A$8=Nutrients!$B$79,Nutrients!$EQ$79,(IF($A$8=Nutrients!$B$77,Nutrients!$EQ$77,Nutrients!$EQ$78)))))*M$8))/2000*1000000000","v":0},{"$f":"(SUMPRODUCT(N$9:N$229,Nutrients!$EQ$8:$EQ$228)+(IF($A$7=Nutrients!$B$8,Nutrients!$EQ$8,Nutrients!$EQ$9)*N$7)+(((IF($A$8=Nutrients!$B$79,Nutrients!$EQ$79,(IF($A$8=Nutrients!$B$77,Nutrients!$EQ$77,Nutrients!$EQ$78)))))*N$8))/2000*1000000000","v":0},null,{"$f":"(SUMPRODUCT(P$9:P$229,Nutrients!$EQ$8:$EQ$228)+(IF($A$7=Nutrients!$B$8,Nutrients!$EQ$8,Nutrients!$EQ$9)*P$7)+(((IF($A$8=Nutrients!$B$79,Nutrients!$EQ$79,(IF($A$8=Nutrients!$B$77,Nutrients!$EQ$77,Nutrients!$EQ$78)))))*P$8))/2000*1000000000","v":0},{"$f":"(SUMPRODUCT(Q$9:Q$229,Nutrients!$EQ$8:$EQ$228)+(IF($A$7=Nutrients!$B$8,Nutrients!$EQ$8,Nutrients!$EQ$9)*Q$7)+(((IF($A$8=Nutrients!$B$79,Nutrients!$EQ$79,(IF($A$8=Nutrients!$B$77,Nutrients!$EQ$77,Nutrients!$EQ$78)))))*Q$8))/2000*1000000000","v":0},{"$f":"(SUMPRODUCT(R$9:R$229,Nutrients!$EQ$8:$EQ$228)+(IF($A$7=Nutrients!$B$8,Nutrients!$EQ$8,Nutrients!$EQ$9)*R$7)+(((IF($A$8=Nutrients!$B$79,Nutrients!$EQ$79,(IF($A$8=Nutrients!$B$77,Nutrients!$EQ$77,Nutrients!$EQ$78)))))*R$8))/2000*1000000000","v":0},{"$f":"(SUMPRODUCT(S$9:S$229,Nutrients!$EQ$8:$EQ$228)+(IF($A$7=Nutrients!$B$8,Nutrients!$EQ$8,Nutrients!$EQ$9)*S$7)+(((IF($A$8=Nutrients!$B$79,Nutrients!$EQ$79,(IF($A$8=Nutrients!$B$77,Nutrients!$EQ$77,Nutrients!$EQ$78)))))*S$8))/2000*1000000000","v":0},{"$f":"(SUMPRODUCT(T$9:T$229,Nutrients!$EQ$8:$EQ$228)+(IF($A$7=Nutrients!$B$8,Nutrients!$EQ$8,Nutrients!$EQ$9)*T$7)+(((IF($A$8=Nutrients!$B$79,Nutrients!$EQ$79,(IF($A$8=Nutrients!$B$77,Nutrients!$EQ$77,Nutrients!$EQ$78)))))*T$8))/2000*1000000000","v":0},{"$f":"(SUMPRODUCT(U$9:U$229,Nutrients!$EQ$8:$EQ$228)+(IF($A$7=Nutrients!$B$8,Nutrients!$EQ$8,Nutrients!$EQ$9)*U$7)+(((IF($A$8=Nutrients!$B$79,Nutrients!$EQ$79,(IF($A$8=Nutrients!$B$77,Nutrients!$EQ$77,Nutrients!$EQ$78)))))*U$8))/2000*1000000000","v":0},null,{"$f":"(SUMPRODUCT(W$9:W$229,Nutrients!$EQ$8:$EQ$228)+(IF($A$7=Nutrients!$B$8,Nutrients!$EQ$8,Nutrients!$EQ$9)*W$7)+(((IF($A$8=Nutrients!$B$79,Nutrients!$EQ$79,(IF($A$8=Nutrients!$B$77,Nutrients!$EQ$77,Nutrients!$EQ$78)))))*W$8))/2000*1000000000","v":0},{"$f":"(SUMPRODUCT(X$9:X$229,Nutrients!$EQ$8:$EQ$228)+(IF($A$7=Nutrients!$B$8,Nutrients!$EQ$8,Nutrients!$EQ$9)*X$7)+(((IF($A$8=Nutrients!$B$79,Nutrients!$EQ$79,(IF($A$8=Nutrients!$B$77,Nutrients!$EQ$77,Nutrients!$EQ$78)))))*X$8))/2000*1000000000","v":0},{"$f":"(SUMPRODUCT(Y$9:Y$229,Nutrients!$EQ$8:$EQ$228)+(IF($A$7=Nutrients!$B$8,Nutrients!$EQ$8,Nutrients!$EQ$9)*Y$7)+(((IF($A$8=Nutrients!$B$79,Nutrients!$EQ$79,(IF($A$8=Nutrients!$B$77,Nutrients!$EQ$77,Nutrients!$EQ$78)))))*Y$8))/2000*1000000000","v":0},{"$f":"(SUMPRODUCT(Z$9:Z$229,Nutrients!$EQ$8:$EQ$228)+(IF($A$7=Nutrients!$B$8,Nutrients!$EQ$8,Nutrients!$EQ$9)*Z$7)+(((IF($A$8=Nutrients!$B$79,Nutrients!$EQ$79,(IF($A$8=Nutrients!$B$77,Nutrients!$EQ$77,Nutrients!$EQ$78)))))*Z$8))/2000*1000000000","v":0},{"$f":"(SUMPRODUCT(AA$9:AA$229,Nutrients!$EQ$8:$EQ$228)+(IF($A$7=Nutrients!$B$8,Nutrients!$EQ$8,Nutrients!$EQ$9)*AA$7)+(((IF($A$8=Nutrients!$B$79,Nutrients!$EQ$79,(IF($A$8=Nutrients!$B$77,Nutrients!$EQ$77,Nutrients!$EQ$78)))))*AA$8))/2000*1000000000","v":0},{"$f":"(SUMPRODUCT(AB$9:AB$229,Nutrients!$EQ$8:$EQ$228)+(IF($A$7=Nutrients!$B$8,Nutrients!$EQ$8,Nutrients!$EQ$9)*AB$7)+(((IF($A$8=Nutrients!$B$79,Nutrients!$EQ$79,(IF($A$8=Nutrients!$B$77,Nutrients!$EQ$77,Nutrients!$EQ$78)))))*AB$8))/2000*1000000000","v":0},null,{"$f":"(SUMPRODUCT(AD$9:AD$229,Nutrients!$EQ$8:$EQ$228)+(IF($A$7=Nutrients!$B$8,Nutrients!$EQ$8,Nutrients!$EQ$9)*AD$7)+(((IF($A$8=Nutrients!$B$79,Nutrients!$EQ$79,(IF($A$8=Nutrients!$B$77,Nutrients!$EQ$77,Nutrients!$EQ$78)))))*AD$8))/2000*1000000000","v":0},{"$f":"(SUMPRODUCT(AE$9:AE$229,Nutrients!$EQ$8:$EQ$228)+(IF($A$7=Nutrients!$B$8,Nutrients!$EQ$8,Nutrients!$EQ$9)*AE$7)+(((IF($A$8=Nutrients!$B$79,Nutrients!$EQ$79,(IF($A$8=Nutrients!$B$77,Nutrients!$EQ$77,Nutrients!$EQ$78)))))*AE$8))/2000*1000000000","v":0},{"$f":"(SUMPRODUCT(AF$9:AF$229,Nutrients!$EQ$8:$EQ$228)+(IF($A$7=Nutrients!$B$8,Nutrients!$EQ$8,Nutrients!$EQ$9)*AF$7)+(((IF($A$8=Nutrients!$B$79,Nutrients!$EQ$79,(IF($A$8=Nutrients!$B$77,Nutrients!$EQ$77,Nutrients!$EQ$78)))))*AF$8))/2000*1000000000","v":0},{"$f":"(SUMPRODUCT(AG$9:AG$229,Nutrients!$EQ$8:$EQ$228)+(IF($A$7=Nutrients!$B$8,Nutrients!$EQ$8,Nutrients!$EQ$9)*AG$7)+(((IF($A$8=Nutrients!$B$79,Nutrients!$EQ$79,(IF($A$8=Nutrients!$B$77,Nutrients!$EQ$77,Nutrients!$EQ$78)))))*AG$8))/2000*1000000000","v":0},{"$f":"(SUMPRODUCT(AH$9:AH$229,Nutrients!$EQ$8:$EQ$228)+(IF($A$7=Nutrients!$B$8,Nutrients!$EQ$8,Nutrients!$EQ$9)*AH$7)+(((IF($A$8=Nutrients!$B$79,Nutrients!$EQ$79,(IF($A$8=Nutrients!$B$77,Nutrients!$EQ$77,Nutrients!$EQ$78)))))*AH$8))/2000*1000000000","v":0},{"$f":"(SUMPRODUCT(AI$9:AI$229,Nutrients!$EQ$8:$EQ$228)+(IF($A$7=Nutrients!$B$8,Nutrients!$EQ$8,Nutrients!$EQ$9)*AI$7)+(((IF($A$8=Nutrients!$B$79,Nutrients!$EQ$79,(IF($A$8=Nutrients!$B$77,Nutrients!$EQ$77,Nutrients!$EQ$78)))))*AI$8))/2000*1000000000","v":0},null,{"$f":"(SUMPRODUCT(AK$9:AK$229,Nutrients!$EQ$8:$EQ$228)+(IF($A$7=Nutrients!$B$8,Nutrients!$EQ$8,Nutrients!$EQ$9)*AK$7)+(((IF($A$8=Nutrients!$B$79,Nutrients!$EQ$79,(IF($A$8=Nutrients!$B$77,Nutrients!$EQ$77,Nutrients!$EQ$78)))))*AK$8))/2000*1000000000","v":0},{"$f":"(SUMPRODUCT(AL$9:AL$229,Nutrients!$EQ$8:$EQ$228)+(IF($A$7=Nutrients!$B$8,Nutrients!$EQ$8,Nutrients!$EQ$9)*AL$7)+(((IF($A$8=Nutrients!$B$79,Nutrients!$EQ$79,(IF($A$8=Nutrients!$B$77,Nutrients!$EQ$77,Nutrients!$EQ$78)))))*AL$8))/2000*1000000000","v":0},{"$f":"(SUMPRODUCT(AM$9:AM$229,Nutrients!$EQ$8:$EQ$228)+(IF($A$7=Nutrients!$B$8,Nutrients!$EQ$8,Nutrients!$EQ$9)*AM$7)+(((IF($A$8=Nutrients!$B$79,Nutrients!$EQ$79,(IF($A$8=Nutrients!$B$77,Nutrients!$EQ$77,Nutrients!$EQ$78)))))*AM$8))/2000*1000000000","v":0},{"$f":"(SUMPRODUCT(AN$9:AN$229,Nutrients!$EQ$8:$EQ$228)+(IF($A$7=Nutrients!$B$8,Nutrients!$EQ$8,Nutrients!$EQ$9)*AN$7)+(((IF($A$8=Nutrients!$B$79,Nutrients!$EQ$79,(IF($A$8=Nutrients!$B$77,Nutrients!$EQ$77,Nutrients!$EQ$78)))))*AN$8))/2000*1000000000","v":0},{"$f":"(SUMPRODUCT(AO$9:AO$229,Nutrients!$EQ$8:$EQ$228)+(IF($A$7=Nutrients!$B$8,Nutrients!$EQ$8,Nutrients!$EQ$9)*AO$7)+(((IF($A$8=Nutrients!$B$79,Nutrients!$EQ$79,(IF($A$8=Nutrients!$B$77,Nutrients!$EQ$77,Nutrients!$EQ$78)))))*AO$8))/2000*1000000000","v":0},{"$f":"(SUMPRODUCT(AP$9:AP$229,Nutrients!$EQ$8:$EQ$228)+(IF($A$7=Nutrients!$B$8,Nutrients!$EQ$8,Nutrients!$EQ$9)*AP$7)+(((IF($A$8=Nutrients!$B$79,Nutrients!$EQ$79,(IF($A$8=Nutrients!$B$77,Nutrients!$EQ$77,Nutrients!$EQ$78)))))*AP$8))/2000*1000000000","v":0},null,{"$f":"(SUMPRODUCT(AR$9:AR$229,Nutrients!$EQ$8:$EQ$228)+(IF($A$7=Nutrients!$B$8,Nutrients!$EQ$8,Nutrients!$EQ$9)*AR$7)+(((IF($A$8=Nutrients!$B$79,Nutrients!$EQ$79,(IF($A$8=Nutrients!$B$77,Nutrients!$EQ$77,Nutrients!$EQ$78)))))*AR$8))/2000*1000000000","v":0},{"$f":"(SUMPRODUCT(AS$9:AS$229,Nutrients!$EQ$8:$EQ$228)+(IF($A$7=Nutrients!$B$8,Nutrients!$EQ$8,Nutrients!$EQ$9)*AS$7)+(((IF($A$8=Nutrients!$B$79,Nutrients!$EQ$79,(IF($A$8=Nutrients!$B$77,Nutrients!$EQ$77,Nutrients!$EQ$78)))))*AS$8))/2000*1000000000","v":0},{"$f":"(SUMPRODUCT(AT$9:AT$229,Nutrients!$EQ$8:$EQ$228)+(IF($A$7=Nutrients!$B$8,Nutrients!$EQ$8,Nutrients!$EQ$9)*AT$7)+(((IF($A$8=Nutrients!$B$79,Nutrients!$EQ$79,(IF($A$8=Nutrients!$B$77,Nutrients!$EQ$77,Nutrients!$EQ$78)))))*AT$8))/2000*1000000000","v":0},{"$f":"(SUMPRODUCT(AU$9:AU$229,Nutrients!$EQ$8:$EQ$228)+(IF($A$7=Nutrients!$B$8,Nutrients!$EQ$8,Nutrients!$EQ$9)*AU$7)+(((IF($A$8=Nutrients!$B$79,Nutrients!$EQ$79,(IF($A$8=Nutrients!$B$77,Nutrients!$EQ$77,Nutrients!$EQ$78)))))*AU$8))/2000*1000000000","v":0},{"$f":"(SUMPRODUCT(AV$9:AV$229,Nutrients!$EQ$8:$EQ$228)+(IF($A$7=Nutrients!$B$8,Nutrients!$EQ$8,Nutrients!$EQ$9)*AV$7)+(((IF($A$8=Nutrients!$B$79,Nutrients!$EQ$79,(IF($A$8=Nutrients!$B$77,Nutrients!$EQ$77,Nutrients!$EQ$78)))))*AV$8))/2000*1000000000","v":0},{"$f":"(SUMPRODUCT(AW$9:AW$229,Nutrients!$EQ$8:$EQ$228)+(IF($A$7=Nutrients!$B$8,Nutrients!$EQ$8,Nutrients!$EQ$9)*AW$7)+(((IF($A$8=Nutrients!$B$79,Nutrients!$EQ$79,(IF($A$8=Nutrients!$B$77,Nutrients!$EQ$77,Nutrients!$EQ$78)))))*AW$8))/2000*1000000000","v":0}]
[]
["Vitamins (added levels)"]
["  Vit A, IU/ton",{"$f":"(SUMPRODUCT(B$9:B$229,Nutrients!$ES$8:$ES$228)+(IF($A$7=Nutrients!$B$8,Nutrients!$ES$8,Nutrients!$ES$9)*B$7)+(((IF($A$8=Nutrients!$B$79,Nutrients!$ES$79,(IF($A$8=Nutrients!$B$77,Nutrients!$ES$77,Nutrients!$ES$78)))))*B$8))","v":2250000},{"$f":"(SUMPRODUCT(C$9:C$229,Nutrients!$ES$8:$ES$228)+(IF($A$7=Nutrients!$B$8,Nutrients!$ES$8,Nutrients!$ES$9)*C$7)+(((IF($A$8=Nutrients!$B$79,Nutrients!$ES$79,(IF($A$8=Nutrients!$B$77,Nutrients!$ES$77,Nutrients!$ES$78)))))*C$8))","v":2250000},{"$f":"(SUMPRODUCT(D$9:D$229,Nutrients!$ES$8:$ES$228)+(IF($A$7=Nutrients!$B$8,Nutrients!$ES$8,Nutrients!$ES$9)*D$7)+(((IF($A$8=Nutrients!$B$79,Nutrients!$ES$79,(IF($A$8=Nutrients!$B$77,Nutrients!$ES$77,Nutrients!$ES$78)))))*D$8))","v":1875000},{"$f":"(SUMPRODUCT(E$9:E$229,Nutrients!$ES$8:$ES$228)+(IF($A$7=Nutrients!$B$8,Nutrients!$ES$8,Nutrients!$ES$9)*E$7)+(((IF($A$8=Nutrients!$B$79,Nutrients!$ES$79,(IF($A$8=Nutrients!$B$77,Nutrients!$ES$77,Nutrients!$ES$78)))))*E$8))","v":1500000},{"$f":"(SUMPRODUCT(F$9:F$229,Nutrients!$ES$8:$ES$228)+(IF($A$7=Nutrients!$B$8,Nutrients!$ES$8,Nutrients!$ES$9)*F$7)+(((IF($A$8=Nutrients!$B$79,Nutrients!$ES$79,(IF($A$8=Nutrients!$B$77,Nutrients!$ES$77,Nutrients!$ES$78)))))*F$8))","v":1125000},{"$f":"(SUMPRODUCT(G$9:G$229,Nutrients!$ES$8:$ES$228)+(IF($A$7=Nutrients!$B$8,Nutrients!$ES$8,Nutrients!$ES$9)*G$7)+(((IF($A$8=Nutrients!$B$79,Nutrients!$ES$79,(IF($A$8=Nutrients!$B$77,Nutrients!$ES$77,Nutrients!$ES$78)))))*G$8))","v":1125000},null,{"$f":"(SUMPRODUCT(I$9:I$229,Nutrients!$ES$8:$ES$228)+(IF($A$7=Nutrients!$B$8,Nutrients!$ES$8,Nutrients!$ES$9)*I$7)+(((IF($A$8=Nutrients!$B$79,Nutrients!$ES$79,(IF($A$8=Nutrients!$B$77,Nutrients!$ES$77,Nutrients!$ES$78)))))*I$8))","v":2250000},{"$f":"(SUMPRODUCT(J$9:J$229,Nutrients!$ES$8:$ES$228)+(IF($A$7=Nutrients!$B$8,Nutrients!$ES$8,Nutrients!$ES$9)*J$7)+(((IF($A$8=Nutrients!$B$79,Nutrients!$ES$79,(IF($A$8=Nutrients!$B$77,Nutrients!$ES$77,Nutrients!$ES$78)))))*J$8))","v":2250000},{"$f":"(SUMPRODUCT(K$9:K$229,Nutrients!$ES$8:$ES$228)+(IF($A$7=Nutrients!$B$8,Nutrients!$ES$8,Nutrients!$ES$9)*K$7)+(((IF($A$8=Nutrients!$B$79,Nutrients!$ES$79,(IF($A$8=Nutrients!$B$77,Nutrients!$ES$77,Nutrients!$ES$78)))))*K$8))","v":1875000},{"$f":"(SUMPRODUCT(L$9:L$229,Nutrients!$ES$8:$ES$228)+(IF($A$7=Nutrients!$B$8,Nutrients!$ES$8,Nutrients!$ES$9)*L$7)+(((IF($A$8=Nutrients!$B$79,Nutrients!$ES$79,(IF($A$8=Nutrients!$B$77,Nutrients!$ES$77,Nutrients!$ES$78)))))*L$8))","v":1500000},{"$f":"(SUMPRODUCT(M$9:M$229,Nutrients!$ES$8:$ES$228)+(IF($A$7=Nutrients!$B$8,Nutrients!$ES$8,Nutrients!$ES$9)*M$7)+(((IF($A$8=Nutrients!$B$79,Nutrients!$ES$79,(IF($A$8=Nutrients!$B$77,Nutrients!$ES$77,Nutrients!$ES$78)))))*M$8))","v":1125000},{"$f":"(SUMPRODUCT(N$9:N$229,Nutrients!$ES$8:$ES$228)+(IF($A$7=Nutrients!$B$8,Nutrients!$ES$8,Nutrients!$ES$9)*N$7)+(((IF($A$8=Nutrients!$B$79,Nutrients!$ES$79,(IF($A$8=Nutrients!$B$77,Nutrients!$ES$77,Nutrients!$ES$78)))))*N$8))","v":1125000},null,{"$f":"(SUMPRODUCT(P$9:P$229,Nutrients!$ES$8:$ES$228)+(IF($A$7=Nutrients!$B$8,Nutrients!$ES$8,Nutrients!$ES$9)*P$7)+(((IF($A$8=Nutrients!$B$79,Nutrients!$ES$79,(IF($A$8=Nutrients!$B$77,Nutrients!$ES$77,Nutrients!$ES$78)))))*P$8))","v":2250000},{"$f":"(SUMPRODUCT(Q$9:Q$229,Nutrients!$ES$8:$ES$228)+(IF($A$7=Nutrients!$B$8,Nutrients!$ES$8,Nutrients!$ES$9)*Q$7)+(((IF($A$8=Nutrients!$B$79,Nutrients!$ES$79,(IF($A$8=Nutrients!$B$77,Nutrients!$ES$77,Nutrients!$ES$78)))))*Q$8))","v":2250000},{"$f":"(SUMPRODUCT(R$9:R$229,Nutrients!$ES$8:$ES$228)+(IF($A$7=Nutrients!$B$8,Nutrients!$ES$8,Nutrients!$ES$9)*R$7)+(((IF($A$8=Nutrients!$B$79,Nutrients!$ES$79,(IF($A$8=Nutrients!$B$77,Nutrients!$ES$77,Nutrients!$ES$78)))))*R$8))","v":1875000},{"$f":"(SUMPRODUCT(S$9:S$229,Nutrients!$ES$8:$ES$228)+(IF($A$7=Nutrients!$B$8,Nutrients!$ES$8,Nutrients!$ES$9)*S$7)+(((IF($A$8=Nutrients!$B$79,Nutrients!$ES$79,(IF($A$8=Nutrients!$B$77,Nutrients!$ES$77,Nutrients!$ES$78)))))*S$8))","v":1500000},{"$f":"(SUMPRODUCT(T$9:T$229,Nutrients!$ES$8:$ES$228)+(IF($A$7=Nutrients!$B$8,Nutrients!$ES$8,Nutrients!$ES$9)*T$7)+(((IF($A$8=Nutrients!$B$79,Nutrients!$ES$79,(IF($A$8=Nutrients!$B$77,Nutrients!$ES$77,Nutrients!$ES$78)))))*T$8))","v":1125000},{"$f":"(SUMPRODUCT(U$9:U$229,Nutrients!$ES$8:$ES$228)+(IF($A$7=Nutrients!$B$8,Nutrients!$ES$8,Nutrients!$ES$9)*U$7)+(((IF($A$8=Nutrients!$B$79,Nutrients!$ES$79,(IF($A$8=Nutrients!$B$77,Nutrients!$ES$77,Nutrients!$ES$78)))))*U$8))","v":1125000},null,{"$f":"(SUMPRODUCT(W$9:W$229,Nutrients!$ES$8:$ES$228)+(IF($A$7=Nutrients!$B$8,Nutrients!$ES$8,Nutrients!$ES$9)*W$7)+(((IF($A$8=Nutrients!$B$79,Nutrients!$ES$79,(IF($A$8=Nutrients!$B$77,Nutrients!$ES$77,Nutrients!$ES$78)))))*W$8))","v":2250000},{"$f":"(SUMPRODUCT(X$9:X$229,Nutrients!$ES$8:$ES$228)+(IF($A$7=Nutrients!$B$8,Nutrients!$ES$8,Nutrients!$ES$9)*X$7)+(((IF($A$8=Nutrients!$B$79,Nutrients!$ES$79,(IF($A$8=Nutrients!$B$77,Nutrients!$ES$77,Nutrients!$ES$78)))))*X$8))","v":2250000},{"$f":"(SUMPRODUCT(Y$9:Y$229,Nutrients!$ES$8:$ES$228)+(IF($A$7=Nutrients!$B$8,Nutrients!$ES$8,Nutrients!$ES$9)*Y$7)+(((IF($A$8=Nutrients!$B$79,Nutrients!$ES$79,(IF($A$8=Nutrients!$B$77,Nutrients!$ES$77,Nutrients!$ES$78)))))*Y$8))","v":1875000},{"$f":"(SUMPRODUCT(Z$9:Z$229,Nutrients!$ES$8:$ES$228)+(IF($A$7=Nutrients!$B$8,Nutrients!$ES$8,Nutrients!$ES$9)*Z$7)+(((IF($A$8=Nutrients!$B$79,Nutrients!$ES$79,(IF($A$8=Nutrients!$B$77,Nutrients!$ES$77,Nutrients!$ES$78)))))*Z$8))","v":1500000},{"$f":"(SUMPRODUCT(AA$9:AA$229,Nutrients!$ES$8:$ES$228)+(IF($A$7=Nutrients!$B$8,Nutrients!$ES$8,Nutrients!$ES$9)*AA$7)+(((IF($A$8=Nutrients!$B$79,Nutrients!$ES$79,(IF($A$8=Nutrients!$B$77,Nutrients!$ES$77,Nutrients!$ES$78)))))*AA$8))","v":1125000},{"$f":"(SUMPRODUCT(AB$9:AB$229,Nutrients!$ES$8:$ES$228)+(IF($A$7=Nutrients!$B$8,Nutrients!$ES$8,Nutrients!$ES$9)*AB$7)+(((IF($A$8=Nutrients!$B$79,Nutrients!$ES$79,(IF($A$8=Nutrients!$B$77,Nutrients!$ES$77,Nutrients!$ES$78)))))*AB$8))","v":1125000},null,{"$f":"(SUMPRODUCT(AD$9:AD$229,Nutrients!$ES$8:$ES$228)+(IF($A$7=Nutrients!$B$8,Nutrients!$ES$8,Nutrients!$ES$9)*AD$7)+(((IF($A$8=Nutrients!$B$79,Nutrients!$ES$79,(IF($A$8=Nutrients!$B$77,Nutrients!$ES$77,Nutrients!$ES$78)))))*AD$8))","v":2250000},{"$f":"(SUMPRODUCT(AE$9:AE$229,Nutrients!$ES$8:$ES$228)+(IF($A$7=Nutrients!$B$8,Nutrients!$ES$8,Nutrients!$ES$9)*AE$7)+(((IF($A$8=Nutrients!$B$79,Nutrients!$ES$79,(IF($A$8=Nutrients!$B$77,Nutrients!$ES$77,Nutrients!$ES$78)))))*AE$8))","v":2250000},{"$f":"(SUMPRODUCT(AF$9:AF$229,Nutrients!$ES$8:$ES$228)+(IF($A$7=Nutrients!$B$8,Nutrients!$ES$8,Nutrients!$ES$9)*AF$7)+(((IF($A$8=Nutrients!$B$79,Nutrients!$ES$79,(IF($A$8=Nutrients!$B$77,Nutrients!$ES$77,Nutrients!$ES$78)))))*AF$8))","v":1875000},{"$f":"(SUMPRODUCT(AG$9:AG$229,Nutrients!$ES$8:$ES$228)+(IF($A$7=Nutrients!$B$8,Nutrients!$ES$8,Nutrients!$ES$9)*AG$7)+(((IF($A$8=Nutrients!$B$79,Nutrients!$ES$79,(IF($A$8=Nutrients!$B$77,Nutrients!$ES$77,Nutrients!$ES$78)))))*AG$8))","v":1500000},{"$f":"(SUMPRODUCT(AH$9:AH$229,Nutrients!$ES$8:$ES$228)+(IF($A$7=Nutrients!$B$8,Nutrients!$ES$8,Nutrients!$ES$9)*AH$7)+(((IF($A$8=Nutrients!$B$79,Nutrients!$ES$79,(IF($A$8=Nutrients!$B$77,Nutrients!$ES$77,Nutrients!$ES$78)))))*AH$8))","v":1125000},{"$f":"(SUMPRODUCT(AI$9:AI$229,Nutrients!$ES$8:$ES$228)+(IF($A$7=Nutrients!$B$8,Nutrients!$ES$8,Nutrients!$ES$9)*AI$7)+(((IF($A$8=Nutrients!$B$79,Nutrients!$ES$79,(IF($A$8=Nutrients!$B$77,Nutrients!$ES$77,Nutrients!$ES$78)))))*AI$8))","v":1125000},null,{"$f":"(SUMPRODUCT(AK$9:AK$229,Nutrients!$ES$8:$ES$228)+(IF($A$7=Nutrients!$B$8,Nutrients!$ES$8,Nutrients!$ES$9)*AK$7)+(((IF($A$8=Nutrients!$B$79,Nutrients!$ES$79,(IF($A$8=Nutrients!$B$77,Nutrients!$ES$77,Nutrients!$ES$78)))))*AK$8))","v":2250000},{"$f":"(SUMPRODUCT(AL$9:AL$229,Nutrients!$ES$8:$ES$228)+(IF($A$7=Nutrients!$B$8,Nutrients!$ES$8,Nutrients!$ES$9)*AL$7)+(((IF($A$8=Nutrients!$B$79,Nutrients!$ES$79,(IF($A$8=Nutrients!$B$77,Nutrients!$ES$77,Nutrients!$ES$78)))))*AL$8))","v":2250000},{"$f":"(SUMPRODUCT(AM$9:AM$229,Nutrients!$ES$8:$ES$228)+(IF($A$7=Nutrients!$B$8,Nutrients!$ES$8,Nutrients!$ES$9)*AM$7)+(((IF($A$8=Nutrients!$B$79,Nutrients!$ES$79,(IF($A$8=Nutrients!$B$77,Nutrients!$ES$77,Nutrients!$ES$78)))))*AM$8))","v":1875000},{"$f":"(SUMPRODUCT(AN$9:AN$229,Nutrients!$ES$8:$ES$228)+(IF($A$7=Nutrients!$B$8,Nutrients!$ES$8,Nutrients!$ES$9)*AN$7)+(((IF($A$8=Nutrients!$B$79,Nutrients!$ES$79,(IF($A$8=Nutrients!$B$77,Nutrients!$ES$77,Nutrients!$ES$78)))))*AN$8))","v":1500000},{"$f":"(SUMPRODUCT(AO$9:AO$229,Nutrients!$ES$8:$ES$228)+(IF($A$7=Nutrients!$B$8,Nutrients!$ES$8,Nutrients!$ES$9)*AO$7)+(((IF($A$8=Nutrients!$B$79,Nutrients!$ES$79,(IF($A$8=Nutrients!$B$77,Nutrients!$ES$77,Nutrients!$ES$78)))))*AO$8))","v":1125000},{"$f":"(SUMPRODUCT(AP$9:AP$229,Nutrients!$ES$8:$ES$228)+(IF($A$7=Nutrients!$B$8,Nutrients!$ES$8,Nutrients!$ES$9)*AP$7)+(((IF($A$8=Nutrients!$B$79,Nutrients!$ES$79,(IF($A$8=Nutrients!$B$77,Nutrients!$ES$77,Nutrients!$ES$78)))))*AP$8))","v":1125000},null,{"$f":"(SUMPRODUCT(AR$9:AR$229,Nutrients!$ES$8:$ES$228)+(IF($A$7=Nutrients!$B$8,Nutrients!$ES$8,Nutrients!$ES$9)*AR$7)+(((IF($A$8=Nutrients!$B$79,Nutrients!$ES$79,(IF($A$8=Nutrients!$B$77,Nutrients!$ES$77,Nutrients!$ES$78)))))*AR$8))","v":2250000},{"$f":"(SUMPRODUCT(AS$9:AS$229,Nutrients!$ES$8:$ES$228)+(IF($A$7=Nutrients!$B$8,Nutrients!$ES$8,Nutrients!$ES$9)*AS$7)+(((IF($A$8=Nutrients!$B$79,Nutrients!$ES$79,(IF($A$8=Nutrients!$B$77,Nutrients!$ES$77,Nutrients!$ES$78)))))*AS$8))","v":2250000},{"$f":"(SUMPRODUCT(AT$9:AT$229,Nutrients!$ES$8:$ES$228)+(IF($A$7=Nutrients!$B$8,Nutrients!$ES$8,Nutrients!$ES$9)*AT$7)+(((IF($A$8=Nutrients!$B$79,Nutrients!$ES$79,(IF($A$8=Nutrients!$B$77,Nutrients!$ES$77,Nutrients!$ES$78)))))*AT$8))","v":1875000},{"$f":"(SUMPRODUCT(AU$9:AU$229,Nutrients!$ES$8:$ES$228)+(IF($A$7=Nutrients!$B$8,Nutrients!$ES$8,Nutrients!$ES$9)*AU$7)+(((IF($A$8=Nutrients!$B$79,Nutrients!$ES$79,(IF($A$8=Nutrients!$B$77,Nutrients!$ES$77,Nutrients!$ES$78)))))*AU$8))","v":1500000},{"$f":"(SUMPRODUCT(AV$9:AV$229,Nutrients!$ES$8:$ES$228)+(IF($A$7=Nutrients!$B$8,Nutrients!$ES$8,Nutrients!$ES$9)*AV$7)+(((IF($A$8=Nutrients!$B$79,Nutrients!$ES$79,(IF($A$8=Nutrients!$B$77,Nutrients!$ES$77,Nutrients!$ES$78)))))*AV$8))","v":1125000},{"$f":"(SUMPRODUCT(AW$9:AW$229,Nutrients!$ES$8:$ES$228)+(IF($A$7=Nutrients!$B$8,Nutrients!$ES$8,Nutrients!$ES$9)*AW$7)+(((IF($A$8=Nutrients!$B$79,Nutrients!$ES$79,(IF($A$8=Nutrients!$B$77,Nutrients!$ES$77,Nutrients!$ES$78)))))*AW$8))","v":1125000}]
["  Vit D, IU/ton",{"$f":"(SUMPRODUCT(B$9:B$229,Nutrients!$ET$8:$ET$228)+(IF($A$7=Nutrients!$B$8,Nutrients!$ET$8,Nutrients!$ET$9)*B$7)+(((IF($A$8=Nutrients!$B$79,Nutrients!$ET$79,(IF($A$8=Nutrients!$B$77,Nutrients!$ET$77,Nutrients!$ET$78)))))*B$8))","v":900000},{"$f":"(SUMPRODUCT(C$9:C$229,Nutrients!$ET$8:$ET$228)+(IF($A$7=Nutrients!$B$8,Nutrients!$ET$8,Nutrients!$ET$9)*C$7)+(((IF($A$8=Nutrients!$B$79,Nutrients!$ET$79,(IF($A$8=Nutrients!$B$77,Nutrients!$ET$77,Nutrients!$ET$78)))))*C$8))","v":900000},{"$f":"(SUMPRODUCT(D$9:D$229,Nutrients!$ET$8:$ET$228)+(IF($A$7=Nutrients!$B$8,Nutrients!$ET$8,Nutrients!$ET$9)*D$7)+(((IF($A$8=Nutrients!$B$79,Nutrients!$ET$79,(IF($A$8=Nutrients!$B$77,Nutrients!$ET$77,Nutrients!$ET$78)))))*D$8))","v":750000},{"$f":"(SUMPRODUCT(E$9:E$229,Nutrients!$ET$8:$ET$228)+(IF($A$7=Nutrients!$B$8,Nutrients!$ET$8,Nutrients!$ET$9)*E$7)+(((IF($A$8=Nutrients!$B$79,Nutrients!$ET$79,(IF($A$8=Nutrients!$B$77,Nutrients!$ET$77,Nutrients!$ET$78)))))*E$8))","v":600000},{"$f":"(SUMPRODUCT(F$9:F$229,Nutrients!$ET$8:$ET$228)+(IF($A$7=Nutrients!$B$8,Nutrients!$ET$8,Nutrients!$ET$9)*F$7)+(((IF($A$8=Nutrients!$B$79,Nutrients!$ET$79,(IF($A$8=Nutrients!$B$77,Nutrients!$ET$77,Nutrients!$ET$78)))))*F$8))","v":450000},{"$f":"(SUMPRODUCT(G$9:G$229,Nutrients!$ET$8:$ET$228)+(IF($A$7=Nutrients!$B$8,Nutrients!$ET$8,Nutrients!$ET$9)*G$7)+(((IF($A$8=Nutrients!$B$79,Nutrients!$ET$79,(IF($A$8=Nutrients!$B$77,Nutrients!$ET$77,Nutrients!$ET$78)))))*G$8))","v":450000},null,{"$f":"(SUMPRODUCT(I$9:I$229,Nutrients!$ET$8:$ET$228)+(IF($A$7=Nutrients!$B$8,Nutrients!$ET$8,Nutrients!$ET$9)*I$7)+(((IF($A$8=Nutrients!$B$79,Nutrients!$ET$79,(IF($A$8=Nutrients!$B$77,Nutrients!$ET$77,Nutrients!$ET$78)))))*I$8))","v":900000},{"$f":"(SUMPRODUCT(J$9:J$229,Nutrients!$ET$8:$ET$228)+(IF($A$7=Nutrients!$B$8,Nutrients!$ET$8,Nutrients!$ET$9)*J$7)+(((IF($A$8=Nutrients!$B$79,Nutrients!$ET$79,(IF($A$8=Nutrients!$B$77,Nutrients!$ET$77,Nutrients!$ET$78)))))*J$8))","v":900000},{"$f":"(SUMPRODUCT(K$9:K$229,Nutrients!$ET$8:$ET$228)+(IF($A$7=Nutrients!$B$8,Nutrients!$ET$8,Nutrients!$ET$9)*K$7)+(((IF($A$8=Nutrients!$B$79,Nutrients!$ET$79,(IF($A$8=Nutrients!$B$77,Nutrients!$ET$77,Nutrients!$ET$78)))))*K$8))","v":750000},{"$f":"(SUMPRODUCT(L$9:L$229,Nutrients!$ET$8:$ET$228)+(IF($A$7=Nutrients!$B$8,Nutrients!$ET$8,Nutrients!$ET$9)*L$7)+(((IF($A$8=Nutrients!$B$79,Nutrients!$ET$79,(IF($A$8=Nutrients!$B$77,Nutrients!$ET$77,Nutrients!$ET$78)))))*L$8))","v":600000},{"$f":"(SUMPRODUCT(M$9:M$229,Nutrients!$ET$8:$ET$228)+(IF($A$7=Nutrients!$B$8,Nutrients!$ET$8,Nutrients!$ET$9)*M$7)+(((IF($A$8=Nutrients!$B$79,Nutrients!$ET$79,(IF($A$8=Nutrients!$B$77,Nutrients!$ET$77,Nutrients!$ET$78)))))*M$8))","v":450000},{"$f":"(SUMPRODUCT(N$9:N$229,Nutrients!$ET$8:$ET$228)+(IF($A$7=Nutrients!$B$8,Nutrients!$ET$8,Nutrients!$ET$9)*N$7)+(((IF($A$8=Nutrients!$B$79,Nutrients!$ET$79,(IF($A$8=Nutrients!$B$77,Nutrients!$ET$77,Nutrients!$ET$78)))))*N$8))","v":450000},null,{"$f":"(SUMPRODUCT(P$9:P$229,Nutrients!$ET$8:$ET$228)+(IF($A$7=Nutrients!$B$8,Nutrients!$ET$8,Nutrients!$ET$9)*P$7)+(((IF($A$8=Nutrients!$B$79,Nutrients!$ET$79,(IF($A$8=Nutrients!$B$77,Nutrients!$ET$77,Nutrients!$ET$78)))))*P$8))","v":900000},{"$f":"(SUMPRODUCT(Q$9:Q$229,Nutrients!$ET$8:$ET$228)+(IF($A$7=Nutrients!$B$8,Nutrients!$ET$8,Nutrients!$ET$9)*Q$7)+(((IF($A$8=Nutrients!$B$79,Nutrients!$ET$79,(IF($A$8=Nutrients!$B$77,Nutrients!$ET$77,Nutrients!$ET$78)))))*Q$8))","v":900000},{"$f":"(SUMPRODUCT(R$9:R$229,Nutrients!$ET$8:$ET$228)+(IF($A$7=Nutrients!$B$8,Nutrients!$ET$8,Nutrients!$ET$9)*R$7)+(((IF($A$8=Nutrients!$B$79,Nutrients!$ET$79,(IF($A$8=Nutrients!$B$77,Nutrients!$ET$77,Nutrients!$ET$78)))))*R$8))","v":750000},{"$f":"(SUMPRODUCT(S$9:S$229,Nutrients!$ET$8:$ET$228)+(IF($A$7=Nutrients!$B$8,Nutrients!$ET$8,Nutrients!$ET$9)*S$7)+(((IF($A$8=Nutrients!$B$79,Nutrients!$ET$79,(IF($A$8=Nutrients!$B$77,Nutrients!$ET$77,Nutrients!$ET$78)))))*S$8))","v":600000},{"$f":"(SUMPRODUCT(T$9:T$229,Nutrients!$ET$8:$ET$228)+(IF($A$7=Nutrients!$B$8,Nutrients!$ET$8,Nutrients!$ET$9)*T$7)+(((IF($A$8=Nutrients!$B$79,Nutrients!$ET$79,(IF($A$8=Nutrients!$B$77,Nutrients!$ET$77,Nutrients!$ET$78)))))*T$8))","v":450000},{"$f":"(SUMPRODUCT(U$9:U$229,Nutrients!$ET$8:$ET$228)+(IF($A$7=Nutrients!$B$8,Nutrients!$ET$8,Nutrients!$ET$9)*U$7)+(((IF($A$8=Nutrients!$B$79,Nutrients!$ET$79,(IF($A$8=Nutrients!$B$77,Nutrients!$ET$77,Nutrients!$ET$78)))))*U$8))","v":450000},null,{"$f":"(SUMPRODUCT(W$9:W$229,Nutrients!$ET$8:$ET$228)+(IF($A$7=Nutrients!$B$8,Nutrients!$ET$8,Nutrients!$ET$9)*W$7)+(((IF($A$8=Nutrients!$B$79,Nutrients!$ET$79,(IF($A$8=Nutrients!$B$77,Nutrients!$ET$77,Nutrients!$ET$78)))))*W$8))","v":900000},{"$f":"(SUMPRODUCT(X$9:X$229,Nutrients!$ET$8:$ET$228)+(IF($A$7=Nutrients!$B$8,Nutrients!$ET$8,Nutrients!$ET$9)*X$7)+(((IF($A$8=Nutrients!$B$79,Nutrients!$ET$79,(IF($A$8=Nutrients!$B$77,Nutrients!$ET$77,Nutrients!$ET$78)))))*X$8))","v":900000},{"$f":"(SUMPRODUCT(Y$9:Y$229,Nutrients!$ET$8:$ET$228)+(IF($A$7=Nutrients!$B$8,Nutrients!$ET$8,Nutrients!$ET$9)*Y$7)+(((IF($A$8=Nutrients!$B$79,Nutrients!$ET$79,(IF($A$8=Nutrients!$B$77,Nutrients!$ET$77,Nutrients!$ET$78)))))*Y$8))","v":750000},{"$f":"(SUMPRODUCT(Z$9:Z$229,Nutrients!$ET$8:$ET$228)+(IF($A$7=Nutrients!$B$8,Nutrients!$ET$8,Nutrients!$ET$9)*Z$7)+(((IF($A$8=Nutrients!$B$79,Nutrients!$ET$79,(IF($A$8=Nutrients!$B$77,Nutrients!$ET$77,Nutrients!$ET$78)))))*Z$8))","v":600000},{"$f":"(SUMPRODUCT(AA$9:AA$229,Nutrients!$ET$8:$ET$228)+(IF($A$7=Nutrients!$B$8,Nutrients!$ET$8,Nutrients!$ET$9)*AA$7)+(((IF($A$8=Nutrients!$B$79,Nutrients!$ET$79,(IF($A$8=Nutrients!$B$77,Nutrients!$ET$77,Nutrients!$ET$78)))))*AA$8))","v":450000},{"$f":"(SUMPRODUCT(AB$9:AB$229,Nutrients!$ET$8:$ET$228)+(IF($A$7=Nutrients!$B$8,Nutrients!$ET$8,Nutrients!$ET$9)*AB$7)+(((IF($A$8=Nutrients!$B$79,Nutrients!$ET$79,(IF($A$8=Nutrients!$B$77,Nutrients!$ET$77,Nutrients!$ET$78)))))*AB$8))","v":450000},null,{"$f":"(SUMPRODUCT(AD$9:AD$229,Nutrients!$ET$8:$ET$228)+(IF($A$7=Nutrients!$B$8,Nutrients!$ET$8,Nutrients!$ET$9)*AD$7)+(((IF($A$8=Nutrients!$B$79,Nutrients!$ET$79,(IF($A$8=Nutrients!$B$77,Nutrients!$ET$77,Nutrients!$ET$78)))))*AD$8))","v":900000},{"$f":"(SUMPRODUCT(AE$9:AE$229,Nutrients!$ET$8:$ET$228)+(IF($A$7=Nutrients!$B$8,Nutrients!$ET$8,Nutrients!$ET$9)*AE$7)+(((IF($A$8=Nutrients!$B$79,Nutrients!$ET$79,(IF($A$8=Nutrients!$B$77,Nutrients!$ET$77,Nutrients!$ET$78)))))*AE$8))","v":900000},{"$f":"(SUMPRODUCT(AF$9:AF$229,Nutrients!$ET$8:$ET$228)+(IF($A$7=Nutrients!$B$8,Nutrients!$ET$8,Nutrients!$ET$9)*AF$7)+(((IF($A$8=Nutrients!$B$79,Nutrients!$ET$79,(IF($A$8=Nutrients!$B$77,Nutrients!$ET$77,Nutrients!$ET$78)))))*AF$8))","v":750000},{"$f":"(SUMPRODUCT(AG$9:AG$229,Nutrients!$ET$8:$ET$228)+(IF($A$7=Nutrients!$B$8,Nutrients!$ET$8,Nutrients!$ET$9)*AG$7)+(((IF($A$8=Nutrients!$B$79,Nutrients!$ET$79,(IF($A$8=Nutrients!$B$77,Nutrients!$ET$77,Nutrients!$ET$78)))))*AG$8))","v":600000},{"$f":"(SUMPRODUCT(AH$9:AH$229,Nutrients!$ET$8:$ET$228)+(IF($A$7=Nutrients!$B$8,Nutrients!$ET$8,Nutrients!$ET$9)*AH$7)+(((IF($A$8=Nutrients!$B$79,Nutrients!$ET$79,(IF($A$8=Nutrients!$B$77,Nutrients!$ET$77,Nutrients!$ET$78)))))*AH$8))","v":450000},{"$f":"(SUMPRODUCT(AI$9:AI$229,Nutrients!$ET$8:$ET$228)+(IF($A$7=Nutrients!$B$8,Nutrients!$ET$8,Nutrients!$ET$9)*AI$7)+(((IF($A$8=Nutrients!$B$79,Nutrients!$ET$79,(IF($A$8=Nutrients!$B$77,Nutrients!$ET$77,Nutrients!$ET$78)))))*AI$8))","v":450000},null,{"$f":"(SUMPRODUCT(AK$9:AK$229,Nutrients!$ET$8:$ET$228)+(IF($A$7=Nutrients!$B$8,Nutrients!$ET$8,Nutrients!$ET$9)*AK$7)+(((IF($A$8=Nutrients!$B$79,Nutrients!$ET$79,(IF($A$8=Nutrients!$B$77,Nutrients!$ET$77,Nutrients!$ET$78)))))*AK$8))","v":900000},{"$f":"(SUMPRODUCT(AL$9:AL$229,Nutrients!$ET$8:$ET$228)+(IF($A$7=Nutrients!$B$8,Nutrients!$ET$8,Nutrients!$ET$9)*AL$7)+(((IF($A$8=Nutrients!$B$79,Nutrients!$ET$79,(IF($A$8=Nutrients!$B$77,Nutrients!$ET$77,Nutrients!$ET$78)))))*AL$8))","v":900000},{"$f":"(SUMPRODUCT(AM$9:AM$229,Nutrients!$ET$8:$ET$228)+(IF($A$7=Nutrients!$B$8,Nutrients!$ET$8,Nutrients!$ET$9)*AM$7)+(((IF($A$8=Nutrients!$B$79,Nutrients!$ET$79,(IF($A$8=Nutrients!$B$77,Nutrients!$ET$77,Nutrients!$ET$78)))))*AM$8))","v":750000},{"$f":"(SUMPRODUCT(AN$9:AN$229,Nutrients!$ET$8:$ET$228)+(IF($A$7=Nutrients!$B$8,Nutrients!$ET$8,Nutrients!$ET$9)*AN$7)+(((IF($A$8=Nutrients!$B$79,Nutrients!$ET$79,(IF($A$8=Nutrients!$B$77,Nutrients!$ET$77,Nutrients!$ET$78)))))*AN$8))","v":600000},{"$f":"(SUMPRODUCT(AO$9:AO$229,Nutrients!$ET$8:$ET$228)+(IF($A$7=Nutrients!$B$8,Nutrients!$ET$8,Nutrients!$ET$9)*AO$7)+(((IF($A$8=Nutrients!$B$79,Nutrients!$ET$79,(IF($A$8=Nutrients!$B$77,Nutrients!$ET$77,Nutrients!$ET$78)))))*AO$8))","v":450000},{"$f":"(SUMPRODUCT(AP$9:AP$229,Nutrients!$ET$8:$ET$228)+(IF($A$7=Nutrients!$B$8,Nutrients!$ET$8,Nutrients!$ET$9)*AP$7)+(((IF($A$8=Nutrients!$B$79,Nutrients!$ET$79,(IF($A$8=Nutrients!$B$77,Nutrients!$ET$77,Nutrients!$ET$78)))))*AP$8))","v":450000},null,{"$f":"(SUMPRODUCT(AR$9:AR$229,Nutrients!$ET$8:$ET$228)+(IF($A$7=Nutrients!$B$8,Nutrients!$ET$8,Nutrients!$ET$9)*AR$7)+(((IF($A$8=Nutrients!$B$79,Nutrients!$ET$79,(IF($A$8=Nutrients!$B$77,Nutrients!$ET$77,Nutrients!$ET$78)))))*AR$8))","v":900000},{"$f":"(SUMPRODUCT(AS$9:AS$229,Nutrients!$ET$8:$ET$228)+(IF($A$7=Nutrients!$B$8,Nutrients!$ET$8,Nutrients!$ET$9)*AS$7)+(((IF($A$8=Nutrients!$B$79,Nutrients!$ET$79,(IF($A$8=Nutrients!$B$77,Nutrients!$ET$77,Nutrients!$ET$78)))))*AS$8))","v":900000},{"$f":"(SUMPRODUCT(AT$9:AT$229,Nutrients!$ET$8:$ET$228)+(IF($A$7=Nutrients!$B$8,Nutrients!$ET$8,Nutrients!$ET$9)*AT$7)+(((IF($A$8=Nutrients!$B$79,Nutrients!$ET$79,(IF($A$8=Nutrients!$B$77,Nutrients!$ET$77,Nutrients!$ET$78)))))*AT$8))","v":750000},{"$f":"(SUMPRODUCT(AU$9:AU$229,Nutrients!$ET$8:$ET$228)+(IF($A$7=Nutrients!$B$8,Nutrients!$ET$8,Nutrients!$ET$9)*AU$7)+(((IF($A$8=Nutrients!$B$79,Nutrients!$ET$79,(IF($A$8=Nutrients!$B$77,Nutrients!$ET$77,Nutrients!$ET$78)))))*AU$8))","v":600000},{"$f":"(SUMPRODUCT(AV$9:AV$229,Nutrients!$ET$8:$ET$228)+(IF($A$7=Nutrients!$B$8,Nutrients!$ET$8,Nutrients!$ET$9)*AV$7)+(((IF($A$8=Nutrients!$B$79,Nutrients!$ET$79,(IF($A$8=Nutrients!$B$77,Nutrients!$ET$77,Nutrients!$ET$78)))))*AV$8))","v":450000},{"$f":"(SUMPRODUCT(AW$9:AW$229,Nutrients!$ET$8:$ET$228)+(IF($A$7=Nutrients!$B$8,Nutrients!$ET$8,Nutrients!$ET$9)*AW$7)+(((IF($A$8=Nutrients!$B$79,Nutrients!$ET$79,(IF($A$8=Nutrients!$B$77,Nutrients!$ET$77,Nutrients!$ET$78)))))*AW$8))","v":450000}]
["  Vit E, IU/ton",{"$f":"(SUMPRODUCT(B$9:B$229,Nutrients!$EU$8:$EU$228)+(IF($A$7=Nutrients!$B$8,Nutrients!$EU$8,Nutrients!$EU$9)*B$7)+(((IF($A$8=Nutrients!$B$79,Nutrients!$EU$79,(IF($A$8=Nutrients!$B$77,Nutrients!$EU$77,Nutrients!$EU$78)))))*B$8))","v":24000},{"$f":"(SUMPRODUCT(C$9:C$229,Nutrients!$EU$8:$EU$228)+(IF($A$7=Nutrients!$B$8,Nutrients!$EU$8,Nutrients!$EU$9)*C$7)+(((IF($A$8=Nutrients!$B$79,Nutrients!$EU$79,(IF($A$8=Nutrients!$B$77,Nutrients!$EU$77,Nutrients!$EU$78)))))*C$8))","v":24000},{"$f":"(SUMPRODUCT(D$9:D$229,Nutrients!$EU$8:$EU$228)+(IF($A$7=Nutrients!$B$8,Nutrients!$EU$8,Nutrients!$EU$9)*D$7)+(((IF($A$8=Nutrients!$B$79,Nutrients!$EU$79,(IF($A$8=Nutrients!$B$77,Nutrients!$EU$77,Nutrients!$EU$78)))))*D$8))","v":20000},{"$f":"(SUMPRODUCT(E$9:E$229,Nutrients!$EU$8:$EU$228)+(IF($A$7=Nutrients!$B$8,Nutrients!$EU$8,Nutrients!$EU$9)*E$7)+(((IF($A$8=Nutrients!$B$79,Nutrients!$EU$79,(IF($A$8=Nutrients!$B$77,Nutrients!$EU$77,Nutrients!$EU$78)))))*E$8))","v":16000},{"$f":"(SUMPRODUCT(F$9:F$229,Nutrients!$EU$8:$EU$228)+(IF($A$7=Nutrients!$B$8,Nutrients!$EU$8,Nutrients!$EU$9)*F$7)+(((IF($A$8=Nutrients!$B$79,Nutrients!$EU$79,(IF($A$8=Nutrients!$B$77,Nutrients!$EU$77,Nutrients!$EU$78)))))*F$8))","v":12000},{"$f":"(SUMPRODUCT(G$9:G$229,Nutrients!$EU$8:$EU$228)+(IF($A$7=Nutrients!$B$8,Nutrients!$EU$8,Nutrients!$EU$9)*G$7)+(((IF($A$8=Nutrients!$B$79,Nutrients!$EU$79,(IF($A$8=Nutrients!$B$77,Nutrients!$EU$77,Nutrients!$EU$78)))))*G$8))","v":12000},null,{"$f":"(SUMPRODUCT(I$9:I$229,Nutrients!$EU$8:$EU$228)+(IF($A$7=Nutrients!$B$8,Nutrients!$EU$8,Nutrients!$EU$9)*I$7)+(((IF($A$8=Nutrients!$B$79,Nutrients!$EU$79,(IF($A$8=Nutrients!$B$77,Nutrients!$EU$77,Nutrients!$EU$78)))))*I$8))","v":24000},{"$f":"(SUMPRODUCT(J$9:J$229,Nutrients!$EU$8:$EU$228)+(IF($A$7=Nutrients!$B$8,Nutrients!$EU$8,Nutrients!$EU$9)*J$7)+(((IF($A$8=Nutrients!$B$79,Nutrients!$EU$79,(IF($A$8=Nutrients!$B$77,Nutrients!$EU$77,Nutrients!$EU$78)))))*J$8))","v":24000},{"$f":"(SUMPRODUCT(K$9:K$229,Nutrients!$EU$8:$EU$228)+(IF($A$7=Nutrients!$B$8,Nutrients!$EU$8,Nutrients!$EU$9)*K$7)+(((IF($A$8=Nutrients!$B$79,Nutrients!$EU$79,(IF($A$8=Nutrients!$B$77,Nutrients!$EU$77,Nutrients!$EU$78)))))*K$8))","v":20000},{"$f":"(SUMPRODUCT(L$9:L$229,Nutrients!$EU$8:$EU$228)+(IF($A$7=Nutrients!$B$8,Nutrients!$EU$8,Nutrients!$EU$9)*L$7)+(((IF($A$8=Nutrients!$B$79,Nutrients!$EU$79,(IF($A$8=Nutrients!$B$77,Nutrients!$EU$77,Nutrients!$EU$78)))))*L$8))","v":16000},{"$f":"(SUMPRODUCT(M$9:M$229,Nutrients!$EU$8:$EU$228)+(IF($A$7=Nutrients!$B$8,Nutrients!$EU$8,Nutrients!$EU$9)*M$7)+(((IF($A$8=Nutrients!$B$79,Nutrients!$EU$79,(IF($A$8=Nutrients!$B$77,Nutrients!$EU$77,Nutrients!$EU$78)))))*M$8))","v":12000},{"$f":"(SUMPRODUCT(N$9:N$229,Nutrients!$EU$8:$EU$228)+(IF($A$7=Nutrients!$B$8,Nutrients!$EU$8,Nutrients!$EU$9)*N$7)+(((IF($A$8=Nutrients!$B$79,Nutrients!$EU$79,(IF($A$8=Nutrients!$B$77,Nutrients!$EU$77,Nutrients!$EU$78)))))*N$8))","v":12000},null,{"$f":"(SUMPRODUCT(P$9:P$229,Nutrients!$EU$8:$EU$228)+(IF($A$7=Nutrients!$B$8,Nutrients!$EU$8,Nutrients!$EU$9)*P$7)+(((IF($A$8=Nutrients!$B$79,Nutrients!$EU$79,(IF($A$8=Nutrients!$B$77,Nutrients!$EU$77,Nutrients!$EU$78)))))*P$8))","v":24000},{"$f":"(SUMPRODUCT(Q$9:Q$229,Nutrients!$EU$8:$EU$228)+(IF($A$7=Nutrients!$B$8,Nutrients!$EU$8,Nutrients!$EU$9)*Q$7)+(((IF($A$8=Nutrients!$B$79,Nutrients!$EU$79,(IF($A$8=Nutrients!$B$77,Nutrients!$EU$77,Nutrients!$EU$78)))))*Q$8))","v":24000},{"$f":"(SUMPRODUCT(R$9:R$229,Nutrients!$EU$8:$EU$228)+(IF($A$7=Nutrients!$B$8,Nutrients!$EU$8,Nutrients!$EU$9)*R$7)+(((IF($A$8=Nutrients!$B$79,Nutrients!$EU$79,(IF($A$8=Nutrients!$B$77,Nutrients!$EU$77,Nutrients!$EU$78)))))*R$8))","v":20000},{"$f":"(SUMPRODUCT(S$9:S$229,Nutrients!$EU$8:$EU$228)+(IF($A$7=Nutrients!$B$8,Nutrients!$EU$8,Nutrients!$EU$9)*S$7)+(((IF($A$8=Nutrients!$B$79,Nutrients!$EU$79,(IF($A$8=Nutrients!$B$77,Nutrients!$EU$77,Nutrients!$EU$78)))))*S$8))","v":16000},{"$f":"(SUMPRODUCT(T$9:T$229,Nutrients!$EU$8:$EU$228)+(IF($A$7=Nutrients!$B$8,Nutrients!$EU$8,Nutrients!$EU$9)*T$7)+(((IF($A$8=Nutrients!$B$79,Nutrients!$EU$79,(IF($A$8=Nutrients!$B$77,Nutrients!$EU$77,Nutrients!$EU$78)))))*T$8))","v":12000},{"$f":"(SUMPRODUCT(U$9:U$229,Nutrients!$EU$8:$EU$228)+(IF($A$7=Nutrients!$B$8,Nutrients!$EU$8,Nutrients!$EU$9)*U$7)+(((IF($A$8=Nutrients!$B$79,Nutrients!$EU$79,(IF($A$8=Nutrients!$B$77,Nutrients!$EU$77,Nutrients!$EU$78)))))*U$8))","v":12000},null,{"$f":"(SUMPRODUCT(W$9:W$229,Nutrients!$EU$8:$EU$228)+(IF($A$7=Nutrients!$B$8,Nutrients!$EU$8,Nutrients!$EU$9)*W$7)+(((IF($A$8=Nutrients!$B$79,Nutrients!$EU$79,(IF($A$8=Nutrients!$B$77,Nutrients!$EU$77,Nutrients!$EU$78)))))*W$8))","v":24000},{"$f":"(SUMPRODUCT(X$9:X$229,Nutrients!$EU$8:$EU$228)+(IF($A$7=Nutrients!$B$8,Nutrients!$EU$8,Nutrients!$EU$9)*X$7)+(((IF($A$8=Nutrients!$B$79,Nutrients!$EU$79,(IF($A$8=Nutrients!$B$77,Nutrients!$EU$77,Nutrients!$EU$78)))))*X$8))","v":24000},{"$f":"(SUMPRODUCT(Y$9:Y$229,Nutrients!$EU$8:$EU$228)+(IF($A$7=Nutrients!$B$8,Nutrients!$EU$8,Nutrients!$EU$9)*Y$7)+(((IF($A$8=Nutrients!$B$79,Nutrients!$EU$79,(IF($A$8=Nutrients!$B$77,Nutrients!$EU$77,Nutrients!$EU$78)))))*Y$8))","v":20000},{"$f":"(SUMPRODUCT(Z$9:Z$229,Nutrients!$EU$8:$EU$228)+(IF($A$7=Nutrients!$B$8,Nutrients!$EU$8,Nutrients!$EU$9)*Z$7)+(((IF($A$8=Nutrients!$B$79,Nutrients!$EU$79,(IF($A$8=Nutrients!$B$77,Nutrients!$EU$77,Nutrients!$EU$78)))))*Z$8))","v":16000},{"$f":"(SUMPRODUCT(AA$9:AA$229,Nutrients!$EU$8:$EU$228)+(IF($A$7=Nutrients!$B$8,Nutrients!$EU$8,Nutrients!$EU$9)*AA$7)+(((IF($A$8=Nutrients!$B$79,Nutrients!$EU$79,(IF($A$8=Nutrients!$B$77,Nutrients!$EU$77,Nutrients!$EU$78)))))*AA$8))","v":12000},{"$f":"(SUMPRODUCT(AB$9:AB$229,Nutrients!$EU$8:$EU$228)+(IF($A$7=Nutrients!$B$8,Nutrients!$EU$8,Nutrients!$EU$9)*AB$7)+(((IF($A$8=Nutrients!$B$79,Nutrients!$EU$79,(IF($A$8=Nutrients!$B$77,Nutrients!$EU$77,Nutrients!$EU$78)))))*AB$8))","v":12000},null,{"$f":"(SUMPRODUCT(AD$9:AD$229,Nutrients!$EU$8:$EU$228)+(IF($A$7=Nutrients!$B$8,Nutrients!$EU$8,Nutrients!$EU$9)*AD$7)+(((IF($A$8=Nutrients!$B$79,Nutrients!$EU$79,(IF($A$8=Nutrients!$B$77,Nutrients!$EU$77,Nutrients!$EU$78)))))*AD$8))","v":24000},{"$f":"(SUMPRODUCT(AE$9:AE$229,Nutrients!$EU$8:$EU$228)+(IF($A$7=Nutrients!$B$8,Nutrients!$EU$8,Nutrients!$EU$9)*AE$7)+(((IF($A$8=Nutrients!$B$79,Nutrients!$EU$79,(IF($A$8=Nutrients!$B$77,Nutrients!$EU$77,Nutrients!$EU$78)))))*AE$8))","v":24000},{"$f":"(SUMPRODUCT(AF$9:AF$229,Nutrients!$EU$8:$EU$228)+(IF($A$7=Nutrients!$B$8,Nutrients!$EU$8,Nutrients!$EU$9)*AF$7)+(((IF($A$8=Nutrients!$B$79,Nutrients!$EU$79,(IF($A$8=Nutrients!$B$77,Nutrients!$EU$77,Nutrients!$EU$78)))))*AF$8))","v":20000},{"$f":"(SUMPRODUCT(AG$9:AG$229,Nutrients!$EU$8:$EU$228)+(IF($A$7=Nutrients!$B$8,Nutrients!$EU$8,Nutrients!$EU$9)*AG$7)+(((IF($A$8=Nutrients!$B$79,Nutrients!$EU$79,(IF($A$8=Nutrients!$B$77,Nutrients!$EU$77,Nutrients!$EU$78)))))*AG$8))","v":16000},{"$f":"(SUMPRODUCT(AH$9:AH$229,Nutrients!$EU$8:$EU$228)+(IF($A$7=Nutrients!$B$8,Nutrients!$EU$8,Nutrients!$EU$9)*AH$7)+(((IF($A$8=Nutrients!$B$79,Nutrients!$EU$79,(IF($A$8=Nutrients!$B$77,Nutrients!$EU$77,Nutrients!$EU$78)))))*AH$8))","v":12000},{"$f":"(SUMPRODUCT(AI$9:AI$229,Nutrients!$EU$8:$EU$228)+(IF($A$7=Nutrients!$B$8,Nutrients!$EU$8,Nutrients!$EU$9)*AI$7)+(((IF($A$8=Nutrients!$B$79,Nutrients!$EU$79,(IF($A$8=Nutrients!$B$77,Nutrients!$EU$77,Nutrients!$EU$78)))))*AI$8))","v":12000},null,{"$f":"(SUMPRODUCT(AK$9:AK$229,Nutrients!$EU$8:$EU$228)+(IF($A$7=Nutrients!$B$8,Nutrients!$EU$8,Nutrients!$EU$9)*AK$7)+(((IF($A$8=Nutrients!$B$79,Nutrients!$EU$79,(IF($A$8=Nutrients!$B$77,Nutrients!$EU$77,Nutrients!$EU$78)))))*AK$8))","v":24000},{"$f":"(SUMPRODUCT(AL$9:AL$229,Nutrients!$EU$8:$EU$228)+(IF($A$7=Nutrients!$B$8,Nutrients!$EU$8,Nutrients!$EU$9)*AL$7)+(((IF($A$8=Nutrients!$B$79,Nutrients!$EU$79,(IF($A$8=Nutrients!$B$77,Nutrients!$EU$77,Nutrients!$EU$78)))))*AL$8))","v":24000},{"$f":"(SUMPRODUCT(AM$9:AM$229,Nutrients!$EU$8:$EU$228)+(IF($A$7=Nutrients!$B$8,Nutrients!$EU$8,Nutrients!$EU$9)*AM$7)+(((IF($A$8=Nutrients!$B$79,Nutrients!$EU$79,(IF($A$8=Nutrients!$B$77,Nutrients!$EU$77,Nutrients!$EU$78)))))*AM$8))","v":20000},{"$f":"(SUMPRODUCT(AN$9:AN$229,Nutrients!$EU$8:$EU$228)+(IF($A$7=Nutrients!$B$8,Nutrients!$EU$8,Nutrients!$EU$9)*AN$7)+(((IF($A$8=Nutrients!$B$79,Nutrients!$EU$79,(IF($A$8=Nutrients!$B$77,Nutrients!$EU$77,Nutrients!$EU$78)))))*AN$8))","v":16000},{"$f":"(SUMPRODUCT(AO$9:AO$229,Nutrients!$EU$8:$EU$228)+(IF($A$7=Nutrients!$B$8,Nutrients!$EU$8,Nutrients!$EU$9)*AO$7)+(((IF($A$8=Nutrients!$B$79,Nutrients!$EU$79,(IF($A$8=Nutrients!$B$77,Nutrients!$EU$77,Nutrients!$EU$78)))))*AO$8))","v":12000},{"$f":"(SUMPRODUCT(AP$9:AP$229,Nutrients!$EU$8:$EU$228)+(IF($A$7=Nutrients!$B$8,Nutrients!$EU$8,Nutrients!$EU$9)*AP$7)+(((IF($A$8=Nutrients!$B$79,Nutrients!$EU$79,(IF($A$8=Nutrients!$B$77,Nutrients!$EU$77,Nutrients!$EU$78)))))*AP$8))","v":12000},null,{"$f":"(SUMPRODUCT(AR$9:AR$229,Nutrients!$EU$8:$EU$228)+(IF($A$7=Nutrients!$B$8,Nutrients!$EU$8,Nutrients!$EU$9)*AR$7)+(((IF($A$8=Nutrients!$B$79,Nutrients!$EU$79,(IF($A$8=Nutrients!$B$77,Nutrients!$EU$77,Nutrients!$EU$78)))))*AR$8))","v":24000},{"$f":"(SUMPRODUCT(AS$9:AS$229,Nutrients!$EU$8:$EU$228)+(IF($A$7=Nutrients!$B$8,Nutrients!$EU$8,Nutrients!$EU$9)*AS$7)+(((IF($A$8=Nutrients!$B$79,Nutrients!$EU$79,(IF($A$8=Nutrients!$B$77,Nutrients!$EU$77,Nutrients!$EU$78)))))*AS$8))","v":24000},{"$f":"(SUMPRODUCT(AT$9:AT$229,Nutrients!$EU$8:$EU$228)+(IF($A$7=Nutrients!$B$8,Nutrients!$EU$8,Nutrients!$EU$9)*AT$7)+(((IF($A$8=Nutrients!$B$79,Nutrients!$EU$79,(IF($A$8=Nutrients!$B$77,Nutrients!$EU$77,Nutrients!$EU$78)))))*AT$8))","v":20000},{"$f":"(SUMPRODUCT(AU$9:AU$229,Nutrients!$EU$8:$EU$228)+(IF($A$7=Nutrients!$B$8,Nutrients!$EU$8,Nutrients!$EU$9)*AU$7)+(((IF($A$8=Nutrients!$B$79,Nutrients!$EU$79,(IF($A$8=Nutrients!$B$77,Nutrients!$EU$77,Nutrients!$EU$78)))))*AU$8))","v":16000},{"$f":"(SUMPRODUCT(AV$9:AV$229,Nutrients!$EU$8:$EU$228)+(IF($A$7=Nutrients!$B$8,Nutrients!$EU$8,Nutrients!$EU$9)*AV$7)+(((IF($A$8=Nutrients!$B$79,Nutrients!$EU$79,(IF($A$8=Nutrients!$B$77,Nutrients!$EU$77,Nutrients!$EU$78)))))*AV$8))","v":12000},{"$f":"(SUMPRODUCT(AW$9:AW$229,Nutrients!$EU$8:$EU$228)+(IF($A$7=Nutrients!$B$8,Nutrients!$EU$8,Nutrients!$EU$9)*AW$7)+(((IF($A$8=Nutrients!$B$79,Nutrients!$EU$79,(IF($A$8=Nutrients!$B$77,Nutrients!$EU$77,Nutrients!$EU$78)))))*AW$8))","v":12000}]
["  Vit K (menadione), mg/ton",{"$f":"(SUMPRODUCT(B$9:B$229,Nutrients!$EV$8:$EV$228)+(IF($A$7=Nutrients!$B$8,Nutrients!$EV$8,Nutrients!$EV$9)*B$7)+(((IF($A$8=Nutrients!$B$79,Nutrients!$EV$79,(IF($A$8=Nutrients!$B$77,Nutrients!$EV$77,Nutrients!$EV$78)))))*B$8))","v":1800},{"$f":"(SUMPRODUCT(C$9:C$229,Nutrients!$EV$8:$EV$228)+(IF($A$7=Nutrients!$B$8,Nutrients!$EV$8,Nutrients!$EV$9)*C$7)+(((IF($A$8=Nutrients!$B$79,Nutrients!$EV$79,(IF($A$8=Nutrients!$B$77,Nutrients!$EV$77,Nutrients!$EV$78)))))*C$8))","v":1800},{"$f":"(SUMPRODUCT(D$9:D$229,Nutrients!$EV$8:$EV$228)+(IF($A$7=Nutrients!$B$8,Nutrients!$EV$8,Nutrients!$EV$9)*D$7)+(((IF($A$8=Nutrients!$B$79,Nutrients!$EV$79,(IF($A$8=Nutrients!$B$77,Nutrients!$EV$77,Nutrients!$EV$78)))))*D$8))","v":1500},{"$f":"(SUMPRODUCT(E$9:E$229,Nutrients!$EV$8:$EV$228)+(IF($A$7=Nutrients!$B$8,Nutrients!$EV$8,Nutrients!$EV$9)*E$7)+(((IF($A$8=Nutrients!$B$79,Nutrients!$EV$79,(IF($A$8=Nutrients!$B$77,Nutrients!$EV$77,Nutrients!$EV$78)))))*E$8))","v":1200},{"$f":"(SUMPRODUCT(F$9:F$229,Nutrients!$EV$8:$EV$228)+(IF($A$7=Nutrients!$B$8,Nutrients!$EV$8,Nutrients!$EV$9)*F$7)+(((IF($A$8=Nutrients!$B$79,Nutrients!$EV$79,(IF($A$8=Nutrients!$B$77,Nutrients!$EV$77,Nutrients!$EV$78)))))*F$8))","v":900},{"$f":"(SUMPRODUCT(G$9:G$229,Nutrients!$EV$8:$EV$228)+(IF($A$7=Nutrients!$B$8,Nutrients!$EV$8,Nutrients!$EV$9)*G$7)+(((IF($A$8=Nutrients!$B$79,Nutrients!$EV$79,(IF($A$8=Nutrients!$B$77,Nutrients!$EV$77,Nutrients!$EV$78)))))*G$8))","v":900},null,{"$f":"(SUMPRODUCT(I$9:I$229,Nutrients!$EV$8:$EV$228)+(IF($A$7=Nutrients!$B$8,Nutrients!$EV$8,Nutrients!$EV$9)*I$7)+(((IF($A$8=Nutrients!$B$79,Nutrients!$EV$79,(IF($A$8=Nutrients!$B$77,Nutrients!$EV$77,Nutrients!$EV$78)))))*I$8))","v":1800},{"$f":"(SUMPRODUCT(J$9:J$229,Nutrients!$EV$8:$EV$228)+(IF($A$7=Nutrients!$B$8,Nutrients!$EV$8,Nutrients!$EV$9)*J$7)+(((IF($A$8=Nutrients!$B$79,Nutrients!$EV$79,(IF($A$8=Nutrients!$B$77,Nutrients!$EV$77,Nutrients!$EV$78)))))*J$8))","v":1800},{"$f":"(SUMPRODUCT(K$9:K$229,Nutrients!$EV$8:$EV$228)+(IF($A$7=Nutrients!$B$8,Nutrients!$EV$8,Nutrients!$EV$9)*K$7)+(((IF($A$8=Nutrients!$B$79,Nutrients!$EV$79,(IF($A$8=Nutrients!$B$77,Nutrients!$EV$77,Nutrients!$EV$78)))))*K$8))","v":1500},{"$f":"(SUMPRODUCT(L$9:L$229,Nutrients!$EV$8:$EV$228)+(IF($A$7=Nutrients!$B$8,Nutrients!$EV$8,Nutrients!$EV$9)*L$7)+(((IF($A$8=Nutrients!$B$79,Nutrients!$EV$79,(IF($A$8=Nutrients!$B$77,Nutrients!$EV$77,Nutrients!$EV$78)))))*L$8))","v":1200},{"$f":"(SUMPRODUCT(M$9:M$229,Nutrients!$EV$8:$EV$228)+(IF($A$7=Nutrients!$B$8,Nutrients!$EV$8,Nutrients!$EV$9)*M$7)+(((IF($A$8=Nutrients!$B$79,Nutrients!$EV$79,(IF($A$8=Nutrients!$B$77,Nutrients!$EV$77,Nutrients!$EV$78)))))*M$8))","v":900},{"$f":"(SUMPRODUCT(N$9:N$229,Nutrients!$EV$8:$EV$228)+(IF($A$7=Nutrients!$B$8,Nutrients!$EV$8,Nutrients!$EV$9)*N$7)+(((IF($A$8=Nutrients!$B$79,Nutrients!$EV$79,(IF($A$8=Nutrients!$B$77,Nutrients!$EV$77,Nutrients!$EV$78)))))*N$8))","v":900},null,{"$f":"(SUMPRODUCT(P$9:P$229,Nutrients!$EV$8:$EV$228)+(IF($A$7=Nutrients!$B$8,Nutrients!$EV$8,Nutrients!$EV$9)*P$7)+(((IF($A$8=Nutrients!$B$79,Nutrients!$EV$79,(IF($A$8=Nutrients!$B$77,Nutrients!$EV$77,Nutrients!$EV$78)))))*P$8))","v":1800},{"$f":"(SUMPRODUCT(Q$9:Q$229,Nutrients!$EV$8:$EV$228)+(IF($A$7=Nutrients!$B$8,Nutrients!$EV$8,Nutrients!$EV$9)*Q$7)+(((IF($A$8=Nutrients!$B$79,Nutrients!$EV$79,(IF($A$8=Nutrients!$B$77,Nutrients!$EV$77,Nutrients!$EV$78)))))*Q$8))","v":1800},{"$f":"(SUMPRODUCT(R$9:R$229,Nutrients!$EV$8:$EV$228)+(IF($A$7=Nutrients!$B$8,Nutrients!$EV$8,Nutrients!$EV$9)*R$7)+(((IF($A$8=Nutrients!$B$79,Nutrients!$EV$79,(IF($A$8=Nutrients!$B$77,Nutrients!$EV$77,Nutrients!$EV$78)))))*R$8))","v":1500},{"$f":"(SUMPRODUCT(S$9:S$229,Nutrients!$EV$8:$EV$228)+(IF($A$7=Nutrients!$B$8,Nutrients!$EV$8,Nutrients!$EV$9)*S$7)+(((IF($A$8=Nutrients!$B$79,Nutrients!$EV$79,(IF($A$8=Nutrients!$B$77,Nutrients!$EV$77,Nutrients!$EV$78)))))*S$8))","v":1200},{"$f":"(SUMPRODUCT(T$9:T$229,Nutrients!$EV$8:$EV$228)+(IF($A$7=Nutrients!$B$8,Nutrients!$EV$8,Nutrients!$EV$9)*T$7)+(((IF($A$8=Nutrients!$B$79,Nutrients!$EV$79,(IF($A$8=Nutrients!$B$77,Nutrients!$EV$77,Nutrients!$EV$78)))))*T$8))","v":900},{"$f":"(SUMPRODUCT(U$9:U$229,Nutrients!$EV$8:$EV$228)+(IF($A$7=Nutrients!$B$8,Nutrients!$EV$8,Nutrients!$EV$9)*U$7)+(((IF($A$8=Nutrients!$B$79,Nutrients!$EV$79,(IF($A$8=Nutrients!$B$77,Nutrients!$EV$77,Nutrients!$EV$78)))))*U$8))","v":900},null,{"$f":"(SUMPRODUCT(W$9:W$229,Nutrients!$EV$8:$EV$228)+(IF($A$7=Nutrients!$B$8,Nutrients!$EV$8,Nutrients!$EV$9)*W$7)+(((IF($A$8=Nutrients!$B$79,Nutrients!$EV$79,(IF($A$8=Nutrients!$B$77,Nutrients!$EV$77,Nutrients!$EV$78)))))*W$8))","v":1800},{"$f":"(SUMPRODUCT(X$9:X$229,Nutrients!$EV$8:$EV$228)+(IF($A$7=Nutrients!$B$8,Nutrients!$EV$8,Nutrients!$EV$9)*X$7)+(((IF($A$8=Nutrients!$B$79,Nutrients!$EV$79,(IF($A$8=Nutrients!$B$77,Nutrients!$EV$77,Nutrients!$EV$78)))))*X$8))","v":1800},{"$f":"(SUMPRODUCT(Y$9:Y$229,Nutrients!$EV$8:$EV$228)+(IF($A$7=Nutrients!$B$8,Nutrients!$EV$8,Nutrients!$EV$9)*Y$7)+(((IF($A$8=Nutrients!$B$79,Nutrients!$EV$79,(IF($A$8=Nutrients!$B$77,Nutrients!$EV$77,Nutrients!$EV$78)))))*Y$8))","v":1500},{"$f":"(SUMPRODUCT(Z$9:Z$229,Nutrients!$EV$8:$EV$228)+(IF($A$7=Nutrients!$B$8,Nutrients!$EV$8,Nutrients!$EV$9)*Z$7)+(((IF($A$8=Nutrients!$B$79,Nutrients!$EV$79,(IF($A$8=Nutrients!$B$77,Nutrients!$EV$77,Nutrients!$EV$78)))))*Z$8))","v":1200},{"$f":"(SUMPRODUCT(AA$9:AA$229,Nutrients!$EV$8:$EV$228)+(IF($A$7=Nutrients!$B$8,Nutrients!$EV$8,Nutrients!$EV$9)*AA$7)+(((IF($A$8=Nutrients!$B$79,Nutrients!$EV$79,(IF($A$8=Nutrients!$B$77,Nutrients!$EV$77,Nutrients!$EV$78)))))*AA$8))","v":900},{"$f":"(SUMPRODUCT(AB$9:AB$229,Nutrients!$EV$8:$EV$228)+(IF($A$7=Nutrients!$B$8,Nutrients!$EV$8,Nutrients!$EV$9)*AB$7)+(((IF($A$8=Nutrients!$B$79,Nutrients!$EV$79,(IF($A$8=Nutrients!$B$77,Nutrients!$EV$77,Nutrients!$EV$78)))))*AB$8))","v":900},null,{"$f":"(SUMPRODUCT(AD$9:AD$229,Nutrients!$EV$8:$EV$228)+(IF($A$7=Nutrients!$B$8,Nutrients!$EV$8,Nutrients!$EV$9)*AD$7)+(((IF($A$8=Nutrients!$B$79,Nutrients!$EV$79,(IF($A$8=Nutrients!$B$77,Nutrients!$EV$77,Nutrients!$EV$78)))))*AD$8))","v":1800},{"$f":"(SUMPRODUCT(AE$9:AE$229,Nutrients!$EV$8:$EV$228)+(IF($A$7=Nutrients!$B$8,Nutrients!$EV$8,Nutrients!$EV$9)*AE$7)+(((IF($A$8=Nutrients!$B$79,Nutrients!$EV$79,(IF($A$8=Nutrients!$B$77,Nutrients!$EV$77,Nutrients!$EV$78)))))*AE$8))","v":1800},{"$f":"(SUMPRODUCT(AF$9:AF$229,Nutrients!$EV$8:$EV$228)+(IF($A$7=Nutrients!$B$8,Nutrients!$EV$8,Nutrients!$EV$9)*AF$7)+(((IF($A$8=Nutrients!$B$79,Nutrients!$EV$79,(IF($A$8=Nutrients!$B$77,Nutrients!$EV$77,Nutrients!$EV$78)))))*AF$8))","v":1500},{"$f":"(SUMPRODUCT(AG$9:AG$229,Nutrients!$EV$8:$EV$228)+(IF($A$7=Nutrients!$B$8,Nutrients!$EV$8,Nutrients!$EV$9)*AG$7)+(((IF($A$8=Nutrients!$B$79,Nutrients!$EV$79,(IF($A$8=Nutrients!$B$77,Nutrients!$EV$77,Nutrients!$EV$78)))))*AG$8))","v":1200},{"$f":"(SUMPRODUCT(AH$9:AH$229,Nutrients!$EV$8:$EV$228)+(IF($A$7=Nutrients!$B$8,Nutrients!$EV$8,Nutrients!$EV$9)*AH$7)+(((IF($A$8=Nutrients!$B$79,Nutrients!$EV$79,(IF($A$8=Nutrients!$B$77,Nutrients!$EV$77,Nutrients!$EV$78)))))*AH$8))","v":900},{"$f":"(SUMPRODUCT(AI$9:AI$229,Nutrients!$EV$8:$EV$228)+(IF($A$7=Nutrients!$B$8,Nutrients!$EV$8,Nutrients!$EV$9)*AI$7)+(((IF($A$8=Nutrients!$B$79,Nutrients!$EV$79,(IF($A$8=Nutrients!$B$77,Nutrients!$EV$77,Nutrients!$EV$78)))))*AI$8))","v":900},null,{"$f":"(SUMPRODUCT(AK$9:AK$229,Nutrients!$EV$8:$EV$228)+(IF($A$7=Nutrients!$B$8,Nutrients!$EV$8,Nutrients!$EV$9)*AK$7)+(((IF($A$8=Nutrients!$B$79,Nutrients!$EV$79,(IF($A$8=Nutrients!$B$77,Nutrients!$EV$77,Nutrients!$EV$78)))))*AK$8))","v":1800},{"$f":"(SUMPRODUCT(AL$9:AL$229,Nutrients!$EV$8:$EV$228)+(IF($A$7=Nutrients!$B$8,Nutrients!$EV$8,Nutrients!$EV$9)*AL$7)+(((IF($A$8=Nutrients!$B$79,Nutrients!$EV$79,(IF($A$8=Nutrients!$B$77,Nutrients!$EV$77,Nutrients!$EV$78)))))*AL$8))","v":1800},{"$f":"(SUMPRODUCT(AM$9:AM$229,Nutrients!$EV$8:$EV$228)+(IF($A$7=Nutrients!$B$8,Nutrients!$EV$8,Nutrients!$EV$9)*AM$7)+(((IF($A$8=Nutrients!$B$79,Nutrients!$EV$79,(IF($A$8=Nutrients!$B$77,Nutrients!$EV$77,Nutrients!$EV$78)))))*AM$8))","v":1500},{"$f":"(SUMPRODUCT(AN$9:AN$229,Nutrients!$EV$8:$EV$228)+(IF($A$7=Nutrients!$B$8,Nutrients!$EV$8,Nutrients!$EV$9)*AN$7)+(((IF($A$8=Nutrients!$B$79,Nutrients!$EV$79,(IF($A$8=Nutrients!$B$77,Nutrients!$EV$77,Nutrients!$EV$78)))))*AN$8))","v":1200},{"$f":"(SUMPRODUCT(AO$9:AO$229,Nutrients!$EV$8:$EV$228)+(IF($A$7=Nutrients!$B$8,Nutrients!$EV$8,Nutrients!$EV$9)*AO$7)+(((IF($A$8=Nutrients!$B$79,Nutrients!$EV$79,(IF($A$8=Nutrients!$B$77,Nutrients!$EV$77,Nutrients!$EV$78)))))*AO$8))","v":900},{"$f":"(SUMPRODUCT(AP$9:AP$229,Nutrients!$EV$8:$EV$228)+(IF($A$7=Nutrients!$B$8,Nutrients!$EV$8,Nutrients!$EV$9)*AP$7)+(((IF($A$8=Nutrients!$B$79,Nutrients!$EV$79,(IF($A$8=Nutrients!$B$77,Nutrients!$EV$77,Nutrients!$EV$78)))))*AP$8))","v":900},null,{"$f":"(SUMPRODUCT(AR$9:AR$229,Nutrients!$EV$8:$EV$228)+(IF($A$7=Nutrients!$B$8,Nutrients!$EV$8,Nutrients!$EV$9)*AR$7)+(((IF($A$8=Nutrients!$B$79,Nutrients!$EV$79,(IF($A$8=Nutrients!$B$77,Nutrients!$EV$77,Nutrients!$EV$78)))))*AR$8))","v":1800},{"$f":"(SUMPRODUCT(AS$9:AS$229,Nutrients!$EV$8:$EV$228)+(IF($A$7=Nutrients!$B$8,Nutrients!$EV$8,Nutrients!$EV$9)*AS$7)+(((IF($A$8=Nutrients!$B$79,Nutrients!$EV$79,(IF($A$8=Nutrients!$B$77,Nutrients!$EV$77,Nutrients!$EV$78)))))*AS$8))","v":1800},{"$f":"(SUMPRODUCT(AT$9:AT$229,Nutrients!$EV$8:$EV$228)+(IF($A$7=Nutrients!$B$8,Nutrients!$EV$8,Nutrients!$EV$9)*AT$7)+(((IF($A$8=Nutrients!$B$79,Nutrients!$EV$79,(IF($A$8=Nutrients!$B$77,Nutrients!$EV$77,Nutrients!$EV$78)))))*AT$8))","v":1500},{"$f":"(SUMPRODUCT(AU$9:AU$229,Nutrients!$EV$8:$EV$228)+(IF($A$7=Nutrients!$B$8,Nutrients!$EV$8,Nutrients!$EV$9)*AU$7)+(((IF($A$8=Nutrients!$B$79,Nutrients!$EV$79,(IF($A$8=Nutrients!$B$77,Nutrients!$EV$77,Nutrients!$EV$78)))))*AU$8))","v":1200},{"$f":"(SUMPRODUCT(AV$9:AV$229,Nutrients!$EV$8:$EV$228)+(IF($A$7=Nutrients!$B$8,Nutrients!$EV$8,Nutrients!$EV$9)*AV$7)+(((IF($A$8=Nutrients!$B$79,Nutrients!$EV$79,(IF($A$8=Nutrients!$B$77,Nutrients!$EV$77,Nutrients!$EV$78)))))*AV$8))","v":900},{"$f":"(SUMPRODUCT(AW$9:AW$229,Nutrients!$EV$8:$EV$228)+(IF($A$7=Nutrients!$B$8,Nutrients!$EV$8,Nutrients!$EV$9)*AW$7)+(((IF($A$8=Nutrients!$B$79,Nutrients!$EV$79,(IF($A$8=Nutrients!$B$77,Nutrients!$EV$77,Nutrients!$EV$78)))))*AW$8))","v":900}]
["  Vit B12, mg/ton",{"$f":"(SUMPRODUCT(B$9:B$229,Nutrients!$EW$8:$EW$228)+(IF($A$7=Nutrients!$B$8,Nutrients!$EW$8,Nutrients!$EW$9)*B$7)+(((IF($A$8=Nutrients!$B$79,Nutrients!$EW$79,(IF($A$8=Nutrients!$B$77,Nutrients!$EW$77,Nutrients!$EW$78)))))*B$8))","v":18},{"$f":"(SUMPRODUCT(C$9:C$229,Nutrients!$EW$8:$EW$228)+(IF($A$7=Nutrients!$B$8,Nutrients!$EW$8,Nutrients!$EW$9)*C$7)+(((IF($A$8=Nutrients!$B$79,Nutrients!$EW$79,(IF($A$8=Nutrients!$B$77,Nutrients!$EW$77,Nutrients!$EW$78)))))*C$8))","v":18},{"$f":"(SUMPRODUCT(D$9:D$229,Nutrients!$EW$8:$EW$228)+(IF($A$7=Nutrients!$B$8,Nutrients!$EW$8,Nutrients!$EW$9)*D$7)+(((IF($A$8=Nutrients!$B$79,Nutrients!$EW$79,(IF($A$8=Nutrients!$B$77,Nutrients!$EW$77,Nutrients!$EW$78)))))*D$8))","v":15},{"$f":"(SUMPRODUCT(E$9:E$229,Nutrients!$EW$8:$EW$228)+(IF($A$7=Nutrients!$B$8,Nutrients!$EW$8,Nutrients!$EW$9)*E$7)+(((IF($A$8=Nutrients!$B$79,Nutrients!$EW$79,(IF($A$8=Nutrients!$B$77,Nutrients!$EW$77,Nutrients!$EW$78)))))*E$8))","v":12},{"$f":"(SUMPRODUCT(F$9:F$229,Nutrients!$EW$8:$EW$228)+(IF($A$7=Nutrients!$B$8,Nutrients!$EW$8,Nutrients!$EW$9)*F$7)+(((IF($A$8=Nutrients!$B$79,Nutrients!$EW$79,(IF($A$8=Nutrients!$B$77,Nutrients!$EW$77,Nutrients!$EW$78)))))*F$8))","v":9},{"$f":"(SUMPRODUCT(G$9:G$229,Nutrients!$EW$8:$EW$228)+(IF($A$7=Nutrients!$B$8,Nutrients!$EW$8,Nutrients!$EW$9)*G$7)+(((IF($A$8=Nutrients!$B$79,Nutrients!$EW$79,(IF($A$8=Nutrients!$B$77,Nutrients!$EW$77,Nutrients!$EW$78)))))*G$8))","v":9},null,{"$f":"(SUMPRODUCT(I$9:I$229,Nutrients!$EW$8:$EW$228)+(IF($A$7=Nutrients!$B$8,Nutrients!$EW$8,Nutrients!$EW$9)*I$7)+(((IF($A$8=Nutrients!$B$79,Nutrients!$EW$79,(IF($A$8=Nutrients!$B$77,Nutrients!$EW$77,Nutrients!$EW$78)))))*I$8))","v":18},{"$f":"(SUMPRODUCT(J$9:J$229,Nutrients!$EW$8:$EW$228)+(IF($A$7=Nutrients!$B$8,Nutrients!$EW$8,Nutrients!$EW$9)*J$7)+(((IF($A$8=Nutrients!$B$79,Nutrients!$EW$79,(IF($A$8=Nutrients!$B$77,Nutrients!$EW$77,Nutrients!$EW$78)))))*J$8))","v":18},{"$f":"(SUMPRODUCT(K$9:K$229,Nutrients!$EW$8:$EW$228)+(IF($A$7=Nutrients!$B$8,Nutrients!$EW$8,Nutrients!$EW$9)*K$7)+(((IF($A$8=Nutrients!$B$79,Nutrients!$EW$79,(IF($A$8=Nutrients!$B$77,Nutrients!$EW$77,Nutrients!$EW$78)))))*K$8))","v":15},{"$f":"(SUMPRODUCT(L$9:L$229,Nutrients!$EW$8:$EW$228)+(IF($A$7=Nutrients!$B$8,Nutrients!$EW$8,Nutrients!$EW$9)*L$7)+(((IF($A$8=Nutrients!$B$79,Nutrients!$EW$79,(IF($A$8=Nutrients!$B$77,Nutrients!$EW$77,Nutrients!$EW$78)))))*L$8))","v":12},{"$f":"(SUMPRODUCT(M$9:M$229,Nutrients!$EW$8:$EW$228)+(IF($A$7=Nutrients!$B$8,Nutrients!$EW$8,Nutrients!$EW$9)*M$7)+(((IF($A$8=Nutrients!$B$79,Nutrients!$EW$79,(IF($A$8=Nutrients!$B$77,Nutrients!$EW$77,Nutrients!$EW$78)))))*M$8))","v":9},{"$f":"(SUMPRODUCT(N$9:N$229,Nutrients!$EW$8:$EW$228)+(IF($A$7=Nutrients!$B$8,Nutrients!$EW$8,Nutrients!$EW$9)*N$7)+(((IF($A$8=Nutrients!$B$79,Nutrients!$EW$79,(IF($A$8=Nutrients!$B$77,Nutrients!$EW$77,Nutrients!$EW$78)))))*N$8))","v":9},null,{"$f":"(SUMPRODUCT(P$9:P$229,Nutrients!$EW$8:$EW$228)+(IF($A$7=Nutrients!$B$8,Nutrients!$EW$8,Nutrients!$EW$9)*P$7)+(((IF($A$8=Nutrients!$B$79,Nutrients!$EW$79,(IF($A$8=Nutrients!$B$77,Nutrients!$EW$77,Nutrients!$EW$78)))))*P$8))","v":18},{"$f":"(SUMPRODUCT(Q$9:Q$229,Nutrients!$EW$8:$EW$228)+(IF($A$7=Nutrients!$B$8,Nutrients!$EW$8,Nutrients!$EW$9)*Q$7)+(((IF($A$8=Nutrients!$B$79,Nutrients!$EW$79,(IF($A$8=Nutrients!$B$77,Nutrients!$EW$77,Nutrients!$EW$78)))))*Q$8))","v":18},{"$f":"(SUMPRODUCT(R$9:R$229,Nutrients!$EW$8:$EW$228)+(IF($A$7=Nutrients!$B$8,Nutrients!$EW$8,Nutrients!$EW$9)*R$7)+(((IF($A$8=Nutrients!$B$79,Nutrients!$EW$79,(IF($A$8=Nutrients!$B$77,Nutrients!$EW$77,Nutrients!$EW$78)))))*R$8))","v":15},{"$f":"(SUMPRODUCT(S$9:S$229,Nutrients!$EW$8:$EW$228)+(IF($A$7=Nutrients!$B$8,Nutrients!$EW$8,Nutrients!$EW$9)*S$7)+(((IF($A$8=Nutrients!$B$79,Nutrients!$EW$79,(IF($A$8=Nutrients!$B$77,Nutrients!$EW$77,Nutrients!$EW$78)))))*S$8))","v":12},{"$f":"(SUMPRODUCT(T$9:T$229,Nutrients!$EW$8:$EW$228)+(IF($A$7=Nutrients!$B$8,Nutrients!$EW$8,Nutrients!$EW$9)*T$7)+(((IF($A$8=Nutrients!$B$79,Nutrients!$EW$79,(IF($A$8=Nutrients!$B$77,Nutrients!$EW$77,Nutrients!$EW$78)))))*T$8))","v":9},{"$f":"(SUMPRODUCT(U$9:U$229,Nutrients!$EW$8:$EW$228)+(IF($A$7=Nutrients!$B$8,Nutrients!$EW$8,Nutrients!$EW$9)*U$7)+(((IF($A$8=Nutrients!$B$79,Nutrients!$EW$79,(IF($A$8=Nutrients!$B$77,Nutrients!$EW$77,Nutrients!$EW$78)))))*U$8))","v":9},null,{"$f":"(SUMPRODUCT(W$9:W$229,Nutrients!$EW$8:$EW$228)+(IF($A$7=Nutrients!$B$8,Nutrients!$EW$8,Nutrients!$EW$9)*W$7)+(((IF($A$8=Nutrients!$B$79,Nutrients!$EW$79,(IF($A$8=Nutrients!$B$77,Nutrients!$EW$77,Nutrients!$EW$78)))))*W$8))","v":18},{"$f":"(SUMPRODUCT(X$9:X$229,Nutrients!$EW$8:$EW$228)+(IF($A$7=Nutrients!$B$8,Nutrients!$EW$8,Nutrients!$EW$9)*X$7)+(((IF($A$8=Nutrients!$B$79,Nutrients!$EW$79,(IF($A$8=Nutrients!$B$77,Nutrients!$EW$77,Nutrients!$EW$78)))))*X$8))","v":18},{"$f":"(SUMPRODUCT(Y$9:Y$229,Nutrients!$EW$8:$EW$228)+(IF($A$7=Nutrients!$B$8,Nutrients!$EW$8,Nutrients!$EW$9)*Y$7)+(((IF($A$8=Nutrients!$B$79,Nutrients!$EW$79,(IF($A$8=Nutrients!$B$77,Nutrients!$EW$77,Nutrients!$EW$78)))))*Y$8))","v":15},{"$f":"(SUMPRODUCT(Z$9:Z$229,Nutrients!$EW$8:$EW$228)+(IF($A$7=Nutrients!$B$8,Nutrients!$EW$8,Nutrients!$EW$9)*Z$7)+(((IF($A$8=Nutrients!$B$79,Nutrients!$EW$79,(IF($A$8=Nutrients!$B$77,Nutrients!$EW$77,Nutrients!$EW$78)))))*Z$8))","v":12},{"$f":"(SUMPRODUCT(AA$9:AA$229,Nutrients!$EW$8:$EW$228)+(IF($A$7=Nutrients!$B$8,Nutrients!$EW$8,Nutrients!$EW$9)*AA$7)+(((IF($A$8=Nutrients!$B$79,Nutrients!$EW$79,(IF($A$8=Nutrients!$B$77,Nutrients!$EW$77,Nutrients!$EW$78)))))*AA$8))","v":9},{"$f":"(SUMPRODUCT(AB$9:AB$229,Nutrients!$EW$8:$EW$228)+(IF($A$7=Nutrients!$B$8,Nutrients!$EW$8,Nutrients!$EW$9)*AB$7)+(((IF($A$8=Nutrients!$B$79,Nutrients!$EW$79,(IF($A$8=Nutrients!$B$77,Nutrients!$EW$77,Nutrients!$EW$78)))))*AB$8))","v":9},null,{"$f":"(SUMPRODUCT(AD$9:AD$229,Nutrients!$EW$8:$EW$228)+(IF($A$7=Nutrients!$B$8,Nutrients!$EW$8,Nutrients!$EW$9)*AD$7)+(((IF($A$8=Nutrients!$B$79,Nutrients!$EW$79,(IF($A$8=Nutrients!$B$77,Nutrients!$EW$77,Nutrients!$EW$78)))))*AD$8))","v":18},{"$f":"(SUMPRODUCT(AE$9:AE$229,Nutrients!$EW$8:$EW$228)+(IF($A$7=Nutrients!$B$8,Nutrients!$EW$8,Nutrients!$EW$9)*AE$7)+(((IF($A$8=Nutrients!$B$79,Nutrients!$EW$79,(IF($A$8=Nutrients!$B$77,Nutrients!$EW$77,Nutrients!$EW$78)))))*AE$8))","v":18},{"$f":"(SUMPRODUCT(AF$9:AF$229,Nutrients!$EW$8:$EW$228)+(IF($A$7=Nutrients!$B$8,Nutrients!$EW$8,Nutrients!$EW$9)*AF$7)+(((IF($A$8=Nutrients!$B$79,Nutrients!$EW$79,(IF($A$8=Nutrients!$B$77,Nutrients!$EW$77,Nutrients!$EW$78)))))*AF$8))","v":15},{"$f":"(SUMPRODUCT(AG$9:AG$229,Nutrients!$EW$8:$EW$228)+(IF($A$7=Nutrients!$B$8,Nutrients!$EW$8,Nutrients!$EW$9)*AG$7)+(((IF($A$8=Nutrients!$B$79,Nutrients!$EW$79,(IF($A$8=Nutrients!$B$77,Nutrients!$EW$77,Nutrients!$EW$78)))))*AG$8))","v":12},{"$f":"(SUMPRODUCT(AH$9:AH$229,Nutrients!$EW$8:$EW$228)+(IF($A$7=Nutrients!$B$8,Nutrients!$EW$8,Nutrients!$EW$9)*AH$7)+(((IF($A$8=Nutrients!$B$79,Nutrients!$EW$79,(IF($A$8=Nutrients!$B$77,Nutrients!$EW$77,Nutrients!$EW$78)))))*AH$8))","v":9},{"$f":"(SUMPRODUCT(AI$9:AI$229,Nutrients!$EW$8:$EW$228)+(IF($A$7=Nutrients!$B$8,Nutrients!$EW$8,Nutrients!$EW$9)*AI$7)+(((IF($A$8=Nutrients!$B$79,Nutrients!$EW$79,(IF($A$8=Nutrients!$B$77,Nutrients!$EW$77,Nutrients!$EW$78)))))*AI$8))","v":9},null,{"$f":"(SUMPRODUCT(AK$9:AK$229,Nutrients!$EW$8:$EW$228)+(IF($A$7=Nutrients!$B$8,Nutrients!$EW$8,Nutrients!$EW$9)*AK$7)+(((IF($A$8=Nutrients!$B$79,Nutrients!$EW$79,(IF($A$8=Nutrients!$B$77,Nutrients!$EW$77,Nutrients!$EW$78)))))*AK$8))","v":18},{"$f":"(SUMPRODUCT(AL$9:AL$229,Nutrients!$EW$8:$EW$228)+(IF($A$7=Nutrients!$B$8,Nutrients!$EW$8,Nutrients!$EW$9)*AL$7)+(((IF($A$8=Nutrients!$B$79,Nutrients!$EW$79,(IF($A$8=Nutrients!$B$77,Nutrients!$EW$77,Nutrients!$EW$78)))))*AL$8))","v":18},{"$f":"(SUMPRODUCT(AM$9:AM$229,Nutrients!$EW$8:$EW$228)+(IF($A$7=Nutrients!$B$8,Nutrients!$EW$8,Nutrients!$EW$9)*AM$7)+(((IF($A$8=Nutrients!$B$79,Nutrients!$EW$79,(IF($A$8=Nutrients!$B$77,Nutrients!$EW$77,Nutrients!$EW$78)))))*AM$8))","v":15},{"$f":"(SUMPRODUCT(AN$9:AN$229,Nutrients!$EW$8:$EW$228)+(IF($A$7=Nutrients!$B$8,Nutrients!$EW$8,Nutrients!$EW$9)*AN$7)+(((IF($A$8=Nutrients!$B$79,Nutrients!$EW$79,(IF($A$8=Nutrients!$B$77,Nutrients!$EW$77,Nutrients!$EW$78)))))*AN$8))","v":12},{"$f":"(SUMPRODUCT(AO$9:AO$229,Nutrients!$EW$8:$EW$228)+(IF($A$7=Nutrients!$B$8,Nutrients!$EW$8,Nutrients!$EW$9)*AO$7)+(((IF($A$8=Nutrients!$B$79,Nutrients!$EW$79,(IF($A$8=Nutrients!$B$77,Nutrients!$EW$77,Nutrients!$EW$78)))))*AO$8))","v":9},{"$f":"(SUMPRODUCT(AP$9:AP$229,Nutrients!$EW$8:$EW$228)+(IF($A$7=Nutrients!$B$8,Nutrients!$EW$8,Nutrients!$EW$9)*AP$7)+(((IF($A$8=Nutrients!$B$79,Nutrients!$EW$79,(IF($A$8=Nutrients!$B$77,Nutrients!$EW$77,Nutrients!$EW$78)))))*AP$8))","v":9},null,{"$f":"(SUMPRODUCT(AR$9:AR$229,Nutrients!$EW$8:$EW$228)+(IF($A$7=Nutrients!$B$8,Nutrients!$EW$8,Nutrients!$EW$9)*AR$7)+(((IF($A$8=Nutrients!$B$79,Nutrients!$EW$79,(IF($A$8=Nutrients!$B$77,Nutrients!$EW$77,Nutrients!$EW$78)))))*AR$8))","v":18},{"$f":"(SUMPRODUCT(AS$9:AS$229,Nutrients!$EW$8:$EW$228)+(IF($A$7=Nutrients!$B$8,Nutrients!$EW$8,Nutrients!$EW$9)*AS$7)+(((IF($A$8=Nutrients!$B$79,Nutrients!$EW$79,(IF($A$8=Nutrients!$B$77,Nutrients!$EW$77,Nutrients!$EW$78)))))*AS$8))","v":18},{"$f":"(SUMPRODUCT(AT$9:AT$229,Nutrients!$EW$8:$EW$228)+(IF($A$7=Nutrients!$B$8,Nutrients!$EW$8,Nutrients!$EW$9)*AT$7)+(((IF($A$8=Nutrients!$B$79,Nutrients!$EW$79,(IF($A$8=Nutrients!$B$77,Nutrients!$EW$77,Nutrients!$EW$78)))))*AT$8))","v":15},{"$f":"(SUMPRODUCT(AU$9:AU$229,Nutrients!$EW$8:$EW$228)+(IF($A$7=Nutrients!$B$8,Nutrients!$EW$8,Nutrients!$EW$9)*AU$7)+(((IF($A$8=Nutrients!$B$79,Nutrients!$EW$79,(IF($A$8=Nutrients!$B$77,Nutrients!$EW$77,Nutrients!$EW$78)))))*AU$8))","v":12},{"$f":"(SUMPRODUCT(AV$9:AV$229,Nutrients!$EW$8:$EW$228)+(IF($A$7=Nutrients!$B$8,Nutrients!$EW$8,Nutrients!$EW$9)*AV$7)+(((IF($A$8=Nutrients!$B$79,Nutrients!$EW$79,(IF($A$8=Nutrients!$B$77,Nutrients!$EW$77,Nutrients!$EW$78)))))*AV$8))","v":9},{"$f":"(SUMPRODUCT(AW$9:AW$229,Nutrients!$EW$8:$EW$228)+(IF($A$7=Nutrients!$B$8,Nutrients!$EW$8,Nutrients!$EW$9)*AW$7)+(((IF($A$8=Nutrients!$B$79,Nutrients!$EW$79,(IF($A$8=Nutrients!$B$77,Nutrients!$EW$77,Nutrients!$EW$78)))))*AW$8))","v":9}]
["  Niacin, mg/ton",{"$f":"(SUMPRODUCT(B$9:B$229,Nutrients!$EX$8:$EX$228)+(IF($A$7=Nutrients!$B$8,Nutrients!$EX$8,Nutrients!$EX$9)*B$7)+(((IF($A$8=Nutrients!$B$79,Nutrients!$EX$79,(IF($A$8=Nutrients!$B$77,Nutrients!$EX$77,Nutrients!$EX$78)))))*B$8))","v":27000},{"$f":"(SUMPRODUCT(C$9:C$229,Nutrients!$EX$8:$EX$228)+(IF($A$7=Nutrients!$B$8,Nutrients!$EX$8,Nutrients!$EX$9)*C$7)+(((IF($A$8=Nutrients!$B$79,Nutrients!$EX$79,(IF($A$8=Nutrients!$B$77,Nutrients!$EX$77,Nutrients!$EX$78)))))*C$8))","v":27000},{"$f":"(SUMPRODUCT(D$9:D$229,Nutrients!$EX$8:$EX$228)+(IF($A$7=Nutrients!$B$8,Nutrients!$EX$8,Nutrients!$EX$9)*D$7)+(((IF($A$8=Nutrients!$B$79,Nutrients!$EX$79,(IF($A$8=Nutrients!$B$77,Nutrients!$EX$77,Nutrients!$EX$78)))))*D$8))","v":22500},{"$f":"(SUMPRODUCT(E$9:E$229,Nutrients!$EX$8:$EX$228)+(IF($A$7=Nutrients!$B$8,Nutrients!$EX$8,Nutrients!$EX$9)*E$7)+(((IF($A$8=Nutrients!$B$79,Nutrients!$EX$79,(IF($A$8=Nutrients!$B$77,Nutrients!$EX$77,Nutrients!$EX$78)))))*E$8))","v":18000},{"$f":"(SUMPRODUCT(F$9:F$229,Nutrients!$EX$8:$EX$228)+(IF($A$7=Nutrients!$B$8,Nutrients!$EX$8,Nutrients!$EX$9)*F$7)+(((IF($A$8=Nutrients!$B$79,Nutrients!$EX$79,(IF($A$8=Nutrients!$B$77,Nutrients!$EX$77,Nutrients!$EX$78)))))*F$8))","v":13500},{"$f":"(SUMPRODUCT(G$9:G$229,Nutrients!$EX$8:$EX$228)+(IF($A$7=Nutrients!$B$8,Nutrients!$EX$8,Nutrients!$EX$9)*G$7)+(((IF($A$8=Nutrients!$B$79,Nutrients!$EX$79,(IF($A$8=Nutrients!$B$77,Nutrients!$EX$77,Nutrients!$EX$78)))))*G$8))","v":13500},null,{"$f":"(SUMPRODUCT(I$9:I$229,Nutrients!$EX$8:$EX$228)+(IF($A$7=Nutrients!$B$8,Nutrients!$EX$8,Nutrients!$EX$9)*I$7)+(((IF($A$8=Nutrients!$B$79,Nutrients!$EX$79,(IF($A$8=Nutrients!$B$77,Nutrients!$EX$77,Nutrients!$EX$78)))))*I$8))","v":27000},{"$f":"(SUMPRODUCT(J$9:J$229,Nutrients!$EX$8:$EX$228)+(IF($A$7=Nutrients!$B$8,Nutrients!$EX$8,Nutrients!$EX$9)*J$7)+(((IF($A$8=Nutrients!$B$79,Nutrients!$EX$79,(IF($A$8=Nutrients!$B$77,Nutrients!$EX$77,Nutrients!$EX$78)))))*J$8))","v":27000},{"$f":"(SUMPRODUCT(K$9:K$229,Nutrients!$EX$8:$EX$228)+(IF($A$7=Nutrients!$B$8,Nutrients!$EX$8,Nutrients!$EX$9)*K$7)+(((IF($A$8=Nutrients!$B$79,Nutrients!$EX$79,(IF($A$8=Nutrients!$B$77,Nutrients!$EX$77,Nutrients!$EX$78)))))*K$8))","v":22500},{"$f":"(SUMPRODUCT(L$9:L$229,Nutrients!$EX$8:$EX$228)+(IF($A$7=Nutrients!$B$8,Nutrients!$EX$8,Nutrients!$EX$9)*L$7)+(((IF($A$8=Nutrients!$B$79,Nutrients!$EX$79,(IF($A$8=Nutrients!$B$77,Nutrients!$EX$77,Nutrients!$EX$78)))))*L$8))","v":18000},{"$f":"(SUMPRODUCT(M$9:M$229,Nutrients!$EX$8:$EX$228)+(IF($A$7=Nutrients!$B$8,Nutrients!$EX$8,Nutrients!$EX$9)*M$7)+(((IF($A$8=Nutrients!$B$79,Nutrients!$EX$79,(IF($A$8=Nutrients!$B$77,Nutrients!$EX$77,Nutrients!$EX$78)))))*M$8))","v":13500},{"$f":"(SUMPRODUCT(N$9:N$229,Nutrients!$EX$8:$EX$228)+(IF($A$7=Nutrients!$B$8,Nutrients!$EX$8,Nutrients!$EX$9)*N$7)+(((IF($A$8=Nutrients!$B$79,Nutrients!$EX$79,(IF($A$8=Nutrients!$B$77,Nutrients!$EX$77,Nutrients!$EX$78)))))*N$8))","v":13500},null,{"$f":"(SUMPRODUCT(P$9:P$229,Nutrients!$EX$8:$EX$228)+(IF($A$7=Nutrients!$B$8,Nutrients!$EX$8,Nutrients!$EX$9)*P$7)+(((IF($A$8=Nutrients!$B$79,Nutrients!$EX$79,(IF($A$8=Nutrients!$B$77,Nutrients!$EX$77,Nutrients!$EX$78)))))*P$8))","v":27000},{"$f":"(SUMPRODUCT(Q$9:Q$229,Nutrients!$EX$8:$EX$228)+(IF($A$7=Nutrients!$B$8,Nutrients!$EX$8,Nutrients!$EX$9)*Q$7)+(((IF($A$8=Nutrients!$B$79,Nutrients!$EX$79,(IF($A$8=Nutrients!$B$77,Nutrients!$EX$77,Nutrients!$EX$78)))))*Q$8))","v":27000},{"$f":"(SUMPRODUCT(R$9:R$229,Nutrients!$EX$8:$EX$228)+(IF($A$7=Nutrients!$B$8,Nutrients!$EX$8,Nutrients!$EX$9)*R$7)+(((IF($A$8=Nutrients!$B$79,Nutrients!$EX$79,(IF($A$8=Nutrients!$B$77,Nutrients!$EX$77,Nutrients!$EX$78)))))*R$8))","v":22500},{"$f":"(SUMPRODUCT(S$9:S$229,Nutrients!$EX$8:$EX$228)+(IF($A$7=Nutrients!$B$8,Nutrients!$EX$8,Nutrients!$EX$9)*S$7)+(((IF($A$8=Nutrients!$B$79,Nutrients!$EX$79,(IF($A$8=Nutrients!$B$77,Nutrients!$EX$77,Nutrients!$EX$78)))))*S$8))","v":18000},{"$f":"(SUMPRODUCT(T$9:T$229,Nutrients!$EX$8:$EX$228)+(IF($A$7=Nutrients!$B$8,Nutrients!$EX$8,Nutrients!$EX$9)*T$7)+(((IF($A$8=Nutrients!$B$79,Nutrients!$EX$79,(IF($A$8=Nutrients!$B$77,Nutrients!$EX$77,Nutrients!$EX$78)))))*T$8))","v":13500},{"$f":"(SUMPRODUCT(U$9:U$229,Nutrients!$EX$8:$EX$228)+(IF($A$7=Nutrients!$B$8,Nutrients!$EX$8,Nutrients!$EX$9)*U$7)+(((IF($A$8=Nutrients!$B$79,Nutrients!$EX$79,(IF($A$8=Nutrients!$B$77,Nutrients!$EX$77,Nutrients!$EX$78)))))*U$8))","v":13500},null,{"$f":"(SUMPRODUCT(W$9:W$229,Nutrients!$EX$8:$EX$228)+(IF($A$7=Nutrients!$B$8,Nutrients!$EX$8,Nutrients!$EX$9)*W$7)+(((IF($A$8=Nutrients!$B$79,Nutrients!$EX$79,(IF($A$8=Nutrients!$B$77,Nutrients!$EX$77,Nutrients!$EX$78)))))*W$8))","v":27000},{"$f":"(SUMPRODUCT(X$9:X$229,Nutrients!$EX$8:$EX$228)+(IF($A$7=Nutrients!$B$8,Nutrients!$EX$8,Nutrients!$EX$9)*X$7)+(((IF($A$8=Nutrients!$B$79,Nutrients!$EX$79,(IF($A$8=Nutrients!$B$77,Nutrients!$EX$77,Nutrients!$EX$78)))))*X$8))","v":27000},{"$f":"(SUMPRODUCT(Y$9:Y$229,Nutrients!$EX$8:$EX$228)+(IF($A$7=Nutrients!$B$8,Nutrients!$EX$8,Nutrients!$EX$9)*Y$7)+(((IF($A$8=Nutrients!$B$79,Nutrients!$EX$79,(IF($A$8=Nutrients!$B$77,Nutrients!$EX$77,Nutrients!$EX$78)))))*Y$8))","v":22500},{"$f":"(SUMPRODUCT(Z$9:Z$229,Nutrients!$EX$8:$EX$228)+(IF($A$7=Nutrients!$B$8,Nutrients!$EX$8,Nutrients!$EX$9)*Z$7)+(((IF($A$8=Nutrients!$B$79,Nutrients!$EX$79,(IF($A$8=Nutrients!$B$77,Nutrients!$EX$77,Nutrients!$EX$78)))))*Z$8))","v":18000},{"$f":"(SUMPRODUCT(AA$9:AA$229,Nutrients!$EX$8:$EX$228)+(IF($A$7=Nutrients!$B$8,Nutrients!$EX$8,Nutrients!$EX$9)*AA$7)+(((IF($A$8=Nutrients!$B$79,Nutrients!$EX$79,(IF($A$8=Nutrients!$B$77,Nutrients!$EX$77,Nutrients!$EX$78)))))*AA$8))","v":13500},{"$f":"(SUMPRODUCT(AB$9:AB$229,Nutrients!$EX$8:$EX$228)+(IF($A$7=Nutrients!$B$8,Nutrients!$EX$8,Nutrients!$EX$9)*AB$7)+(((IF($A$8=Nutrients!$B$79,Nutrients!$EX$79,(IF($A$8=Nutrients!$B$77,Nutrients!$EX$77,Nutrients!$EX$78)))))*AB$8))","v":13500},null,{"$f":"(SUMPRODUCT(AD$9:AD$229,Nutrients!$EX$8:$EX$228)+(IF($A$7=Nutrients!$B$8,Nutrients!$EX$8,Nutrients!$EX$9)*AD$7)+(((IF($A$8=Nutrients!$B$79,Nutrients!$EX$79,(IF($A$8=Nutrients!$B$77,Nutrients!$EX$77,Nutrients!$EX$78)))))*AD$8))","v":27000},{"$f":"(SUMPRODUCT(AE$9:AE$229,Nutrients!$EX$8:$EX$228)+(IF($A$7=Nutrients!$B$8,Nutrients!$EX$8,Nutrients!$EX$9)*AE$7)+(((IF($A$8=Nutrients!$B$79,Nutrients!$EX$79,(IF($A$8=Nutrients!$B$77,Nutrients!$EX$77,Nutrients!$EX$78)))))*AE$8))","v":27000},{"$f":"(SUMPRODUCT(AF$9:AF$229,Nutrients!$EX$8:$EX$228)+(IF($A$7=Nutrients!$B$8,Nutrients!$EX$8,Nutrients!$EX$9)*AF$7)+(((IF($A$8=Nutrients!$B$79,Nutrients!$EX$79,(IF($A$8=Nutrients!$B$77,Nutrients!$EX$77,Nutrients!$EX$78)))))*AF$8))","v":22500},{"$f":"(SUMPRODUCT(AG$9:AG$229,Nutrients!$EX$8:$EX$228)+(IF($A$7=Nutrients!$B$8,Nutrients!$EX$8,Nutrients!$EX$9)*AG$7)+(((IF($A$8=Nutrients!$B$79,Nutrients!$EX$79,(IF($A$8=Nutrients!$B$77,Nutrients!$EX$77,Nutrients!$EX$78)))))*AG$8))","v":18000},{"$f":"(SUMPRODUCT(AH$9:AH$229,Nutrients!$EX$8:$EX$228)+(IF($A$7=Nutrients!$B$8,Nutrients!$EX$8,Nutrients!$EX$9)*AH$7)+(((IF($A$8=Nutrients!$B$79,Nutrients!$EX$79,(IF($A$8=Nutrients!$B$77,Nutrients!$EX$77,Nutrients!$EX$78)))))*AH$8))","v":13500},{"$f":"(SUMPRODUCT(AI$9:AI$229,Nutrients!$EX$8:$EX$228)+(IF($A$7=Nutrients!$B$8,Nutrients!$EX$8,Nutrients!$EX$9)*AI$7)+(((IF($A$8=Nutrients!$B$79,Nutrients!$EX$79,(IF($A$8=Nutrients!$B$77,Nutrients!$EX$77,Nutrients!$EX$78)))))*AI$8))","v":13500},null,{"$f":"(SUMPRODUCT(AK$9:AK$229,Nutrients!$EX$8:$EX$228)+(IF($A$7=Nutrients!$B$8,Nutrients!$EX$8,Nutrients!$EX$9)*AK$7)+(((IF($A$8=Nutrients!$B$79,Nutrients!$EX$79,(IF($A$8=Nutrients!$B$77,Nutrients!$EX$77,Nutrients!$EX$78)))))*AK$8))","v":27000},{"$f":"(SUMPRODUCT(AL$9:AL$229,Nutrients!$EX$8:$EX$228)+(IF($A$7=Nutrients!$B$8,Nutrients!$EX$8,Nutrients!$EX$9)*AL$7)+(((IF($A$8=Nutrients!$B$79,Nutrients!$EX$79,(IF($A$8=Nutrients!$B$77,Nutrients!$EX$77,Nutrients!$EX$78)))))*AL$8))","v":27000},{"$f":"(SUMPRODUCT(AM$9:AM$229,Nutrients!$EX$8:$EX$228)+(IF($A$7=Nutrients!$B$8,Nutrients!$EX$8,Nutrients!$EX$9)*AM$7)+(((IF($A$8=Nutrients!$B$79,Nutrients!$EX$79,(IF($A$8=Nutrients!$B$77,Nutrients!$EX$77,Nutrients!$EX$78)))))*AM$8))","v":22500},{"$f":"(SUMPRODUCT(AN$9:AN$229,Nutrients!$EX$8:$EX$228)+(IF($A$7=Nutrients!$B$8,Nutrients!$EX$8,Nutrients!$EX$9)*AN$7)+(((IF($A$8=Nutrients!$B$79,Nutrients!$EX$79,(IF($A$8=Nutrients!$B$77,Nutrients!$EX$77,Nutrients!$EX$78)))))*AN$8))","v":18000},{"$f":"(SUMPRODUCT(AO$9:AO$229,Nutrients!$EX$8:$EX$228)+(IF($A$7=Nutrients!$B$8,Nutrients!$EX$8,Nutrients!$EX$9)*AO$7)+(((IF($A$8=Nutrients!$B$79,Nutrients!$EX$79,(IF($A$8=Nutrients!$B$77,Nutrients!$EX$77,Nutrients!$EX$78)))))*AO$8))","v":13500},{"$f":"(SUMPRODUCT(AP$9:AP$229,Nutrients!$EX$8:$EX$228)+(IF($A$7=Nutrients!$B$8,Nutrients!$EX$8,Nutrients!$EX$9)*AP$7)+(((IF($A$8=Nutrients!$B$79,Nutrients!$EX$79,(IF($A$8=Nutrients!$B$77,Nutrients!$EX$77,Nutrients!$EX$78)))))*AP$8))","v":13500},null,{"$f":"(SUMPRODUCT(AR$9:AR$229,Nutrients!$EX$8:$EX$228)+(IF($A$7=Nutrients!$B$8,Nutrients!$EX$8,Nutrients!$EX$9)*AR$7)+(((IF($A$8=Nutrients!$B$79,Nutrients!$EX$79,(IF($A$8=Nutrients!$B$77,Nutrients!$EX$77,Nutrients!$EX$78)))))*AR$8))","v":27000},{"$f":"(SUMPRODUCT(AS$9:AS$229,Nutrients!$EX$8:$EX$228)+(IF($A$7=Nutrients!$B$8,Nutrients!$EX$8,Nutrients!$EX$9)*AS$7)+(((IF($A$8=Nutrients!$B$79,Nutrients!$EX$79,(IF($A$8=Nutrients!$B$77,Nutrients!$EX$77,Nutrients!$EX$78)))))*AS$8))","v":27000},{"$f":"(SUMPRODUCT(AT$9:AT$229,Nutrients!$EX$8:$EX$228)+(IF($A$7=Nutrients!$B$8,Nutrients!$EX$8,Nutrients!$EX$9)*AT$7)+(((IF($A$8=Nutrients!$B$79,Nutrients!$EX$79,(IF($A$8=Nutrients!$B$77,Nutrients!$EX$77,Nutrients!$EX$78)))))*AT$8))","v":22500},{"$f":"(SUMPRODUCT(AU$9:AU$229,Nutrients!$EX$8:$EX$228)+(IF($A$7=Nutrients!$B$8,Nutrients!$EX$8,Nutrients!$EX$9)*AU$7)+(((IF($A$8=Nutrients!$B$79,Nutrients!$EX$79,(IF($A$8=Nutrients!$B$77,Nutrients!$EX$77,Nutrients!$EX$78)))))*AU$8))","v":18000},{"$f":"(SUMPRODUCT(AV$9:AV$229,Nutrients!$EX$8:$EX$228)+(IF($A$7=Nutrients!$B$8,Nutrients!$EX$8,Nutrients!$EX$9)*AV$7)+(((IF($A$8=Nutrients!$B$79,Nutrients!$EX$79,(IF($A$8=Nutrients!$B$77,Nutrients!$EX$77,Nutrients!$EX$78)))))*AV$8))","v":13500},{"$f":"(SUMPRODUCT(AW$9:AW$229,Nutrients!$EX$8:$EX$228)+(IF($A$7=Nutrients!$B$8,Nutrients!$EX$8,Nutrients!$EX$9)*AW$7)+(((IF($A$8=Nutrients!$B$79,Nutrients!$EX$79,(IF($A$8=Nutrients!$B$77,Nutrients!$EX$77,Nutrients!$EX$78)))))*AW$8))","v":13500}]
["  Pantothenic Acid, mg/ton",{"$f":"(SUMPRODUCT(B$9:B$229,Nutrients!$EY$8:$EY$228)+(IF($A$7=Nutrients!$B$8,Nutrients!$EY$8,Nutrients!$EY$9)*B$7)+(((IF($A$8=Nutrients!$B$79,Nutrients!$EY$79,(IF($A$8=Nutrients!$B$77,Nutrients!$EY$77,Nutrients!$EY$78)))))*B$8))","v":15000},{"$f":"(SUMPRODUCT(C$9:C$229,Nutrients!$EY$8:$EY$228)+(IF($A$7=Nutrients!$B$8,Nutrients!$EY$8,Nutrients!$EY$9)*C$7)+(((IF($A$8=Nutrients!$B$79,Nutrients!$EY$79,(IF($A$8=Nutrients!$B$77,Nutrients!$EY$77,Nutrients!$EY$78)))))*C$8))","v":15000},{"$f":"(SUMPRODUCT(D$9:D$229,Nutrients!$EY$8:$EY$228)+(IF($A$7=Nutrients!$B$8,Nutrients!$EY$8,Nutrients!$EY$9)*D$7)+(((IF($A$8=Nutrients!$B$79,Nutrients!$EY$79,(IF($A$8=Nutrients!$B$77,Nutrients!$EY$77,Nutrients!$EY$78)))))*D$8))","v":12500},{"$f":"(SUMPRODUCT(E$9:E$229,Nutrients!$EY$8:$EY$228)+(IF($A$7=Nutrients!$B$8,Nutrients!$EY$8,Nutrients!$EY$9)*E$7)+(((IF($A$8=Nutrients!$B$79,Nutrients!$EY$79,(IF($A$8=Nutrients!$B$77,Nutrients!$EY$77,Nutrients!$EY$78)))))*E$8))","v":10000},{"$f":"(SUMPRODUCT(F$9:F$229,Nutrients!$EY$8:$EY$228)+(IF($A$7=Nutrients!$B$8,Nutrients!$EY$8,Nutrients!$EY$9)*F$7)+(((IF($A$8=Nutrients!$B$79,Nutrients!$EY$79,(IF($A$8=Nutrients!$B$77,Nutrients!$EY$77,Nutrients!$EY$78)))))*F$8))","v":7500},{"$f":"(SUMPRODUCT(G$9:G$229,Nutrients!$EY$8:$EY$228)+(IF($A$7=Nutrients!$B$8,Nutrients!$EY$8,Nutrients!$EY$9)*G$7)+(((IF($A$8=Nutrients!$B$79,Nutrients!$EY$79,(IF($A$8=Nutrients!$B$77,Nutrients!$EY$77,Nutrients!$EY$78)))))*G$8))","v":7500},null,{"$f":"(SUMPRODUCT(I$9:I$229,Nutrients!$EY$8:$EY$228)+(IF($A$7=Nutrients!$B$8,Nutrients!$EY$8,Nutrients!$EY$9)*I$7)+(((IF($A$8=Nutrients!$B$79,Nutrients!$EY$79,(IF($A$8=Nutrients!$B$77,Nutrients!$EY$77,Nutrients!$EY$78)))))*I$8))","v":15000},{"$f":"(SUMPRODUCT(J$9:J$229,Nutrients!$EY$8:$EY$228)+(IF($A$7=Nutrients!$B$8,Nutrients!$EY$8,Nutrients!$EY$9)*J$7)+(((IF($A$8=Nutrients!$B$79,Nutrients!$EY$79,(IF($A$8=Nutrients!$B$77,Nutrients!$EY$77,Nutrients!$EY$78)))))*J$8))","v":15000},{"$f":"(SUMPRODUCT(K$9:K$229,Nutrients!$EY$8:$EY$228)+(IF($A$7=Nutrients!$B$8,Nutrients!$EY$8,Nutrients!$EY$9)*K$7)+(((IF($A$8=Nutrients!$B$79,Nutrients!$EY$79,(IF($A$8=Nutrients!$B$77,Nutrients!$EY$77,Nutrients!$EY$78)))))*K$8))","v":12500},{"$f":"(SUMPRODUCT(L$9:L$229,Nutrients!$EY$8:$EY$228)+(IF($A$7=Nutrients!$B$8,Nutrients!$EY$8,Nutrients!$EY$9)*L$7)+(((IF($A$8=Nutrients!$B$79,Nutrients!$EY$79,(IF($A$8=Nutrients!$B$77,Nutrients!$EY$77,Nutrients!$EY$78)))))*L$8))","v":10000},{"$f":"(SUMPRODUCT(M$9:M$229,Nutrients!$EY$8:$EY$228)+(IF($A$7=Nutrients!$B$8,Nutrients!$EY$8,Nutrients!$EY$9)*M$7)+(((IF($A$8=Nutrients!$B$79,Nutrients!$EY$79,(IF($A$8=Nutrients!$B$77,Nutrients!$EY$77,Nutrients!$EY$78)))))*M$8))","v":7500},{"$f":"(SUMPRODUCT(N$9:N$229,Nutrients!$EY$8:$EY$228)+(IF($A$7=Nutrients!$B$8,Nutrients!$EY$8,Nutrients!$EY$9)*N$7)+(((IF($A$8=Nutrients!$B$79,Nutrients!$EY$79,(IF($A$8=Nutrients!$B$77,Nutrients!$EY$77,Nutrients!$EY$78)))))*N$8))","v":7500},null,{"$f":"(SUMPRODUCT(P$9:P$229,Nutrients!$EY$8:$EY$228)+(IF($A$7=Nutrients!$B$8,Nutrients!$EY$8,Nutrients!$EY$9)*P$7)+(((IF($A$8=Nutrients!$B$79,Nutrients!$EY$79,(IF($A$8=Nutrients!$B$77,Nutrients!$EY$77,Nutrients!$EY$78)))))*P$8))","v":15000},{"$f":"(SUMPRODUCT(Q$9:Q$229,Nutrients!$EY$8:$EY$228)+(IF($A$7=Nutrients!$B$8,Nutrients!$EY$8,Nutrients!$EY$9)*Q$7)+(((IF($A$8=Nutrients!$B$79,Nutrients!$EY$79,(IF($A$8=Nutrients!$B$77,Nutrients!$EY$77,Nutrients!$EY$78)))))*Q$8))","v":15000},{"$f":"(SUMPRODUCT(R$9:R$229,Nutrients!$EY$8:$EY$228)+(IF($A$7=Nutrients!$B$8,Nutrients!$EY$8,Nutrients!$EY$9)*R$7)+(((IF($A$8=Nutrients!$B$79,Nutrients!$EY$79,(IF($A$8=Nutrients!$B$77,Nutrients!$EY$77,Nutrients!$EY$78)))))*R$8))","v":12500},{"$f":"(SUMPRODUCT(S$9:S$229,Nutrients!$EY$8:$EY$228)+(IF($A$7=Nutrients!$B$8,Nutrients!$EY$8,Nutrients!$EY$9)*S$7)+(((IF($A$8=Nutrients!$B$79,Nutrients!$EY$79,(IF($A$8=Nutrients!$B$77,Nutrients!$EY$77,Nutrients!$EY$78)))))*S$8))","v":10000},{"$f":"(SUMPRODUCT(T$9:T$229,Nutrients!$EY$8:$EY$228)+(IF($A$7=Nutrients!$B$8,Nutrients!$EY$8,Nutrients!$EY$9)*T$7)+(((IF($A$8=Nutrients!$B$79,Nutrients!$EY$79,(IF($A$8=Nutrients!$B$77,Nutrients!$EY$77,Nutrients!$EY$78)))))*T$8))","v":7500},{"$f":"(SUMPRODUCT(U$9:U$229,Nutrients!$EY$8:$EY$228)+(IF($A$7=Nutrients!$B$8,Nutrients!$EY$8,Nutrients!$EY$9)*U$7)+(((IF($A$8=Nutrients!$B$79,Nutrients!$EY$79,(IF($A$8=Nutrients!$B$77,Nutrients!$EY$77,Nutrients!$EY$78)))))*U$8))","v":7500},null,{"$f":"(SUMPRODUCT(W$9:W$229,Nutrients!$EY$8:$EY$228)+(IF($A$7=Nutrients!$B$8,Nutrients!$EY$8,Nutrients!$EY$9)*W$7)+(((IF($A$8=Nutrients!$B$79,Nutrients!$EY$79,(IF($A$8=Nutrients!$B$77,Nutrients!$EY$77,Nutrients!$EY$78)))))*W$8))","v":15000},{"$f":"(SUMPRODUCT(X$9:X$229,Nutrients!$EY$8:$EY$228)+(IF($A$7=Nutrients!$B$8,Nutrients!$EY$8,Nutrients!$EY$9)*X$7)+(((IF($A$8=Nutrients!$B$79,Nutrients!$EY$79,(IF($A$8=Nutrients!$B$77,Nutrients!$EY$77,Nutrients!$EY$78)))))*X$8))","v":15000},{"$f":"(SUMPRODUCT(Y$9:Y$229,Nutrients!$EY$8:$EY$228)+(IF($A$7=Nutrients!$B$8,Nutrients!$EY$8,Nutrients!$EY$9)*Y$7)+(((IF($A$8=Nutrients!$B$79,Nutrients!$EY$79,(IF($A$8=Nutrients!$B$77,Nutrients!$EY$77,Nutrients!$EY$78)))))*Y$8))","v":12500},{"$f":"(SUMPRODUCT(Z$9:Z$229,Nutrients!$EY$8:$EY$228)+(IF($A$7=Nutrients!$B$8,Nutrients!$EY$8,Nutrients!$EY$9)*Z$7)+(((IF($A$8=Nutrients!$B$79,Nutrients!$EY$79,(IF($A$8=Nutrients!$B$77,Nutrients!$EY$77,Nutrients!$EY$78)))))*Z$8))","v":10000},{"$f":"(SUMPRODUCT(AA$9:AA$229,Nutrients!$EY$8:$EY$228)+(IF($A$7=Nutrients!$B$8,Nutrients!$EY$8,Nutrients!$EY$9)*AA$7)+(((IF($A$8=Nutrients!$B$79,Nutrients!$EY$79,(IF($A$8=Nutrients!$B$77,Nutrients!$EY$77,Nutrients!$EY$78)))))*AA$8))","v":7500},{"$f":"(SUMPRODUCT(AB$9:AB$229,Nutrients!$EY$8:$EY$228)+(IF($A$7=Nutrients!$B$8,Nutrients!$EY$8,Nutrients!$EY$9)*AB$7)+(((IF($A$8=Nutrients!$B$79,Nutrients!$EY$79,(IF($A$8=Nutrients!$B$77,Nutrients!$EY$77,Nutrients!$EY$78)))))*AB$8))","v":7500},null,{"$f":"(SUMPRODUCT(AD$9:AD$229,Nutrients!$EY$8:$EY$228)+(IF($A$7=Nutrients!$B$8,Nutrients!$EY$8,Nutrients!$EY$9)*AD$7)+(((IF($A$8=Nutrients!$B$79,Nutrients!$EY$79,(IF($A$8=Nutrients!$B$77,Nutrients!$EY$77,Nutrients!$EY$78)))))*AD$8))","v":15000},{"$f":"(SUMPRODUCT(AE$9:AE$229,Nutrients!$EY$8:$EY$228)+(IF($A$7=Nutrients!$B$8,Nutrients!$EY$8,Nutrients!$EY$9)*AE$7)+(((IF($A$8=Nutrients!$B$79,Nutrients!$EY$79,(IF($A$8=Nutrients!$B$77,Nutrients!$EY$77,Nutrients!$EY$78)))))*AE$8))","v":15000},{"$f":"(SUMPRODUCT(AF$9:AF$229,Nutrients!$EY$8:$EY$228)+(IF($A$7=Nutrients!$B$8,Nutrients!$EY$8,Nutrients!$EY$9)*AF$7)+(((IF($A$8=Nutrients!$B$79,Nutrients!$EY$79,(IF($A$8=Nutrients!$B$77,Nutrients!$EY$77,Nutrients!$EY$78)))))*AF$8))","v":12500},{"$f":"(SUMPRODUCT(AG$9:AG$229,Nutrients!$EY$8:$EY$228)+(IF($A$7=Nutrients!$B$8,Nutrients!$EY$8,Nutrients!$EY$9)*AG$7)+(((IF($A$8=Nutrients!$B$79,Nutrients!$EY$79,(IF($A$8=Nutrients!$B$77,Nutrients!$EY$77,Nutrients!$EY$78)))))*AG$8))","v":10000},{"$f":"(SUMPRODUCT(AH$9:AH$229,Nutrients!$EY$8:$EY$228)+(IF($A$7=Nutrients!$B$8,Nutrients!$EY$8,Nutrients!$EY$9)*AH$7)+(((IF($A$8=Nutrients!$B$79,Nutrients!$EY$79,(IF($A$8=Nutrients!$B$77,Nutrients!$EY$77,Nutrients!$EY$78)))))*AH$8))","v":7500},{"$f":"(SUMPRODUCT(AI$9:AI$229,Nutrients!$EY$8:$EY$228)+(IF($A$7=Nutrients!$B$8,Nutrients!$EY$8,Nutrients!$EY$9)*AI$7)+(((IF($A$8=Nutrients!$B$79,Nutrients!$EY$79,(IF($A$8=Nutrients!$B$77,Nutrients!$EY$77,Nutrients!$EY$78)))))*AI$8))","v":7500},null,{"$f":"(SUMPRODUCT(AK$9:AK$229,Nutrients!$EY$8:$EY$228)+(IF($A$7=Nutrients!$B$8,Nutrients!$EY$8,Nutrients!$EY$9)*AK$7)+(((IF($A$8=Nutrients!$B$79,Nutrients!$EY$79,(IF($A$8=Nutrients!$B$77,Nutrients!$EY$77,Nutrients!$EY$78)))))*AK$8))","v":15000},{"$f":"(SUMPRODUCT(AL$9:AL$229,Nutrients!$EY$8:$EY$228)+(IF($A$7=Nutrients!$B$8,Nutrients!$EY$8,Nutrients!$EY$9)*AL$7)+(((IF($A$8=Nutrients!$B$79,Nutrients!$EY$79,(IF($A$8=Nutrients!$B$77,Nutrients!$EY$77,Nutrients!$EY$78)))))*AL$8))","v":15000},{"$f":"(SUMPRODUCT(AM$9:AM$229,Nutrients!$EY$8:$EY$228)+(IF($A$7=Nutrients!$B$8,Nutrients!$EY$8,Nutrients!$EY$9)*AM$7)+(((IF($A$8=Nutrients!$B$79,Nutrients!$EY$79,(IF($A$8=Nutrients!$B$77,Nutrients!$EY$77,Nutrients!$EY$78)))))*AM$8))","v":12500},{"$f":"(SUMPRODUCT(AN$9:AN$229,Nutrients!$EY$8:$EY$228)+(IF($A$7=Nutrients!$B$8,Nutrients!$EY$8,Nutrients!$EY$9)*AN$7)+(((IF($A$8=Nutrients!$B$79,Nutrients!$EY$79,(IF($A$8=Nutrients!$B$77,Nutrients!$EY$77,Nutrients!$EY$78)))))*AN$8))","v":10000},{"$f":"(SUMPRODUCT(AO$9:AO$229,Nutrients!$EY$8:$EY$228)+(IF($A$7=Nutrients!$B$8,Nutrients!$EY$8,Nutrients!$EY$9)*AO$7)+(((IF($A$8=Nutrients!$B$79,Nutrients!$EY$79,(IF($A$8=Nutrients!$B$77,Nutrients!$EY$77,Nutrients!$EY$78)))))*AO$8))","v":7500},{"$f":"(SUMPRODUCT(AP$9:AP$229,Nutrients!$EY$8:$EY$228)+(IF($A$7=Nutrients!$B$8,Nutrients!$EY$8,Nutrients!$EY$9)*AP$7)+(((IF($A$8=Nutrients!$B$79,Nutrients!$EY$79,(IF($A$8=Nutrients!$B$77,Nutrients!$EY$77,Nutrients!$EY$78)))))*AP$8))","v":7500},null,{"$f":"(SUMPRODUCT(AR$9:AR$229,Nutrients!$EY$8:$EY$228)+(IF($A$7=Nutrients!$B$8,Nutrients!$EY$8,Nutrients!$EY$9)*AR$7)+(((IF($A$8=Nutrients!$B$79,Nutrients!$EY$79,(IF($A$8=Nutrients!$B$77,Nutrients!$EY$77,Nutrients!$EY$78)))))*AR$8))","v":15000},{"$f":"(SUMPRODUCT(AS$9:AS$229,Nutrients!$EY$8:$EY$228)+(IF($A$7=Nutrients!$B$8,Nutrients!$EY$8,Nutrients!$EY$9)*AS$7)+(((IF($A$8=Nutrients!$B$79,Nutrients!$EY$79,(IF($A$8=Nutrients!$B$77,Nutrients!$EY$77,Nutrients!$EY$78)))))*AS$8))","v":15000},{"$f":"(SUMPRODUCT(AT$9:AT$229,Nutrients!$EY$8:$EY$228)+(IF($A$7=Nutrients!$B$8,Nutrients!$EY$8,Nutrients!$EY$9)*AT$7)+(((IF($A$8=Nutrients!$B$79,Nutrients!$EY$79,(IF($A$8=Nutrients!$B$77,Nutrients!$EY$77,Nutrients!$EY$78)))))*AT$8))","v":12500},{"$f":"(SUMPRODUCT(AU$9:AU$229,Nutrients!$EY$8:$EY$228)+(IF($A$7=Nutrients!$B$8,Nutrients!$EY$8,Nutrients!$EY$9)*AU$7)+(((IF($A$8=Nutrients!$B$79,Nutrients!$EY$79,(IF($A$8=Nutrients!$B$77,Nutrients!$EY$77,Nutrients!$EY$78)))))*AU$8))","v":10000},{"$f":"(SUMPRODUCT(AV$9:AV$229,Nutrients!$EY$8:$EY$228)+(IF($A$7=Nutrients!$B$8,Nutrients!$EY$8,Nutrients!$EY$9)*AV$7)+(((IF($A$8=Nutrients!$B$79,Nutrients!$EY$79,(IF($A$8=Nutrients!$B$77,Nutrients!$EY$77,Nutrients!$EY$78)))))*AV$8))","v":7500},{"$f":"(SUMPRODUCT(AW$9:AW$229,Nutrients!$EY$8:$EY$228)+(IF($A$7=Nutrients!$B$8,Nutrients!$EY$8,Nutrients!$EY$9)*AW$7)+(((IF($A$8=Nutrients!$B$79,Nutrients!$EY$79,(IF($A$8=Nutrients!$B$77,Nutrients!$EY$77,Nutrients!$EY$78)))))*AW$8))","v":7500}]
["  Riboflavin, mg/ton",{"$f":"(SUMPRODUCT(B$9:B$229,Nutrients!$EZ$8:$EZ$228)+(IF($A$7=Nutrients!$B$8,Nutrients!$EZ$8,Nutrients!$EZ$9)*B$7)+(((IF($A$8=Nutrients!$B$79,Nutrients!$EZ$79,(IF($A$8=Nutrients!$B$77,Nutrients!$EZ$77,Nutrients!$EZ$78)))))*B$8))","v":4500},{"$f":"(SUMPRODUCT(C$9:C$229,Nutrients!$EZ$8:$EZ$228)+(IF($A$7=Nutrients!$B$8,Nutrients!$EZ$8,Nutrients!$EZ$9)*C$7)+(((IF($A$8=Nutrients!$B$79,Nutrients!$EZ$79,(IF($A$8=Nutrients!$B$77,Nutrients!$EZ$77,Nutrients!$EZ$78)))))*C$8))","v":4500},{"$f":"(SUMPRODUCT(D$9:D$229,Nutrients!$EZ$8:$EZ$228)+(IF($A$7=Nutrients!$B$8,Nutrients!$EZ$8,Nutrients!$EZ$9)*D$7)+(((IF($A$8=Nutrients!$B$79,Nutrients!$EZ$79,(IF($A$8=Nutrients!$B$77,Nutrients!$EZ$77,Nutrients!$EZ$78)))))*D$8))","v":3750},{"$f":"(SUMPRODUCT(E$9:E$229,Nutrients!$EZ$8:$EZ$228)+(IF($A$7=Nutrients!$B$8,Nutrients!$EZ$8,Nutrients!$EZ$9)*E$7)+(((IF($A$8=Nutrients!$B$79,Nutrients!$EZ$79,(IF($A$8=Nutrients!$B$77,Nutrients!$EZ$77,Nutrients!$EZ$78)))))*E$8))","v":3000},{"$f":"(SUMPRODUCT(F$9:F$229,Nutrients!$EZ$8:$EZ$228)+(IF($A$7=Nutrients!$B$8,Nutrients!$EZ$8,Nutrients!$EZ$9)*F$7)+(((IF($A$8=Nutrients!$B$79,Nutrients!$EZ$79,(IF($A$8=Nutrients!$B$77,Nutrients!$EZ$77,Nutrients!$EZ$78)))))*F$8))","v":2250},{"$f":"(SUMPRODUCT(G$9:G$229,Nutrients!$EZ$8:$EZ$228)+(IF($A$7=Nutrients!$B$8,Nutrients!$EZ$8,Nutrients!$EZ$9)*G$7)+(((IF($A$8=Nutrients!$B$79,Nutrients!$EZ$79,(IF($A$8=Nutrients!$B$77,Nutrients!$EZ$77,Nutrients!$EZ$78)))))*G$8))","v":2250},null,{"$f":"(SUMPRODUCT(I$9:I$229,Nutrients!$EZ$8:$EZ$228)+(IF($A$7=Nutrients!$B$8,Nutrients!$EZ$8,Nutrients!$EZ$9)*I$7)+(((IF($A$8=Nutrients!$B$79,Nutrients!$EZ$79,(IF($A$8=Nutrients!$B$77,Nutrients!$EZ$77,Nutrients!$EZ$78)))))*I$8))","v":4500},{"$f":"(SUMPRODUCT(J$9:J$229,Nutrients!$EZ$8:$EZ$228)+(IF($A$7=Nutrients!$B$8,Nutrients!$EZ$8,Nutrients!$EZ$9)*J$7)+(((IF($A$8=Nutrients!$B$79,Nutrients!$EZ$79,(IF($A$8=Nutrients!$B$77,Nutrients!$EZ$77,Nutrients!$EZ$78)))))*J$8))","v":4500},{"$f":"(SUMPRODUCT(K$9:K$229,Nutrients!$EZ$8:$EZ$228)+(IF($A$7=Nutrients!$B$8,Nutrients!$EZ$8,Nutrients!$EZ$9)*K$7)+(((IF($A$8=Nutrients!$B$79,Nutrients!$EZ$79,(IF($A$8=Nutrients!$B$77,Nutrients!$EZ$77,Nutrients!$EZ$78)))))*K$8))","v":3750},{"$f":"(SUMPRODUCT(L$9:L$229,Nutrients!$EZ$8:$EZ$228)+(IF($A$7=Nutrients!$B$8,Nutrients!$EZ$8,Nutrients!$EZ$9)*L$7)+(((IF($A$8=Nutrients!$B$79,Nutrients!$EZ$79,(IF($A$8=Nutrients!$B$77,Nutrients!$EZ$77,Nutrients!$EZ$78)))))*L$8))","v":3000},{"$f":"(SUMPRODUCT(M$9:M$229,Nutrients!$EZ$8:$EZ$228)+(IF($A$7=Nutrients!$B$8,Nutrients!$EZ$8,Nutrients!$EZ$9)*M$7)+(((IF($A$8=Nutrients!$B$79,Nutrients!$EZ$79,(IF($A$8=Nutrients!$B$77,Nutrients!$EZ$77,Nutrients!$EZ$78)))))*M$8))","v":2250},{"$f":"(SUMPRODUCT(N$9:N$229,Nutrients!$EZ$8:$EZ$228)+(IF($A$7=Nutrients!$B$8,Nutrients!$EZ$8,Nutrients!$EZ$9)*N$7)+(((IF($A$8=Nutrients!$B$79,Nutrients!$EZ$79,(IF($A$8=Nutrients!$B$77,Nutrients!$EZ$77,Nutrients!$EZ$78)))))*N$8))","v":2250},null,{"$f":"(SUMPRODUCT(P$9:P$229,Nutrients!$EZ$8:$EZ$228)+(IF($A$7=Nutrients!$B$8,Nutrients!$EZ$8,Nutrients!$EZ$9)*P$7)+(((IF($A$8=Nutrients!$B$79,Nutrients!$EZ$79,(IF($A$8=Nutrients!$B$77,Nutrients!$EZ$77,Nutrients!$EZ$78)))))*P$8))","v":4500},{"$f":"(SUMPRODUCT(Q$9:Q$229,Nutrients!$EZ$8:$EZ$228)+(IF($A$7=Nutrients!$B$8,Nutrients!$EZ$8,Nutrients!$EZ$9)*Q$7)+(((IF($A$8=Nutrients!$B$79,Nutrients!$EZ$79,(IF($A$8=Nutrients!$B$77,Nutrients!$EZ$77,Nutrients!$EZ$78)))))*Q$8))","v":4500},{"$f":"(SUMPRODUCT(R$9:R$229,Nutrients!$EZ$8:$EZ$228)+(IF($A$7=Nutrients!$B$8,Nutrients!$EZ$8,Nutrients!$EZ$9)*R$7)+(((IF($A$8=Nutrients!$B$79,Nutrients!$EZ$79,(IF($A$8=Nutrients!$B$77,Nutrients!$EZ$77,Nutrients!$EZ$78)))))*R$8))","v":3750},{"$f":"(SUMPRODUCT(S$9:S$229,Nutrients!$EZ$8:$EZ$228)+(IF($A$7=Nutrients!$B$8,Nutrients!$EZ$8,Nutrients!$EZ$9)*S$7)+(((IF($A$8=Nutrients!$B$79,Nutrients!$EZ$79,(IF($A$8=Nutrients!$B$77,Nutrients!$EZ$77,Nutrients!$EZ$78)))))*S$8))","v":3000},{"$f":"(SUMPRODUCT(T$9:T$229,Nutrients!$EZ$8:$EZ$228)+(IF($A$7=Nutrients!$B$8,Nutrients!$EZ$8,Nutrients!$EZ$9)*T$7)+(((IF($A$8=Nutrients!$B$79,Nutrients!$EZ$79,(IF($A$8=Nutrients!$B$77,Nutrients!$EZ$77,Nutrients!$EZ$78)))))*T$8))","v":2250},{"$f":"(SUMPRODUCT(U$9:U$229,Nutrients!$EZ$8:$EZ$228)+(IF($A$7=Nutrients!$B$8,Nutrients!$EZ$8,Nutrients!$EZ$9)*U$7)+(((IF($A$8=Nutrients!$B$79,Nutrients!$EZ$79,(IF($A$8=Nutrients!$B$77,Nutrients!$EZ$77,Nutrients!$EZ$78)))))*U$8))","v":2250},null,{"$f":"(SUMPRODUCT(W$9:W$229,Nutrients!$EZ$8:$EZ$228)+(IF($A$7=Nutrients!$B$8,Nutrients!$EZ$8,Nutrients!$EZ$9)*W$7)+(((IF($A$8=Nutrients!$B$79,Nutrients!$EZ$79,(IF($A$8=Nutrients!$B$77,Nutrients!$EZ$77,Nutrients!$EZ$78)))))*W$8))","v":4500},{"$f":"(SUMPRODUCT(X$9:X$229,Nutrients!$EZ$8:$EZ$228)+(IF($A$7=Nutrients!$B$8,Nutrients!$EZ$8,Nutrients!$EZ$9)*X$7)+(((IF($A$8=Nutrients!$B$79,Nutrients!$EZ$79,(IF($A$8=Nutrients!$B$77,Nutrients!$EZ$77,Nutrients!$EZ$78)))))*X$8))","v":4500},{"$f":"(SUMPRODUCT(Y$9:Y$229,Nutrients!$EZ$8:$EZ$228)+(IF($A$7=Nutrients!$B$8,Nutrients!$EZ$8,Nutrients!$EZ$9)*Y$7)+(((IF($A$8=Nutrients!$B$79,Nutrients!$EZ$79,(IF($A$8=Nutrients!$B$77,Nutrients!$EZ$77,Nutrients!$EZ$78)))))*Y$8))","v":3750},{"$f":"(SUMPRODUCT(Z$9:Z$229,Nutrients!$EZ$8:$EZ$228)+(IF($A$7=Nutrients!$B$8,Nutrients!$EZ$8,Nutrients!$EZ$9)*Z$7)+(((IF($A$8=Nutrients!$B$79,Nutrients!$EZ$79,(IF($A$8=Nutrients!$B$77,Nutrients!$EZ$77,Nutrients!$EZ$78)))))*Z$8))","v":3000},{"$f":"(SUMPRODUCT(AA$9:AA$229,Nutrients!$EZ$8:$EZ$228)+(IF($A$7=Nutrients!$B$8,Nutrients!$EZ$8,Nutrients!$EZ$9)*AA$7)+(((IF($A$8=Nutrients!$B$79,Nutrients!$EZ$79,(IF($A$8=Nutrients!$B$77,Nutrients!$EZ$77,Nutrients!$EZ$78)))))*AA$8))","v":2250},{"$f":"(SUMPRODUCT(AB$9:AB$229,Nutrients!$EZ$8:$EZ$228)+(IF($A$7=Nutrients!$B$8,Nutrients!$EZ$8,Nutrients!$EZ$9)*AB$7)+(((IF($A$8=Nutrients!$B$79,Nutrients!$EZ$79,(IF($A$8=Nutrients!$B$77,Nutrients!$EZ$77,Nutrients!$EZ$78)))))*AB$8))","v":2250},null,{"$f":"(SUMPRODUCT(AD$9:AD$229,Nutrients!$EZ$8:$EZ$228)+(IF($A$7=Nutrients!$B$8,Nutrients!$EZ$8,Nutrients!$EZ$9)*AD$7)+(((IF($A$8=Nutrients!$B$79,Nutrients!$EZ$79,(IF($A$8=Nutrients!$B$77,Nutrients!$EZ$77,Nutrients!$EZ$78)))))*AD$8))","v":4500},{"$f":"(SUMPRODUCT(AE$9:AE$229,Nutrients!$EZ$8:$EZ$228)+(IF($A$7=Nutrients!$B$8,Nutrients!$EZ$8,Nutrients!$EZ$9)*AE$7)+(((IF($A$8=Nutrients!$B$79,Nutrients!$EZ$79,(IF($A$8=Nutrients!$B$77,Nutrients!$EZ$77,Nutrients!$EZ$78)))))*AE$8))","v":4500},{"$f":"(SUMPRODUCT(AF$9:AF$229,Nutrients!$EZ$8:$EZ$228)+(IF($A$7=Nutrients!$B$8,Nutrients!$EZ$8,Nutrients!$EZ$9)*AF$7)+(((IF($A$8=Nutrients!$B$79,Nutrients!$EZ$79,(IF($A$8=Nutrients!$B$77,Nutrients!$EZ$77,Nutrients!$EZ$78)))))*AF$8))","v":3750},{"$f":"(SUMPRODUCT(AG$9:AG$229,Nutrients!$EZ$8:$EZ$228)+(IF($A$7=Nutrients!$B$8,Nutrients!$EZ$8,Nutrients!$EZ$9)*AG$7)+(((IF($A$8=Nutrients!$B$79,Nutrients!$EZ$79,(IF($A$8=Nutrients!$B$77,Nutrients!$EZ$77,Nutrients!$EZ$78)))))*AG$8))","v":3000},{"$f":"(SUMPRODUCT(AH$9:AH$229,Nutrients!$EZ$8:$EZ$228)+(IF($A$7=Nutrients!$B$8,Nutrients!$EZ$8,Nutrients!$EZ$9)*AH$7)+(((IF($A$8=Nutrients!$B$79,Nutrients!$EZ$79,(IF($A$8=Nutrients!$B$77,Nutrients!$EZ$77,Nutrients!$EZ$78)))))*AH$8))","v":2250},{"$f":"(SUMPRODUCT(AI$9:AI$229,Nutrients!$EZ$8:$EZ$228)+(IF($A$7=Nutrients!$B$8,Nutrients!$EZ$8,Nutrients!$EZ$9)*AI$7)+(((IF($A$8=Nutrients!$B$79,Nutrients!$EZ$79,(IF($A$8=Nutrients!$B$77,Nutrients!$EZ$77,Nutrients!$EZ$78)))))*AI$8))","v":2250},null,{"$f":"(SUMPRODUCT(AK$9:AK$229,Nutrients!$EZ$8:$EZ$228)+(IF($A$7=Nutrients!$B$8,Nutrients!$EZ$8,Nutrients!$EZ$9)*AK$7)+(((IF($A$8=Nutrients!$B$79,Nutrients!$EZ$79,(IF($A$8=Nutrients!$B$77,Nutrients!$EZ$77,Nutrients!$EZ$78)))))*AK$8))","v":4500},{"$f":"(SUMPRODUCT(AL$9:AL$229,Nutrients!$EZ$8:$EZ$228)+(IF($A$7=Nutrients!$B$8,Nutrients!$EZ$8,Nutrients!$EZ$9)*AL$7)+(((IF($A$8=Nutrients!$B$79,Nutrients!$EZ$79,(IF($A$8=Nutrients!$B$77,Nutrients!$EZ$77,Nutrients!$EZ$78)))))*AL$8))","v":4500},{"$f":"(SUMPRODUCT(AM$9:AM$229,Nutrients!$EZ$8:$EZ$228)+(IF($A$7=Nutrients!$B$8,Nutrients!$EZ$8,Nutrients!$EZ$9)*AM$7)+(((IF($A$8=Nutrients!$B$79,Nutrients!$EZ$79,(IF($A$8=Nutrients!$B$77,Nutrients!$EZ$77,Nutrients!$EZ$78)))))*AM$8))","v":3750},{"$f":"(SUMPRODUCT(AN$9:AN$229,Nutrients!$EZ$8:$EZ$228)+(IF($A$7=Nutrients!$B$8,Nutrients!$EZ$8,Nutrients!$EZ$9)*AN$7)+(((IF($A$8=Nutrients!$B$79,Nutrients!$EZ$79,(IF($A$8=Nutrients!$B$77,Nutrients!$EZ$77,Nutrients!$EZ$78)))))*AN$8))","v":3000},{"$f":"(SUMPRODUCT(AO$9:AO$229,Nutrients!$EZ$8:$EZ$228)+(IF($A$7=Nutrients!$B$8,Nutrients!$EZ$8,Nutrients!$EZ$9)*AO$7)+(((IF($A$8=Nutrients!$B$79,Nutrients!$EZ$79,(IF($A$8=Nutrients!$B$77,Nutrients!$EZ$77,Nutrients!$EZ$78)))))*AO$8))","v":2250},{"$f":"(SUMPRODUCT(AP$9:AP$229,Nutrients!$EZ$8:$EZ$228)+(IF($A$7=Nutrients!$B$8,Nutrients!$EZ$8,Nutrients!$EZ$9)*AP$7)+(((IF($A$8=Nutrients!$B$79,Nutrients!$EZ$79,(IF($A$8=Nutrients!$B$77,Nutrients!$EZ$77,Nutrients!$EZ$78)))))*AP$8))","v":2250},null,{"$f":"(SUMPRODUCT(AR$9:AR$229,Nutrients!$EZ$8:$EZ$228)+(IF($A$7=Nutrients!$B$8,Nutrients!$EZ$8,Nutrients!$EZ$9)*AR$7)+(((IF($A$8=Nutrients!$B$79,Nutrients!$EZ$79,(IF($A$8=Nutrients!$B$77,Nutrients!$EZ$77,Nutrients!$EZ$78)))))*AR$8))","v":4500},{"$f":"(SUMPRODUCT(AS$9:AS$229,Nutrients!$EZ$8:$EZ$228)+(IF($A$7=Nutrients!$B$8,Nutrients!$EZ$8,Nutrients!$EZ$9)*AS$7)+(((IF($A$8=Nutrients!$B$79,Nutrients!$EZ$79,(IF($A$8=Nutrients!$B$77,Nutrients!$EZ$77,Nutrients!$EZ$78)))))*AS$8))","v":4500},{"$f":"(SUMPRODUCT(AT$9:AT$229,Nutrients!$EZ$8:$EZ$228)+(IF($A$7=Nutrients!$B$8,Nutrients!$EZ$8,Nutrients!$EZ$9)*AT$7)+(((IF($A$8=Nutrients!$B$79,Nutrients!$EZ$79,(IF($A$8=Nutrients!$B$77,Nutrients!$EZ$77,Nutrients!$EZ$78)))))*AT$8))","v":3750},{"$f":"(SUMPRODUCT(AU$9:AU$229,Nutrients!$EZ$8:$EZ$228)+(IF($A$7=Nutrients!$B$8,Nutrients!$EZ$8,Nutrients!$EZ$9)*AU$7)+(((IF($A$8=Nutrients!$B$79,Nutrients!$EZ$79,(IF($A$8=Nutrients!$B$77,Nutrients!$EZ$77,Nutrients!$EZ$78)))))*AU$8))","v":3000},{"$f":"(SUMPRODUCT(AV$9:AV$229,Nutrients!$EZ$8:$EZ$228)+(IF($A$7=Nutrients!$B$8,Nutrients!$EZ$8,Nutrients!$EZ$9)*AV$7)+(((IF($A$8=Nutrients!$B$79,Nutrients!$EZ$79,(IF($A$8=Nutrients!$B$77,Nutrients!$EZ$77,Nutrients!$EZ$78)))))*AV$8))","v":2250},{"$f":"(SUMPRODUCT(AW$9:AW$229,Nutrients!$EZ$8:$EZ$228)+(IF($A$7=Nutrients!$B$8,Nutrients!$EZ$8,Nutrients!$EZ$9)*AW$7)+(((IF($A$8=Nutrients!$B$79,Nutrients!$EZ$79,(IF($A$8=Nutrients!$B$77,Nutrients!$EZ$77,Nutrients!$EZ$78)))))*AW$8))","v":2250}]
["  Biotin, mg/ton",{"$f":"(SUMPRODUCT(B$9:B$229,Nutrients!$FA$8:$FA$228)+(IF($A$7=Nutrients!$B$8,Nutrients!$FA$8,Nutrients!$FA$9)*B$7)+(((IF($A$8=Nutrients!$B$79,Nutrients!$FA$79,(IF($A$8=Nutrients!$B$77,Nutrients!$FA$77,Nutrients!$FA$78)))))*B$8))","v":0},{"$f":"(SUMPRODUCT(C$9:C$229,Nutrients!$FA$8:$FA$228)+(IF($A$7=Nutrients!$B$8,Nutrients!$FA$8,Nutrients!$FA$9)*C$7)+(((IF($A$8=Nutrients!$B$79,Nutrients!$FA$79,(IF($A$8=Nutrients!$B$77,Nutrients!$FA$77,Nutrients!$FA$78)))))*C$8))","v":0},{"$f":"(SUMPRODUCT(D$9:D$229,Nutrients!$FA$8:$FA$228)+(IF($A$7=Nutrients!$B$8,Nutrients!$FA$8,Nutrients!$FA$9)*D$7)+(((IF($A$8=Nutrients!$B$79,Nutrients!$FA$79,(IF($A$8=Nutrients!$B$77,Nutrients!$FA$77,Nutrients!$FA$78)))))*D$8))","v":0},{"$f":"(SUMPRODUCT(E$9:E$229,Nutrients!$FA$8:$FA$228)+(IF($A$7=Nutrients!$B$8,Nutrients!$FA$8,Nutrients!$FA$9)*E$7)+(((IF($A$8=Nutrients!$B$79,Nutrients!$FA$79,(IF($A$8=Nutrients!$B$77,Nutrients!$FA$77,Nutrients!$FA$78)))))*E$8))","v":0},{"$f":"(SUMPRODUCT(F$9:F$229,Nutrients!$FA$8:$FA$228)+(IF($A$7=Nutrients!$B$8,Nutrients!$FA$8,Nutrients!$FA$9)*F$7)+(((IF($A$8=Nutrients!$B$79,Nutrients!$FA$79,(IF($A$8=Nutrients!$B$77,Nutrients!$FA$77,Nutrients!$FA$78)))))*F$8))","v":0},{"$f":"(SUMPRODUCT(G$9:G$229,Nutrients!$FA$8:$FA$228)+(IF($A$7=Nutrients!$B$8,Nutrients!$FA$8,Nutrients!$FA$9)*G$7)+(((IF($A$8=Nutrients!$B$79,Nutrients!$FA$79,(IF($A$8=Nutrients!$B$77,Nutrients!$FA$77,Nutrients!$FA$78)))))*G$8))","v":0},null,{"$f":"(SUMPRODUCT(I$9:I$229,Nutrients!$FA$8:$FA$228)+(IF($A$7=Nutrients!$B$8,Nutrients!$FA$8,Nutrients!$FA$9)*I$7)+(((IF($A$8=Nutrients!$B$79,Nutrients!$FA$79,(IF($A$8=Nutrients!$B$77,Nutrients!$FA$77,Nutrients!$FA$78)))))*I$8))","v":0},{"$f":"(SUMPRODUCT(J$9:J$229,Nutrients!$FA$8:$FA$228)+(IF($A$7=Nutrients!$B$8,Nutrients!$FA$8,Nutrients!$FA$9)*J$7)+(((IF($A$8=Nutrients!$B$79,Nutrients!$FA$79,(IF($A$8=Nutrients!$B$77,Nutrients!$FA$77,Nutrients!$FA$78)))))*J$8))","v":0},{"$f":"(SUMPRODUCT(K$9:K$229,Nutrients!$FA$8:$FA$228)+(IF($A$7=Nutrients!$B$8,Nutrients!$FA$8,Nutrients!$FA$9)*K$7)+(((IF($A$8=Nutrients!$B$79,Nutrients!$FA$79,(IF($A$8=Nutrients!$B$77,Nutrients!$FA$77,Nutrients!$FA$78)))))*K$8))","v":0},{"$f":"(SUMPRODUCT(L$9:L$229,Nutrients!$FA$8:$FA$228)+(IF($A$7=Nutrients!$B$8,Nutrients!$FA$8,Nutrients!$FA$9)*L$7)+(((IF($A$8=Nutrients!$B$79,Nutrients!$FA$79,(IF($A$8=Nutrients!$B$77,Nutrients!$FA$77,Nutrients!$FA$78)))))*L$8))","v":0},{"$f":"(SUMPRODUCT(M$9:M$229,Nutrients!$FA$8:$FA$228)+(IF($A$7=Nutrients!$B$8,Nutrients!$FA$8,Nutrients!$FA$9)*M$7)+(((IF($A$8=Nutrients!$B$79,Nutrients!$FA$79,(IF($A$8=Nutrients!$B$77,Nutrients!$FA$77,Nutrients!$FA$78)))))*M$8))","v":0},{"$f":"(SUMPRODUCT(N$9:N$229,Nutrients!$FA$8:$FA$228)+(IF($A$7=Nutrients!$B$8,Nutrients!$FA$8,Nutrients!$FA$9)*N$7)+(((IF($A$8=Nutrients!$B$79,Nutrients!$FA$79,(IF($A$8=Nutrients!$B$77,Nutrients!$FA$77,Nutrients!$FA$78)))))*N$8))","v":0},null,{"$f":"(SUMPRODUCT(P$9:P$229,Nutrients!$FA$8:$FA$228)+(IF($A$7=Nutrients!$B$8,Nutrients!$FA$8,Nutrients!$FA$9)*P$7)+(((IF($A$8=Nutrients!$B$79,Nutrients!$FA$79,(IF($A$8=Nutrients!$B$77,Nutrients!$FA$77,Nutrients!$FA$78)))))*P$8))","v":0},{"$f":"(SUMPRODUCT(Q$9:Q$229,Nutrients!$FA$8:$FA$228)+(IF($A$7=Nutrients!$B$8,Nutrients!$FA$8,Nutrients!$FA$9)*Q$7)+(((IF($A$8=Nutrients!$B$79,Nutrients!$FA$79,(IF($A$8=Nutrients!$B$77,Nutrients!$FA$77,Nutrients!$FA$78)))))*Q$8))","v":0},{"$f":"(SUMPRODUCT(R$9:R$229,Nutrients!$FA$8:$FA$228)+(IF($A$7=Nutrients!$B$8,Nutrients!$FA$8,Nutrients!$FA$9)*R$7)+(((IF($A$8=Nutrients!$B$79,Nutrients!$FA$79,(IF($A$8=Nutrients!$B$77,Nutrients!$FA$77,Nutrients!$FA$78)))))*R$8))","v":0},{"$f":"(SUMPRODUCT(S$9:S$229,Nutrients!$FA$8:$FA$228)+(IF($A$7=Nutrients!$B$8,Nutrients!$FA$8,Nutrients!$FA$9)*S$7)+(((IF($A$8=Nutrients!$B$79,Nutrients!$FA$79,(IF($A$8=Nutrients!$B$77,Nutrients!$FA$77,Nutrients!$FA$78)))))*S$8))","v":0},{"$f":"(SUMPRODUCT(T$9:T$229,Nutrients!$FA$8:$FA$228)+(IF($A$7=Nutrients!$B$8,Nutrients!$FA$8,Nutrients!$FA$9)*T$7)+(((IF($A$8=Nutrients!$B$79,Nutrients!$FA$79,(IF($A$8=Nutrients!$B$77,Nutrients!$FA$77,Nutrients!$FA$78)))))*T$8))","v":0},{"$f":"(SUMPRODUCT(U$9:U$229,Nutrients!$FA$8:$FA$228)+(IF($A$7=Nutrients!$B$8,Nutrients!$FA$8,Nutrients!$FA$9)*U$7)+(((IF($A$8=Nutrients!$B$79,Nutrients!$FA$79,(IF($A$8=Nutrients!$B$77,Nutrients!$FA$77,Nutrients!$FA$78)))))*U$8))","v":0},null,{"$f":"(SUMPRODUCT(W$9:W$229,Nutrients!$FA$8:$FA$228)+(IF($A$7=Nutrients!$B$8,Nutrients!$FA$8,Nutrients!$FA$9)*W$7)+(((IF($A$8=Nutrients!$B$79,Nutrients!$FA$79,(IF($A$8=Nutrients!$B$77,Nutrients!$FA$77,Nutrients!$FA$78)))))*W$8))","v":0},{"$f":"(SUMPRODUCT(X$9:X$229,Nutrients!$FA$8:$FA$228)+(IF($A$7=Nutrients!$B$8,Nutrients!$FA$8,Nutrients!$FA$9)*X$7)+(((IF($A$8=Nutrients!$B$79,Nutrients!$FA$79,(IF($A$8=Nutrients!$B$77,Nutrients!$FA$77,Nutrients!$FA$78)))))*X$8))","v":0},{"$f":"(SUMPRODUCT(Y$9:Y$229,Nutrients!$FA$8:$FA$228)+(IF($A$7=Nutrients!$B$8,Nutrients!$FA$8,Nutrients!$FA$9)*Y$7)+(((IF($A$8=Nutrients!$B$79,Nutrients!$FA$79,(IF($A$8=Nutrients!$B$77,Nutrients!$FA$77,Nutrients!$FA$78)))))*Y$8))","v":0},{"$f":"(SUMPRODUCT(Z$9:Z$229,Nutrients!$FA$8:$FA$228)+(IF($A$7=Nutrients!$B$8,Nutrients!$FA$8,Nutrients!$FA$9)*Z$7)+(((IF($A$8=Nutrients!$B$79,Nutrients!$FA$79,(IF($A$8=Nutrients!$B$77,Nutrients!$FA$77,Nutrients!$FA$78)))))*Z$8))","v":0},{"$f":"(SUMPRODUCT(AA$9:AA$229,Nutrients!$FA$8:$FA$228)+(IF($A$7=Nutrients!$B$8,Nutrients!$FA$8,Nutrients!$FA$9)*AA$7)+(((IF($A$8=Nutrients!$B$79,Nutrients!$FA$79,(IF($A$8=Nutrients!$B$77,Nutrients!$FA$77,Nutrients!$FA$78)))))*AA$8))","v":0},{"$f":"(SUMPRODUCT(AB$9:AB$229,Nutrients!$FA$8:$FA$228)+(IF($A$7=Nutrients!$B$8,Nutrients!$FA$8,Nutrients!$FA$9)*AB$7)+(((IF($A$8=Nutrients!$B$79,Nutrients!$FA$79,(IF($A$8=Nutrients!$B$77,Nutrients!$FA$77,Nutrients!$FA$78)))))*AB$8))","v":0},null,{"$f":"(SUMPRODUCT(AD$9:AD$229,Nutrients!$FA$8:$FA$228)+(IF($A$7=Nutrients!$B$8,Nutrients!$FA$8,Nutrients!$FA$9)*AD$7)+(((IF($A$8=Nutrients!$B$79,Nutrients!$FA$79,(IF($A$8=Nutrients!$B$77,Nutrients!$FA$77,Nutrients!$FA$78)))))*AD$8))","v":0},{"$f":"(SUMPRODUCT(AE$9:AE$229,Nutrients!$FA$8:$FA$228)+(IF($A$7=Nutrients!$B$8,Nutrients!$FA$8,Nutrients!$FA$9)*AE$7)+(((IF($A$8=Nutrients!$B$79,Nutrients!$FA$79,(IF($A$8=Nutrients!$B$77,Nutrients!$FA$77,Nutrients!$FA$78)))))*AE$8))","v":0},{"$f":"(SUMPRODUCT(AF$9:AF$229,Nutrients!$FA$8:$FA$228)+(IF($A$7=Nutrients!$B$8,Nutrients!$FA$8,Nutrients!$FA$9)*AF$7)+(((IF($A$8=Nutrients!$B$79,Nutrients!$FA$79,(IF($A$8=Nutrients!$B$77,Nutrients!$FA$77,Nutrients!$FA$78)))))*AF$8))","v":0},{"$f":"(SUMPRODUCT(AG$9:AG$229,Nutrients!$FA$8:$FA$228)+(IF($A$7=Nutrients!$B$8,Nutrients!$FA$8,Nutrients!$FA$9)*AG$7)+(((IF($A$8=Nutrients!$B$79,Nutrients!$FA$79,(IF($A$8=Nutrients!$B$77,Nutrients!$FA$77,Nutrients!$FA$78)))))*AG$8))","v":0},{"$f":"(SUMPRODUCT(AH$9:AH$229,Nutrients!$FA$8:$FA$228)+(IF($A$7=Nutrients!$B$8,Nutrients!$FA$8,Nutrients!$FA$9)*AH$7)+(((IF($A$8=Nutrients!$B$79,Nutrients!$FA$79,(IF($A$8=Nutrients!$B$77,Nutrients!$FA$77,Nutrients!$FA$78)))))*AH$8))","v":0},{"$f":"(SUMPRODUCT(AI$9:AI$229,Nutrients!$FA$8:$FA$228)+(IF($A$7=Nutrients!$B$8,Nutrients!$FA$8,Nutrients!$FA$9)*AI$7)+(((IF($A$8=Nutrients!$B$79,Nutrients!$FA$79,(IF($A$8=Nutrients!$B$77,Nutrients!$FA$77,Nutrients!$FA$78)))))*AI$8))","v":0},null,{"$f":"(SUMPRODUCT(AK$9:AK$229,Nutrients!$FA$8:$FA$228)+(IF($A$7=Nutrients!$B$8,Nutrients!$FA$8,Nutrients!$FA$9)*AK$7)+(((IF($A$8=Nutrients!$B$79,Nutrients!$FA$79,(IF($A$8=Nutrients!$B$77,Nutrients!$FA$77,Nutrients!$FA$78)))))*AK$8))","v":0},{"$f":"(SUMPRODUCT(AL$9:AL$229,Nutrients!$FA$8:$FA$228)+(IF($A$7=Nutrients!$B$8,Nutrients!$FA$8,Nutrients!$FA$9)*AL$7)+(((IF($A$8=Nutrients!$B$79,Nutrients!$FA$79,(IF($A$8=Nutrients!$B$77,Nutrients!$FA$77,Nutrients!$FA$78)))))*AL$8))","v":0},{"$f":"(SUMPRODUCT(AM$9:AM$229,Nutrients!$FA$8:$FA$228)+(IF($A$7=Nutrients!$B$8,Nutrients!$FA$8,Nutrients!$FA$9)*AM$7)+(((IF($A$8=Nutrients!$B$79,Nutrients!$FA$79,(IF($A$8=Nutrients!$B$77,Nutrients!$FA$77,Nutrients!$FA$78)))))*AM$8))","v":0},{"$f":"(SUMPRODUCT(AN$9:AN$229,Nutrients!$FA$8:$FA$228)+(IF($A$7=Nutrients!$B$8,Nutrients!$FA$8,Nutrients!$FA$9)*AN$7)+(((IF($A$8=Nutrients!$B$79,Nutrients!$FA$79,(IF($A$8=Nutrients!$B$77,Nutrients!$FA$77,Nutrients!$FA$78)))))*AN$8))","v":0},{"$f":"(SUMPRODUCT(AO$9:AO$229,Nutrients!$FA$8:$FA$228)+(IF($A$7=Nutrients!$B$8,Nutrients!$FA$8,Nutrients!$FA$9)*AO$7)+(((IF($A$8=Nutrients!$B$79,Nutrients!$FA$79,(IF($A$8=Nutrients!$B$77,Nutrients!$FA$77,Nutrients!$FA$78)))))*AO$8))","v":0},{"$f":"(SUMPRODUCT(AP$9:AP$229,Nutrients!$FA$8:$FA$228)+(IF($A$7=Nutrients!$B$8,Nutrients!$FA$8,Nutrients!$FA$9)*AP$7)+(((IF($A$8=Nutrients!$B$79,Nutrients!$FA$79,(IF($A$8=Nutrients!$B$77,Nutrients!$FA$77,Nutrients!$FA$78)))))*AP$8))","v":0},null,{"$f":"(SUMPRODUCT(AR$9:AR$229,Nutrients!$FA$8:$FA$228)+(IF($A$7=Nutrients!$B$8,Nutrients!$FA$8,Nutrients!$FA$9)*AR$7)+(((IF($A$8=Nutrients!$B$79,Nutrients!$FA$79,(IF($A$8=Nutrients!$B$77,Nutrients!$FA$77,Nutrients!$FA$78)))))*AR$8))","v":0},{"$f":"(SUMPRODUCT(AS$9:AS$229,Nutrients!$FA$8:$FA$228)+(IF($A$7=Nutrients!$B$8,Nutrients!$FA$8,Nutrients!$FA$9)*AS$7)+(((IF($A$8=Nutrients!$B$79,Nutrients!$FA$79,(IF($A$8=Nutrients!$B$77,Nutrients!$FA$77,Nutrients!$FA$78)))))*AS$8))","v":0},{"$f":"(SUMPRODUCT(AT$9:AT$229,Nutrients!$FA$8:$FA$228)+(IF($A$7=Nutrients!$B$8,Nutrients!$FA$8,Nutrients!$FA$9)*AT$7)+(((IF($A$8=Nutrients!$B$79,Nutrients!$FA$79,(IF($A$8=Nutrients!$B$77,Nutrients!$FA$77,Nutrients!$FA$78)))))*AT$8))","v":0},{"$f":"(SUMPRODUCT(AU$9:AU$229,Nutrients!$FA$8:$FA$228)+(IF($A$7=Nutrients!$B$8,Nutrients!$FA$8,Nutrients!$FA$9)*AU$7)+(((IF($A$8=Nutrients!$B$79,Nutrients!$FA$79,(IF($A$8=Nutrients!$B$77,Nutrients!$FA$77,Nutrients!$FA$78)))))*AU$8))","v":0},{"$f":"(SUMPRODUCT(AV$9:AV$229,Nutrients!$FA$8:$FA$228)+(IF($A$7=Nutrients!$B$8,Nutrients!$FA$8,Nutrients!$FA$9)*AV$7)+(((IF($A$8=Nutrients!$B$79,Nutrients!$FA$79,(IF($A$8=Nutrients!$B$77,Nutrients!$FA$77,Nutrients!$FA$78)))))*AV$8))","v":0},{"$f":"(SUMPRODUCT(AW$9:AW$229,Nutrients!$FA$8:$FA$228)+(IF($A$7=Nutrients!$B$8,Nutrients!$FA$8,Nutrients!$FA$9)*AW$7)+(((IF($A$8=Nutrients!$B$79,Nutrients!$FA$79,(IF($A$8=Nutrients!$B$77,Nutrients!$FA$77,Nutrients!$FA$78)))))*AW$8))","v":0}]
["  Folic acid, mg/ton",{"$f":"(SUMPRODUCT(B$9:B$229,Nutrients!$FB$8:$FB$228)+(IF($A$7=Nutrients!$B$8,Nutrients!$FB$8,Nutrients!$FB$9)*B$7)+(((IF($A$8=Nutrients!$B$79,Nutrients!$FB$79,(IF($A$8=Nutrients!$B$77,Nutrients!$FB$77,Nutrients!$FB$78)))))*B$8))","v":0},{"$f":"(SUMPRODUCT(C$9:C$229,Nutrients!$FB$8:$FB$228)+(IF($A$7=Nutrients!$B$8,Nutrients!$FB$8,Nutrients!$FB$9)*C$7)+(((IF($A$8=Nutrients!$B$79,Nutrients!$FB$79,(IF($A$8=Nutrients!$B$77,Nutrients!$FB$77,Nutrients!$FB$78)))))*C$8))","v":0},{"$f":"(SUMPRODUCT(D$9:D$229,Nutrients!$FB$8:$FB$228)+(IF($A$7=Nutrients!$B$8,Nutrients!$FB$8,Nutrients!$FB$9)*D$7)+(((IF($A$8=Nutrients!$B$79,Nutrients!$FB$79,(IF($A$8=Nutrients!$B$77,Nutrients!$FB$77,Nutrients!$FB$78)))))*D$8))","v":0},{"$f":"(SUMPRODUCT(E$9:E$229,Nutrients!$FB$8:$FB$228)+(IF($A$7=Nutrients!$B$8,Nutrients!$FB$8,Nutrients!$FB$9)*E$7)+(((IF($A$8=Nutrients!$B$79,Nutrients!$FB$79,(IF($A$8=Nutrients!$B$77,Nutrients!$FB$77,Nutrients!$FB$78)))))*E$8))","v":0},{"$f":"(SUMPRODUCT(F$9:F$229,Nutrients!$FB$8:$FB$228)+(IF($A$7=Nutrients!$B$8,Nutrients!$FB$8,Nutrients!$FB$9)*F$7)+(((IF($A$8=Nutrients!$B$79,Nutrients!$FB$79,(IF($A$8=Nutrients!$B$77,Nutrients!$FB$77,Nutrients!$FB$78)))))*F$8))","v":0},{"$f":"(SUMPRODUCT(G$9:G$229,Nutrients!$FB$8:$FB$228)+(IF($A$7=Nutrients!$B$8,Nutrients!$FB$8,Nutrients!$FB$9)*G$7)+(((IF($A$8=Nutrients!$B$79,Nutrients!$FB$79,(IF($A$8=Nutrients!$B$77,Nutrients!$FB$77,Nutrients!$FB$78)))))*G$8))","v":0},null,{"$f":"(SUMPRODUCT(I$9:I$229,Nutrients!$FB$8:$FB$228)+(IF($A$7=Nutrients!$B$8,Nutrients!$FB$8,Nutrients!$FB$9)*I$7)+(((IF($A$8=Nutrients!$B$79,Nutrients!$FB$79,(IF($A$8=Nutrients!$B$77,Nutrients!$FB$77,Nutrients!$FB$78)))))*I$8))","v":0},{"$f":"(SUMPRODUCT(J$9:J$229,Nutrients!$FB$8:$FB$228)+(IF($A$7=Nutrients!$B$8,Nutrients!$FB$8,Nutrients!$FB$9)*J$7)+(((IF($A$8=Nutrients!$B$79,Nutrients!$FB$79,(IF($A$8=Nutrients!$B$77,Nutrients!$FB$77,Nutrients!$FB$78)))))*J$8))","v":0},{"$f":"(SUMPRODUCT(K$9:K$229,Nutrients!$FB$8:$FB$228)+(IF($A$7=Nutrients!$B$8,Nutrients!$FB$8,Nutrients!$FB$9)*K$7)+(((IF($A$8=Nutrients!$B$79,Nutrients!$FB$79,(IF($A$8=Nutrients!$B$77,Nutrients!$FB$77,Nutrients!$FB$78)))))*K$8))","v":0},{"$f":"(SUMPRODUCT(L$9:L$229,Nutrients!$FB$8:$FB$228)+(IF($A$7=Nutrients!$B$8,Nutrients!$FB$8,Nutrients!$FB$9)*L$7)+(((IF($A$8=Nutrients!$B$79,Nutrients!$FB$79,(IF($A$8=Nutrients!$B$77,Nutrients!$FB$77,Nutrients!$FB$78)))))*L$8))","v":0},{"$f":"(SUMPRODUCT(M$9:M$229,Nutrients!$FB$8:$FB$228)+(IF($A$7=Nutrients!$B$8,Nutrients!$FB$8,Nutrients!$FB$9)*M$7)+(((IF($A$8=Nutrients!$B$79,Nutrients!$FB$79,(IF($A$8=Nutrients!$B$77,Nutrients!$FB$77,Nutrients!$FB$78)))))*M$8))","v":0},{"$f":"(SUMPRODUCT(N$9:N$229,Nutrients!$FB$8:$FB$228)+(IF($A$7=Nutrients!$B$8,Nutrients!$FB$8,Nutrients!$FB$9)*N$7)+(((IF($A$8=Nutrients!$B$79,Nutrients!$FB$79,(IF($A$8=Nutrients!$B$77,Nutrients!$FB$77,Nutrients!$FB$78)))))*N$8))","v":0},null,{"$f":"(SUMPRODUCT(P$9:P$229,Nutrients!$FB$8:$FB$228)+(IF($A$7=Nutrients!$B$8,Nutrients!$FB$8,Nutrients!$FB$9)*P$7)+(((IF($A$8=Nutrients!$B$79,Nutrients!$FB$79,(IF($A$8=Nutrients!$B$77,Nutrients!$FB$77,Nutrients!$FB$78)))))*P$8))","v":0},{"$f":"(SUMPRODUCT(Q$9:Q$229,Nutrients!$FB$8:$FB$228)+(IF($A$7=Nutrients!$B$8,Nutrients!$FB$8,Nutrients!$FB$9)*Q$7)+(((IF($A$8=Nutrients!$B$79,Nutrients!$FB$79,(IF($A$8=Nutrients!$B$77,Nutrients!$FB$77,Nutrients!$FB$78)))))*Q$8))","v":0},{"$f":"(SUMPRODUCT(R$9:R$229,Nutrients!$FB$8:$FB$228)+(IF($A$7=Nutrients!$B$8,Nutrients!$FB$8,Nutrients!$FB$9)*R$7)+(((IF($A$8=Nutrients!$B$79,Nutrients!$FB$79,(IF($A$8=Nutrients!$B$77,Nutrients!$FB$77,Nutrients!$FB$78)))))*R$8))","v":0},{"$f":"(SUMPRODUCT(S$9:S$229,Nutrients!$FB$8:$FB$228)+(IF($A$7=Nutrients!$B$8,Nutrients!$FB$8,Nutrients!$FB$9)*S$7)+(((IF($A$8=Nutrients!$B$79,Nutrients!$FB$79,(IF($A$8=Nutrients!$B$77,Nutrients!$FB$77,Nutrients!$FB$78)))))*S$8))","v":0},{"$f":"(SUMPRODUCT(T$9:T$229,Nutrients!$FB$8:$FB$228)+(IF($A$7=Nutrients!$B$8,Nutrients!$FB$8,Nutrients!$FB$9)*T$7)+(((IF($A$8=Nutrients!$B$79,Nutrients!$FB$79,(IF($A$8=Nutrients!$B$77,Nutrients!$FB$77,Nutrients!$FB$78)))))*T$8))","v":0},{"$f":"(SUMPRODUCT(U$9:U$229,Nutrients!$FB$8:$FB$228)+(IF($A$7=Nutrients!$B$8,Nutrients!$FB$8,Nutrients!$FB$9)*U$7)+(((IF($A$8=Nutrients!$B$79,Nutrients!$FB$79,(IF($A$8=Nutrients!$B$77,Nutrients!$FB$77,Nutrients!$FB$78)))))*U$8))","v":0},null,{"$f":"(SUMPRODUCT(W$9:W$229,Nutrients!$FB$8:$FB$228)+(IF($A$7=Nutrients!$B$8,Nutrients!$FB$8,Nutrients!$FB$9)*W$7)+(((IF($A$8=Nutrients!$B$79,Nutrients!$FB$79,(IF($A$8=Nutrients!$B$77,Nutrients!$FB$77,Nutrients!$FB$78)))))*W$8))","v":0},{"$f":"(SUMPRODUCT(X$9:X$229,Nutrients!$FB$8:$FB$228)+(IF($A$7=Nutrients!$B$8,Nutrients!$FB$8,Nutrients!$FB$9)*X$7)+(((IF($A$8=Nutrients!$B$79,Nutrients!$FB$79,(IF($A$8=Nutrients!$B$77,Nutrients!$FB$77,Nutrients!$FB$78)))))*X$8))","v":0},{"$f":"(SUMPRODUCT(Y$9:Y$229,Nutrients!$FB$8:$FB$228)+(IF($A$7=Nutrients!$B$8,Nutrients!$FB$8,Nutrients!$FB$9)*Y$7)+(((IF($A$8=Nutrients!$B$79,Nutrients!$FB$79,(IF($A$8=Nutrients!$B$77,Nutrients!$FB$77,Nutrients!$FB$78)))))*Y$8))","v":0},{"$f":"(SUMPRODUCT(Z$9:Z$229,Nutrients!$FB$8:$FB$228)+(IF($A$7=Nutrients!$B$8,Nutrients!$FB$8,Nutrients!$FB$9)*Z$7)+(((IF($A$8=Nutrients!$B$79,Nutrients!$FB$79,(IF($A$8=Nutrients!$B$77,Nutrients!$FB$77,Nutrients!$FB$78)))))*Z$8))","v":0},{"$f":"(SUMPRODUCT(AA$9:AA$229,Nutrients!$FB$8:$FB$228)+(IF($A$7=Nutrients!$B$8,Nutrients!$FB$8,Nutrients!$FB$9)*AA$7)+(((IF($A$8=Nutrients!$B$79,Nutrients!$FB$79,(IF($A$8=Nutrients!$B$77,Nutrients!$FB$77,Nutrients!$FB$78)))))*AA$8))","v":0},{"$f":"(SUMPRODUCT(AB$9:AB$229,Nutrients!$FB$8:$FB$228)+(IF($A$7=Nutrients!$B$8,Nutrients!$FB$8,Nutrients!$FB$9)*AB$7)+(((IF($A$8=Nutrients!$B$79,Nutrients!$FB$79,(IF($A$8=Nutrients!$B$77,Nutrients!$FB$77,Nutrients!$FB$78)))))*AB$8))","v":0},null,{"$f":"(SUMPRODUCT(AD$9:AD$229,Nutrients!$FB$8:$FB$228)+(IF($A$7=Nutrients!$B$8,Nutrients!$FB$8,Nutrients!$FB$9)*AD$7)+(((IF($A$8=Nutrients!$B$79,Nutrients!$FB$79,(IF($A$8=Nutrients!$B$77,Nutrients!$FB$77,Nutrients!$FB$78)))))*AD$8))","v":0},{"$f":"(SUMPRODUCT(AE$9:AE$229,Nutrients!$FB$8:$FB$228)+(IF($A$7=Nutrients!$B$8,Nutrients!$FB$8,Nutrients!$FB$9)*AE$7)+(((IF($A$8=Nutrients!$B$79,Nutrients!$FB$79,(IF($A$8=Nutrients!$B$77,Nutrients!$FB$77,Nutrients!$FB$78)))))*AE$8))","v":0},{"$f":"(SUMPRODUCT(AF$9:AF$229,Nutrients!$FB$8:$FB$228)+(IF($A$7=Nutrients!$B$8,Nutrients!$FB$8,Nutrients!$FB$9)*AF$7)+(((IF($A$8=Nutrients!$B$79,Nutrients!$FB$79,(IF($A$8=Nutrients!$B$77,Nutrients!$FB$77,Nutrients!$FB$78)))))*AF$8))","v":0},{"$f":"(SUMPRODUCT(AG$9:AG$229,Nutrients!$FB$8:$FB$228)+(IF($A$7=Nutrients!$B$8,Nutrients!$FB$8,Nutrients!$FB$9)*AG$7)+(((IF($A$8=Nutrients!$B$79,Nutrients!$FB$79,(IF($A$8=Nutrients!$B$77,Nutrients!$FB$77,Nutrients!$FB$78)))))*AG$8))","v":0},{"$f":"(SUMPRODUCT(AH$9:AH$229,Nutrients!$FB$8:$FB$228)+(IF($A$7=Nutrients!$B$8,Nutrients!$FB$8,Nutrients!$FB$9)*AH$7)+(((IF($A$8=Nutrients!$B$79,Nutrients!$FB$79,(IF($A$8=Nutrients!$B$77,Nutrients!$FB$77,Nutrients!$FB$78)))))*AH$8))","v":0},{"$f":"(SUMPRODUCT(AI$9:AI$229,Nutrients!$FB$8:$FB$228)+(IF($A$7=Nutrients!$B$8,Nutrients!$FB$8,Nutrients!$FB$9)*AI$7)+(((IF($A$8=Nutrients!$B$79,Nutrients!$FB$79,(IF($A$8=Nutrients!$B$77,Nutrients!$FB$77,Nutrients!$FB$78)))))*AI$8))","v":0},null,{"$f":"(SUMPRODUCT(AK$9:AK$229,Nutrients!$FB$8:$FB$228)+(IF($A$7=Nutrients!$B$8,Nutrients!$FB$8,Nutrients!$FB$9)*AK$7)+(((IF($A$8=Nutrients!$B$79,Nutrients!$FB$79,(IF($A$8=Nutrients!$B$77,Nutrients!$FB$77,Nutrients!$FB$78)))))*AK$8))","v":0},{"$f":"(SUMPRODUCT(AL$9:AL$229,Nutrients!$FB$8:$FB$228)+(IF($A$7=Nutrients!$B$8,Nutrients!$FB$8,Nutrients!$FB$9)*AL$7)+(((IF($A$8=Nutrients!$B$79,Nutrients!$FB$79,(IF($A$8=Nutrients!$B$77,Nutrients!$FB$77,Nutrients!$FB$78)))))*AL$8))","v":0},{"$f":"(SUMPRODUCT(AM$9:AM$229,Nutrients!$FB$8:$FB$228)+(IF($A$7=Nutrients!$B$8,Nutrients!$FB$8,Nutrients!$FB$9)*AM$7)+(((IF($A$8=Nutrients!$B$79,Nutrients!$FB$79,(IF($A$8=Nutrients!$B$77,Nutrients!$FB$77,Nutrients!$FB$78)))))*AM$8))","v":0},{"$f":"(SUMPRODUCT(AN$9:AN$229,Nutrients!$FB$8:$FB$228)+(IF($A$7=Nutrients!$B$8,Nutrients!$FB$8,Nutrients!$FB$9)*AN$7)+(((IF($A$8=Nutrients!$B$79,Nutrients!$FB$79,(IF($A$8=Nutrients!$B$77,Nutrients!$FB$77,Nutrients!$FB$78)))))*AN$8))","v":0},{"$f":"(SUMPRODUCT(AO$9:AO$229,Nutrients!$FB$8:$FB$228)+(IF($A$7=Nutrients!$B$8,Nutrients!$FB$8,Nutrients!$FB$9)*AO$7)+(((IF($A$8=Nutrients!$B$79,Nutrients!$FB$79,(IF($A$8=Nutrients!$B$77,Nutrients!$FB$77,Nutrients!$FB$78)))))*AO$8))","v":0},{"$f":"(SUMPRODUCT(AP$9:AP$229,Nutrients!$FB$8:$FB$228)+(IF($A$7=Nutrients!$B$8,Nutrients!$FB$8,Nutrients!$FB$9)*AP$7)+(((IF($A$8=Nutrients!$B$79,Nutrients!$FB$79,(IF($A$8=Nutrients!$B$77,Nutrients!$FB$77,Nutrients!$FB$78)))))*AP$8))","v":0},null,{"$f":"(SUMPRODUCT(AR$9:AR$229,Nutrients!$FB$8:$FB$228)+(IF($A$7=Nutrients!$B$8,Nutrients!$FB$8,Nutrients!$FB$9)*AR$7)+(((IF($A$8=Nutrients!$B$79,Nutrients!$FB$79,(IF($A$8=Nutrients!$B$77,Nutrients!$FB$77,Nutrients!$FB$78)))))*AR$8))","v":0},{"$f":"(SUMPRODUCT(AS$9:AS$229,Nutrients!$FB$8:$FB$228)+(IF($A$7=Nutrients!$B$8,Nutrients!$FB$8,Nutrients!$FB$9)*AS$7)+(((IF($A$8=Nutrients!$B$79,Nutrients!$FB$79,(IF($A$8=Nutrients!$B$77,Nutrients!$FB$77,Nutrients!$FB$78)))))*AS$8))","v":0},{"$f":"(SUMPRODUCT(AT$9:AT$229,Nutrients!$FB$8:$FB$228)+(IF($A$7=Nutrients!$B$8,Nutrients!$FB$8,Nutrients!$FB$9)*AT$7)+(((IF($A$8=Nutrients!$B$79,Nutrients!$FB$79,(IF($A$8=Nutrients!$B$77,Nutrients!$FB$77,Nutrients!$FB$78)))))*AT$8))","v":0},{"$f":"(SUMPRODUCT(AU$9:AU$229,Nutrients!$FB$8:$FB$228)+(IF($A$7=Nutrients!$B$8,Nutrients!$FB$8,Nutrients!$FB$9)*AU$7)+(((IF($A$8=Nutrients!$B$79,Nutrients!$FB$79,(IF($A$8=Nutrients!$B$77,Nutrients!$FB$77,Nutrients!$FB$78)))))*AU$8))","v":0},{"$f":"(SUMPRODUCT(AV$9:AV$229,Nutrients!$FB$8:$FB$228)+(IF($A$7=Nutrients!$B$8,Nutrients!$FB$8,Nutrients!$FB$9)*AV$7)+(((IF($A$8=Nutrients!$B$79,Nutrients!$FB$79,(IF($A$8=Nutrients!$B$77,Nutrients!$FB$77,Nutrients!$FB$78)))))*AV$8))","v":0},{"$f":"(SUMPRODUCT(AW$9:AW$229,Nutrients!$FB$8:$FB$228)+(IF($A$7=Nutrients!$B$8,Nutrients!$FB$8,Nutrients!$FB$9)*AW$7)+(((IF($A$8=Nutrients!$B$79,Nutrients!$FB$79,(IF($A$8=Nutrients!$B$77,Nutrients!$FB$77,Nutrients!$FB$78)))))*AW$8))","v":0}]
["  Pyridoxine, mg/ton",{"$f":"(SUMPRODUCT(B$9:B$229,Nutrients!$FC$8:$FC$228)+(IF($A$7=Nutrients!$B$8,Nutrients!$FC$8,Nutrients!$FC$9)*B$7)+(((IF($A$8=Nutrients!$B$79,Nutrients!$FC$79,(IF($A$8=Nutrients!$B$77,Nutrients!$FC$77,Nutrients!$FC$78)))))*B$8))","v":0},{"$f":"(SUMPRODUCT(C$9:C$229,Nutrients!$FC$8:$FC$228)+(IF($A$7=Nutrients!$B$8,Nutrients!$FC$8,Nutrients!$FC$9)*C$7)+(((IF($A$8=Nutrients!$B$79,Nutrients!$FC$79,(IF($A$8=Nutrients!$B$77,Nutrients!$FC$77,Nutrients!$FC$78)))))*C$8))","v":0},{"$f":"(SUMPRODUCT(D$9:D$229,Nutrients!$FC$8:$FC$228)+(IF($A$7=Nutrients!$B$8,Nutrients!$FC$8,Nutrients!$FC$9)*D$7)+(((IF($A$8=Nutrients!$B$79,Nutrients!$FC$79,(IF($A$8=Nutrients!$B$77,Nutrients!$FC$77,Nutrients!$FC$78)))))*D$8))","v":0},{"$f":"(SUMPRODUCT(E$9:E$229,Nutrients!$FC$8:$FC$228)+(IF($A$7=Nutrients!$B$8,Nutrients!$FC$8,Nutrients!$FC$9)*E$7)+(((IF($A$8=Nutrients!$B$79,Nutrients!$FC$79,(IF($A$8=Nutrients!$B$77,Nutrients!$FC$77,Nutrients!$FC$78)))))*E$8))","v":0},{"$f":"(SUMPRODUCT(F$9:F$229,Nutrients!$FC$8:$FC$228)+(IF($A$7=Nutrients!$B$8,Nutrients!$FC$8,Nutrients!$FC$9)*F$7)+(((IF($A$8=Nutrients!$B$79,Nutrients!$FC$79,(IF($A$8=Nutrients!$B$77,Nutrients!$FC$77,Nutrients!$FC$78)))))*F$8))","v":0},{"$f":"(SUMPRODUCT(G$9:G$229,Nutrients!$FC$8:$FC$228)+(IF($A$7=Nutrients!$B$8,Nutrients!$FC$8,Nutrients!$FC$9)*G$7)+(((IF($A$8=Nutrients!$B$79,Nutrients!$FC$79,(IF($A$8=Nutrients!$B$77,Nutrients!$FC$77,Nutrients!$FC$78)))))*G$8))","v":0},null,{"$f":"(SUMPRODUCT(I$9:I$229,Nutrients!$FC$8:$FC$228)+(IF($A$7=Nutrients!$B$8,Nutrients!$FC$8,Nutrients!$FC$9)*I$7)+(((IF($A$8=Nutrients!$B$79,Nutrients!$FC$79,(IF($A$8=Nutrients!$B$77,Nutrients!$FC$77,Nutrients!$FC$78)))))*I$8))","v":0},{"$f":"(SUMPRODUCT(J$9:J$229,Nutrients!$FC$8:$FC$228)+(IF($A$7=Nutrients!$B$8,Nutrients!$FC$8,Nutrients!$FC$9)*J$7)+(((IF($A$8=Nutrients!$B$79,Nutrients!$FC$79,(IF($A$8=Nutrients!$B$77,Nutrients!$FC$77,Nutrients!$FC$78)))))*J$8))","v":0},{"$f":"(SUMPRODUCT(K$9:K$229,Nutrients!$FC$8:$FC$228)+(IF($A$7=Nutrients!$B$8,Nutrients!$FC$8,Nutrients!$FC$9)*K$7)+(((IF($A$8=Nutrients!$B$79,Nutrients!$FC$79,(IF($A$8=Nutrients!$B$77,Nutrients!$FC$77,Nutrients!$FC$78)))))*K$8))","v":0},{"$f":"(SUMPRODUCT(L$9:L$229,Nutrients!$FC$8:$FC$228)+(IF($A$7=Nutrients!$B$8,Nutrients!$FC$8,Nutrients!$FC$9)*L$7)+(((IF($A$8=Nutrients!$B$79,Nutrients!$FC$79,(IF($A$8=Nutrients!$B$77,Nutrients!$FC$77,Nutrients!$FC$78)))))*L$8))","v":0},{"$f":"(SUMPRODUCT(M$9:M$229,Nutrients!$FC$8:$FC$228)+(IF($A$7=Nutrients!$B$8,Nutrients!$FC$8,Nutrients!$FC$9)*M$7)+(((IF($A$8=Nutrients!$B$79,Nutrients!$FC$79,(IF($A$8=Nutrients!$B$77,Nutrients!$FC$77,Nutrients!$FC$78)))))*M$8))","v":0},{"$f":"(SUMPRODUCT(N$9:N$229,Nutrients!$FC$8:$FC$228)+(IF($A$7=Nutrients!$B$8,Nutrients!$FC$8,Nutrients!$FC$9)*N$7)+(((IF($A$8=Nutrients!$B$79,Nutrients!$FC$79,(IF($A$8=Nutrients!$B$77,Nutrients!$FC$77,Nutrients!$FC$78)))))*N$8))","v":0},null,{"$f":"(SUMPRODUCT(P$9:P$229,Nutrients!$FC$8:$FC$228)+(IF($A$7=Nutrients!$B$8,Nutrients!$FC$8,Nutrients!$FC$9)*P$7)+(((IF($A$8=Nutrients!$B$79,Nutrients!$FC$79,(IF($A$8=Nutrients!$B$77,Nutrients!$FC$77,Nutrients!$FC$78)))))*P$8))","v":0},{"$f":"(SUMPRODUCT(Q$9:Q$229,Nutrients!$FC$8:$FC$228)+(IF($A$7=Nutrients!$B$8,Nutrients!$FC$8,Nutrients!$FC$9)*Q$7)+(((IF($A$8=Nutrients!$B$79,Nutrients!$FC$79,(IF($A$8=Nutrients!$B$77,Nutrients!$FC$77,Nutrients!$FC$78)))))*Q$8))","v":0},{"$f":"(SUMPRODUCT(R$9:R$229,Nutrients!$FC$8:$FC$228)+(IF($A$7=Nutrients!$B$8,Nutrients!$FC$8,Nutrients!$FC$9)*R$7)+(((IF($A$8=Nutrients!$B$79,Nutrients!$FC$79,(IF($A$8=Nutrients!$B$77,Nutrients!$FC$77,Nutrients!$FC$78)))))*R$8))","v":0},{"$f":"(SUMPRODUCT(S$9:S$229,Nutrients!$FC$8:$FC$228)+(IF($A$7=Nutrients!$B$8,Nutrients!$FC$8,Nutrients!$FC$9)*S$7)+(((IF($A$8=Nutrients!$B$79,Nutrients!$FC$79,(IF($A$8=Nutrients!$B$77,Nutrients!$FC$77,Nutrients!$FC$78)))))*S$8))","v":0},{"$f":"(SUMPRODUCT(T$9:T$229,Nutrients!$FC$8:$FC$228)+(IF($A$7=Nutrients!$B$8,Nutrients!$FC$8,Nutrients!$FC$9)*T$7)+(((IF($A$8=Nutrients!$B$79,Nutrients!$FC$79,(IF($A$8=Nutrients!$B$77,Nutrients!$FC$77,Nutrients!$FC$78)))))*T$8))","v":0},{"$f":"(SUMPRODUCT(U$9:U$229,Nutrients!$FC$8:$FC$228)+(IF($A$7=Nutrients!$B$8,Nutrients!$FC$8,Nutrients!$FC$9)*U$7)+(((IF($A$8=Nutrients!$B$79,Nutrients!$FC$79,(IF($A$8=Nutrients!$B$77,Nutrients!$FC$77,Nutrients!$FC$78)))))*U$8))","v":0},null,{"$f":"(SUMPRODUCT(W$9:W$229,Nutrients!$FC$8:$FC$228)+(IF($A$7=Nutrients!$B$8,Nutrients!$FC$8,Nutrients!$FC$9)*W$7)+(((IF($A$8=Nutrients!$B$79,Nutrients!$FC$79,(IF($A$8=Nutrients!$B$77,Nutrients!$FC$77,Nutrients!$FC$78)))))*W$8))","v":0},{"$f":"(SUMPRODUCT(X$9:X$229,Nutrients!$FC$8:$FC$228)+(IF($A$7=Nutrients!$B$8,Nutrients!$FC$8,Nutrients!$FC$9)*X$7)+(((IF($A$8=Nutrients!$B$79,Nutrients!$FC$79,(IF($A$8=Nutrients!$B$77,Nutrients!$FC$77,Nutrients!$FC$78)))))*X$8))","v":0},{"$f":"(SUMPRODUCT(Y$9:Y$229,Nutrients!$FC$8:$FC$228)+(IF($A$7=Nutrients!$B$8,Nutrients!$FC$8,Nutrients!$FC$9)*Y$7)+(((IF($A$8=Nutrients!$B$79,Nutrients!$FC$79,(IF($A$8=Nutrients!$B$77,Nutrients!$FC$77,Nutrients!$FC$78)))))*Y$8))","v":0},{"$f":"(SUMPRODUCT(Z$9:Z$229,Nutrients!$FC$8:$FC$228)+(IF($A$7=Nutrients!$B$8,Nutrients!$FC$8,Nutrients!$FC$9)*Z$7)+(((IF($A$8=Nutrients!$B$79,Nutrients!$FC$79,(IF($A$8=Nutrients!$B$77,Nutrients!$FC$77,Nutrients!$FC$78)))))*Z$8))","v":0},{"$f":"(SUMPRODUCT(AA$9:AA$229,Nutrients!$FC$8:$FC$228)+(IF($A$7=Nutrients!$B$8,Nutrients!$FC$8,Nutrients!$FC$9)*AA$7)+(((IF($A$8=Nutrients!$B$79,Nutrients!$FC$79,(IF($A$8=Nutrients!$B$77,Nutrients!$FC$77,Nutrients!$FC$78)))))*AA$8))","v":0},{"$f":"(SUMPRODUCT(AB$9:AB$229,Nutrients!$FC$8:$FC$228)+(IF($A$7=Nutrients!$B$8,Nutrients!$FC$8,Nutrients!$FC$9)*AB$7)+(((IF($A$8=Nutrients!$B$79,Nutrients!$FC$79,(IF($A$8=Nutrients!$B$77,Nutrients!$FC$77,Nutrients!$FC$78)))))*AB$8))","v":0},null,{"$f":"(SUMPRODUCT(AD$9:AD$229,Nutrients!$FC$8:$FC$228)+(IF($A$7=Nutrients!$B$8,Nutrients!$FC$8,Nutrients!$FC$9)*AD$7)+(((IF($A$8=Nutrients!$B$79,Nutrients!$FC$79,(IF($A$8=Nutrients!$B$77,Nutrients!$FC$77,Nutrients!$FC$78)))))*AD$8))","v":0},{"$f":"(SUMPRODUCT(AE$9:AE$229,Nutrients!$FC$8:$FC$228)+(IF($A$7=Nutrients!$B$8,Nutrients!$FC$8,Nutrients!$FC$9)*AE$7)+(((IF($A$8=Nutrients!$B$79,Nutrients!$FC$79,(IF($A$8=Nutrients!$B$77,Nutrients!$FC$77,Nutrients!$FC$78)))))*AE$8))","v":0},{"$f":"(SUMPRODUCT(AF$9:AF$229,Nutrients!$FC$8:$FC$228)+(IF($A$7=Nutrients!$B$8,Nutrients!$FC$8,Nutrients!$FC$9)*AF$7)+(((IF($A$8=Nutrients!$B$79,Nutrients!$FC$79,(IF($A$8=Nutrients!$B$77,Nutrients!$FC$77,Nutrients!$FC$78)))))*AF$8))","v":0},{"$f":"(SUMPRODUCT(AG$9:AG$229,Nutrients!$FC$8:$FC$228)+(IF($A$7=Nutrients!$B$8,Nutrients!$FC$8,Nutrients!$FC$9)*AG$7)+(((IF($A$8=Nutrients!$B$79,Nutrients!$FC$79,(IF($A$8=Nutrients!$B$77,Nutrients!$FC$77,Nutrients!$FC$78)))))*AG$8))","v":0},{"$f":"(SUMPRODUCT(AH$9:AH$229,Nutrients!$FC$8:$FC$228)+(IF($A$7=Nutrients!$B$8,Nutrients!$FC$8,Nutrients!$FC$9)*AH$7)+(((IF($A$8=Nutrients!$B$79,Nutrients!$FC$79,(IF($A$8=Nutrients!$B$77,Nutrients!$FC$77,Nutrients!$FC$78)))))*AH$8))","v":0},{"$f":"(SUMPRODUCT(AI$9:AI$229,Nutrients!$FC$8:$FC$228)+(IF($A$7=Nutrients!$B$8,Nutrients!$FC$8,Nutrients!$FC$9)*AI$7)+(((IF($A$8=Nutrients!$B$79,Nutrients!$FC$79,(IF($A$8=Nutrients!$B$77,Nutrients!$FC$77,Nutrients!$FC$78)))))*AI$8))","v":0},null,{"$f":"(SUMPRODUCT(AK$9:AK$229,Nutrients!$FC$8:$FC$228)+(IF($A$7=Nutrients!$B$8,Nutrients!$FC$8,Nutrients!$FC$9)*AK$7)+(((IF($A$8=Nutrients!$B$79,Nutrients!$FC$79,(IF($A$8=Nutrients!$B$77,Nutrients!$FC$77,Nutrients!$FC$78)))))*AK$8))","v":0},{"$f":"(SUMPRODUCT(AL$9:AL$229,Nutrients!$FC$8:$FC$228)+(IF($A$7=Nutrients!$B$8,Nutrients!$FC$8,Nutrients!$FC$9)*AL$7)+(((IF($A$8=Nutrients!$B$79,Nutrients!$FC$79,(IF($A$8=Nutrients!$B$77,Nutrients!$FC$77,Nutrients!$FC$78)))))*AL$8))","v":0},{"$f":"(SUMPRODUCT(AM$9:AM$229,Nutrients!$FC$8:$FC$228)+(IF($A$7=Nutrients!$B$8,Nutrients!$FC$8,Nutrients!$FC$9)*AM$7)+(((IF($A$8=Nutrients!$B$79,Nutrients!$FC$79,(IF($A$8=Nutrients!$B$77,Nutrients!$FC$77,Nutrients!$FC$78)))))*AM$8))","v":0},{"$f":"(SUMPRODUCT(AN$9:AN$229,Nutrients!$FC$8:$FC$228)+(IF($A$7=Nutrients!$B$8,Nutrients!$FC$8,Nutrients!$FC$9)*AN$7)+(((IF($A$8=Nutrients!$B$79,Nutrients!$FC$79,(IF($A$8=Nutrients!$B$77,Nutrients!$FC$77,Nutrients!$FC$78)))))*AN$8))","v":0},{"$f":"(SUMPRODUCT(AO$9:AO$229,Nutrients!$FC$8:$FC$228)+(IF($A$7=Nutrients!$B$8,Nutrients!$FC$8,Nutrients!$FC$9)*AO$7)+(((IF($A$8=Nutrients!$B$79,Nutrients!$FC$79,(IF($A$8=Nutrients!$B$77,Nutrients!$FC$77,Nutrients!$FC$78)))))*AO$8))","v":0},{"$f":"(SUMPRODUCT(AP$9:AP$229,Nutrients!$FC$8:$FC$228)+(IF($A$7=Nutrients!$B$8,Nutrients!$FC$8,Nutrients!$FC$9)*AP$7)+(((IF($A$8=Nutrients!$B$79,Nutrients!$FC$79,(IF($A$8=Nutrients!$B$77,Nutrients!$FC$77,Nutrients!$FC$78)))))*AP$8))","v":0},null,{"$f":"(SUMPRODUCT(AR$9:AR$229,Nutrients!$FC$8:$FC$228)+(IF($A$7=Nutrients!$B$8,Nutrients!$FC$8,Nutrients!$FC$9)*AR$7)+(((IF($A$8=Nutrients!$B$79,Nutrients!$FC$79,(IF($A$8=Nutrients!$B$77,Nutrients!$FC$77,Nutrients!$FC$78)))))*AR$8))","v":0},{"$f":"(SUMPRODUCT(AS$9:AS$229,Nutrients!$FC$8:$FC$228)+(IF($A$7=Nutrients!$B$8,Nutrients!$FC$8,Nutrients!$FC$9)*AS$7)+(((IF($A$8=Nutrients!$B$79,Nutrients!$FC$79,(IF($A$8=Nutrients!$B$77,Nutrients!$FC$77,Nutrients!$FC$78)))))*AS$8))","v":0},{"$f":"(SUMPRODUCT(AT$9:AT$229,Nutrients!$FC$8:$FC$228)+(IF($A$7=Nutrients!$B$8,Nutrients!$FC$8,Nutrients!$FC$9)*AT$7)+(((IF($A$8=Nutrients!$B$79,Nutrients!$FC$79,(IF($A$8=Nutrients!$B$77,Nutrients!$FC$77,Nutrients!$FC$78)))))*AT$8))","v":0},{"$f":"(SUMPRODUCT(AU$9:AU$229,Nutrients!$FC$8:$FC$228)+(IF($A$7=Nutrients!$B$8,Nutrients!$FC$8,Nutrients!$FC$9)*AU$7)+(((IF($A$8=Nutrients!$B$79,Nutrients!$FC$79,(IF($A$8=Nutrients!$B$77,Nutrients!$FC$77,Nutrients!$FC$78)))))*AU$8))","v":0},{"$f":"(SUMPRODUCT(AV$9:AV$229,Nutrients!$FC$8:$FC$228)+(IF($A$7=Nutrients!$B$8,Nutrients!$FC$8,Nutrients!$FC$9)*AV$7)+(((IF($A$8=Nutrients!$B$79,Nutrients!$FC$79,(IF($A$8=Nutrients!$B$77,Nutrients!$FC$77,Nutrients!$FC$78)))))*AV$8))","v":0},{"$f":"(SUMPRODUCT(AW$9:AW$229,Nutrients!$FC$8:$FC$228)+(IF($A$7=Nutrients!$B$8,Nutrients!$FC$8,Nutrients!$FC$9)*AW$7)+(((IF($A$8=Nutrients!$B$79,Nutrients!$FC$79,(IF($A$8=Nutrients!$B$77,Nutrients!$FC$77,Nutrients!$FC$78)))))*AW$8))","v":0}]
["  Choline, mg/ton",{"$f":"(SUMPRODUCT(B$9:B$229,Nutrients!$FD$8:$FD$228)+(IF($A$7=Nutrients!$B$8,Nutrients!$FD$8,Nutrients!$FD$9)*B$7)+(((IF($A$8=Nutrients!$B$79,Nutrients!$FD$79,(IF($A$8=Nutrients!$B$77,Nutrients!$FD$77,Nutrients!$FD$78)))))*B$8))","v":0},{"$f":"(SUMPRODUCT(C$9:C$229,Nutrients!$FD$8:$FD$228)+(IF($A$7=Nutrients!$B$8,Nutrients!$FD$8,Nutrients!$FD$9)*C$7)+(((IF($A$8=Nutrients!$B$79,Nutrients!$FD$79,(IF($A$8=Nutrients!$B$77,Nutrients!$FD$77,Nutrients!$FD$78)))))*C$8))","v":0},{"$f":"(SUMPRODUCT(D$9:D$229,Nutrients!$FD$8:$FD$228)+(IF($A$7=Nutrients!$B$8,Nutrients!$FD$8,Nutrients!$FD$9)*D$7)+(((IF($A$8=Nutrients!$B$79,Nutrients!$FD$79,(IF($A$8=Nutrients!$B$77,Nutrients!$FD$77,Nutrients!$FD$78)))))*D$8))","v":0},{"$f":"(SUMPRODUCT(E$9:E$229,Nutrients!$FD$8:$FD$228)+(IF($A$7=Nutrients!$B$8,Nutrients!$FD$8,Nutrients!$FD$9)*E$7)+(((IF($A$8=Nutrients!$B$79,Nutrients!$FD$79,(IF($A$8=Nutrients!$B$77,Nutrients!$FD$77,Nutrients!$FD$78)))))*E$8))","v":0},{"$f":"(SUMPRODUCT(F$9:F$229,Nutrients!$FD$8:$FD$228)+(IF($A$7=Nutrients!$B$8,Nutrients!$FD$8,Nutrients!$FD$9)*F$7)+(((IF($A$8=Nutrients!$B$79,Nutrients!$FD$79,(IF($A$8=Nutrients!$B$77,Nutrients!$FD$77,Nutrients!$FD$78)))))*F$8))","v":0},{"$f":"(SUMPRODUCT(G$9:G$229,Nutrients!$FD$8:$FD$228)+(IF($A$7=Nutrients!$B$8,Nutrients!$FD$8,Nutrients!$FD$9)*G$7)+(((IF($A$8=Nutrients!$B$79,Nutrients!$FD$79,(IF($A$8=Nutrients!$B$77,Nutrients!$FD$77,Nutrients!$FD$78)))))*G$8))","v":0},null,{"$f":"(SUMPRODUCT(I$9:I$229,Nutrients!$FD$8:$FD$228)+(IF($A$7=Nutrients!$B$8,Nutrients!$FD$8,Nutrients!$FD$9)*I$7)+(((IF($A$8=Nutrients!$B$79,Nutrients!$FD$79,(IF($A$8=Nutrients!$B$77,Nutrients!$FD$77,Nutrients!$FD$78)))))*I$8))","v":0},{"$f":"(SUMPRODUCT(J$9:J$229,Nutrients!$FD$8:$FD$228)+(IF($A$7=Nutrients!$B$8,Nutrients!$FD$8,Nutrients!$FD$9)*J$7)+(((IF($A$8=Nutrients!$B$79,Nutrients!$FD$79,(IF($A$8=Nutrients!$B$77,Nutrients!$FD$77,Nutrients!$FD$78)))))*J$8))","v":0},{"$f":"(SUMPRODUCT(K$9:K$229,Nutrients!$FD$8:$FD$228)+(IF($A$7=Nutrients!$B$8,Nutrients!$FD$8,Nutrients!$FD$9)*K$7)+(((IF($A$8=Nutrients!$B$79,Nutrients!$FD$79,(IF($A$8=Nutrients!$B$77,Nutrients!$FD$77,Nutrients!$FD$78)))))*K$8))","v":0},{"$f":"(SUMPRODUCT(L$9:L$229,Nutrients!$FD$8:$FD$228)+(IF($A$7=Nutrients!$B$8,Nutrients!$FD$8,Nutrients!$FD$9)*L$7)+(((IF($A$8=Nutrients!$B$79,Nutrients!$FD$79,(IF($A$8=Nutrients!$B$77,Nutrients!$FD$77,Nutrients!$FD$78)))))*L$8))","v":0},{"$f":"(SUMPRODUCT(M$9:M$229,Nutrients!$FD$8:$FD$228)+(IF($A$7=Nutrients!$B$8,Nutrients!$FD$8,Nutrients!$FD$9)*M$7)+(((IF($A$8=Nutrients!$B$79,Nutrients!$FD$79,(IF($A$8=Nutrients!$B$77,Nutrients!$FD$77,Nutrients!$FD$78)))))*M$8))","v":0},{"$f":"(SUMPRODUCT(N$9:N$229,Nutrients!$FD$8:$FD$228)+(IF($A$7=Nutrients!$B$8,Nutrients!$FD$8,Nutrients!$FD$9)*N$7)+(((IF($A$8=Nutrients!$B$79,Nutrients!$FD$79,(IF($A$8=Nutrients!$B$77,Nutrients!$FD$77,Nutrients!$FD$78)))))*N$8))","v":0},null,{"$f":"(SUMPRODUCT(P$9:P$229,Nutrients!$FD$8:$FD$228)+(IF($A$7=Nutrients!$B$8,Nutrients!$FD$8,Nutrients!$FD$9)*P$7)+(((IF($A$8=Nutrients!$B$79,Nutrients!$FD$79,(IF($A$8=Nutrients!$B$77,Nutrients!$FD$77,Nutrients!$FD$78)))))*P$8))","v":0},{"$f":"(SUMPRODUCT(Q$9:Q$229,Nutrients!$FD$8:$FD$228)+(IF($A$7=Nutrients!$B$8,Nutrients!$FD$8,Nutrients!$FD$9)*Q$7)+(((IF($A$8=Nutrients!$B$79,Nutrients!$FD$79,(IF($A$8=Nutrients!$B$77,Nutrients!$FD$77,Nutrients!$FD$78)))))*Q$8))","v":0},{"$f":"(SUMPRODUCT(R$9:R$229,Nutrients!$FD$8:$FD$228)+(IF($A$7=Nutrients!$B$8,Nutrients!$FD$8,Nutrients!$FD$9)*R$7)+(((IF($A$8=Nutrients!$B$79,Nutrients!$FD$79,(IF($A$8=Nutrients!$B$77,Nutrients!$FD$77,Nutrients!$FD$78)))))*R$8))","v":0},{"$f":"(SUMPRODUCT(S$9:S$229,Nutrients!$FD$8:$FD$228)+(IF($A$7=Nutrients!$B$8,Nutrients!$FD$8,Nutrients!$FD$9)*S$7)+(((IF($A$8=Nutrients!$B$79,Nutrients!$FD$79,(IF($A$8=Nutrients!$B$77,Nutrients!$FD$77,Nutrients!$FD$78)))))*S$8))","v":0},{"$f":"(SUMPRODUCT(T$9:T$229,Nutrients!$FD$8:$FD$228)+(IF($A$7=Nutrients!$B$8,Nutrients!$FD$8,Nutrients!$FD$9)*T$7)+(((IF($A$8=Nutrients!$B$79,Nutrients!$FD$79,(IF($A$8=Nutrients!$B$77,Nutrients!$FD$77,Nutrients!$FD$78)))))*T$8))","v":0},{"$f":"(SUMPRODUCT(U$9:U$229,Nutrients!$FD$8:$FD$228)+(IF($A$7=Nutrients!$B$8,Nutrients!$FD$8,Nutrients!$FD$9)*U$7)+(((IF($A$8=Nutrients!$B$79,Nutrients!$FD$79,(IF($A$8=Nutrients!$B$77,Nutrients!$FD$77,Nutrients!$FD$78)))))*U$8))","v":0},null,{"$f":"(SUMPRODUCT(W$9:W$229,Nutrients!$FD$8:$FD$228)+(IF($A$7=Nutrients!$B$8,Nutrients!$FD$8,Nutrients!$FD$9)*W$7)+(((IF($A$8=Nutrients!$B$79,Nutrients!$FD$79,(IF($A$8=Nutrients!$B$77,Nutrients!$FD$77,Nutrients!$FD$78)))))*W$8))","v":0},{"$f":"(SUMPRODUCT(X$9:X$229,Nutrients!$FD$8:$FD$228)+(IF($A$7=Nutrients!$B$8,Nutrients!$FD$8,Nutrients!$FD$9)*X$7)+(((IF($A$8=Nutrients!$B$79,Nutrients!$FD$79,(IF($A$8=Nutrients!$B$77,Nutrients!$FD$77,Nutrients!$FD$78)))))*X$8))","v":0},{"$f":"(SUMPRODUCT(Y$9:Y$229,Nutrients!$FD$8:$FD$228)+(IF($A$7=Nutrients!$B$8,Nutrients!$FD$8,Nutrients!$FD$9)*Y$7)+(((IF($A$8=Nutrients!$B$79,Nutrients!$FD$79,(IF($A$8=Nutrients!$B$77,Nutrients!$FD$77,Nutrients!$FD$78)))))*Y$8))","v":0},{"$f":"(SUMPRODUCT(Z$9:Z$229,Nutrients!$FD$8:$FD$228)+(IF($A$7=Nutrients!$B$8,Nutrients!$FD$8,Nutrients!$FD$9)*Z$7)+(((IF($A$8=Nutrients!$B$79,Nutrients!$FD$79,(IF($A$8=Nutrients!$B$77,Nutrients!$FD$77,Nutrients!$FD$78)))))*Z$8))","v":0},{"$f":"(SUMPRODUCT(AA$9:AA$229,Nutrients!$FD$8:$FD$228)+(IF($A$7=Nutrients!$B$8,Nutrients!$FD$8,Nutrients!$FD$9)*AA$7)+(((IF($A$8=Nutrients!$B$79,Nutrients!$FD$79,(IF($A$8=Nutrients!$B$77,Nutrients!$FD$77,Nutrients!$FD$78)))))*AA$8))","v":0},{"$f":"(SUMPRODUCT(AB$9:AB$229,Nutrients!$FD$8:$FD$228)+(IF($A$7=Nutrients!$B$8,Nutrients!$FD$8,Nutrients!$FD$9)*AB$7)+(((IF($A$8=Nutrients!$B$79,Nutrients!$FD$79,(IF($A$8=Nutrients!$B$77,Nutrients!$FD$77,Nutrients!$FD$78)))))*AB$8))","v":0},null,{"$f":"(SUMPRODUCT(AD$9:AD$229,Nutrients!$FD$8:$FD$228)+(IF($A$7=Nutrients!$B$8,Nutrients!$FD$8,Nutrients!$FD$9)*AD$7)+(((IF($A$8=Nutrients!$B$79,Nutrients!$FD$79,(IF($A$8=Nutrients!$B$77,Nutrients!$FD$77,Nutrients!$FD$78)))))*AD$8))","v":0},{"$f":"(SUMPRODUCT(AE$9:AE$229,Nutrients!$FD$8:$FD$228)+(IF($A$7=Nutrients!$B$8,Nutrients!$FD$8,Nutrients!$FD$9)*AE$7)+(((IF($A$8=Nutrients!$B$79,Nutrients!$FD$79,(IF($A$8=Nutrients!$B$77,Nutrients!$FD$77,Nutrients!$FD$78)))))*AE$8))","v":0},{"$f":"(SUMPRODUCT(AF$9:AF$229,Nutrients!$FD$8:$FD$228)+(IF($A$7=Nutrients!$B$8,Nutrients!$FD$8,Nutrients!$FD$9)*AF$7)+(((IF($A$8=Nutrients!$B$79,Nutrients!$FD$79,(IF($A$8=Nutrients!$B$77,Nutrients!$FD$77,Nutrients!$FD$78)))))*AF$8))","v":0},{"$f":"(SUMPRODUCT(AG$9:AG$229,Nutrients!$FD$8:$FD$228)+(IF($A$7=Nutrients!$B$8,Nutrients!$FD$8,Nutrients!$FD$9)*AG$7)+(((IF($A$8=Nutrients!$B$79,Nutrients!$FD$79,(IF($A$8=Nutrients!$B$77,Nutrients!$FD$77,Nutrients!$FD$78)))))*AG$8))","v":0},{"$f":"(SUMPRODUCT(AH$9:AH$229,Nutrients!$FD$8:$FD$228)+(IF($A$7=Nutrients!$B$8,Nutrients!$FD$8,Nutrients!$FD$9)*AH$7)+(((IF($A$8=Nutrients!$B$79,Nutrients!$FD$79,(IF($A$8=Nutrients!$B$77,Nutrients!$FD$77,Nutrients!$FD$78)))))*AH$8))","v":0},{"$f":"(SUMPRODUCT(AI$9:AI$229,Nutrients!$FD$8:$FD$228)+(IF($A$7=Nutrients!$B$8,Nutrients!$FD$8,Nutrients!$FD$9)*AI$7)+(((IF($A$8=Nutrients!$B$79,Nutrients!$FD$79,(IF($A$8=Nutrients!$B$77,Nutrients!$FD$77,Nutrients!$FD$78)))))*AI$8))","v":0},null,{"$f":"(SUMPRODUCT(AK$9:AK$229,Nutrients!$FD$8:$FD$228)+(IF($A$7=Nutrients!$B$8,Nutrients!$FD$8,Nutrients!$FD$9)*AK$7)+(((IF($A$8=Nutrients!$B$79,Nutrients!$FD$79,(IF($A$8=Nutrients!$B$77,Nutrients!$FD$77,Nutrients!$FD$78)))))*AK$8))","v":0},{"$f":"(SUMPRODUCT(AL$9:AL$229,Nutrients!$FD$8:$FD$228)+(IF($A$7=Nutrients!$B$8,Nutrients!$FD$8,Nutrients!$FD$9)*AL$7)+(((IF($A$8=Nutrients!$B$79,Nutrients!$FD$79,(IF($A$8=Nutrients!$B$77,Nutrients!$FD$77,Nutrients!$FD$78)))))*AL$8))","v":0},{"$f":"(SUMPRODUCT(AM$9:AM$229,Nutrients!$FD$8:$FD$228)+(IF($A$7=Nutrients!$B$8,Nutrients!$FD$8,Nutrients!$FD$9)*AM$7)+(((IF($A$8=Nutrients!$B$79,Nutrients!$FD$79,(IF($A$8=Nutrients!$B$77,Nutrients!$FD$77,Nutrients!$FD$78)))))*AM$8))","v":0},{"$f":"(SUMPRODUCT(AN$9:AN$229,Nutrients!$FD$8:$FD$228)+(IF($A$7=Nutrients!$B$8,Nutrients!$FD$8,Nutrients!$FD$9)*AN$7)+(((IF($A$8=Nutrients!$B$79,Nutrients!$FD$79,(IF($A$8=Nutrients!$B$77,Nutrients!$FD$77,Nutrients!$FD$78)))))*AN$8))","v":0},{"$f":"(SUMPRODUCT(AO$9:AO$229,Nutrients!$FD$8:$FD$228)+(IF($A$7=Nutrients!$B$8,Nutrients!$FD$8,Nutrients!$FD$9)*AO$7)+(((IF($A$8=Nutrients!$B$79,Nutrients!$FD$79,(IF($A$8=Nutrients!$B$77,Nutrients!$FD$77,Nutrients!$FD$78)))))*AO$8))","v":0},{"$f":"(SUMPRODUCT(AP$9:AP$229,Nutrients!$FD$8:$FD$228)+(IF($A$7=Nutrients!$B$8,Nutrients!$FD$8,Nutrients!$FD$9)*AP$7)+(((IF($A$8=Nutrients!$B$79,Nutrients!$FD$79,(IF($A$8=Nutrients!$B$77,Nutrients!$FD$77,Nutrients!$FD$78)))))*AP$8))","v":0},null,{"$f":"(SUMPRODUCT(AR$9:AR$229,Nutrients!$FD$8:$FD$228)+(IF($A$7=Nutrients!$B$8,Nutrients!$FD$8,Nutrients!$FD$9)*AR$7)+(((IF($A$8=Nutrients!$B$79,Nutrients!$FD$79,(IF($A$8=Nutrients!$B$77,Nutrients!$FD$77,Nutrients!$FD$78)))))*AR$8))","v":0},{"$f":"(SUMPRODUCT(AS$9:AS$229,Nutrients!$FD$8:$FD$228)+(IF($A$7=Nutrients!$B$8,Nutrients!$FD$8,Nutrients!$FD$9)*AS$7)+(((IF($A$8=Nutrients!$B$79,Nutrients!$FD$79,(IF($A$8=Nutrients!$B$77,Nutrients!$FD$77,Nutrients!$FD$78)))))*AS$8))","v":0},{"$f":"(SUMPRODUCT(AT$9:AT$229,Nutrients!$FD$8:$FD$228)+(IF($A$7=Nutrients!$B$8,Nutrients!$FD$8,Nutrients!$FD$9)*AT$7)+(((IF($A$8=Nutrients!$B$79,Nutrients!$FD$79,(IF($A$8=Nutrients!$B$77,Nutrients!$FD$77,Nutrients!$FD$78)))))*AT$8))","v":0},{"$f":"(SUMPRODUCT(AU$9:AU$229,Nutrients!$FD$8:$FD$228)+(IF($A$7=Nutrients!$B$8,Nutrients!$FD$8,Nutrients!$FD$9)*AU$7)+(((IF($A$8=Nutrients!$B$79,Nutrients!$FD$79,(IF($A$8=Nutrients!$B$77,Nutrients!$FD$77,Nutrients!$FD$78)))))*AU$8))","v":0},{"$f":"(SUMPRODUCT(AV$9:AV$229,Nutrients!$FD$8:$FD$228)+(IF($A$7=Nutrients!$B$8,Nutrients!$FD$8,Nutrients!$FD$9)*AV$7)+(((IF($A$8=Nutrients!$B$79,Nutrients!$FD$79,(IF($A$8=Nutrients!$B$77,Nutrients!$FD$77,Nutrients!$FD$78)))))*AV$8))","v":0},{"$f":"(SUMPRODUCT(AW$9:AW$229,Nutrients!$FD$8:$FD$228)+(IF($A$7=Nutrients!$B$8,Nutrients!$FD$8,Nutrients!$FD$9)*AW$7)+(((IF($A$8=Nutrients!$B$79,Nutrients!$FD$79,(IF($A$8=Nutrients!$B$77,Nutrients!$FD$77,Nutrients!$FD$78)))))*AW$8))","v":0}]
["  Carnitine, mg/ton",{"$f":"(SUMPRODUCT(B$9:B$229,Nutrients!$FE$8:$FE$228)+(IF($A$7=Nutrients!$B$8,Nutrients!$FE$8,Nutrients!$FE$9)*B$7)+(((IF($A$8=Nutrients!$B$79,Nutrients!$FE$79,(IF($A$8=Nutrients!$B$77,Nutrients!$FE$77,Nutrients!$FE$78)))))*B$8))","v":0},{"$f":"(SUMPRODUCT(C$9:C$229,Nutrients!$FE$8:$FE$228)+(IF($A$7=Nutrients!$B$8,Nutrients!$FE$8,Nutrients!$FE$9)*C$7)+(((IF($A$8=Nutrients!$B$79,Nutrients!$FE$79,(IF($A$8=Nutrients!$B$77,Nutrients!$FE$77,Nutrients!$FE$78)))))*C$8))","v":0},{"$f":"(SUMPRODUCT(D$9:D$229,Nutrients!$FE$8:$FE$228)+(IF($A$7=Nutrients!$B$8,Nutrients!$FE$8,Nutrients!$FE$9)*D$7)+(((IF($A$8=Nutrients!$B$79,Nutrients!$FE$79,(IF($A$8=Nutrients!$B$77,Nutrients!$FE$77,Nutrients!$FE$78)))))*D$8))","v":0},{"$f":"(SUMPRODUCT(E$9:E$229,Nutrients!$FE$8:$FE$228)+(IF($A$7=Nutrients!$B$8,Nutrients!$FE$8,Nutrients!$FE$9)*E$7)+(((IF($A$8=Nutrients!$B$79,Nutrients!$FE$79,(IF($A$8=Nutrients!$B$77,Nutrients!$FE$77,Nutrients!$FE$78)))))*E$8))","v":0},{"$f":"(SUMPRODUCT(F$9:F$229,Nutrients!$FE$8:$FE$228)+(IF($A$7=Nutrients!$B$8,Nutrients!$FE$8,Nutrients!$FE$9)*F$7)+(((IF($A$8=Nutrients!$B$79,Nutrients!$FE$79,(IF($A$8=Nutrients!$B$77,Nutrients!$FE$77,Nutrients!$FE$78)))))*F$8))","v":0},{"$f":"(SUMPRODUCT(G$9:G$229,Nutrients!$FE$8:$FE$228)+(IF($A$7=Nutrients!$B$8,Nutrients!$FE$8,Nutrients!$FE$9)*G$7)+(((IF($A$8=Nutrients!$B$79,Nutrients!$FE$79,(IF($A$8=Nutrients!$B$77,Nutrients!$FE$77,Nutrients!$FE$78)))))*G$8))","v":0},null,{"$f":"(SUMPRODUCT(I$9:I$229,Nutrients!$FE$8:$FE$228)+(IF($A$7=Nutrients!$B$8,Nutrients!$FE$8,Nutrients!$FE$9)*I$7)+(((IF($A$8=Nutrients!$B$79,Nutrients!$FE$79,(IF($A$8=Nutrients!$B$77,Nutrients!$FE$77,Nutrients!$FE$78)))))*I$8))","v":0},{"$f":"(SUMPRODUCT(J$9:J$229,Nutrients!$FE$8:$FE$228)+(IF($A$7=Nutrients!$B$8,Nutrients!$FE$8,Nutrients!$FE$9)*J$7)+(((IF($A$8=Nutrients!$B$79,Nutrients!$FE$79,(IF($A$8=Nutrients!$B$77,Nutrients!$FE$77,Nutrients!$FE$78)))))*J$8))","v":0},{"$f":"(SUMPRODUCT(K$9:K$229,Nutrients!$FE$8:$FE$228)+(IF($A$7=Nutrients!$B$8,Nutrients!$FE$8,Nutrients!$FE$9)*K$7)+(((IF($A$8=Nutrients!$B$79,Nutrients!$FE$79,(IF($A$8=Nutrients!$B$77,Nutrients!$FE$77,Nutrients!$FE$78)))))*K$8))","v":0},{"$f":"(SUMPRODUCT(L$9:L$229,Nutrients!$FE$8:$FE$228)+(IF($A$7=Nutrients!$B$8,Nutrients!$FE$8,Nutrients!$FE$9)*L$7)+(((IF($A$8=Nutrients!$B$79,Nutrients!$FE$79,(IF($A$8=Nutrients!$B$77,Nutrients!$FE$77,Nutrients!$FE$78)))))*L$8))","v":0},{"$f":"(SUMPRODUCT(M$9:M$229,Nutrients!$FE$8:$FE$228)+(IF($A$7=Nutrients!$B$8,Nutrients!$FE$8,Nutrients!$FE$9)*M$7)+(((IF($A$8=Nutrients!$B$79,Nutrients!$FE$79,(IF($A$8=Nutrients!$B$77,Nutrients!$FE$77,Nutrients!$FE$78)))))*M$8))","v":0},{"$f":"(SUMPRODUCT(N$9:N$229,Nutrients!$FE$8:$FE$228)+(IF($A$7=Nutrients!$B$8,Nutrients!$FE$8,Nutrients!$FE$9)*N$7)+(((IF($A$8=Nutrients!$B$79,Nutrients!$FE$79,(IF($A$8=Nutrients!$B$77,Nutrients!$FE$77,Nutrients!$FE$78)))))*N$8))","v":0},null,{"$f":"(SUMPRODUCT(P$9:P$229,Nutrients!$FE$8:$FE$228)+(IF($A$7=Nutrients!$B$8,Nutrients!$FE$8,Nutrients!$FE$9)*P$7)+(((IF($A$8=Nutrients!$B$79,Nutrients!$FE$79,(IF($A$8=Nutrients!$B$77,Nutrients!$FE$77,Nutrients!$FE$78)))))*P$8))","v":0},{"$f":"(SUMPRODUCT(Q$9:Q$229,Nutrients!$FE$8:$FE$228)+(IF($A$7=Nutrients!$B$8,Nutrients!$FE$8,Nutrients!$FE$9)*Q$7)+(((IF($A$8=Nutrients!$B$79,Nutrients!$FE$79,(IF($A$8=Nutrients!$B$77,Nutrients!$FE$77,Nutrients!$FE$78)))))*Q$8))","v":0},{"$f":"(SUMPRODUCT(R$9:R$229,Nutrients!$FE$8:$FE$228)+(IF($A$7=Nutrients!$B$8,Nutrients!$FE$8,Nutrients!$FE$9)*R$7)+(((IF($A$8=Nutrients!$B$79,Nutrients!$FE$79,(IF($A$8=Nutrients!$B$77,Nutrients!$FE$77,Nutrients!$FE$78)))))*R$8))","v":0},{"$f":"(SUMPRODUCT(S$9:S$229,Nutrients!$FE$8:$FE$228)+(IF($A$7=Nutrients!$B$8,Nutrients!$FE$8,Nutrients!$FE$9)*S$7)+(((IF($A$8=Nutrients!$B$79,Nutrients!$FE$79,(IF($A$8=Nutrients!$B$77,Nutrients!$FE$77,Nutrients!$FE$78)))))*S$8))","v":0},{"$f":"(SUMPRODUCT(T$9:T$229,Nutrients!$FE$8:$FE$228)+(IF($A$7=Nutrients!$B$8,Nutrients!$FE$8,Nutrients!$FE$9)*T$7)+(((IF($A$8=Nutrients!$B$79,Nutrients!$FE$79,(IF($A$8=Nutrients!$B$77,Nutrients!$FE$77,Nutrients!$FE$78)))))*T$8))","v":0},{"$f":"(SUMPRODUCT(U$9:U$229,Nutrients!$FE$8:$FE$228)+(IF($A$7=Nutrients!$B$8,Nutrients!$FE$8,Nutrients!$FE$9)*U$7)+(((IF($A$8=Nutrients!$B$79,Nutrients!$FE$79,(IF($A$8=Nutrients!$B$77,Nutrients!$FE$77,Nutrients!$FE$78)))))*U$8))","v":0},null,{"$f":"(SUMPRODUCT(W$9:W$229,Nutrients!$FE$8:$FE$228)+(IF($A$7=Nutrients!$B$8,Nutrients!$FE$8,Nutrients!$FE$9)*W$7)+(((IF($A$8=Nutrients!$B$79,Nutrients!$FE$79,(IF($A$8=Nutrients!$B$77,Nutrients!$FE$77,Nutrients!$FE$78)))))*W$8))","v":0},{"$f":"(SUMPRODUCT(X$9:X$229,Nutrients!$FE$8:$FE$228)+(IF($A$7=Nutrients!$B$8,Nutrients!$FE$8,Nutrients!$FE$9)*X$7)+(((IF($A$8=Nutrients!$B$79,Nutrients!$FE$79,(IF($A$8=Nutrients!$B$77,Nutrients!$FE$77,Nutrients!$FE$78)))))*X$8))","v":0},{"$f":"(SUMPRODUCT(Y$9:Y$229,Nutrients!$FE$8:$FE$228)+(IF($A$7=Nutrients!$B$8,Nutrients!$FE$8,Nutrients!$FE$9)*Y$7)+(((IF($A$8=Nutrients!$B$79,Nutrients!$FE$79,(IF($A$8=Nutrients!$B$77,Nutrients!$FE$77,Nutrients!$FE$78)))))*Y$8))","v":0},{"$f":"(SUMPRODUCT(Z$9:Z$229,Nutrients!$FE$8:$FE$228)+(IF($A$7=Nutrients!$B$8,Nutrients!$FE$8,Nutrients!$FE$9)*Z$7)+(((IF($A$8=Nutrients!$B$79,Nutrients!$FE$79,(IF($A$8=Nutrients!$B$77,Nutrients!$FE$77,Nutrients!$FE$78)))))*Z$8))","v":0},{"$f":"(SUMPRODUCT(AA$9:AA$229,Nutrients!$FE$8:$FE$228)+(IF($A$7=Nutrients!$B$8,Nutrients!$FE$8,Nutrients!$FE$9)*AA$7)+(((IF($A$8=Nutrients!$B$79,Nutrients!$FE$79,(IF($A$8=Nutrients!$B$77,Nutrients!$FE$77,Nutrients!$FE$78)))))*AA$8))","v":0},{"$f":"(SUMPRODUCT(AB$9:AB$229,Nutrients!$FE$8:$FE$228)+(IF($A$7=Nutrients!$B$8,Nutrients!$FE$8,Nutrients!$FE$9)*AB$7)+(((IF($A$8=Nutrients!$B$79,Nutrients!$FE$79,(IF($A$8=Nutrients!$B$77,Nutrients!$FE$77,Nutrients!$FE$78)))))*AB$8))","v":0},null,{"$f":"(SUMPRODUCT(AD$9:AD$229,Nutrients!$FE$8:$FE$228)+(IF($A$7=Nutrients!$B$8,Nutrients!$FE$8,Nutrients!$FE$9)*AD$7)+(((IF($A$8=Nutrients!$B$79,Nutrients!$FE$79,(IF($A$8=Nutrients!$B$77,Nutrients!$FE$77,Nutrients!$FE$78)))))*AD$8))","v":0},{"$f":"(SUMPRODUCT(AE$9:AE$229,Nutrients!$FE$8:$FE$228)+(IF($A$7=Nutrients!$B$8,Nutrients!$FE$8,Nutrients!$FE$9)*AE$7)+(((IF($A$8=Nutrients!$B$79,Nutrients!$FE$79,(IF($A$8=Nutrients!$B$77,Nutrients!$FE$77,Nutrients!$FE$78)))))*AE$8))","v":0},{"$f":"(SUMPRODUCT(AF$9:AF$229,Nutrients!$FE$8:$FE$228)+(IF($A$7=Nutrients!$B$8,Nutrients!$FE$8,Nutrients!$FE$9)*AF$7)+(((IF($A$8=Nutrients!$B$79,Nutrients!$FE$79,(IF($A$8=Nutrients!$B$77,Nutrients!$FE$77,Nutrients!$FE$78)))))*AF$8))","v":0},{"$f":"(SUMPRODUCT(AG$9:AG$229,Nutrients!$FE$8:$FE$228)+(IF($A$7=Nutrients!$B$8,Nutrients!$FE$8,Nutrients!$FE$9)*AG$7)+(((IF($A$8=Nutrients!$B$79,Nutrients!$FE$79,(IF($A$8=Nutrients!$B$77,Nutrients!$FE$77,Nutrients!$FE$78)))))*AG$8))","v":0},{"$f":"(SUMPRODUCT(AH$9:AH$229,Nutrients!$FE$8:$FE$228)+(IF($A$7=Nutrients!$B$8,Nutrients!$FE$8,Nutrients!$FE$9)*AH$7)+(((IF($A$8=Nutrients!$B$79,Nutrients!$FE$79,(IF($A$8=Nutrients!$B$77,Nutrients!$FE$77,Nutrients!$FE$78)))))*AH$8))","v":0},{"$f":"(SUMPRODUCT(AI$9:AI$229,Nutrients!$FE$8:$FE$228)+(IF($A$7=Nutrients!$B$8,Nutrients!$FE$8,Nutrients!$FE$9)*AI$7)+(((IF($A$8=Nutrients!$B$79,Nutrients!$FE$79,(IF($A$8=Nutrients!$B$77,Nutrients!$FE$77,Nutrients!$FE$78)))))*AI$8))","v":0},null,{"$f":"(SUMPRODUCT(AK$9:AK$229,Nutrients!$FE$8:$FE$228)+(IF($A$7=Nutrients!$B$8,Nutrients!$FE$8,Nutrients!$FE$9)*AK$7)+(((IF($A$8=Nutrients!$B$79,Nutrients!$FE$79,(IF($A$8=Nutrients!$B$77,Nutrients!$FE$77,Nutrients!$FE$78)))))*AK$8))","v":0},{"$f":"(SUMPRODUCT(AL$9:AL$229,Nutrients!$FE$8:$FE$228)+(IF($A$7=Nutrients!$B$8,Nutrients!$FE$8,Nutrients!$FE$9)*AL$7)+(((IF($A$8=Nutrients!$B$79,Nutrients!$FE$79,(IF($A$8=Nutrients!$B$77,Nutrients!$FE$77,Nutrients!$FE$78)))))*AL$8))","v":0},{"$f":"(SUMPRODUCT(AM$9:AM$229,Nutrients!$FE$8:$FE$228)+(IF($A$7=Nutrients!$B$8,Nutrients!$FE$8,Nutrients!$FE$9)*AM$7)+(((IF($A$8=Nutrients!$B$79,Nutrients!$FE$79,(IF($A$8=Nutrients!$B$77,Nutrients!$FE$77,Nutrients!$FE$78)))))*AM$8))","v":0},{"$f":"(SUMPRODUCT(AN$9:AN$229,Nutrients!$FE$8:$FE$228)+(IF($A$7=Nutrients!$B$8,Nutrients!$FE$8,Nutrients!$FE$9)*AN$7)+(((IF($A$8=Nutrients!$B$79,Nutrients!$FE$79,(IF($A$8=Nutrients!$B$77,Nutrients!$FE$77,Nutrients!$FE$78)))))*AN$8))","v":0},{"$f":"(SUMPRODUCT(AO$9:AO$229,Nutrients!$FE$8:$FE$228)+(IF($A$7=Nutrients!$B$8,Nutrients!$FE$8,Nutrients!$FE$9)*AO$7)+(((IF($A$8=Nutrients!$B$79,Nutrients!$FE$79,(IF($A$8=Nutrients!$B$77,Nutrients!$FE$77,Nutrients!$FE$78)))))*AO$8))","v":0},{"$f":"(SUMPRODUCT(AP$9:AP$229,Nutrients!$FE$8:$FE$228)+(IF($A$7=Nutrients!$B$8,Nutrients!$FE$8,Nutrients!$FE$9)*AP$7)+(((IF($A$8=Nutrients!$B$79,Nutrients!$FE$79,(IF($A$8=Nutrients!$B$77,Nutrients!$FE$77,Nutrients!$FE$78)))))*AP$8))","v":0},null,{"$f":"(SUMPRODUCT(AR$9:AR$229,Nutrients!$FE$8:$FE$228)+(IF($A$7=Nutrients!$B$8,Nutrients!$FE$8,Nutrients!$FE$9)*AR$7)+(((IF($A$8=Nutrients!$B$79,Nutrients!$FE$79,(IF($A$8=Nutrients!$B$77,Nutrients!$FE$77,Nutrients!$FE$78)))))*AR$8))","v":0},{"$f":"(SUMPRODUCT(AS$9:AS$229,Nutrients!$FE$8:$FE$228)+(IF($A$7=Nutrients!$B$8,Nutrients!$FE$8,Nutrients!$FE$9)*AS$7)+(((IF($A$8=Nutrients!$B$79,Nutrients!$FE$79,(IF($A$8=Nutrients!$B$77,Nutrients!$FE$77,Nutrients!$FE$78)))))*AS$8))","v":0},{"$f":"(SUMPRODUCT(AT$9:AT$229,Nutrients!$FE$8:$FE$228)+(IF($A$7=Nutrients!$B$8,Nutrients!$FE$8,Nutrients!$FE$9)*AT$7)+(((IF($A$8=Nutrients!$B$79,Nutrients!$FE$79,(IF($A$8=Nutrients!$B$77,Nutrients!$FE$77,Nutrients!$FE$78)))))*AT$8))","v":0},{"$f":"(SUMPRODUCT(AU$9:AU$229,Nutrients!$FE$8:$FE$228)+(IF($A$7=Nutrients!$B$8,Nutrients!$FE$8,Nutrients!$FE$9)*AU$7)+(((IF($A$8=Nutrients!$B$79,Nutrients!$FE$79,(IF($A$8=Nutrients!$B$77,Nutrients!$FE$77,Nutrients!$FE$78)))))*AU$8))","v":0},{"$f":"(SUMPRODUCT(AV$9:AV$229,Nutrients!$FE$8:$FE$228)+(IF($A$7=Nutrients!$B$8,Nutrients!$FE$8,Nutrients!$FE$9)*AV$7)+(((IF($A$8=Nutrients!$B$79,Nutrients!$FE$79,(IF($A$8=Nutrients!$B$77,Nutrients!$FE$77,Nutrients!$FE$78)))))*AV$8))","v":0},{"$f":"(SUMPRODUCT(AW$9:AW$229,Nutrients!$FE$8:$FE$228)+(IF($A$7=Nutrients!$B$8,Nutrients!$FE$8,Nutrients!$FE$9)*AW$7)+(((IF($A$8=Nutrients!$B$79,Nutrients!$FE$79,(IF($A$8=Nutrients!$B$77,Nutrients!$FE$77,Nutrients!$FE$78)))))*AW$8))","v":0}]
[]
["ADG, g/d",{"$f":" (-1619.2980797296 + 25.9248064834 * (B251/1000) - 2657.6209162609 * B236 +\n123.0469725298 * B253 - 9.2854579989 * B316 + 872.0182830582 * B252 + 26.664395965 * (AVERAGE(B5:B6)*0.453592) +\n2599.7646012325 * B236 * B236- 0.1016237102 *  (AVERAGE(B5:B6)*0.453592) *  (AVERAGE(B5:B6)*0.453592) - 71.8618465276 * B236 * B253 -\n607.1294449572 * B236 * B252 + 25.6463076451 * B236 * (AVERAGE(B5:B6)*0.453592) - 0.8399854508 * B253 * (AVERAGE(B5:B6)*0.453592) +\n0.0967347393 * B316 * (AVERAGE(B5:B6)*0.453592) - 5.2553838048 * B252 * (AVERAGE(B5:B6)*0.453592))","v":740.32616660444182},{"$f":" -1619.2980797296 + 25.9248064834 * (C251/1000) - 2657.6209162609 * C236 +\n123.0469725298 * C253 - 9.2854579989 * C316 + 872.0182830582 * C252 + 26.664395965 * (AVERAGE(C5:C6)*0.453592) +\n2599.7646012325 * C236 * C236- 0.1016237102 *  (AVERAGE(C5:C6)*0.453592) *  (AVERAGE(C5:C6)*0.453592) - 71.8618465276 * C236 * C253 -\n607.1294449572 * C236 * C252 + 25.6463076451 * C236 * (AVERAGE(C5:C6)*0.453592) - 0.8399854508 * C253 * (AVERAGE(C5:C6)*0.453592) +\n0.0967347393 * C316 * (AVERAGE(C5:C6)*0.453592) - 5.2553838048 * C252 * (AVERAGE(C5:C6)*0.453592)","v":862.50756659214221},{"$f":" -1619.2980797296 + 25.9248064834 * (D251/1000) - 2657.6209162609 * D236 +\n123.0469725298 * D253 - 9.2854579989 * D316 + 872.0182830582 * D252 + 26.664395965 * (AVERAGE(D5:D6)*0.453592) +\n2599.7646012325 * D236 * D236- 0.1016237102 *  (AVERAGE(D5:D6)*0.453592) *  (AVERAGE(D5:D6)*0.453592) - 71.8618465276 * D236 * D253 -\n607.1294449572 * D236 * D252 + 25.6463076451 * D236 * (AVERAGE(D5:D6)*0.453592) - 0.8399854508 * D253 * (AVERAGE(D5:D6)*0.453592) +\n0.0967347393 * D316 * (AVERAGE(D5:D6)*0.453592) - 5.2553838048 * D252 * (AVERAGE(D5:D6)*0.453592)","v":944.95636803551065},{"$f":" -1619.2980797296 + 25.9248064834 * (E251/1000) - 2657.6209162609 * E236 +\n123.0469725298 * E253 - 9.2854579989 * E316 + 872.0182830582 * E252 + 26.664395965 * (AVERAGE(E5:E6)*0.453592) +\n2599.7646012325 * E236 * E236- 0.1016237102 *  (AVERAGE(E5:E6)*0.453592) *  (AVERAGE(E5:E6)*0.453592) - 71.8618465276 * E236 * E253 -\n607.1294449572 * E236 * E252 + 25.6463076451 * E236 * (AVERAGE(E5:E6)*0.453592) - 0.8399854508 * E253 * (AVERAGE(E5:E6)*0.453592) +\n0.0967347393 * E316 * (AVERAGE(E5:E6)*0.453592) - 5.2553838048 * E252 * (AVERAGE(E5:E6)*0.453592)","v":984.20180073567008},{"$f":" -1619.2980797296 + 25.9248064834 * (F251/1000) - 2657.6209162609 * F236 +\n123.0469725298 * F253 - 9.2854579989 * F316 + 872.0182830582 * F252 + 26.664395965 * (AVERAGE(F5:F6)*0.453592) +\n2599.7646012325 * F236 * F236- 0.1016237102 *  (AVERAGE(F5:F6)*0.453592) *  (AVERAGE(F5:F6)*0.453592) - 71.8618465276 * F236 * F253 -\n607.1294449572 * F236 * F252 + 25.6463076451 * F236 * (AVERAGE(F5:F6)*0.453592) - 0.8399854508 * F253 * (AVERAGE(F5:F6)*0.453592) +\n0.0967347393 * F316 * (AVERAGE(F5:F6)*0.453592) - 5.2553838048 * F252 * (AVERAGE(F5:F6)*0.453592)","v":982.04258582759257},{"$f":" -1619.2980797296 + 25.9248064834 * (G251/1000) - 2657.6209162609 * G236 +\n123.0469725298 * G253 - 9.2854579989 * G316 + 872.0182830582 * G252 + 26.664395965 * (AVERAGE(G5:G6)*0.453592) +\n2599.7646012325 * G236 * G236- 0.1016237102 *  (AVERAGE(G5:G6)*0.453592) *  (AVERAGE(G5:G6)*0.453592) - 71.8618465276 * G236 * G253 -\n607.1294449572 * G236 * G252 + 25.6463076451 * G236 * (AVERAGE(G5:G6)*0.453592) - 0.8399854508 * G253 * (AVERAGE(G5:G6)*0.453592) +\n0.0967347393 * G316 * (AVERAGE(G5:G6)*0.453592) - 5.2553838048 * G252 * (AVERAGE(G5:G6)*0.453592)","v":932.08406418687355},null,{"$f":" (-1619.2980797296 + 25.9248064834 * (I251/1000) - 2657.6209162609 * I236 +\n123.0469725298 * I253 - 9.2854579989 * I316 + 872.0182830582 * I252 + 26.664395965 * (AVERAGE(I5:I6)*0.453592) +\n2599.7646012325 * I236 * I236- 0.1016237102 *  (AVERAGE(I5:I6)*0.453592) *  (AVERAGE(I5:I6)*0.453592) - 71.8618465276 * I236 * I253 -\n607.1294449572 * I236 * I252 + 25.6463076451 * I236 * (AVERAGE(I5:I6)*0.453592) - 0.8399854508 * I253 * (AVERAGE(I5:I6)*0.453592) +\n0.0967347393 * I316 * (AVERAGE(I5:I6)*0.453592) - 5.2553838048 * I252 * (AVERAGE(I5:I6)*0.453592))","v":737.82281291393463},{"$f":" -1619.2980797296 + 25.9248064834 * (J251/1000) - 2657.6209162609 * J236 +\n123.0469725298 * J253 - 9.2854579989 * J316 + 872.0182830582 * J252 + 26.664395965 * (AVERAGE(J5:J6)*0.453592) +\n2599.7646012325 * J236 * J236- 0.1016237102 *  (AVERAGE(J5:J6)*0.453592) *  (AVERAGE(J5:J6)*0.453592) - 71.8618465276 * J236 * J253 -\n607.1294449572 * J236 * J252 + 25.6463076451 * J236 * (AVERAGE(J5:J6)*0.453592) - 0.8399854508 * J253 * (AVERAGE(J5:J6)*0.453592) +\n0.0967347393 * J316 * (AVERAGE(J5:J6)*0.453592) - 5.2553838048 * J252 * (AVERAGE(J5:J6)*0.453592)","v":860.42380070965544},{"$f":" -1619.2980797296 + 25.9248064834 * (K251/1000) - 2657.6209162609 * K236 +\n123.0469725298 * K253 - 9.2854579989 * K316 + 872.0182830582 * K252 + 26.664395965 * (AVERAGE(K5:K6)*0.453592) +\n2599.7646012325 * K236 * K236- 0.1016237102 *  (AVERAGE(K5:K6)*0.453592) *  (AVERAGE(K5:K6)*0.453592) - 71.8618465276 * K236 * K253 -\n607.1294449572 * K236 * K252 + 25.6463076451 * K236 * (AVERAGE(K5:K6)*0.453592) - 0.8399854508 * K253 * (AVERAGE(K5:K6)*0.453592) +\n0.0967347393 * K316 * (AVERAGE(K5:K6)*0.453592) - 5.2553838048 * K252 * (AVERAGE(K5:K6)*0.453592)","v":942.56282888497708},{"$f":" -1619.2980797296 + 25.9248064834 * (L251/1000) - 2657.6209162609 * L236 +\n123.0469725298 * L253 - 9.2854579989 * L316 + 872.0182830582 * L252 + 26.664395965 * (AVERAGE(L5:L6)*0.453592) +\n2599.7646012325 * L236 * L236- 0.1016237102 *  (AVERAGE(L5:L6)*0.453592) *  (AVERAGE(L5:L6)*0.453592) - 71.8618465276 * L236 * L253 -\n607.1294449572 * L236 * L252 + 25.6463076451 * L236 * (AVERAGE(L5:L6)*0.453592) - 0.8399854508 * L253 * (AVERAGE(L5:L6)*0.453592) +\n0.0967347393 * L316 * (AVERAGE(L5:L6)*0.453592) - 5.2553838048 * L252 * (AVERAGE(L5:L6)*0.453592)","v":980.60177466022901},{"$f":" -1619.2980797296 + 25.9248064834 * (M251/1000) - 2657.6209162609 * M236 +\n123.0469725298 * M253 - 9.2854579989 * M316 + 872.0182830582 * M252 + 26.664395965 * (AVERAGE(M5:M6)*0.453592) +\n2599.7646012325 * M236 * M236- 0.1016237102 *  (AVERAGE(M5:M6)*0.453592) *  (AVERAGE(M5:M6)*0.453592) - 71.8618465276 * M236 * M253 -\n607.1294449572 * M236 * M252 + 25.6463076451 * M236 * (AVERAGE(M5:M6)*0.453592) - 0.8399854508 * M253 * (AVERAGE(M5:M6)*0.453592) +\n0.0967347393 * M316 * (AVERAGE(M5:M6)*0.453592) - 5.2553838048 * M252 * (AVERAGE(M5:M6)*0.453592)","v":976.35154973514977},{"$f":" -1619.2980797296 + 25.9248064834 * (N251/1000) - 2657.6209162609 * N236 +\n123.0469725298 * N253 - 9.2854579989 * N316 + 872.0182830582 * N252 + 26.664395965 * (AVERAGE(N5:N6)*0.453592) +\n2599.7646012325 * N236 * N236- 0.1016237102 *  (AVERAGE(N5:N6)*0.453592) *  (AVERAGE(N5:N6)*0.453592) - 71.8618465276 * N236 * N253 -\n607.1294449572 * N236 * N252 + 25.6463076451 * N236 * (AVERAGE(N5:N6)*0.453592) - 0.8399854508 * N253 * (AVERAGE(N5:N6)*0.453592) +\n0.0967347393 * N316 * (AVERAGE(N5:N6)*0.453592) - 5.2553838048 * N252 * (AVERAGE(N5:N6)*0.453592)","v":923.02620425658733},null,{"$f":" (-1619.2980797296 + 25.9248064834 * (P251/1000) - 2657.6209162609 * P236 +\n123.0469725298 * P253 - 9.2854579989 * P316 + 872.0182830582 * P252 + 26.664395965 * (AVERAGE(P5:P6)*0.453592) +\n2599.7646012325 * P236 * P236- 0.1016237102 *  (AVERAGE(P5:P6)*0.453592) *  (AVERAGE(P5:P6)*0.453592) - 71.8618465276 * P236 * P253 -\n607.1294449572 * P236 * P252 + 25.6463076451 * P236 * (AVERAGE(P5:P6)*0.453592) - 0.8399854508 * P253 * (AVERAGE(P5:P6)*0.453592) +\n0.0967347393 * P316 * (AVERAGE(P5:P6)*0.453592) - 5.2553838048 * P252 * (AVERAGE(P5:P6)*0.453592))","v":735.36391234255655},{"$f":" -1619.2980797296 + 25.9248064834 * (Q251/1000) - 2657.6209162609 * Q236 +\n123.0469725298 * Q253 - 9.2854579989 * Q316 + 872.0182830582 * Q252 + 26.664395965 * (AVERAGE(Q5:Q6)*0.453592) +\n2599.7646012325 * Q236 * Q236- 0.1016237102 *  (AVERAGE(Q5:Q6)*0.453592) *  (AVERAGE(Q5:Q6)*0.453592) - 71.8618465276 * Q236 * Q253 -\n607.1294449572 * Q236 * Q252 + 25.6463076451 * Q236 * (AVERAGE(Q5:Q6)*0.453592) - 0.8399854508 * Q253 * (AVERAGE(Q5:Q6)*0.453592) +\n0.0967347393 * Q316 * (AVERAGE(Q5:Q6)*0.453592) - 5.2553838048 * Q252 * (AVERAGE(Q5:Q6)*0.453592)","v":858.36844770368066},{"$f":" -1619.2980797296 + 25.9248064834 * (R251/1000) - 2657.6209162609 * R236 +\n123.0469725298 * R253 - 9.2854579989 * R316 + 872.0182830582 * R252 + 26.664395965 * (AVERAGE(R5:R6)*0.453592) +\n2599.7646012325 * R236 * R236- 0.1016237102 *  (AVERAGE(R5:R6)*0.453592) *  (AVERAGE(R5:R6)*0.453592) - 71.8618465276 * R236 * R253 -\n607.1294449572 * R236 * R252 + 25.6463076451 * R236 * (AVERAGE(R5:R6)*0.453592) - 0.8399854508 * R253 * (AVERAGE(R5:R6)*0.453592) +\n0.0967347393 * R316 * (AVERAGE(R5:R6)*0.453592) - 5.2553838048 * R252 * (AVERAGE(R5:R6)*0.453592)","v":940.18058238231538},{"$f":" -1619.2980797296 + 25.9248064834 * (S251/1000) - 2657.6209162609 * S236 +\n123.0469725298 * S253 - 9.2854579989 * S316 + 872.0182830582 * S252 + 26.664395965 * (AVERAGE(S5:S6)*0.453592) +\n2599.7646012325 * S236 * S236- 0.1016237102 *  (AVERAGE(S5:S6)*0.453592) *  (AVERAGE(S5:S6)*0.453592) - 71.8618465276 * S236 * S253 -\n607.1294449572 * S236 * S252 + 25.6463076451 * S236 * (AVERAGE(S5:S6)*0.453592) - 0.8399854508 * S253 * (AVERAGE(S5:S6)*0.453592) +\n0.0967347393 * S316 * (AVERAGE(S5:S6)*0.453592) - 5.2553838048 * S252 * (AVERAGE(S5:S6)*0.453592)","v":976.98421807826821},{"$f":" -1619.2980797296 + 25.9248064834 * (T251/1000) - 2657.6209162609 * T236 +\n123.0469725298 * T253 - 9.2854579989 * T316 + 872.0182830582 * T252 + 26.664395965 * (AVERAGE(T5:T6)*0.453592) +\n2599.7646012325 * T236 * T236- 0.1016237102 *  (AVERAGE(T5:T6)*0.453592) *  (AVERAGE(T5:T6)*0.453592) - 71.8618465276 * T236 * T253 -\n607.1294449572 * T236 * T252 + 25.6463076451 * T236 * (AVERAGE(T5:T6)*0.453592) - 0.8399854508 * T253 * (AVERAGE(T5:T6)*0.453592) +\n0.0967347393 * T316 * (AVERAGE(T5:T6)*0.453592) - 5.2553838048 * T252 * (AVERAGE(T5:T6)*0.453592)","v":970.61642674660789},{"$f":" -1619.2980797296 + 25.9248064834 * (U251/1000) - 2657.6209162609 * U236 +\n123.0469725298 * U253 - 9.2854579989 * U316 + 872.0182830582 * U252 + 26.664395965 * (AVERAGE(U5:U6)*0.453592) +\n2599.7646012325 * U236 * U236- 0.1016237102 *  (AVERAGE(U5:U6)*0.453592) *  (AVERAGE(U5:U6)*0.453592) - 71.8618465276 * U236 * U253 -\n607.1294449572 * U236 * U252 + 25.6463076451 * U236 * (AVERAGE(U5:U6)*0.453592) - 0.8399854508 * U253 * (AVERAGE(U5:U6)*0.453592) +\n0.0967347393 * U316 * (AVERAGE(U5:U6)*0.453592) - 5.2553838048 * U252 * (AVERAGE(U5:U6)*0.453592)","v":914.01232612350691},null,{"$f":" (-1619.2980797296 + 25.9248064834 * (W251/1000) - 2657.6209162609 * W236 +\n123.0469725298 * W253 - 9.2854579989 * W316 + 872.0182830582 * W252 + 26.664395965 * (AVERAGE(W5:W6)*0.453592) +\n2599.7646012325 * W236 * W236- 0.1016237102 *  (AVERAGE(W5:W6)*0.453592) *  (AVERAGE(W5:W6)*0.453592) - 71.8618465276 * W236 * W253 -\n607.1294449572 * W236 * W252 + 25.6463076451 * W236 * (AVERAGE(W5:W6)*0.453592) - 0.8399854508 * W253 * (AVERAGE(W5:W6)*0.453592) +\n0.0967347393 * W316 * (AVERAGE(W5:W6)*0.453592) - 5.2553838048 * W252 * (AVERAGE(W5:W6)*0.453592))","v":732.9152560783665},{"$f":" -1619.2980797296 + 25.9248064834 * (X251/1000) - 2657.6209162609 * X236 +\n123.0469725298 * X253 - 9.2854579989 * X316 + 872.0182830582 * X252 + 26.664395965 * (AVERAGE(X5:X6)*0.453592) +\n2599.7646012325 * X236 * X236- 0.1016237102 *  (AVERAGE(X5:X6)*0.453592) *  (AVERAGE(X5:X6)*0.453592) - 71.8618465276 * X236 * X253 -\n607.1294449572 * X236 * X252 + 25.6463076451 * X236 * (AVERAGE(X5:X6)*0.453592) - 0.8399854508 * X253 * (AVERAGE(X5:X6)*0.453592) +\n0.0967347393 * X316 * (AVERAGE(X5:X6)*0.453592) - 5.2553838048 * X252 * (AVERAGE(X5:X6)*0.453592)","v":856.3384518252584},{"$f":" -1619.2980797296 + 25.9248064834 * (Y251/1000) - 2657.6209162609 * Y236 +\n123.0469725298 * Y253 - 9.2854579989 * Y316 + 872.0182830582 * Y252 + 26.664395965 * (AVERAGE(Y5:Y6)*0.453592) +\n2599.7646012325 * Y236 * Y236- 0.1016237102 *  (AVERAGE(Y5:Y6)*0.453592) *  (AVERAGE(Y5:Y6)*0.453592) - 71.8618465276 * Y236 * Y253 -\n607.1294449572 * Y236 * Y252 + 25.6463076451 * Y236 * (AVERAGE(Y5:Y6)*0.453592) - 0.8399854508 * Y253 * (AVERAGE(Y5:Y6)*0.453592) +\n0.0967347393 * Y316 * (AVERAGE(Y5:Y6)*0.453592) - 5.2553838048 * Y252 * (AVERAGE(Y5:Y6)*0.453592)","v":937.80263712373403},{"$f":" -1619.2980797296 + 25.9248064834 * (Z251/1000) - 2657.6209162609 * Z236 +\n123.0469725298 * Z253 - 9.2854579989 * Z316 + 872.0182830582 * Z252 + 26.664395965 * (AVERAGE(Z5:Z6)*0.453592) +\n2599.7646012325 * Z236 * Z236- 0.1016237102 *  (AVERAGE(Z5:Z6)*0.453592) *  (AVERAGE(Z5:Z6)*0.453592) - 71.8618465276 * Z236 * Z253 -\n607.1294449572 * Z236 * Z252 + 25.6463076451 * Z236 * (AVERAGE(Z5:Z6)*0.453592) - 0.8399854508 * Z253 * (AVERAGE(Z5:Z6)*0.453592) +\n0.0967347393 * Z316 * (AVERAGE(Z5:Z6)*0.453592) - 5.2553838048 * Z252 * (AVERAGE(Z5:Z6)*0.453592)","v":973.37564760546206},{"$f":" -1619.2980797296 + 25.9248064834 * (AA251/1000) - 2657.6209162609 * AA236 +\n123.0469725298 * AA253 - 9.2854579989 * AA316 + 872.0182830582 * AA252 + 26.664395965 * (AVERAGE(AA5:AA6)*0.453592) +\n2599.7646012325 * AA236 * AA236- 0.1016237102 *  (AVERAGE(AA5:AA6)*0.453592) *  (AVERAGE(AA5:AA6)*0.453592) - 71.8618465276 * AA236 * AA253 -\n607.1294449572 * AA236 * AA252 + 25.6463076451 * AA236 * (AVERAGE(AA5:AA6)*0.453592) - 0.8399854508 * AA253 * (AVERAGE(AA5:AA6)*0.453592) +\n0.0967347393 * AA316 * (AVERAGE(AA5:AA6)*0.453592) - 5.2553838048 * AA252 * (AVERAGE(AA5:AA6)*0.453592)","v":964.7436980632217},{"$f":" -1619.2980797296 + 25.9248064834 * (AB251/1000) - 2657.6209162609 * AB236 +\n123.0469725298 * AB253 - 9.2854579989 * AB316 + 872.0182830582 * AB252 + 26.664395965 * (AVERAGE(AB5:AB6)*0.453592) +\n2599.7646012325 * AB236 * AB236- 0.1016237102 *  (AVERAGE(AB5:AB6)*0.453592) *  (AVERAGE(AB5:AB6)*0.453592) - 71.8618465276 * AB236 * AB253 -\n607.1294449572 * AB236 * AB252 + 25.6463076451 * AB236 * (AVERAGE(AB5:AB6)*0.453592) - 0.8399854508 * AB253 * (AVERAGE(AB5:AB6)*0.453592) +\n0.0967347393 * AB316 * (AVERAGE(AB5:AB6)*0.453592) - 5.2553838048 * AB252 * (AVERAGE(AB5:AB6)*0.453592)","v":904.72562048712371},null,{"$f":" (-1619.2980797296 + 25.9248064834 * (AD251/1000) - 2657.6209162609 * AD236 +\n123.0469725298 * AD253 - 9.2854579989 * AD316 + 872.0182830582 * AD252 + 26.664395965 * (AVERAGE(AD5:AD6)*0.453592) +\n2599.7646012325 * AD236 * AD236- 0.1016237102 *  (AVERAGE(AD5:AD6)*0.453592) *  (AVERAGE(AD5:AD6)*0.453592) - 71.8618465276 * AD236 * AD253 -\n607.1294449572 * AD236 * AD252 + 25.6463076451 * AD236 * (AVERAGE(AD5:AD6)*0.453592) - 0.8399854508 * AD253 * (AVERAGE(AD5:AD6)*0.453592) +\n0.0967347393 * AD316 * (AVERAGE(AD5:AD6)*0.453592) - 5.2553838048 * AD252 * (AVERAGE(AD5:AD6)*0.453592))","v":730.51508162544155},{"$f":" -1619.2980797296 + 25.9248064834 * (AE251/1000) - 2657.6209162609 * AE236 +\n123.0469725298 * AE253 - 9.2854579989 * AE316 + 872.0182830582 * AE252 + 26.664395965 * (AVERAGE(AE5:AE6)*0.453592) +\n2599.7646012325 * AE236 * AE236- 0.1016237102 *  (AVERAGE(AE5:AE6)*0.453592) *  (AVERAGE(AE5:AE6)*0.453592) - 71.8618465276 * AE236 * AE253 -\n607.1294449572 * AE236 * AE252 + 25.6463076451 * AE236 * (AVERAGE(AE5:AE6)*0.453592) - 0.8399854508 * AE253 * (AVERAGE(AE5:AE6)*0.453592) +\n0.0967347393 * AE316 * (AVERAGE(AE5:AE6)*0.453592) - 5.2553838048 * AE252 * (AVERAGE(AE5:AE6)*0.453592)","v":854.29804278316578},{"$f":" -1619.2980797296 + 25.9248064834 * (AF251/1000) - 2657.6209162609 * AF236 +\n123.0469725298 * AF253 - 9.2854579989 * AF316 + 872.0182830582 * AF252 + 26.664395965 * (AVERAGE(AF5:AF6)*0.453592) +\n2599.7646012325 * AF236 * AF236- 0.1016237102 *  (AVERAGE(AF5:AF6)*0.453592) *  (AVERAGE(AF5:AF6)*0.453592) - 71.8618465276 * AF236 * AF253 -\n607.1294449572 * AF236 * AF252 + 25.6463076451 * AF236 * (AVERAGE(AF5:AF6)*0.453592) - 0.8399854508 * AF253 * (AVERAGE(AF5:AF6)*0.453592) +\n0.0967347393 * AF316 * (AVERAGE(AF5:AF6)*0.453592) - 5.2553838048 * AF252 * (AVERAGE(AF5:AF6)*0.453592)","v":935.44765961534085},{"$f":" -1619.2980797296 + 25.9248064834 * (AG251/1000) - 2657.6209162609 * AG236 +\n123.0469725298 * AG253 - 9.2854579989 * AG316 + 872.0182830582 * AG252 + 26.664395965 * (AVERAGE(AG5:AG6)*0.453592) +\n2599.7646012325 * AG236 * AG236- 0.1016237102 *  (AVERAGE(AG5:AG6)*0.453592) *  (AVERAGE(AG5:AG6)*0.453592) - 71.8618465276 * AG236 * AG253 -\n607.1294449572 * AG236 * AG252 + 25.6463076451 * AG236 * (AVERAGE(AG5:AG6)*0.453592) - 0.8399854508 * AG253 * (AVERAGE(AG5:AG6)*0.453592) +\n0.0967347393 * AG316 * (AVERAGE(AG5:AG6)*0.453592) - 5.2553838048 * AG252 * (AVERAGE(AG5:AG6)*0.453592)","v":969.75471744288711},{"$f":" -1619.2980797296 + 25.9248064834 * (AH251/1000) - 2657.6209162609 * AH236 +\n123.0469725298 * AH253 - 9.2854579989 * AH316 + 872.0182830582 * AH252 + 26.664395965 * (AVERAGE(AH5:AH6)*0.453592) +\n2599.7646012325 * AH236 * AH236- 0.1016237102 *  (AVERAGE(AH5:AH6)*0.453592) *  (AVERAGE(AH5:AH6)*0.453592) - 71.8618465276 * AH236 * AH253 -\n607.1294449572 * AH236 * AH252 + 25.6463076451 * AH236 * (AVERAGE(AH5:AH6)*0.453592) - 0.8399854508 * AH253 * (AVERAGE(AH5:AH6)*0.453592) +\n0.0967347393 * AH316 * (AVERAGE(AH5:AH6)*0.453592) - 5.2553838048 * AH252 * (AVERAGE(AH5:AH6)*0.453592)","v":958.93141742963121},{"$f":" -1619.2980797296 + 25.9248064834 * (AI251/1000) - 2657.6209162609 * AI236 +\n123.0469725298 * AI253 - 9.2854579989 * AI316 + 872.0182830582 * AI252 + 26.664395965 * (AVERAGE(AI5:AI6)*0.453592) +\n2599.7646012325 * AI236 * AI236- 0.1016237102 *  (AVERAGE(AI5:AI6)*0.453592) *  (AVERAGE(AI5:AI6)*0.453592) - 71.8618465276 * AI236 * AI253 -\n607.1294449572 * AI236 * AI252 + 25.6463076451 * AI236 * (AVERAGE(AI5:AI6)*0.453592) - 0.8399854508 * AI253 * (AVERAGE(AI5:AI6)*0.453592) +\n0.0967347393 * AI316 * (AVERAGE(AI5:AI6)*0.453592) - 5.2553838048 * AI252 * (AVERAGE(AI5:AI6)*0.453592)","v":895.60582793908202},null,{"$f":" (-1619.2980797296 + 25.9248064834 * (AK251/1000) - 2657.6209162609 * AK236 +\n123.0469725298 * AK253 - 9.2854579989 * AK316 + 872.0182830582 * AK252 + 26.664395965 * (AVERAGE(AK5:AK6)*0.453592) +\n2599.7646012325 * AK236 * AK236- 0.1016237102 *  (AVERAGE(AK5:AK6)*0.453592) *  (AVERAGE(AK5:AK6)*0.453592) - 71.8618465276 * AK236 * AK253 -\n607.1294449572 * AK236 * AK252 + 25.6463076451 * AK236 * (AVERAGE(AK5:AK6)*0.453592) - 0.8399854508 * AK253 * (AVERAGE(AK5:AK6)*0.453592) +\n0.0967347393 * AK316 * (AVERAGE(AK5:AK6)*0.453592) - 5.2553838048 * AK252 * (AVERAGE(AK5:AK6)*0.453592))","v":728.10045668103191},{"$f":" -1619.2980797296 + 25.9248064834 * (AL251/1000) - 2657.6209162609 * AL236 +\n123.0469725298 * AL253 - 9.2854579989 * AL316 + 872.0182830582 * AL252 + 26.664395965 * (AVERAGE(AL5:AL6)*0.453592) +\n2599.7646012325 * AL236 * AL236- 0.1016237102 *  (AVERAGE(AL5:AL6)*0.453592) *  (AVERAGE(AL5:AL6)*0.453592) - 71.8618465276 * AL236 * AL253 -\n607.1294449572 * AL236 * AL252 + 25.6463076451 * AL236 * (AVERAGE(AL5:AL6)*0.453592) - 0.8399854508 * AL253 * (AVERAGE(AL5:AL6)*0.453592) +\n0.0967347393 * AL316 * (AVERAGE(AL5:AL6)*0.453592) - 5.2553838048 * AL252 * (AVERAGE(AL5:AL6)*0.453592)","v":852.26887422429309},{"$f":" -1619.2980797296 + 25.9248064834 * (AM251/1000) - 2657.6209162609 * AM236 +\n123.0469725298 * AM253 - 9.2854579989 * AM316 + 872.0182830582 * AM252 + 26.664395965 * (AVERAGE(AM5:AM6)*0.453592) +\n2599.7646012325 * AM236 * AM236- 0.1016237102 *  (AVERAGE(AM5:AM6)*0.453592) *  (AVERAGE(AM5:AM6)*0.453592) - 71.8618465276 * AM236 * AM253 -\n607.1294449572 * AM236 * AM252 + 25.6463076451 * AM236 * (AVERAGE(AM5:AM6)*0.453592) - 0.8399854508 * AM253 * (AVERAGE(AM5:AM6)*0.453592) +\n0.0967347393 * AM316 * (AVERAGE(AM5:AM6)*0.453592) - 5.2553838048 * AM252 * (AVERAGE(AM5:AM6)*0.453592)","v":933.06299604687842},{"$f":" -1619.2980797296 + 25.9248064834 * (AN251/1000) - 2657.6209162609 * AN236 +\n123.0469725298 * AN253 - 9.2854579989 * AN316 + 872.0182830582 * AN252 + 26.664395965 * (AVERAGE(AN5:AN6)*0.453592) +\n2599.7646012325 * AN236 * AN236- 0.1016237102 *  (AVERAGE(AN5:AN6)*0.453592) *  (AVERAGE(AN5:AN6)*0.453592) - 71.8618465276 * AN236 * AN253 -\n607.1294449572 * AN236 * AN252 + 25.6463076451 * AN236 * (AVERAGE(AN5:AN6)*0.453592) - 0.8399854508 * AN253 * (AVERAGE(AN5:AN6)*0.453592) +\n0.0967347393 * AN316 * (AVERAGE(AN5:AN6)*0.453592) - 5.2553838048 * AN252 * (AVERAGE(AN5:AN6)*0.453592)","v":966.12397518923876},{"$f":" -1619.2980797296 + 25.9248064834 * (AO251/1000) - 2657.6209162609 * AO236 +\n123.0469725298 * AO253 - 9.2854579989 * AO316 + 872.0182830582 * AO252 + 26.664395965 * (AVERAGE(AO5:AO6)*0.453592) +\n2599.7646012325 * AO236 * AO236- 0.1016237102 *  (AVERAGE(AO5:AO6)*0.453592) *  (AVERAGE(AO5:AO6)*0.453592) - 71.8618465276 * AO236 * AO253 -\n607.1294449572 * AO236 * AO252 + 25.6463076451 * AO236 * (AVERAGE(AO5:AO6)*0.453592) - 0.8399854508 * AO253 * (AVERAGE(AO5:AO6)*0.453592) +\n0.0967347393 * AO316 * (AVERAGE(AO5:AO6)*0.453592) - 5.2553838048 * AO252 * (AVERAGE(AO5:AO6)*0.453592)","v":953.16426326229521},{"$f":" -1619.2980797296 + 25.9248064834 * (AP251/1000) - 2657.6209162609 * AP236 +\n123.0469725298 * AP253 - 9.2854579989 * AP316 + 872.0182830582 * AP252 + 26.664395965 * (AVERAGE(AP5:AP6)*0.453592) +\n2599.7646012325 * AP236 * AP236- 0.1016237102 *  (AVERAGE(AP5:AP6)*0.453592) *  (AVERAGE(AP5:AP6)*0.453592) - 71.8618465276 * AP236 * AP253 -\n607.1294449572 * AP236 * AP252 + 25.6463076451 * AP236 * (AVERAGE(AP5:AP6)*0.453592) - 0.8399854508 * AP253 * (AVERAGE(AP5:AP6)*0.453592) +\n0.0967347393 * AP316 * (AVERAGE(AP5:AP6)*0.453592) - 5.2553838048 * AP252 * (AVERAGE(AP5:AP6)*0.453592)","v":886.48861715083513},null,{"$f":" (-1619.2980797296 + 25.9248064834 * (AR251/1000) - 2657.6209162609 * AR236 +\n123.0469725298 * AR253 - 9.2854579989 * AR316 + 872.0182830582 * AR252 + 26.664395965 * (AVERAGE(AR5:AR6)*0.453592) +\n2599.7646012325 * AR236 * AR236- 0.1016237102 *  (AVERAGE(AR5:AR6)*0.453592) *  (AVERAGE(AR5:AR6)*0.453592) - 71.8618465276 * AR236 * AR253 -\n607.1294449572 * AR236 * AR252 + 25.6463076451 * AR236 * (AVERAGE(AR5:AR6)*0.453592) - 0.8399854508 * AR253 * (AVERAGE(AR5:AR6)*0.453592) +\n0.0967347393 * AR316 * (AVERAGE(AR5:AR6)*0.453592) - 5.2553838048 * AR252 * (AVERAGE(AR5:AR6)*0.453592))","v":725.70833548714313},{"$f":" -1619.2980797296 + 25.9248064834 * (AS251/1000) - 2657.6209162609 * AS236 +\n123.0469725298 * AS253 - 9.2854579989 * AS316 + 872.0182830582 * AS252 + 26.664395965 * (AVERAGE(AS5:AS6)*0.453592) +\n2599.7646012325 * AS236 * AS236- 0.1016237102 *  (AVERAGE(AS5:AS6)*0.453592) *  (AVERAGE(AS5:AS6)*0.453592) - 71.8618465276 * AS236 * AS253 -\n607.1294449572 * AS236 * AS252 + 25.6463076451 * AS236 * (AVERAGE(AS5:AS6)*0.453592) - 0.8399854508 * AS253 * (AVERAGE(AS5:AS6)*0.453592) +\n0.0967347393 * AS316 * (AVERAGE(AS5:AS6)*0.453592) - 5.2553838048 * AS252 * (AVERAGE(AS5:AS6)*0.453592)","v":850.26358207143301},{"$f":" -1619.2980797296 + 25.9248064834 * (AT251/1000) - 2657.6209162609 * AT236 +\n123.0469725298 * AT253 - 9.2854579989 * AT316 + 872.0182830582 * AT252 + 26.664395965 * (AVERAGE(AT5:AT6)*0.453592) +\n2599.7646012325 * AT236 * AT236- 0.1016237102 *  (AVERAGE(AT5:AT6)*0.453592) *  (AVERAGE(AT5:AT6)*0.453592) - 71.8618465276 * AT236 * AT253 -\n607.1294449572 * AT236 * AT252 + 25.6463076451 * AT236 * (AVERAGE(AT5:AT6)*0.453592) - 0.8399854508 * AT253 * (AVERAGE(AT5:AT6)*0.453592) +\n0.0967347393 * AT316 * (AVERAGE(AT5:AT6)*0.453592) - 5.2553838048 * AT252 * (AVERAGE(AT5:AT6)*0.453592)","v":930.71636813888495},{"$f":" -1619.2980797296 + 25.9248064834 * (AU251/1000) - 2657.6209162609 * AU236 +\n123.0469725298 * AU253 - 9.2854579989 * AU316 + 872.0182830582 * AU252 + 26.664395965 * (AVERAGE(AU5:AU6)*0.453592) +\n2599.7646012325 * AU236 * AU236- 0.1016237102 *  (AVERAGE(AU5:AU6)*0.453592) *  (AVERAGE(AU5:AU6)*0.453592) - 71.8618465276 * AU236 * AU253 -\n607.1294449572 * AU236 * AU252 + 25.6463076451 * AU236 * (AVERAGE(AU5:AU6)*0.453592) - 0.8399854508 * AU253 * (AVERAGE(AU5:AU6)*0.453592) +\n0.0967347393 * AU316 * (AVERAGE(AU5:AU6)*0.453592) - 5.2553838048 * AU252 * (AVERAGE(AU5:AU6)*0.453592)","v":962.53800879494202},{"$f":" -1619.2980797296 + 25.9248064834 * (AV251/1000) - 2657.6209162609 * AV236 +\n123.0469725298 * AV253 - 9.2854579989 * AV316 + 872.0182830582 * AV252 + 26.664395965 * (AVERAGE(AV5:AV6)*0.453592) +\n2599.7646012325 * AV236 * AV236- 0.1016237102 *  (AVERAGE(AV5:AV6)*0.453592) *  (AVERAGE(AV5:AV6)*0.453592) - 71.8618465276 * AV236 * AV253 -\n607.1294449572 * AV236 * AV252 + 25.6463076451 * AV236 * (AVERAGE(AV5:AV6)*0.453592) - 0.8399854508 * AV253 * (AVERAGE(AV5:AV6)*0.453592) +\n0.0967347393 * AV316 * (AVERAGE(AV5:AV6)*0.453592) - 5.2553838048 * AV252 * (AVERAGE(AV5:AV6)*0.453592)","v":947.39723970899036},{"$f":" -1619.2980797296 + 25.9248064834 * (AW251/1000) - 2657.6209162609 * AW236 +\n123.0469725298 * AW253 - 9.2854579989 * AW316 + 872.0182830582 * AW252 + 26.664395965 * (AVERAGE(AW5:AW6)*0.453592) +\n2599.7646012325 * AW236 * AW236- 0.1016237102 *  (AVERAGE(AW5:AW6)*0.453592) *  (AVERAGE(AW5:AW6)*0.453592) - 71.8618465276 * AW236 * AW253 -\n607.1294449572 * AW236 * AW252 + 25.6463076451 * AW236 * (AVERAGE(AW5:AW6)*0.453592) - 0.8399854508 * AW253 * (AVERAGE(AW5:AW6)*0.453592) +\n0.0967347393 * AW316 * (AVERAGE(AW5:AW6)*0.453592) - 5.2553838048 * AW252 * (AVERAGE(AW5:AW6)*0.453592)","v":877.37148556115062}]
["ADFI, g/d",{"$f":"B342/B344*1000","v":1359.5480024980595},1828.292464469157,2305.5922105887325,2729.415034120711,3011.820185199786,3094.1334754619566,null,{"$f":"I342/I344*1000","v":1346.0575235344752},1808.595311865093,2279.5083502226785,2700.3612615711422,2987.6315457739638,3083.8966901901435,null,{"$f":"P342/P344*1000","v":1332.8624926290099},1789.3098606339688,2253.8731748737682,2671.6841291230453,2963.4336848946218,3073.7357586116796,null,{"$f":"W342/W344*1000","v":1319.8294826778078},1770.2488848051646,2228.656365811431,2643.1093688582519,2938.4405548250534,3062.2457947679045,null,{"$f":"AD342/AD344*1000","v":1307.0315999535521},1751.5617488331043,2203.7708364174064,2614.9114448239866,2914.0973596218037,3050.9140731160091,null,{"$f":"AK342/AK344*1000","v":1294.4478777057961},1733.2355395153918,2179.5789117240365,2587.6226674441846,2889.870798769618,3039.4193568646365,null,{"$f":"AR342/AR344*1000","v":1281.8816657962336},1715.3369667994261,2155.7875605878421,2560.602748390314,2865.7517354761844,3027.7622838165016]
["GF, g/kg",{"$f":" -232.8670000513 - (102.0339177026 * (B251/1000)) + (1386.8135453223 * B236) - (3.1583174866 * B253) + (80.3303777865 * B316) - (115.1570451563 * B252) + (4.1836503117 * (AVERAGE(B5:B6)*0.453592)) + (2553.6417073224 * B236 * B236) + (228.757399518 * B252 * B252) + (12.736240264 *  (B251/1000) * B253) - (24.4502664605 *  (B251/1000) * B316) - (23.0415882284 * B236 * B253) + (101.5847297779 * B236 * B316) - (1559.9331198689 * B236 *B252) - (3.9239483753 * B236 * (AVERAGE(B5:B6)*0.453592)) - (0.1078600966 * B253 * (AVERAGE(B5:B6)*0.453592)) - (28.1879330488 * B316 * B252) - (0.1153929924 * B316 * (AVERAGE(B5:B6)*0.453592))","v":544.53845340080113},471.75579583355693,409.85407727163351,360.59074506150858,326.06282096567122,301.24235802326291,null,{"$f":" -232.8670000513 - (102.0339177026 * (I251/1000)) + (1386.8135453223 * I236) - (3.1583174866 * I253) + (80.3303777865 * I316) - (115.1570451563 * I252) + (4.1836503117 * (AVERAGE(I5:I6)*0.453592)) + (2553.6417073224 * I236 * I236) + (228.757399518 * I252 * I252) + (12.736240264 *  (I251/1000) * I253) - (24.4502664605 *  (I251/1000) * I316) - (23.0415882284 * I236 * I253) + (101.5847297779 * I236 * I316) - (1559.9331198689 * I236 *I252) - (3.9239483753 * I236 * (AVERAGE(I5:I6)*0.453592)) - (0.1078600966 * I253 * (AVERAGE(I5:I6)*0.453592)) - (28.1879330488 * I316 * I252) - (0.1153929924 * I316 * (AVERAGE(I5:I6)*0.453592))","v":548.13616804173489},475.74147464882753,413.49391362962149,363.13725449078942,326.79784463924585,299.30516388331944,null,{"$f":" -232.8670000513 - (102.0339177026 * (P251/1000)) + (1386.8135453223 * P236) - (3.1583174866 * P253) + (80.3303777865 * P316) - (115.1570451563 * P252) + (4.1836503117 * (AVERAGE(P5:P6)*0.453592)) + (2553.6417073224 * P236 * P236) + (228.757399518 * P252 * P252) + (12.736240264 *  (P251/1000) * P253) - (24.4502664605 *  (P251/1000) * P316) - (23.0415882284 * P236 * P253) + (101.5847297779 * P236 * P316) - (1559.9331198689 * P236 *P252) - (3.9239483753 * P236 * (AVERAGE(P5:P6)*0.453592)) - (0.1078600966 * P253 * (AVERAGE(P5:P6)*0.453592)) - (28.1879330488 * P316 * P252) - (0.1153929924 * P316 * (AVERAGE(P5:P6)*0.453592))","v":551.71776264187986},479.72040315004631,417.13996726322972,365.68103520491923,327.53100961701546,297.36203691638764,null,{"$f":" -232.8670000513 - (102.0339177026 * (W251/1000)) + (1386.8135453223 * W236) - (3.1583174866 * W253) + (80.3303777865 * W316) - (115.1570451563 * W252) + (4.1836503117 * (AVERAGE(W5:W6)*0.453592)) + (2553.6417073224 * W236 * W236) + (228.757399518 * W252 * W252) + (12.736240264 *  (W251/1000) * W253) - (24.4502664605 *  (W251/1000) * W316) - (23.0415882284 * W236 * W253) + (101.5847297779 * W236 * W316) - (1559.9331198689 * W236 *W252) - (3.9239483753 * W236 * (AVERAGE(W5:W6)*0.453592)) - (0.1078600966 * W253 * (AVERAGE(W5:W6)*0.453592)) - (28.1879330488 * W316 * W252) - (0.1153929924 * W316 * (AVERAGE(W5:W6)*0.453592))","v":555.31056526434872},483.73901499139083,420.79283801219384,368.26915264044965,328.31826271900195,295.44513442811183,null,{"$f":" -232.8670000513 - (102.0339177026 * (AD251/1000)) + (1386.8135453223 * AD236) - (3.1583174866 * AD253) + (80.3303777865 * AD316) - (115.1570451563 * AD252) + (4.1836503117 * (AVERAGE(AD5:AD6)*0.453592)) + (2553.6417073224 * AD236 * AD236) + (228.757399518 * AD252 * AD252) + (12.736240264 *  (AD251/1000) * AD253) - (24.4502664605 *  (AD251/1000) * AD316) - (23.0415882284 * AD236 * AD253) + (101.5847297779 * AD236 * AD316) - (1559.9331198689 * AD236 *AD252) - (3.9239483753 * AD236 * (AVERAGE(AD5:AD6)*0.453592)) - (0.1078600966 * AD253 * (AVERAGE(AD5:AD6)*0.453592)) - (28.1879330488 * AD316 * AD252) - (0.1153929924 * AD316 * (AVERAGE(AD5:AD6)*0.453592))","v":558.91156851249946},487.73504180043989,424.4759228850063,370.85566295655667,329.06636226940708,293.55327828828933,null,{"$f":" -232.8670000513 - (102.0339177026 * (AK251/1000)) + (1386.8135453223 * AK236) - (3.1583174866 * AK253) + (80.3303777865 * AK316) - (115.1570451563 * AK252) + (4.1836503117 * (AVERAGE(AK5:AK6)*0.453592)) + (2553.6417073224 * AK236 * AK236) + (228.757399518 * AK252 * AK252) + (12.736240264 *  (AK251/1000) * AK253) - (24.4502664605 *  (AK251/1000) * AK316) - (23.0415882284 * AK236 * AK253) + (101.5847297779 * AK236 * AK316) - (1559.9331198689 * AK236 *AK252) - (3.9239483753 * AK236 * (AVERAGE(AK5:AK6)*0.453592)) - (0.1078600966 * AK253 * (AVERAGE(AK5:AK6)*0.453592)) - (28.1879330488 * AK316 * AK252) - (0.1153929924 * AK316 * (AVERAGE(AK5:AK6)*0.453592))","v":562.47954762881193},491.72132395957289,428.09323903250197,373.36354614001243,329.82936941959872,291.66380583471283,null,{"$f":" -232.8670000513 - (102.0339177026 * (AR251/1000)) + (1386.8135453223 * AR236) - (3.1583174866 * AR253) + (80.3303777865 * AR316) - (115.1570451563 * AR252) + (4.1836503117 * (AVERAGE(AR5:AR6)*0.453592)) + (2553.6417073224 * AR236 * AR236) + (228.757399518 * AR252 * AR252) + (12.736240264 *  (AR251/1000) * AR253) - (24.4502664605 *  (AR251/1000) * AR316) - (23.0415882284 * AR236 * AR253) + (101.5847297779 * AR236 * AR316) - (1559.9331198689 * AR236 *AR252) - (3.9239483753 * AR236 * (AVERAGE(AR5:AR6)*0.453592)) - (0.1078600966 * AR253 * (AVERAGE(AR5:AR6)*0.453592)) - (28.1879330488 * AR316 * AR252) - (0.1153929924 * AR316 * (AVERAGE(AR5:AR6)*0.453592))","v":566.12740071945211},495.68312146732518,431.72916717503296,375.90290387684212,330.59292191323306,289.77555148590523]
["F/G",{"$f":"IF(B323=\"\",\"0\",1/B344*1000)","v":1.8364176005472321},2.1197407829045858,2.4398927702681932,2.7732270273032733,3.0668936649642822,3.319586284485188,null,{"$f":"IF(I323=\"\",\"0\",1/I344*1000)","v":1.8243641968976225},2.1019819656004519,2.4184152826387888,2.7537797007422267,3.0599957019419946,3.3410716575202093,null,{"$f":"IF(P323=\"\",\"0\",1/P344*1000)","v":1.812520944063025},2.0845475686120052,2.3972768818121075,2.7346236302345375,3.0531460247666558,3.3629040558434848,null,{"$f":"IF(W323=\"\",\"0\",1/W344*1000)","v":1.8007941187359948},2.0672304052584987,2.3764663028105573,2.7154052758155522,3.0458250836197647,3.3847231972043916,null,{"$f":"IF(AD323=\"\",\"0\",1/AD344*1000)","v":1.7891918083954208},2.050293528856507,2.3558462237466116,2.6964668465023371,3.0389007041117702,3.4065366458552435,null,{"$f":"IF(AK323=\"\",\"0\",1/AK344*1000)","v":1.7778424197210347},2.0336722270808321,2.3359397178521601,2.6783546769319493,3.0318706965353077,3.4286050582728267,null,{"$f":"IF(AR323=\"\",\"0\",1/AR344*1000)","v":1.7663868569674763},2.0174178960134692,2.3162669470385282,2.6602614390221158,3.0248681496649179,3.4509467581796329]
["Days on phase",{"$f":"(B6-B5)*0.453592/(B342/1000)","v":21.444223797755399},18.406470406661629,19.20054789166538,18.43491851613966,18.475451331583397,21.898926056424528,null,{"$f":"(I351-I5)*0.453592/(I342/1000)","v":21.444180657067676},{"$f":"(J351-I351)*0.453592/(J342/1000)","v":18.468861145667098},{"$f":"(K351-J351)*0.453592/(K342/1000)","v":19.241235076334746},{"$f":"(L351-K351)*0.453592/(L342/1000)","v":18.481784903982295},{"$f":"(M351-L351)*0.453592/(M342/1000)","v":18.543424990635529},{"$f":"(N351-M351)*0.453592/(N342/1000)","v":22.012833887749665},null,{"$f":"(P351-P5)*0.453592/(P342/1000)","v":21.444180512814388},{"$f":"(Q351-P351)*0.453592/(Q342/1000)","v":18.5304401206206},{"$f":"(R351-Q351)*0.453592/(R342/1000)","v":19.281577029672029},{"$f":"(S351-R351)*0.453592/(S342/1000)","v":18.528776430584667},{"$f":"(T351-S351)*0.453592/(T342/1000)","v":18.612534884371275},{"$f":"(U351-T351)*0.453592/(U342/1000)","v":22.129884537842266},null,{"$f":"(W351-W5)*0.453592/(W342/1000)","v":21.444180368200207},{"$f":"(X351-W351)*0.453592/(X342/1000)","v":18.592052665087088},{"$f":"(Y351-X351)*0.453592/(Y342/1000)","v":19.321625692823108},{"$f":"(Z351-Y351)*0.453592/(Z342/1000)","v":18.576031100282854},{"$f":"(AA351-Z351)*0.453592/(AA342/1000)","v":18.68232415303773},{"$f":"(AB351-AA351)*0.453592/(AB342/1000)","v":22.252182562678868},null,{"$f":"(AD351-AD5)*0.453592/(AD342/1000)","v":21.444180225508411},{"$f":"(AE351-AD351)*0.453592/(AE342/1000)","v":18.652744062285436},{"$f":"(AF351-AE351)*0.453592/(AF342/1000)","v":19.362078906597588},{"$f":"(AG351-AF351)*0.453592/(AG342/1000)","v":18.623185103685412},{"$f":"(AH351-AG351)*0.453592/(AH342/1000)","v":18.753188402720575},{"$f":"(AI351-AH351)*0.453592/(AI342/1000)","v":22.375681238741759},null,{"$f":"(AK351-AK5)*0.453592/(AK342/1000)","v":21.444180081008241},{"$f":"(AL351-AK351)*0.453592/(AL342/1000)","v":18.714085606058251},{"$f":"(AM351-AL351)*0.453592/(AM342/1000)","v":19.402521007844101},{"$f":"(AN351-AM351)*0.453592/(AN342/1000)","v":18.671284929069639},{"$f":"(AO351-AN351)*0.453592/(AO342/1000)","v":18.825090164827966},{"$f":"(AP351-AO351)*0.453592/(AP342/1000)","v":22.500778675399623},null,{"$f":"(AR351-AR5)*0.453592/(AR342/1000)","v":21.444179936906615},{"$f":"(AS351-AR351)*0.453592/(AS342/1000)","v":18.775142014533465},{"$f":"(AT351-AS351)*0.453592/(AT342/1000)","v":19.442688246434916},{"$f":"(AU351-AT351)*0.453592/(AU342/1000)","v":18.718975662448919},{"$f":"(AV351-AU351)*0.453592/(AV342/1000)","v":18.896995983012399},{"$f":"(AW351-AV351)*0.453592/(AW342/1000)","v":22.628473197452966}]
["Dressing, %",{"$f":" 51.6684755267 + 7.1030096064 * (B251/1000) + 54.0870565413 * B236 + 1.6439820046 * B253 + 0.4039153805 * B316 - 20.5375389219 * B252 + 0.2869358688 *(AVERAGE(B5:B6)*0.453592) - 0.016597667 * B316 * B316 - 0.1531408962 * (B251/1000) * (AVERAGE(B5:B6)*0.453592) - 4.8153797375 * B236 * B253 + 0.5304361357 * B236 * (AVERAGE(B5:B6)*0.453592) + 0.9830652207 * B253 * B252 - 0.0127129553 * B253 *(AVERAGE(B5:B6)*0.453592)","v":58.926946242378264},66.189194917789251,71.395755678401272,74.83136084114436,76.96558226351317,78.664524560378098,null,{"$f":" 51.6684755267 + 7.1030096064 * (I251/1000) + 54.0870565413 * I236 + 1.6439820046 * I253 + 0.4039153805 * I316 - 20.5375389219 * I252 + 0.2869358688 *(AVERAGE(I5:I6)*0.453592) - 0.016597667 * I316 * I316 - 0.1531408962 * (I251/1000) * (AVERAGE(I5:I6)*0.453592) - 4.8153797375 * I236 * I253 + 0.5304361357 * I236 * (AVERAGE(I5:I6)*0.453592) + 0.9830652207 * I253 * I252 - 0.0127129553 * I253 *(AVERAGE(I5:I6)*0.453592)","v":59.09139613138931},66.313420302963252,71.471346393132137,74.84636152949102,76.910352430709082,78.521562398728918,null,{"$f":" 51.6684755267 + 7.1030096064 * (P251/1000) + 54.0870565413 * P236 + 1.6439820046 * P253 + 0.4039153805 * P316 - 20.5375389219 * P252 + 0.2869358688 *(AVERAGE(P5:P6)*0.453592) - 0.016597667 * P316 * P316 - 0.1531408962 * (P251/1000) * (AVERAGE(P5:P6)*0.453592) - 4.8153797375 * P236 * P253 + 0.5304361357 * P236 * (AVERAGE(P5:P6)*0.453592) + 0.9830652207 * P253 * P252 - 0.0127129553 * P253 *(AVERAGE(P5:P6)*0.453592)","v":59.213405696969289},66.394267678839796,71.503229001911293,74.816417617610782,76.809839826814795,78.335444785364842,null,{"$f":" 51.6684755267 + 7.1030096064 * (W251/1000) + 54.0870565413 * W236 + 1.6439820046 * W253 + 0.4039153805 * W316 - 20.5375389219 * W252 + 0.2869358688 *(AVERAGE(W5:W6)*0.453592) - 0.016597667 * W316 * W316 - 0.1531408962 * (W251/1000) * (AVERAGE(W5:W6)*0.453592) - 4.8153797375 * W236 * W253 + 0.5304361357 * W236 * (AVERAGE(W5:W6)*0.453592) + 0.9830652207 * W253 * W252 - 0.0127129553 * W253 *(AVERAGE(W5:W6)*0.453592)","v":59.292236558404859},66.432213572130166,71.491030740073782,74.741625292437405,76.659885906926505,78.098286649163228,null,{"$f":" 51.6684755267 + 7.1030096064 * (AD251/1000) + 54.0870565413 * AD236 + 1.6439820046 * AD253 + 0.4039153805 * AD316 - 20.5375389219 * AD252 + 0.2869358688 *(AVERAGE(AD5:AD6)*0.453592) - 0.016597667 * AD316 * AD316 - 0.1531408962 * (AD251/1000) * (AVERAGE(AD5:AD6)*0.453592) - 4.8153797375 * AD236 * AD253 + 0.5304361357 * AD236 * (AVERAGE(AD5:AD6)*0.453592) + 0.9830652207 * AD253 * AD252 - 0.0127129553 * AD253 *(AVERAGE(AD5:AD6)*0.453592)","v":59.327622154748106},66.425476727488331,71.434541791076924,74.622045819313882,76.469002554340079,77.821008713907844,null,{"$f":" 51.6684755267 + 7.1030096064 * (AK251/1000) + 54.0870565413 * AK236 + 1.6439820046 * AK253 + 0.4039153805 * AK316 - 20.5375389219 * AK252 + 0.2869358688 *(AVERAGE(AK5:AK6)*0.453592) - 0.016597667 * AK316 * AK316 - 0.1531408962 * (AK251/1000) * (AVERAGE(AK5:AK6)*0.453592) - 4.8153797375 * AK236 * AK253 + 0.5304361357 * AK236 * (AVERAGE(AK5:AK6)*0.453592) + 0.9830652207 * AK253 * AK252 - 0.0127129553 * AK253 *(AVERAGE(AK5:AK6)*0.453592)","v":59.318356467807462},66.374582841623081,71.333617885657461,74.459439202728745,76.23542246748292,77.500468840783455,null,{"$f":" 51.6684755267 + 7.1030096064 * (AR251/1000) + 54.0870565413 * AR236 + 1.6439820046 * AR253 + 0.4039153805 * AR316 - 20.5375389219 * AR252 + 0.2869358688 *(AVERAGE(AR5:AR6)*0.453592) - 0.016597667 * AR316 * AR316 - 0.1531408962 * (AR251/1000) * (AVERAGE(AR5:AR6)*0.453592) - 4.8153797375 * AR236 * AR253 + 0.5304361357 * AR236 * (AVERAGE(AR5:AR6)*0.453592) + 0.9830652207 * AR253 * AR252 - 0.0127129553 * AR253 *(AVERAGE(AR5:AR6)*0.453592)","v":59.265466489103638},66.279535537836878,71.188164550840597,74.254493489462334,75.958637070765008,77.136700427087376]
["Backfat, mm",{"$f":" 41.4410513954 + (14.8656283053 * B236) - (0.6326892081 * B253) - (12.1380129342 * B252) -\n(0.0133880688 * (B253^2)) + (1.1112817574 * (B252^2))","v":9.5560371255009784},10.757396605242121,12.259709285644082,14.049104759357949,15.652515990358797,16.585997021003028,null,{"$f":" 41.4410513954 + (14.8656283053 * I236) - (0.6326892081 * I253) - (12.1380129342 * I252) -\n(0.0133880688 * (I253^2)) + (1.1112817574 * (I252^2))","v":9.0933048618120118},10.311012862634842,11.823664253738526,13.630979852848109,15.248496810138954,16.184725482407622,null,{"$f":" 41.4410513954 + (14.8656283053 * P236) - (0.6326892081 * P253) - (12.1380129342 * P252) -\n(0.0133880688 * (P253^2)) + (1.1112817574 * (P252^2))","v":8.6242264868095067},9.8574304209795365,11.384026026423545,13.204884468312088,14.837241706198098,15.780590450602279,null,{"$f":" 41.4410513954 + (14.8656283053 * W236) - (0.6326892081 * W253) - (12.1380129342 * W252) -\n(0.0133880688 * (W253^2)) + (1.1112817574 * (W252^2))","v":8.1510930677487536},9.3991090791810272,10.939436909321465,12.771966731073549,14.411122606313359,15.362537127235594,null,{"$f":" 41.4410513954 + (14.8656283053 * AD236) - (0.6326892081 * AD253) - (12.1380129342 * AD252) -\n(0.0133880688 * (AD253^2)) + (1.1112817574 * (AD252^2))","v":7.6700654777157986},8.9364822664303851,10.487077634288781,12.33234149436136,13.985626544785905,14.946586295660897,null,{"$f":" 41.4410513954 + (14.8656283053 * AK236) - (0.6326892081 * AK253) - (12.1380129342 * AK252) -\n(0.0133880688 * (AK253^2)) + (1.1112817574 * (AK252^2))","v":7.1853653926390351},8.4684247652800657,10.032696964274615,11.887990957422288,13.558286189646102,14.526247445616104,null,{"$f":" 41.4410513954 + (14.8656283053 * AR236) - (0.6326892081 * AR253) - (12.1380129342 * AR252) -\n(0.0133880688 * (AR253^2)) + (1.1112817574 * (AR252^2))","v":6.6969433924295458},7.9920964947221336,9.5645988475590684,11.44361850021634,13.126486599606135,14.101446778165059]
["Loin depth, mm",{"$f":" -16.7992454106 + 17.2658536059 * (B251/1000) - 106.6634904715 * B236 + 0.1550376119 * B253 - 0.0727312562 * B316 + 48.6541457906 * B252 - 0.1535643762 * B253 * B253 - 0.0358142801 * B316 * B316 - 5.4618633046 * B252 * B252 + 4.2267870055 * B236 * B253 - 2.0313848595 * B236 * B316 + 0.1484978883 * B253 * B316","v":51.865570489059841},57.191564116130472,59.985859623399051,60.902879894464405,60.770621726469166,60.466263275736296,null,{"$f":" -16.7992454106 + 17.2658536059 * (I251/1000) - 106.6634904715 * I236 + 0.1550376119 * I253 - 0.0727312562 * I316 + 48.6541457906 * I252 - 0.1535643762 * I253 * I253 - 0.0358142801 * I316 * I316 - 5.4618633046 * I252 * I252 + 4.2267870055 * I236 * I253 - 2.0313848595 * I236 * I316 + 0.1484978883 * I253 * I316","v":51.783866857205012},57.125618094797098,59.934030001518721,60.850116086046441,60.707554439258523,60.400406806900058,null,{"$f":" -16.7992454106 + 17.2658536059 * (P251/1000) - 106.6634904715 * P236 + 0.1550376119 * P253 - 0.0727312562 * P316 + 48.6541457906 * P252 - 0.1535643762 * P253 * P253 - 0.0358142801 * P316 * P316 - 5.4618633046 * P252 * P252 + 4.2267870055 * P236 * P253 - 2.0313848595 * P236 * P316 + 0.1484978883 * P253 * P316","v":51.701273375053937},57.054991340604431,59.876062262285146,60.791961352377797,60.638737841734908,60.326608398747922,null,{"$f":" -16.7992454106 + 17.2658536059 * (W251/1000) - 106.6634904715 * W236 + 0.1550376119 * W253 - 0.0727312562 * W316 + 48.6541457906 * W252 - 0.1535643762 * W253 * W253 - 0.0358142801 * W316 * W316 - 5.4618633046 * W252 * W252 + 4.2267870055 * W236 * W253 - 2.0313848595 * W236 * W316 + 0.1484978883 * W253 * W316","v":51.615797751803427},56.981560306091339,59.811755077100386,60.729286038228253,60.570057420500376,60.253330203064678,null,{"$f":" -16.7992454106 + 17.2658536059 * (AD251/1000) - 106.6634904715 * AD236 + 0.1550376119 * AD253 - 0.0727312562 * AD316 + 48.6541457906 * AD252 - 0.1535643762 * AD253 * AD253 - 0.0358142801 * AD316 * AD316 - 5.4618633046 * AD252 * AD252 + 4.2267870055 * AD236 * AD253 - 2.0313848595 * AD236 * AD316 + 0.1484978883 * AD253 * AD316","v":51.528196427835837},56.899524710044396,59.743742974388688,60.661311299934667,60.494952417231694,60.173101180018151,null,{"$f":" -16.7992454106 + 17.2658536059 * (AK251/1000) - 106.6634904715 * AK236 + 0.1550376119 * AK253 - 0.0727312562 * AK316 + 48.6541457906 * AK252 - 0.1535643762 * AK253 * AK253 - 0.0358142801 * AK316 * AK316 - 5.4618633046 * AK252 * AK252 + 4.2267870055 * AK236 * AK253 - 2.0313848595 * AK236 * AK316 + 0.1484978883 * AK253 * AK316","v":51.430326388055704},56.811336359911465,59.665516320557913,60.588758520318819,60.413356563780425,60.086775487926786,null,{"$f":" -16.7992454106 + 17.2658536059 * (AR251/1000) - 106.6634904715 * AR236 + 0.1550376119 * AR253 - 0.0727312562 * AR316 + 48.6541457906 * AR252 - 0.1535643762 * AR253 * AR253 - 0.0358142801 * AR316 * AR316 - 5.4618633046 * AR252 * AR252 + 4.2267870055 * AR236 * AR253 - 2.0313848595 * AR236 * AR316 + 0.1484978883 * AR253 * AR316","v":51.333048683753852},56.717888089032421,59.587513468898166,60.509888062978689,60.325688480526559,59.994377522375125]
["Lean, %",{"$f":" 49.3215904687 - 4.5564383267 * (B251/1000) + 31.3355706686 * B236 + 0.0864922401 * B253 - 16.201377828 * B236 * B236","v":53.767985207144591},54.221957863966054,54.11985087991409,53.644786108848308,53.100859923606755,52.737723960313936,null,{"$f":" 49.3215904687 - 4.5564383267 * (I251/1000) + 31.3355706686 * I236 + 0.0864922401 * I253 - 16.201377828 * I236 * I236","v":53.805166262959759},54.258441790395381,54.15629245890738,53.680605208877083,53.13647582019366,52.773525168130838,null,{"$f":" 49.3215904687 - 4.5564383267 * (P251/1000) + 31.3355706686 * P236 + 0.0864922401 * P253 - 16.201377828 * P236 * P236","v":53.841518926567701},54.294770838288713,54.192099907268307,53.71678061833218,53.172389210444507,52.809234942042359,null,{"$f":" 49.3215904687 - 4.5564383267 * (W251/1000) + 31.3355706686 * W236 + 0.0864922401 * W253 - 16.201377828 * W236 * W236","v":53.876986269149981},54.329875823844006,54.227702421462745,53.752001372059084,53.207999642879145,52.845225395443002,null,{"$f":" 49.3215904687 - 4.5564383267 * (AD251/1000) + 31.3355706686 * AD236 + 0.0864922401 * AD253 - 16.201377828 * AD236 * AD236","v":53.912202855978791},54.365427030546286,54.262941392447466,53.787562202865587,53.24400192484616,52.880354623425831,null,{"$f":" 49.3215904687 - 4.5564383267 * (AK251/1000) + 31.3355706686 * AK236 + 0.0864922401 * AK253 - 16.201377828 * AK236 * AK236","v":53.947911308244883},54.401073506997619,54.299168914933411,53.82444110636915,53.27925127638818,52.915437078418357,null,{"$f":" 49.3215904687 - 4.5564383267 * (AR251/1000) + 31.3355706686 * AR236 + 0.0864922401 * AR253 - 16.201377828 * AR236 * AR236","v":53.982152599471874},54.437287075775657,54.335745198265236,53.859914486004556,53.314497122032883,52.950518183166608]
["Final BW",{"$f":"B5+(B342*0.00220462*B346)","v":84.999929826400006},119.99992982640001,159.99991980159999,199.99991980160002,239.99991980159999,284.9999097768,null,{"$f":"$B$351-I268","v":84.881580127145668},{"$f":"$C$351-J268","v":119.91537195269322},{"$f":"$D$351-K268","v":159.8986012971061},{"$f":"$E$351-L268","v":199.85360728427887},{"$f":"$F$351-M268","v":239.76811575666045},{"$f":"$G$351-N268","v":284.5626061981593},null,{"$f":"$B$351-P268","v":84.765332013975552},{"$f":"$C$351-Q268","v":119.8319670551648},{"$f":"$D$351-R268","v":159.79776081036005},{"$f":"$E$351-S268","v":199.70658229085751},{"$f":"$F$351-T268","v":239.53451598934654},{"$f":"$G$351-U268","v":284.12742601262261},null,{"$f":"$B$351-W268","v":84.649568215378878},{"$f":"$C$351-X268","v":119.74959113349549},{"$f":"$D$351-Y268","v":159.69710239526202},{"$f":"$E$351-Z268","v":199.55992251152736},{"$f":"$F$351-AA268","v":239.29531134514318},{"$f":"$G$351-AB268","v":283.67907401338334},null,{"$f":"$B$351-AD268","v":84.536096465166835},{"$f":"$C$351-AE268","v":119.66679265236979},{"$f":"$D$351-AF268","v":159.5974162049551},{"$f":"$E$351-AG268","v":199.41276040880135},{"$f":"$F$351-AH268","v":239.05856883652001},{"$f":"$G$351-AI268","v":283.23878039563988},null,{"$f":"$B$351-AK268","v":84.421941546879992},{"$f":"$C$351-AL268","v":119.58445030279348},{"$f":"$D$351-AM268","v":159.49647340382154},{"$f":"$E$351-AN268","v":199.26519952236791},{"$f":"$F$351-AO268","v":238.82366439345145},{"$f":"$G$351-AP268","v":282.79861142243789},null,{"$f":"$B$351-AR268","v":84.308850526242281},{"$f":"$C$351-AS268","v":119.50307684235254},{"$f":"$D$351-AT268","v":159.39714065207249},{"$f":"$E$351-AU268","v":199.11945841961372},{"$f":"$F$351-AV268","v":238.58876527047931},{"$f":"$G$351-AW268","v":282.35844627285587}]
["Withdrawal Period",0,0,0,0,0,0,null,0,0,0,0,0,0,null,0,0,0,0,0,0,null,0,0,0,0,0,0,null,0,0,0,0,0,0,null,0,0,0,0,0,0,null,0,0,0,0,0,0]
["Soto Model for Yield",{"$f":" 0.03492* B352 - 0.05092 * B316- 0.06897 * B316 - 0.00289 * (B316 * B352) +76.0769-(75.02-'DDGS Calculator'!$G$9)","v":75.029451185589821},{"$f":" 0.03492* C352 - 0.05092 * B316- 0.06897 * C316 - 0.00289 * (C316 * C352) +76.0769-(75.02-'DDGS Calculator'!$G$9)","v":75.024490114943532},{"$f":" 0.03492* D352 - 0.05092 * C316- 0.06897 * D316 - 0.00289 * (D316 * D352) +76.0769-(75.02-'DDGS Calculator'!$G$9)","v":75.016402824315023},{"$f":" 0.03492* E352 - 0.05092 * D316- 0.06897 * E316 - 0.00289 * (E316 * E352) +76.0769-(75.02-'DDGS Calculator'!$G$9)","v":75.009464091992726},{"$f":" 0.03492* F352 - 0.05092 * E316- 0.06897 * F316 - 0.00289 * (F316 * F352) + 76.0769-(75.02-'DDGS Calculator'!$G$9)","v":75.003950097444132},{"$f":"0.03492*G352-0.05092*F316-0.06897*G316-0.00289*(G316*G352)+76.0769-(75.02-'DDGS Calculator'!$G$9)","v":75.000603515658099},null,{"$f":" 0.03492* I352 - 0.05092 * I316- 0.06897 * I316 - 0.00289 * (I316 * I352) +76.0769-(75.02-'DDGS Calculator'!$G$9)","v":74.890728602114692},{"$f":" 0.03492* J352 - 0.05092 * I316- 0.06897 * J316 - 0.00289 * (J316 * J352) +76.0769-(75.02-'DDGS Calculator'!$G$9)","v":74.885866467858719},{"$f":" 0.03492* K352 - 0.05092 * J316- 0.06897 * K316 - 0.00289 * (K316 * K352) +76.0769-(75.02-'DDGS Calculator'!$G$9)","v":74.877801308605058},{"$f":" 0.03492* L352 - 0.05092 * K316- 0.06897 * L316 - 0.00289 * (L316 * L352) +76.0769-(75.02-'DDGS Calculator'!$G$9)","v":74.870867835662068},{"$f":" 0.03492* M352 - 0.05092 * L316- 0.06897 * M316 - 0.00289 * (M316 * M352) + 76.0769-(75.02-'DDGS Calculator'!$G$9)","v":74.865385703798339},{"$f":"0.03492*N352-0.05092*M316-0.06897*N316-0.00289*(N316*N352)+76.0769-(75.02-'DDGS Calculator'!$G$9)","v":74.8620583050634},null,{"$f":" 0.03492* P352 - 0.05092 * P316- 0.06897 * P316 - 0.00289 * (P316 * P352) +76.0769-(75.02-'DDGS Calculator'!$G$9)","v":74.752116362414753},{"$f":" 0.03492* Q352 - 0.05092 * P316- 0.06897 * Q316 - 0.00289 * (Q316 * Q352) +76.0769-(75.02-'DDGS Calculator'!$G$9)","v":74.747279186489052},{"$f":" 0.03492* R352 - 0.05092 * Q316- 0.06897 * R316 - 0.00289 * (R316 * R352) +76.0769-(75.02-'DDGS Calculator'!$G$9)","v":74.739258120126024},{"$f":" 0.03492* S352 - 0.05092 * R316- 0.06897 * S316 - 0.00289 * (S316 * S352) +76.0769-(75.02-'DDGS Calculator'!$G$9)","v":74.732336479325696},{"$f":" 0.03492* T352 - 0.05092 * S316- 0.06897 * T316 - 0.00289 * (T316 * T352) + 76.0769-(75.02-'DDGS Calculator'!$G$9)","v":74.726832944937556},{"$f":"0.03492*U352-0.05092*T316-0.06897*U316-0.00289*(U316*U352)+76.0769-(75.02-'DDGS Calculator'!$G$9)","v":74.723500487089296},null,{"$f":" 0.03492* W352 - 0.05092 * W316- 0.06897 * W316 - 0.00289 * (W316 * W352) +76.0769-(75.02-'DDGS Calculator'!$G$9)","v":74.613465520002734},{"$f":" 0.03492* X352 - 0.05092 * W316- 0.06897 * X316 - 0.00289 * (X316 * X352) +76.0769-(75.02-'DDGS Calculator'!$G$9)","v":74.60866859279038},{"$f":" 0.03492* Y352 - 0.05092 * X316- 0.06897 * Y316 - 0.00289 * (Y316 * Y352) +76.0769-(75.02-'DDGS Calculator'!$G$9)","v":74.600670232630335},{"$f":" 0.03492* Z352 - 0.05092 * Y316- 0.06897 * Z316 - 0.00289 * (Z316 * Z352) +76.0769-(75.02-'DDGS Calculator'!$G$9)","v":74.59378877985958},{"$f":" 0.03492* AA352 - 0.05092 * Z316- 0.06897 * AA316 - 0.00289 * (AA316 * AA352) + 76.0769-(75.02-'DDGS Calculator'!$G$9)","v":74.588364202881948},{"$f":"0.03492*AB352-0.05092*AA316-0.06897*AB316-0.00289*(AB316*AB352)+76.0769-(75.02-'DDGS Calculator'!$G$9)","v":74.585305209808013},null,{"$f":" 0.03492* AD352 - 0.05092 * AD316- 0.06897 * AD316 - 0.00289 * (AD316 * AD352) +76.0769-(75.02-'DDGS Calculator'!$G$9)","v":74.474881221970179},{"$f":" 0.03492* AE352 - 0.05092 * AD316- 0.06897 * AE316 - 0.00289 * (AE316 * AE352) +76.0769-(75.02-'DDGS Calculator'!$G$9)","v":74.470068348660988},{"$f":" 0.03492* AF352 - 0.05092 * AE316- 0.06897 * AF316 - 0.00289 * (AF316 * AF352) +76.0769-(75.02-'DDGS Calculator'!$G$9)","v":74.462113927237837},{"$f":" 0.03492* AG352 - 0.05092 * AF316- 0.06897 * AG316 - 0.00289 * (AG316 * AG352) +76.0769-(75.02-'DDGS Calculator'!$G$9)","v":74.455296856199681},{"$f":" 0.03492* AH352 - 0.05092 * AG316- 0.06897 * AH316 - 0.00289 * (AH316 * AH352) + 76.0769-(75.02-'DDGS Calculator'!$G$9)","v":74.45067227036472},{"$f":"0.03492*AI352-0.05092*AH316-0.06897*AI316-0.00289*(AI316*AI352)+76.0769-(75.02-'DDGS Calculator'!$G$9)","v":74.448403293588015},null,{"$f":" 0.03492* AK352 - 0.05092 * AK316- 0.06897 * AK316 - 0.00289 * (AK316 * AK352) +76.0769-(75.02-'DDGS Calculator'!$G$9)","v":74.336344508857024},{"$f":" 0.03492* AL352 - 0.05092 * AK316- 0.06897 * AL316 - 0.00289 * (AL316 * AL352) +76.0769-(75.02-'DDGS Calculator'!$G$9)","v":74.331544497285776},{"$f":" 0.03492* AM352 - 0.05092 * AL316- 0.06897 * AM316 - 0.00289 * (AM316 * AM352) +76.0769-(75.02-'DDGS Calculator'!$G$9)","v":74.323580746605685},{"$f":" 0.03492* AN352 - 0.05092 * AM316- 0.06897 * AN316 - 0.00289 * (AN316 * AN352) +76.0769-(75.02-'DDGS Calculator'!$G$9)","v":74.317462176703145},{"$f":" 0.03492* AO352 - 0.05092 * AN316- 0.06897 * AO316 - 0.00289 * (AO316 * AO352) + 76.0769-(75.02-'DDGS Calculator'!$G$9)","v":74.313683538804284},{"$f":"0.03492*AP352-0.05092*AO316-0.06897*AP316-0.00289*(AP316*AP352)+76.0769-(75.02-'DDGS Calculator'!$G$9)","v":74.311656378206123},null,{"$f":" 0.03492* AR352 - 0.05092 * AR316- 0.06897 * AR316 - 0.00289 * (AR316 * AR352) +76.0769-(75.02-'DDGS Calculator'!$G$9)","v":74.197896015976724},{"$f":" 0.03492* AS352 - 0.05092 * AR316- 0.06897 * AS316 - 0.00289 * (AS316 * AS352) +76.0769-(75.02-'DDGS Calculator'!$G$9)","v":74.193065723946503},{"$f":" 0.03492* AT352 - 0.05092 * AS316- 0.06897 * AT316 - 0.00289 * (AT316 * AT352) +76.0769-(75.02-'DDGS Calculator'!$G$9)","v":74.185182983890797},{"$f":" 0.03492* AU352 - 0.05092 * AT316- 0.06897 * AU316 - 0.00289 * (AU316 * AU352) +76.0769-(75.02-'DDGS Calculator'!$G$9)","v":74.180042129510426},{"$f":" 0.03492* AV352 - 0.05092 * AU316- 0.06897 * AV316 - 0.00289 * (AV316 * AV352) + 76.0769-(75.02-'DDGS Calculator'!$G$9)","v":74.176930322064322},{"$f":"0.03492*AW352-0.05092*AV316-0.06897*AW316-0.00289*(AW316*AW352)+76.0769-(75.02-'DDGS Calculator'!$G$9)","v":74.17490964293988}]

{"sheet":"GF diets No L-Val + WD","index":9,"n_rows":353,"n_cols":50,"rows_kept":353,"cut":false,"hidden":true,"merged":[[3,36,3,40],[3,43,3,47],[3,2,3,5],[3,8,3,12],[3,15,3,19],[3,22,3,26],[3,29,3,33]]}
["Corn",null,null,null,null,null,null,null,{"$f":"B7-I7","v":60.619646436457288},{"$f":"C7-J7","v":61.851981937445316},62.863452286277152,63.067460779901467,63.16441076963747,0,null,{"$f":"I7-P7","v":62.229683761819842},{"$f":"J7-Q7","v":62.962401149761718},63.72852016505135,63.368787214147687,64.183592817687668,0,null,{"$f":"P7-W7","v":62.193615479173559},{"$f":"Q7-X7","v":62.918400970577977},62.582557298557958,63.673217859722172,64.267776747386279,0,null,{"$f":"W7-AD7","v":62.127409463226286},{"$f":"X7-AE7","v":61.846921659380996},62.844651879662251,63.86146076337559,65.087574645041514,0,null,{"$f":"AD7-AK7","v":66.503151968323778},{"$f":"AE7-AL7","v":62.139749705692566},63.198988139651874,64.438244419837702,65.552479997885939,0,null,{"$f":"AK7-AR7","v":60.462893817680651},{"$f":"AL7-AS7","v":62.167611431870682},63.439525129767162,65.200341365679378,65.548992799088865,0]
["SBM",null,null,null,null,null,null,null,{"$f":"B8-I8","v":39.132228852415665},37.938018062554647,36.956158218368955,36.337021253876856,36.373418218717916,0,null,{"$f":"I8-P8","v":37.593115207398796},36.871452500527312,36.102257806047646,36.460672525844984,35.817524173783795,0,null,{"$f":"P8-W8","v":37.596384520826405},36.871599029421986,37.217748863521365,36.174599768070038,35.742223252613712,0,null,{"$f":"W8-AD8","v":37.682283786018843},37.96425214054284,36.954194179633305,36.178791682824567,36.078265071860187,0,null,{"$f":"AD8-AK8","v":33.311166318662686},37.650250294307625,36.811011860348344,36.445529547036358,36.18037607694032,0,null,{"$f":"AK8-AR8","v":39.331295415931208},{"$f":"AL8-AS8","v":37.642036311898437},{"$f":"AM8-AT8","v":36.596279493980774},36.543469687386505,36.17548979757953,0]
[null,"Diet 1","Diet 2","Diet 3","Diet 4","Diet 5","Diet 6",null,"Diet 1","Diet 2","Diet 3","Diet 4","Diet 5","Diet 6",null,"Diet 1","Diet 2","Diet 3","Diet 4","Diet 5","Diet 6",null,"Diet 1","Diet 2","Diet 3","Diet 4","Diet 5","Diet 6",null,"Diet 1","Diet 2","Diet 3","Diet 4","Diet 5","Diet 6",null,"Diet 1","Diet 2","Diet 3","Diet 4","Diet 5","Diet 6",null,"Diet 1","Diet 2","Diet 3","Diet 4","Diet 5","Diet 6"]
[null,null,null,null,null,null,null,null,"Weight Range",null,null,null,null,null,null,"Weight Range",null,null,null,null,null,null,"Weight Range",null,null,null,null,null,null,"Weight Range",null,null,null,null,null,null,"Weight Range",null,null,null,null,null,null,"Weight Range"]
[null,50,85,120,160,200,240,null,50,85,120,160,200,240,null,50,85,120,160,200,240,null,50,85,120,160,200,240,null,50,85,120,160,200,240,null,50,85,120,160,200,240,null,50,85,120,160,200,240]
["Ingredient",85,120,160,200,240,285,null,85,120,160,200,240,285,null,85,120,160,200,240,285,null,85,120,160,200,240,285,null,85,120,160,200,240,285,null,85,120,160,200,240,285,null,85,120,160,200,240,285]
["Corn",{"$f":"IF(B5=\"\",\"\",((((B236-B297)*2000)+((SUM(B9:B229)-2000)*((IF($A8=Nutrients!$B$79,Nutrients!$DA$79,(IF($A8=Nutrients!$B$77,Nutrients!$DA$77,Nutrients!$DA$78)))))))/((IF($A7=Nutrients!$B$8,Nutrients!$DA$8,Nutrients!$DA$9))-((IF($A8=Nutrients!$B$79,Nutrients!$DA$79,(IF($A8=Nutrients!$B$77,Nutrients!$DA$77,Nutrients!$DA$78))))))))","v":1323.1904784197848},{"$f":"IF(C5=\"\",\"\",((((C236-C297)*2000)+((SUM(C9:C229)-2000)*((IF($A8=Nutrients!$B$79,Nutrients!$DA$79,(IF($A8=Nutrients!$B$77,Nutrients!$DA$77,Nutrients!$DA$78)))))))/((IF($A7=Nutrients!$B$8,Nutrients!$DA$8,Nutrients!$DA$9))-((IF($A8=Nutrients!$B$79,Nutrients!$DA$79,(IF($A8=Nutrients!$B$77,Nutrients!$DA$77,Nutrients!$DA$78))))))))","v":1438.5863426264264},{"$f":"IF(D5=\"\",\"\",((((D236-D297)*2000)+((SUM(D9:D229)-2000)*((IF($A8=Nutrients!$B$79,Nutrients!$DA$79,(IF($A8=Nutrients!$B$77,Nutrients!$DA$77,Nutrients!$DA$78)))))))/((IF($A7=Nutrients!$B$8,Nutrients!$DA$8,Nutrients!$DA$9))-((IF($A8=Nutrients!$B$79,Nutrients!$DA$79,(IF($A8=Nutrients!$B$77,Nutrients!$DA$77,Nutrients!$DA$78))))))))","v":1538.5624561307404},{"$f":"IF(E5=\"\",\"\",((((E236-E297)*2000)+((SUM(E9:E229)-2000)*((IF($A8=Nutrients!$B$79,Nutrients!$DA$79,(IF($A8=Nutrients!$B$77,Nutrients!$DA$77,Nutrients!$DA$78)))))))/((IF($A7=Nutrients!$B$8,Nutrients!$DA$8,Nutrients!$DA$9))-((IF($A8=Nutrients!$B$79,Nutrients!$DA$79,(IF($A8=Nutrients!$B$77,Nutrients!$DA$77,Nutrients!$DA$78))))))))","v":1622.5648380110952},{"$f":"IF(F5=\"\",\"\",((((F236-F297)*2000)+((SUM(F9:F229)-2000)*((IF($A8=Nutrients!$B$79,Nutrients!$DA$79,(IF($A8=Nutrients!$B$77,Nutrients!$DA$77,Nutrients!$DA$78)))))))/((IF($A7=Nutrients!$B$8,Nutrients!$DA$8,Nutrients!$DA$9))-((IF($A8=Nutrients!$B$79,Nutrients!$DA$79,(IF($A8=Nutrients!$B$77,Nutrients!$DA$77,Nutrients!$DA$78))))))))","v":1679.6960832539069},{"$f":"IF(G5=\"\",\"\",((((G236-G297)*2000)+((SUM(G9:G229)-2000)*((IF($A8=Nutrients!$B$79,Nutrients!$DA$79,(IF($A8=Nutrients!$B$77,Nutrients!$DA$77,Nutrients!$DA$78)))))))/((IF($A7=Nutrients!$B$8,Nutrients!$DA$8,Nutrients!$DA$9))-((IF($A8=Nutrients!$B$79,Nutrients!$DA$79,(IF($A8=Nutrients!$B$77,Nutrients!$DA$77,Nutrients!$DA$78))))))))","v":1707.9835561942639},null,{"$f":"IF(I5=\"\",\"\",((((I236-I297)*2000)+((SUM(I9:I229)-2000)*((IF($A8=Nutrients!$B$79,Nutrients!$DA$79,(IF($A8=Nutrients!$B$77,Nutrients!$DA$77,Nutrients!$DA$78)))))))/((IF($A7=Nutrients!$B$8,Nutrients!$DA$8,Nutrients!$DA$9))-((IF($A8=Nutrients!$B$79,Nutrients!$DA$79,(IF($A8=Nutrients!$B$77,Nutrients!$DA$77,Nutrients!$DA$78))))))))","v":1262.5708319833275},{"$f":"IF(J5=\"\",\"\",((((J236-J297)*2000)+((SUM(J9:J229)-2000)*((IF($A8=Nutrients!$B$79,Nutrients!$DA$79,(IF($A8=Nutrients!$B$77,Nutrients!$DA$77,Nutrients!$DA$78)))))))/((IF($A7=Nutrients!$B$8,Nutrients!$DA$8,Nutrients!$DA$9))-((IF($A8=Nutrients!$B$79,Nutrients!$DA$79,(IF($A8=Nutrients!$B$77,Nutrients!$DA$77,Nutrients!$DA$78))))))))","v":1376.734360688981},{"$f":"IF(K5=\"\",\"\",((((K236-K297)*2000)+((SUM(K9:K229)-2000)*((IF($A8=Nutrients!$B$79,Nutrients!$DA$79,(IF($A8=Nutrients!$B$77,Nutrients!$DA$77,Nutrients!$DA$78)))))))/((IF($A7=Nutrients!$B$8,Nutrients!$DA$8,Nutrients!$DA$9))-((IF($A8=Nutrients!$B$79,Nutrients!$DA$79,(IF($A8=Nutrients!$B$77,Nutrients!$DA$77,Nutrients!$DA$78))))))))","v":1475.6990038444633},{"$f":"IF(L5=\"\",\"\",((((L236-L297)*2000)+((SUM(L9:L229)-2000)*((IF($A8=Nutrients!$B$79,Nutrients!$DA$79,(IF($A8=Nutrients!$B$77,Nutrients!$DA$77,Nutrients!$DA$78)))))))/((IF($A7=Nutrients!$B$8,Nutrients!$DA$8,Nutrients!$DA$9))-((IF($A8=Nutrients!$B$79,Nutrients!$DA$79,(IF($A8=Nutrients!$B$77,Nutrients!$DA$77,Nutrients!$DA$78))))))))","v":1559.4973772311937},{"$f":"IF(M5=\"\",\"\",((((M236-M297)*2000)+((SUM(M9:M229)-2000)*((IF($A8=Nutrients!$B$79,Nutrients!$DA$79,(IF($A8=Nutrients!$B$77,Nutrients!$DA$77,Nutrients!$DA$78)))))))/((IF($A7=Nutrients!$B$8,Nutrients!$DA$8,Nutrients!$DA$9))-((IF($A8=Nutrients!$B$79,Nutrients!$DA$79,(IF($A8=Nutrients!$B$77,Nutrients!$DA$77,Nutrients!$DA$78))))))))","v":1616.5316724842694},{"$f":"IF(N5=\"\",\"\",((((N236-N297)*2000)+((SUM(N9:N229)-2000)*((IF($A8=Nutrients!$B$79,Nutrients!$DA$79,(IF($A8=Nutrients!$B$77,Nutrients!$DA$77,Nutrients!$DA$78)))))))/((IF($A7=Nutrients!$B$8,Nutrients!$DA$8,Nutrients!$DA$9))-((IF($A8=Nutrients!$B$79,Nutrients!$DA$79,(IF($A8=Nutrients!$B$77,Nutrients!$DA$77,Nutrients!$DA$78))))))))","v":1707.9835561942639},null,{"$f":"IF(P5=\"\",\"\",((((P236-P297)*2000)+((SUM(P9:P229)-2000)*((IF($A8=Nutrients!$B$79,Nutrients!$DA$79,(IF($A8=Nutrients!$B$77,Nutrients!$DA$77,Nutrients!$DA$78)))))))/((IF($A7=Nutrients!$B$8,Nutrients!$DA$8,Nutrients!$DA$9))-((IF($A8=Nutrients!$B$79,Nutrients!$DA$79,(IF($A8=Nutrients!$B$77,Nutrients!$DA$77,Nutrients!$DA$78))))))))","v":1200.3411482215076},{"$f":"IF(Q5=\"\",\"\",((((Q236-Q297)*2000)+((SUM(Q9:Q229)-2000)*((IF($A8=Nutrients!$B$79,Nutrients!$DA$79,(IF($A8=Nutrients!$B$77,Nutrients!$DA$77,Nutrients!$DA$78)))))))/((IF($A7=Nutrients!$B$8,Nutrients!$DA$8,Nutrients!$DA$9))-((IF($A8=Nutrients!$B$79,Nutrients!$DA$79,(IF($A8=Nutrients!$B$77,Nutrients!$DA$77,Nutrients!$DA$78))))))))","v":1313.7719595392193},{"$f":"IF(R5=\"\",\"\",((((R236-R297)*2000)+((SUM(R9:R229)-2000)*((IF($A8=Nutrients!$B$79,Nutrients!$DA$79,(IF($A8=Nutrients!$B$77,Nutrients!$DA$77,Nutrients!$DA$78)))))))/((IF($A7=Nutrients!$B$8,Nutrients!$DA$8,Nutrients!$DA$9))-((IF($A8=Nutrients!$B$79,Nutrients!$DA$79,(IF($A8=Nutrients!$B$77,Nutrients!$DA$77,Nutrients!$DA$78))))))))","v":1411.9704836794119},{"$f":"IF(S5=\"\",\"\",((((S236-S297)*2000)+((SUM(S9:S229)-2000)*((IF($A8=Nutrients!$B$79,Nutrients!$DA$79,(IF($A8=Nutrients!$B$77,Nutrients!$DA$77,Nutrients!$DA$78)))))))/((IF($A7=Nutrients!$B$8,Nutrients!$DA$8,Nutrients!$DA$9))-((IF($A8=Nutrients!$B$79,Nutrients!$DA$79,(IF($A8=Nutrients!$B$77,Nutrients!$DA$77,Nutrients!$DA$78))))))))","v":1496.128590017046},{"$f":"IF(T5=\"\",\"\",((((T236-T297)*2000)+((SUM(T9:T229)-2000)*((IF($A8=Nutrients!$B$79,Nutrients!$DA$79,(IF($A8=Nutrients!$B$77,Nutrients!$DA$77,Nutrients!$DA$78)))))))/((IF($A7=Nutrients!$B$8,Nutrients!$DA$8,Nutrients!$DA$9))-((IF($A8=Nutrients!$B$79,Nutrients!$DA$79,(IF($A8=Nutrients!$B$77,Nutrients!$DA$77,Nutrients!$DA$78))))))))","v":1552.3480796665817},{"$f":"IF(U5=\"\",\"\",((((U236-U297)*2000)+((SUM(U9:U229)-2000)*((IF($A8=Nutrients!$B$79,Nutrients!$DA$79,(IF($A8=Nutrients!$B$77,Nutrients!$DA$77,Nutrients!$DA$78)))))))/((IF($A7=Nutrients!$B$8,Nutrients!$DA$8,Nutrients!$DA$9))-((IF($A8=Nutrients!$B$79,Nutrients!$DA$79,(IF($A8=Nutrients!$B$77,Nutrients!$DA$77,Nutrients!$DA$78))))))))","v":1707.9835561942639},null,{"$f":"IF(W5=\"\",\"\",((((W236-W297)*2000)+((SUM(W9:W229)-2000)*((IF($A8=Nutrients!$B$79,Nutrients!$DA$79,(IF($A8=Nutrients!$B$77,Nutrients!$DA$77,Nutrients!$DA$78)))))))/((IF($A7=Nutrients!$B$8,Nutrients!$DA$8,Nutrients!$DA$9))-((IF($A8=Nutrients!$B$79,Nutrients!$DA$79,(IF($A8=Nutrients!$B$77,Nutrients!$DA$77,Nutrients!$DA$78))))))))","v":1138.1475327423341},{"$f":"IF(X5=\"\",\"\",((((X236-X297)*2000)+((SUM(X9:X229)-2000)*((IF($A8=Nutrients!$B$79,Nutrients!$DA$79,(IF($A8=Nutrients!$B$77,Nutrients!$DA$77,Nutrients!$DA$78)))))))/((IF($A7=Nutrients!$B$8,Nutrients!$DA$8,Nutrients!$DA$9))-((IF($A8=Nutrients!$B$79,Nutrients!$DA$79,(IF($A8=Nutrients!$B$77,Nutrients!$DA$77,Nutrients!$DA$78))))))))","v":1250.8535585686413},{"$f":"IF(Y5=\"\",\"\",((((Y236-Y297)*2000)+((SUM(Y9:Y229)-2000)*((IF($A8=Nutrients!$B$79,Nutrients!$DA$79,(IF($A8=Nutrients!$B$77,Nutrients!$DA$77,Nutrients!$DA$78)))))))/((IF($A7=Nutrients!$B$8,Nutrients!$DA$8,Nutrients!$DA$9))-((IF($A8=Nutrients!$B$79,Nutrients!$DA$79,(IF($A8=Nutrients!$B$77,Nutrients!$DA$77,Nutrients!$DA$78))))))))","v":1349.387926380854},{"$f":"IF(Z5=\"\",\"\",((((Z236-Z297)*2000)+((SUM(Z9:Z229)-2000)*((IF($A8=Nutrients!$B$79,Nutrients!$DA$79,(IF($A8=Nutrients!$B$77,Nutrients!$DA$77,Nutrients!$DA$78)))))))/((IF($A7=Nutrients!$B$8,Nutrients!$DA$8,Nutrients!$DA$9))-((IF($A8=Nutrients!$B$79,Nutrients!$DA$79,(IF($A8=Nutrients!$B$77,Nutrients!$DA$77,Nutrients!$DA$78))))))))","v":1432.4553721573238},{"$f":"IF(AA5=\"\",\"\",((((AA236-AA297)*2000)+((SUM(AA9:AA229)-2000)*((IF($A8=Nutrients!$B$79,Nutrients!$DA$79,(IF($A8=Nutrients!$B$77,Nutrients!$DA$77,Nutrients!$DA$78)))))))/((IF($A7=Nutrients!$B$8,Nutrients!$DA$8,Nutrients!$DA$9))-((IF($A8=Nutrients!$B$79,Nutrients!$DA$79,(IF($A8=Nutrients!$B$77,Nutrients!$DA$77,Nutrients!$DA$78))))))))","v":1488.0803029191954},{"$f":"IF(AB5=\"\",\"\",((((AB236-AB297)*2000)+((SUM(AB9:AB229)-2000)*((IF($A8=Nutrients!$B$79,Nutrients!$DA$79,(IF($A8=Nutrients!$B$77,Nutrients!$DA$77,Nutrients!$DA$78)))))))/((IF($A7=Nutrients!$B$8,Nutrients!$DA$8,Nutrients!$DA$9))-((IF($A8=Nutrients!$B$79,Nutrients!$DA$79,(IF($A8=Nutrients!$B$77,Nutrients!$DA$77,Nutrients!$DA$78))))))))","v":1707.9835561942639},null,{"$f":"IF(AD5=\"\",\"\",((((AD236-AD297)*2000)+((SUM(AD9:AD229)-2000)*((IF($A8=Nutrients!$B$79,Nutrients!$DA$79,(IF($A8=Nutrients!$B$77,Nutrients!$DA$77,Nutrients!$DA$78)))))))/((IF($A7=Nutrients!$B$8,Nutrients!$DA$8,Nutrients!$DA$9))-((IF($A8=Nutrients!$B$79,Nutrients!$DA$79,(IF($A8=Nutrients!$B$77,Nutrients!$DA$77,Nutrients!$DA$78))))))))","v":1076.0201232791078},{"$f":"IF(AE5=\"\",\"\",((((AE236-AE297)*2000)+((SUM(AE9:AE229)-2000)*((IF($A8=Nutrients!$B$79,Nutrients!$DA$79,(IF($A8=Nutrients!$B$77,Nutrients!$DA$77,Nutrients!$DA$78)))))))/((IF($A7=Nutrients!$B$8,Nutrients!$DA$8,Nutrients!$DA$9))-((IF($A8=Nutrients!$B$79,Nutrients!$DA$79,(IF($A8=Nutrients!$B$77,Nutrients!$DA$77,Nutrients!$DA$78))))))))","v":1189.0066369092604},{"$f":"IF(AF5=\"\",\"\",((((AF236-AF297)*2000)+((SUM(AF9:AF229)-2000)*((IF($A8=Nutrients!$B$79,Nutrients!$DA$79,(IF($A8=Nutrients!$B$77,Nutrients!$DA$77,Nutrients!$DA$78)))))))/((IF($A7=Nutrients!$B$8,Nutrients!$DA$8,Nutrients!$DA$9))-((IF($A8=Nutrients!$B$79,Nutrients!$DA$79,(IF($A8=Nutrients!$B$77,Nutrients!$DA$77,Nutrients!$DA$78))))))))","v":1286.5432745011917},{"$f":"IF(AG5=\"\",\"\",((((AG236-AG297)*2000)+((SUM(AG9:AG229)-2000)*((IF($A8=Nutrients!$B$79,Nutrients!$DA$79,(IF($A8=Nutrients!$B$77,Nutrients!$DA$77,Nutrients!$DA$78)))))))/((IF($A7=Nutrients!$B$8,Nutrients!$DA$8,Nutrients!$DA$9))-((IF($A8=Nutrients!$B$79,Nutrients!$DA$79,(IF($A8=Nutrients!$B$77,Nutrients!$DA$77,Nutrients!$DA$78))))))))","v":1368.5939113939482},{"$f":"IF(AH5=\"\",\"\",((((AH236-AH297)*2000)+((SUM(AH9:AH229)-2000)*((IF($A8=Nutrients!$B$79,Nutrients!$DA$79,(IF($A8=Nutrients!$B$77,Nutrients!$DA$77,Nutrients!$DA$78)))))))/((IF($A7=Nutrients!$B$8,Nutrients!$DA$8,Nutrients!$DA$9))-((IF($A8=Nutrients!$B$79,Nutrients!$DA$79,(IF($A8=Nutrients!$B$77,Nutrients!$DA$77,Nutrients!$DA$78))))))))","v":1422.9927282741539},{"$f":"IF(AI5=\"\",\"\",((((AI236-AI297)*2000)+((SUM(AI9:AI229)-2000)*((IF($A8=Nutrients!$B$79,Nutrients!$DA$79,(IF($A8=Nutrients!$B$77,Nutrients!$DA$77,Nutrients!$DA$78)))))))/((IF($A7=Nutrients!$B$8,Nutrients!$DA$8,Nutrients!$DA$9))-((IF($A8=Nutrients!$B$79,Nutrients!$DA$79,(IF($A8=Nutrients!$B$77,Nutrients!$DA$77,Nutrients!$DA$78))))))))","v":1707.9835561942639},null,{"$f":"IF(AK5=\"\",\"\",((((AK236-AK297)*2000)+((SUM(AK9:AK229)-2000)*((IF($A8=Nutrients!$B$79,Nutrients!$DA$79,(IF($A8=Nutrients!$B$77,Nutrients!$DA$77,Nutrients!$DA$78)))))))/((IF($A7=Nutrients!$B$8,Nutrients!$DA$8,Nutrients!$DA$9))-((IF($A8=Nutrients!$B$79,Nutrients!$DA$79,(IF($A8=Nutrients!$B$77,Nutrients!$DA$77,Nutrients!$DA$78))))))))","v":1009.516971310784},{"$f":"IF(AL5=\"\",\"\",((((AL236-AL297)*2000)+((SUM(AL9:AL229)-2000)*((IF($A8=Nutrients!$B$79,Nutrients!$DA$79,(IF($A8=Nutrients!$B$77,Nutrients!$DA$77,Nutrients!$DA$78)))))))/((IF($A7=Nutrients!$B$8,Nutrients!$DA$8,Nutrients!$DA$9))-((IF($A8=Nutrients!$B$79,Nutrients!$DA$79,(IF($A8=Nutrients!$B$77,Nutrients!$DA$77,Nutrients!$DA$78))))))))","v":1126.8668872035678},{"$f":"IF(AM5=\"\",\"\",((((AM236-AM297)*2000)+((SUM(AM9:AM229)-2000)*((IF($A8=Nutrients!$B$79,Nutrients!$DA$79,(IF($A8=Nutrients!$B$77,Nutrients!$DA$77,Nutrients!$DA$78)))))))/((IF($A7=Nutrients!$B$8,Nutrients!$DA$8,Nutrients!$DA$9))-((IF($A8=Nutrients!$B$79,Nutrients!$DA$79,(IF($A8=Nutrients!$B$77,Nutrients!$DA$77,Nutrients!$DA$78))))))))","v":1223.3442863615398},{"$f":"IF(AN5=\"\",\"\",((((AN236-AN297)*2000)+((SUM(AN9:AN229)-2000)*((IF($A8=Nutrients!$B$79,Nutrients!$DA$79,(IF($A8=Nutrients!$B$77,Nutrients!$DA$77,Nutrients!$DA$78)))))))/((IF($A7=Nutrients!$B$8,Nutrients!$DA$8,Nutrients!$DA$9))-((IF($A8=Nutrients!$B$79,Nutrients!$DA$79,(IF($A8=Nutrients!$B$77,Nutrients!$DA$77,Nutrients!$DA$78))))))))","v":1304.1556669741105},{"$f":"IF(AO5=\"\",\"\",((((AO236-AO297)*2000)+((SUM(AO9:AO229)-2000)*((IF($A8=Nutrients!$B$79,Nutrients!$DA$79,(IF($A8=Nutrients!$B$77,Nutrients!$DA$77,Nutrients!$DA$78)))))))/((IF($A7=Nutrients!$B$8,Nutrients!$DA$8,Nutrients!$DA$9))-((IF($A8=Nutrients!$B$79,Nutrients!$DA$79,(IF($A8=Nutrients!$B$77,Nutrients!$DA$77,Nutrients!$DA$78))))))))","v":1357.440248276268},{"$f":"IF(AP5=\"\",\"\",((((AP236-AP297)*2000)+((SUM(AP9:AP229)-2000)*((IF($A8=Nutrients!$B$79,Nutrients!$DA$79,(IF($A8=Nutrients!$B$77,Nutrients!$DA$77,Nutrients!$DA$78)))))))/((IF($A7=Nutrients!$B$8,Nutrients!$DA$8,Nutrients!$DA$9))-((IF($A8=Nutrients!$B$79,Nutrients!$DA$79,(IF($A8=Nutrients!$B$77,Nutrients!$DA$77,Nutrients!$DA$78))))))))","v":1707.9835561942639},null,{"$f":"IF(AR5=\"\",\"\",((((AR236-AR297)*2000)+((SUM(AR9:AR229)-2000)*((IF($A8=Nutrients!$B$79,Nutrients!$DA$79,(IF($A8=Nutrients!$B$77,Nutrients!$DA$77,Nutrients!$DA$78)))))))/((IF($A7=Nutrients!$B$8,Nutrients!$DA$8,Nutrients!$DA$9))-((IF($A8=Nutrients!$B$79,Nutrients!$DA$79,(IF($A8=Nutrients!$B$77,Nutrients!$DA$77,Nutrients!$DA$78))))))))","v":949.05407749310336},{"$f":"IF(AS5=\"\",\"\",((((AS236-AS297)*2000)+((SUM(AS9:AS229)-2000)*((IF($A8=Nutrients!$B$79,Nutrients!$DA$79,(IF($A8=Nutrients!$B$77,Nutrients!$DA$77,Nutrients!$DA$78)))))))/((IF($A7=Nutrients!$B$8,Nutrients!$DA$8,Nutrients!$DA$9))-((IF($A8=Nutrients!$B$79,Nutrients!$DA$79,(IF($A8=Nutrients!$B$77,Nutrients!$DA$77,Nutrients!$DA$78))))))))","v":1064.6992757716971},{"$f":"IF(AT5=\"\",\"\",((((AT236-AT297)*2000)+((SUM(AT9:AT229)-2000)*((IF($A8=Nutrients!$B$79,Nutrients!$DA$79,(IF($A8=Nutrients!$B$77,Nutrients!$DA$77,Nutrients!$DA$78)))))))/((IF($A7=Nutrients!$B$8,Nutrients!$DA$8,Nutrients!$DA$9))-((IF($A8=Nutrients!$B$79,Nutrients!$DA$79,(IF($A8=Nutrients!$B$77,Nutrients!$DA$77,Nutrients!$DA$78))))))))","v":1159.9047612317727},{"$f":"IF(AU5=\"\",\"\",((((AU236-AU297)*2000)+((SUM(AU9:AU229)-2000)*((IF($A8=Nutrients!$B$79,Nutrients!$DA$79,(IF($A8=Nutrients!$B$77,Nutrients!$DA$77,Nutrients!$DA$78)))))))/((IF($A7=Nutrients!$B$8,Nutrients!$DA$8,Nutrients!$DA$9))-((IF($A8=Nutrients!$B$79,Nutrients!$DA$79,(IF($A8=Nutrients!$B$77,Nutrients!$DA$77,Nutrients!$DA$78))))))))","v":1238.9553256084312},{"$f":"IF(AV5=\"\",\"\",((((AV236-AV297)*2000)+((SUM(AV9:AV229)-2000)*((IF($A8=Nutrients!$B$79,Nutrients!$DA$79,(IF($A8=Nutrients!$B$77,Nutrients!$DA$77,Nutrients!$DA$78)))))))/((IF($A7=Nutrients!$B$8,Nutrients!$DA$8,Nutrients!$DA$9))-((IF($A8=Nutrients!$B$79,Nutrients!$DA$79,(IF($A8=Nutrients!$B$77,Nutrients!$DA$77,Nutrients!$DA$78))))))))","v":1291.8912554771791},{"$f":"IF(AW5=\"\",\"\",((((AW236-AW297)*2000)+((SUM(AW9:AW229)-2000)*((IF($A8=Nutrients!$B$79,Nutrients!$DA$79,(IF($A8=Nutrients!$B$77,Nutrients!$DA$77,Nutrients!$DA$78)))))))/((IF($A7=Nutrients!$B$8,Nutrients!$DA$8,Nutrients!$DA$9))-((IF($A8=Nutrients!$B$79,Nutrients!$DA$79,(IF($A8=Nutrients!$B$77,Nutrients!$DA$77,Nutrients!$DA$78))))))))","v":1707.9835561942639}]
["Soybean Meal, Dehull, Sol Extr",{"$f":"IF(B5=\"\",\"\",2000-SUM(B9:B218)-B7)","v":618.86019033712819},508.40076632216437,413.17469083498395,332.93731204963137,279.42017973722363,252.24678261106305,null,{"$f":"IF(I5=\"\",\"\",2000-SUM(I9:I220)-I7)","v":579.72796148471252},470.46274825960973,376.21853261661499,296.60029079575452,243.04676151850572,252.24678261106305,null,{"$f":"IF(P5=\"\",\"\",2000-SUM(P9:P220)-P7)","v":542.13484627731373},433.59129575908241,340.11627481056735,260.13961826990953,207.22923734472192,252.24678261106305,null,{"$f":"IF(W5=\"\",\"\",2000-SUM(W9:W220)-W7)","v":504.53846175648732},396.71969672966043,302.89852594704598,223.9650185018395,171.48701409210821,252.24678261106305,null,{"$f":"IF(AD5=\"\",\"\",2000-SUM(AD9:AD220)-AD7)","v":466.85617797046848},358.75544458911759,265.94433176741268,187.78622681901493,135.40874902024802,252.24678261106305,null,{"$f":"IF(AK5=\"\",\"\",2000-SUM(AK9:AK220)-AK7)","v":433.54501165180579},321.10519429480996,229.13331990706433,151.34069727197857,99.228372943307704,252.24678261106305,null,{"$f":"IF(AR5=\"\",\"\",2000-SUM(AR9:AR220)-AR7)","v":394.21371623587459},283.46315798291153,192.53704041308356,114.79722758459206,63.052883145728174,252.24678261106305]
[{"$f":"Nutrients!B8","v":"Corn"}]
[{"$f":"Nutrients!B9","v":"Milo"}]
[{"$f":"Nutrients!B10","v":"Alfalfa Meal"}]
[{"$f":"Nutrients!B11","v":"Bakery Meal"}]
[{"$f":"Nutrients!B12","v":"Barley"}]
[{"$f":"Nutrients!B13","v":"Barley, Hulless"}]
[{"$f":"Nutrients!B14","v":"Beans, Faba"}]
[{"$f":"Nutrients!B15","v":"Blood Meal"}]
[{"$f":"Nutrients!B16","v":"Blood Plasma"}]
[{"$f":"Nutrients!B17","v":"Brewers Grain"}]
[{"$f":"Nutrients!B18","v":"Canola, Full Fat"}]
[{"$f":"Nutrients!B19","v":"Canola Meal, Expelled"}]
[{"$f":"Nutrients!B20","v":"Canola Meal, Solvent Extracted"}]
[{"$f":"Nutrients!B21","v":"Casava Meal"}]
[{"$f":"Nutrients!B22","v":"Citrus Pulp"}]
[{"$f":"Nutrients!B23","v":"Copra Meal"}]
[{"$f":"Nutrients!B24","v":"Corn, Yellow Dent"}]
[{"$f":"Nutrients!B25","v":"Corn, Nutridense"}]
[{"$f":"Nutrients!B26","v":"Corn Bran"}]
[{"$f":"Nutrients!B27","v":"Corn DDG"}]
[{"$f":"Nutrients!B28","v":"Corn DDGS, >10% Oil"}]
[{"$f":"Nutrients!B29","v":"Corn DDGS, >6 and <9% Oil"}]
[{"$f":"Nutrients!B30","v":"Corn DDGS, <4% Oil"}]
[{"$f":"Nutrients!B31","v":"Corn HP DDG"}]
[{"$f":"Nutrients!B32","v":"Corn Germ"}]
[{"$f":"Nutrients!B33","v":"Corn Germ Meal"}]
[{"$f":"Nutrients!B34","v":"Corn Gluten Feed"}]
[{"$f":"Nutrients!B35","v":"Corn Gluten Meal"}]
[{"$f":"Nutrients!B36","v":"Corn Grits, Hominy Feed"}]
[{"$f":"Nutrients!B37","v":"Cotton Seeds, Fullfat"}]
[{"$f":"Nutrients!B38","v":"Cotton Seed Meal"}]
[{"$f":"Nutrients!B39","v":"Feather Meal"}]
[{"$f":"Nutrients!B40","v":"Fish Meal Combined"}]
[{"$f":"Nutrients!B41","v":"Flaxseed"}]
[{"$f":"Nutrients!B42","v":"Flaxseed Meal"}]
[{"$f":"Nutrients!B43","v":"Lupins"}]
[{"$f":"Nutrients!B44","v":"Meat Meal"}]
[{"$f":"Nutrients!B45","v":"Meat and Bone Meal, P >4%"}]
[{"$f":"Nutrients!B46","v":"Milk, Casein"}]
[{"$f":"Nutrients!B47","v":"Milk, Lactose"}]
[{"$f":"Nutrients!B48","v":"Milk, Skim Milk Powder"}]
[{"$f":"Nutrients!B49","v":"Milk, Whey Powder"}]
[{"$f":"Nutrients!B50","v":"Milk, Whey Permeate, 80% lactose"}]
[{"$f":"Nutrients!B51","v":"Milk, Whey Protein Concentrate"}]
[{"$f":"Nutrients!B52","v":"Millet"}]
[{"$f":"Nutrients!B53","v":"Molasses, Sugarbeet"}]
[{"$f":"Nutrients!B54","v":"Molasses, Sugarcane"}]
[{"$f":"Nutrients!B55","v":"Oats"}]
[{"$f":"Nutrients!B56","v":"Oats, Naked"}]
[{"$f":"Nutrients!B57","v":"Oat Groats"}]
[{"$f":"Nutrients!B58","v":"Peanut Meal, Expelled"}]
[{"$f":"Nutrients!B59","v":"Peanut Meal, Extracted"}]
[{"$f":"Nutrients!B60","v":"Peas, Field Peas"}]
[{"$f":"Nutrients!B61","v":"Pea Protein Concentrate"}]
[{"$f":"Nutrients!B62","v":"Potato Protein Concentrate"}]
[{"$f":"Nutrients!B63","v":"Poultry Byproduct"}]
[{"$f":"Nutrients!B64","v":"Rice"}]
[{"$f":"Nutrients!B65","v":"Rice Bran"}]
[{"$f":"Nutrients!B66","v":"Rice Bran, Defatted"}]
[{"$f":"Nutrients!B67","v":"Rice, Broken"}]
[{"$f":"Nutrients!B68","v":"Rye"}]
[{"$f":"Nutrients!B69","v":"Sesame Meal"}]
[{"$f":"Nutrients!B70","v":"Sorghum"}]
[{"$f":"Nutrients!B71","v":"Soybeans, Full Fat"}]
[{"$f":"Nutrients!B72","v":"Soybeans, High Protein, Full Fat"}]
[{"$f":"Nutrients!B73","v":"Soybeans, Low Oligosaccharide, Full Fat"}]
[{"$f":"Nutrients!B74","v":"Soybean Meal, High Protein, Expelled"}]
[{"$f":"Nutrients!B75","v":"Soybean Meal, Low Oligosacch, Expell"}]
[{"$f":"Nutrients!B76","v":"Soybean Meal, Expelled"}]
[{"$f":"Nutrients!B77","v":"Soybean Meal, Dehulled, Expelled"}]
[{"$f":"Nutrients!B78","v":"Soybean Meal, Solvent Extracted"}]
[{"$f":"Nutrients!B79","v":"Soybean Meal, Dehull, Sol Extr"}]
[{"$f":"Nutrients!B80","v":"Soybean Meal, High Prot, Dehull, Solv Extr"}]
[{"$f":"Nutrients!B81","v":"Soybean Meal, Enzyme Treated"}]
[{"$f":"Nutrients!B82","v":"Soybean Meal, Fermented"}]
[{"$f":"Nutrients!B83","v":"Soybean Hulls"}]
[{"$f":"Nutrients!B84","v":"Soy Protein Concentrate"}]
[{"$f":"Nutrients!B85","v":"Soy Protein Isolate"}]
[{"$f":"Nutrients!B86","v":"Sugar Beet Pulp"}]
[{"$f":"Nutrients!B87","v":"Sunflower, Full Fat"}]
[{"$f":"Nutrients!B88","v":"Sunflower Meal, Solvent Extracted"}]
[{"$f":"Nutrients!B89","v":"Sunflower Meal, Dehulled, Solvent Extr"}]
[{"$f":"Nutrients!B90","v":"Triticale"}]
[{"$f":"Nutrients!B91","v":"Wheat, Hard Red"}]
[{"$f":"Nutrients!B92","v":"Wheat, Soft Red"}]
[{"$f":"Nutrients!B93","v":"Wheat Bran"}]
[{"$f":"Nutrients!B94","v":"Wheat Middlings"}]
[{"$f":"Nutrients!B95","v":"Wheat Shorts"}]
[{"$f":"Nutrients!B96","v":"Wheat DDGS"}]
[{"$f":"Nutrients!B97","v":"Yeast, Brewers' Yeast"}]
[{"$f":"Nutrients!B98","v":"Yeast, Single Cell Protein"}]
[{"$f":"Nutrients!B99","v":"Beef Tallow"}]
[{"$f":"Nutrients!B100","v":"Choice White Grease"}]
[{"$f":"Nutrients!B101","v":"Poultry Fat"}]
[{"$f":"Nutrients!B102","v":"Lard"}]
[{"$f":"Nutrients!B103","v":"Restaurant Grease"}]
[{"$f":"Nutrients!B104","v":"Canola oil"}]
[{"$f":"Nutrients!B105","v":"Coconut oil"}]
[{"$f":"Nutrients!B106","v":"Corn oil"}]
[{"$f":"Nutrients!B107","v":"Palm Kernel oil"}]
[{"$f":"Nutrients!B108","v":"Soybean oil"}]
[{"$f":"Nutrients!B109","v":"Soybean Lecithin"}]
[{"$f":"Nutrients!B110","v":"Sunflower oil"}]
[{"$f":"Nutrients!B111","v":"Fat, A/V blend"}]
["Calcium carbonate",20.650850091543401,19.206,19.148185418768257,18.64855351548341,18.080501293847359,17.747857076024747,null,21.302725380416337,19.896000000000001,19.854046420115569,19.192483222547349,18.682939713542989,17.747857076024747,null,22.005524349635031,20.596522561060773,20.564824391214646,19.90194296254014,19.392906410118851,17.747857076024747,null,22.675524349635033,21.266522561060775,21.234824391214648,20.571942962540142,20.062906410118853,17.747857076024747,null,23.36521759887999,21.957696360984666,21.92941656439486,21.272195408740227,21.087790236012584,17.747857076024747,null,24.059535885866481,22.627696360984668,22.599416564394861,22.209557883861148,22.260646310838833,17.747857076024747,null,24.733725119478365,23.317344104753687,23.295221188143067,23.393368936927086,23.433612856971386,17.747857076024747]
[{"$f":"Nutrients!B113","v":"Calcium phosphate (tricalcium)"}]
[{"$f":"Nutrients!B114","v":"Calcium phosphate (dicalcium)"}]
["Calcium phosphate (monocalcium)",13.279340186607511,10.560038663342741,7.7098828288906036,5.7362235571478868,4.249911842640179,3.6237362366975527,null,12.059340186607511,9.3400386633427406,6.4898828288906039,4.2618749180561419,2.8506400350413044,3.6237362366975527,null,10.83934018660751,8.1200386633427399,5.2698828288906041,3.0418749180561422,1.6306400350413044,3.6237362366975527,null,9.6193401866075092,6.9000386633427402,4.0498828288906044,1.8218749180561422,0.41064003504130442,3.6237362366975527,null,8.3993401866075086,5.6800386633427404,2.8298828288906046,0.60187491805614224,null,3.6237362366975527,null,7.1793401866075088,4.4600386633427407,1.6098828288906046,null,null,3.6237362366975527,null,5.9593401866075091,3.2400386633427409,0.38988282889060466,null,null,3.6237362366975527]
[{"$f":"Nutrients!B116","v":"Calcium sulfate, dihydrate"}]
[{"$f":"Nutrients!B117","v":"Limestone, ground"}]
[{"$f":"Nutrients!B118","v":"Magnesium phosphate"}]
[{"$f":"Nutrients!B119","v":"Sodium carbonate"}]
[{"$f":"Nutrients!B120","v":"Sodium bicarbonate"}]
[{"$f":"Nutrients!B121","v":"Sodium chloride"},7,7,7,7,7,7,null,7,7,7,7,7,7,null,7,7,7,7,7,7,null,7,7,7,7,7,7,null,7,7,7,7,7,7,null,7,7,7,7,7,7,null,7,7,7,7,7,7]
[{"$f":"Nutrients!B122","v":"Sodium phosphate, monobasic"}]
[{"$f":"Nutrients!B123","v":"Sodium sulfate, decahydrate"}]
["L-Lys-HCl",6.3084820001521269,6.2433597724335907,6.1008877821794973,6.0262980797710428,5.9214818115557355,5.7904970568511782,null,6.8584820001521267,6.7933597724335906,6.6508877821794972,6.5762980797710426,6.4714818115557353,5.7904970568511782,null,7.4084820001521265,7.3433597724335904,7.200887782179497,7.1262980797710425,7.0214818115557351,5.7904970568511782,null,7.9584820001521264,7.8933597724335902,7.7508877821794968,7.6762980797710423,7.571481811555735,5.7904970568511782,null,8.5084820001521262,8.44335977243359,8.3008877821794975,8.226298079771043,8.1214818115557357,5.7904970568511782,null,9.0584820001521269,8.9933597724335907,8.8508877821794982,8.7762980797710437,8.6714818115557364,5.7904970568511782,null,9.6084820001521276,9.5433597724335915,9.4008877821794989,9.3262980797710444,9.2214818115557371,5.7904970568511782]
["DL-Met",2.0001072741250949,1.4142932363875236,0.86934747110785748,0.597281406401727,0.26418732884583351,0.20625243191767928,null,1.7701072741250949,1.1842932363875236,0.65309697440645997,0.38218237220779228,4.8849705104336741E-2,0.20625243191767928,null,1.550107274125095,0.97762432561587609,0.43309697440646,0.16218237220779227,null,0.20625243191767928,null,1.330107274125095,0.75762432561587612,0.22340313648572985,null,null,0.20625243191767928,null,1.110107274125095,0.53762432561587614,null,null,null,0.20625243191767928,null,0.89010727412509505,0.31762432561587617,null,null,null,0.20625243191767928,null,0.67010727412509508,9.7624325615876167E-2,null,null,null,0.20625243191767928]
["L-Thr",2.1021642542029664,1.8931061779303802,1.6694885978130205,1.6715266713984547,1.5185483019032111,1.5481920365803807,null,2.0221642542029663,1.8131061779303801,1.5894885978130204,1.5915266713984546,1.438548301903211,1.5481920365803807,null,1.9421642542029662,1.73310617793038,1.5094885978130204,1.5115266713984545,1.358548301903211,1.5481920365803807,null,1.8621642542029662,1.6531061779303799,1.4294885978130203,1.4315266713984545,1.2785483019032109,1.5481920365803807,null,1.7821642542029661,1.5731061779303799,1.3494885978130202,1.3515266713984544,1.1985483019032108,1.5481920365803807,null,1.702164254202966,1.4931061779303798,1.2694885978130201,1.2715266713984543,1.1185483019032108,1.5481920365803807,null,1.6221642542029659,1.4131061779303797,1.1894885978130201,1.1915266713984543,1.0385483019032107,1.5481920365803807]
["L-Trp",0.1583874364560095,0.24609320131494719,0.31506093551644743,0.36796670907097156,0.39910643007729607,0.40312635660152313,null,0.23838743645600952,0.32609320131494718,0.39506093551644744,0.44796670907097158,0.47910643007729609,0.40312635660152313,null,0.32838743645600954,0.4160932013149472,0.48506093551644747,0.53796670907097155,0.56910643007729611,0.40312635660152313,null,0.41838743645600951,0.50609320131494717,0.57506093551644744,0.62796670907097152,0.65910643007729608,0.40312635660152313,null,0.50838743645600948,0.59609320131494714,0.65271795811769306,0.71796670907097149,0.74070235612654567,0.40312635660152313,null,0.59838743645600945,0.68609320131494711,0.74271795811769303,0.79625311888019668,0.83070235612654564,0.40312635660152313,null,0.68838743645600942,0.77609320131494708,0.832717958117693,0.88625311888019664,0.91221840666227716,0.40312635660152313]
["L-Val"]
[{"$f":"Nutrients!B129","v":"L-Ile"}]
[{"$f":"Nutrients!B130","v":"Methionine hydroxy analog"}]
[{"$f":"Nutrients!B131","v":"Glutamine"}]
[{"$f":"Nutrients!B132","v":"Glutamic acid"}]
[{"$f":"Nutrients!B133","v":"Biolys"}]
[{"$f":"Nutrients!B134","v":"Liquid lysine 60%"}]
[{"$f":"Nutrients!B135","v":"MHA dry"}]
[{"$f":"Nutrients!B136","v":"Paylean, 9 g/lb"}]
[{"$f":"Nutrients!B137","v":"Tribasic copper chloride"}]
[{"$f":"Nutrients!B138","v":"2018 Starter base mix"}]
[{"$f":"Nutrients!B139","v":"2018 Grow-finish base mix"}]
[{"$f":"Nutrients!B140","v":"Developer base mix"}]
[{"$f":"Nutrients!B141","v":"2018 Sow base mix"}]
[{"$f":"Nutrients!B142","v":"Vitamin premix with phytase"}]
[{"$f":"Nutrients!B143","v":"Trace mineral premix"},3,3,2.5,2,1.5,1.5,null,3,3,2.5,2,1.5,1.5,null,3,3,2.5,2,1.5,1.5,null,3,3,2.5,2,1.5,1.5,null,3,3,2.5,2,1.5,1.5,null,3,3,2.5,2,1.5,1.5,null,3,3,2.5,2,1.5,1.5]
[{"$f":"Nutrients!B144","v":"Sow add pack"}]
[{"$f":"Nutrients!B145","v":"Vitamin premix without phytase"},3,3,2.5,2,1.5,1.5,null,3,3,2.5,2,1.5,1.5,null,3,3,2.5,2,1.5,1.5,null,3,3,2.5,2,1.5,1.5,null,3,3,2.5,2,1.5,1.5,null,3,3,2.5,2,1.5,1.5,null,3,3,2.5,2,1.5,1.5]
[{"$f":"Nutrients!B146","v":"GF DDGS Base Mix"}]
[{"$f":"Nutrients!B147","v":"GF synthetics Base Mix"}]
[{"$f":"Nutrients!B148","v":"Choline chloride 60%"}]
[{"$f":"Nutrients!B149","v":"Natuphos 600"}]
[{"$f":"Nutrients!B150","v":"Natuphos 1200"}]
[{"$f":"Nutrients!B151","v":"Optiphos 2000"}]
[{"$f":"Nutrients!B152","v":"Phyzyme 1200"}]
[{"$f":"Nutrients!B153","v":"Phyzyme 5000"}]
[{"$f":"Nutrients!B154","v":"Ronozyme Hiphos GT (10,000)"}]
[{"$f":"Nutrients!B155","v":"Ronozyme Hiphos M (50,000)"}]
[{"$f":"Nutrients!B156","v":"Ronozyme HiPhos 2700"},0.45,0.45,0.45,0.45,0.45,0.45,null,0.45,0.45,0.45,0.45,0.45,0.45,null,0.45,0.45,0.45,0.45,0.45,0.45,null,0.45,0.45,0.45,0.45,0.45,0.45,null,0.45,0.45,0.45,0.45,0.45,0.45,null,0.45,0.45,0.45,0.45,0.45,0.45,null,0.45,0.45,0.45,0.45,0.45,0.45]
[{"$f":"Nutrients!B157","v":"Zinc oxide"}]
[{"$f":"Nutrients!B158","v":"Copper sulfate"}]
[{"$f":"Nutrients!B159","v":"Potassium chloride"}]
[{"$f":"Nutrients!B160","v":"Calcium chloride"}]
[{"$f":"Nutrients!B161","v":"Acidifier"}]
[{"$f":"Nutrients!B162","v":"Vitamin E, 20,000 IU"}]
[{"$f":"Nutrients!B163","v":"Other ingredient"}]
[{"$f":"Nutrients!B164","v":"DPS 50"}]
[{"$f":"Nutrients!B165","v":"PEP2+"}]
[{"$f":"Nutrients!B166","v":"PEP NS"}]
[{"$f":"Nutrients!B167","v":"Vitamin premix (2x) with phytase"}]
[{"$f":"Nutrients!B168","v":"Vitamin premix (2x) without phytase"}]
[{"$f":"Nutrients!B169","v":"Corn DDGS, 10.5% Oil"}]
[{"$f":"Nutrients!B170","v":"Corn DDGS, 7.5% Oil"}]
[{"$f":"Nutrients!B171","v":"Corn DDGS, 4.5% Oil"}]
[{"$f":"Nutrients!B172","v":"MEPRO Hubbard"}]
[{"$f":"Nutrients!B173","v":"HP 300 Apr 2022 loadings"}]
[{"$f":"Nutrients!B174","v":"Glycine"}]
[{"$f":"Nutrients!B175","v":"Phase 2 supplement 2018"}]
[{"$f":"Nutrients!B176","v":"Fermex 200"}]
[{"$f":"Nutrients!B177","v":"Soybean meal with 88% NE of corn"}]
[{"$f":"Nutrients!B178","v":"Blue Dye NFP"}]
[{"$f":"Nutrients!B179","v":"HP 300 2022 NFP"}]
[{"$f":"Nutrients!B180","v":"AX3 Digest NFP"}]
[{"$f":"Nutrients!B181","v":"Phase 2 supplement 2018 NFP"}]
[{"$f":"Nutrients!B182","v":"Femex 200 NFP"}]
[{"$f":"Nutrients!B183","v":"NFP Soybean meal w/88% NE of corn "}]
[{"$f":"Nutrients!B184","v":"AV-E Digest NFP"}]
[{"$f":"Nutrients!B185","v":"QFP Cereal Blend NFP"}]
[{"$f":"Nutrients!B186","v":"FXP Ani-Tek NFP"}]
[{"$f":"Nutrients!B187","v":"NFP VTM Grower (2021)"}]
[{"$f":"Nutrients!B188","v":"NFP VTM Sow (2021)"}]
[{"$f":"Nutrients!B189","v":"VevoVitall NFP"}]
[{"$f":"Nutrients!B190","v":"MEPRO NFP"}]
[{"$f":"Nutrients!B191","v":"AlphaGal 280 P NFP"}]
[{"$f":"Nutrients!B192","v":"NFP Custom Manganese "}]
[{"$f":"Nutrients!B193","v":"Fat Build R2 All Veg 4000 NFP"}]
[{"$f":"Nutrients!B194","v":"LipoVital GL 90 NFP"}]
[{"$f":"Nutrients!B195","v":"NFP Custom Zinc"}]
[{"$f":"Nutrients!B196","v":"THRPRO-L Threonine 80% NFP"}]
[{"$f":"Nutrients!B197","v":"Copper Chloride Intellibond TBCC NFP"}]
[{"$f":"Nutrients!B198","v":"DDGS 7.5% Oil Green Plains NFP"}]
[{"$f":"Nutrients!B199","v":"NHF GF VTM 2#"}]
[{"$f":"Nutrients!B200","v":"Hubbard Vit Premix "}]
[{"$f":"Nutrients!B201","v":"Hubbard TMP"}]
[{"$f":"Nutrients!B202","v":"Inorganic Se 600 ppm Hubbard"}]
[{"$f":"Nutrients!B203","v":"Quantum Blue  5G Hubbard"}]
[{"$f":"Nutrients!B204","v":"TASA Prime meal Hubbard"}]
[{"$f":"Nutrients!B205","v":"TASA Swine Hubbard"}]
[{"$f":"Nutrients!B206","v":"TASA fish solubles Hubbard"}]
[{"$f":"Nutrients!B207","v":"Mepro + TASA additive Hubbard"}]
[{"$f":"Nutrients!B208","v":"TASA Prime + TASA additive Hubbard"}]
[{"$f":"Nutrients!B209","v":"NHF SOW VTM 4# 2022"}]
[{"$f":"Nutrients!B210","v":"ThrPro "}]
[{"$f":"Nutrients!B211","v":"NHF Optiphos Plus 2500 G"}]
[{"$f":"Nutrients!B212","v":"NHF Corn DDGS, Valero, Aurora"}]
[{"$f":"Nutrients!B213","v":"HP 300 Hubbard"}]
[{"$f":"Nutrients!B214","v":"NHF Corn DDGS, Illuminate for Aurora"}]
[{"$f":"Nutrients!B215","v":"NFP Corn DDGS, MO analysis"}]
[{"$f":"Nutrients!B216","v":"NFP Smizyme 2500"}]
[{"$f":"Nutrients!B217","v":"NHF HP300 2022 loadings"}]
[{"$f":"Nutrients!B218","v":"NHF Liquid Lys 55%"}]
[{"$f":"Nutrients!B219","v":"Corn DDGS with varying energy"},null,null,null,null,null,null,null,100,100,100,100,100,null,null,200,200,200,200,200,null,null,300,300,300,300,300,null,null,400,400,400,400,400,null,null,500,500,500,500,500,null,null,600,600,600,600,600]
[{"$f":"Nutrients!B220","v":"Other ingredient"}]
[{"$f":"Nutrients!B221","v":"Other ingredient"}]
[{"$f":"Nutrients!B222","v":"Other ingredient"}]
[{"$f":"Nutrients!B223","v":"Other ingredient"}]
[{"$f":"Nutrients!B224","v":"Other ingredient"}]
[{"$f":"Nutrients!B225","v":"Other ingredient"}]
[{"$f":"Nutrients!B226","v":"Other ingredient"}]
[{"$f":"Nutrients!B227","v":"Other ingredient"}]
[{"$f":"Nutrients!B228","v":"Other ingredient"}]
["TOTAL",{"$f":"SUM(B7:B229)","v":2000},2000,2000,2000,2000,1999.9999999999998,null,{"$f":"SUM(I7:I229)","v":2000.0000000000002},2000,2000,1999.9999999999998,2000.0000000000002,1999.9999999999998,null,{"$f":"SUM(P7:P229)","v":2000.0000000000002},1999.9999999999998,2000,2000.0000000000002,2000.0000000000002,1999.9999999999998,null,{"$f":"SUM(W7:W229)","v":2000.0000000000002},2000,2000,2000,2000,1999.9999999999998,null,{"$f":"SUM(AD7:AD229)","v":2000},2000.0000000000002,1999.9999999999998,2000,2000,1999.9999999999998,null,{"$f":"SUM(AK7:AK229)","v":2000},2000,2000.0000000000002,2000.0000000000002,2000,1999.9999999999998,null,{"$f":"SUM(AR7:AR229)","v":2000},2000,2000.0000000000005,2000,2000,1999.9999999999998]
[]
["Required SID Lys:NE Ratio",{"$f":"  0.0000415*((B5+B6)/2)^2 - 0.0236*((B5+B6)/2) + 6.096","v":4.6920843750000003},4.1130093749999999,3.6054000000000004,3.1925999999999997,2.9125999999999999,2.7606093749999996,null,{"$f":"  0.0000415*((I5+I6)/2)^2 - 0.0236*((I5+I6)/2) + 6.096","v":4.6920843750000003},4.1130093749999999,3.6054000000000004,3.1925999999999997,2.9125999999999999,2.7606093749999996,null,{"$f":"  0.0000415*((P5+P6)/2)^2 - 0.0236*((P5+P6)/2) + 6.096","v":4.6920843750000003},4.1130093749999999,3.6054000000000004,3.1925999999999997,2.9125999999999999,2.7606093749999996,null,{"$f":"  0.0000415*((W5+W6)/2)^2 - 0.0236*((W5+W6)/2) + 6.096","v":4.6920843750000003},4.1130093749999999,3.6054000000000004,3.1925999999999997,2.9125999999999999,2.7606093749999996,null,{"$f":"  0.0000415*((AD5+AD6)/2)^2 - 0.0236*((AD5+AD6)/2) + 6.096","v":4.6920843750000003},4.1130093749999999,3.6054000000000004,3.1925999999999997,2.9125999999999999,2.7606093749999996,null,{"$f":"  0.0000415*((AK5+AK6)/2)^2 - 0.0236*((AK5+AK6)/2) + 6.096","v":4.6920843750000003},4.1130093749999999,3.6054000000000004,3.1925999999999997,2.9125999999999999,2.7606093749999996,null,{"$f":"  0.0000415*((AR5+AR6)/2)^2 - 0.0236*((AR5+AR6)/2) + 6.096","v":4.6920843750000003},4.1130093749999999,3.6054000000000004,3.1925999999999997,2.9125999999999999,2.7606093749999996]
["Calculated SID Lysine Required, %",{"$f":"IF(B232=\"\",\"\",B250*2.2046*B232/10000)","v":1.1871600863382354},1.0488451848987548,0.92572438073141317,0.8245835224120116,0.755458195622838,0.71736927197173905,null,{"$f":"IF(I232=\"\",\"\",I250*2.2046*I232/10000)","v":1.1774776818496377},1.0402711661584119,0.91815722126548338,0.8180341815201696,0.74943263455094744,0.71736927197173905,null,{"$f":"IF(P232=\"\",\"\",P250*2.2046*P232/10000)","v":1.1676752516750242},1.0316441123795455,0.91054937380477063,0.81131324375710157,0.74331238297594904,0.71736927197173905,null,{"$f":"IF(W232=\"\",\"\",W250*2.2046*W232/10000)","v":1.1578935868843403},1.0230298278603056,0.90301761756554366,0.80461043756340822,0.73721516099794193,0.71736927197173905,null,{"$f":"IF(AD232=\"\",\"\",AD250*2.2046*AD232/10000)","v":1.1481049618373196},1.0144639494549055,0.89545301472649386,0.79793278240975041,0.73067540078616933,0.71736927197173905,null,{"$f":"IF(AK232=\"\",\"\",AK250*2.2046*AK232/10000)","v":1.1380394285773874},1.005892451671029,0.88795697032716892,0.79089777824396623,0.72392482481344878,0.71736927197173905,null,{"$f":"IF(AR232=\"\",\"\",AR250*2.2046*AR232/10000)","v":1.1283638927666908},0.99730970613348158,0.88043815305997364,0.78350905658140713,0.71717141124620065,0.71736927197173905]
[]
["SID amino acids, %"]
["  Lys",1.1861119527718891,1.0487231011263827,0.92692570857780632,0.82606841929078001,0.75673053182615369,0.71839352504319809,null,1.176359663632115,1.0404298354051722,0.9198321876360902,0.81977155477303221,0.75037675735226672,0.71839352504319809,null,1.1684857665329609,1.0334387360651245,0.91378340553869708,0.81328394410468086,0.74466093217492246,0.71839352504319809,null,1.1606108994103048,1.0264515137337917,0.90637130018555012,0.80714498863815465,0.73903650635744667,0.71839352504319809,null,1.1526290098320124,1.0181241605607756,0.89928210531326824,0.80098309911292542,0.73289361495012595,0.71839352504319809,null,1.1499999999999999,1.0101833240253375,0.89234873408789994,0.79441650998473456,0.72657321918177553,0.71839352504319809,null,1.1399999999999999,1.0022507297378567,0.8856759586639249,0.78765042013618369,0.720259582186488,0.71839352504319809]
["  Ile:Lys",{"$f":"(SUMPRODUCT(B$9:B$229,Nutrients!$CY$8:$CY$228)+(IF($A$7=Nutrients!$B$8,Nutrients!$CY$8,Nutrients!$CY$9)*B$7)+(((IF($A$8=Nutrients!$B$79,Nutrients!$CY$79,(IF($A$8=Nutrients!$B$77,Nutrients!$CY$77,Nutrients!$CY$78)))))*B$8))/2000/B$236*100","v":62.49349603537744},{"$f":"(SUMPRODUCT(C$9:C$229,Nutrients!$CY$8:$CY$228)+(IF($A$7=Nutrients!$B$8,Nutrients!$CY$8,Nutrients!$CY$9)*C$7)+(((IF($A$8=Nutrients!$B$79,Nutrients!$CY$79,(IF($A$8=Nutrients!$B$77,Nutrients!$CY$77,Nutrients!$CY$78)))))*C$8))/2000/C$236*100","v":61.913365044093091},{"$f":"(SUMPRODUCT(D$9:D$229,Nutrients!$CY$8:$CY$228)+(IF($A$7=Nutrients!$B$8,Nutrients!$CY$8,Nutrients!$CY$9)*D$7)+(((IF($A$8=Nutrients!$B$79,Nutrients!$CY$79,(IF($A$8=Nutrients!$B$77,Nutrients!$CY$77,Nutrients!$CY$78)))))*D$8))/2000/D$236*100","v":61.503659114241785},{"$f":"(SUMPRODUCT(E$9:E$229,Nutrients!$CY$8:$CY$228)+(IF($A$7=Nutrients!$B$8,Nutrients!$CY$8,Nutrients!$CY$9)*E$7)+(((IF($A$8=Nutrients!$B$79,Nutrients!$CY$79,(IF($A$8=Nutrients!$B$77,Nutrients!$CY$77,Nutrients!$CY$78)))))*E$8))/2000/E$236*100","v":60.930382267932259},{"$f":"(SUMPRODUCT(F$9:F$229,Nutrients!$CY$8:$CY$228)+(IF($A$7=Nutrients!$B$8,Nutrients!$CY$8,Nutrients!$CY$9)*F$7)+(((IF($A$8=Nutrients!$B$79,Nutrients!$CY$79,(IF($A$8=Nutrients!$B$77,Nutrients!$CY$77,Nutrients!$CY$78)))))*F$8))/2000/F$236*100","v":60.645226830458597},{"$f":"(SUMPRODUCT(G$9:G$229,Nutrients!$CY$8:$CY$228)+(IF($A$7=Nutrients!$B$8,Nutrients!$CY$8,Nutrients!$CY$9)*G$7)+(((IF($A$8=Nutrients!$B$79,Nutrients!$CY$79,(IF($A$8=Nutrients!$B$77,Nutrients!$CY$77,Nutrients!$CY$78)))))*G$8))/2000/G$236*100","v":60.73149438608624},null,{"$f":"(SUMPRODUCT(I$9:I$229,Nutrients!$CY$8:$CY$228)+(IF($A$7=Nutrients!$B$8,Nutrients!$CY$8,Nutrients!$CY$9)*I$7)+(((IF($A$8=Nutrients!$B$79,Nutrients!$CY$79,(IF($A$8=Nutrients!$B$77,Nutrients!$CY$77,Nutrients!$CY$78)))))*I$8))/2000/I$236*100","v":62.404219723667218},{"$f":"(SUMPRODUCT(J$9:J$229,Nutrients!$CY$8:$CY$228)+(IF($A$7=Nutrients!$B$8,Nutrients!$CY$8,Nutrients!$CY$9)*J$7)+(((IF($A$8=Nutrients!$B$79,Nutrients!$CY$79,(IF($A$8=Nutrients!$B$77,Nutrients!$CY$77,Nutrients!$CY$78)))))*J$8))/2000/J$236*100","v":61.815872429711774},{"$f":"(SUMPRODUCT(K$9:K$229,Nutrients!$CY$8:$CY$228)+(IF($A$7=Nutrients!$B$8,Nutrients!$CY$8,Nutrients!$CY$9)*K$7)+(((IF($A$8=Nutrients!$B$79,Nutrients!$CY$79,(IF($A$8=Nutrients!$B$77,Nutrients!$CY$77,Nutrients!$CY$78)))))*K$8))/2000/K$236*100","v":61.398498752642261},{"$f":"(SUMPRODUCT(L$9:L$229,Nutrients!$CY$8:$CY$228)+(IF($A$7=Nutrients!$B$8,Nutrients!$CY$8,Nutrients!$CY$9)*L$7)+(((IF($A$8=Nutrients!$B$79,Nutrients!$CY$79,(IF($A$8=Nutrients!$B$77,Nutrients!$CY$77,Nutrients!$CY$78)))))*L$8))/2000/L$236*100","v":60.817279268609624},{"$f":"(SUMPRODUCT(M$9:M$229,Nutrients!$CY$8:$CY$228)+(IF($A$7=Nutrients!$B$8,Nutrients!$CY$8,Nutrients!$CY$9)*M$7)+(((IF($A$8=Nutrients!$B$79,Nutrients!$CY$79,(IF($A$8=Nutrients!$B$77,Nutrients!$CY$77,Nutrients!$CY$78)))))*M$8))/2000/M$236*100","v":60.517768247195747},{"$f":"(SUMPRODUCT(N$9:N$229,Nutrients!$CY$8:$CY$228)+(IF($A$7=Nutrients!$B$8,Nutrients!$CY$8,Nutrients!$CY$9)*N$7)+(((IF($A$8=Nutrients!$B$79,Nutrients!$CY$79,(IF($A$8=Nutrients!$B$77,Nutrients!$CY$77,Nutrients!$CY$78)))))*N$8))/2000/N$236*100","v":60.73149438608624},null,{"$f":"(SUMPRODUCT(P$9:P$229,Nutrients!$CY$8:$CY$228)+(IF($A$7=Nutrients!$B$8,Nutrients!$CY$8,Nutrients!$CY$9)*P$7)+(((IF($A$8=Nutrients!$B$79,Nutrients!$CY$79,(IF($A$8=Nutrients!$B$77,Nutrients!$CY$77,Nutrients!$CY$78)))))*P$8))/2000/P$236*100","v":62.322896759493617},{"$f":"(SUMPRODUCT(Q$9:Q$229,Nutrients!$CY$8:$CY$228)+(IF($A$7=Nutrients!$B$8,Nutrients!$CY$8,Nutrients!$CY$9)*Q$7)+(((IF($A$8=Nutrients!$B$79,Nutrients!$CY$79,(IF($A$8=Nutrients!$B$77,Nutrients!$CY$77,Nutrients!$CY$78)))))*Q$8))/2000/Q$236*100","v":61.724995362112935},{"$f":"(SUMPRODUCT(R$9:R$229,Nutrients!$CY$8:$CY$228)+(IF($A$7=Nutrients!$B$8,Nutrients!$CY$8,Nutrients!$CY$9)*R$7)+(((IF($A$8=Nutrients!$B$79,Nutrients!$CY$79,(IF($A$8=Nutrients!$B$77,Nutrients!$CY$77,Nutrients!$CY$78)))))*R$8))/2000/R$236*100","v":61.2997496598529},{"$f":"(SUMPRODUCT(S$9:S$229,Nutrients!$CY$8:$CY$228)+(IF($A$7=Nutrients!$B$8,Nutrients!$CY$8,Nutrients!$CY$9)*S$7)+(((IF($A$8=Nutrients!$B$79,Nutrients!$CY$79,(IF($A$8=Nutrients!$B$77,Nutrients!$CY$77,Nutrients!$CY$78)))))*S$8))/2000/S$236*100","v":60.697930186711361},{"$f":"(SUMPRODUCT(T$9:T$229,Nutrients!$CY$8:$CY$228)+(IF($A$7=Nutrients!$B$8,Nutrients!$CY$8,Nutrients!$CY$9)*T$7)+(((IF($A$8=Nutrients!$B$79,Nutrients!$CY$79,(IF($A$8=Nutrients!$B$77,Nutrients!$CY$77,Nutrients!$CY$78)))))*T$8))/2000/T$236*100","v":60.391776020212042},{"$f":"(SUMPRODUCT(U$9:U$229,Nutrients!$CY$8:$CY$228)+(IF($A$7=Nutrients!$B$8,Nutrients!$CY$8,Nutrients!$CY$9)*U$7)+(((IF($A$8=Nutrients!$B$79,Nutrients!$CY$79,(IF($A$8=Nutrients!$B$77,Nutrients!$CY$77,Nutrients!$CY$78)))))*U$8))/2000/U$236*100","v":60.73149438608624},null,{"$f":"(SUMPRODUCT(W$9:W$229,Nutrients!$CY$8:$CY$228)+(IF($A$7=Nutrients!$B$8,Nutrients!$CY$8,Nutrients!$CY$9)*W$7)+(((IF($A$8=Nutrients!$B$79,Nutrients!$CY$79,(IF($A$8=Nutrients!$B$77,Nutrients!$CY$77,Nutrients!$CY$78)))))*W$8))/2000/W$236*100","v":62.240610893500381},{"$f":"(SUMPRODUCT(X$9:X$229,Nutrients!$CY$8:$CY$228)+(IF($A$7=Nutrients!$B$8,Nutrients!$CY$8,Nutrients!$CY$9)*X$7)+(((IF($A$8=Nutrients!$B$79,Nutrients!$CY$79,(IF($A$8=Nutrients!$B$77,Nutrients!$CY$77,Nutrients!$CY$78)))))*X$8))/2000/X$236*100","v":61.633126090689181},{"$f":"(SUMPRODUCT(Y$9:Y$229,Nutrients!$CY$8:$CY$228)+(IF($A$7=Nutrients!$B$8,Nutrients!$CY$8,Nutrients!$CY$9)*Y$7)+(((IF($A$8=Nutrients!$B$79,Nutrients!$CY$79,(IF($A$8=Nutrients!$B$77,Nutrients!$CY$77,Nutrients!$CY$78)))))*Y$8))/2000/Y$236*100","v":61.18905134069864},{"$f":"(SUMPRODUCT(Z$9:Z$229,Nutrients!$CY$8:$CY$228)+(IF($A$7=Nutrients!$B$8,Nutrients!$CY$8,Nutrients!$CY$9)*Z$7)+(((IF($A$8=Nutrients!$B$79,Nutrients!$CY$79,(IF($A$8=Nutrients!$B$77,Nutrients!$CY$77,Nutrients!$CY$78)))))*Z$8))/2000/Z$236*100","v":60.579916957418931},{"$f":"(SUMPRODUCT(AA$9:AA$229,Nutrients!$CY$8:$CY$228)+(IF($A$7=Nutrients!$B$8,Nutrients!$CY$8,Nutrients!$CY$9)*AA$7)+(((IF($A$8=Nutrients!$B$79,Nutrients!$CY$79,(IF($A$8=Nutrients!$B$77,Nutrients!$CY$77,Nutrients!$CY$78)))))*AA$8))/2000/AA$236*100","v":60.264776971602508},{"$f":"(SUMPRODUCT(AB$9:AB$229,Nutrients!$CY$8:$CY$228)+(IF($A$7=Nutrients!$B$8,Nutrients!$CY$8,Nutrients!$CY$9)*AB$7)+(((IF($A$8=Nutrients!$B$79,Nutrients!$CY$79,(IF($A$8=Nutrients!$B$77,Nutrients!$CY$77,Nutrients!$CY$78)))))*AB$8))/2000/AB$236*100","v":60.73149438608624},null,{"$f":"(SUMPRODUCT(AD$9:AD$229,Nutrients!$CY$8:$CY$228)+(IF($A$7=Nutrients!$B$8,Nutrients!$CY$8,Nutrients!$CY$9)*AD$7)+(((IF($A$8=Nutrients!$B$79,Nutrients!$CY$79,(IF($A$8=Nutrients!$B$77,Nutrients!$CY$77,Nutrients!$CY$78)))))*AD$8))/2000/AD$236*100","v":62.156534524333551},{"$f":"(SUMPRODUCT(AE$9:AE$229,Nutrients!$CY$8:$CY$228)+(IF($A$7=Nutrients!$B$8,Nutrients!$CY$8,Nutrients!$CY$9)*AE$7)+(((IF($A$8=Nutrients!$B$79,Nutrients!$CY$79,(IF($A$8=Nutrients!$B$77,Nutrients!$CY$77,Nutrients!$CY$78)))))*AE$8))/2000/AE$236*100","v":61.53088160233321},{"$f":"(SUMPRODUCT(AF$9:AF$229,Nutrients!$CY$8:$CY$228)+(IF($A$7=Nutrients!$B$8,Nutrients!$CY$8,Nutrients!$CY$9)*AF$7)+(((IF($A$8=Nutrients!$B$79,Nutrients!$CY$79,(IF($A$8=Nutrients!$B$77,Nutrients!$CY$77,Nutrients!$CY$78)))))*AF$8))/2000/AF$236*100","v":61.07915989982947},{"$f":"(SUMPRODUCT(AG$9:AG$229,Nutrients!$CY$8:$CY$228)+(IF($A$7=Nutrients!$B$8,Nutrients!$CY$8,Nutrients!$CY$9)*AG$7)+(((IF($A$8=Nutrients!$B$79,Nutrients!$CY$79,(IF($A$8=Nutrients!$B$77,Nutrients!$CY$77,Nutrients!$CY$78)))))*AG$8))/2000/AG$236*100","v":60.458629572095376},{"$f":"(SUMPRODUCT(AH$9:AH$229,Nutrients!$CY$8:$CY$228)+(IF($A$7=Nutrients!$B$8,Nutrients!$CY$8,Nutrients!$CY$9)*AH$7)+(((IF($A$8=Nutrients!$B$79,Nutrients!$CY$79,(IF($A$8=Nutrients!$B$77,Nutrients!$CY$77,Nutrients!$CY$78)))))*AH$8))/2000/AH$236*100","v":60.121865972026555},{"$f":"(SUMPRODUCT(AI$9:AI$229,Nutrients!$CY$8:$CY$228)+(IF($A$7=Nutrients!$B$8,Nutrients!$CY$8,Nutrients!$CY$9)*AI$7)+(((IF($A$8=Nutrients!$B$79,Nutrients!$CY$79,(IF($A$8=Nutrients!$B$77,Nutrients!$CY$77,Nutrients!$CY$78)))))*AI$8))/2000/AI$236*100","v":60.73149438608624},null,{"$f":"(SUMPRODUCT(AK$9:AK$229,Nutrients!$CY$8:$CY$228)+(IF($A$7=Nutrients!$B$8,Nutrients!$CY$8,Nutrients!$CY$9)*AK$7)+(((IF($A$8=Nutrients!$B$79,Nutrients!$CY$79,(IF($A$8=Nutrients!$B$77,Nutrients!$CY$77,Nutrients!$CY$78)))))*AK$8))/2000/AK$236*100","v":62.100648948042839},{"$f":"(SUMPRODUCT(AL$9:AL$229,Nutrients!$CY$8:$CY$228)+(IF($A$7=Nutrients!$B$8,Nutrients!$CY$8,Nutrients!$CY$9)*AL$7)+(((IF($A$8=Nutrients!$B$79,Nutrients!$CY$79,(IF($A$8=Nutrients!$B$77,Nutrients!$CY$77,Nutrients!$CY$78)))))*AL$8))/2000/AL$236*100","v":61.429720766441044},{"$f":"(SUMPRODUCT(AM$9:AM$229,Nutrients!$CY$8:$CY$228)+(IF($A$7=Nutrients!$B$8,Nutrients!$CY$8,Nutrients!$CY$9)*AM$7)+(((IF($A$8=Nutrients!$B$79,Nutrients!$CY$79,(IF($A$8=Nutrients!$B$77,Nutrients!$CY$77,Nutrients!$CY$78)))))*AM$8))/2000/AM$236*100","v":60.967597514203639},{"$f":"(SUMPRODUCT(AN$9:AN$229,Nutrients!$CY$8:$CY$228)+(IF($A$7=Nutrients!$B$8,Nutrients!$CY$8,Nutrients!$CY$9)*AN$7)+(((IF($A$8=Nutrients!$B$79,Nutrients!$CY$79,(IF($A$8=Nutrients!$B$77,Nutrients!$CY$77,Nutrients!$CY$78)))))*AN$8))/2000/AN$236*100","v":60.325888316437691},{"$f":"(SUMPRODUCT(AO$9:AO$229,Nutrients!$CY$8:$CY$228)+(IF($A$7=Nutrients!$B$8,Nutrients!$CY$8,Nutrients!$CY$9)*AO$7)+(((IF($A$8=Nutrients!$B$79,Nutrients!$CY$79,(IF($A$8=Nutrients!$B$77,Nutrients!$CY$77,Nutrients!$CY$78)))))*AO$8))/2000/AO$236*100","v":59.970462515356751},{"$f":"(SUMPRODUCT(AP$9:AP$229,Nutrients!$CY$8:$CY$228)+(IF($A$7=Nutrients!$B$8,Nutrients!$CY$8,Nutrients!$CY$9)*AP$7)+(((IF($A$8=Nutrients!$B$79,Nutrients!$CY$79,(IF($A$8=Nutrients!$B$77,Nutrients!$CY$77,Nutrients!$CY$78)))))*AP$8))/2000/AP$236*100","v":60.73149438608624},null,{"$f":"(SUMPRODUCT(AR$9:AR$229,Nutrients!$CY$8:$CY$228)+(IF($A$7=Nutrients!$B$8,Nutrients!$CY$8,Nutrients!$CY$9)*AR$7)+(((IF($A$8=Nutrients!$B$79,Nutrients!$CY$79,(IF($A$8=Nutrients!$B$77,Nutrients!$CY$77,Nutrients!$CY$78)))))*AR$8))/2000/AR$236*100","v":62.003607900669444},{"$f":"(SUMPRODUCT(AS$9:AS$229,Nutrients!$CY$8:$CY$228)+(IF($A$7=Nutrients!$B$8,Nutrients!$CY$8,Nutrients!$CY$9)*AS$7)+(((IF($A$8=Nutrients!$B$79,Nutrients!$CY$79,(IF($A$8=Nutrients!$B$77,Nutrients!$CY$77,Nutrients!$CY$78)))))*AS$8))/2000/AS$236*100","v":61.326913911699712},{"$f":"(SUMPRODUCT(AT$9:AT$229,Nutrients!$CY$8:$CY$228)+(IF($A$7=Nutrients!$B$8,Nutrients!$CY$8,Nutrients!$CY$9)*AT$7)+(((IF($A$8=Nutrients!$B$79,Nutrients!$CY$79,(IF($A$8=Nutrients!$B$77,Nutrients!$CY$77,Nutrients!$CY$78)))))*AT$8))/2000/AT$236*100","v":60.856353263542736},{"$f":"(SUMPRODUCT(AU$9:AU$229,Nutrients!$CY$8:$CY$228)+(IF($A$7=Nutrients!$B$8,Nutrients!$CY$8,Nutrients!$CY$9)*AU$7)+(((IF($A$8=Nutrients!$B$79,Nutrients!$CY$79,(IF($A$8=Nutrients!$B$77,Nutrients!$CY$77,Nutrients!$CY$78)))))*AU$8))/2000/AU$236*100","v":60.183230921999019},{"$f":"(SUMPRODUCT(AV$9:AV$229,Nutrients!$CY$8:$CY$228)+(IF($A$7=Nutrients!$B$8,Nutrients!$CY$8,Nutrients!$CY$9)*AV$7)+(((IF($A$8=Nutrients!$B$79,Nutrients!$CY$79,(IF($A$8=Nutrients!$B$77,Nutrients!$CY$77,Nutrients!$CY$78)))))*AV$8))/2000/AV$236*100","v":59.816542175055218},{"$f":"(SUMPRODUCT(AW$9:AW$229,Nutrients!$CY$8:$CY$228)+(IF($A$7=Nutrients!$B$8,Nutrients!$CY$8,Nutrients!$CY$9)*AW$7)+(((IF($A$8=Nutrients!$B$79,Nutrients!$CY$79,(IF($A$8=Nutrients!$B$77,Nutrients!$CY$77,Nutrients!$CY$78)))))*AW$8))/2000/AW$236*100","v":60.73149438608624}]
["  Leu:Lys",{"$f":"(SUMPRODUCT(B$9:B$229,Nutrients!$CZ$8:$CZ$228)+(IF($A$7=Nutrients!$B$8,Nutrients!$CZ$8,Nutrients!$CZ$9)*B$7)+(((IF($A$8=Nutrients!$B$79,Nutrients!$CZ$79,(IF($A$8=Nutrients!$B$77,Nutrients!$CZ$77,Nutrients!$CZ$78)))))*B$8))/2000/B$236*100","v":129.6913711527971},{"$f":"(SUMPRODUCT(C$9:C$229,Nutrients!$CZ$8:$CZ$228)+(IF($A$7=Nutrients!$B$8,Nutrients!$CZ$8,Nutrients!$CZ$9)*C$7)+(((IF($A$8=Nutrients!$B$79,Nutrients!$CZ$79,(IF($A$8=Nutrients!$B$77,Nutrients!$CZ$77,Nutrients!$CZ$78)))))*C$8))/2000/C$236*100","v":134.50017414165401},{"$f":"(SUMPRODUCT(D$9:D$229,Nutrients!$CZ$8:$CZ$228)+(IF($A$7=Nutrients!$B$8,Nutrients!$CZ$8,Nutrients!$CZ$9)*D$7)+(((IF($A$8=Nutrients!$B$79,Nutrients!$CZ$79,(IF($A$8=Nutrients!$B$77,Nutrients!$CZ$77,Nutrients!$CZ$78)))))*D$8))/2000/D$236*100","v":140.31419316632173},{"$f":"(SUMPRODUCT(E$9:E$229,Nutrients!$CZ$8:$CZ$228)+(IF($A$7=Nutrients!$B$8,Nutrients!$CZ$8,Nutrients!$CZ$9)*E$7)+(((IF($A$8=Nutrients!$B$79,Nutrients!$CZ$79,(IF($A$8=Nutrients!$B$77,Nutrients!$CZ$77,Nutrients!$CZ$78)))))*E$8))/2000/E$236*100","v":146.22101496424654},{"$f":"(SUMPRODUCT(F$9:F$229,Nutrients!$CZ$8:$CZ$228)+(IF($A$7=Nutrients!$B$8,Nutrients!$CZ$8,Nutrients!$CZ$9)*F$7)+(((IF($A$8=Nutrients!$B$79,Nutrients!$CZ$79,(IF($A$8=Nutrients!$B$77,Nutrients!$CZ$77,Nutrients!$CZ$78)))))*F$8))/2000/F$236*100","v":151.50724048169781},{"$f":"(SUMPRODUCT(G$9:G$229,Nutrients!$CZ$8:$CZ$228)+(IF($A$7=Nutrients!$B$8,Nutrients!$CZ$8,Nutrients!$CZ$9)*G$7)+(((IF($A$8=Nutrients!$B$79,Nutrients!$CZ$79,(IF($A$8=Nutrients!$B$77,Nutrients!$CZ$77,Nutrients!$CZ$78)))))*G$8))/2000/G$236*100","v":155.21195132466949},null,{"$f":"(SUMPRODUCT(I$9:I$229,Nutrients!$CZ$8:$CZ$228)+(IF($A$7=Nutrients!$B$8,Nutrients!$CZ$8,Nutrients!$CZ$9)*I$7)+(((IF($A$8=Nutrients!$B$79,Nutrients!$CZ$79,(IF($A$8=Nutrients!$B$77,Nutrients!$CZ$77,Nutrients!$CZ$78)))))*I$8))/2000/I$236*100","v":135.14916616405517},{"$f":"(SUMPRODUCT(J$9:J$229,Nutrients!$CZ$8:$CZ$228)+(IF($A$7=Nutrients!$B$8,Nutrients!$CZ$8,Nutrients!$CZ$9)*J$7)+(((IF($A$8=Nutrients!$B$79,Nutrients!$CZ$79,(IF($A$8=Nutrients!$B$77,Nutrients!$CZ$77,Nutrients!$CZ$78)))))*J$8))/2000/J$236*100","v":140.66083888124047},{"$f":"(SUMPRODUCT(K$9:K$229,Nutrients!$CZ$8:$CZ$228)+(IF($A$7=Nutrients!$B$8,Nutrients!$CZ$8,Nutrients!$CZ$9)*K$7)+(((IF($A$8=Nutrients!$B$79,Nutrients!$CZ$79,(IF($A$8=Nutrients!$B$77,Nutrients!$CZ$77,Nutrients!$CZ$78)))))*K$8))/2000/K$236*100","v":147.2760793725501},{"$f":"(SUMPRODUCT(L$9:L$229,Nutrients!$CZ$8:$CZ$228)+(IF($A$7=Nutrients!$B$8,Nutrients!$CZ$8,Nutrients!$CZ$9)*L$7)+(((IF($A$8=Nutrients!$B$79,Nutrients!$CZ$79,(IF($A$8=Nutrients!$B$77,Nutrients!$CZ$77,Nutrients!$CZ$78)))))*L$8))/2000/L$236*100","v":154.05158187769416},{"$f":"(SUMPRODUCT(M$9:M$229,Nutrients!$CZ$8:$CZ$228)+(IF($A$7=Nutrients!$B$8,Nutrients!$CZ$8,Nutrients!$CZ$9)*M$7)+(((IF($A$8=Nutrients!$B$79,Nutrients!$CZ$79,(IF($A$8=Nutrients!$B$77,Nutrients!$CZ$77,Nutrients!$CZ$78)))))*M$8))/2000/M$236*100","v":160.10470692285998},{"$f":"(SUMPRODUCT(N$9:N$229,Nutrients!$CZ$8:$CZ$228)+(IF($A$7=Nutrients!$B$8,Nutrients!$CZ$8,Nutrients!$CZ$9)*N$7)+(((IF($A$8=Nutrients!$B$79,Nutrients!$CZ$79,(IF($A$8=Nutrients!$B$77,Nutrients!$CZ$77,Nutrients!$CZ$78)))))*N$8))/2000/N$236*100","v":155.21195132466949},null,{"$f":"(SUMPRODUCT(P$9:P$229,Nutrients!$CZ$8:$CZ$228)+(IF($A$7=Nutrients!$B$8,Nutrients!$CZ$8,Nutrients!$CZ$9)*P$7)+(((IF($A$8=Nutrients!$B$79,Nutrients!$CZ$79,(IF($A$8=Nutrients!$B$77,Nutrients!$CZ$77,Nutrients!$CZ$78)))))*P$8))/2000/P$236*100","v":140.62429288491089},{"$f":"(SUMPRODUCT(Q$9:Q$229,Nutrients!$CZ$8:$CZ$228)+(IF($A$7=Nutrients!$B$8,Nutrients!$CZ$8,Nutrients!$CZ$9)*Q$7)+(((IF($A$8=Nutrients!$B$79,Nutrients!$CZ$79,(IF($A$8=Nutrients!$B$77,Nutrients!$CZ$77,Nutrients!$CZ$78)))))*Q$8))/2000/Q$236*100","v":146.85489649509384},{"$f":"(SUMPRODUCT(R$9:R$229,Nutrients!$CZ$8:$CZ$228)+(IF($A$7=Nutrients!$B$8,Nutrients!$CZ$8,Nutrients!$CZ$9)*R$7)+(((IF($A$8=Nutrients!$B$79,Nutrients!$CZ$79,(IF($A$8=Nutrients!$B$77,Nutrients!$CZ$77,Nutrients!$CZ$78)))))*R$8))/2000/R$236*100","v":154.27901929032052},{"$f":"(SUMPRODUCT(S$9:S$229,Nutrients!$CZ$8:$CZ$228)+(IF($A$7=Nutrients!$B$8,Nutrients!$CZ$8,Nutrients!$CZ$9)*S$7)+(((IF($A$8=Nutrients!$B$79,Nutrients!$CZ$79,(IF($A$8=Nutrients!$B$77,Nutrients!$CZ$77,Nutrients!$CZ$78)))))*S$8))/2000/S$236*100","v":162.00168375657071},{"$f":"(SUMPRODUCT(T$9:T$229,Nutrients!$CZ$8:$CZ$228)+(IF($A$7=Nutrients!$B$8,Nutrients!$CZ$8,Nutrients!$CZ$9)*T$7)+(((IF($A$8=Nutrients!$B$79,Nutrients!$CZ$79,(IF($A$8=Nutrients!$B$77,Nutrients!$CZ$77,Nutrients!$CZ$78)))))*T$8))/2000/T$236*100","v":168.7661099180946},{"$f":"(SUMPRODUCT(U$9:U$229,Nutrients!$CZ$8:$CZ$228)+(IF($A$7=Nutrients!$B$8,Nutrients!$CZ$8,Nutrients!$CZ$9)*U$7)+(((IF($A$8=Nutrients!$B$79,Nutrients!$CZ$79,(IF($A$8=Nutrients!$B$77,Nutrients!$CZ$77,Nutrients!$CZ$78)))))*U$8))/2000/U$236*100","v":155.21195132466949},null,{"$f":"(SUMPRODUCT(W$9:W$229,Nutrients!$CZ$8:$CZ$228)+(IF($A$7=Nutrients!$B$8,Nutrients!$CZ$8,Nutrients!$CZ$9)*W$7)+(((IF($A$8=Nutrients!$B$79,Nutrients!$CZ$79,(IF($A$8=Nutrients!$B$77,Nutrients!$CZ$77,Nutrients!$CZ$78)))))*W$8))/2000/W$236*100","v":146.17468028440169},{"$f":"(SUMPRODUCT(X$9:X$229,Nutrients!$CZ$8:$CZ$228)+(IF($A$7=Nutrients!$B$8,Nutrients!$CZ$8,Nutrients!$CZ$9)*X$7)+(((IF($A$8=Nutrients!$B$79,Nutrients!$CZ$79,(IF($A$8=Nutrients!$B$77,Nutrients!$CZ$77,Nutrients!$CZ$78)))))*X$8))/2000/X$236*100","v":153.13451809248585},{"$f":"(SUMPRODUCT(Y$9:Y$229,Nutrients!$CZ$8:$CZ$228)+(IF($A$7=Nutrients!$B$8,Nutrients!$CZ$8,Nutrients!$CZ$9)*Y$7)+(((IF($A$8=Nutrients!$B$79,Nutrients!$CZ$79,(IF($A$8=Nutrients!$B$77,Nutrients!$CZ$77,Nutrients!$CZ$78)))))*Y$8))/2000/Y$236*100","v":161.47479183039917},{"$f":"(SUMPRODUCT(Z$9:Z$229,Nutrients!$CZ$8:$CZ$228)+(IF($A$7=Nutrients!$B$8,Nutrients!$CZ$8,Nutrients!$CZ$9)*Z$7)+(((IF($A$8=Nutrients!$B$79,Nutrients!$CZ$79,(IF($A$8=Nutrients!$B$77,Nutrients!$CZ$77,Nutrients!$CZ$78)))))*Z$8))/2000/Z$236*100","v":170.04687685646215},{"$f":"(SUMPRODUCT(AA$9:AA$229,Nutrients!$CZ$8:$CZ$228)+(IF($A$7=Nutrients!$B$8,Nutrients!$CZ$8,Nutrients!$CZ$9)*AA$7)+(((IF($A$8=Nutrients!$B$79,Nutrients!$CZ$79,(IF($A$8=Nutrients!$B$77,Nutrients!$CZ$77,Nutrients!$CZ$78)))))*AA$8))/2000/AA$236*100","v":177.55101936876659},{"$f":"(SUMPRODUCT(AB$9:AB$229,Nutrients!$CZ$8:$CZ$228)+(IF($A$7=Nutrients!$B$8,Nutrients!$CZ$8,Nutrients!$CZ$9)*AB$7)+(((IF($A$8=Nutrients!$B$79,Nutrients!$CZ$79,(IF($A$8=Nutrients!$B$77,Nutrients!$CZ$77,Nutrients!$CZ$78)))))*AB$8))/2000/AB$236*100","v":155.21195132466949},null,{"$f":"(SUMPRODUCT(AD$9:AD$229,Nutrients!$CZ$8:$CZ$228)+(IF($A$7=Nutrients!$B$8,Nutrients!$CZ$8,Nutrients!$CZ$9)*AD$7)+(((IF($A$8=Nutrients!$B$79,Nutrients!$CZ$79,(IF($A$8=Nutrients!$B$77,Nutrients!$CZ$77,Nutrients!$CZ$78)))))*AD$8))/2000/AD$236*100","v":151.80552535353348},{"$f":"(SUMPRODUCT(AE$9:AE$229,Nutrients!$CZ$8:$CZ$228)+(IF($A$7=Nutrients!$B$8,Nutrients!$CZ$8,Nutrients!$CZ$9)*AE$7)+(((IF($A$8=Nutrients!$B$79,Nutrients!$CZ$79,(IF($A$8=Nutrients!$B$77,Nutrients!$CZ$77,Nutrients!$CZ$78)))))*AE$8))/2000/AE$236*100","v":159.58317331551683},{"$f":"(SUMPRODUCT(AF$9:AF$229,Nutrients!$CZ$8:$CZ$228)+(IF($A$7=Nutrients!$B$8,Nutrients!$CZ$8,Nutrients!$CZ$9)*AF$7)+(((IF($A$8=Nutrients!$B$79,Nutrients!$CZ$79,(IF($A$8=Nutrients!$B$77,Nutrients!$CZ$77,Nutrients!$CZ$78)))))*AF$8))/2000/AF$236*100","v":168.76312717711107},{"$f":"(SUMPRODUCT(AG$9:AG$229,Nutrients!$CZ$8:$CZ$228)+(IF($A$7=Nutrients!$B$8,Nutrients!$CZ$8,Nutrients!$CZ$9)*AG$7)+(((IF($A$8=Nutrients!$B$79,Nutrients!$CZ$79,(IF($A$8=Nutrients!$B$77,Nutrients!$CZ$77,Nutrients!$CZ$78)))))*AG$8))/2000/AG$236*100","v":178.20984251182003},{"$f":"(SUMPRODUCT(AH$9:AH$229,Nutrients!$CZ$8:$CZ$228)+(IF($A$7=Nutrients!$B$8,Nutrients!$CZ$8,Nutrients!$CZ$9)*AH$7)+(((IF($A$8=Nutrients!$B$79,Nutrients!$CZ$79,(IF($A$8=Nutrients!$B$77,Nutrients!$CZ$77,Nutrients!$CZ$78)))))*AH$8))/2000/AH$236*100","v":186.48283883053674},{"$f":"(SUMPRODUCT(AI$9:AI$229,Nutrients!$CZ$8:$CZ$228)+(IF($A$7=Nutrients!$B$8,Nutrients!$CZ$8,Nutrients!$CZ$9)*AI$7)+(((IF($A$8=Nutrients!$B$79,Nutrients!$CZ$79,(IF($A$8=Nutrients!$B$77,Nutrients!$CZ$77,Nutrients!$CZ$78)))))*AI$8))/2000/AI$236*100","v":155.21195132466949},null,{"$f":"(SUMPRODUCT(AK$9:AK$229,Nutrients!$CZ$8:$CZ$228)+(IF($A$7=Nutrients!$B$8,Nutrients!$CZ$8,Nutrients!$CZ$9)*AK$7)+(((IF($A$8=Nutrients!$B$79,Nutrients!$CZ$79,(IF($A$8=Nutrients!$B$77,Nutrients!$CZ$77,Nutrients!$CZ$78)))))*AK$8))/2000/AK$236*100","v":157.22824189377215},{"$f":"(SUMPRODUCT(AL$9:AL$229,Nutrients!$CZ$8:$CZ$228)+(IF($A$7=Nutrients!$B$8,Nutrients!$CZ$8,Nutrients!$CZ$9)*AL$7)+(((IF($A$8=Nutrients!$B$79,Nutrients!$CZ$79,(IF($A$8=Nutrients!$B$77,Nutrients!$CZ$77,Nutrients!$CZ$78)))))*AL$8))/2000/AL$236*100","v":166.11202399208233},{"$f":"(SUMPRODUCT(AM$9:AM$229,Nutrients!$CZ$8:$CZ$228)+(IF($A$7=Nutrients!$B$8,Nutrients!$CZ$8,Nutrients!$CZ$9)*AM$7)+(((IF($A$8=Nutrients!$B$79,Nutrients!$CZ$79,(IF($A$8=Nutrients!$B$77,Nutrients!$CZ$77,Nutrients!$CZ$78)))))*AM$8))/2000/AM$236*100","v":176.14549849047239},{"$f":"(SUMPRODUCT(AN$9:AN$229,Nutrients!$CZ$8:$CZ$228)+(IF($A$7=Nutrients!$B$8,Nutrients!$CZ$8,Nutrients!$CZ$9)*AN$7)+(((IF($A$8=Nutrients!$B$79,Nutrients!$CZ$79,(IF($A$8=Nutrients!$B$77,Nutrients!$CZ$77,Nutrients!$CZ$78)))))*AN$8))/2000/AN$236*100","v":186.5105836196264},{"$f":"(SUMPRODUCT(AO$9:AO$229,Nutrients!$CZ$8:$CZ$228)+(IF($A$7=Nutrients!$B$8,Nutrients!$CZ$8,Nutrients!$CZ$9)*AO$7)+(((IF($A$8=Nutrients!$B$79,Nutrients!$CZ$79,(IF($A$8=Nutrients!$B$77,Nutrients!$CZ$77,Nutrients!$CZ$78)))))*AO$8))/2000/AO$236*100","v":195.56432340080264},{"$f":"(SUMPRODUCT(AP$9:AP$229,Nutrients!$CZ$8:$CZ$228)+(IF($A$7=Nutrients!$B$8,Nutrients!$CZ$8,Nutrients!$CZ$9)*AP$7)+(((IF($A$8=Nutrients!$B$79,Nutrients!$CZ$79,(IF($A$8=Nutrients!$B$77,Nutrients!$CZ$77,Nutrients!$CZ$78)))))*AP$8))/2000/AP$236*100","v":155.21195132466949},null,{"$f":"(SUMPRODUCT(AR$9:AR$229,Nutrients!$CZ$8:$CZ$228)+(IF($A$7=Nutrients!$B$8,Nutrients!$CZ$8,Nutrients!$CZ$9)*AR$7)+(((IF($A$8=Nutrients!$B$79,Nutrients!$CZ$79,(IF($A$8=Nutrients!$B$77,Nutrients!$CZ$77,Nutrients!$CZ$78)))))*AR$8))/2000/AR$236*100","v":163.10777105101943},{"$f":"(SUMPRODUCT(AS$9:AS$229,Nutrients!$CZ$8:$CZ$228)+(IF($A$7=Nutrients!$B$8,Nutrients!$CZ$8,Nutrients!$CZ$9)*AS$7)+(((IF($A$8=Nutrients!$B$79,Nutrients!$CZ$79,(IF($A$8=Nutrients!$B$77,Nutrients!$CZ$77,Nutrients!$CZ$78)))))*AS$8))/2000/AS$236*100","v":172.7430556274353},{"$f":"(SUMPRODUCT(AT$9:AT$229,Nutrients!$CZ$8:$CZ$228)+(IF($A$7=Nutrients!$B$8,Nutrients!$CZ$8,Nutrients!$CZ$9)*AT$7)+(((IF($A$8=Nutrients!$B$79,Nutrients!$CZ$79,(IF($A$8=Nutrients!$B$77,Nutrients!$CZ$77,Nutrients!$CZ$78)))))*AT$8))/2000/AT$236*100","v":183.61672916058433},{"$f":"(SUMPRODUCT(AU$9:AU$229,Nutrients!$CZ$8:$CZ$228)+(IF($A$7=Nutrients!$B$8,Nutrients!$CZ$8,Nutrients!$CZ$9)*AU$7)+(((IF($A$8=Nutrients!$B$79,Nutrients!$CZ$79,(IF($A$8=Nutrients!$B$77,Nutrients!$CZ$77,Nutrients!$CZ$78)))))*AU$8))/2000/AU$236*100","v":194.93886231982762},{"$f":"(SUMPRODUCT(AV$9:AV$229,Nutrients!$CZ$8:$CZ$228)+(IF($A$7=Nutrients!$B$8,Nutrients!$CZ$8,Nutrients!$CZ$9)*AV$7)+(((IF($A$8=Nutrients!$B$79,Nutrients!$CZ$79,(IF($A$8=Nutrients!$B$77,Nutrients!$CZ$77,Nutrients!$CZ$78)))))*AV$8))/2000/AV$236*100","v":204.80455339223101},{"$f":"(SUMPRODUCT(AW$9:AW$229,Nutrients!$CZ$8:$CZ$228)+(IF($A$7=Nutrients!$B$8,Nutrients!$CZ$8,Nutrients!$CZ$9)*AW$7)+(((IF($A$8=Nutrients!$B$79,Nutrients!$CZ$79,(IF($A$8=Nutrients!$B$77,Nutrients!$CZ$77,Nutrients!$CZ$78)))))*AW$8))/2000/AW$236*100","v":155.21195132466949}]
["  Met:Lys",{"$f":"(SUMPRODUCT(B$9:B$229,Nutrients!$DB$8:$DB$228)+(IF($A$7=Nutrients!$B$8,Nutrients!$DB$8,Nutrients!$DB$9)*B$7)+(((IF($A$8=Nutrients!$B$79,Nutrients!$DB$79,(IF($A$8=Nutrients!$B$77,Nutrients!$DB$77,Nutrients!$DB$78)))))*B$8))/2000/B$236*100","v":32.176483378772197},{"$f":"(SUMPRODUCT(C$9:C$229,Nutrients!$DB$8:$DB$228)+(IF($A$7=Nutrients!$B$8,Nutrients!$DB$8,Nutrients!$DB$9)*C$7)+(((IF($A$8=Nutrients!$B$79,Nutrients!$DB$79,(IF($A$8=Nutrients!$B$77,Nutrients!$DB$77,Nutrients!$DB$78)))))*C$8))/2000/C$236*100","v":31.3204641187241},{"$f":"(SUMPRODUCT(D$9:D$229,Nutrients!$DB$8:$DB$228)+(IF($A$7=Nutrients!$B$8,Nutrients!$DB$8,Nutrients!$DB$9)*D$7)+(((IF($A$8=Nutrients!$B$79,Nutrients!$DB$79,(IF($A$8=Nutrients!$B$77,Nutrients!$DB$77,Nutrients!$DB$78)))))*D$8))/2000/D$236*100","v":30.28033378224459},{"$f":"(SUMPRODUCT(E$9:E$229,Nutrients!$DB$8:$DB$228)+(IF($A$7=Nutrients!$B$8,Nutrients!$DB$8,Nutrients!$DB$9)*E$7)+(((IF($A$8=Nutrients!$B$79,Nutrients!$DB$79,(IF($A$8=Nutrients!$B$77,Nutrients!$DB$77,Nutrients!$DB$78)))))*E$8))/2000/E$236*100","v":30.221879794096772},{"$f":"(SUMPRODUCT(F$9:F$229,Nutrients!$DB$8:$DB$228)+(IF($A$7=Nutrients!$B$8,Nutrients!$DB$8,Nutrients!$DB$9)*F$7)+(((IF($A$8=Nutrients!$B$79,Nutrients!$DB$79,(IF($A$8=Nutrients!$B$77,Nutrients!$DB$77,Nutrients!$DB$78)))))*F$8))/2000/F$236*100","v":29.27572686201405},{"$f":"(SUMPRODUCT(G$9:G$229,Nutrients!$DB$8:$DB$228)+(IF($A$7=Nutrients!$B$8,Nutrients!$DB$8,Nutrients!$DB$9)*G$7)+(((IF($A$8=Nutrients!$B$79,Nutrients!$DB$79,(IF($A$8=Nutrients!$B$77,Nutrients!$DB$77,Nutrients!$DB$78)))))*G$8))/2000/G$236*100","v":29.609559948404552},null,{"$f":"(SUMPRODUCT(I$9:I$229,Nutrients!$DB$8:$DB$228)+(IF($A$7=Nutrients!$B$8,Nutrients!$DB$8,Nutrients!$DB$9)*I$7)+(((IF($A$8=Nutrients!$B$79,Nutrients!$DB$79,(IF($A$8=Nutrients!$B$77,Nutrients!$DB$77,Nutrients!$DB$78)))))*I$8))/2000/I$236*100","v":31.972666813313062},{"$f":"(SUMPRODUCT(J$9:J$229,Nutrients!$DB$8:$DB$228)+(IF($A$7=Nutrients!$B$8,Nutrients!$DB$8,Nutrients!$DB$9)*J$7)+(((IF($A$8=Nutrients!$B$79,Nutrients!$DB$79,(IF($A$8=Nutrients!$B$77,Nutrients!$DB$77,Nutrients!$DB$78)))))*J$8))/2000/J$236*100","v":31.063316062240133},{"$f":"(SUMPRODUCT(K$9:K$229,Nutrients!$DB$8:$DB$228)+(IF($A$7=Nutrients!$B$8,Nutrients!$DB$8,Nutrients!$DB$9)*K$7)+(((IF($A$8=Nutrients!$B$79,Nutrients!$DB$79,(IF($A$8=Nutrients!$B$77,Nutrients!$DB$77,Nutrients!$DB$78)))))*K$8))/2000/K$236*100","v":30.038079088916092},{"$f":"(SUMPRODUCT(L$9:L$229,Nutrients!$DB$8:$DB$228)+(IF($A$7=Nutrients!$B$8,Nutrients!$DB$8,Nutrients!$DB$9)*L$7)+(((IF($A$8=Nutrients!$B$79,Nutrients!$DB$79,(IF($A$8=Nutrients!$B$77,Nutrients!$DB$77,Nutrients!$DB$78)))))*L$8))/2000/L$236*100","v":29.947705118624985},{"$f":"(SUMPRODUCT(M$9:M$229,Nutrients!$DB$8:$DB$228)+(IF($A$7=Nutrients!$B$8,Nutrients!$DB$8,Nutrients!$DB$9)*M$7)+(((IF($A$8=Nutrients!$B$79,Nutrients!$DB$79,(IF($A$8=Nutrients!$B$77,Nutrients!$DB$77,Nutrients!$DB$78)))))*M$8))/2000/M$236*100","v":28.966497479904813},{"$f":"(SUMPRODUCT(N$9:N$229,Nutrients!$DB$8:$DB$228)+(IF($A$7=Nutrients!$B$8,Nutrients!$DB$8,Nutrients!$DB$9)*N$7)+(((IF($A$8=Nutrients!$B$79,Nutrients!$DB$79,(IF($A$8=Nutrients!$B$77,Nutrients!$DB$77,Nutrients!$DB$78)))))*N$8))/2000/N$236*100","v":29.609559948404552},null,{"$f":"(SUMPRODUCT(P$9:P$229,Nutrients!$DB$8:$DB$228)+(IF($A$7=Nutrients!$B$8,Nutrients!$DB$8,Nutrients!$DB$9)*P$7)+(((IF($A$8=Nutrients!$B$79,Nutrients!$DB$79,(IF($A$8=Nutrients!$B$77,Nutrients!$DB$77,Nutrients!$DB$78)))))*P$8))/2000/P$236*100","v":31.78556845306889},{"$f":"(SUMPRODUCT(Q$9:Q$229,Nutrients!$DB$8:$DB$228)+(IF($A$7=Nutrients!$B$8,Nutrients!$DB$8,Nutrients!$DB$9)*Q$7)+(((IF($A$8=Nutrients!$B$79,Nutrients!$DB$79,(IF($A$8=Nutrients!$B$77,Nutrients!$DB$77,Nutrients!$DB$78)))))*Q$8))/2000/Q$236*100","v":30.897601685784998},{"$f":"(SUMPRODUCT(R$9:R$229,Nutrients!$DB$8:$DB$228)+(IF($A$7=Nutrients!$B$8,Nutrients!$DB$8,Nutrients!$DB$9)*R$7)+(((IF($A$8=Nutrients!$B$79,Nutrients!$DB$79,(IF($A$8=Nutrients!$B$77,Nutrients!$DB$77,Nutrients!$DB$78)))))*R$8))/2000/R$236*100","v":29.758368048104668},{"$f":"(SUMPRODUCT(S$9:S$229,Nutrients!$DB$8:$DB$228)+(IF($A$7=Nutrients!$B$8,Nutrients!$DB$8,Nutrients!$DB$9)*S$7)+(((IF($A$8=Nutrients!$B$79,Nutrients!$DB$79,(IF($A$8=Nutrients!$B$77,Nutrients!$DB$77,Nutrients!$DB$78)))))*S$8))/2000/S$236*100","v":29.639131753681308},{"$f":"(SUMPRODUCT(T$9:T$229,Nutrients!$DB$8:$DB$228)+(IF($A$7=Nutrients!$B$8,Nutrients!$DB$8,Nutrients!$DB$9)*T$7)+(((IF($A$8=Nutrients!$B$79,Nutrients!$DB$79,(IF($A$8=Nutrients!$B$77,Nutrients!$DB$77,Nutrients!$DB$78)))))*T$8))/2000/T$236*100","v":29.746086503493846},{"$f":"(SUMPRODUCT(U$9:U$229,Nutrients!$DB$8:$DB$228)+(IF($A$7=Nutrients!$B$8,Nutrients!$DB$8,Nutrients!$DB$9)*U$7)+(((IF($A$8=Nutrients!$B$79,Nutrients!$DB$79,(IF($A$8=Nutrients!$B$77,Nutrients!$DB$77,Nutrients!$DB$78)))))*U$8))/2000/U$236*100","v":29.609559948404552},null,{"$f":"(SUMPRODUCT(W$9:W$229,Nutrients!$DB$8:$DB$228)+(IF($A$7=Nutrients!$B$8,Nutrients!$DB$8,Nutrients!$DB$9)*W$7)+(((IF($A$8=Nutrients!$B$79,Nutrients!$DB$79,(IF($A$8=Nutrients!$B$77,Nutrients!$DB$77,Nutrients!$DB$78)))))*W$8))/2000/W$236*100","v":31.596106334434914},{"$f":"(SUMPRODUCT(X$9:X$229,Nutrients!$DB$8:$DB$228)+(IF($A$7=Nutrients!$B$8,Nutrients!$DB$8,Nutrients!$DB$9)*X$7)+(((IF($A$8=Nutrients!$B$79,Nutrients!$DB$79,(IF($A$8=Nutrients!$B$77,Nutrients!$DB$77,Nutrients!$DB$78)))))*X$8))/2000/X$236*100","v":30.665541495163772},{"$f":"(SUMPRODUCT(Y$9:Y$229,Nutrients!$DB$8:$DB$228)+(IF($A$7=Nutrients!$B$8,Nutrients!$DB$8,Nutrients!$DB$9)*Y$7)+(((IF($A$8=Nutrients!$B$79,Nutrients!$DB$79,(IF($A$8=Nutrients!$B$77,Nutrients!$DB$77,Nutrients!$DB$78)))))*Y$8))/2000/Y$236*100","v":29.548441737744668},{"$f":"(SUMPRODUCT(Z$9:Z$229,Nutrients!$DB$8:$DB$228)+(IF($A$7=Nutrients!$B$8,Nutrients!$DB$8,Nutrients!$DB$9)*Z$7)+(((IF($A$8=Nutrients!$B$79,Nutrients!$DB$79,(IF($A$8=Nutrients!$B$77,Nutrients!$DB$77,Nutrients!$DB$78)))))*Z$8))/2000/Z$236*100","v":29.675216989122237},{"$f":"(SUMPRODUCT(AA$9:AA$229,Nutrients!$DB$8:$DB$228)+(IF($A$7=Nutrients!$B$8,Nutrients!$DB$8,Nutrients!$DB$9)*AA$7)+(((IF($A$8=Nutrients!$B$79,Nutrients!$DB$79,(IF($A$8=Nutrients!$B$77,Nutrients!$DB$77,Nutrients!$DB$78)))))*AA$8))/2000/AA$236*100","v":30.863325404266313},{"$f":"(SUMPRODUCT(AB$9:AB$229,Nutrients!$DB$8:$DB$228)+(IF($A$7=Nutrients!$B$8,Nutrients!$DB$8,Nutrients!$DB$9)*AB$7)+(((IF($A$8=Nutrients!$B$79,Nutrients!$DB$79,(IF($A$8=Nutrients!$B$77,Nutrients!$DB$77,Nutrients!$DB$78)))))*AB$8))/2000/AB$236*100","v":29.609559948404552},null,{"$f":"(SUMPRODUCT(AD$9:AD$229,Nutrients!$DB$8:$DB$228)+(IF($A$7=Nutrients!$B$8,Nutrients!$DB$8,Nutrients!$DB$9)*AD$7)+(((IF($A$8=Nutrients!$B$79,Nutrients!$DB$79,(IF($A$8=Nutrients!$B$77,Nutrients!$DB$77,Nutrients!$DB$78)))))*AD$8))/2000/AD$236*100","v":31.405187189252466},{"$f":"(SUMPRODUCT(AE$9:AE$229,Nutrients!$DB$8:$DB$228)+(IF($A$7=Nutrients!$B$8,Nutrients!$DB$8,Nutrients!$DB$9)*AE$7)+(((IF($A$8=Nutrients!$B$79,Nutrients!$DB$79,(IF($A$8=Nutrients!$B$77,Nutrients!$DB$77,Nutrients!$DB$78)))))*AE$8))/2000/AE$236*100","v":30.446342297518985},{"$f":"(SUMPRODUCT(AF$9:AF$229,Nutrients!$DB$8:$DB$228)+(IF($A$7=Nutrients!$B$8,Nutrients!$DB$8,Nutrients!$DB$9)*AF$7)+(((IF($A$8=Nutrients!$B$79,Nutrients!$DB$79,(IF($A$8=Nutrients!$B$77,Nutrients!$DB$77,Nutrients!$DB$78)))))*AF$8))/2000/AF$236*100","v":29.255585937464211},{"$f":"(SUMPRODUCT(AG$9:AG$229,Nutrients!$DB$8:$DB$228)+(IF($A$7=Nutrients!$B$8,Nutrients!$DB$8,Nutrients!$DB$9)*AG$7)+(((IF($A$8=Nutrients!$B$79,Nutrients!$DB$79,(IF($A$8=Nutrients!$B$77,Nutrients!$DB$77,Nutrients!$DB$78)))))*AG$8))/2000/AG$236*100","v":30.713066832349295},{"$f":"(SUMPRODUCT(AH$9:AH$229,Nutrients!$DB$8:$DB$228)+(IF($A$7=Nutrients!$B$8,Nutrients!$DB$8,Nutrients!$DB$9)*AH$7)+(((IF($A$8=Nutrients!$B$79,Nutrients!$DB$79,(IF($A$8=Nutrients!$B$77,Nutrients!$DB$77,Nutrients!$DB$78)))))*AH$8))/2000/AH$236*100","v":31.998362446785933},{"$f":"(SUMPRODUCT(AI$9:AI$229,Nutrients!$DB$8:$DB$228)+(IF($A$7=Nutrients!$B$8,Nutrients!$DB$8,Nutrients!$DB$9)*AI$7)+(((IF($A$8=Nutrients!$B$79,Nutrients!$DB$79,(IF($A$8=Nutrients!$B$77,Nutrients!$DB$77,Nutrients!$DB$78)))))*AI$8))/2000/AI$236*100","v":29.609559948404552},null,{"$f":"(SUMPRODUCT(AK$9:AK$229,Nutrients!$DB$8:$DB$228)+(IF($A$7=Nutrients!$B$8,Nutrients!$DB$8,Nutrients!$DB$9)*AK$7)+(((IF($A$8=Nutrients!$B$79,Nutrients!$DB$79,(IF($A$8=Nutrients!$B$77,Nutrients!$DB$77,Nutrients!$DB$78)))))*AK$8))/2000/AK$236*100","v":31.150790981451664},{"$f":"(SUMPRODUCT(AL$9:AL$229,Nutrients!$DB$8:$DB$228)+(IF($A$7=Nutrients!$B$8,Nutrients!$DB$8,Nutrients!$DB$9)*AL$7)+(((IF($A$8=Nutrients!$B$79,Nutrients!$DB$79,(IF($A$8=Nutrients!$B$77,Nutrients!$DB$77,Nutrients!$DB$78)))))*AL$8))/2000/AL$236*100","v":30.219030153975719},{"$f":"(SUMPRODUCT(AM$9:AM$229,Nutrients!$DB$8:$DB$228)+(IF($A$7=Nutrients!$B$8,Nutrients!$DB$8,Nutrients!$DB$9)*AM$7)+(((IF($A$8=Nutrients!$B$79,Nutrients!$DB$79,(IF($A$8=Nutrients!$B$77,Nutrients!$DB$77,Nutrients!$DB$78)))))*AM$8))/2000/AM$236*100","v":30.194071433183044},{"$f":"(SUMPRODUCT(AN$9:AN$229,Nutrients!$DB$8:$DB$228)+(IF($A$7=Nutrients!$B$8,Nutrients!$DB$8,Nutrients!$DB$9)*AN$7)+(((IF($A$8=Nutrients!$B$79,Nutrients!$DB$79,(IF($A$8=Nutrients!$B$77,Nutrients!$DB$77,Nutrients!$DB$78)))))*AN$8))/2000/AN$236*100","v":31.767795890545276},{"$f":"(SUMPRODUCT(AO$9:AO$229,Nutrients!$DB$8:$DB$228)+(IF($A$7=Nutrients!$B$8,Nutrients!$DB$8,Nutrients!$DB$9)*AO$7)+(((IF($A$8=Nutrients!$B$79,Nutrients!$DB$79,(IF($A$8=Nutrients!$B$77,Nutrients!$DB$77,Nutrients!$DB$78)))))*AO$8))/2000/AO$236*100","v":33.151732950143028},{"$f":"(SUMPRODUCT(AP$9:AP$229,Nutrients!$DB$8:$DB$228)+(IF($A$7=Nutrients!$B$8,Nutrients!$DB$8,Nutrients!$DB$9)*AP$7)+(((IF($A$8=Nutrients!$B$79,Nutrients!$DB$79,(IF($A$8=Nutrients!$B$77,Nutrients!$DB$77,Nutrients!$DB$78)))))*AP$8))/2000/AP$236*100","v":29.609559948404552},null,{"$f":"(SUMPRODUCT(AR$9:AR$229,Nutrients!$DB$8:$DB$228)+(IF($A$7=Nutrients!$B$8,Nutrients!$DB$8,Nutrients!$DB$9)*AR$7)+(((IF($A$8=Nutrients!$B$79,Nutrients!$DB$79,(IF($A$8=Nutrients!$B$77,Nutrients!$DB$77,Nutrients!$DB$78)))))*AR$8))/2000/AR$236*100","v":30.977730121051035},{"$f":"(SUMPRODUCT(AS$9:AS$229,Nutrients!$DB$8:$DB$228)+(IF($A$7=Nutrients!$B$8,Nutrients!$DB$8,Nutrients!$DB$9)*AS$7)+(((IF($A$8=Nutrients!$B$79,Nutrients!$DB$79,(IF($A$8=Nutrients!$B$77,Nutrients!$DB$77,Nutrients!$DB$78)))))*AS$8))/2000/AS$236*100","v":29.987905124066877},{"$f":"(SUMPRODUCT(AT$9:AT$229,Nutrients!$DB$8:$DB$228)+(IF($A$7=Nutrients!$B$8,Nutrients!$DB$8,Nutrients!$DB$9)*AT$7)+(((IF($A$8=Nutrients!$B$79,Nutrients!$DB$79,(IF($A$8=Nutrients!$B$77,Nutrients!$DB$77,Nutrients!$DB$78)))))*AT$8))/2000/AT$236*100","v":31.143262269735377},{"$f":"(SUMPRODUCT(AU$9:AU$229,Nutrients!$DB$8:$DB$228)+(IF($A$7=Nutrients!$B$8,Nutrients!$DB$8,Nutrients!$DB$9)*AU$7)+(((IF($A$8=Nutrients!$B$79,Nutrients!$DB$79,(IF($A$8=Nutrients!$B$77,Nutrients!$DB$77,Nutrients!$DB$78)))))*AU$8))/2000/AU$236*100","v":32.837504152013821},{"$f":"(SUMPRODUCT(AV$9:AV$229,Nutrients!$DB$8:$DB$228)+(IF($A$7=Nutrients!$B$8,Nutrients!$DB$8,Nutrients!$DB$9)*AV$7)+(((IF($A$8=Nutrients!$B$79,Nutrients!$DB$79,(IF($A$8=Nutrients!$B$77,Nutrients!$DB$77,Nutrients!$DB$78)))))*AV$8))/2000/AV$236*100","v":34.325261224280951},{"$f":"(SUMPRODUCT(AW$9:AW$229,Nutrients!$DB$8:$DB$228)+(IF($A$7=Nutrients!$B$8,Nutrients!$DB$8,Nutrients!$DB$9)*AW$7)+(((IF($A$8=Nutrients!$B$79,Nutrients!$DB$79,(IF($A$8=Nutrients!$B$77,Nutrients!$DB$77,Nutrients!$DB$78)))))*AW$8))/2000/AW$236*100","v":29.609559948404552}]
["  Met & Cys:Lys",{"$f":"(SUMPRODUCT(B$9:B$229,Nutrients!$DC$8:$DC$228)+(IF($A$7=Nutrients!$B$8,Nutrients!$DC$8,Nutrients!$DC$9)*B$7)+(((IF($A$8=Nutrients!$B$79,Nutrients!$DC$79,(IF($A$8=Nutrients!$B$77,Nutrients!$DC$77,Nutrients!$DC$78)))))*B$8))/2000/B$236*100","v":55.994418242240393},{"$f":"(SUMPRODUCT(C$9:C$229,Nutrients!$DC$8:$DC$228)+(IF($A$7=Nutrients!$B$8,Nutrients!$DC$8,Nutrients!$DC$9)*C$7)+(((IF($A$8=Nutrients!$B$79,Nutrients!$DC$79,(IF($A$8=Nutrients!$B$77,Nutrients!$DC$77,Nutrients!$DC$78)))))*C$8))/2000/C$236*100","v":55.998321129822401},{"$f":"(SUMPRODUCT(D$9:D$229,Nutrients!$DC$8:$DC$228)+(IF($A$7=Nutrients!$B$8,Nutrients!$DC$8,Nutrients!$DC$9)*D$7)+(((IF($A$8=Nutrients!$B$79,Nutrients!$DC$79,(IF($A$8=Nutrients!$B$77,Nutrients!$DC$77,Nutrients!$DC$78)))))*D$8))/2000/D$236*100","v":56.000205781178344},{"$f":"(SUMPRODUCT(E$9:E$229,Nutrients!$DC$8:$DC$228)+(IF($A$7=Nutrients!$B$8,Nutrients!$DC$8,Nutrients!$DC$9)*E$7)+(((IF($A$8=Nutrients!$B$79,Nutrients!$DC$79,(IF($A$8=Nutrients!$B$77,Nutrients!$DC$77,Nutrients!$DC$78)))))*E$8))/2000/E$236*100","v":56.999140886022367},{"$f":"(SUMPRODUCT(F$9:F$229,Nutrients!$DC$8:$DC$228)+(IF($A$7=Nutrients!$B$8,Nutrients!$DC$8,Nutrients!$DC$9)*F$7)+(((IF($A$8=Nutrients!$B$79,Nutrients!$DC$79,(IF($A$8=Nutrients!$B$77,Nutrients!$DC$77,Nutrients!$DC$78)))))*F$8))/2000/F$236*100","v":57.001109458079327},{"$f":"(SUMPRODUCT(G$9:G$229,Nutrients!$DC$8:$DC$228)+(IF($A$7=Nutrients!$B$8,Nutrients!$DC$8,Nutrients!$DC$9)*G$7)+(((IF($A$8=Nutrients!$B$79,Nutrients!$DC$79,(IF($A$8=Nutrients!$B$77,Nutrients!$DC$77,Nutrients!$DC$78)))))*G$8))/2000/G$236*100","v":58.001701198028378},null,{"$f":"(SUMPRODUCT(I$9:I$229,Nutrients!$DC$8:$DC$228)+(IF($A$7=Nutrients!$B$8,Nutrients!$DC$8,Nutrients!$DC$9)*I$7)+(((IF($A$8=Nutrients!$B$79,Nutrients!$DC$79,(IF($A$8=Nutrients!$B$77,Nutrients!$DC$77,Nutrients!$DC$78)))))*I$8))/2000/I$236*100","v":55.983640041954054},{"$f":"(SUMPRODUCT(J$9:J$229,Nutrients!$DC$8:$DC$228)+(IF($A$7=Nutrients!$B$8,Nutrients!$DC$8,Nutrients!$DC$9)*J$7)+(((IF($A$8=Nutrients!$B$79,Nutrients!$DC$79,(IF($A$8=Nutrients!$B$77,Nutrients!$DC$77,Nutrients!$DC$78)))))*J$8))/2000/J$236*100","v":55.95762902663364},{"$f":"(SUMPRODUCT(K$9:K$229,Nutrients!$DC$8:$DC$228)+(IF($A$7=Nutrients!$B$8,Nutrients!$DC$8,Nutrients!$DC$9)*K$7)+(((IF($A$8=Nutrients!$B$79,Nutrients!$DC$79,(IF($A$8=Nutrients!$B$77,Nutrients!$DC$77,Nutrients!$DC$78)))))*K$8))/2000/K$236*100","v":56.001659847621625},{"$f":"(SUMPRODUCT(L$9:L$229,Nutrients!$DC$8:$DC$228)+(IF($A$7=Nutrients!$B$8,Nutrients!$DC$8,Nutrients!$DC$9)*L$7)+(((IF($A$8=Nutrients!$B$79,Nutrients!$DC$79,(IF($A$8=Nutrients!$B$77,Nutrients!$DC$77,Nutrients!$DC$78)))))*L$8))/2000/L$236*100","v":57.001862447239141},{"$f":"(SUMPRODUCT(M$9:M$229,Nutrients!$DC$8:$DC$228)+(IF($A$7=Nutrients!$B$8,Nutrients!$DC$8,Nutrients!$DC$9)*M$7)+(((IF($A$8=Nutrients!$B$79,Nutrients!$DC$79,(IF($A$8=Nutrients!$B$77,Nutrients!$DC$77,Nutrients!$DC$78)))))*M$8))/2000/M$236*100","v":57.002034686247839},{"$f":"(SUMPRODUCT(N$9:N$229,Nutrients!$DC$8:$DC$228)+(IF($A$7=Nutrients!$B$8,Nutrients!$DC$8,Nutrients!$DC$9)*N$7)+(((IF($A$8=Nutrients!$B$79,Nutrients!$DC$79,(IF($A$8=Nutrients!$B$77,Nutrients!$DC$77,Nutrients!$DC$78)))))*N$8))/2000/N$236*100","v":58.001701198028378},null,{"$f":"(SUMPRODUCT(P$9:P$229,Nutrients!$DC$8:$DC$228)+(IF($A$7=Nutrients!$B$8,Nutrients!$DC$8,Nutrients!$DC$9)*P$7)+(((IF($A$8=Nutrients!$B$79,Nutrients!$DC$79,(IF($A$8=Nutrients!$B$77,Nutrients!$DC$77,Nutrients!$DC$78)))))*P$8))/2000/P$236*100","v":55.982146637266169},{"$f":"(SUMPRODUCT(Q$9:Q$229,Nutrients!$DC$8:$DC$228)+(IF($A$7=Nutrients!$B$8,Nutrients!$DC$8,Nutrients!$DC$9)*Q$7)+(((IF($A$8=Nutrients!$B$79,Nutrients!$DC$79,(IF($A$8=Nutrients!$B$77,Nutrients!$DC$77,Nutrients!$DC$78)))))*Q$8))/2000/Q$236*100","v":56.002380597594772},{"$f":"(SUMPRODUCT(R$9:R$229,Nutrients!$DC$8:$DC$228)+(IF($A$7=Nutrients!$B$8,Nutrients!$DC$8,Nutrients!$DC$9)*R$7)+(((IF($A$8=Nutrients!$B$79,Nutrients!$DC$79,(IF($A$8=Nutrients!$B$77,Nutrients!$DC$77,Nutrients!$DC$78)))))*R$8))/2000/R$236*100","v":55.959756703526352},{"$f":"(SUMPRODUCT(S$9:S$229,Nutrients!$DC$8:$DC$228)+(IF($A$7=Nutrients!$B$8,Nutrients!$DC$8,Nutrients!$DC$9)*S$7)+(((IF($A$8=Nutrients!$B$79,Nutrients!$DC$79,(IF($A$8=Nutrients!$B$77,Nutrients!$DC$77,Nutrients!$DC$78)))))*S$8))/2000/S$236*100","v":56.973597437419784},{"$f":"(SUMPRODUCT(T$9:T$229,Nutrients!$DC$8:$DC$228)+(IF($A$7=Nutrients!$B$8,Nutrients!$DC$8,Nutrients!$DC$9)*T$7)+(((IF($A$8=Nutrients!$B$79,Nutrients!$DC$79,(IF($A$8=Nutrients!$B$77,Nutrients!$DC$77,Nutrients!$DC$78)))))*T$8))/2000/T$236*100","v":58.084332907487877},{"$f":"(SUMPRODUCT(U$9:U$229,Nutrients!$DC$8:$DC$228)+(IF($A$7=Nutrients!$B$8,Nutrients!$DC$8,Nutrients!$DC$9)*U$7)+(((IF($A$8=Nutrients!$B$79,Nutrients!$DC$79,(IF($A$8=Nutrients!$B$77,Nutrients!$DC$77,Nutrients!$DC$78)))))*U$8))/2000/U$236*100","v":58.001701198028378},null,{"$f":"(SUMPRODUCT(W$9:W$229,Nutrients!$DC$8:$DC$228)+(IF($A$7=Nutrients!$B$8,Nutrients!$DC$8,Nutrients!$DC$9)*W$7)+(((IF($A$8=Nutrients!$B$79,Nutrients!$DC$79,(IF($A$8=Nutrients!$B$77,Nutrients!$DC$77,Nutrients!$DC$78)))))*W$8))/2000/W$236*100","v":55.980981609052868},{"$f":"(SUMPRODUCT(X$9:X$229,Nutrients!$DC$8:$DC$228)+(IF($A$7=Nutrients!$B$8,Nutrients!$DC$8,Nutrients!$DC$9)*X$7)+(((IF($A$8=Nutrients!$B$79,Nutrients!$DC$79,(IF($A$8=Nutrients!$B$77,Nutrients!$DC$77,Nutrients!$DC$78)))))*X$8))/2000/X$236*100","v":55.983879264904381},{"$f":"(SUMPRODUCT(Y$9:Y$229,Nutrients!$DC$8:$DC$228)+(IF($A$7=Nutrients!$B$8,Nutrients!$DC$8,Nutrients!$DC$9)*Y$7)+(((IF($A$8=Nutrients!$B$79,Nutrients!$DC$79,(IF($A$8=Nutrients!$B$77,Nutrients!$DC$77,Nutrients!$DC$78)))))*Y$8))/2000/Y$236*100","v":56.004006800792006},{"$f":"(SUMPRODUCT(Z$9:Z$229,Nutrients!$DC$8:$DC$228)+(IF($A$7=Nutrients!$B$8,Nutrients!$DC$8,Nutrients!$DC$9)*Z$7)+(((IF($A$8=Nutrients!$B$79,Nutrients!$DC$79,(IF($A$8=Nutrients!$B$77,Nutrients!$DC$77,Nutrients!$DC$78)))))*Z$8))/2000/Z$236*100","v":57.290122224372439},{"$f":"(SUMPRODUCT(AA$9:AA$229,Nutrients!$DC$8:$DC$228)+(IF($A$7=Nutrients!$B$8,Nutrients!$DC$8,Nutrients!$DC$9)*AA$7)+(((IF($A$8=Nutrients!$B$79,Nutrients!$DC$79,(IF($A$8=Nutrients!$B$77,Nutrients!$DC$77,Nutrients!$DC$78)))))*AA$8))/2000/AA$236*100","v":59.507551141952788},{"$f":"(SUMPRODUCT(AB$9:AB$229,Nutrients!$DC$8:$DC$228)+(IF($A$7=Nutrients!$B$8,Nutrients!$DC$8,Nutrients!$DC$9)*AB$7)+(((IF($A$8=Nutrients!$B$79,Nutrients!$DC$79,(IF($A$8=Nutrients!$B$77,Nutrients!$DC$77,Nutrients!$DC$78)))))*AB$8))/2000/AB$236*100","v":58.001701198028378},null,{"$f":"(SUMPRODUCT(AD$9:AD$229,Nutrients!$DC$8:$DC$228)+(IF($A$7=Nutrients!$B$8,Nutrients!$DC$8,Nutrients!$DC$9)*AD$7)+(((IF($A$8=Nutrients!$B$79,Nutrients!$DC$79,(IF($A$8=Nutrients!$B$77,Nutrients!$DC$77,Nutrients!$DC$78)))))*AD$8))/2000/AD$236*100","v":55.98145963044454},{"$f":"(SUMPRODUCT(AE$9:AE$229,Nutrients!$DC$8:$DC$228)+(IF($A$7=Nutrients!$B$8,Nutrients!$DC$8,Nutrients!$DC$9)*AE$7)+(((IF($A$8=Nutrients!$B$79,Nutrients!$DC$79,(IF($A$8=Nutrients!$B$77,Nutrients!$DC$77,Nutrients!$DC$78)))))*AE$8))/2000/AE$236*100","v":55.991223284436622},{"$f":"(SUMPRODUCT(AF$9:AF$229,Nutrients!$DC$8:$DC$228)+(IF($A$7=Nutrients!$B$8,Nutrients!$DC$8,Nutrients!$DC$9)*AF$7)+(((IF($A$8=Nutrients!$B$79,Nutrients!$DC$79,(IF($A$8=Nutrients!$B$77,Nutrients!$DC$77,Nutrients!$DC$78)))))*AF$8))/2000/AF$236*100","v":55.966327870668088},{"$f":"(SUMPRODUCT(AG$9:AG$229,Nutrients!$DC$8:$DC$228)+(IF($A$7=Nutrients!$B$8,Nutrients!$DC$8,Nutrients!$DC$9)*AG$7)+(((IF($A$8=Nutrients!$B$79,Nutrients!$DC$79,(IF($A$8=Nutrients!$B$77,Nutrients!$DC$77,Nutrients!$DC$78)))))*AG$8))/2000/AG$236*100","v":58.611569085169727},{"$f":"(SUMPRODUCT(AH$9:AH$229,Nutrients!$DC$8:$DC$228)+(IF($A$7=Nutrients!$B$8,Nutrients!$DC$8,Nutrients!$DC$9)*AH$7)+(((IF($A$8=Nutrients!$B$79,Nutrients!$DC$79,(IF($A$8=Nutrients!$B$77,Nutrients!$DC$77,Nutrients!$DC$78)))))*AH$8))/2000/AH$236*100","v":60.951762399005304},{"$f":"(SUMPRODUCT(AI$9:AI$229,Nutrients!$DC$8:$DC$228)+(IF($A$7=Nutrients!$B$8,Nutrients!$DC$8,Nutrients!$DC$9)*AI$7)+(((IF($A$8=Nutrients!$B$79,Nutrients!$DC$79,(IF($A$8=Nutrients!$B$77,Nutrients!$DC$77,Nutrients!$DC$78)))))*AI$8))/2000/AI$236*100","v":58.001701198028378},null,{"$f":"(SUMPRODUCT(AK$9:AK$229,Nutrients!$DC$8:$DC$228)+(IF($A$7=Nutrients!$B$8,Nutrients!$DC$8,Nutrients!$DC$9)*AK$7)+(((IF($A$8=Nutrients!$B$79,Nutrients!$DC$79,(IF($A$8=Nutrients!$B$77,Nutrients!$DC$77,Nutrients!$DC$78)))))*AK$8))/2000/AK$236*100","v":55.888662567995183},{"$f":"(SUMPRODUCT(AL$9:AL$229,Nutrients!$DC$8:$DC$228)+(IF($A$7=Nutrients!$B$8,Nutrients!$DC$8,Nutrients!$DC$9)*AL$7)+(((IF($A$8=Nutrients!$B$79,Nutrients!$DC$79,(IF($A$8=Nutrients!$B$77,Nutrients!$DC$77,Nutrients!$DC$78)))))*AL$8))/2000/AL$236*100","v":55.99126419885441},{"$f":"(SUMPRODUCT(AM$9:AM$229,Nutrients!$DC$8:$DC$228)+(IF($A$7=Nutrients!$B$8,Nutrients!$DC$8,Nutrients!$DC$9)*AM$7)+(((IF($A$8=Nutrients!$B$79,Nutrients!$DC$79,(IF($A$8=Nutrients!$B$77,Nutrients!$DC$77,Nutrients!$DC$78)))))*AM$8))/2000/AM$236*100","v":57.161035426483217},{"$f":"(SUMPRODUCT(AN$9:AN$229,Nutrients!$DC$8:$DC$228)+(IF($A$7=Nutrients!$B$8,Nutrients!$DC$8,Nutrients!$DC$9)*AN$7)+(((IF($A$8=Nutrients!$B$79,Nutrients!$DC$79,(IF($A$8=Nutrients!$B$77,Nutrients!$DC$77,Nutrients!$DC$78)))))*AN$8))/2000/AN$236*100","v":59.953261936850978},{"$f":"(SUMPRODUCT(AO$9:AO$229,Nutrients!$DC$8:$DC$228)+(IF($A$7=Nutrients!$B$8,Nutrients!$DC$8,Nutrients!$DC$9)*AO$7)+(((IF($A$8=Nutrients!$B$79,Nutrients!$DC$79,(IF($A$8=Nutrients!$B$77,Nutrients!$DC$77,Nutrients!$DC$78)))))*AO$8))/2000/AO$236*100","v":62.417689209002944},{"$f":"(SUMPRODUCT(AP$9:AP$229,Nutrients!$DC$8:$DC$228)+(IF($A$7=Nutrients!$B$8,Nutrients!$DC$8,Nutrients!$DC$9)*AP$7)+(((IF($A$8=Nutrients!$B$79,Nutrients!$DC$79,(IF($A$8=Nutrients!$B$77,Nutrients!$DC$77,Nutrients!$DC$78)))))*AP$8))/2000/AP$236*100","v":58.001701198028378},null,{"$f":"(SUMPRODUCT(AR$9:AR$229,Nutrients!$DC$8:$DC$228)+(IF($A$7=Nutrients!$B$8,Nutrients!$DC$8,Nutrients!$DC$9)*AR$7)+(((IF($A$8=Nutrients!$B$79,Nutrients!$DC$79,(IF($A$8=Nutrients!$B$77,Nutrients!$DC$77,Nutrients!$DC$78)))))*AR$8))/2000/AR$236*100","v":55.923953144105688},{"$f":"(SUMPRODUCT(AS$9:AS$229,Nutrients!$DC$8:$DC$228)+(IF($A$7=Nutrients!$B$8,Nutrients!$DC$8,Nutrients!$DC$9)*AS$7)+(((IF($A$8=Nutrients!$B$79,Nutrients!$DC$79,(IF($A$8=Nutrients!$B$77,Nutrients!$DC$77,Nutrients!$DC$78)))))*AS$8))/2000/AS$236*100","v":55.990910726645993},{"$f":"(SUMPRODUCT(AT$9:AT$229,Nutrients!$DC$8:$DC$228)+(IF($A$7=Nutrients!$B$8,Nutrients!$DC$8,Nutrients!$DC$9)*AT$7)+(((IF($A$8=Nutrients!$B$79,Nutrients!$DC$79,(IF($A$8=Nutrients!$B$77,Nutrients!$DC$77,Nutrients!$DC$78)))))*AT$8))/2000/AT$236*100","v":58.367513913507871},{"$f":"(SUMPRODUCT(AU$9:AU$229,Nutrients!$DC$8:$DC$228)+(IF($A$7=Nutrients!$B$8,Nutrients!$DC$8,Nutrients!$DC$9)*AU$7)+(((IF($A$8=Nutrients!$B$79,Nutrients!$DC$79,(IF($A$8=Nutrients!$B$77,Nutrients!$DC$77,Nutrients!$DC$78)))))*AU$8))/2000/AU$236*100","v":61.310921282589945},{"$f":"(SUMPRODUCT(AV$9:AV$229,Nutrients!$DC$8:$DC$228)+(IF($A$7=Nutrients!$B$8,Nutrients!$DC$8,Nutrients!$DC$9)*AV$7)+(((IF($A$8=Nutrients!$B$79,Nutrients!$DC$79,(IF($A$8=Nutrients!$B$77,Nutrients!$DC$77,Nutrients!$DC$78)))))*AV$8))/2000/AV$236*100","v":63.909217943643171},{"$f":"(SUMPRODUCT(AW$9:AW$229,Nutrients!$DC$8:$DC$228)+(IF($A$7=Nutrients!$B$8,Nutrients!$DC$8,Nutrients!$DC$9)*AW$7)+(((IF($A$8=Nutrients!$B$79,Nutrients!$DC$79,(IF($A$8=Nutrients!$B$77,Nutrients!$DC$77,Nutrients!$DC$78)))))*AW$8))/2000/AW$236*100","v":58.001701198028378}]
["  Thr:Lys",{"$f":"(SUMPRODUCT(B$9:B$229,Nutrients!$DF$8:$DF$228)+(IF($A$7=Nutrients!$B$8,Nutrients!$DF$8,Nutrients!$DF$9)*B$7)+(((IF($A$8=Nutrients!$B$79,Nutrients!$DF$79,(IF($A$8=Nutrients!$B$77,Nutrients!$DF$77,Nutrients!$DF$78)))))*B$8))/2000/B$236*100","v":61.999249045260719},{"$f":"(SUMPRODUCT(C$9:C$229,Nutrients!$DF$8:$DF$228)+(IF($A$7=Nutrients!$B$8,Nutrients!$DF$8,Nutrients!$DF$9)*C$7)+(((IF($A$8=Nutrients!$B$79,Nutrients!$DF$79,(IF($A$8=Nutrients!$B$77,Nutrients!$DF$77,Nutrients!$DF$78)))))*C$8))/2000/C$236*100","v":61.999768297038216},{"$f":"(SUMPRODUCT(D$9:D$229,Nutrients!$DF$8:$DF$228)+(IF($A$7=Nutrients!$B$8,Nutrients!$DF$8,Nutrients!$DF$9)*D$7)+(((IF($A$8=Nutrients!$B$79,Nutrients!$DF$79,(IF($A$8=Nutrients!$B$77,Nutrients!$DF$77,Nutrients!$DF$78)))))*D$8))/2000/D$236*100","v":62.000000000000014},{"$f":"(SUMPRODUCT(E$9:E$229,Nutrients!$DF$8:$DF$228)+(IF($A$7=Nutrients!$B$8,Nutrients!$DF$8,Nutrients!$DF$9)*E$7)+(((IF($A$8=Nutrients!$B$79,Nutrients!$DF$79,(IF($A$8=Nutrients!$B$77,Nutrients!$DF$77,Nutrients!$DF$78)))))*E$8))/2000/E$236*100","v":62.999881259958023},{"$f":"(SUMPRODUCT(F$9:F$229,Nutrients!$DF$8:$DF$228)+(IF($A$7=Nutrients!$B$8,Nutrients!$DF$8,Nutrients!$DF$9)*F$7)+(((IF($A$8=Nutrients!$B$79,Nutrients!$DF$79,(IF($A$8=Nutrients!$B$77,Nutrients!$DF$77,Nutrients!$DF$78)))))*F$8))/2000/F$236*100","v":63.000153115971145},{"$f":"(SUMPRODUCT(G$9:G$229,Nutrients!$DF$8:$DF$228)+(IF($A$7=Nutrients!$B$8,Nutrients!$DF$8,Nutrients!$DF$9)*G$7)+(((IF($A$8=Nutrients!$B$79,Nutrients!$DF$79,(IF($A$8=Nutrients!$B$77,Nutrients!$DF$77,Nutrients!$DF$78)))))*G$8))/2000/G$236*100","v":63.99976486226322},null,{"$f":"(SUMPRODUCT(I$9:I$229,Nutrients!$DF$8:$DF$228)+(IF($A$7=Nutrients!$B$8,Nutrients!$DF$8,Nutrients!$DF$9)*I$7)+(((IF($A$8=Nutrients!$B$79,Nutrients!$DF$79,(IF($A$8=Nutrients!$B$77,Nutrients!$DF$77,Nutrients!$DF$78)))))*I$8))/2000/I$236*100","v":62.01093945270577},{"$f":"(SUMPRODUCT(J$9:J$229,Nutrients!$DF$8:$DF$228)+(IF($A$7=Nutrients!$B$8,Nutrients!$DF$8,Nutrients!$DF$9)*J$7)+(((IF($A$8=Nutrients!$B$79,Nutrients!$DF$79,(IF($A$8=Nutrients!$B$77,Nutrients!$DF$77,Nutrients!$DF$78)))))*J$8))/2000/J$236*100","v":62.004012562110148},{"$f":"(SUMPRODUCT(K$9:K$229,Nutrients!$DF$8:$DF$228)+(IF($A$7=Nutrients!$B$8,Nutrients!$DF$8,Nutrients!$DF$9)*K$7)+(((IF($A$8=Nutrients!$B$79,Nutrients!$DF$79,(IF($A$8=Nutrients!$B$77,Nutrients!$DF$77,Nutrients!$DF$78)))))*K$8))/2000/K$236*100","v":61.996462371652683},{"$f":"(SUMPRODUCT(L$9:L$229,Nutrients!$DF$8:$DF$228)+(IF($A$7=Nutrients!$B$8,Nutrients!$DF$8,Nutrients!$DF$9)*L$7)+(((IF($A$8=Nutrients!$B$79,Nutrients!$DF$79,(IF($A$8=Nutrients!$B$77,Nutrients!$DF$77,Nutrients!$DF$78)))))*L$8))/2000/L$236*100","v":63.00036061252834},{"$f":"(SUMPRODUCT(M$9:M$229,Nutrients!$DF$8:$DF$228)+(IF($A$7=Nutrients!$B$8,Nutrients!$DF$8,Nutrients!$DF$9)*M$7)+(((IF($A$8=Nutrients!$B$79,Nutrients!$DF$79,(IF($A$8=Nutrients!$B$77,Nutrients!$DF$77,Nutrients!$DF$78)))))*M$8))/2000/M$236*100","v":63.000230019249827},{"$f":"(SUMPRODUCT(N$9:N$229,Nutrients!$DF$8:$DF$228)+(IF($A$7=Nutrients!$B$8,Nutrients!$DF$8,Nutrients!$DF$9)*N$7)+(((IF($A$8=Nutrients!$B$79,Nutrients!$DF$79,(IF($A$8=Nutrients!$B$77,Nutrients!$DF$77,Nutrients!$DF$78)))))*N$8))/2000/N$236*100","v":63.99976486226322},null,{"$f":"(SUMPRODUCT(P$9:P$229,Nutrients!$DF$8:$DF$228)+(IF($A$7=Nutrients!$B$8,Nutrients!$DF$8,Nutrients!$DF$9)*P$7)+(((IF($A$8=Nutrients!$B$79,Nutrients!$DF$79,(IF($A$8=Nutrients!$B$77,Nutrients!$DF$77,Nutrients!$DF$78)))))*P$8))/2000/P$236*100","v":62.012390910843948},{"$f":"(SUMPRODUCT(Q$9:Q$229,Nutrients!$DF$8:$DF$228)+(IF($A$7=Nutrients!$B$8,Nutrients!$DF$8,Nutrients!$DF$9)*Q$7)+(((IF($A$8=Nutrients!$B$79,Nutrients!$DF$79,(IF($A$8=Nutrients!$B$77,Nutrients!$DF$77,Nutrients!$DF$78)))))*Q$8))/2000/Q$236*100","v":62.000193474320909},{"$f":"(SUMPRODUCT(R$9:R$229,Nutrients!$DF$8:$DF$228)+(IF($A$7=Nutrients!$B$8,Nutrients!$DF$8,Nutrients!$DF$9)*R$7)+(((IF($A$8=Nutrients!$B$79,Nutrients!$DF$79,(IF($A$8=Nutrients!$B$77,Nutrients!$DF$77,Nutrients!$DF$78)))))*R$8))/2000/R$236*100","v":61.985656927832956},{"$f":"(SUMPRODUCT(S$9:S$229,Nutrients!$DF$8:$DF$228)+(IF($A$7=Nutrients!$B$8,Nutrients!$DF$8,Nutrients!$DF$9)*S$7)+(((IF($A$8=Nutrients!$B$79,Nutrients!$DF$79,(IF($A$8=Nutrients!$B$77,Nutrients!$DF$77,Nutrients!$DF$78)))))*S$8))/2000/S$236*100","v":62.999610717339614},{"$f":"(SUMPRODUCT(T$9:T$229,Nutrients!$DF$8:$DF$228)+(IF($A$7=Nutrients!$B$8,Nutrients!$DF$8,Nutrients!$DF$9)*T$7)+(((IF($A$8=Nutrients!$B$79,Nutrients!$DF$79,(IF($A$8=Nutrients!$B$77,Nutrients!$DF$77,Nutrients!$DF$78)))))*T$8))/2000/T$236*100","v":62.990593263406048},{"$f":"(SUMPRODUCT(U$9:U$229,Nutrients!$DF$8:$DF$228)+(IF($A$7=Nutrients!$B$8,Nutrients!$DF$8,Nutrients!$DF$9)*U$7)+(((IF($A$8=Nutrients!$B$79,Nutrients!$DF$79,(IF($A$8=Nutrients!$B$77,Nutrients!$DF$77,Nutrients!$DF$78)))))*U$8))/2000/U$236*100","v":63.99976486226322},null,{"$f":"(SUMPRODUCT(W$9:W$229,Nutrients!$DF$8:$DF$228)+(IF($A$7=Nutrients!$B$8,Nutrients!$DF$8,Nutrients!$DF$9)*W$7)+(((IF($A$8=Nutrients!$B$79,Nutrients!$DF$79,(IF($A$8=Nutrients!$B$77,Nutrients!$DF$77,Nutrients!$DF$78)))))*W$8))/2000/W$236*100","v":62.014026228197295},{"$f":"(SUMPRODUCT(X$9:X$229,Nutrients!$DF$8:$DF$228)+(IF($A$7=Nutrients!$B$8,Nutrients!$DF$8,Nutrients!$DF$9)*X$7)+(((IF($A$8=Nutrients!$B$79,Nutrients!$DF$79,(IF($A$8=Nutrients!$B$77,Nutrients!$DF$77,Nutrients!$DF$78)))))*X$8))/2000/X$236*100","v":61.996539011058182},{"$f":"(SUMPRODUCT(Y$9:Y$229,Nutrients!$DF$8:$DF$228)+(IF($A$7=Nutrients!$B$8,Nutrients!$DF$8,Nutrients!$DF$9)*Y$7)+(((IF($A$8=Nutrients!$B$79,Nutrients!$DF$79,(IF($A$8=Nutrients!$B$77,Nutrients!$DF$77,Nutrients!$DF$78)))))*Y$8))/2000/Y$236*100","v":61.984268097663211},{"$f":"(SUMPRODUCT(Z$9:Z$229,Nutrients!$DF$8:$DF$228)+(IF($A$7=Nutrients!$B$8,Nutrients!$DF$8,Nutrients!$DF$9)*Z$7)+(((IF($A$8=Nutrients!$B$79,Nutrients!$DF$79,(IF($A$8=Nutrients!$B$77,Nutrients!$DF$77,Nutrients!$DF$78)))))*Z$8))/2000/Z$236*100","v":62.995587158205623},{"$f":"(SUMPRODUCT(AA$9:AA$229,Nutrients!$DF$8:$DF$228)+(IF($A$7=Nutrients!$B$8,Nutrients!$DF$8,Nutrients!$DF$9)*AA$7)+(((IF($A$8=Nutrients!$B$79,Nutrients!$DF$79,(IF($A$8=Nutrients!$B$77,Nutrients!$DF$77,Nutrients!$DF$78)))))*AA$8))/2000/AA$236*100","v":62.979844860074422},{"$f":"(SUMPRODUCT(AB$9:AB$229,Nutrients!$DF$8:$DF$228)+(IF($A$7=Nutrients!$B$8,Nutrients!$DF$8,Nutrients!$DF$9)*AB$7)+(((IF($A$8=Nutrients!$B$79,Nutrients!$DF$79,(IF($A$8=Nutrients!$B$77,Nutrients!$DF$77,Nutrients!$DF$78)))))*AB$8))/2000/AB$236*100","v":63.99976486226322},null,{"$f":"(SUMPRODUCT(AD$9:AD$229,Nutrients!$DF$8:$DF$228)+(IF($A$7=Nutrients!$B$8,Nutrients!$DF$8,Nutrients!$DF$9)*AD$7)+(((IF($A$8=Nutrients!$B$79,Nutrients!$DF$79,(IF($A$8=Nutrients!$B$77,Nutrients!$DF$77,Nutrients!$DF$78)))))*AD$8))/2000/AD$236*100","v":62.016170111736017},{"$f":"(SUMPRODUCT(AE$9:AE$229,Nutrients!$DF$8:$DF$228)+(IF($A$7=Nutrients!$B$8,Nutrients!$DF$8,Nutrients!$DF$9)*AE$7)+(((IF($A$8=Nutrients!$B$79,Nutrients!$DF$79,(IF($A$8=Nutrients!$B$77,Nutrients!$DF$77,Nutrients!$DF$78)))))*AE$8))/2000/AE$236*100","v":62.000942333192519},{"$f":"(SUMPRODUCT(AF$9:AF$229,Nutrients!$DF$8:$DF$228)+(IF($A$7=Nutrients!$B$8,Nutrients!$DF$8,Nutrients!$DF$9)*AF$7)+(((IF($A$8=Nutrients!$B$79,Nutrients!$DF$79,(IF($A$8=Nutrients!$B$77,Nutrients!$DF$77,Nutrients!$DF$78)))))*AF$8))/2000/AF$236*100","v":61.98062536799771},{"$f":"(SUMPRODUCT(AG$9:AG$229,Nutrients!$DF$8:$DF$228)+(IF($A$7=Nutrients!$B$8,Nutrients!$DF$8,Nutrients!$DF$9)*AG$7)+(((IF($A$8=Nutrients!$B$79,Nutrients!$DF$79,(IF($A$8=Nutrients!$B$77,Nutrients!$DF$77,Nutrients!$DF$78)))))*AG$8))/2000/AG$236*100","v":62.990358357603824},{"$f":"(SUMPRODUCT(AH$9:AH$229,Nutrients!$DF$8:$DF$228)+(IF($A$7=Nutrients!$B$8,Nutrients!$DF$8,Nutrients!$DF$9)*AH$7)+(((IF($A$8=Nutrients!$B$79,Nutrients!$DF$79,(IF($A$8=Nutrients!$B$77,Nutrients!$DF$77,Nutrients!$DF$78)))))*AH$8))/2000/AH$236*100","v":62.965173480000416},{"$f":"(SUMPRODUCT(AI$9:AI$229,Nutrients!$DF$8:$DF$228)+(IF($A$7=Nutrients!$B$8,Nutrients!$DF$8,Nutrients!$DF$9)*AI$7)+(((IF($A$8=Nutrients!$B$79,Nutrients!$DF$79,(IF($A$8=Nutrients!$B$77,Nutrients!$DF$77,Nutrients!$DF$78)))))*AI$8))/2000/AI$236*100","v":63.99976486226322},null,{"$f":"(SUMPRODUCT(AK$9:AK$229,Nutrients!$DF$8:$DF$228)+(IF($A$7=Nutrients!$B$8,Nutrients!$DF$8,Nutrients!$DF$9)*AK$7)+(((IF($A$8=Nutrients!$B$79,Nutrients!$DF$79,(IF($A$8=Nutrients!$B$77,Nutrients!$DF$77,Nutrients!$DF$78)))))*AK$8))/2000/AK$236*100","v":61.989117455439228},{"$f":"(SUMPRODUCT(AL$9:AL$229,Nutrients!$DF$8:$DF$228)+(IF($A$7=Nutrients!$B$8,Nutrients!$DF$8,Nutrients!$DF$9)*AL$7)+(((IF($A$8=Nutrients!$B$79,Nutrients!$DF$79,(IF($A$8=Nutrients!$B$77,Nutrients!$DF$77,Nutrients!$DF$78)))))*AL$8))/2000/AL$236*100","v":62.003140508974894},{"$f":"(SUMPRODUCT(AM$9:AM$229,Nutrients!$DF$8:$DF$228)+(IF($A$7=Nutrients!$B$8,Nutrients!$DF$8,Nutrients!$DF$9)*AM$7)+(((IF($A$8=Nutrients!$B$79,Nutrients!$DF$79,(IF($A$8=Nutrients!$B$77,Nutrients!$DF$77,Nutrients!$DF$78)))))*AM$8))/2000/AM$236*100","v":61.974505680659611},{"$f":"(SUMPRODUCT(AN$9:AN$229,Nutrients!$DF$8:$DF$228)+(IF($A$7=Nutrients!$B$8,Nutrients!$DF$8,Nutrients!$DF$9)*AN$7)+(((IF($A$8=Nutrients!$B$79,Nutrients!$DF$79,(IF($A$8=Nutrients!$B$77,Nutrients!$DF$77,Nutrients!$DF$78)))))*AN$8))/2000/AN$236*100","v":62.98276588804741},{"$f":"(SUMPRODUCT(AO$9:AO$229,Nutrients!$DF$8:$DF$228)+(IF($A$7=Nutrients!$B$8,Nutrients!$DF$8,Nutrients!$DF$9)*AO$7)+(((IF($A$8=Nutrients!$B$79,Nutrients!$DF$79,(IF($A$8=Nutrients!$B$77,Nutrients!$DF$77,Nutrients!$DF$78)))))*AO$8))/2000/AO$236*100","v":62.947625837304123},{"$f":"(SUMPRODUCT(AP$9:AP$229,Nutrients!$DF$8:$DF$228)+(IF($A$7=Nutrients!$B$8,Nutrients!$DF$8,Nutrients!$DF$9)*AP$7)+(((IF($A$8=Nutrients!$B$79,Nutrients!$DF$79,(IF($A$8=Nutrients!$B$77,Nutrients!$DF$77,Nutrients!$DF$78)))))*AP$8))/2000/AP$236*100","v":63.99976486226322},null,{"$f":"(SUMPRODUCT(AR$9:AR$229,Nutrients!$DF$8:$DF$228)+(IF($A$7=Nutrients!$B$8,Nutrients!$DF$8,Nutrients!$DF$9)*AR$7)+(((IF($A$8=Nutrients!$B$79,Nutrients!$DF$79,(IF($A$8=Nutrients!$B$77,Nutrients!$DF$77,Nutrients!$DF$78)))))*AR$8))/2000/AR$236*100","v":62.00224225944838},{"$f":"(SUMPRODUCT(AS$9:AS$229,Nutrients!$DF$8:$DF$228)+(IF($A$7=Nutrients!$B$8,Nutrients!$DF$8,Nutrients!$DF$9)*AS$7)+(((IF($A$8=Nutrients!$B$79,Nutrients!$DF$79,(IF($A$8=Nutrients!$B$77,Nutrients!$DF$77,Nutrients!$DF$78)))))*AS$8))/2000/AS$236*100","v":62.005211783611692},{"$f":"(SUMPRODUCT(AT$9:AT$229,Nutrients!$DF$8:$DF$228)+(IF($A$7=Nutrients!$B$8,Nutrients!$DF$8,Nutrients!$DF$9)*AT$7)+(((IF($A$8=Nutrients!$B$79,Nutrients!$DF$79,(IF($A$8=Nutrients!$B$77,Nutrients!$DF$77,Nutrients!$DF$78)))))*AT$8))/2000/AT$236*100","v":61.966294984176272},{"$f":"(SUMPRODUCT(AU$9:AU$229,Nutrients!$DF$8:$DF$228)+(IF($A$7=Nutrients!$B$8,Nutrients!$DF$8,Nutrients!$DF$9)*AU$7)+(((IF($A$8=Nutrients!$B$79,Nutrients!$DF$79,(IF($A$8=Nutrients!$B$77,Nutrients!$DF$77,Nutrients!$DF$78)))))*AU$8))/2000/AU$236*100","v":62.970737828950426},{"$f":"(SUMPRODUCT(AV$9:AV$229,Nutrients!$DF$8:$DF$228)+(IF($A$7=Nutrients!$B$8,Nutrients!$DF$8,Nutrients!$DF$9)*AV$7)+(((IF($A$8=Nutrients!$B$79,Nutrients!$DF$79,(IF($A$8=Nutrients!$B$77,Nutrients!$DF$77,Nutrients!$DF$78)))))*AV$8))/2000/AV$236*100","v":62.929768176067761},{"$f":"(SUMPRODUCT(AW$9:AW$229,Nutrients!$DF$8:$DF$228)+(IF($A$7=Nutrients!$B$8,Nutrients!$DF$8,Nutrients!$DF$9)*AW$7)+(((IF($A$8=Nutrients!$B$79,Nutrients!$DF$79,(IF($A$8=Nutrients!$B$77,Nutrients!$DF$77,Nutrients!$DF$78)))))*AW$8))/2000/AW$236*100","v":63.99976486226322}]
["  Trp:Lys",{"$f":"(SUMPRODUCT(B$9:B$229,Nutrients!$DG$8:$DG$228)+(IF($A$7=Nutrients!$B$8,Nutrients!$DG$8,Nutrients!$DG$9)*B$7)+(((IF($A$8=Nutrients!$B$79,Nutrients!$DG$79,(IF($A$8=Nutrients!$B$77,Nutrients!$DG$77,Nutrients!$DG$78)))))*B$8))/2000/B$236*100","v":18.999999999999996},{"$f":"(SUMPRODUCT(C$9:C$229,Nutrients!$DG$8:$DG$228)+(IF($A$7=Nutrients!$B$8,Nutrients!$DG$8,Nutrients!$DG$9)*C$7)+(((IF($A$8=Nutrients!$B$79,Nutrients!$DG$79,(IF($A$8=Nutrients!$B$77,Nutrients!$DG$77,Nutrients!$DG$78)))))*C$8))/2000/C$236*100","v":18.999999999999993},{"$f":"(SUMPRODUCT(D$9:D$229,Nutrients!$DG$8:$DG$228)+(IF($A$7=Nutrients!$B$8,Nutrients!$DG$8,Nutrients!$DG$9)*D$7)+(((IF($A$8=Nutrients!$B$79,Nutrients!$DG$79,(IF($A$8=Nutrients!$B$77,Nutrients!$DG$77,Nutrients!$DG$78)))))*D$8))/2000/D$236*100","v":19.034949922351728},{"$f":"(SUMPRODUCT(E$9:E$229,Nutrients!$DG$8:$DG$228)+(IF($A$7=Nutrients!$B$8,Nutrients!$DG$8,Nutrients!$DG$9)*E$7)+(((IF($A$8=Nutrients!$B$79,Nutrients!$DG$79,(IF($A$8=Nutrients!$B$77,Nutrients!$DG$77,Nutrients!$DG$78)))))*E$8))/2000/E$236*100","v":19},{"$f":"(SUMPRODUCT(F$9:F$229,Nutrients!$DG$8:$DG$228)+(IF($A$7=Nutrients!$B$8,Nutrients!$DG$8,Nutrients!$DG$9)*F$7)+(((IF($A$8=Nutrients!$B$79,Nutrients!$DG$79,(IF($A$8=Nutrients!$B$77,Nutrients!$DG$77,Nutrients!$DG$78)))))*F$8))/2000/F$236*100","v":19.000000000000043},{"$f":"(SUMPRODUCT(G$9:G$229,Nutrients!$DG$8:$DG$228)+(IF($A$7=Nutrients!$B$8,Nutrients!$DG$8,Nutrients!$DG$9)*G$7)+(((IF($A$8=Nutrients!$B$79,Nutrients!$DG$79,(IF($A$8=Nutrients!$B$77,Nutrients!$DG$77,Nutrients!$DG$78)))))*G$8))/2000/G$236*100","v":18.999963234918017},null,{"$f":"(SUMPRODUCT(I$9:I$229,Nutrients!$DG$8:$DG$228)+(IF($A$7=Nutrients!$B$8,Nutrients!$DG$8,Nutrients!$DG$9)*I$7)+(((IF($A$8=Nutrients!$B$79,Nutrients!$DG$79,(IF($A$8=Nutrients!$B$77,Nutrients!$DG$77,Nutrients!$DG$78)))))*I$8))/2000/I$236*100","v":18.96613749054703},{"$f":"(SUMPRODUCT(J$9:J$229,Nutrients!$DG$8:$DG$228)+(IF($A$7=Nutrients!$B$8,Nutrients!$DG$8,Nutrients!$DG$9)*J$7)+(((IF($A$8=Nutrients!$B$79,Nutrients!$DG$79,(IF($A$8=Nutrients!$B$77,Nutrients!$DG$77,Nutrients!$DG$78)))))*J$8))/2000/J$236*100","v":18.966695120433659},{"$f":"(SUMPRODUCT(K$9:K$229,Nutrients!$DG$8:$DG$228)+(IF($A$7=Nutrients!$B$8,Nutrients!$DG$8,Nutrients!$DG$9)*K$7)+(((IF($A$8=Nutrients!$B$79,Nutrients!$DG$79,(IF($A$8=Nutrients!$B$77,Nutrients!$DG$77,Nutrients!$DG$78)))))*K$8))/2000/K$236*100","v":19.002182096555781},{"$f":"(SUMPRODUCT(L$9:L$229,Nutrients!$DG$8:$DG$228)+(IF($A$7=Nutrients!$B$8,Nutrients!$DG$8,Nutrients!$DG$9)*L$7)+(((IF($A$8=Nutrients!$B$79,Nutrients!$DG$79,(IF($A$8=Nutrients!$B$77,Nutrients!$DG$77,Nutrients!$DG$78)))))*L$8))/2000/L$236*100","v":18.966548938995487},{"$f":"(SUMPRODUCT(M$9:M$229,Nutrients!$DG$8:$DG$228)+(IF($A$7=Nutrients!$B$8,Nutrients!$DG$8,Nutrients!$DG$9)*M$7)+(((IF($A$8=Nutrients!$B$79,Nutrients!$DG$79,(IF($A$8=Nutrients!$B$77,Nutrients!$DG$77,Nutrients!$DG$78)))))*M$8))/2000/M$236*100","v":18.963129694942889},{"$f":"(SUMPRODUCT(N$9:N$229,Nutrients!$DG$8:$DG$228)+(IF($A$7=Nutrients!$B$8,Nutrients!$DG$8,Nutrients!$DG$9)*N$7)+(((IF($A$8=Nutrients!$B$79,Nutrients!$DG$79,(IF($A$8=Nutrients!$B$77,Nutrients!$DG$77,Nutrients!$DG$78)))))*N$8))/2000/N$236*100","v":18.999963234918017},null,{"$f":"(SUMPRODUCT(P$9:P$229,Nutrients!$DG$8:$DG$228)+(IF($A$7=Nutrients!$B$8,Nutrients!$DG$8,Nutrients!$DG$9)*P$7)+(((IF($A$8=Nutrients!$B$79,Nutrients!$DG$79,(IF($A$8=Nutrients!$B$77,Nutrients!$DG$77,Nutrients!$DG$78)))))*P$8))/2000/P$236*100","v":18.979458084351613},{"$f":"(SUMPRODUCT(Q$9:Q$229,Nutrients!$DG$8:$DG$228)+(IF($A$7=Nutrients!$B$8,Nutrients!$DG$8,Nutrients!$DG$9)*Q$7)+(((IF($A$8=Nutrients!$B$79,Nutrients!$DG$79,(IF($A$8=Nutrients!$B$77,Nutrients!$DG$77,Nutrients!$DG$78)))))*Q$8))/2000/Q$236*100","v":18.984827369337388},{"$f":"(SUMPRODUCT(R$9:R$229,Nutrients!$DG$8:$DG$228)+(IF($A$7=Nutrients!$B$8,Nutrients!$DG$8,Nutrients!$DG$9)*R$7)+(((IF($A$8=Nutrients!$B$79,Nutrients!$DG$79,(IF($A$8=Nutrients!$B$77,Nutrients!$DG$77,Nutrients!$DG$78)))))*R$8))/2000/R$236*100","v":19.026630788039895},{"$f":"(SUMPRODUCT(S$9:S$229,Nutrients!$DG$8:$DG$228)+(IF($A$7=Nutrients!$B$8,Nutrients!$DG$8,Nutrients!$DG$9)*S$7)+(((IF($A$8=Nutrients!$B$79,Nutrients!$DG$79,(IF($A$8=Nutrients!$B$77,Nutrients!$DG$77,Nutrients!$DG$78)))))*S$8))/2000/S$236*100","v":18.991815022412361},{"$f":"(SUMPRODUCT(T$9:T$229,Nutrients!$DG$8:$DG$228)+(IF($A$7=Nutrients!$B$8,Nutrients!$DG$8,Nutrients!$DG$9)*T$7)+(((IF($A$8=Nutrients!$B$79,Nutrients!$DG$79,(IF($A$8=Nutrients!$B$77,Nutrients!$DG$77,Nutrients!$DG$78)))))*T$8))/2000/T$236*100","v":18.994350696939758},{"$f":"(SUMPRODUCT(U$9:U$229,Nutrients!$DG$8:$DG$228)+(IF($A$7=Nutrients!$B$8,Nutrients!$DG$8,Nutrients!$DG$9)*U$7)+(((IF($A$8=Nutrients!$B$79,Nutrients!$DG$79,(IF($A$8=Nutrients!$B$77,Nutrients!$DG$77,Nutrients!$DG$78)))))*U$8))/2000/U$236*100","v":18.999963234918017},null,{"$f":"(SUMPRODUCT(W$9:W$229,Nutrients!$DG$8:$DG$228)+(IF($A$7=Nutrients!$B$8,Nutrients!$DG$8,Nutrients!$DG$9)*W$7)+(((IF($A$8=Nutrients!$B$79,Nutrients!$DG$79,(IF($A$8=Nutrients!$B$77,Nutrients!$DG$77,Nutrients!$DG$78)))))*W$8))/2000/W$236*100","v":18.992965286611927},{"$f":"(SUMPRODUCT(X$9:X$229,Nutrients!$DG$8:$DG$228)+(IF($A$7=Nutrients!$B$8,Nutrients!$DG$8,Nutrients!$DG$9)*X$7)+(((IF($A$8=Nutrients!$B$79,Nutrients!$DG$79,(IF($A$8=Nutrients!$B$77,Nutrients!$DG$77,Nutrients!$DG$78)))))*X$8))/2000/X$236*100","v":19.003233429746302},{"$f":"(SUMPRODUCT(Y$9:Y$229,Nutrients!$DG$8:$DG$228)+(IF($A$7=Nutrients!$B$8,Nutrients!$DG$8,Nutrients!$DG$9)*Y$7)+(((IF($A$8=Nutrients!$B$79,Nutrients!$DG$79,(IF($A$8=Nutrients!$B$77,Nutrients!$DG$77,Nutrients!$DG$78)))))*Y$8))/2000/Y$236*100","v":19.046137425137381},{"$f":"(SUMPRODUCT(Z$9:Z$229,Nutrients!$DG$8:$DG$228)+(IF($A$7=Nutrients!$B$8,Nutrients!$DG$8,Nutrients!$DG$9)*Z$7)+(((IF($A$8=Nutrients!$B$79,Nutrients!$DG$79,(IF($A$8=Nutrients!$B$77,Nutrients!$DG$77,Nutrients!$DG$78)))))*Z$8))/2000/Z$236*100","v":19.01901082126091},{"$f":"(SUMPRODUCT(AA$9:AA$229,Nutrients!$DG$8:$DG$228)+(IF($A$7=Nutrients!$B$8,Nutrients!$DG$8,Nutrients!$DG$9)*AA$7)+(((IF($A$8=Nutrients!$B$79,Nutrients!$DG$79,(IF($A$8=Nutrients!$B$77,Nutrients!$DG$77,Nutrients!$DG$78)))))*AA$8))/2000/AA$236*100","v":19.026488064677384},{"$f":"(SUMPRODUCT(AB$9:AB$229,Nutrients!$DG$8:$DG$228)+(IF($A$7=Nutrients!$B$8,Nutrients!$DG$8,Nutrients!$DG$9)*AB$7)+(((IF($A$8=Nutrients!$B$79,Nutrients!$DG$79,(IF($A$8=Nutrients!$B$77,Nutrients!$DG$77,Nutrients!$DG$78)))))*AB$8))/2000/AB$236*100","v":18.999963234918017},null,{"$f":"(SUMPRODUCT(AD$9:AD$229,Nutrients!$DG$8:$DG$228)+(IF($A$7=Nutrients!$B$8,Nutrients!$DG$8,Nutrients!$DG$9)*AD$7)+(((IF($A$8=Nutrients!$B$79,Nutrients!$DG$79,(IF($A$8=Nutrients!$B$77,Nutrients!$DG$77,Nutrients!$DG$78)))))*AD$8))/2000/AD$236*100","v":19.006321697690311},{"$f":"(SUMPRODUCT(AE$9:AE$229,Nutrients!$DG$8:$DG$228)+(IF($A$7=Nutrients!$B$8,Nutrients!$DG$8,Nutrients!$DG$9)*AE$7)+(((IF($A$8=Nutrients!$B$79,Nutrients!$DG$79,(IF($A$8=Nutrients!$B$77,Nutrients!$DG$77,Nutrients!$DG$78)))))*AE$8))/2000/AE$236*100","v":19.017227334407099},{"$f":"(SUMPRODUCT(AF$9:AF$229,Nutrients!$DG$8:$DG$228)+(IF($A$7=Nutrients!$B$8,Nutrients!$DG$8,Nutrients!$DG$9)*AF$7)+(((IF($A$8=Nutrients!$B$79,Nutrients!$DG$79,(IF($A$8=Nutrients!$B$77,Nutrients!$DG$77,Nutrients!$DG$78)))))*AF$8))/2000/AF$236*100","v":18.999966790846877},{"$f":"(SUMPRODUCT(AG$9:AG$229,Nutrients!$DG$8:$DG$228)+(IF($A$7=Nutrients!$B$8,Nutrients!$DG$8,Nutrients!$DG$9)*AG$7)+(((IF($A$8=Nutrients!$B$79,Nutrients!$DG$79,(IF($A$8=Nutrients!$B$77,Nutrients!$DG$77,Nutrients!$DG$78)))))*AG$8))/2000/AG$236*100","v":19.046447634243311},{"$f":"(SUMPRODUCT(AH$9:AH$229,Nutrients!$DG$8:$DG$228)+(IF($A$7=Nutrients!$B$8,Nutrients!$DG$8,Nutrients!$DG$9)*AH$7)+(((IF($A$8=Nutrients!$B$79,Nutrients!$DG$79,(IF($A$8=Nutrients!$B$77,Nutrients!$DG$77,Nutrients!$DG$78)))))*AH$8))/2000/AH$236*100","v":18.999959259985769},{"$f":"(SUMPRODUCT(AI$9:AI$229,Nutrients!$DG$8:$DG$228)+(IF($A$7=Nutrients!$B$8,Nutrients!$DG$8,Nutrients!$DG$9)*AI$7)+(((IF($A$8=Nutrients!$B$79,Nutrients!$DG$79,(IF($A$8=Nutrients!$B$77,Nutrients!$DG$77,Nutrients!$DG$78)))))*AI$8))/2000/AI$236*100","v":18.999963234918017},null,{"$f":"(SUMPRODUCT(AK$9:AK$229,Nutrients!$DG$8:$DG$228)+(IF($A$7=Nutrients!$B$8,Nutrients!$DG$8,Nutrients!$DG$9)*AK$7)+(((IF($A$8=Nutrients!$B$79,Nutrients!$DG$79,(IF($A$8=Nutrients!$B$77,Nutrients!$DG$77,Nutrients!$DG$78)))))*AK$8))/2000/AK$236*100","v":19.036344234507876},{"$f":"(SUMPRODUCT(AL$9:AL$229,Nutrients!$DG$8:$DG$228)+(IF($A$7=Nutrients!$B$8,Nutrients!$DG$8,Nutrients!$DG$9)*AL$7)+(((IF($A$8=Nutrients!$B$79,Nutrients!$DG$79,(IF($A$8=Nutrients!$B$77,Nutrients!$DG$77,Nutrients!$DG$78)))))*AL$8))/2000/AL$236*100","v":19.032808939858032},{"$f":"(SUMPRODUCT(AM$9:AM$229,Nutrients!$DG$8:$DG$228)+(IF($A$7=Nutrients!$B$8,Nutrients!$DG$8,Nutrients!$DG$9)*AM$7)+(((IF($A$8=Nutrients!$B$79,Nutrients!$DG$79,(IF($A$8=Nutrients!$B$77,Nutrients!$DG$77,Nutrients!$DG$78)))))*AM$8))/2000/AM$236*100","v":19.021395145702705},{"$f":"(SUMPRODUCT(AN$9:AN$229,Nutrients!$DG$8:$DG$228)+(IF($A$7=Nutrients!$B$8,Nutrients!$DG$8,Nutrients!$DG$9)*AN$7)+(((IF($A$8=Nutrients!$B$79,Nutrients!$DG$79,(IF($A$8=Nutrients!$B$77,Nutrients!$DG$77,Nutrients!$DG$78)))))*AN$8))/2000/AN$236*100","v":18.999951326059914},{"$f":"(SUMPRODUCT(AO$9:AO$229,Nutrients!$DG$8:$DG$228)+(IF($A$7=Nutrients!$B$8,Nutrients!$DG$8,Nutrients!$DG$9)*AO$7)+(((IF($A$8=Nutrients!$B$79,Nutrients!$DG$79,(IF($A$8=Nutrients!$B$77,Nutrients!$DG$77,Nutrients!$DG$78)))))*AO$8))/2000/AO$236*100","v":19.02853809550022},{"$f":"(SUMPRODUCT(AP$9:AP$229,Nutrients!$DG$8:$DG$228)+(IF($A$7=Nutrients!$B$8,Nutrients!$DG$8,Nutrients!$DG$9)*AP$7)+(((IF($A$8=Nutrients!$B$79,Nutrients!$DG$79,(IF($A$8=Nutrients!$B$77,Nutrients!$DG$77,Nutrients!$DG$78)))))*AP$8))/2000/AP$236*100","v":18.999963234918017},null,{"$f":"(SUMPRODUCT(AR$9:AR$229,Nutrients!$DG$8:$DG$228)+(IF($A$7=Nutrients!$B$8,Nutrients!$DG$8,Nutrients!$DG$9)*AR$7)+(((IF($A$8=Nutrients!$B$79,Nutrients!$DG$79,(IF($A$8=Nutrients!$B$77,Nutrients!$DG$77,Nutrients!$DG$78)))))*AR$8))/2000/AR$236*100","v":19.043917651913343},{"$f":"(SUMPRODUCT(AS$9:AS$229,Nutrients!$DG$8:$DG$228)+(IF($A$7=Nutrients!$B$8,Nutrients!$DG$8,Nutrients!$DG$9)*AS$7)+(((IF($A$8=Nutrients!$B$79,Nutrients!$DG$79,(IF($A$8=Nutrients!$B$77,Nutrients!$DG$77,Nutrients!$DG$78)))))*AS$8))/2000/AS$236*100","v":19.048660196551442},{"$f":"(SUMPRODUCT(AT$9:AT$229,Nutrients!$DG$8:$DG$228)+(IF($A$7=Nutrients!$B$8,Nutrients!$DG$8,Nutrients!$DG$9)*AT$7)+(((IF($A$8=Nutrients!$B$79,Nutrients!$DG$79,(IF($A$8=Nutrients!$B$77,Nutrients!$DG$77,Nutrients!$DG$78)))))*AT$8))/2000/AT$236*100","v":19.044184930549896},{"$f":"(SUMPRODUCT(AU$9:AU$229,Nutrients!$DG$8:$DG$228)+(IF($A$7=Nutrients!$B$8,Nutrients!$DG$8,Nutrients!$DG$9)*AU$7)+(((IF($A$8=Nutrients!$B$79,Nutrients!$DG$79,(IF($A$8=Nutrients!$B$77,Nutrients!$DG$77,Nutrients!$DG$78)))))*AU$8))/2000/AU$236*100","v":19.024294820724784},{"$f":"(SUMPRODUCT(AV$9:AV$229,Nutrients!$DG$8:$DG$228)+(IF($A$7=Nutrients!$B$8,Nutrients!$DG$8,Nutrients!$DG$9)*AV$7)+(((IF($A$8=Nutrients!$B$79,Nutrients!$DG$79,(IF($A$8=Nutrients!$B$77,Nutrients!$DG$77,Nutrients!$DG$78)))))*AV$8))/2000/AV$236*100","v":18.999937835069783},{"$f":"(SUMPRODUCT(AW$9:AW$229,Nutrients!$DG$8:$DG$228)+(IF($A$7=Nutrients!$B$8,Nutrients!$DG$8,Nutrients!$DG$9)*AW$7)+(((IF($A$8=Nutrients!$B$79,Nutrients!$DG$79,(IF($A$8=Nutrients!$B$77,Nutrients!$DG$77,Nutrients!$DG$78)))))*AW$8))/2000/AW$236*100","v":18.999963234918017}]
["  Val:Lys",{"$f":"(SUMPRODUCT(B$9:B$229,Nutrients!$DH$8:$DH$228)+(IF($A$7=Nutrients!$B$8,Nutrients!$DH$8,Nutrients!$DH$9)*B$7)+(((IF($A$8=Nutrients!$B$79,Nutrients!$DH$79,(IF($A$8=Nutrients!$B$77,Nutrients!$DH$77,Nutrients!$DH$78)))))*B$8))/2000/B$236*100","v":67.993447185961713},{"$f":"(SUMPRODUCT(C$9:C$229,Nutrients!$DH$8:$DH$228)+(IF($A$7=Nutrients!$B$8,Nutrients!$DH$8,Nutrients!$DH$9)*C$7)+(((IF($A$8=Nutrients!$B$79,Nutrients!$DH$79,(IF($A$8=Nutrients!$B$77,Nutrients!$DH$77,Nutrients!$DH$78)))))*C$8))/2000/C$236*100","v":68.398027542407448},{"$f":"(SUMPRODUCT(D$9:D$229,Nutrients!$DH$8:$DH$228)+(IF($A$7=Nutrients!$B$8,Nutrients!$DH$8,Nutrients!$DH$9)*D$7)+(((IF($A$8=Nutrients!$B$79,Nutrients!$DH$79,(IF($A$8=Nutrients!$B$77,Nutrients!$DH$77,Nutrients!$DH$78)))))*D$8))/2000/D$236*100","v":69.100266999000937},{"$f":"(SUMPRODUCT(E$9:E$229,Nutrients!$DH$8:$DH$228)+(IF($A$7=Nutrients!$B$8,Nutrients!$DH$8,Nutrients!$DH$9)*E$7)+(((IF($A$8=Nutrients!$B$79,Nutrients!$DH$79,(IF($A$8=Nutrients!$B$77,Nutrients!$DH$77,Nutrients!$DH$78)))))*E$8))/2000/E$236*100","v":69.699001665042786},{"$f":"(SUMPRODUCT(F$9:F$229,Nutrients!$DH$8:$DH$228)+(IF($A$7=Nutrients!$B$8,Nutrients!$DH$8,Nutrients!$DH$9)*F$7)+(((IF($A$8=Nutrients!$B$79,Nutrients!$DH$79,(IF($A$8=Nutrients!$B$77,Nutrients!$DH$77,Nutrients!$DH$78)))))*F$8))/2000/F$236*100","v":70.40130835469482},{"$f":"(SUMPRODUCT(G$9:G$229,Nutrients!$DH$8:$DH$228)+(IF($A$7=Nutrients!$B$8,Nutrients!$DH$8,Nutrients!$DH$9)*G$7)+(((IF($A$8=Nutrients!$B$79,Nutrients!$DH$79,(IF($A$8=Nutrients!$B$77,Nutrients!$DH$77,Nutrients!$DH$78)))))*G$8))/2000/G$236*100","v":71.102510214887189},null,{"$f":"(SUMPRODUCT(I$9:I$229,Nutrients!$DH$8:$DH$228)+(IF($A$7=Nutrients!$B$8,Nutrients!$DH$8,Nutrients!$DH$9)*I$7)+(((IF($A$8=Nutrients!$B$79,Nutrients!$DH$79,(IF($A$8=Nutrients!$B$77,Nutrients!$DH$77,Nutrients!$DH$78)))))*I$8))/2000/I$236*100","v":69.093974384643147},{"$f":"(SUMPRODUCT(J$9:J$229,Nutrients!$DH$8:$DH$228)+(IF($A$7=Nutrients!$B$8,Nutrients!$DH$8,Nutrients!$DH$9)*J$7)+(((IF($A$8=Nutrients!$B$79,Nutrients!$DH$79,(IF($A$8=Nutrients!$B$77,Nutrients!$DH$77,Nutrients!$DH$78)))))*J$8))/2000/J$236*100","v":69.643101119106518},{"$f":"(SUMPRODUCT(K$9:K$229,Nutrients!$DH$8:$DH$228)+(IF($A$7=Nutrients!$B$8,Nutrients!$DH$8,Nutrients!$DH$9)*K$7)+(((IF($A$8=Nutrients!$B$79,Nutrients!$DH$79,(IF($A$8=Nutrients!$B$77,Nutrients!$DH$77,Nutrients!$DH$78)))))*K$8))/2000/K$236*100","v":70.511197703413259},{"$f":"(SUMPRODUCT(L$9:L$229,Nutrients!$DH$8:$DH$228)+(IF($A$7=Nutrients!$B$8,Nutrients!$DH$8,Nutrients!$DH$9)*L$7)+(((IF($A$8=Nutrients!$B$79,Nutrients!$DH$79,(IF($A$8=Nutrients!$B$77,Nutrients!$DH$77,Nutrients!$DH$78)))))*L$8))/2000/L$236*100","v":71.288982894855948},{"$f":"(SUMPRODUCT(M$9:M$229,Nutrients!$DH$8:$DH$228)+(IF($A$7=Nutrients!$B$8,Nutrients!$DH$8,Nutrients!$DH$9)*M$7)+(((IF($A$8=Nutrients!$B$79,Nutrients!$DH$79,(IF($A$8=Nutrients!$B$77,Nutrients!$DH$77,Nutrients!$DH$78)))))*M$8))/2000/M$236*100","v":72.142845614545109},{"$f":"(SUMPRODUCT(N$9:N$229,Nutrients!$DH$8:$DH$228)+(IF($A$7=Nutrients!$B$8,Nutrients!$DH$8,Nutrients!$DH$9)*N$7)+(((IF($A$8=Nutrients!$B$79,Nutrients!$DH$79,(IF($A$8=Nutrients!$B$77,Nutrients!$DH$77,Nutrients!$DH$78)))))*N$8))/2000/N$236*100","v":71.102510214887189},null,{"$f":"(SUMPRODUCT(P$9:P$229,Nutrients!$DH$8:$DH$228)+(IF($A$7=Nutrients!$B$8,Nutrients!$DH$8,Nutrients!$DH$9)*P$7)+(((IF($A$8=Nutrients!$B$79,Nutrients!$DH$79,(IF($A$8=Nutrients!$B$77,Nutrients!$DH$77,Nutrients!$DH$78)))))*P$8))/2000/P$236*100","v":70.206337297398179},{"$f":"(SUMPRODUCT(Q$9:Q$229,Nutrients!$DH$8:$DH$228)+(IF($A$7=Nutrients!$B$8,Nutrients!$DH$8,Nutrients!$DH$9)*Q$7)+(((IF($A$8=Nutrients!$B$79,Nutrients!$DH$79,(IF($A$8=Nutrients!$B$77,Nutrients!$DH$77,Nutrients!$DH$78)))))*Q$8))/2000/Q$236*100","v":70.902210472313243},{"$f":"(SUMPRODUCT(R$9:R$229,Nutrients!$DH$8:$DH$228)+(IF($A$7=Nutrients!$B$8,Nutrients!$DH$8,Nutrients!$DH$9)*R$7)+(((IF($A$8=Nutrients!$B$79,Nutrients!$DH$79,(IF($A$8=Nutrients!$B$77,Nutrients!$DH$77,Nutrients!$DH$78)))))*R$8))/2000/R$236*100","v":71.937703152938838},{"$f":"(SUMPRODUCT(S$9:S$229,Nutrients!$DH$8:$DH$228)+(IF($A$7=Nutrients!$B$8,Nutrients!$DH$8,Nutrients!$DH$9)*S$7)+(((IF($A$8=Nutrients!$B$79,Nutrients!$DH$79,(IF($A$8=Nutrients!$B$77,Nutrients!$DH$77,Nutrients!$DH$78)))))*S$8))/2000/S$236*100","v":72.900156867116124},{"$f":"(SUMPRODUCT(T$9:T$229,Nutrients!$DH$8:$DH$228)+(IF($A$7=Nutrients!$B$8,Nutrients!$DH$8,Nutrients!$DH$9)*T$7)+(((IF($A$8=Nutrients!$B$79,Nutrients!$DH$79,(IF($A$8=Nutrients!$B$77,Nutrients!$DH$77,Nutrients!$DH$78)))))*T$8))/2000/T$236*100","v":73.901896651270803},{"$f":"(SUMPRODUCT(U$9:U$229,Nutrients!$DH$8:$DH$228)+(IF($A$7=Nutrients!$B$8,Nutrients!$DH$8,Nutrients!$DH$9)*U$7)+(((IF($A$8=Nutrients!$B$79,Nutrients!$DH$79,(IF($A$8=Nutrients!$B$77,Nutrients!$DH$77,Nutrients!$DH$78)))))*U$8))/2000/U$236*100","v":71.102510214887189},null,{"$f":"(SUMPRODUCT(W$9:W$229,Nutrients!$DH$8:$DH$228)+(IF($A$7=Nutrients!$B$8,Nutrients!$DH$8,Nutrients!$DH$9)*W$7)+(((IF($A$8=Nutrients!$B$79,Nutrients!$DH$79,(IF($A$8=Nutrients!$B$77,Nutrients!$DH$77,Nutrients!$DH$78)))))*W$8))/2000/W$236*100","v":71.334063883838212},{"$f":"(SUMPRODUCT(X$9:X$229,Nutrients!$DH$8:$DH$228)+(IF($A$7=Nutrients!$B$8,Nutrients!$DH$8,Nutrients!$DH$9)*X$7)+(((IF($A$8=Nutrients!$B$79,Nutrients!$DH$79,(IF($A$8=Nutrients!$B$77,Nutrients!$DH$77,Nutrients!$DH$78)))))*X$8))/2000/X$236*100","v":72.178852710011938},{"$f":"(SUMPRODUCT(Y$9:Y$229,Nutrients!$DH$8:$DH$228)+(IF($A$7=Nutrients!$B$8,Nutrients!$DH$8,Nutrients!$DH$9)*Y$7)+(((IF($A$8=Nutrients!$B$79,Nutrients!$DH$79,(IF($A$8=Nutrients!$B$77,Nutrients!$DH$77,Nutrients!$DH$78)))))*Y$8))/2000/Y$236*100","v":73.393911952958618},{"$f":"(SUMPRODUCT(Z$9:Z$229,Nutrients!$DH$8:$DH$228)+(IF($A$7=Nutrients!$B$8,Nutrients!$DH$8,Nutrients!$DH$9)*Z$7)+(((IF($A$8=Nutrients!$B$79,Nutrients!$DH$79,(IF($A$8=Nutrients!$B$77,Nutrients!$DH$77,Nutrients!$DH$78)))))*Z$8))/2000/Z$236*100","v":74.533549938140879},{"$f":"(SUMPRODUCT(AA$9:AA$229,Nutrients!$DH$8:$DH$228)+(IF($A$7=Nutrients!$B$8,Nutrients!$DH$8,Nutrients!$DH$9)*AA$7)+(((IF($A$8=Nutrients!$B$79,Nutrients!$DH$79,(IF($A$8=Nutrients!$B$77,Nutrients!$DH$77,Nutrients!$DH$78)))))*AA$8))/2000/AA$236*100","v":75.686909158492881},{"$f":"(SUMPRODUCT(AB$9:AB$229,Nutrients!$DH$8:$DH$228)+(IF($A$7=Nutrients!$B$8,Nutrients!$DH$8,Nutrients!$DH$9)*AB$7)+(((IF($A$8=Nutrients!$B$79,Nutrients!$DH$79,(IF($A$8=Nutrients!$B$77,Nutrients!$DH$77,Nutrients!$DH$78)))))*AB$8))/2000/AB$236*100","v":71.102510214887189},null,{"$f":"(SUMPRODUCT(AD$9:AD$229,Nutrients!$DH$8:$DH$228)+(IF($A$7=Nutrients!$B$8,Nutrients!$DH$8,Nutrients!$DH$9)*AD$7)+(((IF($A$8=Nutrients!$B$79,Nutrients!$DH$79,(IF($A$8=Nutrients!$B$77,Nutrients!$DH$77,Nutrients!$DH$78)))))*AD$8))/2000/AD$236*100","v":72.4775937028421},{"$f":"(SUMPRODUCT(AE$9:AE$229,Nutrients!$DH$8:$DH$228)+(IF($A$7=Nutrients!$B$8,Nutrients!$DH$8,Nutrients!$DH$9)*AE$7)+(((IF($A$8=Nutrients!$B$79,Nutrients!$DH$79,(IF($A$8=Nutrients!$B$77,Nutrients!$DH$77,Nutrients!$DH$78)))))*AE$8))/2000/AE$236*100","v":73.481995814937449},{"$f":"(SUMPRODUCT(AF$9:AF$229,Nutrients!$DH$8:$DH$228)+(IF($A$7=Nutrients!$B$8,Nutrients!$DH$8,Nutrients!$DH$9)*AF$7)+(((IF($A$8=Nutrients!$B$79,Nutrients!$DH$79,(IF($A$8=Nutrients!$B$77,Nutrients!$DH$77,Nutrients!$DH$78)))))*AF$8))/2000/AF$236*100","v":74.871137457329567},{"$f":"(SUMPRODUCT(AG$9:AG$229,Nutrients!$DH$8:$DH$228)+(IF($A$7=Nutrients!$B$8,Nutrients!$DH$8,Nutrients!$DH$9)*AG$7)+(((IF($A$8=Nutrients!$B$79,Nutrients!$DH$79,(IF($A$8=Nutrients!$B$77,Nutrients!$DH$77,Nutrients!$DH$78)))))*AG$8))/2000/AG$236*100","v":76.189992197940839},{"$f":"(SUMPRODUCT(AH$9:AH$229,Nutrients!$DH$8:$DH$228)+(IF($A$7=Nutrients!$B$8,Nutrients!$DH$8,Nutrients!$DH$9)*AH$7)+(((IF($A$8=Nutrients!$B$79,Nutrients!$DH$79,(IF($A$8=Nutrients!$B$77,Nutrients!$DH$77,Nutrients!$DH$78)))))*AH$8))/2000/AH$236*100","v":77.492218852370982},{"$f":"(SUMPRODUCT(AI$9:AI$229,Nutrients!$DH$8:$DH$228)+(IF($A$7=Nutrients!$B$8,Nutrients!$DH$8,Nutrients!$DH$9)*AI$7)+(((IF($A$8=Nutrients!$B$79,Nutrients!$DH$79,(IF($A$8=Nutrients!$B$77,Nutrients!$DH$77,Nutrients!$DH$78)))))*AI$8))/2000/AI$236*100","v":71.102510214887189},null,{"$f":"(SUMPRODUCT(AK$9:AK$229,Nutrients!$DH$8:$DH$228)+(IF($A$7=Nutrients!$B$8,Nutrients!$DH$8,Nutrients!$DH$9)*AK$7)+(((IF($A$8=Nutrients!$B$79,Nutrients!$DH$79,(IF($A$8=Nutrients!$B$77,Nutrients!$DH$77,Nutrients!$DH$78)))))*AK$8))/2000/AK$236*100","v":73.6037463202656},{"$f":"(SUMPRODUCT(AL$9:AL$229,Nutrients!$DH$8:$DH$228)+(IF($A$7=Nutrients!$B$8,Nutrients!$DH$8,Nutrients!$DH$9)*AL$7)+(((IF($A$8=Nutrients!$B$79,Nutrients!$DH$79,(IF($A$8=Nutrients!$B$77,Nutrients!$DH$77,Nutrients!$DH$78)))))*AL$8))/2000/AL$236*100","v":74.803645712631351},{"$f":"(SUMPRODUCT(AM$9:AM$229,Nutrients!$DH$8:$DH$228)+(IF($A$7=Nutrients!$B$8,Nutrients!$DH$8,Nutrients!$DH$9)*AM$7)+(((IF($A$8=Nutrients!$B$79,Nutrients!$DH$79,(IF($A$8=Nutrients!$B$77,Nutrients!$DH$77,Nutrients!$DH$78)))))*AM$8))/2000/AM$236*100","v":76.36788071286135},{"$f":"(SUMPRODUCT(AN$9:AN$229,Nutrients!$DH$8:$DH$228)+(IF($A$7=Nutrients!$B$8,Nutrients!$DH$8,Nutrients!$DH$9)*AN$7)+(((IF($A$8=Nutrients!$B$79,Nutrients!$DH$79,(IF($A$8=Nutrients!$B$77,Nutrients!$DH$77,Nutrients!$DH$78)))))*AN$8))/2000/AN$236*100","v":77.867905378141757},{"$f":"(SUMPRODUCT(AO$9:AO$229,Nutrients!$DH$8:$DH$228)+(IF($A$7=Nutrients!$B$8,Nutrients!$DH$8,Nutrients!$DH$9)*AO$7)+(((IF($A$8=Nutrients!$B$79,Nutrients!$DH$79,(IF($A$8=Nutrients!$B$77,Nutrients!$DH$77,Nutrients!$DH$78)))))*AO$8))/2000/AO$236*100","v":79.323825684649535},{"$f":"(SUMPRODUCT(AP$9:AP$229,Nutrients!$DH$8:$DH$228)+(IF($A$7=Nutrients!$B$8,Nutrients!$DH$8,Nutrients!$DH$9)*AP$7)+(((IF($A$8=Nutrients!$B$79,Nutrients!$DH$79,(IF($A$8=Nutrients!$B$77,Nutrients!$DH$77,Nutrients!$DH$78)))))*AP$8))/2000/AP$236*100","v":71.102510214887189},null,{"$f":"(SUMPRODUCT(AR$9:AR$229,Nutrients!$DH$8:$DH$228)+(IF($A$7=Nutrients!$B$8,Nutrients!$DH$8,Nutrients!$DH$9)*AR$7)+(((IF($A$8=Nutrients!$B$79,Nutrients!$DH$79,(IF($A$8=Nutrients!$B$77,Nutrients!$DH$77,Nutrients!$DH$78)))))*AR$8))/2000/AR$236*100","v":74.788564974389104},{"$f":"(SUMPRODUCT(AS$9:AS$229,Nutrients!$DH$8:$DH$228)+(IF($A$7=Nutrients!$B$8,Nutrients!$DH$8,Nutrients!$DH$9)*AS$7)+(((IF($A$8=Nutrients!$B$79,Nutrients!$DH$79,(IF($A$8=Nutrients!$B$77,Nutrients!$DH$77,Nutrients!$DH$78)))))*AS$8))/2000/AS$236*100","v":76.145974347772778},{"$f":"(SUMPRODUCT(AT$9:AT$229,Nutrients!$DH$8:$DH$228)+(IF($A$7=Nutrients!$B$8,Nutrients!$DH$8,Nutrients!$DH$9)*AT$7)+(((IF($A$8=Nutrients!$B$79,Nutrients!$DH$79,(IF($A$8=Nutrients!$B$77,Nutrients!$DH$77,Nutrients!$DH$78)))))*AT$8))/2000/AT$236*100","v":77.884435171212786},{"$f":"(SUMPRODUCT(AU$9:AU$229,Nutrients!$DH$8:$DH$228)+(IF($A$7=Nutrients!$B$8,Nutrients!$DH$8,Nutrients!$DH$9)*AU$7)+(((IF($A$8=Nutrients!$B$79,Nutrients!$DH$79,(IF($A$8=Nutrients!$B$77,Nutrients!$DH$77,Nutrients!$DH$78)))))*AU$8))/2000/AU$236*100","v":79.566807091891107},{"$f":"(SUMPRODUCT(AV$9:AV$229,Nutrients!$DH$8:$DH$228)+(IF($A$7=Nutrients!$B$8,Nutrients!$DH$8,Nutrients!$DH$9)*AV$7)+(((IF($A$8=Nutrients!$B$79,Nutrients!$DH$79,(IF($A$8=Nutrients!$B$77,Nutrients!$DH$77,Nutrients!$DH$78)))))*AV$8))/2000/AV$236*100","v":81.187549789161011},{"$f":"(SUMPRODUCT(AW$9:AW$229,Nutrients!$DH$8:$DH$228)+(IF($A$7=Nutrients!$B$8,Nutrients!$DH$8,Nutrients!$DH$9)*AW$7)+(((IF($A$8=Nutrients!$B$79,Nutrients!$DH$79,(IF($A$8=Nutrients!$B$77,Nutrients!$DH$77,Nutrients!$DH$78)))))*AW$8))/2000/AW$236*100","v":71.102510214887189}]
["  His:Lys",{"$f":"(SUMPRODUCT(B$9:B$229,Nutrients!$CX$8:$CX$228)+(IF($A$7=Nutrients!$B$8,Nutrients!$CX$8,Nutrients!$CX$9)*B$7)+(((IF($A$8=Nutrients!$B$79,Nutrients!$CX$79,(IF($A$8=Nutrients!$B$77,Nutrients!$CX$77,Nutrients!$CX$78)))))*B$8))/2000/B$236*100","v":41.164178486168282},{"$f":"(SUMPRODUCT(C$9:C$229,Nutrients!$CX$8:$CX$228)+(IF($A$7=Nutrients!$B$8,Nutrients!$CX$8,Nutrients!$CX$9)*C$7)+(((IF($A$8=Nutrients!$B$79,Nutrients!$CX$79,(IF($A$8=Nutrients!$B$77,Nutrients!$CX$77,Nutrients!$CX$78)))))*C$8))/2000/C$236*100","v":41.586004986324909},{"$f":"(SUMPRODUCT(D$9:D$229,Nutrients!$CX$8:$CX$228)+(IF($A$7=Nutrients!$B$8,Nutrients!$CX$8,Nutrients!$CX$9)*D$7)+(((IF($A$8=Nutrients!$B$79,Nutrients!$CX$79,(IF($A$8=Nutrients!$B$77,Nutrients!$CX$77,Nutrients!$CX$78)))))*D$8))/2000/D$236*100","v":42.207205920724832},{"$f":"(SUMPRODUCT(E$9:E$229,Nutrients!$CX$8:$CX$228)+(IF($A$7=Nutrients!$B$8,Nutrients!$CX$8,Nutrients!$CX$9)*E$7)+(((IF($A$8=Nutrients!$B$79,Nutrients!$CX$79,(IF($A$8=Nutrients!$B$77,Nutrients!$CX$77,Nutrients!$CX$78)))))*E$8))/2000/E$236*100","v":42.778460155865318},{"$f":"(SUMPRODUCT(F$9:F$229,Nutrients!$CX$8:$CX$228)+(IF($A$7=Nutrients!$B$8,Nutrients!$CX$8,Nutrients!$CX$9)*F$7)+(((IF($A$8=Nutrients!$B$79,Nutrients!$CX$79,(IF($A$8=Nutrients!$B$77,Nutrients!$CX$77,Nutrients!$CX$78)))))*F$8))/2000/F$236*100","v":43.376570604149812},{"$f":"(SUMPRODUCT(G$9:G$229,Nutrients!$CX$8:$CX$228)+(IF($A$7=Nutrients!$B$8,Nutrients!$CX$8,Nutrients!$CX$9)*G$7)+(((IF($A$8=Nutrients!$B$79,Nutrients!$CX$79,(IF($A$8=Nutrients!$B$77,Nutrients!$CX$77,Nutrients!$CX$78)))))*G$8))/2000/G$236*100","v":43.904809548771325},null,{"$f":"(SUMPRODUCT(I$9:I$229,Nutrients!$CX$8:$CX$228)+(IF($A$7=Nutrients!$B$8,Nutrients!$CX$8,Nutrients!$CX$9)*I$7)+(((IF($A$8=Nutrients!$B$79,Nutrients!$CX$79,(IF($A$8=Nutrients!$B$77,Nutrients!$CX$77,Nutrients!$CX$78)))))*I$8))/2000/I$236*100","v":41.558324022373206},{"$f":"(SUMPRODUCT(J$9:J$229,Nutrients!$CX$8:$CX$228)+(IF($A$7=Nutrients!$B$8,Nutrients!$CX$8,Nutrients!$CX$9)*J$7)+(((IF($A$8=Nutrients!$B$79,Nutrients!$CX$79,(IF($A$8=Nutrients!$B$77,Nutrients!$CX$77,Nutrients!$CX$78)))))*J$8))/2000/J$236*100","v":42.031597945464277},{"$f":"(SUMPRODUCT(K$9:K$229,Nutrients!$CX$8:$CX$228)+(IF($A$7=Nutrients!$B$8,Nutrients!$CX$8,Nutrients!$CX$9)*K$7)+(((IF($A$8=Nutrients!$B$79,Nutrients!$CX$79,(IF($A$8=Nutrients!$B$77,Nutrients!$CX$77,Nutrients!$CX$78)))))*K$8))/2000/K$236*100","v":42.712301314412471},{"$f":"(SUMPRODUCT(L$9:L$229,Nutrients!$CX$8:$CX$228)+(IF($A$7=Nutrients!$B$8,Nutrients!$CX$8,Nutrients!$CX$9)*L$7)+(((IF($A$8=Nutrients!$B$79,Nutrients!$CX$79,(IF($A$8=Nutrients!$B$77,Nutrients!$CX$77,Nutrients!$CX$78)))))*L$8))/2000/L$236*100","v":43.349601996006207},{"$f":"(SUMPRODUCT(M$9:M$229,Nutrients!$CX$8:$CX$228)+(IF($A$7=Nutrients!$B$8,Nutrients!$CX$8,Nutrients!$CX$9)*M$7)+(((IF($A$8=Nutrients!$B$79,Nutrients!$CX$79,(IF($A$8=Nutrients!$B$77,Nutrients!$CX$77,Nutrients!$CX$78)))))*M$8))/2000/M$236*100","v":44.004759739523536},{"$f":"(SUMPRODUCT(N$9:N$229,Nutrients!$CX$8:$CX$228)+(IF($A$7=Nutrients!$B$8,Nutrients!$CX$8,Nutrients!$CX$9)*N$7)+(((IF($A$8=Nutrients!$B$79,Nutrients!$CX$79,(IF($A$8=Nutrients!$B$77,Nutrients!$CX$77,Nutrients!$CX$78)))))*N$8))/2000/N$236*100","v":43.904809548771325},null,{"$f":"(SUMPRODUCT(P$9:P$229,Nutrients!$CX$8:$CX$228)+(IF($A$7=Nutrients!$B$8,Nutrients!$CX$8,Nutrients!$CX$9)*P$7)+(((IF($A$8=Nutrients!$B$79,Nutrients!$CX$79,(IF($A$8=Nutrients!$B$77,Nutrients!$CX$77,Nutrients!$CX$78)))))*P$8))/2000/P$236*100","v":41.953754496569353},{"$f":"(SUMPRODUCT(Q$9:Q$229,Nutrients!$CX$8:$CX$228)+(IF($A$7=Nutrients!$B$8,Nutrients!$CX$8,Nutrients!$CX$9)*Q$7)+(((IF($A$8=Nutrients!$B$79,Nutrients!$CX$79,(IF($A$8=Nutrients!$B$77,Nutrients!$CX$77,Nutrients!$CX$78)))))*Q$8))/2000/Q$236*100","v":42.479564410257716},{"$f":"(SUMPRODUCT(R$9:R$229,Nutrients!$CX$8:$CX$228)+(IF($A$7=Nutrients!$B$8,Nutrients!$CX$8,Nutrients!$CX$9)*R$7)+(((IF($A$8=Nutrients!$B$79,Nutrients!$CX$79,(IF($A$8=Nutrients!$B$77,Nutrients!$CX$77,Nutrients!$CX$78)))))*R$8))/2000/R$236*100","v":43.220223968997352},{"$f":"(SUMPRODUCT(S$9:S$229,Nutrients!$CX$8:$CX$228)+(IF($A$7=Nutrients!$B$8,Nutrients!$CX$8,Nutrients!$CX$9)*S$7)+(((IF($A$8=Nutrients!$B$79,Nutrients!$CX$79,(IF($A$8=Nutrients!$B$77,Nutrients!$CX$77,Nutrients!$CX$78)))))*S$8))/2000/S$236*100","v":43.927441366429107},{"$f":"(SUMPRODUCT(T$9:T$229,Nutrients!$CX$8:$CX$228)+(IF($A$7=Nutrients!$B$8,Nutrients!$CX$8,Nutrients!$CX$9)*T$7)+(((IF($A$8=Nutrients!$B$79,Nutrients!$CX$79,(IF($A$8=Nutrients!$B$77,Nutrients!$CX$77,Nutrients!$CX$78)))))*T$8))/2000/T$236*100","v":44.634798884181976},{"$f":"(SUMPRODUCT(U$9:U$229,Nutrients!$CX$8:$CX$228)+(IF($A$7=Nutrients!$B$8,Nutrients!$CX$8,Nutrients!$CX$9)*U$7)+(((IF($A$8=Nutrients!$B$79,Nutrients!$CX$79,(IF($A$8=Nutrients!$B$77,Nutrients!$CX$77,Nutrients!$CX$78)))))*U$8))/2000/U$236*100","v":43.904809548771325},null,{"$f":"(SUMPRODUCT(W$9:W$229,Nutrients!$CX$8:$CX$228)+(IF($A$7=Nutrients!$B$8,Nutrients!$CX$8,Nutrients!$CX$9)*W$7)+(((IF($A$8=Nutrients!$B$79,Nutrients!$CX$79,(IF($A$8=Nutrients!$B$77,Nutrients!$CX$77,Nutrients!$CX$78)))))*W$8))/2000/W$236*100","v":42.354733053311584},{"$f":"(SUMPRODUCT(X$9:X$229,Nutrients!$CX$8:$CX$228)+(IF($A$7=Nutrients!$B$8,Nutrients!$CX$8,Nutrients!$CX$9)*X$7)+(((IF($A$8=Nutrients!$B$79,Nutrients!$CX$79,(IF($A$8=Nutrients!$B$77,Nutrients!$CX$77,Nutrients!$CX$78)))))*X$8))/2000/X$236*100","v":42.93388960445477},{"$f":"(SUMPRODUCT(Y$9:Y$229,Nutrients!$CX$8:$CX$228)+(IF($A$7=Nutrients!$B$8,Nutrients!$CX$8,Nutrients!$CX$9)*Y$7)+(((IF($A$8=Nutrients!$B$79,Nutrients!$CX$79,(IF($A$8=Nutrients!$B$77,Nutrients!$CX$77,Nutrients!$CX$78)))))*Y$8))/2000/Y$236*100","v":43.742403177579369},{"$f":"(SUMPRODUCT(Z$9:Z$229,Nutrients!$CX$8:$CX$228)+(IF($A$7=Nutrients!$B$8,Nutrients!$CX$8,Nutrients!$CX$9)*Z$7)+(((IF($A$8=Nutrients!$B$79,Nutrients!$CX$79,(IF($A$8=Nutrients!$B$77,Nutrients!$CX$77,Nutrients!$CX$78)))))*Z$8))/2000/Z$236*100","v":44.512003516259654},{"$f":"(SUMPRODUCT(AA$9:AA$229,Nutrients!$CX$8:$CX$228)+(IF($A$7=Nutrients!$B$8,Nutrients!$CX$8,Nutrients!$CX$9)*AA$7)+(((IF($A$8=Nutrients!$B$79,Nutrients!$CX$79,(IF($A$8=Nutrients!$B$77,Nutrients!$CX$77,Nutrients!$CX$78)))))*AA$8))/2000/AA$236*100","v":45.273719959643884},{"$f":"(SUMPRODUCT(AB$9:AB$229,Nutrients!$CX$8:$CX$228)+(IF($A$7=Nutrients!$B$8,Nutrients!$CX$8,Nutrients!$CX$9)*AB$7)+(((IF($A$8=Nutrients!$B$79,Nutrients!$CX$79,(IF($A$8=Nutrients!$B$77,Nutrients!$CX$77,Nutrients!$CX$78)))))*AB$8))/2000/AB$236*100","v":43.904809548771325},null,{"$f":"(SUMPRODUCT(AD$9:AD$229,Nutrients!$CX$8:$CX$228)+(IF($A$7=Nutrients!$B$8,Nutrients!$CX$8,Nutrients!$CX$9)*AD$7)+(((IF($A$8=Nutrients!$B$79,Nutrients!$CX$79,(IF($A$8=Nutrients!$B$77,Nutrients!$CX$77,Nutrients!$CX$78)))))*AD$8))/2000/AD$236*100","v":42.761440028428829},{"$f":"(SUMPRODUCT(AE$9:AE$229,Nutrients!$CX$8:$CX$228)+(IF($A$7=Nutrients!$B$8,Nutrients!$CX$8,Nutrients!$CX$9)*AE$7)+(((IF($A$8=Nutrients!$B$79,Nutrients!$CX$79,(IF($A$8=Nutrients!$B$77,Nutrients!$CX$77,Nutrients!$CX$78)))))*AE$8))/2000/AE$236*100","v":43.400227028903451},{"$f":"(SUMPRODUCT(AF$9:AF$229,Nutrients!$CX$8:$CX$228)+(IF($A$7=Nutrients!$B$8,Nutrients!$CX$8,Nutrients!$CX$9)*AF$7)+(((IF($A$8=Nutrients!$B$79,Nutrients!$CX$79,(IF($A$8=Nutrients!$B$77,Nutrients!$CX$77,Nutrients!$CX$78)))))*AF$8))/2000/AF$236*100","v":44.271274040270221},{"$f":"(SUMPRODUCT(AG$9:AG$229,Nutrients!$CX$8:$CX$228)+(IF($A$7=Nutrients!$B$8,Nutrients!$CX$8,Nutrients!$CX$9)*AG$7)+(((IF($A$8=Nutrients!$B$79,Nutrients!$CX$79,(IF($A$8=Nutrients!$B$77,Nutrients!$CX$77,Nutrients!$CX$78)))))*AG$8))/2000/AG$236*100","v":45.104175184557263},{"$f":"(SUMPRODUCT(AH$9:AH$229,Nutrients!$CX$8:$CX$228)+(IF($A$7=Nutrients!$B$8,Nutrients!$CX$8,Nutrients!$CX$9)*AH$7)+(((IF($A$8=Nutrients!$B$79,Nutrients!$CX$79,(IF($A$8=Nutrients!$B$77,Nutrients!$CX$77,Nutrients!$CX$78)))))*AH$8))/2000/AH$236*100","v":45.917375770106759},{"$f":"(SUMPRODUCT(AI$9:AI$229,Nutrients!$CX$8:$CX$228)+(IF($A$7=Nutrients!$B$8,Nutrients!$CX$8,Nutrients!$CX$9)*AI$7)+(((IF($A$8=Nutrients!$B$79,Nutrients!$CX$79,(IF($A$8=Nutrients!$B$77,Nutrients!$CX$77,Nutrients!$CX$78)))))*AI$8))/2000/AI$236*100","v":43.904809548771325},null,{"$f":"(SUMPRODUCT(AK$9:AK$229,Nutrients!$CX$8:$CX$228)+(IF($A$7=Nutrients!$B$8,Nutrients!$CX$8,Nutrients!$CX$9)*AK$7)+(((IF($A$8=Nutrients!$B$79,Nutrients!$CX$79,(IF($A$8=Nutrients!$B$77,Nutrients!$CX$77,Nutrients!$CX$78)))))*AK$8))/2000/AK$236*100","v":43.153897135129938},{"$f":"(SUMPRODUCT(AL$9:AL$229,Nutrients!$CX$8:$CX$228)+(IF($A$7=Nutrients!$B$8,Nutrients!$CX$8,Nutrients!$CX$9)*AL$7)+(((IF($A$8=Nutrients!$B$79,Nutrients!$CX$79,(IF($A$8=Nutrients!$B$77,Nutrients!$CX$77,Nutrients!$CX$78)))))*AL$8))/2000/AL$236*100","v":43.872485650750043},{"$f":"(SUMPRODUCT(AM$9:AM$229,Nutrients!$CX$8:$CX$228)+(IF($A$7=Nutrients!$B$8,Nutrients!$CX$8,Nutrients!$CX$9)*AM$7)+(((IF($A$8=Nutrients!$B$79,Nutrients!$CX$79,(IF($A$8=Nutrients!$B$77,Nutrients!$CX$77,Nutrients!$CX$78)))))*AM$8))/2000/AM$236*100","v":44.806012258957722},{"$f":"(SUMPRODUCT(AN$9:AN$229,Nutrients!$CX$8:$CX$228)+(IF($A$7=Nutrients!$B$8,Nutrients!$CX$8,Nutrients!$CX$9)*AN$7)+(((IF($A$8=Nutrients!$B$79,Nutrients!$CX$79,(IF($A$8=Nutrients!$B$77,Nutrients!$CX$77,Nutrients!$CX$78)))))*AN$8))/2000/AN$236*100","v":45.702240763633903},{"$f":"(SUMPRODUCT(AO$9:AO$229,Nutrients!$CX$8:$CX$228)+(IF($A$7=Nutrients!$B$8,Nutrients!$CX$8,Nutrients!$CX$9)*AO$7)+(((IF($A$8=Nutrients!$B$79,Nutrients!$CX$79,(IF($A$8=Nutrients!$B$77,Nutrients!$CX$77,Nutrients!$CX$78)))))*AO$8))/2000/AO$236*100","v":46.568822330762352},{"$f":"(SUMPRODUCT(AP$9:AP$229,Nutrients!$CX$8:$CX$228)+(IF($A$7=Nutrients!$B$8,Nutrients!$CX$8,Nutrients!$CX$9)*AP$7)+(((IF($A$8=Nutrients!$B$79,Nutrients!$CX$79,(IF($A$8=Nutrients!$B$77,Nutrients!$CX$77,Nutrients!$CX$78)))))*AP$8))/2000/AP$236*100","v":43.904809548771325},null,{"$f":"(SUMPRODUCT(AR$9:AR$229,Nutrients!$CX$8:$CX$228)+(IF($A$7=Nutrients!$B$8,Nutrients!$CX$8,Nutrients!$CX$9)*AR$7)+(((IF($A$8=Nutrients!$B$79,Nutrients!$CX$79,(IF($A$8=Nutrients!$B$77,Nutrients!$CX$77,Nutrients!$CX$78)))))*AR$8))/2000/AR$236*100","v":43.57832339212078},{"$f":"(SUMPRODUCT(AS$9:AS$229,Nutrients!$CX$8:$CX$228)+(IF($A$7=Nutrients!$B$8,Nutrients!$CX$8,Nutrients!$CX$9)*AS$7)+(((IF($A$8=Nutrients!$B$79,Nutrients!$CX$79,(IF($A$8=Nutrients!$B$77,Nutrients!$CX$77,Nutrients!$CX$78)))))*AS$8))/2000/AS$236*100","v":44.35205819019798},{"$f":"(SUMPRODUCT(AT$9:AT$229,Nutrients!$CX$8:$CX$228)+(IF($A$7=Nutrients!$B$8,Nutrients!$CX$8,Nutrients!$CX$9)*AT$7)+(((IF($A$8=Nutrients!$B$79,Nutrients!$CX$79,(IF($A$8=Nutrients!$B$77,Nutrients!$CX$77,Nutrients!$CX$78)))))*AT$8))/2000/AT$236*100","v":45.347042060675463},{"$f":"(SUMPRODUCT(AU$9:AU$229,Nutrients!$CX$8:$CX$228)+(IF($A$7=Nutrients!$B$8,Nutrients!$CX$8,Nutrients!$CX$9)*AU$7)+(((IF($A$8=Nutrients!$B$79,Nutrients!$CX$79,(IF($A$8=Nutrients!$B$77,Nutrients!$CX$77,Nutrients!$CX$78)))))*AU$8))/2000/AU$236*100","v":46.305206497098631},{"$f":"(SUMPRODUCT(AV$9:AV$229,Nutrients!$CX$8:$CX$228)+(IF($A$7=Nutrients!$B$8,Nutrients!$CX$8,Nutrients!$CX$9)*AV$7)+(((IF($A$8=Nutrients!$B$79,Nutrients!$CX$79,(IF($A$8=Nutrients!$B$77,Nutrients!$CX$77,Nutrients!$CX$78)))))*AV$8))/2000/AV$236*100","v":47.231697869919486},{"$f":"(SUMPRODUCT(AW$9:AW$229,Nutrients!$CX$8:$CX$228)+(IF($A$7=Nutrients!$B$8,Nutrients!$CX$8,Nutrients!$CX$9)*AW$7)+(((IF($A$8=Nutrients!$B$79,Nutrients!$CX$79,(IF($A$8=Nutrients!$B$77,Nutrients!$CX$77,Nutrients!$CX$78)))))*AW$8))/2000/AW$236*100","v":43.904809548771325}]
["Total Lys, %",{"$f":"(SUMPRODUCT(B$9:B$229,Nutrients!$AJ$8:$AJ$228)+(IF($A7=Nutrients!$B$8,Nutrients!$AJ$8,Nutrients!$AJ$9)*B$7)+(((IF($A8=Nutrients!$B$79,Nutrients!$AJ$79,(IF($A8=Nutrients!$B$77,Nutrients!$AJ$77,Nutrients!$AJ$78)))))*B$8))/2000","v":1.3298660823074164},{"$f":"(SUMPRODUCT(C$9:C$229,Nutrients!$AJ$8:$AJ$228)+(IF($A7=Nutrients!$B$8,Nutrients!$AJ$8,Nutrients!$AJ$9)*C$7)+(((IF($A8=Nutrients!$B$79,Nutrients!$AJ$79,(IF($A8=Nutrients!$B$77,Nutrients!$AJ$77,Nutrients!$AJ$78)))))*C$8))/2000","v":1.17824480201899},{"$f":"(SUMPRODUCT(D$9:D$229,Nutrients!$AJ$8:$AJ$228)+(IF($A7=Nutrients!$B$8,Nutrients!$AJ$8,Nutrients!$AJ$9)*D$7)+(((IF($A8=Nutrients!$B$79,Nutrients!$AJ$79,(IF($A8=Nutrients!$B$77,Nutrients!$AJ$77,Nutrients!$AJ$78)))))*D$8))/2000","v":1.0441938280699909},{"$f":"(SUMPRODUCT(E$9:E$229,Nutrients!$AJ$8:$AJ$228)+(IF($A7=Nutrients!$B$8,Nutrients!$AJ$8,Nutrients!$AJ$9)*E$7)+(((IF($A8=Nutrients!$B$79,Nutrients!$AJ$79,(IF($A8=Nutrients!$B$77,Nutrients!$AJ$77,Nutrients!$AJ$78)))))*E$8))/2000","v":0.93300397092782039},{"$f":"(SUMPRODUCT(F$9:F$229,Nutrients!$AJ$8:$AJ$228)+(IF($A7=Nutrients!$B$8,Nutrients!$AJ$8,Nutrients!$AJ$9)*F$7)+(((IF($A8=Nutrients!$B$79,Nutrients!$AJ$79,(IF($A8=Nutrients!$B$77,Nutrients!$AJ$77,Nutrients!$AJ$78)))))*F$8))/2000","v":0.85681025979312531},{"$f":"(SUMPRODUCT(G$9:G$229,Nutrients!$AJ$8:$AJ$228)+(IF($A7=Nutrients!$B$8,Nutrients!$AJ$8,Nutrients!$AJ$9)*G$7)+(((IF($A8=Nutrients!$B$79,Nutrients!$AJ$79,(IF($A8=Nutrients!$B$77,Nutrients!$AJ$77,Nutrients!$AJ$78)))))*G$8))/2000","v":0.81496876682859276},null,{"$f":"(SUMPRODUCT(I$9:I$229,Nutrients!$AJ$8:$AJ$228)+(IF($A7=Nutrients!$B$8,Nutrients!$AJ$8,Nutrients!$AJ$9)*I$7)+(((IF($A8=Nutrients!$B$79,Nutrients!$AJ$79,(IF($A8=Nutrients!$B$77,Nutrients!$AJ$77,Nutrients!$AJ$78)))))*I$8))/2000","v":1.3275429278012842},{"$f":"(SUMPRODUCT(J$9:J$229,Nutrients!$AJ$8:$AJ$228)+(IF($A7=Nutrients!$B$8,Nutrients!$AJ$8,Nutrients!$AJ$9)*J$7)+(((IF($A8=Nutrients!$B$79,Nutrients!$AJ$79,(IF($A8=Nutrients!$B$77,Nutrients!$AJ$77,Nutrients!$AJ$78)))))*J$8))/2000","v":1.1775350375442286},{"$f":"(SUMPRODUCT(K$9:K$229,Nutrients!$AJ$8:$AJ$228)+(IF($A7=Nutrients!$B$8,Nutrients!$AJ$8,Nutrients!$AJ$9)*K$7)+(((IF($A8=Nutrients!$B$79,Nutrients!$AJ$79,(IF($A8=Nutrients!$B$77,Nutrients!$AJ$77,Nutrients!$AJ$78)))))*K$8))/2000","v":1.0448107823710202},{"$f":"(SUMPRODUCT(L$9:L$229,Nutrients!$AJ$8:$AJ$228)+(IF($A7=Nutrients!$B$8,Nutrients!$AJ$8,Nutrients!$AJ$9)*L$7)+(((IF($A8=Nutrients!$B$79,Nutrients!$AJ$79,(IF($A8=Nutrients!$B$77,Nutrients!$AJ$77,Nutrients!$AJ$78)))))*L$8))/2000","v":0.93451174687459504},{"$f":"(SUMPRODUCT(M$9:M$229,Nutrients!$AJ$8:$AJ$228)+(IF($A7=Nutrients!$B$8,Nutrients!$AJ$8,Nutrients!$AJ$9)*M$7)+(((IF($A8=Nutrients!$B$79,Nutrients!$AJ$79,(IF($A8=Nutrients!$B$77,Nutrients!$AJ$77,Nutrients!$AJ$78)))))*M$8))/2000","v":0.85825204948321809},{"$f":"(SUMPRODUCT(N$9:N$229,Nutrients!$AJ$8:$AJ$228)+(IF($A7=Nutrients!$B$8,Nutrients!$AJ$8,Nutrients!$AJ$9)*N$7)+(((IF($A8=Nutrients!$B$79,Nutrients!$AJ$79,(IF($A8=Nutrients!$B$77,Nutrients!$AJ$77,Nutrients!$AJ$78)))))*N$8))/2000","v":0.81496876682859276},null,{"$f":"(SUMPRODUCT(P$9:P$229,Nutrients!$AJ$8:$AJ$228)+(IF($A7=Nutrients!$B$8,Nutrients!$AJ$8,Nutrients!$AJ$9)*P$7)+(((IF($A8=Nutrients!$B$79,Nutrients!$AJ$79,(IF($A8=Nutrients!$B$77,Nutrients!$AJ$77,Nutrients!$AJ$78)))))*P$8))/2000","v":1.3272964068241064},{"$f":"(SUMPRODUCT(Q$9:Q$229,Nutrients!$AJ$8:$AJ$228)+(IF($A7=Nutrients!$B$8,Nutrients!$AJ$8,Nutrients!$AJ$9)*Q$7)+(((IF($A8=Nutrients!$B$79,Nutrients!$AJ$79,(IF($A8=Nutrients!$B$77,Nutrients!$AJ$77,Nutrients!$AJ$78)))))*Q$8))/2000","v":1.178264987699728},{"$f":"(SUMPRODUCT(R$9:R$229,Nutrients!$AJ$8:$AJ$228)+(IF($A7=Nutrients!$B$8,Nutrients!$AJ$8,Nutrients!$AJ$9)*R$7)+(((IF($A8=Nutrients!$B$79,Nutrients!$AJ$79,(IF($A8=Nutrients!$B$77,Nutrients!$AJ$77,Nutrients!$AJ$78)))))*R$8))/2000","v":1.0465833757974383},{"$f":"(SUMPRODUCT(S$9:S$229,Nutrients!$AJ$8:$AJ$228)+(IF($A7=Nutrients!$B$8,Nutrients!$AJ$8,Nutrients!$AJ$9)*S$7)+(((IF($A8=Nutrients!$B$79,Nutrients!$AJ$79,(IF($A8=Nutrients!$B$77,Nutrients!$AJ$77,Nutrients!$AJ$78)))))*S$8))/2000","v":0.93579885313457589},{"$f":"(SUMPRODUCT(T$9:T$229,Nutrients!$AJ$8:$AJ$228)+(IF($A7=Nutrients!$B$8,Nutrients!$AJ$8,Nutrients!$AJ$9)*T$7)+(((IF($A8=Nutrients!$B$79,Nutrients!$AJ$79,(IF($A8=Nutrients!$B$77,Nutrients!$AJ$77,Nutrients!$AJ$78)))))*T$8))/2000","v":0.8603891646038071},{"$f":"(SUMPRODUCT(U$9:U$229,Nutrients!$AJ$8:$AJ$228)+(IF($A7=Nutrients!$B$8,Nutrients!$AJ$8,Nutrients!$AJ$9)*U$7)+(((IF($A8=Nutrients!$B$79,Nutrients!$AJ$79,(IF($A8=Nutrients!$B$77,Nutrients!$AJ$77,Nutrients!$AJ$78)))))*U$8))/2000","v":0.81496876682859276},null,{"$f":"(SUMPRODUCT(W$9:W$229,Nutrients!$AJ$8:$AJ$228)+(IF($A7=Nutrients!$B$8,Nutrients!$AJ$8,Nutrients!$AJ$9)*W$7)+(((IF($A8=Nutrients!$B$79,Nutrients!$AJ$79,(IF($A8=Nutrients!$B$77,Nutrients!$AJ$77,Nutrients!$AJ$78)))))*W$8))/2000","v":1.3270495557983868},{"$f":"(SUMPRODUCT(X$9:X$229,Nutrients!$AJ$8:$AJ$228)+(IF($A7=Nutrients!$B$8,Nutrients!$AJ$8,Nutrients!$AJ$9)*X$7)+(((IF($A8=Nutrients!$B$79,Nutrients!$AJ$79,(IF($A8=Nutrients!$B$77,Nutrients!$AJ$77,Nutrients!$AJ$78)))))*X$8))/2000","v":1.1790002210148609},{"$f":"(SUMPRODUCT(Y$9:Y$229,Nutrients!$AJ$8:$AJ$228)+(IF($A7=Nutrients!$B$8,Nutrients!$AJ$8,Nutrients!$AJ$9)*Y$7)+(((IF($A8=Nutrients!$B$79,Nutrients!$AJ$79,(IF($A8=Nutrients!$B$77,Nutrients!$AJ$77,Nutrients!$AJ$78)))))*Y$8))/2000","v":1.0468482878171068},{"$f":"(SUMPRODUCT(Z$9:Z$229,Nutrients!$AJ$8:$AJ$228)+(IF($A7=Nutrients!$B$8,Nutrients!$AJ$8,Nutrients!$AJ$9)*Z$7)+(((IF($A8=Nutrients!$B$79,Nutrients!$AJ$79,(IF($A8=Nutrients!$B$77,Nutrients!$AJ$77,Nutrients!$AJ$78)))))*Z$8))/2000","v":0.93747129324536693},{"$f":"(SUMPRODUCT(AA$9:AA$229,Nutrients!$AJ$8:$AJ$228)+(IF($A7=Nutrients!$B$8,Nutrients!$AJ$8,Nutrients!$AJ$9)*AA$7)+(((IF($A8=Nutrients!$B$79,Nutrients!$AJ$79,(IF($A8=Nutrients!$B$77,Nutrients!$AJ$77,Nutrients!$AJ$78)))))*AA$8))/2000","v":0.86262720209651544},{"$f":"(SUMPRODUCT(AB$9:AB$229,Nutrients!$AJ$8:$AJ$228)+(IF($A7=Nutrients!$B$8,Nutrients!$AJ$8,Nutrients!$AJ$9)*AB$7)+(((IF($A8=Nutrients!$B$79,Nutrients!$AJ$79,(IF($A8=Nutrients!$B$77,Nutrients!$AJ$77,Nutrients!$AJ$78)))))*AB$8))/2000","v":0.81496876682859276},null,{"$f":"(SUMPRODUCT(AD$9:AD$229,Nutrients!$AJ$8:$AJ$228)+(IF($A7=Nutrients!$B$8,Nutrients!$AJ$8,Nutrients!$AJ$9)*AD$7)+(((IF($A8=Nutrients!$B$79,Nutrients!$AJ$79,(IF($A8=Nutrients!$B$77,Nutrients!$AJ$77,Nutrients!$AJ$78)))))*AD$8))/2000","v":1.3266838496121753},{"$f":"(SUMPRODUCT(AE$9:AE$229,Nutrients!$AJ$8:$AJ$228)+(IF($A7=Nutrients!$B$8,Nutrients!$AJ$8,Nutrients!$AJ$9)*AE$7)+(((IF($A8=Nutrients!$B$79,Nutrients!$AJ$79,(IF($A8=Nutrients!$B$77,Nutrients!$AJ$77,Nutrients!$AJ$78)))))*AE$8))/2000","v":1.1782522626394349},{"$f":"(SUMPRODUCT(AF$9:AF$229,Nutrients!$AJ$8:$AJ$228)+(IF($A7=Nutrients!$B$8,Nutrients!$AJ$8,Nutrients!$AJ$9)*AF$7)+(((IF($A8=Nutrients!$B$79,Nutrients!$AJ$79,(IF($A8=Nutrients!$B$77,Nutrients!$AJ$77,Nutrients!$AJ$78)))))*AF$8))/2000","v":1.047470498946292},{"$f":"(SUMPRODUCT(AG$9:AG$229,Nutrients!$AJ$8:$AJ$228)+(IF($A7=Nutrients!$B$8,Nutrients!$AJ$8,Nutrients!$AJ$9)*AG$7)+(((IF($A8=Nutrients!$B$79,Nutrients!$AJ$79,(IF($A8=Nutrients!$B$77,Nutrients!$AJ$77,Nutrients!$AJ$78)))))*AG$8))/2000","v":0.93911399895936476},{"$f":"(SUMPRODUCT(AH$9:AH$229,Nutrients!$AJ$8:$AJ$228)+(IF($A7=Nutrients!$B$8,Nutrients!$AJ$8,Nutrients!$AJ$9)*AH$7)+(((IF($A8=Nutrients!$B$79,Nutrients!$AJ$79,(IF($A8=Nutrients!$B$77,Nutrients!$AJ$77,Nutrients!$AJ$78)))))*AH$8))/2000","v":0.86426542295953235},{"$f":"(SUMPRODUCT(AI$9:AI$229,Nutrients!$AJ$8:$AJ$228)+(IF($A7=Nutrients!$B$8,Nutrients!$AJ$8,Nutrients!$AJ$9)*AI$7)+(((IF($A8=Nutrients!$B$79,Nutrients!$AJ$79,(IF($A8=Nutrients!$B$77,Nutrients!$AJ$77,Nutrients!$AJ$78)))))*AI$8))/2000","v":0.81496876682859276},null,{"$f":"(SUMPRODUCT(AK$9:AK$229,Nutrients!$AJ$8:$AJ$228)+(IF($A7=Nutrients!$B$8,Nutrients!$AJ$8,Nutrients!$AJ$9)*AK$7)+(((IF($A8=Nutrients!$B$79,Nutrients!$AJ$79,(IF($A8=Nutrients!$B$77,Nutrients!$AJ$77,Nutrients!$AJ$78)))))*AK$8))/2000","v":1.3322404294645143},{"$f":"(SUMPRODUCT(AL$9:AL$229,Nutrients!$AJ$8:$AJ$228)+(IF($A7=Nutrients!$B$8,Nutrients!$AJ$8,Nutrients!$AJ$9)*AL$7)+(((IF($A8=Nutrients!$B$79,Nutrients!$AJ$79,(IF($A8=Nutrients!$B$77,Nutrients!$AJ$77,Nutrients!$AJ$78)))))*AL$8))/2000","v":1.1779324234906483},{"$f":"(SUMPRODUCT(AM$9:AM$229,Nutrients!$AJ$8:$AJ$228)+(IF($A7=Nutrients!$B$8,Nutrients!$AJ$8,Nutrients!$AJ$9)*AM$7)+(((IF($A8=Nutrients!$B$79,Nutrients!$AJ$79,(IF($A8=Nutrients!$B$77,Nutrients!$AJ$77,Nutrients!$AJ$78)))))*AM$8))/2000","v":1.04826032787552},{"$f":"(SUMPRODUCT(AN$9:AN$229,Nutrients!$AJ$8:$AJ$228)+(IF($A7=Nutrients!$B$8,Nutrients!$AJ$8,Nutrients!$AJ$9)*AN$7)+(((IF($A8=Nutrients!$B$79,Nutrients!$AJ$79,(IF($A8=Nutrients!$B$77,Nutrients!$AJ$77,Nutrients!$AJ$78)))))*AN$8))/2000","v":0.94028983467727123},{"$f":"(SUMPRODUCT(AO$9:AO$229,Nutrients!$AJ$8:$AJ$228)+(IF($A7=Nutrients!$B$8,Nutrients!$AJ$8,Nutrients!$AJ$9)*AO$7)+(((IF($A8=Nutrients!$B$79,Nutrients!$AJ$79,(IF($A8=Nutrients!$B$77,Nutrients!$AJ$77,Nutrients!$AJ$78)))))*AO$8))/2000","v":0.86569440636592476},{"$f":"(SUMPRODUCT(AP$9:AP$229,Nutrients!$AJ$8:$AJ$228)+(IF($A7=Nutrients!$B$8,Nutrients!$AJ$8,Nutrients!$AJ$9)*AP$7)+(((IF($A8=Nutrients!$B$79,Nutrients!$AJ$79,(IF($A8=Nutrients!$B$77,Nutrients!$AJ$77,Nutrients!$AJ$78)))))*AP$8))/2000","v":0.81496876682859276},null,{"$f":"(SUMPRODUCT(AR$9:AR$229,Nutrients!$AJ$8:$AJ$228)+(IF($A7=Nutrients!$B$8,Nutrients!$AJ$8,Nutrients!$AJ$9)*AR$7)+(((IF($A8=Nutrients!$B$79,Nutrients!$AJ$79,(IF($A8=Nutrients!$B$77,Nutrients!$AJ$77,Nutrients!$AJ$78)))))*AR$8))/2000","v":1.329642250521726},{"$f":"(SUMPRODUCT(AS$9:AS$229,Nutrients!$AJ$8:$AJ$228)+(IF($A7=Nutrients!$B$8,Nutrients!$AJ$8,Nutrients!$AJ$9)*AS$7)+(((IF($A8=Nutrients!$B$79,Nutrients!$AJ$79,(IF($A8=Nutrients!$B$77,Nutrients!$AJ$77,Nutrients!$AJ$78)))))*AS$8))/2000","v":1.1776212583200547},{"$f":"(SUMPRODUCT(AT$9:AT$229,Nutrients!$AJ$8:$AJ$228)+(IF($A7=Nutrients!$B$8,Nutrients!$AJ$8,Nutrients!$AJ$9)*AT$7)+(((IF($A8=Nutrients!$B$79,Nutrients!$AJ$79,(IF($A8=Nutrients!$B$77,Nutrients!$AJ$77,Nutrients!$AJ$78)))))*AT$8))/2000","v":1.0493378935832074},{"$f":"(SUMPRODUCT(AU$9:AU$229,Nutrients!$AJ$8:$AJ$228)+(IF($A7=Nutrients!$B$8,Nutrients!$AJ$8,Nutrients!$AJ$9)*AU$7)+(((IF($A8=Nutrients!$B$79,Nutrients!$AJ$79,(IF($A8=Nutrients!$B$77,Nutrients!$AJ$77,Nutrients!$AJ$78)))))*AU$8))/2000","v":0.9412254568692292},{"$f":"(SUMPRODUCT(AV$9:AV$229,Nutrients!$AJ$8:$AJ$228)+(IF($A7=Nutrients!$B$8,Nutrients!$AJ$8,Nutrients!$AJ$9)*AV$7)+(((IF($A8=Nutrients!$B$79,Nutrients!$AJ$79,(IF($A8=Nutrients!$B$77,Nutrients!$AJ$77,Nutrients!$AJ$78)))))*AV$8))/2000","v":0.86713105736562113},{"$f":"(SUMPRODUCT(AW$9:AW$229,Nutrients!$AJ$8:$AJ$228)+(IF($A7=Nutrients!$B$8,Nutrients!$AJ$8,Nutrients!$AJ$9)*AW$7)+(((IF($A8=Nutrients!$B$79,Nutrients!$AJ$79,(IF($A8=Nutrients!$B$77,Nutrients!$AJ$77,Nutrients!$AJ$78)))))*AW$8))/2000","v":0.81496876682859276}]
["ME, kcal/lb",{"$f":"(SUMPRODUCT(B$9:B$229,Nutrients!$E$8:$E$228)+(IF($A$7=Nutrients!$B$8,Nutrients!$E$8,Nutrients!$E$9)*B$7)+(((IF($A$8=Nutrients!$B$79,Nutrients!$E$79,(IF($A$8=Nutrients!$B$77,Nutrients!$E$77,Nutrients!$E$78)))))*B$8))/2000/2.2046","v":1491.8402434475765},{"$f":"(SUMPRODUCT(C$9:C$229,Nutrients!$E$8:$E$228)+(IF($A$7=Nutrients!$B$8,Nutrients!$E$8,Nutrients!$E$9)*C$7)+(((IF($A$8=Nutrients!$B$79,Nutrients!$E$79,(IF($A$8=Nutrients!$B$77,Nutrients!$E$77,Nutrients!$E$78)))))*C$8))/2000/2.2046","v":1497.3394897230346},{"$f":"(SUMPRODUCT(D$9:D$229,Nutrients!$E$8:$E$228)+(IF($A$7=Nutrients!$B$8,Nutrients!$E$8,Nutrients!$E$9)*D$7)+(((IF($A$8=Nutrients!$B$79,Nutrients!$E$79,(IF($A$8=Nutrients!$B$77,Nutrients!$E$77,Nutrients!$E$78)))))*D$8))/2000/2.2046","v":1502.2809065274494},{"$f":"(SUMPRODUCT(E$9:E$229,Nutrients!$E$8:$E$228)+(IF($A$7=Nutrients!$B$8,Nutrients!$E$8,Nutrients!$E$9)*E$7)+(((IF($A$8=Nutrients!$B$79,Nutrients!$E$79,(IF($A$8=Nutrients!$B$77,Nutrients!$E$77,Nutrients!$E$78)))))*E$8))/2000/2.2046","v":1506.6896352343656},{"$f":"(SUMPRODUCT(F$9:F$229,Nutrients!$E$8:$E$228)+(IF($A$7=Nutrients!$B$8,Nutrients!$E$8,Nutrients!$E$9)*F$7)+(((IF($A$8=Nutrients!$B$79,Nutrients!$E$79,(IF($A$8=Nutrients!$B$77,Nutrients!$E$77,Nutrients!$E$78)))))*F$8))/2000/2.2046","v":1510.1029910587361},{"$f":"(SUMPRODUCT(G$9:G$229,Nutrients!$E$8:$E$228)+(IF($A$7=Nutrients!$B$8,Nutrients!$E$8,Nutrients!$E$9)*G$7)+(((IF($A$8=Nutrients!$B$79,Nutrients!$E$79,(IF($A$8=Nutrients!$B$77,Nutrients!$E$77,Nutrients!$E$78)))))*G$8))/2000/2.2046","v":1511.4146927250044},null,{"$f":"(SUMPRODUCT(I$9:I$229,Nutrients!$E$8:$E$228)+(IF($A$7=Nutrients!$B$8,Nutrients!$E$8,Nutrients!$E$9)*I$7)+(((IF($A$8=Nutrients!$B$79,Nutrients!$E$79,(IF($A$8=Nutrients!$B$77,Nutrients!$E$77,Nutrients!$E$78)))))*I$8))/2000/2.2046","v":1495.2781048529041},{"$f":"(SUMPRODUCT(J$9:J$229,Nutrients!$E$8:$E$228)+(IF($A$7=Nutrients!$B$8,Nutrients!$E$8,Nutrients!$E$9)*J$7)+(((IF($A$8=Nutrients!$B$79,Nutrients!$E$79,(IF($A$8=Nutrients!$B$77,Nutrients!$E$77,Nutrients!$E$78)))))*J$8))/2000/2.2046","v":1500.7206404588412},{"$f":"(SUMPRODUCT(K$9:K$229,Nutrients!$E$8:$E$228)+(IF($A$7=Nutrients!$B$8,Nutrients!$E$8,Nutrients!$E$9)*K$7)+(((IF($A$8=Nutrients!$B$79,Nutrients!$E$79,(IF($A$8=Nutrients!$B$77,Nutrients!$E$77,Nutrients!$E$78)))))*K$8))/2000/2.2046","v":1505.6334623555911},{"$f":"(SUMPRODUCT(L$9:L$229,Nutrients!$E$8:$E$228)+(IF($A$7=Nutrients!$B$8,Nutrients!$E$8,Nutrients!$E$9)*L$7)+(((IF($A$8=Nutrients!$B$79,Nutrients!$E$79,(IF($A$8=Nutrients!$B$77,Nutrients!$E$77,Nutrients!$E$78)))))*L$8))/2000/2.2046","v":1510.3490479198617},{"$f":"(SUMPRODUCT(M$9:M$229,Nutrients!$E$8:$E$228)+(IF($A$7=Nutrients!$B$8,Nutrients!$E$8,Nutrients!$E$9)*M$7)+(((IF($A$8=Nutrients!$B$79,Nutrients!$E$79,(IF($A$8=Nutrients!$B$77,Nutrients!$E$77,Nutrients!$E$78)))))*M$8))/2000/2.2046","v":1513.6602731478024},{"$f":"(SUMPRODUCT(N$9:N$229,Nutrients!$E$8:$E$228)+(IF($A$7=Nutrients!$B$8,Nutrients!$E$8,Nutrients!$E$9)*N$7)+(((IF($A$8=Nutrients!$B$79,Nutrients!$E$79,(IF($A$8=Nutrients!$B$77,Nutrients!$E$77,Nutrients!$E$78)))))*N$8))/2000/2.2046","v":1511.4146927250044},null,{"$f":"(SUMPRODUCT(P$9:P$229,Nutrients!$E$8:$E$228)+(IF($A$7=Nutrients!$B$8,Nutrients!$E$8,Nutrients!$E$9)*P$7)+(((IF($A$8=Nutrients!$B$79,Nutrients!$E$79,(IF($A$8=Nutrients!$B$77,Nutrients!$E$77,Nutrients!$E$78)))))*P$8))/2000/2.2046","v":1498.6522276269789},{"$f":"(SUMPRODUCT(Q$9:Q$229,Nutrients!$E$8:$E$228)+(IF($A$7=Nutrients!$B$8,Nutrients!$E$8,Nutrients!$E$9)*Q$7)+(((IF($A$8=Nutrients!$B$79,Nutrients!$E$79,(IF($A$8=Nutrients!$B$77,Nutrients!$E$77,Nutrients!$E$78)))))*Q$8))/2000/2.2046","v":1504.085908129065},{"$f":"(SUMPRODUCT(R$9:R$229,Nutrients!$E$8:$E$228)+(IF($A$7=Nutrients!$B$8,Nutrients!$E$8,Nutrients!$E$9)*R$7)+(((IF($A$8=Nutrients!$B$79,Nutrients!$E$79,(IF($A$8=Nutrients!$B$77,Nutrients!$E$77,Nutrients!$E$78)))))*R$8))/2000/2.2046","v":1508.9672909019328},{"$f":"(SUMPRODUCT(S$9:S$229,Nutrients!$E$8:$E$228)+(IF($A$7=Nutrients!$B$8,Nutrients!$E$8,Nutrients!$E$9)*S$7)+(((IF($A$8=Nutrients!$B$79,Nutrients!$E$79,(IF($A$8=Nutrients!$B$77,Nutrients!$E$77,Nutrients!$E$78)))))*S$8))/2000/2.2046","v":1513.6921015594869},{"$f":"(SUMPRODUCT(T$9:T$229,Nutrients!$E$8:$E$228)+(IF($A$7=Nutrients!$B$8,Nutrients!$E$8,Nutrients!$E$9)*T$7)+(((IF($A$8=Nutrients!$B$79,Nutrients!$E$79,(IF($A$8=Nutrients!$B$77,Nutrients!$E$77,Nutrients!$E$78)))))*T$8))/2000/2.2046","v":1517.0642458490586},{"$f":"(SUMPRODUCT(U$9:U$229,Nutrients!$E$8:$E$228)+(IF($A$7=Nutrients!$B$8,Nutrients!$E$8,Nutrients!$E$9)*U$7)+(((IF($A$8=Nutrients!$B$79,Nutrients!$E$79,(IF($A$8=Nutrients!$B$77,Nutrients!$E$77,Nutrients!$E$78)))))*U$8))/2000/2.2046","v":1511.4146927250044},null,{"$f":"(SUMPRODUCT(W$9:W$229,Nutrients!$E$8:$E$228)+(IF($A$7=Nutrients!$B$8,Nutrients!$E$8,Nutrients!$E$9)*W$7)+(((IF($A$8=Nutrients!$B$79,Nutrients!$E$79,(IF($A$8=Nutrients!$B$77,Nutrients!$E$77,Nutrients!$E$78)))))*W$8))/2000/2.2046","v":1502.0516798715139},{"$f":"(SUMPRODUCT(X$9:X$229,Nutrients!$E$8:$E$228)+(IF($A$7=Nutrients!$B$8,Nutrients!$E$8,Nutrients!$E$9)*X$7)+(((IF($A$8=Nutrients!$B$79,Nutrients!$E$79,(IF($A$8=Nutrients!$B$77,Nutrients!$E$77,Nutrients!$E$78)))))*X$8))/2000/2.2046","v":1507.4687579662173},{"$f":"(SUMPRODUCT(Y$9:Y$229,Nutrients!$E$8:$E$228)+(IF($A$7=Nutrients!$B$8,Nutrients!$E$8,Nutrients!$E$9)*Y$7)+(((IF($A$8=Nutrients!$B$79,Nutrients!$E$79,(IF($A$8=Nutrients!$B$77,Nutrients!$E$77,Nutrients!$E$78)))))*Y$8))/2000/2.2046","v":1512.3626488822301},{"$f":"(SUMPRODUCT(Z$9:Z$229,Nutrients!$E$8:$E$228)+(IF($A$7=Nutrients!$B$8,Nutrients!$E$8,Nutrients!$E$9)*Z$7)+(((IF($A$8=Nutrients!$B$79,Nutrients!$E$79,(IF($A$8=Nutrients!$B$77,Nutrients!$E$77,Nutrients!$E$78)))))*Z$8))/2000/2.2046","v":1517.0846737515897},{"$f":"(SUMPRODUCT(AA$9:AA$229,Nutrients!$E$8:$E$228)+(IF($A$7=Nutrients!$B$8,Nutrients!$E$8,Nutrients!$E$9)*AA$7)+(((IF($A$8=Nutrients!$B$79,Nutrients!$E$79,(IF($A$8=Nutrients!$B$77,Nutrients!$E$77,Nutrients!$E$78)))))*AA$8))/2000/2.2046","v":1520.518971093664},{"$f":"(SUMPRODUCT(AB$9:AB$229,Nutrients!$E$8:$E$228)+(IF($A$7=Nutrients!$B$8,Nutrients!$E$8,Nutrients!$E$9)*AB$7)+(((IF($A$8=Nutrients!$B$79,Nutrients!$E$79,(IF($A$8=Nutrients!$B$77,Nutrients!$E$77,Nutrients!$E$78)))))*AB$8))/2000/2.2046","v":1511.4146927250044},null,{"$f":"(SUMPRODUCT(AD$9:AD$229,Nutrients!$E$8:$E$228)+(IF($A$7=Nutrients!$B$8,Nutrients!$E$8,Nutrients!$E$9)*AD$7)+(((IF($A$8=Nutrients!$B$79,Nutrients!$E$79,(IF($A$8=Nutrients!$B$77,Nutrients!$E$77,Nutrients!$E$78)))))*AD$8))/2000/2.2046","v":1505.4379363536875},{"$f":"(SUMPRODUCT(AE$9:AE$229,Nutrients!$E$8:$E$228)+(IF($A$7=Nutrients!$B$8,Nutrients!$E$8,Nutrients!$E$9)*AE$7)+(((IF($A$8=Nutrients!$B$79,Nutrients!$E$79,(IF($A$8=Nutrients!$B$77,Nutrients!$E$77,Nutrients!$E$78)))))*AE$8))/2000/2.2046","v":1510.8603334029074},{"$f":"(SUMPRODUCT(AF$9:AF$229,Nutrients!$E$8:$E$228)+(IF($A$7=Nutrients!$B$8,Nutrients!$E$8,Nutrients!$E$9)*AF$7)+(((IF($A$8=Nutrients!$B$79,Nutrients!$E$79,(IF($A$8=Nutrients!$B$77,Nutrients!$E$77,Nutrients!$E$78)))))*AF$8))/2000/2.2046","v":1515.7191861337612},{"$f":"(SUMPRODUCT(AG$9:AG$229,Nutrients!$E$8:$E$228)+(IF($A$7=Nutrients!$B$8,Nutrients!$E$8,Nutrients!$E$9)*AG$7)+(((IF($A$8=Nutrients!$B$79,Nutrients!$E$79,(IF($A$8=Nutrients!$B$77,Nutrients!$E$77,Nutrients!$E$78)))))*AG$8))/2000/2.2046","v":1520.5261055090778},{"$f":"(SUMPRODUCT(AH$9:AH$229,Nutrients!$E$8:$E$228)+(IF($A$7=Nutrients!$B$8,Nutrients!$E$8,Nutrients!$E$9)*AH$7)+(((IF($A$8=Nutrients!$B$79,Nutrients!$E$79,(IF($A$8=Nutrients!$B$77,Nutrients!$E$77,Nutrients!$E$78)))))*AH$8))/2000/2.2046","v":1523.0796667784584},{"$f":"(SUMPRODUCT(AI$9:AI$229,Nutrients!$E$8:$E$228)+(IF($A$7=Nutrients!$B$8,Nutrients!$E$8,Nutrients!$E$9)*AI$7)+(((IF($A$8=Nutrients!$B$79,Nutrients!$E$79,(IF($A$8=Nutrients!$B$77,Nutrients!$E$77,Nutrients!$E$78)))))*AI$8))/2000/2.2046","v":1511.4146927250044},null,{"$f":"(SUMPRODUCT(AK$9:AK$229,Nutrients!$E$8:$E$228)+(IF($A$7=Nutrients!$B$8,Nutrients!$E$8,Nutrients!$E$9)*AK$7)+(((IF($A$8=Nutrients!$B$79,Nutrients!$E$79,(IF($A$8=Nutrients!$B$77,Nutrients!$E$77,Nutrients!$E$78)))))*AK$8))/2000/2.2046","v":1508.7205039881487},{"$f":"(SUMPRODUCT(AL$9:AL$229,Nutrients!$E$8:$E$228)+(IF($A$7=Nutrients!$B$8,Nutrients!$E$8,Nutrients!$E$9)*AL$7)+(((IF($A$8=Nutrients!$B$79,Nutrients!$E$79,(IF($A$8=Nutrients!$B$77,Nutrients!$E$77,Nutrients!$E$78)))))*AL$8))/2000/2.2046","v":1514.2610195318475},{"$f":"(SUMPRODUCT(AM$9:AM$229,Nutrients!$E$8:$E$228)+(IF($A$7=Nutrients!$B$8,Nutrients!$E$8,Nutrients!$E$9)*AM$7)+(((IF($A$8=Nutrients!$B$79,Nutrients!$E$79,(IF($A$8=Nutrients!$B$77,Nutrients!$E$77,Nutrients!$E$78)))))*AM$8))/2000/2.2046","v":1519.1983937446416},{"$f":"(SUMPRODUCT(AN$9:AN$229,Nutrients!$E$8:$E$228)+(IF($A$7=Nutrients!$B$8,Nutrients!$E$8,Nutrients!$E$9)*AN$7)+(((IF($A$8=Nutrients!$B$79,Nutrients!$E$79,(IF($A$8=Nutrients!$B$77,Nutrients!$E$77,Nutrients!$E$78)))))*AN$8))/2000/2.2046","v":1523.3077710877762},{"$f":"(SUMPRODUCT(AO$9:AO$229,Nutrients!$E$8:$E$228)+(IF($A$7=Nutrients!$B$8,Nutrients!$E$8,Nutrients!$E$9)*AO$7)+(((IF($A$8=Nutrients!$B$79,Nutrients!$E$79,(IF($A$8=Nutrients!$B$77,Nutrients!$E$77,Nutrients!$E$78)))))*AO$8))/2000/2.2046","v":1525.217862280984},{"$f":"(SUMPRODUCT(AP$9:AP$229,Nutrients!$E$8:$E$228)+(IF($A$7=Nutrients!$B$8,Nutrients!$E$8,Nutrients!$E$9)*AP$7)+(((IF($A$8=Nutrients!$B$79,Nutrients!$E$79,(IF($A$8=Nutrients!$B$77,Nutrients!$E$77,Nutrients!$E$78)))))*AP$8))/2000/2.2046","v":1511.4146927250044},null,{"$f":"(SUMPRODUCT(AR$9:AR$229,Nutrients!$E$8:$E$228)+(IF($A$7=Nutrients!$B$8,Nutrients!$E$8,Nutrients!$E$9)*AR$7)+(((IF($A$8=Nutrients!$B$79,Nutrients!$E$79,(IF($A$8=Nutrients!$B$77,Nutrients!$E$77,Nutrients!$E$78)))))*AR$8))/2000/2.2046","v":1512.1564715988029},{"$f":"(SUMPRODUCT(AS$9:AS$229,Nutrients!$E$8:$E$228)+(IF($A$7=Nutrients!$B$8,Nutrients!$E$8,Nutrients!$E$9)*AS$7)+(((IF($A$8=Nutrients!$B$79,Nutrients!$E$79,(IF($A$8=Nutrients!$B$77,Nutrients!$E$77,Nutrients!$E$78)))))*AS$8))/2000/2.2046","v":1517.6463891175788},{"$f":"(SUMPRODUCT(AT$9:AT$229,Nutrients!$E$8:$E$228)+(IF($A$7=Nutrients!$B$8,Nutrients!$E$8,Nutrients!$E$9)*AT$7)+(((IF($A$8=Nutrients!$B$79,Nutrients!$E$79,(IF($A$8=Nutrients!$B$77,Nutrients!$E$77,Nutrients!$E$78)))))*AT$8))/2000/2.2046","v":1522.6528134877396},{"$f":"(SUMPRODUCT(AU$9:AU$229,Nutrients!$E$8:$E$228)+(IF($A$7=Nutrients!$B$8,Nutrients!$E$8,Nutrients!$E$9)*AU$7)+(((IF($A$8=Nutrients!$B$79,Nutrients!$E$79,(IF($A$8=Nutrients!$B$77,Nutrients!$E$77,Nutrients!$E$78)))))*AU$8))/2000/2.2046","v":1525.4458487239158},{"$f":"(SUMPRODUCT(AV$9:AV$229,Nutrients!$E$8:$E$228)+(IF($A$7=Nutrients!$B$8,Nutrients!$E$8,Nutrients!$E$9)*AV$7)+(((IF($A$8=Nutrients!$B$79,Nutrients!$E$79,(IF($A$8=Nutrients!$B$77,Nutrients!$E$77,Nutrients!$E$78)))))*AV$8))/2000/2.2046","v":1527.3505289827599},{"$f":"(SUMPRODUCT(AW$9:AW$229,Nutrients!$E$8:$E$228)+(IF($A$7=Nutrients!$B$8,Nutrients!$E$8,Nutrients!$E$9)*AW$7)+(((IF($A$8=Nutrients!$B$79,Nutrients!$E$79,(IF($A$8=Nutrients!$B$77,Nutrients!$E$77,Nutrients!$E$78)))))*AW$8))/2000/2.2046","v":1511.4146927250044}]
["NE Noblet Grow/Finish, kcal/lb",{"$f":"(SUMPRODUCT(B$9:B$229,Nutrients!$DY$8:$DY$228)+(IF($A$7=Nutrients!$B$8,Nutrients!$DY$8,Nutrients!$DY$9)*B$7)+(((IF($A$8=Nutrients!$B$79,Nutrients!$DY$79,(IF($A$8=Nutrients!$B$77,Nutrients!$DY$77,Nutrients!$DY$78)))))*B$8))/2000/2.2046","v":1084.249548676868},{"$f":"(SUMPRODUCT(C$9:C$229,Nutrients!$DY$8:$DY$228)+(IF($A$7=Nutrients!$B$8,Nutrients!$DY$8,Nutrients!$DY$9)*C$7)+(((IF($A$8=Nutrients!$B$79,Nutrients!$DY$79,(IF($A$8=Nutrients!$B$77,Nutrients!$DY$77,Nutrients!$DY$78)))))*C$8))/2000/2.2046","v":1102.8575690313603},{"$f":"(SUMPRODUCT(D$9:D$229,Nutrients!$DY$8:$DY$228)+(IF($A$7=Nutrients!$B$8,Nutrients!$DY$8,Nutrients!$DY$9)*D$7)+(((IF($A$8=Nutrients!$B$79,Nutrients!$DY$79,(IF($A$8=Nutrients!$B$77,Nutrients!$DY$77,Nutrients!$DY$78)))))*D$8))/2000/2.2046","v":1119.0569124625506},{"$f":"(SUMPRODUCT(E$9:E$229,Nutrients!$DY$8:$DY$228)+(IF($A$7=Nutrients!$B$8,Nutrients!$DY$8,Nutrients!$DY$9)*E$7)+(((IF($A$8=Nutrients!$B$79,Nutrients!$DY$79,(IF($A$8=Nutrients!$B$77,Nutrients!$DY$77,Nutrients!$DY$78)))))*E$8))/2000/2.2046","v":1132.8948287435808},{"$f":"(SUMPRODUCT(F$9:F$229,Nutrients!$DY$8:$DY$228)+(IF($A$7=Nutrients!$B$8,Nutrients!$DY$8,Nutrients!$DY$9)*F$7)+(((IF($A$8=Nutrients!$B$79,Nutrients!$DY$79,(IF($A$8=Nutrients!$B$77,Nutrients!$DY$77,Nutrients!$DY$78)))))*F$8))/2000/2.2046","v":1142.4960914643329},{"$f":"(SUMPRODUCT(G$9:G$229,Nutrients!$DY$8:$DY$228)+(IF($A$7=Nutrients!$B$8,Nutrients!$DY$8,Nutrients!$DY$9)*G$7)+(((IF($A$8=Nutrients!$B$79,Nutrients!$DY$79,(IF($A$8=Nutrients!$B$77,Nutrients!$DY$77,Nutrients!$DY$78)))))*G$8))/2000/2.2046","v":1147.04091606665},null,{"$f":"(SUMPRODUCT(I$9:I$229,Nutrients!$DY$8:$DY$228)+(IF($A$7=Nutrients!$B$8,Nutrients!$DY$8,Nutrients!$DY$9)*I$7)+(((IF($A$8=Nutrients!$B$79,Nutrients!$DY$79,(IF($A$8=Nutrients!$B$77,Nutrients!$DY$77,Nutrients!$DY$78)))))*I$8))/2000/2.2046","v":1030.3054724813126},{"$f":"(SUMPRODUCT(J$9:J$229,Nutrients!$DY$8:$DY$228)+(IF($A$7=Nutrients!$B$8,Nutrients!$DY$8,Nutrients!$DY$9)*J$7)+(((IF($A$8=Nutrients!$B$79,Nutrients!$DY$79,(IF($A$8=Nutrients!$B$77,Nutrients!$DY$77,Nutrients!$DY$78)))))*J$8))/2000/2.2046","v":1048.7145298724788},{"$f":"(SUMPRODUCT(K$9:K$229,Nutrients!$DY$8:$DY$228)+(IF($A$7=Nutrients!$B$8,Nutrients!$DY$8,Nutrients!$DY$9)*K$7)+(((IF($A$8=Nutrients!$B$79,Nutrients!$DY$79,(IF($A$8=Nutrients!$B$77,Nutrients!$DY$77,Nutrients!$DY$78)))))*K$8))/2000/2.2046","v":1064.7642109414696},{"$f":"(SUMPRODUCT(L$9:L$229,Nutrients!$DY$8:$DY$228)+(IF($A$7=Nutrients!$B$8,Nutrients!$DY$8,Nutrients!$DY$9)*L$7)+(((IF($A$8=Nutrients!$B$79,Nutrients!$DY$79,(IF($A$8=Nutrients!$B$77,Nutrients!$DY$77,Nutrients!$DY$78)))))*L$8))/2000/2.2046","v":1078.7614320762229},{"$f":"(SUMPRODUCT(M$9:M$229,Nutrients!$DY$8:$DY$228)+(IF($A$7=Nutrients!$B$8,Nutrients!$DY$8,Nutrients!$DY$9)*M$7)+(((IF($A$8=Nutrients!$B$79,Nutrients!$DY$79,(IF($A$8=Nutrients!$B$77,Nutrients!$DY$77,Nutrients!$DY$78)))))*M$8))/2000/2.2046","v":1088.2876932598908},{"$f":"(SUMPRODUCT(N$9:N$229,Nutrients!$DY$8:$DY$228)+(IF($A$7=Nutrients!$B$8,Nutrients!$DY$8,Nutrients!$DY$9)*N$7)+(((IF($A$8=Nutrients!$B$79,Nutrients!$DY$79,(IF($A$8=Nutrients!$B$77,Nutrients!$DY$77,Nutrients!$DY$78)))))*N$8))/2000/2.2046","v":1147.04091606665},null,{"$f":"(SUMPRODUCT(P$9:P$229,Nutrients!$DY$8:$DY$228)+(IF($A$7=Nutrients!$B$8,Nutrients!$DY$8,Nutrients!$DY$9)*P$7)+(((IF($A$8=Nutrients!$B$79,Nutrients!$DY$79,(IF($A$8=Nutrients!$B$77,Nutrients!$DY$77,Nutrients!$DY$78)))))*P$8))/2000/2.2046","v":976.11206043749053},{"$f":"(SUMPRODUCT(Q$9:Q$229,Nutrients!$DY$8:$DY$228)+(IF($A$7=Nutrients!$B$8,Nutrients!$DY$8,Nutrients!$DY$9)*Q$7)+(((IF($A$8=Nutrients!$B$79,Nutrients!$DY$79,(IF($A$8=Nutrients!$B$77,Nutrients!$DY$77,Nutrients!$DY$78)))))*Q$8))/2000/2.2046","v":994.42057390554351},{"$f":"(SUMPRODUCT(R$9:R$229,Nutrients!$DY$8:$DY$228)+(IF($A$7=Nutrients!$B$8,Nutrients!$DY$8,Nutrients!$DY$9)*R$7)+(((IF($A$8=Nutrients!$B$79,Nutrients!$DY$79,(IF($A$8=Nutrients!$B$77,Nutrients!$DY$77,Nutrients!$DY$78)))))*R$8))/2000/2.2046","v":1010.3462226330507},{"$f":"(SUMPRODUCT(S$9:S$229,Nutrients!$DY$8:$DY$228)+(IF($A$7=Nutrients!$B$8,Nutrients!$DY$8,Nutrients!$DY$9)*S$7)+(((IF($A$8=Nutrients!$B$79,Nutrients!$DY$79,(IF($A$8=Nutrients!$B$77,Nutrients!$DY$77,Nutrients!$DY$78)))))*S$8))/2000/2.2046","v":1024.397073197247},{"$f":"(SUMPRODUCT(T$9:T$229,Nutrients!$DY$8:$DY$228)+(IF($A$7=Nutrients!$B$8,Nutrients!$DY$8,Nutrients!$DY$9)*T$7)+(((IF($A$8=Nutrients!$B$79,Nutrients!$DY$79,(IF($A$8=Nutrients!$B$77,Nutrients!$DY$77,Nutrients!$DY$78)))))*T$8))/2000/2.2046","v":1033.8856659994985},{"$f":"(SUMPRODUCT(U$9:U$229,Nutrients!$DY$8:$DY$228)+(IF($A$7=Nutrients!$B$8,Nutrients!$DY$8,Nutrients!$DY$9)*U$7)+(((IF($A$8=Nutrients!$B$79,Nutrients!$DY$79,(IF($A$8=Nutrients!$B$77,Nutrients!$DY$77,Nutrients!$DY$78)))))*U$8))/2000/2.2046","v":1147.04091606665},null,{"$f":"(SUMPRODUCT(W$9:W$229,Nutrients!$DY$8:$DY$228)+(IF($A$7=Nutrients!$B$8,Nutrients!$DY$8,Nutrients!$DY$9)*W$7)+(((IF($A$8=Nutrients!$B$79,Nutrients!$DY$79,(IF($A$8=Nutrients!$B$77,Nutrients!$DY$77,Nutrients!$DY$78)))))*W$8))/2000/2.2046","v":921.93884305985682},{"$f":"(SUMPRODUCT(X$9:X$229,Nutrients!$DY$8:$DY$228)+(IF($A$7=Nutrients!$B$8,Nutrients!$DY$8,Nutrients!$DY$9)*X$7)+(((IF($A$8=Nutrients!$B$79,Nutrients!$DY$79,(IF($A$8=Nutrients!$B$77,Nutrients!$DY$77,Nutrients!$DY$78)))))*X$8))/2000/2.2046","v":940.1405093516845},{"$f":"(SUMPRODUCT(Y$9:Y$229,Nutrients!$DY$8:$DY$228)+(IF($A$7=Nutrients!$B$8,Nutrients!$DY$8,Nutrients!$DY$9)*Y$7)+(((IF($A$8=Nutrients!$B$79,Nutrients!$DY$79,(IF($A$8=Nutrients!$B$77,Nutrients!$DY$77,Nutrients!$DY$78)))))*Y$8))/2000/2.2046","v":956.12064653787843},{"$f":"(SUMPRODUCT(Z$9:Z$229,Nutrients!$DY$8:$DY$228)+(IF($A$7=Nutrients!$B$8,Nutrients!$DY$8,Nutrients!$DY$9)*Z$7)+(((IF($A$8=Nutrients!$B$79,Nutrients!$DY$79,(IF($A$8=Nutrients!$B$77,Nutrients!$DY$77,Nutrients!$DY$78)))))*Z$8))/2000/2.2046","v":970.03366485522986},{"$f":"(SUMPRODUCT(AA$9:AA$229,Nutrients!$DY$8:$DY$228)+(IF($A$7=Nutrients!$B$8,Nutrients!$DY$8,Nutrients!$DY$9)*AA$7)+(((IF($A$8=Nutrients!$B$79,Nutrients!$DY$79,(IF($A$8=Nutrients!$B$77,Nutrients!$DY$77,Nutrients!$DY$78)))))*AA$8))/2000/2.2046","v":979.51295555637921},{"$f":"(SUMPRODUCT(AB$9:AB$229,Nutrients!$DY$8:$DY$228)+(IF($A$7=Nutrients!$B$8,Nutrients!$DY$8,Nutrients!$DY$9)*AB$7)+(((IF($A$8=Nutrients!$B$79,Nutrients!$DY$79,(IF($A$8=Nutrients!$B$77,Nutrients!$DY$77,Nutrients!$DY$78)))))*AB$8))/2000/2.2046","v":1147.04091606665},null,{"$f":"(SUMPRODUCT(AD$9:AD$229,Nutrients!$DY$8:$DY$228)+(IF($A$7=Nutrients!$B$8,Nutrients!$DY$8,Nutrients!$DY$9)*AD$7)+(((IF($A$8=Nutrients!$B$79,Nutrients!$DY$79,(IF($A$8=Nutrients!$B$77,Nutrients!$DY$77,Nutrients!$DY$78)))))*AD$8))/2000/2.2046","v":867.76645290980991},{"$f":"(SUMPRODUCT(AE$9:AE$229,Nutrients!$DY$8:$DY$228)+(IF($A$7=Nutrients!$B$8,Nutrients!$DY$8,Nutrients!$DY$9)*AE$7)+(((IF($A$8=Nutrients!$B$79,Nutrients!$DY$79,(IF($A$8=Nutrients!$B$77,Nutrients!$DY$77,Nutrients!$DY$78)))))*AE$8))/2000/2.2046","v":886.00879686904716},{"$f":"(SUMPRODUCT(AF$9:AF$229,Nutrients!$DY$8:$DY$228)+(IF($A$7=Nutrients!$B$8,Nutrients!$DY$8,Nutrients!$DY$9)*AF$7)+(((IF($A$8=Nutrients!$B$79,Nutrients!$DY$79,(IF($A$8=Nutrients!$B$77,Nutrients!$DY$77,Nutrients!$DY$78)))))*AF$8))/2000/2.2046","v":901.83090082522074},{"$f":"(SUMPRODUCT(AG$9:AG$229,Nutrients!$DY$8:$DY$228)+(IF($A$7=Nutrients!$B$8,Nutrients!$DY$8,Nutrients!$DY$9)*AG$7)+(((IF($A$8=Nutrients!$B$79,Nutrients!$DY$79,(IF($A$8=Nutrients!$B$77,Nutrients!$DY$77,Nutrients!$DY$78)))))*AG$8))/2000/2.2046","v":915.70713070196064},{"$f":"(SUMPRODUCT(AH$9:AH$229,Nutrients!$DY$8:$DY$228)+(IF($A$7=Nutrients!$B$8,Nutrients!$DY$8,Nutrients!$DY$9)*AH$7)+(((IF($A$8=Nutrients!$B$79,Nutrients!$DY$79,(IF($A$8=Nutrients!$B$77,Nutrients!$DY$77,Nutrients!$DY$78)))))*AH$8))/2000/2.2046","v":924.48601407361025},{"$f":"(SUMPRODUCT(AI$9:AI$229,Nutrients!$DY$8:$DY$228)+(IF($A$7=Nutrients!$B$8,Nutrients!$DY$8,Nutrients!$DY$9)*AI$7)+(((IF($A$8=Nutrients!$B$79,Nutrients!$DY$79,(IF($A$8=Nutrients!$B$77,Nutrients!$DY$77,Nutrients!$DY$78)))))*AI$8))/2000/2.2046","v":1147.04091606665},null,{"$f":"(SUMPRODUCT(AK$9:AK$229,Nutrients!$DY$8:$DY$228)+(IF($A$7=Nutrients!$B$8,Nutrients!$DY$8,Nutrients!$DY$9)*AK$7)+(((IF($A$8=Nutrients!$B$79,Nutrients!$DY$79,(IF($A$8=Nutrients!$B$77,Nutrients!$DY$77,Nutrients!$DY$78)))))*AK$8))/2000/2.2046","v":812.94689712794843},{"$f":"(SUMPRODUCT(AL$9:AL$229,Nutrients!$DY$8:$DY$228)+(IF($A$7=Nutrients!$B$8,Nutrients!$DY$8,Nutrients!$DY$9)*AL$7)+(((IF($A$8=Nutrients!$B$79,Nutrients!$DY$79,(IF($A$8=Nutrients!$B$77,Nutrients!$DY$77,Nutrients!$DY$78)))))*AL$8))/2000/2.2046","v":831.84352033164794},{"$f":"(SUMPRODUCT(AM$9:AM$229,Nutrients!$DY$8:$DY$228)+(IF($A$7=Nutrients!$B$8,Nutrients!$DY$8,Nutrients!$DY$9)*AM$7)+(((IF($A$8=Nutrients!$B$79,Nutrients!$DY$79,(IF($A$8=Nutrients!$B$77,Nutrients!$DY$77,Nutrients!$DY$78)))))*AM$8))/2000/2.2046","v":847.61575016506151},{"$f":"(SUMPRODUCT(AN$9:AN$229,Nutrients!$DY$8:$DY$228)+(IF($A$7=Nutrients!$B$8,Nutrients!$DY$8,Nutrients!$DY$9)*AN$7)+(((IF($A$8=Nutrients!$B$79,Nutrients!$DY$79,(IF($A$8=Nutrients!$B$77,Nutrients!$DY$77,Nutrients!$DY$78)))))*AN$8))/2000/2.2046","v":860.90027670761856},{"$f":"(SUMPRODUCT(AO$9:AO$229,Nutrients!$DY$8:$DY$228)+(IF($A$7=Nutrients!$B$8,Nutrients!$DY$8,Nutrients!$DY$9)*AO$7)+(((IF($A$8=Nutrients!$B$79,Nutrients!$DY$79,(IF($A$8=Nutrients!$B$77,Nutrients!$DY$77,Nutrients!$DY$78)))))*AO$8))/2000/2.2046","v":869.14243153068207},{"$f":"(SUMPRODUCT(AP$9:AP$229,Nutrients!$DY$8:$DY$228)+(IF($A$7=Nutrients!$B$8,Nutrients!$DY$8,Nutrients!$DY$9)*AP$7)+(((IF($A$8=Nutrients!$B$79,Nutrients!$DY$79,(IF($A$8=Nutrients!$B$77,Nutrients!$DY$77,Nutrients!$DY$78)))))*AP$8))/2000/2.2046","v":1147.04091606665},null,{"$f":"(SUMPRODUCT(AR$9:AR$229,Nutrients!$DY$8:$DY$228)+(IF($A$7=Nutrients!$B$8,Nutrients!$DY$8,Nutrients!$DY$9)*AR$7)+(((IF($A$8=Nutrients!$B$79,Nutrients!$DY$79,(IF($A$8=Nutrients!$B$77,Nutrients!$DY$77,Nutrients!$DY$78)))))*AR$8))/2000/2.2046","v":759.02692084002376},{"$f":"(SUMPRODUCT(AS$9:AS$229,Nutrients!$DY$8:$DY$228)+(IF($A$7=Nutrients!$B$8,Nutrients!$DY$8,Nutrients!$DY$9)*AS$7)+(((IF($A$8=Nutrients!$B$79,Nutrients!$DY$79,(IF($A$8=Nutrients!$B$77,Nutrients!$DY$77,Nutrients!$DY$78)))))*AS$8))/2000/2.2046","v":777.66522428740984},{"$f":"(SUMPRODUCT(AT$9:AT$229,Nutrients!$DY$8:$DY$228)+(IF($A$7=Nutrients!$B$8,Nutrients!$DY$8,Nutrients!$DY$9)*AT$7)+(((IF($A$8=Nutrients!$B$79,Nutrients!$DY$79,(IF($A$8=Nutrients!$B$77,Nutrients!$DY$77,Nutrients!$DY$78)))))*AT$8))/2000/2.2046","v":793.35343487388752},{"$f":"(SUMPRODUCT(AU$9:AU$229,Nutrients!$DY$8:$DY$228)+(IF($A$7=Nutrients!$B$8,Nutrients!$DY$8,Nutrients!$DY$9)*AU$7)+(((IF($A$8=Nutrients!$B$79,Nutrients!$DY$79,(IF($A$8=Nutrients!$B$77,Nutrients!$DY$77,Nutrients!$DY$78)))))*AU$8))/2000/2.2046","v":805.60363695577632},{"$f":"(SUMPRODUCT(AV$9:AV$229,Nutrients!$DY$8:$DY$228)+(IF($A$7=Nutrients!$B$8,Nutrients!$DY$8,Nutrients!$DY$9)*AV$7)+(((IF($A$8=Nutrients!$B$79,Nutrients!$DY$79,(IF($A$8=Nutrients!$B$77,Nutrients!$DY$77,Nutrients!$DY$78)))))*AV$8))/2000/2.2046","v":813.79398307026099},{"$f":"(SUMPRODUCT(AW$9:AW$229,Nutrients!$DY$8:$DY$228)+(IF($A$7=Nutrients!$B$8,Nutrients!$DY$8,Nutrients!$DY$9)*AW$7)+(((IF($A$8=Nutrients!$B$79,Nutrients!$DY$79,(IF($A$8=Nutrients!$B$77,Nutrients!$DY$77,Nutrients!$DY$78)))))*AW$8))/2000/2.2046","v":1147.04091606665}]
["NE Noblet Sow, kcal/lb",{"$f":"(SUMPRODUCT(B$9:B$229,Nutrients!$DZ$8:$DZ$228)+(IF($A$7=Nutrients!$B$8,Nutrients!$DZ$8,Nutrients!$DZ$9)*B$7)+(((IF($A$8=Nutrients!$B$79,Nutrients!$DZ$79,(IF($A$8=Nutrients!$B$77,Nutrients!$DZ$77,Nutrients!$DZ$78)))))*B$8))/2000/2.2046","v":1125.1001476776023},{"$f":"(SUMPRODUCT(C$9:C$229,Nutrients!$DZ$8:$DZ$228)+(IF($A$7=Nutrients!$B$8,Nutrients!$DZ$8,Nutrients!$DZ$9)*C$7)+(((IF($A$8=Nutrients!$B$79,Nutrients!$DZ$79,(IF($A$8=Nutrients!$B$77,Nutrients!$DZ$77,Nutrients!$DZ$78)))))*C$8))/2000/2.2046","v":1142.795652894368},{"$f":"(SUMPRODUCT(D$9:D$229,Nutrients!$DZ$8:$DZ$228)+(IF($A$7=Nutrients!$B$8,Nutrients!$DZ$8,Nutrients!$DZ$9)*D$7)+(((IF($A$8=Nutrients!$B$79,Nutrients!$DZ$79,(IF($A$8=Nutrients!$B$77,Nutrients!$DZ$77,Nutrients!$DZ$78)))))*D$8))/2000/2.2046","v":1158.2172951602411},{"$f":"(SUMPRODUCT(E$9:E$229,Nutrients!$DZ$8:$DZ$228)+(IF($A$7=Nutrients!$B$8,Nutrients!$DZ$8,Nutrients!$DZ$9)*E$7)+(((IF($A$8=Nutrients!$B$79,Nutrients!$DZ$79,(IF($A$8=Nutrients!$B$77,Nutrients!$DZ$77,Nutrients!$DZ$78)))))*E$8))/2000/2.2046","v":1171.3956144840422},{"$f":"(SUMPRODUCT(F$9:F$229,Nutrients!$DZ$8:$DZ$228)+(IF($A$7=Nutrients!$B$8,Nutrients!$DZ$8,Nutrients!$DZ$9)*F$7)+(((IF($A$8=Nutrients!$B$79,Nutrients!$DZ$79,(IF($A$8=Nutrients!$B$77,Nutrients!$DZ$77,Nutrients!$DZ$78)))))*F$8))/2000/2.2046","v":1180.5769470002078},{"$f":"(SUMPRODUCT(G$9:G$229,Nutrients!$DZ$8:$DZ$228)+(IF($A$7=Nutrients!$B$8,Nutrients!$DZ$8,Nutrients!$DZ$9)*G$7)+(((IF($A$8=Nutrients!$B$79,Nutrients!$DZ$79,(IF($A$8=Nutrients!$B$77,Nutrients!$DZ$77,Nutrients!$DZ$78)))))*G$8))/2000/2.2046","v":1184.8954698199086},null,{"$f":"(SUMPRODUCT(I$9:I$229,Nutrients!$DZ$8:$DZ$228)+(IF($A$7=Nutrients!$B$8,Nutrients!$DZ$8,Nutrients!$DZ$9)*I$7)+(((IF($A$8=Nutrients!$B$79,Nutrients!$DZ$79,(IF($A$8=Nutrients!$B$77,Nutrients!$DZ$77,Nutrients!$DZ$78)))))*I$8))/2000/2.2046","v":1068.9911800783441},{"$f":"(SUMPRODUCT(J$9:J$229,Nutrients!$DZ$8:$DZ$228)+(IF($A$7=Nutrients!$B$8,Nutrients!$DZ$8,Nutrients!$DZ$9)*J$7)+(((IF($A$8=Nutrients!$B$79,Nutrients!$DZ$79,(IF($A$8=Nutrients!$B$77,Nutrients!$DZ$77,Nutrients!$DZ$78)))))*J$8))/2000/2.2046","v":1086.4978644107787},{"$f":"(SUMPRODUCT(K$9:K$229,Nutrients!$DZ$8:$DZ$228)+(IF($A$7=Nutrients!$B$8,Nutrients!$DZ$8,Nutrients!$DZ$9)*K$7)+(((IF($A$8=Nutrients!$B$79,Nutrients!$DZ$79,(IF($A$8=Nutrients!$B$77,Nutrients!$DZ$77,Nutrients!$DZ$78)))))*K$8))/2000/2.2046","v":1101.7782144390544},{"$f":"(SUMPRODUCT(L$9:L$229,Nutrients!$DZ$8:$DZ$228)+(IF($A$7=Nutrients!$B$8,Nutrients!$DZ$8,Nutrients!$DZ$9)*L$7)+(((IF($A$8=Nutrients!$B$79,Nutrients!$DZ$79,(IF($A$8=Nutrients!$B$77,Nutrients!$DZ$77,Nutrients!$DZ$78)))))*L$8))/2000/2.2046","v":1115.1289874318397},{"$f":"(SUMPRODUCT(M$9:M$229,Nutrients!$DZ$8:$DZ$228)+(IF($A$7=Nutrients!$B$8,Nutrients!$DZ$8,Nutrients!$DZ$9)*M$7)+(((IF($A$8=Nutrients!$B$79,Nutrients!$DZ$79,(IF($A$8=Nutrients!$B$77,Nutrients!$DZ$77,Nutrients!$DZ$78)))))*M$8))/2000/2.2046","v":1124.2325687885493},{"$f":"(SUMPRODUCT(N$9:N$229,Nutrients!$DZ$8:$DZ$228)+(IF($A$7=Nutrients!$B$8,Nutrients!$DZ$8,Nutrients!$DZ$9)*N$7)+(((IF($A$8=Nutrients!$B$79,Nutrients!$DZ$79,(IF($A$8=Nutrients!$B$77,Nutrients!$DZ$77,Nutrients!$DZ$78)))))*N$8))/2000/2.2046","v":1184.8954698199086},null,{"$f":"(SUMPRODUCT(P$9:P$229,Nutrients!$DZ$8:$DZ$228)+(IF($A$7=Nutrients!$B$8,Nutrients!$DZ$8,Nutrients!$DZ$9)*P$7)+(((IF($A$8=Nutrients!$B$79,Nutrients!$DZ$79,(IF($A$8=Nutrients!$B$77,Nutrients!$DZ$77,Nutrients!$DZ$78)))))*P$8))/2000/2.2046","v":1012.6455525473967},{"$f":"(SUMPRODUCT(Q$9:Q$229,Nutrients!$DZ$8:$DZ$228)+(IF($A$7=Nutrients!$B$8,Nutrients!$DZ$8,Nutrients!$DZ$9)*Q$7)+(((IF($A$8=Nutrients!$B$79,Nutrients!$DZ$79,(IF($A$8=Nutrients!$B$77,Nutrients!$DZ$77,Nutrients!$DZ$78)))))*Q$8))/2000/2.2046","v":1030.0580392630297},{"$f":"(SUMPRODUCT(R$9:R$229,Nutrients!$DZ$8:$DZ$228)+(IF($A$7=Nutrients!$B$8,Nutrients!$DZ$8,Nutrients!$DZ$9)*R$7)+(((IF($A$8=Nutrients!$B$79,Nutrients!$DZ$79,(IF($A$8=Nutrients!$B$77,Nutrients!$DZ$77,Nutrients!$DZ$78)))))*R$8))/2000/2.2046","v":1045.2213908430708},{"$f":"(SUMPRODUCT(S$9:S$229,Nutrients!$DZ$8:$DZ$228)+(IF($A$7=Nutrients!$B$8,Nutrients!$DZ$8,Nutrients!$DZ$9)*S$7)+(((IF($A$8=Nutrients!$B$79,Nutrients!$DZ$79,(IF($A$8=Nutrients!$B$77,Nutrients!$DZ$77,Nutrients!$DZ$78)))))*S$8))/2000/2.2046","v":1058.6225656661193},{"$f":"(SUMPRODUCT(T$9:T$229,Nutrients!$DZ$8:$DZ$228)+(IF($A$7=Nutrients!$B$8,Nutrients!$DZ$8,Nutrients!$DZ$9)*T$7)+(((IF($A$8=Nutrients!$B$79,Nutrients!$DZ$79,(IF($A$8=Nutrients!$B$77,Nutrients!$DZ$77,Nutrients!$DZ$78)))))*T$8))/2000/2.2046","v":1067.691198716248},{"$f":"(SUMPRODUCT(U$9:U$229,Nutrients!$DZ$8:$DZ$228)+(IF($A$7=Nutrients!$B$8,Nutrients!$DZ$8,Nutrients!$DZ$9)*U$7)+(((IF($A$8=Nutrients!$B$79,Nutrients!$DZ$79,(IF($A$8=Nutrients!$B$77,Nutrients!$DZ$77,Nutrients!$DZ$78)))))*U$8))/2000/2.2046","v":1184.8954698199086},null,{"$f":"(SUMPRODUCT(W$9:W$229,Nutrients!$DZ$8:$DZ$228)+(IF($A$7=Nutrients!$B$8,Nutrients!$DZ$8,Nutrients!$DZ$9)*W$7)+(((IF($A$8=Nutrients!$B$79,Nutrients!$DZ$79,(IF($A$8=Nutrients!$B$77,Nutrients!$DZ$77,Nutrients!$DZ$78)))))*W$8))/2000/2.2046","v":956.32068512421426},{"$f":"(SUMPRODUCT(X$9:X$229,Nutrients!$DZ$8:$DZ$228)+(IF($A$7=Nutrients!$B$8,Nutrients!$DZ$8,Nutrients!$DZ$9)*X$7)+(((IF($A$8=Nutrients!$B$79,Nutrients!$DZ$79,(IF($A$8=Nutrients!$B$77,Nutrients!$DZ$77,Nutrients!$DZ$78)))))*X$8))/2000/2.2046","v":973.63289987446649},{"$f":"(SUMPRODUCT(Y$9:Y$229,Nutrients!$DZ$8:$DZ$228)+(IF($A$7=Nutrients!$B$8,Nutrients!$DZ$8,Nutrients!$DZ$9)*Y$7)+(((IF($A$8=Nutrients!$B$79,Nutrients!$DZ$79,(IF($A$8=Nutrients!$B$77,Nutrients!$DZ$77,Nutrients!$DZ$78)))))*Y$8))/2000/2.2046","v":988.84741266872163},{"$f":"(SUMPRODUCT(Z$9:Z$229,Nutrients!$DZ$8:$DZ$228)+(IF($A$7=Nutrients!$B$8,Nutrients!$DZ$8,Nutrients!$DZ$9)*Z$7)+(((IF($A$8=Nutrients!$B$79,Nutrients!$DZ$79,(IF($A$8=Nutrients!$B$77,Nutrients!$DZ$77,Nutrients!$DZ$78)))))*Z$8))/2000/2.2046","v":1002.1193565890605},{"$f":"(SUMPRODUCT(AA$9:AA$229,Nutrients!$DZ$8:$DZ$228)+(IF($A$7=Nutrients!$B$8,Nutrients!$DZ$8,Nutrients!$DZ$9)*AA$7)+(((IF($A$8=Nutrients!$B$79,Nutrients!$DZ$79,(IF($A$8=Nutrients!$B$77,Nutrients!$DZ$77,Nutrients!$DZ$78)))))*AA$8))/2000/2.2046","v":1011.1796674144463},{"$f":"(SUMPRODUCT(AB$9:AB$229,Nutrients!$DZ$8:$DZ$228)+(IF($A$7=Nutrients!$B$8,Nutrients!$DZ$8,Nutrients!$DZ$9)*AB$7)+(((IF($A$8=Nutrients!$B$79,Nutrients!$DZ$79,(IF($A$8=Nutrients!$B$77,Nutrients!$DZ$77,Nutrients!$DZ$78)))))*AB$8))/2000/2.2046","v":1184.8954698199086},null,{"$f":"(SUMPRODUCT(AD$9:AD$229,Nutrients!$DZ$8:$DZ$228)+(IF($A$7=Nutrients!$B$8,Nutrients!$DZ$8,Nutrients!$DZ$9)*AD$7)+(((IF($A$8=Nutrients!$B$79,Nutrients!$DZ$79,(IF($A$8=Nutrients!$B$77,Nutrients!$DZ$77,Nutrients!$DZ$78)))))*AD$8))/2000/2.2046","v":899.99550834362651},{"$f":"(SUMPRODUCT(AE$9:AE$229,Nutrients!$DZ$8:$DZ$228)+(IF($A$7=Nutrients!$B$8,Nutrients!$DZ$8,Nutrients!$DZ$9)*AE$7)+(((IF($A$8=Nutrients!$B$79,Nutrients!$DZ$79,(IF($A$8=Nutrients!$B$77,Nutrients!$DZ$77,Nutrients!$DZ$78)))))*AE$8))/2000/2.2046","v":917.3458158982213},{"$f":"(SUMPRODUCT(AF$9:AF$229,Nutrients!$DZ$8:$DZ$228)+(IF($A$7=Nutrients!$B$8,Nutrients!$DZ$8,Nutrients!$DZ$9)*AF$7)+(((IF($A$8=Nutrients!$B$79,Nutrients!$DZ$79,(IF($A$8=Nutrients!$B$77,Nutrients!$DZ$77,Nutrients!$DZ$78)))))*AF$8))/2000/2.2046","v":932.41168232122584},{"$f":"(SUMPRODUCT(AG$9:AG$229,Nutrients!$DZ$8:$DZ$228)+(IF($A$7=Nutrients!$B$8,Nutrients!$DZ$8,Nutrients!$DZ$9)*AG$7)+(((IF($A$8=Nutrients!$B$79,Nutrients!$DZ$79,(IF($A$8=Nutrients!$B$77,Nutrients!$DZ$77,Nutrients!$DZ$78)))))*AG$8))/2000/2.2046","v":945.64949215750767},{"$f":"(SUMPRODUCT(AH$9:AH$229,Nutrients!$DZ$8:$DZ$228)+(IF($A$7=Nutrients!$B$8,Nutrients!$DZ$8,Nutrients!$DZ$9)*AH$7)+(((IF($A$8=Nutrients!$B$79,Nutrients!$DZ$79,(IF($A$8=Nutrients!$B$77,Nutrients!$DZ$77,Nutrients!$DZ$78)))))*AH$8))/2000/2.2046","v":953.98988510335744},{"$f":"(SUMPRODUCT(AI$9:AI$229,Nutrients!$DZ$8:$DZ$228)+(IF($A$7=Nutrients!$B$8,Nutrients!$DZ$8,Nutrients!$DZ$9)*AI$7)+(((IF($A$8=Nutrients!$B$79,Nutrients!$DZ$79,(IF($A$8=Nutrients!$B$77,Nutrients!$DZ$77,Nutrients!$DZ$78)))))*AI$8))/2000/2.2046","v":1184.8954698199086},null,{"$f":"(SUMPRODUCT(AK$9:AK$229,Nutrients!$DZ$8:$DZ$228)+(IF($A$7=Nutrients!$B$8,Nutrients!$DZ$8,Nutrients!$DZ$9)*AK$7)+(((IF($A$8=Nutrients!$B$79,Nutrients!$DZ$79,(IF($A$8=Nutrients!$B$77,Nutrients!$DZ$77,Nutrients!$DZ$78)))))*AK$8))/2000/2.2046","v":843.06273653262019},{"$f":"(SUMPRODUCT(AL$9:AL$229,Nutrients!$DZ$8:$DZ$228)+(IF($A$7=Nutrients!$B$8,Nutrients!$DZ$8,Nutrients!$DZ$9)*AL$7)+(((IF($A$8=Nutrients!$B$79,Nutrients!$DZ$79,(IF($A$8=Nutrients!$B$77,Nutrients!$DZ$77,Nutrients!$DZ$78)))))*AL$8))/2000/2.2046","v":861.02840064818213},{"$f":"(SUMPRODUCT(AM$9:AM$229,Nutrients!$DZ$8:$DZ$228)+(IF($A$7=Nutrients!$B$8,Nutrients!$DZ$8,Nutrients!$DZ$9)*AM$7)+(((IF($A$8=Nutrients!$B$79,Nutrients!$DZ$79,(IF($A$8=Nutrients!$B$77,Nutrients!$DZ$77,Nutrients!$DZ$78)))))*AM$8))/2000/2.2046","v":876.04801481573986},{"$f":"(SUMPRODUCT(AN$9:AN$229,Nutrients!$DZ$8:$DZ$228)+(IF($A$7=Nutrients!$B$8,Nutrients!$DZ$8,Nutrients!$DZ$9)*AN$7)+(((IF($A$8=Nutrients!$B$79,Nutrients!$DZ$79,(IF($A$8=Nutrients!$B$77,Nutrients!$DZ$77,Nutrients!$DZ$78)))))*AN$8))/2000/2.2046","v":888.68158330077972},{"$f":"(SUMPRODUCT(AO$9:AO$229,Nutrients!$DZ$8:$DZ$228)+(IF($A$7=Nutrients!$B$8,Nutrients!$DZ$8,Nutrients!$DZ$9)*AO$7)+(((IF($A$8=Nutrients!$B$79,Nutrients!$DZ$79,(IF($A$8=Nutrients!$B$77,Nutrients!$DZ$77,Nutrients!$DZ$78)))))*AO$8))/2000/2.2046","v":896.47224750983901},{"$f":"(SUMPRODUCT(AP$9:AP$229,Nutrients!$DZ$8:$DZ$228)+(IF($A$7=Nutrients!$B$8,Nutrients!$DZ$8,Nutrients!$DZ$9)*AP$7)+(((IF($A$8=Nutrients!$B$79,Nutrients!$DZ$79,(IF($A$8=Nutrients!$B$77,Nutrients!$DZ$77,Nutrients!$DZ$78)))))*AP$8))/2000/2.2046","v":1184.8954698199086},null,{"$f":"(SUMPRODUCT(AR$9:AR$229,Nutrients!$DZ$8:$DZ$228)+(IF($A$7=Nutrients!$B$8,Nutrients!$DZ$8,Nutrients!$DZ$9)*AR$7)+(((IF($A$8=Nutrients!$B$79,Nutrients!$DZ$79,(IF($A$8=Nutrients!$B$77,Nutrients!$DZ$77,Nutrients!$DZ$78)))))*AR$8))/2000/2.2046","v":786.97529518179874},{"$f":"(SUMPRODUCT(AS$9:AS$229,Nutrients!$DZ$8:$DZ$228)+(IF($A$7=Nutrients!$B$8,Nutrients!$DZ$8,Nutrients!$DZ$9)*AS$7)+(((IF($A$8=Nutrients!$B$79,Nutrients!$DZ$79,(IF($A$8=Nutrients!$B$77,Nutrients!$DZ$77,Nutrients!$DZ$78)))))*AS$8))/2000/2.2046","v":804.69768392173921},{"$f":"(SUMPRODUCT(AT$9:AT$229,Nutrients!$DZ$8:$DZ$228)+(IF($A$7=Nutrients!$B$8,Nutrients!$DZ$8,Nutrients!$DZ$9)*AT$7)+(((IF($A$8=Nutrients!$B$79,Nutrients!$DZ$79,(IF($A$8=Nutrients!$B$77,Nutrients!$DZ$77,Nutrients!$DZ$78)))))*AT$8))/2000/2.2046","v":819.63866252246589},{"$f":"(SUMPRODUCT(AU$9:AU$229,Nutrients!$DZ$8:$DZ$228)+(IF($A$7=Nutrients!$B$8,Nutrients!$DZ$8,Nutrients!$DZ$9)*AU$7)+(((IF($A$8=Nutrients!$B$79,Nutrients!$DZ$79,(IF($A$8=Nutrients!$B$77,Nutrients!$DZ$77,Nutrients!$DZ$78)))))*AU$8))/2000/2.2046","v":831.20739576890014},{"$f":"(SUMPRODUCT(AV$9:AV$229,Nutrients!$DZ$8:$DZ$228)+(IF($A$7=Nutrients!$B$8,Nutrients!$DZ$8,Nutrients!$DZ$9)*AV$7)+(((IF($A$8=Nutrients!$B$79,Nutrients!$DZ$79,(IF($A$8=Nutrients!$B$77,Nutrients!$DZ$77,Nutrients!$DZ$78)))))*AV$8))/2000/2.2046","v":838.94994025425387},{"$f":"(SUMPRODUCT(AW$9:AW$229,Nutrients!$DZ$8:$DZ$228)+(IF($A$7=Nutrients!$B$8,Nutrients!$DZ$8,Nutrients!$DZ$9)*AW$7)+(((IF($A$8=Nutrients!$B$79,Nutrients!$DZ$79,(IF($A$8=Nutrients!$B$77,Nutrients!$DZ$77,Nutrients!$DZ$78)))))*AW$8))/2000/2.2046","v":1184.8954698199086}]
["DE NRC, kcal/lb",{"$f":"(SUMPRODUCT(B$9:B$229,Nutrients!$D$8:$D$228)+(IF($A$7=Nutrients!$B$8,Nutrients!$D$8,Nutrients!$D$9)*B$7)+(((IF($A$8=Nutrients!$B$79,Nutrients!$D$79,(IF($A$8=Nutrients!$B$77,Nutrients!$D$77,Nutrients!$D$78)))))*B$8))/2000/2.2046","v":1555.1808706013358},{"$f":"(SUMPRODUCT(C$9:C$229,Nutrients!$D$8:$D$228)+(IF($A$7=Nutrients!$B$8,Nutrients!$D$8,Nutrients!$D$9)*C$7)+(((IF($A$8=Nutrients!$B$79,Nutrients!$D$79,(IF($A$8=Nutrients!$B$77,Nutrients!$D$77,Nutrients!$D$78)))))*C$8))/2000/2.2046","v":1553.9515936192374},{"$f":"(SUMPRODUCT(D$9:D$229,Nutrients!$D$8:$D$228)+(IF($A$7=Nutrients!$B$8,Nutrients!$D$8,Nutrients!$D$9)*D$7)+(((IF($A$8=Nutrients!$B$79,Nutrients!$D$79,(IF($A$8=Nutrients!$B$77,Nutrients!$D$77,Nutrients!$D$78)))))*D$8))/2000/2.2046","v":1553.0837722463236},{"$f":"(SUMPRODUCT(E$9:E$229,Nutrients!$D$8:$D$228)+(IF($A$7=Nutrients!$B$8,Nutrients!$D$8,Nutrients!$D$9)*E$7)+(((IF($A$8=Nutrients!$B$79,Nutrients!$D$79,(IF($A$8=Nutrients!$B$77,Nutrients!$D$77,Nutrients!$D$78)))))*E$8))/2000/2.2046","v":1552.6251876342408},{"$f":"(SUMPRODUCT(F$9:F$229,Nutrients!$D$8:$D$228)+(IF($A$7=Nutrients!$B$8,Nutrients!$D$8,Nutrients!$D$9)*F$7)+(((IF($A$8=Nutrients!$B$79,Nutrients!$D$79,(IF($A$8=Nutrients!$B$77,Nutrients!$D$77,Nutrients!$D$78)))))*F$8))/2000/2.2046","v":1552.7788119489294},{"$f":"(SUMPRODUCT(G$9:G$229,Nutrients!$D$8:$D$228)+(IF($A$7=Nutrients!$B$8,Nutrients!$D$8,Nutrients!$D$9)*G$7)+(((IF($A$8=Nutrients!$B$79,Nutrients!$D$79,(IF($A$8=Nutrients!$B$77,Nutrients!$D$77,Nutrients!$D$78)))))*G$8))/2000/2.2046","v":1552.432918309064},null,{"$f":"(SUMPRODUCT(I$9:I$229,Nutrients!$D$8:$D$228)+(IF($A$7=Nutrients!$B$8,Nutrients!$D$8,Nutrients!$D$9)*I$7)+(((IF($A$8=Nutrients!$B$79,Nutrients!$D$79,(IF($A$8=Nutrients!$B$77,Nutrients!$D$77,Nutrients!$D$78)))))*I$8))/2000/2.2046","v":1561.2345478967395},{"$f":"(SUMPRODUCT(J$9:J$229,Nutrients!$D$8:$D$228)+(IF($A$7=Nutrients!$B$8,Nutrients!$D$8,Nutrients!$D$9)*J$7)+(((IF($A$8=Nutrients!$B$79,Nutrients!$D$79,(IF($A$8=Nutrients!$B$77,Nutrients!$D$77,Nutrients!$D$78)))))*J$8))/2000/2.2046","v":1560.0209334009417},{"$f":"(SUMPRODUCT(K$9:K$229,Nutrients!$D$8:$D$228)+(IF($A$7=Nutrients!$B$8,Nutrients!$D$8,Nutrients!$D$9)*K$7)+(((IF($A$8=Nutrients!$B$79,Nutrients!$D$79,(IF($A$8=Nutrients!$B$77,Nutrients!$D$77,Nutrients!$D$78)))))*K$8))/2000/2.2046","v":1559.184938107679},{"$f":"(SUMPRODUCT(L$9:L$229,Nutrients!$D$8:$D$228)+(IF($A$7=Nutrients!$B$8,Nutrients!$D$8,Nutrients!$D$9)*L$7)+(((IF($A$8=Nutrients!$B$79,Nutrients!$D$79,(IF($A$8=Nutrients!$B$77,Nutrients!$D$77,Nutrients!$D$78)))))*L$8))/2000/2.2046","v":1559.0763305351957},{"$f":"(SUMPRODUCT(M$9:M$229,Nutrients!$D$8:$D$228)+(IF($A$7=Nutrients!$B$8,Nutrients!$D$8,Nutrients!$D$9)*M$7)+(((IF($A$8=Nutrients!$B$79,Nutrients!$D$79,(IF($A$8=Nutrients!$B$77,Nutrients!$D$77,Nutrients!$D$78)))))*M$8))/2000/2.2046","v":1559.1238945863504},{"$f":"(SUMPRODUCT(N$9:N$229,Nutrients!$D$8:$D$228)+(IF($A$7=Nutrients!$B$8,Nutrients!$D$8,Nutrients!$D$9)*N$7)+(((IF($A$8=Nutrients!$B$79,Nutrients!$D$79,(IF($A$8=Nutrients!$B$77,Nutrients!$D$77,Nutrients!$D$78)))))*N$8))/2000/2.2046","v":1552.432918309064},null,{"$f":"(SUMPRODUCT(P$9:P$229,Nutrients!$D$8:$D$228)+(IF($A$7=Nutrients!$B$8,Nutrients!$D$8,Nutrients!$D$9)*P$7)+(((IF($A$8=Nutrients!$B$79,Nutrients!$D$79,(IF($A$8=Nutrients!$B$77,Nutrients!$D$77,Nutrients!$D$78)))))*P$8))/2000/2.2046","v":1567.3190592372055},{"$f":"(SUMPRODUCT(Q$9:Q$229,Nutrients!$D$8:$D$228)+(IF($A$7=Nutrients!$B$8,Nutrients!$D$8,Nutrients!$D$9)*Q$7)+(((IF($A$8=Nutrients!$B$79,Nutrients!$D$79,(IF($A$8=Nutrients!$B$77,Nutrients!$D$77,Nutrients!$D$78)))))*Q$8))/2000/2.2046","v":1566.1413447470138},{"$f":"(SUMPRODUCT(R$9:R$229,Nutrients!$D$8:$D$228)+(IF($A$7=Nutrients!$B$8,Nutrients!$D$8,Nutrients!$D$9)*R$7)+(((IF($A$8=Nutrients!$B$79,Nutrients!$D$79,(IF($A$8=Nutrients!$B$77,Nutrients!$D$77,Nutrients!$D$78)))))*R$8))/2000/2.2046","v":1565.3200093020728},{"$f":"(SUMPRODUCT(S$9:S$229,Nutrients!$D$8:$D$228)+(IF($A$7=Nutrients!$B$8,Nutrients!$D$8,Nutrients!$D$9)*S$7)+(((IF($A$8=Nutrients!$B$79,Nutrients!$D$79,(IF($A$8=Nutrients!$B$77,Nutrients!$D$77,Nutrients!$D$78)))))*S$8))/2000/2.2046","v":1565.1987771134739},{"$f":"(SUMPRODUCT(T$9:T$229,Nutrients!$D$8:$D$228)+(IF($A$7=Nutrients!$B$8,Nutrients!$D$8,Nutrients!$D$9)*T$7)+(((IF($A$8=Nutrients!$B$79,Nutrients!$D$79,(IF($A$8=Nutrients!$B$77,Nutrients!$D$77,Nutrients!$D$78)))))*T$8))/2000/2.2046","v":1565.355458138637},{"$f":"(SUMPRODUCT(U$9:U$229,Nutrients!$D$8:$D$228)+(IF($A$7=Nutrients!$B$8,Nutrients!$D$8,Nutrients!$D$9)*U$7)+(((IF($A$8=Nutrients!$B$79,Nutrients!$D$79,(IF($A$8=Nutrients!$B$77,Nutrients!$D$77,Nutrients!$D$78)))))*U$8))/2000/2.2046","v":1552.432918309064},null,{"$f":"(SUMPRODUCT(W$9:W$229,Nutrients!$D$8:$D$228)+(IF($A$7=Nutrients!$B$8,Nutrients!$D$8,Nutrients!$D$9)*W$7)+(((IF($A$8=Nutrients!$B$79,Nutrients!$D$79,(IF($A$8=Nutrients!$B$77,Nutrients!$D$77,Nutrients!$D$78)))))*W$8))/2000/2.2046","v":1573.4291171616594},{"$f":"(SUMPRODUCT(X$9:X$229,Nutrients!$D$8:$D$228)+(IF($A$7=Nutrients!$B$8,Nutrients!$D$8,Nutrients!$D$9)*X$7)+(((IF($A$8=Nutrients!$B$79,Nutrients!$D$79,(IF($A$8=Nutrients!$B$77,Nutrients!$D$77,Nutrients!$D$78)))))*X$8))/2000/2.2046","v":1572.279018557015},{"$f":"(SUMPRODUCT(Y$9:Y$229,Nutrients!$D$8:$D$228)+(IF($A$7=Nutrients!$B$8,Nutrients!$D$8,Nutrients!$D$9)*Y$7)+(((IF($A$8=Nutrients!$B$79,Nutrients!$D$79,(IF($A$8=Nutrients!$B$77,Nutrients!$D$77,Nutrients!$D$78)))))*Y$8))/2000/2.2046","v":1571.4496130138305},{"$f":"(SUMPRODUCT(Z$9:Z$229,Nutrients!$D$8:$D$228)+(IF($A$7=Nutrients!$B$8,Nutrients!$D$8,Nutrients!$D$9)*Z$7)+(((IF($A$8=Nutrients!$B$79,Nutrients!$D$79,(IF($A$8=Nutrients!$B$77,Nutrients!$D$77,Nutrients!$D$78)))))*Z$8))/2000/2.2046","v":1571.3917254587134},{"$f":"(SUMPRODUCT(AA$9:AA$229,Nutrients!$D$8:$D$228)+(IF($A$7=Nutrients!$B$8,Nutrients!$D$8,Nutrients!$D$9)*AA$7)+(((IF($A$8=Nutrients!$B$79,Nutrients!$D$79,(IF($A$8=Nutrients!$B$77,Nutrients!$D$77,Nutrients!$D$78)))))*AA$8))/2000/2.2046","v":1571.6454351171278},{"$f":"(SUMPRODUCT(AB$9:AB$229,Nutrients!$D$8:$D$228)+(IF($A$7=Nutrients!$B$8,Nutrients!$D$8,Nutrients!$D$9)*AB$7)+(((IF($A$8=Nutrients!$B$79,Nutrients!$D$79,(IF($A$8=Nutrients!$B$77,Nutrients!$D$77,Nutrients!$D$78)))))*AB$8))/2000/2.2046","v":1552.432918309064},null,{"$f":"(SUMPRODUCT(AD$9:AD$229,Nutrients!$D$8:$D$228)+(IF($A$7=Nutrients!$B$8,Nutrients!$D$8,Nutrients!$D$9)*AD$7)+(((IF($A$8=Nutrients!$B$79,Nutrients!$D$79,(IF($A$8=Nutrients!$B$77,Nutrients!$D$77,Nutrients!$D$78)))))*AD$8))/2000/2.2046","v":1579.520488594301},{"$f":"(SUMPRODUCT(AE$9:AE$229,Nutrients!$D$8:$D$228)+(IF($A$7=Nutrients!$B$8,Nutrients!$D$8,Nutrients!$D$9)*AE$7)+(((IF($A$8=Nutrients!$B$79,Nutrients!$D$79,(IF($A$8=Nutrients!$B$77,Nutrients!$D$77,Nutrients!$D$78)))))*AE$8))/2000/2.2046","v":1578.358487589232},{"$f":"(SUMPRODUCT(AF$9:AF$229,Nutrients!$D$8:$D$228)+(IF($A$7=Nutrients!$B$8,Nutrients!$D$8,Nutrients!$D$9)*AF$7)+(((IF($A$8=Nutrients!$B$79,Nutrients!$D$79,(IF($A$8=Nutrients!$B$77,Nutrients!$D$77,Nutrients!$D$78)))))*AF$8))/2000/2.2046","v":1577.5544619986429},{"$f":"(SUMPRODUCT(AG$9:AG$229,Nutrients!$D$8:$D$228)+(IF($A$7=Nutrients!$B$8,Nutrients!$D$8,Nutrients!$D$9)*AG$7)+(((IF($A$8=Nutrients!$B$79,Nutrients!$D$79,(IF($A$8=Nutrients!$B$77,Nutrients!$D$77,Nutrients!$D$78)))))*AG$8))/2000/2.2046","v":1577.6413902063882},{"$f":"(SUMPRODUCT(AH$9:AH$229,Nutrients!$D$8:$D$228)+(IF($A$7=Nutrients!$B$8,Nutrients!$D$8,Nutrients!$D$9)*AH$7)+(((IF($A$8=Nutrients!$B$79,Nutrients!$D$79,(IF($A$8=Nutrients!$B$77,Nutrients!$D$77,Nutrients!$D$78)))))*AH$8))/2000/2.2046","v":1577.0054252801551},{"$f":"(SUMPRODUCT(AI$9:AI$229,Nutrients!$D$8:$D$228)+(IF($A$7=Nutrients!$B$8,Nutrients!$D$8,Nutrients!$D$9)*AI$7)+(((IF($A$8=Nutrients!$B$79,Nutrients!$D$79,(IF($A$8=Nutrients!$B$77,Nutrients!$D$77,Nutrients!$D$78)))))*AI$8))/2000/2.2046","v":1552.432918309064},null,{"$f":"(SUMPRODUCT(AK$9:AK$229,Nutrients!$D$8:$D$228)+(IF($A$7=Nutrients!$B$8,Nutrients!$D$8,Nutrients!$D$9)*AK$7)+(((IF($A$8=Nutrients!$B$79,Nutrients!$D$79,(IF($A$8=Nutrients!$B$77,Nutrients!$D$77,Nutrients!$D$78)))))*AK$8))/2000/2.2046","v":1585.774789068327},{"$f":"(SUMPRODUCT(AL$9:AL$229,Nutrients!$D$8:$D$228)+(IF($A$7=Nutrients!$B$8,Nutrients!$D$8,Nutrients!$D$9)*AL$7)+(((IF($A$8=Nutrients!$B$79,Nutrients!$D$79,(IF($A$8=Nutrients!$B$77,Nutrients!$D$77,Nutrients!$D$78)))))*AL$8))/2000/2.2046","v":1584.4664931119019},{"$f":"(SUMPRODUCT(AM$9:AM$229,Nutrients!$D$8:$D$228)+(IF($A$7=Nutrients!$B$8,Nutrients!$D$8,Nutrients!$D$9)*AM$7)+(((IF($A$8=Nutrients!$B$79,Nutrients!$D$79,(IF($A$8=Nutrients!$B$77,Nutrients!$D$77,Nutrients!$D$78)))))*AM$8))/2000/2.2046","v":1583.8037158332297},{"$f":"(SUMPRODUCT(AN$9:AN$229,Nutrients!$D$8:$D$228)+(IF($A$7=Nutrients!$B$8,Nutrients!$D$8,Nutrients!$D$9)*AN$7)+(((IF($A$8=Nutrients!$B$79,Nutrients!$D$79,(IF($A$8=Nutrients!$B$77,Nutrients!$D$77,Nutrients!$D$78)))))*AN$8))/2000/2.2046","v":1583.2032208441665},{"$f":"(SUMPRODUCT(AO$9:AO$229,Nutrients!$D$8:$D$228)+(IF($A$7=Nutrients!$B$8,Nutrients!$D$8,Nutrients!$D$9)*AO$7)+(((IF($A$8=Nutrients!$B$79,Nutrients!$D$79,(IF($A$8=Nutrients!$B$77,Nutrients!$D$77,Nutrients!$D$78)))))*AO$8))/2000/2.2046","v":1581.9302598317404},{"$f":"(SUMPRODUCT(AP$9:AP$229,Nutrients!$D$8:$D$228)+(IF($A$7=Nutrients!$B$8,Nutrients!$D$8,Nutrients!$D$9)*AP$7)+(((IF($A$8=Nutrients!$B$79,Nutrients!$D$79,(IF($A$8=Nutrients!$B$77,Nutrients!$D$77,Nutrients!$D$78)))))*AP$8))/2000/2.2046","v":1552.432918309064},null,{"$f":"(SUMPRODUCT(AR$9:AR$229,Nutrients!$D$8:$D$228)+(IF($A$7=Nutrients!$B$8,Nutrients!$D$8,Nutrients!$D$9)*AR$7)+(((IF($A$8=Nutrients!$B$79,Nutrients!$D$79,(IF($A$8=Nutrients!$B$77,Nutrients!$D$77,Nutrients!$D$78)))))*AR$8))/2000/2.2046","v":1591.815464321191},{"$f":"(SUMPRODUCT(AS$9:AS$229,Nutrients!$D$8:$D$228)+(IF($A$7=Nutrients!$B$8,Nutrients!$D$8,Nutrients!$D$9)*AS$7)+(((IF($A$8=Nutrients!$B$79,Nutrients!$D$79,(IF($A$8=Nutrients!$B$77,Nutrients!$D$77,Nutrients!$D$78)))))*AS$8))/2000/2.2046","v":1590.5594336761435},{"$f":"(SUMPRODUCT(AT$9:AT$229,Nutrients!$D$8:$D$228)+(IF($A$7=Nutrients!$B$8,Nutrients!$D$8,Nutrients!$D$9)*AT$7)+(((IF($A$8=Nutrients!$B$79,Nutrients!$D$79,(IF($A$8=Nutrients!$B$77,Nutrients!$D$77,Nutrients!$D$78)))))*AT$8))/2000/2.2046","v":1590.0409546267654},{"$f":"(SUMPRODUCT(AU$9:AU$229,Nutrients!$D$8:$D$228)+(IF($A$7=Nutrients!$B$8,Nutrients!$D$8,Nutrients!$D$9)*AU$7)+(((IF($A$8=Nutrients!$B$79,Nutrients!$D$79,(IF($A$8=Nutrients!$B$77,Nutrients!$D$77,Nutrients!$D$78)))))*AU$8))/2000/2.2046","v":1588.1056464879086},{"$f":"(SUMPRODUCT(AV$9:AV$229,Nutrients!$D$8:$D$228)+(IF($A$7=Nutrients!$B$8,Nutrients!$D$8,Nutrients!$D$9)*AV$7)+(((IF($A$8=Nutrients!$B$79,Nutrients!$D$79,(IF($A$8=Nutrients!$B$77,Nutrients!$D$77,Nutrients!$D$78)))))*AV$8))/2000/2.2046","v":1586.8491869099125},{"$f":"(SUMPRODUCT(AW$9:AW$229,Nutrients!$D$8:$D$228)+(IF($A$7=Nutrients!$B$8,Nutrients!$D$8,Nutrients!$D$9)*AW$7)+(((IF($A$8=Nutrients!$B$79,Nutrients!$D$79,(IF($A$8=Nutrients!$B$77,Nutrients!$D$77,Nutrients!$D$78)))))*AW$8))/2000/2.2046","v":1552.432918309064}]
["NE NRC, kcal/lb",{"$f":"(SUMPRODUCT(B$9:B$229,Nutrients!$F$8:$F$228)+(IF($A$7=Nutrients!$B$8,Nutrients!$F$8,Nutrients!$F$9)*B$7)+(((IF($A$8=Nutrients!$B$79,Nutrients!$F$79,(IF($A$8=Nutrients!$B$77,Nutrients!$F$77,Nutrients!$F$78)))))*B$8))/2000/2.2046","v":1147.6611237487589},{"$f":"(SUMPRODUCT(C$9:C$229,Nutrients!$F$8:$F$228)+(IF($A$7=Nutrients!$B$8,Nutrients!$F$8,Nutrients!$F$9)*C$7)+(((IF($A$8=Nutrients!$B$79,Nutrients!$F$79,(IF($A$8=Nutrients!$B$77,Nutrients!$F$77,Nutrients!$F$78)))))*C$8))/2000/2.2046","v":1156.7030647238309},{"$f":"(SUMPRODUCT(D$9:D$229,Nutrients!$F$8:$F$228)+(IF($A$7=Nutrients!$B$8,Nutrients!$F$8,Nutrients!$F$9)*D$7)+(((IF($A$8=Nutrients!$B$79,Nutrients!$F$79,(IF($A$8=Nutrients!$B$77,Nutrients!$F$77,Nutrients!$F$78)))))*D$8))/2000/2.2046","v":1164.6580809828592},{"$f":"(SUMPRODUCT(E$9:E$229,Nutrients!$F$8:$F$228)+(IF($A$7=Nutrients!$B$8,Nutrients!$F$8,Nutrients!$F$9)*E$7)+(((IF($A$8=Nutrients!$B$79,Nutrients!$F$79,(IF($A$8=Nutrients!$B$77,Nutrients!$F$77,Nutrients!$F$78)))))*E$8))/2000/2.2046","v":1171.5486817586343},{"$f":"(SUMPRODUCT(F$9:F$229,Nutrients!$F$8:$F$228)+(IF($A$7=Nutrients!$B$8,Nutrients!$F$8,Nutrients!$F$9)*F$7)+(((IF($A$8=Nutrients!$B$79,Nutrients!$F$79,(IF($A$8=Nutrients!$B$77,Nutrients!$F$77,Nutrients!$F$78)))))*F$8))/2000/2.2046","v":1176.5212854349088},{"$f":"(SUMPRODUCT(G$9:G$229,Nutrients!$F$8:$F$228)+(IF($A$7=Nutrients!$B$8,Nutrients!$F$8,Nutrients!$F$9)*G$7)+(((IF($A$8=Nutrients!$B$79,Nutrients!$F$79,(IF($A$8=Nutrients!$B$77,Nutrients!$F$77,Nutrients!$F$78)))))*G$8))/2000/2.2046","v":1178.7128237398681},null,{"$f":"(SUMPRODUCT(I$9:I$229,Nutrients!$F$8:$F$228)+(IF($A$7=Nutrients!$B$8,Nutrients!$F$8,Nutrients!$F$9)*I$7)+(((IF($A$8=Nutrients!$B$79,Nutrients!$F$79,(IF($A$8=Nutrients!$B$77,Nutrients!$F$77,Nutrients!$F$78)))))*I$8))/2000/2.2046","v":1138.3008703643573},{"$f":"(SUMPRODUCT(J$9:J$229,Nutrients!$F$8:$F$228)+(IF($A$7=Nutrients!$B$8,Nutrients!$F$8,Nutrients!$F$9)*J$7)+(((IF($A$8=Nutrients!$B$79,Nutrients!$F$79,(IF($A$8=Nutrients!$B$77,Nutrients!$F$77,Nutrients!$F$78)))))*J$8))/2000/2.2046","v":1147.2473377044885},{"$f":"(SUMPRODUCT(K$9:K$229,Nutrients!$F$8:$F$228)+(IF($A$7=Nutrients!$B$8,Nutrients!$F$8,Nutrients!$F$9)*K$7)+(((IF($A$8=Nutrients!$B$79,Nutrients!$F$79,(IF($A$8=Nutrients!$B$77,Nutrients!$F$77,Nutrients!$F$78)))))*K$8))/2000/2.2046","v":1155.137803019436},{"$f":"(SUMPRODUCT(L$9:L$229,Nutrients!$F$8:$F$228)+(IF($A$7=Nutrients!$B$8,Nutrients!$F$8,Nutrients!$F$9)*L$7)+(((IF($A$8=Nutrients!$B$79,Nutrients!$F$79,(IF($A$8=Nutrients!$B$77,Nutrients!$F$77,Nutrients!$F$78)))))*L$8))/2000/2.2046","v":1162.2435337903835},{"$f":"(SUMPRODUCT(M$9:M$229,Nutrients!$F$8:$F$228)+(IF($A$7=Nutrients!$B$8,Nutrients!$F$8,Nutrients!$F$9)*M$7)+(((IF($A$8=Nutrients!$B$79,Nutrients!$F$79,(IF($A$8=Nutrients!$B$77,Nutrients!$F$77,Nutrients!$F$78)))))*M$8))/2000/2.2046","v":1167.1373103865972},{"$f":"(SUMPRODUCT(N$9:N$229,Nutrients!$F$8:$F$228)+(IF($A$7=Nutrients!$B$8,Nutrients!$F$8,Nutrients!$F$9)*N$7)+(((IF($A$8=Nutrients!$B$79,Nutrients!$F$79,(IF($A$8=Nutrients!$B$77,Nutrients!$F$77,Nutrients!$F$78)))))*N$8))/2000/2.2046","v":1178.7128237398681},null,{"$f":"(SUMPRODUCT(P$9:P$229,Nutrients!$F$8:$F$228)+(IF($A$7=Nutrients!$B$8,Nutrients!$F$8,Nutrients!$F$9)*P$7)+(((IF($A$8=Nutrients!$B$79,Nutrients!$F$79,(IF($A$8=Nutrients!$B$77,Nutrients!$F$77,Nutrients!$F$78)))))*P$8))/2000/2.2046","v":1128.8245847655332},{"$f":"(SUMPRODUCT(Q$9:Q$229,Nutrients!$F$8:$F$228)+(IF($A$7=Nutrients!$B$8,Nutrients!$F$8,Nutrients!$F$9)*Q$7)+(((IF($A$8=Nutrients!$B$79,Nutrients!$F$79,(IF($A$8=Nutrients!$B$77,Nutrients!$F$77,Nutrients!$F$78)))))*Q$8))/2000/2.2046","v":1137.7331217942392},{"$f":"(SUMPRODUCT(R$9:R$229,Nutrients!$F$8:$F$228)+(IF($A$7=Nutrients!$B$8,Nutrients!$F$8,Nutrients!$F$9)*R$7)+(((IF($A$8=Nutrients!$B$79,Nutrients!$F$79,(IF($A$8=Nutrients!$B$77,Nutrients!$F$77,Nutrients!$F$78)))))*R$8))/2000/2.2046","v":1145.5663353035231},{"$f":"(SUMPRODUCT(S$9:S$229,Nutrients!$F$8:$F$228)+(IF($A$7=Nutrients!$B$8,Nutrients!$F$8,Nutrients!$F$9)*S$7)+(((IF($A$8=Nutrients!$B$79,Nutrients!$F$79,(IF($A$8=Nutrients!$B$77,Nutrients!$F$77,Nutrients!$F$78)))))*S$8))/2000/2.2046","v":1152.6945850635498},{"$f":"(SUMPRODUCT(T$9:T$229,Nutrients!$F$8:$F$228)+(IF($A$7=Nutrients!$B$8,Nutrients!$F$8,Nutrients!$F$9)*T$7)+(((IF($A$8=Nutrients!$B$79,Nutrients!$F$79,(IF($A$8=Nutrients!$B$77,Nutrients!$F$77,Nutrients!$F$78)))))*T$8))/2000/2.2046","v":1157.6058680223171},{"$f":"(SUMPRODUCT(U$9:U$229,Nutrients!$F$8:$F$228)+(IF($A$7=Nutrients!$B$8,Nutrients!$F$8,Nutrients!$F$9)*U$7)+(((IF($A$8=Nutrients!$B$79,Nutrients!$F$79,(IF($A$8=Nutrients!$B$77,Nutrients!$F$77,Nutrients!$F$78)))))*U$8))/2000/2.2046","v":1178.7128237398681},null,{"$f":"(SUMPRODUCT(W$9:W$229,Nutrients!$F$8:$F$228)+(IF($A$7=Nutrients!$B$8,Nutrients!$F$8,Nutrients!$F$9)*W$7)+(((IF($A$8=Nutrients!$B$79,Nutrients!$F$79,(IF($A$8=Nutrients!$B$77,Nutrients!$F$77,Nutrients!$F$78)))))*W$8))/2000/2.2046","v":1119.3683736487694},{"$f":"(SUMPRODUCT(X$9:X$229,Nutrients!$F$8:$F$228)+(IF($A$7=Nutrients!$B$8,Nutrients!$F$8,Nutrients!$F$9)*X$7)+(((IF($A$8=Nutrients!$B$79,Nutrients!$F$79,(IF($A$8=Nutrients!$B$77,Nutrients!$F$77,Nutrients!$F$78)))))*X$8))/2000/2.2046","v":1128.2329882690331},{"$f":"(SUMPRODUCT(Y$9:Y$229,Nutrients!$F$8:$F$228)+(IF($A$7=Nutrients!$B$8,Nutrients!$F$8,Nutrients!$F$9)*Y$7)+(((IF($A$8=Nutrients!$B$79,Nutrients!$F$79,(IF($A$8=Nutrients!$B$77,Nutrients!$F$77,Nutrients!$F$78)))))*Y$8))/2000/2.2046","v":1136.090598301676},{"$f":"(SUMPRODUCT(Z$9:Z$229,Nutrients!$F$8:$F$228)+(IF($A$7=Nutrients!$B$8,Nutrients!$F$8,Nutrients!$F$9)*Z$7)+(((IF($A$8=Nutrients!$B$79,Nutrients!$F$79,(IF($A$8=Nutrients!$B$77,Nutrients!$F$77,Nutrients!$F$78)))))*Z$8))/2000/2.2046","v":1143.1713972397924},{"$f":"(SUMPRODUCT(AA$9:AA$229,Nutrients!$F$8:$F$228)+(IF($A$7=Nutrients!$B$8,Nutrients!$F$8,Nutrients!$F$9)*AA$7)+(((IF($A$8=Nutrients!$B$79,Nutrients!$F$79,(IF($A$8=Nutrients!$B$77,Nutrients!$F$77,Nutrients!$F$78)))))*AA$8))/2000/2.2046","v":1148.110291058945},{"$f":"(SUMPRODUCT(AB$9:AB$229,Nutrients!$F$8:$F$228)+(IF($A$7=Nutrients!$B$8,Nutrients!$F$8,Nutrients!$F$9)*AB$7)+(((IF($A$8=Nutrients!$B$79,Nutrients!$F$79,(IF($A$8=Nutrients!$B$77,Nutrients!$F$77,Nutrients!$F$78)))))*AB$8))/2000/2.2046","v":1178.7128237398681},null,{"$f":"(SUMPRODUCT(AD$9:AD$229,Nutrients!$F$8:$F$228)+(IF($A$7=Nutrients!$B$8,Nutrients!$F$8,Nutrients!$F$9)*AD$7)+(((IF($A$8=Nutrients!$B$79,Nutrients!$F$79,(IF($A$8=Nutrients!$B$77,Nutrients!$F$77,Nutrients!$F$78)))))*AD$8))/2000/2.2046","v":1109.9054338559818},{"$f":"(SUMPRODUCT(AE$9:AE$229,Nutrients!$F$8:$F$228)+(IF($A$7=Nutrients!$B$8,Nutrients!$F$8,Nutrients!$F$9)*AE$7)+(((IF($A$8=Nutrients!$B$79,Nutrients!$F$79,(IF($A$8=Nutrients!$B$77,Nutrients!$F$77,Nutrients!$F$78)))))*AE$8))/2000/2.2046","v":1118.7862386950869},{"$f":"(SUMPRODUCT(AF$9:AF$229,Nutrients!$F$8:$F$228)+(IF($A$7=Nutrients!$B$8,Nutrients!$F$8,Nutrients!$F$9)*AF$7)+(((IF($A$8=Nutrients!$B$79,Nutrients!$F$79,(IF($A$8=Nutrients!$B$77,Nutrients!$F$77,Nutrients!$F$78)))))*AF$8))/2000/2.2046","v":1126.5735368422334},{"$f":"(SUMPRODUCT(AG$9:AG$229,Nutrients!$F$8:$F$228)+(IF($A$7=Nutrients!$B$8,Nutrients!$F$8,Nutrients!$F$9)*AG$7)+(((IF($A$8=Nutrients!$B$79,Nutrients!$F$79,(IF($A$8=Nutrients!$B$77,Nutrients!$F$77,Nutrients!$F$78)))))*AG$8))/2000/2.2046","v":1133.683943416288},{"$f":"(SUMPRODUCT(AH$9:AH$229,Nutrients!$F$8:$F$228)+(IF($A$7=Nutrients!$B$8,Nutrients!$F$8,Nutrients!$F$9)*AH$7)+(((IF($A$8=Nutrients!$B$79,Nutrients!$F$79,(IF($A$8=Nutrients!$B$77,Nutrients!$F$77,Nutrients!$F$78)))))*AH$8))/2000/2.2046","v":1137.9255222188276},{"$f":"(SUMPRODUCT(AI$9:AI$229,Nutrients!$F$8:$F$228)+(IF($A$7=Nutrients!$B$8,Nutrients!$F$8,Nutrients!$F$9)*AI$7)+(((IF($A$8=Nutrients!$B$79,Nutrients!$F$79,(IF($A$8=Nutrients!$B$77,Nutrients!$F$77,Nutrients!$F$78)))))*AI$8))/2000/2.2046","v":1178.7128237398681},null,{"$f":"(SUMPRODUCT(AK$9:AK$229,Nutrients!$F$8:$F$228)+(IF($A$7=Nutrients!$B$8,Nutrients!$F$8,Nutrients!$F$9)*AK$7)+(((IF($A$8=Nutrients!$B$79,Nutrients!$F$79,(IF($A$8=Nutrients!$B$77,Nutrients!$F$77,Nutrients!$F$78)))))*AK$8))/2000/2.2046","v":1100.1747990872072},{"$f":"(SUMPRODUCT(AL$9:AL$229,Nutrients!$F$8:$F$228)+(IF($A$7=Nutrients!$B$8,Nutrients!$F$8,Nutrients!$F$9)*AL$7)+(((IF($A$8=Nutrients!$B$79,Nutrients!$F$79,(IF($A$8=Nutrients!$B$77,Nutrients!$F$77,Nutrients!$F$78)))))*AL$8))/2000/2.2046","v":1109.3332918744932},{"$f":"(SUMPRODUCT(AM$9:AM$229,Nutrients!$F$8:$F$228)+(IF($A$7=Nutrients!$B$8,Nutrients!$F$8,Nutrients!$F$9)*AM$7)+(((IF($A$8=Nutrients!$B$79,Nutrients!$F$79,(IF($A$8=Nutrients!$B$77,Nutrients!$F$77,Nutrients!$F$78)))))*AM$8))/2000/2.2046","v":1117.1427290696408},{"$f":"(SUMPRODUCT(AN$9:AN$229,Nutrients!$F$8:$F$228)+(IF($A$7=Nutrients!$B$8,Nutrients!$F$8,Nutrients!$F$9)*AN$7)+(((IF($A$8=Nutrients!$B$79,Nutrients!$F$79,(IF($A$8=Nutrients!$B$77,Nutrients!$F$77,Nutrients!$F$78)))))*AN$8))/2000/2.2046","v":1123.6887766047048},{"$f":"(SUMPRODUCT(AO$9:AO$229,Nutrients!$F$8:$F$228)+(IF($A$7=Nutrients!$B$8,Nutrients!$F$8,Nutrients!$F$9)*AO$7)+(((IF($A$8=Nutrients!$B$79,Nutrients!$F$79,(IF($A$8=Nutrients!$B$77,Nutrients!$F$77,Nutrients!$F$78)))))*AO$8))/2000/2.2046","v":1127.4124370913266},{"$f":"(SUMPRODUCT(AP$9:AP$229,Nutrients!$F$8:$F$228)+(IF($A$7=Nutrients!$B$8,Nutrients!$F$8,Nutrients!$F$9)*AP$7)+(((IF($A$8=Nutrients!$B$79,Nutrients!$F$79,(IF($A$8=Nutrients!$B$77,Nutrients!$F$77,Nutrients!$F$78)))))*AP$8))/2000/2.2046","v":1178.7128237398681},null,{"$f":"(SUMPRODUCT(AR$9:AR$229,Nutrients!$F$8:$F$228)+(IF($A$7=Nutrients!$B$8,Nutrients!$F$8,Nutrients!$F$9)*AR$7)+(((IF($A$8=Nutrients!$B$79,Nutrients!$F$79,(IF($A$8=Nutrients!$B$77,Nutrients!$F$77,Nutrients!$F$78)))))*AR$8))/2000/2.2046","v":1090.8211858473737},{"$f":"(SUMPRODUCT(AS$9:AS$229,Nutrients!$F$8:$F$228)+(IF($A$7=Nutrients!$B$8,Nutrients!$F$8,Nutrients!$F$9)*AS$7)+(((IF($A$8=Nutrients!$B$79,Nutrients!$F$79,(IF($A$8=Nutrients!$B$77,Nutrients!$F$77,Nutrients!$F$78)))))*AS$8))/2000/2.2046","v":1099.8679406387109},{"$f":"(SUMPRODUCT(AT$9:AT$229,Nutrients!$F$8:$F$228)+(IF($A$7=Nutrients!$B$8,Nutrients!$F$8,Nutrients!$F$9)*AT$7)+(((IF($A$8=Nutrients!$B$79,Nutrients!$F$79,(IF($A$8=Nutrients!$B$77,Nutrients!$F$77,Nutrients!$F$78)))))*AT$8))/2000/2.2046","v":1107.683270647736},{"$f":"(SUMPRODUCT(AU$9:AU$229,Nutrients!$F$8:$F$228)+(IF($A$7=Nutrients!$B$8,Nutrients!$F$8,Nutrients!$F$9)*AU$7)+(((IF($A$8=Nutrients!$B$79,Nutrients!$F$79,(IF($A$8=Nutrients!$B$77,Nutrients!$F$77,Nutrients!$F$78)))))*AU$8))/2000/2.2046","v":1113.1910563757922},{"$f":"(SUMPRODUCT(AV$9:AV$229,Nutrients!$F$8:$F$228)+(IF($A$7=Nutrients!$B$8,Nutrients!$F$8,Nutrients!$F$9)*AV$7)+(((IF($A$8=Nutrients!$B$79,Nutrients!$F$79,(IF($A$8=Nutrients!$B$77,Nutrients!$F$77,Nutrients!$F$78)))))*AV$8))/2000/2.2046","v":1116.8949328041945},{"$f":"(SUMPRODUCT(AW$9:AW$229,Nutrients!$F$8:$F$228)+(IF($A$7=Nutrients!$B$8,Nutrients!$F$8,Nutrients!$F$9)*AW$7)+(((IF($A$8=Nutrients!$B$79,Nutrients!$F$79,(IF($A$8=Nutrients!$B$77,Nutrients!$F$77,Nutrients!$F$78)))))*AW$8))/2000/2.2046","v":1178.7128237398681}]
["NE NRC, kcal/kg",{"$f":"B250*2.20462","v":2530.1566666389886},2550.090710551452,2567.6284984964309,2582.8196547787202,2593.7823562955086,2598.6138654733877,null,{"$f":"I250*2.20462","v":2509.520864822669},2529.2444256500689,2546.6399032927088,2562.3053394649551,2573.0942572244994,2598.6138654733877,null,{"$f":"P250*2.20462","v":2488.6292560657898},2508.2691949700152,2525.538454136853,2541.2535361228029,2552.0810487593603,2598.6138654733877,null,{"$f":"W250*2.20462","v":2467.7819039135497},2487.3250105976754,2504.6480548278405,2520.2585257827909,2531.146909874371,2598.6138654733877,null,{"$f":"AD250*2.20462","v":2446.9197175875743},2466.4985175519623,2483.6665507931243,2499.3422953344166,2508.6933647940714,2598.6138654733877,null,{"$f":"AK250*2.20462","v":2425.4673655636389},2445.6583619323451,2462.8752033615115,2477.3067506782641,2485.5160070602801,2598.6138654733877,null,{"$f":"AR250*2.20462","v":2404.8462027428368},2424.7908592909148,2442.0206921354115,2454.1632667071985,2462.328906758783,2598.6138654733877]
["SID Lys:NE, g/Mcal",{"$f":"IF(B$5=\"\",\"\",B236/(B250*2.2046)*10000)","v":4.6879417735209223},4.112530627795425,3.6100787872368278,3.198349183249853,2.9175053758993537,2.7645509469935567,null,{"$f":"IF(I$5=\"\",\"\",I236/(I250*2.2046)*10000)","v":4.6876292282993317},4.1136367192162773,3.6119772218664936,3.1993805697761695,2.9162692451654051,2.7645509469935567,null,{"$f":"IF(P$5=\"\",\"\",P236/(P250*2.2046)*10000)","v":4.6953412772039087},4.1201642687805293,3.6182054319171923,3.2003549059849501,2.9178841638144175,2.7645509469935567,null,{"$f":"IF(W$5=\"\",\"\",W236/(W250*2.2046)*10000)","v":4.7030956283565173},4.1267659886320667,3.6187899572754394,3.2026568018800989,2.9197957967968442,2.7645509469935567,null,{"$f":"IF(AD$5=\"\",\"\",AD236/(AD250*2.2046)*10000)","v":4.7105732898755868},4.127849214898708,3.6208172278997499,3.2048045883077343,2.9214421897972596,2.7645509469935567,null,{"$f":"IF(AK$5=\"\",\"\",AK236/(AK250*2.2046)*10000)","v":4.7413972624790093},4.13055439006685,3.6232320184333999,3.2068039885110302,2.9232554067118448,2.7645509469935567,null,{"$f":"IF(AR$5=\"\",\"\",AR236/(AR250*2.2046)*10000)","v":4.7404708904541275},4.1333866723249004,3.6268488482340908,3.2094750024953997,2.9251417808624738,2.7645509469935567]
["CP, %",{"$f":"(SUMPRODUCT(B$9:B$229,Nutrients!$I$8:$I$228)+(IF($A$7=Nutrients!$B$8,Nutrients!$I$8,Nutrients!$I$9)*B$7)+(((IF($A$8=Nutrients!$B$79,Nutrients!$I$79,(IF($A$8=Nutrients!$B$77,Nutrients!$I$77,Nutrients!$I$78)))))*B$8))/2000","v":20.659564989031431},{"$f":"(SUMPRODUCT(C$9:C$229,Nutrients!$I$8:$I$228)+(IF($A$7=Nutrients!$B$8,Nutrients!$I$8,Nutrients!$I$9)*C$7)+(((IF($A$8=Nutrients!$B$79,Nutrients!$I$79,(IF($A$8=Nutrients!$B$77,Nutrients!$I$77,Nutrients!$I$78)))))*C$8))/2000","v":18.474711094282195},{"$f":"(SUMPRODUCT(D$9:D$229,Nutrients!$I$8:$I$228)+(IF($A$7=Nutrients!$B$8,Nutrients!$I$8,Nutrients!$I$9)*D$7)+(((IF($A$8=Nutrients!$B$79,Nutrients!$I$79,(IF($A$8=Nutrients!$B$77,Nutrients!$I$77,Nutrients!$I$78)))))*D$8))/2000","v":16.586100942528425},{"$f":"(SUMPRODUCT(E$9:E$229,Nutrients!$I$8:$I$228)+(IF($A$7=Nutrients!$B$8,Nutrients!$I$8,Nutrients!$I$9)*E$7)+(((IF($A$8=Nutrients!$B$79,Nutrients!$I$79,(IF($A$8=Nutrients!$B$77,Nutrients!$I$77,Nutrients!$I$78)))))*E$8))/2000","v":15.008183180211585},{"$f":"(SUMPRODUCT(F$9:F$229,Nutrients!$I$8:$I$228)+(IF($A$7=Nutrients!$B$8,Nutrients!$I$8,Nutrients!$I$9)*F$7)+(((IF($A$8=Nutrients!$B$79,Nutrients!$I$79,(IF($A$8=Nutrients!$B$77,Nutrients!$I$77,Nutrients!$I$78)))))*F$8))/2000","v":13.947394938936968},{"$f":"(SUMPRODUCT(G$9:G$229,Nutrients!$I$8:$I$228)+(IF($A$7=Nutrients!$B$8,Nutrients!$I$8,Nutrients!$I$9)*G$7)+(((IF($A$8=Nutrients!$B$79,Nutrients!$I$79,(IF($A$8=Nutrients!$B$77,Nutrients!$I$77,Nutrients!$I$78)))))*G$8))/2000","v":13.408858132850794},null,{"$f":"(SUMPRODUCT(I$9:I$229,Nutrients!$I$8:$I$228)+(IF($A$7=Nutrients!$B$8,Nutrients!$I$8,Nutrients!$I$9)*I$7)+(((IF($A$8=Nutrients!$B$79,Nutrients!$I$79,(IF($A$8=Nutrients!$B$77,Nutrients!$I$77,Nutrients!$I$78)))))*I$8))/2000","v":20.868984554150327},{"$f":"(SUMPRODUCT(J$9:J$229,Nutrients!$I$8:$I$228)+(IF($A$7=Nutrients!$B$8,Nutrients!$I$8,Nutrients!$I$9)*J$7)+(((IF($A$8=Nutrients!$B$79,Nutrients!$I$79,(IF($A$8=Nutrients!$B$77,Nutrients!$I$77,Nutrients!$I$78)))))*J$8))/2000","v":18.707553277637057},{"$f":"(SUMPRODUCT(K$9:K$229,Nutrients!$I$8:$I$228)+(IF($A$7=Nutrients!$B$8,Nutrients!$I$8,Nutrients!$I$9)*K$7)+(((IF($A$8=Nutrients!$B$79,Nutrients!$I$79,(IF($A$8=Nutrients!$B$77,Nutrients!$I$77,Nutrients!$I$78)))))*K$8))/2000","v":16.838611432401887},{"$f":"(SUMPRODUCT(L$9:L$229,Nutrients!$I$8:$I$228)+(IF($A$7=Nutrients!$B$8,Nutrients!$I$8,Nutrients!$I$9)*L$7)+(((IF($A$8=Nutrients!$B$79,Nutrients!$I$79,(IF($A$8=Nutrients!$B$77,Nutrients!$I$77,Nutrients!$I$78)))))*L$8))/2000","v":15.274662648416196},{"$f":"(SUMPRODUCT(M$9:M$229,Nutrients!$I$8:$I$228)+(IF($A$7=Nutrients!$B$8,Nutrients!$I$8,Nutrients!$I$9)*M$7)+(((IF($A$8=Nutrients!$B$79,Nutrients!$I$79,(IF($A$8=Nutrients!$B$77,Nutrients!$I$77,Nutrients!$I$78)))))*M$8))/2000","v":14.212599358207665},{"$f":"(SUMPRODUCT(N$9:N$229,Nutrients!$I$8:$I$228)+(IF($A$7=Nutrients!$B$8,Nutrients!$I$8,Nutrients!$I$9)*N$7)+(((IF($A$8=Nutrients!$B$79,Nutrients!$I$79,(IF($A$8=Nutrients!$B$77,Nutrients!$I$77,Nutrients!$I$78)))))*N$8))/2000","v":13.408858132850794},null,{"$f":"(SUMPRODUCT(P$9:P$229,Nutrients!$I$8:$I$228)+(IF($A$7=Nutrients!$B$8,Nutrients!$I$8,Nutrients!$I$9)*P$7)+(((IF($A$8=Nutrients!$B$79,Nutrients!$I$79,(IF($A$8=Nutrients!$B$77,Nutrients!$I$77,Nutrients!$I$78)))))*P$8))/2000","v":21.109223912627058},{"$f":"(SUMPRODUCT(Q$9:Q$229,Nutrients!$I$8:$I$228)+(IF($A$7=Nutrients!$B$8,Nutrients!$I$8,Nutrients!$I$9)*Q$7)+(((IF($A$8=Nutrients!$B$79,Nutrients!$I$79,(IF($A$8=Nutrients!$B$77,Nutrients!$I$77,Nutrients!$I$78)))))*Q$8))/2000","v":18.962387521788358},{"$f":"(SUMPRODUCT(R$9:R$229,Nutrients!$I$8:$I$228)+(IF($A$7=Nutrients!$B$8,Nutrients!$I$8,Nutrients!$I$9)*R$7)+(((IF($A$8=Nutrients!$B$79,Nutrients!$I$79,(IF($A$8=Nutrients!$B$77,Nutrients!$I$77,Nutrients!$I$78)))))*R$8))/2000","v":17.108254896780547},{"$f":"(SUMPRODUCT(S$9:S$229,Nutrients!$I$8:$I$228)+(IF($A$7=Nutrients!$B$8,Nutrients!$I$8,Nutrients!$I$9)*S$7)+(((IF($A$8=Nutrients!$B$79,Nutrients!$I$79,(IF($A$8=Nutrients!$B$77,Nutrients!$I$77,Nutrients!$I$78)))))*S$8))/2000","v":15.53723464526462},{"$f":"(SUMPRODUCT(T$9:T$229,Nutrients!$I$8:$I$228)+(IF($A$7=Nutrients!$B$8,Nutrients!$I$8,Nutrients!$I$9)*T$7)+(((IF($A$8=Nutrients!$B$79,Nutrients!$I$79,(IF($A$8=Nutrients!$B$77,Nutrients!$I$77,Nutrients!$I$78)))))*T$8))/2000","v":14.492185496795154},{"$f":"(SUMPRODUCT(U$9:U$229,Nutrients!$I$8:$I$228)+(IF($A$7=Nutrients!$B$8,Nutrients!$I$8,Nutrients!$I$9)*U$7)+(((IF($A$8=Nutrients!$B$79,Nutrients!$I$79,(IF($A$8=Nutrients!$B$77,Nutrients!$I$77,Nutrients!$I$78)))))*U$8))/2000","v":13.408858132850794},null,{"$f":"(SUMPRODUCT(W$9:W$229,Nutrients!$I$8:$I$228)+(IF($A$7=Nutrients!$B$8,Nutrients!$I$8,Nutrients!$I$9)*W$7)+(((IF($A$8=Nutrients!$B$79,Nutrients!$I$79,(IF($A$8=Nutrients!$B$77,Nutrients!$I$77,Nutrients!$I$78)))))*W$8))/2000","v":21.349533850263338},{"$f":"(SUMPRODUCT(X$9:X$229,Nutrients!$I$8:$I$228)+(IF($A$7=Nutrients!$B$8,Nutrients!$I$8,Nutrients!$I$9)*X$7)+(((IF($A$8=Nutrients!$B$79,Nutrients!$I$79,(IF($A$8=Nutrients!$B$77,Nutrients!$I$77,Nutrients!$I$78)))))*X$8))/2000","v":19.217008348952426},{"$f":"(SUMPRODUCT(Y$9:Y$229,Nutrients!$I$8:$I$228)+(IF($A$7=Nutrients!$B$8,Nutrients!$I$8,Nutrients!$I$9)*Y$7)+(((IF($A$8=Nutrients!$B$79,Nutrients!$I$79,(IF($A$8=Nutrients!$B$77,Nutrients!$I$77,Nutrients!$I$78)))))*Y$8))/2000","v":17.356300968408767},{"$f":"(SUMPRODUCT(Z$9:Z$229,Nutrients!$I$8:$I$228)+(IF($A$7=Nutrients!$B$8,Nutrients!$I$8,Nutrients!$I$9)*Z$7)+(((IF($A$8=Nutrients!$B$79,Nutrients!$I$79,(IF($A$8=Nutrients!$B$77,Nutrients!$I$77,Nutrients!$I$78)))))*Z$8))/2000","v":15.807076172505134},{"$f":"(SUMPRODUCT(AA$9:AA$229,Nutrients!$I$8:$I$228)+(IF($A$7=Nutrients!$B$8,Nutrients!$I$8,Nutrients!$I$9)*AA$7)+(((IF($A$8=Nutrients!$B$79,Nutrients!$I$79,(IF($A$8=Nutrients!$B$77,Nutrients!$I$77,Nutrients!$I$78)))))*AA$8))/2000","v":14.774655348672297},{"$f":"(SUMPRODUCT(AB$9:AB$229,Nutrients!$I$8:$I$228)+(IF($A$7=Nutrients!$B$8,Nutrients!$I$8,Nutrients!$I$9)*AB$7)+(((IF($A$8=Nutrients!$B$79,Nutrients!$I$79,(IF($A$8=Nutrients!$B$77,Nutrients!$I$77,Nutrients!$I$78)))))*AB$8))/2000","v":13.408858132850794},null,{"$f":"(SUMPRODUCT(AD$9:AD$229,Nutrients!$I$8:$I$228)+(IF($A$7=Nutrients!$B$8,Nutrients!$I$8,Nutrients!$I$9)*AD$7)+(((IF($A$8=Nutrients!$B$79,Nutrients!$I$79,(IF($A$8=Nutrients!$B$77,Nutrients!$I$77,Nutrients!$I$78)))))*AD$8))/2000","v":21.588066570721509},{"$f":"(SUMPRODUCT(AE$9:AE$229,Nutrients!$I$8:$I$228)+(IF($A$7=Nutrients!$B$8,Nutrients!$I$8,Nutrients!$I$9)*AE$7)+(((IF($A$8=Nutrients!$B$79,Nutrients!$I$79,(IF($A$8=Nutrients!$B$77,Nutrients!$I$77,Nutrients!$I$78)))))*AE$8))/2000","v":19.449967504381718},{"$f":"(SUMPRODUCT(AF$9:AF$229,Nutrients!$I$8:$I$228)+(IF($A$7=Nutrients!$B$8,Nutrients!$I$8,Nutrients!$I$9)*AF$7)+(((IF($A$8=Nutrients!$B$79,Nutrients!$I$79,(IF($A$8=Nutrients!$B$77,Nutrients!$I$77,Nutrients!$I$78)))))*AF$8))/2000","v":17.608625438371465},{"$f":"(SUMPRODUCT(AG$9:AG$229,Nutrients!$I$8:$I$228)+(IF($A$7=Nutrients!$B$8,Nutrients!$I$8,Nutrients!$I$9)*AG$7)+(((IF($A$8=Nutrients!$B$79,Nutrients!$I$79,(IF($A$8=Nutrients!$B$77,Nutrients!$I$77,Nutrients!$I$78)))))*AG$8))/2000","v":16.080801340649419},{"$f":"(SUMPRODUCT(AH$9:AH$229,Nutrients!$I$8:$I$228)+(IF($A$7=Nutrients!$B$8,Nutrients!$I$8,Nutrients!$I$9)*AH$7)+(((IF($A$8=Nutrients!$B$79,Nutrients!$I$79,(IF($A$8=Nutrients!$B$77,Nutrients!$I$77,Nutrients!$I$78)))))*AH$8))/2000","v":15.045367670524143},{"$f":"(SUMPRODUCT(AI$9:AI$229,Nutrients!$I$8:$I$228)+(IF($A$7=Nutrients!$B$8,Nutrients!$I$8,Nutrients!$I$9)*AI$7)+(((IF($A$8=Nutrients!$B$79,Nutrients!$I$79,(IF($A$8=Nutrients!$B$77,Nutrients!$I$77,Nutrients!$I$78)))))*AI$8))/2000","v":13.408858132850794},null,{"$f":"(SUMPRODUCT(AK$9:AK$229,Nutrients!$I$8:$I$228)+(IF($A$7=Nutrients!$B$8,Nutrients!$I$8,Nutrients!$I$9)*AK$7)+(((IF($A$8=Nutrients!$B$79,Nutrients!$I$79,(IF($A$8=Nutrients!$B$77,Nutrients!$I$77,Nutrients!$I$78)))))*AK$8))/2000","v":21.912887950417126},{"$f":"(SUMPRODUCT(AL$9:AL$229,Nutrients!$I$8:$I$228)+(IF($A$7=Nutrients!$B$8,Nutrients!$I$8,Nutrients!$I$9)*AL$7)+(((IF($A$8=Nutrients!$B$79,Nutrients!$I$79,(IF($A$8=Nutrients!$B$77,Nutrients!$I$77,Nutrients!$I$78)))))*AL$8))/2000","v":19.689213862320614},{"$f":"(SUMPRODUCT(AM$9:AM$229,Nutrients!$I$8:$I$228)+(IF($A$7=Nutrients!$B$8,Nutrients!$I$8,Nutrients!$I$9)*AM$7)+(((IF($A$8=Nutrients!$B$79,Nutrients!$I$79,(IF($A$8=Nutrients!$B$77,Nutrients!$I$77,Nutrients!$I$78)))))*AM$8))/2000","v":17.869992059188888},{"$f":"(SUMPRODUCT(AN$9:AN$229,Nutrients!$I$8:$I$228)+(IF($A$7=Nutrients!$B$8,Nutrients!$I$8,Nutrients!$I$9)*AN$7)+(((IF($A$8=Nutrients!$B$79,Nutrients!$I$79,(IF($A$8=Nutrients!$B$77,Nutrients!$I$77,Nutrients!$I$78)))))*AN$8))/2000","v":16.345282240820236},{"$f":"(SUMPRODUCT(AO$9:AO$229,Nutrients!$I$8:$I$228)+(IF($A$7=Nutrients!$B$8,Nutrients!$I$8,Nutrients!$I$9)*AO$7)+(((IF($A$8=Nutrients!$B$79,Nutrients!$I$79,(IF($A$8=Nutrients!$B$77,Nutrients!$I$77,Nutrients!$I$78)))))*AO$8))/2000","v":15.312088027856673},{"$f":"(SUMPRODUCT(AP$9:AP$229,Nutrients!$I$8:$I$228)+(IF($A$7=Nutrients!$B$8,Nutrients!$I$8,Nutrients!$I$9)*AP$7)+(((IF($A$8=Nutrients!$B$79,Nutrients!$I$79,(IF($A$8=Nutrients!$B$77,Nutrients!$I$77,Nutrients!$I$78)))))*AP$8))/2000","v":13.408858132850794},null,{"$f":"(SUMPRODUCT(AR$9:AR$229,Nutrients!$I$8:$I$228)+(IF($A$7=Nutrients!$B$8,Nutrients!$I$8,Nutrients!$I$9)*AR$7)+(((IF($A$8=Nutrients!$B$79,Nutrients!$I$79,(IF($A$8=Nutrients!$B$77,Nutrients!$I$77,Nutrients!$I$78)))))*AR$8))/2000","v":22.118924812787085},{"$f":"(SUMPRODUCT(AS$9:AS$229,Nutrients!$I$8:$I$228)+(IF($A$7=Nutrients!$B$8,Nutrients!$I$8,Nutrients!$I$9)*AS$7)+(((IF($A$8=Nutrients!$B$79,Nutrients!$I$79,(IF($A$8=Nutrients!$B$77,Nutrients!$I$77,Nutrients!$I$78)))))*AS$8))/2000","v":19.928541456637848},{"$f":"(SUMPRODUCT(AT$9:AT$229,Nutrients!$I$8:$I$228)+(IF($A$7=Nutrients!$B$8,Nutrients!$I$8,Nutrients!$I$9)*AT$7)+(((IF($A$8=Nutrients!$B$79,Nutrients!$I$79,(IF($A$8=Nutrients!$B$77,Nutrients!$I$77,Nutrients!$I$78)))))*AT$8))/2000","v":18.135492255530394},{"$f":"(SUMPRODUCT(AU$9:AU$229,Nutrients!$I$8:$I$228)+(IF($A$7=Nutrients!$B$8,Nutrients!$I$8,Nutrients!$I$9)*AU$7)+(((IF($A$8=Nutrients!$B$79,Nutrients!$I$79,(IF($A$8=Nutrients!$B$77,Nutrients!$I$77,Nutrients!$I$78)))))*AU$8))/2000","v":16.604788180304155},{"$f":"(SUMPRODUCT(AV$9:AV$229,Nutrients!$I$8:$I$228)+(IF($A$7=Nutrients!$B$8,Nutrients!$I$8,Nutrients!$I$9)*AV$7)+(((IF($A$8=Nutrients!$B$79,Nutrients!$I$79,(IF($A$8=Nutrients!$B$77,Nutrients!$I$77,Nutrients!$I$78)))))*AV$8))/2000","v":15.578575614171911},{"$f":"(SUMPRODUCT(AW$9:AW$229,Nutrients!$I$8:$I$228)+(IF($A$7=Nutrients!$B$8,Nutrients!$I$8,Nutrients!$I$9)*AW$7)+(((IF($A$8=Nutrients!$B$79,Nutrients!$I$79,(IF($A$8=Nutrients!$B$77,Nutrients!$I$77,Nutrients!$I$78)))))*AW$8))/2000","v":13.408858132850794}]
["Ca, %",{"$f":"(SUMPRODUCT(B$9:B$229,Nutrients!$BS$8:$BS$228)+(IF($A$7=Nutrients!$B$8,Nutrients!$BS$8,Nutrients!$BS$9)*B$7)+(((IF($A$8=Nutrients!$B$79,Nutrients!$BS$79,(IF($A$8=Nutrients!$B$77,Nutrients!$BS$77,Nutrients!$BS$78)))))*B$8))/2000","v":0.6959867621315019},{"$f":"(SUMPRODUCT(C$9:C$229,Nutrients!$BS$8:$BS$228)+(IF($A$7=Nutrients!$B$8,Nutrients!$BS$8,Nutrients!$BS$9)*C$7)+(((IF($A$8=Nutrients!$B$79,Nutrients!$BS$79,(IF($A$8=Nutrients!$B$77,Nutrients!$BS$77,Nutrients!$BS$78)))))*C$8))/2000","v":0.62662783783950593},{"$f":"(SUMPRODUCT(D$9:D$229,Nutrients!$BS$8:$BS$228)+(IF($A$7=Nutrients!$B$8,Nutrients!$BS$8,Nutrients!$BS$9)*D$7)+(((IF($A$8=Nutrients!$B$79,Nutrients!$BS$79,(IF($A$8=Nutrients!$B$77,Nutrients!$BS$77,Nutrients!$BS$78)))))*D$8))/2000","v":0.57472596332038417},{"$f":"(SUMPRODUCT(E$9:E$229,Nutrients!$BS$8:$BS$228)+(IF($A$7=Nutrients!$B$8,Nutrients!$BS$8,Nutrients!$BS$9)*E$7)+(((IF($A$8=Nutrients!$B$79,Nutrients!$BS$79,(IF($A$8=Nutrients!$B$77,Nutrients!$BS$77,Nutrients!$BS$78)))))*E$8))/2000","v":0.52452097205568682},{"$f":"(SUMPRODUCT(F$9:F$229,Nutrients!$BS$8:$BS$228)+(IF($A$7=Nutrients!$B$8,Nutrients!$BS$8,Nutrients!$BS$9)*F$7)+(((IF($A$8=Nutrients!$B$79,Nutrients!$BS$79,(IF($A$8=Nutrients!$B$77,Nutrients!$BS$77,Nutrients!$BS$78)))))*F$8))/2000","v":0.48152514697950427},{"$f":"(SUMPRODUCT(G$9:G$229,Nutrients!$BS$8:$BS$228)+(IF($A$7=Nutrients!$B$8,Nutrients!$BS$8,Nutrients!$BS$9)*G$7)+(((IF($A$8=Nutrients!$B$79,Nutrients!$BS$79,(IF($A$8=Nutrients!$B$77,Nutrients!$BS$77,Nutrients!$BS$78)))))*G$8))/2000","v":0.46528542953652235},null,{"$f":"(SUMPRODUCT(I$9:I$229,Nutrients!$BS$8:$BS$228)+(IF($A$7=Nutrients!$B$8,Nutrients!$BS$8,Nutrients!$BS$9)*I$7)+(((IF($A$8=Nutrients!$B$79,Nutrients!$BS$79,(IF($A$8=Nutrients!$B$77,Nutrients!$BS$77,Nutrients!$BS$78)))))*I$8))/2000","v":0.69549234721729292},{"$f":"(SUMPRODUCT(J$9:J$229,Nutrients!$BS$8:$BS$228)+(IF($A$7=Nutrients!$B$8,Nutrients!$BS$8,Nutrients!$BS$9)*J$7)+(((IF($A$8=Nutrients!$B$79,Nutrients!$BS$79,(IF($A$8=Nutrients!$B$77,Nutrients!$BS$77,Nutrients!$BS$78)))))*J$8))/2000","v":0.62705204503980994},{"$f":"(SUMPRODUCT(K$9:K$229,Nutrients!$BS$8:$BS$228)+(IF($A$7=Nutrients!$B$8,Nutrients!$BS$8,Nutrients!$BS$9)*K$7)+(((IF($A$8=Nutrients!$B$79,Nutrients!$BS$79,(IF($A$8=Nutrients!$B$77,Nutrients!$BS$77,Nutrients!$BS$78)))))*K$8))/2000","v":0.57560738696742619},{"$f":"(SUMPRODUCT(L$9:L$229,Nutrients!$BS$8:$BS$228)+(IF($A$7=Nutrients!$B$8,Nutrients!$BS$8,Nutrients!$BS$9)*L$7)+(((IF($A$8=Nutrients!$B$79,Nutrients!$BS$79,(IF($A$8=Nutrients!$B$77,Nutrients!$BS$77,Nutrients!$BS$78)))))*L$8))/2000","v":0.52009619805015317},{"$f":"(SUMPRODUCT(M$9:M$229,Nutrients!$BS$8:$BS$228)+(IF($A$7=Nutrients!$B$8,Nutrients!$BS$8,Nutrients!$BS$9)*M$7)+(((IF($A$8=Nutrients!$B$79,Nutrients!$BS$79,(IF($A$8=Nutrients!$B$77,Nutrients!$BS$77,Nutrients!$BS$78)))))*M$8))/2000","v":0.47889538217647037},{"$f":"(SUMPRODUCT(N$9:N$229,Nutrients!$BS$8:$BS$228)+(IF($A$7=Nutrients!$B$8,Nutrients!$BS$8,Nutrients!$BS$9)*N$7)+(((IF($A$8=Nutrients!$B$79,Nutrients!$BS$79,(IF($A$8=Nutrients!$B$77,Nutrients!$BS$77,Nutrients!$BS$78)))))*N$8))/2000","v":0.46528542953652235},null,{"$f":"(SUMPRODUCT(P$9:P$229,Nutrients!$BS$8:$BS$228)+(IF($A$7=Nutrients!$B$8,Nutrients!$BS$8,Nutrients!$BS$9)*P$7)+(((IF($A$8=Nutrients!$B$79,Nutrients!$BS$79,(IF($A$8=Nutrients!$B$77,Nutrients!$BS$77,Nutrients!$BS$78)))))*P$8))/2000","v":0.69621606652791368},{"$f":"(SUMPRODUCT(Q$9:Q$229,Nutrients!$BS$8:$BS$228)+(IF($A$7=Nutrients!$B$8,Nutrients!$BS$8,Nutrients!$BS$9)*Q$7)+(((IF($A$8=Nutrients!$B$79,Nutrients!$BS$79,(IF($A$8=Nutrients!$B$77,Nutrients!$BS$77,Nutrients!$BS$78)))))*Q$8))/2000","v":0.62784369066614532},{"$f":"(SUMPRODUCT(R$9:R$229,Nutrients!$BS$8:$BS$228)+(IF($A$7=Nutrients!$B$8,Nutrients!$BS$8,Nutrients!$BS$9)*R$7)+(((IF($A$8=Nutrients!$B$79,Nutrients!$BS$79,(IF($A$8=Nutrients!$B$77,Nutrients!$BS$77,Nutrients!$BS$78)))))*R$8))/2000","v":0.57671570517143511},{"$f":"(SUMPRODUCT(S$9:S$229,Nutrients!$BS$8:$BS$228)+(IF($A$7=Nutrients!$B$8,Nutrients!$BS$8,Nutrients!$BS$9)*S$7)+(((IF($A$8=Nutrients!$B$79,Nutrients!$BS$79,(IF($A$8=Nutrients!$B$77,Nutrients!$BS$77,Nutrients!$BS$78)))))*S$8))/2000","v":0.52112359920610851},{"$f":"(SUMPRODUCT(T$9:T$229,Nutrients!$BS$8:$BS$228)+(IF($A$7=Nutrients!$B$8,Nutrients!$BS$8,Nutrients!$BS$9)*T$7)+(((IF($A$8=Nutrients!$B$79,Nutrients!$BS$79,(IF($A$8=Nutrients!$B$77,Nutrients!$BS$77,Nutrients!$BS$78)))))*T$8))/2000","v":0.48003051366870453},{"$f":"(SUMPRODUCT(U$9:U$229,Nutrients!$BS$8:$BS$228)+(IF($A$7=Nutrients!$B$8,Nutrients!$BS$8,Nutrients!$BS$9)*U$7)+(((IF($A$8=Nutrients!$B$79,Nutrients!$BS$79,(IF($A$8=Nutrients!$B$77,Nutrients!$BS$77,Nutrients!$BS$78)))))*U$8))/2000","v":0.46528542953652235},null,{"$f":"(SUMPRODUCT(W$9:W$229,Nutrients!$BS$8:$BS$228)+(IF($A$7=Nutrients!$B$8,Nutrients!$BS$8,Nutrients!$BS$9)*W$7)+(((IF($A$8=Nutrients!$B$79,Nutrients!$BS$79,(IF($A$8=Nutrients!$B$77,Nutrients!$BS$77,Nutrients!$BS$78)))))*W$8))/2000","v":0.69630822692718564},{"$f":"(SUMPRODUCT(X$9:X$229,Nutrients!$BS$8:$BS$228)+(IF($A$7=Nutrients!$B$8,Nutrients!$BS$8,Nutrients!$BS$9)*X$7)+(((IF($A$8=Nutrients!$B$79,Nutrients!$BS$79,(IF($A$8=Nutrients!$B$77,Nutrients!$BS$77,Nutrients!$BS$78)))))*X$8))/2000","v":0.62804819281658497},{"$f":"(SUMPRODUCT(Y$9:Y$229,Nutrients!$BS$8:$BS$228)+(IF($A$7=Nutrients!$B$8,Nutrients!$BS$8,Nutrients!$BS$9)*Y$7)+(((IF($A$8=Nutrients!$B$79,Nutrients!$BS$79,(IF($A$8=Nutrients!$B$77,Nutrients!$BS$77,Nutrients!$BS$78)))))*Y$8))/2000","v":0.57686645103596856},{"$f":"(SUMPRODUCT(Z$9:Z$229,Nutrients!$BS$8:$BS$228)+(IF($A$7=Nutrients!$B$8,Nutrients!$BS$8,Nutrients!$BS$9)*Z$7)+(((IF($A$8=Nutrients!$B$79,Nutrients!$BS$79,(IF($A$8=Nutrients!$B$77,Nutrients!$BS$77,Nutrients!$BS$78)))))*Z$8))/2000","v":0.52143555806577979},{"$f":"(SUMPRODUCT(AA$9:AA$229,Nutrients!$BS$8:$BS$228)+(IF($A$7=Nutrients!$B$8,Nutrients!$BS$8,Nutrients!$BS$9)*AA$7)+(((IF($A$8=Nutrients!$B$79,Nutrients!$BS$79,(IF($A$8=Nutrients!$B$77,Nutrients!$BS$77,Nutrients!$BS$78)))))*AA$8))/2000","v":0.48040786906454946},{"$f":"(SUMPRODUCT(AB$9:AB$229,Nutrients!$BS$8:$BS$228)+(IF($A$7=Nutrients!$B$8,Nutrients!$BS$8,Nutrients!$BS$9)*AB$7)+(((IF($A$8=Nutrients!$B$79,Nutrients!$BS$79,(IF($A$8=Nutrients!$B$77,Nutrients!$BS$77,Nutrients!$BS$78)))))*AB$8))/2000","v":0.46528542953652235},null,{"$f":"(SUMPRODUCT(AD$9:AD$229,Nutrients!$BS$8:$BS$228)+(IF($A$7=Nutrients!$B$8,Nutrients!$BS$8,Nutrients!$BS$9)*AD$7)+(((IF($A$8=Nutrients!$B$79,Nutrients!$BS$79,(IF($A$8=Nutrients!$B$77,Nutrients!$BS$77,Nutrients!$BS$78)))))*AD$8))/2000","v":0.69676597105582572},{"$f":"(SUMPRODUCT(AE$9:AE$229,Nutrients!$BS$8:$BS$228)+(IF($A$7=Nutrients!$B$8,Nutrients!$BS$8,Nutrients!$BS$9)*AE$7)+(((IF($A$8=Nutrients!$B$79,Nutrients!$BS$79,(IF($A$8=Nutrients!$B$77,Nutrients!$BS$77,Nutrients!$BS$78)))))*AE$8))/2000","v":0.62849071764533637},{"$f":"(SUMPRODUCT(AF$9:AF$229,Nutrients!$BS$8:$BS$228)+(IF($A$7=Nutrients!$B$8,Nutrients!$BS$8,Nutrients!$BS$9)*AF$7)+(((IF($A$8=Nutrients!$B$79,Nutrients!$BS$79,(IF($A$8=Nutrients!$B$77,Nutrients!$BS$77,Nutrients!$BS$78)))))*AF$8))/2000","v":0.57753146181125159},{"$f":"(SUMPRODUCT(AG$9:AG$229,Nutrients!$BS$8:$BS$228)+(IF($A$7=Nutrients!$B$8,Nutrients!$BS$8,Nutrients!$BS$9)*AG$7)+(((IF($A$8=Nutrients!$B$79,Nutrients!$BS$79,(IF($A$8=Nutrients!$B$77,Nutrients!$BS$77,Nutrients!$BS$78)))))*AG$8))/2000","v":0.5223273024198315},{"$f":"(SUMPRODUCT(AH$9:AH$229,Nutrients!$BS$8:$BS$228)+(IF($A$7=Nutrients!$B$8,Nutrients!$BS$8,Nutrients!$BS$9)*AH$7)+(((IF($A$8=Nutrients!$B$79,Nutrients!$BS$79,(IF($A$8=Nutrients!$B$77,Nutrients!$BS$77,Nutrients!$BS$78)))))*AH$8))/2000","v":0.49483733291432469},{"$f":"(SUMPRODUCT(AI$9:AI$229,Nutrients!$BS$8:$BS$228)+(IF($A$7=Nutrients!$B$8,Nutrients!$BS$8,Nutrients!$BS$9)*AI$7)+(((IF($A$8=Nutrients!$B$79,Nutrients!$BS$79,(IF($A$8=Nutrients!$B$77,Nutrients!$BS$77,Nutrients!$BS$78)))))*AI$8))/2000","v":0.46528542953652235},null,{"$f":"(SUMPRODUCT(AK$9:AK$229,Nutrients!$BS$8:$BS$228)+(IF($A$7=Nutrients!$B$8,Nutrients!$BS$8,Nutrients!$BS$9)*AK$7)+(((IF($A$8=Nutrients!$B$79,Nutrients!$BS$79,(IF($A$8=Nutrients!$B$77,Nutrients!$BS$77,Nutrients!$BS$78)))))*AK$8))/2000","v":0.697990224118053},{"$f":"(SUMPRODUCT(AL$9:AL$229,Nutrients!$BS$8:$BS$228)+(IF($A$7=Nutrients!$B$8,Nutrients!$BS$8,Nutrients!$BS$9)*AL$7)+(((IF($A$8=Nutrients!$B$79,Nutrients!$BS$79,(IF($A$8=Nutrients!$B$77,Nutrients!$BS$77,Nutrients!$BS$78)))))*AL$8))/2000","v":0.62857452884971898},{"$f":"(SUMPRODUCT(AM$9:AM$229,Nutrients!$BS$8:$BS$228)+(IF($A$7=Nutrients!$B$8,Nutrients!$BS$8,Nutrients!$BS$9)*AM$7)+(((IF($A$8=Nutrients!$B$79,Nutrients!$BS$79,(IF($A$8=Nutrients!$B$77,Nutrients!$BS$77,Nutrients!$BS$78)))))*AM$8))/2000","v":0.57774315497289763},{"$f":"(SUMPRODUCT(AN$9:AN$229,Nutrients!$BS$8:$BS$228)+(IF($A$7=Nutrients!$B$8,Nutrients!$BS$8,Nutrients!$BS$9)*AN$7)+(((IF($A$8=Nutrients!$B$79,Nutrients!$BS$79,(IF($A$8=Nutrients!$B$77,Nutrients!$BS$77,Nutrients!$BS$78)))))*AN$8))/2000","v":0.53329676098394463},{"$f":"(SUMPRODUCT(AO$9:AO$229,Nutrients!$BS$8:$BS$228)+(IF($A$7=Nutrients!$B$8,Nutrients!$BS$8,Nutrients!$BS$9)*AO$7)+(((IF($A$8=Nutrients!$B$79,Nutrients!$BS$79,(IF($A$8=Nutrients!$B$77,Nutrients!$BS$77,Nutrients!$BS$78)))))*AO$8))/2000","v":0.51578952550205603},{"$f":"(SUMPRODUCT(AP$9:AP$229,Nutrients!$BS$8:$BS$228)+(IF($A$7=Nutrients!$B$8,Nutrients!$BS$8,Nutrients!$BS$9)*AP$7)+(((IF($A$8=Nutrients!$B$79,Nutrients!$BS$79,(IF($A$8=Nutrients!$B$77,Nutrients!$BS$77,Nutrients!$BS$78)))))*AP$8))/2000","v":0.46528542953652235},null,{"$f":"(SUMPRODUCT(AR$9:AR$229,Nutrients!$BS$8:$BS$228)+(IF($A$7=Nutrients!$B$8,Nutrients!$BS$8,Nutrients!$BS$9)*AR$7)+(((IF($A$8=Nutrients!$B$79,Nutrients!$BS$79,(IF($A$8=Nutrients!$B$77,Nutrients!$BS$77,Nutrients!$BS$78)))))*AR$8))/2000","v":0.69789407418327631},{"$f":"(SUMPRODUCT(AS$9:AS$229,Nutrients!$BS$8:$BS$228)+(IF($A$7=Nutrients!$B$8,Nutrients!$BS$8,Nutrients!$BS$9)*AS$7)+(((IF($A$8=Nutrients!$B$79,Nutrients!$BS$79,(IF($A$8=Nutrients!$B$77,Nutrients!$BS$77,Nutrients!$BS$78)))))*AS$8))/2000","v":0.62903763581149053},{"$f":"(SUMPRODUCT(AT$9:AT$229,Nutrients!$BS$8:$BS$228)+(IF($A$7=Nutrients!$B$8,Nutrients!$BS$8,Nutrients!$BS$9)*AT$7)+(((IF($A$8=Nutrients!$B$79,Nutrients!$BS$79,(IF($A$8=Nutrients!$B$77,Nutrients!$BS$77,Nutrients!$BS$78)))))*AT$8))/2000","v":0.57848461261224604},{"$f":"(SUMPRODUCT(AU$9:AU$229,Nutrients!$BS$8:$BS$228)+(IF($A$7=Nutrients!$B$8,Nutrients!$BS$8,Nutrients!$BS$9)*AU$7)+(((IF($A$8=Nutrients!$B$79,Nutrients!$BS$79,(IF($A$8=Nutrients!$B$77,Nutrients!$BS$77,Nutrients!$BS$78)))))*AU$8))/2000","v":0.55440344784338846},{"$f":"(SUMPRODUCT(AV$9:AV$229,Nutrients!$BS$8:$BS$228)+(IF($A$7=Nutrients!$B$8,Nutrients!$BS$8,Nutrients!$BS$9)*AV$7)+(((IF($A$8=Nutrients!$B$79,Nutrients!$BS$79,(IF($A$8=Nutrients!$B$77,Nutrients!$BS$77,Nutrients!$BS$78)))))*AV$8))/2000","v":0.53674468577051604},{"$f":"(SUMPRODUCT(AW$9:AW$229,Nutrients!$BS$8:$BS$228)+(IF($A$7=Nutrients!$B$8,Nutrients!$BS$8,Nutrients!$BS$9)*AW$7)+(((IF($A$8=Nutrients!$B$79,Nutrients!$BS$79,(IF($A$8=Nutrients!$B$77,Nutrients!$BS$77,Nutrients!$BS$78)))))*AW$8))/2000","v":0.46528542953652235}]
["P, %",{"$f":"(SUMPRODUCT(B$9:B$229,Nutrients!$BX$8:$BX$228)+(IF($A$7=Nutrients!$B$8,Nutrients!$BX$8,Nutrients!$BX$9)*B$7)+(((IF($A$8=Nutrients!$B$79,Nutrients!$BX$79,(IF($A$8=Nutrients!$B$77,Nutrients!$BX$77,Nutrients!$BX$78)))))*B$8))/2000","v":0.5346695452711987},{"$f":"(SUMPRODUCT(C$9:C$229,Nutrients!$BX$8:$BX$228)+(IF($A$7=Nutrients!$B$8,Nutrients!$BX$8,Nutrients!$BX$9)*C$7)+(((IF($A$8=Nutrients!$B$79,Nutrients!$BX$79,(IF($A$8=Nutrients!$B$77,Nutrients!$BX$77,Nutrients!$BX$78)))))*C$8))/2000","v":0.48121097221673825},{"$f":"(SUMPRODUCT(D$9:D$229,Nutrients!$BX$8:$BX$228)+(IF($A$7=Nutrients!$B$8,Nutrients!$BX$8,Nutrients!$BX$9)*D$7)+(((IF($A$8=Nutrients!$B$79,Nutrients!$BX$79,(IF($A$8=Nutrients!$B$77,Nutrients!$BX$77,Nutrients!$BX$78)))))*D$8))/2000","v":0.42976285680817727},{"$f":"(SUMPRODUCT(E$9:E$229,Nutrients!$BX$8:$BX$228)+(IF($A$7=Nutrients!$B$8,Nutrients!$BX$8,Nutrients!$BX$9)*E$7)+(((IF($A$8=Nutrients!$B$79,Nutrients!$BX$79,(IF($A$8=Nutrients!$B$77,Nutrients!$BX$77,Nutrients!$BX$78)))))*E$8))/2000","v":0.3909770634935561},{"$f":"(SUMPRODUCT(F$9:F$229,Nutrients!$BX$8:$BX$228)+(IF($A$7=Nutrients!$B$8,Nutrients!$BX$8,Nutrients!$BX$9)*F$7)+(((IF($A$8=Nutrients!$B$79,Nutrients!$BX$79,(IF($A$8=Nutrients!$B$77,Nutrients!$BX$77,Nutrients!$BX$78)))))*F$8))/2000","v":0.36342201195104268},{"$f":"(SUMPRODUCT(G$9:G$229,Nutrients!$BX$8:$BX$228)+(IF($A$7=Nutrients!$B$8,Nutrients!$BX$8,Nutrients!$BX$9)*G$7)+(((IF($A$8=Nutrients!$B$79,Nutrients!$BX$79,(IF($A$8=Nutrients!$B$77,Nutrients!$BX$77,Nutrients!$BX$78)))))*G$8))/2000","v":0.35071811324744068},null,{"$f":"(SUMPRODUCT(I$9:I$229,Nutrients!$BX$8:$BX$228)+(IF($A$7=Nutrients!$B$8,Nutrients!$BX$8,Nutrients!$BX$9)*I$7)+(((IF($A$8=Nutrients!$B$79,Nutrients!$BX$79,(IF($A$8=Nutrients!$B$77,Nutrients!$BX$77,Nutrients!$BX$78)))))*I$8))/2000","v":0.53378856874474034},{"$f":"(SUMPRODUCT(J$9:J$229,Nutrients!$BX$8:$BX$228)+(IF($A$7=Nutrients!$B$8,Nutrients!$BX$8,Nutrients!$BX$9)*J$7)+(((IF($A$8=Nutrients!$B$79,Nutrients!$BX$79,(IF($A$8=Nutrients!$B$77,Nutrients!$BX$77,Nutrients!$BX$78)))))*J$8))/2000","v":0.48059411815266345},{"$f":"(SUMPRODUCT(K$9:K$229,Nutrients!$BX$8:$BX$228)+(IF($A$7=Nutrients!$B$8,Nutrients!$BX$8,Nutrients!$BX$9)*K$7)+(((IF($A$8=Nutrients!$B$79,Nutrients!$BX$79,(IF($A$8=Nutrients!$B$77,Nutrients!$BX$77,Nutrients!$BX$78)))))*K$8))/2000","v":0.42936323045345376},{"$f":"(SUMPRODUCT(L$9:L$229,Nutrients!$BX$8:$BX$228)+(IF($A$7=Nutrients!$B$8,Nutrients!$BX$8,Nutrients!$BX$9)*L$7)+(((IF($A$8=Nutrients!$B$79,Nutrients!$BX$79,(IF($A$8=Nutrients!$B$77,Nutrients!$BX$77,Nutrients!$BX$78)))))*L$8))/2000","v":0.38803484247387704},{"$f":"(SUMPRODUCT(M$9:M$229,Nutrients!$BX$8:$BX$228)+(IF($A$7=Nutrients!$B$8,Nutrients!$BX$8,Nutrients!$BX$9)*M$7)+(((IF($A$8=Nutrients!$B$79,Nutrients!$BX$79,(IF($A$8=Nutrients!$B$77,Nutrients!$BX$77,Nutrients!$BX$78)))))*M$8))/2000","v":0.36126192753585401},{"$f":"(SUMPRODUCT(N$9:N$229,Nutrients!$BX$8:$BX$228)+(IF($A$7=Nutrients!$B$8,Nutrients!$BX$8,Nutrients!$BX$9)*N$7)+(((IF($A$8=Nutrients!$B$79,Nutrients!$BX$79,(IF($A$8=Nutrients!$B$77,Nutrients!$BX$77,Nutrients!$BX$78)))))*N$8))/2000","v":0.35071811324744068},null,{"$f":"(SUMPRODUCT(P$9:P$229,Nutrients!$BX$8:$BX$228)+(IF($A$7=Nutrients!$B$8,Nutrients!$BX$8,Nutrients!$BX$9)*P$7)+(((IF($A$8=Nutrients!$B$79,Nutrients!$BX$79,(IF($A$8=Nutrients!$B$77,Nutrients!$BX$77,Nutrients!$BX$78)))))*P$8))/2000","v":0.5332451819467694},{"$f":"(SUMPRODUCT(Q$9:Q$229,Nutrients!$BX$8:$BX$228)+(IF($A$7=Nutrients!$B$8,Nutrients!$BX$8,Nutrients!$BX$9)*Q$7)+(((IF($A$8=Nutrients!$B$79,Nutrients!$BX$79,(IF($A$8=Nutrients!$B$77,Nutrients!$BX$77,Nutrients!$BX$78)))))*Q$8))/2000","v":0.48021164559111784},{"$f":"(SUMPRODUCT(R$9:R$229,Nutrients!$BX$8:$BX$228)+(IF($A$7=Nutrients!$B$8,Nutrients!$BX$8,Nutrients!$BX$9)*R$7)+(((IF($A$8=Nutrients!$B$79,Nutrients!$BX$79,(IF($A$8=Nutrients!$B$77,Nutrients!$BX$77,Nutrients!$BX$78)))))*R$8))/2000","v":0.42915432909056112},{"$f":"(SUMPRODUCT(S$9:S$229,Nutrients!$BX$8:$BX$228)+(IF($A$7=Nutrients!$B$8,Nutrients!$BX$8,Nutrients!$BX$9)*S$7)+(((IF($A$8=Nutrients!$B$79,Nutrients!$BX$79,(IF($A$8=Nutrients!$B$77,Nutrients!$BX$77,Nutrients!$BX$78)))))*S$8))/2000","v":0.3877454559867628},{"$f":"(SUMPRODUCT(T$9:T$229,Nutrients!$BX$8:$BX$228)+(IF($A$7=Nutrients!$B$8,Nutrients!$BX$8,Nutrients!$BX$9)*T$7)+(((IF($A$8=Nutrients!$B$79,Nutrients!$BX$79,(IF($A$8=Nutrients!$B$77,Nutrients!$BX$77,Nutrients!$BX$78)))))*T$8))/2000","v":0.36109493905482715},{"$f":"(SUMPRODUCT(U$9:U$229,Nutrients!$BX$8:$BX$228)+(IF($A$7=Nutrients!$B$8,Nutrients!$BX$8,Nutrients!$BX$9)*U$7)+(((IF($A$8=Nutrients!$B$79,Nutrients!$BX$79,(IF($A$8=Nutrients!$B$77,Nutrients!$BX$77,Nutrients!$BX$78)))))*U$8))/2000","v":0.35071811324744068},null,{"$f":"(SUMPRODUCT(W$9:W$229,Nutrients!$BX$8:$BX$228)+(IF($A$7=Nutrients!$B$8,Nutrients!$BX$8,Nutrients!$BX$9)*W$7)+(((IF($A$8=Nutrients!$B$79,Nutrients!$BX$79,(IF($A$8=Nutrients!$B$77,Nutrients!$BX$77,Nutrients!$BX$78)))))*W$8))/2000","v":0.53270499542958349},{"$f":"(SUMPRODUCT(X$9:X$229,Nutrients!$BX$8:$BX$228)+(IF($A$7=Nutrients!$B$8,Nutrients!$BX$8,Nutrients!$BX$9)*X$7)+(((IF($A$8=Nutrients!$B$79,Nutrients!$BX$79,(IF($A$8=Nutrients!$B$77,Nutrients!$BX$77,Nutrients!$BX$78)))))*X$8))/2000","v":0.47983453580949786},{"$f":"(SUMPRODUCT(Y$9:Y$229,Nutrients!$BX$8:$BX$228)+(IF($A$7=Nutrients!$B$8,Nutrients!$BX$8,Nutrients!$BX$9)*Y$7)+(((IF($A$8=Nutrients!$B$79,Nutrients!$BX$79,(IF($A$8=Nutrients!$B$77,Nutrients!$BX$77,Nutrients!$BX$78)))))*Y$8))/2000","v":0.42869799579519852},{"$f":"(SUMPRODUCT(Z$9:Z$229,Nutrients!$BX$8:$BX$228)+(IF($A$7=Nutrients!$B$8,Nutrients!$BX$8,Nutrients!$BX$9)*Z$7)+(((IF($A$8=Nutrients!$B$79,Nutrients!$BX$79,(IF($A$8=Nutrients!$B$77,Nutrients!$BX$77,Nutrients!$BX$78)))))*Z$8))/2000","v":0.38751765474733407},{"$f":"(SUMPRODUCT(AA$9:AA$229,Nutrients!$BX$8:$BX$228)+(IF($A$7=Nutrients!$B$8,Nutrients!$BX$8,Nutrients!$BX$9)*AA$7)+(((IF($A$8=Nutrients!$B$79,Nutrients!$BX$79,(IF($A$8=Nutrients!$B$77,Nutrients!$BX$77,Nutrients!$BX$78)))))*AA$8))/2000","v":0.36094333882298901},{"$f":"(SUMPRODUCT(AB$9:AB$229,Nutrients!$BX$8:$BX$228)+(IF($A$7=Nutrients!$B$8,Nutrients!$BX$8,Nutrients!$BX$9)*AB$7)+(((IF($A$8=Nutrients!$B$79,Nutrients!$BX$79,(IF($A$8=Nutrients!$B$77,Nutrients!$BX$77,Nutrients!$BX$78)))))*AB$8))/2000","v":0.35071811324744068},null,{"$f":"(SUMPRODUCT(AD$9:AD$229,Nutrients!$BX$8:$BX$228)+(IF($A$7=Nutrients!$B$8,Nutrients!$BX$8,Nutrients!$BX$9)*AD$7)+(((IF($A$8=Nutrients!$B$79,Nutrients!$BX$79,(IF($A$8=Nutrients!$B$77,Nutrients!$BX$77,Nutrients!$BX$78)))))*AD$8))/2000","v":0.53214311838781991},{"$f":"(SUMPRODUCT(AE$9:AE$229,Nutrients!$BX$8:$BX$228)+(IF($A$7=Nutrients!$B$8,Nutrients!$BX$8,Nutrients!$BX$9)*AE$7)+(((IF($A$8=Nutrients!$B$79,Nutrients!$BX$79,(IF($A$8=Nutrients!$B$77,Nutrients!$BX$77,Nutrients!$BX$78)))))*AE$8))/2000","v":0.47920903822188488},{"$f":"(SUMPRODUCT(AF$9:AF$229,Nutrients!$BX$8:$BX$228)+(IF($A$7=Nutrients!$B$8,Nutrients!$BX$8,Nutrients!$BX$9)*AF$7)+(((IF($A$8=Nutrients!$B$79,Nutrients!$BX$79,(IF($A$8=Nutrients!$B$77,Nutrients!$BX$77,Nutrients!$BX$78)))))*AF$8))/2000","v":0.42830139803880435},{"$f":"(SUMPRODUCT(AG$9:AG$229,Nutrients!$BX$8:$BX$228)+(IF($A$7=Nutrients!$B$8,Nutrients!$BX$8,Nutrients!$BX$9)*AG$7)+(((IF($A$8=Nutrients!$B$79,Nutrients!$BX$79,(IF($A$8=Nutrients!$B$77,Nutrients!$BX$77,Nutrients!$BX$78)))))*AG$8))/2000","v":0.38726419632515452},{"$f":"(SUMPRODUCT(AH$9:AH$229,Nutrients!$BX$8:$BX$228)+(IF($A$7=Nutrients!$B$8,Nutrients!$BX$8,Nutrients!$BX$9)*AH$7)+(((IF($A$8=Nutrients!$B$79,Nutrients!$BX$79,(IF($A$8=Nutrients!$B$77,Nutrients!$BX$77,Nutrients!$BX$78)))))*AH$8))/2000","v":0.36927003848018819},{"$f":"(SUMPRODUCT(AI$9:AI$229,Nutrients!$BX$8:$BX$228)+(IF($A$7=Nutrients!$B$8,Nutrients!$BX$8,Nutrients!$BX$9)*AI$7)+(((IF($A$8=Nutrients!$B$79,Nutrients!$BX$79,(IF($A$8=Nutrients!$B$77,Nutrients!$BX$77,Nutrients!$BX$78)))))*AI$8))/2000","v":0.35071811324744068},null,{"$f":"(SUMPRODUCT(AK$9:AK$229,Nutrients!$BX$8:$BX$228)+(IF($A$7=Nutrients!$B$8,Nutrients!$BX$8,Nutrients!$BX$9)*AK$7)+(((IF($A$8=Nutrients!$B$79,Nutrients!$BX$79,(IF($A$8=Nutrients!$B$77,Nutrients!$BX$77,Nutrients!$BX$78)))))*AK$8))/2000","v":0.53256418777168235},{"$f":"(SUMPRODUCT(AL$9:AL$229,Nutrients!$BX$8:$BX$228)+(IF($A$7=Nutrients!$B$8,Nutrients!$BX$8,Nutrients!$BX$9)*AL$7)+(((IF($A$8=Nutrients!$B$79,Nutrients!$BX$79,(IF($A$8=Nutrients!$B$77,Nutrients!$BX$77,Nutrients!$BX$78)))))*AL$8))/2000","v":0.47865673190566566},{"$f":"(SUMPRODUCT(AM$9:AM$229,Nutrients!$BX$8:$BX$228)+(IF($A$7=Nutrients!$B$8,Nutrients!$BX$8,Nutrients!$BX$9)*AM$7)+(((IF($A$8=Nutrients!$B$79,Nutrients!$BX$79,(IF($A$8=Nutrients!$B$77,Nutrients!$BX$77,Nutrients!$BX$78)))))*AM$8))/2000","v":0.42790932037022594},{"$f":"(SUMPRODUCT(AN$9:AN$229,Nutrients!$BX$8:$BX$228)+(IF($A$7=Nutrients!$B$8,Nutrients!$BX$8,Nutrients!$BX$9)*AN$7)+(((IF($A$8=Nutrients!$B$79,Nutrients!$BX$79,(IF($A$8=Nutrients!$B$77,Nutrients!$BX$77,Nutrients!$BX$78)))))*AN$8))/2000","v":0.39348827981702539},{"$f":"(SUMPRODUCT(AO$9:AO$229,Nutrients!$BX$8:$BX$228)+(IF($A$7=Nutrients!$B$8,Nutrients!$BX$8,Nutrients!$BX$9)*AO$7)+(((IF($A$8=Nutrients!$B$79,Nutrients!$BX$79,(IF($A$8=Nutrients!$B$77,Nutrients!$BX$77,Nutrients!$BX$78)))))*AO$8))/2000","v":0.38191591113389745},{"$f":"(SUMPRODUCT(AP$9:AP$229,Nutrients!$BX$8:$BX$228)+(IF($A$7=Nutrients!$B$8,Nutrients!$BX$8,Nutrients!$BX$9)*AP$7)+(((IF($A$8=Nutrients!$B$79,Nutrients!$BX$79,(IF($A$8=Nutrients!$B$77,Nutrients!$BX$77,Nutrients!$BX$78)))))*AP$8))/2000","v":0.35071811324744068},null,{"$f":"(SUMPRODUCT(AR$9:AR$229,Nutrients!$BX$8:$BX$228)+(IF($A$7=Nutrients!$B$8,Nutrients!$BX$8,Nutrients!$BX$9)*AR$7)+(((IF($A$8=Nutrients!$B$79,Nutrients!$BX$79,(IF($A$8=Nutrients!$B$77,Nutrients!$BX$77,Nutrients!$BX$78)))))*AR$8))/2000","v":0.53163314359506442},{"$f":"(SUMPRODUCT(AS$9:AS$229,Nutrients!$BX$8:$BX$228)+(IF($A$7=Nutrients!$B$8,Nutrients!$BX$8,Nutrients!$BX$9)*AS$7)+(((IF($A$8=Nutrients!$B$79,Nutrients!$BX$79,(IF($A$8=Nutrients!$B$77,Nutrients!$BX$77,Nutrients!$BX$78)))))*AS$8))/2000","v":0.47810391600623625},{"$f":"(SUMPRODUCT(AT$9:AT$229,Nutrients!$BX$8:$BX$228)+(IF($A$7=Nutrients!$B$8,Nutrients!$BX$8,Nutrients!$BX$9)*AT$7)+(((IF($A$8=Nutrients!$B$79,Nutrients!$BX$79,(IF($A$8=Nutrients!$B$77,Nutrients!$BX$77,Nutrients!$BX$78)))))*AT$8))/2000","v":0.42756246092923061},{"$f":"(SUMPRODUCT(AU$9:AU$229,Nutrients!$BX$8:$BX$228)+(IF($A$7=Nutrients!$B$8,Nutrients!$BX$8,Nutrients!$BX$9)*AU$7)+(((IF($A$8=Nutrients!$B$79,Nutrients!$BX$79,(IF($A$8=Nutrients!$B$77,Nutrients!$BX$77,Nutrients!$BX$78)))))*AU$8))/2000","v":0.40605114181099555},{"$f":"(SUMPRODUCT(AV$9:AV$229,Nutrients!$BX$8:$BX$228)+(IF($A$7=Nutrients!$B$8,Nutrients!$BX$8,Nutrients!$BX$9)*AV$7)+(((IF($A$8=Nutrients!$B$79,Nutrients!$BX$79,(IF($A$8=Nutrients!$B$77,Nutrients!$BX$77,Nutrients!$BX$78)))))*AV$8))/2000","v":0.39456397285733658},{"$f":"(SUMPRODUCT(AW$9:AW$229,Nutrients!$BX$8:$BX$228)+(IF($A$7=Nutrients!$B$8,Nutrients!$BX$8,Nutrients!$BX$9)*AW$7)+(((IF($A$8=Nutrients!$B$79,Nutrients!$BX$79,(IF($A$8=Nutrients!$B$77,Nutrients!$BX$77,Nutrients!$BX$78)))))*AW$8))/2000","v":0.35071811324744068}]
["Available P w/o phytase, %",{"$f":"(SUMPRODUCT(B$9:B$229,Nutrients!$EB$8:$EB$228)+(IF($A$7=Nutrients!$B$8,Nutrients!$EB$8,Nutrients!$EB$9)*B$7)+(((IF($A$8=Nutrients!$B$79,Nutrients!$EB$79,(IF($A$8=Nutrients!$B$77,Nutrients!$EB$77,Nutrients!$EB$78)))))*B$8))/2000","v":0.21736490825429733},{"$f":"(SUMPRODUCT(C$9:C$229,Nutrients!$EB$8:$EB$228)+(IF($A$7=Nutrients!$B$8,Nutrients!$EB$8,Nutrients!$EB$9)*C$7)+(((IF($A$8=Nutrients!$B$79,Nutrients!$EB$79,(IF($A$8=Nutrients!$B$77,Nutrients!$EB$77,Nutrients!$EB$78)))))*C$8))/2000","v":0.18121360963694014},{"$f":"(SUMPRODUCT(D$9:D$229,Nutrients!$EB$8:$EB$228)+(IF($A$7=Nutrients!$B$8,Nutrients!$EB$8,Nutrients!$EB$9)*D$7)+(((IF($A$8=Nutrients!$B$79,Nutrients!$EB$79,(IF($A$8=Nutrients!$B$77,Nutrients!$EB$77,Nutrients!$EB$78)))))*D$8))/2000","v":0.1446187906188299},{"$f":"(SUMPRODUCT(E$9:E$229,Nutrients!$EB$8:$EB$228)+(IF($A$7=Nutrients!$B$8,Nutrients!$EB$8,Nutrients!$EB$9)*E$7)+(((IF($A$8=Nutrients!$B$79,Nutrients!$EB$79,(IF($A$8=Nutrients!$B$77,Nutrients!$EB$77,Nutrients!$EB$78)))))*E$8))/2000","v":0.11837941481999412},{"$f":"(SUMPRODUCT(F$9:F$229,Nutrients!$EB$8:$EB$228)+(IF($A$7=Nutrients!$B$8,Nutrients!$EB$8,Nutrients!$EB$9)*F$7)+(((IF($A$8=Nutrients!$B$79,Nutrients!$EB$79,(IF($A$8=Nutrients!$B$77,Nutrients!$EB$77,Nutrients!$EB$78)))))*F$8))/2000","v":9.9071678699147347E-2},{"$f":"(SUMPRODUCT(G$9:G$229,Nutrients!$EB$8:$EB$228)+(IF($A$7=Nutrients!$B$8,Nutrients!$EB$8,Nutrients!$EB$9)*G$7)+(((IF($A$8=Nutrients!$B$79,Nutrients!$EB$79,(IF($A$8=Nutrients!$B$77,Nutrients!$EB$77,Nutrients!$EB$78)))))*G$8))/2000","v":9.0636415067427589E-2},null,{"$f":"(SUMPRODUCT(I$9:I$229,Nutrients!$EB$8:$EB$228)+(IF($A$7=Nutrients!$B$8,Nutrients!$EB$8,Nutrients!$EB$9)*I$7)+(((IF($A$8=Nutrients!$B$79,Nutrients!$EB$79,(IF($A$8=Nutrients!$B$77,Nutrients!$EB$77,Nutrients!$EB$78)))))*I$8))/2000","v":0.1999514842033541},{"$f":"(SUMPRODUCT(J$9:J$229,Nutrients!$EB$8:$EB$228)+(IF($A$7=Nutrients!$B$8,Nutrients!$EB$8,Nutrients!$EB$9)*J$7)+(((IF($A$8=Nutrients!$B$79,Nutrients!$EB$79,(IF($A$8=Nutrients!$B$77,Nutrients!$EB$77,Nutrients!$EB$78)))))*J$8))/2000","v":0.16387526439087105},{"$f":"(SUMPRODUCT(K$9:K$229,Nutrients!$EB$8:$EB$228)+(IF($A$7=Nutrients!$B$8,Nutrients!$EB$8,Nutrients!$EB$9)*K$7)+(((IF($A$8=Nutrients!$B$79,Nutrients!$EB$79,(IF($A$8=Nutrients!$B$77,Nutrients!$EB$77,Nutrients!$EB$78)))))*K$8))/2000","v":0.12734220546868985},{"$f":"(SUMPRODUCT(L$9:L$229,Nutrients!$EB$8:$EB$228)+(IF($A$7=Nutrients!$B$8,Nutrients!$EB$8,Nutrients!$EB$9)*L$7)+(((IF($A$8=Nutrients!$B$79,Nutrients!$EB$79,(IF($A$8=Nutrients!$B$77,Nutrients!$EB$77,Nutrients!$EB$78)))))*L$8))/2000","v":9.8415421378184612E-2},{"$f":"(SUMPRODUCT(M$9:M$229,Nutrients!$EB$8:$EB$228)+(IF($A$7=Nutrients!$B$8,Nutrients!$EB$8,Nutrients!$EB$9)*M$7)+(((IF($A$8=Nutrients!$B$79,Nutrients!$EB$79,(IF($A$8=Nutrients!$B$77,Nutrients!$EB$77,Nutrients!$EB$78)))))*M$8))/2000","v":7.9910024893893719E-2},{"$f":"(SUMPRODUCT(N$9:N$229,Nutrients!$EB$8:$EB$228)+(IF($A$7=Nutrients!$B$8,Nutrients!$EB$8,Nutrients!$EB$9)*N$7)+(((IF($A$8=Nutrients!$B$79,Nutrients!$EB$79,(IF($A$8=Nutrients!$B$77,Nutrients!$EB$77,Nutrients!$EB$78)))))*N$8))/2000","v":9.0636415067427589E-2},null,{"$f":"(SUMPRODUCT(P$9:P$229,Nutrients!$EB$8:$EB$228)+(IF($A$7=Nutrients!$B$8,Nutrients!$EB$8,Nutrients!$EB$9)*P$7)+(((IF($A$8=Nutrients!$B$79,Nutrients!$EB$79,(IF($A$8=Nutrients!$B$77,Nutrients!$EB$77,Nutrients!$EB$78)))))*P$8))/2000","v":0.18263442610220482},{"$f":"(SUMPRODUCT(Q$9:Q$229,Nutrients!$EB$8:$EB$228)+(IF($A$7=Nutrients!$B$8,Nutrients!$EB$8,Nutrients!$EB$9)*Q$7)+(((IF($A$8=Nutrients!$B$79,Nutrients!$EB$79,(IF($A$8=Nutrients!$B$77,Nutrients!$EB$77,Nutrients!$EB$78)))))*Q$8))/2000","v":0.14660379459327735},{"$f":"(SUMPRODUCT(R$9:R$229,Nutrients!$EB$8:$EB$228)+(IF($A$7=Nutrients!$B$8,Nutrients!$EB$8,Nutrients!$EB$9)*R$7)+(((IF($A$8=Nutrients!$B$79,Nutrients!$EB$79,(IF($A$8=Nutrients!$B$77,Nutrients!$EB$77,Nutrients!$EB$78)))))*R$8))/2000","v":0.11011959705182213},{"$f":"(SUMPRODUCT(S$9:S$229,Nutrients!$EB$8:$EB$228)+(IF($A$7=Nutrients!$B$8,Nutrients!$EB$8,Nutrients!$EB$9)*S$7)+(((IF($A$8=Nutrients!$B$79,Nutrients!$EB$79,(IF($A$8=Nutrients!$B$77,Nutrients!$EB$77,Nutrients!$EB$78)))))*S$8))/2000","v":8.1170095539151887E-2},{"$f":"(SUMPRODUCT(T$9:T$229,Nutrients!$EB$8:$EB$228)+(IF($A$7=Nutrients!$B$8,Nutrients!$EB$8,Nutrients!$EB$9)*T$7)+(((IF($A$8=Nutrients!$B$79,Nutrients!$EB$79,(IF($A$8=Nutrients!$B$77,Nutrients!$EB$77,Nutrients!$EB$78)))))*T$8))/2000","v":6.2702382655822342E-2},{"$f":"(SUMPRODUCT(U$9:U$229,Nutrients!$EB$8:$EB$228)+(IF($A$7=Nutrients!$B$8,Nutrients!$EB$8,Nutrients!$EB$9)*U$7)+(((IF($A$8=Nutrients!$B$79,Nutrients!$EB$79,(IF($A$8=Nutrients!$B$77,Nutrients!$EB$77,Nutrients!$EB$78)))))*U$8))/2000","v":9.0636415067427589E-2},null,{"$f":"(SUMPRODUCT(W$9:W$229,Nutrients!$EB$8:$EB$228)+(IF($A$7=Nutrients!$B$8,Nutrients!$EB$8,Nutrients!$EB$9)*W$7)+(((IF($A$8=Nutrients!$B$79,Nutrients!$EB$79,(IF($A$8=Nutrients!$B$77,Nutrients!$EB$77,Nutrients!$EB$78)))))*W$8))/2000","v":0.16531775750435837},{"$f":"(SUMPRODUCT(X$9:X$229,Nutrients!$EB$8:$EB$228)+(IF($A$7=Nutrients!$B$8,Nutrients!$EB$8,Nutrients!$EB$9)*X$7)+(((IF($A$8=Nutrients!$B$79,Nutrients!$EB$79,(IF($A$8=Nutrients!$B$77,Nutrients!$EB$77,Nutrients!$EB$78)))))*X$8))/2000","v":0.1293331136348605},{"$f":"(SUMPRODUCT(Y$9:Y$229,Nutrients!$EB$8:$EB$228)+(IF($A$7=Nutrients!$B$8,Nutrients!$EB$8,Nutrients!$EB$9)*Y$7)+(((IF($A$8=Nutrients!$B$79,Nutrients!$EB$79,(IF($A$8=Nutrients!$B$77,Nutrients!$EB$77,Nutrients!$EB$78)))))*Y$8))/2000","v":9.2826765314281842E-2},{"$f":"(SUMPRODUCT(Z$9:Z$229,Nutrients!$EB$8:$EB$228)+(IF($A$7=Nutrients!$B$8,Nutrients!$EB$8,Nutrients!$EB$9)*Z$7)+(((IF($A$8=Nutrients!$B$79,Nutrients!$EB$79,(IF($A$8=Nutrients!$B$77,Nutrients!$EB$77,Nutrients!$EB$78)))))*Z$8))/2000","v":6.3942586903042012E-2},{"$f":"(SUMPRODUCT(AA$9:AA$229,Nutrients!$EB$8:$EB$228)+(IF($A$7=Nutrients!$B$8,Nutrients!$EB$8,Nutrients!$EB$9)*AA$7)+(((IF($A$8=Nutrients!$B$79,Nutrients!$EB$79,(IF($A$8=Nutrients!$B$77,Nutrients!$EB$77,Nutrients!$EB$78)))))*AA$8))/2000","v":4.5499356590444018E-2},{"$f":"(SUMPRODUCT(AB$9:AB$229,Nutrients!$EB$8:$EB$228)+(IF($A$7=Nutrients!$B$8,Nutrients!$EB$8,Nutrients!$EB$9)*AB$7)+(((IF($A$8=Nutrients!$B$79,Nutrients!$EB$79,(IF($A$8=Nutrients!$B$77,Nutrients!$EB$77,Nutrients!$EB$78)))))*AB$8))/2000","v":9.0636415067427589E-2},null,{"$f":"(SUMPRODUCT(AD$9:AD$229,Nutrients!$EB$8:$EB$228)+(IF($A$7=Nutrients!$B$8,Nutrients!$EB$8,Nutrients!$EB$9)*AD$7)+(((IF($A$8=Nutrients!$B$79,Nutrients!$EB$79,(IF($A$8=Nutrients!$B$77,Nutrients!$EB$77,Nutrients!$EB$78)))))*AD$8))/2000","v":0.14799528018099922},{"$f":"(SUMPRODUCT(AE$9:AE$229,Nutrients!$EB$8:$EB$228)+(IF($A$7=Nutrients!$B$8,Nutrients!$EB$8,Nutrients!$EB$9)*AE$7)+(((IF($A$8=Nutrients!$B$79,Nutrients!$EB$79,(IF($A$8=Nutrients!$B$77,Nutrients!$EB$77,Nutrients!$EB$78)))))*AE$8))/2000","v":0.11199271847338445},{"$f":"(SUMPRODUCT(AF$9:AF$229,Nutrients!$EB$8:$EB$228)+(IF($A$7=Nutrients!$B$8,Nutrients!$EB$8,Nutrients!$EB$9)*AF$7)+(((IF($A$8=Nutrients!$B$79,Nutrients!$EB$79,(IF($A$8=Nutrients!$B$77,Nutrients!$EB$77,Nutrients!$EB$78)))))*AF$8))/2000","v":7.5550682695304947E-2},{"$f":"(SUMPRODUCT(AG$9:AG$229,Nutrients!$EB$8:$EB$228)+(IF($A$7=Nutrients!$B$8,Nutrients!$EB$8,Nutrients!$EB$9)*AG$7)+(((IF($A$8=Nutrients!$B$79,Nutrients!$EB$79,(IF($A$8=Nutrients!$B$77,Nutrients!$EB$77,Nutrients!$EB$78)))))*AG$8))/2000","v":4.6711309976245959E-2},{"$f":"(SUMPRODUCT(AH$9:AH$229,Nutrients!$EB$8:$EB$228)+(IF($A$7=Nutrients!$B$8,Nutrients!$EB$8,Nutrients!$EB$9)*AH$7)+(((IF($A$8=Nutrients!$B$79,Nutrients!$EB$79,(IF($A$8=Nutrients!$B$77,Nutrients!$EB$77,Nutrients!$EB$78)))))*AH$8))/2000","v":3.6954592012092856E-2},{"$f":"(SUMPRODUCT(AI$9:AI$229,Nutrients!$EB$8:$EB$228)+(IF($A$7=Nutrients!$B$8,Nutrients!$EB$8,Nutrients!$EB$9)*AI$7)+(((IF($A$8=Nutrients!$B$79,Nutrients!$EB$79,(IF($A$8=Nutrients!$B$77,Nutrients!$EB$77,Nutrients!$EB$78)))))*AI$8))/2000","v":9.0636415067427589E-2},null,{"$f":"(SUMPRODUCT(AK$9:AK$229,Nutrients!$EB$8:$EB$228)+(IF($A$7=Nutrients!$B$8,Nutrients!$EB$8,Nutrients!$EB$9)*AK$7)+(((IF($A$8=Nutrients!$B$79,Nutrients!$EB$79,(IF($A$8=Nutrients!$B$77,Nutrients!$EB$77,Nutrients!$EB$78)))))*AK$8))/2000","v":0.13095006608525694},{"$f":"(SUMPRODUCT(AL$9:AL$229,Nutrients!$EB$8:$EB$228)+(IF($A$7=Nutrients!$B$8,Nutrients!$EB$8,Nutrients!$EB$9)*AL$7)+(((IF($A$8=Nutrients!$B$79,Nutrients!$EB$79,(IF($A$8=Nutrients!$B$77,Nutrients!$EB$77,Nutrients!$EB$78)))))*AL$8))/2000","v":9.4672632092210621E-2},{"$f":"(SUMPRODUCT(AM$9:AM$229,Nutrients!$EB$8:$EB$228)+(IF($A$7=Nutrients!$B$8,Nutrients!$EB$8,Nutrients!$EB$9)*AM$7)+(((IF($A$8=Nutrients!$B$79,Nutrients!$EB$79,(IF($A$8=Nutrients!$B$77,Nutrients!$EB$77,Nutrients!$EB$78)))))*AM$8))/2000","v":5.8279841992765827E-2},{"$f":"(SUMPRODUCT(AN$9:AN$229,Nutrients!$EB$8:$EB$228)+(IF($A$7=Nutrients!$B$8,Nutrients!$EB$8,Nutrients!$EB$9)*AN$7)+(((IF($A$8=Nutrients!$B$79,Nutrients!$EB$79,(IF($A$8=Nutrients!$B$77,Nutrients!$EB$77,Nutrients!$EB$78)))))*AN$8))/2000","v":3.6092601071185858E-2},{"$f":"(SUMPRODUCT(AO$9:AO$229,Nutrients!$EB$8:$EB$228)+(IF($A$7=Nutrients!$B$8,Nutrients!$EB$8,Nutrients!$EB$9)*AO$7)+(((IF($A$8=Nutrients!$B$79,Nutrients!$EB$79,(IF($A$8=Nutrients!$B$77,Nutrients!$EB$77,Nutrients!$EB$78)))))*AO$8))/2000","v":3.2807409169449152E-2},{"$f":"(SUMPRODUCT(AP$9:AP$229,Nutrients!$EB$8:$EB$228)+(IF($A$7=Nutrients!$B$8,Nutrients!$EB$8,Nutrients!$EB$9)*AP$7)+(((IF($A$8=Nutrients!$B$79,Nutrients!$EB$79,(IF($A$8=Nutrients!$B$77,Nutrients!$EB$77,Nutrients!$EB$78)))))*AP$8))/2000","v":9.0636415067427589E-2},null,{"$f":"(SUMPRODUCT(AR$9:AR$229,Nutrients!$EB$8:$EB$228)+(IF($A$7=Nutrients!$B$8,Nutrients!$EB$8,Nutrients!$EB$9)*AR$7)+(((IF($A$8=Nutrients!$B$79,Nutrients!$EB$79,(IF($A$8=Nutrients!$B$77,Nutrients!$EB$77,Nutrients!$EB$78)))))*AR$8))/2000","v":0.11352324114706437},{"$f":"(SUMPRODUCT(AS$9:AS$229,Nutrients!$EB$8:$EB$228)+(IF($A$7=Nutrients!$B$8,Nutrients!$EB$8,Nutrients!$EB$9)*AS$7)+(((IF($A$8=Nutrients!$B$79,Nutrients!$EB$79,(IF($A$8=Nutrients!$B$77,Nutrients!$EB$77,Nutrients!$EB$78)))))*AS$8))/2000","v":7.7352709299284089E-2},{"$f":"(SUMPRODUCT(AT$9:AT$229,Nutrients!$EB$8:$EB$228)+(IF($A$7=Nutrients!$B$8,Nutrients!$EB$8,Nutrients!$EB$9)*AT$7)+(((IF($A$8=Nutrients!$B$79,Nutrients!$EB$79,(IF($A$8=Nutrients!$B$77,Nutrients!$EB$77,Nutrients!$EB$78)))))*AT$8))/2000","v":4.102215641472054E-2},{"$f":"(SUMPRODUCT(AU$9:AU$229,Nutrients!$EB$8:$EB$228)+(IF($A$7=Nutrients!$B$8,Nutrients!$EB$8,Nutrients!$EB$9)*AU$7)+(((IF($A$8=Nutrients!$B$79,Nutrients!$EB$79,(IF($A$8=Nutrients!$B$77,Nutrients!$EB$77,Nutrients!$EB$78)))))*AU$8))/2000","v":3.1922180558355391E-2},{"$f":"(SUMPRODUCT(AV$9:AV$229,Nutrients!$EB$8:$EB$228)+(IF($A$7=Nutrients!$B$8,Nutrients!$EB$8,Nutrients!$EB$9)*AV$7)+(((IF($A$8=Nutrients!$B$79,Nutrients!$EB$79,(IF($A$8=Nutrients!$B$77,Nutrients!$EB$77,Nutrients!$EB$78)))))*AV$8))/2000","v":2.8660688758533368E-2},{"$f":"(SUMPRODUCT(AW$9:AW$229,Nutrients!$EB$8:$EB$228)+(IF($A$7=Nutrients!$B$8,Nutrients!$EB$8,Nutrients!$EB$9)*AW$7)+(((IF($A$8=Nutrients!$B$79,Nutrients!$EB$79,(IF($A$8=Nutrients!$B$77,Nutrients!$EB$77,Nutrients!$EB$78)))))*AW$8))/2000","v":9.0636415067427589E-2}]
["Available P, %",{"$f":"IF((SUMPRODUCT(B$9:B$229,Nutrients!$EE$8:$EE$228))=0,B256,IF((SUMPRODUCT(B$9:B$229,Nutrients!$EE$8:$EE$228))>(1500*907),B256+0.14,B256+0.00000000006666*((SUMPRODUCT(B$9:B$229,Nutrients!$EE$8:$EE$228)/907))^3-0.00000023623322*((SUMPRODUCT(B$9:B$229,Nutrients!$EE$8:$EE$228)/907))^2+0.00029262722672*((SUMPRODUCT(B$9:B$229,Nutrients!$EE$8:$EE$228)/907))+0.007028328))","v":0.32997934872513002},{"$f":"IF((SUMPRODUCT(C$9:C$229,Nutrients!$EE$8:$EE$228))=0,C256,IF((SUMPRODUCT(C$9:C$229,Nutrients!$EE$8:$EE$228))>(1500*907),C256+0.14,C256+0.00000000006666*((SUMPRODUCT(C$9:C$229,Nutrients!$EE$8:$EE$228)/907))^3-0.00000023623322*((SUMPRODUCT(C$9:C$229,Nutrients!$EE$8:$EE$228)/907))^2+0.00029262722672*((SUMPRODUCT(C$9:C$229,Nutrients!$EE$8:$EE$228)/907))+0.007028328))","v":0.2938280501077728},{"$f":"IF((SUMPRODUCT(D$9:D$229,Nutrients!$EE$8:$EE$228))=0,D256,IF((SUMPRODUCT(D$9:D$229,Nutrients!$EE$8:$EE$228))>(1500*907),D256+0.14,D256+0.00000000006666*((SUMPRODUCT(D$9:D$229,Nutrients!$EE$8:$EE$228)/907))^3-0.00000023623322*((SUMPRODUCT(D$9:D$229,Nutrients!$EE$8:$EE$228)/907))^2+0.00029262722672*((SUMPRODUCT(D$9:D$229,Nutrients!$EE$8:$EE$228)/907))+0.007028328))","v":0.25723323108966256},{"$f":"IF((SUMPRODUCT(E$9:E$229,Nutrients!$EE$8:$EE$228))=0,E256,IF((SUMPRODUCT(E$9:E$229,Nutrients!$EE$8:$EE$228))>(1500*907),E256+0.14,E256+0.00000000006666*((SUMPRODUCT(E$9:E$229,Nutrients!$EE$8:$EE$228)/907))^3-0.00000023623322*((SUMPRODUCT(E$9:E$229,Nutrients!$EE$8:$EE$228)/907))^2+0.00029262722672*((SUMPRODUCT(E$9:E$229,Nutrients!$EE$8:$EE$228)/907))+0.007028328))","v":0.23099385529082681},{"$f":"IF((SUMPRODUCT(F$9:F$229,Nutrients!$EE$8:$EE$228))=0,F256,IF((SUMPRODUCT(F$9:F$229,Nutrients!$EE$8:$EE$228))>(1500*907),F256+0.14,F256+0.00000000006666*((SUMPRODUCT(F$9:F$229,Nutrients!$EE$8:$EE$228)/907))^3-0.00000023623322*((SUMPRODUCT(F$9:F$229,Nutrients!$EE$8:$EE$228)/907))^2+0.00029262722672*((SUMPRODUCT(F$9:F$229,Nutrients!$EE$8:$EE$228)/907))+0.007028328))","v":0.21168611916998004},{"$f":"IF((SUMPRODUCT(G$9:G$229,Nutrients!$EE$8:$EE$228))=0,G256,IF((SUMPRODUCT(G$9:G$229,Nutrients!$EE$8:$EE$228))>(1500*907),G256+0.14,G256+0.00000000006666*((SUMPRODUCT(G$9:G$229,Nutrients!$EE$8:$EE$228)/907))^3-0.00000023623322*((SUMPRODUCT(G$9:G$229,Nutrients!$EE$8:$EE$228)/907))^2+0.00029262722672*((SUMPRODUCT(G$9:G$229,Nutrients!$EE$8:$EE$228)/907))+0.007028328))","v":0.20325085553826028},null,{"$f":"IF((SUMPRODUCT(I$9:I$229,Nutrients!$EE$8:$EE$228))=0,I256,IF((SUMPRODUCT(I$9:I$229,Nutrients!$EE$8:$EE$228))>(1500*907),I256+0.14,I256+0.00000000006666*((SUMPRODUCT(I$9:I$229,Nutrients!$EE$8:$EE$228)/907))^3-0.00000023623322*((SUMPRODUCT(I$9:I$229,Nutrients!$EE$8:$EE$228)/907))^2+0.00029262722672*((SUMPRODUCT(I$9:I$229,Nutrients!$EE$8:$EE$228)/907))+0.007028328))","v":0.31256592467418676},{"$f":"IF((SUMPRODUCT(J$9:J$229,Nutrients!$EE$8:$EE$228))=0,J256,IF((SUMPRODUCT(J$9:J$229,Nutrients!$EE$8:$EE$228))>(1500*907),J256+0.14,J256+0.00000000006666*((SUMPRODUCT(J$9:J$229,Nutrients!$EE$8:$EE$228)/907))^3-0.00000023623322*((SUMPRODUCT(J$9:J$229,Nutrients!$EE$8:$EE$228)/907))^2+0.00029262722672*((SUMPRODUCT(J$9:J$229,Nutrients!$EE$8:$EE$228)/907))+0.007028328))","v":0.27648970486170377},{"$f":"IF((SUMPRODUCT(K$9:K$229,Nutrients!$EE$8:$EE$228))=0,K256,IF((SUMPRODUCT(K$9:K$229,Nutrients!$EE$8:$EE$228))>(1500*907),K256+0.14,K256+0.00000000006666*((SUMPRODUCT(K$9:K$229,Nutrients!$EE$8:$EE$228)/907))^3-0.00000023623322*((SUMPRODUCT(K$9:K$229,Nutrients!$EE$8:$EE$228)/907))^2+0.00029262722672*((SUMPRODUCT(K$9:K$229,Nutrients!$EE$8:$EE$228)/907))+0.007028328))","v":0.23995664593952251},{"$f":"IF((SUMPRODUCT(L$9:L$229,Nutrients!$EE$8:$EE$228))=0,L256,IF((SUMPRODUCT(L$9:L$229,Nutrients!$EE$8:$EE$228))>(1500*907),L256+0.14,L256+0.00000000006666*((SUMPRODUCT(L$9:L$229,Nutrients!$EE$8:$EE$228)/907))^3-0.00000023623322*((SUMPRODUCT(L$9:L$229,Nutrients!$EE$8:$EE$228)/907))^2+0.00029262722672*((SUMPRODUCT(L$9:L$229,Nutrients!$EE$8:$EE$228)/907))+0.007028328))","v":0.21102986184901731},{"$f":"IF((SUMPRODUCT(M$9:M$229,Nutrients!$EE$8:$EE$228))=0,M256,IF((SUMPRODUCT(M$9:M$229,Nutrients!$EE$8:$EE$228))>(1500*907),M256+0.14,M256+0.00000000006666*((SUMPRODUCT(M$9:M$229,Nutrients!$EE$8:$EE$228)/907))^3-0.00000023623322*((SUMPRODUCT(M$9:M$229,Nutrients!$EE$8:$EE$228)/907))^2+0.00029262722672*((SUMPRODUCT(M$9:M$229,Nutrients!$EE$8:$EE$228)/907))+0.007028328))","v":0.19252446536472642},{"$f":"IF((SUMPRODUCT(N$9:N$229,Nutrients!$EE$8:$EE$228))=0,N256,IF((SUMPRODUCT(N$9:N$229,Nutrients!$EE$8:$EE$228))>(1500*907),N256+0.14,N256+0.00000000006666*((SUMPRODUCT(N$9:N$229,Nutrients!$EE$8:$EE$228)/907))^3-0.00000023623322*((SUMPRODUCT(N$9:N$229,Nutrients!$EE$8:$EE$228)/907))^2+0.00029262722672*((SUMPRODUCT(N$9:N$229,Nutrients!$EE$8:$EE$228)/907))+0.007028328))","v":0.20325085553826028},null,{"$f":"IF((SUMPRODUCT(P$9:P$229,Nutrients!$EE$8:$EE$228))=0,P256,IF((SUMPRODUCT(P$9:P$229,Nutrients!$EE$8:$EE$228))>(1500*907),P256+0.14,P256+0.00000000006666*((SUMPRODUCT(P$9:P$229,Nutrients!$EE$8:$EE$228)/907))^3-0.00000023623322*((SUMPRODUCT(P$9:P$229,Nutrients!$EE$8:$EE$228)/907))^2+0.00029262722672*((SUMPRODUCT(P$9:P$229,Nutrients!$EE$8:$EE$228)/907))+0.007028328))","v":0.29524886657303751},{"$f":"IF((SUMPRODUCT(Q$9:Q$229,Nutrients!$EE$8:$EE$228))=0,Q256,IF((SUMPRODUCT(Q$9:Q$229,Nutrients!$EE$8:$EE$228))>(1500*907),Q256+0.14,Q256+0.00000000006666*((SUMPRODUCT(Q$9:Q$229,Nutrients!$EE$8:$EE$228)/907))^3-0.00000023623322*((SUMPRODUCT(Q$9:Q$229,Nutrients!$EE$8:$EE$228)/907))^2+0.00029262722672*((SUMPRODUCT(Q$9:Q$229,Nutrients!$EE$8:$EE$228)/907))+0.007028328))","v":0.25921823506411001},{"$f":"IF((SUMPRODUCT(R$9:R$229,Nutrients!$EE$8:$EE$228))=0,R256,IF((SUMPRODUCT(R$9:R$229,Nutrients!$EE$8:$EE$228))>(1500*907),R256+0.14,R256+0.00000000006666*((SUMPRODUCT(R$9:R$229,Nutrients!$EE$8:$EE$228)/907))^3-0.00000023623322*((SUMPRODUCT(R$9:R$229,Nutrients!$EE$8:$EE$228)/907))^2+0.00029262722672*((SUMPRODUCT(R$9:R$229,Nutrients!$EE$8:$EE$228)/907))+0.007028328))","v":0.22273403752265483},{"$f":"IF((SUMPRODUCT(S$9:S$229,Nutrients!$EE$8:$EE$228))=0,S256,IF((SUMPRODUCT(S$9:S$229,Nutrients!$EE$8:$EE$228))>(1500*907),S256+0.14,S256+0.00000000006666*((SUMPRODUCT(S$9:S$229,Nutrients!$EE$8:$EE$228)/907))^3-0.00000023623322*((SUMPRODUCT(S$9:S$229,Nutrients!$EE$8:$EE$228)/907))^2+0.00029262722672*((SUMPRODUCT(S$9:S$229,Nutrients!$EE$8:$EE$228)/907))+0.007028328))","v":0.19378453600998458},{"$f":"IF((SUMPRODUCT(T$9:T$229,Nutrients!$EE$8:$EE$228))=0,T256,IF((SUMPRODUCT(T$9:T$229,Nutrients!$EE$8:$EE$228))>(1500*907),T256+0.14,T256+0.00000000006666*((SUMPRODUCT(T$9:T$229,Nutrients!$EE$8:$EE$228)/907))^3-0.00000023623322*((SUMPRODUCT(T$9:T$229,Nutrients!$EE$8:$EE$228)/907))^2+0.00029262722672*((SUMPRODUCT(T$9:T$229,Nutrients!$EE$8:$EE$228)/907))+0.007028328))","v":0.17531682312665503},{"$f":"IF((SUMPRODUCT(U$9:U$229,Nutrients!$EE$8:$EE$228))=0,U256,IF((SUMPRODUCT(U$9:U$229,Nutrients!$EE$8:$EE$228))>(1500*907),U256+0.14,U256+0.00000000006666*((SUMPRODUCT(U$9:U$229,Nutrients!$EE$8:$EE$228)/907))^3-0.00000023623322*((SUMPRODUCT(U$9:U$229,Nutrients!$EE$8:$EE$228)/907))^2+0.00029262722672*((SUMPRODUCT(U$9:U$229,Nutrients!$EE$8:$EE$228)/907))+0.007028328))","v":0.20325085553826028},null,{"$f":"IF((SUMPRODUCT(W$9:W$229,Nutrients!$EE$8:$EE$228))=0,W256,IF((SUMPRODUCT(W$9:W$229,Nutrients!$EE$8:$EE$228))>(1500*907),W256+0.14,W256+0.00000000006666*((SUMPRODUCT(W$9:W$229,Nutrients!$EE$8:$EE$228)/907))^3-0.00000023623322*((SUMPRODUCT(W$9:W$229,Nutrients!$EE$8:$EE$228)/907))^2+0.00029262722672*((SUMPRODUCT(W$9:W$229,Nutrients!$EE$8:$EE$228)/907))+0.007028328))","v":0.27793219797519109},{"$f":"IF((SUMPRODUCT(X$9:X$229,Nutrients!$EE$8:$EE$228))=0,X256,IF((SUMPRODUCT(X$9:X$229,Nutrients!$EE$8:$EE$228))>(1500*907),X256+0.14,X256+0.00000000006666*((SUMPRODUCT(X$9:X$229,Nutrients!$EE$8:$EE$228)/907))^3-0.00000023623322*((SUMPRODUCT(X$9:X$229,Nutrients!$EE$8:$EE$228)/907))^2+0.00029262722672*((SUMPRODUCT(X$9:X$229,Nutrients!$EE$8:$EE$228)/907))+0.007028328))","v":0.24194755410569316},{"$f":"IF((SUMPRODUCT(Y$9:Y$229,Nutrients!$EE$8:$EE$228))=0,Y256,IF((SUMPRODUCT(Y$9:Y$229,Nutrients!$EE$8:$EE$228))>(1500*907),Y256+0.14,Y256+0.00000000006666*((SUMPRODUCT(Y$9:Y$229,Nutrients!$EE$8:$EE$228)/907))^3-0.00000023623322*((SUMPRODUCT(Y$9:Y$229,Nutrients!$EE$8:$EE$228)/907))^2+0.00029262722672*((SUMPRODUCT(Y$9:Y$229,Nutrients!$EE$8:$EE$228)/907))+0.007028328))","v":0.20544120578511452},{"$f":"IF((SUMPRODUCT(Z$9:Z$229,Nutrients!$EE$8:$EE$228))=0,Z256,IF((SUMPRODUCT(Z$9:Z$229,Nutrients!$EE$8:$EE$228))>(1500*907),Z256+0.14,Z256+0.00000000006666*((SUMPRODUCT(Z$9:Z$229,Nutrients!$EE$8:$EE$228)/907))^3-0.00000023623322*((SUMPRODUCT(Z$9:Z$229,Nutrients!$EE$8:$EE$228)/907))^2+0.00029262722672*((SUMPRODUCT(Z$9:Z$229,Nutrients!$EE$8:$EE$228)/907))+0.007028328))","v":0.17655702737387471},{"$f":"IF((SUMPRODUCT(AA$9:AA$229,Nutrients!$EE$8:$EE$228))=0,AA256,IF((SUMPRODUCT(AA$9:AA$229,Nutrients!$EE$8:$EE$228))>(1500*907),AA256+0.14,AA256+0.00000000006666*((SUMPRODUCT(AA$9:AA$229,Nutrients!$EE$8:$EE$228)/907))^3-0.00000023623322*((SUMPRODUCT(AA$9:AA$229,Nutrients!$EE$8:$EE$228)/907))^2+0.00029262722672*((SUMPRODUCT(AA$9:AA$229,Nutrients!$EE$8:$EE$228)/907))+0.007028328))","v":0.15811379706127671},{"$f":"IF((SUMPRODUCT(AB$9:AB$229,Nutrients!$EE$8:$EE$228))=0,AB256,IF((SUMPRODUCT(AB$9:AB$229,Nutrients!$EE$8:$EE$228))>(1500*907),AB256+0.14,AB256+0.00000000006666*((SUMPRODUCT(AB$9:AB$229,Nutrients!$EE$8:$EE$228)/907))^3-0.00000023623322*((SUMPRODUCT(AB$9:AB$229,Nutrients!$EE$8:$EE$228)/907))^2+0.00029262722672*((SUMPRODUCT(AB$9:AB$229,Nutrients!$EE$8:$EE$228)/907))+0.007028328))","v":0.20325085553826028},null,{"$f":"IF((SUMPRODUCT(AD$9:AD$229,Nutrients!$EE$8:$EE$228))=0,AD256,IF((SUMPRODUCT(AD$9:AD$229,Nutrients!$EE$8:$EE$228))>(1500*907),AD256+0.14,AD256+0.00000000006666*((SUMPRODUCT(AD$9:AD$229,Nutrients!$EE$8:$EE$228)/907))^3-0.00000023623322*((SUMPRODUCT(AD$9:AD$229,Nutrients!$EE$8:$EE$228)/907))^2+0.00029262722672*((SUMPRODUCT(AD$9:AD$229,Nutrients!$EE$8:$EE$228)/907))+0.007028328))","v":0.26060972065183186},{"$f":"IF((SUMPRODUCT(AE$9:AE$229,Nutrients!$EE$8:$EE$228))=0,AE256,IF((SUMPRODUCT(AE$9:AE$229,Nutrients!$EE$8:$EE$228))>(1500*907),AE256+0.14,AE256+0.00000000006666*((SUMPRODUCT(AE$9:AE$229,Nutrients!$EE$8:$EE$228)/907))^3-0.00000023623322*((SUMPRODUCT(AE$9:AE$229,Nutrients!$EE$8:$EE$228)/907))^2+0.00029262722672*((SUMPRODUCT(AE$9:AE$229,Nutrients!$EE$8:$EE$228)/907))+0.007028328))","v":0.22460715894421715},{"$f":"IF((SUMPRODUCT(AF$9:AF$229,Nutrients!$EE$8:$EE$228))=0,AF256,IF((SUMPRODUCT(AF$9:AF$229,Nutrients!$EE$8:$EE$228))>(1500*907),AF256+0.14,AF256+0.00000000006666*((SUMPRODUCT(AF$9:AF$229,Nutrients!$EE$8:$EE$228)/907))^3-0.00000023623322*((SUMPRODUCT(AF$9:AF$229,Nutrients!$EE$8:$EE$228)/907))^2+0.00029262722672*((SUMPRODUCT(AF$9:AF$229,Nutrients!$EE$8:$EE$228)/907))+0.007028328))","v":0.18816512316613762},{"$f":"IF((SUMPRODUCT(AG$9:AG$229,Nutrients!$EE$8:$EE$228))=0,AG256,IF((SUMPRODUCT(AG$9:AG$229,Nutrients!$EE$8:$EE$228))>(1500*907),AG256+0.14,AG256+0.00000000006666*((SUMPRODUCT(AG$9:AG$229,Nutrients!$EE$8:$EE$228)/907))^3-0.00000023623322*((SUMPRODUCT(AG$9:AG$229,Nutrients!$EE$8:$EE$228)/907))^2+0.00029262722672*((SUMPRODUCT(AG$9:AG$229,Nutrients!$EE$8:$EE$228)/907))+0.007028328))","v":0.15932575044707864},{"$f":"IF((SUMPRODUCT(AH$9:AH$229,Nutrients!$EE$8:$EE$228))=0,AH256,IF((SUMPRODUCT(AH$9:AH$229,Nutrients!$EE$8:$EE$228))>(1500*907),AH256+0.14,AH256+0.00000000006666*((SUMPRODUCT(AH$9:AH$229,Nutrients!$EE$8:$EE$228)/907))^3-0.00000023623322*((SUMPRODUCT(AH$9:AH$229,Nutrients!$EE$8:$EE$228)/907))^2+0.00029262722672*((SUMPRODUCT(AH$9:AH$229,Nutrients!$EE$8:$EE$228)/907))+0.007028328))","v":0.14956903248292555},{"$f":"IF((SUMPRODUCT(AI$9:AI$229,Nutrients!$EE$8:$EE$228))=0,AI256,IF((SUMPRODUCT(AI$9:AI$229,Nutrients!$EE$8:$EE$228))>(1500*907),AI256+0.14,AI256+0.00000000006666*((SUMPRODUCT(AI$9:AI$229,Nutrients!$EE$8:$EE$228)/907))^3-0.00000023623322*((SUMPRODUCT(AI$9:AI$229,Nutrients!$EE$8:$EE$228)/907))^2+0.00029262722672*((SUMPRODUCT(AI$9:AI$229,Nutrients!$EE$8:$EE$228)/907))+0.007028328))","v":0.20325085553826028},null,{"$f":"IF((SUMPRODUCT(AK$9:AK$229,Nutrients!$EE$8:$EE$228))=0,AK256,IF((SUMPRODUCT(AK$9:AK$229,Nutrients!$EE$8:$EE$228))>(1500*907),AK256+0.14,AK256+0.00000000006666*((SUMPRODUCT(AK$9:AK$229,Nutrients!$EE$8:$EE$228)/907))^3-0.00000023623322*((SUMPRODUCT(AK$9:AK$229,Nutrients!$EE$8:$EE$228)/907))^2+0.00029262722672*((SUMPRODUCT(AK$9:AK$229,Nutrients!$EE$8:$EE$228)/907))+0.007028328))","v":0.2435645065560896},{"$f":"IF((SUMPRODUCT(AL$9:AL$229,Nutrients!$EE$8:$EE$228))=0,AL256,IF((SUMPRODUCT(AL$9:AL$229,Nutrients!$EE$8:$EE$228))>(1500*907),AL256+0.14,AL256+0.00000000006666*((SUMPRODUCT(AL$9:AL$229,Nutrients!$EE$8:$EE$228)/907))^3-0.00000023623322*((SUMPRODUCT(AL$9:AL$229,Nutrients!$EE$8:$EE$228)/907))^2+0.00029262722672*((SUMPRODUCT(AL$9:AL$229,Nutrients!$EE$8:$EE$228)/907))+0.007028328))","v":0.20728707256304332},{"$f":"IF((SUMPRODUCT(AM$9:AM$229,Nutrients!$EE$8:$EE$228))=0,AM256,IF((SUMPRODUCT(AM$9:AM$229,Nutrients!$EE$8:$EE$228))>(1500*907),AM256+0.14,AM256+0.00000000006666*((SUMPRODUCT(AM$9:AM$229,Nutrients!$EE$8:$EE$228)/907))^3-0.00000023623322*((SUMPRODUCT(AM$9:AM$229,Nutrients!$EE$8:$EE$228)/907))^2+0.00029262722672*((SUMPRODUCT(AM$9:AM$229,Nutrients!$EE$8:$EE$228)/907))+0.007028328))","v":0.17089428246359853},{"$f":"IF((SUMPRODUCT(AN$9:AN$229,Nutrients!$EE$8:$EE$228))=0,AN256,IF((SUMPRODUCT(AN$9:AN$229,Nutrients!$EE$8:$EE$228))>(1500*907),AN256+0.14,AN256+0.00000000006666*((SUMPRODUCT(AN$9:AN$229,Nutrients!$EE$8:$EE$228)/907))^3-0.00000023623322*((SUMPRODUCT(AN$9:AN$229,Nutrients!$EE$8:$EE$228)/907))^2+0.00029262722672*((SUMPRODUCT(AN$9:AN$229,Nutrients!$EE$8:$EE$228)/907))+0.007028328))","v":0.14870704154201855},{"$f":"IF((SUMPRODUCT(AO$9:AO$229,Nutrients!$EE$8:$EE$228))=0,AO256,IF((SUMPRODUCT(AO$9:AO$229,Nutrients!$EE$8:$EE$228))>(1500*907),AO256+0.14,AO256+0.00000000006666*((SUMPRODUCT(AO$9:AO$229,Nutrients!$EE$8:$EE$228)/907))^3-0.00000023623322*((SUMPRODUCT(AO$9:AO$229,Nutrients!$EE$8:$EE$228)/907))^2+0.00029262722672*((SUMPRODUCT(AO$9:AO$229,Nutrients!$EE$8:$EE$228)/907))+0.007028328))","v":0.14542184964028185},{"$f":"IF((SUMPRODUCT(AP$9:AP$229,Nutrients!$EE$8:$EE$228))=0,AP256,IF((SUMPRODUCT(AP$9:AP$229,Nutrients!$EE$8:$EE$228))>(1500*907),AP256+0.14,AP256+0.00000000006666*((SUMPRODUCT(AP$9:AP$229,Nutrients!$EE$8:$EE$228)/907))^3-0.00000023623322*((SUMPRODUCT(AP$9:AP$229,Nutrients!$EE$8:$EE$228)/907))^2+0.00029262722672*((SUMPRODUCT(AP$9:AP$229,Nutrients!$EE$8:$EE$228)/907))+0.007028328))","v":0.20325085553826028},null,{"$f":"IF((SUMPRODUCT(AR$9:AR$229,Nutrients!$EE$8:$EE$228))=0,AR256,IF((SUMPRODUCT(AR$9:AR$229,Nutrients!$EE$8:$EE$228))>(1500*907),AR256+0.14,AR256+0.00000000006666*((SUMPRODUCT(AR$9:AR$229,Nutrients!$EE$8:$EE$228)/907))^3-0.00000023623322*((SUMPRODUCT(AR$9:AR$229,Nutrients!$EE$8:$EE$228)/907))^2+0.00029262722672*((SUMPRODUCT(AR$9:AR$229,Nutrients!$EE$8:$EE$228)/907))+0.007028328))","v":0.22613768161789707},{"$f":"IF((SUMPRODUCT(AS$9:AS$229,Nutrients!$EE$8:$EE$228))=0,AS256,IF((SUMPRODUCT(AS$9:AS$229,Nutrients!$EE$8:$EE$228))>(1500*907),AS256+0.14,AS256+0.00000000006666*((SUMPRODUCT(AS$9:AS$229,Nutrients!$EE$8:$EE$228)/907))^3-0.00000023623322*((SUMPRODUCT(AS$9:AS$229,Nutrients!$EE$8:$EE$228)/907))^2+0.00029262722672*((SUMPRODUCT(AS$9:AS$229,Nutrients!$EE$8:$EE$228)/907))+0.007028328))","v":0.18996714977011678},{"$f":"IF((SUMPRODUCT(AT$9:AT$229,Nutrients!$EE$8:$EE$228))=0,AT256,IF((SUMPRODUCT(AT$9:AT$229,Nutrients!$EE$8:$EE$228))>(1500*907),AT256+0.14,AT256+0.00000000006666*((SUMPRODUCT(AT$9:AT$229,Nutrients!$EE$8:$EE$228)/907))^3-0.00000023623322*((SUMPRODUCT(AT$9:AT$229,Nutrients!$EE$8:$EE$228)/907))^2+0.00029262722672*((SUMPRODUCT(AT$9:AT$229,Nutrients!$EE$8:$EE$228)/907))+0.007028328))","v":0.15363659688555323},{"$f":"IF((SUMPRODUCT(AU$9:AU$229,Nutrients!$EE$8:$EE$228))=0,AU256,IF((SUMPRODUCT(AU$9:AU$229,Nutrients!$EE$8:$EE$228))>(1500*907),AU256+0.14,AU256+0.00000000006666*((SUMPRODUCT(AU$9:AU$229,Nutrients!$EE$8:$EE$228)/907))^3-0.00000023623322*((SUMPRODUCT(AU$9:AU$229,Nutrients!$EE$8:$EE$228)/907))^2+0.00029262722672*((SUMPRODUCT(AU$9:AU$229,Nutrients!$EE$8:$EE$228)/907))+0.007028328))","v":0.14453662102918807},{"$f":"IF((SUMPRODUCT(AV$9:AV$229,Nutrients!$EE$8:$EE$228))=0,AV256,IF((SUMPRODUCT(AV$9:AV$229,Nutrients!$EE$8:$EE$228))>(1500*907),AV256+0.14,AV256+0.00000000006666*((SUMPRODUCT(AV$9:AV$229,Nutrients!$EE$8:$EE$228)/907))^3-0.00000023623322*((SUMPRODUCT(AV$9:AV$229,Nutrients!$EE$8:$EE$228)/907))^2+0.00029262722672*((SUMPRODUCT(AV$9:AV$229,Nutrients!$EE$8:$EE$228)/907))+0.007028328))","v":0.14127512922936605},{"$f":"IF((SUMPRODUCT(AW$9:AW$229,Nutrients!$EE$8:$EE$228))=0,AW256,IF((SUMPRODUCT(AW$9:AW$229,Nutrients!$EE$8:$EE$228))>(1500*907),AW256+0.14,AW256+0.00000000006666*((SUMPRODUCT(AW$9:AW$229,Nutrients!$EE$8:$EE$228)/907))^3-0.00000023623322*((SUMPRODUCT(AW$9:AW$229,Nutrients!$EE$8:$EE$228)/907))^2+0.00029262722672*((SUMPRODUCT(AW$9:AW$229,Nutrients!$EE$8:$EE$228)/907))+0.007028328))","v":0.20325085553826028}]
["Avail P:calorie ratio g/mcal",{"$f":"IF(B$5=\"\",\"\",(B257)/(B246*2.2046)*10000)","v":1.0033088419067715},0.89010895745377694,0.77668715413339373,0.69541943453482424,0.63585195401614236,0.60998469661164556,null,{"$f":"IF(I$5=\"\",\"\",(I257)/(I246*2.2046)*10000)","v":0.94817795366630575},0.83569789088214974,0.72290914957302121,0.63377745380668538,0.57693609433714177,0.60998469661164556,null,{"$f":"IF(P$5=\"\",\"\",(P257)/(P246*2.2046)*10000)","v":0.8936296551475581},0.78174138498824974,0.66954066706953008,0.58069992450238961,0.52419130907420475,0.60998469661164556,null,{"$f":"IF(W$5=\"\",\"\",(W257)/(W246*2.2046)*10000)","v":0.83931345157352166},0.72801966889261061,0.61617178725534494,0.52789236909418391,0.47168071709457926,0.60998469661164556,null,{"$f":"IF(AD$5=\"\",\"\",(AD257)/(AD246*2.2046)*10000)","v":0.78523193127857249},0.67432532779094589,0.56310654866349152,0.47529395287466303,0.44544004858701058,0.60998469661164556,null,{"$f":"IF(AK$5=\"\",\"\",(AK257)/(AK246*2.2046)*10000)","v":0.73227701971379644},0.62092861203666116,0.51025026311403932,0.44280658729353678,0.43248194183511252,0.60998469661164556,null,{"$f":"IF(AR$5=\"\",\"\",(AR257)/(AR246*2.2046)*10000)","v":0.67833839562208609},0.5677774117081692,0.45768216214136442,0.42978504462169614,0.41956300812847991,0.60998469661164556]
["Stand. Dig. P w/out phytase, %",{"$f":"((SUMPRODUCT(B$9:B$229,Nutrients!$DR$8:$DR$228)+(IF($A$7=Nutrients!$B$8,Nutrients!$DR$8,Nutrients!$DR$9)*B$7)+(((IF($A$8=Nutrients!$B$79,Nutrients!$DR$79,(IF($A$8=Nutrients!$B$77,Nutrients!$DR$77,Nutrients!$DR$78)))))*B$8))/2000)","v":0.28998961246592625},{"$f":"((SUMPRODUCT(C$9:C$229,Nutrients!$DR$8:$DR$228)+(IF($A$7=Nutrients!$B$8,Nutrients!$DR$8,Nutrients!$DR$9)*C$7)+(((IF($A$8=Nutrients!$B$79,Nutrients!$DR$79,(IF($A$8=Nutrients!$B$77,Nutrients!$DR$77,Nutrients!$DR$78)))))*C$8))/2000)","v":0.25045553392749997},{"$f":"((SUMPRODUCT(D$9:D$229,Nutrients!$DR$8:$DR$228)+(IF($A$7=Nutrients!$B$8,Nutrients!$DR$8,Nutrients!$DR$9)*D$7)+(((IF($A$8=Nutrients!$B$79,Nutrients!$DR$79,(IF($A$8=Nutrients!$B$77,Nutrients!$DR$77,Nutrients!$DR$78)))))*D$8))/2000)","v":0.21159356316179678},{"$f":"((SUMPRODUCT(E$9:E$229,Nutrients!$DR$8:$DR$228)+(IF($A$7=Nutrients!$B$8,Nutrients!$DR$8,Nutrients!$DR$9)*E$7)+(((IF($A$8=Nutrients!$B$79,Nutrients!$DR$79,(IF($A$8=Nutrients!$B$77,Nutrients!$DR$77,Nutrients!$DR$78)))))*E$8))/2000)","v":0.18289955187368459},{"$f":"((SUMPRODUCT(F$9:F$229,Nutrients!$DR$8:$DR$228)+(IF($A$7=Nutrients!$B$8,Nutrients!$DR$8,Nutrients!$DR$9)*F$7)+(((IF($A$8=Nutrients!$B$79,Nutrients!$DR$79,(IF($A$8=Nutrients!$B$77,Nutrients!$DR$77,Nutrients!$DR$78)))))*F$8))/2000)","v":0.16219699119534683},{"$f":"((SUMPRODUCT(G$9:G$229,Nutrients!$DR$8:$DR$228)+(IF($A$7=Nutrients!$B$8,Nutrients!$DR$8,Nutrients!$DR$9)*G$7)+(((IF($A$8=Nutrients!$B$79,Nutrients!$DR$79,(IF($A$8=Nutrients!$B$77,Nutrients!$DR$77,Nutrients!$DR$78)))))*G$8))/2000)","v":0.15287313523350393},null,{"$f":"((SUMPRODUCT(I$9:I$229,Nutrients!$DR$8:$DR$228)+(IF($A$7=Nutrients!$B$8,Nutrients!$DR$8,Nutrients!$DR$9)*I$7)+(((IF($A$8=Nutrients!$B$79,Nutrients!$DR$79,(IF($A$8=Nutrients!$B$77,Nutrients!$DR$77,Nutrients!$DR$78)))))*I$8))/2000)","v":0.28996134729698325},{"$f":"((SUMPRODUCT(J$9:J$229,Nutrients!$DR$8:$DR$228)+(IF($A$7=Nutrients!$B$8,Nutrients!$DR$8,Nutrients!$DR$9)*J$7)+(((IF($A$8=Nutrients!$B$79,Nutrients!$DR$79,(IF($A$8=Nutrients!$B$77,Nutrients!$DR$77,Nutrients!$DR$78)))))*J$8))/2000)","v":0.2505762930480056},{"$f":"((SUMPRODUCT(K$9:K$229,Nutrients!$DR$8:$DR$228)+(IF($A$7=Nutrients!$B$8,Nutrients!$DR$8,Nutrients!$DR$9)*K$7)+(((IF($A$8=Nutrients!$B$79,Nutrients!$DR$79,(IF($A$8=Nutrients!$B$77,Nutrients!$DR$77,Nutrients!$DR$78)))))*K$8))/2000)","v":0.21183692421033332},{"$f":"((SUMPRODUCT(L$9:L$229,Nutrients!$DR$8:$DR$228)+(IF($A$7=Nutrients!$B$8,Nutrients!$DR$8,Nutrients!$DR$9)*L$7)+(((IF($A$8=Nutrients!$B$79,Nutrients!$DR$79,(IF($A$8=Nutrients!$B$77,Nutrients!$DR$77,Nutrients!$DR$78)))))*L$8))/2000)","v":0.18082505581613378},{"$f":"((SUMPRODUCT(M$9:M$229,Nutrients!$DR$8:$DR$228)+(IF($A$7=Nutrients!$B$8,Nutrients!$DR$8,Nutrients!$DR$9)*M$7)+(((IF($A$8=Nutrients!$B$79,Nutrients!$DR$79,(IF($A$8=Nutrients!$B$77,Nutrients!$DR$77,Nutrients!$DR$78)))))*M$8))/2000)","v":0.16082465595917891},{"$f":"((SUMPRODUCT(N$9:N$229,Nutrients!$DR$8:$DR$228)+(IF($A$7=Nutrients!$B$8,Nutrients!$DR$8,Nutrients!$DR$9)*N$7)+(((IF($A$8=Nutrients!$B$79,Nutrients!$DR$79,(IF($A$8=Nutrients!$B$77,Nutrients!$DR$77,Nutrients!$DR$78)))))*N$8))/2000)","v":0.15287313523350393},null,{"$f":"((SUMPRODUCT(P$9:P$229,Nutrients!$DR$8:$DR$228)+(IF($A$7=Nutrients!$B$8,Nutrients!$DR$8,Nutrients!$DR$9)*P$7)+(((IF($A$8=Nutrients!$B$79,Nutrients!$DR$79,(IF($A$8=Nutrients!$B$77,Nutrients!$DR$77,Nutrients!$DR$78)))))*P$8))/2000)","v":0.29012418344337004},{"$f":"((SUMPRODUCT(Q$9:Q$229,Nutrients!$DR$8:$DR$228)+(IF($A$7=Nutrients!$B$8,Nutrients!$DR$8,Nutrients!$DR$9)*Q$7)+(((IF($A$8=Nutrients!$B$79,Nutrients!$DR$79,(IF($A$8=Nutrients!$B$77,Nutrients!$DR$77,Nutrients!$DR$78)))))*Q$8))/2000)","v":0.25082971441109625},{"$f":"((SUMPRODUCT(R$9:R$229,Nutrients!$DR$8:$DR$228)+(IF($A$7=Nutrients!$B$8,Nutrients!$DR$8,Nutrients!$DR$9)*R$7)+(((IF($A$8=Nutrients!$B$79,Nutrients!$DR$79,(IF($A$8=Nutrients!$B$77,Nutrients!$DR$77,Nutrients!$DR$78)))))*R$8))/2000)","v":0.21218755388888752},{"$f":"((SUMPRODUCT(S$9:S$229,Nutrients!$DR$8:$DR$228)+(IF($A$7=Nutrients!$B$8,Nutrients!$DR$8,Nutrients!$DR$9)*S$7)+(((IF($A$8=Nutrients!$B$79,Nutrients!$DR$79,(IF($A$8=Nutrients!$B$77,Nutrients!$DR$77,Nutrients!$DR$78)))))*S$8))/2000)","v":0.18113051182286444},{"$f":"((SUMPRODUCT(T$9:T$229,Nutrients!$DR$8:$DR$228)+(IF($A$7=Nutrients!$B$8,Nutrients!$DR$8,Nutrients!$DR$9)*T$7)+(((IF($A$8=Nutrients!$B$79,Nutrients!$DR$79,(IF($A$8=Nutrients!$B$77,Nutrients!$DR$77,Nutrients!$DR$78)))))*T$8))/2000)","v":0.16120369003742432},{"$f":"((SUMPRODUCT(U$9:U$229,Nutrients!$DR$8:$DR$228)+(IF($A$7=Nutrients!$B$8,Nutrients!$DR$8,Nutrients!$DR$9)*U$7)+(((IF($A$8=Nutrients!$B$79,Nutrients!$DR$79,(IF($A$8=Nutrients!$B$77,Nutrients!$DR$77,Nutrients!$DR$78)))))*U$8))/2000)","v":0.15287313523350393},null,{"$f":"((SUMPRODUCT(W$9:W$229,Nutrients!$DR$8:$DR$228)+(IF($A$7=Nutrients!$B$8,Nutrients!$DR$8,Nutrients!$DR$9)*W$7)+(((IF($A$8=Nutrients!$B$79,Nutrients!$DR$79,(IF($A$8=Nutrients!$B$77,Nutrients!$DR$77,Nutrients!$DR$78)))))*W$8))/2000)","v":0.29028805671684177},{"$f":"((SUMPRODUCT(X$9:X$229,Nutrients!$DR$8:$DR$228)+(IF($A$7=Nutrients!$B$8,Nutrients!$DR$8,Nutrients!$DR$9)*X$7)+(((IF($A$8=Nutrients!$B$79,Nutrients!$DR$79,(IF($A$8=Nutrients!$B$77,Nutrients!$DR$77,Nutrients!$DR$78)))))*X$8))/2000)","v":0.25108505561358324},{"$f":"((SUMPRODUCT(Y$9:Y$229,Nutrients!$DR$8:$DR$228)+(IF($A$7=Nutrients!$B$8,Nutrients!$DR$8,Nutrients!$DR$9)*Y$7)+(((IF($A$8=Nutrients!$B$79,Nutrients!$DR$79,(IF($A$8=Nutrients!$B$77,Nutrients!$DR$77,Nutrients!$DR$78)))))*Y$8))/2000)","v":0.21239875544994724},{"$f":"((SUMPRODUCT(Z$9:Z$229,Nutrients!$DR$8:$DR$228)+(IF($A$7=Nutrients!$B$8,Nutrients!$DR$8,Nutrients!$DR$9)*Z$7)+(((IF($A$8=Nutrients!$B$79,Nutrients!$DR$79,(IF($A$8=Nutrients!$B$77,Nutrients!$DR$77,Nutrients!$DR$78)))))*Z$8))/2000)","v":0.18147125879298556},{"$f":"((SUMPRODUCT(AA$9:AA$229,Nutrients!$DR$8:$DR$228)+(IF($A$7=Nutrients!$B$8,Nutrients!$DR$8,Nutrients!$DR$9)*AA$7)+(((IF($A$8=Nutrients!$B$79,Nutrients!$DR$79,(IF($A$8=Nutrients!$B$77,Nutrients!$DR$77,Nutrients!$DR$78)))))*AA$8))/2000)","v":0.16159183446294448},{"$f":"((SUMPRODUCT(AB$9:AB$229,Nutrients!$DR$8:$DR$228)+(IF($A$7=Nutrients!$B$8,Nutrients!$DR$8,Nutrients!$DR$9)*AB$7)+(((IF($A$8=Nutrients!$B$79,Nutrients!$DR$79,(IF($A$8=Nutrients!$B$77,Nutrients!$DR$77,Nutrients!$DR$78)))))*AB$8))/2000)","v":0.15287313523350393},null,{"$f":"((SUMPRODUCT(AD$9:AD$229,Nutrients!$DR$8:$DR$228)+(IF($A$7=Nutrients!$B$8,Nutrients!$DR$8,Nutrients!$DR$9)*AD$7)+(((IF($A$8=Nutrients!$B$79,Nutrients!$DR$79,(IF($A$8=Nutrients!$B$77,Nutrients!$DR$77,Nutrients!$DR$78)))))*AD$8))/2000)","v":0.29044021906142953},{"$f":"((SUMPRODUCT(AE$9:AE$229,Nutrients!$DR$8:$DR$228)+(IF($A$7=Nutrients!$B$8,Nutrients!$DR$8,Nutrients!$DR$9)*AE$7)+(((IF($A$8=Nutrients!$B$79,Nutrients!$DR$79,(IF($A$8=Nutrients!$B$77,Nutrients!$DR$77,Nutrients!$DR$78)))))*AE$8))/2000)","v":0.25120156811149008},{"$f":"((SUMPRODUCT(AF$9:AF$229,Nutrients!$DR$8:$DR$228)+(IF($A$7=Nutrients!$B$8,Nutrients!$DR$8,Nutrients!$DR$9)*AF$7)+(((IF($A$8=Nutrients!$B$79,Nutrients!$DR$79,(IF($A$8=Nutrients!$B$77,Nutrients!$DR$77,Nutrients!$DR$78)))))*AF$8))/2000)","v":0.21264328214865663},{"$f":"((SUMPRODUCT(AG$9:AG$229,Nutrients!$DR$8:$DR$228)+(IF($A$7=Nutrients!$B$8,Nutrients!$DR$8,Nutrients!$DR$9)*AG$7)+(((IF($A$8=Nutrients!$B$79,Nutrients!$DR$79,(IF($A$8=Nutrients!$B$77,Nutrients!$DR$77,Nutrients!$DR$78)))))*AG$8))/2000)","v":0.18180297112449109},{"$f":"((SUMPRODUCT(AH$9:AH$229,Nutrients!$DR$8:$DR$228)+(IF($A$7=Nutrients!$B$8,Nutrients!$DR$8,Nutrients!$DR$9)*AH$7)+(((IF($A$8=Nutrients!$B$79,Nutrients!$DR$79,(IF($A$8=Nutrients!$B$77,Nutrients!$DR$77,Nutrients!$DR$78)))))*AH$8))/2000)","v":0.16956912942276786},{"$f":"((SUMPRODUCT(AI$9:AI$229,Nutrients!$DR$8:$DR$228)+(IF($A$7=Nutrients!$B$8,Nutrients!$DR$8,Nutrients!$DR$9)*AI$7)+(((IF($A$8=Nutrients!$B$79,Nutrients!$DR$79,(IF($A$8=Nutrients!$B$77,Nutrients!$DR$77,Nutrients!$DR$78)))))*AI$8))/2000)","v":0.15287313523350393},null,{"$f":"((SUMPRODUCT(AK$9:AK$229,Nutrients!$DR$8:$DR$228)+(IF($A$7=Nutrients!$B$8,Nutrients!$DR$8,Nutrients!$DR$9)*AK$7)+(((IF($A$8=Nutrients!$B$79,Nutrients!$DR$79,(IF($A$8=Nutrients!$B$77,Nutrients!$DR$77,Nutrients!$DR$78)))))*AK$8))/2000)","v":0.29114381200372952},{"$f":"((SUMPRODUCT(AL$9:AL$229,Nutrients!$DR$8:$DR$228)+(IF($A$7=Nutrients!$B$8,Nutrients!$DR$8,Nutrients!$DR$9)*AL$7)+(((IF($A$8=Nutrients!$B$79,Nutrients!$DR$79,(IF($A$8=Nutrients!$B$77,Nutrients!$DR$77,Nutrients!$DR$78)))))*AL$8))/2000)","v":0.25135864352434845},{"$f":"((SUMPRODUCT(AM$9:AM$229,Nutrients!$DR$8:$DR$228)+(IF($A$7=Nutrients!$B$8,Nutrients!$DR$8,Nutrients!$DR$9)*AM$7)+(((IF($A$8=Nutrients!$B$79,Nutrients!$DR$79,(IF($A$8=Nutrients!$B$77,Nutrients!$DR$77,Nutrients!$DR$78)))))*AM$8))/2000)","v":0.21289654545188069},{"$f":"((SUMPRODUCT(AN$9:AN$229,Nutrients!$DR$8:$DR$228)+(IF($A$7=Nutrients!$B$8,Nutrients!$DR$8,Nutrients!$DR$9)*AN$7)+(((IF($A$8=Nutrients!$B$79,Nutrients!$DR$79,(IF($A$8=Nutrients!$B$77,Nutrients!$DR$77,Nutrients!$DR$78)))))*AN$8))/2000)","v":0.18793113529540084},{"$f":"((SUMPRODUCT(AO$9:AO$229,Nutrients!$DR$8:$DR$228)+(IF($A$7=Nutrients!$B$8,Nutrients!$DR$8,Nutrients!$DR$9)*AO$7)+(((IF($A$8=Nutrients!$B$79,Nutrients!$DR$79,(IF($A$8=Nutrients!$B$77,Nutrients!$DR$77,Nutrients!$DR$78)))))*AO$8))/2000)","v":0.18140637372335067},{"$f":"((SUMPRODUCT(AP$9:AP$229,Nutrients!$DR$8:$DR$228)+(IF($A$7=Nutrients!$B$8,Nutrients!$DR$8,Nutrients!$DR$9)*AP$7)+(((IF($A$8=Nutrients!$B$79,Nutrients!$DR$79,(IF($A$8=Nutrients!$B$77,Nutrients!$DR$77,Nutrients!$DR$78)))))*AP$8))/2000)","v":0.15287313523350393},null,{"$f":"((SUMPRODUCT(AR$9:AR$229,Nutrients!$DR$8:$DR$228)+(IF($A$7=Nutrients!$B$8,Nutrients!$DR$8,Nutrients!$DR$9)*AR$7)+(((IF($A$8=Nutrients!$B$79,Nutrients!$DR$79,(IF($A$8=Nutrients!$B$77,Nutrients!$DR$77,Nutrients!$DR$78)))))*AR$8))/2000)","v":0.29108855435811337},{"$f":"((SUMPRODUCT(AS$9:AS$229,Nutrients!$DR$8:$DR$228)+(IF($A$7=Nutrients!$B$8,Nutrients!$DR$8,Nutrients!$DR$9)*AS$7)+(((IF($A$8=Nutrients!$B$79,Nutrients!$DR$79,(IF($A$8=Nutrients!$B$77,Nutrients!$DR$77,Nutrients!$DR$78)))))*AS$8))/2000)","v":0.25151588711151224},{"$f":"((SUMPRODUCT(AT$9:AT$229,Nutrients!$DR$8:$DR$228)+(IF($A$7=Nutrients!$B$8,Nutrients!$DR$8,Nutrients!$DR$9)*AT$7)+(((IF($A$8=Nutrients!$B$79,Nutrients!$DR$79,(IF($A$8=Nutrients!$B$77,Nutrients!$DR$77,Nutrients!$DR$78)))))*AT$8))/2000)","v":0.21317576741537064},{"$f":"((SUMPRODUCT(AU$9:AU$229,Nutrients!$DR$8:$DR$228)+(IF($A$7=Nutrients!$B$8,Nutrients!$DR$8,Nutrients!$DR$9)*AU$7)+(((IF($A$8=Nutrients!$B$79,Nutrients!$DR$79,(IF($A$8=Nutrients!$B$77,Nutrients!$DR$77,Nutrients!$DR$78)))))*AU$8))/2000)","v":0.19972207297230715},{"$f":"((SUMPRODUCT(AV$9:AV$229,Nutrients!$DR$8:$DR$228)+(IF($A$7=Nutrients!$B$8,Nutrients!$DR$8,Nutrients!$DR$9)*AV$7)+(((IF($A$8=Nutrients!$B$79,Nutrients!$DR$79,(IF($A$8=Nutrients!$B$77,Nutrients!$DR$77,Nutrients!$DR$78)))))*AV$8))/2000)","v":0.1932446047801234},{"$f":"((SUMPRODUCT(AW$9:AW$229,Nutrients!$DR$8:$DR$228)+(IF($A$7=Nutrients!$B$8,Nutrients!$DR$8,Nutrients!$DR$9)*AW$7)+(((IF($A$8=Nutrients!$B$79,Nutrients!$DR$79,(IF($A$8=Nutrients!$B$77,Nutrients!$DR$77,Nutrients!$DR$78)))))*AW$8))/2000)","v":0.15287313523350393}]
["Stand. Dig. P with phytase, %",{"$f":"B259+0.11","v":0.39998961246592624},0.36045553392749996,0.32159356316179677,0.2928995518736846,0.27219699119534685,0.26287313523350392,null,{"$f":"I259+0.11","v":0.39996134729698324},0.36057629304800559,0.32183692421033333,0.29082505581613377,0.27082465595917893,0.26287313523350392,null,{"$f":"P259+0.11","v":0.40012418344337003},0.36082971441109624,0.32218755388888753,0.29113051182286442,0.27120369003742434,0.26287313523350392,null,{"$f":"W259+0.11","v":0.40028805671684176},0.36108505561358323,0.32239875544994723,0.29147125879298558,0.27159183446294449,0.26287313523350392,null,{"$f":"AD259+0.11","v":0.40044021906142951},0.36120156811149007,0.32264328214865662,0.29180297112449111,0.27956912942276785,0.26287313523350392,null,{"$f":"AK259+0.11","v":0.40114381200372951},0.36135864352434843,0.32289654545188068,0.29793113529540083,0.29140637372335065,0.26287313523350392,null,{"$f":"AR259+0.11","v":0.40108855435811336},0.36151588711151222,0.32317576741537063,0.30972207297230714,0.30324460478012338,0.26287313523350392]
["Ca:P",{"$f":"B254/B255","v":1.3017138684764227},1.3021894221424188,1.3373095283032115,1.3415645597438779,1.3249751835185248,1.3266649538806439,null,{"$f":"I254/I255","v":1.302936008638806},1.30474348593801,1.3406070807682411,1.3403337564594258,1.3256181891155459,1.3266649538806439,null,{"$f":"P254/P255","v":1.3056209227923463},1.3074312054496291,1.3438422173057825,1.3439837686296421,1.3293748035494308,1.3266649538806439,null,{"$f":"W254/W255","v":1.3071178849480647},1.3088849300041427,1.3456243245689312,1.345578844416164,1.3309786257065332,1.3266649538806439,null,{"$f":"AD254/AD255","v":1.3093582289793524},1.3115168277655285,1.3484230134568156,1.3487621819324485,1.3400419241997976,1.3266649538806439,null,{"$f":"AK254/AK255","v":1.3106217807069127},1.3132052407310535,1.3501532391793567,1.3553053250580451,1.3505316496783066,1.3266649538806439,null,{"$f":"AR254/AR255","v":1.3127362027579867},1.3156922893793774,1.3529826995452621,1.365353746749089,1.3603489489512721,1.3266649538806439]
["Ca:STTD P",{"$f":"B254/B260","v":1.7400120914159756},1.7384331182595809,1.7871189885452841,1.7907878953733971,1.7690318502967193,1.7699999245766229,null,{"$f":"I254/I260","v":1.738898900900214},1.7390273768118385,1.7885063635247884,1.7883472818070043,1.7682857584748624,1.7699999245766229,null,{"$f":"P254/P260","v":1.7399999683509504},1.7399999656093674,1.7899999494404009,1.7899999417552674,1.7699999347444846,1.7699999245766229,null,{"$f":"W254/W260","v":1.7395178678032466},1.7393358796014353,1.7892949066471435,1.7889776172961327,1.7688597671374227,1.7699999245766229,null,{"$f":"AD254/AD260","v":1.7399999747501347},1.7399999699097199,1.7899999589799493,1.7899999455351414,1.7699999064132208,1.7699999245766229,null,{"$f":"AK254/AK260","v":1.7399999781414144},1.7394755601227663,1.7892515826218252,1.7900000966840111,1.7700008373589164,1.7699999245766229,null,{"$f":"AR254/AR260","v":1.7399999740709606},1.739999978527802,1.7899999657732153,1.7900030260128046,1.770005722475092,1.7699999245766229]
["Cost/ton",{"$f":"(SUMPRODUCT(B$9:B$229,Nutrients!$DX$8:$DX$228)+(IF($A$7=Nutrients!$B$8,Nutrients!$DX$8,Nutrients!$DX$9)*B$7)+(((IF($A$8=Nutrients!$B$79,Nutrients!$DX$79,(IF($A$8=Nutrients!$B$77,Nutrients!$DX$77,Nutrients!$DX$78)))))*B$8))","v":219.06090724554412},{"$f":"(SUMPRODUCT(C$9:C$229,Nutrients!$DX$8:$DX$228)+(IF($A$7=Nutrients!$B$8,Nutrients!$DX$8,Nutrients!$DX$9)*C$7)+(((IF($A$8=Nutrients!$B$79,Nutrients!$DX$79,(IF($A$8=Nutrients!$B$77,Nutrients!$DX$77,Nutrients!$DX$78)))))*C$8))","v":210.20700601537649},{"$f":"(SUMPRODUCT(D$9:D$229,Nutrients!$DX$8:$DX$228)+(IF($A$7=Nutrients!$B$8,Nutrients!$DX$8,Nutrients!$DX$9)*D$7)+(((IF($A$8=Nutrients!$B$79,Nutrients!$DX$79,(IF($A$8=Nutrients!$B$77,Nutrients!$DX$77,Nutrients!$DX$78)))))*D$8))","v":201.64110105420281},{"$f":"(SUMPRODUCT(E$9:E$229,Nutrients!$DX$8:$DX$228)+(IF($A$7=Nutrients!$B$8,Nutrients!$DX$8,Nutrients!$DX$9)*E$7)+(((IF($A$8=Nutrients!$B$79,Nutrients!$DX$79,(IF($A$8=Nutrients!$B$77,Nutrients!$DX$77,Nutrients!$DX$78)))))*E$8))","v":194.82283976807454},{"$f":"(SUMPRODUCT(F$9:F$229,Nutrients!$DX$8:$DX$228)+(IF($A$7=Nutrients!$B$8,Nutrients!$DX$8,Nutrients!$DX$9)*F$7)+(((IF($A$8=Nutrients!$B$79,Nutrients!$DX$79,(IF($A$8=Nutrients!$B$77,Nutrients!$DX$77,Nutrients!$DX$78)))))*F$8))","v":189.69608954240206},{"$f":"(SUMPRODUCT(G$9:G$229,Nutrients!$DX$8:$DX$228)+(IF($A$7=Nutrients!$B$8,Nutrients!$DX$8,Nutrients!$DX$9)*G$7)+(((IF($A$8=Nutrients!$B$79,Nutrients!$DX$79,(IF($A$8=Nutrients!$B$77,Nutrients!$DX$77,Nutrients!$DX$78)))))*G$8))","v":187.52702006837634},null,{"$f":"(SUMPRODUCT(I$9:I$229,Nutrients!$DX$8:$DX$228)+(IF($A$7=Nutrients!$B$8,Nutrients!$DX$8,Nutrients!$DX$9)*I$7)+(((IF($A$8=Nutrients!$B$79,Nutrients!$DX$79,(IF($A$8=Nutrients!$B$77,Nutrients!$DX$77,Nutrients!$DX$78)))))*I$8))","v":217.40530790410384},{"$f":"(SUMPRODUCT(J$9:J$229,Nutrients!$DX$8:$DX$228)+(IF($A$7=Nutrients!$B$8,Nutrients!$DX$8,Nutrients!$DX$9)*J$7)+(((IF($A$8=Nutrients!$B$79,Nutrients!$DX$79,(IF($A$8=Nutrients!$B$77,Nutrients!$DX$77,Nutrients!$DX$78)))))*J$8))","v":208.63316975744857},{"$f":"(SUMPRODUCT(K$9:K$229,Nutrients!$DX$8:$DX$228)+(IF($A$7=Nutrients!$B$8,Nutrients!$DX$8,Nutrients!$DX$9)*K$7)+(((IF($A$8=Nutrients!$B$79,Nutrients!$DX$79,(IF($A$8=Nutrients!$B$77,Nutrients!$DX$77,Nutrients!$DX$78)))))*K$8))","v":200.15114173826777},{"$f":"(SUMPRODUCT(L$9:L$229,Nutrients!$DX$8:$DX$228)+(IF($A$7=Nutrients!$B$8,Nutrients!$DX$8,Nutrients!$DX$9)*L$7)+(((IF($A$8=Nutrients!$B$79,Nutrients!$DX$79,(IF($A$8=Nutrients!$B$77,Nutrients!$DX$77,Nutrients!$DX$78)))))*L$8))","v":193.32236120947073},{"$f":"(SUMPRODUCT(M$9:M$229,Nutrients!$DX$8:$DX$228)+(IF($A$7=Nutrients!$B$8,Nutrients!$DX$8,Nutrients!$DX$9)*M$7)+(((IF($A$8=Nutrients!$B$79,Nutrients!$DX$79,(IF($A$8=Nutrients!$B$77,Nutrients!$DX$77,Nutrients!$DX$78)))))*M$8))","v":188.20863229303959},{"$f":"(SUMPRODUCT(N$9:N$229,Nutrients!$DX$8:$DX$228)+(IF($A$7=Nutrients!$B$8,Nutrients!$DX$8,Nutrients!$DX$9)*N$7)+(((IF($A$8=Nutrients!$B$79,Nutrients!$DX$79,(IF($A$8=Nutrients!$B$77,Nutrients!$DX$77,Nutrients!$DX$78)))))*N$8))","v":187.52702006837634},null,{"$f":"(SUMPRODUCT(P$9:P$229,Nutrients!$DX$8:$DX$228)+(IF($A$7=Nutrients!$B$8,Nutrients!$DX$8,Nutrients!$DX$9)*P$7)+(((IF($A$8=Nutrients!$B$79,Nutrients!$DX$79,(IF($A$8=Nutrients!$B$77,Nutrients!$DX$77,Nutrients!$DX$78)))))*P$8))","v":215.90391279015165},{"$f":"(SUMPRODUCT(Q$9:Q$229,Nutrients!$DX$8:$DX$228)+(IF($A$7=Nutrients!$B$8,Nutrients!$DX$8,Nutrients!$DX$9)*Q$7)+(((IF($A$8=Nutrients!$B$79,Nutrients!$DX$79,(IF($A$8=Nutrients!$B$77,Nutrients!$DX$77,Nutrients!$DX$78)))))*Q$8))","v":207.19770981149094},{"$f":"(SUMPRODUCT(R$9:R$229,Nutrients!$DX$8:$DX$228)+(IF($A$7=Nutrients!$B$8,Nutrients!$DX$8,Nutrients!$DX$9)*R$7)+(((IF($A$8=Nutrients!$B$79,Nutrients!$DX$79,(IF($A$8=Nutrients!$B$77,Nutrients!$DX$77,Nutrients!$DX$78)))))*R$8))","v":198.75328011012607},{"$f":"(SUMPRODUCT(S$9:S$229,Nutrients!$DX$8:$DX$228)+(IF($A$7=Nutrients!$B$8,Nutrients!$DX$8,Nutrients!$DX$9)*S$7)+(((IF($A$8=Nutrients!$B$79,Nutrients!$DX$79,(IF($A$8=Nutrients!$B$77,Nutrients!$DX$77,Nutrients!$DX$78)))))*S$8))","v":191.89958714243249},{"$f":"(SUMPRODUCT(T$9:T$229,Nutrients!$DX$8:$DX$228)+(IF($A$7=Nutrients!$B$8,Nutrients!$DX$8,Nutrients!$DX$9)*T$7)+(((IF($A$8=Nutrients!$B$79,Nutrients!$DX$79,(IF($A$8=Nutrients!$B$77,Nutrients!$DX$77,Nutrients!$DX$78)))))*T$8))","v":187.03081494975703},{"$f":"(SUMPRODUCT(U$9:U$229,Nutrients!$DX$8:$DX$228)+(IF($A$7=Nutrients!$B$8,Nutrients!$DX$8,Nutrients!$DX$9)*U$7)+(((IF($A$8=Nutrients!$B$79,Nutrients!$DX$79,(IF($A$8=Nutrients!$B$77,Nutrients!$DX$77,Nutrients!$DX$78)))))*U$8))","v":187.52702006837634},null,{"$f":"(SUMPRODUCT(W$9:W$229,Nutrients!$DX$8:$DX$228)+(IF($A$7=Nutrients!$B$8,Nutrients!$DX$8,Nutrients!$DX$9)*W$7)+(((IF($A$8=Nutrients!$B$79,Nutrients!$DX$79,(IF($A$8=Nutrients!$B$77,Nutrients!$DX$77,Nutrients!$DX$78)))))*W$8))","v":214.40349886816551},{"$f":"(SUMPRODUCT(X$9:X$229,Nutrients!$DX$8:$DX$228)+(IF($A$7=Nutrients!$B$8,Nutrients!$DX$8,Nutrients!$DX$9)*X$7)+(((IF($A$8=Nutrients!$B$79,Nutrients!$DX$79,(IF($A$8=Nutrients!$B$77,Nutrients!$DX$77,Nutrients!$DX$78)))))*X$8))","v":205.7477720219419},{"$f":"(SUMPRODUCT(Y$9:Y$229,Nutrients!$DX$8:$DX$228)+(IF($A$7=Nutrients!$B$8,Nutrients!$DX$8,Nutrients!$DX$9)*Y$7)+(((IF($A$8=Nutrients!$B$79,Nutrients!$DX$79,(IF($A$8=Nutrients!$B$77,Nutrients!$DX$77,Nutrients!$DX$78)))))*Y$8))","v":197.2912899859914},{"$f":"(SUMPRODUCT(Z$9:Z$229,Nutrients!$DX$8:$DX$228)+(IF($A$7=Nutrients!$B$8,Nutrients!$DX$8,Nutrients!$DX$9)*Z$7)+(((IF($A$8=Nutrients!$B$79,Nutrients!$DX$79,(IF($A$8=Nutrients!$B$77,Nutrients!$DX$77,Nutrients!$DX$78)))))*Z$8))","v":190.56581634823459},{"$f":"(SUMPRODUCT(AA$9:AA$229,Nutrients!$DX$8:$DX$228)+(IF($A$7=Nutrients!$B$8,Nutrients!$DX$8,Nutrients!$DX$9)*AA$7)+(((IF($A$8=Nutrients!$B$79,Nutrients!$DX$79,(IF($A$8=Nutrients!$B$77,Nutrients!$DX$77,Nutrients!$DX$78)))))*AA$8))","v":185.9168515446643},{"$f":"(SUMPRODUCT(AB$9:AB$229,Nutrients!$DX$8:$DX$228)+(IF($A$7=Nutrients!$B$8,Nutrients!$DX$8,Nutrients!$DX$9)*AB$7)+(((IF($A$8=Nutrients!$B$79,Nutrients!$DX$79,(IF($A$8=Nutrients!$B$77,Nutrients!$DX$77,Nutrients!$DX$78)))))*AB$8))","v":187.52702006837634},null,{"$f":"(SUMPRODUCT(AD$9:AD$229,Nutrients!$DX$8:$DX$228)+(IF($A$7=Nutrients!$B$8,Nutrients!$DX$8,Nutrients!$DX$9)*AD$7)+(((IF($A$8=Nutrients!$B$79,Nutrients!$DX$79,(IF($A$8=Nutrients!$B$77,Nutrients!$DX$77,Nutrients!$DX$78)))))*AD$8))","v":212.89637683902419},{"$f":"(SUMPRODUCT(AE$9:AE$229,Nutrients!$DX$8:$DX$228)+(IF($A$7=Nutrients!$B$8,Nutrients!$DX$8,Nutrients!$DX$9)*AE$7)+(((IF($A$8=Nutrients!$B$79,Nutrients!$DX$79,(IF($A$8=Nutrients!$B$77,Nutrients!$DX$77,Nutrients!$DX$78)))))*AE$8))","v":204.22095834209978},{"$f":"(SUMPRODUCT(AF$9:AF$229,Nutrients!$DX$8:$DX$228)+(IF($A$7=Nutrients!$B$8,Nutrients!$DX$8,Nutrients!$DX$9)*AF$7)+(((IF($A$8=Nutrients!$B$79,Nutrients!$DX$79,(IF($A$8=Nutrients!$B$77,Nutrients!$DX$77,Nutrients!$DX$78)))))*AF$8))","v":195.7848017149559},{"$f":"(SUMPRODUCT(AG$9:AG$229,Nutrients!$DX$8:$DX$228)+(IF($A$7=Nutrients!$B$8,Nutrients!$DX$8,Nutrients!$DX$9)*AG$7)+(((IF($A$8=Nutrients!$B$79,Nutrients!$DX$79,(IF($A$8=Nutrients!$B$77,Nutrients!$DX$77,Nutrients!$DX$78)))))*AG$8))","v":189.42033405159225},{"$f":"(SUMPRODUCT(AH$9:AH$229,Nutrients!$DX$8:$DX$228)+(IF($A$7=Nutrients!$B$8,Nutrients!$DX$8,Nutrients!$DX$9)*AH$7)+(((IF($A$8=Nutrients!$B$79,Nutrients!$DX$79,(IF($A$8=Nutrients!$B$77,Nutrients!$DX$77,Nutrients!$DX$78)))))*AH$8))","v":184.92910240410902},{"$f":"(SUMPRODUCT(AI$9:AI$229,Nutrients!$DX$8:$DX$228)+(IF($A$7=Nutrients!$B$8,Nutrients!$DX$8,Nutrients!$DX$9)*AI$7)+(((IF($A$8=Nutrients!$B$79,Nutrients!$DX$79,(IF($A$8=Nutrients!$B$77,Nutrients!$DX$77,Nutrients!$DX$78)))))*AI$8))","v":187.52702006837634},null,{"$f":"(SUMPRODUCT(AK$9:AK$229,Nutrients!$DX$8:$DX$228)+(IF($A$7=Nutrients!$B$8,Nutrients!$DX$8,Nutrients!$DX$9)*AK$7)+(((IF($A$8=Nutrients!$B$79,Nutrients!$DX$79,(IF($A$8=Nutrients!$B$77,Nutrients!$DX$77,Nutrients!$DX$78)))))*AK$8))","v":211.69350145353982},{"$f":"(SUMPRODUCT(AL$9:AL$229,Nutrients!$DX$8:$DX$228)+(IF($A$7=Nutrients!$B$8,Nutrients!$DX$8,Nutrients!$DX$9)*AL$7)+(((IF($A$8=Nutrients!$B$79,Nutrients!$DX$79,(IF($A$8=Nutrients!$B$77,Nutrients!$DX$77,Nutrients!$DX$78)))))*AL$8))","v":202.71679305374616},{"$f":"(SUMPRODUCT(AM$9:AM$229,Nutrients!$DX$8:$DX$228)+(IF($A$7=Nutrients!$B$8,Nutrients!$DX$8,Nutrients!$DX$9)*AM$7)+(((IF($A$8=Nutrients!$B$79,Nutrients!$DX$79,(IF($A$8=Nutrients!$B$77,Nutrients!$DX$77,Nutrients!$DX$78)))))*AM$8))","v":194.59640481753874},{"$f":"(SUMPRODUCT(AN$9:AN$229,Nutrients!$DX$8:$DX$228)+(IF($A$7=Nutrients!$B$8,Nutrients!$DX$8,Nutrients!$DX$9)*AN$7)+(((IF($A$8=Nutrients!$B$79,Nutrients!$DX$79,(IF($A$8=Nutrients!$B$77,Nutrients!$DX$77,Nutrients!$DX$78)))))*AN$8))","v":188.35209505839322},{"$f":"(SUMPRODUCT(AO$9:AO$229,Nutrients!$DX$8:$DX$228)+(IF($A$7=Nutrients!$B$8,Nutrients!$DX$8,Nutrients!$DX$9)*AO$7)+(((IF($A$8=Nutrients!$B$79,Nutrients!$DX$79,(IF($A$8=Nutrients!$B$77,Nutrients!$DX$77,Nutrients!$DX$78)))))*AO$8))","v":184.05845523199278},{"$f":"(SUMPRODUCT(AP$9:AP$229,Nutrients!$DX$8:$DX$228)+(IF($A$7=Nutrients!$B$8,Nutrients!$DX$8,Nutrients!$DX$9)*AP$7)+(((IF($A$8=Nutrients!$B$79,Nutrients!$DX$79,(IF($A$8=Nutrients!$B$77,Nutrients!$DX$77,Nutrients!$DX$78)))))*AP$8))","v":187.52702006837634},null,{"$f":"(SUMPRODUCT(AR$9:AR$229,Nutrients!$DX$8:$DX$228)+(IF($A$7=Nutrients!$B$8,Nutrients!$DX$8,Nutrients!$DX$9)*AR$7)+(((IF($A$8=Nutrients!$B$79,Nutrients!$DX$79,(IF($A$8=Nutrients!$B$77,Nutrients!$DX$77,Nutrients!$DX$78)))))*AR$8))","v":210.07210897674861},{"$f":"(SUMPRODUCT(AS$9:AS$229,Nutrients!$DX$8:$DX$228)+(IF($A$7=Nutrients!$B$8,Nutrients!$DX$8,Nutrients!$DX$9)*AS$7)+(((IF($A$8=Nutrients!$B$79,Nutrients!$DX$79,(IF($A$8=Nutrients!$B$77,Nutrients!$DX$77,Nutrients!$DX$78)))))*AS$8))","v":201.21247565089718},{"$f":"(SUMPRODUCT(AT$9:AT$229,Nutrients!$DX$8:$DX$228)+(IF($A$7=Nutrients!$B$8,Nutrients!$DX$8,Nutrients!$DX$9)*AT$7)+(((IF($A$8=Nutrients!$B$79,Nutrients!$DX$79,(IF($A$8=Nutrients!$B$77,Nutrients!$DX$77,Nutrients!$DX$78)))))*AT$8))","v":193.42201141093267},{"$f":"(SUMPRODUCT(AU$9:AU$229,Nutrients!$DX$8:$DX$228)+(IF($A$7=Nutrients!$B$8,Nutrients!$DX$8,Nutrients!$DX$9)*AU$7)+(((IF($A$8=Nutrients!$B$79,Nutrients!$DX$79,(IF($A$8=Nutrients!$B$77,Nutrients!$DX$77,Nutrients!$DX$78)))))*AU$8))","v":187.45575724063724},{"$f":"(SUMPRODUCT(AV$9:AV$229,Nutrients!$DX$8:$DX$228)+(IF($A$7=Nutrients!$B$8,Nutrients!$DX$8,Nutrients!$DX$9)*AV$7)+(((IF($A$8=Nutrients!$B$79,Nutrients!$DX$79,(IF($A$8=Nutrients!$B$77,Nutrients!$DX$77,Nutrients!$DX$78)))))*AV$8))","v":183.15658702065019},{"$f":"(SUMPRODUCT(AW$9:AW$229,Nutrients!$DX$8:$DX$228)+(IF($A$7=Nutrients!$B$8,Nutrients!$DX$8,Nutrients!$DX$9)*AW$7)+(((IF($A$8=Nutrients!$B$79,Nutrients!$DX$79,(IF($A$8=Nutrients!$B$77,Nutrients!$DX$77,Nutrients!$DX$78)))))*AW$8))","v":187.52702006837634}]
["Cost with processing",{"$f":"IF(B$5=\"\",\"\",B263+Nutrients!$DV$5)","v":231.06090724554412},{"$f":"IF(C$5=\"\",\"\",C263+Nutrients!$DV$5)","v":222.20700601537649},{"$f":"IF(D$5=\"\",\"\",D263+Nutrients!$DV$5)","v":213.64110105420281},{"$f":"IF(E$5=\"\",\"\",E263+Nutrients!$DV$5)","v":206.82283976807454},{"$f":"IF(F$5=\"\",\"\",F263+Nutrients!$DV$5)","v":201.69608954240206},{"$f":"IF(G$5=\"\",\"\",G263+Nutrients!$DV$5)","v":199.52702006837634},null,{"$f":"IF(I$5=\"\",\"\",I263+Nutrients!$DV$5)","v":229.40530790410384},{"$f":"IF(J$5=\"\",\"\",J263+Nutrients!$DV$5)","v":220.63316975744857},{"$f":"IF(K$5=\"\",\"\",K263+Nutrients!$DV$5)","v":212.15114173826777},{"$f":"IF(L$5=\"\",\"\",L263+Nutrients!$DV$5)","v":205.32236120947073},{"$f":"IF(M$5=\"\",\"\",M263+Nutrients!$DV$5)","v":200.20863229303959},{"$f":"IF(N$5=\"\",\"\",N263+Nutrients!$DV$5)","v":199.52702006837634},null,{"$f":"IF(P$5=\"\",\"\",P263+Nutrients!$DV$5)","v":227.90391279015165},{"$f":"IF(Q$5=\"\",\"\",Q263+Nutrients!$DV$5)","v":219.19770981149094},{"$f":"IF(R$5=\"\",\"\",R263+Nutrients!$DV$5)","v":210.75328011012607},{"$f":"IF(S$5=\"\",\"\",S263+Nutrients!$DV$5)","v":203.89958714243249},{"$f":"IF(T$5=\"\",\"\",T263+Nutrients!$DV$5)","v":199.03081494975703},{"$f":"IF(U$5=\"\",\"\",U263+Nutrients!$DV$5)","v":199.52702006837634},null,{"$f":"IF(W$5=\"\",\"\",W263+Nutrients!$DV$5)","v":226.40349886816551},{"$f":"IF(X$5=\"\",\"\",X263+Nutrients!$DV$5)","v":217.7477720219419},{"$f":"IF(Y$5=\"\",\"\",Y263+Nutrients!$DV$5)","v":209.2912899859914},{"$f":"IF(Z$5=\"\",\"\",Z263+Nutrients!$DV$5)","v":202.56581634823459},{"$f":"IF(AA$5=\"\",\"\",AA263+Nutrients!$DV$5)","v":197.9168515446643},{"$f":"IF(AB$5=\"\",\"\",AB263+Nutrients!$DV$5)","v":199.52702006837634},null,{"$f":"IF(AD$5=\"\",\"\",AD263+Nutrients!$DV$5)","v":224.89637683902419},{"$f":"IF(AE$5=\"\",\"\",AE263+Nutrients!$DV$5)","v":216.22095834209978},{"$f":"IF(AF$5=\"\",\"\",AF263+Nutrients!$DV$5)","v":207.7848017149559},{"$f":"IF(AG$5=\"\",\"\",AG263+Nutrients!$DV$5)","v":201.42033405159225},{"$f":"IF(AH$5=\"\",\"\",AH263+Nutrients!$DV$5)","v":196.92910240410902},{"$f":"IF(AI$5=\"\",\"\",AI263+Nutrients!$DV$5)","v":199.52702006837634},null,{"$f":"IF(AK$5=\"\",\"\",AK263+Nutrients!$DV$5)","v":223.69350145353982},{"$f":"IF(AL$5=\"\",\"\",AL263+Nutrients!$DV$5)","v":214.71679305374616},{"$f":"IF(AM$5=\"\",\"\",AM263+Nutrients!$DV$5)","v":206.59640481753874},{"$f":"IF(AN$5=\"\",\"\",AN263+Nutrients!$DV$5)","v":200.35209505839322},{"$f":"IF(AO$5=\"\",\"\",AO263+Nutrients!$DV$5)","v":196.05845523199278},{"$f":"IF(AP$5=\"\",\"\",AP263+Nutrients!$DV$5)","v":199.52702006837634},null,{"$f":"IF(AR$5=\"\",\"\",AR263+Nutrients!$DV$5)","v":222.07210897674861},{"$f":"IF(AS$5=\"\",\"\",AS263+Nutrients!$DV$5)","v":213.21247565089718},{"$f":"IF(AT$5=\"\",\"\",AT263+Nutrients!$DV$5)","v":205.42201141093267},{"$f":"IF(AU$5=\"\",\"\",AU263+Nutrients!$DV$5)","v":199.45575724063724},{"$f":"IF(AV$5=\"\",\"\",AV263+Nutrients!$DV$5)","v":195.15658702065019},{"$f":"IF(AW$5=\"\",\"\",AW263+Nutrients!$DV$5)","v":199.52702006837634}]
["Feed budget, lb/pig- adjusted for gain ",64.919933148666814,74.047956546633458,95.803407561009578,107.72572383590483,119.6480401107998,148.85493879698549,{"$f":"SUM(B265:G265)","v":611},{"$f":"($B$265*$B$250/I250)-($B$265*$B$250/I250)/(I6-I5)*I268","v":65.032519195989309},{"$f":"($C$265*$C$250/J250)-($C$265*$C$250/J250)/(J6-J5)*J268","v":74.200606618390609},{"$f":"($D$265*$D$250/K250)-($D$265*$D$250/K250)/(K6-K5)*K268","v":95.95910692241938},{"$f":"($E$265*$E$250/L250)-($E$265*$E$250/L250)/(L6-L5)*L268","v":107.7240432979805},{"$f":"($F$265*$F$250/M250)-($F$265*$F$250/M250)/(M6-M5)*M268","v":119.31268409455409},{"$f":"($G$265*$G$250/N250)-($G$265*$G$250/N250)/(N6-N5)*N268","v":148.85493879698549},{"$f":"SUM(I265:N265)","v":611.08389892631931},{"$f":"($B$265*$B$250/P250)-($B$265*$B$250/P250)/(P6-P5)*P268","v":65.232497884481873},{"$f":"($C$265*$C$250/Q250)-($C$265*$C$250/Q250)/(Q6-Q5)*Q268","v":74.439250247791989},{"$f":"($D$265*$D$250/R250)-($D$265*$D$250/R250)/(R6-R5)*R268","v":96.208377628864696},{"$f":"($E$265*$E$250/S250)-($E$265*$E$250/S250)/(S6-S5)*S268","v":107.78376362874182},{"$f":"($F$265*$F$250/T250)-($F$265*$F$250/T250)/(T6-T5)*T268","v":119.05468922829392},{"$f":"($G$265*$G$250/U250)-($G$265*$G$250/U250)/(U6-U5)*U268","v":148.85493879698549},{"$f":"SUM(P265:U265)","v":611.57351741515981},{"$f":"($B$265*$B$250/W250)-($B$265*$B$250/W250)/(W6-W5)*W268","v":65.493532077255878},{"$f":"($C$265*$C$250/X250)-($C$265*$C$250/X250)/(X6-X5)*X268","v":74.730137171165069},{"$f":"($D$265*$D$250/Y250)-($D$265*$D$250/Y250)/(Y6-Y5)*Y268","v":96.466015113214013},{"$f":"($E$265*$E$250/Z250)-($E$265*$E$250/Z250)/(Z6-Z5)*Z268","v":107.90695982102051},{"$f":"($F$265*$F$250/AA250)-($F$265*$F$250/AA250)/(AA6-AA5)*AA268","v":118.84217022947654},{"$f":"($G$265*$G$250/AB250)-($G$265*$G$250/AB250)/(AB6-AB5)*AB268","v":148.85493879698549},{"$f":"SUM(W265:AB265)","v":612.29375320911754},{"$f":"($B$265*$B$250/AD250)-($B$265*$B$250/AD250)/(AD6-AD5)*AD268","v":65.818852667650717},{"$f":"($C$265*$C$250/AE250)-($C$265*$C$250/AE250)/(AE6-AE5)*AE268","v":75.056010732983822},{"$f":"($D$265*$D$250/AF250)-($D$265*$D$250/AF250)/(AF6-AF5)*AF268","v":96.796749211020355},{"$f":"($E$265*$E$250/AG250)-($E$265*$E$250/AG250)/(AG6-AG5)*AG268","v":108.07840340827386},{"$f":"($F$265*$F$250/AH250)-($F$265*$F$250/AH250)/(AH6-AH5)*AH268","v":118.71109466847821},{"$f":"($G$265*$G$250/AI250)-($G$265*$G$250/AI250)/(AI6-AI5)*AI268","v":148.85493879698549},{"$f":"SUM(AD265:AI265)","v":613.31604948539245},{"$f":"($B$265*$B$250/AK250)-($B$265*$B$250/AK250)/(AK6-AK5)*AK268","v":66.203814514362591},{"$f":"($C$265*$C$250/AL250)-($C$265*$C$250/AL250)/(AL6-AL5)*AL268","v":75.449325167069418},{"$f":"($D$265*$D$250/AM250)-($D$265*$D$250/AM250)/(AM6-AM5)*AM268","v":97.190319105721485},{"$f":"($E$265*$E$250/AN250)-($E$265*$E$250/AN250)/(AN6-AN5)*AN268","v":108.33386077147181},{"$f":"($F$265*$F$250/AO250)-($F$265*$F$250/AO250)/(AO6-AO5)*AO268","v":118.65324959714131},{"$f":"($G$265*$G$250/AP250)-($G$265*$G$250/AP250)/(AP6-AP5)*AP268","v":148.85493879698549},{"$f":"SUM(AK265:AP265)","v":614.68550795275212},{"$f":"($B$265*$B$250/AR250)-($B$265*$B$250/AR250)/(AR6-AR5)*AR268","v":66.656720804704733},{"$f":"($C$265*$C$250/AS250)-($C$265*$C$250/AS250)/(AS6-AS5)*AS268","v":75.906488992718167},{"$f":"($D$265*$D$250/AT250)-($D$265*$D$250/AT250)/(AT6-AT5)*AT268","v":97.654226308510644},{"$f":"($E$265*$E$250/AU250)-($E$265*$E$250/AU250)/(AU6-AU5)*AU268","v":108.68624755505653},{"$f":"($F$265*$F$250/AV250)-($F$265*$F$250/AV250)/(AV6-AV5)*AV268","v":118.65480656193117},{"$f":"($G$265*$G$250/AW250)-($G$265*$G$250/AW250)/(AW6-AW5)*AW268","v":148.85493879698549},{"$f":"SUM(AR265:AW265)","v":616.41342901990674}]
["Feed cost, $/pig- adjusted for gain ",{"$f":"IF(B$265=\"\",\"\",B265*B264/2000)","v":7.5002293258255142},8.2269873628920589,10.233772738039312,11.140070059906597,12.066270905880396,14.85029118031153,null,{"$f":"IF(I$265=\"\",\"\",I265*I264/2000)","v":7.4594025449677357},8.1855575180705173,10.178917046887893,11.059077464486309,11.943714648891087,14.85029118031153,null,{"$f":"IF(P$265=\"\",\"\",P265*P264/2000)","v":7.433370754474355},8.1584565872002308,10.138115579678454,10.988532452278994,11.8477759103487,14.85029118031153,null,{"$f":"IF(W$265=\"\",\"\",W265*W264/2000)","v":7.4139824077625818},8.1361604359576489,10.09474837142635,10.929130702900585,11.760434081276514,14.85029118031153,null,{"$f":"IF(AD$265=\"\",\"\",AD265*AD264/2000)","v":7.4012107463280934},8.1143412850103438,10.05644667073209,10.884594059128633,11.688834659236312,14.85029118031153,null,{"$f":"IF(AK$265=\"\",\"\",AK265*AK264/2000)","v":7.4046815391492249},8.1001185689712223,10.039585255155703,10.852457985664326,11.631486412135796,14.85029118031153,null,{"$f":"IF(AR$265=\"\",\"\",AR265*AR264/2000)","v":7.4012992832875479},8.0921052180525077,10.030163795536337,10.83904890386858,11.578133541110969,14.85029118031153]
["ADG, lb",{"$f":"B342*0.00220462","v":1.669925476729073},1.9189525389204525,2.0860530832674886,2.166293944697927,2.1531120876854954,2.0276943879552971,null,{"$f":"I342*0.00220462","v":1.6591780812180643},1.9071892211614505,2.0723635687407453,2.1490544023084666,2.1299520650476746,2.0276943879552971,null,{"$f":"P342*0.00220462","v":1.6504251168768864},1.8974557689243226,2.0605306952627145,2.1325794627644439,2.1079897100869229,2.0276943879552971,null,{"$f":"W342*0.00220462","v":1.6431484481411012},1.8889647015971551,2.0489589584630297,2.1173781721555001,2.0869663426163418,2.0276943879552971,null,{"$f":"AD342*0.00220462","v":1.6373504413758493},1.8813164924669157,2.0387607903001861,2.1031417331560309,2.0661717021000539,2.0276943879552971,null,{"$f":"AK342*0.00220462","v":1.6324882419497464},1.8751960330358797,2.0299139403546049,2.089526527130809,2.0460852264712268,2.0276943879552971,null,{"$f":"AR342*0.00220462","v":1.629681985394005},1.8704612538811027,2.0223326567851498,2.0767390460120363,2.0270241248866854,2.0276943879552971]
["Change in gain, lb",null,null,null,null,null,null,null,{"$f":"($B$6-$B$5)-(($B$6-$B$5)/$B$267)*I267","v":0.22525486803284878},{"$f":"($C$6-$C$5)-(($C$6-$C$5)/$C$267)*J267","v":0.21455252968199545},{"$f":"($D$6-$D$5)-(($D$6-$D$5)/$D$267)*K267","v":0.26249599564936688},{"$f":"($E$6-$E$5)-(($E$6-$E$5)/$E$267)*L267","v":0.31832323460358936},{"$f":"($F$6-$F$5)-(($F$6-$F$5)/$F$267)*M267","v":0.43026134626770585},{"$f":"($G$6-$G$5)-(($G$6-$G$5)/$G$267)*N267","v":0},null,{"$f":"($B$6-$B$5)-(($B$6-$B$5)/$B$267)*P267","v":0.40870841503861044},{"$f":"($C$6-$C$5)-(($C$6-$C$5)/$C$267)*Q267","v":0.39208210448384051},{"$f":"($D$6-$D$5)-(($D$6-$D$5)/$D$267)*R267","v":0.48939095959719481},{"$f":"($E$6-$E$5)-(($E$6-$E$5)/$E$267)*S267","v":0.62252829568213031},{"$f":"($F$6-$F$5)-(($F$6-$F$5)/$F$267)*T267","v":0.83827270965864642},{"$f":"($G$6-$G$5)-(($G$6-$G$5)/$G$267)*U267","v":0},null,{"$f":"($B$6-$B$5)-(($B$6-$B$5)/$B$267)*W267","v":0.56122025422040167},{"$f":"($C$6-$C$5)-(($C$6-$C$5)/$C$267)*X267","v":0.54695167547284029},{"$f":"($D$6-$D$5)-(($D$6-$D$5)/$D$267)*Y267","v":0.71127863623406284},{"$f":"($E$6-$E$5)-(($E$6-$E$5)/$E$267)*Z267","v":0.90321579233787475},{"$f":"($F$6-$F$5)-(($F$6-$F$5)/$F$267)*AA267","v":1.2288397886476474},{"$f":"($G$6-$G$5)-(($G$6-$G$5)/$G$267)*AB267","v":0},null,{"$f":"($B$6-$B$5)-(($B$6-$B$5)/$B$267)*AD267","v":0.68274078888599377},{"$f":"($C$6-$C$5)-(($C$6-$C$5)/$C$267)*AE267","v":0.68644825713867874},{"$f":"($D$6-$D$5)-(($D$6-$D$5)/$D$267)*AF267","v":0.90682817894981582},{"$f":"($E$6-$E$5)-(($E$6-$E$5)/$E$267)*AG267","v":1.1660875791387966},{"$f":"($F$6-$F$5)-(($F$6-$F$5)/$F$267)*AH267","v":1.6151576331336983},{"$f":"($G$6-$G$5)-(($G$6-$G$5)/$G$267)*AI267","v":0},null,{"$f":"($B$6-$B$5)-(($B$6-$B$5)/$B$267)*AK267","v":0.78464771963534474},{"$f":"($C$6-$C$5)-(($C$6-$C$5)/$C$267)*AL267","v":0.79808003319436693},{"$f":"($D$6-$D$5)-(($D$6-$D$5)/$D$267)*AM267","v":1.0764662388159394},{"$f":"($E$6-$E$5)-(($E$6-$E$5)/$E$267)*AN267","v":1.4174884762062661},{"$f":"($F$6-$F$5)-(($F$6-$F$5)/$F$267)*AO267","v":1.9883193601744722},{"$f":"($G$6-$G$5)-(($G$6-$G$5)/$G$267)*AP267","v":0},null,{"$f":"($B$6-$B$5)-(($B$6-$B$5)/$B$267)*AR267","v":0.84346410444991449},{"$f":"($C$6-$C$5)-(($C$6-$C$5)/$C$267)*AS267","v":0.88443822447637643},{"$f":"($D$6-$D$5)-(($D$6-$D$5)/$D$267)*AT267","v":1.2218371045962115},{"$f":"($E$6-$E$5)-(($E$6-$E$5)/$E$267)*AU267","v":1.653605668890485},{"$f":"($F$6-$F$5)-(($F$6-$F$5)/$F$267)*AV267","v":2.3424319341284132},{"$f":"($G$6-$G$5)-(($G$6-$G$5)/$G$267)*AW267","v":0}]
["Feed budget, lb/pig- adjusted for energy intake ",64.919933148666814,74.047956546633458,95.803407561009578,107.72572383590483,119.6480401107998,148.85493879698549,{"$f":"SUM(B269:G269)","v":611},{"$f":"($B$269*$B$250/I250)","v":65.453770062781999},{"$f":"($C$269*$C$250/J250)","v":74.658267192327415},{"$f":"($D$269*$D$250/K250)","v":96.592988741228808},{"$f":"($E$269*$E$250/L250)","v":108.58819695030532},{"$f":"($F$269*$F$250/M250)","v":120.61002994094861},{"$f":"($G$269*$G$250/N250)","v":148.85493879698549},{"$f":"SUM(I269:N269)","v":614.7581916845777},{"$f":"($B$269*$B$250/P250)","v":66.003243051770369},{"$f":"($C$269*$C$250/Q250)","v":75.282591877920368},{"$f":"($D$269*$D$250/R250)","v":97.400045168105422},{"$f":"($E$269*$E$250/S250)","v":109.48774409701167},{"$f":"($F$269*$F$250/T250)","v":121.60310330096901},{"$f":"($G$269*$G$250/U250)","v":148.85493879698549},{"$f":"SUM(P269:U269)","v":618.63166629276225},{"$f":"($B$269*$B$250/W250)","v":66.56082589525748},{"$f":"($C$269*$C$250/X250)","v":75.916498776938738},{"$f":"($D$269*$D$250/Y250)","v":98.212425108015751},{"$f":"($E$269*$E$250/Z250)","v":110.39983160545779},{"$f":"($F$269*$F$250/AA250)","v":122.60883562073963},{"$f":"($G$269*$G$250/AB250)","v":148.85493879698549},{"$f":"SUM(W269:AB269)","v":622.55335580339488},{"$f":"($B$269*$B$250/AD250)","v":67.128316664103252},{"$f":"($C$269*$C$250/AE250)","v":76.557518596160861},{"$f":"($D$269*$D$250/AF250)","v":99.042103469229374},{"$f":"($E$269*$E$250/AG250)","v":111.32373399515129},{"$f":"($F$269*$F$250/AH250)","v":123.70622083986915},{"$f":"($G$269*$G$250/AI250)","v":148.85493879698549},{"$f":"SUM(AD269:AI269)","v":626.61283236149939},{"$f":"($B$269*$B$250/AK250)","v":67.722041527318609},{"$f":"($C$269*$C$250/AL250)","v":77.209887146989502},{"$f":"($D$269*$D$250/AM250)","v":99.878207052868504},{"$f":"($E$269*$E$250/AN250)","v":112.31395416512748},{"$f":"($F$269*$F$250/AO250)","v":124.85977741570957},{"$f":"($G$269*$G$250/AP250)","v":148.85493879698549},{"$f":"SUM(AK269:AP269)","v":630.83880610499909},{"$f":"($B$269*$B$250/AR250)","v":68.302746955923212},{"$f":"($C$269*$C$250/AS250)","v":77.874347555115378},{"$f":"($D$269*$D$250/AT250)","v":100.73115281083642},{"$f":"($E$269*$E$250/AU250)","v":113.37310790327106},{"$f":"($F$269*$F$250/AV250)","v":126.03554892804243},{"$f":"($G$269*$G$250/AW250)","v":148.85493879698549},{"$f":"SUM(AR269:AW269)","v":635.17184295017398}]
["Feed cost, $/pig- adjusted for energy intake",{"$f":"B269*B264/2000","v":7.5002293258255142},8.2269873628920589,10.233772738039312,11.140070059906597,12.066270905880396,14.85029118031153,null,{"$f":"I269*I264/2000","v":7.5077211373684598},8.2360450696208645,10.246156422681668,11.147792498657868,12.073584567649938,14.85029118031153,null,{"$f":"P269*P264/2000","v":7.5211986741689287},8.2508858641566469,10.263689501026327,11.16225290926849,12.101382375205676,14.85029118031153,null,{"$f":"W269*W264/2000","v":7.5348019351205435},8.2653242341924429,10.277502571754594,11.181616006933595,12.133177358807036,14.85029118031153,null,{"$f":"AD269*AD264/2000","v":7.5484576005297557},8.276670019577514,10.289721915392985,11.211431844586984,12.180677515899959,14.85029118031153,null,{"$f":"AK269*AK264/2000","v":7.5744902974139654},8.2891296801216203,10.317239248372188,11.251168010637821,12.239907540367239,14.85029118031153,null,{"$f":"AR269*AR264/2000","v":7.5840675327035312},8.3018912159622698,10.346198011072021,11.306459543785703,12.298333786035464,14.85029118031153]
[null,null,null,null,null,null,null,null,null,null,null,null,null,null,null,{"$f":"B266-P266","v":6.6858571351159135E-2},6.8530775691828083E-2,9.5657158360857863E-2,0.15153760762760271,0.21849499553169593,0]
["Targets"]
["- SID Ile:Lys",0.56000000000000005,0.56000000000000005,0.56000000000000005,0.56000000000000005,0.56000000000000005,0.56000000000000005,null,0.56000000000000005,0.56000000000000005,0.56000000000000005,0.56000000000000005,0.56000000000000005,0.56000000000000005,null,0.56000000000000005,0.56000000000000005,0.56000000000000005,0.56000000000000005,0.56000000000000005,0.56000000000000005,null,0.56000000000000005,0.56000000000000005,0.56000000000000005,0.56000000000000005,0.56000000000000005,0.56000000000000005,null,0.56000000000000005,0.56000000000000005,0.56000000000000005,0.56000000000000005,0.56000000000000005,0.56000000000000005,null,0.56000000000000005,0.56000000000000005,0.56000000000000005,0.56000000000000005,0.56000000000000005,0.56000000000000005,null,0.56000000000000005,0.56000000000000005,0.56000000000000005,0.56000000000000005,0.56000000000000005,0.56000000000000005]
["- SID Leu:Lys"]
["- SID Met:Lys",{"$f":" 0.000000416*((B5+B6)/2)^2 - 0.000036654*((B5+B6)/2) + 0.280606061","v":0.28002731600000003},0.281219626,0.28362810100000002,0.28748674100000005,0.29267658100000005,0.29964938600000002,null,{"$f":" 0.000000416*((I5+I6)/2)^2 - 0.000036654*((I5+I6)/2) + 0.280606061","v":0.28002731600000003},0.281219626,0.28362810100000002,0.28748674100000005,0.29267658100000005,0.29964938600000002,null,{"$f":" 0.000000416*((P5+P6)/2)^2 - 0.000036654*((P5+P6)/2) + 0.280606061","v":0.28002731600000003},0.281219626,0.28362810100000002,0.28748674100000005,0.29267658100000005,0.29964938600000002,null,{"$f":" 0.000000416*((W5+W6)/2)^2 - 0.000036654*((W5+W6)/2) + 0.280606061","v":0.28002731600000003},0.281219626,0.28362810100000002,0.28748674100000005,0.29267658100000005,0.29964938600000002,null,{"$f":" 0.000000416*((AD5+AD6)/2)^2 - 0.000036654*((AD5+AD6)/2) + 0.280606061","v":0.28002731600000003},0.281219626,0.28362810100000002,0.28748674100000005,0.29267658100000005,0.29964938600000002,null,{"$f":" 0.000000416*((AK5+AK6)/2)^2 - 0.000036654*((AK5+AK6)/2) + 0.280606061","v":0.28002731600000003},0.281219626,0.28362810100000002,0.28748674100000005,0.29267658100000005,0.29964938600000002,null,{"$f":" 0.000000416*((AR5+AR6)/2)^2 - 0.000036654*((AR5+AR6)/2) + 0.280606061","v":0.28002731600000003},0.281219626,0.28362810100000002,0.28748674100000005,0.29267658100000005,0.29964938600000002]
["- SID Met & Cys:Lys",0.55900000000000005,0.55900000000000005,0.55900000000000005,0.56899999999999995,0.56899999999999995,0.57899999999999996,null,0.55900000000000005,0.55900000000000005,0.55900000000000005,0.56899999999999995,0.56899999999999995,0.57899999999999996,null,0.55900000000000005,0.55900000000000005,0.55900000000000005,0.56899999999999995,0.56899999999999995,0.57899999999999996,null,0.55900000000000005,0.55900000000000005,0.55900000000000005,0.56899999999999995,0.56899999999999995,0.57899999999999996,null,0.55900000000000005,0.55900000000000005,0.55900000000000005,0.56899999999999995,0.56899999999999995,0.57899999999999996,null,0.55900000000000005,0.55900000000000005,0.55900000000000005,0.56899999999999995,0.56899999999999995,0.57899999999999996,null,0.55900000000000005,0.55900000000000005,0.55900000000000005,0.56899999999999995,0.56899999999999995,0.57899999999999996]
["- SID Thr:Lys",0.61899999999999999,0.61899999999999999,0.61899999999999999,0.629,0.629,0.63900000000000001,null,0.61899999999999999,0.61899999999999999,0.61899999999999999,0.629,0.629,0.63900000000000001,null,0.61899999999999999,0.61899999999999999,0.61899999999999999,0.629,0.629,0.63900000000000001,null,0.61899999999999999,0.61899999999999999,0.61899999999999999,0.629,0.629,0.63900000000000001,null,0.61899999999999999,0.61899999999999999,0.61899999999999999,0.629,0.629,0.63900000000000001,null,0.61899999999999999,0.61899999999999999,0.61899999999999999,0.629,0.629,0.63900000000000001,null,0.61899999999999999,0.61899999999999999,0.61899999999999999,0.629,0.629,0.63900000000000001]
["- SID Trp:Lys",0.189,0.189,0.189,0.189,0.189,0.189,null,0.189,0.189,0.189,0.189,0.189,0.189,null,0.189,0.189,0.189,0.189,0.189,0.189,null,0.189,0.189,0.189,0.189,0.189,0.189,null,0.189,0.189,0.189,0.189,0.189,0.189,null,0.189,0.189,0.189,0.189,0.189,0.189,null,0.189,0.189,0.189,0.189,0.189,0.189]
["- SID Val:Lys",0.67900000000000005,0.67900000000000005,0.67900000000000005,0.67900000000000005,0.67900000000000005,0.67900000000000005,null,0.67900000000000005,0.67900000000000005,0.67900000000000005,0.67900000000000005,0.67900000000000005,0.67900000000000005,null,0.67900000000000005,0.67900000000000005,0.67900000000000005,0.67900000000000005,0.67900000000000005,0.67900000000000005,null,0.67900000000000005,0.67900000000000005,0.67900000000000005,0.67900000000000005,0.67900000000000005,0.67900000000000005,null,0.67900000000000005,0.67900000000000005,0.67900000000000005,0.67900000000000005,0.67900000000000005,0.67900000000000005,null,0.67900000000000005,0.67900000000000005,0.67900000000000005,0.67900000000000005,0.67900000000000005,0.67900000000000005,null,0.67900000000000005,0.67900000000000005,0.67900000000000005,0.67900000000000005,0.67900000000000005,0.67900000000000005]
["- SID His:Lys",0.31,0.31,0.31,0.31,0.31,0.31,null,0.31,0.31,0.31,0.31,0.31,0.31,null,0.31,0.31,0.31,0.31,0.31,0.31,null,0.31,0.31,0.31,0.31,0.31,0.31,null,0.31,0.31,0.31,0.31,0.31,0.31,null,0.31,0.31,0.31,0.31,0.31,0.31,null,0.31,0.31,0.31,0.31,0.31,0.31]
["- Avail P:ME, g/mcal (terminal)",{"$f":"IF(AVERAGE(B5:B6)<51,0.000025*((B6+B5)/2)^2 - 0.01005*((B6+B5)/2) + 1.5955,(0.00000649518*((B5+B6)/2)^2 - 0.00338103746*((B5+B6)/2) + 1.049852))","v":0.85122563532500006},0.77153564522499996,0.70381228360000003,0.65170908920000004,0.62039047080000009,0.60988816362500009,null,{"$f":"IF(AVERAGE(I5:I6)<51,0.000025*((I6+I5)/2)^2 - 0.01005*((I6+I5)/2) + 1.5955,(0.00000649518*((I5+I6)/2)^2 - 0.00338103746*((I5+I6)/2) + 1.049852))","v":0.85122563532500006},0.77153564522499996,0.70381228360000003,0.65170908920000004,0.62039047080000009,0.60988816362500009,null,{"$f":"IF(AVERAGE(P5:P6)<51,0.000025*((P6+P5)/2)^2 - 0.01005*((P6+P5)/2) + 1.5955,(0.00000649518*((P5+P6)/2)^2 - 0.00338103746*((P5+P6)/2) + 1.049852))","v":0.85122563532500006},0.77153564522499996,0.70381228360000003,0.65170908920000004,0.62039047080000009,0.60988816362500009,null,{"$f":"IF(AVERAGE(W5:W6)<51,0.000025*((W6+W5)/2)^2 - 0.01005*((W6+W5)/2) + 1.5955,(0.00000649518*((W5+W6)/2)^2 - 0.00338103746*((W5+W6)/2) + 1.049852))","v":0.85122563532500006},0.77153564522499996,0.70381228360000003,0.65170908920000004,0.62039047080000009,0.60988816362500009,null,{"$f":"IF(AVERAGE(AD5:AD6)<51,0.000025*((AD6+AD5)/2)^2 - 0.01005*((AD6+AD5)/2) + 1.5955,(0.00000649518*((AD5+AD6)/2)^2 - 0.00338103746*((AD5+AD6)/2) + 1.049852))","v":0.85122563532500006},0.77153564522499996,0.70381228360000003,0.65170908920000004,0.62039047080000009,0.60988816362500009,null,{"$f":"IF(AVERAGE(AK5:AK6)<51,0.000025*((AK6+AK5)/2)^2 - 0.01005*((AK6+AK5)/2) + 1.5955,(0.00000649518*((AK5+AK6)/2)^2 - 0.00338103746*((AK5+AK6)/2) + 1.049852))","v":0.85122563532500006},0.77153564522499996,0.70381228360000003,0.65170908920000004,0.62039047080000009,0.60988816362500009,null,{"$f":"IF(AVERAGE(AR5:AR6)<51,0.000025*((AR6+AR5)/2)^2 - 0.01005*((AR6+AR5)/2) + 1.5955,(0.00000649518*((AR5+AR6)/2)^2 - 0.00338103746*((AR5+AR6)/2) + 1.049852))","v":0.85122563532500006},0.77153564522499996,0.70381228360000003,0.65170908920000004,0.62039047080000009,0.60988816362500009]
["- Avail P:ME, g/mcal (Replacements)",{"$f":"IF(AVERAGE(B5:B6)<51,0.000025*((B6+B5)/2)^2 - 0.01005*((B6+B5)/2) + 1.5955,0.00000649518*((B6+B5)/2)^2 - 0.00338103746*((B6+B5)/2) + 1.3529)","v":1.154273635325},1.0745836452249999,1.0068602836,0.95475708920000002,0.92343847080000008,0.91293616362500007,null,{"$f":"IF(AVERAGE(I5:I6)<51,0.000025*((I6+I5)/2)^2 - 0.01005*((I6+I5)/2) + 1.5955,0.00000649518*((I6+I5)/2)^2 - 0.00338103746*((I6+I5)/2) + 1.3529)","v":1.154273635325},1.0745836452249999,1.0068602836,0.95475708920000002,0.92343847080000008,0.91293616362500007,null,{"$f":"IF(AVERAGE(P5:P6)<51,0.000025*((P6+P5)/2)^2 - 0.01005*((P6+P5)/2) + 1.5955,0.00000649518*((P6+P5)/2)^2 - 0.00338103746*((P6+P5)/2) + 1.3529)","v":1.154273635325},1.0745836452249999,1.0068602836,0.95475708920000002,0.92343847080000008,0.91293616362500007,null,{"$f":"IF(AVERAGE(W5:W6)<51,0.000025*((W6+W5)/2)^2 - 0.01005*((W6+W5)/2) + 1.5955,0.00000649518*((W6+W5)/2)^2 - 0.00338103746*((W6+W5)/2) + 1.3529)","v":1.154273635325},1.0745836452249999,1.0068602836,0.95475708920000002,0.92343847080000008,0.91293616362500007,null,{"$f":"IF(AVERAGE(AD5:AD6)<51,0.000025*((AD6+AD5)/2)^2 - 0.01005*((AD6+AD5)/2) + 1.5955,0.00000649518*((AD6+AD5)/2)^2 - 0.00338103746*((AD6+AD5)/2) + 1.3529)","v":1.154273635325},1.0745836452249999,1.0068602836,0.95475708920000002,0.92343847080000008,0.91293616362500007,null,{"$f":"IF(AVERAGE(AK5:AK6)<51,0.000025*((AK6+AK5)/2)^2 - 0.01005*((AK6+AK5)/2) + 1.5955,0.00000649518*((AK6+AK5)/2)^2 - 0.00338103746*((AK6+AK5)/2) + 1.3529)","v":1.154273635325},1.0745836452249999,1.0068602836,0.95475708920000002,0.92343847080000008,0.91293616362500007,null,{"$f":"IF(AVERAGE(AR5:AR6)<51,0.000025*((AR6+AR5)/2)^2 - 0.01005*((AR6+AR5)/2) + 1.5955,0.00000649518*((AR6+AR5)/2)^2 - 0.00338103746*((AR6+AR5)/2) + 1.3529)","v":1.154273635325},1.0745836452249999,1.0068602836,0.95475708920000002,0.92343847080000008,0.91293616362500007]
["- Available P, % (Terminal)",{"$f":"B281*(B246*2.2046)/10000","v":0.27996053561020928},0.25468658901444263,0.23309759512248635,0.21647481730659451,0.20653872384003844,0.20321869012127139,null,{"$f":"I281*(I246*2.2046)/10000","v":0.28060568881921844},0.25526169823566913,0.23361778591880025,0.21700058629976807,0.20702525787603795,0.20321869012127139,null,{"$f":"P281*(P246*2.2046)/10000","v":0.28123888075997322},0.25583410586261845,0.23413507094407504,0.21748090215842958,0.20749082359034124,0.20321869012127139,null,{"$f":"W281*(W246*2.2046)/10000","v":0.2818768260596401},0.25640950408866248,0.23466190302744136,0.21796833263403029,0.20796333079512369,0.20321869012127139,null,{"$f":"AD281*(AD246*2.2046)/10000","v":0.28251229502666036},0.25698638647591293,0.23518271159118695,0.21846278304608177,0.20831356042979868,0.20321869012127139,null,{"$f":"AK281*(AK246*2.2046)/10000","v":0.28312830561972274},0.25756481852584751,0.23572255398917272,0.21886244103394806,0.20860600417239569,0.20321869012127139,null,{"$f":"AR281*(AR246*2.2046)/10000","v":0.28377310343694417},0.25814064534285253,0.23625855024071338,0.21916963101843256,0.20889769173381964,0.20321869012127139]
["- STTD P, % (Terminal)",{"$f":" -0.096629122*LN(AVERAGE(B5:B6)/2.2046) + 0.7201091526","v":0.38948473530861316},0.34911934963648045,0.31899235830889017,0.29470806575817415,0.27531743264453717,0.25825045546730907,null,{"$f":" -0.096629122*LN(AVERAGE(I5:I6)/2.2046) + 0.7201091526","v":0.38948473530861316},0.34911934963648045,0.31899235830889017,0.29470806575817415,0.27531743264453717,0.25825045546730907,null,{"$f":" -0.096629122*LN(AVERAGE(P5:P6)/2.2046) + 0.7201091526","v":0.38948473530861316},0.34911934963648045,0.31899235830889017,0.29470806575817415,0.27531743264453717,0.25825045546730907,null,{"$f":" -0.096629122*LN(AVERAGE(W5:W6)/2.2046) + 0.7201091526","v":0.38948473530861316},0.34911934963648045,0.31899235830889017,0.29470806575817415,0.27531743264453717,0.25825045546730907,null,{"$f":" -0.096629122*LN(AVERAGE(AD5:AD6)/2.2046) + 0.7201091526","v":0.38948473530861316},0.34911934963648045,0.31899235830889017,0.29470806575817415,0.27531743264453717,0.25825045546730907,null,{"$f":" -0.096629122*LN(AVERAGE(AK5:AK6)/2.2046) + 0.7201091526","v":0.38948473530861316},0.34911934963648045,0.31899235830889017,0.29470806575817415,0.27531743264453717,0.25825045546730907,null,{"$f":" -0.096629122*LN(AVERAGE(AR5:AR6)/2.2046) + 0.7201091526","v":0.38948473530861316},0.34911934963648045,0.31899235830889017,0.29470806575817415,0.27531743264453717,0.25825045546730907]
["- Ca:P, Minimum",1,1,1,1,1,1,null,1,1,1,1,1,1,null,1,1,1,1,1,1,null,1,1,1,1,1,1,null,1,1,1,1,1,1,null,1,1,1,1,1,1,null,1,1,1,1,1,1]
["- Ca:P, Maximum",1.5,1.5,1.5,1.5,1.5,1.5,null,1.5,1.5,1.5,1.5,1.5,1.5,null,1.5,1.5,1.5,1.5,1.5,1.5,null,1.5,1.5,1.5,1.5,1.5,1.5,null,1.5,1.5,1.5,1.5,1.5,1.5,null,1.5,1.5,1.5,1.5,1.5,1.5,null,1.5,1.5,1.5,1.5,1.5,1.5]
["NRC Ca, %",{"$f":"-0.12264*LN(AVERAGE(B5:B6)/2.2046) + 1.07262","v":0.65299724345031629},0.60176619843647083,0.56352954534532851,0.53270834386095811,0.50809808976948001,0.48643697935376851,null,{"$f":"-0.12264*LN(AVERAGE(I5:I6)/2.2046) + 1.07262","v":0.65299724345031629},0.60176619843647083,0.56352954534532851,0.53270834386095811,0.50809808976948001,0.48643697935376851,null,{"$f":"-0.12264*LN(AVERAGE(P5:P6)/2.2046) + 1.07262","v":0.65299724345031629},0.60176619843647083,0.56352954534532851,0.53270834386095811,0.50809808976948001,0.48643697935376851,null,{"$f":"-0.12264*LN(AVERAGE(W5:W6)/2.2046) + 1.07262","v":0.65299724345031629},0.60176619843647083,0.56352954534532851,0.53270834386095811,0.50809808976948001,0.48643697935376851,null,{"$f":"-0.12264*LN(AVERAGE(AD5:AD6)/2.2046) + 1.07262","v":0.65299724345031629},0.60176619843647083,0.56352954534532851,0.53270834386095811,0.50809808976948001,0.48643697935376851,null,{"$f":"-0.12264*LN(AVERAGE(AK5:AK6)/2.2046) + 1.07262","v":0.65299724345031629},0.60176619843647083,0.56352954534532851,0.53270834386095811,0.50809808976948001,0.48643697935376851,null,{"$f":"-0.12264*LN(AVERAGE(AR5:AR6)/2.2046) + 1.07262","v":0.65299724345031629},0.60176619843647083,0.56352954534532851,0.53270834386095811,0.50809808976948001,0.48643697935376851]
["NRC STTD P, %",0.4,0.36,0.32,0.28999999999999998,0.27,0.26,null,0.4,0.36,0.32,0.28999999999999998,0.27,0.26,null,0.4,0.36,0.32,0.28999999999999998,0.27,0.26,null,0.4,0.36,0.32,0.28999999999999998,0.27,0.26,null,0.4,0.36,0.32,0.28999999999999998,0.27,0.26,null,0.4,0.36,0.32,0.28999999999999998,0.27,0.26,null,0.4,0.36,0.32,0.28999999999999998,0.27,0.26]
["NRC Ca:STTD P",1.74,1.74,1.79,1.79,1.77,1.77,null,1.74,1.74,1.79,1.79,1.77,1.77,null,1.74,1.74,1.79,1.79,1.77,1.77,null,1.74,1.74,1.79,1.79,1.77,1.77,null,1.74,1.74,1.79,1.79,1.77,1.77,null,1.74,1.74,1.79,1.79,1.77,1.77,null,1.74,1.74,1.79,1.79,1.77,1.77]
["- Lysine:CP, Maximum",7.3,8.3000000000000007,9.3000000000000007,10.3,11.3,11.3,null,7.3,8.3000000000000007,9.3000000000000007,10.3,11.3,11.3,null,7.3,8.3000000000000007,9.3000000000000007,10.3,11.3,11.3,null,7.3,8.3000000000000007,9.3000000000000007,10.3,11.3,11.3,null,7.3,8.3000000000000007,9.3000000000000007,10.3,11.3,11.3,null,7.3,8.3000000000000007,9.3000000000000007,10.3,11.3,11.3,null,7.3,8.3000000000000007,9.3000000000000007,10.3,11.3,11.3]
[]
["Required SID Lys:ME Ratio",{"$f":"IF(AVERAGE(B5:B6)<15,-0.0525*((B5+B6)/2) + 5.0586,IF(AVERAGE(B5:B6)<50,(-0.007855*((B5+B6)/2) + 4.1),(0.000025*((B5+B6)/2)^2 - 0.016*((B5+B6)/2)+ 4.53)*0.87))","v":3.1005984375},2.7428109375000003,2.4186000000000001,2.1402000000000005,1.9314000000000002,1.7858109375,null,{"$f":"IF(AVERAGE(I5:I6)<15,-0.0525*((I5+I6)/2) + 5.0586,IF(AVERAGE(I5:I6)<50,(-0.007855*((I5+I6)/2) + 4.1),(0.000025*((I5+I6)/2)^2 - 0.016*((I5+I6)/2)+ 4.53)*0.87))","v":3.1005984375},2.7428109375000003,2.4186000000000001,2.1402000000000005,1.9314000000000002,1.7858109375,null,{"$f":"IF(AVERAGE(P5:P6)<15,-0.0525*((P5+P6)/2) + 5.0586,IF(AVERAGE(P5:P6)<50,(-0.007855*((P5+P6)/2) + 4.1),(0.000025*((P5+P6)/2)^2 - 0.016*((P5+P6)/2)+ 4.53)*0.87))","v":3.1005984375},2.7428109375000003,2.4186000000000001,2.1402000000000005,1.9314000000000002,1.7858109375,null,{"$f":"IF(AVERAGE(W5:W6)<15,-0.0525*((W5+W6)/2) + 5.0586,IF(AVERAGE(W5:W6)<50,(-0.007855*((W5+W6)/2) + 4.1),(0.000025*((W5+W6)/2)^2 - 0.016*((W5+W6)/2)+ 4.53)*0.87))","v":3.1005984375},2.7428109375000003,2.4186000000000001,2.1402000000000005,1.9314000000000002,1.7858109375,null,{"$f":"IF(AVERAGE(AD5:AD6)<15,-0.0525*((AD5+AD6)/2) + 5.0586,IF(AVERAGE(AD5:AD6)<50,(-0.007855*((AD5+AD6)/2) + 4.1),(0.000025*((AD5+AD6)/2)^2 - 0.016*((AD5+AD6)/2)+ 4.53)*0.87))","v":3.1005984375},2.7428109375000003,2.4186000000000001,2.1402000000000005,1.9314000000000002,1.7858109375,null,{"$f":"IF(AVERAGE(AK5:AK6)<15,-0.0525*((AK5+AK6)/2) + 5.0586,IF(AVERAGE(AK5:AK6)<50,(-0.007855*((AK5+AK6)/2) + 4.1),(0.000025*((AK5+AK6)/2)^2 - 0.016*((AK5+AK6)/2)+ 4.53)*0.87))","v":3.1005984375},2.7428109375000003,2.4186000000000001,2.1402000000000005,1.9314000000000002,1.7858109375,null,{"$f":"IF(AVERAGE(AR5:AR6)<15,-0.0525*((AR5+AR6)/2) + 5.0586,IF(AVERAGE(AR5:AR6)<50,(-0.007855*((AR5+AR6)/2) + 4.1),(0.000025*((AR5+AR6)/2)^2 - 0.016*((AR5+AR6)/2)+ 4.53)*0.87))","v":3.1005984375},2.7428109375000003,2.4186000000000001,2.1402000000000005,1.9314000000000002,1.7858109375]
["Calculated SID Lysine Required, %",{"$f":"IF(B292=\"\",\"\",B246*2.2046*B292/10000)","v":1.0197592309861019},0.90541139130346093,0.80102302375224621,0.71089909850466104,0.6429964836665738,0.59504378206974184,null,{"$f":"IF(I292=\"\",\"\",I246*2.2046*I292/10000)","v":1.0221092084172188},0.90745590586607328,0.80281062179405571,0.71262571367366423,0.64451116173040313,0.59504378206974184,null,{"$f":"IF(P292=\"\",\"\",P246*2.2046*P292/10000)","v":1.0244156168013978},0.90949081625501227,0.80458823436388793,0.71420306163112368,0.64596056120207102,0.59504378206974184,null,{"$f":"IF(W292=\"\",\"\",W246*2.2046*W292/10000)","v":1.0267393393460114},0.91153635823039492,0.80639865470823346,0.71580377385252481,0.64743157092622106,0.59504378206974184,null,{"$f":"IF(AD292=\"\",\"\",AD246*2.2046*AD292/10000)","v":1.0290540418226002},0.91358717640217257,0.80818837566313362,0.7174275394089813,0.64852190604297266,0.59504378206974184,null,{"$f":"IF(AK292=\"\",\"\",AK246*2.2046*AK292/10000)","v":1.031297866964924},0.91564350362824465,0.81004350501252487,0.71874000848422681,0.64943234208452483,0.59504378206974184,null,{"$f":"IF(AR292=\"\",\"\",AR246*2.2046*AR292/10000)","v":1.0336465498776712},0.91769056924544823,0.811885417357881,0.71974881443106553,0.65034042398237824,0.59504378206974184]
[]
[]
["Other nutrients, calculated"]
["Other ingredients TID Lysine, %",{"$f":"SUMPRODUCT(B$9:B$229,Nutrients!$DA$8:$DA$228)/2000","v":0.24855419080599378},{"$f":"SUMPRODUCT(C$9:C$229,Nutrients!$DA$8:$DA$228)/2000","v":0.24598837503388346},{"$f":"SUMPRODUCT(D$9:D$229,Nutrients!$DA$8:$DA$228)/2000","v":0.24037497861787219},{"$f":"SUMPRODUCT(E$9:E$229,Nutrients!$DA$8:$DA$228)/2000","v":0.23743614434297908},{"$f":"SUMPRODUCT(F$9:F$229,Nutrients!$DA$8:$DA$228)/2000","v":0.23330638337529597},{"$f":"SUMPRODUCT(G$9:G$229,Nutrients!$DA$8:$DA$228)/2000","v":0.2281455840399364},null,{"$f":"SUMPRODUCT(I$9:I$229,Nutrients!$DA$8:$DA$228)/2000","v":0.29595419080599378},{"$f":"SUMPRODUCT(J$9:J$229,Nutrients!$DA$8:$DA$228)/2000","v":0.29338837503388343},{"$f":"SUMPRODUCT(K$9:K$229,Nutrients!$DA$8:$DA$228)/2000","v":0.28777497861787221},{"$f":"SUMPRODUCT(L$9:L$229,Nutrients!$DA$8:$DA$228)/2000","v":0.2848361443429791},{"$f":"SUMPRODUCT(M$9:M$229,Nutrients!$DA$8:$DA$228)/2000","v":0.28070638337529596},{"$f":"SUMPRODUCT(N$9:N$229,Nutrients!$DA$8:$DA$228)/2000","v":0.2281455840399364},null,{"$f":"SUMPRODUCT(P$9:P$229,Nutrients!$DA$8:$DA$228)/2000","v":0.34335419080599378},{"$f":"SUMPRODUCT(Q$9:Q$229,Nutrients!$DA$8:$DA$228)/2000","v":0.34078837503388343},{"$f":"SUMPRODUCT(R$9:R$229,Nutrients!$DA$8:$DA$228)/2000","v":0.33517497861787215},{"$f":"SUMPRODUCT(S$9:S$229,Nutrients!$DA$8:$DA$228)/2000","v":0.33223614434297905},{"$f":"SUMPRODUCT(T$9:T$229,Nutrients!$DA$8:$DA$228)/2000","v":0.32810638337529602},{"$f":"SUMPRODUCT(U$9:U$229,Nutrients!$DA$8:$DA$228)/2000","v":0.2281455840399364},null,{"$f":"SUMPRODUCT(W$9:W$229,Nutrients!$DA$8:$DA$228)/2000","v":0.39075419080599372},{"$f":"SUMPRODUCT(X$9:X$229,Nutrients!$DA$8:$DA$228)/2000","v":0.38818837503388348},{"$f":"SUMPRODUCT(Y$9:Y$229,Nutrients!$DA$8:$DA$228)/2000","v":0.38257497861787215},{"$f":"SUMPRODUCT(Z$9:Z$229,Nutrients!$DA$8:$DA$228)/2000","v":0.37963614434297904},{"$f":"SUMPRODUCT(AA$9:AA$229,Nutrients!$DA$8:$DA$228)/2000","v":0.37550638337529596},{"$f":"SUMPRODUCT(AB$9:AB$229,Nutrients!$DA$8:$DA$228)/2000","v":0.2281455840399364},null,{"$f":"SUMPRODUCT(AD$9:AD$229,Nutrients!$DA$8:$DA$228)/2000","v":0.43815419080599377},{"$f":"SUMPRODUCT(AE$9:AE$229,Nutrients!$DA$8:$DA$228)/2000","v":0.43558837503388342},{"$f":"SUMPRODUCT(AF$9:AF$229,Nutrients!$DA$8:$DA$228)/2000","v":0.42997497861787221},{"$f":"SUMPRODUCT(AG$9:AG$229,Nutrients!$DA$8:$DA$228)/2000","v":0.4270361443429791},{"$f":"SUMPRODUCT(AH$9:AH$229,Nutrients!$DA$8:$DA$228)/2000","v":0.42290638337529601},{"$f":"SUMPRODUCT(AI$9:AI$229,Nutrients!$DA$8:$DA$228)/2000","v":0.2281455840399364},null,{"$f":"SUMPRODUCT(AK$9:AK$229,Nutrients!$DA$8:$DA$228)/2000","v":0.48555419080599382},{"$f":"SUMPRODUCT(AL$9:AL$229,Nutrients!$DA$8:$DA$228)/2000","v":0.48298837503388348},{"$f":"SUMPRODUCT(AM$9:AM$229,Nutrients!$DA$8:$DA$228)/2000","v":0.4773749786178722},{"$f":"SUMPRODUCT(AN$9:AN$229,Nutrients!$DA$8:$DA$228)/2000","v":0.47443614434297909},{"$f":"SUMPRODUCT(AO$9:AO$229,Nutrients!$DA$8:$DA$228)/2000","v":0.47030638337529601},{"$f":"SUMPRODUCT(AP$9:AP$229,Nutrients!$DA$8:$DA$228)/2000","v":0.2281455840399364},null,{"$f":"SUMPRODUCT(AR$9:AR$229,Nutrients!$DA$8:$DA$228)/2000","v":0.53295419080599382},{"$f":"SUMPRODUCT(AS$9:AS$229,Nutrients!$DA$8:$DA$228)/2000","v":0.53038837503388359},{"$f":"SUMPRODUCT(AT$9:AT$229,Nutrients!$DA$8:$DA$228)/2000","v":0.52477497861787226},{"$f":"SUMPRODUCT(AU$9:AU$229,Nutrients!$DA$8:$DA$228)/2000","v":0.5218361443429792},{"$f":"SUMPRODUCT(AV$9:AV$229,Nutrients!$DA$8:$DA$228)/2000","v":0.51770638337529606},{"$f":"SUMPRODUCT(AW$9:AW$229,Nutrients!$DA$8:$DA$228)/2000","v":0.2281455840399364}]
["Total Lys:ME, g/mcal",{"$f":"IF(B$5=\"\",\"\",B245/(B246*2.2046)*10000)","v":4.0434845516419928},3.5693197159555714,3.1528272192975133,2.8088586731646132,2.5736429013234892,2.4458370650662657,null,{"$f":"IF(I$5=\"\",\"\",I245/(I246*2.2046)*10000)","v":4.0271406360078883},3.5591326910626186,3.1476655759679191,2.8065813543979083,2.5719151300986591,2.4458370650662657,null,{"$f":"IF(P$5=\"\",\"\",P245/(P246*2.2046)*10000)","v":4.0173276330441174},3.5533707848128109,3.146039731372555,2.8042398766879515,2.5725341953128291,2.4458370650662657,null,{"$f":"IF(W$5=\"\",\"\",W245/(W246*2.2046)*10000)","v":4.0074901404035028},3.5476091242178702,3.1397711964568376,2.8029693822445583,2.5733656697428344,2.4458370650662657,null,{"$f":"IF(AD$5=\"\",\"\",AD245/(AD246*2.2046)*10000)","v":3.9973739997934223},3.5373999072847315,3.1346802614833331,2.8015258268850221,2.5739180471005292,2.4458370650662657,null,{"$f":"IF(AK$5=\"\",\"\",AK245/(AK246*2.2046)*10000)","v":4.0053826603255205},3.5284976325215869,3.1298595857027851,2.7999113454395377,2.5745594546283517,2.4458370650662657,null,{"$f":"IF(AR$5=\"\",\"\",AR245/(AR246*2.2046)*10000)","v":3.9884878297030588},3.5196966993008902,3.1259689793167209,2.7987690738800883,2.5752311596139394,2.4458370650662657]
["SID Lys:ME, g/mcal",{"$f":"IF(B$5=\"\",\"\",B236/(B246*2.2046)*10000)","v":3.6063972315389758},3.1769527308876992,2.7987491648675547,2.4869234391841561,2.2730285254980038,2.1560010424593594,null,{"$f":"IF(I$5=\"\",\"\",I236/(I246*2.2046)*10000)","v":3.568521744015936},3.1447283706055846,2.7711468540925082,2.461986773506573,2.2486463465723441,2.1560010424593594,null,{"$f":"IF(P$5=\"\",\"\",P236/(P246*2.2046)*10000)","v":3.5366555161131203},3.1166087857679101,2.7468417387226545,2.4371084229149242,2.2265107357734371,2.1560010424593594,null,{"$f":"IF(W$5=\"\",\"\",W236/(W246*2.2046)*10000)","v":3.5048704216877544},3.0885903927607021,2.7184440522435178,2.4133034328473397,2.2046733160336278,2.1560010424593594,null,{"$f":"IF(AD$5=\"\",\"\",AD236/(AD246*2.2046)*10000)","v":3.4729368542905035},3.0566563930072048,2.6912088386894202,2.3894594708947174,2.1826721884408915,2.1560010424593594,null,{"$f":"IF(AK$5=\"\",\"\",AK236/(AK246*2.2046)*10000)","v":3.4574765616637064},3.0260050544100583,2.6643441184453724,2.3655427478636613,2.1608155685985819,2.1560010424593594,null,{"$f":"IF(AR$5=\"\",\"\",AR236/(AR246*2.2046)*10000)","v":3.4196236800367767},2.9955459451900488,2.6384214173911289,2.3421079623562377,2.1390479597077561,2.1560010424593594]
["Lysine:CP",{"$f":"B245/B253*100","v":6.4370478420696102},6.3776088080946991,6.2955955211424843,6.2166350165421349,6.1431562205295167,6.0778386851000716,null,{"$f":"I245/I253*100","v":6.3613201895694003},6.2944363705319484,6.2048511931365748,6.1180516282727391,6.0386705334628612,6.0778386851000716,null,{"$f":"P245/P253*100","v":6.2877555911951264},6.2136953289551,6.1174174812790856,6.0229434291242114,5.9369179672319001,6.0778386851000716,null,{"$f":"W245/W253*100","v":6.215824500458675},6.1351912826698207,6.0315172554482519,5.9307064950822896,5.8385605737600788,6.0778386851000716,null,{"$f":"AD245/AD253*100","v":6.1454500580958484},6.0578623711016304,5.9486216150848366,5.8399701548793512,5.7443954969125954,6.0778386851000716,null,{"$f":"AK245/AK253*100","v":6.0797117772838067},5.9826280100744187,5.8660368980773914,5.7526680838157604,5.6536665985135492,6.0778386851000716,null,{"$f":"AR245/AR253*100","v":6.0113331085290902},5.9092195025030776,5.7861009714981027,5.668397853973639,5.5661767727775286,6.0778386851000716]
["Crude fat, %",{"$f":"(SUMPRODUCT(B$9:B$229,Nutrients!$K$8:$K$228)+(IF($A$7=Nutrients!$B$8,Nutrients!$K$8,Nutrients!$K$9)*B$7)+(((IF($A$8=Nutrients!$B$79,Nutrients!$K$79,(IF($A$8=Nutrients!$B$77,Nutrients!$K$77,Nutrients!$K$78)))))*B$8))/2000","v":2.7726851771066428},{"$f":"(SUMPRODUCT(C$9:C$229,Nutrients!$K$8:$K$228)+(IF($A$7=Nutrients!$B$8,Nutrients!$K$8,Nutrients!$K$9)*C$7)+(((IF($A$8=Nutrients!$B$79,Nutrients!$K$79,(IF($A$8=Nutrients!$B$77,Nutrients!$K$77,Nutrients!$K$78)))))*C$8))/2000","v":2.8895248185748268},{"$f":"(SUMPRODUCT(D$9:D$229,Nutrients!$K$8:$K$228)+(IF($A$7=Nutrients!$B$8,Nutrients!$K$8,Nutrients!$K$9)*D$7)+(((IF($A$8=Nutrients!$B$79,Nutrients!$K$79,(IF($A$8=Nutrients!$B$77,Nutrients!$K$77,Nutrients!$K$78)))))*D$8))/2000","v":2.9911114387020761},{"$f":"(SUMPRODUCT(E$9:E$229,Nutrients!$K$8:$K$228)+(IF($A$7=Nutrients!$B$8,Nutrients!$K$8,Nutrients!$K$9)*E$7)+(((IF($A$8=Nutrients!$B$79,Nutrients!$K$79,(IF($A$8=Nutrients!$B$77,Nutrients!$K$77,Nutrients!$K$78)))))*E$8))/2000","v":3.0762951752970258},{"$f":"(SUMPRODUCT(F$9:F$229,Nutrients!$K$8:$K$228)+(IF($A$7=Nutrients!$B$8,Nutrients!$K$8,Nutrients!$K$9)*F$7)+(((IF($A$8=Nutrients!$B$79,Nutrients!$K$79,(IF($A$8=Nutrients!$B$77,Nutrients!$K$77,Nutrients!$K$78)))))*F$8))/2000","v":3.1350305214620882},{"$f":"(SUMPRODUCT(G$9:G$229,Nutrients!$K$8:$K$228)+(IF($A$7=Nutrients!$B$8,Nutrients!$K$8,Nutrients!$K$9)*G$7)+(((IF($A$8=Nutrients!$B$79,Nutrients!$K$79,(IF($A$8=Nutrients!$B$77,Nutrients!$K$77,Nutrients!$K$78)))))*G$8))/2000","v":3.1635989425624271},null,{"$f":"(SUMPRODUCT(I$9:I$229,Nutrients!$K$8:$K$228)+(IF($A$7=Nutrients!$B$8,Nutrients!$K$8,Nutrients!$K$9)*I$7)+(((IF($A$8=Nutrients!$B$79,Nutrients!$K$79,(IF($A$8=Nutrients!$B$77,Nutrients!$K$77,Nutrients!$K$78)))))*I$8))/2000","v":3.2374664983793715},{"$f":"(SUMPRODUCT(J$9:J$229,Nutrients!$K$8:$K$228)+(IF($A$7=Nutrients!$B$8,Nutrients!$K$8,Nutrients!$K$9)*J$7)+(((IF($A$8=Nutrients!$B$79,Nutrients!$K$79,(IF($A$8=Nutrients!$B$77,Nutrients!$K$77,Nutrients!$K$78)))))*J$8))/2000","v":3.3530694762761306},{"$f":"(SUMPRODUCT(K$9:K$229,Nutrients!$K$8:$K$228)+(IF($A$7=Nutrients!$B$8,Nutrients!$K$8,Nutrients!$K$9)*K$7)+(((IF($A$8=Nutrients!$B$79,Nutrients!$K$79,(IF($A$8=Nutrients!$B$77,Nutrients!$K$77,Nutrients!$K$78)))))*K$8))/2000","v":3.4536423514779937},{"$f":"(SUMPRODUCT(L$9:L$229,Nutrients!$K$8:$K$228)+(IF($A$7=Nutrients!$B$8,Nutrients!$K$8,Nutrients!$K$9)*L$7)+(((IF($A$8=Nutrients!$B$79,Nutrients!$K$79,(IF($A$8=Nutrients!$B$77,Nutrients!$K$77,Nutrients!$K$78)))))*L$8))/2000","v":3.5389416573870505},{"$f":"(SUMPRODUCT(M$9:M$229,Nutrients!$K$8:$K$228)+(IF($A$7=Nutrients!$B$8,Nutrients!$K$8,Nutrients!$K$9)*M$7)+(((IF($A$8=Nutrients!$B$79,Nutrients!$K$79,(IF($A$8=Nutrients!$B$77,Nutrients!$K$77,Nutrients!$K$78)))))*M$8))/2000","v":3.5974806488766933},{"$f":"(SUMPRODUCT(N$9:N$229,Nutrients!$K$8:$K$228)+(IF($A$7=Nutrients!$B$8,Nutrients!$K$8,Nutrients!$K$9)*N$7)+(((IF($A$8=Nutrients!$B$79,Nutrients!$K$79,(IF($A$8=Nutrients!$B$77,Nutrients!$K$77,Nutrients!$K$78)))))*N$8))/2000","v":3.1635989425624271},null,{"$f":"(SUMPRODUCT(P$9:P$229,Nutrients!$K$8:$K$228)+(IF($A$7=Nutrients!$B$8,Nutrients!$K$8,Nutrients!$K$9)*P$7)+(((IF($A$8=Nutrients!$B$79,Nutrients!$K$79,(IF($A$8=Nutrients!$B$77,Nutrients!$K$77,Nutrients!$K$78)))))*P$8))/2000","v":3.7006160810761815},{"$f":"(SUMPRODUCT(Q$9:Q$229,Nutrients!$K$8:$K$228)+(IF($A$7=Nutrients!$B$8,Nutrients!$K$8,Nutrients!$K$9)*Q$7)+(((IF($A$8=Nutrients!$B$79,Nutrients!$K$79,(IF($A$8=Nutrients!$B$77,Nutrients!$K$77,Nutrients!$K$78)))))*Q$8))/2000","v":3.8154925943751441},{"$f":"(SUMPRODUCT(R$9:R$229,Nutrients!$K$8:$K$228)+(IF($A$7=Nutrients!$B$8,Nutrients!$K$8,Nutrients!$K$9)*R$7)+(((IF($A$8=Nutrients!$B$79,Nutrients!$K$79,(IF($A$8=Nutrients!$B$77,Nutrients!$K$77,Nutrients!$K$78)))))*R$8))/2000","v":3.915317010458208},{"$f":"(SUMPRODUCT(S$9:S$229,Nutrients!$K$8:$K$228)+(IF($A$7=Nutrients!$B$8,Nutrients!$K$8,Nutrients!$K$9)*S$7)+(((IF($A$8=Nutrients!$B$79,Nutrients!$K$79,(IF($A$8=Nutrients!$B$77,Nutrients!$K$77,Nutrients!$K$78)))))*S$8))/2000","v":4.0009698565147911},{"$f":"(SUMPRODUCT(T$9:T$229,Nutrients!$K$8:$K$228)+(IF($A$7=Nutrients!$B$8,Nutrients!$K$8,Nutrients!$K$9)*T$7)+(((IF($A$8=Nutrients!$B$79,Nutrients!$K$79,(IF($A$8=Nutrients!$B$77,Nutrients!$K$77,Nutrients!$K$78)))))*T$8))/2000","v":4.058579879001841},{"$f":"(SUMPRODUCT(U$9:U$229,Nutrients!$K$8:$K$228)+(IF($A$7=Nutrients!$B$8,Nutrients!$K$8,Nutrients!$K$9)*U$7)+(((IF($A$8=Nutrients!$B$79,Nutrients!$K$79,(IF($A$8=Nutrients!$B$77,Nutrients!$K$77,Nutrients!$K$78)))))*U$8))/2000","v":3.1635989425624271},null,{"$f":"(SUMPRODUCT(W$9:W$229,Nutrients!$K$8:$K$228)+(IF($A$7=Nutrients!$B$8,Nutrients!$K$8,Nutrients!$K$9)*W$7)+(((IF($A$8=Nutrients!$B$79,Nutrients!$K$79,(IF($A$8=Nutrients!$B$77,Nutrients!$K$77,Nutrients!$K$78)))))*W$8))/2000","v":4.1638259379065925},{"$f":"(SUMPRODUCT(X$9:X$229,Nutrients!$K$8:$K$228)+(IF($A$7=Nutrients!$B$8,Nutrients!$K$8,Nutrients!$K$9)*X$7)+(((IF($A$8=Nutrients!$B$79,Nutrients!$K$79,(IF($A$8=Nutrients!$B$77,Nutrients!$K$77,Nutrients!$K$78)))))*X$8))/2000","v":4.2779921614239775},{"$f":"(SUMPRODUCT(Y$9:Y$229,Nutrients!$K$8:$K$228)+(IF($A$7=Nutrients!$B$8,Nutrients!$K$8,Nutrients!$K$9)*Y$7)+(((IF($A$8=Nutrients!$B$79,Nutrients!$K$79,(IF($A$8=Nutrients!$B$77,Nutrients!$K$77,Nutrients!$K$78)))))*Y$8))/2000","v":4.3781378716224406},{"$f":"(SUMPRODUCT(Z$9:Z$229,Nutrients!$K$8:$K$228)+(IF($A$7=Nutrients!$B$8,Nutrients!$K$8,Nutrients!$K$9)*Z$7)+(((IF($A$8=Nutrients!$B$79,Nutrients!$K$79,(IF($A$8=Nutrients!$B$77,Nutrients!$K$77,Nutrients!$K$78)))))*Z$8))/2000","v":4.4626857616151412},{"$f":"(SUMPRODUCT(AA$9:AA$229,Nutrients!$K$8:$K$228)+(IF($A$7=Nutrients!$B$8,Nutrients!$K$8,Nutrients!$K$9)*AA$7)+(((IF($A$8=Nutrients!$B$79,Nutrients!$K$79,(IF($A$8=Nutrients!$B$77,Nutrients!$K$77,Nutrients!$K$78)))))*AA$8))/2000","v":4.5195898577894011},{"$f":"(SUMPRODUCT(AB$9:AB$229,Nutrients!$K$8:$K$228)+(IF($A$7=Nutrients!$B$8,Nutrients!$K$8,Nutrients!$K$9)*AB$7)+(((IF($A$8=Nutrients!$B$79,Nutrients!$K$79,(IF($A$8=Nutrients!$B$77,Nutrients!$K$77,Nutrients!$K$78)))))*AB$8))/2000","v":3.1635989425624271},null,{"$f":"(SUMPRODUCT(AD$9:AD$229,Nutrients!$K$8:$K$228)+(IF($A$7=Nutrients!$B$8,Nutrients!$K$8,Nutrients!$K$9)*AD$7)+(((IF($A$8=Nutrients!$B$79,Nutrients!$K$79,(IF($A$8=Nutrients!$B$77,Nutrients!$K$77,Nutrients!$K$78)))))*AD$8))/2000","v":4.627085709763203},{"$f":"(SUMPRODUCT(AE$9:AE$229,Nutrients!$K$8:$K$228)+(IF($A$7=Nutrients!$B$8,Nutrients!$K$8,Nutrients!$K$9)*AE$7)+(((IF($A$8=Nutrients!$B$79,Nutrients!$K$79,(IF($A$8=Nutrients!$B$77,Nutrients!$K$77,Nutrients!$K$78)))))*AE$8))/2000","v":4.7415256861098412},{"$f":"(SUMPRODUCT(AF$9:AF$229,Nutrients!$K$8:$K$228)+(IF($A$7=Nutrients!$B$8,Nutrients!$K$8,Nutrients!$K$9)*AF$7)+(((IF($A$8=Nutrients!$B$79,Nutrients!$K$79,(IF($A$8=Nutrients!$B$77,Nutrients!$K$77,Nutrients!$K$78)))))*AF$8))/2000","v":4.8407029897753064},{"$f":"(SUMPRODUCT(AG$9:AG$229,Nutrients!$K$8:$K$228)+(IF($A$7=Nutrients!$B$8,Nutrients!$K$8,Nutrients!$K$9)*AG$7)+(((IF($A$8=Nutrients!$B$79,Nutrients!$K$79,(IF($A$8=Nutrients!$B$77,Nutrients!$K$77,Nutrients!$K$78)))))*AG$8))/2000","v":4.9240709382079215},{"$f":"(SUMPRODUCT(AH$9:AH$229,Nutrients!$K$8:$K$228)+(IF($A$7=Nutrients!$B$8,Nutrients!$K$8,Nutrients!$K$9)*AH$7)+(((IF($A$8=Nutrients!$B$79,Nutrients!$K$79,(IF($A$8=Nutrients!$B$77,Nutrients!$K$77,Nutrients!$K$78)))))*AH$8))/2000","v":4.9789179964524166},{"$f":"(SUMPRODUCT(AI$9:AI$229,Nutrients!$K$8:$K$228)+(IF($A$7=Nutrients!$B$8,Nutrients!$K$8,Nutrients!$K$9)*AI$7)+(((IF($A$8=Nutrients!$B$79,Nutrients!$K$79,(IF($A$8=Nutrients!$B$77,Nutrients!$K$77,Nutrients!$K$78)))))*AI$8))/2000","v":3.1635989425624271},null,{"$f":"(SUMPRODUCT(AK$9:AK$229,Nutrients!$K$8:$K$228)+(IF($A$7=Nutrients!$B$8,Nutrients!$K$8,Nutrients!$K$9)*AK$7)+(((IF($A$8=Nutrients!$B$79,Nutrients!$K$79,(IF($A$8=Nutrients!$B$77,Nutrients!$K$77,Nutrients!$K$78)))))*AK$8))/2000","v":5.0860537389361369},{"$f":"(SUMPRODUCT(AL$9:AL$229,Nutrients!$K$8:$K$228)+(IF($A$7=Nutrients!$B$8,Nutrients!$K$8,Nutrients!$K$9)*AL$7)+(((IF($A$8=Nutrients!$B$79,Nutrients!$K$79,(IF($A$8=Nutrients!$B$77,Nutrients!$K$77,Nutrients!$K$78)))))*AL$8))/2000","v":5.2047883313982641},{"$f":"(SUMPRODUCT(AM$9:AM$229,Nutrients!$K$8:$K$228)+(IF($A$7=Nutrients!$B$8,Nutrients!$K$8,Nutrients!$K$9)*AM$7)+(((IF($A$8=Nutrients!$B$79,Nutrients!$K$79,(IF($A$8=Nutrients!$B$77,Nutrients!$K$77,Nutrients!$K$78)))))*AM$8))/2000","v":5.302760381398449},{"$f":"(SUMPRODUCT(AN$9:AN$229,Nutrients!$K$8:$K$228)+(IF($A$7=Nutrients!$B$8,Nutrients!$K$8,Nutrients!$K$9)*AN$7)+(((IF($A$8=Nutrients!$B$79,Nutrients!$K$79,(IF($A$8=Nutrients!$B$77,Nutrients!$K$77,Nutrients!$K$78)))))*AN$8))/2000","v":5.3842497904616557},{"$f":"(SUMPRODUCT(AO$9:AO$229,Nutrients!$K$8:$K$228)+(IF($A$7=Nutrients!$B$8,Nutrients!$K$8,Nutrients!$K$9)*AO$7)+(((IF($A$8=Nutrients!$B$79,Nutrients!$K$79,(IF($A$8=Nutrients!$B$77,Nutrients!$K$77,Nutrients!$K$78)))))*AO$8))/2000","v":5.4373595954376208},{"$f":"(SUMPRODUCT(AP$9:AP$229,Nutrients!$K$8:$K$228)+(IF($A$7=Nutrients!$B$8,Nutrients!$K$8,Nutrients!$K$9)*AP$7)+(((IF($A$8=Nutrients!$B$79,Nutrients!$K$79,(IF($A$8=Nutrients!$B$77,Nutrients!$K$77,Nutrients!$K$78)))))*AP$8))/2000","v":3.1635989425624271},null,{"$f":"(SUMPRODUCT(AR$9:AR$229,Nutrients!$K$8:$K$228)+(IF($A$7=Nutrients!$B$8,Nutrients!$K$8,Nutrients!$K$9)*AR$7)+(((IF($A$8=Nutrients!$B$79,Nutrients!$K$79,(IF($A$8=Nutrients!$B$77,Nutrients!$K$77,Nutrients!$K$78)))))*AR$8))/2000","v":5.5509565191772641},{"$f":"(SUMPRODUCT(AS$9:AS$229,Nutrients!$K$8:$K$228)+(IF($A$7=Nutrients!$B$8,Nutrients!$K$8,Nutrients!$K$9)*AS$7)+(((IF($A$8=Nutrients!$B$79,Nutrients!$K$79,(IF($A$8=Nutrients!$B$77,Nutrients!$K$77,Nutrients!$K$78)))))*AS$8))/2000","v":5.6680087399097658},{"$f":"(SUMPRODUCT(AT$9:AT$229,Nutrients!$K$8:$K$228)+(IF($A$7=Nutrients!$B$8,Nutrients!$K$8,Nutrients!$K$9)*AT$7)+(((IF($A$8=Nutrients!$B$79,Nutrients!$K$79,(IF($A$8=Nutrients!$B$77,Nutrients!$K$77,Nutrients!$K$78)))))*AT$8))/2000","v":5.7645624352572282},{"$f":"(SUMPRODUCT(AU$9:AU$229,Nutrients!$K$8:$K$228)+(IF($A$7=Nutrients!$B$8,Nutrients!$K$8,Nutrients!$K$9)*AU$7)+(((IF($A$8=Nutrients!$B$79,Nutrients!$K$79,(IF($A$8=Nutrients!$B$77,Nutrients!$K$77,Nutrients!$K$78)))))*AU$8))/2000","v":5.8430281595229596},{"$f":"(SUMPRODUCT(AV$9:AV$229,Nutrients!$K$8:$K$228)+(IF($A$7=Nutrients!$B$8,Nutrients!$K$8,Nutrients!$K$9)*AV$7)+(((IF($A$8=Nutrients!$B$79,Nutrients!$K$79,(IF($A$8=Nutrients!$B$77,Nutrients!$K$77,Nutrients!$K$78)))))*AV$8))/2000","v":5.8958109757210444},{"$f":"(SUMPRODUCT(AW$9:AW$229,Nutrients!$K$8:$K$228)+(IF($A$7=Nutrients!$B$8,Nutrients!$K$8,Nutrients!$K$9)*AW$7)+(((IF($A$8=Nutrients!$B$79,Nutrients!$K$79,(IF($A$8=Nutrients!$B$77,Nutrients!$K$77,Nutrients!$K$78)))))*AW$8))/2000","v":3.1635989425624271}]
["Crude fiber, %",{"$f":"(SUMPRODUCT(B$9:B$229,Nutrients!$J$8:$J$228)+(IF($A$7=Nutrients!$B$8,Nutrients!$J$8,Nutrients!$J$9)*B$7)+(((IF($A$8=Nutrients!$B$79,Nutrients!$J$79,(IF($A$8=Nutrients!$B$77,Nutrients!$J$77,Nutrients!$J$78)))))*B$8))/2000","v":2.513641643841301},{"$f":"(SUMPRODUCT(C$9:C$229,Nutrients!$J$8:$J$228)+(IF($A$7=Nutrients!$B$8,Nutrients!$J$8,Nutrients!$J$9)*C$7)+(((IF($A$8=Nutrients!$B$79,Nutrients!$J$79,(IF($A$8=Nutrients!$B$77,Nutrients!$J$77,Nutrients!$J$78)))))*C$8))/2000","v":2.4130399696967721},{"$f":"(SUMPRODUCT(D$9:D$229,Nutrients!$J$8:$J$228)+(IF($A$7=Nutrients!$B$8,Nutrients!$J$8,Nutrients!$J$9)*D$7)+(((IF($A$8=Nutrients!$B$79,Nutrients!$J$79,(IF($A$8=Nutrients!$B$77,Nutrients!$J$77,Nutrients!$J$78)))))*D$8))/2000","v":2.3268016052434768},{"$f":"(SUMPRODUCT(E$9:E$229,Nutrients!$J$8:$J$228)+(IF($A$7=Nutrients!$B$8,Nutrients!$J$8,Nutrients!$J$9)*E$7)+(((IF($A$8=Nutrients!$B$79,Nutrients!$J$79,(IF($A$8=Nutrients!$B$77,Nutrients!$J$77,Nutrients!$J$78)))))*E$8))/2000","v":2.2539022615675171},{"$f":"(SUMPRODUCT(F$9:F$229,Nutrients!$J$8:$J$228)+(IF($A$7=Nutrients!$B$8,Nutrients!$J$8,Nutrients!$J$9)*F$7)+(((IF($A$8=Nutrients!$B$79,Nutrients!$J$79,(IF($A$8=Nutrients!$B$77,Nutrients!$J$77,Nutrients!$J$78)))))*F$8))/2000","v":2.2063713720102678},{"$f":"(SUMPRODUCT(G$9:G$229,Nutrients!$J$8:$J$228)+(IF($A$7=Nutrients!$B$8,Nutrients!$J$8,Nutrients!$J$9)*G$7)+(((IF($A$8=Nutrients!$B$79,Nutrients!$J$79,(IF($A$8=Nutrients!$B$77,Nutrients!$J$77,Nutrients!$J$78)))))*G$8))/2000","v":2.1815237128108387},null,{"$f":"(SUMPRODUCT(I$9:I$229,Nutrients!$J$8:$J$228)+(IF($A$7=Nutrients!$B$8,Nutrients!$J$8,Nutrients!$J$9)*I$7)+(((IF($A$8=Nutrients!$B$79,Nutrients!$J$79,(IF($A$8=Nutrients!$B$77,Nutrients!$J$77,Nutrients!$J$78)))))*I$8))/2000","v":2.7590160087512601},{"$f":"(SUMPRODUCT(J$9:J$229,Nutrients!$J$8:$J$228)+(IF($A$7=Nutrients!$B$8,Nutrients!$J$8,Nutrients!$J$9)*J$7)+(((IF($A$8=Nutrients!$B$79,Nutrients!$J$79,(IF($A$8=Nutrients!$B$77,Nutrients!$J$77,Nutrients!$J$78)))))*J$8))/2000","v":2.6595170624470321},{"$f":"(SUMPRODUCT(K$9:K$229,Nutrients!$J$8:$J$228)+(IF($A$7=Nutrients!$B$8,Nutrients!$J$8,Nutrients!$J$9)*K$7)+(((IF($A$8=Nutrients!$B$79,Nutrients!$J$79,(IF($A$8=Nutrients!$B$77,Nutrients!$J$77,Nutrients!$J$78)))))*K$8))/2000","v":2.5741870597453347},{"$f":"(SUMPRODUCT(L$9:L$229,Nutrients!$J$8:$J$228)+(IF($A$7=Nutrients!$B$8,Nutrients!$J$8,Nutrients!$J$9)*L$7)+(((IF($A$8=Nutrients!$B$79,Nutrients!$J$79,(IF($A$8=Nutrients!$B$77,Nutrients!$J$77,Nutrients!$J$78)))))*L$8))/2000","v":2.502289969056624},{"$f":"(SUMPRODUCT(M$9:M$229,Nutrients!$J$8:$J$228)+(IF($A$7=Nutrients!$B$8,Nutrients!$J$8,Nutrients!$J$9)*M$7)+(((IF($A$8=Nutrients!$B$79,Nutrients!$J$79,(IF($A$8=Nutrients!$B$77,Nutrients!$J$77,Nutrients!$J$78)))))*M$8))/2000","v":2.4545923069129203},{"$f":"(SUMPRODUCT(N$9:N$229,Nutrients!$J$8:$J$228)+(IF($A$7=Nutrients!$B$8,Nutrients!$J$8,Nutrients!$J$9)*N$7)+(((IF($A$8=Nutrients!$B$79,Nutrients!$J$79,(IF($A$8=Nutrients!$B$77,Nutrients!$J$77,Nutrients!$J$78)))))*N$8))/2000","v":2.1815237128108387},null,{"$f":"(SUMPRODUCT(P$9:P$229,Nutrients!$J$8:$J$228)+(IF($A$7=Nutrients!$B$8,Nutrients!$J$8,Nutrients!$J$9)*P$7)+(((IF($A$8=Nutrients!$B$79,Nutrients!$J$79,(IF($A$8=Nutrients!$B$77,Nutrients!$J$77,Nutrients!$J$78)))))*P$8))/2000","v":3.0057900127486676},{"$f":"(SUMPRODUCT(Q$9:Q$229,Nutrients!$J$8:$J$228)+(IF($A$7=Nutrients!$B$8,Nutrients!$J$8,Nutrients!$J$9)*Q$7)+(((IF($A$8=Nutrients!$B$79,Nutrients!$J$79,(IF($A$8=Nutrients!$B$77,Nutrients!$J$77,Nutrients!$J$78)))))*Q$8))/2000","v":2.9069693101952425},{"$f":"(SUMPRODUCT(R$9:R$229,Nutrients!$J$8:$J$228)+(IF($A$7=Nutrients!$B$8,Nutrients!$J$8,Nutrients!$J$9)*R$7)+(((IF($A$8=Nutrients!$B$79,Nutrients!$J$79,(IF($A$8=Nutrients!$B$77,Nutrients!$J$77,Nutrients!$J$78)))))*R$8))/2000","v":2.8223769333491715},{"$f":"(SUMPRODUCT(S$9:S$229,Nutrients!$J$8:$J$228)+(IF($A$7=Nutrients!$B$8,Nutrients!$J$8,Nutrients!$J$9)*S$7)+(((IF($A$8=Nutrients!$B$79,Nutrients!$J$79,(IF($A$8=Nutrients!$B$77,Nutrients!$J$77,Nutrients!$J$78)))))*S$8))/2000","v":2.7501388616518496},{"$f":"(SUMPRODUCT(T$9:T$229,Nutrients!$J$8:$J$228)+(IF($A$7=Nutrients!$B$8,Nutrients!$J$8,Nutrients!$J$9)*T$7)+(((IF($A$8=Nutrients!$B$79,Nutrients!$J$79,(IF($A$8=Nutrients!$B$77,Nutrients!$J$77,Nutrients!$J$78)))))*T$8))/2000","v":2.7028854655054002},{"$f":"(SUMPRODUCT(U$9:U$229,Nutrients!$J$8:$J$228)+(IF($A$7=Nutrients!$B$8,Nutrients!$J$8,Nutrients!$J$9)*U$7)+(((IF($A$8=Nutrients!$B$79,Nutrients!$J$79,(IF($A$8=Nutrients!$B$77,Nutrients!$J$77,Nutrients!$J$78)))))*U$8))/2000","v":2.1815237128108387},null,{"$f":"(SUMPRODUCT(W$9:W$229,Nutrients!$J$8:$J$228)+(IF($A$7=Nutrients!$B$8,Nutrients!$J$8,Nutrients!$J$9)*W$7)+(((IF($A$8=Nutrients!$B$79,Nutrients!$J$79,(IF($A$8=Nutrients!$B$77,Nutrients!$J$77,Nutrients!$J$78)))))*W$8))/2000","v":3.2525933655312782},{"$f":"(SUMPRODUCT(X$9:X$229,Nutrients!$J$8:$J$228)+(IF($A$7=Nutrients!$B$8,Nutrients!$J$8,Nutrients!$J$9)*X$7)+(((IF($A$8=Nutrients!$B$79,Nutrients!$J$79,(IF($A$8=Nutrients!$B$77,Nutrients!$J$77,Nutrients!$J$78)))))*X$8))/2000","v":3.1544648331221445},{"$f":"(SUMPRODUCT(Y$9:Y$229,Nutrients!$J$8:$J$228)+(IF($A$7=Nutrients!$B$8,Nutrients!$J$8,Nutrients!$J$9)*Y$7)+(((IF($A$8=Nutrients!$B$79,Nutrients!$J$79,(IF($A$8=Nutrients!$B$77,Nutrients!$J$77,Nutrients!$J$78)))))*Y$8))/2000","v":3.06953168008405},{"$f":"(SUMPRODUCT(Z$9:Z$229,Nutrients!$J$8:$J$228)+(IF($A$7=Nutrients!$B$8,Nutrients!$J$8,Nutrients!$J$9)*Z$7)+(((IF($A$8=Nutrients!$B$79,Nutrients!$J$79,(IF($A$8=Nutrients!$B$77,Nutrients!$J$77,Nutrients!$J$78)))))*Z$8))/2000","v":2.9982427794218283},{"$f":"(SUMPRODUCT(AA$9:AA$229,Nutrients!$J$8:$J$228)+(IF($A$7=Nutrients!$B$8,Nutrients!$J$8,Nutrients!$J$9)*AA$7)+(((IF($A$8=Nutrients!$B$79,Nutrients!$J$79,(IF($A$8=Nutrients!$B$77,Nutrients!$J$77,Nutrients!$J$78)))))*AA$8))/2000","v":2.9512417422991537},{"$f":"(SUMPRODUCT(AB$9:AB$229,Nutrients!$J$8:$J$228)+(IF($A$7=Nutrients!$B$8,Nutrients!$J$8,Nutrients!$J$9)*AB$7)+(((IF($A$8=Nutrients!$B$79,Nutrients!$J$79,(IF($A$8=Nutrients!$B$77,Nutrients!$J$77,Nutrients!$J$78)))))*AB$8))/2000","v":2.1815237128108387},null,{"$f":"(SUMPRODUCT(AD$9:AD$229,Nutrients!$J$8:$J$228)+(IF($A$7=Nutrients!$B$8,Nutrients!$J$8,Nutrients!$J$9)*AD$7)+(((IF($A$8=Nutrients!$B$79,Nutrients!$J$79,(IF($A$8=Nutrients!$B$77,Nutrients!$J$77,Nutrients!$J$78)))))*AD$8))/2000","v":3.4992951881988779},{"$f":"(SUMPRODUCT(AE$9:AE$229,Nutrients!$J$8:$J$228)+(IF($A$7=Nutrients!$B$8,Nutrients!$J$8,Nutrients!$J$9)*AE$7)+(((IF($A$8=Nutrients!$B$79,Nutrients!$J$79,(IF($A$8=Nutrients!$B$77,Nutrients!$J$77,Nutrients!$J$78)))))*AE$8))/2000","v":3.4008959102660015},{"$f":"(SUMPRODUCT(AF$9:AF$229,Nutrients!$J$8:$J$228)+(IF($A$7=Nutrients!$B$8,Nutrients!$J$8,Nutrients!$J$9)*AF$7)+(((IF($A$8=Nutrients!$B$79,Nutrients!$J$79,(IF($A$8=Nutrients!$B$77,Nutrients!$J$77,Nutrients!$J$78)))))*AF$8))/2000","v":3.3169395670437973},{"$f":"(SUMPRODUCT(AG$9:AG$229,Nutrients!$J$8:$J$228)+(IF($A$7=Nutrients!$B$8,Nutrients!$J$8,Nutrients!$J$9)*AG$7)+(((IF($A$8=Nutrients!$B$79,Nutrients!$J$79,(IF($A$8=Nutrients!$B$77,Nutrients!$J$77,Nutrients!$J$78)))))*AG$8))/2000","v":3.2461521834429927},{"$f":"(SUMPRODUCT(AH$9:AH$229,Nutrients!$J$8:$J$228)+(IF($A$7=Nutrients!$B$8,Nutrients!$J$8,Nutrients!$J$9)*AH$7)+(((IF($A$8=Nutrients!$B$79,Nutrients!$J$79,(IF($A$8=Nutrients!$B$77,Nutrients!$J$77,Nutrients!$J$78)))))*AH$8))/2000","v":3.1981328178357948},{"$f":"(SUMPRODUCT(AI$9:AI$229,Nutrients!$J$8:$J$228)+(IF($A$7=Nutrients!$B$8,Nutrients!$J$8,Nutrients!$J$9)*AI$7)+(((IF($A$8=Nutrients!$B$79,Nutrients!$J$79,(IF($A$8=Nutrients!$B$77,Nutrients!$J$77,Nutrients!$J$78)))))*AI$8))/2000","v":2.1815237128108387},null,{"$f":"(SUMPRODUCT(AK$9:AK$229,Nutrients!$J$8:$J$228)+(IF($A$7=Nutrients!$B$8,Nutrients!$J$8,Nutrients!$J$9)*AK$7)+(((IF($A$8=Nutrients!$B$79,Nutrients!$J$79,(IF($A$8=Nutrients!$B$77,Nutrients!$J$77,Nutrients!$J$78)))))*AK$8))/2000","v":3.7501668492604385},{"$f":"(SUMPRODUCT(AL$9:AL$229,Nutrients!$J$8:$J$228)+(IF($A$7=Nutrients!$B$8,Nutrients!$J$8,Nutrients!$J$9)*AL$7)+(((IF($A$8=Nutrients!$B$79,Nutrients!$J$79,(IF($A$8=Nutrients!$B$77,Nutrients!$J$77,Nutrients!$J$78)))))*AL$8))/2000","v":3.647647821234937},{"$f":"(SUMPRODUCT(AM$9:AM$229,Nutrients!$J$8:$J$228)+(IF($A$7=Nutrients!$B$8,Nutrients!$J$8,Nutrients!$J$9)*AM$7)+(((IF($A$8=Nutrients!$B$79,Nutrients!$J$79,(IF($A$8=Nutrients!$B$77,Nutrients!$J$77,Nutrients!$J$78)))))*AM$8))/2000","v":3.5642751507171644},{"$f":"(SUMPRODUCT(AN$9:AN$229,Nutrients!$J$8:$J$228)+(IF($A$7=Nutrients!$B$8,Nutrients!$J$8,Nutrients!$J$9)*AN$7)+(((IF($A$8=Nutrients!$B$79,Nutrients!$J$79,(IF($A$8=Nutrients!$B$77,Nutrients!$J$77,Nutrients!$J$78)))))*AN$8))/2000","v":3.4929717664983673},{"$f":"(SUMPRODUCT(AO$9:AO$229,Nutrients!$J$8:$J$228)+(IF($A$7=Nutrients!$B$8,Nutrients!$J$8,Nutrients!$J$9)*AO$7)+(((IF($A$8=Nutrients!$B$79,Nutrients!$J$79,(IF($A$8=Nutrients!$B$77,Nutrients!$J$77,Nutrients!$J$78)))))*AO$8))/2000","v":3.4443650311682386},{"$f":"(SUMPRODUCT(AP$9:AP$229,Nutrients!$J$8:$J$228)+(IF($A$7=Nutrients!$B$8,Nutrients!$J$8,Nutrients!$J$9)*AP$7)+(((IF($A$8=Nutrients!$B$79,Nutrients!$J$79,(IF($A$8=Nutrients!$B$77,Nutrients!$J$77,Nutrients!$J$78)))))*AP$8))/2000","v":2.1815237128108387},null,{"$f":"(SUMPRODUCT(AR$9:AR$229,Nutrients!$J$8:$J$228)+(IF($A$7=Nutrients!$B$8,Nutrients!$J$8,Nutrients!$J$9)*AR$7)+(((IF($A$8=Nutrients!$B$79,Nutrients!$J$79,(IF($A$8=Nutrients!$B$77,Nutrients!$J$77,Nutrients!$J$78)))))*AR$8))/2000","v":3.9953092147969484},{"$f":"(SUMPRODUCT(AS$9:AS$229,Nutrients!$J$8:$J$228)+(IF($A$7=Nutrients!$B$8,Nutrients!$J$8,Nutrients!$J$9)*AS$7)+(((IF($A$8=Nutrients!$B$79,Nutrients!$J$79,(IF($A$8=Nutrients!$B$77,Nutrients!$J$77,Nutrients!$J$78)))))*AS$8))/2000","v":3.8943881252907429},{"$f":"(SUMPRODUCT(AT$9:AT$229,Nutrients!$J$8:$J$228)+(IF($A$7=Nutrients!$B$8,Nutrients!$J$8,Nutrients!$J$9)*AT$7)+(((IF($A$8=Nutrients!$B$79,Nutrients!$J$79,(IF($A$8=Nutrients!$B$77,Nutrients!$J$77,Nutrients!$J$78)))))*AT$8))/2000","v":3.8117902572229023},{"$f":"(SUMPRODUCT(AU$9:AU$229,Nutrients!$J$8:$J$228)+(IF($A$7=Nutrients!$B$8,Nutrients!$J$8,Nutrients!$J$9)*AU$7)+(((IF($A$8=Nutrients!$B$79,Nutrients!$J$79,(IF($A$8=Nutrients!$B$77,Nutrients!$J$77,Nutrients!$J$78)))))*AU$8))/2000","v":3.7388463800043783},{"$f":"(SUMPRODUCT(AV$9:AV$229,Nutrients!$J$8:$J$228)+(IF($A$7=Nutrients!$B$8,Nutrients!$J$8,Nutrients!$J$9)*AV$7)+(((IF($A$8=Nutrients!$B$79,Nutrients!$J$79,(IF($A$8=Nutrients!$B$77,Nutrients!$J$77,Nutrients!$J$78)))))*AV$8))/2000","v":3.6906102006408488},{"$f":"(SUMPRODUCT(AW$9:AW$229,Nutrients!$J$8:$J$228)+(IF($A$7=Nutrients!$B$8,Nutrients!$J$8,Nutrients!$J$9)*AW$7)+(((IF($A$8=Nutrients!$B$79,Nutrients!$J$79,(IF($A$8=Nutrients!$B$77,Nutrients!$J$77,Nutrients!$J$78)))))*AW$8))/2000","v":2.1815237128108387}]
["Lactose, %",{"$f":"(SUMPRODUCT(B$9:B$229,Nutrients!$ED$8:$ED$228)+(IF($A$7=Nutrients!$B$8,Nutrients!$ED$8,Nutrients!$ED$9)*B$7)+(((IF($A$8=Nutrients!$B$79,Nutrients!$ED$79,(IF($A$8=Nutrients!$B$77,Nutrients!$ED$77,Nutrients!$ED$78)))))*B$8))/2000","v":0},{"$f":"(SUMPRODUCT(C$9:C$229,Nutrients!$ED$8:$ED$228)+(IF($A$7=Nutrients!$B$8,Nutrients!$ED$8,Nutrients!$ED$9)*C$7)+(((IF($A$8=Nutrients!$B$79,Nutrients!$ED$79,(IF($A$8=Nutrients!$B$77,Nutrients!$ED$77,Nutrients!$ED$78)))))*C$8))/2000","v":0},{"$f":"(SUMPRODUCT(D$9:D$229,Nutrients!$ED$8:$ED$228)+(IF($A$7=Nutrients!$B$8,Nutrients!$ED$8,Nutrients!$ED$9)*D$7)+(((IF($A$8=Nutrients!$B$79,Nutrients!$ED$79,(IF($A$8=Nutrients!$B$77,Nutrients!$ED$77,Nutrients!$ED$78)))))*D$8))/2000","v":0},{"$f":"(SUMPRODUCT(E$9:E$229,Nutrients!$ED$8:$ED$228)+(IF($A$7=Nutrients!$B$8,Nutrients!$ED$8,Nutrients!$ED$9)*E$7)+(((IF($A$8=Nutrients!$B$79,Nutrients!$ED$79,(IF($A$8=Nutrients!$B$77,Nutrients!$ED$77,Nutrients!$ED$78)))))*E$8))/2000","v":0},{"$f":"(SUMPRODUCT(F$9:F$229,Nutrients!$ED$8:$ED$228)+(IF($A$7=Nutrients!$B$8,Nutrients!$ED$8,Nutrients!$ED$9)*F$7)+(((IF($A$8=Nutrients!$B$79,Nutrients!$ED$79,(IF($A$8=Nutrients!$B$77,Nutrients!$ED$77,Nutrients!$ED$78)))))*F$8))/2000","v":0},{"$f":"(SUMPRODUCT(G$9:G$229,Nutrients!$ED$8:$ED$228)+(IF($A$7=Nutrients!$B$8,Nutrients!$ED$8,Nutrients!$ED$9)*G$7)+(((IF($A$8=Nutrients!$B$79,Nutrients!$ED$79,(IF($A$8=Nutrients!$B$77,Nutrients!$ED$77,Nutrients!$ED$78)))))*G$8))/2000","v":0},null,{"$f":"(SUMPRODUCT(I$9:I$229,Nutrients!$ED$8:$ED$228)+(IF($A$7=Nutrients!$B$8,Nutrients!$ED$8,Nutrients!$ED$9)*I$7)+(((IF($A$8=Nutrients!$B$79,Nutrients!$ED$79,(IF($A$8=Nutrients!$B$77,Nutrients!$ED$77,Nutrients!$ED$78)))))*I$8))/2000","v":0},{"$f":"(SUMPRODUCT(J$9:J$229,Nutrients!$ED$8:$ED$228)+(IF($A$7=Nutrients!$B$8,Nutrients!$ED$8,Nutrients!$ED$9)*J$7)+(((IF($A$8=Nutrients!$B$79,Nutrients!$ED$79,(IF($A$8=Nutrients!$B$77,Nutrients!$ED$77,Nutrients!$ED$78)))))*J$8))/2000","v":0},{"$f":"(SUMPRODUCT(K$9:K$229,Nutrients!$ED$8:$ED$228)+(IF($A$7=Nutrients!$B$8,Nutrients!$ED$8,Nutrients!$ED$9)*K$7)+(((IF($A$8=Nutrients!$B$79,Nutrients!$ED$79,(IF($A$8=Nutrients!$B$77,Nutrients!$ED$77,Nutrients!$ED$78)))))*K$8))/2000","v":0},{"$f":"(SUMPRODUCT(L$9:L$229,Nutrients!$ED$8:$ED$228)+(IF($A$7=Nutrients!$B$8,Nutrients!$ED$8,Nutrients!$ED$9)*L$7)+(((IF($A$8=Nutrients!$B$79,Nutrients!$ED$79,(IF($A$8=Nutrients!$B$77,Nutrients!$ED$77,Nutrients!$ED$78)))))*L$8))/2000","v":0},{"$f":"(SUMPRODUCT(M$9:M$229,Nutrients!$ED$8:$ED$228)+(IF($A$7=Nutrients!$B$8,Nutrients!$ED$8,Nutrients!$ED$9)*M$7)+(((IF($A$8=Nutrients!$B$79,Nutrients!$ED$79,(IF($A$8=Nutrients!$B$77,Nutrients!$ED$77,Nutrients!$ED$78)))))*M$8))/2000","v":0},{"$f":"(SUMPRODUCT(N$9:N$229,Nutrients!$ED$8:$ED$228)+(IF($A$7=Nutrients!$B$8,Nutrients!$ED$8,Nutrients!$ED$9)*N$7)+(((IF($A$8=Nutrients!$B$79,Nutrients!$ED$79,(IF($A$8=Nutrients!$B$77,Nutrients!$ED$77,Nutrients!$ED$78)))))*N$8))/2000","v":0},null,{"$f":"(SUMPRODUCT(P$9:P$229,Nutrients!$ED$8:$ED$228)+(IF($A$7=Nutrients!$B$8,Nutrients!$ED$8,Nutrients!$ED$9)*P$7)+(((IF($A$8=Nutrients!$B$79,Nutrients!$ED$79,(IF($A$8=Nutrients!$B$77,Nutrients!$ED$77,Nutrients!$ED$78)))))*P$8))/2000","v":0},{"$f":"(SUMPRODUCT(Q$9:Q$229,Nutrients!$ED$8:$ED$228)+(IF($A$7=Nutrients!$B$8,Nutrients!$ED$8,Nutrients!$ED$9)*Q$7)+(((IF($A$8=Nutrients!$B$79,Nutrients!$ED$79,(IF($A$8=Nutrients!$B$77,Nutrients!$ED$77,Nutrients!$ED$78)))))*Q$8))/2000","v":0},{"$f":"(SUMPRODUCT(R$9:R$229,Nutrients!$ED$8:$ED$228)+(IF($A$7=Nutrients!$B$8,Nutrients!$ED$8,Nutrients!$ED$9)*R$7)+(((IF($A$8=Nutrients!$B$79,Nutrients!$ED$79,(IF($A$8=Nutrients!$B$77,Nutrients!$ED$77,Nutrients!$ED$78)))))*R$8))/2000","v":0},{"$f":"(SUMPRODUCT(S$9:S$229,Nutrients!$ED$8:$ED$228)+(IF($A$7=Nutrients!$B$8,Nutrients!$ED$8,Nutrients!$ED$9)*S$7)+(((IF($A$8=Nutrients!$B$79,Nutrients!$ED$79,(IF($A$8=Nutrients!$B$77,Nutrients!$ED$77,Nutrients!$ED$78)))))*S$8))/2000","v":0},{"$f":"(SUMPRODUCT(T$9:T$229,Nutrients!$ED$8:$ED$228)+(IF($A$7=Nutrients!$B$8,Nutrients!$ED$8,Nutrients!$ED$9)*T$7)+(((IF($A$8=Nutrients!$B$79,Nutrients!$ED$79,(IF($A$8=Nutrients!$B$77,Nutrients!$ED$77,Nutrients!$ED$78)))))*T$8))/2000","v":0},{"$f":"(SUMPRODUCT(U$9:U$229,Nutrients!$ED$8:$ED$228)+(IF($A$7=Nutrients!$B$8,Nutrients!$ED$8,Nutrients!$ED$9)*U$7)+(((IF($A$8=Nutrients!$B$79,Nutrients!$ED$79,(IF($A$8=Nutrients!$B$77,Nutrients!$ED$77,Nutrients!$ED$78)))))*U$8))/2000","v":0},null,{"$f":"(SUMPRODUCT(W$9:W$229,Nutrients!$ED$8:$ED$228)+(IF($A$7=Nutrients!$B$8,Nutrients!$ED$8,Nutrients!$ED$9)*W$7)+(((IF($A$8=Nutrients!$B$79,Nutrients!$ED$79,(IF($A$8=Nutrients!$B$77,Nutrients!$ED$77,Nutrients!$ED$78)))))*W$8))/2000","v":0},{"$f":"(SUMPRODUCT(X$9:X$229,Nutrients!$ED$8:$ED$228)+(IF($A$7=Nutrients!$B$8,Nutrients!$ED$8,Nutrients!$ED$9)*X$7)+(((IF($A$8=Nutrients!$B$79,Nutrients!$ED$79,(IF($A$8=Nutrients!$B$77,Nutrients!$ED$77,Nutrients!$ED$78)))))*X$8))/2000","v":0},{"$f":"(SUMPRODUCT(Y$9:Y$229,Nutrients!$ED$8:$ED$228)+(IF($A$7=Nutrients!$B$8,Nutrients!$ED$8,Nutrients!$ED$9)*Y$7)+(((IF($A$8=Nutrients!$B$79,Nutrients!$ED$79,(IF($A$8=Nutrients!$B$77,Nutrients!$ED$77,Nutrients!$ED$78)))))*Y$8))/2000","v":0},{"$f":"(SUMPRODUCT(Z$9:Z$229,Nutrients!$ED$8:$ED$228)+(IF($A$7=Nutrients!$B$8,Nutrients!$ED$8,Nutrients!$ED$9)*Z$7)+(((IF($A$8=Nutrients!$B$79,Nutrients!$ED$79,(IF($A$8=Nutrients!$B$77,Nutrients!$ED$77,Nutrients!$ED$78)))))*Z$8))/2000","v":0},{"$f":"(SUMPRODUCT(AA$9:AA$229,Nutrients!$ED$8:$ED$228)+(IF($A$7=Nutrients!$B$8,Nutrients!$ED$8,Nutrients!$ED$9)*AA$7)+(((IF($A$8=Nutrients!$B$79,Nutrients!$ED$79,(IF($A$8=Nutrients!$B$77,Nutrients!$ED$77,Nutrients!$ED$78)))))*AA$8))/2000","v":0},{"$f":"(SUMPRODUCT(AB$9:AB$229,Nutrients!$ED$8:$ED$228)+(IF($A$7=Nutrients!$B$8,Nutrients!$ED$8,Nutrients!$ED$9)*AB$7)+(((IF($A$8=Nutrients!$B$79,Nutrients!$ED$79,(IF($A$8=Nutrients!$B$77,Nutrients!$ED$77,Nutrients!$ED$78)))))*AB$8))/2000","v":0},null,{"$f":"(SUMPRODUCT(AD$9:AD$229,Nutrients!$ED$8:$ED$228)+(IF($A$7=Nutrients!$B$8,Nutrients!$ED$8,Nutrients!$ED$9)*AD$7)+(((IF($A$8=Nutrients!$B$79,Nutrients!$ED$79,(IF($A$8=Nutrients!$B$77,Nutrients!$ED$77,Nutrients!$ED$78)))))*AD$8))/2000","v":0},{"$f":"(SUMPRODUCT(AE$9:AE$229,Nutrients!$ED$8:$ED$228)+(IF($A$7=Nutrients!$B$8,Nutrients!$ED$8,Nutrients!$ED$9)*AE$7)+(((IF($A$8=Nutrients!$B$79,Nutrients!$ED$79,(IF($A$8=Nutrients!$B$77,Nutrients!$ED$77,Nutrients!$ED$78)))))*AE$8))/2000","v":0},{"$f":"(SUMPRODUCT(AF$9:AF$229,Nutrients!$ED$8:$ED$228)+(IF($A$7=Nutrients!$B$8,Nutrients!$ED$8,Nutrients!$ED$9)*AF$7)+(((IF($A$8=Nutrients!$B$79,Nutrients!$ED$79,(IF($A$8=Nutrients!$B$77,Nutrients!$ED$77,Nutrients!$ED$78)))))*AF$8))/2000","v":0},{"$f":"(SUMPRODUCT(AG$9:AG$229,Nutrients!$ED$8:$ED$228)+(IF($A$7=Nutrients!$B$8,Nutrients!$ED$8,Nutrients!$ED$9)*AG$7)+(((IF($A$8=Nutrients!$B$79,Nutrients!$ED$79,(IF($A$8=Nutrients!$B$77,Nutrients!$ED$77,Nutrients!$ED$78)))))*AG$8))/2000","v":0},{"$f":"(SUMPRODUCT(AH$9:AH$229,Nutrients!$ED$8:$ED$228)+(IF($A$7=Nutrients!$B$8,Nutrients!$ED$8,Nutrients!$ED$9)*AH$7)+(((IF($A$8=Nutrients!$B$79,Nutrients!$ED$79,(IF($A$8=Nutrients!$B$77,Nutrients!$ED$77,Nutrients!$ED$78)))))*AH$8))/2000","v":0},{"$f":"(SUMPRODUCT(AI$9:AI$229,Nutrients!$ED$8:$ED$228)+(IF($A$7=Nutrients!$B$8,Nutrients!$ED$8,Nutrients!$ED$9)*AI$7)+(((IF($A$8=Nutrients!$B$79,Nutrients!$ED$79,(IF($A$8=Nutrients!$B$77,Nutrients!$ED$77,Nutrients!$ED$78)))))*AI$8))/2000","v":0},null,{"$f":"(SUMPRODUCT(AK$9:AK$229,Nutrients!$ED$8:$ED$228)+(IF($A$7=Nutrients!$B$8,Nutrients!$ED$8,Nutrients!$ED$9)*AK$7)+(((IF($A$8=Nutrients!$B$79,Nutrients!$ED$79,(IF($A$8=Nutrients!$B$77,Nutrients!$ED$77,Nutrients!$ED$78)))))*AK$8))/2000","v":0},{"$f":"(SUMPRODUCT(AL$9:AL$229,Nutrients!$ED$8:$ED$228)+(IF($A$7=Nutrients!$B$8,Nutrients!$ED$8,Nutrients!$ED$9)*AL$7)+(((IF($A$8=Nutrients!$B$79,Nutrients!$ED$79,(IF($A$8=Nutrients!$B$77,Nutrients!$ED$77,Nutrients!$ED$78)))))*AL$8))/2000","v":0},{"$f":"(SUMPRODUCT(AM$9:AM$229,Nutrients!$ED$8:$ED$228)+(IF($A$7=Nutrients!$B$8,Nutrients!$ED$8,Nutrients!$ED$9)*AM$7)+(((IF($A$8=Nutrients!$B$79,Nutrients!$ED$79,(IF($A$8=Nutrients!$B$77,Nutrients!$ED$77,Nutrients!$ED$78)))))*AM$8))/2000","v":0},{"$f":"(SUMPRODUCT(AN$9:AN$229,Nutrients!$ED$8:$ED$228)+(IF($A$7=Nutrients!$B$8,Nutrients!$ED$8,Nutrients!$ED$9)*AN$7)+(((IF($A$8=Nutrients!$B$79,Nutrients!$ED$79,(IF($A$8=Nutrients!$B$77,Nutrients!$ED$77,Nutrients!$ED$78)))))*AN$8))/2000","v":0},{"$f":"(SUMPRODUCT(AO$9:AO$229,Nutrients!$ED$8:$ED$228)+(IF($A$7=Nutrients!$B$8,Nutrients!$ED$8,Nutrients!$ED$9)*AO$7)+(((IF($A$8=Nutrients!$B$79,Nutrients!$ED$79,(IF($A$8=Nutrients!$B$77,Nutrients!$ED$77,Nutrients!$ED$78)))))*AO$8))/2000","v":0},{"$f":"(SUMPRODUCT(AP$9:AP$229,Nutrients!$ED$8:$ED$228)+(IF($A$7=Nutrients!$B$8,Nutrients!$ED$8,Nutrients!$ED$9)*AP$7)+(((IF($A$8=Nutrients!$B$79,Nutrients!$ED$79,(IF($A$8=Nutrients!$B$77,Nutrients!$ED$77,Nutrients!$ED$78)))))*AP$8))/2000","v":0},null,{"$f":"(SUMPRODUCT(AR$9:AR$229,Nutrients!$ED$8:$ED$228)+(IF($A$7=Nutrients!$B$8,Nutrients!$ED$8,Nutrients!$ED$9)*AR$7)+(((IF($A$8=Nutrients!$B$79,Nutrients!$ED$79,(IF($A$8=Nutrients!$B$77,Nutrients!$ED$77,Nutrients!$ED$78)))))*AR$8))/2000","v":0},{"$f":"(SUMPRODUCT(AS$9:AS$229,Nutrients!$ED$8:$ED$228)+(IF($A$7=Nutrients!$B$8,Nutrients!$ED$8,Nutrients!$ED$9)*AS$7)+(((IF($A$8=Nutrients!$B$79,Nutrients!$ED$79,(IF($A$8=Nutrients!$B$77,Nutrients!$ED$77,Nutrients!$ED$78)))))*AS$8))/2000","v":0},{"$f":"(SUMPRODUCT(AT$9:AT$229,Nutrients!$ED$8:$ED$228)+(IF($A$7=Nutrients!$B$8,Nutrients!$ED$8,Nutrients!$ED$9)*AT$7)+(((IF($A$8=Nutrients!$B$79,Nutrients!$ED$79,(IF($A$8=Nutrients!$B$77,Nutrients!$ED$77,Nutrients!$ED$78)))))*AT$8))/2000","v":0},{"$f":"(SUMPRODUCT(AU$9:AU$229,Nutrients!$ED$8:$ED$228)+(IF($A$7=Nutrients!$B$8,Nutrients!$ED$8,Nutrients!$ED$9)*AU$7)+(((IF($A$8=Nutrients!$B$79,Nutrients!$ED$79,(IF($A$8=Nutrients!$B$77,Nutrients!$ED$77,Nutrients!$ED$78)))))*AU$8))/2000","v":0},{"$f":"(SUMPRODUCT(AV$9:AV$229,Nutrients!$ED$8:$ED$228)+(IF($A$7=Nutrients!$B$8,Nutrients!$ED$8,Nutrients!$ED$9)*AV$7)+(((IF($A$8=Nutrients!$B$79,Nutrients!$ED$79,(IF($A$8=Nutrients!$B$77,Nutrients!$ED$77,Nutrients!$ED$78)))))*AV$8))/2000","v":0},{"$f":"(SUMPRODUCT(AW$9:AW$229,Nutrients!$ED$8:$ED$228)+(IF($A$7=Nutrients!$B$8,Nutrients!$ED$8,Nutrients!$ED$9)*AW$7)+(((IF($A$8=Nutrients!$B$79,Nutrients!$ED$79,(IF($A$8=Nutrients!$B$77,Nutrients!$ED$77,Nutrients!$ED$78)))))*AW$8))/2000","v":0}]
["IV value of diet",{"$f":"(SUMPRODUCT(B$9:B$229,Nutrients!$EH$8:$EH$228)+(IF($A$7=Nutrients!$B$8,Nutrients!$EH$8,Nutrients!$EH$9)*B$7)+(((IF($A$8=Nutrients!$B$79,Nutrients!$EH$79,(IF($A$8=Nutrients!$B$77,Nutrients!$EH$77,Nutrients!$EH$78)))))*B$8))/2000","v":34.658564713833037},{"$f":"(SUMPRODUCT(C$9:C$229,Nutrients!$EH$8:$EH$228)+(IF($A$7=Nutrients!$B$8,Nutrients!$EH$8,Nutrients!$EH$9)*C$7)+(((IF($A$8=Nutrients!$B$79,Nutrients!$EH$79,(IF($A$8=Nutrients!$B$77,Nutrients!$EH$77,Nutrients!$EH$78)))))*C$8))/2000","v":36.119060232185333},{"$f":"(SUMPRODUCT(D$9:D$229,Nutrients!$EH$8:$EH$228)+(IF($A$7=Nutrients!$B$8,Nutrients!$EH$8,Nutrients!$EH$9)*D$7)+(((IF($A$8=Nutrients!$B$79,Nutrients!$EH$79,(IF($A$8=Nutrients!$B$77,Nutrients!$EH$77,Nutrients!$EH$78)))))*D$8))/2000","v":37.38889298377596},{"$f":"(SUMPRODUCT(E$9:E$229,Nutrients!$EH$8:$EH$228)+(IF($A$7=Nutrients!$B$8,Nutrients!$EH$8,Nutrients!$EH$9)*E$7)+(((IF($A$8=Nutrients!$B$79,Nutrients!$EH$79,(IF($A$8=Nutrients!$B$77,Nutrients!$EH$77,Nutrients!$EH$78)))))*E$8))/2000","v":38.453689691212816},{"$f":"(SUMPRODUCT(F$9:F$229,Nutrients!$EH$8:$EH$228)+(IF($A$7=Nutrients!$B$8,Nutrients!$EH$8,Nutrients!$EH$9)*F$7)+(((IF($A$8=Nutrients!$B$79,Nutrients!$EH$79,(IF($A$8=Nutrients!$B$77,Nutrients!$EH$77,Nutrients!$EH$78)))))*F$8))/2000","v":39.1878815182761},{"$f":"(SUMPRODUCT(G$9:G$229,Nutrients!$EH$8:$EH$228)+(IF($A$7=Nutrients!$B$8,Nutrients!$EH$8,Nutrients!$EH$9)*G$7)+(((IF($A$8=Nutrients!$B$79,Nutrients!$EH$79,(IF($A$8=Nutrients!$B$77,Nutrients!$EH$77,Nutrients!$EH$78)))))*G$8))/2000","v":39.544986782030342},null,{"$f":"(SUMPRODUCT(I$9:I$229,Nutrients!$EH$8:$EH$228)+(IF($A$7=Nutrients!$B$8,Nutrients!$EH$8,Nutrients!$EH$9)*I$7)+(((IF($A$8=Nutrients!$B$79,Nutrients!$EH$79,(IF($A$8=Nutrients!$B$77,Nutrients!$EH$77,Nutrients!$EH$78)))))*I$8))/2000","v":33.705831229742145},{"$f":"(SUMPRODUCT(J$9:J$229,Nutrients!$EH$8:$EH$228)+(IF($A$7=Nutrients!$B$8,Nutrients!$EH$8,Nutrients!$EH$9)*J$7)+(((IF($A$8=Nutrients!$B$79,Nutrients!$EH$79,(IF($A$8=Nutrients!$B$77,Nutrients!$EH$77,Nutrients!$EH$78)))))*J$8))/2000","v":35.150868453451629},{"$f":"(SUMPRODUCT(K$9:K$229,Nutrients!$EH$8:$EH$228)+(IF($A$7=Nutrients!$B$8,Nutrients!$EH$8,Nutrients!$EH$9)*K$7)+(((IF($A$8=Nutrients!$B$79,Nutrients!$EH$79,(IF($A$8=Nutrients!$B$77,Nutrients!$EH$77,Nutrients!$EH$78)))))*K$8))/2000","v":36.408029393474912},{"$f":"(SUMPRODUCT(L$9:L$229,Nutrients!$EH$8:$EH$228)+(IF($A$7=Nutrients!$B$8,Nutrients!$EH$8,Nutrients!$EH$9)*L$7)+(((IF($A$8=Nutrients!$B$79,Nutrients!$EH$79,(IF($A$8=Nutrients!$B$77,Nutrients!$EH$77,Nutrients!$EH$78)))))*L$8))/2000","v":37.474270717338129},{"$f":"(SUMPRODUCT(M$9:M$229,Nutrients!$EH$8:$EH$228)+(IF($A$7=Nutrients!$B$8,Nutrients!$EH$8,Nutrients!$EH$9)*M$7)+(((IF($A$8=Nutrients!$B$79,Nutrients!$EH$79,(IF($A$8=Nutrients!$B$77,Nutrients!$EH$77,Nutrients!$EH$78)))))*M$8))/2000","v":38.20600811095867},{"$f":"(SUMPRODUCT(N$9:N$229,Nutrients!$EH$8:$EH$228)+(IF($A$7=Nutrients!$B$8,Nutrients!$EH$8,Nutrients!$EH$9)*N$7)+(((IF($A$8=Nutrients!$B$79,Nutrients!$EH$79,(IF($A$8=Nutrients!$B$77,Nutrients!$EH$77,Nutrients!$EH$78)))))*N$8))/2000","v":39.544986782030342},null,{"$f":"(SUMPRODUCT(P$9:P$229,Nutrients!$EH$8:$EH$228)+(IF($A$7=Nutrients!$B$8,Nutrients!$EH$8,Nutrients!$EH$9)*P$7)+(((IF($A$8=Nutrients!$B$79,Nutrients!$EH$79,(IF($A$8=Nutrients!$B$77,Nutrients!$EH$77,Nutrients!$EH$78)))))*P$8))/2000","v":32.732701013452271},{"$f":"(SUMPRODUCT(Q$9:Q$229,Nutrients!$EH$8:$EH$228)+(IF($A$7=Nutrients!$B$8,Nutrients!$EH$8,Nutrients!$EH$9)*Q$7)+(((IF($A$8=Nutrients!$B$79,Nutrients!$EH$79,(IF($A$8=Nutrients!$B$77,Nutrients!$EH$77,Nutrients!$EH$78)))))*Q$8))/2000","v":34.168657429689304},{"$f":"(SUMPRODUCT(R$9:R$229,Nutrients!$EH$8:$EH$228)+(IF($A$7=Nutrients!$B$8,Nutrients!$EH$8,Nutrients!$EH$9)*R$7)+(((IF($A$8=Nutrients!$B$79,Nutrients!$EH$79,(IF($A$8=Nutrients!$B$77,Nutrients!$EH$77,Nutrients!$EH$78)))))*R$8))/2000","v":35.416462630727601},{"$f":"(SUMPRODUCT(S$9:S$229,Nutrients!$EH$8:$EH$228)+(IF($A$7=Nutrients!$B$8,Nutrients!$EH$8,Nutrients!$EH$9)*S$7)+(((IF($A$8=Nutrients!$B$79,Nutrients!$EH$79,(IF($A$8=Nutrients!$B$77,Nutrients!$EH$77,Nutrients!$EH$78)))))*S$8))/2000","v":36.487123206434887},{"$f":"(SUMPRODUCT(T$9:T$229,Nutrients!$EH$8:$EH$228)+(IF($A$7=Nutrients!$B$8,Nutrients!$EH$8,Nutrients!$EH$9)*T$7)+(((IF($A$8=Nutrients!$B$79,Nutrients!$EH$79,(IF($A$8=Nutrients!$B$77,Nutrients!$EH$77,Nutrients!$EH$78)))))*T$8))/2000","v":37.20724848752301},{"$f":"(SUMPRODUCT(U$9:U$229,Nutrients!$EH$8:$EH$228)+(IF($A$7=Nutrients!$B$8,Nutrients!$EH$8,Nutrients!$EH$9)*U$7)+(((IF($A$8=Nutrients!$B$79,Nutrients!$EH$79,(IF($A$8=Nutrients!$B$77,Nutrients!$EH$77,Nutrients!$EH$78)))))*U$8))/2000","v":39.544986782030342},null,{"$f":"(SUMPRODUCT(W$9:W$229,Nutrients!$EH$8:$EH$228)+(IF($A$7=Nutrients!$B$8,Nutrients!$EH$8,Nutrients!$EH$9)*W$7)+(((IF($A$8=Nutrients!$B$79,Nutrients!$EH$79,(IF($A$8=Nutrients!$B$77,Nutrients!$EH$77,Nutrients!$EH$78)))))*W$8))/2000","v":31.760324223832395},{"$f":"(SUMPRODUCT(X$9:X$229,Nutrients!$EH$8:$EH$228)+(IF($A$7=Nutrients!$B$8,Nutrients!$EH$8,Nutrients!$EH$9)*X$7)+(((IF($A$8=Nutrients!$B$79,Nutrients!$EH$79,(IF($A$8=Nutrients!$B$77,Nutrients!$EH$77,Nutrients!$EH$78)))))*X$8))/2000","v":33.18740201779972},{"$f":"(SUMPRODUCT(Y$9:Y$229,Nutrients!$EH$8:$EH$228)+(IF($A$7=Nutrients!$B$8,Nutrients!$EH$8,Nutrients!$EH$9)*Y$7)+(((IF($A$8=Nutrients!$B$79,Nutrients!$EH$79,(IF($A$8=Nutrients!$B$77,Nutrients!$EH$77,Nutrients!$EH$78)))))*Y$8))/2000","v":34.439223395280514},{"$f":"(SUMPRODUCT(Z$9:Z$229,Nutrients!$EH$8:$EH$228)+(IF($A$7=Nutrients!$B$8,Nutrients!$EH$8,Nutrients!$EH$9)*Z$7)+(((IF($A$8=Nutrients!$B$79,Nutrients!$EH$79,(IF($A$8=Nutrients!$B$77,Nutrients!$EH$77,Nutrients!$EH$78)))))*Z$8))/2000","v":35.496072020189267},{"$f":"(SUMPRODUCT(AA$9:AA$229,Nutrients!$EH$8:$EH$228)+(IF($A$7=Nutrients!$B$8,Nutrients!$EH$8,Nutrients!$EH$9)*AA$7)+(((IF($A$8=Nutrients!$B$79,Nutrients!$EH$79,(IF($A$8=Nutrients!$B$77,Nutrients!$EH$77,Nutrients!$EH$78)))))*AA$8))/2000","v":36.207373222367529},{"$f":"(SUMPRODUCT(AB$9:AB$229,Nutrients!$EH$8:$EH$228)+(IF($A$7=Nutrients!$B$8,Nutrients!$EH$8,Nutrients!$EH$9)*AB$7)+(((IF($A$8=Nutrients!$B$79,Nutrients!$EH$79,(IF($A$8=Nutrients!$B$77,Nutrients!$EH$77,Nutrients!$EH$78)))))*AB$8))/2000","v":39.544986782030342},null,{"$f":"(SUMPRODUCT(AD$9:AD$229,Nutrients!$EH$8:$EH$228)+(IF($A$7=Nutrients!$B$8,Nutrients!$EH$8,Nutrients!$EH$9)*AD$7)+(((IF($A$8=Nutrients!$B$79,Nutrients!$EH$79,(IF($A$8=Nutrients!$B$77,Nutrients!$EH$77,Nutrients!$EH$78)))))*AD$8))/2000","v":30.788571372040046},{"$f":"(SUMPRODUCT(AE$9:AE$229,Nutrients!$EH$8:$EH$228)+(IF($A$7=Nutrients!$B$8,Nutrients!$EH$8,Nutrients!$EH$9)*AE$7)+(((IF($A$8=Nutrients!$B$79,Nutrients!$EH$79,(IF($A$8=Nutrients!$B$77,Nutrients!$EH$77,Nutrients!$EH$78)))))*AE$8))/2000","v":32.219071076373034},{"$f":"(SUMPRODUCT(AF$9:AF$229,Nutrients!$EH$8:$EH$228)+(IF($A$7=Nutrients!$B$8,Nutrients!$EH$8,Nutrients!$EH$9)*AF$7)+(((IF($A$8=Nutrients!$B$79,Nutrients!$EH$79,(IF($A$8=Nutrients!$B$77,Nutrients!$EH$77,Nutrients!$EH$78)))))*AF$8))/2000","v":33.458787372191345},{"$f":"(SUMPRODUCT(AG$9:AG$229,Nutrients!$EH$8:$EH$228)+(IF($A$7=Nutrients!$B$8,Nutrients!$EH$8,Nutrients!$EH$9)*AG$7)+(((IF($A$8=Nutrients!$B$79,Nutrients!$EH$79,(IF($A$8=Nutrients!$B$77,Nutrients!$EH$77,Nutrients!$EH$78)))))*AG$8))/2000","v":34.50088672759901},{"$f":"(SUMPRODUCT(AH$9:AH$229,Nutrients!$EH$8:$EH$228)+(IF($A$7=Nutrients!$B$8,Nutrients!$EH$8,Nutrients!$EH$9)*AH$7)+(((IF($A$8=Nutrients!$B$79,Nutrients!$EH$79,(IF($A$8=Nutrients!$B$77,Nutrients!$EH$77,Nutrients!$EH$78)))))*AH$8))/2000","v":35.1864749556552},{"$f":"(SUMPRODUCT(AI$9:AI$229,Nutrients!$EH$8:$EH$228)+(IF($A$7=Nutrients!$B$8,Nutrients!$EH$8,Nutrients!$EH$9)*AI$7)+(((IF($A$8=Nutrients!$B$79,Nutrients!$EH$79,(IF($A$8=Nutrients!$B$77,Nutrients!$EH$77,Nutrients!$EH$78)))))*AI$8))/2000","v":39.544986782030342},null,{"$f":"(SUMPRODUCT(AK$9:AK$229,Nutrients!$EH$8:$EH$228)+(IF($A$7=Nutrients!$B$8,Nutrients!$EH$8,Nutrients!$EH$9)*AK$7)+(((IF($A$8=Nutrients!$B$79,Nutrients!$EH$79,(IF($A$8=Nutrients!$B$77,Nutrients!$EH$77,Nutrients!$EH$78)))))*AK$8))/2000","v":29.763171736701704},{"$f":"(SUMPRODUCT(AL$9:AL$229,Nutrients!$EH$8:$EH$228)+(IF($A$7=Nutrients!$B$8,Nutrients!$EH$8,Nutrients!$EH$9)*AL$7)+(((IF($A$8=Nutrients!$B$79,Nutrients!$EH$79,(IF($A$8=Nutrients!$B$77,Nutrients!$EH$77,Nutrients!$EH$78)))))*AL$8))/2000","v":31.247354142478294},{"$f":"(SUMPRODUCT(AM$9:AM$229,Nutrients!$EH$8:$EH$228)+(IF($A$7=Nutrients!$B$8,Nutrients!$EH$8,Nutrients!$EH$9)*AM$7)+(((IF($A$8=Nutrients!$B$79,Nutrients!$EH$79,(IF($A$8=Nutrients!$B$77,Nutrients!$EH$77,Nutrients!$EH$78)))))*AM$8))/2000","v":32.472004767480598},{"$f":"(SUMPRODUCT(AN$9:AN$229,Nutrients!$EH$8:$EH$228)+(IF($A$7=Nutrients!$B$8,Nutrients!$EH$8,Nutrients!$EH$9)*AN$7)+(((IF($A$8=Nutrients!$B$79,Nutrients!$EH$79,(IF($A$8=Nutrients!$B$77,Nutrients!$EH$77,Nutrients!$EH$78)))))*AN$8))/2000","v":33.490622380770702},{"$f":"(SUMPRODUCT(AO$9:AO$229,Nutrients!$EH$8:$EH$228)+(IF($A$7=Nutrients!$B$8,Nutrients!$EH$8,Nutrients!$EH$9)*AO$7)+(((IF($A$8=Nutrients!$B$79,Nutrients!$EH$79,(IF($A$8=Nutrients!$B$77,Nutrients!$EH$77,Nutrients!$EH$78)))))*AO$8))/2000","v":34.154494942970253},{"$f":"(SUMPRODUCT(AP$9:AP$229,Nutrients!$EH$8:$EH$228)+(IF($A$7=Nutrients!$B$8,Nutrients!$EH$8,Nutrients!$EH$9)*AP$7)+(((IF($A$8=Nutrients!$B$79,Nutrients!$EH$79,(IF($A$8=Nutrients!$B$77,Nutrients!$EH$77,Nutrients!$EH$78)))))*AP$8))/2000","v":39.544986782030342},null,{"$f":"(SUMPRODUCT(AR$9:AR$229,Nutrients!$EH$8:$EH$228)+(IF($A$7=Nutrients!$B$8,Nutrients!$EH$8,Nutrients!$EH$9)*AR$7)+(((IF($A$8=Nutrients!$B$79,Nutrients!$EH$79,(IF($A$8=Nutrients!$B$77,Nutrients!$EH$77,Nutrients!$EH$78)))))*AR$8))/2000","v":28.811956489715804},{"$f":"(SUMPRODUCT(AS$9:AS$229,Nutrients!$EH$8:$EH$228)+(IF($A$7=Nutrients!$B$8,Nutrients!$EH$8,Nutrients!$EH$9)*AS$7)+(((IF($A$8=Nutrients!$B$79,Nutrients!$EH$79,(IF($A$8=Nutrients!$B$77,Nutrients!$EH$77,Nutrients!$EH$78)))))*AS$8))/2000","v":30.27510924887207},{"$f":"(SUMPRODUCT(AT$9:AT$229,Nutrients!$EH$8:$EH$228)+(IF($A$7=Nutrients!$B$8,Nutrients!$EH$8,Nutrients!$EH$9)*AT$7)+(((IF($A$8=Nutrients!$B$79,Nutrients!$EH$79,(IF($A$8=Nutrients!$B$77,Nutrients!$EH$77,Nutrients!$EH$78)))))*AT$8))/2000","v":31.482030440715349},{"$f":"(SUMPRODUCT(AU$9:AU$229,Nutrients!$EH$8:$EH$228)+(IF($A$7=Nutrients!$B$8,Nutrients!$EH$8,Nutrients!$EH$9)*AU$7)+(((IF($A$8=Nutrients!$B$79,Nutrients!$EH$79,(IF($A$8=Nutrients!$B$77,Nutrients!$EH$77,Nutrients!$EH$78)))))*AU$8))/2000","v":32.462851994037003},{"$f":"(SUMPRODUCT(AV$9:AV$229,Nutrients!$EH$8:$EH$228)+(IF($A$7=Nutrients!$B$8,Nutrients!$EH$8,Nutrients!$EH$9)*AV$7)+(((IF($A$8=Nutrients!$B$79,Nutrients!$EH$79,(IF($A$8=Nutrients!$B$77,Nutrients!$EH$77,Nutrients!$EH$78)))))*AV$8))/2000","v":33.122637196513061},{"$f":"(SUMPRODUCT(AW$9:AW$229,Nutrients!$EH$8:$EH$228)+(IF($A$7=Nutrients!$B$8,Nutrients!$EH$8,Nutrients!$EH$9)*AW$7)+(((IF($A$8=Nutrients!$B$79,Nutrients!$EH$79,(IF($A$8=Nutrients!$B$77,Nutrients!$EH$77,Nutrients!$EH$78)))))*AW$8))/2000","v":39.544986782030342}]
["IV value of product, estimate",{"$f":"(0.4472*B304)+51.796","v":67.295310140026132},67.94844373583328,68.516312942344612,68.992490029910371,69.320820614973073,69.480518088923972,null,{"$f":"(0.4472*I304)+51.796","v":66.869247725940681},67.515468372383566,68.077670744761974,68.554493864793614,68.881726827220717,69.480518088923972,null,{"$f":"(0.4472*P304)+51.796","v":66.43406389321585},67.07622360255705,67.634242088461377,68.113041497917678,68.435081523620283,69.480518088923972,null,{"$f":"(0.4472*W304)+51.796","v":65.999216992897843},66.637406182360039,67.197220702369449,67.669843407428644,67.987937305042763,69.480518088923972,null,{"$f":"(0.4472*AD304)+51.796","v":65.564649117576309},66.204368585354018,66.758769712843971,67.224796544582276,67.531391600169002,69.480518088923972,null,{"$f":"(0.4472*AK304)+51.796","v":65.106090400653002},65.769816772516293,66.317480532017328,66.773006328680651,67.069890138496291,69.480518088923972,null,{"$f":"(0.4472*AR304)+51.796","v":64.680706942200914},65.33502885609559,65.874764013087898,66.313387411733345,66.608443354280638,69.480518088923972]
["Na, %",{"$f":"(SUMPRODUCT(B$9:B$229,Nutrients!$BW$8:$BW$228)+(IF($A$7=Nutrients!$B$8,Nutrients!$BW$8,Nutrients!$BW$9)*B$7)+(((IF($A$8=Nutrients!$B$79,Nutrients!$BW$79,(IF($A$8=Nutrients!$B$77,Nutrients!$BW$77,Nutrients!$BW$78)))))*B$8))/2000","v":0.17839028042000546},{"$f":"(SUMPRODUCT(C$9:C$229,Nutrients!$BW$8:$BW$228)+(IF($A$7=Nutrients!$B$8,Nutrients!$BW$8,Nutrients!$BW$9)*C$7)+(((IF($A$8=Nutrients!$B$79,Nutrients!$BW$79,(IF($A$8=Nutrients!$B$77,Nutrients!$BW$77,Nutrients!$BW$78)))))*C$8))/2000","v":0.1747961379454851},{"$f":"(SUMPRODUCT(D$9:D$229,Nutrients!$BW$8:$BW$228)+(IF($A$7=Nutrients!$B$8,Nutrients!$BW$8,Nutrients!$BW$9)*D$7)+(((IF($A$8=Nutrients!$B$79,Nutrients!$BW$79,(IF($A$8=Nutrients!$B$77,Nutrients!$BW$77,Nutrients!$BW$78)))))*D$8))/2000","v":0.17169952789434653},{"$f":"(SUMPRODUCT(E$9:E$229,Nutrients!$BW$8:$BW$228)+(IF($A$7=Nutrients!$B$8,Nutrients!$BW$8,Nutrients!$BW$9)*E$7)+(((IF($A$8=Nutrients!$B$79,Nutrients!$BW$79,(IF($A$8=Nutrients!$B$77,Nutrients!$BW$77,Nutrients!$BW$78)))))*E$8))/2000","v":0.16911270535843034},{"$f":"(SUMPRODUCT(F$9:F$229,Nutrients!$BW$8:$BW$228)+(IF($A$7=Nutrients!$B$8,Nutrients!$BW$8,Nutrients!$BW$9)*F$7)+(((IF($A$8=Nutrients!$B$79,Nutrients!$BW$79,(IF($A$8=Nutrients!$B$77,Nutrients!$BW$77,Nutrients!$BW$78)))))*F$8))/2000","v":0.16737197925804595},{"$f":"(SUMPRODUCT(G$9:G$229,Nutrients!$BW$8:$BW$228)+(IF($A$7=Nutrients!$B$8,Nutrients!$BW$8,Nutrients!$BW$9)*G$7)+(((IF($A$8=Nutrients!$B$79,Nutrients!$BW$79,(IF($A$8=Nutrients!$B$77,Nutrients!$BW$77,Nutrients!$BW$78)))))*G$8))/2000","v":0.1664919947730959},null,{"$f":"(SUMPRODUCT(I$9:I$229,Nutrients!$BW$8:$BW$228)+(IF($A$7=Nutrients!$B$8,Nutrients!$BW$8,Nutrients!$BW$9)*I$7)+(((IF($A$8=Nutrients!$B$79,Nutrients!$BW$79,(IF($A$8=Nutrients!$B$77,Nutrients!$BW$77,Nutrients!$BW$78)))))*I$8))/2000","v":0.18562286981309919},{"$f":"(SUMPRODUCT(J$9:J$229,Nutrients!$BW$8:$BW$228)+(IF($A$7=Nutrients!$B$8,Nutrients!$BW$8,Nutrients!$BW$9)*J$7)+(((IF($A$8=Nutrients!$B$79,Nutrients!$BW$79,(IF($A$8=Nutrients!$B$77,Nutrients!$BW$77,Nutrients!$BW$78)))))*J$8))/2000","v":0.18206569740360845},{"$f":"(SUMPRODUCT(K$9:K$229,Nutrients!$BW$8:$BW$228)+(IF($A$7=Nutrients!$B$8,Nutrients!$BW$8,Nutrients!$BW$9)*K$7)+(((IF($A$8=Nutrients!$B$79,Nutrients!$BW$79,(IF($A$8=Nutrients!$B$77,Nutrients!$BW$77,Nutrients!$BW$78)))))*K$8))/2000","v":0.17899888148280288},{"$f":"(SUMPRODUCT(L$9:L$229,Nutrients!$BW$8:$BW$228)+(IF($A$7=Nutrients!$B$8,Nutrients!$BW$8,Nutrients!$BW$9)*L$7)+(((IF($A$8=Nutrients!$B$79,Nutrients!$BW$79,(IF($A$8=Nutrients!$B$77,Nutrients!$BW$77,Nutrients!$BW$78)))))*L$8))/2000","v":0.17640287222484963},{"$f":"(SUMPRODUCT(M$9:M$229,Nutrients!$BW$8:$BW$228)+(IF($A$7=Nutrients!$B$8,Nutrients!$BW$8,Nutrients!$BW$9)*M$7)+(((IF($A$8=Nutrients!$B$79,Nutrients!$BW$79,(IF($A$8=Nutrients!$B$77,Nutrients!$BW$77,Nutrients!$BW$78)))))*M$8))/2000","v":0.17466956877762876},{"$f":"(SUMPRODUCT(N$9:N$229,Nutrients!$BW$8:$BW$228)+(IF($A$7=Nutrients!$B$8,Nutrients!$BW$8,Nutrients!$BW$9)*N$7)+(((IF($A$8=Nutrients!$B$79,Nutrients!$BW$79,(IF($A$8=Nutrients!$B$77,Nutrients!$BW$77,Nutrients!$BW$78)))))*N$8))/2000","v":0.1664919947730959},null,{"$f":"(SUMPRODUCT(P$9:P$229,Nutrients!$BW$8:$BW$228)+(IF($A$7=Nutrients!$B$8,Nutrients!$BW$8,Nutrients!$BW$9)*P$7)+(((IF($A$8=Nutrients!$B$79,Nutrients!$BW$79,(IF($A$8=Nutrients!$B$77,Nutrients!$BW$77,Nutrients!$BW$78)))))*P$8))/2000","v":0.19290296032595378},{"$f":"(SUMPRODUCT(Q$9:Q$229,Nutrients!$BW$8:$BW$228)+(IF($A$7=Nutrients!$B$8,Nutrients!$BW$8,Nutrients!$BW$9)*Q$7)+(((IF($A$8=Nutrients!$B$79,Nutrients!$BW$79,(IF($A$8=Nutrients!$B$77,Nutrients!$BW$77,Nutrients!$BW$78)))))*Q$8))/2000","v":0.18936723619453219},{"$f":"(SUMPRODUCT(R$9:R$229,Nutrients!$BW$8:$BW$228)+(IF($A$7=Nutrients!$B$8,Nutrients!$BW$8,Nutrients!$BW$9)*R$7)+(((IF($A$8=Nutrients!$B$79,Nutrients!$BW$79,(IF($A$8=Nutrients!$B$77,Nutrients!$BW$77,Nutrients!$BW$78)))))*R$8))/2000","v":0.18632393708775447},{"$f":"(SUMPRODUCT(S$9:S$229,Nutrients!$BW$8:$BW$228)+(IF($A$7=Nutrients!$B$8,Nutrients!$BW$8,Nutrients!$BW$9)*S$7)+(((IF($A$8=Nutrients!$B$79,Nutrients!$BW$79,(IF($A$8=Nutrients!$B$77,Nutrients!$BW$77,Nutrients!$BW$78)))))*S$8))/2000","v":0.18371713584127405},{"$f":"(SUMPRODUCT(T$9:T$229,Nutrients!$BW$8:$BW$228)+(IF($A$7=Nutrients!$B$8,Nutrients!$BW$8,Nutrients!$BW$9)*T$7)+(((IF($A$8=Nutrients!$B$79,Nutrients!$BW$79,(IF($A$8=Nutrients!$B$77,Nutrients!$BW$77,Nutrients!$BW$78)))))*T$8))/2000","v":0.18200143055036358},{"$f":"(SUMPRODUCT(U$9:U$229,Nutrients!$BW$8:$BW$228)+(IF($A$7=Nutrients!$B$8,Nutrients!$BW$8,Nutrients!$BW$9)*U$7)+(((IF($A$8=Nutrients!$B$79,Nutrients!$BW$79,(IF($A$8=Nutrients!$B$77,Nutrients!$BW$77,Nutrients!$BW$78)))))*U$8))/2000","v":0.1664919947730959},null,{"$f":"(SUMPRODUCT(W$9:W$229,Nutrients!$BW$8:$BW$228)+(IF($A$7=Nutrients!$B$8,Nutrients!$BW$8,Nutrients!$BW$9)*W$7)+(((IF($A$8=Nutrients!$B$79,Nutrients!$BW$79,(IF($A$8=Nutrients!$B$77,Nutrients!$BW$77,Nutrients!$BW$78)))))*W$8))/2000","v":0.20018196879032896},{"$f":"(SUMPRODUCT(X$9:X$229,Nutrients!$BW$8:$BW$228)+(IF($A$7=Nutrients!$B$8,Nutrients!$BW$8,Nutrients!$BW$9)*X$7)+(((IF($A$8=Nutrients!$B$79,Nutrients!$BW$79,(IF($A$8=Nutrients!$B$77,Nutrients!$BW$77,Nutrients!$BW$78)))))*X$8))/2000","v":0.19666798822364953},{"$f":"(SUMPRODUCT(Y$9:Y$229,Nutrients!$BW$8:$BW$228)+(IF($A$7=Nutrients!$B$8,Nutrients!$BW$8,Nutrients!$BW$9)*Y$7)+(((IF($A$8=Nutrients!$B$79,Nutrients!$BW$79,(IF($A$8=Nutrients!$B$77,Nutrients!$BW$77,Nutrients!$BW$78)))))*Y$8))/2000","v":0.19361420156022802},{"$f":"(SUMPRODUCT(Z$9:Z$229,Nutrients!$BW$8:$BW$228)+(IF($A$7=Nutrients!$B$8,Nutrients!$BW$8,Nutrients!$BW$9)*Z$7)+(((IF($A$8=Nutrients!$B$79,Nutrients!$BW$79,(IF($A$8=Nutrients!$B$77,Nutrients!$BW$77,Nutrients!$BW$78)))))*Z$8))/2000","v":0.19103821967195403},{"$f":"(SUMPRODUCT(AA$9:AA$229,Nutrients!$BW$8:$BW$228)+(IF($A$7=Nutrients!$B$8,Nutrients!$BW$8,Nutrients!$BW$9)*AA$7)+(((IF($A$8=Nutrients!$B$79,Nutrients!$BW$79,(IF($A$8=Nutrients!$B$77,Nutrients!$BW$77,Nutrients!$BW$78)))))*AA$8))/2000","v":0.18933386385278517},{"$f":"(SUMPRODUCT(AB$9:AB$229,Nutrients!$BW$8:$BW$228)+(IF($A$7=Nutrients!$B$8,Nutrients!$BW$8,Nutrients!$BW$9)*AB$7)+(((IF($A$8=Nutrients!$B$79,Nutrients!$BW$79,(IF($A$8=Nutrients!$B$77,Nutrients!$BW$77,Nutrients!$BW$78)))))*AB$8))/2000","v":0.1664919947730959},null,{"$f":"(SUMPRODUCT(AD$9:AD$229,Nutrients!$BW$8:$BW$228)+(IF($A$7=Nutrients!$B$8,Nutrients!$BW$8,Nutrients!$BW$9)*AD$7)+(((IF($A$8=Nutrients!$B$79,Nutrients!$BW$79,(IF($A$8=Nutrients!$B$77,Nutrients!$BW$77,Nutrients!$BW$78)))))*AD$8))/2000","v":0.20745899107422577},{"$f":"(SUMPRODUCT(AE$9:AE$229,Nutrients!$BW$8:$BW$228)+(IF($A$7=Nutrients!$B$8,Nutrients!$BW$8,Nutrients!$BW$9)*AE$7)+(((IF($A$8=Nutrients!$B$79,Nutrients!$BW$79,(IF($A$8=Nutrients!$B$77,Nutrients!$BW$77,Nutrients!$BW$78)))))*AE$8))/2000","v":0.20393659587343096},{"$f":"(SUMPRODUCT(AF$9:AF$229,Nutrients!$BW$8:$BW$228)+(IF($A$7=Nutrients!$B$8,Nutrients!$BW$8,Nutrients!$BW$9)*AF$7)+(((IF($A$8=Nutrients!$B$79,Nutrients!$BW$79,(IF($A$8=Nutrients!$B$77,Nutrients!$BW$77,Nutrients!$BW$78)))))*AF$8))/2000","v":0.20091337096117329},{"$f":"(SUMPRODUCT(AG$9:AG$229,Nutrients!$BW$8:$BW$228)+(IF($A$7=Nutrients!$B$8,Nutrients!$BW$8,Nutrients!$BW$9)*AG$7)+(((IF($A$8=Nutrients!$B$79,Nutrients!$BW$79,(IF($A$8=Nutrients!$B$77,Nutrients!$BW$77,Nutrients!$BW$78)))))*AG$8))/2000","v":0.19835846349485534},{"$f":"(SUMPRODUCT(AH$9:AH$229,Nutrients!$BW$8:$BW$228)+(IF($A$7=Nutrients!$B$8,Nutrients!$BW$8,Nutrients!$BW$9)*AH$7)+(((IF($A$8=Nutrients!$B$79,Nutrients!$BW$79,(IF($A$8=Nutrients!$B$77,Nutrients!$BW$77,Nutrients!$BW$78)))))*AH$8))/2000","v":0.19673978885299195},{"$f":"(SUMPRODUCT(AI$9:AI$229,Nutrients!$BW$8:$BW$228)+(IF($A$7=Nutrients!$B$8,Nutrients!$BW$8,Nutrients!$BW$9)*AI$7)+(((IF($A$8=Nutrients!$B$79,Nutrients!$BW$79,(IF($A$8=Nutrients!$B$77,Nutrients!$BW$77,Nutrients!$BW$78)))))*AI$8))/2000","v":0.1664919947730959},null,{"$f":"(SUMPRODUCT(AK$9:AK$229,Nutrients!$BW$8:$BW$228)+(IF($A$7=Nutrients!$B$8,Nutrients!$BW$8,Nutrients!$BW$9)*AK$7)+(((IF($A$8=Nutrients!$B$79,Nutrients!$BW$79,(IF($A$8=Nutrients!$B$77,Nutrients!$BW$77,Nutrients!$BW$78)))))*AK$8))/2000","v":0.21486728563327551},{"$f":"(SUMPRODUCT(AL$9:AL$229,Nutrients!$BW$8:$BW$228)+(IF($A$7=Nutrients!$B$8,Nutrients!$BW$8,Nutrients!$BW$9)*AL$7)+(((IF($A$8=Nutrients!$B$79,Nutrients!$BW$79,(IF($A$8=Nutrients!$B$77,Nutrients!$BW$77,Nutrients!$BW$78)))))*AL$8))/2000","v":0.21121398836460173},{"$f":"(SUMPRODUCT(AM$9:AM$229,Nutrients!$BW$8:$BW$228)+(IF($A$7=Nutrients!$B$8,Nutrients!$BW$8,Nutrients!$BW$9)*AM$7)+(((IF($A$8=Nutrients!$B$79,Nutrients!$BW$79,(IF($A$8=Nutrients!$B$77,Nutrients!$BW$77,Nutrients!$BW$78)))))*AM$8))/2000","v":0.20821374060536282},{"$f":"(SUMPRODUCT(AN$9:AN$229,Nutrients!$BW$8:$BW$228)+(IF($A$7=Nutrients!$B$8,Nutrients!$BW$8,Nutrients!$BW$9)*AN$7)+(((IF($A$8=Nutrients!$B$79,Nutrients!$BW$79,(IF($A$8=Nutrients!$B$77,Nutrients!$BW$77,Nutrients!$BW$78)))))*AN$8))/2000","v":0.20573356687597472},{"$f":"(SUMPRODUCT(AO$9:AO$229,Nutrients!$BW$8:$BW$228)+(IF($A$7=Nutrients!$B$8,Nutrients!$BW$8,Nutrients!$BW$9)*AO$7)+(((IF($A$8=Nutrients!$B$79,Nutrients!$BW$79,(IF($A$8=Nutrients!$B$77,Nutrients!$BW$77,Nutrients!$BW$78)))))*AO$8))/2000","v":0.20418396325292856},{"$f":"(SUMPRODUCT(AP$9:AP$229,Nutrients!$BW$8:$BW$228)+(IF($A$7=Nutrients!$B$8,Nutrients!$BW$8,Nutrients!$BW$9)*AP$7)+(((IF($A$8=Nutrients!$B$79,Nutrients!$BW$79,(IF($A$8=Nutrients!$B$77,Nutrients!$BW$77,Nutrients!$BW$78)))))*AP$8))/2000","v":0.1664919947730959},null,{"$f":"(SUMPRODUCT(AR$9:AR$229,Nutrients!$BW$8:$BW$228)+(IF($A$7=Nutrients!$B$8,Nutrients!$BW$8,Nutrients!$BW$9)*AR$7)+(((IF($A$8=Nutrients!$B$79,Nutrients!$BW$79,(IF($A$8=Nutrients!$B$77,Nutrients!$BW$77,Nutrients!$BW$78)))))*AR$8))/2000","v":0.22209437244780594},{"$f":"(SUMPRODUCT(AS$9:AS$229,Nutrients!$BW$8:$BW$228)+(IF($A$7=Nutrients!$B$8,Nutrients!$BW$8,Nutrients!$BW$9)*AS$7)+(((IF($A$8=Nutrients!$B$79,Nutrients!$BW$79,(IF($A$8=Nutrients!$B$77,Nutrients!$BW$77,Nutrients!$BW$78)))))*AS$8))/2000","v":0.21849221670755783},{"$f":"(SUMPRODUCT(AT$9:AT$229,Nutrients!$BW$8:$BW$228)+(IF($A$7=Nutrients!$B$8,Nutrients!$BW$8,Nutrients!$BW$9)*AT$7)+(((IF($A$8=Nutrients!$B$79,Nutrients!$BW$79,(IF($A$8=Nutrients!$B$77,Nutrients!$BW$77,Nutrients!$BW$78)))))*AT$8))/2000","v":0.21552132635925586},{"$f":"(SUMPRODUCT(AU$9:AU$229,Nutrients!$BW$8:$BW$228)+(IF($A$7=Nutrients!$B$8,Nutrients!$BW$8,Nutrients!$BW$9)*AU$7)+(((IF($A$8=Nutrients!$B$79,Nutrients!$BW$79,(IF($A$8=Nutrients!$B$77,Nutrients!$BW$77,Nutrients!$BW$78)))))*AU$8))/2000","v":0.21316717711694511},{"$f":"(SUMPRODUCT(AV$9:AV$229,Nutrients!$BW$8:$BW$228)+(IF($A$7=Nutrients!$B$8,Nutrients!$BW$8,Nutrients!$BW$9)*AV$7)+(((IF($A$8=Nutrients!$B$79,Nutrients!$BW$79,(IF($A$8=Nutrients!$B$77,Nutrients!$BW$77,Nutrients!$BW$78)))))*AV$8))/2000","v":0.21162837239487978},{"$f":"(SUMPRODUCT(AW$9:AW$229,Nutrients!$BW$8:$BW$228)+(IF($A$7=Nutrients!$B$8,Nutrients!$BW$8,Nutrients!$BW$9)*AW$7)+(((IF($A$8=Nutrients!$B$79,Nutrients!$BW$79,(IF($A$8=Nutrients!$B$77,Nutrients!$BW$77,Nutrients!$BW$78)))))*AW$8))/2000","v":0.1664919947730959}]
["Cl, %",{"$f":"(SUMPRODUCT(B$9:B$229,Nutrients!$BT$8:$BT$228)+(IF($A$7=Nutrients!$B$8,Nutrients!$BT$8,Nutrients!$BT$9)*B$7)+(((IF($A$8=Nutrients!$B$79,Nutrients!$BT$79,(IF($A$8=Nutrients!$B$77,Nutrients!$BT$77,Nutrients!$BT$78)))))*B$8))/2000","v":0.31519434822612252},{"$f":"(SUMPRODUCT(C$9:C$229,Nutrients!$BT$8:$BT$228)+(IF($A$7=Nutrients!$B$8,Nutrients!$BT$8,Nutrients!$BT$9)*C$7)+(((IF($A$8=Nutrients!$B$79,Nutrients!$BT$79,(IF($A$8=Nutrients!$B$77,Nutrients!$BT$77,Nutrients!$BT$78)))))*C$8))/2000","v":0.3147366231672945},{"$f":"(SUMPRODUCT(D$9:D$229,Nutrients!$BT$8:$BT$228)+(IF($A$7=Nutrients!$B$8,Nutrients!$BT$8,Nutrients!$BT$9)*D$7)+(((IF($A$8=Nutrients!$B$79,Nutrients!$BT$79,(IF($A$8=Nutrients!$B$77,Nutrients!$BT$77,Nutrients!$BT$78)))))*D$8))/2000","v":0.31354180150272754},{"$f":"(SUMPRODUCT(E$9:E$229,Nutrients!$BT$8:$BT$228)+(IF($A$7=Nutrients!$B$8,Nutrients!$BT$8,Nutrients!$BT$9)*E$7)+(((IF($A$8=Nutrients!$B$79,Nutrients!$BT$79,(IF($A$8=Nutrients!$B$77,Nutrients!$BT$77,Nutrients!$BT$78)))))*E$8))/2000","v":0.31295871729246166},{"$f":"(SUMPRODUCT(F$9:F$229,Nutrients!$BT$8:$BT$228)+(IF($A$7=Nutrients!$B$8,Nutrients!$BT$8,Nutrients!$BT$9)*F$7)+(((IF($A$8=Nutrients!$B$79,Nutrients!$BT$79,(IF($A$8=Nutrients!$B$77,Nutrients!$BT$77,Nutrients!$BT$78)))))*F$8))/2000","v":0.31206915279820541},{"$f":"(SUMPRODUCT(G$9:G$229,Nutrients!$BT$8:$BT$228)+(IF($A$7=Nutrients!$B$8,Nutrients!$BT$8,Nutrients!$BT$9)*G$7)+(((IF($A$8=Nutrients!$B$79,Nutrients!$BT$79,(IF($A$8=Nutrients!$B$77,Nutrients!$BT$77,Nutrients!$BT$78)))))*G$8))/2000","v":0.31085636054251664},null,{"$f":"(SUMPRODUCT(I$9:I$229,Nutrients!$BT$8:$BT$228)+(IF($A$7=Nutrients!$B$8,Nutrients!$BT$8,Nutrients!$BT$9)*I$7)+(((IF($A$8=Nutrients!$B$79,Nutrients!$BT$79,(IF($A$8=Nutrients!$B$77,Nutrients!$BT$77,Nutrients!$BT$78)))))*I$8))/2000","v":0.32797913621121561},{"$f":"(SUMPRODUCT(J$9:J$229,Nutrients!$BT$8:$BT$228)+(IF($A$7=Nutrients!$B$8,Nutrients!$BT$8,Nutrients!$BT$9)*J$7)+(((IF($A$8=Nutrients!$B$79,Nutrients!$BT$79,(IF($A$8=Nutrients!$B$77,Nutrients!$BT$77,Nutrients!$BT$78)))))*J$8))/2000","v":0.32752024217632575},{"$f":"(SUMPRODUCT(K$9:K$229,Nutrients!$BT$8:$BT$228)+(IF($A$7=Nutrients!$B$8,Nutrients!$BT$8,Nutrients!$BT$9)*K$7)+(((IF($A$8=Nutrients!$B$79,Nutrients!$BT$79,(IF($A$8=Nutrients!$B$77,Nutrients!$BT$77,Nutrients!$BT$78)))))*K$8))/2000","v":0.32632434792923404},{"$f":"(SUMPRODUCT(L$9:L$229,Nutrients!$BT$8:$BT$228)+(IF($A$7=Nutrients!$B$8,Nutrients!$BT$8,Nutrients!$BT$9)*L$7)+(((IF($A$8=Nutrients!$B$79,Nutrients!$BT$79,(IF($A$8=Nutrients!$B$77,Nutrients!$BT$77,Nutrients!$BT$78)))))*L$8))/2000","v":0.32574971304931477},{"$f":"(SUMPRODUCT(M$9:M$229,Nutrients!$BT$8:$BT$228)+(IF($A$7=Nutrients!$B$8,Nutrients!$BT$8,Nutrients!$BT$9)*M$7)+(((IF($A$8=Nutrients!$B$79,Nutrients!$BT$79,(IF($A$8=Nutrients!$B$77,Nutrients!$BT$77,Nutrients!$BT$78)))))*M$8))/2000","v":0.32485741816680286},{"$f":"(SUMPRODUCT(N$9:N$229,Nutrients!$BT$8:$BT$228)+(IF($A$7=Nutrients!$B$8,Nutrients!$BT$8,Nutrients!$BT$9)*N$7)+(((IF($A$8=Nutrients!$B$79,Nutrients!$BT$79,(IF($A$8=Nutrients!$B$77,Nutrients!$BT$77,Nutrients!$BT$78)))))*N$8))/2000","v":0.31085636054251664},null,{"$f":"(SUMPRODUCT(P$9:P$229,Nutrients!$BT$8:$BT$228)+(IF($A$7=Nutrients!$B$8,Nutrients!$BT$8,Nutrients!$BT$9)*P$7)+(((IF($A$8=Nutrients!$B$79,Nutrients!$BT$79,(IF($A$8=Nutrients!$B$77,Nutrients!$BT$77,Nutrients!$BT$78)))))*P$8))/2000","v":0.34076189078428104},{"$f":"(SUMPRODUCT(Q$9:Q$229,Nutrients!$BT$8:$BT$228)+(IF($A$7=Nutrients!$B$8,Nutrients!$BT$8,Nutrients!$BT$9)*Q$7)+(((IF($A$8=Nutrients!$B$79,Nutrients!$BT$79,(IF($A$8=Nutrients!$B$77,Nutrients!$BT$77,Nutrients!$BT$78)))))*Q$8))/2000","v":0.34030233678692939},{"$f":"(SUMPRODUCT(R$9:R$229,Nutrients!$BT$8:$BT$228)+(IF($A$7=Nutrients!$B$8,Nutrients!$BT$8,Nutrients!$BT$9)*R$7)+(((IF($A$8=Nutrients!$B$79,Nutrients!$BT$79,(IF($A$8=Nutrients!$B$77,Nutrients!$BT$77,Nutrients!$BT$78)))))*R$8))/2000","v":0.33910623738857054},{"$f":"(SUMPRODUCT(S$9:S$229,Nutrients!$BT$8:$BT$228)+(IF($A$7=Nutrients!$B$8,Nutrients!$BT$8,Nutrients!$BT$9)*S$7)+(((IF($A$8=Nutrients!$B$79,Nutrients!$BT$79,(IF($A$8=Nutrients!$B$77,Nutrients!$BT$77,Nutrients!$BT$78)))))*S$8))/2000","v":0.33853180148947781},{"$f":"(SUMPRODUCT(T$9:T$229,Nutrients!$BT$8:$BT$228)+(IF($A$7=Nutrients!$B$8,Nutrients!$BT$8,Nutrients!$BT$9)*T$7)+(((IF($A$8=Nutrients!$B$79,Nutrients!$BT$79,(IF($A$8=Nutrients!$B$77,Nutrients!$BT$77,Nutrients!$BT$78)))))*T$8))/2000","v":0.33763489867106866},{"$f":"(SUMPRODUCT(U$9:U$229,Nutrients!$BT$8:$BT$228)+(IF($A$7=Nutrients!$B$8,Nutrients!$BT$8,Nutrients!$BT$9)*U$7)+(((IF($A$8=Nutrients!$B$79,Nutrients!$BT$79,(IF($A$8=Nutrients!$B$77,Nutrients!$BT$77,Nutrients!$BT$78)))))*U$8))/2000","v":0.31085636054251664},null,{"$f":"(SUMPRODUCT(W$9:W$229,Nutrients!$BT$8:$BT$228)+(IF($A$7=Nutrients!$B$8,Nutrients!$BT$8,Nutrients!$BT$9)*W$7)+(((IF($A$8=Nutrients!$B$79,Nutrients!$BT$79,(IF($A$8=Nutrients!$B$77,Nutrients!$BT$77,Nutrients!$BT$78)))))*W$8))/2000","v":0.35354513897654144},{"$f":"(SUMPRODUCT(X$9:X$229,Nutrients!$BT$8:$BT$228)+(IF($A$7=Nutrients!$B$8,Nutrients!$BT$8,Nutrients!$BT$9)*X$7)+(((IF($A$8=Nutrients!$B$79,Nutrients!$BT$79,(IF($A$8=Nutrients!$B$77,Nutrients!$BT$77,Nutrients!$BT$78)))))*X$8))/2000","v":0.35308522258644415},{"$f":"(SUMPRODUCT(Y$9:Y$229,Nutrients!$BT$8:$BT$228)+(IF($A$7=Nutrients!$B$8,Nutrients!$BT$8,Nutrients!$BT$9)*Y$7)+(((IF($A$8=Nutrients!$B$79,Nutrients!$BT$79,(IF($A$8=Nutrients!$B$77,Nutrients!$BT$77,Nutrients!$BT$78)))))*Y$8))/2000","v":0.35188903860895032},{"$f":"(SUMPRODUCT(Z$9:Z$229,Nutrients!$BT$8:$BT$228)+(IF($A$7=Nutrients!$B$8,Nutrients!$BT$8,Nutrients!$BT$9)*Z$7)+(((IF($A$8=Nutrients!$B$79,Nutrients!$BT$79,(IF($A$8=Nutrients!$B$77,Nutrients!$BT$77,Nutrients!$BT$78)))))*Z$8))/2000","v":0.351312893348667},{"$f":"(SUMPRODUCT(AA$9:AA$229,Nutrients!$BT$8:$BT$228)+(IF($A$7=Nutrients!$B$8,Nutrients!$BT$8,Nutrients!$BT$9)*AA$7)+(((IF($A$8=Nutrients!$B$79,Nutrients!$BT$79,(IF($A$8=Nutrients!$B$77,Nutrients!$BT$77,Nutrients!$BT$78)))))*AA$8))/2000","v":0.35041171978269497},{"$f":"(SUMPRODUCT(AB$9:AB$229,Nutrients!$BT$8:$BT$228)+(IF($A$7=Nutrients!$B$8,Nutrients!$BT$8,Nutrients!$BT$9)*AB$7)+(((IF($A$8=Nutrients!$B$79,Nutrients!$BT$79,(IF($A$8=Nutrients!$B$77,Nutrients!$BT$77,Nutrients!$BT$78)))))*AB$8))/2000","v":0.31085636054251664},null,{"$f":"(SUMPRODUCT(AD$9:AD$229,Nutrients!$BT$8:$BT$228)+(IF($A$7=Nutrients!$B$8,Nutrients!$BT$8,Nutrients!$BT$9)*AD$7)+(((IF($A$8=Nutrients!$B$79,Nutrients!$BT$79,(IF($A$8=Nutrients!$B$77,Nutrients!$BT$77,Nutrients!$BT$78)))))*AD$8))/2000","v":0.36632813471969583},{"$f":"(SUMPRODUCT(AE$9:AE$229,Nutrients!$BT$8:$BT$228)+(IF($A$7=Nutrients!$B$8,Nutrients!$BT$8,Nutrients!$BT$9)*AE$7)+(((IF($A$8=Nutrients!$B$79,Nutrients!$BT$79,(IF($A$8=Nutrients!$B$77,Nutrients!$BT$77,Nutrients!$BT$78)))))*AE$8))/2000","v":0.36586833710551553},{"$f":"(SUMPRODUCT(AF$9:AF$229,Nutrients!$BT$8:$BT$228)+(IF($A$7=Nutrients!$B$8,Nutrients!$BT$8,Nutrients!$BT$9)*AF$7)+(((IF($A$8=Nutrients!$B$79,Nutrients!$BT$79,(IF($A$8=Nutrients!$B$77,Nutrients!$BT$77,Nutrients!$BT$78)))))*AF$8))/2000","v":0.36467199047628951},{"$f":"(SUMPRODUCT(AG$9:AG$229,Nutrients!$BT$8:$BT$228)+(IF($A$7=Nutrients!$B$8,Nutrients!$BT$8,Nutrients!$BT$9)*AG$7)+(((IF($A$8=Nutrients!$B$79,Nutrients!$BT$79,(IF($A$8=Nutrients!$B$77,Nutrients!$BT$77,Nutrients!$BT$78)))))*AG$8))/2000","v":0.36408947895781546},{"$f":"(SUMPRODUCT(AH$9:AH$229,Nutrients!$BT$8:$BT$228)+(IF($A$7=Nutrients!$B$8,Nutrients!$BT$8,Nutrients!$BT$9)*AH$7)+(((IF($A$8=Nutrients!$B$79,Nutrients!$BT$79,(IF($A$8=Nutrients!$B$77,Nutrients!$BT$77,Nutrients!$BT$78)))))*AH$8))/2000","v":0.36316336176056729},{"$f":"(SUMPRODUCT(AI$9:AI$229,Nutrients!$BT$8:$BT$228)+(IF($A$7=Nutrients!$B$8,Nutrients!$BT$8,Nutrients!$BT$9)*AI$7)+(((IF($A$8=Nutrients!$B$79,Nutrients!$BT$79,(IF($A$8=Nutrients!$B$77,Nutrients!$BT$77,Nutrients!$BT$78)))))*AI$8))/2000","v":0.31085636054251664},null,{"$f":"(SUMPRODUCT(AK$9:AK$229,Nutrients!$BT$8:$BT$228)+(IF($A$7=Nutrients!$B$8,Nutrients!$BT$8,Nutrients!$BT$9)*AK$7)+(((IF($A$8=Nutrients!$B$79,Nutrients!$BT$79,(IF($A$8=Nutrients!$B$77,Nutrients!$BT$77,Nutrients!$BT$78)))))*AK$8))/2000","v":0.37910887552855033},{"$f":"(SUMPRODUCT(AL$9:AL$229,Nutrients!$BT$8:$BT$228)+(IF($A$7=Nutrients!$B$8,Nutrients!$BT$8,Nutrients!$BT$9)*AL$7)+(((IF($A$8=Nutrients!$B$79,Nutrients!$BT$79,(IF($A$8=Nutrients!$B$77,Nutrients!$BT$77,Nutrients!$BT$78)))))*AL$8))/2000","v":0.37865161223066268},{"$f":"(SUMPRODUCT(AM$9:AM$229,Nutrients!$BT$8:$BT$228)+(IF($A$7=Nutrients!$B$8,Nutrients!$BT$8,Nutrients!$BT$9)*AM$7)+(((IF($A$8=Nutrients!$B$79,Nutrients!$BT$79,(IF($A$8=Nutrients!$B$77,Nutrients!$BT$77,Nutrients!$BT$78)))))*AM$8))/2000","v":0.37744934598221969},{"$f":"(SUMPRODUCT(AN$9:AN$229,Nutrients!$BT$8:$BT$228)+(IF($A$7=Nutrients!$B$8,Nutrients!$BT$8,Nutrients!$BT$9)*AN$7)+(((IF($A$8=Nutrients!$B$79,Nutrients!$BT$79,(IF($A$8=Nutrients!$B$77,Nutrients!$BT$77,Nutrients!$BT$78)))))*AN$8))/2000","v":0.37684748099816834},{"$f":"(SUMPRODUCT(AO$9:AO$229,Nutrients!$BT$8:$BT$228)+(IF($A$7=Nutrients!$B$8,Nutrients!$BT$8,Nutrients!$BT$9)*AO$7)+(((IF($A$8=Nutrients!$B$79,Nutrients!$BT$79,(IF($A$8=Nutrients!$B$77,Nutrients!$BT$77,Nutrients!$BT$78)))))*AO$8))/2000","v":0.37590235910748337},{"$f":"(SUMPRODUCT(AP$9:AP$229,Nutrients!$BT$8:$BT$228)+(IF($A$7=Nutrients!$B$8,Nutrients!$BT$8,Nutrients!$BT$9)*AP$7)+(((IF($A$8=Nutrients!$B$79,Nutrients!$BT$79,(IF($A$8=Nutrients!$B$77,Nutrients!$BT$77,Nutrients!$BT$78)))))*AP$8))/2000","v":0.31085636054251664},null,{"$f":"(SUMPRODUCT(AR$9:AR$229,Nutrients!$BT$8:$BT$228)+(IF($A$7=Nutrients!$B$8,Nutrients!$BT$8,Nutrients!$BT$9)*AR$7)+(((IF($A$8=Nutrients!$B$79,Nutrients!$BT$79,(IF($A$8=Nutrients!$B$77,Nutrients!$BT$77,Nutrients!$BT$78)))))*AR$8))/2000","v":0.39189292833775413},{"$f":"(SUMPRODUCT(AS$9:AS$229,Nutrients!$BT$8:$BT$228)+(IF($A$7=Nutrients!$B$8,Nutrients!$BT$8,Nutrients!$BT$9)*AS$7)+(((IF($A$8=Nutrients!$B$79,Nutrients!$BT$79,(IF($A$8=Nutrients!$B$77,Nutrients!$BT$77,Nutrients!$BT$78)))))*AS$8))/2000","v":0.39143458853266211},{"$f":"(SUMPRODUCT(AT$9:AT$229,Nutrients!$BT$8:$BT$228)+(IF($A$7=Nutrients!$B$8,Nutrients!$BT$8,Nutrients!$BT$9)*AT$7)+(((IF($A$8=Nutrients!$B$79,Nutrients!$BT$79,(IF($A$8=Nutrients!$B$77,Nutrients!$BT$77,Nutrients!$BT$78)))))*AT$8))/2000","v":0.39022620705261057},{"$f":"(SUMPRODUCT(AU$9:AU$229,Nutrients!$BT$8:$BT$228)+(IF($A$7=Nutrients!$B$8,Nutrients!$BT$8,Nutrients!$BT$9)*AU$7)+(((IF($A$8=Nutrients!$B$79,Nutrients!$BT$79,(IF($A$8=Nutrients!$B$77,Nutrients!$BT$77,Nutrients!$BT$78)))))*AU$8))/2000","v":0.38958649556721603},{"$f":"(SUMPRODUCT(AV$9:AV$229,Nutrients!$BT$8:$BT$228)+(IF($A$7=Nutrients!$B$8,Nutrients!$BT$8,Nutrients!$BT$9)*AV$7)+(((IF($A$8=Nutrients!$B$79,Nutrients!$BT$79,(IF($A$8=Nutrients!$B$77,Nutrients!$BT$77,Nutrients!$BT$78)))))*AV$8))/2000","v":0.38864156445292686},{"$f":"(SUMPRODUCT(AW$9:AW$229,Nutrients!$BT$8:$BT$228)+(IF($A$7=Nutrients!$B$8,Nutrients!$BT$8,Nutrients!$BT$9)*AW$7)+(((IF($A$8=Nutrients!$B$79,Nutrients!$BT$79,(IF($A$8=Nutrients!$B$77,Nutrients!$BT$77,Nutrients!$BT$78)))))*AW$8))/2000","v":0.31085636054251664}]
["K, %",{"$f":"(SUMPRODUCT(B$9:B$229,Nutrients!$BU$8:$BU$228)+(IF($A$7=Nutrients!$B$8,Nutrients!$BU$8,Nutrients!$BU$9)*B$7)+(((IF($A$8=Nutrients!$B$79,Nutrients!$BU$79,(IF($A$8=Nutrients!$B$77,Nutrients!$BU$77,Nutrients!$BU$78)))))*B$8))/2000","v":0.90672227094333946},{"$f":"(SUMPRODUCT(C$9:C$229,Nutrients!$BU$8:$BU$228)+(IF($A$7=Nutrients!$B$8,Nutrients!$BU$8,Nutrients!$BU$9)*C$7)+(((IF($A$8=Nutrients!$B$79,Nutrients!$BU$79,(IF($A$8=Nutrients!$B$77,Nutrients!$BU$77,Nutrients!$BU$78)))))*C$8))/2000","v":0.80119571619411978},{"$f":"(SUMPRODUCT(D$9:D$229,Nutrients!$BU$8:$BU$228)+(IF($A$7=Nutrients!$B$8,Nutrients!$BU$8,Nutrients!$BU$9)*D$7)+(((IF($A$8=Nutrients!$B$79,Nutrients!$BU$79,(IF($A$8=Nutrients!$B$77,Nutrients!$BU$77,Nutrients!$BU$78)))))*D$8))/2000","v":0.71030836475916248},{"$f":"(SUMPRODUCT(E$9:E$229,Nutrients!$BU$8:$BU$228)+(IF($A$7=Nutrients!$B$8,Nutrients!$BU$8,Nutrients!$BU$9)*E$7)+(((IF($A$8=Nutrients!$B$79,Nutrients!$BU$79,(IF($A$8=Nutrients!$B$77,Nutrients!$BU$77,Nutrients!$BU$78)))))*E$8))/2000","v":0.63370500360255355},{"$f":"(SUMPRODUCT(F$9:F$229,Nutrients!$BU$8:$BU$228)+(IF($A$7=Nutrients!$B$8,Nutrients!$BU$8,Nutrients!$BU$9)*F$7)+(((IF($A$8=Nutrients!$B$79,Nutrients!$BU$79,(IF($A$8=Nutrients!$B$77,Nutrients!$BU$77,Nutrients!$BU$78)))))*F$8))/2000","v":0.58276518762548057},{"$f":"(SUMPRODUCT(G$9:G$229,Nutrients!$BU$8:$BU$228)+(IF($A$7=Nutrients!$B$8,Nutrients!$BU$8,Nutrients!$BU$9)*G$7)+(((IF($A$8=Nutrients!$B$79,Nutrients!$BU$79,(IF($A$8=Nutrients!$B$77,Nutrients!$BU$77,Nutrients!$BU$78)))))*G$8))/2000","v":0.55679357869744972},null,{"$f":"(SUMPRODUCT(I$9:I$229,Nutrients!$BU$8:$BU$228)+(IF($A$7=Nutrients!$B$8,Nutrients!$BU$8,Nutrients!$BU$9)*I$7)+(((IF($A$8=Nutrients!$B$79,Nutrients!$BU$79,(IF($A$8=Nutrients!$B$77,Nutrients!$BU$77,Nutrients!$BU$78)))))*I$8))/2000","v":0.89962350621035569},{"$f":"(SUMPRODUCT(J$9:J$229,Nutrients!$BU$8:$BU$228)+(IF($A$7=Nutrients!$B$8,Nutrients!$BU$8,Nutrients!$BU$9)*J$7)+(((IF($A$8=Nutrients!$B$79,Nutrients!$BU$79,(IF($A$8=Nutrients!$B$77,Nutrients!$BU$77,Nutrients!$BU$78)))))*J$8))/2000","v":0.79523881885406744},{"$f":"(SUMPRODUCT(K$9:K$229,Nutrients!$BU$8:$BU$228)+(IF($A$7=Nutrients!$B$8,Nutrients!$BU$8,Nutrients!$BU$9)*K$7)+(((IF($A$8=Nutrients!$B$79,Nutrients!$BU$79,(IF($A$8=Nutrients!$B$77,Nutrients!$BU$77,Nutrients!$BU$78)))))*K$8))/2000","v":0.70528994962883884},{"$f":"(SUMPRODUCT(L$9:L$229,Nutrients!$BU$8:$BU$228)+(IF($A$7=Nutrients!$B$8,Nutrients!$BU$8,Nutrients!$BU$9)*L$7)+(((IF($A$8=Nutrients!$B$79,Nutrients!$BU$79,(IF($A$8=Nutrients!$B$77,Nutrients!$BU$77,Nutrients!$BU$78)))))*L$8))/2000","v":0.62932055537058251},{"$f":"(SUMPRODUCT(M$9:M$229,Nutrients!$BU$8:$BU$228)+(IF($A$7=Nutrients!$B$8,Nutrients!$BU$8,Nutrients!$BU$9)*M$7)+(((IF($A$8=Nutrients!$B$79,Nutrients!$BU$79,(IF($A$8=Nutrients!$B$77,Nutrients!$BU$77,Nutrients!$BU$78)))))*M$8))/2000","v":0.57833280928955455},{"$f":"(SUMPRODUCT(N$9:N$229,Nutrients!$BU$8:$BU$228)+(IF($A$7=Nutrients!$B$8,Nutrients!$BU$8,Nutrients!$BU$9)*N$7)+(((IF($A$8=Nutrients!$B$79,Nutrients!$BU$79,(IF($A$8=Nutrients!$B$77,Nutrients!$BU$77,Nutrients!$BU$78)))))*N$8))/2000","v":0.55679357869744972},null,{"$f":"(SUMPRODUCT(P$9:P$229,Nutrients!$BU$8:$BU$228)+(IF($A$7=Nutrients!$B$8,Nutrients!$BU$8,Nutrients!$BU$9)*P$7)+(((IF($A$8=Nutrients!$B$79,Nutrients!$BU$79,(IF($A$8=Nutrients!$B$77,Nutrients!$BU$77,Nutrients!$BU$78)))))*P$8))/2000","v":0.89399297973494662},{"$f":"(SUMPRODUCT(Q$9:Q$229,Nutrients!$BU$8:$BU$228)+(IF($A$7=Nutrients!$B$8,Nutrients!$BU$8,Nutrients!$BU$9)*Q$7)+(((IF($A$8=Nutrients!$B$79,Nutrients!$BU$79,(IF($A$8=Nutrients!$B$77,Nutrients!$BU$77,Nutrients!$BU$78)))))*Q$8))/2000","v":0.79029922877195724},{"$f":"(SUMPRODUCT(R$9:R$229,Nutrients!$BU$8:$BU$228)+(IF($A$7=Nutrients!$B$8,Nutrients!$BU$8,Nutrients!$BU$9)*R$7)+(((IF($A$8=Nutrients!$B$79,Nutrients!$BU$79,(IF($A$8=Nutrients!$B$77,Nutrients!$BU$77,Nutrients!$BU$78)))))*R$8))/2000","v":0.70108968877850109},{"$f":"(SUMPRODUCT(S$9:S$229,Nutrients!$BU$8:$BU$228)+(IF($A$7=Nutrients!$B$8,Nutrients!$BU$8,Nutrients!$BU$9)*S$7)+(((IF($A$8=Nutrients!$B$79,Nutrients!$BU$79,(IF($A$8=Nutrients!$B$77,Nutrients!$BU$77,Nutrients!$BU$78)))))*S$8))/2000","v":0.6247763745769721},{"$f":"(SUMPRODUCT(T$9:T$229,Nutrients!$BU$8:$BU$228)+(IF($A$7=Nutrients!$B$8,Nutrients!$BU$8,Nutrients!$BU$9)*T$7)+(((IF($A$8=Nutrients!$B$79,Nutrients!$BU$79,(IF($A$8=Nutrients!$B$77,Nutrients!$BU$77,Nutrients!$BU$78)))))*T$8))/2000","v":0.57437860603194968},{"$f":"(SUMPRODUCT(U$9:U$229,Nutrients!$BU$8:$BU$228)+(IF($A$7=Nutrients!$B$8,Nutrients!$BU$8,Nutrients!$BU$9)*U$7)+(((IF($A$8=Nutrients!$B$79,Nutrients!$BU$79,(IF($A$8=Nutrients!$B$77,Nutrients!$BU$77,Nutrients!$BU$78)))))*U$8))/2000","v":0.55679357869744972},null,{"$f":"(SUMPRODUCT(W$9:W$229,Nutrients!$BU$8:$BU$228)+(IF($A$7=Nutrients!$B$8,Nutrients!$BU$8,Nutrients!$BU$9)*W$7)+(((IF($A$8=Nutrients!$B$79,Nutrients!$BU$79,(IF($A$8=Nutrients!$B$77,Nutrients!$BU$77,Nutrients!$BU$78)))))*W$8))/2000","v":0.88836325059495336},{"$f":"(SUMPRODUCT(X$9:X$229,Nutrients!$BU$8:$BU$228)+(IF($A$7=Nutrients!$B$8,Nutrients!$BU$8,Nutrients!$BU$9)*X$7)+(((IF($A$8=Nutrients!$B$79,Nutrients!$BU$79,(IF($A$8=Nutrients!$B$77,Nutrients!$BU$77,Nutrients!$BU$78)))))*X$8))/2000","v":0.78536529370371211},{"$f":"(SUMPRODUCT(Y$9:Y$229,Nutrients!$BU$8:$BU$228)+(IF($A$7=Nutrients!$B$8,Nutrients!$BU$8,Nutrients!$BU$9)*Y$7)+(((IF($A$8=Nutrients!$B$79,Nutrients!$BU$79,(IF($A$8=Nutrients!$B$77,Nutrients!$BU$77,Nutrients!$BU$78)))))*Y$8))/2000","v":0.69582180088358803},{"$f":"(SUMPRODUCT(Z$9:Z$229,Nutrients!$BU$8:$BU$228)+(IF($A$7=Nutrients!$B$8,Nutrients!$BU$8,Nutrients!$BU$9)*Z$7)+(((IF($A$8=Nutrients!$B$79,Nutrients!$BU$79,(IF($A$8=Nutrients!$B$77,Nutrients!$BU$77,Nutrients!$BU$78)))))*Z$8))/2000","v":0.62050230797917816},{"$f":"(SUMPRODUCT(AA$9:AA$229,Nutrients!$BU$8:$BU$228)+(IF($A$7=Nutrients!$B$8,Nutrients!$BU$8,Nutrients!$BU$9)*AA$7)+(((IF($A$8=Nutrients!$B$79,Nutrients!$BU$79,(IF($A$8=Nutrients!$B$77,Nutrients!$BU$77,Nutrients!$BU$78)))))*AA$8))/2000","v":0.57049367170944065},{"$f":"(SUMPRODUCT(AB$9:AB$229,Nutrients!$BU$8:$BU$228)+(IF($A$7=Nutrients!$B$8,Nutrients!$BU$8,Nutrients!$BU$9)*AB$7)+(((IF($A$8=Nutrients!$B$79,Nutrients!$BU$79,(IF($A$8=Nutrients!$B$77,Nutrients!$BU$77,Nutrients!$BU$78)))))*AB$8))/2000","v":0.55679357869744972},null,{"$f":"(SUMPRODUCT(AD$9:AD$229,Nutrients!$BU$8:$BU$228)+(IF($A$7=Nutrients!$B$8,Nutrients!$BU$8,Nutrients!$BU$9)*AD$7)+(((IF($A$8=Nutrients!$B$79,Nutrients!$BU$79,(IF($A$8=Nutrients!$B$77,Nutrients!$BU$77,Nutrients!$BU$78)))))*AD$8))/2000","v":0.88264869497046583},{"$f":"(SUMPRODUCT(AE$9:AE$229,Nutrients!$BU$8:$BU$228)+(IF($A$7=Nutrients!$B$8,Nutrients!$BU$8,Nutrients!$BU$9)*AE$7)+(((IF($A$8=Nutrients!$B$79,Nutrients!$BU$79,(IF($A$8=Nutrients!$B$77,Nutrients!$BU$77,Nutrients!$BU$78)))))*AE$8))/2000","v":0.77937987079280013},{"$f":"(SUMPRODUCT(AF$9:AF$229,Nutrients!$BU$8:$BU$228)+(IF($A$7=Nutrients!$B$8,Nutrients!$BU$8,Nutrients!$BU$9)*AF$7)+(((IF($A$8=Nutrients!$B$79,Nutrients!$BU$79,(IF($A$8=Nutrients!$B$77,Nutrients!$BU$77,Nutrients!$BU$78)))))*AF$8))/2000","v":0.69080814278857994},{"$f":"(SUMPRODUCT(AG$9:AG$229,Nutrients!$BU$8:$BU$228)+(IF($A$7=Nutrients!$B$8,Nutrients!$BU$8,Nutrients!$BU$9)*AG$7)+(((IF($A$8=Nutrients!$B$79,Nutrients!$BU$79,(IF($A$8=Nutrients!$B$77,Nutrients!$BU$77,Nutrients!$BU$78)))))*AG$8))/2000","v":0.61619463767012261},{"$f":"(SUMPRODUCT(AH$9:AH$229,Nutrients!$BU$8:$BU$228)+(IF($A$7=Nutrients!$B$8,Nutrients!$BU$8,Nutrients!$BU$9)*AH$7)+(((IF($A$8=Nutrients!$B$79,Nutrients!$BU$79,(IF($A$8=Nutrients!$B$77,Nutrients!$BU$77,Nutrients!$BU$78)))))*AH$8))/2000","v":0.56618014703598296},{"$f":"(SUMPRODUCT(AI$9:AI$229,Nutrients!$BU$8:$BU$228)+(IF($A$7=Nutrients!$B$8,Nutrients!$BU$8,Nutrients!$BU$9)*AI$7)+(((IF($A$8=Nutrients!$B$79,Nutrients!$BU$79,(IF($A$8=Nutrients!$B$77,Nutrients!$BU$77,Nutrients!$BU$78)))))*AI$8))/2000","v":0.55679357869744972},null,{"$f":"(SUMPRODUCT(AK$9:AK$229,Nutrients!$BU$8:$BU$228)+(IF($A$7=Nutrients!$B$8,Nutrients!$BU$8,Nutrients!$BU$9)*AK$7)+(((IF($A$8=Nutrients!$B$79,Nutrients!$BU$79,(IF($A$8=Nutrients!$B$77,Nutrients!$BU$77,Nutrients!$BU$78)))))*AK$8))/2000","v":0.88112985711011127},{"$f":"(SUMPRODUCT(AL$9:AL$229,Nutrients!$BU$8:$BU$228)+(IF($A$7=Nutrients!$B$8,Nutrients!$BU$8,Nutrients!$BU$9)*AL$7)+(((IF($A$8=Nutrients!$B$79,Nutrients!$BU$79,(IF($A$8=Nutrients!$B$77,Nutrients!$BU$77,Nutrients!$BU$78)))))*AL$8))/2000","v":0.77369843051026488},{"$f":"(SUMPRODUCT(AM$9:AM$229,Nutrients!$BU$8:$BU$228)+(IF($A$7=Nutrients!$B$8,Nutrients!$BU$8,Nutrients!$BU$9)*AM$7)+(((IF($A$8=Nutrients!$B$79,Nutrients!$BU$79,(IF($A$8=Nutrients!$B$77,Nutrients!$BU$77,Nutrients!$BU$78)))))*AM$8))/2000","v":0.68589717140264539},{"$f":"(SUMPRODUCT(AN$9:AN$229,Nutrients!$BU$8:$BU$228)+(IF($A$7=Nutrients!$B$8,Nutrients!$BU$8,Nutrients!$BU$9)*AN$7)+(((IF($A$8=Nutrients!$B$79,Nutrients!$BU$79,(IF($A$8=Nutrients!$B$77,Nutrients!$BU$77,Nutrients!$BU$78)))))*AN$8))/2000","v":0.61155486997582809},{"$f":"(SUMPRODUCT(AO$9:AO$229,Nutrients!$BU$8:$BU$228)+(IF($A$7=Nutrients!$B$8,Nutrients!$BU$8,Nutrients!$BU$9)*AO$7)+(((IF($A$8=Nutrients!$B$79,Nutrients!$BU$79,(IF($A$8=Nutrients!$B$77,Nutrients!$BU$77,Nutrients!$BU$78)))))*AO$8))/2000","v":0.56171664327314108},{"$f":"(SUMPRODUCT(AP$9:AP$229,Nutrients!$BU$8:$BU$228)+(IF($A$7=Nutrients!$B$8,Nutrients!$BU$8,Nutrients!$BU$9)*AP$7)+(((IF($A$8=Nutrients!$B$79,Nutrients!$BU$79,(IF($A$8=Nutrients!$B$77,Nutrients!$BU$77,Nutrients!$BU$78)))))*AP$8))/2000","v":0.55679357869744972},null,{"$f":"(SUMPRODUCT(AR$9:AR$229,Nutrients!$BU$8:$BU$228)+(IF($A$7=Nutrients!$B$8,Nutrients!$BU$8,Nutrients!$BU$9)*AR$7)+(((IF($A$8=Nutrients!$B$79,Nutrients!$BU$79,(IF($A$8=Nutrients!$B$77,Nutrients!$BU$77,Nutrients!$BU$78)))))*AR$8))/2000","v":0.87383411080278384},{"$f":"(SUMPRODUCT(AS$9:AS$229,Nutrients!$BU$8:$BU$228)+(IF($A$7=Nutrients!$B$8,Nutrients!$BU$8,Nutrients!$BU$9)*AS$7)+(((IF($A$8=Nutrients!$B$79,Nutrients!$BU$79,(IF($A$8=Nutrients!$B$77,Nutrients!$BU$77,Nutrients!$BU$78)))))*AS$8))/2000","v":0.76802251792159004},{"$f":"(SUMPRODUCT(AT$9:AT$229,Nutrients!$BU$8:$BU$228)+(IF($A$7=Nutrients!$B$8,Nutrients!$BU$8,Nutrients!$BU$9)*AT$7)+(((IF($A$8=Nutrients!$B$79,Nutrients!$BU$79,(IF($A$8=Nutrients!$B$77,Nutrients!$BU$77,Nutrients!$BU$78)))))*AT$8))/2000","v":0.68118924653357427},{"$f":"(SUMPRODUCT(AU$9:AU$229,Nutrients!$BU$8:$BU$228)+(IF($A$7=Nutrients!$B$8,Nutrients!$BU$8,Nutrients!$BU$9)*AU$7)+(((IF($A$8=Nutrients!$B$79,Nutrients!$BU$79,(IF($A$8=Nutrients!$B$77,Nutrients!$BU$77,Nutrients!$BU$78)))))*AU$8))/2000","v":0.60674148174956921},{"$f":"(SUMPRODUCT(AV$9:AV$229,Nutrients!$BU$8:$BU$228)+(IF($A$7=Nutrients!$B$8,Nutrients!$BU$8,Nutrients!$BU$9)*AV$7)+(((IF($A$8=Nutrients!$B$79,Nutrients!$BU$79,(IF($A$8=Nutrients!$B$77,Nutrients!$BU$77,Nutrients!$BU$78)))))*AV$8))/2000","v":0.5572591745138431},{"$f":"(SUMPRODUCT(AW$9:AW$229,Nutrients!$BU$8:$BU$228)+(IF($A$7=Nutrients!$B$8,Nutrients!$BU$8,Nutrients!$BU$9)*AW$7)+(((IF($A$8=Nutrients!$B$79,Nutrients!$BU$79,(IF($A$8=Nutrients!$B$77,Nutrients!$BU$77,Nutrients!$BU$78)))))*AW$8))/2000","v":0.55679357869744972}]
["DCAD",{"$f":"(B306 * 434.98) + (B308* 255.74) - (B307*282.06)","v":220.57763988748351},192.15600461244421,167.90252131513171,147.35122639861532,133.81760738274346,127.13493264786482,null,{"$f":"(I306 * 434.98) + (I308* 255.74) - (I307*282.06)","v":218.30215622980279},190.18895308210637,166.18873960854913,145.79319612814817,132.25131830647524,127.13493264786482,null,{"$f":"(P306 * 434.98) + (P308* 255.74) - (P307*282.06)","v":216.42339540538433},188.49640805191666,164.69555784482515,144.20730985443012,130.82526744824634,127.13493264786482,null,{"$f":"(W306 * 434.98) + (W308* 255.74) - (W307*282.06)","v":214.54422859184734},186.80474384657794,162.91395052259625,142.69375033757657,129.41736601974986,127.13493264786482,null,{"$f":"(AD306 * 434.98) + (AD308* 255.74) - (AD307*282.06)","v":212.64257551017624},184.83012546559399,161.20119090370036,141.17250265390791,127.93892634007112,127.13493264786482,null,{"$f":"(AK306 * 434.98) + (AK308* 255.74) - (AK307*282.06)","v":211.87167213051913},182.93702353174888,159.51679297528835,139.59542887698643,126.44233527657522,127.13493264786482,null,{"$f":"(AR306 * 434.98) + (AR308* 255.74) - (AR307*282.06)","v":209.54362625710365},181.04578311519828,157.88760048698606,138.00475830527469,124.9473310449025,127.13493264786482]
["Phytate P, %",{"$f":"(SUMPRODUCT(B$9:B$229,Nutrients!$EG$8:$EG$228)+(IF($A$7=Nutrients!$B$8,Nutrients!$EG$8,Nutrients!$EG$9)*B$7)+(((IF($A$8=Nutrients!$B$79,Nutrients!$EG$79,(IF($A$8=Nutrients!$B$77,Nutrients!$EG$77,Nutrients!$EG$78)))))*B$8))/2000","v":0.27113524017910468},{"$f":"(SUMPRODUCT(C$9:C$229,Nutrients!$EG$8:$EG$228)+(IF($A$7=Nutrients!$B$8,Nutrients!$EG$8,Nutrients!$EG$9)*C$7)+(((IF($A$8=Nutrients!$B$79,Nutrients!$EG$79,(IF($A$8=Nutrients!$B$77,Nutrients!$EG$77,Nutrients!$EG$78)))))*C$8))/2000","v":0.25613988263521914},{"$f":"(SUMPRODUCT(D$9:D$229,Nutrients!$EG$8:$EG$228)+(IF($A$7=Nutrients!$B$8,Nutrients!$EG$8,Nutrients!$EG$9)*D$7)+(((IF($A$8=Nutrients!$B$79,Nutrients!$EG$79,(IF($A$8=Nutrients!$B$77,Nutrients!$EG$77,Nutrients!$EG$78)))))*D$8))/2000","v":0.24325948567864156},{"$f":"(SUMPRODUCT(E$9:E$229,Nutrients!$EG$8:$EG$228)+(IF($A$7=Nutrients!$B$8,Nutrients!$EG$8,Nutrients!$EG$9)*E$7)+(((IF($A$8=Nutrients!$B$79,Nutrients!$EG$79,(IF($A$8=Nutrients!$B$77,Nutrients!$EG$77,Nutrients!$EG$78)))))*E$8))/2000","v":0.23238392794271739},{"$f":"(SUMPRODUCT(F$9:F$229,Nutrients!$EG$8:$EG$228)+(IF($A$7=Nutrients!$B$8,Nutrients!$EG$8,Nutrients!$EG$9)*F$7)+(((IF($A$8=Nutrients!$B$79,Nutrients!$EG$79,(IF($A$8=Nutrients!$B$77,Nutrients!$EG$77,Nutrients!$EG$78)))))*F$8))/2000","v":0.2252348701473687},{"$f":"(SUMPRODUCT(G$9:G$229,Nutrients!$EG$8:$EG$228)+(IF($A$7=Nutrients!$B$8,Nutrients!$EG$8,Nutrients!$EG$9)*G$7)+(((IF($A$8=Nutrients!$B$79,Nutrients!$EG$79,(IF($A$8=Nutrients!$B$77,Nutrients!$EG$77,Nutrients!$EG$78)))))*G$8))/2000","v":0.2215364317520549},null,{"$f":"(SUMPRODUCT(I$9:I$229,Nutrients!$EG$8:$EG$228)+(IF($A$7=Nutrients!$B$8,Nutrients!$EG$8,Nutrients!$EG$9)*I$7)+(((IF($A$8=Nutrients!$B$79,Nutrients!$EG$79,(IF($A$8=Nutrients!$B$77,Nutrients!$EG$77,Nutrients!$EG$78)))))*I$8))/2000","v":0.26518029998732356},{"$f":"(SUMPRODUCT(J$9:J$229,Nutrients!$EG$8:$EG$228)+(IF($A$7=Nutrients!$B$8,Nutrients!$EG$8,Nutrients!$EG$9)*J$7)+(((IF($A$8=Nutrients!$B$79,Nutrients!$EG$79,(IF($A$8=Nutrients!$B$77,Nutrients!$EG$77,Nutrients!$EG$78)))))*J$8))/2000","v":0.25034851010646142},{"$f":"(SUMPRODUCT(K$9:K$229,Nutrients!$EG$8:$EG$228)+(IF($A$7=Nutrients!$B$8,Nutrients!$EG$8,Nutrients!$EG$9)*K$7)+(((IF($A$8=Nutrients!$B$79,Nutrients!$EG$79,(IF($A$8=Nutrients!$B$77,Nutrients!$EG$77,Nutrients!$EG$78)))))*K$8))/2000","v":0.23760276053012855},{"$f":"(SUMPRODUCT(L$9:L$229,Nutrients!$EG$8:$EG$228)+(IF($A$7=Nutrients!$B$8,Nutrients!$EG$8,Nutrients!$EG$9)*L$7)+(((IF($A$8=Nutrients!$B$79,Nutrients!$EG$79,(IF($A$8=Nutrients!$B$77,Nutrients!$EG$77,Nutrients!$EG$78)))))*L$8))/2000","v":0.2268533191739657},{"$f":"(SUMPRODUCT(M$9:M$229,Nutrients!$EG$8:$EG$228)+(IF($A$7=Nutrients!$B$8,Nutrients!$EG$8,Nutrients!$EG$9)*M$7)+(((IF($A$8=Nutrients!$B$79,Nutrients!$EG$79,(IF($A$8=Nutrients!$B$77,Nutrients!$EG$77,Nutrients!$EG$78)))))*M$8))/2000","v":0.21968649784285443},{"$f":"(SUMPRODUCT(N$9:N$229,Nutrients!$EG$8:$EG$228)+(IF($A$7=Nutrients!$B$8,Nutrients!$EG$8,Nutrients!$EG$9)*N$7)+(((IF($A$8=Nutrients!$B$79,Nutrients!$EG$79,(IF($A$8=Nutrients!$B$77,Nutrients!$EG$77,Nutrients!$EG$78)))))*N$8))/2000","v":0.2215364317520549},null,{"$f":"(SUMPRODUCT(P$9:P$229,Nutrients!$EG$8:$EG$228)+(IF($A$7=Nutrients!$B$8,Nutrients!$EG$8,Nutrients!$EG$9)*P$7)+(((IF($A$8=Nutrients!$B$79,Nutrients!$EG$79,(IF($A$8=Nutrients!$B$77,Nutrients!$EG$77,Nutrients!$EG$78)))))*P$8))/2000","v":0.25943409795621192},{"$f":"(SUMPRODUCT(Q$9:Q$229,Nutrients!$EG$8:$EG$228)+(IF($A$7=Nutrients!$B$8,Nutrients!$EG$8,Nutrients!$EG$9)*Q$7)+(((IF($A$8=Nutrients!$B$79,Nutrients!$EG$79,(IF($A$8=Nutrients!$B$77,Nutrients!$EG$77,Nutrients!$EG$78)))))*Q$8))/2000","v":0.24470229065961019},{"$f":"(SUMPRODUCT(R$9:R$229,Nutrients!$EG$8:$EG$228)+(IF($A$7=Nutrients!$B$8,Nutrients!$EG$8,Nutrients!$EG$9)*R$7)+(((IF($A$8=Nutrients!$B$79,Nutrients!$EG$79,(IF($A$8=Nutrients!$B$77,Nutrients!$EG$77,Nutrients!$EG$78)))))*R$8))/2000","v":0.23206452053002743},{"$f":"(SUMPRODUCT(S$9:S$229,Nutrients!$EG$8:$EG$228)+(IF($A$7=Nutrients!$B$8,Nutrients!$EG$8,Nutrients!$EG$9)*S$7)+(((IF($A$8=Nutrients!$B$79,Nutrients!$EG$79,(IF($A$8=Nutrients!$B$77,Nutrients!$EG$77,Nutrients!$EG$78)))))*S$8))/2000","v":0.2212650263450481},{"$f":"(SUMPRODUCT(T$9:T$229,Nutrients!$EG$8:$EG$228)+(IF($A$7=Nutrients!$B$8,Nutrients!$EG$8,Nutrients!$EG$9)*T$7)+(((IF($A$8=Nutrients!$B$79,Nutrients!$EG$79,(IF($A$8=Nutrients!$B$77,Nutrients!$EG$77,Nutrients!$EG$78)))))*T$8))/2000","v":0.2141719383443349},{"$f":"(SUMPRODUCT(U$9:U$229,Nutrients!$EG$8:$EG$228)+(IF($A$7=Nutrients!$B$8,Nutrients!$EG$8,Nutrients!$EG$9)*U$7)+(((IF($A$8=Nutrients!$B$79,Nutrients!$EG$79,(IF($A$8=Nutrients!$B$77,Nutrients!$EG$77,Nutrients!$EG$78)))))*U$8))/2000","v":0.2215364317520549},null,{"$f":"(SUMPRODUCT(W$9:W$229,Nutrients!$EG$8:$EG$228)+(IF($A$7=Nutrients!$B$8,Nutrients!$EG$8,Nutrients!$EG$9)*W$7)+(((IF($A$8=Nutrients!$B$79,Nutrients!$EG$79,(IF($A$8=Nutrients!$B$77,Nutrients!$EG$77,Nutrients!$EG$78)))))*W$8))/2000","v":0.25369055412329622},{"$f":"(SUMPRODUCT(X$9:X$229,Nutrients!$EG$8:$EG$228)+(IF($A$7=Nutrients!$B$8,Nutrients!$EG$8,Nutrients!$EG$9)*X$7)+(((IF($A$8=Nutrients!$B$79,Nutrients!$EG$79,(IF($A$8=Nutrients!$B$77,Nutrients!$EG$77,Nutrients!$EG$78)))))*X$8))/2000","v":0.23906021679549116},{"$f":"(SUMPRODUCT(Y$9:Y$229,Nutrients!$EG$8:$EG$228)+(IF($A$7=Nutrients!$B$8,Nutrients!$EG$8,Nutrients!$EG$9)*Y$7)+(((IF($A$8=Nutrients!$B$79,Nutrients!$EG$79,(IF($A$8=Nutrients!$B$77,Nutrients!$EG$77,Nutrients!$EG$78)))))*Y$8))/2000","v":0.22637300660373694},{"$f":"(SUMPRODUCT(Z$9:Z$229,Nutrients!$EG$8:$EG$228)+(IF($A$7=Nutrients!$B$8,Nutrients!$EG$8,Nutrients!$EG$9)*Z$7)+(((IF($A$8=Nutrients!$B$79,Nutrients!$EG$79,(IF($A$8=Nutrients!$B$77,Nutrients!$EG$77,Nutrients!$EG$78)))))*Z$8))/2000","v":0.21571503970287803},{"$f":"(SUMPRODUCT(AA$9:AA$229,Nutrients!$EG$8:$EG$228)+(IF($A$7=Nutrients!$B$8,Nutrients!$EG$8,Nutrients!$EG$9)*AA$7)+(((IF($A$8=Nutrients!$B$79,Nutrients!$EG$79,(IF($A$8=Nutrients!$B$77,Nutrients!$EG$77,Nutrients!$EG$78)))))*AA$8))/2000","v":0.20866707708896901},{"$f":"(SUMPRODUCT(AB$9:AB$229,Nutrients!$EG$8:$EG$228)+(IF($A$7=Nutrients!$B$8,Nutrients!$EG$8,Nutrients!$EG$9)*AB$7)+(((IF($A$8=Nutrients!$B$79,Nutrients!$EG$79,(IF($A$8=Nutrients!$B$77,Nutrients!$EG$77,Nutrients!$EG$78)))))*AB$8))/2000","v":0.2215364317520549},null,{"$f":"(SUMPRODUCT(AD$9:AD$229,Nutrients!$EG$8:$EG$228)+(IF($A$7=Nutrients!$B$8,Nutrients!$EG$8,Nutrients!$EG$9)*AD$7)+(((IF($A$8=Nutrients!$B$79,Nutrients!$EG$79,(IF($A$8=Nutrients!$B$77,Nutrients!$EG$77,Nutrients!$EG$78)))))*AD$8))/2000","v":0.24793311353457534},{"$f":"(SUMPRODUCT(AE$9:AE$229,Nutrients!$EG$8:$EG$228)+(IF($A$7=Nutrients!$B$8,Nutrients!$EG$8,Nutrients!$EG$9)*AE$7)+(((IF($A$8=Nutrients!$B$79,Nutrients!$EG$79,(IF($A$8=Nutrients!$B$77,Nutrients!$EG$77,Nutrients!$EG$78)))))*AE$8))/2000","v":0.23326315998482239},{"$f":"(SUMPRODUCT(AF$9:AF$229,Nutrients!$EG$8:$EG$228)+(IF($A$7=Nutrients!$B$8,Nutrients!$EG$8,Nutrients!$EG$9)*AF$7)+(((IF($A$8=Nutrients!$B$79,Nutrients!$EG$79,(IF($A$8=Nutrients!$B$77,Nutrients!$EG$77,Nutrients!$EG$78)))))*AF$8))/2000","v":0.22071852904295519},{"$f":"(SUMPRODUCT(AG$9:AG$229,Nutrients!$EG$8:$EG$228)+(IF($A$7=Nutrients!$B$8,Nutrients!$EG$8,Nutrients!$EG$9)*AG$7)+(((IF($A$8=Nutrients!$B$79,Nutrients!$EG$79,(IF($A$8=Nutrients!$B$77,Nutrients!$EG$77,Nutrients!$EG$78)))))*AG$8))/2000","v":0.21014618488489362},{"$f":"(SUMPRODUCT(AH$9:AH$229,Nutrients!$EG$8:$EG$228)+(IF($A$7=Nutrients!$B$8,Nutrients!$EG$8,Nutrients!$EG$9)*AH$7)+(((IF($A$8=Nutrients!$B$79,Nutrients!$EG$79,(IF($A$8=Nutrients!$B$77,Nutrients!$EG$77,Nutrients!$EG$78)))))*AH$8))/2000","v":0.20300536520580292},{"$f":"(SUMPRODUCT(AI$9:AI$229,Nutrients!$EG$8:$EG$228)+(IF($A$7=Nutrients!$B$8,Nutrients!$EG$8,Nutrients!$EG$9)*AI$7)+(((IF($A$8=Nutrients!$B$79,Nutrients!$EG$79,(IF($A$8=Nutrients!$B$77,Nutrients!$EG$77,Nutrients!$EG$78)))))*AI$8))/2000","v":0.2215364317520549},null,{"$f":"(SUMPRODUCT(AK$9:AK$229,Nutrients!$EG$8:$EG$228)+(IF($A$7=Nutrients!$B$8,Nutrients!$EG$8,Nutrients!$EG$9)*AK$7)+(((IF($A$8=Nutrients!$B$79,Nutrients!$EG$79,(IF($A$8=Nutrients!$B$77,Nutrients!$EG$77,Nutrients!$EG$78)))))*AK$8))/2000","v":0.24278719001269883},{"$f":"(SUMPRODUCT(AL$9:AL$229,Nutrients!$EG$8:$EG$228)+(IF($A$7=Nutrients!$B$8,Nutrients!$EG$8,Nutrients!$EG$9)*AL$7)+(((IF($A$8=Nutrients!$B$79,Nutrients!$EG$79,(IF($A$8=Nutrients!$B$77,Nutrients!$EG$77,Nutrients!$EG$78)))))*AL$8))/2000","v":0.22751207494361927},{"$f":"(SUMPRODUCT(AM$9:AM$229,Nutrients!$EG$8:$EG$228)+(IF($A$7=Nutrients!$B$8,Nutrients!$EG$8,Nutrients!$EG$9)*AM$7)+(((IF($A$8=Nutrients!$B$79,Nutrients!$EG$79,(IF($A$8=Nutrients!$B$77,Nutrients!$EG$77,Nutrients!$EG$78)))))*AM$8))/2000","v":0.2150640373825064},{"$f":"(SUMPRODUCT(AN$9:AN$229,Nutrients!$EG$8:$EG$228)+(IF($A$7=Nutrients!$B$8,Nutrients!$EG$8,Nutrients!$EG$9)*AN$7)+(((IF($A$8=Nutrients!$B$79,Nutrients!$EG$79,(IF($A$8=Nutrients!$B$77,Nutrients!$EG$77,Nutrients!$EG$78)))))*AN$8))/2000","v":0.20445985222145546},{"$f":"(SUMPRODUCT(AO$9:AO$229,Nutrients!$EG$8:$EG$228)+(IF($A$7=Nutrients!$B$8,Nutrients!$EG$8,Nutrients!$EG$9)*AO$7)+(((IF($A$8=Nutrients!$B$79,Nutrients!$EG$79,(IF($A$8=Nutrients!$B$77,Nutrients!$EG$77,Nutrients!$EG$78)))))*AO$8))/2000","v":0.19727549122792276},{"$f":"(SUMPRODUCT(AP$9:AP$229,Nutrients!$EG$8:$EG$228)+(IF($A$7=Nutrients!$B$8,Nutrients!$EG$8,Nutrients!$EG$9)*AP$7)+(((IF($A$8=Nutrients!$B$79,Nutrients!$EG$79,(IF($A$8=Nutrients!$B$77,Nutrients!$EG$77,Nutrients!$EG$78)))))*AP$8))/2000","v":0.2215364317520549},null,{"$f":"(SUMPRODUCT(AR$9:AR$229,Nutrients!$EG$8:$EG$228)+(IF($A$7=Nutrients!$B$8,Nutrients!$EG$8,Nutrients!$EG$9)*AR$7)+(((IF($A$8=Nutrients!$B$79,Nutrients!$EG$79,(IF($A$8=Nutrients!$B$77,Nutrients!$EG$77,Nutrients!$EG$78)))))*AR$8))/2000","v":0.23680036067727533},{"$f":"(SUMPRODUCT(AS$9:AS$229,Nutrients!$EG$8:$EG$228)+(IF($A$7=Nutrients!$B$8,Nutrients!$EG$8,Nutrients!$EG$9)*AS$7)+(((IF($A$8=Nutrients!$B$79,Nutrients!$EG$79,(IF($A$8=Nutrients!$B$77,Nutrients!$EG$77,Nutrients!$EG$78)))))*AS$8))/2000","v":0.22176027332429543},{"$f":"(SUMPRODUCT(AT$9:AT$229,Nutrients!$EG$8:$EG$228)+(IF($A$7=Nutrients!$B$8,Nutrients!$EG$8,Nutrients!$EG$9)*AT$7)+(((IF($A$8=Nutrients!$B$79,Nutrients!$EG$79,(IF($A$8=Nutrients!$B$77,Nutrients!$EG$77,Nutrients!$EG$78)))))*AT$8))/2000","v":0.20943715681409306},{"$f":"(SUMPRODUCT(AU$9:AU$229,Nutrients!$EG$8:$EG$228)+(IF($A$7=Nutrients!$B$8,Nutrients!$EG$8,Nutrients!$EG$9)*AU$7)+(((IF($A$8=Nutrients!$B$79,Nutrients!$EG$79,(IF($A$8=Nutrients!$B$77,Nutrients!$EG$77,Nutrients!$EG$78)))))*AU$8))/2000","v":0.19867810441518011},{"$f":"(SUMPRODUCT(AV$9:AV$229,Nutrients!$EG$8:$EG$228)+(IF($A$7=Nutrients!$B$8,Nutrients!$EG$8,Nutrients!$EG$9)*AV$7)+(((IF($A$8=Nutrients!$B$79,Nutrients!$EG$79,(IF($A$8=Nutrients!$B$77,Nutrients!$EG$77,Nutrients!$EG$78)))))*AV$8))/2000","v":0.19154709680957813},{"$f":"(SUMPRODUCT(AW$9:AW$229,Nutrients!$EG$8:$EG$228)+(IF($A$7=Nutrients!$B$8,Nutrients!$EG$8,Nutrients!$EG$9)*AW$7)+(((IF($A$8=Nutrients!$B$79,Nutrients!$EG$79,(IF($A$8=Nutrients!$B$77,Nutrients!$EG$77,Nutrients!$EG$78)))))*AW$8))/2000","v":0.2215364317520549}]
["Total P - Avail P, %",{"$f":"B255-B256","v":0.31730463701690137},0.29999736257979814,0.2851440661893474,0.27259764867356195,0.26435033325189533,0.26008169818001309,null,{"$f":"I255-I256","v":0.33383708454138628},0.31671885376179243,0.30202102498476391,0.28961942109569244,0.28135190264196031,0.26008169818001309,null,{"$f":"P255-P256","v":0.35061075584456458},0.33360785099784052,0.319034732038739,0.30657536044761091,0.2983925563990048,0.26008169818001309,null,{"$f":"W255-W256","v":0.3673872379252251},0.35050142217463737,0.33587123048091666,0.32357506784429207,0.31544398223254499,0.26008169818001309,null,{"$f":"AD255-AD256","v":0.38414783820682069},0.36721631974850044,0.35275071534349939,0.34055288634890857,0.33231544646809535,0.26008169818001309,null,{"$f":"AK255-AK256","v":0.40161412168642541},0.38398409981345505,0.36962947837746013,0.35739567874583955,0.34910850196444831,0.26008169818001309,null,{"$f":"AR255-AR256","v":0.41810990244800006},0.40075120670695219,0.38654030451451005,0.37412896125264017,0.36590328409880318,0.26008169818001309]
["Phytate P released, %",{"$f":"B257-B256","v":0.11261444047083269},0.11261444047083266,0.11261444047083266,0.11261444047083269,0.11261444047083269,0.11261444047083269,null,{"$f":"I257-I256","v":0.11261444047083266},0.11261444047083272,0.11261444047083266,0.1126144404708327,0.1126144404708327,0.11261444047083269,null,{"$f":"P257-P256","v":0.11261444047083269},0.11261444047083266,0.1126144404708327,0.11261444047083269,0.11261444047083269,0.11261444047083269,null,{"$f":"W257-W256","v":0.11261444047083272},0.11261444047083266,0.11261444047083267,0.1126144404708327,0.11261444047083269,0.11261444047083269,null,{"$f":"AD257-AD256","v":0.11261444047083263},0.1126144404708327,0.11261444047083267,0.11261444047083269,0.11261444047083269,0.11261444047083269,null,{"$f":"AK257-AK256","v":0.11261444047083266},0.1126144404708327,0.1126144404708327,0.11261444047083269,0.11261444047083269,0.11261444047083269,null,{"$f":"AR257-AR256","v":0.1126144404708327},0.11261444047083269,0.11261444047083269,0.11261444047083269,0.11261444047083269,0.11261444047083269]
["Percent of total phytate phos released, %",{"$f":"B312/B310","v":0.41534416697896814},0.4396599206348985,0.46293956495329519,0.48460511648891713,0.49998670453269645,0.50833372904042951,null,{"$f":"I312/I310","v":0.42467121606022762},0.44983067973100022,0.47396099363312283,0.4964196286873489,0.51261430072679193,0.50833372904042951,null,{"$f":"P312/P310","v":0.43407725259707419},0.46020999708369487,0.48527211403804926,0.50895725515707102,0.52581323837942229,0.50833372904042951,null,{"$f":"W312/W310","v":0.44390474395077767},0.47107143957445219,0.4974729194102317,0.52205187281306753,0.53968475545769723,0.50833372904042951,null,{"$f":"AD312/AD310","v":0.45421298859753989},0.48277850852299237,0.51021742922596314,0.53588620003982756,0.55473627683025195,0.50833372904042951,null,{"$f":"AK312/AK310","v":0.46384012461671653},0.49498225752958458,0.52363213227760652,0.55078999249621508,0.57084861261718156,0.50833372904042951,null,{"$f":"AR312/AR310","v":0.47556701412423064},0.50782062441882359,0.53770038795358044,0.56681857722731688,0.58792037230815142,0.50833372904042951]
["Phytase units, FTU/kg",{"$f":"((SUMPRODUCT(B$9:B$229,Nutrients!$EE$8:$EE$228)+(IF($A$7=Nutrients!$B$8,Nutrients!$EE$8,Nutrients!$EE$9)*B$7)+(((IF($A$8=Nutrients!$B$79,Nutrients!$EE$79,(IF($A$8=Nutrients!$B$77,Nutrients!$EE$77,Nutrients!$EE$78)))))*B$8))/2000)*2.2046","v":608.03970300000003},{"$f":"((SUMPRODUCT(C$9:C$229,Nutrients!$EE$8:$EE$228)+(IF($A$7=Nutrients!$B$8,Nutrients!$EE$8,Nutrients!$EE$9)*C$7)+(((IF($A$8=Nutrients!$B$79,Nutrients!$EE$79,(IF($A$8=Nutrients!$B$77,Nutrients!$EE$77,Nutrients!$EE$78)))))*C$8))/2000)*2.2046","v":608.03970300000003},{"$f":"((SUMPRODUCT(D$9:D$229,Nutrients!$EE$8:$EE$228)+(IF($A$7=Nutrients!$B$8,Nutrients!$EE$8,Nutrients!$EE$9)*D$7)+(((IF($A$8=Nutrients!$B$79,Nutrients!$EE$79,(IF($A$8=Nutrients!$B$77,Nutrients!$EE$77,Nutrients!$EE$78)))))*D$8))/2000)*2.2046","v":608.03970300000003},{"$f":"((SUMPRODUCT(E$9:E$229,Nutrients!$EE$8:$EE$228)+(IF($A$7=Nutrients!$B$8,Nutrients!$EE$8,Nutrients!$EE$9)*E$7)+(((IF($A$8=Nutrients!$B$79,Nutrients!$EE$79,(IF($A$8=Nutrients!$B$77,Nutrients!$EE$77,Nutrients!$EE$78)))))*E$8))/2000)*2.2046","v":608.03970300000003},{"$f":"((SUMPRODUCT(F$9:F$229,Nutrients!$EE$8:$EE$228)+(IF($A$7=Nutrients!$B$8,Nutrients!$EE$8,Nutrients!$EE$9)*F$7)+(((IF($A$8=Nutrients!$B$79,Nutrients!$EE$79,(IF($A$8=Nutrients!$B$77,Nutrients!$EE$77,Nutrients!$EE$78)))))*F$8))/2000)*2.2046","v":608.03970300000003},{"$f":"((SUMPRODUCT(G$9:G$229,Nutrients!$EE$8:$EE$228)+(IF($A$7=Nutrients!$B$8,Nutrients!$EE$8,Nutrients!$EE$9)*G$7)+(((IF($A$8=Nutrients!$B$79,Nutrients!$EE$79,(IF($A$8=Nutrients!$B$77,Nutrients!$EE$77,Nutrients!$EE$78)))))*G$8))/2000)*2.2046","v":608.03970300000003},null,{"$f":"((SUMPRODUCT(I$9:I$229,Nutrients!$EE$8:$EE$228)+(IF($A$7=Nutrients!$B$8,Nutrients!$EE$8,Nutrients!$EE$9)*I$7)+(((IF($A$8=Nutrients!$B$79,Nutrients!$EE$79,(IF($A$8=Nutrients!$B$77,Nutrients!$EE$77,Nutrients!$EE$78)))))*I$8))/2000)*2.2046","v":608.03970300000003},{"$f":"((SUMPRODUCT(J$9:J$229,Nutrients!$EE$8:$EE$228)+(IF($A$7=Nutrients!$B$8,Nutrients!$EE$8,Nutrients!$EE$9)*J$7)+(((IF($A$8=Nutrients!$B$79,Nutrients!$EE$79,(IF($A$8=Nutrients!$B$77,Nutrients!$EE$77,Nutrients!$EE$78)))))*J$8))/2000)*2.2046","v":608.03970300000003},{"$f":"((SUMPRODUCT(K$9:K$229,Nutrients!$EE$8:$EE$228)+(IF($A$7=Nutrients!$B$8,Nutrients!$EE$8,Nutrients!$EE$9)*K$7)+(((IF($A$8=Nutrients!$B$79,Nutrients!$EE$79,(IF($A$8=Nutrients!$B$77,Nutrients!$EE$77,Nutrients!$EE$78)))))*K$8))/2000)*2.2046","v":608.03970300000003},{"$f":"((SUMPRODUCT(L$9:L$229,Nutrients!$EE$8:$EE$228)+(IF($A$7=Nutrients!$B$8,Nutrients!$EE$8,Nutrients!$EE$9)*L$7)+(((IF($A$8=Nutrients!$B$79,Nutrients!$EE$79,(IF($A$8=Nutrients!$B$77,Nutrients!$EE$77,Nutrients!$EE$78)))))*L$8))/2000)*2.2046","v":608.03970300000003},{"$f":"((SUMPRODUCT(M$9:M$229,Nutrients!$EE$8:$EE$228)+(IF($A$7=Nutrients!$B$8,Nutrients!$EE$8,Nutrients!$EE$9)*M$7)+(((IF($A$8=Nutrients!$B$79,Nutrients!$EE$79,(IF($A$8=Nutrients!$B$77,Nutrients!$EE$77,Nutrients!$EE$78)))))*M$8))/2000)*2.2046","v":608.03970300000003},{"$f":"((SUMPRODUCT(N$9:N$229,Nutrients!$EE$8:$EE$228)+(IF($A$7=Nutrients!$B$8,Nutrients!$EE$8,Nutrients!$EE$9)*N$7)+(((IF($A$8=Nutrients!$B$79,Nutrients!$EE$79,(IF($A$8=Nutrients!$B$77,Nutrients!$EE$77,Nutrients!$EE$78)))))*N$8))/2000)*2.2046","v":608.03970300000003},null,{"$f":"((SUMPRODUCT(P$9:P$229,Nutrients!$EE$8:$EE$228)+(IF($A$7=Nutrients!$B$8,Nutrients!$EE$8,Nutrients!$EE$9)*P$7)+(((IF($A$8=Nutrients!$B$79,Nutrients!$EE$79,(IF($A$8=Nutrients!$B$77,Nutrients!$EE$77,Nutrients!$EE$78)))))*P$8))/2000)*2.2046","v":608.03970300000003},{"$f":"((SUMPRODUCT(Q$9:Q$229,Nutrients!$EE$8:$EE$228)+(IF($A$7=Nutrients!$B$8,Nutrients!$EE$8,Nutrients!$EE$9)*Q$7)+(((IF($A$8=Nutrients!$B$79,Nutrients!$EE$79,(IF($A$8=Nutrients!$B$77,Nutrients!$EE$77,Nutrients!$EE$78)))))*Q$8))/2000)*2.2046","v":608.03970300000003},{"$f":"((SUMPRODUCT(R$9:R$229,Nutrients!$EE$8:$EE$228)+(IF($A$7=Nutrients!$B$8,Nutrients!$EE$8,Nutrients!$EE$9)*R$7)+(((IF($A$8=Nutrients!$B$79,Nutrients!$EE$79,(IF($A$8=Nutrients!$B$77,Nutrients!$EE$77,Nutrients!$EE$78)))))*R$8))/2000)*2.2046","v":608.03970300000003},{"$f":"((SUMPRODUCT(S$9:S$229,Nutrients!$EE$8:$EE$228)+(IF($A$7=Nutrients!$B$8,Nutrients!$EE$8,Nutrients!$EE$9)*S$7)+(((IF($A$8=Nutrients!$B$79,Nutrients!$EE$79,(IF($A$8=Nutrients!$B$77,Nutrients!$EE$77,Nutrients!$EE$78)))))*S$8))/2000)*2.2046","v":608.03970300000003},{"$f":"((SUMPRODUCT(T$9:T$229,Nutrients!$EE$8:$EE$228)+(IF($A$7=Nutrients!$B$8,Nutrients!$EE$8,Nutrients!$EE$9)*T$7)+(((IF($A$8=Nutrients!$B$79,Nutrients!$EE$79,(IF($A$8=Nutrients!$B$77,Nutrients!$EE$77,Nutrients!$EE$78)))))*T$8))/2000)*2.2046","v":608.03970300000003},{"$f":"((SUMPRODUCT(U$9:U$229,Nutrients!$EE$8:$EE$228)+(IF($A$7=Nutrients!$B$8,Nutrients!$EE$8,Nutrients!$EE$9)*U$7)+(((IF($A$8=Nutrients!$B$79,Nutrients!$EE$79,(IF($A$8=Nutrients!$B$77,Nutrients!$EE$77,Nutrients!$EE$78)))))*U$8))/2000)*2.2046","v":608.03970300000003},null,{"$f":"((SUMPRODUCT(W$9:W$229,Nutrients!$EE$8:$EE$228)+(IF($A$7=Nutrients!$B$8,Nutrients!$EE$8,Nutrients!$EE$9)*W$7)+(((IF($A$8=Nutrients!$B$79,Nutrients!$EE$79,(IF($A$8=Nutrients!$B$77,Nutrients!$EE$77,Nutrients!$EE$78)))))*W$8))/2000)*2.2046","v":608.03970300000003},{"$f":"((SUMPRODUCT(X$9:X$229,Nutrients!$EE$8:$EE$228)+(IF($A$7=Nutrients!$B$8,Nutrients!$EE$8,Nutrients!$EE$9)*X$7)+(((IF($A$8=Nutrients!$B$79,Nutrients!$EE$79,(IF($A$8=Nutrients!$B$77,Nutrients!$EE$77,Nutrients!$EE$78)))))*X$8))/2000)*2.2046","v":608.03970300000003},{"$f":"((SUMPRODUCT(Y$9:Y$229,Nutrients!$EE$8:$EE$228)+(IF($A$7=Nutrients!$B$8,Nutrients!$EE$8,Nutrients!$EE$9)*Y$7)+(((IF($A$8=Nutrients!$B$79,Nutrients!$EE$79,(IF($A$8=Nutrients!$B$77,Nutrients!$EE$77,Nutrients!$EE$78)))))*Y$8))/2000)*2.2046","v":608.03970300000003},{"$f":"((SUMPRODUCT(Z$9:Z$229,Nutrients!$EE$8:$EE$228)+(IF($A$7=Nutrients!$B$8,Nutrients!$EE$8,Nutrients!$EE$9)*Z$7)+(((IF($A$8=Nutrients!$B$79,Nutrients!$EE$79,(IF($A$8=Nutrients!$B$77,Nutrients!$EE$77,Nutrients!$EE$78)))))*Z$8))/2000)*2.2046","v":608.03970300000003},{"$f":"((SUMPRODUCT(AA$9:AA$229,Nutrients!$EE$8:$EE$228)+(IF($A$7=Nutrients!$B$8,Nutrients!$EE$8,Nutrients!$EE$9)*AA$7)+(((IF($A$8=Nutrients!$B$79,Nutrients!$EE$79,(IF($A$8=Nutrients!$B$77,Nutrients!$EE$77,Nutrients!$EE$78)))))*AA$8))/2000)*2.2046","v":608.03970300000003},{"$f":"((SUMPRODUCT(AB$9:AB$229,Nutrients!$EE$8:$EE$228)+(IF($A$7=Nutrients!$B$8,Nutrients!$EE$8,Nutrients!$EE$9)*AB$7)+(((IF($A$8=Nutrients!$B$79,Nutrients!$EE$79,(IF($A$8=Nutrients!$B$77,Nutrients!$EE$77,Nutrients!$EE$78)))))*AB$8))/2000)*2.2046","v":608.03970300000003},null,{"$f":"((SUMPRODUCT(AD$9:AD$229,Nutrients!$EE$8:$EE$228)+(IF($A$7=Nutrients!$B$8,Nutrients!$EE$8,Nutrients!$EE$9)*AD$7)+(((IF($A$8=Nutrients!$B$79,Nutrients!$EE$79,(IF($A$8=Nutrients!$B$77,Nutrients!$EE$77,Nutrients!$EE$78)))))*AD$8))/2000)*2.2046","v":608.03970300000003},{"$f":"((SUMPRODUCT(AE$9:AE$229,Nutrients!$EE$8:$EE$228)+(IF($A$7=Nutrients!$B$8,Nutrients!$EE$8,Nutrients!$EE$9)*AE$7)+(((IF($A$8=Nutrients!$B$79,Nutrients!$EE$79,(IF($A$8=Nutrients!$B$77,Nutrients!$EE$77,Nutrients!$EE$78)))))*AE$8))/2000)*2.2046","v":608.03970300000003},{"$f":"((SUMPRODUCT(AF$9:AF$229,Nutrients!$EE$8:$EE$228)+(IF($A$7=Nutrients!$B$8,Nutrients!$EE$8,Nutrients!$EE$9)*AF$7)+(((IF($A$8=Nutrients!$B$79,Nutrients!$EE$79,(IF($A$8=Nutrients!$B$77,Nutrients!$EE$77,Nutrients!$EE$78)))))*AF$8))/2000)*2.2046","v":608.03970300000003},{"$f":"((SUMPRODUCT(AG$9:AG$229,Nutrients!$EE$8:$EE$228)+(IF($A$7=Nutrients!$B$8,Nutrients!$EE$8,Nutrients!$EE$9)*AG$7)+(((IF($A$8=Nutrients!$B$79,Nutrients!$EE$79,(IF($A$8=Nutrients!$B$77,Nutrients!$EE$77,Nutrients!$EE$78)))))*AG$8))/2000)*2.2046","v":608.03970300000003},{"$f":"((SUMPRODUCT(AH$9:AH$229,Nutrients!$EE$8:$EE$228)+(IF($A$7=Nutrients!$B$8,Nutrients!$EE$8,Nutrients!$EE$9)*AH$7)+(((IF($A$8=Nutrients!$B$79,Nutrients!$EE$79,(IF($A$8=Nutrients!$B$77,Nutrients!$EE$77,Nutrients!$EE$78)))))*AH$8))/2000)*2.2046","v":608.03970300000003},{"$f":"((SUMPRODUCT(AI$9:AI$229,Nutrients!$EE$8:$EE$228)+(IF($A$7=Nutrients!$B$8,Nutrients!$EE$8,Nutrients!$EE$9)*AI$7)+(((IF($A$8=Nutrients!$B$79,Nutrients!$EE$79,(IF($A$8=Nutrients!$B$77,Nutrients!$EE$77,Nutrients!$EE$78)))))*AI$8))/2000)*2.2046","v":608.03970300000003},null,{"$f":"((SUMPRODUCT(AK$9:AK$229,Nutrients!$EE$8:$EE$228)+(IF($A$7=Nutrients!$B$8,Nutrients!$EE$8,Nutrients!$EE$9)*AK$7)+(((IF($A$8=Nutrients!$B$79,Nutrients!$EE$79,(IF($A$8=Nutrients!$B$77,Nutrients!$EE$77,Nutrients!$EE$78)))))*AK$8))/2000)*2.2046","v":608.03970300000003},{"$f":"((SUMPRODUCT(AL$9:AL$229,Nutrients!$EE$8:$EE$228)+(IF($A$7=Nutrients!$B$8,Nutrients!$EE$8,Nutrients!$EE$9)*AL$7)+(((IF($A$8=Nutrients!$B$79,Nutrients!$EE$79,(IF($A$8=Nutrients!$B$77,Nutrients!$EE$77,Nutrients!$EE$78)))))*AL$8))/2000)*2.2046","v":608.03970300000003},{"$f":"((SUMPRODUCT(AM$9:AM$229,Nutrients!$EE$8:$EE$228)+(IF($A$7=Nutrients!$B$8,Nutrients!$EE$8,Nutrients!$EE$9)*AM$7)+(((IF($A$8=Nutrients!$B$79,Nutrients!$EE$79,(IF($A$8=Nutrients!$B$77,Nutrients!$EE$77,Nutrients!$EE$78)))))*AM$8))/2000)*2.2046","v":608.03970300000003},{"$f":"((SUMPRODUCT(AN$9:AN$229,Nutrients!$EE$8:$EE$228)+(IF($A$7=Nutrients!$B$8,Nutrients!$EE$8,Nutrients!$EE$9)*AN$7)+(((IF($A$8=Nutrients!$B$79,Nutrients!$EE$79,(IF($A$8=Nutrients!$B$77,Nutrients!$EE$77,Nutrients!$EE$78)))))*AN$8))/2000)*2.2046","v":608.03970300000003},{"$f":"((SUMPRODUCT(AO$9:AO$229,Nutrients!$EE$8:$EE$228)+(IF($A$7=Nutrients!$B$8,Nutrients!$EE$8,Nutrients!$EE$9)*AO$7)+(((IF($A$8=Nutrients!$B$79,Nutrients!$EE$79,(IF($A$8=Nutrients!$B$77,Nutrients!$EE$77,Nutrients!$EE$78)))))*AO$8))/2000)*2.2046","v":608.03970300000003},{"$f":"((SUMPRODUCT(AP$9:AP$229,Nutrients!$EE$8:$EE$228)+(IF($A$7=Nutrients!$B$8,Nutrients!$EE$8,Nutrients!$EE$9)*AP$7)+(((IF($A$8=Nutrients!$B$79,Nutrients!$EE$79,(IF($A$8=Nutrients!$B$77,Nutrients!$EE$77,Nutrients!$EE$78)))))*AP$8))/2000)*2.2046","v":608.03970300000003},null,{"$f":"((SUMPRODUCT(AR$9:AR$229,Nutrients!$EE$8:$EE$228)+(IF($A$7=Nutrients!$B$8,Nutrients!$EE$8,Nutrients!$EE$9)*AR$7)+(((IF($A$8=Nutrients!$B$79,Nutrients!$EE$79,(IF($A$8=Nutrients!$B$77,Nutrients!$EE$77,Nutrients!$EE$78)))))*AR$8))/2000)*2.2046","v":608.03970300000003},{"$f":"((SUMPRODUCT(AS$9:AS$229,Nutrients!$EE$8:$EE$228)+(IF($A$7=Nutrients!$B$8,Nutrients!$EE$8,Nutrients!$EE$9)*AS$7)+(((IF($A$8=Nutrients!$B$79,Nutrients!$EE$79,(IF($A$8=Nutrients!$B$77,Nutrients!$EE$77,Nutrients!$EE$78)))))*AS$8))/2000)*2.2046","v":608.03970300000003},{"$f":"((SUMPRODUCT(AT$9:AT$229,Nutrients!$EE$8:$EE$228)+(IF($A$7=Nutrients!$B$8,Nutrients!$EE$8,Nutrients!$EE$9)*AT$7)+(((IF($A$8=Nutrients!$B$79,Nutrients!$EE$79,(IF($A$8=Nutrients!$B$77,Nutrients!$EE$77,Nutrients!$EE$78)))))*AT$8))/2000)*2.2046","v":608.03970300000003},{"$f":"((SUMPRODUCT(AU$9:AU$229,Nutrients!$EE$8:$EE$228)+(IF($A$7=Nutrients!$B$8,Nutrients!$EE$8,Nutrients!$EE$9)*AU$7)+(((IF($A$8=Nutrients!$B$79,Nutrients!$EE$79,(IF($A$8=Nutrients!$B$77,Nutrients!$EE$77,Nutrients!$EE$78)))))*AU$8))/2000)*2.2046","v":608.03970300000003},{"$f":"((SUMPRODUCT(AV$9:AV$229,Nutrients!$EE$8:$EE$228)+(IF($A$7=Nutrients!$B$8,Nutrients!$EE$8,Nutrients!$EE$9)*AV$7)+(((IF($A$8=Nutrients!$B$79,Nutrients!$EE$79,(IF($A$8=Nutrients!$B$77,Nutrients!$EE$77,Nutrients!$EE$78)))))*AV$8))/2000)*2.2046","v":608.03970300000003},{"$f":"((SUMPRODUCT(AW$9:AW$229,Nutrients!$EE$8:$EE$228)+(IF($A$7=Nutrients!$B$8,Nutrients!$EE$8,Nutrients!$EE$9)*AW$7)+(((IF($A$8=Nutrients!$B$79,Nutrients!$EE$79,(IF($A$8=Nutrients!$B$77,Nutrients!$EE$77,Nutrients!$EE$78)))))*AW$8))/2000)*2.2046","v":608.03970300000003}]
["EFA, %",{"$f":"((SUMPRODUCT(B$9:B$229,Nutrients!$FK$8:$FK$228)+(IF($A$7=Nutrients!$B$8,Nutrients!$FK$8,Nutrients!$FK$9)*B$7)+(((IF($A$8=Nutrients!$B$79,Nutrients!$FK$79,(IF($A$8=Nutrients!$B$77,Nutrients!$FK$77,Nutrients!$FK$78)))))*B$8))/2000)","v":1.5203643016438457},{"$f":"((SUMPRODUCT(C$9:C$229,Nutrients!$FK$8:$FK$228)+(IF($A$7=Nutrients!$B$8,Nutrients!$FK$8,Nutrients!$FK$9)*C$7)+(((IF($A$8=Nutrients!$B$79,Nutrients!$FK$79,(IF($A$8=Nutrients!$B$77,Nutrients!$FK$77,Nutrients!$FK$78)))))*C$8))/2000)","v":1.5749887728173662},{"$f":"((SUMPRODUCT(D$9:D$229,Nutrients!$FK$8:$FK$228)+(IF($A$7=Nutrients!$B$8,Nutrients!$FK$8,Nutrients!$FK$9)*D$7)+(((IF($A$8=Nutrients!$B$79,Nutrients!$FK$79,(IF($A$8=Nutrients!$B$77,Nutrients!$FK$77,Nutrients!$FK$78)))))*D$8))/2000)","v":1.622538447302484},{"$f":"((SUMPRODUCT(E$9:E$229,Nutrients!$FK$8:$FK$228)+(IF($A$7=Nutrients!$B$8,Nutrients!$FK$8,Nutrients!$FK$9)*E$7)+(((IF($A$8=Nutrients!$B$79,Nutrients!$FK$79,(IF($A$8=Nutrients!$B$77,Nutrients!$FK$77,Nutrients!$FK$78)))))*E$8))/2000)","v":1.6623836434171375},{"$f":"((SUMPRODUCT(F$9:F$229,Nutrients!$FK$8:$FK$228)+(IF($A$7=Nutrients!$B$8,Nutrients!$FK$8,Nutrients!$FK$9)*F$7)+(((IF($A$8=Nutrients!$B$79,Nutrients!$FK$79,(IF($A$8=Nutrients!$B$77,Nutrients!$FK$77,Nutrients!$FK$78)))))*F$8))/2000)","v":1.689982464517773},{"$f":"((SUMPRODUCT(G$9:G$229,Nutrients!$FK$8:$FK$228)+(IF($A$7=Nutrients!$B$8,Nutrients!$FK$8,Nutrients!$FK$9)*G$7)+(((IF($A$8=Nutrients!$B$79,Nutrients!$FK$79,(IF($A$8=Nutrients!$B$77,Nutrients!$FK$77,Nutrients!$FK$78)))))*G$8))/2000)","v":1.7033272639768986},null,{"$f":"((SUMPRODUCT(I$9:I$229,Nutrients!$FK$8:$FK$228)+(IF($A$7=Nutrients!$B$8,Nutrients!$FK$8,Nutrients!$FK$9)*I$7)+(((IF($A$8=Nutrients!$B$79,Nutrients!$FK$79,(IF($A$8=Nutrients!$B$77,Nutrients!$FK$77,Nutrients!$FK$78)))))*I$8))/2000)","v":1.4455998828026497},{"$f":"((SUMPRODUCT(J$9:J$229,Nutrients!$FK$8:$FK$228)+(IF($A$7=Nutrients!$B$8,Nutrients!$FK$8,Nutrients!$FK$9)*J$7)+(((IF($A$8=Nutrients!$B$79,Nutrients!$FK$79,(IF($A$8=Nutrients!$B$77,Nutrients!$FK$77,Nutrients!$FK$78)))))*J$8))/2000)","v":1.4996479275771843},{"$f":"((SUMPRODUCT(K$9:K$229,Nutrients!$FK$8:$FK$228)+(IF($A$7=Nutrients!$B$8,Nutrients!$FK$8,Nutrients!$FK$9)*K$7)+(((IF($A$8=Nutrients!$B$79,Nutrients!$FK$79,(IF($A$8=Nutrients!$B$77,Nutrients!$FK$77,Nutrients!$FK$78)))))*K$8))/2000)","v":1.5467252828183879},{"$f":"((SUMPRODUCT(L$9:L$229,Nutrients!$FK$8:$FK$228)+(IF($A$7=Nutrients!$B$8,Nutrients!$FK$8,Nutrients!$FK$9)*L$7)+(((IF($A$8=Nutrients!$B$79,Nutrients!$FK$79,(IF($A$8=Nutrients!$B$77,Nutrients!$FK$77,Nutrients!$FK$78)))))*L$8))/2000)","v":1.5866748853329937},{"$f":"((SUMPRODUCT(M$9:M$229,Nutrients!$FK$8:$FK$228)+(IF($A$7=Nutrients!$B$8,Nutrients!$FK$8,Nutrients!$FK$9)*M$7)+(((IF($A$8=Nutrients!$B$79,Nutrients!$FK$79,(IF($A$8=Nutrients!$B$77,Nutrients!$FK$77,Nutrients!$FK$78)))))*M$8))/2000)","v":1.6141665518130097},{"$f":"((SUMPRODUCT(N$9:N$229,Nutrients!$FK$8:$FK$228)+(IF($A$7=Nutrients!$B$8,Nutrients!$FK$8,Nutrients!$FK$9)*N$7)+(((IF($A$8=Nutrients!$B$79,Nutrients!$FK$79,(IF($A$8=Nutrients!$B$77,Nutrients!$FK$77,Nutrients!$FK$78)))))*N$8))/2000)","v":1.7033272639768986},null,{"$f":"((SUMPRODUCT(P$9:P$229,Nutrients!$FK$8:$FK$228)+(IF($A$7=Nutrients!$B$8,Nutrients!$FK$8,Nutrients!$FK$9)*P$7)+(((IF($A$8=Nutrients!$B$79,Nutrients!$FK$79,(IF($A$8=Nutrients!$B$77,Nutrients!$FK$77,Nutrients!$FK$78)))))*P$8))/2000)","v":1.3700723555740364},{"$f":"((SUMPRODUCT(Q$9:Q$229,Nutrients!$FK$8:$FK$228)+(IF($A$7=Nutrients!$B$8,Nutrients!$FK$8,Nutrients!$FK$9)*Q$7)+(((IF($A$8=Nutrients!$B$79,Nutrients!$FK$79,(IF($A$8=Nutrients!$B$77,Nutrients!$FK$77,Nutrients!$FK$78)))))*Q$8))/2000)","v":1.4237831775572127},{"$f":"((SUMPRODUCT(R$9:R$229,Nutrients!$FK$8:$FK$228)+(IF($A$7=Nutrients!$B$8,Nutrients!$FK$8,Nutrients!$FK$9)*R$7)+(((IF($A$8=Nutrients!$B$79,Nutrients!$FK$79,(IF($A$8=Nutrients!$B$77,Nutrients!$FK$77,Nutrients!$FK$78)))))*R$8))/2000)","v":1.4705148764390779},{"$f":"((SUMPRODUCT(S$9:S$229,Nutrients!$FK$8:$FK$228)+(IF($A$7=Nutrients!$B$8,Nutrients!$FK$8,Nutrients!$FK$9)*S$7)+(((IF($A$8=Nutrients!$B$79,Nutrients!$FK$79,(IF($A$8=Nutrients!$B$77,Nutrients!$FK$77,Nutrients!$FK$78)))))*S$8))/2000)","v":1.5106280925362794},{"$f":"((SUMPRODUCT(T$9:T$229,Nutrients!$FK$8:$FK$228)+(IF($A$7=Nutrients!$B$8,Nutrients!$FK$8,Nutrients!$FK$9)*T$7)+(((IF($A$8=Nutrients!$B$79,Nutrients!$FK$79,(IF($A$8=Nutrients!$B$77,Nutrients!$FK$77,Nutrients!$FK$78)))))*T$8))/2000)","v":1.5376691915748419},{"$f":"((SUMPRODUCT(U$9:U$229,Nutrients!$FK$8:$FK$228)+(IF($A$7=Nutrients!$B$8,Nutrients!$FK$8,Nutrients!$FK$9)*U$7)+(((IF($A$8=Nutrients!$B$79,Nutrients!$FK$79,(IF($A$8=Nutrients!$B$77,Nutrients!$FK$77,Nutrients!$FK$78)))))*U$8))/2000)","v":1.7033272639768986},null,{"$f":"((SUMPRODUCT(W$9:W$229,Nutrients!$FK$8:$FK$228)+(IF($A$7=Nutrients!$B$8,Nutrients!$FK$8,Nutrients!$FK$9)*W$7)+(((IF($A$8=Nutrients!$B$79,Nutrients!$FK$79,(IF($A$8=Nutrients!$B$77,Nutrients!$FK$77,Nutrients!$FK$78)))))*W$8))/2000)","v":1.2945767223255014},{"$f":"((SUMPRODUCT(X$9:X$229,Nutrients!$FK$8:$FK$228)+(IF($A$7=Nutrients!$B$8,Nutrients!$FK$8,Nutrients!$FK$9)*X$7)+(((IF($A$8=Nutrients!$B$79,Nutrients!$FK$79,(IF($A$8=Nutrients!$B$77,Nutrients!$FK$77,Nutrients!$FK$78)))))*X$8))/2000)","v":1.3479591570486611},{"$f":"((SUMPRODUCT(Y$9:Y$229,Nutrients!$FK$8:$FK$228)+(IF($A$7=Nutrients!$B$8,Nutrients!$FK$8,Nutrients!$FK$9)*Y$7)+(((IF($A$8=Nutrients!$B$79,Nutrients!$FK$79,(IF($A$8=Nutrients!$B$77,Nutrients!$FK$77,Nutrients!$FK$78)))))*Y$8))/2000)","v":1.3948381338420965},{"$f":"((SUMPRODUCT(Z$9:Z$229,Nutrients!$FK$8:$FK$228)+(IF($A$7=Nutrients!$B$8,Nutrients!$FK$8,Nutrients!$FK$9)*Z$7)+(((IF($A$8=Nutrients!$B$79,Nutrients!$FK$79,(IF($A$8=Nutrients!$B$77,Nutrients!$FK$77,Nutrients!$FK$78)))))*Z$8))/2000)","v":1.4344346630442963},{"$f":"((SUMPRODUCT(AA$9:AA$229,Nutrients!$FK$8:$FK$228)+(IF($A$7=Nutrients!$B$8,Nutrients!$FK$8,Nutrients!$FK$9)*AA$7)+(((IF($A$8=Nutrients!$B$79,Nutrients!$FK$79,(IF($A$8=Nutrients!$B$77,Nutrients!$FK$77,Nutrients!$FK$78)))))*AA$8))/2000)","v":1.4611294771105829},{"$f":"((SUMPRODUCT(AB$9:AB$229,Nutrients!$FK$8:$FK$228)+(IF($A$7=Nutrients!$B$8,Nutrients!$FK$8,Nutrients!$FK$9)*AB$7)+(((IF($A$8=Nutrients!$B$79,Nutrients!$FK$79,(IF($A$8=Nutrients!$B$77,Nutrients!$FK$77,Nutrients!$FK$78)))))*AB$8))/2000)","v":1.7033272639768986},null,{"$f":"((SUMPRODUCT(AD$9:AD$229,Nutrients!$FK$8:$FK$228)+(IF($A$7=Nutrients!$B$8,Nutrients!$FK$8,Nutrients!$FK$9)*AD$7)+(((IF($A$8=Nutrients!$B$79,Nutrients!$FK$79,(IF($A$8=Nutrients!$B$77,Nutrients!$FK$77,Nutrients!$FK$78)))))*AD$8))/2000)","v":1.2191017480012487},{"$f":"((SUMPRODUCT(AE$9:AE$229,Nutrients!$FK$8:$FK$228)+(IF($A$7=Nutrients!$B$8,Nutrients!$FK$8,Nutrients!$FK$9)*AE$7)+(((IF($A$8=Nutrients!$B$79,Nutrients!$FK$79,(IF($A$8=Nutrients!$B$77,Nutrients!$FK$77,Nutrients!$FK$78)))))*AE$8))/2000)","v":1.2726105646757182},{"$f":"((SUMPRODUCT(AF$9:AF$229,Nutrients!$FK$8:$FK$228)+(IF($A$7=Nutrients!$B$8,Nutrients!$FK$8,Nutrients!$FK$9)*AF$7)+(((IF($A$8=Nutrients!$B$79,Nutrients!$FK$79,(IF($A$8=Nutrients!$B$77,Nutrients!$FK$77,Nutrients!$FK$78)))))*AF$8))/2000)","v":1.3190433332362954},{"$f":"((SUMPRODUCT(AG$9:AG$229,Nutrients!$FK$8:$FK$228)+(IF($A$7=Nutrients!$B$8,Nutrients!$FK$8,Nutrients!$FK$9)*AG$7)+(((IF($A$8=Nutrients!$B$79,Nutrients!$FK$79,(IF($A$8=Nutrients!$B$77,Nutrients!$FK$77,Nutrients!$FK$78)))))*AG$8))/2000)","v":1.3580646984178044},{"$f":"((SUMPRODUCT(AH$9:AH$229,Nutrients!$FK$8:$FK$228)+(IF($A$7=Nutrients!$B$8,Nutrients!$FK$8,Nutrients!$FK$9)*AH$7)+(((IF($A$8=Nutrients!$B$79,Nutrients!$FK$79,(IF($A$8=Nutrients!$B$77,Nutrients!$FK$77,Nutrients!$FK$78)))))*AH$8))/2000)","v":1.3836702693917331},{"$f":"((SUMPRODUCT(AI$9:AI$229,Nutrients!$FK$8:$FK$228)+(IF($A$7=Nutrients!$B$8,Nutrients!$FK$8,Nutrients!$FK$9)*AI$7)+(((IF($A$8=Nutrients!$B$79,Nutrients!$FK$79,(IF($A$8=Nutrients!$B$77,Nutrients!$FK$77,Nutrients!$FK$78)))))*AI$8))/2000)","v":1.7033272639768986},null,{"$f":"((SUMPRODUCT(AK$9:AK$229,Nutrients!$FK$8:$FK$228)+(IF($A$7=Nutrients!$B$8,Nutrients!$FK$8,Nutrients!$FK$9)*AK$7)+(((IF($A$8=Nutrients!$B$79,Nutrients!$FK$79,(IF($A$8=Nutrients!$B$77,Nutrients!$FK$77,Nutrients!$FK$78)))))*AK$8))/2000)","v":1.1416420104849061},{"$f":"((SUMPRODUCT(AL$9:AL$229,Nutrients!$FK$8:$FK$228)+(IF($A$7=Nutrients!$B$8,Nutrients!$FK$8,Nutrients!$FK$9)*AL$7)+(((IF($A$8=Nutrients!$B$79,Nutrients!$FK$79,(IF($A$8=Nutrients!$B$77,Nutrients!$FK$77,Nutrients!$FK$78)))))*AL$8))/2000)","v":1.1971393370395638},{"$f":"((SUMPRODUCT(AM$9:AM$229,Nutrients!$FK$8:$FK$228)+(IF($A$7=Nutrients!$B$8,Nutrients!$FK$8,Nutrients!$FK$9)*AM$7)+(((IF($A$8=Nutrients!$B$79,Nutrients!$FK$79,(IF($A$8=Nutrients!$B$77,Nutrients!$FK$77,Nutrients!$FK$78)))))*AM$8))/2000)","v":1.2429878676520056},{"$f":"((SUMPRODUCT(AN$9:AN$229,Nutrients!$FK$8:$FK$228)+(IF($A$7=Nutrients!$B$8,Nutrients!$FK$8,Nutrients!$FK$9)*AN$7)+(((IF($A$8=Nutrients!$B$79,Nutrients!$FK$79,(IF($A$8=Nutrients!$B$77,Nutrients!$FK$77,Nutrients!$FK$78)))))*AN$8))/2000)","v":1.2810334359603466},{"$f":"((SUMPRODUCT(AO$9:AO$229,Nutrients!$FK$8:$FK$228)+(IF($A$7=Nutrients!$B$8,Nutrients!$FK$8,Nutrients!$FK$9)*AO$7)+(((IF($A$8=Nutrients!$B$79,Nutrients!$FK$79,(IF($A$8=Nutrients!$B$77,Nutrients!$FK$77,Nutrients!$FK$78)))))*AO$8))/2000)","v":1.305731562681467},{"$f":"((SUMPRODUCT(AP$9:AP$229,Nutrients!$FK$8:$FK$228)+(IF($A$7=Nutrients!$B$8,Nutrients!$FK$8,Nutrients!$FK$9)*AP$7)+(((IF($A$8=Nutrients!$B$79,Nutrients!$FK$79,(IF($A$8=Nutrients!$B$77,Nutrients!$FK$77,Nutrients!$FK$78)))))*AP$8))/2000)","v":1.7033272639768986},null,{"$f":"((SUMPRODUCT(AR$9:AR$229,Nutrients!$FK$8:$FK$228)+(IF($A$7=Nutrients!$B$8,Nutrients!$FK$8,Nutrients!$FK$9)*AR$7)+(((IF($A$8=Nutrients!$B$79,Nutrients!$FK$79,(IF($A$8=Nutrients!$B$77,Nutrients!$FK$77,Nutrients!$FK$78)))))*AR$8))/2000)","v":1.0669285496844374},{"$f":"((SUMPRODUCT(AS$9:AS$229,Nutrients!$FK$8:$FK$228)+(IF($A$7=Nutrients!$B$8,Nutrients!$FK$8,Nutrients!$FK$9)*AS$7)+(((IF($A$8=Nutrients!$B$79,Nutrients!$FK$79,(IF($A$8=Nutrients!$B$77,Nutrients!$FK$77,Nutrients!$FK$78)))))*AS$8))/2000)","v":1.1216461695040123},{"$f":"((SUMPRODUCT(AT$9:AT$229,Nutrients!$FK$8:$FK$228)+(IF($A$7=Nutrients!$B$8,Nutrients!$FK$8,Nutrients!$FK$9)*AT$7)+(((IF($A$8=Nutrients!$B$79,Nutrients!$FK$79,(IF($A$8=Nutrients!$B$77,Nutrients!$FK$77,Nutrients!$FK$78)))))*AT$8))/2000)","v":1.1668111834635457},{"$f":"((SUMPRODUCT(AU$9:AU$229,Nutrients!$FK$8:$FK$228)+(IF($A$7=Nutrients!$B$8,Nutrients!$FK$8,Nutrients!$FK$9)*AU$7)+(((IF($A$8=Nutrients!$B$79,Nutrients!$FK$79,(IF($A$8=Nutrients!$B$77,Nutrients!$FK$77,Nutrients!$FK$78)))))*AU$8))/2000)","v":1.2032490824695359},{"$f":"((SUMPRODUCT(AV$9:AV$229,Nutrients!$FK$8:$FK$228)+(IF($A$7=Nutrients!$B$8,Nutrients!$FK$8,Nutrients!$FK$9)*AV$7)+(((IF($A$8=Nutrients!$B$79,Nutrients!$FK$79,(IF($A$8=Nutrients!$B$77,Nutrients!$FK$77,Nutrients!$FK$78)))))*AV$8))/2000)","v":1.2277984063601033},{"$f":"((SUMPRODUCT(AW$9:AW$229,Nutrients!$FK$8:$FK$228)+(IF($A$7=Nutrients!$B$8,Nutrients!$FK$8,Nutrients!$FK$9)*AW$7)+(((IF($A$8=Nutrients!$B$79,Nutrients!$FK$79,(IF($A$8=Nutrients!$B$77,Nutrients!$FK$77,Nutrients!$FK$78)))))*AW$8))/2000)","v":1.7033272639768986}]
["NDF, %",{"$f":"(SUMPRODUCT(B$9:B$229,Nutrients!$U$8:$U$228)+(IF($A$7=Nutrients!$B$8,Nutrients!$U$8,Nutrients!$U$9)*B$7)+(((IF($A$8=Nutrients!$B$79,Nutrients!$U$79,(IF($A$8=Nutrients!$B$77,Nutrients!$U$77,Nutrients!$U$78)))))*B$8))/2000","v":8.5675537105360302},{"$f":"(SUMPRODUCT(C$9:C$229,Nutrients!$U$8:$U$228)+(IF($A$7=Nutrients!$B$8,Nutrients!$U$8,Nutrients!$U$9)*C$7)+(((IF($A$8=Nutrients!$B$79,Nutrients!$U$79,(IF($A$8=Nutrients!$B$77,Nutrients!$U$77,Nutrients!$U$78)))))*C$8))/2000","v":8.6397459364158564},{"$f":"(SUMPRODUCT(D$9:D$229,Nutrients!$U$8:$U$228)+(IF($A$7=Nutrients!$B$8,Nutrients!$U$8,Nutrients!$U$9)*D$7)+(((IF($A$8=Nutrients!$B$79,Nutrients!$U$79,(IF($A$8=Nutrients!$B$77,Nutrients!$U$77,Nutrients!$U$78)))))*D$8))/2000","v":8.7042340935531328},{"$f":"(SUMPRODUCT(E$9:E$229,Nutrients!$U$8:$U$228)+(IF($A$7=Nutrients!$B$8,Nutrients!$U$8,Nutrients!$U$9)*E$7)+(((IF($A$8=Nutrients!$B$79,Nutrients!$U$79,(IF($A$8=Nutrients!$B$77,Nutrients!$U$77,Nutrients!$U$78)))))*E$8))/2000","v":8.7574905031042753},{"$f":"(SUMPRODUCT(F$9:F$229,Nutrients!$U$8:$U$228)+(IF($A$7=Nutrients!$B$8,Nutrients!$U$8,Nutrients!$U$9)*F$7)+(((IF($A$8=Nutrients!$B$79,Nutrients!$U$79,(IF($A$8=Nutrients!$B$77,Nutrients!$U$77,Nutrients!$U$78)))))*F$8))/2000","v":8.7980354970428483},{"$f":"(SUMPRODUCT(G$9:G$229,Nutrients!$U$8:$U$228)+(IF($A$7=Nutrients!$B$8,Nutrients!$U$8,Nutrients!$U$9)*G$7)+(((IF($A$8=Nutrients!$B$79,Nutrients!$U$79,(IF($A$8=Nutrients!$B$77,Nutrients!$U$77,Nutrients!$U$78)))))*G$8))/2000","v":8.8153381410832843},null,{"$f":"(SUMPRODUCT(I$9:I$229,Nutrients!$U$8:$U$228)+(IF($A$7=Nutrients!$B$8,Nutrients!$U$8,Nutrients!$U$9)*I$7)+(((IF($A$8=Nutrients!$B$79,Nutrients!$U$79,(IF($A$8=Nutrients!$B$77,Nutrients!$U$77,Nutrients!$U$78)))))*I$8))/2000","v":9.7722934215788015},{"$f":"(SUMPRODUCT(J$9:J$229,Nutrients!$U$8:$U$228)+(IF($A$7=Nutrients!$B$8,Nutrients!$U$8,Nutrients!$U$9)*J$7)+(((IF($A$8=Nutrients!$B$79,Nutrients!$U$79,(IF($A$8=Nutrients!$B$77,Nutrients!$U$77,Nutrients!$U$78)))))*J$8))/2000","v":9.8437745945440067},{"$f":"(SUMPRODUCT(K$9:K$229,Nutrients!$U$8:$U$228)+(IF($A$7=Nutrients!$B$8,Nutrients!$U$8,Nutrients!$U$9)*K$7)+(((IF($A$8=Nutrients!$B$79,Nutrients!$U$79,(IF($A$8=Nutrients!$B$77,Nutrients!$U$77,Nutrients!$U$78)))))*K$8))/2000","v":9.9076860389027352},{"$f":"(SUMPRODUCT(L$9:L$229,Nutrients!$U$8:$U$228)+(IF($A$7=Nutrients!$B$8,Nutrients!$U$8,Nutrients!$U$9)*L$7)+(((IF($A$8=Nutrients!$B$79,Nutrients!$U$79,(IF($A$8=Nutrients!$B$77,Nutrients!$U$77,Nutrients!$U$78)))))*L$8))/2000","v":9.9625547470046598},{"$f":"(SUMPRODUCT(M$9:M$229,Nutrients!$U$8:$U$228)+(IF($A$7=Nutrients!$B$8,Nutrients!$U$8,Nutrients!$U$9)*M$7)+(((IF($A$8=Nutrients!$B$79,Nutrients!$U$79,(IF($A$8=Nutrients!$B$77,Nutrients!$U$77,Nutrients!$U$78)))))*M$8))/2000","v":10.002508724199311},{"$f":"(SUMPRODUCT(N$9:N$229,Nutrients!$U$8:$U$228)+(IF($A$7=Nutrients!$B$8,Nutrients!$U$8,Nutrients!$U$9)*N$7)+(((IF($A$8=Nutrients!$B$79,Nutrients!$U$79,(IF($A$8=Nutrients!$B$77,Nutrients!$U$77,Nutrients!$U$78)))))*N$8))/2000","v":8.8153381410832843},null,{"$f":"(SUMPRODUCT(P$9:P$229,Nutrients!$U$8:$U$228)+(IF($A$7=Nutrients!$B$8,Nutrients!$U$8,Nutrients!$U$9)*P$7)+(((IF($A$8=Nutrients!$B$79,Nutrients!$U$79,(IF($A$8=Nutrients!$B$77,Nutrients!$U$77,Nutrients!$U$78)))))*P$8))/2000","v":10.97601747411734},{"$f":"(SUMPRODUCT(Q$9:Q$229,Nutrients!$U$8:$U$228)+(IF($A$7=Nutrients!$B$8,Nutrients!$U$8,Nutrients!$U$9)*Q$7)+(((IF($A$8=Nutrients!$B$79,Nutrients!$U$79,(IF($A$8=Nutrients!$B$77,Nutrients!$U$77,Nutrients!$U$78)))))*Q$8))/2000","v":11.047123544792175},{"$f":"(SUMPRODUCT(R$9:R$229,Nutrients!$U$8:$U$228)+(IF($A$7=Nutrients!$B$8,Nutrients!$U$8,Nutrients!$U$9)*R$7)+(((IF($A$8=Nutrients!$B$79,Nutrients!$U$79,(IF($A$8=Nutrients!$B$77,Nutrients!$U$77,Nutrients!$U$78)))))*R$8))/2000","v":11.110702861257101},{"$f":"(SUMPRODUCT(S$9:S$229,Nutrients!$U$8:$U$228)+(IF($A$7=Nutrients!$B$8,Nutrients!$U$8,Nutrients!$U$9)*S$7)+(((IF($A$8=Nutrients!$B$79,Nutrients!$U$79,(IF($A$8=Nutrients!$B$77,Nutrients!$U$77,Nutrients!$U$78)))))*S$8))/2000","v":11.165738860525623},{"$f":"(SUMPRODUCT(T$9:T$229,Nutrients!$U$8:$U$228)+(IF($A$7=Nutrients!$B$8,Nutrients!$U$8,Nutrients!$U$9)*T$7)+(((IF($A$8=Nutrients!$B$79,Nutrients!$U$79,(IF($A$8=Nutrients!$B$77,Nutrients!$U$77,Nutrients!$U$78)))))*T$8))/2000","v":11.204621522181363},{"$f":"(SUMPRODUCT(U$9:U$229,Nutrients!$U$8:$U$228)+(IF($A$7=Nutrients!$B$8,Nutrients!$U$8,Nutrients!$U$9)*U$7)+(((IF($A$8=Nutrients!$B$79,Nutrients!$U$79,(IF($A$8=Nutrients!$B$77,Nutrients!$U$77,Nutrients!$U$78)))))*U$8))/2000","v":8.8153381410832843},null,{"$f":"(SUMPRODUCT(W$9:W$229,Nutrients!$U$8:$U$228)+(IF($A$7=Nutrients!$B$8,Nutrients!$U$8,Nutrients!$U$9)*W$7)+(((IF($A$8=Nutrients!$B$79,Nutrients!$U$79,(IF($A$8=Nutrients!$B$77,Nutrients!$U$77,Nutrients!$U$78)))))*W$8))/2000","v":12.179892397151711},{"$f":"(SUMPRODUCT(X$9:X$229,Nutrients!$U$8:$U$228)+(IF($A$7=Nutrients!$B$8,Nutrients!$U$8,Nutrients!$U$9)*X$7)+(((IF($A$8=Nutrients!$B$79,Nutrients!$U$79,(IF($A$8=Nutrients!$B$77,Nutrients!$U$77,Nutrients!$U$78)))))*X$8))/2000","v":12.250672314355418},{"$f":"(SUMPRODUCT(Y$9:Y$229,Nutrients!$U$8:$U$228)+(IF($A$7=Nutrients!$B$8,Nutrients!$U$8,Nutrients!$U$9)*Y$7)+(((IF($A$8=Nutrients!$B$79,Nutrients!$U$79,(IF($A$8=Nutrients!$B$77,Nutrients!$U$77,Nutrients!$U$78)))))*Y$8))/2000","v":12.314360453677414},{"$f":"(SUMPRODUCT(Z$9:Z$229,Nutrients!$U$8:$U$228)+(IF($A$7=Nutrients!$B$8,Nutrients!$U$8,Nutrients!$U$9)*Z$7)+(((IF($A$8=Nutrients!$B$79,Nutrients!$U$79,(IF($A$8=Nutrients!$B$77,Nutrients!$U$77,Nutrients!$U$78)))))*Z$8))/2000","v":12.368710621126661},{"$f":"(SUMPRODUCT(AA$9:AA$229,Nutrients!$U$8:$U$228)+(IF($A$7=Nutrients!$B$8,Nutrients!$U$8,Nutrients!$U$9)*AA$7)+(((IF($A$8=Nutrients!$B$79,Nutrients!$U$79,(IF($A$8=Nutrients!$B$77,Nutrients!$U$77,Nutrients!$U$78)))))*AA$8))/2000","v":12.406659972645041},{"$f":"(SUMPRODUCT(AB$9:AB$229,Nutrients!$U$8:$U$228)+(IF($A$7=Nutrients!$B$8,Nutrients!$U$8,Nutrients!$U$9)*AB$7)+(((IF($A$8=Nutrients!$B$79,Nutrients!$U$79,(IF($A$8=Nutrients!$B$77,Nutrients!$U$77,Nutrients!$U$78)))))*AB$8))/2000","v":8.8153381410832843},null,{"$f":"(SUMPRODUCT(AD$9:AD$229,Nutrients!$U$8:$U$228)+(IF($A$7=Nutrients!$B$8,Nutrients!$U$8,Nutrients!$U$9)*AD$7)+(((IF($A$8=Nutrients!$B$79,Nutrients!$U$79,(IF($A$8=Nutrients!$B$77,Nutrients!$U$77,Nutrients!$U$78)))))*AD$8))/2000","v":13.383716272105108},{"$f":"(SUMPRODUCT(AE$9:AE$229,Nutrients!$U$8:$U$228)+(IF($A$7=Nutrients!$B$8,Nutrients!$U$8,Nutrients!$U$9)*AE$7)+(((IF($A$8=Nutrients!$B$79,Nutrients!$U$79,(IF($A$8=Nutrients!$B$77,Nutrients!$U$77,Nutrients!$U$78)))))*AE$8))/2000","v":13.454616331160009},{"$f":"(SUMPRODUCT(AF$9:AF$229,Nutrients!$U$8:$U$228)+(IF($A$7=Nutrients!$B$8,Nutrients!$U$8,Nutrients!$U$9)*AF$7)+(((IF($A$8=Nutrients!$B$79,Nutrients!$U$79,(IF($A$8=Nutrients!$B$77,Nutrients!$U$77,Nutrients!$U$78)))))*AF$8))/2000","v":13.517906097258157},{"$f":"(SUMPRODUCT(AG$9:AG$229,Nutrients!$U$8:$U$228)+(IF($A$7=Nutrients!$B$8,Nutrients!$U$8,Nutrients!$U$9)*AG$7)+(((IF($A$8=Nutrients!$B$79,Nutrients!$U$79,(IF($A$8=Nutrients!$B$77,Nutrients!$U$77,Nutrients!$U$78)))))*AG$8))/2000","v":13.57080772749149},{"$f":"(SUMPRODUCT(AH$9:AH$229,Nutrients!$U$8:$U$228)+(IF($A$7=Nutrients!$B$8,Nutrients!$U$8,Nutrients!$U$9)*AH$7)+(((IF($A$8=Nutrients!$B$79,Nutrients!$U$79,(IF($A$8=Nutrients!$B$77,Nutrients!$U$77,Nutrients!$U$78)))))*AH$8))/2000","v":13.603584792016889},{"$f":"(SUMPRODUCT(AI$9:AI$229,Nutrients!$U$8:$U$228)+(IF($A$7=Nutrients!$B$8,Nutrients!$U$8,Nutrients!$U$9)*AI$7)+(((IF($A$8=Nutrients!$B$79,Nutrients!$U$79,(IF($A$8=Nutrients!$B$77,Nutrients!$U$77,Nutrients!$U$78)))))*AI$8))/2000","v":8.8153381410832843},null,{"$f":"(SUMPRODUCT(AK$9:AK$229,Nutrients!$U$8:$U$228)+(IF($A$7=Nutrients!$B$8,Nutrients!$U$8,Nutrients!$U$9)*AK$7)+(((IF($A$8=Nutrients!$B$79,Nutrients!$U$79,(IF($A$8=Nutrients!$B$77,Nutrients!$U$77,Nutrients!$U$78)))))*AK$8))/2000","v":14.585552077151283},{"$f":"(SUMPRODUCT(AL$9:AL$229,Nutrients!$U$8:$U$228)+(IF($A$7=Nutrients!$B$8,Nutrients!$U$8,Nutrients!$U$9)*AL$7)+(((IF($A$8=Nutrients!$B$79,Nutrients!$U$79,(IF($A$8=Nutrients!$B$77,Nutrients!$U$77,Nutrients!$U$78)))))*AL$8))/2000","v":14.658515493792445},{"$f":"(SUMPRODUCT(AM$9:AM$229,Nutrients!$U$8:$U$228)+(IF($A$7=Nutrients!$B$8,Nutrients!$U$8,Nutrients!$U$9)*AM$7)+(((IF($A$8=Nutrients!$B$79,Nutrients!$U$79,(IF($A$8=Nutrients!$B$77,Nutrients!$U$77,Nutrients!$U$78)))))*AM$8))/2000","v":14.720425502595312},{"$f":"(SUMPRODUCT(AN$9:AN$229,Nutrients!$U$8:$U$228)+(IF($A$7=Nutrients!$B$8,Nutrients!$U$8,Nutrients!$U$9)*AN$7)+(((IF($A$8=Nutrients!$B$79,Nutrients!$U$79,(IF($A$8=Nutrients!$B$77,Nutrients!$U$77,Nutrients!$U$78)))))*AN$8))/2000","v":14.769182625368545},{"$f":"(SUMPRODUCT(AO$9:AO$229,Nutrients!$U$8:$U$228)+(IF($A$7=Nutrients!$B$8,Nutrients!$U$8,Nutrients!$U$9)*AO$7)+(((IF($A$8=Nutrients!$B$79,Nutrients!$U$79,(IF($A$8=Nutrients!$B$77,Nutrients!$U$77,Nutrients!$U$78)))))*AO$8))/2000","v":14.79797280183068},{"$f":"(SUMPRODUCT(AP$9:AP$229,Nutrients!$U$8:$U$228)+(IF($A$7=Nutrients!$B$8,Nutrients!$U$8,Nutrients!$U$9)*AP$7)+(((IF($A$8=Nutrients!$B$79,Nutrients!$U$79,(IF($A$8=Nutrients!$B$77,Nutrients!$U$77,Nutrients!$U$78)))))*AP$8))/2000","v":8.8153381410832843},null,{"$f":"(SUMPRODUCT(AR$9:AR$229,Nutrients!$U$8:$U$228)+(IF($A$7=Nutrients!$B$8,Nutrients!$U$8,Nutrients!$U$9)*AR$7)+(((IF($A$8=Nutrients!$B$79,Nutrients!$U$79,(IF($A$8=Nutrients!$B$77,Nutrients!$U$77,Nutrients!$U$78)))))*AR$8))/2000","v":15.79018862812935},{"$f":"(SUMPRODUCT(AS$9:AS$229,Nutrients!$U$8:$U$228)+(IF($A$7=Nutrients!$B$8,Nutrients!$U$8,Nutrients!$U$9)*AS$7)+(((IF($A$8=Nutrients!$B$79,Nutrients!$U$79,(IF($A$8=Nutrients!$B$77,Nutrients!$U$77,Nutrients!$U$78)))))*AS$8))/2000","v":15.862321464659933},{"$f":"(SUMPRODUCT(AT$9:AT$229,Nutrients!$U$8:$U$228)+(IF($A$7=Nutrients!$B$8,Nutrients!$U$8,Nutrients!$U$9)*AT$7)+(((IF($A$8=Nutrients!$B$79,Nutrients!$U$79,(IF($A$8=Nutrients!$B$77,Nutrients!$U$77,Nutrients!$U$78)))))*AT$8))/2000","v":15.922730738306432},{"$f":"(SUMPRODUCT(AU$9:AU$229,Nutrients!$U$8:$U$228)+(IF($A$7=Nutrients!$B$8,Nutrients!$U$8,Nutrients!$U$9)*AU$7)+(((IF($A$8=Nutrients!$B$79,Nutrients!$U$79,(IF($A$8=Nutrients!$B$77,Nutrients!$U$77,Nutrients!$U$78)))))*AU$8))/2000","v":15.963684127381153},{"$f":"(SUMPRODUCT(AV$9:AV$229,Nutrients!$U$8:$U$228)+(IF($A$7=Nutrients!$B$8,Nutrients!$U$8,Nutrients!$U$9)*AV$7)+(((IF($A$8=Nutrients!$B$79,Nutrients!$U$79,(IF($A$8=Nutrients!$B$77,Nutrients!$U$77,Nutrients!$U$78)))))*AV$8))/2000","v":15.992396754011763},{"$f":"(SUMPRODUCT(AW$9:AW$229,Nutrients!$U$8:$U$228)+(IF($A$7=Nutrients!$B$8,Nutrients!$U$8,Nutrients!$U$9)*AW$7)+(((IF($A$8=Nutrients!$B$79,Nutrients!$U$79,(IF($A$8=Nutrients!$B$77,Nutrients!$U$77,Nutrients!$U$78)))))*AW$8))/2000","v":8.8153381410832843}]
["SID Lys:CP ratio",{"$f":"B236/B253*100","v":5.7412242387563301},5.6765331580798346,5.5885690783484616,5.5041200481878318,5.4256048182416317,5.3576040399978782,null,{"$f":"I236/I253*100","v":5.636880225675216},5.5615494980249407,5.4626368173452402,5.3668717512267472,5.2796588325620393,5.3576040399978782,null,{"$f":"P236/P253*100","v":5.5354274101664114},5.4499399660389392,5.3411841888716189,5.2344188825940812,5.1383618594973068,5.3576040399978782,null,{"$f":"W236/W253*100","v":5.4362353180652185},5.3413699733847828,5.2221455587529295,5.1062257170753984,5.0020558105530295,5.3576040399978782,null,{"$f":"AD236/AD253*100","v":5.3391951801522062},5.234580265141374,5.1070545424495011,4.9809899528338928,4.8712243595479627,5.3576040399978782,null,{"$f":"AK236/AK253*100","v":5.2480531210771275},5.1306432602600367,4.9935597684222097,4.8602189811123706,4.7450956254950318,5.3576040399978782,null,{"$f":"AR236/AR253*100","v":5.1539575709437697},5.029222695091037,4.8836609791710464,4.7435138080861448,4.6233981849487193,5.3576040399978782]
["Trace minerals (added levels)"]
["  Zinc added, ppm",{"$f":"(SUMPRODUCT(B$9:B$229,Nutrients!$EK$8:$EK$228)+(IF($A$7=Nutrients!$B$8,Nutrients!$EK$8,Nutrients!$EK$9)*B$7)+(((IF($A$8=Nutrients!$B$79,Nutrients!$EK$79,(IF($A$8=Nutrients!$B$77,Nutrients!$EK$77,Nutrients!$EK$78)))))*B$8))/2000*1000000","v":110.11950000000002},{"$f":"(SUMPRODUCT(C$9:C$229,Nutrients!$EK$8:$EK$228)+(IF($A$7=Nutrients!$B$8,Nutrients!$EK$8,Nutrients!$EK$9)*C$7)+(((IF($A$8=Nutrients!$B$79,Nutrients!$EK$79,(IF($A$8=Nutrients!$B$77,Nutrients!$EK$77,Nutrients!$EK$78)))))*C$8))/2000*1000000","v":110.11950000000002},{"$f":"(SUMPRODUCT(D$9:D$229,Nutrients!$EK$8:$EK$228)+(IF($A$7=Nutrients!$B$8,Nutrients!$EK$8,Nutrients!$EK$9)*D$7)+(((IF($A$8=Nutrients!$B$79,Nutrients!$EK$79,(IF($A$8=Nutrients!$B$77,Nutrients!$EK$77,Nutrients!$EK$78)))))*D$8))/2000*1000000","v":91.766249999999999},{"$f":"(SUMPRODUCT(E$9:E$229,Nutrients!$EK$8:$EK$228)+(IF($A$7=Nutrients!$B$8,Nutrients!$EK$8,Nutrients!$EK$9)*E$7)+(((IF($A$8=Nutrients!$B$79,Nutrients!$EK$79,(IF($A$8=Nutrients!$B$77,Nutrients!$EK$77,Nutrients!$EK$78)))))*E$8))/2000*1000000","v":73.413000000000011},{"$f":"(SUMPRODUCT(F$9:F$229,Nutrients!$EK$8:$EK$228)+(IF($A$7=Nutrients!$B$8,Nutrients!$EK$8,Nutrients!$EK$9)*F$7)+(((IF($A$8=Nutrients!$B$79,Nutrients!$EK$79,(IF($A$8=Nutrients!$B$77,Nutrients!$EK$77,Nutrients!$EK$78)))))*F$8))/2000*1000000","v":55.059750000000008},{"$f":"(SUMPRODUCT(G$9:G$229,Nutrients!$EK$8:$EK$228)+(IF($A$7=Nutrients!$B$8,Nutrients!$EK$8,Nutrients!$EK$9)*G$7)+(((IF($A$8=Nutrients!$B$79,Nutrients!$EK$79,(IF($A$8=Nutrients!$B$77,Nutrients!$EK$77,Nutrients!$EK$78)))))*G$8))/2000*1000000","v":55.059750000000008},null,{"$f":"(SUMPRODUCT(I$9:I$229,Nutrients!$EK$8:$EK$228)+(IF($A$7=Nutrients!$B$8,Nutrients!$EK$8,Nutrients!$EK$9)*I$7)+(((IF($A$8=Nutrients!$B$79,Nutrients!$EK$79,(IF($A$8=Nutrients!$B$77,Nutrients!$EK$77,Nutrients!$EK$78)))))*I$8))/2000*1000000","v":110.11950000000002},{"$f":"(SUMPRODUCT(J$9:J$229,Nutrients!$EK$8:$EK$228)+(IF($A$7=Nutrients!$B$8,Nutrients!$EK$8,Nutrients!$EK$9)*J$7)+(((IF($A$8=Nutrients!$B$79,Nutrients!$EK$79,(IF($A$8=Nutrients!$B$77,Nutrients!$EK$77,Nutrients!$EK$78)))))*J$8))/2000*1000000","v":110.11950000000002},{"$f":"(SUMPRODUCT(K$9:K$229,Nutrients!$EK$8:$EK$228)+(IF($A$7=Nutrients!$B$8,Nutrients!$EK$8,Nutrients!$EK$9)*K$7)+(((IF($A$8=Nutrients!$B$79,Nutrients!$EK$79,(IF($A$8=Nutrients!$B$77,Nutrients!$EK$77,Nutrients!$EK$78)))))*K$8))/2000*1000000","v":91.766249999999999},{"$f":"(SUMPRODUCT(L$9:L$229,Nutrients!$EK$8:$EK$228)+(IF($A$7=Nutrients!$B$8,Nutrients!$EK$8,Nutrients!$EK$9)*L$7)+(((IF($A$8=Nutrients!$B$79,Nutrients!$EK$79,(IF($A$8=Nutrients!$B$77,Nutrients!$EK$77,Nutrients!$EK$78)))))*L$8))/2000*1000000","v":73.413000000000011},{"$f":"(SUMPRODUCT(M$9:M$229,Nutrients!$EK$8:$EK$228)+(IF($A$7=Nutrients!$B$8,Nutrients!$EK$8,Nutrients!$EK$9)*M$7)+(((IF($A$8=Nutrients!$B$79,Nutrients!$EK$79,(IF($A$8=Nutrients!$B$77,Nutrients!$EK$77,Nutrients!$EK$78)))))*M$8))/2000*1000000","v":55.059750000000008},{"$f":"(SUMPRODUCT(N$9:N$229,Nutrients!$EK$8:$EK$228)+(IF($A$7=Nutrients!$B$8,Nutrients!$EK$8,Nutrients!$EK$9)*N$7)+(((IF($A$8=Nutrients!$B$79,Nutrients!$EK$79,(IF($A$8=Nutrients!$B$77,Nutrients!$EK$77,Nutrients!$EK$78)))))*N$8))/2000*1000000","v":55.059750000000008},null,{"$f":"(SUMPRODUCT(P$9:P$229,Nutrients!$EK$8:$EK$228)+(IF($A$7=Nutrients!$B$8,Nutrients!$EK$8,Nutrients!$EK$9)*P$7)+(((IF($A$8=Nutrients!$B$79,Nutrients!$EK$79,(IF($A$8=Nutrients!$B$77,Nutrients!$EK$77,Nutrients!$EK$78)))))*P$8))/2000*1000000","v":110.11950000000002},{"$f":"(SUMPRODUCT(Q$9:Q$229,Nutrients!$EK$8:$EK$228)+(IF($A$7=Nutrients!$B$8,Nutrients!$EK$8,Nutrients!$EK$9)*Q$7)+(((IF($A$8=Nutrients!$B$79,Nutrients!$EK$79,(IF($A$8=Nutrients!$B$77,Nutrients!$EK$77,Nutrients!$EK$78)))))*Q$8))/2000*1000000","v":110.11950000000002},{"$f":"(SUMPRODUCT(R$9:R$229,Nutrients!$EK$8:$EK$228)+(IF($A$7=Nutrients!$B$8,Nutrients!$EK$8,Nutrients!$EK$9)*R$7)+(((IF($A$8=Nutrients!$B$79,Nutrients!$EK$79,(IF($A$8=Nutrients!$B$77,Nutrients!$EK$77,Nutrients!$EK$78)))))*R$8))/2000*1000000","v":91.766249999999999},{"$f":"(SUMPRODUCT(S$9:S$229,Nutrients!$EK$8:$EK$228)+(IF($A$7=Nutrients!$B$8,Nutrients!$EK$8,Nutrients!$EK$9)*S$7)+(((IF($A$8=Nutrients!$B$79,Nutrients!$EK$79,(IF($A$8=Nutrients!$B$77,Nutrients!$EK$77,Nutrients!$EK$78)))))*S$8))/2000*1000000","v":73.413000000000011},{"$f":"(SUMPRODUCT(T$9:T$229,Nutrients!$EK$8:$EK$228)+(IF($A$7=Nutrients!$B$8,Nutrients!$EK$8,Nutrients!$EK$9)*T$7)+(((IF($A$8=Nutrients!$B$79,Nutrients!$EK$79,(IF($A$8=Nutrients!$B$77,Nutrients!$EK$77,Nutrients!$EK$78)))))*T$8))/2000*1000000","v":55.059750000000008},{"$f":"(SUMPRODUCT(U$9:U$229,Nutrients!$EK$8:$EK$228)+(IF($A$7=Nutrients!$B$8,Nutrients!$EK$8,Nutrients!$EK$9)*U$7)+(((IF($A$8=Nutrients!$B$79,Nutrients!$EK$79,(IF($A$8=Nutrients!$B$77,Nutrients!$EK$77,Nutrients!$EK$78)))))*U$8))/2000*1000000","v":55.059750000000008},null,{"$f":"(SUMPRODUCT(W$9:W$229,Nutrients!$EK$8:$EK$228)+(IF($A$7=Nutrients!$B$8,Nutrients!$EK$8,Nutrients!$EK$9)*W$7)+(((IF($A$8=Nutrients!$B$79,Nutrients!$EK$79,(IF($A$8=Nutrients!$B$77,Nutrients!$EK$77,Nutrients!$EK$78)))))*W$8))/2000*1000000","v":110.11950000000002},{"$f":"(SUMPRODUCT(X$9:X$229,Nutrients!$EK$8:$EK$228)+(IF($A$7=Nutrients!$B$8,Nutrients!$EK$8,Nutrients!$EK$9)*X$7)+(((IF($A$8=Nutrients!$B$79,Nutrients!$EK$79,(IF($A$8=Nutrients!$B$77,Nutrients!$EK$77,Nutrients!$EK$78)))))*X$8))/2000*1000000","v":110.11950000000002},{"$f":"(SUMPRODUCT(Y$9:Y$229,Nutrients!$EK$8:$EK$228)+(IF($A$7=Nutrients!$B$8,Nutrients!$EK$8,Nutrients!$EK$9)*Y$7)+(((IF($A$8=Nutrients!$B$79,Nutrients!$EK$79,(IF($A$8=Nutrients!$B$77,Nutrients!$EK$77,Nutrients!$EK$78)))))*Y$8))/2000*1000000","v":91.766249999999999},{"$f":"(SUMPRODUCT(Z$9:Z$229,Nutrients!$EK$8:$EK$228)+(IF($A$7=Nutrients!$B$8,Nutrients!$EK$8,Nutrients!$EK$9)*Z$7)+(((IF($A$8=Nutrients!$B$79,Nutrients!$EK$79,(IF($A$8=Nutrients!$B$77,Nutrients!$EK$77,Nutrients!$EK$78)))))*Z$8))/2000*1000000","v":73.413000000000011},{"$f":"(SUMPRODUCT(AA$9:AA$229,Nutrients!$EK$8:$EK$228)+(IF($A$7=Nutrients!$B$8,Nutrients!$EK$8,Nutrients!$EK$9)*AA$7)+(((IF($A$8=Nutrients!$B$79,Nutrients!$EK$79,(IF($A$8=Nutrients!$B$77,Nutrients!$EK$77,Nutrients!$EK$78)))))*AA$8))/2000*1000000","v":55.059750000000008},{"$f":"(SUMPRODUCT(AB$9:AB$229,Nutrients!$EK$8:$EK$228)+(IF($A$7=Nutrients!$B$8,Nutrients!$EK$8,Nutrients!$EK$9)*AB$7)+(((IF($A$8=Nutrients!$B$79,Nutrients!$EK$79,(IF($A$8=Nutrients!$B$77,Nutrients!$EK$77,Nutrients!$EK$78)))))*AB$8))/2000*1000000","v":55.059750000000008},null,{"$f":"(SUMPRODUCT(AD$9:AD$229,Nutrients!$EK$8:$EK$228)+(IF($A$7=Nutrients!$B$8,Nutrients!$EK$8,Nutrients!$EK$9)*AD$7)+(((IF($A$8=Nutrients!$B$79,Nutrients!$EK$79,(IF($A$8=Nutrients!$B$77,Nutrients!$EK$77,Nutrients!$EK$78)))))*AD$8))/2000*1000000","v":110.11950000000002},{"$f":"(SUMPRODUCT(AE$9:AE$229,Nutrients!$EK$8:$EK$228)+(IF($A$7=Nutrients!$B$8,Nutrients!$EK$8,Nutrients!$EK$9)*AE$7)+(((IF($A$8=Nutrients!$B$79,Nutrients!$EK$79,(IF($A$8=Nutrients!$B$77,Nutrients!$EK$77,Nutrients!$EK$78)))))*AE$8))/2000*1000000","v":110.11950000000002},{"$f":"(SUMPRODUCT(AF$9:AF$229,Nutrients!$EK$8:$EK$228)+(IF($A$7=Nutrients!$B$8,Nutrients!$EK$8,Nutrients!$EK$9)*AF$7)+(((IF($A$8=Nutrients!$B$79,Nutrients!$EK$79,(IF($A$8=Nutrients!$B$77,Nutrients!$EK$77,Nutrients!$EK$78)))))*AF$8))/2000*1000000","v":91.766249999999999},{"$f":"(SUMPRODUCT(AG$9:AG$229,Nutrients!$EK$8:$EK$228)+(IF($A$7=Nutrients!$B$8,Nutrients!$EK$8,Nutrients!$EK$9)*AG$7)+(((IF($A$8=Nutrients!$B$79,Nutrients!$EK$79,(IF($A$8=Nutrients!$B$77,Nutrients!$EK$77,Nutrients!$EK$78)))))*AG$8))/2000*1000000","v":73.413000000000011},{"$f":"(SUMPRODUCT(AH$9:AH$229,Nutrients!$EK$8:$EK$228)+(IF($A$7=Nutrients!$B$8,Nutrients!$EK$8,Nutrients!$EK$9)*AH$7)+(((IF($A$8=Nutrients!$B$79,Nutrients!$EK$79,(IF($A$8=Nutrients!$B$77,Nutrients!$EK$77,Nutrients!$EK$78)))))*AH$8))/2000*1000000","v":55.059750000000008},{"$f":"(SUMPRODUCT(AI$9:AI$229,Nutrients!$EK$8:$EK$228)+(IF($A$7=Nutrients!$B$8,Nutrients!$EK$8,Nutrients!$EK$9)*AI$7)+(((IF($A$8=Nutrients!$B$79,Nutrients!$EK$79,(IF($A$8=Nutrients!$B$77,Nutrients!$EK$77,Nutrients!$EK$78)))))*AI$8))/2000*1000000","v":55.059750000000008},null,{"$f":"(SUMPRODUCT(AK$9:AK$229,Nutrients!$EK$8:$EK$228)+(IF($A$7=Nutrients!$B$8,Nutrients!$EK$8,Nutrients!$EK$9)*AK$7)+(((IF($A$8=Nutrients!$B$79,Nutrients!$EK$79,(IF($A$8=Nutrients!$B$77,Nutrients!$EK$77,Nutrients!$EK$78)))))*AK$8))/2000*1000000","v":110.11950000000002},{"$f":"(SUMPRODUCT(AL$9:AL$229,Nutrients!$EK$8:$EK$228)+(IF($A$7=Nutrients!$B$8,Nutrients!$EK$8,Nutrients!$EK$9)*AL$7)+(((IF($A$8=Nutrients!$B$79,Nutrients!$EK$79,(IF($A$8=Nutrients!$B$77,Nutrients!$EK$77,Nutrients!$EK$78)))))*AL$8))/2000*1000000","v":110.11950000000002},{"$f":"(SUMPRODUCT(AM$9:AM$229,Nutrients!$EK$8:$EK$228)+(IF($A$7=Nutrients!$B$8,Nutrients!$EK$8,Nutrients!$EK$9)*AM$7)+(((IF($A$8=Nutrients!$B$79,Nutrients!$EK$79,(IF($A$8=Nutrients!$B$77,Nutrients!$EK$77,Nutrients!$EK$78)))))*AM$8))/2000*1000000","v":91.766249999999999},{"$f":"(SUMPRODUCT(AN$9:AN$229,Nutrients!$EK$8:$EK$228)+(IF($A$7=Nutrients!$B$8,Nutrients!$EK$8,Nutrients!$EK$9)*AN$7)+(((IF($A$8=Nutrients!$B$79,Nutrients!$EK$79,(IF($A$8=Nutrients!$B$77,Nutrients!$EK$77,Nutrients!$EK$78)))))*AN$8))/2000*1000000","v":73.413000000000011},{"$f":"(SUMPRODUCT(AO$9:AO$229,Nutrients!$EK$8:$EK$228)+(IF($A$7=Nutrients!$B$8,Nutrients!$EK$8,Nutrients!$EK$9)*AO$7)+(((IF($A$8=Nutrients!$B$79,Nutrients!$EK$79,(IF($A$8=Nutrients!$B$77,Nutrients!$EK$77,Nutrients!$EK$78)))))*AO$8))/2000*1000000","v":55.059750000000008},{"$f":"(SUMPRODUCT(AP$9:AP$229,Nutrients!$EK$8:$EK$228)+(IF($A$7=Nutrients!$B$8,Nutrients!$EK$8,Nutrients!$EK$9)*AP$7)+(((IF($A$8=Nutrients!$B$79,Nutrients!$EK$79,(IF($A$8=Nutrients!$B$77,Nutrients!$EK$77,Nutrients!$EK$78)))))*AP$8))/2000*1000000","v":55.059750000000008},null,{"$f":"(SUMPRODUCT(AR$9:AR$229,Nutrients!$EK$8:$EK$228)+(IF($A$7=Nutrients!$B$8,Nutrients!$EK$8,Nutrients!$EK$9)*AR$7)+(((IF($A$8=Nutrients!$B$79,Nutrients!$EK$79,(IF($A$8=Nutrients!$B$77,Nutrients!$EK$77,Nutrients!$EK$78)))))*AR$8))/2000*1000000","v":110.11950000000002},{"$f":"(SUMPRODUCT(AS$9:AS$229,Nutrients!$EK$8:$EK$228)+(IF($A$7=Nutrients!$B$8,Nutrients!$EK$8,Nutrients!$EK$9)*AS$7)+(((IF($A$8=Nutrients!$B$79,Nutrients!$EK$79,(IF($A$8=Nutrients!$B$77,Nutrients!$EK$77,Nutrients!$EK$78)))))*AS$8))/2000*1000000","v":110.11950000000002},{"$f":"(SUMPRODUCT(AT$9:AT$229,Nutrients!$EK$8:$EK$228)+(IF($A$7=Nutrients!$B$8,Nutrients!$EK$8,Nutrients!$EK$9)*AT$7)+(((IF($A$8=Nutrients!$B$79,Nutrients!$EK$79,(IF($A$8=Nutrients!$B$77,Nutrients!$EK$77,Nutrients!$EK$78)))))*AT$8))/2000*1000000","v":91.766249999999999},{"$f":"(SUMPRODUCT(AU$9:AU$229,Nutrients!$EK$8:$EK$228)+(IF($A$7=Nutrients!$B$8,Nutrients!$EK$8,Nutrients!$EK$9)*AU$7)+(((IF($A$8=Nutrients!$B$79,Nutrients!$EK$79,(IF($A$8=Nutrients!$B$77,Nutrients!$EK$77,Nutrients!$EK$78)))))*AU$8))/2000*1000000","v":73.413000000000011},{"$f":"(SUMPRODUCT(AV$9:AV$229,Nutrients!$EK$8:$EK$228)+(IF($A$7=Nutrients!$B$8,Nutrients!$EK$8,Nutrients!$EK$9)*AV$7)+(((IF($A$8=Nutrients!$B$79,Nutrients!$EK$79,(IF($A$8=Nutrients!$B$77,Nutrients!$EK$77,Nutrients!$EK$78)))))*AV$8))/2000*1000000","v":55.059750000000008},{"$f":"(SUMPRODUCT(AW$9:AW$229,Nutrients!$EK$8:$EK$228)+(IF($A$7=Nutrients!$B$8,Nutrients!$EK$8,Nutrients!$EK$9)*AW$7)+(((IF($A$8=Nutrients!$B$79,Nutrients!$EK$79,(IF($A$8=Nutrients!$B$77,Nutrients!$EK$77,Nutrients!$EK$78)))))*AW$8))/2000*1000000","v":55.059750000000008}]
["  Iron added, ppm",{"$f":"(SUMPRODUCT(B$9:B$229,Nutrients!$EL$8:$EL$228)+(IF($A$7=Nutrients!$B$8,Nutrients!$EL$8,Nutrients!$EL$9)*B$7)+(((IF($A$8=Nutrients!$B$79,Nutrients!$EL$79,(IF($A$8=Nutrients!$B$77,Nutrients!$EL$77,Nutrients!$EL$78)))))*B$8))/2000*1000000","v":110.11950000000002},{"$f":"(SUMPRODUCT(C$9:C$229,Nutrients!$EL$8:$EL$228)+(IF($A$7=Nutrients!$B$8,Nutrients!$EL$8,Nutrients!$EL$9)*C$7)+(((IF($A$8=Nutrients!$B$79,Nutrients!$EL$79,(IF($A$8=Nutrients!$B$77,Nutrients!$EL$77,Nutrients!$EL$78)))))*C$8))/2000*1000000","v":110.11950000000002},{"$f":"(SUMPRODUCT(D$9:D$229,Nutrients!$EL$8:$EL$228)+(IF($A$7=Nutrients!$B$8,Nutrients!$EL$8,Nutrients!$EL$9)*D$7)+(((IF($A$8=Nutrients!$B$79,Nutrients!$EL$79,(IF($A$8=Nutrients!$B$77,Nutrients!$EL$77,Nutrients!$EL$78)))))*D$8))/2000*1000000","v":91.766249999999999},{"$f":"(SUMPRODUCT(E$9:E$229,Nutrients!$EL$8:$EL$228)+(IF($A$7=Nutrients!$B$8,Nutrients!$EL$8,Nutrients!$EL$9)*E$7)+(((IF($A$8=Nutrients!$B$79,Nutrients!$EL$79,(IF($A$8=Nutrients!$B$77,Nutrients!$EL$77,Nutrients!$EL$78)))))*E$8))/2000*1000000","v":73.413000000000011},{"$f":"(SUMPRODUCT(F$9:F$229,Nutrients!$EL$8:$EL$228)+(IF($A$7=Nutrients!$B$8,Nutrients!$EL$8,Nutrients!$EL$9)*F$7)+(((IF($A$8=Nutrients!$B$79,Nutrients!$EL$79,(IF($A$8=Nutrients!$B$77,Nutrients!$EL$77,Nutrients!$EL$78)))))*F$8))/2000*1000000","v":55.059750000000008},{"$f":"(SUMPRODUCT(G$9:G$229,Nutrients!$EL$8:$EL$228)+(IF($A$7=Nutrients!$B$8,Nutrients!$EL$8,Nutrients!$EL$9)*G$7)+(((IF($A$8=Nutrients!$B$79,Nutrients!$EL$79,(IF($A$8=Nutrients!$B$77,Nutrients!$EL$77,Nutrients!$EL$78)))))*G$8))/2000*1000000","v":55.059750000000008},null,{"$f":"(SUMPRODUCT(I$9:I$229,Nutrients!$EL$8:$EL$228)+(IF($A$7=Nutrients!$B$8,Nutrients!$EL$8,Nutrients!$EL$9)*I$7)+(((IF($A$8=Nutrients!$B$79,Nutrients!$EL$79,(IF($A$8=Nutrients!$B$77,Nutrients!$EL$77,Nutrients!$EL$78)))))*I$8))/2000*1000000","v":110.11950000000002},{"$f":"(SUMPRODUCT(J$9:J$229,Nutrients!$EL$8:$EL$228)+(IF($A$7=Nutrients!$B$8,Nutrients!$EL$8,Nutrients!$EL$9)*J$7)+(((IF($A$8=Nutrients!$B$79,Nutrients!$EL$79,(IF($A$8=Nutrients!$B$77,Nutrients!$EL$77,Nutrients!$EL$78)))))*J$8))/2000*1000000","v":110.11950000000002},{"$f":"(SUMPRODUCT(K$9:K$229,Nutrients!$EL$8:$EL$228)+(IF($A$7=Nutrients!$B$8,Nutrients!$EL$8,Nutrients!$EL$9)*K$7)+(((IF($A$8=Nutrients!$B$79,Nutrients!$EL$79,(IF($A$8=Nutrients!$B$77,Nutrients!$EL$77,Nutrients!$EL$78)))))*K$8))/2000*1000000","v":91.766249999999999},{"$f":"(SUMPRODUCT(L$9:L$229,Nutrients!$EL$8:$EL$228)+(IF($A$7=Nutrients!$B$8,Nutrients!$EL$8,Nutrients!$EL$9)*L$7)+(((IF($A$8=Nutrients!$B$79,Nutrients!$EL$79,(IF($A$8=Nutrients!$B$77,Nutrients!$EL$77,Nutrients!$EL$78)))))*L$8))/2000*1000000","v":73.413000000000011},{"$f":"(SUMPRODUCT(M$9:M$229,Nutrients!$EL$8:$EL$228)+(IF($A$7=Nutrients!$B$8,Nutrients!$EL$8,Nutrients!$EL$9)*M$7)+(((IF($A$8=Nutrients!$B$79,Nutrients!$EL$79,(IF($A$8=Nutrients!$B$77,Nutrients!$EL$77,Nutrients!$EL$78)))))*M$8))/2000*1000000","v":55.059750000000008},{"$f":"(SUMPRODUCT(N$9:N$229,Nutrients!$EL$8:$EL$228)+(IF($A$7=Nutrients!$B$8,Nutrients!$EL$8,Nutrients!$EL$9)*N$7)+(((IF($A$8=Nutrients!$B$79,Nutrients!$EL$79,(IF($A$8=Nutrients!$B$77,Nutrients!$EL$77,Nutrients!$EL$78)))))*N$8))/2000*1000000","v":55.059750000000008},null,{"$f":"(SUMPRODUCT(P$9:P$229,Nutrients!$EL$8:$EL$228)+(IF($A$7=Nutrients!$B$8,Nutrients!$EL$8,Nutrients!$EL$9)*P$7)+(((IF($A$8=Nutrients!$B$79,Nutrients!$EL$79,(IF($A$8=Nutrients!$B$77,Nutrients!$EL$77,Nutrients!$EL$78)))))*P$8))/2000*1000000","v":110.11950000000002},{"$f":"(SUMPRODUCT(Q$9:Q$229,Nutrients!$EL$8:$EL$228)+(IF($A$7=Nutrients!$B$8,Nutrients!$EL$8,Nutrients!$EL$9)*Q$7)+(((IF($A$8=Nutrients!$B$79,Nutrients!$EL$79,(IF($A$8=Nutrients!$B$77,Nutrients!$EL$77,Nutrients!$EL$78)))))*Q$8))/2000*1000000","v":110.11950000000002},{"$f":"(SUMPRODUCT(R$9:R$229,Nutrients!$EL$8:$EL$228)+(IF($A$7=Nutrients!$B$8,Nutrients!$EL$8,Nutrients!$EL$9)*R$7)+(((IF($A$8=Nutrients!$B$79,Nutrients!$EL$79,(IF($A$8=Nutrients!$B$77,Nutrients!$EL$77,Nutrients!$EL$78)))))*R$8))/2000*1000000","v":91.766249999999999},{"$f":"(SUMPRODUCT(S$9:S$229,Nutrients!$EL$8:$EL$228)+(IF($A$7=Nutrients!$B$8,Nutrients!$EL$8,Nutrients!$EL$9)*S$7)+(((IF($A$8=Nutrients!$B$79,Nutrients!$EL$79,(IF($A$8=Nutrients!$B$77,Nutrients!$EL$77,Nutrients!$EL$78)))))*S$8))/2000*1000000","v":73.413000000000011},{"$f":"(SUMPRODUCT(T$9:T$229,Nutrients!$EL$8:$EL$228)+(IF($A$7=Nutrients!$B$8,Nutrients!$EL$8,Nutrients!$EL$9)*T$7)+(((IF($A$8=Nutrients!$B$79,Nutrients!$EL$79,(IF($A$8=Nutrients!$B$77,Nutrients!$EL$77,Nutrients!$EL$78)))))*T$8))/2000*1000000","v":55.059750000000008},{"$f":"(SUMPRODUCT(U$9:U$229,Nutrients!$EL$8:$EL$228)+(IF($A$7=Nutrients!$B$8,Nutrients!$EL$8,Nutrients!$EL$9)*U$7)+(((IF($A$8=Nutrients!$B$79,Nutrients!$EL$79,(IF($A$8=Nutrients!$B$77,Nutrients!$EL$77,Nutrients!$EL$78)))))*U$8))/2000*1000000","v":55.059750000000008},null,{"$f":"(SUMPRODUCT(W$9:W$229,Nutrients!$EL$8:$EL$228)+(IF($A$7=Nutrients!$B$8,Nutrients!$EL$8,Nutrients!$EL$9)*W$7)+(((IF($A$8=Nutrients!$B$79,Nutrients!$EL$79,(IF($A$8=Nutrients!$B$77,Nutrients!$EL$77,Nutrients!$EL$78)))))*W$8))/2000*1000000","v":110.11950000000002},{"$f":"(SUMPRODUCT(X$9:X$229,Nutrients!$EL$8:$EL$228)+(IF($A$7=Nutrients!$B$8,Nutrients!$EL$8,Nutrients!$EL$9)*X$7)+(((IF($A$8=Nutrients!$B$79,Nutrients!$EL$79,(IF($A$8=Nutrients!$B$77,Nutrients!$EL$77,Nutrients!$EL$78)))))*X$8))/2000*1000000","v":110.11950000000002},{"$f":"(SUMPRODUCT(Y$9:Y$229,Nutrients!$EL$8:$EL$228)+(IF($A$7=Nutrients!$B$8,Nutrients!$EL$8,Nutrients!$EL$9)*Y$7)+(((IF($A$8=Nutrients!$B$79,Nutrients!$EL$79,(IF($A$8=Nutrients!$B$77,Nutrients!$EL$77,Nutrients!$EL$78)))))*Y$8))/2000*1000000","v":91.766249999999999},{"$f":"(SUMPRODUCT(Z$9:Z$229,Nutrients!$EL$8:$EL$228)+(IF($A$7=Nutrients!$B$8,Nutrients!$EL$8,Nutrients!$EL$9)*Z$7)+(((IF($A$8=Nutrients!$B$79,Nutrients!$EL$79,(IF($A$8=Nutrients!$B$77,Nutrients!$EL$77,Nutrients!$EL$78)))))*Z$8))/2000*1000000","v":73.413000000000011},{"$f":"(SUMPRODUCT(AA$9:AA$229,Nutrients!$EL$8:$EL$228)+(IF($A$7=Nutrients!$B$8,Nutrients!$EL$8,Nutrients!$EL$9)*AA$7)+(((IF($A$8=Nutrients!$B$79,Nutrients!$EL$79,(IF($A$8=Nutrients!$B$77,Nutrients!$EL$77,Nutrients!$EL$78)))))*AA$8))/2000*1000000","v":55.059750000000008},{"$f":"(SUMPRODUCT(AB$9:AB$229,Nutrients!$EL$8:$EL$228)+(IF($A$7=Nutrients!$B$8,Nutrients!$EL$8,Nutrients!$EL$9)*AB$7)+(((IF($A$8=Nutrients!$B$79,Nutrients!$EL$79,(IF($A$8=Nutrients!$B$77,Nutrients!$EL$77,Nutrients!$EL$78)))))*AB$8))/2000*1000000","v":55.059750000000008},null,{"$f":"(SUMPRODUCT(AD$9:AD$229,Nutrients!$EL$8:$EL$228)+(IF($A$7=Nutrients!$B$8,Nutrients!$EL$8,Nutrients!$EL$9)*AD$7)+(((IF($A$8=Nutrients!$B$79,Nutrients!$EL$79,(IF($A$8=Nutrients!$B$77,Nutrients!$EL$77,Nutrients!$EL$78)))))*AD$8))/2000*1000000","v":110.11950000000002},{"$f":"(SUMPRODUCT(AE$9:AE$229,Nutrients!$EL$8:$EL$228)+(IF($A$7=Nutrients!$B$8,Nutrients!$EL$8,Nutrients!$EL$9)*AE$7)+(((IF($A$8=Nutrients!$B$79,Nutrients!$EL$79,(IF($A$8=Nutrients!$B$77,Nutrients!$EL$77,Nutrients!$EL$78)))))*AE$8))/2000*1000000","v":110.11950000000002},{"$f":"(SUMPRODUCT(AF$9:AF$229,Nutrients!$EL$8:$EL$228)+(IF($A$7=Nutrients!$B$8,Nutrients!$EL$8,Nutrients!$EL$9)*AF$7)+(((IF($A$8=Nutrients!$B$79,Nutrients!$EL$79,(IF($A$8=Nutrients!$B$77,Nutrients!$EL$77,Nutrients!$EL$78)))))*AF$8))/2000*1000000","v":91.766249999999999},{"$f":"(SUMPRODUCT(AG$9:AG$229,Nutrients!$EL$8:$EL$228)+(IF($A$7=Nutrients!$B$8,Nutrients!$EL$8,Nutrients!$EL$9)*AG$7)+(((IF($A$8=Nutrients!$B$79,Nutrients!$EL$79,(IF($A$8=Nutrients!$B$77,Nutrients!$EL$77,Nutrients!$EL$78)))))*AG$8))/2000*1000000","v":73.413000000000011},{"$f":"(SUMPRODUCT(AH$9:AH$229,Nutrients!$EL$8:$EL$228)+(IF($A$7=Nutrients!$B$8,Nutrients!$EL$8,Nutrients!$EL$9)*AH$7)+(((IF($A$8=Nutrients!$B$79,Nutrients!$EL$79,(IF($A$8=Nutrients!$B$77,Nutrients!$EL$77,Nutrients!$EL$78)))))*AH$8))/2000*1000000","v":55.059750000000008},{"$f":"(SUMPRODUCT(AI$9:AI$229,Nutrients!$EL$8:$EL$228)+(IF($A$7=Nutrients!$B$8,Nutrients!$EL$8,Nutrients!$EL$9)*AI$7)+(((IF($A$8=Nutrients!$B$79,Nutrients!$EL$79,(IF($A$8=Nutrients!$B$77,Nutrients!$EL$77,Nutrients!$EL$78)))))*AI$8))/2000*1000000","v":55.059750000000008},null,{"$f":"(SUMPRODUCT(AK$9:AK$229,Nutrients!$EL$8:$EL$228)+(IF($A$7=Nutrients!$B$8,Nutrients!$EL$8,Nutrients!$EL$9)*AK$7)+(((IF($A$8=Nutrients!$B$79,Nutrients!$EL$79,(IF($A$8=Nutrients!$B$77,Nutrients!$EL$77,Nutrients!$EL$78)))))*AK$8))/2000*1000000","v":110.11950000000002},{"$f":"(SUMPRODUCT(AL$9:AL$229,Nutrients!$EL$8:$EL$228)+(IF($A$7=Nutrients!$B$8,Nutrients!$EL$8,Nutrients!$EL$9)*AL$7)+(((IF($A$8=Nutrients!$B$79,Nutrients!$EL$79,(IF($A$8=Nutrients!$B$77,Nutrients!$EL$77,Nutrients!$EL$78)))))*AL$8))/2000*1000000","v":110.11950000000002},{"$f":"(SUMPRODUCT(AM$9:AM$229,Nutrients!$EL$8:$EL$228)+(IF($A$7=Nutrients!$B$8,Nutrients!$EL$8,Nutrients!$EL$9)*AM$7)+(((IF($A$8=Nutrients!$B$79,Nutrients!$EL$79,(IF($A$8=Nutrients!$B$77,Nutrients!$EL$77,Nutrients!$EL$78)))))*AM$8))/2000*1000000","v":91.766249999999999},{"$f":"(SUMPRODUCT(AN$9:AN$229,Nutrients!$EL$8:$EL$228)+(IF($A$7=Nutrients!$B$8,Nutrients!$EL$8,Nutrients!$EL$9)*AN$7)+(((IF($A$8=Nutrients!$B$79,Nutrients!$EL$79,(IF($A$8=Nutrients!$B$77,Nutrients!$EL$77,Nutrients!$EL$78)))))*AN$8))/2000*1000000","v":73.413000000000011},{"$f":"(SUMPRODUCT(AO$9:AO$229,Nutrients!$EL$8:$EL$228)+(IF($A$7=Nutrients!$B$8,Nutrients!$EL$8,Nutrients!$EL$9)*AO$7)+(((IF($A$8=Nutrients!$B$79,Nutrients!$EL$79,(IF($A$8=Nutrients!$B$77,Nutrients!$EL$77,Nutrients!$EL$78)))))*AO$8))/2000*1000000","v":55.059750000000008},{"$f":"(SUMPRODUCT(AP$9:AP$229,Nutrients!$EL$8:$EL$228)+(IF($A$7=Nutrients!$B$8,Nutrients!$EL$8,Nutrients!$EL$9)*AP$7)+(((IF($A$8=Nutrients!$B$79,Nutrients!$EL$79,(IF($A$8=Nutrients!$B$77,Nutrients!$EL$77,Nutrients!$EL$78)))))*AP$8))/2000*1000000","v":55.059750000000008},null,{"$f":"(SUMPRODUCT(AR$9:AR$229,Nutrients!$EL$8:$EL$228)+(IF($A$7=Nutrients!$B$8,Nutrients!$EL$8,Nutrients!$EL$9)*AR$7)+(((IF($A$8=Nutrients!$B$79,Nutrients!$EL$79,(IF($A$8=Nutrients!$B$77,Nutrients!$EL$77,Nutrients!$EL$78)))))*AR$8))/2000*1000000","v":110.11950000000002},{"$f":"(SUMPRODUCT(AS$9:AS$229,Nutrients!$EL$8:$EL$228)+(IF($A$7=Nutrients!$B$8,Nutrients!$EL$8,Nutrients!$EL$9)*AS$7)+(((IF($A$8=Nutrients!$B$79,Nutrients!$EL$79,(IF($A$8=Nutrients!$B$77,Nutrients!$EL$77,Nutrients!$EL$78)))))*AS$8))/2000*1000000","v":110.11950000000002},{"$f":"(SUMPRODUCT(AT$9:AT$229,Nutrients!$EL$8:$EL$228)+(IF($A$7=Nutrients!$B$8,Nutrients!$EL$8,Nutrients!$EL$9)*AT$7)+(((IF($A$8=Nutrients!$B$79,Nutrients!$EL$79,(IF($A$8=Nutrients!$B$77,Nutrients!$EL$77,Nutrients!$EL$78)))))*AT$8))/2000*1000000","v":91.766249999999999},{"$f":"(SUMPRODUCT(AU$9:AU$229,Nutrients!$EL$8:$EL$228)+(IF($A$7=Nutrients!$B$8,Nutrients!$EL$8,Nutrients!$EL$9)*AU$7)+(((IF($A$8=Nutrients!$B$79,Nutrients!$EL$79,(IF($A$8=Nutrients!$B$77,Nutrients!$EL$77,Nutrients!$EL$78)))))*AU$8))/2000*1000000","v":73.413000000000011},{"$f":"(SUMPRODUCT(AV$9:AV$229,Nutrients!$EL$8:$EL$228)+(IF($A$7=Nutrients!$B$8,Nutrients!$EL$8,Nutrients!$EL$9)*AV$7)+(((IF($A$8=Nutrients!$B$79,Nutrients!$EL$79,(IF($A$8=Nutrients!$B$77,Nutrients!$EL$77,Nutrients!$EL$78)))))*AV$8))/2000*1000000","v":55.059750000000008},{"$f":"(SUMPRODUCT(AW$9:AW$229,Nutrients!$EL$8:$EL$228)+(IF($A$7=Nutrients!$B$8,Nutrients!$EL$8,Nutrients!$EL$9)*AW$7)+(((IF($A$8=Nutrients!$B$79,Nutrients!$EL$79,(IF($A$8=Nutrients!$B$77,Nutrients!$EL$77,Nutrients!$EL$78)))))*AW$8))/2000*1000000","v":55.059750000000008}]
["  Manganese added, ppm",{"$f":"(SUMPRODUCT(B$9:B$229,Nutrients!$EM$8:$EM$228)+(IF($A$7=Nutrients!$B$8,Nutrients!$EM$8,Nutrients!$EM$9)*B$7)+(((IF($A$8=Nutrients!$B$79,Nutrients!$EM$79,(IF($A$8=Nutrients!$B$77,Nutrients!$EM$77,Nutrients!$EM$78)))))*B$8))/2000*1000000","v":33.068999999999996},{"$f":"(SUMPRODUCT(C$9:C$229,Nutrients!$EM$8:$EM$228)+(IF($A$7=Nutrients!$B$8,Nutrients!$EM$8,Nutrients!$EM$9)*C$7)+(((IF($A$8=Nutrients!$B$79,Nutrients!$EM$79,(IF($A$8=Nutrients!$B$77,Nutrients!$EM$77,Nutrients!$EM$78)))))*C$8))/2000*1000000","v":33.068999999999996},{"$f":"(SUMPRODUCT(D$9:D$229,Nutrients!$EM$8:$EM$228)+(IF($A$7=Nutrients!$B$8,Nutrients!$EM$8,Nutrients!$EM$9)*D$7)+(((IF($A$8=Nutrients!$B$79,Nutrients!$EM$79,(IF($A$8=Nutrients!$B$77,Nutrients!$EM$77,Nutrients!$EM$78)))))*D$8))/2000*1000000","v":27.557499999999997},{"$f":"(SUMPRODUCT(E$9:E$229,Nutrients!$EM$8:$EM$228)+(IF($A$7=Nutrients!$B$8,Nutrients!$EM$8,Nutrients!$EM$9)*E$7)+(((IF($A$8=Nutrients!$B$79,Nutrients!$EM$79,(IF($A$8=Nutrients!$B$77,Nutrients!$EM$77,Nutrients!$EM$78)))))*E$8))/2000*1000000","v":22.045999999999999},{"$f":"(SUMPRODUCT(F$9:F$229,Nutrients!$EM$8:$EM$228)+(IF($A$7=Nutrients!$B$8,Nutrients!$EM$8,Nutrients!$EM$9)*F$7)+(((IF($A$8=Nutrients!$B$79,Nutrients!$EM$79,(IF($A$8=Nutrients!$B$77,Nutrients!$EM$77,Nutrients!$EM$78)))))*F$8))/2000*1000000","v":16.534499999999998},{"$f":"(SUMPRODUCT(G$9:G$229,Nutrients!$EM$8:$EM$228)+(IF($A$7=Nutrients!$B$8,Nutrients!$EM$8,Nutrients!$EM$9)*G$7)+(((IF($A$8=Nutrients!$B$79,Nutrients!$EM$79,(IF($A$8=Nutrients!$B$77,Nutrients!$EM$77,Nutrients!$EM$78)))))*G$8))/2000*1000000","v":16.534499999999998},null,{"$f":"(SUMPRODUCT(I$9:I$229,Nutrients!$EM$8:$EM$228)+(IF($A$7=Nutrients!$B$8,Nutrients!$EM$8,Nutrients!$EM$9)*I$7)+(((IF($A$8=Nutrients!$B$79,Nutrients!$EM$79,(IF($A$8=Nutrients!$B$77,Nutrients!$EM$77,Nutrients!$EM$78)))))*I$8))/2000*1000000","v":33.068999999999996},{"$f":"(SUMPRODUCT(J$9:J$229,Nutrients!$EM$8:$EM$228)+(IF($A$7=Nutrients!$B$8,Nutrients!$EM$8,Nutrients!$EM$9)*J$7)+(((IF($A$8=Nutrients!$B$79,Nutrients!$EM$79,(IF($A$8=Nutrients!$B$77,Nutrients!$EM$77,Nutrients!$EM$78)))))*J$8))/2000*1000000","v":33.068999999999996},{"$f":"(SUMPRODUCT(K$9:K$229,Nutrients!$EM$8:$EM$228)+(IF($A$7=Nutrients!$B$8,Nutrients!$EM$8,Nutrients!$EM$9)*K$7)+(((IF($A$8=Nutrients!$B$79,Nutrients!$EM$79,(IF($A$8=Nutrients!$B$77,Nutrients!$EM$77,Nutrients!$EM$78)))))*K$8))/2000*1000000","v":27.557499999999997},{"$f":"(SUMPRODUCT(L$9:L$229,Nutrients!$EM$8:$EM$228)+(IF($A$7=Nutrients!$B$8,Nutrients!$EM$8,Nutrients!$EM$9)*L$7)+(((IF($A$8=Nutrients!$B$79,Nutrients!$EM$79,(IF($A$8=Nutrients!$B$77,Nutrients!$EM$77,Nutrients!$EM$78)))))*L$8))/2000*1000000","v":22.045999999999999},{"$f":"(SUMPRODUCT(M$9:M$229,Nutrients!$EM$8:$EM$228)+(IF($A$7=Nutrients!$B$8,Nutrients!$EM$8,Nutrients!$EM$9)*M$7)+(((IF($A$8=Nutrients!$B$79,Nutrients!$EM$79,(IF($A$8=Nutrients!$B$77,Nutrients!$EM$77,Nutrients!$EM$78)))))*M$8))/2000*1000000","v":16.534499999999998},{"$f":"(SUMPRODUCT(N$9:N$229,Nutrients!$EM$8:$EM$228)+(IF($A$7=Nutrients!$B$8,Nutrients!$EM$8,Nutrients!$EM$9)*N$7)+(((IF($A$8=Nutrients!$B$79,Nutrients!$EM$79,(IF($A$8=Nutrients!$B$77,Nutrients!$EM$77,Nutrients!$EM$78)))))*N$8))/2000*1000000","v":16.534499999999998},null,{"$f":"(SUMPRODUCT(P$9:P$229,Nutrients!$EM$8:$EM$228)+(IF($A$7=Nutrients!$B$8,Nutrients!$EM$8,Nutrients!$EM$9)*P$7)+(((IF($A$8=Nutrients!$B$79,Nutrients!$EM$79,(IF($A$8=Nutrients!$B$77,Nutrients!$EM$77,Nutrients!$EM$78)))))*P$8))/2000*1000000","v":33.068999999999996},{"$f":"(SUMPRODUCT(Q$9:Q$229,Nutrients!$EM$8:$EM$228)+(IF($A$7=Nutrients!$B$8,Nutrients!$EM$8,Nutrients!$EM$9)*Q$7)+(((IF($A$8=Nutrients!$B$79,Nutrients!$EM$79,(IF($A$8=Nutrients!$B$77,Nutrients!$EM$77,Nutrients!$EM$78)))))*Q$8))/2000*1000000","v":33.068999999999996},{"$f":"(SUMPRODUCT(R$9:R$229,Nutrients!$EM$8:$EM$228)+(IF($A$7=Nutrients!$B$8,Nutrients!$EM$8,Nutrients!$EM$9)*R$7)+(((IF($A$8=Nutrients!$B$79,Nutrients!$EM$79,(IF($A$8=Nutrients!$B$77,Nutrients!$EM$77,Nutrients!$EM$78)))))*R$8))/2000*1000000","v":27.557499999999997},{"$f":"(SUMPRODUCT(S$9:S$229,Nutrients!$EM$8:$EM$228)+(IF($A$7=Nutrients!$B$8,Nutrients!$EM$8,Nutrients!$EM$9)*S$7)+(((IF($A$8=Nutrients!$B$79,Nutrients!$EM$79,(IF($A$8=Nutrients!$B$77,Nutrients!$EM$77,Nutrients!$EM$78)))))*S$8))/2000*1000000","v":22.045999999999999},{"$f":"(SUMPRODUCT(T$9:T$229,Nutrients!$EM$8:$EM$228)+(IF($A$7=Nutrients!$B$8,Nutrients!$EM$8,Nutrients!$EM$9)*T$7)+(((IF($A$8=Nutrients!$B$79,Nutrients!$EM$79,(IF($A$8=Nutrients!$B$77,Nutrients!$EM$77,Nutrients!$EM$78)))))*T$8))/2000*1000000","v":16.534499999999998},{"$f":"(SUMPRODUCT(U$9:U$229,Nutrients!$EM$8:$EM$228)+(IF($A$7=Nutrients!$B$8,Nutrients!$EM$8,Nutrients!$EM$9)*U$7)+(((IF($A$8=Nutrients!$B$79,Nutrients!$EM$79,(IF($A$8=Nutrients!$B$77,Nutrients!$EM$77,Nutrients!$EM$78)))))*U$8))/2000*1000000","v":16.534499999999998},null,{"$f":"(SUMPRODUCT(W$9:W$229,Nutrients!$EM$8:$EM$228)+(IF($A$7=Nutrients!$B$8,Nutrients!$EM$8,Nutrients!$EM$9)*W$7)+(((IF($A$8=Nutrients!$B$79,Nutrients!$EM$79,(IF($A$8=Nutrients!$B$77,Nutrients!$EM$77,Nutrients!$EM$78)))))*W$8))/2000*1000000","v":33.068999999999996},{"$f":"(SUMPRODUCT(X$9:X$229,Nutrients!$EM$8:$EM$228)+(IF($A$7=Nutrients!$B$8,Nutrients!$EM$8,Nutrients!$EM$9)*X$7)+(((IF($A$8=Nutrients!$B$79,Nutrients!$EM$79,(IF($A$8=Nutrients!$B$77,Nutrients!$EM$77,Nutrients!$EM$78)))))*X$8))/2000*1000000","v":33.068999999999996},{"$f":"(SUMPRODUCT(Y$9:Y$229,Nutrients!$EM$8:$EM$228)+(IF($A$7=Nutrients!$B$8,Nutrients!$EM$8,Nutrients!$EM$9)*Y$7)+(((IF($A$8=Nutrients!$B$79,Nutrients!$EM$79,(IF($A$8=Nutrients!$B$77,Nutrients!$EM$77,Nutrients!$EM$78)))))*Y$8))/2000*1000000","v":27.557499999999997},{"$f":"(SUMPRODUCT(Z$9:Z$229,Nutrients!$EM$8:$EM$228)+(IF($A$7=Nutrients!$B$8,Nutrients!$EM$8,Nutrients!$EM$9)*Z$7)+(((IF($A$8=Nutrients!$B$79,Nutrients!$EM$79,(IF($A$8=Nutrients!$B$77,Nutrients!$EM$77,Nutrients!$EM$78)))))*Z$8))/2000*1000000","v":22.045999999999999},{"$f":"(SUMPRODUCT(AA$9:AA$229,Nutrients!$EM$8:$EM$228)+(IF($A$7=Nutrients!$B$8,Nutrients!$EM$8,Nutrients!$EM$9)*AA$7)+(((IF($A$8=Nutrients!$B$79,Nutrients!$EM$79,(IF($A$8=Nutrients!$B$77,Nutrients!$EM$77,Nutrients!$EM$78)))))*AA$8))/2000*1000000","v":16.534499999999998},{"$f":"(SUMPRODUCT(AB$9:AB$229,Nutrients!$EM$8:$EM$228)+(IF($A$7=Nutrients!$B$8,Nutrients!$EM$8,Nutrients!$EM$9)*AB$7)+(((IF($A$8=Nutrients!$B$79,Nutrients!$EM$79,(IF($A$8=Nutrients!$B$77,Nutrients!$EM$77,Nutrients!$EM$78)))))*AB$8))/2000*1000000","v":16.534499999999998},null,{"$f":"(SUMPRODUCT(AD$9:AD$229,Nutrients!$EM$8:$EM$228)+(IF($A$7=Nutrients!$B$8,Nutrients!$EM$8,Nutrients!$EM$9)*AD$7)+(((IF($A$8=Nutrients!$B$79,Nutrients!$EM$79,(IF($A$8=Nutrients!$B$77,Nutrients!$EM$77,Nutrients!$EM$78)))))*AD$8))/2000*1000000","v":33.068999999999996},{"$f":"(SUMPRODUCT(AE$9:AE$229,Nutrients!$EM$8:$EM$228)+(IF($A$7=Nutrients!$B$8,Nutrients!$EM$8,Nutrients!$EM$9)*AE$7)+(((IF($A$8=Nutrients!$B$79,Nutrients!$EM$79,(IF($A$8=Nutrients!$B$77,Nutrients!$EM$77,Nutrients!$EM$78)))))*AE$8))/2000*1000000","v":33.068999999999996},{"$f":"(SUMPRODUCT(AF$9:AF$229,Nutrients!$EM$8:$EM$228)+(IF($A$7=Nutrients!$B$8,Nutrients!$EM$8,Nutrients!$EM$9)*AF$7)+(((IF($A$8=Nutrients!$B$79,Nutrients!$EM$79,(IF($A$8=Nutrients!$B$77,Nutrients!$EM$77,Nutrients!$EM$78)))))*AF$8))/2000*1000000","v":27.557499999999997},{"$f":"(SUMPRODUCT(AG$9:AG$229,Nutrients!$EM$8:$EM$228)+(IF($A$7=Nutrients!$B$8,Nutrients!$EM$8,Nutrients!$EM$9)*AG$7)+(((IF($A$8=Nutrients!$B$79,Nutrients!$EM$79,(IF($A$8=Nutrients!$B$77,Nutrients!$EM$77,Nutrients!$EM$78)))))*AG$8))/2000*1000000","v":22.045999999999999},{"$f":"(SUMPRODUCT(AH$9:AH$229,Nutrients!$EM$8:$EM$228)+(IF($A$7=Nutrients!$B$8,Nutrients!$EM$8,Nutrients!$EM$9)*AH$7)+(((IF($A$8=Nutrients!$B$79,Nutrients!$EM$79,(IF($A$8=Nutrients!$B$77,Nutrients!$EM$77,Nutrients!$EM$78)))))*AH$8))/2000*1000000","v":16.534499999999998},{"$f":"(SUMPRODUCT(AI$9:AI$229,Nutrients!$EM$8:$EM$228)+(IF($A$7=Nutrients!$B$8,Nutrients!$EM$8,Nutrients!$EM$9)*AI$7)+(((IF($A$8=Nutrients!$B$79,Nutrients!$EM$79,(IF($A$8=Nutrients!$B$77,Nutrients!$EM$77,Nutrients!$EM$78)))))*AI$8))/2000*1000000","v":16.534499999999998},null,{"$f":"(SUMPRODUCT(AK$9:AK$229,Nutrients!$EM$8:$EM$228)+(IF($A$7=Nutrients!$B$8,Nutrients!$EM$8,Nutrients!$EM$9)*AK$7)+(((IF($A$8=Nutrients!$B$79,Nutrients!$EM$79,(IF($A$8=Nutrients!$B$77,Nutrients!$EM$77,Nutrients!$EM$78)))))*AK$8))/2000*1000000","v":33.068999999999996},{"$f":"(SUMPRODUCT(AL$9:AL$229,Nutrients!$EM$8:$EM$228)+(IF($A$7=Nutrients!$B$8,Nutrients!$EM$8,Nutrients!$EM$9)*AL$7)+(((IF($A$8=Nutrients!$B$79,Nutrients!$EM$79,(IF($A$8=Nutrients!$B$77,Nutrients!$EM$77,Nutrients!$EM$78)))))*AL$8))/2000*1000000","v":33.068999999999996},{"$f":"(SUMPRODUCT(AM$9:AM$229,Nutrients!$EM$8:$EM$228)+(IF($A$7=Nutrients!$B$8,Nutrients!$EM$8,Nutrients!$EM$9)*AM$7)+(((IF($A$8=Nutrients!$B$79,Nutrients!$EM$79,(IF($A$8=Nutrients!$B$77,Nutrients!$EM$77,Nutrients!$EM$78)))))*AM$8))/2000*1000000","v":27.557499999999997},{"$f":"(SUMPRODUCT(AN$9:AN$229,Nutrients!$EM$8:$EM$228)+(IF($A$7=Nutrients!$B$8,Nutrients!$EM$8,Nutrients!$EM$9)*AN$7)+(((IF($A$8=Nutrients!$B$79,Nutrients!$EM$79,(IF($A$8=Nutrients!$B$77,Nutrients!$EM$77,Nutrients!$EM$78)))))*AN$8))/2000*1000000","v":22.045999999999999},{"$f":"(SUMPRODUCT(AO$9:AO$229,Nutrients!$EM$8:$EM$228)+(IF($A$7=Nutrients!$B$8,Nutrients!$EM$8,Nutrients!$EM$9)*AO$7)+(((IF($A$8=Nutrients!$B$79,Nutrients!$EM$79,(IF($A$8=Nutrients!$B$77,Nutrients!$EM$77,Nutrients!$EM$78)))))*AO$8))/2000*1000000","v":16.534499999999998},{"$f":"(SUMPRODUCT(AP$9:AP$229,Nutrients!$EM$8:$EM$228)+(IF($A$7=Nutrients!$B$8,Nutrients!$EM$8,Nutrients!$EM$9)*AP$7)+(((IF($A$8=Nutrients!$B$79,Nutrients!$EM$79,(IF($A$8=Nutrients!$B$77,Nutrients!$EM$77,Nutrients!$EM$78)))))*AP$8))/2000*1000000","v":16.534499999999998},null,{"$f":"(SUMPRODUCT(AR$9:AR$229,Nutrients!$EM$8:$EM$228)+(IF($A$7=Nutrients!$B$8,Nutrients!$EM$8,Nutrients!$EM$9)*AR$7)+(((IF($A$8=Nutrients!$B$79,Nutrients!$EM$79,(IF($A$8=Nutrients!$B$77,Nutrients!$EM$77,Nutrients!$EM$78)))))*AR$8))/2000*1000000","v":33.068999999999996},{"$f":"(SUMPRODUCT(AS$9:AS$229,Nutrients!$EM$8:$EM$228)+(IF($A$7=Nutrients!$B$8,Nutrients!$EM$8,Nutrients!$EM$9)*AS$7)+(((IF($A$8=Nutrients!$B$79,Nutrients!$EM$79,(IF($A$8=Nutrients!$B$77,Nutrients!$EM$77,Nutrients!$EM$78)))))*AS$8))/2000*1000000","v":33.068999999999996},{"$f":"(SUMPRODUCT(AT$9:AT$229,Nutrients!$EM$8:$EM$228)+(IF($A$7=Nutrients!$B$8,Nutrients!$EM$8,Nutrients!$EM$9)*AT$7)+(((IF($A$8=Nutrients!$B$79,Nutrients!$EM$79,(IF($A$8=Nutrients!$B$77,Nutrients!$EM$77,Nutrients!$EM$78)))))*AT$8))/2000*1000000","v":27.557499999999997},{"$f":"(SUMPRODUCT(AU$9:AU$229,Nutrients!$EM$8:$EM$228)+(IF($A$7=Nutrients!$B$8,Nutrients!$EM$8,Nutrients!$EM$9)*AU$7)+(((IF($A$8=Nutrients!$B$79,Nutrients!$EM$79,(IF($A$8=Nutrients!$B$77,Nutrients!$EM$77,Nutrients!$EM$78)))))*AU$8))/2000*1000000","v":22.045999999999999},{"$f":"(SUMPRODUCT(AV$9:AV$229,Nutrients!$EM$8:$EM$228)+(IF($A$7=Nutrients!$B$8,Nutrients!$EM$8,Nutrients!$EM$9)*AV$7)+(((IF($A$8=Nutrients!$B$79,Nutrients!$EM$79,(IF($A$8=Nutrients!$B$77,Nutrients!$EM$77,Nutrients!$EM$78)))))*AV$8))/2000*1000000","v":16.534499999999998},{"$f":"(SUMPRODUCT(AW$9:AW$229,Nutrients!$EM$8:$EM$228)+(IF($A$7=Nutrients!$B$8,Nutrients!$EM$8,Nutrients!$EM$9)*AW$7)+(((IF($A$8=Nutrients!$B$79,Nutrients!$EM$79,(IF($A$8=Nutrients!$B$77,Nutrients!$EM$77,Nutrients!$EM$78)))))*AW$8))/2000*1000000","v":16.534499999999998}]
["  Copper added, ppm",{"$f":"(SUMPRODUCT(B$9:B$229,Nutrients!$EN$8:$EN$228)+(IF($A$7=Nutrients!$B$8,Nutrients!$EN$8,Nutrients!$EN$9)*B$7)+(((IF($A$8=Nutrients!$B$79,Nutrients!$EN$79,(IF($A$8=Nutrients!$B$77,Nutrients!$EN$77,Nutrients!$EN$78)))))*B$8))/2000*1000000","v":16.5},{"$f":"(SUMPRODUCT(C$9:C$229,Nutrients!$EN$8:$EN$228)+(IF($A$7=Nutrients!$B$8,Nutrients!$EN$8,Nutrients!$EN$9)*C$7)+(((IF($A$8=Nutrients!$B$79,Nutrients!$EN$79,(IF($A$8=Nutrients!$B$77,Nutrients!$EN$77,Nutrients!$EN$78)))))*C$8))/2000*1000000","v":16.5},{"$f":"(SUMPRODUCT(D$9:D$229,Nutrients!$EN$8:$EN$228)+(IF($A$7=Nutrients!$B$8,Nutrients!$EN$8,Nutrients!$EN$9)*D$7)+(((IF($A$8=Nutrients!$B$79,Nutrients!$EN$79,(IF($A$8=Nutrients!$B$77,Nutrients!$EN$77,Nutrients!$EN$78)))))*D$8))/2000*1000000","v":13.749999999999998},{"$f":"(SUMPRODUCT(E$9:E$229,Nutrients!$EN$8:$EN$228)+(IF($A$7=Nutrients!$B$8,Nutrients!$EN$8,Nutrients!$EN$9)*E$7)+(((IF($A$8=Nutrients!$B$79,Nutrients!$EN$79,(IF($A$8=Nutrients!$B$77,Nutrients!$EN$77,Nutrients!$EN$78)))))*E$8))/2000*1000000","v":11},{"$f":"(SUMPRODUCT(F$9:F$229,Nutrients!$EN$8:$EN$228)+(IF($A$7=Nutrients!$B$8,Nutrients!$EN$8,Nutrients!$EN$9)*F$7)+(((IF($A$8=Nutrients!$B$79,Nutrients!$EN$79,(IF($A$8=Nutrients!$B$77,Nutrients!$EN$77,Nutrients!$EN$78)))))*F$8))/2000*1000000","v":8.25},{"$f":"(SUMPRODUCT(G$9:G$229,Nutrients!$EN$8:$EN$228)+(IF($A$7=Nutrients!$B$8,Nutrients!$EN$8,Nutrients!$EN$9)*G$7)+(((IF($A$8=Nutrients!$B$79,Nutrients!$EN$79,(IF($A$8=Nutrients!$B$77,Nutrients!$EN$77,Nutrients!$EN$78)))))*G$8))/2000*1000000","v":8.25},null,{"$f":"(SUMPRODUCT(I$9:I$229,Nutrients!$EN$8:$EN$228)+(IF($A$7=Nutrients!$B$8,Nutrients!$EN$8,Nutrients!$EN$9)*I$7)+(((IF($A$8=Nutrients!$B$79,Nutrients!$EN$79,(IF($A$8=Nutrients!$B$77,Nutrients!$EN$77,Nutrients!$EN$78)))))*I$8))/2000*1000000","v":16.5},{"$f":"(SUMPRODUCT(J$9:J$229,Nutrients!$EN$8:$EN$228)+(IF($A$7=Nutrients!$B$8,Nutrients!$EN$8,Nutrients!$EN$9)*J$7)+(((IF($A$8=Nutrients!$B$79,Nutrients!$EN$79,(IF($A$8=Nutrients!$B$77,Nutrients!$EN$77,Nutrients!$EN$78)))))*J$8))/2000*1000000","v":16.5},{"$f":"(SUMPRODUCT(K$9:K$229,Nutrients!$EN$8:$EN$228)+(IF($A$7=Nutrients!$B$8,Nutrients!$EN$8,Nutrients!$EN$9)*K$7)+(((IF($A$8=Nutrients!$B$79,Nutrients!$EN$79,(IF($A$8=Nutrients!$B$77,Nutrients!$EN$77,Nutrients!$EN$78)))))*K$8))/2000*1000000","v":13.749999999999998},{"$f":"(SUMPRODUCT(L$9:L$229,Nutrients!$EN$8:$EN$228)+(IF($A$7=Nutrients!$B$8,Nutrients!$EN$8,Nutrients!$EN$9)*L$7)+(((IF($A$8=Nutrients!$B$79,Nutrients!$EN$79,(IF($A$8=Nutrients!$B$77,Nutrients!$EN$77,Nutrients!$EN$78)))))*L$8))/2000*1000000","v":11},{"$f":"(SUMPRODUCT(M$9:M$229,Nutrients!$EN$8:$EN$228)+(IF($A$7=Nutrients!$B$8,Nutrients!$EN$8,Nutrients!$EN$9)*M$7)+(((IF($A$8=Nutrients!$B$79,Nutrients!$EN$79,(IF($A$8=Nutrients!$B$77,Nutrients!$EN$77,Nutrients!$EN$78)))))*M$8))/2000*1000000","v":8.25},{"$f":"(SUMPRODUCT(N$9:N$229,Nutrients!$EN$8:$EN$228)+(IF($A$7=Nutrients!$B$8,Nutrients!$EN$8,Nutrients!$EN$9)*N$7)+(((IF($A$8=Nutrients!$B$79,Nutrients!$EN$79,(IF($A$8=Nutrients!$B$77,Nutrients!$EN$77,Nutrients!$EN$78)))))*N$8))/2000*1000000","v":8.25},null,{"$f":"(SUMPRODUCT(P$9:P$229,Nutrients!$EN$8:$EN$228)+(IF($A$7=Nutrients!$B$8,Nutrients!$EN$8,Nutrients!$EN$9)*P$7)+(((IF($A$8=Nutrients!$B$79,Nutrients!$EN$79,(IF($A$8=Nutrients!$B$77,Nutrients!$EN$77,Nutrients!$EN$78)))))*P$8))/2000*1000000","v":16.5},{"$f":"(SUMPRODUCT(Q$9:Q$229,Nutrients!$EN$8:$EN$228)+(IF($A$7=Nutrients!$B$8,Nutrients!$EN$8,Nutrients!$EN$9)*Q$7)+(((IF($A$8=Nutrients!$B$79,Nutrients!$EN$79,(IF($A$8=Nutrients!$B$77,Nutrients!$EN$77,Nutrients!$EN$78)))))*Q$8))/2000*1000000","v":16.5},{"$f":"(SUMPRODUCT(R$9:R$229,Nutrients!$EN$8:$EN$228)+(IF($A$7=Nutrients!$B$8,Nutrients!$EN$8,Nutrients!$EN$9)*R$7)+(((IF($A$8=Nutrients!$B$79,Nutrients!$EN$79,(IF($A$8=Nutrients!$B$77,Nutrients!$EN$77,Nutrients!$EN$78)))))*R$8))/2000*1000000","v":13.749999999999998},{"$f":"(SUMPRODUCT(S$9:S$229,Nutrients!$EN$8:$EN$228)+(IF($A$7=Nutrients!$B$8,Nutrients!$EN$8,Nutrients!$EN$9)*S$7)+(((IF($A$8=Nutrients!$B$79,Nutrients!$EN$79,(IF($A$8=Nutrients!$B$77,Nutrients!$EN$77,Nutrients!$EN$78)))))*S$8))/2000*1000000","v":11},{"$f":"(SUMPRODUCT(T$9:T$229,Nutrients!$EN$8:$EN$228)+(IF($A$7=Nutrients!$B$8,Nutrients!$EN$8,Nutrients!$EN$9)*T$7)+(((IF($A$8=Nutrients!$B$79,Nutrients!$EN$79,(IF($A$8=Nutrients!$B$77,Nutrients!$EN$77,Nutrients!$EN$78)))))*T$8))/2000*1000000","v":8.25},{"$f":"(SUMPRODUCT(U$9:U$229,Nutrients!$EN$8:$EN$228)+(IF($A$7=Nutrients!$B$8,Nutrients!$EN$8,Nutrients!$EN$9)*U$7)+(((IF($A$8=Nutrients!$B$79,Nutrients!$EN$79,(IF($A$8=Nutrients!$B$77,Nutrients!$EN$77,Nutrients!$EN$78)))))*U$8))/2000*1000000","v":8.25},null,{"$f":"(SUMPRODUCT(W$9:W$229,Nutrients!$EN$8:$EN$228)+(IF($A$7=Nutrients!$B$8,Nutrients!$EN$8,Nutrients!$EN$9)*W$7)+(((IF($A$8=Nutrients!$B$79,Nutrients!$EN$79,(IF($A$8=Nutrients!$B$77,Nutrients!$EN$77,Nutrients!$EN$78)))))*W$8))/2000*1000000","v":16.5},{"$f":"(SUMPRODUCT(X$9:X$229,Nutrients!$EN$8:$EN$228)+(IF($A$7=Nutrients!$B$8,Nutrients!$EN$8,Nutrients!$EN$9)*X$7)+(((IF($A$8=Nutrients!$B$79,Nutrients!$EN$79,(IF($A$8=Nutrients!$B$77,Nutrients!$EN$77,Nutrients!$EN$78)))))*X$8))/2000*1000000","v":16.5},{"$f":"(SUMPRODUCT(Y$9:Y$229,Nutrients!$EN$8:$EN$228)+(IF($A$7=Nutrients!$B$8,Nutrients!$EN$8,Nutrients!$EN$9)*Y$7)+(((IF($A$8=Nutrients!$B$79,Nutrients!$EN$79,(IF($A$8=Nutrients!$B$77,Nutrients!$EN$77,Nutrients!$EN$78)))))*Y$8))/2000*1000000","v":13.749999999999998},{"$f":"(SUMPRODUCT(Z$9:Z$229,Nutrients!$EN$8:$EN$228)+(IF($A$7=Nutrients!$B$8,Nutrients!$EN$8,Nutrients!$EN$9)*Z$7)+(((IF($A$8=Nutrients!$B$79,Nutrients!$EN$79,(IF($A$8=Nutrients!$B$77,Nutrients!$EN$77,Nutrients!$EN$78)))))*Z$8))/2000*1000000","v":11},{"$f":"(SUMPRODUCT(AA$9:AA$229,Nutrients!$EN$8:$EN$228)+(IF($A$7=Nutrients!$B$8,Nutrients!$EN$8,Nutrients!$EN$9)*AA$7)+(((IF($A$8=Nutrients!$B$79,Nutrients!$EN$79,(IF($A$8=Nutrients!$B$77,Nutrients!$EN$77,Nutrients!$EN$78)))))*AA$8))/2000*1000000","v":8.25},{"$f":"(SUMPRODUCT(AB$9:AB$229,Nutrients!$EN$8:$EN$228)+(IF($A$7=Nutrients!$B$8,Nutrients!$EN$8,Nutrients!$EN$9)*AB$7)+(((IF($A$8=Nutrients!$B$79,Nutrients!$EN$79,(IF($A$8=Nutrients!$B$77,Nutrients!$EN$77,Nutrients!$EN$78)))))*AB$8))/2000*1000000","v":8.25},null,{"$f":"(SUMPRODUCT(AD$9:AD$229,Nutrients!$EN$8:$EN$228)+(IF($A$7=Nutrients!$B$8,Nutrients!$EN$8,Nutrients!$EN$9)*AD$7)+(((IF($A$8=Nutrients!$B$79,Nutrients!$EN$79,(IF($A$8=Nutrients!$B$77,Nutrients!$EN$77,Nutrients!$EN$78)))))*AD$8))/2000*1000000","v":16.5},{"$f":"(SUMPRODUCT(AE$9:AE$229,Nutrients!$EN$8:$EN$228)+(IF($A$7=Nutrients!$B$8,Nutrients!$EN$8,Nutrients!$EN$9)*AE$7)+(((IF($A$8=Nutrients!$B$79,Nutrients!$EN$79,(IF($A$8=Nutrients!$B$77,Nutrients!$EN$77,Nutrients!$EN$78)))))*AE$8))/2000*1000000","v":16.5},{"$f":"(SUMPRODUCT(AF$9:AF$229,Nutrients!$EN$8:$EN$228)+(IF($A$7=Nutrients!$B$8,Nutrients!$EN$8,Nutrients!$EN$9)*AF$7)+(((IF($A$8=Nutrients!$B$79,Nutrients!$EN$79,(IF($A$8=Nutrients!$B$77,Nutrients!$EN$77,Nutrients!$EN$78)))))*AF$8))/2000*1000000","v":13.749999999999998},{"$f":"(SUMPRODUCT(AG$9:AG$229,Nutrients!$EN$8:$EN$228)+(IF($A$7=Nutrients!$B$8,Nutrients!$EN$8,Nutrients!$EN$9)*AG$7)+(((IF($A$8=Nutrients!$B$79,Nutrients!$EN$79,(IF($A$8=Nutrients!$B$77,Nutrients!$EN$77,Nutrients!$EN$78)))))*AG$8))/2000*1000000","v":11},{"$f":"(SUMPRODUCT(AH$9:AH$229,Nutrients!$EN$8:$EN$228)+(IF($A$7=Nutrients!$B$8,Nutrients!$EN$8,Nutrients!$EN$9)*AH$7)+(((IF($A$8=Nutrients!$B$79,Nutrients!$EN$79,(IF($A$8=Nutrients!$B$77,Nutrients!$EN$77,Nutrients!$EN$78)))))*AH$8))/2000*1000000","v":8.25},{"$f":"(SUMPRODUCT(AI$9:AI$229,Nutrients!$EN$8:$EN$228)+(IF($A$7=Nutrients!$B$8,Nutrients!$EN$8,Nutrients!$EN$9)*AI$7)+(((IF($A$8=Nutrients!$B$79,Nutrients!$EN$79,(IF($A$8=Nutrients!$B$77,Nutrients!$EN$77,Nutrients!$EN$78)))))*AI$8))/2000*1000000","v":8.25},null,{"$f":"(SUMPRODUCT(AK$9:AK$229,Nutrients!$EN$8:$EN$228)+(IF($A$7=Nutrients!$B$8,Nutrients!$EN$8,Nutrients!$EN$9)*AK$7)+(((IF($A$8=Nutrients!$B$79,Nutrients!$EN$79,(IF($A$8=Nutrients!$B$77,Nutrients!$EN$77,Nutrients!$EN$78)))))*AK$8))/2000*1000000","v":16.5},{"$f":"(SUMPRODUCT(AL$9:AL$229,Nutrients!$EN$8:$EN$228)+(IF($A$7=Nutrients!$B$8,Nutrients!$EN$8,Nutrients!$EN$9)*AL$7)+(((IF($A$8=Nutrients!$B$79,Nutrients!$EN$79,(IF($A$8=Nutrients!$B$77,Nutrients!$EN$77,Nutrients!$EN$78)))))*AL$8))/2000*1000000","v":16.5},{"$f":"(SUMPRODUCT(AM$9:AM$229,Nutrients!$EN$8:$EN$228)+(IF($A$7=Nutrients!$B$8,Nutrients!$EN$8,Nutrients!$EN$9)*AM$7)+(((IF($A$8=Nutrients!$B$79,Nutrients!$EN$79,(IF($A$8=Nutrients!$B$77,Nutrients!$EN$77,Nutrients!$EN$78)))))*AM$8))/2000*1000000","v":13.749999999999998},{"$f":"(SUMPRODUCT(AN$9:AN$229,Nutrients!$EN$8:$EN$228)+(IF($A$7=Nutrients!$B$8,Nutrients!$EN$8,Nutrients!$EN$9)*AN$7)+(((IF($A$8=Nutrients!$B$79,Nutrients!$EN$79,(IF($A$8=Nutrients!$B$77,Nutrients!$EN$77,Nutrients!$EN$78)))))*AN$8))/2000*1000000","v":11},{"$f":"(SUMPRODUCT(AO$9:AO$229,Nutrients!$EN$8:$EN$228)+(IF($A$7=Nutrients!$B$8,Nutrients!$EN$8,Nutrients!$EN$9)*AO$7)+(((IF($A$8=Nutrients!$B$79,Nutrients!$EN$79,(IF($A$8=Nutrients!$B$77,Nutrients!$EN$77,Nutrients!$EN$78)))))*AO$8))/2000*1000000","v":8.25},{"$f":"(SUMPRODUCT(AP$9:AP$229,Nutrients!$EN$8:$EN$228)+(IF($A$7=Nutrients!$B$8,Nutrients!$EN$8,Nutrients!$EN$9)*AP$7)+(((IF($A$8=Nutrients!$B$79,Nutrients!$EN$79,(IF($A$8=Nutrients!$B$77,Nutrients!$EN$77,Nutrients!$EN$78)))))*AP$8))/2000*1000000","v":8.25},null,{"$f":"(SUMPRODUCT(AR$9:AR$229,Nutrients!$EN$8:$EN$228)+(IF($A$7=Nutrients!$B$8,Nutrients!$EN$8,Nutrients!$EN$9)*AR$7)+(((IF($A$8=Nutrients!$B$79,Nutrients!$EN$79,(IF($A$8=Nutrients!$B$77,Nutrients!$EN$77,Nutrients!$EN$78)))))*AR$8))/2000*1000000","v":16.5},{"$f":"(SUMPRODUCT(AS$9:AS$229,Nutrients!$EN$8:$EN$228)+(IF($A$7=Nutrients!$B$8,Nutrients!$EN$8,Nutrients!$EN$9)*AS$7)+(((IF($A$8=Nutrients!$B$79,Nutrients!$EN$79,(IF($A$8=Nutrients!$B$77,Nutrients!$EN$77,Nutrients!$EN$78)))))*AS$8))/2000*1000000","v":16.5},{"$f":"(SUMPRODUCT(AT$9:AT$229,Nutrients!$EN$8:$EN$228)+(IF($A$7=Nutrients!$B$8,Nutrients!$EN$8,Nutrients!$EN$9)*AT$7)+(((IF($A$8=Nutrients!$B$79,Nutrients!$EN$79,(IF($A$8=Nutrients!$B$77,Nutrients!$EN$77,Nutrients!$EN$78)))))*AT$8))/2000*1000000","v":13.749999999999998},{"$f":"(SUMPRODUCT(AU$9:AU$229,Nutrients!$EN$8:$EN$228)+(IF($A$7=Nutrients!$B$8,Nutrients!$EN$8,Nutrients!$EN$9)*AU$7)+(((IF($A$8=Nutrients!$B$79,Nutrients!$EN$79,(IF($A$8=Nutrients!$B$77,Nutrients!$EN$77,Nutrients!$EN$78)))))*AU$8))/2000*1000000","v":11},{"$f":"(SUMPRODUCT(AV$9:AV$229,Nutrients!$EN$8:$EN$228)+(IF($A$7=Nutrients!$B$8,Nutrients!$EN$8,Nutrients!$EN$9)*AV$7)+(((IF($A$8=Nutrients!$B$79,Nutrients!$EN$79,(IF($A$8=Nutrients!$B$77,Nutrients!$EN$77,Nutrients!$EN$78)))))*AV$8))/2000*1000000","v":8.25},{"$f":"(SUMPRODUCT(AW$9:AW$229,Nutrients!$EN$8:$EN$228)+(IF($A$7=Nutrients!$B$8,Nutrients!$EN$8,Nutrients!$EN$9)*AW$7)+(((IF($A$8=Nutrients!$B$79,Nutrients!$EN$79,(IF($A$8=Nutrients!$B$77,Nutrients!$EN$77,Nutrients!$EN$78)))))*AW$8))/2000*1000000","v":8.25}]
["  Iodine added, ppm",{"$f":"(SUMPRODUCT(B$9:B$229,Nutrients!$EO$8:$EO$228)+(IF($A$7=Nutrients!$B$8,Nutrients!$EO$8,Nutrients!$EO$9)*B$7)+(((IF($A$8=Nutrients!$B$79,Nutrients!$EO$79,(IF($A$8=Nutrients!$B$77,Nutrients!$EO$77,Nutrients!$EO$78)))))*B$8))/2000*1000000","v":0.29699999999999999},{"$f":"(SUMPRODUCT(C$9:C$229,Nutrients!$EO$8:$EO$228)+(IF($A$7=Nutrients!$B$8,Nutrients!$EO$8,Nutrients!$EO$9)*C$7)+(((IF($A$8=Nutrients!$B$79,Nutrients!$EO$79,(IF($A$8=Nutrients!$B$77,Nutrients!$EO$77,Nutrients!$EO$78)))))*C$8))/2000*1000000","v":0.29699999999999999},{"$f":"(SUMPRODUCT(D$9:D$229,Nutrients!$EO$8:$EO$228)+(IF($A$7=Nutrients!$B$8,Nutrients!$EO$8,Nutrients!$EO$9)*D$7)+(((IF($A$8=Nutrients!$B$79,Nutrients!$EO$79,(IF($A$8=Nutrients!$B$77,Nutrients!$EO$77,Nutrients!$EO$78)))))*D$8))/2000*1000000","v":0.24750000000000003},{"$f":"(SUMPRODUCT(E$9:E$229,Nutrients!$EO$8:$EO$228)+(IF($A$7=Nutrients!$B$8,Nutrients!$EO$8,Nutrients!$EO$9)*E$7)+(((IF($A$8=Nutrients!$B$79,Nutrients!$EO$79,(IF($A$8=Nutrients!$B$77,Nutrients!$EO$77,Nutrients!$EO$78)))))*E$8))/2000*1000000","v":0.19800000000000001},{"$f":"(SUMPRODUCT(F$9:F$229,Nutrients!$EO$8:$EO$228)+(IF($A$7=Nutrients!$B$8,Nutrients!$EO$8,Nutrients!$EO$9)*F$7)+(((IF($A$8=Nutrients!$B$79,Nutrients!$EO$79,(IF($A$8=Nutrients!$B$77,Nutrients!$EO$77,Nutrients!$EO$78)))))*F$8))/2000*1000000","v":0.14849999999999999},{"$f":"(SUMPRODUCT(G$9:G$229,Nutrients!$EO$8:$EO$228)+(IF($A$7=Nutrients!$B$8,Nutrients!$EO$8,Nutrients!$EO$9)*G$7)+(((IF($A$8=Nutrients!$B$79,Nutrients!$EO$79,(IF($A$8=Nutrients!$B$77,Nutrients!$EO$77,Nutrients!$EO$78)))))*G$8))/2000*1000000","v":0.14849999999999999},null,{"$f":"(SUMPRODUCT(I$9:I$229,Nutrients!$EO$8:$EO$228)+(IF($A$7=Nutrients!$B$8,Nutrients!$EO$8,Nutrients!$EO$9)*I$7)+(((IF($A$8=Nutrients!$B$79,Nutrients!$EO$79,(IF($A$8=Nutrients!$B$77,Nutrients!$EO$77,Nutrients!$EO$78)))))*I$8))/2000*1000000","v":0.29699999999999999},{"$f":"(SUMPRODUCT(J$9:J$229,Nutrients!$EO$8:$EO$228)+(IF($A$7=Nutrients!$B$8,Nutrients!$EO$8,Nutrients!$EO$9)*J$7)+(((IF($A$8=Nutrients!$B$79,Nutrients!$EO$79,(IF($A$8=Nutrients!$B$77,Nutrients!$EO$77,Nutrients!$EO$78)))))*J$8))/2000*1000000","v":0.29699999999999999},{"$f":"(SUMPRODUCT(K$9:K$229,Nutrients!$EO$8:$EO$228)+(IF($A$7=Nutrients!$B$8,Nutrients!$EO$8,Nutrients!$EO$9)*K$7)+(((IF($A$8=Nutrients!$B$79,Nutrients!$EO$79,(IF($A$8=Nutrients!$B$77,Nutrients!$EO$77,Nutrients!$EO$78)))))*K$8))/2000*1000000","v":0.24750000000000003},{"$f":"(SUMPRODUCT(L$9:L$229,Nutrients!$EO$8:$EO$228)+(IF($A$7=Nutrients!$B$8,Nutrients!$EO$8,Nutrients!$EO$9)*L$7)+(((IF($A$8=Nutrients!$B$79,Nutrients!$EO$79,(IF($A$8=Nutrients!$B$77,Nutrients!$EO$77,Nutrients!$EO$78)))))*L$8))/2000*1000000","v":0.19800000000000001},{"$f":"(SUMPRODUCT(M$9:M$229,Nutrients!$EO$8:$EO$228)+(IF($A$7=Nutrients!$B$8,Nutrients!$EO$8,Nutrients!$EO$9)*M$7)+(((IF($A$8=Nutrients!$B$79,Nutrients!$EO$79,(IF($A$8=Nutrients!$B$77,Nutrients!$EO$77,Nutrients!$EO$78)))))*M$8))/2000*1000000","v":0.14849999999999999},{"$f":"(SUMPRODUCT(N$9:N$229,Nutrients!$EO$8:$EO$228)+(IF($A$7=Nutrients!$B$8,Nutrients!$EO$8,Nutrients!$EO$9)*N$7)+(((IF($A$8=Nutrients!$B$79,Nutrients!$EO$79,(IF($A$8=Nutrients!$B$77,Nutrients!$EO$77,Nutrients!$EO$78)))))*N$8))/2000*1000000","v":0.14849999999999999},null,{"$f":"(SUMPRODUCT(P$9:P$229,Nutrients!$EO$8:$EO$228)+(IF($A$7=Nutrients!$B$8,Nutrients!$EO$8,Nutrients!$EO$9)*P$7)+(((IF($A$8=Nutrients!$B$79,Nutrients!$EO$79,(IF($A$8=Nutrients!$B$77,Nutrients!$EO$77,Nutrients!$EO$78)))))*P$8))/2000*1000000","v":0.29699999999999999},{"$f":"(SUMPRODUCT(Q$9:Q$229,Nutrients!$EO$8:$EO$228)+(IF($A$7=Nutrients!$B$8,Nutrients!$EO$8,Nutrients!$EO$9)*Q$7)+(((IF($A$8=Nutrients!$B$79,Nutrients!$EO$79,(IF($A$8=Nutrients!$B$77,Nutrients!$EO$77,Nutrients!$EO$78)))))*Q$8))/2000*1000000","v":0.29699999999999999},{"$f":"(SUMPRODUCT(R$9:R$229,Nutrients!$EO$8:$EO$228)+(IF($A$7=Nutrients!$B$8,Nutrients!$EO$8,Nutrients!$EO$9)*R$7)+(((IF($A$8=Nutrients!$B$79,Nutrients!$EO$79,(IF($A$8=Nutrients!$B$77,Nutrients!$EO$77,Nutrients!$EO$78)))))*R$8))/2000*1000000","v":0.24750000000000003},{"$f":"(SUMPRODUCT(S$9:S$229,Nutrients!$EO$8:$EO$228)+(IF($A$7=Nutrients!$B$8,Nutrients!$EO$8,Nutrients!$EO$9)*S$7)+(((IF($A$8=Nutrients!$B$79,Nutrients!$EO$79,(IF($A$8=Nutrients!$B$77,Nutrients!$EO$77,Nutrients!$EO$78)))))*S$8))/2000*1000000","v":0.19800000000000001},{"$f":"(SUMPRODUCT(T$9:T$229,Nutrients!$EO$8:$EO$228)+(IF($A$7=Nutrients!$B$8,Nutrients!$EO$8,Nutrients!$EO$9)*T$7)+(((IF($A$8=Nutrients!$B$79,Nutrients!$EO$79,(IF($A$8=Nutrients!$B$77,Nutrients!$EO$77,Nutrients!$EO$78)))))*T$8))/2000*1000000","v":0.14849999999999999},{"$f":"(SUMPRODUCT(U$9:U$229,Nutrients!$EO$8:$EO$228)+(IF($A$7=Nutrients!$B$8,Nutrients!$EO$8,Nutrients!$EO$9)*U$7)+(((IF($A$8=Nutrients!$B$79,Nutrients!$EO$79,(IF($A$8=Nutrients!$B$77,Nutrients!$EO$77,Nutrients!$EO$78)))))*U$8))/2000*1000000","v":0.14849999999999999},null,{"$f":"(SUMPRODUCT(W$9:W$229,Nutrients!$EO$8:$EO$228)+(IF($A$7=Nutrients!$B$8,Nutrients!$EO$8,Nutrients!$EO$9)*W$7)+(((IF($A$8=Nutrients!$B$79,Nutrients!$EO$79,(IF($A$8=Nutrients!$B$77,Nutrients!$EO$77,Nutrients!$EO$78)))))*W$8))/2000*1000000","v":0.29699999999999999},{"$f":"(SUMPRODUCT(X$9:X$229,Nutrients!$EO$8:$EO$228)+(IF($A$7=Nutrients!$B$8,Nutrients!$EO$8,Nutrients!$EO$9)*X$7)+(((IF($A$8=Nutrients!$B$79,Nutrients!$EO$79,(IF($A$8=Nutrients!$B$77,Nutrients!$EO$77,Nutrients!$EO$78)))))*X$8))/2000*1000000","v":0.29699999999999999},{"$f":"(SUMPRODUCT(Y$9:Y$229,Nutrients!$EO$8:$EO$228)+(IF($A$7=Nutrients!$B$8,Nutrients!$EO$8,Nutrients!$EO$9)*Y$7)+(((IF($A$8=Nutrients!$B$79,Nutrients!$EO$79,(IF($A$8=Nutrients!$B$77,Nutrients!$EO$77,Nutrients!$EO$78)))))*Y$8))/2000*1000000","v":0.24750000000000003},{"$f":"(SUMPRODUCT(Z$9:Z$229,Nutrients!$EO$8:$EO$228)+(IF($A$7=Nutrients!$B$8,Nutrients!$EO$8,Nutrients!$EO$9)*Z$7)+(((IF($A$8=Nutrients!$B$79,Nutrients!$EO$79,(IF($A$8=Nutrients!$B$77,Nutrients!$EO$77,Nutrients!$EO$78)))))*Z$8))/2000*1000000","v":0.19800000000000001},{"$f":"(SUMPRODUCT(AA$9:AA$229,Nutrients!$EO$8:$EO$228)+(IF($A$7=Nutrients!$B$8,Nutrients!$EO$8,Nutrients!$EO$9)*AA$7)+(((IF($A$8=Nutrients!$B$79,Nutrients!$EO$79,(IF($A$8=Nutrients!$B$77,Nutrients!$EO$77,Nutrients!$EO$78)))))*AA$8))/2000*1000000","v":0.14849999999999999},{"$f":"(SUMPRODUCT(AB$9:AB$229,Nutrients!$EO$8:$EO$228)+(IF($A$7=Nutrients!$B$8,Nutrients!$EO$8,Nutrients!$EO$9)*AB$7)+(((IF($A$8=Nutrients!$B$79,Nutrients!$EO$79,(IF($A$8=Nutrients!$B$77,Nutrients!$EO$77,Nutrients!$EO$78)))))*AB$8))/2000*1000000","v":0.14849999999999999},null,{"$f":"(SUMPRODUCT(AD$9:AD$229,Nutrients!$EO$8:$EO$228)+(IF($A$7=Nutrients!$B$8,Nutrients!$EO$8,Nutrients!$EO$9)*AD$7)+(((IF($A$8=Nutrients!$B$79,Nutrients!$EO$79,(IF($A$8=Nutrients!$B$77,Nutrients!$EO$77,Nutrients!$EO$78)))))*AD$8))/2000*1000000","v":0.29699999999999999},{"$f":"(SUMPRODUCT(AE$9:AE$229,Nutrients!$EO$8:$EO$228)+(IF($A$7=Nutrients!$B$8,Nutrients!$EO$8,Nutrients!$EO$9)*AE$7)+(((IF($A$8=Nutrients!$B$79,Nutrients!$EO$79,(IF($A$8=Nutrients!$B$77,Nutrients!$EO$77,Nutrients!$EO$78)))))*AE$8))/2000*1000000","v":0.29699999999999999},{"$f":"(SUMPRODUCT(AF$9:AF$229,Nutrients!$EO$8:$EO$228)+(IF($A$7=Nutrients!$B$8,Nutrients!$EO$8,Nutrients!$EO$9)*AF$7)+(((IF($A$8=Nutrients!$B$79,Nutrients!$EO$79,(IF($A$8=Nutrients!$B$77,Nutrients!$EO$77,Nutrients!$EO$78)))))*AF$8))/2000*1000000","v":0.24750000000000003},{"$f":"(SUMPRODUCT(AG$9:AG$229,Nutrients!$EO$8:$EO$228)+(IF($A$7=Nutrients!$B$8,Nutrients!$EO$8,Nutrients!$EO$9)*AG$7)+(((IF($A$8=Nutrients!$B$79,Nutrients!$EO$79,(IF($A$8=Nutrients!$B$77,Nutrients!$EO$77,Nutrients!$EO$78)))))*AG$8))/2000*1000000","v":0.19800000000000001},{"$f":"(SUMPRODUCT(AH$9:AH$229,Nutrients!$EO$8:$EO$228)+(IF($A$7=Nutrients!$B$8,Nutrients!$EO$8,Nutrients!$EO$9)*AH$7)+(((IF($A$8=Nutrients!$B$79,Nutrients!$EO$79,(IF($A$8=Nutrients!$B$77,Nutrients!$EO$77,Nutrients!$EO$78)))))*AH$8))/2000*1000000","v":0.14849999999999999},{"$f":"(SUMPRODUCT(AI$9:AI$229,Nutrients!$EO$8:$EO$228)+(IF($A$7=Nutrients!$B$8,Nutrients!$EO$8,Nutrients!$EO$9)*AI$7)+(((IF($A$8=Nutrients!$B$79,Nutrients!$EO$79,(IF($A$8=Nutrients!$B$77,Nutrients!$EO$77,Nutrients!$EO$78)))))*AI$8))/2000*1000000","v":0.14849999999999999},null,{"$f":"(SUMPRODUCT(AK$9:AK$229,Nutrients!$EO$8:$EO$228)+(IF($A$7=Nutrients!$B$8,Nutrients!$EO$8,Nutrients!$EO$9)*AK$7)+(((IF($A$8=Nutrients!$B$79,Nutrients!$EO$79,(IF($A$8=Nutrients!$B$77,Nutrients!$EO$77,Nutrients!$EO$78)))))*AK$8))/2000*1000000","v":0.29699999999999999},{"$f":"(SUMPRODUCT(AL$9:AL$229,Nutrients!$EO$8:$EO$228)+(IF($A$7=Nutrients!$B$8,Nutrients!$EO$8,Nutrients!$EO$9)*AL$7)+(((IF($A$8=Nutrients!$B$79,Nutrients!$EO$79,(IF($A$8=Nutrients!$B$77,Nutrients!$EO$77,Nutrients!$EO$78)))))*AL$8))/2000*1000000","v":0.29699999999999999},{"$f":"(SUMPRODUCT(AM$9:AM$229,Nutrients!$EO$8:$EO$228)+(IF($A$7=Nutrients!$B$8,Nutrients!$EO$8,Nutrients!$EO$9)*AM$7)+(((IF($A$8=Nutrients!$B$79,Nutrients!$EO$79,(IF($A$8=Nutrients!$B$77,Nutrients!$EO$77,Nutrients!$EO$78)))))*AM$8))/2000*1000000","v":0.24750000000000003},{"$f":"(SUMPRODUCT(AN$9:AN$229,Nutrients!$EO$8:$EO$228)+(IF($A$7=Nutrients!$B$8,Nutrients!$EO$8,Nutrients!$EO$9)*AN$7)+(((IF($A$8=Nutrients!$B$79,Nutrients!$EO$79,(IF($A$8=Nutrients!$B$77,Nutrients!$EO$77,Nutrients!$EO$78)))))*AN$8))/2000*1000000","v":0.19800000000000001},{"$f":"(SUMPRODUCT(AO$9:AO$229,Nutrients!$EO$8:$EO$228)+(IF($A$7=Nutrients!$B$8,Nutrients!$EO$8,Nutrients!$EO$9)*AO$7)+(((IF($A$8=Nutrients!$B$79,Nutrients!$EO$79,(IF($A$8=Nutrients!$B$77,Nutrients!$EO$77,Nutrients!$EO$78)))))*AO$8))/2000*1000000","v":0.14849999999999999},{"$f":"(SUMPRODUCT(AP$9:AP$229,Nutrients!$EO$8:$EO$228)+(IF($A$7=Nutrients!$B$8,Nutrients!$EO$8,Nutrients!$EO$9)*AP$7)+(((IF($A$8=Nutrients!$B$79,Nutrients!$EO$79,(IF($A$8=Nutrients!$B$77,Nutrients!$EO$77,Nutrients!$EO$78)))))*AP$8))/2000*1000000","v":0.14849999999999999},null,{"$f":"(SUMPRODUCT(AR$9:AR$229,Nutrients!$EO$8:$EO$228)+(IF($A$7=Nutrients!$B$8,Nutrients!$EO$8,Nutrients!$EO$9)*AR$7)+(((IF($A$8=Nutrients!$B$79,Nutrients!$EO$79,(IF($A$8=Nutrients!$B$77,Nutrients!$EO$77,Nutrients!$EO$78)))))*AR$8))/2000*1000000","v":0.29699999999999999},{"$f":"(SUMPRODUCT(AS$9:AS$229,Nutrients!$EO$8:$EO$228)+(IF($A$7=Nutrients!$B$8,Nutrients!$EO$8,Nutrients!$EO$9)*AS$7)+(((IF($A$8=Nutrients!$B$79,Nutrients!$EO$79,(IF($A$8=Nutrients!$B$77,Nutrients!$EO$77,Nutrients!$EO$78)))))*AS$8))/2000*1000000","v":0.29699999999999999},{"$f":"(SUMPRODUCT(AT$9:AT$229,Nutrients!$EO$8:$EO$228)+(IF($A$7=Nutrients!$B$8,Nutrients!$EO$8,Nutrients!$EO$9)*AT$7)+(((IF($A$8=Nutrients!$B$79,Nutrients!$EO$79,(IF($A$8=Nutrients!$B$77,Nutrients!$EO$77,Nutrients!$EO$78)))))*AT$8))/2000*1000000","v":0.24750000000000003},{"$f":"(SUMPRODUCT(AU$9:AU$229,Nutrients!$EO$8:$EO$228)+(IF($A$7=Nutrients!$B$8,Nutrients!$EO$8,Nutrients!$EO$9)*AU$7)+(((IF($A$8=Nutrients!$B$79,Nutrients!$EO$79,(IF($A$8=Nutrients!$B$77,Nutrients!$EO$77,Nutrients!$EO$78)))))*AU$8))/2000*1000000","v":0.19800000000000001},{"$f":"(SUMPRODUCT(AV$9:AV$229,Nutrients!$EO$8:$EO$228)+(IF($A$7=Nutrients!$B$8,Nutrients!$EO$8,Nutrients!$EO$9)*AV$7)+(((IF($A$8=Nutrients!$B$79,Nutrients!$EO$79,(IF($A$8=Nutrients!$B$77,Nutrients!$EO$77,Nutrients!$EO$78)))))*AV$8))/2000*1000000","v":0.14849999999999999},{"$f":"(SUMPRODUCT(AW$9:AW$229,Nutrients!$EO$8:$EO$228)+(IF($A$7=Nutrients!$B$8,Nutrients!$EO$8,Nutrients!$EO$9)*AW$7)+(((IF($A$8=Nutrients!$B$79,Nutrients!$EO$79,(IF($A$8=Nutrients!$B$77,Nutrients!$EO$77,Nutrients!$EO$78)))))*AW$8))/2000*1000000","v":0.14849999999999999}]
["  Selenium added, ppm",{"$f":"(SUMPRODUCT(B$9:B$229,Nutrients!$EP$8:$EP$228)+(IF($A$7=Nutrients!$B$8,Nutrients!$EP$8,Nutrients!$EP$9)*B$7)+(((IF($A$8=Nutrients!$B$79,Nutrients!$EP$79,(IF($A$8=Nutrients!$B$77,Nutrients!$EP$77,Nutrients!$EP$78)))))*B$8))/2000*1000000","v":0.29699999999999999},{"$f":"(SUMPRODUCT(C$9:C$229,Nutrients!$EP$8:$EP$228)+(IF($A$7=Nutrients!$B$8,Nutrients!$EP$8,Nutrients!$EP$9)*C$7)+(((IF($A$8=Nutrients!$B$79,Nutrients!$EP$79,(IF($A$8=Nutrients!$B$77,Nutrients!$EP$77,Nutrients!$EP$78)))))*C$8))/2000*1000000","v":0.29699999999999999},{"$f":"(SUMPRODUCT(D$9:D$229,Nutrients!$EP$8:$EP$228)+(IF($A$7=Nutrients!$B$8,Nutrients!$EP$8,Nutrients!$EP$9)*D$7)+(((IF($A$8=Nutrients!$B$79,Nutrients!$EP$79,(IF($A$8=Nutrients!$B$77,Nutrients!$EP$77,Nutrients!$EP$78)))))*D$8))/2000*1000000","v":0.24750000000000003},{"$f":"(SUMPRODUCT(E$9:E$229,Nutrients!$EP$8:$EP$228)+(IF($A$7=Nutrients!$B$8,Nutrients!$EP$8,Nutrients!$EP$9)*E$7)+(((IF($A$8=Nutrients!$B$79,Nutrients!$EP$79,(IF($A$8=Nutrients!$B$77,Nutrients!$EP$77,Nutrients!$EP$78)))))*E$8))/2000*1000000","v":0.19800000000000001},{"$f":"(SUMPRODUCT(F$9:F$229,Nutrients!$EP$8:$EP$228)+(IF($A$7=Nutrients!$B$8,Nutrients!$EP$8,Nutrients!$EP$9)*F$7)+(((IF($A$8=Nutrients!$B$79,Nutrients!$EP$79,(IF($A$8=Nutrients!$B$77,Nutrients!$EP$77,Nutrients!$EP$78)))))*F$8))/2000*1000000","v":0.14849999999999999},{"$f":"(SUMPRODUCT(G$9:G$229,Nutrients!$EP$8:$EP$228)+(IF($A$7=Nutrients!$B$8,Nutrients!$EP$8,Nutrients!$EP$9)*G$7)+(((IF($A$8=Nutrients!$B$79,Nutrients!$EP$79,(IF($A$8=Nutrients!$B$77,Nutrients!$EP$77,Nutrients!$EP$78)))))*G$8))/2000*1000000","v":0.14849999999999999},null,{"$f":"(SUMPRODUCT(I$9:I$229,Nutrients!$EP$8:$EP$228)+(IF($A$7=Nutrients!$B$8,Nutrients!$EP$8,Nutrients!$EP$9)*I$7)+(((IF($A$8=Nutrients!$B$79,Nutrients!$EP$79,(IF($A$8=Nutrients!$B$77,Nutrients!$EP$77,Nutrients!$EP$78)))))*I$8))/2000*1000000","v":0.29699999999999999},{"$f":"(SUMPRODUCT(J$9:J$229,Nutrients!$EP$8:$EP$228)+(IF($A$7=Nutrients!$B$8,Nutrients!$EP$8,Nutrients!$EP$9)*J$7)+(((IF($A$8=Nutrients!$B$79,Nutrients!$EP$79,(IF($A$8=Nutrients!$B$77,Nutrients!$EP$77,Nutrients!$EP$78)))))*J$8))/2000*1000000","v":0.29699999999999999},{"$f":"(SUMPRODUCT(K$9:K$229,Nutrients!$EP$8:$EP$228)+(IF($A$7=Nutrients!$B$8,Nutrients!$EP$8,Nutrients!$EP$9)*K$7)+(((IF($A$8=Nutrients!$B$79,Nutrients!$EP$79,(IF($A$8=Nutrients!$B$77,Nutrients!$EP$77,Nutrients!$EP$78)))))*K$8))/2000*1000000","v":0.24750000000000003},{"$f":"(SUMPRODUCT(L$9:L$229,Nutrients!$EP$8:$EP$228)+(IF($A$7=Nutrients!$B$8,Nutrients!$EP$8,Nutrients!$EP$9)*L$7)+(((IF($A$8=Nutrients!$B$79,Nutrients!$EP$79,(IF($A$8=Nutrients!$B$77,Nutrients!$EP$77,Nutrients!$EP$78)))))*L$8))/2000*1000000","v":0.19800000000000001},{"$f":"(SUMPRODUCT(M$9:M$229,Nutrients!$EP$8:$EP$228)+(IF($A$7=Nutrients!$B$8,Nutrients!$EP$8,Nutrients!$EP$9)*M$7)+(((IF($A$8=Nutrients!$B$79,Nutrients!$EP$79,(IF($A$8=Nutrients!$B$77,Nutrients!$EP$77,Nutrients!$EP$78)))))*M$8))/2000*1000000","v":0.14849999999999999},{"$f":"(SUMPRODUCT(N$9:N$229,Nutrients!$EP$8:$EP$228)+(IF($A$7=Nutrients!$B$8,Nutrients!$EP$8,Nutrients!$EP$9)*N$7)+(((IF($A$8=Nutrients!$B$79,Nutrients!$EP$79,(IF($A$8=Nutrients!$B$77,Nutrients!$EP$77,Nutrients!$EP$78)))))*N$8))/2000*1000000","v":0.14849999999999999},null,{"$f":"(SUMPRODUCT(P$9:P$229,Nutrients!$EP$8:$EP$228)+(IF($A$7=Nutrients!$B$8,Nutrients!$EP$8,Nutrients!$EP$9)*P$7)+(((IF($A$8=Nutrients!$B$79,Nutrients!$EP$79,(IF($A$8=Nutrients!$B$77,Nutrients!$EP$77,Nutrients!$EP$78)))))*P$8))/2000*1000000","v":0.29699999999999999},{"$f":"(SUMPRODUCT(Q$9:Q$229,Nutrients!$EP$8:$EP$228)+(IF($A$7=Nutrients!$B$8,Nutrients!$EP$8,Nutrients!$EP$9)*Q$7)+(((IF($A$8=Nutrients!$B$79,Nutrients!$EP$79,(IF($A$8=Nutrients!$B$77,Nutrients!$EP$77,Nutrients!$EP$78)))))*Q$8))/2000*1000000","v":0.29699999999999999},{"$f":"(SUMPRODUCT(R$9:R$229,Nutrients!$EP$8:$EP$228)+(IF($A$7=Nutrients!$B$8,Nutrients!$EP$8,Nutrients!$EP$9)*R$7)+(((IF($A$8=Nutrients!$B$79,Nutrients!$EP$79,(IF($A$8=Nutrients!$B$77,Nutrients!$EP$77,Nutrients!$EP$78)))))*R$8))/2000*1000000","v":0.24750000000000003},{"$f":"(SUMPRODUCT(S$9:S$229,Nutrients!$EP$8:$EP$228)+(IF($A$7=Nutrients!$B$8,Nutrients!$EP$8,Nutrients!$EP$9)*S$7)+(((IF($A$8=Nutrients!$B$79,Nutrients!$EP$79,(IF($A$8=Nutrients!$B$77,Nutrients!$EP$77,Nutrients!$EP$78)))))*S$8))/2000*1000000","v":0.19800000000000001},{"$f":"(SUMPRODUCT(T$9:T$229,Nutrients!$EP$8:$EP$228)+(IF($A$7=Nutrients!$B$8,Nutrients!$EP$8,Nutrients!$EP$9)*T$7)+(((IF($A$8=Nutrients!$B$79,Nutrients!$EP$79,(IF($A$8=Nutrients!$B$77,Nutrients!$EP$77,Nutrients!$EP$78)))))*T$8))/2000*1000000","v":0.14849999999999999},{"$f":"(SUMPRODUCT(U$9:U$229,Nutrients!$EP$8:$EP$228)+(IF($A$7=Nutrients!$B$8,Nutrients!$EP$8,Nutrients!$EP$9)*U$7)+(((IF($A$8=Nutrients!$B$79,Nutrients!$EP$79,(IF($A$8=Nutrients!$B$77,Nutrients!$EP$77,Nutrients!$EP$78)))))*U$8))/2000*1000000","v":0.14849999999999999},null,{"$f":"(SUMPRODUCT(W$9:W$229,Nutrients!$EP$8:$EP$228)+(IF($A$7=Nutrients!$B$8,Nutrients!$EP$8,Nutrients!$EP$9)*W$7)+(((IF($A$8=Nutrients!$B$79,Nutrients!$EP$79,(IF($A$8=Nutrients!$B$77,Nutrients!$EP$77,Nutrients!$EP$78)))))*W$8))/2000*1000000","v":0.29699999999999999},{"$f":"(SUMPRODUCT(X$9:X$229,Nutrients!$EP$8:$EP$228)+(IF($A$7=Nutrients!$B$8,Nutrients!$EP$8,Nutrients!$EP$9)*X$7)+(((IF($A$8=Nutrients!$B$79,Nutrients!$EP$79,(IF($A$8=Nutrients!$B$77,Nutrients!$EP$77,Nutrients!$EP$78)))))*X$8))/2000*1000000","v":0.29699999999999999},{"$f":"(SUMPRODUCT(Y$9:Y$229,Nutrients!$EP$8:$EP$228)+(IF($A$7=Nutrients!$B$8,Nutrients!$EP$8,Nutrients!$EP$9)*Y$7)+(((IF($A$8=Nutrients!$B$79,Nutrients!$EP$79,(IF($A$8=Nutrients!$B$77,Nutrients!$EP$77,Nutrients!$EP$78)))))*Y$8))/2000*1000000","v":0.24750000000000003},{"$f":"(SUMPRODUCT(Z$9:Z$229,Nutrients!$EP$8:$EP$228)+(IF($A$7=Nutrients!$B$8,Nutrients!$EP$8,Nutrients!$EP$9)*Z$7)+(((IF($A$8=Nutrients!$B$79,Nutrients!$EP$79,(IF($A$8=Nutrients!$B$77,Nutrients!$EP$77,Nutrients!$EP$78)))))*Z$8))/2000*1000000","v":0.19800000000000001},{"$f":"(SUMPRODUCT(AA$9:AA$229,Nutrients!$EP$8:$EP$228)+(IF($A$7=Nutrients!$B$8,Nutrients!$EP$8,Nutrients!$EP$9)*AA$7)+(((IF($A$8=Nutrients!$B$79,Nutrients!$EP$79,(IF($A$8=Nutrients!$B$77,Nutrients!$EP$77,Nutrients!$EP$78)))))*AA$8))/2000*1000000","v":0.14849999999999999},{"$f":"(SUMPRODUCT(AB$9:AB$229,Nutrients!$EP$8:$EP$228)+(IF($A$7=Nutrients!$B$8,Nutrients!$EP$8,Nutrients!$EP$9)*AB$7)+(((IF($A$8=Nutrients!$B$79,Nutrients!$EP$79,(IF($A$8=Nutrients!$B$77,Nutrients!$EP$77,Nutrients!$EP$78)))))*AB$8))/2000*1000000","v":0.14849999999999999},null,{"$f":"(SUMPRODUCT(AD$9:AD$229,Nutrients!$EP$8:$EP$228)+(IF($A$7=Nutrients!$B$8,Nutrients!$EP$8,Nutrients!$EP$9)*AD$7)+(((IF($A$8=Nutrients!$B$79,Nutrients!$EP$79,(IF($A$8=Nutrients!$B$77,Nutrients!$EP$77,Nutrients!$EP$78)))))*AD$8))/2000*1000000","v":0.29699999999999999},{"$f":"(SUMPRODUCT(AE$9:AE$229,Nutrients!$EP$8:$EP$228)+(IF($A$7=Nutrients!$B$8,Nutrients!$EP$8,Nutrients!$EP$9)*AE$7)+(((IF($A$8=Nutrients!$B$79,Nutrients!$EP$79,(IF($A$8=Nutrients!$B$77,Nutrients!$EP$77,Nutrients!$EP$78)))))*AE$8))/2000*1000000","v":0.29699999999999999},{"$f":"(SUMPRODUCT(AF$9:AF$229,Nutrients!$EP$8:$EP$228)+(IF($A$7=Nutrients!$B$8,Nutrients!$EP$8,Nutrients!$EP$9)*AF$7)+(((IF($A$8=Nutrients!$B$79,Nutrients!$EP$79,(IF($A$8=Nutrients!$B$77,Nutrients!$EP$77,Nutrients!$EP$78)))))*AF$8))/2000*1000000","v":0.24750000000000003},{"$f":"(SUMPRODUCT(AG$9:AG$229,Nutrients!$EP$8:$EP$228)+(IF($A$7=Nutrients!$B$8,Nutrients!$EP$8,Nutrients!$EP$9)*AG$7)+(((IF($A$8=Nutrients!$B$79,Nutrients!$EP$79,(IF($A$8=Nutrients!$B$77,Nutrients!$EP$77,Nutrients!$EP$78)))))*AG$8))/2000*1000000","v":0.19800000000000001},{"$f":"(SUMPRODUCT(AH$9:AH$229,Nutrients!$EP$8:$EP$228)+(IF($A$7=Nutrients!$B$8,Nutrients!$EP$8,Nutrients!$EP$9)*AH$7)+(((IF($A$8=Nutrients!$B$79,Nutrients!$EP$79,(IF($A$8=Nutrients!$B$77,Nutrients!$EP$77,Nutrients!$EP$78)))))*AH$8))/2000*1000000","v":0.14849999999999999},{"$f":"(SUMPRODUCT(AI$9:AI$229,Nutrients!$EP$8:$EP$228)+(IF($A$7=Nutrients!$B$8,Nutrients!$EP$8,Nutrients!$EP$9)*AI$7)+(((IF($A$8=Nutrients!$B$79,Nutrients!$EP$79,(IF($A$8=Nutrients!$B$77,Nutrients!$EP$77,Nutrients!$EP$78)))))*AI$8))/2000*1000000","v":0.14849999999999999},null,{"$f":"(SUMPRODUCT(AK$9:AK$229,Nutrients!$EP$8:$EP$228)+(IF($A$7=Nutrients!$B$8,Nutrients!$EP$8,Nutrients!$EP$9)*AK$7)+(((IF($A$8=Nutrients!$B$79,Nutrients!$EP$79,(IF($A$8=Nutrients!$B$77,Nutrients!$EP$77,Nutrients!$EP$78)))))*AK$8))/2000*1000000","v":0.29699999999999999},{"$f":"(SUMPRODUCT(AL$9:AL$229,Nutrients!$EP$8:$EP$228)+(IF($A$7=Nutrients!$B$8,Nutrients!$EP$8,Nutrients!$EP$9)*AL$7)+(((IF($A$8=Nutrients!$B$79,Nutrients!$EP$79,(IF($A$8=Nutrients!$B$77,Nutrients!$EP$77,Nutrients!$EP$78)))))*AL$8))/2000*1000000","v":0.29699999999999999},{"$f":"(SUMPRODUCT(AM$9:AM$229,Nutrients!$EP$8:$EP$228)+(IF($A$7=Nutrients!$B$8,Nutrients!$EP$8,Nutrients!$EP$9)*AM$7)+(((IF($A$8=Nutrients!$B$79,Nutrients!$EP$79,(IF($A$8=Nutrients!$B$77,Nutrients!$EP$77,Nutrients!$EP$78)))))*AM$8))/2000*1000000","v":0.24750000000000003},{"$f":"(SUMPRODUCT(AN$9:AN$229,Nutrients!$EP$8:$EP$228)+(IF($A$7=Nutrients!$B$8,Nutrients!$EP$8,Nutrients!$EP$9)*AN$7)+(((IF($A$8=Nutrients!$B$79,Nutrients!$EP$79,(IF($A$8=Nutrients!$B$77,Nutrients!$EP$77,Nutrients!$EP$78)))))*AN$8))/2000*1000000","v":0.19800000000000001},{"$f":"(SUMPRODUCT(AO$9:AO$229,Nutrients!$EP$8:$EP$228)+(IF($A$7=Nutrients!$B$8,Nutrients!$EP$8,Nutrients!$EP$9)*AO$7)+(((IF($A$8=Nutrients!$B$79,Nutrients!$EP$79,(IF($A$8=Nutrients!$B$77,Nutrients!$EP$77,Nutrients!$EP$78)))))*AO$8))/2000*1000000","v":0.14849999999999999},{"$f":"(SUMPRODUCT(AP$9:AP$229,Nutrients!$EP$8:$EP$228)+(IF($A$7=Nutrients!$B$8,Nutrients!$EP$8,Nutrients!$EP$9)*AP$7)+(((IF($A$8=Nutrients!$B$79,Nutrients!$EP$79,(IF($A$8=Nutrients!$B$77,Nutrients!$EP$77,Nutrients!$EP$78)))))*AP$8))/2000*1000000","v":0.14849999999999999},null,{"$f":"(SUMPRODUCT(AR$9:AR$229,Nutrients!$EP$8:$EP$228)+(IF($A$7=Nutrients!$B$8,Nutrients!$EP$8,Nutrients!$EP$9)*AR$7)+(((IF($A$8=Nutrients!$B$79,Nutrients!$EP$79,(IF($A$8=Nutrients!$B$77,Nutrients!$EP$77,Nutrients!$EP$78)))))*AR$8))/2000*1000000","v":0.29699999999999999},{"$f":"(SUMPRODUCT(AS$9:AS$229,Nutrients!$EP$8:$EP$228)+(IF($A$7=Nutrients!$B$8,Nutrients!$EP$8,Nutrients!$EP$9)*AS$7)+(((IF($A$8=Nutrients!$B$79,Nutrients!$EP$79,(IF($A$8=Nutrients!$B$77,Nutrients!$EP$77,Nutrients!$EP$78)))))*AS$8))/2000*1000000","v":0.29699999999999999},{"$f":"(SUMPRODUCT(AT$9:AT$229,Nutrients!$EP$8:$EP$228)+(IF($A$7=Nutrients!$B$8,Nutrients!$EP$8,Nutrients!$EP$9)*AT$7)+(((IF($A$8=Nutrients!$B$79,Nutrients!$EP$79,(IF($A$8=Nutrients!$B$77,Nutrients!$EP$77,Nutrients!$EP$78)))))*AT$8))/2000*1000000","v":0.24750000000000003},{"$f":"(SUMPRODUCT(AU$9:AU$229,Nutrients!$EP$8:$EP$228)+(IF($A$7=Nutrients!$B$8,Nutrients!$EP$8,Nutrients!$EP$9)*AU$7)+(((IF($A$8=Nutrients!$B$79,Nutrients!$EP$79,(IF($A$8=Nutrients!$B$77,Nutrients!$EP$77,Nutrients!$EP$78)))))*AU$8))/2000*1000000","v":0.19800000000000001},{"$f":"(SUMPRODUCT(AV$9:AV$229,Nutrients!$EP$8:$EP$228)+(IF($A$7=Nutrients!$B$8,Nutrients!$EP$8,Nutrients!$EP$9)*AV$7)+(((IF($A$8=Nutrients!$B$79,Nutrients!$EP$79,(IF($A$8=Nutrients!$B$77,Nutrients!$EP$77,Nutrients!$EP$78)))))*AV$8))/2000*1000000","v":0.14849999999999999},{"$f":"(SUMPRODUCT(AW$9:AW$229,Nutrients!$EP$8:$EP$228)+(IF($A$7=Nutrients!$B$8,Nutrients!$EP$8,Nutrients!$EP$9)*AW$7)+(((IF($A$8=Nutrients!$B$79,Nutrients!$EP$79,(IF($A$8=Nutrients!$B$77,Nutrients!$EP$77,Nutrients!$EP$78)))))*AW$8))/2000*1000000","v":0.14849999999999999}]
["  Chromium added, ppb",{"$f":"(SUMPRODUCT(B$9:B$229,Nutrients!$EQ$8:$EQ$228)+(IF($A$7=Nutrients!$B$8,Nutrients!$EQ$8,Nutrients!$EQ$9)*B$7)+(((IF($A$8=Nutrients!$B$79,Nutrients!$EQ$79,(IF($A$8=Nutrients!$B$77,Nutrients!$EQ$77,Nutrients!$EQ$78)))))*B$8))/2000*1000000000","v":0},{"$f":"(SUMPRODUCT(C$9:C$229,Nutrients!$EQ$8:$EQ$228)+(IF($A$7=Nutrients!$B$8,Nutrients!$EQ$8,Nutrients!$EQ$9)*C$7)+(((IF($A$8=Nutrients!$B$79,Nutrients!$EQ$79,(IF($A$8=Nutrients!$B$77,Nutrients!$EQ$77,Nutrients!$EQ$78)))))*C$8))/2000*1000000000","v":0},{"$f":"(SUMPRODUCT(D$9:D$229,Nutrients!$EQ$8:$EQ$228)+(IF($A$7=Nutrients!$B$8,Nutrients!$EQ$8,Nutrients!$EQ$9)*D$7)+(((IF($A$8=Nutrients!$B$79,Nutrients!$EQ$79,(IF($A$8=Nutrients!$B$77,Nutrients!$EQ$77,Nutrients!$EQ$78)))))*D$8))/2000*1000000000","v":0},{"$f":"(SUMPRODUCT(E$9:E$229,Nutrients!$EQ$8:$EQ$228)+(IF($A$7=Nutrients!$B$8,Nutrients!$EQ$8,Nutrients!$EQ$9)*E$7)+(((IF($A$8=Nutrients!$B$79,Nutrients!$EQ$79,(IF($A$8=Nutrients!$B$77,Nutrients!$EQ$77,Nutrients!$EQ$78)))))*E$8))/2000*1000000000","v":0},{"$f":"(SUMPRODUCT(F$9:F$229,Nutrients!$EQ$8:$EQ$228)+(IF($A$7=Nutrients!$B$8,Nutrients!$EQ$8,Nutrients!$EQ$9)*F$7)+(((IF($A$8=Nutrients!$B$79,Nutrients!$EQ$79,(IF($A$8=Nutrients!$B$77,Nutrients!$EQ$77,Nutrients!$EQ$78)))))*F$8))/2000*1000000000","v":0},{"$f":"(SUMPRODUCT(G$9:G$229,Nutrients!$EQ$8:$EQ$228)+(IF($A$7=Nutrients!$B$8,Nutrients!$EQ$8,Nutrients!$EQ$9)*G$7)+(((IF($A$8=Nutrients!$B$79,Nutrients!$EQ$79,(IF($A$8=Nutrients!$B$77,Nutrients!$EQ$77,Nutrients!$EQ$78)))))*G$8))/2000*1000000000","v":0},null,{"$f":"(SUMPRODUCT(I$9:I$229,Nutrients!$EQ$8:$EQ$228)+(IF($A$7=Nutrients!$B$8,Nutrients!$EQ$8,Nutrients!$EQ$9)*I$7)+(((IF($A$8=Nutrients!$B$79,Nutrients!$EQ$79,(IF($A$8=Nutrients!$B$77,Nutrients!$EQ$77,Nutrients!$EQ$78)))))*I$8))/2000*1000000000","v":0},{"$f":"(SUMPRODUCT(J$9:J$229,Nutrients!$EQ$8:$EQ$228)+(IF($A$7=Nutrients!$B$8,Nutrients!$EQ$8,Nutrients!$EQ$9)*J$7)+(((IF($A$8=Nutrients!$B$79,Nutrients!$EQ$79,(IF($A$8=Nutrients!$B$77,Nutrients!$EQ$77,Nutrients!$EQ$78)))))*J$8))/2000*1000000000","v":0},{"$f":"(SUMPRODUCT(K$9:K$229,Nutrients!$EQ$8:$EQ$228)+(IF($A$7=Nutrients!$B$8,Nutrients!$EQ$8,Nutrients!$EQ$9)*K$7)+(((IF($A$8=Nutrients!$B$79,Nutrients!$EQ$79,(IF($A$8=Nutrients!$B$77,Nutrients!$EQ$77,Nutrients!$EQ$78)))))*K$8))/2000*1000000000","v":0},{"$f":"(SUMPRODUCT(L$9:L$229,Nutrients!$EQ$8:$EQ$228)+(IF($A$7=Nutrients!$B$8,Nutrients!$EQ$8,Nutrients!$EQ$9)*L$7)+(((IF($A$8=Nutrients!$B$79,Nutrients!$EQ$79,(IF($A$8=Nutrients!$B$77,Nutrients!$EQ$77,Nutrients!$EQ$78)))))*L$8))/2000*1000000000","v":0},{"$f":"(SUMPRODUCT(M$9:M$229,Nutrients!$EQ$8:$EQ$228)+(IF($A$7=Nutrients!$B$8,Nutrients!$EQ$8,Nutrients!$EQ$9)*M$7)+(((IF($A$8=Nutrients!$B$79,Nutrients!$EQ$79,(IF($A$8=Nutrients!$B$77,Nutrients!$EQ$77,Nutrients!$EQ$78)))))*M$8))/2000*1000000000","v":0},{"$f":"(SUMPRODUCT(N$9:N$229,Nutrients!$EQ$8:$EQ$228)+(IF($A$7=Nutrients!$B$8,Nutrients!$EQ$8,Nutrients!$EQ$9)*N$7)+(((IF($A$8=Nutrients!$B$79,Nutrients!$EQ$79,(IF($A$8=Nutrients!$B$77,Nutrients!$EQ$77,Nutrients!$EQ$78)))))*N$8))/2000*1000000000","v":0},null,{"$f":"(SUMPRODUCT(P$9:P$229,Nutrients!$EQ$8:$EQ$228)+(IF($A$7=Nutrients!$B$8,Nutrients!$EQ$8,Nutrients!$EQ$9)*P$7)+(((IF($A$8=Nutrients!$B$79,Nutrients!$EQ$79,(IF($A$8=Nutrients!$B$77,Nutrients!$EQ$77,Nutrients!$EQ$78)))))*P$8))/2000*1000000000","v":0},{"$f":"(SUMPRODUCT(Q$9:Q$229,Nutrients!$EQ$8:$EQ$228)+(IF($A$7=Nutrients!$B$8,Nutrients!$EQ$8,Nutrients!$EQ$9)*Q$7)+(((IF($A$8=Nutrients!$B$79,Nutrients!$EQ$79,(IF($A$8=Nutrients!$B$77,Nutrients!$EQ$77,Nutrients!$EQ$78)))))*Q$8))/2000*1000000000","v":0},{"$f":"(SUMPRODUCT(R$9:R$229,Nutrients!$EQ$8:$EQ$228)+(IF($A$7=Nutrients!$B$8,Nutrients!$EQ$8,Nutrients!$EQ$9)*R$7)+(((IF($A$8=Nutrients!$B$79,Nutrients!$EQ$79,(IF($A$8=Nutrients!$B$77,Nutrients!$EQ$77,Nutrients!$EQ$78)))))*R$8))/2000*1000000000","v":0},{"$f":"(SUMPRODUCT(S$9:S$229,Nutrients!$EQ$8:$EQ$228)+(IF($A$7=Nutrients!$B$8,Nutrients!$EQ$8,Nutrients!$EQ$9)*S$7)+(((IF($A$8=Nutrients!$B$79,Nutrients!$EQ$79,(IF($A$8=Nutrients!$B$77,Nutrients!$EQ$77,Nutrients!$EQ$78)))))*S$8))/2000*1000000000","v":0},{"$f":"(SUMPRODUCT(T$9:T$229,Nutrients!$EQ$8:$EQ$228)+(IF($A$7=Nutrients!$B$8,Nutrients!$EQ$8,Nutrients!$EQ$9)*T$7)+(((IF($A$8=Nutrients!$B$79,Nutrients!$EQ$79,(IF($A$8=Nutrients!$B$77,Nutrients!$EQ$77,Nutrients!$EQ$78)))))*T$8))/2000*1000000000","v":0},{"$f":"(SUMPRODUCT(U$9:U$229,Nutrients!$EQ$8:$EQ$228)+(IF($A$7=Nutrients!$B$8,Nutrients!$EQ$8,Nutrients!$EQ$9)*U$7)+(((IF($A$8=Nutrients!$B$79,Nutrients!$EQ$79,(IF($A$8=Nutrients!$B$77,Nutrients!$EQ$77,Nutrients!$EQ$78)))))*U$8))/2000*1000000000","v":0},null,{"$f":"(SUMPRODUCT(W$9:W$229,Nutrients!$EQ$8:$EQ$228)+(IF($A$7=Nutrients!$B$8,Nutrients!$EQ$8,Nutrients!$EQ$9)*W$7)+(((IF($A$8=Nutrients!$B$79,Nutrients!$EQ$79,(IF($A$8=Nutrients!$B$77,Nutrients!$EQ$77,Nutrients!$EQ$78)))))*W$8))/2000*1000000000","v":0},{"$f":"(SUMPRODUCT(X$9:X$229,Nutrients!$EQ$8:$EQ$228)+(IF($A$7=Nutrients!$B$8,Nutrients!$EQ$8,Nutrients!$EQ$9)*X$7)+(((IF($A$8=Nutrients!$B$79,Nutrients!$EQ$79,(IF($A$8=Nutrients!$B$77,Nutrients!$EQ$77,Nutrients!$EQ$78)))))*X$8))/2000*1000000000","v":0},{"$f":"(SUMPRODUCT(Y$9:Y$229,Nutrients!$EQ$8:$EQ$228)+(IF($A$7=Nutrients!$B$8,Nutrients!$EQ$8,Nutrients!$EQ$9)*Y$7)+(((IF($A$8=Nutrients!$B$79,Nutrients!$EQ$79,(IF($A$8=Nutrients!$B$77,Nutrients!$EQ$77,Nutrients!$EQ$78)))))*Y$8))/2000*1000000000","v":0},{"$f":"(SUMPRODUCT(Z$9:Z$229,Nutrients!$EQ$8:$EQ$228)+(IF($A$7=Nutrients!$B$8,Nutrients!$EQ$8,Nutrients!$EQ$9)*Z$7)+(((IF($A$8=Nutrients!$B$79,Nutrients!$EQ$79,(IF($A$8=Nutrients!$B$77,Nutrients!$EQ$77,Nutrients!$EQ$78)))))*Z$8))/2000*1000000000","v":0},{"$f":"(SUMPRODUCT(AA$9:AA$229,Nutrients!$EQ$8:$EQ$228)+(IF($A$7=Nutrients!$B$8,Nutrients!$EQ$8,Nutrients!$EQ$9)*AA$7)+(((IF($A$8=Nutrients!$B$79,Nutrients!$EQ$79,(IF($A$8=Nutrients!$B$77,Nutrients!$EQ$77,Nutrients!$EQ$78)))))*AA$8))/2000*1000000000","v":0},{"$f":"(SUMPRODUCT(AB$9:AB$229,Nutrients!$EQ$8:$EQ$228)+(IF($A$7=Nutrients!$B$8,Nutrients!$EQ$8,Nutrients!$EQ$9)*AB$7)+(((IF($A$8=Nutrients!$B$79,Nutrients!$EQ$79,(IF($A$8=Nutrients!$B$77,Nutrients!$EQ$77,Nutrients!$EQ$78)))))*AB$8))/2000*1000000000","v":0},null,{"$f":"(SUMPRODUCT(AD$9:AD$229,Nutrients!$EQ$8:$EQ$228)+(IF($A$7=Nutrients!$B$8,Nutrients!$EQ$8,Nutrients!$EQ$9)*AD$7)+(((IF($A$8=Nutrients!$B$79,Nutrients!$EQ$79,(IF($A$8=Nutrients!$B$77,Nutrients!$EQ$77,Nutrients!$EQ$78)))))*AD$8))/2000*1000000000","v":0},{"$f":"(SUMPRODUCT(AE$9:AE$229,Nutrients!$EQ$8:$EQ$228)+(IF($A$7=Nutrients!$B$8,Nutrients!$EQ$8,Nutrients!$EQ$9)*AE$7)+(((IF($A$8=Nutrients!$B$79,Nutrients!$EQ$79,(IF($A$8=Nutrients!$B$77,Nutrients!$EQ$77,Nutrients!$EQ$78)))))*AE$8))/2000*1000000000","v":0},{"$f":"(SUMPRODUCT(AF$9:AF$229,Nutrients!$EQ$8:$EQ$228)+(IF($A$7=Nutrients!$B$8,Nutrients!$EQ$8,Nutrients!$EQ$9)*AF$7)+(((IF($A$8=Nutrients!$B$79,Nutrients!$EQ$79,(IF($A$8=Nutrients!$B$77,Nutrients!$EQ$77,Nutrients!$EQ$78)))))*AF$8))/2000*1000000000","v":0},{"$f":"(SUMPRODUCT(AG$9:AG$229,Nutrients!$EQ$8:$EQ$228)+(IF($A$7=Nutrients!$B$8,Nutrients!$EQ$8,Nutrients!$EQ$9)*AG$7)+(((IF($A$8=Nutrients!$B$79,Nutrients!$EQ$79,(IF($A$8=Nutrients!$B$77,Nutrients!$EQ$77,Nutrients!$EQ$78)))))*AG$8))/2000*1000000000","v":0},{"$f":"(SUMPRODUCT(AH$9:AH$229,Nutrients!$EQ$8:$EQ$228)+(IF($A$7=Nutrients!$B$8,Nutrients!$EQ$8,Nutrients!$EQ$9)*AH$7)+(((IF($A$8=Nutrients!$B$79,Nutrients!$EQ$79,(IF($A$8=Nutrients!$B$77,Nutrients!$EQ$77,Nutrients!$EQ$78)))))*AH$8))/2000*1000000000","v":0},{"$f":"(SUMPRODUCT(AI$9:AI$229,Nutrients!$EQ$8:$EQ$228)+(IF($A$7=Nutrients!$B$8,Nutrients!$EQ$8,Nutrients!$EQ$9)*AI$7)+(((IF($A$8=Nutrients!$B$79,Nutrients!$EQ$79,(IF($A$8=Nutrients!$B$77,Nutrients!$EQ$77,Nutrients!$EQ$78)))))*AI$8))/2000*1000000000","v":0},null,{"$f":"(SUMPRODUCT(AK$9:AK$229,Nutrients!$EQ$8:$EQ$228)+(IF($A$7=Nutrients!$B$8,Nutrients!$EQ$8,Nutrients!$EQ$9)*AK$7)+(((IF($A$8=Nutrients!$B$79,Nutrients!$EQ$79,(IF($A$8=Nutrients!$B$77,Nutrients!$EQ$77,Nutrients!$EQ$78)))))*AK$8))/2000*1000000000","v":0},{"$f":"(SUMPRODUCT(AL$9:AL$229,Nutrients!$EQ$8:$EQ$228)+(IF($A$7=Nutrients!$B$8,Nutrients!$EQ$8,Nutrients!$EQ$9)*AL$7)+(((IF($A$8=Nutrients!$B$79,Nutrients!$EQ$79,(IF($A$8=Nutrients!$B$77,Nutrients!$EQ$77,Nutrients!$EQ$78)))))*AL$8))/2000*1000000000","v":0},{"$f":"(SUMPRODUCT(AM$9:AM$229,Nutrients!$EQ$8:$EQ$228)+(IF($A$7=Nutrients!$B$8,Nutrients!$EQ$8,Nutrients!$EQ$9)*AM$7)+(((IF($A$8=Nutrients!$B$79,Nutrients!$EQ$79,(IF($A$8=Nutrients!$B$77,Nutrients!$EQ$77,Nutrients!$EQ$78)))))*AM$8))/2000*1000000000","v":0},{"$f":"(SUMPRODUCT(AN$9:AN$229,Nutrients!$EQ$8:$EQ$228)+(IF($A$7=Nutrients!$B$8,Nutrients!$EQ$8,Nutrients!$EQ$9)*AN$7)+(((IF($A$8=Nutrients!$B$79,Nutrients!$EQ$79,(IF($A$8=Nutrients!$B$77,Nutrients!$EQ$77,Nutrients!$EQ$78)))))*AN$8))/2000*1000000000","v":0},{"$f":"(SUMPRODUCT(AO$9:AO$229,Nutrients!$EQ$8:$EQ$228)+(IF($A$7=Nutrients!$B$8,Nutrients!$EQ$8,Nutrients!$EQ$9)*AO$7)+(((IF($A$8=Nutrients!$B$79,Nutrients!$EQ$79,(IF($A$8=Nutrients!$B$77,Nutrients!$EQ$77,Nutrients!$EQ$78)))))*AO$8))/2000*1000000000","v":0},{"$f":"(SUMPRODUCT(AP$9:AP$229,Nutrients!$EQ$8:$EQ$228)+(IF($A$7=Nutrients!$B$8,Nutrients!$EQ$8,Nutrients!$EQ$9)*AP$7)+(((IF($A$8=Nutrients!$B$79,Nutrients!$EQ$79,(IF($A$8=Nutrients!$B$77,Nutrients!$EQ$77,Nutrients!$EQ$78)))))*AP$8))/2000*1000000000","v":0},null,{"$f":"(SUMPRODUCT(AR$9:AR$229,Nutrients!$EQ$8:$EQ$228)+(IF($A$7=Nutrients!$B$8,Nutrients!$EQ$8,Nutrients!$EQ$9)*AR$7)+(((IF($A$8=Nutrients!$B$79,Nutrients!$EQ$79,(IF($A$8=Nutrients!$B$77,Nutrients!$EQ$77,Nutrients!$EQ$78)))))*AR$8))/2000*1000000000","v":0},{"$f":"(SUMPRODUCT(AS$9:AS$229,Nutrients!$EQ$8:$EQ$228)+(IF($A$7=Nutrients!$B$8,Nutrients!$EQ$8,Nutrients!$EQ$9)*AS$7)+(((IF($A$8=Nutrients!$B$79,Nutrients!$EQ$79,(IF($A$8=Nutrients!$B$77,Nutrients!$EQ$77,Nutrients!$EQ$78)))))*AS$8))/2000*1000000000","v":0},{"$f":"(SUMPRODUCT(AT$9:AT$229,Nutrients!$EQ$8:$EQ$228)+(IF($A$7=Nutrients!$B$8,Nutrients!$EQ$8,Nutrients!$EQ$9)*AT$7)+(((IF($A$8=Nutrients!$B$79,Nutrients!$EQ$79,(IF($A$8=Nutrients!$B$77,Nutrients!$EQ$77,Nutrients!$EQ$78)))))*AT$8))/2000*1000000000","v":0},{"$f":"(SUMPRODUCT(AU$9:AU$229,Nutrients!$EQ$8:$EQ$228)+(IF($A$7=Nutrients!$B$8,Nutrients!$EQ$8,Nutrients!$EQ$9)*AU$7)+(((IF($A$8=Nutrients!$B$79,Nutrients!$EQ$79,(IF($A$8=Nutrients!$B$77,Nutrients!$EQ$77,Nutrients!$EQ$78)))))*AU$8))/2000*1000000000","v":0},{"$f":"(SUMPRODUCT(AV$9:AV$229,Nutrients!$EQ$8:$EQ$228)+(IF($A$7=Nutrients!$B$8,Nutrients!$EQ$8,Nutrients!$EQ$9)*AV$7)+(((IF($A$8=Nutrients!$B$79,Nutrients!$EQ$79,(IF($A$8=Nutrients!$B$77,Nutrients!$EQ$77,Nutrients!$EQ$78)))))*AV$8))/2000*1000000000","v":0},{"$f":"(SUMPRODUCT(AW$9:AW$229,Nutrients!$EQ$8:$EQ$228)+(IF($A$7=Nutrients!$B$8,Nutrients!$EQ$8,Nutrients!$EQ$9)*AW$7)+(((IF($A$8=Nutrients!$B$79,Nutrients!$EQ$79,(IF($A$8=Nutrients!$B$77,Nutrients!$EQ$77,Nutrients!$EQ$78)))))*AW$8))/2000*1000000000","v":0}]
[]
["Vitamins (added levels)"]
["  Vit A, IU/ton",{"$f":"(SUMPRODUCT(B$9:B$229,Nutrients!$ES$8:$ES$228)+(IF($A$7=Nutrients!$B$8,Nutrients!$ES$8,Nutrients!$ES$9)*B$7)+(((IF($A$8=Nutrients!$B$79,Nutrients!$ES$79,(IF($A$8=Nutrients!$B$77,Nutrients!$ES$77,Nutrients!$ES$78)))))*B$8))","v":2250000},{"$f":"(SUMPRODUCT(C$9:C$229,Nutrients!$ES$8:$ES$228)+(IF($A$7=Nutrients!$B$8,Nutrients!$ES$8,Nutrients!$ES$9)*C$7)+(((IF($A$8=Nutrients!$B$79,Nutrients!$ES$79,(IF($A$8=Nutrients!$B$77,Nutrients!$ES$77,Nutrients!$ES$78)))))*C$8))","v":2250000},{"$f":"(SUMPRODUCT(D$9:D$229,Nutrients!$ES$8:$ES$228)+(IF($A$7=Nutrients!$B$8,Nutrients!$ES$8,Nutrients!$ES$9)*D$7)+(((IF($A$8=Nutrients!$B$79,Nutrients!$ES$79,(IF($A$8=Nutrients!$B$77,Nutrients!$ES$77,Nutrients!$ES$78)))))*D$8))","v":1875000},{"$f":"(SUMPRODUCT(E$9:E$229,Nutrients!$ES$8:$ES$228)+(IF($A$7=Nutrients!$B$8,Nutrients!$ES$8,Nutrients!$ES$9)*E$7)+(((IF($A$8=Nutrients!$B$79,Nutrients!$ES$79,(IF($A$8=Nutrients!$B$77,Nutrients!$ES$77,Nutrients!$ES$78)))))*E$8))","v":1500000},{"$f":"(SUMPRODUCT(F$9:F$229,Nutrients!$ES$8:$ES$228)+(IF($A$7=Nutrients!$B$8,Nutrients!$ES$8,Nutrients!$ES$9)*F$7)+(((IF($A$8=Nutrients!$B$79,Nutrients!$ES$79,(IF($A$8=Nutrients!$B$77,Nutrients!$ES$77,Nutrients!$ES$78)))))*F$8))","v":1125000},{"$f":"(SUMPRODUCT(G$9:G$229,Nutrients!$ES$8:$ES$228)+(IF($A$7=Nutrients!$B$8,Nutrients!$ES$8,Nutrients!$ES$9)*G$7)+(((IF($A$8=Nutrients!$B$79,Nutrients!$ES$79,(IF($A$8=Nutrients!$B$77,Nutrients!$ES$77,Nutrients!$ES$78)))))*G$8))","v":1125000},null,{"$f":"(SUMPRODUCT(I$9:I$229,Nutrients!$ES$8:$ES$228)+(IF($A$7=Nutrients!$B$8,Nutrients!$ES$8,Nutrients!$ES$9)*I$7)+(((IF($A$8=Nutrients!$B$79,Nutrients!$ES$79,(IF($A$8=Nutrients!$B$77,Nutrients!$ES$77,Nutrients!$ES$78)))))*I$8))","v":2250000},{"$f":"(SUMPRODUCT(J$9:J$229,Nutrients!$ES$8:$ES$228)+(IF($A$7=Nutrients!$B$8,Nutrients!$ES$8,Nutrients!$ES$9)*J$7)+(((IF($A$8=Nutrients!$B$79,Nutrients!$ES$79,(IF($A$8=Nutrients!$B$77,Nutrients!$ES$77,Nutrients!$ES$78)))))*J$8))","v":2250000},{"$f":"(SUMPRODUCT(K$9:K$229,Nutrients!$ES$8:$ES$228)+(IF($A$7=Nutrients!$B$8,Nutrients!$ES$8,Nutrients!$ES$9)*K$7)+(((IF($A$8=Nutrients!$B$79,Nutrients!$ES$79,(IF($A$8=Nutrients!$B$77,Nutrients!$ES$77,Nutrients!$ES$78)))))*K$8))","v":1875000},{"$f":"(SUMPRODUCT(L$9:L$229,Nutrients!$ES$8:$ES$228)+(IF($A$7=Nutrients!$B$8,Nutrients!$ES$8,Nutrients!$ES$9)*L$7)+(((IF($A$8=Nutrients!$B$79,Nutrients!$ES$79,(IF($A$8=Nutrients!$B$77,Nutrients!$ES$77,Nutrients!$ES$78)))))*L$8))","v":1500000},{"$f":"(SUMPRODUCT(M$9:M$229,Nutrients!$ES$8:$ES$228)+(IF($A$7=Nutrients!$B$8,Nutrients!$ES$8,Nutrients!$ES$9)*M$7)+(((IF($A$8=Nutrients!$B$79,Nutrients!$ES$79,(IF($A$8=Nutrients!$B$77,Nutrients!$ES$77,Nutrients!$ES$78)))))*M$8))","v":1125000},{"$f":"(SUMPRODUCT(N$9:N$229,Nutrients!$ES$8:$ES$228)+(IF($A$7=Nutrients!$B$8,Nutrients!$ES$8,Nutrients!$ES$9)*N$7)+(((IF($A$8=Nutrients!$B$79,Nutrients!$ES$79,(IF($A$8=Nutrients!$B$77,Nutrients!$ES$77,Nutrients!$ES$78)))))*N$8))","v":1125000},null,{"$f":"(SUMPRODUCT(P$9:P$229,Nutrients!$ES$8:$ES$228)+(IF($A$7=Nutrients!$B$8,Nutrients!$ES$8,Nutrients!$ES$9)*P$7)+(((IF($A$8=Nutrients!$B$79,Nutrients!$ES$79,(IF($A$8=Nutrients!$B$77,Nutrients!$ES$77,Nutrients!$ES$78)))))*P$8))","v":2250000},{"$f":"(SUMPRODUCT(Q$9:Q$229,Nutrients!$ES$8:$ES$228)+(IF($A$7=Nutrients!$B$8,Nutrients!$ES$8,Nutrients!$ES$9)*Q$7)+(((IF($A$8=Nutrients!$B$79,Nutrients!$ES$79,(IF($A$8=Nutrients!$B$77,Nutrients!$ES$77,Nutrients!$ES$78)))))*Q$8))","v":2250000},{"$f":"(SUMPRODUCT(R$9:R$229,Nutrients!$ES$8:$ES$228)+(IF($A$7=Nutrients!$B$8,Nutrients!$ES$8,Nutrients!$ES$9)*R$7)+(((IF($A$8=Nutrients!$B$79,Nutrients!$ES$79,(IF($A$8=Nutrients!$B$77,Nutrients!$ES$77,Nutrients!$ES$78)))))*R$8))","v":1875000},{"$f":"(SUMPRODUCT(S$9:S$229,Nutrients!$ES$8:$ES$228)+(IF($A$7=Nutrients!$B$8,Nutrients!$ES$8,Nutrients!$ES$9)*S$7)+(((IF($A$8=Nutrients!$B$79,Nutrients!$ES$79,(IF($A$8=Nutrients!$B$77,Nutrients!$ES$77,Nutrients!$ES$78)))))*S$8))","v":1500000},{"$f":"(SUMPRODUCT(T$9:T$229,Nutrients!$ES$8:$ES$228)+(IF($A$7=Nutrients!$B$8,Nutrients!$ES$8,Nutrients!$ES$9)*T$7)+(((IF($A$8=Nutrients!$B$79,Nutrients!$ES$79,(IF($A$8=Nutrients!$B$77,Nutrients!$ES$77,Nutrients!$ES$78)))))*T$8))","v":1125000},{"$f":"(SUMPRODUCT(U$9:U$229,Nutrients!$ES$8:$ES$228)+(IF($A$7=Nutrients!$B$8,Nutrients!$ES$8,Nutrients!$ES$9)*U$7)+(((IF($A$8=Nutrients!$B$79,Nutrients!$ES$79,(IF($A$8=Nutrients!$B$77,Nutrients!$ES$77,Nutrients!$ES$78)))))*U$8))","v":1125000},null,{"$f":"(SUMPRODUCT(W$9:W$229,Nutrients!$ES$8:$ES$228)+(IF($A$7=Nutrients!$B$8,Nutrients!$ES$8,Nutrients!$ES$9)*W$7)+(((IF($A$8=Nutrients!$B$79,Nutrients!$ES$79,(IF($A$8=Nutrients!$B$77,Nutrients!$ES$77,Nutrients!$ES$78)))))*W$8))","v":2250000},{"$f":"(SUMPRODUCT(X$9:X$229,Nutrients!$ES$8:$ES$228)+(IF($A$7=Nutrients!$B$8,Nutrients!$ES$8,Nutrients!$ES$9)*X$7)+(((IF($A$8=Nutrients!$B$79,Nutrients!$ES$79,(IF($A$8=Nutrients!$B$77,Nutrients!$ES$77,Nutrients!$ES$78)))))*X$8))","v":2250000},{"$f":"(SUMPRODUCT(Y$9:Y$229,Nutrients!$ES$8:$ES$228)+(IF($A$7=Nutrients!$B$8,Nutrients!$ES$8,Nutrients!$ES$9)*Y$7)+(((IF($A$8=Nutrients!$B$79,Nutrients!$ES$79,(IF($A$8=Nutrients!$B$77,Nutrients!$ES$77,Nutrients!$ES$78)))))*Y$8))","v":1875000},{"$f":"(SUMPRODUCT(Z$9:Z$229,Nutrients!$ES$8:$ES$228)+(IF($A$7=Nutrients!$B$8,Nutrients!$ES$8,Nutrients!$ES$9)*Z$7)+(((IF($A$8=Nutrients!$B$79,Nutrients!$ES$79,(IF($A$8=Nutrients!$B$77,Nutrients!$ES$77,Nutrients!$ES$78)))))*Z$8))","v":1500000},{"$f":"(SUMPRODUCT(AA$9:AA$229,Nutrients!$ES$8:$ES$228)+(IF($A$7=Nutrients!$B$8,Nutrients!$ES$8,Nutrients!$ES$9)*AA$7)+(((IF($A$8=Nutrients!$B$79,Nutrients!$ES$79,(IF($A$8=Nutrients!$B$77,Nutrients!$ES$77,Nutrients!$ES$78)))))*AA$8))","v":1125000},{"$f":"(SUMPRODUCT(AB$9:AB$229,Nutrients!$ES$8:$ES$228)+(IF($A$7=Nutrients!$B$8,Nutrients!$ES$8,Nutrients!$ES$9)*AB$7)+(((IF($A$8=Nutrients!$B$79,Nutrients!$ES$79,(IF($A$8=Nutrients!$B$77,Nutrients!$ES$77,Nutrients!$ES$78)))))*AB$8))","v":1125000},null,{"$f":"(SUMPRODUCT(AD$9:AD$229,Nutrients!$ES$8:$ES$228)+(IF($A$7=Nutrients!$B$8,Nutrients!$ES$8,Nutrients!$ES$9)*AD$7)+(((IF($A$8=Nutrients!$B$79,Nutrients!$ES$79,(IF($A$8=Nutrients!$B$77,Nutrients!$ES$77,Nutrients!$ES$78)))))*AD$8))","v":2250000},{"$f":"(SUMPRODUCT(AE$9:AE$229,Nutrients!$ES$8:$ES$228)+(IF($A$7=Nutrients!$B$8,Nutrients!$ES$8,Nutrients!$ES$9)*AE$7)+(((IF($A$8=Nutrients!$B$79,Nutrients!$ES$79,(IF($A$8=Nutrients!$B$77,Nutrients!$ES$77,Nutrients!$ES$78)))))*AE$8))","v":2250000},{"$f":"(SUMPRODUCT(AF$9:AF$229,Nutrients!$ES$8:$ES$228)+(IF($A$7=Nutrients!$B$8,Nutrients!$ES$8,Nutrients!$ES$9)*AF$7)+(((IF($A$8=Nutrients!$B$79,Nutrients!$ES$79,(IF($A$8=Nutrients!$B$77,Nutrients!$ES$77,Nutrients!$ES$78)))))*AF$8))","v":1875000},{"$f":"(SUMPRODUCT(AG$9:AG$229,Nutrients!$ES$8:$ES$228)+(IF($A$7=Nutrients!$B$8,Nutrients!$ES$8,Nutrients!$ES$9)*AG$7)+(((IF($A$8=Nutrients!$B$79,Nutrients!$ES$79,(IF($A$8=Nutrients!$B$77,Nutrients!$ES$77,Nutrients!$ES$78)))))*AG$8))","v":1500000},{"$f":"(SUMPRODUCT(AH$9:AH$229,Nutrients!$ES$8:$ES$228)+(IF($A$7=Nutrients!$B$8,Nutrients!$ES$8,Nutrients!$ES$9)*AH$7)+(((IF($A$8=Nutrients!$B$79,Nutrients!$ES$79,(IF($A$8=Nutrients!$B$77,Nutrients!$ES$77,Nutrients!$ES$78)))))*AH$8))","v":1125000},{"$f":"(SUMPRODUCT(AI$9:AI$229,Nutrients!$ES$8:$ES$228)+(IF($A$7=Nutrients!$B$8,Nutrients!$ES$8,Nutrients!$ES$9)*AI$7)+(((IF($A$8=Nutrients!$B$79,Nutrients!$ES$79,(IF($A$8=Nutrients!$B$77,Nutrients!$ES$77,Nutrients!$ES$78)))))*AI$8))","v":1125000},null,{"$f":"(SUMPRODUCT(AK$9:AK$229,Nutrients!$ES$8:$ES$228)+(IF($A$7=Nutrients!$B$8,Nutrients!$ES$8,Nutrients!$ES$9)*AK$7)+(((IF($A$8=Nutrients!$B$79,Nutrients!$ES$79,(IF($A$8=Nutrients!$B$77,Nutrients!$ES$77,Nutrients!$ES$78)))))*AK$8))","v":2250000},{"$f":"(SUMPRODUCT(AL$9:AL$229,Nutrients!$ES$8:$ES$228)+(IF($A$7=Nutrients!$B$8,Nutrients!$ES$8,Nutrients!$ES$9)*AL$7)+(((IF($A$8=Nutrients!$B$79,Nutrients!$ES$79,(IF($A$8=Nutrients!$B$77,Nutrients!$ES$77,Nutrients!$ES$78)))))*AL$8))","v":2250000},{"$f":"(SUMPRODUCT(AM$9:AM$229,Nutrients!$ES$8:$ES$228)+(IF($A$7=Nutrients!$B$8,Nutrients!$ES$8,Nutrients!$ES$9)*AM$7)+(((IF($A$8=Nutrients!$B$79,Nutrients!$ES$79,(IF($A$8=Nutrients!$B$77,Nutrients!$ES$77,Nutrients!$ES$78)))))*AM$8))","v":1875000},{"$f":"(SUMPRODUCT(AN$9:AN$229,Nutrients!$ES$8:$ES$228)+(IF($A$7=Nutrients!$B$8,Nutrients!$ES$8,Nutrients!$ES$9)*AN$7)+(((IF($A$8=Nutrients!$B$79,Nutrients!$ES$79,(IF($A$8=Nutrients!$B$77,Nutrients!$ES$77,Nutrients!$ES$78)))))*AN$8))","v":1500000},{"$f":"(SUMPRODUCT(AO$9:AO$229,Nutrients!$ES$8:$ES$228)+(IF($A$7=Nutrients!$B$8,Nutrients!$ES$8,Nutrients!$ES$9)*AO$7)+(((IF($A$8=Nutrients!$B$79,Nutrients!$ES$79,(IF($A$8=Nutrients!$B$77,Nutrients!$ES$77,Nutrients!$ES$78)))))*AO$8))","v":1125000},{"$f":"(SUMPRODUCT(AP$9:AP$229,Nutrients!$ES$8:$ES$228)+(IF($A$7=Nutrients!$B$8,Nutrients!$ES$8,Nutrients!$ES$9)*AP$7)+(((IF($A$8=Nutrients!$B$79,Nutrients!$ES$79,(IF($A$8=Nutrients!$B$77,Nutrients!$ES$77,Nutrients!$ES$78)))))*AP$8))","v":1125000},null,{"$f":"(SUMPRODUCT(AR$9:AR$229,Nutrients!$ES$8:$ES$228)+(IF($A$7=Nutrients!$B$8,Nutrients!$ES$8,Nutrients!$ES$9)*AR$7)+(((IF($A$8=Nutrients!$B$79,Nutrients!$ES$79,(IF($A$8=Nutrients!$B$77,Nutrients!$ES$77,Nutrients!$ES$78)))))*AR$8))","v":2250000},{"$f":"(SUMPRODUCT(AS$9:AS$229,Nutrients!$ES$8:$ES$228)+(IF($A$7=Nutrients!$B$8,Nutrients!$ES$8,Nutrients!$ES$9)*AS$7)+(((IF($A$8=Nutrients!$B$79,Nutrients!$ES$79,(IF($A$8=Nutrients!$B$77,Nutrients!$ES$77,Nutrients!$ES$78)))))*AS$8))","v":2250000},{"$f":"(SUMPRODUCT(AT$9:AT$229,Nutrients!$ES$8:$ES$228)+(IF($A$7=Nutrients!$B$8,Nutrients!$ES$8,Nutrients!$ES$9)*AT$7)+(((IF($A$8=Nutrients!$B$79,Nutrients!$ES$79,(IF($A$8=Nutrients!$B$77,Nutrients!$ES$77,Nutrients!$ES$78)))))*AT$8))","v":1875000},{"$f":"(SUMPRODUCT(AU$9:AU$229,Nutrients!$ES$8:$ES$228)+(IF($A$7=Nutrients!$B$8,Nutrients!$ES$8,Nutrients!$ES$9)*AU$7)+(((IF($A$8=Nutrients!$B$79,Nutrients!$ES$79,(IF($A$8=Nutrients!$B$77,Nutrients!$ES$77,Nutrients!$ES$78)))))*AU$8))","v":1500000},{"$f":"(SUMPRODUCT(AV$9:AV$229,Nutrients!$ES$8:$ES$228)+(IF($A$7=Nutrients!$B$8,Nutrients!$ES$8,Nutrients!$ES$9)*AV$7)+(((IF($A$8=Nutrients!$B$79,Nutrients!$ES$79,(IF($A$8=Nutrients!$B$77,Nutrients!$ES$77,Nutrients!$ES$78)))))*AV$8))","v":1125000},{"$f":"(SUMPRODUCT(AW$9:AW$229,Nutrients!$ES$8:$ES$228)+(IF($A$7=Nutrients!$B$8,Nutrients!$ES$8,Nutrients!$ES$9)*AW$7)+(((IF($A$8=Nutrients!$B$79,Nutrients!$ES$79,(IF($A$8=Nutrients!$B$77,Nutrients!$ES$77,Nutrients!$ES$78)))))*AW$8))","v":1125000}]
["  Vit D, IU/ton",{"$f":"(SUMPRODUCT(B$9:B$229,Nutrients!$ET$8:$ET$228)+(IF($A$7=Nutrients!$B$8,Nutrients!$ET$8,Nutrients!$ET$9)*B$7)+(((IF($A$8=Nutrients!$B$79,Nutrients!$ET$79,(IF($A$8=Nutrients!$B$77,Nutrients!$ET$77,Nutrients!$ET$78)))))*B$8))","v":900000},{"$f":"(SUMPRODUCT(C$9:C$229,Nutrients!$ET$8:$ET$228)+(IF($A$7=Nutrients!$B$8,Nutrients!$ET$8,Nutrients!$ET$9)*C$7)+(((IF($A$8=Nutrients!$B$79,Nutrients!$ET$79,(IF($A$8=Nutrients!$B$77,Nutrients!$ET$77,Nutrients!$ET$78)))))*C$8))","v":900000},{"$f":"(SUMPRODUCT(D$9:D$229,Nutrients!$ET$8:$ET$228)+(IF($A$7=Nutrients!$B$8,Nutrients!$ET$8,Nutrients!$ET$9)*D$7)+(((IF($A$8=Nutrients!$B$79,Nutrients!$ET$79,(IF($A$8=Nutrients!$B$77,Nutrients!$ET$77,Nutrients!$ET$78)))))*D$8))","v":750000},{"$f":"(SUMPRODUCT(E$9:E$229,Nutrients!$ET$8:$ET$228)+(IF($A$7=Nutrients!$B$8,Nutrients!$ET$8,Nutrients!$ET$9)*E$7)+(((IF($A$8=Nutrients!$B$79,Nutrients!$ET$79,(IF($A$8=Nutrients!$B$77,Nutrients!$ET$77,Nutrients!$ET$78)))))*E$8))","v":600000},{"$f":"(SUMPRODUCT(F$9:F$229,Nutrients!$ET$8:$ET$228)+(IF($A$7=Nutrients!$B$8,Nutrients!$ET$8,Nutrients!$ET$9)*F$7)+(((IF($A$8=Nutrients!$B$79,Nutrients!$ET$79,(IF($A$8=Nutrients!$B$77,Nutrients!$ET$77,Nutrients!$ET$78)))))*F$8))","v":450000},{"$f":"(SUMPRODUCT(G$9:G$229,Nutrients!$ET$8:$ET$228)+(IF($A$7=Nutrients!$B$8,Nutrients!$ET$8,Nutrients!$ET$9)*G$7)+(((IF($A$8=Nutrients!$B$79,Nutrients!$ET$79,(IF($A$8=Nutrients!$B$77,Nutrients!$ET$77,Nutrients!$ET$78)))))*G$8))","v":450000},null,{"$f":"(SUMPRODUCT(I$9:I$229,Nutrients!$ET$8:$ET$228)+(IF($A$7=Nutrients!$B$8,Nutrients!$ET$8,Nutrients!$ET$9)*I$7)+(((IF($A$8=Nutrients!$B$79,Nutrients!$ET$79,(IF($A$8=Nutrients!$B$77,Nutrients!$ET$77,Nutrients!$ET$78)))))*I$8))","v":900000},{"$f":"(SUMPRODUCT(J$9:J$229,Nutrients!$ET$8:$ET$228)+(IF($A$7=Nutrients!$B$8,Nutrients!$ET$8,Nutrients!$ET$9)*J$7)+(((IF($A$8=Nutrients!$B$79,Nutrients!$ET$79,(IF($A$8=Nutrients!$B$77,Nutrients!$ET$77,Nutrients!$ET$78)))))*J$8))","v":900000},{"$f":"(SUMPRODUCT(K$9:K$229,Nutrients!$ET$8:$ET$228)+(IF($A$7=Nutrients!$B$8,Nutrients!$ET$8,Nutrients!$ET$9)*K$7)+(((IF($A$8=Nutrients!$B$79,Nutrients!$ET$79,(IF($A$8=Nutrients!$B$77,Nutrients!$ET$77,Nutrients!$ET$78)))))*K$8))","v":750000},{"$f":"(SUMPRODUCT(L$9:L$229,Nutrients!$ET$8:$ET$228)+(IF($A$7=Nutrients!$B$8,Nutrients!$ET$8,Nutrients!$ET$9)*L$7)+(((IF($A$8=Nutrients!$B$79,Nutrients!$ET$79,(IF($A$8=Nutrients!$B$77,Nutrients!$ET$77,Nutrients!$ET$78)))))*L$8))","v":600000},{"$f":"(SUMPRODUCT(M$9:M$229,Nutrients!$ET$8:$ET$228)+(IF($A$7=Nutrients!$B$8,Nutrients!$ET$8,Nutrients!$ET$9)*M$7)+(((IF($A$8=Nutrients!$B$79,Nutrients!$ET$79,(IF($A$8=Nutrients!$B$77,Nutrients!$ET$77,Nutrients!$ET$78)))))*M$8))","v":450000},{"$f":"(SUMPRODUCT(N$9:N$229,Nutrients!$ET$8:$ET$228)+(IF($A$7=Nutrients!$B$8,Nutrients!$ET$8,Nutrients!$ET$9)*N$7)+(((IF($A$8=Nutrients!$B$79,Nutrients!$ET$79,(IF($A$8=Nutrients!$B$77,Nutrients!$ET$77,Nutrients!$ET$78)))))*N$8))","v":450000},null,{"$f":"(SUMPRODUCT(P$9:P$229,Nutrients!$ET$8:$ET$228)+(IF($A$7=Nutrients!$B$8,Nutrients!$ET$8,Nutrients!$ET$9)*P$7)+(((IF($A$8=Nutrients!$B$79,Nutrients!$ET$79,(IF($A$8=Nutrients!$B$77,Nutrients!$ET$77,Nutrients!$ET$78)))))*P$8))","v":900000},{"$f":"(SUMPRODUCT(Q$9:Q$229,Nutrients!$ET$8:$ET$228)+(IF($A$7=Nutrients!$B$8,Nutrients!$ET$8,Nutrients!$ET$9)*Q$7)+(((IF($A$8=Nutrients!$B$79,Nutrients!$ET$79,(IF($A$8=Nutrients!$B$77,Nutrients!$ET$77,Nutrients!$ET$78)))))*Q$8))","v":900000},{"$f":"(SUMPRODUCT(R$9:R$229,Nutrients!$ET$8:$ET$228)+(IF($A$7=Nutrients!$B$8,Nutrients!$ET$8,Nutrients!$ET$9)*R$7)+(((IF($A$8=Nutrients!$B$79,Nutrients!$ET$79,(IF($A$8=Nutrients!$B$77,Nutrients!$ET$77,Nutrients!$ET$78)))))*R$8))","v":750000},{"$f":"(SUMPRODUCT(S$9:S$229,Nutrients!$ET$8:$ET$228)+(IF($A$7=Nutrients!$B$8,Nutrients!$ET$8,Nutrients!$ET$9)*S$7)+(((IF($A$8=Nutrients!$B$79,Nutrients!$ET$79,(IF($A$8=Nutrients!$B$77,Nutrients!$ET$77,Nutrients!$ET$78)))))*S$8))","v":600000},{"$f":"(SUMPRODUCT(T$9:T$229,Nutrients!$ET$8:$ET$228)+(IF($A$7=Nutrients!$B$8,Nutrients!$ET$8,Nutrients!$ET$9)*T$7)+(((IF($A$8=Nutrients!$B$79,Nutrients!$ET$79,(IF($A$8=Nutrients!$B$77,Nutrients!$ET$77,Nutrients!$ET$78)))))*T$8))","v":450000},{"$f":"(SUMPRODUCT(U$9:U$229,Nutrients!$ET$8:$ET$228)+(IF($A$7=Nutrients!$B$8,Nutrients!$ET$8,Nutrients!$ET$9)*U$7)+(((IF($A$8=Nutrients!$B$79,Nutrients!$ET$79,(IF($A$8=Nutrients!$B$77,Nutrients!$ET$77,Nutrients!$ET$78)))))*U$8))","v":450000},null,{"$f":"(SUMPRODUCT(W$9:W$229,Nutrients!$ET$8:$ET$228)+(IF($A$7=Nutrients!$B$8,Nutrients!$ET$8,Nutrients!$ET$9)*W$7)+(((IF($A$8=Nutrients!$B$79,Nutrients!$ET$79,(IF($A$8=Nutrients!$B$77,Nutrients!$ET$77,Nutrients!$ET$78)))))*W$8))","v":900000},{"$f":"(SUMPRODUCT(X$9:X$229,Nutrients!$ET$8:$ET$228)+(IF($A$7=Nutrients!$B$8,Nutrients!$ET$8,Nutrients!$ET$9)*X$7)+(((IF($A$8=Nutrients!$B$79,Nutrients!$ET$79,(IF($A$8=Nutrients!$B$77,Nutrients!$ET$77,Nutrients!$ET$78)))))*X$8))","v":900000},{"$f":"(SUMPRODUCT(Y$9:Y$229,Nutrients!$ET$8:$ET$228)+(IF($A$7=Nutrients!$B$8,Nutrients!$ET$8,Nutrients!$ET$9)*Y$7)+(((IF($A$8=Nutrients!$B$79,Nutrients!$ET$79,(IF($A$8=Nutrients!$B$77,Nutrients!$ET$77,Nutrients!$ET$78)))))*Y$8))","v":750000},{"$f":"(SUMPRODUCT(Z$9:Z$229,Nutrients!$ET$8:$ET$228)+(IF($A$7=Nutrients!$B$8,Nutrients!$ET$8,Nutrients!$ET$9)*Z$7)+(((IF($A$8=Nutrients!$B$79,Nutrients!$ET$79,(IF($A$8=Nutrients!$B$77,Nutrients!$ET$77,Nutrients!$ET$78)))))*Z$8))","v":600000},{"$f":"(SUMPRODUCT(AA$9:AA$229,Nutrients!$ET$8:$ET$228)+(IF($A$7=Nutrients!$B$8,Nutrients!$ET$8,Nutrients!$ET$9)*AA$7)+(((IF($A$8=Nutrients!$B$79,Nutrients!$ET$79,(IF($A$8=Nutrients!$B$77,Nutrients!$ET$77,Nutrients!$ET$78)))))*AA$8))","v":450000},{"$f":"(SUMPRODUCT(AB$9:AB$229,Nutrients!$ET$8:$ET$228)+(IF($A$7=Nutrients!$B$8,Nutrients!$ET$8,Nutrients!$ET$9)*AB$7)+(((IF($A$8=Nutrients!$B$79,Nutrients!$ET$79,(IF($A$8=Nutrients!$B$77,Nutrients!$ET$77,Nutrients!$ET$78)))))*AB$8))","v":450000},null,{"$f":"(SUMPRODUCT(AD$9:AD$229,Nutrients!$ET$8:$ET$228)+(IF($A$7=Nutrients!$B$8,Nutrients!$ET$8,Nutrients!$ET$9)*AD$7)+(((IF($A$8=Nutrients!$B$79,Nutrients!$ET$79,(IF($A$8=Nutrients!$B$77,Nutrients!$ET$77,Nutrients!$ET$78)))))*AD$8))","v":900000},{"$f":"(SUMPRODUCT(AE$9:AE$229,Nutrients!$ET$8:$ET$228)+(IF($A$7=Nutrients!$B$8,Nutrients!$ET$8,Nutrients!$ET$9)*AE$7)+(((IF($A$8=Nutrients!$B$79,Nutrients!$ET$79,(IF($A$8=Nutrients!$B$77,Nutrients!$ET$77,Nutrients!$ET$78)))))*AE$8))","v":900000},{"$f":"(SUMPRODUCT(AF$9:AF$229,Nutrients!$ET$8:$ET$228)+(IF($A$7=Nutrients!$B$8,Nutrients!$ET$8,Nutrients!$ET$9)*AF$7)+(((IF($A$8=Nutrients!$B$79,Nutrients!$ET$79,(IF($A$8=Nutrients!$B$77,Nutrients!$ET$77,Nutrients!$ET$78)))))*AF$8))","v":750000},{"$f":"(SUMPRODUCT(AG$9:AG$229,Nutrients!$ET$8:$ET$228)+(IF($A$7=Nutrients!$B$8,Nutrients!$ET$8,Nutrients!$ET$9)*AG$7)+(((IF($A$8=Nutrients!$B$79,Nutrients!$ET$79,(IF($A$8=Nutrients!$B$77,Nutrients!$ET$77,Nutrients!$ET$78)))))*AG$8))","v":600000},{"$f":"(SUMPRODUCT(AH$9:AH$229,Nutrients!$ET$8:$ET$228)+(IF($A$7=Nutrients!$B$8,Nutrients!$ET$8,Nutrients!$ET$9)*AH$7)+(((IF($A$8=Nutrients!$B$79,Nutrients!$ET$79,(IF($A$8=Nutrients!$B$77,Nutrients!$ET$77,Nutrients!$ET$78)))))*AH$8))","v":450000},{"$f":"(SUMPRODUCT(AI$9:AI$229,Nutrients!$ET$8:$ET$228)+(IF($A$7=Nutrients!$B$8,Nutrients!$ET$8,Nutrients!$ET$9)*AI$7)+(((IF($A$8=Nutrients!$B$79,Nutrients!$ET$79,(IF($A$8=Nutrients!$B$77,Nutrients!$ET$77,Nutrients!$ET$78)))))*AI$8))","v":450000},null,{"$f":"(SUMPRODUCT(AK$9:AK$229,Nutrients!$ET$8:$ET$228)+(IF($A$7=Nutrients!$B$8,Nutrients!$ET$8,Nutrients!$ET$9)*AK$7)+(((IF($A$8=Nutrients!$B$79,Nutrients!$ET$79,(IF($A$8=Nutrients!$B$77,Nutrients!$ET$77,Nutrients!$ET$78)))))*AK$8))","v":900000},{"$f":"(SUMPRODUCT(AL$9:AL$229,Nutrients!$ET$8:$ET$228)+(IF($A$7=Nutrients!$B$8,Nutrients!$ET$8,Nutrients!$ET$9)*AL$7)+(((IF($A$8=Nutrients!$B$79,Nutrients!$ET$79,(IF($A$8=Nutrients!$B$77,Nutrients!$ET$77,Nutrients!$ET$78)))))*AL$8))","v":900000},{"$f":"(SUMPRODUCT(AM$9:AM$229,Nutrients!$ET$8:$ET$228)+(IF($A$7=Nutrients!$B$8,Nutrients!$ET$8,Nutrients!$ET$9)*AM$7)+(((IF($A$8=Nutrients!$B$79,Nutrients!$ET$79,(IF($A$8=Nutrients!$B$77,Nutrients!$ET$77,Nutrients!$ET$78)))))*AM$8))","v":750000},{"$f":"(SUMPRODUCT(AN$9:AN$229,Nutrients!$ET$8:$ET$228)+(IF($A$7=Nutrients!$B$8,Nutrients!$ET$8,Nutrients!$ET$9)*AN$7)+(((IF($A$8=Nutrients!$B$79,Nutrients!$ET$79,(IF($A$8=Nutrients!$B$77,Nutrients!$ET$77,Nutrients!$ET$78)))))*AN$8))","v":600000},{"$f":"(SUMPRODUCT(AO$9:AO$229,Nutrients!$ET$8:$ET$228)+(IF($A$7=Nutrients!$B$8,Nutrients!$ET$8,Nutrients!$ET$9)*AO$7)+(((IF($A$8=Nutrients!$B$79,Nutrients!$ET$79,(IF($A$8=Nutrients!$B$77,Nutrients!$ET$77,Nutrients!$ET$78)))))*AO$8))","v":450000},{"$f":"(SUMPRODUCT(AP$9:AP$229,Nutrients!$ET$8:$ET$228)+(IF($A$7=Nutrients!$B$8,Nutrients!$ET$8,Nutrients!$ET$9)*AP$7)+(((IF($A$8=Nutrients!$B$79,Nutrients!$ET$79,(IF($A$8=Nutrients!$B$77,Nutrients!$ET$77,Nutrients!$ET$78)))))*AP$8))","v":450000},null,{"$f":"(SUMPRODUCT(AR$9:AR$229,Nutrients!$ET$8:$ET$228)+(IF($A$7=Nutrients!$B$8,Nutrients!$ET$8,Nutrients!$ET$9)*AR$7)+(((IF($A$8=Nutrients!$B$79,Nutrients!$ET$79,(IF($A$8=Nutrients!$B$77,Nutrients!$ET$77,Nutrients!$ET$78)))))*AR$8))","v":900000},{"$f":"(SUMPRODUCT(AS$9:AS$229,Nutrients!$ET$8:$ET$228)+(IF($A$7=Nutrients!$B$8,Nutrients!$ET$8,Nutrients!$ET$9)*AS$7)+(((IF($A$8=Nutrients!$B$79,Nutrients!$ET$79,(IF($A$8=Nutrients!$B$77,Nutrients!$ET$77,Nutrients!$ET$78)))))*AS$8))","v":900000},{"$f":"(SUMPRODUCT(AT$9:AT$229,Nutrients!$ET$8:$ET$228)+(IF($A$7=Nutrients!$B$8,Nutrients!$ET$8,Nutrients!$ET$9)*AT$7)+(((IF($A$8=Nutrients!$B$79,Nutrients!$ET$79,(IF($A$8=Nutrients!$B$77,Nutrients!$ET$77,Nutrients!$ET$78)))))*AT$8))","v":750000},{"$f":"(SUMPRODUCT(AU$9:AU$229,Nutrients!$ET$8:$ET$228)+(IF($A$7=Nutrients!$B$8,Nutrients!$ET$8,Nutrients!$ET$9)*AU$7)+(((IF($A$8=Nutrients!$B$79,Nutrients!$ET$79,(IF($A$8=Nutrients!$B$77,Nutrients!$ET$77,Nutrients!$ET$78)))))*AU$8))","v":600000},{"$f":"(SUMPRODUCT(AV$9:AV$229,Nutrients!$ET$8:$ET$228)+(IF($A$7=Nutrients!$B$8,Nutrients!$ET$8,Nutrients!$ET$9)*AV$7)+(((IF($A$8=Nutrients!$B$79,Nutrients!$ET$79,(IF($A$8=Nutrients!$B$77,Nutrients!$ET$77,Nutrients!$ET$78)))))*AV$8))","v":450000},{"$f":"(SUMPRODUCT(AW$9:AW$229,Nutrients!$ET$8:$ET$228)+(IF($A$7=Nutrients!$B$8,Nutrients!$ET$8,Nutrients!$ET$9)*AW$7)+(((IF($A$8=Nutrients!$B$79,Nutrients!$ET$79,(IF($A$8=Nutrients!$B$77,Nutrients!$ET$77,Nutrients!$ET$78)))))*AW$8))","v":450000}]
["  Vit E, IU/ton",{"$f":"(SUMPRODUCT(B$9:B$229,Nutrients!$EU$8:$EU$228)+(IF($A$7=Nutrients!$B$8,Nutrients!$EU$8,Nutrients!$EU$9)*B$7)+(((IF($A$8=Nutrients!$B$79,Nutrients!$EU$79,(IF($A$8=Nutrients!$B$77,Nutrients!$EU$77,Nutrients!$EU$78)))))*B$8))","v":24000},{"$f":"(SUMPRODUCT(C$9:C$229,Nutrients!$EU$8:$EU$228)+(IF($A$7=Nutrients!$B$8,Nutrients!$EU$8,Nutrients!$EU$9)*C$7)+(((IF($A$8=Nutrients!$B$79,Nutrients!$EU$79,(IF($A$8=Nutrients!$B$77,Nutrients!$EU$77,Nutrients!$EU$78)))))*C$8))","v":24000},{"$f":"(SUMPRODUCT(D$9:D$229,Nutrients!$EU$8:$EU$228)+(IF($A$7=Nutrients!$B$8,Nutrients!$EU$8,Nutrients!$EU$9)*D$7)+(((IF($A$8=Nutrients!$B$79,Nutrients!$EU$79,(IF($A$8=Nutrients!$B$77,Nutrients!$EU$77,Nutrients!$EU$78)))))*D$8))","v":20000},{"$f":"(SUMPRODUCT(E$9:E$229,Nutrients!$EU$8:$EU$228)+(IF($A$7=Nutrients!$B$8,Nutrients!$EU$8,Nutrients!$EU$9)*E$7)+(((IF($A$8=Nutrients!$B$79,Nutrients!$EU$79,(IF($A$8=Nutrients!$B$77,Nutrients!$EU$77,Nutrients!$EU$78)))))*E$8))","v":16000},{"$f":"(SUMPRODUCT(F$9:F$229,Nutrients!$EU$8:$EU$228)+(IF($A$7=Nutrients!$B$8,Nutrients!$EU$8,Nutrients!$EU$9)*F$7)+(((IF($A$8=Nutrients!$B$79,Nutrients!$EU$79,(IF($A$8=Nutrients!$B$77,Nutrients!$EU$77,Nutrients!$EU$78)))))*F$8))","v":12000},{"$f":"(SUMPRODUCT(G$9:G$229,Nutrients!$EU$8:$EU$228)+(IF($A$7=Nutrients!$B$8,Nutrients!$EU$8,Nutrients!$EU$9)*G$7)+(((IF($A$8=Nutrients!$B$79,Nutrients!$EU$79,(IF($A$8=Nutrients!$B$77,Nutrients!$EU$77,Nutrients!$EU$78)))))*G$8))","v":12000},null,{"$f":"(SUMPRODUCT(I$9:I$229,Nutrients!$EU$8:$EU$228)+(IF($A$7=Nutrients!$B$8,Nutrients!$EU$8,Nutrients!$EU$9)*I$7)+(((IF($A$8=Nutrients!$B$79,Nutrients!$EU$79,(IF($A$8=Nutrients!$B$77,Nutrients!$EU$77,Nutrients!$EU$78)))))*I$8))","v":24000},{"$f":"(SUMPRODUCT(J$9:J$229,Nutrients!$EU$8:$EU$228)+(IF($A$7=Nutrients!$B$8,Nutrients!$EU$8,Nutrients!$EU$9)*J$7)+(((IF($A$8=Nutrients!$B$79,Nutrients!$EU$79,(IF($A$8=Nutrients!$B$77,Nutrients!$EU$77,Nutrients!$EU$78)))))*J$8))","v":24000},{"$f":"(SUMPRODUCT(K$9:K$229,Nutrients!$EU$8:$EU$228)+(IF($A$7=Nutrients!$B$8,Nutrients!$EU$8,Nutrients!$EU$9)*K$7)+(((IF($A$8=Nutrients!$B$79,Nutrients!$EU$79,(IF($A$8=Nutrients!$B$77,Nutrients!$EU$77,Nutrients!$EU$78)))))*K$8))","v":20000},{"$f":"(SUMPRODUCT(L$9:L$229,Nutrients!$EU$8:$EU$228)+(IF($A$7=Nutrients!$B$8,Nutrients!$EU$8,Nutrients!$EU$9)*L$7)+(((IF($A$8=Nutrients!$B$79,Nutrients!$EU$79,(IF($A$8=Nutrients!$B$77,Nutrients!$EU$77,Nutrients!$EU$78)))))*L$8))","v":16000},{"$f":"(SUMPRODUCT(M$9:M$229,Nutrients!$EU$8:$EU$228)+(IF($A$7=Nutrients!$B$8,Nutrients!$EU$8,Nutrients!$EU$9)*M$7)+(((IF($A$8=Nutrients!$B$79,Nutrients!$EU$79,(IF($A$8=Nutrients!$B$77,Nutrients!$EU$77,Nutrients!$EU$78)))))*M$8))","v":12000},{"$f":"(SUMPRODUCT(N$9:N$229,Nutrients!$EU$8:$EU$228)+(IF($A$7=Nutrients!$B$8,Nutrients!$EU$8,Nutrients!$EU$9)*N$7)+(((IF($A$8=Nutrients!$B$79,Nutrients!$EU$79,(IF($A$8=Nutrients!$B$77,Nutrients!$EU$77,Nutrients!$EU$78)))))*N$8))","v":12000},null,{"$f":"(SUMPRODUCT(P$9:P$229,Nutrients!$EU$8:$EU$228)+(IF($A$7=Nutrients!$B$8,Nutrients!$EU$8,Nutrients!$EU$9)*P$7)+(((IF($A$8=Nutrients!$B$79,Nutrients!$EU$79,(IF($A$8=Nutrients!$B$77,Nutrients!$EU$77,Nutrients!$EU$78)))))*P$8))","v":24000},{"$f":"(SUMPRODUCT(Q$9:Q$229,Nutrients!$EU$8:$EU$228)+(IF($A$7=Nutrients!$B$8,Nutrients!$EU$8,Nutrients!$EU$9)*Q$7)+(((IF($A$8=Nutrients!$B$79,Nutrients!$EU$79,(IF($A$8=Nutrients!$B$77,Nutrients!$EU$77,Nutrients!$EU$78)))))*Q$8))","v":24000},{"$f":"(SUMPRODUCT(R$9:R$229,Nutrients!$EU$8:$EU$228)+(IF($A$7=Nutrients!$B$8,Nutrients!$EU$8,Nutrients!$EU$9)*R$7)+(((IF($A$8=Nutrients!$B$79,Nutrients!$EU$79,(IF($A$8=Nutrients!$B$77,Nutrients!$EU$77,Nutrients!$EU$78)))))*R$8))","v":20000},{"$f":"(SUMPRODUCT(S$9:S$229,Nutrients!$EU$8:$EU$228)+(IF($A$7=Nutrients!$B$8,Nutrients!$EU$8,Nutrients!$EU$9)*S$7)+(((IF($A$8=Nutrients!$B$79,Nutrients!$EU$79,(IF($A$8=Nutrients!$B$77,Nutrients!$EU$77,Nutrients!$EU$78)))))*S$8))","v":16000},{"$f":"(SUMPRODUCT(T$9:T$229,Nutrients!$EU$8:$EU$228)+(IF($A$7=Nutrients!$B$8,Nutrients!$EU$8,Nutrients!$EU$9)*T$7)+(((IF($A$8=Nutrients!$B$79,Nutrients!$EU$79,(IF($A$8=Nutrients!$B$77,Nutrients!$EU$77,Nutrients!$EU$78)))))*T$8))","v":12000},{"$f":"(SUMPRODUCT(U$9:U$229,Nutrients!$EU$8:$EU$228)+(IF($A$7=Nutrients!$B$8,Nutrients!$EU$8,Nutrients!$EU$9)*U$7)+(((IF($A$8=Nutrients!$B$79,Nutrients!$EU$79,(IF($A$8=Nutrients!$B$77,Nutrients!$EU$77,Nutrients!$EU$78)))))*U$8))","v":12000},null,{"$f":"(SUMPRODUCT(W$9:W$229,Nutrients!$EU$8:$EU$228)+(IF($A$7=Nutrients!$B$8,Nutrients!$EU$8,Nutrients!$EU$9)*W$7)+(((IF($A$8=Nutrients!$B$79,Nutrients!$EU$79,(IF($A$8=Nutrients!$B$77,Nutrients!$EU$77,Nutrients!$EU$78)))))*W$8))","v":24000},{"$f":"(SUMPRODUCT(X$9:X$229,Nutrients!$EU$8:$EU$228)+(IF($A$7=Nutrients!$B$8,Nutrients!$EU$8,Nutrients!$EU$9)*X$7)+(((IF($A$8=Nutrients!$B$79,Nutrients!$EU$79,(IF($A$8=Nutrients!$B$77,Nutrients!$EU$77,Nutrients!$EU$78)))))*X$8))","v":24000},{"$f":"(SUMPRODUCT(Y$9:Y$229,Nutrients!$EU$8:$EU$228)+(IF($A$7=Nutrients!$B$8,Nutrients!$EU$8,Nutrients!$EU$9)*Y$7)+(((IF($A$8=Nutrients!$B$79,Nutrients!$EU$79,(IF($A$8=Nutrients!$B$77,Nutrients!$EU$77,Nutrients!$EU$78)))))*Y$8))","v":20000},{"$f":"(SUMPRODUCT(Z$9:Z$229,Nutrients!$EU$8:$EU$228)+(IF($A$7=Nutrients!$B$8,Nutrients!$EU$8,Nutrients!$EU$9)*Z$7)+(((IF($A$8=Nutrients!$B$79,Nutrients!$EU$79,(IF($A$8=Nutrients!$B$77,Nutrients!$EU$77,Nutrients!$EU$78)))))*Z$8))","v":16000},{"$f":"(SUMPRODUCT(AA$9:AA$229,Nutrients!$EU$8:$EU$228)+(IF($A$7=Nutrients!$B$8,Nutrients!$EU$8,Nutrients!$EU$9)*AA$7)+(((IF($A$8=Nutrients!$B$79,Nutrients!$EU$79,(IF($A$8=Nutrients!$B$77,Nutrients!$EU$77,Nutrients!$EU$78)))))*AA$8))","v":12000},{"$f":"(SUMPRODUCT(AB$9:AB$229,Nutrients!$EU$8:$EU$228)+(IF($A$7=Nutrients!$B$8,Nutrients!$EU$8,Nutrients!$EU$9)*AB$7)+(((IF($A$8=Nutrients!$B$79,Nutrients!$EU$79,(IF($A$8=Nutrients!$B$77,Nutrients!$EU$77,Nutrients!$EU$78)))))*AB$8))","v":12000},null,{"$f":"(SUMPRODUCT(AD$9:AD$229,Nutrients!$EU$8:$EU$228)+(IF($A$7=Nutrients!$B$8,Nutrients!$EU$8,Nutrients!$EU$9)*AD$7)+(((IF($A$8=Nutrients!$B$79,Nutrients!$EU$79,(IF($A$8=Nutrients!$B$77,Nutrients!$EU$77,Nutrients!$EU$78)))))*AD$8))","v":24000},{"$f":"(SUMPRODUCT(AE$9:AE$229,Nutrients!$EU$8:$EU$228)+(IF($A$7=Nutrients!$B$8,Nutrients!$EU$8,Nutrients!$EU$9)*AE$7)+(((IF($A$8=Nutrients!$B$79,Nutrients!$EU$79,(IF($A$8=Nutrients!$B$77,Nutrients!$EU$77,Nutrients!$EU$78)))))*AE$8))","v":24000},{"$f":"(SUMPRODUCT(AF$9:AF$229,Nutrients!$EU$8:$EU$228)+(IF($A$7=Nutrients!$B$8,Nutrients!$EU$8,Nutrients!$EU$9)*AF$7)+(((IF($A$8=Nutrients!$B$79,Nutrients!$EU$79,(IF($A$8=Nutrients!$B$77,Nutrients!$EU$77,Nutrients!$EU$78)))))*AF$8))","v":20000},{"$f":"(SUMPRODUCT(AG$9:AG$229,Nutrients!$EU$8:$EU$228)+(IF($A$7=Nutrients!$B$8,Nutrients!$EU$8,Nutrients!$EU$9)*AG$7)+(((IF($A$8=Nutrients!$B$79,Nutrients!$EU$79,(IF($A$8=Nutrients!$B$77,Nutrients!$EU$77,Nutrients!$EU$78)))))*AG$8))","v":16000},{"$f":"(SUMPRODUCT(AH$9:AH$229,Nutrients!$EU$8:$EU$228)+(IF($A$7=Nutrients!$B$8,Nutrients!$EU$8,Nutrients!$EU$9)*AH$7)+(((IF($A$8=Nutrients!$B$79,Nutrients!$EU$79,(IF($A$8=Nutrients!$B$77,Nutrients!$EU$77,Nutrients!$EU$78)))))*AH$8))","v":12000},{"$f":"(SUMPRODUCT(AI$9:AI$229,Nutrients!$EU$8:$EU$228)+(IF($A$7=Nutrients!$B$8,Nutrients!$EU$8,Nutrients!$EU$9)*AI$7)+(((IF($A$8=Nutrients!$B$79,Nutrients!$EU$79,(IF($A$8=Nutrients!$B$77,Nutrients!$EU$77,Nutrients!$EU$78)))))*AI$8))","v":12000},null,{"$f":"(SUMPRODUCT(AK$9:AK$229,Nutrients!$EU$8:$EU$228)+(IF($A$7=Nutrients!$B$8,Nutrients!$EU$8,Nutrients!$EU$9)*AK$7)+(((IF($A$8=Nutrients!$B$79,Nutrients!$EU$79,(IF($A$8=Nutrients!$B$77,Nutrients!$EU$77,Nutrients!$EU$78)))))*AK$8))","v":24000},{"$f":"(SUMPRODUCT(AL$9:AL$229,Nutrients!$EU$8:$EU$228)+(IF($A$7=Nutrients!$B$8,Nutrients!$EU$8,Nutrients!$EU$9)*AL$7)+(((IF($A$8=Nutrients!$B$79,Nutrients!$EU$79,(IF($A$8=Nutrients!$B$77,Nutrients!$EU$77,Nutrients!$EU$78)))))*AL$8))","v":24000},{"$f":"(SUMPRODUCT(AM$9:AM$229,Nutrients!$EU$8:$EU$228)+(IF($A$7=Nutrients!$B$8,Nutrients!$EU$8,Nutrients!$EU$9)*AM$7)+(((IF($A$8=Nutrients!$B$79,Nutrients!$EU$79,(IF($A$8=Nutrients!$B$77,Nutrients!$EU$77,Nutrients!$EU$78)))))*AM$8))","v":20000},{"$f":"(SUMPRODUCT(AN$9:AN$229,Nutrients!$EU$8:$EU$228)+(IF($A$7=Nutrients!$B$8,Nutrients!$EU$8,Nutrients!$EU$9)*AN$7)+(((IF($A$8=Nutrients!$B$79,Nutrients!$EU$79,(IF($A$8=Nutrients!$B$77,Nutrients!$EU$77,Nutrients!$EU$78)))))*AN$8))","v":16000},{"$f":"(SUMPRODUCT(AO$9:AO$229,Nutrients!$EU$8:$EU$228)+(IF($A$7=Nutrients!$B$8,Nutrients!$EU$8,Nutrients!$EU$9)*AO$7)+(((IF($A$8=Nutrients!$B$79,Nutrients!$EU$79,(IF($A$8=Nutrients!$B$77,Nutrients!$EU$77,Nutrients!$EU$78)))))*AO$8))","v":12000},{"$f":"(SUMPRODUCT(AP$9:AP$229,Nutrients!$EU$8:$EU$228)+(IF($A$7=Nutrients!$B$8,Nutrients!$EU$8,Nutrients!$EU$9)*AP$7)+(((IF($A$8=Nutrients!$B$79,Nutrients!$EU$79,(IF($A$8=Nutrients!$B$77,Nutrients!$EU$77,Nutrients!$EU$78)))))*AP$8))","v":12000},null,{"$f":"(SUMPRODUCT(AR$9:AR$229,Nutrients!$EU$8:$EU$228)+(IF($A$7=Nutrients!$B$8,Nutrients!$EU$8,Nutrients!$EU$9)*AR$7)+(((IF($A$8=Nutrients!$B$79,Nutrients!$EU$79,(IF($A$8=Nutrients!$B$77,Nutrients!$EU$77,Nutrients!$EU$78)))))*AR$8))","v":24000},{"$f":"(SUMPRODUCT(AS$9:AS$229,Nutrients!$EU$8:$EU$228)+(IF($A$7=Nutrients!$B$8,Nutrients!$EU$8,Nutrients!$EU$9)*AS$7)+(((IF($A$8=Nutrients!$B$79,Nutrients!$EU$79,(IF($A$8=Nutrients!$B$77,Nutrients!$EU$77,Nutrients!$EU$78)))))*AS$8))","v":24000},{"$f":"(SUMPRODUCT(AT$9:AT$229,Nutrients!$EU$8:$EU$228)+(IF($A$7=Nutrients!$B$8,Nutrients!$EU$8,Nutrients!$EU$9)*AT$7)+(((IF($A$8=Nutrients!$B$79,Nutrients!$EU$79,(IF($A$8=Nutrients!$B$77,Nutrients!$EU$77,Nutrients!$EU$78)))))*AT$8))","v":20000},{"$f":"(SUMPRODUCT(AU$9:AU$229,Nutrients!$EU$8:$EU$228)+(IF($A$7=Nutrients!$B$8,Nutrients!$EU$8,Nutrients!$EU$9)*AU$7)+(((IF($A$8=Nutrients!$B$79,Nutrients!$EU$79,(IF($A$8=Nutrients!$B$77,Nutrients!$EU$77,Nutrients!$EU$78)))))*AU$8))","v":16000},{"$f":"(SUMPRODUCT(AV$9:AV$229,Nutrients!$EU$8:$EU$228)+(IF($A$7=Nutrients!$B$8,Nutrients!$EU$8,Nutrients!$EU$9)*AV$7)+(((IF($A$8=Nutrients!$B$79,Nutrients!$EU$79,(IF($A$8=Nutrients!$B$77,Nutrients!$EU$77,Nutrients!$EU$78)))))*AV$8))","v":12000},{"$f":"(SUMPRODUCT(AW$9:AW$229,Nutrients!$EU$8:$EU$228)+(IF($A$7=Nutrients!$B$8,Nutrients!$EU$8,Nutrients!$EU$9)*AW$7)+(((IF($A$8=Nutrients!$B$79,Nutrients!$EU$79,(IF($A$8=Nutrients!$B$77,Nutrients!$EU$77,Nutrients!$EU$78)))))*AW$8))","v":12000}]
["  Vit K (menadione), mg/ton",{"$f":"(SUMPRODUCT(B$9:B$229,Nutrients!$EV$8:$EV$228)+(IF($A$7=Nutrients!$B$8,Nutrients!$EV$8,Nutrients!$EV$9)*B$7)+(((IF($A$8=Nutrients!$B$79,Nutrients!$EV$79,(IF($A$8=Nutrients!$B$77,Nutrients!$EV$77,Nutrients!$EV$78)))))*B$8))","v":1800},{"$f":"(SUMPRODUCT(C$9:C$229,Nutrients!$EV$8:$EV$228)+(IF($A$7=Nutrients!$B$8,Nutrients!$EV$8,Nutrients!$EV$9)*C$7)+(((IF($A$8=Nutrients!$B$79,Nutrients!$EV$79,(IF($A$8=Nutrients!$B$77,Nutrients!$EV$77,Nutrients!$EV$78)))))*C$8))","v":1800},{"$f":"(SUMPRODUCT(D$9:D$229,Nutrients!$EV$8:$EV$228)+(IF($A$7=Nutrients!$B$8,Nutrients!$EV$8,Nutrients!$EV$9)*D$7)+(((IF($A$8=Nutrients!$B$79,Nutrients!$EV$79,(IF($A$8=Nutrients!$B$77,Nutrients!$EV$77,Nutrients!$EV$78)))))*D$8))","v":1500},{"$f":"(SUMPRODUCT(E$9:E$229,Nutrients!$EV$8:$EV$228)+(IF($A$7=Nutrients!$B$8,Nutrients!$EV$8,Nutrients!$EV$9)*E$7)+(((IF($A$8=Nutrients!$B$79,Nutrients!$EV$79,(IF($A$8=Nutrients!$B$77,Nutrients!$EV$77,Nutrients!$EV$78)))))*E$8))","v":1200},{"$f":"(SUMPRODUCT(F$9:F$229,Nutrients!$EV$8:$EV$228)+(IF($A$7=Nutrients!$B$8,Nutrients!$EV$8,Nutrients!$EV$9)*F$7)+(((IF($A$8=Nutrients!$B$79,Nutrients!$EV$79,(IF($A$8=Nutrients!$B$77,Nutrients!$EV$77,Nutrients!$EV$78)))))*F$8))","v":900},{"$f":"(SUMPRODUCT(G$9:G$229,Nutrients!$EV$8:$EV$228)+(IF($A$7=Nutrients!$B$8,Nutrients!$EV$8,Nutrients!$EV$9)*G$7)+(((IF($A$8=Nutrients!$B$79,Nutrients!$EV$79,(IF($A$8=Nutrients!$B$77,Nutrients!$EV$77,Nutrients!$EV$78)))))*G$8))","v":900},null,{"$f":"(SUMPRODUCT(I$9:I$229,Nutrients!$EV$8:$EV$228)+(IF($A$7=Nutrients!$B$8,Nutrients!$EV$8,Nutrients!$EV$9)*I$7)+(((IF($A$8=Nutrients!$B$79,Nutrients!$EV$79,(IF($A$8=Nutrients!$B$77,Nutrients!$EV$77,Nutrients!$EV$78)))))*I$8))","v":1800},{"$f":"(SUMPRODUCT(J$9:J$229,Nutrients!$EV$8:$EV$228)+(IF($A$7=Nutrients!$B$8,Nutrients!$EV$8,Nutrients!$EV$9)*J$7)+(((IF($A$8=Nutrients!$B$79,Nutrients!$EV$79,(IF($A$8=Nutrients!$B$77,Nutrients!$EV$77,Nutrients!$EV$78)))))*J$8))","v":1800},{"$f":"(SUMPRODUCT(K$9:K$229,Nutrients!$EV$8:$EV$228)+(IF($A$7=Nutrients!$B$8,Nutrients!$EV$8,Nutrients!$EV$9)*K$7)+(((IF($A$8=Nutrients!$B$79,Nutrients!$EV$79,(IF($A$8=Nutrients!$B$77,Nutrients!$EV$77,Nutrients!$EV$78)))))*K$8))","v":1500},{"$f":"(SUMPRODUCT(L$9:L$229,Nutrients!$EV$8:$EV$228)+(IF($A$7=Nutrients!$B$8,Nutrients!$EV$8,Nutrients!$EV$9)*L$7)+(((IF($A$8=Nutrients!$B$79,Nutrients!$EV$79,(IF($A$8=Nutrients!$B$77,Nutrients!$EV$77,Nutrients!$EV$78)))))*L$8))","v":1200},{"$f":"(SUMPRODUCT(M$9:M$229,Nutrients!$EV$8:$EV$228)+(IF($A$7=Nutrients!$B$8,Nutrients!$EV$8,Nutrients!$EV$9)*M$7)+(((IF($A$8=Nutrients!$B$79,Nutrients!$EV$79,(IF($A$8=Nutrients!$B$77,Nutrients!$EV$77,Nutrients!$EV$78)))))*M$8))","v":900},{"$f":"(SUMPRODUCT(N$9:N$229,Nutrients!$EV$8:$EV$228)+(IF($A$7=Nutrients!$B$8,Nutrients!$EV$8,Nutrients!$EV$9)*N$7)+(((IF($A$8=Nutrients!$B$79,Nutrients!$EV$79,(IF($A$8=Nutrients!$B$77,Nutrients!$EV$77,Nutrients!$EV$78)))))*N$8))","v":900},null,{"$f":"(SUMPRODUCT(P$9:P$229,Nutrients!$EV$8:$EV$228)+(IF($A$7=Nutrients!$B$8,Nutrients!$EV$8,Nutrients!$EV$9)*P$7)+(((IF($A$8=Nutrients!$B$79,Nutrients!$EV$79,(IF($A$8=Nutrients!$B$77,Nutrients!$EV$77,Nutrients!$EV$78)))))*P$8))","v":1800},{"$f":"(SUMPRODUCT(Q$9:Q$229,Nutrients!$EV$8:$EV$228)+(IF($A$7=Nutrients!$B$8,Nutrients!$EV$8,Nutrients!$EV$9)*Q$7)+(((IF($A$8=Nutrients!$B$79,Nutrients!$EV$79,(IF($A$8=Nutrients!$B$77,Nutrients!$EV$77,Nutrients!$EV$78)))))*Q$8))","v":1800},{"$f":"(SUMPRODUCT(R$9:R$229,Nutrients!$EV$8:$EV$228)+(IF($A$7=Nutrients!$B$8,Nutrients!$EV$8,Nutrients!$EV$9)*R$7)+(((IF($A$8=Nutrients!$B$79,Nutrients!$EV$79,(IF($A$8=Nutrients!$B$77,Nutrients!$EV$77,Nutrients!$EV$78)))))*R$8))","v":1500},{"$f":"(SUMPRODUCT(S$9:S$229,Nutrients!$EV$8:$EV$228)+(IF($A$7=Nutrients!$B$8,Nutrients!$EV$8,Nutrients!$EV$9)*S$7)+(((IF($A$8=Nutrients!$B$79,Nutrients!$EV$79,(IF($A$8=Nutrients!$B$77,Nutrients!$EV$77,Nutrients!$EV$78)))))*S$8))","v":1200},{"$f":"(SUMPRODUCT(T$9:T$229,Nutrients!$EV$8:$EV$228)+(IF($A$7=Nutrients!$B$8,Nutrients!$EV$8,Nutrients!$EV$9)*T$7)+(((IF($A$8=Nutrients!$B$79,Nutrients!$EV$79,(IF($A$8=Nutrients!$B$77,Nutrients!$EV$77,Nutrients!$EV$78)))))*T$8))","v":900},{"$f":"(SUMPRODUCT(U$9:U$229,Nutrients!$EV$8:$EV$228)+(IF($A$7=Nutrients!$B$8,Nutrients!$EV$8,Nutrients!$EV$9)*U$7)+(((IF($A$8=Nutrients!$B$79,Nutrients!$EV$79,(IF($A$8=Nutrients!$B$77,Nutrients!$EV$77,Nutrients!$EV$78)))))*U$8))","v":900},null,{"$f":"(SUMPRODUCT(W$9:W$229,Nutrients!$EV$8:$EV$228)+(IF($A$7=Nutrients!$B$8,Nutrients!$EV$8,Nutrients!$EV$9)*W$7)+(((IF($A$8=Nutrients!$B$79,Nutrients!$EV$79,(IF($A$8=Nutrients!$B$77,Nutrients!$EV$77,Nutrients!$EV$78)))))*W$8))","v":1800},{"$f":"(SUMPRODUCT(X$9:X$229,Nutrients!$EV$8:$EV$228)+(IF($A$7=Nutrients!$B$8,Nutrients!$EV$8,Nutrients!$EV$9)*X$7)+(((IF($A$8=Nutrients!$B$79,Nutrients!$EV$79,(IF($A$8=Nutrients!$B$77,Nutrients!$EV$77,Nutrients!$EV$78)))))*X$8))","v":1800},{"$f":"(SUMPRODUCT(Y$9:Y$229,Nutrients!$EV$8:$EV$228)+(IF($A$7=Nutrients!$B$8,Nutrients!$EV$8,Nutrients!$EV$9)*Y$7)+(((IF($A$8=Nutrients!$B$79,Nutrients!$EV$79,(IF($A$8=Nutrients!$B$77,Nutrients!$EV$77,Nutrients!$EV$78)))))*Y$8))","v":1500},{"$f":"(SUMPRODUCT(Z$9:Z$229,Nutrients!$EV$8:$EV$228)+(IF($A$7=Nutrients!$B$8,Nutrients!$EV$8,Nutrients!$EV$9)*Z$7)+(((IF($A$8=Nutrients!$B$79,Nutrients!$EV$79,(IF($A$8=Nutrients!$B$77,Nutrients!$EV$77,Nutrients!$EV$78)))))*Z$8))","v":1200},{"$f":"(SUMPRODUCT(AA$9:AA$229,Nutrients!$EV$8:$EV$228)+(IF($A$7=Nutrients!$B$8,Nutrients!$EV$8,Nutrients!$EV$9)*AA$7)+(((IF($A$8=Nutrients!$B$79,Nutrients!$EV$79,(IF($A$8=Nutrients!$B$77,Nutrients!$EV$77,Nutrients!$EV$78)))))*AA$8))","v":900},{"$f":"(SUMPRODUCT(AB$9:AB$229,Nutrients!$EV$8:$EV$228)+(IF($A$7=Nutrients!$B$8,Nutrients!$EV$8,Nutrients!$EV$9)*AB$7)+(((IF($A$8=Nutrients!$B$79,Nutrients!$EV$79,(IF($A$8=Nutrients!$B$77,Nutrients!$EV$77,Nutrients!$EV$78)))))*AB$8))","v":900},null,{"$f":"(SUMPRODUCT(AD$9:AD$229,Nutrients!$EV$8:$EV$228)+(IF($A$7=Nutrients!$B$8,Nutrients!$EV$8,Nutrients!$EV$9)*AD$7)+(((IF($A$8=Nutrients!$B$79,Nutrients!$EV$79,(IF($A$8=Nutrients!$B$77,Nutrients!$EV$77,Nutrients!$EV$78)))))*AD$8))","v":1800},{"$f":"(SUMPRODUCT(AE$9:AE$229,Nutrients!$EV$8:$EV$228)+(IF($A$7=Nutrients!$B$8,Nutrients!$EV$8,Nutrients!$EV$9)*AE$7)+(((IF($A$8=Nutrients!$B$79,Nutrients!$EV$79,(IF($A$8=Nutrients!$B$77,Nutrients!$EV$77,Nutrients!$EV$78)))))*AE$8))","v":1800},{"$f":"(SUMPRODUCT(AF$9:AF$229,Nutrients!$EV$8:$EV$228)+(IF($A$7=Nutrients!$B$8,Nutrients!$EV$8,Nutrients!$EV$9)*AF$7)+(((IF($A$8=Nutrients!$B$79,Nutrients!$EV$79,(IF($A$8=Nutrients!$B$77,Nutrients!$EV$77,Nutrients!$EV$78)))))*AF$8))","v":1500},{"$f":"(SUMPRODUCT(AG$9:AG$229,Nutrients!$EV$8:$EV$228)+(IF($A$7=Nutrients!$B$8,Nutrients!$EV$8,Nutrients!$EV$9)*AG$7)+(((IF($A$8=Nutrients!$B$79,Nutrients!$EV$79,(IF($A$8=Nutrients!$B$77,Nutrients!$EV$77,Nutrients!$EV$78)))))*AG$8))","v":1200},{"$f":"(SUMPRODUCT(AH$9:AH$229,Nutrients!$EV$8:$EV$228)+(IF($A$7=Nutrients!$B$8,Nutrients!$EV$8,Nutrients!$EV$9)*AH$7)+(((IF($A$8=Nutrients!$B$79,Nutrients!$EV$79,(IF($A$8=Nutrients!$B$77,Nutrients!$EV$77,Nutrients!$EV$78)))))*AH$8))","v":900},{"$f":"(SUMPRODUCT(AI$9:AI$229,Nutrients!$EV$8:$EV$228)+(IF($A$7=Nutrients!$B$8,Nutrients!$EV$8,Nutrients!$EV$9)*AI$7)+(((IF($A$8=Nutrients!$B$79,Nutrients!$EV$79,(IF($A$8=Nutrients!$B$77,Nutrients!$EV$77,Nutrients!$EV$78)))))*AI$8))","v":900},null,{"$f":"(SUMPRODUCT(AK$9:AK$229,Nutrients!$EV$8:$EV$228)+(IF($A$7=Nutrients!$B$8,Nutrients!$EV$8,Nutrients!$EV$9)*AK$7)+(((IF($A$8=Nutrients!$B$79,Nutrients!$EV$79,(IF($A$8=Nutrients!$B$77,Nutrients!$EV$77,Nutrients!$EV$78)))))*AK$8))","v":1800},{"$f":"(SUMPRODUCT(AL$9:AL$229,Nutrients!$EV$8:$EV$228)+(IF($A$7=Nutrients!$B$8,Nutrients!$EV$8,Nutrients!$EV$9)*AL$7)+(((IF($A$8=Nutrients!$B$79,Nutrients!$EV$79,(IF($A$8=Nutrients!$B$77,Nutrients!$EV$77,Nutrients!$EV$78)))))*AL$8))","v":1800},{"$f":"(SUMPRODUCT(AM$9:AM$229,Nutrients!$EV$8:$EV$228)+(IF($A$7=Nutrients!$B$8,Nutrients!$EV$8,Nutrients!$EV$9)*AM$7)+(((IF($A$8=Nutrients!$B$79,Nutrients!$EV$79,(IF($A$8=Nutrients!$B$77,Nutrients!$EV$77,Nutrients!$EV$78)))))*AM$8))","v":1500},{"$f":"(SUMPRODUCT(AN$9:AN$229,Nutrients!$EV$8:$EV$228)+(IF($A$7=Nutrients!$B$8,Nutrients!$EV$8,Nutrients!$EV$9)*AN$7)+(((IF($A$8=Nutrients!$B$79,Nutrients!$EV$79,(IF($A$8=Nutrients!$B$77,Nutrients!$EV$77,Nutrients!$EV$78)))))*AN$8))","v":1200},{"$f":"(SUMPRODUCT(AO$9:AO$229,Nutrients!$EV$8:$EV$228)+(IF($A$7=Nutrients!$B$8,Nutrients!$EV$8,Nutrients!$EV$9)*AO$7)+(((IF($A$8=Nutrients!$B$79,Nutrients!$EV$79,(IF($A$8=Nutrients!$B$77,Nutrients!$EV$77,Nutrients!$EV$78)))))*AO$8))","v":900},{"$f":"(SUMPRODUCT(AP$9:AP$229,Nutrients!$EV$8:$EV$228)+(IF($A$7=Nutrients!$B$8,Nutrients!$EV$8,Nutrients!$EV$9)*AP$7)+(((IF($A$8=Nutrients!$B$79,Nutrients!$EV$79,(IF($A$8=Nutrients!$B$77,Nutrients!$EV$77,Nutrients!$EV$78)))))*AP$8))","v":900},null,{"$f":"(SUMPRODUCT(AR$9:AR$229,Nutrients!$EV$8:$EV$228)+(IF($A$7=Nutrients!$B$8,Nutrients!$EV$8,Nutrients!$EV$9)*AR$7)+(((IF($A$8=Nutrients!$B$79,Nutrients!$EV$79,(IF($A$8=Nutrients!$B$77,Nutrients!$EV$77,Nutrients!$EV$78)))))*AR$8))","v":1800},{"$f":"(SUMPRODUCT(AS$9:AS$229,Nutrients!$EV$8:$EV$228)+(IF($A$7=Nutrients!$B$8,Nutrients!$EV$8,Nutrients!$EV$9)*AS$7)+(((IF($A$8=Nutrients!$B$79,Nutrients!$EV$79,(IF($A$8=Nutrients!$B$77,Nutrients!$EV$77,Nutrients!$EV$78)))))*AS$8))","v":1800},{"$f":"(SUMPRODUCT(AT$9:AT$229,Nutrients!$EV$8:$EV$228)+(IF($A$7=Nutrients!$B$8,Nutrients!$EV$8,Nutrients!$EV$9)*AT$7)+(((IF($A$8=Nutrients!$B$79,Nutrients!$EV$79,(IF($A$8=Nutrients!$B$77,Nutrients!$EV$77,Nutrients!$EV$78)))))*AT$8))","v":1500},{"$f":"(SUMPRODUCT(AU$9:AU$229,Nutrients!$EV$8:$EV$228)+(IF($A$7=Nutrients!$B$8,Nutrients!$EV$8,Nutrients!$EV$9)*AU$7)+(((IF($A$8=Nutrients!$B$79,Nutrients!$EV$79,(IF($A$8=Nutrients!$B$77,Nutrients!$EV$77,Nutrients!$EV$78)))))*AU$8))","v":1200},{"$f":"(SUMPRODUCT(AV$9:AV$229,Nutrients!$EV$8:$EV$228)+(IF($A$7=Nutrients!$B$8,Nutrients!$EV$8,Nutrients!$EV$9)*AV$7)+(((IF($A$8=Nutrients!$B$79,Nutrients!$EV$79,(IF($A$8=Nutrients!$B$77,Nutrients!$EV$77,Nutrients!$EV$78)))))*AV$8))","v":900},{"$f":"(SUMPRODUCT(AW$9:AW$229,Nutrients!$EV$8:$EV$228)+(IF($A$7=Nutrients!$B$8,Nutrients!$EV$8,Nutrients!$EV$9)*AW$7)+(((IF($A$8=Nutrients!$B$79,Nutrients!$EV$79,(IF($A$8=Nutrients!$B$77,Nutrients!$EV$77,Nutrients!$EV$78)))))*AW$8))","v":900}]
["  Vit B12, mg/ton",{"$f":"(SUMPRODUCT(B$9:B$229,Nutrients!$EW$8:$EW$228)+(IF($A$7=Nutrients!$B$8,Nutrients!$EW$8,Nutrients!$EW$9)*B$7)+(((IF($A$8=Nutrients!$B$79,Nutrients!$EW$79,(IF($A$8=Nutrients!$B$77,Nutrients!$EW$77,Nutrients!$EW$78)))))*B$8))","v":18},{"$f":"(SUMPRODUCT(C$9:C$229,Nutrients!$EW$8:$EW$228)+(IF($A$7=Nutrients!$B$8,Nutrients!$EW$8,Nutrients!$EW$9)*C$7)+(((IF($A$8=Nutrients!$B$79,Nutrients!$EW$79,(IF($A$8=Nutrients!$B$77,Nutrients!$EW$77,Nutrients!$EW$78)))))*C$8))","v":18},{"$f":"(SUMPRODUCT(D$9:D$229,Nutrients!$EW$8:$EW$228)+(IF($A$7=Nutrients!$B$8,Nutrients!$EW$8,Nutrients!$EW$9)*D$7)+(((IF($A$8=Nutrients!$B$79,Nutrients!$EW$79,(IF($A$8=Nutrients!$B$77,Nutrients!$EW$77,Nutrients!$EW$78)))))*D$8))","v":15},{"$f":"(SUMPRODUCT(E$9:E$229,Nutrients!$EW$8:$EW$228)+(IF($A$7=Nutrients!$B$8,Nutrients!$EW$8,Nutrients!$EW$9)*E$7)+(((IF($A$8=Nutrients!$B$79,Nutrients!$EW$79,(IF($A$8=Nutrients!$B$77,Nutrients!$EW$77,Nutrients!$EW$78)))))*E$8))","v":12},{"$f":"(SUMPRODUCT(F$9:F$229,Nutrients!$EW$8:$EW$228)+(IF($A$7=Nutrients!$B$8,Nutrients!$EW$8,Nutrients!$EW$9)*F$7)+(((IF($A$8=Nutrients!$B$79,Nutrients!$EW$79,(IF($A$8=Nutrients!$B$77,Nutrients!$EW$77,Nutrients!$EW$78)))))*F$8))","v":9},{"$f":"(SUMPRODUCT(G$9:G$229,Nutrients!$EW$8:$EW$228)+(IF($A$7=Nutrients!$B$8,Nutrients!$EW$8,Nutrients!$EW$9)*G$7)+(((IF($A$8=Nutrients!$B$79,Nutrients!$EW$79,(IF($A$8=Nutrients!$B$77,Nutrients!$EW$77,Nutrients!$EW$78)))))*G$8))","v":9},null,{"$f":"(SUMPRODUCT(I$9:I$229,Nutrients!$EW$8:$EW$228)+(IF($A$7=Nutrients!$B$8,Nutrients!$EW$8,Nutrients!$EW$9)*I$7)+(((IF($A$8=Nutrients!$B$79,Nutrients!$EW$79,(IF($A$8=Nutrients!$B$77,Nutrients!$EW$77,Nutrients!$EW$78)))))*I$8))","v":18},{"$f":"(SUMPRODUCT(J$9:J$229,Nutrients!$EW$8:$EW$228)+(IF($A$7=Nutrients!$B$8,Nutrients!$EW$8,Nutrients!$EW$9)*J$7)+(((IF($A$8=Nutrients!$B$79,Nutrients!$EW$79,(IF($A$8=Nutrients!$B$77,Nutrients!$EW$77,Nutrients!$EW$78)))))*J$8))","v":18},{"$f":"(SUMPRODUCT(K$9:K$229,Nutrients!$EW$8:$EW$228)+(IF($A$7=Nutrients!$B$8,Nutrients!$EW$8,Nutrients!$EW$9)*K$7)+(((IF($A$8=Nutrients!$B$79,Nutrients!$EW$79,(IF($A$8=Nutrients!$B$77,Nutrients!$EW$77,Nutrients!$EW$78)))))*K$8))","v":15},{"$f":"(SUMPRODUCT(L$9:L$229,Nutrients!$EW$8:$EW$228)+(IF($A$7=Nutrients!$B$8,Nutrients!$EW$8,Nutrients!$EW$9)*L$7)+(((IF($A$8=Nutrients!$B$79,Nutrients!$EW$79,(IF($A$8=Nutrients!$B$77,Nutrients!$EW$77,Nutrients!$EW$78)))))*L$8))","v":12},{"$f":"(SUMPRODUCT(M$9:M$229,Nutrients!$EW$8:$EW$228)+(IF($A$7=Nutrients!$B$8,Nutrients!$EW$8,Nutrients!$EW$9)*M$7)+(((IF($A$8=Nutrients!$B$79,Nutrients!$EW$79,(IF($A$8=Nutrients!$B$77,Nutrients!$EW$77,Nutrients!$EW$78)))))*M$8))","v":9},{"$f":"(SUMPRODUCT(N$9:N$229,Nutrients!$EW$8:$EW$228)+(IF($A$7=Nutrients!$B$8,Nutrients!$EW$8,Nutrients!$EW$9)*N$7)+(((IF($A$8=Nutrients!$B$79,Nutrients!$EW$79,(IF($A$8=Nutrients!$B$77,Nutrients!$EW$77,Nutrients!$EW$78)))))*N$8))","v":9},null,{"$f":"(SUMPRODUCT(P$9:P$229,Nutrients!$EW$8:$EW$228)+(IF($A$7=Nutrients!$B$8,Nutrients!$EW$8,Nutrients!$EW$9)*P$7)+(((IF($A$8=Nutrients!$B$79,Nutrients!$EW$79,(IF($A$8=Nutrients!$B$77,Nutrients!$EW$77,Nutrients!$EW$78)))))*P$8))","v":18},{"$f":"(SUMPRODUCT(Q$9:Q$229,Nutrients!$EW$8:$EW$228)+(IF($A$7=Nutrients!$B$8,Nutrients!$EW$8,Nutrients!$EW$9)*Q$7)+(((IF($A$8=Nutrients!$B$79,Nutrients!$EW$79,(IF($A$8=Nutrients!$B$77,Nutrients!$EW$77,Nutrients!$EW$78)))))*Q$8))","v":18},{"$f":"(SUMPRODUCT(R$9:R$229,Nutrients!$EW$8:$EW$228)+(IF($A$7=Nutrients!$B$8,Nutrients!$EW$8,Nutrients!$EW$9)*R$7)+(((IF($A$8=Nutrients!$B$79,Nutrients!$EW$79,(IF($A$8=Nutrients!$B$77,Nutrients!$EW$77,Nutrients!$EW$78)))))*R$8))","v":15},{"$f":"(SUMPRODUCT(S$9:S$229,Nutrients!$EW$8:$EW$228)+(IF($A$7=Nutrients!$B$8,Nutrients!$EW$8,Nutrients!$EW$9)*S$7)+(((IF($A$8=Nutrients!$B$79,Nutrients!$EW$79,(IF($A$8=Nutrients!$B$77,Nutrients!$EW$77,Nutrients!$EW$78)))))*S$8))","v":12},{"$f":"(SUMPRODUCT(T$9:T$229,Nutrients!$EW$8:$EW$228)+(IF($A$7=Nutrients!$B$8,Nutrients!$EW$8,Nutrients!$EW$9)*T$7)+(((IF($A$8=Nutrients!$B$79,Nutrients!$EW$79,(IF($A$8=Nutrients!$B$77,Nutrients!$EW$77,Nutrients!$EW$78)))))*T$8))","v":9},{"$f":"(SUMPRODUCT(U$9:U$229,Nutrients!$EW$8:$EW$228)+(IF($A$7=Nutrients!$B$8,Nutrients!$EW$8,Nutrients!$EW$9)*U$7)+(((IF($A$8=Nutrients!$B$79,Nutrients!$EW$79,(IF($A$8=Nutrients!$B$77,Nutrients!$EW$77,Nutrients!$EW$78)))))*U$8))","v":9},null,{"$f":"(SUMPRODUCT(W$9:W$229,Nutrients!$EW$8:$EW$228)+(IF($A$7=Nutrients!$B$8,Nutrients!$EW$8,Nutrients!$EW$9)*W$7)+(((IF($A$8=Nutrients!$B$79,Nutrients!$EW$79,(IF($A$8=Nutrients!$B$77,Nutrients!$EW$77,Nutrients!$EW$78)))))*W$8))","v":18},{"$f":"(SUMPRODUCT(X$9:X$229,Nutrients!$EW$8:$EW$228)+(IF($A$7=Nutrients!$B$8,Nutrients!$EW$8,Nutrients!$EW$9)*X$7)+(((IF($A$8=Nutrients!$B$79,Nutrients!$EW$79,(IF($A$8=Nutrients!$B$77,Nutrients!$EW$77,Nutrients!$EW$78)))))*X$8))","v":18},{"$f":"(SUMPRODUCT(Y$9:Y$229,Nutrients!$EW$8:$EW$228)+(IF($A$7=Nutrients!$B$8,Nutrients!$EW$8,Nutrients!$EW$9)*Y$7)+(((IF($A$8=Nutrients!$B$79,Nutrients!$EW$79,(IF($A$8=Nutrients!$B$77,Nutrients!$EW$77,Nutrients!$EW$78)))))*Y$8))","v":15},{"$f":"(SUMPRODUCT(Z$9:Z$229,Nutrients!$EW$8:$EW$228)+(IF($A$7=Nutrients!$B$8,Nutrients!$EW$8,Nutrients!$EW$9)*Z$7)+(((IF($A$8=Nutrients!$B$79,Nutrients!$EW$79,(IF($A$8=Nutrients!$B$77,Nutrients!$EW$77,Nutrients!$EW$78)))))*Z$8))","v":12},{"$f":"(SUMPRODUCT(AA$9:AA$229,Nutrients!$EW$8:$EW$228)+(IF($A$7=Nutrients!$B$8,Nutrients!$EW$8,Nutrients!$EW$9)*AA$7)+(((IF($A$8=Nutrients!$B$79,Nutrients!$EW$79,(IF($A$8=Nutrients!$B$77,Nutrients!$EW$77,Nutrients!$EW$78)))))*AA$8))","v":9},{"$f":"(SUMPRODUCT(AB$9:AB$229,Nutrients!$EW$8:$EW$228)+(IF($A$7=Nutrients!$B$8,Nutrients!$EW$8,Nutrients!$EW$9)*AB$7)+(((IF($A$8=Nutrients!$B$79,Nutrients!$EW$79,(IF($A$8=Nutrients!$B$77,Nutrients!$EW$77,Nutrients!$EW$78)))))*AB$8))","v":9},null,{"$f":"(SUMPRODUCT(AD$9:AD$229,Nutrients!$EW$8:$EW$228)+(IF($A$7=Nutrients!$B$8,Nutrients!$EW$8,Nutrients!$EW$9)*AD$7)+(((IF($A$8=Nutrients!$B$79,Nutrients!$EW$79,(IF($A$8=Nutrients!$B$77,Nutrients!$EW$77,Nutrients!$EW$78)))))*AD$8))","v":18},{"$f":"(SUMPRODUCT(AE$9:AE$229,Nutrients!$EW$8:$EW$228)+(IF($A$7=Nutrients!$B$8,Nutrients!$EW$8,Nutrients!$EW$9)*AE$7)+(((IF($A$8=Nutrients!$B$79,Nutrients!$EW$79,(IF($A$8=Nutrients!$B$77,Nutrients!$EW$77,Nutrients!$EW$78)))))*AE$8))","v":18},{"$f":"(SUMPRODUCT(AF$9:AF$229,Nutrients!$EW$8:$EW$228)+(IF($A$7=Nutrients!$B$8,Nutrients!$EW$8,Nutrients!$EW$9)*AF$7)+(((IF($A$8=Nutrients!$B$79,Nutrients!$EW$79,(IF($A$8=Nutrients!$B$77,Nutrients!$EW$77,Nutrients!$EW$78)))))*AF$8))","v":15},{"$f":"(SUMPRODUCT(AG$9:AG$229,Nutrients!$EW$8:$EW$228)+(IF($A$7=Nutrients!$B$8,Nutrients!$EW$8,Nutrients!$EW$9)*AG$7)+(((IF($A$8=Nutrients!$B$79,Nutrients!$EW$79,(IF($A$8=Nutrients!$B$77,Nutrients!$EW$77,Nutrients!$EW$78)))))*AG$8))","v":12},{"$f":"(SUMPRODUCT(AH$9:AH$229,Nutrients!$EW$8:$EW$228)+(IF($A$7=Nutrients!$B$8,Nutrients!$EW$8,Nutrients!$EW$9)*AH$7)+(((IF($A$8=Nutrients!$B$79,Nutrients!$EW$79,(IF($A$8=Nutrients!$B$77,Nutrients!$EW$77,Nutrients!$EW$78)))))*AH$8))","v":9},{"$f":"(SUMPRODUCT(AI$9:AI$229,Nutrients!$EW$8:$EW$228)+(IF($A$7=Nutrients!$B$8,Nutrients!$EW$8,Nutrients!$EW$9)*AI$7)+(((IF($A$8=Nutrients!$B$79,Nutrients!$EW$79,(IF($A$8=Nutrients!$B$77,Nutrients!$EW$77,Nutrients!$EW$78)))))*AI$8))","v":9},null,{"$f":"(SUMPRODUCT(AK$9:AK$229,Nutrients!$EW$8:$EW$228)+(IF($A$7=Nutrients!$B$8,Nutrients!$EW$8,Nutrients!$EW$9)*AK$7)+(((IF($A$8=Nutrients!$B$79,Nutrients!$EW$79,(IF($A$8=Nutrients!$B$77,Nutrients!$EW$77,Nutrients!$EW$78)))))*AK$8))","v":18},{"$f":"(SUMPRODUCT(AL$9:AL$229,Nutrients!$EW$8:$EW$228)+(IF($A$7=Nutrients!$B$8,Nutrients!$EW$8,Nutrients!$EW$9)*AL$7)+(((IF($A$8=Nutrients!$B$79,Nutrients!$EW$79,(IF($A$8=Nutrients!$B$77,Nutrients!$EW$77,Nutrients!$EW$78)))))*AL$8))","v":18},{"$f":"(SUMPRODUCT(AM$9:AM$229,Nutrients!$EW$8:$EW$228)+(IF($A$7=Nutrients!$B$8,Nutrients!$EW$8,Nutrients!$EW$9)*AM$7)+(((IF($A$8=Nutrients!$B$79,Nutrients!$EW$79,(IF($A$8=Nutrients!$B$77,Nutrients!$EW$77,Nutrients!$EW$78)))))*AM$8))","v":15},{"$f":"(SUMPRODUCT(AN$9:AN$229,Nutrients!$EW$8:$EW$228)+(IF($A$7=Nutrients!$B$8,Nutrients!$EW$8,Nutrients!$EW$9)*AN$7)+(((IF($A$8=Nutrients!$B$79,Nutrients!$EW$79,(IF($A$8=Nutrients!$B$77,Nutrients!$EW$77,Nutrients!$EW$78)))))*AN$8))","v":12},{"$f":"(SUMPRODUCT(AO$9:AO$229,Nutrients!$EW$8:$EW$228)+(IF($A$7=Nutrients!$B$8,Nutrients!$EW$8,Nutrients!$EW$9)*AO$7)+(((IF($A$8=Nutrients!$B$79,Nutrients!$EW$79,(IF($A$8=Nutrients!$B$77,Nutrients!$EW$77,Nutrients!$EW$78)))))*AO$8))","v":9},{"$f":"(SUMPRODUCT(AP$9:AP$229,Nutrients!$EW$8:$EW$228)+(IF($A$7=Nutrients!$B$8,Nutrients!$EW$8,Nutrients!$EW$9)*AP$7)+(((IF($A$8=Nutrients!$B$79,Nutrients!$EW$79,(IF($A$8=Nutrients!$B$77,Nutrients!$EW$77,Nutrients!$EW$78)))))*AP$8))","v":9},null,{"$f":"(SUMPRODUCT(AR$9:AR$229,Nutrients!$EW$8:$EW$228)+(IF($A$7=Nutrients!$B$8,Nutrients!$EW$8,Nutrients!$EW$9)*AR$7)+(((IF($A$8=Nutrients!$B$79,Nutrients!$EW$79,(IF($A$8=Nutrients!$B$77,Nutrients!$EW$77,Nutrients!$EW$78)))))*AR$8))","v":18},{"$f":"(SUMPRODUCT(AS$9:AS$229,Nutrients!$EW$8:$EW$228)+(IF($A$7=Nutrients!$B$8,Nutrients!$EW$8,Nutrients!$EW$9)*AS$7)+(((IF($A$8=Nutrients!$B$79,Nutrients!$EW$79,(IF($A$8=Nutrients!$B$77,Nutrients!$EW$77,Nutrients!$EW$78)))))*AS$8))","v":18},{"$f":"(SUMPRODUCT(AT$9:AT$229,Nutrients!$EW$8:$EW$228)+(IF($A$7=Nutrients!$B$8,Nutrients!$EW$8,Nutrients!$EW$9)*AT$7)+(((IF($A$8=Nutrients!$B$79,Nutrients!$EW$79,(IF($A$8=Nutrients!$B$77,Nutrients!$EW$77,Nutrients!$EW$78)))))*AT$8))","v":15},{"$f":"(SUMPRODUCT(AU$9:AU$229,Nutrients!$EW$8:$EW$228)+(IF($A$7=Nutrients!$B$8,Nutrients!$EW$8,Nutrients!$EW$9)*AU$7)+(((IF($A$8=Nutrients!$B$79,Nutrients!$EW$79,(IF($A$8=Nutrients!$B$77,Nutrients!$EW$77,Nutrients!$EW$78)))))*AU$8))","v":12},{"$f":"(SUMPRODUCT(AV$9:AV$229,Nutrients!$EW$8:$EW$228)+(IF($A$7=Nutrients!$B$8,Nutrients!$EW$8,Nutrients!$EW$9)*AV$7)+(((IF($A$8=Nutrients!$B$79,Nutrients!$EW$79,(IF($A$8=Nutrients!$B$77,Nutrients!$EW$77,Nutrients!$EW$78)))))*AV$8))","v":9},{"$f":"(SUMPRODUCT(AW$9:AW$229,Nutrients!$EW$8:$EW$228)+(IF($A$7=Nutrients!$B$8,Nutrients!$EW$8,Nutrients!$EW$9)*AW$7)+(((IF($A$8=Nutrients!$B$79,Nutrients!$EW$79,(IF($A$8=Nutrients!$B$77,Nutrients!$EW$77,Nutrients!$EW$78)))))*AW$8))","v":9}]
["  Niacin, mg/ton",{"$f":"(SUMPRODUCT(B$9:B$229,Nutrients!$EX$8:$EX$228)+(IF($A$7=Nutrients!$B$8,Nutrients!$EX$8,Nutrients!$EX$9)*B$7)+(((IF($A$8=Nutrients!$B$79,Nutrients!$EX$79,(IF($A$8=Nutrients!$B$77,Nutrients!$EX$77,Nutrients!$EX$78)))))*B$8))","v":27000},{"$f":"(SUMPRODUCT(C$9:C$229,Nutrients!$EX$8:$EX$228)+(IF($A$7=Nutrients!$B$8,Nutrients!$EX$8,Nutrients!$EX$9)*C$7)+(((IF($A$8=Nutrients!$B$79,Nutrients!$EX$79,(IF($A$8=Nutrients!$B$77,Nutrients!$EX$77,Nutrients!$EX$78)))))*C$8))","v":27000},{"$f":"(SUMPRODUCT(D$9:D$229,Nutrients!$EX$8:$EX$228)+(IF($A$7=Nutrients!$B$8,Nutrients!$EX$8,Nutrients!$EX$9)*D$7)+(((IF($A$8=Nutrients!$B$79,Nutrients!$EX$79,(IF($A$8=Nutrients!$B$77,Nutrients!$EX$77,Nutrients!$EX$78)))))*D$8))","v":22500},{"$f":"(SUMPRODUCT(E$9:E$229,Nutrients!$EX$8:$EX$228)+(IF($A$7=Nutrients!$B$8,Nutrients!$EX$8,Nutrients!$EX$9)*E$7)+(((IF($A$8=Nutrients!$B$79,Nutrients!$EX$79,(IF($A$8=Nutrients!$B$77,Nutrients!$EX$77,Nutrients!$EX$78)))))*E$8))","v":18000},{"$f":"(SUMPRODUCT(F$9:F$229,Nutrients!$EX$8:$EX$228)+(IF($A$7=Nutrients!$B$8,Nutrients!$EX$8,Nutrients!$EX$9)*F$7)+(((IF($A$8=Nutrients!$B$79,Nutrients!$EX$79,(IF($A$8=Nutrients!$B$77,Nutrients!$EX$77,Nutrients!$EX$78)))))*F$8))","v":13500},{"$f":"(SUMPRODUCT(G$9:G$229,Nutrients!$EX$8:$EX$228)+(IF($A$7=Nutrients!$B$8,Nutrients!$EX$8,Nutrients!$EX$9)*G$7)+(((IF($A$8=Nutrients!$B$79,Nutrients!$EX$79,(IF($A$8=Nutrients!$B$77,Nutrients!$EX$77,Nutrients!$EX$78)))))*G$8))","v":13500},null,{"$f":"(SUMPRODUCT(I$9:I$229,Nutrients!$EX$8:$EX$228)+(IF($A$7=Nutrients!$B$8,Nutrients!$EX$8,Nutrients!$EX$9)*I$7)+(((IF($A$8=Nutrients!$B$79,Nutrients!$EX$79,(IF($A$8=Nutrients!$B$77,Nutrients!$EX$77,Nutrients!$EX$78)))))*I$8))","v":27000},{"$f":"(SUMPRODUCT(J$9:J$229,Nutrients!$EX$8:$EX$228)+(IF($A$7=Nutrients!$B$8,Nutrients!$EX$8,Nutrients!$EX$9)*J$7)+(((IF($A$8=Nutrients!$B$79,Nutrients!$EX$79,(IF($A$8=Nutrients!$B$77,Nutrients!$EX$77,Nutrients!$EX$78)))))*J$8))","v":27000},{"$f":"(SUMPRODUCT(K$9:K$229,Nutrients!$EX$8:$EX$228)+(IF($A$7=Nutrients!$B$8,Nutrients!$EX$8,Nutrients!$EX$9)*K$7)+(((IF($A$8=Nutrients!$B$79,Nutrients!$EX$79,(IF($A$8=Nutrients!$B$77,Nutrients!$EX$77,Nutrients!$EX$78)))))*K$8))","v":22500},{"$f":"(SUMPRODUCT(L$9:L$229,Nutrients!$EX$8:$EX$228)+(IF($A$7=Nutrients!$B$8,Nutrients!$EX$8,Nutrients!$EX$9)*L$7)+(((IF($A$8=Nutrients!$B$79,Nutrients!$EX$79,(IF($A$8=Nutrients!$B$77,Nutrients!$EX$77,Nutrients!$EX$78)))))*L$8))","v":18000},{"$f":"(SUMPRODUCT(M$9:M$229,Nutrients!$EX$8:$EX$228)+(IF($A$7=Nutrients!$B$8,Nutrients!$EX$8,Nutrients!$EX$9)*M$7)+(((IF($A$8=Nutrients!$B$79,Nutrients!$EX$79,(IF($A$8=Nutrients!$B$77,Nutrients!$EX$77,Nutrients!$EX$78)))))*M$8))","v":13500},{"$f":"(SUMPRODUCT(N$9:N$229,Nutrients!$EX$8:$EX$228)+(IF($A$7=Nutrients!$B$8,Nutrients!$EX$8,Nutrients!$EX$9)*N$7)+(((IF($A$8=Nutrients!$B$79,Nutrients!$EX$79,(IF($A$8=Nutrients!$B$77,Nutrients!$EX$77,Nutrients!$EX$78)))))*N$8))","v":13500},null,{"$f":"(SUMPRODUCT(P$9:P$229,Nutrients!$EX$8:$EX$228)+(IF($A$7=Nutrients!$B$8,Nutrients!$EX$8,Nutrients!$EX$9)*P$7)+(((IF($A$8=Nutrients!$B$79,Nutrients!$EX$79,(IF($A$8=Nutrients!$B$77,Nutrients!$EX$77,Nutrients!$EX$78)))))*P$8))","v":27000},{"$f":"(SUMPRODUCT(Q$9:Q$229,Nutrients!$EX$8:$EX$228)+(IF($A$7=Nutrients!$B$8,Nutrients!$EX$8,Nutrients!$EX$9)*Q$7)+(((IF($A$8=Nutrients!$B$79,Nutrients!$EX$79,(IF($A$8=Nutrients!$B$77,Nutrients!$EX$77,Nutrients!$EX$78)))))*Q$8))","v":27000},{"$f":"(SUMPRODUCT(R$9:R$229,Nutrients!$EX$8:$EX$228)+(IF($A$7=Nutrients!$B$8,Nutrients!$EX$8,Nutrients!$EX$9)*R$7)+(((IF($A$8=Nutrients!$B$79,Nutrients!$EX$79,(IF($A$8=Nutrients!$B$77,Nutrients!$EX$77,Nutrients!$EX$78)))))*R$8))","v":22500},{"$f":"(SUMPRODUCT(S$9:S$229,Nutrients!$EX$8:$EX$228)+(IF($A$7=Nutrients!$B$8,Nutrients!$EX$8,Nutrients!$EX$9)*S$7)+(((IF($A$8=Nutrients!$B$79,Nutrients!$EX$79,(IF($A$8=Nutrients!$B$77,Nutrients!$EX$77,Nutrients!$EX$78)))))*S$8))","v":18000},{"$f":"(SUMPRODUCT(T$9:T$229,Nutrients!$EX$8:$EX$228)+(IF($A$7=Nutrients!$B$8,Nutrients!$EX$8,Nutrients!$EX$9)*T$7)+(((IF($A$8=Nutrients!$B$79,Nutrients!$EX$79,(IF($A$8=Nutrients!$B$77,Nutrients!$EX$77,Nutrients!$EX$78)))))*T$8))","v":13500},{"$f":"(SUMPRODUCT(U$9:U$229,Nutrients!$EX$8:$EX$228)+(IF($A$7=Nutrients!$B$8,Nutrients!$EX$8,Nutrients!$EX$9)*U$7)+(((IF($A$8=Nutrients!$B$79,Nutrients!$EX$79,(IF($A$8=Nutrients!$B$77,Nutrients!$EX$77,Nutrients!$EX$78)))))*U$8))","v":13500},null,{"$f":"(SUMPRODUCT(W$9:W$229,Nutrients!$EX$8:$EX$228)+(IF($A$7=Nutrients!$B$8,Nutrients!$EX$8,Nutrients!$EX$9)*W$7)+(((IF($A$8=Nutrients!$B$79,Nutrients!$EX$79,(IF($A$8=Nutrients!$B$77,Nutrients!$EX$77,Nutrients!$EX$78)))))*W$8))","v":27000},{"$f":"(SUMPRODUCT(X$9:X$229,Nutrients!$EX$8:$EX$228)+(IF($A$7=Nutrients!$B$8,Nutrients!$EX$8,Nutrients!$EX$9)*X$7)+(((IF($A$8=Nutrients!$B$79,Nutrients!$EX$79,(IF($A$8=Nutrients!$B$77,Nutrients!$EX$77,Nutrients!$EX$78)))))*X$8))","v":27000},{"$f":"(SUMPRODUCT(Y$9:Y$229,Nutrients!$EX$8:$EX$228)+(IF($A$7=Nutrients!$B$8,Nutrients!$EX$8,Nutrients!$EX$9)*Y$7)+(((IF($A$8=Nutrients!$B$79,Nutrients!$EX$79,(IF($A$8=Nutrients!$B$77,Nutrients!$EX$77,Nutrients!$EX$78)))))*Y$8))","v":22500},{"$f":"(SUMPRODUCT(Z$9:Z$229,Nutrients!$EX$8:$EX$228)+(IF($A$7=Nutrients!$B$8,Nutrients!$EX$8,Nutrients!$EX$9)*Z$7)+(((IF($A$8=Nutrients!$B$79,Nutrients!$EX$79,(IF($A$8=Nutrients!$B$77,Nutrients!$EX$77,Nutrients!$EX$78)))))*Z$8))","v":18000},{"$f":"(SUMPRODUCT(AA$9:AA$229,Nutrients!$EX$8:$EX$228)+(IF($A$7=Nutrients!$B$8,Nutrients!$EX$8,Nutrients!$EX$9)*AA$7)+(((IF($A$8=Nutrients!$B$79,Nutrients!$EX$79,(IF($A$8=Nutrients!$B$77,Nutrients!$EX$77,Nutrients!$EX$78)))))*AA$8))","v":13500},{"$f":"(SUMPRODUCT(AB$9:AB$229,Nutrients!$EX$8:$EX$228)+(IF($A$7=Nutrients!$B$8,Nutrients!$EX$8,Nutrients!$EX$9)*AB$7)+(((IF($A$8=Nutrients!$B$79,Nutrients!$EX$79,(IF($A$8=Nutrients!$B$77,Nutrients!$EX$77,Nutrients!$EX$78)))))*AB$8))","v":13500},null,{"$f":"(SUMPRODUCT(AD$9:AD$229,Nutrients!$EX$8:$EX$228)+(IF($A$7=Nutrients!$B$8,Nutrients!$EX$8,Nutrients!$EX$9)*AD$7)+(((IF($A$8=Nutrients!$B$79,Nutrients!$EX$79,(IF($A$8=Nutrients!$B$77,Nutrients!$EX$77,Nutrients!$EX$78)))))*AD$8))","v":27000},{"$f":"(SUMPRODUCT(AE$9:AE$229,Nutrients!$EX$8:$EX$228)+(IF($A$7=Nutrients!$B$8,Nutrients!$EX$8,Nutrients!$EX$9)*AE$7)+(((IF($A$8=Nutrients!$B$79,Nutrients!$EX$79,(IF($A$8=Nutrients!$B$77,Nutrients!$EX$77,Nutrients!$EX$78)))))*AE$8))","v":27000},{"$f":"(SUMPRODUCT(AF$9:AF$229,Nutrients!$EX$8:$EX$228)+(IF($A$7=Nutrients!$B$8,Nutrients!$EX$8,Nutrients!$EX$9)*AF$7)+(((IF($A$8=Nutrients!$B$79,Nutrients!$EX$79,(IF($A$8=Nutrients!$B$77,Nutrients!$EX$77,Nutrients!$EX$78)))))*AF$8))","v":22500},{"$f":"(SUMPRODUCT(AG$9:AG$229,Nutrients!$EX$8:$EX$228)+(IF($A$7=Nutrients!$B$8,Nutrients!$EX$8,Nutrients!$EX$9)*AG$7)+(((IF($A$8=Nutrients!$B$79,Nutrients!$EX$79,(IF($A$8=Nutrients!$B$77,Nutrients!$EX$77,Nutrients!$EX$78)))))*AG$8))","v":18000},{"$f":"(SUMPRODUCT(AH$9:AH$229,Nutrients!$EX$8:$EX$228)+(IF($A$7=Nutrients!$B$8,Nutrients!$EX$8,Nutrients!$EX$9)*AH$7)+(((IF($A$8=Nutrients!$B$79,Nutrients!$EX$79,(IF($A$8=Nutrients!$B$77,Nutrients!$EX$77,Nutrients!$EX$78)))))*AH$8))","v":13500},{"$f":"(SUMPRODUCT(AI$9:AI$229,Nutrients!$EX$8:$EX$228)+(IF($A$7=Nutrients!$B$8,Nutrients!$EX$8,Nutrients!$EX$9)*AI$7)+(((IF($A$8=Nutrients!$B$79,Nutrients!$EX$79,(IF($A$8=Nutrients!$B$77,Nutrients!$EX$77,Nutrients!$EX$78)))))*AI$8))","v":13500},null,{"$f":"(SUMPRODUCT(AK$9:AK$229,Nutrients!$EX$8:$EX$228)+(IF($A$7=Nutrients!$B$8,Nutrients!$EX$8,Nutrients!$EX$9)*AK$7)+(((IF($A$8=Nutrients!$B$79,Nutrients!$EX$79,(IF($A$8=Nutrients!$B$77,Nutrients!$EX$77,Nutrients!$EX$78)))))*AK$8))","v":27000},{"$f":"(SUMPRODUCT(AL$9:AL$229,Nutrients!$EX$8:$EX$228)+(IF($A$7=Nutrients!$B$8,Nutrients!$EX$8,Nutrients!$EX$9)*AL$7)+(((IF($A$8=Nutrients!$B$79,Nutrients!$EX$79,(IF($A$8=Nutrients!$B$77,Nutrients!$EX$77,Nutrients!$EX$78)))))*AL$8))","v":27000},{"$f":"(SUMPRODUCT(AM$9:AM$229,Nutrients!$EX$8:$EX$228)+(IF($A$7=Nutrients!$B$8,Nutrients!$EX$8,Nutrients!$EX$9)*AM$7)+(((IF($A$8=Nutrients!$B$79,Nutrients!$EX$79,(IF($A$8=Nutrients!$B$77,Nutrients!$EX$77,Nutrients!$EX$78)))))*AM$8))","v":22500},{"$f":"(SUMPRODUCT(AN$9:AN$229,Nutrients!$EX$8:$EX$228)+(IF($A$7=Nutrients!$B$8,Nutrients!$EX$8,Nutrients!$EX$9)*AN$7)+(((IF($A$8=Nutrients!$B$79,Nutrients!$EX$79,(IF($A$8=Nutrients!$B$77,Nutrients!$EX$77,Nutrients!$EX$78)))))*AN$8))","v":18000},{"$f":"(SUMPRODUCT(AO$9:AO$229,Nutrients!$EX$8:$EX$228)+(IF($A$7=Nutrients!$B$8,Nutrients!$EX$8,Nutrients!$EX$9)*AO$7)+(((IF($A$8=Nutrients!$B$79,Nutrients!$EX$79,(IF($A$8=Nutrients!$B$77,Nutrients!$EX$77,Nutrients!$EX$78)))))*AO$8))","v":13500},{"$f":"(SUMPRODUCT(AP$9:AP$229,Nutrients!$EX$8:$EX$228)+(IF($A$7=Nutrients!$B$8,Nutrients!$EX$8,Nutrients!$EX$9)*AP$7)+(((IF($A$8=Nutrients!$B$79,Nutrients!$EX$79,(IF($A$8=Nutrients!$B$77,Nutrients!$EX$77,Nutrients!$EX$78)))))*AP$8))","v":13500},null,{"$f":"(SUMPRODUCT(AR$9:AR$229,Nutrients!$EX$8:$EX$228)+(IF($A$7=Nutrients!$B$8,Nutrients!$EX$8,Nutrients!$EX$9)*AR$7)+(((IF($A$8=Nutrients!$B$79,Nutrients!$EX$79,(IF($A$8=Nutrients!$B$77,Nutrients!$EX$77,Nutrients!$EX$78)))))*AR$8))","v":27000},{"$f":"(SUMPRODUCT(AS$9:AS$229,Nutrients!$EX$8:$EX$228)+(IF($A$7=Nutrients!$B$8,Nutrients!$EX$8,Nutrients!$EX$9)*AS$7)+(((IF($A$8=Nutrients!$B$79,Nutrients!$EX$79,(IF($A$8=Nutrients!$B$77,Nutrients!$EX$77,Nutrients!$EX$78)))))*AS$8))","v":27000},{"$f":"(SUMPRODUCT(AT$9:AT$229,Nutrients!$EX$8:$EX$228)+(IF($A$7=Nutrients!$B$8,Nutrients!$EX$8,Nutrients!$EX$9)*AT$7)+(((IF($A$8=Nutrients!$B$79,Nutrients!$EX$79,(IF($A$8=Nutrients!$B$77,Nutrients!$EX$77,Nutrients!$EX$78)))))*AT$8))","v":22500},{"$f":"(SUMPRODUCT(AU$9:AU$229,Nutrients!$EX$8:$EX$228)+(IF($A$7=Nutrients!$B$8,Nutrients!$EX$8,Nutrients!$EX$9)*AU$7)+(((IF($A$8=Nutrients!$B$79,Nutrients!$EX$79,(IF($A$8=Nutrients!$B$77,Nutrients!$EX$77,Nutrients!$EX$78)))))*AU$8))","v":18000},{"$f":"(SUMPRODUCT(AV$9:AV$229,Nutrients!$EX$8:$EX$228)+(IF($A$7=Nutrients!$B$8,Nutrients!$EX$8,Nutrients!$EX$9)*AV$7)+(((IF($A$8=Nutrients!$B$79,Nutrients!$EX$79,(IF($A$8=Nutrients!$B$77,Nutrients!$EX$77,Nutrients!$EX$78)))))*AV$8))","v":13500},{"$f":"(SUMPRODUCT(AW$9:AW$229,Nutrients!$EX$8:$EX$228)+(IF($A$7=Nutrients!$B$8,Nutrients!$EX$8,Nutrients!$EX$9)*AW$7)+(((IF($A$8=Nutrients!$B$79,Nutrients!$EX$79,(IF($A$8=Nutrients!$B$77,Nutrients!$EX$77,Nutrients!$EX$78)))))*AW$8))","v":13500}]
["  Pantothenic Acid, mg/ton",{"$f":"(SUMPRODUCT(B$9:B$229,Nutrients!$EY$8:$EY$228)+(IF($A$7=Nutrients!$B$8,Nutrients!$EY$8,Nutrients!$EY$9)*B$7)+(((IF($A$8=Nutrients!$B$79,Nutrients!$EY$79,(IF($A$8=Nutrients!$B$77,Nutrients!$EY$77,Nutrients!$EY$78)))))*B$8))","v":15000},{"$f":"(SUMPRODUCT(C$9:C$229,Nutrients!$EY$8:$EY$228)+(IF($A$7=Nutrients!$B$8,Nutrients!$EY$8,Nutrients!$EY$9)*C$7)+(((IF($A$8=Nutrients!$B$79,Nutrients!$EY$79,(IF($A$8=Nutrients!$B$77,Nutrients!$EY$77,Nutrients!$EY$78)))))*C$8))","v":15000},{"$f":"(SUMPRODUCT(D$9:D$229,Nutrients!$EY$8:$EY$228)+(IF($A$7=Nutrients!$B$8,Nutrients!$EY$8,Nutrients!$EY$9)*D$7)+(((IF($A$8=Nutrients!$B$79,Nutrients!$EY$79,(IF($A$8=Nutrients!$B$77,Nutrients!$EY$77,Nutrients!$EY$78)))))*D$8))","v":12500},{"$f":"(SUMPRODUCT(E$9:E$229,Nutrients!$EY$8:$EY$228)+(IF($A$7=Nutrients!$B$8,Nutrients!$EY$8,Nutrients!$EY$9)*E$7)+(((IF($A$8=Nutrients!$B$79,Nutrients!$EY$79,(IF($A$8=Nutrients!$B$77,Nutrients!$EY$77,Nutrients!$EY$78)))))*E$8))","v":10000},{"$f":"(SUMPRODUCT(F$9:F$229,Nutrients!$EY$8:$EY$228)+(IF($A$7=Nutrients!$B$8,Nutrients!$EY$8,Nutrients!$EY$9)*F$7)+(((IF($A$8=Nutrients!$B$79,Nutrients!$EY$79,(IF($A$8=Nutrients!$B$77,Nutrients!$EY$77,Nutrients!$EY$78)))))*F$8))","v":7500},{"$f":"(SUMPRODUCT(G$9:G$229,Nutrients!$EY$8:$EY$228)+(IF($A$7=Nutrients!$B$8,Nutrients!$EY$8,Nutrients!$EY$9)*G$7)+(((IF($A$8=Nutrients!$B$79,Nutrients!$EY$79,(IF($A$8=Nutrients!$B$77,Nutrients!$EY$77,Nutrients!$EY$78)))))*G$8))","v":7500},null,{"$f":"(SUMPRODUCT(I$9:I$229,Nutrients!$EY$8:$EY$228)+(IF($A$7=Nutrients!$B$8,Nutrients!$EY$8,Nutrients!$EY$9)*I$7)+(((IF($A$8=Nutrients!$B$79,Nutrients!$EY$79,(IF($A$8=Nutrients!$B$77,Nutrients!$EY$77,Nutrients!$EY$78)))))*I$8))","v":15000},{"$f":"(SUMPRODUCT(J$9:J$229,Nutrients!$EY$8:$EY$228)+(IF($A$7=Nutrients!$B$8,Nutrients!$EY$8,Nutrients!$EY$9)*J$7)+(((IF($A$8=Nutrients!$B$79,Nutrients!$EY$79,(IF($A$8=Nutrients!$B$77,Nutrients!$EY$77,Nutrients!$EY$78)))))*J$8))","v":15000},{"$f":"(SUMPRODUCT(K$9:K$229,Nutrients!$EY$8:$EY$228)+(IF($A$7=Nutrients!$B$8,Nutrients!$EY$8,Nutrients!$EY$9)*K$7)+(((IF($A$8=Nutrients!$B$79,Nutrients!$EY$79,(IF($A$8=Nutrients!$B$77,Nutrients!$EY$77,Nutrients!$EY$78)))))*K$8))","v":12500},{"$f":"(SUMPRODUCT(L$9:L$229,Nutrients!$EY$8:$EY$228)+(IF($A$7=Nutrients!$B$8,Nutrients!$EY$8,Nutrients!$EY$9)*L$7)+(((IF($A$8=Nutrients!$B$79,Nutrients!$EY$79,(IF($A$8=Nutrients!$B$77,Nutrients!$EY$77,Nutrients!$EY$78)))))*L$8))","v":10000},{"$f":"(SUMPRODUCT(M$9:M$229,Nutrients!$EY$8:$EY$228)+(IF($A$7=Nutrients!$B$8,Nutrients!$EY$8,Nutrients!$EY$9)*M$7)+(((IF($A$8=Nutrients!$B$79,Nutrients!$EY$79,(IF($A$8=Nutrients!$B$77,Nutrients!$EY$77,Nutrients!$EY$78)))))*M$8))","v":7500},{"$f":"(SUMPRODUCT(N$9:N$229,Nutrients!$EY$8:$EY$228)+(IF($A$7=Nutrients!$B$8,Nutrients!$EY$8,Nutrients!$EY$9)*N$7)+(((IF($A$8=Nutrients!$B$79,Nutrients!$EY$79,(IF($A$8=Nutrients!$B$77,Nutrients!$EY$77,Nutrients!$EY$78)))))*N$8))","v":7500},null,{"$f":"(SUMPRODUCT(P$9:P$229,Nutrients!$EY$8:$EY$228)+(IF($A$7=Nutrients!$B$8,Nutrients!$EY$8,Nutrients!$EY$9)*P$7)+(((IF($A$8=Nutrients!$B$79,Nutrients!$EY$79,(IF($A$8=Nutrients!$B$77,Nutrients!$EY$77,Nutrients!$EY$78)))))*P$8))","v":15000},{"$f":"(SUMPRODUCT(Q$9:Q$229,Nutrients!$EY$8:$EY$228)+(IF($A$7=Nutrients!$B$8,Nutrients!$EY$8,Nutrients!$EY$9)*Q$7)+(((IF($A$8=Nutrients!$B$79,Nutrients!$EY$79,(IF($A$8=Nutrients!$B$77,Nutrients!$EY$77,Nutrients!$EY$78)))))*Q$8))","v":15000},{"$f":"(SUMPRODUCT(R$9:R$229,Nutrients!$EY$8:$EY$228)+(IF($A$7=Nutrients!$B$8,Nutrients!$EY$8,Nutrients!$EY$9)*R$7)+(((IF($A$8=Nutrients!$B$79,Nutrients!$EY$79,(IF($A$8=Nutrients!$B$77,Nutrients!$EY$77,Nutrients!$EY$78)))))*R$8))","v":12500},{"$f":"(SUMPRODUCT(S$9:S$229,Nutrients!$EY$8:$EY$228)+(IF($A$7=Nutrients!$B$8,Nutrients!$EY$8,Nutrients!$EY$9)*S$7)+(((IF($A$8=Nutrients!$B$79,Nutrients!$EY$79,(IF($A$8=Nutrients!$B$77,Nutrients!$EY$77,Nutrients!$EY$78)))))*S$8))","v":10000},{"$f":"(SUMPRODUCT(T$9:T$229,Nutrients!$EY$8:$EY$228)+(IF($A$7=Nutrients!$B$8,Nutrients!$EY$8,Nutrients!$EY$9)*T$7)+(((IF($A$8=Nutrients!$B$79,Nutrients!$EY$79,(IF($A$8=Nutrients!$B$77,Nutrients!$EY$77,Nutrients!$EY$78)))))*T$8))","v":7500},{"$f":"(SUMPRODUCT(U$9:U$229,Nutrients!$EY$8:$EY$228)+(IF($A$7=Nutrients!$B$8,Nutrients!$EY$8,Nutrients!$EY$9)*U$7)+(((IF($A$8=Nutrients!$B$79,Nutrients!$EY$79,(IF($A$8=Nutrients!$B$77,Nutrients!$EY$77,Nutrients!$EY$78)))))*U$8))","v":7500},null,{"$f":"(SUMPRODUCT(W$9:W$229,Nutrients!$EY$8:$EY$228)+(IF($A$7=Nutrients!$B$8,Nutrients!$EY$8,Nutrients!$EY$9)*W$7)+(((IF($A$8=Nutrients!$B$79,Nutrients!$EY$79,(IF($A$8=Nutrients!$B$77,Nutrients!$EY$77,Nutrients!$EY$78)))))*W$8))","v":15000},{"$f":"(SUMPRODUCT(X$9:X$229,Nutrients!$EY$8:$EY$228)+(IF($A$7=Nutrients!$B$8,Nutrients!$EY$8,Nutrients!$EY$9)*X$7)+(((IF($A$8=Nutrients!$B$79,Nutrients!$EY$79,(IF($A$8=Nutrients!$B$77,Nutrients!$EY$77,Nutrients!$EY$78)))))*X$8))","v":15000},{"$f":"(SUMPRODUCT(Y$9:Y$229,Nutrients!$EY$8:$EY$228)+(IF($A$7=Nutrients!$B$8,Nutrients!$EY$8,Nutrients!$EY$9)*Y$7)+(((IF($A$8=Nutrients!$B$79,Nutrients!$EY$79,(IF($A$8=Nutrients!$B$77,Nutrients!$EY$77,Nutrients!$EY$78)))))*Y$8))","v":12500},{"$f":"(SUMPRODUCT(Z$9:Z$229,Nutrients!$EY$8:$EY$228)+(IF($A$7=Nutrients!$B$8,Nutrients!$EY$8,Nutrients!$EY$9)*Z$7)+(((IF($A$8=Nutrients!$B$79,Nutrients!$EY$79,(IF($A$8=Nutrients!$B$77,Nutrients!$EY$77,Nutrients!$EY$78)))))*Z$8))","v":10000},{"$f":"(SUMPRODUCT(AA$9:AA$229,Nutrients!$EY$8:$EY$228)+(IF($A$7=Nutrients!$B$8,Nutrients!$EY$8,Nutrients!$EY$9)*AA$7)+(((IF($A$8=Nutrients!$B$79,Nutrients!$EY$79,(IF($A$8=Nutrients!$B$77,Nutrients!$EY$77,Nutrients!$EY$78)))))*AA$8))","v":7500},{"$f":"(SUMPRODUCT(AB$9:AB$229,Nutrients!$EY$8:$EY$228)+(IF($A$7=Nutrients!$B$8,Nutrients!$EY$8,Nutrients!$EY$9)*AB$7)+(((IF($A$8=Nutrients!$B$79,Nutrients!$EY$79,(IF($A$8=Nutrients!$B$77,Nutrients!$EY$77,Nutrients!$EY$78)))))*AB$8))","v":7500},null,{"$f":"(SUMPRODUCT(AD$9:AD$229,Nutrients!$EY$8:$EY$228)+(IF($A$7=Nutrients!$B$8,Nutrients!$EY$8,Nutrients!$EY$9)*AD$7)+(((IF($A$8=Nutrients!$B$79,Nutrients!$EY$79,(IF($A$8=Nutrients!$B$77,Nutrients!$EY$77,Nutrients!$EY$78)))))*AD$8))","v":15000},{"$f":"(SUMPRODUCT(AE$9:AE$229,Nutrients!$EY$8:$EY$228)+(IF($A$7=Nutrients!$B$8,Nutrients!$EY$8,Nutrients!$EY$9)*AE$7)+(((IF($A$8=Nutrients!$B$79,Nutrients!$EY$79,(IF($A$8=Nutrients!$B$77,Nutrients!$EY$77,Nutrients!$EY$78)))))*AE$8))","v":15000},{"$f":"(SUMPRODUCT(AF$9:AF$229,Nutrients!$EY$8:$EY$228)+(IF($A$7=Nutrients!$B$8,Nutrients!$EY$8,Nutrients!$EY$9)*AF$7)+(((IF($A$8=Nutrients!$B$79,Nutrients!$EY$79,(IF($A$8=Nutrients!$B$77,Nutrients!$EY$77,Nutrients!$EY$78)))))*AF$8))","v":12500},{"$f":"(SUMPRODUCT(AG$9:AG$229,Nutrients!$EY$8:$EY$228)+(IF($A$7=Nutrients!$B$8,Nutrients!$EY$8,Nutrients!$EY$9)*AG$7)+(((IF($A$8=Nutrients!$B$79,Nutrients!$EY$79,(IF($A$8=Nutrients!$B$77,Nutrients!$EY$77,Nutrients!$EY$78)))))*AG$8))","v":10000},{"$f":"(SUMPRODUCT(AH$9:AH$229,Nutrients!$EY$8:$EY$228)+(IF($A$7=Nutrients!$B$8,Nutrients!$EY$8,Nutrients!$EY$9)*AH$7)+(((IF($A$8=Nutrients!$B$79,Nutrients!$EY$79,(IF($A$8=Nutrients!$B$77,Nutrients!$EY$77,Nutrients!$EY$78)))))*AH$8))","v":7500},{"$f":"(SUMPRODUCT(AI$9:AI$229,Nutrients!$EY$8:$EY$228)+(IF($A$7=Nutrients!$B$8,Nutrients!$EY$8,Nutrients!$EY$9)*AI$7)+(((IF($A$8=Nutrients!$B$79,Nutrients!$EY$79,(IF($A$8=Nutrients!$B$77,Nutrients!$EY$77,Nutrients!$EY$78)))))*AI$8))","v":7500},null,{"$f":"(SUMPRODUCT(AK$9:AK$229,Nutrients!$EY$8:$EY$228)+(IF($A$7=Nutrients!$B$8,Nutrients!$EY$8,Nutrients!$EY$9)*AK$7)+(((IF($A$8=Nutrients!$B$79,Nutrients!$EY$79,(IF($A$8=Nutrients!$B$77,Nutrients!$EY$77,Nutrients!$EY$78)))))*AK$8))","v":15000},{"$f":"(SUMPRODUCT(AL$9:AL$229,Nutrients!$EY$8:$EY$228)+(IF($A$7=Nutrients!$B$8,Nutrients!$EY$8,Nutrients!$EY$9)*AL$7)+(((IF($A$8=Nutrients!$B$79,Nutrients!$EY$79,(IF($A$8=Nutrients!$B$77,Nutrients!$EY$77,Nutrients!$EY$78)))))*AL$8))","v":15000},{"$f":"(SUMPRODUCT(AM$9:AM$229,Nutrients!$EY$8:$EY$228)+(IF($A$7=Nutrients!$B$8,Nutrients!$EY$8,Nutrients!$EY$9)*AM$7)+(((IF($A$8=Nutrients!$B$79,Nutrients!$EY$79,(IF($A$8=Nutrients!$B$77,Nutrients!$EY$77,Nutrients!$EY$78)))))*AM$8))","v":12500},{"$f":"(SUMPRODUCT(AN$9:AN$229,Nutrients!$EY$8:$EY$228)+(IF($A$7=Nutrients!$B$8,Nutrients!$EY$8,Nutrients!$EY$9)*AN$7)+(((IF($A$8=Nutrients!$B$79,Nutrients!$EY$79,(IF($A$8=Nutrients!$B$77,Nutrients!$EY$77,Nutrients!$EY$78)))))*AN$8))","v":10000},{"$f":"(SUMPRODUCT(AO$9:AO$229,Nutrients!$EY$8:$EY$228)+(IF($A$7=Nutrients!$B$8,Nutrients!$EY$8,Nutrients!$EY$9)*AO$7)+(((IF($A$8=Nutrients!$B$79,Nutrients!$EY$79,(IF($A$8=Nutrients!$B$77,Nutrients!$EY$77,Nutrients!$EY$78)))))*AO$8))","v":7500},{"$f":"(SUMPRODUCT(AP$9:AP$229,Nutrients!$EY$8:$EY$228)+(IF($A$7=Nutrients!$B$8,Nutrients!$EY$8,Nutrients!$EY$9)*AP$7)+(((IF($A$8=Nutrients!$B$79,Nutrients!$EY$79,(IF($A$8=Nutrients!$B$77,Nutrients!$EY$77,Nutrients!$EY$78)))))*AP$8))","v":7500},null,{"$f":"(SUMPRODUCT(AR$9:AR$229,Nutrients!$EY$8:$EY$228)+(IF($A$7=Nutrients!$B$8,Nutrients!$EY$8,Nutrients!$EY$9)*AR$7)+(((IF($A$8=Nutrients!$B$79,Nutrients!$EY$79,(IF($A$8=Nutrients!$B$77,Nutrients!$EY$77,Nutrients!$EY$78)))))*AR$8))","v":15000},{"$f":"(SUMPRODUCT(AS$9:AS$229,Nutrients!$EY$8:$EY$228)+(IF($A$7=Nutrients!$B$8,Nutrients!$EY$8,Nutrients!$EY$9)*AS$7)+(((IF($A$8=Nutrients!$B$79,Nutrients!$EY$79,(IF($A$8=Nutrients!$B$77,Nutrients!$EY$77,Nutrients!$EY$78)))))*AS$8))","v":15000},{"$f":"(SUMPRODUCT(AT$9:AT$229,Nutrients!$EY$8:$EY$228)+(IF($A$7=Nutrients!$B$8,Nutrients!$EY$8,Nutrients!$EY$9)*AT$7)+(((IF($A$8=Nutrients!$B$79,Nutrients!$EY$79,(IF($A$8=Nutrients!$B$77,Nutrients!$EY$77,Nutrients!$EY$78)))))*AT$8))","v":12500},{"$f":"(SUMPRODUCT(AU$9:AU$229,Nutrients!$EY$8:$EY$228)+(IF($A$7=Nutrients!$B$8,Nutrients!$EY$8,Nutrients!$EY$9)*AU$7)+(((IF($A$8=Nutrients!$B$79,Nutrients!$EY$79,(IF($A$8=Nutrients!$B$77,Nutrients!$EY$77,Nutrients!$EY$78)))))*AU$8))","v":10000},{"$f":"(SUMPRODUCT(AV$9:AV$229,Nutrients!$EY$8:$EY$228)+(IF($A$7=Nutrients!$B$8,Nutrients!$EY$8,Nutrients!$EY$9)*AV$7)+(((IF($A$8=Nutrients!$B$79,Nutrients!$EY$79,(IF($A$8=Nutrients!$B$77,Nutrients!$EY$77,Nutrients!$EY$78)))))*AV$8))","v":7500},{"$f":"(SUMPRODUCT(AW$9:AW$229,Nutrients!$EY$8:$EY$228)+(IF($A$7=Nutrients!$B$8,Nutrients!$EY$8,Nutrients!$EY$9)*AW$7)+(((IF($A$8=Nutrients!$B$79,Nutrients!$EY$79,(IF($A$8=Nutrients!$B$77,Nutrients!$EY$77,Nutrients!$EY$78)))))*AW$8))","v":7500}]
["  Riboflavin, mg/ton",{"$f":"(SUMPRODUCT(B$9:B$229,Nutrients!$EZ$8:$EZ$228)+(IF($A$7=Nutrients!$B$8,Nutrients!$EZ$8,Nutrients!$EZ$9)*B$7)+(((IF($A$8=Nutrients!$B$79,Nutrients!$EZ$79,(IF($A$8=Nutrients!$B$77,Nutrients!$EZ$77,Nutrients!$EZ$78)))))*B$8))","v":4500},{"$f":"(SUMPRODUCT(C$9:C$229,Nutrients!$EZ$8:$EZ$228)+(IF($A$7=Nutrients!$B$8,Nutrients!$EZ$8,Nutrients!$EZ$9)*C$7)+(((IF($A$8=Nutrients!$B$79,Nutrients!$EZ$79,(IF($A$8=Nutrients!$B$77,Nutrients!$EZ$77,Nutrients!$EZ$78)))))*C$8))","v":4500},{"$f":"(SUMPRODUCT(D$9:D$229,Nutrients!$EZ$8:$EZ$228)+(IF($A$7=Nutrients!$B$8,Nutrients!$EZ$8,Nutrients!$EZ$9)*D$7)+(((IF($A$8=Nutrients!$B$79,Nutrients!$EZ$79,(IF($A$8=Nutrients!$B$77,Nutrients!$EZ$77,Nutrients!$EZ$78)))))*D$8))","v":3750},{"$f":"(SUMPRODUCT(E$9:E$229,Nutrients!$EZ$8:$EZ$228)+(IF($A$7=Nutrients!$B$8,Nutrients!$EZ$8,Nutrients!$EZ$9)*E$7)+(((IF($A$8=Nutrients!$B$79,Nutrients!$EZ$79,(IF($A$8=Nutrients!$B$77,Nutrients!$EZ$77,Nutrients!$EZ$78)))))*E$8))","v":3000},{"$f":"(SUMPRODUCT(F$9:F$229,Nutrients!$EZ$8:$EZ$228)+(IF($A$7=Nutrients!$B$8,Nutrients!$EZ$8,Nutrients!$EZ$9)*F$7)+(((IF($A$8=Nutrients!$B$79,Nutrients!$EZ$79,(IF($A$8=Nutrients!$B$77,Nutrients!$EZ$77,Nutrients!$EZ$78)))))*F$8))","v":2250},{"$f":"(SUMPRODUCT(G$9:G$229,Nutrients!$EZ$8:$EZ$228)+(IF($A$7=Nutrients!$B$8,Nutrients!$EZ$8,Nutrients!$EZ$9)*G$7)+(((IF($A$8=Nutrients!$B$79,Nutrients!$EZ$79,(IF($A$8=Nutrients!$B$77,Nutrients!$EZ$77,Nutrients!$EZ$78)))))*G$8))","v":2250},null,{"$f":"(SUMPRODUCT(I$9:I$229,Nutrients!$EZ$8:$EZ$228)+(IF($A$7=Nutrients!$B$8,Nutrients!$EZ$8,Nutrients!$EZ$9)*I$7)+(((IF($A$8=Nutrients!$B$79,Nutrients!$EZ$79,(IF($A$8=Nutrients!$B$77,Nutrients!$EZ$77,Nutrients!$EZ$78)))))*I$8))","v":4500},{"$f":"(SUMPRODUCT(J$9:J$229,Nutrients!$EZ$8:$EZ$228)+(IF($A$7=Nutrients!$B$8,Nutrients!$EZ$8,Nutrients!$EZ$9)*J$7)+(((IF($A$8=Nutrients!$B$79,Nutrients!$EZ$79,(IF($A$8=Nutrients!$B$77,Nutrients!$EZ$77,Nutrients!$EZ$78)))))*J$8))","v":4500},{"$f":"(SUMPRODUCT(K$9:K$229,Nutrients!$EZ$8:$EZ$228)+(IF($A$7=Nutrients!$B$8,Nutrients!$EZ$8,Nutrients!$EZ$9)*K$7)+(((IF($A$8=Nutrients!$B$79,Nutrients!$EZ$79,(IF($A$8=Nutrients!$B$77,Nutrients!$EZ$77,Nutrients!$EZ$78)))))*K$8))","v":3750},{"$f":"(SUMPRODUCT(L$9:L$229,Nutrients!$EZ$8:$EZ$228)+(IF($A$7=Nutrients!$B$8,Nutrients!$EZ$8,Nutrients!$EZ$9)*L$7)+(((IF($A$8=Nutrients!$B$79,Nutrients!$EZ$79,(IF($A$8=Nutrients!$B$77,Nutrients!$EZ$77,Nutrients!$EZ$78)))))*L$8))","v":3000},{"$f":"(SUMPRODUCT(M$9:M$229,Nutrients!$EZ$8:$EZ$228)+(IF($A$7=Nutrients!$B$8,Nutrients!$EZ$8,Nutrients!$EZ$9)*M$7)+(((IF($A$8=Nutrients!$B$79,Nutrients!$EZ$79,(IF($A$8=Nutrients!$B$77,Nutrients!$EZ$77,Nutrients!$EZ$78)))))*M$8))","v":2250},{"$f":"(SUMPRODUCT(N$9:N$229,Nutrients!$EZ$8:$EZ$228)+(IF($A$7=Nutrients!$B$8,Nutrients!$EZ$8,Nutrients!$EZ$9)*N$7)+(((IF($A$8=Nutrients!$B$79,Nutrients!$EZ$79,(IF($A$8=Nutrients!$B$77,Nutrients!$EZ$77,Nutrients!$EZ$78)))))*N$8))","v":2250},null,{"$f":"(SUMPRODUCT(P$9:P$229,Nutrients!$EZ$8:$EZ$228)+(IF($A$7=Nutrients!$B$8,Nutrients!$EZ$8,Nutrients!$EZ$9)*P$7)+(((IF($A$8=Nutrients!$B$79,Nutrients!$EZ$79,(IF($A$8=Nutrients!$B$77,Nutrients!$EZ$77,Nutrients!$EZ$78)))))*P$8))","v":4500},{"$f":"(SUMPRODUCT(Q$9:Q$229,Nutrients!$EZ$8:$EZ$228)+(IF($A$7=Nutrients!$B$8,Nutrients!$EZ$8,Nutrients!$EZ$9)*Q$7)+(((IF($A$8=Nutrients!$B$79,Nutrients!$EZ$79,(IF($A$8=Nutrients!$B$77,Nutrients!$EZ$77,Nutrients!$EZ$78)))))*Q$8))","v":4500},{"$f":"(SUMPRODUCT(R$9:R$229,Nutrients!$EZ$8:$EZ$228)+(IF($A$7=Nutrients!$B$8,Nutrients!$EZ$8,Nutrients!$EZ$9)*R$7)+(((IF($A$8=Nutrients!$B$79,Nutrients!$EZ$79,(IF($A$8=Nutrients!$B$77,Nutrients!$EZ$77,Nutrients!$EZ$78)))))*R$8))","v":3750},{"$f":"(SUMPRODUCT(S$9:S$229,Nutrients!$EZ$8:$EZ$228)+(IF($A$7=Nutrients!$B$8,Nutrients!$EZ$8,Nutrients!$EZ$9)*S$7)+(((IF($A$8=Nutrients!$B$79,Nutrients!$EZ$79,(IF($A$8=Nutrients!$B$77,Nutrients!$EZ$77,Nutrients!$EZ$78)))))*S$8))","v":3000},{"$f":"(SUMPRODUCT(T$9:T$229,Nutrients!$EZ$8:$EZ$228)+(IF($A$7=Nutrients!$B$8,Nutrients!$EZ$8,Nutrients!$EZ$9)*T$7)+(((IF($A$8=Nutrients!$B$79,Nutrients!$EZ$79,(IF($A$8=Nutrients!$B$77,Nutrients!$EZ$77,Nutrients!$EZ$78)))))*T$8))","v":2250},{"$f":"(SUMPRODUCT(U$9:U$229,Nutrients!$EZ$8:$EZ$228)+(IF($A$7=Nutrients!$B$8,Nutrients!$EZ$8,Nutrients!$EZ$9)*U$7)+(((IF($A$8=Nutrients!$B$79,Nutrients!$EZ$79,(IF($A$8=Nutrients!$B$77,Nutrients!$EZ$77,Nutrients!$EZ$78)))))*U$8))","v":2250},null,{"$f":"(SUMPRODUCT(W$9:W$229,Nutrients!$EZ$8:$EZ$228)+(IF($A$7=Nutrients!$B$8,Nutrients!$EZ$8,Nutrients!$EZ$9)*W$7)+(((IF($A$8=Nutrients!$B$79,Nutrients!$EZ$79,(IF($A$8=Nutrients!$B$77,Nutrients!$EZ$77,Nutrients!$EZ$78)))))*W$8))","v":4500},{"$f":"(SUMPRODUCT(X$9:X$229,Nutrients!$EZ$8:$EZ$228)+(IF($A$7=Nutrients!$B$8,Nutrients!$EZ$8,Nutrients!$EZ$9)*X$7)+(((IF($A$8=Nutrients!$B$79,Nutrients!$EZ$79,(IF($A$8=Nutrients!$B$77,Nutrients!$EZ$77,Nutrients!$EZ$78)))))*X$8))","v":4500},{"$f":"(SUMPRODUCT(Y$9:Y$229,Nutrients!$EZ$8:$EZ$228)+(IF($A$7=Nutrients!$B$8,Nutrients!$EZ$8,Nutrients!$EZ$9)*Y$7)+(((IF($A$8=Nutrients!$B$79,Nutrients!$EZ$79,(IF($A$8=Nutrients!$B$77,Nutrients!$EZ$77,Nutrients!$EZ$78)))))*Y$8))","v":3750},{"$f":"(SUMPRODUCT(Z$9:Z$229,Nutrients!$EZ$8:$EZ$228)+(IF($A$7=Nutrients!$B$8,Nutrients!$EZ$8,Nutrients!$EZ$9)*Z$7)+(((IF($A$8=Nutrients!$B$79,Nutrients!$EZ$79,(IF($A$8=Nutrients!$B$77,Nutrients!$EZ$77,Nutrients!$EZ$78)))))*Z$8))","v":3000},{"$f":"(SUMPRODUCT(AA$9:AA$229,Nutrients!$EZ$8:$EZ$228)+(IF($A$7=Nutrients!$B$8,Nutrients!$EZ$8,Nutrients!$EZ$9)*AA$7)+(((IF($A$8=Nutrients!$B$79,Nutrients!$EZ$79,(IF($A$8=Nutrients!$B$77,Nutrients!$EZ$77,Nutrients!$EZ$78)))))*AA$8))","v":2250},{"$f":"(SUMPRODUCT(AB$9:AB$229,Nutrients!$EZ$8:$EZ$228)+(IF($A$7=Nutrients!$B$8,Nutrients!$EZ$8,Nutrients!$EZ$9)*AB$7)+(((IF($A$8=Nutrients!$B$79,Nutrients!$EZ$79,(IF($A$8=Nutrients!$B$77,Nutrients!$EZ$77,Nutrients!$EZ$78)))))*AB$8))","v":2250},null,{"$f":"(SUMPRODUCT(AD$9:AD$229,Nutrients!$EZ$8:$EZ$228)+(IF($A$7=Nutrients!$B$8,Nutrients!$EZ$8,Nutrients!$EZ$9)*AD$7)+(((IF($A$8=Nutrients!$B$79,Nutrients!$EZ$79,(IF($A$8=Nutrients!$B$77,Nutrients!$EZ$77,Nutrients!$EZ$78)))))*AD$8))","v":4500},{"$f":"(SUMPRODUCT(AE$9:AE$229,Nutrients!$EZ$8:$EZ$228)+(IF($A$7=Nutrients!$B$8,Nutrients!$EZ$8,Nutrients!$EZ$9)*AE$7)+(((IF($A$8=Nutrients!$B$79,Nutrients!$EZ$79,(IF($A$8=Nutrients!$B$77,Nutrients!$EZ$77,Nutrients!$EZ$78)))))*AE$8))","v":4500},{"$f":"(SUMPRODUCT(AF$9:AF$229,Nutrients!$EZ$8:$EZ$228)+(IF($A$7=Nutrients!$B$8,Nutrients!$EZ$8,Nutrients!$EZ$9)*AF$7)+(((IF($A$8=Nutrients!$B$79,Nutrients!$EZ$79,(IF($A$8=Nutrients!$B$77,Nutrients!$EZ$77,Nutrients!$EZ$78)))))*AF$8))","v":3750},{"$f":"(SUMPRODUCT(AG$9:AG$229,Nutrients!$EZ$8:$EZ$228)+(IF($A$7=Nutrients!$B$8,Nutrients!$EZ$8,Nutrients!$EZ$9)*AG$7)+(((IF($A$8=Nutrients!$B$79,Nutrients!$EZ$79,(IF($A$8=Nutrients!$B$77,Nutrients!$EZ$77,Nutrients!$EZ$78)))))*AG$8))","v":3000},{"$f":"(SUMPRODUCT(AH$9:AH$229,Nutrients!$EZ$8:$EZ$228)+(IF($A$7=Nutrients!$B$8,Nutrients!$EZ$8,Nutrients!$EZ$9)*AH$7)+(((IF($A$8=Nutrients!$B$79,Nutrients!$EZ$79,(IF($A$8=Nutrients!$B$77,Nutrients!$EZ$77,Nutrients!$EZ$78)))))*AH$8))","v":2250},{"$f":"(SUMPRODUCT(AI$9:AI$229,Nutrients!$EZ$8:$EZ$228)+(IF($A$7=Nutrients!$B$8,Nutrients!$EZ$8,Nutrients!$EZ$9)*AI$7)+(((IF($A$8=Nutrients!$B$79,Nutrients!$EZ$79,(IF($A$8=Nutrients!$B$77,Nutrients!$EZ$77,Nutrients!$EZ$78)))))*AI$8))","v":2250},null,{"$f":"(SUMPRODUCT(AK$9:AK$229,Nutrients!$EZ$8:$EZ$228)+(IF($A$7=Nutrients!$B$8,Nutrients!$EZ$8,Nutrients!$EZ$9)*AK$7)+(((IF($A$8=Nutrients!$B$79,Nutrients!$EZ$79,(IF($A$8=Nutrients!$B$77,Nutrients!$EZ$77,Nutrients!$EZ$78)))))*AK$8))","v":4500},{"$f":"(SUMPRODUCT(AL$9:AL$229,Nutrients!$EZ$8:$EZ$228)+(IF($A$7=Nutrients!$B$8,Nutrients!$EZ$8,Nutrients!$EZ$9)*AL$7)+(((IF($A$8=Nutrients!$B$79,Nutrients!$EZ$79,(IF($A$8=Nutrients!$B$77,Nutrients!$EZ$77,Nutrients!$EZ$78)))))*AL$8))","v":4500},{"$f":"(SUMPRODUCT(AM$9:AM$229,Nutrients!$EZ$8:$EZ$228)+(IF($A$7=Nutrients!$B$8,Nutrients!$EZ$8,Nutrients!$EZ$9)*AM$7)+(((IF($A$8=Nutrients!$B$79,Nutrients!$EZ$79,(IF($A$8=Nutrients!$B$77,Nutrients!$EZ$77,Nutrients!$EZ$78)))))*AM$8))","v":3750},{"$f":"(SUMPRODUCT(AN$9:AN$229,Nutrients!$EZ$8:$EZ$228)+(IF($A$7=Nutrients!$B$8,Nutrients!$EZ$8,Nutrients!$EZ$9)*AN$7)+(((IF($A$8=Nutrients!$B$79,Nutrients!$EZ$79,(IF($A$8=Nutrients!$B$77,Nutrients!$EZ$77,Nutrients!$EZ$78)))))*AN$8))","v":3000},{"$f":"(SUMPRODUCT(AO$9:AO$229,Nutrients!$EZ$8:$EZ$228)+(IF($A$7=Nutrients!$B$8,Nutrients!$EZ$8,Nutrients!$EZ$9)*AO$7)+(((IF($A$8=Nutrients!$B$79,Nutrients!$EZ$79,(IF($A$8=Nutrients!$B$77,Nutrients!$EZ$77,Nutrients!$EZ$78)))))*AO$8))","v":2250},{"$f":"(SUMPRODUCT(AP$9:AP$229,Nutrients!$EZ$8:$EZ$228)+(IF($A$7=Nutrients!$B$8,Nutrients!$EZ$8,Nutrients!$EZ$9)*AP$7)+(((IF($A$8=Nutrients!$B$79,Nutrients!$EZ$79,(IF($A$8=Nutrients!$B$77,Nutrients!$EZ$77,Nutrients!$EZ$78)))))*AP$8))","v":2250},null,{"$f":"(SUMPRODUCT(AR$9:AR$229,Nutrients!$EZ$8:$EZ$228)+(IF($A$7=Nutrients!$B$8,Nutrients!$EZ$8,Nutrients!$EZ$9)*AR$7)+(((IF($A$8=Nutrients!$B$79,Nutrients!$EZ$79,(IF($A$8=Nutrients!$B$77,Nutrients!$EZ$77,Nutrients!$EZ$78)))))*AR$8))","v":4500},{"$f":"(SUMPRODUCT(AS$9:AS$229,Nutrients!$EZ$8:$EZ$228)+(IF($A$7=Nutrients!$B$8,Nutrients!$EZ$8,Nutrients!$EZ$9)*AS$7)+(((IF($A$8=Nutrients!$B$79,Nutrients!$EZ$79,(IF($A$8=Nutrients!$B$77,Nutrients!$EZ$77,Nutrients!$EZ$78)))))*AS$8))","v":4500},{"$f":"(SUMPRODUCT(AT$9:AT$229,Nutrients!$EZ$8:$EZ$228)+(IF($A$7=Nutrients!$B$8,Nutrients!$EZ$8,Nutrients!$EZ$9)*AT$7)+(((IF($A$8=Nutrients!$B$79,Nutrients!$EZ$79,(IF($A$8=Nutrients!$B$77,Nutrients!$EZ$77,Nutrients!$EZ$78)))))*AT$8))","v":3750},{"$f":"(SUMPRODUCT(AU$9:AU$229,Nutrients!$EZ$8:$EZ$228)+(IF($A$7=Nutrients!$B$8,Nutrients!$EZ$8,Nutrients!$EZ$9)*AU$7)+(((IF($A$8=Nutrients!$B$79,Nutrients!$EZ$79,(IF($A$8=Nutrients!$B$77,Nutrients!$EZ$77,Nutrients!$EZ$78)))))*AU$8))","v":3000},{"$f":"(SUMPRODUCT(AV$9:AV$229,Nutrients!$EZ$8:$EZ$228)+(IF($A$7=Nutrients!$B$8,Nutrients!$EZ$8,Nutrients!$EZ$9)*AV$7)+(((IF($A$8=Nutrients!$B$79,Nutrients!$EZ$79,(IF($A$8=Nutrients!$B$77,Nutrients!$EZ$77,Nutrients!$EZ$78)))))*AV$8))","v":2250},{"$f":"(SUMPRODUCT(AW$9:AW$229,Nutrients!$EZ$8:$EZ$228)+(IF($A$7=Nutrients!$B$8,Nutrients!$EZ$8,Nutrients!$EZ$9)*AW$7)+(((IF($A$8=Nutrients!$B$79,Nutrients!$EZ$79,(IF($A$8=Nutrients!$B$77,Nutrients!$EZ$77,Nutrients!$EZ$78)))))*AW$8))","v":2250}]
["  Biotin, mg/ton",{"$f":"(SUMPRODUCT(B$9:B$229,Nutrients!$FA$8:$FA$228)+(IF($A$7=Nutrients!$B$8,Nutrients!$FA$8,Nutrients!$FA$9)*B$7)+(((IF($A$8=Nutrients!$B$79,Nutrients!$FA$79,(IF($A$8=Nutrients!$B$77,Nutrients!$FA$77,Nutrients!$FA$78)))))*B$8))","v":0},{"$f":"(SUMPRODUCT(C$9:C$229,Nutrients!$FA$8:$FA$228)+(IF($A$7=Nutrients!$B$8,Nutrients!$FA$8,Nutrients!$FA$9)*C$7)+(((IF($A$8=Nutrients!$B$79,Nutrients!$FA$79,(IF($A$8=Nutrients!$B$77,Nutrients!$FA$77,Nutrients!$FA$78)))))*C$8))","v":0},{"$f":"(SUMPRODUCT(D$9:D$229,Nutrients!$FA$8:$FA$228)+(IF($A$7=Nutrients!$B$8,Nutrients!$FA$8,Nutrients!$FA$9)*D$7)+(((IF($A$8=Nutrients!$B$79,Nutrients!$FA$79,(IF($A$8=Nutrients!$B$77,Nutrients!$FA$77,Nutrients!$FA$78)))))*D$8))","v":0},{"$f":"(SUMPRODUCT(E$9:E$229,Nutrients!$FA$8:$FA$228)+(IF($A$7=Nutrients!$B$8,Nutrients!$FA$8,Nutrients!$FA$9)*E$7)+(((IF($A$8=Nutrients!$B$79,Nutrients!$FA$79,(IF($A$8=Nutrients!$B$77,Nutrients!$FA$77,Nutrients!$FA$78)))))*E$8))","v":0},{"$f":"(SUMPRODUCT(F$9:F$229,Nutrients!$FA$8:$FA$228)+(IF($A$7=Nutrients!$B$8,Nutrients!$FA$8,Nutrients!$FA$9)*F$7)+(((IF($A$8=Nutrients!$B$79,Nutrients!$FA$79,(IF($A$8=Nutrients!$B$77,Nutrients!$FA$77,Nutrients!$FA$78)))))*F$8))","v":0},{"$f":"(SUMPRODUCT(G$9:G$229,Nutrients!$FA$8:$FA$228)+(IF($A$7=Nutrients!$B$8,Nutrients!$FA$8,Nutrients!$FA$9)*G$7)+(((IF($A$8=Nutrients!$B$79,Nutrients!$FA$79,(IF($A$8=Nutrients!$B$77,Nutrients!$FA$77,Nutrients!$FA$78)))))*G$8))","v":0},null,{"$f":"(SUMPRODUCT(I$9:I$229,Nutrients!$FA$8:$FA$228)+(IF($A$7=Nutrients!$B$8,Nutrients!$FA$8,Nutrients!$FA$9)*I$7)+(((IF($A$8=Nutrients!$B$79,Nutrients!$FA$79,(IF($A$8=Nutrients!$B$77,Nutrients!$FA$77,Nutrients!$FA$78)))))*I$8))","v":0},{"$f":"(SUMPRODUCT(J$9:J$229,Nutrients!$FA$8:$FA$228)+(IF($A$7=Nutrients!$B$8,Nutrients!$FA$8,Nutrients!$FA$9)*J$7)+(((IF($A$8=Nutrients!$B$79,Nutrients!$FA$79,(IF($A$8=Nutrients!$B$77,Nutrients!$FA$77,Nutrients!$FA$78)))))*J$8))","v":0},{"$f":"(SUMPRODUCT(K$9:K$229,Nutrients!$FA$8:$FA$228)+(IF($A$7=Nutrients!$B$8,Nutrients!$FA$8,Nutrients!$FA$9)*K$7)+(((IF($A$8=Nutrients!$B$79,Nutrients!$FA$79,(IF($A$8=Nutrients!$B$77,Nutrients!$FA$77,Nutrients!$FA$78)))))*K$8))","v":0},{"$f":"(SUMPRODUCT(L$9:L$229,Nutrients!$FA$8:$FA$228)+(IF($A$7=Nutrients!$B$8,Nutrients!$FA$8,Nutrients!$FA$9)*L$7)+(((IF($A$8=Nutrients!$B$79,Nutrients!$FA$79,(IF($A$8=Nutrients!$B$77,Nutrients!$FA$77,Nutrients!$FA$78)))))*L$8))","v":0},{"$f":"(SUMPRODUCT(M$9:M$229,Nutrients!$FA$8:$FA$228)+(IF($A$7=Nutrients!$B$8,Nutrients!$FA$8,Nutrients!$FA$9)*M$7)+(((IF($A$8=Nutrients!$B$79,Nutrients!$FA$79,(IF($A$8=Nutrients!$B$77,Nutrients!$FA$77,Nutrients!$FA$78)))))*M$8))","v":0},{"$f":"(SUMPRODUCT(N$9:N$229,Nutrients!$FA$8:$FA$228)+(IF($A$7=Nutrients!$B$8,Nutrients!$FA$8,Nutrients!$FA$9)*N$7)+(((IF($A$8=Nutrients!$B$79,Nutrients!$FA$79,(IF($A$8=Nutrients!$B$77,Nutrients!$FA$77,Nutrients!$FA$78)))))*N$8))","v":0},null,{"$f":"(SUMPRODUCT(P$9:P$229,Nutrients!$FA$8:$FA$228)+(IF($A$7=Nutrients!$B$8,Nutrients!$FA$8,Nutrients!$FA$9)*P$7)+(((IF($A$8=Nutrients!$B$79,Nutrients!$FA$79,(IF($A$8=Nutrients!$B$77,Nutrients!$FA$77,Nutrients!$FA$78)))))*P$8))","v":0},{"$f":"(SUMPRODUCT(Q$9:Q$229,Nutrients!$FA$8:$FA$228)+(IF($A$7=Nutrients!$B$8,Nutrients!$FA$8,Nutrients!$FA$9)*Q$7)+(((IF($A$8=Nutrients!$B$79,Nutrients!$FA$79,(IF($A$8=Nutrients!$B$77,Nutrients!$FA$77,Nutrients!$FA$78)))))*Q$8))","v":0},{"$f":"(SUMPRODUCT(R$9:R$229,Nutrients!$FA$8:$FA$228)+(IF($A$7=Nutrients!$B$8,Nutrients!$FA$8,Nutrients!$FA$9)*R$7)+(((IF($A$8=Nutrients!$B$79,Nutrients!$FA$79,(IF($A$8=Nutrients!$B$77,Nutrients!$FA$77,Nutrients!$FA$78)))))*R$8))","v":0},{"$f":"(SUMPRODUCT(S$9:S$229,Nutrients!$FA$8:$FA$228)+(IF($A$7=Nutrients!$B$8,Nutrients!$FA$8,Nutrients!$FA$9)*S$7)+(((IF($A$8=Nutrients!$B$79,Nutrients!$FA$79,(IF($A$8=Nutrients!$B$77,Nutrients!$FA$77,Nutrients!$FA$78)))))*S$8))","v":0},{"$f":"(SUMPRODUCT(T$9:T$229,Nutrients!$FA$8:$FA$228)+(IF($A$7=Nutrients!$B$8,Nutrients!$FA$8,Nutrients!$FA$9)*T$7)+(((IF($A$8=Nutrients!$B$79,Nutrients!$FA$79,(IF($A$8=Nutrients!$B$77,Nutrients!$FA$77,Nutrients!$FA$78)))))*T$8))","v":0},{"$f":"(SUMPRODUCT(U$9:U$229,Nutrients!$FA$8:$FA$228)+(IF($A$7=Nutrients!$B$8,Nutrients!$FA$8,Nutrients!$FA$9)*U$7)+(((IF($A$8=Nutrients!$B$79,Nutrients!$FA$79,(IF($A$8=Nutrients!$B$77,Nutrients!$FA$77,Nutrients!$FA$78)))))*U$8))","v":0},null,{"$f":"(SUMPRODUCT(W$9:W$229,Nutrients!$FA$8:$FA$228)+(IF($A$7=Nutrients!$B$8,Nutrients!$FA$8,Nutrients!$FA$9)*W$7)+(((IF($A$8=Nutrients!$B$79,Nutrients!$FA$79,(IF($A$8=Nutrients!$B$77,Nutrients!$FA$77,Nutrients!$FA$78)))))*W$8))","v":0},{"$f":"(SUMPRODUCT(X$9:X$229,Nutrients!$FA$8:$FA$228)+(IF($A$7=Nutrients!$B$8,Nutrients!$FA$8,Nutrients!$FA$9)*X$7)+(((IF($A$8=Nutrients!$B$79,Nutrients!$FA$79,(IF($A$8=Nutrients!$B$77,Nutrients!$FA$77,Nutrients!$FA$78)))))*X$8))","v":0},{"$f":"(SUMPRODUCT(Y$9:Y$229,Nutrients!$FA$8:$FA$228)+(IF($A$7=Nutrients!$B$8,Nutrients!$FA$8,Nutrients!$FA$9)*Y$7)+(((IF($A$8=Nutrients!$B$79,Nutrients!$FA$79,(IF($A$8=Nutrients!$B$77,Nutrients!$FA$77,Nutrients!$FA$78)))))*Y$8))","v":0},{"$f":"(SUMPRODUCT(Z$9:Z$229,Nutrients!$FA$8:$FA$228)+(IF($A$7=Nutrients!$B$8,Nutrients!$FA$8,Nutrients!$FA$9)*Z$7)+(((IF($A$8=Nutrients!$B$79,Nutrients!$FA$79,(IF($A$8=Nutrients!$B$77,Nutrients!$FA$77,Nutrients!$FA$78)))))*Z$8))","v":0},{"$f":"(SUMPRODUCT(AA$9:AA$229,Nutrients!$FA$8:$FA$228)+(IF($A$7=Nutrients!$B$8,Nutrients!$FA$8,Nutrients!$FA$9)*AA$7)+(((IF($A$8=Nutrients!$B$79,Nutrients!$FA$79,(IF($A$8=Nutrients!$B$77,Nutrients!$FA$77,Nutrients!$FA$78)))))*AA$8))","v":0},{"$f":"(SUMPRODUCT(AB$9:AB$229,Nutrients!$FA$8:$FA$228)+(IF($A$7=Nutrients!$B$8,Nutrients!$FA$8,Nutrients!$FA$9)*AB$7)+(((IF($A$8=Nutrients!$B$79,Nutrients!$FA$79,(IF($A$8=Nutrients!$B$77,Nutrients!$FA$77,Nutrients!$FA$78)))))*AB$8))","v":0},null,{"$f":"(SUMPRODUCT(AD$9:AD$229,Nutrients!$FA$8:$FA$228)+(IF($A$7=Nutrients!$B$8,Nutrients!$FA$8,Nutrients!$FA$9)*AD$7)+(((IF($A$8=Nutrients!$B$79,Nutrients!$FA$79,(IF($A$8=Nutrients!$B$77,Nutrients!$FA$77,Nutrients!$FA$78)))))*AD$8))","v":0},{"$f":"(SUMPRODUCT(AE$9:AE$229,Nutrients!$FA$8:$FA$228)+(IF($A$7=Nutrients!$B$8,Nutrients!$FA$8,Nutrients!$FA$9)*AE$7)+(((IF($A$8=Nutrients!$B$79,Nutrients!$FA$79,(IF($A$8=Nutrients!$B$77,Nutrients!$FA$77,Nutrients!$FA$78)))))*AE$8))","v":0},{"$f":"(SUMPRODUCT(AF$9:AF$229,Nutrients!$FA$8:$FA$228)+(IF($A$7=Nutrients!$B$8,Nutrients!$FA$8,Nutrients!$FA$9)*AF$7)+(((IF($A$8=Nutrients!$B$79,Nutrients!$FA$79,(IF($A$8=Nutrients!$B$77,Nutrients!$FA$77,Nutrients!$FA$78)))))*AF$8))","v":0},{"$f":"(SUMPRODUCT(AG$9:AG$229,Nutrients!$FA$8:$FA$228)+(IF($A$7=Nutrients!$B$8,Nutrients!$FA$8,Nutrients!$FA$9)*AG$7)+(((IF($A$8=Nutrients!$B$79,Nutrients!$FA$79,(IF($A$8=Nutrients!$B$77,Nutrients!$FA$77,Nutrients!$FA$78)))))*AG$8))","v":0},{"$f":"(SUMPRODUCT(AH$9:AH$229,Nutrients!$FA$8:$FA$228)+(IF($A$7=Nutrients!$B$8,Nutrients!$FA$8,Nutrients!$FA$9)*AH$7)+(((IF($A$8=Nutrients!$B$79,Nutrients!$FA$79,(IF($A$8=Nutrients!$B$77,Nutrients!$FA$77,Nutrients!$FA$78)))))*AH$8))","v":0},{"$f":"(SUMPRODUCT(AI$9:AI$229,Nutrients!$FA$8:$FA$228)+(IF($A$7=Nutrients!$B$8,Nutrients!$FA$8,Nutrients!$FA$9)*AI$7)+(((IF($A$8=Nutrients!$B$79,Nutrients!$FA$79,(IF($A$8=Nutrients!$B$77,Nutrients!$FA$77,Nutrients!$FA$78)))))*AI$8))","v":0},null,{"$f":"(SUMPRODUCT(AK$9:AK$229,Nutrients!$FA$8:$FA$228)+(IF($A$7=Nutrients!$B$8,Nutrients!$FA$8,Nutrients!$FA$9)*AK$7)+(((IF($A$8=Nutrients!$B$79,Nutrients!$FA$79,(IF($A$8=Nutrients!$B$77,Nutrients!$FA$77,Nutrients!$FA$78)))))*AK$8))","v":0},{"$f":"(SUMPRODUCT(AL$9:AL$229,Nutrients!$FA$8:$FA$228)+(IF($A$7=Nutrients!$B$8,Nutrients!$FA$8,Nutrients!$FA$9)*AL$7)+(((IF($A$8=Nutrients!$B$79,Nutrients!$FA$79,(IF($A$8=Nutrients!$B$77,Nutrients!$FA$77,Nutrients!$FA$78)))))*AL$8))","v":0},{"$f":"(SUMPRODUCT(AM$9:AM$229,Nutrients!$FA$8:$FA$228)+(IF($A$7=Nutrients!$B$8,Nutrients!$FA$8,Nutrients!$FA$9)*AM$7)+(((IF($A$8=Nutrients!$B$79,Nutrients!$FA$79,(IF($A$8=Nutrients!$B$77,Nutrients!$FA$77,Nutrients!$FA$78)))))*AM$8))","v":0},{"$f":"(SUMPRODUCT(AN$9:AN$229,Nutrients!$FA$8:$FA$228)+(IF($A$7=Nutrients!$B$8,Nutrients!$FA$8,Nutrients!$FA$9)*AN$7)+(((IF($A$8=Nutrients!$B$79,Nutrients!$FA$79,(IF($A$8=Nutrients!$B$77,Nutrients!$FA$77,Nutrients!$FA$78)))))*AN$8))","v":0},{"$f":"(SUMPRODUCT(AO$9:AO$229,Nutrients!$FA$8:$FA$228)+(IF($A$7=Nutrients!$B$8,Nutrients!$FA$8,Nutrients!$FA$9)*AO$7)+(((IF($A$8=Nutrients!$B$79,Nutrients!$FA$79,(IF($A$8=Nutrients!$B$77,Nutrients!$FA$77,Nutrients!$FA$78)))))*AO$8))","v":0},{"$f":"(SUMPRODUCT(AP$9:AP$229,Nutrients!$FA$8:$FA$228)+(IF($A$7=Nutrients!$B$8,Nutrients!$FA$8,Nutrients!$FA$9)*AP$7)+(((IF($A$8=Nutrients!$B$79,Nutrients!$FA$79,(IF($A$8=Nutrients!$B$77,Nutrients!$FA$77,Nutrients!$FA$78)))))*AP$8))","v":0},null,{"$f":"(SUMPRODUCT(AR$9:AR$229,Nutrients!$FA$8:$FA$228)+(IF($A$7=Nutrients!$B$8,Nutrients!$FA$8,Nutrients!$FA$9)*AR$7)+(((IF($A$8=Nutrients!$B$79,Nutrients!$FA$79,(IF($A$8=Nutrients!$B$77,Nutrients!$FA$77,Nutrients!$FA$78)))))*AR$8))","v":0},{"$f":"(SUMPRODUCT(AS$9:AS$229,Nutrients!$FA$8:$FA$228)+(IF($A$7=Nutrients!$B$8,Nutrients!$FA$8,Nutrients!$FA$9)*AS$7)+(((IF($A$8=Nutrients!$B$79,Nutrients!$FA$79,(IF($A$8=Nutrients!$B$77,Nutrients!$FA$77,Nutrients!$FA$78)))))*AS$8))","v":0},{"$f":"(SUMPRODUCT(AT$9:AT$229,Nutrients!$FA$8:$FA$228)+(IF($A$7=Nutrients!$B$8,Nutrients!$FA$8,Nutrients!$FA$9)*AT$7)+(((IF($A$8=Nutrients!$B$79,Nutrients!$FA$79,(IF($A$8=Nutrients!$B$77,Nutrients!$FA$77,Nutrients!$FA$78)))))*AT$8))","v":0},{"$f":"(SUMPRODUCT(AU$9:AU$229,Nutrients!$FA$8:$FA$228)+(IF($A$7=Nutrients!$B$8,Nutrients!$FA$8,Nutrients!$FA$9)*AU$7)+(((IF($A$8=Nutrients!$B$79,Nutrients!$FA$79,(IF($A$8=Nutrients!$B$77,Nutrients!$FA$77,Nutrients!$FA$78)))))*AU$8))","v":0},{"$f":"(SUMPRODUCT(AV$9:AV$229,Nutrients!$FA$8:$FA$228)+(IF($A$7=Nutrients!$B$8,Nutrients!$FA$8,Nutrients!$FA$9)*AV$7)+(((IF($A$8=Nutrients!$B$79,Nutrients!$FA$79,(IF($A$8=Nutrients!$B$77,Nutrients!$FA$77,Nutrients!$FA$78)))))*AV$8))","v":0},{"$f":"(SUMPRODUCT(AW$9:AW$229,Nutrients!$FA$8:$FA$228)+(IF($A$7=Nutrients!$B$8,Nutrients!$FA$8,Nutrients!$FA$9)*AW$7)+(((IF($A$8=Nutrients!$B$79,Nutrients!$FA$79,(IF($A$8=Nutrients!$B$77,Nutrients!$FA$77,Nutrients!$FA$78)))))*AW$8))","v":0}]
["  Folic acid, mg/ton",{"$f":"(SUMPRODUCT(B$9:B$229,Nutrients!$FB$8:$FB$228)+(IF($A$7=Nutrients!$B$8,Nutrients!$FB$8,Nutrients!$FB$9)*B$7)+(((IF($A$8=Nutrients!$B$79,Nutrients!$FB$79,(IF($A$8=Nutrients!$B$77,Nutrients!$FB$77,Nutrients!$FB$78)))))*B$8))","v":0},{"$f":"(SUMPRODUCT(C$9:C$229,Nutrients!$FB$8:$FB$228)+(IF($A$7=Nutrients!$B$8,Nutrients!$FB$8,Nutrients!$FB$9)*C$7)+(((IF($A$8=Nutrients!$B$79,Nutrients!$FB$79,(IF($A$8=Nutrients!$B$77,Nutrients!$FB$77,Nutrients!$FB$78)))))*C$8))","v":0},{"$f":"(SUMPRODUCT(D$9:D$229,Nutrients!$FB$8:$FB$228)+(IF($A$7=Nutrients!$B$8,Nutrients!$FB$8,Nutrients!$FB$9)*D$7)+(((IF($A$8=Nutrients!$B$79,Nutrients!$FB$79,(IF($A$8=Nutrients!$B$77,Nutrients!$FB$77,Nutrients!$FB$78)))))*D$8))","v":0},{"$f":"(SUMPRODUCT(E$9:E$229,Nutrients!$FB$8:$FB$228)+(IF($A$7=Nutrients!$B$8,Nutrients!$FB$8,Nutrients!$FB$9)*E$7)+(((IF($A$8=Nutrients!$B$79,Nutrients!$FB$79,(IF($A$8=Nutrients!$B$77,Nutrients!$FB$77,Nutrients!$FB$78)))))*E$8))","v":0},{"$f":"(SUMPRODUCT(F$9:F$229,Nutrients!$FB$8:$FB$228)+(IF($A$7=Nutrients!$B$8,Nutrients!$FB$8,Nutrients!$FB$9)*F$7)+(((IF($A$8=Nutrients!$B$79,Nutrients!$FB$79,(IF($A$8=Nutrients!$B$77,Nutrients!$FB$77,Nutrients!$FB$78)))))*F$8))","v":0},{"$f":"(SUMPRODUCT(G$9:G$229,Nutrients!$FB$8:$FB$228)+(IF($A$7=Nutrients!$B$8,Nutrients!$FB$8,Nutrients!$FB$9)*G$7)+(((IF($A$8=Nutrients!$B$79,Nutrients!$FB$79,(IF($A$8=Nutrients!$B$77,Nutrients!$FB$77,Nutrients!$FB$78)))))*G$8))","v":0},null,{"$f":"(SUMPRODUCT(I$9:I$229,Nutrients!$FB$8:$FB$228)+(IF($A$7=Nutrients!$B$8,Nutrients!$FB$8,Nutrients!$FB$9)*I$7)+(((IF($A$8=Nutrients!$B$79,Nutrients!$FB$79,(IF($A$8=Nutrients!$B$77,Nutrients!$FB$77,Nutrients!$FB$78)))))*I$8))","v":0},{"$f":"(SUMPRODUCT(J$9:J$229,Nutrients!$FB$8:$FB$228)+(IF($A$7=Nutrients!$B$8,Nutrients!$FB$8,Nutrients!$FB$9)*J$7)+(((IF($A$8=Nutrients!$B$79,Nutrients!$FB$79,(IF($A$8=Nutrients!$B$77,Nutrients!$FB$77,Nutrients!$FB$78)))))*J$8))","v":0},{"$f":"(SUMPRODUCT(K$9:K$229,Nutrients!$FB$8:$FB$228)+(IF($A$7=Nutrients!$B$8,Nutrients!$FB$8,Nutrients!$FB$9)*K$7)+(((IF($A$8=Nutrients!$B$79,Nutrients!$FB$79,(IF($A$8=Nutrients!$B$77,Nutrients!$FB$77,Nutrients!$FB$78)))))*K$8))","v":0},{"$f":"(SUMPRODUCT(L$9:L$229,Nutrients!$FB$8:$FB$228)+(IF($A$7=Nutrients!$B$8,Nutrients!$FB$8,Nutrients!$FB$9)*L$7)+(((IF($A$8=Nutrients!$B$79,Nutrients!$FB$79,(IF($A$8=Nutrients!$B$77,Nutrients!$FB$77,Nutrients!$FB$78)))))*L$8))","v":0},{"$f":"(SUMPRODUCT(M$9:M$229,Nutrients!$FB$8:$FB$228)+(IF($A$7=Nutrients!$B$8,Nutrients!$FB$8,Nutrients!$FB$9)*M$7)+(((IF($A$8=Nutrients!$B$79,Nutrients!$FB$79,(IF($A$8=Nutrients!$B$77,Nutrients!$FB$77,Nutrients!$FB$78)))))*M$8))","v":0},{"$f":"(SUMPRODUCT(N$9:N$229,Nutrients!$FB$8:$FB$228)+(IF($A$7=Nutrients!$B$8,Nutrients!$FB$8,Nutrients!$FB$9)*N$7)+(((IF($A$8=Nutrients!$B$79,Nutrients!$FB$79,(IF($A$8=Nutrients!$B$77,Nutrients!$FB$77,Nutrients!$FB$78)))))*N$8))","v":0},null,{"$f":"(SUMPRODUCT(P$9:P$229,Nutrients!$FB$8:$FB$228)+(IF($A$7=Nutrients!$B$8,Nutrients!$FB$8,Nutrients!$FB$9)*P$7)+(((IF($A$8=Nutrients!$B$79,Nutrients!$FB$79,(IF($A$8=Nutrients!$B$77,Nutrients!$FB$77,Nutrients!$FB$78)))))*P$8))","v":0},{"$f":"(SUMPRODUCT(Q$9:Q$229,Nutrients!$FB$8:$FB$228)+(IF($A$7=Nutrients!$B$8,Nutrients!$FB$8,Nutrients!$FB$9)*Q$7)+(((IF($A$8=Nutrients!$B$79,Nutrients!$FB$79,(IF($A$8=Nutrients!$B$77,Nutrients!$FB$77,Nutrients!$FB$78)))))*Q$8))","v":0},{"$f":"(SUMPRODUCT(R$9:R$229,Nutrients!$FB$8:$FB$228)+(IF($A$7=Nutrients!$B$8,Nutrients!$FB$8,Nutrients!$FB$9)*R$7)+(((IF($A$8=Nutrients!$B$79,Nutrients!$FB$79,(IF($A$8=Nutrients!$B$77,Nutrients!$FB$77,Nutrients!$FB$78)))))*R$8))","v":0},{"$f":"(SUMPRODUCT(S$9:S$229,Nutrients!$FB$8:$FB$228)+(IF($A$7=Nutrients!$B$8,Nutrients!$FB$8,Nutrients!$FB$9)*S$7)+(((IF($A$8=Nutrients!$B$79,Nutrients!$FB$79,(IF($A$8=Nutrients!$B$77,Nutrients!$FB$77,Nutrients!$FB$78)))))*S$8))","v":0},{"$f":"(SUMPRODUCT(T$9:T$229,Nutrients!$FB$8:$FB$228)+(IF($A$7=Nutrients!$B$8,Nutrients!$FB$8,Nutrients!$FB$9)*T$7)+(((IF($A$8=Nutrients!$B$79,Nutrients!$FB$79,(IF($A$8=Nutrients!$B$77,Nutrients!$FB$77,Nutrients!$FB$78)))))*T$8))","v":0},{"$f":"(SUMPRODUCT(U$9:U$229,Nutrients!$FB$8:$FB$228)+(IF($A$7=Nutrients!$B$8,Nutrients!$FB$8,Nutrients!$FB$9)*U$7)+(((IF($A$8=Nutrients!$B$79,Nutrients!$FB$79,(IF($A$8=Nutrients!$B$77,Nutrients!$FB$77,Nutrients!$FB$78)))))*U$8))","v":0},null,{"$f":"(SUMPRODUCT(W$9:W$229,Nutrients!$FB$8:$FB$228)+(IF($A$7=Nutrients!$B$8,Nutrients!$FB$8,Nutrients!$FB$9)*W$7)+(((IF($A$8=Nutrients!$B$79,Nutrients!$FB$79,(IF($A$8=Nutrients!$B$77,Nutrients!$FB$77,Nutrients!$FB$78)))))*W$8))","v":0},{"$f":"(SUMPRODUCT(X$9:X$229,Nutrients!$FB$8:$FB$228)+(IF($A$7=Nutrients!$B$8,Nutrients!$FB$8,Nutrients!$FB$9)*X$7)+(((IF($A$8=Nutrients!$B$79,Nutrients!$FB$79,(IF($A$8=Nutrients!$B$77,Nutrients!$FB$77,Nutrients!$FB$78)))))*X$8))","v":0},{"$f":"(SUMPRODUCT(Y$9:Y$229,Nutrients!$FB$8:$FB$228)+(IF($A$7=Nutrients!$B$8,Nutrients!$FB$8,Nutrients!$FB$9)*Y$7)+(((IF($A$8=Nutrients!$B$79,Nutrients!$FB$79,(IF($A$8=Nutrients!$B$77,Nutrients!$FB$77,Nutrients!$FB$78)))))*Y$8))","v":0},{"$f":"(SUMPRODUCT(Z$9:Z$229,Nutrients!$FB$8:$FB$228)+(IF($A$7=Nutrients!$B$8,Nutrients!$FB$8,Nutrients!$FB$9)*Z$7)+(((IF($A$8=Nutrients!$B$79,Nutrients!$FB$79,(IF($A$8=Nutrients!$B$77,Nutrients!$FB$77,Nutrients!$FB$78)))))*Z$8))","v":0},{"$f":"(SUMPRODUCT(AA$9:AA$229,Nutrients!$FB$8:$FB$228)+(IF($A$7=Nutrients!$B$8,Nutrients!$FB$8,Nutrients!$FB$9)*AA$7)+(((IF($A$8=Nutrients!$B$79,Nutrients!$FB$79,(IF($A$8=Nutrients!$B$77,Nutrients!$FB$77,Nutrients!$FB$78)))))*AA$8))","v":0},{"$f":"(SUMPRODUCT(AB$9:AB$229,Nutrients!$FB$8:$FB$228)+(IF($A$7=Nutrients!$B$8,Nutrients!$FB$8,Nutrients!$FB$9)*AB$7)+(((IF($A$8=Nutrients!$B$79,Nutrients!$FB$79,(IF($A$8=Nutrients!$B$77,Nutrients!$FB$77,Nutrients!$FB$78)))))*AB$8))","v":0},null,{"$f":"(SUMPRODUCT(AD$9:AD$229,Nutrients!$FB$8:$FB$228)+(IF($A$7=Nutrients!$B$8,Nutrients!$FB$8,Nutrients!$FB$9)*AD$7)+(((IF($A$8=Nutrients!$B$79,Nutrients!$FB$79,(IF($A$8=Nutrients!$B$77,Nutrients!$FB$77,Nutrients!$FB$78)))))*AD$8))","v":0},{"$f":"(SUMPRODUCT(AE$9:AE$229,Nutrients!$FB$8:$FB$228)+(IF($A$7=Nutrients!$B$8,Nutrients!$FB$8,Nutrients!$FB$9)*AE$7)+(((IF($A$8=Nutrients!$B$79,Nutrients!$FB$79,(IF($A$8=Nutrients!$B$77,Nutrients!$FB$77,Nutrients!$FB$78)))))*AE$8))","v":0},{"$f":"(SUMPRODUCT(AF$9:AF$229,Nutrients!$FB$8:$FB$228)+(IF($A$7=Nutrients!$B$8,Nutrients!$FB$8,Nutrients!$FB$9)*AF$7)+(((IF($A$8=Nutrients!$B$79,Nutrients!$FB$79,(IF($A$8=Nutrients!$B$77,Nutrients!$FB$77,Nutrients!$FB$78)))))*AF$8))","v":0},{"$f":"(SUMPRODUCT(AG$9:AG$229,Nutrients!$FB$8:$FB$228)+(IF($A$7=Nutrients!$B$8,Nutrients!$FB$8,Nutrients!$FB$9)*AG$7)+(((IF($A$8=Nutrients!$B$79,Nutrients!$FB$79,(IF($A$8=Nutrients!$B$77,Nutrients!$FB$77,Nutrients!$FB$78)))))*AG$8))","v":0},{"$f":"(SUMPRODUCT(AH$9:AH$229,Nutrients!$FB$8:$FB$228)+(IF($A$7=Nutrients!$B$8,Nutrients!$FB$8,Nutrients!$FB$9)*AH$7)+(((IF($A$8=Nutrients!$B$79,Nutrients!$FB$79,(IF($A$8=Nutrients!$B$77,Nutrients!$FB$77,Nutrients!$FB$78)))))*AH$8))","v":0},{"$f":"(SUMPRODUCT(AI$9:AI$229,Nutrients!$FB$8:$FB$228)+(IF($A$7=Nutrients!$B$8,Nutrients!$FB$8,Nutrients!$FB$9)*AI$7)+(((IF($A$8=Nutrients!$B$79,Nutrients!$FB$79,(IF($A$8=Nutrients!$B$77,Nutrients!$FB$77,Nutrients!$FB$78)))))*AI$8))","v":0},null,{"$f":"(SUMPRODUCT(AK$9:AK$229,Nutrients!$FB$8:$FB$228)+(IF($A$7=Nutrients!$B$8,Nutrients!$FB$8,Nutrients!$FB$9)*AK$7)+(((IF($A$8=Nutrients!$B$79,Nutrients!$FB$79,(IF($A$8=Nutrients!$B$77,Nutrients!$FB$77,Nutrients!$FB$78)))))*AK$8))","v":0},{"$f":"(SUMPRODUCT(AL$9:AL$229,Nutrients!$FB$8:$FB$228)+(IF($A$7=Nutrients!$B$8,Nutrients!$FB$8,Nutrients!$FB$9)*AL$7)+(((IF($A$8=Nutrients!$B$79,Nutrients!$FB$79,(IF($A$8=Nutrients!$B$77,Nutrients!$FB$77,Nutrients!$FB$78)))))*AL$8))","v":0},{"$f":"(SUMPRODUCT(AM$9:AM$229,Nutrients!$FB$8:$FB$228)+(IF($A$7=Nutrients!$B$8,Nutrients!$FB$8,Nutrients!$FB$9)*AM$7)+(((IF($A$8=Nutrients!$B$79,Nutrients!$FB$79,(IF($A$8=Nutrients!$B$77,Nutrients!$FB$77,Nutrients!$FB$78)))))*AM$8))","v":0},{"$f":"(SUMPRODUCT(AN$9:AN$229,Nutrients!$FB$8:$FB$228)+(IF($A$7=Nutrients!$B$8,Nutrients!$FB$8,Nutrients!$FB$9)*AN$7)+(((IF($A$8=Nutrients!$B$79,Nutrients!$FB$79,(IF($A$8=Nutrients!$B$77,Nutrients!$FB$77,Nutrients!$FB$78)))))*AN$8))","v":0},{"$f":"(SUMPRODUCT(AO$9:AO$229,Nutrients!$FB$8:$FB$228)+(IF($A$7=Nutrients!$B$8,Nutrients!$FB$8,Nutrients!$FB$9)*AO$7)+(((IF($A$8=Nutrients!$B$79,Nutrients!$FB$79,(IF($A$8=Nutrients!$B$77,Nutrients!$FB$77,Nutrients!$FB$78)))))*AO$8))","v":0},{"$f":"(SUMPRODUCT(AP$9:AP$229,Nutrients!$FB$8:$FB$228)+(IF($A$7=Nutrients!$B$8,Nutrients!$FB$8,Nutrients!$FB$9)*AP$7)+(((IF($A$8=Nutrients!$B$79,Nutrients!$FB$79,(IF($A$8=Nutrients!$B$77,Nutrients!$FB$77,Nutrients!$FB$78)))))*AP$8))","v":0},null,{"$f":"(SUMPRODUCT(AR$9:AR$229,Nutrients!$FB$8:$FB$228)+(IF($A$7=Nutrients!$B$8,Nutrients!$FB$8,Nutrients!$FB$9)*AR$7)+(((IF($A$8=Nutrients!$B$79,Nutrients!$FB$79,(IF($A$8=Nutrients!$B$77,Nutrients!$FB$77,Nutrients!$FB$78)))))*AR$8))","v":0},{"$f":"(SUMPRODUCT(AS$9:AS$229,Nutrients!$FB$8:$FB$228)+(IF($A$7=Nutrients!$B$8,Nutrients!$FB$8,Nutrients!$FB$9)*AS$7)+(((IF($A$8=Nutrients!$B$79,Nutrients!$FB$79,(IF($A$8=Nutrients!$B$77,Nutrients!$FB$77,Nutrients!$FB$78)))))*AS$8))","v":0},{"$f":"(SUMPRODUCT(AT$9:AT$229,Nutrients!$FB$8:$FB$228)+(IF($A$7=Nutrients!$B$8,Nutrients!$FB$8,Nutrients!$FB$9)*AT$7)+(((IF($A$8=Nutrients!$B$79,Nutrients!$FB$79,(IF($A$8=Nutrients!$B$77,Nutrients!$FB$77,Nutrients!$FB$78)))))*AT$8))","v":0},{"$f":"(SUMPRODUCT(AU$9:AU$229,Nutrients!$FB$8:$FB$228)+(IF($A$7=Nutrients!$B$8,Nutrients!$FB$8,Nutrients!$FB$9)*AU$7)+(((IF($A$8=Nutrients!$B$79,Nutrients!$FB$79,(IF($A$8=Nutrients!$B$77,Nutrients!$FB$77,Nutrients!$FB$78)))))*AU$8))","v":0},{"$f":"(SUMPRODUCT(AV$9:AV$229,Nutrients!$FB$8:$FB$228)+(IF($A$7=Nutrients!$B$8,Nutrients!$FB$8,Nutrients!$FB$9)*AV$7)+(((IF($A$8=Nutrients!$B$79,Nutrients!$FB$79,(IF($A$8=Nutrients!$B$77,Nutrients!$FB$77,Nutrients!$FB$78)))))*AV$8))","v":0},{"$f":"(SUMPRODUCT(AW$9:AW$229,Nutrients!$FB$8:$FB$228)+(IF($A$7=Nutrients!$B$8,Nutrients!$FB$8,Nutrients!$FB$9)*AW$7)+(((IF($A$8=Nutrients!$B$79,Nutrients!$FB$79,(IF($A$8=Nutrients!$B$77,Nutrients!$FB$77,Nutrients!$FB$78)))))*AW$8))","v":0}]
["  Pyridoxine, mg/ton",{"$f":"(SUMPRODUCT(B$9:B$229,Nutrients!$FC$8:$FC$228)+(IF($A$7=Nutrients!$B$8,Nutrients!$FC$8,Nutrients!$FC$9)*B$7)+(((IF($A$8=Nutrients!$B$79,Nutrients!$FC$79,(IF($A$8=Nutrients!$B$77,Nutrients!$FC$77,Nutrients!$FC$78)))))*B$8))","v":0},{"$f":"(SUMPRODUCT(C$9:C$229,Nutrients!$FC$8:$FC$228)+(IF($A$7=Nutrients!$B$8,Nutrients!$FC$8,Nutrients!$FC$9)*C$7)+(((IF($A$8=Nutrients!$B$79,Nutrients!$FC$79,(IF($A$8=Nutrients!$B$77,Nutrients!$FC$77,Nutrients!$FC$78)))))*C$8))","v":0},{"$f":"(SUMPRODUCT(D$9:D$229,Nutrients!$FC$8:$FC$228)+(IF($A$7=Nutrients!$B$8,Nutrients!$FC$8,Nutrients!$FC$9)*D$7)+(((IF($A$8=Nutrients!$B$79,Nutrients!$FC$79,(IF($A$8=Nutrients!$B$77,Nutrients!$FC$77,Nutrients!$FC$78)))))*D$8))","v":0},{"$f":"(SUMPRODUCT(E$9:E$229,Nutrients!$FC$8:$FC$228)+(IF($A$7=Nutrients!$B$8,Nutrients!$FC$8,Nutrients!$FC$9)*E$7)+(((IF($A$8=Nutrients!$B$79,Nutrients!$FC$79,(IF($A$8=Nutrients!$B$77,Nutrients!$FC$77,Nutrients!$FC$78)))))*E$8))","v":0},{"$f":"(SUMPRODUCT(F$9:F$229,Nutrients!$FC$8:$FC$228)+(IF($A$7=Nutrients!$B$8,Nutrients!$FC$8,Nutrients!$FC$9)*F$7)+(((IF($A$8=Nutrients!$B$79,Nutrients!$FC$79,(IF($A$8=Nutrients!$B$77,Nutrients!$FC$77,Nutrients!$FC$78)))))*F$8))","v":0},{"$f":"(SUMPRODUCT(G$9:G$229,Nutrients!$FC$8:$FC$228)+(IF($A$7=Nutrients!$B$8,Nutrients!$FC$8,Nutrients!$FC$9)*G$7)+(((IF($A$8=Nutrients!$B$79,Nutrients!$FC$79,(IF($A$8=Nutrients!$B$77,Nutrients!$FC$77,Nutrients!$FC$78)))))*G$8))","v":0},null,{"$f":"(SUMPRODUCT(I$9:I$229,Nutrients!$FC$8:$FC$228)+(IF($A$7=Nutrients!$B$8,Nutrients!$FC$8,Nutrients!$FC$9)*I$7)+(((IF($A$8=Nutrients!$B$79,Nutrients!$FC$79,(IF($A$8=Nutrients!$B$77,Nutrients!$FC$77,Nutrients!$FC$78)))))*I$8))","v":0},{"$f":"(SUMPRODUCT(J$9:J$229,Nutrients!$FC$8:$FC$228)+(IF($A$7=Nutrients!$B$8,Nutrients!$FC$8,Nutrients!$FC$9)*J$7)+(((IF($A$8=Nutrients!$B$79,Nutrients!$FC$79,(IF($A$8=Nutrients!$B$77,Nutrients!$FC$77,Nutrients!$FC$78)))))*J$8))","v":0},{"$f":"(SUMPRODUCT(K$9:K$229,Nutrients!$FC$8:$FC$228)+(IF($A$7=Nutrients!$B$8,Nutrients!$FC$8,Nutrients!$FC$9)*K$7)+(((IF($A$8=Nutrients!$B$79,Nutrients!$FC$79,(IF($A$8=Nutrients!$B$77,Nutrients!$FC$77,Nutrients!$FC$78)))))*K$8))","v":0},{"$f":"(SUMPRODUCT(L$9:L$229,Nutrients!$FC$8:$FC$228)+(IF($A$7=Nutrients!$B$8,Nutrients!$FC$8,Nutrients!$FC$9)*L$7)+(((IF($A$8=Nutrients!$B$79,Nutrients!$FC$79,(IF($A$8=Nutrients!$B$77,Nutrients!$FC$77,Nutrients!$FC$78)))))*L$8))","v":0},{"$f":"(SUMPRODUCT(M$9:M$229,Nutrients!$FC$8:$FC$228)+(IF($A$7=Nutrients!$B$8,Nutrients!$FC$8,Nutrients!$FC$9)*M$7)+(((IF($A$8=Nutrients!$B$79,Nutrients!$FC$79,(IF($A$8=Nutrients!$B$77,Nutrients!$FC$77,Nutrients!$FC$78)))))*M$8))","v":0},{"$f":"(SUMPRODUCT(N$9:N$229,Nutrients!$FC$8:$FC$228)+(IF($A$7=Nutrients!$B$8,Nutrients!$FC$8,Nutrients!$FC$9)*N$7)+(((IF($A$8=Nutrients!$B$79,Nutrients!$FC$79,(IF($A$8=Nutrients!$B$77,Nutrients!$FC$77,Nutrients!$FC$78)))))*N$8))","v":0},null,{"$f":"(SUMPRODUCT(P$9:P$229,Nutrients!$FC$8:$FC$228)+(IF($A$7=Nutrients!$B$8,Nutrients!$FC$8,Nutrients!$FC$9)*P$7)+(((IF($A$8=Nutrients!$B$79,Nutrients!$FC$79,(IF($A$8=Nutrients!$B$77,Nutrients!$FC$77,Nutrients!$FC$78)))))*P$8))","v":0},{"$f":"(SUMPRODUCT(Q$9:Q$229,Nutrients!$FC$8:$FC$228)+(IF($A$7=Nutrients!$B$8,Nutrients!$FC$8,Nutrients!$FC$9)*Q$7)+(((IF($A$8=Nutrients!$B$79,Nutrients!$FC$79,(IF($A$8=Nutrients!$B$77,Nutrients!$FC$77,Nutrients!$FC$78)))))*Q$8))","v":0},{"$f":"(SUMPRODUCT(R$9:R$229,Nutrients!$FC$8:$FC$228)+(IF($A$7=Nutrients!$B$8,Nutrients!$FC$8,Nutrients!$FC$9)*R$7)+(((IF($A$8=Nutrients!$B$79,Nutrients!$FC$79,(IF($A$8=Nutrients!$B$77,Nutrients!$FC$77,Nutrients!$FC$78)))))*R$8))","v":0},{"$f":"(SUMPRODUCT(S$9:S$229,Nutrients!$FC$8:$FC$228)+(IF($A$7=Nutrients!$B$8,Nutrients!$FC$8,Nutrients!$FC$9)*S$7)+(((IF($A$8=Nutrients!$B$79,Nutrients!$FC$79,(IF($A$8=Nutrients!$B$77,Nutrients!$FC$77,Nutrients!$FC$78)))))*S$8))","v":0},{"$f":"(SUMPRODUCT(T$9:T$229,Nutrients!$FC$8:$FC$228)+(IF($A$7=Nutrients!$B$8,Nutrients!$FC$8,Nutrients!$FC$9)*T$7)+(((IF($A$8=Nutrients!$B$79,Nutrients!$FC$79,(IF($A$8=Nutrients!$B$77,Nutrients!$FC$77,Nutrients!$FC$78)))))*T$8))","v":0},{"$f":"(SUMPRODUCT(U$9:U$229,Nutrients!$FC$8:$FC$228)+(IF($A$7=Nutrients!$B$8,Nutrients!$FC$8,Nutrients!$FC$9)*U$7)+(((IF($A$8=Nutrients!$B$79,Nutrients!$FC$79,(IF($A$8=Nutrients!$B$77,Nutrients!$FC$77,Nutrients!$FC$78)))))*U$8))","v":0},null,{"$f":"(SUMPRODUCT(W$9:W$229,Nutrients!$FC$8:$FC$228)+(IF($A$7=Nutrients!$B$8,Nutrients!$FC$8,Nutrients!$FC$9)*W$7)+(((IF($A$8=Nutrients!$B$79,Nutrients!$FC$79,(IF($A$8=Nutrients!$B$77,Nutrients!$FC$77,Nutrients!$FC$78)))))*W$8))","v":0},{"$f":"(SUMPRODUCT(X$9:X$229,Nutrients!$FC$8:$FC$228)+(IF($A$7=Nutrients!$B$8,Nutrients!$FC$8,Nutrients!$FC$9)*X$7)+(((IF($A$8=Nutrients!$B$79,Nutrients!$FC$79,(IF($A$8=Nutrients!$B$77,Nutrients!$FC$77,Nutrients!$FC$78)))))*X$8))","v":0},{"$f":"(SUMPRODUCT(Y$9:Y$229,Nutrients!$FC$8:$FC$228)+(IF($A$7=Nutrients!$B$8,Nutrients!$FC$8,Nutrients!$FC$9)*Y$7)+(((IF($A$8=Nutrients!$B$79,Nutrients!$FC$79,(IF($A$8=Nutrients!$B$77,Nutrients!$FC$77,Nutrients!$FC$78)))))*Y$8))","v":0},{"$f":"(SUMPRODUCT(Z$9:Z$229,Nutrients!$FC$8:$FC$228)+(IF($A$7=Nutrients!$B$8,Nutrients!$FC$8,Nutrients!$FC$9)*Z$7)+(((IF($A$8=Nutrients!$B$79,Nutrients!$FC$79,(IF($A$8=Nutrients!$B$77,Nutrients!$FC$77,Nutrients!$FC$78)))))*Z$8))","v":0},{"$f":"(SUMPRODUCT(AA$9:AA$229,Nutrients!$FC$8:$FC$228)+(IF($A$7=Nutrients!$B$8,Nutrients!$FC$8,Nutrients!$FC$9)*AA$7)+(((IF($A$8=Nutrients!$B$79,Nutrients!$FC$79,(IF($A$8=Nutrients!$B$77,Nutrients!$FC$77,Nutrients!$FC$78)))))*AA$8))","v":0},{"$f":"(SUMPRODUCT(AB$9:AB$229,Nutrients!$FC$8:$FC$228)+(IF($A$7=Nutrients!$B$8,Nutrients!$FC$8,Nutrients!$FC$9)*AB$7)+(((IF($A$8=Nutrients!$B$79,Nutrients!$FC$79,(IF($A$8=Nutrients!$B$77,Nutrients!$FC$77,Nutrients!$FC$78)))))*AB$8))","v":0},null,{"$f":"(SUMPRODUCT(AD$9:AD$229,Nutrients!$FC$8:$FC$228)+(IF($A$7=Nutrients!$B$8,Nutrients!$FC$8,Nutrients!$FC$9)*AD$7)+(((IF($A$8=Nutrients!$B$79,Nutrients!$FC$79,(IF($A$8=Nutrients!$B$77,Nutrients!$FC$77,Nutrients!$FC$78)))))*AD$8))","v":0},{"$f":"(SUMPRODUCT(AE$9:AE$229,Nutrients!$FC$8:$FC$228)+(IF($A$7=Nutrients!$B$8,Nutrients!$FC$8,Nutrients!$FC$9)*AE$7)+(((IF($A$8=Nutrients!$B$79,Nutrients!$FC$79,(IF($A$8=Nutrients!$B$77,Nutrients!$FC$77,Nutrients!$FC$78)))))*AE$8))","v":0},{"$f":"(SUMPRODUCT(AF$9:AF$229,Nutrients!$FC$8:$FC$228)+(IF($A$7=Nutrients!$B$8,Nutrients!$FC$8,Nutrients!$FC$9)*AF$7)+(((IF($A$8=Nutrients!$B$79,Nutrients!$FC$79,(IF($A$8=Nutrients!$B$77,Nutrients!$FC$77,Nutrients!$FC$78)))))*AF$8))","v":0},{"$f":"(SUMPRODUCT(AG$9:AG$229,Nutrients!$FC$8:$FC$228)+(IF($A$7=Nutrients!$B$8,Nutrients!$FC$8,Nutrients!$FC$9)*AG$7)+(((IF($A$8=Nutrients!$B$79,Nutrients!$FC$79,(IF($A$8=Nutrients!$B$77,Nutrients!$FC$77,Nutrients!$FC$78)))))*AG$8))","v":0},{"$f":"(SUMPRODUCT(AH$9:AH$229,Nutrients!$FC$8:$FC$228)+(IF($A$7=Nutrients!$B$8,Nutrients!$FC$8,Nutrients!$FC$9)*AH$7)+(((IF($A$8=Nutrients!$B$79,Nutrients!$FC$79,(IF($A$8=Nutrients!$B$77,Nutrients!$FC$77,Nutrients!$FC$78)))))*AH$8))","v":0},{"$f":"(SUMPRODUCT(AI$9:AI$229,Nutrients!$FC$8:$FC$228)+(IF($A$7=Nutrients!$B$8,Nutrients!$FC$8,Nutrients!$FC$9)*AI$7)+(((IF($A$8=Nutrients!$B$79,Nutrients!$FC$79,(IF($A$8=Nutrients!$B$77,Nutrients!$FC$77,Nutrients!$FC$78)))))*AI$8))","v":0},null,{"$f":"(SUMPRODUCT(AK$9:AK$229,Nutrients!$FC$8:$FC$228)+(IF($A$7=Nutrients!$B$8,Nutrients!$FC$8,Nutrients!$FC$9)*AK$7)+(((IF($A$8=Nutrients!$B$79,Nutrients!$FC$79,(IF($A$8=Nutrients!$B$77,Nutrients!$FC$77,Nutrients!$FC$78)))))*AK$8))","v":0},{"$f":"(SUMPRODUCT(AL$9:AL$229,Nutrients!$FC$8:$FC$228)+(IF($A$7=Nutrients!$B$8,Nutrients!$FC$8,Nutrients!$FC$9)*AL$7)+(((IF($A$8=Nutrients!$B$79,Nutrients!$FC$79,(IF($A$8=Nutrients!$B$77,Nutrients!$FC$77,Nutrients!$FC$78)))))*AL$8))","v":0},{"$f":"(SUMPRODUCT(AM$9:AM$229,Nutrients!$FC$8:$FC$228)+(IF($A$7=Nutrients!$B$8,Nutrients!$FC$8,Nutrients!$FC$9)*AM$7)+(((IF($A$8=Nutrients!$B$79,Nutrients!$FC$79,(IF($A$8=Nutrients!$B$77,Nutrients!$FC$77,Nutrients!$FC$78)))))*AM$8))","v":0},{"$f":"(SUMPRODUCT(AN$9:AN$229,Nutrients!$FC$8:$FC$228)+(IF($A$7=Nutrients!$B$8,Nutrients!$FC$8,Nutrients!$FC$9)*AN$7)+(((IF($A$8=Nutrients!$B$79,Nutrients!$FC$79,(IF($A$8=Nutrients!$B$77,Nutrients!$FC$77,Nutrients!$FC$78)))))*AN$8))","v":0},{"$f":"(SUMPRODUCT(AO$9:AO$229,Nutrients!$FC$8:$FC$228)+(IF($A$7=Nutrients!$B$8,Nutrients!$FC$8,Nutrients!$FC$9)*AO$7)+(((IF($A$8=Nutrients!$B$79,Nutrients!$FC$79,(IF($A$8=Nutrients!$B$77,Nutrients!$FC$77,Nutrients!$FC$78)))))*AO$8))","v":0},{"$f":"(SUMPRODUCT(AP$9:AP$229,Nutrients!$FC$8:$FC$228)+(IF($A$7=Nutrients!$B$8,Nutrients!$FC$8,Nutrients!$FC$9)*AP$7)+(((IF($A$8=Nutrients!$B$79,Nutrients!$FC$79,(IF($A$8=Nutrients!$B$77,Nutrients!$FC$77,Nutrients!$FC$78)))))*AP$8))","v":0},null,{"$f":"(SUMPRODUCT(AR$9:AR$229,Nutrients!$FC$8:$FC$228)+(IF($A$7=Nutrients!$B$8,Nutrients!$FC$8,Nutrients!$FC$9)*AR$7)+(((IF($A$8=Nutrients!$B$79,Nutrients!$FC$79,(IF($A$8=Nutrients!$B$77,Nutrients!$FC$77,Nutrients!$FC$78)))))*AR$8))","v":0},{"$f":"(SUMPRODUCT(AS$9:AS$229,Nutrients!$FC$8:$FC$228)+(IF($A$7=Nutrients!$B$8,Nutrients!$FC$8,Nutrients!$FC$9)*AS$7)+(((IF($A$8=Nutrients!$B$79,Nutrients!$FC$79,(IF($A$8=Nutrients!$B$77,Nutrients!$FC$77,Nutrients!$FC$78)))))*AS$8))","v":0},{"$f":"(SUMPRODUCT(AT$9:AT$229,Nutrients!$FC$8:$FC$228)+(IF($A$7=Nutrients!$B$8,Nutrients!$FC$8,Nutrients!$FC$9)*AT$7)+(((IF($A$8=Nutrients!$B$79,Nutrients!$FC$79,(IF($A$8=Nutrients!$B$77,Nutrients!$FC$77,Nutrients!$FC$78)))))*AT$8))","v":0},{"$f":"(SUMPRODUCT(AU$9:AU$229,Nutrients!$FC$8:$FC$228)+(IF($A$7=Nutrients!$B$8,Nutrients!$FC$8,Nutrients!$FC$9)*AU$7)+(((IF($A$8=Nutrients!$B$79,Nutrients!$FC$79,(IF($A$8=Nutrients!$B$77,Nutrients!$FC$77,Nutrients!$FC$78)))))*AU$8))","v":0},{"$f":"(SUMPRODUCT(AV$9:AV$229,Nutrients!$FC$8:$FC$228)+(IF($A$7=Nutrients!$B$8,Nutrients!$FC$8,Nutrients!$FC$9)*AV$7)+(((IF($A$8=Nutrients!$B$79,Nutrients!$FC$79,(IF($A$8=Nutrients!$B$77,Nutrients!$FC$77,Nutrients!$FC$78)))))*AV$8))","v":0},{"$f":"(SUMPRODUCT(AW$9:AW$229,Nutrients!$FC$8:$FC$228)+(IF($A$7=Nutrients!$B$8,Nutrients!$FC$8,Nutrients!$FC$9)*AW$7)+(((IF($A$8=Nutrients!$B$79,Nutrients!$FC$79,(IF($A$8=Nutrients!$B$77,Nutrients!$FC$77,Nutrients!$FC$78)))))*AW$8))","v":0}]
["  Choline, mg/ton",{"$f":"(SUMPRODUCT(B$9:B$229,Nutrients!$FD$8:$FD$228)+(IF($A$7=Nutrients!$B$8,Nutrients!$FD$8,Nutrients!$FD$9)*B$7)+(((IF($A$8=Nutrients!$B$79,Nutrients!$FD$79,(IF($A$8=Nutrients!$B$77,Nutrients!$FD$77,Nutrients!$FD$78)))))*B$8))","v":0},{"$f":"(SUMPRODUCT(C$9:C$229,Nutrients!$FD$8:$FD$228)+(IF($A$7=Nutrients!$B$8,Nutrients!$FD$8,Nutrients!$FD$9)*C$7)+(((IF($A$8=Nutrients!$B$79,Nutrients!$FD$79,(IF($A$8=Nutrients!$B$77,Nutrients!$FD$77,Nutrients!$FD$78)))))*C$8))","v":0},{"$f":"(SUMPRODUCT(D$9:D$229,Nutrients!$FD$8:$FD$228)+(IF($A$7=Nutrients!$B$8,Nutrients!$FD$8,Nutrients!$FD$9)*D$7)+(((IF($A$8=Nutrients!$B$79,Nutrients!$FD$79,(IF($A$8=Nutrients!$B$77,Nutrients!$FD$77,Nutrients!$FD$78)))))*D$8))","v":0},{"$f":"(SUMPRODUCT(E$9:E$229,Nutrients!$FD$8:$FD$228)+(IF($A$7=Nutrients!$B$8,Nutrients!$FD$8,Nutrients!$FD$9)*E$7)+(((IF($A$8=Nutrients!$B$79,Nutrients!$FD$79,(IF($A$8=Nutrients!$B$77,Nutrients!$FD$77,Nutrients!$FD$78)))))*E$8))","v":0},{"$f":"(SUMPRODUCT(F$9:F$229,Nutrients!$FD$8:$FD$228)+(IF($A$7=Nutrients!$B$8,Nutrients!$FD$8,Nutrients!$FD$9)*F$7)+(((IF($A$8=Nutrients!$B$79,Nutrients!$FD$79,(IF($A$8=Nutrients!$B$77,Nutrients!$FD$77,Nutrients!$FD$78)))))*F$8))","v":0},{"$f":"(SUMPRODUCT(G$9:G$229,Nutrients!$FD$8:$FD$228)+(IF($A$7=Nutrients!$B$8,Nutrients!$FD$8,Nutrients!$FD$9)*G$7)+(((IF($A$8=Nutrients!$B$79,Nutrients!$FD$79,(IF($A$8=Nutrients!$B$77,Nutrients!$FD$77,Nutrients!$FD$78)))))*G$8))","v":0},null,{"$f":"(SUMPRODUCT(I$9:I$229,Nutrients!$FD$8:$FD$228)+(IF($A$7=Nutrients!$B$8,Nutrients!$FD$8,Nutrients!$FD$9)*I$7)+(((IF($A$8=Nutrients!$B$79,Nutrients!$FD$79,(IF($A$8=Nutrients!$B$77,Nutrients!$FD$77,Nutrients!$FD$78)))))*I$8))","v":0},{"$f":"(SUMPRODUCT(J$9:J$229,Nutrients!$FD$8:$FD$228)+(IF($A$7=Nutrients!$B$8,Nutrients!$FD$8,Nutrients!$FD$9)*J$7)+(((IF($A$8=Nutrients!$B$79,Nutrients!$FD$79,(IF($A$8=Nutrients!$B$77,Nutrients!$FD$77,Nutrients!$FD$78)))))*J$8))","v":0},{"$f":"(SUMPRODUCT(K$9:K$229,Nutrients!$FD$8:$FD$228)+(IF($A$7=Nutrients!$B$8,Nutrients!$FD$8,Nutrients!$FD$9)*K$7)+(((IF($A$8=Nutrients!$B$79,Nutrients!$FD$79,(IF($A$8=Nutrients!$B$77,Nutrients!$FD$77,Nutrients!$FD$78)))))*K$8))","v":0},{"$f":"(SUMPRODUCT(L$9:L$229,Nutrients!$FD$8:$FD$228)+(IF($A$7=Nutrients!$B$8,Nutrients!$FD$8,Nutrients!$FD$9)*L$7)+(((IF($A$8=Nutrients!$B$79,Nutrients!$FD$79,(IF($A$8=Nutrients!$B$77,Nutrients!$FD$77,Nutrients!$FD$78)))))*L$8))","v":0},{"$f":"(SUMPRODUCT(M$9:M$229,Nutrients!$FD$8:$FD$228)+(IF($A$7=Nutrients!$B$8,Nutrients!$FD$8,Nutrients!$FD$9)*M$7)+(((IF($A$8=Nutrients!$B$79,Nutrients!$FD$79,(IF($A$8=Nutrients!$B$77,Nutrients!$FD$77,Nutrients!$FD$78)))))*M$8))","v":0},{"$f":"(SUMPRODUCT(N$9:N$229,Nutrients!$FD$8:$FD$228)+(IF($A$7=Nutrients!$B$8,Nutrients!$FD$8,Nutrients!$FD$9)*N$7)+(((IF($A$8=Nutrients!$B$79,Nutrients!$FD$79,(IF($A$8=Nutrients!$B$77,Nutrients!$FD$77,Nutrients!$FD$78)))))*N$8))","v":0},null,{"$f":"(SUMPRODUCT(P$9:P$229,Nutrients!$FD$8:$FD$228)+(IF($A$7=Nutrients!$B$8,Nutrients!$FD$8,Nutrients!$FD$9)*P$7)+(((IF($A$8=Nutrients!$B$79,Nutrients!$FD$79,(IF($A$8=Nutrients!$B$77,Nutrients!$FD$77,Nutrients!$FD$78)))))*P$8))","v":0},{"$f":"(SUMPRODUCT(Q$9:Q$229,Nutrients!$FD$8:$FD$228)+(IF($A$7=Nutrients!$B$8,Nutrients!$FD$8,Nutrients!$FD$9)*Q$7)+(((IF($A$8=Nutrients!$B$79,Nutrients!$FD$79,(IF($A$8=Nutrients!$B$77,Nutrients!$FD$77,Nutrients!$FD$78)))))*Q$8))","v":0},{"$f":"(SUMPRODUCT(R$9:R$229,Nutrients!$FD$8:$FD$228)+(IF($A$7=Nutrients!$B$8,Nutrients!$FD$8,Nutrients!$FD$9)*R$7)+(((IF($A$8=Nutrients!$B$79,Nutrients!$FD$79,(IF($A$8=Nutrients!$B$77,Nutrients!$FD$77,Nutrients!$FD$78)))))*R$8))","v":0},{"$f":"(SUMPRODUCT(S$9:S$229,Nutrients!$FD$8:$FD$228)+(IF($A$7=Nutrients!$B$8,Nutrients!$FD$8,Nutrients!$FD$9)*S$7)+(((IF($A$8=Nutrients!$B$79,Nutrients!$FD$79,(IF($A$8=Nutrients!$B$77,Nutrients!$FD$77,Nutrients!$FD$78)))))*S$8))","v":0},{"$f":"(SUMPRODUCT(T$9:T$229,Nutrients!$FD$8:$FD$228)+(IF($A$7=Nutrients!$B$8,Nutrients!$FD$8,Nutrients!$FD$9)*T$7)+(((IF($A$8=Nutrients!$B$79,Nutrients!$FD$79,(IF($A$8=Nutrients!$B$77,Nutrients!$FD$77,Nutrients!$FD$78)))))*T$8))","v":0},{"$f":"(SUMPRODUCT(U$9:U$229,Nutrients!$FD$8:$FD$228)+(IF($A$7=Nutrients!$B$8,Nutrients!$FD$8,Nutrients!$FD$9)*U$7)+(((IF($A$8=Nutrients!$B$79,Nutrients!$FD$79,(IF($A$8=Nutrients!$B$77,Nutrients!$FD$77,Nutrients!$FD$78)))))*U$8))","v":0},null,{"$f":"(SUMPRODUCT(W$9:W$229,Nutrients!$FD$8:$FD$228)+(IF($A$7=Nutrients!$B$8,Nutrients!$FD$8,Nutrients!$FD$9)*W$7)+(((IF($A$8=Nutrients!$B$79,Nutrients!$FD$79,(IF($A$8=Nutrients!$B$77,Nutrients!$FD$77,Nutrients!$FD$78)))))*W$8))","v":0},{"$f":"(SUMPRODUCT(X$9:X$229,Nutrients!$FD$8:$FD$228)+(IF($A$7=Nutrients!$B$8,Nutrients!$FD$8,Nutrients!$FD$9)*X$7)+(((IF($A$8=Nutrients!$B$79,Nutrients!$FD$79,(IF($A$8=Nutrients!$B$77,Nutrients!$FD$77,Nutrients!$FD$78)))))*X$8))","v":0},{"$f":"(SUMPRODUCT(Y$9:Y$229,Nutrients!$FD$8:$FD$228)+(IF($A$7=Nutrients!$B$8,Nutrients!$FD$8,Nutrients!$FD$9)*Y$7)+(((IF($A$8=Nutrients!$B$79,Nutrients!$FD$79,(IF($A$8=Nutrients!$B$77,Nutrients!$FD$77,Nutrients!$FD$78)))))*Y$8))","v":0},{"$f":"(SUMPRODUCT(Z$9:Z$229,Nutrients!$FD$8:$FD$228)+(IF($A$7=Nutrients!$B$8,Nutrients!$FD$8,Nutrients!$FD$9)*Z$7)+(((IF($A$8=Nutrients!$B$79,Nutrients!$FD$79,(IF($A$8=Nutrients!$B$77,Nutrients!$FD$77,Nutrients!$FD$78)))))*Z$8))","v":0},{"$f":"(SUMPRODUCT(AA$9:AA$229,Nutrients!$FD$8:$FD$228)+(IF($A$7=Nutrients!$B$8,Nutrients!$FD$8,Nutrients!$FD$9)*AA$7)+(((IF($A$8=Nutrients!$B$79,Nutrients!$FD$79,(IF($A$8=Nutrients!$B$77,Nutrients!$FD$77,Nutrients!$FD$78)))))*AA$8))","v":0},{"$f":"(SUMPRODUCT(AB$9:AB$229,Nutrients!$FD$8:$FD$228)+(IF($A$7=Nutrients!$B$8,Nutrients!$FD$8,Nutrients!$FD$9)*AB$7)+(((IF($A$8=Nutrients!$B$79,Nutrients!$FD$79,(IF($A$8=Nutrients!$B$77,Nutrients!$FD$77,Nutrients!$FD$78)))))*AB$8))","v":0},null,{"$f":"(SUMPRODUCT(AD$9:AD$229,Nutrients!$FD$8:$FD$228)+(IF($A$7=Nutrients!$B$8,Nutrients!$FD$8,Nutrients!$FD$9)*AD$7)+(((IF($A$8=Nutrients!$B$79,Nutrients!$FD$79,(IF($A$8=Nutrients!$B$77,Nutrients!$FD$77,Nutrients!$FD$78)))))*AD$8))","v":0},{"$f":"(SUMPRODUCT(AE$9:AE$229,Nutrients!$FD$8:$FD$228)+(IF($A$7=Nutrients!$B$8,Nutrients!$FD$8,Nutrients!$FD$9)*AE$7)+(((IF($A$8=Nutrients!$B$79,Nutrients!$FD$79,(IF($A$8=Nutrients!$B$77,Nutrients!$FD$77,Nutrients!$FD$78)))))*AE$8))","v":0},{"$f":"(SUMPRODUCT(AF$9:AF$229,Nutrients!$FD$8:$FD$228)+(IF($A$7=Nutrients!$B$8,Nutrients!$FD$8,Nutrients!$FD$9)*AF$7)+(((IF($A$8=Nutrients!$B$79,Nutrients!$FD$79,(IF($A$8=Nutrients!$B$77,Nutrients!$FD$77,Nutrients!$FD$78)))))*AF$8))","v":0},{"$f":"(SUMPRODUCT(AG$9:AG$229,Nutrients!$FD$8:$FD$228)+(IF($A$7=Nutrients!$B$8,Nutrients!$FD$8,Nutrients!$FD$9)*AG$7)+(((IF($A$8=Nutrients!$B$79,Nutrients!$FD$79,(IF($A$8=Nutrients!$B$77,Nutrients!$FD$77,Nutrients!$FD$78)))))*AG$8))","v":0},{"$f":"(SUMPRODUCT(AH$9:AH$229,Nutrients!$FD$8:$FD$228)+(IF($A$7=Nutrients!$B$8,Nutrients!$FD$8,Nutrients!$FD$9)*AH$7)+(((IF($A$8=Nutrients!$B$79,Nutrients!$FD$79,(IF($A$8=Nutrients!$B$77,Nutrients!$FD$77,Nutrients!$FD$78)))))*AH$8))","v":0},{"$f":"(SUMPRODUCT(AI$9:AI$229,Nutrients!$FD$8:$FD$228)+(IF($A$7=Nutrients!$B$8,Nutrients!$FD$8,Nutrients!$FD$9)*AI$7)+(((IF($A$8=Nutrients!$B$79,Nutrients!$FD$79,(IF($A$8=Nutrients!$B$77,Nutrients!$FD$77,Nutrients!$FD$78)))))*AI$8))","v":0},null,{"$f":"(SUMPRODUCT(AK$9:AK$229,Nutrients!$FD$8:$FD$228)+(IF($A$7=Nutrients!$B$8,Nutrients!$FD$8,Nutrients!$FD$9)*AK$7)+(((IF($A$8=Nutrients!$B$79,Nutrients!$FD$79,(IF($A$8=Nutrients!$B$77,Nutrients!$FD$77,Nutrients!$FD$78)))))*AK$8))","v":0},{"$f":"(SUMPRODUCT(AL$9:AL$229,Nutrients!$FD$8:$FD$228)+(IF($A$7=Nutrients!$B$8,Nutrients!$FD$8,Nutrients!$FD$9)*AL$7)+(((IF($A$8=Nutrients!$B$79,Nutrients!$FD$79,(IF($A$8=Nutrients!$B$77,Nutrients!$FD$77,Nutrients!$FD$78)))))*AL$8))","v":0},{"$f":"(SUMPRODUCT(AM$9:AM$229,Nutrients!$FD$8:$FD$228)+(IF($A$7=Nutrients!$B$8,Nutrients!$FD$8,Nutrients!$FD$9)*AM$7)+(((IF($A$8=Nutrients!$B$79,Nutrients!$FD$79,(IF($A$8=Nutrients!$B$77,Nutrients!$FD$77,Nutrients!$FD$78)))))*AM$8))","v":0},{"$f":"(SUMPRODUCT(AN$9:AN$229,Nutrients!$FD$8:$FD$228)+(IF($A$7=Nutrients!$B$8,Nutrients!$FD$8,Nutrients!$FD$9)*AN$7)+(((IF($A$8=Nutrients!$B$79,Nutrients!$FD$79,(IF($A$8=Nutrients!$B$77,Nutrients!$FD$77,Nutrients!$FD$78)))))*AN$8))","v":0},{"$f":"(SUMPRODUCT(AO$9:AO$229,Nutrients!$FD$8:$FD$228)+(IF($A$7=Nutrients!$B$8,Nutrients!$FD$8,Nutrients!$FD$9)*AO$7)+(((IF($A$8=Nutrients!$B$79,Nutrients!$FD$79,(IF($A$8=Nutrients!$B$77,Nutrients!$FD$77,Nutrients!$FD$78)))))*AO$8))","v":0},{"$f":"(SUMPRODUCT(AP$9:AP$229,Nutrients!$FD$8:$FD$228)+(IF($A$7=Nutrients!$B$8,Nutrients!$FD$8,Nutrients!$FD$9)*AP$7)+(((IF($A$8=Nutrients!$B$79,Nutrients!$FD$79,(IF($A$8=Nutrients!$B$77,Nutrients!$FD$77,Nutrients!$FD$78)))))*AP$8))","v":0},null,{"$f":"(SUMPRODUCT(AR$9:AR$229,Nutrients!$FD$8:$FD$228)+(IF($A$7=Nutrients!$B$8,Nutrients!$FD$8,Nutrients!$FD$9)*AR$7)+(((IF($A$8=Nutrients!$B$79,Nutrients!$FD$79,(IF($A$8=Nutrients!$B$77,Nutrients!$FD$77,Nutrients!$FD$78)))))*AR$8))","v":0},{"$f":"(SUMPRODUCT(AS$9:AS$229,Nutrients!$FD$8:$FD$228)+(IF($A$7=Nutrients!$B$8,Nutrients!$FD$8,Nutrients!$FD$9)*AS$7)+(((IF($A$8=Nutrients!$B$79,Nutrients!$FD$79,(IF($A$8=Nutrients!$B$77,Nutrients!$FD$77,Nutrients!$FD$78)))))*AS$8))","v":0},{"$f":"(SUMPRODUCT(AT$9:AT$229,Nutrients!$FD$8:$FD$228)+(IF($A$7=Nutrients!$B$8,Nutrients!$FD$8,Nutrients!$FD$9)*AT$7)+(((IF($A$8=Nutrients!$B$79,Nutrients!$FD$79,(IF($A$8=Nutrients!$B$77,Nutrients!$FD$77,Nutrients!$FD$78)))))*AT$8))","v":0},{"$f":"(SUMPRODUCT(AU$9:AU$229,Nutrients!$FD$8:$FD$228)+(IF($A$7=Nutrients!$B$8,Nutrients!$FD$8,Nutrients!$FD$9)*AU$7)+(((IF($A$8=Nutrients!$B$79,Nutrients!$FD$79,(IF($A$8=Nutrients!$B$77,Nutrients!$FD$77,Nutrients!$FD$78)))))*AU$8))","v":0},{"$f":"(SUMPRODUCT(AV$9:AV$229,Nutrients!$FD$8:$FD$228)+(IF($A$7=Nutrients!$B$8,Nutrients!$FD$8,Nutrients!$FD$9)*AV$7)+(((IF($A$8=Nutrients!$B$79,Nutrients!$FD$79,(IF($A$8=Nutrients!$B$77,Nutrients!$FD$77,Nutrients!$FD$78)))))*AV$8))","v":0},{"$f":"(SUMPRODUCT(AW$9:AW$229,Nutrients!$FD$8:$FD$228)+(IF($A$7=Nutrients!$B$8,Nutrients!$FD$8,Nutrients!$FD$9)*AW$7)+(((IF($A$8=Nutrients!$B$79,Nutrients!$FD$79,(IF($A$8=Nutrients!$B$77,Nutrients!$FD$77,Nutrients!$FD$78)))))*AW$8))","v":0}]
["  Carnitine, mg/ton",{"$f":"(SUMPRODUCT(B$9:B$229,Nutrients!$FE$8:$FE$228)+(IF($A$7=Nutrients!$B$8,Nutrients!$FE$8,Nutrients!$FE$9)*B$7)+(((IF($A$8=Nutrients!$B$79,Nutrients!$FE$79,(IF($A$8=Nutrients!$B$77,Nutrients!$FE$77,Nutrients!$FE$78)))))*B$8))","v":0},{"$f":"(SUMPRODUCT(C$9:C$229,Nutrients!$FE$8:$FE$228)+(IF($A$7=Nutrients!$B$8,Nutrients!$FE$8,Nutrients!$FE$9)*C$7)+(((IF($A$8=Nutrients!$B$79,Nutrients!$FE$79,(IF($A$8=Nutrients!$B$77,Nutrients!$FE$77,Nutrients!$FE$78)))))*C$8))","v":0},{"$f":"(SUMPRODUCT(D$9:D$229,Nutrients!$FE$8:$FE$228)+(IF($A$7=Nutrients!$B$8,Nutrients!$FE$8,Nutrients!$FE$9)*D$7)+(((IF($A$8=Nutrients!$B$79,Nutrients!$FE$79,(IF($A$8=Nutrients!$B$77,Nutrients!$FE$77,Nutrients!$FE$78)))))*D$8))","v":0},{"$f":"(SUMPRODUCT(E$9:E$229,Nutrients!$FE$8:$FE$228)+(IF($A$7=Nutrients!$B$8,Nutrients!$FE$8,Nutrients!$FE$9)*E$7)+(((IF($A$8=Nutrients!$B$79,Nutrients!$FE$79,(IF($A$8=Nutrients!$B$77,Nutrients!$FE$77,Nutrients!$FE$78)))))*E$8))","v":0},{"$f":"(SUMPRODUCT(F$9:F$229,Nutrients!$FE$8:$FE$228)+(IF($A$7=Nutrients!$B$8,Nutrients!$FE$8,Nutrients!$FE$9)*F$7)+(((IF($A$8=Nutrients!$B$79,Nutrients!$FE$79,(IF($A$8=Nutrients!$B$77,Nutrients!$FE$77,Nutrients!$FE$78)))))*F$8))","v":0},{"$f":"(SUMPRODUCT(G$9:G$229,Nutrients!$FE$8:$FE$228)+(IF($A$7=Nutrients!$B$8,Nutrients!$FE$8,Nutrients!$FE$9)*G$7)+(((IF($A$8=Nutrients!$B$79,Nutrients!$FE$79,(IF($A$8=Nutrients!$B$77,Nutrients!$FE$77,Nutrients!$FE$78)))))*G$8))","v":0},null,{"$f":"(SUMPRODUCT(I$9:I$229,Nutrients!$FE$8:$FE$228)+(IF($A$7=Nutrients!$B$8,Nutrients!$FE$8,Nutrients!$FE$9)*I$7)+(((IF($A$8=Nutrients!$B$79,Nutrients!$FE$79,(IF($A$8=Nutrients!$B$77,Nutrients!$FE$77,Nutrients!$FE$78)))))*I$8))","v":0},{"$f":"(SUMPRODUCT(J$9:J$229,Nutrients!$FE$8:$FE$228)+(IF($A$7=Nutrients!$B$8,Nutrients!$FE$8,Nutrients!$FE$9)*J$7)+(((IF($A$8=Nutrients!$B$79,Nutrients!$FE$79,(IF($A$8=Nutrients!$B$77,Nutrients!$FE$77,Nutrients!$FE$78)))))*J$8))","v":0},{"$f":"(SUMPRODUCT(K$9:K$229,Nutrients!$FE$8:$FE$228)+(IF($A$7=Nutrients!$B$8,Nutrients!$FE$8,Nutrients!$FE$9)*K$7)+(((IF($A$8=Nutrients!$B$79,Nutrients!$FE$79,(IF($A$8=Nutrients!$B$77,Nutrients!$FE$77,Nutrients!$FE$78)))))*K$8))","v":0},{"$f":"(SUMPRODUCT(L$9:L$229,Nutrients!$FE$8:$FE$228)+(IF($A$7=Nutrients!$B$8,Nutrients!$FE$8,Nutrients!$FE$9)*L$7)+(((IF($A$8=Nutrients!$B$79,Nutrients!$FE$79,(IF($A$8=Nutrients!$B$77,Nutrients!$FE$77,Nutrients!$FE$78)))))*L$8))","v":0},{"$f":"(SUMPRODUCT(M$9:M$229,Nutrients!$FE$8:$FE$228)+(IF($A$7=Nutrients!$B$8,Nutrients!$FE$8,Nutrients!$FE$9)*M$7)+(((IF($A$8=Nutrients!$B$79,Nutrients!$FE$79,(IF($A$8=Nutrients!$B$77,Nutrients!$FE$77,Nutrients!$FE$78)))))*M$8))","v":0},{"$f":"(SUMPRODUCT(N$9:N$229,Nutrients!$FE$8:$FE$228)+(IF($A$7=Nutrients!$B$8,Nutrients!$FE$8,Nutrients!$FE$9)*N$7)+(((IF($A$8=Nutrients!$B$79,Nutrients!$FE$79,(IF($A$8=Nutrients!$B$77,Nutrients!$FE$77,Nutrients!$FE$78)))))*N$8))","v":0},null,{"$f":"(SUMPRODUCT(P$9:P$229,Nutrients!$FE$8:$FE$228)+(IF($A$7=Nutrients!$B$8,Nutrients!$FE$8,Nutrients!$FE$9)*P$7)+(((IF($A$8=Nutrients!$B$79,Nutrients!$FE$79,(IF($A$8=Nutrients!$B$77,Nutrients!$FE$77,Nutrients!$FE$78)))))*P$8))","v":0},{"$f":"(SUMPRODUCT(Q$9:Q$229,Nutrients!$FE$8:$FE$228)+(IF($A$7=Nutrients!$B$8,Nutrients!$FE$8,Nutrients!$FE$9)*Q$7)+(((IF($A$8=Nutrients!$B$79,Nutrients!$FE$79,(IF($A$8=Nutrients!$B$77,Nutrients!$FE$77,Nutrients!$FE$78)))))*Q$8))","v":0},{"$f":"(SUMPRODUCT(R$9:R$229,Nutrients!$FE$8:$FE$228)+(IF($A$7=Nutrients!$B$8,Nutrients!$FE$8,Nutrients!$FE$9)*R$7)+(((IF($A$8=Nutrients!$B$79,Nutrients!$FE$79,(IF($A$8=Nutrients!$B$77,Nutrients!$FE$77,Nutrients!$FE$78)))))*R$8))","v":0},{"$f":"(SUMPRODUCT(S$9:S$229,Nutrients!$FE$8:$FE$228)+(IF($A$7=Nutrients!$B$8,Nutrients!$FE$8,Nutrients!$FE$9)*S$7)+(((IF($A$8=Nutrients!$B$79,Nutrients!$FE$79,(IF($A$8=Nutrients!$B$77,Nutrients!$FE$77,Nutrients!$FE$78)))))*S$8))","v":0},{"$f":"(SUMPRODUCT(T$9:T$229,Nutrients!$FE$8:$FE$228)+(IF($A$7=Nutrients!$B$8,Nutrients!$FE$8,Nutrients!$FE$9)*T$7)+(((IF($A$8=Nutrients!$B$79,Nutrients!$FE$79,(IF($A$8=Nutrients!$B$77,Nutrients!$FE$77,Nutrients!$FE$78)))))*T$8))","v":0},{"$f":"(SUMPRODUCT(U$9:U$229,Nutrients!$FE$8:$FE$228)+(IF($A$7=Nutrients!$B$8,Nutrients!$FE$8,Nutrients!$FE$9)*U$7)+(((IF($A$8=Nutrients!$B$79,Nutrients!$FE$79,(IF($A$8=Nutrients!$B$77,Nutrients!$FE$77,Nutrients!$FE$78)))))*U$8))","v":0},null,{"$f":"(SUMPRODUCT(W$9:W$229,Nutrients!$FE$8:$FE$228)+(IF($A$7=Nutrients!$B$8,Nutrients!$FE$8,Nutrients!$FE$9)*W$7)+(((IF($A$8=Nutrients!$B$79,Nutrients!$FE$79,(IF($A$8=Nutrients!$B$77,Nutrients!$FE$77,Nutrients!$FE$78)))))*W$8))","v":0},{"$f":"(SUMPRODUCT(X$9:X$229,Nutrients!$FE$8:$FE$228)+(IF($A$7=Nutrients!$B$8,Nutrients!$FE$8,Nutrients!$FE$9)*X$7)+(((IF($A$8=Nutrients!$B$79,Nutrients!$FE$79,(IF($A$8=Nutrients!$B$77,Nutrients!$FE$77,Nutrients!$FE$78)))))*X$8))","v":0},{"$f":"(SUMPRODUCT(Y$9:Y$229,Nutrients!$FE$8:$FE$228)+(IF($A$7=Nutrients!$B$8,Nutrients!$FE$8,Nutrients!$FE$9)*Y$7)+(((IF($A$8=Nutrients!$B$79,Nutrients!$FE$79,(IF($A$8=Nutrients!$B$77,Nutrients!$FE$77,Nutrients!$FE$78)))))*Y$8))","v":0},{"$f":"(SUMPRODUCT(Z$9:Z$229,Nutrients!$FE$8:$FE$228)+(IF($A$7=Nutrients!$B$8,Nutrients!$FE$8,Nutrients!$FE$9)*Z$7)+(((IF($A$8=Nutrients!$B$79,Nutrients!$FE$79,(IF($A$8=Nutrients!$B$77,Nutrients!$FE$77,Nutrients!$FE$78)))))*Z$8))","v":0},{"$f":"(SUMPRODUCT(AA$9:AA$229,Nutrients!$FE$8:$FE$228)+(IF($A$7=Nutrients!$B$8,Nutrients!$FE$8,Nutrients!$FE$9)*AA$7)+(((IF($A$8=Nutrients!$B$79,Nutrients!$FE$79,(IF($A$8=Nutrients!$B$77,Nutrients!$FE$77,Nutrients!$FE$78)))))*AA$8))","v":0},{"$f":"(SUMPRODUCT(AB$9:AB$229,Nutrients!$FE$8:$FE$228)+(IF($A$7=Nutrients!$B$8,Nutrients!$FE$8,Nutrients!$FE$9)*AB$7)+(((IF($A$8=Nutrients!$B$79,Nutrients!$FE$79,(IF($A$8=Nutrients!$B$77,Nutrients!$FE$77,Nutrients!$FE$78)))))*AB$8))","v":0},null,{"$f":"(SUMPRODUCT(AD$9:AD$229,Nutrients!$FE$8:$FE$228)+(IF($A$7=Nutrients!$B$8,Nutrients!$FE$8,Nutrients!$FE$9)*AD$7)+(((IF($A$8=Nutrients!$B$79,Nutrients!$FE$79,(IF($A$8=Nutrients!$B$77,Nutrients!$FE$77,Nutrients!$FE$78)))))*AD$8))","v":0},{"$f":"(SUMPRODUCT(AE$9:AE$229,Nutrients!$FE$8:$FE$228)+(IF($A$7=Nutrients!$B$8,Nutrients!$FE$8,Nutrients!$FE$9)*AE$7)+(((IF($A$8=Nutrients!$B$79,Nutrients!$FE$79,(IF($A$8=Nutrients!$B$77,Nutrients!$FE$77,Nutrients!$FE$78)))))*AE$8))","v":0},{"$f":"(SUMPRODUCT(AF$9:AF$229,Nutrients!$FE$8:$FE$228)+(IF($A$7=Nutrients!$B$8,Nutrients!$FE$8,Nutrients!$FE$9)*AF$7)+(((IF($A$8=Nutrients!$B$79,Nutrients!$FE$79,(IF($A$8=Nutrients!$B$77,Nutrients!$FE$77,Nutrients!$FE$78)))))*AF$8))","v":0},{"$f":"(SUMPRODUCT(AG$9:AG$229,Nutrients!$FE$8:$FE$228)+(IF($A$7=Nutrients!$B$8,Nutrients!$FE$8,Nutrients!$FE$9)*AG$7)+(((IF($A$8=Nutrients!$B$79,Nutrients!$FE$79,(IF($A$8=Nutrients!$B$77,Nutrients!$FE$77,Nutrients!$FE$78)))))*AG$8))","v":0},{"$f":"(SUMPRODUCT(AH$9:AH$229,Nutrients!$FE$8:$FE$228)+(IF($A$7=Nutrients!$B$8,Nutrients!$FE$8,Nutrients!$FE$9)*AH$7)+(((IF($A$8=Nutrients!$B$79,Nutrients!$FE$79,(IF($A$8=Nutrients!$B$77,Nutrients!$FE$77,Nutrients!$FE$78)))))*AH$8))","v":0},{"$f":"(SUMPRODUCT(AI$9:AI$229,Nutrients!$FE$8:$FE$228)+(IF($A$7=Nutrients!$B$8,Nutrients!$FE$8,Nutrients!$FE$9)*AI$7)+(((IF($A$8=Nutrients!$B$79,Nutrients!$FE$79,(IF($A$8=Nutrients!$B$77,Nutrients!$FE$77,Nutrients!$FE$78)))))*AI$8))","v":0},null,{"$f":"(SUMPRODUCT(AK$9:AK$229,Nutrients!$FE$8:$FE$228)+(IF($A$7=Nutrients!$B$8,Nutrients!$FE$8,Nutrients!$FE$9)*AK$7)+(((IF($A$8=Nutrients!$B$79,Nutrients!$FE$79,(IF($A$8=Nutrients!$B$77,Nutrients!$FE$77,Nutrients!$FE$78)))))*AK$8))","v":0},{"$f":"(SUMPRODUCT(AL$9:AL$229,Nutrients!$FE$8:$FE$228)+(IF($A$7=Nutrients!$B$8,Nutrients!$FE$8,Nutrients!$FE$9)*AL$7)+(((IF($A$8=Nutrients!$B$79,Nutrients!$FE$79,(IF($A$8=Nutrients!$B$77,Nutrients!$FE$77,Nutrients!$FE$78)))))*AL$8))","v":0},{"$f":"(SUMPRODUCT(AM$9:AM$229,Nutrients!$FE$8:$FE$228)+(IF($A$7=Nutrients!$B$8,Nutrients!$FE$8,Nutrients!$FE$9)*AM$7)+(((IF($A$8=Nutrients!$B$79,Nutrients!$FE$79,(IF($A$8=Nutrients!$B$77,Nutrients!$FE$77,Nutrients!$FE$78)))))*AM$8))","v":0},{"$f":"(SUMPRODUCT(AN$9:AN$229,Nutrients!$FE$8:$FE$228)+(IF($A$7=Nutrients!$B$8,Nutrients!$FE$8,Nutrients!$FE$9)*AN$7)+(((IF($A$8=Nutrients!$B$79,Nutrients!$FE$79,(IF($A$8=Nutrients!$B$77,Nutrients!$FE$77,Nutrients!$FE$78)))))*AN$8))","v":0},{"$f":"(SUMPRODUCT(AO$9:AO$229,Nutrients!$FE$8:$FE$228)+(IF($A$7=Nutrients!$B$8,Nutrients!$FE$8,Nutrients!$FE$9)*AO$7)+(((IF($A$8=Nutrients!$B$79,Nutrients!$FE$79,(IF($A$8=Nutrients!$B$77,Nutrients!$FE$77,Nutrients!$FE$78)))))*AO$8))","v":0},{"$f":"(SUMPRODUCT(AP$9:AP$229,Nutrients!$FE$8:$FE$228)+(IF($A$7=Nutrients!$B$8,Nutrients!$FE$8,Nutrients!$FE$9)*AP$7)+(((IF($A$8=Nutrients!$B$79,Nutrients!$FE$79,(IF($A$8=Nutrients!$B$77,Nutrients!$FE$77,Nutrients!$FE$78)))))*AP$8))","v":0},null,{"$f":"(SUMPRODUCT(AR$9:AR$229,Nutrients!$FE$8:$FE$228)+(IF($A$7=Nutrients!$B$8,Nutrients!$FE$8,Nutrients!$FE$9)*AR$7)+(((IF($A$8=Nutrients!$B$79,Nutrients!$FE$79,(IF($A$8=Nutrients!$B$77,Nutrients!$FE$77,Nutrients!$FE$78)))))*AR$8))","v":0},{"$f":"(SUMPRODUCT(AS$9:AS$229,Nutrients!$FE$8:$FE$228)+(IF($A$7=Nutrients!$B$8,Nutrients!$FE$8,Nutrients!$FE$9)*AS$7)+(((IF($A$8=Nutrients!$B$79,Nutrients!$FE$79,(IF($A$8=Nutrients!$B$77,Nutrients!$FE$77,Nutrients!$FE$78)))))*AS$8))","v":0},{"$f":"(SUMPRODUCT(AT$9:AT$229,Nutrients!$FE$8:$FE$228)+(IF($A$7=Nutrients!$B$8,Nutrients!$FE$8,Nutrients!$FE$9)*AT$7)+(((IF($A$8=Nutrients!$B$79,Nutrients!$FE$79,(IF($A$8=Nutrients!$B$77,Nutrients!$FE$77,Nutrients!$FE$78)))))*AT$8))","v":0},{"$f":"(SUMPRODUCT(AU$9:AU$229,Nutrients!$FE$8:$FE$228)+(IF($A$7=Nutrients!$B$8,Nutrients!$FE$8,Nutrients!$FE$9)*AU$7)+(((IF($A$8=Nutrients!$B$79,Nutrients!$FE$79,(IF($A$8=Nutrients!$B$77,Nutrients!$FE$77,Nutrients!$FE$78)))))*AU$8))","v":0},{"$f":"(SUMPRODUCT(AV$9:AV$229,Nutrients!$FE$8:$FE$228)+(IF($A$7=Nutrients!$B$8,Nutrients!$FE$8,Nutrients!$FE$9)*AV$7)+(((IF($A$8=Nutrients!$B$79,Nutrients!$FE$79,(IF($A$8=Nutrients!$B$77,Nutrients!$FE$77,Nutrients!$FE$78)))))*AV$8))","v":0},{"$f":"(SUMPRODUCT(AW$9:AW$229,Nutrients!$FE$8:$FE$228)+(IF($A$7=Nutrients!$B$8,Nutrients!$FE$8,Nutrients!$FE$9)*AW$7)+(((IF($A$8=Nutrients!$B$79,Nutrients!$FE$79,(IF($A$8=Nutrients!$B$77,Nutrients!$FE$77,Nutrients!$FE$78)))))*AW$8))","v":0}]
[]
["ADG, g/d",{"$f":" (-1619.2980797296 + 25.9248064834 * (B251/1000) - 2657.6209162609 * B236 +\n123.0469725298 * B253 - 9.2854579989 * B316 + 872.0182830582 * B252 + 26.664395965 * (AVERAGE(B5:B6)*0.453592) +\n2599.7646012325 * B236 * B236- 0.1016237102 *  (AVERAGE(B5:B6)*0.453592) *  (AVERAGE(B5:B6)*0.453592) - 71.8618465276 * B236 * B253 -\n607.1294449572 * B236 * B252 + 25.6463076451 * B236 * (AVERAGE(B5:B6)*0.453592) - 0.8399854508 * B253 * (AVERAGE(B5:B6)*0.453592) +\n0.0967347393 * B316 * (AVERAGE(B5:B6)*0.453592) - 5.2553838048 * B252 * (AVERAGE(B5:B6)*0.453592))","v":757.46635553023782},{"$f":" -1619.2980797296 + 25.9248064834 * (C251/1000) - 2657.6209162609 * C236 +\n123.0469725298 * C253 - 9.2854579989 * C316 + 872.0182830582 * C252 + 26.664395965 * (AVERAGE(C5:C6)*0.453592) +\n2599.7646012325 * C236 * C236- 0.1016237102 *  (AVERAGE(C5:C6)*0.453592) *  (AVERAGE(C5:C6)*0.453592) - 71.8618465276 * C236 * C253 -\n607.1294449572 * C236 * C252 + 25.6463076451 * C236 * (AVERAGE(C5:C6)*0.453592) - 0.8399854508 * C253 * (AVERAGE(C5:C6)*0.453592) +\n0.0967347393 * C316 * (AVERAGE(C5:C6)*0.453592) - 5.2553838048 * C252 * (AVERAGE(C5:C6)*0.453592)","v":870.42326519783569},{"$f":" -1619.2980797296 + 25.9248064834 * (D251/1000) - 2657.6209162609 * D236 +\n123.0469725298 * D253 - 9.2854579989 * D316 + 872.0182830582 * D252 + 26.664395965 * (AVERAGE(D5:D6)*0.453592) +\n2599.7646012325 * D236 * D236- 0.1016237102 *  (AVERAGE(D5:D6)*0.453592) *  (AVERAGE(D5:D6)*0.453592) - 71.8618465276 * D236 * D253 -\n607.1294449572 * D236 * D252 + 25.6463076451 * D236 * (AVERAGE(D5:D6)*0.453592) - 0.8399854508 * D253 * (AVERAGE(D5:D6)*0.453592) +\n0.0967347393 * D316 * (AVERAGE(D5:D6)*0.453592) - 5.2553838048 * D252 * (AVERAGE(D5:D6)*0.453592)","v":946.21888727648684},{"$f":" -1619.2980797296 + 25.9248064834 * (E251/1000) - 2657.6209162609 * E236 +\n123.0469725298 * E253 - 9.2854579989 * E316 + 872.0182830582 * E252 + 26.664395965 * (AVERAGE(E5:E6)*0.453592) +\n2599.7646012325 * E236 * E236- 0.1016237102 *  (AVERAGE(E5:E6)*0.453592) *  (AVERAGE(E5:E6)*0.453592) - 71.8618465276 * E236 * E253 -\n607.1294449572 * E236 * E252 + 25.6463076451 * E236 * (AVERAGE(E5:E6)*0.453592) - 0.8399854508 * E253 * (AVERAGE(E5:E6)*0.453592) +\n0.0967347393 * E316 * (AVERAGE(E5:E6)*0.453592) - 5.2553838048 * E252 * (AVERAGE(E5:E6)*0.453592)","v":982.61557306834152},{"$f":" -1619.2980797296 + 25.9248064834 * (F251/1000) - 2657.6209162609 * F236 +\n123.0469725298 * F253 - 9.2854579989 * F316 + 872.0182830582 * F252 + 26.664395965 * (AVERAGE(F5:F6)*0.453592) +\n2599.7646012325 * F236 * F236- 0.1016237102 *  (AVERAGE(F5:F6)*0.453592) *  (AVERAGE(F5:F6)*0.453592) - 71.8618465276 * F236 * F253 -\n607.1294449572 * F236 * F252 + 25.6463076451 * F236 * (AVERAGE(F5:F6)*0.453592) - 0.8399854508 * F253 * (AVERAGE(F5:F6)*0.453592) +\n0.0967347393 * F316 * (AVERAGE(F5:F6)*0.453592) - 5.2553838048 * F252 * (AVERAGE(F5:F6)*0.453592)","v":976.63637619430801},{"$f":" -1619.2980797296 + 25.9248064834 * (G251/1000) - 2657.6209162609 * G236 +\n123.0469725298 * G253 - 9.2854579989 * G316 + 872.0182830582 * G252 + 26.664395965 * (AVERAGE(G5:G6)*0.453592) +\n2599.7646012325 * G236 * G236- 0.1016237102 *  (AVERAGE(G5:G6)*0.453592) *  (AVERAGE(G5:G6)*0.453592) - 71.8618465276 * G236 * G253 -\n607.1294449572 * G236 * G252 + 25.6463076451 * G236 * (AVERAGE(G5:G6)*0.453592) - 0.8399854508 * G253 * (AVERAGE(G5:G6)*0.453592) +\n0.0967347393 * G316 * (AVERAGE(G5:G6)*0.453592) - 5.2553838048 * G252 * (AVERAGE(G5:G6)*0.453592)","v":919.74779687896194},null,{"$f":" (-1619.2980797296 + 25.9248064834 * (I251/1000) - 2657.6209162609 * I236 +\n123.0469725298 * I253 - 9.2854579989 * I316 + 872.0182830582 * I252 + 26.664395965 * (AVERAGE(I5:I6)*0.453592) +\n2599.7646012325 * I236 * I236- 0.1016237102 *  (AVERAGE(I5:I6)*0.453592) *  (AVERAGE(I5:I6)*0.453592) - 71.8618465276 * I236 * I253 -\n607.1294449572 * I236 * I252 + 25.6463076451 * I236 * (AVERAGE(I5:I6)*0.453592) - 0.8399854508 * I253 * (AVERAGE(I5:I6)*0.453592) +\n0.0967347393 * I316 * (AVERAGE(I5:I6)*0.453592) - 5.2553838048 * I252 * (AVERAGE(I5:I6)*0.453592))","v":752.59141313154385},{"$f":" -1619.2980797296 + 25.9248064834 * (J251/1000) - 2657.6209162609 * J236 +\n123.0469725298 * J253 - 9.2854579989 * J316 + 872.0182830582 * J252 + 26.664395965 * (AVERAGE(J5:J6)*0.453592) +\n2599.7646012325 * J236 * J236- 0.1016237102 *  (AVERAGE(J5:J6)*0.453592) *  (AVERAGE(J5:J6)*0.453592) - 71.8618465276 * J236 * J253 -\n607.1294449572 * J236 * J252 + 25.6463076451 * J236 * (AVERAGE(J5:J6)*0.453592) - 0.8399854508 * J253 * (AVERAGE(J5:J6)*0.453592) +\n0.0967347393 * J316 * (AVERAGE(J5:J6)*0.453592) - 5.2553838048 * J252 * (AVERAGE(J5:J6)*0.453592)","v":865.08750767091408},{"$f":" -1619.2980797296 + 25.9248064834 * (K251/1000) - 2657.6209162609 * K236 +\n123.0469725298 * K253 - 9.2854579989 * K316 + 872.0182830582 * K252 + 26.664395965 * (AVERAGE(K5:K6)*0.453592) +\n2599.7646012325 * K236 * K236- 0.1016237102 *  (AVERAGE(K5:K6)*0.453592) *  (AVERAGE(K5:K6)*0.453592) - 71.8618465276 * K236 * K253 -\n607.1294449572 * K236 * K252 + 25.6463076451 * K236 * (AVERAGE(K5:K6)*0.453592) - 0.8399854508 * K253 * (AVERAGE(K5:K6)*0.453592) +\n0.0967347393 * K316 * (AVERAGE(K5:K6)*0.453592) - 5.2553838048 * K252 * (AVERAGE(K5:K6)*0.453592)","v":940.00942055353994},{"$f":" -1619.2980797296 + 25.9248064834 * (L251/1000) - 2657.6209162609 * L236 +\n123.0469725298 * L253 - 9.2854579989 * L316 + 872.0182830582 * L252 + 26.664395965 * (AVERAGE(L5:L6)*0.453592) +\n2599.7646012325 * L236 * L236- 0.1016237102 *  (AVERAGE(L5:L6)*0.453592) *  (AVERAGE(L5:L6)*0.453592) - 71.8618465276 * L236 * L253 -\n607.1294449572 * L236 * L252 + 25.6463076451 * L236 * (AVERAGE(L5:L6)*0.453592) - 0.8399854508 * L253 * (AVERAGE(L5:L6)*0.453592) +\n0.0967347393 * L316 * (AVERAGE(L5:L6)*0.453592) - 5.2553838048 * L252 * (AVERAGE(L5:L6)*0.453592)","v":974.79583887856711},{"$f":" -1619.2980797296 + 25.9248064834 * (M251/1000) - 2657.6209162609 * M236 +\n123.0469725298 * M253 - 9.2854579989 * M316 + 872.0182830582 * M252 + 26.664395965 * (AVERAGE(M5:M6)*0.453592) +\n2599.7646012325 * M236 * M236- 0.1016237102 *  (AVERAGE(M5:M6)*0.453592) *  (AVERAGE(M5:M6)*0.453592) - 71.8618465276 * M236 * M253 -\n607.1294449572 * M236 * M252 + 25.6463076451 * M236 * (AVERAGE(M5:M6)*0.453592) - 0.8399854508 * M253 * (AVERAGE(M5:M6)*0.453592) +\n0.0967347393 * M316 * (AVERAGE(M5:M6)*0.453592) - 5.2553838048 * M252 * (AVERAGE(M5:M6)*0.453592)","v":966.1311541434236},{"$f":" -1619.2980797296 + 25.9248064834 * (N251/1000) - 2657.6209162609 * N236 +\n123.0469725298 * N253 - 9.2854579989 * N316 + 872.0182830582 * N252 + 26.664395965 * (AVERAGE(N5:N6)*0.453592) +\n2599.7646012325 * N236 * N236- 0.1016237102 *  (AVERAGE(N5:N6)*0.453592) *  (AVERAGE(N5:N6)*0.453592) - 71.8618465276 * N236 * N253 -\n607.1294449572 * N236 * N252 + 25.6463076451 * N236 * (AVERAGE(N5:N6)*0.453592) - 0.8399854508 * N253 * (AVERAGE(N5:N6)*0.453592) +\n0.0967347393 * N316 * (AVERAGE(N5:N6)*0.453592) - 5.2553838048 * N252 * (AVERAGE(N5:N6)*0.453592)","v":919.74779687896194},null,{"$f":" (-1619.2980797296 + 25.9248064834 * (P251/1000) - 2657.6209162609 * P236 +\n123.0469725298 * P253 - 9.2854579989 * P316 + 872.0182830582 * P252 + 26.664395965 * (AVERAGE(P5:P6)*0.453592) +\n2599.7646012325 * P236 * P236- 0.1016237102 *  (AVERAGE(P5:P6)*0.453592) *  (AVERAGE(P5:P6)*0.453592) - 71.8618465276 * P236 * P253 -\n607.1294449572 * P236 * P252 + 25.6463076451 * P236 * (AVERAGE(P5:P6)*0.453592) - 0.8399854508 * P253 * (AVERAGE(P5:P6)*0.453592) +\n0.0967347393 * P316 * (AVERAGE(P5:P6)*0.453592) - 5.2553838048 * P252 * (AVERAGE(P5:P6)*0.453592))","v":748.62113056984265},{"$f":" -1619.2980797296 + 25.9248064834 * (Q251/1000) - 2657.6209162609 * Q236 +\n123.0469725298 * Q253 - 9.2854579989 * Q316 + 872.0182830582 * Q252 + 26.664395965 * (AVERAGE(Q5:Q6)*0.453592) +\n2599.7646012325 * Q236 * Q236- 0.1016237102 *  (AVERAGE(Q5:Q6)*0.453592) *  (AVERAGE(Q5:Q6)*0.453592) - 71.8618465276 * Q236 * Q253 -\n607.1294449572 * Q236 * Q252 + 25.6463076451 * Q236 * (AVERAGE(Q5:Q6)*0.453592) - 0.8399854508 * Q253 * (AVERAGE(Q5:Q6)*0.453592) +\n0.0967347393 * Q316 * (AVERAGE(Q5:Q6)*0.453592) - 5.2553838048 * Q252 * (AVERAGE(Q5:Q6)*0.453592)","v":860.67248275182237},{"$f":" -1619.2980797296 + 25.9248064834 * (R251/1000) - 2657.6209162609 * R236 +\n123.0469725298 * R253 - 9.2854579989 * R316 + 872.0182830582 * R252 + 26.664395965 * (AVERAGE(R5:R6)*0.453592) +\n2599.7646012325 * R236 * R236- 0.1016237102 *  (AVERAGE(R5:R6)*0.453592) *  (AVERAGE(R5:R6)*0.453592) - 71.8618465276 * R236 * R253 -\n607.1294449572 * R236 * R252 + 25.6463076451 * R236 * (AVERAGE(R5:R6)*0.453592) - 0.8399854508 * R253 * (AVERAGE(R5:R6)*0.453592) +\n0.0967347393 * R316 * (AVERAGE(R5:R6)*0.453592) - 5.2553838048 * R252 * (AVERAGE(R5:R6)*0.453592)","v":934.64211304565606},{"$f":" -1619.2980797296 + 25.9248064834 * (S251/1000) - 2657.6209162609 * S236 +\n123.0469725298 * S253 - 9.2854579989 * S316 + 872.0182830582 * S252 + 26.664395965 * (AVERAGE(S5:S6)*0.453592) +\n2599.7646012325 * S236 * S236- 0.1016237102 *  (AVERAGE(S5:S6)*0.453592) *  (AVERAGE(S5:S6)*0.453592) - 71.8618465276 * S236 * S253 -\n607.1294449572 * S236 * S252 + 25.6463076451 * S236 * (AVERAGE(S5:S6)*0.453592) - 0.8399854508 * S253 * (AVERAGE(S5:S6)*0.453592) +\n0.0967347393 * S316 * (AVERAGE(S5:S6)*0.453592) - 5.2553838048 * S252 * (AVERAGE(S5:S6)*0.453592)","v":967.32292311801757},{"$f":" -1619.2980797296 + 25.9248064834 * (T251/1000) - 2657.6209162609 * T236 +\n123.0469725298 * T253 - 9.2854579989 * T316 + 872.0182830582 * T252 + 26.664395965 * (AVERAGE(T5:T6)*0.453592) +\n2599.7646012325 * T236 * T236- 0.1016237102 *  (AVERAGE(T5:T6)*0.453592) *  (AVERAGE(T5:T6)*0.453592) - 71.8618465276 * T236 * T253 -\n607.1294449572 * T236 * T252 + 25.6463076451 * T236 * (AVERAGE(T5:T6)*0.453592) - 0.8399854508 * T253 * (AVERAGE(T5:T6)*0.453592) +\n0.0967347393 * T316 * (AVERAGE(T5:T6)*0.453592) - 5.2553838048 * T252 * (AVERAGE(T5:T6)*0.453592)","v":956.16918565871811},{"$f":" -1619.2980797296 + 25.9248064834 * (U251/1000) - 2657.6209162609 * U236 +\n123.0469725298 * U253 - 9.2854579989 * U316 + 872.0182830582 * U252 + 26.664395965 * (AVERAGE(U5:U6)*0.453592) +\n2599.7646012325 * U236 * U236- 0.1016237102 *  (AVERAGE(U5:U6)*0.453592) *  (AVERAGE(U5:U6)*0.453592) - 71.8618465276 * U236 * U253 -\n607.1294449572 * U236 * U252 + 25.6463076451 * U236 * (AVERAGE(U5:U6)*0.453592) - 0.8399854508 * U253 * (AVERAGE(U5:U6)*0.453592) +\n0.0967347393 * U316 * (AVERAGE(U5:U6)*0.453592) - 5.2553838048 * U252 * (AVERAGE(U5:U6)*0.453592)","v":919.74779687896194},null,{"$f":" (-1619.2980797296 + 25.9248064834 * (W251/1000) - 2657.6209162609 * W236 +\n123.0469725298 * W253 - 9.2854579989 * W316 + 872.0182830582 * W252 + 26.664395965 * (AVERAGE(W5:W6)*0.453592) +\n2599.7646012325 * W236 * W236- 0.1016237102 *  (AVERAGE(W5:W6)*0.453592) *  (AVERAGE(W5:W6)*0.453592) - 71.8618465276 * W236 * W253 -\n607.1294449572 * W236 * W252 + 25.6463076451 * W236 * (AVERAGE(W5:W6)*0.453592) - 0.8399854508 * W253 * (AVERAGE(W5:W6)*0.453592) +\n0.0967347393 * W316 * (AVERAGE(W5:W6)*0.453592) - 5.2553838048 * W252 * (AVERAGE(W5:W6)*0.453592))","v":745.32048522697846},{"$f":" -1619.2980797296 + 25.9248064834 * (X251/1000) - 2657.6209162609 * X236 +\n123.0469725298 * X253 - 9.2854579989 * X316 + 872.0182830582 * X252 + 26.664395965 * (AVERAGE(X5:X6)*0.453592) +\n2599.7646012325 * X236 * X236- 0.1016237102 *  (AVERAGE(X5:X6)*0.453592) *  (AVERAGE(X5:X6)*0.453592) - 71.8618465276 * X236 * X253 -\n607.1294449572 * X236 * X252 + 25.6463076451 * X236 * (AVERAGE(X5:X6)*0.453592) - 0.8399854508 * X253 * (AVERAGE(X5:X6)*0.453592) +\n0.0967347393 * X316 * (AVERAGE(X5:X6)*0.453592) - 5.2553838048 * X252 * (AVERAGE(X5:X6)*0.453592)","v":856.82099481867851},{"$f":" -1619.2980797296 + 25.9248064834 * (Y251/1000) - 2657.6209162609 * Y236 +\n123.0469725298 * Y253 - 9.2854579989 * Y316 + 872.0182830582 * Y252 + 26.664395965 * (AVERAGE(Y5:Y6)*0.453592) +\n2599.7646012325 * Y236 * Y236- 0.1016237102 *  (AVERAGE(Y5:Y6)*0.453592) *  (AVERAGE(Y5:Y6)*0.453592) - 71.8618465276 * Y236 * Y253 -\n607.1294449572 * Y236 * Y252 + 25.6463076451 * Y236 * (AVERAGE(Y5:Y6)*0.453592) - 0.8399854508 * Y253 * (AVERAGE(Y5:Y6)*0.453592) +\n0.0967347393 * Y316 * (AVERAGE(Y5:Y6)*0.453592) - 5.2553838048 * Y252 * (AVERAGE(Y5:Y6)*0.453592)","v":929.39325528346376},{"$f":" -1619.2980797296 + 25.9248064834 * (Z251/1000) - 2657.6209162609 * Z236 +\n123.0469725298 * Z253 - 9.2854579989 * Z316 + 872.0182830582 * Z252 + 26.664395965 * (AVERAGE(Z5:Z6)*0.453592) +\n2599.7646012325 * Z236 * Z236- 0.1016237102 *  (AVERAGE(Z5:Z6)*0.453592) *  (AVERAGE(Z5:Z6)*0.453592) - 71.8618465276 * Z236 * Z253 -\n607.1294449572 * Z236 * Z252 + 25.6463076451 * Z236 * (AVERAGE(Z5:Z6)*0.453592) - 0.8399854508 * Z253 * (AVERAGE(Z5:Z6)*0.453592) +\n0.0967347393 * Z316 * (AVERAGE(Z5:Z6)*0.453592) - 5.2553838048 * Z252 * (AVERAGE(Z5:Z6)*0.453592)","v":960.42772548353014},{"$f":" -1619.2980797296 + 25.9248064834 * (AA251/1000) - 2657.6209162609 * AA236 +\n123.0469725298 * AA253 - 9.2854579989 * AA316 + 872.0182830582 * AA252 + 26.664395965 * (AVERAGE(AA5:AA6)*0.453592) +\n2599.7646012325 * AA236 * AA236- 0.1016237102 *  (AVERAGE(AA5:AA6)*0.453592) *  (AVERAGE(AA5:AA6)*0.453592) - 71.8618465276 * AA236 * AA253 -\n607.1294449572 * AA236 * AA252 + 25.6463076451 * AA236 * (AVERAGE(AA5:AA6)*0.453592) - 0.8399854508 * AA253 * (AVERAGE(AA5:AA6)*0.453592) +\n0.0967347393 * AA316 * (AVERAGE(AA5:AA6)*0.453592) - 5.2553838048 * AA252 * (AVERAGE(AA5:AA6)*0.453592)","v":946.63313524160253},{"$f":" -1619.2980797296 + 25.9248064834 * (AB251/1000) - 2657.6209162609 * AB236 +\n123.0469725298 * AB253 - 9.2854579989 * AB316 + 872.0182830582 * AB252 + 26.664395965 * (AVERAGE(AB5:AB6)*0.453592) +\n2599.7646012325 * AB236 * AB236- 0.1016237102 *  (AVERAGE(AB5:AB6)*0.453592) *  (AVERAGE(AB5:AB6)*0.453592) - 71.8618465276 * AB236 * AB253 -\n607.1294449572 * AB236 * AB252 + 25.6463076451 * AB236 * (AVERAGE(AB5:AB6)*0.453592) - 0.8399854508 * AB253 * (AVERAGE(AB5:AB6)*0.453592) +\n0.0967347393 * AB316 * (AVERAGE(AB5:AB6)*0.453592) - 5.2553838048 * AB252 * (AVERAGE(AB5:AB6)*0.453592)","v":919.74779687896194},null,{"$f":" (-1619.2980797296 + 25.9248064834 * (AD251/1000) - 2657.6209162609 * AD236 +\n123.0469725298 * AD253 - 9.2854579989 * AD316 + 872.0182830582 * AD252 + 26.664395965 * (AVERAGE(AD5:AD6)*0.453592) +\n2599.7646012325 * AD236 * AD236- 0.1016237102 *  (AVERAGE(AD5:AD6)*0.453592) *  (AVERAGE(AD5:AD6)*0.453592) - 71.8618465276 * AD236 * AD253 -\n607.1294449572 * AD236 * AD252 + 25.6463076451 * AD236 * (AVERAGE(AD5:AD6)*0.453592) - 0.8399854508 * AD253 * (AVERAGE(AD5:AD6)*0.453592) +\n0.0967347393 * AD316 * (AVERAGE(AD5:AD6)*0.453592) - 5.2553838048 * AD252 * (AVERAGE(AD5:AD6)*0.453592))","v":742.69055046940025},{"$f":" -1619.2980797296 + 25.9248064834 * (AE251/1000) - 2657.6209162609 * AE236 +\n123.0469725298 * AE253 - 9.2854579989 * AE316 + 872.0182830582 * AE252 + 26.664395965 * (AVERAGE(AE5:AE6)*0.453592) +\n2599.7646012325 * AE236 * AE236- 0.1016237102 *  (AVERAGE(AE5:AE6)*0.453592) *  (AVERAGE(AE5:AE6)*0.453592) - 71.8618465276 * AE236 * AE253 -\n607.1294449572 * AE236 * AE252 + 25.6463076451 * AE236 * (AVERAGE(AE5:AE6)*0.453592) - 0.8399854508 * AE253 * (AVERAGE(AE5:AE6)*0.453592) +\n0.0967347393 * AE316 * (AVERAGE(AE5:AE6)*0.453592) - 5.2553838048 * AE252 * (AVERAGE(AE5:AE6)*0.453592)","v":853.35182138732102},{"$f":" -1619.2980797296 + 25.9248064834 * (AF251/1000) - 2657.6209162609 * AF236 +\n123.0469725298 * AF253 - 9.2854579989 * AF316 + 872.0182830582 * AF252 + 26.664395965 * (AVERAGE(AF5:AF6)*0.453592) +\n2599.7646012325 * AF236 * AF236- 0.1016237102 *  (AVERAGE(AF5:AF6)*0.453592) *  (AVERAGE(AF5:AF6)*0.453592) - 71.8618465276 * AF236 * AF253 -\n607.1294449572 * AF236 * AF252 + 25.6463076451 * AF236 * (AVERAGE(AF5:AF6)*0.453592) - 0.8399854508 * AF253 * (AVERAGE(AF5:AF6)*0.453592) +\n0.0967347393 * AF316 * (AVERAGE(AF5:AF6)*0.453592) - 5.2553838048 * AF252 * (AVERAGE(AF5:AF6)*0.453592)","v":924.76743851556557},{"$f":" -1619.2980797296 + 25.9248064834 * (AG251/1000) - 2657.6209162609 * AG236 +\n123.0469725298 * AG253 - 9.2854579989 * AG316 + 872.0182830582 * AG252 + 26.664395965 * (AVERAGE(AG5:AG6)*0.453592) +\n2599.7646012325 * AG236 * AG236- 0.1016237102 *  (AVERAGE(AG5:AG6)*0.453592) *  (AVERAGE(AG5:AG6)*0.453592) - 71.8618465276 * AG236 * AG253 -\n607.1294449572 * AG236 * AG252 + 25.6463076451 * AG236 * (AVERAGE(AG5:AG6)*0.453592) - 0.8399854508 * AG253 * (AVERAGE(AG5:AG6)*0.453592) +\n0.0967347393 * AG316 * (AVERAGE(AG5:AG6)*0.453592) - 5.2553838048 * AG252 * (AVERAGE(AG5:AG6)*0.453592)","v":953.97017769775789},{"$f":" -1619.2980797296 + 25.9248064834 * (AH251/1000) - 2657.6209162609 * AH236 +\n123.0469725298 * AH253 - 9.2854579989 * AH316 + 872.0182830582 * AH252 + 26.664395965 * (AVERAGE(AH5:AH6)*0.453592) +\n2599.7646012325 * AH236 * AH236- 0.1016237102 *  (AVERAGE(AH5:AH6)*0.453592) *  (AVERAGE(AH5:AH6)*0.453592) - 71.8618465276 * AH236 * AH253 -\n607.1294449572 * AH236 * AH252 + 25.6463076451 * AH236 * (AVERAGE(AH5:AH6)*0.453592) - 0.8399854508 * AH253 * (AVERAGE(AH5:AH6)*0.453592) +\n0.0967347393 * AH316 * (AVERAGE(AH5:AH6)*0.453592) - 5.2553838048 * AH252 * (AVERAGE(AH5:AH6)*0.453592)","v":937.20083374915134},{"$f":" -1619.2980797296 + 25.9248064834 * (AI251/1000) - 2657.6209162609 * AI236 +\n123.0469725298 * AI253 - 9.2854579989 * AI316 + 872.0182830582 * AI252 + 26.664395965 * (AVERAGE(AI5:AI6)*0.453592) +\n2599.7646012325 * AI236 * AI236- 0.1016237102 *  (AVERAGE(AI5:AI6)*0.453592) *  (AVERAGE(AI5:AI6)*0.453592) - 71.8618465276 * AI236 * AI253 -\n607.1294449572 * AI236 * AI252 + 25.6463076451 * AI236 * (AVERAGE(AI5:AI6)*0.453592) - 0.8399854508 * AI253 * (AVERAGE(AI5:AI6)*0.453592) +\n0.0967347393 * AI316 * (AVERAGE(AI5:AI6)*0.453592) - 5.2553838048 * AI252 * (AVERAGE(AI5:AI6)*0.453592)","v":919.74779687896194},null,{"$f":" (-1619.2980797296 + 25.9248064834 * (AK251/1000) - 2657.6209162609 * AK236 +\n123.0469725298 * AK253 - 9.2854579989 * AK316 + 872.0182830582 * AK252 + 26.664395965 * (AVERAGE(AK5:AK6)*0.453592) +\n2599.7646012325 * AK236 * AK236- 0.1016237102 *  (AVERAGE(AK5:AK6)*0.453592) *  (AVERAGE(AK5:AK6)*0.453592) - 71.8618465276 * AK236 * AK253 -\n607.1294449572 * AK236 * AK252 + 25.6463076451 * AK236 * (AVERAGE(AK5:AK6)*0.453592) - 0.8399854508 * AK253 * (AVERAGE(AK5:AK6)*0.453592) +\n0.0967347393 * AK316 * (AVERAGE(AK5:AK6)*0.453592) - 5.2553838048 * AK252 * (AVERAGE(AK5:AK6)*0.453592))","v":740.485091285458},{"$f":" -1619.2980797296 + 25.9248064834 * (AL251/1000) - 2657.6209162609 * AL236 +\n123.0469725298 * AL253 - 9.2854579989 * AL316 + 872.0182830582 * AL252 + 26.664395965 * (AVERAGE(AL5:AL6)*0.453592) +\n2599.7646012325 * AL236 * AL236- 0.1016237102 *  (AVERAGE(AL5:AL6)*0.453592) *  (AVERAGE(AL5:AL6)*0.453592) - 71.8618465276 * AL236 * AL253 -\n607.1294449572 * AL236 * AL252 + 25.6463076451 * AL236 * (AVERAGE(AL5:AL6)*0.453592) - 0.8399854508 * AL253 * (AVERAGE(AL5:AL6)*0.453592) +\n0.0967347393 * AL316 * (AVERAGE(AL5:AL6)*0.453592) - 5.2553838048 * AL252 * (AVERAGE(AL5:AL6)*0.453592)","v":850.57562438691457},{"$f":" -1619.2980797296 + 25.9248064834 * (AM251/1000) - 2657.6209162609 * AM236 +\n123.0469725298 * AM253 - 9.2854579989 * AM316 + 872.0182830582 * AM252 + 26.664395965 * (AVERAGE(AM5:AM6)*0.453592) +\n2599.7646012325 * AM236 * AM236- 0.1016237102 *  (AVERAGE(AM5:AM6)*0.453592) *  (AVERAGE(AM5:AM6)*0.453592) - 71.8618465276 * AM236 * AM253 -\n607.1294449572 * AM236 * AM252 + 25.6463076451 * AM236 * (AVERAGE(AM5:AM6)*0.453592) - 0.8399854508 * AM253 * (AVERAGE(AM5:AM6)*0.453592) +\n0.0967347393 * AM316 * (AVERAGE(AM5:AM6)*0.453592) - 5.2553838048 * AM252 * (AVERAGE(AM5:AM6)*0.453592)","v":920.75457010940886},{"$f":" -1619.2980797296 + 25.9248064834 * (AN251/1000) - 2657.6209162609 * AN236 +\n123.0469725298 * AN253 - 9.2854579989 * AN316 + 872.0182830582 * AN252 + 26.664395965 * (AVERAGE(AN5:AN6)*0.453592) +\n2599.7646012325 * AN236 * AN236- 0.1016237102 *  (AVERAGE(AN5:AN6)*0.453592) *  (AVERAGE(AN5:AN6)*0.453592) - 71.8618465276 * AN236 * AN253 -\n607.1294449572 * AN236 * AN252 + 25.6463076451 * AN236 * (AVERAGE(AN5:AN6)*0.453592) - 0.8399854508 * AN253 * (AVERAGE(AN5:AN6)*0.453592) +\n0.0967347393 * AN316 * (AVERAGE(AN5:AN6)*0.453592) - 5.2553838048 * AN252 * (AVERAGE(AN5:AN6)*0.453592)","v":947.79441678421176},{"$f":" -1619.2980797296 + 25.9248064834 * (AO251/1000) - 2657.6209162609 * AO236 +\n123.0469725298 * AO253 - 9.2854579989 * AO316 + 872.0182830582 * AO252 + 26.664395965 * (AVERAGE(AO5:AO6)*0.453592) +\n2599.7646012325 * AO236 * AO236- 0.1016237102 *  (AVERAGE(AO5:AO6)*0.453592) *  (AVERAGE(AO5:AO6)*0.453592) - 71.8618465276 * AO236 * AO253 -\n607.1294449572 * AO236 * AO252 + 25.6463076451 * AO236 * (AVERAGE(AO5:AO6)*0.453592) - 0.8399854508 * AO253 * (AVERAGE(AO5:AO6)*0.453592) +\n0.0967347393 * AO316 * (AVERAGE(AO5:AO6)*0.453592) - 5.2553838048 * AO252 * (AVERAGE(AO5:AO6)*0.453592)","v":928.08975082836355},{"$f":" -1619.2980797296 + 25.9248064834 * (AP251/1000) - 2657.6209162609 * AP236 +\n123.0469725298 * AP253 - 9.2854579989 * AP316 + 872.0182830582 * AP252 + 26.664395965 * (AVERAGE(AP5:AP6)*0.453592) +\n2599.7646012325 * AP236 * AP236- 0.1016237102 *  (AVERAGE(AP5:AP6)*0.453592) *  (AVERAGE(AP5:AP6)*0.453592) - 71.8618465276 * AP236 * AP253 -\n607.1294449572 * AP236 * AP252 + 25.6463076451 * AP236 * (AVERAGE(AP5:AP6)*0.453592) - 0.8399854508 * AP253 * (AVERAGE(AP5:AP6)*0.453592) +\n0.0967347393 * AP316 * (AVERAGE(AP5:AP6)*0.453592) - 5.2553838048 * AP252 * (AVERAGE(AP5:AP6)*0.453592)","v":919.74779687896194},null,{"$f":" (-1619.2980797296 + 25.9248064834 * (AR251/1000) - 2657.6209162609 * AR236 +\n123.0469725298 * AR253 - 9.2854579989 * AR316 + 872.0182830582 * AR252 + 26.664395965 * (AVERAGE(AR5:AR6)*0.453592) +\n2599.7646012325 * AR236 * AR236- 0.1016237102 *  (AVERAGE(AR5:AR6)*0.453592) *  (AVERAGE(AR5:AR6)*0.453592) - 71.8618465276 * AR236 * AR253 -\n607.1294449572 * AR236 * AR252 + 25.6463076451 * AR236 * (AVERAGE(AR5:AR6)*0.453592) - 0.8399854508 * AR253 * (AVERAGE(AR5:AR6)*0.453592) +\n0.0967347393 * AR316 * (AVERAGE(AR5:AR6)*0.453592) - 5.2553838048 * AR252 * (AVERAGE(AR5:AR6)*0.453592))","v":739.21219320971636},{"$f":" -1619.2980797296 + 25.9248064834 * (AS251/1000) - 2657.6209162609 * AS236 +\n123.0469725298 * AS253 - 9.2854579989 * AS316 + 872.0182830582 * AS252 + 26.664395965 * (AVERAGE(AS5:AS6)*0.453592) +\n2599.7646012325 * AS236 * AS236- 0.1016237102 *  (AVERAGE(AS5:AS6)*0.453592) *  (AVERAGE(AS5:AS6)*0.453592) - 71.8618465276 * AS236 * AS253 -\n607.1294449572 * AS236 * AS252 + 25.6463076451 * AS236 * (AVERAGE(AS5:AS6)*0.453592) - 0.8399854508 * AS253 * (AVERAGE(AS5:AS6)*0.453592) +\n0.0967347393 * AS316 * (AVERAGE(AS5:AS6)*0.453592) - 5.2553838048 * AS252 * (AVERAGE(AS5:AS6)*0.453592)","v":848.42796213456415},{"$f":" -1619.2980797296 + 25.9248064834 * (AT251/1000) - 2657.6209162609 * AT236 +\n123.0469725298 * AT253 - 9.2854579989 * AT316 + 872.0182830582 * AT252 + 26.664395965 * (AVERAGE(AT5:AT6)*0.453592) +\n2599.7646012325 * AT236 * AT236- 0.1016237102 *  (AVERAGE(AT5:AT6)*0.453592) *  (AVERAGE(AT5:AT6)*0.453592) - 71.8618465276 * AT236 * AT253 -\n607.1294449572 * AT236 * AT252 + 25.6463076451 * AT236 * (AVERAGE(AT5:AT6)*0.453592) - 0.8399854508 * AT253 * (AVERAGE(AT5:AT6)*0.453592) +\n0.0967347393 * AT316 * (AVERAGE(AT5:AT6)*0.453592) - 5.2553838048 * AT252 * (AVERAGE(AT5:AT6)*0.453592)","v":917.31575363788306},{"$f":" -1619.2980797296 + 25.9248064834 * (AU251/1000) - 2657.6209162609 * AU236 +\n123.0469725298 * AU253 - 9.2854579989 * AU316 + 872.0182830582 * AU252 + 26.664395965 * (AVERAGE(AU5:AU6)*0.453592) +\n2599.7646012325 * AU236 * AU236- 0.1016237102 *  (AVERAGE(AU5:AU6)*0.453592) *  (AVERAGE(AU5:AU6)*0.453592) - 71.8618465276 * AU236 * AU253 -\n607.1294449572 * AU236 * AU252 + 25.6463076451 * AU236 * (AVERAGE(AU5:AU6)*0.453592) - 0.8399854508 * AU253 * (AVERAGE(AU5:AU6)*0.453592) +\n0.0967347393 * AU316 * (AVERAGE(AU5:AU6)*0.453592) - 5.2553838048 * AU252 * (AVERAGE(AU5:AU6)*0.453592)","v":941.99410601919431},{"$f":" -1619.2980797296 + 25.9248064834 * (AV251/1000) - 2657.6209162609 * AV236 +\n123.0469725298 * AV253 - 9.2854579989 * AV316 + 872.0182830582 * AV252 + 26.664395965 * (AVERAGE(AV5:AV6)*0.453592) +\n2599.7646012325 * AV236 * AV236- 0.1016237102 *  (AVERAGE(AV5:AV6)*0.453592) *  (AVERAGE(AV5:AV6)*0.453592) - 71.8618465276 * AV236 * AV253 -\n607.1294449572 * AV236 * AV252 + 25.6463076451 * AV236 * (AVERAGE(AV5:AV6)*0.453592) - 0.8399854508 * AV253 * (AVERAGE(AV5:AV6)*0.453592) +\n0.0967347393 * AV316 * (AVERAGE(AV5:AV6)*0.453592) - 5.2553838048 * AV252 * (AVERAGE(AV5:AV6)*0.453592)","v":919.44377030358305},{"$f":" -1619.2980797296 + 25.9248064834 * (AW251/1000) - 2657.6209162609 * AW236 +\n123.0469725298 * AW253 - 9.2854579989 * AW316 + 872.0182830582 * AW252 + 26.664395965 * (AVERAGE(AW5:AW6)*0.453592) +\n2599.7646012325 * AW236 * AW236- 0.1016237102 *  (AVERAGE(AW5:AW6)*0.453592) *  (AVERAGE(AW5:AW6)*0.453592) - 71.8618465276 * AW236 * AW253 -\n607.1294449572 * AW236 * AW252 + 25.6463076451 * AW236 * (AVERAGE(AW5:AW6)*0.453592) - 0.8399854508 * AW253 * (AVERAGE(AW5:AW6)*0.453592) +\n0.0967347393 * AW316 * (AVERAGE(AW5:AW6)*0.453592) - 5.2553838048 * AW252 * (AVERAGE(AW5:AW6)*0.453592)","v":919.74779687896194}]
["ADFI, g/d",{"$f":"B342/B344*1000","v":1398.8783014207611},1847.8320572748494,2307.7192145327367,2723.4676222335261,2993.2160501056624,3054.344258459666,null,{"$f":"I342/I344*1000","v":1389.0024681618436},1835.7297163413807,2293.0161296074825,2707.0649160735961,2979.6503897026291,3054.344258459666,null,{"$f":"P342/P344*1000","v":1382.0838310526742},1827.0793350244305,2281.8539108127361,2694.0613907702627,2968.6383980672913,3054.344258459666,null,{"$f":"W342/W344*1000","v":1378.2753373390838},1821.8416003019208,2274.0019521611794,2684.1316189505246,2960.1296853008007,3054.344258459666,null,{"$f":"AD342/AD344*1000","v":1377.6340144513379},1820.0883648751139,2269.6679884188111,2677.2160527946958,2955.040714864369,3054.344258459666,null,{"$f":"AK342/AK344*1000","v":1378.9748645318275},1821.8064174474123,2268.7754808471641,2674.3516294236761,2953.107463417391,3054.344258459666,null,{"$f":"AR342/AR344*1000","v":1385.2113044296577},1827.0958848698046,2271.5494684878845,2675.7622608000383,2954.0964179039579,3054.344258459666]
["GF, g/kg",{"$f":" -232.8670000513 - (102.0339177026 * (B251/1000)) + (1386.8135453223 * B236) - (3.1583174866 * B253) + (80.3303777865 * B316) - (115.1570451563 * B252) + (4.1836503117 * (AVERAGE(B5:B6)*0.453592)) + (2553.6417073224 * B236 * B236) + (228.757399518 * B252 * B252) + (12.736240264 *  (B251/1000) * B253) - (24.4502664605 *  (B251/1000) * B316) - (23.0415882284 * B236 * B253) + (101.5847297779 * B236 * B316) - (1559.9331198689 * B236 *B252) - (3.9239483753 * B236 * (AVERAGE(B5:B6)*0.453592)) - (0.1078600966 * B253 * (AVERAGE(B5:B6)*0.453592)) - (28.1879330488 * B316 * B252) - (0.1153929924 * B316 * (AVERAGE(B5:B6)*0.453592))","v":541.48123876174384},471.05106861362759,410.02340376494885,360.7957609066396,326.28328855841602,301.12774430436968,null,{"$f":" -232.8670000513 - (102.0339177026 * (I251/1000)) + (1386.8135453223 * I236) - (3.1583174866 * I253) + (80.3303777865 * I316) - (115.1570451563 * I252) + (4.1836503117 * (AVERAGE(I5:I6)*0.453592)) + (2553.6417073224 * I236 * I236) + (228.757399518 * I252 * I252) + (12.736240264 *  (I251/1000) * I253) - (24.4502664605 *  (I251/1000) * I316) - (23.0415882284 * I236 * I253) + (101.5847297779 * I236 * I316) - (1559.9331198689 * I236 *I252) - (3.9239483753 * I236 * (AVERAGE(I5:I6)*0.453592)) - (0.1078600966 * I253 * (AVERAGE(I5:I6)*0.453592)) - (28.1879330488 * I316 * I252) - (0.1153929924 * I316 * (AVERAGE(I5:I6)*0.453592))","v":541.82150887571606},471.24993400174304,409.94453044447192,360.09326303576006,324.24312512712072,301.12774430436968,null,{"$f":" -232.8670000513 - (102.0339177026 * (P251/1000)) + (1386.8135453223 * P236) - (3.1583174866 * P253) + (80.3303777865 * P316) - (115.1570451563 * P252) + (4.1836503117 * (AVERAGE(P5:P6)*0.453592)) + (2553.6417073224 * P236 * P236) + (228.757399518 * P252 * P252) + (12.736240264 *  (P251/1000) * P253) - (24.4502664605 *  (P251/1000) * P316) - (23.0415882284 * P236 * P253) + (101.5847297779 * P236 * P316) - (1559.9331198689 * P236 *P252) - (3.9239483753 * P236 * (AVERAGE(P5:P6)*0.453592)) - (0.1078600966 * P253 * (AVERAGE(P5:P6)*0.453592)) - (28.1879330488 * P316 * P252) - (0.1153929924 * P316 * (AVERAGE(P5:P6)*0.453592))","v":541.66115958367732},471.06464741462037,409.59769975491599,359.05749083225191,322.09014957201407,301.12774430436968,null,{"$f":" -232.8670000513 - (102.0339177026 * (W251/1000)) + (1386.8135453223 * W236) - (3.1583174866 * W253) + (80.3303777865 * W316) - (115.1570451563 * W252) + (4.1836503117 * (AVERAGE(W5:W6)*0.453592)) + (2553.6417073224 * W236 * W236) + (228.757399518 * W252 * W252) + (12.736240264 *  (W251/1000) * W253) - (24.4502664605 *  (W251/1000) * W316) - (23.0415882284 * W236 * W253) + (101.5847297779 * W236 * W316) - (1559.9331198689 * W236 *W252) - (3.9239483753 * W236 * (AVERAGE(W5:W6)*0.453592)) - (0.1078600966 * W253 * (AVERAGE(W5:W6)*0.453592)) - (28.1879330488 * W316 * W252) - (0.1153929924 * W316 * (AVERAGE(W5:W6)*0.453592))","v":540.76312985901927},470.30487978575286,408.70380713621705,357.81692622772732,319.79448060749678,301.12774430436968,null,{"$f":" -232.8670000513 - (102.0339177026 * (AD251/1000)) + (1386.8135453223 * AD236) - (3.1583174866 * AD253) + (80.3303777865 * AD316) - (115.1570451563 * AD252) + (4.1836503117 * (AVERAGE(AD5:AD6)*0.453592)) + (2553.6417073224 * AD236 * AD236) + (228.757399518 * AD252 * AD252) + (12.736240264 *  (AD251/1000) * AD253) - (24.4502664605 *  (AD251/1000) * AD316) - (23.0415882284 * AD236 * AD253) + (101.5847297779 * AD236 * AD316) - (1559.9331198689 * AD236 *AD252) - (3.9239483753 * AD236 * (AVERAGE(AD5:AD6)*0.453592)) - (0.1078600966 * AD253 * (AVERAGE(AD5:AD6)*0.453592)) - (28.1879330488 * AD316 * AD252) - (0.1153929924 * AD316 * (AVERAGE(AD5:AD6)*0.453592))","v":539.10584573159451},468.85186337965195,407.44613010989991,356.32917138007082,317.15327272306877,301.12774430436968,null,{"$f":" -232.8670000513 - (102.0339177026 * (AK251/1000)) + (1386.8135453223 * AK236) - (3.1583174866 * AK253) + (80.3303777865 * AK316) - (115.1570451563 * AK252) + (4.1836503117 * (AVERAGE(AK5:AK6)*0.453592)) + (2553.6417073224 * AK236 * AK236) + (228.757399518 * AK252 * AK252) + (12.736240264 *  (AK251/1000) * AK253) - (24.4502664605 *  (AK251/1000) * AK316) - (23.0415882284 * AK236 * AK253) + (101.5847297779 * AK236 * AK316) - (1559.9331198689 * AK236 *AK252) - (3.9239483753 * AK236 * (AVERAGE(AK5:AK6)*0.453592)) - (0.1078600966 * AK253 * (AVERAGE(AK5:AK6)*0.453592)) - (28.1879330488 * AK316 * AK252) - (0.1153929924 * AK316 * (AVERAGE(AK5:AK6)*0.453592))","v":536.98229774250331},466.88584266745625,405.83767670373345,354.40157021852133,314.27564432564225,301.12774430436968,null,{"$f":" -232.8670000513 - (102.0339177026 * (AR251/1000)) + (1386.8135453223 * AR236) - (3.1583174866 * AR253) + (80.3303777865 * AR316) - (115.1570451563 * AR252) + (4.1836503117 * (AVERAGE(AR5:AR6)*0.453592)) + (2553.6417073224 * AR236 * AR236) + (228.757399518 * AR252 * AR252) + (12.736240264 *  (AR251/1000) * AR253) - (24.4502664605 *  (AR251/1000) * AR316) - (23.0415882284 * AR236 * AR253) + (101.5847297779 * AR236 * AR316) - (1559.9331198689 * AR236 *AR252) - (3.9239483753 * AR236 * (AVERAGE(AR5:AR6)*0.453592)) - (0.1078600966 * AR253 * (AVERAGE(AR5:AR6)*0.453592)) - (28.1879330488 * AR316 * AR252) - (0.1153929924 * AR316 * (AVERAGE(AR5:AR6)*0.453592))","v":533.6457989086922},464.35875049602089,403.82820905437643,352.04701098428052,311.24365634482672,301.12774430436968]
["F/G",{"$f":"IF(B323=\"\",\"0\",1/B344*1000)","v":1.846786053542306},2.1229120718123973,2.4388851729382321,2.7716511898230491,3.0648213839519558,3.3208497686258824,null,{"$f":"IF(I323=\"\",\"0\",1/I344*1000)","v":1.8456262507463166},2.1220162123063582,2.4393544144027861,2.7770583419681816,3.0841054829086856,3.3208497686258824,null,{"$f":"IF(P323=\"\",\"0\",1/P344*1000)","v":1.8461726160476479},2.1228508772381356,2.4414199606061091,2.7850693148947281,3.1047208408229086,3.3208497686258824,null,{"$f":"IF(W323=\"\",\"0\",1/W344*1000)","v":1.8492385016351005},2.1262802981239521,2.4467596888979055,2.7947252538958001,3.1270083151540096,3.3208497686258824,null,{"$f":"IF(AD323=\"\",\"0\",1/AD344*1000)","v":1.8549233103620835},2.1328698424949026,2.4543121804354144,2.8063938636485406,3.1530496009517073,3.3208497686258824,null,{"$f":"IF(AK323=\"\",\"0\",1/AK344*1000)","v":1.8622587824664669},2.1418511949017462,2.4640393374073359,2.8216579271457727,3.1819201330276567,3.3208497686258824,null,{"$f":"IF(AR323=\"\",\"0\",1/AR344*1000)","v":1.873902131423135},2.1535073882678328,2.4763005099164523,2.8405297269933412,3.2129168887930697,3.3208497686258824]
["Days on phase",{"$f":"(B6-B5)*0.453592/(B342/1000)","v":20.958977100556179},18.239080496534822,19.17492901903826,18.464677842774325,18.577722929695792,22.192648973190369,null,{"$f":"(I351-I5)*0.453592/(I342/1000)","v":20.95893480644677},{"$f":"(J351-I351)*0.453592/(J342/1000)","v":18.35718855519335},{"$f":"(K351-J351)*0.453592/(K342/1000)","v":19.278454326068832},{"$f":"(L351-K351)*0.453592/(L342/1000)","v":18.586822479538029},{"$f":"(M351-L351)*0.453592/(M342/1000)","v":18.727173521378983},{"$f":"(N351-M351)*0.453592/(N342/1000)","v":22.404836007581121},null,{"$f":"(P351-P5)*0.453592/(P342/1000)","v":20.95893458214163},{"$f":"(Q351-P351)*0.453592/(Q342/1000)","v":18.454478189744961},{"$f":"(R351-Q351)*0.453592/(R342/1000)","v":19.36520587077186},{"$f":"(S351-R351)*0.453592/(S342/1000)","v":18.694160488993525},{"$f":"(T351-S351)*0.453592/(T342/1000)","v":18.873040807462903},{"$f":"(U351-T351)*0.453592/(U342/1000)","v":22.606054962354627},null,{"$f":"(W351-W5)*0.453592/(W342/1000)","v":20.958934393849194},{"$f":"(X351-W351)*0.453592/(X342/1000)","v":18.536184581392376},{"$f":"(Y351-X351)*0.453592/(Y342/1000)","v":19.441864846043302},{"$f":"(Z351-Y351)*0.453592/(Z342/1000)","v":18.800601401212049},{"$f":"(AA351-Z351)*0.453592/(AA342/1000)","v":19.010510925832818},{"$f":"(AB351-AA351)*0.453592/(AB342/1000)","v":22.798670919787671},null,{"$f":"(AD351-AD5)*0.453592/(AD342/1000)","v":20.958934242620867},{"$f":"(AE351-AD351)*0.453592/(AE342/1000)","v":18.60198563384256},{"$f":"(AF351-AE351)*0.453592/(AF342/1000)","v":19.511622200172283},{"$f":"(AG351-AF351)*0.453592/(AG342/1000)","v":18.895854851199129},{"$f":"(AH351-AG351)*0.453592/(AH342/1000)","v":19.142092889847042},{"$f":"(AI351-AH351)*0.453592/(AI342/1000)","v":22.989191282337863},null,{"$f":"(AK351-AK5)*0.453592/(AK342/1000)","v":20.958934114972884},{"$f":"(AL351-AK351)*0.453592/(AL342/1000)","v":18.657514693613265},{"$f":"(AM351-AL351)*0.453592/(AM342/1000)","v":19.568082833311045},{"$f":"(AN351-AM351)*0.453592/(AN342/1000)","v":18.979849134723569},{"$f":"(AO351-AN351)*0.453592/(AO342/1000)","v":19.270502299714131},{"$f":"(AP351-AO351)*0.453592/(AP342/1000)","v":23.173223442747762},null,{"$f":"(AR351-AR5)*0.453592/(AR342/1000)","v":20.958934040953189},{"$f":"(AS351-AR351)*0.453592/(AS342/1000)","v":18.690018687095019},{"$f":"(AT351-AS351)*0.453592/(AT342/1000)","v":19.612258863594686},{"$f":"(AU351-AT351)*0.453592/(AU342/1000)","v":19.053020734100979},{"$f":"(AV351-AU351)*0.453592/(AV342/1000)","v":19.393501258712828},{"$f":"(AW351-AV351)*0.453592/(AW342/1000)","v":23.347861132764486}]
["Dressing, %",{"$f":" 51.6684755267 + 7.1030096064 * (B251/1000) + 54.0870565413 * B236 + 1.6439820046 * B253 + 0.4039153805 * B316 - 20.5375389219 * B252 + 0.2869358688 *(AVERAGE(B5:B6)*0.453592) - 0.016597667 * B316 * B316 - 0.1531408962 * (B251/1000) * (AVERAGE(B5:B6)*0.453592) - 4.8153797375 * B236 * B253 + 0.5304361357 * B236 * (AVERAGE(B5:B6)*0.453592) + 0.9830652207 * B253 * B252 - 0.0127129553 * B253 *(AVERAGE(B5:B6)*0.453592)","v":59.07643336708562},66.187005535002854,71.339528706858943,74.764464309798441,76.836980679644768,78.432360226639787,null,{"$f":" 51.6684755267 + 7.1030096064 * (I251/1000) + 54.0870565413 * I236 + 1.6439820046 * I253 + 0.4039153805 * I316 - 20.5375389219 * I252 + 0.2869358688 *(AVERAGE(I5:I6)*0.453592) - 0.016597667 * I316 * I316 - 0.1531408962 * (I251/1000) * (AVERAGE(I5:I6)*0.453592) - 4.8153797375 * I236 * I253 + 0.5304361357 * I236 * (AVERAGE(I5:I6)*0.453592) + 0.9830652207 * I253 * I252 - 0.0127129553 * I253 *(AVERAGE(I5:I6)*0.453592)","v":59.47245710133177},66.406606050511769,71.434223172565837,74.771084931125017,76.773615449152217,78.432360226639787,null,{"$f":" 51.6684755267 + 7.1030096064 * (P251/1000) + 54.0870565413 * P236 + 1.6439820046 * P253 + 0.4039153805 * P316 - 20.5375389219 * P252 + 0.2869358688 *(AVERAGE(P5:P6)*0.453592) - 0.016597667 * P316 * P316 - 0.1531408962 * (P251/1000) * (AVERAGE(P5:P6)*0.453592) - 4.8153797375 * P236 * P253 + 0.5304361357 * P236 * (AVERAGE(P5:P6)*0.453592) + 0.9830652207 * P253 * P252 - 0.0127129553 * P253 *(AVERAGE(P5:P6)*0.453592)","v":59.789620750365181},66.573337019981963,71.488741758387278,74.745679049484494,76.681162735633336,78.432360226639787,null,{"$f":" 51.6684755267 + 7.1030096064 * (W251/1000) + 54.0870565413 * W236 + 1.6439820046 * W253 + 0.4039153805 * W316 - 20.5375389219 * W252 + 0.2869358688 *(AVERAGE(W5:W6)*0.453592) - 0.016597667 * W316 * W316 - 0.1531408962 * (W251/1000) * (AVERAGE(W5:W6)*0.453592) - 4.8153797375 * W236 * W253 + 0.5304361357 * W236 * (AVERAGE(W5:W6)*0.453592) + 0.9830652207 * W253 * W252 - 0.0127129553 * W253 *(AVERAGE(W5:W6)*0.453592)","v":60.080724196546477},66.712215707842489,71.526948031071086,74.688645814596498,76.556964851279844,78.432360226639787,null,{"$f":" 51.6684755267 + 7.1030096064 * (AD251/1000) + 54.0870565413 * AD236 + 1.6439820046 * AD253 + 0.4039153805 * AD316 - 20.5375389219 * AD252 + 0.2869358688 *(AVERAGE(AD5:AD6)*0.453592) - 0.016597667 * AD316 * AD316 - 0.1531408962 * (AD251/1000) * (AVERAGE(AD5:AD6)*0.453592) - 4.8153797375 * AD236 * AD253 + 0.5304361357 * AD236 * (AVERAGE(AD5:AD6)*0.453592) + 0.9830652207 * AD253 * AD252 - 0.0127129553 * AD253 *(AVERAGE(AD5:AD6)*0.453592)","v":60.348386565208067},66.846743344333788,71.531884823598858,74.60024550215411,76.400777675178659,78.432360226639787,null,{"$f":" 51.6684755267 + 7.1030096064 * (AK251/1000) + 54.0870565413 * AK236 + 1.6439820046 * AK253 + 0.4039153805 * AK316 - 20.5375389219 * AK252 + 0.2869358688 *(AVERAGE(AK5:AK6)*0.453592) - 0.016597667 * AK316 * AK316 - 0.1531408962 * (AK251/1000) * (AVERAGE(AK5:AK6)*0.453592) - 4.8153797375 * AK236 * AK253 + 0.5304361357 * AK236 * (AVERAGE(AK5:AK6)*0.453592) + 0.9830652207 * AK253 * AK252 - 0.0127129553 * AK253 *(AVERAGE(AK5:AK6)*0.453592)","v":60.4564667682032},66.945780828267516,71.506597511494405,74.481378714821872,76.214244529721142,78.432360226639787,null,{"$f":" 51.6684755267 + 7.1030096064 * (AR251/1000) + 54.0870565413 * AR236 + 1.6439820046 * AR253 + 0.4039153805 * AR316 - 20.5375389219 * AR252 + 0.2869358688 *(AVERAGE(AR5:AR6)*0.453592) - 0.016597667 * AR316 * AR316 - 0.1531408962 * (AR251/1000) * (AVERAGE(AR5:AR6)*0.453592) - 4.8153797375 * AR236 * AR253 + 0.5304361357 * AR236 * (AVERAGE(AR5:AR6)*0.453592) + 0.9830652207 * AR253 * AR252 - 0.0127129553 * AR253 *(AVERAGE(AR5:AR6)*0.453592)","v":60.724547040232338},67.016048303677977,71.449619839784489,74.332934406185672,75.997502287216861,78.432360226639787]
["Backfat, mm",{"$f":" 41.4410513954 + (14.8656283053 * B236) - (0.6326892081 * B253) - (12.1380129342 * B252) -\n(0.0133880688 * (B253^2)) + (1.1112817574 * (B252^2))","v":7.8081201670684095},9.6497372018873726,11.707280587456946,13.756142379711502,15.307913140289045,16.16672623849167,null,{"$f":" 41.4410513954 + (14.8656283053 * I236) - (0.6326892081 * I253) - (12.1380129342 * I252) -\n(0.0133880688 * (I253^2)) + (1.1112817574 * (I252^2))","v":7.4147514908089143},9.2599130022793421,11.321266884587033,13.380712236867044,14.952674520236904,16.16672623849167,null,{"$f":" 41.4410513954 + (14.8656283053 * P236) - (0.6326892081 * P253) - (12.1380129342 * P252) -\n(0.0133880688 * (P253^2)) + (1.1112817574 * (P252^2))","v":6.9974935187495859},8.8467311315054395,10.912643204174914,13.004932197286927,14.574236886172834,16.16672623849167,null,{"$f":" 41.4410513954 + (14.8656283053 * W236) - (0.6326892081 * W253) - (12.1380129342 * W252) -\n(0.0133880688 * (W253^2)) + (1.1112817574 * (W252^2))","v":6.5786516451840882},8.431987586660723,10.528675612605181,12.618149516634537,14.190429392847689,16.16672623849167,null,{"$f":" 41.4410513954 + (14.8656283053 * AD236) - (0.6326892081 * AD253) - (12.1380129342 * AD252) -\n(0.0133880688 * (AD253^2)) + (1.1112817574 * (AD252^2))","v":6.1594195084221681},8.0369965516408968,10.137233831790711,12.225731685963469,13.810460753032491,16.16672623849167,null,{"$f":" 41.4410513954 + (14.8656283053 * AK236) - (0.6326892081 * AK253) - (12.1380129342 * AK252) -\n(0.0133880688 * (AK253^2)) + (1.1112817574 * (AK252^2))","v":5.67527983610265},7.6342088721097277,9.7347832349186767,11.835941043558405,13.429118649663488,16.16672623849167,null,{"$f":" 41.4410513954 + (14.8656283053 * AR236) - (0.6326892081 * AR253) - (12.1380129342 * AR252) -\n(0.0133880688 * (AR253^2)) + (1.1112817574 * (AR252^2))","v":5.2762904384761597},7.2295574542125678,9.3248656225295328,11.443318689820181,13.045811477094851,16.16672623849167]
["Loin depth, mm",{"$f":" -16.7992454106 + 17.2658536059 * (B251/1000) - 106.6634904715 * B236 + 0.1550376119 * B253 - 0.0727312562 * B316 + 48.6541457906 * B252 - 0.1535643762 * B253 * B253 - 0.0358142801 * B316 * B316 - 5.4618633046 * B252 * B252 + 4.2267870055 * B236 * B253 - 2.0313848595 * B236 * B316 + 0.1484978883 * B253 * B316","v":52.048652387826927},57.424545894850155,60.138112629899155,61.003481994612869,60.913721975717699,60.653455485036048,null,{"$f":" -16.7992454106 + 17.2658536059 * (I251/1000) - 106.6634904715 * I236 + 0.1550376119 * I253 - 0.0727312562 * I316 + 48.6541457906 * I252 - 0.1535643762 * I253 * I253 - 0.0358142801 * I316 * I316 - 5.4618633046 * I252 * I252 + 4.2267870055 * I236 * I253 - 2.0313848595 * I236 * I316 + 0.1484978883 * I253 * I316","v":52.031811571600912},57.396057781422968,60.099958738241526,60.950686793849755,60.841871946377623,60.653455485036048,null,{"$f":" -16.7992454106 + 17.2658536059 * (P251/1000) - 106.6634904715 * P236 + 0.1550376119 * P253 - 0.0727312562 * P316 + 48.6541457906 * P252 - 0.1535643762 * P253 * P253 - 0.0358142801 * P316 * P316 - 5.4618633046 * P252 * P252 + 4.2267870055 * P236 * P253 - 2.0313848595 * P236 * P316 + 0.1484978883 * P253 * P316","v":51.910494751854898},57.316055471372891,60.033576783753801,60.884690125334174,60.762954113199143,60.653455485036048,null,{"$f":" -16.7992454106 + 17.2658536059 * (W251/1000) - 106.6634904715 * W236 + 0.1550376119 * W253 - 0.0727312562 * W316 + 48.6541457906 * W252 - 0.1535643762 * W253 * W253 - 0.0358142801 * W316 * W316 - 5.4618633046 * W252 * W252 + 4.2267870055 * W236 * W253 - 2.0313848595 * W236 * W316 + 0.1484978883 * W253 * W316","v":51.776108797873775},57.222596572706266,59.97407832913791,60.805476982723917,60.672412376385019,60.653455485036048,null,{"$f":" -16.7992454106 + 17.2658536059 * (AD251/1000) - 106.6634904715 * AD236 + 0.1550376119 * AD253 - 0.0727312562 * AD316 + 48.6541457906 * AD252 - 0.1535643762 * AD253 * AD253 - 0.0358142801 * AD316 * AD316 - 5.4618633046 * AD252 * AD252 + 4.2267870055 * AD236 * AD253 - 2.0313848595 * AD236 * AD316 + 0.1484978883 * AD253 * AD316","v":51.632362876788818},57.156475609405739,59.895975049279301,60.716018787690459,60.568561014713026,60.653455485036048,null,{"$f":" -16.7992454106 + 17.2658536059 * (AK251/1000) - 106.6634904715 * AK236 + 0.1550376119 * AK253 - 0.0727312562 * AK316 + 48.6541457906 * AK252 - 0.1535643762 * AK253 * AK253 - 0.0358142801 * AK316 * AK316 - 5.4618633046 * AK252 * AK252 + 4.2267870055 * AK236 * AK253 - 2.0313848595 * AK236 * AK316 + 0.1484978883 * AK253 * AK316","v":51.199243638821358},57.065913145247642,59.807489999539072,60.614388859987457,60.452646432680879,60.653455485036048,null,{"$f":" -16.7992454106 + 17.2658536059 * (AR251/1000) - 106.6634904715 * AR236 + 0.1550376119 * AR253 - 0.0727312562 * AR316 + 48.6541457906 * AR252 - 0.1535643762 * AR253 * AR253 - 0.0358142801 * AR316 * AR316 - 5.4618633046 * AR252 * AR252 + 4.2267870055 * AR236 * AR253 - 2.0313848595 * AR236 * AR316 + 0.1484978883 * AR253 * AR316","v":51.129627436266425},56.961797580322376,59.702742213448772,60.501137157705614,60.324057631038869,60.653455485036048]
["Lean, %",{"$f":" 49.3215904687 - 4.5564383267 * (B251/1000) + 31.3355706686 * B236 + 0.0864922401 * B253 - 16.201377828 * B236 * B236","v":53.954378874327247},54.343913736532443,54.182582260957595,53.680906160604707,53.144530833046296,52.790842861934969,null,{"$f":" 49.3215904687 - 4.5564383267 * (I251/1000) + 31.3355706686 * I236 + 0.0864922401 * I253 - 16.201377828 * I236 * I236","v":54.134196000750507},54.479866835130245,54.290014477434966,53.768016043127062,53.217775330799931,52.790842861934969,null,{"$f":" 49.3215904687 - 4.5564383267 * (P251/1000) + 31.3355706686 * P236 + 0.0864922401 * P253 - 16.201377828 * P236 * P236","v":54.302560308235627},54.613307917389932,54.399633726203731,53.855002320003138,53.297040940809822,52.790842861934969,null,{"$f":" 49.3215904687 - 4.5564383267 * (W251/1000) + 31.3355706686 * W236 + 0.0864922401 * W253 - 16.201377828 * W236 * W236","v":54.468726236896515},54.744997920004913,54.502586730778503,53.942803426459712,53.375812537131495,52.790842861934969,null,{"$f":" 49.3215904687 - 4.5564383267 * (AD251/1000) + 31.3355706686 * AD236 + 0.0864922401 * AD253 - 16.201377828 * AD236 * AD236","v":54.633440320365807},54.874942445672175,54.605255626300988,54.0292369152954,53.455535587722743,52.790842861934969,null,{"$f":" 49.3215904687 - 4.5564383267 * (AK251/1000) + 31.3355706686 * AK236 + 0.0864922401 * AK253 - 16.201377828 * AK236 * AK236","v":54.774976861337635},55.002708452905729,54.706589350232555,54.116479284340883,53.535605941033964,52.790842861934969,null,{"$f":" 49.3215904687 - 4.5564383267 * (AR251/1000) + 31.3355706686 * AR236 + 0.0864922401 * AR253 - 16.201377828 * AR236 * AR236","v":54.944412353300216},55.128553478632149,54.807699095852193,54.205783247306584,53.6144601987735,52.790842861934969]
["Final BW",{"$f":"B5+(B342*0.00220462*B346)","v":84.999929826400006},119.99992982640001,159.99991980160002,199.99991980160002,239.99991980160002,284.9999097768,null,{"$f":"$B$351-I268","v":84.774674958367157},{"$f":"$C$351-J268","v":119.78537729671801},{"$f":"$D$351-K268","v":159.73742380595064},{"$f":"$E$351-L268","v":199.68159656699643},{"$f":"$F$351-M268","v":239.5696584553323},{"$f":"$G$351-N268","v":284.9999097768},null,{"$f":"$B$351-P268","v":84.591221411361403},{"$f":"$C$351-Q268","v":119.60784772191616},{"$f":"$D$351-R268","v":159.51052884200283},{"$f":"$E$351-S268","v":199.3773915059179},{"$f":"$F$351-T268","v":239.16164709194138},{"$f":"$G$351-U268","v":284.9999097768},null,{"$f":"$B$351-W268","v":84.438709572179604},{"$f":"$C$351-X268","v":119.45297815092717},{"$f":"$D$351-Y268","v":159.28864116536596},{"$f":"$E$351-Z268","v":199.09670400926214},{"$f":"$F$351-AA268","v":238.77108001295238},{"$f":"$G$351-AB268","v":284.9999097768},null,{"$f":"$B$351-AD268","v":84.317189037514012},{"$f":"$C$351-AE268","v":119.31348156926133},{"$f":"$D$351-AF268","v":159.09309162265021},{"$f":"$E$351-AG268","v":198.83383222246121},{"$f":"$F$351-AH268","v":238.38476216846632},{"$f":"$G$351-AI268","v":284.9999097768},null,{"$f":"$B$351-AK268","v":84.215282106764661},{"$f":"$C$351-AL268","v":119.20184979320564},{"$f":"$D$351-AM268","v":158.92345356278406},{"$f":"$E$351-AN268","v":198.58243132539374},{"$f":"$F$351-AO268","v":238.01160044142554},{"$f":"$G$351-AP268","v":284.9999097768},null,{"$f":"$B$351-AR268","v":84.156465721950099},{"$f":"$C$351-AS268","v":119.11549160192362},{"$f":"$D$351-AT268","v":158.77808269700381},{"$f":"$E$351-AU268","v":198.34631413270952},{"$f":"$F$351-AV268","v":237.65748786747162},{"$f":"$G$351-AW268","v":284.9999097768}]
["Withdrawal Period",0,0,0,0,0,22.19,null,0,0,0,0,0,22.19,null,0,0,0,0,0,22.19,null,0,0,0,0,0,22.19,null,0,0,0,0,0,22.19,null,0,0,0,0,0,22.19,null,0,0,0,0,0,22.19]
["Soto Model for Yield",{"$f":"0.03492*B352-0.05092*B316-0.06897*B316-0.00289*(B316*B352)+76.0769-(75.23-'DDGS Calculator'!$G$9)","v":74.819735985643831},{"$f":"0.03492*C352-0.05092*B316-0.06897*C316-0.00289*(C316*C352)+76.0769-(75.23-'DDGS Calculator'!$G$9)","v":74.814756887824899},{"$f":"0.03492*D352-0.05092*C316-0.06897*D316-0.00289*(D316*D352)+76.0769-(75.23-'DDGS Calculator'!$G$9)","v":74.80663311148534},{"$f":"0.03492*E352-0.05092*D316-0.06897*E316-0.00289*(E316*E352)+76.0769-(75.23-'DDGS Calculator'!$G$9)","v":74.799676279957168},{"$f":"0.03492*F352-0.05092*E316-0.06897*F316-0.00289*(F316*F352)+76.0769-(75.23-'DDGS Calculator'!$G$9)","v":74.794168075350882},{"$f":"0.03492*G352-0.05092*F316-0.06897*G316-0.00289*(G316*G352)+76.0769-(75.23-'DDGS Calculator'!$G$9)","v":75.000465259716705},null,{"$f":"0.03492*I352-0.05092*I316-0.06897*I316-0.00289*(I316*I352)+76.0769-(75.23-'DDGS Calculator'!$G$9)","v":74.675299741686914},{"$f":"0.03492*J352-0.05092*I316-0.06897*J316-0.00289*(J316*J352)+76.0769-(75.23-'DDGS Calculator'!$G$9)","v":74.670369685187495},{"$f":"0.03492*K352-0.05092*J316-0.06897*K316-0.00289*(K316*K352)+76.0769-(75.23-'DDGS Calculator'!$G$9)","v":74.662321891542689},{"$f":"0.03492*L352-0.05092*K316-0.06897*L316-0.00289*(L316*L352)+76.0769-(75.23-'DDGS Calculator'!$G$9)","v":74.655283225998147},{"$f":"0.03492*M352-0.05092*L316-0.06897*M316-0.00289*(M316*M352)+76.0769-(75.23-'DDGS Calculator'!$G$9)","v":74.649733685574489},{"$f":"0.03492*N352-0.05092*M316-0.06897*N316-0.00289*(N316*N352)+76.0769-(75.23-'DDGS Calculator'!$G$9)","v":74.939133482989902},null,{"$f":"0.03492*P352-0.05092*P316-0.06897*P316-0.00289*(P316*P352)+76.0769-(75.23-'DDGS Calculator'!$G$9)","v":74.530985265028065},{"$f":"0.03492*Q352-0.05092*P316-0.06897*Q316-0.00289*(Q316*Q352)+76.0769-(75.23-'DDGS Calculator'!$G$9)","v":74.526081079333622},{"$f":"0.03492*R352-0.05092*Q316-0.06897*R316-0.00289*(R316*R352)+76.0769-(75.23-'DDGS Calculator'!$G$9)","v":74.518075292758269},{"$f":"0.03492*S352-0.05092*R316-0.06897*S316-0.00289*(S316*S352)+76.0769-(75.23-'DDGS Calculator'!$G$9)","v":74.511042001094324},{"$f":"0.03492*T352-0.05092*S316-0.06897*T316-0.00289*(T316*T352)+76.0769-(75.23-'DDGS Calculator'!$G$9)","v":74.505557830837176},{"$f":"0.03492*U352-0.05092*T316-0.06897*U316-0.00289*(U316*U352)+76.0769-(75.23-'DDGS Calculator'!$G$9)","v":74.877921899316661},null,{"$f":"0.03492*W352-0.05092*W316-0.06897*W316-0.00289*(W316*W352)+76.0769-(75.23-'DDGS Calculator'!$G$9)","v":74.386652700505479},{"$f":"0.03492*X352-0.05092*W316-0.06897*X316-0.00289*(X316*X352)+76.0769-(75.23-'DDGS Calculator'!$G$9)","v":74.381771009615932},{"$f":"0.03492*Y352-0.05092*X316-0.06897*Y316-0.00289*(Y316*Y352)+76.0769-(75.23-'DDGS Calculator'!$G$9)","v":74.373774325262886},{"$f":"0.03492*Z352-0.05092*Y316-0.06897*Z316-0.00289*(Z316*Z352)+76.0769-(75.23-'DDGS Calculator'!$G$9)","v":74.366782794159633},{"$f":"0.03492*AA352-0.05092*Z316-0.06897*AA316-0.00289*(AA316*AA352)+76.0769-(75.23-'DDGS Calculator'!$G$9)","v":74.361397916858891},{"$f":"0.03492*AB352-0.05092*AA316-0.06897*AB316-0.00289*(AB316*AB352)+76.0769-(75.23-'DDGS Calculator'!$G$9)","v":74.816714101419052},null,{"$f":"0.03492*AD352-0.05092*AD316-0.06897*AD316-0.00289*(AD316*AD352)+76.0769-(75.23-'DDGS Calculator'!$G$9)","v":74.242326256137304},{"$f":"0.03492*AE352-0.05092*AD316-0.06897*AE316-0.00289*(AE316*AE352)+76.0769-(75.23-'DDGS Calculator'!$G$9)","v":74.237436279064298},{"$f":"0.03492*AF352-0.05092*AE316-0.06897*AF316-0.00289*(AF316*AF352)+76.0769-(75.23-'DDGS Calculator'!$G$9)","v":74.229460952889426},{"$f":"0.03492*AG352-0.05092*AF316-0.06897*AG316-0.00289*(AG316*AG352)+76.0769-(75.23-'DDGS Calculator'!$G$9)","v":74.222589612562516},{"$f":"0.03492*AH352-0.05092*AG316-0.06897*AH316-0.00289*(AH316*AH352)+76.0769-(75.23-'DDGS Calculator'!$G$9)","v":74.217635227410724},{"$f":"0.03492*AI352-0.05092*AH316-0.06897*AI316-0.00289*(AI316*AI352)+76.0769-(75.23-'DDGS Calculator'!$G$9)","v":74.755766689616635},null,{"$f":"0.03492*AK352-0.05092*AK316-0.06897*AK316-0.00289*(AK316*AK352)+76.0769-(75.23-'DDGS Calculator'!$G$9)","v":74.09823816147032},{"$f":"0.03492*AL352-0.05092*AK316-0.06897*AL316-0.00289*(AL316*AL352)+76.0769-(75.23-'DDGS Calculator'!$G$9)","v":74.093205874624587},{"$f":"0.03492*AM352-0.05092*AL316-0.06897*AM316-0.00289*(AM316*AM352)+76.0769-(75.23-'DDGS Calculator'!$G$9)","v":74.085220644142083},{"$f":"0.03492*AN352-0.05092*AM316-0.06897*AN316-0.00289*(AN316*AN352)+76.0769-(75.23-'DDGS Calculator'!$G$9)","v":74.078705407736166},{"$f":"0.03492*AO352-0.05092*AN316-0.06897*AO316-0.00289*(AO316*AO352)+76.0769-(75.23-'DDGS Calculator'!$G$9)","v":74.074237036573962},{"$f":"0.03492*AP352-0.05092*AO316-0.06897*AP316-0.00289*(AP316*AP352)+76.0769-(75.23-'DDGS Calculator'!$G$9)","v":74.694948452156908},null,{"$f":"0.03492*AR352-0.05092*AR316-0.06897*AR316-0.00289*(AR316*AR352)+76.0769-(75.23-'DDGS Calculator'!$G$9)","v":73.953814285373568},{"$f":"0.03492*AS352-0.05092*AR316-0.06897*AS316-0.00289*(AS316*AS352)+76.0769-(75.23-'DDGS Calculator'!$G$9)","v":73.948839283638051},{"$f":"0.03492*AT352-0.05092*AS316-0.06897*AT316-0.00289*(AT316*AT352)+76.0769-(75.23-'DDGS Calculator'!$G$9)","v":73.940999851998512},{"$f":"0.03492*AU352-0.05092*AT316-0.06897*AU316-0.00289*(AU316*AU352)+76.0769-(75.23-'DDGS Calculator'!$G$9)","v":73.935099256539942},{"$f":"0.03492*AV352-0.05092*AU316-0.06897*AV316-0.00289*(AV316*AV352)+76.0769-(75.23-'DDGS Calculator'!$G$9)","v":73.931033600109558},{"$f":"0.03492*AW352-0.05092*AV316-0.06897*AW316-0.00289*(AW316*AW352)+76.0769-(75.23-'DDGS Calculator'!$G$9)","v":74.634128384511854}]

{"sheet":"GF diets No L-Val + Fat + WD","index":10,"n_rows":353,"n_cols":50,"rows_kept":353,"cut":false,"hidden":true,"merged":[[3,36,3,40],[3,43,3,47],[3,1,3,5],[3,8,3,12],[3,15,3,19],[3,22,3,26],[3,29,3,33]]}
["Corn",null,null,null,null,null,null,null,{"$f":"B7-I7","v":78.847932538945088},{"$f":"C7-J7","v":78.990904656930297},78.732847708260579,78.350814532472214,78.625314003523499,0,null,{"$f":"I7-P7","v":78.869446714110154},{"$f":"J7-Q7","v":78.910241852682702},78.971817812852578,78.947597993782438,79.007989930308668,0,null,{"$f":"P7-W7","v":78.901632467544005},{"$f":"Q7-X7","v":78.948872278436511},78.879611969325424,78.834660770078244,79.083790296524739,0,null,{"$f":"W7-AD7","v":78.941135212754148},{"$f":"X7-AE7","v":78.923722167716278},78.778889522292275,79.150340635518887,81.585366228283192,0,null,{"$f":"AD7-AK7","v":79.21829355550733},{"$f":"AE7-AL7","v":78.919632197342935},79.078660894961104,81.302066593328163,82.216761385820291,0,null,{"$f":"AK7-AR7","v":78.801706942857095},{"$f":"AL7-AS7","v":78.921885944682913},79.64106076521557,82.20833215019411,82.262159022385049,0]
["SBM",null,null,null,null,null,null,null,{"$f":"B8-I8","v":30.448349711621177},30.438309534796645,30.45643151152899,30.483259683986034,30.463983035737783,0,null,{"$f":"I8-P8","v":30.44683888471377},30.44397405756672,30.439649903060399,30.441350733051195,30.437109726272865,0,null,{"$f":"P8-W8","v":30.444578649219693},30.4412612467695,30.44612503252165,30.449281717861595,30.431786666847302,0,null,{"$f":"W8-AD8","v":30.44180458003359},30.44302740622993,30.453198238071764,30.427113187985697,30.256114199729609,0,null,{"$f":"AD8-AK8","v":30.422341213267259},30.443314623250672,30.43214687763134,30.276008837015979,30.211774652149643,0,null,{"$f":"AK8-AR8","v":30.451595891121883},{"$f":"AL8-AS8","v":30.443156354476855},{"$f":"AM8-AT8","v":30.392652504720218},30.212366592853868,30.208586615874083,0]
[null,"Diet 1","Diet 2","Diet 3","Diet 4","Diet 5","Diet 6",null,"Diet 1","Diet 2","Diet 3","Diet 4","Diet 5","Diet 6",null,"Diet 1","Diet 2","Diet 3","Diet 4","Diet 5","Diet 6",null,"Diet 1","Diet 2","Diet 3","Diet 4","Diet 5","Diet 6",null,"Diet 1","Diet 2","Diet 3","Diet 4","Diet 5","Diet 6",null,"Diet 1","Diet 2","Diet 3","Diet 4","Diet 5","Diet 6",null,"Diet 1","Diet 2","Diet 3","Diet 4","Diet 5","Diet 6"]
[null,"Weight Range",null,null,null,null,null,null,"Weight Range",null,null,null,null,null,null,"Weight Range",null,null,null,null,null,null,"Weight Range",null,null,null,null,null,null,"Weight Range",null,null,null,null,null,null,"Weight Range",null,null,null,null,null,null,"Weight Range"]
[null,50,85,120,160,200,240,null,50,85,120,160,200,240,null,50,85,120,160,200,240,null,50,85,120,160,200,240,null,50,85,120,160,200,240,null,50,85,120,160,200,240,null,50,85,120,160,200,240]
["Ingredient",85,120,160,200,240,285,null,85,120,160,200,240,285,null,85,120,160,200,240,285,null,85,120,160,200,240,285,null,85,120,160,200,240,285,null,85,120,160,200,240,285,null,85,120,160,200,240,285]
["Corn",{"$f":"IF(B5=\"\",\"\",((((B236-B297)*2000)+((SUM(B9:B229)-2000)*((IF($A8=Nutrients!$B$79,Nutrients!$DA$79,(IF($A8=Nutrients!$B$77,Nutrients!$DA$77,Nutrients!$DA$78)))))))/((IF($A7=Nutrients!$B$8,Nutrients!$DA$8,Nutrients!$DA$9))-((IF($A8=Nutrients!$B$79,Nutrients!$DA$79,(IF($A8=Nutrients!$B$77,Nutrients!$DA$77,Nutrients!$DA$78))))))))","v":1323.1904784197848},{"$f":"IF(C5=\"\",\"\",((((C236-C297)*2000)+((SUM(C9:C229)-2000)*((IF($A8=Nutrients!$B$79,Nutrients!$DA$79,(IF($A8=Nutrients!$B$77,Nutrients!$DA$77,Nutrients!$DA$78)))))))/((IF($A7=Nutrients!$B$8,Nutrients!$DA$8,Nutrients!$DA$9))-((IF($A8=Nutrients!$B$79,Nutrients!$DA$79,(IF($A8=Nutrients!$B$77,Nutrients!$DA$77,Nutrients!$DA$78))))))))","v":1438.5863426264264},{"$f":"IF(D5=\"\",\"\",((((D236-D297)*2000)+((SUM(D9:D229)-2000)*((IF($A8=Nutrients!$B$79,Nutrients!$DA$79,(IF($A8=Nutrients!$B$77,Nutrients!$DA$77,Nutrients!$DA$78)))))))/((IF($A7=Nutrients!$B$8,Nutrients!$DA$8,Nutrients!$DA$9))-((IF($A8=Nutrients!$B$79,Nutrients!$DA$79,(IF($A8=Nutrients!$B$77,Nutrients!$DA$77,Nutrients!$DA$78))))))))","v":1538.5624561307404},{"$f":"IF(E5=\"\",\"\",((((E236-E297)*2000)+((SUM(E9:E229)-2000)*((IF($A8=Nutrients!$B$79,Nutrients!$DA$79,(IF($A8=Nutrients!$B$77,Nutrients!$DA$77,Nutrients!$DA$78)))))))/((IF($A7=Nutrients!$B$8,Nutrients!$DA$8,Nutrients!$DA$9))-((IF($A8=Nutrients!$B$79,Nutrients!$DA$79,(IF($A8=Nutrients!$B$77,Nutrients!$DA$77,Nutrients!$DA$78))))))))","v":1622.5648380110952},{"$f":"IF(F5=\"\",\"\",((((F236-F297)*2000)+((SUM(F9:F229)-2000)*((IF($A8=Nutrients!$B$79,Nutrients!$DA$79,(IF($A8=Nutrients!$B$77,Nutrients!$DA$77,Nutrients!$DA$78)))))))/((IF($A7=Nutrients!$B$8,Nutrients!$DA$8,Nutrients!$DA$9))-((IF($A8=Nutrients!$B$79,Nutrients!$DA$79,(IF($A8=Nutrients!$B$77,Nutrients!$DA$77,Nutrients!$DA$78))))))))","v":1679.6960832539069},{"$f":"IF(G5=\"\",\"\",((((G236-G297)*2000)+((SUM(G9:G229)-2000)*((IF($A8=Nutrients!$B$79,Nutrients!$DA$79,(IF($A8=Nutrients!$B$77,Nutrients!$DA$77,Nutrients!$DA$78)))))))/((IF($A7=Nutrients!$B$8,Nutrients!$DA$8,Nutrients!$DA$9))-((IF($A8=Nutrients!$B$79,Nutrients!$DA$79,(IF($A8=Nutrients!$B$77,Nutrients!$DA$77,Nutrients!$DA$78))))))))","v":1707.9835561942639},null,{"$f":"IF(I5=\"\",\"\",((((I236-I297)*2000)+((SUM(I9:I229)-2000)*((IF($A8=Nutrients!$B$79,Nutrients!$DA$79,(IF($A8=Nutrients!$B$77,Nutrients!$DA$77,Nutrients!$DA$78)))))))/((IF($A7=Nutrients!$B$8,Nutrients!$DA$8,Nutrients!$DA$9))-((IF($A8=Nutrients!$B$79,Nutrients!$DA$79,(IF($A8=Nutrients!$B$77,Nutrients!$DA$77,Nutrients!$DA$78))))))))","v":1244.3425458808397},{"$f":"IF(J5=\"\",\"\",((((J236-J297)*2000)+((SUM(J9:J229)-2000)*((IF($A8=Nutrients!$B$79,Nutrients!$DA$79,(IF($A8=Nutrients!$B$77,Nutrients!$DA$77,Nutrients!$DA$78)))))))/((IF($A7=Nutrients!$B$8,Nutrients!$DA$8,Nutrients!$DA$9))-((IF($A8=Nutrients!$B$79,Nutrients!$DA$79,(IF($A8=Nutrients!$B$77,Nutrients!$DA$77,Nutrients!$DA$78))))))))","v":1359.5954379694961},{"$f":"IF(K5=\"\",\"\",((((K236-K297)*2000)+((SUM(K9:K229)-2000)*((IF($A8=Nutrients!$B$79,Nutrients!$DA$79,(IF($A8=Nutrients!$B$77,Nutrients!$DA$77,Nutrients!$DA$78)))))))/((IF($A7=Nutrients!$B$8,Nutrients!$DA$8,Nutrients!$DA$9))-((IF($A8=Nutrients!$B$79,Nutrients!$DA$79,(IF($A8=Nutrients!$B$77,Nutrients!$DA$77,Nutrients!$DA$78))))))))","v":1459.8296084224799},{"$f":"IF(L5=\"\",\"\",((((L236-L297)*2000)+((SUM(L9:L229)-2000)*((IF($A8=Nutrients!$B$79,Nutrients!$DA$79,(IF($A8=Nutrients!$B$77,Nutrients!$DA$77,Nutrients!$DA$78)))))))/((IF($A7=Nutrients!$B$8,Nutrients!$DA$8,Nutrients!$DA$9))-((IF($A8=Nutrients!$B$79,Nutrients!$DA$79,(IF($A8=Nutrients!$B$77,Nutrients!$DA$77,Nutrients!$DA$78))))))))","v":1544.2140234786229},{"$f":"IF(M5=\"\",\"\",((((M236-M297)*2000)+((SUM(M9:M229)-2000)*((IF($A8=Nutrients!$B$79,Nutrients!$DA$79,(IF($A8=Nutrients!$B$77,Nutrients!$DA$77,Nutrients!$DA$78)))))))/((IF($A7=Nutrients!$B$8,Nutrients!$DA$8,Nutrients!$DA$9))-((IF($A8=Nutrients!$B$79,Nutrients!$DA$79,(IF($A8=Nutrients!$B$77,Nutrients!$DA$77,Nutrients!$DA$78))))))))","v":1601.0707692503834},{"$f":"IF(N5=\"\",\"\",((((N236-N297)*2000)+((SUM(N9:N229)-2000)*((IF($A8=Nutrients!$B$79,Nutrients!$DA$79,(IF($A8=Nutrients!$B$77,Nutrients!$DA$77,Nutrients!$DA$78)))))))/((IF($A7=Nutrients!$B$8,Nutrients!$DA$8,Nutrients!$DA$9))-((IF($A8=Nutrients!$B$79,Nutrients!$DA$79,(IF($A8=Nutrients!$B$77,Nutrients!$DA$77,Nutrients!$DA$78))))))))","v":1707.9835561942639},null,{"$f":"IF(P5=\"\",\"\",((((P236-P297)*2000)+((SUM(P9:P229)-2000)*((IF($A8=Nutrients!$B$79,Nutrients!$DA$79,(IF($A8=Nutrients!$B$77,Nutrients!$DA$77,Nutrients!$DA$78)))))))/((IF($A7=Nutrients!$B$8,Nutrients!$DA$8,Nutrients!$DA$9))-((IF($A8=Nutrients!$B$79,Nutrients!$DA$79,(IF($A8=Nutrients!$B$77,Nutrients!$DA$77,Nutrients!$DA$78))))))))","v":1165.4730991667295},{"$f":"IF(Q5=\"\",\"\",((((Q236-Q297)*2000)+((SUM(Q9:Q229)-2000)*((IF($A8=Nutrients!$B$79,Nutrients!$DA$79,(IF($A8=Nutrients!$B$77,Nutrients!$DA$77,Nutrients!$DA$78)))))))/((IF($A7=Nutrients!$B$8,Nutrients!$DA$8,Nutrients!$DA$9))-((IF($A8=Nutrients!$B$79,Nutrients!$DA$79,(IF($A8=Nutrients!$B$77,Nutrients!$DA$77,Nutrients!$DA$78))))))))","v":1280.6851961168134},{"$f":"IF(R5=\"\",\"\",((((R236-R297)*2000)+((SUM(R9:R229)-2000)*((IF($A8=Nutrients!$B$79,Nutrients!$DA$79,(IF($A8=Nutrients!$B$77,Nutrients!$DA$77,Nutrients!$DA$78)))))))/((IF($A7=Nutrients!$B$8,Nutrients!$DA$8,Nutrients!$DA$9))-((IF($A8=Nutrients!$B$79,Nutrients!$DA$79,(IF($A8=Nutrients!$B$77,Nutrients!$DA$77,Nutrients!$DA$78))))))))","v":1380.8577906096273},{"$f":"IF(S5=\"\",\"\",((((S236-S297)*2000)+((SUM(S9:S229)-2000)*((IF($A8=Nutrients!$B$79,Nutrients!$DA$79,(IF($A8=Nutrients!$B$77,Nutrients!$DA$77,Nutrients!$DA$78)))))))/((IF($A7=Nutrients!$B$8,Nutrients!$DA$8,Nutrients!$DA$9))-((IF($A8=Nutrients!$B$79,Nutrients!$DA$79,(IF($A8=Nutrients!$B$77,Nutrients!$DA$77,Nutrients!$DA$78))))))))","v":1465.2664254848405},{"$f":"IF(T5=\"\",\"\",((((T236-T297)*2000)+((SUM(T9:T229)-2000)*((IF($A8=Nutrients!$B$79,Nutrients!$DA$79,(IF($A8=Nutrients!$B$77,Nutrients!$DA$77,Nutrients!$DA$78)))))))/((IF($A7=Nutrients!$B$8,Nutrients!$DA$8,Nutrients!$DA$9))-((IF($A8=Nutrients!$B$79,Nutrients!$DA$79,(IF($A8=Nutrients!$B$77,Nutrients!$DA$77,Nutrients!$DA$78))))))))","v":1522.0627793200747},{"$f":"IF(U5=\"\",\"\",((((U236-U297)*2000)+((SUM(U9:U229)-2000)*((IF($A8=Nutrients!$B$79,Nutrients!$DA$79,(IF($A8=Nutrients!$B$77,Nutrients!$DA$77,Nutrients!$DA$78)))))))/((IF($A7=Nutrients!$B$8,Nutrients!$DA$8,Nutrients!$DA$9))-((IF($A8=Nutrients!$B$79,Nutrients!$DA$79,(IF($A8=Nutrients!$B$77,Nutrients!$DA$77,Nutrients!$DA$78))))))))","v":1707.9835561942639},null,{"$f":"IF(W5=\"\",\"\",((((W236-W297)*2000)+((SUM(W9:W229)-2000)*((IF($A8=Nutrients!$B$79,Nutrients!$DA$79,(IF($A8=Nutrients!$B$77,Nutrients!$DA$77,Nutrients!$DA$78)))))))/((IF($A7=Nutrients!$B$8,Nutrients!$DA$8,Nutrients!$DA$9))-((IF($A8=Nutrients!$B$79,Nutrients!$DA$79,(IF($A8=Nutrients!$B$77,Nutrients!$DA$77,Nutrients!$DA$78))))))))","v":1086.5714666991855},{"$f":"IF(X5=\"\",\"\",((((X236-X297)*2000)+((SUM(X9:X229)-2000)*((IF($A8=Nutrients!$B$79,Nutrients!$DA$79,(IF($A8=Nutrients!$B$77,Nutrients!$DA$77,Nutrients!$DA$78)))))))/((IF($A7=Nutrients!$B$8,Nutrients!$DA$8,Nutrients!$DA$9))-((IF($A8=Nutrients!$B$79,Nutrients!$DA$79,(IF($A8=Nutrients!$B$77,Nutrients!$DA$77,Nutrients!$DA$78))))))))","v":1201.7363238383768},{"$f":"IF(Y5=\"\",\"\",((((Y236-Y297)*2000)+((SUM(Y9:Y229)-2000)*((IF($A8=Nutrients!$B$79,Nutrients!$DA$79,(IF($A8=Nutrients!$B$77,Nutrients!$DA$77,Nutrients!$DA$78)))))))/((IF($A7=Nutrients!$B$8,Nutrients!$DA$8,Nutrients!$DA$9))-((IF($A8=Nutrients!$B$79,Nutrients!$DA$79,(IF($A8=Nutrients!$B$77,Nutrients!$DA$77,Nutrients!$DA$78))))))))","v":1301.9781786403018},{"$f":"IF(Z5=\"\",\"\",((((Z236-Z297)*2000)+((SUM(Z9:Z229)-2000)*((IF($A8=Nutrients!$B$79,Nutrients!$DA$79,(IF($A8=Nutrients!$B$77,Nutrients!$DA$77,Nutrients!$DA$78)))))))/((IF($A7=Nutrients!$B$8,Nutrients!$DA$8,Nutrients!$DA$9))-((IF($A8=Nutrients!$B$79,Nutrients!$DA$79,(IF($A8=Nutrients!$B$77,Nutrients!$DA$77,Nutrients!$DA$78))))))))","v":1386.4317647147623},{"$f":"IF(AA5=\"\",\"\",((((AA236-AA297)*2000)+((SUM(AA9:AA229)-2000)*((IF($A8=Nutrients!$B$79,Nutrients!$DA$79,(IF($A8=Nutrients!$B$77,Nutrients!$DA$77,Nutrients!$DA$78)))))))/((IF($A7=Nutrients!$B$8,Nutrients!$DA$8,Nutrients!$DA$9))-((IF($A8=Nutrients!$B$79,Nutrients!$DA$79,(IF($A8=Nutrients!$B$77,Nutrients!$DA$77,Nutrients!$DA$78))))))))","v":1442.97898902355},{"$f":"IF(AB5=\"\",\"\",((((AB236-AB297)*2000)+((SUM(AB9:AB229)-2000)*((IF($A8=Nutrients!$B$79,Nutrients!$DA$79,(IF($A8=Nutrients!$B$77,Nutrients!$DA$77,Nutrients!$DA$78)))))))/((IF($A7=Nutrients!$B$8,Nutrients!$DA$8,Nutrients!$DA$9))-((IF($A8=Nutrients!$B$79,Nutrients!$DA$79,(IF($A8=Nutrients!$B$77,Nutrients!$DA$77,Nutrients!$DA$78))))))))","v":1707.9835561942639},null,{"$f":"IF(AD5=\"\",\"\",((((AD236-AD297)*2000)+((SUM(AD9:AD229)-2000)*((IF($A8=Nutrients!$B$79,Nutrients!$DA$79,(IF($A8=Nutrients!$B$77,Nutrients!$DA$77,Nutrients!$DA$78)))))))/((IF($A7=Nutrients!$B$8,Nutrients!$DA$8,Nutrients!$DA$9))-((IF($A8=Nutrients!$B$79,Nutrients!$DA$79,(IF($A8=Nutrients!$B$77,Nutrients!$DA$77,Nutrients!$DA$78))))))))","v":1007.6303314864314},{"$f":"IF(AE5=\"\",\"\",((((AE236-AE297)*2000)+((SUM(AE9:AE229)-2000)*((IF($A8=Nutrients!$B$79,Nutrients!$DA$79,(IF($A8=Nutrients!$B$77,Nutrients!$DA$77,Nutrients!$DA$78)))))))/((IF($A7=Nutrients!$B$8,Nutrients!$DA$8,Nutrients!$DA$9))-((IF($A8=Nutrients!$B$79,Nutrients!$DA$79,(IF($A8=Nutrients!$B$77,Nutrients!$DA$77,Nutrients!$DA$78))))))))","v":1122.8126016706606},{"$f":"IF(AF5=\"\",\"\",((((AF236-AF297)*2000)+((SUM(AF9:AF229)-2000)*((IF($A8=Nutrients!$B$79,Nutrients!$DA$79,(IF($A8=Nutrients!$B$77,Nutrients!$DA$77,Nutrients!$DA$78)))))))/((IF($A7=Nutrients!$B$8,Nutrients!$DA$8,Nutrients!$DA$9))-((IF($A8=Nutrients!$B$79,Nutrients!$DA$79,(IF($A8=Nutrients!$B$77,Nutrients!$DA$77,Nutrients!$DA$78))))))))","v":1223.1992891180096},{"$f":"IF(AG5=\"\",\"\",((((AG236-AG297)*2000)+((SUM(AG9:AG229)-2000)*((IF($A8=Nutrients!$B$79,Nutrients!$DA$79,(IF($A8=Nutrients!$B$77,Nutrients!$DA$77,Nutrients!$DA$78)))))))/((IF($A7=Nutrients!$B$8,Nutrients!$DA$8,Nutrients!$DA$9))-((IF($A8=Nutrients!$B$79,Nutrients!$DA$79,(IF($A8=Nutrients!$B$77,Nutrients!$DA$77,Nutrients!$DA$78))))))))","v":1307.2814240792434},{"$f":"IF(AH5=\"\",\"\",((((AH236-AH297)*2000)+((SUM(AH9:AH229)-2000)*((IF($A8=Nutrients!$B$79,Nutrients!$DA$79,(IF($A8=Nutrients!$B$77,Nutrients!$DA$77,Nutrients!$DA$78)))))))/((IF($A7=Nutrients!$B$8,Nutrients!$DA$8,Nutrients!$DA$9))-((IF($A8=Nutrients!$B$79,Nutrients!$DA$79,(IF($A8=Nutrients!$B$77,Nutrients!$DA$77,Nutrients!$DA$78))))))))","v":1361.3936227952668},{"$f":"IF(AI5=\"\",\"\",((((AI236-AI297)*2000)+((SUM(AI9:AI229)-2000)*((IF($A8=Nutrients!$B$79,Nutrients!$DA$79,(IF($A8=Nutrients!$B$77,Nutrients!$DA$77,Nutrients!$DA$78)))))))/((IF($A7=Nutrients!$B$8,Nutrients!$DA$8,Nutrients!$DA$9))-((IF($A8=Nutrients!$B$79,Nutrients!$DA$79,(IF($A8=Nutrients!$B$77,Nutrients!$DA$77,Nutrients!$DA$78))))))))","v":1707.9835561942639},null,{"$f":"IF(AK5=\"\",\"\",((((AK236-AK297)*2000)+((SUM(AK9:AK229)-2000)*((IF($A8=Nutrients!$B$79,Nutrients!$DA$79,(IF($A8=Nutrients!$B$77,Nutrients!$DA$77,Nutrients!$DA$78)))))))/((IF($A7=Nutrients!$B$8,Nutrients!$DA$8,Nutrients!$DA$9))-((IF($A8=Nutrients!$B$79,Nutrients!$DA$79,(IF($A8=Nutrients!$B$77,Nutrients!$DA$77,Nutrients!$DA$78))))))))","v":928.41203793092404},{"$f":"IF(AL5=\"\",\"\",((((AL236-AL297)*2000)+((SUM(AL9:AL229)-2000)*((IF($A8=Nutrients!$B$79,Nutrients!$DA$79,(IF($A8=Nutrients!$B$77,Nutrients!$DA$77,Nutrients!$DA$78)))))))/((IF($A7=Nutrients!$B$8,Nutrients!$DA$8,Nutrients!$DA$9))-((IF($A8=Nutrients!$B$79,Nutrients!$DA$79,(IF($A8=Nutrients!$B$77,Nutrients!$DA$77,Nutrients!$DA$78))))))))","v":1043.8929694733176},{"$f":"IF(AM5=\"\",\"\",((((AM236-AM297)*2000)+((SUM(AM9:AM229)-2000)*((IF($A8=Nutrients!$B$79,Nutrients!$DA$79,(IF($A8=Nutrients!$B$77,Nutrients!$DA$77,Nutrients!$DA$78)))))))/((IF($A7=Nutrients!$B$8,Nutrients!$DA$8,Nutrients!$DA$9))-((IF($A8=Nutrients!$B$79,Nutrients!$DA$79,(IF($A8=Nutrients!$B$77,Nutrients!$DA$77,Nutrients!$DA$78))))))))","v":1144.1206282230485},{"$f":"IF(AN5=\"\",\"\",((((AN236-AN297)*2000)+((SUM(AN9:AN229)-2000)*((IF($A8=Nutrients!$B$79,Nutrients!$DA$79,(IF($A8=Nutrients!$B$77,Nutrients!$DA$77,Nutrients!$DA$78)))))))/((IF($A7=Nutrients!$B$8,Nutrients!$DA$8,Nutrients!$DA$9))-((IF($A8=Nutrients!$B$79,Nutrients!$DA$79,(IF($A8=Nutrients!$B$77,Nutrients!$DA$77,Nutrients!$DA$78))))))))","v":1225.9793574859152},{"$f":"IF(AO5=\"\",\"\",((((AO236-AO297)*2000)+((SUM(AO9:AO229)-2000)*((IF($A8=Nutrients!$B$79,Nutrients!$DA$79,(IF($A8=Nutrients!$B$77,Nutrients!$DA$77,Nutrients!$DA$78)))))))/((IF($A7=Nutrients!$B$8,Nutrients!$DA$8,Nutrients!$DA$9))-((IF($A8=Nutrients!$B$79,Nutrients!$DA$79,(IF($A8=Nutrients!$B$77,Nutrients!$DA$77,Nutrients!$DA$78))))))))","v":1279.1768614094465},{"$f":"IF(AP5=\"\",\"\",((((AP236-AP297)*2000)+((SUM(AP9:AP229)-2000)*((IF($A8=Nutrients!$B$79,Nutrients!$DA$79,(IF($A8=Nutrients!$B$77,Nutrients!$DA$77,Nutrients!$DA$78)))))))/((IF($A7=Nutrients!$B$8,Nutrients!$DA$8,Nutrients!$DA$9))-((IF($A8=Nutrients!$B$79,Nutrients!$DA$79,(IF($A8=Nutrients!$B$77,Nutrients!$DA$77,Nutrients!$DA$78))))))))","v":1707.9835561942639},null,{"$f":"IF(AR5=\"\",\"\",((((AR236-AR297)*2000)+((SUM(AR9:AR229)-2000)*((IF($A8=Nutrients!$B$79,Nutrients!$DA$79,(IF($A8=Nutrients!$B$77,Nutrients!$DA$77,Nutrients!$DA$78)))))))/((IF($A7=Nutrients!$B$8,Nutrients!$DA$8,Nutrients!$DA$9))-((IF($A8=Nutrients!$B$79,Nutrients!$DA$79,(IF($A8=Nutrients!$B$77,Nutrients!$DA$77,Nutrients!$DA$78))))))))","v":849.61033098806695},{"$f":"IF(AS5=\"\",\"\",((((AS236-AS297)*2000)+((SUM(AS9:AS229)-2000)*((IF($A8=Nutrients!$B$79,Nutrients!$DA$79,(IF($A8=Nutrients!$B$77,Nutrients!$DA$77,Nutrients!$DA$78)))))))/((IF($A7=Nutrients!$B$8,Nutrients!$DA$8,Nutrients!$DA$9))-((IF($A8=Nutrients!$B$79,Nutrients!$DA$79,(IF($A8=Nutrients!$B$77,Nutrients!$DA$77,Nutrients!$DA$78))))))))","v":964.97108352863472},{"$f":"IF(AT5=\"\",\"\",((((AT236-AT297)*2000)+((SUM(AT9:AT229)-2000)*((IF($A8=Nutrients!$B$79,Nutrients!$DA$79,(IF($A8=Nutrients!$B$77,Nutrients!$DA$77,Nutrients!$DA$78)))))))/((IF($A7=Nutrients!$B$8,Nutrients!$DA$8,Nutrients!$DA$9))-((IF($A8=Nutrients!$B$79,Nutrients!$DA$79,(IF($A8=Nutrients!$B$77,Nutrients!$DA$77,Nutrients!$DA$78))))))))","v":1064.4795674578329},{"$f":"IF(AU5=\"\",\"\",((((AU236-AU297)*2000)+((SUM(AU9:AU229)-2000)*((IF($A8=Nutrients!$B$79,Nutrients!$DA$79,(IF($A8=Nutrients!$B$77,Nutrients!$DA$77,Nutrients!$DA$78)))))))/((IF($A7=Nutrients!$B$8,Nutrients!$DA$8,Nutrients!$DA$9))-((IF($A8=Nutrients!$B$79,Nutrients!$DA$79,(IF($A8=Nutrients!$B$77,Nutrients!$DA$77,Nutrients!$DA$78))))))))","v":1143.7710253357211},{"$f":"IF(AV5=\"\",\"\",((((AV236-AV297)*2000)+((SUM(AV9:AV229)-2000)*((IF($A8=Nutrients!$B$79,Nutrients!$DA$79,(IF($A8=Nutrients!$B$77,Nutrients!$DA$77,Nutrients!$DA$78)))))))/((IF($A7=Nutrients!$B$8,Nutrients!$DA$8,Nutrients!$DA$9))-((IF($A8=Nutrients!$B$79,Nutrients!$DA$79,(IF($A8=Nutrients!$B$77,Nutrients!$DA$77,Nutrients!$DA$78))))))))","v":1196.9147023870614},{"$f":"IF(AW5=\"\",\"\",((((AW236-AW297)*2000)+((SUM(AW9:AW229)-2000)*((IF($A8=Nutrients!$B$79,Nutrients!$DA$79,(IF($A8=Nutrients!$B$77,Nutrients!$DA$77,Nutrients!$DA$78)))))))/((IF($A7=Nutrients!$B$8,Nutrients!$DA$8,Nutrients!$DA$9))-((IF($A8=Nutrients!$B$79,Nutrients!$DA$79,(IF($A8=Nutrients!$B$77,Nutrients!$DA$77,Nutrients!$DA$78))))))))","v":1707.9835561942639}]
["Soybean Meal, Dehull, Sol Extr",{"$f":"IF(B5=\"\",\"\",2000-SUM(B9:B218)-B7)","v":618.86019033712819},508.40076632216437,413.17469083498395,332.93731204963137,279.42017973722363,252.24678261106305,null,{"$f":"IF(I5=\"\",\"\",2000-SUM(I9:I220)-I7)","v":588.41184062550701},477.96245678736773,382.71825932345496,302.45405236564534,248.95619670148585,252.24678261106305,null,{"$f":"IF(P5=\"\",\"\",2000-SUM(P9:P220)-P7)","v":557.96500174079324},447.51848272980101,352.27860942039456,272.01270163259414,218.51908697521299,252.24678261106305,null,{"$f":"IF(W5=\"\",\"\",2000-SUM(W9:W220)-W7)","v":527.52042309157355},417.07722148303151,321.83248438787291,241.56341991473255,188.08730030836568,252.24678261106305,null,{"$f":"IF(AD5=\"\",\"\",2000-SUM(AD9:AD220)-AD7)","v":497.07861851153996},386.63419407680158,291.37928614980115,211.13630672674685,157.83118610863608,252.24678261106305,null,{"$f":"IF(AK5=\"\",\"\",2000-SUM(AK9:AK220)-AK7)","v":466.6562772982727},356.19087945355091,260.94713927216981,180.86029788973087,127.61941145648643,252.24678261106305,null,{"$f":"IF(AR5=\"\",\"\",2000-SUM(AR9:AR220)-AR7)","v":436.20468140715082},325.74772309907405,230.55448676744959,150.647931296877,97.410824840612349,252.24678261106305]
[{"$f":"Nutrients!B8","v":"Corn"}]
[{"$f":"Nutrients!B9","v":"Milo"}]
[{"$f":"Nutrients!B10","v":"Alfalfa Meal"}]
[{"$f":"Nutrients!B11","v":"Bakery Meal"}]
[{"$f":"Nutrients!B12","v":"Barley"}]
[{"$f":"Nutrients!B13","v":"Barley, Hulless"}]
[{"$f":"Nutrients!B14","v":"Beans, Faba"}]
[{"$f":"Nutrients!B15","v":"Blood Meal"}]
[{"$f":"Nutrients!B16","v":"Blood Plasma"}]
[{"$f":"Nutrients!B17","v":"Brewers Grain"}]
[{"$f":"Nutrients!B18","v":"Canola, Full Fat"}]
[{"$f":"Nutrients!B19","v":"Canola Meal, Expelled"}]
[{"$f":"Nutrients!B20","v":"Canola Meal, Solvent Extracted"}]
[{"$f":"Nutrients!B21","v":"Casava Meal"}]
[{"$f":"Nutrients!B22","v":"Citrus Pulp"}]
[{"$f":"Nutrients!B23","v":"Copra Meal"}]
[{"$f":"Nutrients!B24","v":"Corn, Yellow Dent"}]
[{"$f":"Nutrients!B25","v":"Corn, Nutridense"}]
[{"$f":"Nutrients!B26","v":"Corn Bran"}]
[{"$f":"Nutrients!B27","v":"Corn DDG"}]
[{"$f":"Nutrients!B28","v":"Corn DDGS, >10% Oil"}]
[{"$f":"Nutrients!B29","v":"Corn DDGS, >6 and <9% Oil"}]
[{"$f":"Nutrients!B30","v":"Corn DDGS, <4% Oil"}]
[{"$f":"Nutrients!B31","v":"Corn HP DDG"}]
[{"$f":"Nutrients!B32","v":"Corn Germ"}]
[{"$f":"Nutrients!B33","v":"Corn Germ Meal"}]
[{"$f":"Nutrients!B34","v":"Corn Gluten Feed"}]
[{"$f":"Nutrients!B35","v":"Corn Gluten Meal"}]
[{"$f":"Nutrients!B36","v":"Corn Grits, Hominy Feed"}]
[{"$f":"Nutrients!B37","v":"Cotton Seeds, Fullfat"}]
[{"$f":"Nutrients!B38","v":"Cotton Seed Meal"}]
[{"$f":"Nutrients!B39","v":"Feather Meal"}]
[{"$f":"Nutrients!B40","v":"Fish Meal Combined"}]
[{"$f":"Nutrients!B41","v":"Flaxseed"}]
[{"$f":"Nutrients!B42","v":"Flaxseed Meal"}]
[{"$f":"Nutrients!B43","v":"Lupins"}]
[{"$f":"Nutrients!B44","v":"Meat Meal"}]
[{"$f":"Nutrients!B45","v":"Meat and Bone Meal, P >4%"}]
[{"$f":"Nutrients!B46","v":"Milk, Casein"}]
[{"$f":"Nutrients!B47","v":"Milk, Lactose"}]
[{"$f":"Nutrients!B48","v":"Milk, Skim Milk Powder"}]
[{"$f":"Nutrients!B49","v":"Milk, Whey Powder"}]
[{"$f":"Nutrients!B50","v":"Milk, Whey Permeate, 80% lactose"}]
[{"$f":"Nutrients!B51","v":"Milk, Whey Protein Concentrate"}]
[{"$f":"Nutrients!B52","v":"Millet"}]
[{"$f":"Nutrients!B53","v":"Molasses, Sugarbeet"}]
[{"$f":"Nutrients!B54","v":"Molasses, Sugarcane"}]
[{"$f":"Nutrients!B55","v":"Oats"}]
[{"$f":"Nutrients!B56","v":"Oats, Naked"}]
[{"$f":"Nutrients!B57","v":"Oat Groats"}]
[{"$f":"Nutrients!B58","v":"Peanut Meal, Expelled"}]
[{"$f":"Nutrients!B59","v":"Peanut Meal, Extracted"}]
[{"$f":"Nutrients!B60","v":"Peas, Field Peas"}]
[{"$f":"Nutrients!B61","v":"Pea Protein Concentrate"}]
[{"$f":"Nutrients!B62","v":"Potato Protein Concentrate"}]
[{"$f":"Nutrients!B63","v":"Poultry Byproduct"}]
[{"$f":"Nutrients!B64","v":"Rice"}]
[{"$f":"Nutrients!B65","v":"Rice Bran"}]
[{"$f":"Nutrients!B66","v":"Rice Bran, Defatted"}]
[{"$f":"Nutrients!B67","v":"Rice, Broken"}]
[{"$f":"Nutrients!B68","v":"Rye"}]
[{"$f":"Nutrients!B69","v":"Sesame Meal"}]
[{"$f":"Nutrients!B70","v":"Sorghum"}]
[{"$f":"Nutrients!B71","v":"Soybeans, Full Fat"}]
[{"$f":"Nutrients!B72","v":"Soybeans, High Protein, Full Fat"}]
[{"$f":"Nutrients!B73","v":"Soybeans, Low Oligosaccharide, Full Fat"}]
[{"$f":"Nutrients!B74","v":"Soybean Meal, High Protein, Expelled"}]
[{"$f":"Nutrients!B75","v":"Soybean Meal, Low Oligosacch, Expell"}]
[{"$f":"Nutrients!B76","v":"Soybean Meal, Expelled"}]
[{"$f":"Nutrients!B77","v":"Soybean Meal, Dehulled, Expelled"}]
[{"$f":"Nutrients!B78","v":"Soybean Meal, Solvent Extracted"}]
[{"$f":"Nutrients!B79","v":"Soybean Meal, Dehull, Sol Extr"}]
[{"$f":"Nutrients!B80","v":"Soybean Meal, High Prot, Dehull, Solv Extr"}]
[{"$f":"Nutrients!B81","v":"Soybean Meal, Enzyme Treated"}]
[{"$f":"Nutrients!B82","v":"Soybean Meal, Fermented"}]
[{"$f":"Nutrients!B83","v":"Soybean Hulls"}]
[{"$f":"Nutrients!B84","v":"Soy Protein Concentrate"}]
[{"$f":"Nutrients!B85","v":"Soy Protein Isolate"}]
[{"$f":"Nutrients!B86","v":"Sugar Beet Pulp"}]
[{"$f":"Nutrients!B87","v":"Sunflower, Full Fat"}]
[{"$f":"Nutrients!B88","v":"Sunflower Meal, Solvent Extracted"}]
[{"$f":"Nutrients!B89","v":"Sunflower Meal, Dehulled, Solvent Extr"}]
[{"$f":"Nutrients!B90","v":"Triticale"}]
[{"$f":"Nutrients!B91","v":"Wheat, Hard Red"}]
[{"$f":"Nutrients!B92","v":"Wheat, Soft Red"}]
[{"$f":"Nutrients!B93","v":"Wheat Bran"}]
[{"$f":"Nutrients!B94","v":"Wheat Middlings"}]
[{"$f":"Nutrients!B95","v":"Wheat Shorts"}]
[{"$f":"Nutrients!B96","v":"Wheat DDGS"}]
[{"$f":"Nutrients!B97","v":"Yeast, Brewers' Yeast"}]
[{"$f":"Nutrients!B98","v":"Yeast, Single Cell Protein"}]
[{"$f":"Nutrients!B99","v":"Beef Tallow"}]
[{"$f":"Nutrients!B100","v":"Choice White Grease"},null,null,null,null,null,null,null,{"$f":"IF('GF diets No L-Val'!B250-'GF diets No L-Val'!I250<0,0,'GF diets No L-Val'!B250-'GF diets No L-Val'!I250+0.1)","v":9.4602533844016303},{"$f":"IF('GF diets No L-Val'!C250-'GF diets No L-Val'!J250<0,0,'GF diets No L-Val'!C250-'GF diets No L-Val'!J250+0.1)","v":9.5557270193424753},{"$f":"IF('GF diets No L-Val'!D250-'GF diets No L-Val'!K250<0,0,'GF diets No L-Val'!D250-'GF diets No L-Val'!K250+0.1)","v":9.620277963423268},{"$f":"IF('GF diets No L-Val'!E250-'GF diets No L-Val'!L250<0,0,('GF diets No L-Val'!E250-'GF diets No L-Val'!L250)+0.1)","v":9.4051479682508212},{"$f":"IF('GF diets No L-Val'!F250-'GF diets No L-Val'!M250<0,0,'GF diets No L-Val'!F250-'GF diets No L-Val'!M250+0.1)","v":9.4839750483116401},null,null,{"$f":"IF('GF diets No L-Val'!B250-'GF diets No L-Val'!P250<0,0,'GF diets No L-Val'!B250-'GF diets No L-Val'!P250+0.2)","v":19.036538983225636},{"$f":"IF('GF diets No L-Val'!C250-'GF diets No L-Val'!Q250<0,0,'GF diets No L-Val'!C250-'GF diets No L-Val'!Q250+0.2)","v":19.169942929591752},{"$f":"IF('GF diets No L-Val'!D250-'GF diets No L-Val'!R250<0,0,'GF diets No L-Val'!D250-'GF diets No L-Val'!R250+0.2)","v":19.291745679336099},{"$f":"IF('GF diets No L-Val'!E250-'GF diets No L-Val'!S250<0,0,'GF diets No L-Val'!E250-'GF diets No L-Val'!S250+0.2)","v":19.054096695084535},{"$f":"IF('GF diets No L-Val'!F250-'GF diets No L-Val'!T250<0,0,'GF diets No L-Val'!F250-'GF diets No L-Val'!T250+0.2)","v":19.11541741259175},null,null,{"$f":"IF('GF diets No L-Val'!B250-'GF diets No L-Val'!W250<0,0,'GF diets No L-Val'!B250-'GF diets No L-Val'!W250+0.35)","v":28.642750099989463},{"$f":"IF('GF diets No L-Val'!C250-'GF diets No L-Val'!X250<0,0,'GF diets No L-Val'!C250-'GF diets No L-Val'!X250+0.35)","v":28.820076454797892},{"$f":"IF('GF diets No L-Val'!D250-'GF diets No L-Val'!Y250<0,0,'GF diets No L-Val'!D250-'GF diets No L-Val'!Y250+0.35)","v":28.917482681183266},{"$f":"IF('GF diets No L-Val'!E250-'GF diets No L-Val'!Z250<0,0,'GF diets No L-Val'!E250-'GF diets No L-Val'!Z250+0.35)","v":28.727284518841863},{"$f":"IF('GF diets No L-Val'!F250-'GF diets No L-Val'!AA250<0,0,'GF diets No L-Val'!F250-'GF diets No L-Val'!AA250+0.35)","v":28.760994375963811},null,null,{"$f":"IF('GF diets No L-Val'!B250-'GF diets No L-Val'!AD250<0,0,'GF diets No L-Val'!B250-'GF diets No L-Val'!AD250+0.55)","v":38.305689892777124},{"$f":"IF('GF diets No L-Val'!C250-'GF diets No L-Val'!AE250<0,0,'GF diets No L-Val'!C250-'GF diets No L-Val'!AE250+0.55)","v":38.466826028744023},{"$f":"IF('GF diets No L-Val'!D250-'GF diets No L-Val'!AF250<0,0,'GF diets No L-Val'!D250-'GF diets No L-Val'!AF250+0.55)","v":38.634544140625891},{"$f":"IF('GF diets No L-Val'!E250-'GF diets No L-Val'!AG250<0,0,'GF diets No L-Val'!E250-'GF diets No L-Val'!AG250+0.55)","v":38.414738342346297},{"$f":"IF('GF diets No L-Val'!F250-'GF diets No L-Val'!AH250<0,0,'GF diets No L-Val'!F250-'GF diets No L-Val'!AH250+0.55)","v":39.145763216081193},null,null,{"$f":"IF('GF diets No L-Val'!B250-'GF diets No L-Val'!AK250<0,0,'GF diets No L-Val'!B250-'GF diets No L-Val'!AK250+0.75)","v":48.236324661551635},{"$f":"IF('GF diets No L-Val'!C250-'GF diets No L-Val'!AL250<0,0,'GF diets No L-Val'!C250-'GF diets No L-Val'!AL250+0.75)","v":48.119772849337778},{"$f":"IF('GF diets No L-Val'!D250-'GF diets No L-Val'!AM250<0,0,'GF diets No L-Val'!D250-'GF diets No L-Val'!AM250+0.75)","v":48.26535191321841},{"$f":"IF('GF diets No L-Val'!E250-'GF diets No L-Val'!AN250<0,0,'GF diets No L-Val'!E250-'GF diets No L-Val'!AN250+0.75)","v":48.609905153929503},{"$f":"IF('GF diets No L-Val'!F250-'GF diets No L-Val'!AO250<0,0,'GF diets No L-Val'!F250-'GF diets No L-Val'!AO250+0.75)","v":49.858848343582167},null,null,{"$f":"IF('GF diets No L-Val'!B250-'GF diets No L-Val'!AR250<0,0,'GF diets No L-Val'!B250-'GF diets No L-Val'!AR250+0.95)","v":57.789937901385159},{"$f":"IF('GF diets No L-Val'!C250-'GF diets No L-Val'!AS250<0,0,'GF diets No L-Val'!C250-'GF diets No L-Val'!AS250+0.95)","v":57.785124085120017},{"$f":"IF('GF diets No L-Val'!D250-'GF diets No L-Val'!AT250<0,0,'GF diets No L-Val'!D250-'GF diets No L-Val'!AT250+0.95)","v":57.924810335123269},{"$f":"IF('GF diets No L-Val'!E250-'GF diets No L-Val'!AU250<0,0,'GF diets No L-Val'!E250-'GF diets No L-Val'!AU250+0.95)","v":59.307625382842119},{"$f":"IF('GF diets No L-Val'!F250-'GF diets No L-Val'!AV250<0,0,'GF diets No L-Val'!F250-'GF diets No L-Val'!AV250+0.95)","v":60.576352630714339}]
[{"$f":"Nutrients!B101","v":"Poultry Fat"}]
[{"$f":"Nutrients!B102","v":"Lard"}]
[{"$f":"Nutrients!B103","v":"Restaurant Grease"}]
[{"$f":"Nutrients!B104","v":"Canola oil"}]
[{"$f":"Nutrients!B105","v":"Coconut oil"}]
[{"$f":"Nutrients!B106","v":"Corn oil"}]
[{"$f":"Nutrients!B107","v":"Palm Kernel oil"}]
[{"$f":"Nutrients!B108","v":"Soybean oil"}]
[{"$f":"Nutrients!B109","v":"Soybean Lecithin"}]
[{"$f":"Nutrients!B110","v":"Sunflower oil"}]
[{"$f":"Nutrients!B111","v":"Fat, A/V blend"}]
["Calcium carbonate",20.650850091543401,19.206,19.148185418768257,18.64855351548341,18.080501293847359,17.747857076024747,null,21.302725380416337,19.896000000000001,19.772727630525221,19.192483222547349,18.682939713542989,17.747857076024747,null,21.952725380416336,20.545999999999999,20.42272763052522,19.842483222547347,19.332939713542988,17.747857076024747,null,22.602725380416334,21.195999999999998,21.032727630525219,20.452483222547347,19.942939713542987,17.747857076024747,null,23.232725380416333,21.825999999999997,21.662727630525218,21.082483222547346,21.038695410430403,17.747857076024747,null,23.852725380416334,22.445999999999998,22.282727630525219,22.156361600374847,22.197353735767237,17.747857076024747,null,24.502725380416333,23.095999999999997,23.082598294113691,23.327669657947101,23.35587162149066,17.747857076024747]
[{"$f":"Nutrients!B113","v":"Calcium phosphate (tricalcium)"}]
[{"$f":"Nutrients!B114","v":"Calcium phosphate (dicalcium)"}]
["Calcium phosphate (monocalcium)",13.279340186607511,10.560038663342741,7.7098828288906036,5.7362235571478868,4.249911842640179,3.6237362366975527,null,12.059340186607511,9.3400386633427406,6.2510586229279221,4.2192561688755807,2.8506400350413044,3.6237362366975527,null,10.73934018660751,8.0200386633427403,4.9310586229279219,2.8992561688755805,1.5306400350413043,3.6237362366975527,null,9.4193401866075099,6.70003866334274,3.6110586229279216,1.5792561688755804,0.21064003504130424,3.6237362366975527,null,8.0993401866075097,5.3800386633427397,2.2910586229279213,0.25925616887558034,null,3.6237362366975527,null,6.7793401866075094,4.0600386633427394,0.97105862292792122,null,null,3.6237362366975527,null,5.4593401866075091,2.7400386633427392,null,null,null,3.6237362366975527]
[{"$f":"Nutrients!B116","v":"Calcium sulfate, dihydrate"}]
[{"$f":"Nutrients!B117","v":"Limestone, ground"}]
[{"$f":"Nutrients!B118","v":"Magnesium phosphate"}]
[{"$f":"Nutrients!B119","v":"Sodium carbonate"}]
[{"$f":"Nutrients!B120","v":"Sodium bicarbonate"}]
[{"$f":"Nutrients!B121","v":"Sodium chloride"},7,7,7,7,7,7,null,7,7,7,7,7,7,null,7,7,7,7,7,7,null,7,7,7,7,7,7,null,7,7,7,7,7,7,null,7,7,7,7,7,7,null,7,7,7,7,7,7]
[{"$f":"Nutrients!B122","v":"Sodium phosphate, monobasic"}]
[{"$f":"Nutrients!B123","v":"Sodium sulfate, decahydrate"}]
[{"$f":"Nutrients!B124","v":"L-Lys-HCl"},6.3084820001521269,6.2433597724335907,6.1008877821794973,6.0262980797710428,5.9214818115557355,5.7904970568511782,null,6.8584820001521267,6.7933597724335906,6.6508877821794972,6.5762980797710426,6.4714818115557353,5.7904970568511782,null,7.4084820001521265,7.3433597724335904,7.200887782179497,7.1262980797710425,7.0214818115557351,5.7904970568511782,null,7.9584820001521264,7.8933597724335902,7.7508877821794968,7.6762980797710423,7.571481811555735,5.7904970568511782,null,8.5084820001521262,8.44335977243359,8.3008877821794975,8.226298079771043,8.1214818115557357,5.7904970568511782,null,9.0584820001521269,8.9933597724335907,8.8508877821794982,8.7762980797710437,8.6714818115557364,5.7904970568511782,null,9.6084820001521276,9.5433597724335915,9.4008877821794989,9.3262980797710444,9.2214818115557371,5.7904970568511782]
["DL-Met",2.0001072741250949,1.4142932363875236,0.86934747110785748,0.597281406401727,0.26418732884583351,0.20625243191767928,null,1.8342608514165972,1.2477804087720765,0.70263072167985541,0.42924533581749902,9.6342707698536839E-2,0.20625243191767928,null,1.6642608514165973,1.0777804087720766,0.53263072167985537,0.25924533581749898,null,0.20625243191767928,null,1.4942608514165974,0.90778040877207655,0.36263072167985533,null,null,0.20625243191767928,null,1.3242608514165974,0.73778040877207651,null,null,null,0.20625243191767928,null,1.1542608514165975,0.56778040877207647,null,null,null,0.20625243191767928,null,0.98426085141659747,0.39778040877207643,null,null,null,0.20625243191767928]
["L-Thr",2.1021642542029664,1.8931061779303802,1.6694885978130205,1.6715266713984547,1.5185483019032111,1.5481920365803807,null,2.0421642542029663,1.8331061779303801,1.6094885978130204,1.6115266713984546,1.4585483019032111,1.5481920365803807,null,1.9821642542029663,1.7731061779303801,1.5494885978130204,1.5515266713984546,1.398548301903211,1.5481920365803807,null,1.9221642542029662,1.71310617793038,1.4894885978130203,1.4915266713984545,1.3385483019032109,1.5481920365803807,null,1.8621642542029662,1.6531061779303799,1.4294885978130203,1.4315266713984545,1.2785483019032109,1.5481920365803807,null,1.8021642542029661,1.5931061779303799,1.3694885978130202,1.3715266713984544,1.2185483019032108,1.5481920365803807,null,1.7421642542029661,1.5331061779303798,1.3094885978130202,1.3115266713984544,1.1585483019032108,1.5481920365803807]
["L-Trp",0.1583874364560095,0.24609320131494719,0.31506093551644743,0.36796670907097156,0.39910643007729607,0.40312635660152313,null,0.23838743645600952,0.32609320131494718,0.39506093551644744,0.44796670907097158,0.47910643007729609,0.40312635660152313,null,0.32838743645600954,0.4160932013149472,0.48506093551644747,0.53796670907097155,0.56910643007729611,0.40312635660152313,null,0.41838743645600951,0.50609320131494717,0.57506093551644744,0.62796670907097152,0.65910643007729608,0.40312635660152313,null,0.50838743645600948,0.59609320131494714,0.65271795811769306,0.71796670907097149,0.74070235612654567,0.40312635660152313,null,0.59838743645600945,0.68609320131494711,0.74271795811769303,0.79625311888019668,0.80749494125874588,0.40312635660152313,null,0.64807703060165656,0.73578426469247626,0.79816076548794745,0.85792357544318287,0.91221840666227716,0.40312635660152313]
[{"$f":"Nutrients!B128","v":"L-Val"}]
[{"$f":"Nutrients!B129","v":"L-Ile"}]
[{"$f":"Nutrients!B130","v":"Methionine hydroxy analog"}]
[{"$f":"Nutrients!B131","v":"Glutamine"}]
[{"$f":"Nutrients!B132","v":"Glutamic acid"}]
[{"$f":"Nutrients!B133","v":"Biolys"}]
[{"$f":"Nutrients!B134","v":"Liquid lysine 60%"}]
[{"$f":"Nutrients!B135","v":"MHA dry"}]
[{"$f":"Nutrients!B136","v":"Paylean, 9 g/lb"}]
[{"$f":"Nutrients!B137","v":"Tribasic copper chloride"}]
[{"$f":"Nutrients!B138","v":"2018 Starter base mix"}]
[{"$f":"Nutrients!B139","v":"2018 Grow-finish base mix"}]
[{"$f":"Nutrients!B140","v":"Developer base mix"}]
[{"$f":"Nutrients!B141","v":"2018 Sow base mix"}]
[{"$f":"Nutrients!B142","v":"Vitamin premix with phytase"}]
[{"$f":"Nutrients!B143","v":"Trace mineral premix"},3,3,2.5,2,1.5,1.5,null,3,3,2.5,2,1.5,1.5,null,3,3,2.5,2,1.5,1.5,null,3,3,2.5,2,1.5,1.5,null,3,3,2.5,2,1.5,1.5,null,3,3,2.5,2,1.5,1.5,null,3,3,2.5,2,1.5,1.5]
[{"$f":"Nutrients!B144","v":"Sow add pack"}]
[{"$f":"Nutrients!B145","v":"Vitamin premix without phytase"},3,3,2.5,2,1.5,1.5,null,3,3,2.5,2,1.5,1.5,null,3,3,2.5,2,1.5,1.5,null,3,3,2.5,2,1.5,1.5,null,3,3,2.5,2,1.5,1.5,null,3,3,2.5,2,1.5,1.5,null,3,3,2.5,2,1.5,1.5]
[{"$f":"Nutrients!B146","v":"GF DDGS Base Mix"}]
[{"$f":"Nutrients!B147","v":"GF synthetics Base Mix"}]
[{"$f":"Nutrients!B148","v":"Choline chloride 60%"}]
[{"$f":"Nutrients!B149","v":"Natuphos 600"}]
[{"$f":"Nutrients!B150","v":"Natuphos 1200"}]
[{"$f":"Nutrients!B151","v":"Optiphos 2000"}]
[{"$f":"Nutrients!B152","v":"Phyzyme 1200"}]
[{"$f":"Nutrients!B153","v":"Phyzyme 5000"}]
[{"$f":"Nutrients!B154","v":"Ronozyme Hiphos GT (10,000)"}]
[{"$f":"Nutrients!B155","v":"Ronozyme Hiphos M (50,000)"}]
[{"$f":"Nutrients!B156","v":"Ronozyme HiPhos 2700"},0.45,0.45,0.45,0.45,0.45,0.45,null,0.45,0.45,0.45,0.45,0.45,0.45,null,0.45,0.45,0.45,0.45,0.45,0.45,null,0.45,0.45,0.45,0.45,0.45,0.45,null,0.45,0.45,0.45,0.45,0.45,0.45,null,0.45,0.45,0.45,0.45,0.45,0.45,null,0.45,0.45,0.45,0.45,0.45,0.45]
[{"$f":"Nutrients!B157","v":"Zinc oxide"}]
[{"$f":"Nutrients!B158","v":"Copper sulfate"}]
[{"$f":"Nutrients!B159","v":"Potassium chloride"}]
[{"$f":"Nutrients!B160","v":"Calcium chloride"}]
[{"$f":"Nutrients!B161","v":"Acidifier"}]
[{"$f":"Nutrients!B162","v":"Vitamin E, 20,000 IU"}]
[{"$f":"Nutrients!B163","v":"Other ingredient"}]
[{"$f":"Nutrients!B164","v":"DPS 50"}]
[{"$f":"Nutrients!B165","v":"PEP2+"}]
[{"$f":"Nutrients!B166","v":"PEP NS"}]
[{"$f":"Nutrients!B167","v":"Vitamin premix (2x) with phytase"}]
[{"$f":"Nutrients!B168","v":"Vitamin premix (2x) without phytase"}]
[{"$f":"Nutrients!B169","v":"Corn DDGS, 10.5% Oil"}]
[{"$f":"Nutrients!B170","v":"Corn DDGS, 7.5% Oil"}]
[{"$f":"Nutrients!B171","v":"Corn DDGS, 4.5% Oil"}]
[{"$f":"Nutrients!B172","v":"MEPRO Hubbard"}]
[{"$f":"Nutrients!B173","v":"HP 300 Apr 2022 loadings"}]
[{"$f":"Nutrients!B174","v":"Glycine"}]
[{"$f":"Nutrients!B175","v":"Phase 2 supplement 2018"}]
[{"$f":"Nutrients!B176","v":"Fermex 200"}]
[{"$f":"Nutrients!B177","v":"Soybean meal with 88% NE of corn"}]
[{"$f":"Nutrients!B178","v":"Blue Dye NFP"}]
[{"$f":"Nutrients!B179","v":"HP 300 2022 NFP"}]
[{"$f":"Nutrients!B180","v":"AX3 Digest NFP"}]
[{"$f":"Nutrients!B181","v":"Phase 2 supplement 2018 NFP"}]
[{"$f":"Nutrients!B182","v":"Femex 200 NFP"}]
[{"$f":"Nutrients!B183","v":"NFP Soybean meal w/88% NE of corn "}]
[{"$f":"Nutrients!B184","v":"AV-E Digest NFP"}]
[{"$f":"Nutrients!B185","v":"QFP Cereal Blend NFP"}]
[{"$f":"Nutrients!B186","v":"FXP Ani-Tek NFP"}]
[{"$f":"Nutrients!B187","v":"NFP VTM Grower (2021)"}]
[{"$f":"Nutrients!B188","v":"NFP VTM Sow (2021)"}]
[{"$f":"Nutrients!B189","v":"VevoVitall NFP"}]
[{"$f":"Nutrients!B190","v":"MEPRO NFP"}]
[{"$f":"Nutrients!B191","v":"AlphaGal 280 P NFP"}]
[{"$f":"Nutrients!B192","v":"NFP Custom Manganese "}]
[{"$f":"Nutrients!B193","v":"Fat Build R2 All Veg 4000 NFP"}]
[{"$f":"Nutrients!B194","v":"LipoVital GL 90 NFP"}]
[{"$f":"Nutrients!B195","v":"NFP Custom Zinc"}]
[{"$f":"Nutrients!B196","v":"THRPRO-L Threonine 80% NFP"}]
[{"$f":"Nutrients!B197","v":"Copper Chloride Intellibond TBCC NFP"}]
[{"$f":"Nutrients!B198","v":"DDGS 7.5% Oil Green Plains NFP"}]
[{"$f":"Nutrients!B199","v":"NHF GF VTM 2#"}]
[{"$f":"Nutrients!B200","v":"Hubbard Vit Premix "}]
[{"$f":"Nutrients!B201","v":"Hubbard TMP"}]
[{"$f":"Nutrients!B202","v":"Inorganic Se 600 ppm Hubbard"}]
[{"$f":"Nutrients!B203","v":"Quantum Blue  5G Hubbard"}]
[{"$f":"Nutrients!B204","v":"TASA Prime meal Hubbard"}]
[{"$f":"Nutrients!B205","v":"TASA Swine Hubbard"}]
[{"$f":"Nutrients!B206","v":"TASA fish solubles Hubbard"}]
[{"$f":"Nutrients!B207","v":"Mepro + TASA additive Hubbard"}]
[{"$f":"Nutrients!B208","v":"TASA Prime + TASA additive Hubbard"}]
[{"$f":"Nutrients!B209","v":"NHF SOW VTM 4# 2022"}]
[{"$f":"Nutrients!B210","v":"ThrPro "}]
[{"$f":"Nutrients!B211","v":"NHF Optiphos Plus 2500 G"}]
[{"$f":"Nutrients!B212","v":"NHF Corn DDGS, Valero, Aurora"}]
[{"$f":"Nutrients!B213","v":"HP 300 Hubbard"}]
[{"$f":"Nutrients!B214","v":"NHF Corn DDGS, Illuminate for Aurora"}]
[{"$f":"Nutrients!B215","v":"NFP Corn DDGS, MO analysis"}]
[{"$f":"Nutrients!B216","v":"NFP Smizyme 2500"}]
[{"$f":"Nutrients!B217","v":"NHF HP300 2022 loadings"}]
[{"$f":"Nutrients!B218","v":"NHF Liquid Lys 55%"}]
[{"$f":"Nutrients!B219","v":"Corn DDGS with varying energy"},null,null,null,null,null,null,null,100,100,100,100,100,null,null,200,200,200,200,200,null,null,300,300,300,300,300,null,null,400,400,400,400,400,null,null,500,500,500,500,500,null,null,600,600,600,600,600]
[{"$f":"Nutrients!B220","v":"Other ingredient"}]
[{"$f":"Nutrients!B221","v":"Other ingredient"}]
[{"$f":"Nutrients!B222","v":"Other ingredient"}]
[{"$f":"Nutrients!B223","v":"Other ingredient"}]
[{"$f":"Nutrients!B224","v":"Other ingredient"}]
[{"$f":"Nutrients!B225","v":"Other ingredient"}]
[{"$f":"Nutrients!B226","v":"Other ingredient"}]
[{"$f":"Nutrients!B227","v":"Other ingredient"}]
[{"$f":"Nutrients!B228","v":"Other ingredient"}]
["TOTAL",{"$f":"SUM(B7:B229)","v":2000},2000,2000,2000,2000,1999.9999999999998,null,{"$f":"SUM(I7:I229)","v":1999.9999999999998},2000,2000.0000000000002,1999.9999999999998,2000,{"$f":"SUM(N7:N229)","v":1999.9999999999998},null,{"$f":"SUM(P7:P229)","v":2000},2000,2000,2000.0000000000002,2000.0000000000002,{"$f":"SUM(U7:U229)","v":1999.9999999999998},null,{"$f":"SUM(W7:W229)","v":2000},1999.9999999999998,1999.9999999999998,2000,2000,{"$f":"SUM(AB7:AB229)","v":1999.9999999999998},null,{"$f":"SUM(AD7:AD229)","v":1999.9999999999998},1999.9999999999998,2000,1999.9999999999998,1999.9999999999998,1999.9999999999998,null,{"$f":"SUM(AK7:AK229)","v":2000},2000,2000.0000000000002,2000.0000000000002,1999.9999999999998,1999.9999999999998,null,{"$f":"SUM(AR7:AR229)","v":2000},2000.0000000000005,2000,2000.0000000000002,2000.0000000000002,1999.9999999999998]
[]
["Required SID Lys:NE Ratio",{"$f":"  0.0000415*((B5+B6)/2)^2 - 0.0236*((B5+B6)/2) + 6.096","v":4.6920843750000003},4.1130093749999999,3.6054000000000004,3.1925999999999997,2.9125999999999999,2.7606093749999996,null,{"$f":"  0.0000415*((I5+I6)/2)^2 - 0.0236*((I5+I6)/2) + 6.096","v":4.6920843750000003},4.1130093749999999,3.6054000000000004,3.1925999999999997,2.9125999999999999,2.7606093749999996,null,{"$f":"  0.0000415*((P5+P6)/2)^2 - 0.0236*((P5+P6)/2) + 6.096","v":4.6920843750000003},4.1130093749999999,3.6054000000000004,3.1925999999999997,2.9125999999999999,2.7606093749999996,null,{"$f":"  0.0000415*((W5+W6)/2)^2 - 0.0236*((W5+W6)/2) + 6.096","v":4.6920843750000003},4.1130093749999999,3.6054000000000004,3.1925999999999997,2.9125999999999999,2.7606093749999996,null,{"$f":"  0.0000415*((AD5+AD6)/2)^2 - 0.0236*((AD5+AD6)/2) + 6.096","v":4.6920843750000003},4.1130093749999999,3.6054000000000004,3.1925999999999997,2.9125999999999999,2.7606093749999996,null,{"$f":"  0.0000415*((AK5+AK6)/2)^2 - 0.0236*((AK5+AK6)/2) + 6.096","v":4.6920843750000003},4.1130093749999999,3.6054000000000004,3.1925999999999997,2.9125999999999999,2.7606093749999996,null,{"$f":"  0.0000415*((AR5+AR6)/2)^2 - 0.0236*((AR5+AR6)/2) + 6.096","v":4.6920843750000003},4.1130093749999999,3.6054000000000004,3.1925999999999997,2.9125999999999999,2.7606093749999996]
["Calculated SID Lysine Required, %",{"$f":"IF(B232=\"\",\"\",B250*2.2046*B232/10000)","v":1.1871600863382354},1.0488451848987548,0.92572438073141317,0.8245835224120116,0.755458195622838,0.71736927197173905,null,{"$f":"IF(I232=\"\",\"\",I250*2.2046*I232/10000)","v":1.1868929212490253},1.0486771927133118,0.92577660455854782,0.82453604116359547,0.75539699821096873,0.71736927197173905,null,{"$f":"IF(P232=\"\",\"\",P250*2.2046*P232/10000)","v":1.1868149144022275},1.0486435780127812,0.92579313629429338,0.82453465914546487,0.75539985165640922,0.71736927197173905,null,{"$f":"IF(W232=\"\",\"\",W250*2.2046*W232/10000)","v":1.1867681973321411},1.048642883489501,0.92579233935054106,0.82454715722237903,0.75544780491577834,0.71736927197173905,null,{"$f":"IF(AD232=\"\",\"\",AD250*2.2046*AD232/10000)","v":1.1867934270536604},1.0486501603831129,0.92580046069087951,0.82462091832034234,0.755347588025712,0.71736927197173905,null,{"$f":"IF(AK232=\"\",\"\",AK250*2.2046*AK232/10000)","v":1.187104871528128},1.0486686538270873,0.92584310104345913,0.82440536810936849,0.75534871695340911,0.71736927197173905,null,{"$f":"IF(AR232=\"\",\"\",AR250*2.2046*AR232/10000)","v":1.1869834142405142},1.0486645999673345,0.92563911107529262,0.82438853097725295,0.75536430203013782,0.71736927197173905]
[]
["SID amino acids, %"]
["  Lys",1.1861119527718891,1.0487231011263827,0.92692570857780632,0.82606841929078001,0.75673053182615369,0.71839352504319809,null,1.1861119527718891,1.0487231011263827,0.92692570857780632,0.82606841929078001,0.75673053182615369,0.71839352504319809,null,1.1861119527718891,1.0487231011263827,0.92692570857780632,0.82606841929078001,0.75673053182615369,0.71839352504319809,null,1.1861119527718891,1.0487231011263827,0.92692570857780632,0.82606841929078001,0.75673053182615369,0.71839352504319809,null,1.1861119527718891,1.0487231011263827,0.92692570857780632,0.82606841929078001,0.75673053182615369,0.71839352504319809,null,1.1861119527718891,1.0487231011263827,0.92692570857780632,0.82606841929078001,0.75673053182615369,0.71839352504319809,null,1.1861119527718891,1.0487231011263827,0.92692570857780632,0.82606841929078001,0.75673053182615369,0.71839352504319809]
["  Ile:Lys",{"$f":"(SUMPRODUCT(B$9:B$229,Nutrients!$CY$8:$CY$228)+(IF($A$7=Nutrients!$B$8,Nutrients!$CY$8,Nutrients!$CY$9)*B$7)+(((IF($A$8=Nutrients!$B$79,Nutrients!$CY$79,(IF($A$8=Nutrients!$B$77,Nutrients!$CY$77,Nutrients!$CY$78)))))*B$8))/2000/B$236*100","v":62.49349603537744},{"$f":"(SUMPRODUCT(C$9:C$229,Nutrients!$CY$8:$CY$228)+(IF($A$7=Nutrients!$B$8,Nutrients!$CY$8,Nutrients!$CY$9)*C$7)+(((IF($A$8=Nutrients!$B$79,Nutrients!$CY$79,(IF($A$8=Nutrients!$B$77,Nutrients!$CY$77,Nutrients!$CY$78)))))*C$8))/2000/C$236*100","v":61.913365044093091},{"$f":"(SUMPRODUCT(D$9:D$229,Nutrients!$CY$8:$CY$228)+(IF($A$7=Nutrients!$B$8,Nutrients!$CY$8,Nutrients!$CY$9)*D$7)+(((IF($A$8=Nutrients!$B$79,Nutrients!$CY$79,(IF($A$8=Nutrients!$B$77,Nutrients!$CY$77,Nutrients!$CY$78)))))*D$8))/2000/D$236*100","v":61.503659114241785},{"$f":"(SUMPRODUCT(E$9:E$229,Nutrients!$CY$8:$CY$228)+(IF($A$7=Nutrients!$B$8,Nutrients!$CY$8,Nutrients!$CY$9)*E$7)+(((IF($A$8=Nutrients!$B$79,Nutrients!$CY$79,(IF($A$8=Nutrients!$B$77,Nutrients!$CY$77,Nutrients!$CY$78)))))*E$8))/2000/E$236*100","v":60.930382267932259},{"$f":"(SUMPRODUCT(F$9:F$229,Nutrients!$CY$8:$CY$228)+(IF($A$7=Nutrients!$B$8,Nutrients!$CY$8,Nutrients!$CY$9)*F$7)+(((IF($A$8=Nutrients!$B$79,Nutrients!$CY$79,(IF($A$8=Nutrients!$B$77,Nutrients!$CY$77,Nutrients!$CY$78)))))*F$8))/2000/F$236*100","v":60.645226830458597},{"$f":"(SUMPRODUCT(G$9:G$229,Nutrients!$CY$8:$CY$228)+(IF($A$7=Nutrients!$B$8,Nutrients!$CY$8,Nutrients!$CY$9)*G$7)+(((IF($A$8=Nutrients!$B$79,Nutrients!$CY$79,(IF($A$8=Nutrients!$B$77,Nutrients!$CY$77,Nutrients!$CY$78)))))*G$8))/2000/G$236*100","v":60.73149438608624},null,{"$f":"(SUMPRODUCT(I$9:I$229,Nutrients!$CY$8:$CY$228)+(IF($A$7=Nutrients!$B$8,Nutrients!$CY$8,Nutrients!$CY$9)*I$7)+(((IF($A$8=Nutrients!$B$79,Nutrients!$CY$79,(IF($A$8=Nutrients!$B$77,Nutrients!$CY$77,Nutrients!$CY$78)))))*I$8))/2000/I$236*100","v":62.411909631700603},{"$f":"(SUMPRODUCT(J$9:J$229,Nutrients!$CY$8:$CY$228)+(IF($A$7=Nutrients!$B$8,Nutrients!$CY$8,Nutrients!$CY$9)*J$7)+(((IF($A$8=Nutrients!$B$79,Nutrients!$CY$79,(IF($A$8=Nutrients!$B$77,Nutrients!$CY$77,Nutrients!$CY$78)))))*J$8))/2000/J$236*100","v":61.820436984860329},{"$f":"(SUMPRODUCT(K$9:K$229,Nutrients!$CY$8:$CY$228)+(IF($A$7=Nutrients!$B$8,Nutrients!$CY$8,Nutrients!$CY$9)*K$7)+(((IF($A$8=Nutrients!$B$79,Nutrients!$CY$79,(IF($A$8=Nutrients!$B$77,Nutrients!$CY$77,Nutrients!$CY$78)))))*K$8))/2000/K$236*100","v":61.399854609044311},{"$f":"(SUMPRODUCT(L$9:L$229,Nutrients!$CY$8:$CY$228)+(IF($A$7=Nutrients!$B$8,Nutrients!$CY$8,Nutrients!$CY$9)*L$7)+(((IF($A$8=Nutrients!$B$79,Nutrients!$CY$79,(IF($A$8=Nutrients!$B$77,Nutrients!$CY$77,Nutrients!$CY$78)))))*L$8))/2000/L$236*100","v":60.816120339580351},{"$f":"(SUMPRODUCT(M$9:M$229,Nutrients!$CY$8:$CY$228)+(IF($A$7=Nutrients!$B$8,Nutrients!$CY$8,Nutrients!$CY$9)*M$7)+(((IF($A$8=Nutrients!$B$79,Nutrients!$CY$79,(IF($A$8=Nutrients!$B$77,Nutrients!$CY$77,Nutrients!$CY$78)))))*M$8))/2000/M$236*100","v":60.518756831920541},{"$f":"(SUMPRODUCT(N$9:N$229,Nutrients!$CY$8:$CY$228)+(IF($A$7=Nutrients!$B$8,Nutrients!$CY$8,Nutrients!$CY$9)*N$7)+(((IF($A$8=Nutrients!$B$79,Nutrients!$CY$79,(IF($A$8=Nutrients!$B$77,Nutrients!$CY$77,Nutrients!$CY$78)))))*N$8))/2000/N$236*100","v":60.73149438608624},null,{"$f":"(SUMPRODUCT(P$9:P$229,Nutrients!$CY$8:$CY$228)+(IF($A$7=Nutrients!$B$8,Nutrients!$CY$8,Nutrients!$CY$9)*P$7)+(((IF($A$8=Nutrients!$B$79,Nutrients!$CY$79,(IF($A$8=Nutrients!$B$77,Nutrients!$CY$77,Nutrients!$CY$78)))))*P$8))/2000/P$236*100","v":62.330236299733166},{"$f":"(SUMPRODUCT(Q$9:Q$229,Nutrients!$CY$8:$CY$228)+(IF($A$7=Nutrients!$B$8,Nutrients!$CY$8,Nutrients!$CY$9)*Q$7)+(((IF($A$8=Nutrients!$B$79,Nutrients!$CY$79,(IF($A$8=Nutrients!$B$77,Nutrients!$CY$77,Nutrients!$CY$78)))))*Q$8))/2000/Q$236*100","v":61.727877541984874},{"$f":"(SUMPRODUCT(R$9:R$229,Nutrients!$CY$8:$CY$228)+(IF($A$7=Nutrients!$B$8,Nutrients!$CY$8,Nutrients!$CY$9)*R$7)+(((IF($A$8=Nutrients!$B$79,Nutrients!$CY$79,(IF($A$8=Nutrients!$B$77,Nutrients!$CY$77,Nutrients!$CY$78)))))*R$8))/2000/R$236*100","v":61.294814552587809},{"$f":"(SUMPRODUCT(S$9:S$229,Nutrients!$CY$8:$CY$228)+(IF($A$7=Nutrients!$B$8,Nutrients!$CY$8,Nutrients!$CY$9)*S$7)+(((IF($A$8=Nutrients!$B$79,Nutrients!$CY$79,(IF($A$8=Nutrients!$B$77,Nutrients!$CY$77,Nutrients!$CY$78)))))*S$8))/2000/S$236*100","v":60.698396125694309},{"$f":"(SUMPRODUCT(T$9:T$229,Nutrients!$CY$8:$CY$228)+(IF($A$7=Nutrients!$B$8,Nutrients!$CY$8,Nutrients!$CY$9)*T$7)+(((IF($A$8=Nutrients!$B$79,Nutrients!$CY$79,(IF($A$8=Nutrients!$B$77,Nutrients!$CY$77,Nutrients!$CY$78)))))*T$8))/2000/T$236*100","v":60.389863283251991},{"$f":"(SUMPRODUCT(U$9:U$229,Nutrients!$CY$8:$CY$228)+(IF($A$7=Nutrients!$B$8,Nutrients!$CY$8,Nutrients!$CY$9)*U$7)+(((IF($A$8=Nutrients!$B$79,Nutrients!$CY$79,(IF($A$8=Nutrients!$B$77,Nutrients!$CY$77,Nutrients!$CY$78)))))*U$8))/2000/U$236*100","v":60.73149438608624},null,{"$f":"(SUMPRODUCT(W$9:W$229,Nutrients!$CY$8:$CY$228)+(IF($A$7=Nutrients!$B$8,Nutrients!$CY$8,Nutrients!$CY$9)*W$7)+(((IF($A$8=Nutrients!$B$79,Nutrients!$CY$79,(IF($A$8=Nutrients!$B$77,Nutrients!$CY$77,Nutrients!$CY$78)))))*W$8))/2000/W$236*100","v":62.248432920831334},{"$f":"(SUMPRODUCT(X$9:X$229,Nutrients!$CY$8:$CY$228)+(IF($A$7=Nutrients!$B$8,Nutrients!$CY$8,Nutrients!$CY$9)*X$7)+(((IF($A$8=Nutrients!$B$79,Nutrients!$CY$79,(IF($A$8=Nutrients!$B$77,Nutrients!$CY$77,Nutrients!$CY$78)))))*X$8))/2000/X$236*100","v":61.635141564125838},{"$f":"(SUMPRODUCT(Y$9:Y$229,Nutrients!$CY$8:$CY$228)+(IF($A$7=Nutrients!$B$8,Nutrients!$CY$8,Nutrients!$CY$9)*Y$7)+(((IF($A$8=Nutrients!$B$79,Nutrients!$CY$79,(IF($A$8=Nutrients!$B$77,Nutrients!$CY$77,Nutrients!$CY$78)))))*Y$8))/2000/Y$236*100","v":61.190251229596591},{"$f":"(SUMPRODUCT(Z$9:Z$229,Nutrients!$CY$8:$CY$228)+(IF($A$7=Nutrients!$B$8,Nutrients!$CY$8,Nutrients!$CY$9)*Z$7)+(((IF($A$8=Nutrients!$B$79,Nutrients!$CY$79,(IF($A$8=Nutrients!$B$77,Nutrients!$CY$77,Nutrients!$CY$78)))))*Z$8))/2000/Z$236*100","v":60.58132712587043},{"$f":"(SUMPRODUCT(AA$9:AA$229,Nutrients!$CY$8:$CY$228)+(IF($A$7=Nutrients!$B$8,Nutrients!$CY$8,Nutrients!$CY$9)*AA$7)+(((IF($A$8=Nutrients!$B$79,Nutrients!$CY$79,(IF($A$8=Nutrients!$B$77,Nutrients!$CY$77,Nutrients!$CY$78)))))*AA$8))/2000/AA$236*100","v":60.26048967828892},{"$f":"(SUMPRODUCT(AB$9:AB$229,Nutrients!$CY$8:$CY$228)+(IF($A$7=Nutrients!$B$8,Nutrients!$CY$8,Nutrients!$CY$9)*AB$7)+(((IF($A$8=Nutrients!$B$79,Nutrients!$CY$79,(IF($A$8=Nutrients!$B$77,Nutrients!$CY$77,Nutrients!$CY$78)))))*AB$8))/2000/AB$236*100","v":60.73149438608624},null,{"$f":"(SUMPRODUCT(AD$9:AD$229,Nutrients!$CY$8:$CY$228)+(IF($A$7=Nutrients!$B$8,Nutrients!$CY$8,Nutrients!$CY$9)*AD$7)+(((IF($A$8=Nutrients!$B$79,Nutrients!$CY$79,(IF($A$8=Nutrients!$B$77,Nutrients!$CY$77,Nutrients!$CY$78)))))*AD$8))/2000/AD$236*100","v":62.166469930599398},{"$f":"(SUMPRODUCT(AE$9:AE$229,Nutrients!$CY$8:$CY$228)+(IF($A$7=Nutrients!$B$8,Nutrients!$CY$8,Nutrients!$CY$9)*AE$7)+(((IF($A$8=Nutrients!$B$79,Nutrients!$CY$79,(IF($A$8=Nutrients!$B$77,Nutrients!$CY$77,Nutrients!$CY$78)))))*AE$8))/2000/AE$236*100","v":61.542520518326114},{"$f":"(SUMPRODUCT(AF$9:AF$229,Nutrients!$CY$8:$CY$228)+(IF($A$7=Nutrients!$B$8,Nutrients!$CY$8,Nutrients!$CY$9)*AF$7)+(((IF($A$8=Nutrients!$B$79,Nutrients!$CY$79,(IF($A$8=Nutrients!$B$77,Nutrients!$CY$77,Nutrients!$CY$78)))))*AF$8))/2000/AF$236*100","v":61.086208673612852},{"$f":"(SUMPRODUCT(AG$9:AG$229,Nutrients!$CY$8:$CY$228)+(IF($A$7=Nutrients!$B$8,Nutrients!$CY$8,Nutrients!$CY$9)*AG$7)+(((IF($A$8=Nutrients!$B$79,Nutrients!$CY$79,(IF($A$8=Nutrients!$B$77,Nutrients!$CY$77,Nutrients!$CY$78)))))*AG$8))/2000/AG$236*100","v":60.462426684824713},{"$f":"(SUMPRODUCT(AH$9:AH$229,Nutrients!$CY$8:$CY$228)+(IF($A$7=Nutrients!$B$8,Nutrients!$CY$8,Nutrients!$CY$9)*AH$7)+(((IF($A$8=Nutrients!$B$79,Nutrients!$CY$79,(IF($A$8=Nutrients!$B$77,Nutrients!$CY$77,Nutrients!$CY$78)))))*AH$8))/2000/AH$236*100","v":60.115273177937389},{"$f":"(SUMPRODUCT(AI$9:AI$229,Nutrients!$CY$8:$CY$228)+(IF($A$7=Nutrients!$B$8,Nutrients!$CY$8,Nutrients!$CY$9)*AI$7)+(((IF($A$8=Nutrients!$B$79,Nutrients!$CY$79,(IF($A$8=Nutrients!$B$77,Nutrients!$CY$77,Nutrients!$CY$78)))))*AI$8))/2000/AI$236*100","v":60.73149438608624},null,{"$f":"(SUMPRODUCT(AK$9:AK$229,Nutrients!$CY$8:$CY$228)+(IF($A$7=Nutrients!$B$8,Nutrients!$CY$8,Nutrients!$CY$9)*AK$7)+(((IF($A$8=Nutrients!$B$79,Nutrients!$CY$79,(IF($A$8=Nutrients!$B$77,Nutrients!$CY$77,Nutrients!$CY$78)))))*AK$8))/2000/AK$236*100","v":62.083387078659193},{"$f":"(SUMPRODUCT(AL$9:AL$229,Nutrients!$CY$8:$CY$228)+(IF($A$7=Nutrients!$B$8,Nutrients!$CY$8,Nutrients!$CY$9)*AL$7)+(((IF($A$8=Nutrients!$B$79,Nutrients!$CY$79,(IF($A$8=Nutrients!$B$77,Nutrients!$CY$77,Nutrients!$CY$78)))))*AL$8))/2000/AL$236*100","v":61.449918163049169},{"$f":"(SUMPRODUCT(AM$9:AM$229,Nutrients!$CY$8:$CY$228)+(IF($A$7=Nutrients!$B$8,Nutrients!$CY$8,Nutrients!$CY$9)*AM$7)+(((IF($A$8=Nutrients!$B$79,Nutrients!$CY$79,(IF($A$8=Nutrients!$B$77,Nutrients!$CY$77,Nutrients!$CY$78)))))*AM$8))/2000/AM$236*100","v":60.980616204523628},{"$f":"(SUMPRODUCT(AN$9:AN$229,Nutrients!$CY$8:$CY$228)+(IF($A$7=Nutrients!$B$8,Nutrients!$CY$8,Nutrients!$CY$9)*AN$7)+(((IF($A$8=Nutrients!$B$79,Nutrients!$CY$79,(IF($A$8=Nutrients!$B$77,Nutrients!$CY$77,Nutrients!$CY$78)))))*AN$8))/2000/AN$236*100","v":60.331042838758265},{"$f":"(SUMPRODUCT(AO$9:AO$229,Nutrients!$CY$8:$CY$228)+(IF($A$7=Nutrients!$B$8,Nutrients!$CY$8,Nutrients!$CY$9)*AO$7)+(((IF($A$8=Nutrients!$B$79,Nutrients!$CY$79,(IF($A$8=Nutrients!$B$77,Nutrients!$CY$77,Nutrients!$CY$78)))))*AO$8))/2000/AO$236*100","v":59.966057947304449},{"$f":"(SUMPRODUCT(AP$9:AP$229,Nutrients!$CY$8:$CY$228)+(IF($A$7=Nutrients!$B$8,Nutrients!$CY$8,Nutrients!$CY$9)*AP$7)+(((IF($A$8=Nutrients!$B$79,Nutrients!$CY$79,(IF($A$8=Nutrients!$B$77,Nutrients!$CY$77,Nutrients!$CY$78)))))*AP$8))/2000/AP$236*100","v":60.73149438608624},null,{"$f":"(SUMPRODUCT(AR$9:AR$229,Nutrients!$CY$8:$CY$228)+(IF($A$7=Nutrients!$B$8,Nutrients!$CY$8,Nutrients!$CY$9)*AR$7)+(((IF($A$8=Nutrients!$B$79,Nutrients!$CY$79,(IF($A$8=Nutrients!$B$77,Nutrients!$CY$77,Nutrients!$CY$78)))))*AR$8))/2000/AR$236*100","v":62.001987450074466},{"$f":"(SUMPRODUCT(AS$9:AS$229,Nutrients!$CY$8:$CY$228)+(IF($A$7=Nutrients!$B$8,Nutrients!$CY$8,Nutrients!$CY$9)*AS$7)+(((IF($A$8=Nutrients!$B$79,Nutrients!$CY$79,(IF($A$8=Nutrients!$B$77,Nutrients!$CY$77,Nutrients!$CY$78)))))*AS$8))/2000/AS$236*100","v":61.357305508500524},{"$f":"(SUMPRODUCT(AT$9:AT$229,Nutrients!$CY$8:$CY$228)+(IF($A$7=Nutrients!$B$8,Nutrients!$CY$8,Nutrients!$CY$9)*AT$7)+(((IF($A$8=Nutrients!$B$79,Nutrients!$CY$79,(IF($A$8=Nutrients!$B$77,Nutrients!$CY$77,Nutrients!$CY$78)))))*AT$8))/2000/AT$236*100","v":60.872115949672043},{"$f":"(SUMPRODUCT(AU$9:AU$229,Nutrients!$CY$8:$CY$228)+(IF($A$7=Nutrients!$B$8,Nutrients!$CY$8,Nutrients!$CY$9)*AU$7)+(((IF($A$8=Nutrients!$B$79,Nutrients!$CY$79,(IF($A$8=Nutrients!$B$77,Nutrients!$CY$77,Nutrients!$CY$78)))))*AU$8))/2000/AU$236*100","v":60.194401222778559},{"$f":"(SUMPRODUCT(AV$9:AV$229,Nutrients!$CY$8:$CY$228)+(IF($A$7=Nutrients!$B$8,Nutrients!$CY$8,Nutrients!$CY$9)*AV$7)+(((IF($A$8=Nutrients!$B$79,Nutrients!$CY$79,(IF($A$8=Nutrients!$B$77,Nutrients!$CY$77,Nutrients!$CY$78)))))*AV$8))/2000/AV$236*100","v":59.816555205907648},{"$f":"(SUMPRODUCT(AW$9:AW$229,Nutrients!$CY$8:$CY$228)+(IF($A$7=Nutrients!$B$8,Nutrients!$CY$8,Nutrients!$CY$9)*AW$7)+(((IF($A$8=Nutrients!$B$79,Nutrients!$CY$79,(IF($A$8=Nutrients!$B$77,Nutrients!$CY$77,Nutrients!$CY$78)))))*AW$8))/2000/AW$236*100","v":60.73149438608624}]
["  Leu:Lys",{"$f":"(SUMPRODUCT(B$9:B$229,Nutrients!$CZ$8:$CZ$228)+(IF($A$7=Nutrients!$B$8,Nutrients!$CZ$8,Nutrients!$CZ$9)*B$7)+(((IF($A$8=Nutrients!$B$79,Nutrients!$CZ$79,(IF($A$8=Nutrients!$B$77,Nutrients!$CZ$77,Nutrients!$CZ$78)))))*B$8))/2000/B$236*100","v":129.6913711527971},{"$f":"(SUMPRODUCT(C$9:C$229,Nutrients!$CZ$8:$CZ$228)+(IF($A$7=Nutrients!$B$8,Nutrients!$CZ$8,Nutrients!$CZ$9)*C$7)+(((IF($A$8=Nutrients!$B$79,Nutrients!$CZ$79,(IF($A$8=Nutrients!$B$77,Nutrients!$CZ$77,Nutrients!$CZ$78)))))*C$8))/2000/C$236*100","v":134.50017414165401},{"$f":"(SUMPRODUCT(D$9:D$229,Nutrients!$CZ$8:$CZ$228)+(IF($A$7=Nutrients!$B$8,Nutrients!$CZ$8,Nutrients!$CZ$9)*D$7)+(((IF($A$8=Nutrients!$B$79,Nutrients!$CZ$79,(IF($A$8=Nutrients!$B$77,Nutrients!$CZ$77,Nutrients!$CZ$78)))))*D$8))/2000/D$236*100","v":140.31419316632173},{"$f":"(SUMPRODUCT(E$9:E$229,Nutrients!$CZ$8:$CZ$228)+(IF($A$7=Nutrients!$B$8,Nutrients!$CZ$8,Nutrients!$CZ$9)*E$7)+(((IF($A$8=Nutrients!$B$79,Nutrients!$CZ$79,(IF($A$8=Nutrients!$B$77,Nutrients!$CZ$77,Nutrients!$CZ$78)))))*E$8))/2000/E$236*100","v":146.22101496424654},{"$f":"(SUMPRODUCT(F$9:F$229,Nutrients!$CZ$8:$CZ$228)+(IF($A$7=Nutrients!$B$8,Nutrients!$CZ$8,Nutrients!$CZ$9)*F$7)+(((IF($A$8=Nutrients!$B$79,Nutrients!$CZ$79,(IF($A$8=Nutrients!$B$77,Nutrients!$CZ$77,Nutrients!$CZ$78)))))*F$8))/2000/F$236*100","v":151.50724048169781},{"$f":"(SUMPRODUCT(G$9:G$229,Nutrients!$CZ$8:$CZ$228)+(IF($A$7=Nutrients!$B$8,Nutrients!$CZ$8,Nutrients!$CZ$9)*G$7)+(((IF($A$8=Nutrients!$B$79,Nutrients!$CZ$79,(IF($A$8=Nutrients!$B$77,Nutrients!$CZ$77,Nutrients!$CZ$78)))))*G$8))/2000/G$236*100","v":155.21195132466949},null,{"$f":"(SUMPRODUCT(I$9:I$229,Nutrients!$CZ$8:$CZ$228)+(IF($A$7=Nutrients!$B$8,Nutrients!$CZ$8,Nutrients!$CZ$9)*I$7)+(((IF($A$8=Nutrients!$B$79,Nutrients!$CZ$79,(IF($A$8=Nutrients!$B$77,Nutrients!$CZ$77,Nutrients!$CZ$78)))))*I$8))/2000/I$236*100","v":134.56232551895525},{"$f":"(SUMPRODUCT(J$9:J$229,Nutrients!$CZ$8:$CZ$228)+(IF($A$7=Nutrients!$B$8,Nutrients!$CZ$8,Nutrients!$CZ$9)*J$7)+(((IF($A$8=Nutrients!$B$79,Nutrients!$CZ$79,(IF($A$8=Nutrients!$B$77,Nutrients!$CZ$77,Nutrients!$CZ$78)))))*J$8))/2000/J$236*100","v":140.00508375280262},{"$f":"(SUMPRODUCT(K$9:K$229,Nutrients!$CZ$8:$CZ$228)+(IF($A$7=Nutrients!$B$8,Nutrients!$CZ$8,Nutrients!$CZ$9)*K$7)+(((IF($A$8=Nutrients!$B$79,Nutrients!$CZ$79,(IF($A$8=Nutrients!$B$77,Nutrients!$CZ$77,Nutrients!$CZ$78)))))*K$8))/2000/K$236*100","v":146.55095606441481},{"$f":"(SUMPRODUCT(L$9:L$229,Nutrients!$CZ$8:$CZ$228)+(IF($A$7=Nutrients!$B$8,Nutrients!$CZ$8,Nutrients!$CZ$9)*L$7)+(((IF($A$8=Nutrients!$B$79,Nutrients!$CZ$79,(IF($A$8=Nutrients!$B$77,Nutrients!$CZ$77,Nutrients!$CZ$78)))))*L$8))/2000/L$236*100","v":153.23338373102735},{"$f":"(SUMPRODUCT(M$9:M$229,Nutrients!$CZ$8:$CZ$228)+(IF($A$7=Nutrients!$B$8,Nutrients!$CZ$8,Nutrients!$CZ$9)*M$7)+(((IF($A$8=Nutrients!$B$79,Nutrients!$CZ$79,(IF($A$8=Nutrients!$B$77,Nutrients!$CZ$77,Nutrients!$CZ$78)))))*M$8))/2000/M$236*100","v":159.15104950751015},{"$f":"(SUMPRODUCT(N$9:N$229,Nutrients!$CZ$8:$CZ$228)+(IF($A$7=Nutrients!$B$8,Nutrients!$CZ$8,Nutrients!$CZ$9)*N$7)+(((IF($A$8=Nutrients!$B$79,Nutrients!$CZ$79,(IF($A$8=Nutrients!$B$77,Nutrients!$CZ$77,Nutrients!$CZ$78)))))*N$8))/2000/N$236*100","v":155.21195132466949},null,{"$f":"(SUMPRODUCT(P$9:P$229,Nutrients!$CZ$8:$CZ$228)+(IF($A$7=Nutrients!$B$8,Nutrients!$CZ$8,Nutrients!$CZ$9)*P$7)+(((IF($A$8=Nutrients!$B$79,Nutrients!$CZ$79,(IF($A$8=Nutrients!$B$77,Nutrients!$CZ$77,Nutrients!$CZ$78)))))*P$8))/2000/P$236*100","v":139.4327253106118},{"$f":"(SUMPRODUCT(Q$9:Q$229,Nutrients!$CZ$8:$CZ$228)+(IF($A$7=Nutrients!$B$8,Nutrients!$CZ$8,Nutrients!$CZ$9)*Q$7)+(((IF($A$8=Nutrients!$B$79,Nutrients!$CZ$79,(IF($A$8=Nutrients!$B$77,Nutrients!$CZ$77,Nutrients!$CZ$78)))))*Q$8))/2000/Q$236*100","v":145.5123450176107},{"$f":"(SUMPRODUCT(R$9:R$229,Nutrients!$CZ$8:$CZ$228)+(IF($A$7=Nutrients!$B$8,Nutrients!$CZ$8,Nutrients!$CZ$9)*R$7)+(((IF($A$8=Nutrients!$B$79,Nutrients!$CZ$79,(IF($A$8=Nutrients!$B$77,Nutrients!$CZ$77,Nutrients!$CZ$78)))))*R$8))/2000/R$236*100","v":152.77983654334179},{"$f":"(SUMPRODUCT(S$9:S$229,Nutrients!$CZ$8:$CZ$228)+(IF($A$7=Nutrients!$B$8,Nutrients!$CZ$8,Nutrients!$CZ$9)*S$7)+(((IF($A$8=Nutrients!$B$79,Nutrients!$CZ$79,(IF($A$8=Nutrients!$B$77,Nutrients!$CZ$77,Nutrients!$CZ$78)))))*S$8))/2000/S$236*100","v":160.22366423100931},{"$f":"(SUMPRODUCT(T$9:T$229,Nutrients!$CZ$8:$CZ$228)+(IF($A$7=Nutrients!$B$8,Nutrients!$CZ$8,Nutrients!$CZ$9)*T$7)+(((IF($A$8=Nutrients!$B$79,Nutrients!$CZ$79,(IF($A$8=Nutrients!$B$77,Nutrients!$CZ$77,Nutrients!$CZ$78)))))*T$8))/2000/T$236*100","v":166.77939706391049},{"$f":"(SUMPRODUCT(U$9:U$229,Nutrients!$CZ$8:$CZ$228)+(IF($A$7=Nutrients!$B$8,Nutrients!$CZ$8,Nutrients!$CZ$9)*U$7)+(((IF($A$8=Nutrients!$B$79,Nutrients!$CZ$79,(IF($A$8=Nutrients!$B$77,Nutrients!$CZ$77,Nutrients!$CZ$78)))))*U$8))/2000/U$236*100","v":155.21195132466949},null,{"$f":"(SUMPRODUCT(W$9:W$229,Nutrients!$CZ$8:$CZ$228)+(IF($A$7=Nutrients!$B$8,Nutrients!$CZ$8,Nutrients!$CZ$9)*W$7)+(((IF($A$8=Nutrients!$B$79,Nutrients!$CZ$79,(IF($A$8=Nutrients!$B$77,Nutrients!$CZ$77,Nutrients!$CZ$78)))))*W$8))/2000/W$236*100","v":144.30229544470393},{"$f":"(SUMPRODUCT(X$9:X$229,Nutrients!$CZ$8:$CZ$228)+(IF($A$7=Nutrients!$B$8,Nutrients!$CZ$8,Nutrients!$CZ$9)*X$7)+(((IF($A$8=Nutrients!$B$79,Nutrients!$CZ$79,(IF($A$8=Nutrients!$B$77,Nutrients!$CZ$77,Nutrients!$CZ$78)))))*X$8))/2000/X$236*100","v":151.01848004607058},{"$f":"(SUMPRODUCT(Y$9:Y$229,Nutrients!$CZ$8:$CZ$228)+(IF($A$7=Nutrients!$B$8,Nutrients!$CZ$8,Nutrients!$CZ$9)*Y$7)+(((IF($A$8=Nutrients!$B$79,Nutrients!$CZ$79,(IF($A$8=Nutrients!$B$77,Nutrients!$CZ$77,Nutrients!$CZ$78)))))*Y$8))/2000/Y$236*100","v":159.01175842826166},{"$f":"(SUMPRODUCT(Z$9:Z$229,Nutrients!$CZ$8:$CZ$228)+(IF($A$7=Nutrients!$B$8,Nutrients!$CZ$8,Nutrients!$CZ$9)*Z$7)+(((IF($A$8=Nutrients!$B$79,Nutrients!$CZ$79,(IF($A$8=Nutrients!$B$77,Nutrients!$CZ$77,Nutrients!$CZ$78)))))*Z$8))/2000/Z$236*100","v":167.21812478571871},{"$f":"(SUMPRODUCT(AA$9:AA$229,Nutrients!$CZ$8:$CZ$228)+(IF($A$7=Nutrients!$B$8,Nutrients!$CZ$8,Nutrients!$CZ$9)*AA$7)+(((IF($A$8=Nutrients!$B$79,Nutrients!$CZ$79,(IF($A$8=Nutrients!$B$77,Nutrients!$CZ$77,Nutrients!$CZ$78)))))*AA$8))/2000/AA$236*100","v":174.40468201573708},{"$f":"(SUMPRODUCT(AB$9:AB$229,Nutrients!$CZ$8:$CZ$228)+(IF($A$7=Nutrients!$B$8,Nutrients!$CZ$8,Nutrients!$CZ$9)*AB$7)+(((IF($A$8=Nutrients!$B$79,Nutrients!$CZ$79,(IF($A$8=Nutrients!$B$77,Nutrients!$CZ$77,Nutrients!$CZ$78)))))*AB$8))/2000/AB$236*100","v":155.21195132466949},null,{"$f":"(SUMPRODUCT(AD$9:AD$229,Nutrients!$CZ$8:$CZ$228)+(IF($A$7=Nutrients!$B$8,Nutrients!$CZ$8,Nutrients!$CZ$9)*AD$7)+(((IF($A$8=Nutrients!$B$79,Nutrients!$CZ$79,(IF($A$8=Nutrients!$B$77,Nutrients!$CZ$77,Nutrients!$CZ$78)))))*AD$8))/2000/AD$236*100","v":149.17084730990732},{"$f":"(SUMPRODUCT(AE$9:AE$229,Nutrients!$CZ$8:$CZ$228)+(IF($A$7=Nutrients!$B$8,Nutrients!$CZ$8,Nutrients!$CZ$9)*AE$7)+(((IF($A$8=Nutrients!$B$79,Nutrients!$CZ$79,(IF($A$8=Nutrients!$B$77,Nutrients!$CZ$77,Nutrients!$CZ$78)))))*AE$8))/2000/AE$236*100","v":156.52534830405881},{"$f":"(SUMPRODUCT(AF$9:AF$229,Nutrients!$CZ$8:$CZ$228)+(IF($A$7=Nutrients!$B$8,Nutrients!$CZ$8,Nutrients!$CZ$9)*AF$7)+(((IF($A$8=Nutrients!$B$79,Nutrients!$CZ$79,(IF($A$8=Nutrients!$B$77,Nutrients!$CZ$77,Nutrients!$CZ$78)))))*AF$8))/2000/AF$236*100","v":165.2470026389943},{"$f":"(SUMPRODUCT(AG$9:AG$229,Nutrients!$CZ$8:$CZ$228)+(IF($A$7=Nutrients!$B$8,Nutrients!$CZ$8,Nutrients!$CZ$9)*AG$7)+(((IF($A$8=Nutrients!$B$79,Nutrients!$CZ$79,(IF($A$8=Nutrients!$B$77,Nutrients!$CZ$77,Nutrients!$CZ$78)))))*AG$8))/2000/AG$236*100","v":174.20090133518505},{"$f":"(SUMPRODUCT(AH$9:AH$229,Nutrients!$CZ$8:$CZ$228)+(IF($A$7=Nutrients!$B$8,Nutrients!$CZ$8,Nutrients!$CZ$9)*AH$7)+(((IF($A$8=Nutrients!$B$79,Nutrients!$CZ$79,(IF($A$8=Nutrients!$B$77,Nutrients!$CZ$77,Nutrients!$CZ$78)))))*AH$8))/2000/AH$236*100","v":181.92889439664049},{"$f":"(SUMPRODUCT(AI$9:AI$229,Nutrients!$CZ$8:$CZ$228)+(IF($A$7=Nutrients!$B$8,Nutrients!$CZ$8,Nutrients!$CZ$9)*AI$7)+(((IF($A$8=Nutrients!$B$79,Nutrients!$CZ$79,(IF($A$8=Nutrients!$B$77,Nutrients!$CZ$77,Nutrients!$CZ$78)))))*AI$8))/2000/AI$236*100","v":155.21195132466949},null,{"$f":"(SUMPRODUCT(AK$9:AK$229,Nutrients!$CZ$8:$CZ$228)+(IF($A$7=Nutrients!$B$8,Nutrients!$CZ$8,Nutrients!$CZ$9)*AK$7)+(((IF($A$8=Nutrients!$B$79,Nutrients!$CZ$79,(IF($A$8=Nutrients!$B$77,Nutrients!$CZ$77,Nutrients!$CZ$78)))))*AK$8))/2000/AK$236*100","v":154.03225481802451},{"$f":"(SUMPRODUCT(AL$9:AL$229,Nutrients!$CZ$8:$CZ$228)+(IF($A$7=Nutrients!$B$8,Nutrients!$CZ$8,Nutrients!$CZ$9)*AL$7)+(((IF($A$8=Nutrients!$B$79,Nutrients!$CZ$79,(IF($A$8=Nutrients!$B$77,Nutrients!$CZ$77,Nutrients!$CZ$78)))))*AL$8))/2000/AL$236*100","v":162.03233580156376},{"$f":"(SUMPRODUCT(AM$9:AM$229,Nutrients!$CZ$8:$CZ$228)+(IF($A$7=Nutrients!$B$8,Nutrients!$CZ$8,Nutrients!$CZ$9)*AM$7)+(((IF($A$8=Nutrients!$B$79,Nutrients!$CZ$79,(IF($A$8=Nutrients!$B$77,Nutrients!$CZ$77,Nutrients!$CZ$78)))))*AM$8))/2000/AM$236*100","v":171.47235890320985},{"$f":"(SUMPRODUCT(AN$9:AN$229,Nutrients!$CZ$8:$CZ$228)+(IF($A$7=Nutrients!$B$8,Nutrients!$CZ$8,Nutrients!$CZ$9)*AN$7)+(((IF($A$8=Nutrients!$B$79,Nutrients!$CZ$79,(IF($A$8=Nutrients!$B$77,Nutrients!$CZ$77,Nutrients!$CZ$78)))))*AN$8))/2000/AN$236*100","v":181.10403778046711},{"$f":"(SUMPRODUCT(AO$9:AO$229,Nutrients!$CZ$8:$CZ$228)+(IF($A$7=Nutrients!$B$8,Nutrients!$CZ$8,Nutrients!$CZ$9)*AO$7)+(((IF($A$8=Nutrients!$B$79,Nutrients!$CZ$79,(IF($A$8=Nutrients!$B$77,Nutrients!$CZ$77,Nutrients!$CZ$78)))))*AO$8))/2000/AO$236*100","v":189.4275961660008},{"$f":"(SUMPRODUCT(AP$9:AP$229,Nutrients!$CZ$8:$CZ$228)+(IF($A$7=Nutrients!$B$8,Nutrients!$CZ$8,Nutrients!$CZ$9)*AP$7)+(((IF($A$8=Nutrients!$B$79,Nutrients!$CZ$79,(IF($A$8=Nutrients!$B$77,Nutrients!$CZ$77,Nutrients!$CZ$78)))))*AP$8))/2000/AP$236*100","v":155.21195132466949},null,{"$f":"(SUMPRODUCT(AR$9:AR$229,Nutrients!$CZ$8:$CZ$228)+(IF($A$7=Nutrients!$B$8,Nutrients!$CZ$8,Nutrients!$CZ$9)*AR$7)+(((IF($A$8=Nutrients!$B$79,Nutrients!$CZ$79,(IF($A$8=Nutrients!$B$77,Nutrients!$CZ$77,Nutrients!$CZ$78)))))*AR$8))/2000/AR$236*100","v":158.90440074912598},{"$f":"(SUMPRODUCT(AS$9:AS$229,Nutrients!$CZ$8:$CZ$228)+(IF($A$7=Nutrients!$B$8,Nutrients!$CZ$8,Nutrients!$CZ$9)*AS$7)+(((IF($A$8=Nutrients!$B$79,Nutrients!$CZ$79,(IF($A$8=Nutrients!$B$77,Nutrients!$CZ$77,Nutrients!$CZ$78)))))*AS$8))/2000/AS$236*100","v":167.53925759303195},{"$f":"(SUMPRODUCT(AT$9:AT$229,Nutrients!$CZ$8:$CZ$228)+(IF($A$7=Nutrients!$B$8,Nutrients!$CZ$8,Nutrients!$CZ$9)*AT$7)+(((IF($A$8=Nutrients!$B$79,Nutrients!$CZ$79,(IF($A$8=Nutrients!$B$77,Nutrients!$CZ$77,Nutrients!$CZ$78)))))*AT$8))/2000/AT$236*100","v":177.67916443061296},{"$f":"(SUMPRODUCT(AU$9:AU$229,Nutrients!$CZ$8:$CZ$228)+(IF($A$7=Nutrients!$B$8,Nutrients!$CZ$8,Nutrients!$CZ$9)*AU$7)+(((IF($A$8=Nutrients!$B$79,Nutrients!$CZ$79,(IF($A$8=Nutrients!$B$77,Nutrients!$CZ$77,Nutrients!$CZ$78)))))*AU$8))/2000/AU$236*100","v":187.97363134678471},{"$f":"(SUMPRODUCT(AV$9:AV$229,Nutrients!$CZ$8:$CZ$228)+(IF($A$7=Nutrients!$B$8,Nutrients!$CZ$8,Nutrients!$CZ$9)*AV$7)+(((IF($A$8=Nutrients!$B$79,Nutrients!$CZ$79,(IF($A$8=Nutrients!$B$77,Nutrients!$CZ$77,Nutrients!$CZ$78)))))*AV$8))/2000/AV$236*100","v":196.92446370927058},{"$f":"(SUMPRODUCT(AW$9:AW$229,Nutrients!$CZ$8:$CZ$228)+(IF($A$7=Nutrients!$B$8,Nutrients!$CZ$8,Nutrients!$CZ$9)*AW$7)+(((IF($A$8=Nutrients!$B$79,Nutrients!$CZ$79,(IF($A$8=Nutrients!$B$77,Nutrients!$CZ$77,Nutrients!$CZ$78)))))*AW$8))/2000/AW$236*100","v":155.21195132466949}]
["  Met:Lys",{"$f":"(SUMPRODUCT(B$9:B$229,Nutrients!$DB$8:$DB$228)+(IF($A$7=Nutrients!$B$8,Nutrients!$DB$8,Nutrients!$DB$9)*B$7)+(((IF($A$8=Nutrients!$B$79,Nutrients!$DB$79,(IF($A$8=Nutrients!$B$77,Nutrients!$DB$77,Nutrients!$DB$78)))))*B$8))/2000/B$236*100","v":32.176483378772197},{"$f":"(SUMPRODUCT(C$9:C$229,Nutrients!$DB$8:$DB$228)+(IF($A$7=Nutrients!$B$8,Nutrients!$DB$8,Nutrients!$DB$9)*C$7)+(((IF($A$8=Nutrients!$B$79,Nutrients!$DB$79,(IF($A$8=Nutrients!$B$77,Nutrients!$DB$77,Nutrients!$DB$78)))))*C$8))/2000/C$236*100","v":31.3204641187241},{"$f":"(SUMPRODUCT(D$9:D$229,Nutrients!$DB$8:$DB$228)+(IF($A$7=Nutrients!$B$8,Nutrients!$DB$8,Nutrients!$DB$9)*D$7)+(((IF($A$8=Nutrients!$B$79,Nutrients!$DB$79,(IF($A$8=Nutrients!$B$77,Nutrients!$DB$77,Nutrients!$DB$78)))))*D$8))/2000/D$236*100","v":30.28033378224459},{"$f":"(SUMPRODUCT(E$9:E$229,Nutrients!$DB$8:$DB$228)+(IF($A$7=Nutrients!$B$8,Nutrients!$DB$8,Nutrients!$DB$9)*E$7)+(((IF($A$8=Nutrients!$B$79,Nutrients!$DB$79,(IF($A$8=Nutrients!$B$77,Nutrients!$DB$77,Nutrients!$DB$78)))))*E$8))/2000/E$236*100","v":30.221879794096772},{"$f":"(SUMPRODUCT(F$9:F$229,Nutrients!$DB$8:$DB$228)+(IF($A$7=Nutrients!$B$8,Nutrients!$DB$8,Nutrients!$DB$9)*F$7)+(((IF($A$8=Nutrients!$B$79,Nutrients!$DB$79,(IF($A$8=Nutrients!$B$77,Nutrients!$DB$77,Nutrients!$DB$78)))))*F$8))/2000/F$236*100","v":29.27572686201405},{"$f":"(SUMPRODUCT(G$9:G$229,Nutrients!$DB$8:$DB$228)+(IF($A$7=Nutrients!$B$8,Nutrients!$DB$8,Nutrients!$DB$9)*G$7)+(((IF($A$8=Nutrients!$B$79,Nutrients!$DB$79,(IF($A$8=Nutrients!$B$77,Nutrients!$DB$77,Nutrients!$DB$78)))))*G$8))/2000/G$236*100","v":29.609559948404552},null,{"$f":"(SUMPRODUCT(I$9:I$229,Nutrients!$DB$8:$DB$228)+(IF($A$7=Nutrients!$B$8,Nutrients!$DB$8,Nutrients!$DB$9)*I$7)+(((IF($A$8=Nutrients!$B$79,Nutrients!$DB$79,(IF($A$8=Nutrients!$B$77,Nutrients!$DB$77,Nutrients!$DB$78)))))*I$8))/2000/I$236*100","v":32.0801604012985},{"$f":"(SUMPRODUCT(J$9:J$229,Nutrients!$DB$8:$DB$228)+(IF($A$7=Nutrients!$B$8,Nutrients!$DB$8,Nutrients!$DB$9)*J$7)+(((IF($A$8=Nutrients!$B$79,Nutrients!$DB$79,(IF($A$8=Nutrients!$B$77,Nutrients!$DB$77,Nutrients!$DB$78)))))*J$8))/2000/J$236*100","v":31.207642776712923},{"$f":"(SUMPRODUCT(K$9:K$229,Nutrients!$DB$8:$DB$228)+(IF($A$7=Nutrients!$B$8,Nutrients!$DB$8,Nutrients!$DB$9)*K$7)+(((IF($A$8=Nutrients!$B$79,Nutrients!$DB$79,(IF($A$8=Nutrients!$B$77,Nutrients!$DB$77,Nutrients!$DB$78)))))*K$8))/2000/K$236*100","v":30.153097805455591},{"$f":"(SUMPRODUCT(L$9:L$229,Nutrients!$DB$8:$DB$228)+(IF($A$7=Nutrients!$B$8,Nutrients!$DB$8,Nutrients!$DB$9)*L$7)+(((IF($A$8=Nutrients!$B$79,Nutrients!$DB$79,(IF($A$8=Nutrients!$B$77,Nutrients!$DB$77,Nutrients!$DB$78)))))*L$8))/2000/L$236*100","v":30.073693586144433},{"$f":"(SUMPRODUCT(M$9:M$229,Nutrients!$DB$8:$DB$228)+(IF($A$7=Nutrients!$B$8,Nutrients!$DB$8,Nutrients!$DB$9)*M$7)+(((IF($A$8=Nutrients!$B$79,Nutrients!$DB$79,(IF($A$8=Nutrients!$B$77,Nutrients!$DB$77,Nutrients!$DB$78)))))*M$8))/2000/M$236*100","v":29.113261808370495},{"$f":"(SUMPRODUCT(N$9:N$229,Nutrients!$DB$8:$DB$228)+(IF($A$7=Nutrients!$B$8,Nutrients!$DB$8,Nutrients!$DB$9)*N$7)+(((IF($A$8=Nutrients!$B$79,Nutrients!$DB$79,(IF($A$8=Nutrients!$B$77,Nutrients!$DB$77,Nutrients!$DB$78)))))*N$8))/2000/N$236*100","v":29.609559948404552},null,{"$f":"(SUMPRODUCT(P$9:P$229,Nutrients!$DB$8:$DB$228)+(IF($A$7=Nutrients!$B$8,Nutrients!$DB$8,Nutrients!$DB$9)*P$7)+(((IF($A$8=Nutrients!$B$79,Nutrients!$DB$79,(IF($A$8=Nutrients!$B$77,Nutrients!$DB$77,Nutrients!$DB$78)))))*P$8))/2000/P$236*100","v":31.966405640194296},{"$f":"(SUMPRODUCT(Q$9:Q$229,Nutrients!$DB$8:$DB$228)+(IF($A$7=Nutrients!$B$8,Nutrients!$DB$8,Nutrients!$DB$9)*Q$7)+(((IF($A$8=Nutrients!$B$79,Nutrients!$DB$79,(IF($A$8=Nutrients!$B$77,Nutrients!$DB$77,Nutrients!$DB$78)))))*Q$8))/2000/Q$236*100","v":31.078776028184059},{"$f":"(SUMPRODUCT(R$9:R$229,Nutrients!$DB$8:$DB$228)+(IF($A$7=Nutrients!$B$8,Nutrients!$DB$8,Nutrients!$DB$9)*R$7)+(((IF($A$8=Nutrients!$B$79,Nutrients!$DB$79,(IF($A$8=Nutrients!$B$77,Nutrients!$DB$77,Nutrients!$DB$78)))))*R$8))/2000/R$236*100","v":30.006940373496171},{"$f":"(SUMPRODUCT(S$9:S$229,Nutrients!$DB$8:$DB$228)+(IF($A$7=Nutrients!$B$8,Nutrients!$DB$8,Nutrients!$DB$9)*S$7)+(((IF($A$8=Nutrients!$B$79,Nutrients!$DB$79,(IF($A$8=Nutrients!$B$77,Nutrients!$DB$77,Nutrients!$DB$78)))))*S$8))/2000/S$236*100","v":29.909849199136662},{"$f":"(SUMPRODUCT(T$9:T$229,Nutrients!$DB$8:$DB$228)+(IF($A$7=Nutrients!$B$8,Nutrients!$DB$8,Nutrients!$DB$9)*T$7)+(((IF($A$8=Nutrients!$B$79,Nutrients!$DB$79,(IF($A$8=Nutrients!$B$77,Nutrients!$DB$77,Nutrients!$DB$78)))))*T$8))/2000/T$236*100","v":29.415789251911157},{"$f":"(SUMPRODUCT(U$9:U$229,Nutrients!$DB$8:$DB$228)+(IF($A$7=Nutrients!$B$8,Nutrients!$DB$8,Nutrients!$DB$9)*U$7)+(((IF($A$8=Nutrients!$B$79,Nutrients!$DB$79,(IF($A$8=Nutrients!$B$77,Nutrients!$DB$77,Nutrients!$DB$78)))))*U$8))/2000/U$236*100","v":29.609559948404552},null,{"$f":"(SUMPRODUCT(W$9:W$229,Nutrients!$DB$8:$DB$228)+(IF($A$7=Nutrients!$B$8,Nutrients!$DB$8,Nutrients!$DB$9)*W$7)+(((IF($A$8=Nutrients!$B$79,Nutrients!$DB$79,(IF($A$8=Nutrients!$B$77,Nutrients!$DB$77,Nutrients!$DB$78)))))*W$8))/2000/W$236*100","v":31.852504772659273},{"$f":"(SUMPRODUCT(X$9:X$229,Nutrients!$DB$8:$DB$228)+(IF($A$7=Nutrients!$B$8,Nutrients!$DB$8,Nutrients!$DB$9)*X$7)+(((IF($A$8=Nutrients!$B$79,Nutrients!$DB$79,(IF($A$8=Nutrients!$B$77,Nutrients!$DB$77,Nutrients!$DB$78)))))*X$8))/2000/X$236*100","v":30.949710944365837},{"$f":"(SUMPRODUCT(Y$9:Y$229,Nutrients!$DB$8:$DB$228)+(IF($A$7=Nutrients!$B$8,Nutrients!$DB$8,Nutrients!$DB$9)*Y$7)+(((IF($A$8=Nutrients!$B$79,Nutrients!$DB$79,(IF($A$8=Nutrients!$B$77,Nutrients!$DB$77,Nutrients!$DB$78)))))*Y$8))/2000/Y$236*100","v":29.861318546819405},{"$f":"(SUMPRODUCT(Z$9:Z$229,Nutrients!$DB$8:$DB$228)+(IF($A$7=Nutrients!$B$8,Nutrients!$DB$8,Nutrients!$DB$9)*Z$7)+(((IF($A$8=Nutrients!$B$79,Nutrients!$DB$79,(IF($A$8=Nutrients!$B$77,Nutrients!$DB$77,Nutrients!$DB$78)))))*Z$8))/2000/Z$236*100","v":29.211961491766676},{"$f":"(SUMPRODUCT(AA$9:AA$229,Nutrients!$DB$8:$DB$228)+(IF($A$7=Nutrients!$B$8,Nutrients!$DB$8,Nutrients!$DB$9)*AA$7)+(((IF($A$8=Nutrients!$B$79,Nutrients!$DB$79,(IF($A$8=Nutrients!$B$77,Nutrients!$DB$77,Nutrients!$DB$78)))))*AA$8))/2000/AA$236*100","v":30.347983729088213},{"$f":"(SUMPRODUCT(AB$9:AB$229,Nutrients!$DB$8:$DB$228)+(IF($A$7=Nutrients!$B$8,Nutrients!$DB$8,Nutrients!$DB$9)*AB$7)+(((IF($A$8=Nutrients!$B$79,Nutrients!$DB$79,(IF($A$8=Nutrients!$B$77,Nutrients!$DB$77,Nutrients!$DB$78)))))*AB$8))/2000/AB$236*100","v":29.609559948404552},null,{"$f":"(SUMPRODUCT(AD$9:AD$229,Nutrients!$DB$8:$DB$228)+(IF($A$7=Nutrients!$B$8,Nutrients!$DB$8,Nutrients!$DB$9)*AD$7)+(((IF($A$8=Nutrients!$B$79,Nutrients!$DB$79,(IF($A$8=Nutrients!$B$77,Nutrients!$DB$77,Nutrients!$DB$78)))))*AD$8))/2000/AD$236*100","v":31.738424583390419},{"$f":"(SUMPRODUCT(AE$9:AE$229,Nutrients!$DB$8:$DB$228)+(IF($A$7=Nutrients!$B$8,Nutrients!$DB$8,Nutrients!$DB$9)*AE$7)+(((IF($A$8=Nutrients!$B$79,Nutrients!$DB$79,(IF($A$8=Nutrients!$B$77,Nutrients!$DB$77,Nutrients!$DB$78)))))*AE$8))/2000/AE$236*100","v":30.82077498556734},{"$f":"(SUMPRODUCT(AF$9:AF$229,Nutrients!$DB$8:$DB$228)+(IF($A$7=Nutrients!$B$8,Nutrients!$DB$8,Nutrients!$DB$9)*AF$7)+(((IF($A$8=Nutrients!$B$79,Nutrients!$DB$79,(IF($A$8=Nutrients!$B$77,Nutrients!$DB$77,Nutrients!$DB$78)))))*AF$8))/2000/AF$236*100","v":28.687588705636323},{"$f":"(SUMPRODUCT(AG$9:AG$229,Nutrients!$DB$8:$DB$228)+(IF($A$7=Nutrients!$B$8,Nutrients!$DB$8,Nutrients!$DB$9)*AG$7)+(((IF($A$8=Nutrients!$B$79,Nutrients!$DB$79,(IF($A$8=Nutrients!$B$77,Nutrients!$DB$77,Nutrients!$DB$78)))))*AG$8))/2000/AG$236*100","v":30.065476379038152},{"$f":"(SUMPRODUCT(AH$9:AH$229,Nutrients!$DB$8:$DB$228)+(IF($A$7=Nutrients!$B$8,Nutrients!$DB$8,Nutrients!$DB$9)*AH$7)+(((IF($A$8=Nutrients!$B$79,Nutrients!$DB$79,(IF($A$8=Nutrients!$B$77,Nutrients!$DB$77,Nutrients!$DB$78)))))*AH$8))/2000/AH$236*100","v":31.262378871666812},{"$f":"(SUMPRODUCT(AI$9:AI$229,Nutrients!$DB$8:$DB$228)+(IF($A$7=Nutrients!$B$8,Nutrients!$DB$8,Nutrients!$DB$9)*AI$7)+(((IF($A$8=Nutrients!$B$79,Nutrients!$DB$79,(IF($A$8=Nutrients!$B$77,Nutrients!$DB$77,Nutrients!$DB$78)))))*AI$8))/2000/AI$236*100","v":29.609559948404552},null,{"$f":"(SUMPRODUCT(AK$9:AK$229,Nutrients!$DB$8:$DB$228)+(IF($A$7=Nutrients!$B$8,Nutrients!$DB$8,Nutrients!$DB$9)*AK$7)+(((IF($A$8=Nutrients!$B$79,Nutrients!$DB$79,(IF($A$8=Nutrients!$B$77,Nutrients!$DB$77,Nutrients!$DB$78)))))*AK$8))/2000/AK$236*100","v":31.623086240686789},{"$f":"(SUMPRODUCT(AL$9:AL$229,Nutrients!$DB$8:$DB$228)+(IF($A$7=Nutrients!$B$8,Nutrients!$DB$8,Nutrients!$DB$9)*AL$7)+(((IF($A$8=Nutrients!$B$79,Nutrients!$DB$79,(IF($A$8=Nutrients!$B$77,Nutrients!$DB$77,Nutrients!$DB$78)))))*AL$8))/2000/AL$236*100","v":30.691860025384344},{"$f":"(SUMPRODUCT(AM$9:AM$229,Nutrients!$DB$8:$DB$228)+(IF($A$7=Nutrients!$B$8,Nutrients!$DB$8,Nutrients!$DB$9)*AM$7)+(((IF($A$8=Nutrients!$B$79,Nutrients!$DB$79,(IF($A$8=Nutrients!$B$77,Nutrients!$DB$77,Nutrients!$DB$78)))))*AM$8))/2000/AM$236*100","v":29.448650389782909},{"$f":"(SUMPRODUCT(AN$9:AN$229,Nutrients!$DB$8:$DB$228)+(IF($A$7=Nutrients!$B$8,Nutrients!$DB$8,Nutrients!$DB$9)*AN$7)+(((IF($A$8=Nutrients!$B$79,Nutrients!$DB$79,(IF($A$8=Nutrients!$B$77,Nutrients!$DB$77,Nutrients!$DB$78)))))*AN$8))/2000/AN$236*100","v":30.904966285556849},{"$f":"(SUMPRODUCT(AO$9:AO$229,Nutrients!$DB$8:$DB$228)+(IF($A$7=Nutrients!$B$8,Nutrients!$DB$8,Nutrients!$DB$9)*AO$7)+(((IF($A$8=Nutrients!$B$79,Nutrients!$DB$79,(IF($A$8=Nutrients!$B$77,Nutrients!$DB$77,Nutrients!$DB$78)))))*AO$8))/2000/AO$236*100","v":32.172281480746761},{"$f":"(SUMPRODUCT(AP$9:AP$229,Nutrients!$DB$8:$DB$228)+(IF($A$7=Nutrients!$B$8,Nutrients!$DB$8,Nutrients!$DB$9)*AP$7)+(((IF($A$8=Nutrients!$B$79,Nutrients!$DB$79,(IF($A$8=Nutrients!$B$77,Nutrients!$DB$77,Nutrients!$DB$78)))))*AP$8))/2000/AP$236*100","v":29.609559948404552},null,{"$f":"(SUMPRODUCT(AR$9:AR$229,Nutrients!$DB$8:$DB$228)+(IF($A$7=Nutrients!$B$8,Nutrients!$DB$8,Nutrients!$DB$9)*AR$7)+(((IF($A$8=Nutrients!$B$79,Nutrients!$DB$79,(IF($A$8=Nutrients!$B$77,Nutrients!$DB$77,Nutrients!$DB$78)))))*AR$8))/2000/AR$236*100","v":31.509638982597028},{"$f":"(SUMPRODUCT(AS$9:AS$229,Nutrients!$DB$8:$DB$228)+(IF($A$7=Nutrients!$B$8,Nutrients!$DB$8,Nutrients!$DB$9)*AS$7)+(((IF($A$8=Nutrients!$B$79,Nutrients!$DB$79,(IF($A$8=Nutrients!$B$77,Nutrients!$DB$77,Nutrients!$DB$78)))))*AS$8))/2000/AS$236*100","v":30.562933494072574},{"$f":"(SUMPRODUCT(AT$9:AT$229,Nutrients!$DB$8:$DB$228)+(IF($A$7=Nutrients!$B$8,Nutrients!$DB$8,Nutrients!$DB$9)*AT$7)+(((IF($A$8=Nutrients!$B$79,Nutrients!$DB$79,(IF($A$8=Nutrients!$B$77,Nutrients!$DB$77,Nutrients!$DB$78)))))*AT$8))/2000/AT$236*100","v":30.206445205692571},{"$f":"(SUMPRODUCT(AU$9:AU$229,Nutrients!$DB$8:$DB$228)+(IF($A$7=Nutrients!$B$8,Nutrients!$DB$8,Nutrients!$DB$9)*AU$7)+(((IF($A$8=Nutrients!$B$79,Nutrients!$DB$79,(IF($A$8=Nutrients!$B$77,Nutrients!$DB$77,Nutrients!$DB$78)))))*AU$8))/2000/AU$236*100","v":31.738549140136229},{"$f":"(SUMPRODUCT(AV$9:AV$229,Nutrients!$DB$8:$DB$228)+(IF($A$7=Nutrients!$B$8,Nutrients!$DB$8,Nutrients!$DB$9)*AV$7)+(((IF($A$8=Nutrients!$B$79,Nutrients!$DB$79,(IF($A$8=Nutrients!$B$77,Nutrients!$DB$77,Nutrients!$DB$78)))))*AV$8))/2000/AV$236*100","v":33.081861074357569},{"$f":"(SUMPRODUCT(AW$9:AW$229,Nutrients!$DB$8:$DB$228)+(IF($A$7=Nutrients!$B$8,Nutrients!$DB$8,Nutrients!$DB$9)*AW$7)+(((IF($A$8=Nutrients!$B$79,Nutrients!$DB$79,(IF($A$8=Nutrients!$B$77,Nutrients!$DB$77,Nutrients!$DB$78)))))*AW$8))/2000/AW$236*100","v":29.609559948404552}]
["  Met & Cys:Lys",{"$f":"(SUMPRODUCT(B$9:B$229,Nutrients!$DC$8:$DC$228)+(IF($A$7=Nutrients!$B$8,Nutrients!$DC$8,Nutrients!$DC$9)*B$7)+(((IF($A$8=Nutrients!$B$79,Nutrients!$DC$79,(IF($A$8=Nutrients!$B$77,Nutrients!$DC$77,Nutrients!$DC$78)))))*B$8))/2000/B$236*100","v":55.994418242240393},{"$f":"(SUMPRODUCT(C$9:C$229,Nutrients!$DC$8:$DC$228)+(IF($A$7=Nutrients!$B$8,Nutrients!$DC$8,Nutrients!$DC$9)*C$7)+(((IF($A$8=Nutrients!$B$79,Nutrients!$DC$79,(IF($A$8=Nutrients!$B$77,Nutrients!$DC$77,Nutrients!$DC$78)))))*C$8))/2000/C$236*100","v":55.998321129822401},{"$f":"(SUMPRODUCT(D$9:D$229,Nutrients!$DC$8:$DC$228)+(IF($A$7=Nutrients!$B$8,Nutrients!$DC$8,Nutrients!$DC$9)*D$7)+(((IF($A$8=Nutrients!$B$79,Nutrients!$DC$79,(IF($A$8=Nutrients!$B$77,Nutrients!$DC$77,Nutrients!$DC$78)))))*D$8))/2000/D$236*100","v":56.000205781178344},{"$f":"(SUMPRODUCT(E$9:E$229,Nutrients!$DC$8:$DC$228)+(IF($A$7=Nutrients!$B$8,Nutrients!$DC$8,Nutrients!$DC$9)*E$7)+(((IF($A$8=Nutrients!$B$79,Nutrients!$DC$79,(IF($A$8=Nutrients!$B$77,Nutrients!$DC$77,Nutrients!$DC$78)))))*E$8))/2000/E$236*100","v":56.999140886022367},{"$f":"(SUMPRODUCT(F$9:F$229,Nutrients!$DC$8:$DC$228)+(IF($A$7=Nutrients!$B$8,Nutrients!$DC$8,Nutrients!$DC$9)*F$7)+(((IF($A$8=Nutrients!$B$79,Nutrients!$DC$79,(IF($A$8=Nutrients!$B$77,Nutrients!$DC$77,Nutrients!$DC$78)))))*F$8))/2000/F$236*100","v":57.001109458079327},{"$f":"(SUMPRODUCT(G$9:G$229,Nutrients!$DC$8:$DC$228)+(IF($A$7=Nutrients!$B$8,Nutrients!$DC$8,Nutrients!$DC$9)*G$7)+(((IF($A$8=Nutrients!$B$79,Nutrients!$DC$79,(IF($A$8=Nutrients!$B$77,Nutrients!$DC$77,Nutrients!$DC$78)))))*G$8))/2000/G$236*100","v":58.001701198028378},null,{"$f":"(SUMPRODUCT(I$9:I$229,Nutrients!$DC$8:$DC$228)+(IF($A$7=Nutrients!$B$8,Nutrients!$DC$8,Nutrients!$DC$9)*I$7)+(((IF($A$8=Nutrients!$B$79,Nutrients!$DC$79,(IF($A$8=Nutrients!$B$77,Nutrients!$DC$77,Nutrients!$DC$78)))))*I$8))/2000/I$236*100","v":55.992162465524274},{"$f":"(SUMPRODUCT(J$9:J$229,Nutrients!$DC$8:$DC$228)+(IF($A$7=Nutrients!$B$8,Nutrients!$DC$8,Nutrients!$DC$9)*J$7)+(((IF($A$8=Nutrients!$B$79,Nutrients!$DC$79,(IF($A$8=Nutrients!$B$77,Nutrients!$DC$77,Nutrients!$DC$78)))))*J$8))/2000/J$236*100","v":55.991135702730375},{"$f":"(SUMPRODUCT(K$9:K$229,Nutrients!$DC$8:$DC$228)+(IF($A$7=Nutrients!$B$8,Nutrients!$DC$8,Nutrients!$DC$9)*K$7)+(((IF($A$8=Nutrients!$B$79,Nutrients!$DC$79,(IF($A$8=Nutrients!$B$77,Nutrients!$DC$77,Nutrients!$DC$78)))))*K$8))/2000/K$236*100","v":55.994027263406679},{"$f":"(SUMPRODUCT(L$9:L$229,Nutrients!$DC$8:$DC$228)+(IF($A$7=Nutrients!$B$8,Nutrients!$DC$8,Nutrients!$DC$9)*L$7)+(((IF($A$8=Nutrients!$B$79,Nutrients!$DC$79,(IF($A$8=Nutrients!$B$77,Nutrients!$DC$77,Nutrients!$DC$78)))))*L$8))/2000/L$236*100","v":56.989352384814687},{"$f":"(SUMPRODUCT(M$9:M$229,Nutrients!$DC$8:$DC$228)+(IF($A$7=Nutrients!$B$8,Nutrients!$DC$8,Nutrients!$DC$9)*M$7)+(((IF($A$8=Nutrients!$B$79,Nutrients!$DC$79,(IF($A$8=Nutrients!$B$77,Nutrients!$DC$77,Nutrients!$DC$78)))))*M$8))/2000/M$236*100","v":56.987715318820989},{"$f":"(SUMPRODUCT(N$9:N$229,Nutrients!$DC$8:$DC$228)+(IF($A$7=Nutrients!$B$8,Nutrients!$DC$8,Nutrients!$DC$9)*N$7)+(((IF($A$8=Nutrients!$B$79,Nutrients!$DC$79,(IF($A$8=Nutrients!$B$77,Nutrients!$DC$77,Nutrients!$DC$78)))))*N$8))/2000/N$236*100","v":58.001701198028378},null,{"$f":"(SUMPRODUCT(P$9:P$229,Nutrients!$DC$8:$DC$228)+(IF($A$7=Nutrients!$B$8,Nutrients!$DC$8,Nutrients!$DC$9)*P$7)+(((IF($A$8=Nutrients!$B$79,Nutrients!$DC$79,(IF($A$8=Nutrients!$B$77,Nutrients!$DC$77,Nutrients!$DC$78)))))*P$8))/2000/P$236*100","v":55.972374501990672},{"$f":"(SUMPRODUCT(Q$9:Q$229,Nutrients!$DC$8:$DC$228)+(IF($A$7=Nutrients!$B$8,Nutrients!$DC$8,Nutrients!$DC$9)*Q$7)+(((IF($A$8=Nutrients!$B$79,Nutrients!$DC$79,(IF($A$8=Nutrients!$B$77,Nutrients!$DC$77,Nutrients!$DC$78)))))*Q$8))/2000/Q$236*100","v":55.968330625301988},{"$f":"(SUMPRODUCT(R$9:R$229,Nutrients!$DC$8:$DC$228)+(IF($A$7=Nutrients!$B$8,Nutrients!$DC$8,Nutrients!$DC$9)*R$7)+(((IF($A$8=Nutrients!$B$79,Nutrients!$DC$79,(IF($A$8=Nutrients!$B$77,Nutrients!$DC$77,Nutrients!$DC$78)))))*R$8))/2000/R$236*100","v":55.967500214385367},{"$f":"(SUMPRODUCT(S$9:S$229,Nutrients!$DC$8:$DC$228)+(IF($A$7=Nutrients!$B$8,Nutrients!$DC$8,Nutrients!$DC$9)*S$7)+(((IF($A$8=Nutrients!$B$79,Nutrients!$DC$79,(IF($A$8=Nutrients!$B$77,Nutrients!$DC$77,Nutrients!$DC$78)))))*S$8))/2000/S$236*100","v":56.959906724477591},{"$f":"(SUMPRODUCT(T$9:T$229,Nutrients!$DC$8:$DC$228)+(IF($A$7=Nutrients!$B$8,Nutrients!$DC$8,Nutrients!$DC$9)*T$7)+(((IF($A$8=Nutrients!$B$79,Nutrients!$DC$79,(IF($A$8=Nutrients!$B$77,Nutrients!$DC$77,Nutrients!$DC$78)))))*T$8))/2000/T$236*100","v":57.436514448149346},{"$f":"(SUMPRODUCT(U$9:U$229,Nutrients!$DC$8:$DC$228)+(IF($A$7=Nutrients!$B$8,Nutrients!$DC$8,Nutrients!$DC$9)*U$7)+(((IF($A$8=Nutrients!$B$79,Nutrients!$DC$79,(IF($A$8=Nutrients!$B$77,Nutrients!$DC$77,Nutrients!$DC$78)))))*U$8))/2000/U$236*100","v":58.001701198028378},null,{"$f":"(SUMPRODUCT(W$9:W$229,Nutrients!$DC$8:$DC$228)+(IF($A$7=Nutrients!$B$8,Nutrients!$DC$8,Nutrients!$DC$9)*W$7)+(((IF($A$8=Nutrients!$B$79,Nutrients!$DC$79,(IF($A$8=Nutrients!$B$77,Nutrients!$DC$77,Nutrients!$DC$78)))))*W$8))/2000/W$236*100","v":55.952290226303958},{"$f":"(SUMPRODUCT(X$9:X$229,Nutrients!$DC$8:$DC$228)+(IF($A$7=Nutrients!$B$8,Nutrients!$DC$8,Nutrients!$DC$9)*X$7)+(((IF($A$8=Nutrients!$B$79,Nutrients!$DC$79,(IF($A$8=Nutrients!$B$77,Nutrients!$DC$77,Nutrients!$DC$78)))))*X$8))/2000/X$236*100","v":55.945123312624347},{"$f":"(SUMPRODUCT(Y$9:Y$229,Nutrients!$DC$8:$DC$228)+(IF($A$7=Nutrients!$B$8,Nutrients!$DC$8,Nutrients!$DC$9)*Y$7)+(((IF($A$8=Nutrients!$B$79,Nutrients!$DC$79,(IF($A$8=Nutrients!$B$77,Nutrients!$DC$77,Nutrients!$DC$78)))))*Y$8))/2000/Y$236*100","v":55.942059403345667},{"$f":"(SUMPRODUCT(Z$9:Z$229,Nutrients!$DC$8:$DC$228)+(IF($A$7=Nutrients!$B$8,Nutrients!$DC$8,Nutrients!$DC$9)*Z$7)+(((IF($A$8=Nutrients!$B$79,Nutrients!$DC$79,(IF($A$8=Nutrients!$B$77,Nutrients!$DC$77,Nutrients!$DC$78)))))*Z$8))/2000/Z$236*100","v":56.39717452364318},{"$f":"(SUMPRODUCT(AA$9:AA$229,Nutrients!$DC$8:$DC$228)+(IF($A$7=Nutrients!$B$8,Nutrients!$DC$8,Nutrients!$DC$9)*AA$7)+(((IF($A$8=Nutrients!$B$79,Nutrients!$DC$79,(IF($A$8=Nutrients!$B$77,Nutrients!$DC$77,Nutrients!$DC$78)))))*AA$8))/2000/AA$236*100","v":58.514426140508668},{"$f":"(SUMPRODUCT(AB$9:AB$229,Nutrients!$DC$8:$DC$228)+(IF($A$7=Nutrients!$B$8,Nutrients!$DC$8,Nutrients!$DC$9)*AB$7)+(((IF($A$8=Nutrients!$B$79,Nutrients!$DC$79,(IF($A$8=Nutrients!$B$77,Nutrients!$DC$77,Nutrients!$DC$78)))))*AB$8))/2000/AB$236*100","v":58.001701198028378},null,{"$f":"(SUMPRODUCT(AD$9:AD$229,Nutrients!$DC$8:$DC$228)+(IF($A$7=Nutrients!$B$8,Nutrients!$DC$8,Nutrients!$DC$9)*AD$7)+(((IF($A$8=Nutrients!$B$79,Nutrients!$DC$79,(IF($A$8=Nutrients!$B$77,Nutrients!$DC$77,Nutrients!$DC$78)))))*AD$8))/2000/AD$236*100","v":55.93184227594017},{"$f":"(SUMPRODUCT(AE$9:AE$229,Nutrients!$DC$8:$DC$228)+(IF($A$7=Nutrients!$B$8,Nutrients!$DC$8,Nutrients!$DC$9)*AE$7)+(((IF($A$8=Nutrients!$B$79,Nutrients!$DC$79,(IF($A$8=Nutrients!$B$77,Nutrients!$DC$77,Nutrients!$DC$78)))))*AE$8))/2000/AE$236*100","v":55.922177872832059},{"$f":"(SUMPRODUCT(AF$9:AF$229,Nutrients!$DC$8:$DC$228)+(IF($A$7=Nutrients!$B$8,Nutrients!$DC$8,Nutrients!$DC$9)*AF$7)+(((IF($A$8=Nutrients!$B$79,Nutrients!$DC$79,(IF($A$8=Nutrients!$B$77,Nutrients!$DC$77,Nutrients!$DC$78)))))*AF$8))/2000/AF$236*100","v":54.88911206975218},{"$f":"(SUMPRODUCT(AG$9:AG$229,Nutrients!$DC$8:$DC$228)+(IF($A$7=Nutrients!$B$8,Nutrients!$DC$8,Nutrients!$DC$9)*AG$7)+(((IF($A$8=Nutrients!$B$79,Nutrients!$DC$79,(IF($A$8=Nutrients!$B$77,Nutrients!$DC$77,Nutrients!$DC$78)))))*AG$8))/2000/AG$236*100","v":57.383729581531064},{"$f":"(SUMPRODUCT(AH$9:AH$229,Nutrients!$DC$8:$DC$228)+(IF($A$7=Nutrients!$B$8,Nutrients!$DC$8,Nutrients!$DC$9)*AH$7)+(((IF($A$8=Nutrients!$B$79,Nutrients!$DC$79,(IF($A$8=Nutrients!$B$77,Nutrients!$DC$77,Nutrients!$DC$78)))))*AH$8))/2000/AH$236*100","v":59.556239769771437},{"$f":"(SUMPRODUCT(AI$9:AI$229,Nutrients!$DC$8:$DC$228)+(IF($A$7=Nutrients!$B$8,Nutrients!$DC$8,Nutrients!$DC$9)*AI$7)+(((IF($A$8=Nutrients!$B$79,Nutrients!$DC$79,(IF($A$8=Nutrients!$B$77,Nutrients!$DC$77,Nutrients!$DC$78)))))*AI$8))/2000/AI$236*100","v":58.001701198028378},null,{"$f":"(SUMPRODUCT(AK$9:AK$229,Nutrients!$DC$8:$DC$228)+(IF($A$7=Nutrients!$B$8,Nutrients!$DC$8,Nutrients!$DC$9)*AK$7)+(((IF($A$8=Nutrients!$B$79,Nutrients!$DC$79,(IF($A$8=Nutrients!$B$77,Nutrients!$DC$77,Nutrients!$DC$78)))))*AK$8))/2000/AK$236*100","v":55.90884271883948},{"$f":"(SUMPRODUCT(AL$9:AL$229,Nutrients!$DC$8:$DC$228)+(IF($A$7=Nutrients!$B$8,Nutrients!$DC$8,Nutrients!$DC$9)*AL$7)+(((IF($A$8=Nutrients!$B$79,Nutrients!$DC$79,(IF($A$8=Nutrients!$B$77,Nutrients!$DC$77,Nutrients!$DC$78)))))*AL$8))/2000/AL$236*100","v":55.89927501942654},{"$f":"(SUMPRODUCT(AM$9:AM$229,Nutrients!$DC$8:$DC$228)+(IF($A$7=Nutrients!$B$8,Nutrients!$DC$8,Nutrients!$DC$9)*AM$7)+(((IF($A$8=Nutrients!$B$79,Nutrients!$DC$79,(IF($A$8=Nutrients!$B$77,Nutrients!$DC$77,Nutrients!$DC$78)))))*AM$8))/2000/AM$236*100","v":55.769166093819024},{"$f":"(SUMPRODUCT(AN$9:AN$229,Nutrients!$DC$8:$DC$228)+(IF($A$7=Nutrients!$B$8,Nutrients!$DC$8,Nutrients!$DC$9)*AN$7)+(((IF($A$8=Nutrients!$B$79,Nutrients!$DC$79,(IF($A$8=Nutrients!$B$77,Nutrients!$DC$77,Nutrients!$DC$78)))))*AN$8))/2000/AN$236*100","v":58.341841180628883},{"$f":"(SUMPRODUCT(AO$9:AO$229,Nutrients!$DC$8:$DC$228)+(IF($A$7=Nutrients!$B$8,Nutrients!$DC$8,Nutrients!$DC$9)*AO$7)+(((IF($A$8=Nutrients!$B$79,Nutrients!$DC$79,(IF($A$8=Nutrients!$B$77,Nutrients!$DC$77,Nutrients!$DC$78)))))*AO$8))/2000/AO$236*100","v":60.588942285537208},{"$f":"(SUMPRODUCT(AP$9:AP$229,Nutrients!$DC$8:$DC$228)+(IF($A$7=Nutrients!$B$8,Nutrients!$DC$8,Nutrients!$DC$9)*AP$7)+(((IF($A$8=Nutrients!$B$79,Nutrients!$DC$79,(IF($A$8=Nutrients!$B$77,Nutrients!$DC$77,Nutrients!$DC$78)))))*AP$8))/2000/AP$236*100","v":58.001701198028378},null,{"$f":"(SUMPRODUCT(AR$9:AR$229,Nutrients!$DC$8:$DC$228)+(IF($A$7=Nutrients!$B$8,Nutrients!$DC$8,Nutrients!$DC$9)*AR$7)+(((IF($A$8=Nutrients!$B$79,Nutrients!$DC$79,(IF($A$8=Nutrients!$B$77,Nutrients!$DC$77,Nutrients!$DC$78)))))*AR$8))/2000/AR$236*100","v":55.889678388911733},{"$f":"(SUMPRODUCT(AS$9:AS$229,Nutrients!$DC$8:$DC$228)+(IF($A$7=Nutrients!$B$8,Nutrients!$DC$8,Nutrients!$DC$9)*AS$7)+(((IF($A$8=Nutrients!$B$79,Nutrients!$DC$79,(IF($A$8=Nutrients!$B$77,Nutrients!$DC$77,Nutrients!$DC$78)))))*AS$8))/2000/AS$236*100","v":55.876348699113656},{"$f":"(SUMPRODUCT(AT$9:AT$229,Nutrients!$DC$8:$DC$228)+(IF($A$7=Nutrients!$B$8,Nutrients!$DC$8,Nutrients!$DC$9)*AT$7)+(((IF($A$8=Nutrients!$B$79,Nutrients!$DC$79,(IF($A$8=Nutrients!$B$77,Nutrients!$DC$77,Nutrients!$DC$78)))))*AT$8))/2000/AT$236*100","v":56.642594723262732},{"$f":"(SUMPRODUCT(AU$9:AU$229,Nutrients!$DC$8:$DC$228)+(IF($A$7=Nutrients!$B$8,Nutrients!$DC$8,Nutrients!$DC$9)*AU$7)+(((IF($A$8=Nutrients!$B$79,Nutrients!$DC$79,(IF($A$8=Nutrients!$B$77,Nutrients!$DC$77,Nutrients!$DC$78)))))*AU$8))/2000/AU$236*100","v":59.287972942365933},{"$f":"(SUMPRODUCT(AV$9:AV$229,Nutrients!$DC$8:$DC$228)+(IF($A$7=Nutrients!$B$8,Nutrients!$DC$8,Nutrients!$DC$9)*AV$7)+(((IF($A$8=Nutrients!$B$79,Nutrients!$DC$79,(IF($A$8=Nutrients!$B$77,Nutrients!$DC$77,Nutrients!$DC$78)))))*AV$8))/2000/AV$236*100","v":61.620989707556539},{"$f":"(SUMPRODUCT(AW$9:AW$229,Nutrients!$DC$8:$DC$228)+(IF($A$7=Nutrients!$B$8,Nutrients!$DC$8,Nutrients!$DC$9)*AW$7)+(((IF($A$8=Nutrients!$B$79,Nutrients!$DC$79,(IF($A$8=Nutrients!$B$77,Nutrients!$DC$77,Nutrients!$DC$78)))))*AW$8))/2000/AW$236*100","v":58.001701198028378}]
["  Thr:Lys",{"$f":"(SUMPRODUCT(B$9:B$229,Nutrients!$DF$8:$DF$228)+(IF($A$7=Nutrients!$B$8,Nutrients!$DF$8,Nutrients!$DF$9)*B$7)+(((IF($A$8=Nutrients!$B$79,Nutrients!$DF$79,(IF($A$8=Nutrients!$B$77,Nutrients!$DF$77,Nutrients!$DF$78)))))*B$8))/2000/B$236*100","v":61.999249045260719},{"$f":"(SUMPRODUCT(C$9:C$229,Nutrients!$DF$8:$DF$228)+(IF($A$7=Nutrients!$B$8,Nutrients!$DF$8,Nutrients!$DF$9)*C$7)+(((IF($A$8=Nutrients!$B$79,Nutrients!$DF$79,(IF($A$8=Nutrients!$B$77,Nutrients!$DF$77,Nutrients!$DF$78)))))*C$8))/2000/C$236*100","v":61.999768297038216},{"$f":"(SUMPRODUCT(D$9:D$229,Nutrients!$DF$8:$DF$228)+(IF($A$7=Nutrients!$B$8,Nutrients!$DF$8,Nutrients!$DF$9)*D$7)+(((IF($A$8=Nutrients!$B$79,Nutrients!$DF$79,(IF($A$8=Nutrients!$B$77,Nutrients!$DF$77,Nutrients!$DF$78)))))*D$8))/2000/D$236*100","v":62.000000000000014},{"$f":"(SUMPRODUCT(E$9:E$229,Nutrients!$DF$8:$DF$228)+(IF($A$7=Nutrients!$B$8,Nutrients!$DF$8,Nutrients!$DF$9)*E$7)+(((IF($A$8=Nutrients!$B$79,Nutrients!$DF$79,(IF($A$8=Nutrients!$B$77,Nutrients!$DF$77,Nutrients!$DF$78)))))*E$8))/2000/E$236*100","v":62.999881259958023},{"$f":"(SUMPRODUCT(F$9:F$229,Nutrients!$DF$8:$DF$228)+(IF($A$7=Nutrients!$B$8,Nutrients!$DF$8,Nutrients!$DF$9)*F$7)+(((IF($A$8=Nutrients!$B$79,Nutrients!$DF$79,(IF($A$8=Nutrients!$B$77,Nutrients!$DF$77,Nutrients!$DF$78)))))*F$8))/2000/F$236*100","v":63.000153115971145},{"$f":"(SUMPRODUCT(G$9:G$229,Nutrients!$DF$8:$DF$228)+(IF($A$7=Nutrients!$B$8,Nutrients!$DF$8,Nutrients!$DF$9)*G$7)+(((IF($A$8=Nutrients!$B$79,Nutrients!$DF$79,(IF($A$8=Nutrients!$B$77,Nutrients!$DF$77,Nutrients!$DF$78)))))*G$8))/2000/G$236*100","v":63.99976486226322},null,{"$f":"(SUMPRODUCT(I$9:I$229,Nutrients!$DF$8:$DF$228)+(IF($A$7=Nutrients!$B$8,Nutrients!$DF$8,Nutrients!$DF$9)*I$7)+(((IF($A$8=Nutrients!$B$79,Nutrients!$DF$79,(IF($A$8=Nutrients!$B$77,Nutrients!$DF$77,Nutrients!$DF$78)))))*I$8))/2000/I$236*100","v":61.997206440877704},{"$f":"(SUMPRODUCT(J$9:J$229,Nutrients!$DF$8:$DF$228)+(IF($A$7=Nutrients!$B$8,Nutrients!$DF$8,Nutrients!$DF$9)*J$7)+(((IF($A$8=Nutrients!$B$79,Nutrients!$DF$79,(IF($A$8=Nutrients!$B$77,Nutrients!$DF$77,Nutrients!$DF$78)))))*J$8))/2000/J$236*100","v":61.99674526748543},{"$f":"(SUMPRODUCT(K$9:K$229,Nutrients!$DF$8:$DF$228)+(IF($A$7=Nutrients!$B$8,Nutrients!$DF$8,Nutrients!$DF$9)*K$7)+(((IF($A$8=Nutrients!$B$79,Nutrients!$DF$79,(IF($A$8=Nutrients!$B$77,Nutrients!$DF$77,Nutrients!$DF$78)))))*K$8))/2000/K$236*100","v":61.998035431249157},{"$f":"(SUMPRODUCT(L$9:L$229,Nutrients!$DF$8:$DF$228)+(IF($A$7=Nutrients!$B$8,Nutrients!$DF$8,Nutrients!$DF$9)*L$7)+(((IF($A$8=Nutrients!$B$79,Nutrients!$DF$79,(IF($A$8=Nutrients!$B$77,Nutrients!$DF$77,Nutrients!$DF$78)))))*L$8))/2000/L$236*100","v":63.000094972668407},{"$f":"(SUMPRODUCT(M$9:M$229,Nutrients!$DF$8:$DF$228)+(IF($A$7=Nutrients!$B$8,Nutrients!$DF$8,Nutrients!$DF$9)*M$7)+(((IF($A$8=Nutrients!$B$79,Nutrients!$DF$79,(IF($A$8=Nutrients!$B$77,Nutrients!$DF$77,Nutrients!$DF$78)))))*M$8))/2000/M$236*100","v":62.998489718129889},{"$f":"(SUMPRODUCT(N$9:N$229,Nutrients!$DF$8:$DF$228)+(IF($A$7=Nutrients!$B$8,Nutrients!$DF$8,Nutrients!$DF$9)*N$7)+(((IF($A$8=Nutrients!$B$79,Nutrients!$DF$79,(IF($A$8=Nutrients!$B$77,Nutrients!$DF$77,Nutrients!$DF$78)))))*N$8))/2000/N$236*100","v":63.99976486226322},null,{"$f":"(SUMPRODUCT(P$9:P$229,Nutrients!$DF$8:$DF$228)+(IF($A$7=Nutrients!$B$8,Nutrients!$DF$8,Nutrients!$DF$9)*P$7)+(((IF($A$8=Nutrients!$B$79,Nutrients!$DF$79,(IF($A$8=Nutrients!$B$77,Nutrients!$DF$77,Nutrients!$DF$78)))))*P$8))/2000/P$236*100","v":61.995068995581072},{"$f":"(SUMPRODUCT(Q$9:Q$229,Nutrients!$DF$8:$DF$228)+(IF($A$7=Nutrients!$B$8,Nutrients!$DF$8,Nutrients!$DF$9)*Q$7)+(((IF($A$8=Nutrients!$B$79,Nutrients!$DF$79,(IF($A$8=Nutrients!$B$77,Nutrients!$DF$77,Nutrients!$DF$78)))))*Q$8))/2000/Q$236*100","v":61.99412440748948},{"$f":"(SUMPRODUCT(R$9:R$229,Nutrients!$DF$8:$DF$228)+(IF($A$7=Nutrients!$B$8,Nutrients!$DF$8,Nutrients!$DF$9)*R$7)+(((IF($A$8=Nutrients!$B$79,Nutrients!$DF$79,(IF($A$8=Nutrients!$B$77,Nutrients!$DF$77,Nutrients!$DF$78)))))*R$8))/2000/R$236*100","v":61.994722845535918},{"$f":"(SUMPRODUCT(S$9:S$229,Nutrients!$DF$8:$DF$228)+(IF($A$7=Nutrients!$B$8,Nutrients!$DF$8,Nutrients!$DF$9)*S$7)+(((IF($A$8=Nutrients!$B$79,Nutrients!$DF$79,(IF($A$8=Nutrients!$B$77,Nutrients!$DF$77,Nutrients!$DF$78)))))*S$8))/2000/S$236*100","v":62.996531246284569},{"$f":"(SUMPRODUCT(T$9:T$229,Nutrients!$DF$8:$DF$228)+(IF($A$7=Nutrients!$B$8,Nutrients!$DF$8,Nutrients!$DF$9)*T$7)+(((IF($A$8=Nutrients!$B$79,Nutrients!$DF$79,(IF($A$8=Nutrients!$B$77,Nutrients!$DF$77,Nutrients!$DF$78)))))*T$8))/2000/T$236*100","v":62.994182167193976},{"$f":"(SUMPRODUCT(U$9:U$229,Nutrients!$DF$8:$DF$228)+(IF($A$7=Nutrients!$B$8,Nutrients!$DF$8,Nutrients!$DF$9)*U$7)+(((IF($A$8=Nutrients!$B$79,Nutrients!$DF$79,(IF($A$8=Nutrients!$B$77,Nutrients!$DF$77,Nutrients!$DF$78)))))*U$8))/2000/U$236*100","v":63.99976486226322},null,{"$f":"(SUMPRODUCT(W$9:W$229,Nutrients!$DF$8:$DF$228)+(IF($A$7=Nutrients!$B$8,Nutrients!$DF$8,Nutrients!$DF$9)*W$7)+(((IF($A$8=Nutrients!$B$79,Nutrients!$DF$79,(IF($A$8=Nutrients!$B$77,Nutrients!$DF$77,Nutrients!$DF$78)))))*W$8))/2000/W$236*100","v":61.99278966586467},{"$f":"(SUMPRODUCT(X$9:X$229,Nutrients!$DF$8:$DF$228)+(IF($A$7=Nutrients!$B$8,Nutrients!$DF$8,Nutrients!$DF$9)*X$7)+(((IF($A$8=Nutrients!$B$79,Nutrients!$DF$79,(IF($A$8=Nutrients!$B$77,Nutrients!$DF$77,Nutrients!$DF$78)))))*X$8))/2000/X$236*100","v":61.991310943463077},{"$f":"(SUMPRODUCT(Y$9:Y$229,Nutrients!$DF$8:$DF$228)+(IF($A$7=Nutrients!$B$8,Nutrients!$DF$8,Nutrients!$DF$9)*Y$7)+(((IF($A$8=Nutrients!$B$79,Nutrients!$DF$79,(IF($A$8=Nutrients!$B$77,Nutrients!$DF$77,Nutrients!$DF$78)))))*Y$8))/2000/Y$236*100","v":61.991930387816588},{"$f":"(SUMPRODUCT(Z$9:Z$229,Nutrients!$DF$8:$DF$228)+(IF($A$7=Nutrients!$B$8,Nutrients!$DF$8,Nutrients!$DF$9)*Z$7)+(((IF($A$8=Nutrients!$B$79,Nutrients!$DF$79,(IF($A$8=Nutrients!$B$77,Nutrients!$DF$77,Nutrients!$DF$78)))))*Z$8))/2000/Z$236*100","v":62.993682374637338},{"$f":"(SUMPRODUCT(AA$9:AA$229,Nutrients!$DF$8:$DF$228)+(IF($A$7=Nutrients!$B$8,Nutrients!$DF$8,Nutrients!$DF$9)*AA$7)+(((IF($A$8=Nutrients!$B$79,Nutrients!$DF$79,(IF($A$8=Nutrients!$B$77,Nutrients!$DF$77,Nutrients!$DF$78)))))*AA$8))/2000/AA$236*100","v":62.9893508629753},{"$f":"(SUMPRODUCT(AB$9:AB$229,Nutrients!$DF$8:$DF$228)+(IF($A$7=Nutrients!$B$8,Nutrients!$DF$8,Nutrients!$DF$9)*AB$7)+(((IF($A$8=Nutrients!$B$79,Nutrients!$DF$79,(IF($A$8=Nutrients!$B$77,Nutrients!$DF$77,Nutrients!$DF$78)))))*AB$8))/2000/AB$236*100","v":63.99976486226322},null,{"$f":"(SUMPRODUCT(AD$9:AD$229,Nutrients!$DF$8:$DF$228)+(IF($A$7=Nutrients!$B$8,Nutrients!$DF$8,Nutrients!$DF$9)*AD$7)+(((IF($A$8=Nutrients!$B$79,Nutrients!$DF$79,(IF($A$8=Nutrients!$B$77,Nutrients!$DF$77,Nutrients!$DF$78)))))*AD$8))/2000/AD$236*100","v":61.990336196242033},{"$f":"(SUMPRODUCT(AE$9:AE$229,Nutrients!$DF$8:$DF$228)+(IF($A$7=Nutrients!$B$8,Nutrients!$DF$8,Nutrients!$DF$9)*AE$7)+(((IF($A$8=Nutrients!$B$79,Nutrients!$DF$79,(IF($A$8=Nutrients!$B$77,Nutrients!$DF$77,Nutrients!$DF$78)))))*AE$8))/2000/AE$236*100","v":61.988622873154121},{"$f":"(SUMPRODUCT(AF$9:AF$229,Nutrients!$DF$8:$DF$228)+(IF($A$7=Nutrients!$B$8,Nutrients!$DF$8,Nutrients!$DF$9)*AF$7)+(((IF($A$8=Nutrients!$B$79,Nutrients!$DF$79,(IF($A$8=Nutrients!$B$77,Nutrients!$DF$77,Nutrients!$DF$78)))))*AF$8))/2000/AF$236*100","v":61.989706099774075},{"$f":"(SUMPRODUCT(AG$9:AG$229,Nutrients!$DF$8:$DF$228)+(IF($A$7=Nutrients!$B$8,Nutrients!$DF$8,Nutrients!$DF$9)*AG$7)+(((IF($A$8=Nutrients!$B$79,Nutrients!$DF$79,(IF($A$8=Nutrients!$B$77,Nutrients!$DF$77,Nutrients!$DF$78)))))*AG$8))/2000/AG$236*100","v":62.98883535534975},{"$f":"(SUMPRODUCT(AH$9:AH$229,Nutrients!$DF$8:$DF$228)+(IF($A$7=Nutrients!$B$8,Nutrients!$DF$8,Nutrients!$DF$9)*AH$7)+(((IF($A$8=Nutrients!$B$79,Nutrients!$DF$79,(IF($A$8=Nutrients!$B$77,Nutrients!$DF$77,Nutrients!$DF$78)))))*AH$8))/2000/AH$236*100","v":62.967234568302835},{"$f":"(SUMPRODUCT(AI$9:AI$229,Nutrients!$DF$8:$DF$228)+(IF($A$7=Nutrients!$B$8,Nutrients!$DF$8,Nutrients!$DF$9)*AI$7)+(((IF($A$8=Nutrients!$B$79,Nutrients!$DF$79,(IF($A$8=Nutrients!$B$77,Nutrients!$DF$77,Nutrients!$DF$78)))))*AI$8))/2000/AI$236*100","v":63.99976486226322},null,{"$f":"(SUMPRODUCT(AK$9:AK$229,Nutrients!$DF$8:$DF$228)+(IF($A$7=Nutrients!$B$8,Nutrients!$DF$8,Nutrients!$DF$9)*AK$7)+(((IF($A$8=Nutrients!$B$79,Nutrients!$DF$79,(IF($A$8=Nutrients!$B$77,Nutrients!$DF$77,Nutrients!$DF$78)))))*AK$8))/2000/AK$236*100","v":61.986660929816352},{"$f":"(SUMPRODUCT(AL$9:AL$229,Nutrients!$DF$8:$DF$228)+(IF($A$7=Nutrients!$B$8,Nutrients!$DF$8,Nutrients!$DF$9)*AL$7)+(((IF($A$8=Nutrients!$B$79,Nutrients!$DF$79,(IF($A$8=Nutrients!$B$77,Nutrients!$DF$77,Nutrients!$DF$78)))))*AL$8))/2000/AL$236*100","v":61.985955194667476},{"$f":"(SUMPRODUCT(AM$9:AM$229,Nutrients!$DF$8:$DF$228)+(IF($A$7=Nutrients!$B$8,Nutrients!$DF$8,Nutrients!$DF$9)*AM$7)+(((IF($A$8=Nutrients!$B$79,Nutrients!$DF$79,(IF($A$8=Nutrients!$B$77,Nutrients!$DF$77,Nutrients!$DF$78)))))*AM$8))/2000/AM$236*100","v":61.985790818224707},{"$f":"(SUMPRODUCT(AN$9:AN$229,Nutrients!$DF$8:$DF$228)+(IF($A$7=Nutrients!$B$8,Nutrients!$DF$8,Nutrients!$DF$9)*AN$7)+(((IF($A$8=Nutrients!$B$79,Nutrients!$DF$79,(IF($A$8=Nutrients!$B$77,Nutrients!$DF$77,Nutrients!$DF$78)))))*AN$8))/2000/AN$236*100","v":62.970368632635335},{"$f":"(SUMPRODUCT(AO$9:AO$229,Nutrients!$DF$8:$DF$228)+(IF($A$7=Nutrients!$B$8,Nutrients!$DF$8,Nutrients!$DF$9)*AO$7)+(((IF($A$8=Nutrients!$B$79,Nutrients!$DF$79,(IF($A$8=Nutrients!$B$77,Nutrients!$DF$77,Nutrients!$DF$78)))))*AO$8))/2000/AO$236*100","v":62.940755560057681},{"$f":"(SUMPRODUCT(AP$9:AP$229,Nutrients!$DF$8:$DF$228)+(IF($A$7=Nutrients!$B$8,Nutrients!$DF$8,Nutrients!$DF$9)*AP$7)+(((IF($A$8=Nutrients!$B$79,Nutrients!$DF$79,(IF($A$8=Nutrients!$B$77,Nutrients!$DF$77,Nutrients!$DF$78)))))*AP$8))/2000/AP$236*100","v":63.99976486226322},null,{"$f":"(SUMPRODUCT(AR$9:AR$229,Nutrients!$DF$8:$DF$228)+(IF($A$7=Nutrients!$B$8,Nutrients!$DF$8,Nutrients!$DF$9)*AR$7)+(((IF($A$8=Nutrients!$B$79,Nutrients!$DF$79,(IF($A$8=Nutrients!$B$77,Nutrients!$DF$77,Nutrients!$DF$78)))))*AR$8))/2000/AR$236*100","v":61.984822101675306},{"$f":"(SUMPRODUCT(AS$9:AS$229,Nutrients!$DF$8:$DF$228)+(IF($A$7=Nutrients!$B$8,Nutrients!$DF$8,Nutrients!$DF$9)*AS$7)+(((IF($A$8=Nutrients!$B$79,Nutrients!$DF$79,(IF($A$8=Nutrients!$B$77,Nutrients!$DF$77,Nutrients!$DF$78)))))*AS$8))/2000/AS$236*100","v":61.983276279420863},{"$f":"(SUMPRODUCT(AT$9:AT$229,Nutrients!$DF$8:$DF$228)+(IF($A$7=Nutrients!$B$8,Nutrients!$DF$8,Nutrients!$DF$9)*AT$7)+(((IF($A$8=Nutrients!$B$79,Nutrients!$DF$79,(IF($A$8=Nutrients!$B$77,Nutrients!$DF$77,Nutrients!$DF$78)))))*AT$8))/2000/AT$236*100","v":61.97870307053752},{"$f":"(SUMPRODUCT(AU$9:AU$229,Nutrients!$DF$8:$DF$228)+(IF($A$7=Nutrients!$B$8,Nutrients!$DF$8,Nutrients!$DF$9)*AU$7)+(((IF($A$8=Nutrients!$B$79,Nutrients!$DF$79,(IF($A$8=Nutrients!$B$77,Nutrients!$DF$77,Nutrients!$DF$78)))))*AU$8))/2000/AU$236*100","v":62.946165552990472},{"$f":"(SUMPRODUCT(AV$9:AV$229,Nutrients!$DF$8:$DF$228)+(IF($A$7=Nutrients!$B$8,Nutrients!$DF$8,Nutrients!$DF$9)*AV$7)+(((IF($A$8=Nutrients!$B$79,Nutrients!$DF$79,(IF($A$8=Nutrients!$B$77,Nutrients!$DF$77,Nutrients!$DF$78)))))*AV$8))/2000/AV$236*100","v":62.913962870462846},{"$f":"(SUMPRODUCT(AW$9:AW$229,Nutrients!$DF$8:$DF$228)+(IF($A$7=Nutrients!$B$8,Nutrients!$DF$8,Nutrients!$DF$9)*AW$7)+(((IF($A$8=Nutrients!$B$79,Nutrients!$DF$79,(IF($A$8=Nutrients!$B$77,Nutrients!$DF$77,Nutrients!$DF$78)))))*AW$8))/2000/AW$236*100","v":63.99976486226322}]
["  Trp:Lys",{"$f":"(SUMPRODUCT(B$9:B$229,Nutrients!$DG$8:$DG$228)+(IF($A$7=Nutrients!$B$8,Nutrients!$DG$8,Nutrients!$DG$9)*B$7)+(((IF($A$8=Nutrients!$B$79,Nutrients!$DG$79,(IF($A$8=Nutrients!$B$77,Nutrients!$DG$77,Nutrients!$DG$78)))))*B$8))/2000/B$236*100","v":18.999999999999996},{"$f":"(SUMPRODUCT(C$9:C$229,Nutrients!$DG$8:$DG$228)+(IF($A$7=Nutrients!$B$8,Nutrients!$DG$8,Nutrients!$DG$9)*C$7)+(((IF($A$8=Nutrients!$B$79,Nutrients!$DG$79,(IF($A$8=Nutrients!$B$77,Nutrients!$DG$77,Nutrients!$DG$78)))))*C$8))/2000/C$236*100","v":18.999999999999993},{"$f":"(SUMPRODUCT(D$9:D$229,Nutrients!$DG$8:$DG$228)+(IF($A$7=Nutrients!$B$8,Nutrients!$DG$8,Nutrients!$DG$9)*D$7)+(((IF($A$8=Nutrients!$B$79,Nutrients!$DG$79,(IF($A$8=Nutrients!$B$77,Nutrients!$DG$77,Nutrients!$DG$78)))))*D$8))/2000/D$236*100","v":19.034949922351728},{"$f":"(SUMPRODUCT(E$9:E$229,Nutrients!$DG$8:$DG$228)+(IF($A$7=Nutrients!$B$8,Nutrients!$DG$8,Nutrients!$DG$9)*E$7)+(((IF($A$8=Nutrients!$B$79,Nutrients!$DG$79,(IF($A$8=Nutrients!$B$77,Nutrients!$DG$77,Nutrients!$DG$78)))))*E$8))/2000/E$236*100","v":19},{"$f":"(SUMPRODUCT(F$9:F$229,Nutrients!$DG$8:$DG$228)+(IF($A$7=Nutrients!$B$8,Nutrients!$DG$8,Nutrients!$DG$9)*F$7)+(((IF($A$8=Nutrients!$B$79,Nutrients!$DG$79,(IF($A$8=Nutrients!$B$77,Nutrients!$DG$77,Nutrients!$DG$78)))))*F$8))/2000/F$236*100","v":19.000000000000043},{"$f":"(SUMPRODUCT(G$9:G$229,Nutrients!$DG$8:$DG$228)+(IF($A$7=Nutrients!$B$8,Nutrients!$DG$8,Nutrients!$DG$9)*G$7)+(((IF($A$8=Nutrients!$B$79,Nutrients!$DG$79,(IF($A$8=Nutrients!$B$77,Nutrients!$DG$77,Nutrients!$DG$78)))))*G$8))/2000/G$236*100","v":18.999963234918017},null,{"$f":"(SUMPRODUCT(I$9:I$229,Nutrients!$DG$8:$DG$228)+(IF($A$7=Nutrients!$B$8,Nutrients!$DG$8,Nutrients!$DG$9)*I$7)+(((IF($A$8=Nutrients!$B$79,Nutrients!$DG$79,(IF($A$8=Nutrients!$B$77,Nutrients!$DG$77,Nutrients!$DG$78)))))*I$8))/2000/I$236*100","v":18.993171825041873},{"$f":"(SUMPRODUCT(J$9:J$229,Nutrients!$DG$8:$DG$228)+(IF($A$7=Nutrients!$B$8,Nutrients!$DG$8,Nutrients!$DG$9)*J$7)+(((IF($A$8=Nutrients!$B$79,Nutrients!$DG$79,(IF($A$8=Nutrients!$B$77,Nutrients!$DG$77,Nutrients!$DG$78)))))*J$8))/2000/J$236*100","v":18.992237601614914},{"$f":"(SUMPRODUCT(K$9:K$229,Nutrients!$DG$8:$DG$228)+(IF($A$7=Nutrients!$B$8,Nutrients!$DG$8,Nutrients!$DG$9)*K$7)+(((IF($A$8=Nutrients!$B$79,Nutrients!$DG$79,(IF($A$8=Nutrients!$B$77,Nutrients!$DG$77,Nutrients!$DG$78)))))*K$8))/2000/K$236*100","v":19.026248607115352},{"$f":"(SUMPRODUCT(L$9:L$229,Nutrients!$DG$8:$DG$228)+(IF($A$7=Nutrients!$B$8,Nutrients!$DG$8,Nutrients!$DG$9)*L$7)+(((IF($A$8=Nutrients!$B$79,Nutrients!$DG$79,(IF($A$8=Nutrients!$B$77,Nutrients!$DG$77,Nutrients!$DG$78)))))*L$8))/2000/L$236*100","v":18.990370963224979},{"$f":"(SUMPRODUCT(M$9:M$229,Nutrients!$DG$8:$DG$228)+(IF($A$7=Nutrients!$B$8,Nutrients!$DG$8,Nutrients!$DG$9)*M$7)+(((IF($A$8=Nutrients!$B$79,Nutrients!$DG$79,(IF($A$8=Nutrients!$B$77,Nutrients!$DG$77,Nutrients!$DG$78)))))*M$8))/2000/M$236*100","v":18.989383057992594},{"$f":"(SUMPRODUCT(N$9:N$229,Nutrients!$DG$8:$DG$228)+(IF($A$7=Nutrients!$B$8,Nutrients!$DG$8,Nutrients!$DG$9)*N$7)+(((IF($A$8=Nutrients!$B$79,Nutrients!$DG$79,(IF($A$8=Nutrients!$B$77,Nutrients!$DG$77,Nutrients!$DG$78)))))*N$8))/2000/N$236*100","v":18.999963234918017},null,{"$f":"(SUMPRODUCT(P$9:P$229,Nutrients!$DG$8:$DG$228)+(IF($A$7=Nutrients!$B$8,Nutrients!$DG$8,Nutrients!$DG$9)*P$7)+(((IF($A$8=Nutrients!$B$79,Nutrients!$DG$79,(IF($A$8=Nutrients!$B$77,Nutrients!$DG$77,Nutrients!$DG$78)))))*P$8))/2000/P$236*100","v":19.027649815152849},{"$f":"(SUMPRODUCT(Q$9:Q$229,Nutrients!$DG$8:$DG$228)+(IF($A$7=Nutrients!$B$8,Nutrients!$DG$8,Nutrients!$DG$9)*Q$7)+(((IF($A$8=Nutrients!$B$79,Nutrients!$DG$79,(IF($A$8=Nutrients!$B$77,Nutrients!$DG$77,Nutrients!$DG$78)))))*Q$8))/2000/Q$236*100","v":19.031221084062206},{"$f":"(SUMPRODUCT(R$9:R$229,Nutrients!$DG$8:$DG$228)+(IF($A$7=Nutrients!$B$8,Nutrients!$DG$8,Nutrients!$DG$9)*R$7)+(((IF($A$8=Nutrients!$B$79,Nutrients!$DG$79,(IF($A$8=Nutrients!$B$77,Nutrients!$DG$77,Nutrients!$DG$78)))))*R$8))/2000/R$236*100","v":19.070335150710036},{"$f":"(SUMPRODUCT(S$9:S$229,Nutrients!$DG$8:$DG$228)+(IF($A$7=Nutrients!$B$8,Nutrients!$DG$8,Nutrients!$DG$9)*S$7)+(((IF($A$8=Nutrients!$B$79,Nutrients!$DG$79,(IF($A$8=Nutrients!$B$77,Nutrients!$DG$77,Nutrients!$DG$78)))))*S$8))/2000/S$236*100","v":19.039848707860809},{"$f":"(SUMPRODUCT(T$9:T$229,Nutrients!$DG$8:$DG$228)+(IF($A$7=Nutrients!$B$8,Nutrients!$DG$8,Nutrients!$DG$9)*T$7)+(((IF($A$8=Nutrients!$B$79,Nutrients!$DG$79,(IF($A$8=Nutrients!$B$77,Nutrients!$DG$77,Nutrients!$DG$78)))))*T$8))/2000/T$236*100","v":19.043371125566264},{"$f":"(SUMPRODUCT(U$9:U$229,Nutrients!$DG$8:$DG$228)+(IF($A$7=Nutrients!$B$8,Nutrients!$DG$8,Nutrients!$DG$9)*U$7)+(((IF($A$8=Nutrients!$B$79,Nutrients!$DG$79,(IF($A$8=Nutrients!$B$77,Nutrients!$DG$77,Nutrients!$DG$78)))))*U$8))/2000/U$236*100","v":18.999963234918017},null,{"$f":"(SUMPRODUCT(W$9:W$229,Nutrients!$DG$8:$DG$228)+(IF($A$7=Nutrients!$B$8,Nutrients!$DG$8,Nutrients!$DG$9)*W$7)+(((IF($A$8=Nutrients!$B$79,Nutrients!$DG$79,(IF($A$8=Nutrients!$B$77,Nutrients!$DG$77,Nutrients!$DG$78)))))*W$8))/2000/W$236*100","v":19.062119904714191},{"$f":"(SUMPRODUCT(X$9:X$229,Nutrients!$DG$8:$DG$228)+(IF($A$7=Nutrients!$B$8,Nutrients!$DG$8,Nutrients!$DG$9)*X$7)+(((IF($A$8=Nutrients!$B$79,Nutrients!$DG$79,(IF($A$8=Nutrients!$B$77,Nutrients!$DG$77,Nutrients!$DG$78)))))*X$8))/2000/X$236*100","v":19.070193841739965},{"$f":"(SUMPRODUCT(Y$9:Y$229,Nutrients!$DG$8:$DG$228)+(IF($A$7=Nutrients!$B$8,Nutrients!$DG$8,Nutrients!$DG$9)*Y$7)+(((IF($A$8=Nutrients!$B$79,Nutrients!$DG$79,(IF($A$8=Nutrients!$B$77,Nutrients!$DG$77,Nutrients!$DG$78)))))*Y$8))/2000/Y$236*100","v":19.114450656589934},{"$f":"(SUMPRODUCT(Z$9:Z$229,Nutrients!$DG$8:$DG$228)+(IF($A$7=Nutrients!$B$8,Nutrients!$DG$8,Nutrients!$DG$9)*Z$7)+(((IF($A$8=Nutrients!$B$79,Nutrients!$DG$79,(IF($A$8=Nutrients!$B$77,Nutrients!$DG$77,Nutrients!$DG$78)))))*Z$8))/2000/Z$236*100","v":19.089366257750381},{"$f":"(SUMPRODUCT(AA$9:AA$229,Nutrients!$DG$8:$DG$228)+(IF($A$7=Nutrients!$B$8,Nutrients!$DG$8,Nutrients!$DG$9)*AA$7)+(((IF($A$8=Nutrients!$B$79,Nutrients!$DG$79,(IF($A$8=Nutrients!$B$77,Nutrients!$DG$77,Nutrients!$DG$78)))))*AA$8))/2000/AA$236*100","v":19.097330028987773},{"$f":"(SUMPRODUCT(AB$9:AB$229,Nutrients!$DG$8:$DG$228)+(IF($A$7=Nutrients!$B$8,Nutrients!$DG$8,Nutrients!$DG$9)*AB$7)+(((IF($A$8=Nutrients!$B$79,Nutrients!$DG$79,(IF($A$8=Nutrients!$B$77,Nutrients!$DG$77,Nutrients!$DG$78)))))*AB$8))/2000/AB$236*100","v":18.999963234918017},null,{"$f":"(SUMPRODUCT(AD$9:AD$229,Nutrients!$DG$8:$DG$228)+(IF($A$7=Nutrients!$B$8,Nutrients!$DG$8,Nutrients!$DG$9)*AD$7)+(((IF($A$8=Nutrients!$B$79,Nutrients!$DG$79,(IF($A$8=Nutrients!$B$77,Nutrients!$DG$77,Nutrients!$DG$78)))))*AD$8))/2000/AD$236*100","v":19.096580297643765},{"$f":"(SUMPRODUCT(AE$9:AE$229,Nutrients!$DG$8:$DG$228)+(IF($A$7=Nutrients!$B$8,Nutrients!$DG$8,Nutrients!$DG$9)*AE$7)+(((IF($A$8=Nutrients!$B$79,Nutrients!$DG$79,(IF($A$8=Nutrients!$B$77,Nutrients!$DG$77,Nutrients!$DG$78)))))*AE$8))/2000/AE$236*100","v":19.109173581715648},{"$f":"(SUMPRODUCT(AF$9:AF$229,Nutrients!$DG$8:$DG$228)+(IF($A$7=Nutrients!$B$8,Nutrients!$DG$8,Nutrients!$DG$9)*AF$7)+(((IF($A$8=Nutrients!$B$79,Nutrients!$DG$79,(IF($A$8=Nutrients!$B$77,Nutrients!$DG$77,Nutrients!$DG$78)))))*AF$8))/2000/AF$236*100","v":19.093349216619409},{"$f":"(SUMPRODUCT(AG$9:AG$229,Nutrients!$DG$8:$DG$228)+(IF($A$7=Nutrients!$B$8,Nutrients!$DG$8,Nutrients!$DG$9)*AG$7)+(((IF($A$8=Nutrients!$B$79,Nutrients!$DG$79,(IF($A$8=Nutrients!$B$77,Nutrients!$DG$77,Nutrients!$DG$78)))))*AG$8))/2000/AG$236*100","v":19.138772544792058},{"$f":"(SUMPRODUCT(AH$9:AH$229,Nutrients!$DG$8:$DG$228)+(IF($A$7=Nutrients!$B$8,Nutrients!$DG$8,Nutrients!$DG$9)*AH$7)+(((IF($A$8=Nutrients!$B$79,Nutrients!$DG$79,(IF($A$8=Nutrients!$B$77,Nutrients!$DG$77,Nutrients!$DG$78)))))*AH$8))/2000/AH$236*100","v":19.095908187686035},{"$f":"(SUMPRODUCT(AI$9:AI$229,Nutrients!$DG$8:$DG$228)+(IF($A$7=Nutrients!$B$8,Nutrients!$DG$8,Nutrients!$DG$9)*AI$7)+(((IF($A$8=Nutrients!$B$79,Nutrients!$DG$79,(IF($A$8=Nutrients!$B$77,Nutrients!$DG$77,Nutrients!$DG$78)))))*AI$8))/2000/AI$236*100","v":18.999963234918017},null,{"$f":"(SUMPRODUCT(AK$9:AK$229,Nutrients!$DG$8:$DG$228)+(IF($A$7=Nutrients!$B$8,Nutrients!$DG$8,Nutrients!$DG$9)*AK$7)+(((IF($A$8=Nutrients!$B$79,Nutrients!$DG$79,(IF($A$8=Nutrients!$B$77,Nutrients!$DG$77,Nutrients!$DG$78)))))*AK$8))/2000/AK$236*100","v":19.130972657266341},{"$f":"(SUMPRODUCT(AL$9:AL$229,Nutrients!$DG$8:$DG$228)+(IF($A$7=Nutrients!$B$8,Nutrients!$DG$8,Nutrients!$DG$9)*AL$7)+(((IF($A$8=Nutrients!$B$79,Nutrients!$DG$79,(IF($A$8=Nutrients!$B$77,Nutrients!$DG$77,Nutrients!$DG$78)))))*AL$8))/2000/AL$236*100","v":19.148154457169095},{"$f":"(SUMPRODUCT(AM$9:AM$229,Nutrients!$DG$8:$DG$228)+(IF($A$7=Nutrients!$B$8,Nutrients!$DG$8,Nutrients!$DG$9)*AM$7)+(((IF($A$8=Nutrients!$B$79,Nutrients!$DG$79,(IF($A$8=Nutrients!$B$77,Nutrients!$DG$77,Nutrients!$DG$78)))))*AM$8))/2000/AM$236*100","v":19.137402200304017},{"$f":"(SUMPRODUCT(AN$9:AN$229,Nutrients!$DG$8:$DG$228)+(IF($A$7=Nutrients!$B$8,Nutrients!$DG$8,Nutrients!$DG$9)*AN$7)+(((IF($A$8=Nutrients!$B$79,Nutrients!$DG$79,(IF($A$8=Nutrients!$B$77,Nutrients!$DG$77,Nutrients!$DG$78)))))*AN$8))/2000/AN$236*100","v":19.117938801808453},{"$f":"(SUMPRODUCT(AO$9:AO$229,Nutrients!$DG$8:$DG$228)+(IF($A$7=Nutrients!$B$8,Nutrients!$DG$8,Nutrients!$DG$9)*AO$7)+(((IF($A$8=Nutrients!$B$79,Nutrients!$DG$79,(IF($A$8=Nutrients!$B$77,Nutrients!$DG$77,Nutrients!$DG$78)))))*AO$8))/2000/AO$236*100","v":18.99838846318892},{"$f":"(SUMPRODUCT(AP$9:AP$229,Nutrients!$DG$8:$DG$228)+(IF($A$7=Nutrients!$B$8,Nutrients!$DG$8,Nutrients!$DG$9)*AP$7)+(((IF($A$8=Nutrients!$B$79,Nutrients!$DG$79,(IF($A$8=Nutrients!$B$77,Nutrients!$DG$77,Nutrients!$DG$78)))))*AP$8))/2000/AP$236*100","v":18.999963234918017},null,{"$f":"(SUMPRODUCT(AR$9:AR$229,Nutrients!$DG$8:$DG$228)+(IF($A$7=Nutrients!$B$8,Nutrients!$DG$8,Nutrients!$DG$9)*AR$7)+(((IF($A$8=Nutrients!$B$79,Nutrients!$DG$79,(IF($A$8=Nutrients!$B$77,Nutrients!$DG$77,Nutrients!$DG$78)))))*AR$8))/2000/AR$236*100","v":18.998939159421898},{"$f":"(SUMPRODUCT(AS$9:AS$229,Nutrients!$DG$8:$DG$228)+(IF($A$7=Nutrients!$B$8,Nutrients!$DG$8,Nutrients!$DG$9)*AS$7)+(((IF($A$8=Nutrients!$B$79,Nutrients!$DG$79,(IF($A$8=Nutrients!$B$77,Nutrients!$DG$77,Nutrients!$DG$78)))))*AS$8))/2000/AS$236*100","v":18.998797299999527},{"$f":"(SUMPRODUCT(AT$9:AT$229,Nutrients!$DG$8:$DG$228)+(IF($A$7=Nutrients!$B$8,Nutrients!$DG$8,Nutrients!$DG$9)*AT$7)+(((IF($A$8=Nutrients!$B$79,Nutrients!$DG$79,(IF($A$8=Nutrients!$B$77,Nutrients!$DG$77,Nutrients!$DG$78)))))*AT$8))/2000/AT$236*100","v":18.998599119055552},{"$f":"(SUMPRODUCT(AU$9:AU$229,Nutrients!$DG$8:$DG$228)+(IF($A$7=Nutrients!$B$8,Nutrients!$DG$8,Nutrients!$DG$9)*AU$7)+(((IF($A$8=Nutrients!$B$79,Nutrients!$DG$79,(IF($A$8=Nutrients!$B$77,Nutrients!$DG$77,Nutrients!$DG$78)))))*AU$8))/2000/AU$236*100","v":18.998224591125833},{"$f":"(SUMPRODUCT(AV$9:AV$229,Nutrients!$DG$8:$DG$228)+(IF($A$7=Nutrients!$B$8,Nutrients!$DG$8,Nutrients!$DG$9)*AV$7)+(((IF($A$8=Nutrients!$B$79,Nutrients!$DG$79,(IF($A$8=Nutrients!$B$77,Nutrients!$DG$77,Nutrients!$DG$78)))))*AV$8))/2000/AV$236*100","v":19.146462233224966},{"$f":"(SUMPRODUCT(AW$9:AW$229,Nutrients!$DG$8:$DG$228)+(IF($A$7=Nutrients!$B$8,Nutrients!$DG$8,Nutrients!$DG$9)*AW$7)+(((IF($A$8=Nutrients!$B$79,Nutrients!$DG$79,(IF($A$8=Nutrients!$B$77,Nutrients!$DG$77,Nutrients!$DG$78)))))*AW$8))/2000/AW$236*100","v":18.999963234918017}]
["  Val:Lys",{"$f":"(SUMPRODUCT(B$9:B$229,Nutrients!$DH$8:$DH$228)+(IF($A$7=Nutrients!$B$8,Nutrients!$DH$8,Nutrients!$DH$9)*B$7)+(((IF($A$8=Nutrients!$B$79,Nutrients!$DH$79,(IF($A$8=Nutrients!$B$77,Nutrients!$DH$77,Nutrients!$DH$78)))))*B$8))/2000/B$236*100","v":67.993447185961713},{"$f":"(SUMPRODUCT(C$9:C$229,Nutrients!$DH$8:$DH$228)+(IF($A$7=Nutrients!$B$8,Nutrients!$DH$8,Nutrients!$DH$9)*C$7)+(((IF($A$8=Nutrients!$B$79,Nutrients!$DH$79,(IF($A$8=Nutrients!$B$77,Nutrients!$DH$77,Nutrients!$DH$78)))))*C$8))/2000/C$236*100","v":68.398027542407448},{"$f":"(SUMPRODUCT(D$9:D$229,Nutrients!$DH$8:$DH$228)+(IF($A$7=Nutrients!$B$8,Nutrients!$DH$8,Nutrients!$DH$9)*D$7)+(((IF($A$8=Nutrients!$B$79,Nutrients!$DH$79,(IF($A$8=Nutrients!$B$77,Nutrients!$DH$77,Nutrients!$DH$78)))))*D$8))/2000/D$236*100","v":69.100266999000937},{"$f":"(SUMPRODUCT(E$9:E$229,Nutrients!$DH$8:$DH$228)+(IF($A$7=Nutrients!$B$8,Nutrients!$DH$8,Nutrients!$DH$9)*E$7)+(((IF($A$8=Nutrients!$B$79,Nutrients!$DH$79,(IF($A$8=Nutrients!$B$77,Nutrients!$DH$77,Nutrients!$DH$78)))))*E$8))/2000/E$236*100","v":69.699001665042786},{"$f":"(SUMPRODUCT(F$9:F$229,Nutrients!$DH$8:$DH$228)+(IF($A$7=Nutrients!$B$8,Nutrients!$DH$8,Nutrients!$DH$9)*F$7)+(((IF($A$8=Nutrients!$B$79,Nutrients!$DH$79,(IF($A$8=Nutrients!$B$77,Nutrients!$DH$77,Nutrients!$DH$78)))))*F$8))/2000/F$236*100","v":70.40130835469482},{"$f":"(SUMPRODUCT(G$9:G$229,Nutrients!$DH$8:$DH$228)+(IF($A$7=Nutrients!$B$8,Nutrients!$DH$8,Nutrients!$DH$9)*G$7)+(((IF($A$8=Nutrients!$B$79,Nutrients!$DH$79,(IF($A$8=Nutrients!$B$77,Nutrients!$DH$77,Nutrients!$DH$78)))))*G$8))/2000/G$236*100","v":71.102510214887189},null,{"$f":"(SUMPRODUCT(I$9:I$229,Nutrients!$DH$8:$DH$228)+(IF($A$7=Nutrients!$B$8,Nutrients!$DH$8,Nutrients!$DH$9)*I$7)+(((IF($A$8=Nutrients!$B$79,Nutrients!$DH$79,(IF($A$8=Nutrients!$B$77,Nutrients!$DH$77,Nutrients!$DH$78)))))*I$8))/2000/I$236*100","v":68.99664679497559},{"$f":"(SUMPRODUCT(J$9:J$229,Nutrients!$DH$8:$DH$228)+(IF($A$7=Nutrients!$B$8,Nutrients!$DH$8,Nutrients!$DH$9)*J$7)+(((IF($A$8=Nutrients!$B$79,Nutrients!$DH$79,(IF($A$8=Nutrients!$B$77,Nutrients!$DH$77,Nutrients!$DH$78)))))*J$8))/2000/J$236*100","v":69.531456841090204},{"$f":"(SUMPRODUCT(K$9:K$229,Nutrients!$DH$8:$DH$228)+(IF($A$7=Nutrients!$B$8,Nutrients!$DH$8,Nutrients!$DH$9)*K$7)+(((IF($A$8=Nutrients!$B$79,Nutrients!$DH$79,(IF($A$8=Nutrients!$B$77,Nutrients!$DH$77,Nutrients!$DH$78)))))*K$8))/2000/K$236*100","v":70.385069095769481},{"$f":"(SUMPRODUCT(L$9:L$229,Nutrients!$DH$8:$DH$228)+(IF($A$7=Nutrients!$B$8,Nutrients!$DH$8,Nutrients!$DH$9)*L$7)+(((IF($A$8=Nutrients!$B$79,Nutrients!$DH$79,(IF($A$8=Nutrients!$B$77,Nutrients!$DH$77,Nutrients!$DH$78)))))*L$8))/2000/L$236*100","v":71.144724169438206},{"$f":"(SUMPRODUCT(M$9:M$229,Nutrients!$DH$8:$DH$228)+(IF($A$7=Nutrients!$B$8,Nutrients!$DH$8,Nutrients!$DH$9)*M$7)+(((IF($A$8=Nutrients!$B$79,Nutrients!$DH$79,(IF($A$8=Nutrients!$B$77,Nutrients!$DH$77,Nutrients!$DH$78)))))*M$8))/2000/M$236*100","v":71.976319383478256},{"$f":"(SUMPRODUCT(N$9:N$229,Nutrients!$DH$8:$DH$228)+(IF($A$7=Nutrients!$B$8,Nutrients!$DH$8,Nutrients!$DH$9)*N$7)+(((IF($A$8=Nutrients!$B$79,Nutrients!$DH$79,(IF($A$8=Nutrients!$B$77,Nutrients!$DH$77,Nutrients!$DH$78)))))*N$8))/2000/N$236*100","v":71.102510214887189},null,{"$f":"(SUMPRODUCT(P$9:P$229,Nutrients!$DH$8:$DH$228)+(IF($A$7=Nutrients!$B$8,Nutrients!$DH$8,Nutrients!$DH$9)*P$7)+(((IF($A$8=Nutrients!$B$79,Nutrients!$DH$79,(IF($A$8=Nutrients!$B$77,Nutrients!$DH$77,Nutrients!$DH$78)))))*P$8))/2000/P$236*100","v":69.999687369182922},{"$f":"(SUMPRODUCT(Q$9:Q$229,Nutrients!$DH$8:$DH$228)+(IF($A$7=Nutrients!$B$8,Nutrients!$DH$8,Nutrients!$DH$9)*Q$7)+(((IF($A$8=Nutrients!$B$79,Nutrients!$DH$79,(IF($A$8=Nutrients!$B$77,Nutrients!$DH$77,Nutrients!$DH$78)))))*Q$8))/2000/Q$236*100","v":70.665560521273761},{"$f":"(SUMPRODUCT(R$9:R$229,Nutrients!$DH$8:$DH$228)+(IF($A$7=Nutrients!$B$8,Nutrients!$DH$8,Nutrients!$DH$9)*R$7)+(((IF($A$8=Nutrients!$B$79,Nutrients!$DH$79,(IF($A$8=Nutrients!$B$77,Nutrients!$DH$77,Nutrients!$DH$78)))))*R$8))/2000/R$236*100","v":71.667610758631966},{"$f":"(SUMPRODUCT(S$9:S$229,Nutrients!$DH$8:$DH$228)+(IF($A$7=Nutrients!$B$8,Nutrients!$DH$8,Nutrients!$DH$9)*S$7)+(((IF($A$8=Nutrients!$B$79,Nutrients!$DH$79,(IF($A$8=Nutrients!$B$77,Nutrients!$DH$77,Nutrients!$DH$78)))))*S$8))/2000/S$236*100","v":72.58411244240726},{"$f":"(SUMPRODUCT(T$9:T$229,Nutrients!$DH$8:$DH$228)+(IF($A$7=Nutrients!$B$8,Nutrients!$DH$8,Nutrients!$DH$9)*T$7)+(((IF($A$8=Nutrients!$B$79,Nutrients!$DH$79,(IF($A$8=Nutrients!$B$77,Nutrients!$DH$77,Nutrients!$DH$78)))))*T$8))/2000/T$236*100","v":73.546896541268609},{"$f":"(SUMPRODUCT(U$9:U$229,Nutrients!$DH$8:$DH$228)+(IF($A$7=Nutrients!$B$8,Nutrients!$DH$8,Nutrients!$DH$9)*U$7)+(((IF($A$8=Nutrients!$B$79,Nutrients!$DH$79,(IF($A$8=Nutrients!$B$77,Nutrients!$DH$77,Nutrients!$DH$78)))))*U$8))/2000/U$236*100","v":71.102510214887189},null,{"$f":"(SUMPRODUCT(W$9:W$229,Nutrients!$DH$8:$DH$228)+(IF($A$7=Nutrients!$B$8,Nutrients!$DH$8,Nutrients!$DH$9)*W$7)+(((IF($A$8=Nutrients!$B$79,Nutrients!$DH$79,(IF($A$8=Nutrients!$B$77,Nutrients!$DH$77,Nutrients!$DH$78)))))*W$8))/2000/W$236*100","v":71.00249002327341},{"$f":"(SUMPRODUCT(X$9:X$229,Nutrients!$DH$8:$DH$228)+(IF($A$7=Nutrients!$B$8,Nutrients!$DH$8,Nutrients!$DH$9)*X$7)+(((IF($A$8=Nutrients!$B$79,Nutrients!$DH$79,(IF($A$8=Nutrients!$B$77,Nutrients!$DH$77,Nutrients!$DH$78)))))*X$8))/2000/X$236*100","v":71.799341231722508},{"$f":"(SUMPRODUCT(Y$9:Y$229,Nutrients!$DH$8:$DH$228)+(IF($A$7=Nutrients!$B$8,Nutrients!$DH$8,Nutrients!$DH$9)*Y$7)+(((IF($A$8=Nutrients!$B$79,Nutrients!$DH$79,(IF($A$8=Nutrients!$B$77,Nutrients!$DH$77,Nutrients!$DH$78)))))*Y$8))/2000/Y$236*100","v":72.951024602621061},{"$f":"(SUMPRODUCT(Z$9:Z$229,Nutrients!$DH$8:$DH$228)+(IF($A$7=Nutrients!$B$8,Nutrients!$DH$8,Nutrients!$DH$9)*Z$7)+(((IF($A$8=Nutrients!$B$79,Nutrients!$DH$79,(IF($A$8=Nutrients!$B$77,Nutrients!$DH$77,Nutrients!$DH$78)))))*Z$8))/2000/Z$236*100","v":74.024699425726041},{"$f":"(SUMPRODUCT(AA$9:AA$229,Nutrients!$DH$8:$DH$228)+(IF($A$7=Nutrients!$B$8,Nutrients!$DH$8,Nutrients!$DH$9)*AA$7)+(((IF($A$8=Nutrients!$B$79,Nutrients!$DH$79,(IF($A$8=Nutrients!$B$77,Nutrients!$DH$77,Nutrients!$DH$78)))))*AA$8))/2000/AA$236*100","v":75.116595438835375},{"$f":"(SUMPRODUCT(AB$9:AB$229,Nutrients!$DH$8:$DH$228)+(IF($A$7=Nutrients!$B$8,Nutrients!$DH$8,Nutrients!$DH$9)*AB$7)+(((IF($A$8=Nutrients!$B$79,Nutrients!$DH$79,(IF($A$8=Nutrients!$B$77,Nutrients!$DH$77,Nutrients!$DH$78)))))*AB$8))/2000/AB$236*100","v":71.102510214887189},null,{"$f":"(SUMPRODUCT(AD$9:AD$229,Nutrients!$DH$8:$DH$228)+(IF($A$7=Nutrients!$B$8,Nutrients!$DH$8,Nutrients!$DH$9)*AD$7)+(((IF($A$8=Nutrients!$B$79,Nutrients!$DH$79,(IF($A$8=Nutrients!$B$77,Nutrients!$DH$77,Nutrients!$DH$78)))))*AD$8))/2000/AD$236*100","v":72.005000669355596},{"$f":"(SUMPRODUCT(AE$9:AE$229,Nutrients!$DH$8:$DH$228)+(IF($A$7=Nutrients!$B$8,Nutrients!$DH$8,Nutrients!$DH$9)*AE$7)+(((IF($A$8=Nutrients!$B$79,Nutrients!$DH$79,(IF($A$8=Nutrients!$B$77,Nutrients!$DH$77,Nutrients!$DH$78)))))*AE$8))/2000/AE$236*100","v":72.93333220971121},{"$f":"(SUMPRODUCT(AF$9:AF$229,Nutrients!$DH$8:$DH$228)+(IF($A$7=Nutrients!$B$8,Nutrients!$DH$8,Nutrients!$DH$9)*AF$7)+(((IF($A$8=Nutrients!$B$79,Nutrients!$DH$79,(IF($A$8=Nutrients!$B$77,Nutrients!$DH$77,Nutrients!$DH$78)))))*AF$8))/2000/AF$236*100","v":74.235391186848361},{"$f":"(SUMPRODUCT(AG$9:AG$229,Nutrients!$DH$8:$DH$228)+(IF($A$7=Nutrients!$B$8,Nutrients!$DH$8,Nutrients!$DH$9)*AG$7)+(((IF($A$8=Nutrients!$B$79,Nutrients!$DH$79,(IF($A$8=Nutrients!$B$77,Nutrients!$DH$77,Nutrients!$DH$78)))))*AG$8))/2000/AG$236*100","v":75.461935797886809},{"$f":"(SUMPRODUCT(AH$9:AH$229,Nutrients!$DH$8:$DH$228)+(IF($A$7=Nutrients!$B$8,Nutrients!$DH$8,Nutrients!$DH$9)*AH$7)+(((IF($A$8=Nutrients!$B$79,Nutrients!$DH$79,(IF($A$8=Nutrients!$B$77,Nutrients!$DH$77,Nutrients!$DH$78)))))*AH$8))/2000/AH$236*100","v":76.657309850615462},{"$f":"(SUMPRODUCT(AI$9:AI$229,Nutrients!$DH$8:$DH$228)+(IF($A$7=Nutrients!$B$8,Nutrients!$DH$8,Nutrients!$DH$9)*AI$7)+(((IF($A$8=Nutrients!$B$79,Nutrients!$DH$79,(IF($A$8=Nutrients!$B$77,Nutrients!$DH$77,Nutrients!$DH$78)))))*AI$8))/2000/AI$236*100","v":71.102510214887189},null,{"$f":"(SUMPRODUCT(AK$9:AK$229,Nutrients!$DH$8:$DH$228)+(IF($A$7=Nutrients!$B$8,Nutrients!$DH$8,Nutrients!$DH$9)*AK$7)+(((IF($A$8=Nutrients!$B$79,Nutrients!$DH$79,(IF($A$8=Nutrients!$B$77,Nutrients!$DH$77,Nutrients!$DH$78)))))*AK$8))/2000/AK$236*100","v":73.005462534897902},{"$f":"(SUMPRODUCT(AL$9:AL$229,Nutrients!$DH$8:$DH$228)+(IF($A$7=Nutrients!$B$8,Nutrients!$DH$8,Nutrients!$DH$9)*AL$7)+(((IF($A$8=Nutrients!$B$79,Nutrients!$DH$79,(IF($A$8=Nutrients!$B$77,Nutrients!$DH$77,Nutrients!$DH$78)))))*AL$8))/2000/AL$236*100","v":74.067357381903577},{"$f":"(SUMPRODUCT(AM$9:AM$229,Nutrients!$DH$8:$DH$228)+(IF($A$7=Nutrients!$B$8,Nutrients!$DH$8,Nutrients!$DH$9)*AM$7)+(((IF($A$8=Nutrients!$B$79,Nutrients!$DH$79,(IF($A$8=Nutrients!$B$77,Nutrients!$DH$77,Nutrients!$DH$78)))))*AM$8))/2000/AM$236*100","v":75.516922213983719},{"$f":"(SUMPRODUCT(AN$9:AN$229,Nutrients!$DH$8:$DH$228)+(IF($A$7=Nutrients!$B$8,Nutrients!$DH$8,Nutrients!$DH$9)*AN$7)+(((IF($A$8=Nutrients!$B$79,Nutrients!$DH$79,(IF($A$8=Nutrients!$B$77,Nutrients!$DH$77,Nutrients!$DH$78)))))*AN$8))/2000/AN$236*100","v":76.876333852522947},{"$f":"(SUMPRODUCT(AO$9:AO$229,Nutrients!$DH$8:$DH$228)+(IF($A$7=Nutrients!$B$8,Nutrients!$DH$8,Nutrients!$DH$9)*AO$7)+(((IF($A$8=Nutrients!$B$79,Nutrients!$DH$79,(IF($A$8=Nutrients!$B$77,Nutrients!$DH$77,Nutrients!$DH$78)))))*AO$8))/2000/AO$236*100","v":78.190708608396434},{"$f":"(SUMPRODUCT(AP$9:AP$229,Nutrients!$DH$8:$DH$228)+(IF($A$7=Nutrients!$B$8,Nutrients!$DH$8,Nutrients!$DH$9)*AP$7)+(((IF($A$8=Nutrients!$B$79,Nutrients!$DH$79,(IF($A$8=Nutrients!$B$77,Nutrients!$DH$77,Nutrients!$DH$78)))))*AP$8))/2000/AP$236*100","v":71.102510214887189},null,{"$f":"(SUMPRODUCT(AR$9:AR$229,Nutrients!$DH$8:$DH$228)+(IF($A$7=Nutrients!$B$8,Nutrients!$DH$8,Nutrients!$DH$9)*AR$7)+(((IF($A$8=Nutrients!$B$79,Nutrients!$DH$79,(IF($A$8=Nutrients!$B$77,Nutrients!$DH$77,Nutrients!$DH$78)))))*AR$8))/2000/AR$236*100","v":74.009003847866126},{"$f":"(SUMPRODUCT(AS$9:AS$229,Nutrients!$DH$8:$DH$228)+(IF($A$7=Nutrients!$B$8,Nutrients!$DH$8,Nutrients!$DH$9)*AS$7)+(((IF($A$8=Nutrients!$B$79,Nutrients!$DH$79,(IF($A$8=Nutrients!$B$77,Nutrients!$DH$77,Nutrients!$DH$78)))))*AS$8))/2000/AS$236*100","v":75.201363711637796},{"$f":"(SUMPRODUCT(AT$9:AT$229,Nutrients!$DH$8:$DH$228)+(IF($A$7=Nutrients!$B$8,Nutrients!$DH$8,Nutrients!$DH$9)*AT$7)+(((IF($A$8=Nutrients!$B$79,Nutrients!$DH$79,(IF($A$8=Nutrients!$B$77,Nutrients!$DH$77,Nutrients!$DH$78)))))*AT$8))/2000/AT$236*100","v":76.79313346382871},{"$f":"(SUMPRODUCT(AU$9:AU$229,Nutrients!$DH$8:$DH$228)+(IF($A$7=Nutrients!$B$8,Nutrients!$DH$8,Nutrients!$DH$9)*AU$7)+(((IF($A$8=Nutrients!$B$79,Nutrients!$DH$79,(IF($A$8=Nutrients!$B$77,Nutrients!$DH$77,Nutrients!$DH$78)))))*AU$8))/2000/AU$236*100","v":78.281112847411123},{"$f":"(SUMPRODUCT(AV$9:AV$229,Nutrients!$DH$8:$DH$228)+(IF($A$7=Nutrients!$B$8,Nutrients!$DH$8,Nutrients!$DH$9)*AV$7)+(((IF($A$8=Nutrients!$B$79,Nutrients!$DH$79,(IF($A$8=Nutrients!$B$77,Nutrients!$DH$77,Nutrients!$DH$78)))))*AV$8))/2000/AV$236*100","v":79.723581366892262},{"$f":"(SUMPRODUCT(AW$9:AW$229,Nutrients!$DH$8:$DH$228)+(IF($A$7=Nutrients!$B$8,Nutrients!$DH$8,Nutrients!$DH$9)*AW$7)+(((IF($A$8=Nutrients!$B$79,Nutrients!$DH$79,(IF($A$8=Nutrients!$B$77,Nutrients!$DH$77,Nutrients!$DH$78)))))*AW$8))/2000/AW$236*100","v":71.102510214887189}]
["  His:Lys",{"$f":"(SUMPRODUCT(B$9:B$229,Nutrients!$CX$8:$CX$228)+(IF($A$7=Nutrients!$B$8,Nutrients!$CX$8,Nutrients!$CX$9)*B$7)+(((IF($A$8=Nutrients!$B$79,Nutrients!$CX$79,(IF($A$8=Nutrients!$B$77,Nutrients!$CX$77,Nutrients!$CX$78)))))*B$8))/2000/B$236*100","v":41.164178486168282},{"$f":"(SUMPRODUCT(C$9:C$229,Nutrients!$CX$8:$CX$228)+(IF($A$7=Nutrients!$B$8,Nutrients!$CX$8,Nutrients!$CX$9)*C$7)+(((IF($A$8=Nutrients!$B$79,Nutrients!$CX$79,(IF($A$8=Nutrients!$B$77,Nutrients!$CX$77,Nutrients!$CX$78)))))*C$8))/2000/C$236*100","v":41.586004986324909},{"$f":"(SUMPRODUCT(D$9:D$229,Nutrients!$CX$8:$CX$228)+(IF($A$7=Nutrients!$B$8,Nutrients!$CX$8,Nutrients!$CX$9)*D$7)+(((IF($A$8=Nutrients!$B$79,Nutrients!$CX$79,(IF($A$8=Nutrients!$B$77,Nutrients!$CX$77,Nutrients!$CX$78)))))*D$8))/2000/D$236*100","v":42.207205920724832},{"$f":"(SUMPRODUCT(E$9:E$229,Nutrients!$CX$8:$CX$228)+(IF($A$7=Nutrients!$B$8,Nutrients!$CX$8,Nutrients!$CX$9)*E$7)+(((IF($A$8=Nutrients!$B$79,Nutrients!$CX$79,(IF($A$8=Nutrients!$B$77,Nutrients!$CX$77,Nutrients!$CX$78)))))*E$8))/2000/E$236*100","v":42.778460155865318},{"$f":"(SUMPRODUCT(F$9:F$229,Nutrients!$CX$8:$CX$228)+(IF($A$7=Nutrients!$B$8,Nutrients!$CX$8,Nutrients!$CX$9)*F$7)+(((IF($A$8=Nutrients!$B$79,Nutrients!$CX$79,(IF($A$8=Nutrients!$B$77,Nutrients!$CX$77,Nutrients!$CX$78)))))*F$8))/2000/F$236*100","v":43.376570604149812},{"$f":"(SUMPRODUCT(G$9:G$229,Nutrients!$CX$8:$CX$228)+(IF($A$7=Nutrients!$B$8,Nutrients!$CX$8,Nutrients!$CX$9)*G$7)+(((IF($A$8=Nutrients!$B$79,Nutrients!$CX$79,(IF($A$8=Nutrients!$B$77,Nutrients!$CX$77,Nutrients!$CX$78)))))*G$8))/2000/G$236*100","v":43.904809548771325},null,{"$f":"(SUMPRODUCT(I$9:I$229,Nutrients!$CX$8:$CX$228)+(IF($A$7=Nutrients!$B$8,Nutrients!$CX$8,Nutrients!$CX$9)*I$7)+(((IF($A$8=Nutrients!$B$79,Nutrients!$CX$79,(IF($A$8=Nutrients!$B$77,Nutrients!$CX$77,Nutrients!$CX$78)))))*I$8))/2000/I$236*100","v":41.485269296890401},{"$f":"(SUMPRODUCT(J$9:J$229,Nutrients!$CX$8:$CX$228)+(IF($A$7=Nutrients!$B$8,Nutrients!$CX$8,Nutrients!$CX$9)*J$7)+(((IF($A$8=Nutrients!$B$79,Nutrients!$CX$79,(IF($A$8=Nutrients!$B$77,Nutrients!$CX$77,Nutrients!$CX$78)))))*J$8))/2000/J$236*100","v":41.94835417078032},{"$f":"(SUMPRODUCT(K$9:K$229,Nutrients!$CX$8:$CX$228)+(IF($A$7=Nutrients!$B$8,Nutrients!$CX$8,Nutrients!$CX$9)*K$7)+(((IF($A$8=Nutrients!$B$79,Nutrients!$CX$79,(IF($A$8=Nutrients!$B$77,Nutrients!$CX$77,Nutrients!$CX$78)))))*K$8))/2000/K$236*100","v":42.618814292605087},{"$f":"(SUMPRODUCT(L$9:L$229,Nutrients!$CX$8:$CX$228)+(IF($A$7=Nutrients!$B$8,Nutrients!$CX$8,Nutrients!$CX$9)*L$7)+(((IF($A$8=Nutrients!$B$79,Nutrients!$CX$79,(IF($A$8=Nutrients!$B$77,Nutrients!$CX$77,Nutrients!$CX$78)))))*L$8))/2000/L$236*100","v":43.243058632815298},{"$f":"(SUMPRODUCT(M$9:M$229,Nutrients!$CX$8:$CX$228)+(IF($A$7=Nutrients!$B$8,Nutrients!$CX$8,Nutrients!$CX$9)*M$7)+(((IF($A$8=Nutrients!$B$79,Nutrients!$CX$79,(IF($A$8=Nutrients!$B$77,Nutrients!$CX$77,Nutrients!$CX$78)))))*M$8))/2000/M$236*100","v":43.881593771041416},{"$f":"(SUMPRODUCT(N$9:N$229,Nutrients!$CX$8:$CX$228)+(IF($A$7=Nutrients!$B$8,Nutrients!$CX$8,Nutrients!$CX$9)*N$7)+(((IF($A$8=Nutrients!$B$79,Nutrients!$CX$79,(IF($A$8=Nutrients!$B$77,Nutrients!$CX$77,Nutrients!$CX$78)))))*N$8))/2000/N$236*100","v":43.904809548771325},null,{"$f":"(SUMPRODUCT(P$9:P$229,Nutrients!$CX$8:$CX$228)+(IF($A$7=Nutrients!$B$8,Nutrients!$CX$8,Nutrients!$CX$9)*P$7)+(((IF($A$8=Nutrients!$B$79,Nutrients!$CX$79,(IF($A$8=Nutrients!$B$77,Nutrients!$CX$77,Nutrients!$CX$78)))))*P$8))/2000/P$236*100","v":41.80625281794692},{"$f":"(SUMPRODUCT(Q$9:Q$229,Nutrients!$CX$8:$CX$228)+(IF($A$7=Nutrients!$B$8,Nutrients!$CX$8,Nutrients!$CX$9)*Q$7)+(((IF($A$8=Nutrients!$B$79,Nutrients!$CX$79,(IF($A$8=Nutrients!$B$77,Nutrients!$CX$77,Nutrients!$CX$78)))))*Q$8))/2000/Q$236*100","v":42.311158313287315},{"$f":"(SUMPRODUCT(R$9:R$229,Nutrients!$CX$8:$CX$228)+(IF($A$7=Nutrients!$B$8,Nutrients!$CX$8,Nutrients!$CX$9)*R$7)+(((IF($A$8=Nutrients!$B$79,Nutrients!$CX$79,(IF($A$8=Nutrients!$B$77,Nutrients!$CX$77,Nutrients!$CX$78)))))*R$8))/2000/R$236*100","v":43.028897707759164},{"$f":"(SUMPRODUCT(S$9:S$229,Nutrients!$CX$8:$CX$228)+(IF($A$7=Nutrients!$B$8,Nutrients!$CX$8,Nutrients!$CX$9)*S$7)+(((IF($A$8=Nutrients!$B$79,Nutrients!$CX$79,(IF($A$8=Nutrients!$B$77,Nutrients!$CX$77,Nutrients!$CX$78)))))*S$8))/2000/S$236*100","v":43.703383846657339},{"$f":"(SUMPRODUCT(T$9:T$229,Nutrients!$CX$8:$CX$228)+(IF($A$7=Nutrients!$B$8,Nutrients!$CX$8,Nutrients!$CX$9)*T$7)+(((IF($A$8=Nutrients!$B$79,Nutrients!$CX$79,(IF($A$8=Nutrients!$B$77,Nutrients!$CX$77,Nutrients!$CX$78)))))*T$8))/2000/T$236*100","v":44.383625715152384},{"$f":"(SUMPRODUCT(U$9:U$229,Nutrients!$CX$8:$CX$228)+(IF($A$7=Nutrients!$B$8,Nutrients!$CX$8,Nutrients!$CX$9)*U$7)+(((IF($A$8=Nutrients!$B$79,Nutrients!$CX$79,(IF($A$8=Nutrients!$B$77,Nutrients!$CX$77,Nutrients!$CX$78)))))*U$8))/2000/U$236*100","v":43.904809548771325},null,{"$f":"(SUMPRODUCT(W$9:W$229,Nutrients!$CX$8:$CX$228)+(IF($A$7=Nutrients!$B$8,Nutrients!$CX$8,Nutrients!$CX$9)*W$7)+(((IF($A$8=Nutrients!$B$79,Nutrients!$CX$79,(IF($A$8=Nutrients!$B$77,Nutrients!$CX$77,Nutrients!$CX$78)))))*W$8))/2000/W$236*100","v":42.127075830933961},{"$f":"(SUMPRODUCT(X$9:X$229,Nutrients!$CX$8:$CX$228)+(IF($A$7=Nutrients!$B$8,Nutrients!$CX$8,Nutrients!$CX$9)*X$7)+(((IF($A$8=Nutrients!$B$79,Nutrients!$CX$79,(IF($A$8=Nutrients!$B$77,Nutrients!$CX$77,Nutrients!$CX$78)))))*X$8))/2000/X$236*100","v":42.673744570693529},{"$f":"(SUMPRODUCT(Y$9:Y$229,Nutrients!$CX$8:$CX$228)+(IF($A$7=Nutrients!$B$8,Nutrients!$CX$8,Nutrients!$CX$9)*Y$7)+(((IF($A$8=Nutrients!$B$79,Nutrients!$CX$79,(IF($A$8=Nutrients!$B$77,Nutrients!$CX$77,Nutrients!$CX$78)))))*Y$8))/2000/Y$236*100","v":43.439569522543906},{"$f":"(SUMPRODUCT(Z$9:Z$229,Nutrients!$CX$8:$CX$228)+(IF($A$7=Nutrients!$B$8,Nutrients!$CX$8,Nutrients!$CX$9)*Z$7)+(((IF($A$8=Nutrients!$B$79,Nutrients!$CX$79,(IF($A$8=Nutrients!$B$77,Nutrients!$CX$77,Nutrients!$CX$78)))))*Z$8))/2000/Z$236*100","v":44.164517746568727},{"$f":"(SUMPRODUCT(AA$9:AA$229,Nutrients!$CX$8:$CX$228)+(IF($A$7=Nutrients!$B$8,Nutrients!$CX$8,Nutrients!$CX$9)*AA$7)+(((IF($A$8=Nutrients!$B$79,Nutrients!$CX$79,(IF($A$8=Nutrients!$B$77,Nutrients!$CX$77,Nutrients!$CX$78)))))*AA$8))/2000/AA$236*100","v":44.885065158490953},{"$f":"(SUMPRODUCT(AB$9:AB$229,Nutrients!$CX$8:$CX$228)+(IF($A$7=Nutrients!$B$8,Nutrients!$CX$8,Nutrients!$CX$9)*AB$7)+(((IF($A$8=Nutrients!$B$79,Nutrients!$CX$79,(IF($A$8=Nutrients!$B$77,Nutrients!$CX$77,Nutrients!$CX$78)))))*AB$8))/2000/AB$236*100","v":43.904809548771325},null,{"$f":"(SUMPRODUCT(AD$9:AD$229,Nutrients!$CX$8:$CX$228)+(IF($A$7=Nutrients!$B$8,Nutrients!$CX$8,Nutrients!$CX$9)*AD$7)+(((IF($A$8=Nutrients!$B$79,Nutrients!$CX$79,(IF($A$8=Nutrients!$B$77,Nutrients!$CX$77,Nutrients!$CX$78)))))*AD$8))/2000/AD$236*100","v":42.447701846532482},{"$f":"(SUMPRODUCT(AE$9:AE$229,Nutrients!$CX$8:$CX$228)+(IF($A$7=Nutrients!$B$8,Nutrients!$CX$8,Nutrients!$CX$9)*AE$7)+(((IF($A$8=Nutrients!$B$79,Nutrients!$CX$79,(IF($A$8=Nutrients!$B$77,Nutrients!$CX$77,Nutrients!$CX$78)))))*AE$8))/2000/AE$236*100","v":43.03647268090883},{"$f":"(SUMPRODUCT(AF$9:AF$229,Nutrients!$CX$8:$CX$228)+(IF($A$7=Nutrients!$B$8,Nutrients!$CX$8,Nutrients!$CX$9)*AF$7)+(((IF($A$8=Nutrients!$B$79,Nutrients!$CX$79,(IF($A$8=Nutrients!$B$77,Nutrients!$CX$77,Nutrients!$CX$78)))))*AF$8))/2000/AF$236*100","v":43.85088408455988},{"$f":"(SUMPRODUCT(AG$9:AG$229,Nutrients!$CX$8:$CX$228)+(IF($A$7=Nutrients!$B$8,Nutrients!$CX$8,Nutrients!$CX$9)*AG$7)+(((IF($A$8=Nutrients!$B$79,Nutrients!$CX$79,(IF($A$8=Nutrients!$B$77,Nutrients!$CX$77,Nutrients!$CX$78)))))*AG$8))/2000/AG$236*100","v":44.623391223377936},{"$f":"(SUMPRODUCT(AH$9:AH$229,Nutrients!$CX$8:$CX$228)+(IF($A$7=Nutrients!$B$8,Nutrients!$CX$8,Nutrients!$CX$9)*AH$7)+(((IF($A$8=Nutrients!$B$79,Nutrients!$CX$79,(IF($A$8=Nutrients!$B$77,Nutrients!$CX$77,Nutrients!$CX$78)))))*AH$8))/2000/AH$236*100","v":45.366950795617122},{"$f":"(SUMPRODUCT(AI$9:AI$229,Nutrients!$CX$8:$CX$228)+(IF($A$7=Nutrients!$B$8,Nutrients!$CX$8,Nutrients!$CX$9)*AI$7)+(((IF($A$8=Nutrients!$B$79,Nutrients!$CX$79,(IF($A$8=Nutrients!$B$77,Nutrients!$CX$77,Nutrients!$CX$78)))))*AI$8))/2000/AI$236*100","v":43.904809548771325},null,{"$f":"(SUMPRODUCT(AK$9:AK$229,Nutrients!$CX$8:$CX$228)+(IF($A$7=Nutrients!$B$8,Nutrients!$CX$8,Nutrients!$CX$9)*AK$7)+(((IF($A$8=Nutrients!$B$79,Nutrients!$CX$79,(IF($A$8=Nutrients!$B$77,Nutrients!$CX$77,Nutrients!$CX$78)))))*AK$8))/2000/AK$236*100","v":42.766945693134005},{"$f":"(SUMPRODUCT(AL$9:AL$229,Nutrients!$CX$8:$CX$228)+(IF($A$7=Nutrients!$B$8,Nutrients!$CX$8,Nutrients!$CX$9)*AL$7)+(((IF($A$8=Nutrients!$B$79,Nutrients!$CX$79,(IF($A$8=Nutrients!$B$77,Nutrients!$CX$77,Nutrients!$CX$78)))))*AL$8))/2000/AL$236*100","v":43.399223859562774},{"$f":"(SUMPRODUCT(AM$9:AM$229,Nutrients!$CX$8:$CX$228)+(IF($A$7=Nutrients!$B$8,Nutrients!$CX$8,Nutrients!$CX$9)*AM$7)+(((IF($A$8=Nutrients!$B$79,Nutrients!$CX$79,(IF($A$8=Nutrients!$B$77,Nutrients!$CX$77,Nutrients!$CX$78)))))*AM$8))/2000/AM$236*100","v":44.260285694443887},{"$f":"(SUMPRODUCT(AN$9:AN$229,Nutrients!$CX$8:$CX$228)+(IF($A$7=Nutrients!$B$8,Nutrients!$CX$8,Nutrients!$CX$9)*AN$7)+(((IF($A$8=Nutrients!$B$79,Nutrients!$CX$79,(IF($A$8=Nutrients!$B$77,Nutrients!$CX$77,Nutrients!$CX$78)))))*AN$8))/2000/AN$236*100","v":45.066857284013508},{"$f":"(SUMPRODUCT(AO$9:AO$229,Nutrients!$CX$8:$CX$228)+(IF($A$7=Nutrients!$B$8,Nutrients!$CX$8,Nutrients!$CX$9)*AO$7)+(((IF($A$8=Nutrients!$B$79,Nutrients!$CX$79,(IF($A$8=Nutrients!$B$77,Nutrients!$CX$77,Nutrients!$CX$78)))))*AO$8))/2000/AO$236*100","v":45.843901072438165},{"$f":"(SUMPRODUCT(AP$9:AP$229,Nutrients!$CX$8:$CX$228)+(IF($A$7=Nutrients!$B$8,Nutrients!$CX$8,Nutrients!$CX$9)*AP$7)+(((IF($A$8=Nutrients!$B$79,Nutrients!$CX$79,(IF($A$8=Nutrients!$B$77,Nutrients!$CX$77,Nutrients!$CX$78)))))*AP$8))/2000/AP$236*100","v":43.904809548771325},null,{"$f":"(SUMPRODUCT(AR$9:AR$229,Nutrients!$CX$8:$CX$228)+(IF($A$7=Nutrients!$B$8,Nutrients!$CX$8,Nutrients!$CX$9)*AR$7)+(((IF($A$8=Nutrients!$B$79,Nutrients!$CX$79,(IF($A$8=Nutrients!$B$77,Nutrients!$CX$77,Nutrients!$CX$78)))))*AR$8))/2000/AR$236*100","v":43.088267027625129},{"$f":"(SUMPRODUCT(AS$9:AS$229,Nutrients!$CX$8:$CX$228)+(IF($A$7=Nutrients!$B$8,Nutrients!$CX$8,Nutrients!$CX$9)*AS$7)+(((IF($A$8=Nutrients!$B$79,Nutrients!$CX$79,(IF($A$8=Nutrients!$B$77,Nutrients!$CX$77,Nutrients!$CX$78)))))*AS$8))/2000/AS$236*100","v":43.761962326527517},{"$f":"(SUMPRODUCT(AT$9:AT$229,Nutrients!$CX$8:$CX$228)+(IF($A$7=Nutrients!$B$8,Nutrients!$CX$8,Nutrients!$CX$9)*AT$7)+(((IF($A$8=Nutrients!$B$79,Nutrients!$CX$79,(IF($A$8=Nutrients!$B$77,Nutrients!$CX$77,Nutrients!$CX$78)))))*AT$8))/2000/AT$236*100","v":44.666098422503509},{"$f":"(SUMPRODUCT(AU$9:AU$229,Nutrients!$CX$8:$CX$228)+(IF($A$7=Nutrients!$B$8,Nutrients!$CX$8,Nutrients!$CX$9)*AU$7)+(((IF($A$8=Nutrients!$B$79,Nutrients!$CX$79,(IF($A$8=Nutrients!$B$77,Nutrients!$CX$77,Nutrients!$CX$78)))))*AU$8))/2000/AU$236*100","v":45.503834037519717},{"$f":"(SUMPRODUCT(AV$9:AV$229,Nutrients!$CX$8:$CX$228)+(IF($A$7=Nutrients!$B$8,Nutrients!$CX$8,Nutrients!$CX$9)*AV$7)+(((IF($A$8=Nutrients!$B$79,Nutrients!$CX$79,(IF($A$8=Nutrients!$B$77,Nutrients!$CX$77,Nutrients!$CX$78)))))*AV$8))/2000/AV$236*100","v":46.320496494314902},{"$f":"(SUMPRODUCT(AW$9:AW$229,Nutrients!$CX$8:$CX$228)+(IF($A$7=Nutrients!$B$8,Nutrients!$CX$8,Nutrients!$CX$9)*AW$7)+(((IF($A$8=Nutrients!$B$79,Nutrients!$CX$79,(IF($A$8=Nutrients!$B$77,Nutrients!$CX$77,Nutrients!$CX$78)))))*AW$8))/2000/AW$236*100","v":43.904809548771325}]
["Total Lys, %",{"$f":"(SUMPRODUCT(B$9:B$229,Nutrients!$AJ$8:$AJ$228)+(IF($A7=Nutrients!$B$8,Nutrients!$AJ$8,Nutrients!$AJ$9)*B$7)+(((IF($A8=Nutrients!$B$79,Nutrients!$AJ$79,(IF($A8=Nutrients!$B$77,Nutrients!$AJ$77,Nutrients!$AJ$78)))))*B$8))/2000","v":1.3298660823074164},{"$f":"(SUMPRODUCT(C$9:C$229,Nutrients!$AJ$8:$AJ$228)+(IF($A7=Nutrients!$B$8,Nutrients!$AJ$8,Nutrients!$AJ$9)*C$7)+(((IF($A8=Nutrients!$B$79,Nutrients!$AJ$79,(IF($A8=Nutrients!$B$77,Nutrients!$AJ$77,Nutrients!$AJ$78)))))*C$8))/2000","v":1.17824480201899},{"$f":"(SUMPRODUCT(D$9:D$229,Nutrients!$AJ$8:$AJ$228)+(IF($A7=Nutrients!$B$8,Nutrients!$AJ$8,Nutrients!$AJ$9)*D$7)+(((IF($A8=Nutrients!$B$79,Nutrients!$AJ$79,(IF($A8=Nutrients!$B$77,Nutrients!$AJ$77,Nutrients!$AJ$78)))))*D$8))/2000","v":1.0441938280699909},{"$f":"(SUMPRODUCT(E$9:E$229,Nutrients!$AJ$8:$AJ$228)+(IF($A7=Nutrients!$B$8,Nutrients!$AJ$8,Nutrients!$AJ$9)*E$7)+(((IF($A8=Nutrients!$B$79,Nutrients!$AJ$79,(IF($A8=Nutrients!$B$77,Nutrients!$AJ$77,Nutrients!$AJ$78)))))*E$8))/2000","v":0.93300397092782039},{"$f":"(SUMPRODUCT(F$9:F$229,Nutrients!$AJ$8:$AJ$228)+(IF($A7=Nutrients!$B$8,Nutrients!$AJ$8,Nutrients!$AJ$9)*F$7)+(((IF($A8=Nutrients!$B$79,Nutrients!$AJ$79,(IF($A8=Nutrients!$B$77,Nutrients!$AJ$77,Nutrients!$AJ$78)))))*F$8))/2000","v":0.85681025979312531},{"$f":"(SUMPRODUCT(G$9:G$229,Nutrients!$AJ$8:$AJ$228)+(IF($A7=Nutrients!$B$8,Nutrients!$AJ$8,Nutrients!$AJ$9)*G$7)+(((IF($A8=Nutrients!$B$79,Nutrients!$AJ$79,(IF($A8=Nutrients!$B$77,Nutrients!$AJ$77,Nutrients!$AJ$78)))))*G$8))/2000","v":0.81496876682859276},null,{"$f":"(SUMPRODUCT(I$9:I$229,Nutrients!$AJ$8:$AJ$228)+(IF($A7=Nutrients!$B$8,Nutrients!$AJ$8,Nutrients!$AJ$9)*I$7)+(((IF($A8=Nutrients!$B$79,Nutrients!$AJ$79,(IF($A8=Nutrients!$B$77,Nutrients!$AJ$77,Nutrients!$AJ$78)))))*I$8))/2000","v":1.338116533166849},{"$f":"(SUMPRODUCT(J$9:J$229,Nutrients!$AJ$8:$AJ$228)+(IF($A7=Nutrients!$B$8,Nutrients!$AJ$8,Nutrients!$AJ$9)*J$7)+(((IF($A8=Nutrients!$B$79,Nutrients!$AJ$79,(IF($A8=Nutrients!$B$77,Nutrients!$AJ$77,Nutrients!$AJ$78)))))*J$8))/2000","v":1.1864922408253746},{"$f":"(SUMPRODUCT(K$9:K$229,Nutrients!$AJ$8:$AJ$228)+(IF($A7=Nutrients!$B$8,Nutrients!$AJ$8,Nutrients!$AJ$9)*K$7)+(((IF($A8=Nutrients!$B$79,Nutrients!$AJ$79,(IF($A8=Nutrients!$B$77,Nutrients!$AJ$77,Nutrients!$AJ$78)))))*K$8))/2000","v":1.0524467034693956},{"$f":"(SUMPRODUCT(L$9:L$229,Nutrients!$AJ$8:$AJ$228)+(IF($A7=Nutrients!$B$8,Nutrients!$AJ$8,Nutrients!$AJ$9)*L$7)+(((IF($A8=Nutrients!$B$79,Nutrients!$AJ$79,(IF($A8=Nutrients!$B$77,Nutrients!$AJ$77,Nutrients!$AJ$78)))))*L$8))/2000","v":0.94126489477896202},{"$f":"(SUMPRODUCT(M$9:M$229,Nutrients!$AJ$8:$AJ$228)+(IF($A7=Nutrients!$B$8,Nutrients!$AJ$8,Nutrients!$AJ$9)*M$7)+(((IF($A8=Nutrients!$B$79,Nutrients!$AJ$79,(IF($A8=Nutrients!$B$77,Nutrients!$AJ$77,Nutrients!$AJ$78)))))*M$8))/2000","v":0.86506540064979298},{"$f":"(SUMPRODUCT(N$9:N$229,Nutrients!$AJ$8:$AJ$228)+(IF($A7=Nutrients!$B$8,Nutrients!$AJ$8,Nutrients!$AJ$9)*N$7)+(((IF($A8=Nutrients!$B$79,Nutrients!$AJ$79,(IF($A8=Nutrients!$B$77,Nutrients!$AJ$77,Nutrients!$AJ$78)))))*N$8))/2000","v":0.81496876682859276},null,{"$f":"(SUMPRODUCT(P$9:P$229,Nutrients!$AJ$8:$AJ$228)+(IF($A7=Nutrients!$B$8,Nutrients!$AJ$8,Nutrients!$AJ$9)*P$7)+(((IF($A8=Nutrients!$B$79,Nutrients!$AJ$79,(IF($A8=Nutrients!$B$77,Nutrients!$AJ$77,Nutrients!$AJ$78)))))*P$8))/2000","v":1.3463665307782089},{"$f":"(SUMPRODUCT(Q$9:Q$229,Nutrients!$AJ$8:$AJ$228)+(IF($A7=Nutrients!$B$8,Nutrients!$AJ$8,Nutrients!$AJ$9)*Q$7)+(((IF($A8=Nutrients!$B$79,Nutrients!$AJ$79,(IF($A8=Nutrients!$B$77,Nutrients!$AJ$77,Nutrients!$AJ$78)))))*Q$8))/2000","v":1.1947413789885906},{"$f":"(SUMPRODUCT(R$9:R$229,Nutrients!$AJ$8:$AJ$228)+(IF($A7=Nutrients!$B$8,Nutrients!$AJ$8,Nutrients!$AJ$9)*R$7)+(((IF($A8=Nutrients!$B$79,Nutrients!$AJ$79,(IF($A8=Nutrients!$B$77,Nutrients!$AJ$77,Nutrients!$AJ$78)))))*R$8))/2000","v":1.0606945443862597},{"$f":"(SUMPRODUCT(S$9:S$229,Nutrients!$AJ$8:$AJ$228)+(IF($A7=Nutrients!$B$8,Nutrients!$AJ$8,Nutrients!$AJ$9)*S$7)+(((IF($A8=Nutrients!$B$79,Nutrients!$AJ$79,(IF($A8=Nutrients!$B$77,Nutrients!$AJ$77,Nutrients!$AJ$78)))))*S$8))/2000","v":0.94951324594482345},{"$f":"(SUMPRODUCT(T$9:T$229,Nutrients!$AJ$8:$AJ$228)+(IF($A7=Nutrients!$B$8,Nutrients!$AJ$8,Nutrients!$AJ$9)*T$7)+(((IF($A8=Nutrients!$B$79,Nutrients!$AJ$79,(IF($A8=Nutrients!$B$77,Nutrients!$AJ$77,Nutrients!$AJ$78)))))*T$8))/2000","v":0.87331247951362045},{"$f":"(SUMPRODUCT(U$9:U$229,Nutrients!$AJ$8:$AJ$228)+(IF($A7=Nutrients!$B$8,Nutrients!$AJ$8,Nutrients!$AJ$9)*U$7)+(((IF($A8=Nutrients!$B$79,Nutrients!$AJ$79,(IF($A8=Nutrients!$B$77,Nutrients!$AJ$77,Nutrients!$AJ$78)))))*U$8))/2000","v":0.81496876682859276},null,{"$f":"(SUMPRODUCT(W$9:W$229,Nutrients!$AJ$8:$AJ$228)+(IF($A7=Nutrients!$B$8,Nutrients!$AJ$8,Nutrients!$AJ$9)*W$7)+(((IF($A8=Nutrients!$B$79,Nutrients!$AJ$79,(IF($A8=Nutrients!$B$77,Nutrients!$AJ$77,Nutrients!$AJ$78)))))*W$8))/2000","v":1.3546158503189207},{"$f":"(SUMPRODUCT(X$9:X$229,Nutrients!$AJ$8:$AJ$228)+(IF($A7=Nutrients!$B$8,Nutrients!$AJ$8,Nutrients!$AJ$9)*X$7)+(((IF($A8=Nutrients!$B$79,Nutrients!$AJ$79,(IF($A8=Nutrients!$B$77,Nutrients!$AJ$77,Nutrients!$AJ$78)))))*X$8))/2000","v":1.2029897033085672},{"$f":"(SUMPRODUCT(Y$9:Y$229,Nutrients!$AJ$8:$AJ$228)+(IF($A7=Nutrients!$B$8,Nutrients!$AJ$8,Nutrients!$AJ$9)*Y$7)+(((IF($A8=Nutrients!$B$79,Nutrients!$AJ$79,(IF($A8=Nutrients!$B$77,Nutrients!$AJ$77,Nutrients!$AJ$78)))))*Y$8))/2000","v":1.0689443278419617},{"$f":"(SUMPRODUCT(Z$9:Z$229,Nutrients!$AJ$8:$AJ$228)+(IF($A7=Nutrients!$B$8,Nutrients!$AJ$8,Nutrients!$AJ$9)*Z$7)+(((IF($A8=Nutrients!$B$79,Nutrients!$AJ$79,(IF($A8=Nutrients!$B$77,Nutrients!$AJ$77,Nutrients!$AJ$78)))))*Z$8))/2000","v":0.95776397640612843},{"$f":"(SUMPRODUCT(AA$9:AA$229,Nutrients!$AJ$8:$AJ$228)+(IF($A7=Nutrients!$B$8,Nutrients!$AJ$8,Nutrients!$AJ$9)*AA$7)+(((IF($A8=Nutrients!$B$79,Nutrients!$AJ$79,(IF($A8=Nutrients!$B$77,Nutrients!$AJ$77,Nutrients!$AJ$78)))))*AA$8))/2000","v":0.88155796145962095},{"$f":"(SUMPRODUCT(AB$9:AB$229,Nutrients!$AJ$8:$AJ$228)+(IF($A7=Nutrients!$B$8,Nutrients!$AJ$8,Nutrients!$AJ$9)*AB$7)+(((IF($A8=Nutrients!$B$79,Nutrients!$AJ$79,(IF($A8=Nutrients!$B$77,Nutrients!$AJ$77,Nutrients!$AJ$78)))))*AB$8))/2000","v":0.81496876682859276},null,{"$f":"(SUMPRODUCT(AD$9:AD$229,Nutrients!$AJ$8:$AJ$228)+(IF($A7=Nutrients!$B$8,Nutrients!$AJ$8,Nutrients!$AJ$9)*AD$7)+(((IF($A8=Nutrients!$B$79,Nutrients!$AJ$79,(IF($A8=Nutrients!$B$77,Nutrients!$AJ$77,Nutrients!$AJ$78)))))*AD$8))/2000","v":1.3628643376388767},{"$f":"(SUMPRODUCT(AE$9:AE$229,Nutrients!$AJ$8:$AJ$228)+(IF($A7=Nutrients!$B$8,Nutrients!$AJ$8,Nutrients!$AJ$9)*AE$7)+(((IF($A8=Nutrients!$B$79,Nutrients!$AJ$79,(IF($A8=Nutrients!$B$77,Nutrients!$AJ$77,Nutrients!$AJ$78)))))*AE$8))/2000","v":1.2112385574763826},{"$f":"(SUMPRODUCT(AF$9:AF$229,Nutrients!$AJ$8:$AJ$228)+(IF($A7=Nutrients!$B$8,Nutrients!$AJ$8,Nutrients!$AJ$9)*AF$7)+(((IF($A8=Nutrients!$B$79,Nutrients!$AJ$79,(IF($A8=Nutrients!$B$77,Nutrients!$AJ$77,Nutrients!$AJ$78)))))*AF$8))/2000","v":1.0771962332593292},{"$f":"(SUMPRODUCT(AG$9:AG$229,Nutrients!$AJ$8:$AJ$228)+(IF($A7=Nutrients!$B$8,Nutrients!$AJ$8,Nutrients!$AJ$9)*AG$7)+(((IF($A8=Nutrients!$B$79,Nutrients!$AJ$79,(IF($A8=Nutrients!$B$77,Nutrients!$AJ$77,Nutrients!$AJ$78)))))*AG$8))/2000","v":0.96600805630846975},{"$f":"(SUMPRODUCT(AH$9:AH$229,Nutrients!$AJ$8:$AJ$228)+(IF($A7=Nutrients!$B$8,Nutrients!$AJ$8,Nutrients!$AJ$9)*AH$7)+(((IF($A8=Nutrients!$B$79,Nutrients!$AJ$79,(IF($A8=Nutrients!$B$77,Nutrients!$AJ$77,Nutrients!$AJ$78)))))*AH$8))/2000","v":0.88975074166548562},{"$f":"(SUMPRODUCT(AI$9:AI$229,Nutrients!$AJ$8:$AJ$228)+(IF($A7=Nutrients!$B$8,Nutrients!$AJ$8,Nutrients!$AJ$9)*AI$7)+(((IF($A8=Nutrients!$B$79,Nutrients!$AJ$79,(IF($A8=Nutrients!$B$77,Nutrients!$AJ$77,Nutrients!$AJ$78)))))*AI$8))/2000","v":0.81496876682859276},null,{"$f":"(SUMPRODUCT(AK$9:AK$229,Nutrients!$AJ$8:$AJ$228)+(IF($A7=Nutrients!$B$8,Nutrients!$AJ$8,Nutrients!$AJ$9)*AK$7)+(((IF($A8=Nutrients!$B$79,Nutrients!$AJ$79,(IF($A8=Nutrients!$B$77,Nutrients!$AJ$77,Nutrients!$AJ$78)))))*AK$8))/2000","v":1.371106985948803},{"$f":"(SUMPRODUCT(AL$9:AL$229,Nutrients!$AJ$8:$AJ$228)+(IF($A7=Nutrients!$B$8,Nutrients!$AJ$8,Nutrients!$AJ$9)*AL$7)+(((IF($A8=Nutrients!$B$79,Nutrients!$AJ$79,(IF($A8=Nutrients!$B$77,Nutrients!$AJ$77,Nutrients!$AJ$78)))))*AL$8))/2000","v":1.2194874978093035},{"$f":"(SUMPRODUCT(AM$9:AM$229,Nutrients!$AJ$8:$AJ$228)+(IF($A7=Nutrients!$B$8,Nutrients!$AJ$8,Nutrients!$AJ$9)*AM$7)+(((IF($A8=Nutrients!$B$79,Nutrients!$AJ$79,(IF($A8=Nutrients!$B$77,Nutrients!$AJ$77,Nutrients!$AJ$78)))))*AM$8))/2000","v":1.0854418232685645},{"$f":"(SUMPRODUCT(AN$9:AN$229,Nutrients!$AJ$8:$AJ$228)+(IF($A7=Nutrients!$B$8,Nutrients!$AJ$8,Nutrients!$AJ$9)*AN$7)+(((IF($A8=Nutrients!$B$79,Nutrients!$AJ$79,(IF($A8=Nutrients!$B$77,Nutrients!$AJ$77,Nutrients!$AJ$78)))))*AN$8))/2000","v":0.97420680490552014},{"$f":"(SUMPRODUCT(AO$9:AO$229,Nutrients!$AJ$8:$AJ$228)+(IF($A7=Nutrients!$B$8,Nutrients!$AJ$8,Nutrients!$AJ$9)*AO$7)+(((IF($A8=Nutrients!$B$79,Nutrients!$AJ$79,(IF($A8=Nutrients!$B$77,Nutrients!$AJ$77,Nutrients!$AJ$78)))))*AO$8))/2000","v":0.89793022000707667},{"$f":"(SUMPRODUCT(AP$9:AP$229,Nutrients!$AJ$8:$AJ$228)+(IF($A7=Nutrients!$B$8,Nutrients!$AJ$8,Nutrients!$AJ$9)*AP$7)+(((IF($A8=Nutrients!$B$79,Nutrients!$AJ$79,(IF($A8=Nutrients!$B$77,Nutrients!$AJ$77,Nutrients!$AJ$78)))))*AP$8))/2000","v":0.81496876682859276},null,{"$f":"(SUMPRODUCT(AR$9:AR$229,Nutrients!$AJ$8:$AJ$228)+(IF($A7=Nutrients!$B$8,Nutrients!$AJ$8,Nutrients!$AJ$9)*AR$7)+(((IF($A8=Nutrients!$B$79,Nutrients!$AJ$79,(IF($A8=Nutrients!$B$77,Nutrients!$AJ$77,Nutrients!$AJ$78)))))*AR$8))/2000","v":1.3793584106620853},{"$f":"(SUMPRODUCT(AS$9:AS$229,Nutrients!$AJ$8:$AJ$228)+(IF($A7=Nutrients!$B$8,Nutrients!$AJ$8,Nutrients!$AJ$9)*AS$7)+(((IF($A8=Nutrients!$B$79,Nutrients!$AJ$79,(IF($A8=Nutrients!$B$77,Nutrients!$AJ$77,Nutrients!$AJ$78)))))*AS$8))/2000","v":1.2277363906615926},{"$f":"(SUMPRODUCT(AT$9:AT$229,Nutrients!$AJ$8:$AJ$228)+(IF($A7=Nutrients!$B$8,Nutrients!$AJ$8,Nutrients!$AJ$9)*AT$7)+(((IF($A8=Nutrients!$B$79,Nutrients!$AJ$79,(IF($A8=Nutrients!$B$77,Nutrients!$AJ$77,Nutrients!$AJ$78)))))*AT$8))/2000","v":1.0936755649659267},{"$f":"(SUMPRODUCT(AU$9:AU$229,Nutrients!$AJ$8:$AJ$228)+(IF($A7=Nutrients!$B$8,Nutrients!$AJ$8,Nutrients!$AJ$9)*AU$7)+(((IF($A8=Nutrients!$B$79,Nutrients!$AJ$79,(IF($A8=Nutrients!$B$77,Nutrients!$AJ$77,Nutrients!$AJ$78)))))*AU$8))/2000","v":0.98238646082932224},{"$f":"(SUMPRODUCT(AV$9:AV$229,Nutrients!$AJ$8:$AJ$228)+(IF($A7=Nutrients!$B$8,Nutrients!$AJ$8,Nutrients!$AJ$9)*AV$7)+(((IF($A8=Nutrients!$B$79,Nutrients!$AJ$79,(IF($A8=Nutrients!$B$77,Nutrients!$AJ$77,Nutrients!$AJ$78)))))*AV$8))/2000","v":0.9061087419377849},{"$f":"(SUMPRODUCT(AW$9:AW$229,Nutrients!$AJ$8:$AJ$228)+(IF($A7=Nutrients!$B$8,Nutrients!$AJ$8,Nutrients!$AJ$9)*AW$7)+(((IF($A8=Nutrients!$B$79,Nutrients!$AJ$79,(IF($A8=Nutrients!$B$77,Nutrients!$AJ$77,Nutrients!$AJ$78)))))*AW$8))/2000","v":0.81496876682859276}]
["ME, kcal/lb",{"$f":"(SUMPRODUCT(B$9:B$229,Nutrients!$E$8:$E$228)+(IF($A$7=Nutrients!$B$8,Nutrients!$E$8,Nutrients!$E$9)*B$7)+(((IF($A$8=Nutrients!$B$79,Nutrients!$E$79,(IF($A$8=Nutrients!$B$77,Nutrients!$E$77,Nutrients!$E$78)))))*B$8))/2000/2.2046","v":1491.8402434475765},{"$f":"(SUMPRODUCT(C$9:C$229,Nutrients!$E$8:$E$228)+(IF($A$7=Nutrients!$B$8,Nutrients!$E$8,Nutrients!$E$9)*C$7)+(((IF($A$8=Nutrients!$B$79,Nutrients!$E$79,(IF($A$8=Nutrients!$B$77,Nutrients!$E$77,Nutrients!$E$78)))))*C$8))/2000/2.2046","v":1497.3394897230346},{"$f":"(SUMPRODUCT(D$9:D$229,Nutrients!$E$8:$E$228)+(IF($A$7=Nutrients!$B$8,Nutrients!$E$8,Nutrients!$E$9)*D$7)+(((IF($A$8=Nutrients!$B$79,Nutrients!$E$79,(IF($A$8=Nutrients!$B$77,Nutrients!$E$77,Nutrients!$E$78)))))*D$8))/2000/2.2046","v":1502.2809065274494},{"$f":"(SUMPRODUCT(E$9:E$229,Nutrients!$E$8:$E$228)+(IF($A$7=Nutrients!$B$8,Nutrients!$E$8,Nutrients!$E$9)*E$7)+(((IF($A$8=Nutrients!$B$79,Nutrients!$E$79,(IF($A$8=Nutrients!$B$77,Nutrients!$E$77,Nutrients!$E$78)))))*E$8))/2000/2.2046","v":1506.6896352343656},{"$f":"(SUMPRODUCT(F$9:F$229,Nutrients!$E$8:$E$228)+(IF($A$7=Nutrients!$B$8,Nutrients!$E$8,Nutrients!$E$9)*F$7)+(((IF($A$8=Nutrients!$B$79,Nutrients!$E$79,(IF($A$8=Nutrients!$B$77,Nutrients!$E$77,Nutrients!$E$78)))))*F$8))/2000/2.2046","v":1510.1029910587361},{"$f":"(SUMPRODUCT(G$9:G$229,Nutrients!$E$8:$E$228)+(IF($A$7=Nutrients!$B$8,Nutrients!$E$8,Nutrients!$E$9)*G$7)+(((IF($A$8=Nutrients!$B$79,Nutrients!$E$79,(IF($A$8=Nutrients!$B$77,Nutrients!$E$77,Nutrients!$E$78)))))*G$8))/2000/2.2046","v":1511.4146927250044},null,{"$f":"(SUMPRODUCT(I$9:I$229,Nutrients!$E$8:$E$228)+(IF($A$7=Nutrients!$B$8,Nutrients!$E$8,Nutrients!$E$9)*I$7)+(((IF($A$8=Nutrients!$B$79,Nutrients!$E$79,(IF($A$8=Nutrients!$B$77,Nutrients!$E$77,Nutrients!$E$78)))))*I$8))/2000/2.2046","v":1505.2558249199296},{"$f":"(SUMPRODUCT(J$9:J$229,Nutrients!$E$8:$E$228)+(IF($A$7=Nutrients!$B$8,Nutrients!$E$8,Nutrients!$E$9)*J$7)+(((IF($A$8=Nutrients!$B$79,Nutrients!$E$79,(IF($A$8=Nutrients!$B$77,Nutrients!$E$77,Nutrients!$E$78)))))*J$8))/2000/2.2046","v":1510.8275881781256},{"$f":"(SUMPRODUCT(K$9:K$229,Nutrients!$E$8:$E$228)+(IF($A$7=Nutrients!$B$8,Nutrients!$E$8,Nutrients!$E$9)*K$7)+(((IF($A$8=Nutrients!$B$79,Nutrients!$E$79,(IF($A$8=Nutrients!$B$77,Nutrients!$E$77,Nutrients!$E$78)))))*K$8))/2000/2.2046","v":1516.0728536674958},{"$f":"(SUMPRODUCT(L$9:L$229,Nutrients!$E$8:$E$228)+(IF($A$7=Nutrients!$B$8,Nutrients!$E$8,Nutrients!$E$9)*L$7)+(((IF($A$8=Nutrients!$B$79,Nutrients!$E$79,(IF($A$8=Nutrients!$B$77,Nutrients!$E$77,Nutrients!$E$78)))))*L$8))/2000/2.2046","v":1520.3577165723336},{"$f":"(SUMPRODUCT(M$9:M$229,Nutrients!$E$8:$E$228)+(IF($A$7=Nutrients!$B$8,Nutrients!$E$8,Nutrients!$E$9)*M$7)+(((IF($A$8=Nutrients!$B$79,Nutrients!$E$79,(IF($A$8=Nutrients!$B$77,Nutrients!$E$77,Nutrients!$E$78)))))*M$8))/2000/2.2046","v":1523.7195863660886},{"$f":"(SUMPRODUCT(N$9:N$229,Nutrients!$E$8:$E$228)+(IF($A$7=Nutrients!$B$8,Nutrients!$E$8,Nutrients!$E$9)*N$7)+(((IF($A$8=Nutrients!$B$79,Nutrients!$E$79,(IF($A$8=Nutrients!$B$77,Nutrients!$E$77,Nutrients!$E$78)))))*N$8))/2000/2.2046","v":1511.4146927250044},null,{"$f":"(SUMPRODUCT(P$9:P$229,Nutrients!$E$8:$E$228)+(IF($A$7=Nutrients!$B$8,Nutrients!$E$8,Nutrients!$E$9)*P$7)+(((IF($A$8=Nutrients!$B$79,Nutrients!$E$79,(IF($A$8=Nutrients!$B$77,Nutrients!$E$77,Nutrients!$E$78)))))*P$8))/2000/2.2046","v":1518.8787010253898},{"$f":"(SUMPRODUCT(Q$9:Q$229,Nutrients!$E$8:$E$228)+(IF($A$7=Nutrients!$B$8,Nutrients!$E$8,Nutrients!$E$9)*Q$7)+(((IF($A$8=Nutrients!$B$79,Nutrients!$E$79,(IF($A$8=Nutrients!$B$77,Nutrients!$E$77,Nutrients!$E$78)))))*Q$8))/2000/2.2046","v":1524.4910800631349},{"$f":"(SUMPRODUCT(R$9:R$229,Nutrients!$E$8:$E$228)+(IF($A$7=Nutrients!$B$8,Nutrients!$E$8,Nutrients!$E$9)*R$7)+(((IF($A$8=Nutrients!$B$79,Nutrients!$E$79,(IF($A$8=Nutrients!$B$77,Nutrients!$E$77,Nutrients!$E$78)))))*R$8))/2000/2.2046","v":1529.797650789141},{"$f":"(SUMPRODUCT(S$9:S$229,Nutrients!$E$8:$E$228)+(IF($A$7=Nutrients!$B$8,Nutrients!$E$8,Nutrients!$E$9)*S$7)+(((IF($A$8=Nutrients!$B$79,Nutrients!$E$79,(IF($A$8=Nutrients!$B$77,Nutrients!$E$77,Nutrients!$E$78)))))*S$8))/2000/2.2046","v":1534.0584003592417},{"$f":"(SUMPRODUCT(T$9:T$229,Nutrients!$E$8:$E$228)+(IF($A$7=Nutrients!$B$8,Nutrients!$E$8,Nutrients!$E$9)*T$7)+(((IF($A$8=Nutrients!$B$79,Nutrients!$E$79,(IF($A$8=Nutrients!$B$77,Nutrients!$E$77,Nutrients!$E$78)))))*T$8))/2000/2.2046","v":1537.4341227125128},{"$f":"(SUMPRODUCT(U$9:U$229,Nutrients!$E$8:$E$228)+(IF($A$7=Nutrients!$B$8,Nutrients!$E$8,Nutrients!$E$9)*U$7)+(((IF($A$8=Nutrients!$B$79,Nutrients!$E$79,(IF($A$8=Nutrients!$B$77,Nutrients!$E$77,Nutrients!$E$78)))))*U$8))/2000/2.2046","v":1511.4146927250044},null,{"$f":"(SUMPRODUCT(W$9:W$229,Nutrients!$E$8:$E$228)+(IF($A$7=Nutrients!$B$8,Nutrients!$E$8,Nutrients!$E$9)*W$7)+(((IF($A$8=Nutrients!$B$79,Nutrients!$E$79,(IF($A$8=Nutrients!$B$77,Nutrients!$E$77,Nutrients!$E$78)))))*W$8))/2000/2.2046","v":1532.5336213770972},{"$f":"(SUMPRODUCT(X$9:X$229,Nutrients!$E$8:$E$228)+(IF($A$7=Nutrients!$B$8,Nutrients!$E$8,Nutrients!$E$9)*X$7)+(((IF($A$8=Nutrients!$B$79,Nutrients!$E$79,(IF($A$8=Nutrients!$B$77,Nutrients!$E$77,Nutrients!$E$78)))))*X$8))/2000/2.2046","v":1538.1930325322051},{"$f":"(SUMPRODUCT(Y$9:Y$229,Nutrients!$E$8:$E$228)+(IF($A$7=Nutrients!$B$8,Nutrients!$E$8,Nutrients!$E$9)*Y$7)+(((IF($A$8=Nutrients!$B$79,Nutrients!$E$79,(IF($A$8=Nutrients!$B$77,Nutrients!$E$77,Nutrients!$E$78)))))*Y$8))/2000/2.2046","v":1543.504347902001},{"$f":"(SUMPRODUCT(Z$9:Z$229,Nutrients!$E$8:$E$228)+(IF($A$7=Nutrients!$B$8,Nutrients!$E$8,Nutrients!$E$9)*Z$7)+(((IF($A$8=Nutrients!$B$79,Nutrients!$E$79,(IF($A$8=Nutrients!$B$77,Nutrients!$E$77,Nutrients!$E$78)))))*Z$8))/2000/2.2046","v":1547.7764106693176},{"$f":"(SUMPRODUCT(AA$9:AA$229,Nutrients!$E$8:$E$228)+(IF($A$7=Nutrients!$B$8,Nutrients!$E$8,Nutrients!$E$9)*AA$7)+(((IF($A$8=Nutrients!$B$79,Nutrients!$E$79,(IF($A$8=Nutrients!$B$77,Nutrients!$E$77,Nutrients!$E$78)))))*AA$8))/2000/2.2046","v":1551.2373010471624},{"$f":"(SUMPRODUCT(AB$9:AB$229,Nutrients!$E$8:$E$228)+(IF($A$7=Nutrients!$B$8,Nutrients!$E$8,Nutrients!$E$9)*AB$7)+(((IF($A$8=Nutrients!$B$79,Nutrients!$E$79,(IF($A$8=Nutrients!$B$77,Nutrients!$E$77,Nutrients!$E$78)))))*AB$8))/2000/2.2046","v":1511.4146927250044},null,{"$f":"(SUMPRODUCT(AD$9:AD$229,Nutrients!$E$8:$E$228)+(IF($A$7=Nutrients!$B$8,Nutrients!$E$8,Nutrients!$E$9)*AD$7)+(((IF($A$8=Nutrients!$B$79,Nutrients!$E$79,(IF($A$8=Nutrients!$B$77,Nutrients!$E$77,Nutrients!$E$78)))))*AD$8))/2000/2.2046","v":1546.2647210193622},{"$f":"(SUMPRODUCT(AE$9:AE$229,Nutrients!$E$8:$E$228)+(IF($A$7=Nutrients!$B$8,Nutrients!$E$8,Nutrients!$E$9)*AE$7)+(((IF($A$8=Nutrients!$B$79,Nutrients!$E$79,(IF($A$8=Nutrients!$B$77,Nutrients!$E$77,Nutrients!$E$78)))))*AE$8))/2000/2.2046","v":1551.9067956872489},{"$f":"(SUMPRODUCT(AF$9:AF$229,Nutrients!$E$8:$E$228)+(IF($A$7=Nutrients!$B$8,Nutrients!$E$8,Nutrients!$E$9)*AF$7)+(((IF($A$8=Nutrients!$B$79,Nutrients!$E$79,(IF($A$8=Nutrients!$B$77,Nutrients!$E$77,Nutrients!$E$78)))))*AF$8))/2000/2.2046","v":1557.2004131042156},{"$f":"(SUMPRODUCT(AG$9:AG$229,Nutrients!$E$8:$E$228)+(IF($A$7=Nutrients!$B$8,Nutrients!$E$8,Nutrients!$E$9)*AG$7)+(((IF($A$8=Nutrients!$B$79,Nutrients!$E$79,(IF($A$8=Nutrients!$B$77,Nutrients!$E$77,Nutrients!$E$78)))))*AG$8))/2000/2.2046","v":1561.6089965269193},{"$f":"(SUMPRODUCT(AH$9:AH$229,Nutrients!$E$8:$E$228)+(IF($A$7=Nutrients!$B$8,Nutrients!$E$8,Nutrients!$E$9)*AH$7)+(((IF($A$8=Nutrients!$B$79,Nutrients!$E$79,(IF($A$8=Nutrients!$B$77,Nutrients!$E$77,Nutrients!$E$78)))))*AH$8))/2000/2.2046","v":1564.5957706149304},{"$f":"(SUMPRODUCT(AI$9:AI$229,Nutrients!$E$8:$E$228)+(IF($A$7=Nutrients!$B$8,Nutrients!$E$8,Nutrients!$E$9)*AI$7)+(((IF($A$8=Nutrients!$B$79,Nutrients!$E$79,(IF($A$8=Nutrients!$B$77,Nutrients!$E$77,Nutrients!$E$78)))))*AI$8))/2000/2.2046","v":1511.4146927250044},null,{"$f":"(SUMPRODUCT(AK$9:AK$229,Nutrients!$E$8:$E$228)+(IF($A$7=Nutrients!$B$8,Nutrients!$E$8,Nutrients!$E$9)*AK$7)+(((IF($A$8=Nutrients!$B$79,Nutrients!$E$79,(IF($A$8=Nutrients!$B$77,Nutrients!$E$77,Nutrients!$E$78)))))*AK$8))/2000/2.2046","v":1560.2901855671428},{"$f":"(SUMPRODUCT(AL$9:AL$229,Nutrients!$E$8:$E$228)+(IF($A$7=Nutrients!$B$8,Nutrients!$E$8,Nutrients!$E$9)*AL$7)+(((IF($A$8=Nutrients!$B$79,Nutrients!$E$79,(IF($A$8=Nutrients!$B$77,Nutrients!$E$77,Nutrients!$E$78)))))*AL$8))/2000/2.2046","v":1565.6349119649267},{"$f":"(SUMPRODUCT(AM$9:AM$229,Nutrients!$E$8:$E$228)+(IF($A$7=Nutrients!$B$8,Nutrients!$E$8,Nutrients!$E$9)*AM$7)+(((IF($A$8=Nutrients!$B$79,Nutrients!$E$79,(IF($A$8=Nutrients!$B$77,Nutrients!$E$77,Nutrients!$E$78)))))*AM$8))/2000/2.2046","v":1570.9800594779867},{"$f":"(SUMPRODUCT(AN$9:AN$229,Nutrients!$E$8:$E$228)+(IF($A$7=Nutrients!$B$8,Nutrients!$E$8,Nutrients!$E$9)*AN$7)+(((IF($A$8=Nutrients!$B$79,Nutrients!$E$79,(IF($A$8=Nutrients!$B$77,Nutrients!$E$77,Nutrients!$E$78)))))*AN$8))/2000/2.2046","v":1574.8167666409322},{"$f":"(SUMPRODUCT(AO$9:AO$229,Nutrients!$E$8:$E$228)+(IF($A$7=Nutrients!$B$8,Nutrients!$E$8,Nutrients!$E$9)*AO$7)+(((IF($A$8=Nutrients!$B$79,Nutrients!$E$79,(IF($A$8=Nutrients!$B$77,Nutrients!$E$77,Nutrients!$E$78)))))*AO$8))/2000/2.2046","v":1578.0854277061721},{"$f":"(SUMPRODUCT(AP$9:AP$229,Nutrients!$E$8:$E$228)+(IF($A$7=Nutrients!$B$8,Nutrients!$E$8,Nutrients!$E$9)*AP$7)+(((IF($A$8=Nutrients!$B$79,Nutrients!$E$79,(IF($A$8=Nutrients!$B$77,Nutrients!$E$77,Nutrients!$E$78)))))*AP$8))/2000/2.2046","v":1511.4146927250044},null,{"$f":"(SUMPRODUCT(AR$9:AR$229,Nutrients!$E$8:$E$228)+(IF($A$7=Nutrients!$B$8,Nutrients!$E$8,Nutrients!$E$9)*AR$7)+(((IF($A$8=Nutrients!$B$79,Nutrients!$E$79,(IF($A$8=Nutrients!$B$77,Nutrients!$E$77,Nutrients!$E$78)))))*AR$8))/2000/2.2046","v":1573.8635204264267},{"$f":"(SUMPRODUCT(AS$9:AS$229,Nutrients!$E$8:$E$228)+(IF($A$7=Nutrients!$B$8,Nutrients!$E$8,Nutrients!$E$9)*AS$7)+(((IF($A$8=Nutrients!$B$79,Nutrients!$E$79,(IF($A$8=Nutrients!$B$77,Nutrients!$E$77,Nutrients!$E$78)))))*AS$8))/2000/2.2046","v":1579.3278967971946},{"$f":"(SUMPRODUCT(AT$9:AT$229,Nutrients!$E$8:$E$228)+(IF($A$7=Nutrients!$B$8,Nutrients!$E$8,Nutrients!$E$9)*AT$7)+(((IF($A$8=Nutrients!$B$79,Nutrients!$E$79,(IF($A$8=Nutrients!$B$77,Nutrients!$E$77,Nutrients!$E$78)))))*AT$8))/2000/2.2046","v":1584.3606368891599},{"$f":"(SUMPRODUCT(AU$9:AU$229,Nutrients!$E$8:$E$228)+(IF($A$7=Nutrients!$B$8,Nutrients!$E$8,Nutrients!$E$9)*AU$7)+(((IF($A$8=Nutrients!$B$79,Nutrients!$E$79,(IF($A$8=Nutrients!$B$77,Nutrients!$E$77,Nutrients!$E$78)))))*AU$8))/2000/2.2046","v":1588.2769988753703},{"$f":"(SUMPRODUCT(AV$9:AV$229,Nutrients!$E$8:$E$228)+(IF($A$7=Nutrients!$B$8,Nutrients!$E$8,Nutrients!$E$9)*AV$7)+(((IF($A$8=Nutrients!$B$79,Nutrients!$E$79,(IF($A$8=Nutrients!$B$77,Nutrients!$E$77,Nutrients!$E$78)))))*AV$8))/2000/2.2046","v":1591.6036975788595},{"$f":"(SUMPRODUCT(AW$9:AW$229,Nutrients!$E$8:$E$228)+(IF($A$7=Nutrients!$B$8,Nutrients!$E$8,Nutrients!$E$9)*AW$7)+(((IF($A$8=Nutrients!$B$79,Nutrients!$E$79,(IF($A$8=Nutrients!$B$77,Nutrients!$E$77,Nutrients!$E$78)))))*AW$8))/2000/2.2046","v":1511.4146927250044}]
["NE Noblet Grow/Finish, kcal/lb",{"$f":"(SUMPRODUCT(B$9:B$229,Nutrients!$DY$8:$DY$228)+(IF($A$7=Nutrients!$B$8,Nutrients!$DY$8,Nutrients!$DY$9)*B$7)+(((IF($A$8=Nutrients!$B$79,Nutrients!$DY$79,(IF($A$8=Nutrients!$B$77,Nutrients!$DY$77,Nutrients!$DY$78)))))*B$8))/2000/2.2046","v":1084.249548676868},{"$f":"(SUMPRODUCT(C$9:C$229,Nutrients!$DY$8:$DY$228)+(IF($A$7=Nutrients!$B$8,Nutrients!$DY$8,Nutrients!$DY$9)*C$7)+(((IF($A$8=Nutrients!$B$79,Nutrients!$DY$79,(IF($A$8=Nutrients!$B$77,Nutrients!$DY$77,Nutrients!$DY$78)))))*C$8))/2000/2.2046","v":1102.8575690313603},{"$f":"(SUMPRODUCT(D$9:D$229,Nutrients!$DY$8:$DY$228)+(IF($A$7=Nutrients!$B$8,Nutrients!$DY$8,Nutrients!$DY$9)*D$7)+(((IF($A$8=Nutrients!$B$79,Nutrients!$DY$79,(IF($A$8=Nutrients!$B$77,Nutrients!$DY$77,Nutrients!$DY$78)))))*D$8))/2000/2.2046","v":1119.0569124625506},{"$f":"(SUMPRODUCT(E$9:E$229,Nutrients!$DY$8:$DY$228)+(IF($A$7=Nutrients!$B$8,Nutrients!$DY$8,Nutrients!$DY$9)*E$7)+(((IF($A$8=Nutrients!$B$79,Nutrients!$DY$79,(IF($A$8=Nutrients!$B$77,Nutrients!$DY$77,Nutrients!$DY$78)))))*E$8))/2000/2.2046","v":1132.8948287435808},{"$f":"(SUMPRODUCT(F$9:F$229,Nutrients!$DY$8:$DY$228)+(IF($A$7=Nutrients!$B$8,Nutrients!$DY$8,Nutrients!$DY$9)*F$7)+(((IF($A$8=Nutrients!$B$79,Nutrients!$DY$79,(IF($A$8=Nutrients!$B$77,Nutrients!$DY$77,Nutrients!$DY$78)))))*F$8))/2000/2.2046","v":1142.4960914643329},{"$f":"(SUMPRODUCT(G$9:G$229,Nutrients!$DY$8:$DY$228)+(IF($A$7=Nutrients!$B$8,Nutrients!$DY$8,Nutrients!$DY$9)*G$7)+(((IF($A$8=Nutrients!$B$79,Nutrients!$DY$79,(IF($A$8=Nutrients!$B$77,Nutrients!$DY$77,Nutrients!$DY$78)))))*G$8))/2000/2.2046","v":1147.04091606665},null,{"$f":"(SUMPRODUCT(I$9:I$229,Nutrients!$DY$8:$DY$228)+(IF($A$7=Nutrients!$B$8,Nutrients!$DY$8,Nutrients!$DY$9)*I$7)+(((IF($A$8=Nutrients!$B$79,Nutrients!$DY$79,(IF($A$8=Nutrients!$B$77,Nutrients!$DY$77,Nutrients!$DY$78)))))*I$8))/2000/2.2046","v":1038.6173558042069},{"$f":"(SUMPRODUCT(J$9:J$229,Nutrients!$DY$8:$DY$228)+(IF($A$7=Nutrients!$B$8,Nutrients!$DY$8,Nutrients!$DY$9)*J$7)+(((IF($A$8=Nutrients!$B$79,Nutrients!$DY$79,(IF($A$8=Nutrients!$B$77,Nutrients!$DY$77,Nutrients!$DY$78)))))*J$8))/2000/2.2046","v":1057.2973324167847},{"$f":"(SUMPRODUCT(K$9:K$229,Nutrients!$DY$8:$DY$228)+(IF($A$7=Nutrients!$B$8,Nutrients!$DY$8,Nutrients!$DY$9)*K$7)+(((IF($A$8=Nutrients!$B$79,Nutrients!$DY$79,(IF($A$8=Nutrients!$B$77,Nutrients!$DY$77,Nutrients!$DY$78)))))*K$8))/2000/2.2046","v":1073.747451947004},{"$f":"(SUMPRODUCT(L$9:L$229,Nutrients!$DY$8:$DY$228)+(IF($A$7=Nutrients!$B$8,Nutrients!$DY$8,Nutrients!$DY$9)*L$7)+(((IF($A$8=Nutrients!$B$79,Nutrients!$DY$79,(IF($A$8=Nutrients!$B$77,Nutrients!$DY$77,Nutrients!$DY$78)))))*L$8))/2000/2.2046","v":1087.4546661752524},{"$f":"(SUMPRODUCT(M$9:M$229,Nutrients!$DY$8:$DY$228)+(IF($A$7=Nutrients!$B$8,Nutrients!$DY$8,Nutrients!$DY$9)*M$7)+(((IF($A$8=Nutrients!$B$79,Nutrients!$DY$79,(IF($A$8=Nutrients!$B$77,Nutrients!$DY$77,Nutrients!$DY$78)))))*M$8))/2000/2.2046","v":1097.0269850793527},{"$f":"(SUMPRODUCT(N$9:N$229,Nutrients!$DY$8:$DY$228)+(IF($A$7=Nutrients!$B$8,Nutrients!$DY$8,Nutrients!$DY$9)*N$7)+(((IF($A$8=Nutrients!$B$79,Nutrients!$DY$79,(IF($A$8=Nutrients!$B$77,Nutrients!$DY$77,Nutrients!$DY$78)))))*N$8))/2000/2.2046","v":1147.04091606665},null,{"$f":"(SUMPRODUCT(P$9:P$229,Nutrients!$DY$8:$DY$228)+(IF($A$7=Nutrients!$B$8,Nutrients!$DY$8,Nutrients!$DY$9)*P$7)+(((IF($A$8=Nutrients!$B$79,Nutrients!$DY$79,(IF($A$8=Nutrients!$B$77,Nutrients!$DY$77,Nutrients!$DY$78)))))*P$8))/2000/2.2046","v":993.16695188644837},{"$f":"(SUMPRODUCT(Q$9:Q$229,Nutrients!$DY$8:$DY$228)+(IF($A$7=Nutrients!$B$8,Nutrients!$DY$8,Nutrients!$DY$9)*Q$7)+(((IF($A$8=Nutrients!$B$79,Nutrients!$DY$79,(IF($A$8=Nutrients!$B$77,Nutrients!$DY$77,Nutrients!$DY$78)))))*Q$8))/2000/2.2046","v":1011.8848734893444},{"$f":"(SUMPRODUCT(R$9:R$229,Nutrients!$DY$8:$DY$228)+(IF($A$7=Nutrients!$B$8,Nutrients!$DY$8,Nutrients!$DY$9)*R$7)+(((IF($A$8=Nutrients!$B$79,Nutrients!$DY$79,(IF($A$8=Nutrients!$B$77,Nutrients!$DY$77,Nutrients!$DY$78)))))*R$8))/2000/2.2046","v":1028.3922669814685},{"$f":"(SUMPRODUCT(S$9:S$229,Nutrients!$DY$8:$DY$228)+(IF($A$7=Nutrients!$B$8,Nutrients!$DY$8,Nutrients!$DY$9)*S$7)+(((IF($A$8=Nutrients!$B$79,Nutrients!$DY$79,(IF($A$8=Nutrients!$B$77,Nutrients!$DY$77,Nutrients!$DY$78)))))*S$8))/2000/2.2046","v":1042.0769535058707},{"$f":"(SUMPRODUCT(T$9:T$229,Nutrients!$DY$8:$DY$228)+(IF($A$7=Nutrients!$B$8,Nutrients!$DY$8,Nutrients!$DY$9)*T$7)+(((IF($A$8=Nutrients!$B$79,Nutrients!$DY$79,(IF($A$8=Nutrients!$B$77,Nutrients!$DY$77,Nutrients!$DY$78)))))*T$8))/2000/2.2046","v":1051.6556630842906},{"$f":"(SUMPRODUCT(U$9:U$229,Nutrients!$DY$8:$DY$228)+(IF($A$7=Nutrients!$B$8,Nutrients!$DY$8,Nutrients!$DY$9)*U$7)+(((IF($A$8=Nutrients!$B$79,Nutrients!$DY$79,(IF($A$8=Nutrients!$B$77,Nutrients!$DY$77,Nutrients!$DY$78)))))*U$8))/2000/2.2046","v":1147.04091606665},null,{"$f":"(SUMPRODUCT(W$9:W$229,Nutrients!$DY$8:$DY$228)+(IF($A$7=Nutrients!$B$8,Nutrients!$DY$8,Nutrients!$DY$9)*W$7)+(((IF($A$8=Nutrients!$B$79,Nutrients!$DY$79,(IF($A$8=Nutrients!$B$77,Nutrients!$DY$77,Nutrients!$DY$78)))))*W$8))/2000/2.2046","v":947.74648506769665},{"$f":"(SUMPRODUCT(X$9:X$229,Nutrients!$DY$8:$DY$228)+(IF($A$7=Nutrients!$B$8,Nutrients!$DY$8,Nutrients!$DY$9)*X$7)+(((IF($A$8=Nutrients!$B$79,Nutrients!$DY$79,(IF($A$8=Nutrients!$B$77,Nutrients!$DY$77,Nutrients!$DY$78)))))*X$8))/2000/2.2046","v":966.50834607684783},{"$f":"(SUMPRODUCT(Y$9:Y$229,Nutrients!$DY$8:$DY$228)+(IF($A$7=Nutrients!$B$8,Nutrients!$DY$8,Nutrients!$DY$9)*Y$7)+(((IF($A$8=Nutrients!$B$79,Nutrients!$DY$79,(IF($A$8=Nutrients!$B$77,Nutrients!$DY$77,Nutrients!$DY$78)))))*Y$8))/2000/2.2046","v":983.01581962126204},{"$f":"(SUMPRODUCT(Z$9:Z$229,Nutrients!$DY$8:$DY$228)+(IF($A$7=Nutrients!$B$8,Nutrients!$DY$8,Nutrients!$DY$9)*Z$7)+(((IF($A$8=Nutrients!$B$79,Nutrients!$DY$79,(IF($A$8=Nutrients!$B$77,Nutrients!$DY$77,Nutrients!$DY$78)))))*Z$8))/2000/2.2046","v":996.71901277139671},{"$f":"(SUMPRODUCT(AA$9:AA$229,Nutrients!$DY$8:$DY$228)+(IF($A$7=Nutrients!$B$8,Nutrients!$DY$8,Nutrients!$DY$9)*AA$7)+(((IF($A$8=Nutrients!$B$79,Nutrients!$DY$79,(IF($A$8=Nutrients!$B$77,Nutrients!$DY$77,Nutrients!$DY$78)))))*AA$8))/2000/2.2046","v":1006.3542330267044},{"$f":"(SUMPRODUCT(AB$9:AB$229,Nutrients!$DY$8:$DY$228)+(IF($A$7=Nutrients!$B$8,Nutrients!$DY$8,Nutrients!$DY$9)*AB$7)+(((IF($A$8=Nutrients!$B$79,Nutrients!$DY$79,(IF($A$8=Nutrients!$B$77,Nutrients!$DY$77,Nutrients!$DY$78)))))*AB$8))/2000/2.2046","v":1147.04091606665},null,{"$f":"(SUMPRODUCT(AD$9:AD$229,Nutrients!$DY$8:$DY$228)+(IF($A$7=Nutrients!$B$8,Nutrients!$DY$8,Nutrients!$DY$9)*AD$7)+(((IF($A$8=Nutrients!$B$79,Nutrients!$DY$79,(IF($A$8=Nutrients!$B$77,Nutrients!$DY$77,Nutrients!$DY$78)))))*AD$8))/2000/2.2046","v":902.39501188726808},{"$f":"(SUMPRODUCT(AE$9:AE$229,Nutrients!$DY$8:$DY$228)+(IF($A$7=Nutrients!$B$8,Nutrients!$DY$8,Nutrients!$DY$9)*AE$7)+(((IF($A$8=Nutrients!$B$79,Nutrients!$DY$79,(IF($A$8=Nutrients!$B$77,Nutrients!$DY$77,Nutrients!$DY$78)))))*AE$8))/2000/2.2046","v":921.14067641202178},{"$f":"(SUMPRODUCT(AF$9:AF$229,Nutrients!$DY$8:$DY$228)+(IF($A$7=Nutrients!$B$8,Nutrients!$DY$8,Nutrients!$DY$9)*AF$7)+(((IF($A$8=Nutrients!$B$79,Nutrients!$DY$79,(IF($A$8=Nutrients!$B$77,Nutrients!$DY$77,Nutrients!$DY$78)))))*AF$8))/2000/2.2046","v":937.65017786849273},{"$f":"(SUMPRODUCT(AG$9:AG$229,Nutrients!$DY$8:$DY$228)+(IF($A$7=Nutrients!$B$8,Nutrients!$DY$8,Nutrients!$DY$9)*AG$7)+(((IF($A$8=Nutrients!$B$79,Nutrients!$DY$79,(IF($A$8=Nutrients!$B$77,Nutrients!$DY$77,Nutrients!$DY$78)))))*AG$8))/2000/2.2046","v":951.44723277162814},{"$f":"(SUMPRODUCT(AH$9:AH$229,Nutrients!$DY$8:$DY$228)+(IF($A$7=Nutrients!$B$8,Nutrients!$DY$8,Nutrients!$DY$9)*AH$7)+(((IF($A$8=Nutrients!$B$79,Nutrients!$DY$79,(IF($A$8=Nutrients!$B$77,Nutrients!$DY$77,Nutrients!$DY$78)))))*AH$8))/2000/2.2046","v":960.81188296684763},{"$f":"(SUMPRODUCT(AI$9:AI$229,Nutrients!$DY$8:$DY$228)+(IF($A$7=Nutrients!$B$8,Nutrients!$DY$8,Nutrients!$DY$9)*AI$7)+(((IF($A$8=Nutrients!$B$79,Nutrients!$DY$79,(IF($A$8=Nutrients!$B$77,Nutrients!$DY$77,Nutrients!$DY$78)))))*AI$8))/2000/2.2046","v":1147.04091606665},null,{"$f":"(SUMPRODUCT(AK$9:AK$229,Nutrients!$DY$8:$DY$228)+(IF($A$7=Nutrients!$B$8,Nutrients!$DY$8,Nutrients!$DY$9)*AK$7)+(((IF($A$8=Nutrients!$B$79,Nutrients!$DY$79,(IF($A$8=Nutrients!$B$77,Nutrients!$DY$77,Nutrients!$DY$78)))))*AK$8))/2000/2.2046","v":857.31745878406525},{"$f":"(SUMPRODUCT(AL$9:AL$229,Nutrients!$DY$8:$DY$228)+(IF($A$7=Nutrients!$B$8,Nutrients!$DY$8,Nutrients!$DY$9)*AL$7)+(((IF($A$8=Nutrients!$B$79,Nutrients!$DY$79,(IF($A$8=Nutrients!$B$77,Nutrients!$DY$77,Nutrients!$DY$78)))))*AL$8))/2000/2.2046","v":875.78532789640929},{"$f":"(SUMPRODUCT(AM$9:AM$229,Nutrients!$DY$8:$DY$228)+(IF($A$7=Nutrients!$B$8,Nutrients!$DY$8,Nutrients!$DY$9)*AM$7)+(((IF($A$8=Nutrients!$B$79,Nutrients!$DY$79,(IF($A$8=Nutrients!$B$77,Nutrients!$DY$77,Nutrients!$DY$78)))))*AM$8))/2000/2.2046","v":892.32785140024976},{"$f":"(SUMPRODUCT(AN$9:AN$229,Nutrients!$DY$8:$DY$228)+(IF($A$7=Nutrients!$B$8,Nutrients!$DY$8,Nutrients!$DY$9)*AN$7)+(((IF($A$8=Nutrients!$B$79,Nutrients!$DY$79,(IF($A$8=Nutrients!$B$77,Nutrients!$DY$77,Nutrients!$DY$78)))))*AN$8))/2000/2.2046","v":905.75680549656568},{"$f":"(SUMPRODUCT(AO$9:AO$229,Nutrients!$DY$8:$DY$228)+(IF($A$7=Nutrients!$B$8,Nutrients!$DY$8,Nutrients!$DY$9)*AO$7)+(((IF($A$8=Nutrients!$B$79,Nutrients!$DY$79,(IF($A$8=Nutrients!$B$77,Nutrients!$DY$77,Nutrients!$DY$78)))))*AO$8))/2000/2.2046","v":915.42357418314293},{"$f":"(SUMPRODUCT(AP$9:AP$229,Nutrients!$DY$8:$DY$228)+(IF($A$7=Nutrients!$B$8,Nutrients!$DY$8,Nutrients!$DY$9)*AP$7)+(((IF($A$8=Nutrients!$B$79,Nutrients!$DY$79,(IF($A$8=Nutrients!$B$77,Nutrients!$DY$77,Nutrients!$DY$78)))))*AP$8))/2000/2.2046","v":1147.04091606665},null,{"$f":"(SUMPRODUCT(AR$9:AR$229,Nutrients!$DY$8:$DY$228)+(IF($A$7=Nutrients!$B$8,Nutrients!$DY$8,Nutrients!$DY$9)*AR$7)+(((IF($A$8=Nutrients!$B$79,Nutrients!$DY$79,(IF($A$8=Nutrients!$B$77,Nutrients!$DY$77,Nutrients!$DY$78)))))*AR$8))/2000/2.2046","v":811.82544080313357},{"$f":"(SUMPRODUCT(AS$9:AS$229,Nutrients!$DY$8:$DY$228)+(IF($A$7=Nutrients!$B$8,Nutrients!$DY$8,Nutrients!$DY$9)*AS$7)+(((IF($A$8=Nutrients!$B$79,Nutrients!$DY$79,(IF($A$8=Nutrients!$B$77,Nutrients!$DY$77,Nutrients!$DY$78)))))*AS$8))/2000/2.2046","v":830.40509184369205},{"$f":"(SUMPRODUCT(AT$9:AT$229,Nutrients!$DY$8:$DY$228)+(IF($A$7=Nutrients!$B$8,Nutrients!$DY$8,Nutrients!$DY$9)*AT$7)+(((IF($A$8=Nutrients!$B$79,Nutrients!$DY$79,(IF($A$8=Nutrients!$B$77,Nutrients!$DY$77,Nutrients!$DY$78)))))*AT$8))/2000/2.2046","v":846.69424338374745},{"$f":"(SUMPRODUCT(AU$9:AU$229,Nutrients!$DY$8:$DY$228)+(IF($A$7=Nutrients!$B$8,Nutrients!$DY$8,Nutrients!$DY$9)*AU$7)+(((IF($A$8=Nutrients!$B$79,Nutrients!$DY$79,(IF($A$8=Nutrients!$B$77,Nutrients!$DY$77,Nutrients!$DY$78)))))*AU$8))/2000/2.2046","v":860.34297657559421},{"$f":"(SUMPRODUCT(AV$9:AV$229,Nutrients!$DY$8:$DY$228)+(IF($A$7=Nutrients!$B$8,Nutrients!$DY$8,Nutrients!$DY$9)*AV$7)+(((IF($A$8=Nutrients!$B$79,Nutrients!$DY$79,(IF($A$8=Nutrients!$B$77,Nutrients!$DY$77,Nutrients!$DY$78)))))*AV$8))/2000/2.2046","v":870.05758755754562},{"$f":"(SUMPRODUCT(AW$9:AW$229,Nutrients!$DY$8:$DY$228)+(IF($A$7=Nutrients!$B$8,Nutrients!$DY$8,Nutrients!$DY$9)*AW$7)+(((IF($A$8=Nutrients!$B$79,Nutrients!$DY$79,(IF($A$8=Nutrients!$B$77,Nutrients!$DY$77,Nutrients!$DY$78)))))*AW$8))/2000/2.2046","v":1147.04091606665}]
["NE Noblet Sow, kcal/lb",{"$f":"(SUMPRODUCT(B$9:B$229,Nutrients!$DZ$8:$DZ$228)+(IF($A$7=Nutrients!$B$8,Nutrients!$DZ$8,Nutrients!$DZ$9)*B$7)+(((IF($A$8=Nutrients!$B$79,Nutrients!$DZ$79,(IF($A$8=Nutrients!$B$77,Nutrients!$DZ$77,Nutrients!$DZ$78)))))*B$8))/2000/2.2046","v":1125.1001476776023},{"$f":"(SUMPRODUCT(C$9:C$229,Nutrients!$DZ$8:$DZ$228)+(IF($A$7=Nutrients!$B$8,Nutrients!$DZ$8,Nutrients!$DZ$9)*C$7)+(((IF($A$8=Nutrients!$B$79,Nutrients!$DZ$79,(IF($A$8=Nutrients!$B$77,Nutrients!$DZ$77,Nutrients!$DZ$78)))))*C$8))/2000/2.2046","v":1142.795652894368},{"$f":"(SUMPRODUCT(D$9:D$229,Nutrients!$DZ$8:$DZ$228)+(IF($A$7=Nutrients!$B$8,Nutrients!$DZ$8,Nutrients!$DZ$9)*D$7)+(((IF($A$8=Nutrients!$B$79,Nutrients!$DZ$79,(IF($A$8=Nutrients!$B$77,Nutrients!$DZ$77,Nutrients!$DZ$78)))))*D$8))/2000/2.2046","v":1158.2172951602411},{"$f":"(SUMPRODUCT(E$9:E$229,Nutrients!$DZ$8:$DZ$228)+(IF($A$7=Nutrients!$B$8,Nutrients!$DZ$8,Nutrients!$DZ$9)*E$7)+(((IF($A$8=Nutrients!$B$79,Nutrients!$DZ$79,(IF($A$8=Nutrients!$B$77,Nutrients!$DZ$77,Nutrients!$DZ$78)))))*E$8))/2000/2.2046","v":1171.3956144840422},{"$f":"(SUMPRODUCT(F$9:F$229,Nutrients!$DZ$8:$DZ$228)+(IF($A$7=Nutrients!$B$8,Nutrients!$DZ$8,Nutrients!$DZ$9)*F$7)+(((IF($A$8=Nutrients!$B$79,Nutrients!$DZ$79,(IF($A$8=Nutrients!$B$77,Nutrients!$DZ$77,Nutrients!$DZ$78)))))*F$8))/2000/2.2046","v":1180.5769470002078},{"$f":"(SUMPRODUCT(G$9:G$229,Nutrients!$DZ$8:$DZ$228)+(IF($A$7=Nutrients!$B$8,Nutrients!$DZ$8,Nutrients!$DZ$9)*G$7)+(((IF($A$8=Nutrients!$B$79,Nutrients!$DZ$79,(IF($A$8=Nutrients!$B$77,Nutrients!$DZ$77,Nutrients!$DZ$78)))))*G$8))/2000/2.2046","v":1184.8954698199086},null,{"$f":"(SUMPRODUCT(I$9:I$229,Nutrients!$DZ$8:$DZ$228)+(IF($A$7=Nutrients!$B$8,Nutrients!$DZ$8,Nutrients!$DZ$9)*I$7)+(((IF($A$8=Nutrients!$B$79,Nutrients!$DZ$79,(IF($A$8=Nutrients!$B$77,Nutrients!$DZ$77,Nutrients!$DZ$78)))))*I$8))/2000/2.2046","v":1077.2086704521087},{"$f":"(SUMPRODUCT(J$9:J$229,Nutrients!$DZ$8:$DZ$228)+(IF($A$7=Nutrients!$B$8,Nutrients!$DZ$8,Nutrients!$DZ$9)*J$7)+(((IF($A$8=Nutrients!$B$79,Nutrients!$DZ$79,(IF($A$8=Nutrients!$B$77,Nutrients!$DZ$77,Nutrients!$DZ$78)))))*J$8))/2000/2.2046","v":1094.973811109528},{"$f":"(SUMPRODUCT(K$9:K$229,Nutrients!$DZ$8:$DZ$228)+(IF($A$7=Nutrients!$B$8,Nutrients!$DZ$8,Nutrients!$DZ$9)*K$7)+(((IF($A$8=Nutrients!$B$79,Nutrients!$DZ$79,(IF($A$8=Nutrients!$B$77,Nutrients!$DZ$77,Nutrients!$DZ$78)))))*K$8))/2000/2.2046","v":1110.6504184245086},{"$f":"(SUMPRODUCT(L$9:L$229,Nutrients!$DZ$8:$DZ$228)+(IF($A$7=Nutrients!$B$8,Nutrients!$DZ$8,Nutrients!$DZ$9)*L$7)+(((IF($A$8=Nutrients!$B$79,Nutrients!$DZ$79,(IF($A$8=Nutrients!$B$77,Nutrients!$DZ$77,Nutrients!$DZ$78)))))*L$8))/2000/2.2046","v":1123.7042371092468},{"$f":"(SUMPRODUCT(M$9:M$229,Nutrients!$DZ$8:$DZ$228)+(IF($A$7=Nutrients!$B$8,Nutrients!$DZ$8,Nutrients!$DZ$9)*M$7)+(((IF($A$8=Nutrients!$B$79,Nutrients!$DZ$79,(IF($A$8=Nutrients!$B$77,Nutrients!$DZ$77,Nutrients!$DZ$78)))))*M$8))/2000/2.2046","v":1132.8521699528465},{"$f":"(SUMPRODUCT(N$9:N$229,Nutrients!$DZ$8:$DZ$228)+(IF($A$7=Nutrients!$B$8,Nutrients!$DZ$8,Nutrients!$DZ$9)*N$7)+(((IF($A$8=Nutrients!$B$79,Nutrients!$DZ$79,(IF($A$8=Nutrients!$B$77,Nutrients!$DZ$77,Nutrients!$DZ$78)))))*N$8))/2000/2.2046","v":1184.8954698199086},null,{"$f":"(SUMPRODUCT(P$9:P$229,Nutrients!$DZ$8:$DZ$228)+(IF($A$7=Nutrients!$B$8,Nutrients!$DZ$8,Nutrients!$DZ$9)*P$7)+(((IF($A$8=Nutrients!$B$79,Nutrients!$DZ$79,(IF($A$8=Nutrients!$B$77,Nutrients!$DZ$77,Nutrients!$DZ$78)))))*P$8))/2000/2.2046","v":1029.4986329492795},{"$f":"(SUMPRODUCT(Q$9:Q$229,Nutrients!$DZ$8:$DZ$228)+(IF($A$7=Nutrients!$B$8,Nutrients!$DZ$8,Nutrients!$DZ$9)*Q$7)+(((IF($A$8=Nutrients!$B$79,Nutrients!$DZ$79,(IF($A$8=Nutrients!$B$77,Nutrients!$DZ$77,Nutrients!$DZ$78)))))*Q$8))/2000/2.2046","v":1047.3010563835023},{"$f":"(SUMPRODUCT(R$9:R$229,Nutrients!$DZ$8:$DZ$228)+(IF($A$7=Nutrients!$B$8,Nutrients!$DZ$8,Nutrients!$DZ$9)*R$7)+(((IF($A$8=Nutrients!$B$79,Nutrients!$DZ$79,(IF($A$8=Nutrients!$B$77,Nutrients!$DZ$77,Nutrients!$DZ$78)))))*R$8))/2000/2.2046","v":1063.0339381189124},{"$f":"(SUMPRODUCT(S$9:S$229,Nutrients!$DZ$8:$DZ$228)+(IF($A$7=Nutrients!$B$8,Nutrients!$DZ$8,Nutrients!$DZ$9)*S$7)+(((IF($A$8=Nutrients!$B$79,Nutrients!$DZ$79,(IF($A$8=Nutrients!$B$77,Nutrients!$DZ$77,Nutrients!$DZ$78)))))*S$8))/2000/2.2046","v":1076.0656222518332},{"$f":"(SUMPRODUCT(T$9:T$229,Nutrients!$DZ$8:$DZ$228)+(IF($A$7=Nutrients!$B$8,Nutrients!$DZ$8,Nutrients!$DZ$9)*T$7)+(((IF($A$8=Nutrients!$B$79,Nutrients!$DZ$79,(IF($A$8=Nutrients!$B$77,Nutrients!$DZ$77,Nutrients!$DZ$78)))))*T$8))/2000/2.2046","v":1085.2189654481281},{"$f":"(SUMPRODUCT(U$9:U$229,Nutrients!$DZ$8:$DZ$228)+(IF($A$7=Nutrients!$B$8,Nutrients!$DZ$8,Nutrients!$DZ$9)*U$7)+(((IF($A$8=Nutrients!$B$79,Nutrients!$DZ$79,(IF($A$8=Nutrients!$B$77,Nutrients!$DZ$77,Nutrients!$DZ$78)))))*U$8))/2000/2.2046","v":1184.8954698199086},null,{"$f":"(SUMPRODUCT(W$9:W$229,Nutrients!$DZ$8:$DZ$228)+(IF($A$7=Nutrients!$B$8,Nutrients!$DZ$8,Nutrients!$DZ$9)*W$7)+(((IF($A$8=Nutrients!$B$79,Nutrients!$DZ$79,(IF($A$8=Nutrients!$B$77,Nutrients!$DZ$77,Nutrients!$DZ$78)))))*W$8))/2000/2.2046","v":981.81801008514276},{"$f":"(SUMPRODUCT(X$9:X$229,Nutrients!$DZ$8:$DZ$228)+(IF($A$7=Nutrients!$B$8,Nutrients!$DZ$8,Nutrients!$DZ$9)*X$7)+(((IF($A$8=Nutrients!$B$79,Nutrients!$DZ$79,(IF($A$8=Nutrients!$B$77,Nutrients!$DZ$77,Nutrients!$DZ$78)))))*X$8))/2000/2.2046","v":999.66360609794742},{"$f":"(SUMPRODUCT(Y$9:Y$229,Nutrients!$DZ$8:$DZ$228)+(IF($A$7=Nutrients!$B$8,Nutrients!$DZ$8,Nutrients!$DZ$9)*Y$7)+(((IF($A$8=Nutrients!$B$79,Nutrients!$DZ$79,(IF($A$8=Nutrients!$B$77,Nutrients!$DZ$77,Nutrients!$DZ$78)))))*Y$8))/2000/2.2046","v":1015.3976921645282},{"$f":"(SUMPRODUCT(Z$9:Z$229,Nutrients!$DZ$8:$DZ$228)+(IF($A$7=Nutrients!$B$8,Nutrients!$DZ$8,Nutrients!$DZ$9)*Z$7)+(((IF($A$8=Nutrients!$B$79,Nutrients!$DZ$79,(IF($A$8=Nutrients!$B$77,Nutrients!$DZ$77,Nutrients!$DZ$78)))))*Z$8))/2000/2.2046","v":1028.4486126006059},{"$f":"(SUMPRODUCT(AA$9:AA$229,Nutrients!$DZ$8:$DZ$228)+(IF($A$7=Nutrients!$B$8,Nutrients!$DZ$8,Nutrients!$DZ$9)*AA$7)+(((IF($A$8=Nutrients!$B$79,Nutrients!$DZ$79,(IF($A$8=Nutrients!$B$77,Nutrients!$DZ$77,Nutrients!$DZ$78)))))*AA$8))/2000/2.2046","v":1037.6544224394975},{"$f":"(SUMPRODUCT(AB$9:AB$229,Nutrients!$DZ$8:$DZ$228)+(IF($A$7=Nutrients!$B$8,Nutrients!$DZ$8,Nutrients!$DZ$9)*AB$7)+(((IF($A$8=Nutrients!$B$79,Nutrients!$DZ$79,(IF($A$8=Nutrients!$B$77,Nutrients!$DZ$77,Nutrients!$DZ$78)))))*AB$8))/2000/2.2046","v":1184.8954698199086},null,{"$f":"(SUMPRODUCT(AD$9:AD$229,Nutrients!$DZ$8:$DZ$228)+(IF($A$7=Nutrients!$B$8,Nutrients!$DZ$8,Nutrients!$DZ$9)*AD$7)+(((IF($A$8=Nutrients!$B$79,Nutrients!$DZ$79,(IF($A$8=Nutrients!$B$77,Nutrients!$DZ$77,Nutrients!$DZ$78)))))*AD$8))/2000/2.2046","v":934.20573962479409},{"$f":"(SUMPRODUCT(AE$9:AE$229,Nutrients!$DZ$8:$DZ$228)+(IF($A$7=Nutrients!$B$8,Nutrients!$DZ$8,Nutrients!$DZ$9)*AE$7)+(((IF($A$8=Nutrients!$B$79,Nutrients!$DZ$79,(IF($A$8=Nutrients!$B$77,Nutrients!$DZ$77,Nutrients!$DZ$78)))))*AE$8))/2000/2.2046","v":952.03542181319847},{"$f":"(SUMPRODUCT(AF$9:AF$229,Nutrients!$DZ$8:$DZ$228)+(IF($A$7=Nutrients!$B$8,Nutrients!$DZ$8,Nutrients!$DZ$9)*AF$7)+(((IF($A$8=Nutrients!$B$79,Nutrients!$DZ$79,(IF($A$8=Nutrients!$B$77,Nutrients!$DZ$77,Nutrients!$DZ$78)))))*AF$8))/2000/2.2046","v":967.77388681057232},{"$f":"(SUMPRODUCT(AG$9:AG$229,Nutrients!$DZ$8:$DZ$228)+(IF($A$7=Nutrients!$B$8,Nutrients!$DZ$8,Nutrients!$DZ$9)*AG$7)+(((IF($A$8=Nutrients!$B$79,Nutrients!$DZ$79,(IF($A$8=Nutrients!$B$77,Nutrients!$DZ$77,Nutrients!$DZ$78)))))*AG$8))/2000/2.2046","v":980.91263936093003},{"$f":"(SUMPRODUCT(AH$9:AH$229,Nutrients!$DZ$8:$DZ$228)+(IF($A$7=Nutrients!$B$8,Nutrients!$DZ$8,Nutrients!$DZ$9)*AH$7)+(((IF($A$8=Nutrients!$B$79,Nutrients!$DZ$79,(IF($A$8=Nutrients!$B$77,Nutrients!$DZ$77,Nutrients!$DZ$78)))))*AH$8))/2000/2.2046","v":989.80835220313941},{"$f":"(SUMPRODUCT(AI$9:AI$229,Nutrients!$DZ$8:$DZ$228)+(IF($A$7=Nutrients!$B$8,Nutrients!$DZ$8,Nutrients!$DZ$9)*AI$7)+(((IF($A$8=Nutrients!$B$79,Nutrients!$DZ$79,(IF($A$8=Nutrients!$B$77,Nutrients!$DZ$77,Nutrients!$DZ$78)))))*AI$8))/2000/2.2046","v":1184.8954698199086},null,{"$f":"(SUMPRODUCT(AK$9:AK$229,Nutrients!$DZ$8:$DZ$228)+(IF($A$7=Nutrients!$B$8,Nutrients!$DZ$8,Nutrients!$DZ$9)*AK$7)+(((IF($A$8=Nutrients!$B$79,Nutrients!$DZ$79,(IF($A$8=Nutrients!$B$77,Nutrients!$DZ$77,Nutrients!$DZ$78)))))*AK$8))/2000/2.2046","v":886.8628902252035},{"$f":"(SUMPRODUCT(AL$9:AL$229,Nutrients!$DZ$8:$DZ$228)+(IF($A$7=Nutrients!$B$8,Nutrients!$DZ$8,Nutrients!$DZ$9)*AL$7)+(((IF($A$8=Nutrients!$B$79,Nutrients!$DZ$79,(IF($A$8=Nutrients!$B$77,Nutrients!$DZ$77,Nutrients!$DZ$78)))))*AL$8))/2000/2.2046","v":904.41962506875143},{"$f":"(SUMPRODUCT(AM$9:AM$229,Nutrients!$DZ$8:$DZ$228)+(IF($A$7=Nutrients!$B$8,Nutrients!$DZ$8,Nutrients!$DZ$9)*AM$7)+(((IF($A$8=Nutrients!$B$79,Nutrients!$DZ$79,(IF($A$8=Nutrients!$B$77,Nutrients!$DZ$77,Nutrients!$DZ$78)))))*AM$8))/2000/2.2046","v":920.18853065510416},{"$f":"(SUMPRODUCT(AN$9:AN$229,Nutrients!$DZ$8:$DZ$228)+(IF($A$7=Nutrients!$B$8,Nutrients!$DZ$8,Nutrients!$DZ$9)*AN$7)+(((IF($A$8=Nutrients!$B$79,Nutrients!$DZ$79,(IF($A$8=Nutrients!$B$77,Nutrients!$DZ$77,Nutrients!$DZ$78)))))*AN$8))/2000/2.2046","v":932.92309061532683},{"$f":"(SUMPRODUCT(AO$9:AO$229,Nutrients!$DZ$8:$DZ$228)+(IF($A$7=Nutrients!$B$8,Nutrients!$DZ$8,Nutrients!$DZ$9)*AO$7)+(((IF($A$8=Nutrients!$B$79,Nutrients!$DZ$79,(IF($A$8=Nutrients!$B$77,Nutrients!$DZ$77,Nutrients!$DZ$78)))))*AO$8))/2000/2.2046","v":942.10607402155676},{"$f":"(SUMPRODUCT(AP$9:AP$229,Nutrients!$DZ$8:$DZ$228)+(IF($A$7=Nutrients!$B$8,Nutrients!$DZ$8,Nutrients!$DZ$9)*AP$7)+(((IF($A$8=Nutrients!$B$79,Nutrients!$DZ$79,(IF($A$8=Nutrients!$B$77,Nutrients!$DZ$77,Nutrients!$DZ$78)))))*AP$8))/2000/2.2046","v":1184.8954698199086},null,{"$f":"(SUMPRODUCT(AR$9:AR$229,Nutrients!$DZ$8:$DZ$228)+(IF($A$7=Nutrients!$B$8,Nutrients!$DZ$8,Nutrients!$DZ$9)*AR$7)+(((IF($A$8=Nutrients!$B$79,Nutrients!$DZ$79,(IF($A$8=Nutrients!$B$77,Nutrients!$DZ$77,Nutrients!$DZ$78)))))*AR$8))/2000/2.2046","v":839.11233825571094},{"$f":"(SUMPRODUCT(AS$9:AS$229,Nutrients!$DZ$8:$DZ$228)+(IF($A$7=Nutrients!$B$8,Nutrients!$DZ$8,Nutrients!$DZ$9)*AS$7)+(((IF($A$8=Nutrients!$B$79,Nutrients!$DZ$79,(IF($A$8=Nutrients!$B$77,Nutrients!$DZ$77,Nutrients!$DZ$78)))))*AS$8))/2000/2.2046","v":856.778904202891},{"$f":"(SUMPRODUCT(AT$9:AT$229,Nutrients!$DZ$8:$DZ$228)+(IF($A$7=Nutrients!$B$8,Nutrients!$DZ$8,Nutrients!$DZ$9)*AT$7)+(((IF($A$8=Nutrients!$B$79,Nutrients!$DZ$79,(IF($A$8=Nutrients!$B$77,Nutrients!$DZ$77,Nutrients!$DZ$78)))))*AT$8))/2000/2.2046","v":872.28276370687195},{"$f":"(SUMPRODUCT(AU$9:AU$229,Nutrients!$DZ$8:$DZ$228)+(IF($A$7=Nutrients!$B$8,Nutrients!$DZ$8,Nutrients!$DZ$9)*AU$7)+(((IF($A$8=Nutrients!$B$79,Nutrients!$DZ$79,(IF($A$8=Nutrients!$B$77,Nutrients!$DZ$77,Nutrients!$DZ$78)))))*AU$8))/2000/2.2046","v":885.19542912537258},{"$f":"(SUMPRODUCT(AV$9:AV$229,Nutrients!$DZ$8:$DZ$228)+(IF($A$7=Nutrients!$B$8,Nutrients!$DZ$8,Nutrients!$DZ$9)*AV$7)+(((IF($A$8=Nutrients!$B$79,Nutrients!$DZ$79,(IF($A$8=Nutrients!$B$77,Nutrients!$DZ$77,Nutrients!$DZ$78)))))*AV$8))/2000/2.2046","v":894.42538107379312},{"$f":"(SUMPRODUCT(AW$9:AW$229,Nutrients!$DZ$8:$DZ$228)+(IF($A$7=Nutrients!$B$8,Nutrients!$DZ$8,Nutrients!$DZ$9)*AW$7)+(((IF($A$8=Nutrients!$B$79,Nutrients!$DZ$79,(IF($A$8=Nutrients!$B$77,Nutrients!$DZ$77,Nutrients!$DZ$78)))))*AW$8))/2000/2.2046","v":1184.8954698199086}]
["DE NRC, kcal/lb",{"$f":"(SUMPRODUCT(B$9:B$229,Nutrients!$D$8:$D$228)+(IF($A$7=Nutrients!$B$8,Nutrients!$D$8,Nutrients!$D$9)*B$7)+(((IF($A$8=Nutrients!$B$79,Nutrients!$D$79,(IF($A$8=Nutrients!$B$77,Nutrients!$D$77,Nutrients!$D$78)))))*B$8))/2000/2.2046","v":1555.1808706013358},{"$f":"(SUMPRODUCT(C$9:C$229,Nutrients!$D$8:$D$228)+(IF($A$7=Nutrients!$B$8,Nutrients!$D$8,Nutrients!$D$9)*C$7)+(((IF($A$8=Nutrients!$B$79,Nutrients!$D$79,(IF($A$8=Nutrients!$B$77,Nutrients!$D$77,Nutrients!$D$78)))))*C$8))/2000/2.2046","v":1553.9515936192374},{"$f":"(SUMPRODUCT(D$9:D$229,Nutrients!$D$8:$D$228)+(IF($A$7=Nutrients!$B$8,Nutrients!$D$8,Nutrients!$D$9)*D$7)+(((IF($A$8=Nutrients!$B$79,Nutrients!$D$79,(IF($A$8=Nutrients!$B$77,Nutrients!$D$77,Nutrients!$D$78)))))*D$8))/2000/2.2046","v":1553.0837722463236},{"$f":"(SUMPRODUCT(E$9:E$229,Nutrients!$D$8:$D$228)+(IF($A$7=Nutrients!$B$8,Nutrients!$D$8,Nutrients!$D$9)*E$7)+(((IF($A$8=Nutrients!$B$79,Nutrients!$D$79,(IF($A$8=Nutrients!$B$77,Nutrients!$D$77,Nutrients!$D$78)))))*E$8))/2000/2.2046","v":1552.6251876342408},{"$f":"(SUMPRODUCT(F$9:F$229,Nutrients!$D$8:$D$228)+(IF($A$7=Nutrients!$B$8,Nutrients!$D$8,Nutrients!$D$9)*F$7)+(((IF($A$8=Nutrients!$B$79,Nutrients!$D$79,(IF($A$8=Nutrients!$B$77,Nutrients!$D$77,Nutrients!$D$78)))))*F$8))/2000/2.2046","v":1552.7788119489294},{"$f":"(SUMPRODUCT(G$9:G$229,Nutrients!$D$8:$D$228)+(IF($A$7=Nutrients!$B$8,Nutrients!$D$8,Nutrients!$D$9)*G$7)+(((IF($A$8=Nutrients!$B$79,Nutrients!$D$79,(IF($A$8=Nutrients!$B$77,Nutrients!$D$77,Nutrients!$D$78)))))*G$8))/2000/2.2046","v":1552.432918309064},null,{"$f":"(SUMPRODUCT(I$9:I$229,Nutrients!$D$8:$D$228)+(IF($A$7=Nutrients!$B$8,Nutrients!$D$8,Nutrients!$D$9)*I$7)+(((IF($A$8=Nutrients!$B$79,Nutrients!$D$79,(IF($A$8=Nutrients!$B$77,Nutrients!$D$77,Nutrients!$D$78)))))*I$8))/2000/2.2046","v":1571.9826958957058},{"$f":"(SUMPRODUCT(J$9:J$229,Nutrients!$D$8:$D$228)+(IF($A$7=Nutrients!$B$8,Nutrients!$D$8,Nutrients!$D$9)*J$7)+(((IF($A$8=Nutrients!$B$79,Nutrients!$D$79,(IF($A$8=Nutrients!$B$77,Nutrients!$D$77,Nutrients!$D$78)))))*J$8))/2000/2.2046","v":1570.8284111716903},{"$f":"(SUMPRODUCT(K$9:K$229,Nutrients!$D$8:$D$228)+(IF($A$7=Nutrients!$B$8,Nutrients!$D$8,Nutrients!$D$9)*K$7)+(((IF($A$8=Nutrients!$B$79,Nutrients!$D$79,(IF($A$8=Nutrients!$B$77,Nutrients!$D$77,Nutrients!$D$78)))))*K$8))/2000/2.2046","v":1570.2687972059139},{"$f":"(SUMPRODUCT(L$9:L$229,Nutrients!$D$8:$D$228)+(IF($A$7=Nutrients!$B$8,Nutrients!$D$8,Nutrients!$D$9)*L$7)+(((IF($A$8=Nutrients!$B$79,Nutrients!$D$79,(IF($A$8=Nutrients!$B$77,Nutrients!$D$77,Nutrients!$D$78)))))*L$8))/2000/2.2046","v":1569.6810361860703},{"$f":"(SUMPRODUCT(M$9:M$229,Nutrients!$D$8:$D$228)+(IF($A$7=Nutrients!$B$8,Nutrients!$D$8,Nutrients!$D$9)*M$7)+(((IF($A$8=Nutrients!$B$79,Nutrients!$D$79,(IF($A$8=Nutrients!$B$77,Nutrients!$D$77,Nutrients!$D$78)))))*M$8))/2000/2.2046","v":1569.7840891897256},{"$f":"(SUMPRODUCT(N$9:N$229,Nutrients!$D$8:$D$228)+(IF($A$7=Nutrients!$B$8,Nutrients!$D$8,Nutrients!$D$9)*N$7)+(((IF($A$8=Nutrients!$B$79,Nutrients!$D$79,(IF($A$8=Nutrients!$B$77,Nutrients!$D$77,Nutrients!$D$78)))))*N$8))/2000/2.2046","v":1552.432918309064},null,{"$f":"(SUMPRODUCT(P$9:P$229,Nutrients!$D$8:$D$228)+(IF($A$7=Nutrients!$B$8,Nutrients!$D$8,Nutrients!$D$9)*P$7)+(((IF($A$8=Nutrients!$B$79,Nutrients!$D$79,(IF($A$8=Nutrients!$B$77,Nutrients!$D$77,Nutrients!$D$78)))))*P$8))/2000/2.2046","v":1588.9966750937635},{"$f":"(SUMPRODUCT(Q$9:Q$229,Nutrients!$D$8:$D$228)+(IF($A$7=Nutrients!$B$8,Nutrients!$D$8,Nutrients!$D$9)*Q$7)+(((IF($A$8=Nutrients!$B$79,Nutrients!$D$79,(IF($A$8=Nutrients!$B$77,Nutrients!$D$77,Nutrients!$D$78)))))*Q$8))/2000/2.2046","v":1587.884127208165},{"$f":"(SUMPRODUCT(R$9:R$229,Nutrients!$D$8:$D$228)+(IF($A$7=Nutrients!$B$8,Nutrients!$D$8,Nutrients!$D$9)*R$7)+(((IF($A$8=Nutrients!$B$79,Nutrients!$D$79,(IF($A$8=Nutrients!$B$77,Nutrients!$D$77,Nutrients!$D$78)))))*R$8))/2000/2.2046","v":1587.3875105991794},{"$f":"(SUMPRODUCT(S$9:S$229,Nutrients!$D$8:$D$228)+(IF($A$7=Nutrients!$B$8,Nutrients!$D$8,Nutrients!$D$9)*S$7)+(((IF($A$8=Nutrients!$B$79,Nutrients!$D$79,(IF($A$8=Nutrients!$B$77,Nutrients!$D$77,Nutrients!$D$78)))))*S$8))/2000/2.2046","v":1586.7749706789477},{"$f":"(SUMPRODUCT(T$9:T$229,Nutrients!$D$8:$D$228)+(IF($A$7=Nutrients!$B$8,Nutrients!$D$8,Nutrients!$D$9)*T$7)+(((IF($A$8=Nutrients!$B$79,Nutrients!$D$79,(IF($A$8=Nutrients!$B$77,Nutrients!$D$77,Nutrients!$D$78)))))*T$8))/2000/2.2046","v":1586.8955571741392},{"$f":"(SUMPRODUCT(U$9:U$229,Nutrients!$D$8:$D$228)+(IF($A$7=Nutrients!$B$8,Nutrients!$D$8,Nutrients!$D$9)*U$7)+(((IF($A$8=Nutrients!$B$79,Nutrients!$D$79,(IF($A$8=Nutrients!$B$77,Nutrients!$D$77,Nutrients!$D$78)))))*U$8))/2000/2.2046","v":1552.432918309064},null,{"$f":"(SUMPRODUCT(W$9:W$229,Nutrients!$D$8:$D$228)+(IF($A$7=Nutrients!$B$8,Nutrients!$D$8,Nutrients!$D$9)*W$7)+(((IF($A$8=Nutrients!$B$79,Nutrients!$D$79,(IF($A$8=Nutrients!$B$77,Nutrients!$D$77,Nutrients!$D$78)))))*W$8))/2000/2.2046","v":1606.0435830092476},{"$f":"(SUMPRODUCT(X$9:X$229,Nutrients!$D$8:$D$228)+(IF($A$7=Nutrients!$B$8,Nutrients!$D$8,Nutrients!$D$9)*X$7)+(((IF($A$8=Nutrients!$B$79,Nutrients!$D$79,(IF($A$8=Nutrients!$B$77,Nutrients!$D$77,Nutrients!$D$78)))))*X$8))/2000/2.2046","v":1604.979365400811},{"$f":"(SUMPRODUCT(Y$9:Y$229,Nutrients!$D$8:$D$228)+(IF($A$7=Nutrients!$B$8,Nutrients!$D$8,Nutrients!$D$9)*Y$7)+(((IF($A$8=Nutrients!$B$79,Nutrients!$D$79,(IF($A$8=Nutrients!$B$77,Nutrients!$D$77,Nutrients!$D$78)))))*Y$8))/2000/2.2046","v":1604.4870960900796},{"$f":"(SUMPRODUCT(Z$9:Z$229,Nutrients!$D$8:$D$228)+(IF($A$7=Nutrients!$B$8,Nutrients!$D$8,Nutrients!$D$9)*Z$7)+(((IF($A$8=Nutrients!$B$79,Nutrients!$D$79,(IF($A$8=Nutrients!$B$77,Nutrients!$D$77,Nutrients!$D$78)))))*Z$8))/2000/2.2046","v":1603.8821849729513},{"$f":"(SUMPRODUCT(AA$9:AA$229,Nutrients!$D$8:$D$228)+(IF($A$7=Nutrients!$B$8,Nutrients!$D$8,Nutrients!$D$9)*AA$7)+(((IF($A$8=Nutrients!$B$79,Nutrients!$D$79,(IF($A$8=Nutrients!$B$77,Nutrients!$D$77,Nutrients!$D$78)))))*AA$8))/2000/2.2046","v":1604.1018999949974},{"$f":"(SUMPRODUCT(AB$9:AB$229,Nutrients!$D$8:$D$228)+(IF($A$7=Nutrients!$B$8,Nutrients!$D$8,Nutrients!$D$9)*AB$7)+(((IF($A$8=Nutrients!$B$79,Nutrients!$D$79,(IF($A$8=Nutrients!$B$77,Nutrients!$D$77,Nutrients!$D$78)))))*AB$8))/2000/2.2046","v":1552.432918309064},null,{"$f":"(SUMPRODUCT(AD$9:AD$229,Nutrients!$D$8:$D$228)+(IF($A$7=Nutrients!$B$8,Nutrients!$D$8,Nutrients!$D$9)*AD$7)+(((IF($A$8=Nutrients!$B$79,Nutrients!$D$79,(IF($A$8=Nutrients!$B$77,Nutrients!$D$77,Nutrients!$D$78)))))*AD$8))/2000/2.2046","v":1623.1685087299797},{"$f":"(SUMPRODUCT(AE$9:AE$229,Nutrients!$D$8:$D$228)+(IF($A$7=Nutrients!$B$8,Nutrients!$D$8,Nutrients!$D$9)*AE$7)+(((IF($A$8=Nutrients!$B$79,Nutrients!$D$79,(IF($A$8=Nutrients!$B$77,Nutrients!$D$77,Nutrients!$D$78)))))*AE$8))/2000/2.2046","v":1622.0864761202338},{"$f":"(SUMPRODUCT(AF$9:AF$229,Nutrients!$D$8:$D$228)+(IF($A$7=Nutrients!$B$8,Nutrients!$D$8,Nutrients!$D$9)*AF$7)+(((IF($A$8=Nutrients!$B$79,Nutrients!$D$79,(IF($A$8=Nutrients!$B$77,Nutrients!$D$77,Nutrients!$D$78)))))*AF$8))/2000/2.2046","v":1621.5665678859446},{"$f":"(SUMPRODUCT(AG$9:AG$229,Nutrients!$D$8:$D$228)+(IF($A$7=Nutrients!$B$8,Nutrients!$D$8,Nutrients!$D$9)*AG$7)+(((IF($A$8=Nutrients!$B$79,Nutrients!$D$79,(IF($A$8=Nutrients!$B$77,Nutrients!$D$77,Nutrients!$D$78)))))*AG$8))/2000/2.2046","v":1621.1190111628171},{"$f":"(SUMPRODUCT(AH$9:AH$229,Nutrients!$D$8:$D$228)+(IF($A$7=Nutrients!$B$8,Nutrients!$D$8,Nutrients!$D$9)*AH$7)+(((IF($A$8=Nutrients!$B$79,Nutrients!$D$79,(IF($A$8=Nutrients!$B$77,Nutrients!$D$77,Nutrients!$D$78)))))*AH$8))/2000/2.2046","v":1620.8717647241701},{"$f":"(SUMPRODUCT(AI$9:AI$229,Nutrients!$D$8:$D$228)+(IF($A$7=Nutrients!$B$8,Nutrients!$D$8,Nutrients!$D$9)*AI$7)+(((IF($A$8=Nutrients!$B$79,Nutrients!$D$79,(IF($A$8=Nutrients!$B$77,Nutrients!$D$77,Nutrients!$D$78)))))*AI$8))/2000/2.2046","v":1552.432918309064},null,{"$f":"(SUMPRODUCT(AK$9:AK$229,Nutrients!$D$8:$D$228)+(IF($A$7=Nutrients!$B$8,Nutrients!$D$8,Nutrients!$D$9)*AK$7)+(((IF($A$8=Nutrients!$B$79,Nutrients!$D$79,(IF($A$8=Nutrients!$B$77,Nutrients!$D$77,Nutrients!$D$78)))))*AK$8))/2000/2.2046","v":1640.5957922104913},{"$f":"(SUMPRODUCT(AL$9:AL$229,Nutrients!$D$8:$D$228)+(IF($A$7=Nutrients!$B$8,Nutrients!$D$8,Nutrients!$D$9)*AL$7)+(((IF($A$8=Nutrients!$B$79,Nutrients!$D$79,(IF($A$8=Nutrients!$B$77,Nutrients!$D$77,Nutrients!$D$78)))))*AL$8))/2000/2.2046","v":1639.2082040545863},{"$f":"(SUMPRODUCT(AM$9:AM$229,Nutrients!$D$8:$D$228)+(IF($A$7=Nutrients!$B$8,Nutrients!$D$8,Nutrients!$D$9)*AM$7)+(((IF($A$8=Nutrients!$B$79,Nutrients!$D$79,(IF($A$8=Nutrients!$B$77,Nutrients!$D$77,Nutrients!$D$78)))))*AM$8))/2000/2.2046","v":1638.7488613033747},{"$f":"(SUMPRODUCT(AN$9:AN$229,Nutrients!$D$8:$D$228)+(IF($A$7=Nutrients!$B$8,Nutrients!$D$8,Nutrients!$D$9)*AN$7)+(((IF($A$8=Nutrients!$B$79,Nutrients!$D$79,(IF($A$8=Nutrients!$B$77,Nutrients!$D$77,Nutrients!$D$78)))))*AN$8))/2000/2.2046","v":1637.732864389018},{"$f":"(SUMPRODUCT(AO$9:AO$229,Nutrients!$D$8:$D$228)+(IF($A$7=Nutrients!$B$8,Nutrients!$D$8,Nutrients!$D$9)*AO$7)+(((IF($A$8=Nutrients!$B$79,Nutrients!$D$79,(IF($A$8=Nutrients!$B$77,Nutrients!$D$77,Nutrients!$D$78)))))*AO$8))/2000/2.2046","v":1637.779060233664},{"$f":"(SUMPRODUCT(AP$9:AP$229,Nutrients!$D$8:$D$228)+(IF($A$7=Nutrients!$B$8,Nutrients!$D$8,Nutrients!$D$9)*AP$7)+(((IF($A$8=Nutrients!$B$79,Nutrients!$D$79,(IF($A$8=Nutrients!$B$77,Nutrients!$D$77,Nutrients!$D$78)))))*AP$8))/2000/2.2046","v":1552.432918309064},null,{"$f":"(SUMPRODUCT(AR$9:AR$229,Nutrients!$D$8:$D$228)+(IF($A$7=Nutrients!$B$8,Nutrients!$D$8,Nutrients!$D$9)*AR$7)+(((IF($A$8=Nutrients!$B$79,Nutrients!$D$79,(IF($A$8=Nutrients!$B$77,Nutrients!$D$77,Nutrients!$D$78)))))*AR$8))/2000/2.2046","v":1657.5561653554539},{"$f":"(SUMPRODUCT(AS$9:AS$229,Nutrients!$D$8:$D$228)+(IF($A$7=Nutrients!$B$8,Nutrients!$D$8,Nutrients!$D$9)*AS$7)+(((IF($A$8=Nutrients!$B$79,Nutrients!$D$79,(IF($A$8=Nutrients!$B$77,Nutrients!$D$77,Nutrients!$D$78)))))*AS$8))/2000/2.2046","v":1656.2915297967309},{"$f":"(SUMPRODUCT(AT$9:AT$229,Nutrients!$D$8:$D$228)+(IF($A$7=Nutrients!$B$8,Nutrients!$D$8,Nutrients!$D$9)*AT$7)+(((IF($A$8=Nutrients!$B$79,Nutrients!$D$79,(IF($A$8=Nutrients!$B$77,Nutrients!$D$77,Nutrients!$D$78)))))*AT$8))/2000/2.2046","v":1655.5257427728238},{"$f":"(SUMPRODUCT(AU$9:AU$229,Nutrients!$D$8:$D$228)+(IF($A$7=Nutrients!$B$8,Nutrients!$D$8,Nutrients!$D$9)*AU$7)+(((IF($A$8=Nutrients!$B$79,Nutrients!$D$79,(IF($A$8=Nutrients!$B$77,Nutrients!$D$77,Nutrients!$D$78)))))*AU$8))/2000/2.2046","v":1654.6097471928861},{"$f":"(SUMPRODUCT(AV$9:AV$229,Nutrients!$D$8:$D$228)+(IF($A$7=Nutrients!$B$8,Nutrients!$D$8,Nutrients!$D$9)*AV$7)+(((IF($A$8=Nutrients!$B$79,Nutrients!$D$79,(IF($A$8=Nutrients!$B$77,Nutrients!$D$77,Nutrients!$D$78)))))*AV$8))/2000/2.2046","v":1654.7182945912173},{"$f":"(SUMPRODUCT(AW$9:AW$229,Nutrients!$D$8:$D$228)+(IF($A$7=Nutrients!$B$8,Nutrients!$D$8,Nutrients!$D$9)*AW$7)+(((IF($A$8=Nutrients!$B$79,Nutrients!$D$79,(IF($A$8=Nutrients!$B$77,Nutrients!$D$77,Nutrients!$D$78)))))*AW$8))/2000/2.2046","v":1552.432918309064}]
["NE NRC, kcal/lb",{"$f":"(SUMPRODUCT(B$9:B$229,Nutrients!$F$8:$F$228)+(IF($A$7=Nutrients!$B$8,Nutrients!$F$8,Nutrients!$F$9)*B$7)+(((IF($A$8=Nutrients!$B$79,Nutrients!$F$79,(IF($A$8=Nutrients!$B$77,Nutrients!$F$77,Nutrients!$F$78)))))*B$8))/2000/2.2046","v":1147.6611237487589},{"$f":"(SUMPRODUCT(C$9:C$229,Nutrients!$F$8:$F$228)+(IF($A$7=Nutrients!$B$8,Nutrients!$F$8,Nutrients!$F$9)*C$7)+(((IF($A$8=Nutrients!$B$79,Nutrients!$F$79,(IF($A$8=Nutrients!$B$77,Nutrients!$F$77,Nutrients!$F$78)))))*C$8))/2000/2.2046","v":1156.7030647238309},{"$f":"(SUMPRODUCT(D$9:D$229,Nutrients!$F$8:$F$228)+(IF($A$7=Nutrients!$B$8,Nutrients!$F$8,Nutrients!$F$9)*D$7)+(((IF($A$8=Nutrients!$B$79,Nutrients!$F$79,(IF($A$8=Nutrients!$B$77,Nutrients!$F$77,Nutrients!$F$78)))))*D$8))/2000/2.2046","v":1164.6580809828592},{"$f":"(SUMPRODUCT(E$9:E$229,Nutrients!$F$8:$F$228)+(IF($A$7=Nutrients!$B$8,Nutrients!$F$8,Nutrients!$F$9)*E$7)+(((IF($A$8=Nutrients!$B$79,Nutrients!$F$79,(IF($A$8=Nutrients!$B$77,Nutrients!$F$77,Nutrients!$F$78)))))*E$8))/2000/2.2046","v":1171.5486817586343},{"$f":"(SUMPRODUCT(F$9:F$229,Nutrients!$F$8:$F$228)+(IF($A$7=Nutrients!$B$8,Nutrients!$F$8,Nutrients!$F$9)*F$7)+(((IF($A$8=Nutrients!$B$79,Nutrients!$F$79,(IF($A$8=Nutrients!$B$77,Nutrients!$F$77,Nutrients!$F$78)))))*F$8))/2000/2.2046","v":1176.5212854349088},{"$f":"(SUMPRODUCT(G$9:G$229,Nutrients!$F$8:$F$228)+(IF($A$7=Nutrients!$B$8,Nutrients!$F$8,Nutrients!$F$9)*G$7)+(((IF($A$8=Nutrients!$B$79,Nutrients!$F$79,(IF($A$8=Nutrients!$B$77,Nutrients!$F$77,Nutrients!$F$78)))))*G$8))/2000/2.2046","v":1178.7128237398681},null,{"$f":"(SUMPRODUCT(I$9:I$229,Nutrients!$F$8:$F$228)+(IF($A$7=Nutrients!$B$8,Nutrients!$F$8,Nutrients!$F$9)*I$7)+(((IF($A$8=Nutrients!$B$79,Nutrients!$F$79,(IF($A$8=Nutrients!$B$77,Nutrients!$F$77,Nutrients!$F$78)))))*I$8))/2000/2.2046","v":1147.4028477251309},{"$f":"(SUMPRODUCT(J$9:J$229,Nutrients!$F$8:$F$228)+(IF($A$7=Nutrients!$B$8,Nutrients!$F$8,Nutrients!$F$9)*J$7)+(((IF($A$8=Nutrients!$B$79,Nutrients!$F$79,(IF($A$8=Nutrients!$B$77,Nutrients!$F$77,Nutrients!$F$78)))))*J$8))/2000/2.2046","v":1156.5177970803795},{"$f":"(SUMPRODUCT(K$9:K$229,Nutrients!$F$8:$F$228)+(IF($A$7=Nutrients!$B$8,Nutrients!$F$8,Nutrients!$F$9)*K$7)+(((IF($A$8=Nutrients!$B$79,Nutrients!$F$79,(IF($A$8=Nutrients!$B$77,Nutrients!$F$77,Nutrients!$F$78)))))*K$8))/2000/2.2046","v":1164.7237840188366},{"$f":"(SUMPRODUCT(L$9:L$229,Nutrients!$F$8:$F$228)+(IF($A$7=Nutrients!$B$8,Nutrients!$F$8,Nutrients!$F$9)*L$7)+(((IF($A$8=Nutrients!$B$79,Nutrients!$F$79,(IF($A$8=Nutrients!$B$77,Nutrients!$F$77,Nutrients!$F$78)))))*L$8))/2000/2.2046","v":1171.4812215287386},{"$f":"(SUMPRODUCT(M$9:M$229,Nutrients!$F$8:$F$228)+(IF($A$7=Nutrients!$B$8,Nutrients!$F$8,Nutrients!$F$9)*M$7)+(((IF($A$8=Nutrients!$B$79,Nutrients!$F$79,(IF($A$8=Nutrients!$B$77,Nutrients!$F$77,Nutrients!$F$78)))))*M$8))/2000/2.2046","v":1176.4259789598518},{"$f":"(SUMPRODUCT(N$9:N$229,Nutrients!$F$8:$F$228)+(IF($A$7=Nutrients!$B$8,Nutrients!$F$8,Nutrients!$F$9)*N$7)+(((IF($A$8=Nutrients!$B$79,Nutrients!$F$79,(IF($A$8=Nutrients!$B$77,Nutrients!$F$77,Nutrients!$F$78)))))*N$8))/2000/2.2046","v":1178.7128237398681},null,{"$f":"(SUMPRODUCT(P$9:P$229,Nutrients!$F$8:$F$228)+(IF($A$7=Nutrients!$B$8,Nutrients!$F$8,Nutrients!$F$9)*P$7)+(((IF($A$8=Nutrients!$B$79,Nutrients!$F$79,(IF($A$8=Nutrients!$B$77,Nutrients!$F$77,Nutrients!$F$78)))))*P$8))/2000/2.2046","v":1147.327436307171},{"$f":"(SUMPRODUCT(Q$9:Q$229,Nutrients!$F$8:$F$228)+(IF($A$7=Nutrients!$B$8,Nutrients!$F$8,Nutrients!$F$9)*Q$7)+(((IF($A$8=Nutrients!$B$79,Nutrients!$F$79,(IF($A$8=Nutrients!$B$77,Nutrients!$F$77,Nutrients!$F$78)))))*Q$8))/2000/2.2046","v":1156.4807256157981},{"$f":"(SUMPRODUCT(R$9:R$229,Nutrients!$F$8:$F$228)+(IF($A$7=Nutrients!$B$8,Nutrients!$F$8,Nutrients!$F$9)*R$7)+(((IF($A$8=Nutrients!$B$79,Nutrients!$F$79,(IF($A$8=Nutrients!$B$77,Nutrients!$F$77,Nutrients!$F$78)))))*R$8))/2000/2.2046","v":1164.7445826712537},{"$f":"(SUMPRODUCT(S$9:S$229,Nutrients!$F$8:$F$228)+(IF($A$7=Nutrients!$B$8,Nutrients!$F$8,Nutrients!$F$9)*S$7)+(((IF($A$8=Nutrients!$B$79,Nutrients!$F$79,(IF($A$8=Nutrients!$B$77,Nutrients!$F$77,Nutrients!$F$78)))))*S$8))/2000/2.2046","v":1171.4792579902066},{"$f":"(SUMPRODUCT(T$9:T$229,Nutrients!$F$8:$F$228)+(IF($A$7=Nutrients!$B$8,Nutrients!$F$8,Nutrients!$F$9)*T$7)+(((IF($A$8=Nutrients!$B$79,Nutrients!$F$79,(IF($A$8=Nutrients!$B$77,Nutrients!$F$77,Nutrients!$F$78)))))*T$8))/2000/2.2046","v":1176.4304228050798},{"$f":"(SUMPRODUCT(U$9:U$229,Nutrients!$F$8:$F$228)+(IF($A$7=Nutrients!$B$8,Nutrients!$F$8,Nutrients!$F$9)*U$7)+(((IF($A$8=Nutrients!$B$79,Nutrients!$F$79,(IF($A$8=Nutrients!$B$77,Nutrients!$F$77,Nutrients!$F$78)))))*U$8))/2000/2.2046","v":1178.7128237398681},null,{"$f":"(SUMPRODUCT(W$9:W$229,Nutrients!$F$8:$F$228)+(IF($A$7=Nutrients!$B$8,Nutrients!$F$8,Nutrients!$F$9)*W$7)+(((IF($A$8=Nutrients!$B$79,Nutrients!$F$79,(IF($A$8=Nutrients!$B$77,Nutrients!$F$77,Nutrients!$F$78)))))*W$8))/2000/2.2046","v":1147.2822735984762},{"$f":"(SUMPRODUCT(X$9:X$229,Nutrients!$F$8:$F$228)+(IF($A$7=Nutrients!$B$8,Nutrients!$F$8,Nutrients!$F$9)*X$7)+(((IF($A$8=Nutrients!$B$79,Nutrients!$F$79,(IF($A$8=Nutrients!$B$77,Nutrients!$F$77,Nutrients!$F$78)))))*X$8))/2000/2.2046","v":1156.4799596712921},{"$f":"(SUMPRODUCT(Y$9:Y$229,Nutrients!$F$8:$F$228)+(IF($A$7=Nutrients!$B$8,Nutrients!$F$8,Nutrients!$F$9)*Y$7)+(((IF($A$8=Nutrients!$B$79,Nutrients!$F$79,(IF($A$8=Nutrients!$B$77,Nutrients!$F$77,Nutrients!$F$78)))))*Y$8))/2000/2.2046","v":1164.7435800326707},{"$f":"(SUMPRODUCT(Z$9:Z$229,Nutrients!$F$8:$F$228)+(IF($A$7=Nutrients!$B$8,Nutrients!$F$8,Nutrients!$F$9)*Z$7)+(((IF($A$8=Nutrients!$B$79,Nutrients!$F$79,(IF($A$8=Nutrients!$B$77,Nutrients!$F$77,Nutrients!$F$78)))))*Z$8))/2000/2.2046","v":1171.4970149610115},{"$f":"(SUMPRODUCT(AA$9:AA$229,Nutrients!$F$8:$F$228)+(IF($A$7=Nutrients!$B$8,Nutrients!$F$8,Nutrients!$F$9)*AA$7)+(((IF($A$8=Nutrients!$B$79,Nutrients!$F$79,(IF($A$8=Nutrients!$B$77,Nutrients!$F$77,Nutrients!$F$78)))))*AA$8))/2000/2.2046","v":1176.5051033508475},{"$f":"(SUMPRODUCT(AB$9:AB$229,Nutrients!$F$8:$F$228)+(IF($A$7=Nutrients!$B$8,Nutrients!$F$8,Nutrients!$F$9)*AB$7)+(((IF($A$8=Nutrients!$B$79,Nutrients!$F$79,(IF($A$8=Nutrients!$B$77,Nutrients!$F$77,Nutrients!$F$78)))))*AB$8))/2000/2.2046","v":1178.7128237398681},null,{"$f":"(SUMPRODUCT(AD$9:AD$229,Nutrients!$F$8:$F$228)+(IF($A$7=Nutrients!$B$8,Nutrients!$F$8,Nutrients!$F$9)*AD$7)+(((IF($A$8=Nutrients!$B$79,Nutrients!$F$79,(IF($A$8=Nutrients!$B$77,Nutrients!$F$77,Nutrients!$F$78)))))*AD$8))/2000/2.2046","v":1147.3066638815424},{"$f":"(SUMPRODUCT(AE$9:AE$229,Nutrients!$F$8:$F$228)+(IF($A$7=Nutrients!$B$8,Nutrients!$F$8,Nutrients!$F$9)*AE$7)+(((IF($A$8=Nutrients!$B$79,Nutrients!$F$79,(IF($A$8=Nutrients!$B$77,Nutrients!$F$77,Nutrients!$F$78)))))*AE$8))/2000/2.2046","v":1156.4879848834626},{"$f":"(SUMPRODUCT(AF$9:AF$229,Nutrients!$F$8:$F$228)+(IF($A$7=Nutrients!$B$8,Nutrients!$F$8,Nutrients!$F$9)*AF$7)+(((IF($A$8=Nutrients!$B$79,Nutrients!$F$79,(IF($A$8=Nutrients!$B$77,Nutrients!$F$77,Nutrients!$F$78)))))*AF$8))/2000/2.2046","v":1164.7537975281266},{"$f":"(SUMPRODUCT(AG$9:AG$229,Nutrients!$F$8:$F$228)+(IF($A$7=Nutrients!$B$8,Nutrients!$F$8,Nutrients!$F$9)*AG$7)+(((IF($A$8=Nutrients!$B$79,Nutrients!$F$79,(IF($A$8=Nutrients!$B$77,Nutrients!$F$77,Nutrients!$F$78)))))*AG$8))/2000/2.2046","v":1171.6018129769009},{"$f":"(SUMPRODUCT(AH$9:AH$229,Nutrients!$F$8:$F$228)+(IF($A$7=Nutrients!$B$8,Nutrients!$F$8,Nutrients!$F$9)*AH$7)+(((IF($A$8=Nutrients!$B$79,Nutrients!$F$79,(IF($A$8=Nutrients!$B$77,Nutrients!$F$77,Nutrients!$F$78)))))*AH$8))/2000/2.2046","v":1176.3490294542294},{"$f":"(SUMPRODUCT(AI$9:AI$229,Nutrients!$F$8:$F$228)+(IF($A$7=Nutrients!$B$8,Nutrients!$F$8,Nutrients!$F$9)*AI$7)+(((IF($A$8=Nutrients!$B$79,Nutrients!$F$79,(IF($A$8=Nutrients!$B$77,Nutrients!$F$77,Nutrients!$F$78)))))*AI$8))/2000/2.2046","v":1178.7128237398681},null,{"$f":"(SUMPRODUCT(AK$9:AK$229,Nutrients!$F$8:$F$228)+(IF($A$7=Nutrients!$B$8,Nutrients!$F$8,Nutrients!$F$9)*AK$7)+(((IF($A$8=Nutrients!$B$79,Nutrients!$F$79,(IF($A$8=Nutrients!$B$77,Nutrients!$F$77,Nutrients!$F$78)))))*AK$8))/2000/2.2046","v":1147.6077460352183},{"$f":"(SUMPRODUCT(AL$9:AL$229,Nutrients!$F$8:$F$228)+(IF($A$7=Nutrients!$B$8,Nutrients!$F$8,Nutrients!$F$9)*AL$7)+(((IF($A$8=Nutrients!$B$79,Nutrients!$F$79,(IF($A$8=Nutrients!$B$77,Nutrients!$F$77,Nutrients!$F$78)))))*AL$8))/2000/2.2046","v":1156.5083800987243},{"$f":"(SUMPRODUCT(AM$9:AM$229,Nutrients!$F$8:$F$228)+(IF($A$7=Nutrients!$B$8,Nutrients!$F$8,Nutrients!$F$9)*AM$7)+(((IF($A$8=Nutrients!$B$79,Nutrients!$F$79,(IF($A$8=Nutrients!$B$77,Nutrients!$F$77,Nutrients!$F$78)))))*AM$8))/2000/2.2046","v":1164.807443550897},{"$f":"(SUMPRODUCT(AN$9:AN$229,Nutrients!$F$8:$F$228)+(IF($A$7=Nutrients!$B$8,Nutrients!$F$8,Nutrients!$F$9)*AN$7)+(((IF($A$8=Nutrients!$B$79,Nutrients!$F$79,(IF($A$8=Nutrients!$B$77,Nutrients!$F$77,Nutrients!$F$78)))))*AN$8))/2000/2.2046","v":1171.2955643572575},{"$f":"(SUMPRODUCT(AO$9:AO$229,Nutrients!$F$8:$F$228)+(IF($A$7=Nutrients!$B$8,Nutrients!$F$8,Nutrients!$F$9)*AO$7)+(((IF($A$8=Nutrients!$B$79,Nutrients!$F$79,(IF($A$8=Nutrients!$B$77,Nutrients!$F$77,Nutrients!$F$78)))))*AO$8))/2000/2.2046","v":1176.3507876024273},{"$f":"(SUMPRODUCT(AP$9:AP$229,Nutrients!$F$8:$F$228)+(IF($A$7=Nutrients!$B$8,Nutrients!$F$8,Nutrients!$F$9)*AP$7)+(((IF($A$8=Nutrients!$B$79,Nutrients!$F$79,(IF($A$8=Nutrients!$B$77,Nutrients!$F$77,Nutrients!$F$78)))))*AP$8))/2000/2.2046","v":1178.7128237398681},null,{"$f":"(SUMPRODUCT(AR$9:AR$229,Nutrients!$F$8:$F$228)+(IF($A$7=Nutrients!$B$8,Nutrients!$F$8,Nutrients!$F$9)*AR$7)+(((IF($A$8=Nutrients!$B$79,Nutrients!$F$79,(IF($A$8=Nutrients!$B$77,Nutrients!$F$77,Nutrients!$F$78)))))*AR$8))/2000/2.2046","v":1147.4903298511717},{"$f":"(SUMPRODUCT(AS$9:AS$229,Nutrients!$F$8:$F$228)+(IF($A$7=Nutrients!$B$8,Nutrients!$F$8,Nutrients!$F$9)*AS$7)+(((IF($A$8=Nutrients!$B$79,Nutrients!$F$79,(IF($A$8=Nutrients!$B$77,Nutrients!$F$77,Nutrients!$F$78)))))*AS$8))/2000/2.2046","v":1156.5039093607475},{"$f":"(SUMPRODUCT(AT$9:AT$229,Nutrients!$F$8:$F$228)+(IF($A$7=Nutrients!$B$8,Nutrients!$F$8,Nutrients!$F$9)*AT$7)+(((IF($A$8=Nutrients!$B$79,Nutrients!$F$79,(IF($A$8=Nutrients!$B$77,Nutrients!$F$77,Nutrients!$F$78)))))*AT$8))/2000/2.2046","v":1164.5508028381646},{"$f":"(SUMPRODUCT(AU$9:AU$229,Nutrients!$F$8:$F$228)+(IF($A$7=Nutrients!$B$8,Nutrients!$F$8,Nutrients!$F$9)*AU$7)+(((IF($A$8=Nutrients!$B$79,Nutrients!$F$79,(IF($A$8=Nutrients!$B$77,Nutrients!$F$77,Nutrients!$F$78)))))*AU$8))/2000/2.2046","v":1171.2716425598915},{"$f":"(SUMPRODUCT(AV$9:AV$229,Nutrients!$F$8:$F$228)+(IF($A$7=Nutrients!$B$8,Nutrients!$F$8,Nutrients!$F$9)*AV$7)+(((IF($A$8=Nutrients!$B$79,Nutrients!$F$79,(IF($A$8=Nutrients!$B$77,Nutrients!$F$77,Nutrients!$F$78)))))*AV$8))/2000/2.2046","v":1176.3750591962928},{"$f":"(SUMPRODUCT(AW$9:AW$229,Nutrients!$F$8:$F$228)+(IF($A$7=Nutrients!$B$8,Nutrients!$F$8,Nutrients!$F$9)*AW$7)+(((IF($A$8=Nutrients!$B$79,Nutrients!$F$79,(IF($A$8=Nutrients!$B$77,Nutrients!$F$77,Nutrients!$F$78)))))*AW$8))/2000/2.2046","v":1178.7128237398681}]
["NE NRC, kcal/kg",{"$f":"B250*2.20462","v":2530.1566666389886},2550.090710551452,2567.6284984964309,2582.8196547787202,2593.7823562955086,2598.6138654733877,null,{"$f":"I250*2.20462","v":2529.5872661517778},2549.6822657993462,2567.7733487236073,2582.6709306066873,2593.5722417344682,2598.6138654733877,null,{"$f":"P250*2.20462","v":2529.4210126315152},2549.6005373071007,2567.8192018486993,2582.666601750369,2593.5820387245349,2598.6138654733877,null,{"$f":"W250*2.20462","v":2529.3214460206723},2549.5988486905239,2567.8169914116261,2582.705749123345,2593.7466809493453,2598.6138654733877,null,{"$f":"AD250*2.20462","v":2529.3752173265257},2549.6165412337791,2567.8395171064581,2582.9367889251348,2593.402597315383,2598.6138654733877,null,{"$f":"AK250*2.20462","v":2530.0389890641627},2549.6615049332495,2567.9577862011784,2582.2616270932967,2593.406473364063,2598.6138654733877,null,{"$f":"AR250*2.20462","v":2529.7801309964898},2549.6516486548908,2567.3919909530741,2582.2088886203878,2593.4599830053307,2598.6138654733877]
["SID Lys:NE, g/Mcal",{"$f":"IF(B$5=\"\",\"\",B236/(B250*2.2046)*10000)","v":4.6879417735209223},4.112530627795425,3.6100787872368278,3.198349183249853,2.9175053758993537,2.7645509469935567,null,{"$f":"IF(I$5=\"\",\"\",I236/(I250*2.2046)*10000)","v":4.6889970114111419},4.1131894320610893,3.6098751396942146,3.1985333615083036,2.9177417334418672,2.7645509469935567,null,{"$f":"IF(P$5=\"\",\"\",P236/(P250*2.2046)*10000)","v":4.6893052093172063},4.1133212820374618,3.6098106787476545,3.1985387226305413,2.9177307119718114,2.7645509469935567,null,{"$f":"IF(W$5=\"\",\"\",W236/(W250*2.2046)*10000)","v":4.6894898035796846},4.113324006317991,3.609813786157325,3.1984902407667466,2.9175455043417271,2.7645509469935567,null,{"$f":"IF(AD$5=\"\",\"\",AD236/(AD250*2.2046)*10000)","v":4.6893901109801854},4.1132954627461533,3.6097821200180644,3.1982041406366841,2.9179325941288754,2.7645509469935567,null,{"$f":"IF(AK$5=\"\",\"\",AK236/(AK250*2.2046)*10000)","v":4.6881598198123902},4.1132229241049796,3.6096158689738429,3.1990403476822946,2.9179282330505418,2.7645509469935567,null,{"$f":"IF(AR$5=\"\",\"\",AR236/(AR250*2.2046)*10000)","v":4.6886395326447534},4.1132388247359986,3.6104113468414001,3.1991056841868102,2.9178680288083259,2.7645509469935567]
["CP, %",{"$f":"(SUMPRODUCT(B$9:B$229,Nutrients!$I$8:$I$228)+(IF($A$7=Nutrients!$B$8,Nutrients!$I$8,Nutrients!$I$9)*B$7)+(((IF($A$8=Nutrients!$B$79,Nutrients!$I$79,(IF($A$8=Nutrients!$B$77,Nutrients!$I$77,Nutrients!$I$78)))))*B$8))/2000","v":20.659564989031431},{"$f":"(SUMPRODUCT(C$9:C$229,Nutrients!$I$8:$I$228)+(IF($A$7=Nutrients!$B$8,Nutrients!$I$8,Nutrients!$I$9)*C$7)+(((IF($A$8=Nutrients!$B$79,Nutrients!$I$79,(IF($A$8=Nutrients!$B$77,Nutrients!$I$77,Nutrients!$I$78)))))*C$8))/2000","v":18.474711094282195},{"$f":"(SUMPRODUCT(D$9:D$229,Nutrients!$I$8:$I$228)+(IF($A$7=Nutrients!$B$8,Nutrients!$I$8,Nutrients!$I$9)*D$7)+(((IF($A$8=Nutrients!$B$79,Nutrients!$I$79,(IF($A$8=Nutrients!$B$77,Nutrients!$I$77,Nutrients!$I$78)))))*D$8))/2000","v":16.586100942528425},{"$f":"(SUMPRODUCT(E$9:E$229,Nutrients!$I$8:$I$228)+(IF($A$7=Nutrients!$B$8,Nutrients!$I$8,Nutrients!$I$9)*E$7)+(((IF($A$8=Nutrients!$B$79,Nutrients!$I$79,(IF($A$8=Nutrients!$B$77,Nutrients!$I$77,Nutrients!$I$78)))))*E$8))/2000","v":15.008183180211585},{"$f":"(SUMPRODUCT(F$9:F$229,Nutrients!$I$8:$I$228)+(IF($A$7=Nutrients!$B$8,Nutrients!$I$8,Nutrients!$I$9)*F$7)+(((IF($A$8=Nutrients!$B$79,Nutrients!$I$79,(IF($A$8=Nutrients!$B$77,Nutrients!$I$77,Nutrients!$I$78)))))*F$8))/2000","v":13.947394938936968},{"$f":"(SUMPRODUCT(G$9:G$229,Nutrients!$I$8:$I$228)+(IF($A$7=Nutrients!$B$8,Nutrients!$I$8,Nutrients!$I$9)*G$7)+(((IF($A$8=Nutrients!$B$79,Nutrients!$I$79,(IF($A$8=Nutrients!$B$77,Nutrients!$I$77,Nutrients!$I$78)))))*G$8))/2000","v":13.408858132850794},null,{"$f":"(SUMPRODUCT(I$9:I$229,Nutrients!$I$8:$I$228)+(IF($A$7=Nutrients!$B$8,Nutrients!$I$8,Nutrients!$I$9)*I$7)+(((IF($A$8=Nutrients!$B$79,Nutrients!$I$79,(IF($A$8=Nutrients!$B$77,Nutrients!$I$77,Nutrients!$I$78)))))*I$8))/2000","v":21.003742377828754},{"$f":"(SUMPRODUCT(J$9:J$229,Nutrients!$I$8:$I$228)+(IF($A$7=Nutrients!$B$8,Nutrients!$I$8,Nutrients!$I$9)*J$7)+(((IF($A$8=Nutrients!$B$79,Nutrients!$I$79,(IF($A$8=Nutrients!$B$77,Nutrients!$I$77,Nutrients!$I$78)))))*J$8))/2000","v":18.818519491121346},{"$f":"(SUMPRODUCT(K$9:K$229,Nutrients!$I$8:$I$228)+(IF($A$7=Nutrients!$B$8,Nutrients!$I$8,Nutrients!$I$9)*K$7)+(((IF($A$8=Nutrients!$B$79,Nutrients!$I$79,(IF($A$8=Nutrients!$B$77,Nutrients!$I$77,Nutrients!$I$78)))))*K$8))/2000","v":16.930534068935788},{"$f":"(SUMPRODUCT(L$9:L$229,Nutrients!$I$8:$I$228)+(IF($A$7=Nutrients!$B$8,Nutrients!$I$8,Nutrients!$I$9)*L$7)+(((IF($A$8=Nutrients!$B$79,Nutrients!$I$79,(IF($A$8=Nutrients!$B$77,Nutrients!$I$77,Nutrients!$I$78)))))*L$8))/2000","v":15.353511313488179},{"$f":"(SUMPRODUCT(M$9:M$229,Nutrients!$I$8:$I$228)+(IF($A$7=Nutrients!$B$8,Nutrients!$I$8,Nutrients!$I$9)*M$7)+(((IF($A$8=Nutrients!$B$79,Nutrients!$I$79,(IF($A$8=Nutrients!$B$77,Nutrients!$I$77,Nutrients!$I$78)))))*M$8))/2000","v":14.292057789687002},{"$f":"(SUMPRODUCT(N$9:N$229,Nutrients!$I$8:$I$228)+(IF($A$7=Nutrients!$B$8,Nutrients!$I$8,Nutrients!$I$9)*N$7)+(((IF($A$8=Nutrients!$B$79,Nutrients!$I$79,(IF($A$8=Nutrients!$B$77,Nutrients!$I$77,Nutrients!$I$78)))))*N$8))/2000","v":13.408858132850794},null,{"$f":"(SUMPRODUCT(P$9:P$229,Nutrients!$I$8:$I$228)+(IF($A$7=Nutrients!$B$8,Nutrients!$I$8,Nutrients!$I$9)*P$7)+(((IF($A$8=Nutrients!$B$79,Nutrients!$I$79,(IF($A$8=Nutrients!$B$77,Nutrients!$I$77,Nutrients!$I$78)))))*P$8))/2000","v":21.348174047382926},{"$f":"(SUMPRODUCT(Q$9:Q$229,Nutrients!$I$8:$I$228)+(IF($A$7=Nutrients!$B$8,Nutrients!$I$8,Nutrients!$I$9)*Q$7)+(((IF($A$8=Nutrients!$B$79,Nutrients!$I$79,(IF($A$8=Nutrients!$B$77,Nutrients!$I$77,Nutrients!$I$78)))))*Q$8))/2000","v":19.162851453804464},{"$f":"(SUMPRODUCT(R$9:R$229,Nutrients!$I$8:$I$228)+(IF($A$7=Nutrients!$B$8,Nutrients!$I$8,Nutrients!$I$9)*R$7)+(((IF($A$8=Nutrients!$B$79,Nutrients!$I$79,(IF($A$8=Nutrients!$B$77,Nutrients!$I$77,Nutrients!$I$78)))))*R$8))/2000","v":17.274715534610298},{"$f":"(SUMPRODUCT(S$9:S$229,Nutrients!$I$8:$I$228)+(IF($A$7=Nutrients!$B$8,Nutrients!$I$8,Nutrients!$I$9)*S$7)+(((IF($A$8=Nutrients!$B$79,Nutrients!$I$79,(IF($A$8=Nutrients!$B$77,Nutrients!$I$77,Nutrients!$I$78)))))*S$8))/2000","v":15.697751974509528},{"$f":"(SUMPRODUCT(T$9:T$229,Nutrients!$I$8:$I$228)+(IF($A$7=Nutrients!$B$8,Nutrients!$I$8,Nutrients!$I$9)*T$7)+(((IF($A$8=Nutrients!$B$79,Nutrients!$I$79,(IF($A$8=Nutrients!$B$77,Nutrients!$I$77,Nutrients!$I$78)))))*T$8))/2000","v":14.638312320799214},{"$f":"(SUMPRODUCT(U$9:U$229,Nutrients!$I$8:$I$228)+(IF($A$7=Nutrients!$B$8,Nutrients!$I$8,Nutrients!$I$9)*U$7)+(((IF($A$8=Nutrients!$B$79,Nutrients!$I$79,(IF($A$8=Nutrients!$B$77,Nutrients!$I$77,Nutrients!$I$78)))))*U$8))/2000","v":13.408858132850794},null,{"$f":"(SUMPRODUCT(W$9:W$229,Nutrients!$I$8:$I$228)+(IF($A$7=Nutrients!$B$8,Nutrients!$I$8,Nutrients!$I$9)*W$7)+(((IF($A$8=Nutrients!$B$79,Nutrients!$I$79,(IF($A$8=Nutrients!$B$77,Nutrients!$I$77,Nutrients!$I$78)))))*W$8))/2000","v":21.692527052153018},{"$f":"(SUMPRODUCT(X$9:X$229,Nutrients!$I$8:$I$228)+(IF($A$7=Nutrients!$B$8,Nutrients!$I$8,Nutrients!$I$9)*X$7)+(((IF($A$8=Nutrients!$B$79,Nutrients!$I$79,(IF($A$8=Nutrients!$B$77,Nutrients!$I$77,Nutrients!$I$78)))))*X$8))/2000","v":19.507089000363152},{"$f":"(SUMPRODUCT(Y$9:Y$229,Nutrients!$I$8:$I$228)+(IF($A$7=Nutrients!$B$8,Nutrients!$I$8,Nutrients!$I$9)*Y$7)+(((IF($A$8=Nutrients!$B$79,Nutrients!$I$79,(IF($A$8=Nutrients!$B$77,Nutrients!$I$77,Nutrients!$I$78)))))*Y$8))/2000","v":17.619122359395547},{"$f":"(SUMPRODUCT(Z$9:Z$229,Nutrients!$I$8:$I$228)+(IF($A$7=Nutrients!$B$8,Nutrients!$I$8,Nutrients!$I$9)*Z$7)+(((IF($A$8=Nutrients!$B$79,Nutrients!$I$79,(IF($A$8=Nutrients!$B$77,Nutrients!$I$77,Nutrients!$I$78)))))*Z$8))/2000","v":16.039649759560476},{"$f":"(SUMPRODUCT(AA$9:AA$229,Nutrients!$I$8:$I$228)+(IF($A$7=Nutrients!$B$8,Nutrients!$I$8,Nutrients!$I$9)*AA$7)+(((IF($A$8=Nutrients!$B$79,Nutrients!$I$79,(IF($A$8=Nutrients!$B$77,Nutrients!$I$77,Nutrients!$I$78)))))*AA$8))/2000","v":14.98720876597322},{"$f":"(SUMPRODUCT(AB$9:AB$229,Nutrients!$I$8:$I$228)+(IF($A$7=Nutrients!$B$8,Nutrients!$I$8,Nutrients!$I$9)*AB$7)+(((IF($A$8=Nutrients!$B$79,Nutrients!$I$79,(IF($A$8=Nutrients!$B$77,Nutrients!$I$77,Nutrients!$I$78)))))*AB$8))/2000","v":13.408858132850794},null,{"$f":"(SUMPRODUCT(AD$9:AD$229,Nutrients!$I$8:$I$228)+(IF($A$7=Nutrients!$B$8,Nutrients!$I$8,Nutrients!$I$9)*AD$7)+(((IF($A$8=Nutrients!$B$79,Nutrients!$I$79,(IF($A$8=Nutrients!$B$77,Nutrients!$I$77,Nutrients!$I$78)))))*AD$8))/2000","v":22.036783508773972},{"$f":"(SUMPRODUCT(AE$9:AE$229,Nutrients!$I$8:$I$228)+(IF($A$7=Nutrients!$B$8,Nutrients!$I$8,Nutrients!$I$9)*AE$7)+(((IF($A$8=Nutrients!$B$79,Nutrients!$I$79,(IF($A$8=Nutrients!$B$77,Nutrients!$I$77,Nutrients!$I$78)))))*AE$8))/2000","v":19.851388015982483},{"$f":"(SUMPRODUCT(AF$9:AF$229,Nutrients!$I$8:$I$228)+(IF($A$7=Nutrients!$B$8,Nutrients!$I$8,Nutrients!$I$9)*AF$7)+(((IF($A$8=Nutrients!$B$79,Nutrients!$I$79,(IF($A$8=Nutrients!$B$77,Nutrients!$I$77,Nutrients!$I$78)))))*AF$8))/2000","v":17.957593404928456},{"$f":"(SUMPRODUCT(AG$9:AG$229,Nutrients!$I$8:$I$228)+(IF($A$7=Nutrients!$B$8,Nutrients!$I$8,Nutrients!$I$9)*AG$7)+(((IF($A$8=Nutrients!$B$79,Nutrients!$I$79,(IF($A$8=Nutrients!$B$77,Nutrients!$I$77,Nutrients!$I$78)))))*AG$8))/2000","v":16.388383549910856},{"$f":"(SUMPRODUCT(AH$9:AH$229,Nutrients!$I$8:$I$228)+(IF($A$7=Nutrients!$B$8,Nutrients!$I$8,Nutrients!$I$9)*AH$7)+(((IF($A$8=Nutrients!$B$79,Nutrients!$I$79,(IF($A$8=Nutrients!$B$77,Nutrients!$I$77,Nutrients!$I$78)))))*AH$8))/2000","v":15.32963081706551},{"$f":"(SUMPRODUCT(AI$9:AI$229,Nutrients!$I$8:$I$228)+(IF($A$7=Nutrients!$B$8,Nutrients!$I$8,Nutrients!$I$9)*AI$7)+(((IF($A$8=Nutrients!$B$79,Nutrients!$I$79,(IF($A$8=Nutrients!$B$77,Nutrients!$I$77,Nutrients!$I$78)))))*AI$8))/2000","v":13.408858132850794},null,{"$f":"(SUMPRODUCT(AK$9:AK$229,Nutrients!$I$8:$I$228)+(IF($A$7=Nutrients!$B$8,Nutrients!$I$8,Nutrients!$I$9)*AK$7)+(((IF($A$8=Nutrients!$B$79,Nutrients!$I$79,(IF($A$8=Nutrients!$B$77,Nutrients!$I$77,Nutrients!$I$78)))))*AK$8))/2000","v":22.380362566270655},{"$f":"(SUMPRODUCT(AL$9:AL$229,Nutrients!$I$8:$I$228)+(IF($A$7=Nutrients!$B$8,Nutrients!$I$8,Nutrients!$I$9)*AL$7)+(((IF($A$8=Nutrients!$B$79,Nutrients!$I$79,(IF($A$8=Nutrients!$B$77,Nutrients!$I$77,Nutrients!$I$78)))))*AL$8))/2000","v":20.195697027845554},{"$f":"(SUMPRODUCT(AM$9:AM$229,Nutrients!$I$8:$I$228)+(IF($A$7=Nutrients!$B$8,Nutrients!$I$8,Nutrients!$I$9)*AM$7)+(((IF($A$8=Nutrients!$B$79,Nutrients!$I$79,(IF($A$8=Nutrients!$B$77,Nutrients!$I$77,Nutrients!$I$78)))))*AM$8))/2000","v":18.306502386806542},{"$f":"(SUMPRODUCT(AN$9:AN$229,Nutrients!$I$8:$I$228)+(IF($A$7=Nutrients!$B$8,Nutrients!$I$8,Nutrients!$I$9)*AN$7)+(((IF($A$8=Nutrients!$B$79,Nutrients!$I$79,(IF($A$8=Nutrients!$B$77,Nutrients!$I$77,Nutrients!$I$78)))))*AN$8))/2000","v":16.731356114471531},{"$f":"(SUMPRODUCT(AO$9:AO$229,Nutrients!$I$8:$I$228)+(IF($A$7=Nutrients!$B$8,Nutrients!$I$8,Nutrients!$I$9)*AO$7)+(((IF($A$8=Nutrients!$B$79,Nutrients!$I$79,(IF($A$8=Nutrients!$B$77,Nutrients!$I$77,Nutrients!$I$78)))))*AO$8))/2000","v":15.669874990169923},{"$f":"(SUMPRODUCT(AP$9:AP$229,Nutrients!$I$8:$I$228)+(IF($A$7=Nutrients!$B$8,Nutrients!$I$8,Nutrients!$I$9)*AP$7)+(((IF($A$8=Nutrients!$B$79,Nutrients!$I$79,(IF($A$8=Nutrients!$B$77,Nutrients!$I$77,Nutrients!$I$78)))))*AP$8))/2000","v":13.408858132850794},null,{"$f":"(SUMPRODUCT(AR$9:AR$229,Nutrients!$I$8:$I$228)+(IF($A$7=Nutrients!$B$8,Nutrients!$I$8,Nutrients!$I$9)*AR$7)+(((IF($A$8=Nutrients!$B$79,Nutrients!$I$79,(IF($A$8=Nutrients!$B$77,Nutrients!$I$77,Nutrients!$I$78)))))*AR$8))/2000","v":22.723231489073456},{"$f":"(SUMPRODUCT(AS$9:AS$229,Nutrients!$I$8:$I$228)+(IF($A$7=Nutrients!$B$8,Nutrients!$I$8,Nutrients!$I$9)*AS$7)+(((IF($A$8=Nutrients!$B$79,Nutrients!$I$79,(IF($A$8=Nutrients!$B$77,Nutrients!$I$77,Nutrients!$I$78)))))*AS$8))/2000","v":20.538272285696181},{"$f":"(SUMPRODUCT(AT$9:AT$229,Nutrients!$I$8:$I$228)+(IF($A$7=Nutrients!$B$8,Nutrients!$I$8,Nutrients!$I$9)*AT$7)+(((IF($A$8=Nutrients!$B$79,Nutrients!$I$79,(IF($A$8=Nutrients!$B$77,Nutrients!$I$77,Nutrients!$I$78)))))*AT$8))/2000","v":18.65255517479471},{"$f":"(SUMPRODUCT(AU$9:AU$229,Nutrients!$I$8:$I$228)+(IF($A$7=Nutrients!$B$8,Nutrients!$I$8,Nutrients!$I$9)*AU$7)+(((IF($A$8=Nutrients!$B$79,Nutrients!$I$79,(IF($A$8=Nutrients!$B$77,Nutrients!$I$77,Nutrients!$I$78)))))*AU$8))/2000","v":17.071401278099408},{"$f":"(SUMPRODUCT(AV$9:AV$229,Nutrients!$I$8:$I$228)+(IF($A$7=Nutrients!$B$8,Nutrients!$I$8,Nutrients!$I$9)*AV$7)+(((IF($A$8=Nutrients!$B$79,Nutrients!$I$79,(IF($A$8=Nutrients!$B$77,Nutrients!$I$77,Nutrients!$I$78)))))*AV$8))/2000","v":16.011634493989035},{"$f":"(SUMPRODUCT(AW$9:AW$229,Nutrients!$I$8:$I$228)+(IF($A$7=Nutrients!$B$8,Nutrients!$I$8,Nutrients!$I$9)*AW$7)+(((IF($A$8=Nutrients!$B$79,Nutrients!$I$79,(IF($A$8=Nutrients!$B$77,Nutrients!$I$77,Nutrients!$I$78)))))*AW$8))/2000","v":13.408858132850794}]
["Ca, %",{"$f":"(SUMPRODUCT(B$9:B$229,Nutrients!$BS$8:$BS$228)+(IF($A$7=Nutrients!$B$8,Nutrients!$BS$8,Nutrients!$BS$9)*B$7)+(((IF($A$8=Nutrients!$B$79,Nutrients!$BS$79,(IF($A$8=Nutrients!$B$77,Nutrients!$BS$77,Nutrients!$BS$78)))))*B$8))/2000","v":0.6959867621315019},{"$f":"(SUMPRODUCT(C$9:C$229,Nutrients!$BS$8:$BS$228)+(IF($A$7=Nutrients!$B$8,Nutrients!$BS$8,Nutrients!$BS$9)*C$7)+(((IF($A$8=Nutrients!$B$79,Nutrients!$BS$79,(IF($A$8=Nutrients!$B$77,Nutrients!$BS$77,Nutrients!$BS$78)))))*C$8))/2000","v":0.62662783783950593},{"$f":"(SUMPRODUCT(D$9:D$229,Nutrients!$BS$8:$BS$228)+(IF($A$7=Nutrients!$B$8,Nutrients!$BS$8,Nutrients!$BS$9)*D$7)+(((IF($A$8=Nutrients!$B$79,Nutrients!$BS$79,(IF($A$8=Nutrients!$B$77,Nutrients!$BS$77,Nutrients!$BS$78)))))*D$8))/2000","v":0.57472596332038417},{"$f":"(SUMPRODUCT(E$9:E$229,Nutrients!$BS$8:$BS$228)+(IF($A$7=Nutrients!$B$8,Nutrients!$BS$8,Nutrients!$BS$9)*E$7)+(((IF($A$8=Nutrients!$B$79,Nutrients!$BS$79,(IF($A$8=Nutrients!$B$77,Nutrients!$BS$77,Nutrients!$BS$78)))))*E$8))/2000","v":0.52452097205568682},{"$f":"(SUMPRODUCT(F$9:F$229,Nutrients!$BS$8:$BS$228)+(IF($A$7=Nutrients!$B$8,Nutrients!$BS$8,Nutrients!$BS$9)*F$7)+(((IF($A$8=Nutrients!$B$79,Nutrients!$BS$79,(IF($A$8=Nutrients!$B$77,Nutrients!$BS$77,Nutrients!$BS$78)))))*F$8))/2000","v":0.48152514697950427},{"$f":"(SUMPRODUCT(G$9:G$229,Nutrients!$BS$8:$BS$228)+(IF($A$7=Nutrients!$B$8,Nutrients!$BS$8,Nutrients!$BS$9)*G$7)+(((IF($A$8=Nutrients!$B$79,Nutrients!$BS$79,(IF($A$8=Nutrients!$B$77,Nutrients!$BS$77,Nutrients!$BS$78)))))*G$8))/2000","v":0.46528542953652235},null,{"$f":"(SUMPRODUCT(I$9:I$229,Nutrients!$BS$8:$BS$228)+(IF($A$7=Nutrients!$B$8,Nutrients!$BS$8,Nutrients!$BS$9)*I$7)+(((IF($A$8=Nutrients!$B$79,Nutrients!$BS$79,(IF($A$8=Nutrients!$B$77,Nutrients!$BS$77,Nutrients!$BS$78)))))*I$8))/2000","v":0.69674290441449904},{"$f":"(SUMPRODUCT(J$9:J$229,Nutrients!$BS$8:$BS$228)+(IF($A$7=Nutrients!$B$8,Nutrients!$BS$8,Nutrients!$BS$9)*J$7)+(((IF($A$8=Nutrients!$B$79,Nutrients!$BS$79,(IF($A$8=Nutrients!$B$77,Nutrients!$BS$77,Nutrients!$BS$78)))))*J$8))/2000","v":0.62811810771969523},{"$f":"(SUMPRODUCT(K$9:K$229,Nutrients!$BS$8:$BS$228)+(IF($A$7=Nutrients!$B$8,Nutrients!$BS$8,Nutrients!$BS$9)*K$7)+(((IF($A$8=Nutrients!$B$79,Nutrients!$BS$79,(IF($A$8=Nutrients!$B$77,Nutrients!$BS$77,Nutrients!$BS$78)))))*K$8))/2000","v":0.57280634336655667},{"$f":"(SUMPRODUCT(L$9:L$229,Nutrients!$BS$8:$BS$228)+(IF($A$7=Nutrients!$B$8,Nutrients!$BS$8,Nutrients!$BS$9)*L$7)+(((IF($A$8=Nutrients!$B$79,Nutrients!$BS$79,(IF($A$8=Nutrients!$B$77,Nutrients!$BS$77,Nutrients!$BS$78)))))*L$8))/2000","v":0.52052566642903431},{"$f":"(SUMPRODUCT(M$9:M$229,Nutrients!$BS$8:$BS$228)+(IF($A$7=Nutrients!$B$8,Nutrients!$BS$8,Nutrients!$BS$9)*M$7)+(((IF($A$8=Nutrients!$B$79,Nutrients!$BS$79,(IF($A$8=Nutrients!$B$77,Nutrients!$BS$77,Nutrients!$BS$78)))))*M$8))/2000","v":0.47971582994932327},{"$f":"(SUMPRODUCT(N$9:N$229,Nutrients!$BS$8:$BS$228)+(IF($A$7=Nutrients!$B$8,Nutrients!$BS$8,Nutrients!$BS$9)*N$7)+(((IF($A$8=Nutrients!$B$79,Nutrients!$BS$79,(IF($A$8=Nutrients!$B$77,Nutrients!$BS$77,Nutrients!$BS$78)))))*N$8))/2000","v":0.46528542953652235},null,{"$f":"(SUMPRODUCT(P$9:P$229,Nutrients!$BS$8:$BS$228)+(IF($A$7=Nutrients!$B$8,Nutrients!$BS$8,Nutrients!$BS$9)*P$7)+(((IF($A$8=Nutrients!$B$79,Nutrients!$BS$79,(IF($A$8=Nutrients!$B$77,Nutrients!$BS$77,Nutrients!$BS$78)))))*P$8))/2000","v":0.69656298153138019},{"$f":"(SUMPRODUCT(Q$9:Q$229,Nutrients!$BS$8:$BS$228)+(IF($A$7=Nutrients!$B$8,Nutrients!$BS$8,Nutrients!$BS$9)*Q$7)+(((IF($A$8=Nutrients!$B$79,Nutrients!$BS$79,(IF($A$8=Nutrients!$B$77,Nutrients!$BS$77,Nutrients!$BS$78)))))*Q$8))/2000","v":0.62793824958166999},{"$f":"(SUMPRODUCT(R$9:R$229,Nutrients!$BS$8:$BS$228)+(IF($A$7=Nutrients!$B$8,Nutrients!$BS$8,Nutrients!$BS$9)*R$7)+(((IF($A$8=Nutrients!$B$79,Nutrients!$BS$79,(IF($A$8=Nutrients!$B$77,Nutrients!$BS$77,Nutrients!$BS$78)))))*R$8))/2000","v":0.57262658295442315},{"$f":"(SUMPRODUCT(S$9:S$229,Nutrients!$BS$8:$BS$228)+(IF($A$7=Nutrients!$B$8,Nutrients!$BS$8,Nutrients!$BS$9)*S$7)+(((IF($A$8=Nutrients!$B$79,Nutrients!$BS$79,(IF($A$8=Nutrients!$B$77,Nutrients!$BS$77,Nutrients!$BS$78)))))*S$8))/2000","v":0.52034586757814305},{"$f":"(SUMPRODUCT(T$9:T$229,Nutrients!$BS$8:$BS$228)+(IF($A$7=Nutrients!$B$8,Nutrients!$BS$8,Nutrients!$BS$9)*T$7)+(((IF($A$8=Nutrients!$B$79,Nutrients!$BS$79,(IF($A$8=Nutrients!$B$77,Nutrients!$BS$77,Nutrients!$BS$78)))))*T$8))/2000","v":0.47953612694518505},{"$f":"(SUMPRODUCT(U$9:U$229,Nutrients!$BS$8:$BS$228)+(IF($A$7=Nutrients!$B$8,Nutrients!$BS$8,Nutrients!$BS$9)*U$7)+(((IF($A$8=Nutrients!$B$79,Nutrients!$BS$79,(IF($A$8=Nutrients!$B$77,Nutrients!$BS$77,Nutrients!$BS$78)))))*U$8))/2000","v":0.46528542953652235},null,{"$f":"(SUMPRODUCT(W$9:W$229,Nutrients!$BS$8:$BS$228)+(IF($A$7=Nutrients!$B$8,Nutrients!$BS$8,Nutrients!$BS$9)*W$7)+(((IF($A$8=Nutrients!$B$79,Nutrients!$BS$79,(IF($A$8=Nutrients!$B$77,Nutrients!$BS$77,Nutrients!$BS$78)))))*W$8))/2000","v":0.69638310972958339},{"$f":"(SUMPRODUCT(X$9:X$229,Nutrients!$BS$8:$BS$228)+(IF($A$7=Nutrients!$B$8,Nutrients!$BS$8,Nutrients!$BS$9)*X$7)+(((IF($A$8=Nutrients!$B$79,Nutrients!$BS$79,(IF($A$8=Nutrients!$B$77,Nutrients!$BS$77,Nutrients!$BS$78)))))*X$8))/2000","v":0.62775845275316855},{"$f":"(SUMPRODUCT(Y$9:Y$229,Nutrients!$BS$8:$BS$228)+(IF($A$7=Nutrients!$B$8,Nutrients!$BS$8,Nutrients!$BS$9)*Y$7)+(((IF($A$8=Nutrients!$B$79,Nutrients!$BS$79,(IF($A$8=Nutrients!$B$77,Nutrients!$BS$77,Nutrients!$BS$78)))))*Y$8))/2000","v":0.5716766762043638},{"$f":"(SUMPRODUCT(Z$9:Z$229,Nutrients!$BS$8:$BS$228)+(IF($A$7=Nutrients!$B$8,Nutrients!$BS$8,Nutrients!$BS$9)*Z$7)+(((IF($A$8=Nutrients!$B$79,Nutrients!$BS$79,(IF($A$8=Nutrients!$B$77,Nutrients!$BS$77,Nutrients!$BS$78)))))*Z$8))/2000","v":0.51939588948699522},{"$f":"(SUMPRODUCT(AA$9:AA$229,Nutrients!$BS$8:$BS$228)+(IF($A$7=Nutrients!$B$8,Nutrients!$BS$8,Nutrients!$BS$9)*AA$7)+(((IF($A$8=Nutrients!$B$79,Nutrients!$BS$79,(IF($A$8=Nutrients!$B$77,Nutrients!$BS$77,Nutrients!$BS$78)))))*AA$8))/2000","v":0.47858654424219005},{"$f":"(SUMPRODUCT(AB$9:AB$229,Nutrients!$BS$8:$BS$228)+(IF($A$7=Nutrients!$B$8,Nutrients!$BS$8,Nutrients!$BS$9)*AB$7)+(((IF($A$8=Nutrients!$B$79,Nutrients!$BS$79,(IF($A$8=Nutrients!$B$77,Nutrients!$BS$77,Nutrients!$BS$78)))))*AB$8))/2000","v":0.46528542953652235},null,{"$f":"(SUMPRODUCT(AD$9:AD$229,Nutrients!$BS$8:$BS$228)+(IF($A$7=Nutrients!$B$8,Nutrients!$BS$8,Nutrients!$BS$9)*AD$7)+(((IF($A$8=Nutrients!$B$79,Nutrients!$BS$79,(IF($A$8=Nutrients!$B$77,Nutrients!$BS$77,Nutrients!$BS$78)))))*AD$8))/2000","v":0.69581830062175032},{"$f":"(SUMPRODUCT(AE$9:AE$229,Nutrients!$BS$8:$BS$228)+(IF($A$7=Nutrients!$B$8,Nutrients!$BS$8,Nutrients!$BS$9)*AE$7)+(((IF($A$8=Nutrients!$B$79,Nutrients!$BS$79,(IF($A$8=Nutrients!$B$77,Nutrients!$BS$77,Nutrients!$BS$78)))))*AE$8))/2000","v":0.62719361600946355},{"$f":"(SUMPRODUCT(AF$9:AF$229,Nutrients!$BS$8:$BS$228)+(IF($A$7=Nutrients!$B$8,Nutrients!$BS$8,Nutrients!$BS$9)*AF$7)+(((IF($A$8=Nutrients!$B$79,Nutrients!$BS$79,(IF($A$8=Nutrients!$B$77,Nutrients!$BS$77,Nutrients!$BS$78)))))*AF$8))/2000","v":0.57111160959985907},{"$f":"(SUMPRODUCT(AG$9:AG$229,Nutrients!$BS$8:$BS$228)+(IF($A$7=Nutrients!$B$8,Nutrients!$BS$8,Nutrients!$BS$9)*AG$7)+(((IF($A$8=Nutrients!$B$79,Nutrients!$BS$79,(IF($A$8=Nutrients!$B$77,Nutrients!$BS$77,Nutrients!$BS$78)))))*AG$8))/2000","v":0.51883141240462238},{"$f":"(SUMPRODUCT(AH$9:AH$229,Nutrients!$BS$8:$BS$228)+(IF($A$7=Nutrients!$B$8,Nutrients!$BS$8,Nutrients!$BS$9)*AH$7)+(((IF($A$8=Nutrients!$B$79,Nutrients!$BS$79,(IF($A$8=Nutrients!$B$77,Nutrients!$BS$77,Nutrients!$BS$78)))))*AH$8))/2000","v":0.49697596858666282},{"$f":"(SUMPRODUCT(AI$9:AI$229,Nutrients!$BS$8:$BS$228)+(IF($A$7=Nutrients!$B$8,Nutrients!$BS$8,Nutrients!$BS$9)*AI$7)+(((IF($A$8=Nutrients!$B$79,Nutrients!$BS$79,(IF($A$8=Nutrients!$B$77,Nutrients!$BS$77,Nutrients!$BS$78)))))*AI$8))/2000","v":0.46528542953652235},null,{"$f":"(SUMPRODUCT(AK$9:AK$229,Nutrients!$BS$8:$BS$228)+(IF($A$7=Nutrients!$B$8,Nutrients!$BS$8,Nutrients!$BS$9)*AK$7)+(((IF($A$8=Nutrients!$B$79,Nutrients!$BS$79,(IF($A$8=Nutrients!$B$77,Nutrients!$BS$77,Nutrients!$BS$78)))))*AK$8))/2000","v":0.69506143138600607},{"$f":"(SUMPRODUCT(AL$9:AL$229,Nutrients!$BS$8:$BS$228)+(IF($A$7=Nutrients!$B$8,Nutrients!$BS$8,Nutrients!$BS$9)*AL$7)+(((IF($A$8=Nutrients!$B$79,Nutrients!$BS$79,(IF($A$8=Nutrients!$B$77,Nutrients!$BS$77,Nutrients!$BS$78)))))*AL$8))/2000","v":0.62643627277465364},{"$f":"(SUMPRODUCT(AM$9:AM$229,Nutrients!$BS$8:$BS$228)+(IF($A$7=Nutrients!$B$8,Nutrients!$BS$8,Nutrients!$BS$9)*AM$7)+(((IF($A$8=Nutrients!$B$79,Nutrients!$BS$79,(IF($A$8=Nutrients!$B$77,Nutrients!$BS$77,Nutrients!$BS$78)))))*AM$8))/2000","v":0.57035451875610033},{"$f":"(SUMPRODUCT(AN$9:AN$229,Nutrients!$BS$8:$BS$228)+(IF($A$7=Nutrients!$B$8,Nutrients!$BS$8,Nutrients!$BS$9)*AN$7)+(((IF($A$8=Nutrients!$B$79,Nutrients!$BS$79,(IF($A$8=Nutrients!$B$77,Nutrients!$BS$77,Nutrients!$BS$78)))))*AN$8))/2000","v":0.53636170353388057},{"$f":"(SUMPRODUCT(AO$9:AO$229,Nutrients!$BS$8:$BS$228)+(IF($A$7=Nutrients!$B$8,Nutrients!$BS$8,Nutrients!$BS$9)*AO$7)+(((IF($A$8=Nutrients!$B$79,Nutrients!$BS$79,(IF($A$8=Nutrients!$B$77,Nutrients!$BS$77,Nutrients!$BS$78)))))*AO$8))/2000","v":0.51847303091793406},{"$f":"(SUMPRODUCT(AP$9:AP$229,Nutrients!$BS$8:$BS$228)+(IF($A$7=Nutrients!$B$8,Nutrients!$BS$8,Nutrients!$BS$9)*AP$7)+(((IF($A$8=Nutrients!$B$79,Nutrients!$BS$79,(IF($A$8=Nutrients!$B$77,Nutrients!$BS$77,Nutrients!$BS$78)))))*AP$8))/2000","v":0.46528542953652235},null,{"$f":"(SUMPRODUCT(AR$9:AR$229,Nutrients!$BS$8:$BS$228)+(IF($A$7=Nutrients!$B$8,Nutrients!$BS$8,Nutrients!$BS$9)*AR$7)+(((IF($A$8=Nutrients!$B$79,Nutrients!$BS$79,(IF($A$8=Nutrients!$B$77,Nutrients!$BS$77,Nutrients!$BS$78)))))*AR$8))/2000","v":0.69488140099454243},{"$f":"(SUMPRODUCT(AS$9:AS$229,Nutrients!$BS$8:$BS$228)+(IF($A$7=Nutrients!$B$8,Nutrients!$BS$8,Nutrients!$BS$9)*AS$7)+(((IF($A$8=Nutrients!$B$79,Nutrients!$BS$79,(IF($A$8=Nutrients!$B$77,Nutrients!$BS$77,Nutrients!$BS$78)))))*AS$8))/2000","v":0.62625643311671819},{"$f":"(SUMPRODUCT(AT$9:AT$229,Nutrients!$BS$8:$BS$228)+(IF($A$7=Nutrients!$B$8,Nutrients!$BS$8,Nutrients!$BS$9)*AT$7)+(((IF($A$8=Nutrients!$B$79,Nutrients!$BS$79,(IF($A$8=Nutrients!$B$77,Nutrients!$BS$77,Nutrients!$BS$78)))))*AT$8))/2000","v":0.57620130315289597},{"$f":"(SUMPRODUCT(AU$9:AU$229,Nutrients!$BS$8:$BS$228)+(IF($A$7=Nutrients!$B$8,Nutrients!$BS$8,Nutrients!$BS$9)*AU$7)+(((IF($A$8=Nutrients!$B$79,Nutrients!$BS$79,(IF($A$8=Nutrients!$B$77,Nutrients!$BS$77,Nutrients!$BS$78)))))*AU$8))/2000","v":0.55810225983282347},{"$f":"(SUMPRODUCT(AV$9:AV$229,Nutrients!$BS$8:$BS$228)+(IF($A$7=Nutrients!$B$8,Nutrients!$BS$8,Nutrients!$BS$9)*AV$7)+(((IF($A$8=Nutrients!$B$79,Nutrients!$BS$79,(IF($A$8=Nutrients!$B$77,Nutrients!$BS$77,Nutrients!$BS$78)))))*AV$8))/2000","v":0.53996746183626676},{"$f":"(SUMPRODUCT(AW$9:AW$229,Nutrients!$BS$8:$BS$228)+(IF($A$7=Nutrients!$B$8,Nutrients!$BS$8,Nutrients!$BS$9)*AW$7)+(((IF($A$8=Nutrients!$B$79,Nutrients!$BS$79,(IF($A$8=Nutrients!$B$77,Nutrients!$BS$77,Nutrients!$BS$78)))))*AW$8))/2000","v":0.46528542953652235}]
["P, %",{"$f":"(SUMPRODUCT(B$9:B$229,Nutrients!$BX$8:$BX$228)+(IF($A$7=Nutrients!$B$8,Nutrients!$BX$8,Nutrients!$BX$9)*B$7)+(((IF($A$8=Nutrients!$B$79,Nutrients!$BX$79,(IF($A$8=Nutrients!$B$77,Nutrients!$BX$77,Nutrients!$BX$78)))))*B$8))/2000","v":0.5346695452711987},{"$f":"(SUMPRODUCT(C$9:C$229,Nutrients!$BX$8:$BX$228)+(IF($A$7=Nutrients!$B$8,Nutrients!$BX$8,Nutrients!$BX$9)*C$7)+(((IF($A$8=Nutrients!$B$79,Nutrients!$BX$79,(IF($A$8=Nutrients!$B$77,Nutrients!$BX$77,Nutrients!$BX$78)))))*C$8))/2000","v":0.48121097221673825},{"$f":"(SUMPRODUCT(D$9:D$229,Nutrients!$BX$8:$BX$228)+(IF($A$7=Nutrients!$B$8,Nutrients!$BX$8,Nutrients!$BX$9)*D$7)+(((IF($A$8=Nutrients!$B$79,Nutrients!$BX$79,(IF($A$8=Nutrients!$B$77,Nutrients!$BX$77,Nutrients!$BX$78)))))*D$8))/2000","v":0.42976285680817727},{"$f":"(SUMPRODUCT(E$9:E$229,Nutrients!$BX$8:$BX$228)+(IF($A$7=Nutrients!$B$8,Nutrients!$BX$8,Nutrients!$BX$9)*E$7)+(((IF($A$8=Nutrients!$B$79,Nutrients!$BX$79,(IF($A$8=Nutrients!$B$77,Nutrients!$BX$77,Nutrients!$BX$78)))))*E$8))/2000","v":0.3909770634935561},{"$f":"(SUMPRODUCT(F$9:F$229,Nutrients!$BX$8:$BX$228)+(IF($A$7=Nutrients!$B$8,Nutrients!$BX$8,Nutrients!$BX$9)*F$7)+(((IF($A$8=Nutrients!$B$79,Nutrients!$BX$79,(IF($A$8=Nutrients!$B$77,Nutrients!$BX$77,Nutrients!$BX$78)))))*F$8))/2000","v":0.36342201195104268},{"$f":"(SUMPRODUCT(G$9:G$229,Nutrients!$BX$8:$BX$228)+(IF($A$7=Nutrients!$B$8,Nutrients!$BX$8,Nutrients!$BX$9)*G$7)+(((IF($A$8=Nutrients!$B$79,Nutrients!$BX$79,(IF($A$8=Nutrients!$B$77,Nutrients!$BX$77,Nutrients!$BX$78)))))*G$8))/2000","v":0.35071811324744068},null,{"$f":"(SUMPRODUCT(I$9:I$229,Nutrients!$BX$8:$BX$228)+(IF($A$7=Nutrients!$B$8,Nutrients!$BX$8,Nutrients!$BX$9)*I$7)+(((IF($A$8=Nutrients!$B$79,Nutrients!$BX$79,(IF($A$8=Nutrients!$B$77,Nutrients!$BX$77,Nutrients!$BX$78)))))*I$8))/2000","v":0.53450166864639903},{"$f":"(SUMPRODUCT(J$9:J$229,Nutrients!$BX$8:$BX$228)+(IF($A$7=Nutrients!$B$8,Nutrients!$BX$8,Nutrients!$BX$9)*J$7)+(((IF($A$8=Nutrients!$B$79,Nutrients!$BX$79,(IF($A$8=Nutrients!$B$77,Nutrients!$BX$77,Nutrients!$BX$78)))))*J$8))/2000","v":0.48102845472648448},{"$f":"(SUMPRODUCT(K$9:K$229,Nutrients!$BX$8:$BX$228)+(IF($A$7=Nutrients!$B$8,Nutrients!$BX$8,Nutrients!$BX$9)*K$7)+(((IF($A$8=Nutrients!$B$79,Nutrients!$BX$79,(IF($A$8=Nutrients!$B$77,Nutrients!$BX$77,Nutrients!$BX$78)))))*K$8))/2000","v":0.4270394386275293},{"$f":"(SUMPRODUCT(L$9:L$229,Nutrients!$BX$8:$BX$228)+(IF($A$7=Nutrients!$B$8,Nutrients!$BX$8,Nutrients!$BX$9)*L$7)+(((IF($A$8=Nutrients!$B$79,Nutrients!$BX$79,(IF($A$8=Nutrients!$B$77,Nutrients!$BX$77,Nutrients!$BX$78)))))*L$8))/2000","v":0.387667940289663},{"$f":"(SUMPRODUCT(M$9:M$229,Nutrients!$BX$8:$BX$228)+(IF($A$7=Nutrients!$B$8,Nutrients!$BX$8,Nutrients!$BX$9)*M$7)+(((IF($A$8=Nutrients!$B$79,Nutrients!$BX$79,(IF($A$8=Nutrients!$B$77,Nutrients!$BX$77,Nutrients!$BX$78)))))*M$8))/2000","v":0.36134985960540678},{"$f":"(SUMPRODUCT(N$9:N$229,Nutrients!$BX$8:$BX$228)+(IF($A$7=Nutrients!$B$8,Nutrients!$BX$8,Nutrients!$BX$9)*N$7)+(((IF($A$8=Nutrients!$B$79,Nutrients!$BX$79,(IF($A$8=Nutrients!$B$77,Nutrients!$BX$77,Nutrients!$BX$78)))))*N$8))/2000","v":0.35071811324744068},null,{"$f":"(SUMPRODUCT(P$9:P$229,Nutrients!$BX$8:$BX$228)+(IF($A$7=Nutrients!$B$8,Nutrients!$BX$8,Nutrients!$BX$9)*P$7)+(((IF($A$8=Nutrients!$B$79,Nutrients!$BX$79,(IF($A$8=Nutrients!$B$77,Nutrients!$BX$77,Nutrients!$BX$78)))))*P$8))/2000","v":0.53325651276949138},{"$f":"(SUMPRODUCT(Q$9:Q$229,Nutrients!$BX$8:$BX$228)+(IF($A$7=Nutrients!$B$8,Nutrients!$BX$8,Nutrients!$BX$9)*Q$7)+(((IF($A$8=Nutrients!$B$79,Nutrients!$BX$79,(IF($A$8=Nutrients!$B$77,Nutrients!$BX$77,Nutrients!$BX$78)))))*Q$8))/2000","v":0.47977901249519955},{"$f":"(SUMPRODUCT(R$9:R$229,Nutrients!$BX$8:$BX$228)+(IF($A$7=Nutrients!$B$8,Nutrients!$BX$8,Nutrients!$BX$9)*R$7)+(((IF($A$8=Nutrients!$B$79,Nutrients!$BX$79,(IF($A$8=Nutrients!$B$77,Nutrients!$BX$77,Nutrients!$BX$78)))))*R$8))/2000","v":0.42578352659627206},{"$f":"(SUMPRODUCT(S$9:S$229,Nutrients!$BX$8:$BX$228)+(IF($A$7=Nutrients!$B$8,Nutrients!$BX$8,Nutrients!$BX$9)*S$7)+(((IF($A$8=Nutrients!$B$79,Nutrients!$BX$79,(IF($A$8=Nutrients!$B$77,Nutrients!$BX$77,Nutrients!$BX$78)))))*S$8))/2000","v":0.38641457304023824},{"$f":"(SUMPRODUCT(T$9:T$229,Nutrients!$BX$8:$BX$228)+(IF($A$7=Nutrients!$B$8,Nutrients!$BX$8,Nutrients!$BX$9)*T$7)+(((IF($A$8=Nutrients!$B$79,Nutrients!$BX$79,(IF($A$8=Nutrients!$B$77,Nutrients!$BX$77,Nutrients!$BX$78)))))*T$8))/2000","v":0.36009014696163977},{"$f":"(SUMPRODUCT(U$9:U$229,Nutrients!$BX$8:$BX$228)+(IF($A$7=Nutrients!$B$8,Nutrients!$BX$8,Nutrients!$BX$9)*U$7)+(((IF($A$8=Nutrients!$B$79,Nutrients!$BX$79,(IF($A$8=Nutrients!$B$77,Nutrients!$BX$77,Nutrients!$BX$78)))))*U$8))/2000","v":0.35071811324744068},null,{"$f":"(SUMPRODUCT(W$9:W$229,Nutrients!$BX$8:$BX$228)+(IF($A$7=Nutrients!$B$8,Nutrients!$BX$8,Nutrients!$BX$9)*W$7)+(((IF($A$8=Nutrients!$B$79,Nutrients!$BX$79,(IF($A$8=Nutrients!$B$77,Nutrients!$BX$77,Nutrients!$BX$78)))))*W$8))/2000","v":0.53200797512823772},{"$f":"(SUMPRODUCT(X$9:X$229,Nutrients!$BX$8:$BX$228)+(IF($A$7=Nutrients!$B$8,Nutrients!$BX$8,Nutrients!$BX$9)*X$7)+(((IF($A$8=Nutrients!$B$79,Nutrients!$BX$79,(IF($A$8=Nutrients!$B$77,Nutrients!$BX$77,Nutrients!$BX$78)))))*X$8))/2000","v":0.47852551135639965},{"$f":"(SUMPRODUCT(Y$9:Y$229,Nutrients!$BX$8:$BX$228)+(IF($A$7=Nutrients!$B$8,Nutrients!$BX$8,Nutrients!$BX$9)*Y$7)+(((IF($A$8=Nutrients!$B$79,Nutrients!$BX$79,(IF($A$8=Nutrients!$B$77,Nutrients!$BX$77,Nutrients!$BX$78)))))*Y$8))/2000","v":0.42453690265371458},{"$f":"(SUMPRODUCT(Z$9:Z$229,Nutrients!$BX$8:$BX$228)+(IF($A$7=Nutrients!$B$8,Nutrients!$BX$8,Nutrients!$BX$9)*Z$7)+(((IF($A$8=Nutrients!$B$79,Nutrients!$BX$79,(IF($A$8=Nutrients!$B$77,Nutrients!$BX$77,Nutrients!$BX$78)))))*Z$8))/2000","v":0.38517267213028716},{"$f":"(SUMPRODUCT(AA$9:AA$229,Nutrients!$BX$8:$BX$228)+(IF($A$7=Nutrients!$B$8,Nutrients!$BX$8,Nutrients!$BX$9)*AA$7)+(((IF($A$8=Nutrients!$B$79,Nutrients!$BX$79,(IF($A$8=Nutrients!$B$77,Nutrients!$BX$77,Nutrients!$BX$78)))))*AA$8))/2000","v":0.35882206995636079},{"$f":"(SUMPRODUCT(AB$9:AB$229,Nutrients!$BX$8:$BX$228)+(IF($A$7=Nutrients!$B$8,Nutrients!$BX$8,Nutrients!$BX$9)*AB$7)+(((IF($A$8=Nutrients!$B$79,Nutrients!$BX$79,(IF($A$8=Nutrients!$B$77,Nutrients!$BX$77,Nutrients!$BX$78)))))*AB$8))/2000","v":0.35071811324744068},null,{"$f":"(SUMPRODUCT(AD$9:AD$229,Nutrients!$BX$8:$BX$228)+(IF($A$7=Nutrients!$B$8,Nutrients!$BX$8,Nutrients!$BX$9)*AD$7)+(((IF($A$8=Nutrients!$B$79,Nutrients!$BX$79,(IF($A$8=Nutrients!$B$77,Nutrients!$BX$77,Nutrients!$BX$78)))))*AD$8))/2000","v":0.53075508692466766},{"$f":"(SUMPRODUCT(AE$9:AE$229,Nutrients!$BX$8:$BX$228)+(IF($A$7=Nutrients!$B$8,Nutrients!$BX$8,Nutrients!$BX$9)*AE$7)+(((IF($A$8=Nutrients!$B$79,Nutrients!$BX$79,(IF($A$8=Nutrients!$B$77,Nutrients!$BX$77,Nutrients!$BX$78)))))*AE$8))/2000","v":0.47727445274538483},{"$f":"(SUMPRODUCT(AF$9:AF$229,Nutrients!$BX$8:$BX$228)+(IF($A$7=Nutrients!$B$8,Nutrients!$BX$8,Nutrients!$BX$9)*AF$7)+(((IF($A$8=Nutrients!$B$79,Nutrients!$BX$79,(IF($A$8=Nutrients!$B$77,Nutrients!$BX$77,Nutrients!$BX$78)))))*AF$8))/2000","v":0.4233010616413011},{"$f":"(SUMPRODUCT(AG$9:AG$229,Nutrients!$BX$8:$BX$228)+(IF($A$7=Nutrients!$B$8,Nutrients!$BX$8,Nutrients!$BX$9)*AG$7)+(((IF($A$8=Nutrients!$B$79,Nutrients!$BX$79,(IF($A$8=Nutrients!$B$77,Nutrients!$BX$77,Nutrients!$BX$78)))))*AG$8))/2000","v":0.38389780266593476},{"$f":"(SUMPRODUCT(AH$9:AH$229,Nutrients!$BX$8:$BX$228)+(IF($A$7=Nutrients!$B$8,Nutrients!$BX$8,Nutrients!$BX$9)*AH$7)+(((IF($A$8=Nutrients!$B$79,Nutrients!$BX$79,(IF($A$8=Nutrients!$B$77,Nutrients!$BX$77,Nutrients!$BX$78)))))*AH$8))/2000","v":0.36922162898605482},{"$f":"(SUMPRODUCT(AI$9:AI$229,Nutrients!$BX$8:$BX$228)+(IF($A$7=Nutrients!$B$8,Nutrients!$BX$8,Nutrients!$BX$9)*AI$7)+(((IF($A$8=Nutrients!$B$79,Nutrients!$BX$79,(IF($A$8=Nutrients!$B$77,Nutrients!$BX$77,Nutrients!$BX$78)))))*AI$8))/2000","v":0.35071811324744068},null,{"$f":"(SUMPRODUCT(AK$9:AK$229,Nutrients!$BX$8:$BX$228)+(IF($A$7=Nutrients!$B$8,Nutrients!$BX$8,Nutrients!$BX$9)*AK$7)+(((IF($A$8=Nutrients!$B$79,Nutrients!$BX$79,(IF($A$8=Nutrients!$B$77,Nutrients!$BX$77,Nutrients!$BX$78)))))*AK$8))/2000","v":0.52947297763174184},{"$f":"(SUMPRODUCT(AL$9:AL$229,Nutrients!$BX$8:$BX$228)+(IF($A$7=Nutrients!$B$8,Nutrients!$BX$8,Nutrients!$BX$9)*AL$7)+(((IF($A$8=Nutrients!$B$79,Nutrients!$BX$79,(IF($A$8=Nutrients!$B$77,Nutrients!$BX$77,Nutrients!$BX$78)))))*AL$8))/2000","v":0.4760237238684763},{"$f":"(SUMPRODUCT(AM$9:AM$229,Nutrients!$BX$8:$BX$228)+(IF($A$7=Nutrients!$B$8,Nutrients!$BX$8,Nutrients!$BX$9)*AM$7)+(((IF($A$8=Nutrients!$B$79,Nutrients!$BX$79,(IF($A$8=Nutrients!$B$77,Nutrients!$BX$77,Nutrients!$BX$78)))))*AM$8))/2000","v":0.42203362358339697},{"$f":"(SUMPRODUCT(AN$9:AN$229,Nutrients!$BX$8:$BX$228)+(IF($A$7=Nutrients!$B$8,Nutrients!$BX$8,Nutrients!$BX$9)*AN$7)+(((IF($A$8=Nutrients!$B$79,Nutrients!$BX$79,(IF($A$8=Nutrients!$B$77,Nutrients!$BX$77,Nutrients!$BX$78)))))*AN$8))/2000","v":0.39380428584002719},{"$f":"(SUMPRODUCT(AO$9:AO$229,Nutrients!$BX$8:$BX$228)+(IF($A$7=Nutrients!$B$8,Nutrients!$BX$8,Nutrients!$BX$9)*AO$7)+(((IF($A$8=Nutrients!$B$79,Nutrients!$BX$79,(IF($A$8=Nutrients!$B$77,Nutrients!$BX$77,Nutrients!$BX$78)))))*AO$8))/2000","v":0.3818198565876384},{"$f":"(SUMPRODUCT(AP$9:AP$229,Nutrients!$BX$8:$BX$228)+(IF($A$7=Nutrients!$B$8,Nutrients!$BX$8,Nutrients!$BX$9)*AP$7)+(((IF($A$8=Nutrients!$B$79,Nutrients!$BX$79,(IF($A$8=Nutrients!$B$77,Nutrients!$BX$77,Nutrients!$BX$78)))))*AP$8))/2000","v":0.35071811324744068},null,{"$f":"(SUMPRODUCT(AR$9:AR$229,Nutrients!$BX$8:$BX$228)+(IF($A$7=Nutrients!$B$8,Nutrients!$BX$8,Nutrients!$BX$9)*AR$7)+(((IF($A$8=Nutrients!$B$79,Nutrients!$BX$79,(IF($A$8=Nutrients!$B$77,Nutrients!$BX$77,Nutrients!$BX$78)))))*AR$8))/2000","v":0.52823493918782216},{"$f":"(SUMPRODUCT(AS$9:AS$229,Nutrients!$BX$8:$BX$228)+(IF($A$7=Nutrients!$B$8,Nutrients!$BX$8,Nutrients!$BX$9)*AS$7)+(((IF($A$8=Nutrients!$B$79,Nutrients!$BX$79,(IF($A$8=Nutrients!$B$77,Nutrients!$BX$77,Nutrients!$BX$78)))))*AS$8))/2000","v":0.47477305818982823},{"$f":"(SUMPRODUCT(AT$9:AT$229,Nutrients!$BX$8:$BX$228)+(IF($A$7=Nutrients!$B$8,Nutrients!$BX$8,Nutrients!$BX$9)*AT$7)+(((IF($A$8=Nutrients!$B$79,Nutrients!$BX$79,(IF($A$8=Nutrients!$B$77,Nutrients!$BX$77,Nutrients!$BX$78)))))*AT$8))/2000","v":0.42446001255490406},{"$f":"(SUMPRODUCT(AU$9:AU$229,Nutrients!$BX$8:$BX$228)+(IF($A$7=Nutrients!$B$8,Nutrients!$BX$8,Nutrients!$BX$9)*AU$7)+(((IF($A$8=Nutrients!$B$79,Nutrients!$BX$79,(IF($A$8=Nutrients!$B$77,Nutrients!$BX$77,Nutrients!$BX$78)))))*AU$8))/2000","v":0.40640352560061455},{"$f":"(SUMPRODUCT(AV$9:AV$229,Nutrients!$BX$8:$BX$228)+(IF($A$7=Nutrients!$B$8,Nutrients!$BX$8,Nutrients!$BX$9)*AV$7)+(((IF($A$8=Nutrients!$B$79,Nutrients!$BX$79,(IF($A$8=Nutrients!$B$77,Nutrients!$BX$77,Nutrients!$BX$78)))))*AV$8))/2000","v":0.39441331284495029},{"$f":"(SUMPRODUCT(AW$9:AW$229,Nutrients!$BX$8:$BX$228)+(IF($A$7=Nutrients!$B$8,Nutrients!$BX$8,Nutrients!$BX$9)*AW$7)+(((IF($A$8=Nutrients!$B$79,Nutrients!$BX$79,(IF($A$8=Nutrients!$B$77,Nutrients!$BX$77,Nutrients!$BX$78)))))*AW$8))/2000","v":0.35071811324744068}]
["Available P w/o phytase, %",{"$f":"(SUMPRODUCT(B$9:B$229,Nutrients!$EB$8:$EB$228)+(IF($A$7=Nutrients!$B$8,Nutrients!$EB$8,Nutrients!$EB$9)*B$7)+(((IF($A$8=Nutrients!$B$79,Nutrients!$EB$79,(IF($A$8=Nutrients!$B$77,Nutrients!$EB$77,Nutrients!$EB$78)))))*B$8))/2000","v":0.21736490825429733},{"$f":"(SUMPRODUCT(C$9:C$229,Nutrients!$EB$8:$EB$228)+(IF($A$7=Nutrients!$B$8,Nutrients!$EB$8,Nutrients!$EB$9)*C$7)+(((IF($A$8=Nutrients!$B$79,Nutrients!$EB$79,(IF($A$8=Nutrients!$B$77,Nutrients!$EB$77,Nutrients!$EB$78)))))*C$8))/2000","v":0.18121360963694014},{"$f":"(SUMPRODUCT(D$9:D$229,Nutrients!$EB$8:$EB$228)+(IF($A$7=Nutrients!$B$8,Nutrients!$EB$8,Nutrients!$EB$9)*D$7)+(((IF($A$8=Nutrients!$B$79,Nutrients!$EB$79,(IF($A$8=Nutrients!$B$77,Nutrients!$EB$77,Nutrients!$EB$78)))))*D$8))/2000","v":0.1446187906188299},{"$f":"(SUMPRODUCT(E$9:E$229,Nutrients!$EB$8:$EB$228)+(IF($A$7=Nutrients!$B$8,Nutrients!$EB$8,Nutrients!$EB$9)*E$7)+(((IF($A$8=Nutrients!$B$79,Nutrients!$EB$79,(IF($A$8=Nutrients!$B$77,Nutrients!$EB$77,Nutrients!$EB$78)))))*E$8))/2000","v":0.11837941481999412},{"$f":"(SUMPRODUCT(F$9:F$229,Nutrients!$EB$8:$EB$228)+(IF($A$7=Nutrients!$B$8,Nutrients!$EB$8,Nutrients!$EB$9)*F$7)+(((IF($A$8=Nutrients!$B$79,Nutrients!$EB$79,(IF($A$8=Nutrients!$B$77,Nutrients!$EB$77,Nutrients!$EB$78)))))*F$8))/2000","v":9.9071678699147347E-2},{"$f":"(SUMPRODUCT(G$9:G$229,Nutrients!$EB$8:$EB$228)+(IF($A$7=Nutrients!$B$8,Nutrients!$EB$8,Nutrients!$EB$9)*G$7)+(((IF($A$8=Nutrients!$B$79,Nutrients!$EB$79,(IF($A$8=Nutrients!$B$77,Nutrients!$EB$77,Nutrients!$EB$78)))))*G$8))/2000","v":9.0636415067427589E-2},null,{"$f":"(SUMPRODUCT(I$9:I$229,Nutrients!$EB$8:$EB$228)+(IF($A$7=Nutrients!$B$8,Nutrients!$EB$8,Nutrients!$EB$9)*I$7)+(((IF($A$8=Nutrients!$B$79,Nutrients!$EB$79,(IF($A$8=Nutrients!$B$77,Nutrients!$EB$77,Nutrients!$EB$78)))))*I$8))/2000","v":0.20032876812813466},{"$f":"(SUMPRODUCT(J$9:J$229,Nutrients!$EB$8:$EB$228)+(IF($A$7=Nutrients!$B$8,Nutrients!$EB$8,Nutrients!$EB$9)*J$7)+(((IF($A$8=Nutrients!$B$79,Nutrients!$EB$79,(IF($A$8=Nutrients!$B$77,Nutrients!$EB$77,Nutrients!$EB$78)))))*J$8))/2000","v":0.16417568719866785},{"$f":"(SUMPRODUCT(K$9:K$229,Nutrients!$EB$8:$EB$228)+(IF($A$7=Nutrients!$B$8,Nutrients!$EB$8,Nutrients!$EB$9)*K$7)+(((IF($A$8=Nutrients!$B$79,Nutrients!$EB$79,(IF($A$8=Nutrients!$B$77,Nutrients!$EB$77,Nutrients!$EB$78)))))*K$8))/2000","v":0.12501672494352439},{"$f":"(SUMPRODUCT(L$9:L$229,Nutrients!$EB$8:$EB$228)+(IF($A$7=Nutrients!$B$8,Nutrients!$EB$8,Nutrients!$EB$9)*L$7)+(((IF($A$8=Nutrients!$B$79,Nutrients!$EB$79,(IF($A$8=Nutrients!$B$77,Nutrients!$EB$77,Nutrients!$EB$78)))))*L$8))/2000","v":9.8157072418378358E-2},{"$f":"(SUMPRODUCT(M$9:M$229,Nutrients!$EB$8:$EB$228)+(IF($A$7=Nutrients!$B$8,Nutrients!$EB$8,Nutrients!$EB$9)*M$7)+(((IF($A$8=Nutrients!$B$79,Nutrients!$EB$79,(IF($A$8=Nutrients!$B$77,Nutrients!$EB$77,Nutrients!$EB$78)))))*M$8))/2000","v":8.0111141837727329E-2},{"$f":"(SUMPRODUCT(N$9:N$229,Nutrients!$EB$8:$EB$228)+(IF($A$7=Nutrients!$B$8,Nutrients!$EB$8,Nutrients!$EB$9)*N$7)+(((IF($A$8=Nutrients!$B$79,Nutrients!$EB$79,(IF($A$8=Nutrients!$B$77,Nutrients!$EB$77,Nutrients!$EB$78)))))*N$8))/2000","v":9.0636415067427589E-2},null,{"$f":"(SUMPRODUCT(P$9:P$229,Nutrients!$EB$8:$EB$228)+(IF($A$7=Nutrients!$B$8,Nutrients!$EB$8,Nutrients!$EB$9)*P$7)+(((IF($A$8=Nutrients!$B$79,Nutrients!$EB$79,(IF($A$8=Nutrients!$B$77,Nutrients!$EB$77,Nutrients!$EB$78)))))*P$8))/2000","v":0.18221735980300099},{"$f":"(SUMPRODUCT(Q$9:Q$229,Nutrients!$EB$8:$EB$228)+(IF($A$7=Nutrients!$B$8,Nutrients!$EB$8,Nutrients!$EB$9)*Q$7)+(((IF($A$8=Nutrients!$B$79,Nutrients!$EB$79,(IF($A$8=Nutrients!$B$77,Nutrients!$EB$77,Nutrients!$EB$78)))))*Q$8))/2000","v":0.14606377031514869},{"$f":"(SUMPRODUCT(R$9:R$229,Nutrients!$EB$8:$EB$228)+(IF($A$7=Nutrients!$B$8,Nutrients!$EB$8,Nutrients!$EB$9)*R$7)+(((IF($A$8=Nutrients!$B$79,Nutrients!$EB$79,(IF($A$8=Nutrients!$B$77,Nutrients!$EB$77,Nutrients!$EB$78)))))*R$8))/2000","v":0.10690404044474559},{"$f":"(SUMPRODUCT(S$9:S$229,Nutrients!$EB$8:$EB$228)+(IF($A$7=Nutrients!$B$8,Nutrients!$EB$8,Nutrients!$EB$9)*S$7)+(((IF($A$8=Nutrients!$B$79,Nutrients!$EB$79,(IF($A$8=Nutrients!$B$77,Nutrients!$EB$77,Nutrients!$EB$78)))))*S$8))/2000","v":8.0044689847537889E-2},{"$f":"(SUMPRODUCT(T$9:T$229,Nutrients!$EB$8:$EB$228)+(IF($A$7=Nutrients!$B$8,Nutrients!$EB$8,Nutrients!$EB$9)*T$7)+(((IF($A$8=Nutrients!$B$79,Nutrients!$EB$79,(IF($A$8=Nutrients!$B$77,Nutrients!$EB$77,Nutrients!$EB$78)))))*T$8))/2000","v":6.1998006411845524E-2},{"$f":"(SUMPRODUCT(U$9:U$229,Nutrients!$EB$8:$EB$228)+(IF($A$7=Nutrients!$B$8,Nutrients!$EB$8,Nutrients!$EB$9)*U$7)+(((IF($A$8=Nutrients!$B$79,Nutrients!$EB$79,(IF($A$8=Nutrients!$B$77,Nutrients!$EB$77,Nutrients!$EB$78)))))*U$8))/2000","v":9.0636415067427589E-2},null,{"$f":"(SUMPRODUCT(W$9:W$229,Nutrients!$EB$8:$EB$228)+(IF($A$7=Nutrients!$B$8,Nutrients!$EB$8,Nutrients!$EB$9)*W$7)+(((IF($A$8=Nutrients!$B$79,Nutrients!$EB$79,(IF($A$8=Nutrients!$B$77,Nutrients!$EB$77,Nutrients!$EB$78)))))*W$8))/2000","v":0.16410555024538293},{"$f":"(SUMPRODUCT(X$9:X$229,Nutrients!$EB$8:$EB$228)+(IF($A$7=Nutrients!$B$8,Nutrients!$EB$8,Nutrients!$EB$9)*X$7)+(((IF($A$8=Nutrients!$B$79,Nutrients!$EB$79,(IF($A$8=Nutrients!$B$77,Nutrients!$EB$77,Nutrients!$EB$78)))))*X$8))/2000","v":0.12795137185888245},{"$f":"(SUMPRODUCT(Y$9:Y$229,Nutrients!$EB$8:$EB$228)+(IF($A$7=Nutrients!$B$8,Nutrients!$EB$8,Nutrients!$EB$9)*Y$7)+(((IF($A$8=Nutrients!$B$79,Nutrients!$EB$79,(IF($A$8=Nutrients!$B$77,Nutrients!$EB$77,Nutrients!$EB$78)))))*Y$8))/2000","v":8.8792505397998461E-2},{"$f":"(SUMPRODUCT(Z$9:Z$229,Nutrients!$EB$8:$EB$228)+(IF($A$7=Nutrients!$B$8,Nutrients!$EB$8,Nutrients!$EB$9)*Z$7)+(((IF($A$8=Nutrients!$B$79,Nutrients!$EB$79,(IF($A$8=Nutrients!$B$77,Nutrients!$EB$77,Nutrients!$EB$78)))))*Z$8))/2000","v":6.1933715169259072E-2},{"$f":"(SUMPRODUCT(AA$9:AA$229,Nutrients!$EB$8:$EB$228)+(IF($A$7=Nutrients!$B$8,Nutrients!$EB$8,Nutrients!$EB$9)*AA$7)+(((IF($A$8=Nutrients!$B$79,Nutrients!$EB$79,(IF($A$8=Nutrients!$B$77,Nutrients!$EB$77,Nutrients!$EB$78)))))*AA$8))/2000","v":4.3883926047100688E-2},{"$f":"(SUMPRODUCT(AB$9:AB$229,Nutrients!$EB$8:$EB$228)+(IF($A$7=Nutrients!$B$8,Nutrients!$EB$8,Nutrients!$EB$9)*AB$7)+(((IF($A$8=Nutrients!$B$79,Nutrients!$EB$79,(IF($A$8=Nutrients!$B$77,Nutrients!$EB$77,Nutrients!$EB$78)))))*AB$8))/2000","v":9.0636415067427589E-2},null,{"$f":"(SUMPRODUCT(AD$9:AD$229,Nutrients!$EB$8:$EB$228)+(IF($A$7=Nutrients!$B$8,Nutrients!$EB$8,Nutrients!$EB$9)*AD$7)+(((IF($A$8=Nutrients!$B$79,Nutrients!$EB$79,(IF($A$8=Nutrients!$B$77,Nutrients!$EB$77,Nutrients!$EB$78)))))*AD$8))/2000","v":0.14599324824055099},{"$f":"(SUMPRODUCT(AE$9:AE$229,Nutrients!$EB$8:$EB$228)+(IF($A$7=Nutrients!$B$8,Nutrients!$EB$8,Nutrients!$EB$9)*AE$7)+(((IF($A$8=Nutrients!$B$79,Nutrients!$EB$79,(IF($A$8=Nutrients!$B$77,Nutrients!$EB$77,Nutrients!$EB$78)))))*AE$8))/2000","v":0.10983928692771132},{"$f":"(SUMPRODUCT(AF$9:AF$229,Nutrients!$EB$8:$EB$228)+(IF($A$7=Nutrients!$B$8,Nutrients!$EB$8,Nutrients!$EB$9)*AF$7)+(((IF($A$8=Nutrients!$B$79,Nutrients!$EB$79,(IF($A$8=Nutrients!$B$77,Nutrients!$EB$77,Nutrients!$EB$78)))))*AF$8))/2000","v":7.0682225972554191E-2},{"$f":"(SUMPRODUCT(AG$9:AG$229,Nutrients!$EB$8:$EB$228)+(IF($A$7=Nutrients!$B$8,Nutrients!$EB$8,Nutrients!$EB$9)*AG$7)+(((IF($A$8=Nutrients!$B$79,Nutrients!$EB$79,(IF($A$8=Nutrients!$B$77,Nutrients!$EB$77,Nutrients!$EB$78)))))*AG$8))/2000","v":4.3818805177893598E-2},{"$f":"(SUMPRODUCT(AH$9:AH$229,Nutrients!$EB$8:$EB$228)+(IF($A$7=Nutrients!$B$8,Nutrients!$EB$8,Nutrients!$EB$9)*AH$7)+(((IF($A$8=Nutrients!$B$79,Nutrients!$EB$79,(IF($A$8=Nutrients!$B$77,Nutrients!$EB$77,Nutrients!$EB$78)))))*AH$8))/2000","v":3.7664280280643996E-2},{"$f":"(SUMPRODUCT(AI$9:AI$229,Nutrients!$EB$8:$EB$228)+(IF($A$7=Nutrients!$B$8,Nutrients!$EB$8,Nutrients!$EB$9)*AI$7)+(((IF($A$8=Nutrients!$B$79,Nutrients!$EB$79,(IF($A$8=Nutrients!$B$77,Nutrients!$EB$77,Nutrients!$EB$78)))))*AI$8))/2000","v":9.0636415067427589E-2},null,{"$f":"(SUMPRODUCT(AK$9:AK$229,Nutrients!$EB$8:$EB$228)+(IF($A$7=Nutrients!$B$8,Nutrients!$EB$8,Nutrients!$EB$9)*AK$7)+(((IF($A$8=Nutrients!$B$79,Nutrients!$EB$79,(IF($A$8=Nutrients!$B$77,Nutrients!$EB$77,Nutrients!$EB$78)))))*AK$8))/2000","v":0.12787749113777752},{"$f":"(SUMPRODUCT(AL$9:AL$229,Nutrients!$EB$8:$EB$228)+(IF($A$7=Nutrients!$B$8,Nutrients!$EB$8,Nutrients!$EB$9)*AL$7)+(((IF($A$8=Nutrients!$B$79,Nutrients!$EB$79,(IF($A$8=Nutrients!$B$77,Nutrients!$EB$77,Nutrients!$EB$78)))))*AL$8))/2000","v":9.1727252982731253E-2},{"$f":"(SUMPRODUCT(AM$9:AM$229,Nutrients!$EB$8:$EB$228)+(IF($A$7=Nutrients!$B$8,Nutrients!$EB$8,Nutrients!$EB$9)*AM$7)+(((IF($A$8=Nutrients!$B$79,Nutrients!$EB$79,(IF($A$8=Nutrients!$B$77,Nutrients!$EB$77,Nutrients!$EB$78)))))*AM$8))/2000","v":5.2568209551707296E-2},{"$f":"(SUMPRODUCT(AN$9:AN$229,Nutrients!$EB$8:$EB$228)+(IF($A$7=Nutrients!$B$8,Nutrients!$EB$8,Nutrients!$EB$9)*AN$7)+(((IF($A$8=Nutrients!$B$79,Nutrients!$EB$79,(IF($A$8=Nutrients!$B$77,Nutrients!$EB$77,Nutrients!$EB$78)))))*AN$8))/2000","v":3.7080067628940186E-2},{"$f":"(SUMPRODUCT(AO$9:AO$229,Nutrients!$EB$8:$EB$228)+(IF($A$7=Nutrients!$B$8,Nutrients!$EB$8,Nutrients!$EB$9)*AO$7)+(((IF($A$8=Nutrients!$B$79,Nutrients!$EB$79,(IF($A$8=Nutrients!$B$77,Nutrients!$EB$77,Nutrients!$EB$78)))))*AO$8))/2000","v":3.3701143823074049E-2},{"$f":"(SUMPRODUCT(AP$9:AP$229,Nutrients!$EB$8:$EB$228)+(IF($A$7=Nutrients!$B$8,Nutrients!$EB$8,Nutrients!$EB$9)*AP$7)+(((IF($A$8=Nutrients!$B$79,Nutrients!$EB$79,(IF($A$8=Nutrients!$B$77,Nutrients!$EB$77,Nutrients!$EB$78)))))*AP$8))/2000","v":9.0636415067427589E-2},null,{"$f":"(SUMPRODUCT(AR$9:AR$229,Nutrients!$EB$8:$EB$228)+(IF($A$7=Nutrients!$B$8,Nutrients!$EB$8,Nutrients!$EB$9)*AR$7)+(((IF($A$8=Nutrients!$B$79,Nutrients!$EB$79,(IF($A$8=Nutrients!$B$77,Nutrients!$EB$77,Nutrients!$EB$78)))))*AR$8))/2000","v":0.1097669272669074},{"$f":"(SUMPRODUCT(AS$9:AS$229,Nutrients!$EB$8:$EB$228)+(IF($A$7=Nutrients!$B$8,Nutrients!$EB$8,Nutrients!$EB$9)*AS$7)+(((IF($A$8=Nutrients!$B$79,Nutrients!$EB$79,(IF($A$8=Nutrients!$B$77,Nutrients!$EB$77,Nutrients!$EB$78)))))*AS$8))/2000","v":7.3615190942195E-2},{"$f":"(SUMPRODUCT(AT$9:AT$229,Nutrients!$EB$8:$EB$228)+(IF($A$7=Nutrients!$B$8,Nutrients!$EB$8,Nutrients!$EB$9)*AT$7)+(((IF($A$8=Nutrients!$B$79,Nutrients!$EB$79,(IF($A$8=Nutrients!$B$77,Nutrients!$EB$77,Nutrients!$EB$78)))))*AT$8))/2000","v":3.8198301972294811E-2},{"$f":"(SUMPRODUCT(AU$9:AU$229,Nutrients!$EB$8:$EB$228)+(IF($A$7=Nutrients!$B$8,Nutrients!$EB$8,Nutrients!$EB$9)*AU$7)+(((IF($A$8=Nutrients!$B$79,Nutrients!$EB$79,(IF($A$8=Nutrients!$B$77,Nutrients!$EB$77,Nutrients!$EB$78)))))*AU$8))/2000","v":3.3117036251500136E-2},{"$f":"(SUMPRODUCT(AV$9:AV$229,Nutrients!$EB$8:$EB$228)+(IF($A$7=Nutrients!$B$8,Nutrients!$EB$8,Nutrients!$EB$9)*AV$7)+(((IF($A$8=Nutrients!$B$79,Nutrients!$EB$79,(IF($A$8=Nutrients!$B$77,Nutrients!$EB$77,Nutrients!$EB$78)))))*AV$8))/2000","v":2.9737441431680514E-2},{"$f":"(SUMPRODUCT(AW$9:AW$229,Nutrients!$EB$8:$EB$228)+(IF($A$7=Nutrients!$B$8,Nutrients!$EB$8,Nutrients!$EB$9)*AW$7)+(((IF($A$8=Nutrients!$B$79,Nutrients!$EB$79,(IF($A$8=Nutrients!$B$77,Nutrients!$EB$77,Nutrients!$EB$78)))))*AW$8))/2000","v":9.0636415067427589E-2}]
["Available P, %",{"$f":"IF((SUMPRODUCT(B$9:B$229,Nutrients!$EE$8:$EE$228))=0,B256,IF((SUMPRODUCT(B$9:B$229,Nutrients!$EE$8:$EE$228))>(1500*907),B256+0.14,B256+0.00000000006666*((SUMPRODUCT(B$9:B$229,Nutrients!$EE$8:$EE$228)/907))^3-0.00000023623322*((SUMPRODUCT(B$9:B$229,Nutrients!$EE$8:$EE$228)/907))^2+0.00029262722672*((SUMPRODUCT(B$9:B$229,Nutrients!$EE$8:$EE$228)/907))+0.007028328))","v":0.32997934872513002},{"$f":"IF((SUMPRODUCT(C$9:C$229,Nutrients!$EE$8:$EE$228))=0,C256,IF((SUMPRODUCT(C$9:C$229,Nutrients!$EE$8:$EE$228))>(1500*907),C256+0.14,C256+0.00000000006666*((SUMPRODUCT(C$9:C$229,Nutrients!$EE$8:$EE$228)/907))^3-0.00000023623322*((SUMPRODUCT(C$9:C$229,Nutrients!$EE$8:$EE$228)/907))^2+0.00029262722672*((SUMPRODUCT(C$9:C$229,Nutrients!$EE$8:$EE$228)/907))+0.007028328))","v":0.2938280501077728},{"$f":"IF((SUMPRODUCT(D$9:D$229,Nutrients!$EE$8:$EE$228))=0,D256,IF((SUMPRODUCT(D$9:D$229,Nutrients!$EE$8:$EE$228))>(1500*907),D256+0.14,D256+0.00000000006666*((SUMPRODUCT(D$9:D$229,Nutrients!$EE$8:$EE$228)/907))^3-0.00000023623322*((SUMPRODUCT(D$9:D$229,Nutrients!$EE$8:$EE$228)/907))^2+0.00029262722672*((SUMPRODUCT(D$9:D$229,Nutrients!$EE$8:$EE$228)/907))+0.007028328))","v":0.25723323108966256},{"$f":"IF((SUMPRODUCT(E$9:E$229,Nutrients!$EE$8:$EE$228))=0,E256,IF((SUMPRODUCT(E$9:E$229,Nutrients!$EE$8:$EE$228))>(1500*907),E256+0.14,E256+0.00000000006666*((SUMPRODUCT(E$9:E$229,Nutrients!$EE$8:$EE$228)/907))^3-0.00000023623322*((SUMPRODUCT(E$9:E$229,Nutrients!$EE$8:$EE$228)/907))^2+0.00029262722672*((SUMPRODUCT(E$9:E$229,Nutrients!$EE$8:$EE$228)/907))+0.007028328))","v":0.23099385529082681},{"$f":"IF((SUMPRODUCT(F$9:F$229,Nutrients!$EE$8:$EE$228))=0,F256,IF((SUMPRODUCT(F$9:F$229,Nutrients!$EE$8:$EE$228))>(1500*907),F256+0.14,F256+0.00000000006666*((SUMPRODUCT(F$9:F$229,Nutrients!$EE$8:$EE$228)/907))^3-0.00000023623322*((SUMPRODUCT(F$9:F$229,Nutrients!$EE$8:$EE$228)/907))^2+0.00029262722672*((SUMPRODUCT(F$9:F$229,Nutrients!$EE$8:$EE$228)/907))+0.007028328))","v":0.21168611916998004},{"$f":"IF((SUMPRODUCT(G$9:G$229,Nutrients!$EE$8:$EE$228))=0,G256,IF((SUMPRODUCT(G$9:G$229,Nutrients!$EE$8:$EE$228))>(1500*907),G256+0.14,G256+0.00000000006666*((SUMPRODUCT(G$9:G$229,Nutrients!$EE$8:$EE$228)/907))^3-0.00000023623322*((SUMPRODUCT(G$9:G$229,Nutrients!$EE$8:$EE$228)/907))^2+0.00029262722672*((SUMPRODUCT(G$9:G$229,Nutrients!$EE$8:$EE$228)/907))+0.007028328))","v":0.20325085553826028},null,{"$f":"IF((SUMPRODUCT(I$9:I$229,Nutrients!$EE$8:$EE$228))=0,I256,IF((SUMPRODUCT(I$9:I$229,Nutrients!$EE$8:$EE$228))>(1500*907),I256+0.14,I256+0.00000000006666*((SUMPRODUCT(I$9:I$229,Nutrients!$EE$8:$EE$228)/907))^3-0.00000023623322*((SUMPRODUCT(I$9:I$229,Nutrients!$EE$8:$EE$228)/907))^2+0.00029262722672*((SUMPRODUCT(I$9:I$229,Nutrients!$EE$8:$EE$228)/907))+0.007028328))","v":0.31294320859896729},{"$f":"IF((SUMPRODUCT(J$9:J$229,Nutrients!$EE$8:$EE$228))=0,J256,IF((SUMPRODUCT(J$9:J$229,Nutrients!$EE$8:$EE$228))>(1500*907),J256+0.14,J256+0.00000000006666*((SUMPRODUCT(J$9:J$229,Nutrients!$EE$8:$EE$228)/907))^3-0.00000023623322*((SUMPRODUCT(J$9:J$229,Nutrients!$EE$8:$EE$228)/907))^2+0.00029262722672*((SUMPRODUCT(J$9:J$229,Nutrients!$EE$8:$EE$228)/907))+0.007028328))","v":0.27679012766950051},{"$f":"IF((SUMPRODUCT(K$9:K$229,Nutrients!$EE$8:$EE$228))=0,K256,IF((SUMPRODUCT(K$9:K$229,Nutrients!$EE$8:$EE$228))>(1500*907),K256+0.14,K256+0.00000000006666*((SUMPRODUCT(K$9:K$229,Nutrients!$EE$8:$EE$228)/907))^3-0.00000023623322*((SUMPRODUCT(K$9:K$229,Nutrients!$EE$8:$EE$228)/907))^2+0.00029262722672*((SUMPRODUCT(K$9:K$229,Nutrients!$EE$8:$EE$228)/907))+0.007028328))","v":0.23763116541435705},{"$f":"IF((SUMPRODUCT(L$9:L$229,Nutrients!$EE$8:$EE$228))=0,L256,IF((SUMPRODUCT(L$9:L$229,Nutrients!$EE$8:$EE$228))>(1500*907),L256+0.14,L256+0.00000000006666*((SUMPRODUCT(L$9:L$229,Nutrients!$EE$8:$EE$228)/907))^3-0.00000023623322*((SUMPRODUCT(L$9:L$229,Nutrients!$EE$8:$EE$228)/907))^2+0.00029262722672*((SUMPRODUCT(L$9:L$229,Nutrients!$EE$8:$EE$228)/907))+0.007028328))","v":0.21077151288921106},{"$f":"IF((SUMPRODUCT(M$9:M$229,Nutrients!$EE$8:$EE$228))=0,M256,IF((SUMPRODUCT(M$9:M$229,Nutrients!$EE$8:$EE$228))>(1500*907),M256+0.14,M256+0.00000000006666*((SUMPRODUCT(M$9:M$229,Nutrients!$EE$8:$EE$228)/907))^3-0.00000023623322*((SUMPRODUCT(M$9:M$229,Nutrients!$EE$8:$EE$228)/907))^2+0.00029262722672*((SUMPRODUCT(M$9:M$229,Nutrients!$EE$8:$EE$228)/907))+0.007028328))","v":0.19272558230856002},{"$f":"IF((SUMPRODUCT(N$9:N$229,Nutrients!$EE$8:$EE$228))=0,N256,IF((SUMPRODUCT(N$9:N$229,Nutrients!$EE$8:$EE$228))>(1500*907),N256+0.14,N256+0.00000000006666*((SUMPRODUCT(N$9:N$229,Nutrients!$EE$8:$EE$228)/907))^3-0.00000023623322*((SUMPRODUCT(N$9:N$229,Nutrients!$EE$8:$EE$228)/907))^2+0.00029262722672*((SUMPRODUCT(N$9:N$229,Nutrients!$EE$8:$EE$228)/907))+0.007028328))","v":0.20325085553826028},null,{"$f":"IF((SUMPRODUCT(P$9:P$229,Nutrients!$EE$8:$EE$228))=0,P256,IF((SUMPRODUCT(P$9:P$229,Nutrients!$EE$8:$EE$228))>(1500*907),P256+0.14,P256+0.00000000006666*((SUMPRODUCT(P$9:P$229,Nutrients!$EE$8:$EE$228)/907))^3-0.00000023623322*((SUMPRODUCT(P$9:P$229,Nutrients!$EE$8:$EE$228)/907))^2+0.00029262722672*((SUMPRODUCT(P$9:P$229,Nutrients!$EE$8:$EE$228)/907))+0.007028328))","v":0.29483180027383371},{"$f":"IF((SUMPRODUCT(Q$9:Q$229,Nutrients!$EE$8:$EE$228))=0,Q256,IF((SUMPRODUCT(Q$9:Q$229,Nutrients!$EE$8:$EE$228))>(1500*907),Q256+0.14,Q256+0.00000000006666*((SUMPRODUCT(Q$9:Q$229,Nutrients!$EE$8:$EE$228)/907))^3-0.00000023623322*((SUMPRODUCT(Q$9:Q$229,Nutrients!$EE$8:$EE$228)/907))^2+0.00029262722672*((SUMPRODUCT(Q$9:Q$229,Nutrients!$EE$8:$EE$228)/907))+0.007028328))","v":0.25867821078598141},{"$f":"IF((SUMPRODUCT(R$9:R$229,Nutrients!$EE$8:$EE$228))=0,R256,IF((SUMPRODUCT(R$9:R$229,Nutrients!$EE$8:$EE$228))>(1500*907),R256+0.14,R256+0.00000000006666*((SUMPRODUCT(R$9:R$229,Nutrients!$EE$8:$EE$228)/907))^3-0.00000023623322*((SUMPRODUCT(R$9:R$229,Nutrients!$EE$8:$EE$228)/907))^2+0.00029262722672*((SUMPRODUCT(R$9:R$229,Nutrients!$EE$8:$EE$228)/907))+0.007028328))","v":0.21951848091557827},{"$f":"IF((SUMPRODUCT(S$9:S$229,Nutrients!$EE$8:$EE$228))=0,S256,IF((SUMPRODUCT(S$9:S$229,Nutrients!$EE$8:$EE$228))>(1500*907),S256+0.14,S256+0.00000000006666*((SUMPRODUCT(S$9:S$229,Nutrients!$EE$8:$EE$228)/907))^3-0.00000023623322*((SUMPRODUCT(S$9:S$229,Nutrients!$EE$8:$EE$228)/907))^2+0.00029262722672*((SUMPRODUCT(S$9:S$229,Nutrients!$EE$8:$EE$228)/907))+0.007028328))","v":0.19265913031837059},{"$f":"IF((SUMPRODUCT(T$9:T$229,Nutrients!$EE$8:$EE$228))=0,T256,IF((SUMPRODUCT(T$9:T$229,Nutrients!$EE$8:$EE$228))>(1500*907),T256+0.14,T256+0.00000000006666*((SUMPRODUCT(T$9:T$229,Nutrients!$EE$8:$EE$228)/907))^3-0.00000023623322*((SUMPRODUCT(T$9:T$229,Nutrients!$EE$8:$EE$228)/907))^2+0.00029262722672*((SUMPRODUCT(T$9:T$229,Nutrients!$EE$8:$EE$228)/907))+0.007028328))","v":0.17461244688267821},{"$f":"IF((SUMPRODUCT(U$9:U$229,Nutrients!$EE$8:$EE$228))=0,U256,IF((SUMPRODUCT(U$9:U$229,Nutrients!$EE$8:$EE$228))>(1500*907),U256+0.14,U256+0.00000000006666*((SUMPRODUCT(U$9:U$229,Nutrients!$EE$8:$EE$228)/907))^3-0.00000023623322*((SUMPRODUCT(U$9:U$229,Nutrients!$EE$8:$EE$228)/907))^2+0.00029262722672*((SUMPRODUCT(U$9:U$229,Nutrients!$EE$8:$EE$228)/907))+0.007028328))","v":0.20325085553826028},null,{"$f":"IF((SUMPRODUCT(W$9:W$229,Nutrients!$EE$8:$EE$228))=0,W256,IF((SUMPRODUCT(W$9:W$229,Nutrients!$EE$8:$EE$228))>(1500*907),W256+0.14,W256+0.00000000006666*((SUMPRODUCT(W$9:W$229,Nutrients!$EE$8:$EE$228)/907))^3-0.00000023623322*((SUMPRODUCT(W$9:W$229,Nutrients!$EE$8:$EE$228)/907))^2+0.00029262722672*((SUMPRODUCT(W$9:W$229,Nutrients!$EE$8:$EE$228)/907))+0.007028328))","v":0.27671999071621556},{"$f":"IF((SUMPRODUCT(X$9:X$229,Nutrients!$EE$8:$EE$228))=0,X256,IF((SUMPRODUCT(X$9:X$229,Nutrients!$EE$8:$EE$228))>(1500*907),X256+0.14,X256+0.00000000006666*((SUMPRODUCT(X$9:X$229,Nutrients!$EE$8:$EE$228)/907))^3-0.00000023623322*((SUMPRODUCT(X$9:X$229,Nutrients!$EE$8:$EE$228)/907))^2+0.00029262722672*((SUMPRODUCT(X$9:X$229,Nutrients!$EE$8:$EE$228)/907))+0.007028328))","v":0.24056581232971511},{"$f":"IF((SUMPRODUCT(Y$9:Y$229,Nutrients!$EE$8:$EE$228))=0,Y256,IF((SUMPRODUCT(Y$9:Y$229,Nutrients!$EE$8:$EE$228))>(1500*907),Y256+0.14,Y256+0.00000000006666*((SUMPRODUCT(Y$9:Y$229,Nutrients!$EE$8:$EE$228)/907))^3-0.00000023623322*((SUMPRODUCT(Y$9:Y$229,Nutrients!$EE$8:$EE$228)/907))^2+0.00029262722672*((SUMPRODUCT(Y$9:Y$229,Nutrients!$EE$8:$EE$228)/907))+0.007028328))","v":0.20140694586883115},{"$f":"IF((SUMPRODUCT(Z$9:Z$229,Nutrients!$EE$8:$EE$228))=0,Z256,IF((SUMPRODUCT(Z$9:Z$229,Nutrients!$EE$8:$EE$228))>(1500*907),Z256+0.14,Z256+0.00000000006666*((SUMPRODUCT(Z$9:Z$229,Nutrients!$EE$8:$EE$228)/907))^3-0.00000023623322*((SUMPRODUCT(Z$9:Z$229,Nutrients!$EE$8:$EE$228)/907))^2+0.00029262722672*((SUMPRODUCT(Z$9:Z$229,Nutrients!$EE$8:$EE$228)/907))+0.007028328))","v":0.17454815564009177},{"$f":"IF((SUMPRODUCT(AA$9:AA$229,Nutrients!$EE$8:$EE$228))=0,AA256,IF((SUMPRODUCT(AA$9:AA$229,Nutrients!$EE$8:$EE$228))>(1500*907),AA256+0.14,AA256+0.00000000006666*((SUMPRODUCT(AA$9:AA$229,Nutrients!$EE$8:$EE$228)/907))^3-0.00000023623322*((SUMPRODUCT(AA$9:AA$229,Nutrients!$EE$8:$EE$228)/907))^2+0.00029262722672*((SUMPRODUCT(AA$9:AA$229,Nutrients!$EE$8:$EE$228)/907))+0.007028328))","v":0.15649836651793339},{"$f":"IF((SUMPRODUCT(AB$9:AB$229,Nutrients!$EE$8:$EE$228))=0,AB256,IF((SUMPRODUCT(AB$9:AB$229,Nutrients!$EE$8:$EE$228))>(1500*907),AB256+0.14,AB256+0.00000000006666*((SUMPRODUCT(AB$9:AB$229,Nutrients!$EE$8:$EE$228)/907))^3-0.00000023623322*((SUMPRODUCT(AB$9:AB$229,Nutrients!$EE$8:$EE$228)/907))^2+0.00029262722672*((SUMPRODUCT(AB$9:AB$229,Nutrients!$EE$8:$EE$228)/907))+0.007028328))","v":0.20325085553826028},null,{"$f":"IF((SUMPRODUCT(AD$9:AD$229,Nutrients!$EE$8:$EE$228))=0,AD256,IF((SUMPRODUCT(AD$9:AD$229,Nutrients!$EE$8:$EE$228))>(1500*907),AD256+0.14,AD256+0.00000000006666*((SUMPRODUCT(AD$9:AD$229,Nutrients!$EE$8:$EE$228)/907))^3-0.00000023623322*((SUMPRODUCT(AD$9:AD$229,Nutrients!$EE$8:$EE$228)/907))^2+0.00029262722672*((SUMPRODUCT(AD$9:AD$229,Nutrients!$EE$8:$EE$228)/907))+0.007028328))","v":0.25860768871138362},{"$f":"IF((SUMPRODUCT(AE$9:AE$229,Nutrients!$EE$8:$EE$228))=0,AE256,IF((SUMPRODUCT(AE$9:AE$229,Nutrients!$EE$8:$EE$228))>(1500*907),AE256+0.14,AE256+0.00000000006666*((SUMPRODUCT(AE$9:AE$229,Nutrients!$EE$8:$EE$228)/907))^3-0.00000023623322*((SUMPRODUCT(AE$9:AE$229,Nutrients!$EE$8:$EE$228)/907))^2+0.00029262722672*((SUMPRODUCT(AE$9:AE$229,Nutrients!$EE$8:$EE$228)/907))+0.007028328))","v":0.22245372739854399},{"$f":"IF((SUMPRODUCT(AF$9:AF$229,Nutrients!$EE$8:$EE$228))=0,AF256,IF((SUMPRODUCT(AF$9:AF$229,Nutrients!$EE$8:$EE$228))>(1500*907),AF256+0.14,AF256+0.00000000006666*((SUMPRODUCT(AF$9:AF$229,Nutrients!$EE$8:$EE$228)/907))^3-0.00000023623322*((SUMPRODUCT(AF$9:AF$229,Nutrients!$EE$8:$EE$228)/907))^2+0.00029262722672*((SUMPRODUCT(AF$9:AF$229,Nutrients!$EE$8:$EE$228)/907))+0.007028328))","v":0.18329666644338688},{"$f":"IF((SUMPRODUCT(AG$9:AG$229,Nutrients!$EE$8:$EE$228))=0,AG256,IF((SUMPRODUCT(AG$9:AG$229,Nutrients!$EE$8:$EE$228))>(1500*907),AG256+0.14,AG256+0.00000000006666*((SUMPRODUCT(AG$9:AG$229,Nutrients!$EE$8:$EE$228)/907))^3-0.00000023623322*((SUMPRODUCT(AG$9:AG$229,Nutrients!$EE$8:$EE$228)/907))^2+0.00029262722672*((SUMPRODUCT(AG$9:AG$229,Nutrients!$EE$8:$EE$228)/907))+0.007028328))","v":0.15643324564872627},{"$f":"IF((SUMPRODUCT(AH$9:AH$229,Nutrients!$EE$8:$EE$228))=0,AH256,IF((SUMPRODUCT(AH$9:AH$229,Nutrients!$EE$8:$EE$228))>(1500*907),AH256+0.14,AH256+0.00000000006666*((SUMPRODUCT(AH$9:AH$229,Nutrients!$EE$8:$EE$228)/907))^3-0.00000023623322*((SUMPRODUCT(AH$9:AH$229,Nutrients!$EE$8:$EE$228)/907))^2+0.00029262722672*((SUMPRODUCT(AH$9:AH$229,Nutrients!$EE$8:$EE$228)/907))+0.007028328))","v":0.15027872075147666},{"$f":"IF((SUMPRODUCT(AI$9:AI$229,Nutrients!$EE$8:$EE$228))=0,AI256,IF((SUMPRODUCT(AI$9:AI$229,Nutrients!$EE$8:$EE$228))>(1500*907),AI256+0.14,AI256+0.00000000006666*((SUMPRODUCT(AI$9:AI$229,Nutrients!$EE$8:$EE$228)/907))^3-0.00000023623322*((SUMPRODUCT(AI$9:AI$229,Nutrients!$EE$8:$EE$228)/907))^2+0.00029262722672*((SUMPRODUCT(AI$9:AI$229,Nutrients!$EE$8:$EE$228)/907))+0.007028328))","v":0.20325085553826028},null,{"$f":"IF((SUMPRODUCT(AK$9:AK$229,Nutrients!$EE$8:$EE$228))=0,AK256,IF((SUMPRODUCT(AK$9:AK$229,Nutrients!$EE$8:$EE$228))>(1500*907),AK256+0.14,AK256+0.00000000006666*((SUMPRODUCT(AK$9:AK$229,Nutrients!$EE$8:$EE$228)/907))^3-0.00000023623322*((SUMPRODUCT(AK$9:AK$229,Nutrients!$EE$8:$EE$228)/907))^2+0.00029262722672*((SUMPRODUCT(AK$9:AK$229,Nutrients!$EE$8:$EE$228)/907))+0.007028328))","v":0.24049193160861018},{"$f":"IF((SUMPRODUCT(AL$9:AL$229,Nutrients!$EE$8:$EE$228))=0,AL256,IF((SUMPRODUCT(AL$9:AL$229,Nutrients!$EE$8:$EE$228))>(1500*907),AL256+0.14,AL256+0.00000000006666*((SUMPRODUCT(AL$9:AL$229,Nutrients!$EE$8:$EE$228)/907))^3-0.00000023623322*((SUMPRODUCT(AL$9:AL$229,Nutrients!$EE$8:$EE$228)/907))^2+0.00029262722672*((SUMPRODUCT(AL$9:AL$229,Nutrients!$EE$8:$EE$228)/907))+0.007028328))","v":0.20434169345356393},{"$f":"IF((SUMPRODUCT(AM$9:AM$229,Nutrients!$EE$8:$EE$228))=0,AM256,IF((SUMPRODUCT(AM$9:AM$229,Nutrients!$EE$8:$EE$228))>(1500*907),AM256+0.14,AM256+0.00000000006666*((SUMPRODUCT(AM$9:AM$229,Nutrients!$EE$8:$EE$228)/907))^3-0.00000023623322*((SUMPRODUCT(AM$9:AM$229,Nutrients!$EE$8:$EE$228)/907))^2+0.00029262722672*((SUMPRODUCT(AM$9:AM$229,Nutrients!$EE$8:$EE$228)/907))+0.007028328))","v":0.16518265002253998},{"$f":"IF((SUMPRODUCT(AN$9:AN$229,Nutrients!$EE$8:$EE$228))=0,AN256,IF((SUMPRODUCT(AN$9:AN$229,Nutrients!$EE$8:$EE$228))>(1500*907),AN256+0.14,AN256+0.00000000006666*((SUMPRODUCT(AN$9:AN$229,Nutrients!$EE$8:$EE$228)/907))^3-0.00000023623322*((SUMPRODUCT(AN$9:AN$229,Nutrients!$EE$8:$EE$228)/907))^2+0.00029262722672*((SUMPRODUCT(AN$9:AN$229,Nutrients!$EE$8:$EE$228)/907))+0.007028328))","v":0.14969450809977289},{"$f":"IF((SUMPRODUCT(AO$9:AO$229,Nutrients!$EE$8:$EE$228))=0,AO256,IF((SUMPRODUCT(AO$9:AO$229,Nutrients!$EE$8:$EE$228))>(1500*907),AO256+0.14,AO256+0.00000000006666*((SUMPRODUCT(AO$9:AO$229,Nutrients!$EE$8:$EE$228)/907))^3-0.00000023623322*((SUMPRODUCT(AO$9:AO$229,Nutrients!$EE$8:$EE$228)/907))^2+0.00029262722672*((SUMPRODUCT(AO$9:AO$229,Nutrients!$EE$8:$EE$228)/907))+0.007028328))","v":0.14631558429390673},{"$f":"IF((SUMPRODUCT(AP$9:AP$229,Nutrients!$EE$8:$EE$228))=0,AP256,IF((SUMPRODUCT(AP$9:AP$229,Nutrients!$EE$8:$EE$228))>(1500*907),AP256+0.14,AP256+0.00000000006666*((SUMPRODUCT(AP$9:AP$229,Nutrients!$EE$8:$EE$228)/907))^3-0.00000023623322*((SUMPRODUCT(AP$9:AP$229,Nutrients!$EE$8:$EE$228)/907))^2+0.00029262722672*((SUMPRODUCT(AP$9:AP$229,Nutrients!$EE$8:$EE$228)/907))+0.007028328))","v":0.20325085553826028},null,{"$f":"IF((SUMPRODUCT(AR$9:AR$229,Nutrients!$EE$8:$EE$228))=0,AR256,IF((SUMPRODUCT(AR$9:AR$229,Nutrients!$EE$8:$EE$228))>(1500*907),AR256+0.14,AR256+0.00000000006666*((SUMPRODUCT(AR$9:AR$229,Nutrients!$EE$8:$EE$228)/907))^3-0.00000023623322*((SUMPRODUCT(AR$9:AR$229,Nutrients!$EE$8:$EE$228)/907))^2+0.00029262722672*((SUMPRODUCT(AR$9:AR$229,Nutrients!$EE$8:$EE$228)/907))+0.007028328))","v":0.22238136773774009},{"$f":"IF((SUMPRODUCT(AS$9:AS$229,Nutrients!$EE$8:$EE$228))=0,AS256,IF((SUMPRODUCT(AS$9:AS$229,Nutrients!$EE$8:$EE$228))>(1500*907),AS256+0.14,AS256+0.00000000006666*((SUMPRODUCT(AS$9:AS$229,Nutrients!$EE$8:$EE$228)/907))^3-0.00000023623322*((SUMPRODUCT(AS$9:AS$229,Nutrients!$EE$8:$EE$228)/907))^2+0.00029262722672*((SUMPRODUCT(AS$9:AS$229,Nutrients!$EE$8:$EE$228)/907))+0.007028328))","v":0.1862296314130277},{"$f":"IF((SUMPRODUCT(AT$9:AT$229,Nutrients!$EE$8:$EE$228))=0,AT256,IF((SUMPRODUCT(AT$9:AT$229,Nutrients!$EE$8:$EE$228))>(1500*907),AT256+0.14,AT256+0.00000000006666*((SUMPRODUCT(AT$9:AT$229,Nutrients!$EE$8:$EE$228)/907))^3-0.00000023623322*((SUMPRODUCT(AT$9:AT$229,Nutrients!$EE$8:$EE$228)/907))^2+0.00029262722672*((SUMPRODUCT(AT$9:AT$229,Nutrients!$EE$8:$EE$228)/907))+0.007028328))","v":0.15081274244312751},{"$f":"IF((SUMPRODUCT(AU$9:AU$229,Nutrients!$EE$8:$EE$228))=0,AU256,IF((SUMPRODUCT(AU$9:AU$229,Nutrients!$EE$8:$EE$228))>(1500*907),AU256+0.14,AU256+0.00000000006666*((SUMPRODUCT(AU$9:AU$229,Nutrients!$EE$8:$EE$228)/907))^3-0.00000023623322*((SUMPRODUCT(AU$9:AU$229,Nutrients!$EE$8:$EE$228)/907))^2+0.00029262722672*((SUMPRODUCT(AU$9:AU$229,Nutrients!$EE$8:$EE$228)/907))+0.007028328))","v":0.1457314767223328},{"$f":"IF((SUMPRODUCT(AV$9:AV$229,Nutrients!$EE$8:$EE$228))=0,AV256,IF((SUMPRODUCT(AV$9:AV$229,Nutrients!$EE$8:$EE$228))>(1500*907),AV256+0.14,AV256+0.00000000006666*((SUMPRODUCT(AV$9:AV$229,Nutrients!$EE$8:$EE$228)/907))^3-0.00000023623322*((SUMPRODUCT(AV$9:AV$229,Nutrients!$EE$8:$EE$228)/907))^2+0.00029262722672*((SUMPRODUCT(AV$9:AV$229,Nutrients!$EE$8:$EE$228)/907))+0.007028328))","v":0.14235188190251322},{"$f":"IF((SUMPRODUCT(AW$9:AW$229,Nutrients!$EE$8:$EE$228))=0,AW256,IF((SUMPRODUCT(AW$9:AW$229,Nutrients!$EE$8:$EE$228))>(1500*907),AW256+0.14,AW256+0.00000000006666*((SUMPRODUCT(AW$9:AW$229,Nutrients!$EE$8:$EE$228)/907))^3-0.00000023623322*((SUMPRODUCT(AW$9:AW$229,Nutrients!$EE$8:$EE$228)/907))^2+0.00029262722672*((SUMPRODUCT(AW$9:AW$229,Nutrients!$EE$8:$EE$228)/907))+0.007028328))","v":0.20325085553826028}]
["Avail P:calorie ratio g/mcal",{"$f":"IF(B$5=\"\",\"\",(B257)/(B246*2.2046)*10000)","v":1.0033088419067715},0.89010895745377694,0.77668715413339373,0.69541943453482424,0.63585195401614236,0.60998469661164556,null,{"$f":"IF(I$5=\"\",\"\",(I257)/(I246*2.2046)*10000)","v":0.94302978854330266},0.8310093042883554,0.71097367964041902,0.62883445148104844,0.57372597585416241,0.60998469661164556,null,{"$f":"IF(P$5=\"\",\"\",(P257)/(P246*2.2046)*10000)","v":0.88048392023312938},0.76967106088733794,0.65088954538218047,0.56966285127162175,0.51516800075999702,0.60998469661164556,null,{"$f":"IF(W$5=\"\",\"\",(W257)/(W246*2.2046)*10000)","v":0.81903171735349201},0.70940339956122989,0.59188425004749656,0.51153721860401025,0.45761659630429302,0.60998469661164556,null,{"$f":"IF(AD$5=\"\",\"\",(AD257)/(AD246*2.2046)*10000)","v":0.7586261038797022},0.65019593377556328,0.53392499630836199,0.45438810164298332,0.43567790380288546,0.60998469661164556,null,{"$f":"IF(AK$5=\"\",\"\",(AK257)/(AK246*2.2046)*10000)","v":0.69914190052454295},0.59202042189890325,0.47694022646098433,0.43116751664028624,0.42056223632993189,0.60998469661164556,null,{"$f":"IF(AR$5=\"\",\"\",(AR257)/(AR246*2.2046)*10000)","v":0.64091660667815353},0.53486807163997718,0.43177171675165033,0.41619543851599911,0.40569389319367288,0.60998469661164556]
["Stand. Dig. P w/out phytase, %",{"$f":"((SUMPRODUCT(B$9:B$229,Nutrients!$DR$8:$DR$228)+(IF($A$7=Nutrients!$B$8,Nutrients!$DR$8,Nutrients!$DR$9)*B$7)+(((IF($A$8=Nutrients!$B$79,Nutrients!$DR$79,(IF($A$8=Nutrients!$B$77,Nutrients!$DR$77,Nutrients!$DR$78)))))*B$8))/2000)","v":0.28998961246592625},{"$f":"((SUMPRODUCT(C$9:C$229,Nutrients!$DR$8:$DR$228)+(IF($A$7=Nutrients!$B$8,Nutrients!$DR$8,Nutrients!$DR$9)*C$7)+(((IF($A$8=Nutrients!$B$79,Nutrients!$DR$79,(IF($A$8=Nutrients!$B$77,Nutrients!$DR$77,Nutrients!$DR$78)))))*C$8))/2000)","v":0.25045553392749997},{"$f":"((SUMPRODUCT(D$9:D$229,Nutrients!$DR$8:$DR$228)+(IF($A$7=Nutrients!$B$8,Nutrients!$DR$8,Nutrients!$DR$9)*D$7)+(((IF($A$8=Nutrients!$B$79,Nutrients!$DR$79,(IF($A$8=Nutrients!$B$77,Nutrients!$DR$77,Nutrients!$DR$78)))))*D$8))/2000)","v":0.21159356316179678},{"$f":"((SUMPRODUCT(E$9:E$229,Nutrients!$DR$8:$DR$228)+(IF($A$7=Nutrients!$B$8,Nutrients!$DR$8,Nutrients!$DR$9)*E$7)+(((IF($A$8=Nutrients!$B$79,Nutrients!$DR$79,(IF($A$8=Nutrients!$B$77,Nutrients!$DR$77,Nutrients!$DR$78)))))*E$8))/2000)","v":0.18289955187368459},{"$f":"((SUMPRODUCT(F$9:F$229,Nutrients!$DR$8:$DR$228)+(IF($A$7=Nutrients!$B$8,Nutrients!$DR$8,Nutrients!$DR$9)*F$7)+(((IF($A$8=Nutrients!$B$79,Nutrients!$DR$79,(IF($A$8=Nutrients!$B$77,Nutrients!$DR$77,Nutrients!$DR$78)))))*F$8))/2000)","v":0.16219699119534683},{"$f":"((SUMPRODUCT(G$9:G$229,Nutrients!$DR$8:$DR$228)+(IF($A$7=Nutrients!$B$8,Nutrients!$DR$8,Nutrients!$DR$9)*G$7)+(((IF($A$8=Nutrients!$B$79,Nutrients!$DR$79,(IF($A$8=Nutrients!$B$77,Nutrients!$DR$77,Nutrients!$DR$78)))))*G$8))/2000)","v":0.15287313523350393},null,{"$f":"((SUMPRODUCT(I$9:I$229,Nutrients!$DR$8:$DR$228)+(IF($A$7=Nutrients!$B$8,Nutrients!$DR$8,Nutrients!$DR$9)*I$7)+(((IF($A$8=Nutrients!$B$79,Nutrients!$DR$79,(IF($A$8=Nutrients!$B$77,Nutrients!$DR$77,Nutrients!$DR$78)))))*I$8))/2000)","v":0.29063539005684463},{"$f":"((SUMPRODUCT(J$9:J$229,Nutrients!$DR$8:$DR$228)+(IF($A$7=Nutrients!$B$8,Nutrients!$DR$8,Nutrients!$DR$9)*J$7)+(((IF($A$8=Nutrients!$B$79,Nutrients!$DR$79,(IF($A$8=Nutrients!$B$77,Nutrients!$DR$77,Nutrients!$DR$78)))))*J$8))/2000)","v":0.25109670299693432},{"$f":"((SUMPRODUCT(K$9:K$229,Nutrients!$DR$8:$DR$228)+(IF($A$7=Nutrients!$B$8,Nutrients!$DR$8,Nutrients!$DR$9)*K$7)+(((IF($A$8=Nutrients!$B$79,Nutrients!$DR$79,(IF($A$8=Nutrients!$B$77,Nutrients!$DR$77,Nutrients!$DR$78)))))*K$8))/2000)","v":0.2099760712944779},{"$f":"((SUMPRODUCT(L$9:L$229,Nutrients!$DR$8:$DR$228)+(IF($A$7=Nutrients!$B$8,Nutrients!$DR$8,Nutrients!$DR$9)*L$7)+(((IF($A$8=Nutrients!$B$79,Nutrients!$DR$79,(IF($A$8=Nutrients!$B$77,Nutrients!$DR$77,Nutrients!$DR$78)))))*L$8))/2000)","v":0.18074246472987032},{"$f":"((SUMPRODUCT(M$9:M$229,Nutrients!$DR$8:$DR$228)+(IF($A$7=Nutrients!$B$8,Nutrients!$DR$8,Nutrients!$DR$9)*M$7)+(((IF($A$8=Nutrients!$B$79,Nutrients!$DR$79,(IF($A$8=Nutrients!$B$77,Nutrients!$DR$77,Nutrients!$DR$78)))))*M$8))/2000)","v":0.16114825179142095},{"$f":"((SUMPRODUCT(N$9:N$229,Nutrients!$DR$8:$DR$228)+(IF($A$7=Nutrients!$B$8,Nutrients!$DR$8,Nutrients!$DR$9)*N$7)+(((IF($A$8=Nutrients!$B$79,Nutrients!$DR$79,(IF($A$8=Nutrients!$B$77,Nutrients!$DR$77,Nutrients!$DR$78)))))*N$8))/2000)","v":0.15287313523350393},null,{"$f":"((SUMPRODUCT(P$9:P$229,Nutrients!$DR$8:$DR$228)+(IF($A$7=Nutrients!$B$8,Nutrients!$DR$8,Nutrients!$DR$9)*P$7)+(((IF($A$8=Nutrients!$B$79,Nutrients!$DR$79,(IF($A$8=Nutrients!$B$77,Nutrients!$DR$77,Nutrients!$DR$78)))))*P$8))/2000)","v":0.29033124916612574},{"$f":"((SUMPRODUCT(Q$9:Q$229,Nutrients!$DR$8:$DR$228)+(IF($A$7=Nutrients!$B$8,Nutrients!$DR$8,Nutrients!$DR$9)*Q$7)+(((IF($A$8=Nutrients!$B$79,Nutrients!$DR$79,(IF($A$8=Nutrients!$B$77,Nutrients!$DR$77,Nutrients!$DR$78)))))*Q$8))/2000)","v":0.2507912471276364},{"$f":"((SUMPRODUCT(R$9:R$229,Nutrients!$DR$8:$DR$228)+(IF($A$7=Nutrients!$B$8,Nutrients!$DR$8,Nutrients!$DR$9)*R$7)+(((IF($A$8=Nutrients!$B$79,Nutrients!$DR$79,(IF($A$8=Nutrients!$B$77,Nutrients!$DR$77,Nutrients!$DR$78)))))*R$8))/2000)","v":0.20966863060366833},{"$f":"((SUMPRODUCT(S$9:S$229,Nutrients!$DR$8:$DR$228)+(IF($A$7=Nutrients!$B$8,Nutrients!$DR$8,Nutrients!$DR$9)*S$7)+(((IF($A$8=Nutrients!$B$79,Nutrients!$DR$79,(IF($A$8=Nutrients!$B$77,Nutrients!$DR$77,Nutrients!$DR$78)))))*S$8))/2000)","v":0.18043580473363321},{"$f":"((SUMPRODUCT(T$9:T$229,Nutrients!$DR$8:$DR$228)+(IF($A$7=Nutrients!$B$8,Nutrients!$DR$8,Nutrients!$DR$9)*T$7)+(((IF($A$8=Nutrients!$B$79,Nutrients!$DR$79,(IF($A$8=Nutrients!$B$77,Nutrients!$DR$77,Nutrients!$DR$78)))))*T$8))/2000)","v":0.16083964513914442},{"$f":"((SUMPRODUCT(U$9:U$229,Nutrients!$DR$8:$DR$228)+(IF($A$7=Nutrients!$B$8,Nutrients!$DR$8,Nutrients!$DR$9)*U$7)+(((IF($A$8=Nutrients!$B$79,Nutrients!$DR$79,(IF($A$8=Nutrients!$B$77,Nutrients!$DR$77,Nutrients!$DR$78)))))*U$8))/2000)","v":0.15287313523350393},null,{"$f":"((SUMPRODUCT(W$9:W$229,Nutrients!$DR$8:$DR$228)+(IF($A$7=Nutrients!$B$8,Nutrients!$DR$8,Nutrients!$DR$9)*W$7)+(((IF($A$8=Nutrients!$B$79,Nutrients!$DR$79,(IF($A$8=Nutrients!$B$77,Nutrients!$DR$77,Nutrients!$DR$78)))))*W$8))/2000)","v":0.29002607080923326},{"$f":"((SUMPRODUCT(X$9:X$229,Nutrients!$DR$8:$DR$228)+(IF($A$7=Nutrients!$B$8,Nutrients!$DR$8,Nutrients!$DR$9)*X$7)+(((IF($A$8=Nutrients!$B$79,Nutrients!$DR$79,(IF($A$8=Nutrients!$B$77,Nutrients!$DR$77,Nutrients!$DR$78)))))*X$8))/2000)","v":0.25048454605647996},{"$f":"((SUMPRODUCT(Y$9:Y$229,Nutrients!$DR$8:$DR$228)+(IF($A$7=Nutrients!$B$8,Nutrients!$DR$8,Nutrients!$DR$9)*Y$7)+(((IF($A$8=Nutrients!$B$79,Nutrients!$DR$79,(IF($A$8=Nutrients!$B$77,Nutrients!$DR$77,Nutrients!$DR$78)))))*Y$8))/2000)","v":0.20936416204908243},{"$f":"((SUMPRODUCT(Z$9:Z$229,Nutrients!$DR$8:$DR$228)+(IF($A$7=Nutrients!$B$8,Nutrients!$DR$8,Nutrients!$DR$9)*Z$7)+(((IF($A$8=Nutrients!$B$79,Nutrients!$DR$79,(IF($A$8=Nutrients!$B$77,Nutrients!$DR$77,Nutrients!$DR$78)))))*Z$8))/2000)","v":0.18013278512287215},{"$f":"((SUMPRODUCT(AA$9:AA$229,Nutrients!$DR$8:$DR$228)+(IF($A$7=Nutrients!$B$8,Nutrients!$DR$8,Nutrients!$DR$9)*AA$7)+(((IF($A$8=Nutrients!$B$79,Nutrients!$DR$79,(IF($A$8=Nutrients!$B$77,Nutrients!$DR$77,Nutrients!$DR$78)))))*AA$8))/2000)","v":0.16052859516000723},{"$f":"((SUMPRODUCT(AB$9:AB$229,Nutrients!$DR$8:$DR$228)+(IF($A$7=Nutrients!$B$8,Nutrients!$DR$8,Nutrients!$DR$9)*AB$7)+(((IF($A$8=Nutrients!$B$79,Nutrients!$DR$79,(IF($A$8=Nutrients!$B$77,Nutrients!$DR$77,Nutrients!$DR$78)))))*AB$8))/2000)","v":0.15287313523350393},null,{"$f":"((SUMPRODUCT(AD$9:AD$229,Nutrients!$DR$8:$DR$228)+(IF($A$7=Nutrients!$B$8,Nutrients!$DR$8,Nutrients!$DR$9)*AD$7)+(((IF($A$8=Nutrients!$B$79,Nutrients!$DR$79,(IF($A$8=Nutrients!$B$77,Nutrients!$DR$77,Nutrients!$DR$78)))))*AD$8))/2000)","v":0.2897196191323918},{"$f":"((SUMPRODUCT(AE$9:AE$229,Nutrients!$DR$8:$DR$228)+(IF($A$7=Nutrients!$B$8,Nutrients!$DR$8,Nutrients!$DR$9)*AE$7)+(((IF($A$8=Nutrients!$B$79,Nutrients!$DR$79,(IF($A$8=Nutrients!$B$77,Nutrients!$DR$77,Nutrients!$DR$78)))))*AE$8))/2000)","v":0.25017865566664527},{"$f":"((SUMPRODUCT(AF$9:AF$229,Nutrients!$DR$8:$DR$228)+(IF($A$7=Nutrients!$B$8,Nutrients!$DR$8,Nutrients!$DR$9)*AF$7)+(((IF($A$8=Nutrients!$B$79,Nutrients!$DR$79,(IF($A$8=Nutrients!$B$77,Nutrients!$DR$77,Nutrients!$DR$78)))))*AF$8))/2000)","v":0.20906294015242968},{"$f":"((SUMPRODUCT(AG$9:AG$229,Nutrients!$DR$8:$DR$228)+(IF($A$7=Nutrients!$B$8,Nutrients!$DR$8,Nutrients!$DR$9)*AG$7)+(((IF($A$8=Nutrients!$B$79,Nutrients!$DR$79,(IF($A$8=Nutrients!$B$77,Nutrients!$DR$77,Nutrients!$DR$78)))))*AG$8))/2000)","v":0.17981958997954944},{"$f":"((SUMPRODUCT(AH$9:AH$229,Nutrients!$DR$8:$DR$228)+(IF($A$7=Nutrients!$B$8,Nutrients!$DR$8,Nutrients!$DR$9)*AH$7)+(((IF($A$8=Nutrients!$B$79,Nutrients!$DR$79,(IF($A$8=Nutrients!$B$77,Nutrients!$DR$77,Nutrients!$DR$78)))))*AH$8))/2000)","v":0.1706672322404624},{"$f":"((SUMPRODUCT(AI$9:AI$229,Nutrients!$DR$8:$DR$228)+(IF($A$7=Nutrients!$B$8,Nutrients!$DR$8,Nutrients!$DR$9)*AI$7)+(((IF($A$8=Nutrients!$B$79,Nutrients!$DR$79,(IF($A$8=Nutrients!$B$77,Nutrients!$DR$77,Nutrients!$DR$78)))))*AI$8))/2000)","v":0.15287313523350393},null,{"$f":"((SUMPRODUCT(AK$9:AK$229,Nutrients!$DR$8:$DR$228)+(IF($A$7=Nutrients!$B$8,Nutrients!$DR$8,Nutrients!$DR$9)*AK$7)+(((IF($A$8=Nutrients!$B$79,Nutrients!$DR$79,(IF($A$8=Nutrients!$B$77,Nutrients!$DR$77,Nutrients!$DR$78)))))*AK$8))/2000)","v":0.28940423361449769},{"$f":"((SUMPRODUCT(AL$9:AL$229,Nutrients!$DR$8:$DR$228)+(IF($A$7=Nutrients!$B$8,Nutrients!$DR$8,Nutrients!$DR$9)*AL$7)+(((IF($A$8=Nutrients!$B$79,Nutrients!$DR$79,(IF($A$8=Nutrients!$B$77,Nutrients!$DR$77,Nutrients!$DR$78)))))*AL$8))/2000)","v":0.24987289711172081},{"$f":"((SUMPRODUCT(AM$9:AM$229,Nutrients!$DR$8:$DR$228)+(IF($A$7=Nutrients!$B$8,Nutrients!$DR$8,Nutrients!$DR$9)*AM$7)+(((IF($A$8=Nutrients!$B$79,Nutrients!$DR$79,(IF($A$8=Nutrients!$B$77,Nutrients!$DR$77,Nutrients!$DR$78)))))*AM$8))/2000)","v":0.20875205551292406},{"$f":"((SUMPRODUCT(AN$9:AN$229,Nutrients!$DR$8:$DR$228)+(IF($A$7=Nutrients!$B$8,Nutrients!$DR$8,Nutrients!$DR$9)*AN$7)+(((IF($A$8=Nutrients!$B$79,Nutrients!$DR$79,(IF($A$8=Nutrients!$B$77,Nutrients!$DR$77,Nutrients!$DR$78)))))*AN$8))/2000)","v":0.1895058823612876},{"$f":"((SUMPRODUCT(AO$9:AO$229,Nutrients!$DR$8:$DR$228)+(IF($A$7=Nutrients!$B$8,Nutrients!$DR$8,Nutrients!$DR$9)*AO$7)+(((IF($A$8=Nutrients!$B$79,Nutrients!$DR$79,(IF($A$8=Nutrients!$B$77,Nutrients!$DR$77,Nutrients!$DR$78)))))*AO$8))/2000)","v":0.18278496498648283},{"$f":"((SUMPRODUCT(AP$9:AP$229,Nutrients!$DR$8:$DR$228)+(IF($A$7=Nutrients!$B$8,Nutrients!$DR$8,Nutrients!$DR$9)*AP$7)+(((IF($A$8=Nutrients!$B$79,Nutrients!$DR$79,(IF($A$8=Nutrients!$B$77,Nutrients!$DR$77,Nutrients!$DR$78)))))*AP$8))/2000)","v":0.15287313523350393},null,{"$f":"((SUMPRODUCT(AR$9:AR$229,Nutrients!$DR$8:$DR$228)+(IF($A$7=Nutrients!$B$8,Nutrients!$DR$8,Nutrients!$DR$9)*AR$7)+(((IF($A$8=Nutrients!$B$79,Nutrients!$DR$79,(IF($A$8=Nutrients!$B$77,Nutrients!$DR$77,Nutrients!$DR$78)))))*AR$8))/2000)","v":0.28910227622777618},{"$f":"((SUMPRODUCT(AS$9:AS$229,Nutrients!$DR$8:$DR$228)+(IF($A$7=Nutrients!$B$8,Nutrients!$DR$8,Nutrients!$DR$9)*AS$7)+(((IF($A$8=Nutrients!$B$79,Nutrients!$DR$79,(IF($A$8=Nutrients!$B$77,Nutrients!$DR$77,Nutrients!$DR$78)))))*AS$8))/2000)","v":0.24956706591016301},{"$f":"((SUMPRODUCT(AT$9:AT$229,Nutrients!$DR$8:$DR$228)+(IF($A$7=Nutrients!$B$8,Nutrients!$DR$8,Nutrients!$DR$9)*AT$7)+(((IF($A$8=Nutrients!$B$79,Nutrients!$DR$79,(IF($A$8=Nutrients!$B$77,Nutrients!$DR$77,Nutrients!$DR$78)))))*AT$8))/2000)","v":0.21173528142680961},{"$f":"((SUMPRODUCT(AU$9:AU$229,Nutrients!$DR$8:$DR$228)+(IF($A$7=Nutrients!$B$8,Nutrients!$DR$8,Nutrients!$DR$9)*AU$7)+(((IF($A$8=Nutrients!$B$79,Nutrients!$DR$79,(IF($A$8=Nutrients!$B$77,Nutrients!$DR$77,Nutrients!$DR$78)))))*AU$8))/2000)","v":0.20162388681282672},{"$f":"((SUMPRODUCT(AV$9:AV$229,Nutrients!$DR$8:$DR$228)+(IF($A$7=Nutrients!$B$8,Nutrients!$DR$8,Nutrients!$DR$9)*AV$7)+(((IF($A$8=Nutrients!$B$79,Nutrients!$DR$79,(IF($A$8=Nutrients!$B$77,Nutrients!$DR$77,Nutrients!$DR$78)))))*AV$8))/2000)","v":0.19490123439834847},{"$f":"((SUMPRODUCT(AW$9:AW$229,Nutrients!$DR$8:$DR$228)+(IF($A$7=Nutrients!$B$8,Nutrients!$DR$8,Nutrients!$DR$9)*AW$7)+(((IF($A$8=Nutrients!$B$79,Nutrients!$DR$79,(IF($A$8=Nutrients!$B$77,Nutrients!$DR$77,Nutrients!$DR$78)))))*AW$8))/2000)","v":0.15287313523350393}]
["Stand. Dig. P with phytase, %",{"$f":"B259+0.11","v":0.39998961246592624},0.36045553392749996,0.32159356316179677,0.2928995518736846,0.27219699119534685,0.26287313523350392,null,{"$f":"I259+0.11","v":0.40063539005684462},0.3610967029969343,0.31997607129447792,0.29074246472987031,0.27114825179142094,0.26287313523350392,null,{"$f":"P259+0.11","v":0.40033124916612572},0.36079124712763638,0.31966863060366835,0.29043580473363323,0.27083964513914444,0.26287313523350392,null,{"$f":"W259+0.11","v":0.40002607080923325},0.36048454605647995,0.31936416204908241,0.29013278512287216,0.27052859516000721,0.26287313523350392,null,{"$f":"AD259+0.11","v":0.39971961913239179},0.36017865566664525,0.3190629401524297,0.28981958997954943,0.28066723224046242,0.26287313523350392,null,{"$f":"AK259+0.11","v":0.39940423361449767},0.35987289711172082,0.31875205551292407,0.29950588236128761,0.29278496498648282,0.26287313523350392,null,{"$f":"AR259+0.11","v":0.39910227622777616},0.35956706591016302,0.32173528142680963,0.31162388681282671,0.30490123439834849,0.26287313523350392]
["Ca:P",{"$f":"B254/B255","v":1.3017138684764227},1.3021894221424188,1.3373095283032115,1.3415645597438779,1.3249751835185248,1.3266649538806439,null,{"$f":"I254/I255","v":1.3035373793667819},1.3057816051169919,1.3413429570053543,1.3427101194906674,1.3275661168740231,1.3266649538806439,null,{"$f":"P254/P255","v":1.30624373983498},1.3088072492290455,1.3448772608278659,1.3466000091149726,1.3317113255983364,1.3266649538806439,null,{"$f":"W254/W255","v":1.3089711851814325},1.3118599486446652,1.3465888892835964,1.3484754424927274,1.3337712039295542,1.3266649538806439,null,{"$f":"AD254/AD255","v":1.3109969508789856},1.3141152064639363,1.3491853939261091,1.3514831520307136,1.346009901834416,1.3266649538806439,null,{"$f":"AK254/AK255","v":1.3127420298103183},1.3159770014902363,1.3514433137183299,1.362000676020483,1.3578996010096973,1.3266649538806439,null,{"$f":"AR254/AR255","v":1.3154779236355407},1.3190648085728622,1.3574925460813911,1.3732712062672605,1.3690396450906208,1.3266649538806439]
["Ca:STTD P",{"$f":"B254/B260","v":1.7400120914159756},1.7384331182595809,1.7871189885452841,1.7907878953733971,1.7690318502967193,1.7699999245766229,null,{"$f":"I254/I260","v":1.7390947522525178},1.7394733945411514,1.7901536857091915,1.7903324404732424,1.7692012645478592,1.7699999245766229,null,{"$f":"P254/P260","v":1.7399665476584543},1.7404475706682694,1.7913130289733596,1.7916037179209594,1.7705536672772642,1.7699999245766229,null,{"$f":"W254/W260","v":1.7408443112740986},1.7414295831001108,1.7900464239206151,1.7902006119957432,1.7690793239772846,1.7699999245766229,null,{"$f":"AD254/AD260","v":1.7407659452194344},1.7413403213708134,1.789965357076617,1.7901875178321547,1.770694657226239,1.7699999245766229,null,{"$f":"AK254/AK260","v":1.7402455279351765},1.7407153408948701,1.7893359709894476,1.7908219341310927,1.7708321564321812,1.7699999245766229,null,{"$f":"AR254/AR260","v":1.741111094535474},1.7416957571781251,1.7909173672144312,1.7909482663247864,1.7709585954998401,1.7699999245766229]
["Cost/ton",{"$f":"(SUMPRODUCT(B$9:B$229,Nutrients!$DX$8:$DX$228)+(IF($A$7=Nutrients!$B$8,Nutrients!$DX$8,Nutrients!$DX$9)*B$7)+(((IF($A$8=Nutrients!$B$79,Nutrients!$DX$79,(IF($A$8=Nutrients!$B$77,Nutrients!$DX$77,Nutrients!$DX$78)))))*B$8))","v":219.06090724554412},{"$f":"(SUMPRODUCT(C$9:C$229,Nutrients!$DX$8:$DX$228)+(IF($A$7=Nutrients!$B$8,Nutrients!$DX$8,Nutrients!$DX$9)*C$7)+(((IF($A$8=Nutrients!$B$79,Nutrients!$DX$79,(IF($A$8=Nutrients!$B$77,Nutrients!$DX$77,Nutrients!$DX$78)))))*C$8))","v":210.20700601537649},{"$f":"(SUMPRODUCT(D$9:D$229,Nutrients!$DX$8:$DX$228)+(IF($A$7=Nutrients!$B$8,Nutrients!$DX$8,Nutrients!$DX$9)*D$7)+(((IF($A$8=Nutrients!$B$79,Nutrients!$DX$79,(IF($A$8=Nutrients!$B$77,Nutrients!$DX$77,Nutrients!$DX$78)))))*D$8))","v":201.64110105420281},{"$f":"(SUMPRODUCT(E$9:E$229,Nutrients!$DX$8:$DX$228)+(IF($A$7=Nutrients!$B$8,Nutrients!$DX$8,Nutrients!$DX$9)*E$7)+(((IF($A$8=Nutrients!$B$79,Nutrients!$DX$79,(IF($A$8=Nutrients!$B$77,Nutrients!$DX$77,Nutrients!$DX$78)))))*E$8))","v":194.82283976807454},{"$f":"(SUMPRODUCT(F$9:F$229,Nutrients!$DX$8:$DX$228)+(IF($A$7=Nutrients!$B$8,Nutrients!$DX$8,Nutrients!$DX$9)*F$7)+(((IF($A$8=Nutrients!$B$79,Nutrients!$DX$79,(IF($A$8=Nutrients!$B$77,Nutrients!$DX$77,Nutrients!$DX$78)))))*F$8))","v":189.69608954240206},{"$f":"(SUMPRODUCT(G$9:G$229,Nutrients!$DX$8:$DX$228)+(IF($A$7=Nutrients!$B$8,Nutrients!$DX$8,Nutrients!$DX$9)*G$7)+(((IF($A$8=Nutrients!$B$79,Nutrients!$DX$79,(IF($A$8=Nutrients!$B$77,Nutrients!$DX$77,Nutrients!$DX$78)))))*G$8))","v":187.52702006837634},null,{"$f":"(SUMPRODUCT(I$9:I$229,Nutrients!$DX$8:$DX$228)+(IF($A$7=Nutrients!$B$8,Nutrients!$DX$8,Nutrients!$DX$9)*I$7)+(((IF($A$8=Nutrients!$B$79,Nutrients!$DX$79,(IF($A$8=Nutrients!$B$77,Nutrients!$DX$77,Nutrients!$DX$78)))))*I$8))","v":221.12341011021954},{"$f":"(SUMPRODUCT(J$9:J$229,Nutrients!$DX$8:$DX$228)+(IF($A$7=Nutrients!$B$8,Nutrients!$DX$8,Nutrients!$DX$9)*J$7)+(((IF($A$8=Nutrients!$B$79,Nutrients!$DX$79,(IF($A$8=Nutrients!$B$77,Nutrients!$DX$77,Nutrients!$DX$78)))))*J$8))","v":212.29854094844274},{"$f":"(SUMPRODUCT(K$9:K$229,Nutrients!$DX$8:$DX$228)+(IF($A$7=Nutrients!$B$8,Nutrients!$DX$8,Nutrients!$DX$9)*K$7)+(((IF($A$8=Nutrients!$B$79,Nutrients!$DX$79,(IF($A$8=Nutrients!$B$77,Nutrients!$DX$77,Nutrients!$DX$78)))))*K$8))","v":203.69694872551875},{"$f":"(SUMPRODUCT(L$9:L$229,Nutrients!$DX$8:$DX$228)+(IF($A$7=Nutrients!$B$8,Nutrients!$DX$8,Nutrients!$DX$9)*L$7)+(((IF($A$8=Nutrients!$B$79,Nutrients!$DX$79,(IF($A$8=Nutrients!$B$77,Nutrients!$DX$77,Nutrients!$DX$78)))))*L$8))","v":196.79554869619744},{"$f":"(SUMPRODUCT(M$9:M$229,Nutrients!$DX$8:$DX$228)+(IF($A$7=Nutrients!$B$8,Nutrients!$DX$8,Nutrients!$DX$9)*M$7)+(((IF($A$8=Nutrients!$B$79,Nutrients!$DX$79,(IF($A$8=Nutrients!$B$77,Nutrients!$DX$77,Nutrients!$DX$78)))))*M$8))","v":191.72160983318818},{"$f":"(SUMPRODUCT(N$9:N$229,Nutrients!$DX$8:$DX$228)+(IF($A$7=Nutrients!$B$8,Nutrients!$DX$8,Nutrients!$DX$9)*N$7)+(((IF($A$8=Nutrients!$B$79,Nutrients!$DX$79,(IF($A$8=Nutrients!$B$77,Nutrients!$DX$77,Nutrients!$DX$78)))))*N$8))","v":187.52702006837634},null,{"$f":"(SUMPRODUCT(P$9:P$229,Nutrients!$DX$8:$DX$228)+(IF($A$7=Nutrients!$B$8,Nutrients!$DX$8,Nutrients!$DX$9)*P$7)+(((IF($A$8=Nutrients!$B$79,Nutrients!$DX$79,(IF($A$8=Nutrients!$B$77,Nutrients!$DX$77,Nutrients!$DX$78)))))*P$8))","v":223.23155012037256},{"$f":"(SUMPRODUCT(Q$9:Q$229,Nutrients!$DX$8:$DX$228)+(IF($A$7=Nutrients!$B$8,Nutrients!$DX$8,Nutrients!$DX$9)*Q$7)+(((IF($A$8=Nutrients!$B$79,Nutrients!$DX$79,(IF($A$8=Nutrients!$B$77,Nutrients!$DX$77,Nutrients!$DX$78)))))*Q$8))","v":214.41900462645975},{"$f":"(SUMPRODUCT(R$9:R$229,Nutrients!$DX$8:$DX$228)+(IF($A$7=Nutrients!$B$8,Nutrients!$DX$8,Nutrients!$DX$9)*R$7)+(((IF($A$8=Nutrients!$B$79,Nutrients!$DX$79,(IF($A$8=Nutrients!$B$77,Nutrients!$DX$77,Nutrients!$DX$78)))))*R$8))","v":205.83601368074918},{"$f":"(SUMPRODUCT(S$9:S$229,Nutrients!$DX$8:$DX$228)+(IF($A$7=Nutrients!$B$8,Nutrients!$DX$8,Nutrients!$DX$9)*S$7)+(((IF($A$8=Nutrients!$B$79,Nutrients!$DX$79,(IF($A$8=Nutrients!$B$77,Nutrients!$DX$77,Nutrients!$DX$78)))))*S$8))","v":198.92729716675862},{"$f":"(SUMPRODUCT(T$9:T$229,Nutrients!$DX$8:$DX$228)+(IF($A$7=Nutrients!$B$8,Nutrients!$DX$8,Nutrients!$DX$9)*T$7)+(((IF($A$8=Nutrients!$B$79,Nutrients!$DX$79,(IF($A$8=Nutrients!$B$77,Nutrients!$DX$77,Nutrients!$DX$78)))))*T$8))","v":193.93421060165059},{"$f":"(SUMPRODUCT(U$9:U$229,Nutrients!$DX$8:$DX$228)+(IF($A$7=Nutrients!$B$8,Nutrients!$DX$8,Nutrients!$DX$9)*U$7)+(((IF($A$8=Nutrients!$B$79,Nutrients!$DX$79,(IF($A$8=Nutrients!$B$77,Nutrients!$DX$77,Nutrients!$DX$78)))))*U$8))","v":187.52702006837634},null,{"$f":"(SUMPRODUCT(W$9:W$229,Nutrients!$DX$8:$DX$228)+(IF($A$7=Nutrients!$B$8,Nutrients!$DX$8,Nutrients!$DX$9)*W$7)+(((IF($A$8=Nutrients!$B$79,Nutrients!$DX$79,(IF($A$8=Nutrients!$B$77,Nutrients!$DX$77,Nutrients!$DX$78)))))*W$8))","v":225.34941301783888},{"$f":"(SUMPRODUCT(X$9:X$229,Nutrients!$DX$8:$DX$228)+(IF($A$7=Nutrients!$B$8,Nutrients!$DX$8,Nutrients!$DX$9)*X$7)+(((IF($A$8=Nutrients!$B$79,Nutrients!$DX$79,(IF($A$8=Nutrients!$B$77,Nutrients!$DX$77,Nutrients!$DX$78)))))*X$8))","v":216.55113804143812},{"$f":"(SUMPRODUCT(Y$9:Y$229,Nutrients!$DX$8:$DX$228)+(IF($A$7=Nutrients!$B$8,Nutrients!$DX$8,Nutrients!$DX$9)*Y$7)+(((IF($A$8=Nutrients!$B$79,Nutrients!$DX$79,(IF($A$8=Nutrients!$B$77,Nutrients!$DX$77,Nutrients!$DX$78)))))*Y$8))","v":207.9614844790747},{"$f":"(SUMPRODUCT(Z$9:Z$229,Nutrients!$DX$8:$DX$228)+(IF($A$7=Nutrients!$B$8,Nutrients!$DX$8,Nutrients!$DX$9)*Z$7)+(((IF($A$8=Nutrients!$B$79,Nutrients!$DX$79,(IF($A$8=Nutrients!$B$77,Nutrients!$DX$77,Nutrients!$DX$78)))))*Z$8))","v":200.96333027121486},{"$f":"(SUMPRODUCT(AA$9:AA$229,Nutrients!$DX$8:$DX$228)+(IF($A$7=Nutrients!$B$8,Nutrients!$DX$8,Nutrients!$DX$9)*AA$7)+(((IF($A$8=Nutrients!$B$79,Nutrients!$DX$79,(IF($A$8=Nutrients!$B$77,Nutrients!$DX$77,Nutrients!$DX$78)))))*AA$8))","v":196.26586095243016},{"$f":"(SUMPRODUCT(AB$9:AB$229,Nutrients!$DX$8:$DX$228)+(IF($A$7=Nutrients!$B$8,Nutrients!$DX$8,Nutrients!$DX$9)*AB$7)+(((IF($A$8=Nutrients!$B$79,Nutrients!$DX$79,(IF($A$8=Nutrients!$B$77,Nutrients!$DX$77,Nutrients!$DX$78)))))*AB$8))","v":187.52702006837634},null,{"$f":"(SUMPRODUCT(AD$9:AD$229,Nutrients!$DX$8:$DX$228)+(IF($A$7=Nutrients!$B$8,Nutrients!$DX$8,Nutrients!$DX$9)*AD$7)+(((IF($A$8=Nutrients!$B$79,Nutrients!$DX$79,(IF($A$8=Nutrients!$B$77,Nutrients!$DX$77,Nutrients!$DX$78)))))*AD$8))","v":227.48633916835263},{"$f":"(SUMPRODUCT(AE$9:AE$229,Nutrients!$DX$8:$DX$228)+(IF($A$7=Nutrients!$B$8,Nutrients!$DX$8,Nutrients!$DX$9)*AE$7)+(((IF($A$8=Nutrients!$B$79,Nutrients!$DX$79,(IF($A$8=Nutrients!$B$77,Nutrients!$DX$77,Nutrients!$DX$78)))))*AE$8))","v":218.68280394303346},{"$f":"(SUMPRODUCT(AF$9:AF$229,Nutrients!$DX$8:$DX$228)+(IF($A$7=Nutrients!$B$8,Nutrients!$DX$8,Nutrients!$DX$9)*AF$7)+(((IF($A$8=Nutrients!$B$79,Nutrients!$DX$79,(IF($A$8=Nutrients!$B$77,Nutrients!$DX$77,Nutrients!$DX$78)))))*AF$8))","v":209.843696131456},{"$f":"(SUMPRODUCT(AG$9:AG$229,Nutrients!$DX$8:$DX$228)+(IF($A$7=Nutrients!$B$8,Nutrients!$DX$8,Nutrients!$DX$9)*AG$7)+(((IF($A$8=Nutrients!$B$79,Nutrients!$DX$79,(IF($A$8=Nutrients!$B$77,Nutrients!$DX$77,Nutrients!$DX$78)))))*AG$8))","v":203.30795459277886},{"$f":"(SUMPRODUCT(AH$9:AH$229,Nutrients!$DX$8:$DX$228)+(IF($A$7=Nutrients!$B$8,Nutrients!$DX$8,Nutrients!$DX$9)*AH$7)+(((IF($A$8=Nutrients!$B$79,Nutrients!$DX$79,(IF($A$8=Nutrients!$B$77,Nutrients!$DX$77,Nutrients!$DX$78)))))*AH$8))","v":199.06270951004774},{"$f":"(SUMPRODUCT(AI$9:AI$229,Nutrients!$DX$8:$DX$228)+(IF($A$7=Nutrients!$B$8,Nutrients!$DX$8,Nutrients!$DX$9)*AI$7)+(((IF($A$8=Nutrients!$B$79,Nutrients!$DX$79,(IF($A$8=Nutrients!$B$77,Nutrients!$DX$77,Nutrients!$DX$78)))))*AI$8))","v":187.52702006837634},null,{"$f":"(SUMPRODUCT(AK$9:AK$229,Nutrients!$DX$8:$DX$228)+(IF($A$7=Nutrients!$B$8,Nutrients!$DX$8,Nutrients!$DX$9)*AK$7)+(((IF($A$8=Nutrients!$B$79,Nutrients!$DX$79,(IF($A$8=Nutrients!$B$77,Nutrients!$DX$77,Nutrients!$DX$78)))))*AK$8))","v":229.71055616173334},{"$f":"(SUMPRODUCT(AL$9:AL$229,Nutrients!$DX$8:$DX$228)+(IF($A$7=Nutrients!$B$8,Nutrients!$DX$8,Nutrients!$DX$9)*AL$7)+(((IF($A$8=Nutrients!$B$79,Nutrients!$DX$79,(IF($A$8=Nutrients!$B$77,Nutrients!$DX$77,Nutrients!$DX$78)))))*AL$8))","v":220.81679931906831},{"$f":"(SUMPRODUCT(AM$9:AM$229,Nutrients!$DX$8:$DX$228)+(IF($A$7=Nutrients!$B$8,Nutrients!$DX$8,Nutrients!$DX$9)*AM$7)+(((IF($A$8=Nutrients!$B$79,Nutrients!$DX$79,(IF($A$8=Nutrients!$B$77,Nutrients!$DX$77,Nutrients!$DX$78)))))*AM$8))","v":212.17023195836035},{"$f":"(SUMPRODUCT(AN$9:AN$229,Nutrients!$DX$8:$DX$228)+(IF($A$7=Nutrients!$B$8,Nutrients!$DX$8,Nutrients!$DX$9)*AN$7)+(((IF($A$8=Nutrients!$B$79,Nutrients!$DX$79,(IF($A$8=Nutrients!$B$77,Nutrients!$DX$77,Nutrients!$DX$78)))))*AN$8))","v":206.01965830470911},{"$f":"(SUMPRODUCT(AO$9:AO$229,Nutrients!$DX$8:$DX$228)+(IF($A$7=Nutrients!$B$8,Nutrients!$DX$8,Nutrients!$DX$9)*AO$7)+(((IF($A$8=Nutrients!$B$79,Nutrients!$DX$79,(IF($A$8=Nutrients!$B$77,Nutrients!$DX$77,Nutrients!$DX$78)))))*AO$8))","v":201.9606867839482},{"$f":"(SUMPRODUCT(AP$9:AP$229,Nutrients!$DX$8:$DX$228)+(IF($A$7=Nutrients!$B$8,Nutrients!$DX$8,Nutrients!$DX$9)*AP$7)+(((IF($A$8=Nutrients!$B$79,Nutrients!$DX$79,(IF($A$8=Nutrients!$B$77,Nutrients!$DX$77,Nutrients!$DX$78)))))*AP$8))","v":187.52702006837634},null,{"$f":"(SUMPRODUCT(AR$9:AR$229,Nutrients!$DX$8:$DX$228)+(IF($A$7=Nutrients!$B$8,Nutrients!$DX$8,Nutrients!$DX$9)*AR$7)+(((IF($A$8=Nutrients!$B$79,Nutrients!$DX$79,(IF($A$8=Nutrients!$B$77,Nutrients!$DX$77,Nutrients!$DX$78)))))*AR$8))","v":231.66117750955806},{"$f":"(SUMPRODUCT(AS$9:AS$229,Nutrients!$DX$8:$DX$228)+(IF($A$7=Nutrients!$B$8,Nutrients!$DX$8,Nutrients!$DX$9)*AS$7)+(((IF($A$8=Nutrients!$B$79,Nutrients!$DX$79,(IF($A$8=Nutrients!$B$77,Nutrients!$DX$77,Nutrients!$DX$78)))))*AS$8))","v":222.80373013763227},{"$f":"(SUMPRODUCT(AT$9:AT$229,Nutrients!$DX$8:$DX$228)+(IF($A$7=Nutrients!$B$8,Nutrients!$DX$8,Nutrients!$DX$9)*AT$7)+(((IF($A$8=Nutrients!$B$79,Nutrients!$DX$79,(IF($A$8=Nutrients!$B$77,Nutrients!$DX$77,Nutrients!$DX$78)))))*AT$8))","v":214.45712763674561},{"$f":"(SUMPRODUCT(AU$9:AU$229,Nutrients!$DX$8:$DX$228)+(IF($A$7=Nutrients!$B$8,Nutrients!$DX$8,Nutrients!$DX$9)*AU$7)+(((IF($A$8=Nutrients!$B$79,Nutrients!$DX$79,(IF($A$8=Nutrients!$B$77,Nutrients!$DX$77,Nutrients!$DX$78)))))*AU$8))","v":208.8931643521492},{"$f":"(SUMPRODUCT(AV$9:AV$229,Nutrients!$DX$8:$DX$228)+(IF($A$7=Nutrients!$B$8,Nutrients!$DX$8,Nutrients!$DX$9)*AV$7)+(((IF($A$8=Nutrients!$B$79,Nutrients!$DX$79,(IF($A$8=Nutrients!$B$77,Nutrients!$DX$77,Nutrients!$DX$78)))))*AV$8))","v":205.00139313868357},{"$f":"(SUMPRODUCT(AW$9:AW$229,Nutrients!$DX$8:$DX$228)+(IF($A$7=Nutrients!$B$8,Nutrients!$DX$8,Nutrients!$DX$9)*AW$7)+(((IF($A$8=Nutrients!$B$79,Nutrients!$DX$79,(IF($A$8=Nutrients!$B$77,Nutrients!$DX$77,Nutrients!$DX$78)))))*AW$8))","v":187.52702006837634}]
["Cost with processing",{"$f":"IF(B$5=\"\",\"\",B263+Nutrients!$DV$5)","v":231.06090724554412},{"$f":"IF(C$5=\"\",\"\",C263+Nutrients!$DV$5)","v":222.20700601537649},{"$f":"IF(D$5=\"\",\"\",D263+Nutrients!$DV$5)","v":213.64110105420281},{"$f":"IF(E$5=\"\",\"\",E263+Nutrients!$DV$5)","v":206.82283976807454},{"$f":"IF(F$5=\"\",\"\",F263+Nutrients!$DV$5)","v":201.69608954240206},{"$f":"IF(G$5=\"\",\"\",G263+Nutrients!$DV$5)","v":199.52702006837634},null,{"$f":"IF(I$5=\"\",\"\",I263+Nutrients!$DV$5)","v":233.12341011021954},{"$f":"IF(J$5=\"\",\"\",J263+Nutrients!$DV$5)","v":224.29854094844274},{"$f":"IF(K$5=\"\",\"\",K263+Nutrients!$DV$5)","v":215.69694872551875},{"$f":"IF(L$5=\"\",\"\",L263+Nutrients!$DV$5)","v":208.79554869619744},{"$f":"IF(M$5=\"\",\"\",M263+Nutrients!$DV$5)","v":203.72160983318818},{"$f":"IF(N$5=\"\",\"\",N263+Nutrients!$DV$5)","v":199.52702006837634},null,{"$f":"IF(P$5=\"\",\"\",P263+Nutrients!$DV$5)","v":235.23155012037256},{"$f":"IF(Q$5=\"\",\"\",Q263+Nutrients!$DV$5)","v":226.41900462645975},{"$f":"IF(R$5=\"\",\"\",R263+Nutrients!$DV$5)","v":217.83601368074918},{"$f":"IF(S$5=\"\",\"\",S263+Nutrients!$DV$5)","v":210.92729716675862},{"$f":"IF(T$5=\"\",\"\",T263+Nutrients!$DV$5)","v":205.93421060165059},{"$f":"IF(U$5=\"\",\"\",U263+Nutrients!$DV$5)","v":199.52702006837634},null,{"$f":"IF(W$5=\"\",\"\",W263+Nutrients!$DV$5)","v":237.34941301783888},{"$f":"IF(X$5=\"\",\"\",X263+Nutrients!$DV$5)","v":228.55113804143812},{"$f":"IF(Y$5=\"\",\"\",Y263+Nutrients!$DV$5)","v":219.9614844790747},{"$f":"IF(Z$5=\"\",\"\",Z263+Nutrients!$DV$5)","v":212.96333027121486},{"$f":"IF(AA$5=\"\",\"\",AA263+Nutrients!$DV$5)","v":208.26586095243016},{"$f":"IF(AB$5=\"\",\"\",AB263+Nutrients!$DV$5)","v":199.52702006837634},null,{"$f":"IF(AD$5=\"\",\"\",AD263+Nutrients!$DV$5)","v":239.48633916835263},{"$f":"IF(AE$5=\"\",\"\",AE263+Nutrients!$DV$5)","v":230.68280394303346},{"$f":"IF(AF$5=\"\",\"\",AF263+Nutrients!$DV$5)","v":221.843696131456},{"$f":"IF(AG$5=\"\",\"\",AG263+Nutrients!$DV$5)","v":215.30795459277886},{"$f":"IF(AH$5=\"\",\"\",AH263+Nutrients!$DV$5)","v":211.06270951004774},{"$f":"IF(AI$5=\"\",\"\",AI263+Nutrients!$DV$5)","v":199.52702006837634},null,{"$f":"IF(AK$5=\"\",\"\",AK263+Nutrients!$DV$5)","v":241.71055616173334},{"$f":"IF(AL$5=\"\",\"\",AL263+Nutrients!$DV$5)","v":232.81679931906831},{"$f":"IF(AM$5=\"\",\"\",AM263+Nutrients!$DV$5)","v":224.17023195836035},{"$f":"IF(AN$5=\"\",\"\",AN263+Nutrients!$DV$5)","v":218.01965830470911},{"$f":"IF(AO$5=\"\",\"\",AO263+Nutrients!$DV$5)","v":213.9606867839482},{"$f":"IF(AP$5=\"\",\"\",AP263+Nutrients!$DV$5)","v":199.52702006837634},null,{"$f":"IF(AR$5=\"\",\"\",AR263+Nutrients!$DV$5)","v":243.66117750955806},{"$f":"IF(AS$5=\"\",\"\",AS263+Nutrients!$DV$5)","v":234.80373013763227},{"$f":"IF(AT$5=\"\",\"\",AT263+Nutrients!$DV$5)","v":226.45712763674561},{"$f":"IF(AU$5=\"\",\"\",AU263+Nutrients!$DV$5)","v":220.8931643521492},{"$f":"IF(AV$5=\"\",\"\",AV263+Nutrients!$DV$5)","v":217.00139313868357},{"$f":"IF(AW$5=\"\",\"\",AW263+Nutrients!$DV$5)","v":199.52702006837634}]
["Feed budget, lb/pig- adjusted for gain ",64.919933148666814,74.047956546633458,95.803407561009578,107.72572383590483,119.6480401107998,148.85493879698549,{"$f":"SUM(B265:G265)","v":611},{"$f":"($B$265*$B$250/I250)-($B$265*$B$250/I250)/(I6-I5)*I268","v":64.661847743707668},{"$f":"($C$265*$C$250/J250)-($C$265*$C$250/J250)/(J6-J5)*J268","v":73.839631445831316},{"$f":"($D$265*$D$250/K250)-($D$265*$D$250/K250)/(K6-K5)*K268","v":95.538431994731098},{"$f":"($E$265*$E$250/L250)-($E$265*$E$250/L250)/(L6-L5)*L268","v":107.36851717976371},{"$f":"($F$265*$F$250/M250)-($F$265*$F$250/M250)/(M6-M5)*M268","v":119.06602662228403},{"$f":"($G$265*$G$250/N250)-($G$265*$G$250/N250)/(N6-N5)*N268","v":148.85493879698549},{"$f":"SUM(I265:N265)","v":609.32939378330332},{"$f":"($B$265*$B$250/P250)-($B$265*$B$250/P250)/(P6-P5)*P268","v":64.39516783310323},{"$f":"($C$265*$C$250/Q250)-($C$265*$C$250/Q250)/(Q6-Q5)*Q268","v":73.623174096984698},{"$f":"($D$265*$D$250/R250)-($D$265*$D$250/R250)/(R6-R5)*R268","v":95.276800183866698},{"$f":"($E$265*$E$250/S250)-($E$265*$E$250/S250)/(S6-S5)*S268","v":107.00781693180063},{"$f":"($F$265*$F$250/T250)-($F$265*$F$250/T250)/(T6-T5)*T268","v":118.4749320166067},{"$f":"($G$265*$G$250/U250)-($G$265*$G$250/U250)/(U6-U5)*U268","v":148.85493879698549},{"$f":"SUM(P265:U265)","v":607.63282985934745},{"$f":"($B$265*$B$250/W250)-($B$265*$B$250/W250)/(W6-W5)*W268","v":64.12699870145272},{"$f":"($C$265*$C$250/X250)-($C$265*$C$250/X250)/(X6-X5)*X268","v":73.40467201363505},{"$f":"($D$265*$D$250/Y250)-($D$265*$D$250/Y250)/(Y6-Y5)*Y268","v":95.016608030100357},{"$f":"($E$265*$E$250/Z250)-($E$265*$E$250/Z250)/(Z6-Z5)*Z268","v":106.64697445661967},{"$f":"($F$265*$F$250/AA250)-($F$265*$F$250/AA250)/(AA6-AA5)*AA268","v":117.87476310098526},{"$f":"($G$265*$G$250/AB250)-($G$265*$G$250/AB250)/(AB6-AB5)*AB268","v":148.85493879698549},{"$f":"SUM(W265:AB265)","v":605.92495509977857},{"$f":"($B$265*$B$250/AD250)-($B$265*$B$250/AD250)/(AD6-AD5)*AD268","v":63.855488888837613},{"$f":"($C$265*$C$250/AE250)-($C$265*$C$250/AE250)/(AE6-AE5)*AE268","v":73.185681511568674},{"$f":"($D$265*$D$250/AF250)-($D$265*$D$250/AF250)/(AF6-AF5)*AF268","v":94.753657163706094},{"$f":"($E$265*$E$250/AG250)-($E$265*$E$250/AG250)/(AG6-AG5)*AG268","v":106.27685287565144},{"$f":"($F$265*$F$250/AH250)-($F$265*$F$250/AH250)/(AH6-AH5)*AH268","v":117.29975771564472},{"$f":"($G$265*$G$250/AI250)-($G$265*$G$250/AI250)/(AI6-AI5)*AI268","v":148.85493879698549},{"$f":"SUM(AD265:AI265)","v":604.22637695239405},{"$f":"($B$265*$B$250/AK250)-($B$265*$B$250/AK250)/(AK6-AK5)*AK268","v":63.570827890920569},{"$f":"($C$265*$C$250/AL250)-($C$265*$C$250/AL250)/(AL6-AL5)*AL268","v":72.966007793673185},{"$f":"($D$265*$D$250/AM250)-($D$265*$D$250/AM250)/(AM6-AM5)*AM268","v":94.491449961372965},{"$f":"($E$265*$E$250/AN250)-($E$265*$E$250/AN250)/(AN6-AN5)*AN268","v":105.93866721130277},{"$f":"($F$265*$F$250/AO250)-($F$265*$F$250/AO250)/(AO6-AO5)*AO268","v":116.71933164459944},{"$f":"($G$265*$G$250/AP250)-($G$265*$G$250/AP250)/(AP6-AP5)*AP268","v":148.85493879698549},{"$f":"SUM(AK265:AP265)","v":602.54122329885445},{"$f":"($B$265*$B$250/AR250)-($B$265*$B$250/AR250)/(AR6-AR5)*AR268","v":63.304326350000231},{"$f":"($C$265*$C$250/AS250)-($C$265*$C$250/AS250)/(AS6-AS5)*AS268","v":72.746447860413653},{"$f":"($D$265*$D$250/AT250)-($D$265*$D$250/AT250)/(AT6-AT5)*AT268","v":94.250062723826375},{"$f":"($E$265*$E$250/AU250)-($E$265*$E$250/AU250)/(AU6-AU5)*AU268","v":105.58373366139794},{"$f":"($F$265*$F$250/AV250)-($F$265*$F$250/AV250)/(AV6-AV5)*AV268","v":116.13478502558662},{"$f":"($G$265*$G$250/AW250)-($G$265*$G$250/AW250)/(AW6-AW5)*AW268","v":148.85493879698549},{"$f":"SUM(AR265:AW265)","v":600.8742944182103}]
["Feed cost, $/pig",{"$f":"IF(B$265=\"\",\"\",B265*B264/2000)","v":7.5002293258255142},8.2269873628920589,10.233772738039312,11.140070059906597,12.066270905880396,14.85029118031153,null,{"$f":"IF(I$265=\"\",\"\",I265*I264/2000)","v":7.5370952250204679},8.2810607987353571,10.303674133641987,11.209034228622933,12.128161309966472,14.85029118031153,null,{"$f":"IF(P$265=\"\",\"\",P265*P264/2000)","v":7.573887574821212},8.3348428982399145,10.377359174155396,11.285434800570009,12.19902080046206,14.85029118031153,null,{"$f":"IF(W$265=\"\",\"\",W265*W264/2000)","v":7.6102527501927595},8.3883606631373961,10.449997076233622,11.355947421815456,12.274644510895222,14.85029118031153,null,{"$f":"IF(AD$265=\"\",\"\",AD265*AD264/2000)","v":7.6462586348965687},8.4413391097852415,10.510250763584686,11.4411259066071,12.378802344168051,14.85029118031153,null,{"$f":"IF(AK$265=\"\",\"\",AK265*AK264/2000)","v":7.6828700825881198},8.4938561968065915,10.591085127961389,11.548356013332262,12.486674179820957,14.85029118031153,null,{"$f":"IF(AR$265=\"\",\"\",AR265*AR264/2000)","v":7.7124033499452},8.540568655943952,10.671799242010415,11.661362516290362,12.600705071206912,14.85029118031153]
["ADG, lb",{"$f":"B342*0.00220462","v":1.669925476729073},1.9189525389204525,2.0860530832674886,2.166293944697927,2.1531120876854954,2.0276943879552971,null,{"$f":"I342*0.00220462","v":1.6629124701852978},1.9132473031982666,2.080400780313989,2.1589864260295188,2.14246496436779,2.0276943879552971,null,{"$f":"P342*0.00220462","v":1.6559454057269123},1.9075775620311994,2.0747406551115013,2.1517297907499815,2.1318369060974223,2.0276943879552971,null,{"$f":"W342*0.00220462","v":1.6489844257671697},1.9019149100730077,2.0690729486326238,2.1445064196202157,2.1211721165973674,2.0276943879552971,null,{"$f":"AD342*0.00220462","v":1.6420376336269249},1.8962540252550233,2.0633650549899287,2.1372550188547921,2.1105447980945446,2.0276943879552971,null,{"$f":"AK342*0.00220462","v":1.6351465950415662},1.8905955811153681,2.0577499760104576,2.1298971316510085,2.1001044777411368,2.0276943879552971,null,{"$f":"AR342*0.00220462","v":1.6281251388194953},1.8848993573449198,2.0520410379053153,2.1227178379408125,2.0896299772767546,2.0276943879552971]
["Change in gain, lb",null,null,null,null,null,null,null,{"$f":"($B$6-$B$5)-(($B$6-$B$5)/$B$267)*I267","v":0.14698573825756256},{"$f":"($C$6-$C$5)-(($C$6-$C$5)/$C$267)*J267","v":0.10405846222170823},{"$f":"($D$6-$D$5)-(($D$6-$D$5)/$D$267)*K267","v":0.10838272523048431},{"$f":"($E$6-$E$5)-(($E$6-$E$5)/$E$267)*L267","v":0.13493124857397021},{"$f":"($F$6-$F$5)-(($F$6-$F$5)/$F$267)*M267","v":0.19779970357512866},{"$f":"($G$6-$G$5)-(($G$6-$G$5)/$G$267)*N267","v":0},null,{"$f":"($B$6-$B$5)-(($B$6-$B$5)/$B$267)*P267","v":0.29300857546891024},{"$f":"($C$6-$C$5)-(($C$6-$C$5)/$C$267)*Q267","v":0.20746953509743093},{"$f":"($D$6-$D$5)-(($D$6-$D$5)/$D$267)*R267","v":0.2169154418308139},{"$f":"($E$6-$E$5)-(($E$6-$E$5)/$E$267)*S267","v":0.26892294988114429},{"$f":"($F$6-$F$5)-(($F$6-$F$5)/$F$267)*T267","v":0.39524522127304351},{"$f":"($G$6-$G$5)-(($G$6-$G$5)/$G$267)*U267","v":0},null,{"$f":"($B$6-$B$5)-(($B$6-$B$5)/$B$267)*W267","v":0.43890388755684739},{"$f":"($C$6-$C$5)-(($C$6-$C$5)/$C$267)*X267","v":0.31075130706256715},{"$f":"($D$6-$D$5)-(($D$6-$D$5)/$D$267)*Y267","v":0.32559352915924933},{"$f":"($E$6-$E$5)-(($E$6-$E$5)/$E$267)*Z267","v":0.40230043814759142},{"$f":"($F$6-$F$5)-(($F$6-$F$5)/$F$267)*AA267","v":0.59337312294711353},{"$f":"($G$6-$G$5)-(($G$6-$G$5)/$G$267)*AB267","v":0},null,{"$f":"($B$6-$B$5)-(($B$6-$B$5)/$B$267)*AD267","v":0.58450183686462509},{"$f":"($C$6-$C$5)-(($C$6-$C$5)/$C$267)*AE267","v":0.41400084795059655},{"$f":"($D$6-$D$5)-(($D$6-$D$5)/$D$267)*AF267","v":0.43504220404636129},{"$f":"($E$6-$E$5)-(($E$6-$E$5)/$E$267)*AG267","v":0.53619548564419972},{"$f":"($F$6-$F$5)-(($F$6-$F$5)/$F$267)*AH267","v":0.79080489742099047},{"$f":"($G$6-$G$5)-(($G$6-$G$5)/$G$267)*AI267","v":0},null,{"$f":"($B$6-$B$5)-(($B$6-$B$5)/$B$267)*AK267","v":0.7289312463493971},{"$f":"($C$6-$C$5)-(($C$6-$C$5)/$C$267)*AL267","v":0.51720587302086329},{"$f":"($D$6-$D$5)-(($D$6-$D$5)/$D$267)*AM267","v":0.54271116078596293},{"$f":"($E$6-$E$5)-(($E$6-$E$5)/$E$267)*AN267","v":0.67205677486198567},{"$f":"($F$6-$F$5)-(($F$6-$F$5)/$F$267)*AO267","v":0.98476266512143695},{"$f":"($G$6-$G$5)-(($G$6-$G$5)/$G$267)*AP267","v":0},null,{"$f":"($B$6-$B$5)-(($B$6-$B$5)/$B$267)*AR267","v":0.8760940815759426},{"$f":"($C$6-$C$5)-(($C$6-$C$5)/$C$267)*AS267","v":0.62109996519984634},{"$f":"($D$6-$D$5)-(($D$6-$D$5)/$D$267)*AT267","v":0.65217986320651988},{"$f":"($E$6-$E$5)-(($E$6-$E$5)/$E$267)*AU267","v":0.80462038614415121},{"$f":"($F$6-$F$5)-(($F$6-$F$5)/$F$267)*AV267","v":1.1793554227263954},{"$f":"($G$6-$G$5)-(($G$6-$G$5)/$G$267)*AW267","v":0}]
["Feed budget, lb/pig- adjusted for energy intake ",64.919933148666814,74.047956546633458,95.803407561009578,107.72572383590483,119.6480401107998,148.85493879698549,{"$f":"SUM(B269:G269)","v":611},{"$f":"($B$269*$B$250/I250)","v":64.934546379077631},{"$f":"($C$269*$C$250/J250)","v":74.059818612609803},{"$f":"($D$269*$D$250/K250)","v":95.798003211222877},{"$f":"($E$269*$E$250/L250)","v":107.73192726619641},{"$f":"($F$269*$F$250/M250)","v":119.65773322635012},{"$f":"($G$269*$G$250/N250)","v":148.85493879698549},{"$f":"SUM(I269:N269)","v":611.03696749244227},{"$f":"($B$269*$B$250/P250)","v":64.938814390163273},{"$f":"($C$269*$C$250/Q250)","v":74.062192630508932},{"$f":"($D$269*$D$250/R250)","v":95.796292562037905},{"$f":"($E$269*$E$250/S250)","v":107.73210783771644},{"$f":"($F$269*$F$250/T250)","v":119.65728123153896},{"$f":"($G$269*$G$250/U250)","v":148.85493879698549},{"$f":"SUM(P269:U269)","v":611.04162744895098},{"$f":"($B$269*$B$250/W250)","v":64.941370703308507},{"$f":"($C$269*$C$250/X250)","v":74.062241682400469},{"$f":"($D$269*$D$250/Y250)","v":95.796375025732644},{"$f":"($E$269*$E$250/Z250)","v":107.73047488785043},{"$f":"($F$269*$F$250/AA250)","v":119.64968579396542},{"$f":"($G$269*$G$250/AB250)","v":148.85493879698549},{"$f":"SUM(W269:AB269)","v":611.03508689024306},{"$f":"($B$269*$B$250/AD250)","v":64.939990132216209},{"$f":"($C$269*$C$250/AE250)","v":74.061727742600752},{"$f":"($D$269*$D$250/AF250)","v":95.795534677301418},{"$f":"($E$269*$E$250/AG250)","v":107.72083855928383},{"$f":"($F$269*$F$250/AH250)","v":119.66556049800599},{"$f":"($G$269*$G$250/AI250)","v":148.85493879698549},{"$f":"SUM(AD269:AI269)","v":611.03859040639372},{"$f":"($B$269*$B$250/AK250)","v":64.922952714896354},{"$f":"($C$269*$C$250/AL250)","v":74.060421651865951},{"$f":"($D$269*$D$250/AM250)","v":95.791122746846256},{"$f":"($E$269*$E$250/AN250)","v":107.74900340436605},{"$f":"($F$269*$F$250/AO250)","v":119.66538164847253},{"$f":"($G$269*$G$250/AP250)","v":148.85493879698549},{"$f":"SUM(AK269:AP269)","v":611.04382096343261},{"$f":"($B$269*$B$250/AR250)","v":64.92959591280966},{"$f":"($C$269*$C$250/AS250)","v":74.060707949851619},{"$f":"($D$269*$D$250/AT250)","v":95.812232948269212},{"$f":"($E$269*$E$250/AU250)","v":107.75120404658445},{"$f":"($F$269*$F$250/AV250)","v":119.66291264887889},{"$f":"($G$269*$G$250/AW250)","v":148.85493879698549},{"$f":"SUM(AR269:AW269)","v":611.07159230337925}]
["Feed cost, $/pig- adjusted for energy intake",{"$f":"B269*B264/2000","v":7.5002293258255142},8.2269873628920589,10.233772738039312,11.140070059906597,12.066270905880396,14.85029118031153,null,{"$f":"I269*I264/2000","v":7.5688814429253926},8.3057546288573505,10.331668493329111,11.246973432822157,12.188433020931109,14.85029118031153,null,{"$f":"P269*P264/2000","v":7.6378289859886319},8.3845439679264775,10.43394124855457,11.36182116214365,12.320763876578338,14.85029118031153,null,{"$f":"W269*W264/2000","v":7.7068981085020765},8.4635048112063309,10.535756429187154,11.471320351908055,12.459472412283979,14.85029118031153,null,{"$f":"AD269*AD264/2000","v":7.7761202511967022},8.5423835102643455,10.625817742850806,11.596576708609172,12.62846871687384,14.85029118031153,null,{"$f":"AK269*AK264/2000","v":7.8462815041897569},8.6212551626040277,10.736759102856148,11.745700452446412,12.801843620885228,14.85029118031153,null,{"$f":"AR269*AR264/2000","v":7.9104108976674956},8.6948652416294792,10.848681532963903,11.900752212302072,12.98350937591966,14.85029118031153]
[]
["Targets"]
["- SID Ile:Lys",0.56000000000000005,0.56000000000000005,0.56000000000000005,0.56000000000000005,0.56000000000000005,0.56000000000000005,null,0.56000000000000005,0.56000000000000005,0.56000000000000005,0.56000000000000005,0.56000000000000005,0.56000000000000005,null,0.56000000000000005,0.56000000000000005,0.56000000000000005,0.56000000000000005,0.56000000000000005,0.56000000000000005,null,0.56000000000000005,0.56000000000000005,0.56000000000000005,0.56000000000000005,0.56000000000000005,0.56000000000000005,null,0.56000000000000005,0.56000000000000005,0.56000000000000005,0.56000000000000005,0.56000000000000005,0.56000000000000005,null,0.56000000000000005,0.56000000000000005,0.56000000000000005,0.56000000000000005,0.56000000000000005,0.56000000000000005,null,0.56000000000000005,0.56000000000000005,0.56000000000000005,0.56000000000000005,0.56000000000000005,0.56000000000000005]
["- SID Leu:Lys"]
["- SID Met:Lys",{"$f":" 0.000000416*((B5+B6)/2)^2 - 0.000036654*((B5+B6)/2) + 0.280606061","v":0.28002731600000003},0.281219626,0.28362810100000002,0.28748674100000005,0.29267658100000005,0.29964938600000002,null,{"$f":" 0.000000416*((I5+I6)/2)^2 - 0.000036654*((I5+I6)/2) + 0.280606061","v":0.28002731600000003},0.281219626,0.28362810100000002,0.28748674100000005,0.29267658100000005,0.29964938600000002,null,{"$f":" 0.000000416*((P5+P6)/2)^2 - 0.000036654*((P5+P6)/2) + 0.280606061","v":0.28002731600000003},0.281219626,0.28362810100000002,0.28748674100000005,0.29267658100000005,0.29964938600000002,null,{"$f":" 0.000000416*((W5+W6)/2)^2 - 0.000036654*((W5+W6)/2) + 0.280606061","v":0.28002731600000003},0.281219626,0.28362810100000002,0.28748674100000005,0.29267658100000005,0.29964938600000002,null,{"$f":" 0.000000416*((AD5+AD6)/2)^2 - 0.000036654*((AD5+AD6)/2) + 0.280606061","v":0.28002731600000003},0.281219626,0.28362810100000002,0.28748674100000005,0.29267658100000005,0.29964938600000002,null,{"$f":" 0.000000416*((AK5+AK6)/2)^2 - 0.000036654*((AK5+AK6)/2) + 0.280606061","v":0.28002731600000003},0.281219626,0.28362810100000002,0.28748674100000005,0.29267658100000005,0.29964938600000002,null,{"$f":" 0.000000416*((AR5+AR6)/2)^2 - 0.000036654*((AR5+AR6)/2) + 0.280606061","v":0.28002731600000003},0.281219626,0.28362810100000002,0.28748674100000005,0.29267658100000005,0.29964938600000002]
["- SID Met & Cys:Lys",0.55900000000000005,0.55900000000000005,0.55900000000000005,0.56899999999999995,0.56899999999999995,0.57899999999999996,null,0.55900000000000005,0.55900000000000005,0.55900000000000005,0.56899999999999995,0.56899999999999995,0.57899999999999996,null,0.55900000000000005,0.55900000000000005,0.55900000000000005,0.56899999999999995,0.56899999999999995,0.57899999999999996,null,0.55900000000000005,0.55900000000000005,0.55900000000000005,0.56899999999999995,0.56899999999999995,0.57899999999999996,null,0.55900000000000005,0.55900000000000005,0.55900000000000005,0.56899999999999995,0.56899999999999995,0.57899999999999996,null,0.55900000000000005,0.55900000000000005,0.55900000000000005,0.56899999999999995,0.56899999999999995,0.57899999999999996,null,0.55900000000000005,0.55900000000000005,0.55900000000000005,0.56899999999999995,0.56899999999999995,0.57899999999999996]
["- SID Thr:Lys",0.61899999999999999,0.61899999999999999,0.61899999999999999,0.629,0.629,0.63900000000000001,null,0.61899999999999999,0.61899999999999999,0.61899999999999999,0.629,0.629,0.63900000000000001,null,0.61899999999999999,0.61899999999999999,0.61899999999999999,0.629,0.629,0.63900000000000001,null,0.61899999999999999,0.61899999999999999,0.61899999999999999,0.629,0.629,0.63900000000000001,null,0.61899999999999999,0.61899999999999999,0.61899999999999999,0.629,0.629,0.63900000000000001,null,0.61899999999999999,0.61899999999999999,0.61899999999999999,0.629,0.629,0.63900000000000001,null,0.61899999999999999,0.61899999999999999,0.61899999999999999,0.629,0.629,0.63900000000000001]
["- SID Trp:Lys",0.189,0.189,0.189,0.189,0.189,0.189,null,0.189,0.189,0.189,0.189,0.189,0.189,null,0.189,0.189,0.189,0.189,0.189,0.189,null,0.189,0.189,0.189,0.189,0.189,0.189,null,0.189,0.189,0.189,0.189,0.189,0.189,null,0.189,0.189,0.189,0.189,0.189,0.189,null,0.189,0.189,0.189,0.189,0.189,0.189]
["- SID Val:Lys",0.67900000000000005,0.67900000000000005,0.67900000000000005,0.67900000000000005,0.67900000000000005,0.67900000000000005,null,0.67900000000000005,0.67900000000000005,0.67900000000000005,0.67900000000000005,0.67900000000000005,0.67900000000000005,null,0.67900000000000005,0.67900000000000005,0.67900000000000005,0.67900000000000005,0.67900000000000005,0.67900000000000005,null,0.67900000000000005,0.67900000000000005,0.67900000000000005,0.67900000000000005,0.67900000000000005,0.67900000000000005,null,0.67900000000000005,0.67900000000000005,0.67900000000000005,0.67900000000000005,0.67900000000000005,0.67900000000000005,null,0.67900000000000005,0.67900000000000005,0.67900000000000005,0.67900000000000005,0.67900000000000005,0.67900000000000005,null,0.67900000000000005,0.67900000000000005,0.67900000000000005,0.67900000000000005,0.67900000000000005,0.67900000000000005]
["- SID His:Lys",0.31,0.31,0.31,0.31,0.31,0.31,null,0.31,0.31,0.31,0.31,0.31,0.31,null,0.31,0.31,0.31,0.31,0.31,0.31,null,0.31,0.31,0.31,0.31,0.31,0.31,null,0.31,0.31,0.31,0.31,0.31,0.31,null,0.31,0.31,0.31,0.31,0.31,0.31,null,0.31,0.31,0.31,0.31,0.31,0.31]
["- Avail P:ME, g/mcal (terminal)",{"$f":"IF(AVERAGE(B5:B6)<51,0.000025*((B6+B5)/2)^2 - 0.01005*((B6+B5)/2) + 1.5955,(0.00000649518*((B5+B6)/2)^2 - 0.00338103746*((B5+B6)/2) + 1.049852))","v":0.85122563532500006},0.77153564522499996,0.70381228360000003,0.65170908920000004,0.62039047080000009,0.60988816362500009,null,{"$f":"IF(AVERAGE(I5:I6)<51,0.000025*((I6+I5)/2)^2 - 0.01005*((I6+I5)/2) + 1.5955,(0.00000649518*((I5+I6)/2)^2 - 0.00338103746*((I5+I6)/2) + 1.049852))","v":0.85122563532500006},0.77153564522499996,0.70381228360000003,0.65170908920000004,0.62039047080000009,0.60988816362500009,null,{"$f":"IF(AVERAGE(P5:P6)<51,0.000025*((P6+P5)/2)^2 - 0.01005*((P6+P5)/2) + 1.5955,(0.00000649518*((P5+P6)/2)^2 - 0.00338103746*((P5+P6)/2) + 1.049852))","v":0.85122563532500006},0.77153564522499996,0.70381228360000003,0.65170908920000004,0.62039047080000009,0.60988816362500009,null,{"$f":"IF(AVERAGE(W5:W6)<51,0.000025*((W6+W5)/2)^2 - 0.01005*((W6+W5)/2) + 1.5955,(0.00000649518*((W5+W6)/2)^2 - 0.00338103746*((W5+W6)/2) + 1.049852))","v":0.85122563532500006},0.77153564522499996,0.70381228360000003,0.65170908920000004,0.62039047080000009,0.60988816362500009,null,{"$f":"IF(AVERAGE(AD5:AD6)<51,0.000025*((AD6+AD5)/2)^2 - 0.01005*((AD6+AD5)/2) + 1.5955,(0.00000649518*((AD5+AD6)/2)^2 - 0.00338103746*((AD5+AD6)/2) + 1.049852))","v":0.85122563532500006},0.77153564522499996,0.70381228360000003,0.65170908920000004,0.62039047080000009,0.60988816362500009,null,{"$f":"IF(AVERAGE(AK5:AK6)<51,0.000025*((AK6+AK5)/2)^2 - 0.01005*((AK6+AK5)/2) + 1.5955,(0.00000649518*((AK5+AK6)/2)^2 - 0.00338103746*((AK5+AK6)/2) + 1.049852))","v":0.85122563532500006},0.77153564522499996,0.70381228360000003,0.65170908920000004,0.62039047080000009,0.60988816362500009,null,{"$f":"IF(AVERAGE(AR5:AR6)<51,0.000025*((AR6+AR5)/2)^2 - 0.01005*((AR6+AR5)/2) + 1.5955,(0.00000649518*((AR5+AR6)/2)^2 - 0.00338103746*((AR5+AR6)/2) + 1.049852))","v":0.85122563532500006},0.77153564522499996,0.70381228360000003,0.65170908920000004,0.62039047080000009,0.60988816362500009]
["- Avail P:ME, g/mcal (Replacements)",{"$f":"IF(AVERAGE(B5:B6)<51,0.000025*((B6+B5)/2)^2 - 0.01005*((B6+B5)/2) + 1.5955,0.00000649518*((B6+B5)/2)^2 - 0.00338103746*((B6+B5)/2) + 1.3529)","v":1.154273635325},1.0745836452249999,1.0068602836,0.95475708920000002,0.92343847080000008,0.91293616362500007,null,{"$f":"IF(AVERAGE(I5:I6)<51,0.000025*((I6+I5)/2)^2 - 0.01005*((I6+I5)/2) + 1.5955,0.00000649518*((I6+I5)/2)^2 - 0.00338103746*((I6+I5)/2) + 1.3529)","v":1.154273635325},1.0745836452249999,1.0068602836,0.95475708920000002,0.92343847080000008,0.91293616362500007,null,{"$f":"IF(AVERAGE(P5:P6)<51,0.000025*((P6+P5)/2)^2 - 0.01005*((P6+P5)/2) + 1.5955,0.00000649518*((P6+P5)/2)^2 - 0.00338103746*((P6+P5)/2) + 1.3529)","v":1.154273635325},1.0745836452249999,1.0068602836,0.95475708920000002,0.92343847080000008,0.91293616362500007,null,{"$f":"IF(AVERAGE(W5:W6)<51,0.000025*((W6+W5)/2)^2 - 0.01005*((W6+W5)/2) + 1.5955,0.00000649518*((W6+W5)/2)^2 - 0.00338103746*((W6+W5)/2) + 1.3529)","v":1.154273635325},1.0745836452249999,1.0068602836,0.95475708920000002,0.92343847080000008,0.91293616362500007,null,{"$f":"IF(AVERAGE(AD5:AD6)<51,0.000025*((AD6+AD5)/2)^2 - 0.01005*((AD6+AD5)/2) + 1.5955,0.00000649518*((AD6+AD5)/2)^2 - 0.00338103746*((AD6+AD5)/2) + 1.3529)","v":1.154273635325},1.0745836452249999,1.0068602836,0.95475708920000002,0.92343847080000008,0.91293616362500007,null,{"$f":"IF(AVERAGE(AK5:AK6)<51,0.000025*((AK6+AK5)/2)^2 - 0.01005*((AK6+AK5)/2) + 1.5955,0.00000649518*((AK6+AK5)/2)^2 - 0.00338103746*((AK6+AK5)/2) + 1.3529)","v":1.154273635325},1.0745836452249999,1.0068602836,0.95475708920000002,0.92343847080000008,0.91293616362500007,null,{"$f":"IF(AVERAGE(AR5:AR6)<51,0.000025*((AR6+AR5)/2)^2 - 0.01005*((AR6+AR5)/2) + 1.5955,0.00000649518*((AR6+AR5)/2)^2 - 0.00338103746*((AR6+AR5)/2) + 1.3529)","v":1.154273635325},1.0745836452249999,1.0068602836,0.95475708920000002,0.92343847080000008,0.91293616362500007]
["- Available P, % (Terminal)",{"$f":"B281*(B246*2.2046)/10000","v":0.27996053561020928},0.25468658901444263,0.23309759512248635,0.21647481730659451,0.20653872384003844,0.20321869012127139,null,{"$f":"I281*(I246*2.2046)/10000","v":0.28247811977581866},0.25698081675063461,0.23523758751434365,0.21843858963327417,0.20840108305293892,0.20321869012127139,null,{"$f":"P281*(P246*2.2046)/10000","v":0.28503460510176915},0.25930487763736321,0.23736716074442257,0.22040704614242446,0.21027683778743048,0.20321869012127139,null,{"$f":"W281*(W246*2.2046)/10000","v":0.28759710388953769},0.26163548039053774,0.23949392553268395,0.22237799205340611,0.21216471620039634,0.20321869012127139,null,{"$f":"AD281*(AD246*2.2046)/10000","v":0.29017389857465892},0.26396809205574945,0.24161904064757719,0.22436539969621266,0.21399177122466886,0.20321869012127139,null,{"$f":"AK281*(AK246*2.2046)/10000","v":0.2928059341322361},0.26630314508303732,0.24375712442232803,0.22626303644607565,0.21583676893486567,0.20321869012127139,null,{"$f":"AR281*(AR246*2.2046)/10000","v":0.29535312248830309},0.26863222250622204,0.24583328767671192,0.22819694588947678,0.21768568005189659,0.20321869012127139]
["- STTD P, % (Terminal)",{"$f":" -0.096629122*LN(AVERAGE(B5:B6)/2.2046) + 0.7201091526","v":0.38948473530861316},0.34911934963648045,0.31899235830889017,0.29470806575817415,0.27531743264453717,0.25825045546730907,null,{"$f":" -0.096629122*LN(AVERAGE(I5:I6)/2.2046) + 0.7201091526","v":0.38948473530861316},0.34911934963648045,0.31899235830889017,0.29470806575817415,0.27531743264453717,0.25825045546730907,null,{"$f":" -0.096629122*LN(AVERAGE(P5:P6)/2.2046) + 0.7201091526","v":0.38948473530861316},0.34911934963648045,0.31899235830889017,0.29470806575817415,0.27531743264453717,0.25825045546730907,null,{"$f":" -0.096629122*LN(AVERAGE(W5:W6)/2.2046) + 0.7201091526","v":0.38948473530861316},0.34911934963648045,0.31899235830889017,0.29470806575817415,0.27531743264453717,0.25825045546730907,null,{"$f":" -0.096629122*LN(AVERAGE(AD5:AD6)/2.2046) + 0.7201091526","v":0.38948473530861316},0.34911934963648045,0.31899235830889017,0.29470806575817415,0.27531743264453717,0.25825045546730907,null,{"$f":" -0.096629122*LN(AVERAGE(AK5:AK6)/2.2046) + 0.7201091526","v":0.38948473530861316},0.34911934963648045,0.31899235830889017,0.29470806575817415,0.27531743264453717,0.25825045546730907,null,{"$f":" -0.096629122*LN(AVERAGE(AR5:AR6)/2.2046) + 0.7201091526","v":0.38948473530861316},0.34911934963648045,0.31899235830889017,0.29470806575817415,0.27531743264453717,0.25825045546730907]
["- Ca:P, Minimum",1,1,1,1,1,1,null,1,1,1,1,1,1,null,1,1,1,1,1,1,null,1,1,1,1,1,1,null,1,1,1,1,1,1,null,1,1,1,1,1,1,null,1,1,1,1,1,1]
["- Ca:P, Maximum",1.5,1.5,1.5,1.5,1.5,1.5,null,1.5,1.5,1.5,1.5,1.5,1.5,null,1.5,1.5,1.5,1.5,1.5,1.5,null,1.5,1.5,1.5,1.5,1.5,1.5,null,1.5,1.5,1.5,1.5,1.5,1.5,null,1.5,1.5,1.5,1.5,1.5,1.5,null,1.5,1.5,1.5,1.5,1.5,1.5]
["NRC Ca, %",{"$f":"-0.12264*LN(AVERAGE(B5:B6)/2.2046) + 1.07262","v":0.65299724345031629},0.60176619843647083,0.56352954534532851,0.53270834386095811,0.50809808976948001,0.48643697935376851,null,{"$f":"-0.12264*LN(AVERAGE(I5:I6)/2.2046) + 1.07262","v":0.65299724345031629},0.60176619843647083,0.56352954534532851,0.53270834386095811,0.50809808976948001,0.48643697935376851,null,{"$f":"-0.12264*LN(AVERAGE(P5:P6)/2.2046) + 1.07262","v":0.65299724345031629},0.60176619843647083,0.56352954534532851,0.53270834386095811,0.50809808976948001,0.48643697935376851,null,{"$f":"-0.12264*LN(AVERAGE(W5:W6)/2.2046) + 1.07262","v":0.65299724345031629},0.60176619843647083,0.56352954534532851,0.53270834386095811,0.50809808976948001,0.48643697935376851,null,{"$f":"-0.12264*LN(AVERAGE(AD5:AD6)/2.2046) + 1.07262","v":0.65299724345031629},0.60176619843647083,0.56352954534532851,0.53270834386095811,0.50809808976948001,0.48643697935376851,null,{"$f":"-0.12264*LN(AVERAGE(AK5:AK6)/2.2046) + 1.07262","v":0.65299724345031629},0.60176619843647083,0.56352954534532851,0.53270834386095811,0.50809808976948001,0.48643697935376851,null,{"$f":"-0.12264*LN(AVERAGE(AR5:AR6)/2.2046) + 1.07262","v":0.65299724345031629},0.60176619843647083,0.56352954534532851,0.53270834386095811,0.50809808976948001,0.48643697935376851]
["NRC STTD P, %",0.4,0.36,0.32,0.28999999999999998,0.27,0.26,null,0.4,0.36,0.32,0.28999999999999998,0.27,0.26,null,0.4,0.36,0.32,0.28999999999999998,0.27,0.26,null,0.4,0.36,0.32,0.28999999999999998,0.27,0.26,null,0.4,0.36,0.32,0.28999999999999998,0.27,0.26,null,0.4,0.36,0.32,0.28999999999999998,0.27,0.26,null,0.4,0.36,0.32,0.28999999999999998,0.27,0.26]
["NRC Ca:STTD P",1.74,1.74,1.79,1.79,1.77,1.77,null,1.74,1.74,1.79,1.79,1.77,1.77,null,1.74,1.74,1.79,1.79,1.77,1.77,null,1.74,1.74,1.79,1.79,1.77,1.77,null,1.74,1.74,1.79,1.79,1.77,1.77,null,1.74,1.74,1.79,1.79,1.77,1.77,null,1.74,1.74,1.79,1.79,1.77,1.77]
["- Lysine:CP, Maximum",7.3,8.3000000000000007,9.3000000000000007,10.3,11.3,11.3,null,7.3,8.3000000000000007,9.3000000000000007,10.3,11.3,11.3,null,7.3,8.3000000000000007,9.3000000000000007,10.3,11.3,11.3,null,7.3,8.3000000000000007,9.3000000000000007,10.3,11.3,11.3,null,7.3,8.3000000000000007,9.3000000000000007,10.3,11.3,11.3,null,7.3,8.3000000000000007,9.3000000000000007,10.3,11.3,11.3,null,7.3,8.3000000000000007,9.3000000000000007,10.3,11.3,11.3]
[]
["Required SID Lys:ME Ratio",{"$f":"IF(AVERAGE(B5:B6)<15,-0.0525*((B5+B6)/2) + 5.0586,IF(AVERAGE(B5:B6)<50,(-0.007855*((B5+B6)/2) + 4.1),(0.000025*((B5+B6)/2)^2 - 0.016*((B5+B6)/2)+ 4.53)*0.87))","v":3.1005984375},2.7428109375000003,2.4186000000000001,2.1402000000000005,1.9314000000000002,1.7858109375,null,{"$f":"IF(AVERAGE(I5:I6)<15,-0.0525*((I5+I6)/2) + 5.0586,IF(AVERAGE(I5:I6)<50,(-0.007855*((I5+I6)/2) + 4.1),(0.000025*((I5+I6)/2)^2 - 0.016*((I5+I6)/2)+ 4.53)*0.87))","v":3.1005984375},2.7428109375000003,2.4186000000000001,2.1402000000000005,1.9314000000000002,1.7858109375,null,{"$f":"IF(AVERAGE(P5:P6)<15,-0.0525*((P5+P6)/2) + 5.0586,IF(AVERAGE(P5:P6)<50,(-0.007855*((P5+P6)/2) + 4.1),(0.000025*((P5+P6)/2)^2 - 0.016*((P5+P6)/2)+ 4.53)*0.87))","v":3.1005984375},2.7428109375000003,2.4186000000000001,2.1402000000000005,1.9314000000000002,1.7858109375,null,{"$f":"IF(AVERAGE(W5:W6)<15,-0.0525*((W5+W6)/2) + 5.0586,IF(AVERAGE(W5:W6)<50,(-0.007855*((W5+W6)/2) + 4.1),(0.000025*((W5+W6)/2)^2 - 0.016*((W5+W6)/2)+ 4.53)*0.87))","v":3.1005984375},2.7428109375000003,2.4186000000000001,2.1402000000000005,1.9314000000000002,1.7858109375,null,{"$f":"IF(AVERAGE(AD5:AD6)<15,-0.0525*((AD5+AD6)/2) + 5.0586,IF(AVERAGE(AD5:AD6)<50,(-0.007855*((AD5+AD6)/2) + 4.1),(0.000025*((AD5+AD6)/2)^2 - 0.016*((AD5+AD6)/2)+ 4.53)*0.87))","v":3.1005984375},2.7428109375000003,2.4186000000000001,2.1402000000000005,1.9314000000000002,1.7858109375,null,{"$f":"IF(AVERAGE(AK5:AK6)<15,-0.0525*((AK5+AK6)/2) + 5.0586,IF(AVERAGE(AK5:AK6)<50,(-0.007855*((AK5+AK6)/2) + 4.1),(0.000025*((AK5+AK6)/2)^2 - 0.016*((AK5+AK6)/2)+ 4.53)*0.87))","v":3.1005984375},2.7428109375000003,2.4186000000000001,2.1402000000000005,1.9314000000000002,1.7858109375,null,{"$f":"IF(AVERAGE(AR5:AR6)<15,-0.0525*((AR5+AR6)/2) + 5.0586,IF(AVERAGE(AR5:AR6)<50,(-0.007855*((AR5+AR6)/2) + 4.1),(0.000025*((AR5+AR6)/2)^2 - 0.016*((AR5+AR6)/2)+ 4.53)*0.87))","v":3.1005984375},2.7428109375000003,2.4186000000000001,2.1402000000000005,1.9314000000000002,1.7858109375]
["Calculated SID Lysine Required, %",{"$f":"IF(B292=\"\",\"\",B246*2.2046*B292/10000)","v":1.0197592309861019},0.90541139130346093,0.80102302375224621,0.71089909850466104,0.6429964836665738,0.59504378206974184,null,{"$f":"IF(I292=\"\",\"\",I246*2.2046*I292/10000)","v":1.0289295581076325},0.91356737601640048,0.80837695280343014,0.71734808871088784,0.64879438152783153,0.59504378206974184,null,{"$f":"IF(P292=\"\",\"\",P246*2.2046*P292/10000)","v":1.0382415831197873},0.92182941764595649,0.81569507715886702,0.72381246168143343,0.65463398233524772,0.59504378206974184,null,{"$f":"IF(W292=\"\",\"\",W246*2.2046*W292/10000)","v":1.0475755122306245},0.93011471562530079,0.82300355050715612,0.73028500979927702,0.66051132658603928,0.59504378206974184,null,{"$f":"IF(AD292=\"\",\"\",AD246*2.2046*AD292/10000)","v":1.0569615142997406},0.93840715529141239,0.83030635487224991,0.73681161792492988,0.66619931542527722,0.59504378206974184,null,{"$f":"IF(AK292=\"\",\"\",AK246*2.2046*AK292/10000)","v":1.0665487318347864},0.94670827400514312,0.83765372509881364,0.74304342018050706,0.67194316344550731,0.59504378206974184,null,{"$f":"IF(AR292=\"\",\"\",AR246*2.2046*AR292/10000)","v":1.0758268925351795},0.9549881494329755,0.84478830993636189,0.74939434125765192,0.67769919468632989,0.59504378206974184]
[]
[]
["Other nutrients, calculated"]
["Other ingredients TID Lysine, %",{"$f":"SUMPRODUCT(B$9:B$229,Nutrients!$DA$8:$DA$228)/2000","v":0.24855419080599378},{"$f":"SUMPRODUCT(C$9:C$229,Nutrients!$DA$8:$DA$228)/2000","v":0.24598837503388346},{"$f":"SUMPRODUCT(D$9:D$229,Nutrients!$DA$8:$DA$228)/2000","v":0.24037497861787219},{"$f":"SUMPRODUCT(E$9:E$229,Nutrients!$DA$8:$DA$228)/2000","v":0.23743614434297908},{"$f":"SUMPRODUCT(F$9:F$229,Nutrients!$DA$8:$DA$228)/2000","v":0.23330638337529597},{"$f":"SUMPRODUCT(G$9:G$229,Nutrients!$DA$8:$DA$228)/2000","v":0.2281455840399364},null,{"$f":"SUMPRODUCT(I$9:I$229,Nutrients!$DA$8:$DA$228)/2000","v":0.29595419080599378},{"$f":"SUMPRODUCT(J$9:J$229,Nutrients!$DA$8:$DA$228)/2000","v":0.29338837503388343},{"$f":"SUMPRODUCT(K$9:K$229,Nutrients!$DA$8:$DA$228)/2000","v":0.28777497861787221},{"$f":"SUMPRODUCT(L$9:L$229,Nutrients!$DA$8:$DA$228)/2000","v":0.2848361443429791},{"$f":"SUMPRODUCT(M$9:M$229,Nutrients!$DA$8:$DA$228)/2000","v":0.28070638337529596},{"$f":"SUMPRODUCT(N$9:N$229,Nutrients!$DA$8:$DA$228)/2000","v":0.2281455840399364},null,{"$f":"SUMPRODUCT(P$9:P$229,Nutrients!$DA$8:$DA$228)/2000","v":0.34335419080599378},{"$f":"SUMPRODUCT(Q$9:Q$229,Nutrients!$DA$8:$DA$228)/2000","v":0.34078837503388343},{"$f":"SUMPRODUCT(R$9:R$229,Nutrients!$DA$8:$DA$228)/2000","v":0.33517497861787215},{"$f":"SUMPRODUCT(S$9:S$229,Nutrients!$DA$8:$DA$228)/2000","v":0.33223614434297905},{"$f":"SUMPRODUCT(T$9:T$229,Nutrients!$DA$8:$DA$228)/2000","v":0.32810638337529602},{"$f":"SUMPRODUCT(U$9:U$229,Nutrients!$DA$8:$DA$228)/2000","v":0.2281455840399364},null,{"$f":"SUMPRODUCT(W$9:W$229,Nutrients!$DA$8:$DA$228)/2000","v":0.39075419080599372},{"$f":"SUMPRODUCT(X$9:X$229,Nutrients!$DA$8:$DA$228)/2000","v":0.38818837503388348},{"$f":"SUMPRODUCT(Y$9:Y$229,Nutrients!$DA$8:$DA$228)/2000","v":0.38257497861787215},{"$f":"SUMPRODUCT(Z$9:Z$229,Nutrients!$DA$8:$DA$228)/2000","v":0.37963614434297904},{"$f":"SUMPRODUCT(AA$9:AA$229,Nutrients!$DA$8:$DA$228)/2000","v":0.37550638337529596},{"$f":"SUMPRODUCT(AB$9:AB$229,Nutrients!$DA$8:$DA$228)/2000","v":0.2281455840399364},null,{"$f":"SUMPRODUCT(AD$9:AD$229,Nutrients!$DA$8:$DA$228)/2000","v":0.43815419080599377},{"$f":"SUMPRODUCT(AE$9:AE$229,Nutrients!$DA$8:$DA$228)/2000","v":0.43558837503388342},{"$f":"SUMPRODUCT(AF$9:AF$229,Nutrients!$DA$8:$DA$228)/2000","v":0.42997497861787221},{"$f":"SUMPRODUCT(AG$9:AG$229,Nutrients!$DA$8:$DA$228)/2000","v":0.4270361443429791},{"$f":"SUMPRODUCT(AH$9:AH$229,Nutrients!$DA$8:$DA$228)/2000","v":0.42290638337529601},{"$f":"SUMPRODUCT(AI$9:AI$229,Nutrients!$DA$8:$DA$228)/2000","v":0.2281455840399364},null,{"$f":"SUMPRODUCT(AK$9:AK$229,Nutrients!$DA$8:$DA$228)/2000","v":0.48555419080599382},{"$f":"SUMPRODUCT(AL$9:AL$229,Nutrients!$DA$8:$DA$228)/2000","v":0.48298837503388348},{"$f":"SUMPRODUCT(AM$9:AM$229,Nutrients!$DA$8:$DA$228)/2000","v":0.4773749786178722},{"$f":"SUMPRODUCT(AN$9:AN$229,Nutrients!$DA$8:$DA$228)/2000","v":0.47443614434297909},{"$f":"SUMPRODUCT(AO$9:AO$229,Nutrients!$DA$8:$DA$228)/2000","v":0.47030638337529601},{"$f":"SUMPRODUCT(AP$9:AP$229,Nutrients!$DA$8:$DA$228)/2000","v":0.2281455840399364},null,{"$f":"SUMPRODUCT(AR$9:AR$229,Nutrients!$DA$8:$DA$228)/2000","v":0.53295419080599382},{"$f":"SUMPRODUCT(AS$9:AS$229,Nutrients!$DA$8:$DA$228)/2000","v":0.53038837503388359},{"$f":"SUMPRODUCT(AT$9:AT$229,Nutrients!$DA$8:$DA$228)/2000","v":0.52477497861787226},{"$f":"SUMPRODUCT(AU$9:AU$229,Nutrients!$DA$8:$DA$228)/2000","v":0.5218361443429792},{"$f":"SUMPRODUCT(AV$9:AV$229,Nutrients!$DA$8:$DA$228)/2000","v":0.51770638337529606},{"$f":"SUMPRODUCT(AW$9:AW$229,Nutrients!$DA$8:$DA$228)/2000","v":0.2281455840399364}]
["Total Lys:ME, g/mcal",{"$f":"IF(B$5=\"\",\"\",B245/(B246*2.2046)*10000)","v":4.0434845516419928},3.5693197159555714,3.1528272192975133,2.8088586731646132,2.5736429013234892,2.4458370650662657,null,{"$f":"IF(I$5=\"\",\"\",I245/(I246*2.2046)*10000)","v":4.0323091111899432},3.5622155309279555,3.1488374182162602,2.8082532866660155,2.5752185320725345,2.4458370650662657,null,{"$f":"IF(P$5=\"\",\"\",P245/(P246*2.2046)*10000)","v":4.0207809333635325},3.5548330949797315,3.1450426720584019,2.8075618430917633,2.5765783146723584,2.4458370650662657,null,{"$f":"IF(W$5=\"\",\"\",W245/(W246*2.2046)*10000)","v":4.0093718685426092},3.547490713246451,3.1413579561417566,2.8068581920746225,2.5777620734582865,2.4458370650662657,null,{"$f":"IF(AD$5=\"\",\"\",AD245/(AD246*2.2046)*10000)","v":3.9979649009332054},3.5402525914631071,3.1377657107801658,2.8059416977353226,2.5795051760984089,2.4458370650662657,null,{"$f":"IF(AK$5=\"\",\"\",AK245/(AK246*2.2046)*10000)","v":3.9859896237134458},3.5331091308468845,3.1340511181367496,2.8060236417305022,2.5809659525798745,2.4458370650662657,null,{"$f":"IF(AR$5=\"\",\"\",AR245/(AR246*2.2046)*10000)","v":3.9753947057160897},3.5261681547282162,3.1311556875424227,2.8056036557981519,2.5823528165599265,2.4458370650662657]
["SID Lys:ME, g/mcal",{"$f":"IF(B$5=\"\",\"\",B236/(B246*2.2046)*10000)","v":3.6063972315389758},3.1769527308876992,2.7987491648675547,2.4869234391841561,2.2730285254980038,2.1560010424593594,null,{"$f":"IF(I$5=\"\",\"\",I236/(I246*2.2046)*10000)","v":3.5742552427285665},3.1485900960267239,2.7732885147103237,2.4645658903799825,2.2527157922164234,2.1560010424593594,null,{"$f":"IF(P$5=\"\",\"\",P236/(P246*2.2046)*10000)","v":3.5421976226512615},3.1203703604120689,2.7484075625108271,2.442554839217792,2.2326206530790094,2.1560010424593594,null,{"$f":"IF(W$5=\"\",\"\",W236/(W246*2.2046)*10000)","v":3.5106365360084459},3.0925746511220087,2.7240010293816943,2.4209063683945251,2.2127544075940224,2.1560010424593594,null,{"$f":"IF(AD$5=\"\",\"\",AD236/(AD246*2.2046)*10000)","v":3.4794614730141036},3.0652464401607324,2.7000425874269176,2.3994622071041447,2.1938619799331884,2.1560010424593594,null,{"$f":"IF(AK$5=\"\",\"\",AK236/(AK246*2.2046)*10000)","v":3.4481845579975618},3.0383691271750042,2.6763595165792666,2.3793382498920996,2.1751085935225247,2.1560010424593594,null,{"$f":"IF(AR$5=\"\",\"\",AR236/(AR246*2.2046)*10000)","v":3.4184466785341434},3.0120260590524119,2.6537565593623835,2.359173980416116,2.1566343307306202,2.1560010424593594]
["Lysine:CP",{"$f":"B245/B253*100","v":6.4370478420696102},6.3776088080946991,6.2955955211424843,6.2166350165421349,6.1431562205295167,6.0778386851000716,null,{"$f":"I245/I253*100","v":6.37084815218142},6.3049180961614244,6.2162640539522558,6.1306164795804952,6.052770100566029,6.0778386851000716,null,{"$f":"P245/P253*100","v":6.3067057997087117},6.2346743221838974,6.1401563589347283,6.048721163939085,5.9659369220641123,6.0778386851000716,null,{"$f":"W245/W253*100","v":6.2446198502468757},6.1669360471271331,6.0669555840387135,5.971227494136838,5.8820690044773354,6.0778386851000716,null,{"$f":"AD245/AD253*100","v":6.1844975565342857},6.1015308173977889,5.9985556470150003,5.8944681967351462,5.804123741029577,6.0778386851000716,null,{"$f":"AK245/AK253*100","v":6.1263841543621478},6.0383531012962353,5.9292692854908218,5.8226410234786341,5.730296001533957,6.0778386851000716,null,{"$f":"AR245/AR253*100","v":6.0702563864006516},5.9777978088090977,5.8634088183468602,5.7545742427694435,5.6590646150332073,6.0778386851000716]
["Crude fat, %",{"$f":"(SUMPRODUCT(B$9:B$229,Nutrients!$K$8:$K$228)+(IF($A$7=Nutrients!$B$8,Nutrients!$K$8,Nutrients!$K$9)*B$7)+(((IF($A$8=Nutrients!$B$79,Nutrients!$K$79,(IF($A$8=Nutrients!$B$77,Nutrients!$K$77,Nutrients!$K$78)))))*B$8))/2000","v":2.7726851771066428},{"$f":"(SUMPRODUCT(C$9:C$229,Nutrients!$K$8:$K$228)+(IF($A$7=Nutrients!$B$8,Nutrients!$K$8,Nutrients!$K$9)*C$7)+(((IF($A$8=Nutrients!$B$79,Nutrients!$K$79,(IF($A$8=Nutrients!$B$77,Nutrients!$K$77,Nutrients!$K$78)))))*C$8))/2000","v":2.8895248185748268},{"$f":"(SUMPRODUCT(D$9:D$229,Nutrients!$K$8:$K$228)+(IF($A$7=Nutrients!$B$8,Nutrients!$K$8,Nutrients!$K$9)*D$7)+(((IF($A$8=Nutrients!$B$79,Nutrients!$K$79,(IF($A$8=Nutrients!$B$77,Nutrients!$K$77,Nutrients!$K$78)))))*D$8))/2000","v":2.9911114387020761},{"$f":"(SUMPRODUCT(E$9:E$229,Nutrients!$K$8:$K$228)+(IF($A$7=Nutrients!$B$8,Nutrients!$K$8,Nutrients!$K$9)*E$7)+(((IF($A$8=Nutrients!$B$79,Nutrients!$K$79,(IF($A$8=Nutrients!$B$77,Nutrients!$K$77,Nutrients!$K$78)))))*E$8))/2000","v":3.0762951752970258},{"$f":"(SUMPRODUCT(F$9:F$229,Nutrients!$K$8:$K$228)+(IF($A$7=Nutrients!$B$8,Nutrients!$K$8,Nutrients!$K$9)*F$7)+(((IF($A$8=Nutrients!$B$79,Nutrients!$K$79,(IF($A$8=Nutrients!$B$77,Nutrients!$K$77,Nutrients!$K$78)))))*F$8))/2000","v":3.1350305214620882},{"$f":"(SUMPRODUCT(G$9:G$229,Nutrients!$K$8:$K$228)+(IF($A$7=Nutrients!$B$8,Nutrients!$K$8,Nutrients!$K$9)*G$7)+(((IF($A$8=Nutrients!$B$79,Nutrients!$K$79,(IF($A$8=Nutrients!$B$77,Nutrients!$K$77,Nutrients!$K$78)))))*G$8))/2000","v":3.1635989425624271},null,{"$f":"(SUMPRODUCT(I$9:I$229,Nutrients!$K$8:$K$228)+(IF($A$7=Nutrients!$B$8,Nutrients!$K$8,Nutrients!$K$9)*I$7)+(((IF($A$8=Nutrients!$B$79,Nutrients!$K$79,(IF($A$8=Nutrients!$B$77,Nutrients!$K$77,Nutrients!$K$78)))))*I$8))/2000","v":3.6711713178515257},{"$f":"(SUMPRODUCT(J$9:J$229,Nutrients!$K$8:$K$228)+(IF($A$7=Nutrients!$B$8,Nutrients!$K$8,Nutrients!$K$9)*J$7)+(((IF($A$8=Nutrients!$B$79,Nutrients!$K$79,(IF($A$8=Nutrients!$B$77,Nutrients!$K$77,Nutrients!$K$78)))))*J$8))/2000","v":3.792400289663433},{"$f":"(SUMPRODUCT(K$9:K$229,Nutrients!$K$8:$K$228)+(IF($A$7=Nutrients!$B$8,Nutrients!$K$8,Nutrients!$K$9)*K$7)+(((IF($A$8=Nutrients!$B$79,Nutrients!$K$79,(IF($A$8=Nutrients!$B$77,Nutrients!$K$77,Nutrients!$K$78)))))*K$8))/2000","v":3.8975528769669689},{"$f":"(SUMPRODUCT(L$9:L$229,Nutrients!$K$8:$K$228)+(IF($A$7=Nutrients!$B$8,Nutrients!$K$8,Nutrients!$K$9)*L$7)+(((IF($A$8=Nutrients!$B$79,Nutrients!$K$79,(IF($A$8=Nutrients!$B$77,Nutrients!$K$77,Nutrients!$K$78)))))*L$8))/2000","v":3.972947157110859},{"$f":"(SUMPRODUCT(M$9:M$229,Nutrients!$K$8:$K$228)+(IF($A$7=Nutrients!$B$8,Nutrients!$K$8,Nutrients!$K$9)*M$7)+(((IF($A$8=Nutrients!$B$79,Nutrients!$K$79,(IF($A$8=Nutrients!$B$77,Nutrients!$K$77,Nutrients!$K$78)))))*M$8))/2000","v":4.0350426378319115},{"$f":"(SUMPRODUCT(N$9:N$229,Nutrients!$K$8:$K$228)+(IF($A$7=Nutrients!$B$8,Nutrients!$K$8,Nutrients!$K$9)*N$7)+(((IF($A$8=Nutrients!$B$79,Nutrients!$K$79,(IF($A$8=Nutrients!$B$77,Nutrients!$K$77,Nutrients!$K$78)))))*N$8))/2000","v":3.1635989425624271},null,{"$f":"(SUMPRODUCT(P$9:P$229,Nutrients!$K$8:$K$228)+(IF($A$7=Nutrients!$B$8,Nutrients!$K$8,Nutrients!$K$9)*P$7)+(((IF($A$8=Nutrients!$B$79,Nutrients!$K$79,(IF($A$8=Nutrients!$B$77,Nutrients!$K$77,Nutrients!$K$78)))))*P$8))/2000","v":4.5752487345595556},{"$f":"(SUMPRODUCT(Q$9:Q$229,Nutrients!$K$8:$K$228)+(IF($A$7=Nutrients!$B$8,Nutrients!$K$8,Nutrients!$K$9)*Q$7)+(((IF($A$8=Nutrients!$B$79,Nutrients!$K$79,(IF($A$8=Nutrients!$B$77,Nutrients!$K$77,Nutrients!$K$78)))))*Q$8))/2000","v":4.6982485202031041},{"$f":"(SUMPRODUCT(R$9:R$229,Nutrients!$K$8:$K$228)+(IF($A$7=Nutrients!$B$8,Nutrients!$K$8,Nutrients!$K$9)*R$7)+(((IF($A$8=Nutrients!$B$79,Nutrients!$K$79,(IF($A$8=Nutrients!$B$77,Nutrients!$K$77,Nutrients!$K$78)))))*R$8))/2000","v":4.8060739642680526},{"$f":"(SUMPRODUCT(S$9:S$229,Nutrients!$K$8:$K$228)+(IF($A$7=Nutrients!$B$8,Nutrients!$K$8,Nutrients!$K$9)*S$7)+(((IF($A$8=Nutrients!$B$79,Nutrients!$K$79,(IF($A$8=Nutrients!$B$77,Nutrients!$K$77,Nutrients!$K$78)))))*S$8))/2000","v":4.8804169232959946},{"$f":"(SUMPRODUCT(T$9:T$229,Nutrients!$K$8:$K$228)+(IF($A$7=Nutrients!$B$8,Nutrients!$K$8,Nutrients!$K$9)*T$7)+(((IF($A$8=Nutrients!$B$79,Nutrients!$K$79,(IF($A$8=Nutrients!$B$77,Nutrients!$K$77,Nutrients!$K$78)))))*T$8))/2000","v":4.9415614866287925},{"$f":"(SUMPRODUCT(U$9:U$229,Nutrients!$K$8:$K$228)+(IF($A$7=Nutrients!$B$8,Nutrients!$K$8,Nutrients!$K$9)*U$7)+(((IF($A$8=Nutrients!$B$79,Nutrients!$K$79,(IF($A$8=Nutrients!$B$77,Nutrients!$K$77,Nutrients!$K$78)))))*U$8))/2000","v":3.1635989425624271},null,{"$f":"(SUMPRODUCT(W$9:W$229,Nutrients!$K$8:$K$228)+(IF($A$7=Nutrients!$B$8,Nutrients!$K$8,Nutrients!$K$9)*W$7)+(((IF($A$8=Nutrients!$B$79,Nutrients!$K$79,(IF($A$8=Nutrients!$B$77,Nutrients!$K$77,Nutrients!$K$78)))))*W$8))/2000","v":5.4807232534556682},{"$f":"(SUMPRODUCT(X$9:X$229,Nutrients!$K$8:$K$228)+(IF($A$7=Nutrients!$B$8,Nutrients!$K$8,Nutrients!$K$9)*X$7)+(((IF($A$8=Nutrients!$B$79,Nutrients!$K$79,(IF($A$8=Nutrients!$B$77,Nutrients!$K$77,Nutrients!$K$78)))))*X$8))/2000","v":5.6057735998635767},{"$f":"(SUMPRODUCT(Y$9:Y$229,Nutrients!$K$8:$K$228)+(IF($A$7=Nutrients!$B$8,Nutrients!$K$8,Nutrients!$K$9)*Y$7)+(((IF($A$8=Nutrients!$B$79,Nutrients!$K$79,(IF($A$8=Nutrients!$B$77,Nutrients!$K$77,Nutrients!$K$78)))))*Y$8))/2000","v":5.7125326290062963},{"$f":"(SUMPRODUCT(Z$9:Z$229,Nutrients!$K$8:$K$228)+(IF($A$7=Nutrients!$B$8,Nutrients!$K$8,Nutrients!$K$9)*Z$7)+(((IF($A$8=Nutrients!$B$79,Nutrients!$K$79,(IF($A$8=Nutrients!$B$77,Nutrients!$K$77,Nutrients!$K$78)))))*Z$8))/2000","v":5.7892527689027142},{"$f":"(SUMPRODUCT(AA$9:AA$229,Nutrients!$K$8:$K$228)+(IF($A$7=Nutrients!$B$8,Nutrients!$K$8,Nutrients!$K$9)*AA$7)+(((IF($A$8=Nutrients!$B$79,Nutrients!$K$79,(IF($A$8=Nutrients!$B$77,Nutrients!$K$77,Nutrients!$K$78)))))*AA$8))/2000","v":5.8486380163695797},{"$f":"(SUMPRODUCT(AB$9:AB$229,Nutrients!$K$8:$K$228)+(IF($A$7=Nutrients!$B$8,Nutrients!$K$8,Nutrients!$K$9)*AB$7)+(((IF($A$8=Nutrients!$B$79,Nutrients!$K$79,(IF($A$8=Nutrients!$B$77,Nutrients!$K$77,Nutrients!$K$78)))))*AB$8))/2000","v":3.1635989425624271},null,{"$f":"(SUMPRODUCT(AD$9:AD$229,Nutrients!$K$8:$K$228)+(IF($A$7=Nutrients!$B$8,Nutrients!$K$8,Nutrients!$K$9)*AD$7)+(((IF($A$8=Nutrients!$B$79,Nutrients!$K$79,(IF($A$8=Nutrients!$B$77,Nutrients!$K$77,Nutrients!$K$78)))))*AD$8))/2000","v":6.3888824866548513},{"$f":"(SUMPRODUCT(AE$9:AE$229,Nutrients!$K$8:$K$228)+(IF($A$7=Nutrients!$B$8,Nutrients!$K$8,Nutrients!$K$9)*AE$7)+(((IF($A$8=Nutrients!$B$79,Nutrients!$K$79,(IF($A$8=Nutrients!$B$77,Nutrients!$K$77,Nutrients!$K$78)))))*AE$8))/2000","v":6.5131769767994037},{"$f":"(SUMPRODUCT(AF$9:AF$229,Nutrients!$K$8:$K$228)+(IF($A$7=Nutrients!$B$8,Nutrients!$K$8,Nutrients!$K$9)*AF$7)+(((IF($A$8=Nutrients!$B$79,Nutrients!$K$79,(IF($A$8=Nutrients!$B$77,Nutrients!$K$77,Nutrients!$K$78)))))*AF$8))/2000","v":6.6235904113595403},{"$f":"(SUMPRODUCT(AG$9:AG$229,Nutrients!$K$8:$K$228)+(IF($A$7=Nutrients!$B$8,Nutrients!$K$8,Nutrients!$K$9)*AG$7)+(((IF($A$8=Nutrients!$B$79,Nutrients!$K$79,(IF($A$8=Nutrients!$B$77,Nutrients!$K$77,Nutrients!$K$78)))))*AG$8))/2000","v":6.6982480806140074},{"$f":"(SUMPRODUCT(AH$9:AH$229,Nutrients!$K$8:$K$228)+(IF($A$7=Nutrients!$B$8,Nutrients!$K$8,Nutrients!$K$9)*AH$7)+(((IF($A$8=Nutrients!$B$79,Nutrients!$K$79,(IF($A$8=Nutrients!$B$77,Nutrients!$K$77,Nutrients!$K$78)))))*AH$8))/2000","v":6.7873461210862658},{"$f":"(SUMPRODUCT(AI$9:AI$229,Nutrients!$K$8:$K$228)+(IF($A$7=Nutrients!$B$8,Nutrients!$K$8,Nutrients!$K$9)*AI$7)+(((IF($A$8=Nutrients!$B$79,Nutrients!$K$79,(IF($A$8=Nutrients!$B$77,Nutrients!$K$77,Nutrients!$K$78)))))*AI$8))/2000","v":3.1635989425624271},null,{"$f":"(SUMPRODUCT(AK$9:AK$229,Nutrients!$K$8:$K$228)+(IF($A$7=Nutrients!$B$8,Nutrients!$K$8,Nutrients!$K$9)*AK$7)+(((IF($A$8=Nutrients!$B$79,Nutrients!$K$79,(IF($A$8=Nutrients!$B$77,Nutrients!$K$77,Nutrients!$K$78)))))*AK$8))/2000","v":7.3095574628317488},{"$f":"(SUMPRODUCT(AL$9:AL$229,Nutrients!$K$8:$K$228)+(IF($A$7=Nutrients!$B$8,Nutrients!$K$8,Nutrients!$K$9)*AL$7)+(((IF($A$8=Nutrients!$B$79,Nutrients!$K$79,(IF($A$8=Nutrients!$B$77,Nutrients!$K$77,Nutrients!$K$78)))))*AL$8))/2000","v":7.4208878184611544},{"$f":"(SUMPRODUCT(AM$9:AM$229,Nutrients!$K$8:$K$228)+(IF($A$7=Nutrients!$B$8,Nutrients!$K$8,Nutrients!$K$9)*AM$7)+(((IF($A$8=Nutrients!$B$79,Nutrients!$K$79,(IF($A$8=Nutrients!$B$77,Nutrients!$K$77,Nutrients!$K$78)))))*AM$8))/2000","v":7.5299592867460463},{"$f":"(SUMPRODUCT(AN$9:AN$229,Nutrients!$K$8:$K$228)+(IF($A$7=Nutrients!$B$8,Nutrients!$K$8,Nutrients!$K$9)*AN$7)+(((IF($A$8=Nutrients!$B$79,Nutrients!$K$79,(IF($A$8=Nutrients!$B$77,Nutrients!$K$77,Nutrients!$K$78)))))*AN$8))/2000","v":7.6282383083872691},{"$f":"(SUMPRODUCT(AO$9:AO$229,Nutrients!$K$8:$K$228)+(IF($A$7=Nutrients!$B$8,Nutrients!$K$8,Nutrients!$K$9)*AO$7)+(((IF($A$8=Nutrients!$B$79,Nutrients!$K$79,(IF($A$8=Nutrients!$B$77,Nutrients!$K$77,Nutrients!$K$78)))))*AO$8))/2000","v":7.7409126362231016},{"$f":"(SUMPRODUCT(AP$9:AP$229,Nutrients!$K$8:$K$228)+(IF($A$7=Nutrients!$B$8,Nutrients!$K$8,Nutrients!$K$9)*AP$7)+(((IF($A$8=Nutrients!$B$79,Nutrients!$K$79,(IF($A$8=Nutrients!$B$77,Nutrients!$K$77,Nutrients!$K$78)))))*AP$8))/2000","v":3.1635989425624271},null,{"$f":"(SUMPRODUCT(AR$9:AR$229,Nutrients!$K$8:$K$228)+(IF($A$7=Nutrients!$B$8,Nutrients!$K$8,Nutrients!$K$9)*AR$7)+(((IF($A$8=Nutrients!$B$79,Nutrients!$K$79,(IF($A$8=Nutrients!$B$77,Nutrients!$K$77,Nutrients!$K$78)))))*AR$8))/2000","v":8.2126495220058491},{"$f":"(SUMPRODUCT(AS$9:AS$229,Nutrients!$K$8:$K$228)+(IF($A$7=Nutrients!$B$8,Nutrients!$K$8,Nutrients!$K$9)*AS$7)+(((IF($A$8=Nutrients!$B$79,Nutrients!$K$79,(IF($A$8=Nutrients!$B$77,Nutrients!$K$77,Nutrients!$K$78)))))*AS$8))/2000","v":8.3291964730234405},{"$f":"(SUMPRODUCT(AT$9:AT$229,Nutrients!$K$8:$K$228)+(IF($A$7=Nutrients!$B$8,Nutrients!$K$8,Nutrients!$K$9)*AT$7)+(((IF($A$8=Nutrients!$B$79,Nutrients!$K$79,(IF($A$8=Nutrients!$B$77,Nutrients!$K$77,Nutrients!$K$78)))))*AT$8))/2000","v":8.4367691585733695},{"$f":"(SUMPRODUCT(AU$9:AU$229,Nutrients!$K$8:$K$228)+(IF($A$7=Nutrients!$B$8,Nutrients!$K$8,Nutrients!$K$9)*AU$7)+(((IF($A$8=Nutrients!$B$79,Nutrients!$K$79,(IF($A$8=Nutrients!$B$77,Nutrients!$K$77,Nutrients!$K$78)))))*AU$8))/2000","v":8.5810738429376237},{"$f":"(SUMPRODUCT(AV$9:AV$229,Nutrients!$K$8:$K$228)+(IF($A$7=Nutrients!$B$8,Nutrients!$K$8,Nutrients!$K$9)*AV$7)+(((IF($A$8=Nutrients!$B$79,Nutrients!$K$79,(IF($A$8=Nutrients!$B$77,Nutrients!$K$77,Nutrients!$K$78)))))*AV$8))/2000","v":8.6946169116219973},{"$f":"(SUMPRODUCT(AW$9:AW$229,Nutrients!$K$8:$K$228)+(IF($A$7=Nutrients!$B$8,Nutrients!$K$8,Nutrients!$K$9)*AW$7)+(((IF($A$8=Nutrients!$B$79,Nutrients!$K$79,(IF($A$8=Nutrients!$B$77,Nutrients!$K$77,Nutrients!$K$78)))))*AW$8))/2000","v":3.1635989425624271}]
["Crude fiber, %",{"$f":"(SUMPRODUCT(B$9:B$229,Nutrients!$J$8:$J$228)+(IF($A$7=Nutrients!$B$8,Nutrients!$J$8,Nutrients!$J$9)*B$7)+(((IF($A$8=Nutrients!$B$79,Nutrients!$J$79,(IF($A$8=Nutrients!$B$77,Nutrients!$J$77,Nutrients!$J$78)))))*B$8))/2000","v":2.513641643841301},{"$f":"(SUMPRODUCT(C$9:C$229,Nutrients!$J$8:$J$228)+(IF($A$7=Nutrients!$B$8,Nutrients!$J$8,Nutrients!$J$9)*C$7)+(((IF($A$8=Nutrients!$B$79,Nutrients!$J$79,(IF($A$8=Nutrients!$B$77,Nutrients!$J$77,Nutrients!$J$78)))))*C$8))/2000","v":2.4130399696967721},{"$f":"(SUMPRODUCT(D$9:D$229,Nutrients!$J$8:$J$228)+(IF($A$7=Nutrients!$B$8,Nutrients!$J$8,Nutrients!$J$9)*D$7)+(((IF($A$8=Nutrients!$B$79,Nutrients!$J$79,(IF($A$8=Nutrients!$B$77,Nutrients!$J$77,Nutrients!$J$78)))))*D$8))/2000","v":2.3268016052434768},{"$f":"(SUMPRODUCT(E$9:E$229,Nutrients!$J$8:$J$228)+(IF($A$7=Nutrients!$B$8,Nutrients!$J$8,Nutrients!$J$9)*E$7)+(((IF($A$8=Nutrients!$B$79,Nutrients!$J$79,(IF($A$8=Nutrients!$B$77,Nutrients!$J$77,Nutrients!$J$78)))))*E$8))/2000","v":2.2539022615675171},{"$f":"(SUMPRODUCT(F$9:F$229,Nutrients!$J$8:$J$228)+(IF($A$7=Nutrients!$B$8,Nutrients!$J$8,Nutrients!$J$9)*F$7)+(((IF($A$8=Nutrients!$B$79,Nutrients!$J$79,(IF($A$8=Nutrients!$B$77,Nutrients!$J$77,Nutrients!$J$78)))))*F$8))/2000","v":2.2063713720102678},{"$f":"(SUMPRODUCT(G$9:G$229,Nutrients!$J$8:$J$228)+(IF($A$7=Nutrients!$B$8,Nutrients!$J$8,Nutrients!$J$9)*G$7)+(((IF($A$8=Nutrients!$B$79,Nutrients!$J$79,(IF($A$8=Nutrients!$B$77,Nutrients!$J$77,Nutrients!$J$78)))))*G$8))/2000","v":2.1815237128108387},null,{"$f":"(SUMPRODUCT(I$9:I$229,Nutrients!$J$8:$J$228)+(IF($A$7=Nutrients!$B$8,Nutrients!$J$8,Nutrients!$J$9)*I$7)+(((IF($A$8=Nutrients!$B$79,Nutrients!$J$79,(IF($A$8=Nutrients!$B$77,Nutrients!$J$77,Nutrients!$J$78)))))*I$8))/2000","v":2.7578601504386424},{"$f":"(SUMPRODUCT(J$9:J$229,Nutrients!$J$8:$J$228)+(IF($A$7=Nutrients!$B$8,Nutrients!$J$8,Nutrients!$J$9)*J$7)+(((IF($A$8=Nutrients!$B$79,Nutrients!$J$79,(IF($A$8=Nutrients!$B$77,Nutrients!$J$77,Nutrients!$J$78)))))*J$8))/2000","v":2.6571364620412314},{"$f":"(SUMPRODUCT(K$9:K$229,Nutrients!$J$8:$J$228)+(IF($A$7=Nutrients!$B$8,Nutrients!$J$8,Nutrients!$J$9)*K$7)+(((IF($A$8=Nutrients!$B$79,Nutrients!$J$79,(IF($A$8=Nutrients!$B$77,Nutrients!$J$77,Nutrients!$J$78)))))*K$8))/2000","v":2.5711183267223752},{"$f":"(SUMPRODUCT(L$9:L$229,Nutrients!$J$8:$J$228)+(IF($A$7=Nutrients!$B$8,Nutrients!$J$8,Nutrients!$J$9)*L$7)+(((IF($A$8=Nutrients!$B$79,Nutrients!$J$79,(IF($A$8=Nutrients!$B$77,Nutrients!$J$77,Nutrients!$J$78)))))*L$8))/2000","v":2.4985450150950168},{"$f":"(SUMPRODUCT(M$9:M$229,Nutrients!$J$8:$J$228)+(IF($A$7=Nutrients!$B$8,Nutrients!$J$8,Nutrients!$J$9)*M$7)+(((IF($A$8=Nutrients!$B$79,Nutrients!$J$79,(IF($A$8=Nutrients!$B$77,Nutrients!$J$77,Nutrients!$J$78)))))*M$8))/2000","v":2.4507798641422696},{"$f":"(SUMPRODUCT(N$9:N$229,Nutrients!$J$8:$J$228)+(IF($A$7=Nutrients!$B$8,Nutrients!$J$8,Nutrients!$J$9)*N$7)+(((IF($A$8=Nutrients!$B$79,Nutrients!$J$79,(IF($A$8=Nutrients!$B$77,Nutrients!$J$77,Nutrients!$J$78)))))*N$8))/2000","v":2.1815237128108387},null,{"$f":"(SUMPRODUCT(P$9:P$229,Nutrients!$J$8:$J$228)+(IF($A$7=Nutrients!$B$8,Nutrients!$J$8,Nutrients!$J$9)*P$7)+(((IF($A$8=Nutrients!$B$79,Nutrients!$J$79,(IF($A$8=Nutrients!$B$77,Nutrients!$J$77,Nutrients!$J$78)))))*P$8))/2000","v":3.0020602965609049},{"$f":"(SUMPRODUCT(Q$9:Q$229,Nutrients!$J$8:$J$228)+(IF($A$7=Nutrients!$B$8,Nutrients!$J$8,Nutrients!$J$9)*Q$7)+(((IF($A$8=Nutrients!$B$79,Nutrients!$J$79,(IF($A$8=Nutrients!$B$77,Nutrients!$J$77,Nutrients!$J$78)))))*Q$8))/2000","v":2.9013017930651079},{"$f":"(SUMPRODUCT(R$9:R$229,Nutrients!$J$8:$J$228)+(IF($A$7=Nutrients!$B$8,Nutrients!$J$8,Nutrients!$J$9)*R$7)+(((IF($A$8=Nutrients!$B$79,Nutrients!$J$79,(IF($A$8=Nutrients!$B$77,Nutrients!$J$77,Nutrients!$J$78)))))*R$8))/2000","v":2.8152311080261985},{"$f":"(SUMPRODUCT(S$9:S$229,Nutrients!$J$8:$J$228)+(IF($A$7=Nutrients!$B$8,Nutrients!$J$8,Nutrients!$J$9)*S$7)+(((IF($A$8=Nutrients!$B$79,Nutrients!$J$79,(IF($A$8=Nutrients!$B$77,Nutrients!$J$77,Nutrients!$J$78)))))*S$8))/2000","v":2.7426784659053878},{"$f":"(SUMPRODUCT(T$9:T$229,Nutrients!$J$8:$J$228)+(IF($A$7=Nutrients!$B$8,Nutrients!$J$8,Nutrients!$J$9)*T$7)+(((IF($A$8=Nutrients!$B$79,Nutrients!$J$79,(IF($A$8=Nutrients!$B$77,Nutrients!$J$77,Nutrients!$J$78)))))*T$8))/2000","v":2.694861775693663},{"$f":"(SUMPRODUCT(U$9:U$229,Nutrients!$J$8:$J$228)+(IF($A$7=Nutrients!$B$8,Nutrients!$J$8,Nutrients!$J$9)*U$7)+(((IF($A$8=Nutrients!$B$79,Nutrients!$J$79,(IF($A$8=Nutrients!$B$77,Nutrients!$J$77,Nutrients!$J$78)))))*U$8))/2000","v":2.1815237128108387},null,{"$f":"(SUMPRODUCT(W$9:W$229,Nutrients!$J$8:$J$228)+(IF($A$7=Nutrients!$B$8,Nutrients!$J$8,Nutrients!$J$9)*W$7)+(((IF($A$8=Nutrients!$B$79,Nutrients!$J$79,(IF($A$8=Nutrients!$B$77,Nutrients!$J$77,Nutrients!$J$78)))))*W$8))/2000","v":3.2462329749453041},{"$f":"(SUMPRODUCT(X$9:X$229,Nutrients!$J$8:$J$228)+(IF($A$7=Nutrients!$B$8,Nutrients!$J$8,Nutrients!$J$9)*X$7)+(((IF($A$8=Nutrients!$B$79,Nutrients!$J$79,(IF($A$8=Nutrients!$B$77,Nutrients!$J$77,Nutrients!$J$78)))))*X$8))/2000","v":3.1454341563844892},{"$f":"(SUMPRODUCT(Y$9:Y$229,Nutrients!$J$8:$J$228)+(IF($A$7=Nutrients!$B$8,Nutrients!$J$8,Nutrients!$J$9)*Y$7)+(((IF($A$8=Nutrients!$B$79,Nutrients!$J$79,(IF($A$8=Nutrients!$B$77,Nutrients!$J$77,Nutrients!$J$78)))))*Y$8))/2000","v":3.059422578988312},{"$f":"(SUMPRODUCT(Z$9:Z$229,Nutrients!$J$8:$J$228)+(IF($A$7=Nutrients!$B$8,Nutrients!$J$8,Nutrients!$J$9)*Z$7)+(((IF($A$8=Nutrients!$B$79,Nutrients!$J$79,(IF($A$8=Nutrients!$B$77,Nutrients!$J$77,Nutrients!$J$78)))))*Z$8))/2000","v":2.9869082988017697},{"$f":"(SUMPRODUCT(AA$9:AA$229,Nutrients!$J$8:$J$228)+(IF($A$7=Nutrients!$B$8,Nutrients!$J$8,Nutrients!$J$9)*AA$7)+(((IF($A$8=Nutrients!$B$79,Nutrients!$J$79,(IF($A$8=Nutrients!$B$77,Nutrients!$J$77,Nutrients!$J$78)))))*AA$8))/2000","v":2.9388789982330858},{"$f":"(SUMPRODUCT(AB$9:AB$229,Nutrients!$J$8:$J$228)+(IF($A$7=Nutrients!$B$8,Nutrients!$J$8,Nutrients!$J$9)*AB$7)+(((IF($A$8=Nutrients!$B$79,Nutrients!$J$79,(IF($A$8=Nutrients!$B$77,Nutrients!$J$77,Nutrients!$J$78)))))*AB$8))/2000","v":2.1815237128108387},null,{"$f":"(SUMPRODUCT(AD$9:AD$229,Nutrients!$J$8:$J$228)+(IF($A$7=Nutrients!$B$8,Nutrients!$J$8,Nutrients!$J$9)*AD$7)+(((IF($A$8=Nutrients!$B$79,Nutrients!$J$79,(IF($A$8=Nutrients!$B$77,Nutrients!$J$77,Nutrients!$J$78)))))*AD$8))/2000","v":3.4903719411765124},{"$f":"(SUMPRODUCT(AE$9:AE$229,Nutrients!$J$8:$J$228)+(IF($A$7=Nutrients!$B$8,Nutrients!$J$8,Nutrients!$J$9)*AE$7)+(((IF($A$8=Nutrients!$B$79,Nutrients!$J$79,(IF($A$8=Nutrients!$B$77,Nutrients!$J$77,Nutrients!$J$78)))))*AE$8))/2000","v":3.3895879831333326},{"$f":"(SUMPRODUCT(AF$9:AF$229,Nutrients!$J$8:$J$228)+(IF($A$7=Nutrients!$B$8,Nutrients!$J$8,Nutrients!$J$9)*AF$7)+(((IF($A$8=Nutrients!$B$79,Nutrients!$J$79,(IF($A$8=Nutrients!$B$77,Nutrients!$J$77,Nutrients!$J$78)))))*AF$8))/2000","v":3.3037000077881928},{"$f":"(SUMPRODUCT(AG$9:AG$229,Nutrients!$J$8:$J$228)+(IF($A$7=Nutrients!$B$8,Nutrients!$J$8,Nutrients!$J$9)*AG$7)+(((IF($A$8=Nutrients!$B$79,Nutrients!$J$79,(IF($A$8=Nutrients!$B$77,Nutrients!$J$77,Nutrients!$J$78)))))*AG$8))/2000","v":3.2308687264219733},{"$f":"(SUMPRODUCT(AH$9:AH$229,Nutrients!$J$8:$J$228)+(IF($A$7=Nutrients!$B$8,Nutrients!$J$8,Nutrients!$J$9)*AH$7)+(((IF($A$8=Nutrients!$B$79,Nutrients!$J$79,(IF($A$8=Nutrients!$B$77,Nutrients!$J$77,Nutrients!$J$78)))))*AH$8))/2000","v":3.1807613435486108},{"$f":"(SUMPRODUCT(AI$9:AI$229,Nutrients!$J$8:$J$228)+(IF($A$7=Nutrients!$B$8,Nutrients!$J$8,Nutrients!$J$9)*AI$7)+(((IF($A$8=Nutrients!$B$79,Nutrients!$J$79,(IF($A$8=Nutrients!$B$77,Nutrients!$J$77,Nutrients!$J$78)))))*AI$8))/2000","v":2.1815237128108387},null,{"$f":"(SUMPRODUCT(AK$9:AK$229,Nutrients!$J$8:$J$228)+(IF($A$7=Nutrients!$B$8,Nutrients!$J$8,Nutrients!$J$9)*AK$7)+(((IF($A$8=Nutrients!$B$79,Nutrients!$J$79,(IF($A$8=Nutrients!$B$77,Nutrients!$J$77,Nutrients!$J$78)))))*AK$8))/2000","v":3.7342743768967552},{"$f":"(SUMPRODUCT(AL$9:AL$229,Nutrients!$J$8:$J$228)+(IF($A$7=Nutrients!$B$8,Nutrients!$J$8,Nutrients!$J$9)*AL$7)+(((IF($A$8=Nutrients!$B$79,Nutrients!$J$79,(IF($A$8=Nutrients!$B$77,Nutrients!$J$77,Nutrients!$J$78)))))*AL$8))/2000","v":3.6337453003157409},{"$f":"(SUMPRODUCT(AM$9:AM$229,Nutrients!$J$8:$J$228)+(IF($A$7=Nutrients!$B$8,Nutrients!$J$8,Nutrients!$J$9)*AM$7)+(((IF($A$8=Nutrients!$B$79,Nutrients!$J$79,(IF($A$8=Nutrients!$B$77,Nutrients!$J$77,Nutrients!$J$78)))))*AM$8))/2000","v":3.5477216078251881},{"$f":"(SUMPRODUCT(AN$9:AN$229,Nutrients!$J$8:$J$228)+(IF($A$7=Nutrients!$B$8,Nutrients!$J$8,Nutrients!$J$9)*AN$7)+(((IF($A$8=Nutrients!$B$79,Nutrients!$J$79,(IF($A$8=Nutrients!$B$77,Nutrients!$J$77,Nutrients!$J$78)))))*AN$8))/2000","v":3.4729928433065824},{"$f":"(SUMPRODUCT(AO$9:AO$229,Nutrients!$J$8:$J$228)+(IF($A$7=Nutrients!$B$8,Nutrients!$J$8,Nutrients!$J$9)*AO$7)+(((IF($A$8=Nutrients!$B$79,Nutrients!$J$79,(IF($A$8=Nutrients!$B$77,Nutrients!$J$77,Nutrients!$J$78)))))*AO$8))/2000","v":3.4221048480782179},{"$f":"(SUMPRODUCT(AP$9:AP$229,Nutrients!$J$8:$J$228)+(IF($A$7=Nutrients!$B$8,Nutrients!$J$8,Nutrients!$J$9)*AP$7)+(((IF($A$8=Nutrients!$B$79,Nutrients!$J$79,(IF($A$8=Nutrients!$B$77,Nutrients!$J$77,Nutrients!$J$78)))))*AP$8))/2000","v":2.1815237128108387},null,{"$f":"(SUMPRODUCT(AR$9:AR$229,Nutrients!$J$8:$J$228)+(IF($A$7=Nutrients!$B$8,Nutrients!$J$8,Nutrients!$J$9)*AR$7)+(((IF($A$8=Nutrients!$B$79,Nutrients!$J$79,(IF($A$8=Nutrients!$B$77,Nutrients!$J$77,Nutrients!$J$78)))))*AR$8))/2000","v":3.9785323330150946},{"$f":"(SUMPRODUCT(AS$9:AS$229,Nutrients!$J$8:$J$228)+(IF($A$7=Nutrients!$B$8,Nutrients!$J$8,Nutrients!$J$9)*AS$7)+(((IF($A$8=Nutrients!$B$79,Nutrients!$J$79,(IF($A$8=Nutrients!$B$77,Nutrients!$J$77,Nutrients!$J$78)))))*AS$8))/2000","v":3.8779006941210472},{"$f":"(SUMPRODUCT(AT$9:AT$229,Nutrients!$J$8:$J$228)+(IF($A$7=Nutrients!$B$8,Nutrients!$J$8,Nutrients!$J$9)*AT$7)+(((IF($A$8=Nutrients!$B$79,Nutrients!$J$79,(IF($A$8=Nutrients!$B$77,Nutrients!$J$77,Nutrients!$J$78)))))*AT$8))/2000","v":3.7912632485459445},{"$f":"(SUMPRODUCT(AU$9:AU$229,Nutrients!$J$8:$J$228)+(IF($A$7=Nutrients!$B$8,Nutrients!$J$8,Nutrients!$J$9)*AU$7)+(((IF($A$8=Nutrients!$B$79,Nutrients!$J$79,(IF($A$8=Nutrients!$B$77,Nutrients!$J$77,Nutrients!$J$78)))))*AU$8))/2000","v":3.7143435414547894},{"$f":"(SUMPRODUCT(AV$9:AV$229,Nutrients!$J$8:$J$228)+(IF($A$7=Nutrients!$B$8,Nutrients!$J$8,Nutrients!$J$9)*AV$7)+(((IF($A$8=Nutrients!$B$79,Nutrients!$J$79,(IF($A$8=Nutrients!$B$77,Nutrients!$J$77,Nutrients!$J$78)))))*AV$8))/2000","v":3.6634096096781814},{"$f":"(SUMPRODUCT(AW$9:AW$229,Nutrients!$J$8:$J$228)+(IF($A$7=Nutrients!$B$8,Nutrients!$J$8,Nutrients!$J$9)*AW$7)+(((IF($A$8=Nutrients!$B$79,Nutrients!$J$79,(IF($A$8=Nutrients!$B$77,Nutrients!$J$77,Nutrients!$J$78)))))*AW$8))/2000","v":2.1815237128108387}]
["Lactose, %",{"$f":"(SUMPRODUCT(B$9:B$229,Nutrients!$ED$8:$ED$228)+(IF($A$7=Nutrients!$B$8,Nutrients!$ED$8,Nutrients!$ED$9)*B$7)+(((IF($A$8=Nutrients!$B$79,Nutrients!$ED$79,(IF($A$8=Nutrients!$B$77,Nutrients!$ED$77,Nutrients!$ED$78)))))*B$8))/2000","v":0},{"$f":"(SUMPRODUCT(C$9:C$229,Nutrients!$ED$8:$ED$228)+(IF($A$7=Nutrients!$B$8,Nutrients!$ED$8,Nutrients!$ED$9)*C$7)+(((IF($A$8=Nutrients!$B$79,Nutrients!$ED$79,(IF($A$8=Nutrients!$B$77,Nutrients!$ED$77,Nutrients!$ED$78)))))*C$8))/2000","v":0},{"$f":"(SUMPRODUCT(D$9:D$229,Nutrients!$ED$8:$ED$228)+(IF($A$7=Nutrients!$B$8,Nutrients!$ED$8,Nutrients!$ED$9)*D$7)+(((IF($A$8=Nutrients!$B$79,Nutrients!$ED$79,(IF($A$8=Nutrients!$B$77,Nutrients!$ED$77,Nutrients!$ED$78)))))*D$8))/2000","v":0},{"$f":"(SUMPRODUCT(E$9:E$229,Nutrients!$ED$8:$ED$228)+(IF($A$7=Nutrients!$B$8,Nutrients!$ED$8,Nutrients!$ED$9)*E$7)+(((IF($A$8=Nutrients!$B$79,Nutrients!$ED$79,(IF($A$8=Nutrients!$B$77,Nutrients!$ED$77,Nutrients!$ED$78)))))*E$8))/2000","v":0},{"$f":"(SUMPRODUCT(F$9:F$229,Nutrients!$ED$8:$ED$228)+(IF($A$7=Nutrients!$B$8,Nutrients!$ED$8,Nutrients!$ED$9)*F$7)+(((IF($A$8=Nutrients!$B$79,Nutrients!$ED$79,(IF($A$8=Nutrients!$B$77,Nutrients!$ED$77,Nutrients!$ED$78)))))*F$8))/2000","v":0},{"$f":"(SUMPRODUCT(G$9:G$229,Nutrients!$ED$8:$ED$228)+(IF($A$7=Nutrients!$B$8,Nutrients!$ED$8,Nutrients!$ED$9)*G$7)+(((IF($A$8=Nutrients!$B$79,Nutrients!$ED$79,(IF($A$8=Nutrients!$B$77,Nutrients!$ED$77,Nutrients!$ED$78)))))*G$8))/2000","v":0},null,{"$f":"(SUMPRODUCT(I$9:I$229,Nutrients!$ED$8:$ED$228)+(IF($A$7=Nutrients!$B$8,Nutrients!$ED$8,Nutrients!$ED$9)*I$7)+(((IF($A$8=Nutrients!$B$79,Nutrients!$ED$79,(IF($A$8=Nutrients!$B$77,Nutrients!$ED$77,Nutrients!$ED$78)))))*I$8))/2000","v":0},{"$f":"(SUMPRODUCT(J$9:J$229,Nutrients!$ED$8:$ED$228)+(IF($A$7=Nutrients!$B$8,Nutrients!$ED$8,Nutrients!$ED$9)*J$7)+(((IF($A$8=Nutrients!$B$79,Nutrients!$ED$79,(IF($A$8=Nutrients!$B$77,Nutrients!$ED$77,Nutrients!$ED$78)))))*J$8))/2000","v":0},{"$f":"(SUMPRODUCT(K$9:K$229,Nutrients!$ED$8:$ED$228)+(IF($A$7=Nutrients!$B$8,Nutrients!$ED$8,Nutrients!$ED$9)*K$7)+(((IF($A$8=Nutrients!$B$79,Nutrients!$ED$79,(IF($A$8=Nutrients!$B$77,Nutrients!$ED$77,Nutrients!$ED$78)))))*K$8))/2000","v":0},{"$f":"(SUMPRODUCT(L$9:L$229,Nutrients!$ED$8:$ED$228)+(IF($A$7=Nutrients!$B$8,Nutrients!$ED$8,Nutrients!$ED$9)*L$7)+(((IF($A$8=Nutrients!$B$79,Nutrients!$ED$79,(IF($A$8=Nutrients!$B$77,Nutrients!$ED$77,Nutrients!$ED$78)))))*L$8))/2000","v":0},{"$f":"(SUMPRODUCT(M$9:M$229,Nutrients!$ED$8:$ED$228)+(IF($A$7=Nutrients!$B$8,Nutrients!$ED$8,Nutrients!$ED$9)*M$7)+(((IF($A$8=Nutrients!$B$79,Nutrients!$ED$79,(IF($A$8=Nutrients!$B$77,Nutrients!$ED$77,Nutrients!$ED$78)))))*M$8))/2000","v":0},{"$f":"(SUMPRODUCT(N$9:N$229,Nutrients!$ED$8:$ED$228)+(IF($A$7=Nutrients!$B$8,Nutrients!$ED$8,Nutrients!$ED$9)*N$7)+(((IF($A$8=Nutrients!$B$79,Nutrients!$ED$79,(IF($A$8=Nutrients!$B$77,Nutrients!$ED$77,Nutrients!$ED$78)))))*N$8))/2000","v":0},null,{"$f":"(SUMPRODUCT(P$9:P$229,Nutrients!$ED$8:$ED$228)+(IF($A$7=Nutrients!$B$8,Nutrients!$ED$8,Nutrients!$ED$9)*P$7)+(((IF($A$8=Nutrients!$B$79,Nutrients!$ED$79,(IF($A$8=Nutrients!$B$77,Nutrients!$ED$77,Nutrients!$ED$78)))))*P$8))/2000","v":0},{"$f":"(SUMPRODUCT(Q$9:Q$229,Nutrients!$ED$8:$ED$228)+(IF($A$7=Nutrients!$B$8,Nutrients!$ED$8,Nutrients!$ED$9)*Q$7)+(((IF($A$8=Nutrients!$B$79,Nutrients!$ED$79,(IF($A$8=Nutrients!$B$77,Nutrients!$ED$77,Nutrients!$ED$78)))))*Q$8))/2000","v":0},{"$f":"(SUMPRODUCT(R$9:R$229,Nutrients!$ED$8:$ED$228)+(IF($A$7=Nutrients!$B$8,Nutrients!$ED$8,Nutrients!$ED$9)*R$7)+(((IF($A$8=Nutrients!$B$79,Nutrients!$ED$79,(IF($A$8=Nutrients!$B$77,Nutrients!$ED$77,Nutrients!$ED$78)))))*R$8))/2000","v":0},{"$f":"(SUMPRODUCT(S$9:S$229,Nutrients!$ED$8:$ED$228)+(IF($A$7=Nutrients!$B$8,Nutrients!$ED$8,Nutrients!$ED$9)*S$7)+(((IF($A$8=Nutrients!$B$79,Nutrients!$ED$79,(IF($A$8=Nutrients!$B$77,Nutrients!$ED$77,Nutrients!$ED$78)))))*S$8))/2000","v":0},{"$f":"(SUMPRODUCT(T$9:T$229,Nutrients!$ED$8:$ED$228)+(IF($A$7=Nutrients!$B$8,Nutrients!$ED$8,Nutrients!$ED$9)*T$7)+(((IF($A$8=Nutrients!$B$79,Nutrients!$ED$79,(IF($A$8=Nutrients!$B$77,Nutrients!$ED$77,Nutrients!$ED$78)))))*T$8))/2000","v":0},{"$f":"(SUMPRODUCT(U$9:U$229,Nutrients!$ED$8:$ED$228)+(IF($A$7=Nutrients!$B$8,Nutrients!$ED$8,Nutrients!$ED$9)*U$7)+(((IF($A$8=Nutrients!$B$79,Nutrients!$ED$79,(IF($A$8=Nutrients!$B$77,Nutrients!$ED$77,Nutrients!$ED$78)))))*U$8))/2000","v":0},null,{"$f":"(SUMPRODUCT(W$9:W$229,Nutrients!$ED$8:$ED$228)+(IF($A$7=Nutrients!$B$8,Nutrients!$ED$8,Nutrients!$ED$9)*W$7)+(((IF($A$8=Nutrients!$B$79,Nutrients!$ED$79,(IF($A$8=Nutrients!$B$77,Nutrients!$ED$77,Nutrients!$ED$78)))))*W$8))/2000","v":0},{"$f":"(SUMPRODUCT(X$9:X$229,Nutrients!$ED$8:$ED$228)+(IF($A$7=Nutrients!$B$8,Nutrients!$ED$8,Nutrients!$ED$9)*X$7)+(((IF($A$8=Nutrients!$B$79,Nutrients!$ED$79,(IF($A$8=Nutrients!$B$77,Nutrients!$ED$77,Nutrients!$ED$78)))))*X$8))/2000","v":0},{"$f":"(SUMPRODUCT(Y$9:Y$229,Nutrients!$ED$8:$ED$228)+(IF($A$7=Nutrients!$B$8,Nutrients!$ED$8,Nutrients!$ED$9)*Y$7)+(((IF($A$8=Nutrients!$B$79,Nutrients!$ED$79,(IF($A$8=Nutrients!$B$77,Nutrients!$ED$77,Nutrients!$ED$78)))))*Y$8))/2000","v":0},{"$f":"(SUMPRODUCT(Z$9:Z$229,Nutrients!$ED$8:$ED$228)+(IF($A$7=Nutrients!$B$8,Nutrients!$ED$8,Nutrients!$ED$9)*Z$7)+(((IF($A$8=Nutrients!$B$79,Nutrients!$ED$79,(IF($A$8=Nutrients!$B$77,Nutrients!$ED$77,Nutrients!$ED$78)))))*Z$8))/2000","v":0},{"$f":"(SUMPRODUCT(AA$9:AA$229,Nutrients!$ED$8:$ED$228)+(IF($A$7=Nutrients!$B$8,Nutrients!$ED$8,Nutrients!$ED$9)*AA$7)+(((IF($A$8=Nutrients!$B$79,Nutrients!$ED$79,(IF($A$8=Nutrients!$B$77,Nutrients!$ED$77,Nutrients!$ED$78)))))*AA$8))/2000","v":0},{"$f":"(SUMPRODUCT(AB$9:AB$229,Nutrients!$ED$8:$ED$228)+(IF($A$7=Nutrients!$B$8,Nutrients!$ED$8,Nutrients!$ED$9)*AB$7)+(((IF($A$8=Nutrients!$B$79,Nutrients!$ED$79,(IF($A$8=Nutrients!$B$77,Nutrients!$ED$77,Nutrients!$ED$78)))))*AB$8))/2000","v":0},null,{"$f":"(SUMPRODUCT(AD$9:AD$229,Nutrients!$ED$8:$ED$228)+(IF($A$7=Nutrients!$B$8,Nutrients!$ED$8,Nutrients!$ED$9)*AD$7)+(((IF($A$8=Nutrients!$B$79,Nutrients!$ED$79,(IF($A$8=Nutrients!$B$77,Nutrients!$ED$77,Nutrients!$ED$78)))))*AD$8))/2000","v":0},{"$f":"(SUMPRODUCT(AE$9:AE$229,Nutrients!$ED$8:$ED$228)+(IF($A$7=Nutrients!$B$8,Nutrients!$ED$8,Nutrients!$ED$9)*AE$7)+(((IF($A$8=Nutrients!$B$79,Nutrients!$ED$79,(IF($A$8=Nutrients!$B$77,Nutrients!$ED$77,Nutrients!$ED$78)))))*AE$8))/2000","v":0},{"$f":"(SUMPRODUCT(AF$9:AF$229,Nutrients!$ED$8:$ED$228)+(IF($A$7=Nutrients!$B$8,Nutrients!$ED$8,Nutrients!$ED$9)*AF$7)+(((IF($A$8=Nutrients!$B$79,Nutrients!$ED$79,(IF($A$8=Nutrients!$B$77,Nutrients!$ED$77,Nutrients!$ED$78)))))*AF$8))/2000","v":0},{"$f":"(SUMPRODUCT(AG$9:AG$229,Nutrients!$ED$8:$ED$228)+(IF($A$7=Nutrients!$B$8,Nutrients!$ED$8,Nutrients!$ED$9)*AG$7)+(((IF($A$8=Nutrients!$B$79,Nutrients!$ED$79,(IF($A$8=Nutrients!$B$77,Nutrients!$ED$77,Nutrients!$ED$78)))))*AG$8))/2000","v":0},{"$f":"(SUMPRODUCT(AH$9:AH$229,Nutrients!$ED$8:$ED$228)+(IF($A$7=Nutrients!$B$8,Nutrients!$ED$8,Nutrients!$ED$9)*AH$7)+(((IF($A$8=Nutrients!$B$79,Nutrients!$ED$79,(IF($A$8=Nutrients!$B$77,Nutrients!$ED$77,Nutrients!$ED$78)))))*AH$8))/2000","v":0},{"$f":"(SUMPRODUCT(AI$9:AI$229,Nutrients!$ED$8:$ED$228)+(IF($A$7=Nutrients!$B$8,Nutrients!$ED$8,Nutrients!$ED$9)*AI$7)+(((IF($A$8=Nutrients!$B$79,Nutrients!$ED$79,(IF($A$8=Nutrients!$B$77,Nutrients!$ED$77,Nutrients!$ED$78)))))*AI$8))/2000","v":0},null,{"$f":"(SUMPRODUCT(AK$9:AK$229,Nutrients!$ED$8:$ED$228)+(IF($A$7=Nutrients!$B$8,Nutrients!$ED$8,Nutrients!$ED$9)*AK$7)+(((IF($A$8=Nutrients!$B$79,Nutrients!$ED$79,(IF($A$8=Nutrients!$B$77,Nutrients!$ED$77,Nutrients!$ED$78)))))*AK$8))/2000","v":0},{"$f":"(SUMPRODUCT(AL$9:AL$229,Nutrients!$ED$8:$ED$228)+(IF($A$7=Nutrients!$B$8,Nutrients!$ED$8,Nutrients!$ED$9)*AL$7)+(((IF($A$8=Nutrients!$B$79,Nutrients!$ED$79,(IF($A$8=Nutrients!$B$77,Nutrients!$ED$77,Nutrients!$ED$78)))))*AL$8))/2000","v":0},{"$f":"(SUMPRODUCT(AM$9:AM$229,Nutrients!$ED$8:$ED$228)+(IF($A$7=Nutrients!$B$8,Nutrients!$ED$8,Nutrients!$ED$9)*AM$7)+(((IF($A$8=Nutrients!$B$79,Nutrients!$ED$79,(IF($A$8=Nutrients!$B$77,Nutrients!$ED$77,Nutrients!$ED$78)))))*AM$8))/2000","v":0},{"$f":"(SUMPRODUCT(AN$9:AN$229,Nutrients!$ED$8:$ED$228)+(IF($A$7=Nutrients!$B$8,Nutrients!$ED$8,Nutrients!$ED$9)*AN$7)+(((IF($A$8=Nutrients!$B$79,Nutrients!$ED$79,(IF($A$8=Nutrients!$B$77,Nutrients!$ED$77,Nutrients!$ED$78)))))*AN$8))/2000","v":0},{"$f":"(SUMPRODUCT(AO$9:AO$229,Nutrients!$ED$8:$ED$228)+(IF($A$7=Nutrients!$B$8,Nutrients!$ED$8,Nutrients!$ED$9)*AO$7)+(((IF($A$8=Nutrients!$B$79,Nutrients!$ED$79,(IF($A$8=Nutrients!$B$77,Nutrients!$ED$77,Nutrients!$ED$78)))))*AO$8))/2000","v":0},{"$f":"(SUMPRODUCT(AP$9:AP$229,Nutrients!$ED$8:$ED$228)+(IF($A$7=Nutrients!$B$8,Nutrients!$ED$8,Nutrients!$ED$9)*AP$7)+(((IF($A$8=Nutrients!$B$79,Nutrients!$ED$79,(IF($A$8=Nutrients!$B$77,Nutrients!$ED$77,Nutrients!$ED$78)))))*AP$8))/2000","v":0},null,{"$f":"(SUMPRODUCT(AR$9:AR$229,Nutrients!$ED$8:$ED$228)+(IF($A$7=Nutrients!$B$8,Nutrients!$ED$8,Nutrients!$ED$9)*AR$7)+(((IF($A$8=Nutrients!$B$79,Nutrients!$ED$79,(IF($A$8=Nutrients!$B$77,Nutrients!$ED$77,Nutrients!$ED$78)))))*AR$8))/2000","v":0},{"$f":"(SUMPRODUCT(AS$9:AS$229,Nutrients!$ED$8:$ED$228)+(IF($A$7=Nutrients!$B$8,Nutrients!$ED$8,Nutrients!$ED$9)*AS$7)+(((IF($A$8=Nutrients!$B$79,Nutrients!$ED$79,(IF($A$8=Nutrients!$B$77,Nutrients!$ED$77,Nutrients!$ED$78)))))*AS$8))/2000","v":0},{"$f":"(SUMPRODUCT(AT$9:AT$229,Nutrients!$ED$8:$ED$228)+(IF($A$7=Nutrients!$B$8,Nutrients!$ED$8,Nutrients!$ED$9)*AT$7)+(((IF($A$8=Nutrients!$B$79,Nutrients!$ED$79,(IF($A$8=Nutrients!$B$77,Nutrients!$ED$77,Nutrients!$ED$78)))))*AT$8))/2000","v":0},{"$f":"(SUMPRODUCT(AU$9:AU$229,Nutrients!$ED$8:$ED$228)+(IF($A$7=Nutrients!$B$8,Nutrients!$ED$8,Nutrients!$ED$9)*AU$7)+(((IF($A$8=Nutrients!$B$79,Nutrients!$ED$79,(IF($A$8=Nutrients!$B$77,Nutrients!$ED$77,Nutrients!$ED$78)))))*AU$8))/2000","v":0},{"$f":"(SUMPRODUCT(AV$9:AV$229,Nutrients!$ED$8:$ED$228)+(IF($A$7=Nutrients!$B$8,Nutrients!$ED$8,Nutrients!$ED$9)*AV$7)+(((IF($A$8=Nutrients!$B$79,Nutrients!$ED$79,(IF($A$8=Nutrients!$B$77,Nutrients!$ED$77,Nutrients!$ED$78)))))*AV$8))/2000","v":0},{"$f":"(SUMPRODUCT(AW$9:AW$229,Nutrients!$ED$8:$ED$228)+(IF($A$7=Nutrients!$B$8,Nutrients!$ED$8,Nutrients!$ED$9)*AW$7)+(((IF($A$8=Nutrients!$B$79,Nutrients!$ED$79,(IF($A$8=Nutrients!$B$77,Nutrients!$ED$77,Nutrients!$ED$78)))))*AW$8))/2000","v":0}]
["IV value of diet",{"$f":"(SUMPRODUCT(B$9:B$229,Nutrients!$EH$8:$EH$228)+(IF($A$7=Nutrients!$B$8,Nutrients!$EH$8,Nutrients!$EH$9)*B$7)+(((IF($A$8=Nutrients!$B$79,Nutrients!$EH$79,(IF($A$8=Nutrients!$B$77,Nutrients!$EH$77,Nutrients!$EH$78)))))*B$8))/2000","v":34.658564713833037},{"$f":"(SUMPRODUCT(C$9:C$229,Nutrients!$EH$8:$EH$228)+(IF($A$7=Nutrients!$B$8,Nutrients!$EH$8,Nutrients!$EH$9)*C$7)+(((IF($A$8=Nutrients!$B$79,Nutrients!$EH$79,(IF($A$8=Nutrients!$B$77,Nutrients!$EH$77,Nutrients!$EH$78)))))*C$8))/2000","v":36.119060232185333},{"$f":"(SUMPRODUCT(D$9:D$229,Nutrients!$EH$8:$EH$228)+(IF($A$7=Nutrients!$B$8,Nutrients!$EH$8,Nutrients!$EH$9)*D$7)+(((IF($A$8=Nutrients!$B$79,Nutrients!$EH$79,(IF($A$8=Nutrients!$B$77,Nutrients!$EH$77,Nutrients!$EH$78)))))*D$8))/2000","v":37.38889298377596},{"$f":"(SUMPRODUCT(E$9:E$229,Nutrients!$EH$8:$EH$228)+(IF($A$7=Nutrients!$B$8,Nutrients!$EH$8,Nutrients!$EH$9)*E$7)+(((IF($A$8=Nutrients!$B$79,Nutrients!$EH$79,(IF($A$8=Nutrients!$B$77,Nutrients!$EH$77,Nutrients!$EH$78)))))*E$8))/2000","v":38.453689691212816},{"$f":"(SUMPRODUCT(F$9:F$229,Nutrients!$EH$8:$EH$228)+(IF($A$7=Nutrients!$B$8,Nutrients!$EH$8,Nutrients!$EH$9)*F$7)+(((IF($A$8=Nutrients!$B$79,Nutrients!$EH$79,(IF($A$8=Nutrients!$B$77,Nutrients!$EH$77,Nutrients!$EH$78)))))*F$8))/2000","v":39.1878815182761},{"$f":"(SUMPRODUCT(G$9:G$229,Nutrients!$EH$8:$EH$228)+(IF($A$7=Nutrients!$B$8,Nutrients!$EH$8,Nutrients!$EH$9)*G$7)+(((IF($A$8=Nutrients!$B$79,Nutrients!$EH$79,(IF($A$8=Nutrients!$B$77,Nutrients!$EH$77,Nutrients!$EH$78)))))*G$8))/2000","v":39.544986782030342},null,{"$f":"(SUMPRODUCT(I$9:I$229,Nutrients!$EH$8:$EH$228)+(IF($A$7=Nutrients!$B$8,Nutrients!$EH$8,Nutrients!$EH$9)*I$7)+(((IF($A$8=Nutrients!$B$79,Nutrients!$EH$79,(IF($A$8=Nutrients!$B$77,Nutrients!$EH$77,Nutrients!$EH$78)))))*I$8))/2000","v":36.229938874171069},{"$f":"(SUMPRODUCT(J$9:J$229,Nutrients!$EH$8:$EH$228)+(IF($A$7=Nutrients!$B$8,Nutrients!$EH$8,Nutrients!$EH$9)*J$7)+(((IF($A$8=Nutrients!$B$79,Nutrients!$EH$79,(IF($A$8=Nutrients!$B$77,Nutrients!$EH$77,Nutrients!$EH$78)))))*J$8))/2000","v":37.71606222111928},{"$f":"(SUMPRODUCT(K$9:K$229,Nutrients!$EH$8:$EH$228)+(IF($A$7=Nutrients!$B$8,Nutrients!$EH$8,Nutrients!$EH$9)*K$7)+(((IF($A$8=Nutrients!$B$79,Nutrients!$EH$79,(IF($A$8=Nutrients!$B$77,Nutrients!$EH$77,Nutrients!$EH$78)))))*K$8))/2000","v":39.010700835788739},{"$f":"(SUMPRODUCT(L$9:L$229,Nutrients!$EH$8:$EH$228)+(IF($A$7=Nutrients!$B$8,Nutrients!$EH$8,Nutrients!$EH$9)*L$7)+(((IF($A$8=Nutrients!$B$79,Nutrients!$EH$79,(IF($A$8=Nutrients!$B$77,Nutrients!$EH$77,Nutrients!$EH$78)))))*L$8))/2000","v":40.019012898608928},{"$f":"(SUMPRODUCT(M$9:M$229,Nutrients!$EH$8:$EH$228)+(IF($A$7=Nutrients!$B$8,Nutrients!$EH$8,Nutrients!$EH$9)*M$7)+(((IF($A$8=Nutrients!$B$79,Nutrients!$EH$79,(IF($A$8=Nutrients!$B$77,Nutrients!$EH$77,Nutrients!$EH$78)))))*M$8))/2000","v":40.771065614353446},{"$f":"(SUMPRODUCT(N$9:N$229,Nutrients!$EH$8:$EH$228)+(IF($A$7=Nutrients!$B$8,Nutrients!$EH$8,Nutrients!$EH$9)*N$7)+(((IF($A$8=Nutrients!$B$79,Nutrients!$EH$79,(IF($A$8=Nutrients!$B$77,Nutrients!$EH$77,Nutrients!$EH$78)))))*N$8))/2000","v":39.544986782030342},null,{"$f":"(SUMPRODUCT(P$9:P$229,Nutrients!$EH$8:$EH$228)+(IF($A$7=Nutrients!$B$8,Nutrients!$EH$8,Nutrients!$EH$9)*P$7)+(((IF($A$8=Nutrients!$B$79,Nutrients!$EH$79,(IF($A$8=Nutrients!$B$77,Nutrients!$EH$77,Nutrients!$EH$78)))))*P$8))/2000","v":37.835669118381595},{"$f":"(SUMPRODUCT(Q$9:Q$229,Nutrients!$EH$8:$EH$228)+(IF($A$7=Nutrients!$B$8,Nutrients!$EH$8,Nutrients!$EH$9)*Q$7)+(((IF($A$8=Nutrients!$B$79,Nutrients!$EH$79,(IF($A$8=Nutrients!$B$77,Nutrients!$EH$77,Nutrients!$EH$78)))))*Q$8))/2000","v":39.332311480351322},{"$f":"(SUMPRODUCT(R$9:R$229,Nutrients!$EH$8:$EH$228)+(IF($A$7=Nutrients!$B$8,Nutrients!$EH$8,Nutrients!$EH$9)*R$7)+(((IF($A$8=Nutrients!$B$79,Nutrients!$EH$79,(IF($A$8=Nutrients!$B$77,Nutrients!$EH$77,Nutrients!$EH$78)))))*R$8))/2000","v":40.642827439053967},{"$f":"(SUMPRODUCT(S$9:S$229,Nutrients!$EH$8:$EH$228)+(IF($A$7=Nutrients!$B$8,Nutrients!$EH$8,Nutrients!$EH$9)*S$7)+(((IF($A$8=Nutrients!$B$79,Nutrients!$EH$79,(IF($A$8=Nutrients!$B$77,Nutrients!$EH$77,Nutrients!$EH$78)))))*S$8))/2000","v":41.644894428330289},{"$f":"(SUMPRODUCT(T$9:T$229,Nutrients!$EH$8:$EH$228)+(IF($A$7=Nutrients!$B$8,Nutrients!$EH$8,Nutrients!$EH$9)*T$7)+(((IF($A$8=Nutrients!$B$79,Nutrients!$EH$79,(IF($A$8=Nutrients!$B$77,Nutrients!$EH$77,Nutrients!$EH$78)))))*T$8))/2000","v":42.390422000253672},{"$f":"(SUMPRODUCT(U$9:U$229,Nutrients!$EH$8:$EH$228)+(IF($A$7=Nutrients!$B$8,Nutrients!$EH$8,Nutrients!$EH$9)*U$7)+(((IF($A$8=Nutrients!$B$79,Nutrients!$EH$79,(IF($A$8=Nutrients!$B$77,Nutrients!$EH$77,Nutrients!$EH$78)))))*U$8))/2000","v":39.544986782030342},null,{"$f":"(SUMPRODUCT(W$9:W$229,Nutrients!$EH$8:$EH$228)+(IF($A$7=Nutrients!$B$8,Nutrients!$EH$8,Nutrients!$EH$9)*W$7)+(((IF($A$8=Nutrients!$B$79,Nutrients!$EH$79,(IF($A$8=Nutrients!$B$77,Nutrients!$EH$77,Nutrients!$EH$78)))))*W$8))/2000","v":39.449698450074074},{"$f":"(SUMPRODUCT(X$9:X$229,Nutrients!$EH$8:$EH$228)+(IF($A$7=Nutrients!$B$8,Nutrients!$EH$8,Nutrients!$EH$9)*X$7)+(((IF($A$8=Nutrients!$B$79,Nutrients!$EH$79,(IF($A$8=Nutrients!$B$77,Nutrients!$EH$77,Nutrients!$EH$78)))))*X$8))/2000","v":40.958521584012857},{"$f":"(SUMPRODUCT(Y$9:Y$229,Nutrients!$EH$8:$EH$228)+(IF($A$7=Nutrients!$B$8,Nutrients!$EH$8,Nutrients!$EH$9)*Y$7)+(((IF($A$8=Nutrients!$B$79,Nutrients!$EH$79,(IF($A$8=Nutrients!$B$77,Nutrients!$EH$77,Nutrients!$EH$78)))))*Y$8))/2000","v":42.263178791466338},{"$f":"(SUMPRODUCT(Z$9:Z$229,Nutrients!$EH$8:$EH$228)+(IF($A$7=Nutrients!$B$8,Nutrients!$EH$8,Nutrients!$EH$9)*Z$7)+(((IF($A$8=Nutrients!$B$79,Nutrients!$EH$79,(IF($A$8=Nutrients!$B$77,Nutrients!$EH$77,Nutrients!$EH$78)))))*Z$8))/2000","v":43.280428727388596},{"$f":"(SUMPRODUCT(AA$9:AA$229,Nutrients!$EH$8:$EH$228)+(IF($A$7=Nutrients!$B$8,Nutrients!$EH$8,Nutrients!$EH$9)*AA$7)+(((IF($A$8=Nutrients!$B$79,Nutrients!$EH$79,(IF($A$8=Nutrients!$B$77,Nutrients!$EH$77,Nutrients!$EH$78)))))*AA$8))/2000","v":44.012420676980831},{"$f":"(SUMPRODUCT(AB$9:AB$229,Nutrients!$EH$8:$EH$228)+(IF($A$7=Nutrients!$B$8,Nutrients!$EH$8,Nutrients!$EH$9)*AB$7)+(((IF($A$8=Nutrients!$B$79,Nutrients!$EH$79,(IF($A$8=Nutrients!$B$77,Nutrients!$EH$77,Nutrients!$EH$78)))))*AB$8))/2000","v":39.544986782030342},null,{"$f":"(SUMPRODUCT(AD$9:AD$229,Nutrients!$EH$8:$EH$228)+(IF($A$7=Nutrients!$B$8,Nutrients!$EH$8,Nutrients!$EH$9)*AD$7)+(((IF($A$8=Nutrients!$B$79,Nutrients!$EH$79,(IF($A$8=Nutrients!$B$77,Nutrients!$EH$77,Nutrients!$EH$78)))))*AD$8))/2000","v":41.079913553522651},{"$f":"(SUMPRODUCT(AE$9:AE$229,Nutrients!$EH$8:$EH$228)+(IF($A$7=Nutrients!$B$8,Nutrients!$EH$8,Nutrients!$EH$9)*AE$7)+(((IF($A$8=Nutrients!$B$79,Nutrients!$EH$79,(IF($A$8=Nutrients!$B$77,Nutrients!$EH$77,Nutrients!$EH$78)))))*AE$8))/2000","v":42.5842467386897},{"$f":"(SUMPRODUCT(AF$9:AF$229,Nutrients!$EH$8:$EH$228)+(IF($A$7=Nutrients!$B$8,Nutrients!$EH$8,Nutrients!$EH$9)*AF$7)+(((IF($A$8=Nutrients!$B$79,Nutrients!$EH$79,(IF($A$8=Nutrients!$B$77,Nutrients!$EH$77,Nutrients!$EH$78)))))*AF$8))/2000","v":43.913050998927581},{"$f":"(SUMPRODUCT(AG$9:AG$229,Nutrients!$EH$8:$EH$228)+(IF($A$7=Nutrients!$B$8,Nutrients!$EH$8,Nutrients!$EH$9)*AG$7)+(((IF($A$8=Nutrients!$B$79,Nutrients!$EH$79,(IF($A$8=Nutrients!$B$77,Nutrients!$EH$77,Nutrients!$EH$78)))))*AG$8))/2000","v":44.913587390331529},{"$f":"(SUMPRODUCT(AH$9:AH$229,Nutrients!$EH$8:$EH$228)+(IF($A$7=Nutrients!$B$8,Nutrients!$EH$8,Nutrients!$EH$9)*AH$7)+(((IF($A$8=Nutrients!$B$79,Nutrients!$EH$79,(IF($A$8=Nutrients!$B$77,Nutrients!$EH$77,Nutrients!$EH$78)))))*AH$8))/2000","v":45.803436528653449},{"$f":"(SUMPRODUCT(AI$9:AI$229,Nutrients!$EH$8:$EH$228)+(IF($A$7=Nutrients!$B$8,Nutrients!$EH$8,Nutrients!$EH$9)*AI$7)+(((IF($A$8=Nutrients!$B$79,Nutrients!$EH$79,(IF($A$8=Nutrients!$B$77,Nutrients!$EH$77,Nutrients!$EH$78)))))*AI$8))/2000","v":39.544986782030342},null,{"$f":"(SUMPRODUCT(AK$9:AK$229,Nutrients!$EH$8:$EH$228)+(IF($A$7=Nutrients!$B$8,Nutrients!$EH$8,Nutrients!$EH$9)*AK$7)+(((IF($A$8=Nutrients!$B$79,Nutrients!$EH$79,(IF($A$8=Nutrients!$B$77,Nutrients!$EH$77,Nutrients!$EH$78)))))*AK$8))/2000","v":42.784593857796679},{"$f":"(SUMPRODUCT(AL$9:AL$229,Nutrients!$EH$8:$EH$228)+(IF($A$7=Nutrients!$B$8,Nutrients!$EH$8,Nutrients!$EH$9)*AL$7)+(((IF($A$8=Nutrients!$B$79,Nutrients!$EH$79,(IF($A$8=Nutrients!$B$77,Nutrients!$EH$77,Nutrients!$EH$78)))))*AL$8))/2000","v":44.211917295654729},{"$f":"(SUMPRODUCT(AM$9:AM$229,Nutrients!$EH$8:$EH$228)+(IF($A$7=Nutrients!$B$8,Nutrients!$EH$8,Nutrients!$EH$9)*AM$7)+(((IF($A$8=Nutrients!$B$79,Nutrients!$EH$79,(IF($A$8=Nutrients!$B$77,Nutrients!$EH$77,Nutrients!$EH$78)))))*AM$8))/2000","v":45.530727060902443},{"$f":"(SUMPRODUCT(AN$9:AN$229,Nutrients!$EH$8:$EH$228)+(IF($A$7=Nutrients!$B$8,Nutrients!$EH$8,Nutrients!$EH$9)*AN$7)+(((IF($A$8=Nutrients!$B$79,Nutrients!$EH$79,(IF($A$8=Nutrients!$B$77,Nutrients!$EH$77,Nutrients!$EH$78)))))*AN$8))/2000","v":46.653695401449951},{"$f":"(SUMPRODUCT(AO$9:AO$229,Nutrients!$EH$8:$EH$228)+(IF($A$7=Nutrients!$B$8,Nutrients!$EH$8,Nutrients!$EH$9)*AO$7)+(((IF($A$8=Nutrients!$B$79,Nutrients!$EH$79,(IF($A$8=Nutrients!$B$77,Nutrients!$EH$77,Nutrients!$EH$78)))))*AO$8))/2000","v":47.679635647566734},{"$f":"(SUMPRODUCT(AP$9:AP$229,Nutrients!$EH$8:$EH$228)+(IF($A$7=Nutrients!$B$8,Nutrients!$EH$8,Nutrients!$EH$9)*AP$7)+(((IF($A$8=Nutrients!$B$79,Nutrients!$EH$79,(IF($A$8=Nutrients!$B$77,Nutrients!$EH$77,Nutrients!$EH$78)))))*AP$8))/2000","v":39.544986782030342},null,{"$f":"(SUMPRODUCT(AR$9:AR$229,Nutrients!$EH$8:$EH$228)+(IF($A$7=Nutrients!$B$8,Nutrients!$EH$8,Nutrients!$EH$9)*AR$7)+(((IF($A$8=Nutrients!$B$79,Nutrients!$EH$79,(IF($A$8=Nutrients!$B$77,Nutrients!$EH$77,Nutrients!$EH$78)))))*AR$8))/2000","v":44.384950542773936},{"$f":"(SUMPRODUCT(AS$9:AS$229,Nutrients!$EH$8:$EH$228)+(IF($A$7=Nutrients!$B$8,Nutrients!$EH$8,Nutrients!$EH$9)*AS$7)+(((IF($A$8=Nutrients!$B$79,Nutrients!$EH$79,(IF($A$8=Nutrients!$B$77,Nutrients!$EH$77,Nutrients!$EH$78)))))*AS$8))/2000","v":45.843261661725016},{"$f":"(SUMPRODUCT(AT$9:AT$229,Nutrients!$EH$8:$EH$228)+(IF($A$7=Nutrients!$B$8,Nutrients!$EH$8,Nutrients!$EH$9)*AT$7)+(((IF($A$8=Nutrients!$B$79,Nutrients!$EH$79,(IF($A$8=Nutrients!$B$77,Nutrients!$EH$77,Nutrients!$EH$78)))))*AT$8))/2000","v":47.145141317035616},{"$f":"(SUMPRODUCT(AU$9:AU$229,Nutrients!$EH$8:$EH$228)+(IF($A$7=Nutrients!$B$8,Nutrients!$EH$8,Nutrients!$EH$9)*AU$7)+(((IF($A$8=Nutrients!$B$79,Nutrients!$EH$79,(IF($A$8=Nutrients!$B$77,Nutrients!$EH$77,Nutrients!$EH$78)))))*AU$8))/2000","v":48.525462763224894},{"$f":"(SUMPRODUCT(AV$9:AV$229,Nutrients!$EH$8:$EH$228)+(IF($A$7=Nutrients!$B$8,Nutrients!$EH$8,Nutrients!$EH$9)*AV$7)+(((IF($A$8=Nutrients!$B$79,Nutrients!$EH$79,(IF($A$8=Nutrients!$B$77,Nutrients!$EH$77,Nutrients!$EH$78)))))*AV$8))/2000","v":49.556203402118712},{"$f":"(SUMPRODUCT(AW$9:AW$229,Nutrients!$EH$8:$EH$228)+(IF($A$7=Nutrients!$B$8,Nutrients!$EH$8,Nutrients!$EH$9)*AW$7)+(((IF($A$8=Nutrients!$B$79,Nutrients!$EH$79,(IF($A$8=Nutrients!$B$77,Nutrients!$EH$77,Nutrients!$EH$78)))))*AW$8))/2000","v":39.544986782030342}]
["IV value of product, estimate",{"$f":"(0.4472*B304)+51.796","v":67.295310140026132},67.94844373583328,68.516312942344612,68.992490029910371,69.320820614973073,69.480518088923972,null,{"$f":"(0.4472*I304)+51.796","v":67.998028664529301},68.662623025284546,69.241585413764724,69.692502568257908,70.028820542738856,69.480518088923972,null,{"$f":"(0.4472*P304)+51.796","v":68.71611122974025},69.385409694013106,69.971472430744939,70.41959678834931,70.752996718513444,69.480518088923972,null,{"$f":"(0.4472*W304)+51.796","v":69.437905146873121},70.11265085237055,70.69609355554374,71.151007726888182,71.478354526745818,69.480518088923972,null,{"$f":"(0.4472*AD304)+51.796","v":70.166937341135323},70.839675141542031,71.433916406720414,71.881356280956254,72.279296815613819,69.480518088923972,null,{"$f":"(0.4472*AK304)+51.796","v":70.929270373206677},71.567569414616798,72.15734114163557,72.659532583528417,73.118333061591841,69.480518088923972,null,{"$f":"(0.4472*AR304)+51.796","v":71.644949882728497},72.297106615123425,72.879307196978331,73.496586947714178,73.957534161427489,69.480518088923972]
["Na, %",{"$f":"(SUMPRODUCT(B$9:B$229,Nutrients!$BW$8:$BW$228)+(IF($A$7=Nutrients!$B$8,Nutrients!$BW$8,Nutrients!$BW$9)*B$7)+(((IF($A$8=Nutrients!$B$79,Nutrients!$BW$79,(IF($A$8=Nutrients!$B$77,Nutrients!$BW$77,Nutrients!$BW$78)))))*B$8))/2000","v":0.17839028042000546},{"$f":"(SUMPRODUCT(C$9:C$229,Nutrients!$BW$8:$BW$228)+(IF($A$7=Nutrients!$B$8,Nutrients!$BW$8,Nutrients!$BW$9)*C$7)+(((IF($A$8=Nutrients!$B$79,Nutrients!$BW$79,(IF($A$8=Nutrients!$B$77,Nutrients!$BW$77,Nutrients!$BW$78)))))*C$8))/2000","v":0.1747961379454851},{"$f":"(SUMPRODUCT(D$9:D$229,Nutrients!$BW$8:$BW$228)+(IF($A$7=Nutrients!$B$8,Nutrients!$BW$8,Nutrients!$BW$9)*D$7)+(((IF($A$8=Nutrients!$B$79,Nutrients!$BW$79,(IF($A$8=Nutrients!$B$77,Nutrients!$BW$77,Nutrients!$BW$78)))))*D$8))/2000","v":0.17169952789434653},{"$f":"(SUMPRODUCT(E$9:E$229,Nutrients!$BW$8:$BW$228)+(IF($A$7=Nutrients!$B$8,Nutrients!$BW$8,Nutrients!$BW$9)*E$7)+(((IF($A$8=Nutrients!$B$79,Nutrients!$BW$79,(IF($A$8=Nutrients!$B$77,Nutrients!$BW$77,Nutrients!$BW$78)))))*E$8))/2000","v":0.16911270535843034},{"$f":"(SUMPRODUCT(F$9:F$229,Nutrients!$BW$8:$BW$228)+(IF($A$7=Nutrients!$B$8,Nutrients!$BW$8,Nutrients!$BW$9)*F$7)+(((IF($A$8=Nutrients!$B$79,Nutrients!$BW$79,(IF($A$8=Nutrients!$B$77,Nutrients!$BW$77,Nutrients!$BW$78)))))*F$8))/2000","v":0.16737197925804595},{"$f":"(SUMPRODUCT(G$9:G$229,Nutrients!$BW$8:$BW$228)+(IF($A$7=Nutrients!$B$8,Nutrients!$BW$8,Nutrients!$BW$9)*G$7)+(((IF($A$8=Nutrients!$B$79,Nutrients!$BW$79,(IF($A$8=Nutrients!$B$77,Nutrients!$BW$77,Nutrients!$BW$78)))))*G$8))/2000","v":0.1664919947730959},null,{"$f":"(SUMPRODUCT(I$9:I$229,Nutrients!$BW$8:$BW$228)+(IF($A$7=Nutrients!$B$8,Nutrients!$BW$8,Nutrients!$BW$9)*I$7)+(((IF($A$8=Nutrients!$B$79,Nutrients!$BW$79,(IF($A$8=Nutrients!$B$77,Nutrients!$BW$77,Nutrients!$BW$78)))))*I$8))/2000","v":0.18578794211770608},{"$f":"(SUMPRODUCT(J$9:J$229,Nutrients!$BW$8:$BW$228)+(IF($A$7=Nutrients!$B$8,Nutrients!$BW$8,Nutrients!$BW$9)*J$7)+(((IF($A$8=Nutrients!$B$79,Nutrients!$BW$79,(IF($A$8=Nutrients!$B$77,Nutrients!$BW$77,Nutrients!$BW$78)))))*J$8))/2000","v":0.18219429651752395},{"$f":"(SUMPRODUCT(K$9:K$229,Nutrients!$BW$8:$BW$228)+(IF($A$7=Nutrients!$B$8,Nutrients!$BW$8,Nutrients!$BW$9)*K$7)+(((IF($A$8=Nutrients!$B$79,Nutrients!$BW$79,(IF($A$8=Nutrients!$B$77,Nutrients!$BW$77,Nutrients!$BW$78)))))*K$8))/2000","v":0.17907304142467681},{"$f":"(SUMPRODUCT(L$9:L$229,Nutrients!$BW$8:$BW$228)+(IF($A$7=Nutrients!$B$8,Nutrients!$BW$8,Nutrients!$BW$9)*L$7)+(((IF($A$8=Nutrients!$B$79,Nutrients!$BW$79,(IF($A$8=Nutrients!$B$77,Nutrients!$BW$77,Nutrients!$BW$78)))))*L$8))/2000","v":0.17647992727520151},{"$f":"(SUMPRODUCT(M$9:M$229,Nutrients!$BW$8:$BW$228)+(IF($A$7=Nutrients!$B$8,Nutrients!$BW$8,Nutrients!$BW$9)*M$7)+(((IF($A$8=Nutrients!$B$79,Nutrients!$BW$79,(IF($A$8=Nutrients!$B$77,Nutrients!$BW$77,Nutrients!$BW$78)))))*M$8))/2000","v":0.17475133715260913},{"$f":"(SUMPRODUCT(N$9:N$229,Nutrients!$BW$8:$BW$228)+(IF($A$7=Nutrients!$B$8,Nutrients!$BW$8,Nutrients!$BW$9)*N$7)+(((IF($A$8=Nutrients!$B$79,Nutrients!$BW$79,(IF($A$8=Nutrients!$B$77,Nutrients!$BW$77,Nutrients!$BW$78)))))*N$8))/2000","v":0.1664919947730959},null,{"$f":"(SUMPRODUCT(P$9:P$229,Nutrients!$BW$8:$BW$228)+(IF($A$7=Nutrients!$B$8,Nutrients!$BW$8,Nutrients!$BW$9)*P$7)+(((IF($A$8=Nutrients!$B$79,Nutrients!$BW$79,(IF($A$8=Nutrients!$B$77,Nutrients!$BW$77,Nutrients!$BW$78)))))*P$8))/2000","v":0.19317537409517643},{"$f":"(SUMPRODUCT(Q$9:Q$229,Nutrients!$BW$8:$BW$228)+(IF($A$7=Nutrients!$B$8,Nutrients!$BW$8,Nutrients!$BW$9)*Q$7)+(((IF($A$8=Nutrients!$B$79,Nutrients!$BW$79,(IF($A$8=Nutrients!$B$77,Nutrients!$BW$77,Nutrients!$BW$78)))))*Q$8))/2000","v":0.18958143513669443},{"$f":"(SUMPRODUCT(R$9:R$229,Nutrients!$BW$8:$BW$228)+(IF($A$7=Nutrients!$B$8,Nutrients!$BW$8,Nutrients!$BW$9)*R$7)+(((IF($A$8=Nutrients!$B$79,Nutrients!$BW$79,(IF($A$8=Nutrients!$B$77,Nutrients!$BW$77,Nutrients!$BW$78)))))*R$8))/2000","v":0.18645973725042586},{"$f":"(SUMPRODUCT(S$9:S$229,Nutrients!$BW$8:$BW$228)+(IF($A$7=Nutrients!$B$8,Nutrients!$BW$8,Nutrients!$BW$9)*S$7)+(((IF($A$8=Nutrients!$B$79,Nutrients!$BW$79,(IF($A$8=Nutrients!$B$77,Nutrients!$BW$77,Nutrients!$BW$78)))))*S$8))/2000","v":0.1838667972659416},{"$f":"(SUMPRODUCT(T$9:T$229,Nutrients!$BW$8:$BW$228)+(IF($A$7=Nutrients!$B$8,Nutrients!$BW$8,Nutrients!$BW$9)*T$7)+(((IF($A$8=Nutrients!$B$79,Nutrients!$BW$79,(IF($A$8=Nutrients!$B$77,Nutrients!$BW$77,Nutrients!$BW$78)))))*T$8))/2000","v":0.18213777286425512},{"$f":"(SUMPRODUCT(U$9:U$229,Nutrients!$BW$8:$BW$228)+(IF($A$7=Nutrients!$B$8,Nutrients!$BW$8,Nutrients!$BW$9)*U$7)+(((IF($A$8=Nutrients!$B$79,Nutrients!$BW$79,(IF($A$8=Nutrients!$B$77,Nutrients!$BW$77,Nutrients!$BW$78)))))*U$8))/2000","v":0.1664919947730959},null,{"$f":"(SUMPRODUCT(W$9:W$229,Nutrients!$BW$8:$BW$228)+(IF($A$7=Nutrients!$B$8,Nutrients!$BW$8,Nutrients!$BW$9)*W$7)+(((IF($A$8=Nutrients!$B$79,Nutrients!$BW$79,(IF($A$8=Nutrients!$B$77,Nutrients!$BW$77,Nutrients!$BW$78)))))*W$8))/2000","v":0.2005625746245322},{"$f":"(SUMPRODUCT(X$9:X$229,Nutrients!$BW$8:$BW$228)+(IF($A$7=Nutrients!$B$8,Nutrients!$BW$8,Nutrients!$BW$9)*X$7)+(((IF($A$8=Nutrients!$B$79,Nutrients!$BW$79,(IF($A$8=Nutrients!$B$77,Nutrients!$BW$77,Nutrients!$BW$78)))))*X$8))/2000","v":0.19696829596403931},{"$f":"(SUMPRODUCT(Y$9:Y$229,Nutrients!$BW$8:$BW$228)+(IF($A$7=Nutrients!$B$8,Nutrients!$BW$8,Nutrients!$BW$9)*Y$7)+(((IF($A$8=Nutrients!$B$79,Nutrients!$BW$79,(IF($A$8=Nutrients!$B$77,Nutrients!$BW$77,Nutrients!$BW$78)))))*Y$8))/2000","v":0.19384549612943172},{"$f":"(SUMPRODUCT(Z$9:Z$229,Nutrients!$BW$8:$BW$228)+(IF($A$7=Nutrients!$B$8,Nutrients!$BW$8,Nutrients!$BW$9)*Z$7)+(((IF($A$8=Nutrients!$B$79,Nutrients!$BW$79,(IF($A$8=Nutrients!$B$77,Nutrients!$BW$77,Nutrients!$BW$78)))))*Z$8))/2000","v":0.1912528793895264},{"$f":"(SUMPRODUCT(AA$9:AA$229,Nutrients!$BW$8:$BW$228)+(IF($A$7=Nutrients!$B$8,Nutrients!$BW$8,Nutrients!$BW$9)*AA$7)+(((IF($A$8=Nutrients!$B$79,Nutrients!$BW$79,(IF($A$8=Nutrients!$B$77,Nutrients!$BW$77,Nutrients!$BW$78)))))*AA$8))/2000","v":0.18952206349461595},{"$f":"(SUMPRODUCT(AB$9:AB$229,Nutrients!$BW$8:$BW$228)+(IF($A$7=Nutrients!$B$8,Nutrients!$BW$8,Nutrients!$BW$9)*AB$7)+(((IF($A$8=Nutrients!$B$79,Nutrients!$BW$79,(IF($A$8=Nutrients!$B$77,Nutrients!$BW$77,Nutrients!$BW$78)))))*AB$8))/2000","v":0.1664919947730959},null,{"$f":"(SUMPRODUCT(AD$9:AD$229,Nutrients!$BW$8:$BW$228)+(IF($A$7=Nutrients!$B$8,Nutrients!$BW$8,Nutrients!$BW$9)*AD$7)+(((IF($A$8=Nutrients!$B$79,Nutrients!$BW$79,(IF($A$8=Nutrients!$B$77,Nutrients!$BW$77,Nutrients!$BW$78)))))*AD$8))/2000","v":0.20794869108920333},{"$f":"(SUMPRODUCT(AE$9:AE$229,Nutrients!$BW$8:$BW$228)+(IF($A$7=Nutrients!$B$8,Nutrients!$BW$8,Nutrients!$BW$9)*AE$7)+(((IF($A$8=Nutrients!$B$79,Nutrients!$BW$79,(IF($A$8=Nutrients!$B$77,Nutrients!$BW$77,Nutrients!$BW$78)))))*AE$8))/2000","v":0.20435453764611294},{"$f":"(SUMPRODUCT(AF$9:AF$229,Nutrients!$BW$8:$BW$228)+(IF($A$7=Nutrients!$B$8,Nutrients!$BW$8,Nutrients!$BW$9)*AF$7)+(((IF($A$8=Nutrients!$B$79,Nutrients!$BW$79,(IF($A$8=Nutrients!$B$77,Nutrients!$BW$77,Nutrients!$BW$78)))))*AF$8))/2000","v":0.20123277930468592},{"$f":"(SUMPRODUCT(AG$9:AG$229,Nutrients!$BW$8:$BW$228)+(IF($A$7=Nutrients!$B$8,Nutrients!$BW$8,Nutrients!$BW$9)*AG$7)+(((IF($A$8=Nutrients!$B$79,Nutrients!$BW$79,(IF($A$8=Nutrients!$B$77,Nutrients!$BW$77,Nutrients!$BW$78)))))*AG$8))/2000","v":0.19863749145565177},{"$f":"(SUMPRODUCT(AH$9:AH$229,Nutrients!$BW$8:$BW$228)+(IF($A$7=Nutrients!$B$8,Nutrients!$BW$8,Nutrients!$BW$9)*AH$7)+(((IF($A$8=Nutrients!$B$79,Nutrients!$BW$79,(IF($A$8=Nutrients!$B$77,Nutrients!$BW$77,Nutrients!$BW$78)))))*AH$8))/2000","v":0.19701873148871532},{"$f":"(SUMPRODUCT(AI$9:AI$229,Nutrients!$BW$8:$BW$228)+(IF($A$7=Nutrients!$B$8,Nutrients!$BW$8,Nutrients!$BW$9)*AI$7)+(((IF($A$8=Nutrients!$B$79,Nutrients!$BW$79,(IF($A$8=Nutrients!$B$77,Nutrients!$BW$77,Nutrients!$BW$78)))))*AI$8))/2000","v":0.1664919947730959},null,{"$f":"(SUMPRODUCT(AK$9:AK$229,Nutrients!$BW$8:$BW$228)+(IF($A$7=Nutrients!$B$8,Nutrients!$BW$8,Nutrients!$BW$9)*AK$7)+(((IF($A$8=Nutrients!$B$79,Nutrients!$BW$79,(IF($A$8=Nutrients!$B$77,Nutrients!$BW$77,Nutrients!$BW$78)))))*AK$8))/2000","v":0.21533241450511756},{"$f":"(SUMPRODUCT(AL$9:AL$229,Nutrients!$BW$8:$BW$228)+(IF($A$7=Nutrients!$B$8,Nutrients!$BW$8,Nutrients!$BW$9)*AL$7)+(((IF($A$8=Nutrients!$B$79,Nutrients!$BW$79,(IF($A$8=Nutrients!$B$77,Nutrients!$BW$77,Nutrients!$BW$78)))))*AL$8))/2000","v":0.21174040873920949},{"$f":"(SUMPRODUCT(AM$9:AM$229,Nutrients!$BW$8:$BW$228)+(IF($A$7=Nutrients!$B$8,Nutrients!$BW$8,Nutrients!$BW$9)*AM$7)+(((IF($A$8=Nutrients!$B$79,Nutrients!$BW$79,(IF($A$8=Nutrients!$B$77,Nutrients!$BW$77,Nutrients!$BW$78)))))*AM$8))/2000","v":0.2086175068206311},{"$f":"(SUMPRODUCT(AN$9:AN$229,Nutrients!$BW$8:$BW$228)+(IF($A$7=Nutrients!$B$8,Nutrients!$BW$8,Nutrients!$BW$9)*AN$7)+(((IF($A$8=Nutrients!$B$79,Nutrients!$BW$79,(IF($A$8=Nutrients!$B$77,Nutrients!$BW$77,Nutrients!$BW$78)))))*AN$8))/2000","v":0.20613045995446339},{"$f":"(SUMPRODUCT(AO$9:AO$229,Nutrients!$BW$8:$BW$228)+(IF($A$7=Nutrients!$B$8,Nutrients!$BW$8,Nutrients!$BW$9)*AO$7)+(((IF($A$8=Nutrients!$B$79,Nutrients!$BW$79,(IF($A$8=Nutrients!$B$77,Nutrients!$BW$77,Nutrients!$BW$78)))))*AO$8))/2000","v":0.2045344392217846},{"$f":"(SUMPRODUCT(AP$9:AP$229,Nutrients!$BW$8:$BW$228)+(IF($A$7=Nutrients!$B$8,Nutrients!$BW$8,Nutrients!$BW$9)*AP$7)+(((IF($A$8=Nutrients!$B$79,Nutrients!$BW$79,(IF($A$8=Nutrients!$B$77,Nutrients!$BW$77,Nutrients!$BW$78)))))*AP$8))/2000","v":0.1664919947730959},null,{"$f":"(SUMPRODUCT(AR$9:AR$229,Nutrients!$BW$8:$BW$228)+(IF($A$7=Nutrients!$B$8,Nutrients!$BW$8,Nutrients!$BW$9)*AR$7)+(((IF($A$8=Nutrients!$B$79,Nutrients!$BW$79,(IF($A$8=Nutrients!$B$77,Nutrients!$BW$77,Nutrients!$BW$78)))))*AR$8))/2000","v":0.22272033360004412},{"$f":"(SUMPRODUCT(AS$9:AS$229,Nutrients!$BW$8:$BW$228)+(IF($A$7=Nutrients!$B$8,Nutrients!$BW$8,Nutrients!$BW$9)*AS$7)+(((IF($A$8=Nutrients!$B$79,Nutrients!$BW$79,(IF($A$8=Nutrients!$B$77,Nutrients!$BW$77,Nutrients!$BW$78)))))*AS$8))/2000","v":0.21912746362558358},{"$f":"(SUMPRODUCT(AT$9:AT$229,Nutrients!$BW$8:$BW$228)+(IF($A$7=Nutrients!$B$8,Nutrients!$BW$8,Nutrients!$BW$9)*AT$7)+(((IF($A$8=Nutrients!$B$79,Nutrients!$BW$79,(IF($A$8=Nutrients!$B$77,Nutrients!$BW$77,Nutrients!$BW$78)))))*AT$8))/2000","v":0.21604027907704085},{"$f":"(SUMPRODUCT(AU$9:AU$229,Nutrients!$BW$8:$BW$228)+(IF($A$7=Nutrients!$B$8,Nutrients!$BW$8,Nutrients!$BW$9)*AU$7)+(((IF($A$8=Nutrients!$B$79,Nutrients!$BW$79,(IF($A$8=Nutrients!$B$77,Nutrients!$BW$77,Nutrients!$BW$78)))))*AU$8))/2000","v":0.21364673429155018},{"$f":"(SUMPRODUCT(AV$9:AV$229,Nutrients!$BW$8:$BW$228)+(IF($A$7=Nutrients!$B$8,Nutrients!$BW$8,Nutrients!$BW$9)*AV$7)+(((IF($A$8=Nutrients!$B$79,Nutrients!$BW$79,(IF($A$8=Nutrients!$B$77,Nutrients!$BW$77,Nutrients!$BW$78)))))*AV$8))/2000","v":0.21204981488235475},{"$f":"(SUMPRODUCT(AW$9:AW$229,Nutrients!$BW$8:$BW$228)+(IF($A$7=Nutrients!$B$8,Nutrients!$BW$8,Nutrients!$BW$9)*AW$7)+(((IF($A$8=Nutrients!$B$79,Nutrients!$BW$79,(IF($A$8=Nutrients!$B$77,Nutrients!$BW$77,Nutrients!$BW$78)))))*AW$8))/2000","v":0.1664919947730959}]
["Cl, %",{"$f":"(SUMPRODUCT(B$9:B$229,Nutrients!$BT$8:$BT$228)+(IF($A$7=Nutrients!$B$8,Nutrients!$BT$8,Nutrients!$BT$9)*B$7)+(((IF($A$8=Nutrients!$B$79,Nutrients!$BT$79,(IF($A$8=Nutrients!$B$77,Nutrients!$BT$77,Nutrients!$BT$78)))))*B$8))/2000","v":0.31519434822612252},{"$f":"(SUMPRODUCT(C$9:C$229,Nutrients!$BT$8:$BT$228)+(IF($A$7=Nutrients!$B$8,Nutrients!$BT$8,Nutrients!$BT$9)*C$7)+(((IF($A$8=Nutrients!$B$79,Nutrients!$BT$79,(IF($A$8=Nutrients!$B$77,Nutrients!$BT$77,Nutrients!$BT$78)))))*C$8))/2000","v":0.3147366231672945},{"$f":"(SUMPRODUCT(D$9:D$229,Nutrients!$BT$8:$BT$228)+(IF($A$7=Nutrients!$B$8,Nutrients!$BT$8,Nutrients!$BT$9)*D$7)+(((IF($A$8=Nutrients!$B$79,Nutrients!$BT$79,(IF($A$8=Nutrients!$B$77,Nutrients!$BT$77,Nutrients!$BT$78)))))*D$8))/2000","v":0.31354180150272754},{"$f":"(SUMPRODUCT(E$9:E$229,Nutrients!$BT$8:$BT$228)+(IF($A$7=Nutrients!$B$8,Nutrients!$BT$8,Nutrients!$BT$9)*E$7)+(((IF($A$8=Nutrients!$B$79,Nutrients!$BT$79,(IF($A$8=Nutrients!$B$77,Nutrients!$BT$77,Nutrients!$BT$78)))))*E$8))/2000","v":0.31295871729246166},{"$f":"(SUMPRODUCT(F$9:F$229,Nutrients!$BT$8:$BT$228)+(IF($A$7=Nutrients!$B$8,Nutrients!$BT$8,Nutrients!$BT$9)*F$7)+(((IF($A$8=Nutrients!$B$79,Nutrients!$BT$79,(IF($A$8=Nutrients!$B$77,Nutrients!$BT$77,Nutrients!$BT$78)))))*F$8))/2000","v":0.31206915279820541},{"$f":"(SUMPRODUCT(G$9:G$229,Nutrients!$BT$8:$BT$228)+(IF($A$7=Nutrients!$B$8,Nutrients!$BT$8,Nutrients!$BT$9)*G$7)+(((IF($A$8=Nutrients!$B$79,Nutrients!$BT$79,(IF($A$8=Nutrients!$B$77,Nutrients!$BT$77,Nutrients!$BT$78)))))*G$8))/2000","v":0.31085636054251664},null,{"$f":"(SUMPRODUCT(I$9:I$229,Nutrients!$BT$8:$BT$228)+(IF($A$7=Nutrients!$B$8,Nutrients!$BT$8,Nutrients!$BT$9)*I$7)+(((IF($A$8=Nutrients!$B$79,Nutrients!$BT$79,(IF($A$8=Nutrients!$B$77,Nutrients!$BT$77,Nutrients!$BT$78)))))*I$8))/2000","v":0.32773618409760291},{"$f":"(SUMPRODUCT(J$9:J$229,Nutrients!$BT$8:$BT$228)+(IF($A$7=Nutrients!$B$8,Nutrients!$BT$8,Nutrients!$BT$9)*J$7)+(((IF($A$8=Nutrients!$B$79,Nutrients!$BT$79,(IF($A$8=Nutrients!$B$77,Nutrients!$BT$77,Nutrients!$BT$78)))))*J$8))/2000","v":0.32727551196726867},{"$f":"(SUMPRODUCT(K$9:K$229,Nutrients!$BT$8:$BT$228)+(IF($A$7=Nutrients!$B$8,Nutrients!$BT$8,Nutrients!$BT$9)*K$7)+(((IF($A$8=Nutrients!$B$79,Nutrients!$BT$79,(IF($A$8=Nutrients!$B$77,Nutrients!$BT$77,Nutrients!$BT$78)))))*K$8))/2000","v":0.32608604316010609},{"$f":"(SUMPRODUCT(L$9:L$229,Nutrients!$BT$8:$BT$228)+(IF($A$7=Nutrients!$B$8,Nutrients!$BT$8,Nutrients!$BT$9)*L$7)+(((IF($A$8=Nutrients!$B$79,Nutrients!$BT$79,(IF($A$8=Nutrients!$B$77,Nutrients!$BT$77,Nutrients!$BT$78)))))*L$8))/2000","v":0.32551104636396283},{"$f":"(SUMPRODUCT(M$9:M$229,Nutrients!$BT$8:$BT$228)+(IF($A$7=Nutrients!$B$8,Nutrients!$BT$8,Nutrients!$BT$9)*M$7)+(((IF($A$8=Nutrients!$B$79,Nutrients!$BT$79,(IF($A$8=Nutrients!$B$77,Nutrients!$BT$77,Nutrients!$BT$78)))))*M$8))/2000","v":0.32461567674793873},{"$f":"(SUMPRODUCT(N$9:N$229,Nutrients!$BT$8:$BT$228)+(IF($A$7=Nutrients!$B$8,Nutrients!$BT$8,Nutrients!$BT$9)*N$7)+(((IF($A$8=Nutrients!$B$79,Nutrients!$BT$79,(IF($A$8=Nutrients!$B$77,Nutrients!$BT$77,Nutrients!$BT$78)))))*N$8))/2000","v":0.31085636054251664},null,{"$f":"(SUMPRODUCT(P$9:P$229,Nutrients!$BT$8:$BT$228)+(IF($A$7=Nutrients!$B$8,Nutrients!$BT$8,Nutrients!$BT$9)*P$7)+(((IF($A$8=Nutrients!$B$79,Nutrients!$BT$79,(IF($A$8=Nutrients!$B$77,Nutrients!$BT$77,Nutrients!$BT$78)))))*P$8))/2000","v":0.34027750037707466},{"$f":"(SUMPRODUCT(Q$9:Q$229,Nutrients!$BT$8:$BT$228)+(IF($A$7=Nutrients!$B$8,Nutrients!$BT$8,Nutrients!$BT$9)*Q$7)+(((IF($A$8=Nutrients!$B$79,Nutrients!$BT$79,(IF($A$8=Nutrients!$B$77,Nutrients!$BT$77,Nutrients!$BT$78)))))*Q$8))/2000","v":0.33981587855654122},{"$f":"(SUMPRODUCT(R$9:R$229,Nutrients!$BT$8:$BT$228)+(IF($A$7=Nutrients!$B$8,Nutrients!$BT$8,Nutrients!$BT$9)*R$7)+(((IF($A$8=Nutrients!$B$79,Nutrients!$BT$79,(IF($A$8=Nutrients!$B$77,Nutrients!$BT$77,Nutrients!$BT$78)))))*R$8))/2000","v":0.33862497629215982},{"$f":"(SUMPRODUCT(S$9:S$229,Nutrients!$BT$8:$BT$228)+(IF($A$7=Nutrients!$B$8,Nutrients!$BT$8,Nutrients!$BT$9)*S$7)+(((IF($A$8=Nutrients!$B$79,Nutrients!$BT$79,(IF($A$8=Nutrients!$B$77,Nutrients!$BT$77,Nutrients!$BT$78)))))*S$8))/2000","v":0.33805054332115853},{"$f":"(SUMPRODUCT(T$9:T$229,Nutrients!$BT$8:$BT$228)+(IF($A$7=Nutrients!$B$8,Nutrients!$BT$8,Nutrients!$BT$9)*T$7)+(((IF($A$8=Nutrients!$B$79,Nutrients!$BT$79,(IF($A$8=Nutrients!$B$77,Nutrients!$BT$77,Nutrients!$BT$78)))))*T$8))/2000","v":0.33715376781138728},{"$f":"(SUMPRODUCT(U$9:U$229,Nutrients!$BT$8:$BT$228)+(IF($A$7=Nutrients!$B$8,Nutrients!$BT$8,Nutrients!$BT$9)*U$7)+(((IF($A$8=Nutrients!$B$79,Nutrients!$BT$79,(IF($A$8=Nutrients!$B$77,Nutrients!$BT$77,Nutrients!$BT$78)))))*U$8))/2000","v":0.31085636054251664},null,{"$f":"(SUMPRODUCT(W$9:W$229,Nutrients!$BT$8:$BT$228)+(IF($A$7=Nutrients!$B$8,Nutrients!$BT$8,Nutrients!$BT$9)*W$7)+(((IF($A$8=Nutrients!$B$79,Nutrients!$BT$79,(IF($A$8=Nutrients!$B$77,Nutrients!$BT$77,Nutrients!$BT$78)))))*W$8))/2000","v":0.35281806738848021},{"$f":"(SUMPRODUCT(X$9:X$229,Nutrients!$BT$8:$BT$228)+(IF($A$7=Nutrients!$B$8,Nutrients!$BT$8,Nutrients!$BT$9)*X$7)+(((IF($A$8=Nutrients!$B$79,Nutrients!$BT$79,(IF($A$8=Nutrients!$B$77,Nutrients!$BT$77,Nutrients!$BT$78)))))*X$8))/2000","v":0.3523553458490345},{"$f":"(SUMPRODUCT(Y$9:Y$229,Nutrients!$BT$8:$BT$228)+(IF($A$7=Nutrients!$B$8,Nutrients!$BT$8,Nutrients!$BT$9)*Y$7)+(((IF($A$8=Nutrients!$B$79,Nutrients!$BT$79,(IF($A$8=Nutrients!$B$77,Nutrients!$BT$77,Nutrients!$BT$78)))))*Y$8))/2000","v":0.35116565592962989},{"$f":"(SUMPRODUCT(Z$9:Z$229,Nutrients!$BT$8:$BT$228)+(IF($A$7=Nutrients!$B$8,Nutrients!$BT$8,Nutrients!$BT$9)*Z$7)+(((IF($A$8=Nutrients!$B$79,Nutrients!$BT$79,(IF($A$8=Nutrients!$B$77,Nutrients!$BT$77,Nutrients!$BT$78)))))*Z$8))/2000","v":0.35059226939981891},{"$f":"(SUMPRODUCT(AA$9:AA$229,Nutrients!$BT$8:$BT$228)+(IF($A$7=Nutrients!$B$8,Nutrients!$BT$8,Nutrients!$BT$9)*AA$7)+(((IF($A$8=Nutrients!$B$79,Nutrients!$BT$79,(IF($A$8=Nutrients!$B$77,Nutrients!$BT$77,Nutrients!$BT$78)))))*AA$8))/2000","v":0.3496896942806364},{"$f":"(SUMPRODUCT(AB$9:AB$229,Nutrients!$BT$8:$BT$228)+(IF($A$7=Nutrients!$B$8,Nutrients!$BT$8,Nutrients!$BT$9)*AB$7)+(((IF($A$8=Nutrients!$B$79,Nutrients!$BT$79,(IF($A$8=Nutrients!$B$77,Nutrients!$BT$77,Nutrients!$BT$78)))))*AB$8))/2000","v":0.31085636054251664},null,{"$f":"(SUMPRODUCT(AD$9:AD$229,Nutrients!$BT$8:$BT$228)+(IF($A$7=Nutrients!$B$8,Nutrients!$BT$8,Nutrients!$BT$9)*AD$7)+(((IF($A$8=Nutrients!$B$79,Nutrients!$BT$79,(IF($A$8=Nutrients!$B$77,Nutrients!$BT$77,Nutrients!$BT$78)))))*AD$8))/2000","v":0.36535751479595047},{"$f":"(SUMPRODUCT(AE$9:AE$229,Nutrients!$BT$8:$BT$228)+(IF($A$7=Nutrients!$B$8,Nutrients!$BT$8,Nutrients!$BT$9)*AE$7)+(((IF($A$8=Nutrients!$B$79,Nutrients!$BT$79,(IF($A$8=Nutrients!$B$77,Nutrients!$BT$77,Nutrients!$BT$78)))))*AE$8))/2000","v":0.36489519862338887},{"$f":"(SUMPRODUCT(AF$9:AF$229,Nutrients!$BT$8:$BT$228)+(IF($A$7=Nutrients!$B$8,Nutrients!$BT$8,Nutrients!$BT$9)*AF$7)+(((IF($A$8=Nutrients!$B$79,Nutrients!$BT$79,(IF($A$8=Nutrients!$B$77,Nutrients!$BT$77,Nutrients!$BT$78)))))*AF$8))/2000","v":0.36370888033473975},{"$f":"(SUMPRODUCT(AG$9:AG$229,Nutrients!$BT$8:$BT$228)+(IF($A$7=Nutrients!$B$8,Nutrients!$BT$8,Nutrients!$BT$9)*AG$7)+(((IF($A$8=Nutrients!$B$79,Nutrients!$BT$79,(IF($A$8=Nutrients!$B$77,Nutrients!$BT$77,Nutrients!$BT$78)))))*AG$8))/2000","v":0.36312684661082534},{"$f":"(SUMPRODUCT(AH$9:AH$229,Nutrients!$BT$8:$BT$228)+(IF($A$7=Nutrients!$B$8,Nutrients!$BT$8,Nutrients!$BT$9)*AH$7)+(((IF($A$8=Nutrients!$B$79,Nutrients!$BT$79,(IF($A$8=Nutrients!$B$77,Nutrients!$BT$77,Nutrients!$BT$78)))))*AH$8))/2000","v":0.36217224288400485},{"$f":"(SUMPRODUCT(AI$9:AI$229,Nutrients!$BT$8:$BT$228)+(IF($A$7=Nutrients!$B$8,Nutrients!$BT$8,Nutrients!$BT$9)*AI$7)+(((IF($A$8=Nutrients!$B$79,Nutrients!$BT$79,(IF($A$8=Nutrients!$B$77,Nutrients!$BT$77,Nutrients!$BT$78)))))*AI$8))/2000","v":0.31085636054251664},null,{"$f":"(SUMPRODUCT(AK$9:AK$229,Nutrients!$BT$8:$BT$228)+(IF($A$7=Nutrients!$B$8,Nutrients!$BT$8,Nutrients!$BT$9)*AK$7)+(((IF($A$8=Nutrients!$B$79,Nutrients!$BT$79,(IF($A$8=Nutrients!$B$77,Nutrients!$BT$77,Nutrients!$BT$78)))))*AK$8))/2000","v":0.37789041009733776},{"$f":"(SUMPRODUCT(AL$9:AL$229,Nutrients!$BT$8:$BT$228)+(IF($A$7=Nutrients!$B$8,Nutrients!$BT$8,Nutrients!$BT$9)*AL$7)+(((IF($A$8=Nutrients!$B$79,Nutrients!$BT$79,(IF($A$8=Nutrients!$B$77,Nutrients!$BT$77,Nutrients!$BT$78)))))*AL$8))/2000","v":0.37743504661018573},{"$f":"(SUMPRODUCT(AM$9:AM$229,Nutrients!$BT$8:$BT$228)+(IF($A$7=Nutrients!$B$8,Nutrients!$BT$8,Nutrients!$BT$9)*AM$7)+(((IF($A$8=Nutrients!$B$79,Nutrients!$BT$79,(IF($A$8=Nutrients!$B$77,Nutrients!$BT$77,Nutrients!$BT$78)))))*AM$8))/2000","v":0.37624502621386391},{"$f":"(SUMPRODUCT(AN$9:AN$229,Nutrients!$BT$8:$BT$228)+(IF($A$7=Nutrients!$B$8,Nutrients!$BT$8,Nutrients!$BT$9)*AN$7)+(((IF($A$8=Nutrients!$B$79,Nutrients!$BT$79,(IF($A$8=Nutrients!$B$77,Nutrients!$BT$77,Nutrients!$BT$78)))))*AN$8))/2000","v":0.37561577151326347},{"$f":"(SUMPRODUCT(AO$9:AO$229,Nutrients!$BT$8:$BT$228)+(IF($A$7=Nutrients!$B$8,Nutrients!$BT$8,Nutrients!$BT$9)*AO$7)+(((IF($A$8=Nutrients!$B$79,Nutrients!$BT$79,(IF($A$8=Nutrients!$B$77,Nutrients!$BT$77,Nutrients!$BT$78)))))*AO$8))/2000","v":0.37464072195363507},{"$f":"(SUMPRODUCT(AP$9:AP$229,Nutrients!$BT$8:$BT$228)+(IF($A$7=Nutrients!$B$8,Nutrients!$BT$8,Nutrients!$BT$9)*AP$7)+(((IF($A$8=Nutrients!$B$79,Nutrients!$BT$79,(IF($A$8=Nutrients!$B$77,Nutrients!$BT$77,Nutrients!$BT$78)))))*AP$8))/2000","v":0.31085636054251664},null,{"$f":"(SUMPRODUCT(AR$9:AR$229,Nutrients!$BT$8:$BT$228)+(IF($A$7=Nutrients!$B$8,Nutrients!$BT$8,Nutrients!$BT$9)*AR$7)+(((IF($A$8=Nutrients!$B$79,Nutrients!$BT$79,(IF($A$8=Nutrients!$B$77,Nutrients!$BT$77,Nutrients!$BT$78)))))*AR$8))/2000","v":0.39043330332443382},{"$f":"(SUMPRODUCT(AS$9:AS$229,Nutrients!$BT$8:$BT$228)+(IF($A$7=Nutrients!$B$8,Nutrients!$BT$8,Nutrients!$BT$9)*AS$7)+(((IF($A$8=Nutrients!$B$79,Nutrients!$BT$79,(IF($A$8=Nutrients!$B$77,Nutrients!$BT$77,Nutrients!$BT$78)))))*AS$8))/2000","v":0.38997514213088402},{"$f":"(SUMPRODUCT(AT$9:AT$229,Nutrients!$BT$8:$BT$228)+(IF($A$7=Nutrients!$B$8,Nutrients!$BT$8,Nutrients!$BT$9)*AT$7)+(((IF($A$8=Nutrients!$B$79,Nutrients!$BT$79,(IF($A$8=Nutrients!$B$77,Nutrients!$BT$77,Nutrients!$BT$78)))))*AT$8))/2000","v":0.38876987841500377},{"$f":"(SUMPRODUCT(AU$9:AU$229,Nutrients!$BT$8:$BT$228)+(IF($A$7=Nutrients!$B$8,Nutrients!$BT$8,Nutrients!$BT$9)*AU$7)+(((IF($A$8=Nutrients!$B$79,Nutrients!$BT$79,(IF($A$8=Nutrients!$B$77,Nutrients!$BT$77,Nutrients!$BT$78)))))*AU$8))/2000","v":0.38808457330855944},{"$f":"(SUMPRODUCT(AV$9:AV$229,Nutrients!$BT$8:$BT$228)+(IF($A$7=Nutrients!$B$8,Nutrients!$BT$8,Nutrients!$BT$9)*AV$7)+(((IF($A$8=Nutrients!$B$79,Nutrients!$BT$79,(IF($A$8=Nutrients!$B$77,Nutrients!$BT$77,Nutrients!$BT$78)))))*AV$8))/2000","v":0.38710814278484379},{"$f":"(SUMPRODUCT(AW$9:AW$229,Nutrients!$BT$8:$BT$228)+(IF($A$7=Nutrients!$B$8,Nutrients!$BT$8,Nutrients!$BT$9)*AW$7)+(((IF($A$8=Nutrients!$B$79,Nutrients!$BT$79,(IF($A$8=Nutrients!$B$77,Nutrients!$BT$77,Nutrients!$BT$78)))))*AW$8))/2000","v":0.31085636054251664}]
["K, %",{"$f":"(SUMPRODUCT(B$9:B$229,Nutrients!$BU$8:$BU$228)+(IF($A$7=Nutrients!$B$8,Nutrients!$BU$8,Nutrients!$BU$9)*B$7)+(((IF($A$8=Nutrients!$B$79,Nutrients!$BU$79,(IF($A$8=Nutrients!$B$77,Nutrients!$BU$77,Nutrients!$BU$78)))))*B$8))/2000","v":0.90672227094333946},{"$f":"(SUMPRODUCT(C$9:C$229,Nutrients!$BU$8:$BU$228)+(IF($A$7=Nutrients!$B$8,Nutrients!$BU$8,Nutrients!$BU$9)*C$7)+(((IF($A$8=Nutrients!$B$79,Nutrients!$BU$79,(IF($A$8=Nutrients!$B$77,Nutrients!$BU$77,Nutrients!$BU$78)))))*C$8))/2000","v":0.80119571619411978},{"$f":"(SUMPRODUCT(D$9:D$229,Nutrients!$BU$8:$BU$228)+(IF($A$7=Nutrients!$B$8,Nutrients!$BU$8,Nutrients!$BU$9)*D$7)+(((IF($A$8=Nutrients!$B$79,Nutrients!$BU$79,(IF($A$8=Nutrients!$B$77,Nutrients!$BU$77,Nutrients!$BU$78)))))*D$8))/2000","v":0.71030836475916248},{"$f":"(SUMPRODUCT(E$9:E$229,Nutrients!$BU$8:$BU$228)+(IF($A$7=Nutrients!$B$8,Nutrients!$BU$8,Nutrients!$BU$9)*E$7)+(((IF($A$8=Nutrients!$B$79,Nutrients!$BU$79,(IF($A$8=Nutrients!$B$77,Nutrients!$BU$77,Nutrients!$BU$78)))))*E$8))/2000","v":0.63370500360255355},{"$f":"(SUMPRODUCT(F$9:F$229,Nutrients!$BU$8:$BU$228)+(IF($A$7=Nutrients!$B$8,Nutrients!$BU$8,Nutrients!$BU$9)*F$7)+(((IF($A$8=Nutrients!$B$79,Nutrients!$BU$79,(IF($A$8=Nutrients!$B$77,Nutrients!$BU$77,Nutrients!$BU$78)))))*F$8))/2000","v":0.58276518762548057},{"$f":"(SUMPRODUCT(G$9:G$229,Nutrients!$BU$8:$BU$228)+(IF($A$7=Nutrients!$B$8,Nutrients!$BU$8,Nutrients!$BU$9)*G$7)+(((IF($A$8=Nutrients!$B$79,Nutrients!$BU$79,(IF($A$8=Nutrients!$B$77,Nutrients!$BU$77,Nutrients!$BU$78)))))*G$8))/2000","v":0.55679357869744972},null,{"$f":"(SUMPRODUCT(I$9:I$229,Nutrients!$BU$8:$BU$228)+(IF($A$7=Nutrients!$B$8,Nutrients!$BU$8,Nutrients!$BU$9)*I$7)+(((IF($A$8=Nutrients!$B$79,Nutrients!$BU$79,(IF($A$8=Nutrients!$B$77,Nutrients!$BU$77,Nutrients!$BU$78)))))*I$8))/2000","v":0.90643292507164752},{"$f":"(SUMPRODUCT(J$9:J$229,Nutrients!$BU$8:$BU$228)+(IF($A$7=Nutrients!$B$8,Nutrients!$BU$8,Nutrients!$BU$9)*J$7)+(((IF($A$8=Nutrients!$B$79,Nutrients!$BU$79,(IF($A$8=Nutrients!$B$77,Nutrients!$BU$77,Nutrients!$BU$78)))))*J$8))/2000","v":0.80089626477003872},{"$f":"(SUMPRODUCT(K$9:K$229,Nutrients!$BU$8:$BU$228)+(IF($A$7=Nutrients!$B$8,Nutrients!$BU$8,Nutrients!$BU$9)*K$7)+(((IF($A$8=Nutrients!$B$79,Nutrients!$BU$79,(IF($A$8=Nutrients!$B$77,Nutrients!$BU$77,Nutrients!$BU$78)))))*K$8))/2000","v":0.71000818158492163},{"$f":"(SUMPRODUCT(L$9:L$229,Nutrients!$BU$8:$BU$228)+(IF($A$7=Nutrients!$B$8,Nutrients!$BU$8,Nutrients!$BU$9)*L$7)+(((IF($A$8=Nutrients!$B$79,Nutrients!$BU$79,(IF($A$8=Nutrients!$B$77,Nutrients!$BU$77,Nutrients!$BU$78)))))*L$8))/2000","v":0.63342802222851446},{"$f":"(SUMPRODUCT(M$9:M$229,Nutrients!$BU$8:$BU$228)+(IF($A$7=Nutrients!$B$8,Nutrients!$BU$8,Nutrients!$BU$9)*M$7)+(((IF($A$8=Nutrients!$B$79,Nutrients!$BU$79,(IF($A$8=Nutrients!$B$77,Nutrients!$BU$77,Nutrients!$BU$78)))))*M$8))/2000","v":0.58247763217707049},{"$f":"(SUMPRODUCT(N$9:N$229,Nutrients!$BU$8:$BU$228)+(IF($A$7=Nutrients!$B$8,Nutrients!$BU$8,Nutrients!$BU$9)*N$7)+(((IF($A$8=Nutrients!$B$79,Nutrients!$BU$79,(IF($A$8=Nutrients!$B$77,Nutrients!$BU$77,Nutrients!$BU$78)))))*N$8))/2000","v":0.55679357869744972},null,{"$f":"(SUMPRODUCT(P$9:P$229,Nutrients!$BU$8:$BU$228)+(IF($A$7=Nutrients!$B$8,Nutrients!$BU$8,Nutrients!$BU$9)*P$7)+(((IF($A$8=Nutrients!$B$79,Nutrients!$BU$79,(IF($A$8=Nutrients!$B$77,Nutrients!$BU$77,Nutrients!$BU$78)))))*P$8))/2000","v":0.90613375404651042},{"$f":"(SUMPRODUCT(Q$9:Q$229,Nutrients!$BU$8:$BU$228)+(IF($A$7=Nutrients!$B$8,Nutrients!$BU$8,Nutrients!$BU$9)*Q$7)+(((IF($A$8=Nutrients!$B$79,Nutrients!$BU$79,(IF($A$8=Nutrients!$B$77,Nutrients!$BU$77,Nutrients!$BU$78)))))*Q$8))/2000","v":0.80059377512913465},{"$f":"(SUMPRODUCT(R$9:R$229,Nutrients!$BU$8:$BU$228)+(IF($A$7=Nutrients!$B$8,Nutrients!$BU$8,Nutrients!$BU$9)*R$7)+(((IF($A$8=Nutrients!$B$79,Nutrients!$BU$79,(IF($A$8=Nutrients!$B$77,Nutrients!$BU$77,Nutrients!$BU$78)))))*R$8))/2000","v":0.70970068284343757},{"$f":"(SUMPRODUCT(S$9:S$229,Nutrients!$BU$8:$BU$228)+(IF($A$7=Nutrients!$B$8,Nutrients!$BU$8,Nutrients!$BU$9)*S$7)+(((IF($A$8=Nutrients!$B$79,Nutrients!$BU$79,(IF($A$8=Nutrients!$B$77,Nutrients!$BU$77,Nutrients!$BU$78)))))*S$8))/2000","v":0.63312249372849194},{"$f":"(SUMPRODUCT(T$9:T$229,Nutrients!$BU$8:$BU$228)+(IF($A$7=Nutrients!$B$8,Nutrients!$BU$8,Nutrients!$BU$9)*T$7)+(((IF($A$8=Nutrients!$B$79,Nutrients!$BU$79,(IF($A$8=Nutrients!$B$77,Nutrients!$BU$77,Nutrients!$BU$78)))))*T$8))/2000","v":0.58216719089479552},{"$f":"(SUMPRODUCT(U$9:U$229,Nutrients!$BU$8:$BU$228)+(IF($A$7=Nutrients!$B$8,Nutrients!$BU$8,Nutrients!$BU$9)*U$7)+(((IF($A$8=Nutrients!$B$79,Nutrients!$BU$79,(IF($A$8=Nutrients!$B$77,Nutrients!$BU$77,Nutrients!$BU$78)))))*U$8))/2000","v":0.55679357869744972},null,{"$f":"(SUMPRODUCT(W$9:W$229,Nutrients!$BU$8:$BU$228)+(IF($A$7=Nutrients!$B$8,Nutrients!$BU$8,Nutrients!$BU$9)*W$7)+(((IF($A$8=Nutrients!$B$79,Nutrients!$BU$79,(IF($A$8=Nutrients!$B$77,Nutrients!$BU$77,Nutrients!$BU$78)))))*W$8))/2000","v":0.90583196476457739},{"$f":"(SUMPRODUCT(X$9:X$229,Nutrients!$BU$8:$BU$228)+(IF($A$7=Nutrients!$B$8,Nutrients!$BU$8,Nutrients!$BU$9)*X$7)+(((IF($A$8=Nutrients!$B$79,Nutrients!$BU$79,(IF($A$8=Nutrients!$B$77,Nutrients!$BU$77,Nutrients!$BU$78)))))*X$8))/2000","v":0.80028814296820305},{"$f":"(SUMPRODUCT(Y$9:Y$229,Nutrients!$BU$8:$BU$228)+(IF($A$7=Nutrients!$B$8,Nutrients!$BU$8,Nutrients!$BU$9)*Y$7)+(((IF($A$8=Nutrients!$B$79,Nutrients!$BU$79,(IF($A$8=Nutrients!$B$77,Nutrients!$BU$77,Nutrients!$BU$78)))))*Y$8))/2000","v":0.70939908489192138},{"$f":"(SUMPRODUCT(Z$9:Z$229,Nutrients!$BU$8:$BU$228)+(IF($A$7=Nutrients!$B$8,Nutrients!$BU$8,Nutrients!$BU$9)*Z$7)+(((IF($A$8=Nutrients!$B$79,Nutrients!$BU$79,(IF($A$8=Nutrients!$B$77,Nutrients!$BU$77,Nutrients!$BU$78)))))*Z$8))/2000","v":0.63282455248127445},{"$f":"(SUMPRODUCT(AA$9:AA$229,Nutrients!$BU$8:$BU$228)+(IF($A$7=Nutrients!$B$8,Nutrients!$BU$8,Nutrients!$BU$9)*AA$7)+(((IF($A$8=Nutrients!$B$79,Nutrients!$BU$79,(IF($A$8=Nutrients!$B$77,Nutrients!$BU$77,Nutrients!$BU$78)))))*AA$8))/2000","v":0.58184898338048263},{"$f":"(SUMPRODUCT(AB$9:AB$229,Nutrients!$BU$8:$BU$228)+(IF($A$7=Nutrients!$B$8,Nutrients!$BU$8,Nutrients!$BU$9)*AB$7)+(((IF($A$8=Nutrients!$B$79,Nutrients!$BU$79,(IF($A$8=Nutrients!$B$77,Nutrients!$BU$77,Nutrients!$BU$78)))))*AB$8))/2000","v":0.55679357869744972},null,{"$f":"(SUMPRODUCT(AD$9:AD$229,Nutrients!$BU$8:$BU$228)+(IF($A$7=Nutrients!$B$8,Nutrients!$BU$8,Nutrients!$BU$9)*AD$7)+(((IF($A$8=Nutrients!$B$79,Nutrients!$BU$79,(IF($A$8=Nutrients!$B$77,Nutrients!$BU$77,Nutrients!$BU$78)))))*AD$8))/2000","v":0.90552616200089908},{"$f":"(SUMPRODUCT(AE$9:AE$229,Nutrients!$BU$8:$BU$228)+(IF($A$7=Nutrients!$B$8,Nutrients!$BU$8,Nutrients!$BU$9)*AE$7)+(((IF($A$8=Nutrients!$B$79,Nutrients!$BU$79,(IF($A$8=Nutrients!$B$77,Nutrients!$BU$77,Nutrients!$BU$78)))))*AE$8))/2000","v":0.79998375672639099},{"$f":"(SUMPRODUCT(AF$9:AF$229,Nutrients!$BU$8:$BU$228)+(IF($A$7=Nutrients!$B$8,Nutrients!$BU$8,Nutrients!$BU$9)*AF$7)+(((IF($A$8=Nutrients!$B$79,Nutrients!$BU$79,(IF($A$8=Nutrients!$B$77,Nutrients!$BU$77,Nutrients!$BU$78)))))*AF$8))/2000","v":0.7091064805417141},{"$f":"(SUMPRODUCT(AG$9:AG$229,Nutrients!$BU$8:$BU$228)+(IF($A$7=Nutrients!$B$8,Nutrients!$BU$8,Nutrients!$BU$9)*AG$7)+(((IF($A$8=Nutrients!$B$79,Nutrients!$BU$79,(IF($A$8=Nutrients!$B$77,Nutrients!$BU$77,Nutrients!$BU$78)))))*AG$8))/2000","v":0.6325017312090474},{"$f":"(SUMPRODUCT(AH$9:AH$229,Nutrients!$BU$8:$BU$228)+(IF($A$7=Nutrients!$B$8,Nutrients!$BU$8,Nutrients!$BU$9)*AH$7)+(((IF($A$8=Nutrients!$B$79,Nutrients!$BU$79,(IF($A$8=Nutrients!$B$77,Nutrients!$BU$77,Nutrients!$BU$78)))))*AH$8))/2000","v":0.58143545590533219},{"$f":"(SUMPRODUCT(AI$9:AI$229,Nutrients!$BU$8:$BU$228)+(IF($A$7=Nutrients!$B$8,Nutrients!$BU$8,Nutrients!$BU$9)*AI$7)+(((IF($A$8=Nutrients!$B$79,Nutrients!$BU$79,(IF($A$8=Nutrients!$B$77,Nutrients!$BU$77,Nutrients!$BU$78)))))*AI$8))/2000","v":0.55679357869744972},null,{"$f":"(SUMPRODUCT(AK$9:AK$229,Nutrients!$BU$8:$BU$228)+(IF($A$7=Nutrients!$B$8,Nutrients!$BU$8,Nutrients!$BU$9)*AK$7)+(((IF($A$8=Nutrients!$B$79,Nutrients!$BU$79,(IF($A$8=Nutrients!$B$77,Nutrients!$BU$77,Nutrients!$BU$78)))))*AK$8))/2000","v":0.90519741287315858},{"$f":"(SUMPRODUCT(AL$9:AL$229,Nutrients!$BU$8:$BU$228)+(IF($A$7=Nutrients!$B$8,Nutrients!$BU$8,Nutrients!$BU$9)*AL$7)+(((IF($A$8=Nutrients!$B$79,Nutrients!$BU$79,(IF($A$8=Nutrients!$B$77,Nutrients!$BU$77,Nutrients!$BU$78)))))*AL$8))/2000","v":0.79967930319677516},{"$f":"(SUMPRODUCT(AM$9:AM$229,Nutrients!$BU$8:$BU$228)+(IF($A$7=Nutrients!$B$8,Nutrients!$BU$8,Nutrients!$BU$9)*AM$7)+(((IF($A$8=Nutrients!$B$79,Nutrients!$BU$79,(IF($A$8=Nutrients!$B$77,Nutrients!$BU$77,Nutrients!$BU$78)))))*AM$8))/2000","v":0.70878909029557324},{"$f":"(SUMPRODUCT(AN$9:AN$229,Nutrients!$BU$8:$BU$228)+(IF($A$7=Nutrients!$B$8,Nutrients!$BU$8,Nutrients!$BU$9)*AN$7)+(((IF($A$8=Nutrients!$B$79,Nutrients!$BU$79,(IF($A$8=Nutrients!$B$77,Nutrients!$BU$77,Nutrients!$BU$78)))))*AN$8))/2000","v":0.63210648529826008},{"$f":"(SUMPRODUCT(AO$9:AO$229,Nutrients!$BU$8:$BU$228)+(IF($A$7=Nutrients!$B$8,Nutrients!$BU$8,Nutrients!$BU$9)*AO$7)+(((IF($A$8=Nutrients!$B$79,Nutrients!$BU$79,(IF($A$8=Nutrients!$B$77,Nutrients!$BU$77,Nutrients!$BU$78)))))*AO$8))/2000","v":0.58098993280620703},{"$f":"(SUMPRODUCT(AP$9:AP$229,Nutrients!$BU$8:$BU$228)+(IF($A$7=Nutrients!$B$8,Nutrients!$BU$8,Nutrients!$BU$9)*AP$7)+(((IF($A$8=Nutrients!$B$79,Nutrients!$BU$79,(IF($A$8=Nutrients!$B$77,Nutrients!$BU$77,Nutrients!$BU$78)))))*AP$8))/2000","v":0.55679357869744972},null,{"$f":"(SUMPRODUCT(AR$9:AR$229,Nutrients!$BU$8:$BU$228)+(IF($A$7=Nutrients!$B$8,Nutrients!$BU$8,Nutrients!$BU$9)*AR$7)+(((IF($A$8=Nutrients!$B$79,Nutrients!$BU$79,(IF($A$8=Nutrients!$B$77,Nutrients!$BU$77,Nutrients!$BU$78)))))*AR$8))/2000","v":0.90490375236424492},{"$f":"(SUMPRODUCT(AS$9:AS$229,Nutrients!$BU$8:$BU$228)+(IF($A$7=Nutrients!$B$8,Nutrients!$BU$8,Nutrients!$BU$9)*AS$7)+(((IF($A$8=Nutrients!$B$79,Nutrients!$BU$79,(IF($A$8=Nutrients!$B$77,Nutrients!$BU$77,Nutrients!$BU$78)))))*AS$8))/2000","v":0.79937586632861191},{"$f":"(SUMPRODUCT(AT$9:AT$229,Nutrients!$BU$8:$BU$228)+(IF($A$7=Nutrients!$B$8,Nutrients!$BU$8,Nutrients!$BU$9)*AT$7)+(((IF($A$8=Nutrients!$B$79,Nutrients!$BU$79,(IF($A$8=Nutrients!$B$77,Nutrients!$BU$77,Nutrients!$BU$78)))))*AT$8))/2000","v":0.70846105990456132},{"$f":"(SUMPRODUCT(AU$9:AU$229,Nutrients!$BU$8:$BU$228)+(IF($A$7=Nutrients!$B$8,Nutrients!$BU$8,Nutrients!$BU$9)*AU$7)+(((IF($A$8=Nutrients!$B$79,Nutrients!$BU$79,(IF($A$8=Nutrients!$B$77,Nutrients!$BU$77,Nutrients!$BU$78)))))*AU$8))/2000","v":0.63166215389253555},{"$f":"(SUMPRODUCT(AV$9:AV$229,Nutrients!$BU$8:$BU$228)+(IF($A$7=Nutrients!$B$8,Nutrients!$BU$8,Nutrients!$BU$9)*AV$7)+(((IF($A$8=Nutrients!$B$79,Nutrients!$BU$79,(IF($A$8=Nutrients!$B$77,Nutrients!$BU$77,Nutrients!$BU$78)))))*AV$8))/2000","v":0.58054071106827532},{"$f":"(SUMPRODUCT(AW$9:AW$229,Nutrients!$BU$8:$BU$228)+(IF($A$7=Nutrients!$B$8,Nutrients!$BU$8,Nutrients!$BU$9)*AW$7)+(((IF($A$8=Nutrients!$B$79,Nutrients!$BU$79,(IF($A$8=Nutrients!$B$77,Nutrients!$BU$77,Nutrients!$BU$78)))))*AW$8))/2000","v":0.55679357869744972}]
["DCAD",{"$f":"(B306 * 434.98) + (B308* 255.74) - (B307*282.06)","v":220.57763988748351},192.15600461244421,167.90252131513171,147.35122639861532,133.81760738274346,127.13493264786482,null,{"$f":"(I306 * 434.98) + (I308* 255.74) - (I307*282.06)","v":220.18392723361302},191.76075494599445,167.49485458369429,146.94447543346809,133.41506850408234,127.13493264786482,null,{"$f":"(P306 * 434.98) + (P308* 255.74) - (P307*282.06)","v":219.78339872741674},191.35951800162624,167.09254832660437,146.54258977169786,133.01213409104884,127.13493264786482,null,{"$f":"(W306 * 434.98) + (W308* 255.74) - (W307*282.06)","v":219.38231129147732},190.95761021094739,166.69085096512882,146.1416730215044,132.6068910198164,127.13493264786482,null,{"$f":"(AD306 * 434.98) + (AD308* 255.74) - (AD307*282.06)","v":218.98004169674581},190.55564300680041,166.29139888847357,145.73577041773177,132.24120848832865,127.13493264786482,null,{"$f":"(AK306 * 434.98) + (AK308* 255.74) - (AK307*282.06)","v":218.57271095756249},190.15349874605562,165.88649297514559,145.37135550813844,131.87959375430896,127.13493264786482,null,{"$f":"(AR306 * 434.98) + (AR308* 255.74) - (AR307*282.06)","v":218.17335880328937},189.75205959329841,165.49860014718777,145.01020097120326,131.51718717223437,127.13493264786482]
["Phytate P, %",{"$f":"(SUMPRODUCT(B$9:B$229,Nutrients!$EG$8:$EG$228)+(IF($A$7=Nutrients!$B$8,Nutrients!$EG$8,Nutrients!$EG$9)*B$7)+(((IF($A$8=Nutrients!$B$79,Nutrients!$EG$79,(IF($A$8=Nutrients!$B$77,Nutrients!$EG$77,Nutrients!$EG$78)))))*B$8))/2000","v":0.27113524017910468},{"$f":"(SUMPRODUCT(C$9:C$229,Nutrients!$EG$8:$EG$228)+(IF($A$7=Nutrients!$B$8,Nutrients!$EG$8,Nutrients!$EG$9)*C$7)+(((IF($A$8=Nutrients!$B$79,Nutrients!$EG$79,(IF($A$8=Nutrients!$B$77,Nutrients!$EG$77,Nutrients!$EG$78)))))*C$8))/2000","v":0.25613988263521914},{"$f":"(SUMPRODUCT(D$9:D$229,Nutrients!$EG$8:$EG$228)+(IF($A$7=Nutrients!$B$8,Nutrients!$EG$8,Nutrients!$EG$9)*D$7)+(((IF($A$8=Nutrients!$B$79,Nutrients!$EG$79,(IF($A$8=Nutrients!$B$77,Nutrients!$EG$77,Nutrients!$EG$78)))))*D$8))/2000","v":0.24325948567864156},{"$f":"(SUMPRODUCT(E$9:E$229,Nutrients!$EG$8:$EG$228)+(IF($A$7=Nutrients!$B$8,Nutrients!$EG$8,Nutrients!$EG$9)*E$7)+(((IF($A$8=Nutrients!$B$79,Nutrients!$EG$79,(IF($A$8=Nutrients!$B$77,Nutrients!$EG$77,Nutrients!$EG$78)))))*E$8))/2000","v":0.23238392794271739},{"$f":"(SUMPRODUCT(F$9:F$229,Nutrients!$EG$8:$EG$228)+(IF($A$7=Nutrients!$B$8,Nutrients!$EG$8,Nutrients!$EG$9)*F$7)+(((IF($A$8=Nutrients!$B$79,Nutrients!$EG$79,(IF($A$8=Nutrients!$B$77,Nutrients!$EG$77,Nutrients!$EG$78)))))*F$8))/2000","v":0.2252348701473687},{"$f":"(SUMPRODUCT(G$9:G$229,Nutrients!$EG$8:$EG$228)+(IF($A$7=Nutrients!$B$8,Nutrients!$EG$8,Nutrients!$EG$9)*G$7)+(((IF($A$8=Nutrients!$B$79,Nutrients!$EG$79,(IF($A$8=Nutrients!$B$77,Nutrients!$EG$77,Nutrients!$EG$78)))))*G$8))/2000","v":0.2215364317520549},null,{"$f":"(SUMPRODUCT(I$9:I$229,Nutrients!$EG$8:$EG$228)+(IF($A$7=Nutrients!$B$8,Nutrients!$EG$8,Nutrients!$EG$9)*I$7)+(((IF($A$8=Nutrients!$B$79,Nutrients!$EG$79,(IF($A$8=Nutrients!$B$77,Nutrients!$EG$77,Nutrients!$EG$78)))))*I$8))/2000","v":0.26548932440567385},{"$f":"(SUMPRODUCT(J$9:J$229,Nutrients!$EG$8:$EG$228)+(IF($A$7=Nutrients!$B$8,Nutrients!$EG$8,Nutrients!$EG$9)*J$7)+(((IF($A$8=Nutrients!$B$79,Nutrients!$EG$79,(IF($A$8=Nutrients!$B$77,Nutrients!$EG$77,Nutrients!$EG$78)))))*J$8))/2000","v":0.25048274395213355},{"$f":"(SUMPRODUCT(K$9:K$229,Nutrients!$EG$8:$EG$228)+(IF($A$7=Nutrients!$B$8,Nutrients!$EG$8,Nutrients!$EG$9)*K$7)+(((IF($A$8=Nutrients!$B$79,Nutrients!$EG$79,(IF($A$8=Nutrients!$B$77,Nutrients!$EG$77,Nutrients!$EG$78)))))*K$8))/2000","v":0.23762260374114752},{"$f":"(SUMPRODUCT(L$9:L$229,Nutrients!$EG$8:$EG$228)+(IF($A$7=Nutrients!$B$8,Nutrients!$EG$8,Nutrients!$EG$9)*L$7)+(((IF($A$8=Nutrients!$B$79,Nutrients!$EG$79,(IF($A$8=Nutrients!$B$77,Nutrients!$EG$77,Nutrients!$EG$78)))))*L$8))/2000","v":0.22677703453639583},{"$f":"(SUMPRODUCT(M$9:M$229,Nutrients!$EG$8:$EG$228)+(IF($A$7=Nutrients!$B$8,Nutrients!$EG$8,Nutrients!$EG$9)*M$7)+(((IF($A$8=Nutrients!$B$79,Nutrients!$EG$79,(IF($A$8=Nutrients!$B$77,Nutrients!$EG$77,Nutrients!$EG$78)))))*M$8))/2000","v":0.21960642930363558},{"$f":"(SUMPRODUCT(N$9:N$229,Nutrients!$EG$8:$EG$228)+(IF($A$7=Nutrients!$B$8,Nutrients!$EG$8,Nutrients!$EG$9)*N$7)+(((IF($A$8=Nutrients!$B$79,Nutrients!$EG$79,(IF($A$8=Nutrients!$B$77,Nutrients!$EG$77,Nutrients!$EG$78)))))*N$8))/2000","v":0.2215364317520549},null,{"$f":"(SUMPRODUCT(P$9:P$229,Nutrients!$EG$8:$EG$228)+(IF($A$7=Nutrients!$B$8,Nutrients!$EG$8,Nutrients!$EG$9)*P$7)+(((IF($A$8=Nutrients!$B$79,Nutrients!$EG$79,(IF($A$8=Nutrients!$B$77,Nutrients!$EG$77,Nutrients!$EG$78)))))*P$8))/2000","v":0.25984171982992577},{"$f":"(SUMPRODUCT(Q$9:Q$229,Nutrients!$EG$8:$EG$228)+(IF($A$7=Nutrients!$B$8,Nutrients!$EG$8,Nutrients!$EG$9)*Q$7)+(((IF($A$8=Nutrients!$B$79,Nutrients!$EG$79,(IF($A$8=Nutrients!$B$77,Nutrients!$EG$77,Nutrients!$EG$78)))))*Q$8))/2000","v":0.24483193707260048},{"$f":"(SUMPRODUCT(R$9:R$229,Nutrients!$EG$8:$EG$228)+(IF($A$7=Nutrients!$B$8,Nutrients!$EG$8,Nutrients!$EG$9)*R$7)+(((IF($A$8=Nutrients!$B$79,Nutrients!$EG$79,(IF($A$8=Nutrients!$B$77,Nutrients!$EG$77,Nutrients!$EG$78)))))*R$8))/2000","v":0.23196696332170727},{"$f":"(SUMPRODUCT(S$9:S$229,Nutrients!$EG$8:$EG$228)+(IF($A$7=Nutrients!$B$8,Nutrients!$EG$8,Nutrients!$EG$9)*S$7)+(((IF($A$8=Nutrients!$B$79,Nutrients!$EG$79,(IF($A$8=Nutrients!$B$77,Nutrients!$EG$77,Nutrients!$EG$78)))))*S$8))/2000","v":0.22112329530471947},{"$f":"(SUMPRODUCT(T$9:T$229,Nutrients!$EG$8:$EG$228)+(IF($A$7=Nutrients!$B$8,Nutrients!$EG$8,Nutrients!$EG$9)*T$7)+(((IF($A$8=Nutrients!$B$79,Nutrients!$EG$79,(IF($A$8=Nutrients!$B$77,Nutrients!$EG$77,Nutrients!$EG$78)))))*T$8))/2000","v":0.21394794947458215},{"$f":"(SUMPRODUCT(U$9:U$229,Nutrients!$EG$8:$EG$228)+(IF($A$7=Nutrients!$B$8,Nutrients!$EG$8,Nutrients!$EG$9)*U$7)+(((IF($A$8=Nutrients!$B$79,Nutrients!$EG$79,(IF($A$8=Nutrients!$B$77,Nutrients!$EG$77,Nutrients!$EG$78)))))*U$8))/2000","v":0.2215364317520549},null,{"$f":"(SUMPRODUCT(W$9:W$229,Nutrients!$EG$8:$EG$228)+(IF($A$7=Nutrients!$B$8,Nutrients!$EG$8,Nutrients!$EG$9)*W$7)+(((IF($A$8=Nutrients!$B$79,Nutrients!$EG$79,(IF($A$8=Nutrients!$B$77,Nutrients!$EG$77,Nutrients!$EG$78)))))*W$8))/2000","v":0.2541915887629424},{"$f":"(SUMPRODUCT(X$9:X$229,Nutrients!$EG$8:$EG$228)+(IF($A$7=Nutrients!$B$8,Nutrients!$EG$8,Nutrients!$EG$9)*X$7)+(((IF($A$8=Nutrients!$B$79,Nutrients!$EG$79,(IF($A$8=Nutrients!$B$77,Nutrients!$EG$77,Nutrients!$EG$78)))))*X$8))/2000","v":0.23917809781315819},{"$f":"(SUMPRODUCT(Y$9:Y$229,Nutrients!$EG$8:$EG$228)+(IF($A$7=Nutrients!$B$8,Nutrients!$EG$8,Nutrients!$EG$9)*Y$7)+(((IF($A$8=Nutrients!$B$79,Nutrients!$EG$79,(IF($A$8=Nutrients!$B$77,Nutrients!$EG$77,Nutrients!$EG$78)))))*Y$8))/2000","v":0.22631856080197885},{"$f":"(SUMPRODUCT(Z$9:Z$229,Nutrients!$EG$8:$EG$228)+(IF($A$7=Nutrients!$B$8,Nutrients!$EG$8,Nutrients!$EG$9)*Z$7)+(((IF($A$8=Nutrients!$B$79,Nutrients!$EG$79,(IF($A$8=Nutrients!$B$77,Nutrients!$EG$77,Nutrients!$EG$78)))))*Z$8))/2000","v":0.21547842132786457},{"$f":"(SUMPRODUCT(AA$9:AA$229,Nutrients!$EG$8:$EG$228)+(IF($A$7=Nutrients!$B$8,Nutrients!$EG$8,Nutrients!$EG$9)*AA$7)+(((IF($A$8=Nutrients!$B$79,Nutrients!$EG$79,(IF($A$8=Nutrients!$B$77,Nutrients!$EG$77,Nutrients!$EG$78)))))*AA$8))/2000","v":0.2082835195297032},{"$f":"(SUMPRODUCT(AB$9:AB$229,Nutrients!$EG$8:$EG$228)+(IF($A$7=Nutrients!$B$8,Nutrients!$EG$8,Nutrients!$EG$9)*AB$7)+(((IF($A$8=Nutrients!$B$79,Nutrients!$EG$79,(IF($A$8=Nutrients!$B$77,Nutrients!$EG$77,Nutrients!$EG$78)))))*AB$8))/2000","v":0.2215364317520549},null,{"$f":"(SUMPRODUCT(AD$9:AD$229,Nutrients!$EG$8:$EG$228)+(IF($A$7=Nutrients!$B$8,Nutrients!$EG$8,Nutrients!$EG$9)*AD$7)+(((IF($A$8=Nutrients!$B$79,Nutrients!$EG$79,(IF($A$8=Nutrients!$B$77,Nutrients!$EG$77,Nutrients!$EG$78)))))*AD$8))/2000","v":0.24853835684142286},{"$f":"(SUMPRODUCT(AE$9:AE$229,Nutrients!$EG$8:$EG$228)+(IF($A$7=Nutrients!$B$8,Nutrients!$EG$8,Nutrients!$EG$9)*AE$7)+(((IF($A$8=Nutrients!$B$79,Nutrients!$EG$79,(IF($A$8=Nutrients!$B$77,Nutrients!$EG$77,Nutrients!$EG$78)))))*AE$8))/2000","v":0.2335262327667611},{"$f":"(SUMPRODUCT(AF$9:AF$229,Nutrients!$EG$8:$EG$228)+(IF($A$7=Nutrients!$B$8,Nutrients!$EG$8,Nutrients!$EG$9)*AF$7)+(((IF($A$8=Nutrients!$B$79,Nutrients!$EG$79,(IF($A$8=Nutrients!$B$77,Nutrients!$EG$77,Nutrients!$EG$78)))))*AF$8))/2000","v":0.22067806471141418},{"$f":"(SUMPRODUCT(AG$9:AG$229,Nutrients!$EG$8:$EG$228)+(IF($A$7=Nutrients!$B$8,Nutrients!$EG$8,Nutrients!$EG$9)*AG$7)+(((IF($A$8=Nutrients!$B$79,Nutrients!$EG$79,(IF($A$8=Nutrients!$B$77,Nutrients!$EG$77,Nutrients!$EG$78)))))*AG$8))/2000","v":0.20980876736831364},{"$f":"(SUMPRODUCT(AH$9:AH$229,Nutrients!$EG$8:$EG$228)+(IF($A$7=Nutrients!$B$8,Nutrients!$EG$8,Nutrients!$EG$9)*AH$7)+(((IF($A$8=Nutrients!$B$79,Nutrients!$EG$79,(IF($A$8=Nutrients!$B$77,Nutrients!$EG$77,Nutrients!$EG$78)))))*AH$8))/2000","v":0.20242272290107982},{"$f":"(SUMPRODUCT(AI$9:AI$229,Nutrients!$EG$8:$EG$228)+(IF($A$7=Nutrients!$B$8,Nutrients!$EG$8,Nutrients!$EG$9)*AI$7)+(((IF($A$8=Nutrients!$B$79,Nutrients!$EG$79,(IF($A$8=Nutrients!$B$77,Nutrients!$EG$77,Nutrients!$EG$78)))))*AI$8))/2000","v":0.2215364317520549},null,{"$f":"(SUMPRODUCT(AK$9:AK$229,Nutrients!$EG$8:$EG$228)+(IF($A$7=Nutrients!$B$8,Nutrients!$EG$8,Nutrients!$EG$9)*AK$7)+(((IF($A$8=Nutrients!$B$79,Nutrients!$EG$79,(IF($A$8=Nutrients!$B$77,Nutrients!$EG$77,Nutrients!$EG$78)))))*AK$8))/2000","v":0.24286336876853187},{"$f":"(SUMPRODUCT(AL$9:AL$229,Nutrients!$EG$8:$EG$228)+(IF($A$7=Nutrients!$B$8,Nutrients!$EG$8,Nutrients!$EG$9)*AL$7)+(((IF($A$8=Nutrients!$B$79,Nutrients!$EG$79,(IF($A$8=Nutrients!$B$77,Nutrients!$EG$77,Nutrients!$EG$78)))))*AL$8))/2000","v":0.22787468877154962},{"$f":"(SUMPRODUCT(AM$9:AM$229,Nutrients!$EG$8:$EG$228)+(IF($A$7=Nutrients!$B$8,Nutrients!$EG$8,Nutrients!$EG$9)*AM$7)+(((IF($A$8=Nutrients!$B$79,Nutrients!$EG$79,(IF($A$8=Nutrients!$B$77,Nutrients!$EG$77,Nutrients!$EG$78)))))*AM$8))/2000","v":0.21501403741014952},{"$f":"(SUMPRODUCT(AN$9:AN$229,Nutrients!$EG$8:$EG$228)+(IF($A$7=Nutrients!$B$8,Nutrients!$EG$8,Nutrients!$EG$9)*AN$7)+(((IF($A$8=Nutrients!$B$79,Nutrients!$EG$79,(IF($A$8=Nutrients!$B$77,Nutrients!$EG$77,Nutrients!$EG$78)))))*AN$8))/2000","v":0.20397020896524867},{"$f":"(SUMPRODUCT(AO$9:AO$229,Nutrients!$EG$8:$EG$228)+(IF($A$7=Nutrients!$B$8,Nutrients!$EG$8,Nutrients!$EG$9)*AO$7)+(((IF($A$8=Nutrients!$B$79,Nutrients!$EG$79,(IF($A$8=Nutrients!$B$77,Nutrients!$EG$77,Nutrients!$EG$78)))))*AO$8))/2000","v":0.19651236352617171},{"$f":"(SUMPRODUCT(AP$9:AP$229,Nutrients!$EG$8:$EG$228)+(IF($A$7=Nutrients!$B$8,Nutrients!$EG$8,Nutrients!$EG$9)*AP$7)+(((IF($A$8=Nutrients!$B$79,Nutrients!$EG$79,(IF($A$8=Nutrients!$B$77,Nutrients!$EG$77,Nutrients!$EG$78)))))*AP$8))/2000","v":0.2215364317520549},null,{"$f":"(SUMPRODUCT(AR$9:AR$229,Nutrients!$EG$8:$EG$228)+(IF($A$7=Nutrients!$B$8,Nutrients!$EG$8,Nutrients!$EG$9)*AR$7)+(((IF($A$8=Nutrients!$B$79,Nutrients!$EG$79,(IF($A$8=Nutrients!$B$77,Nutrients!$EG$77,Nutrients!$EG$78)))))*AR$8))/2000","v":0.23722108157454677},{"$f":"(SUMPRODUCT(AS$9:AS$229,Nutrients!$EG$8:$EG$228)+(IF($A$7=Nutrients!$B$8,Nutrients!$EG$8,Nutrients!$EG$9)*AS$7)+(((IF($A$8=Nutrients!$B$79,Nutrients!$EG$79,(IF($A$8=Nutrients!$B$77,Nutrients!$EG$77,Nutrients!$EG$78)))))*AS$8))/2000","v":0.22222296786350268},{"$f":"(SUMPRODUCT(AT$9:AT$229,Nutrients!$EG$8:$EG$228)+(IF($A$7=Nutrients!$B$8,Nutrients!$EG$8,Nutrients!$EG$9)*AT$7)+(((IF($A$8=Nutrients!$B$79,Nutrients!$EG$79,(IF($A$8=Nutrients!$B$77,Nutrients!$EG$77,Nutrients!$EG$78)))))*AT$8))/2000","v":0.20930586329884476},{"$f":"(SUMPRODUCT(AU$9:AU$229,Nutrients!$EG$8:$EG$228)+(IF($A$7=Nutrients!$B$8,Nutrients!$EG$8,Nutrients!$EG$9)*AU$7)+(((IF($A$8=Nutrients!$B$79,Nutrients!$EG$79,(IF($A$8=Nutrients!$B$77,Nutrients!$EG$77,Nutrients!$EG$78)))))*AU$8))/2000","v":0.19806051126165961},{"$f":"(SUMPRODUCT(AV$9:AV$229,Nutrients!$EG$8:$EG$228)+(IF($A$7=Nutrients!$B$8,Nutrients!$EG$8,Nutrients!$EG$9)*AV$7)+(((IF($A$8=Nutrients!$B$79,Nutrients!$EG$79,(IF($A$8=Nutrients!$B$77,Nutrients!$EG$77,Nutrients!$EG$78)))))*AV$8))/2000","v":0.19059844056431474},{"$f":"(SUMPRODUCT(AW$9:AW$229,Nutrients!$EG$8:$EG$228)+(IF($A$7=Nutrients!$B$8,Nutrients!$EG$8,Nutrients!$EG$9)*AW$7)+(((IF($A$8=Nutrients!$B$79,Nutrients!$EG$79,(IF($A$8=Nutrients!$B$77,Nutrients!$EG$77,Nutrients!$EG$78)))))*AW$8))/2000","v":0.2215364317520549}]
["Total P - Avail P, %",{"$f":"B255-B256","v":0.31730463701690137},0.29999736257979814,0.2851440661893474,0.27259764867356195,0.26435033325189533,0.26008169818001309,null,{"$f":"I255-I256","v":0.33417290051826437},0.31685276752781666,0.30202271368400491,0.28951086787128466,0.28123871776767945,0.26008169818001309,null,{"$f":"P255-P256","v":0.35103915296649035},0.33371524218005089,0.31887948615152645,0.30636988319270037,0.29809214054979427,0.26008169818001309,null,{"$f":"W255-W256","v":0.36790242488285479},0.3505741394975172,0.33574439725571614,0.32323895696102811,0.31493814390926012,0.26008169818001309,null,{"$f":"AD255-AD256","v":0.38476183868411667},0.36743516581767349,0.35261883566874691,0.34007899748804116,0.33155734870541081,0.26008169818001309,null,{"$f":"AK255-AK256","v":0.40159548649396432},0.38429647088574503,0.36946541403168964,0.35672421821108702,0.34811871276456435,0.26008169818001309,null,{"$f":"AR255-AR256","v":0.41846801192091476},0.40115786724763325,0.38626171058260927,0.3732864893491144,0.36467587141326979,0.26008169818001309]
["Phytate P released, %",{"$f":"B257-B256","v":0.11261444047083269},0.11261444047083266,0.11261444047083266,0.11261444047083269,0.11261444047083269,0.11261444047083269,null,{"$f":"I257-I256","v":0.11261444047083263},0.11261444047083266,0.11261444047083266,0.1126144404708327,0.11261444047083269,0.11261444047083269,null,{"$f":"P257-P256","v":0.11261444047083272},0.11261444047083272,0.11261444047083267,0.1126144404708327,0.11261444047083269,0.11261444047083269,null,{"$f":"W257-W256","v":0.11261444047083263},0.11261444047083266,0.11261444047083269,0.11261444047083269,0.1126144404708327,0.11261444047083269,null,{"$f":"AD257-AD256","v":0.11261444047083263},0.11261444047083267,0.11261444047083269,0.11261444047083266,0.11261444047083266,0.11261444047083269,null,{"$f":"AK257-AK256","v":0.11261444047083266},0.11261444047083267,0.11261444047083269,0.1126144404708327,0.11261444047083269,0.11261444047083269,null,{"$f":"AR257-AR256","v":0.11261444047083269},0.1126144404708327,0.11261444047083269,0.11261444047083266,0.1126144404708327,0.11261444047083269]
["Percent of total phytate phos released, %",{"$f":"B312/B310","v":0.41534416697896814},0.4396599206348985,0.46293956495329519,0.48460511648891713,0.49998670453269645,0.50833372904042951,null,{"$f":"I312/I310","v":0.42417690701097704},0.44958961521258695,0.47392141445225638,0.49658661734003323,0.51280119998275642,0.50833372904042951,null,{"$f":"P312/P310","v":0.43339630196622103},0.45996630103628572,0.48547620255153079,0.50928347606091939,0.52636372887608218,0.50833372904042951,null,{"$f":"W312/W310","v":0.44302976750287443},0.47083926789486019,0.49759259723008997,0.52262514165853491,0.54067859389505279,0.50833372904042951,null,{"$f":"AD312/AD310","v":0.45310688419286937},0.48223464720260595,0.51031098454711032,0.53674802003455391,0.55633299886922882,0.50833372904042951,null,{"$f":"AK312/AK310","v":0.46369463226116736},0.49419459913659658,0.52375389917457005,0.55211219835549286,0.57306542168699015,0.50833372904042951,null,{"$f":"AR312/AR310","v":0.47472357736234155},0.50676328173244689,0.53803767699542626,0.56858603339691804,0.59084659946539575,0.50833372904042951]
["Phytase units, FTU/kg",{"$f":"((SUMPRODUCT(B$9:B$229,Nutrients!$EE$8:$EE$228)+(IF($A$7=Nutrients!$B$8,Nutrients!$EE$8,Nutrients!$EE$9)*B$7)+(((IF($A$8=Nutrients!$B$79,Nutrients!$EE$79,(IF($A$8=Nutrients!$B$77,Nutrients!$EE$77,Nutrients!$EE$78)))))*B$8))/2000)*2.2046","v":608.03970300000003},{"$f":"((SUMPRODUCT(C$9:C$229,Nutrients!$EE$8:$EE$228)+(IF($A$7=Nutrients!$B$8,Nutrients!$EE$8,Nutrients!$EE$9)*C$7)+(((IF($A$8=Nutrients!$B$79,Nutrients!$EE$79,(IF($A$8=Nutrients!$B$77,Nutrients!$EE$77,Nutrients!$EE$78)))))*C$8))/2000)*2.2046","v":608.03970300000003},{"$f":"((SUMPRODUCT(D$9:D$229,Nutrients!$EE$8:$EE$228)+(IF($A$7=Nutrients!$B$8,Nutrients!$EE$8,Nutrients!$EE$9)*D$7)+(((IF($A$8=Nutrients!$B$79,Nutrients!$EE$79,(IF($A$8=Nutrients!$B$77,Nutrients!$EE$77,Nutrients!$EE$78)))))*D$8))/2000)*2.2046","v":608.03970300000003},{"$f":"((SUMPRODUCT(E$9:E$229,Nutrients!$EE$8:$EE$228)+(IF($A$7=Nutrients!$B$8,Nutrients!$EE$8,Nutrients!$EE$9)*E$7)+(((IF($A$8=Nutrients!$B$79,Nutrients!$EE$79,(IF($A$8=Nutrients!$B$77,Nutrients!$EE$77,Nutrients!$EE$78)))))*E$8))/2000)*2.2046","v":608.03970300000003},{"$f":"((SUMPRODUCT(F$9:F$229,Nutrients!$EE$8:$EE$228)+(IF($A$7=Nutrients!$B$8,Nutrients!$EE$8,Nutrients!$EE$9)*F$7)+(((IF($A$8=Nutrients!$B$79,Nutrients!$EE$79,(IF($A$8=Nutrients!$B$77,Nutrients!$EE$77,Nutrients!$EE$78)))))*F$8))/2000)*2.2046","v":608.03970300000003},{"$f":"((SUMPRODUCT(G$9:G$229,Nutrients!$EE$8:$EE$228)+(IF($A$7=Nutrients!$B$8,Nutrients!$EE$8,Nutrients!$EE$9)*G$7)+(((IF($A$8=Nutrients!$B$79,Nutrients!$EE$79,(IF($A$8=Nutrients!$B$77,Nutrients!$EE$77,Nutrients!$EE$78)))))*G$8))/2000)*2.2046","v":608.03970300000003},null,{"$f":"((SUMPRODUCT(I$9:I$229,Nutrients!$EE$8:$EE$228)+(IF($A$7=Nutrients!$B$8,Nutrients!$EE$8,Nutrients!$EE$9)*I$7)+(((IF($A$8=Nutrients!$B$79,Nutrients!$EE$79,(IF($A$8=Nutrients!$B$77,Nutrients!$EE$77,Nutrients!$EE$78)))))*I$8))/2000)*2.2046","v":608.03970300000003},{"$f":"((SUMPRODUCT(J$9:J$229,Nutrients!$EE$8:$EE$228)+(IF($A$7=Nutrients!$B$8,Nutrients!$EE$8,Nutrients!$EE$9)*J$7)+(((IF($A$8=Nutrients!$B$79,Nutrients!$EE$79,(IF($A$8=Nutrients!$B$77,Nutrients!$EE$77,Nutrients!$EE$78)))))*J$8))/2000)*2.2046","v":608.03970300000003},{"$f":"((SUMPRODUCT(K$9:K$229,Nutrients!$EE$8:$EE$228)+(IF($A$7=Nutrients!$B$8,Nutrients!$EE$8,Nutrients!$EE$9)*K$7)+(((IF($A$8=Nutrients!$B$79,Nutrients!$EE$79,(IF($A$8=Nutrients!$B$77,Nutrients!$EE$77,Nutrients!$EE$78)))))*K$8))/2000)*2.2046","v":608.03970300000003},{"$f":"((SUMPRODUCT(L$9:L$229,Nutrients!$EE$8:$EE$228)+(IF($A$7=Nutrients!$B$8,Nutrients!$EE$8,Nutrients!$EE$9)*L$7)+(((IF($A$8=Nutrients!$B$79,Nutrients!$EE$79,(IF($A$8=Nutrients!$B$77,Nutrients!$EE$77,Nutrients!$EE$78)))))*L$8))/2000)*2.2046","v":608.03970300000003},{"$f":"((SUMPRODUCT(M$9:M$229,Nutrients!$EE$8:$EE$228)+(IF($A$7=Nutrients!$B$8,Nutrients!$EE$8,Nutrients!$EE$9)*M$7)+(((IF($A$8=Nutrients!$B$79,Nutrients!$EE$79,(IF($A$8=Nutrients!$B$77,Nutrients!$EE$77,Nutrients!$EE$78)))))*M$8))/2000)*2.2046","v":608.03970300000003},{"$f":"((SUMPRODUCT(N$9:N$229,Nutrients!$EE$8:$EE$228)+(IF($A$7=Nutrients!$B$8,Nutrients!$EE$8,Nutrients!$EE$9)*N$7)+(((IF($A$8=Nutrients!$B$79,Nutrients!$EE$79,(IF($A$8=Nutrients!$B$77,Nutrients!$EE$77,Nutrients!$EE$78)))))*N$8))/2000)*2.2046","v":608.03970300000003},null,{"$f":"((SUMPRODUCT(P$9:P$229,Nutrients!$EE$8:$EE$228)+(IF($A$7=Nutrients!$B$8,Nutrients!$EE$8,Nutrients!$EE$9)*P$7)+(((IF($A$8=Nutrients!$B$79,Nutrients!$EE$79,(IF($A$8=Nutrients!$B$77,Nutrients!$EE$77,Nutrients!$EE$78)))))*P$8))/2000)*2.2046","v":608.03970300000003},{"$f":"((SUMPRODUCT(Q$9:Q$229,Nutrients!$EE$8:$EE$228)+(IF($A$7=Nutrients!$B$8,Nutrients!$EE$8,Nutrients!$EE$9)*Q$7)+(((IF($A$8=Nutrients!$B$79,Nutrients!$EE$79,(IF($A$8=Nutrients!$B$77,Nutrients!$EE$77,Nutrients!$EE$78)))))*Q$8))/2000)*2.2046","v":608.03970300000003},{"$f":"((SUMPRODUCT(R$9:R$229,Nutrients!$EE$8:$EE$228)+(IF($A$7=Nutrients!$B$8,Nutrients!$EE$8,Nutrients!$EE$9)*R$7)+(((IF($A$8=Nutrients!$B$79,Nutrients!$EE$79,(IF($A$8=Nutrients!$B$77,Nutrients!$EE$77,Nutrients!$EE$78)))))*R$8))/2000)*2.2046","v":608.03970300000003},{"$f":"((SUMPRODUCT(S$9:S$229,Nutrients!$EE$8:$EE$228)+(IF($A$7=Nutrients!$B$8,Nutrients!$EE$8,Nutrients!$EE$9)*S$7)+(((IF($A$8=Nutrients!$B$79,Nutrients!$EE$79,(IF($A$8=Nutrients!$B$77,Nutrients!$EE$77,Nutrients!$EE$78)))))*S$8))/2000)*2.2046","v":608.03970300000003},{"$f":"((SUMPRODUCT(T$9:T$229,Nutrients!$EE$8:$EE$228)+(IF($A$7=Nutrients!$B$8,Nutrients!$EE$8,Nutrients!$EE$9)*T$7)+(((IF($A$8=Nutrients!$B$79,Nutrients!$EE$79,(IF($A$8=Nutrients!$B$77,Nutrients!$EE$77,Nutrients!$EE$78)))))*T$8))/2000)*2.2046","v":608.03970300000003},{"$f":"((SUMPRODUCT(U$9:U$229,Nutrients!$EE$8:$EE$228)+(IF($A$7=Nutrients!$B$8,Nutrients!$EE$8,Nutrients!$EE$9)*U$7)+(((IF($A$8=Nutrients!$B$79,Nutrients!$EE$79,(IF($A$8=Nutrients!$B$77,Nutrients!$EE$77,Nutrients!$EE$78)))))*U$8))/2000)*2.2046","v":608.03970300000003},null,{"$f":"((SUMPRODUCT(W$9:W$229,Nutrients!$EE$8:$EE$228)+(IF($A$7=Nutrients!$B$8,Nutrients!$EE$8,Nutrients!$EE$9)*W$7)+(((IF($A$8=Nutrients!$B$79,Nutrients!$EE$79,(IF($A$8=Nutrients!$B$77,Nutrients!$EE$77,Nutrients!$EE$78)))))*W$8))/2000)*2.2046","v":608.03970300000003},{"$f":"((SUMPRODUCT(X$9:X$229,Nutrients!$EE$8:$EE$228)+(IF($A$7=Nutrients!$B$8,Nutrients!$EE$8,Nutrients!$EE$9)*X$7)+(((IF($A$8=Nutrients!$B$79,Nutrients!$EE$79,(IF($A$8=Nutrients!$B$77,Nutrients!$EE$77,Nutrients!$EE$78)))))*X$8))/2000)*2.2046","v":608.03970300000003},{"$f":"((SUMPRODUCT(Y$9:Y$229,Nutrients!$EE$8:$EE$228)+(IF($A$7=Nutrients!$B$8,Nutrients!$EE$8,Nutrients!$EE$9)*Y$7)+(((IF($A$8=Nutrients!$B$79,Nutrients!$EE$79,(IF($A$8=Nutrients!$B$77,Nutrients!$EE$77,Nutrients!$EE$78)))))*Y$8))/2000)*2.2046","v":608.03970300000003},{"$f":"((SUMPRODUCT(Z$9:Z$229,Nutrients!$EE$8:$EE$228)+(IF($A$7=Nutrients!$B$8,Nutrients!$EE$8,Nutrients!$EE$9)*Z$7)+(((IF($A$8=Nutrients!$B$79,Nutrients!$EE$79,(IF($A$8=Nutrients!$B$77,Nutrients!$EE$77,Nutrients!$EE$78)))))*Z$8))/2000)*2.2046","v":608.03970300000003},{"$f":"((SUMPRODUCT(AA$9:AA$229,Nutrients!$EE$8:$EE$228)+(IF($A$7=Nutrients!$B$8,Nutrients!$EE$8,Nutrients!$EE$9)*AA$7)+(((IF($A$8=Nutrients!$B$79,Nutrients!$EE$79,(IF($A$8=Nutrients!$B$77,Nutrients!$EE$77,Nutrients!$EE$78)))))*AA$8))/2000)*2.2046","v":608.03970300000003},{"$f":"((SUMPRODUCT(AB$9:AB$229,Nutrients!$EE$8:$EE$228)+(IF($A$7=Nutrients!$B$8,Nutrients!$EE$8,Nutrients!$EE$9)*AB$7)+(((IF($A$8=Nutrients!$B$79,Nutrients!$EE$79,(IF($A$8=Nutrients!$B$77,Nutrients!$EE$77,Nutrients!$EE$78)))))*AB$8))/2000)*2.2046","v":608.03970300000003},null,{"$f":"((SUMPRODUCT(AD$9:AD$229,Nutrients!$EE$8:$EE$228)+(IF($A$7=Nutrients!$B$8,Nutrients!$EE$8,Nutrients!$EE$9)*AD$7)+(((IF($A$8=Nutrients!$B$79,Nutrients!$EE$79,(IF($A$8=Nutrients!$B$77,Nutrients!$EE$77,Nutrients!$EE$78)))))*AD$8))/2000)*2.2046","v":608.03970300000003},{"$f":"((SUMPRODUCT(AE$9:AE$229,Nutrients!$EE$8:$EE$228)+(IF($A$7=Nutrients!$B$8,Nutrients!$EE$8,Nutrients!$EE$9)*AE$7)+(((IF($A$8=Nutrients!$B$79,Nutrients!$EE$79,(IF($A$8=Nutrients!$B$77,Nutrients!$EE$77,Nutrients!$EE$78)))))*AE$8))/2000)*2.2046","v":608.03970300000003},{"$f":"((SUMPRODUCT(AF$9:AF$229,Nutrients!$EE$8:$EE$228)+(IF($A$7=Nutrients!$B$8,Nutrients!$EE$8,Nutrients!$EE$9)*AF$7)+(((IF($A$8=Nutrients!$B$79,Nutrients!$EE$79,(IF($A$8=Nutrients!$B$77,Nutrients!$EE$77,Nutrients!$EE$78)))))*AF$8))/2000)*2.2046","v":608.03970300000003},{"$f":"((SUMPRODUCT(AG$9:AG$229,Nutrients!$EE$8:$EE$228)+(IF($A$7=Nutrients!$B$8,Nutrients!$EE$8,Nutrients!$EE$9)*AG$7)+(((IF($A$8=Nutrients!$B$79,Nutrients!$EE$79,(IF($A$8=Nutrients!$B$77,Nutrients!$EE$77,Nutrients!$EE$78)))))*AG$8))/2000)*2.2046","v":608.03970300000003},{"$f":"((SUMPRODUCT(AH$9:AH$229,Nutrients!$EE$8:$EE$228)+(IF($A$7=Nutrients!$B$8,Nutrients!$EE$8,Nutrients!$EE$9)*AH$7)+(((IF($A$8=Nutrients!$B$79,Nutrients!$EE$79,(IF($A$8=Nutrients!$B$77,Nutrients!$EE$77,Nutrients!$EE$78)))))*AH$8))/2000)*2.2046","v":608.03970300000003},{"$f":"((SUMPRODUCT(AI$9:AI$229,Nutrients!$EE$8:$EE$228)+(IF($A$7=Nutrients!$B$8,Nutrients!$EE$8,Nutrients!$EE$9)*AI$7)+(((IF($A$8=Nutrients!$B$79,Nutrients!$EE$79,(IF($A$8=Nutrients!$B$77,Nutrients!$EE$77,Nutrients!$EE$78)))))*AI$8))/2000)*2.2046","v":608.03970300000003},null,{"$f":"((SUMPRODUCT(AK$9:AK$229,Nutrients!$EE$8:$EE$228)+(IF($A$7=Nutrients!$B$8,Nutrients!$EE$8,Nutrients!$EE$9)*AK$7)+(((IF($A$8=Nutrients!$B$79,Nutrients!$EE$79,(IF($A$8=Nutrients!$B$77,Nutrients!$EE$77,Nutrients!$EE$78)))))*AK$8))/2000)*2.2046","v":608.03970300000003},{"$f":"((SUMPRODUCT(AL$9:AL$229,Nutrients!$EE$8:$EE$228)+(IF($A$7=Nutrients!$B$8,Nutrients!$EE$8,Nutrients!$EE$9)*AL$7)+(((IF($A$8=Nutrients!$B$79,Nutrients!$EE$79,(IF($A$8=Nutrients!$B$77,Nutrients!$EE$77,Nutrients!$EE$78)))))*AL$8))/2000)*2.2046","v":608.03970300000003},{"$f":"((SUMPRODUCT(AM$9:AM$229,Nutrients!$EE$8:$EE$228)+(IF($A$7=Nutrients!$B$8,Nutrients!$EE$8,Nutrients!$EE$9)*AM$7)+(((IF($A$8=Nutrients!$B$79,Nutrients!$EE$79,(IF($A$8=Nutrients!$B$77,Nutrients!$EE$77,Nutrients!$EE$78)))))*AM$8))/2000)*2.2046","v":608.03970300000003},{"$f":"((SUMPRODUCT(AN$9:AN$229,Nutrients!$EE$8:$EE$228)+(IF($A$7=Nutrients!$B$8,Nutrients!$EE$8,Nutrients!$EE$9)*AN$7)+(((IF($A$8=Nutrients!$B$79,Nutrients!$EE$79,(IF($A$8=Nutrients!$B$77,Nutrients!$EE$77,Nutrients!$EE$78)))))*AN$8))/2000)*2.2046","v":608.03970300000003},{"$f":"((SUMPRODUCT(AO$9:AO$229,Nutrients!$EE$8:$EE$228)+(IF($A$7=Nutrients!$B$8,Nutrients!$EE$8,Nutrients!$EE$9)*AO$7)+(((IF($A$8=Nutrients!$B$79,Nutrients!$EE$79,(IF($A$8=Nutrients!$B$77,Nutrients!$EE$77,Nutrients!$EE$78)))))*AO$8))/2000)*2.2046","v":608.03970300000003},{"$f":"((SUMPRODUCT(AP$9:AP$229,Nutrients!$EE$8:$EE$228)+(IF($A$7=Nutrients!$B$8,Nutrients!$EE$8,Nutrients!$EE$9)*AP$7)+(((IF($A$8=Nutrients!$B$79,Nutrients!$EE$79,(IF($A$8=Nutrients!$B$77,Nutrients!$EE$77,Nutrients!$EE$78)))))*AP$8))/2000)*2.2046","v":608.03970300000003},null,{"$f":"((SUMPRODUCT(AR$9:AR$229,Nutrients!$EE$8:$EE$228)+(IF($A$7=Nutrients!$B$8,Nutrients!$EE$8,Nutrients!$EE$9)*AR$7)+(((IF($A$8=Nutrients!$B$79,Nutrients!$EE$79,(IF($A$8=Nutrients!$B$77,Nutrients!$EE$77,Nutrients!$EE$78)))))*AR$8))/2000)*2.2046","v":608.03970300000003},{"$f":"((SUMPRODUCT(AS$9:AS$229,Nutrients!$EE$8:$EE$228)+(IF($A$7=Nutrients!$B$8,Nutrients!$EE$8,Nutrients!$EE$9)*AS$7)+(((IF($A$8=Nutrients!$B$79,Nutrients!$EE$79,(IF($A$8=Nutrients!$B$77,Nutrients!$EE$77,Nutrients!$EE$78)))))*AS$8))/2000)*2.2046","v":608.03970300000003},{"$f":"((SUMPRODUCT(AT$9:AT$229,Nutrients!$EE$8:$EE$228)+(IF($A$7=Nutrients!$B$8,Nutrients!$EE$8,Nutrients!$EE$9)*AT$7)+(((IF($A$8=Nutrients!$B$79,Nutrients!$EE$79,(IF($A$8=Nutrients!$B$77,Nutrients!$EE$77,Nutrients!$EE$78)))))*AT$8))/2000)*2.2046","v":608.03970300000003},{"$f":"((SUMPRODUCT(AU$9:AU$229,Nutrients!$EE$8:$EE$228)+(IF($A$7=Nutrients!$B$8,Nutrients!$EE$8,Nutrients!$EE$9)*AU$7)+(((IF($A$8=Nutrients!$B$79,Nutrients!$EE$79,(IF($A$8=Nutrients!$B$77,Nutrients!$EE$77,Nutrients!$EE$78)))))*AU$8))/2000)*2.2046","v":608.03970300000003},{"$f":"((SUMPRODUCT(AV$9:AV$229,Nutrients!$EE$8:$EE$228)+(IF($A$7=Nutrients!$B$8,Nutrients!$EE$8,Nutrients!$EE$9)*AV$7)+(((IF($A$8=Nutrients!$B$79,Nutrients!$EE$79,(IF($A$8=Nutrients!$B$77,Nutrients!$EE$77,Nutrients!$EE$78)))))*AV$8))/2000)*2.2046","v":608.03970300000003},{"$f":"((SUMPRODUCT(AW$9:AW$229,Nutrients!$EE$8:$EE$228)+(IF($A$7=Nutrients!$B$8,Nutrients!$EE$8,Nutrients!$EE$9)*AW$7)+(((IF($A$8=Nutrients!$B$79,Nutrients!$EE$79,(IF($A$8=Nutrients!$B$77,Nutrients!$EE$77,Nutrients!$EE$78)))))*AW$8))/2000)*2.2046","v":608.03970300000003}]
["EFA, %",{"$f":"((SUMPRODUCT(B$9:B$229,Nutrients!$FK$8:$FK$228)+(IF($A$7=Nutrients!$B$8,Nutrients!$FK$8,Nutrients!$FK$9)*B$7)+(((IF($A$8=Nutrients!$B$79,Nutrients!$FK$79,(IF($A$8=Nutrients!$B$77,Nutrients!$FK$77,Nutrients!$FK$78)))))*B$8))/2000)","v":1.5203643016438457},{"$f":"((SUMPRODUCT(C$9:C$229,Nutrients!$FK$8:$FK$228)+(IF($A$7=Nutrients!$B$8,Nutrients!$FK$8,Nutrients!$FK$9)*C$7)+(((IF($A$8=Nutrients!$B$79,Nutrients!$FK$79,(IF($A$8=Nutrients!$B$77,Nutrients!$FK$77,Nutrients!$FK$78)))))*C$8))/2000)","v":1.5749887728173662},{"$f":"((SUMPRODUCT(D$9:D$229,Nutrients!$FK$8:$FK$228)+(IF($A$7=Nutrients!$B$8,Nutrients!$FK$8,Nutrients!$FK$9)*D$7)+(((IF($A$8=Nutrients!$B$79,Nutrients!$FK$79,(IF($A$8=Nutrients!$B$77,Nutrients!$FK$77,Nutrients!$FK$78)))))*D$8))/2000)","v":1.622538447302484},{"$f":"((SUMPRODUCT(E$9:E$229,Nutrients!$FK$8:$FK$228)+(IF($A$7=Nutrients!$B$8,Nutrients!$FK$8,Nutrients!$FK$9)*E$7)+(((IF($A$8=Nutrients!$B$79,Nutrients!$FK$79,(IF($A$8=Nutrients!$B$77,Nutrients!$FK$77,Nutrients!$FK$78)))))*E$8))/2000)","v":1.6623836434171375},{"$f":"((SUMPRODUCT(F$9:F$229,Nutrients!$FK$8:$FK$228)+(IF($A$7=Nutrients!$B$8,Nutrients!$FK$8,Nutrients!$FK$9)*F$7)+(((IF($A$8=Nutrients!$B$79,Nutrients!$FK$79,(IF($A$8=Nutrients!$B$77,Nutrients!$FK$77,Nutrients!$FK$78)))))*F$8))/2000)","v":1.689982464517773},{"$f":"((SUMPRODUCT(G$9:G$229,Nutrients!$FK$8:$FK$228)+(IF($A$7=Nutrients!$B$8,Nutrients!$FK$8,Nutrients!$FK$9)*G$7)+(((IF($A$8=Nutrients!$B$79,Nutrients!$FK$79,(IF($A$8=Nutrients!$B$77,Nutrients!$FK$77,Nutrients!$FK$78)))))*G$8))/2000)","v":1.7033272639768986},null,{"$f":"((SUMPRODUCT(I$9:I$229,Nutrients!$FK$8:$FK$228)+(IF($A$7=Nutrients!$B$8,Nutrients!$FK$8,Nutrients!$FK$9)*I$7)+(((IF($A$8=Nutrients!$B$79,Nutrients!$FK$79,(IF($A$8=Nutrients!$B$77,Nutrients!$FK$77,Nutrients!$FK$78)))))*I$8))/2000)","v":1.4791564114996694},{"$f":"((SUMPRODUCT(J$9:J$229,Nutrients!$FK$8:$FK$228)+(IF($A$7=Nutrients!$B$8,Nutrients!$FK$8,Nutrients!$FK$9)*J$7)+(((IF($A$8=Nutrients!$B$79,Nutrients!$FK$79,(IF($A$8=Nutrients!$B$77,Nutrients!$FK$77,Nutrients!$FK$78)))))*J$8))/2000)","v":1.534120750639838},{"$f":"((SUMPRODUCT(K$9:K$229,Nutrients!$FK$8:$FK$228)+(IF($A$7=Nutrients!$B$8,Nutrients!$FK$8,Nutrients!$FK$9)*K$7)+(((IF($A$8=Nutrients!$B$79,Nutrients!$FK$79,(IF($A$8=Nutrients!$B$77,Nutrients!$FK$77,Nutrients!$FK$78)))))*K$8))/2000)","v":1.5822173174089862},{"$f":"((SUMPRODUCT(L$9:L$229,Nutrients!$FK$8:$FK$228)+(IF($A$7=Nutrients!$B$8,Nutrients!$FK$8,Nutrients!$FK$9)*L$7)+(((IF($A$8=Nutrients!$B$79,Nutrients!$FK$79,(IF($A$8=Nutrients!$B$77,Nutrients!$FK$77,Nutrients!$FK$78)))))*L$8))/2000)","v":1.6213502170228395},{"$f":"((SUMPRODUCT(M$9:M$229,Nutrients!$FK$8:$FK$228)+(IF($A$7=Nutrients!$B$8,Nutrients!$FK$8,Nutrients!$FK$9)*M$7)+(((IF($A$8=Nutrients!$B$79,Nutrients!$FK$79,(IF($A$8=Nutrients!$B$77,Nutrients!$FK$77,Nutrients!$FK$78)))))*M$8))/2000)","v":1.6490897843312589},{"$f":"((SUMPRODUCT(N$9:N$229,Nutrients!$FK$8:$FK$228)+(IF($A$7=Nutrients!$B$8,Nutrients!$FK$8,Nutrients!$FK$9)*N$7)+(((IF($A$8=Nutrients!$B$79,Nutrients!$FK$79,(IF($A$8=Nutrients!$B$77,Nutrients!$FK$77,Nutrients!$FK$78)))))*N$8))/2000)","v":1.7033272639768986},null,{"$f":"((SUMPRODUCT(P$9:P$229,Nutrients!$FK$8:$FK$228)+(IF($A$7=Nutrients!$B$8,Nutrients!$FK$8,Nutrients!$FK$9)*P$7)+(((IF($A$8=Nutrients!$B$79,Nutrients!$FK$79,(IF($A$8=Nutrients!$B$77,Nutrients!$FK$77,Nutrients!$FK$78)))))*P$8))/2000)","v":1.4384976726047054},{"$f":"((SUMPRODUCT(Q$9:Q$229,Nutrients!$FK$8:$FK$228)+(IF($A$7=Nutrients!$B$8,Nutrients!$FK$8,Nutrients!$FK$9)*Q$7)+(((IF($A$8=Nutrients!$B$79,Nutrients!$FK$79,(IF($A$8=Nutrients!$B$77,Nutrients!$FK$77,Nutrients!$FK$78)))))*Q$8))/2000)","v":1.4936113446442294},{"$f":"((SUMPRODUCT(R$9:R$229,Nutrients!$FK$8:$FK$228)+(IF($A$7=Nutrients!$B$8,Nutrients!$FK$8,Nutrients!$FK$9)*R$7)+(((IF($A$8=Nutrients!$B$79,Nutrients!$FK$79,(IF($A$8=Nutrients!$B$77,Nutrients!$FK$77,Nutrients!$FK$78)))))*R$8))/2000)","v":1.5419333136790543},{"$f":"((SUMPRODUCT(S$9:S$229,Nutrients!$FK$8:$FK$228)+(IF($A$7=Nutrients!$B$8,Nutrients!$FK$8,Nutrients!$FK$9)*S$7)+(((IF($A$8=Nutrients!$B$79,Nutrients!$FK$79,(IF($A$8=Nutrients!$B$77,Nutrients!$FK$77,Nutrients!$FK$78)))))*S$8))/2000)","v":1.5809775552829053},{"$f":"((SUMPRODUCT(T$9:T$229,Nutrients!$FK$8:$FK$228)+(IF($A$7=Nutrients!$B$8,Nutrients!$FK$8,Nutrients!$FK$9)*T$7)+(((IF($A$8=Nutrients!$B$79,Nutrients!$FK$79,(IF($A$8=Nutrients!$B$77,Nutrients!$FK$77,Nutrients!$FK$78)))))*T$8))/2000)","v":1.6085773804255177},{"$f":"((SUMPRODUCT(U$9:U$229,Nutrients!$FK$8:$FK$228)+(IF($A$7=Nutrients!$B$8,Nutrients!$FK$8,Nutrients!$FK$9)*U$7)+(((IF($A$8=Nutrients!$B$79,Nutrients!$FK$79,(IF($A$8=Nutrients!$B$77,Nutrients!$FK$77,Nutrients!$FK$78)))))*U$8))/2000)","v":1.7033272639768986},null,{"$f":"((SUMPRODUCT(W$9:W$229,Nutrients!$FK$8:$FK$228)+(IF($A$7=Nutrients!$B$8,Nutrients!$FK$8,Nutrients!$FK$9)*W$7)+(((IF($A$8=Nutrients!$B$79,Nutrients!$FK$79,(IF($A$8=Nutrients!$B$77,Nutrients!$FK$77,Nutrients!$FK$78)))))*W$8))/2000)","v":1.3979567514705442},{"$f":"((SUMPRODUCT(X$9:X$229,Nutrients!$FK$8:$FK$228)+(IF($A$7=Nutrients!$B$8,Nutrients!$FK$8,Nutrients!$FK$9)*X$7)+(((IF($A$8=Nutrients!$B$79,Nutrients!$FK$79,(IF($A$8=Nutrients!$B$77,Nutrients!$FK$77,Nutrients!$FK$78)))))*X$8))/2000)","v":1.4532433474949471},{"$f":"((SUMPRODUCT(Y$9:Y$229,Nutrients!$FK$8:$FK$228)+(IF($A$7=Nutrients!$B$8,Nutrients!$FK$8,Nutrients!$FK$9)*Y$7)+(((IF($A$8=Nutrients!$B$79,Nutrients!$FK$79,(IF($A$8=Nutrients!$B$77,Nutrients!$FK$77,Nutrients!$FK$78)))))*Y$8))/2000)","v":1.5015077252725728},{"$f":"((SUMPRODUCT(Z$9:Z$229,Nutrients!$FK$8:$FK$228)+(IF($A$7=Nutrients!$B$8,Nutrients!$FK$8,Nutrients!$FK$9)*Z$7)+(((IF($A$8=Nutrients!$B$79,Nutrients!$FK$79,(IF($A$8=Nutrients!$B$77,Nutrients!$FK$77,Nutrients!$FK$78)))))*Z$8))/2000)","v":1.5408245887607004},{"$f":"((SUMPRODUCT(AA$9:AA$229,Nutrients!$FK$8:$FK$228)+(IF($A$7=Nutrients!$B$8,Nutrients!$FK$8,Nutrients!$FK$9)*AA$7)+(((IF($A$8=Nutrients!$B$79,Nutrients!$FK$79,(IF($A$8=Nutrients!$B$77,Nutrients!$FK$77,Nutrients!$FK$78)))))*AA$8))/2000)","v":1.5680664532702053},{"$f":"((SUMPRODUCT(AB$9:AB$229,Nutrients!$FK$8:$FK$228)+(IF($A$7=Nutrients!$B$8,Nutrients!$FK$8,Nutrients!$FK$9)*AB$7)+(((IF($A$8=Nutrients!$B$79,Nutrients!$FK$79,(IF($A$8=Nutrients!$B$77,Nutrients!$FK$77,Nutrients!$FK$78)))))*AB$8))/2000)","v":1.7033272639768986},null,{"$f":"((SUMPRODUCT(AD$9:AD$229,Nutrients!$FK$8:$FK$228)+(IF($A$7=Nutrients!$B$8,Nutrients!$FK$8,Nutrients!$FK$9)*AD$7)+(((IF($A$8=Nutrients!$B$79,Nutrients!$FK$79,(IF($A$8=Nutrients!$B$77,Nutrients!$FK$77,Nutrients!$FK$78)))))*AD$8))/2000)","v":1.3576584023571421},{"$f":"((SUMPRODUCT(AE$9:AE$229,Nutrients!$FK$8:$FK$228)+(IF($A$7=Nutrients!$B$8,Nutrients!$FK$8,Nutrients!$FK$9)*AE$7)+(((IF($A$8=Nutrients!$B$79,Nutrients!$FK$79,(IF($A$8=Nutrients!$B$77,Nutrients!$FK$77,Nutrients!$FK$78)))))*AE$8))/2000)","v":1.4128812569507483},{"$f":"((SUMPRODUCT(AF$9:AF$229,Nutrients!$FK$8:$FK$228)+(IF($A$7=Nutrients!$B$8,Nutrients!$FK$8,Nutrients!$FK$9)*AF$7)+(((IF($A$8=Nutrients!$B$79,Nutrients!$FK$79,(IF($A$8=Nutrients!$B$77,Nutrients!$FK$77,Nutrients!$FK$78)))))*AF$8))/2000)","v":1.4616195303483082},{"$f":"((SUMPRODUCT(AG$9:AG$229,Nutrients!$FK$8:$FK$228)+(IF($A$7=Nutrients!$B$8,Nutrients!$FK$8,Nutrients!$FK$9)*AG$7)+(((IF($A$8=Nutrients!$B$79,Nutrients!$FK$79,(IF($A$8=Nutrients!$B$77,Nutrients!$FK$77,Nutrients!$FK$78)))))*AG$8))/2000)","v":1.5004593028645468},{"$f":"((SUMPRODUCT(AH$9:AH$229,Nutrients!$FK$8:$FK$228)+(IF($A$7=Nutrients!$B$8,Nutrients!$FK$8,Nutrients!$FK$9)*AH$7)+(((IF($A$8=Nutrients!$B$79,Nutrients!$FK$79,(IF($A$8=Nutrients!$B$77,Nutrients!$FK$77,Nutrients!$FK$78)))))*AH$8))/2000)","v":1.528940178806409},{"$f":"((SUMPRODUCT(AI$9:AI$229,Nutrients!$FK$8:$FK$228)+(IF($A$7=Nutrients!$B$8,Nutrients!$FK$8,Nutrients!$FK$9)*AI$7)+(((IF($A$8=Nutrients!$B$79,Nutrients!$FK$79,(IF($A$8=Nutrients!$B$77,Nutrients!$FK$77,Nutrients!$FK$78)))))*AI$8))/2000)","v":1.7033272639768986},null,{"$f":"((SUMPRODUCT(AK$9:AK$229,Nutrients!$FK$8:$FK$228)+(IF($A$7=Nutrients!$B$8,Nutrients!$FK$8,Nutrients!$FK$9)*AK$7)+(((IF($A$8=Nutrients!$B$79,Nutrients!$FK$79,(IF($A$8=Nutrients!$B$77,Nutrients!$FK$77,Nutrients!$FK$78)))))*AK$8))/2000)","v":1.3184235919467664},{"$f":"((SUMPRODUCT(AL$9:AL$229,Nutrients!$FK$8:$FK$228)+(IF($A$7=Nutrients!$B$8,Nutrients!$FK$8,Nutrients!$FK$9)*AL$7)+(((IF($A$8=Nutrients!$B$79,Nutrients!$FK$79,(IF($A$8=Nutrients!$B$77,Nutrients!$FK$77,Nutrients!$FK$78)))))*AL$8))/2000)","v":1.3725531798399504},{"$f":"((SUMPRODUCT(AM$9:AM$229,Nutrients!$FK$8:$FK$228)+(IF($A$7=Nutrients!$B$8,Nutrients!$FK$8,Nutrients!$FK$9)*AM$7)+(((IF($A$8=Nutrients!$B$79,Nutrients!$FK$79,(IF($A$8=Nutrients!$B$77,Nutrients!$FK$77,Nutrients!$FK$78)))))*AM$8))/2000)","v":1.4210408417300584},{"$f":"((SUMPRODUCT(AN$9:AN$229,Nutrients!$FK$8:$FK$228)+(IF($A$7=Nutrients!$B$8,Nutrients!$FK$8,Nutrients!$FK$9)*AN$7)+(((IF($A$8=Nutrients!$B$79,Nutrients!$FK$79,(IF($A$8=Nutrients!$B$77,Nutrients!$FK$77,Nutrients!$FK$78)))))*AN$8))/2000)","v":1.4606575179964951},{"$f":"((SUMPRODUCT(AO$9:AO$229,Nutrients!$FK$8:$FK$228)+(IF($A$7=Nutrients!$B$8,Nutrients!$FK$8,Nutrients!$FK$9)*AO$7)+(((IF($A$8=Nutrients!$B$79,Nutrients!$FK$79,(IF($A$8=Nutrients!$B$77,Nutrients!$FK$77,Nutrients!$FK$78)))))*AO$8))/2000)","v":1.4908577272593544},{"$f":"((SUMPRODUCT(AP$9:AP$229,Nutrients!$FK$8:$FK$228)+(IF($A$7=Nutrients!$B$8,Nutrients!$FK$8,Nutrients!$FK$9)*AP$7)+(((IF($A$8=Nutrients!$B$79,Nutrients!$FK$79,(IF($A$8=Nutrients!$B$77,Nutrients!$FK$77,Nutrients!$FK$78)))))*AP$8))/2000)","v":1.7033272639768986},null,{"$f":"((SUMPRODUCT(AR$9:AR$229,Nutrients!$FK$8:$FK$228)+(IF($A$7=Nutrients!$B$8,Nutrients!$FK$8,Nutrients!$FK$9)*AR$7)+(((IF($A$8=Nutrients!$B$79,Nutrients!$FK$79,(IF($A$8=Nutrients!$B$77,Nutrients!$FK$77,Nutrients!$FK$78)))))*AR$8))/2000)","v":1.2777143483320366},{"$f":"((SUMPRODUCT(AS$9:AS$229,Nutrients!$FK$8:$FK$228)+(IF($A$7=Nutrients!$B$8,Nutrients!$FK$8,Nutrients!$FK$9)*AS$7)+(((IF($A$8=Nutrients!$B$79,Nutrients!$FK$79,(IF($A$8=Nutrients!$B$77,Nutrients!$FK$77,Nutrients!$FK$78)))))*AS$8))/2000)","v":1.3322838510241022},{"$f":"((SUMPRODUCT(AT$9:AT$229,Nutrients!$FK$8:$FK$228)+(IF($A$7=Nutrients!$B$8,Nutrients!$FK$8,Nutrients!$FK$9)*AT$7)+(((IF($A$8=Nutrients!$B$79,Nutrients!$FK$79,(IF($A$8=Nutrients!$B$77,Nutrients!$FK$77,Nutrients!$FK$78)))))*AT$8))/2000)","v":1.3800997420972081},{"$f":"((SUMPRODUCT(AU$9:AU$229,Nutrients!$FK$8:$FK$228)+(IF($A$7=Nutrients!$B$8,Nutrients!$FK$8,Nutrients!$FK$9)*AU$7)+(((IF($A$8=Nutrients!$B$79,Nutrients!$FK$79,(IF($A$8=Nutrients!$B$77,Nutrients!$FK$77,Nutrients!$FK$78)))))*AU$8))/2000)","v":1.4225073367917505},{"$f":"((SUMPRODUCT(AV$9:AV$229,Nutrients!$FK$8:$FK$228)+(IF($A$7=Nutrients!$B$8,Nutrients!$FK$8,Nutrients!$FK$9)*AV$7)+(((IF($A$8=Nutrients!$B$79,Nutrients!$FK$79,(IF($A$8=Nutrients!$B$77,Nutrients!$FK$77,Nutrients!$FK$78)))))*AV$8))/2000)","v":1.4527563398408716},{"$f":"((SUMPRODUCT(AW$9:AW$229,Nutrients!$FK$8:$FK$228)+(IF($A$7=Nutrients!$B$8,Nutrients!$FK$8,Nutrients!$FK$9)*AW$7)+(((IF($A$8=Nutrients!$B$79,Nutrients!$FK$79,(IF($A$8=Nutrients!$B$77,Nutrients!$FK$77,Nutrients!$FK$78)))))*AW$8))/2000)","v":1.7033272639768986}]
["NDF, %",{"$f":"(SUMPRODUCT(B$9:B$229,Nutrients!$U$8:$U$228)+(IF($A$7=Nutrients!$B$8,Nutrients!$U$8,Nutrients!$U$9)*B$7)+(((IF($A$8=Nutrients!$B$79,Nutrients!$U$79,(IF($A$8=Nutrients!$B$77,Nutrients!$U$77,Nutrients!$U$78)))))*B$8))/2000","v":8.5675537105360302},{"$f":"(SUMPRODUCT(C$9:C$229,Nutrients!$U$8:$U$228)+(IF($A$7=Nutrients!$B$8,Nutrients!$U$8,Nutrients!$U$9)*C$7)+(((IF($A$8=Nutrients!$B$79,Nutrients!$U$79,(IF($A$8=Nutrients!$B$77,Nutrients!$U$77,Nutrients!$U$78)))))*C$8))/2000","v":8.6397459364158564},{"$f":"(SUMPRODUCT(D$9:D$229,Nutrients!$U$8:$U$228)+(IF($A$7=Nutrients!$B$8,Nutrients!$U$8,Nutrients!$U$9)*D$7)+(((IF($A$8=Nutrients!$B$79,Nutrients!$U$79,(IF($A$8=Nutrients!$B$77,Nutrients!$U$77,Nutrients!$U$78)))))*D$8))/2000","v":8.7042340935531328},{"$f":"(SUMPRODUCT(E$9:E$229,Nutrients!$U$8:$U$228)+(IF($A$7=Nutrients!$B$8,Nutrients!$U$8,Nutrients!$U$9)*E$7)+(((IF($A$8=Nutrients!$B$79,Nutrients!$U$79,(IF($A$8=Nutrients!$B$77,Nutrients!$U$77,Nutrients!$U$78)))))*E$8))/2000","v":8.7574905031042753},{"$f":"(SUMPRODUCT(F$9:F$229,Nutrients!$U$8:$U$228)+(IF($A$7=Nutrients!$B$8,Nutrients!$U$8,Nutrients!$U$9)*F$7)+(((IF($A$8=Nutrients!$B$79,Nutrients!$U$79,(IF($A$8=Nutrients!$B$77,Nutrients!$U$77,Nutrients!$U$78)))))*F$8))/2000","v":8.7980354970428483},{"$f":"(SUMPRODUCT(G$9:G$229,Nutrients!$U$8:$U$228)+(IF($A$7=Nutrients!$B$8,Nutrients!$U$8,Nutrients!$U$9)*G$7)+(((IF($A$8=Nutrients!$B$79,Nutrients!$U$79,(IF($A$8=Nutrients!$B$77,Nutrients!$U$77,Nutrients!$U$78)))))*G$8))/2000","v":8.8153381410832843},null,{"$f":"(SUMPRODUCT(I$9:I$229,Nutrients!$U$8:$U$228)+(IF($A$7=Nutrients!$B$8,Nutrients!$U$8,Nutrients!$U$9)*I$7)+(((IF($A$8=Nutrients!$B$79,Nutrients!$U$79,(IF($A$8=Nutrients!$B$77,Nutrients!$U$77,Nutrients!$U$78)))))*I$8))/2000","v":9.7249109022549316},{"$f":"(SUMPRODUCT(J$9:J$229,Nutrients!$U$8:$U$228)+(IF($A$7=Nutrients!$B$8,Nutrients!$U$8,Nutrients!$U$9)*J$7)+(((IF($A$8=Nutrients!$B$79,Nutrients!$U$79,(IF($A$8=Nutrients!$B$77,Nutrients!$U$77,Nutrients!$U$78)))))*J$8))/2000","v":9.7964931050631989},{"$f":"(SUMPRODUCT(K$9:K$229,Nutrients!$U$8:$U$228)+(IF($A$7=Nutrients!$B$8,Nutrients!$U$8,Nutrients!$U$9)*K$7)+(((IF($A$8=Nutrients!$B$79,Nutrients!$U$79,(IF($A$8=Nutrients!$B$77,Nutrients!$U$77,Nutrients!$U$78)))))*K$8))/2000","v":9.8620823208871773},{"$f":"(SUMPRODUCT(L$9:L$229,Nutrients!$U$8:$U$228)+(IF($A$7=Nutrients!$B$8,Nutrients!$U$8,Nutrients!$U$9)*L$7)+(((IF($A$8=Nutrients!$B$79,Nutrients!$U$79,(IF($A$8=Nutrients!$B$77,Nutrients!$U$77,Nutrients!$U$78)))))*L$8))/2000","v":9.9169687619060998},{"$f":"(SUMPRODUCT(M$9:M$229,Nutrients!$U$8:$U$228)+(IF($A$7=Nutrients!$B$8,Nutrients!$U$8,Nutrients!$U$9)*M$7)+(((IF($A$8=Nutrients!$B$79,Nutrients!$U$79,(IF($A$8=Nutrients!$B$77,Nutrients!$U$77,Nutrients!$U$78)))))*M$8))/2000","v":9.9563425413950952},{"$f":"(SUMPRODUCT(N$9:N$229,Nutrients!$U$8:$U$228)+(IF($A$7=Nutrients!$B$8,Nutrients!$U$8,Nutrients!$U$9)*N$7)+(((IF($A$8=Nutrients!$B$79,Nutrients!$U$79,(IF($A$8=Nutrients!$B$77,Nutrients!$U$77,Nutrients!$U$78)))))*N$8))/2000","v":8.8153381410832843},null,{"$f":"(SUMPRODUCT(P$9:P$229,Nutrients!$U$8:$U$228)+(IF($A$7=Nutrients!$B$8,Nutrients!$U$8,Nutrients!$U$9)*P$7)+(((IF($A$8=Nutrients!$B$79,Nutrients!$U$79,(IF($A$8=Nutrients!$B$77,Nutrients!$U$77,Nutrients!$U$78)))))*P$8))/2000","v":10.88217629885041},{"$f":"(SUMPRODUCT(Q$9:Q$229,Nutrients!$U$8:$U$228)+(IF($A$7=Nutrients!$B$8,Nutrients!$U$8,Nutrients!$U$9)*Q$7)+(((IF($A$8=Nutrients!$B$79,Nutrients!$U$79,(IF($A$8=Nutrients!$B$77,Nutrients!$U$77,Nutrients!$U$78)))))*Q$8))/2000","v":10.953584439917918},{"$f":"(SUMPRODUCT(R$9:R$229,Nutrients!$U$8:$U$228)+(IF($A$7=Nutrients!$B$8,Nutrients!$U$8,Nutrients!$U$9)*R$7)+(((IF($A$8=Nutrients!$B$79,Nutrients!$U$79,(IF($A$8=Nutrients!$B$77,Nutrients!$U$77,Nutrients!$U$78)))))*R$8))/2000","v":11.018910927897572},{"$f":"(SUMPRODUCT(S$9:S$229,Nutrients!$U$8:$U$228)+(IF($A$7=Nutrients!$B$8,Nutrients!$U$8,Nutrients!$U$9)*S$7)+(((IF($A$8=Nutrients!$B$79,Nutrients!$U$79,(IF($A$8=Nutrients!$B$77,Nutrients!$U$77,Nutrients!$U$78)))))*S$8))/2000","v":11.073900708285247},{"$f":"(SUMPRODUCT(T$9:T$229,Nutrients!$U$8:$U$228)+(IF($A$7=Nutrients!$B$8,Nutrients!$U$8,Nutrients!$U$9)*T$7)+(((IF($A$8=Nutrients!$B$79,Nutrients!$U$79,(IF($A$8=Nutrients!$B$77,Nutrients!$U$77,Nutrients!$U$78)))))*T$8))/2000","v":11.113016811836189},{"$f":"(SUMPRODUCT(U$9:U$229,Nutrients!$U$8:$U$228)+(IF($A$7=Nutrients!$B$8,Nutrients!$U$8,Nutrients!$U$9)*U$7)+(((IF($A$8=Nutrients!$B$79,Nutrients!$U$79,(IF($A$8=Nutrients!$B$77,Nutrients!$U$77,Nutrients!$U$78)))))*U$8))/2000","v":8.8153381410832843},null,{"$f":"(SUMPRODUCT(W$9:W$229,Nutrients!$U$8:$U$228)+(IF($A$7=Nutrients!$B$8,Nutrients!$U$8,Nutrients!$U$9)*W$7)+(((IF($A$8=Nutrients!$B$79,Nutrients!$U$79,(IF($A$8=Nutrients!$B$77,Nutrients!$U$77,Nutrients!$U$78)))))*W$8))/2000","v":12.039304367605698},{"$f":"(SUMPRODUCT(X$9:X$229,Nutrients!$U$8:$U$228)+(IF($A$7=Nutrients!$B$8,Nutrients!$U$8,Nutrients!$U$9)*X$7)+(((IF($A$8=Nutrients!$B$79,Nutrients!$U$79,(IF($A$8=Nutrients!$B$77,Nutrients!$U$77,Nutrients!$U$78)))))*X$8))/2000","v":12.110510949271651},{"$f":"(SUMPRODUCT(Y$9:Y$229,Nutrients!$U$8:$U$228)+(IF($A$7=Nutrients!$B$8,Nutrients!$U$8,Nutrients!$U$9)*Y$7)+(((IF($A$8=Nutrients!$B$79,Nutrients!$U$79,(IF($A$8=Nutrients!$B$77,Nutrients!$U$77,Nutrients!$U$78)))))*Y$8))/2000","v":12.176132952118794},{"$f":"(SUMPRODUCT(Z$9:Z$229,Nutrients!$U$8:$U$228)+(IF($A$7=Nutrients!$B$8,Nutrients!$U$8,Nutrients!$U$9)*Z$7)+(((IF($A$8=Nutrients!$B$79,Nutrients!$U$79,(IF($A$8=Nutrients!$B$77,Nutrients!$U$77,Nutrients!$U$78)))))*Z$8))/2000","v":12.231314527025717},{"$f":"(SUMPRODUCT(AA$9:AA$229,Nutrients!$U$8:$U$228)+(IF($A$7=Nutrients!$B$8,Nutrients!$U$8,Nutrients!$U$9)*AA$7)+(((IF($A$8=Nutrients!$B$79,Nutrients!$U$79,(IF($A$8=Nutrients!$B$77,Nutrients!$U$77,Nutrients!$U$78)))))*AA$8))/2000","v":12.26936766276811},{"$f":"(SUMPRODUCT(AB$9:AB$229,Nutrients!$U$8:$U$228)+(IF($A$7=Nutrients!$B$8,Nutrients!$U$8,Nutrients!$U$9)*AB$7)+(((IF($A$8=Nutrients!$B$79,Nutrients!$U$79,(IF($A$8=Nutrients!$B$77,Nutrients!$U$77,Nutrients!$U$78)))))*AB$8))/2000","v":8.8153381410832843},null,{"$f":"(SUMPRODUCT(AD$9:AD$229,Nutrients!$U$8:$U$228)+(IF($A$7=Nutrients!$B$8,Nutrients!$U$8,Nutrients!$U$9)*AD$7)+(((IF($A$8=Nutrients!$B$79,Nutrients!$U$79,(IF($A$8=Nutrients!$B$77,Nutrients!$U$77,Nutrients!$U$78)))))*AD$8))/2000","v":13.196263888910565},{"$f":"(SUMPRODUCT(AE$9:AE$229,Nutrients!$U$8:$U$228)+(IF($A$7=Nutrients!$B$8,Nutrients!$U$8,Nutrients!$U$9)*AE$7)+(((IF($A$8=Nutrients!$B$79,Nutrients!$U$79,(IF($A$8=Nutrients!$B$77,Nutrients!$U$77,Nutrients!$U$78)))))*AE$8))/2000","v":13.26754476729513},{"$f":"(SUMPRODUCT(AF$9:AF$229,Nutrients!$U$8:$U$228)+(IF($A$7=Nutrients!$B$8,Nutrients!$U$8,Nutrients!$U$9)*AF$7)+(((IF($A$8=Nutrients!$B$79,Nutrients!$U$79,(IF($A$8=Nutrients!$B$77,Nutrients!$U$77,Nutrients!$U$78)))))*AF$8))/2000","v":13.333784731577465},{"$f":"(SUMPRODUCT(AG$9:AG$229,Nutrients!$U$8:$U$228)+(IF($A$7=Nutrients!$B$8,Nutrients!$U$8,Nutrients!$U$9)*AG$7)+(((IF($A$8=Nutrients!$B$79,Nutrients!$U$79,(IF($A$8=Nutrients!$B$77,Nutrients!$U$77,Nutrients!$U$78)))))*AG$8))/2000","v":13.387381425794249},{"$f":"(SUMPRODUCT(AH$9:AH$229,Nutrients!$U$8:$U$228)+(IF($A$7=Nutrients!$B$8,Nutrients!$U$8,Nutrients!$U$9)*AH$7)+(((IF($A$8=Nutrients!$B$79,Nutrients!$U$79,(IF($A$8=Nutrients!$B$77,Nutrients!$U$77,Nutrients!$U$78)))))*AH$8))/2000","v":13.41504497080839},{"$f":"(SUMPRODUCT(AI$9:AI$229,Nutrients!$U$8:$U$228)+(IF($A$7=Nutrients!$B$8,Nutrients!$U$8,Nutrients!$U$9)*AI$7)+(((IF($A$8=Nutrients!$B$79,Nutrients!$U$79,(IF($A$8=Nutrients!$B$77,Nutrients!$U$77,Nutrients!$U$78)))))*AI$8))/2000","v":8.8153381410832843},null,{"$f":"(SUMPRODUCT(AK$9:AK$229,Nutrients!$U$8:$U$228)+(IF($A$7=Nutrients!$B$8,Nutrients!$U$8,Nutrients!$U$9)*AK$7)+(((IF($A$8=Nutrients!$B$79,Nutrients!$U$79,(IF($A$8=Nutrients!$B$77,Nutrients!$U$77,Nutrients!$U$78)))))*AK$8))/2000","v":14.352040851084766},{"$f":"(SUMPRODUCT(AL$9:AL$229,Nutrients!$U$8:$U$228)+(IF($A$7=Nutrients!$B$8,Nutrients!$U$8,Nutrients!$U$9)*AL$7)+(((IF($A$8=Nutrients!$B$79,Nutrients!$U$79,(IF($A$8=Nutrients!$B$77,Nutrients!$U$77,Nutrients!$U$78)))))*AL$8))/2000","v":14.424596036107788},{"$f":"(SUMPRODUCT(AM$9:AM$229,Nutrients!$U$8:$U$228)+(IF($A$7=Nutrients!$B$8,Nutrients!$U$8,Nutrients!$U$9)*AM$7)+(((IF($A$8=Nutrients!$B$79,Nutrients!$U$79,(IF($A$8=Nutrients!$B$77,Nutrients!$U$77,Nutrients!$U$78)))))*AM$8))/2000","v":14.490157468268242},{"$f":"(SUMPRODUCT(AN$9:AN$229,Nutrients!$U$8:$U$228)+(IF($A$7=Nutrients!$B$8,Nutrients!$U$8,Nutrients!$U$9)*AN$7)+(((IF($A$8=Nutrients!$B$79,Nutrients!$U$79,(IF($A$8=Nutrients!$B$77,Nutrients!$U$77,Nutrients!$U$78)))))*AN$8))/2000","v":14.534267496185688},{"$f":"(SUMPRODUCT(AO$9:AO$229,Nutrients!$U$8:$U$228)+(IF($A$7=Nutrients!$B$8,Nutrients!$U$8,Nutrients!$U$9)*AO$7)+(((IF($A$8=Nutrients!$B$79,Nutrients!$U$79,(IF($A$8=Nutrients!$B$77,Nutrients!$U$77,Nutrients!$U$78)))))*AO$8))/2000","v":14.558028287748904},{"$f":"(SUMPRODUCT(AP$9:AP$229,Nutrients!$U$8:$U$228)+(IF($A$7=Nutrients!$B$8,Nutrients!$U$8,Nutrients!$U$9)*AP$7)+(((IF($A$8=Nutrients!$B$79,Nutrients!$U$79,(IF($A$8=Nutrients!$B$77,Nutrients!$U$77,Nutrients!$U$78)))))*AP$8))/2000","v":8.8153381410832843},null,{"$f":"(SUMPRODUCT(AR$9:AR$229,Nutrients!$U$8:$U$228)+(IF($A$7=Nutrients!$B$8,Nutrients!$U$8,Nutrients!$U$9)*AR$7)+(((IF($A$8=Nutrients!$B$79,Nutrients!$U$79,(IF($A$8=Nutrients!$B$77,Nutrients!$U$77,Nutrients!$U$78)))))*AR$8))/2000","v":15.509595274826999},{"$f":"(SUMPRODUCT(AS$9:AS$229,Nutrients!$U$8:$U$228)+(IF($A$7=Nutrients!$B$8,Nutrients!$U$8,Nutrients!$U$9)*AS$7)+(((IF($A$8=Nutrients!$B$79,Nutrients!$U$79,(IF($A$8=Nutrients!$B$77,Nutrients!$U$77,Nutrients!$U$78)))))*AS$8))/2000","v":15.581637688794629},{"$f":"(SUMPRODUCT(AT$9:AT$229,Nutrients!$U$8:$U$228)+(IF($A$7=Nutrients!$B$8,Nutrients!$U$8,Nutrients!$U$9)*AT$7)+(((IF($A$8=Nutrients!$B$79,Nutrients!$U$79,(IF($A$8=Nutrients!$B$77,Nutrients!$U$77,Nutrients!$U$78)))))*AT$8))/2000","v":15.644130597950809},{"$f":"(SUMPRODUCT(AU$9:AU$229,Nutrients!$U$8:$U$228)+(IF($A$7=Nutrients!$B$8,Nutrients!$U$8,Nutrients!$U$9)*AU$7)+(((IF($A$8=Nutrients!$B$79,Nutrients!$U$79,(IF($A$8=Nutrients!$B$77,Nutrients!$U$77,Nutrients!$U$78)))))*AU$8))/2000","v":15.677286778377889},{"$f":"(SUMPRODUCT(AV$9:AV$229,Nutrients!$U$8:$U$228)+(IF($A$7=Nutrients!$B$8,Nutrients!$U$8,Nutrients!$U$9)*AV$7)+(((IF($A$8=Nutrients!$B$79,Nutrients!$U$79,(IF($A$8=Nutrients!$B$77,Nutrients!$U$77,Nutrients!$U$78)))))*AV$8))/2000","v":15.700817905343778},{"$f":"(SUMPRODUCT(AW$9:AW$229,Nutrients!$U$8:$U$228)+(IF($A$7=Nutrients!$B$8,Nutrients!$U$8,Nutrients!$U$9)*AW$7)+(((IF($A$8=Nutrients!$B$79,Nutrients!$U$79,(IF($A$8=Nutrients!$B$77,Nutrients!$U$77,Nutrients!$U$78)))))*AW$8))/2000","v":8.8153381410832843}]
["SID Lys:CP ratio",{"$f":"B236/B253*100","v":5.7412242387563301},5.6765331580798346,5.5885690783484616,5.5041200481878318,5.4256048182416317,5.3576040399978782,null,{"$f":"I236/I253*100","v":5.6471457868571635},5.5728246933621666,5.474875776532846,5.3803224710237618,5.2947626084481865,5.3576040399978782,null,{"$f":"P236/P253*100","v":5.556034676030265},5.4726881521495914,5.3657943409874909,5.2623357830610029,5.1695203329617048,5.3576040399978782,null,{"$f":"W236/W253*100","v":5.4678366882763232},5.3761127614010435,5.2609073804604982,5.1501649454558676,5.049175891539095,5.3576040399978782,null,{"$f":"AD236/AD253*100","v":5.3824186832875913},5.2828703981910428,5.1617479451528947,5.0405728958868146,4.9363911033247669,5.3576040399978782,null,{"$f":"AK236/AK253*100","v":5.2997888182538793},5.192804683494793,5.063368681752336,4.9372472478562859,4.8292059273023451,5.3576040399978782,null,{"$f":"AR236/AR253*100","v":5.2198207519130149},5.1061894912005954,4.9694301927618243,4.8389022426092705,4.72612919130923,5.3576040399978782]
["Trace minerals (added levels)"]
["  Zinc added, ppm",{"$f":"(SUMPRODUCT(B$9:B$229,Nutrients!$EK$8:$EK$228)+(IF($A$7=Nutrients!$B$8,Nutrients!$EK$8,Nutrients!$EK$9)*B$7)+(((IF($A$8=Nutrients!$B$79,Nutrients!$EK$79,(IF($A$8=Nutrients!$B$77,Nutrients!$EK$77,Nutrients!$EK$78)))))*B$8))/2000*1000000","v":110.11950000000002},{"$f":"(SUMPRODUCT(C$9:C$229,Nutrients!$EK$8:$EK$228)+(IF($A$7=Nutrients!$B$8,Nutrients!$EK$8,Nutrients!$EK$9)*C$7)+(((IF($A$8=Nutrients!$B$79,Nutrients!$EK$79,(IF($A$8=Nutrients!$B$77,Nutrients!$EK$77,Nutrients!$EK$78)))))*C$8))/2000*1000000","v":110.11950000000002},{"$f":"(SUMPRODUCT(D$9:D$229,Nutrients!$EK$8:$EK$228)+(IF($A$7=Nutrients!$B$8,Nutrients!$EK$8,Nutrients!$EK$9)*D$7)+(((IF($A$8=Nutrients!$B$79,Nutrients!$EK$79,(IF($A$8=Nutrients!$B$77,Nutrients!$EK$77,Nutrients!$EK$78)))))*D$8))/2000*1000000","v":91.766249999999999},{"$f":"(SUMPRODUCT(E$9:E$229,Nutrients!$EK$8:$EK$228)+(IF($A$7=Nutrients!$B$8,Nutrients!$EK$8,Nutrients!$EK$9)*E$7)+(((IF($A$8=Nutrients!$B$79,Nutrients!$EK$79,(IF($A$8=Nutrients!$B$77,Nutrients!$EK$77,Nutrients!$EK$78)))))*E$8))/2000*1000000","v":73.413000000000011},{"$f":"(SUMPRODUCT(F$9:F$229,Nutrients!$EK$8:$EK$228)+(IF($A$7=Nutrients!$B$8,Nutrients!$EK$8,Nutrients!$EK$9)*F$7)+(((IF($A$8=Nutrients!$B$79,Nutrients!$EK$79,(IF($A$8=Nutrients!$B$77,Nutrients!$EK$77,Nutrients!$EK$78)))))*F$8))/2000*1000000","v":55.059750000000008},{"$f":"(SUMPRODUCT(G$9:G$229,Nutrients!$EK$8:$EK$228)+(IF($A$7=Nutrients!$B$8,Nutrients!$EK$8,Nutrients!$EK$9)*G$7)+(((IF($A$8=Nutrients!$B$79,Nutrients!$EK$79,(IF($A$8=Nutrients!$B$77,Nutrients!$EK$77,Nutrients!$EK$78)))))*G$8))/2000*1000000","v":55.059750000000008},null,{"$f":"(SUMPRODUCT(I$9:I$229,Nutrients!$EK$8:$EK$228)+(IF($A$7=Nutrients!$B$8,Nutrients!$EK$8,Nutrients!$EK$9)*I$7)+(((IF($A$8=Nutrients!$B$79,Nutrients!$EK$79,(IF($A$8=Nutrients!$B$77,Nutrients!$EK$77,Nutrients!$EK$78)))))*I$8))/2000*1000000","v":110.11950000000002},{"$f":"(SUMPRODUCT(J$9:J$229,Nutrients!$EK$8:$EK$228)+(IF($A$7=Nutrients!$B$8,Nutrients!$EK$8,Nutrients!$EK$9)*J$7)+(((IF($A$8=Nutrients!$B$79,Nutrients!$EK$79,(IF($A$8=Nutrients!$B$77,Nutrients!$EK$77,Nutrients!$EK$78)))))*J$8))/2000*1000000","v":110.11950000000002},{"$f":"(SUMPRODUCT(K$9:K$229,Nutrients!$EK$8:$EK$228)+(IF($A$7=Nutrients!$B$8,Nutrients!$EK$8,Nutrients!$EK$9)*K$7)+(((IF($A$8=Nutrients!$B$79,Nutrients!$EK$79,(IF($A$8=Nutrients!$B$77,Nutrients!$EK$77,Nutrients!$EK$78)))))*K$8))/2000*1000000","v":91.766249999999999},{"$f":"(SUMPRODUCT(L$9:L$229,Nutrients!$EK$8:$EK$228)+(IF($A$7=Nutrients!$B$8,Nutrients!$EK$8,Nutrients!$EK$9)*L$7)+(((IF($A$8=Nutrients!$B$79,Nutrients!$EK$79,(IF($A$8=Nutrients!$B$77,Nutrients!$EK$77,Nutrients!$EK$78)))))*L$8))/2000*1000000","v":73.413000000000011},{"$f":"(SUMPRODUCT(M$9:M$229,Nutrients!$EK$8:$EK$228)+(IF($A$7=Nutrients!$B$8,Nutrients!$EK$8,Nutrients!$EK$9)*M$7)+(((IF($A$8=Nutrients!$B$79,Nutrients!$EK$79,(IF($A$8=Nutrients!$B$77,Nutrients!$EK$77,Nutrients!$EK$78)))))*M$8))/2000*1000000","v":55.059750000000008},{"$f":"(SUMPRODUCT(N$9:N$229,Nutrients!$EK$8:$EK$228)+(IF($A$7=Nutrients!$B$8,Nutrients!$EK$8,Nutrients!$EK$9)*N$7)+(((IF($A$8=Nutrients!$B$79,Nutrients!$EK$79,(IF($A$8=Nutrients!$B$77,Nutrients!$EK$77,Nutrients!$EK$78)))))*N$8))/2000*1000000","v":55.059750000000008},null,{"$f":"(SUMPRODUCT(P$9:P$229,Nutrients!$EK$8:$EK$228)+(IF($A$7=Nutrients!$B$8,Nutrients!$EK$8,Nutrients!$EK$9)*P$7)+(((IF($A$8=Nutrients!$B$79,Nutrients!$EK$79,(IF($A$8=Nutrients!$B$77,Nutrients!$EK$77,Nutrients!$EK$78)))))*P$8))/2000*1000000","v":110.11950000000002},{"$f":"(SUMPRODUCT(Q$9:Q$229,Nutrients!$EK$8:$EK$228)+(IF($A$7=Nutrients!$B$8,Nutrients!$EK$8,Nutrients!$EK$9)*Q$7)+(((IF($A$8=Nutrients!$B$79,Nutrients!$EK$79,(IF($A$8=Nutrients!$B$77,Nutrients!$EK$77,Nutrients!$EK$78)))))*Q$8))/2000*1000000","v":110.11950000000002},{"$f":"(SUMPRODUCT(R$9:R$229,Nutrients!$EK$8:$EK$228)+(IF($A$7=Nutrients!$B$8,Nutrients!$EK$8,Nutrients!$EK$9)*R$7)+(((IF($A$8=Nutrients!$B$79,Nutrients!$EK$79,(IF($A$8=Nutrients!$B$77,Nutrients!$EK$77,Nutrients!$EK$78)))))*R$8))/2000*1000000","v":91.766249999999999},{"$f":"(SUMPRODUCT(S$9:S$229,Nutrients!$EK$8:$EK$228)+(IF($A$7=Nutrients!$B$8,Nutrients!$EK$8,Nutrients!$EK$9)*S$7)+(((IF($A$8=Nutrients!$B$79,Nutrients!$EK$79,(IF($A$8=Nutrients!$B$77,Nutrients!$EK$77,Nutrients!$EK$78)))))*S$8))/2000*1000000","v":73.413000000000011},{"$f":"(SUMPRODUCT(T$9:T$229,Nutrients!$EK$8:$EK$228)+(IF($A$7=Nutrients!$B$8,Nutrients!$EK$8,Nutrients!$EK$9)*T$7)+(((IF($A$8=Nutrients!$B$79,Nutrients!$EK$79,(IF($A$8=Nutrients!$B$77,Nutrients!$EK$77,Nutrients!$EK$78)))))*T$8))/2000*1000000","v":55.059750000000008},{"$f":"(SUMPRODUCT(U$9:U$229,Nutrients!$EK$8:$EK$228)+(IF($A$7=Nutrients!$B$8,Nutrients!$EK$8,Nutrients!$EK$9)*U$7)+(((IF($A$8=Nutrients!$B$79,Nutrients!$EK$79,(IF($A$8=Nutrients!$B$77,Nutrients!$EK$77,Nutrients!$EK$78)))))*U$8))/2000*1000000","v":55.059750000000008},null,{"$f":"(SUMPRODUCT(W$9:W$229,Nutrients!$EK$8:$EK$228)+(IF($A$7=Nutrients!$B$8,Nutrients!$EK$8,Nutrients!$EK$9)*W$7)+(((IF($A$8=Nutrients!$B$79,Nutrients!$EK$79,(IF($A$8=Nutrients!$B$77,Nutrients!$EK$77,Nutrients!$EK$78)))))*W$8))/2000*1000000","v":110.11950000000002},{"$f":"(SUMPRODUCT(X$9:X$229,Nutrients!$EK$8:$EK$228)+(IF($A$7=Nutrients!$B$8,Nutrients!$EK$8,Nutrients!$EK$9)*X$7)+(((IF($A$8=Nutrients!$B$79,Nutrients!$EK$79,(IF($A$8=Nutrients!$B$77,Nutrients!$EK$77,Nutrients!$EK$78)))))*X$8))/2000*1000000","v":110.11950000000002},{"$f":"(SUMPRODUCT(Y$9:Y$229,Nutrients!$EK$8:$EK$228)+(IF($A$7=Nutrients!$B$8,Nutrients!$EK$8,Nutrients!$EK$9)*Y$7)+(((IF($A$8=Nutrients!$B$79,Nutrients!$EK$79,(IF($A$8=Nutrients!$B$77,Nutrients!$EK$77,Nutrients!$EK$78)))))*Y$8))/2000*1000000","v":91.766249999999999},{"$f":"(SUMPRODUCT(Z$9:Z$229,Nutrients!$EK$8:$EK$228)+(IF($A$7=Nutrients!$B$8,Nutrients!$EK$8,Nutrients!$EK$9)*Z$7)+(((IF($A$8=Nutrients!$B$79,Nutrients!$EK$79,(IF($A$8=Nutrients!$B$77,Nutrients!$EK$77,Nutrients!$EK$78)))))*Z$8))/2000*1000000","v":73.413000000000011},{"$f":"(SUMPRODUCT(AA$9:AA$229,Nutrients!$EK$8:$EK$228)+(IF($A$7=Nutrients!$B$8,Nutrients!$EK$8,Nutrients!$EK$9)*AA$7)+(((IF($A$8=Nutrients!$B$79,Nutrients!$EK$79,(IF($A$8=Nutrients!$B$77,Nutrients!$EK$77,Nutrients!$EK$78)))))*AA$8))/2000*1000000","v":55.059750000000008},{"$f":"(SUMPRODUCT(AB$9:AB$229,Nutrients!$EK$8:$EK$228)+(IF($A$7=Nutrients!$B$8,Nutrients!$EK$8,Nutrients!$EK$9)*AB$7)+(((IF($A$8=Nutrients!$B$79,Nutrients!$EK$79,(IF($A$8=Nutrients!$B$77,Nutrients!$EK$77,Nutrients!$EK$78)))))*AB$8))/2000*1000000","v":55.059750000000008},null,{"$f":"(SUMPRODUCT(AD$9:AD$229,Nutrients!$EK$8:$EK$228)+(IF($A$7=Nutrients!$B$8,Nutrients!$EK$8,Nutrients!$EK$9)*AD$7)+(((IF($A$8=Nutrients!$B$79,Nutrients!$EK$79,(IF($A$8=Nutrients!$B$77,Nutrients!$EK$77,Nutrients!$EK$78)))))*AD$8))/2000*1000000","v":110.11950000000002},{"$f":"(SUMPRODUCT(AE$9:AE$229,Nutrients!$EK$8:$EK$228)+(IF($A$7=Nutrients!$B$8,Nutrients!$EK$8,Nutrients!$EK$9)*AE$7)+(((IF($A$8=Nutrients!$B$79,Nutrients!$EK$79,(IF($A$8=Nutrients!$B$77,Nutrients!$EK$77,Nutrients!$EK$78)))))*AE$8))/2000*1000000","v":110.11950000000002},{"$f":"(SUMPRODUCT(AF$9:AF$229,Nutrients!$EK$8:$EK$228)+(IF($A$7=Nutrients!$B$8,Nutrients!$EK$8,Nutrients!$EK$9)*AF$7)+(((IF($A$8=Nutrients!$B$79,Nutrients!$EK$79,(IF($A$8=Nutrients!$B$77,Nutrients!$EK$77,Nutrients!$EK$78)))))*AF$8))/2000*1000000","v":91.766249999999999},{"$f":"(SUMPRODUCT(AG$9:AG$229,Nutrients!$EK$8:$EK$228)+(IF($A$7=Nutrients!$B$8,Nutrients!$EK$8,Nutrients!$EK$9)*AG$7)+(((IF($A$8=Nutrients!$B$79,Nutrients!$EK$79,(IF($A$8=Nutrients!$B$77,Nutrients!$EK$77,Nutrients!$EK$78)))))*AG$8))/2000*1000000","v":73.413000000000011},{"$f":"(SUMPRODUCT(AH$9:AH$229,Nutrients!$EK$8:$EK$228)+(IF($A$7=Nutrients!$B$8,Nutrients!$EK$8,Nutrients!$EK$9)*AH$7)+(((IF($A$8=Nutrients!$B$79,Nutrients!$EK$79,(IF($A$8=Nutrients!$B$77,Nutrients!$EK$77,Nutrients!$EK$78)))))*AH$8))/2000*1000000","v":55.059750000000008},{"$f":"(SUMPRODUCT(AI$9:AI$229,Nutrients!$EK$8:$EK$228)+(IF($A$7=Nutrients!$B$8,Nutrients!$EK$8,Nutrients!$EK$9)*AI$7)+(((IF($A$8=Nutrients!$B$79,Nutrients!$EK$79,(IF($A$8=Nutrients!$B$77,Nutrients!$EK$77,Nutrients!$EK$78)))))*AI$8))/2000*1000000","v":55.059750000000008},null,{"$f":"(SUMPRODUCT(AK$9:AK$229,Nutrients!$EK$8:$EK$228)+(IF($A$7=Nutrients!$B$8,Nutrients!$EK$8,Nutrients!$EK$9)*AK$7)+(((IF($A$8=Nutrients!$B$79,Nutrients!$EK$79,(IF($A$8=Nutrients!$B$77,Nutrients!$EK$77,Nutrients!$EK$78)))))*AK$8))/2000*1000000","v":110.11950000000002},{"$f":"(SUMPRODUCT(AL$9:AL$229,Nutrients!$EK$8:$EK$228)+(IF($A$7=Nutrients!$B$8,Nutrients!$EK$8,Nutrients!$EK$9)*AL$7)+(((IF($A$8=Nutrients!$B$79,Nutrients!$EK$79,(IF($A$8=Nutrients!$B$77,Nutrients!$EK$77,Nutrients!$EK$78)))))*AL$8))/2000*1000000","v":110.11950000000002},{"$f":"(SUMPRODUCT(AM$9:AM$229,Nutrients!$EK$8:$EK$228)+(IF($A$7=Nutrients!$B$8,Nutrients!$EK$8,Nutrients!$EK$9)*AM$7)+(((IF($A$8=Nutrients!$B$79,Nutrients!$EK$79,(IF($A$8=Nutrients!$B$77,Nutrients!$EK$77,Nutrients!$EK$78)))))*AM$8))/2000*1000000","v":91.766249999999999},{"$f":"(SUMPRODUCT(AN$9:AN$229,Nutrients!$EK$8:$EK$228)+(IF($A$7=Nutrients!$B$8,Nutrients!$EK$8,Nutrients!$EK$9)*AN$7)+(((IF($A$8=Nutrients!$B$79,Nutrients!$EK$79,(IF($A$8=Nutrients!$B$77,Nutrients!$EK$77,Nutrients!$EK$78)))))*AN$8))/2000*1000000","v":73.413000000000011},{"$f":"(SUMPRODUCT(AO$9:AO$229,Nutrients!$EK$8:$EK$228)+(IF($A$7=Nutrients!$B$8,Nutrients!$EK$8,Nutrients!$EK$9)*AO$7)+(((IF($A$8=Nutrients!$B$79,Nutrients!$EK$79,(IF($A$8=Nutrients!$B$77,Nutrients!$EK$77,Nutrients!$EK$78)))))*AO$8))/2000*1000000","v":55.059750000000008},{"$f":"(SUMPRODUCT(AP$9:AP$229,Nutrients!$EK$8:$EK$228)+(IF($A$7=Nutrients!$B$8,Nutrients!$EK$8,Nutrients!$EK$9)*AP$7)+(((IF($A$8=Nutrients!$B$79,Nutrients!$EK$79,(IF($A$8=Nutrients!$B$77,Nutrients!$EK$77,Nutrients!$EK$78)))))*AP$8))/2000*1000000","v":55.059750000000008},null,{"$f":"(SUMPRODUCT(AR$9:AR$229,Nutrients!$EK$8:$EK$228)+(IF($A$7=Nutrients!$B$8,Nutrients!$EK$8,Nutrients!$EK$9)*AR$7)+(((IF($A$8=Nutrients!$B$79,Nutrients!$EK$79,(IF($A$8=Nutrients!$B$77,Nutrients!$EK$77,Nutrients!$EK$78)))))*AR$8))/2000*1000000","v":110.11950000000002},{"$f":"(SUMPRODUCT(AS$9:AS$229,Nutrients!$EK$8:$EK$228)+(IF($A$7=Nutrients!$B$8,Nutrients!$EK$8,Nutrients!$EK$9)*AS$7)+(((IF($A$8=Nutrients!$B$79,Nutrients!$EK$79,(IF($A$8=Nutrients!$B$77,Nutrients!$EK$77,Nutrients!$EK$78)))))*AS$8))/2000*1000000","v":110.11950000000002},{"$f":"(SUMPRODUCT(AT$9:AT$229,Nutrients!$EK$8:$EK$228)+(IF($A$7=Nutrients!$B$8,Nutrients!$EK$8,Nutrients!$EK$9)*AT$7)+(((IF($A$8=Nutrients!$B$79,Nutrients!$EK$79,(IF($A$8=Nutrients!$B$77,Nutrients!$EK$77,Nutrients!$EK$78)))))*AT$8))/2000*1000000","v":91.766249999999999},{"$f":"(SUMPRODUCT(AU$9:AU$229,Nutrients!$EK$8:$EK$228)+(IF($A$7=Nutrients!$B$8,Nutrients!$EK$8,Nutrients!$EK$9)*AU$7)+(((IF($A$8=Nutrients!$B$79,Nutrients!$EK$79,(IF($A$8=Nutrients!$B$77,Nutrients!$EK$77,Nutrients!$EK$78)))))*AU$8))/2000*1000000","v":73.413000000000011},{"$f":"(SUMPRODUCT(AV$9:AV$229,Nutrients!$EK$8:$EK$228)+(IF($A$7=Nutrients!$B$8,Nutrients!$EK$8,Nutrients!$EK$9)*AV$7)+(((IF($A$8=Nutrients!$B$79,Nutrients!$EK$79,(IF($A$8=Nutrients!$B$77,Nutrients!$EK$77,Nutrients!$EK$78)))))*AV$8))/2000*1000000","v":55.059750000000008},{"$f":"(SUMPRODUCT(AW$9:AW$229,Nutrients!$EK$8:$EK$228)+(IF($A$7=Nutrients!$B$8,Nutrients!$EK$8,Nutrients!$EK$9)*AW$7)+(((IF($A$8=Nutrients!$B$79,Nutrients!$EK$79,(IF($A$8=Nutrients!$B$77,Nutrients!$EK$77,Nutrients!$EK$78)))))*AW$8))/2000*1000000","v":55.059750000000008}]
["  Iron added, ppm",{"$f":"(SUMPRODUCT(B$9:B$229,Nutrients!$EL$8:$EL$228)+(IF($A$7=Nutrients!$B$8,Nutrients!$EL$8,Nutrients!$EL$9)*B$7)+(((IF($A$8=Nutrients!$B$79,Nutrients!$EL$79,(IF($A$8=Nutrients!$B$77,Nutrients!$EL$77,Nutrients!$EL$78)))))*B$8))/2000*1000000","v":110.11950000000002},{"$f":"(SUMPRODUCT(C$9:C$229,Nutrients!$EL$8:$EL$228)+(IF($A$7=Nutrients!$B$8,Nutrients!$EL$8,Nutrients!$EL$9)*C$7)+(((IF($A$8=Nutrients!$B$79,Nutrients!$EL$79,(IF($A$8=Nutrients!$B$77,Nutrients!$EL$77,Nutrients!$EL$78)))))*C$8))/2000*1000000","v":110.11950000000002},{"$f":"(SUMPRODUCT(D$9:D$229,Nutrients!$EL$8:$EL$228)+(IF($A$7=Nutrients!$B$8,Nutrients!$EL$8,Nutrients!$EL$9)*D$7)+(((IF($A$8=Nutrients!$B$79,Nutrients!$EL$79,(IF($A$8=Nutrients!$B$77,Nutrients!$EL$77,Nutrients!$EL$78)))))*D$8))/2000*1000000","v":91.766249999999999},{"$f":"(SUMPRODUCT(E$9:E$229,Nutrients!$EL$8:$EL$228)+(IF($A$7=Nutrients!$B$8,Nutrients!$EL$8,Nutrients!$EL$9)*E$7)+(((IF($A$8=Nutrients!$B$79,Nutrients!$EL$79,(IF($A$8=Nutrients!$B$77,Nutrients!$EL$77,Nutrients!$EL$78)))))*E$8))/2000*1000000","v":73.413000000000011},{"$f":"(SUMPRODUCT(F$9:F$229,Nutrients!$EL$8:$EL$228)+(IF($A$7=Nutrients!$B$8,Nutrients!$EL$8,Nutrients!$EL$9)*F$7)+(((IF($A$8=Nutrients!$B$79,Nutrients!$EL$79,(IF($A$8=Nutrients!$B$77,Nutrients!$EL$77,Nutrients!$EL$78)))))*F$8))/2000*1000000","v":55.059750000000008},{"$f":"(SUMPRODUCT(G$9:G$229,Nutrients!$EL$8:$EL$228)+(IF($A$7=Nutrients!$B$8,Nutrients!$EL$8,Nutrients!$EL$9)*G$7)+(((IF($A$8=Nutrients!$B$79,Nutrients!$EL$79,(IF($A$8=Nutrients!$B$77,Nutrients!$EL$77,Nutrients!$EL$78)))))*G$8))/2000*1000000","v":55.059750000000008},null,{"$f":"(SUMPRODUCT(I$9:I$229,Nutrients!$EL$8:$EL$228)+(IF($A$7=Nutrients!$B$8,Nutrients!$EL$8,Nutrients!$EL$9)*I$7)+(((IF($A$8=Nutrients!$B$79,Nutrients!$EL$79,(IF($A$8=Nutrients!$B$77,Nutrients!$EL$77,Nutrients!$EL$78)))))*I$8))/2000*1000000","v":110.11950000000002},{"$f":"(SUMPRODUCT(J$9:J$229,Nutrients!$EL$8:$EL$228)+(IF($A$7=Nutrients!$B$8,Nutrients!$EL$8,Nutrients!$EL$9)*J$7)+(((IF($A$8=Nutrients!$B$79,Nutrients!$EL$79,(IF($A$8=Nutrients!$B$77,Nutrients!$EL$77,Nutrients!$EL$78)))))*J$8))/2000*1000000","v":110.11950000000002},{"$f":"(SUMPRODUCT(K$9:K$229,Nutrients!$EL$8:$EL$228)+(IF($A$7=Nutrients!$B$8,Nutrients!$EL$8,Nutrients!$EL$9)*K$7)+(((IF($A$8=Nutrients!$B$79,Nutrients!$EL$79,(IF($A$8=Nutrients!$B$77,Nutrients!$EL$77,Nutrients!$EL$78)))))*K$8))/2000*1000000","v":91.766249999999999},{"$f":"(SUMPRODUCT(L$9:L$229,Nutrients!$EL$8:$EL$228)+(IF($A$7=Nutrients!$B$8,Nutrients!$EL$8,Nutrients!$EL$9)*L$7)+(((IF($A$8=Nutrients!$B$79,Nutrients!$EL$79,(IF($A$8=Nutrients!$B$77,Nutrients!$EL$77,Nutrients!$EL$78)))))*L$8))/2000*1000000","v":73.413000000000011},{"$f":"(SUMPRODUCT(M$9:M$229,Nutrients!$EL$8:$EL$228)+(IF($A$7=Nutrients!$B$8,Nutrients!$EL$8,Nutrients!$EL$9)*M$7)+(((IF($A$8=Nutrients!$B$79,Nutrients!$EL$79,(IF($A$8=Nutrients!$B$77,Nutrients!$EL$77,Nutrients!$EL$78)))))*M$8))/2000*1000000","v":55.059750000000008},{"$f":"(SUMPRODUCT(N$9:N$229,Nutrients!$EL$8:$EL$228)+(IF($A$7=Nutrients!$B$8,Nutrients!$EL$8,Nutrients!$EL$9)*N$7)+(((IF($A$8=Nutrients!$B$79,Nutrients!$EL$79,(IF($A$8=Nutrients!$B$77,Nutrients!$EL$77,Nutrients!$EL$78)))))*N$8))/2000*1000000","v":55.059750000000008},null,{"$f":"(SUMPRODUCT(P$9:P$229,Nutrients!$EL$8:$EL$228)+(IF($A$7=Nutrients!$B$8,Nutrients!$EL$8,Nutrients!$EL$9)*P$7)+(((IF($A$8=Nutrients!$B$79,Nutrients!$EL$79,(IF($A$8=Nutrients!$B$77,Nutrients!$EL$77,Nutrients!$EL$78)))))*P$8))/2000*1000000","v":110.11950000000002},{"$f":"(SUMPRODUCT(Q$9:Q$229,Nutrients!$EL$8:$EL$228)+(IF($A$7=Nutrients!$B$8,Nutrients!$EL$8,Nutrients!$EL$9)*Q$7)+(((IF($A$8=Nutrients!$B$79,Nutrients!$EL$79,(IF($A$8=Nutrients!$B$77,Nutrients!$EL$77,Nutrients!$EL$78)))))*Q$8))/2000*1000000","v":110.11950000000002},{"$f":"(SUMPRODUCT(R$9:R$229,Nutrients!$EL$8:$EL$228)+(IF($A$7=Nutrients!$B$8,Nutrients!$EL$8,Nutrients!$EL$9)*R$7)+(((IF($A$8=Nutrients!$B$79,Nutrients!$EL$79,(IF($A$8=Nutrients!$B$77,Nutrients!$EL$77,Nutrients!$EL$78)))))*R$8))/2000*1000000","v":91.766249999999999},{"$f":"(SUMPRODUCT(S$9:S$229,Nutrients!$EL$8:$EL$228)+(IF($A$7=Nutrients!$B$8,Nutrients!$EL$8,Nutrients!$EL$9)*S$7)+(((IF($A$8=Nutrients!$B$79,Nutrients!$EL$79,(IF($A$8=Nutrients!$B$77,Nutrients!$EL$77,Nutrients!$EL$78)))))*S$8))/2000*1000000","v":73.413000000000011},{"$f":"(SUMPRODUCT(T$9:T$229,Nutrients!$EL$8:$EL$228)+(IF($A$7=Nutrients!$B$8,Nutrients!$EL$8,Nutrients!$EL$9)*T$7)+(((IF($A$8=Nutrients!$B$79,Nutrients!$EL$79,(IF($A$8=Nutrients!$B$77,Nutrients!$EL$77,Nutrients!$EL$78)))))*T$8))/2000*1000000","v":55.059750000000008},{"$f":"(SUMPRODUCT(U$9:U$229,Nutrients!$EL$8:$EL$228)+(IF($A$7=Nutrients!$B$8,Nutrients!$EL$8,Nutrients!$EL$9)*U$7)+(((IF($A$8=Nutrients!$B$79,Nutrients!$EL$79,(IF($A$8=Nutrients!$B$77,Nutrients!$EL$77,Nutrients!$EL$78)))))*U$8))/2000*1000000","v":55.059750000000008},null,{"$f":"(SUMPRODUCT(W$9:W$229,Nutrients!$EL$8:$EL$228)+(IF($A$7=Nutrients!$B$8,Nutrients!$EL$8,Nutrients!$EL$9)*W$7)+(((IF($A$8=Nutrients!$B$79,Nutrients!$EL$79,(IF($A$8=Nutrients!$B$77,Nutrients!$EL$77,Nutrients!$EL$78)))))*W$8))/2000*1000000","v":110.11950000000002},{"$f":"(SUMPRODUCT(X$9:X$229,Nutrients!$EL$8:$EL$228)+(IF($A$7=Nutrients!$B$8,Nutrients!$EL$8,Nutrients!$EL$9)*X$7)+(((IF($A$8=Nutrients!$B$79,Nutrients!$EL$79,(IF($A$8=Nutrients!$B$77,Nutrients!$EL$77,Nutrients!$EL$78)))))*X$8))/2000*1000000","v":110.11950000000002},{"$f":"(SUMPRODUCT(Y$9:Y$229,Nutrients!$EL$8:$EL$228)+(IF($A$7=Nutrients!$B$8,Nutrients!$EL$8,Nutrients!$EL$9)*Y$7)+(((IF($A$8=Nutrients!$B$79,Nutrients!$EL$79,(IF($A$8=Nutrients!$B$77,Nutrients!$EL$77,Nutrients!$EL$78)))))*Y$8))/2000*1000000","v":91.766249999999999},{"$f":"(SUMPRODUCT(Z$9:Z$229,Nutrients!$EL$8:$EL$228)+(IF($A$7=Nutrients!$B$8,Nutrients!$EL$8,Nutrients!$EL$9)*Z$7)+(((IF($A$8=Nutrients!$B$79,Nutrients!$EL$79,(IF($A$8=Nutrients!$B$77,Nutrients!$EL$77,Nutrients!$EL$78)))))*Z$8))/2000*1000000","v":73.413000000000011},{"$f":"(SUMPRODUCT(AA$9:AA$229,Nutrients!$EL$8:$EL$228)+(IF($A$7=Nutrients!$B$8,Nutrients!$EL$8,Nutrients!$EL$9)*AA$7)+(((IF($A$8=Nutrients!$B$79,Nutrients!$EL$79,(IF($A$8=Nutrients!$B$77,Nutrients!$EL$77,Nutrients!$EL$78)))))*AA$8))/2000*1000000","v":55.059750000000008},{"$f":"(SUMPRODUCT(AB$9:AB$229,Nutrients!$EL$8:$EL$228)+(IF($A$7=Nutrients!$B$8,Nutrients!$EL$8,Nutrients!$EL$9)*AB$7)+(((IF($A$8=Nutrients!$B$79,Nutrients!$EL$79,(IF($A$8=Nutrients!$B$77,Nutrients!$EL$77,Nutrients!$EL$78)))))*AB$8))/2000*1000000","v":55.059750000000008},null,{"$f":"(SUMPRODUCT(AD$9:AD$229,Nutrients!$EL$8:$EL$228)+(IF($A$7=Nutrients!$B$8,Nutrients!$EL$8,Nutrients!$EL$9)*AD$7)+(((IF($A$8=Nutrients!$B$79,Nutrients!$EL$79,(IF($A$8=Nutrients!$B$77,Nutrients!$EL$77,Nutrients!$EL$78)))))*AD$8))/2000*1000000","v":110.11950000000002},{"$f":"(SUMPRODUCT(AE$9:AE$229,Nutrients!$EL$8:$EL$228)+(IF($A$7=Nutrients!$B$8,Nutrients!$EL$8,Nutrients!$EL$9)*AE$7)+(((IF($A$8=Nutrients!$B$79,Nutrients!$EL$79,(IF($A$8=Nutrients!$B$77,Nutrients!$EL$77,Nutrients!$EL$78)))))*AE$8))/2000*1000000","v":110.11950000000002},{"$f":"(SUMPRODUCT(AF$9:AF$229,Nutrients!$EL$8:$EL$228)+(IF($A$7=Nutrients!$B$8,Nutrients!$EL$8,Nutrients!$EL$9)*AF$7)+(((IF($A$8=Nutrients!$B$79,Nutrients!$EL$79,(IF($A$8=Nutrients!$B$77,Nutrients!$EL$77,Nutrients!$EL$78)))))*AF$8))/2000*1000000","v":91.766249999999999},{"$f":"(SUMPRODUCT(AG$9:AG$229,Nutrients!$EL$8:$EL$228)+(IF($A$7=Nutrients!$B$8,Nutrients!$EL$8,Nutrients!$EL$9)*AG$7)+(((IF($A$8=Nutrients!$B$79,Nutrients!$EL$79,(IF($A$8=Nutrients!$B$77,Nutrients!$EL$77,Nutrients!$EL$78)))))*AG$8))/2000*1000000","v":73.413000000000011},{"$f":"(SUMPRODUCT(AH$9:AH$229,Nutrients!$EL$8:$EL$228)+(IF($A$7=Nutrients!$B$8,Nutrients!$EL$8,Nutrients!$EL$9)*AH$7)+(((IF($A$8=Nutrients!$B$79,Nutrients!$EL$79,(IF($A$8=Nutrients!$B$77,Nutrients!$EL$77,Nutrients!$EL$78)))))*AH$8))/2000*1000000","v":55.059750000000008},{"$f":"(SUMPRODUCT(AI$9:AI$229,Nutrients!$EL$8:$EL$228)+(IF($A$7=Nutrients!$B$8,Nutrients!$EL$8,Nutrients!$EL$9)*AI$7)+(((IF($A$8=Nutrients!$B$79,Nutrients!$EL$79,(IF($A$8=Nutrients!$B$77,Nutrients!$EL$77,Nutrients!$EL$78)))))*AI$8))/2000*1000000","v":55.059750000000008},null,{"$f":"(SUMPRODUCT(AK$9:AK$229,Nutrients!$EL$8:$EL$228)+(IF($A$7=Nutrients!$B$8,Nutrients!$EL$8,Nutrients!$EL$9)*AK$7)+(((IF($A$8=Nutrients!$B$79,Nutrients!$EL$79,(IF($A$8=Nutrients!$B$77,Nutrients!$EL$77,Nutrients!$EL$78)))))*AK$8))/2000*1000000","v":110.11950000000002},{"$f":"(SUMPRODUCT(AL$9:AL$229,Nutrients!$EL$8:$EL$228)+(IF($A$7=Nutrients!$B$8,Nutrients!$EL$8,Nutrients!$EL$9)*AL$7)+(((IF($A$8=Nutrients!$B$79,Nutrients!$EL$79,(IF($A$8=Nutrients!$B$77,Nutrients!$EL$77,Nutrients!$EL$78)))))*AL$8))/2000*1000000","v":110.11950000000002},{"$f":"(SUMPRODUCT(AM$9:AM$229,Nutrients!$EL$8:$EL$228)+(IF($A$7=Nutrients!$B$8,Nutrients!$EL$8,Nutrients!$EL$9)*AM$7)+(((IF($A$8=Nutrients!$B$79,Nutrients!$EL$79,(IF($A$8=Nutrients!$B$77,Nutrients!$EL$77,Nutrients!$EL$78)))))*AM$8))/2000*1000000","v":91.766249999999999},{"$f":"(SUMPRODUCT(AN$9:AN$229,Nutrients!$EL$8:$EL$228)+(IF($A$7=Nutrients!$B$8,Nutrients!$EL$8,Nutrients!$EL$9)*AN$7)+(((IF($A$8=Nutrients!$B$79,Nutrients!$EL$79,(IF($A$8=Nutrients!$B$77,Nutrients!$EL$77,Nutrients!$EL$78)))))*AN$8))/2000*1000000","v":73.413000000000011},{"$f":"(SUMPRODUCT(AO$9:AO$229,Nutrients!$EL$8:$EL$228)+(IF($A$7=Nutrients!$B$8,Nutrients!$EL$8,Nutrients!$EL$9)*AO$7)+(((IF($A$8=Nutrients!$B$79,Nutrients!$EL$79,(IF($A$8=Nutrients!$B$77,Nutrients!$EL$77,Nutrients!$EL$78)))))*AO$8))/2000*1000000","v":55.059750000000008},{"$f":"(SUMPRODUCT(AP$9:AP$229,Nutrients!$EL$8:$EL$228)+(IF($A$7=Nutrients!$B$8,Nutrients!$EL$8,Nutrients!$EL$9)*AP$7)+(((IF($A$8=Nutrients!$B$79,Nutrients!$EL$79,(IF($A$8=Nutrients!$B$77,Nutrients!$EL$77,Nutrients!$EL$78)))))*AP$8))/2000*1000000","v":55.059750000000008},null,{"$f":"(SUMPRODUCT(AR$9:AR$229,Nutrients!$EL$8:$EL$228)+(IF($A$7=Nutrients!$B$8,Nutrients!$EL$8,Nutrients!$EL$9)*AR$7)+(((IF($A$8=Nutrients!$B$79,Nutrients!$EL$79,(IF($A$8=Nutrients!$B$77,Nutrients!$EL$77,Nutrients!$EL$78)))))*AR$8))/2000*1000000","v":110.11950000000002},{"$f":"(SUMPRODUCT(AS$9:AS$229,Nutrients!$EL$8:$EL$228)+(IF($A$7=Nutrients!$B$8,Nutrients!$EL$8,Nutrients!$EL$9)*AS$7)+(((IF($A$8=Nutrients!$B$79,Nutrients!$EL$79,(IF($A$8=Nutrients!$B$77,Nutrients!$EL$77,Nutrients!$EL$78)))))*AS$8))/2000*1000000","v":110.11950000000002},{"$f":"(SUMPRODUCT(AT$9:AT$229,Nutrients!$EL$8:$EL$228)+(IF($A$7=Nutrients!$B$8,Nutrients!$EL$8,Nutrients!$EL$9)*AT$7)+(((IF($A$8=Nutrients!$B$79,Nutrients!$EL$79,(IF($A$8=Nutrients!$B$77,Nutrients!$EL$77,Nutrients!$EL$78)))))*AT$8))/2000*1000000","v":91.766249999999999},{"$f":"(SUMPRODUCT(AU$9:AU$229,Nutrients!$EL$8:$EL$228)+(IF($A$7=Nutrients!$B$8,Nutrients!$EL$8,Nutrients!$EL$9)*AU$7)+(((IF($A$8=Nutrients!$B$79,Nutrients!$EL$79,(IF($A$8=Nutrients!$B$77,Nutrients!$EL$77,Nutrients!$EL$78)))))*AU$8))/2000*1000000","v":73.413000000000011},{"$f":"(SUMPRODUCT(AV$9:AV$229,Nutrients!$EL$8:$EL$228)+(IF($A$7=Nutrients!$B$8,Nutrients!$EL$8,Nutrients!$EL$9)*AV$7)+(((IF($A$8=Nutrients!$B$79,Nutrients!$EL$79,(IF($A$8=Nutrients!$B$77,Nutrients!$EL$77,Nutrients!$EL$78)))))*AV$8))/2000*1000000","v":55.059750000000008},{"$f":"(SUMPRODUCT(AW$9:AW$229,Nutrients!$EL$8:$EL$228)+(IF($A$7=Nutrients!$B$8,Nutrients!$EL$8,Nutrients!$EL$9)*AW$7)+(((IF($A$8=Nutrients!$B$79,Nutrients!$EL$79,(IF($A$8=Nutrients!$B$77,Nutrients!$EL$77,Nutrients!$EL$78)))))*AW$8))/2000*1000000","v":55.059750000000008}]
["  Manganese added, ppm",{"$f":"(SUMPRODUCT(B$9:B$229,Nutrients!$EM$8:$EM$228)+(IF($A$7=Nutrients!$B$8,Nutrients!$EM$8,Nutrients!$EM$9)*B$7)+(((IF($A$8=Nutrients!$B$79,Nutrients!$EM$79,(IF($A$8=Nutrients!$B$77,Nutrients!$EM$77,Nutrients!$EM$78)))))*B$8))/2000*1000000","v":33.068999999999996},{"$f":"(SUMPRODUCT(C$9:C$229,Nutrients!$EM$8:$EM$228)+(IF($A$7=Nutrients!$B$8,Nutrients!$EM$8,Nutrients!$EM$9)*C$7)+(((IF($A$8=Nutrients!$B$79,Nutrients!$EM$79,(IF($A$8=Nutrients!$B$77,Nutrients!$EM$77,Nutrients!$EM$78)))))*C$8))/2000*1000000","v":33.068999999999996},{"$f":"(SUMPRODUCT(D$9:D$229,Nutrients!$EM$8:$EM$228)+(IF($A$7=Nutrients!$B$8,Nutrients!$EM$8,Nutrients!$EM$9)*D$7)+(((IF($A$8=Nutrients!$B$79,Nutrients!$EM$79,(IF($A$8=Nutrients!$B$77,Nutrients!$EM$77,Nutrients!$EM$78)))))*D$8))/2000*1000000","v":27.557499999999997},{"$f":"(SUMPRODUCT(E$9:E$229,Nutrients!$EM$8:$EM$228)+(IF($A$7=Nutrients!$B$8,Nutrients!$EM$8,Nutrients!$EM$9)*E$7)+(((IF($A$8=Nutrients!$B$79,Nutrients!$EM$79,(IF($A$8=Nutrients!$B$77,Nutrients!$EM$77,Nutrients!$EM$78)))))*E$8))/2000*1000000","v":22.045999999999999},{"$f":"(SUMPRODUCT(F$9:F$229,Nutrients!$EM$8:$EM$228)+(IF($A$7=Nutrients!$B$8,Nutrients!$EM$8,Nutrients!$EM$9)*F$7)+(((IF($A$8=Nutrients!$B$79,Nutrients!$EM$79,(IF($A$8=Nutrients!$B$77,Nutrients!$EM$77,Nutrients!$EM$78)))))*F$8))/2000*1000000","v":16.534499999999998},{"$f":"(SUMPRODUCT(G$9:G$229,Nutrients!$EM$8:$EM$228)+(IF($A$7=Nutrients!$B$8,Nutrients!$EM$8,Nutrients!$EM$9)*G$7)+(((IF($A$8=Nutrients!$B$79,Nutrients!$EM$79,(IF($A$8=Nutrients!$B$77,Nutrients!$EM$77,Nutrients!$EM$78)))))*G$8))/2000*1000000","v":16.534499999999998},null,{"$f":"(SUMPRODUCT(I$9:I$229,Nutrients!$EM$8:$EM$228)+(IF($A$7=Nutrients!$B$8,Nutrients!$EM$8,Nutrients!$EM$9)*I$7)+(((IF($A$8=Nutrients!$B$79,Nutrients!$EM$79,(IF($A$8=Nutrients!$B$77,Nutrients!$EM$77,Nutrients!$EM$78)))))*I$8))/2000*1000000","v":33.068999999999996},{"$f":"(SUMPRODUCT(J$9:J$229,Nutrients!$EM$8:$EM$228)+(IF($A$7=Nutrients!$B$8,Nutrients!$EM$8,Nutrients!$EM$9)*J$7)+(((IF($A$8=Nutrients!$B$79,Nutrients!$EM$79,(IF($A$8=Nutrients!$B$77,Nutrients!$EM$77,Nutrients!$EM$78)))))*J$8))/2000*1000000","v":33.068999999999996},{"$f":"(SUMPRODUCT(K$9:K$229,Nutrients!$EM$8:$EM$228)+(IF($A$7=Nutrients!$B$8,Nutrients!$EM$8,Nutrients!$EM$9)*K$7)+(((IF($A$8=Nutrients!$B$79,Nutrients!$EM$79,(IF($A$8=Nutrients!$B$77,Nutrients!$EM$77,Nutrients!$EM$78)))))*K$8))/2000*1000000","v":27.557499999999997},{"$f":"(SUMPRODUCT(L$9:L$229,Nutrients!$EM$8:$EM$228)+(IF($A$7=Nutrients!$B$8,Nutrients!$EM$8,Nutrients!$EM$9)*L$7)+(((IF($A$8=Nutrients!$B$79,Nutrients!$EM$79,(IF($A$8=Nutrients!$B$77,Nutrients!$EM$77,Nutrients!$EM$78)))))*L$8))/2000*1000000","v":22.045999999999999},{"$f":"(SUMPRODUCT(M$9:M$229,Nutrients!$EM$8:$EM$228)+(IF($A$7=Nutrients!$B$8,Nutrients!$EM$8,Nutrients!$EM$9)*M$7)+(((IF($A$8=Nutrients!$B$79,Nutrients!$EM$79,(IF($A$8=Nutrients!$B$77,Nutrients!$EM$77,Nutrients!$EM$78)))))*M$8))/2000*1000000","v":16.534499999999998},{"$f":"(SUMPRODUCT(N$9:N$229,Nutrients!$EM$8:$EM$228)+(IF($A$7=Nutrients!$B$8,Nutrients!$EM$8,Nutrients!$EM$9)*N$7)+(((IF($A$8=Nutrients!$B$79,Nutrients!$EM$79,(IF($A$8=Nutrients!$B$77,Nutrients!$EM$77,Nutrients!$EM$78)))))*N$8))/2000*1000000","v":16.534499999999998},null,{"$f":"(SUMPRODUCT(P$9:P$229,Nutrients!$EM$8:$EM$228)+(IF($A$7=Nutrients!$B$8,Nutrients!$EM$8,Nutrients!$EM$9)*P$7)+(((IF($A$8=Nutrients!$B$79,Nutrients!$EM$79,(IF($A$8=Nutrients!$B$77,Nutrients!$EM$77,Nutrients!$EM$78)))))*P$8))/2000*1000000","v":33.068999999999996},{"$f":"(SUMPRODUCT(Q$9:Q$229,Nutrients!$EM$8:$EM$228)+(IF($A$7=Nutrients!$B$8,Nutrients!$EM$8,Nutrients!$EM$9)*Q$7)+(((IF($A$8=Nutrients!$B$79,Nutrients!$EM$79,(IF($A$8=Nutrients!$B$77,Nutrients!$EM$77,Nutrients!$EM$78)))))*Q$8))/2000*1000000","v":33.068999999999996},{"$f":"(SUMPRODUCT(R$9:R$229,Nutrients!$EM$8:$EM$228)+(IF($A$7=Nutrients!$B$8,Nutrients!$EM$8,Nutrients!$EM$9)*R$7)+(((IF($A$8=Nutrients!$B$79,Nutrients!$EM$79,(IF($A$8=Nutrients!$B$77,Nutrients!$EM$77,Nutrients!$EM$78)))))*R$8))/2000*1000000","v":27.557499999999997},{"$f":"(SUMPRODUCT(S$9:S$229,Nutrients!$EM$8:$EM$228)+(IF($A$7=Nutrients!$B$8,Nutrients!$EM$8,Nutrients!$EM$9)*S$7)+(((IF($A$8=Nutrients!$B$79,Nutrients!$EM$79,(IF($A$8=Nutrients!$B$77,Nutrients!$EM$77,Nutrients!$EM$78)))))*S$8))/2000*1000000","v":22.045999999999999},{"$f":"(SUMPRODUCT(T$9:T$229,Nutrients!$EM$8:$EM$228)+(IF($A$7=Nutrients!$B$8,Nutrients!$EM$8,Nutrients!$EM$9)*T$7)+(((IF($A$8=Nutrients!$B$79,Nutrients!$EM$79,(IF($A$8=Nutrients!$B$77,Nutrients!$EM$77,Nutrients!$EM$78)))))*T$8))/2000*1000000","v":16.534499999999998},{"$f":"(SUMPRODUCT(U$9:U$229,Nutrients!$EM$8:$EM$228)+(IF($A$7=Nutrients!$B$8,Nutrients!$EM$8,Nutrients!$EM$9)*U$7)+(((IF($A$8=Nutrients!$B$79,Nutrients!$EM$79,(IF($A$8=Nutrients!$B$77,Nutrients!$EM$77,Nutrients!$EM$78)))))*U$8))/2000*1000000","v":16.534499999999998},null,{"$f":"(SUMPRODUCT(W$9:W$229,Nutrients!$EM$8:$EM$228)+(IF($A$7=Nutrients!$B$8,Nutrients!$EM$8,Nutrients!$EM$9)*W$7)+(((IF($A$8=Nutrients!$B$79,Nutrients!$EM$79,(IF($A$8=Nutrients!$B$77,Nutrients!$EM$77,Nutrients!$EM$78)))))*W$8))/2000*1000000","v":33.068999999999996},{"$f":"(SUMPRODUCT(X$9:X$229,Nutrients!$EM$8:$EM$228)+(IF($A$7=Nutrients!$B$8,Nutrients!$EM$8,Nutrients!$EM$9)*X$7)+(((IF($A$8=Nutrients!$B$79,Nutrients!$EM$79,(IF($A$8=Nutrients!$B$77,Nutrients!$EM$77,Nutrients!$EM$78)))))*X$8))/2000*1000000","v":33.068999999999996},{"$f":"(SUMPRODUCT(Y$9:Y$229,Nutrients!$EM$8:$EM$228)+(IF($A$7=Nutrients!$B$8,Nutrients!$EM$8,Nutrients!$EM$9)*Y$7)+(((IF($A$8=Nutrients!$B$79,Nutrients!$EM$79,(IF($A$8=Nutrients!$B$77,Nutrients!$EM$77,Nutrients!$EM$78)))))*Y$8))/2000*1000000","v":27.557499999999997},{"$f":"(SUMPRODUCT(Z$9:Z$229,Nutrients!$EM$8:$EM$228)+(IF($A$7=Nutrients!$B$8,Nutrients!$EM$8,Nutrients!$EM$9)*Z$7)+(((IF($A$8=Nutrients!$B$79,Nutrients!$EM$79,(IF($A$8=Nutrients!$B$77,Nutrients!$EM$77,Nutrients!$EM$78)))))*Z$8))/2000*1000000","v":22.045999999999999},{"$f":"(SUMPRODUCT(AA$9:AA$229,Nutrients!$EM$8:$EM$228)+(IF($A$7=Nutrients!$B$8,Nutrients!$EM$8,Nutrients!$EM$9)*AA$7)+(((IF($A$8=Nutrients!$B$79,Nutrients!$EM$79,(IF($A$8=Nutrients!$B$77,Nutrients!$EM$77,Nutrients!$EM$78)))))*AA$8))/2000*1000000","v":16.534499999999998},{"$f":"(SUMPRODUCT(AB$9:AB$229,Nutrients!$EM$8:$EM$228)+(IF($A$7=Nutrients!$B$8,Nutrients!$EM$8,Nutrients!$EM$9)*AB$7)+(((IF($A$8=Nutrients!$B$79,Nutrients!$EM$79,(IF($A$8=Nutrients!$B$77,Nutrients!$EM$77,Nutrients!$EM$78)))))*AB$8))/2000*1000000","v":16.534499999999998},null,{"$f":"(SUMPRODUCT(AD$9:AD$229,Nutrients!$EM$8:$EM$228)+(IF($A$7=Nutrients!$B$8,Nutrients!$EM$8,Nutrients!$EM$9)*AD$7)+(((IF($A$8=Nutrients!$B$79,Nutrients!$EM$79,(IF($A$8=Nutrients!$B$77,Nutrients!$EM$77,Nutrients!$EM$78)))))*AD$8))/2000*1000000","v":33.068999999999996},{"$f":"(SUMPRODUCT(AE$9:AE$229,Nutrients!$EM$8:$EM$228)+(IF($A$7=Nutrients!$B$8,Nutrients!$EM$8,Nutrients!$EM$9)*AE$7)+(((IF($A$8=Nutrients!$B$79,Nutrients!$EM$79,(IF($A$8=Nutrients!$B$77,Nutrients!$EM$77,Nutrients!$EM$78)))))*AE$8))/2000*1000000","v":33.068999999999996},{"$f":"(SUMPRODUCT(AF$9:AF$229,Nutrients!$EM$8:$EM$228)+(IF($A$7=Nutrients!$B$8,Nutrients!$EM$8,Nutrients!$EM$9)*AF$7)+(((IF($A$8=Nutrients!$B$79,Nutrients!$EM$79,(IF($A$8=Nutrients!$B$77,Nutrients!$EM$77,Nutrients!$EM$78)))))*AF$8))/2000*1000000","v":27.557499999999997},{"$f":"(SUMPRODUCT(AG$9:AG$229,Nutrients!$EM$8:$EM$228)+(IF($A$7=Nutrients!$B$8,Nutrients!$EM$8,Nutrients!$EM$9)*AG$7)+(((IF($A$8=Nutrients!$B$79,Nutrients!$EM$79,(IF($A$8=Nutrients!$B$77,Nutrients!$EM$77,Nutrients!$EM$78)))))*AG$8))/2000*1000000","v":22.045999999999999},{"$f":"(SUMPRODUCT(AH$9:AH$229,Nutrients!$EM$8:$EM$228)+(IF($A$7=Nutrients!$B$8,Nutrients!$EM$8,Nutrients!$EM$9)*AH$7)+(((IF($A$8=Nutrients!$B$79,Nutrients!$EM$79,(IF($A$8=Nutrients!$B$77,Nutrients!$EM$77,Nutrients!$EM$78)))))*AH$8))/2000*1000000","v":16.534499999999998},{"$f":"(SUMPRODUCT(AI$9:AI$229,Nutrients!$EM$8:$EM$228)+(IF($A$7=Nutrients!$B$8,Nutrients!$EM$8,Nutrients!$EM$9)*AI$7)+(((IF($A$8=Nutrients!$B$79,Nutrients!$EM$79,(IF($A$8=Nutrients!$B$77,Nutrients!$EM$77,Nutrients!$EM$78)))))*AI$8))/2000*1000000","v":16.534499999999998},null,{"$f":"(SUMPRODUCT(AK$9:AK$229,Nutrients!$EM$8:$EM$228)+(IF($A$7=Nutrients!$B$8,Nutrients!$EM$8,Nutrients!$EM$9)*AK$7)+(((IF($A$8=Nutrients!$B$79,Nutrients!$EM$79,(IF($A$8=Nutrients!$B$77,Nutrients!$EM$77,Nutrients!$EM$78)))))*AK$8))/2000*1000000","v":33.068999999999996},{"$f":"(SUMPRODUCT(AL$9:AL$229,Nutrients!$EM$8:$EM$228)+(IF($A$7=Nutrients!$B$8,Nutrients!$EM$8,Nutrients!$EM$9)*AL$7)+(((IF($A$8=Nutrients!$B$79,Nutrients!$EM$79,(IF($A$8=Nutrients!$B$77,Nutrients!$EM$77,Nutrients!$EM$78)))))*AL$8))/2000*1000000","v":33.068999999999996},{"$f":"(SUMPRODUCT(AM$9:AM$229,Nutrients!$EM$8:$EM$228)+(IF($A$7=Nutrients!$B$8,Nutrients!$EM$8,Nutrients!$EM$9)*AM$7)+(((IF($A$8=Nutrients!$B$79,Nutrients!$EM$79,(IF($A$8=Nutrients!$B$77,Nutrients!$EM$77,Nutrients!$EM$78)))))*AM$8))/2000*1000000","v":27.557499999999997},{"$f":"(SUMPRODUCT(AN$9:AN$229,Nutrients!$EM$8:$EM$228)+(IF($A$7=Nutrients!$B$8,Nutrients!$EM$8,Nutrients!$EM$9)*AN$7)+(((IF($A$8=Nutrients!$B$79,Nutrients!$EM$79,(IF($A$8=Nutrients!$B$77,Nutrients!$EM$77,Nutrients!$EM$78)))))*AN$8))/2000*1000000","v":22.045999999999999},{"$f":"(SUMPRODUCT(AO$9:AO$229,Nutrients!$EM$8:$EM$228)+(IF($A$7=Nutrients!$B$8,Nutrients!$EM$8,Nutrients!$EM$9)*AO$7)+(((IF($A$8=Nutrients!$B$79,Nutrients!$EM$79,(IF($A$8=Nutrients!$B$77,Nutrients!$EM$77,Nutrients!$EM$78)))))*AO$8))/2000*1000000","v":16.534499999999998},{"$f":"(SUMPRODUCT(AP$9:AP$229,Nutrients!$EM$8:$EM$228)+(IF($A$7=Nutrients!$B$8,Nutrients!$EM$8,Nutrients!$EM$9)*AP$7)+(((IF($A$8=Nutrients!$B$79,Nutrients!$EM$79,(IF($A$8=Nutrients!$B$77,Nutrients!$EM$77,Nutrients!$EM$78)))))*AP$8))/2000*1000000","v":16.534499999999998},null,{"$f":"(SUMPRODUCT(AR$9:AR$229,Nutrients!$EM$8:$EM$228)+(IF($A$7=Nutrients!$B$8,Nutrients!$EM$8,Nutrients!$EM$9)*AR$7)+(((IF($A$8=Nutrients!$B$79,Nutrients!$EM$79,(IF($A$8=Nutrients!$B$77,Nutrients!$EM$77,Nutrients!$EM$78)))))*AR$8))/2000*1000000","v":33.068999999999996},{"$f":"(SUMPRODUCT(AS$9:AS$229,Nutrients!$EM$8:$EM$228)+(IF($A$7=Nutrients!$B$8,Nutrients!$EM$8,Nutrients!$EM$9)*AS$7)+(((IF($A$8=Nutrients!$B$79,Nutrients!$EM$79,(IF($A$8=Nutrients!$B$77,Nutrients!$EM$77,Nutrients!$EM$78)))))*AS$8))/2000*1000000","v":33.068999999999996},{"$f":"(SUMPRODUCT(AT$9:AT$229,Nutrients!$EM$8:$EM$228)+(IF($A$7=Nutrients!$B$8,Nutrients!$EM$8,Nutrients!$EM$9)*AT$7)+(((IF($A$8=Nutrients!$B$79,Nutrients!$EM$79,(IF($A$8=Nutrients!$B$77,Nutrients!$EM$77,Nutrients!$EM$78)))))*AT$8))/2000*1000000","v":27.557499999999997},{"$f":"(SUMPRODUCT(AU$9:AU$229,Nutrients!$EM$8:$EM$228)+(IF($A$7=Nutrients!$B$8,Nutrients!$EM$8,Nutrients!$EM$9)*AU$7)+(((IF($A$8=Nutrients!$B$79,Nutrients!$EM$79,(IF($A$8=Nutrients!$B$77,Nutrients!$EM$77,Nutrients!$EM$78)))))*AU$8))/2000*1000000","v":22.045999999999999},{"$f":"(SUMPRODUCT(AV$9:AV$229,Nutrients!$EM$8:$EM$228)+(IF($A$7=Nutrients!$B$8,Nutrients!$EM$8,Nutrients!$EM$9)*AV$7)+(((IF($A$8=Nutrients!$B$79,Nutrients!$EM$79,(IF($A$8=Nutrients!$B$77,Nutrients!$EM$77,Nutrients!$EM$78)))))*AV$8))/2000*1000000","v":16.534499999999998},{"$f":"(SUMPRODUCT(AW$9:AW$229,Nutrients!$EM$8:$EM$228)+(IF($A$7=Nutrients!$B$8,Nutrients!$EM$8,Nutrients!$EM$9)*AW$7)+(((IF($A$8=Nutrients!$B$79,Nutrients!$EM$79,(IF($A$8=Nutrients!$B$77,Nutrients!$EM$77,Nutrients!$EM$78)))))*AW$8))/2000*1000000","v":16.534499999999998}]
["  Copper added, ppm",{"$f":"(SUMPRODUCT(B$9:B$229,Nutrients!$EN$8:$EN$228)+(IF($A$7=Nutrients!$B$8,Nutrients!$EN$8,Nutrients!$EN$9)*B$7)+(((IF($A$8=Nutrients!$B$79,Nutrients!$EN$79,(IF($A$8=Nutrients!$B$77,Nutrients!$EN$77,Nutrients!$EN$78)))))*B$8))/2000*1000000","v":16.5},{"$f":"(SUMPRODUCT(C$9:C$229,Nutrients!$EN$8:$EN$228)+(IF($A$7=Nutrients!$B$8,Nutrients!$EN$8,Nutrients!$EN$9)*C$7)+(((IF($A$8=Nutrients!$B$79,Nutrients!$EN$79,(IF($A$8=Nutrients!$B$77,Nutrients!$EN$77,Nutrients!$EN$78)))))*C$8))/2000*1000000","v":16.5},{"$f":"(SUMPRODUCT(D$9:D$229,Nutrients!$EN$8:$EN$228)+(IF($A$7=Nutrients!$B$8,Nutrients!$EN$8,Nutrients!$EN$9)*D$7)+(((IF($A$8=Nutrients!$B$79,Nutrients!$EN$79,(IF($A$8=Nutrients!$B$77,Nutrients!$EN$77,Nutrients!$EN$78)))))*D$8))/2000*1000000","v":13.749999999999998},{"$f":"(SUMPRODUCT(E$9:E$229,Nutrients!$EN$8:$EN$228)+(IF($A$7=Nutrients!$B$8,Nutrients!$EN$8,Nutrients!$EN$9)*E$7)+(((IF($A$8=Nutrients!$B$79,Nutrients!$EN$79,(IF($A$8=Nutrients!$B$77,Nutrients!$EN$77,Nutrients!$EN$78)))))*E$8))/2000*1000000","v":11},{"$f":"(SUMPRODUCT(F$9:F$229,Nutrients!$EN$8:$EN$228)+(IF($A$7=Nutrients!$B$8,Nutrients!$EN$8,Nutrients!$EN$9)*F$7)+(((IF($A$8=Nutrients!$B$79,Nutrients!$EN$79,(IF($A$8=Nutrients!$B$77,Nutrients!$EN$77,Nutrients!$EN$78)))))*F$8))/2000*1000000","v":8.25},{"$f":"(SUMPRODUCT(G$9:G$229,Nutrients!$EN$8:$EN$228)+(IF($A$7=Nutrients!$B$8,Nutrients!$EN$8,Nutrients!$EN$9)*G$7)+(((IF($A$8=Nutrients!$B$79,Nutrients!$EN$79,(IF($A$8=Nutrients!$B$77,Nutrients!$EN$77,Nutrients!$EN$78)))))*G$8))/2000*1000000","v":8.25},null,{"$f":"(SUMPRODUCT(I$9:I$229,Nutrients!$EN$8:$EN$228)+(IF($A$7=Nutrients!$B$8,Nutrients!$EN$8,Nutrients!$EN$9)*I$7)+(((IF($A$8=Nutrients!$B$79,Nutrients!$EN$79,(IF($A$8=Nutrients!$B$77,Nutrients!$EN$77,Nutrients!$EN$78)))))*I$8))/2000*1000000","v":16.5},{"$f":"(SUMPRODUCT(J$9:J$229,Nutrients!$EN$8:$EN$228)+(IF($A$7=Nutrients!$B$8,Nutrients!$EN$8,Nutrients!$EN$9)*J$7)+(((IF($A$8=Nutrients!$B$79,Nutrients!$EN$79,(IF($A$8=Nutrients!$B$77,Nutrients!$EN$77,Nutrients!$EN$78)))))*J$8))/2000*1000000","v":16.5},{"$f":"(SUMPRODUCT(K$9:K$229,Nutrients!$EN$8:$EN$228)+(IF($A$7=Nutrients!$B$8,Nutrients!$EN$8,Nutrients!$EN$9)*K$7)+(((IF($A$8=Nutrients!$B$79,Nutrients!$EN$79,(IF($A$8=Nutrients!$B$77,Nutrients!$EN$77,Nutrients!$EN$78)))))*K$8))/2000*1000000","v":13.749999999999998},{"$f":"(SUMPRODUCT(L$9:L$229,Nutrients!$EN$8:$EN$228)+(IF($A$7=Nutrients!$B$8,Nutrients!$EN$8,Nutrients!$EN$9)*L$7)+(((IF($A$8=Nutrients!$B$79,Nutrients!$EN$79,(IF($A$8=Nutrients!$B$77,Nutrients!$EN$77,Nutrients!$EN$78)))))*L$8))/2000*1000000","v":11},{"$f":"(SUMPRODUCT(M$9:M$229,Nutrients!$EN$8:$EN$228)+(IF($A$7=Nutrients!$B$8,Nutrients!$EN$8,Nutrients!$EN$9)*M$7)+(((IF($A$8=Nutrients!$B$79,Nutrients!$EN$79,(IF($A$8=Nutrients!$B$77,Nutrients!$EN$77,Nutrients!$EN$78)))))*M$8))/2000*1000000","v":8.25},{"$f":"(SUMPRODUCT(N$9:N$229,Nutrients!$EN$8:$EN$228)+(IF($A$7=Nutrients!$B$8,Nutrients!$EN$8,Nutrients!$EN$9)*N$7)+(((IF($A$8=Nutrients!$B$79,Nutrients!$EN$79,(IF($A$8=Nutrients!$B$77,Nutrients!$EN$77,Nutrients!$EN$78)))))*N$8))/2000*1000000","v":8.25},null,{"$f":"(SUMPRODUCT(P$9:P$229,Nutrients!$EN$8:$EN$228)+(IF($A$7=Nutrients!$B$8,Nutrients!$EN$8,Nutrients!$EN$9)*P$7)+(((IF($A$8=Nutrients!$B$79,Nutrients!$EN$79,(IF($A$8=Nutrients!$B$77,Nutrients!$EN$77,Nutrients!$EN$78)))))*P$8))/2000*1000000","v":16.5},{"$f":"(SUMPRODUCT(Q$9:Q$229,Nutrients!$EN$8:$EN$228)+(IF($A$7=Nutrients!$B$8,Nutrients!$EN$8,Nutrients!$EN$9)*Q$7)+(((IF($A$8=Nutrients!$B$79,Nutrients!$EN$79,(IF($A$8=Nutrients!$B$77,Nutrients!$EN$77,Nutrients!$EN$78)))))*Q$8))/2000*1000000","v":16.5},{"$f":"(SUMPRODUCT(R$9:R$229,Nutrients!$EN$8:$EN$228)+(IF($A$7=Nutrients!$B$8,Nutrients!$EN$8,Nutrients!$EN$9)*R$7)+(((IF($A$8=Nutrients!$B$79,Nutrients!$EN$79,(IF($A$8=Nutrients!$B$77,Nutrients!$EN$77,Nutrients!$EN$78)))))*R$8))/2000*1000000","v":13.749999999999998},{"$f":"(SUMPRODUCT(S$9:S$229,Nutrients!$EN$8:$EN$228)+(IF($A$7=Nutrients!$B$8,Nutrients!$EN$8,Nutrients!$EN$9)*S$7)+(((IF($A$8=Nutrients!$B$79,Nutrients!$EN$79,(IF($A$8=Nutrients!$B$77,Nutrients!$EN$77,Nutrients!$EN$78)))))*S$8))/2000*1000000","v":11},{"$f":"(SUMPRODUCT(T$9:T$229,Nutrients!$EN$8:$EN$228)+(IF($A$7=Nutrients!$B$8,Nutrients!$EN$8,Nutrients!$EN$9)*T$7)+(((IF($A$8=Nutrients!$B$79,Nutrients!$EN$79,(IF($A$8=Nutrients!$B$77,Nutrients!$EN$77,Nutrients!$EN$78)))))*T$8))/2000*1000000","v":8.25},{"$f":"(SUMPRODUCT(U$9:U$229,Nutrients!$EN$8:$EN$228)+(IF($A$7=Nutrients!$B$8,Nutrients!$EN$8,Nutrients!$EN$9)*U$7)+(((IF($A$8=Nutrients!$B$79,Nutrients!$EN$79,(IF($A$8=Nutrients!$B$77,Nutrients!$EN$77,Nutrients!$EN$78)))))*U$8))/2000*1000000","v":8.25},null,{"$f":"(SUMPRODUCT(W$9:W$229,Nutrients!$EN$8:$EN$228)+(IF($A$7=Nutrients!$B$8,Nutrients!$EN$8,Nutrients!$EN$9)*W$7)+(((IF($A$8=Nutrients!$B$79,Nutrients!$EN$79,(IF($A$8=Nutrients!$B$77,Nutrients!$EN$77,Nutrients!$EN$78)))))*W$8))/2000*1000000","v":16.5},{"$f":"(SUMPRODUCT(X$9:X$229,Nutrients!$EN$8:$EN$228)+(IF($A$7=Nutrients!$B$8,Nutrients!$EN$8,Nutrients!$EN$9)*X$7)+(((IF($A$8=Nutrients!$B$79,Nutrients!$EN$79,(IF($A$8=Nutrients!$B$77,Nutrients!$EN$77,Nutrients!$EN$78)))))*X$8))/2000*1000000","v":16.5},{"$f":"(SUMPRODUCT(Y$9:Y$229,Nutrients!$EN$8:$EN$228)+(IF($A$7=Nutrients!$B$8,Nutrients!$EN$8,Nutrients!$EN$9)*Y$7)+(((IF($A$8=Nutrients!$B$79,Nutrients!$EN$79,(IF($A$8=Nutrients!$B$77,Nutrients!$EN$77,Nutrients!$EN$78)))))*Y$8))/2000*1000000","v":13.749999999999998},{"$f":"(SUMPRODUCT(Z$9:Z$229,Nutrients!$EN$8:$EN$228)+(IF($A$7=Nutrients!$B$8,Nutrients!$EN$8,Nutrients!$EN$9)*Z$7)+(((IF($A$8=Nutrients!$B$79,Nutrients!$EN$79,(IF($A$8=Nutrients!$B$77,Nutrients!$EN$77,Nutrients!$EN$78)))))*Z$8))/2000*1000000","v":11},{"$f":"(SUMPRODUCT(AA$9:AA$229,Nutrients!$EN$8:$EN$228)+(IF($A$7=Nutrients!$B$8,Nutrients!$EN$8,Nutrients!$EN$9)*AA$7)+(((IF($A$8=Nutrients!$B$79,Nutrients!$EN$79,(IF($A$8=Nutrients!$B$77,Nutrients!$EN$77,Nutrients!$EN$78)))))*AA$8))/2000*1000000","v":8.25},{"$f":"(SUMPRODUCT(AB$9:AB$229,Nutrients!$EN$8:$EN$228)+(IF($A$7=Nutrients!$B$8,Nutrients!$EN$8,Nutrients!$EN$9)*AB$7)+(((IF($A$8=Nutrients!$B$79,Nutrients!$EN$79,(IF($A$8=Nutrients!$B$77,Nutrients!$EN$77,Nutrients!$EN$78)))))*AB$8))/2000*1000000","v":8.25},null,{"$f":"(SUMPRODUCT(AD$9:AD$229,Nutrients!$EN$8:$EN$228)+(IF($A$7=Nutrients!$B$8,Nutrients!$EN$8,Nutrients!$EN$9)*AD$7)+(((IF($A$8=Nutrients!$B$79,Nutrients!$EN$79,(IF($A$8=Nutrients!$B$77,Nutrients!$EN$77,Nutrients!$EN$78)))))*AD$8))/2000*1000000","v":16.5},{"$f":"(SUMPRODUCT(AE$9:AE$229,Nutrients!$EN$8:$EN$228)+(IF($A$7=Nutrients!$B$8,Nutrients!$EN$8,Nutrients!$EN$9)*AE$7)+(((IF($A$8=Nutrients!$B$79,Nutrients!$EN$79,(IF($A$8=Nutrients!$B$77,Nutrients!$EN$77,Nutrients!$EN$78)))))*AE$8))/2000*1000000","v":16.5},{"$f":"(SUMPRODUCT(AF$9:AF$229,Nutrients!$EN$8:$EN$228)+(IF($A$7=Nutrients!$B$8,Nutrients!$EN$8,Nutrients!$EN$9)*AF$7)+(((IF($A$8=Nutrients!$B$79,Nutrients!$EN$79,(IF($A$8=Nutrients!$B$77,Nutrients!$EN$77,Nutrients!$EN$78)))))*AF$8))/2000*1000000","v":13.749999999999998},{"$f":"(SUMPRODUCT(AG$9:AG$229,Nutrients!$EN$8:$EN$228)+(IF($A$7=Nutrients!$B$8,Nutrients!$EN$8,Nutrients!$EN$9)*AG$7)+(((IF($A$8=Nutrients!$B$79,Nutrients!$EN$79,(IF($A$8=Nutrients!$B$77,Nutrients!$EN$77,Nutrients!$EN$78)))))*AG$8))/2000*1000000","v":11},{"$f":"(SUMPRODUCT(AH$9:AH$229,Nutrients!$EN$8:$EN$228)+(IF($A$7=Nutrients!$B$8,Nutrients!$EN$8,Nutrients!$EN$9)*AH$7)+(((IF($A$8=Nutrients!$B$79,Nutrients!$EN$79,(IF($A$8=Nutrients!$B$77,Nutrients!$EN$77,Nutrients!$EN$78)))))*AH$8))/2000*1000000","v":8.25},{"$f":"(SUMPRODUCT(AI$9:AI$229,Nutrients!$EN$8:$EN$228)+(IF($A$7=Nutrients!$B$8,Nutrients!$EN$8,Nutrients!$EN$9)*AI$7)+(((IF($A$8=Nutrients!$B$79,Nutrients!$EN$79,(IF($A$8=Nutrients!$B$77,Nutrients!$EN$77,Nutrients!$EN$78)))))*AI$8))/2000*1000000","v":8.25},null,{"$f":"(SUMPRODUCT(AK$9:AK$229,Nutrients!$EN$8:$EN$228)+(IF($A$7=Nutrients!$B$8,Nutrients!$EN$8,Nutrients!$EN$9)*AK$7)+(((IF($A$8=Nutrients!$B$79,Nutrients!$EN$79,(IF($A$8=Nutrients!$B$77,Nutrients!$EN$77,Nutrients!$EN$78)))))*AK$8))/2000*1000000","v":16.5},{"$f":"(SUMPRODUCT(AL$9:AL$229,Nutrients!$EN$8:$EN$228)+(IF($A$7=Nutrients!$B$8,Nutrients!$EN$8,Nutrients!$EN$9)*AL$7)+(((IF($A$8=Nutrients!$B$79,Nutrients!$EN$79,(IF($A$8=Nutrients!$B$77,Nutrients!$EN$77,Nutrients!$EN$78)))))*AL$8))/2000*1000000","v":16.5},{"$f":"(SUMPRODUCT(AM$9:AM$229,Nutrients!$EN$8:$EN$228)+(IF($A$7=Nutrients!$B$8,Nutrients!$EN$8,Nutrients!$EN$9)*AM$7)+(((IF($A$8=Nutrients!$B$79,Nutrients!$EN$79,(IF($A$8=Nutrients!$B$77,Nutrients!$EN$77,Nutrients!$EN$78)))))*AM$8))/2000*1000000","v":13.749999999999998},{"$f":"(SUMPRODUCT(AN$9:AN$229,Nutrients!$EN$8:$EN$228)+(IF($A$7=Nutrients!$B$8,Nutrients!$EN$8,Nutrients!$EN$9)*AN$7)+(((IF($A$8=Nutrients!$B$79,Nutrients!$EN$79,(IF($A$8=Nutrients!$B$77,Nutrients!$EN$77,Nutrients!$EN$78)))))*AN$8))/2000*1000000","v":11},{"$f":"(SUMPRODUCT(AO$9:AO$229,Nutrients!$EN$8:$EN$228)+(IF($A$7=Nutrients!$B$8,Nutrients!$EN$8,Nutrients!$EN$9)*AO$7)+(((IF($A$8=Nutrients!$B$79,Nutrients!$EN$79,(IF($A$8=Nutrients!$B$77,Nutrients!$EN$77,Nutrients!$EN$78)))))*AO$8))/2000*1000000","v":8.25},{"$f":"(SUMPRODUCT(AP$9:AP$229,Nutrients!$EN$8:$EN$228)+(IF($A$7=Nutrients!$B$8,Nutrients!$EN$8,Nutrients!$EN$9)*AP$7)+(((IF($A$8=Nutrients!$B$79,Nutrients!$EN$79,(IF($A$8=Nutrients!$B$77,Nutrients!$EN$77,Nutrients!$EN$78)))))*AP$8))/2000*1000000","v":8.25},null,{"$f":"(SUMPRODUCT(AR$9:AR$229,Nutrients!$EN$8:$EN$228)+(IF($A$7=Nutrients!$B$8,Nutrients!$EN$8,Nutrients!$EN$9)*AR$7)+(((IF($A$8=Nutrients!$B$79,Nutrients!$EN$79,(IF($A$8=Nutrients!$B$77,Nutrients!$EN$77,Nutrients!$EN$78)))))*AR$8))/2000*1000000","v":16.5},{"$f":"(SUMPRODUCT(AS$9:AS$229,Nutrients!$EN$8:$EN$228)+(IF($A$7=Nutrients!$B$8,Nutrients!$EN$8,Nutrients!$EN$9)*AS$7)+(((IF($A$8=Nutrients!$B$79,Nutrients!$EN$79,(IF($A$8=Nutrients!$B$77,Nutrients!$EN$77,Nutrients!$EN$78)))))*AS$8))/2000*1000000","v":16.5},{"$f":"(SUMPRODUCT(AT$9:AT$229,Nutrients!$EN$8:$EN$228)+(IF($A$7=Nutrients!$B$8,Nutrients!$EN$8,Nutrients!$EN$9)*AT$7)+(((IF($A$8=Nutrients!$B$79,Nutrients!$EN$79,(IF($A$8=Nutrients!$B$77,Nutrients!$EN$77,Nutrients!$EN$78)))))*AT$8))/2000*1000000","v":13.749999999999998},{"$f":"(SUMPRODUCT(AU$9:AU$229,Nutrients!$EN$8:$EN$228)+(IF($A$7=Nutrients!$B$8,Nutrients!$EN$8,Nutrients!$EN$9)*AU$7)+(((IF($A$8=Nutrients!$B$79,Nutrients!$EN$79,(IF($A$8=Nutrients!$B$77,Nutrients!$EN$77,Nutrients!$EN$78)))))*AU$8))/2000*1000000","v":11},{"$f":"(SUMPRODUCT(AV$9:AV$229,Nutrients!$EN$8:$EN$228)+(IF($A$7=Nutrients!$B$8,Nutrients!$EN$8,Nutrients!$EN$9)*AV$7)+(((IF($A$8=Nutrients!$B$79,Nutrients!$EN$79,(IF($A$8=Nutrients!$B$77,Nutrients!$EN$77,Nutrients!$EN$78)))))*AV$8))/2000*1000000","v":8.25},{"$f":"(SUMPRODUCT(AW$9:AW$229,Nutrients!$EN$8:$EN$228)+(IF($A$7=Nutrients!$B$8,Nutrients!$EN$8,Nutrients!$EN$9)*AW$7)+(((IF($A$8=Nutrients!$B$79,Nutrients!$EN$79,(IF($A$8=Nutrients!$B$77,Nutrients!$EN$77,Nutrients!$EN$78)))))*AW$8))/2000*1000000","v":8.25}]
["  Iodine added, ppm",{"$f":"(SUMPRODUCT(B$9:B$229,Nutrients!$EO$8:$EO$228)+(IF($A$7=Nutrients!$B$8,Nutrients!$EO$8,Nutrients!$EO$9)*B$7)+(((IF($A$8=Nutrients!$B$79,Nutrients!$EO$79,(IF($A$8=Nutrients!$B$77,Nutrients!$EO$77,Nutrients!$EO$78)))))*B$8))/2000*1000000","v":0.29699999999999999},{"$f":"(SUMPRODUCT(C$9:C$229,Nutrients!$EO$8:$EO$228)+(IF($A$7=Nutrients!$B$8,Nutrients!$EO$8,Nutrients!$EO$9)*C$7)+(((IF($A$8=Nutrients!$B$79,Nutrients!$EO$79,(IF($A$8=Nutrients!$B$77,Nutrients!$EO$77,Nutrients!$EO$78)))))*C$8))/2000*1000000","v":0.29699999999999999},{"$f":"(SUMPRODUCT(D$9:D$229,Nutrients!$EO$8:$EO$228)+(IF($A$7=Nutrients!$B$8,Nutrients!$EO$8,Nutrients!$EO$9)*D$7)+(((IF($A$8=Nutrients!$B$79,Nutrients!$EO$79,(IF($A$8=Nutrients!$B$77,Nutrients!$EO$77,Nutrients!$EO$78)))))*D$8))/2000*1000000","v":0.24750000000000003},{"$f":"(SUMPRODUCT(E$9:E$229,Nutrients!$EO$8:$EO$228)+(IF($A$7=Nutrients!$B$8,Nutrients!$EO$8,Nutrients!$EO$9)*E$7)+(((IF($A$8=Nutrients!$B$79,Nutrients!$EO$79,(IF($A$8=Nutrients!$B$77,Nutrients!$EO$77,Nutrients!$EO$78)))))*E$8))/2000*1000000","v":0.19800000000000001},{"$f":"(SUMPRODUCT(F$9:F$229,Nutrients!$EO$8:$EO$228)+(IF($A$7=Nutrients!$B$8,Nutrients!$EO$8,Nutrients!$EO$9)*F$7)+(((IF($A$8=Nutrients!$B$79,Nutrients!$EO$79,(IF($A$8=Nutrients!$B$77,Nutrients!$EO$77,Nutrients!$EO$78)))))*F$8))/2000*1000000","v":0.14849999999999999},{"$f":"(SUMPRODUCT(G$9:G$229,Nutrients!$EO$8:$EO$228)+(IF($A$7=Nutrients!$B$8,Nutrients!$EO$8,Nutrients!$EO$9)*G$7)+(((IF($A$8=Nutrients!$B$79,Nutrients!$EO$79,(IF($A$8=Nutrients!$B$77,Nutrients!$EO$77,Nutrients!$EO$78)))))*G$8))/2000*1000000","v":0.14849999999999999},null,{"$f":"(SUMPRODUCT(I$9:I$229,Nutrients!$EO$8:$EO$228)+(IF($A$7=Nutrients!$B$8,Nutrients!$EO$8,Nutrients!$EO$9)*I$7)+(((IF($A$8=Nutrients!$B$79,Nutrients!$EO$79,(IF($A$8=Nutrients!$B$77,Nutrients!$EO$77,Nutrients!$EO$78)))))*I$8))/2000*1000000","v":0.29699999999999999},{"$f":"(SUMPRODUCT(J$9:J$229,Nutrients!$EO$8:$EO$228)+(IF($A$7=Nutrients!$B$8,Nutrients!$EO$8,Nutrients!$EO$9)*J$7)+(((IF($A$8=Nutrients!$B$79,Nutrients!$EO$79,(IF($A$8=Nutrients!$B$77,Nutrients!$EO$77,Nutrients!$EO$78)))))*J$8))/2000*1000000","v":0.29699999999999999},{"$f":"(SUMPRODUCT(K$9:K$229,Nutrients!$EO$8:$EO$228)+(IF($A$7=Nutrients!$B$8,Nutrients!$EO$8,Nutrients!$EO$9)*K$7)+(((IF($A$8=Nutrients!$B$79,Nutrients!$EO$79,(IF($A$8=Nutrients!$B$77,Nutrients!$EO$77,Nutrients!$EO$78)))))*K$8))/2000*1000000","v":0.24750000000000003},{"$f":"(SUMPRODUCT(L$9:L$229,Nutrients!$EO$8:$EO$228)+(IF($A$7=Nutrients!$B$8,Nutrients!$EO$8,Nutrients!$EO$9)*L$7)+(((IF($A$8=Nutrients!$B$79,Nutrients!$EO$79,(IF($A$8=Nutrients!$B$77,Nutrients!$EO$77,Nutrients!$EO$78)))))*L$8))/2000*1000000","v":0.19800000000000001},{"$f":"(SUMPRODUCT(M$9:M$229,Nutrients!$EO$8:$EO$228)+(IF($A$7=Nutrients!$B$8,Nutrients!$EO$8,Nutrients!$EO$9)*M$7)+(((IF($A$8=Nutrients!$B$79,Nutrients!$EO$79,(IF($A$8=Nutrients!$B$77,Nutrients!$EO$77,Nutrients!$EO$78)))))*M$8))/2000*1000000","v":0.14849999999999999},{"$f":"(SUMPRODUCT(N$9:N$229,Nutrients!$EO$8:$EO$228)+(IF($A$7=Nutrients!$B$8,Nutrients!$EO$8,Nutrients!$EO$9)*N$7)+(((IF($A$8=Nutrients!$B$79,Nutrients!$EO$79,(IF($A$8=Nutrients!$B$77,Nutrients!$EO$77,Nutrients!$EO$78)))))*N$8))/2000*1000000","v":0.14849999999999999},null,{"$f":"(SUMPRODUCT(P$9:P$229,Nutrients!$EO$8:$EO$228)+(IF($A$7=Nutrients!$B$8,Nutrients!$EO$8,Nutrients!$EO$9)*P$7)+(((IF($A$8=Nutrients!$B$79,Nutrients!$EO$79,(IF($A$8=Nutrients!$B$77,Nutrients!$EO$77,Nutrients!$EO$78)))))*P$8))/2000*1000000","v":0.29699999999999999},{"$f":"(SUMPRODUCT(Q$9:Q$229,Nutrients!$EO$8:$EO$228)+(IF($A$7=Nutrients!$B$8,Nutrients!$EO$8,Nutrients!$EO$9)*Q$7)+(((IF($A$8=Nutrients!$B$79,Nutrients!$EO$79,(IF($A$8=Nutrients!$B$77,Nutrients!$EO$77,Nutrients!$EO$78)))))*Q$8))/2000*1000000","v":0.29699999999999999},{"$f":"(SUMPRODUCT(R$9:R$229,Nutrients!$EO$8:$EO$228)+(IF($A$7=Nutrients!$B$8,Nutrients!$EO$8,Nutrients!$EO$9)*R$7)+(((IF($A$8=Nutrients!$B$79,Nutrients!$EO$79,(IF($A$8=Nutrients!$B$77,Nutrients!$EO$77,Nutrients!$EO$78)))))*R$8))/2000*1000000","v":0.24750000000000003},{"$f":"(SUMPRODUCT(S$9:S$229,Nutrients!$EO$8:$EO$228)+(IF($A$7=Nutrients!$B$8,Nutrients!$EO$8,Nutrients!$EO$9)*S$7)+(((IF($A$8=Nutrients!$B$79,Nutrients!$EO$79,(IF($A$8=Nutrients!$B$77,Nutrients!$EO$77,Nutrients!$EO$78)))))*S$8))/2000*1000000","v":0.19800000000000001},{"$f":"(SUMPRODUCT(T$9:T$229,Nutrients!$EO$8:$EO$228)+(IF($A$7=Nutrients!$B$8,Nutrients!$EO$8,Nutrients!$EO$9)*T$7)+(((IF($A$8=Nutrients!$B$79,Nutrients!$EO$79,(IF($A$8=Nutrients!$B$77,Nutrients!$EO$77,Nutrients!$EO$78)))))*T$8))/2000*1000000","v":0.14849999999999999},{"$f":"(SUMPRODUCT(U$9:U$229,Nutrients!$EO$8:$EO$228)+(IF($A$7=Nutrients!$B$8,Nutrients!$EO$8,Nutrients!$EO$9)*U$7)+(((IF($A$8=Nutrients!$B$79,Nutrients!$EO$79,(IF($A$8=Nutrients!$B$77,Nutrients!$EO$77,Nutrients!$EO$78)))))*U$8))/2000*1000000","v":0.14849999999999999},null,{"$f":"(SUMPRODUCT(W$9:W$229,Nutrients!$EO$8:$EO$228)+(IF($A$7=Nutrients!$B$8,Nutrients!$EO$8,Nutrients!$EO$9)*W$7)+(((IF($A$8=Nutrients!$B$79,Nutrients!$EO$79,(IF($A$8=Nutrients!$B$77,Nutrients!$EO$77,Nutrients!$EO$78)))))*W$8))/2000*1000000","v":0.29699999999999999},{"$f":"(SUMPRODUCT(X$9:X$229,Nutrients!$EO$8:$EO$228)+(IF($A$7=Nutrients!$B$8,Nutrients!$EO$8,Nutrients!$EO$9)*X$7)+(((IF($A$8=Nutrients!$B$79,Nutrients!$EO$79,(IF($A$8=Nutrients!$B$77,Nutrients!$EO$77,Nutrients!$EO$78)))))*X$8))/2000*1000000","v":0.29699999999999999},{"$f":"(SUMPRODUCT(Y$9:Y$229,Nutrients!$EO$8:$EO$228)+(IF($A$7=Nutrients!$B$8,Nutrients!$EO$8,Nutrients!$EO$9)*Y$7)+(((IF($A$8=Nutrients!$B$79,Nutrients!$EO$79,(IF($A$8=Nutrients!$B$77,Nutrients!$EO$77,Nutrients!$EO$78)))))*Y$8))/2000*1000000","v":0.24750000000000003},{"$f":"(SUMPRODUCT(Z$9:Z$229,Nutrients!$EO$8:$EO$228)+(IF($A$7=Nutrients!$B$8,Nutrients!$EO$8,Nutrients!$EO$9)*Z$7)+(((IF($A$8=Nutrients!$B$79,Nutrients!$EO$79,(IF($A$8=Nutrients!$B$77,Nutrients!$EO$77,Nutrients!$EO$78)))))*Z$8))/2000*1000000","v":0.19800000000000001},{"$f":"(SUMPRODUCT(AA$9:AA$229,Nutrients!$EO$8:$EO$228)+(IF($A$7=Nutrients!$B$8,Nutrients!$EO$8,Nutrients!$EO$9)*AA$7)+(((IF($A$8=Nutrients!$B$79,Nutrients!$EO$79,(IF($A$8=Nutrients!$B$77,Nutrients!$EO$77,Nutrients!$EO$78)))))*AA$8))/2000*1000000","v":0.14849999999999999},{"$f":"(SUMPRODUCT(AB$9:AB$229,Nutrients!$EO$8:$EO$228)+(IF($A$7=Nutrients!$B$8,Nutrients!$EO$8,Nutrients!$EO$9)*AB$7)+(((IF($A$8=Nutrients!$B$79,Nutrients!$EO$79,(IF($A$8=Nutrients!$B$77,Nutrients!$EO$77,Nutrients!$EO$78)))))*AB$8))/2000*1000000","v":0.14849999999999999},null,{"$f":"(SUMPRODUCT(AD$9:AD$229,Nutrients!$EO$8:$EO$228)+(IF($A$7=Nutrients!$B$8,Nutrients!$EO$8,Nutrients!$EO$9)*AD$7)+(((IF($A$8=Nutrients!$B$79,Nutrients!$EO$79,(IF($A$8=Nutrients!$B$77,Nutrients!$EO$77,Nutrients!$EO$78)))))*AD$8))/2000*1000000","v":0.29699999999999999},{"$f":"(SUMPRODUCT(AE$9:AE$229,Nutrients!$EO$8:$EO$228)+(IF($A$7=Nutrients!$B$8,Nutrients!$EO$8,Nutrients!$EO$9)*AE$7)+(((IF($A$8=Nutrients!$B$79,Nutrients!$EO$79,(IF($A$8=Nutrients!$B$77,Nutrients!$EO$77,Nutrients!$EO$78)))))*AE$8))/2000*1000000","v":0.29699999999999999},{"$f":"(SUMPRODUCT(AF$9:AF$229,Nutrients!$EO$8:$EO$228)+(IF($A$7=Nutrients!$B$8,Nutrients!$EO$8,Nutrients!$EO$9)*AF$7)+(((IF($A$8=Nutrients!$B$79,Nutrients!$EO$79,(IF($A$8=Nutrients!$B$77,Nutrients!$EO$77,Nutrients!$EO$78)))))*AF$8))/2000*1000000","v":0.24750000000000003},{"$f":"(SUMPRODUCT(AG$9:AG$229,Nutrients!$EO$8:$EO$228)+(IF($A$7=Nutrients!$B$8,Nutrients!$EO$8,Nutrients!$EO$9)*AG$7)+(((IF($A$8=Nutrients!$B$79,Nutrients!$EO$79,(IF($A$8=Nutrients!$B$77,Nutrients!$EO$77,Nutrients!$EO$78)))))*AG$8))/2000*1000000","v":0.19800000000000001},{"$f":"(SUMPRODUCT(AH$9:AH$229,Nutrients!$EO$8:$EO$228)+(IF($A$7=Nutrients!$B$8,Nutrients!$EO$8,Nutrients!$EO$9)*AH$7)+(((IF($A$8=Nutrients!$B$79,Nutrients!$EO$79,(IF($A$8=Nutrients!$B$77,Nutrients!$EO$77,Nutrients!$EO$78)))))*AH$8))/2000*1000000","v":0.14849999999999999},{"$f":"(SUMPRODUCT(AI$9:AI$229,Nutrients!$EO$8:$EO$228)+(IF($A$7=Nutrients!$B$8,Nutrients!$EO$8,Nutrients!$EO$9)*AI$7)+(((IF($A$8=Nutrients!$B$79,Nutrients!$EO$79,(IF($A$8=Nutrients!$B$77,Nutrients!$EO$77,Nutrients!$EO$78)))))*AI$8))/2000*1000000","v":0.14849999999999999},null,{"$f":"(SUMPRODUCT(AK$9:AK$229,Nutrients!$EO$8:$EO$228)+(IF($A$7=Nutrients!$B$8,Nutrients!$EO$8,Nutrients!$EO$9)*AK$7)+(((IF($A$8=Nutrients!$B$79,Nutrients!$EO$79,(IF($A$8=Nutrients!$B$77,Nutrients!$EO$77,Nutrients!$EO$78)))))*AK$8))/2000*1000000","v":0.29699999999999999},{"$f":"(SUMPRODUCT(AL$9:AL$229,Nutrients!$EO$8:$EO$228)+(IF($A$7=Nutrients!$B$8,Nutrients!$EO$8,Nutrients!$EO$9)*AL$7)+(((IF($A$8=Nutrients!$B$79,Nutrients!$EO$79,(IF($A$8=Nutrients!$B$77,Nutrients!$EO$77,Nutrients!$EO$78)))))*AL$8))/2000*1000000","v":0.29699999999999999},{"$f":"(SUMPRODUCT(AM$9:AM$229,Nutrients!$EO$8:$EO$228)+(IF($A$7=Nutrients!$B$8,Nutrients!$EO$8,Nutrients!$EO$9)*AM$7)+(((IF($A$8=Nutrients!$B$79,Nutrients!$EO$79,(IF($A$8=Nutrients!$B$77,Nutrients!$EO$77,Nutrients!$EO$78)))))*AM$8))/2000*1000000","v":0.24750000000000003},{"$f":"(SUMPRODUCT(AN$9:AN$229,Nutrients!$EO$8:$EO$228)+(IF($A$7=Nutrients!$B$8,Nutrients!$EO$8,Nutrients!$EO$9)*AN$7)+(((IF($A$8=Nutrients!$B$79,Nutrients!$EO$79,(IF($A$8=Nutrients!$B$77,Nutrients!$EO$77,Nutrients!$EO$78)))))*AN$8))/2000*1000000","v":0.19800000000000001},{"$f":"(SUMPRODUCT(AO$9:AO$229,Nutrients!$EO$8:$EO$228)+(IF($A$7=Nutrients!$B$8,Nutrients!$EO$8,Nutrients!$EO$9)*AO$7)+(((IF($A$8=Nutrients!$B$79,Nutrients!$EO$79,(IF($A$8=Nutrients!$B$77,Nutrients!$EO$77,Nutrients!$EO$78)))))*AO$8))/2000*1000000","v":0.14849999999999999},{"$f":"(SUMPRODUCT(AP$9:AP$229,Nutrients!$EO$8:$EO$228)+(IF($A$7=Nutrients!$B$8,Nutrients!$EO$8,Nutrients!$EO$9)*AP$7)+(((IF($A$8=Nutrients!$B$79,Nutrients!$EO$79,(IF($A$8=Nutrients!$B$77,Nutrients!$EO$77,Nutrients!$EO$78)))))*AP$8))/2000*1000000","v":0.14849999999999999},null,{"$f":"(SUMPRODUCT(AR$9:AR$229,Nutrients!$EO$8:$EO$228)+(IF($A$7=Nutrients!$B$8,Nutrients!$EO$8,Nutrients!$EO$9)*AR$7)+(((IF($A$8=Nutrients!$B$79,Nutrients!$EO$79,(IF($A$8=Nutrients!$B$77,Nutrients!$EO$77,Nutrients!$EO$78)))))*AR$8))/2000*1000000","v":0.29699999999999999},{"$f":"(SUMPRODUCT(AS$9:AS$229,Nutrients!$EO$8:$EO$228)+(IF($A$7=Nutrients!$B$8,Nutrients!$EO$8,Nutrients!$EO$9)*AS$7)+(((IF($A$8=Nutrients!$B$79,Nutrients!$EO$79,(IF($A$8=Nutrients!$B$77,Nutrients!$EO$77,Nutrients!$EO$78)))))*AS$8))/2000*1000000","v":0.29699999999999999},{"$f":"(SUMPRODUCT(AT$9:AT$229,Nutrients!$EO$8:$EO$228)+(IF($A$7=Nutrients!$B$8,Nutrients!$EO$8,Nutrients!$EO$9)*AT$7)+(((IF($A$8=Nutrients!$B$79,Nutrients!$EO$79,(IF($A$8=Nutrients!$B$77,Nutrients!$EO$77,Nutrients!$EO$78)))))*AT$8))/2000*1000000","v":0.24750000000000003},{"$f":"(SUMPRODUCT(AU$9:AU$229,Nutrients!$EO$8:$EO$228)+(IF($A$7=Nutrients!$B$8,Nutrients!$EO$8,Nutrients!$EO$9)*AU$7)+(((IF($A$8=Nutrients!$B$79,Nutrients!$EO$79,(IF($A$8=Nutrients!$B$77,Nutrients!$EO$77,Nutrients!$EO$78)))))*AU$8))/2000*1000000","v":0.19800000000000001},{"$f":"(SUMPRODUCT(AV$9:AV$229,Nutrients!$EO$8:$EO$228)+(IF($A$7=Nutrients!$B$8,Nutrients!$EO$8,Nutrients!$EO$9)*AV$7)+(((IF($A$8=Nutrients!$B$79,Nutrients!$EO$79,(IF($A$8=Nutrients!$B$77,Nutrients!$EO$77,Nutrients!$EO$78)))))*AV$8))/2000*1000000","v":0.14849999999999999},{"$f":"(SUMPRODUCT(AW$9:AW$229,Nutrients!$EO$8:$EO$228)+(IF($A$7=Nutrients!$B$8,Nutrients!$EO$8,Nutrients!$EO$9)*AW$7)+(((IF($A$8=Nutrients!$B$79,Nutrients!$EO$79,(IF($A$8=Nutrients!$B$77,Nutrients!$EO$77,Nutrients!$EO$78)))))*AW$8))/2000*1000000","v":0.14849999999999999}]
["  Selenium added, ppm",{"$f":"(SUMPRODUCT(B$9:B$229,Nutrients!$EP$8:$EP$228)+(IF($A$7=Nutrients!$B$8,Nutrients!$EP$8,Nutrients!$EP$9)*B$7)+(((IF($A$8=Nutrients!$B$79,Nutrients!$EP$79,(IF($A$8=Nutrients!$B$77,Nutrients!$EP$77,Nutrients!$EP$78)))))*B$8))/2000*1000000","v":0.29699999999999999},{"$f":"(SUMPRODUCT(C$9:C$229,Nutrients!$EP$8:$EP$228)+(IF($A$7=Nutrients!$B$8,Nutrients!$EP$8,Nutrients!$EP$9)*C$7)+(((IF($A$8=Nutrients!$B$79,Nutrients!$EP$79,(IF($A$8=Nutrients!$B$77,Nutrients!$EP$77,Nutrients!$EP$78)))))*C$8))/2000*1000000","v":0.29699999999999999},{"$f":"(SUMPRODUCT(D$9:D$229,Nutrients!$EP$8:$EP$228)+(IF($A$7=Nutrients!$B$8,Nutrients!$EP$8,Nutrients!$EP$9)*D$7)+(((IF($A$8=Nutrients!$B$79,Nutrients!$EP$79,(IF($A$8=Nutrients!$B$77,Nutrients!$EP$77,Nutrients!$EP$78)))))*D$8))/2000*1000000","v":0.24750000000000003},{"$f":"(SUMPRODUCT(E$9:E$229,Nutrients!$EP$8:$EP$228)+(IF($A$7=Nutrients!$B$8,Nutrients!$EP$8,Nutrients!$EP$9)*E$7)+(((IF($A$8=Nutrients!$B$79,Nutrients!$EP$79,(IF($A$8=Nutrients!$B$77,Nutrients!$EP$77,Nutrients!$EP$78)))))*E$8))/2000*1000000","v":0.19800000000000001},{"$f":"(SUMPRODUCT(F$9:F$229,Nutrients!$EP$8:$EP$228)+(IF($A$7=Nutrients!$B$8,Nutrients!$EP$8,Nutrients!$EP$9)*F$7)+(((IF($A$8=Nutrients!$B$79,Nutrients!$EP$79,(IF($A$8=Nutrients!$B$77,Nutrients!$EP$77,Nutrients!$EP$78)))))*F$8))/2000*1000000","v":0.14849999999999999},{"$f":"(SUMPRODUCT(G$9:G$229,Nutrients!$EP$8:$EP$228)+(IF($A$7=Nutrients!$B$8,Nutrients!$EP$8,Nutrients!$EP$9)*G$7)+(((IF($A$8=Nutrients!$B$79,Nutrients!$EP$79,(IF($A$8=Nutrients!$B$77,Nutrients!$EP$77,Nutrients!$EP$78)))))*G$8))/2000*1000000","v":0.14849999999999999},null,{"$f":"(SUMPRODUCT(I$9:I$229,Nutrients!$EP$8:$EP$228)+(IF($A$7=Nutrients!$B$8,Nutrients!$EP$8,Nutrients!$EP$9)*I$7)+(((IF($A$8=Nutrients!$B$79,Nutrients!$EP$79,(IF($A$8=Nutrients!$B$77,Nutrients!$EP$77,Nutrients!$EP$78)))))*I$8))/2000*1000000","v":0.29699999999999999},{"$f":"(SUMPRODUCT(J$9:J$229,Nutrients!$EP$8:$EP$228)+(IF($A$7=Nutrients!$B$8,Nutrients!$EP$8,Nutrients!$EP$9)*J$7)+(((IF($A$8=Nutrients!$B$79,Nutrients!$EP$79,(IF($A$8=Nutrients!$B$77,Nutrients!$EP$77,Nutrients!$EP$78)))))*J$8))/2000*1000000","v":0.29699999999999999},{"$f":"(SUMPRODUCT(K$9:K$229,Nutrients!$EP$8:$EP$228)+(IF($A$7=Nutrients!$B$8,Nutrients!$EP$8,Nutrients!$EP$9)*K$7)+(((IF($A$8=Nutrients!$B$79,Nutrients!$EP$79,(IF($A$8=Nutrients!$B$77,Nutrients!$EP$77,Nutrients!$EP$78)))))*K$8))/2000*1000000","v":0.24750000000000003},{"$f":"(SUMPRODUCT(L$9:L$229,Nutrients!$EP$8:$EP$228)+(IF($A$7=Nutrients!$B$8,Nutrients!$EP$8,Nutrients!$EP$9)*L$7)+(((IF($A$8=Nutrients!$B$79,Nutrients!$EP$79,(IF($A$8=Nutrients!$B$77,Nutrients!$EP$77,Nutrients!$EP$78)))))*L$8))/2000*1000000","v":0.19800000000000001},{"$f":"(SUMPRODUCT(M$9:M$229,Nutrients!$EP$8:$EP$228)+(IF($A$7=Nutrients!$B$8,Nutrients!$EP$8,Nutrients!$EP$9)*M$7)+(((IF($A$8=Nutrients!$B$79,Nutrients!$EP$79,(IF($A$8=Nutrients!$B$77,Nutrients!$EP$77,Nutrients!$EP$78)))))*M$8))/2000*1000000","v":0.14849999999999999},{"$f":"(SUMPRODUCT(N$9:N$229,Nutrients!$EP$8:$EP$228)+(IF($A$7=Nutrients!$B$8,Nutrients!$EP$8,Nutrients!$EP$9)*N$7)+(((IF($A$8=Nutrients!$B$79,Nutrients!$EP$79,(IF($A$8=Nutrients!$B$77,Nutrients!$EP$77,Nutrients!$EP$78)))))*N$8))/2000*1000000","v":0.14849999999999999},null,{"$f":"(SUMPRODUCT(P$9:P$229,Nutrients!$EP$8:$EP$228)+(IF($A$7=Nutrients!$B$8,Nutrients!$EP$8,Nutrients!$EP$9)*P$7)+(((IF($A$8=Nutrients!$B$79,Nutrients!$EP$79,(IF($A$8=Nutrients!$B$77,Nutrients!$EP$77,Nutrients!$EP$78)))))*P$8))/2000*1000000","v":0.29699999999999999},{"$f":"(SUMPRODUCT(Q$9:Q$229,Nutrients!$EP$8:$EP$228)+(IF($A$7=Nutrients!$B$8,Nutrients!$EP$8,Nutrients!$EP$9)*Q$7)+(((IF($A$8=Nutrients!$B$79,Nutrients!$EP$79,(IF($A$8=Nutrients!$B$77,Nutrients!$EP$77,Nutrients!$EP$78)))))*Q$8))/2000*1000000","v":0.29699999999999999},{"$f":"(SUMPRODUCT(R$9:R$229,Nutrients!$EP$8:$EP$228)+(IF($A$7=Nutrients!$B$8,Nutrients!$EP$8,Nutrients!$EP$9)*R$7)+(((IF($A$8=Nutrients!$B$79,Nutrients!$EP$79,(IF($A$8=Nutrients!$B$77,Nutrients!$EP$77,Nutrients!$EP$78)))))*R$8))/2000*1000000","v":0.24750000000000003},{"$f":"(SUMPRODUCT(S$9:S$229,Nutrients!$EP$8:$EP$228)+(IF($A$7=Nutrients!$B$8,Nutrients!$EP$8,Nutrients!$EP$9)*S$7)+(((IF($A$8=Nutrients!$B$79,Nutrients!$EP$79,(IF($A$8=Nutrients!$B$77,Nutrients!$EP$77,Nutrients!$EP$78)))))*S$8))/2000*1000000","v":0.19800000000000001},{"$f":"(SUMPRODUCT(T$9:T$229,Nutrients!$EP$8:$EP$228)+(IF($A$7=Nutrients!$B$8,Nutrients!$EP$8,Nutrients!$EP$9)*T$7)+(((IF($A$8=Nutrients!$B$79,Nutrients!$EP$79,(IF($A$8=Nutrients!$B$77,Nutrients!$EP$77,Nutrients!$EP$78)))))*T$8))/2000*1000000","v":0.14849999999999999},{"$f":"(SUMPRODUCT(U$9:U$229,Nutrients!$EP$8:$EP$228)+(IF($A$7=Nutrients!$B$8,Nutrients!$EP$8,Nutrients!$EP$9)*U$7)+(((IF($A$8=Nutrients!$B$79,Nutrients!$EP$79,(IF($A$8=Nutrients!$B$77,Nutrients!$EP$77,Nutrients!$EP$78)))))*U$8))/2000*1000000","v":0.14849999999999999},null,{"$f":"(SUMPRODUCT(W$9:W$229,Nutrients!$EP$8:$EP$228)+(IF($A$7=Nutrients!$B$8,Nutrients!$EP$8,Nutrients!$EP$9)*W$7)+(((IF($A$8=Nutrients!$B$79,Nutrients!$EP$79,(IF($A$8=Nutrients!$B$77,Nutrients!$EP$77,Nutrients!$EP$78)))))*W$8))/2000*1000000","v":0.29699999999999999},{"$f":"(SUMPRODUCT(X$9:X$229,Nutrients!$EP$8:$EP$228)+(IF($A$7=Nutrients!$B$8,Nutrients!$EP$8,Nutrients!$EP$9)*X$7)+(((IF($A$8=Nutrients!$B$79,Nutrients!$EP$79,(IF($A$8=Nutrients!$B$77,Nutrients!$EP$77,Nutrients!$EP$78)))))*X$8))/2000*1000000","v":0.29699999999999999},{"$f":"(SUMPRODUCT(Y$9:Y$229,Nutrients!$EP$8:$EP$228)+(IF($A$7=Nutrients!$B$8,Nutrients!$EP$8,Nutrients!$EP$9)*Y$7)+(((IF($A$8=Nutrients!$B$79,Nutrients!$EP$79,(IF($A$8=Nutrients!$B$77,Nutrients!$EP$77,Nutrients!$EP$78)))))*Y$8))/2000*1000000","v":0.24750000000000003},{"$f":"(SUMPRODUCT(Z$9:Z$229,Nutrients!$EP$8:$EP$228)+(IF($A$7=Nutrients!$B$8,Nutrients!$EP$8,Nutrients!$EP$9)*Z$7)+(((IF($A$8=Nutrients!$B$79,Nutrients!$EP$79,(IF($A$8=Nutrients!$B$77,Nutrients!$EP$77,Nutrients!$EP$78)))))*Z$8))/2000*1000000","v":0.19800000000000001},{"$f":"(SUMPRODUCT(AA$9:AA$229,Nutrients!$EP$8:$EP$228)+(IF($A$7=Nutrients!$B$8,Nutrients!$EP$8,Nutrients!$EP$9)*AA$7)+(((IF($A$8=Nutrients!$B$79,Nutrients!$EP$79,(IF($A$8=Nutrients!$B$77,Nutrients!$EP$77,Nutrients!$EP$78)))))*AA$8))/2000*1000000","v":0.14849999999999999},{"$f":"(SUMPRODUCT(AB$9:AB$229,Nutrients!$EP$8:$EP$228)+(IF($A$7=Nutrients!$B$8,Nutrients!$EP$8,Nutrients!$EP$9)*AB$7)+(((IF($A$8=Nutrients!$B$79,Nutrients!$EP$79,(IF($A$8=Nutrients!$B$77,Nutrients!$EP$77,Nutrients!$EP$78)))))*AB$8))/2000*1000000","v":0.14849999999999999},null,{"$f":"(SUMPRODUCT(AD$9:AD$229,Nutrients!$EP$8:$EP$228)+(IF($A$7=Nutrients!$B$8,Nutrients!$EP$8,Nutrients!$EP$9)*AD$7)+(((IF($A$8=Nutrients!$B$79,Nutrients!$EP$79,(IF($A$8=Nutrients!$B$77,Nutrients!$EP$77,Nutrients!$EP$78)))))*AD$8))/2000*1000000","v":0.29699999999999999},{"$f":"(SUMPRODUCT(AE$9:AE$229,Nutrients!$EP$8:$EP$228)+(IF($A$7=Nutrients!$B$8,Nutrients!$EP$8,Nutrients!$EP$9)*AE$7)+(((IF($A$8=Nutrients!$B$79,Nutrients!$EP$79,(IF($A$8=Nutrients!$B$77,Nutrients!$EP$77,Nutrients!$EP$78)))))*AE$8))/2000*1000000","v":0.29699999999999999},{"$f":"(SUMPRODUCT(AF$9:AF$229,Nutrients!$EP$8:$EP$228)+(IF($A$7=Nutrients!$B$8,Nutrients!$EP$8,Nutrients!$EP$9)*AF$7)+(((IF($A$8=Nutrients!$B$79,Nutrients!$EP$79,(IF($A$8=Nutrients!$B$77,Nutrients!$EP$77,Nutrients!$EP$78)))))*AF$8))/2000*1000000","v":0.24750000000000003},{"$f":"(SUMPRODUCT(AG$9:AG$229,Nutrients!$EP$8:$EP$228)+(IF($A$7=Nutrients!$B$8,Nutrients!$EP$8,Nutrients!$EP$9)*AG$7)+(((IF($A$8=Nutrients!$B$79,Nutrients!$EP$79,(IF($A$8=Nutrients!$B$77,Nutrients!$EP$77,Nutrients!$EP$78)))))*AG$8))/2000*1000000","v":0.19800000000000001},{"$f":"(SUMPRODUCT(AH$9:AH$229,Nutrients!$EP$8:$EP$228)+(IF($A$7=Nutrients!$B$8,Nutrients!$EP$8,Nutrients!$EP$9)*AH$7)+(((IF($A$8=Nutrients!$B$79,Nutrients!$EP$79,(IF($A$8=Nutrients!$B$77,Nutrients!$EP$77,Nutrients!$EP$78)))))*AH$8))/2000*1000000","v":0.14849999999999999},{"$f":"(SUMPRODUCT(AI$9:AI$229,Nutrients!$EP$8:$EP$228)+(IF($A$7=Nutrients!$B$8,Nutrients!$EP$8,Nutrients!$EP$9)*AI$7)+(((IF($A$8=Nutrients!$B$79,Nutrients!$EP$79,(IF($A$8=Nutrients!$B$77,Nutrients!$EP$77,Nutrients!$EP$78)))))*AI$8))/2000*1000000","v":0.14849999999999999},null,{"$f":"(SUMPRODUCT(AK$9:AK$229,Nutrients!$EP$8:$EP$228)+(IF($A$7=Nutrients!$B$8,Nutrients!$EP$8,Nutrients!$EP$9)*AK$7)+(((IF($A$8=Nutrients!$B$79,Nutrients!$EP$79,(IF($A$8=Nutrients!$B$77,Nutrients!$EP$77,Nutrients!$EP$78)))))*AK$8))/2000*1000000","v":0.29699999999999999},{"$f":"(SUMPRODUCT(AL$9:AL$229,Nutrients!$EP$8:$EP$228)+(IF($A$7=Nutrients!$B$8,Nutrients!$EP$8,Nutrients!$EP$9)*AL$7)+(((IF($A$8=Nutrients!$B$79,Nutrients!$EP$79,(IF($A$8=Nutrients!$B$77,Nutrients!$EP$77,Nutrients!$EP$78)))))*AL$8))/2000*1000000","v":0.29699999999999999},{"$f":"(SUMPRODUCT(AM$9:AM$229,Nutrients!$EP$8:$EP$228)+(IF($A$7=Nutrients!$B$8,Nutrients!$EP$8,Nutrients!$EP$9)*AM$7)+(((IF($A$8=Nutrients!$B$79,Nutrients!$EP$79,(IF($A$8=Nutrients!$B$77,Nutrients!$EP$77,Nutrients!$EP$78)))))*AM$8))/2000*1000000","v":0.24750000000000003},{"$f":"(SUMPRODUCT(AN$9:AN$229,Nutrients!$EP$8:$EP$228)+(IF($A$7=Nutrients!$B$8,Nutrients!$EP$8,Nutrients!$EP$9)*AN$7)+(((IF($A$8=Nutrients!$B$79,Nutrients!$EP$79,(IF($A$8=Nutrients!$B$77,Nutrients!$EP$77,Nutrients!$EP$78)))))*AN$8))/2000*1000000","v":0.19800000000000001},{"$f":"(SUMPRODUCT(AO$9:AO$229,Nutrients!$EP$8:$EP$228)+(IF($A$7=Nutrients!$B$8,Nutrients!$EP$8,Nutrients!$EP$9)*AO$7)+(((IF($A$8=Nutrients!$B$79,Nutrients!$EP$79,(IF($A$8=Nutrients!$B$77,Nutrients!$EP$77,Nutrients!$EP$78)))))*AO$8))/2000*1000000","v":0.14849999999999999},{"$f":"(SUMPRODUCT(AP$9:AP$229,Nutrients!$EP$8:$EP$228)+(IF($A$7=Nutrients!$B$8,Nutrients!$EP$8,Nutrients!$EP$9)*AP$7)+(((IF($A$8=Nutrients!$B$79,Nutrients!$EP$79,(IF($A$8=Nutrients!$B$77,Nutrients!$EP$77,Nutrients!$EP$78)))))*AP$8))/2000*1000000","v":0.14849999999999999},null,{"$f":"(SUMPRODUCT(AR$9:AR$229,Nutrients!$EP$8:$EP$228)+(IF($A$7=Nutrients!$B$8,Nutrients!$EP$8,Nutrients!$EP$9)*AR$7)+(((IF($A$8=Nutrients!$B$79,Nutrients!$EP$79,(IF($A$8=Nutrients!$B$77,Nutrients!$EP$77,Nutrients!$EP$78)))))*AR$8))/2000*1000000","v":0.29699999999999999},{"$f":"(SUMPRODUCT(AS$9:AS$229,Nutrients!$EP$8:$EP$228)+(IF($A$7=Nutrients!$B$8,Nutrients!$EP$8,Nutrients!$EP$9)*AS$7)+(((IF($A$8=Nutrients!$B$79,Nutrients!$EP$79,(IF($A$8=Nutrients!$B$77,Nutrients!$EP$77,Nutrients!$EP$78)))))*AS$8))/2000*1000000","v":0.29699999999999999},{"$f":"(SUMPRODUCT(AT$9:AT$229,Nutrients!$EP$8:$EP$228)+(IF($A$7=Nutrients!$B$8,Nutrients!$EP$8,Nutrients!$EP$9)*AT$7)+(((IF($A$8=Nutrients!$B$79,Nutrients!$EP$79,(IF($A$8=Nutrients!$B$77,Nutrients!$EP$77,Nutrients!$EP$78)))))*AT$8))/2000*1000000","v":0.24750000000000003},{"$f":"(SUMPRODUCT(AU$9:AU$229,Nutrients!$EP$8:$EP$228)+(IF($A$7=Nutrients!$B$8,Nutrients!$EP$8,Nutrients!$EP$9)*AU$7)+(((IF($A$8=Nutrients!$B$79,Nutrients!$EP$79,(IF($A$8=Nutrients!$B$77,Nutrients!$EP$77,Nutrients!$EP$78)))))*AU$8))/2000*1000000","v":0.19800000000000001},{"$f":"(SUMPRODUCT(AV$9:AV$229,Nutrients!$EP$8:$EP$228)+(IF($A$7=Nutrients!$B$8,Nutrients!$EP$8,Nutrients!$EP$9)*AV$7)+(((IF($A$8=Nutrients!$B$79,Nutrients!$EP$79,(IF($A$8=Nutrients!$B$77,Nutrients!$EP$77,Nutrients!$EP$78)))))*AV$8))/2000*1000000","v":0.14849999999999999},{"$f":"(SUMPRODUCT(AW$9:AW$229,Nutrients!$EP$8:$EP$228)+(IF($A$7=Nutrients!$B$8,Nutrients!$EP$8,Nutrients!$EP$9)*AW$7)+(((IF($A$8=Nutrients!$B$79,Nutrients!$EP$79,(IF($A$8=Nutrients!$B$77,Nutrients!$EP$77,Nutrients!$EP$78)))))*AW$8))/2000*1000000","v":0.14849999999999999}]
["  Chromium added, ppb",{"$f":"(SUMPRODUCT(B$9:B$229,Nutrients!$EQ$8:$EQ$228)+(IF($A$7=Nutrients!$B$8,Nutrients!$EQ$8,Nutrients!$EQ$9)*B$7)+(((IF($A$8=Nutrients!$B$79,Nutrients!$EQ$79,(IF($A$8=Nutrients!$B$77,Nutrients!$EQ$77,Nutrients!$EQ$78)))))*B$8))/2000*1000000000","v":0},{"$f":"(SUMPRODUCT(C$9:C$229,Nutrients!$EQ$8:$EQ$228)+(IF($A$7=Nutrients!$B$8,Nutrients!$EQ$8,Nutrients!$EQ$9)*C$7)+(((IF($A$8=Nutrients!$B$79,Nutrients!$EQ$79,(IF($A$8=Nutrients!$B$77,Nutrients!$EQ$77,Nutrients!$EQ$78)))))*C$8))/2000*1000000000","v":0},{"$f":"(SUMPRODUCT(D$9:D$229,Nutrients!$EQ$8:$EQ$228)+(IF($A$7=Nutrients!$B$8,Nutrients!$EQ$8,Nutrients!$EQ$9)*D$7)+(((IF($A$8=Nutrients!$B$79,Nutrients!$EQ$79,(IF($A$8=Nutrients!$B$77,Nutrients!$EQ$77,Nutrients!$EQ$78)))))*D$8))/2000*1000000000","v":0},{"$f":"(SUMPRODUCT(E$9:E$229,Nutrients!$EQ$8:$EQ$228)+(IF($A$7=Nutrients!$B$8,Nutrients!$EQ$8,Nutrients!$EQ$9)*E$7)+(((IF($A$8=Nutrients!$B$79,Nutrients!$EQ$79,(IF($A$8=Nutrients!$B$77,Nutrients!$EQ$77,Nutrients!$EQ$78)))))*E$8))/2000*1000000000","v":0},{"$f":"(SUMPRODUCT(F$9:F$229,Nutrients!$EQ$8:$EQ$228)+(IF($A$7=Nutrients!$B$8,Nutrients!$EQ$8,Nutrients!$EQ$9)*F$7)+(((IF($A$8=Nutrients!$B$79,Nutrients!$EQ$79,(IF($A$8=Nutrients!$B$77,Nutrients!$EQ$77,Nutrients!$EQ$78)))))*F$8))/2000*1000000000","v":0},{"$f":"(SUMPRODUCT(G$9:G$229,Nutrients!$EQ$8:$EQ$228)+(IF($A$7=Nutrients!$B$8,Nutrients!$EQ$8,Nutrients!$EQ$9)*G$7)+(((IF($A$8=Nutrients!$B$79,Nutrients!$EQ$79,(IF($A$8=Nutrients!$B$77,Nutrients!$EQ$77,Nutrients!$EQ$78)))))*G$8))/2000*1000000000","v":0},null,{"$f":"(SUMPRODUCT(I$9:I$229,Nutrients!$EQ$8:$EQ$228)+(IF($A$7=Nutrients!$B$8,Nutrients!$EQ$8,Nutrients!$EQ$9)*I$7)+(((IF($A$8=Nutrients!$B$79,Nutrients!$EQ$79,(IF($A$8=Nutrients!$B$77,Nutrients!$EQ$77,Nutrients!$EQ$78)))))*I$8))/2000*1000000000","v":0},{"$f":"(SUMPRODUCT(J$9:J$229,Nutrients!$EQ$8:$EQ$228)+(IF($A$7=Nutrients!$B$8,Nutrients!$EQ$8,Nutrients!$EQ$9)*J$7)+(((IF($A$8=Nutrients!$B$79,Nutrients!$EQ$79,(IF($A$8=Nutrients!$B$77,Nutrients!$EQ$77,Nutrients!$EQ$78)))))*J$8))/2000*1000000000","v":0},{"$f":"(SUMPRODUCT(K$9:K$229,Nutrients!$EQ$8:$EQ$228)+(IF($A$7=Nutrients!$B$8,Nutrients!$EQ$8,Nutrients!$EQ$9)*K$7)+(((IF($A$8=Nutrients!$B$79,Nutrients!$EQ$79,(IF($A$8=Nutrients!$B$77,Nutrients!$EQ$77,Nutrients!$EQ$78)))))*K$8))/2000*1000000000","v":0},{"$f":"(SUMPRODUCT(L$9:L$229,Nutrients!$EQ$8:$EQ$228)+(IF($A$7=Nutrients!$B$8,Nutrients!$EQ$8,Nutrients!$EQ$9)*L$7)+(((IF($A$8=Nutrients!$B$79,Nutrients!$EQ$79,(IF($A$8=Nutrients!$B$77,Nutrients!$EQ$77,Nutrients!$EQ$78)))))*L$8))/2000*1000000000","v":0},{"$f":"(SUMPRODUCT(M$9:M$229,Nutrients!$EQ$8:$EQ$228)+(IF($A$7=Nutrients!$B$8,Nutrients!$EQ$8,Nutrients!$EQ$9)*M$7)+(((IF($A$8=Nutrients!$B$79,Nutrients!$EQ$79,(IF($A$8=Nutrients!$B$77,Nutrients!$EQ$77,Nutrients!$EQ$78)))))*M$8))/2000*1000000000","v":0},{"$f":"(SUMPRODUCT(N$9:N$229,Nutrients!$EQ$8:$EQ$228)+(IF($A$7=Nutrients!$B$8,Nutrients!$EQ$8,Nutrients!$EQ$9)*N$7)+(((IF($A$8=Nutrients!$B$79,Nutrients!$EQ$79,(IF($A$8=Nutrients!$B$77,Nutrients!$EQ$77,Nutrients!$EQ$78)))))*N$8))/2000*1000000000","v":0},null,{"$f":"(SUMPRODUCT(P$9:P$229,Nutrients!$EQ$8:$EQ$228)+(IF($A$7=Nutrients!$B$8,Nutrients!$EQ$8,Nutrients!$EQ$9)*P$7)+(((IF($A$8=Nutrients!$B$79,Nutrients!$EQ$79,(IF($A$8=Nutrients!$B$77,Nutrients!$EQ$77,Nutrients!$EQ$78)))))*P$8))/2000*1000000000","v":0},{"$f":"(SUMPRODUCT(Q$9:Q$229,Nutrients!$EQ$8:$EQ$228)+(IF($A$7=Nutrients!$B$8,Nutrients!$EQ$8,Nutrients!$EQ$9)*Q$7)+(((IF($A$8=Nutrients!$B$79,Nutrients!$EQ$79,(IF($A$8=Nutrients!$B$77,Nutrients!$EQ$77,Nutrients!$EQ$78)))))*Q$8))/2000*1000000000","v":0},{"$f":"(SUMPRODUCT(R$9:R$229,Nutrients!$EQ$8:$EQ$228)+(IF($A$7=Nutrients!$B$8,Nutrients!$EQ$8,Nutrients!$EQ$9)*R$7)+(((IF($A$8=Nutrients!$B$79,Nutrients!$EQ$79,(IF($A$8=Nutrients!$B$77,Nutrients!$EQ$77,Nutrients!$EQ$78)))))*R$8))/2000*1000000000","v":0},{"$f":"(SUMPRODUCT(S$9:S$229,Nutrients!$EQ$8:$EQ$228)+(IF($A$7=Nutrients!$B$8,Nutrients!$EQ$8,Nutrients!$EQ$9)*S$7)+(((IF($A$8=Nutrients!$B$79,Nutrients!$EQ$79,(IF($A$8=Nutrients!$B$77,Nutrients!$EQ$77,Nutrients!$EQ$78)))))*S$8))/2000*1000000000","v":0},{"$f":"(SUMPRODUCT(T$9:T$229,Nutrients!$EQ$8:$EQ$228)+(IF($A$7=Nutrients!$B$8,Nutrients!$EQ$8,Nutrients!$EQ$9)*T$7)+(((IF($A$8=Nutrients!$B$79,Nutrients!$EQ$79,(IF($A$8=Nutrients!$B$77,Nutrients!$EQ$77,Nutrients!$EQ$78)))))*T$8))/2000*1000000000","v":0},{"$f":"(SUMPRODUCT(U$9:U$229,Nutrients!$EQ$8:$EQ$228)+(IF($A$7=Nutrients!$B$8,Nutrients!$EQ$8,Nutrients!$EQ$9)*U$7)+(((IF($A$8=Nutrients!$B$79,Nutrients!$EQ$79,(IF($A$8=Nutrients!$B$77,Nutrients!$EQ$77,Nutrients!$EQ$78)))))*U$8))/2000*1000000000","v":0},null,{"$f":"(SUMPRODUCT(W$9:W$229,Nutrients!$EQ$8:$EQ$228)+(IF($A$7=Nutrients!$B$8,Nutrients!$EQ$8,Nutrients!$EQ$9)*W$7)+(((IF($A$8=Nutrients!$B$79,Nutrients!$EQ$79,(IF($A$8=Nutrients!$B$77,Nutrients!$EQ$77,Nutrients!$EQ$78)))))*W$8))/2000*1000000000","v":0},{"$f":"(SUMPRODUCT(X$9:X$229,Nutrients!$EQ$8:$EQ$228)+(IF($A$7=Nutrients!$B$8,Nutrients!$EQ$8,Nutrients!$EQ$9)*X$7)+(((IF($A$8=Nutrients!$B$79,Nutrients!$EQ$79,(IF($A$8=Nutrients!$B$77,Nutrients!$EQ$77,Nutrients!$EQ$78)))))*X$8))/2000*1000000000","v":0},{"$f":"(SUMPRODUCT(Y$9:Y$229,Nutrients!$EQ$8:$EQ$228)+(IF($A$7=Nutrients!$B$8,Nutrients!$EQ$8,Nutrients!$EQ$9)*Y$7)+(((IF($A$8=Nutrients!$B$79,Nutrients!$EQ$79,(IF($A$8=Nutrients!$B$77,Nutrients!$EQ$77,Nutrients!$EQ$78)))))*Y$8))/2000*1000000000","v":0},{"$f":"(SUMPRODUCT(Z$9:Z$229,Nutrients!$EQ$8:$EQ$228)+(IF($A$7=Nutrients!$B$8,Nutrients!$EQ$8,Nutrients!$EQ$9)*Z$7)+(((IF($A$8=Nutrients!$B$79,Nutrients!$EQ$79,(IF($A$8=Nutrients!$B$77,Nutrients!$EQ$77,Nutrients!$EQ$78)))))*Z$8))/2000*1000000000","v":0},{"$f":"(SUMPRODUCT(AA$9:AA$229,Nutrients!$EQ$8:$EQ$228)+(IF($A$7=Nutrients!$B$8,Nutrients!$EQ$8,Nutrients!$EQ$9)*AA$7)+(((IF($A$8=Nutrients!$B$79,Nutrients!$EQ$79,(IF($A$8=Nutrients!$B$77,Nutrients!$EQ$77,Nutrients!$EQ$78)))))*AA$8))/2000*1000000000","v":0},{"$f":"(SUMPRODUCT(AB$9:AB$229,Nutrients!$EQ$8:$EQ$228)+(IF($A$7=Nutrients!$B$8,Nutrients!$EQ$8,Nutrients!$EQ$9)*AB$7)+(((IF($A$8=Nutrients!$B$79,Nutrients!$EQ$79,(IF($A$8=Nutrients!$B$77,Nutrients!$EQ$77,Nutrients!$EQ$78)))))*AB$8))/2000*1000000000","v":0},null,{"$f":"(SUMPRODUCT(AD$9:AD$229,Nutrients!$EQ$8:$EQ$228)+(IF($A$7=Nutrients!$B$8,Nutrients!$EQ$8,Nutrients!$EQ$9)*AD$7)+(((IF($A$8=Nutrients!$B$79,Nutrients!$EQ$79,(IF($A$8=Nutrients!$B$77,Nutrients!$EQ$77,Nutrients!$EQ$78)))))*AD$8))/2000*1000000000","v":0},{"$f":"(SUMPRODUCT(AE$9:AE$229,Nutrients!$EQ$8:$EQ$228)+(IF($A$7=Nutrients!$B$8,Nutrients!$EQ$8,Nutrients!$EQ$9)*AE$7)+(((IF($A$8=Nutrients!$B$79,Nutrients!$EQ$79,(IF($A$8=Nutrients!$B$77,Nutrients!$EQ$77,Nutrients!$EQ$78)))))*AE$8))/2000*1000000000","v":0},{"$f":"(SUMPRODUCT(AF$9:AF$229,Nutrients!$EQ$8:$EQ$228)+(IF($A$7=Nutrients!$B$8,Nutrients!$EQ$8,Nutrients!$EQ$9)*AF$7)+(((IF($A$8=Nutrients!$B$79,Nutrients!$EQ$79,(IF($A$8=Nutrients!$B$77,Nutrients!$EQ$77,Nutrients!$EQ$78)))))*AF$8))/2000*1000000000","v":0},{"$f":"(SUMPRODUCT(AG$9:AG$229,Nutrients!$EQ$8:$EQ$228)+(IF($A$7=Nutrients!$B$8,Nutrients!$EQ$8,Nutrients!$EQ$9)*AG$7)+(((IF($A$8=Nutrients!$B$79,Nutrients!$EQ$79,(IF($A$8=Nutrients!$B$77,Nutrients!$EQ$77,Nutrients!$EQ$78)))))*AG$8))/2000*1000000000","v":0},{"$f":"(SUMPRODUCT(AH$9:AH$229,Nutrients!$EQ$8:$EQ$228)+(IF($A$7=Nutrients!$B$8,Nutrients!$EQ$8,Nutrients!$EQ$9)*AH$7)+(((IF($A$8=Nutrients!$B$79,Nutrients!$EQ$79,(IF($A$8=Nutrients!$B$77,Nutrients!$EQ$77,Nutrients!$EQ$78)))))*AH$8))/2000*1000000000","v":0},{"$f":"(SUMPRODUCT(AI$9:AI$229,Nutrients!$EQ$8:$EQ$228)+(IF($A$7=Nutrients!$B$8,Nutrients!$EQ$8,Nutrients!$EQ$9)*AI$7)+(((IF($A$8=Nutrients!$B$79,Nutrients!$EQ$79,(IF($A$8=Nutrients!$B$77,Nutrients!$EQ$77,Nutrients!$EQ$78)))))*AI$8))/2000*1000000000","v":0},null,{"$f":"(SUMPRODUCT(AK$9:AK$229,Nutrients!$EQ$8:$EQ$228)+(IF($A$7=Nutrients!$B$8,Nutrients!$EQ$8,Nutrients!$EQ$9)*AK$7)+(((IF($A$8=Nutrients!$B$79,Nutrients!$EQ$79,(IF($A$8=Nutrients!$B$77,Nutrients!$EQ$77,Nutrients!$EQ$78)))))*AK$8))/2000*1000000000","v":0},{"$f":"(SUMPRODUCT(AL$9:AL$229,Nutrients!$EQ$8:$EQ$228)+(IF($A$7=Nutrients!$B$8,Nutrients!$EQ$8,Nutrients!$EQ$9)*AL$7)+(((IF($A$8=Nutrients!$B$79,Nutrients!$EQ$79,(IF($A$8=Nutrients!$B$77,Nutrients!$EQ$77,Nutrients!$EQ$78)))))*AL$8))/2000*1000000000","v":0},{"$f":"(SUMPRODUCT(AM$9:AM$229,Nutrients!$EQ$8:$EQ$228)+(IF($A$7=Nutrients!$B$8,Nutrients!$EQ$8,Nutrients!$EQ$9)*AM$7)+(((IF($A$8=Nutrients!$B$79,Nutrients!$EQ$79,(IF($A$8=Nutrients!$B$77,Nutrients!$EQ$77,Nutrients!$EQ$78)))))*AM$8))/2000*1000000000","v":0},{"$f":"(SUMPRODUCT(AN$9:AN$229,Nutrients!$EQ$8:$EQ$228)+(IF($A$7=Nutrients!$B$8,Nutrients!$EQ$8,Nutrients!$EQ$9)*AN$7)+(((IF($A$8=Nutrients!$B$79,Nutrients!$EQ$79,(IF($A$8=Nutrients!$B$77,Nutrients!$EQ$77,Nutrients!$EQ$78)))))*AN$8))/2000*1000000000","v":0},{"$f":"(SUMPRODUCT(AO$9:AO$229,Nutrients!$EQ$8:$EQ$228)+(IF($A$7=Nutrients!$B$8,Nutrients!$EQ$8,Nutrients!$EQ$9)*AO$7)+(((IF($A$8=Nutrients!$B$79,Nutrients!$EQ$79,(IF($A$8=Nutrients!$B$77,Nutrients!$EQ$77,Nutrients!$EQ$78)))))*AO$8))/2000*1000000000","v":0},{"$f":"(SUMPRODUCT(AP$9:AP$229,Nutrients!$EQ$8:$EQ$228)+(IF($A$7=Nutrients!$B$8,Nutrients!$EQ$8,Nutrients!$EQ$9)*AP$7)+(((IF($A$8=Nutrients!$B$79,Nutrients!$EQ$79,(IF($A$8=Nutrients!$B$77,Nutrients!$EQ$77,Nutrients!$EQ$78)))))*AP$8))/2000*1000000000","v":0},null,{"$f":"(SUMPRODUCT(AR$9:AR$229,Nutrients!$EQ$8:$EQ$228)+(IF($A$7=Nutrients!$B$8,Nutrients!$EQ$8,Nutrients!$EQ$9)*AR$7)+(((IF($A$8=Nutrients!$B$79,Nutrients!$EQ$79,(IF($A$8=Nutrients!$B$77,Nutrients!$EQ$77,Nutrients!$EQ$78)))))*AR$8))/2000*1000000000","v":0},{"$f":"(SUMPRODUCT(AS$9:AS$229,Nutrients!$EQ$8:$EQ$228)+(IF($A$7=Nutrients!$B$8,Nutrients!$EQ$8,Nutrients!$EQ$9)*AS$7)+(((IF($A$8=Nutrients!$B$79,Nutrients!$EQ$79,(IF($A$8=Nutrients!$B$77,Nutrients!$EQ$77,Nutrients!$EQ$78)))))*AS$8))/2000*1000000000","v":0},{"$f":"(SUMPRODUCT(AT$9:AT$229,Nutrients!$EQ$8:$EQ$228)+(IF($A$7=Nutrients!$B$8,Nutrients!$EQ$8,Nutrients!$EQ$9)*AT$7)+(((IF($A$8=Nutrients!$B$79,Nutrients!$EQ$79,(IF($A$8=Nutrients!$B$77,Nutrients!$EQ$77,Nutrients!$EQ$78)))))*AT$8))/2000*1000000000","v":0},{"$f":"(SUMPRODUCT(AU$9:AU$229,Nutrients!$EQ$8:$EQ$228)+(IF($A$7=Nutrients!$B$8,Nutrients!$EQ$8,Nutrients!$EQ$9)*AU$7)+(((IF($A$8=Nutrients!$B$79,Nutrients!$EQ$79,(IF($A$8=Nutrients!$B$77,Nutrients!$EQ$77,Nutrients!$EQ$78)))))*AU$8))/2000*1000000000","v":0},{"$f":"(SUMPRODUCT(AV$9:AV$229,Nutrients!$EQ$8:$EQ$228)+(IF($A$7=Nutrients!$B$8,Nutrients!$EQ$8,Nutrients!$EQ$9)*AV$7)+(((IF($A$8=Nutrients!$B$79,Nutrients!$EQ$79,(IF($A$8=Nutrients!$B$77,Nutrients!$EQ$77,Nutrients!$EQ$78)))))*AV$8))/2000*1000000000","v":0},{"$f":"(SUMPRODUCT(AW$9:AW$229,Nutrients!$EQ$8:$EQ$228)+(IF($A$7=Nutrients!$B$8,Nutrients!$EQ$8,Nutrients!$EQ$9)*AW$7)+(((IF($A$8=Nutrients!$B$79,Nutrients!$EQ$79,(IF($A$8=Nutrients!$B$77,Nutrients!$EQ$77,Nutrients!$EQ$78)))))*AW$8))/2000*1000000000","v":0}]
[]
["Vitamins (added levels)"]
["  Vit A, IU/ton",{"$f":"(SUMPRODUCT(B$9:B$229,Nutrients!$ES$8:$ES$228)+(IF($A$7=Nutrients!$B$8,Nutrients!$ES$8,Nutrients!$ES$9)*B$7)+(((IF($A$8=Nutrients!$B$79,Nutrients!$ES$79,(IF($A$8=Nutrients!$B$77,Nutrients!$ES$77,Nutrients!$ES$78)))))*B$8))","v":2250000},{"$f":"(SUMPRODUCT(C$9:C$229,Nutrients!$ES$8:$ES$228)+(IF($A$7=Nutrients!$B$8,Nutrients!$ES$8,Nutrients!$ES$9)*C$7)+(((IF($A$8=Nutrients!$B$79,Nutrients!$ES$79,(IF($A$8=Nutrients!$B$77,Nutrients!$ES$77,Nutrients!$ES$78)))))*C$8))","v":2250000},{"$f":"(SUMPRODUCT(D$9:D$229,Nutrients!$ES$8:$ES$228)+(IF($A$7=Nutrients!$B$8,Nutrients!$ES$8,Nutrients!$ES$9)*D$7)+(((IF($A$8=Nutrients!$B$79,Nutrients!$ES$79,(IF($A$8=Nutrients!$B$77,Nutrients!$ES$77,Nutrients!$ES$78)))))*D$8))","v":1875000},{"$f":"(SUMPRODUCT(E$9:E$229,Nutrients!$ES$8:$ES$228)+(IF($A$7=Nutrients!$B$8,Nutrients!$ES$8,Nutrients!$ES$9)*E$7)+(((IF($A$8=Nutrients!$B$79,Nutrients!$ES$79,(IF($A$8=Nutrients!$B$77,Nutrients!$ES$77,Nutrients!$ES$78)))))*E$8))","v":1500000},{"$f":"(SUMPRODUCT(F$9:F$229,Nutrients!$ES$8:$ES$228)+(IF($A$7=Nutrients!$B$8,Nutrients!$ES$8,Nutrients!$ES$9)*F$7)+(((IF($A$8=Nutrients!$B$79,Nutrients!$ES$79,(IF($A$8=Nutrients!$B$77,Nutrients!$ES$77,Nutrients!$ES$78)))))*F$8))","v":1125000},{"$f":"(SUMPRODUCT(G$9:G$229,Nutrients!$ES$8:$ES$228)+(IF($A$7=Nutrients!$B$8,Nutrients!$ES$8,Nutrients!$ES$9)*G$7)+(((IF($A$8=Nutrients!$B$79,Nutrients!$ES$79,(IF($A$8=Nutrients!$B$77,Nutrients!$ES$77,Nutrients!$ES$78)))))*G$8))","v":1125000},null,{"$f":"(SUMPRODUCT(I$9:I$229,Nutrients!$ES$8:$ES$228)+(IF($A$7=Nutrients!$B$8,Nutrients!$ES$8,Nutrients!$ES$9)*I$7)+(((IF($A$8=Nutrients!$B$79,Nutrients!$ES$79,(IF($A$8=Nutrients!$B$77,Nutrients!$ES$77,Nutrients!$ES$78)))))*I$8))","v":2250000},{"$f":"(SUMPRODUCT(J$9:J$229,Nutrients!$ES$8:$ES$228)+(IF($A$7=Nutrients!$B$8,Nutrients!$ES$8,Nutrients!$ES$9)*J$7)+(((IF($A$8=Nutrients!$B$79,Nutrients!$ES$79,(IF($A$8=Nutrients!$B$77,Nutrients!$ES$77,Nutrients!$ES$78)))))*J$8))","v":2250000},{"$f":"(SUMPRODUCT(K$9:K$229,Nutrients!$ES$8:$ES$228)+(IF($A$7=Nutrients!$B$8,Nutrients!$ES$8,Nutrients!$ES$9)*K$7)+(((IF($A$8=Nutrients!$B$79,Nutrients!$ES$79,(IF($A$8=Nutrients!$B$77,Nutrients!$ES$77,Nutrients!$ES$78)))))*K$8))","v":1875000},{"$f":"(SUMPRODUCT(L$9:L$229,Nutrients!$ES$8:$ES$228)+(IF($A$7=Nutrients!$B$8,Nutrients!$ES$8,Nutrients!$ES$9)*L$7)+(((IF($A$8=Nutrients!$B$79,Nutrients!$ES$79,(IF($A$8=Nutrients!$B$77,Nutrients!$ES$77,Nutrients!$ES$78)))))*L$8))","v":1500000},{"$f":"(SUMPRODUCT(M$9:M$229,Nutrients!$ES$8:$ES$228)+(IF($A$7=Nutrients!$B$8,Nutrients!$ES$8,Nutrients!$ES$9)*M$7)+(((IF($A$8=Nutrients!$B$79,Nutrients!$ES$79,(IF($A$8=Nutrients!$B$77,Nutrients!$ES$77,Nutrients!$ES$78)))))*M$8))","v":1125000},{"$f":"(SUMPRODUCT(N$9:N$229,Nutrients!$ES$8:$ES$228)+(IF($A$7=Nutrients!$B$8,Nutrients!$ES$8,Nutrients!$ES$9)*N$7)+(((IF($A$8=Nutrients!$B$79,Nutrients!$ES$79,(IF($A$8=Nutrients!$B$77,Nutrients!$ES$77,Nutrients!$ES$78)))))*N$8))","v":1125000},null,{"$f":"(SUMPRODUCT(P$9:P$229,Nutrients!$ES$8:$ES$228)+(IF($A$7=Nutrients!$B$8,Nutrients!$ES$8,Nutrients!$ES$9)*P$7)+(((IF($A$8=Nutrients!$B$79,Nutrients!$ES$79,(IF($A$8=Nutrients!$B$77,Nutrients!$ES$77,Nutrients!$ES$78)))))*P$8))","v":2250000},{"$f":"(SUMPRODUCT(Q$9:Q$229,Nutrients!$ES$8:$ES$228)+(IF($A$7=Nutrients!$B$8,Nutrients!$ES$8,Nutrients!$ES$9)*Q$7)+(((IF($A$8=Nutrients!$B$79,Nutrients!$ES$79,(IF($A$8=Nutrients!$B$77,Nutrients!$ES$77,Nutrients!$ES$78)))))*Q$8))","v":2250000},{"$f":"(SUMPRODUCT(R$9:R$229,Nutrients!$ES$8:$ES$228)+(IF($A$7=Nutrients!$B$8,Nutrients!$ES$8,Nutrients!$ES$9)*R$7)+(((IF($A$8=Nutrients!$B$79,Nutrients!$ES$79,(IF($A$8=Nutrients!$B$77,Nutrients!$ES$77,Nutrients!$ES$78)))))*R$8))","v":1875000},{"$f":"(SUMPRODUCT(S$9:S$229,Nutrients!$ES$8:$ES$228)+(IF($A$7=Nutrients!$B$8,Nutrients!$ES$8,Nutrients!$ES$9)*S$7)+(((IF($A$8=Nutrients!$B$79,Nutrients!$ES$79,(IF($A$8=Nutrients!$B$77,Nutrients!$ES$77,Nutrients!$ES$78)))))*S$8))","v":1500000},{"$f":"(SUMPRODUCT(T$9:T$229,Nutrients!$ES$8:$ES$228)+(IF($A$7=Nutrients!$B$8,Nutrients!$ES$8,Nutrients!$ES$9)*T$7)+(((IF($A$8=Nutrients!$B$79,Nutrients!$ES$79,(IF($A$8=Nutrients!$B$77,Nutrients!$ES$77,Nutrients!$ES$78)))))*T$8))","v":1125000},{"$f":"(SUMPRODUCT(U$9:U$229,Nutrients!$ES$8:$ES$228)+(IF($A$7=Nutrients!$B$8,Nutrients!$ES$8,Nutrients!$ES$9)*U$7)+(((IF($A$8=Nutrients!$B$79,Nutrients!$ES$79,(IF($A$8=Nutrients!$B$77,Nutrients!$ES$77,Nutrients!$ES$78)))))*U$8))","v":1125000},null,{"$f":"(SUMPRODUCT(W$9:W$229,Nutrients!$ES$8:$ES$228)+(IF($A$7=Nutrients!$B$8,Nutrients!$ES$8,Nutrients!$ES$9)*W$7)+(((IF($A$8=Nutrients!$B$79,Nutrients!$ES$79,(IF($A$8=Nutrients!$B$77,Nutrients!$ES$77,Nutrients!$ES$78)))))*W$8))","v":2250000},{"$f":"(SUMPRODUCT(X$9:X$229,Nutrients!$ES$8:$ES$228)+(IF($A$7=Nutrients!$B$8,Nutrients!$ES$8,Nutrients!$ES$9)*X$7)+(((IF($A$8=Nutrients!$B$79,Nutrients!$ES$79,(IF($A$8=Nutrients!$B$77,Nutrients!$ES$77,Nutrients!$ES$78)))))*X$8))","v":2250000},{"$f":"(SUMPRODUCT(Y$9:Y$229,Nutrients!$ES$8:$ES$228)+(IF($A$7=Nutrients!$B$8,Nutrients!$ES$8,Nutrients!$ES$9)*Y$7)+(((IF($A$8=Nutrients!$B$79,Nutrients!$ES$79,(IF($A$8=Nutrients!$B$77,Nutrients!$ES$77,Nutrients!$ES$78)))))*Y$8))","v":1875000},{"$f":"(SUMPRODUCT(Z$9:Z$229,Nutrients!$ES$8:$ES$228)+(IF($A$7=Nutrients!$B$8,Nutrients!$ES$8,Nutrients!$ES$9)*Z$7)+(((IF($A$8=Nutrients!$B$79,Nutrients!$ES$79,(IF($A$8=Nutrients!$B$77,Nutrients!$ES$77,Nutrients!$ES$78)))))*Z$8))","v":1500000},{"$f":"(SUMPRODUCT(AA$9:AA$229,Nutrients!$ES$8:$ES$228)+(IF($A$7=Nutrients!$B$8,Nutrients!$ES$8,Nutrients!$ES$9)*AA$7)+(((IF($A$8=Nutrients!$B$79,Nutrients!$ES$79,(IF($A$8=Nutrients!$B$77,Nutrients!$ES$77,Nutrients!$ES$78)))))*AA$8))","v":1125000},{"$f":"(SUMPRODUCT(AB$9:AB$229,Nutrients!$ES$8:$ES$228)+(IF($A$7=Nutrients!$B$8,Nutrients!$ES$8,Nutrients!$ES$9)*AB$7)+(((IF($A$8=Nutrients!$B$79,Nutrients!$ES$79,(IF($A$8=Nutrients!$B$77,Nutrients!$ES$77,Nutrients!$ES$78)))))*AB$8))","v":1125000},null,{"$f":"(SUMPRODUCT(AD$9:AD$229,Nutrients!$ES$8:$ES$228)+(IF($A$7=Nutrients!$B$8,Nutrients!$ES$8,Nutrients!$ES$9)*AD$7)+(((IF($A$8=Nutrients!$B$79,Nutrients!$ES$79,(IF($A$8=Nutrients!$B$77,Nutrients!$ES$77,Nutrients!$ES$78)))))*AD$8))","v":2250000},{"$f":"(SUMPRODUCT(AE$9:AE$229,Nutrients!$ES$8:$ES$228)+(IF($A$7=Nutrients!$B$8,Nutrients!$ES$8,Nutrients!$ES$9)*AE$7)+(((IF($A$8=Nutrients!$B$79,Nutrients!$ES$79,(IF($A$8=Nutrients!$B$77,Nutrients!$ES$77,Nutrients!$ES$78)))))*AE$8))","v":2250000},{"$f":"(SUMPRODUCT(AF$9:AF$229,Nutrients!$ES$8:$ES$228)+(IF($A$7=Nutrients!$B$8,Nutrients!$ES$8,Nutrients!$ES$9)*AF$7)+(((IF($A$8=Nutrients!$B$79,Nutrients!$ES$79,(IF($A$8=Nutrients!$B$77,Nutrients!$ES$77,Nutrients!$ES$78)))))*AF$8))","v":1875000},{"$f":"(SUMPRODUCT(AG$9:AG$229,Nutrients!$ES$8:$ES$228)+(IF($A$7=Nutrients!$B$8,Nutrients!$ES$8,Nutrients!$ES$9)*AG$7)+(((IF($A$8=Nutrients!$B$79,Nutrients!$ES$79,(IF($A$8=Nutrients!$B$77,Nutrients!$ES$77,Nutrients!$ES$78)))))*AG$8))","v":1500000},{"$f":"(SUMPRODUCT(AH$9:AH$229,Nutrients!$ES$8:$ES$228)+(IF($A$7=Nutrients!$B$8,Nutrients!$ES$8,Nutrients!$ES$9)*AH$7)+(((IF($A$8=Nutrients!$B$79,Nutrients!$ES$79,(IF($A$8=Nutrients!$B$77,Nutrients!$ES$77,Nutrients!$ES$78)))))*AH$8))","v":1125000},{"$f":"(SUMPRODUCT(AI$9:AI$229,Nutrients!$ES$8:$ES$228)+(IF($A$7=Nutrients!$B$8,Nutrients!$ES$8,Nutrients!$ES$9)*AI$7)+(((IF($A$8=Nutrients!$B$79,Nutrients!$ES$79,(IF($A$8=Nutrients!$B$77,Nutrients!$ES$77,Nutrients!$ES$78)))))*AI$8))","v":1125000},null,{"$f":"(SUMPRODUCT(AK$9:AK$229,Nutrients!$ES$8:$ES$228)+(IF($A$7=Nutrients!$B$8,Nutrients!$ES$8,Nutrients!$ES$9)*AK$7)+(((IF($A$8=Nutrients!$B$79,Nutrients!$ES$79,(IF($A$8=Nutrients!$B$77,Nutrients!$ES$77,Nutrients!$ES$78)))))*AK$8))","v":2250000},{"$f":"(SUMPRODUCT(AL$9:AL$229,Nutrients!$ES$8:$ES$228)+(IF($A$7=Nutrients!$B$8,Nutrients!$ES$8,Nutrients!$ES$9)*AL$7)+(((IF($A$8=Nutrients!$B$79,Nutrients!$ES$79,(IF($A$8=Nutrients!$B$77,Nutrients!$ES$77,Nutrients!$ES$78)))))*AL$8))","v":2250000},{"$f":"(SUMPRODUCT(AM$9:AM$229,Nutrients!$ES$8:$ES$228)+(IF($A$7=Nutrients!$B$8,Nutrients!$ES$8,Nutrients!$ES$9)*AM$7)+(((IF($A$8=Nutrients!$B$79,Nutrients!$ES$79,(IF($A$8=Nutrients!$B$77,Nutrients!$ES$77,Nutrients!$ES$78)))))*AM$8))","v":1875000},{"$f":"(SUMPRODUCT(AN$9:AN$229,Nutrients!$ES$8:$ES$228)+(IF($A$7=Nutrients!$B$8,Nutrients!$ES$8,Nutrients!$ES$9)*AN$7)+(((IF($A$8=Nutrients!$B$79,Nutrients!$ES$79,(IF($A$8=Nutrients!$B$77,Nutrients!$ES$77,Nutrients!$ES$78)))))*AN$8))","v":1500000},{"$f":"(SUMPRODUCT(AO$9:AO$229,Nutrients!$ES$8:$ES$228)+(IF($A$7=Nutrients!$B$8,Nutrients!$ES$8,Nutrients!$ES$9)*AO$7)+(((IF($A$8=Nutrients!$B$79,Nutrients!$ES$79,(IF($A$8=Nutrients!$B$77,Nutrients!$ES$77,Nutrients!$ES$78)))))*AO$8))","v":1125000},{"$f":"(SUMPRODUCT(AP$9:AP$229,Nutrients!$ES$8:$ES$228)+(IF($A$7=Nutrients!$B$8,Nutrients!$ES$8,Nutrients!$ES$9)*AP$7)+(((IF($A$8=Nutrients!$B$79,Nutrients!$ES$79,(IF($A$8=Nutrients!$B$77,Nutrients!$ES$77,Nutrients!$ES$78)))))*AP$8))","v":1125000},null,{"$f":"(SUMPRODUCT(AR$9:AR$229,Nutrients!$ES$8:$ES$228)+(IF($A$7=Nutrients!$B$8,Nutrients!$ES$8,Nutrients!$ES$9)*AR$7)+(((IF($A$8=Nutrients!$B$79,Nutrients!$ES$79,(IF($A$8=Nutrients!$B$77,Nutrients!$ES$77,Nutrients!$ES$78)))))*AR$8))","v":2250000},{"$f":"(SUMPRODUCT(AS$9:AS$229,Nutrients!$ES$8:$ES$228)+(IF($A$7=Nutrients!$B$8,Nutrients!$ES$8,Nutrients!$ES$9)*AS$7)+(((IF($A$8=Nutrients!$B$79,Nutrients!$ES$79,(IF($A$8=Nutrients!$B$77,Nutrients!$ES$77,Nutrients!$ES$78)))))*AS$8))","v":2250000},{"$f":"(SUMPRODUCT(AT$9:AT$229,Nutrients!$ES$8:$ES$228)+(IF($A$7=Nutrients!$B$8,Nutrients!$ES$8,Nutrients!$ES$9)*AT$7)+(((IF($A$8=Nutrients!$B$79,Nutrients!$ES$79,(IF($A$8=Nutrients!$B$77,Nutrients!$ES$77,Nutrients!$ES$78)))))*AT$8))","v":1875000},{"$f":"(SUMPRODUCT(AU$9:AU$229,Nutrients!$ES$8:$ES$228)+(IF($A$7=Nutrients!$B$8,Nutrients!$ES$8,Nutrients!$ES$9)*AU$7)+(((IF($A$8=Nutrients!$B$79,Nutrients!$ES$79,(IF($A$8=Nutrients!$B$77,Nutrients!$ES$77,Nutrients!$ES$78)))))*AU$8))","v":1500000},{"$f":"(SUMPRODUCT(AV$9:AV$229,Nutrients!$ES$8:$ES$228)+(IF($A$7=Nutrients!$B$8,Nutrients!$ES$8,Nutrients!$ES$9)*AV$7)+(((IF($A$8=Nutrients!$B$79,Nutrients!$ES$79,(IF($A$8=Nutrients!$B$77,Nutrients!$ES$77,Nutrients!$ES$78)))))*AV$8))","v":1125000},{"$f":"(SUMPRODUCT(AW$9:AW$229,Nutrients!$ES$8:$ES$228)+(IF($A$7=Nutrients!$B$8,Nutrients!$ES$8,Nutrients!$ES$9)*AW$7)+(((IF($A$8=Nutrients!$B$79,Nutrients!$ES$79,(IF($A$8=Nutrients!$B$77,Nutrients!$ES$77,Nutrients!$ES$78)))))*AW$8))","v":1125000}]
["  Vit D, IU/ton",{"$f":"(SUMPRODUCT(B$9:B$229,Nutrients!$ET$8:$ET$228)+(IF($A$7=Nutrients!$B$8,Nutrients!$ET$8,Nutrients!$ET$9)*B$7)+(((IF($A$8=Nutrients!$B$79,Nutrients!$ET$79,(IF($A$8=Nutrients!$B$77,Nutrients!$ET$77,Nutrients!$ET$78)))))*B$8))","v":900000},{"$f":"(SUMPRODUCT(C$9:C$229,Nutrients!$ET$8:$ET$228)+(IF($A$7=Nutrients!$B$8,Nutrients!$ET$8,Nutrients!$ET$9)*C$7)+(((IF($A$8=Nutrients!$B$79,Nutrients!$ET$79,(IF($A$8=Nutrients!$B$77,Nutrients!$ET$77,Nutrients!$ET$78)))))*C$8))","v":900000},{"$f":"(SUMPRODUCT(D$9:D$229,Nutrients!$ET$8:$ET$228)+(IF($A$7=Nutrients!$B$8,Nutrients!$ET$8,Nutrients!$ET$9)*D$7)+(((IF($A$8=Nutrients!$B$79,Nutrients!$ET$79,(IF($A$8=Nutrients!$B$77,Nutrients!$ET$77,Nutrients!$ET$78)))))*D$8))","v":750000},{"$f":"(SUMPRODUCT(E$9:E$229,Nutrients!$ET$8:$ET$228)+(IF($A$7=Nutrients!$B$8,Nutrients!$ET$8,Nutrients!$ET$9)*E$7)+(((IF($A$8=Nutrients!$B$79,Nutrients!$ET$79,(IF($A$8=Nutrients!$B$77,Nutrients!$ET$77,Nutrients!$ET$78)))))*E$8))","v":600000},{"$f":"(SUMPRODUCT(F$9:F$229,Nutrients!$ET$8:$ET$228)+(IF($A$7=Nutrients!$B$8,Nutrients!$ET$8,Nutrients!$ET$9)*F$7)+(((IF($A$8=Nutrients!$B$79,Nutrients!$ET$79,(IF($A$8=Nutrients!$B$77,Nutrients!$ET$77,Nutrients!$ET$78)))))*F$8))","v":450000},{"$f":"(SUMPRODUCT(G$9:G$229,Nutrients!$ET$8:$ET$228)+(IF($A$7=Nutrients!$B$8,Nutrients!$ET$8,Nutrients!$ET$9)*G$7)+(((IF($A$8=Nutrients!$B$79,Nutrients!$ET$79,(IF($A$8=Nutrients!$B$77,Nutrients!$ET$77,Nutrients!$ET$78)))))*G$8))","v":450000},null,{"$f":"(SUMPRODUCT(I$9:I$229,Nutrients!$ET$8:$ET$228)+(IF($A$7=Nutrients!$B$8,Nutrients!$ET$8,Nutrients!$ET$9)*I$7)+(((IF($A$8=Nutrients!$B$79,Nutrients!$ET$79,(IF($A$8=Nutrients!$B$77,Nutrients!$ET$77,Nutrients!$ET$78)))))*I$8))","v":900000},{"$f":"(SUMPRODUCT(J$9:J$229,Nutrients!$ET$8:$ET$228)+(IF($A$7=Nutrients!$B$8,Nutrients!$ET$8,Nutrients!$ET$9)*J$7)+(((IF($A$8=Nutrients!$B$79,Nutrients!$ET$79,(IF($A$8=Nutrients!$B$77,Nutrients!$ET$77,Nutrients!$ET$78)))))*J$8))","v":900000},{"$f":"(SUMPRODUCT(K$9:K$229,Nutrients!$ET$8:$ET$228)+(IF($A$7=Nutrients!$B$8,Nutrients!$ET$8,Nutrients!$ET$9)*K$7)+(((IF($A$8=Nutrients!$B$79,Nutrients!$ET$79,(IF($A$8=Nutrients!$B$77,Nutrients!$ET$77,Nutrients!$ET$78)))))*K$8))","v":750000},{"$f":"(SUMPRODUCT(L$9:L$229,Nutrients!$ET$8:$ET$228)+(IF($A$7=Nutrients!$B$8,Nutrients!$ET$8,Nutrients!$ET$9)*L$7)+(((IF($A$8=Nutrients!$B$79,Nutrients!$ET$79,(IF($A$8=Nutrients!$B$77,Nutrients!$ET$77,Nutrients!$ET$78)))))*L$8))","v":600000},{"$f":"(SUMPRODUCT(M$9:M$229,Nutrients!$ET$8:$ET$228)+(IF($A$7=Nutrients!$B$8,Nutrients!$ET$8,Nutrients!$ET$9)*M$7)+(((IF($A$8=Nutrients!$B$79,Nutrients!$ET$79,(IF($A$8=Nutrients!$B$77,Nutrients!$ET$77,Nutrients!$ET$78)))))*M$8))","v":450000},{"$f":"(SUMPRODUCT(N$9:N$229,Nutrients!$ET$8:$ET$228)+(IF($A$7=Nutrients!$B$8,Nutrients!$ET$8,Nutrients!$ET$9)*N$7)+(((IF($A$8=Nutrients!$B$79,Nutrients!$ET$79,(IF($A$8=Nutrients!$B$77,Nutrients!$ET$77,Nutrients!$ET$78)))))*N$8))","v":450000},null,{"$f":"(SUMPRODUCT(P$9:P$229,Nutrients!$ET$8:$ET$228)+(IF($A$7=Nutrients!$B$8,Nutrients!$ET$8,Nutrients!$ET$9)*P$7)+(((IF($A$8=Nutrients!$B$79,Nutrients!$ET$79,(IF($A$8=Nutrients!$B$77,Nutrients!$ET$77,Nutrients!$ET$78)))))*P$8))","v":900000},{"$f":"(SUMPRODUCT(Q$9:Q$229,Nutrients!$ET$8:$ET$228)+(IF($A$7=Nutrients!$B$8,Nutrients!$ET$8,Nutrients!$ET$9)*Q$7)+(((IF($A$8=Nutrients!$B$79,Nutrients!$ET$79,(IF($A$8=Nutrients!$B$77,Nutrients!$ET$77,Nutrients!$ET$78)))))*Q$8))","v":900000},{"$f":"(SUMPRODUCT(R$9:R$229,Nutrients!$ET$8:$ET$228)+(IF($A$7=Nutrients!$B$8,Nutrients!$ET$8,Nutrients!$ET$9)*R$7)+(((IF($A$8=Nutrients!$B$79,Nutrients!$ET$79,(IF($A$8=Nutrients!$B$77,Nutrients!$ET$77,Nutrients!$ET$78)))))*R$8))","v":750000},{"$f":"(SUMPRODUCT(S$9:S$229,Nutrients!$ET$8:$ET$228)+(IF($A$7=Nutrients!$B$8,Nutrients!$ET$8,Nutrients!$ET$9)*S$7)+(((IF($A$8=Nutrients!$B$79,Nutrients!$ET$79,(IF($A$8=Nutrients!$B$77,Nutrients!$ET$77,Nutrients!$ET$78)))))*S$8))","v":600000},{"$f":"(SUMPRODUCT(T$9:T$229,Nutrients!$ET$8:$ET$228)+(IF($A$7=Nutrients!$B$8,Nutrients!$ET$8,Nutrients!$ET$9)*T$7)+(((IF($A$8=Nutrients!$B$79,Nutrients!$ET$79,(IF($A$8=Nutrients!$B$77,Nutrients!$ET$77,Nutrients!$ET$78)))))*T$8))","v":450000},{"$f":"(SUMPRODUCT(U$9:U$229,Nutrients!$ET$8:$ET$228)+(IF($A$7=Nutrients!$B$8,Nutrients!$ET$8,Nutrients!$ET$9)*U$7)+(((IF($A$8=Nutrients!$B$79,Nutrients!$ET$79,(IF($A$8=Nutrients!$B$77,Nutrients!$ET$77,Nutrients!$ET$78)))))*U$8))","v":450000},null,{"$f":"(SUMPRODUCT(W$9:W$229,Nutrients!$ET$8:$ET$228)+(IF($A$7=Nutrients!$B$8,Nutrients!$ET$8,Nutrients!$ET$9)*W$7)+(((IF($A$8=Nutrients!$B$79,Nutrients!$ET$79,(IF($A$8=Nutrients!$B$77,Nutrients!$ET$77,Nutrients!$ET$78)))))*W$8))","v":900000},{"$f":"(SUMPRODUCT(X$9:X$229,Nutrients!$ET$8:$ET$228)+(IF($A$7=Nutrients!$B$8,Nutrients!$ET$8,Nutrients!$ET$9)*X$7)+(((IF($A$8=Nutrients!$B$79,Nutrients!$ET$79,(IF($A$8=Nutrients!$B$77,Nutrients!$ET$77,Nutrients!$ET$78)))))*X$8))","v":900000},{"$f":"(SUMPRODUCT(Y$9:Y$229,Nutrients!$ET$8:$ET$228)+(IF($A$7=Nutrients!$B$8,Nutrients!$ET$8,Nutrients!$ET$9)*Y$7)+(((IF($A$8=Nutrients!$B$79,Nutrients!$ET$79,(IF($A$8=Nutrients!$B$77,Nutrients!$ET$77,Nutrients!$ET$78)))))*Y$8))","v":750000},{"$f":"(SUMPRODUCT(Z$9:Z$229,Nutrients!$ET$8:$ET$228)+(IF($A$7=Nutrients!$B$8,Nutrients!$ET$8,Nutrients!$ET$9)*Z$7)+(((IF($A$8=Nutrients!$B$79,Nutrients!$ET$79,(IF($A$8=Nutrients!$B$77,Nutrients!$ET$77,Nutrients!$ET$78)))))*Z$8))","v":600000},{"$f":"(SUMPRODUCT(AA$9:AA$229,Nutrients!$ET$8:$ET$228)+(IF($A$7=Nutrients!$B$8,Nutrients!$ET$8,Nutrients!$ET$9)*AA$7)+(((IF($A$8=Nutrients!$B$79,Nutrients!$ET$79,(IF($A$8=Nutrients!$B$77,Nutrients!$ET$77,Nutrients!$ET$78)))))*AA$8))","v":450000},{"$f":"(SUMPRODUCT(AB$9:AB$229,Nutrients!$ET$8:$ET$228)+(IF($A$7=Nutrients!$B$8,Nutrients!$ET$8,Nutrients!$ET$9)*AB$7)+(((IF($A$8=Nutrients!$B$79,Nutrients!$ET$79,(IF($A$8=Nutrients!$B$77,Nutrients!$ET$77,Nutrients!$ET$78)))))*AB$8))","v":450000},null,{"$f":"(SUMPRODUCT(AD$9:AD$229,Nutrients!$ET$8:$ET$228)+(IF($A$7=Nutrients!$B$8,Nutrients!$ET$8,Nutrients!$ET$9)*AD$7)+(((IF($A$8=Nutrients!$B$79,Nutrients!$ET$79,(IF($A$8=Nutrients!$B$77,Nutrients!$ET$77,Nutrients!$ET$78)))))*AD$8))","v":900000},{"$f":"(SUMPRODUCT(AE$9:AE$229,Nutrients!$ET$8:$ET$228)+(IF($A$7=Nutrients!$B$8,Nutrients!$ET$8,Nutrients!$ET$9)*AE$7)+(((IF($A$8=Nutrients!$B$79,Nutrients!$ET$79,(IF($A$8=Nutrients!$B$77,Nutrients!$ET$77,Nutrients!$ET$78)))))*AE$8))","v":900000},{"$f":"(SUMPRODUCT(AF$9:AF$229,Nutrients!$ET$8:$ET$228)+(IF($A$7=Nutrients!$B$8,Nutrients!$ET$8,Nutrients!$ET$9)*AF$7)+(((IF($A$8=Nutrients!$B$79,Nutrients!$ET$79,(IF($A$8=Nutrients!$B$77,Nutrients!$ET$77,Nutrients!$ET$78)))))*AF$8))","v":750000},{"$f":"(SUMPRODUCT(AG$9:AG$229,Nutrients!$ET$8:$ET$228)+(IF($A$7=Nutrients!$B$8,Nutrients!$ET$8,Nutrients!$ET$9)*AG$7)+(((IF($A$8=Nutrients!$B$79,Nutrients!$ET$79,(IF($A$8=Nutrients!$B$77,Nutrients!$ET$77,Nutrients!$ET$78)))))*AG$8))","v":600000},{"$f":"(SUMPRODUCT(AH$9:AH$229,Nutrients!$ET$8:$ET$228)+(IF($A$7=Nutrients!$B$8,Nutrients!$ET$8,Nutrients!$ET$9)*AH$7)+(((IF($A$8=Nutrients!$B$79,Nutrients!$ET$79,(IF($A$8=Nutrients!$B$77,Nutrients!$ET$77,Nutrients!$ET$78)))))*AH$8))","v":450000},{"$f":"(SUMPRODUCT(AI$9:AI$229,Nutrients!$ET$8:$ET$228)+(IF($A$7=Nutrients!$B$8,Nutrients!$ET$8,Nutrients!$ET$9)*AI$7)+(((IF($A$8=Nutrients!$B$79,Nutrients!$ET$79,(IF($A$8=Nutrients!$B$77,Nutrients!$ET$77,Nutrients!$ET$78)))))*AI$8))","v":450000},null,{"$f":"(SUMPRODUCT(AK$9:AK$229,Nutrients!$ET$8:$ET$228)+(IF($A$7=Nutrients!$B$8,Nutrients!$ET$8,Nutrients!$ET$9)*AK$7)+(((IF($A$8=Nutrients!$B$79,Nutrients!$ET$79,(IF($A$8=Nutrients!$B$77,Nutrients!$ET$77,Nutrients!$ET$78)))))*AK$8))","v":900000},{"$f":"(SUMPRODUCT(AL$9:AL$229,Nutrients!$ET$8:$ET$228)+(IF($A$7=Nutrients!$B$8,Nutrients!$ET$8,Nutrients!$ET$9)*AL$7)+(((IF($A$8=Nutrients!$B$79,Nutrients!$ET$79,(IF($A$8=Nutrients!$B$77,Nutrients!$ET$77,Nutrients!$ET$78)))))*AL$8))","v":900000},{"$f":"(SUMPRODUCT(AM$9:AM$229,Nutrients!$ET$8:$ET$228)+(IF($A$7=Nutrients!$B$8,Nutrients!$ET$8,Nutrients!$ET$9)*AM$7)+(((IF($A$8=Nutrients!$B$79,Nutrients!$ET$79,(IF($A$8=Nutrients!$B$77,Nutrients!$ET$77,Nutrients!$ET$78)))))*AM$8))","v":750000},{"$f":"(SUMPRODUCT(AN$9:AN$229,Nutrients!$ET$8:$ET$228)+(IF($A$7=Nutrients!$B$8,Nutrients!$ET$8,Nutrients!$ET$9)*AN$7)+(((IF($A$8=Nutrients!$B$79,Nutrients!$ET$79,(IF($A$8=Nutrients!$B$77,Nutrients!$ET$77,Nutrients!$ET$78)))))*AN$8))","v":600000},{"$f":"(SUMPRODUCT(AO$9:AO$229,Nutrients!$ET$8:$ET$228)+(IF($A$7=Nutrients!$B$8,Nutrients!$ET$8,Nutrients!$ET$9)*AO$7)+(((IF($A$8=Nutrients!$B$79,Nutrients!$ET$79,(IF($A$8=Nutrients!$B$77,Nutrients!$ET$77,Nutrients!$ET$78)))))*AO$8))","v":450000},{"$f":"(SUMPRODUCT(AP$9:AP$229,Nutrients!$ET$8:$ET$228)+(IF($A$7=Nutrients!$B$8,Nutrients!$ET$8,Nutrients!$ET$9)*AP$7)+(((IF($A$8=Nutrients!$B$79,Nutrients!$ET$79,(IF($A$8=Nutrients!$B$77,Nutrients!$ET$77,Nutrients!$ET$78)))))*AP$8))","v":450000},null,{"$f":"(SUMPRODUCT(AR$9:AR$229,Nutrients!$ET$8:$ET$228)+(IF($A$7=Nutrients!$B$8,Nutrients!$ET$8,Nutrients!$ET$9)*AR$7)+(((IF($A$8=Nutrients!$B$79,Nutrients!$ET$79,(IF($A$8=Nutrients!$B$77,Nutrients!$ET$77,Nutrients!$ET$78)))))*AR$8))","v":900000},{"$f":"(SUMPRODUCT(AS$9:AS$229,Nutrients!$ET$8:$ET$228)+(IF($A$7=Nutrients!$B$8,Nutrients!$ET$8,Nutrients!$ET$9)*AS$7)+(((IF($A$8=Nutrients!$B$79,Nutrients!$ET$79,(IF($A$8=Nutrients!$B$77,Nutrients!$ET$77,Nutrients!$ET$78)))))*AS$8))","v":900000},{"$f":"(SUMPRODUCT(AT$9:AT$229,Nutrients!$ET$8:$ET$228)+(IF($A$7=Nutrients!$B$8,Nutrients!$ET$8,Nutrients!$ET$9)*AT$7)+(((IF($A$8=Nutrients!$B$79,Nutrients!$ET$79,(IF($A$8=Nutrients!$B$77,Nutrients!$ET$77,Nutrients!$ET$78)))))*AT$8))","v":750000},{"$f":"(SUMPRODUCT(AU$9:AU$229,Nutrients!$ET$8:$ET$228)+(IF($A$7=Nutrients!$B$8,Nutrients!$ET$8,Nutrients!$ET$9)*AU$7)+(((IF($A$8=Nutrients!$B$79,Nutrients!$ET$79,(IF($A$8=Nutrients!$B$77,Nutrients!$ET$77,Nutrients!$ET$78)))))*AU$8))","v":600000},{"$f":"(SUMPRODUCT(AV$9:AV$229,Nutrients!$ET$8:$ET$228)+(IF($A$7=Nutrients!$B$8,Nutrients!$ET$8,Nutrients!$ET$9)*AV$7)+(((IF($A$8=Nutrients!$B$79,Nutrients!$ET$79,(IF($A$8=Nutrients!$B$77,Nutrients!$ET$77,Nutrients!$ET$78)))))*AV$8))","v":450000},{"$f":"(SUMPRODUCT(AW$9:AW$229,Nutrients!$ET$8:$ET$228)+(IF($A$7=Nutrients!$B$8,Nutrients!$ET$8,Nutrients!$ET$9)*AW$7)+(((IF($A$8=Nutrients!$B$79,Nutrients!$ET$79,(IF($A$8=Nutrients!$B$77,Nutrients!$ET$77,Nutrients!$ET$78)))))*AW$8))","v":450000}]
["  Vit E, IU/ton",{"$f":"(SUMPRODUCT(B$9:B$229,Nutrients!$EU$8:$EU$228)+(IF($A$7=Nutrients!$B$8,Nutrients!$EU$8,Nutrients!$EU$9)*B$7)+(((IF($A$8=Nutrients!$B$79,Nutrients!$EU$79,(IF($A$8=Nutrients!$B$77,Nutrients!$EU$77,Nutrients!$EU$78)))))*B$8))","v":24000},{"$f":"(SUMPRODUCT(C$9:C$229,Nutrients!$EU$8:$EU$228)+(IF($A$7=Nutrients!$B$8,Nutrients!$EU$8,Nutrients!$EU$9)*C$7)+(((IF($A$8=Nutrients!$B$79,Nutrients!$EU$79,(IF($A$8=Nutrients!$B$77,Nutrients!$EU$77,Nutrients!$EU$78)))))*C$8))","v":24000},{"$f":"(SUMPRODUCT(D$9:D$229,Nutrients!$EU$8:$EU$228)+(IF($A$7=Nutrients!$B$8,Nutrients!$EU$8,Nutrients!$EU$9)*D$7)+(((IF($A$8=Nutrients!$B$79,Nutrients!$EU$79,(IF($A$8=Nutrients!$B$77,Nutrients!$EU$77,Nutrients!$EU$78)))))*D$8))","v":20000},{"$f":"(SUMPRODUCT(E$9:E$229,Nutrients!$EU$8:$EU$228)+(IF($A$7=Nutrients!$B$8,Nutrients!$EU$8,Nutrients!$EU$9)*E$7)+(((IF($A$8=Nutrients!$B$79,Nutrients!$EU$79,(IF($A$8=Nutrients!$B$77,Nutrients!$EU$77,Nutrients!$EU$78)))))*E$8))","v":16000},{"$f":"(SUMPRODUCT(F$9:F$229,Nutrients!$EU$8:$EU$228)+(IF($A$7=Nutrients!$B$8,Nutrients!$EU$8,Nutrients!$EU$9)*F$7)+(((IF($A$8=Nutrients!$B$79,Nutrients!$EU$79,(IF($A$8=Nutrients!$B$77,Nutrients!$EU$77,Nutrients!$EU$78)))))*F$8))","v":12000},{"$f":"(SUMPRODUCT(G$9:G$229,Nutrients!$EU$8:$EU$228)+(IF($A$7=Nutrients!$B$8,Nutrients!$EU$8,Nutrients!$EU$9)*G$7)+(((IF($A$8=Nutrients!$B$79,Nutrients!$EU$79,(IF($A$8=Nutrients!$B$77,Nutrients!$EU$77,Nutrients!$EU$78)))))*G$8))","v":12000},null,{"$f":"(SUMPRODUCT(I$9:I$229,Nutrients!$EU$8:$EU$228)+(IF($A$7=Nutrients!$B$8,Nutrients!$EU$8,Nutrients!$EU$9)*I$7)+(((IF($A$8=Nutrients!$B$79,Nutrients!$EU$79,(IF($A$8=Nutrients!$B$77,Nutrients!$EU$77,Nutrients!$EU$78)))))*I$8))","v":24000},{"$f":"(SUMPRODUCT(J$9:J$229,Nutrients!$EU$8:$EU$228)+(IF($A$7=Nutrients!$B$8,Nutrients!$EU$8,Nutrients!$EU$9)*J$7)+(((IF($A$8=Nutrients!$B$79,Nutrients!$EU$79,(IF($A$8=Nutrients!$B$77,Nutrients!$EU$77,Nutrients!$EU$78)))))*J$8))","v":24000},{"$f":"(SUMPRODUCT(K$9:K$229,Nutrients!$EU$8:$EU$228)+(IF($A$7=Nutrients!$B$8,Nutrients!$EU$8,Nutrients!$EU$9)*K$7)+(((IF($A$8=Nutrients!$B$79,Nutrients!$EU$79,(IF($A$8=Nutrients!$B$77,Nutrients!$EU$77,Nutrients!$EU$78)))))*K$8))","v":20000},{"$f":"(SUMPRODUCT(L$9:L$229,Nutrients!$EU$8:$EU$228)+(IF($A$7=Nutrients!$B$8,Nutrients!$EU$8,Nutrients!$EU$9)*L$7)+(((IF($A$8=Nutrients!$B$79,Nutrients!$EU$79,(IF($A$8=Nutrients!$B$77,Nutrients!$EU$77,Nutrients!$EU$78)))))*L$8))","v":16000},{"$f":"(SUMPRODUCT(M$9:M$229,Nutrients!$EU$8:$EU$228)+(IF($A$7=Nutrients!$B$8,Nutrients!$EU$8,Nutrients!$EU$9)*M$7)+(((IF($A$8=Nutrients!$B$79,Nutrients!$EU$79,(IF($A$8=Nutrients!$B$77,Nutrients!$EU$77,Nutrients!$EU$78)))))*M$8))","v":12000},{"$f":"(SUMPRODUCT(N$9:N$229,Nutrients!$EU$8:$EU$228)+(IF($A$7=Nutrients!$B$8,Nutrients!$EU$8,Nutrients!$EU$9)*N$7)+(((IF($A$8=Nutrients!$B$79,Nutrients!$EU$79,(IF($A$8=Nutrients!$B$77,Nutrients!$EU$77,Nutrients!$EU$78)))))*N$8))","v":12000},null,{"$f":"(SUMPRODUCT(P$9:P$229,Nutrients!$EU$8:$EU$228)+(IF($A$7=Nutrients!$B$8,Nutrients!$EU$8,Nutrients!$EU$9)*P$7)+(((IF($A$8=Nutrients!$B$79,Nutrients!$EU$79,(IF($A$8=Nutrients!$B$77,Nutrients!$EU$77,Nutrients!$EU$78)))))*P$8))","v":24000},{"$f":"(SUMPRODUCT(Q$9:Q$229,Nutrients!$EU$8:$EU$228)+(IF($A$7=Nutrients!$B$8,Nutrients!$EU$8,Nutrients!$EU$9)*Q$7)+(((IF($A$8=Nutrients!$B$79,Nutrients!$EU$79,(IF($A$8=Nutrients!$B$77,Nutrients!$EU$77,Nutrients!$EU$78)))))*Q$8))","v":24000},{"$f":"(SUMPRODUCT(R$9:R$229,Nutrients!$EU$8:$EU$228)+(IF($A$7=Nutrients!$B$8,Nutrients!$EU$8,Nutrients!$EU$9)*R$7)+(((IF($A$8=Nutrients!$B$79,Nutrients!$EU$79,(IF($A$8=Nutrients!$B$77,Nutrients!$EU$77,Nutrients!$EU$78)))))*R$8))","v":20000},{"$f":"(SUMPRODUCT(S$9:S$229,Nutrients!$EU$8:$EU$228)+(IF($A$7=Nutrients!$B$8,Nutrients!$EU$8,Nutrients!$EU$9)*S$7)+(((IF($A$8=Nutrients!$B$79,Nutrients!$EU$79,(IF($A$8=Nutrients!$B$77,Nutrients!$EU$77,Nutrients!$EU$78)))))*S$8))","v":16000},{"$f":"(SUMPRODUCT(T$9:T$229,Nutrients!$EU$8:$EU$228)+(IF($A$7=Nutrients!$B$8,Nutrients!$EU$8,Nutrients!$EU$9)*T$7)+(((IF($A$8=Nutrients!$B$79,Nutrients!$EU$79,(IF($A$8=Nutrients!$B$77,Nutrients!$EU$77,Nutrients!$EU$78)))))*T$8))","v":12000},{"$f":"(SUMPRODUCT(U$9:U$229,Nutrients!$EU$8:$EU$228)+(IF($A$7=Nutrients!$B$8,Nutrients!$EU$8,Nutrients!$EU$9)*U$7)+(((IF($A$8=Nutrients!$B$79,Nutrients!$EU$79,(IF($A$8=Nutrients!$B$77,Nutrients!$EU$77,Nutrients!$EU$78)))))*U$8))","v":12000},null,{"$f":"(SUMPRODUCT(W$9:W$229,Nutrients!$EU$8:$EU$228)+(IF($A$7=Nutrients!$B$8,Nutrients!$EU$8,Nutrients!$EU$9)*W$7)+(((IF($A$8=Nutrients!$B$79,Nutrients!$EU$79,(IF($A$8=Nutrients!$B$77,Nutrients!$EU$77,Nutrients!$EU$78)))))*W$8))","v":24000},{"$f":"(SUMPRODUCT(X$9:X$229,Nutrients!$EU$8:$EU$228)+(IF($A$7=Nutrients!$B$8,Nutrients!$EU$8,Nutrients!$EU$9)*X$7)+(((IF($A$8=Nutrients!$B$79,Nutrients!$EU$79,(IF($A$8=Nutrients!$B$77,Nutrients!$EU$77,Nutrients!$EU$78)))))*X$8))","v":24000},{"$f":"(SUMPRODUCT(Y$9:Y$229,Nutrients!$EU$8:$EU$228)+(IF($A$7=Nutrients!$B$8,Nutrients!$EU$8,Nutrients!$EU$9)*Y$7)+(((IF($A$8=Nutrients!$B$79,Nutrients!$EU$79,(IF($A$8=Nutrients!$B$77,Nutrients!$EU$77,Nutrients!$EU$78)))))*Y$8))","v":20000},{"$f":"(SUMPRODUCT(Z$9:Z$229,Nutrients!$EU$8:$EU$228)+(IF($A$7=Nutrients!$B$8,Nutrients!$EU$8,Nutrients!$EU$9)*Z$7)+(((IF($A$8=Nutrients!$B$79,Nutrients!$EU$79,(IF($A$8=Nutrients!$B$77,Nutrients!$EU$77,Nutrients!$EU$78)))))*Z$8))","v":16000},{"$f":"(SUMPRODUCT(AA$9:AA$229,Nutrients!$EU$8:$EU$228)+(IF($A$7=Nutrients!$B$8,Nutrients!$EU$8,Nutrients!$EU$9)*AA$7)+(((IF($A$8=Nutrients!$B$79,Nutrients!$EU$79,(IF($A$8=Nutrients!$B$77,Nutrients!$EU$77,Nutrients!$EU$78)))))*AA$8))","v":12000},{"$f":"(SUMPRODUCT(AB$9:AB$229,Nutrients!$EU$8:$EU$228)+(IF($A$7=Nutrients!$B$8,Nutrients!$EU$8,Nutrients!$EU$9)*AB$7)+(((IF($A$8=Nutrients!$B$79,Nutrients!$EU$79,(IF($A$8=Nutrients!$B$77,Nutrients!$EU$77,Nutrients!$EU$78)))))*AB$8))","v":12000},null,{"$f":"(SUMPRODUCT(AD$9:AD$229,Nutrients!$EU$8:$EU$228)+(IF($A$7=Nutrients!$B$8,Nutrients!$EU$8,Nutrients!$EU$9)*AD$7)+(((IF($A$8=Nutrients!$B$79,Nutrients!$EU$79,(IF($A$8=Nutrients!$B$77,Nutrients!$EU$77,Nutrients!$EU$78)))))*AD$8))","v":24000},{"$f":"(SUMPRODUCT(AE$9:AE$229,Nutrients!$EU$8:$EU$228)+(IF($A$7=Nutrients!$B$8,Nutrients!$EU$8,Nutrients!$EU$9)*AE$7)+(((IF($A$8=Nutrients!$B$79,Nutrients!$EU$79,(IF($A$8=Nutrients!$B$77,Nutrients!$EU$77,Nutrients!$EU$78)))))*AE$8))","v":24000},{"$f":"(SUMPRODUCT(AF$9:AF$229,Nutrients!$EU$8:$EU$228)+(IF($A$7=Nutrients!$B$8,Nutrients!$EU$8,Nutrients!$EU$9)*AF$7)+(((IF($A$8=Nutrients!$B$79,Nutrients!$EU$79,(IF($A$8=Nutrients!$B$77,Nutrients!$EU$77,Nutrients!$EU$78)))))*AF$8))","v":20000},{"$f":"(SUMPRODUCT(AG$9:AG$229,Nutrients!$EU$8:$EU$228)+(IF($A$7=Nutrients!$B$8,Nutrients!$EU$8,Nutrients!$EU$9)*AG$7)+(((IF($A$8=Nutrients!$B$79,Nutrients!$EU$79,(IF($A$8=Nutrients!$B$77,Nutrients!$EU$77,Nutrients!$EU$78)))))*AG$8))","v":16000},{"$f":"(SUMPRODUCT(AH$9:AH$229,Nutrients!$EU$8:$EU$228)+(IF($A$7=Nutrients!$B$8,Nutrients!$EU$8,Nutrients!$EU$9)*AH$7)+(((IF($A$8=Nutrients!$B$79,Nutrients!$EU$79,(IF($A$8=Nutrients!$B$77,Nutrients!$EU$77,Nutrients!$EU$78)))))*AH$8))","v":12000},{"$f":"(SUMPRODUCT(AI$9:AI$229,Nutrients!$EU$8:$EU$228)+(IF($A$7=Nutrients!$B$8,Nutrients!$EU$8,Nutrients!$EU$9)*AI$7)+(((IF($A$8=Nutrients!$B$79,Nutrients!$EU$79,(IF($A$8=Nutrients!$B$77,Nutrients!$EU$77,Nutrients!$EU$78)))))*AI$8))","v":12000},null,{"$f":"(SUMPRODUCT(AK$9:AK$229,Nutrients!$EU$8:$EU$228)+(IF($A$7=Nutrients!$B$8,Nutrients!$EU$8,Nutrients!$EU$9)*AK$7)+(((IF($A$8=Nutrients!$B$79,Nutrients!$EU$79,(IF($A$8=Nutrients!$B$77,Nutrients!$EU$77,Nutrients!$EU$78)))))*AK$8))","v":24000},{"$f":"(SUMPRODUCT(AL$9:AL$229,Nutrients!$EU$8:$EU$228)+(IF($A$7=Nutrients!$B$8,Nutrients!$EU$8,Nutrients!$EU$9)*AL$7)+(((IF($A$8=Nutrients!$B$79,Nutrients!$EU$79,(IF($A$8=Nutrients!$B$77,Nutrients!$EU$77,Nutrients!$EU$78)))))*AL$8))","v":24000},{"$f":"(SUMPRODUCT(AM$9:AM$229,Nutrients!$EU$8:$EU$228)+(IF($A$7=Nutrients!$B$8,Nutrients!$EU$8,Nutrients!$EU$9)*AM$7)+(((IF($A$8=Nutrients!$B$79,Nutrients!$EU$79,(IF($A$8=Nutrients!$B$77,Nutrients!$EU$77,Nutrients!$EU$78)))))*AM$8))","v":20000},{"$f":"(SUMPRODUCT(AN$9:AN$229,Nutrients!$EU$8:$EU$228)+(IF($A$7=Nutrients!$B$8,Nutrients!$EU$8,Nutrients!$EU$9)*AN$7)+(((IF($A$8=Nutrients!$B$79,Nutrients!$EU$79,(IF($A$8=Nutrients!$B$77,Nutrients!$EU$77,Nutrients!$EU$78)))))*AN$8))","v":16000},{"$f":"(SUMPRODUCT(AO$9:AO$229,Nutrients!$EU$8:$EU$228)+(IF($A$7=Nutrients!$B$8,Nutrients!$EU$8,Nutrients!$EU$9)*AO$7)+(((IF($A$8=Nutrients!$B$79,Nutrients!$EU$79,(IF($A$8=Nutrients!$B$77,Nutrients!$EU$77,Nutrients!$EU$78)))))*AO$8))","v":12000},{"$f":"(SUMPRODUCT(AP$9:AP$229,Nutrients!$EU$8:$EU$228)+(IF($A$7=Nutrients!$B$8,Nutrients!$EU$8,Nutrients!$EU$9)*AP$7)+(((IF($A$8=Nutrients!$B$79,Nutrients!$EU$79,(IF($A$8=Nutrients!$B$77,Nutrients!$EU$77,Nutrients!$EU$78)))))*AP$8))","v":12000},null,{"$f":"(SUMPRODUCT(AR$9:AR$229,Nutrients!$EU$8:$EU$228)+(IF($A$7=Nutrients!$B$8,Nutrients!$EU$8,Nutrients!$EU$9)*AR$7)+(((IF($A$8=Nutrients!$B$79,Nutrients!$EU$79,(IF($A$8=Nutrients!$B$77,Nutrients!$EU$77,Nutrients!$EU$78)))))*AR$8))","v":24000},{"$f":"(SUMPRODUCT(AS$9:AS$229,Nutrients!$EU$8:$EU$228)+(IF($A$7=Nutrients!$B$8,Nutrients!$EU$8,Nutrients!$EU$9)*AS$7)+(((IF($A$8=Nutrients!$B$79,Nutrients!$EU$79,(IF($A$8=Nutrients!$B$77,Nutrients!$EU$77,Nutrients!$EU$78)))))*AS$8))","v":24000},{"$f":"(SUMPRODUCT(AT$9:AT$229,Nutrients!$EU$8:$EU$228)+(IF($A$7=Nutrients!$B$8,Nutrients!$EU$8,Nutrients!$EU$9)*AT$7)+(((IF($A$8=Nutrients!$B$79,Nutrients!$EU$79,(IF($A$8=Nutrients!$B$77,Nutrients!$EU$77,Nutrients!$EU$78)))))*AT$8))","v":20000},{"$f":"(SUMPRODUCT(AU$9:AU$229,Nutrients!$EU$8:$EU$228)+(IF($A$7=Nutrients!$B$8,Nutrients!$EU$8,Nutrients!$EU$9)*AU$7)+(((IF($A$8=Nutrients!$B$79,Nutrients!$EU$79,(IF($A$8=Nutrients!$B$77,Nutrients!$EU$77,Nutrients!$EU$78)))))*AU$8))","v":16000},{"$f":"(SUMPRODUCT(AV$9:AV$229,Nutrients!$EU$8:$EU$228)+(IF($A$7=Nutrients!$B$8,Nutrients!$EU$8,Nutrients!$EU$9)*AV$7)+(((IF($A$8=Nutrients!$B$79,Nutrients!$EU$79,(IF($A$8=Nutrients!$B$77,Nutrients!$EU$77,Nutrients!$EU$78)))))*AV$8))","v":12000},{"$f":"(SUMPRODUCT(AW$9:AW$229,Nutrients!$EU$8:$EU$228)+(IF($A$7=Nutrients!$B$8,Nutrients!$EU$8,Nutrients!$EU$9)*AW$7)+(((IF($A$8=Nutrients!$B$79,Nutrients!$EU$79,(IF($A$8=Nutrients!$B$77,Nutrients!$EU$77,Nutrients!$EU$78)))))*AW$8))","v":12000}]
["  Vit K (menadione), mg/ton",{"$f":"(SUMPRODUCT(B$9:B$229,Nutrients!$EV$8:$EV$228)+(IF($A$7=Nutrients!$B$8,Nutrients!$EV$8,Nutrients!$EV$9)*B$7)+(((IF($A$8=Nutrients!$B$79,Nutrients!$EV$79,(IF($A$8=Nutrients!$B$77,Nutrients!$EV$77,Nutrients!$EV$78)))))*B$8))","v":1800},{"$f":"(SUMPRODUCT(C$9:C$229,Nutrients!$EV$8:$EV$228)+(IF($A$7=Nutrients!$B$8,Nutrients!$EV$8,Nutrients!$EV$9)*C$7)+(((IF($A$8=Nutrients!$B$79,Nutrients!$EV$79,(IF($A$8=Nutrients!$B$77,Nutrients!$EV$77,Nutrients!$EV$78)))))*C$8))","v":1800},{"$f":"(SUMPRODUCT(D$9:D$229,Nutrients!$EV$8:$EV$228)+(IF($A$7=Nutrients!$B$8,Nutrients!$EV$8,Nutrients!$EV$9)*D$7)+(((IF($A$8=Nutrients!$B$79,Nutrients!$EV$79,(IF($A$8=Nutrients!$B$77,Nutrients!$EV$77,Nutrients!$EV$78)))))*D$8))","v":1500},{"$f":"(SUMPRODUCT(E$9:E$229,Nutrients!$EV$8:$EV$228)+(IF($A$7=Nutrients!$B$8,Nutrients!$EV$8,Nutrients!$EV$9)*E$7)+(((IF($A$8=Nutrients!$B$79,Nutrients!$EV$79,(IF($A$8=Nutrients!$B$77,Nutrients!$EV$77,Nutrients!$EV$78)))))*E$8))","v":1200},{"$f":"(SUMPRODUCT(F$9:F$229,Nutrients!$EV$8:$EV$228)+(IF($A$7=Nutrients!$B$8,Nutrients!$EV$8,Nutrients!$EV$9)*F$7)+(((IF($A$8=Nutrients!$B$79,Nutrients!$EV$79,(IF($A$8=Nutrients!$B$77,Nutrients!$EV$77,Nutrients!$EV$78)))))*F$8))","v":900},{"$f":"(SUMPRODUCT(G$9:G$229,Nutrients!$EV$8:$EV$228)+(IF($A$7=Nutrients!$B$8,Nutrients!$EV$8,Nutrients!$EV$9)*G$7)+(((IF($A$8=Nutrients!$B$79,Nutrients!$EV$79,(IF($A$8=Nutrients!$B$77,Nutrients!$EV$77,Nutrients!$EV$78)))))*G$8))","v":900},null,{"$f":"(SUMPRODUCT(I$9:I$229,Nutrients!$EV$8:$EV$228)+(IF($A$7=Nutrients!$B$8,Nutrients!$EV$8,Nutrients!$EV$9)*I$7)+(((IF($A$8=Nutrients!$B$79,Nutrients!$EV$79,(IF($A$8=Nutrients!$B$77,Nutrients!$EV$77,Nutrients!$EV$78)))))*I$8))","v":1800},{"$f":"(SUMPRODUCT(J$9:J$229,Nutrients!$EV$8:$EV$228)+(IF($A$7=Nutrients!$B$8,Nutrients!$EV$8,Nutrients!$EV$9)*J$7)+(((IF($A$8=Nutrients!$B$79,Nutrients!$EV$79,(IF($A$8=Nutrients!$B$77,Nutrients!$EV$77,Nutrients!$EV$78)))))*J$8))","v":1800},{"$f":"(SUMPRODUCT(K$9:K$229,Nutrients!$EV$8:$EV$228)+(IF($A$7=Nutrients!$B$8,Nutrients!$EV$8,Nutrients!$EV$9)*K$7)+(((IF($A$8=Nutrients!$B$79,Nutrients!$EV$79,(IF($A$8=Nutrients!$B$77,Nutrients!$EV$77,Nutrients!$EV$78)))))*K$8))","v":1500},{"$f":"(SUMPRODUCT(L$9:L$229,Nutrients!$EV$8:$EV$228)+(IF($A$7=Nutrients!$B$8,Nutrients!$EV$8,Nutrients!$EV$9)*L$7)+(((IF($A$8=Nutrients!$B$79,Nutrients!$EV$79,(IF($A$8=Nutrients!$B$77,Nutrients!$EV$77,Nutrients!$EV$78)))))*L$8))","v":1200},{"$f":"(SUMPRODUCT(M$9:M$229,Nutrients!$EV$8:$EV$228)+(IF($A$7=Nutrients!$B$8,Nutrients!$EV$8,Nutrients!$EV$9)*M$7)+(((IF($A$8=Nutrients!$B$79,Nutrients!$EV$79,(IF($A$8=Nutrients!$B$77,Nutrients!$EV$77,Nutrients!$EV$78)))))*M$8))","v":900},{"$f":"(SUMPRODUCT(N$9:N$229,Nutrients!$EV$8:$EV$228)+(IF($A$7=Nutrients!$B$8,Nutrients!$EV$8,Nutrients!$EV$9)*N$7)+(((IF($A$8=Nutrients!$B$79,Nutrients!$EV$79,(IF($A$8=Nutrients!$B$77,Nutrients!$EV$77,Nutrients!$EV$78)))))*N$8))","v":900},null,{"$f":"(SUMPRODUCT(P$9:P$229,Nutrients!$EV$8:$EV$228)+(IF($A$7=Nutrients!$B$8,Nutrients!$EV$8,Nutrients!$EV$9)*P$7)+(((IF($A$8=Nutrients!$B$79,Nutrients!$EV$79,(IF($A$8=Nutrients!$B$77,Nutrients!$EV$77,Nutrients!$EV$78)))))*P$8))","v":1800},{"$f":"(SUMPRODUCT(Q$9:Q$229,Nutrients!$EV$8:$EV$228)+(IF($A$7=Nutrients!$B$8,Nutrients!$EV$8,Nutrients!$EV$9)*Q$7)+(((IF($A$8=Nutrients!$B$79,Nutrients!$EV$79,(IF($A$8=Nutrients!$B$77,Nutrients!$EV$77,Nutrients!$EV$78)))))*Q$8))","v":1800},{"$f":"(SUMPRODUCT(R$9:R$229,Nutrients!$EV$8:$EV$228)+(IF($A$7=Nutrients!$B$8,Nutrients!$EV$8,Nutrients!$EV$9)*R$7)+(((IF($A$8=Nutrients!$B$79,Nutrients!$EV$79,(IF($A$8=Nutrients!$B$77,Nutrients!$EV$77,Nutrients!$EV$78)))))*R$8))","v":1500},{"$f":"(SUMPRODUCT(S$9:S$229,Nutrients!$EV$8:$EV$228)+(IF($A$7=Nutrients!$B$8,Nutrients!$EV$8,Nutrients!$EV$9)*S$7)+(((IF($A$8=Nutrients!$B$79,Nutrients!$EV$79,(IF($A$8=Nutrients!$B$77,Nutrients!$EV$77,Nutrients!$EV$78)))))*S$8))","v":1200},{"$f":"(SUMPRODUCT(T$9:T$229,Nutrients!$EV$8:$EV$228)+(IF($A$7=Nutrients!$B$8,Nutrients!$EV$8,Nutrients!$EV$9)*T$7)+(((IF($A$8=Nutrients!$B$79,Nutrients!$EV$79,(IF($A$8=Nutrients!$B$77,Nutrients!$EV$77,Nutrients!$EV$78)))))*T$8))","v":900},{"$f":"(SUMPRODUCT(U$9:U$229,Nutrients!$EV$8:$EV$228)+(IF($A$7=Nutrients!$B$8,Nutrients!$EV$8,Nutrients!$EV$9)*U$7)+(((IF($A$8=Nutrients!$B$79,Nutrients!$EV$79,(IF($A$8=Nutrients!$B$77,Nutrients!$EV$77,Nutrients!$EV$78)))))*U$8))","v":900},null,{"$f":"(SUMPRODUCT(W$9:W$229,Nutrients!$EV$8:$EV$228)+(IF($A$7=Nutrients!$B$8,Nutrients!$EV$8,Nutrients!$EV$9)*W$7)+(((IF($A$8=Nutrients!$B$79,Nutrients!$EV$79,(IF($A$8=Nutrients!$B$77,Nutrients!$EV$77,Nutrients!$EV$78)))))*W$8))","v":1800},{"$f":"(SUMPRODUCT(X$9:X$229,Nutrients!$EV$8:$EV$228)+(IF($A$7=Nutrients!$B$8,Nutrients!$EV$8,Nutrients!$EV$9)*X$7)+(((IF($A$8=Nutrients!$B$79,Nutrients!$EV$79,(IF($A$8=Nutrients!$B$77,Nutrients!$EV$77,Nutrients!$EV$78)))))*X$8))","v":1800},{"$f":"(SUMPRODUCT(Y$9:Y$229,Nutrients!$EV$8:$EV$228)+(IF($A$7=Nutrients!$B$8,Nutrients!$EV$8,Nutrients!$EV$9)*Y$7)+(((IF($A$8=Nutrients!$B$79,Nutrients!$EV$79,(IF($A$8=Nutrients!$B$77,Nutrients!$EV$77,Nutrients!$EV$78)))))*Y$8))","v":1500},{"$f":"(SUMPRODUCT(Z$9:Z$229,Nutrients!$EV$8:$EV$228)+(IF($A$7=Nutrients!$B$8,Nutrients!$EV$8,Nutrients!$EV$9)*Z$7)+(((IF($A$8=Nutrients!$B$79,Nutrients!$EV$79,(IF($A$8=Nutrients!$B$77,Nutrients!$EV$77,Nutrients!$EV$78)))))*Z$8))","v":1200},{"$f":"(SUMPRODUCT(AA$9:AA$229,Nutrients!$EV$8:$EV$228)+(IF($A$7=Nutrients!$B$8,Nutrients!$EV$8,Nutrients!$EV$9)*AA$7)+(((IF($A$8=Nutrients!$B$79,Nutrients!$EV$79,(IF($A$8=Nutrients!$B$77,Nutrients!$EV$77,Nutrients!$EV$78)))))*AA$8))","v":900},{"$f":"(SUMPRODUCT(AB$9:AB$229,Nutrients!$EV$8:$EV$228)+(IF($A$7=Nutrients!$B$8,Nutrients!$EV$8,Nutrients!$EV$9)*AB$7)+(((IF($A$8=Nutrients!$B$79,Nutrients!$EV$79,(IF($A$8=Nutrients!$B$77,Nutrients!$EV$77,Nutrients!$EV$78)))))*AB$8))","v":900},null,{"$f":"(SUMPRODUCT(AD$9:AD$229,Nutrients!$EV$8:$EV$228)+(IF($A$7=Nutrients!$B$8,Nutrients!$EV$8,Nutrients!$EV$9)*AD$7)+(((IF($A$8=Nutrients!$B$79,Nutrients!$EV$79,(IF($A$8=Nutrients!$B$77,Nutrients!$EV$77,Nutrients!$EV$78)))))*AD$8))","v":1800},{"$f":"(SUMPRODUCT(AE$9:AE$229,Nutrients!$EV$8:$EV$228)+(IF($A$7=Nutrients!$B$8,Nutrients!$EV$8,Nutrients!$EV$9)*AE$7)+(((IF($A$8=Nutrients!$B$79,Nutrients!$EV$79,(IF($A$8=Nutrients!$B$77,Nutrients!$EV$77,Nutrients!$EV$78)))))*AE$8))","v":1800},{"$f":"(SUMPRODUCT(AF$9:AF$229,Nutrients!$EV$8:$EV$228)+(IF($A$7=Nutrients!$B$8,Nutrients!$EV$8,Nutrients!$EV$9)*AF$7)+(((IF($A$8=Nutrients!$B$79,Nutrients!$EV$79,(IF($A$8=Nutrients!$B$77,Nutrients!$EV$77,Nutrients!$EV$78)))))*AF$8))","v":1500},{"$f":"(SUMPRODUCT(AG$9:AG$229,Nutrients!$EV$8:$EV$228)+(IF($A$7=Nutrients!$B$8,Nutrients!$EV$8,Nutrients!$EV$9)*AG$7)+(((IF($A$8=Nutrients!$B$79,Nutrients!$EV$79,(IF($A$8=Nutrients!$B$77,Nutrients!$EV$77,Nutrients!$EV$78)))))*AG$8))","v":1200},{"$f":"(SUMPRODUCT(AH$9:AH$229,Nutrients!$EV$8:$EV$228)+(IF($A$7=Nutrients!$B$8,Nutrients!$EV$8,Nutrients!$EV$9)*AH$7)+(((IF($A$8=Nutrients!$B$79,Nutrients!$EV$79,(IF($A$8=Nutrients!$B$77,Nutrients!$EV$77,Nutrients!$EV$78)))))*AH$8))","v":900},{"$f":"(SUMPRODUCT(AI$9:AI$229,Nutrients!$EV$8:$EV$228)+(IF($A$7=Nutrients!$B$8,Nutrients!$EV$8,Nutrients!$EV$9)*AI$7)+(((IF($A$8=Nutrients!$B$79,Nutrients!$EV$79,(IF($A$8=Nutrients!$B$77,Nutrients!$EV$77,Nutrients!$EV$78)))))*AI$8))","v":900},null,{"$f":"(SUMPRODUCT(AK$9:AK$229,Nutrients!$EV$8:$EV$228)+(IF($A$7=Nutrients!$B$8,Nutrients!$EV$8,Nutrients!$EV$9)*AK$7)+(((IF($A$8=Nutrients!$B$79,Nutrients!$EV$79,(IF($A$8=Nutrients!$B$77,Nutrients!$EV$77,Nutrients!$EV$78)))))*AK$8))","v":1800},{"$f":"(SUMPRODUCT(AL$9:AL$229,Nutrients!$EV$8:$EV$228)+(IF($A$7=Nutrients!$B$8,Nutrients!$EV$8,Nutrients!$EV$9)*AL$7)+(((IF($A$8=Nutrients!$B$79,Nutrients!$EV$79,(IF($A$8=Nutrients!$B$77,Nutrients!$EV$77,Nutrients!$EV$78)))))*AL$8))","v":1800},{"$f":"(SUMPRODUCT(AM$9:AM$229,Nutrients!$EV$8:$EV$228)+(IF($A$7=Nutrients!$B$8,Nutrients!$EV$8,Nutrients!$EV$9)*AM$7)+(((IF($A$8=Nutrients!$B$79,Nutrients!$EV$79,(IF($A$8=Nutrients!$B$77,Nutrients!$EV$77,Nutrients!$EV$78)))))*AM$8))","v":1500},{"$f":"(SUMPRODUCT(AN$9:AN$229,Nutrients!$EV$8:$EV$228)+(IF($A$7=Nutrients!$B$8,Nutrients!$EV$8,Nutrients!$EV$9)*AN$7)+(((IF($A$8=Nutrients!$B$79,Nutrients!$EV$79,(IF($A$8=Nutrients!$B$77,Nutrients!$EV$77,Nutrients!$EV$78)))))*AN$8))","v":1200},{"$f":"(SUMPRODUCT(AO$9:AO$229,Nutrients!$EV$8:$EV$228)+(IF($A$7=Nutrients!$B$8,Nutrients!$EV$8,Nutrients!$EV$9)*AO$7)+(((IF($A$8=Nutrients!$B$79,Nutrients!$EV$79,(IF($A$8=Nutrients!$B$77,Nutrients!$EV$77,Nutrients!$EV$78)))))*AO$8))","v":900},{"$f":"(SUMPRODUCT(AP$9:AP$229,Nutrients!$EV$8:$EV$228)+(IF($A$7=Nutrients!$B$8,Nutrients!$EV$8,Nutrients!$EV$9)*AP$7)+(((IF($A$8=Nutrients!$B$79,Nutrients!$EV$79,(IF($A$8=Nutrients!$B$77,Nutrients!$EV$77,Nutrients!$EV$78)))))*AP$8))","v":900},null,{"$f":"(SUMPRODUCT(AR$9:AR$229,Nutrients!$EV$8:$EV$228)+(IF($A$7=Nutrients!$B$8,Nutrients!$EV$8,Nutrients!$EV$9)*AR$7)+(((IF($A$8=Nutrients!$B$79,Nutrients!$EV$79,(IF($A$8=Nutrients!$B$77,Nutrients!$EV$77,Nutrients!$EV$78)))))*AR$8))","v":1800},{"$f":"(SUMPRODUCT(AS$9:AS$229,Nutrients!$EV$8:$EV$228)+(IF($A$7=Nutrients!$B$8,Nutrients!$EV$8,Nutrients!$EV$9)*AS$7)+(((IF($A$8=Nutrients!$B$79,Nutrients!$EV$79,(IF($A$8=Nutrients!$B$77,Nutrients!$EV$77,Nutrients!$EV$78)))))*AS$8))","v":1800},{"$f":"(SUMPRODUCT(AT$9:AT$229,Nutrients!$EV$8:$EV$228)+(IF($A$7=Nutrients!$B$8,Nutrients!$EV$8,Nutrients!$EV$9)*AT$7)+(((IF($A$8=Nutrients!$B$79,Nutrients!$EV$79,(IF($A$8=Nutrients!$B$77,Nutrients!$EV$77,Nutrients!$EV$78)))))*AT$8))","v":1500},{"$f":"(SUMPRODUCT(AU$9:AU$229,Nutrients!$EV$8:$EV$228)+(IF($A$7=Nutrients!$B$8,Nutrients!$EV$8,Nutrients!$EV$9)*AU$7)+(((IF($A$8=Nutrients!$B$79,Nutrients!$EV$79,(IF($A$8=Nutrients!$B$77,Nutrients!$EV$77,Nutrients!$EV$78)))))*AU$8))","v":1200},{"$f":"(SUMPRODUCT(AV$9:AV$229,Nutrients!$EV$8:$EV$228)+(IF($A$7=Nutrients!$B$8,Nutrients!$EV$8,Nutrients!$EV$9)*AV$7)+(((IF($A$8=Nutrients!$B$79,Nutrients!$EV$79,(IF($A$8=Nutrients!$B$77,Nutrients!$EV$77,Nutrients!$EV$78)))))*AV$8))","v":900},{"$f":"(SUMPRODUCT(AW$9:AW$229,Nutrients!$EV$8:$EV$228)+(IF($A$7=Nutrients!$B$8,Nutrients!$EV$8,Nutrients!$EV$9)*AW$7)+(((IF($A$8=Nutrients!$B$79,Nutrients!$EV$79,(IF($A$8=Nutrients!$B$77,Nutrients!$EV$77,Nutrients!$EV$78)))))*AW$8))","v":900}]
["  Vit B12, mg/ton",{"$f":"(SUMPRODUCT(B$9:B$229,Nutrients!$EW$8:$EW$228)+(IF($A$7=Nutrients!$B$8,Nutrients!$EW$8,Nutrients!$EW$9)*B$7)+(((IF($A$8=Nutrients!$B$79,Nutrients!$EW$79,(IF($A$8=Nutrients!$B$77,Nutrients!$EW$77,Nutrients!$EW$78)))))*B$8))","v":18},{"$f":"(SUMPRODUCT(C$9:C$229,Nutrients!$EW$8:$EW$228)+(IF($A$7=Nutrients!$B$8,Nutrients!$EW$8,Nutrients!$EW$9)*C$7)+(((IF($A$8=Nutrients!$B$79,Nutrients!$EW$79,(IF($A$8=Nutrients!$B$77,Nutrients!$EW$77,Nutrients!$EW$78)))))*C$8))","v":18},{"$f":"(SUMPRODUCT(D$9:D$229,Nutrients!$EW$8:$EW$228)+(IF($A$7=Nutrients!$B$8,Nutrients!$EW$8,Nutrients!$EW$9)*D$7)+(((IF($A$8=Nutrients!$B$79,Nutrients!$EW$79,(IF($A$8=Nutrients!$B$77,Nutrients!$EW$77,Nutrients!$EW$78)))))*D$8))","v":15},{"$f":"(SUMPRODUCT(E$9:E$229,Nutrients!$EW$8:$EW$228)+(IF($A$7=Nutrients!$B$8,Nutrients!$EW$8,Nutrients!$EW$9)*E$7)+(((IF($A$8=Nutrients!$B$79,Nutrients!$EW$79,(IF($A$8=Nutrients!$B$77,Nutrients!$EW$77,Nutrients!$EW$78)))))*E$8))","v":12},{"$f":"(SUMPRODUCT(F$9:F$229,Nutrients!$EW$8:$EW$228)+(IF($A$7=Nutrients!$B$8,Nutrients!$EW$8,Nutrients!$EW$9)*F$7)+(((IF($A$8=Nutrients!$B$79,Nutrients!$EW$79,(IF($A$8=Nutrients!$B$77,Nutrients!$EW$77,Nutrients!$EW$78)))))*F$8))","v":9},{"$f":"(SUMPRODUCT(G$9:G$229,Nutrients!$EW$8:$EW$228)+(IF($A$7=Nutrients!$B$8,Nutrients!$EW$8,Nutrients!$EW$9)*G$7)+(((IF($A$8=Nutrients!$B$79,Nutrients!$EW$79,(IF($A$8=Nutrients!$B$77,Nutrients!$EW$77,Nutrients!$EW$78)))))*G$8))","v":9},null,{"$f":"(SUMPRODUCT(I$9:I$229,Nutrients!$EW$8:$EW$228)+(IF($A$7=Nutrients!$B$8,Nutrients!$EW$8,Nutrients!$EW$9)*I$7)+(((IF($A$8=Nutrients!$B$79,Nutrients!$EW$79,(IF($A$8=Nutrients!$B$77,Nutrients!$EW$77,Nutrients!$EW$78)))))*I$8))","v":18},{"$f":"(SUMPRODUCT(J$9:J$229,Nutrients!$EW$8:$EW$228)+(IF($A$7=Nutrients!$B$8,Nutrients!$EW$8,Nutrients!$EW$9)*J$7)+(((IF($A$8=Nutrients!$B$79,Nutrients!$EW$79,(IF($A$8=Nutrients!$B$77,Nutrients!$EW$77,Nutrients!$EW$78)))))*J$8))","v":18},{"$f":"(SUMPRODUCT(K$9:K$229,Nutrients!$EW$8:$EW$228)+(IF($A$7=Nutrients!$B$8,Nutrients!$EW$8,Nutrients!$EW$9)*K$7)+(((IF($A$8=Nutrients!$B$79,Nutrients!$EW$79,(IF($A$8=Nutrients!$B$77,Nutrients!$EW$77,Nutrients!$EW$78)))))*K$8))","v":15},{"$f":"(SUMPRODUCT(L$9:L$229,Nutrients!$EW$8:$EW$228)+(IF($A$7=Nutrients!$B$8,Nutrients!$EW$8,Nutrients!$EW$9)*L$7)+(((IF($A$8=Nutrients!$B$79,Nutrients!$EW$79,(IF($A$8=Nutrients!$B$77,Nutrients!$EW$77,Nutrients!$EW$78)))))*L$8))","v":12},{"$f":"(SUMPRODUCT(M$9:M$229,Nutrients!$EW$8:$EW$228)+(IF($A$7=Nutrients!$B$8,Nutrients!$EW$8,Nutrients!$EW$9)*M$7)+(((IF($A$8=Nutrients!$B$79,Nutrients!$EW$79,(IF($A$8=Nutrients!$B$77,Nutrients!$EW$77,Nutrients!$EW$78)))))*M$8))","v":9},{"$f":"(SUMPRODUCT(N$9:N$229,Nutrients!$EW$8:$EW$228)+(IF($A$7=Nutrients!$B$8,Nutrients!$EW$8,Nutrients!$EW$9)*N$7)+(((IF($A$8=Nutrients!$B$79,Nutrients!$EW$79,(IF($A$8=Nutrients!$B$77,Nutrients!$EW$77,Nutrients!$EW$78)))))*N$8))","v":9},null,{"$f":"(SUMPRODUCT(P$9:P$229,Nutrients!$EW$8:$EW$228)+(IF($A$7=Nutrients!$B$8,Nutrients!$EW$8,Nutrients!$EW$9)*P$7)+(((IF($A$8=Nutrients!$B$79,Nutrients!$EW$79,(IF($A$8=Nutrients!$B$77,Nutrients!$EW$77,Nutrients!$EW$78)))))*P$8))","v":18},{"$f":"(SUMPRODUCT(Q$9:Q$229,Nutrients!$EW$8:$EW$228)+(IF($A$7=Nutrients!$B$8,Nutrients!$EW$8,Nutrients!$EW$9)*Q$7)+(((IF($A$8=Nutrients!$B$79,Nutrients!$EW$79,(IF($A$8=Nutrients!$B$77,Nutrients!$EW$77,Nutrients!$EW$78)))))*Q$8))","v":18},{"$f":"(SUMPRODUCT(R$9:R$229,Nutrients!$EW$8:$EW$228)+(IF($A$7=Nutrients!$B$8,Nutrients!$EW$8,Nutrients!$EW$9)*R$7)+(((IF($A$8=Nutrients!$B$79,Nutrients!$EW$79,(IF($A$8=Nutrients!$B$77,Nutrients!$EW$77,Nutrients!$EW$78)))))*R$8))","v":15},{"$f":"(SUMPRODUCT(S$9:S$229,Nutrients!$EW$8:$EW$228)+(IF($A$7=Nutrients!$B$8,Nutrients!$EW$8,Nutrients!$EW$9)*S$7)+(((IF($A$8=Nutrients!$B$79,Nutrients!$EW$79,(IF($A$8=Nutrients!$B$77,Nutrients!$EW$77,Nutrients!$EW$78)))))*S$8))","v":12},{"$f":"(SUMPRODUCT(T$9:T$229,Nutrients!$EW$8:$EW$228)+(IF($A$7=Nutrients!$B$8,Nutrients!$EW$8,Nutrients!$EW$9)*T$7)+(((IF($A$8=Nutrients!$B$79,Nutrients!$EW$79,(IF($A$8=Nutrients!$B$77,Nutrients!$EW$77,Nutrients!$EW$78)))))*T$8))","v":9},{"$f":"(SUMPRODUCT(U$9:U$229,Nutrients!$EW$8:$EW$228)+(IF($A$7=Nutrients!$B$8,Nutrients!$EW$8,Nutrients!$EW$9)*U$7)+(((IF($A$8=Nutrients!$B$79,Nutrients!$EW$79,(IF($A$8=Nutrients!$B$77,Nutrients!$EW$77,Nutrients!$EW$78)))))*U$8))","v":9},null,{"$f":"(SUMPRODUCT(W$9:W$229,Nutrients!$EW$8:$EW$228)+(IF($A$7=Nutrients!$B$8,Nutrients!$EW$8,Nutrients!$EW$9)*W$7)+(((IF($A$8=Nutrients!$B$79,Nutrients!$EW$79,(IF($A$8=Nutrients!$B$77,Nutrients!$EW$77,Nutrients!$EW$78)))))*W$8))","v":18},{"$f":"(SUMPRODUCT(X$9:X$229,Nutrients!$EW$8:$EW$228)+(IF($A$7=Nutrients!$B$8,Nutrients!$EW$8,Nutrients!$EW$9)*X$7)+(((IF($A$8=Nutrients!$B$79,Nutrients!$EW$79,(IF($A$8=Nutrients!$B$77,Nutrients!$EW$77,Nutrients!$EW$78)))))*X$8))","v":18},{"$f":"(SUMPRODUCT(Y$9:Y$229,Nutrients!$EW$8:$EW$228)+(IF($A$7=Nutrients!$B$8,Nutrients!$EW$8,Nutrients!$EW$9)*Y$7)+(((IF($A$8=Nutrients!$B$79,Nutrients!$EW$79,(IF($A$8=Nutrients!$B$77,Nutrients!$EW$77,Nutrients!$EW$78)))))*Y$8))","v":15},{"$f":"(SUMPRODUCT(Z$9:Z$229,Nutrients!$EW$8:$EW$228)+(IF($A$7=Nutrients!$B$8,Nutrients!$EW$8,Nutrients!$EW$9)*Z$7)+(((IF($A$8=Nutrients!$B$79,Nutrients!$EW$79,(IF($A$8=Nutrients!$B$77,Nutrients!$EW$77,Nutrients!$EW$78)))))*Z$8))","v":12},{"$f":"(SUMPRODUCT(AA$9:AA$229,Nutrients!$EW$8:$EW$228)+(IF($A$7=Nutrients!$B$8,Nutrients!$EW$8,Nutrients!$EW$9)*AA$7)+(((IF($A$8=Nutrients!$B$79,Nutrients!$EW$79,(IF($A$8=Nutrients!$B$77,Nutrients!$EW$77,Nutrients!$EW$78)))))*AA$8))","v":9},{"$f":"(SUMPRODUCT(AB$9:AB$229,Nutrients!$EW$8:$EW$228)+(IF($A$7=Nutrients!$B$8,Nutrients!$EW$8,Nutrients!$EW$9)*AB$7)+(((IF($A$8=Nutrients!$B$79,Nutrients!$EW$79,(IF($A$8=Nutrients!$B$77,Nutrients!$EW$77,Nutrients!$EW$78)))))*AB$8))","v":9},null,{"$f":"(SUMPRODUCT(AD$9:AD$229,Nutrients!$EW$8:$EW$228)+(IF($A$7=Nutrients!$B$8,Nutrients!$EW$8,Nutrients!$EW$9)*AD$7)+(((IF($A$8=Nutrients!$B$79,Nutrients!$EW$79,(IF($A$8=Nutrients!$B$77,Nutrients!$EW$77,Nutrients!$EW$78)))))*AD$8))","v":18},{"$f":"(SUMPRODUCT(AE$9:AE$229,Nutrients!$EW$8:$EW$228)+(IF($A$7=Nutrients!$B$8,Nutrients!$EW$8,Nutrients!$EW$9)*AE$7)+(((IF($A$8=Nutrients!$B$79,Nutrients!$EW$79,(IF($A$8=Nutrients!$B$77,Nutrients!$EW$77,Nutrients!$EW$78)))))*AE$8))","v":18},{"$f":"(SUMPRODUCT(AF$9:AF$229,Nutrients!$EW$8:$EW$228)+(IF($A$7=Nutrients!$B$8,Nutrients!$EW$8,Nutrients!$EW$9)*AF$7)+(((IF($A$8=Nutrients!$B$79,Nutrients!$EW$79,(IF($A$8=Nutrients!$B$77,Nutrients!$EW$77,Nutrients!$EW$78)))))*AF$8))","v":15},{"$f":"(SUMPRODUCT(AG$9:AG$229,Nutrients!$EW$8:$EW$228)+(IF($A$7=Nutrients!$B$8,Nutrients!$EW$8,Nutrients!$EW$9)*AG$7)+(((IF($A$8=Nutrients!$B$79,Nutrients!$EW$79,(IF($A$8=Nutrients!$B$77,Nutrients!$EW$77,Nutrients!$EW$78)))))*AG$8))","v":12},{"$f":"(SUMPRODUCT(AH$9:AH$229,Nutrients!$EW$8:$EW$228)+(IF($A$7=Nutrients!$B$8,Nutrients!$EW$8,Nutrients!$EW$9)*AH$7)+(((IF($A$8=Nutrients!$B$79,Nutrients!$EW$79,(IF($A$8=Nutrients!$B$77,Nutrients!$EW$77,Nutrients!$EW$78)))))*AH$8))","v":9},{"$f":"(SUMPRODUCT(AI$9:AI$229,Nutrients!$EW$8:$EW$228)+(IF($A$7=Nutrients!$B$8,Nutrients!$EW$8,Nutrients!$EW$9)*AI$7)+(((IF($A$8=Nutrients!$B$79,Nutrients!$EW$79,(IF($A$8=Nutrients!$B$77,Nutrients!$EW$77,Nutrients!$EW$78)))))*AI$8))","v":9},null,{"$f":"(SUMPRODUCT(AK$9:AK$229,Nutrients!$EW$8:$EW$228)+(IF($A$7=Nutrients!$B$8,Nutrients!$EW$8,Nutrients!$EW$9)*AK$7)+(((IF($A$8=Nutrients!$B$79,Nutrients!$EW$79,(IF($A$8=Nutrients!$B$77,Nutrients!$EW$77,Nutrients!$EW$78)))))*AK$8))","v":18},{"$f":"(SUMPRODUCT(AL$9:AL$229,Nutrients!$EW$8:$EW$228)+(IF($A$7=Nutrients!$B$8,Nutrients!$EW$8,Nutrients!$EW$9)*AL$7)+(((IF($A$8=Nutrients!$B$79,Nutrients!$EW$79,(IF($A$8=Nutrients!$B$77,Nutrients!$EW$77,Nutrients!$EW$78)))))*AL$8))","v":18},{"$f":"(SUMPRODUCT(AM$9:AM$229,Nutrients!$EW$8:$EW$228)+(IF($A$7=Nutrients!$B$8,Nutrients!$EW$8,Nutrients!$EW$9)*AM$7)+(((IF($A$8=Nutrients!$B$79,Nutrients!$EW$79,(IF($A$8=Nutrients!$B$77,Nutrients!$EW$77,Nutrients!$EW$78)))))*AM$8))","v":15},{"$f":"(SUMPRODUCT(AN$9:AN$229,Nutrients!$EW$8:$EW$228)+(IF($A$7=Nutrients!$B$8,Nutrients!$EW$8,Nutrients!$EW$9)*AN$7)+(((IF($A$8=Nutrients!$B$79,Nutrients!$EW$79,(IF($A$8=Nutrients!$B$77,Nutrients!$EW$77,Nutrients!$EW$78)))))*AN$8))","v":12},{"$f":"(SUMPRODUCT(AO$9:AO$229,Nutrients!$EW$8:$EW$228)+(IF($A$7=Nutrients!$B$8,Nutrients!$EW$8,Nutrients!$EW$9)*AO$7)+(((IF($A$8=Nutrients!$B$79,Nutrients!$EW$79,(IF($A$8=Nutrients!$B$77,Nutrients!$EW$77,Nutrients!$EW$78)))))*AO$8))","v":9},{"$f":"(SUMPRODUCT(AP$9:AP$229,Nutrients!$EW$8:$EW$228)+(IF($A$7=Nutrients!$B$8,Nutrients!$EW$8,Nutrients!$EW$9)*AP$7)+(((IF($A$8=Nutrients!$B$79,Nutrients!$EW$79,(IF($A$8=Nutrients!$B$77,Nutrients!$EW$77,Nutrients!$EW$78)))))*AP$8))","v":9},null,{"$f":"(SUMPRODUCT(AR$9:AR$229,Nutrients!$EW$8:$EW$228)+(IF($A$7=Nutrients!$B$8,Nutrients!$EW$8,Nutrients!$EW$9)*AR$7)+(((IF($A$8=Nutrients!$B$79,Nutrients!$EW$79,(IF($A$8=Nutrients!$B$77,Nutrients!$EW$77,Nutrients!$EW$78)))))*AR$8))","v":18},{"$f":"(SUMPRODUCT(AS$9:AS$229,Nutrients!$EW$8:$EW$228)+(IF($A$7=Nutrients!$B$8,Nutrients!$EW$8,Nutrients!$EW$9)*AS$7)+(((IF($A$8=Nutrients!$B$79,Nutrients!$EW$79,(IF($A$8=Nutrients!$B$77,Nutrients!$EW$77,Nutrients!$EW$78)))))*AS$8))","v":18},{"$f":"(SUMPRODUCT(AT$9:AT$229,Nutrients!$EW$8:$EW$228)+(IF($A$7=Nutrients!$B$8,Nutrients!$EW$8,Nutrients!$EW$9)*AT$7)+(((IF($A$8=Nutrients!$B$79,Nutrients!$EW$79,(IF($A$8=Nutrients!$B$77,Nutrients!$EW$77,Nutrients!$EW$78)))))*AT$8))","v":15},{"$f":"(SUMPRODUCT(AU$9:AU$229,Nutrients!$EW$8:$EW$228)+(IF($A$7=Nutrients!$B$8,Nutrients!$EW$8,Nutrients!$EW$9)*AU$7)+(((IF($A$8=Nutrients!$B$79,Nutrients!$EW$79,(IF($A$8=Nutrients!$B$77,Nutrients!$EW$77,Nutrients!$EW$78)))))*AU$8))","v":12},{"$f":"(SUMPRODUCT(AV$9:AV$229,Nutrients!$EW$8:$EW$228)+(IF($A$7=Nutrients!$B$8,Nutrients!$EW$8,Nutrients!$EW$9)*AV$7)+(((IF($A$8=Nutrients!$B$79,Nutrients!$EW$79,(IF($A$8=Nutrients!$B$77,Nutrients!$EW$77,Nutrients!$EW$78)))))*AV$8))","v":9},{"$f":"(SUMPRODUCT(AW$9:AW$229,Nutrients!$EW$8:$EW$228)+(IF($A$7=Nutrients!$B$8,Nutrients!$EW$8,Nutrients!$EW$9)*AW$7)+(((IF($A$8=Nutrients!$B$79,Nutrients!$EW$79,(IF($A$8=Nutrients!$B$77,Nutrients!$EW$77,Nutrients!$EW$78)))))*AW$8))","v":9}]
["  Niacin, mg/ton",{"$f":"(SUMPRODUCT(B$9:B$229,Nutrients!$EX$8:$EX$228)+(IF($A$7=Nutrients!$B$8,Nutrients!$EX$8,Nutrients!$EX$9)*B$7)+(((IF($A$8=Nutrients!$B$79,Nutrients!$EX$79,(IF($A$8=Nutrients!$B$77,Nutrients!$EX$77,Nutrients!$EX$78)))))*B$8))","v":27000},{"$f":"(SUMPRODUCT(C$9:C$229,Nutrients!$EX$8:$EX$228)+(IF($A$7=Nutrients!$B$8,Nutrients!$EX$8,Nutrients!$EX$9)*C$7)+(((IF($A$8=Nutrients!$B$79,Nutrients!$EX$79,(IF($A$8=Nutrients!$B$77,Nutrients!$EX$77,Nutrients!$EX$78)))))*C$8))","v":27000},{"$f":"(SUMPRODUCT(D$9:D$229,Nutrients!$EX$8:$EX$228)+(IF($A$7=Nutrients!$B$8,Nutrients!$EX$8,Nutrients!$EX$9)*D$7)+(((IF($A$8=Nutrients!$B$79,Nutrients!$EX$79,(IF($A$8=Nutrients!$B$77,Nutrients!$EX$77,Nutrients!$EX$78)))))*D$8))","v":22500},{"$f":"(SUMPRODUCT(E$9:E$229,Nutrients!$EX$8:$EX$228)+(IF($A$7=Nutrients!$B$8,Nutrients!$EX$8,Nutrients!$EX$9)*E$7)+(((IF($A$8=Nutrients!$B$79,Nutrients!$EX$79,(IF($A$8=Nutrients!$B$77,Nutrients!$EX$77,Nutrients!$EX$78)))))*E$8))","v":18000},{"$f":"(SUMPRODUCT(F$9:F$229,Nutrients!$EX$8:$EX$228)+(IF($A$7=Nutrients!$B$8,Nutrients!$EX$8,Nutrients!$EX$9)*F$7)+(((IF($A$8=Nutrients!$B$79,Nutrients!$EX$79,(IF($A$8=Nutrients!$B$77,Nutrients!$EX$77,Nutrients!$EX$78)))))*F$8))","v":13500},{"$f":"(SUMPRODUCT(G$9:G$229,Nutrients!$EX$8:$EX$228)+(IF($A$7=Nutrients!$B$8,Nutrients!$EX$8,Nutrients!$EX$9)*G$7)+(((IF($A$8=Nutrients!$B$79,Nutrients!$EX$79,(IF($A$8=Nutrients!$B$77,Nutrients!$EX$77,Nutrients!$EX$78)))))*G$8))","v":13500},null,{"$f":"(SUMPRODUCT(I$9:I$229,Nutrients!$EX$8:$EX$228)+(IF($A$7=Nutrients!$B$8,Nutrients!$EX$8,Nutrients!$EX$9)*I$7)+(((IF($A$8=Nutrients!$B$79,Nutrients!$EX$79,(IF($A$8=Nutrients!$B$77,Nutrients!$EX$77,Nutrients!$EX$78)))))*I$8))","v":27000},{"$f":"(SUMPRODUCT(J$9:J$229,Nutrients!$EX$8:$EX$228)+(IF($A$7=Nutrients!$B$8,Nutrients!$EX$8,Nutrients!$EX$9)*J$7)+(((IF($A$8=Nutrients!$B$79,Nutrients!$EX$79,(IF($A$8=Nutrients!$B$77,Nutrients!$EX$77,Nutrients!$EX$78)))))*J$8))","v":27000},{"$f":"(SUMPRODUCT(K$9:K$229,Nutrients!$EX$8:$EX$228)+(IF($A$7=Nutrients!$B$8,Nutrients!$EX$8,Nutrients!$EX$9)*K$7)+(((IF($A$8=Nutrients!$B$79,Nutrients!$EX$79,(IF($A$8=Nutrients!$B$77,Nutrients!$EX$77,Nutrients!$EX$78)))))*K$8))","v":22500},{"$f":"(SUMPRODUCT(L$9:L$229,Nutrients!$EX$8:$EX$228)+(IF($A$7=Nutrients!$B$8,Nutrients!$EX$8,Nutrients!$EX$9)*L$7)+(((IF($A$8=Nutrients!$B$79,Nutrients!$EX$79,(IF($A$8=Nutrients!$B$77,Nutrients!$EX$77,Nutrients!$EX$78)))))*L$8))","v":18000},{"$f":"(SUMPRODUCT(M$9:M$229,Nutrients!$EX$8:$EX$228)+(IF($A$7=Nutrients!$B$8,Nutrients!$EX$8,Nutrients!$EX$9)*M$7)+(((IF($A$8=Nutrients!$B$79,Nutrients!$EX$79,(IF($A$8=Nutrients!$B$77,Nutrients!$EX$77,Nutrients!$EX$78)))))*M$8))","v":13500},{"$f":"(SUMPRODUCT(N$9:N$229,Nutrients!$EX$8:$EX$228)+(IF($A$7=Nutrients!$B$8,Nutrients!$EX$8,Nutrients!$EX$9)*N$7)+(((IF($A$8=Nutrients!$B$79,Nutrients!$EX$79,(IF($A$8=Nutrients!$B$77,Nutrients!$EX$77,Nutrients!$EX$78)))))*N$8))","v":13500},null,{"$f":"(SUMPRODUCT(P$9:P$229,Nutrients!$EX$8:$EX$228)+(IF($A$7=Nutrients!$B$8,Nutrients!$EX$8,Nutrients!$EX$9)*P$7)+(((IF($A$8=Nutrients!$B$79,Nutrients!$EX$79,(IF($A$8=Nutrients!$B$77,Nutrients!$EX$77,Nutrients!$EX$78)))))*P$8))","v":27000},{"$f":"(SUMPRODUCT(Q$9:Q$229,Nutrients!$EX$8:$EX$228)+(IF($A$7=Nutrients!$B$8,Nutrients!$EX$8,Nutrients!$EX$9)*Q$7)+(((IF($A$8=Nutrients!$B$79,Nutrients!$EX$79,(IF($A$8=Nutrients!$B$77,Nutrients!$EX$77,Nutrients!$EX$78)))))*Q$8))","v":27000},{"$f":"(SUMPRODUCT(R$9:R$229,Nutrients!$EX$8:$EX$228)+(IF($A$7=Nutrients!$B$8,Nutrients!$EX$8,Nutrients!$EX$9)*R$7)+(((IF($A$8=Nutrients!$B$79,Nutrients!$EX$79,(IF($A$8=Nutrients!$B$77,Nutrients!$EX$77,Nutrients!$EX$78)))))*R$8))","v":22500},{"$f":"(SUMPRODUCT(S$9:S$229,Nutrients!$EX$8:$EX$228)+(IF($A$7=Nutrients!$B$8,Nutrients!$EX$8,Nutrients!$EX$9)*S$7)+(((IF($A$8=Nutrients!$B$79,Nutrients!$EX$79,(IF($A$8=Nutrients!$B$77,Nutrients!$EX$77,Nutrients!$EX$78)))))*S$8))","v":18000},{"$f":"(SUMPRODUCT(T$9:T$229,Nutrients!$EX$8:$EX$228)+(IF($A$7=Nutrients!$B$8,Nutrients!$EX$8,Nutrients!$EX$9)*T$7)+(((IF($A$8=Nutrients!$B$79,Nutrients!$EX$79,(IF($A$8=Nutrients!$B$77,Nutrients!$EX$77,Nutrients!$EX$78)))))*T$8))","v":13500},{"$f":"(SUMPRODUCT(U$9:U$229,Nutrients!$EX$8:$EX$228)+(IF($A$7=Nutrients!$B$8,Nutrients!$EX$8,Nutrients!$EX$9)*U$7)+(((IF($A$8=Nutrients!$B$79,Nutrients!$EX$79,(IF($A$8=Nutrients!$B$77,Nutrients!$EX$77,Nutrients!$EX$78)))))*U$8))","v":13500},null,{"$f":"(SUMPRODUCT(W$9:W$229,Nutrients!$EX$8:$EX$228)+(IF($A$7=Nutrients!$B$8,Nutrients!$EX$8,Nutrients!$EX$9)*W$7)+(((IF($A$8=Nutrients!$B$79,Nutrients!$EX$79,(IF($A$8=Nutrients!$B$77,Nutrients!$EX$77,Nutrients!$EX$78)))))*W$8))","v":27000},{"$f":"(SUMPRODUCT(X$9:X$229,Nutrients!$EX$8:$EX$228)+(IF($A$7=Nutrients!$B$8,Nutrients!$EX$8,Nutrients!$EX$9)*X$7)+(((IF($A$8=Nutrients!$B$79,Nutrients!$EX$79,(IF($A$8=Nutrients!$B$77,Nutrients!$EX$77,Nutrients!$EX$78)))))*X$8))","v":27000},{"$f":"(SUMPRODUCT(Y$9:Y$229,Nutrients!$EX$8:$EX$228)+(IF($A$7=Nutrients!$B$8,Nutrients!$EX$8,Nutrients!$EX$9)*Y$7)+(((IF($A$8=Nutrients!$B$79,Nutrients!$EX$79,(IF($A$8=Nutrients!$B$77,Nutrients!$EX$77,Nutrients!$EX$78)))))*Y$8))","v":22500},{"$f":"(SUMPRODUCT(Z$9:Z$229,Nutrients!$EX$8:$EX$228)+(IF($A$7=Nutrients!$B$8,Nutrients!$EX$8,Nutrients!$EX$9)*Z$7)+(((IF($A$8=Nutrients!$B$79,Nutrients!$EX$79,(IF($A$8=Nutrients!$B$77,Nutrients!$EX$77,Nutrients!$EX$78)))))*Z$8))","v":18000},{"$f":"(SUMPRODUCT(AA$9:AA$229,Nutrients!$EX$8:$EX$228)+(IF($A$7=Nutrients!$B$8,Nutrients!$EX$8,Nutrients!$EX$9)*AA$7)+(((IF($A$8=Nutrients!$B$79,Nutrients!$EX$79,(IF($A$8=Nutrients!$B$77,Nutrients!$EX$77,Nutrients!$EX$78)))))*AA$8))","v":13500},{"$f":"(SUMPRODUCT(AB$9:AB$229,Nutrients!$EX$8:$EX$228)+(IF($A$7=Nutrients!$B$8,Nutrients!$EX$8,Nutrients!$EX$9)*AB$7)+(((IF($A$8=Nutrients!$B$79,Nutrients!$EX$79,(IF($A$8=Nutrients!$B$77,Nutrients!$EX$77,Nutrients!$EX$78)))))*AB$8))","v":13500},null,{"$f":"(SUMPRODUCT(AD$9:AD$229,Nutrients!$EX$8:$EX$228)+(IF($A$7=Nutrients!$B$8,Nutrients!$EX$8,Nutrients!$EX$9)*AD$7)+(((IF($A$8=Nutrients!$B$79,Nutrients!$EX$79,(IF($A$8=Nutrients!$B$77,Nutrients!$EX$77,Nutrients!$EX$78)))))*AD$8))","v":27000},{"$f":"(SUMPRODUCT(AE$9:AE$229,Nutrients!$EX$8:$EX$228)+(IF($A$7=Nutrients!$B$8,Nutrients!$EX$8,Nutrients!$EX$9)*AE$7)+(((IF($A$8=Nutrients!$B$79,Nutrients!$EX$79,(IF($A$8=Nutrients!$B$77,Nutrients!$EX$77,Nutrients!$EX$78)))))*AE$8))","v":27000},{"$f":"(SUMPRODUCT(AF$9:AF$229,Nutrients!$EX$8:$EX$228)+(IF($A$7=Nutrients!$B$8,Nutrients!$EX$8,Nutrients!$EX$9)*AF$7)+(((IF($A$8=Nutrients!$B$79,Nutrients!$EX$79,(IF($A$8=Nutrients!$B$77,Nutrients!$EX$77,Nutrients!$EX$78)))))*AF$8))","v":22500},{"$f":"(SUMPRODUCT(AG$9:AG$229,Nutrients!$EX$8:$EX$228)+(IF($A$7=Nutrients!$B$8,Nutrients!$EX$8,Nutrients!$EX$9)*AG$7)+(((IF($A$8=Nutrients!$B$79,Nutrients!$EX$79,(IF($A$8=Nutrients!$B$77,Nutrients!$EX$77,Nutrients!$EX$78)))))*AG$8))","v":18000},{"$f":"(SUMPRODUCT(AH$9:AH$229,Nutrients!$EX$8:$EX$228)+(IF($A$7=Nutrients!$B$8,Nutrients!$EX$8,Nutrients!$EX$9)*AH$7)+(((IF($A$8=Nutrients!$B$79,Nutrients!$EX$79,(IF($A$8=Nutrients!$B$77,Nutrients!$EX$77,Nutrients!$EX$78)))))*AH$8))","v":13500},{"$f":"(SUMPRODUCT(AI$9:AI$229,Nutrients!$EX$8:$EX$228)+(IF($A$7=Nutrients!$B$8,Nutrients!$EX$8,Nutrients!$EX$9)*AI$7)+(((IF($A$8=Nutrients!$B$79,Nutrients!$EX$79,(IF($A$8=Nutrients!$B$77,Nutrients!$EX$77,Nutrients!$EX$78)))))*AI$8))","v":13500},null,{"$f":"(SUMPRODUCT(AK$9:AK$229,Nutrients!$EX$8:$EX$228)+(IF($A$7=Nutrients!$B$8,Nutrients!$EX$8,Nutrients!$EX$9)*AK$7)+(((IF($A$8=Nutrients!$B$79,Nutrients!$EX$79,(IF($A$8=Nutrients!$B$77,Nutrients!$EX$77,Nutrients!$EX$78)))))*AK$8))","v":27000},{"$f":"(SUMPRODUCT(AL$9:AL$229,Nutrients!$EX$8:$EX$228)+(IF($A$7=Nutrients!$B$8,Nutrients!$EX$8,Nutrients!$EX$9)*AL$7)+(((IF($A$8=Nutrients!$B$79,Nutrients!$EX$79,(IF($A$8=Nutrients!$B$77,Nutrients!$EX$77,Nutrients!$EX$78)))))*AL$8))","v":27000},{"$f":"(SUMPRODUCT(AM$9:AM$229,Nutrients!$EX$8:$EX$228)+(IF($A$7=Nutrients!$B$8,Nutrients!$EX$8,Nutrients!$EX$9)*AM$7)+(((IF($A$8=Nutrients!$B$79,Nutrients!$EX$79,(IF($A$8=Nutrients!$B$77,Nutrients!$EX$77,Nutrients!$EX$78)))))*AM$8))","v":22500},{"$f":"(SUMPRODUCT(AN$9:AN$229,Nutrients!$EX$8:$EX$228)+(IF($A$7=Nutrients!$B$8,Nutrients!$EX$8,Nutrients!$EX$9)*AN$7)+(((IF($A$8=Nutrients!$B$79,Nutrients!$EX$79,(IF($A$8=Nutrients!$B$77,Nutrients!$EX$77,Nutrients!$EX$78)))))*AN$8))","v":18000},{"$f":"(SUMPRODUCT(AO$9:AO$229,Nutrients!$EX$8:$EX$228)+(IF($A$7=Nutrients!$B$8,Nutrients!$EX$8,Nutrients!$EX$9)*AO$7)+(((IF($A$8=Nutrients!$B$79,Nutrients!$EX$79,(IF($A$8=Nutrients!$B$77,Nutrients!$EX$77,Nutrients!$EX$78)))))*AO$8))","v":13500},{"$f":"(SUMPRODUCT(AP$9:AP$229,Nutrients!$EX$8:$EX$228)+(IF($A$7=Nutrients!$B$8,Nutrients!$EX$8,Nutrients!$EX$9)*AP$7)+(((IF($A$8=Nutrients!$B$79,Nutrients!$EX$79,(IF($A$8=Nutrients!$B$77,Nutrients!$EX$77,Nutrients!$EX$78)))))*AP$8))","v":13500},null,{"$f":"(SUMPRODUCT(AR$9:AR$229,Nutrients!$EX$8:$EX$228)+(IF($A$7=Nutrients!$B$8,Nutrients!$EX$8,Nutrients!$EX$9)*AR$7)+(((IF($A$8=Nutrients!$B$79,Nutrients!$EX$79,(IF($A$8=Nutrients!$B$77,Nutrients!$EX$77,Nutrients!$EX$78)))))*AR$8))","v":27000},{"$f":"(SUMPRODUCT(AS$9:AS$229,Nutrients!$EX$8:$EX$228)+(IF($A$7=Nutrients!$B$8,Nutrients!$EX$8,Nutrients!$EX$9)*AS$7)+(((IF($A$8=Nutrients!$B$79,Nutrients!$EX$79,(IF($A$8=Nutrients!$B$77,Nutrients!$EX$77,Nutrients!$EX$78)))))*AS$8))","v":27000},{"$f":"(SUMPRODUCT(AT$9:AT$229,Nutrients!$EX$8:$EX$228)+(IF($A$7=Nutrients!$B$8,Nutrients!$EX$8,Nutrients!$EX$9)*AT$7)+(((IF($A$8=Nutrients!$B$79,Nutrients!$EX$79,(IF($A$8=Nutrients!$B$77,Nutrients!$EX$77,Nutrients!$EX$78)))))*AT$8))","v":22500},{"$f":"(SUMPRODUCT(AU$9:AU$229,Nutrients!$EX$8:$EX$228)+(IF($A$7=Nutrients!$B$8,Nutrients!$EX$8,Nutrients!$EX$9)*AU$7)+(((IF($A$8=Nutrients!$B$79,Nutrients!$EX$79,(IF($A$8=Nutrients!$B$77,Nutrients!$EX$77,Nutrients!$EX$78)))))*AU$8))","v":18000},{"$f":"(SUMPRODUCT(AV$9:AV$229,Nutrients!$EX$8:$EX$228)+(IF($A$7=Nutrients!$B$8,Nutrients!$EX$8,Nutrients!$EX$9)*AV$7)+(((IF($A$8=Nutrients!$B$79,Nutrients!$EX$79,(IF($A$8=Nutrients!$B$77,Nutrients!$EX$77,Nutrients!$EX$78)))))*AV$8))","v":13500},{"$f":"(SUMPRODUCT(AW$9:AW$229,Nutrients!$EX$8:$EX$228)+(IF($A$7=Nutrients!$B$8,Nutrients!$EX$8,Nutrients!$EX$9)*AW$7)+(((IF($A$8=Nutrients!$B$79,Nutrients!$EX$79,(IF($A$8=Nutrients!$B$77,Nutrients!$EX$77,Nutrients!$EX$78)))))*AW$8))","v":13500}]
["  Pantothenic Acid, mg/ton",{"$f":"(SUMPRODUCT(B$9:B$229,Nutrients!$EY$8:$EY$228)+(IF($A$7=Nutrients!$B$8,Nutrients!$EY$8,Nutrients!$EY$9)*B$7)+(((IF($A$8=Nutrients!$B$79,Nutrients!$EY$79,(IF($A$8=Nutrients!$B$77,Nutrients!$EY$77,Nutrients!$EY$78)))))*B$8))","v":15000},{"$f":"(SUMPRODUCT(C$9:C$229,Nutrients!$EY$8:$EY$228)+(IF($A$7=Nutrients!$B$8,Nutrients!$EY$8,Nutrients!$EY$9)*C$7)+(((IF($A$8=Nutrients!$B$79,Nutrients!$EY$79,(IF($A$8=Nutrients!$B$77,Nutrients!$EY$77,Nutrients!$EY$78)))))*C$8))","v":15000},{"$f":"(SUMPRODUCT(D$9:D$229,Nutrients!$EY$8:$EY$228)+(IF($A$7=Nutrients!$B$8,Nutrients!$EY$8,Nutrients!$EY$9)*D$7)+(((IF($A$8=Nutrients!$B$79,Nutrients!$EY$79,(IF($A$8=Nutrients!$B$77,Nutrients!$EY$77,Nutrients!$EY$78)))))*D$8))","v":12500},{"$f":"(SUMPRODUCT(E$9:E$229,Nutrients!$EY$8:$EY$228)+(IF($A$7=Nutrients!$B$8,Nutrients!$EY$8,Nutrients!$EY$9)*E$7)+(((IF($A$8=Nutrients!$B$79,Nutrients!$EY$79,(IF($A$8=Nutrients!$B$77,Nutrients!$EY$77,Nutrients!$EY$78)))))*E$8))","v":10000},{"$f":"(SUMPRODUCT(F$9:F$229,Nutrients!$EY$8:$EY$228)+(IF($A$7=Nutrients!$B$8,Nutrients!$EY$8,Nutrients!$EY$9)*F$7)+(((IF($A$8=Nutrients!$B$79,Nutrients!$EY$79,(IF($A$8=Nutrients!$B$77,Nutrients!$EY$77,Nutrients!$EY$78)))))*F$8))","v":7500},{"$f":"(SUMPRODUCT(G$9:G$229,Nutrients!$EY$8:$EY$228)+(IF($A$7=Nutrients!$B$8,Nutrients!$EY$8,Nutrients!$EY$9)*G$7)+(((IF($A$8=Nutrients!$B$79,Nutrients!$EY$79,(IF($A$8=Nutrients!$B$77,Nutrients!$EY$77,Nutrients!$EY$78)))))*G$8))","v":7500},null,{"$f":"(SUMPRODUCT(I$9:I$229,Nutrients!$EY$8:$EY$228)+(IF($A$7=Nutrients!$B$8,Nutrients!$EY$8,Nutrients!$EY$9)*I$7)+(((IF($A$8=Nutrients!$B$79,Nutrients!$EY$79,(IF($A$8=Nutrients!$B$77,Nutrients!$EY$77,Nutrients!$EY$78)))))*I$8))","v":15000},{"$f":"(SUMPRODUCT(J$9:J$229,Nutrients!$EY$8:$EY$228)+(IF($A$7=Nutrients!$B$8,Nutrients!$EY$8,Nutrients!$EY$9)*J$7)+(((IF($A$8=Nutrients!$B$79,Nutrients!$EY$79,(IF($A$8=Nutrients!$B$77,Nutrients!$EY$77,Nutrients!$EY$78)))))*J$8))","v":15000},{"$f":"(SUMPRODUCT(K$9:K$229,Nutrients!$EY$8:$EY$228)+(IF($A$7=Nutrients!$B$8,Nutrients!$EY$8,Nutrients!$EY$9)*K$7)+(((IF($A$8=Nutrients!$B$79,Nutrients!$EY$79,(IF($A$8=Nutrients!$B$77,Nutrients!$EY$77,Nutrients!$EY$78)))))*K$8))","v":12500},{"$f":"(SUMPRODUCT(L$9:L$229,Nutrients!$EY$8:$EY$228)+(IF($A$7=Nutrients!$B$8,Nutrients!$EY$8,Nutrients!$EY$9)*L$7)+(((IF($A$8=Nutrients!$B$79,Nutrients!$EY$79,(IF($A$8=Nutrients!$B$77,Nutrients!$EY$77,Nutrients!$EY$78)))))*L$8))","v":10000},{"$f":"(SUMPRODUCT(M$9:M$229,Nutrients!$EY$8:$EY$228)+(IF($A$7=Nutrients!$B$8,Nutrients!$EY$8,Nutrients!$EY$9)*M$7)+(((IF($A$8=Nutrients!$B$79,Nutrients!$EY$79,(IF($A$8=Nutrients!$B$77,Nutrients!$EY$77,Nutrients!$EY$78)))))*M$8))","v":7500},{"$f":"(SUMPRODUCT(N$9:N$229,Nutrients!$EY$8:$EY$228)+(IF($A$7=Nutrients!$B$8,Nutrients!$EY$8,Nutrients!$EY$9)*N$7)+(((IF($A$8=Nutrients!$B$79,Nutrients!$EY$79,(IF($A$8=Nutrients!$B$77,Nutrients!$EY$77,Nutrients!$EY$78)))))*N$8))","v":7500},null,{"$f":"(SUMPRODUCT(P$9:P$229,Nutrients!$EY$8:$EY$228)+(IF($A$7=Nutrients!$B$8,Nutrients!$EY$8,Nutrients!$EY$9)*P$7)+(((IF($A$8=Nutrients!$B$79,Nutrients!$EY$79,(IF($A$8=Nutrients!$B$77,Nutrients!$EY$77,Nutrients!$EY$78)))))*P$8))","v":15000},{"$f":"(SUMPRODUCT(Q$9:Q$229,Nutrients!$EY$8:$EY$228)+(IF($A$7=Nutrients!$B$8,Nutrients!$EY$8,Nutrients!$EY$9)*Q$7)+(((IF($A$8=Nutrients!$B$79,Nutrients!$EY$79,(IF($A$8=Nutrients!$B$77,Nutrients!$EY$77,Nutrients!$EY$78)))))*Q$8))","v":15000},{"$f":"(SUMPRODUCT(R$9:R$229,Nutrients!$EY$8:$EY$228)+(IF($A$7=Nutrients!$B$8,Nutrients!$EY$8,Nutrients!$EY$9)*R$7)+(((IF($A$8=Nutrients!$B$79,Nutrients!$EY$79,(IF($A$8=Nutrients!$B$77,Nutrients!$EY$77,Nutrients!$EY$78)))))*R$8))","v":12500},{"$f":"(SUMPRODUCT(S$9:S$229,Nutrients!$EY$8:$EY$228)+(IF($A$7=Nutrients!$B$8,Nutrients!$EY$8,Nutrients!$EY$9)*S$7)+(((IF($A$8=Nutrients!$B$79,Nutrients!$EY$79,(IF($A$8=Nutrients!$B$77,Nutrients!$EY$77,Nutrients!$EY$78)))))*S$8))","v":10000},{"$f":"(SUMPRODUCT(T$9:T$229,Nutrients!$EY$8:$EY$228)+(IF($A$7=Nutrients!$B$8,Nutrients!$EY$8,Nutrients!$EY$9)*T$7)+(((IF($A$8=Nutrients!$B$79,Nutrients!$EY$79,(IF($A$8=Nutrients!$B$77,Nutrients!$EY$77,Nutrients!$EY$78)))))*T$8))","v":7500},{"$f":"(SUMPRODUCT(U$9:U$229,Nutrients!$EY$8:$EY$228)+(IF($A$7=Nutrients!$B$8,Nutrients!$EY$8,Nutrients!$EY$9)*U$7)+(((IF($A$8=Nutrients!$B$79,Nutrients!$EY$79,(IF($A$8=Nutrients!$B$77,Nutrients!$EY$77,Nutrients!$EY$78)))))*U$8))","v":7500},null,{"$f":"(SUMPRODUCT(W$9:W$229,Nutrients!$EY$8:$EY$228)+(IF($A$7=Nutrients!$B$8,Nutrients!$EY$8,Nutrients!$EY$9)*W$7)+(((IF($A$8=Nutrients!$B$79,Nutrients!$EY$79,(IF($A$8=Nutrients!$B$77,Nutrients!$EY$77,Nutrients!$EY$78)))))*W$8))","v":15000},{"$f":"(SUMPRODUCT(X$9:X$229,Nutrients!$EY$8:$EY$228)+(IF($A$7=Nutrients!$B$8,Nutrients!$EY$8,Nutrients!$EY$9)*X$7)+(((IF($A$8=Nutrients!$B$79,Nutrients!$EY$79,(IF($A$8=Nutrients!$B$77,Nutrients!$EY$77,Nutrients!$EY$78)))))*X$8))","v":15000},{"$f":"(SUMPRODUCT(Y$9:Y$229,Nutrients!$EY$8:$EY$228)+(IF($A$7=Nutrients!$B$8,Nutrients!$EY$8,Nutrients!$EY$9)*Y$7)+(((IF($A$8=Nutrients!$B$79,Nutrients!$EY$79,(IF($A$8=Nutrients!$B$77,Nutrients!$EY$77,Nutrients!$EY$78)))))*Y$8))","v":12500},{"$f":"(SUMPRODUCT(Z$9:Z$229,Nutrients!$EY$8:$EY$228)+(IF($A$7=Nutrients!$B$8,Nutrients!$EY$8,Nutrients!$EY$9)*Z$7)+(((IF($A$8=Nutrients!$B$79,Nutrients!$EY$79,(IF($A$8=Nutrients!$B$77,Nutrients!$EY$77,Nutrients!$EY$78)))))*Z$8))","v":10000},{"$f":"(SUMPRODUCT(AA$9:AA$229,Nutrients!$EY$8:$EY$228)+(IF($A$7=Nutrients!$B$8,Nutrients!$EY$8,Nutrients!$EY$9)*AA$7)+(((IF($A$8=Nutrients!$B$79,Nutrients!$EY$79,(IF($A$8=Nutrients!$B$77,Nutrients!$EY$77,Nutrients!$EY$78)))))*AA$8))","v":7500},{"$f":"(SUMPRODUCT(AB$9:AB$229,Nutrients!$EY$8:$EY$228)+(IF($A$7=Nutrients!$B$8,Nutrients!$EY$8,Nutrients!$EY$9)*AB$7)+(((IF($A$8=Nutrients!$B$79,Nutrients!$EY$79,(IF($A$8=Nutrients!$B$77,Nutrients!$EY$77,Nutrients!$EY$78)))))*AB$8))","v":7500},null,{"$f":"(SUMPRODUCT(AD$9:AD$229,Nutrients!$EY$8:$EY$228)+(IF($A$7=Nutrients!$B$8,Nutrients!$EY$8,Nutrients!$EY$9)*AD$7)+(((IF($A$8=Nutrients!$B$79,Nutrients!$EY$79,(IF($A$8=Nutrients!$B$77,Nutrients!$EY$77,Nutrients!$EY$78)))))*AD$8))","v":15000},{"$f":"(SUMPRODUCT(AE$9:AE$229,Nutrients!$EY$8:$EY$228)+(IF($A$7=Nutrients!$B$8,Nutrients!$EY$8,Nutrients!$EY$9)*AE$7)+(((IF($A$8=Nutrients!$B$79,Nutrients!$EY$79,(IF($A$8=Nutrients!$B$77,Nutrients!$EY$77,Nutrients!$EY$78)))))*AE$8))","v":15000},{"$f":"(SUMPRODUCT(AF$9:AF$229,Nutrients!$EY$8:$EY$228)+(IF($A$7=Nutrients!$B$8,Nutrients!$EY$8,Nutrients!$EY$9)*AF$7)+(((IF($A$8=Nutrients!$B$79,Nutrients!$EY$79,(IF($A$8=Nutrients!$B$77,Nutrients!$EY$77,Nutrients!$EY$78)))))*AF$8))","v":12500},{"$f":"(SUMPRODUCT(AG$9:AG$229,Nutrients!$EY$8:$EY$228)+(IF($A$7=Nutrients!$B$8,Nutrients!$EY$8,Nutrients!$EY$9)*AG$7)+(((IF($A$8=Nutrients!$B$79,Nutrients!$EY$79,(IF($A$8=Nutrients!$B$77,Nutrients!$EY$77,Nutrients!$EY$78)))))*AG$8))","v":10000},{"$f":"(SUMPRODUCT(AH$9:AH$229,Nutrients!$EY$8:$EY$228)+(IF($A$7=Nutrients!$B$8,Nutrients!$EY$8,Nutrients!$EY$9)*AH$7)+(((IF($A$8=Nutrients!$B$79,Nutrients!$EY$79,(IF($A$8=Nutrients!$B$77,Nutrients!$EY$77,Nutrients!$EY$78)))))*AH$8))","v":7500},{"$f":"(SUMPRODUCT(AI$9:AI$229,Nutrients!$EY$8:$EY$228)+(IF($A$7=Nutrients!$B$8,Nutrients!$EY$8,Nutrients!$EY$9)*AI$7)+(((IF($A$8=Nutrients!$B$79,Nutrients!$EY$79,(IF($A$8=Nutrients!$B$77,Nutrients!$EY$77,Nutrients!$EY$78)))))*AI$8))","v":7500},null,{"$f":"(SUMPRODUCT(AK$9:AK$229,Nutrients!$EY$8:$EY$228)+(IF($A$7=Nutrients!$B$8,Nutrients!$EY$8,Nutrients!$EY$9)*AK$7)+(((IF($A$8=Nutrients!$B$79,Nutrients!$EY$79,(IF($A$8=Nutrients!$B$77,Nutrients!$EY$77,Nutrients!$EY$78)))))*AK$8))","v":15000},{"$f":"(SUMPRODUCT(AL$9:AL$229,Nutrients!$EY$8:$EY$228)+(IF($A$7=Nutrients!$B$8,Nutrients!$EY$8,Nutrients!$EY$9)*AL$7)+(((IF($A$8=Nutrients!$B$79,Nutrients!$EY$79,(IF($A$8=Nutrients!$B$77,Nutrients!$EY$77,Nutrients!$EY$78)))))*AL$8))","v":15000},{"$f":"(SUMPRODUCT(AM$9:AM$229,Nutrients!$EY$8:$EY$228)+(IF($A$7=Nutrients!$B$8,Nutrients!$EY$8,Nutrients!$EY$9)*AM$7)+(((IF($A$8=Nutrients!$B$79,Nutrients!$EY$79,(IF($A$8=Nutrients!$B$77,Nutrients!$EY$77,Nutrients!$EY$78)))))*AM$8))","v":12500},{"$f":"(SUMPRODUCT(AN$9:AN$229,Nutrients!$EY$8:$EY$228)+(IF($A$7=Nutrients!$B$8,Nutrients!$EY$8,Nutrients!$EY$9)*AN$7)+(((IF($A$8=Nutrients!$B$79,Nutrients!$EY$79,(IF($A$8=Nutrients!$B$77,Nutrients!$EY$77,Nutrients!$EY$78)))))*AN$8))","v":10000},{"$f":"(SUMPRODUCT(AO$9:AO$229,Nutrients!$EY$8:$EY$228)+(IF($A$7=Nutrients!$B$8,Nutrients!$EY$8,Nutrients!$EY$9)*AO$7)+(((IF($A$8=Nutrients!$B$79,Nutrients!$EY$79,(IF($A$8=Nutrients!$B$77,Nutrients!$EY$77,Nutrients!$EY$78)))))*AO$8))","v":7500},{"$f":"(SUMPRODUCT(AP$9:AP$229,Nutrients!$EY$8:$EY$228)+(IF($A$7=Nutrients!$B$8,Nutrients!$EY$8,Nutrients!$EY$9)*AP$7)+(((IF($A$8=Nutrients!$B$79,Nutrients!$EY$79,(IF($A$8=Nutrients!$B$77,Nutrients!$EY$77,Nutrients!$EY$78)))))*AP$8))","v":7500},null,{"$f":"(SUMPRODUCT(AR$9:AR$229,Nutrients!$EY$8:$EY$228)+(IF($A$7=Nutrients!$B$8,Nutrients!$EY$8,Nutrients!$EY$9)*AR$7)+(((IF($A$8=Nutrients!$B$79,Nutrients!$EY$79,(IF($A$8=Nutrients!$B$77,Nutrients!$EY$77,Nutrients!$EY$78)))))*AR$8))","v":15000},{"$f":"(SUMPRODUCT(AS$9:AS$229,Nutrients!$EY$8:$EY$228)+(IF($A$7=Nutrients!$B$8,Nutrients!$EY$8,Nutrients!$EY$9)*AS$7)+(((IF($A$8=Nutrients!$B$79,Nutrients!$EY$79,(IF($A$8=Nutrients!$B$77,Nutrients!$EY$77,Nutrients!$EY$78)))))*AS$8))","v":15000},{"$f":"(SUMPRODUCT(AT$9:AT$229,Nutrients!$EY$8:$EY$228)+(IF($A$7=Nutrients!$B$8,Nutrients!$EY$8,Nutrients!$EY$9)*AT$7)+(((IF($A$8=Nutrients!$B$79,Nutrients!$EY$79,(IF($A$8=Nutrients!$B$77,Nutrients!$EY$77,Nutrients!$EY$78)))))*AT$8))","v":12500},{"$f":"(SUMPRODUCT(AU$9:AU$229,Nutrients!$EY$8:$EY$228)+(IF($A$7=Nutrients!$B$8,Nutrients!$EY$8,Nutrients!$EY$9)*AU$7)+(((IF($A$8=Nutrients!$B$79,Nutrients!$EY$79,(IF($A$8=Nutrients!$B$77,Nutrients!$EY$77,Nutrients!$EY$78)))))*AU$8))","v":10000},{"$f":"(SUMPRODUCT(AV$9:AV$229,Nutrients!$EY$8:$EY$228)+(IF($A$7=Nutrients!$B$8,Nutrients!$EY$8,Nutrients!$EY$9)*AV$7)+(((IF($A$8=Nutrients!$B$79,Nutrients!$EY$79,(IF($A$8=Nutrients!$B$77,Nutrients!$EY$77,Nutrients!$EY$78)))))*AV$8))","v":7500},{"$f":"(SUMPRODUCT(AW$9:AW$229,Nutrients!$EY$8:$EY$228)+(IF($A$7=Nutrients!$B$8,Nutrients!$EY$8,Nutrients!$EY$9)*AW$7)+(((IF($A$8=Nutrients!$B$79,Nutrients!$EY$79,(IF($A$8=Nutrients!$B$77,Nutrients!$EY$77,Nutrients!$EY$78)))))*AW$8))","v":7500}]
["  Riboflavin, mg/ton",{"$f":"(SUMPRODUCT(B$9:B$229,Nutrients!$EZ$8:$EZ$228)+(IF($A$7=Nutrients!$B$8,Nutrients!$EZ$8,Nutrients!$EZ$9)*B$7)+(((IF($A$8=Nutrients!$B$79,Nutrients!$EZ$79,(IF($A$8=Nutrients!$B$77,Nutrients!$EZ$77,Nutrients!$EZ$78)))))*B$8))","v":4500},{"$f":"(SUMPRODUCT(C$9:C$229,Nutrients!$EZ$8:$EZ$228)+(IF($A$7=Nutrients!$B$8,Nutrients!$EZ$8,Nutrients!$EZ$9)*C$7)+(((IF($A$8=Nutrients!$B$79,Nutrients!$EZ$79,(IF($A$8=Nutrients!$B$77,Nutrients!$EZ$77,Nutrients!$EZ$78)))))*C$8))","v":4500},{"$f":"(SUMPRODUCT(D$9:D$229,Nutrients!$EZ$8:$EZ$228)+(IF($A$7=Nutrients!$B$8,Nutrients!$EZ$8,Nutrients!$EZ$9)*D$7)+(((IF($A$8=Nutrients!$B$79,Nutrients!$EZ$79,(IF($A$8=Nutrients!$B$77,Nutrients!$EZ$77,Nutrients!$EZ$78)))))*D$8))","v":3750},{"$f":"(SUMPRODUCT(E$9:E$229,Nutrients!$EZ$8:$EZ$228)+(IF($A$7=Nutrients!$B$8,Nutrients!$EZ$8,Nutrients!$EZ$9)*E$7)+(((IF($A$8=Nutrients!$B$79,Nutrients!$EZ$79,(IF($A$8=Nutrients!$B$77,Nutrients!$EZ$77,Nutrients!$EZ$78)))))*E$8))","v":3000},{"$f":"(SUMPRODUCT(F$9:F$229,Nutrients!$EZ$8:$EZ$228)+(IF($A$7=Nutrients!$B$8,Nutrients!$EZ$8,Nutrients!$EZ$9)*F$7)+(((IF($A$8=Nutrients!$B$79,Nutrients!$EZ$79,(IF($A$8=Nutrients!$B$77,Nutrients!$EZ$77,Nutrients!$EZ$78)))))*F$8))","v":2250},{"$f":"(SUMPRODUCT(G$9:G$229,Nutrients!$EZ$8:$EZ$228)+(IF($A$7=Nutrients!$B$8,Nutrients!$EZ$8,Nutrients!$EZ$9)*G$7)+(((IF($A$8=Nutrients!$B$79,Nutrients!$EZ$79,(IF($A$8=Nutrients!$B$77,Nutrients!$EZ$77,Nutrients!$EZ$78)))))*G$8))","v":2250},null,{"$f":"(SUMPRODUCT(I$9:I$229,Nutrients!$EZ$8:$EZ$228)+(IF($A$7=Nutrients!$B$8,Nutrients!$EZ$8,Nutrients!$EZ$9)*I$7)+(((IF($A$8=Nutrients!$B$79,Nutrients!$EZ$79,(IF($A$8=Nutrients!$B$77,Nutrients!$EZ$77,Nutrients!$EZ$78)))))*I$8))","v":4500},{"$f":"(SUMPRODUCT(J$9:J$229,Nutrients!$EZ$8:$EZ$228)+(IF($A$7=Nutrients!$B$8,Nutrients!$EZ$8,Nutrients!$EZ$9)*J$7)+(((IF($A$8=Nutrients!$B$79,Nutrients!$EZ$79,(IF($A$8=Nutrients!$B$77,Nutrients!$EZ$77,Nutrients!$EZ$78)))))*J$8))","v":4500},{"$f":"(SUMPRODUCT(K$9:K$229,Nutrients!$EZ$8:$EZ$228)+(IF($A$7=Nutrients!$B$8,Nutrients!$EZ$8,Nutrients!$EZ$9)*K$7)+(((IF($A$8=Nutrients!$B$79,Nutrients!$EZ$79,(IF($A$8=Nutrients!$B$77,Nutrients!$EZ$77,Nutrients!$EZ$78)))))*K$8))","v":3750},{"$f":"(SUMPRODUCT(L$9:L$229,Nutrients!$EZ$8:$EZ$228)+(IF($A$7=Nutrients!$B$8,Nutrients!$EZ$8,Nutrients!$EZ$9)*L$7)+(((IF($A$8=Nutrients!$B$79,Nutrients!$EZ$79,(IF($A$8=Nutrients!$B$77,Nutrients!$EZ$77,Nutrients!$EZ$78)))))*L$8))","v":3000},{"$f":"(SUMPRODUCT(M$9:M$229,Nutrients!$EZ$8:$EZ$228)+(IF($A$7=Nutrients!$B$8,Nutrients!$EZ$8,Nutrients!$EZ$9)*M$7)+(((IF($A$8=Nutrients!$B$79,Nutrients!$EZ$79,(IF($A$8=Nutrients!$B$77,Nutrients!$EZ$77,Nutrients!$EZ$78)))))*M$8))","v":2250},{"$f":"(SUMPRODUCT(N$9:N$229,Nutrients!$EZ$8:$EZ$228)+(IF($A$7=Nutrients!$B$8,Nutrients!$EZ$8,Nutrients!$EZ$9)*N$7)+(((IF($A$8=Nutrients!$B$79,Nutrients!$EZ$79,(IF($A$8=Nutrients!$B$77,Nutrients!$EZ$77,Nutrients!$EZ$78)))))*N$8))","v":2250},null,{"$f":"(SUMPRODUCT(P$9:P$229,Nutrients!$EZ$8:$EZ$228)+(IF($A$7=Nutrients!$B$8,Nutrients!$EZ$8,Nutrients!$EZ$9)*P$7)+(((IF($A$8=Nutrients!$B$79,Nutrients!$EZ$79,(IF($A$8=Nutrients!$B$77,Nutrients!$EZ$77,Nutrients!$EZ$78)))))*P$8))","v":4500},{"$f":"(SUMPRODUCT(Q$9:Q$229,Nutrients!$EZ$8:$EZ$228)+(IF($A$7=Nutrients!$B$8,Nutrients!$EZ$8,Nutrients!$EZ$9)*Q$7)+(((IF($A$8=Nutrients!$B$79,Nutrients!$EZ$79,(IF($A$8=Nutrients!$B$77,Nutrients!$EZ$77,Nutrients!$EZ$78)))))*Q$8))","v":4500},{"$f":"(SUMPRODUCT(R$9:R$229,Nutrients!$EZ$8:$EZ$228)+(IF($A$7=Nutrients!$B$8,Nutrients!$EZ$8,Nutrients!$EZ$9)*R$7)+(((IF($A$8=Nutrients!$B$79,Nutrients!$EZ$79,(IF($A$8=Nutrients!$B$77,Nutrients!$EZ$77,Nutrients!$EZ$78)))))*R$8))","v":3750},{"$f":"(SUMPRODUCT(S$9:S$229,Nutrients!$EZ$8:$EZ$228)+(IF($A$7=Nutrients!$B$8,Nutrients!$EZ$8,Nutrients!$EZ$9)*S$7)+(((IF($A$8=Nutrients!$B$79,Nutrients!$EZ$79,(IF($A$8=Nutrients!$B$77,Nutrients!$EZ$77,Nutrients!$EZ$78)))))*S$8))","v":3000},{"$f":"(SUMPRODUCT(T$9:T$229,Nutrients!$EZ$8:$EZ$228)+(IF($A$7=Nutrients!$B$8,Nutrients!$EZ$8,Nutrients!$EZ$9)*T$7)+(((IF($A$8=Nutrients!$B$79,Nutrients!$EZ$79,(IF($A$8=Nutrients!$B$77,Nutrients!$EZ$77,Nutrients!$EZ$78)))))*T$8))","v":2250},{"$f":"(SUMPRODUCT(U$9:U$229,Nutrients!$EZ$8:$EZ$228)+(IF($A$7=Nutrients!$B$8,Nutrients!$EZ$8,Nutrients!$EZ$9)*U$7)+(((IF($A$8=Nutrients!$B$79,Nutrients!$EZ$79,(IF($A$8=Nutrients!$B$77,Nutrients!$EZ$77,Nutrients!$EZ$78)))))*U$8))","v":2250},null,{"$f":"(SUMPRODUCT(W$9:W$229,Nutrients!$EZ$8:$EZ$228)+(IF($A$7=Nutrients!$B$8,Nutrients!$EZ$8,Nutrients!$EZ$9)*W$7)+(((IF($A$8=Nutrients!$B$79,Nutrients!$EZ$79,(IF($A$8=Nutrients!$B$77,Nutrients!$EZ$77,Nutrients!$EZ$78)))))*W$8))","v":4500},{"$f":"(SUMPRODUCT(X$9:X$229,Nutrients!$EZ$8:$EZ$228)+(IF($A$7=Nutrients!$B$8,Nutrients!$EZ$8,Nutrients!$EZ$9)*X$7)+(((IF($A$8=Nutrients!$B$79,Nutrients!$EZ$79,(IF($A$8=Nutrients!$B$77,Nutrients!$EZ$77,Nutrients!$EZ$78)))))*X$8))","v":4500},{"$f":"(SUMPRODUCT(Y$9:Y$229,Nutrients!$EZ$8:$EZ$228)+(IF($A$7=Nutrients!$B$8,Nutrients!$EZ$8,Nutrients!$EZ$9)*Y$7)+(((IF($A$8=Nutrients!$B$79,Nutrients!$EZ$79,(IF($A$8=Nutrients!$B$77,Nutrients!$EZ$77,Nutrients!$EZ$78)))))*Y$8))","v":3750},{"$f":"(SUMPRODUCT(Z$9:Z$229,Nutrients!$EZ$8:$EZ$228)+(IF($A$7=Nutrients!$B$8,Nutrients!$EZ$8,Nutrients!$EZ$9)*Z$7)+(((IF($A$8=Nutrients!$B$79,Nutrients!$EZ$79,(IF($A$8=Nutrients!$B$77,Nutrients!$EZ$77,Nutrients!$EZ$78)))))*Z$8))","v":3000},{"$f":"(SUMPRODUCT(AA$9:AA$229,Nutrients!$EZ$8:$EZ$228)+(IF($A$7=Nutrients!$B$8,Nutrients!$EZ$8,Nutrients!$EZ$9)*AA$7)+(((IF($A$8=Nutrients!$B$79,Nutrients!$EZ$79,(IF($A$8=Nutrients!$B$77,Nutrients!$EZ$77,Nutrients!$EZ$78)))))*AA$8))","v":2250},{"$f":"(SUMPRODUCT(AB$9:AB$229,Nutrients!$EZ$8:$EZ$228)+(IF($A$7=Nutrients!$B$8,Nutrients!$EZ$8,Nutrients!$EZ$9)*AB$7)+(((IF($A$8=Nutrients!$B$79,Nutrients!$EZ$79,(IF($A$8=Nutrients!$B$77,Nutrients!$EZ$77,Nutrients!$EZ$78)))))*AB$8))","v":2250},null,{"$f":"(SUMPRODUCT(AD$9:AD$229,Nutrients!$EZ$8:$EZ$228)+(IF($A$7=Nutrients!$B$8,Nutrients!$EZ$8,Nutrients!$EZ$9)*AD$7)+(((IF($A$8=Nutrients!$B$79,Nutrients!$EZ$79,(IF($A$8=Nutrients!$B$77,Nutrients!$EZ$77,Nutrients!$EZ$78)))))*AD$8))","v":4500},{"$f":"(SUMPRODUCT(AE$9:AE$229,Nutrients!$EZ$8:$EZ$228)+(IF($A$7=Nutrients!$B$8,Nutrients!$EZ$8,Nutrients!$EZ$9)*AE$7)+(((IF($A$8=Nutrients!$B$79,Nutrients!$EZ$79,(IF($A$8=Nutrients!$B$77,Nutrients!$EZ$77,Nutrients!$EZ$78)))))*AE$8))","v":4500},{"$f":"(SUMPRODUCT(AF$9:AF$229,Nutrients!$EZ$8:$EZ$228)+(IF($A$7=Nutrients!$B$8,Nutrients!$EZ$8,Nutrients!$EZ$9)*AF$7)+(((IF($A$8=Nutrients!$B$79,Nutrients!$EZ$79,(IF($A$8=Nutrients!$B$77,Nutrients!$EZ$77,Nutrients!$EZ$78)))))*AF$8))","v":3750},{"$f":"(SUMPRODUCT(AG$9:AG$229,Nutrients!$EZ$8:$EZ$228)+(IF($A$7=Nutrients!$B$8,Nutrients!$EZ$8,Nutrients!$EZ$9)*AG$7)+(((IF($A$8=Nutrients!$B$79,Nutrients!$EZ$79,(IF($A$8=Nutrients!$B$77,Nutrients!$EZ$77,Nutrients!$EZ$78)))))*AG$8))","v":3000},{"$f":"(SUMPRODUCT(AH$9:AH$229,Nutrients!$EZ$8:$EZ$228)+(IF($A$7=Nutrients!$B$8,Nutrients!$EZ$8,Nutrients!$EZ$9)*AH$7)+(((IF($A$8=Nutrients!$B$79,Nutrients!$EZ$79,(IF($A$8=Nutrients!$B$77,Nutrients!$EZ$77,Nutrients!$EZ$78)))))*AH$8))","v":2250},{"$f":"(SUMPRODUCT(AI$9:AI$229,Nutrients!$EZ$8:$EZ$228)+(IF($A$7=Nutrients!$B$8,Nutrients!$EZ$8,Nutrients!$EZ$9)*AI$7)+(((IF($A$8=Nutrients!$B$79,Nutrients!$EZ$79,(IF($A$8=Nutrients!$B$77,Nutrients!$EZ$77,Nutrients!$EZ$78)))))*AI$8))","v":2250},null,{"$f":"(SUMPRODUCT(AK$9:AK$229,Nutrients!$EZ$8:$EZ$228)+(IF($A$7=Nutrients!$B$8,Nutrients!$EZ$8,Nutrients!$EZ$9)*AK$7)+(((IF($A$8=Nutrients!$B$79,Nutrients!$EZ$79,(IF($A$8=Nutrients!$B$77,Nutrients!$EZ$77,Nutrients!$EZ$78)))))*AK$8))","v":4500},{"$f":"(SUMPRODUCT(AL$9:AL$229,Nutrients!$EZ$8:$EZ$228)+(IF($A$7=Nutrients!$B$8,Nutrients!$EZ$8,Nutrients!$EZ$9)*AL$7)+(((IF($A$8=Nutrients!$B$79,Nutrients!$EZ$79,(IF($A$8=Nutrients!$B$77,Nutrients!$EZ$77,Nutrients!$EZ$78)))))*AL$8))","v":4500},{"$f":"(SUMPRODUCT(AM$9:AM$229,Nutrients!$EZ$8:$EZ$228)+(IF($A$7=Nutrients!$B$8,Nutrients!$EZ$8,Nutrients!$EZ$9)*AM$7)+(((IF($A$8=Nutrients!$B$79,Nutrients!$EZ$79,(IF($A$8=Nutrients!$B$77,Nutrients!$EZ$77,Nutrients!$EZ$78)))))*AM$8))","v":3750},{"$f":"(SUMPRODUCT(AN$9:AN$229,Nutrients!$EZ$8:$EZ$228)+(IF($A$7=Nutrients!$B$8,Nutrients!$EZ$8,Nutrients!$EZ$9)*AN$7)+(((IF($A$8=Nutrients!$B$79,Nutrients!$EZ$79,(IF($A$8=Nutrients!$B$77,Nutrients!$EZ$77,Nutrients!$EZ$78)))))*AN$8))","v":3000},{"$f":"(SUMPRODUCT(AO$9:AO$229,Nutrients!$EZ$8:$EZ$228)+(IF($A$7=Nutrients!$B$8,Nutrients!$EZ$8,Nutrients!$EZ$9)*AO$7)+(((IF($A$8=Nutrients!$B$79,Nutrients!$EZ$79,(IF($A$8=Nutrients!$B$77,Nutrients!$EZ$77,Nutrients!$EZ$78)))))*AO$8))","v":2250},{"$f":"(SUMPRODUCT(AP$9:AP$229,Nutrients!$EZ$8:$EZ$228)+(IF($A$7=Nutrients!$B$8,Nutrients!$EZ$8,Nutrients!$EZ$9)*AP$7)+(((IF($A$8=Nutrients!$B$79,Nutrients!$EZ$79,(IF($A$8=Nutrients!$B$77,Nutrients!$EZ$77,Nutrients!$EZ$78)))))*AP$8))","v":2250},null,{"$f":"(SUMPRODUCT(AR$9:AR$229,Nutrients!$EZ$8:$EZ$228)+(IF($A$7=Nutrients!$B$8,Nutrients!$EZ$8,Nutrients!$EZ$9)*AR$7)+(((IF($A$8=Nutrients!$B$79,Nutrients!$EZ$79,(IF($A$8=Nutrients!$B$77,Nutrients!$EZ$77,Nutrients!$EZ$78)))))*AR$8))","v":4500},{"$f":"(SUMPRODUCT(AS$9:AS$229,Nutrients!$EZ$8:$EZ$228)+(IF($A$7=Nutrients!$B$8,Nutrients!$EZ$8,Nutrients!$EZ$9)*AS$7)+(((IF($A$8=Nutrients!$B$79,Nutrients!$EZ$79,(IF($A$8=Nutrients!$B$77,Nutrients!$EZ$77,Nutrients!$EZ$78)))))*AS$8))","v":4500},{"$f":"(SUMPRODUCT(AT$9:AT$229,Nutrients!$EZ$8:$EZ$228)+(IF($A$7=Nutrients!$B$8,Nutrients!$EZ$8,Nutrients!$EZ$9)*AT$7)+(((IF($A$8=Nutrients!$B$79,Nutrients!$EZ$79,(IF($A$8=Nutrients!$B$77,Nutrients!$EZ$77,Nutrients!$EZ$78)))))*AT$8))","v":3750},{"$f":"(SUMPRODUCT(AU$9:AU$229,Nutrients!$EZ$8:$EZ$228)+(IF($A$7=Nutrients!$B$8,Nutrients!$EZ$8,Nutrients!$EZ$9)*AU$7)+(((IF($A$8=Nutrients!$B$79,Nutrients!$EZ$79,(IF($A$8=Nutrients!$B$77,Nutrients!$EZ$77,Nutrients!$EZ$78)))))*AU$8))","v":3000},{"$f":"(SUMPRODUCT(AV$9:AV$229,Nutrients!$EZ$8:$EZ$228)+(IF($A$7=Nutrients!$B$8,Nutrients!$EZ$8,Nutrients!$EZ$9)*AV$7)+(((IF($A$8=Nutrients!$B$79,Nutrients!$EZ$79,(IF($A$8=Nutrients!$B$77,Nutrients!$EZ$77,Nutrients!$EZ$78)))))*AV$8))","v":2250},{"$f":"(SUMPRODUCT(AW$9:AW$229,Nutrients!$EZ$8:$EZ$228)+(IF($A$7=Nutrients!$B$8,Nutrients!$EZ$8,Nutrients!$EZ$9)*AW$7)+(((IF($A$8=Nutrients!$B$79,Nutrients!$EZ$79,(IF($A$8=Nutrients!$B$77,Nutrients!$EZ$77,Nutrients!$EZ$78)))))*AW$8))","v":2250}]
["  Biotin, mg/ton",{"$f":"(SUMPRODUCT(B$9:B$229,Nutrients!$FA$8:$FA$228)+(IF($A$7=Nutrients!$B$8,Nutrients!$FA$8,Nutrients!$FA$9)*B$7)+(((IF($A$8=Nutrients!$B$79,Nutrients!$FA$79,(IF($A$8=Nutrients!$B$77,Nutrients!$FA$77,Nutrients!$FA$78)))))*B$8))","v":0},{"$f":"(SUMPRODUCT(C$9:C$229,Nutrients!$FA$8:$FA$228)+(IF($A$7=Nutrients!$B$8,Nutrients!$FA$8,Nutrients!$FA$9)*C$7)+(((IF($A$8=Nutrients!$B$79,Nutrients!$FA$79,(IF($A$8=Nutrients!$B$77,Nutrients!$FA$77,Nutrients!$FA$78)))))*C$8))","v":0},{"$f":"(SUMPRODUCT(D$9:D$229,Nutrients!$FA$8:$FA$228)+(IF($A$7=Nutrients!$B$8,Nutrients!$FA$8,Nutrients!$FA$9)*D$7)+(((IF($A$8=Nutrients!$B$79,Nutrients!$FA$79,(IF($A$8=Nutrients!$B$77,Nutrients!$FA$77,Nutrients!$FA$78)))))*D$8))","v":0},{"$f":"(SUMPRODUCT(E$9:E$229,Nutrients!$FA$8:$FA$228)+(IF($A$7=Nutrients!$B$8,Nutrients!$FA$8,Nutrients!$FA$9)*E$7)+(((IF($A$8=Nutrients!$B$79,Nutrients!$FA$79,(IF($A$8=Nutrients!$B$77,Nutrients!$FA$77,Nutrients!$FA$78)))))*E$8))","v":0},{"$f":"(SUMPRODUCT(F$9:F$229,Nutrients!$FA$8:$FA$228)+(IF($A$7=Nutrients!$B$8,Nutrients!$FA$8,Nutrients!$FA$9)*F$7)+(((IF($A$8=Nutrients!$B$79,Nutrients!$FA$79,(IF($A$8=Nutrients!$B$77,Nutrients!$FA$77,Nutrients!$FA$78)))))*F$8))","v":0},{"$f":"(SUMPRODUCT(G$9:G$229,Nutrients!$FA$8:$FA$228)+(IF($A$7=Nutrients!$B$8,Nutrients!$FA$8,Nutrients!$FA$9)*G$7)+(((IF($A$8=Nutrients!$B$79,Nutrients!$FA$79,(IF($A$8=Nutrients!$B$77,Nutrients!$FA$77,Nutrients!$FA$78)))))*G$8))","v":0},null,{"$f":"(SUMPRODUCT(I$9:I$229,Nutrients!$FA$8:$FA$228)+(IF($A$7=Nutrients!$B$8,Nutrients!$FA$8,Nutrients!$FA$9)*I$7)+(((IF($A$8=Nutrients!$B$79,Nutrients!$FA$79,(IF($A$8=Nutrients!$B$77,Nutrients!$FA$77,Nutrients!$FA$78)))))*I$8))","v":0},{"$f":"(SUMPRODUCT(J$9:J$229,Nutrients!$FA$8:$FA$228)+(IF($A$7=Nutrients!$B$8,Nutrients!$FA$8,Nutrients!$FA$9)*J$7)+(((IF($A$8=Nutrients!$B$79,Nutrients!$FA$79,(IF($A$8=Nutrients!$B$77,Nutrients!$FA$77,Nutrients!$FA$78)))))*J$8))","v":0},{"$f":"(SUMPRODUCT(K$9:K$229,Nutrients!$FA$8:$FA$228)+(IF($A$7=Nutrients!$B$8,Nutrients!$FA$8,Nutrients!$FA$9)*K$7)+(((IF($A$8=Nutrients!$B$79,Nutrients!$FA$79,(IF($A$8=Nutrients!$B$77,Nutrients!$FA$77,Nutrients!$FA$78)))))*K$8))","v":0},{"$f":"(SUMPRODUCT(L$9:L$229,Nutrients!$FA$8:$FA$228)+(IF($A$7=Nutrients!$B$8,Nutrients!$FA$8,Nutrients!$FA$9)*L$7)+(((IF($A$8=Nutrients!$B$79,Nutrients!$FA$79,(IF($A$8=Nutrients!$B$77,Nutrients!$FA$77,Nutrients!$FA$78)))))*L$8))","v":0},{"$f":"(SUMPRODUCT(M$9:M$229,Nutrients!$FA$8:$FA$228)+(IF($A$7=Nutrients!$B$8,Nutrients!$FA$8,Nutrients!$FA$9)*M$7)+(((IF($A$8=Nutrients!$B$79,Nutrients!$FA$79,(IF($A$8=Nutrients!$B$77,Nutrients!$FA$77,Nutrients!$FA$78)))))*M$8))","v":0},{"$f":"(SUMPRODUCT(N$9:N$229,Nutrients!$FA$8:$FA$228)+(IF($A$7=Nutrients!$B$8,Nutrients!$FA$8,Nutrients!$FA$9)*N$7)+(((IF($A$8=Nutrients!$B$79,Nutrients!$FA$79,(IF($A$8=Nutrients!$B$77,Nutrients!$FA$77,Nutrients!$FA$78)))))*N$8))","v":0},null,{"$f":"(SUMPRODUCT(P$9:P$229,Nutrients!$FA$8:$FA$228)+(IF($A$7=Nutrients!$B$8,Nutrients!$FA$8,Nutrients!$FA$9)*P$7)+(((IF($A$8=Nutrients!$B$79,Nutrients!$FA$79,(IF($A$8=Nutrients!$B$77,Nutrients!$FA$77,Nutrients!$FA$78)))))*P$8))","v":0},{"$f":"(SUMPRODUCT(Q$9:Q$229,Nutrients!$FA$8:$FA$228)+(IF($A$7=Nutrients!$B$8,Nutrients!$FA$8,Nutrients!$FA$9)*Q$7)+(((IF($A$8=Nutrients!$B$79,Nutrients!$FA$79,(IF($A$8=Nutrients!$B$77,Nutrients!$FA$77,Nutrients!$FA$78)))))*Q$8))","v":0},{"$f":"(SUMPRODUCT(R$9:R$229,Nutrients!$FA$8:$FA$228)+(IF($A$7=Nutrients!$B$8,Nutrients!$FA$8,Nutrients!$FA$9)*R$7)+(((IF($A$8=Nutrients!$B$79,Nutrients!$FA$79,(IF($A$8=Nutrients!$B$77,Nutrients!$FA$77,Nutrients!$FA$78)))))*R$8))","v":0},{"$f":"(SUMPRODUCT(S$9:S$229,Nutrients!$FA$8:$FA$228)+(IF($A$7=Nutrients!$B$8,Nutrients!$FA$8,Nutrients!$FA$9)*S$7)+(((IF($A$8=Nutrients!$B$79,Nutrients!$FA$79,(IF($A$8=Nutrients!$B$77,Nutrients!$FA$77,Nutrients!$FA$78)))))*S$8))","v":0},{"$f":"(SUMPRODUCT(T$9:T$229,Nutrients!$FA$8:$FA$228)+(IF($A$7=Nutrients!$B$8,Nutrients!$FA$8,Nutrients!$FA$9)*T$7)+(((IF($A$8=Nutrients!$B$79,Nutrients!$FA$79,(IF($A$8=Nutrients!$B$77,Nutrients!$FA$77,Nutrients!$FA$78)))))*T$8))","v":0},{"$f":"(SUMPRODUCT(U$9:U$229,Nutrients!$FA$8:$FA$228)+(IF($A$7=Nutrients!$B$8,Nutrients!$FA$8,Nutrients!$FA$9)*U$7)+(((IF($A$8=Nutrients!$B$79,Nutrients!$FA$79,(IF($A$8=Nutrients!$B$77,Nutrients!$FA$77,Nutrients!$FA$78)))))*U$8))","v":0},null,{"$f":"(SUMPRODUCT(W$9:W$229,Nutrients!$FA$8:$FA$228)+(IF($A$7=Nutrients!$B$8,Nutrients!$FA$8,Nutrients!$FA$9)*W$7)+(((IF($A$8=Nutrients!$B$79,Nutrients!$FA$79,(IF($A$8=Nutrients!$B$77,Nutrients!$FA$77,Nutrients!$FA$78)))))*W$8))","v":0},{"$f":"(SUMPRODUCT(X$9:X$229,Nutrients!$FA$8:$FA$228)+(IF($A$7=Nutrients!$B$8,Nutrients!$FA$8,Nutrients!$FA$9)*X$7)+(((IF($A$8=Nutrients!$B$79,Nutrients!$FA$79,(IF($A$8=Nutrients!$B$77,Nutrients!$FA$77,Nutrients!$FA$78)))))*X$8))","v":0},{"$f":"(SUMPRODUCT(Y$9:Y$229,Nutrients!$FA$8:$FA$228)+(IF($A$7=Nutrients!$B$8,Nutrients!$FA$8,Nutrients!$FA$9)*Y$7)+(((IF($A$8=Nutrients!$B$79,Nutrients!$FA$79,(IF($A$8=Nutrients!$B$77,Nutrients!$FA$77,Nutrients!$FA$78)))))*Y$8))","v":0},{"$f":"(SUMPRODUCT(Z$9:Z$229,Nutrients!$FA$8:$FA$228)+(IF($A$7=Nutrients!$B$8,Nutrients!$FA$8,Nutrients!$FA$9)*Z$7)+(((IF($A$8=Nutrients!$B$79,Nutrients!$FA$79,(IF($A$8=Nutrients!$B$77,Nutrients!$FA$77,Nutrients!$FA$78)))))*Z$8))","v":0},{"$f":"(SUMPRODUCT(AA$9:AA$229,Nutrients!$FA$8:$FA$228)+(IF($A$7=Nutrients!$B$8,Nutrients!$FA$8,Nutrients!$FA$9)*AA$7)+(((IF($A$8=Nutrients!$B$79,Nutrients!$FA$79,(IF($A$8=Nutrients!$B$77,Nutrients!$FA$77,Nutrients!$FA$78)))))*AA$8))","v":0},{"$f":"(SUMPRODUCT(AB$9:AB$229,Nutrients!$FA$8:$FA$228)+(IF($A$7=Nutrients!$B$8,Nutrients!$FA$8,Nutrients!$FA$9)*AB$7)+(((IF($A$8=Nutrients!$B$79,Nutrients!$FA$79,(IF($A$8=Nutrients!$B$77,Nutrients!$FA$77,Nutrients!$FA$78)))))*AB$8))","v":0},null,{"$f":"(SUMPRODUCT(AD$9:AD$229,Nutrients!$FA$8:$FA$228)+(IF($A$7=Nutrients!$B$8,Nutrients!$FA$8,Nutrients!$FA$9)*AD$7)+(((IF($A$8=Nutrients!$B$79,Nutrients!$FA$79,(IF($A$8=Nutrients!$B$77,Nutrients!$FA$77,Nutrients!$FA$78)))))*AD$8))","v":0},{"$f":"(SUMPRODUCT(AE$9:AE$229,Nutrients!$FA$8:$FA$228)+(IF($A$7=Nutrients!$B$8,Nutrients!$FA$8,Nutrients!$FA$9)*AE$7)+(((IF($A$8=Nutrients!$B$79,Nutrients!$FA$79,(IF($A$8=Nutrients!$B$77,Nutrients!$FA$77,Nutrients!$FA$78)))))*AE$8))","v":0},{"$f":"(SUMPRODUCT(AF$9:AF$229,Nutrients!$FA$8:$FA$228)+(IF($A$7=Nutrients!$B$8,Nutrients!$FA$8,Nutrients!$FA$9)*AF$7)+(((IF($A$8=Nutrients!$B$79,Nutrients!$FA$79,(IF($A$8=Nutrients!$B$77,Nutrients!$FA$77,Nutrients!$FA$78)))))*AF$8))","v":0},{"$f":"(SUMPRODUCT(AG$9:AG$229,Nutrients!$FA$8:$FA$228)+(IF($A$7=Nutrients!$B$8,Nutrients!$FA$8,Nutrients!$FA$9)*AG$7)+(((IF($A$8=Nutrients!$B$79,Nutrients!$FA$79,(IF($A$8=Nutrients!$B$77,Nutrients!$FA$77,Nutrients!$FA$78)))))*AG$8))","v":0},{"$f":"(SUMPRODUCT(AH$9:AH$229,Nutrients!$FA$8:$FA$228)+(IF($A$7=Nutrients!$B$8,Nutrients!$FA$8,Nutrients!$FA$9)*AH$7)+(((IF($A$8=Nutrients!$B$79,Nutrients!$FA$79,(IF($A$8=Nutrients!$B$77,Nutrients!$FA$77,Nutrients!$FA$78)))))*AH$8))","v":0},{"$f":"(SUMPRODUCT(AI$9:AI$229,Nutrients!$FA$8:$FA$228)+(IF($A$7=Nutrients!$B$8,Nutrients!$FA$8,Nutrients!$FA$9)*AI$7)+(((IF($A$8=Nutrients!$B$79,Nutrients!$FA$79,(IF($A$8=Nutrients!$B$77,Nutrients!$FA$77,Nutrients!$FA$78)))))*AI$8))","v":0},null,{"$f":"(SUMPRODUCT(AK$9:AK$229,Nutrients!$FA$8:$FA$228)+(IF($A$7=Nutrients!$B$8,Nutrients!$FA$8,Nutrients!$FA$9)*AK$7)+(((IF($A$8=Nutrients!$B$79,Nutrients!$FA$79,(IF($A$8=Nutrients!$B$77,Nutrients!$FA$77,Nutrients!$FA$78)))))*AK$8))","v":0},{"$f":"(SUMPRODUCT(AL$9:AL$229,Nutrients!$FA$8:$FA$228)+(IF($A$7=Nutrients!$B$8,Nutrients!$FA$8,Nutrients!$FA$9)*AL$7)+(((IF($A$8=Nutrients!$B$79,Nutrients!$FA$79,(IF($A$8=Nutrients!$B$77,Nutrients!$FA$77,Nutrients!$FA$78)))))*AL$8))","v":0},{"$f":"(SUMPRODUCT(AM$9:AM$229,Nutrients!$FA$8:$FA$228)+(IF($A$7=Nutrients!$B$8,Nutrients!$FA$8,Nutrients!$FA$9)*AM$7)+(((IF($A$8=Nutrients!$B$79,Nutrients!$FA$79,(IF($A$8=Nutrients!$B$77,Nutrients!$FA$77,Nutrients!$FA$78)))))*AM$8))","v":0},{"$f":"(SUMPRODUCT(AN$9:AN$229,Nutrients!$FA$8:$FA$228)+(IF($A$7=Nutrients!$B$8,Nutrients!$FA$8,Nutrients!$FA$9)*AN$7)+(((IF($A$8=Nutrients!$B$79,Nutrients!$FA$79,(IF($A$8=Nutrients!$B$77,Nutrients!$FA$77,Nutrients!$FA$78)))))*AN$8))","v":0},{"$f":"(SUMPRODUCT(AO$9:AO$229,Nutrients!$FA$8:$FA$228)+(IF($A$7=Nutrients!$B$8,Nutrients!$FA$8,Nutrients!$FA$9)*AO$7)+(((IF($A$8=Nutrients!$B$79,Nutrients!$FA$79,(IF($A$8=Nutrients!$B$77,Nutrients!$FA$77,Nutrients!$FA$78)))))*AO$8))","v":0},{"$f":"(SUMPRODUCT(AP$9:AP$229,Nutrients!$FA$8:$FA$228)+(IF($A$7=Nutrients!$B$8,Nutrients!$FA$8,Nutrients!$FA$9)*AP$7)+(((IF($A$8=Nutrients!$B$79,Nutrients!$FA$79,(IF($A$8=Nutrients!$B$77,Nutrients!$FA$77,Nutrients!$FA$78)))))*AP$8))","v":0},null,{"$f":"(SUMPRODUCT(AR$9:AR$229,Nutrients!$FA$8:$FA$228)+(IF($A$7=Nutrients!$B$8,Nutrients!$FA$8,Nutrients!$FA$9)*AR$7)+(((IF($A$8=Nutrients!$B$79,Nutrients!$FA$79,(IF($A$8=Nutrients!$B$77,Nutrients!$FA$77,Nutrients!$FA$78)))))*AR$8))","v":0},{"$f":"(SUMPRODUCT(AS$9:AS$229,Nutrients!$FA$8:$FA$228)+(IF($A$7=Nutrients!$B$8,Nutrients!$FA$8,Nutrients!$FA$9)*AS$7)+(((IF($A$8=Nutrients!$B$79,Nutrients!$FA$79,(IF($A$8=Nutrients!$B$77,Nutrients!$FA$77,Nutrients!$FA$78)))))*AS$8))","v":0},{"$f":"(SUMPRODUCT(AT$9:AT$229,Nutrients!$FA$8:$FA$228)+(IF($A$7=Nutrients!$B$8,Nutrients!$FA$8,Nutrients!$FA$9)*AT$7)+(((IF($A$8=Nutrients!$B$79,Nutrients!$FA$79,(IF($A$8=Nutrients!$B$77,Nutrients!$FA$77,Nutrients!$FA$78)))))*AT$8))","v":0},{"$f":"(SUMPRODUCT(AU$9:AU$229,Nutrients!$FA$8:$FA$228)+(IF($A$7=Nutrients!$B$8,Nutrients!$FA$8,Nutrients!$FA$9)*AU$7)+(((IF($A$8=Nutrients!$B$79,Nutrients!$FA$79,(IF($A$8=Nutrients!$B$77,Nutrients!$FA$77,Nutrients!$FA$78)))))*AU$8))","v":0},{"$f":"(SUMPRODUCT(AV$9:AV$229,Nutrients!$FA$8:$FA$228)+(IF($A$7=Nutrients!$B$8,Nutrients!$FA$8,Nutrients!$FA$9)*AV$7)+(((IF($A$8=Nutrients!$B$79,Nutrients!$FA$79,(IF($A$8=Nutrients!$B$77,Nutrients!$FA$77,Nutrients!$FA$78)))))*AV$8))","v":0},{"$f":"(SUMPRODUCT(AW$9:AW$229,Nutrients!$FA$8:$FA$228)+(IF($A$7=Nutrients!$B$8,Nutrients!$FA$8,Nutrients!$FA$9)*AW$7)+(((IF($A$8=Nutrients!$B$79,Nutrients!$FA$79,(IF($A$8=Nutrients!$B$77,Nutrients!$FA$77,Nutrients!$FA$78)))))*AW$8))","v":0}]
["  Folic acid, mg/ton",{"$f":"(SUMPRODUCT(B$9:B$229,Nutrients!$FB$8:$FB$228)+(IF($A$7=Nutrients!$B$8,Nutrients!$FB$8,Nutrients!$FB$9)*B$7)+(((IF($A$8=Nutrients!$B$79,Nutrients!$FB$79,(IF($A$8=Nutrients!$B$77,Nutrients!$FB$77,Nutrients!$FB$78)))))*B$8))","v":0},{"$f":"(SUMPRODUCT(C$9:C$229,Nutrients!$FB$8:$FB$228)+(IF($A$7=Nutrients!$B$8,Nutrients!$FB$8,Nutrients!$FB$9)*C$7)+(((IF($A$8=Nutrients!$B$79,Nutrients!$FB$79,(IF($A$8=Nutrients!$B$77,Nutrients!$FB$77,Nutrients!$FB$78)))))*C$8))","v":0},{"$f":"(SUMPRODUCT(D$9:D$229,Nutrients!$FB$8:$FB$228)+(IF($A$7=Nutrients!$B$8,Nutrients!$FB$8,Nutrients!$FB$9)*D$7)+(((IF($A$8=Nutrients!$B$79,Nutrients!$FB$79,(IF($A$8=Nutrients!$B$77,Nutrients!$FB$77,Nutrients!$FB$78)))))*D$8))","v":0},{"$f":"(SUMPRODUCT(E$9:E$229,Nutrients!$FB$8:$FB$228)+(IF($A$7=Nutrients!$B$8,Nutrients!$FB$8,Nutrients!$FB$9)*E$7)+(((IF($A$8=Nutrients!$B$79,Nutrients!$FB$79,(IF($A$8=Nutrients!$B$77,Nutrients!$FB$77,Nutrients!$FB$78)))))*E$8))","v":0},{"$f":"(SUMPRODUCT(F$9:F$229,Nutrients!$FB$8:$FB$228)+(IF($A$7=Nutrients!$B$8,Nutrients!$FB$8,Nutrients!$FB$9)*F$7)+(((IF($A$8=Nutrients!$B$79,Nutrients!$FB$79,(IF($A$8=Nutrients!$B$77,Nutrients!$FB$77,Nutrients!$FB$78)))))*F$8))","v":0},{"$f":"(SUMPRODUCT(G$9:G$229,Nutrients!$FB$8:$FB$228)+(IF($A$7=Nutrients!$B$8,Nutrients!$FB$8,Nutrients!$FB$9)*G$7)+(((IF($A$8=Nutrients!$B$79,Nutrients!$FB$79,(IF($A$8=Nutrients!$B$77,Nutrients!$FB$77,Nutrients!$FB$78)))))*G$8))","v":0},null,{"$f":"(SUMPRODUCT(I$9:I$229,Nutrients!$FB$8:$FB$228)+(IF($A$7=Nutrients!$B$8,Nutrients!$FB$8,Nutrients!$FB$9)*I$7)+(((IF($A$8=Nutrients!$B$79,Nutrients!$FB$79,(IF($A$8=Nutrients!$B$77,Nutrients!$FB$77,Nutrients!$FB$78)))))*I$8))","v":0},{"$f":"(SUMPRODUCT(J$9:J$229,Nutrients!$FB$8:$FB$228)+(IF($A$7=Nutrients!$B$8,Nutrients!$FB$8,Nutrients!$FB$9)*J$7)+(((IF($A$8=Nutrients!$B$79,Nutrients!$FB$79,(IF($A$8=Nutrients!$B$77,Nutrients!$FB$77,Nutrients!$FB$78)))))*J$8))","v":0},{"$f":"(SUMPRODUCT(K$9:K$229,Nutrients!$FB$8:$FB$228)+(IF($A$7=Nutrients!$B$8,Nutrients!$FB$8,Nutrients!$FB$9)*K$7)+(((IF($A$8=Nutrients!$B$79,Nutrients!$FB$79,(IF($A$8=Nutrients!$B$77,Nutrients!$FB$77,Nutrients!$FB$78)))))*K$8))","v":0},{"$f":"(SUMPRODUCT(L$9:L$229,Nutrients!$FB$8:$FB$228)+(IF($A$7=Nutrients!$B$8,Nutrients!$FB$8,Nutrients!$FB$9)*L$7)+(((IF($A$8=Nutrients!$B$79,Nutrients!$FB$79,(IF($A$8=Nutrients!$B$77,Nutrients!$FB$77,Nutrients!$FB$78)))))*L$8))","v":0},{"$f":"(SUMPRODUCT(M$9:M$229,Nutrients!$FB$8:$FB$228)+(IF($A$7=Nutrients!$B$8,Nutrients!$FB$8,Nutrients!$FB$9)*M$7)+(((IF($A$8=Nutrients!$B$79,Nutrients!$FB$79,(IF($A$8=Nutrients!$B$77,Nutrients!$FB$77,Nutrients!$FB$78)))))*M$8))","v":0},{"$f":"(SUMPRODUCT(N$9:N$229,Nutrients!$FB$8:$FB$228)+(IF($A$7=Nutrients!$B$8,Nutrients!$FB$8,Nutrients!$FB$9)*N$7)+(((IF($A$8=Nutrients!$B$79,Nutrients!$FB$79,(IF($A$8=Nutrients!$B$77,Nutrients!$FB$77,Nutrients!$FB$78)))))*N$8))","v":0},null,{"$f":"(SUMPRODUCT(P$9:P$229,Nutrients!$FB$8:$FB$228)+(IF($A$7=Nutrients!$B$8,Nutrients!$FB$8,Nutrients!$FB$9)*P$7)+(((IF($A$8=Nutrients!$B$79,Nutrients!$FB$79,(IF($A$8=Nutrients!$B$77,Nutrients!$FB$77,Nutrients!$FB$78)))))*P$8))","v":0},{"$f":"(SUMPRODUCT(Q$9:Q$229,Nutrients!$FB$8:$FB$228)+(IF($A$7=Nutrients!$B$8,Nutrients!$FB$8,Nutrients!$FB$9)*Q$7)+(((IF($A$8=Nutrients!$B$79,Nutrients!$FB$79,(IF($A$8=Nutrients!$B$77,Nutrients!$FB$77,Nutrients!$FB$78)))))*Q$8))","v":0},{"$f":"(SUMPRODUCT(R$9:R$229,Nutrients!$FB$8:$FB$228)+(IF($A$7=Nutrients!$B$8,Nutrients!$FB$8,Nutrients!$FB$9)*R$7)+(((IF($A$8=Nutrients!$B$79,Nutrients!$FB$79,(IF($A$8=Nutrients!$B$77,Nutrients!$FB$77,Nutrients!$FB$78)))))*R$8))","v":0},{"$f":"(SUMPRODUCT(S$9:S$229,Nutrients!$FB$8:$FB$228)+(IF($A$7=Nutrients!$B$8,Nutrients!$FB$8,Nutrients!$FB$9)*S$7)+(((IF($A$8=Nutrients!$B$79,Nutrients!$FB$79,(IF($A$8=Nutrients!$B$77,Nutrients!$FB$77,Nutrients!$FB$78)))))*S$8))","v":0},{"$f":"(SUMPRODUCT(T$9:T$229,Nutrients!$FB$8:$FB$228)+(IF($A$7=Nutrients!$B$8,Nutrients!$FB$8,Nutrients!$FB$9)*T$7)+(((IF($A$8=Nutrients!$B$79,Nutrients!$FB$79,(IF($A$8=Nutrients!$B$77,Nutrients!$FB$77,Nutrients!$FB$78)))))*T$8))","v":0},{"$f":"(SUMPRODUCT(U$9:U$229,Nutrients!$FB$8:$FB$228)+(IF($A$7=Nutrients!$B$8,Nutrients!$FB$8,Nutrients!$FB$9)*U$7)+(((IF($A$8=Nutrients!$B$79,Nutrients!$FB$79,(IF($A$8=Nutrients!$B$77,Nutrients!$FB$77,Nutrients!$FB$78)))))*U$8))","v":0},null,{"$f":"(SUMPRODUCT(W$9:W$229,Nutrients!$FB$8:$FB$228)+(IF($A$7=Nutrients!$B$8,Nutrients!$FB$8,Nutrients!$FB$9)*W$7)+(((IF($A$8=Nutrients!$B$79,Nutrients!$FB$79,(IF($A$8=Nutrients!$B$77,Nutrients!$FB$77,Nutrients!$FB$78)))))*W$8))","v":0},{"$f":"(SUMPRODUCT(X$9:X$229,Nutrients!$FB$8:$FB$228)+(IF($A$7=Nutrients!$B$8,Nutrients!$FB$8,Nutrients!$FB$9)*X$7)+(((IF($A$8=Nutrients!$B$79,Nutrients!$FB$79,(IF($A$8=Nutrients!$B$77,Nutrients!$FB$77,Nutrients!$FB$78)))))*X$8))","v":0},{"$f":"(SUMPRODUCT(Y$9:Y$229,Nutrients!$FB$8:$FB$228)+(IF($A$7=Nutrients!$B$8,Nutrients!$FB$8,Nutrients!$FB$9)*Y$7)+(((IF($A$8=Nutrients!$B$79,Nutrients!$FB$79,(IF($A$8=Nutrients!$B$77,Nutrients!$FB$77,Nutrients!$FB$78)))))*Y$8))","v":0},{"$f":"(SUMPRODUCT(Z$9:Z$229,Nutrients!$FB$8:$FB$228)+(IF($A$7=Nutrients!$B$8,Nutrients!$FB$8,Nutrients!$FB$9)*Z$7)+(((IF($A$8=Nutrients!$B$79,Nutrients!$FB$79,(IF($A$8=Nutrients!$B$77,Nutrients!$FB$77,Nutrients!$FB$78)))))*Z$8))","v":0},{"$f":"(SUMPRODUCT(AA$9:AA$229,Nutrients!$FB$8:$FB$228)+(IF($A$7=Nutrients!$B$8,Nutrients!$FB$8,Nutrients!$FB$9)*AA$7)+(((IF($A$8=Nutrients!$B$79,Nutrients!$FB$79,(IF($A$8=Nutrients!$B$77,Nutrients!$FB$77,Nutrients!$FB$78)))))*AA$8))","v":0},{"$f":"(SUMPRODUCT(AB$9:AB$229,Nutrients!$FB$8:$FB$228)+(IF($A$7=Nutrients!$B$8,Nutrients!$FB$8,Nutrients!$FB$9)*AB$7)+(((IF($A$8=Nutrients!$B$79,Nutrients!$FB$79,(IF($A$8=Nutrients!$B$77,Nutrients!$FB$77,Nutrients!$FB$78)))))*AB$8))","v":0},null,{"$f":"(SUMPRODUCT(AD$9:AD$229,Nutrients!$FB$8:$FB$228)+(IF($A$7=Nutrients!$B$8,Nutrients!$FB$8,Nutrients!$FB$9)*AD$7)+(((IF($A$8=Nutrients!$B$79,Nutrients!$FB$79,(IF($A$8=Nutrients!$B$77,Nutrients!$FB$77,Nutrients!$FB$78)))))*AD$8))","v":0},{"$f":"(SUMPRODUCT(AE$9:AE$229,Nutrients!$FB$8:$FB$228)+(IF($A$7=Nutrients!$B$8,Nutrients!$FB$8,Nutrients!$FB$9)*AE$7)+(((IF($A$8=Nutrients!$B$79,Nutrients!$FB$79,(IF($A$8=Nutrients!$B$77,Nutrients!$FB$77,Nutrients!$FB$78)))))*AE$8))","v":0},{"$f":"(SUMPRODUCT(AF$9:AF$229,Nutrients!$FB$8:$FB$228)+(IF($A$7=Nutrients!$B$8,Nutrients!$FB$8,Nutrients!$FB$9)*AF$7)+(((IF($A$8=Nutrients!$B$79,Nutrients!$FB$79,(IF($A$8=Nutrients!$B$77,Nutrients!$FB$77,Nutrients!$FB$78)))))*AF$8))","v":0},{"$f":"(SUMPRODUCT(AG$9:AG$229,Nutrients!$FB$8:$FB$228)+(IF($A$7=Nutrients!$B$8,Nutrients!$FB$8,Nutrients!$FB$9)*AG$7)+(((IF($A$8=Nutrients!$B$79,Nutrients!$FB$79,(IF($A$8=Nutrients!$B$77,Nutrients!$FB$77,Nutrients!$FB$78)))))*AG$8))","v":0},{"$f":"(SUMPRODUCT(AH$9:AH$229,Nutrients!$FB$8:$FB$228)+(IF($A$7=Nutrients!$B$8,Nutrients!$FB$8,Nutrients!$FB$9)*AH$7)+(((IF($A$8=Nutrients!$B$79,Nutrients!$FB$79,(IF($A$8=Nutrients!$B$77,Nutrients!$FB$77,Nutrients!$FB$78)))))*AH$8))","v":0},{"$f":"(SUMPRODUCT(AI$9:AI$229,Nutrients!$FB$8:$FB$228)+(IF($A$7=Nutrients!$B$8,Nutrients!$FB$8,Nutrients!$FB$9)*AI$7)+(((IF($A$8=Nutrients!$B$79,Nutrients!$FB$79,(IF($A$8=Nutrients!$B$77,Nutrients!$FB$77,Nutrients!$FB$78)))))*AI$8))","v":0},null,{"$f":"(SUMPRODUCT(AK$9:AK$229,Nutrients!$FB$8:$FB$228)+(IF($A$7=Nutrients!$B$8,Nutrients!$FB$8,Nutrients!$FB$9)*AK$7)+(((IF($A$8=Nutrients!$B$79,Nutrients!$FB$79,(IF($A$8=Nutrients!$B$77,Nutrients!$FB$77,Nutrients!$FB$78)))))*AK$8))","v":0},{"$f":"(SUMPRODUCT(AL$9:AL$229,Nutrients!$FB$8:$FB$228)+(IF($A$7=Nutrients!$B$8,Nutrients!$FB$8,Nutrients!$FB$9)*AL$7)+(((IF($A$8=Nutrients!$B$79,Nutrients!$FB$79,(IF($A$8=Nutrients!$B$77,Nutrients!$FB$77,Nutrients!$FB$78)))))*AL$8))","v":0},{"$f":"(SUMPRODUCT(AM$9:AM$229,Nutrients!$FB$8:$FB$228)+(IF($A$7=Nutrients!$B$8,Nutrients!$FB$8,Nutrients!$FB$9)*AM$7)+(((IF($A$8=Nutrients!$B$79,Nutrients!$FB$79,(IF($A$8=Nutrients!$B$77,Nutrients!$FB$77,Nutrients!$FB$78)))))*AM$8))","v":0},{"$f":"(SUMPRODUCT(AN$9:AN$229,Nutrients!$FB$8:$FB$228)+(IF($A$7=Nutrients!$B$8,Nutrients!$FB$8,Nutrients!$FB$9)*AN$7)+(((IF($A$8=Nutrients!$B$79,Nutrients!$FB$79,(IF($A$8=Nutrients!$B$77,Nutrients!$FB$77,Nutrients!$FB$78)))))*AN$8))","v":0},{"$f":"(SUMPRODUCT(AO$9:AO$229,Nutrients!$FB$8:$FB$228)+(IF($A$7=Nutrients!$B$8,Nutrients!$FB$8,Nutrients!$FB$9)*AO$7)+(((IF($A$8=Nutrients!$B$79,Nutrients!$FB$79,(IF($A$8=Nutrients!$B$77,Nutrients!$FB$77,Nutrients!$FB$78)))))*AO$8))","v":0},{"$f":"(SUMPRODUCT(AP$9:AP$229,Nutrients!$FB$8:$FB$228)+(IF($A$7=Nutrients!$B$8,Nutrients!$FB$8,Nutrients!$FB$9)*AP$7)+(((IF($A$8=Nutrients!$B$79,Nutrients!$FB$79,(IF($A$8=Nutrients!$B$77,Nutrients!$FB$77,Nutrients!$FB$78)))))*AP$8))","v":0},null,{"$f":"(SUMPRODUCT(AR$9:AR$229,Nutrients!$FB$8:$FB$228)+(IF($A$7=Nutrients!$B$8,Nutrients!$FB$8,Nutrients!$FB$9)*AR$7)+(((IF($A$8=Nutrients!$B$79,Nutrients!$FB$79,(IF($A$8=Nutrients!$B$77,Nutrients!$FB$77,Nutrients!$FB$78)))))*AR$8))","v":0},{"$f":"(SUMPRODUCT(AS$9:AS$229,Nutrients!$FB$8:$FB$228)+(IF($A$7=Nutrients!$B$8,Nutrients!$FB$8,Nutrients!$FB$9)*AS$7)+(((IF($A$8=Nutrients!$B$79,Nutrients!$FB$79,(IF($A$8=Nutrients!$B$77,Nutrients!$FB$77,Nutrients!$FB$78)))))*AS$8))","v":0},{"$f":"(SUMPRODUCT(AT$9:AT$229,Nutrients!$FB$8:$FB$228)+(IF($A$7=Nutrients!$B$8,Nutrients!$FB$8,Nutrients!$FB$9)*AT$7)+(((IF($A$8=Nutrients!$B$79,Nutrients!$FB$79,(IF($A$8=Nutrients!$B$77,Nutrients!$FB$77,Nutrients!$FB$78)))))*AT$8))","v":0},{"$f":"(SUMPRODUCT(AU$9:AU$229,Nutrients!$FB$8:$FB$228)+(IF($A$7=Nutrients!$B$8,Nutrients!$FB$8,Nutrients!$FB$9)*AU$7)+(((IF($A$8=Nutrients!$B$79,Nutrients!$FB$79,(IF($A$8=Nutrients!$B$77,Nutrients!$FB$77,Nutrients!$FB$78)))))*AU$8))","v":0},{"$f":"(SUMPRODUCT(AV$9:AV$229,Nutrients!$FB$8:$FB$228)+(IF($A$7=Nutrients!$B$8,Nutrients!$FB$8,Nutrients!$FB$9)*AV$7)+(((IF($A$8=Nutrients!$B$79,Nutrients!$FB$79,(IF($A$8=Nutrients!$B$77,Nutrients!$FB$77,Nutrients!$FB$78)))))*AV$8))","v":0},{"$f":"(SUMPRODUCT(AW$9:AW$229,Nutrients!$FB$8:$FB$228)+(IF($A$7=Nutrients!$B$8,Nutrients!$FB$8,Nutrients!$FB$9)*AW$7)+(((IF($A$8=Nutrients!$B$79,Nutrients!$FB$79,(IF($A$8=Nutrients!$B$77,Nutrients!$FB$77,Nutrients!$FB$78)))))*AW$8))","v":0}]
["  Pyridoxine, mg/ton",{"$f":"(SUMPRODUCT(B$9:B$229,Nutrients!$FC$8:$FC$228)+(IF($A$7=Nutrients!$B$8,Nutrients!$FC$8,Nutrients!$FC$9)*B$7)+(((IF($A$8=Nutrients!$B$79,Nutrients!$FC$79,(IF($A$8=Nutrients!$B$77,Nutrients!$FC$77,Nutrients!$FC$78)))))*B$8))","v":0},{"$f":"(SUMPRODUCT(C$9:C$229,Nutrients!$FC$8:$FC$228)+(IF($A$7=Nutrients!$B$8,Nutrients!$FC$8,Nutrients!$FC$9)*C$7)+(((IF($A$8=Nutrients!$B$79,Nutrients!$FC$79,(IF($A$8=Nutrients!$B$77,Nutrients!$FC$77,Nutrients!$FC$78)))))*C$8))","v":0},{"$f":"(SUMPRODUCT(D$9:D$229,Nutrients!$FC$8:$FC$228)+(IF($A$7=Nutrients!$B$8,Nutrients!$FC$8,Nutrients!$FC$9)*D$7)+(((IF($A$8=Nutrients!$B$79,Nutrients!$FC$79,(IF($A$8=Nutrients!$B$77,Nutrients!$FC$77,Nutrients!$FC$78)))))*D$8))","v":0},{"$f":"(SUMPRODUCT(E$9:E$229,Nutrients!$FC$8:$FC$228)+(IF($A$7=Nutrients!$B$8,Nutrients!$FC$8,Nutrients!$FC$9)*E$7)+(((IF($A$8=Nutrients!$B$79,Nutrients!$FC$79,(IF($A$8=Nutrients!$B$77,Nutrients!$FC$77,Nutrients!$FC$78)))))*E$8))","v":0},{"$f":"(SUMPRODUCT(F$9:F$229,Nutrients!$FC$8:$FC$228)+(IF($A$7=Nutrients!$B$8,Nutrients!$FC$8,Nutrients!$FC$9)*F$7)+(((IF($A$8=Nutrients!$B$79,Nutrients!$FC$79,(IF($A$8=Nutrients!$B$77,Nutrients!$FC$77,Nutrients!$FC$78)))))*F$8))","v":0},{"$f":"(SUMPRODUCT(G$9:G$229,Nutrients!$FC$8:$FC$228)+(IF($A$7=Nutrients!$B$8,Nutrients!$FC$8,Nutrients!$FC$9)*G$7)+(((IF($A$8=Nutrients!$B$79,Nutrients!$FC$79,(IF($A$8=Nutrients!$B$77,Nutrients!$FC$77,Nutrients!$FC$78)))))*G$8))","v":0},null,{"$f":"(SUMPRODUCT(I$9:I$229,Nutrients!$FC$8:$FC$228)+(IF($A$7=Nutrients!$B$8,Nutrients!$FC$8,Nutrients!$FC$9)*I$7)+(((IF($A$8=Nutrients!$B$79,Nutrients!$FC$79,(IF($A$8=Nutrients!$B$77,Nutrients!$FC$77,Nutrients!$FC$78)))))*I$8))","v":0},{"$f":"(SUMPRODUCT(J$9:J$229,Nutrients!$FC$8:$FC$228)+(IF($A$7=Nutrients!$B$8,Nutrients!$FC$8,Nutrients!$FC$9)*J$7)+(((IF($A$8=Nutrients!$B$79,Nutrients!$FC$79,(IF($A$8=Nutrients!$B$77,Nutrients!$FC$77,Nutrients!$FC$78)))))*J$8))","v":0},{"$f":"(SUMPRODUCT(K$9:K$229,Nutrients!$FC$8:$FC$228)+(IF($A$7=Nutrients!$B$8,Nutrients!$FC$8,Nutrients!$FC$9)*K$7)+(((IF($A$8=Nutrients!$B$79,Nutrients!$FC$79,(IF($A$8=Nutrients!$B$77,Nutrients!$FC$77,Nutrients!$FC$78)))))*K$8))","v":0},{"$f":"(SUMPRODUCT(L$9:L$229,Nutrients!$FC$8:$FC$228)+(IF($A$7=Nutrients!$B$8,Nutrients!$FC$8,Nutrients!$FC$9)*L$7)+(((IF($A$8=Nutrients!$B$79,Nutrients!$FC$79,(IF($A$8=Nutrients!$B$77,Nutrients!$FC$77,Nutrients!$FC$78)))))*L$8))","v":0},{"$f":"(SUMPRODUCT(M$9:M$229,Nutrients!$FC$8:$FC$228)+(IF($A$7=Nutrients!$B$8,Nutrients!$FC$8,Nutrients!$FC$9)*M$7)+(((IF($A$8=Nutrients!$B$79,Nutrients!$FC$79,(IF($A$8=Nutrients!$B$77,Nutrients!$FC$77,Nutrients!$FC$78)))))*M$8))","v":0},{"$f":"(SUMPRODUCT(N$9:N$229,Nutrients!$FC$8:$FC$228)+(IF($A$7=Nutrients!$B$8,Nutrients!$FC$8,Nutrients!$FC$9)*N$7)+(((IF($A$8=Nutrients!$B$79,Nutrients!$FC$79,(IF($A$8=Nutrients!$B$77,Nutrients!$FC$77,Nutrients!$FC$78)))))*N$8))","v":0},null,{"$f":"(SUMPRODUCT(P$9:P$229,Nutrients!$FC$8:$FC$228)+(IF($A$7=Nutrients!$B$8,Nutrients!$FC$8,Nutrients!$FC$9)*P$7)+(((IF($A$8=Nutrients!$B$79,Nutrients!$FC$79,(IF($A$8=Nutrients!$B$77,Nutrients!$FC$77,Nutrients!$FC$78)))))*P$8))","v":0},{"$f":"(SUMPRODUCT(Q$9:Q$229,Nutrients!$FC$8:$FC$228)+(IF($A$7=Nutrients!$B$8,Nutrients!$FC$8,Nutrients!$FC$9)*Q$7)+(((IF($A$8=Nutrients!$B$79,Nutrients!$FC$79,(IF($A$8=Nutrients!$B$77,Nutrients!$FC$77,Nutrients!$FC$78)))))*Q$8))","v":0},{"$f":"(SUMPRODUCT(R$9:R$229,Nutrients!$FC$8:$FC$228)+(IF($A$7=Nutrients!$B$8,Nutrients!$FC$8,Nutrients!$FC$9)*R$7)+(((IF($A$8=Nutrients!$B$79,Nutrients!$FC$79,(IF($A$8=Nutrients!$B$77,Nutrients!$FC$77,Nutrients!$FC$78)))))*R$8))","v":0},{"$f":"(SUMPRODUCT(S$9:S$229,Nutrients!$FC$8:$FC$228)+(IF($A$7=Nutrients!$B$8,Nutrients!$FC$8,Nutrients!$FC$9)*S$7)+(((IF($A$8=Nutrients!$B$79,Nutrients!$FC$79,(IF($A$8=Nutrients!$B$77,Nutrients!$FC$77,Nutrients!$FC$78)))))*S$8))","v":0},{"$f":"(SUMPRODUCT(T$9:T$229,Nutrients!$FC$8:$FC$228)+(IF($A$7=Nutrients!$B$8,Nutrients!$FC$8,Nutrients!$FC$9)*T$7)+(((IF($A$8=Nutrients!$B$79,Nutrients!$FC$79,(IF($A$8=Nutrients!$B$77,Nutrients!$FC$77,Nutrients!$FC$78)))))*T$8))","v":0},{"$f":"(SUMPRODUCT(U$9:U$229,Nutrients!$FC$8:$FC$228)+(IF($A$7=Nutrients!$B$8,Nutrients!$FC$8,Nutrients!$FC$9)*U$7)+(((IF($A$8=Nutrients!$B$79,Nutrients!$FC$79,(IF($A$8=Nutrients!$B$77,Nutrients!$FC$77,Nutrients!$FC$78)))))*U$8))","v":0},null,{"$f":"(SUMPRODUCT(W$9:W$229,Nutrients!$FC$8:$FC$228)+(IF($A$7=Nutrients!$B$8,Nutrients!$FC$8,Nutrients!$FC$9)*W$7)+(((IF($A$8=Nutrients!$B$79,Nutrients!$FC$79,(IF($A$8=Nutrients!$B$77,Nutrients!$FC$77,Nutrients!$FC$78)))))*W$8))","v":0},{"$f":"(SUMPRODUCT(X$9:X$229,Nutrients!$FC$8:$FC$228)+(IF($A$7=Nutrients!$B$8,Nutrients!$FC$8,Nutrients!$FC$9)*X$7)+(((IF($A$8=Nutrients!$B$79,Nutrients!$FC$79,(IF($A$8=Nutrients!$B$77,Nutrients!$FC$77,Nutrients!$FC$78)))))*X$8))","v":0},{"$f":"(SUMPRODUCT(Y$9:Y$229,Nutrients!$FC$8:$FC$228)+(IF($A$7=Nutrients!$B$8,Nutrients!$FC$8,Nutrients!$FC$9)*Y$7)+(((IF($A$8=Nutrients!$B$79,Nutrients!$FC$79,(IF($A$8=Nutrients!$B$77,Nutrients!$FC$77,Nutrients!$FC$78)))))*Y$8))","v":0},{"$f":"(SUMPRODUCT(Z$9:Z$229,Nutrients!$FC$8:$FC$228)+(IF($A$7=Nutrients!$B$8,Nutrients!$FC$8,Nutrients!$FC$9)*Z$7)+(((IF($A$8=Nutrients!$B$79,Nutrients!$FC$79,(IF($A$8=Nutrients!$B$77,Nutrients!$FC$77,Nutrients!$FC$78)))))*Z$8))","v":0},{"$f":"(SUMPRODUCT(AA$9:AA$229,Nutrients!$FC$8:$FC$228)+(IF($A$7=Nutrients!$B$8,Nutrients!$FC$8,Nutrients!$FC$9)*AA$7)+(((IF($A$8=Nutrients!$B$79,Nutrients!$FC$79,(IF($A$8=Nutrients!$B$77,Nutrients!$FC$77,Nutrients!$FC$78)))))*AA$8))","v":0},{"$f":"(SUMPRODUCT(AB$9:AB$229,Nutrients!$FC$8:$FC$228)+(IF($A$7=Nutrients!$B$8,Nutrients!$FC$8,Nutrients!$FC$9)*AB$7)+(((IF($A$8=Nutrients!$B$79,Nutrients!$FC$79,(IF($A$8=Nutrients!$B$77,Nutrients!$FC$77,Nutrients!$FC$78)))))*AB$8))","v":0},null,{"$f":"(SUMPRODUCT(AD$9:AD$229,Nutrients!$FC$8:$FC$228)+(IF($A$7=Nutrients!$B$8,Nutrients!$FC$8,Nutrients!$FC$9)*AD$7)+(((IF($A$8=Nutrients!$B$79,Nutrients!$FC$79,(IF($A$8=Nutrients!$B$77,Nutrients!$FC$77,Nutrients!$FC$78)))))*AD$8))","v":0},{"$f":"(SUMPRODUCT(AE$9:AE$229,Nutrients!$FC$8:$FC$228)+(IF($A$7=Nutrients!$B$8,Nutrients!$FC$8,Nutrients!$FC$9)*AE$7)+(((IF($A$8=Nutrients!$B$79,Nutrients!$FC$79,(IF($A$8=Nutrients!$B$77,Nutrients!$FC$77,Nutrients!$FC$78)))))*AE$8))","v":0},{"$f":"(SUMPRODUCT(AF$9:AF$229,Nutrients!$FC$8:$FC$228)+(IF($A$7=Nutrients!$B$8,Nutrients!$FC$8,Nutrients!$FC$9)*AF$7)+(((IF($A$8=Nutrients!$B$79,Nutrients!$FC$79,(IF($A$8=Nutrients!$B$77,Nutrients!$FC$77,Nutrients!$FC$78)))))*AF$8))","v":0},{"$f":"(SUMPRODUCT(AG$9:AG$229,Nutrients!$FC$8:$FC$228)+(IF($A$7=Nutrients!$B$8,Nutrients!$FC$8,Nutrients!$FC$9)*AG$7)+(((IF($A$8=Nutrients!$B$79,Nutrients!$FC$79,(IF($A$8=Nutrients!$B$77,Nutrients!$FC$77,Nutrients!$FC$78)))))*AG$8))","v":0},{"$f":"(SUMPRODUCT(AH$9:AH$229,Nutrients!$FC$8:$FC$228)+(IF($A$7=Nutrients!$B$8,Nutrients!$FC$8,Nutrients!$FC$9)*AH$7)+(((IF($A$8=Nutrients!$B$79,Nutrients!$FC$79,(IF($A$8=Nutrients!$B$77,Nutrients!$FC$77,Nutrients!$FC$78)))))*AH$8))","v":0},{"$f":"(SUMPRODUCT(AI$9:AI$229,Nutrients!$FC$8:$FC$228)+(IF($A$7=Nutrients!$B$8,Nutrients!$FC$8,Nutrients!$FC$9)*AI$7)+(((IF($A$8=Nutrients!$B$79,Nutrients!$FC$79,(IF($A$8=Nutrients!$B$77,Nutrients!$FC$77,Nutrients!$FC$78)))))*AI$8))","v":0},null,{"$f":"(SUMPRODUCT(AK$9:AK$229,Nutrients!$FC$8:$FC$228)+(IF($A$7=Nutrients!$B$8,Nutrients!$FC$8,Nutrients!$FC$9)*AK$7)+(((IF($A$8=Nutrients!$B$79,Nutrients!$FC$79,(IF($A$8=Nutrients!$B$77,Nutrients!$FC$77,Nutrients!$FC$78)))))*AK$8))","v":0},{"$f":"(SUMPRODUCT(AL$9:AL$229,Nutrients!$FC$8:$FC$228)+(IF($A$7=Nutrients!$B$8,Nutrients!$FC$8,Nutrients!$FC$9)*AL$7)+(((IF($A$8=Nutrients!$B$79,Nutrients!$FC$79,(IF($A$8=Nutrients!$B$77,Nutrients!$FC$77,Nutrients!$FC$78)))))*AL$8))","v":0},{"$f":"(SUMPRODUCT(AM$9:AM$229,Nutrients!$FC$8:$FC$228)+(IF($A$7=Nutrients!$B$8,Nutrients!$FC$8,Nutrients!$FC$9)*AM$7)+(((IF($A$8=Nutrients!$B$79,Nutrients!$FC$79,(IF($A$8=Nutrients!$B$77,Nutrients!$FC$77,Nutrients!$FC$78)))))*AM$8))","v":0},{"$f":"(SUMPRODUCT(AN$9:AN$229,Nutrients!$FC$8:$FC$228)+(IF($A$7=Nutrients!$B$8,Nutrients!$FC$8,Nutrients!$FC$9)*AN$7)+(((IF($A$8=Nutrients!$B$79,Nutrients!$FC$79,(IF($A$8=Nutrients!$B$77,Nutrients!$FC$77,Nutrients!$FC$78)))))*AN$8))","v":0},{"$f":"(SUMPRODUCT(AO$9:AO$229,Nutrients!$FC$8:$FC$228)+(IF($A$7=Nutrients!$B$8,Nutrients!$FC$8,Nutrients!$FC$9)*AO$7)+(((IF($A$8=Nutrients!$B$79,Nutrients!$FC$79,(IF($A$8=Nutrients!$B$77,Nutrients!$FC$77,Nutrients!$FC$78)))))*AO$8))","v":0},{"$f":"(SUMPRODUCT(AP$9:AP$229,Nutrients!$FC$8:$FC$228)+(IF($A$7=Nutrients!$B$8,Nutrients!$FC$8,Nutrients!$FC$9)*AP$7)+(((IF($A$8=Nutrients!$B$79,Nutrients!$FC$79,(IF($A$8=Nutrients!$B$77,Nutrients!$FC$77,Nutrients!$FC$78)))))*AP$8))","v":0},null,{"$f":"(SUMPRODUCT(AR$9:AR$229,Nutrients!$FC$8:$FC$228)+(IF($A$7=Nutrients!$B$8,Nutrients!$FC$8,Nutrients!$FC$9)*AR$7)+(((IF($A$8=Nutrients!$B$79,Nutrients!$FC$79,(IF($A$8=Nutrients!$B$77,Nutrients!$FC$77,Nutrients!$FC$78)))))*AR$8))","v":0},{"$f":"(SUMPRODUCT(AS$9:AS$229,Nutrients!$FC$8:$FC$228)+(IF($A$7=Nutrients!$B$8,Nutrients!$FC$8,Nutrients!$FC$9)*AS$7)+(((IF($A$8=Nutrients!$B$79,Nutrients!$FC$79,(IF($A$8=Nutrients!$B$77,Nutrients!$FC$77,Nutrients!$FC$78)))))*AS$8))","v":0},{"$f":"(SUMPRODUCT(AT$9:AT$229,Nutrients!$FC$8:$FC$228)+(IF($A$7=Nutrients!$B$8,Nutrients!$FC$8,Nutrients!$FC$9)*AT$7)+(((IF($A$8=Nutrients!$B$79,Nutrients!$FC$79,(IF($A$8=Nutrients!$B$77,Nutrients!$FC$77,Nutrients!$FC$78)))))*AT$8))","v":0},{"$f":"(SUMPRODUCT(AU$9:AU$229,Nutrients!$FC$8:$FC$228)+(IF($A$7=Nutrients!$B$8,Nutrients!$FC$8,Nutrients!$FC$9)*AU$7)+(((IF($A$8=Nutrients!$B$79,Nutrients!$FC$79,(IF($A$8=Nutrients!$B$77,Nutrients!$FC$77,Nutrients!$FC$78)))))*AU$8))","v":0},{"$f":"(SUMPRODUCT(AV$9:AV$229,Nutrients!$FC$8:$FC$228)+(IF($A$7=Nutrients!$B$8,Nutrients!$FC$8,Nutrients!$FC$9)*AV$7)+(((IF($A$8=Nutrients!$B$79,Nutrients!$FC$79,(IF($A$8=Nutrients!$B$77,Nutrients!$FC$77,Nutrients!$FC$78)))))*AV$8))","v":0},{"$f":"(SUMPRODUCT(AW$9:AW$229,Nutrients!$FC$8:$FC$228)+(IF($A$7=Nutrients!$B$8,Nutrients!$FC$8,Nutrients!$FC$9)*AW$7)+(((IF($A$8=Nutrients!$B$79,Nutrients!$FC$79,(IF($A$8=Nutrients!$B$77,Nutrients!$FC$77,Nutrients!$FC$78)))))*AW$8))","v":0}]
["  Choline, mg/ton",{"$f":"(SUMPRODUCT(B$9:B$229,Nutrients!$FD$8:$FD$228)+(IF($A$7=Nutrients!$B$8,Nutrients!$FD$8,Nutrients!$FD$9)*B$7)+(((IF($A$8=Nutrients!$B$79,Nutrients!$FD$79,(IF($A$8=Nutrients!$B$77,Nutrients!$FD$77,Nutrients!$FD$78)))))*B$8))","v":0},{"$f":"(SUMPRODUCT(C$9:C$229,Nutrients!$FD$8:$FD$228)+(IF($A$7=Nutrients!$B$8,Nutrients!$FD$8,Nutrients!$FD$9)*C$7)+(((IF($A$8=Nutrients!$B$79,Nutrients!$FD$79,(IF($A$8=Nutrients!$B$77,Nutrients!$FD$77,Nutrients!$FD$78)))))*C$8))","v":0},{"$f":"(SUMPRODUCT(D$9:D$229,Nutrients!$FD$8:$FD$228)+(IF($A$7=Nutrients!$B$8,Nutrients!$FD$8,Nutrients!$FD$9)*D$7)+(((IF($A$8=Nutrients!$B$79,Nutrients!$FD$79,(IF($A$8=Nutrients!$B$77,Nutrients!$FD$77,Nutrients!$FD$78)))))*D$8))","v":0},{"$f":"(SUMPRODUCT(E$9:E$229,Nutrients!$FD$8:$FD$228)+(IF($A$7=Nutrients!$B$8,Nutrients!$FD$8,Nutrients!$FD$9)*E$7)+(((IF($A$8=Nutrients!$B$79,Nutrients!$FD$79,(IF($A$8=Nutrients!$B$77,Nutrients!$FD$77,Nutrients!$FD$78)))))*E$8))","v":0},{"$f":"(SUMPRODUCT(F$9:F$229,Nutrients!$FD$8:$FD$228)+(IF($A$7=Nutrients!$B$8,Nutrients!$FD$8,Nutrients!$FD$9)*F$7)+(((IF($A$8=Nutrients!$B$79,Nutrients!$FD$79,(IF($A$8=Nutrients!$B$77,Nutrients!$FD$77,Nutrients!$FD$78)))))*F$8))","v":0},{"$f":"(SUMPRODUCT(G$9:G$229,Nutrients!$FD$8:$FD$228)+(IF($A$7=Nutrients!$B$8,Nutrients!$FD$8,Nutrients!$FD$9)*G$7)+(((IF($A$8=Nutrients!$B$79,Nutrients!$FD$79,(IF($A$8=Nutrients!$B$77,Nutrients!$FD$77,Nutrients!$FD$78)))))*G$8))","v":0},null,{"$f":"(SUMPRODUCT(I$9:I$229,Nutrients!$FD$8:$FD$228)+(IF($A$7=Nutrients!$B$8,Nutrients!$FD$8,Nutrients!$FD$9)*I$7)+(((IF($A$8=Nutrients!$B$79,Nutrients!$FD$79,(IF($A$8=Nutrients!$B$77,Nutrients!$FD$77,Nutrients!$FD$78)))))*I$8))","v":0},{"$f":"(SUMPRODUCT(J$9:J$229,Nutrients!$FD$8:$FD$228)+(IF($A$7=Nutrients!$B$8,Nutrients!$FD$8,Nutrients!$FD$9)*J$7)+(((IF($A$8=Nutrients!$B$79,Nutrients!$FD$79,(IF($A$8=Nutrients!$B$77,Nutrients!$FD$77,Nutrients!$FD$78)))))*J$8))","v":0},{"$f":"(SUMPRODUCT(K$9:K$229,Nutrients!$FD$8:$FD$228)+(IF($A$7=Nutrients!$B$8,Nutrients!$FD$8,Nutrients!$FD$9)*K$7)+(((IF($A$8=Nutrients!$B$79,Nutrients!$FD$79,(IF($A$8=Nutrients!$B$77,Nutrients!$FD$77,Nutrients!$FD$78)))))*K$8))","v":0},{"$f":"(SUMPRODUCT(L$9:L$229,Nutrients!$FD$8:$FD$228)+(IF($A$7=Nutrients!$B$8,Nutrients!$FD$8,Nutrients!$FD$9)*L$7)+(((IF($A$8=Nutrients!$B$79,Nutrients!$FD$79,(IF($A$8=Nutrients!$B$77,Nutrients!$FD$77,Nutrients!$FD$78)))))*L$8))","v":0},{"$f":"(SUMPRODUCT(M$9:M$229,Nutrients!$FD$8:$FD$228)+(IF($A$7=Nutrients!$B$8,Nutrients!$FD$8,Nutrients!$FD$9)*M$7)+(((IF($A$8=Nutrients!$B$79,Nutrients!$FD$79,(IF($A$8=Nutrients!$B$77,Nutrients!$FD$77,Nutrients!$FD$78)))))*M$8))","v":0},{"$f":"(SUMPRODUCT(N$9:N$229,Nutrients!$FD$8:$FD$228)+(IF($A$7=Nutrients!$B$8,Nutrients!$FD$8,Nutrients!$FD$9)*N$7)+(((IF($A$8=Nutrients!$B$79,Nutrients!$FD$79,(IF($A$8=Nutrients!$B$77,Nutrients!$FD$77,Nutrients!$FD$78)))))*N$8))","v":0},null,{"$f":"(SUMPRODUCT(P$9:P$229,Nutrients!$FD$8:$FD$228)+(IF($A$7=Nutrients!$B$8,Nutrients!$FD$8,Nutrients!$FD$9)*P$7)+(((IF($A$8=Nutrients!$B$79,Nutrients!$FD$79,(IF($A$8=Nutrients!$B$77,Nutrients!$FD$77,Nutrients!$FD$78)))))*P$8))","v":0},{"$f":"(SUMPRODUCT(Q$9:Q$229,Nutrients!$FD$8:$FD$228)+(IF($A$7=Nutrients!$B$8,Nutrients!$FD$8,Nutrients!$FD$9)*Q$7)+(((IF($A$8=Nutrients!$B$79,Nutrients!$FD$79,(IF($A$8=Nutrients!$B$77,Nutrients!$FD$77,Nutrients!$FD$78)))))*Q$8))","v":0},{"$f":"(SUMPRODUCT(R$9:R$229,Nutrients!$FD$8:$FD$228)+(IF($A$7=Nutrients!$B$8,Nutrients!$FD$8,Nutrients!$FD$9)*R$7)+(((IF($A$8=Nutrients!$B$79,Nutrients!$FD$79,(IF($A$8=Nutrients!$B$77,Nutrients!$FD$77,Nutrients!$FD$78)))))*R$8))","v":0},{"$f":"(SUMPRODUCT(S$9:S$229,Nutrients!$FD$8:$FD$228)+(IF($A$7=Nutrients!$B$8,Nutrients!$FD$8,Nutrients!$FD$9)*S$7)+(((IF($A$8=Nutrients!$B$79,Nutrients!$FD$79,(IF($A$8=Nutrients!$B$77,Nutrients!$FD$77,Nutrients!$FD$78)))))*S$8))","v":0},{"$f":"(SUMPRODUCT(T$9:T$229,Nutrients!$FD$8:$FD$228)+(IF($A$7=Nutrients!$B$8,Nutrients!$FD$8,Nutrients!$FD$9)*T$7)+(((IF($A$8=Nutrients!$B$79,Nutrients!$FD$79,(IF($A$8=Nutrients!$B$77,Nutrients!$FD$77,Nutrients!$FD$78)))))*T$8))","v":0},{"$f":"(SUMPRODUCT(U$9:U$229,Nutrients!$FD$8:$FD$228)+(IF($A$7=Nutrients!$B$8,Nutrients!$FD$8,Nutrients!$FD$9)*U$7)+(((IF($A$8=Nutrients!$B$79,Nutrients!$FD$79,(IF($A$8=Nutrients!$B$77,Nutrients!$FD$77,Nutrients!$FD$78)))))*U$8))","v":0},null,{"$f":"(SUMPRODUCT(W$9:W$229,Nutrients!$FD$8:$FD$228)+(IF($A$7=Nutrients!$B$8,Nutrients!$FD$8,Nutrients!$FD$9)*W$7)+(((IF($A$8=Nutrients!$B$79,Nutrients!$FD$79,(IF($A$8=Nutrients!$B$77,Nutrients!$FD$77,Nutrients!$FD$78)))))*W$8))","v":0},{"$f":"(SUMPRODUCT(X$9:X$229,Nutrients!$FD$8:$FD$228)+(IF($A$7=Nutrients!$B$8,Nutrients!$FD$8,Nutrients!$FD$9)*X$7)+(((IF($A$8=Nutrients!$B$79,Nutrients!$FD$79,(IF($A$8=Nutrients!$B$77,Nutrients!$FD$77,Nutrients!$FD$78)))))*X$8))","v":0},{"$f":"(SUMPRODUCT(Y$9:Y$229,Nutrients!$FD$8:$FD$228)+(IF($A$7=Nutrients!$B$8,Nutrients!$FD$8,Nutrients!$FD$9)*Y$7)+(((IF($A$8=Nutrients!$B$79,Nutrients!$FD$79,(IF($A$8=Nutrients!$B$77,Nutrients!$FD$77,Nutrients!$FD$78)))))*Y$8))","v":0},{"$f":"(SUMPRODUCT(Z$9:Z$229,Nutrients!$FD$8:$FD$228)+(IF($A$7=Nutrients!$B$8,Nutrients!$FD$8,Nutrients!$FD$9)*Z$7)+(((IF($A$8=Nutrients!$B$79,Nutrients!$FD$79,(IF($A$8=Nutrients!$B$77,Nutrients!$FD$77,Nutrients!$FD$78)))))*Z$8))","v":0},{"$f":"(SUMPRODUCT(AA$9:AA$229,Nutrients!$FD$8:$FD$228)+(IF($A$7=Nutrients!$B$8,Nutrients!$FD$8,Nutrients!$FD$9)*AA$7)+(((IF($A$8=Nutrients!$B$79,Nutrients!$FD$79,(IF($A$8=Nutrients!$B$77,Nutrients!$FD$77,Nutrients!$FD$78)))))*AA$8))","v":0},{"$f":"(SUMPRODUCT(AB$9:AB$229,Nutrients!$FD$8:$FD$228)+(IF($A$7=Nutrients!$B$8,Nutrients!$FD$8,Nutrients!$FD$9)*AB$7)+(((IF($A$8=Nutrients!$B$79,Nutrients!$FD$79,(IF($A$8=Nutrients!$B$77,Nutrients!$FD$77,Nutrients!$FD$78)))))*AB$8))","v":0},null,{"$f":"(SUMPRODUCT(AD$9:AD$229,Nutrients!$FD$8:$FD$228)+(IF($A$7=Nutrients!$B$8,Nutrients!$FD$8,Nutrients!$FD$9)*AD$7)+(((IF($A$8=Nutrients!$B$79,Nutrients!$FD$79,(IF($A$8=Nutrients!$B$77,Nutrients!$FD$77,Nutrients!$FD$78)))))*AD$8))","v":0},{"$f":"(SUMPRODUCT(AE$9:AE$229,Nutrients!$FD$8:$FD$228)+(IF($A$7=Nutrients!$B$8,Nutrients!$FD$8,Nutrients!$FD$9)*AE$7)+(((IF($A$8=Nutrients!$B$79,Nutrients!$FD$79,(IF($A$8=Nutrients!$B$77,Nutrients!$FD$77,Nutrients!$FD$78)))))*AE$8))","v":0},{"$f":"(SUMPRODUCT(AF$9:AF$229,Nutrients!$FD$8:$FD$228)+(IF($A$7=Nutrients!$B$8,Nutrients!$FD$8,Nutrients!$FD$9)*AF$7)+(((IF($A$8=Nutrients!$B$79,Nutrients!$FD$79,(IF($A$8=Nutrients!$B$77,Nutrients!$FD$77,Nutrients!$FD$78)))))*AF$8))","v":0},{"$f":"(SUMPRODUCT(AG$9:AG$229,Nutrients!$FD$8:$FD$228)+(IF($A$7=Nutrients!$B$8,Nutrients!$FD$8,Nutrients!$FD$9)*AG$7)+(((IF($A$8=Nutrients!$B$79,Nutrients!$FD$79,(IF($A$8=Nutrients!$B$77,Nutrients!$FD$77,Nutrients!$FD$78)))))*AG$8))","v":0},{"$f":"(SUMPRODUCT(AH$9:AH$229,Nutrients!$FD$8:$FD$228)+(IF($A$7=Nutrients!$B$8,Nutrients!$FD$8,Nutrients!$FD$9)*AH$7)+(((IF($A$8=Nutrients!$B$79,Nutrients!$FD$79,(IF($A$8=Nutrients!$B$77,Nutrients!$FD$77,Nutrients!$FD$78)))))*AH$8))","v":0},{"$f":"(SUMPRODUCT(AI$9:AI$229,Nutrients!$FD$8:$FD$228)+(IF($A$7=Nutrients!$B$8,Nutrients!$FD$8,Nutrients!$FD$9)*AI$7)+(((IF($A$8=Nutrients!$B$79,Nutrients!$FD$79,(IF($A$8=Nutrients!$B$77,Nutrients!$FD$77,Nutrients!$FD$78)))))*AI$8))","v":0},null,{"$f":"(SUMPRODUCT(AK$9:AK$229,Nutrients!$FD$8:$FD$228)+(IF($A$7=Nutrients!$B$8,Nutrients!$FD$8,Nutrients!$FD$9)*AK$7)+(((IF($A$8=Nutrients!$B$79,Nutrients!$FD$79,(IF($A$8=Nutrients!$B$77,Nutrients!$FD$77,Nutrients!$FD$78)))))*AK$8))","v":0},{"$f":"(SUMPRODUCT(AL$9:AL$229,Nutrients!$FD$8:$FD$228)+(IF($A$7=Nutrients!$B$8,Nutrients!$FD$8,Nutrients!$FD$9)*AL$7)+(((IF($A$8=Nutrients!$B$79,Nutrients!$FD$79,(IF($A$8=Nutrients!$B$77,Nutrients!$FD$77,Nutrients!$FD$78)))))*AL$8))","v":0},{"$f":"(SUMPRODUCT(AM$9:AM$229,Nutrients!$FD$8:$FD$228)+(IF($A$7=Nutrients!$B$8,Nutrients!$FD$8,Nutrients!$FD$9)*AM$7)+(((IF($A$8=Nutrients!$B$79,Nutrients!$FD$79,(IF($A$8=Nutrients!$B$77,Nutrients!$FD$77,Nutrients!$FD$78)))))*AM$8))","v":0},{"$f":"(SUMPRODUCT(AN$9:AN$229,Nutrients!$FD$8:$FD$228)+(IF($A$7=Nutrients!$B$8,Nutrients!$FD$8,Nutrients!$FD$9)*AN$7)+(((IF($A$8=Nutrients!$B$79,Nutrients!$FD$79,(IF($A$8=Nutrients!$B$77,Nutrients!$FD$77,Nutrients!$FD$78)))))*AN$8))","v":0},{"$f":"(SUMPRODUCT(AO$9:AO$229,Nutrients!$FD$8:$FD$228)+(IF($A$7=Nutrients!$B$8,Nutrients!$FD$8,Nutrients!$FD$9)*AO$7)+(((IF($A$8=Nutrients!$B$79,Nutrients!$FD$79,(IF($A$8=Nutrients!$B$77,Nutrients!$FD$77,Nutrients!$FD$78)))))*AO$8))","v":0},{"$f":"(SUMPRODUCT(AP$9:AP$229,Nutrients!$FD$8:$FD$228)+(IF($A$7=Nutrients!$B$8,Nutrients!$FD$8,Nutrients!$FD$9)*AP$7)+(((IF($A$8=Nutrients!$B$79,Nutrients!$FD$79,(IF($A$8=Nutrients!$B$77,Nutrients!$FD$77,Nutrients!$FD$78)))))*AP$8))","v":0},null,{"$f":"(SUMPRODUCT(AR$9:AR$229,Nutrients!$FD$8:$FD$228)+(IF($A$7=Nutrients!$B$8,Nutrients!$FD$8,Nutrients!$FD$9)*AR$7)+(((IF($A$8=Nutrients!$B$79,Nutrients!$FD$79,(IF($A$8=Nutrients!$B$77,Nutrients!$FD$77,Nutrients!$FD$78)))))*AR$8))","v":0},{"$f":"(SUMPRODUCT(AS$9:AS$229,Nutrients!$FD$8:$FD$228)+(IF($A$7=Nutrients!$B$8,Nutrients!$FD$8,Nutrients!$FD$9)*AS$7)+(((IF($A$8=Nutrients!$B$79,Nutrients!$FD$79,(IF($A$8=Nutrients!$B$77,Nutrients!$FD$77,Nutrients!$FD$78)))))*AS$8))","v":0},{"$f":"(SUMPRODUCT(AT$9:AT$229,Nutrients!$FD$8:$FD$228)+(IF($A$7=Nutrients!$B$8,Nutrients!$FD$8,Nutrients!$FD$9)*AT$7)+(((IF($A$8=Nutrients!$B$79,Nutrients!$FD$79,(IF($A$8=Nutrients!$B$77,Nutrients!$FD$77,Nutrients!$FD$78)))))*AT$8))","v":0},{"$f":"(SUMPRODUCT(AU$9:AU$229,Nutrients!$FD$8:$FD$228)+(IF($A$7=Nutrients!$B$8,Nutrients!$FD$8,Nutrients!$FD$9)*AU$7)+(((IF($A$8=Nutrients!$B$79,Nutrients!$FD$79,(IF($A$8=Nutrients!$B$77,Nutrients!$FD$77,Nutrients!$FD$78)))))*AU$8))","v":0},{"$f":"(SUMPRODUCT(AV$9:AV$229,Nutrients!$FD$8:$FD$228)+(IF($A$7=Nutrients!$B$8,Nutrients!$FD$8,Nutrients!$FD$9)*AV$7)+(((IF($A$8=Nutrients!$B$79,Nutrients!$FD$79,(IF($A$8=Nutrients!$B$77,Nutrients!$FD$77,Nutrients!$FD$78)))))*AV$8))","v":0},{"$f":"(SUMPRODUCT(AW$9:AW$229,Nutrients!$FD$8:$FD$228)+(IF($A$7=Nutrients!$B$8,Nutrients!$FD$8,Nutrients!$FD$9)*AW$7)+(((IF($A$8=Nutrients!$B$79,Nutrients!$FD$79,(IF($A$8=Nutrients!$B$77,Nutrients!$FD$77,Nutrients!$FD$78)))))*AW$8))","v":0}]
["  Carnitine, mg/ton",{"$f":"(SUMPRODUCT(B$9:B$229,Nutrients!$FE$8:$FE$228)+(IF($A$7=Nutrients!$B$8,Nutrients!$FE$8,Nutrients!$FE$9)*B$7)+(((IF($A$8=Nutrients!$B$79,Nutrients!$FE$79,(IF($A$8=Nutrients!$B$77,Nutrients!$FE$77,Nutrients!$FE$78)))))*B$8))","v":0},{"$f":"(SUMPRODUCT(C$9:C$229,Nutrients!$FE$8:$FE$228)+(IF($A$7=Nutrients!$B$8,Nutrients!$FE$8,Nutrients!$FE$9)*C$7)+(((IF($A$8=Nutrients!$B$79,Nutrients!$FE$79,(IF($A$8=Nutrients!$B$77,Nutrients!$FE$77,Nutrients!$FE$78)))))*C$8))","v":0},{"$f":"(SUMPRODUCT(D$9:D$229,Nutrients!$FE$8:$FE$228)+(IF($A$7=Nutrients!$B$8,Nutrients!$FE$8,Nutrients!$FE$9)*D$7)+(((IF($A$8=Nutrients!$B$79,Nutrients!$FE$79,(IF($A$8=Nutrients!$B$77,Nutrients!$FE$77,Nutrients!$FE$78)))))*D$8))","v":0},{"$f":"(SUMPRODUCT(E$9:E$229,Nutrients!$FE$8:$FE$228)+(IF($A$7=Nutrients!$B$8,Nutrients!$FE$8,Nutrients!$FE$9)*E$7)+(((IF($A$8=Nutrients!$B$79,Nutrients!$FE$79,(IF($A$8=Nutrients!$B$77,Nutrients!$FE$77,Nutrients!$FE$78)))))*E$8))","v":0},{"$f":"(SUMPRODUCT(F$9:F$229,Nutrients!$FE$8:$FE$228)+(IF($A$7=Nutrients!$B$8,Nutrients!$FE$8,Nutrients!$FE$9)*F$7)+(((IF($A$8=Nutrients!$B$79,Nutrients!$FE$79,(IF($A$8=Nutrients!$B$77,Nutrients!$FE$77,Nutrients!$FE$78)))))*F$8))","v":0},{"$f":"(SUMPRODUCT(G$9:G$229,Nutrients!$FE$8:$FE$228)+(IF($A$7=Nutrients!$B$8,Nutrients!$FE$8,Nutrients!$FE$9)*G$7)+(((IF($A$8=Nutrients!$B$79,Nutrients!$FE$79,(IF($A$8=Nutrients!$B$77,Nutrients!$FE$77,Nutrients!$FE$78)))))*G$8))","v":0},null,{"$f":"(SUMPRODUCT(I$9:I$229,Nutrients!$FE$8:$FE$228)+(IF($A$7=Nutrients!$B$8,Nutrients!$FE$8,Nutrients!$FE$9)*I$7)+(((IF($A$8=Nutrients!$B$79,Nutrients!$FE$79,(IF($A$8=Nutrients!$B$77,Nutrients!$FE$77,Nutrients!$FE$78)))))*I$8))","v":0},{"$f":"(SUMPRODUCT(J$9:J$229,Nutrients!$FE$8:$FE$228)+(IF($A$7=Nutrients!$B$8,Nutrients!$FE$8,Nutrients!$FE$9)*J$7)+(((IF($A$8=Nutrients!$B$79,Nutrients!$FE$79,(IF($A$8=Nutrients!$B$77,Nutrients!$FE$77,Nutrients!$FE$78)))))*J$8))","v":0},{"$f":"(SUMPRODUCT(K$9:K$229,Nutrients!$FE$8:$FE$228)+(IF($A$7=Nutrients!$B$8,Nutrients!$FE$8,Nutrients!$FE$9)*K$7)+(((IF($A$8=Nutrients!$B$79,Nutrients!$FE$79,(IF($A$8=Nutrients!$B$77,Nutrients!$FE$77,Nutrients!$FE$78)))))*K$8))","v":0},{"$f":"(SUMPRODUCT(L$9:L$229,Nutrients!$FE$8:$FE$228)+(IF($A$7=Nutrients!$B$8,Nutrients!$FE$8,Nutrients!$FE$9)*L$7)+(((IF($A$8=Nutrients!$B$79,Nutrients!$FE$79,(IF($A$8=Nutrients!$B$77,Nutrients!$FE$77,Nutrients!$FE$78)))))*L$8))","v":0},{"$f":"(SUMPRODUCT(M$9:M$229,Nutrients!$FE$8:$FE$228)+(IF($A$7=Nutrients!$B$8,Nutrients!$FE$8,Nutrients!$FE$9)*M$7)+(((IF($A$8=Nutrients!$B$79,Nutrients!$FE$79,(IF($A$8=Nutrients!$B$77,Nutrients!$FE$77,Nutrients!$FE$78)))))*M$8))","v":0},{"$f":"(SUMPRODUCT(N$9:N$229,Nutrients!$FE$8:$FE$228)+(IF($A$7=Nutrients!$B$8,Nutrients!$FE$8,Nutrients!$FE$9)*N$7)+(((IF($A$8=Nutrients!$B$79,Nutrients!$FE$79,(IF($A$8=Nutrients!$B$77,Nutrients!$FE$77,Nutrients!$FE$78)))))*N$8))","v":0},null,{"$f":"(SUMPRODUCT(P$9:P$229,Nutrients!$FE$8:$FE$228)+(IF($A$7=Nutrients!$B$8,Nutrients!$FE$8,Nutrients!$FE$9)*P$7)+(((IF($A$8=Nutrients!$B$79,Nutrients!$FE$79,(IF($A$8=Nutrients!$B$77,Nutrients!$FE$77,Nutrients!$FE$78)))))*P$8))","v":0},{"$f":"(SUMPRODUCT(Q$9:Q$229,Nutrients!$FE$8:$FE$228)+(IF($A$7=Nutrients!$B$8,Nutrients!$FE$8,Nutrients!$FE$9)*Q$7)+(((IF($A$8=Nutrients!$B$79,Nutrients!$FE$79,(IF($A$8=Nutrients!$B$77,Nutrients!$FE$77,Nutrients!$FE$78)))))*Q$8))","v":0},{"$f":"(SUMPRODUCT(R$9:R$229,Nutrients!$FE$8:$FE$228)+(IF($A$7=Nutrients!$B$8,Nutrients!$FE$8,Nutrients!$FE$9)*R$7)+(((IF($A$8=Nutrients!$B$79,Nutrients!$FE$79,(IF($A$8=Nutrients!$B$77,Nutrients!$FE$77,Nutrients!$FE$78)))))*R$8))","v":0},{"$f":"(SUMPRODUCT(S$9:S$229,Nutrients!$FE$8:$FE$228)+(IF($A$7=Nutrients!$B$8,Nutrients!$FE$8,Nutrients!$FE$9)*S$7)+(((IF($A$8=Nutrients!$B$79,Nutrients!$FE$79,(IF($A$8=Nutrients!$B$77,Nutrients!$FE$77,Nutrients!$FE$78)))))*S$8))","v":0},{"$f":"(SUMPRODUCT(T$9:T$229,Nutrients!$FE$8:$FE$228)+(IF($A$7=Nutrients!$B$8,Nutrients!$FE$8,Nutrients!$FE$9)*T$7)+(((IF($A$8=Nutrients!$B$79,Nutrients!$FE$79,(IF($A$8=Nutrients!$B$77,Nutrients!$FE$77,Nutrients!$FE$78)))))*T$8))","v":0},{"$f":"(SUMPRODUCT(U$9:U$229,Nutrients!$FE$8:$FE$228)+(IF($A$7=Nutrients!$B$8,Nutrients!$FE$8,Nutrients!$FE$9)*U$7)+(((IF($A$8=Nutrients!$B$79,Nutrients!$FE$79,(IF($A$8=Nutrients!$B$77,Nutrients!$FE$77,Nutrients!$FE$78)))))*U$8))","v":0},null,{"$f":"(SUMPRODUCT(W$9:W$229,Nutrients!$FE$8:$FE$228)+(IF($A$7=Nutrients!$B$8,Nutrients!$FE$8,Nutrients!$FE$9)*W$7)+(((IF($A$8=Nutrients!$B$79,Nutrients!$FE$79,(IF($A$8=Nutrients!$B$77,Nutrients!$FE$77,Nutrients!$FE$78)))))*W$8))","v":0},{"$f":"(SUMPRODUCT(X$9:X$229,Nutrients!$FE$8:$FE$228)+(IF($A$7=Nutrients!$B$8,Nutrients!$FE$8,Nutrients!$FE$9)*X$7)+(((IF($A$8=Nutrients!$B$79,Nutrients!$FE$79,(IF($A$8=Nutrients!$B$77,Nutrients!$FE$77,Nutrients!$FE$78)))))*X$8))","v":0},{"$f":"(SUMPRODUCT(Y$9:Y$229,Nutrients!$FE$8:$FE$228)+(IF($A$7=Nutrients!$B$8,Nutrients!$FE$8,Nutrients!$FE$9)*Y$7)+(((IF($A$8=Nutrients!$B$79,Nutrients!$FE$79,(IF($A$8=Nutrients!$B$77,Nutrients!$FE$77,Nutrients!$FE$78)))))*Y$8))","v":0},{"$f":"(SUMPRODUCT(Z$9:Z$229,Nutrients!$FE$8:$FE$228)+(IF($A$7=Nutrients!$B$8,Nutrients!$FE$8,Nutrients!$FE$9)*Z$7)+(((IF($A$8=Nutrients!$B$79,Nutrients!$FE$79,(IF($A$8=Nutrients!$B$77,Nutrients!$FE$77,Nutrients!$FE$78)))))*Z$8))","v":0},{"$f":"(SUMPRODUCT(AA$9:AA$229,Nutrients!$FE$8:$FE$228)+(IF($A$7=Nutrients!$B$8,Nutrients!$FE$8,Nutrients!$FE$9)*AA$7)+(((IF($A$8=Nutrients!$B$79,Nutrients!$FE$79,(IF($A$8=Nutrients!$B$77,Nutrients!$FE$77,Nutrients!$FE$78)))))*AA$8))","v":0},{"$f":"(SUMPRODUCT(AB$9:AB$229,Nutrients!$FE$8:$FE$228)+(IF($A$7=Nutrients!$B$8,Nutrients!$FE$8,Nutrients!$FE$9)*AB$7)+(((IF($A$8=Nutrients!$B$79,Nutrients!$FE$79,(IF($A$8=Nutrients!$B$77,Nutrients!$FE$77,Nutrients!$FE$78)))))*AB$8))","v":0},null,{"$f":"(SUMPRODUCT(AD$9:AD$229,Nutrients!$FE$8:$FE$228)+(IF($A$7=Nutrients!$B$8,Nutrients!$FE$8,Nutrients!$FE$9)*AD$7)+(((IF($A$8=Nutrients!$B$79,Nutrients!$FE$79,(IF($A$8=Nutrients!$B$77,Nutrients!$FE$77,Nutrients!$FE$78)))))*AD$8))","v":0},{"$f":"(SUMPRODUCT(AE$9:AE$229,Nutrients!$FE$8:$FE$228)+(IF($A$7=Nutrients!$B$8,Nutrients!$FE$8,Nutrients!$FE$9)*AE$7)+(((IF($A$8=Nutrients!$B$79,Nutrients!$FE$79,(IF($A$8=Nutrients!$B$77,Nutrients!$FE$77,Nutrients!$FE$78)))))*AE$8))","v":0},{"$f":"(SUMPRODUCT(AF$9:AF$229,Nutrients!$FE$8:$FE$228)+(IF($A$7=Nutrients!$B$8,Nutrients!$FE$8,Nutrients!$FE$9)*AF$7)+(((IF($A$8=Nutrients!$B$79,Nutrients!$FE$79,(IF($A$8=Nutrients!$B$77,Nutrients!$FE$77,Nutrients!$FE$78)))))*AF$8))","v":0},{"$f":"(SUMPRODUCT(AG$9:AG$229,Nutrients!$FE$8:$FE$228)+(IF($A$7=Nutrients!$B$8,Nutrients!$FE$8,Nutrients!$FE$9)*AG$7)+(((IF($A$8=Nutrients!$B$79,Nutrients!$FE$79,(IF($A$8=Nutrients!$B$77,Nutrients!$FE$77,Nutrients!$FE$78)))))*AG$8))","v":0},{"$f":"(SUMPRODUCT(AH$9:AH$229,Nutrients!$FE$8:$FE$228)+(IF($A$7=Nutrients!$B$8,Nutrients!$FE$8,Nutrients!$FE$9)*AH$7)+(((IF($A$8=Nutrients!$B$79,Nutrients!$FE$79,(IF($A$8=Nutrients!$B$77,Nutrients!$FE$77,Nutrients!$FE$78)))))*AH$8))","v":0},{"$f":"(SUMPRODUCT(AI$9:AI$229,Nutrients!$FE$8:$FE$228)+(IF($A$7=Nutrients!$B$8,Nutrients!$FE$8,Nutrients!$FE$9)*AI$7)+(((IF($A$8=Nutrients!$B$79,Nutrients!$FE$79,(IF($A$8=Nutrients!$B$77,Nutrients!$FE$77,Nutrients!$FE$78)))))*AI$8))","v":0},null,{"$f":"(SUMPRODUCT(AK$9:AK$229,Nutrients!$FE$8:$FE$228)+(IF($A$7=Nutrients!$B$8,Nutrients!$FE$8,Nutrients!$FE$9)*AK$7)+(((IF($A$8=Nutrients!$B$79,Nutrients!$FE$79,(IF($A$8=Nutrients!$B$77,Nutrients!$FE$77,Nutrients!$FE$78)))))*AK$8))","v":0},{"$f":"(SUMPRODUCT(AL$9:AL$229,Nutrients!$FE$8:$FE$228)+(IF($A$7=Nutrients!$B$8,Nutrients!$FE$8,Nutrients!$FE$9)*AL$7)+(((IF($A$8=Nutrients!$B$79,Nutrients!$FE$79,(IF($A$8=Nutrients!$B$77,Nutrients!$FE$77,Nutrients!$FE$78)))))*AL$8))","v":0},{"$f":"(SUMPRODUCT(AM$9:AM$229,Nutrients!$FE$8:$FE$228)+(IF($A$7=Nutrients!$B$8,Nutrients!$FE$8,Nutrients!$FE$9)*AM$7)+(((IF($A$8=Nutrients!$B$79,Nutrients!$FE$79,(IF($A$8=Nutrients!$B$77,Nutrients!$FE$77,Nutrients!$FE$78)))))*AM$8))","v":0},{"$f":"(SUMPRODUCT(AN$9:AN$229,Nutrients!$FE$8:$FE$228)+(IF($A$7=Nutrients!$B$8,Nutrients!$FE$8,Nutrients!$FE$9)*AN$7)+(((IF($A$8=Nutrients!$B$79,Nutrients!$FE$79,(IF($A$8=Nutrients!$B$77,Nutrients!$FE$77,Nutrients!$FE$78)))))*AN$8))","v":0},{"$f":"(SUMPRODUCT(AO$9:AO$229,Nutrients!$FE$8:$FE$228)+(IF($A$7=Nutrients!$B$8,Nutrients!$FE$8,Nutrients!$FE$9)*AO$7)+(((IF($A$8=Nutrients!$B$79,Nutrients!$FE$79,(IF($A$8=Nutrients!$B$77,Nutrients!$FE$77,Nutrients!$FE$78)))))*AO$8))","v":0},{"$f":"(SUMPRODUCT(AP$9:AP$229,Nutrients!$FE$8:$FE$228)+(IF($A$7=Nutrients!$B$8,Nutrients!$FE$8,Nutrients!$FE$9)*AP$7)+(((IF($A$8=Nutrients!$B$79,Nutrients!$FE$79,(IF($A$8=Nutrients!$B$77,Nutrients!$FE$77,Nutrients!$FE$78)))))*AP$8))","v":0},null,{"$f":"(SUMPRODUCT(AR$9:AR$229,Nutrients!$FE$8:$FE$228)+(IF($A$7=Nutrients!$B$8,Nutrients!$FE$8,Nutrients!$FE$9)*AR$7)+(((IF($A$8=Nutrients!$B$79,Nutrients!$FE$79,(IF($A$8=Nutrients!$B$77,Nutrients!$FE$77,Nutrients!$FE$78)))))*AR$8))","v":0},{"$f":"(SUMPRODUCT(AS$9:AS$229,Nutrients!$FE$8:$FE$228)+(IF($A$7=Nutrients!$B$8,Nutrients!$FE$8,Nutrients!$FE$9)*AS$7)+(((IF($A$8=Nutrients!$B$79,Nutrients!$FE$79,(IF($A$8=Nutrients!$B$77,Nutrients!$FE$77,Nutrients!$FE$78)))))*AS$8))","v":0},{"$f":"(SUMPRODUCT(AT$9:AT$229,Nutrients!$FE$8:$FE$228)+(IF($A$7=Nutrients!$B$8,Nutrients!$FE$8,Nutrients!$FE$9)*AT$7)+(((IF($A$8=Nutrients!$B$79,Nutrients!$FE$79,(IF($A$8=Nutrients!$B$77,Nutrients!$FE$77,Nutrients!$FE$78)))))*AT$8))","v":0},{"$f":"(SUMPRODUCT(AU$9:AU$229,Nutrients!$FE$8:$FE$228)+(IF($A$7=Nutrients!$B$8,Nutrients!$FE$8,Nutrients!$FE$9)*AU$7)+(((IF($A$8=Nutrients!$B$79,Nutrients!$FE$79,(IF($A$8=Nutrients!$B$77,Nutrients!$FE$77,Nutrients!$FE$78)))))*AU$8))","v":0},{"$f":"(SUMPRODUCT(AV$9:AV$229,Nutrients!$FE$8:$FE$228)+(IF($A$7=Nutrients!$B$8,Nutrients!$FE$8,Nutrients!$FE$9)*AV$7)+(((IF($A$8=Nutrients!$B$79,Nutrients!$FE$79,(IF($A$8=Nutrients!$B$77,Nutrients!$FE$77,Nutrients!$FE$78)))))*AV$8))","v":0},{"$f":"(SUMPRODUCT(AW$9:AW$229,Nutrients!$FE$8:$FE$228)+(IF($A$7=Nutrients!$B$8,Nutrients!$FE$8,Nutrients!$FE$9)*AW$7)+(((IF($A$8=Nutrients!$B$79,Nutrients!$FE$79,(IF($A$8=Nutrients!$B$77,Nutrients!$FE$77,Nutrients!$FE$78)))))*AW$8))","v":0}]
[]
["ADG, g/d",{"$f":" (-1619.2980797296 + 25.9248064834 * (B251/1000) - 2657.6209162609 * B236 +\n123.0469725298 * B253 - 9.2854579989 * B316 + 872.0182830582 * B252 + 26.664395965 * (AVERAGE(B5:B6)*0.453592) +\n2599.7646012325 * B236 * B236- 0.1016237102 *  (AVERAGE(B5:B6)*0.453592) *  (AVERAGE(B5:B6)*0.453592) - 71.8618465276 * B236 * B253 -\n607.1294449572 * B236 * B252 + 25.6463076451 * B236 * (AVERAGE(B5:B6)*0.453592) - 0.8399854508 * B253 * (AVERAGE(B5:B6)*0.453592) +\n0.0967347393 * B316 * (AVERAGE(B5:B6)*0.453592) - 5.2553838048 * B252 * (AVERAGE(B5:B6)*0.453592))","v":757.46635553023782},{"$f":" -1619.2980797296 + 25.9248064834 * (C251/1000) - 2657.6209162609 * C236 +\n123.0469725298 * C253 - 9.2854579989 * C316 + 872.0182830582 * C252 + 26.664395965 * (AVERAGE(C5:C6)*0.453592) +\n2599.7646012325 * C236 * C236- 0.1016237102 *  (AVERAGE(C5:C6)*0.453592) *  (AVERAGE(C5:C6)*0.453592) - 71.8618465276 * C236 * C253 -\n607.1294449572 * C236 * C252 + 25.6463076451 * C236 * (AVERAGE(C5:C6)*0.453592) - 0.8399854508 * C253 * (AVERAGE(C5:C6)*0.453592) +\n0.0967347393 * C316 * (AVERAGE(C5:C6)*0.453592) - 5.2553838048 * C252 * (AVERAGE(C5:C6)*0.453592)","v":870.42326519783569},{"$f":" -1619.2980797296 + 25.9248064834 * (D251/1000) - 2657.6209162609 * D236 +\n123.0469725298 * D253 - 9.2854579989 * D316 + 872.0182830582 * D252 + 26.664395965 * (AVERAGE(D5:D6)*0.453592) +\n2599.7646012325 * D236 * D236- 0.1016237102 *  (AVERAGE(D5:D6)*0.453592) *  (AVERAGE(D5:D6)*0.453592) - 71.8618465276 * D236 * D253 -\n607.1294449572 * D236 * D252 + 25.6463076451 * D236 * (AVERAGE(D5:D6)*0.453592) - 0.8399854508 * D253 * (AVERAGE(D5:D6)*0.453592) +\n0.0967347393 * D316 * (AVERAGE(D5:D6)*0.453592) - 5.2553838048 * D252 * (AVERAGE(D5:D6)*0.453592)","v":946.21888727648684},{"$f":" -1619.2980797296 + 25.9248064834 * (E251/1000) - 2657.6209162609 * E236 +\n123.0469725298 * E253 - 9.2854579989 * E316 + 872.0182830582 * E252 + 26.664395965 * (AVERAGE(E5:E6)*0.453592) +\n2599.7646012325 * E236 * E236- 0.1016237102 *  (AVERAGE(E5:E6)*0.453592) *  (AVERAGE(E5:E6)*0.453592) - 71.8618465276 * E236 * E253 -\n607.1294449572 * E236 * E252 + 25.6463076451 * E236 * (AVERAGE(E5:E6)*0.453592) - 0.8399854508 * E253 * (AVERAGE(E5:E6)*0.453592) +\n0.0967347393 * E316 * (AVERAGE(E5:E6)*0.453592) - 5.2553838048 * E252 * (AVERAGE(E5:E6)*0.453592)","v":982.61557306834152},{"$f":" -1619.2980797296 + 25.9248064834 * (F251/1000) - 2657.6209162609 * F236 +\n123.0469725298 * F253 - 9.2854579989 * F316 + 872.0182830582 * F252 + 26.664395965 * (AVERAGE(F5:F6)*0.453592) +\n2599.7646012325 * F236 * F236- 0.1016237102 *  (AVERAGE(F5:F6)*0.453592) *  (AVERAGE(F5:F6)*0.453592) - 71.8618465276 * F236 * F253 -\n607.1294449572 * F236 * F252 + 25.6463076451 * F236 * (AVERAGE(F5:F6)*0.453592) - 0.8399854508 * F253 * (AVERAGE(F5:F6)*0.453592) +\n0.0967347393 * F316 * (AVERAGE(F5:F6)*0.453592) - 5.2553838048 * F252 * (AVERAGE(F5:F6)*0.453592)","v":976.63637619430801},{"$f":" -1619.2980797296 + 25.9248064834 * (G251/1000) - 2657.6209162609 * G236 +\n123.0469725298 * G253 - 9.2854579989 * G316 + 872.0182830582 * G252 + 26.664395965 * (AVERAGE(G5:G6)*0.453592) +\n2599.7646012325 * G236 * G236- 0.1016237102 *  (AVERAGE(G5:G6)*0.453592) *  (AVERAGE(G5:G6)*0.453592) - 71.8618465276 * G236 * G253 -\n607.1294449572 * G236 * G252 + 25.6463076451 * G236 * (AVERAGE(G5:G6)*0.453592) - 0.8399854508 * G253 * (AVERAGE(G5:G6)*0.453592) +\n0.0967347393 * G316 * (AVERAGE(G5:G6)*0.453592) - 5.2553838048 * G252 * (AVERAGE(G5:G6)*0.453592)","v":919.74779687896194},null,{"$f":" (-1619.2980797296 + 25.9248064834 * (I251/1000) - 2657.6209162609 * I236 +\n123.0469725298 * I253 - 9.2854579989 * I316 + 872.0182830582 * I252 + 26.664395965 * (AVERAGE(I5:I6)*0.453592) +\n2599.7646012325 * I236 * I236- 0.1016237102 *  (AVERAGE(I5:I6)*0.453592) *  (AVERAGE(I5:I6)*0.453592) - 71.8618465276 * I236 * I253 -\n607.1294449572 * I236 * I252 + 25.6463076451 * I236 * (AVERAGE(I5:I6)*0.453592) - 0.8399854508 * I253 * (AVERAGE(I5:I6)*0.453592) +\n0.0967347393 * I316 * (AVERAGE(I5:I6)*0.453592) - 5.2553838048 * I252 * (AVERAGE(I5:I6)*0.453592))","v":754.2853054881557},{"$f":" -1619.2980797296 + 25.9248064834 * (J251/1000) - 2657.6209162609 * J236 +\n123.0469725298 * J253 - 9.2854579989 * J316 + 872.0182830582 * J252 + 26.664395965 * (AVERAGE(J5:J6)*0.453592) +\n2599.7646012325 * J236 * J236- 0.1016237102 *  (AVERAGE(J5:J6)*0.453592) *  (AVERAGE(J5:J6)*0.453592) - 71.8618465276 * J236 * J253 -\n607.1294449572 * J236 * J252 + 25.6463076451 * J236 * (AVERAGE(J5:J6)*0.453592) - 0.8399854508 * J253 * (AVERAGE(J5:J6)*0.453592) +\n0.0967347393 * J316 * (AVERAGE(J5:J6)*0.453592) - 5.2553838048 * J252 * (AVERAGE(J5:J6)*0.453592)","v":867.83541072759328},{"$f":" -1619.2980797296 + 25.9248064834 * (K251/1000) - 2657.6209162609 * K236 +\n123.0469725298 * K253 - 9.2854579989 * K316 + 872.0182830582 * K252 + 26.664395965 * (AVERAGE(K5:K6)*0.453592) +\n2599.7646012325 * K236 * K236- 0.1016237102 *  (AVERAGE(K5:K6)*0.453592) *  (AVERAGE(K5:K6)*0.453592) - 71.8618465276 * K236 * K253 -\n607.1294449572 * K236 * K252 + 25.6463076451 * K236 * (AVERAGE(K5:K6)*0.453592) - 0.8399854508 * K253 * (AVERAGE(K5:K6)*0.453592) +\n0.0967347393 * K316 * (AVERAGE(K5:K6)*0.453592) - 5.2553838048 * K252 * (AVERAGE(K5:K6)*0.453592)","v":943.65504273479746},{"$f":" -1619.2980797296 + 25.9248064834 * (L251/1000) - 2657.6209162609 * L236 +\n123.0469725298 * L253 - 9.2854579989 * L316 + 872.0182830582 * L252 + 26.664395965 * (AVERAGE(L5:L6)*0.453592) +\n2599.7646012325 * L236 * L236- 0.1016237102 *  (AVERAGE(L5:L6)*0.453592) *  (AVERAGE(L5:L6)*0.453592) - 71.8618465276 * L236 * L253 -\n607.1294449572 * L236 * L252 + 25.6463076451 * L236 * (AVERAGE(L5:L6)*0.453592) - 0.8399854508 * L253 * (AVERAGE(L5:L6)*0.453592) +\n0.0967347393 * L316 * (AVERAGE(L5:L6)*0.453592) - 5.2553838048 * L252 * (AVERAGE(L5:L6)*0.453592)","v":979.30093441478289},{"$f":" -1619.2980797296 + 25.9248064834 * (M251/1000) - 2657.6209162609 * M236 +\n123.0469725298 * M253 - 9.2854579989 * M316 + 872.0182830582 * M252 + 26.664395965 * (AVERAGE(M5:M6)*0.453592) +\n2599.7646012325 * M236 * M236- 0.1016237102 *  (AVERAGE(M5:M6)*0.453592) *  (AVERAGE(M5:M6)*0.453592) - 71.8618465276 * M236 * M253 -\n607.1294449572 * M236 * M252 + 25.6463076451 * M236 * (AVERAGE(M5:M6)*0.453592) - 0.8399854508 * M253 * (AVERAGE(M5:M6)*0.453592) +\n0.0967347393 * M316 * (AVERAGE(M5:M6)*0.453592) - 5.2553838048 * M252 * (AVERAGE(M5:M6)*0.453592)","v":971.80691655151008},{"$f":" -1619.2980797296 + 25.9248064834 * (N251/1000) - 2657.6209162609 * N236 +\n123.0469725298 * N253 - 9.2854579989 * N316 + 872.0182830582 * N252 + 26.664395965 * (AVERAGE(N5:N6)*0.453592) +\n2599.7646012325 * N236 * N236- 0.1016237102 *  (AVERAGE(N5:N6)*0.453592) *  (AVERAGE(N5:N6)*0.453592) - 71.8618465276 * N236 * N253 -\n607.1294449572 * N236 * N252 + 25.6463076451 * N236 * (AVERAGE(N5:N6)*0.453592) - 0.8399854508 * N253 * (AVERAGE(N5:N6)*0.453592) +\n0.0967347393 * N316 * (AVERAGE(N5:N6)*0.453592) - 5.2553838048 * N252 * (AVERAGE(N5:N6)*0.453592)","v":919.74779687896194},null,{"$f":" (-1619.2980797296 + 25.9248064834 * (P251/1000) - 2657.6209162609 * P236 +\n123.0469725298 * P253 - 9.2854579989 * P316 + 872.0182830582 * P252 + 26.664395965 * (AVERAGE(P5:P6)*0.453592) +\n2599.7646012325 * P236 * P236- 0.1016237102 *  (AVERAGE(P5:P6)*0.453592) *  (AVERAGE(P5:P6)*0.453592) - 71.8618465276 * P236 * P253 -\n607.1294449572 * P236 * P252 + 25.6463076451 * P236 * (AVERAGE(P5:P6)*0.453592) - 0.8399854508 * P253 * (AVERAGE(P5:P6)*0.453592) +\n0.0967347393 * P316 * (AVERAGE(P5:P6)*0.453592) - 5.2553838048 * P252 * (AVERAGE(P5:P6)*0.453592))","v":751.12509445025091},{"$f":" -1619.2980797296 + 25.9248064834 * (Q251/1000) - 2657.6209162609 * Q236 +\n123.0469725298 * Q253 - 9.2854579989 * Q316 + 872.0182830582 * Q252 + 26.664395965 * (AVERAGE(Q5:Q6)*0.453592) +\n2599.7646012325 * Q236 * Q236- 0.1016237102 *  (AVERAGE(Q5:Q6)*0.453592) *  (AVERAGE(Q5:Q6)*0.453592) - 71.8618465276 * Q236 * Q253 -\n607.1294449572 * Q236 * Q252 + 25.6463076451 * Q236 * (AVERAGE(Q5:Q6)*0.453592) - 0.8399854508 * Q253 * (AVERAGE(Q5:Q6)*0.453592) +\n0.0967347393 * Q316 * (AVERAGE(Q5:Q6)*0.453592) - 5.2553838048 * Q252 * (AVERAGE(Q5:Q6)*0.453592)","v":865.26365633587625},{"$f":" -1619.2980797296 + 25.9248064834 * (R251/1000) - 2657.6209162609 * R236 +\n123.0469725298 * R253 - 9.2854579989 * R316 + 872.0182830582 * R252 + 26.664395965 * (AVERAGE(R5:R6)*0.453592) +\n2599.7646012325 * R236 * R236- 0.1016237102 *  (AVERAGE(R5:R6)*0.453592) *  (AVERAGE(R5:R6)*0.453592) - 71.8618465276 * R236 * R253 -\n607.1294449572 * R236 * R252 + 25.6463076451 * R236 * (AVERAGE(R5:R6)*0.453592) - 0.8399854508 * R253 * (AVERAGE(R5:R6)*0.453592) +\n0.0967347393 * R316 * (AVERAGE(R5:R6)*0.453592) - 5.2553838048 * R252 * (AVERAGE(R5:R6)*0.453592)","v":941.08765007643092},{"$f":" -1619.2980797296 + 25.9248064834 * (S251/1000) - 2657.6209162609 * S236 +\n123.0469725298 * S253 - 9.2854579989 * S316 + 872.0182830582 * S252 + 26.664395965 * (AVERAGE(S5:S6)*0.453592) +\n2599.7646012325 * S236 * S236- 0.1016237102 *  (AVERAGE(S5:S6)*0.453592) *  (AVERAGE(S5:S6)*0.453592) - 71.8618465276 * S236 * S253 -\n607.1294449572 * S236 * S252 + 25.6463076451 * S236 * (AVERAGE(S5:S6)*0.453592) - 0.8399854508 * S253 * (AVERAGE(S5:S6)*0.453592) +\n0.0967347393 * S316 * (AVERAGE(S5:S6)*0.453592) - 5.2553838048 * S252 * (AVERAGE(S5:S6)*0.453592)","v":976.00937610562437},{"$f":" -1619.2980797296 + 25.9248064834 * (T251/1000) - 2657.6209162609 * T236 +\n123.0469725298 * T253 - 9.2854579989 * T316 + 872.0182830582 * T252 + 26.664395965 * (AVERAGE(T5:T6)*0.453592) +\n2599.7646012325 * T236 * T236- 0.1016237102 *  (AVERAGE(T5:T6)*0.453592) *  (AVERAGE(T5:T6)*0.453592) - 71.8618465276 * T236 * T253 -\n607.1294449572 * T236 * T252 + 25.6463076451 * T236 * (AVERAGE(T5:T6)*0.453592) - 0.8399854508 * T253 * (AVERAGE(T5:T6)*0.453592) +\n0.0967347393 * T316 * (AVERAGE(T5:T6)*0.453592) - 5.2553838048 * T252 * (AVERAGE(T5:T6)*0.453592)","v":966.98610467900244},{"$f":" -1619.2980797296 + 25.9248064834 * (U251/1000) - 2657.6209162609 * U236 +\n123.0469725298 * U253 - 9.2854579989 * U316 + 872.0182830582 * U252 + 26.664395965 * (AVERAGE(U5:U6)*0.453592) +\n2599.7646012325 * U236 * U236- 0.1016237102 *  (AVERAGE(U5:U6)*0.453592) *  (AVERAGE(U5:U6)*0.453592) - 71.8618465276 * U236 * U253 -\n607.1294449572 * U236 * U252 + 25.6463076451 * U236 * (AVERAGE(U5:U6)*0.453592) - 0.8399854508 * U253 * (AVERAGE(U5:U6)*0.453592) +\n0.0967347393 * U316 * (AVERAGE(U5:U6)*0.453592) - 5.2553838048 * U252 * (AVERAGE(U5:U6)*0.453592)","v":919.74779687896194},null,{"$f":" (-1619.2980797296 + 25.9248064834 * (W251/1000) - 2657.6209162609 * W236 +\n123.0469725298 * W253 - 9.2854579989 * W316 + 872.0182830582 * W252 + 26.664395965 * (AVERAGE(W5:W6)*0.453592) +\n2599.7646012325 * W236 * W236- 0.1016237102 *  (AVERAGE(W5:W6)*0.453592) *  (AVERAGE(W5:W6)*0.453592) - 71.8618465276 * W236 * W253 -\n607.1294449572 * W236 * W252 + 25.6463076451 * W236 * (AVERAGE(W5:W6)*0.453592) - 0.8399854508 * W253 * (AVERAGE(W5:W6)*0.453592) +\n0.0967347393 * W316 * (AVERAGE(W5:W6)*0.453592) - 5.2553838048 * W252 * (AVERAGE(W5:W6)*0.453592))","v":747.96764329778819},{"$f":" -1619.2980797296 + 25.9248064834 * (X251/1000) - 2657.6209162609 * X236 +\n123.0469725298 * X253 - 9.2854579989 * X316 + 872.0182830582 * X252 + 26.664395965 * (AVERAGE(X5:X6)*0.453592) +\n2599.7646012325 * X236 * X236- 0.1016237102 *  (AVERAGE(X5:X6)*0.453592) *  (AVERAGE(X5:X6)*0.453592) - 71.8618465276 * X236 * X253 -\n607.1294449572 * X236 * X252 + 25.6463076451 * X236 * (AVERAGE(X5:X6)*0.453592) - 0.8399854508 * X253 * (AVERAGE(X5:X6)*0.453592) +\n0.0967347393 * X316 * (AVERAGE(X5:X6)*0.453592) - 5.2553838048 * X252 * (AVERAGE(X5:X6)*0.453592)","v":862.69511755903864},{"$f":" -1619.2980797296 + 25.9248064834 * (Y251/1000) - 2657.6209162609 * Y236 +\n123.0469725298 * Y253 - 9.2854579989 * Y316 + 872.0182830582 * Y252 + 26.664395965 * (AVERAGE(Y5:Y6)*0.453592) +\n2599.7646012325 * Y236 * Y236- 0.1016237102 *  (AVERAGE(Y5:Y6)*0.453592) *  (AVERAGE(Y5:Y6)*0.453592) - 71.8618465276 * Y236 * Y253 -\n607.1294449572 * Y236 * Y252 + 25.6463076451 * Y236 * (AVERAGE(Y5:Y6)*0.453592) - 0.8399854508 * Y253 * (AVERAGE(Y5:Y6)*0.453592) +\n0.0967347393 * Y316 * (AVERAGE(Y5:Y6)*0.453592) - 5.2553838048 * Y252 * (AVERAGE(Y5:Y6)*0.453592)","v":938.51681860484973},{"$f":" -1619.2980797296 + 25.9248064834 * (Z251/1000) - 2657.6209162609 * Z236 +\n123.0469725298 * Z253 - 9.2854579989 * Z316 + 872.0182830582 * Z252 + 26.664395965 * (AVERAGE(Z5:Z6)*0.453592) +\n2599.7646012325 * Z236 * Z236- 0.1016237102 *  (AVERAGE(Z5:Z6)*0.453592) *  (AVERAGE(Z5:Z6)*0.453592) - 71.8618465276 * Z236 * Z253 -\n607.1294449572 * Z236 * Z252 + 25.6463076451 * Z236 * (AVERAGE(Z5:Z6)*0.453592) - 0.8399854508 * Z253 * (AVERAGE(Z5:Z6)*0.453592) +\n0.0967347393 * Z316 * (AVERAGE(Z5:Z6)*0.453592) - 5.2553838048 * Z252 * (AVERAGE(Z5:Z6)*0.453592)","v":972.73290617894054},{"$f":" -1619.2980797296 + 25.9248064834 * (AA251/1000) - 2657.6209162609 * AA236 +\n123.0469725298 * AA253 - 9.2854579989 * AA316 + 872.0182830582 * AA252 + 26.664395965 * (AVERAGE(AA5:AA6)*0.453592) +\n2599.7646012325 * AA236 * AA236- 0.1016237102 *  (AVERAGE(AA5:AA6)*0.453592) *  (AVERAGE(AA5:AA6)*0.453592) - 71.8618465276 * AA236 * AA253 -\n607.1294449572 * AA236 * AA252 + 25.6463076451 * AA236 * (AVERAGE(AA5:AA6)*0.453592) - 0.8399854508 * AA253 * (AVERAGE(AA5:AA6)*0.453592) +\n0.0967347393 * AA316 * (AVERAGE(AA5:AA6)*0.453592) - 5.2553838048 * AA252 * (AVERAGE(AA5:AA6)*0.453592)","v":962.14863178115388},{"$f":" -1619.2980797296 + 25.9248064834 * (AB251/1000) - 2657.6209162609 * AB236 +\n123.0469725298 * AB253 - 9.2854579989 * AB316 + 872.0182830582 * AB252 + 26.664395965 * (AVERAGE(AB5:AB6)*0.453592) +\n2599.7646012325 * AB236 * AB236- 0.1016237102 *  (AVERAGE(AB5:AB6)*0.453592) *  (AVERAGE(AB5:AB6)*0.453592) - 71.8618465276 * AB236 * AB253 -\n607.1294449572 * AB236 * AB252 + 25.6463076451 * AB236 * (AVERAGE(AB5:AB6)*0.453592) - 0.8399854508 * AB253 * (AVERAGE(AB5:AB6)*0.453592) +\n0.0967347393 * AB316 * (AVERAGE(AB5:AB6)*0.453592) - 5.2553838048 * AB252 * (AVERAGE(AB5:AB6)*0.453592)","v":919.74779687896194},null,{"$f":" (-1619.2980797296 + 25.9248064834 * (AD251/1000) - 2657.6209162609 * AD236 +\n123.0469725298 * AD253 - 9.2854579989 * AD316 + 872.0182830582 * AD252 + 26.664395965 * (AVERAGE(AD5:AD6)*0.453592) +\n2599.7646012325 * AD236 * AD236- 0.1016237102 *  (AVERAGE(AD5:AD6)*0.453592) *  (AVERAGE(AD5:AD6)*0.453592) - 71.8618465276 * AD236 * AD253 -\n607.1294449572 * AD236 * AD252 + 25.6463076451 * AD236 * (AVERAGE(AD5:AD6)*0.453592) - 0.8399854508 * AD253 * (AVERAGE(AD5:AD6)*0.453592) +\n0.0967347393 * AD316 * (AVERAGE(AD5:AD6)*0.453592) - 5.2553838048 * AD252 * (AVERAGE(AD5:AD6)*0.453592))","v":744.81662763964982},{"$f":" -1619.2980797296 + 25.9248064834 * (AE251/1000) - 2657.6209162609 * AE236 +\n123.0469725298 * AE253 - 9.2854579989 * AE316 + 872.0182830582 * AE252 + 26.664395965 * (AVERAGE(AE5:AE6)*0.453592) +\n2599.7646012325 * AE236 * AE236- 0.1016237102 *  (AVERAGE(AE5:AE6)*0.453592) *  (AVERAGE(AE5:AE6)*0.453592) - 71.8618465276 * AE236 * AE253 -\n607.1294449572 * AE236 * AE252 + 25.6463076451 * AE236 * (AVERAGE(AE5:AE6)*0.453592) - 0.8399854508 * AE253 * (AVERAGE(AE5:AE6)*0.453592) +\n0.0967347393 * AE316 * (AVERAGE(AE5:AE6)*0.453592) - 5.2553838048 * AE252 * (AVERAGE(AE5:AE6)*0.453592)","v":860.12738034446897},{"$f":" -1619.2980797296 + 25.9248064834 * (AF251/1000) - 2657.6209162609 * AF236 +\n123.0469725298 * AF253 - 9.2854579989 * AF316 + 872.0182830582 * AF252 + 26.664395965 * (AVERAGE(AF5:AF6)*0.453592) +\n2599.7646012325 * AF236 * AF236- 0.1016237102 *  (AVERAGE(AF5:AF6)*0.453592) *  (AVERAGE(AF5:AF6)*0.453592) - 71.8618465276 * AF236 * AF253 -\n607.1294449572 * AF236 * AF252 + 25.6463076451 * AF236 * (AVERAGE(AF5:AF6)*0.453592) - 0.8399854508 * AF253 * (AVERAGE(AF5:AF6)*0.453592) +\n0.0967347393 * AF316 * (AVERAGE(AF5:AF6)*0.453592) - 5.2553838048 * AF252 * (AVERAGE(AF5:AF6)*0.453592)","v":935.92775852071054},{"$f":" -1619.2980797296 + 25.9248064834 * (AG251/1000) - 2657.6209162609 * AG236 +\n123.0469725298 * AG253 - 9.2854579989 * AG316 + 872.0182830582 * AG252 + 26.664395965 * (AVERAGE(AG5:AG6)*0.453592) +\n2599.7646012325 * AG236 * AG236- 0.1016237102 *  (AVERAGE(AG5:AG6)*0.453592) *  (AVERAGE(AG5:AG6)*0.453592) - 71.8618465276 * AG236 * AG253 -\n607.1294449572 * AG236 * AG252 + 25.6463076451 * AG236 * (AVERAGE(AG5:AG6)*0.453592) - 0.8399854508 * AG253 * (AVERAGE(AG5:AG6)*0.453592) +\n0.0967347393 * AG316 * (AVERAGE(AG5:AG6)*0.453592) - 5.2553838048 * AG252 * (AVERAGE(AG5:AG6)*0.453592)","v":969.44372220826813},{"$f":" -1619.2980797296 + 25.9248064834 * (AH251/1000) - 2657.6209162609 * AH236 +\n123.0469725298 * AH253 - 9.2854579989 * AH316 + 872.0182830582 * AH252 + 26.664395965 * (AVERAGE(AH5:AH6)*0.453592) +\n2599.7646012325 * AH236 * AH236- 0.1016237102 *  (AVERAGE(AH5:AH6)*0.453592) *  (AVERAGE(AH5:AH6)*0.453592) - 71.8618465276 * AH236 * AH253 -\n607.1294449572 * AH236 * AH252 + 25.6463076451 * AH236 * (AVERAGE(AH5:AH6)*0.453592) - 0.8399854508 * AH253 * (AVERAGE(AH5:AH6)*0.453592) +\n0.0967347393 * AH316 * (AVERAGE(AH5:AH6)*0.453592) - 5.2553838048 * AH252 * (AVERAGE(AH5:AH6)*0.453592)","v":957.32815546195934},{"$f":" -1619.2980797296 + 25.9248064834 * (AI251/1000) - 2657.6209162609 * AI236 +\n123.0469725298 * AI253 - 9.2854579989 * AI316 + 872.0182830582 * AI252 + 26.664395965 * (AVERAGE(AI5:AI6)*0.453592) +\n2599.7646012325 * AI236 * AI236- 0.1016237102 *  (AVERAGE(AI5:AI6)*0.453592) *  (AVERAGE(AI5:AI6)*0.453592) - 71.8618465276 * AI236 * AI253 -\n607.1294449572 * AI236 * AI252 + 25.6463076451 * AI236 * (AVERAGE(AI5:AI6)*0.453592) - 0.8399854508 * AI253 * (AVERAGE(AI5:AI6)*0.453592) +\n0.0967347393 * AI316 * (AVERAGE(AI5:AI6)*0.453592) - 5.2553838048 * AI252 * (AVERAGE(AI5:AI6)*0.453592)","v":919.74779687896194},null,{"$f":" (-1619.2980797296 + 25.9248064834 * (AK251/1000) - 2657.6209162609 * AK236 +\n123.0469725298 * AK253 - 9.2854579989 * AK316 + 872.0182830582 * AK252 + 26.664395965 * (AVERAGE(AK5:AK6)*0.453592) +\n2599.7646012325 * AK236 * AK236- 0.1016237102 *  (AVERAGE(AK5:AK6)*0.453592) *  (AVERAGE(AK5:AK6)*0.453592) - 71.8618465276 * AK236 * AK253 -\n607.1294449572 * AK236 * AK252 + 25.6463076451 * AK236 * (AVERAGE(AK5:AK6)*0.453592) - 0.8399854508 * AK253 * (AVERAGE(AK5:AK6)*0.453592) +\n0.0967347393 * AK316 * (AVERAGE(AK5:AK6)*0.453592) - 5.2553838048 * AK252 * (AVERAGE(AK5:AK6)*0.453592))","v":741.69090139868376},{"$f":" -1619.2980797296 + 25.9248064834 * (AL251/1000) - 2657.6209162609 * AL236 +\n123.0469725298 * AL253 - 9.2854579989 * AL316 + 872.0182830582 * AL252 + 26.664395965 * (AVERAGE(AL5:AL6)*0.453592) +\n2599.7646012325 * AL236 * AL236- 0.1016237102 *  (AVERAGE(AL5:AL6)*0.453592) *  (AVERAGE(AL5:AL6)*0.453592) - 71.8618465276 * AL236 * AL253 -\n607.1294449572 * AL236 * AL252 + 25.6463076451 * AL236 * (AVERAGE(AL5:AL6)*0.453592) - 0.8399854508 * AL253 * (AVERAGE(AL5:AL6)*0.453592) +\n0.0967347393 * AL316 * (AVERAGE(AL5:AL6)*0.453592) - 5.2553838048 * AL252 * (AVERAGE(AL5:AL6)*0.453592)","v":857.56075020428375},{"$f":" -1619.2980797296 + 25.9248064834 * (AM251/1000) - 2657.6209162609 * AM236 +\n123.0469725298 * AM253 - 9.2854579989 * AM316 + 872.0182830582 * AM252 + 26.664395965 * (AVERAGE(AM5:AM6)*0.453592) +\n2599.7646012325 * AM236 * AM236- 0.1016237102 *  (AVERAGE(AM5:AM6)*0.453592) *  (AVERAGE(AM5:AM6)*0.453592) - 71.8618465276 * AM236 * AM253 -\n607.1294449572 * AM236 * AM252 + 25.6463076451 * AM236 * (AVERAGE(AM5:AM6)*0.453592) - 0.8399854508 * AM253 * (AVERAGE(AM5:AM6)*0.453592) +\n0.0967347393 * AM316 * (AVERAGE(AM5:AM6)*0.453592) - 5.2553838048 * AM252 * (AVERAGE(AM5:AM6)*0.453592)","v":933.38079850970121},{"$f":" -1619.2980797296 + 25.9248064834 * (AN251/1000) - 2657.6209162609 * AN236 +\n123.0469725298 * AN253 - 9.2854579989 * AN316 + 872.0182830582 * AN252 + 26.664395965 * (AVERAGE(AN5:AN6)*0.453592) +\n2599.7646012325 * AN236 * AN236- 0.1016237102 *  (AVERAGE(AN5:AN6)*0.453592) *  (AVERAGE(AN5:AN6)*0.453592) - 71.8618465276 * AN236 * AN253 -\n607.1294449572 * AN236 * AN252 + 25.6463076451 * AN236 * (AVERAGE(AN5:AN6)*0.453592) - 0.8399854508 * AN253 * (AVERAGE(AN5:AN6)*0.453592) +\n0.0967347393 * AN316 * (AVERAGE(AN5:AN6)*0.453592) - 5.2553838048 * AN252 * (AVERAGE(AN5:AN6)*0.453592)","v":966.10623674420458},{"$f":" -1619.2980797296 + 25.9248064834 * (AO251/1000) - 2657.6209162609 * AO236 +\n123.0469725298 * AO253 - 9.2854579989 * AO316 + 872.0182830582 * AO252 + 26.664395965 * (AVERAGE(AO5:AO6)*0.453592) +\n2599.7646012325 * AO236 * AO236- 0.1016237102 *  (AVERAGE(AO5:AO6)*0.453592) *  (AVERAGE(AO5:AO6)*0.453592) - 71.8618465276 * AO236 * AO253 -\n607.1294449572 * AO236 * AO252 + 25.6463076451 * AO236 * (AVERAGE(AO5:AO6)*0.453592) - 0.8399854508 * AO253 * (AVERAGE(AO5:AO6)*0.453592) +\n0.0967347393 * AO316 * (AVERAGE(AO5:AO6)*0.453592) - 5.2553838048 * AO252 * (AVERAGE(AO5:AO6)*0.453592)","v":952.59250017741692},{"$f":" -1619.2980797296 + 25.9248064834 * (AP251/1000) - 2657.6209162609 * AP236 +\n123.0469725298 * AP253 - 9.2854579989 * AP316 + 872.0182830582 * AP252 + 26.664395965 * (AVERAGE(AP5:AP6)*0.453592) +\n2599.7646012325 * AP236 * AP236- 0.1016237102 *  (AVERAGE(AP5:AP6)*0.453592) *  (AVERAGE(AP5:AP6)*0.453592) - 71.8618465276 * AP236 * AP253 -\n607.1294449572 * AP236 * AP252 + 25.6463076451 * AP236 * (AVERAGE(AP5:AP6)*0.453592) - 0.8399854508 * AP253 * (AVERAGE(AP5:AP6)*0.453592) +\n0.0967347393 * AP316 * (AVERAGE(AP5:AP6)*0.453592) - 5.2553838048 * AP252 * (AVERAGE(AP5:AP6)*0.453592)","v":919.74779687896194},null,{"$f":" (-1619.2980797296 + 25.9248064834 * (AR251/1000) - 2657.6209162609 * AR236 +\n123.0469725298 * AR253 - 9.2854579989 * AR316 + 872.0182830582 * AR252 + 26.664395965 * (AVERAGE(AR5:AR6)*0.453592) +\n2599.7646012325 * AR236 * AR236- 0.1016237102 *  (AVERAGE(AR5:AR6)*0.453592) *  (AVERAGE(AR5:AR6)*0.453592) - 71.8618465276 * AR236 * AR253 -\n607.1294449572 * AR236 * AR252 + 25.6463076451 * AR236 * (AVERAGE(AR5:AR6)*0.453592) - 0.8399854508 * AR253 * (AVERAGE(AR5:AR6)*0.453592) +\n0.0967347393 * AR316 * (AVERAGE(AR5:AR6)*0.453592) - 5.2553838048 * AR252 * (AVERAGE(AR5:AR6)*0.453592))","v":738.50601864243959},{"$f":" -1619.2980797296 + 25.9248064834 * (AS251/1000) - 2657.6209162609 * AS236 +\n123.0469725298 * AS253 - 9.2854579989 * AS316 + 872.0182830582 * AS252 + 26.664395965 * (AVERAGE(AS5:AS6)*0.453592) +\n2599.7646012325 * AS236 * AS236- 0.1016237102 *  (AVERAGE(AS5:AS6)*0.453592) *  (AVERAGE(AS5:AS6)*0.453592) - 71.8618465276 * AS236 * AS253 -\n607.1294449572 * AS236 * AS252 + 25.6463076451 * AS236 * (AVERAGE(AS5:AS6)*0.453592) - 0.8399854508 * AS253 * (AVERAGE(AS5:AS6)*0.453592) +\n0.0967347393 * AS316 * (AVERAGE(AS5:AS6)*0.453592) - 5.2553838048 * AS252 * (AVERAGE(AS5:AS6)*0.453592)","v":854.97698349144969},{"$f":" -1619.2980797296 + 25.9248064834 * (AT251/1000) - 2657.6209162609 * AT236 +\n123.0469725298 * AT253 - 9.2854579989 * AT316 + 872.0182830582 * AT252 + 26.664395965 * (AVERAGE(AT5:AT6)*0.453592) +\n2599.7646012325 * AT236 * AT236- 0.1016237102 *  (AVERAGE(AT5:AT6)*0.453592) *  (AVERAGE(AT5:AT6)*0.453592) - 71.8618465276 * AT236 * AT253 -\n607.1294449572 * AT236 * AT252 + 25.6463076451 * AT236 * (AVERAGE(AT5:AT6)*0.453592) - 0.8399854508 * AT253 * (AVERAGE(AT5:AT6)*0.453592) +\n0.0967347393 * AT316 * (AVERAGE(AT5:AT6)*0.453592) - 5.2553838048 * AT252 * (AVERAGE(AT5:AT6)*0.453592)","v":930.7912646648017},{"$f":" -1619.2980797296 + 25.9248064834 * (AU251/1000) - 2657.6209162609 * AU236 +\n123.0469725298 * AU253 - 9.2854579989 * AU316 + 872.0182830582 * AU252 + 26.664395965 * (AVERAGE(AU5:AU6)*0.453592) +\n2599.7646012325 * AU236 * AU236- 0.1016237102 *  (AVERAGE(AU5:AU6)*0.453592) *  (AVERAGE(AU5:AU6)*0.453592) - 71.8618465276 * AU236 * AU253 -\n607.1294449572 * AU236 * AU252 + 25.6463076451 * AU236 * (AVERAGE(AU5:AU6)*0.453592) - 0.8399854508 * AU253 * (AVERAGE(AU5:AU6)*0.453592) +\n0.0967347393 * AU316 * (AVERAGE(AU5:AU6)*0.453592) - 5.2553838048 * AU252 * (AVERAGE(AU5:AU6)*0.453592)","v":962.84976002250392},{"$f":" -1619.2980797296 + 25.9248064834 * (AV251/1000) - 2657.6209162609 * AV236 +\n123.0469725298 * AV253 - 9.2854579989 * AV316 + 872.0182830582 * AV252 + 26.664395965 * (AVERAGE(AV5:AV6)*0.453592) +\n2599.7646012325 * AV236 * AV236- 0.1016237102 *  (AVERAGE(AV5:AV6)*0.453592) *  (AVERAGE(AV5:AV6)*0.453592) - 71.8618465276 * AV236 * AV253 -\n607.1294449572 * AV236 * AV252 + 25.6463076451 * AV236 * (AVERAGE(AV5:AV6)*0.453592) - 0.8399854508 * AV253 * (AVERAGE(AV5:AV6)*0.453592) +\n0.0967347393 * AV316 * (AVERAGE(AV5:AV6)*0.453592) - 5.2553838048 * AV252 * (AVERAGE(AV5:AV6)*0.453592)","v":947.8413410368928},{"$f":" -1619.2980797296 + 25.9248064834 * (AW251/1000) - 2657.6209162609 * AW236 +\n123.0469725298 * AW253 - 9.2854579989 * AW316 + 872.0182830582 * AW252 + 26.664395965 * (AVERAGE(AW5:AW6)*0.453592) +\n2599.7646012325 * AW236 * AW236- 0.1016237102 *  (AVERAGE(AW5:AW6)*0.453592) *  (AVERAGE(AW5:AW6)*0.453592) - 71.8618465276 * AW236 * AW253 -\n607.1294449572 * AW236 * AW252 + 25.6463076451 * AW236 * (AVERAGE(AW5:AW6)*0.453592) - 0.8399854508 * AW253 * (AVERAGE(AW5:AW6)*0.453592) +\n0.0967347393 * AW316 * (AVERAGE(AW5:AW6)*0.453592) - 5.2553838048 * AW252 * (AVERAGE(AW5:AW6)*0.453592)","v":919.74779687896194}]
["ADFI, g/d",{"$f":"B342/B344*1000","v":1398.8783014207611},1847.8320572748494,2307.7192145327367,2723.4676222335261,2993.2160501056624,3054.344258459666,null,{"$f":"I342/I344*1000","v":1384.8178703440515},1827.8821510668606,2281.8852409848309,2696.3568872501928,2973.0335700186461,3054.344258459666,null,{"$f":"P342/P344*1000","v":1370.9248483394197},1808.1611070771439,2256.545152153898,2669.5965519110086,2952.7354356657133,3054.344258459666,null,{"$f":"W342/W344*1000","v":1357.2007967233028},1788.7168969347399,2231.6475490154621,2643.2062063754647,2932.2357565168368,3054.344258459666,null,{"$f":"AD342/AD344*1000","v":1343.5873925477269},1769.5592677108589,2207.1280510128104,2616.8043508723986,2912.5891888139122,3054.344258459666,null,{"$f":"AK342/AK344*1000","v":1329.8128544808828},1750.6708620967338,2182.9396267330862,2591.9329441969489,2892.8898506768778,3054.344258459666,null,{"$f":"AR342/AR344*1000","v":1316.5870523345172},1732.0818854807085,2159.9157935776343,2566.9314733469296,2873.118242204031,3054.344258459666]
["GF, g/kg",{"$f":" -232.8670000513 - (102.0339177026 * (B251/1000)) + (1386.8135453223 * B236) - (3.1583174866 * B253) + (80.3303777865 * B316) - (115.1570451563 * B252) + (4.1836503117 * (AVERAGE(B5:B6)*0.453592)) + (2553.6417073224 * B236 * B236) + (228.757399518 * B252 * B252) + (12.736240264 *  (B251/1000) * B253) - (24.4502664605 *  (B251/1000) * B316) - (23.0415882284 * B236 * B253) + (101.5847297779 * B236 * B316) - (1559.9331198689 * B236 *B252) - (3.9239483753 * B236 * (AVERAGE(B5:B6)*0.453592)) - (0.1078600966 * B253 * (AVERAGE(B5:B6)*0.453592)) - (28.1879330488 * B316 * B252) - (0.1153929924 * B316 * (AVERAGE(B5:B6)*0.453592))","v":541.48123876174384},471.05106861362759,410.02340376494885,360.7957609066396,326.28328855841602,301.12774430436968,null,{"$f":" -232.8670000513 - (102.0339177026 * (I251/1000)) + (1386.8135453223 * I236) - (3.1583174866 * I253) + (80.3303777865 * I316) - (115.1570451563 * I252) + (4.1836503117 * (AVERAGE(I5:I6)*0.453592)) + (2553.6417073224 * I236 * I236) + (228.757399518 * I252 * I252) + (12.736240264 *  (I251/1000) * I253) - (24.4502664605 *  (I251/1000) * I316) - (23.0415882284 * I236 * I253) + (101.5847297779 * I236 * I316) - (1559.9331198689 * I236 *I252) - (3.9239483753 * I236 * (AVERAGE(I5:I6)*0.453592)) - (0.1078600966 * I253 * (AVERAGE(I5:I6)*0.453592)) - (28.1879330488 * I316 * I252) - (0.1153929924 * I316 * (AVERAGE(I5:I6)*0.453592))","v":544.68195539732392},474.77645657903764,413.54184942601609,363.19410796302145,326.87384574181419,301.12774430436968,null,{"$f":" -232.8670000513 - (102.0339177026 * (P251/1000)) + (1386.8135453223 * P236) - (3.1583174866 * P253) + (80.3303777865 * P316) - (115.1570451563 * P252) + (4.1836503117 * (AVERAGE(P5:P6)*0.453592)) + (2553.6417073224 * P236 * P236) + (228.757399518 * P252 * P252) + (12.736240264 *  (P251/1000) * P253) - (24.4502664605 *  (P251/1000) * P316) - (23.0415882284 * P236 * P253) + (101.5847297779 * P236 * P316) - (1559.9331198689 * P236 *P252) - (3.9239483753 * P236 * (AVERAGE(P5:P6)*0.453592)) - (0.1078600966 * P253 * (AVERAGE(P5:P6)*0.453592)) - (28.1879330488 * P316 * P252) - (0.1153929924 * P316 * (AVERAGE(P5:P6)*0.453592))","v":547.89662275074909},478.5323901444587,417.04800330636067,365.60182676552984,327.48823108189816,301.12774430436968,null,{"$f":" -232.8670000513 - (102.0339177026 * (W251/1000)) + (1386.8135453223 * W236) - (3.1583174866 * W253) + (80.3303777865 * W316) - (115.1570451563 * W252) + (4.1836503117 * (AVERAGE(W5:W6)*0.453592)) + (2553.6417073224 * W236 * W236) + (228.757399518 * W252 * W252) + (12.736240264 *  (W251/1000) * W253) - (24.4502664605 *  (W251/1000) * W316) - (23.0415882284 * W236 * W253) + (101.5847297779 * W236 * W316) - (1559.9331198689 * W236 *W252) - (3.9239483753 * W236 * (AVERAGE(W5:W6)*0.453592)) - (0.1078600966 * W253 * (AVERAGE(W5:W6)*0.453592)) - (28.1879330488 * W316 * W252) - (0.1153929924 * W316 * (AVERAGE(W5:W6)*0.453592))","v":551.11052476804502},482.29829943319055,420.54885370178459,368.01249324880132,328.12799231535098,301.12774430436968,null,{"$f":" -232.8670000513 - (102.0339177026 * (AD251/1000)) + (1386.8135453223 * AD236) - (3.1583174866 * AD253) + (80.3303777865 * AD316) - (115.1570451563 * AD252) + (4.1836503117 * (AVERAGE(AD5:AD6)*0.453592)) + (2553.6417073224 * AD236 * AD236) + (228.757399518 * AD252 * AD252) + (12.736240264 *  (AD251/1000) * AD253) - (24.4502664605 *  (AD251/1000) * AD316) - (23.0415882284 * AD236 * AD253) + (101.5847297779 * AD236 * AD316) - (1559.9331198689 * AD236 *AD252) - (3.9239483753 * AD236 * (AVERAGE(AD5:AD6)*0.453592)) - (0.1078600966 * AD253 * (AVERAGE(AD5:AD6)*0.453592)) - (28.1879330488 * AD316 * AD252) - (0.1153929924 * AD316 * (AVERAGE(AD5:AD6)*0.453592))","v":554.34922340802814},486.06870424698963,424.04778376643372,370.46855332729479,328.6862971059129,301.12774430436968,null,{"$f":" -232.8670000513 - (102.0339177026 * (AK251/1000)) + (1386.8135453223 * AK236) - (3.1583174866 * AK253) + (80.3303777865 * AK316) - (115.1570451563 * AK252) + (4.1836503117 * (AVERAGE(AK5:AK6)*0.453592)) + (2553.6417073224 * AK236 * AK236) + (228.757399518 * AK252 * AK252) + (12.736240264 *  (AK251/1000) * AK253) - (24.4502664605 *  (AK251/1000) * AK316) - (23.0415882284 * AK236 * AK253) + (101.5847297779 * AK236 * AK316) - (1559.9331198689 * AK236 *AK252) - (3.9239483753 * AK236 * (AVERAGE(AK5:AK6)*0.453592)) - (0.1078600966 * AK253 * (AVERAGE(AK5:AK6)*0.453592)) - (28.1879330488 * AK316 * AK252) - (0.1153929924 * AK316 * (AVERAGE(AK5:AK6)*0.453592))","v":557.74081209962173},489.84693169406222,427.5797585417273,372.73581436865857,329.28751157066336,301.12774430436968,null,{"$f":" -232.8670000513 - (102.0339177026 * (AR251/1000)) + (1386.8135453223 * AR236) - (3.1583174866 * AR253) + (80.3303777865 * AR316) - (115.1570451563 * AR252) + (4.1836503117 * (AVERAGE(AR5:AR6)*0.453592)) + (2553.6417073224 * AR236 * AR236) + (228.757399518 * AR252 * AR252) + (12.736240264 *  (AR251/1000) * AR253) - (24.4502664605 *  (AR251/1000) * AR316) - (23.0415882284 * AR236 * AR253) + (101.5847297779 * AR236 * AR316) - (1559.9331198689 * AR236 *AR252) - (3.9239483753 * AR236 * (AVERAGE(AR5:AR6)*0.453592)) - (0.1078600966 * AR253 * (AVERAGE(AR5:AR6)*0.453592)) - (28.1879330488 * AR316 * AR252) - (0.1153929924 * AR316 * (AVERAGE(AR5:AR6)*0.453592))","v":560.92456426101978},493.61233476220207,430.93868169881779,375.09757078441942,329.89987224117283,301.12774430436968]
["F/G",{"$f":"IF(B323=\"\",\"0\",1/B344*1000)","v":1.846786053542306},2.1229120718123973,2.4388851729382321,2.7716511898230491,3.0648213839519558,3.3208497686258824,null,{"$f":"IF(I323=\"\",\"0\",1/I344*1000)","v":1.8359337776676292},2.106254398555095,2.41813495148791,2.7533486311452355,3.0592842254802601,3.3208497686258824,null,{"$f":"IF(P323=\"\",\"0\",1/P344*1000)","v":1.8251618251987716},2.0897227034059727,2.3978055093706008,2.7352160924549391,3.0535448455548324,3.3208497686258824,null,{"$f":"IF(W323=\"\",\"0\",1/W344*1000)","v":1.8145180595505528},2.0734056105427405,2.3778450260837238,2.7172990546381599,3.0475912553018003,3.3208497686258824,null,{"$f":"IF(AD323=\"\",\"0\",1/AD344*1000)","v":1.803917021570266},2.0573223317250697,2.3582247998513344,2.6992844359357493,3.0424146330559347,3.3208497686258824,null,{"$f":"IF(AK323=\"\",\"0\",1/AK344*1000)","v":1.7929475094990599},2.0414540447189284,2.3387449476339288,2.6828653471193911,3.0368597801663224,3.3208497686258824,null,{"$f":"IF(AR323=\"\",\"0\",1/AR344*1000)","v":1.7827709173646771},2.0258813031520986,2.320515754255029,2.6659730104590094,3.0312227561850991,3.3208497686258824]
["Days on phase",{"$f":"(B6-B5)*0.453592/(B342/1000)","v":20.958977100556179},18.239080496534822,19.17492901903826,18.464677842774325,18.577722929695792,22.192648973190369,null,{"$f":"(I351-I5)*0.453592/(I342/1000)","v":20.958934901426296},{"$f":"(J351-I351)*0.453592/(J342/1000)","v":18.315905611255403},{"$f":"(K351-J351)*0.453592/(K342/1000)","v":19.224942569212494},{"$f":"(L351-K351)*0.453592/(L342/1000)","v":18.514878486289618},{"$f":"(M351-L351)*0.453592/(M342/1000)","v":18.640702245710891},{"$f":"(N351-M351)*0.453592/(N342/1000)","v":22.290192904558729},null,{"$f":"(P351-P5)*0.453592/(P342/1000)","v":20.958934723881768},{"$f":"(Q351-P351)*0.453592/(Q342/1000)","v":18.392682632474418},{"$f":"(R351-Q351)*0.453592/(R342/1000)","v":19.274921803118666},{"$f":"(S351-R351)*0.453592/(S342/1000)","v":18.56548743692343},{"$f":"(T351-S351)*0.453592/(T342/1000)","v":18.703868794762762},{"$f":"(U351-T351)*0.453592/(U342/1000)","v":22.387567106016508},null,{"$f":"(W351-W5)*0.453592/(W342/1000)","v":20.958934544993976},{"$f":"(X351-W351)*0.453592/(X342/1000)","v":18.469849499526269},{"$f":"(Y351-X351)*0.453592/(Y342/1000)","v":19.325112539365119},{"$f":"(Z351-Y351)*0.453592/(Z342/1000)","v":18.616504329922311},{"$f":"(AA351-Z351)*0.453592/(AA342/1000)","v":18.767382047125935},{"$f":"(AB351-AA351)*0.453592/(AB342/1000)","v":22.485277838764226},null,{"$f":"(AD351-AD5)*0.453592/(AD342/1000)","v":20.958934364958733},{"$f":"(AE351-AD351)*0.453592/(AE342/1000)","v":18.547320140157048},{"$f":"(AF351-AE351)*0.453592/(AF342/1000)","v":19.375567288119335},{"$f":"(AG351-AF351)*0.453592/(AG342/1000)","v":18.66822928046717},{"$f":"(AH351-AG351)*0.453592/(AH342/1000)","v":18.831777906912002},{"$f":"(AI351-AH351)*0.453592/(AI342/1000)","v":22.582645262476507},null,{"$f":"(AK351-AK5)*0.453592/(AK342/1000)","v":20.958934184857057},{"$f":"(AL351-AK351)*0.453592/(AL342/1000)","v":18.624636134214544},{"$f":"(AM351-AL351)*0.453592/(AM342/1000)","v":19.426268986135046},{"$f":"(AN351-AM351)*0.453592/(AN342/1000)","v":18.719483609966993},{"$f":"(AO351-AN351)*0.453592/(AO342/1000)","v":18.897733402764203},{"$f":"(AP351-AO351)*0.453592/(AP342/1000)","v":22.678299410347599},null,{"$f":"(AR351-AR5)*0.453592/(AR342/1000)","v":20.958933999778708},{"$f":"(AS351-AR351)*0.453592/(AS342/1000)","v":18.703875776785974},{"$f":"(AT351-AS351)*0.453592/(AT342/1000)","v":19.477597768671728},{"$f":"(AU351-AT351)*0.453592/(AU342/1000)","v":18.771915358733882},{"$f":"(AV351-AU351)*0.453592/(AV342/1000)","v":18.962776160010314},{"$f":"(AW351-AV351)*0.453592/(AW342/1000)","v":22.774266716175422}]
["Dressing, %",{"$f":" 51.6684755267 + 7.1030096064 * (B251/1000) + 54.0870565413 * B236 + 1.6439820046 * B253 + 0.4039153805 * B316 - 20.5375389219 * B252 + 0.2869358688 *(AVERAGE(B5:B6)*0.453592) - 0.016597667 * B316 * B316 - 0.1531408962 * (B251/1000) * (AVERAGE(B5:B6)*0.453592) - 4.8153797375 * B236 * B253 + 0.5304361357 * B236 * (AVERAGE(B5:B6)*0.453592) + 0.9830652207 * B253 * B252 - 0.0127129553 * B253 *(AVERAGE(B5:B6)*0.453592)","v":59.07643336708562},66.187005535002854,71.339528706858943,74.764464309798441,76.836980679644768,78.432360226639787,null,{"$f":" 51.6684755267 + 7.1030096064 * (I251/1000) + 54.0870565413 * I236 + 1.6439820046 * I253 + 0.4039153805 * I316 - 20.5375389219 * I252 + 0.2869358688 *(AVERAGE(I5:I6)*0.453592) - 0.016597667 * I316 * I316 - 0.1531408962 * (I251/1000) * (AVERAGE(I5:I6)*0.453592) - 4.8153797375 * I236 * I253 + 0.5304361357 * I236 * (AVERAGE(I5:I6)*0.453592) + 0.9830652207 * I253 * I252 - 0.0127129553 * I253 *(AVERAGE(I5:I6)*0.453592)","v":59.243479327988396},66.314682198181842,71.423989215062747,74.794604233590505,76.806432001497171,78.432360226639787,null,{"$f":" 51.6684755267 + 7.1030096064 * (P251/1000) + 54.0870565413 * P236 + 1.6439820046 * P253 + 0.4039153805 * P316 - 20.5375389219 * P252 + 0.2869358688 *(AVERAGE(P5:P6)*0.453592) - 0.016597667 * P316 * P316 - 0.1531408962 * (P251/1000) * (AVERAGE(P5:P6)*0.453592) - 4.8153797375 * P236 * P253 + 0.5304361357 * P236 * (AVERAGE(P5:P6)*0.453592) + 0.9830652207 * P253 * P252 - 0.0127129553 * P253 *(AVERAGE(P5:P6)*0.453592)","v":59.36744799757264},66.399315096503798,71.463555262742716,74.78052970997615,76.730534311286107,78.432360226639787,null,{"$f":" 51.6684755267 + 7.1030096064 * (W251/1000) + 54.0870565413 * W236 + 1.6439820046 * W253 + 0.4039153805 * W316 - 20.5375389219 * W252 + 0.2869358688 *(AVERAGE(W5:W6)*0.453592) - 0.016597667 * W316 * W316 - 0.1531408962 * (W251/1000) * (AVERAGE(W5:W6)*0.453592) - 4.8153797375 * W236 * W253 + 0.5304361357 * W236 * (AVERAGE(W5:W6)*0.453592) + 0.9830652207 * W253 * W252 - 0.0127129553 * W253 *(AVERAGE(W5:W6)*0.453592)","v":59.447219082438615},66.439762970964395,71.458544885255478,74.722581015382374,76.608905340313939,78.432360226639787,null,{"$f":" 51.6684755267 + 7.1030096064 * (AD251/1000) + 54.0870565413 * AD236 + 1.6439820046 * AD253 + 0.4039153805 * AD316 - 20.5375389219 * AD252 + 0.2869358688 *(AVERAGE(AD5:AD6)*0.453592) - 0.016597667 * AD316 * AD316 - 0.1531408962 * (AD251/1000) * (AVERAGE(AD5:AD6)*0.453592) - 4.8153797375 * AD236 * AD253 + 0.5304361357 * AD236 * (AVERAGE(AD5:AD6)*0.453592) + 0.9830652207 * AD253 * AD252 - 0.0127129553 * AD253 *(AVERAGE(AD5:AD6)*0.453592)","v":59.482709418021351},66.435812016540055,71.409565286860925,74.618645670294839,76.446831743390234,78.432360226639787,null,{"$f":" 51.6684755267 + 7.1030096064 * (AK251/1000) + 54.0870565413 * AK236 + 1.6439820046 * AK253 + 0.4039153805 * AK316 - 20.5375389219 * AK252 + 0.2869358688 *(AVERAGE(AK5:AK6)*0.453592) - 0.016597667 * AK316 * AK316 - 0.1531408962 * (AK251/1000) * (AVERAGE(AK5:AK6)*0.453592) - 4.8153797375 * AK236 * AK253 + 0.5304361357 * AK236 * (AVERAGE(AK5:AK6)*0.453592) + 0.9830652207 * AK253 * AK252 - 0.0127129553 * AK253 *(AVERAGE(AK5:AK6)*0.453592)","v":59.47349826761198},66.387431021857651,71.31545090986981,74.472489558054363,76.24169507308261,78.432360226639787,null,{"$f":" 51.6684755267 + 7.1030096064 * (AR251/1000) + 54.0870565413 * AR236 + 1.6439820046 * AR253 + 0.4039153805 * AR316 - 20.5375389219 * AR252 + 0.2869358688 *(AVERAGE(AR5:AR6)*0.453592) - 0.016597667 * AR316 * AR316 - 0.1531408962 * (AR251/1000) * (AVERAGE(AR5:AR6)*0.453592) - 4.8153797375 * AR236 * AR253 + 0.5304361357 * AR236 * (AVERAGE(AR5:AR6)*0.453592) + 0.9830652207 * AR253 * AR252 - 0.0127129553 * AR253 *(AVERAGE(AR5:AR6)*0.453592)","v":59.419660946152376},66.294450943031634,71.177011875452706,74.283880076076372,75.99246713277175,78.432360226639787]
["Backfat, mm",{"$f":" 41.4410513954 + (14.8656283053 * B236) - (0.6326892081 * B253) - (12.1380129342 * B252) -\n(0.0133880688 * (B253^2)) + (1.1112817574 * (B252^2))","v":7.8081201670684095},9.6497372018873726,11.707280587456946,13.756142379711502,15.307913140289045,16.16672623849167,null,{"$f":" 41.4410513954 + (14.8656283053 * I236) - (0.6326892081 * I253) - (12.1380129342 * I252) -\n(0.0133880688 * (I253^2)) + (1.1112817574 * (I252^2))","v":7.3965712519540681},9.2585808082621668,11.33564432453878,13.396360195626425,14.95820516594468,16.16672623849167,null,{"$f":" 41.4410513954 + (14.8656283053 * P236) - (0.6326892081 * P253) - (12.1380129342 * P252) -\n(0.0133880688 * (P253^2)) + (1.1112817574 * (P252^2))","v":6.9828278317269579},8.865238822029351,10.960534446788438,13.035429377706016,14.605084043765288,16.16672623849167,null,{"$f":" 41.4410513954 + (14.8656283053 * W236) - (0.6326892081 * W253) - (12.1380129342 * W252) -\n(0.0133880688 * (W253^2)) + (1.1112817574 * (W252^2))","v":6.566215549972533},8.4692180548235783,10.581725706686701,12.674084929772935,14.24700579792202,16.16672623849167,null,{"$f":" 41.4410513954 + (14.8656283053 * AD236) - (0.6326892081 * AD253) - (12.1380129342 * AD252) -\n(0.0133880688 * (AD253^2)) + (1.1112817574 * (AD252^2))","v":6.1470339280943271},8.070046440699981,10.206494085490409,12.303481423881458,13.889187174720101,16.16672623849167,null,{"$f":" 41.4410513954 + (14.8656283053 * AK236) - (0.6326892081 * AK253) - (12.1380129342 * AK252) -\n(0.0133880688 * (AK253^2)) + (1.1112817574 * (AK252^2))","v":5.7274548126901372},7.6678208184835022,9.8170298217134011,11.930203962508784,13.532733677069459,16.16672623849167,null,{"$f":" 41.4410513954 + (14.8656283053 * AR236) - (0.6326892081 * AR253) - (12.1380129342 * AR252) -\n(0.0133880688 * (AR253^2)) + (1.1112817574 * (AR252^2))","v":5.302659914214658},7.2642063728480295,9.4235824207212637,11.560843876657216,13.17188771098798,16.16672623849167]
["Loin depth, mm",{"$f":" -16.7992454106 + 17.2658536059 * (B251/1000) - 106.6634904715 * B236 + 0.1550376119 * B253 - 0.0727312562 * B316 + 48.6541457906 * B252 - 0.1535643762 * B253 * B253 - 0.0358142801 * B316 * B316 - 5.4618633046 * B252 * B252 + 4.2267870055 * B236 * B253 - 2.0313848595 * B236 * B316 + 0.1484978883 * B253 * B316","v":52.048652387826927},57.424545894850155,60.138112629899155,61.003481994612869,60.913721975717699,60.653455485036048,null,{"$f":" -16.7992454106 + 17.2658536059 * (I251/1000) - 106.6634904715 * I236 + 0.1550376119 * I253 - 0.0727312562 * I316 + 48.6541457906 * I252 - 0.1535643762 * I253 * I253 - 0.0358142801 * I316 * I316 - 5.4618633046 * I252 * I252 + 4.2267870055 * I236 * I253 - 2.0313848595 * I236 * I316 + 0.1484978883 * I253 * I316","v":52.029648828494423},57.389746218661493,60.090743298145505,60.939824450938623,60.841065722641474,60.653455485036048,null,{"$f":" -16.7992454106 + 17.2658536059 * (P251/1000) - 106.6634904715 * P236 + 0.1550376119 * P253 - 0.0727312562 * P316 + 48.6541457906 * P252 - 0.1535643762 * P253 * P253 - 0.0358142801 * P316 * P316 - 5.4618633046 * P252 * P252 + 4.2267870055 * P236 * P253 - 2.0313848595 * P236 * P316 + 0.1484978883 * P253 * P316","v":52.005561038897824},57.344714229760882,60.029009681374546,60.862233643135781,60.755224681577914,60.653455485036048,null,{"$f":" -16.7992454106 + 17.2658536059 * (W251/1000) - 106.6634904715 * W236 + 0.1550376119 * W253 - 0.0727312562 * W316 + 48.6541457906 * W252 - 0.1535643762 * W253 * W253 - 0.0358142801 * W316 * W316 - 5.4618633046 * W252 * W252 + 4.2267870055 * W236 * W253 - 2.0313848595 * W236 * W316 + 0.1484978883 * W253 * W316","v":51.968952507299406},57.28658983370552,59.953103644496998,60.769293439626431,60.657026859387699,60.653455485036048,null,{"$f":" -16.7992454106 + 17.2658536059 * (AD251/1000) - 106.6634904715 * AD236 + 0.1550376119 * AD253 - 0.0727312562 * AD316 + 48.6541457906 * AD252 - 0.1535643762 * AD253 * AD253 - 0.0358142801 * AD316 * AD316 - 5.4618633046 * AD252 * AD252 + 4.2267870055 * AD236 * AD253 - 2.0313848595 * AD236 * AD316 + 0.1484978883 * AD253 * AD316","v":51.921729306831878},57.21470287971529,59.860029744773321,60.666568793346606,60.545322645779621,60.653455485036048,null,{"$f":" -16.7992454106 + 17.2658536059 * (AK251/1000) - 106.6634904715 * AK236 + 0.1550376119 * AK253 - 0.0727312562 * AK316 + 48.6541457906 * AK252 - 0.1535643762 * AK253 * AK253 - 0.0358142801 * AK316 * AK316 - 5.4618633046 * AK252 * AK252 + 4.2267870055 * AK236 * AK253 - 2.0313848595 * AK236 * AK316 + 0.1484978883 * AK253 * AK316","v":51.873882788224464},57.129138344589478,59.759217935422242,60.549226277809069,60.41888764263328,60.653455485036048,null,{"$f":" -16.7992454106 + 17.2658536059 * (AR251/1000) - 106.6634904715 * AR236 + 0.1550376119 * AR253 - 0.0727312562 * AR316 + 48.6541457906 * AR252 - 0.1535643762 * AR253 * AR253 - 0.0358142801 * AR316 * AR316 - 5.4618633046 * AR252 * AR252 + 4.2267870055 * AR236 * AR253 - 2.0313848595 * AR236 * AR316 + 0.1484978883 * AR253 * AR316","v":51.790983057993152},57.027944580405247,59.640949723015538,60.41770641573207,60.279973353152371,60.653455485036048]
["Lean, %",{"$f":" 49.3215904687 - 4.5564383267 * (B251/1000) + 31.3355706686 * B236 + 0.0864922401 * B253 - 16.201377828 * B236 * B236","v":53.954378874327247},54.343913736532443,54.182582260957595,53.680906160604707,53.144530833046296,52.790842861934969,null,{"$f":" 49.3215904687 - 4.5564383267 * (I251/1000) + 31.3355706686 * I236 + 0.0864922401 * I253 - 16.201377828 * I236 * I236","v":53.986741985879277},54.375511548263077,54.211713052498474,53.711452016938907,53.175298869125847,52.790842861934969,null,{"$f":" 49.3215904687 - 4.5564383267 * (P251/1000) + 31.3355706686 * P236 + 0.0864922401 * P253 - 16.201377828 * P236 * P236","v":54.017290176452079},54.405665981888021,54.241273151528993,53.74124588701099,53.205202559785491,52.790842861934969,null,{"$f":" 49.3215904687 - 4.5564383267 * (W251/1000) + 31.3355706686 * W236 + 0.0864922401 * W253 - 16.201377828 * W236 * W236","v":54.047527708341519},54.435447552493699,54.271071741030603,53.770639019734659,53.234629212748196,52.790842861934969,null,{"$f":" 49.3215904687 - 4.5564383267 * (AD251/1000) + 31.3355706686 * AD236 + 0.0864922401 * AD253 - 16.201377828 * AD236 * AD236","v":54.07705821480468},54.465146130636654,54.300244223028464,53.799749067852758,53.265813858864178,52.790842861934969,null,{"$f":" 49.3215904687 - 4.5564383267 * (AK251/1000) + 31.3355706686 * AK236 + 0.0864922401 * AK253 - 16.201377828 * AK236 * AK236","v":54.103750702153462},54.494721314035743,54.329883256626069,53.83248986650176,53.295224678600192,52.790842861934969,null,{"$f":" 49.3215904687 - 4.5564383267 * (AR251/1000) + 31.3355706686 * AR236 + 0.0864922401 * AR253 - 16.201377828 * AR236 * AR236","v":54.134585674168065},54.52439632501455,54.362392148605544,53.862141434038364,53.324540410280648,52.790842861934969]
["Final BW",{"$f":"B5+(B342*0.00220462*B346)","v":84.999929826400006},119.99992982640001,159.99991980160002,199.99991980160002,239.99991980160002,284.9999097768,null,{"$f":"$B$351-I268","v":84.852944088142436},{"$f":"$C$351-J268","v":119.8958713641783},{"$f":"$D$351-K268","v":159.89153707636953},{"$f":"$E$351-L268","v":199.86498855302605},{"$f":"$F$351-M268","v":239.80212009802489},{"$f":"$G$351-N268","v":284.9999097768},null,{"$f":"$B$351-P268","v":84.706921250931089},{"$f":"$C$351-Q268","v":119.79246029130258},{"$f":"$D$351-R268","v":159.78300435976919},{"$f":"$E$351-S268","v":199.73099685171888},{"$f":"$F$351-T268","v":239.60467458032696},{"$f":"$G$351-U268","v":284.9999097768},null,{"$f":"$B$351-W268","v":84.561025938843159},{"$f":"$C$351-X268","v":119.68917851933745},{"$f":"$D$351-Y268","v":159.67432627244077},{"$f":"$E$351-Z268","v":199.59761936345242},{"$f":"$F$351-AA268","v":239.40654667865289},{"$f":"$G$351-AB268","v":284.9999097768},null,{"$f":"$B$351-AD268","v":84.415427989535374},{"$f":"$C$351-AE268","v":119.5859289784494},{"$f":"$D$351-AF268","v":159.56487759755365},{"$f":"$E$351-AG268","v":199.4637243159558},{"$f":"$F$351-AH268","v":239.20911490417902},{"$f":"$G$351-AI268","v":284.9999097768},null,{"$f":"$B$351-AK268","v":84.270998580050616},{"$f":"$C$351-AL268","v":119.48272395337915},{"$f":"$D$351-AM268","v":159.45720864081406},{"$f":"$E$351-AN268","v":199.32786302673804},{"$f":"$F$351-AO268","v":239.01515713647859},{"$f":"$G$351-AP268","v":284.9999097768},null,{"$f":"$B$351-AR268","v":84.123835744824063},{"$f":"$C$351-AS268","v":119.37882986120016},{"$f":"$D$351-AT268","v":159.34773993839349},{"$f":"$E$351-AU268","v":199.19529941545585},{"$f":"$F$351-AV268","v":238.82056437887363},{"$f":"$G$351-AW268","v":284.9999097768}]
["Withdrawal Period",0,0,0,0,0,{"$f":"G346","v":22.192648973190369},null,0,0,0,0,0,22.19,null,0,0,0,0,0,22.19,null,0,0,0,0,0,22.19,null,0,0,0,0,0,22.19,null,0,0,0,0,0,22.19,null,0,0,0,0,0,22.19]
["Soto Model for Yield",{"$f":"0.03492*B352-0.05092*B316-0.06897*B316-0.00289*(B316*B352)+76.0769-(75.23-'DDGS Calculator'!$G$9)","v":74.819735985643831},{"$f":"0.03492*C352-0.05092*B316-0.06897*C316-0.00289*(C316*C352)+76.0769-(75.23-'DDGS Calculator'!$G$9)","v":74.814756887824899},{"$f":"0.03492*D352-0.05092*C316-0.06897*D316-0.00289*(D316*D352)+76.0769-(75.23-'DDGS Calculator'!$G$9)","v":74.80663311148534},{"$f":"0.03492*E352-0.05092*D316-0.06897*E316-0.00289*(E316*E352)+76.0769-(75.23-'DDGS Calculator'!$G$9)","v":74.799676279957168},{"$f":"0.03492*F352-0.05092*E316-0.06897*F316-0.00289*(F316*F352)+76.0769-(75.23-'DDGS Calculator'!$G$9)","v":74.794168075350882},{"$f":"0.03492*G352-0.05092*F316-0.06897*G316-0.00289*(G316*G352)+76.0769-(75.23-'DDGS Calculator'!$G$9)","v":75.000490275752696},null,{"$f":"0.03492*I352-0.05092*I316-0.06897*I316-0.00289*(I316*I352)+76.0769-(75.23-'DDGS Calculator'!$G$9)","v":74.680980431928646},{"$f":"0.03492*J352-0.05092*I316-0.06897*J316-0.00289*(J316*J352)+76.0769-(75.23-'DDGS Calculator'!$G$9)","v":74.676043407400968},{"$f":"0.03492*K352-0.05092*J316-0.06897*K316-0.00289*(K316*K352)+76.0769-(75.23-'DDGS Calculator'!$G$9)","v":74.667874753418587},{"$f":"0.03492*L352-0.05092*K316-0.06897*L316-0.00289*(L316*L352)+76.0769-(75.23-'DDGS Calculator'!$G$9)","v":74.660749432711754},{"$f":"0.03492*M352-0.05092*L316-0.06897*M316-0.00289*(M316*M352)+76.0769-(75.23-'DDGS Calculator'!$G$9)","v":74.655239005563715},{"$f":"0.03492*N352-0.05092*M316-0.06897*N316-0.00289*(N316*N352)+76.0769-(75.23-'DDGS Calculator'!$G$9)","v":74.941484265018289},null,{"$f":"0.03492*P352-0.05092*P316-0.06897*P316-0.00289*(P316*P352)+76.0769-(75.23-'DDGS Calculator'!$G$9)","v":74.542235883530822},{"$f":"0.03492*Q352-0.05092*P316-0.06897*Q316-0.00289*(Q316*Q352)+76.0769-(75.23-'DDGS Calculator'!$G$9)","v":74.537310864041388},{"$f":"0.03492*R352-0.05092*Q316-0.06897*R316-0.00289*(R316*R352)+76.0769-(75.23-'DDGS Calculator'!$G$9)","v":74.52916919362228},{"$f":"0.03492*S352-0.05092*R316-0.06897*S316-0.00289*(S316*S352)+76.0769-(75.23-'DDGS Calculator'!$G$9)","v":74.522050123701007},{"$f":"0.03492*T352-0.05092*S316-0.06897*T316-0.00289*(T316*T352)+76.0769-(75.23-'DDGS Calculator'!$G$9)","v":74.516552206421764},{"$f":"0.03492*U352-0.05092*T316-0.06897*U316-0.00289*(U316*U352)+76.0769-(75.23-'DDGS Calculator'!$G$9)","v":74.882586411167438},null,{"$f":"0.03492*W352-0.05092*W316-0.06897*W316-0.00289*(W316*W352)+76.0769-(75.23-'DDGS Calculator'!$G$9)","v":74.403507799367745},{"$f":"0.03492*X352-0.05092*W316-0.06897*X316-0.00289*(X316*X352)+76.0769-(75.23-'DDGS Calculator'!$G$9)","v":74.398596681430249},{"$f":"0.03492*Y352-0.05092*X316-0.06897*Y316-0.00289*(Y316*Y352)+76.0769-(75.23-'DDGS Calculator'!$G$9)","v":74.39044489275544},{"$f":"0.03492*Z352-0.05092*Y316-0.06897*Z316-0.00289*(Z316*Z352)+76.0769-(75.23-'DDGS Calculator'!$G$9)","v":74.383297547149141},{"$f":"0.03492*AA352-0.05092*Z316-0.06897*AA316-0.00289*(AA316*AA352)+76.0769-(75.23-'DDGS Calculator'!$G$9)","v":74.377863176582721},{"$f":"0.03492*AB352-0.05092*AA316-0.06897*AB316-0.00289*(AB316*AB352)+76.0769-(75.23-'DDGS Calculator'!$G$9)","v":74.823705025837981},null,{"$f":"0.03492*AD352-0.05092*AD316-0.06897*AD316-0.00289*(AD316*AD352)+76.0769-(75.23-'DDGS Calculator'!$G$9)","v":74.264799922358506},{"$f":"0.03492*AE352-0.05092*AD316-0.06897*AE316-0.00289*(AE316*AE352)+76.0769-(75.23-'DDGS Calculator'!$G$9)","v":74.259883680176316},{"$f":"0.03492*AF352-0.05092*AE316-0.06897*AF316-0.00289*(AF316*AF352)+76.0769-(75.23-'DDGS Calculator'!$G$9)","v":74.251685487512418},{"$f":"0.03492*AG352-0.05092*AF316-0.06897*AG316-0.00289*(AG316*AG352)+76.0769-(75.23-'DDGS Calculator'!$G$9)","v":74.244615984531038},{"$f":"0.03492*AH352-0.05092*AG316-0.06897*AH316-0.00289*(AH316*AH352)+76.0769-(75.23-'DDGS Calculator'!$G$9)","v":74.239978886161893},{"$f":"0.03492*AI352-0.05092*AH316-0.06897*AI316-0.00289*(AI316*AI352)+76.0769-(75.23-'DDGS Calculator'!$G$9)","v":74.765367137312566},null,{"$f":"0.03492*AK352-0.05092*AK316-0.06897*AK316-0.00289*(AK316*AK352)+76.0769-(75.23-'DDGS Calculator'!$G$9)","v":74.126233822363432},{"$f":"0.03492*AL352-0.05092*AK316-0.06897*AL316-0.00289*(AL316*AL352)+76.0769-(75.23-'DDGS Calculator'!$G$9)","v":74.121229691252395},{"$f":"0.03492*AM352-0.05092*AL316-0.06897*AM316-0.00289*(AM316*AM352)+76.0769-(75.23-'DDGS Calculator'!$G$9)","v":74.113013409254918},{"$f":"0.03492*AN352-0.05092*AM316-0.06897*AN316-0.00289*(AN316*AN352)+76.0769-(75.23-'DDGS Calculator'!$G$9)","v":74.106632752503842},{"$f":"0.03492*AO352-0.05092*AN316-0.06897*AO316-0.00289*(AO316*AO352)+76.0769-(75.23-'DDGS Calculator'!$G$9)","v":74.102747888088174},{"$f":"0.03492*AP352-0.05092*AO316-0.06897*AP316-0.00289*(AP316*AP352)+76.0769-(75.23-'DDGS Calculator'!$G$9)","v":74.707166426813956},null,{"$f":"0.03492*AR352-0.05092*AR316-0.06897*AR316-0.00289*(AR316*AR352)+76.0769-(75.23-'DDGS Calculator'!$G$9)","v":73.987454622500977},{"$f":"0.03492*AS352-0.05092*AR316-0.06897*AS316-0.00289*(AS316*AS352)+76.0769-(75.23-'DDGS Calculator'!$G$9)","v":73.982485857209639},{"$f":"0.03492*AT352-0.05092*AS316-0.06897*AT316-0.00289*(AT316*AT352)+76.0769-(75.23-'DDGS Calculator'!$G$9)","v":73.9745073215459},{"$f":"0.03492*AU352-0.05092*AT316-0.06897*AU316-0.00289*(AU316*AU352)+76.0769-(75.23-'DDGS Calculator'!$G$9)","v":73.969038400847609},{"$f":"0.03492*AV352-0.05092*AU316-0.06897*AV316-0.00289*(AV316*AV352)+76.0769-(75.23-'DDGS Calculator'!$G$9)","v":73.965727146313426},{"$f":"0.03492*AW352-0.05092*AV316-0.06897*AW316-0.00289*(AW316*AW352)+76.0769-(75.23-'DDGS Calculator'!$G$9)","v":74.648975579486034}]

{"sheet":"GF diets L-Val + WD","index":11,"n_rows":353,"n_cols":51,"rows_kept":353,"cut":false,"hidden":true,"merged":[[3,36,3,40],[3,43,3,47],[3,1,3,5],[3,8,3,12],[3,15,3,19],[3,22,3,26],[3,29,3,33]]}
["Corn",null,null,null,null,null,null,null,{"$f":"B7-I7","v":63.789109889335123},{"$f":"C7-J7","v":65.149994542463219},66.11510081960364,66.788938181161939,66.688859631779451,0,null,{"$f":"I7-P7","v":65.418531271642451},{"$f":"J7-Q7","v":66.283963308040256},67.035655773499684,66.728602693196535,67.384062196562354,0,null,{"$f":"P7-W7","v":65.471590096287173},{"$f":"Q7-X7","v":66.247123285707858},65.984796659512995,67.127401431758244,67.816410698558457,0,null,{"$f":"W7-AD7","v":65.462625375353809},{"$f":"X7-AE7","v":65.221158447268863},66.362261066153678,67.426293862590455,68.860809922171484,0,null,{"$f":"AD7-AK7","v":65.776218580573413},{"$f":"AE7-AL7","v":65.465737091472647},66.604811735053318,68.211780203257831,69.213371174924987,0,null,{"$f":"AK7-AR7","v":67.892536930548317},{"$f":"AL7-AS7","v":65.652092522674138},66.991285188586744,68.861672265394873,69.218974661154789,0]
["SBM",null,null,null,null,null,null,null,{"$f":"B8-I8","v":35.320222042977775},34.116983925017394,33.138379984742187,32.486249419974229,32.536482658629893,0,null,{"$f":"I8-P8","v":33.779747158007467},33.048764602227266,32.280583008157237,32.635298298839416,32.003339981902855,0,null,{"$f":"P8-W8","v":33.776757545360852},33.04840831111801,33.389395431325511,32.342598568241783,31.903589301441571,0,null,{"$f":"W8-AD8","v":33.858637056689986},34.13786518117513,33.11773893384634,32.3390201510324,32.223858555663583,0,null,{"$f":"AD8-AK8","v":33.568713645087428},33.827251635648963,32.982406726295039,32.591101927869204,32.333858893615115,0,null,{"$f":"AK8-AR8","v":31.424187924327839},33.807907477325898,32.757426012777842,32.696921624659808,32.328334223451748,0]
[null,"Diet 1","Diet 2","Diet 3","Diet 4","Diet 5","Diet 6",null,"Diet 1","Diet 2","Diet 3","Diet 4","Diet 5","Diet 6",null,"Diet 1","Diet 2","Diet 3","Diet 4","Diet 5","Diet 6",null,"Diet 1","Diet 2","Diet 3","Diet 4","Diet 5","Diet 6",null,"Diet 1","Diet 2","Diet 3","Diet 4","Diet 5","Diet 6",null,"Diet 1","Diet 2","Diet 3","Diet 4","Diet 5","Diet 6",null,"Diet 1","Diet 2","Diet 3","Diet 4","Diet 5","Diet 6"]
[null,"Weight Range",null,null,null,null,null,null,"Weight Range",null,null,null,null,null,null,"Weight Range",null,null,null,null,null,null,"Weight Range",null,null,null,null,null,null,"Weight Range",null,null,null,null,null,null,"Weight Range",null,null,null,null,null,null,"Weight Range"]
[null,50,85,120,160,200,240,null,50,85,120,160,200,240,null,50,85,120,160,200,240,null,50,85,120,160,200,240,null,50,85,120,160,200,240,null,50,85,120,160,200,240,null,50,85,120,160,200,240]
["Ingredient",85,120,160,200,240,285,null,85,120,160,200,240,285,null,85,120,160,200,240,285,null,85,120,160,200,240,285,null,85,120,160,200,240,285,null,85,120,160,200,240,285,null,85,120,160,200,240,285]
["Corn",{"$f":"IF(B5=\"\",\"\",((((B236-B297)*2000)+((SUM(B9:B229)-2000)*((IF($A8=Nutrients!$B$79,Nutrients!$DA$79,(IF($A8=Nutrients!$B$77,Nutrients!$DA$77,Nutrients!$DA$78)))))))/((IF($A7=Nutrients!$B$8,Nutrients!$DA$8,Nutrients!$DA$9))-((IF($A8=Nutrients!$B$79,Nutrients!$DA$79,(IF($A8=Nutrients!$B$77,Nutrients!$DA$77,Nutrients!$DA$78))))))))","v":1401.204118179855},{"$f":"IF(C5=\"\",\"\",((((C236-C297)*2000)+((SUM(C9:C229)-2000)*((IF($A8=Nutrients!$B$79,Nutrients!$DA$79,(IF($A8=Nutrients!$B$77,Nutrients!$DA$77,Nutrients!$DA$78)))))))/((IF($A7=Nutrients!$B$8,Nutrients!$DA$8,Nutrients!$DA$9))-((IF($A8=Nutrients!$B$79,Nutrients!$DA$79,(IF($A8=Nutrients!$B$77,Nutrients!$DA$77,Nutrients!$DA$78))))))))","v":1489.6346777263973},{"$f":"IF(D5=\"\",\"\",((((D236-D297)*2000)+((SUM(D9:D229)-2000)*((IF($A8=Nutrients!$B$79,Nutrients!$DA$79,(IF($A8=Nutrients!$B$77,Nutrients!$DA$77,Nutrients!$DA$78)))))))/((IF($A7=Nutrients!$B$8,Nutrients!$DA$8,Nutrients!$DA$9))-((IF($A8=Nutrients!$B$79,Nutrients!$DA$79,(IF($A8=Nutrients!$B$77,Nutrients!$DA$77,Nutrients!$DA$78))))))))","v":1564.8539711032211},{"$f":"IF(E5=\"\",\"\",((((E236-E297)*2000)+((SUM(E9:E229)-2000)*((IF($A8=Nutrients!$B$79,Nutrients!$DA$79,(IF($A8=Nutrients!$B$77,Nutrients!$DA$77,Nutrients!$DA$78)))))))/((IF($A7=Nutrients!$B$8,Nutrients!$DA$8,Nutrients!$DA$9))-((IF($A8=Nutrients!$B$79,Nutrients!$DA$79,(IF($A8=Nutrients!$B$77,Nutrients!$DA$77,Nutrients!$DA$78))))))))","v":1637.2122226458096},{"$f":"IF(F5=\"\",\"\",((((F236-F297)*2000)+((SUM(F9:F229)-2000)*((IF($A8=Nutrients!$B$79,Nutrients!$DA$79,(IF($A8=Nutrients!$B$77,Nutrients!$DA$77,Nutrients!$DA$78)))))))/((IF($A7=Nutrients!$B$8,Nutrients!$DA$8,Nutrients!$DA$9))-((IF($A8=Nutrients!$B$79,Nutrients!$DA$79,(IF($A8=Nutrients!$B$77,Nutrients!$DA$77,Nutrients!$DA$78))))))))","v":1697.3820399240099},{"$f":"IF(G5=\"\",\"\",((((G236-G297)*2000)+((SUM(G9:G229)-2000)*((IF($A8=Nutrients!$B$79,Nutrients!$DA$79,(IF($A8=Nutrients!$B$77,Nutrients!$DA$77,Nutrients!$DA$78)))))))/((IF($A7=Nutrients!$B$8,Nutrients!$DA$8,Nutrients!$DA$9))-((IF($A8=Nutrients!$B$79,Nutrients!$DA$79,(IF($A8=Nutrients!$B$77,Nutrients!$DA$77,Nutrients!$DA$78))))))))","v":1729.7239606988965},null,{"$f":"IF(I5=\"\",\"\",((((I236-I297)*2000)+((SUM(I9:I229)-2000)*((IF($A8=Nutrients!$B$79,Nutrients!$DA$79,(IF($A8=Nutrients!$B$77,Nutrients!$DA$77,Nutrients!$DA$78)))))))/((IF($A7=Nutrients!$B$8,Nutrients!$DA$8,Nutrients!$DA$9))-((IF($A8=Nutrients!$B$79,Nutrients!$DA$79,(IF($A8=Nutrients!$B$77,Nutrients!$DA$77,Nutrients!$DA$78))))))))","v":1337.4150082905198},{"$f":"IF(J5=\"\",\"\",((((J236-J297)*2000)+((SUM(J9:J229)-2000)*((IF($A8=Nutrients!$B$79,Nutrients!$DA$79,(IF($A8=Nutrients!$B$77,Nutrients!$DA$77,Nutrients!$DA$78)))))))/((IF($A7=Nutrients!$B$8,Nutrients!$DA$8,Nutrients!$DA$9))-((IF($A8=Nutrients!$B$79,Nutrients!$DA$79,(IF($A8=Nutrients!$B$77,Nutrients!$DA$77,Nutrients!$DA$78))))))))","v":1424.4846831839341},{"$f":"IF(K5=\"\",\"\",((((K236-K297)*2000)+((SUM(K9:K229)-2000)*((IF($A8=Nutrients!$B$79,Nutrients!$DA$79,(IF($A8=Nutrients!$B$77,Nutrients!$DA$77,Nutrients!$DA$78)))))))/((IF($A7=Nutrients!$B$8,Nutrients!$DA$8,Nutrients!$DA$9))-((IF($A8=Nutrients!$B$79,Nutrients!$DA$79,(IF($A8=Nutrients!$B$77,Nutrients!$DA$77,Nutrients!$DA$78))))))))","v":1498.7388702836174},{"$f":"IF(L5=\"\",\"\",((((L236-L297)*2000)+((SUM(L9:L229)-2000)*((IF($A8=Nutrients!$B$79,Nutrients!$DA$79,(IF($A8=Nutrients!$B$77,Nutrients!$DA$77,Nutrients!$DA$78)))))))/((IF($A7=Nutrients!$B$8,Nutrients!$DA$8,Nutrients!$DA$9))-((IF($A8=Nutrients!$B$79,Nutrients!$DA$79,(IF($A8=Nutrients!$B$77,Nutrients!$DA$77,Nutrients!$DA$78))))))))","v":1570.4232844646476},{"$f":"IF(M5=\"\",\"\",((((M236-M297)*2000)+((SUM(M9:M229)-2000)*((IF($A8=Nutrients!$B$79,Nutrients!$DA$79,(IF($A8=Nutrients!$B$77,Nutrients!$DA$77,Nutrients!$DA$78)))))))/((IF($A7=Nutrients!$B$8,Nutrients!$DA$8,Nutrients!$DA$9))-((IF($A8=Nutrients!$B$79,Nutrients!$DA$79,(IF($A8=Nutrients!$B$77,Nutrients!$DA$77,Nutrients!$DA$78))))))))","v":1630.6931802922304},{"$f":"IF(N5=\"\",\"\",((((N236-N297)*2000)+((SUM(N9:N229)-2000)*((IF($A8=Nutrients!$B$79,Nutrients!$DA$79,(IF($A8=Nutrients!$B$77,Nutrients!$DA$77,Nutrients!$DA$78)))))))/((IF($A7=Nutrients!$B$8,Nutrients!$DA$8,Nutrients!$DA$9))-((IF($A8=Nutrients!$B$79,Nutrients!$DA$79,(IF($A8=Nutrients!$B$77,Nutrients!$DA$77,Nutrients!$DA$78))))))))","v":1729.7239606988965},null,{"$f":"IF(P5=\"\",\"\",((((P236-P297)*2000)+((SUM(P9:P229)-2000)*((IF($A8=Nutrients!$B$79,Nutrients!$DA$79,(IF($A8=Nutrients!$B$77,Nutrients!$DA$77,Nutrients!$DA$78)))))))/((IF($A7=Nutrients!$B$8,Nutrients!$DA$8,Nutrients!$DA$9))-((IF($A8=Nutrients!$B$79,Nutrients!$DA$79,(IF($A8=Nutrients!$B$77,Nutrients!$DA$77,Nutrients!$DA$78))))))))","v":1271.9964770188774},{"$f":"IF(Q5=\"\",\"\",((((Q236-Q297)*2000)+((SUM(Q9:Q229)-2000)*((IF($A8=Nutrients!$B$79,Nutrients!$DA$79,(IF($A8=Nutrients!$B$77,Nutrients!$DA$77,Nutrients!$DA$78)))))))/((IF($A7=Nutrients!$B$8,Nutrients!$DA$8,Nutrients!$DA$9))-((IF($A8=Nutrients!$B$79,Nutrients!$DA$79,(IF($A8=Nutrients!$B$77,Nutrients!$DA$77,Nutrients!$DA$78))))))))","v":1358.2007198758938},{"$f":"IF(R5=\"\",\"\",((((R236-R297)*2000)+((SUM(R9:R229)-2000)*((IF($A8=Nutrients!$B$79,Nutrients!$DA$79,(IF($A8=Nutrients!$B$77,Nutrients!$DA$77,Nutrients!$DA$78)))))))/((IF($A7=Nutrients!$B$8,Nutrients!$DA$8,Nutrients!$DA$9))-((IF($A8=Nutrients!$B$79,Nutrients!$DA$79,(IF($A8=Nutrients!$B$77,Nutrients!$DA$77,Nutrients!$DA$78))))))))","v":1431.7032145101177},{"$f":"IF(S5=\"\",\"\",((((S236-S297)*2000)+((SUM(S9:S229)-2000)*((IF($A8=Nutrients!$B$79,Nutrients!$DA$79,(IF($A8=Nutrients!$B$77,Nutrients!$DA$77,Nutrients!$DA$78)))))))/((IF($A7=Nutrients!$B$8,Nutrients!$DA$8,Nutrients!$DA$9))-((IF($A8=Nutrients!$B$79,Nutrients!$DA$79,(IF($A8=Nutrients!$B$77,Nutrients!$DA$77,Nutrients!$DA$78))))))))","v":1503.6946817714511},{"$f":"IF(T5=\"\",\"\",((((T236-T297)*2000)+((SUM(T9:T229)-2000)*((IF($A8=Nutrients!$B$79,Nutrients!$DA$79,(IF($A8=Nutrients!$B$77,Nutrients!$DA$77,Nutrients!$DA$78)))))))/((IF($A7=Nutrients!$B$8,Nutrients!$DA$8,Nutrients!$DA$9))-((IF($A8=Nutrients!$B$79,Nutrients!$DA$79,(IF($A8=Nutrients!$B$77,Nutrients!$DA$77,Nutrients!$DA$78))))))))","v":1563.3091180956681},{"$f":"IF(U5=\"\",\"\",((((U236-U297)*2000)+((SUM(U9:U229)-2000)*((IF($A8=Nutrients!$B$79,Nutrients!$DA$79,(IF($A8=Nutrients!$B$77,Nutrients!$DA$77,Nutrients!$DA$78)))))))/((IF($A7=Nutrients!$B$8,Nutrients!$DA$8,Nutrients!$DA$9))-((IF($A8=Nutrients!$B$79,Nutrients!$DA$79,(IF($A8=Nutrients!$B$77,Nutrients!$DA$77,Nutrients!$DA$78))))))))","v":1729.7239606988965},null,{"$f":"IF(W5=\"\",\"\",((((W236-W297)*2000)+((SUM(W9:W229)-2000)*((IF($A8=Nutrients!$B$79,Nutrients!$DA$79,(IF($A8=Nutrients!$B$77,Nutrients!$DA$77,Nutrients!$DA$78)))))))/((IF($A7=Nutrients!$B$8,Nutrients!$DA$8,Nutrients!$DA$9))-((IF($A8=Nutrients!$B$79,Nutrients!$DA$79,(IF($A8=Nutrients!$B$77,Nutrients!$DA$77,Nutrients!$DA$78))))))))","v":1206.5248869225902},{"$f":"IF(X5=\"\",\"\",((((X236-X297)*2000)+((SUM(X9:X229)-2000)*((IF($A8=Nutrients!$B$79,Nutrients!$DA$79,(IF($A8=Nutrients!$B$77,Nutrients!$DA$77,Nutrients!$DA$78)))))))/((IF($A7=Nutrients!$B$8,Nutrients!$DA$8,Nutrients!$DA$9))-((IF($A8=Nutrients!$B$79,Nutrients!$DA$79,(IF($A8=Nutrients!$B$77,Nutrients!$DA$77,Nutrients!$DA$78))))))))","v":1291.953596590186},{"$f":"IF(Y5=\"\",\"\",((((Y236-Y297)*2000)+((SUM(Y9:Y229)-2000)*((IF($A8=Nutrients!$B$79,Nutrients!$DA$79,(IF($A8=Nutrients!$B$77,Nutrients!$DA$77,Nutrients!$DA$78)))))))/((IF($A7=Nutrients!$B$8,Nutrients!$DA$8,Nutrients!$DA$9))-((IF($A8=Nutrients!$B$79,Nutrients!$DA$79,(IF($A8=Nutrients!$B$77,Nutrients!$DA$77,Nutrients!$DA$78))))))))","v":1365.7184178506047},{"$f":"IF(Z5=\"\",\"\",((((Z236-Z297)*2000)+((SUM(Z9:Z229)-2000)*((IF($A8=Nutrients!$B$79,Nutrients!$DA$79,(IF($A8=Nutrients!$B$77,Nutrients!$DA$77,Nutrients!$DA$78)))))))/((IF($A7=Nutrients!$B$8,Nutrients!$DA$8,Nutrients!$DA$9))-((IF($A8=Nutrients!$B$79,Nutrients!$DA$79,(IF($A8=Nutrients!$B$77,Nutrients!$DA$77,Nutrients!$DA$78))))))))","v":1436.5672803396928},{"$f":"IF(AA5=\"\",\"\",((((AA236-AA297)*2000)+((SUM(AA9:AA229)-2000)*((IF($A8=Nutrients!$B$79,Nutrients!$DA$79,(IF($A8=Nutrients!$B$77,Nutrients!$DA$77,Nutrients!$DA$78)))))))/((IF($A7=Nutrients!$B$8,Nutrients!$DA$8,Nutrients!$DA$9))-((IF($A8=Nutrients!$B$79,Nutrients!$DA$79,(IF($A8=Nutrients!$B$77,Nutrients!$DA$77,Nutrients!$DA$78))))))))","v":1495.4927073971096},{"$f":"IF(AB5=\"\",\"\",((((AB236-AB297)*2000)+((SUM(AB9:AB229)-2000)*((IF($A8=Nutrients!$B$79,Nutrients!$DA$79,(IF($A8=Nutrients!$B$77,Nutrients!$DA$77,Nutrients!$DA$78)))))))/((IF($A7=Nutrients!$B$8,Nutrients!$DA$8,Nutrients!$DA$9))-((IF($A8=Nutrients!$B$79,Nutrients!$DA$79,(IF($A8=Nutrients!$B$77,Nutrients!$DA$77,Nutrients!$DA$78))))))))","v":1729.7239606988965},null,{"$f":"IF(AD5=\"\",\"\",((((AD236-AD297)*2000)+((SUM(AD9:AD229)-2000)*((IF($A8=Nutrients!$B$79,Nutrients!$DA$79,(IF($A8=Nutrients!$B$77,Nutrients!$DA$77,Nutrients!$DA$78)))))))/((IF($A7=Nutrients!$B$8,Nutrients!$DA$8,Nutrients!$DA$9))-((IF($A8=Nutrients!$B$79,Nutrients!$DA$79,(IF($A8=Nutrients!$B$77,Nutrients!$DA$77,Nutrients!$DA$78))))))))","v":1141.0622615472364},{"$f":"IF(AE5=\"\",\"\",((((AE236-AE297)*2000)+((SUM(AE9:AE229)-2000)*((IF($A8=Nutrients!$B$79,Nutrients!$DA$79,(IF($A8=Nutrients!$B$77,Nutrients!$DA$77,Nutrients!$DA$78)))))))/((IF($A7=Nutrients!$B$8,Nutrients!$DA$8,Nutrients!$DA$9))-((IF($A8=Nutrients!$B$79,Nutrients!$DA$79,(IF($A8=Nutrients!$B$77,Nutrients!$DA$77,Nutrients!$DA$78))))))))","v":1226.7324381429171},{"$f":"IF(AF5=\"\",\"\",((((AF236-AF297)*2000)+((SUM(AF9:AF229)-2000)*((IF($A8=Nutrients!$B$79,Nutrients!$DA$79,(IF($A8=Nutrients!$B$77,Nutrients!$DA$77,Nutrients!$DA$78)))))))/((IF($A7=Nutrients!$B$8,Nutrients!$DA$8,Nutrients!$DA$9))-((IF($A8=Nutrients!$B$79,Nutrients!$DA$79,(IF($A8=Nutrients!$B$77,Nutrients!$DA$77,Nutrients!$DA$78))))))))","v":1299.3561567844511},{"$f":"IF(AG5=\"\",\"\",((((AG236-AG297)*2000)+((SUM(AG9:AG229)-2000)*((IF($A8=Nutrients!$B$79,Nutrients!$DA$79,(IF($A8=Nutrients!$B$77,Nutrients!$DA$77,Nutrients!$DA$78)))))))/((IF($A7=Nutrients!$B$8,Nutrients!$DA$8,Nutrients!$DA$9))-((IF($A8=Nutrients!$B$79,Nutrients!$DA$79,(IF($A8=Nutrients!$B$77,Nutrients!$DA$77,Nutrients!$DA$78))))))))","v":1369.1409864771024},{"$f":"IF(AH5=\"\",\"\",((((AH236-AH297)*2000)+((SUM(AH9:AH229)-2000)*((IF($A8=Nutrients!$B$79,Nutrients!$DA$79,(IF($A8=Nutrients!$B$77,Nutrients!$DA$77,Nutrients!$DA$78)))))))/((IF($A7=Nutrients!$B$8,Nutrients!$DA$8,Nutrients!$DA$9))-((IF($A8=Nutrients!$B$79,Nutrients!$DA$79,(IF($A8=Nutrients!$B$77,Nutrients!$DA$77,Nutrients!$DA$78))))))))","v":1426.6318974749381},{"$f":"IF(AI5=\"\",\"\",((((AI236-AI297)*2000)+((SUM(AI9:AI229)-2000)*((IF($A8=Nutrients!$B$79,Nutrients!$DA$79,(IF($A8=Nutrients!$B$77,Nutrients!$DA$77,Nutrients!$DA$78)))))))/((IF($A7=Nutrients!$B$8,Nutrients!$DA$8,Nutrients!$DA$9))-((IF($A8=Nutrients!$B$79,Nutrients!$DA$79,(IF($A8=Nutrients!$B$77,Nutrients!$DA$77,Nutrients!$DA$78))))))))","v":1729.7239606988965},null,{"$f":"IF(AK5=\"\",\"\",((((AK236-AK297)*2000)+((SUM(AK9:AK229)-2000)*((IF($A8=Nutrients!$B$79,Nutrients!$DA$79,(IF($A8=Nutrients!$B$77,Nutrients!$DA$77,Nutrients!$DA$78)))))))/((IF($A7=Nutrients!$B$8,Nutrients!$DA$8,Nutrients!$DA$9))-((IF($A8=Nutrients!$B$79,Nutrients!$DA$79,(IF($A8=Nutrients!$B$77,Nutrients!$DA$77,Nutrients!$DA$78))))))))","v":1075.286042966663},{"$f":"IF(AL5=\"\",\"\",((((AL236-AL297)*2000)+((SUM(AL9:AL229)-2000)*((IF($A8=Nutrients!$B$79,Nutrients!$DA$79,(IF($A8=Nutrients!$B$77,Nutrients!$DA$77,Nutrients!$DA$78)))))))/((IF($A7=Nutrients!$B$8,Nutrients!$DA$8,Nutrients!$DA$9))-((IF($A8=Nutrients!$B$79,Nutrients!$DA$79,(IF($A8=Nutrients!$B$77,Nutrients!$DA$77,Nutrients!$DA$78))))))))","v":1161.2667010514444},{"$f":"IF(AM5=\"\",\"\",((((AM236-AM297)*2000)+((SUM(AM9:AM229)-2000)*((IF($A8=Nutrients!$B$79,Nutrients!$DA$79,(IF($A8=Nutrients!$B$77,Nutrients!$DA$77,Nutrients!$DA$78)))))))/((IF($A7=Nutrients!$B$8,Nutrients!$DA$8,Nutrients!$DA$9))-((IF($A8=Nutrients!$B$79,Nutrients!$DA$79,(IF($A8=Nutrients!$B$77,Nutrients!$DA$77,Nutrients!$DA$78))))))))","v":1232.7513450493977},{"$f":"IF(AN5=\"\",\"\",((((AN236-AN297)*2000)+((SUM(AN9:AN229)-2000)*((IF($A8=Nutrients!$B$79,Nutrients!$DA$79,(IF($A8=Nutrients!$B$77,Nutrients!$DA$77,Nutrients!$DA$78)))))))/((IF($A7=Nutrients!$B$8,Nutrients!$DA$8,Nutrients!$DA$9))-((IF($A8=Nutrients!$B$79,Nutrients!$DA$79,(IF($A8=Nutrients!$B$77,Nutrients!$DA$77,Nutrients!$DA$78))))))))","v":1300.9292062738446},{"$f":"IF(AO5=\"\",\"\",((((AO236-AO297)*2000)+((SUM(AO9:AO229)-2000)*((IF($A8=Nutrients!$B$79,Nutrients!$DA$79,(IF($A8=Nutrients!$B$77,Nutrients!$DA$77,Nutrients!$DA$78)))))))/((IF($A7=Nutrients!$B$8,Nutrients!$DA$8,Nutrients!$DA$9))-((IF($A8=Nutrients!$B$79,Nutrients!$DA$79,(IF($A8=Nutrients!$B$77,Nutrients!$DA$77,Nutrients!$DA$78))))))))","v":1357.4185263000131},{"$f":"IF(AP5=\"\",\"\",((((AP236-AP297)*2000)+((SUM(AP9:AP229)-2000)*((IF($A8=Nutrients!$B$79,Nutrients!$DA$79,(IF($A8=Nutrients!$B$77,Nutrients!$DA$77,Nutrients!$DA$78)))))))/((IF($A7=Nutrients!$B$8,Nutrients!$DA$8,Nutrients!$DA$9))-((IF($A8=Nutrients!$B$79,Nutrients!$DA$79,(IF($A8=Nutrients!$B$77,Nutrients!$DA$77,Nutrients!$DA$78))))))))","v":1729.7239606988965},null,{"$f":"IF(AR5=\"\",\"\",((((AR236-AR297)*2000)+((SUM(AR9:AR229)-2000)*((IF($A8=Nutrients!$B$79,Nutrients!$DA$79,(IF($A8=Nutrients!$B$77,Nutrients!$DA$77,Nutrients!$DA$78)))))))/((IF($A7=Nutrients!$B$8,Nutrients!$DA$8,Nutrients!$DA$9))-((IF($A8=Nutrients!$B$79,Nutrients!$DA$79,(IF($A8=Nutrients!$B$77,Nutrients!$DA$77,Nutrients!$DA$78))))))))","v":1007.3935060361147},{"$f":"IF(AS5=\"\",\"\",((((AS236-AS297)*2000)+((SUM(AS9:AS229)-2000)*((IF($A8=Nutrients!$B$79,Nutrients!$DA$79,(IF($A8=Nutrients!$B$77,Nutrients!$DA$77,Nutrients!$DA$78)))))))/((IF($A7=Nutrients!$B$8,Nutrients!$DA$8,Nutrients!$DA$9))-((IF($A8=Nutrients!$B$79,Nutrients!$DA$79,(IF($A8=Nutrients!$B$77,Nutrients!$DA$77,Nutrients!$DA$78))))))))","v":1095.6146085287703},{"$f":"IF(AT5=\"\",\"\",((((AT236-AT297)*2000)+((SUM(AT9:AT229)-2000)*((IF($A8=Nutrients!$B$79,Nutrients!$DA$79,(IF($A8=Nutrients!$B$77,Nutrients!$DA$77,Nutrients!$DA$78)))))))/((IF($A7=Nutrients!$B$8,Nutrients!$DA$8,Nutrients!$DA$9))-((IF($A8=Nutrients!$B$79,Nutrients!$DA$79,(IF($A8=Nutrients!$B$77,Nutrients!$DA$77,Nutrients!$DA$78))))))))","v":1165.760059860811},{"$f":"IF(AU5=\"\",\"\",((((AU236-AU297)*2000)+((SUM(AU9:AU229)-2000)*((IF($A8=Nutrients!$B$79,Nutrients!$DA$79,(IF($A8=Nutrients!$B$77,Nutrients!$DA$77,Nutrients!$DA$78)))))))/((IF($A7=Nutrients!$B$8,Nutrients!$DA$8,Nutrients!$DA$9))-((IF($A8=Nutrients!$B$79,Nutrients!$DA$79,(IF($A8=Nutrients!$B$77,Nutrients!$DA$77,Nutrients!$DA$78))))))))","v":1232.0675340084497},{"$f":"IF(AV5=\"\",\"\",((((AV236-AV297)*2000)+((SUM(AV9:AV229)-2000)*((IF($A8=Nutrients!$B$79,Nutrients!$DA$79,(IF($A8=Nutrients!$B$77,Nutrients!$DA$77,Nutrients!$DA$78)))))))/((IF($A7=Nutrients!$B$8,Nutrients!$DA$8,Nutrients!$DA$9))-((IF($A8=Nutrients!$B$79,Nutrients!$DA$79,(IF($A8=Nutrients!$B$77,Nutrients!$DA$77,Nutrients!$DA$78))))))))","v":1288.1995516388583},{"$f":"IF(AW5=\"\",\"\",((((AW236-AW297)*2000)+((SUM(AW9:AW229)-2000)*((IF($A8=Nutrients!$B$79,Nutrients!$DA$79,(IF($A8=Nutrients!$B$77,Nutrients!$DA$77,Nutrients!$DA$78)))))))/((IF($A7=Nutrients!$B$8,Nutrients!$DA$8,Nutrients!$DA$9))-((IF($A8=Nutrients!$B$79,Nutrients!$DA$79,(IF($A8=Nutrients!$B$77,Nutrients!$DA$77,Nutrients!$DA$78))))))))","v":1729.7239606988965},null,{"$f":"IF(AY5=\"\",\"\",((((AY236-AY297)*2000)+((SUM(AY9:AY229)-2000)*((IF($A8=Nutrients!$B$79,Nutrients!$DA$79,(IF($A8=Nutrients!$B$77,Nutrients!$DA$77,Nutrients!$DA$78)))))))/((IF($A7=Nutrients!$B$8,Nutrients!$DA$8,Nutrients!$DA$9))-((IF($A8=Nutrients!$B$79,Nutrients!$DA$79,(IF($A8=Nutrients!$B$77,Nutrients!$DA$77,Nutrients!$DA$78))))))))","v":""}]
["Soybean Meal, Dehull, Sol Extr",{"$f":"IF(B5=\"\",\"\",2000-SUM(B9:B218)-B7)","v":532.87319453405121},452.27140406672561,384.4341908979336,317.11390951924227,260.24813699960987,228.872010022209,null,{"$f":"IF(I5=\"\",\"\",2000-SUM(I9:I220)-I7)","v":497.55297249107343},418.15442014170821,351.29581091319142,284.62766009926804,227.71165434097998,228.872010022209,null,{"$f":"IF(P5=\"\",\"\",2000-SUM(P9:P220)-P7)","v":463.77322533306597},385.10565553948095,319.01522790503418,251.99236180042863,195.70831435907712,228.872010022209,null,{"$f":"IF(W5=\"\",\"\",2000-SUM(W9:W220)-W7)","v":429.99646778770511},352.05724722836294,285.62583247370867,219.64976323218684,163.80472505763555,228.872010022209,null,{"$f":"IF(AD5=\"\",\"\",2000-SUM(AD9:AD220)-AD7)","v":396.13783073101513},317.91938204718781,252.50809353986233,187.31074308115444,131.58086650197197,228.872010022209,null,{"$f":"IF(AK5=\"\",\"\",2000-SUM(AK9:AK220)-AK7)","v":362.5691170859277},{"$f":"IF(AL5=\"\",\"\",2000-SUM(AL9:AL220)-AL7)","v":284.09213041153885},219.52568681356729,154.71964115328524,99.247007608356853,228.872010022209,null,{"$f":"IF(AR5=\"\",\"\",2000-SUM(AR9:AR220)-AR7)","v":331.14492916159986},250.28422293421295,186.76826080078945,122.02271952862543,66.918673384905105,228.872010022209,null,{"$f":"IF(AY5=\"\",\"\",2000-SUM(AY9:AY220)-AY7)","v":""}]
[{"$f":"Nutrients!B8","v":"Corn"}]
[{"$f":"Nutrients!B9","v":"Milo"}]
[{"$f":"Nutrients!B10","v":"Alfalfa Meal"}]
[{"$f":"Nutrients!B11","v":"Bakery Meal"}]
[{"$f":"Nutrients!B12","v":"Barley"}]
[{"$f":"Nutrients!B13","v":"Barley, Hulless"}]
[{"$f":"Nutrients!B14","v":"Beans, Faba"}]
[{"$f":"Nutrients!B15","v":"Blood Meal"}]
[{"$f":"Nutrients!B16","v":"Blood Plasma"}]
[{"$f":"Nutrients!B17","v":"Brewers Grain"}]
[{"$f":"Nutrients!B18","v":"Canola, Full Fat"}]
[{"$f":"Nutrients!B19","v":"Canola Meal, Expelled"}]
[{"$f":"Nutrients!B20","v":"Canola Meal, Solvent Extracted"}]
[{"$f":"Nutrients!B21","v":"Casava Meal"}]
[{"$f":"Nutrients!B22","v":"Citrus Pulp"}]
[{"$f":"Nutrients!B23","v":"Copra Meal"}]
[{"$f":"Nutrients!B24","v":"Corn, Yellow Dent"}]
[{"$f":"Nutrients!B25","v":"Corn, Nutridense"}]
[{"$f":"Nutrients!B26","v":"Corn Bran"}]
[{"$f":"Nutrients!B27","v":"Corn DDG"}]
[{"$f":"Nutrients!B28","v":"Corn DDGS, >10% Oil"}]
[{"$f":"Nutrients!B29","v":"Corn DDGS, >6 and <9% Oil"}]
[{"$f":"Nutrients!B30","v":"Corn DDGS, <4% Oil"}]
[{"$f":"Nutrients!B31","v":"Corn HP DDG"}]
[{"$f":"Nutrients!B32","v":"Corn Germ"}]
[{"$f":"Nutrients!B33","v":"Corn Germ Meal"}]
[{"$f":"Nutrients!B34","v":"Corn Gluten Feed"}]
[{"$f":"Nutrients!B35","v":"Corn Gluten Meal"}]
[{"$f":"Nutrients!B36","v":"Corn Grits, Hominy Feed"}]
[{"$f":"Nutrients!B37","v":"Cotton Seeds, Fullfat"}]
[{"$f":"Nutrients!B38","v":"Cotton Seed Meal"}]
[{"$f":"Nutrients!B39","v":"Feather Meal"}]
[{"$f":"Nutrients!B40","v":"Fish Meal Combined"}]
[{"$f":"Nutrients!B41","v":"Flaxseed"}]
[{"$f":"Nutrients!B42","v":"Flaxseed Meal"}]
[{"$f":"Nutrients!B43","v":"Lupins"}]
[{"$f":"Nutrients!B44","v":"Meat Meal"}]
[{"$f":"Nutrients!B45","v":"Meat and Bone Meal, P >4%"}]
[{"$f":"Nutrients!B46","v":"Milk, Casein"}]
[{"$f":"Nutrients!B47","v":"Milk, Lactose"}]
[{"$f":"Nutrients!B48","v":"Milk, Skim Milk Powder"}]
[{"$f":"Nutrients!B49","v":"Milk, Whey Powder"}]
[{"$f":"Nutrients!B50","v":"Milk, Whey Permeate, 80% lactose"}]
[{"$f":"Nutrients!B51","v":"Milk, Whey Protein Concentrate"}]
[{"$f":"Nutrients!B52","v":"Millet"}]
[{"$f":"Nutrients!B53","v":"Molasses, Sugarbeet"}]
[{"$f":"Nutrients!B54","v":"Molasses, Sugarcane"}]
[{"$f":"Nutrients!B55","v":"Oats"}]
[{"$f":"Nutrients!B56","v":"Oats, Naked"}]
[{"$f":"Nutrients!B57","v":"Oat Groats"}]
[{"$f":"Nutrients!B58","v":"Peanut Meal, Expelled"}]
[{"$f":"Nutrients!B59","v":"Peanut Meal, Extracted"}]
[{"$f":"Nutrients!B60","v":"Peas, Field Peas"}]
[{"$f":"Nutrients!B61","v":"Pea Protein Concentrate"}]
[{"$f":"Nutrients!B62","v":"Potato Protein Concentrate"}]
[{"$f":"Nutrients!B63","v":"Poultry Byproduct"}]
[{"$f":"Nutrients!B64","v":"Rice"}]
[{"$f":"Nutrients!B65","v":"Rice Bran"}]
[{"$f":"Nutrients!B66","v":"Rice Bran, Defatted"}]
[{"$f":"Nutrients!B67","v":"Rice, Broken"}]
[{"$f":"Nutrients!B68","v":"Rye"}]
[{"$f":"Nutrients!B69","v":"Sesame Meal"}]
[{"$f":"Nutrients!B70","v":"Sorghum"}]
[{"$f":"Nutrients!B71","v":"Soybeans, Full Fat"}]
[{"$f":"Nutrients!B72","v":"Soybeans, High Protein, Full Fat"}]
[{"$f":"Nutrients!B73","v":"Soybeans, Low Oligosaccharide, Full Fat"}]
[{"$f":"Nutrients!B74","v":"Soybean Meal, High Protein, Expelled"}]
[{"$f":"Nutrients!B75","v":"Soybean Meal, Low Oligosacch, Expell"}]
[{"$f":"Nutrients!B76","v":"Soybean Meal, Expelled"}]
[{"$f":"Nutrients!B77","v":"Soybean Meal, Dehulled, Expelled"}]
[{"$f":"Nutrients!B78","v":"Soybean Meal, Solvent Extracted"}]
[{"$f":"Nutrients!B79","v":"Soybean Meal, Dehull, Sol Extr"}]
[{"$f":"Nutrients!B80","v":"Soybean Meal, High Prot, Dehull, Solv Extr"}]
[{"$f":"Nutrients!B81","v":"Soybean Meal, Enzyme Treated"}]
[{"$f":"Nutrients!B82","v":"Soybean Meal, Fermented"}]
[{"$f":"Nutrients!B83","v":"Soybean Hulls"}]
[{"$f":"Nutrients!B84","v":"Soy Protein Concentrate"}]
[{"$f":"Nutrients!B85","v":"Soy Protein Isolate"}]
[{"$f":"Nutrients!B86","v":"Sugar Beet Pulp"}]
[{"$f":"Nutrients!B87","v":"Sunflower, Full Fat"}]
[{"$f":"Nutrients!B88","v":"Sunflower Meal, Solvent Extracted"}]
[{"$f":"Nutrients!B89","v":"Sunflower Meal, Dehulled, Solvent Extr"}]
[{"$f":"Nutrients!B90","v":"Triticale"}]
[{"$f":"Nutrients!B91","v":"Wheat, Hard Red"}]
[{"$f":"Nutrients!B92","v":"Wheat, Soft Red"}]
[{"$f":"Nutrients!B93","v":"Wheat Bran"}]
[{"$f":"Nutrients!B94","v":"Wheat Middlings"}]
[{"$f":"Nutrients!B95","v":"Wheat Shorts"}]
[{"$f":"Nutrients!B96","v":"Wheat DDGS"}]
[{"$f":"Nutrients!B97","v":"Yeast, Brewers' Yeast"}]
[{"$f":"Nutrients!B98","v":"Yeast, Single Cell Protein"}]
[{"$f":"Nutrients!B99","v":"Beef Tallow"}]
[{"$f":"Nutrients!B100","v":"Choice White Grease"}]
[{"$f":"Nutrients!B101","v":"Poultry Fat"}]
[{"$f":"Nutrients!B102","v":"Lard"}]
[{"$f":"Nutrients!B103","v":"Restaurant Grease"}]
[{"$f":"Nutrients!B104","v":"Canola oil"}]
[{"$f":"Nutrients!B105","v":"Coconut oil"}]
[{"$f":"Nutrients!B106","v":"Corn oil"}]
[{"$f":"Nutrients!B107","v":"Palm Kernel oil"}]
[{"$f":"Nutrients!B108","v":"Soybean oil"}]
[{"$f":"Nutrients!B109","v":"Soybean Lecithin"}]
[{"$f":"Nutrients!B110","v":"Sunflower oil"}]
[{"$f":"Nutrients!B111","v":"Fat, A/V blend"}]
["Calcium carbonate",20.784768068928035,19.294892849162764,19.202445555729952,18.570305542378705,18,17.663512601760306,null,21.444409694945055,19.98553862860571,19.840873680160215,19.236124633910652,18.688958388234227,17.663512601760306,null,22.108119813047963,20.660220383685797,20.500873680160215,19.896124633910652,19.348958388234227,17.663512601760306,null,22.768119813047964,21.320220383685797,21.160873680160215,20.556124633910652,20.008958388234227,17.663512601760306,null,23.428119813047964,21.980220383685797,21.820873680160215,21.243448046973779,21.073538708709563,17.663512601760306,null,24.088119813047964,22.640220383685797,22.480873680160215,22.222553735248766,22.260768777249535,17.663512601760306,null,24.748119813047964,23.300220383685797,23.169584881524777,23.421147625303597,23.448077661856235,17.663512601760306]
[{"$f":"Nutrients!B113","v":"Calcium phosphate (tricalcium)"}]
[{"$f":"Nutrients!B114","v":"Calcium phosphate (dicalcium)"}]
["Calcium phosphate (monocalcium)",14.460830899366599,11.269382271474324,7.9992000000000001,5.7362235571478868,4.249911842640179,3.6237362366975527,null,13.135843328864507,10.032841615499999,6.6376572816597772,4.436223557147887,2.9499118426401791,3.6237362366975527,null,11.835843328864506,8.7328416154999982,5.3376572816597774,3.1362235571478871,1.6499118426401791,3.6237362366975527,null,10.535843328864505,7.4328416154999983,4.0376572816597776,1.8362235571478871,0.34991184264017905,3.6237362366975527,null,9.2358433288645045,6.1328416154999985,2.7376572816597777,0.53622355714788705,null,3.6237362366975527,null,7.9358433288645047,4.8328416154999987,1.4376572816597777,null,null,3.6237362366975527,null,6.6358433288645049,3.5328416154999989,0.13765728165977764,null,null,3.6237362366975527]
[{"$f":"Nutrients!B116","v":"Calcium sulfate, dihydrate"}]
[{"$f":"Nutrients!B117","v":"Limestone, ground"}]
[{"$f":"Nutrients!B118","v":"Magnesium phosphate"}]
[{"$f":"Nutrients!B119","v":"Sodium carbonate"}]
[{"$f":"Nutrients!B120","v":"Sodium bicarbonate"}]
[{"$f":"Nutrients!B121","v":"Sodium chloride"},7,7,7,7,7,7,null,7,7,7,7,7,7,null,7,7,7,7,7,7,null,7,7,7,7,7,7,null,7,7,7,7,7,7,null,7,7,7,7,7,7,null,7,7,7,7,7,7]
[{"$f":"Nutrients!B122","v":"Sodium phosphate, monobasic"}]
[{"$f":"Nutrients!B123","v":"Sodium sulfate, decahydrate"}]
["L-Lys-HCl",9,8,7,6.5209098242968704,6.5209098242968704,6.5209098242968704,null,9.43,8.43,7.43,6.9509098242968701,6.9509098242968701,6.5209098242968704,null,9.86,8.86,7.8599999999999994,7.3809098242968698,7.3809098242968698,6.5209098242968704,null,10.29,9.2899999999999991,8.2899999999999991,7.8109098242968695,7.8109098242968695,6.5209098242968704,null,10.719999999999999,9.7199999999999989,8.7199999999999989,8.2409098242968692,8.2409098242968692,6.5209098242968704,null,11.149999999999999,10.149999999999999,9.1499999999999986,8.670909824296869,8.670909824296869,6.5209098242968704,null,11.579999999999998,10.579999999999998,9.5799999999999983,9.1009098242968687,9.1009098242968687,6.5209098242968704]
["DL-Met",2.7899868108851815,1.9290679550175049,1.13207908850893,0.75200939944039891,0.4642187503637718,0.41815988679019511,null,2.5299868108851813,1.6690679550175049,0.88278153865148223,0.4920093994403989,0.18898309487451329,0.41815988679019511,null,2.2799868108851813,1.4190679550175049,0.63278153865148223,0.2420093994403989,null,0.41815988679019511,null,2.0199868108851815,1.1690679550175049,0.38278153865148223,-7.990600559601102E-3,null,0.41815988679019511,null,1.7599868108851815,0.91906795501750493,0.13278153865148223,null,null,0.41815988679019511,null,1.5199868108851815,0.65906795501750493,null,null,null,0.41815988679019511,null,1.2599868108851815,0.39906795501750492,null,null,null,0.41815988679019511]
["L-Thr",3.311714981497218,2.6822978939662598,2.0730406828281205,1.9101926587313733,1.8273540665098165,1.8754623140236151,null,3.1748372375899616,2.5422978939662597,1.9406205514746149,1.7602215425154948,1.6537673570424269,1.8754623140236151,null,3.0403521048893358,2.4143454920119956,1.8082894669109586,1.6260816125761768,1.5209850918036218,1.8754623140236151,null,2.9103521048893359,2.2843454920119957,1.6782894669109587,1.4960816125761767,1.3909850918036217,1.8754623140236151,null,2.780352104889336,2.1543454920119958,1.5482894669109588,1.3660816125761768,1.2609850918036218,1.8754623140236151,null,2.6503521048893361,2.0243454920119959,1.4182894669109589,1.2360816125761769,1.1309850918036219,1.8754623140236151,null,2.5203521048893363,1.894345492011996,1.288289466910959,1.106081612576177,1.0009850918036221,1.8754623140236151]
["L-Trp",0.64715411983197724,0.56508100549263673,0.47170370784158877,0.46467722263870981,0.5242318057378007,0.53625865021646124,null,0.71347901910320866,0.6303749007613858,0.53614770830416902,0.52160740074835188,0.57180239827998214,0.53625865021646124,null,0.77844506115054912,0.69469309080141695,0.59614770830416908,0.58160740074835182,0.63180239827998208,0.53625865021646124,null,0.83844506115054918,0.75469309080141689,0.65614770830416913,0.64160740074835187,0.69180239827998213,0.53625865021646124,null,0.90844506115054924,0.82469309080141695,0.72614770830416919,0.71160740074835194,0.7618023982799822,0.53625865021646124,null,0.96844506115054929,0.884693090801417,0.78614770830416925,0.77160740074835199,0.82180239827998225,0.53625865021646124,null,1.0284450611505493,0.94469309080141706,0.8461477083041693,0.83160740074835204,0.8818023982799823,0.53625865021646124]
["L-Val",1.4782324055847444,0.90319623176357955,0.3833689639367559,0.26954963031428469,0.33319678683181891,0.31598976510963955,null,1.1534631270189402,0.62077568050685106,0.2472380429409072,0.10195907802470887,0.14083246142135958,0.31598976510963955,null,0.87755052921916477,0.46245604760860204,9.5807909161483171E-2,null,null,0.31598976510963955,null,0.66589817086726644,0.2879876444344644,null,null,null,0.31598976510963955,null,0.51716060291089117,0.16701127287845019,null,null,null,0.31598976510963955,null,0.38209282857183691,null,null,null,null,0.31598976510963955,null,0.23881768344794968,null,null,null,null,0.31598976510963955]
[{"$f":"Nutrients!B129","v":"L-Ile"}]
[{"$f":"Nutrients!B130","v":"Methionine hydroxy analog"}]
[{"$f":"Nutrients!B131","v":"Glutamine"}]
[{"$f":"Nutrients!B132","v":"Glutamic acid"}]
[{"$f":"Nutrients!B133","v":"Biolys"}]
[{"$f":"Nutrients!B134","v":"Liquid lysine 60%"}]
[{"$f":"Nutrients!B135","v":"MHA dry"}]
[{"$f":"Nutrients!B136","v":"Paylean, 9 g/lb"}]
[{"$f":"Nutrients!B137","v":"Tribasic copper chloride"}]
[{"$f":"Nutrients!B138","v":"2018 Starter base mix"}]
[{"$f":"Nutrients!B139","v":"2018 Grow-finish base mix"}]
[{"$f":"Nutrients!B140","v":"Developer base mix"}]
[{"$f":"Nutrients!B141","v":"2018 Sow base mix"}]
[{"$f":"Nutrients!B142","v":"Vitamin premix with phytase"}]
[{"$f":"Nutrients!B143","v":"Trace mineral premix"},3,3,2.5,2,1.5,1.5,null,3,3,2.5,2,1.5,1.5,null,3,3,2.5,2,1.5,1.5,null,3,3,2.5,2,1.5,1.5,null,3,3,2.5,2,1.5,1.5,null,3,3,2.5,2,1.5,1.5,null,3,3,2.5,2,1.5,1.5]
[{"$f":"Nutrients!B144","v":"Sow add pack"}]
[{"$f":"Nutrients!B145","v":"Vitamin premix without phytase"},3,3,2.5,2,1.5,1.5,null,3,3,2.5,2,1.5,1.5,null,3,3,2.5,2,1.5,1.5,null,3,3,2.5,2,1.5,1.5,null,3,3,2.5,2,1.5,1.5,null,3,3,2.5,2,1.5,1.5,null,3,3,2.5,2,1.5,1.5]
[{"$f":"Nutrients!B146","v":"GF DDGS Base Mix"}]
[{"$f":"Nutrients!B147","v":"GF synthetics Base Mix"}]
[{"$f":"Nutrients!B148","v":"Choline chloride 60%"}]
[{"$f":"Nutrients!B149","v":"Natuphos 600"}]
[{"$f":"Nutrients!B150","v":"Natuphos 1200"}]
[{"$f":"Nutrients!B151","v":"Optiphos 2000"}]
[{"$f":"Nutrients!B152","v":"Phyzyme 1200"}]
[{"$f":"Nutrients!B153","v":"Phyzyme 5000"}]
[{"$f":"Nutrients!B154","v":"Ronozyme Hiphos GT (10,000)"}]
[{"$f":"Nutrients!B155","v":"Ronozyme Hiphos M (50,000)"}]
[{"$f":"Nutrients!B156","v":"Ronozyme HiPhos 2700"},0.45,0.45,0.45,0.45,0.45,0.45,null,0.45,0.45,0.45,0.45,0.45,0.45,null,0.45,0.45,0.45,0.45,0.45,0.45,null,0.45,0.45,0.45,0.45,0.45,0.45,null,0.45,0.45,0.45,0.45,0.45,0.45,null,0.45,0.45,0.45,0.45,0.45,0.45,null,0.45,0.45,0.45,0.45,0.45,0.45]
[{"$f":"Nutrients!B157","v":"Zinc oxide"}]
[{"$f":"Nutrients!B158","v":"Copper sulfate"}]
[{"$f":"Nutrients!B159","v":"Potassium chloride"}]
[{"$f":"Nutrients!B160","v":"Calcium chloride"}]
[{"$f":"Nutrients!B161","v":"Acidifier"}]
[{"$f":"Nutrients!B162","v":"Vitamin E, 20,000 IU"}]
[{"$f":"Nutrients!B163","v":"Other ingredient"}]
[{"$f":"Nutrients!B164","v":"DPS 50"}]
[{"$f":"Nutrients!B165","v":"PEP2+"}]
[{"$f":"Nutrients!B166","v":"PEP NS"}]
[{"$f":"Nutrients!B167","v":"Vitamin premix (2x) with phytase"}]
[{"$f":"Nutrients!B168","v":"Vitamin premix (2x) without phytase"}]
[{"$f":"Nutrients!B169","v":"Corn DDGS, 10.5% Oil"}]
[{"$f":"Nutrients!B170","v":"Corn DDGS, 7.5% Oil"}]
[{"$f":"Nutrients!B171","v":"Corn DDGS, 4.5% Oil"}]
[{"$f":"Nutrients!B172","v":"MEPRO Hubbard"}]
[{"$f":"Nutrients!B173","v":"HP 300 Apr 2022 loadings"}]
[{"$f":"Nutrients!B174","v":"Glycine"}]
[{"$f":"Nutrients!B175","v":"Phase 2 supplement 2018"}]
[{"$f":"Nutrients!B176","v":"Fermex 200"}]
[{"$f":"Nutrients!B177","v":"Soybean meal with 88% NE of corn"}]
[{"$f":"Nutrients!B178","v":"Blue Dye NFP"}]
[{"$f":"Nutrients!B179","v":"HP 300 2022 NFP"}]
[{"$f":"Nutrients!B180","v":"AX3 Digest NFP"}]
[{"$f":"Nutrients!B181","v":"Phase 2 supplement 2018 NFP"}]
[{"$f":"Nutrients!B182","v":"Femex 200 NFP"}]
[{"$f":"Nutrients!B183","v":"NFP Soybean meal w/88% NE of corn "}]
[{"$f":"Nutrients!B184","v":"AV-E Digest NFP"}]
[{"$f":"Nutrients!B185","v":"QFP Cereal Blend NFP"}]
[{"$f":"Nutrients!B186","v":"FXP Ani-Tek NFP"}]
[{"$f":"Nutrients!B187","v":"NFP VTM Grower (2021)"}]
[{"$f":"Nutrients!B188","v":"NFP VTM Sow (2021)"}]
[{"$f":"Nutrients!B189","v":"VevoVitall NFP"}]
[{"$f":"Nutrients!B190","v":"MEPRO NFP"}]
[{"$f":"Nutrients!B191","v":"AlphaGal 280 P NFP"}]
[{"$f":"Nutrients!B192","v":"NFP Custom Manganese "}]
[{"$f":"Nutrients!B193","v":"Fat Build R2 All Veg 4000 NFP"}]
[{"$f":"Nutrients!B194","v":"LipoVital GL 90 NFP"}]
[{"$f":"Nutrients!B195","v":"NFP Custom Zinc"}]
[{"$f":"Nutrients!B196","v":"THRPRO-L Threonine 80% NFP"}]
[{"$f":"Nutrients!B197","v":"Copper Chloride Intellibond TBCC NFP"}]
[{"$f":"Nutrients!B198","v":"DDGS 7.5% Oil Green Plains NFP"}]
[{"$f":"Nutrients!B199","v":"NHF GF VTM 2#"}]
[{"$f":"Nutrients!B200","v":"Hubbard Vit Premix "}]
[{"$f":"Nutrients!B201","v":"Hubbard TMP"}]
[{"$f":"Nutrients!B202","v":"Inorganic Se 600 ppm Hubbard"}]
[{"$f":"Nutrients!B203","v":"Quantum Blue  5G Hubbard"}]
[{"$f":"Nutrients!B204","v":"TASA Prime meal Hubbard"}]
[{"$f":"Nutrients!B205","v":"TASA Swine Hubbard"}]
[{"$f":"Nutrients!B206","v":"TASA fish solubles Hubbard"}]
[{"$f":"Nutrients!B207","v":"Mepro + TASA additive Hubbard"}]
[{"$f":"Nutrients!B208","v":"TASA Prime + TASA additive Hubbard"}]
[{"$f":"Nutrients!B209","v":"NHF SOW VTM 4# 2022"}]
[{"$f":"Nutrients!B210","v":"ThrPro "}]
[{"$f":"Nutrients!B211","v":"NHF Optiphos Plus 2500 G"}]
[{"$f":"Nutrients!B212","v":"NHF Corn DDGS, Valero, Aurora"}]
[{"$f":"Nutrients!B213","v":"HP 300 Hubbard"}]
[{"$f":"Nutrients!B214","v":"NHF Corn DDGS, Illuminate for Aurora"}]
[{"$f":"Nutrients!B215","v":"NFP Corn DDGS, MO analysis"}]
[{"$f":"Nutrients!B216","v":"NFP Smizyme 2500"}]
[{"$f":"Nutrients!B217","v":"NHF HP300 2022 loadings"}]
[{"$f":"Nutrients!B218","v":"NHF Liquid Lys 55%"}]
[{"$f":"Nutrients!B219","v":"Corn DDGS with varying energy"},null,null,null,null,null,null,null,100,100,100,100,100,null,null,200,200,200,200,200,null,null,300,300,300,300,300,null,null,400,400,400,400,400,null,null,500,500,500,500,500,null,null,600,600,600,600,600]
[{"$f":"Nutrients!B220","v":"Other ingredient"}]
[{"$f":"Nutrients!B221","v":"Other ingredient"}]
[{"$f":"Nutrients!B222","v":"Other ingredient"}]
[{"$f":"Nutrients!B223","v":"Other ingredient"}]
[{"$f":"Nutrients!B224","v":"Other ingredient"}]
[{"$f":"Nutrients!B225","v":"Other ingredient"}]
[{"$f":"Nutrients!B226","v":"Other ingredient"}]
[{"$f":"Nutrients!B227","v":"Other ingredient"}]
[{"$f":"Nutrients!B228","v":"Other ingredient"}]
["TOTAL",{"$f":"SUM(B7:B229)","v":2000.0000000000002},2000,2000.0000000000002,2000.0000000000002,2000,2000.0000000000002,null,{"$f":"SUM(I7:I229)","v":2000.0000000000005},2000,2000.0000000000002,1999.9999999999998,1999.9999999999995,2000.0000000000002,null,{"$f":"SUM(P7:P229)","v":2000},2000,2000,2000,2000,2000.0000000000002,null,{"$f":"SUM(W7:W229)","v":2000.0000000000002},2000,1999.9999999999998,2000.0000000000002,2000.0000000000005,2000.0000000000002,null,{"$f":"SUM(AD7:AD229)","v":2000.0000000000002},2000,2000,2000,2000.0000000000002,2000.0000000000002,null,{"$f":"SUM(AK7:AK229)","v":2000.0000000000002},{"$f":"SUM(AL7:AL229)","v":2000},2000.0000000000002,1999.9999999999998,2000,2000.0000000000002,null,{"$f":"SUM(AR7:AR229)","v":1999.9999999999998},2000,2000.0000000000002,2000.0000000000002,2000,2000.0000000000002]
[]
["Required SID Lys:NE Ratio",{"$f":"  0.0000415*((B5+B6)/2)^2 - 0.0236*((B5+B6)/2) + 6.096","v":4.6920843750000003},4.1130093749999999,3.6054000000000004,3.1925999999999997,2.9125999999999999,2.7606093749999996,null,{"$f":"  0.0000415*((I5+I6)/2)^2 - 0.0236*((I5+I6)/2) + 6.096","v":4.6920843750000003},4.1130093749999999,3.6054000000000004,3.1925999999999997,2.9125999999999999,2.7606093749999996,null,{"$f":"  0.0000415*((P5+P6)/2)^2 - 0.0236*((P5+P6)/2) + 6.096","v":4.6920843750000003},4.1130093749999999,3.6054000000000004,3.1925999999999997,2.9125999999999999,2.7606093749999996,null,{"$f":"  0.0000415*((W5+W6)/2)^2 - 0.0236*((W5+W6)/2) + 6.096","v":4.6920843750000003},4.1130093749999999,3.6054000000000004,3.1925999999999997,2.9125999999999999,2.7606093749999996,null,{"$f":"  0.0000415*((AD5+AD6)/2)^2 - 0.0236*((AD5+AD6)/2) + 6.096","v":4.6920843750000003},4.1130093749999999,3.6054000000000004,3.1925999999999997,2.9125999999999999,2.7606093749999996,null,{"$f":"  0.0000415*((AK5+AK6)/2)^2 - 0.0236*((AK5+AK6)/2) + 6.096","v":4.6920843750000003},{"$f":"  0.0000415*((AL5+AL6)/2)^2 - 0.0236*((AL5+AL6)/2) + 6.096","v":4.1130093749999999},3.6054000000000004,3.1925999999999997,2.9125999999999999,2.7606093749999996,null,{"$f":"  0.0000415*((AR5+AR6)/2)^2 - 0.0236*((AR5+AR6)/2) + 6.096","v":4.6920843750000003},4.1130093749999999,3.6054000000000004,3.1925999999999997,2.9125999999999999,2.7606093749999996]
["Calculated SID Lysine Required, %",{"$f":"IF(B232=\"\",\"\",B250*2.2046*B232/10000)","v":1.1933289345334586},1.0523868858191809,0.92731901794478477,0.82549698291879381,0.75646982136751284,0.71849863102392231,null,{"$f":"IF(I232=\"\",\"\",I250*2.2046*I232/10000)","v":1.1833022056984819},1.0434796386124037,0.91959577411897075,0.81857817798280041,0.75013775739994371,0.71849863102392231,null,{"$f":"IF(P232=\"\",\"\",P250*2.2046*P232/10000)","v":1.1731825649149317},1.0346027980460959,0.91178474561411771,0.81168958667566926,0.743832413489533,0.71849863102392231,null,{"$f":"IF(W232=\"\",\"\",W250*2.2046*W232/10000)","v":1.1630843915073792},1.0257265277242038,0.90404382385441473,0.80481560797029361,0.73759748334783681,0.71849863102392231,null,{"$f":"IF(AD232=\"\",\"\",AD250*2.2046*AD232/10000)","v":1.1530207094405109},1.0169326530509482,0.89632218371363492,0.79799343812895596,0.73085095236158992,0.71849863102392231,null,{"$f":"IF(AK232=\"\",\"\",AK250*2.2046*AK232/10000)","v":1.1429460765890198},{"$f":"IF(AL232=\"\",\"\",AL250*2.2046*AL232/10000)","v":1.0080987078638128},0.88862113939206977,0.79072656035556588,0.72392174711107149,0.71849863102392231,null,{"$f":"IF(AR232=\"\",\"\",AR250*2.2046*AR232/10000)","v":1.1327269621982992},0.99932050791454563,0.88093044765470518,0.78314186135979102,0.71699229621355876,0.71849863102392231]
[]
["SID amino acids, %"]
["  Lys",1.1861119527718891,1.0487231011263827,0.92692570857780632,0.82606841929078001,0.75673053182615369,0.71839352504319809,null,1.176359663632115,1.0404298354051722,0.9198321876360902,0.81977155477303221,0.75037675735226672,0.71839352504319809,null,1.1684857665329609,1.0334387360651245,0.91378340553869708,0.81328394410468086,0.74466093217492246,0.71839352504319809,null,1.1606108994103048,1.0264515137337917,0.90637130018555012,0.80714498863815465,0.73903650635744667,0.71839352504319809,null,1.1526290098320124,1.0181241605607756,0.89928210531326824,0.80098309911292542,0.73289361495012595,0.71839352504319809,null,1.145,1.0101833240253375,0.89234873408789994,0.79441650998473456,0.72657321918177553,0.71839352504319809,null,1.1399999999999999,1.0022507297378567,0.8856759586639249,0.78765042013618369,0.720259582186488,0.71839352504319809]
["  Ile:Lys",{"$f":"(SUMPRODUCT(B$9:B$229,Nutrients!$CY$8:$CY$228)+(IF($A$7=Nutrients!$B$8,Nutrients!$CY$8,Nutrients!$CY$9)*B$7)+(((IF($A$8=Nutrients!$B$79,Nutrients!$CY$79,(IF($A$8=Nutrients!$B$77,Nutrients!$CY$77,Nutrients!$CY$78)))))*B$8))/2000/B$236*100","v":56.344881641231822},{"$f":"(SUMPRODUCT(C$9:C$229,Nutrients!$CY$8:$CY$228)+(IF($A$7=Nutrients!$B$8,Nutrients!$CY$8,Nutrients!$CY$9)*C$7)+(((IF($A$8=Nutrients!$B$79,Nutrients!$CY$79,(IF($A$8=Nutrients!$B$77,Nutrients!$CY$77,Nutrients!$CY$78)))))*C$8))/2000/C$236*100","v":57.375308930399996},{"$f":"(SUMPRODUCT(D$9:D$229,Nutrients!$CY$8:$CY$228)+(IF($A$7=Nutrients!$B$8,Nutrients!$CY$8,Nutrients!$CY$9)*D$7)+(((IF($A$8=Nutrients!$B$79,Nutrients!$CY$79,(IF($A$8=Nutrients!$B$77,Nutrients!$CY$77,Nutrients!$CY$78)))))*D$8))/2000/D$236*100","v":58.876554056537131},{"$f":"(SUMPRODUCT(E$9:E$229,Nutrients!$CY$8:$CY$228)+(IF($A$7=Nutrients!$B$8,Nutrients!$CY$8,Nutrients!$CY$9)*E$7)+(((IF($A$8=Nutrients!$B$79,Nutrients!$CY$79,(IF($A$8=Nutrients!$B$77,Nutrients!$CY$77,Nutrients!$CY$78)))))*E$8))/2000/E$236*100","v":59.309801434553123},{"$f":"(SUMPRODUCT(F$9:F$229,Nutrients!$CY$8:$CY$228)+(IF($A$7=Nutrients!$B$8,Nutrients!$CY$8,Nutrients!$CY$9)*F$7)+(((IF($A$8=Nutrients!$B$79,Nutrients!$CY$79,(IF($A$8=Nutrients!$B$77,Nutrients!$CY$77,Nutrients!$CY$78)))))*F$8))/2000/F$236*100","v":58.50084547001024},{"$f":"(SUMPRODUCT(G$9:G$229,Nutrients!$CY$8:$CY$228)+(IF($A$7=Nutrients!$B$8,Nutrients!$CY$8,Nutrients!$CY$9)*G$7)+(((IF($A$8=Nutrients!$B$79,Nutrients!$CY$79,(IF($A$8=Nutrients!$B$77,Nutrients!$CY$77,Nutrients!$CY$78)))))*G$8))/2000/G$236*100","v":57.980356352367814},null,{"$f":"(SUMPRODUCT(I$9:I$229,Nutrients!$CY$8:$CY$228)+(IF($A$7=Nutrients!$B$8,Nutrients!$CY$8,Nutrients!$CY$9)*I$7)+(((IF($A$8=Nutrients!$B$79,Nutrients!$CY$79,(IF($A$8=Nutrients!$B$77,Nutrients!$CY$77,Nutrients!$CY$78)))))*I$8))/2000/I$236*100","v":56.482295270436168},{"$f":"(SUMPRODUCT(J$9:J$229,Nutrients!$CY$8:$CY$228)+(IF($A$7=Nutrients!$B$8,Nutrients!$CY$8,Nutrients!$CY$9)*J$7)+(((IF($A$8=Nutrients!$B$79,Nutrients!$CY$79,(IF($A$8=Nutrients!$B$77,Nutrients!$CY$77,Nutrients!$CY$78)))))*J$8))/2000/J$236*100","v":57.55499078871258},{"$f":"(SUMPRODUCT(K$9:K$229,Nutrients!$CY$8:$CY$228)+(IF($A$7=Nutrients!$B$8,Nutrients!$CY$8,Nutrients!$CY$9)*K$7)+(((IF($A$8=Nutrients!$B$79,Nutrients!$CY$79,(IF($A$8=Nutrients!$B$77,Nutrients!$CY$77,Nutrients!$CY$78)))))*K$8))/2000/K$236*100","v":59.105805422878213},{"$f":"(SUMPRODUCT(L$9:L$229,Nutrients!$CY$8:$CY$228)+(IF($A$7=Nutrients!$B$8,Nutrients!$CY$8,Nutrients!$CY$9)*L$7)+(((IF($A$8=Nutrients!$B$79,Nutrients!$CY$79,(IF($A$8=Nutrients!$B$77,Nutrients!$CY$77,Nutrients!$CY$78)))))*L$8))/2000/L$236*100","v":59.579465879893903},{"$f":"(SUMPRODUCT(M$9:M$229,Nutrients!$CY$8:$CY$228)+(IF($A$7=Nutrients!$B$8,Nutrients!$CY$8,Nutrients!$CY$9)*M$7)+(((IF($A$8=Nutrients!$B$79,Nutrients!$CY$79,(IF($A$8=Nutrients!$B$77,Nutrients!$CY$77,Nutrients!$CY$78)))))*M$8))/2000/M$236*100","v":58.788252861538439},{"$f":"(SUMPRODUCT(N$9:N$229,Nutrients!$CY$8:$CY$228)+(IF($A$7=Nutrients!$B$8,Nutrients!$CY$8,Nutrients!$CY$9)*N$7)+(((IF($A$8=Nutrients!$B$79,Nutrients!$CY$79,(IF($A$8=Nutrients!$B$77,Nutrients!$CY$77,Nutrients!$CY$78)))))*N$8))/2000/N$236*100","v":57.980356352367814},null,{"$f":"(SUMPRODUCT(P$9:P$229,Nutrients!$CY$8:$CY$228)+(IF($A$7=Nutrients!$B$8,Nutrients!$CY$8,Nutrients!$CY$9)*P$7)+(((IF($A$8=Nutrients!$B$79,Nutrients!$CY$79,(IF($A$8=Nutrients!$B$77,Nutrients!$CY$77,Nutrients!$CY$78)))))*P$8))/2000/P$236*100","v":56.640522033074902},{"$f":"(SUMPRODUCT(Q$9:Q$229,Nutrients!$CY$8:$CY$228)+(IF($A$7=Nutrients!$B$8,Nutrients!$CY$8,Nutrients!$CY$9)*Q$7)+(((IF($A$8=Nutrients!$B$79,Nutrients!$CY$79,(IF($A$8=Nutrients!$B$77,Nutrients!$CY$77,Nutrients!$CY$78)))))*Q$8))/2000/Q$236*100","v":57.750647192151561},{"$f":"(SUMPRODUCT(R$9:R$229,Nutrients!$CY$8:$CY$228)+(IF($A$7=Nutrients!$B$8,Nutrients!$CY$8,Nutrients!$CY$9)*R$7)+(((IF($A$8=Nutrients!$B$79,Nutrients!$CY$79,(IF($A$8=Nutrients!$B$77,Nutrients!$CY$77,Nutrients!$CY$78)))))*R$8))/2000/R$236*100","v":59.348607916557242},{"$f":"(SUMPRODUCT(S$9:S$229,Nutrients!$CY$8:$CY$228)+(IF($A$7=Nutrients!$B$8,Nutrients!$CY$8,Nutrients!$CY$9)*S$7)+(((IF($A$8=Nutrients!$B$79,Nutrients!$CY$79,(IF($A$8=Nutrients!$B$77,Nutrients!$CY$77,Nutrients!$CY$78)))))*S$8))/2000/S$236*100","v":59.850742061035753},{"$f":"(SUMPRODUCT(T$9:T$229,Nutrients!$CY$8:$CY$228)+(IF($A$7=Nutrients!$B$8,Nutrients!$CY$8,Nutrients!$CY$9)*T$7)+(((IF($A$8=Nutrients!$B$79,Nutrients!$CY$79,(IF($A$8=Nutrients!$B$77,Nutrients!$CY$77,Nutrients!$CY$78)))))*T$8))/2000/T$236*100","v":59.087417576268756},{"$f":"(SUMPRODUCT(U$9:U$229,Nutrients!$CY$8:$CY$228)+(IF($A$7=Nutrients!$B$8,Nutrients!$CY$8,Nutrients!$CY$9)*U$7)+(((IF($A$8=Nutrients!$B$79,Nutrients!$CY$79,(IF($A$8=Nutrients!$B$77,Nutrients!$CY$77,Nutrients!$CY$78)))))*U$8))/2000/U$236*100","v":57.980356352367814},null,{"$f":"(SUMPRODUCT(W$9:W$229,Nutrients!$CY$8:$CY$228)+(IF($A$7=Nutrients!$B$8,Nutrients!$CY$8,Nutrients!$CY$9)*W$7)+(((IF($A$8=Nutrients!$B$79,Nutrients!$CY$79,(IF($A$8=Nutrients!$B$77,Nutrients!$CY$77,Nutrients!$CY$78)))))*W$8))/2000/W$236*100","v":56.800663652900006},{"$f":"(SUMPRODUCT(X$9:X$229,Nutrients!$CY$8:$CY$228)+(IF($A$7=Nutrients!$B$8,Nutrients!$CY$8,Nutrients!$CY$9)*X$7)+(((IF($A$8=Nutrients!$B$79,Nutrients!$CY$79,(IF($A$8=Nutrients!$B$77,Nutrients!$CY$77,Nutrients!$CY$78)))))*X$8))/2000/X$236*100","v":57.949195014620926},{"$f":"(SUMPRODUCT(Y$9:Y$229,Nutrients!$CY$8:$CY$228)+(IF($A$7=Nutrients!$B$8,Nutrients!$CY$8,Nutrients!$CY$9)*Y$7)+(((IF($A$8=Nutrients!$B$79,Nutrients!$CY$79,(IF($A$8=Nutrients!$B$77,Nutrients!$CY$77,Nutrients!$CY$78)))))*Y$8))/2000/Y$236*100","v":59.581096016986557},{"$f":"(SUMPRODUCT(Z$9:Z$229,Nutrients!$CY$8:$CY$228)+(IF($A$7=Nutrients!$B$8,Nutrients!$CY$8,Nutrients!$CY$9)*Z$7)+(((IF($A$8=Nutrients!$B$79,Nutrients!$CY$79,(IF($A$8=Nutrients!$B$77,Nutrients!$CY$77,Nutrients!$CY$78)))))*Z$8))/2000/Z$236*100","v":60.129270470708853},{"$f":"(SUMPRODUCT(AA$9:AA$229,Nutrients!$CY$8:$CY$228)+(IF($A$7=Nutrients!$B$8,Nutrients!$CY$8,Nutrients!$CY$9)*AA$7)+(((IF($A$8=Nutrients!$B$79,Nutrients!$CY$79,(IF($A$8=Nutrients!$B$77,Nutrients!$CY$77,Nutrients!$CY$78)))))*AA$8))/2000/AA$236*100","v":59.390002889693108},{"$f":"(SUMPRODUCT(AB$9:AB$229,Nutrients!$CY$8:$CY$228)+(IF($A$7=Nutrients!$B$8,Nutrients!$CY$8,Nutrients!$CY$9)*AB$7)+(((IF($A$8=Nutrients!$B$79,Nutrients!$CY$79,(IF($A$8=Nutrients!$B$77,Nutrients!$CY$77,Nutrients!$CY$78)))))*AB$8))/2000/AB$236*100","v":57.980356352367814},null,{"$f":"(SUMPRODUCT(AD$9:AD$229,Nutrients!$CY$8:$CY$228)+(IF($A$7=Nutrients!$B$8,Nutrients!$CY$8,Nutrients!$CY$9)*AD$7)+(((IF($A$8=Nutrients!$B$79,Nutrients!$CY$79,(IF($A$8=Nutrients!$B$77,Nutrients!$CY$77,Nutrients!$CY$78)))))*AD$8))/2000/AD$236*100","v":56.961606746862714},{"$f":"(SUMPRODUCT(AE$9:AE$229,Nutrients!$CY$8:$CY$228)+(IF($A$7=Nutrients!$B$8,Nutrients!$CY$8,Nutrients!$CY$9)*AE$7)+(((IF($A$8=Nutrients!$B$79,Nutrients!$CY$79,(IF($A$8=Nutrients!$B$77,Nutrients!$CY$77,Nutrients!$CY$78)))))*AE$8))/2000/AE$236*100","v":58.136672750829099},{"$f":"(SUMPRODUCT(AF$9:AF$229,Nutrients!$CY$8:$CY$228)+(IF($A$7=Nutrients!$B$8,Nutrients!$CY$8,Nutrients!$CY$9)*AF$7)+(((IF($A$8=Nutrients!$B$79,Nutrients!$CY$79,(IF($A$8=Nutrients!$B$77,Nutrients!$CY$77,Nutrients!$CY$78)))))*AF$8))/2000/AF$236*100","v":59.819887563477003},{"$f":"(SUMPRODUCT(AG$9:AG$229,Nutrients!$CY$8:$CY$228)+(IF($A$7=Nutrients!$B$8,Nutrients!$CY$8,Nutrients!$CY$9)*AG$7)+(((IF($A$8=Nutrients!$B$79,Nutrients!$CY$79,(IF($A$8=Nutrients!$B$77,Nutrients!$CY$77,Nutrients!$CY$78)))))*AG$8))/2000/AG$236*100","v":60.409939538004721},{"$f":"(SUMPRODUCT(AH$9:AH$229,Nutrients!$CY$8:$CY$228)+(IF($A$7=Nutrients!$B$8,Nutrients!$CY$8,Nutrients!$CY$9)*AH$7)+(((IF($A$8=Nutrients!$B$79,Nutrients!$CY$79,(IF($A$8=Nutrients!$B$77,Nutrients!$CY$77,Nutrients!$CY$78)))))*AH$8))/2000/AH$236*100","v":59.68148610896499},{"$f":"(SUMPRODUCT(AI$9:AI$229,Nutrients!$CY$8:$CY$228)+(IF($A$7=Nutrients!$B$8,Nutrients!$CY$8,Nutrients!$CY$9)*AI$7)+(((IF($A$8=Nutrients!$B$79,Nutrients!$CY$79,(IF($A$8=Nutrients!$B$77,Nutrients!$CY$77,Nutrients!$CY$78)))))*AI$8))/2000/AI$236*100","v":57.980356352367814},null,{"$f":"(SUMPRODUCT(AK$9:AK$229,Nutrients!$CY$8:$CY$228)+(IF($A$7=Nutrients!$B$8,Nutrients!$CY$8,Nutrients!$CY$9)*AK$7)+(((IF($A$8=Nutrients!$B$79,Nutrients!$CY$79,(IF($A$8=Nutrients!$B$77,Nutrients!$CY$77,Nutrients!$CY$78)))))*AK$8))/2000/AK$236*100","v":57.128157898122431},{"$f":"(SUMPRODUCT(AL$9:AL$229,Nutrients!$CY$8:$CY$228)+(IF($A$7=Nutrients!$B$8,Nutrients!$CY$8,Nutrients!$CY$9)*AL$7)+(((IF($A$8=Nutrients!$B$79,Nutrients!$CY$79,(IF($A$8=Nutrients!$B$77,Nutrients!$CY$77,Nutrients!$CY$78)))))*AL$8))/2000/AL$236*100","v":58.331427480269369},{"$f":"(SUMPRODUCT(AM$9:AM$229,Nutrients!$CY$8:$CY$228)+(IF($A$7=Nutrients!$B$8,Nutrients!$CY$8,Nutrients!$CY$9)*AM$7)+(((IF($A$8=Nutrients!$B$79,Nutrients!$CY$79,(IF($A$8=Nutrients!$B$77,Nutrients!$CY$77,Nutrients!$CY$78)))))*AM$8))/2000/AM$236*100","v":60.063307705822922},{"$f":"(SUMPRODUCT(AN$9:AN$229,Nutrients!$CY$8:$CY$228)+(IF($A$7=Nutrients!$B$8,Nutrients!$CY$8,Nutrients!$CY$9)*AN$7)+(((IF($A$8=Nutrients!$B$79,Nutrients!$CY$79,(IF($A$8=Nutrients!$B$77,Nutrients!$CY$77,Nutrients!$CY$78)))))*AN$8))/2000/AN$236*100","v":60.684311200905746},{"$f":"(SUMPRODUCT(AO$9:AO$229,Nutrients!$CY$8:$CY$228)+(IF($A$7=Nutrients!$B$8,Nutrients!$CY$8,Nutrients!$CY$9)*AO$7)+(((IF($A$8=Nutrients!$B$79,Nutrients!$CY$79,(IF($A$8=Nutrients!$B$77,Nutrients!$CY$77,Nutrients!$CY$78)))))*AO$8))/2000/AO$236*100","v":59.972561699341185},{"$f":"(SUMPRODUCT(AP$9:AP$229,Nutrients!$CY$8:$CY$228)+(IF($A$7=Nutrients!$B$8,Nutrients!$CY$8,Nutrients!$CY$9)*AP$7)+(((IF($A$8=Nutrients!$B$79,Nutrients!$CY$79,(IF($A$8=Nutrients!$B$77,Nutrients!$CY$77,Nutrients!$CY$78)))))*AP$8))/2000/AP$236*100","v":57.980356352367814},null,{"$f":"(SUMPRODUCT(AR$9:AR$229,Nutrients!$CY$8:$CY$228)+(IF($A$7=Nutrients!$B$8,Nutrients!$CY$8,Nutrients!$CY$9)*AR$7)+(((IF($A$8=Nutrients!$B$79,Nutrients!$CY$79,(IF($A$8=Nutrients!$B$77,Nutrients!$CY$77,Nutrients!$CY$78)))))*AR$8))/2000/AR$236*100","v":57.322639520485744},{"$f":"(SUMPRODUCT(AS$9:AS$229,Nutrients!$CY$8:$CY$228)+(IF($A$7=Nutrients!$B$8,Nutrients!$CY$8,Nutrients!$CY$9)*AS$7)+(((IF($A$8=Nutrients!$B$79,Nutrients!$CY$79,(IF($A$8=Nutrients!$B$77,Nutrients!$CY$77,Nutrients!$CY$78)))))*AS$8))/2000/AS$236*100","v":58.528490441985738},{"$f":"(SUMPRODUCT(AT$9:AT$229,Nutrients!$CY$8:$CY$228)+(IF($A$7=Nutrients!$B$8,Nutrients!$CY$8,Nutrients!$CY$9)*AT$7)+(((IF($A$8=Nutrients!$B$79,Nutrients!$CY$79,(IF($A$8=Nutrients!$B$77,Nutrients!$CY$77,Nutrients!$CY$78)))))*AT$8))/2000/AT$236*100","v":60.311975774799855},{"$f":"(SUMPRODUCT(AU$9:AU$229,Nutrients!$CY$8:$CY$228)+(IF($A$7=Nutrients!$B$8,Nutrients!$CY$8,Nutrients!$CY$9)*AU$7)+(((IF($A$8=Nutrients!$B$79,Nutrients!$CY$79,(IF($A$8=Nutrients!$B$77,Nutrients!$CY$77,Nutrients!$CY$78)))))*AU$8))/2000/AU$236*100","v":60.956431487495088},{"$f":"(SUMPRODUCT(AV$9:AV$229,Nutrients!$CY$8:$CY$228)+(IF($A$7=Nutrients!$B$8,Nutrients!$CY$8,Nutrients!$CY$9)*AV$7)+(((IF($A$8=Nutrients!$B$79,Nutrients!$CY$79,(IF($A$8=Nutrients!$B$77,Nutrients!$CY$77,Nutrients!$CY$78)))))*AV$8))/2000/AV$236*100","v":60.268821398365226},{"$f":"(SUMPRODUCT(AW$9:AW$229,Nutrients!$CY$8:$CY$228)+(IF($A$7=Nutrients!$B$8,Nutrients!$CY$8,Nutrients!$CY$9)*AW$7)+(((IF($A$8=Nutrients!$B$79,Nutrients!$CY$79,(IF($A$8=Nutrients!$B$77,Nutrients!$CY$77,Nutrients!$CY$78)))))*AW$8))/2000/AW$236*100","v":57.980356352367814}]
["  Leu:Lys",{"$f":"(SUMPRODUCT(B$9:B$229,Nutrients!$CZ$8:$CZ$228)+(IF($A$7=Nutrients!$B$8,Nutrients!$CZ$8,Nutrients!$CZ$9)*B$7)+(((IF($A$8=Nutrients!$B$79,Nutrients!$CZ$79,(IF($A$8=Nutrients!$B$77,Nutrients!$CZ$77,Nutrients!$CZ$78)))))*B$8))/2000/B$236*100","v":120.89105591211504},{"$f":"(SUMPRODUCT(C$9:C$229,Nutrients!$CZ$8:$CZ$228)+(IF($A$7=Nutrients!$B$8,Nutrients!$CZ$8,Nutrients!$CZ$9)*C$7)+(((IF($A$8=Nutrients!$B$79,Nutrients!$CZ$79,(IF($A$8=Nutrients!$B$77,Nutrients!$CZ$77,Nutrients!$CZ$78)))))*C$8))/2000/C$236*100","v":128.00798727272854},{"$f":"(SUMPRODUCT(D$9:D$229,Nutrients!$CZ$8:$CZ$228)+(IF($A$7=Nutrients!$B$8,Nutrients!$CZ$8,Nutrients!$CZ$9)*D$7)+(((IF($A$8=Nutrients!$B$79,Nutrients!$CZ$79,(IF($A$8=Nutrients!$B$77,Nutrients!$CZ$77,Nutrients!$CZ$78)))))*D$8))/2000/D$236*100","v":136.56000538997691},{"$f":"(SUMPRODUCT(E$9:E$229,Nutrients!$CZ$8:$CZ$228)+(IF($A$7=Nutrients!$B$8,Nutrients!$CZ$8,Nutrients!$CZ$9)*E$7)+(((IF($A$8=Nutrients!$B$79,Nutrients!$CZ$79,(IF($A$8=Nutrients!$B$77,Nutrients!$CZ$77,Nutrients!$CZ$78)))))*E$8))/2000/E$236*100","v":143.9104596541508},{"$f":"(SUMPRODUCT(F$9:F$229,Nutrients!$CZ$8:$CZ$228)+(IF($A$7=Nutrients!$B$8,Nutrients!$CZ$8,Nutrients!$CZ$9)*F$7)+(((IF($A$8=Nutrients!$B$79,Nutrients!$CZ$79,(IF($A$8=Nutrients!$B$77,Nutrients!$CZ$77,Nutrients!$CZ$78)))))*F$8))/2000/F$236*100","v":148.44781930158939},{"$f":"(SUMPRODUCT(G$9:G$229,Nutrients!$CZ$8:$CZ$228)+(IF($A$7=Nutrients!$B$8,Nutrients!$CZ$8,Nutrients!$CZ$9)*G$7)+(((IF($A$8=Nutrients!$B$79,Nutrients!$CZ$79,(IF($A$8=Nutrients!$B$77,Nutrients!$CZ$77,Nutrients!$CZ$78)))))*G$8))/2000/G$236*100","v":151.29313192040226},null,{"$f":"(SUMPRODUCT(I$9:I$229,Nutrients!$CZ$8:$CZ$228)+(IF($A$7=Nutrients!$B$8,Nutrients!$CZ$8,Nutrients!$CZ$9)*I$7)+(((IF($A$8=Nutrients!$B$79,Nutrients!$CZ$79,(IF($A$8=Nutrients!$B$77,Nutrients!$CZ$77,Nutrients!$CZ$78)))))*I$8))/2000/I$236*100","v":126.6795290689207},{"$f":"(SUMPRODUCT(J$9:J$229,Nutrients!$CZ$8:$CZ$228)+(IF($A$7=Nutrients!$B$8,Nutrients!$CZ$8,Nutrients!$CZ$9)*J$7)+(((IF($A$8=Nutrients!$B$79,Nutrients!$CZ$79,(IF($A$8=Nutrients!$B$77,Nutrients!$CZ$77,Nutrients!$CZ$78)))))*J$8))/2000/J$236*100","v":134.56949392018208},{"$f":"(SUMPRODUCT(K$9:K$229,Nutrients!$CZ$8:$CZ$228)+(IF($A$7=Nutrients!$B$8,Nutrients!$CZ$8,Nutrients!$CZ$9)*K$7)+(((IF($A$8=Nutrients!$B$79,Nutrients!$CZ$79,(IF($A$8=Nutrients!$B$77,Nutrients!$CZ$77,Nutrients!$CZ$78)))))*K$8))/2000/K$236*100","v":144.00641091470737},{"$f":"(SUMPRODUCT(L$9:L$229,Nutrients!$CZ$8:$CZ$228)+(IF($A$7=Nutrients!$B$8,Nutrients!$CZ$8,Nutrients!$CZ$9)*L$7)+(((IF($A$8=Nutrients!$B$79,Nutrients!$CZ$79,(IF($A$8=Nutrients!$B$77,Nutrients!$CZ$77,Nutrients!$CZ$78)))))*L$8))/2000/L$236*100","v":152.28190016231801},{"$f":"(SUMPRODUCT(M$9:M$229,Nutrients!$CZ$8:$CZ$228)+(IF($A$7=Nutrients!$B$8,Nutrients!$CZ$8,Nutrients!$CZ$9)*M$7)+(((IF($A$8=Nutrients!$B$79,Nutrients!$CZ$79,(IF($A$8=Nutrients!$B$77,Nutrients!$CZ$77,Nutrients!$CZ$78)))))*M$8))/2000/M$236*100","v":157.63769113773913},{"$f":"(SUMPRODUCT(N$9:N$229,Nutrients!$CZ$8:$CZ$228)+(IF($A$7=Nutrients!$B$8,Nutrients!$CZ$8,Nutrients!$CZ$9)*N$7)+(((IF($A$8=Nutrients!$B$79,Nutrients!$CZ$79,(IF($A$8=Nutrients!$B$77,Nutrients!$CZ$77,Nutrients!$CZ$78)))))*N$8))/2000/N$236*100","v":151.29313192040226},null,{"$f":"(SUMPRODUCT(P$9:P$229,Nutrients!$CZ$8:$CZ$228)+(IF($A$7=Nutrients!$B$8,Nutrients!$CZ$8,Nutrients!$CZ$9)*P$7)+(((IF($A$8=Nutrients!$B$79,Nutrients!$CZ$79,(IF($A$8=Nutrients!$B$77,Nutrients!$CZ$77,Nutrients!$CZ$78)))))*P$8))/2000/P$236*100","v":132.50343020501964},{"$f":"(SUMPRODUCT(Q$9:Q$229,Nutrients!$CZ$8:$CZ$228)+(IF($A$7=Nutrients!$B$8,Nutrients!$CZ$8,Nutrients!$CZ$9)*Q$7)+(((IF($A$8=Nutrients!$B$79,Nutrients!$CZ$79,(IF($A$8=Nutrients!$B$77,Nutrients!$CZ$77,Nutrients!$CZ$78)))))*Q$8))/2000/Q$236*100","v":141.1773003902108},{"$f":"(SUMPRODUCT(R$9:R$229,Nutrients!$CZ$8:$CZ$228)+(IF($A$7=Nutrients!$B$8,Nutrients!$CZ$8,Nutrients!$CZ$9)*R$7)+(((IF($A$8=Nutrients!$B$79,Nutrients!$CZ$79,(IF($A$8=Nutrients!$B$77,Nutrients!$CZ$77,Nutrients!$CZ$78)))))*R$8))/2000/R$236*100","v":151.50272033780507},{"$f":"(SUMPRODUCT(S$9:S$229,Nutrients!$CZ$8:$CZ$228)+(IF($A$7=Nutrients!$B$8,Nutrients!$CZ$8,Nutrients!$CZ$9)*S$7)+(((IF($A$8=Nutrients!$B$79,Nutrients!$CZ$79,(IF($A$8=Nutrients!$B$77,Nutrients!$CZ$77,Nutrients!$CZ$78)))))*S$8))/2000/S$236*100","v":160.79455920196546},{"$f":"(SUMPRODUCT(T$9:T$229,Nutrients!$CZ$8:$CZ$228)+(IF($A$7=Nutrients!$B$8,Nutrients!$CZ$8,Nutrients!$CZ$9)*T$7)+(((IF($A$8=Nutrients!$B$79,Nutrients!$CZ$79,(IF($A$8=Nutrients!$B$77,Nutrients!$CZ$77,Nutrients!$CZ$78)))))*T$8))/2000/T$236*100","v":166.91651691697913},{"$f":"(SUMPRODUCT(U$9:U$229,Nutrients!$CZ$8:$CZ$228)+(IF($A$7=Nutrients!$B$8,Nutrients!$CZ$8,Nutrients!$CZ$9)*U$7)+(((IF($A$8=Nutrients!$B$79,Nutrients!$CZ$79,(IF($A$8=Nutrients!$B$77,Nutrients!$CZ$77,Nutrients!$CZ$78)))))*U$8))/2000/U$236*100","v":151.29313192040226},null,{"$f":"(SUMPRODUCT(W$9:W$229,Nutrients!$CZ$8:$CZ$228)+(IF($A$7=Nutrients!$B$8,Nutrients!$CZ$8,Nutrients!$CZ$9)*W$7)+(((IF($A$8=Nutrients!$B$79,Nutrients!$CZ$79,(IF($A$8=Nutrients!$B$77,Nutrients!$CZ$77,Nutrients!$CZ$78)))))*W$8))/2000/W$236*100","v":138.40496995912218},{"$f":"(SUMPRODUCT(X$9:X$229,Nutrients!$CZ$8:$CZ$228)+(IF($A$7=Nutrients!$B$8,Nutrients!$CZ$8,Nutrients!$CZ$9)*X$7)+(((IF($A$8=Nutrients!$B$79,Nutrients!$CZ$79,(IF($A$8=Nutrients!$B$77,Nutrients!$CZ$77,Nutrients!$CZ$78)))))*X$8))/2000/X$236*100","v":147.8761134853815},{"$f":"(SUMPRODUCT(Y$9:Y$229,Nutrients!$CZ$8:$CZ$228)+(IF($A$7=Nutrients!$B$8,Nutrients!$CZ$8,Nutrients!$CZ$9)*Y$7)+(((IF($A$8=Nutrients!$B$79,Nutrients!$CZ$79,(IF($A$8=Nutrients!$B$77,Nutrients!$CZ$77,Nutrients!$CZ$78)))))*Y$8))/2000/Y$236*100","v":159.19180549551325},{"$f":"(SUMPRODUCT(Z$9:Z$229,Nutrients!$CZ$8:$CZ$228)+(IF($A$7=Nutrients!$B$8,Nutrients!$CZ$8,Nutrients!$CZ$9)*Z$7)+(((IF($A$8=Nutrients!$B$79,Nutrients!$CZ$79,(IF($A$8=Nutrients!$B$77,Nutrients!$CZ$77,Nutrients!$CZ$78)))))*Z$8))/2000/Z$236*100","v":169.40805659379222},{"$f":"(SUMPRODUCT(AA$9:AA$229,Nutrients!$CZ$8:$CZ$228)+(IF($A$7=Nutrients!$B$8,Nutrients!$CZ$8,Nutrients!$CZ$9)*AA$7)+(((IF($A$8=Nutrients!$B$79,Nutrients!$CZ$79,(IF($A$8=Nutrients!$B$77,Nutrients!$CZ$77,Nutrients!$CZ$78)))))*AA$8))/2000/AA$236*100","v":176.31414814718315},{"$f":"(SUMPRODUCT(AB$9:AB$229,Nutrients!$CZ$8:$CZ$228)+(IF($A$7=Nutrients!$B$8,Nutrients!$CZ$8,Nutrients!$CZ$9)*AB$7)+(((IF($A$8=Nutrients!$B$79,Nutrients!$CZ$79,(IF($A$8=Nutrients!$B$77,Nutrients!$CZ$77,Nutrients!$CZ$78)))))*AB$8))/2000/AB$236*100","v":151.29313192040226},null,{"$f":"(SUMPRODUCT(AD$9:AD$229,Nutrients!$CZ$8:$CZ$228)+(IF($A$7=Nutrients!$B$8,Nutrients!$CZ$8,Nutrients!$CZ$9)*AD$7)+(((IF($A$8=Nutrients!$B$79,Nutrients!$CZ$79,(IF($A$8=Nutrients!$B$77,Nutrients!$CZ$77,Nutrients!$CZ$78)))))*AD$8))/2000/AD$236*100","v":144.38955839338485},{"$f":"(SUMPRODUCT(AE$9:AE$229,Nutrients!$CZ$8:$CZ$228)+(IF($A$7=Nutrients!$B$8,Nutrients!$CZ$8,Nutrients!$CZ$9)*AE$7)+(((IF($A$8=Nutrients!$B$79,Nutrients!$CZ$79,(IF($A$8=Nutrients!$B$77,Nutrients!$CZ$77,Nutrients!$CZ$78)))))*AE$8))/2000/AE$236*100","v":154.74197734640612},{"$f":"(SUMPRODUCT(AF$9:AF$229,Nutrients!$CZ$8:$CZ$228)+(IF($A$7=Nutrients!$B$8,Nutrients!$CZ$8,Nutrients!$CZ$9)*AF$7)+(((IF($A$8=Nutrients!$B$79,Nutrients!$CZ$79,(IF($A$8=Nutrients!$B$77,Nutrients!$CZ$77,Nutrients!$CZ$78)))))*AF$8))/2000/AF$236*100","v":166.97830564974819},{"$f":"(SUMPRODUCT(AG$9:AG$229,Nutrients!$CZ$8:$CZ$228)+(IF($A$7=Nutrients!$B$8,Nutrients!$CZ$8,Nutrients!$CZ$9)*AG$7)+(((IF($A$8=Nutrients!$B$79,Nutrients!$CZ$79,(IF($A$8=Nutrients!$B$77,Nutrients!$CZ$77,Nutrients!$CZ$78)))))*AG$8))/2000/AG$236*100","v":178.14381216192569},{"$f":"(SUMPRODUCT(AH$9:AH$229,Nutrients!$CZ$8:$CZ$228)+(IF($A$7=Nutrients!$B$8,Nutrients!$CZ$8,Nutrients!$CZ$9)*AH$7)+(((IF($A$8=Nutrients!$B$79,Nutrients!$CZ$79,(IF($A$8=Nutrients!$B$77,Nutrients!$CZ$77,Nutrients!$CZ$78)))))*AH$8))/2000/AH$236*100","v":185.85828239785803},{"$f":"(SUMPRODUCT(AI$9:AI$229,Nutrients!$CZ$8:$CZ$228)+(IF($A$7=Nutrients!$B$8,Nutrients!$CZ$8,Nutrients!$CZ$9)*AI$7)+(((IF($A$8=Nutrients!$B$79,Nutrients!$CZ$79,(IF($A$8=Nutrients!$B$77,Nutrients!$CZ$77,Nutrients!$CZ$78)))))*AI$8))/2000/AI$236*100","v":151.29313192040226},null,{"$f":"(SUMPRODUCT(AK$9:AK$229,Nutrients!$CZ$8:$CZ$228)+(IF($A$7=Nutrients!$B$8,Nutrients!$CZ$8,Nutrients!$CZ$9)*AK$7)+(((IF($A$8=Nutrients!$B$79,Nutrients!$CZ$79,(IF($A$8=Nutrients!$B$77,Nutrients!$CZ$77,Nutrients!$CZ$78)))))*AK$8))/2000/AK$236*100","v":150.44013460588158},{"$f":"(SUMPRODUCT(AL$9:AL$229,Nutrients!$CZ$8:$CZ$228)+(IF($A$7=Nutrients!$B$8,Nutrients!$CZ$8,Nutrients!$CZ$9)*AL$7)+(((IF($A$8=Nutrients!$B$79,Nutrients!$CZ$79,(IF($A$8=Nutrients!$B$77,Nutrients!$CZ$77,Nutrients!$CZ$78)))))*AL$8))/2000/AL$236*100","v":161.69806814565987},{"$f":"(SUMPRODUCT(AM$9:AM$229,Nutrients!$CZ$8:$CZ$228)+(IF($A$7=Nutrients!$B$8,Nutrients!$CZ$8,Nutrients!$CZ$9)*AM$7)+(((IF($A$8=Nutrients!$B$79,Nutrients!$CZ$79,(IF($A$8=Nutrients!$B$77,Nutrients!$CZ$77,Nutrients!$CZ$78)))))*AM$8))/2000/AM$236*100","v":174.87081182944416},{"$f":"(SUMPRODUCT(AN$9:AN$229,Nutrients!$CZ$8:$CZ$228)+(IF($A$7=Nutrients!$B$8,Nutrients!$CZ$8,Nutrients!$CZ$9)*AN$7)+(((IF($A$8=Nutrients!$B$79,Nutrients!$CZ$79,(IF($A$8=Nutrients!$B$77,Nutrients!$CZ$77,Nutrients!$CZ$78)))))*AN$8))/2000/AN$236*100","v":187.0184547143235},{"$f":"(SUMPRODUCT(AO$9:AO$229,Nutrients!$CZ$8:$CZ$228)+(IF($A$7=Nutrients!$B$8,Nutrients!$CZ$8,Nutrients!$CZ$9)*AO$7)+(((IF($A$8=Nutrients!$B$79,Nutrients!$CZ$79,(IF($A$8=Nutrients!$B$77,Nutrients!$CZ$77,Nutrients!$CZ$78)))))*AO$8))/2000/AO$236*100","v":195.56716003125672},{"$f":"(SUMPRODUCT(AP$9:AP$229,Nutrients!$CZ$8:$CZ$228)+(IF($A$7=Nutrients!$B$8,Nutrients!$CZ$8,Nutrients!$CZ$9)*AP$7)+(((IF($A$8=Nutrients!$B$79,Nutrients!$CZ$79,(IF($A$8=Nutrients!$B$77,Nutrients!$CZ$77,Nutrients!$CZ$78)))))*AP$8))/2000/AP$236*100","v":151.29313192040226},null,{"$f":"(SUMPRODUCT(AR$9:AR$229,Nutrients!$CZ$8:$CZ$228)+(IF($A$7=Nutrients!$B$8,Nutrients!$CZ$8,Nutrients!$CZ$9)*AR$7)+(((IF($A$8=Nutrients!$B$79,Nutrients!$CZ$79,(IF($A$8=Nutrients!$B$77,Nutrients!$CZ$77,Nutrients!$CZ$78)))))*AR$8))/2000/AR$236*100","v":156.43290976221735},{"$f":"(SUMPRODUCT(AS$9:AS$229,Nutrients!$CZ$8:$CZ$228)+(IF($A$7=Nutrients!$B$8,Nutrients!$CZ$8,Nutrients!$CZ$9)*AS$7)+(((IF($A$8=Nutrients!$B$79,Nutrients!$CZ$79,(IF($A$8=Nutrients!$B$77,Nutrients!$CZ$77,Nutrients!$CZ$78)))))*AS$8))/2000/AS$236*100","v":168.7583077393835},{"$f":"(SUMPRODUCT(AT$9:AT$229,Nutrients!$CZ$8:$CZ$228)+(IF($A$7=Nutrients!$B$8,Nutrients!$CZ$8,Nutrients!$CZ$9)*AT$7)+(((IF($A$8=Nutrients!$B$79,Nutrients!$CZ$79,(IF($A$8=Nutrients!$B$77,Nutrients!$CZ$77,Nutrients!$CZ$78)))))*AT$8))/2000/AT$236*100","v":182.85535143625856},{"$f":"(SUMPRODUCT(AU$9:AU$229,Nutrients!$CZ$8:$CZ$228)+(IF($A$7=Nutrients!$B$8,Nutrients!$CZ$8,Nutrients!$CZ$9)*AU$7)+(((IF($A$8=Nutrients!$B$79,Nutrients!$CZ$79,(IF($A$8=Nutrients!$B$77,Nutrients!$CZ$77,Nutrients!$CZ$78)))))*AU$8))/2000/AU$236*100","v":196.03483352426267},{"$f":"(SUMPRODUCT(AV$9:AV$229,Nutrients!$CZ$8:$CZ$228)+(IF($A$7=Nutrients!$B$8,Nutrients!$CZ$8,Nutrients!$CZ$9)*AV$7)+(((IF($A$8=Nutrients!$B$79,Nutrients!$CZ$79,(IF($A$8=Nutrients!$B$77,Nutrients!$CZ$77,Nutrients!$CZ$78)))))*AV$8))/2000/AV$236*100","v":205.44540223121018},{"$f":"(SUMPRODUCT(AW$9:AW$229,Nutrients!$CZ$8:$CZ$228)+(IF($A$7=Nutrients!$B$8,Nutrients!$CZ$8,Nutrients!$CZ$9)*AW$7)+(((IF($A$8=Nutrients!$B$79,Nutrients!$CZ$79,(IF($A$8=Nutrients!$B$77,Nutrients!$CZ$77,Nutrients!$CZ$78)))))*AW$8))/2000/AW$236*100","v":151.29313192040226}]
["  Met:Lys",{"$f":"(SUMPRODUCT(B$9:B$229,Nutrients!$DB$8:$DB$228)+(IF($A$7=Nutrients!$B$8,Nutrients!$DB$8,Nutrients!$DB$9)*B$7)+(((IF($A$8=Nutrients!$B$79,Nutrients!$DB$79,(IF($A$8=Nutrients!$B$77,Nutrients!$DB$77,Nutrients!$DB$78)))))*B$8))/2000/B$236*100","v":33.81111138845354},{"$f":"(SUMPRODUCT(C$9:C$229,Nutrients!$DB$8:$DB$228)+(IF($A$7=Nutrients!$B$8,Nutrients!$DB$8,Nutrients!$DB$9)*C$7)+(((IF($A$8=Nutrients!$B$79,Nutrients!$DB$79,(IF($A$8=Nutrients!$B$77,Nutrients!$DB$77,Nutrients!$DB$78)))))*C$8))/2000/C$236*100","v":32.524236458699015},{"$f":"(SUMPRODUCT(D$9:D$229,Nutrients!$DB$8:$DB$228)+(IF($A$7=Nutrients!$B$8,Nutrients!$DB$8,Nutrients!$DB$9)*D$7)+(((IF($A$8=Nutrients!$B$79,Nutrients!$DB$79,(IF($A$8=Nutrients!$B$77,Nutrients!$DB$77,Nutrients!$DB$78)))))*D$8))/2000/D$236*100","v":30.974376755587524},{"$f":"(SUMPRODUCT(E$9:E$229,Nutrients!$DB$8:$DB$228)+(IF($A$7=Nutrients!$B$8,Nutrients!$DB$8,Nutrients!$DB$9)*E$7)+(((IF($A$8=Nutrients!$B$79,Nutrients!$DB$79,(IF($A$8=Nutrients!$B$77,Nutrients!$DB$77,Nutrients!$DB$78)))))*E$8))/2000/E$236*100","v":30.712595168445802},{"$f":"(SUMPRODUCT(F$9:F$229,Nutrients!$DB$8:$DB$228)+(IF($A$7=Nutrients!$B$8,Nutrients!$DB$8,Nutrients!$DB$9)*F$7)+(((IF($A$8=Nutrients!$B$79,Nutrients!$DB$79,(IF($A$8=Nutrients!$B$77,Nutrients!$DB$77,Nutrients!$DB$78)))))*F$8))/2000/F$236*100","v":30.00631713197205},{"$f":"(SUMPRODUCT(G$9:G$229,Nutrients!$DB$8:$DB$228)+(IF($A$7=Nutrients!$B$8,Nutrients!$DB$8,Nutrients!$DB$9)*G$7)+(((IF($A$8=Nutrients!$B$79,Nutrients!$DB$79,(IF($A$8=Nutrients!$B$77,Nutrients!$DB$77,Nutrients!$DB$78)))))*G$8))/2000/G$236*100","v":30.329377095070086},null,{"$f":"(SUMPRODUCT(I$9:I$229,Nutrients!$DB$8:$DB$228)+(IF($A$7=Nutrients!$B$8,Nutrients!$DB$8,Nutrients!$DB$9)*I$7)+(((IF($A$8=Nutrients!$B$79,Nutrients!$DB$79,(IF($A$8=Nutrients!$B$77,Nutrients!$DB$77,Nutrients!$DB$78)))))*I$8))/2000/I$236*100","v":33.570726139031301},{"$f":"(SUMPRODUCT(J$9:J$229,Nutrients!$DB$8:$DB$228)+(IF($A$7=Nutrients!$B$8,Nutrients!$DB$8,Nutrients!$DB$9)*J$7)+(((IF($A$8=Nutrients!$B$79,Nutrients!$DB$79,(IF($A$8=Nutrients!$B$77,Nutrients!$DB$77,Nutrients!$DB$78)))))*J$8))/2000/J$236*100","v":32.219350212957885},{"$f":"(SUMPRODUCT(K$9:K$229,Nutrients!$DB$8:$DB$228)+(IF($A$7=Nutrients!$B$8,Nutrients!$DB$8,Nutrients!$DB$9)*K$7)+(((IF($A$8=Nutrients!$B$79,Nutrients!$DB$79,(IF($A$8=Nutrients!$B$77,Nutrients!$DB$77,Nutrients!$DB$78)))))*K$8))/2000/K$236*100","v":30.656497935709815},{"$f":"(SUMPRODUCT(L$9:L$229,Nutrients!$DB$8:$DB$228)+(IF($A$7=Nutrients!$B$8,Nutrients!$DB$8,Nutrients!$DB$9)*L$7)+(((IF($A$8=Nutrients!$B$79,Nutrients!$DB$79,(IF($A$8=Nutrients!$B$77,Nutrients!$DB$77,Nutrients!$DB$78)))))*L$8))/2000/L$236*100","v":30.276666496437514},{"$f":"(SUMPRODUCT(M$9:M$229,Nutrients!$DB$8:$DB$228)+(IF($A$7=Nutrients!$B$8,Nutrients!$DB$8,Nutrients!$DB$9)*M$7)+(((IF($A$8=Nutrients!$B$79,Nutrients!$DB$79,(IF($A$8=Nutrients!$B$77,Nutrients!$DB$77,Nutrients!$DB$78)))))*M$8))/2000/M$236*100","v":29.424925937536045},{"$f":"(SUMPRODUCT(N$9:N$229,Nutrients!$DB$8:$DB$228)+(IF($A$7=Nutrients!$B$8,Nutrients!$DB$8,Nutrients!$DB$9)*N$7)+(((IF($A$8=Nutrients!$B$79,Nutrients!$DB$79,(IF($A$8=Nutrients!$B$77,Nutrients!$DB$77,Nutrients!$DB$78)))))*N$8))/2000/N$236*100","v":30.329377095070086},null,{"$f":"(SUMPRODUCT(P$9:P$229,Nutrients!$DB$8:$DB$228)+(IF($A$7=Nutrients!$B$8,Nutrients!$DB$8,Nutrients!$DB$9)*P$7)+(((IF($A$8=Nutrients!$B$79,Nutrients!$DB$79,(IF($A$8=Nutrients!$B$77,Nutrients!$DB$77,Nutrients!$DB$78)))))*P$8))/2000/P$236*100","v":33.343849198274064},{"$f":"(SUMPRODUCT(Q$9:Q$229,Nutrients!$DB$8:$DB$228)+(IF($A$7=Nutrients!$B$8,Nutrients!$DB$8,Nutrients!$DB$9)*Q$7)+(((IF($A$8=Nutrients!$B$79,Nutrients!$DB$79,(IF($A$8=Nutrients!$B$77,Nutrients!$DB$77,Nutrients!$DB$78)))))*Q$8))/2000/Q$236*100","v":31.93975856760618},{"$f":"(SUMPRODUCT(R$9:R$229,Nutrients!$DB$8:$DB$228)+(IF($A$7=Nutrients!$B$8,Nutrients!$DB$8,Nutrients!$DB$9)*R$7)+(((IF($A$8=Nutrients!$B$79,Nutrients!$DB$79,(IF($A$8=Nutrients!$B$77,Nutrients!$DB$77,Nutrients!$DB$78)))))*R$8))/2000/R$236*100","v":30.315547130300573},{"$f":"(SUMPRODUCT(S$9:S$229,Nutrients!$DB$8:$DB$228)+(IF($A$7=Nutrients!$B$8,Nutrients!$DB$8,Nutrients!$DB$9)*S$7)+(((IF($A$8=Nutrients!$B$79,Nutrients!$DB$79,(IF($A$8=Nutrients!$B$77,Nutrients!$DB$77,Nutrients!$DB$78)))))*S$8))/2000/S$236*100","v":29.896961721410559},{"$f":"(SUMPRODUCT(T$9:T$229,Nutrients!$DB$8:$DB$228)+(IF($A$7=Nutrients!$B$8,Nutrients!$DB$8,Nutrients!$DB$9)*T$7)+(((IF($A$8=Nutrients!$B$79,Nutrients!$DB$79,(IF($A$8=Nutrients!$B$77,Nutrients!$DB$77,Nutrients!$DB$78)))))*T$8))/2000/T$236*100","v":29.396541570542762},{"$f":"(SUMPRODUCT(U$9:U$229,Nutrients!$DB$8:$DB$228)+(IF($A$7=Nutrients!$B$8,Nutrients!$DB$8,Nutrients!$DB$9)*U$7)+(((IF($A$8=Nutrients!$B$79,Nutrients!$DB$79,(IF($A$8=Nutrients!$B$77,Nutrients!$DB$77,Nutrients!$DB$78)))))*U$8))/2000/U$236*100","v":30.329377095070086},null,{"$f":"(SUMPRODUCT(W$9:W$229,Nutrients!$DB$8:$DB$228)+(IF($A$7=Nutrients!$B$8,Nutrients!$DB$8,Nutrients!$DB$9)*W$7)+(((IF($A$8=Nutrients!$B$79,Nutrients!$DB$79,(IF($A$8=Nutrients!$B$77,Nutrients!$DB$77,Nutrients!$DB$78)))))*W$8))/2000/W$236*100","v":33.071006598326839},{"$f":"(SUMPRODUCT(X$9:X$229,Nutrients!$DB$8:$DB$228)+(IF($A$7=Nutrients!$B$8,Nutrients!$DB$8,Nutrients!$DB$9)*X$7)+(((IF($A$8=Nutrients!$B$79,Nutrients!$DB$79,(IF($A$8=Nutrients!$B$77,Nutrients!$DB$77,Nutrients!$DB$78)))))*X$8))/2000/X$236*100","v":31.65651718740116},{"$f":"(SUMPRODUCT(Y$9:Y$229,Nutrients!$DB$8:$DB$228)+(IF($A$7=Nutrients!$B$8,Nutrients!$DB$8,Nutrients!$DB$9)*Y$7)+(((IF($A$8=Nutrients!$B$79,Nutrients!$DB$79,(IF($A$8=Nutrients!$B$77,Nutrients!$DB$77,Nutrients!$DB$78)))))*Y$8))/2000/Y$236*100","v":29.987459241674824},{"$f":"(SUMPRODUCT(Z$9:Z$229,Nutrients!$DB$8:$DB$228)+(IF($A$7=Nutrients!$B$8,Nutrients!$DB$8,Nutrients!$DB$9)*Z$7)+(((IF($A$8=Nutrients!$B$79,Nutrients!$DB$79,(IF($A$8=Nutrients!$B$77,Nutrients!$DB$77,Nutrients!$DB$78)))))*Z$8))/2000/Z$236*100","v":29.505482180525377},{"$f":"(SUMPRODUCT(AA$9:AA$229,Nutrients!$DB$8:$DB$228)+(IF($A$7=Nutrients!$B$8,Nutrients!$DB$8,Nutrients!$DB$9)*AA$7)+(((IF($A$8=Nutrients!$B$79,Nutrients!$DB$79,(IF($A$8=Nutrients!$B$77,Nutrients!$DB$77,Nutrients!$DB$78)))))*AA$8))/2000/AA$236*100","v":30.629516490379931},{"$f":"(SUMPRODUCT(AB$9:AB$229,Nutrients!$DB$8:$DB$228)+(IF($A$7=Nutrients!$B$8,Nutrients!$DB$8,Nutrients!$DB$9)*AB$7)+(((IF($A$8=Nutrients!$B$79,Nutrients!$DB$79,(IF($A$8=Nutrients!$B$77,Nutrients!$DB$77,Nutrients!$DB$78)))))*AB$8))/2000/AB$236*100","v":30.329377095070086},null,{"$f":"(SUMPRODUCT(AD$9:AD$229,Nutrients!$DB$8:$DB$228)+(IF($A$7=Nutrients!$B$8,Nutrients!$DB$8,Nutrients!$DB$9)*AD$7)+(((IF($A$8=Nutrients!$B$79,Nutrients!$DB$79,(IF($A$8=Nutrients!$B$77,Nutrients!$DB$77,Nutrients!$DB$78)))))*AD$8))/2000/AD$236*100","v":32.7954294555365},{"$f":"(SUMPRODUCT(AE$9:AE$229,Nutrients!$DB$8:$DB$228)+(IF($A$7=Nutrients!$B$8,Nutrients!$DB$8,Nutrients!$DB$9)*AE$7)+(((IF($A$8=Nutrients!$B$79,Nutrients!$DB$79,(IF($A$8=Nutrients!$B$77,Nutrients!$DB$77,Nutrients!$DB$78)))))*AE$8))/2000/AE$236*100","v":31.386430628917573},{"$f":"(SUMPRODUCT(AF$9:AF$229,Nutrients!$DB$8:$DB$228)+(IF($A$7=Nutrients!$B$8,Nutrients!$DB$8,Nutrients!$DB$9)*AF$7)+(((IF($A$8=Nutrients!$B$79,Nutrients!$DB$79,(IF($A$8=Nutrients!$B$77,Nutrients!$DB$77,Nutrients!$DB$78)))))*AF$8))/2000/AF$236*100","v":29.649149391614394},{"$f":"(SUMPRODUCT(AG$9:AG$229,Nutrients!$DB$8:$DB$228)+(IF($A$7=Nutrients!$B$8,Nutrients!$DB$8,Nutrients!$DB$9)*AG$7)+(((IF($A$8=Nutrients!$B$79,Nutrients!$DB$79,(IF($A$8=Nutrients!$B$77,Nutrients!$DB$77,Nutrients!$DB$78)))))*AG$8))/2000/AG$236*100","v":30.700538208269201},{"$f":"(SUMPRODUCT(AH$9:AH$229,Nutrients!$DB$8:$DB$228)+(IF($A$7=Nutrients!$B$8,Nutrients!$DB$8,Nutrients!$DB$9)*AH$7)+(((IF($A$8=Nutrients!$B$79,Nutrients!$DB$79,(IF($A$8=Nutrients!$B$77,Nutrients!$DB$77,Nutrients!$DB$78)))))*AH$8))/2000/AH$236*100","v":31.880332332867106},{"$f":"(SUMPRODUCT(AI$9:AI$229,Nutrients!$DB$8:$DB$228)+(IF($A$7=Nutrients!$B$8,Nutrients!$DB$8,Nutrients!$DB$9)*AI$7)+(((IF($A$8=Nutrients!$B$79,Nutrients!$DB$79,(IF($A$8=Nutrients!$B$77,Nutrients!$DB$77,Nutrients!$DB$78)))))*AI$8))/2000/AI$236*100","v":30.329377095070086},null,{"$f":"(SUMPRODUCT(AK$9:AK$229,Nutrients!$DB$8:$DB$228)+(IF($A$7=Nutrients!$B$8,Nutrients!$DB$8,Nutrients!$DB$9)*AK$7)+(((IF($A$8=Nutrients!$B$79,Nutrients!$DB$79,(IF($A$8=Nutrients!$B$77,Nutrients!$DB$77,Nutrients!$DB$78)))))*AK$8))/2000/AK$236*100","v":32.59792509370714},{"$f":"(SUMPRODUCT(AL$9:AL$229,Nutrients!$DB$8:$DB$228)+(IF($A$7=Nutrients!$B$8,Nutrients!$DB$8,Nutrients!$DB$9)*AL$7)+(((IF($A$8=Nutrients!$B$79,Nutrients!$DB$79,(IF($A$8=Nutrients!$B$77,Nutrients!$DB$77,Nutrients!$DB$78)))))*AL$8))/2000/AL$236*100","v":31.05830809242967},{"$f":"(SUMPRODUCT(AM$9:AM$229,Nutrients!$DB$8:$DB$228)+(IF($A$7=Nutrients!$B$8,Nutrients!$DB$8,Nutrients!$DB$9)*AM$7)+(((IF($A$8=Nutrients!$B$79,Nutrients!$DB$79,(IF($A$8=Nutrients!$B$77,Nutrients!$DB$77,Nutrients!$DB$78)))))*AM$8))/2000/AM$236*100","v":29.953049099354782},{"$f":"(SUMPRODUCT(AN$9:AN$229,Nutrients!$DB$8:$DB$228)+(IF($A$7=Nutrients!$B$8,Nutrients!$DB$8,Nutrients!$DB$9)*AN$7)+(((IF($A$8=Nutrients!$B$79,Nutrients!$DB$79,(IF($A$8=Nutrients!$B$77,Nutrients!$DB$77,Nutrients!$DB$78)))))*AN$8))/2000/AN$236*100","v":31.863782027395938},{"$f":"(SUMPRODUCT(AO$9:AO$229,Nutrients!$DB$8:$DB$228)+(IF($A$7=Nutrients!$B$8,Nutrients!$DB$8,Nutrients!$DB$9)*AO$7)+(((IF($A$8=Nutrients!$B$79,Nutrients!$DB$79,(IF($A$8=Nutrients!$B$77,Nutrients!$DB$77,Nutrients!$DB$78)))))*AO$8))/2000/AO$236*100","v":33.15227134927337},{"$f":"(SUMPRODUCT(AP$9:AP$229,Nutrients!$DB$8:$DB$228)+(IF($A$7=Nutrients!$B$8,Nutrients!$DB$8,Nutrients!$DB$9)*AP$7)+(((IF($A$8=Nutrients!$B$79,Nutrients!$DB$79,(IF($A$8=Nutrients!$B$77,Nutrients!$DB$77,Nutrients!$DB$78)))))*AP$8))/2000/AP$236*100","v":30.329377095070086},null,{"$f":"(SUMPRODUCT(AR$9:AR$229,Nutrients!$DB$8:$DB$228)+(IF($A$7=Nutrients!$B$8,Nutrients!$DB$8,Nutrients!$DB$9)*AR$7)+(((IF($A$8=Nutrients!$B$79,Nutrients!$DB$79,(IF($A$8=Nutrients!$B$77,Nutrients!$DB$77,Nutrients!$DB$78)))))*AR$8))/2000/AR$236*100","v":32.278218070237678},{"$f":"(SUMPRODUCT(AS$9:AS$229,Nutrients!$DB$8:$DB$228)+(IF($A$7=Nutrients!$B$8,Nutrients!$DB$8,Nutrients!$DB$9)*AS$7)+(((IF($A$8=Nutrients!$B$79,Nutrients!$DB$79,(IF($A$8=Nutrients!$B$77,Nutrients!$DB$77,Nutrients!$DB$78)))))*AS$8))/2000/AS$236*100","v":30.723917688986624},{"$f":"(SUMPRODUCT(AT$9:AT$229,Nutrients!$DB$8:$DB$228)+(IF($A$7=Nutrients!$B$8,Nutrients!$DB$8,Nutrients!$DB$9)*AT$7)+(((IF($A$8=Nutrients!$B$79,Nutrients!$DB$79,(IF($A$8=Nutrients!$B$77,Nutrients!$DB$77,Nutrients!$DB$78)))))*AT$8))/2000/AT$236*100","v":30.999198662184497},{"$f":"(SUMPRODUCT(AU$9:AU$229,Nutrients!$DB$8:$DB$228)+(IF($A$7=Nutrients!$B$8,Nutrients!$DB$8,Nutrients!$DB$9)*AU$7)+(((IF($A$8=Nutrients!$B$79,Nutrients!$DB$79,(IF($A$8=Nutrients!$B$77,Nutrients!$DB$77,Nutrients!$DB$78)))))*AU$8))/2000/AU$236*100","v":33.0446332327775},{"$f":"(SUMPRODUCT(AV$9:AV$229,Nutrients!$DB$8:$DB$228)+(IF($A$7=Nutrients!$B$8,Nutrients!$DB$8,Nutrients!$DB$9)*AV$7)+(((IF($A$8=Nutrients!$B$79,Nutrients!$DB$79,(IF($A$8=Nutrients!$B$77,Nutrients!$DB$77,Nutrients!$DB$78)))))*AV$8))/2000/AV$236*100","v":34.446379977281744},{"$f":"(SUMPRODUCT(AW$9:AW$229,Nutrients!$DB$8:$DB$228)+(IF($A$7=Nutrients!$B$8,Nutrients!$DB$8,Nutrients!$DB$9)*AW$7)+(((IF($A$8=Nutrients!$B$79,Nutrients!$DB$79,(IF($A$8=Nutrients!$B$77,Nutrients!$DB$77,Nutrients!$DB$78)))))*AW$8))/2000/AW$236*100","v":30.329377095070086}]
["  Met & Cys:Lys",{"$f":"(SUMPRODUCT(B$9:B$229,Nutrients!$DC$8:$DC$228)+(IF($A$7=Nutrients!$B$8,Nutrients!$DC$8,Nutrients!$DC$9)*B$7)+(((IF($A$8=Nutrients!$B$79,Nutrients!$DC$79,(IF($A$8=Nutrients!$B$77,Nutrients!$DC$77,Nutrients!$DC$78)))))*B$8))/2000/B$236*100","v":55.997569552010205},{"$f":"(SUMPRODUCT(C$9:C$229,Nutrients!$DC$8:$DC$228)+(IF($A$7=Nutrients!$B$8,Nutrients!$DC$8,Nutrients!$DC$9)*C$7)+(((IF($A$8=Nutrients!$B$79,Nutrients!$DC$79,(IF($A$8=Nutrients!$B$77,Nutrients!$DC$77,Nutrients!$DC$78)))))*C$8))/2000/C$236*100","v":55.998500355280811},{"$f":"(SUMPRODUCT(D$9:D$229,Nutrients!$DC$8:$DC$228)+(IF($A$7=Nutrients!$B$8,Nutrients!$DC$8,Nutrients!$DC$9)*D$7)+(((IF($A$8=Nutrients!$B$79,Nutrients!$DC$79,(IF($A$8=Nutrients!$B$77,Nutrients!$DC$77,Nutrients!$DC$78)))))*D$8))/2000/D$236*100","v":55.998232689384523},{"$f":"(SUMPRODUCT(E$9:E$229,Nutrients!$DC$8:$DC$228)+(IF($A$7=Nutrients!$B$8,Nutrients!$DC$8,Nutrients!$DC$9)*E$7)+(((IF($A$8=Nutrients!$B$79,Nutrients!$DC$79,(IF($A$8=Nutrients!$B$77,Nutrients!$DC$77,Nutrients!$DC$78)))))*E$8))/2000/E$236*100","v":57.061456017842524},{"$f":"(SUMPRODUCT(F$9:F$229,Nutrients!$DC$8:$DC$228)+(IF($A$7=Nutrients!$B$8,Nutrients!$DC$8,Nutrients!$DC$9)*F$7)+(((IF($A$8=Nutrients!$B$79,Nutrients!$DC$79,(IF($A$8=Nutrients!$B$77,Nutrients!$DC$77,Nutrients!$DC$78)))))*F$8))/2000/F$236*100","v":57.164463746746605},{"$f":"(SUMPRODUCT(G$9:G$229,Nutrients!$DC$8:$DC$228)+(IF($A$7=Nutrients!$B$8,Nutrients!$DC$8,Nutrients!$DC$9)*G$7)+(((IF($A$8=Nutrients!$B$79,Nutrients!$DC$79,(IF($A$8=Nutrients!$B$77,Nutrients!$DC$77,Nutrients!$DC$78)))))*G$8))/2000/G$236*100","v":57.994909290351856},null,{"$f":"(SUMPRODUCT(I$9:I$229,Nutrients!$DC$8:$DC$228)+(IF($A$7=Nutrients!$B$8,Nutrients!$DC$8,Nutrients!$DC$9)*I$7)+(((IF($A$8=Nutrients!$B$79,Nutrients!$DC$79,(IF($A$8=Nutrients!$B$77,Nutrients!$DC$77,Nutrients!$DC$78)))))*I$8))/2000/I$236*100","v":56.01149172320482},{"$f":"(SUMPRODUCT(J$9:J$229,Nutrients!$DC$8:$DC$228)+(IF($A$7=Nutrients!$B$8,Nutrients!$DC$8,Nutrients!$DC$9)*J$7)+(((IF($A$8=Nutrients!$B$79,Nutrients!$DC$79,(IF($A$8=Nutrients!$B$77,Nutrients!$DC$77,Nutrients!$DC$78)))))*J$8))/2000/J$236*100","v":55.984358388386838},{"$f":"(SUMPRODUCT(K$9:K$229,Nutrients!$DC$8:$DC$228)+(IF($A$7=Nutrients!$B$8,Nutrients!$DC$8,Nutrients!$DC$9)*K$7)+(((IF($A$8=Nutrients!$B$79,Nutrients!$DC$79,(IF($A$8=Nutrients!$B$77,Nutrients!$DC$77,Nutrients!$DC$78)))))*K$8))/2000/K$236*100","v":56.013853949686464},{"$f":"(SUMPRODUCT(L$9:L$229,Nutrients!$DC$8:$DC$228)+(IF($A$7=Nutrients!$B$8,Nutrients!$DC$8,Nutrients!$DC$9)*L$7)+(((IF($A$8=Nutrients!$B$79,Nutrients!$DC$79,(IF($A$8=Nutrients!$B$77,Nutrients!$DC$77,Nutrients!$DC$78)))))*L$8))/2000/L$236*100","v":57.002734315313909},{"$f":"(SUMPRODUCT(M$9:M$229,Nutrients!$DC$8:$DC$228)+(IF($A$7=Nutrients!$B$8,Nutrients!$DC$8,Nutrients!$DC$9)*M$7)+(((IF($A$8=Nutrients!$B$79,Nutrients!$DC$79,(IF($A$8=Nutrients!$B$77,Nutrients!$DC$77,Nutrients!$DC$78)))))*M$8))/2000/M$236*100","v":57.00305999497315},{"$f":"(SUMPRODUCT(N$9:N$229,Nutrients!$DC$8:$DC$228)+(IF($A$7=Nutrients!$B$8,Nutrients!$DC$8,Nutrients!$DC$9)*N$7)+(((IF($A$8=Nutrients!$B$79,Nutrients!$DC$79,(IF($A$8=Nutrients!$B$77,Nutrients!$DC$77,Nutrients!$DC$78)))))*N$8))/2000/N$236*100","v":57.994909290351856},null,{"$f":"(SUMPRODUCT(P$9:P$229,Nutrients!$DC$8:$DC$228)+(IF($A$7=Nutrients!$B$8,Nutrients!$DC$8,Nutrients!$DC$9)*P$7)+(((IF($A$8=Nutrients!$B$79,Nutrients!$DC$79,(IF($A$8=Nutrients!$B$77,Nutrients!$DC$77,Nutrients!$DC$78)))))*P$8))/2000/P$236*100","v":56.034845365738015},{"$f":"(SUMPRODUCT(Q$9:Q$229,Nutrients!$DC$8:$DC$228)+(IF($A$7=Nutrients!$B$8,Nutrients!$DC$8,Nutrients!$DC$9)*Q$7)+(((IF($A$8=Nutrients!$B$79,Nutrients!$DC$79,(IF($A$8=Nutrients!$B$77,Nutrients!$DC$77,Nutrients!$DC$78)))))*Q$8))/2000/Q$236*100","v":55.991916548987632},{"$f":"(SUMPRODUCT(R$9:R$229,Nutrients!$DC$8:$DC$228)+(IF($A$7=Nutrients!$B$8,Nutrients!$DC$8,Nutrients!$DC$9)*R$7)+(((IF($A$8=Nutrients!$B$79,Nutrients!$DC$79,(IF($A$8=Nutrients!$B$77,Nutrients!$DC$77,Nutrients!$DC$78)))))*R$8))/2000/R$236*100","v":56.002150748197963},{"$f":"(SUMPRODUCT(S$9:S$229,Nutrients!$DC$8:$DC$228)+(IF($A$7=Nutrients!$B$8,Nutrients!$DC$8,Nutrients!$DC$9)*S$7)+(((IF($A$8=Nutrients!$B$79,Nutrients!$DC$79,(IF($A$8=Nutrients!$B$77,Nutrients!$DC$77,Nutrients!$DC$78)))))*S$8))/2000/S$236*100","v":57.007610072729378},{"$f":"(SUMPRODUCT(T$9:T$229,Nutrients!$DC$8:$DC$228)+(IF($A$7=Nutrients!$B$8,Nutrients!$DC$8,Nutrients!$DC$9)*T$7)+(((IF($A$8=Nutrients!$B$79,Nutrients!$DC$79,(IF($A$8=Nutrients!$B$77,Nutrients!$DC$77,Nutrients!$DC$78)))))*T$8))/2000/T$236*100","v":57.391797987173121},{"$f":"(SUMPRODUCT(U$9:U$229,Nutrients!$DC$8:$DC$228)+(IF($A$7=Nutrients!$B$8,Nutrients!$DC$8,Nutrients!$DC$9)*U$7)+(((IF($A$8=Nutrients!$B$79,Nutrients!$DC$79,(IF($A$8=Nutrients!$B$77,Nutrients!$DC$77,Nutrients!$DC$78)))))*U$8))/2000/U$236*100","v":57.994909290351856},null,{"$f":"(SUMPRODUCT(W$9:W$229,Nutrients!$DC$8:$DC$228)+(IF($A$7=Nutrients!$B$8,Nutrients!$DC$8,Nutrients!$DC$9)*W$7)+(((IF($A$8=Nutrients!$B$79,Nutrients!$DC$79,(IF($A$8=Nutrients!$B$77,Nutrients!$DC$77,Nutrients!$DC$78)))))*W$8))/2000/W$236*100","v":56.015376074005907},{"$f":"(SUMPRODUCT(X$9:X$229,Nutrients!$DC$8:$DC$228)+(IF($A$7=Nutrients!$B$8,Nutrients!$DC$8,Nutrients!$DC$9)*X$7)+(((IF($A$8=Nutrients!$B$79,Nutrients!$DC$79,(IF($A$8=Nutrients!$B$77,Nutrients!$DC$77,Nutrients!$DC$78)))))*X$8))/2000/X$236*100","v":55.999927536815584},{"$f":"(SUMPRODUCT(Y$9:Y$229,Nutrients!$DC$8:$DC$228)+(IF($A$7=Nutrients!$B$8,Nutrients!$DC$8,Nutrients!$DC$9)*Y$7)+(((IF($A$8=Nutrients!$B$79,Nutrients!$DC$79,(IF($A$8=Nutrients!$B$77,Nutrients!$DC$77,Nutrients!$DC$78)))))*Y$8))/2000/Y$236*100","v":56.019681847974631},{"$f":"(SUMPRODUCT(Z$9:Z$229,Nutrients!$DC$8:$DC$228)+(IF($A$7=Nutrients!$B$8,Nutrients!$DC$8,Nutrients!$DC$9)*Z$7)+(((IF($A$8=Nutrients!$B$79,Nutrients!$DC$79,(IF($A$8=Nutrients!$B$77,Nutrients!$DC$77,Nutrients!$DC$78)))))*Z$8))/2000/Z$236*100","v":57.001922946457483},{"$f":"(SUMPRODUCT(AA$9:AA$229,Nutrients!$DC$8:$DC$228)+(IF($A$7=Nutrients!$B$8,Nutrients!$DC$8,Nutrients!$DC$9)*AA$7)+(((IF($A$8=Nutrients!$B$79,Nutrients!$DC$79,(IF($A$8=Nutrients!$B$77,Nutrients!$DC$77,Nutrients!$DC$78)))))*AA$8))/2000/AA$236*100","v":59.044355692864102},{"$f":"(SUMPRODUCT(AB$9:AB$229,Nutrients!$DC$8:$DC$228)+(IF($A$7=Nutrients!$B$8,Nutrients!$DC$8,Nutrients!$DC$9)*AB$7)+(((IF($A$8=Nutrients!$B$79,Nutrients!$DC$79,(IF($A$8=Nutrients!$B$77,Nutrients!$DC$77,Nutrients!$DC$78)))))*AB$8))/2000/AB$236*100","v":57.994909290351856},null,{"$f":"(SUMPRODUCT(AD$9:AD$229,Nutrients!$DC$8:$DC$228)+(IF($A$7=Nutrients!$B$8,Nutrients!$DC$8,Nutrients!$DC$9)*AD$7)+(((IF($A$8=Nutrients!$B$79,Nutrients!$DC$79,(IF($A$8=Nutrients!$B$77,Nutrients!$DC$77,Nutrients!$DC$78)))))*AD$8))/2000/AD$236*100","v":55.996758923331491},{"$f":"(SUMPRODUCT(AE$9:AE$229,Nutrients!$DC$8:$DC$228)+(IF($A$7=Nutrients!$B$8,Nutrients!$DC$8,Nutrients!$DC$9)*AE$7)+(((IF($A$8=Nutrients!$B$79,Nutrients!$DC$79,(IF($A$8=Nutrients!$B$77,Nutrients!$DC$77,Nutrients!$DC$78)))))*AE$8))/2000/AE$236*100","v":56.033715640061885},{"$f":"(SUMPRODUCT(AF$9:AF$229,Nutrients!$DC$8:$DC$228)+(IF($A$7=Nutrients!$B$8,Nutrients!$DC$8,Nutrients!$DC$9)*AF$7)+(((IF($A$8=Nutrients!$B$79,Nutrients!$DC$79,(IF($A$8=Nutrients!$B$77,Nutrients!$DC$77,Nutrients!$DC$78)))))*AF$8))/2000/AF$236*100","v":56.028907869483625},{"$f":"(SUMPRODUCT(AG$9:AG$229,Nutrients!$DC$8:$DC$228)+(IF($A$7=Nutrients!$B$8,Nutrients!$DC$8,Nutrients!$DC$9)*AG$7)+(((IF($A$8=Nutrients!$B$79,Nutrients!$DC$79,(IF($A$8=Nutrients!$B$77,Nutrients!$DC$77,Nutrients!$DC$78)))))*AG$8))/2000/AG$236*100","v":58.586778715152676},{"$f":"(SUMPRODUCT(AH$9:AH$229,Nutrients!$DC$8:$DC$228)+(IF($A$7=Nutrients!$B$8,Nutrients!$DC$8,Nutrients!$DC$9)*AH$7)+(((IF($A$8=Nutrients!$B$79,Nutrients!$DC$79,(IF($A$8=Nutrients!$B$77,Nutrients!$DC$77,Nutrients!$DC$78)))))*AH$8))/2000/AH$236*100","v":60.71791457514896},{"$f":"(SUMPRODUCT(AI$9:AI$229,Nutrients!$DC$8:$DC$228)+(IF($A$7=Nutrients!$B$8,Nutrients!$DC$8,Nutrients!$DC$9)*AI$7)+(((IF($A$8=Nutrients!$B$79,Nutrients!$DC$79,(IF($A$8=Nutrients!$B$77,Nutrients!$DC$77,Nutrients!$DC$78)))))*AI$8))/2000/AI$236*100","v":57.994909290351856},null,{"$f":"(SUMPRODUCT(AK$9:AK$229,Nutrients!$DC$8:$DC$228)+(IF($A$7=Nutrients!$B$8,Nutrients!$DC$8,Nutrients!$DC$9)*AK$7)+(((IF($A$8=Nutrients!$B$79,Nutrients!$DC$79,(IF($A$8=Nutrients!$B$77,Nutrients!$DC$77,Nutrients!$DC$78)))))*AK$8))/2000/AK$236*100","v":56.057930306696576},{"$f":"(SUMPRODUCT(AL$9:AL$229,Nutrients!$DC$8:$DC$228)+(IF($A$7=Nutrients!$B$8,Nutrients!$DC$8,Nutrients!$DC$9)*AL$7)+(((IF($A$8=Nutrients!$B$79,Nutrients!$DC$79,(IF($A$8=Nutrients!$B$77,Nutrients!$DC$77,Nutrients!$DC$78)))))*AL$8))/2000/AL$236*100","v":56.012130792296333},{"$f":"(SUMPRODUCT(AM$9:AM$229,Nutrients!$DC$8:$DC$228)+(IF($A$7=Nutrients!$B$8,Nutrients!$DC$8,Nutrients!$DC$9)*AM$7)+(((IF($A$8=Nutrients!$B$79,Nutrients!$DC$79,(IF($A$8=Nutrients!$B$77,Nutrients!$DC$77,Nutrients!$DC$78)))))*AM$8))/2000/AM$236*100","v":56.683591210870446},{"$f":"(SUMPRODUCT(AN$9:AN$229,Nutrients!$DC$8:$DC$228)+(IF($A$7=Nutrients!$B$8,Nutrients!$DC$8,Nutrients!$DC$9)*AN$7)+(((IF($A$8=Nutrients!$B$79,Nutrients!$DC$79,(IF($A$8=Nutrients!$B$77,Nutrients!$DC$77,Nutrients!$DC$78)))))*AN$8))/2000/AN$236*100","v":60.143430216001072},{"$f":"(SUMPRODUCT(AO$9:AO$229,Nutrients!$DC$8:$DC$228)+(IF($A$7=Nutrients!$B$8,Nutrients!$DC$8,Nutrients!$DC$9)*AO$7)+(((IF($A$8=Nutrients!$B$79,Nutrients!$DC$79,(IF($A$8=Nutrients!$B$77,Nutrients!$DC$77,Nutrients!$DC$78)))))*AO$8))/2000/AO$236*100","v":62.418754426522405},{"$f":"(SUMPRODUCT(AP$9:AP$229,Nutrients!$DC$8:$DC$228)+(IF($A$7=Nutrients!$B$8,Nutrients!$DC$8,Nutrients!$DC$9)*AP$7)+(((IF($A$8=Nutrients!$B$79,Nutrients!$DC$79,(IF($A$8=Nutrients!$B$77,Nutrients!$DC$77,Nutrients!$DC$78)))))*AP$8))/2000/AP$236*100","v":57.994909290351856},null,{"$f":"(SUMPRODUCT(AR$9:AR$229,Nutrients!$DC$8:$DC$228)+(IF($A$7=Nutrients!$B$8,Nutrients!$DC$8,Nutrients!$DC$9)*AR$7)+(((IF($A$8=Nutrients!$B$79,Nutrients!$DC$79,(IF($A$8=Nutrients!$B$77,Nutrients!$DC$77,Nutrients!$DC$78)))))*AR$8))/2000/AR$236*100","v":55.986859792365316},{"$f":"(SUMPRODUCT(AS$9:AS$229,Nutrients!$DC$8:$DC$228)+(IF($A$7=Nutrients!$B$8,Nutrients!$DC$8,Nutrients!$DC$9)*AS$7)+(((IF($A$8=Nutrients!$B$79,Nutrients!$DC$79,(IF($A$8=Nutrients!$B$77,Nutrients!$DC$77,Nutrients!$DC$78)))))*AS$8))/2000/AS$236*100","v":55.988082062014676},{"$f":"(SUMPRODUCT(AT$9:AT$229,Nutrients!$DC$8:$DC$228)+(IF($A$7=Nutrients!$B$8,Nutrients!$DC$8,Nutrients!$DC$9)*AT$7)+(((IF($A$8=Nutrients!$B$79,Nutrients!$DC$79,(IF($A$8=Nutrients!$B$77,Nutrients!$DC$77,Nutrients!$DC$78)))))*AT$8))/2000/AT$236*100","v":58.082200168367734},{"$f":"(SUMPRODUCT(AU$9:AU$229,Nutrients!$DC$8:$DC$228)+(IF($A$7=Nutrients!$B$8,Nutrients!$DC$8,Nutrients!$DC$9)*AU$7)+(((IF($A$8=Nutrients!$B$79,Nutrients!$DC$79,(IF($A$8=Nutrients!$B$77,Nutrients!$DC$77,Nutrients!$DC$78)))))*AU$8))/2000/AU$236*100","v":61.721290586303077},{"$f":"(SUMPRODUCT(AV$9:AV$229,Nutrients!$DC$8:$DC$228)+(IF($A$7=Nutrients!$B$8,Nutrients!$DC$8,Nutrients!$DC$9)*AV$7)+(((IF($A$8=Nutrients!$B$79,Nutrients!$DC$79,(IF($A$8=Nutrients!$B$77,Nutrients!$DC$77,Nutrients!$DC$78)))))*AV$8))/2000/AV$236*100","v":64.149178966816493},{"$f":"(SUMPRODUCT(AW$9:AW$229,Nutrients!$DC$8:$DC$228)+(IF($A$7=Nutrients!$B$8,Nutrients!$DC$8,Nutrients!$DC$9)*AW$7)+(((IF($A$8=Nutrients!$B$79,Nutrients!$DC$79,(IF($A$8=Nutrients!$B$77,Nutrients!$DC$77,Nutrients!$DC$78)))))*AW$8))/2000/AW$236*100","v":57.994909290351856}]
["  Thr:Lys",{"$f":"(SUMPRODUCT(B$9:B$229,Nutrients!$DF$8:$DF$228)+(IF($A$7=Nutrients!$B$8,Nutrients!$DF$8,Nutrients!$DF$9)*B$7)+(((IF($A$8=Nutrients!$B$79,Nutrients!$DF$79,(IF($A$8=Nutrients!$B$77,Nutrients!$DF$77,Nutrients!$DF$78)))))*B$8))/2000/B$236*100","v":61.999883344833172},{"$f":"(SUMPRODUCT(C$9:C$229,Nutrients!$DF$8:$DF$228)+(IF($A$7=Nutrients!$B$8,Nutrients!$DF$8,Nutrients!$DF$9)*C$7)+(((IF($A$8=Nutrients!$B$79,Nutrients!$DF$79,(IF($A$8=Nutrients!$B$77,Nutrients!$DF$77,Nutrients!$DF$78)))))*C$8))/2000/C$236*100","v":61.999810412599423},{"$f":"(SUMPRODUCT(D$9:D$229,Nutrients!$DF$8:$DF$228)+(IF($A$7=Nutrients!$B$8,Nutrients!$DF$8,Nutrients!$DF$9)*D$7)+(((IF($A$8=Nutrients!$B$79,Nutrients!$DF$79,(IF($A$8=Nutrients!$B$77,Nutrients!$DF$77,Nutrients!$DF$78)))))*D$8))/2000/D$236*100","v":61.998899620636607},{"$f":"(SUMPRODUCT(E$9:E$229,Nutrients!$DF$8:$DF$228)+(IF($A$7=Nutrients!$B$8,Nutrients!$DF$8,Nutrients!$DF$9)*E$7)+(((IF($A$8=Nutrients!$B$79,Nutrients!$DF$79,(IF($A$8=Nutrients!$B$77,Nutrients!$DF$77,Nutrients!$DF$78)))))*E$8))/2000/E$236*100","v":63.099738392882202},{"$f":"(SUMPRODUCT(F$9:F$229,Nutrients!$DF$8:$DF$228)+(IF($A$7=Nutrients!$B$8,Nutrients!$DF$8,Nutrients!$DF$9)*F$7)+(((IF($A$8=Nutrients!$B$79,Nutrients!$DF$79,(IF($A$8=Nutrients!$B$77,Nutrients!$DF$77,Nutrients!$DF$78)))))*F$8))/2000/F$236*100","v":63.259126445235324},{"$f":"(SUMPRODUCT(G$9:G$229,Nutrients!$DF$8:$DF$228)+(IF($A$7=Nutrients!$B$8,Nutrients!$DF$8,Nutrients!$DF$9)*G$7)+(((IF($A$8=Nutrients!$B$79,Nutrients!$DF$79,(IF($A$8=Nutrients!$B$77,Nutrients!$DF$77,Nutrients!$DF$78)))))*G$8))/2000/G$236*100","v":63.997526400855939},null,{"$f":"(SUMPRODUCT(I$9:I$229,Nutrients!$DF$8:$DF$228)+(IF($A$7=Nutrients!$B$8,Nutrients!$DF$8,Nutrients!$DF$9)*I$7)+(((IF($A$8=Nutrients!$B$79,Nutrients!$DF$79,(IF($A$8=Nutrients!$B$77,Nutrients!$DF$77,Nutrients!$DF$78)))))*I$8))/2000/I$236*100","v":62.000569991263156},{"$f":"(SUMPRODUCT(J$9:J$229,Nutrients!$DF$8:$DF$228)+(IF($A$7=Nutrients!$B$8,Nutrients!$DF$8,Nutrients!$DF$9)*J$7)+(((IF($A$8=Nutrients!$B$79,Nutrients!$DF$79,(IF($A$8=Nutrients!$B$77,Nutrients!$DF$77,Nutrients!$DF$78)))))*J$8))/2000/J$236*100","v":61.976182084011121},{"$f":"(SUMPRODUCT(K$9:K$229,Nutrients!$DF$8:$DF$228)+(IF($A$7=Nutrients!$B$8,Nutrients!$DF$8,Nutrients!$DF$9)*K$7)+(((IF($A$8=Nutrients!$B$79,Nutrients!$DF$79,(IF($A$8=Nutrients!$B$77,Nutrients!$DF$77,Nutrients!$DF$78)))))*K$8))/2000/K$236*100","v":62.004674175330955},{"$f":"(SUMPRODUCT(L$9:L$229,Nutrients!$DF$8:$DF$228)+(IF($A$7=Nutrients!$B$8,Nutrients!$DF$8,Nutrients!$DF$9)*L$7)+(((IF($A$8=Nutrients!$B$79,Nutrients!$DF$79,(IF($A$8=Nutrients!$B$77,Nutrients!$DF$77,Nutrients!$DF$78)))))*L$8))/2000/L$236*100","v":63.003004109558923},{"$f":"(SUMPRODUCT(M$9:M$229,Nutrients!$DF$8:$DF$228)+(IF($A$7=Nutrients!$B$8,Nutrients!$DF$8,Nutrients!$DF$9)*M$7)+(((IF($A$8=Nutrients!$B$79,Nutrients!$DF$79,(IF($A$8=Nutrients!$B$77,Nutrients!$DF$77,Nutrients!$DF$78)))))*M$8))/2000/M$236*100","v":63.000729339549096},{"$f":"(SUMPRODUCT(N$9:N$229,Nutrients!$DF$8:$DF$228)+(IF($A$7=Nutrients!$B$8,Nutrients!$DF$8,Nutrients!$DF$9)*N$7)+(((IF($A$8=Nutrients!$B$79,Nutrients!$DF$79,(IF($A$8=Nutrients!$B$77,Nutrients!$DF$77,Nutrients!$DF$78)))))*N$8))/2000/N$236*100","v":63.997526400855939},null,{"$f":"(SUMPRODUCT(P$9:P$229,Nutrients!$DF$8:$DF$228)+(IF($A$7=Nutrients!$B$8,Nutrients!$DF$8,Nutrients!$DF$9)*P$7)+(((IF($A$8=Nutrients!$B$79,Nutrients!$DF$79,(IF($A$8=Nutrients!$B$77,Nutrients!$DF$77,Nutrients!$DF$78)))))*P$8))/2000/P$236*100","v":62.000866143523311},{"$f":"(SUMPRODUCT(Q$9:Q$229,Nutrients!$DF$8:$DF$228)+(IF($A$7=Nutrients!$B$8,Nutrients!$DF$8,Nutrients!$DF$9)*Q$7)+(((IF($A$8=Nutrients!$B$79,Nutrients!$DF$79,(IF($A$8=Nutrients!$B$77,Nutrients!$DF$77,Nutrients!$DF$78)))))*Q$8))/2000/Q$236*100","v":62.001408639650002},{"$f":"(SUMPRODUCT(R$9:R$229,Nutrients!$DF$8:$DF$228)+(IF($A$7=Nutrients!$B$8,Nutrients!$DF$8,Nutrients!$DF$9)*R$7)+(((IF($A$8=Nutrients!$B$79,Nutrients!$DF$79,(IF($A$8=Nutrients!$B$77,Nutrients!$DF$77,Nutrients!$DF$78)))))*R$8))/2000/R$236*100","v":62.00346788903154},{"$f":"(SUMPRODUCT(S$9:S$229,Nutrients!$DF$8:$DF$228)+(IF($A$7=Nutrients!$B$8,Nutrients!$DF$8,Nutrients!$DF$9)*S$7)+(((IF($A$8=Nutrients!$B$79,Nutrients!$DF$79,(IF($A$8=Nutrients!$B$77,Nutrients!$DF$77,Nutrients!$DF$78)))))*S$8))/2000/S$236*100","v":63.001707070664516},{"$f":"(SUMPRODUCT(T$9:T$229,Nutrients!$DF$8:$DF$228)+(IF($A$7=Nutrients!$B$8,Nutrients!$DF$8,Nutrients!$DF$9)*T$7)+(((IF($A$8=Nutrients!$B$79,Nutrients!$DF$79,(IF($A$8=Nutrients!$B$77,Nutrients!$DF$77,Nutrients!$DF$78)))))*T$8))/2000/T$236*100","v":63.00057394345616},{"$f":"(SUMPRODUCT(U$9:U$229,Nutrients!$DF$8:$DF$228)+(IF($A$7=Nutrients!$B$8,Nutrients!$DF$8,Nutrients!$DF$9)*U$7)+(((IF($A$8=Nutrients!$B$79,Nutrients!$DF$79,(IF($A$8=Nutrients!$B$77,Nutrients!$DF$77,Nutrients!$DF$78)))))*U$8))/2000/U$236*100","v":63.997526400855939},null,{"$f":"(SUMPRODUCT(W$9:W$229,Nutrients!$DF$8:$DF$228)+(IF($A$7=Nutrients!$B$8,Nutrients!$DF$8,Nutrients!$DF$9)*W$7)+(((IF($A$8=Nutrients!$B$79,Nutrients!$DF$79,(IF($A$8=Nutrients!$B$77,Nutrients!$DF$77,Nutrients!$DF$78)))))*W$8))/2000/W$236*100","v":62.019961395155306},{"$f":"(SUMPRODUCT(X$9:X$229,Nutrients!$DF$8:$DF$228)+(IF($A$7=Nutrients!$B$8,Nutrients!$DF$8,Nutrients!$DF$9)*X$7)+(((IF($A$8=Nutrients!$B$79,Nutrients!$DF$79,(IF($A$8=Nutrients!$B$77,Nutrients!$DF$77,Nutrients!$DF$78)))))*X$8))/2000/X$236*100","v":62.017334341729956},{"$f":"(SUMPRODUCT(Y$9:Y$229,Nutrients!$DF$8:$DF$228)+(IF($A$7=Nutrients!$B$8,Nutrients!$DF$8,Nutrients!$DF$9)*Y$7)+(((IF($A$8=Nutrients!$B$79,Nutrients!$DF$79,(IF($A$8=Nutrients!$B$77,Nutrients!$DF$77,Nutrients!$DF$78)))))*Y$8))/2000/Y$236*100","v":62.02396547033662},{"$f":"(SUMPRODUCT(Z$9:Z$229,Nutrients!$DF$8:$DF$228)+(IF($A$7=Nutrients!$B$8,Nutrients!$DF$8,Nutrients!$DF$9)*Z$7)+(((IF($A$8=Nutrients!$B$79,Nutrients!$DF$79,(IF($A$8=Nutrients!$B$77,Nutrients!$DF$77,Nutrients!$DF$78)))))*Z$8))/2000/Z$236*100","v":63.021776413838424},{"$f":"(SUMPRODUCT(AA$9:AA$229,Nutrients!$DF$8:$DF$228)+(IF($A$7=Nutrients!$B$8,Nutrients!$DF$8,Nutrients!$DF$9)*AA$7)+(((IF($A$8=Nutrients!$B$79,Nutrients!$DF$79,(IF($A$8=Nutrients!$B$77,Nutrients!$DF$77,Nutrients!$DF$78)))))*AA$8))/2000/AA$236*100","v":63.015529108591942},{"$f":"(SUMPRODUCT(AB$9:AB$229,Nutrients!$DF$8:$DF$228)+(IF($A$7=Nutrients!$B$8,Nutrients!$DF$8,Nutrients!$DF$9)*AB$7)+(((IF($A$8=Nutrients!$B$79,Nutrients!$DF$79,(IF($A$8=Nutrients!$B$77,Nutrients!$DF$77,Nutrients!$DF$78)))))*AB$8))/2000/AB$236*100","v":63.997526400855939},null,{"$f":"(SUMPRODUCT(AD$9:AD$229,Nutrients!$DF$8:$DF$228)+(IF($A$7=Nutrients!$B$8,Nutrients!$DF$8,Nutrients!$DF$9)*AD$7)+(((IF($A$8=Nutrients!$B$79,Nutrients!$DF$79,(IF($A$8=Nutrients!$B$77,Nutrients!$DF$77,Nutrients!$DF$78)))))*AD$8))/2000/AD$236*100","v":62.039546294056755},{"$f":"(SUMPRODUCT(AE$9:AE$229,Nutrients!$DF$8:$DF$228)+(IF($A$7=Nutrients!$B$8,Nutrients!$DF$8,Nutrients!$DF$9)*AE$7)+(((IF($A$8=Nutrients!$B$79,Nutrients!$DF$79,(IF($A$8=Nutrients!$B$77,Nutrients!$DF$77,Nutrients!$DF$78)))))*AE$8))/2000/AE$236*100","v":62.041405978794003},{"$f":"(SUMPRODUCT(AF$9:AF$229,Nutrients!$DF$8:$DF$228)+(IF($A$7=Nutrients!$B$8,Nutrients!$DF$8,Nutrients!$DF$9)*AF$7)+(((IF($A$8=Nutrients!$B$79,Nutrients!$DF$79,(IF($A$8=Nutrients!$B$77,Nutrients!$DF$77,Nutrients!$DF$78)))))*AF$8))/2000/AF$236*100","v":62.041877025411537},{"$f":"(SUMPRODUCT(AG$9:AG$229,Nutrients!$DF$8:$DF$228)+(IF($A$7=Nutrients!$B$8,Nutrients!$DF$8,Nutrients!$DF$9)*AG$7)+(((IF($A$8=Nutrients!$B$79,Nutrients!$DF$79,(IF($A$8=Nutrients!$B$77,Nutrients!$DF$77,Nutrients!$DF$78)))))*AG$8))/2000/AG$236*100","v":63.040288955718957},{"$f":"(SUMPRODUCT(AH$9:AH$229,Nutrients!$DF$8:$DF$228)+(IF($A$7=Nutrients!$B$8,Nutrients!$DF$8,Nutrients!$DF$9)*AH$7)+(((IF($A$8=Nutrients!$B$79,Nutrients!$DF$79,(IF($A$8=Nutrients!$B$77,Nutrients!$DF$77,Nutrients!$DF$78)))))*AH$8))/2000/AH$236*100","v":63.025396847040184},{"$f":"(SUMPRODUCT(AI$9:AI$229,Nutrients!$DF$8:$DF$228)+(IF($A$7=Nutrients!$B$8,Nutrients!$DF$8,Nutrients!$DF$9)*AI$7)+(((IF($A$8=Nutrients!$B$79,Nutrients!$DF$79,(IF($A$8=Nutrients!$B$77,Nutrients!$DF$77,Nutrients!$DF$78)))))*AI$8))/2000/AI$236*100","v":63.997526400855939},null,{"$f":"(SUMPRODUCT(AK$9:AK$229,Nutrients!$DF$8:$DF$228)+(IF($A$7=Nutrients!$B$8,Nutrients!$DF$8,Nutrients!$DF$9)*AK$7)+(((IF($A$8=Nutrients!$B$79,Nutrients!$DF$79,(IF($A$8=Nutrients!$B$77,Nutrients!$DF$77,Nutrients!$DF$78)))))*AK$8))/2000/AK$236*100","v":62.057341803845581},{"$f":"(SUMPRODUCT(AL$9:AL$229,Nutrients!$DF$8:$DF$228)+(IF($A$7=Nutrients!$B$8,Nutrients!$DF$8,Nutrients!$DF$9)*AL$7)+(((IF($A$8=Nutrients!$B$79,Nutrients!$DF$79,(IF($A$8=Nutrients!$B$77,Nutrients!$DF$77,Nutrients!$DF$78)))))*AL$8))/2000/AL$236*100","v":62.063823469880653},{"$f":"(SUMPRODUCT(AM$9:AM$229,Nutrients!$DF$8:$DF$228)+(IF($A$7=Nutrients!$B$8,Nutrients!$DF$8,Nutrients!$DF$9)*AM$7)+(((IF($A$8=Nutrients!$B$79,Nutrients!$DF$79,(IF($A$8=Nutrients!$B$77,Nutrients!$DF$77,Nutrients!$DF$78)))))*AM$8))/2000/AM$236*100","v":62.058294645741661},{"$f":"(SUMPRODUCT(AN$9:AN$229,Nutrients!$DF$8:$DF$228)+(IF($A$7=Nutrients!$B$8,Nutrients!$DF$8,Nutrients!$DF$9)*AN$7)+(((IF($A$8=Nutrients!$B$79,Nutrients!$DF$79,(IF($A$8=Nutrients!$B$77,Nutrients!$DF$77,Nutrients!$DF$78)))))*AN$8))/2000/AN$236*100","v":63.05547000741398},{"$f":"(SUMPRODUCT(AO$9:AO$229,Nutrients!$DF$8:$DF$228)+(IF($A$7=Nutrients!$B$8,Nutrients!$DF$8,Nutrients!$DF$9)*AO$7)+(((IF($A$8=Nutrients!$B$79,Nutrients!$DF$79,(IF($A$8=Nutrients!$B$77,Nutrients!$DF$77,Nutrients!$DF$78)))))*AO$8))/2000/AO$236*100","v":63.033632444729037},{"$f":"(SUMPRODUCT(AP$9:AP$229,Nutrients!$DF$8:$DF$228)+(IF($A$7=Nutrients!$B$8,Nutrients!$DF$8,Nutrients!$DF$9)*AP$7)+(((IF($A$8=Nutrients!$B$79,Nutrients!$DF$79,(IF($A$8=Nutrients!$B$77,Nutrients!$DF$77,Nutrients!$DF$78)))))*AP$8))/2000/AP$236*100","v":63.997526400855939},null,{"$f":"(SUMPRODUCT(AR$9:AR$229,Nutrients!$DF$8:$DF$228)+(IF($A$7=Nutrients!$B$8,Nutrients!$DF$8,Nutrients!$DF$9)*AR$7)+(((IF($A$8=Nutrients!$B$79,Nutrients!$DF$79,(IF($A$8=Nutrients!$B$77,Nutrients!$DF$77,Nutrients!$DF$78)))))*AR$8))/2000/AR$236*100","v":62.060914703398041},{"$f":"(SUMPRODUCT(AS$9:AS$229,Nutrients!$DF$8:$DF$228)+(IF($A$7=Nutrients!$B$8,Nutrients!$DF$8,Nutrients!$DF$9)*AS$7)+(((IF($A$8=Nutrients!$B$79,Nutrients!$DF$79,(IF($A$8=Nutrients!$B$77,Nutrients!$DF$77,Nutrients!$DF$78)))))*AS$8))/2000/AS$236*100","v":62.085606929240235},{"$f":"(SUMPRODUCT(AT$9:AT$229,Nutrients!$DF$8:$DF$228)+(IF($A$7=Nutrients!$B$8,Nutrients!$DF$8,Nutrients!$DF$9)*AT$7)+(((IF($A$8=Nutrients!$B$79,Nutrients!$DF$79,(IF($A$8=Nutrients!$B$77,Nutrients!$DF$77,Nutrients!$DF$78)))))*AT$8))/2000/AT$236*100","v":62.072081271203729},{"$f":"(SUMPRODUCT(AU$9:AU$229,Nutrients!$DF$8:$DF$228)+(IF($A$7=Nutrients!$B$8,Nutrients!$DF$8,Nutrients!$DF$9)*AU$7)+(((IF($A$8=Nutrients!$B$79,Nutrients!$DF$79,(IF($A$8=Nutrients!$B$77,Nutrients!$DF$77,Nutrients!$DF$78)))))*AU$8))/2000/AU$236*100","v":63.067364235897763},{"$f":"(SUMPRODUCT(AV$9:AV$229,Nutrients!$DF$8:$DF$228)+(IF($A$7=Nutrients!$B$8,Nutrients!$DF$8,Nutrients!$DF$9)*AV$7)+(((IF($A$8=Nutrients!$B$79,Nutrients!$DF$79,(IF($A$8=Nutrients!$B$77,Nutrients!$DF$77,Nutrients!$DF$78)))))*AV$8))/2000/AV$236*100","v":63.041943485202964},{"$f":"(SUMPRODUCT(AW$9:AW$229,Nutrients!$DF$8:$DF$228)+(IF($A$7=Nutrients!$B$8,Nutrients!$DF$8,Nutrients!$DF$9)*AW$7)+(((IF($A$8=Nutrients!$B$79,Nutrients!$DF$79,(IF($A$8=Nutrients!$B$77,Nutrients!$DF$77,Nutrients!$DF$78)))))*AW$8))/2000/AW$236*100","v":63.997526400855939}]
["  Trp:Lys",{"$f":"(SUMPRODUCT(B$9:B$229,Nutrients!$DG$8:$DG$228)+(IF($A$7=Nutrients!$B$8,Nutrients!$DG$8,Nutrients!$DG$9)*B$7)+(((IF($A$8=Nutrients!$B$79,Nutrients!$DG$79,(IF($A$8=Nutrients!$B$77,Nutrients!$DG$77,Nutrients!$DG$78)))))*B$8))/2000/B$236*100","v":19.000000000000007},{"$f":"(SUMPRODUCT(C$9:C$229,Nutrients!$DG$8:$DG$228)+(IF($A$7=Nutrients!$B$8,Nutrients!$DG$8,Nutrients!$DG$9)*C$7)+(((IF($A$8=Nutrients!$B$79,Nutrients!$DG$79,(IF($A$8=Nutrients!$B$77,Nutrients!$DG$77,Nutrients!$DG$78)))))*C$8))/2000/C$236*100","v":18.999991891262606},{"$f":"(SUMPRODUCT(D$9:D$229,Nutrients!$DG$8:$DG$228)+(IF($A$7=Nutrients!$B$8,Nutrients!$DG$8,Nutrients!$DG$9)*D$7)+(((IF($A$8=Nutrients!$B$79,Nutrients!$DG$79,(IF($A$8=Nutrients!$B$77,Nutrients!$DG$77,Nutrients!$DG$78)))))*D$8))/2000/D$236*100","v":18.999965465148328},{"$f":"(SUMPRODUCT(E$9:E$229,Nutrients!$DG$8:$DG$228)+(IF($A$7=Nutrients!$B$8,Nutrients!$DG$8,Nutrients!$DG$9)*E$7)+(((IF($A$8=Nutrients!$B$79,Nutrients!$DG$79,(IF($A$8=Nutrients!$B$77,Nutrients!$DG$77,Nutrients!$DG$78)))))*E$8))/2000/E$236*100","v":19.040987478551372},{"$f":"(SUMPRODUCT(F$9:F$229,Nutrients!$DG$8:$DG$228)+(IF($A$7=Nutrients!$B$8,Nutrients!$DG$8,Nutrients!$DG$9)*F$7)+(((IF($A$8=Nutrients!$B$79,Nutrients!$DG$79,(IF($A$8=Nutrients!$B$77,Nutrients!$DG$77,Nutrients!$DG$78)))))*F$8))/2000/F$236*100","v":19.105485625301228},{"$f":"(SUMPRODUCT(G$9:G$229,Nutrients!$DG$8:$DG$228)+(IF($A$7=Nutrients!$B$8,Nutrients!$DG$8,Nutrients!$DG$9)*G$7)+(((IF($A$8=Nutrients!$B$79,Nutrients!$DG$79,(IF($A$8=Nutrients!$B$77,Nutrients!$DG$77,Nutrients!$DG$78)))))*G$8))/2000/G$236*100","v":19.003555679157927},null,{"$f":"(SUMPRODUCT(I$9:I$229,Nutrients!$DG$8:$DG$228)+(IF($A$7=Nutrients!$B$8,Nutrients!$DG$8,Nutrients!$DG$9)*I$7)+(((IF($A$8=Nutrients!$B$79,Nutrients!$DG$79,(IF($A$8=Nutrients!$B$77,Nutrients!$DG$77,Nutrients!$DG$78)))))*I$8))/2000/I$236*100","v":19.000021565173054},{"$f":"(SUMPRODUCT(J$9:J$229,Nutrients!$DG$8:$DG$228)+(IF($A$7=Nutrients!$B$8,Nutrients!$DG$8,Nutrients!$DG$9)*J$7)+(((IF($A$8=Nutrients!$B$79,Nutrients!$DG$79,(IF($A$8=Nutrients!$B$77,Nutrients!$DG$77,Nutrients!$DG$78)))))*J$8))/2000/J$236*100","v":19.000106319067076},{"$f":"(SUMPRODUCT(K$9:K$229,Nutrients!$DG$8:$DG$228)+(IF($A$7=Nutrients!$B$8,Nutrients!$DG$8,Nutrients!$DG$9)*K$7)+(((IF($A$8=Nutrients!$B$79,Nutrients!$DG$79,(IF($A$8=Nutrients!$B$77,Nutrients!$DG$77,Nutrients!$DG$78)))))*K$8))/2000/K$236*100","v":19.000216013324174},{"$f":"(SUMPRODUCT(L$9:L$229,Nutrients!$DG$8:$DG$228)+(IF($A$7=Nutrients!$B$8,Nutrients!$DG$8,Nutrients!$DG$9)*L$7)+(((IF($A$8=Nutrients!$B$79,Nutrients!$DG$79,(IF($A$8=Nutrients!$B$77,Nutrients!$DG$77,Nutrients!$DG$78)))))*L$8))/2000/L$236*100","v":19.000123495960423},{"$f":"(SUMPRODUCT(M$9:M$229,Nutrients!$DG$8:$DG$228)+(IF($A$7=Nutrients!$B$8,Nutrients!$DG$8,Nutrients!$DG$9)*M$7)+(((IF($A$8=Nutrients!$B$79,Nutrients!$DG$79,(IF($A$8=Nutrients!$B$77,Nutrients!$DG$77,Nutrients!$DG$78)))))*M$8))/2000/M$236*100","v":19.0000239538867},{"$f":"(SUMPRODUCT(N$9:N$229,Nutrients!$DG$8:$DG$228)+(IF($A$7=Nutrients!$B$8,Nutrients!$DG$8,Nutrients!$DG$9)*N$7)+(((IF($A$8=Nutrients!$B$79,Nutrients!$DG$79,(IF($A$8=Nutrients!$B$77,Nutrients!$DG$77,Nutrients!$DG$78)))))*N$8))/2000/N$236*100","v":19.003555679157927},null,{"$f":"(SUMPRODUCT(P$9:P$229,Nutrients!$DG$8:$DG$228)+(IF($A$7=Nutrients!$B$8,Nutrients!$DG$8,Nutrients!$DG$9)*P$7)+(((IF($A$8=Nutrients!$B$79,Nutrients!$DG$79,(IF($A$8=Nutrients!$B$77,Nutrients!$DG$77,Nutrients!$DG$78)))))*P$8))/2000/P$236*100","v":19.000045132863594},{"$f":"(SUMPRODUCT(Q$9:Q$229,Nutrients!$DG$8:$DG$228)+(IF($A$7=Nutrients!$B$8,Nutrients!$DG$8,Nutrients!$DG$9)*Q$7)+(((IF($A$8=Nutrients!$B$79,Nutrients!$DG$79,(IF($A$8=Nutrients!$B$77,Nutrients!$DG$77,Nutrients!$DG$78)))))*Q$8))/2000/Q$236*100","v":19.000062629007488},{"$f":"(SUMPRODUCT(R$9:R$229,Nutrients!$DG$8:$DG$228)+(IF($A$7=Nutrients!$B$8,Nutrients!$DG$8,Nutrients!$DG$9)*R$7)+(((IF($A$8=Nutrients!$B$79,Nutrients!$DG$79,(IF($A$8=Nutrients!$B$77,Nutrients!$DG$77,Nutrients!$DG$78)))))*R$8))/2000/R$236*100","v":18.980689159350675},{"$f":"(SUMPRODUCT(S$9:S$229,Nutrients!$DG$8:$DG$228)+(IF($A$7=Nutrients!$B$8,Nutrients!$DG$8,Nutrients!$DG$9)*S$7)+(((IF($A$8=Nutrients!$B$79,Nutrients!$DG$79,(IF($A$8=Nutrients!$B$77,Nutrients!$DG$77,Nutrients!$DG$78)))))*S$8))/2000/S$236*100","v":18.976243459195636},{"$f":"(SUMPRODUCT(T$9:T$229,Nutrients!$DG$8:$DG$228)+(IF($A$7=Nutrients!$B$8,Nutrients!$DG$8,Nutrients!$DG$9)*T$7)+(((IF($A$8=Nutrients!$B$79,Nutrients!$DG$79,(IF($A$8=Nutrients!$B$77,Nutrients!$DG$77,Nutrients!$DG$78)))))*T$8))/2000/T$236*100","v":18.977622840948218},{"$f":"(SUMPRODUCT(U$9:U$229,Nutrients!$DG$8:$DG$228)+(IF($A$7=Nutrients!$B$8,Nutrients!$DG$8,Nutrients!$DG$9)*U$7)+(((IF($A$8=Nutrients!$B$79,Nutrients!$DG$79,(IF($A$8=Nutrients!$B$77,Nutrients!$DG$77,Nutrients!$DG$78)))))*U$8))/2000/U$236*100","v":19.003555679157927},null,{"$f":"(SUMPRODUCT(W$9:W$229,Nutrients!$DG$8:$DG$228)+(IF($A$7=Nutrients!$B$8,Nutrients!$DG$8,Nutrients!$DG$9)*W$7)+(((IF($A$8=Nutrients!$B$79,Nutrients!$DG$79,(IF($A$8=Nutrients!$B$77,Nutrients!$DG$77,Nutrients!$DG$78)))))*W$8))/2000/W$236*100","v":18.979086330404591},{"$f":"(SUMPRODUCT(X$9:X$229,Nutrients!$DG$8:$DG$228)+(IF($A$7=Nutrients!$B$8,Nutrients!$DG$8,Nutrients!$DG$9)*X$7)+(((IF($A$8=Nutrients!$B$79,Nutrients!$DG$79,(IF($A$8=Nutrients!$B$77,Nutrients!$DG$77,Nutrients!$DG$78)))))*X$8))/2000/X$236*100","v":18.979429276835386},{"$f":"(SUMPRODUCT(Y$9:Y$229,Nutrients!$DG$8:$DG$228)+(IF($A$7=Nutrients!$B$8,Nutrients!$DG$8,Nutrients!$DG$9)*Y$7)+(((IF($A$8=Nutrients!$B$79,Nutrients!$DG$79,(IF($A$8=Nutrients!$B$77,Nutrients!$DG$77,Nutrients!$DG$78)))))*Y$8))/2000/Y$236*100","v":18.955467499026245},{"$f":"(SUMPRODUCT(Z$9:Z$229,Nutrients!$DG$8:$DG$228)+(IF($A$7=Nutrients!$B$8,Nutrients!$DG$8,Nutrients!$DG$9)*Z$7)+(((IF($A$8=Nutrients!$B$79,Nutrients!$DG$79,(IF($A$8=Nutrients!$B$77,Nutrients!$DG$77,Nutrients!$DG$78)))))*Z$8))/2000/Z$236*100","v":18.953497006970814},{"$f":"(SUMPRODUCT(AA$9:AA$229,Nutrients!$DG$8:$DG$228)+(IF($A$7=Nutrients!$B$8,Nutrients!$DG$8,Nutrients!$DG$9)*AA$7)+(((IF($A$8=Nutrients!$B$79,Nutrients!$DG$79,(IF($A$8=Nutrients!$B$77,Nutrients!$DG$77,Nutrients!$DG$78)))))*AA$8))/2000/AA$236*100","v":18.95518018703978},{"$f":"(SUMPRODUCT(AB$9:AB$229,Nutrients!$DG$8:$DG$228)+(IF($A$7=Nutrients!$B$8,Nutrients!$DG$8,Nutrients!$DG$9)*AB$7)+(((IF($A$8=Nutrients!$B$79,Nutrients!$DG$79,(IF($A$8=Nutrients!$B$77,Nutrients!$DG$77,Nutrients!$DG$78)))))*AB$8))/2000/AB$236*100","v":19.003555679157927},null,{"$f":"(SUMPRODUCT(AD$9:AD$229,Nutrients!$DG$8:$DG$228)+(IF($A$7=Nutrients!$B$8,Nutrients!$DG$8,Nutrients!$DG$9)*AD$7)+(((IF($A$8=Nutrients!$B$79,Nutrients!$DG$79,(IF($A$8=Nutrients!$B$77,Nutrients!$DG$77,Nutrients!$DG$78)))))*AD$8))/2000/AD$236*100","v":18.999998349334629},{"$f":"(SUMPRODUCT(AE$9:AE$229,Nutrients!$DG$8:$DG$228)+(IF($A$7=Nutrients!$B$8,Nutrients!$DG$8,Nutrients!$DG$9)*AE$7)+(((IF($A$8=Nutrients!$B$79,Nutrients!$DG$79,(IF($A$8=Nutrients!$B$77,Nutrients!$DG$77,Nutrients!$DG$78)))))*AE$8))/2000/AE$236*100","v":19.001879916778723},{"$f":"(SUMPRODUCT(AF$9:AF$229,Nutrients!$DG$8:$DG$228)+(IF($A$7=Nutrients!$B$8,Nutrients!$DG$8,Nutrients!$DG$9)*AF$7)+(((IF($A$8=Nutrients!$B$79,Nutrients!$DG$79,(IF($A$8=Nutrients!$B$77,Nutrients!$DG$77,Nutrients!$DG$78)))))*AF$8))/2000/AF$236*100","v":18.985584718187621},{"$f":"(SUMPRODUCT(AG$9:AG$229,Nutrients!$DG$8:$DG$228)+(IF($A$7=Nutrients!$B$8,Nutrients!$DG$8,Nutrients!$DG$9)*AG$7)+(((IF($A$8=Nutrients!$B$79,Nutrients!$DG$79,(IF($A$8=Nutrients!$B$77,Nutrients!$DG$77,Nutrients!$DG$78)))))*AG$8))/2000/AG$236*100","v":18.991357324250398},{"$f":"(SUMPRODUCT(AH$9:AH$229,Nutrients!$DG$8:$DG$228)+(IF($A$7=Nutrients!$B$8,Nutrients!$DG$8,Nutrients!$DG$9)*AH$7)+(((IF($A$8=Nutrients!$B$79,Nutrients!$DG$79,(IF($A$8=Nutrients!$B$77,Nutrients!$DG$77,Nutrients!$DG$78)))))*AH$8))/2000/AH$236*100","v":18.996101811466037},{"$f":"(SUMPRODUCT(AI$9:AI$229,Nutrients!$DG$8:$DG$228)+(IF($A$7=Nutrients!$B$8,Nutrients!$DG$8,Nutrients!$DG$9)*AI$7)+(((IF($A$8=Nutrients!$B$79,Nutrients!$DG$79,(IF($A$8=Nutrients!$B$77,Nutrients!$DG$77,Nutrients!$DG$78)))))*AI$8))/2000/AI$236*100","v":19.003555679157927},null,{"$f":"(SUMPRODUCT(AK$9:AK$229,Nutrients!$DG$8:$DG$228)+(IF($A$7=Nutrients!$B$8,Nutrients!$DG$8,Nutrients!$DG$9)*AK$7)+(((IF($A$8=Nutrients!$B$79,Nutrients!$DG$79,(IF($A$8=Nutrients!$B$77,Nutrients!$DG$77,Nutrients!$DG$78)))))*AK$8))/2000/AK$236*100","v":18.979491605980865},{"$f":"(SUMPRODUCT(AL$9:AL$229,Nutrients!$DG$8:$DG$228)+(IF($A$7=Nutrients!$B$8,Nutrients!$DG$8,Nutrients!$DG$9)*AL$7)+(((IF($A$8=Nutrients!$B$79,Nutrients!$DG$79,(IF($A$8=Nutrients!$B$77,Nutrients!$DG$77,Nutrients!$DG$78)))))*AL$8))/2000/AL$236*100","v":18.97756817774204},{"$f":"(SUMPRODUCT(AM$9:AM$229,Nutrients!$DG$8:$DG$228)+(IF($A$7=Nutrients!$B$8,Nutrients!$DG$8,Nutrients!$DG$9)*AM$7)+(((IF($A$8=Nutrients!$B$79,Nutrients!$DG$79,(IF($A$8=Nutrients!$B$77,Nutrients!$DG$77,Nutrients!$DG$78)))))*AM$8))/2000/AM$236*100","v":18.96185059433688},{"$f":"(SUMPRODUCT(AN$9:AN$229,Nutrients!$DG$8:$DG$228)+(IF($A$7=Nutrients!$B$8,Nutrients!$DG$8,Nutrients!$DG$9)*AN$7)+(((IF($A$8=Nutrients!$B$79,Nutrients!$DG$79,(IF($A$8=Nutrients!$B$77,Nutrients!$DG$77,Nutrients!$DG$78)))))*AN$8))/2000/AN$236*100","v":18.965916484851039},{"$f":"(SUMPRODUCT(AO$9:AO$229,Nutrients!$DG$8:$DG$228)+(IF($A$7=Nutrients!$B$8,Nutrients!$DG$8,Nutrients!$DG$9)*AO$7)+(((IF($A$8=Nutrients!$B$79,Nutrients!$DG$79,(IF($A$8=Nutrients!$B$77,Nutrients!$DG$77,Nutrients!$DG$78)))))*AO$8))/2000/AO$236*100","v":18.969215337570489},{"$f":"(SUMPRODUCT(AP$9:AP$229,Nutrients!$DG$8:$DG$228)+(IF($A$7=Nutrients!$B$8,Nutrients!$DG$8,Nutrients!$DG$9)*AP$7)+(((IF($A$8=Nutrients!$B$79,Nutrients!$DG$79,(IF($A$8=Nutrients!$B$77,Nutrients!$DG$77,Nutrients!$DG$78)))))*AP$8))/2000/AP$236*100","v":19.003555679157927},null,{"$f":"(SUMPRODUCT(AR$9:AR$229,Nutrients!$DG$8:$DG$228)+(IF($A$7=Nutrients!$B$8,Nutrients!$DG$8,Nutrients!$DG$9)*AR$7)+(((IF($A$8=Nutrients!$B$79,Nutrients!$DG$79,(IF($A$8=Nutrients!$B$77,Nutrients!$DG$77,Nutrients!$DG$78)))))*AR$8))/2000/AR$236*100","v":18.967024067409842},{"$f":"(SUMPRODUCT(AS$9:AS$229,Nutrients!$DG$8:$DG$228)+(IF($A$7=Nutrients!$B$8,Nutrients!$DG$8,Nutrients!$DG$9)*AS$7)+(((IF($A$8=Nutrients!$B$79,Nutrients!$DG$79,(IF($A$8=Nutrients!$B$77,Nutrients!$DG$77,Nutrients!$DG$78)))))*AS$8))/2000/AS$236*100","v":18.952848679969303},{"$f":"(SUMPRODUCT(AT$9:AT$229,Nutrients!$DG$8:$DG$228)+(IF($A$7=Nutrients!$B$8,Nutrients!$DG$8,Nutrients!$DG$9)*AT$7)+(((IF($A$8=Nutrients!$B$79,Nutrients!$DG$79,(IF($A$8=Nutrients!$B$77,Nutrients!$DG$77,Nutrients!$DG$78)))))*AT$8))/2000/AT$236*100","v":18.938753640222636},{"$f":"(SUMPRODUCT(AU$9:AU$229,Nutrients!$DG$8:$DG$228)+(IF($A$7=Nutrients!$B$8,Nutrients!$DG$8,Nutrients!$DG$9)*AU$7)+(((IF($A$8=Nutrients!$B$79,Nutrients!$DG$79,(IF($A$8=Nutrients!$B$77,Nutrients!$DG$77,Nutrients!$DG$78)))))*AU$8))/2000/AU$236*100","v":18.938834070770465},{"$f":"(SUMPRODUCT(AV$9:AV$229,Nutrients!$DG$8:$DG$228)+(IF($A$7=Nutrients!$B$8,Nutrients!$DG$8,Nutrients!$DG$9)*AV$7)+(((IF($A$8=Nutrients!$B$79,Nutrients!$DG$79,(IF($A$8=Nutrients!$B$77,Nutrients!$DG$77,Nutrients!$DG$78)))))*AV$8))/2000/AV$236*100","v":18.941890916379979},{"$f":"(SUMPRODUCT(AW$9:AW$229,Nutrients!$DG$8:$DG$228)+(IF($A$7=Nutrients!$B$8,Nutrients!$DG$8,Nutrients!$DG$9)*AW$7)+(((IF($A$8=Nutrients!$B$79,Nutrients!$DG$79,(IF($A$8=Nutrients!$B$77,Nutrients!$DG$77,Nutrients!$DG$78)))))*AW$8))/2000/AW$236*100","v":19.003555679157927}]
["  Val:Lys",{"$f":"(SUMPRODUCT(B$9:B$229,Nutrients!$DH$8:$DH$228)+(IF($A$7=Nutrients!$B$8,Nutrients!$DH$8,Nutrients!$DH$9)*B$7)+(((IF($A$8=Nutrients!$B$79,Nutrients!$DH$79,(IF($A$8=Nutrients!$B$77,Nutrients!$DH$77,Nutrients!$DH$78)))))*B$8))/2000/B$236*100","v":67.999142547613729},{"$f":"(SUMPRODUCT(C$9:C$229,Nutrients!$DH$8:$DH$228)+(IF($A$7=Nutrients!$B$8,Nutrients!$DH$8,Nutrients!$DH$9)*C$7)+(((IF($A$8=Nutrients!$B$79,Nutrients!$DH$79,(IF($A$8=Nutrients!$B$77,Nutrients!$DH$77,Nutrients!$DH$78)))))*C$8))/2000/C$236*100","v":68.120000000000076},{"$f":"(SUMPRODUCT(D$9:D$229,Nutrients!$DH$8:$DH$228)+(IF($A$7=Nutrients!$B$8,Nutrients!$DH$8,Nutrients!$DH$9)*D$7)+(((IF($A$8=Nutrients!$B$79,Nutrients!$DH$79,(IF($A$8=Nutrients!$B$77,Nutrients!$DH$77,Nutrients!$DH$78)))))*D$8))/2000/D$236*100","v":68.530000000000015},{"$f":"(SUMPRODUCT(E$9:E$229,Nutrients!$DH$8:$DH$228)+(IF($A$7=Nutrients!$B$8,Nutrients!$DH$8,Nutrients!$DH$9)*E$7)+(((IF($A$8=Nutrients!$B$79,Nutrients!$DH$79,(IF($A$8=Nutrients!$B$77,Nutrients!$DH$77,Nutrients!$DH$78)))))*E$8))/2000/E$236*100","v":69.691537460576043},{"$f":"(SUMPRODUCT(F$9:F$229,Nutrients!$DH$8:$DH$228)+(IF($A$7=Nutrients!$B$8,Nutrients!$DH$8,Nutrients!$DH$9)*F$7)+(((IF($A$8=Nutrients!$B$79,Nutrients!$DH$79,(IF($A$8=Nutrients!$B$77,Nutrients!$DH$77,Nutrients!$DH$78)))))*F$8))/2000/F$236*100","v":70.432280668663623},{"$f":"(SUMPRODUCT(G$9:G$229,Nutrients!$DH$8:$DH$228)+(IF($A$7=Nutrients!$B$8,Nutrients!$DH$8,Nutrients!$DH$9)*G$7)+(((IF($A$8=Nutrients!$B$79,Nutrients!$DH$79,(IF($A$8=Nutrients!$B$77,Nutrients!$DH$77,Nutrients!$DH$78)))))*G$8))/2000/G$236*100","v":70.540000000000006},null,{"$f":"(SUMPRODUCT(I$9:I$229,Nutrients!$DH$8:$DH$228)+(IF($A$7=Nutrients!$B$8,Nutrients!$DH$8,Nutrients!$DH$9)*I$7)+(((IF($A$8=Nutrients!$B$79,Nutrients!$DH$79,(IF($A$8=Nutrients!$B$77,Nutrients!$DH$77,Nutrients!$DH$78)))))*I$8))/2000/I$236*100","v":68.040000000000134},{"$f":"(SUMPRODUCT(J$9:J$229,Nutrients!$DH$8:$DH$228)+(IF($A$7=Nutrients!$B$8,Nutrients!$DH$8,Nutrients!$DH$9)*J$7)+(((IF($A$8=Nutrients!$B$79,Nutrients!$DH$79,(IF($A$8=Nutrients!$B$77,Nutrients!$DH$77,Nutrients!$DH$78)))))*J$8))/2000/J$236*100","v":68.36000000000007},{"$f":"(SUMPRODUCT(K$9:K$229,Nutrients!$DH$8:$DH$228)+(IF($A$7=Nutrients!$B$8,Nutrients!$DH$8,Nutrients!$DH$9)*K$7)+(((IF($A$8=Nutrients!$B$79,Nutrients!$DH$79,(IF($A$8=Nutrients!$B$77,Nutrients!$DH$77,Nutrients!$DH$78)))))*K$8))/2000/K$236*100","v":69.569999999999979},{"$f":"(SUMPRODUCT(L$9:L$229,Nutrients!$DH$8:$DH$228)+(IF($A$7=Nutrients!$B$8,Nutrients!$DH$8,Nutrients!$DH$9)*L$7)+(((IF($A$8=Nutrients!$B$79,Nutrients!$DH$79,(IF($A$8=Nutrients!$B$77,Nutrients!$DH$77,Nutrients!$DH$78)))))*L$8))/2000/L$236*100","v":70.679999999999993},{"$f":"(SUMPRODUCT(M$9:M$229,Nutrients!$DH$8:$DH$228)+(IF($A$7=Nutrients!$B$8,Nutrients!$DH$8,Nutrients!$DH$9)*M$7)+(((IF($A$8=Nutrients!$B$79,Nutrients!$DH$79,(IF($A$8=Nutrients!$B$77,Nutrients!$DH$77,Nutrients!$DH$78)))))*M$8))/2000/M$236*100","v":71.360000000000028},{"$f":"(SUMPRODUCT(N$9:N$229,Nutrients!$DH$8:$DH$228)+(IF($A$7=Nutrients!$B$8,Nutrients!$DH$8,Nutrients!$DH$9)*N$7)+(((IF($A$8=Nutrients!$B$79,Nutrients!$DH$79,(IF($A$8=Nutrients!$B$77,Nutrients!$DH$77,Nutrients!$DH$78)))))*N$8))/2000/N$236*100","v":70.540000000000006},null,{"$f":"(SUMPRODUCT(P$9:P$229,Nutrients!$DH$8:$DH$228)+(IF($A$7=Nutrients!$B$8,Nutrients!$DH$8,Nutrients!$DH$9)*P$7)+(((IF($A$8=Nutrients!$B$79,Nutrients!$DH$79,(IF($A$8=Nutrients!$B$77,Nutrients!$DH$77,Nutrients!$DH$78)))))*P$8))/2000/P$236*100","v":68.280000000000072},{"$f":"(SUMPRODUCT(Q$9:Q$229,Nutrients!$DH$8:$DH$228)+(IF($A$7=Nutrients!$B$8,Nutrients!$DH$8,Nutrients!$DH$9)*Q$7)+(((IF($A$8=Nutrients!$B$79,Nutrients!$DH$79,(IF($A$8=Nutrients!$B$77,Nutrients!$DH$77,Nutrients!$DH$78)))))*Q$8))/2000/Q$236*100","v":69.179999999999964},{"$f":"(SUMPRODUCT(R$9:R$229,Nutrients!$DH$8:$DH$228)+(IF($A$7=Nutrients!$B$8,Nutrients!$DH$8,Nutrients!$DH$9)*R$7)+(((IF($A$8=Nutrients!$B$79,Nutrients!$DH$79,(IF($A$8=Nutrients!$B$77,Nutrients!$DH$77,Nutrients!$DH$78)))))*R$8))/2000/R$236*100","v":70.539999999999935},{"$f":"(SUMPRODUCT(S$9:S$229,Nutrients!$DH$8:$DH$228)+(IF($A$7=Nutrients!$B$8,Nutrients!$DH$8,Nutrients!$DH$9)*S$7)+(((IF($A$8=Nutrients!$B$79,Nutrients!$DH$79,(IF($A$8=Nutrients!$B$77,Nutrients!$DH$77,Nutrients!$DH$78)))))*S$8))/2000/S$236*100","v":72.073330136842202},{"$f":"(SUMPRODUCT(T$9:T$229,Nutrients!$DH$8:$DH$228)+(IF($A$7=Nutrients!$B$8,Nutrients!$DH$8,Nutrients!$DH$9)*T$7)+(((IF($A$8=Nutrients!$B$79,Nutrients!$DH$79,(IF($A$8=Nutrients!$B$77,Nutrients!$DH$77,Nutrients!$DH$78)))))*T$8))/2000/T$236*100","v":72.630426490036513},{"$f":"(SUMPRODUCT(U$9:U$229,Nutrients!$DH$8:$DH$228)+(IF($A$7=Nutrients!$B$8,Nutrients!$DH$8,Nutrients!$DH$9)*U$7)+(((IF($A$8=Nutrients!$B$79,Nutrients!$DH$79,(IF($A$8=Nutrients!$B$77,Nutrients!$DH$77,Nutrients!$DH$78)))))*U$8))/2000/U$236*100","v":70.540000000000006},null,{"$f":"(SUMPRODUCT(W$9:W$229,Nutrients!$DH$8:$DH$228)+(IF($A$7=Nutrients!$B$8,Nutrients!$DH$8,Nutrients!$DH$9)*W$7)+(((IF($A$8=Nutrients!$B$79,Nutrients!$DH$79,(IF($A$8=Nutrients!$B$77,Nutrients!$DH$77,Nutrients!$DH$78)))))*W$8))/2000/W$236*100","v":68.789999999999978},{"$f":"(SUMPRODUCT(X$9:X$229,Nutrients!$DH$8:$DH$228)+(IF($A$7=Nutrients!$B$8,Nutrients!$DH$8,Nutrients!$DH$9)*X$7)+(((IF($A$8=Nutrients!$B$79,Nutrients!$DH$79,(IF($A$8=Nutrients!$B$77,Nutrients!$DH$77,Nutrients!$DH$78)))))*X$8))/2000/X$236*100","v":69.935588506790552},{"$f":"(SUMPRODUCT(Y$9:Y$229,Nutrients!$DH$8:$DH$228)+(IF($A$7=Nutrients!$B$8,Nutrients!$DH$8,Nutrients!$DH$9)*Y$7)+(((IF($A$8=Nutrients!$B$79,Nutrients!$DH$79,(IF($A$8=Nutrients!$B$77,Nutrients!$DH$77,Nutrients!$DH$78)))))*Y$8))/2000/Y$236*100","v":71.826002010320948},{"$f":"(SUMPRODUCT(Z$9:Z$229,Nutrients!$DH$8:$DH$228)+(IF($A$7=Nutrients!$B$8,Nutrients!$DH$8,Nutrients!$DH$9)*Z$7)+(((IF($A$8=Nutrients!$B$79,Nutrients!$DH$79,(IF($A$8=Nutrients!$B$77,Nutrients!$DH$77,Nutrients!$DH$78)))))*Z$8))/2000/Z$236*100","v":74.094300716573443},{"$f":"(SUMPRODUCT(AA$9:AA$229,Nutrients!$DH$8:$DH$228)+(IF($A$7=Nutrients!$B$8,Nutrients!$DH$8,Nutrients!$DH$9)*AA$7)+(((IF($A$8=Nutrients!$B$79,Nutrients!$DH$79,(IF($A$8=Nutrients!$B$77,Nutrients!$DH$77,Nutrients!$DH$78)))))*AA$8))/2000/AA$236*100","v":74.834806210118998},{"$f":"(SUMPRODUCT(AB$9:AB$229,Nutrients!$DH$8:$DH$228)+(IF($A$7=Nutrients!$B$8,Nutrients!$DH$8,Nutrients!$DH$9)*AB$7)+(((IF($A$8=Nutrients!$B$79,Nutrients!$DH$79,(IF($A$8=Nutrients!$B$77,Nutrients!$DH$77,Nutrients!$DH$78)))))*AB$8))/2000/AB$236*100","v":70.540000000000006},null,{"$f":"(SUMPRODUCT(AD$9:AD$229,Nutrients!$DH$8:$DH$228)+(IF($A$7=Nutrients!$B$8,Nutrients!$DH$8,Nutrients!$DH$9)*AD$7)+(((IF($A$8=Nutrients!$B$79,Nutrients!$DH$79,(IF($A$8=Nutrients!$B$77,Nutrients!$DH$77,Nutrients!$DH$78)))))*AD$8))/2000/AD$236*100","v":69.570000000000007},{"$f":"(SUMPRODUCT(AE$9:AE$229,Nutrients!$DH$8:$DH$228)+(IF($A$7=Nutrients!$B$8,Nutrients!$DH$8,Nutrients!$DH$9)*AE$7)+(((IF($A$8=Nutrients!$B$79,Nutrients!$DH$79,(IF($A$8=Nutrients!$B$77,Nutrients!$DH$77,Nutrients!$DH$78)))))*AE$8))/2000/AE$236*100","v":70.959999999999994},{"$f":"(SUMPRODUCT(AF$9:AF$229,Nutrients!$DH$8:$DH$228)+(IF($A$7=Nutrients!$B$8,Nutrients!$DH$8,Nutrients!$DH$9)*AF$7)+(((IF($A$8=Nutrients!$B$79,Nutrients!$DH$79,(IF($A$8=Nutrients!$B$77,Nutrients!$DH$77,Nutrients!$DH$78)))))*AF$8))/2000/AF$236*100","v":73.643761112610846},{"$f":"(SUMPRODUCT(AG$9:AG$229,Nutrients!$DH$8:$DH$228)+(IF($A$7=Nutrients!$B$8,Nutrients!$DH$8,Nutrients!$DH$9)*AG$7)+(((IF($A$8=Nutrients!$B$79,Nutrients!$DH$79,(IF($A$8=Nutrients!$B$77,Nutrients!$DH$77,Nutrients!$DH$78)))))*AG$8))/2000/AG$236*100","v":76.14304879771521},{"$f":"(SUMPRODUCT(AH$9:AH$229,Nutrients!$DH$8:$DH$228)+(IF($A$7=Nutrients!$B$8,Nutrients!$DH$8,Nutrients!$DH$9)*AH$7)+(((IF($A$8=Nutrients!$B$79,Nutrients!$DH$79,(IF($A$8=Nutrients!$B$77,Nutrients!$DH$77,Nutrients!$DH$78)))))*AH$8))/2000/AH$236*100","v":77.062926686196832},{"$f":"(SUMPRODUCT(AI$9:AI$229,Nutrients!$DH$8:$DH$228)+(IF($A$7=Nutrients!$B$8,Nutrients!$DH$8,Nutrients!$DH$9)*AI$7)+(((IF($A$8=Nutrients!$B$79,Nutrients!$DH$79,(IF($A$8=Nutrients!$B$77,Nutrients!$DH$77,Nutrients!$DH$78)))))*AI$8))/2000/AI$236*100","v":70.540000000000006},null,{"$f":"(SUMPRODUCT(AK$9:AK$229,Nutrients!$DH$8:$DH$228)+(IF($A$7=Nutrients!$B$8,Nutrients!$DH$8,Nutrients!$DH$9)*AK$7)+(((IF($A$8=Nutrients!$B$79,Nutrients!$DH$79,(IF($A$8=Nutrients!$B$77,Nutrients!$DH$77,Nutrients!$DH$78)))))*AK$8))/2000/AK$236*100","v":70.41709314427959},{"$f":"(SUMPRODUCT(AL$9:AL$229,Nutrients!$DH$8:$DH$228)+(IF($A$7=Nutrients!$B$8,Nutrients!$DH$8,Nutrients!$DH$9)*AL$7)+(((IF($A$8=Nutrients!$B$79,Nutrients!$DH$79,(IF($A$8=Nutrients!$B$77,Nutrients!$DH$77,Nutrients!$DH$78)))))*AL$8))/2000/AL$236*100","v":71.779933986649453},{"$f":"(SUMPRODUCT(AM$9:AM$229,Nutrients!$DH$8:$DH$228)+(IF($A$7=Nutrients!$B$8,Nutrients!$DH$8,Nutrients!$DH$9)*AM$7)+(((IF($A$8=Nutrients!$B$79,Nutrients!$DH$79,(IF($A$8=Nutrients!$B$77,Nutrients!$DH$77,Nutrients!$DH$78)))))*AM$8))/2000/AM$236*100","v":75.48770187260034},{"$f":"(SUMPRODUCT(AN$9:AN$229,Nutrients!$DH$8:$DH$228)+(IF($A$7=Nutrients!$B$8,Nutrients!$DH$8,Nutrients!$DH$9)*AN$7)+(((IF($A$8=Nutrients!$B$79,Nutrients!$DH$79,(IF($A$8=Nutrients!$B$77,Nutrients!$DH$77,Nutrients!$DH$78)))))*AN$8))/2000/AN$236*100","v":78.217226156358393},{"$f":"(SUMPRODUCT(AO$9:AO$229,Nutrients!$DH$8:$DH$228)+(IF($A$7=Nutrients!$B$8,Nutrients!$DH$8,Nutrients!$DH$9)*AO$7)+(((IF($A$8=Nutrients!$B$79,Nutrients!$DH$79,(IF($A$8=Nutrients!$B$77,Nutrients!$DH$77,Nutrients!$DH$78)))))*AO$8))/2000/AO$236*100","v":79.325847817112248},{"$f":"(SUMPRODUCT(AP$9:AP$229,Nutrients!$DH$8:$DH$228)+(IF($A$7=Nutrients!$B$8,Nutrients!$DH$8,Nutrients!$DH$9)*AP$7)+(((IF($A$8=Nutrients!$B$79,Nutrients!$DH$79,(IF($A$8=Nutrients!$B$77,Nutrients!$DH$77,Nutrients!$DH$78)))))*AP$8))/2000/AP$236*100","v":70.540000000000006},null,{"$f":"(SUMPRODUCT(AR$9:AR$229,Nutrients!$DH$8:$DH$228)+(IF($A$7=Nutrients!$B$8,Nutrients!$DH$8,Nutrients!$DH$9)*AR$7)+(((IF($A$8=Nutrients!$B$79,Nutrients!$DH$79,(IF($A$8=Nutrients!$B$77,Nutrients!$DH$77,Nutrients!$DH$78)))))*AR$8))/2000/AR$236*100","v":71.230000000000018},{"$f":"(SUMPRODUCT(AS$9:AS$229,Nutrients!$DH$8:$DH$228)+(IF($A$7=Nutrients!$B$8,Nutrients!$DH$8,Nutrients!$DH$9)*AS$7)+(((IF($A$8=Nutrients!$B$79,Nutrients!$DH$79,(IF($A$8=Nutrients!$B$77,Nutrients!$DH$77,Nutrients!$DH$78)))))*AS$8))/2000/AS$236*100","v":73.415258740551764},{"$f":"(SUMPRODUCT(AT$9:AT$229,Nutrients!$DH$8:$DH$228)+(IF($A$7=Nutrients!$B$8,Nutrients!$DH$8,Nutrients!$DH$9)*AT$7)+(((IF($A$8=Nutrients!$B$79,Nutrients!$DH$79,(IF($A$8=Nutrients!$B$77,Nutrients!$DH$77,Nutrients!$DH$78)))))*AT$8))/2000/AT$236*100","v":77.355601900908439},{"$f":"(SUMPRODUCT(AU$9:AU$229,Nutrients!$DH$8:$DH$228)+(IF($A$7=Nutrients!$B$8,Nutrients!$DH$8,Nutrients!$DH$9)*AU$7)+(((IF($A$8=Nutrients!$B$79,Nutrients!$DH$79,(IF($A$8=Nutrients!$B$77,Nutrients!$DH$77,Nutrients!$DH$78)))))*AU$8))/2000/AU$236*100","v":80.320437176669842},{"$f":"(SUMPRODUCT(AV$9:AV$229,Nutrients!$DH$8:$DH$228)+(IF($A$7=Nutrients!$B$8,Nutrients!$DH$8,Nutrients!$DH$9)*AV$7)+(((IF($A$8=Nutrients!$B$79,Nutrients!$DH$79,(IF($A$8=Nutrients!$B$77,Nutrients!$DH$77,Nutrients!$DH$78)))))*AV$8))/2000/AV$236*100","v":81.628341198539474},{"$f":"(SUMPRODUCT(AW$9:AW$229,Nutrients!$DH$8:$DH$228)+(IF($A$7=Nutrients!$B$8,Nutrients!$DH$8,Nutrients!$DH$9)*AW$7)+(((IF($A$8=Nutrients!$B$79,Nutrients!$DH$79,(IF($A$8=Nutrients!$B$77,Nutrients!$DH$77,Nutrients!$DH$78)))))*AW$8))/2000/AW$236*100","v":70.540000000000006}]
["  His:Lys",{"$f":"(SUMPRODUCT(B$9:B$229,Nutrients!$CX$8:$CX$228)+(IF($A$7=Nutrients!$B$8,Nutrients!$CX$8,Nutrients!$CX$9)*B$7)+(((IF($A$8=Nutrients!$B$79,Nutrients!$CX$79,(IF($A$8=Nutrients!$B$77,Nutrients!$CX$77,Nutrients!$CX$78)))))*B$8))/2000/B$236*100","v":37.643570590355239},{"$f":"(SUMPRODUCT(C$9:C$229,Nutrients!$CX$8:$CX$228)+(IF($A$7=Nutrients!$B$8,Nutrients!$CX$8,Nutrients!$CX$9)*C$7)+(((IF($A$8=Nutrients!$B$79,Nutrients!$CX$79,(IF($A$8=Nutrients!$B$77,Nutrients!$CX$77,Nutrients!$CX$78)))))*C$8))/2000/C$236*100","v":38.987979019898518},{"$f":"(SUMPRODUCT(D$9:D$229,Nutrients!$CX$8:$CX$228)+(IF($A$7=Nutrients!$B$8,Nutrients!$CX$8,Nutrients!$CX$9)*D$7)+(((IF($A$8=Nutrients!$B$79,Nutrients!$CX$79,(IF($A$8=Nutrients!$B$77,Nutrients!$CX$77,Nutrients!$CX$78)))))*D$8))/2000/D$236*100","v":40.703752845303732},{"$f":"(SUMPRODUCT(E$9:E$229,Nutrients!$CX$8:$CX$228)+(IF($A$7=Nutrients!$B$8,Nutrients!$CX$8,Nutrients!$CX$9)*E$7)+(((IF($A$8=Nutrients!$B$79,Nutrients!$CX$79,(IF($A$8=Nutrients!$B$77,Nutrients!$CX$77,Nutrients!$CX$78)))))*E$8))/2000/E$236*100","v":41.851733002385814},{"$f":"(SUMPRODUCT(F$9:F$229,Nutrients!$CX$8:$CX$228)+(IF($A$7=Nutrients!$B$8,Nutrients!$CX$8,Nutrients!$CX$9)*F$7)+(((IF($A$8=Nutrients!$B$79,Nutrients!$CX$79,(IF($A$8=Nutrients!$B$77,Nutrients!$CX$77,Nutrients!$CX$78)))))*F$8))/2000/F$236*100","v":42.150034216074545},{"$f":"(SUMPRODUCT(G$9:G$229,Nutrients!$CX$8:$CX$228)+(IF($A$7=Nutrients!$B$8,Nutrients!$CX$8,Nutrients!$CX$9)*G$7)+(((IF($A$8=Nutrients!$B$79,Nutrients!$CX$79,(IF($A$8=Nutrients!$B$77,Nutrients!$CX$77,Nutrients!$CX$78)))))*G$8))/2000/G$236*100","v":42.332060863176054},null,{"$f":"(SUMPRODUCT(I$9:I$229,Nutrients!$CX$8:$CX$228)+(IF($A$7=Nutrients!$B$8,Nutrients!$CX$8,Nutrients!$CX$9)*I$7)+(((IF($A$8=Nutrients!$B$79,Nutrients!$CX$79,(IF($A$8=Nutrients!$B$77,Nutrients!$CX$77,Nutrients!$CX$78)))))*I$8))/2000/I$236*100","v":38.168347730852638},{"$f":"(SUMPRODUCT(J$9:J$229,Nutrients!$CX$8:$CX$228)+(IF($A$7=Nutrients!$B$8,Nutrients!$CX$8,Nutrients!$CX$9)*J$7)+(((IF($A$8=Nutrients!$B$79,Nutrients!$CX$79,(IF($A$8=Nutrients!$B$77,Nutrients!$CX$77,Nutrients!$CX$78)))))*J$8))/2000/J$236*100","v":39.592830427274762},{"$f":"(SUMPRODUCT(K$9:K$229,Nutrients!$CX$8:$CX$228)+(IF($A$7=Nutrients!$B$8,Nutrients!$CX$8,Nutrients!$CX$9)*K$7)+(((IF($A$8=Nutrients!$B$79,Nutrients!$CX$79,(IF($A$8=Nutrients!$B$77,Nutrients!$CX$77,Nutrients!$CX$78)))))*K$8))/2000/K$236*100","v":41.401114647328392},{"$f":"(SUMPRODUCT(L$9:L$229,Nutrients!$CX$8:$CX$228)+(IF($A$7=Nutrients!$B$8,Nutrients!$CX$8,Nutrients!$CX$9)*L$7)+(((IF($A$8=Nutrients!$B$79,Nutrients!$CX$79,(IF($A$8=Nutrients!$B$77,Nutrients!$CX$77,Nutrients!$CX$78)))))*L$8))/2000/L$236*100","v":42.641110113492395},{"$f":"(SUMPRODUCT(M$9:M$229,Nutrients!$CX$8:$CX$228)+(IF($A$7=Nutrients!$B$8,Nutrients!$CX$8,Nutrients!$CX$9)*M$7)+(((IF($A$8=Nutrients!$B$79,Nutrients!$CX$79,(IF($A$8=Nutrients!$B$77,Nutrients!$CX$77,Nutrients!$CX$78)))))*M$8))/2000/M$236*100","v":43.015585237001289},{"$f":"(SUMPRODUCT(N$9:N$229,Nutrients!$CX$8:$CX$228)+(IF($A$7=Nutrients!$B$8,Nutrients!$CX$8,Nutrients!$CX$9)*N$7)+(((IF($A$8=Nutrients!$B$79,Nutrients!$CX$79,(IF($A$8=Nutrients!$B$77,Nutrients!$CX$77,Nutrients!$CX$78)))))*N$8))/2000/N$236*100","v":42.332060863176054},null,{"$f":"(SUMPRODUCT(P$9:P$229,Nutrients!$CX$8:$CX$228)+(IF($A$7=Nutrients!$B$8,Nutrients!$CX$8,Nutrients!$CX$9)*P$7)+(((IF($A$8=Nutrients!$B$79,Nutrients!$CX$79,(IF($A$8=Nutrients!$B$77,Nutrients!$CX$77,Nutrients!$CX$78)))))*P$8))/2000/P$236*100","v":38.701731750206115},{"$f":"(SUMPRODUCT(Q$9:Q$229,Nutrients!$CX$8:$CX$228)+(IF($A$7=Nutrients!$B$8,Nutrients!$CX$8,Nutrients!$CX$9)*Q$7)+(((IF($A$8=Nutrients!$B$79,Nutrients!$CX$79,(IF($A$8=Nutrients!$B$77,Nutrients!$CX$77,Nutrients!$CX$78)))))*Q$8))/2000/Q$236*100","v":40.205348879451769},{"$f":"(SUMPRODUCT(R$9:R$229,Nutrients!$CX$8:$CX$228)+(IF($A$7=Nutrients!$B$8,Nutrients!$CX$8,Nutrients!$CX$9)*R$7)+(((IF($A$8=Nutrients!$B$79,Nutrients!$CX$79,(IF($A$8=Nutrients!$B$77,Nutrients!$CX$77,Nutrients!$CX$78)))))*R$8))/2000/R$236*100","v":42.105208860921245},{"$f":"(SUMPRODUCT(S$9:S$229,Nutrients!$CX$8:$CX$228)+(IF($A$7=Nutrients!$B$8,Nutrients!$CX$8,Nutrients!$CX$9)*S$7)+(((IF($A$8=Nutrients!$B$79,Nutrients!$CX$79,(IF($A$8=Nutrients!$B$77,Nutrients!$CX$77,Nutrients!$CX$78)))))*S$8))/2000/S$236*100","v":43.443079537299568},{"$f":"(SUMPRODUCT(T$9:T$229,Nutrients!$CX$8:$CX$228)+(IF($A$7=Nutrients!$B$8,Nutrients!$CX$8,Nutrients!$CX$9)*T$7)+(((IF($A$8=Nutrients!$B$79,Nutrients!$CX$79,(IF($A$8=Nutrients!$B$77,Nutrients!$CX$77,Nutrients!$CX$78)))))*T$8))/2000/T$236*100","v":43.890254357587679},{"$f":"(SUMPRODUCT(U$9:U$229,Nutrients!$CX$8:$CX$228)+(IF($A$7=Nutrients!$B$8,Nutrients!$CX$8,Nutrients!$CX$9)*U$7)+(((IF($A$8=Nutrients!$B$79,Nutrients!$CX$79,(IF($A$8=Nutrients!$B$77,Nutrients!$CX$77,Nutrients!$CX$78)))))*U$8))/2000/U$236*100","v":42.332060863176054},null,{"$f":"(SUMPRODUCT(W$9:W$229,Nutrients!$CX$8:$CX$228)+(IF($A$7=Nutrients!$B$8,Nutrients!$CX$8,Nutrients!$CX$9)*W$7)+(((IF($A$8=Nutrients!$B$79,Nutrients!$CX$79,(IF($A$8=Nutrients!$B$77,Nutrients!$CX$77,Nutrients!$CX$78)))))*W$8))/2000/W$236*100","v":39.242078840946334},{"$f":"(SUMPRODUCT(X$9:X$229,Nutrients!$CX$8:$CX$228)+(IF($A$7=Nutrients!$B$8,Nutrients!$CX$8,Nutrients!$CX$9)*X$7)+(((IF($A$8=Nutrients!$B$79,Nutrients!$CX$79,(IF($A$8=Nutrients!$B$77,Nutrients!$CX$77,Nutrients!$CX$78)))))*X$8))/2000/X$236*100","v":40.826434275453067},{"$f":"(SUMPRODUCT(Y$9:Y$229,Nutrients!$CX$8:$CX$228)+(IF($A$7=Nutrients!$B$8,Nutrients!$CX$8,Nutrients!$CX$9)*Y$7)+(((IF($A$8=Nutrients!$B$79,Nutrients!$CX$79,(IF($A$8=Nutrients!$B$77,Nutrients!$CX$77,Nutrients!$CX$78)))))*Y$8))/2000/Y$236*100","v":42.824175240689563},{"$f":"(SUMPRODUCT(Z$9:Z$229,Nutrients!$CX$8:$CX$228)+(IF($A$7=Nutrients!$B$8,Nutrients!$CX$8,Nutrients!$CX$9)*Z$7)+(((IF($A$8=Nutrients!$B$79,Nutrients!$CX$79,(IF($A$8=Nutrients!$B$77,Nutrients!$CX$77,Nutrients!$CX$78)))))*Z$8))/2000/Z$236*100","v":44.254795578456715},{"$f":"(SUMPRODUCT(AA$9:AA$229,Nutrients!$CX$8:$CX$228)+(IF($A$7=Nutrients!$B$8,Nutrients!$CX$8,Nutrients!$CX$9)*AA$7)+(((IF($A$8=Nutrients!$B$79,Nutrients!$CX$79,(IF($A$8=Nutrients!$B$77,Nutrients!$CX$77,Nutrients!$CX$78)))))*AA$8))/2000/AA$236*100","v":44.774864630287148},{"$f":"(SUMPRODUCT(AB$9:AB$229,Nutrients!$CX$8:$CX$228)+(IF($A$7=Nutrients!$B$8,Nutrients!$CX$8,Nutrients!$CX$9)*AB$7)+(((IF($A$8=Nutrients!$B$79,Nutrients!$CX$79,(IF($A$8=Nutrients!$B$77,Nutrients!$CX$77,Nutrients!$CX$78)))))*AB$8))/2000/AB$236*100","v":42.332060863176054},null,{"$f":"(SUMPRODUCT(AD$9:AD$229,Nutrients!$CX$8:$CX$228)+(IF($A$7=Nutrients!$B$8,Nutrients!$CX$8,Nutrients!$CX$9)*AD$7)+(((IF($A$8=Nutrients!$B$79,Nutrients!$CX$79,(IF($A$8=Nutrients!$B$77,Nutrients!$CX$77,Nutrients!$CX$78)))))*AD$8))/2000/AD$236*100","v":39.789488884893757},{"$f":"(SUMPRODUCT(AE$9:AE$229,Nutrients!$CX$8:$CX$228)+(IF($A$7=Nutrients!$B$8,Nutrients!$CX$8,Nutrients!$CX$9)*AE$7)+(((IF($A$8=Nutrients!$B$79,Nutrients!$CX$79,(IF($A$8=Nutrients!$B$77,Nutrients!$CX$77,Nutrients!$CX$78)))))*AE$8))/2000/AE$236*100","v":41.459001883004404},{"$f":"(SUMPRODUCT(AF$9:AF$229,Nutrients!$CX$8:$CX$228)+(IF($A$7=Nutrients!$B$8,Nutrients!$CX$8,Nutrients!$CX$9)*AF$7)+(((IF($A$8=Nutrients!$B$79,Nutrients!$CX$79,(IF($A$8=Nutrients!$B$77,Nutrients!$CX$77,Nutrients!$CX$78)))))*AF$8))/2000/AF$236*100","v":43.55257741487646},{"$f":"(SUMPRODUCT(AG$9:AG$229,Nutrients!$CX$8:$CX$228)+(IF($A$7=Nutrients!$B$8,Nutrients!$CX$8,Nutrients!$CX$9)*AG$7)+(((IF($A$8=Nutrients!$B$79,Nutrients!$CX$79,(IF($A$8=Nutrients!$B$77,Nutrients!$CX$77,Nutrients!$CX$78)))))*AG$8))/2000/AG$236*100","v":45.076785099177378},{"$f":"(SUMPRODUCT(AH$9:AH$229,Nutrients!$CX$8:$CX$228)+(IF($A$7=Nutrients!$B$8,Nutrients!$CX$8,Nutrients!$CX$9)*AH$7)+(((IF($A$8=Nutrients!$B$79,Nutrients!$CX$79,(IF($A$8=Nutrients!$B$77,Nutrients!$CX$77,Nutrients!$CX$78)))))*AH$8))/2000/AH$236*100","v":45.665988796534293},{"$f":"(SUMPRODUCT(AI$9:AI$229,Nutrients!$CX$8:$CX$228)+(IF($A$7=Nutrients!$B$8,Nutrients!$CX$8,Nutrients!$CX$9)*AI$7)+(((IF($A$8=Nutrients!$B$79,Nutrients!$CX$79,(IF($A$8=Nutrients!$B$77,Nutrients!$CX$77,Nutrients!$CX$78)))))*AI$8))/2000/AI$236*100","v":42.332060863176054},null,{"$f":"(SUMPRODUCT(AK$9:AK$229,Nutrients!$CX$8:$CX$228)+(IF($A$7=Nutrients!$B$8,Nutrients!$CX$8,Nutrients!$CX$9)*AK$7)+(((IF($A$8=Nutrients!$B$79,Nutrients!$CX$79,(IF($A$8=Nutrients!$B$77,Nutrients!$CX$77,Nutrients!$CX$78)))))*AK$8))/2000/AK$236*100","v":40.34395644724664},{"$f":"(SUMPRODUCT(AL$9:AL$229,Nutrients!$CX$8:$CX$228)+(IF($A$7=Nutrients!$B$8,Nutrients!$CX$8,Nutrients!$CX$9)*AL$7)+(((IF($A$8=Nutrients!$B$79,Nutrients!$CX$79,(IF($A$8=Nutrients!$B$77,Nutrients!$CX$77,Nutrients!$CX$78)))))*AL$8))/2000/AL$236*100","v":42.101192964367613},{"$f":"(SUMPRODUCT(AM$9:AM$229,Nutrients!$CX$8:$CX$228)+(IF($A$7=Nutrients!$B$8,Nutrients!$CX$8,Nutrients!$CX$9)*AM$7)+(((IF($A$8=Nutrients!$B$79,Nutrients!$CX$79,(IF($A$8=Nutrients!$B$77,Nutrients!$CX$77,Nutrients!$CX$78)))))*AM$8))/2000/AM$236*100","v":44.290848910713329},{"$f":"(SUMPRODUCT(AN$9:AN$229,Nutrients!$CX$8:$CX$228)+(IF($A$7=Nutrients!$B$8,Nutrients!$CX$8,Nutrients!$CX$9)*AN$7)+(((IF($A$8=Nutrients!$B$79,Nutrients!$CX$79,(IF($A$8=Nutrients!$B$77,Nutrients!$CX$77,Nutrients!$CX$78)))))*AN$8))/2000/AN$236*100","v":45.906782860816314},{"$f":"(SUMPRODUCT(AO$9:AO$229,Nutrients!$CX$8:$CX$228)+(IF($A$7=Nutrients!$B$8,Nutrients!$CX$8,Nutrients!$CX$9)*AO$7)+(((IF($A$8=Nutrients!$B$79,Nutrients!$CX$79,(IF($A$8=Nutrients!$B$77,Nutrients!$CX$77,Nutrients!$CX$78)))))*AO$8))/2000/AO$236*100","v":46.570001848257228},{"$f":"(SUMPRODUCT(AP$9:AP$229,Nutrients!$CX$8:$CX$228)+(IF($A$7=Nutrients!$B$8,Nutrients!$CX$8,Nutrients!$CX$9)*AP$7)+(((IF($A$8=Nutrients!$B$79,Nutrients!$CX$79,(IF($A$8=Nutrients!$B$77,Nutrients!$CX$77,Nutrients!$CX$78)))))*AP$8))/2000/AP$236*100","v":42.332060863176054},null,{"$f":"(SUMPRODUCT(AR$9:AR$229,Nutrients!$CX$8:$CX$228)+(IF($A$7=Nutrients!$B$8,Nutrients!$CX$8,Nutrients!$CX$9)*AR$7)+(((IF($A$8=Nutrients!$B$79,Nutrients!$CX$79,(IF($A$8=Nutrients!$B$77,Nutrients!$CX$77,Nutrients!$CX$78)))))*AR$8))/2000/AR$236*100","v":40.901392315638475},{"$f":"(SUMPRODUCT(AS$9:AS$229,Nutrients!$CX$8:$CX$228)+(IF($A$7=Nutrients!$B$8,Nutrients!$CX$8,Nutrients!$CX$9)*AS$7)+(((IF($A$8=Nutrients!$B$79,Nutrients!$CX$79,(IF($A$8=Nutrients!$B$77,Nutrients!$CX$77,Nutrients!$CX$78)))))*AS$8))/2000/AS$236*100","v":42.752468489760538},{"$f":"(SUMPRODUCT(AT$9:AT$229,Nutrients!$CX$8:$CX$228)+(IF($A$7=Nutrients!$B$8,Nutrients!$CX$8,Nutrients!$CX$9)*AT$7)+(((IF($A$8=Nutrients!$B$79,Nutrients!$CX$79,(IF($A$8=Nutrients!$B$77,Nutrients!$CX$77,Nutrients!$CX$78)))))*AT$8))/2000/AT$236*100","v":45.03771568837989},{"$f":"(SUMPRODUCT(AU$9:AU$229,Nutrients!$CX$8:$CX$228)+(IF($A$7=Nutrients!$B$8,Nutrients!$CX$8,Nutrients!$CX$9)*AU$7)+(((IF($A$8=Nutrients!$B$79,Nutrients!$CX$79,(IF($A$8=Nutrients!$B$77,Nutrients!$CX$77,Nutrients!$CX$78)))))*AU$8))/2000/AU$236*100","v":46.746501166351017},{"$f":"(SUMPRODUCT(AV$9:AV$229,Nutrients!$CX$8:$CX$228)+(IF($A$7=Nutrients!$B$8,Nutrients!$CX$8,Nutrients!$CX$9)*AV$7)+(((IF($A$8=Nutrients!$B$79,Nutrients!$CX$79,(IF($A$8=Nutrients!$B$77,Nutrients!$CX$77,Nutrients!$CX$78)))))*AV$8))/2000/AV$236*100","v":47.489799465711627},{"$f":"(SUMPRODUCT(AW$9:AW$229,Nutrients!$CX$8:$CX$228)+(IF($A$7=Nutrients!$B$8,Nutrients!$CX$8,Nutrients!$CX$9)*AW$7)+(((IF($A$8=Nutrients!$B$79,Nutrients!$CX$79,(IF($A$8=Nutrients!$B$77,Nutrients!$CX$77,Nutrients!$CX$78)))))*AW$8))/2000/AW$236*100","v":42.332060863176054}]
["Total Lys, %",{"$f":"(SUMPRODUCT(B$9:B$229,Nutrients!$AJ$8:$AJ$228)+(IF($A7=Nutrients!$B$8,Nutrients!$AJ$8,Nutrients!$AJ$9)*B$7)+(((IF($A8=Nutrients!$B$79,Nutrients!$AJ$79,(IF($A8=Nutrients!$B$77,Nutrients!$AJ$77,Nutrients!$AJ$78)))))*B$8))/2000","v":1.3184028426828778},{"$f":"(SUMPRODUCT(C$9:C$229,Nutrients!$AJ$8:$AJ$228)+(IF($A7=Nutrients!$B$8,Nutrients!$AJ$8,Nutrients!$AJ$9)*C$7)+(((IF($A8=Nutrients!$B$79,Nutrients!$AJ$79,(IF($A8=Nutrients!$B$77,Nutrients!$AJ$77,Nutrients!$AJ$78)))))*C$8))/2000","v":1.1707660127345534},{"$f":"(SUMPRODUCT(D$9:D$229,Nutrients!$AJ$8:$AJ$228)+(IF($A7=Nutrients!$B$8,Nutrients!$AJ$8,Nutrients!$AJ$9)*D$7)+(((IF($A8=Nutrients!$B$79,Nutrients!$AJ$79,(IF($A8=Nutrients!$B$77,Nutrients!$AJ$77,Nutrients!$AJ$78)))))*D$8))/2000","v":1.0403693489168444},{"$f":"(SUMPRODUCT(E$9:E$229,Nutrients!$AJ$8:$AJ$228)+(IF($A7=Nutrients!$B$8,Nutrients!$AJ$8,Nutrients!$AJ$9)*E$7)+(((IF($A8=Nutrients!$B$79,Nutrients!$AJ$79,(IF($A8=Nutrients!$B$77,Nutrients!$AJ$77,Nutrients!$AJ$78)))))*E$8))/2000","v":0.93090396099650141},{"$f":"(SUMPRODUCT(F$9:F$229,Nutrients!$AJ$8:$AJ$228)+(IF($A7=Nutrients!$B$8,Nutrients!$AJ$8,Nutrients!$AJ$9)*F$7)+(((IF($A8=Nutrients!$B$79,Nutrients!$AJ$79,(IF($A8=Nutrients!$B$77,Nutrients!$AJ$77,Nutrients!$AJ$78)))))*F$8))/2000","v":0.85426384482722051},{"$f":"(SUMPRODUCT(G$9:G$229,Nutrients!$AJ$8:$AJ$228)+(IF($A7=Nutrients!$B$8,Nutrients!$AJ$8,Nutrients!$AJ$9)*G$7)+(((IF($A8=Nutrients!$B$79,Nutrients!$AJ$79,(IF($A8=Nutrients!$B$77,Nutrients!$AJ$77,Nutrients!$AJ$78)))))*G$8))/2000","v":0.81186991699752797},null,{"$f":"(SUMPRODUCT(I$9:I$229,Nutrients!$AJ$8:$AJ$228)+(IF($A7=Nutrients!$B$8,Nutrients!$AJ$8,Nutrients!$AJ$9)*I$7)+(((IF($A8=Nutrients!$B$79,Nutrients!$AJ$79,(IF($A8=Nutrients!$B$77,Nutrients!$AJ$77,Nutrients!$AJ$78)))))*I$8))/2000","v":1.3165972753231034},{"$f":"(SUMPRODUCT(J$9:J$229,Nutrients!$AJ$8:$AJ$228)+(IF($A7=Nutrients!$B$8,Nutrients!$AJ$8,Nutrients!$AJ$9)*J$7)+(((IF($A8=Nutrients!$B$79,Nutrients!$AJ$79,(IF($A8=Nutrients!$B$77,Nutrients!$AJ$77,Nutrients!$AJ$78)))))*J$8))/2000","v":1.1705711272077199},{"$f":"(SUMPRODUCT(K$9:K$229,Nutrients!$AJ$8:$AJ$228)+(IF($A7=Nutrients!$B$8,Nutrients!$AJ$8,Nutrients!$AJ$9)*K$7)+(((IF($A8=Nutrients!$B$79,Nutrients!$AJ$79,(IF($A8=Nutrients!$B$77,Nutrients!$AJ$77,Nutrients!$AJ$78)))))*K$8))/2000","v":1.0415021589369753},{"$f":"(SUMPRODUCT(L$9:L$229,Nutrients!$AJ$8:$AJ$228)+(IF($A7=Nutrients!$B$8,Nutrients!$AJ$8,Nutrients!$AJ$9)*L$7)+(((IF($A8=Nutrients!$B$79,Nutrients!$AJ$79,(IF($A8=Nutrients!$B$77,Nutrients!$AJ$77,Nutrients!$AJ$78)))))*L$8))/2000","v":0.93291769458229434},{"$f":"(SUMPRODUCT(M$9:M$229,Nutrients!$AJ$8:$AJ$228)+(IF($A7=Nutrients!$B$8,Nutrients!$AJ$8,Nutrients!$AJ$9)*M$7)+(((IF($A8=Nutrients!$B$79,Nutrients!$AJ$79,(IF($A8=Nutrients!$B$77,Nutrients!$AJ$77,Nutrients!$AJ$78)))))*M$8))/2000","v":0.85621574303847592},{"$f":"(SUMPRODUCT(N$9:N$229,Nutrients!$AJ$8:$AJ$228)+(IF($A7=Nutrients!$B$8,Nutrients!$AJ$8,Nutrients!$AJ$9)*N$7)+(((IF($A8=Nutrients!$B$79,Nutrients!$AJ$79,(IF($A8=Nutrients!$B$77,Nutrients!$AJ$77,Nutrients!$AJ$78)))))*N$8))/2000","v":0.81186991699752797},null,{"$f":"(SUMPRODUCT(P$9:P$229,Nutrients!$AJ$8:$AJ$228)+(IF($A7=Nutrients!$B$8,Nutrients!$AJ$8,Nutrients!$AJ$9)*P$7)+(((IF($A8=Nutrients!$B$79,Nutrients!$AJ$79,(IF($A8=Nutrients!$B$77,Nutrients!$AJ$77,Nutrients!$AJ$78)))))*P$8))/2000","v":1.3168679331202973},{"$f":"(SUMPRODUCT(Q$9:Q$229,Nutrients!$AJ$8:$AJ$228)+(IF($A7=Nutrients!$B$8,Nutrients!$AJ$8,Nutrients!$AJ$9)*Q$7)+(((IF($A8=Nutrients!$B$79,Nutrients!$AJ$79,(IF($A8=Nutrients!$B$77,Nutrients!$AJ$77,Nutrients!$AJ$78)))))*Q$8))/2000","v":1.1718154601829185},{"$f":"(SUMPRODUCT(R$9:R$229,Nutrients!$AJ$8:$AJ$228)+(IF($A7=Nutrients!$B$8,Nutrients!$AJ$8,Nutrients!$AJ$9)*R$7)+(((IF($A8=Nutrients!$B$79,Nutrients!$AJ$79,(IF($A8=Nutrients!$B$77,Nutrients!$AJ$77,Nutrients!$AJ$78)))))*R$8))/2000","v":1.0437894391132152},{"$f":"(SUMPRODUCT(S$9:S$229,Nutrients!$AJ$8:$AJ$228)+(IF($A7=Nutrients!$B$8,Nutrients!$AJ$8,Nutrients!$AJ$9)*S$7)+(((IF($A8=Nutrients!$B$79,Nutrients!$AJ$79,(IF($A8=Nutrients!$B$77,Nutrients!$AJ$77,Nutrients!$AJ$78)))))*S$8))/2000","v":0.93471837776336242},{"$f":"(SUMPRODUCT(T$9:T$229,Nutrients!$AJ$8:$AJ$228)+(IF($A7=Nutrients!$B$8,Nutrients!$AJ$8,Nutrients!$AJ$9)*T$7)+(((IF($A8=Nutrients!$B$79,Nutrients!$AJ$79,(IF($A8=Nutrients!$B$77,Nutrients!$AJ$77,Nutrients!$AJ$78)))))*T$8))/2000","v":0.85886979209068937},{"$f":"(SUMPRODUCT(U$9:U$229,Nutrients!$AJ$8:$AJ$228)+(IF($A7=Nutrients!$B$8,Nutrients!$AJ$8,Nutrients!$AJ$9)*U$7)+(((IF($A8=Nutrients!$B$79,Nutrients!$AJ$79,(IF($A8=Nutrients!$B$77,Nutrients!$AJ$77,Nutrients!$AJ$78)))))*U$8))/2000","v":0.81186991699752797},null,{"$f":"(SUMPRODUCT(W$9:W$229,Nutrients!$AJ$8:$AJ$228)+(IF($A7=Nutrients!$B$8,Nutrients!$AJ$8,Nutrients!$AJ$9)*W$7)+(((IF($A8=Nutrients!$B$79,Nutrients!$AJ$79,(IF($A8=Nutrients!$B$77,Nutrients!$AJ$77,Nutrients!$AJ$78)))))*W$8))/2000","v":1.3171363831911274},{"$f":"(SUMPRODUCT(X$9:X$229,Nutrients!$AJ$8:$AJ$228)+(IF($A7=Nutrients!$B$8,Nutrients!$AJ$8,Nutrients!$AJ$9)*X$7)+(((IF($A8=Nutrients!$B$79,Nutrients!$AJ$79,(IF($A8=Nutrients!$B$77,Nutrients!$AJ$77,Nutrients!$AJ$78)))))*X$8))/2000","v":1.1730649254717505},{"$f":"(SUMPRODUCT(Y$9:Y$229,Nutrients!$AJ$8:$AJ$228)+(IF($A7=Nutrients!$B$8,Nutrients!$AJ$8,Nutrients!$AJ$9)*Y$7)+(((IF($A8=Nutrients!$B$79,Nutrients!$AJ$79,(IF($A8=Nutrients!$B$77,Nutrients!$AJ$77,Nutrients!$AJ$78)))))*Y$8))/2000","v":1.0445670342924145},{"$f":"(SUMPRODUCT(Z$9:Z$229,Nutrients!$AJ$8:$AJ$228)+(IF($A7=Nutrients!$B$8,Nutrients!$AJ$8,Nutrients!$AJ$9)*Z$7)+(((IF($A8=Nutrients!$B$79,Nutrients!$AJ$79,(IF($A8=Nutrients!$B$77,Nutrients!$AJ$77,Nutrients!$AJ$78)))))*Z$8))/2000","v":0.93690240670339475},{"$f":"(SUMPRODUCT(AA$9:AA$229,Nutrients!$AJ$8:$AJ$228)+(IF($A7=Nutrients!$B$8,Nutrients!$AJ$8,Nutrients!$AJ$9)*AA$7)+(((IF($A8=Nutrients!$B$79,Nutrients!$AJ$79,(IF($A8=Nutrients!$B$77,Nutrients!$AJ$77,Nutrients!$AJ$78)))))*AA$8))/2000","v":0.861617428587236},{"$f":"(SUMPRODUCT(AB$9:AB$229,Nutrients!$AJ$8:$AJ$228)+(IF($A7=Nutrients!$B$8,Nutrients!$AJ$8,Nutrients!$AJ$9)*AB$7)+(((IF($A8=Nutrients!$B$79,Nutrients!$AJ$79,(IF($A8=Nutrients!$B$77,Nutrients!$AJ$77,Nutrients!$AJ$78)))))*AB$8))/2000","v":0.81186991699752797},null,{"$f":"(SUMPRODUCT(AD$9:AD$229,Nutrients!$AJ$8:$AJ$228)+(IF($A7=Nutrients!$B$8,Nutrients!$AJ$8,Nutrients!$AJ$9)*AD$7)+(((IF($A8=Nutrients!$B$79,Nutrients!$AJ$79,(IF($A8=Nutrients!$B$77,Nutrients!$AJ$77,Nutrients!$AJ$78)))))*AD$8))/2000","v":1.3172847721753069},{"$f":"(SUMPRODUCT(AE$9:AE$229,Nutrients!$AJ$8:$AJ$228)+(IF($A7=Nutrients!$B$8,Nutrients!$AJ$8,Nutrients!$AJ$9)*AE$7)+(((IF($A8=Nutrients!$B$79,Nutrients!$AJ$79,(IF($A8=Nutrients!$B$77,Nutrients!$AJ$77,Nutrients!$AJ$78)))))*AE$8))/2000","v":1.1728302401977027},{"$f":"(SUMPRODUCT(AF$9:AF$229,Nutrients!$AJ$8:$AJ$228)+(IF($A7=Nutrients!$B$8,Nutrients!$AJ$8,Nutrients!$AJ$9)*AF$7)+(((IF($A8=Nutrients!$B$79,Nutrients!$AJ$79,(IF($A8=Nutrients!$B$77,Nutrients!$AJ$77,Nutrients!$AJ$78)))))*AF$8))/2000","v":1.0456994980370526},{"$f":"(SUMPRODUCT(AG$9:AG$229,Nutrients!$AJ$8:$AJ$228)+(IF($A7=Nutrients!$B$8,Nutrients!$AJ$8,Nutrients!$AJ$9)*AG$7)+(((IF($A8=Nutrients!$B$79,Nutrients!$AJ$79,(IF($A8=Nutrients!$B$77,Nutrients!$AJ$77,Nutrients!$AJ$78)))))*AG$8))/2000","v":0.93905437014704296},{"$f":"(SUMPRODUCT(AH$9:AH$229,Nutrients!$AJ$8:$AJ$228)+(IF($A7=Nutrients!$B$8,Nutrients!$AJ$8,Nutrients!$AJ$9)*AH$7)+(((IF($A8=Nutrients!$B$79,Nutrients!$AJ$79,(IF($A8=Nutrients!$B$77,Nutrients!$AJ$77,Nutrients!$AJ$78)))))*AH$8))/2000","v":0.86376051668458242},{"$f":"(SUMPRODUCT(AI$9:AI$229,Nutrients!$AJ$8:$AJ$228)+(IF($A7=Nutrients!$B$8,Nutrients!$AJ$8,Nutrients!$AJ$9)*AI$7)+(((IF($A8=Nutrients!$B$79,Nutrients!$AJ$79,(IF($A8=Nutrients!$B$77,Nutrients!$AJ$77,Nutrients!$AJ$78)))))*AI$8))/2000","v":0.81186991699752797},null,{"$f":"(SUMPRODUCT(AK$9:AK$229,Nutrients!$AJ$8:$AJ$228)+(IF($A7=Nutrients!$B$8,Nutrients!$AJ$8,Nutrients!$AJ$9)*AK$7)+(((IF($A8=Nutrients!$B$79,Nutrients!$AJ$79,(IF($A8=Nutrients!$B$77,Nutrients!$AJ$77,Nutrients!$AJ$78)))))*AK$8))/2000","v":1.317823048658006},{"$f":"(SUMPRODUCT(AL$9:AL$229,Nutrients!$AJ$8:$AJ$228)+(IF($A7=Nutrients!$B$8,Nutrients!$AJ$8,Nutrients!$AJ$9)*AL$7)+(((IF($A8=Nutrients!$B$79,Nutrients!$AJ$79,(IF($A8=Nutrients!$B$77,Nutrients!$AJ$77,Nutrients!$AJ$78)))))*AL$8))/2000","v":1.1730246906405077},{"$f":"(SUMPRODUCT(AM$9:AM$229,Nutrients!$AJ$8:$AJ$228)+(IF($A7=Nutrients!$B$8,Nutrients!$AJ$8,Nutrients!$AJ$9)*AM$7)+(((IF($A8=Nutrients!$B$79,Nutrients!$AJ$79,(IF($A8=Nutrients!$B$77,Nutrients!$AJ$77,Nutrients!$AJ$78)))))*AM$8))/2000","v":1.0470019346152544},{"$f":"(SUMPRODUCT(AN$9:AN$229,Nutrients!$AJ$8:$AJ$228)+(IF($A7=Nutrients!$B$8,Nutrients!$AJ$8,Nutrients!$AJ$9)*AN$7)+(((IF($A8=Nutrients!$B$79,Nutrients!$AJ$79,(IF($A8=Nutrients!$B$77,Nutrients!$AJ$77,Nutrients!$AJ$78)))))*AN$8))/2000","v":0.94073506676838925},{"$f":"(SUMPRODUCT(AO$9:AO$229,Nutrients!$AJ$8:$AJ$228)+(IF($A7=Nutrients!$B$8,Nutrients!$AJ$8,Nutrients!$AJ$9)*AO$7)+(((IF($A8=Nutrients!$B$79,Nutrients!$AJ$79,(IF($A8=Nutrients!$B$77,Nutrients!$AJ$77,Nutrients!$AJ$78)))))*AO$8))/2000","v":0.86569673412516635},{"$f":"(SUMPRODUCT(AP$9:AP$229,Nutrients!$AJ$8:$AJ$228)+(IF($A7=Nutrients!$B$8,Nutrients!$AJ$8,Nutrients!$AJ$9)*AP$7)+(((IF($A8=Nutrients!$B$79,Nutrients!$AJ$79,(IF($A8=Nutrients!$B$77,Nutrients!$AJ$77,Nutrients!$AJ$78)))))*AP$8))/2000","v":0.81186991699752797},null,{"$f":"(SUMPRODUCT(AR$9:AR$229,Nutrients!$AJ$8:$AJ$228)+(IF($A7=Nutrients!$B$8,Nutrients!$AJ$8,Nutrients!$AJ$9)*AR$7)+(((IF($A8=Nutrients!$B$79,Nutrients!$AJ$79,(IF($A8=Nutrients!$B$77,Nutrients!$AJ$77,Nutrients!$AJ$78)))))*AR$8))/2000","v":1.321270683413682},{"$f":"(SUMPRODUCT(AS$9:AS$229,Nutrients!$AJ$8:$AJ$228)+(IF($A7=Nutrients!$B$8,Nutrients!$AJ$8,Nutrients!$AJ$9)*AS$7)+(((IF($A8=Nutrients!$B$79,Nutrients!$AJ$79,(IF($A8=Nutrients!$B$77,Nutrients!$AJ$77,Nutrients!$AJ$78)))))*AS$8))/2000","v":1.1732244760087311},{"$f":"(SUMPRODUCT(AT$9:AT$229,Nutrients!$AJ$8:$AJ$228)+(IF($A7=Nutrients!$B$8,Nutrients!$AJ$8,Nutrients!$AJ$9)*AT$7)+(((IF($A8=Nutrients!$B$79,Nutrients!$AJ$79,(IF($A8=Nutrients!$B$77,Nutrients!$AJ$77,Nutrients!$AJ$78)))))*AT$8))/2000","v":1.0485890334677697},{"$f":"(SUMPRODUCT(AU$9:AU$229,Nutrients!$AJ$8:$AJ$228)+(IF($A7=Nutrients!$B$8,Nutrients!$AJ$8,Nutrients!$AJ$9)*AU$7)+(((IF($A8=Nutrients!$B$79,Nutrients!$AJ$79,(IF($A8=Nutrients!$B$77,Nutrients!$AJ$77,Nutrients!$AJ$78)))))*AU$8))/2000","v":0.94217791373071846},{"$f":"(SUMPRODUCT(AV$9:AV$229,Nutrients!$AJ$8:$AJ$228)+(IF($A7=Nutrients!$B$8,Nutrients!$AJ$8,Nutrients!$AJ$9)*AV$7)+(((IF($A8=Nutrients!$B$79,Nutrients!$AJ$79,(IF($A8=Nutrients!$B$77,Nutrients!$AJ$77,Nutrients!$AJ$78)))))*AV$8))/2000","v":0.86764042764181337},{"$f":"(SUMPRODUCT(AW$9:AW$229,Nutrients!$AJ$8:$AJ$228)+(IF($A7=Nutrients!$B$8,Nutrients!$AJ$8,Nutrients!$AJ$9)*AW$7)+(((IF($A8=Nutrients!$B$79,Nutrients!$AJ$79,(IF($A8=Nutrients!$B$77,Nutrients!$AJ$77,Nutrients!$AJ$78)))))*AW$8))/2000","v":0.81186991699752797}]
["ME, kcal/lb",{"$f":"(SUMPRODUCT(B$9:B$229,Nutrients!$E$8:$E$228)+(IF($A$7=Nutrients!$B$8,Nutrients!$E$8,Nutrients!$E$9)*B$7)+(((IF($A$8=Nutrients!$B$79,Nutrients!$E$79,(IF($A$8=Nutrients!$B$77,Nutrients!$E$77,Nutrients!$E$78)))))*B$8))/2000/2.2046","v":1494.8752150724465},{"$f":"(SUMPRODUCT(C$9:C$229,Nutrients!$E$8:$E$228)+(IF($A$7=Nutrients!$B$8,Nutrients!$E$8,Nutrients!$E$9)*C$7)+(((IF($A$8=Nutrients!$B$79,Nutrients!$E$79,(IF($A$8=Nutrients!$B$77,Nutrients!$E$77,Nutrients!$E$78)))))*C$8))/2000/2.2046","v":1499.3360353372043},{"$f":"(SUMPRODUCT(D$9:D$229,Nutrients!$E$8:$E$228)+(IF($A$7=Nutrients!$B$8,Nutrients!$E$8,Nutrients!$E$9)*D$7)+(((IF($A$8=Nutrients!$B$79,Nutrients!$E$79,(IF($A$8=Nutrients!$B$77,Nutrients!$E$77,Nutrients!$E$78)))))*D$8))/2000/2.2046","v":1503.3094742023004},{"$f":"(SUMPRODUCT(E$9:E$229,Nutrients!$E$8:$E$228)+(IF($A$7=Nutrients!$B$8,Nutrients!$E$8,Nutrients!$E$9)*E$7)+(((IF($A$8=Nutrients!$B$79,Nutrients!$E$79,(IF($A$8=Nutrients!$B$77,Nutrients!$E$77,Nutrients!$E$78)))))*E$8))/2000/2.2046","v":1507.503198782209},{"$f":"(SUMPRODUCT(F$9:F$229,Nutrients!$E$8:$E$228)+(IF($A$7=Nutrients!$B$8,Nutrients!$E$8,Nutrients!$E$9)*F$7)+(((IF($A$8=Nutrients!$B$79,Nutrients!$E$79,(IF($A$8=Nutrients!$B$77,Nutrients!$E$77,Nutrients!$E$78)))))*F$8))/2000/2.2046","v":1511.0932854222328},{"$f":"(SUMPRODUCT(G$9:G$229,Nutrients!$E$8:$E$228)+(IF($A$7=Nutrients!$B$8,Nutrients!$E$8,Nutrients!$E$9)*G$7)+(((IF($A$8=Nutrients!$B$79,Nutrients!$E$79,(IF($A$8=Nutrients!$B$77,Nutrients!$E$77,Nutrients!$E$78)))))*G$8))/2000/2.2046","v":1512.5359640705287},null,{"$f":"(SUMPRODUCT(I$9:I$229,Nutrients!$E$8:$E$228)+(IF($A$7=Nutrients!$B$8,Nutrients!$E$8,Nutrients!$E$9)*I$7)+(((IF($A$8=Nutrients!$B$79,Nutrients!$E$79,(IF($A$8=Nutrients!$B$77,Nutrients!$E$77,Nutrients!$E$78)))))*I$8))/2000/2.2046","v":1498.0868445992664},{"$f":"(SUMPRODUCT(J$9:J$229,Nutrients!$E$8:$E$228)+(IF($A$7=Nutrients!$B$8,Nutrients!$E$8,Nutrients!$E$9)*J$7)+(((IF($A$8=Nutrients!$B$79,Nutrients!$E$79,(IF($A$8=Nutrients!$B$77,Nutrients!$E$77,Nutrients!$E$78)))))*J$8))/2000/2.2046","v":1502.4481960379085},{"$f":"(SUMPRODUCT(K$9:K$229,Nutrients!$E$8:$E$228)+(IF($A$7=Nutrients!$B$8,Nutrients!$E$8,Nutrients!$E$9)*K$7)+(((IF($A$8=Nutrients!$B$79,Nutrients!$E$79,(IF($A$8=Nutrients!$B$77,Nutrients!$E$77,Nutrients!$E$78)))))*K$8))/2000/2.2046","v":1506.6130446272007},{"$f":"(SUMPRODUCT(L$9:L$229,Nutrients!$E$8:$E$228)+(IF($A$7=Nutrients!$B$8,Nutrients!$E$8,Nutrients!$E$9)*L$7)+(((IF($A$8=Nutrients!$B$79,Nutrients!$E$79,(IF($A$8=Nutrients!$B$77,Nutrients!$E$77,Nutrients!$E$78)))))*L$8))/2000/2.2046","v":1510.6967700756811},{"$f":"(SUMPRODUCT(M$9:M$229,Nutrients!$E$8:$E$228)+(IF($A$7=Nutrients!$B$8,Nutrients!$E$8,Nutrients!$E$9)*M$7)+(((IF($A$8=Nutrients!$B$79,Nutrients!$E$79,(IF($A$8=Nutrients!$B$77,Nutrients!$E$77,Nutrients!$E$78)))))*M$8))/2000/2.2046","v":1514.2432218950551},{"$f":"(SUMPRODUCT(N$9:N$229,Nutrients!$E$8:$E$228)+(IF($A$7=Nutrients!$B$8,Nutrients!$E$8,Nutrients!$E$9)*N$7)+(((IF($A$8=Nutrients!$B$79,Nutrients!$E$79,(IF($A$8=Nutrients!$B$77,Nutrients!$E$77,Nutrients!$E$78)))))*N$8))/2000/2.2046","v":1512.5359640705287},null,{"$f":"(SUMPRODUCT(P$9:P$229,Nutrients!$E$8:$E$228)+(IF($A$7=Nutrients!$B$8,Nutrients!$E$8,Nutrients!$E$9)*P$7)+(((IF($A$8=Nutrients!$B$79,Nutrients!$E$79,(IF($A$8=Nutrients!$B$77,Nutrients!$E$77,Nutrients!$E$78)))))*P$8))/2000/2.2046","v":1501.2688212963453},{"$f":"(SUMPRODUCT(Q$9:Q$229,Nutrients!$E$8:$E$228)+(IF($A$7=Nutrients!$B$8,Nutrients!$E$8,Nutrients!$E$9)*Q$7)+(((IF($A$8=Nutrients!$B$79,Nutrients!$E$79,(IF($A$8=Nutrients!$B$77,Nutrients!$E$77,Nutrients!$E$78)))))*Q$8))/2000/2.2046","v":1505.663411520967},{"$f":"(SUMPRODUCT(R$9:R$229,Nutrients!$E$8:$E$228)+(IF($A$7=Nutrients!$B$8,Nutrients!$E$8,Nutrients!$E$9)*R$7)+(((IF($A$8=Nutrients!$B$79,Nutrients!$E$79,(IF($A$8=Nutrients!$B$77,Nutrients!$E$77,Nutrients!$E$78)))))*R$8))/2000/2.2046","v":1509.8222902722835},{"$f":"(SUMPRODUCT(S$9:S$229,Nutrients!$E$8:$E$228)+(IF($A$7=Nutrients!$B$8,Nutrients!$E$8,Nutrients!$E$9)*S$7)+(((IF($A$8=Nutrients!$B$79,Nutrients!$E$79,(IF($A$8=Nutrients!$B$77,Nutrients!$E$77,Nutrients!$E$78)))))*S$8))/2000/2.2046","v":1513.9385003735563},{"$f":"(SUMPRODUCT(T$9:T$229,Nutrients!$E$8:$E$228)+(IF($A$7=Nutrients!$B$8,Nutrients!$E$8,Nutrients!$E$9)*T$7)+(((IF($A$8=Nutrients!$B$79,Nutrients!$E$79,(IF($A$8=Nutrients!$B$77,Nutrients!$E$77,Nutrients!$E$78)))))*T$8))/2000/2.2046","v":1517.4784392778117},{"$f":"(SUMPRODUCT(U$9:U$229,Nutrients!$E$8:$E$228)+(IF($A$7=Nutrients!$B$8,Nutrients!$E$8,Nutrients!$E$9)*U$7)+(((IF($A$8=Nutrients!$B$79,Nutrients!$E$79,(IF($A$8=Nutrients!$B$77,Nutrients!$E$77,Nutrients!$E$78)))))*U$8))/2000/2.2046","v":1512.5359640705287},null,{"$f":"(SUMPRODUCT(W$9:W$229,Nutrients!$E$8:$E$228)+(IF($A$7=Nutrients!$B$8,Nutrients!$E$8,Nutrients!$E$9)*W$7)+(((IF($A$8=Nutrients!$B$79,Nutrients!$E$79,(IF($A$8=Nutrients!$B$77,Nutrients!$E$77,Nutrients!$E$78)))))*W$8))/2000/2.2046","v":1504.4782543248048},{"$f":"(SUMPRODUCT(X$9:X$229,Nutrients!$E$8:$E$228)+(IF($A$7=Nutrients!$B$8,Nutrients!$E$8,Nutrients!$E$9)*X$7)+(((IF($A$8=Nutrients!$B$79,Nutrients!$E$79,(IF($A$8=Nutrients!$B$77,Nutrients!$E$77,Nutrients!$E$78)))))*X$8))/2000/2.2046","v":1508.8790301770694},{"$f":"(SUMPRODUCT(Y$9:Y$229,Nutrients!$E$8:$E$228)+(IF($A$7=Nutrients!$B$8,Nutrients!$E$8,Nutrients!$E$9)*Y$7)+(((IF($A$8=Nutrients!$B$79,Nutrients!$E$79,(IF($A$8=Nutrients!$B$77,Nutrients!$E$77,Nutrients!$E$78)))))*Y$8))/2000/2.2046","v":1513.0847003822912},{"$f":"(SUMPRODUCT(Z$9:Z$229,Nutrients!$E$8:$E$228)+(IF($A$7=Nutrients!$B$8,Nutrients!$E$8,Nutrients!$E$9)*Z$7)+(((IF($A$8=Nutrients!$B$79,Nutrients!$E$79,(IF($A$8=Nutrients!$B$77,Nutrients!$E$77,Nutrients!$E$78)))))*Z$8))/2000/2.2046","v":1517.2244099388729},{"$f":"(SUMPRODUCT(AA$9:AA$229,Nutrients!$E$8:$E$228)+(IF($A$7=Nutrients!$B$8,Nutrients!$E$8,Nutrients!$E$9)*AA$7)+(((IF($A$8=Nutrients!$B$79,Nutrients!$E$79,(IF($A$8=Nutrients!$B$77,Nutrients!$E$77,Nutrients!$E$78)))))*AA$8))/2000/2.2046","v":1520.865367182975},{"$f":"(SUMPRODUCT(AB$9:AB$229,Nutrients!$E$8:$E$228)+(IF($A$7=Nutrients!$B$8,Nutrients!$E$8,Nutrients!$E$9)*AB$7)+(((IF($A$8=Nutrients!$B$79,Nutrients!$E$79,(IF($A$8=Nutrients!$B$77,Nutrients!$E$77,Nutrients!$E$78)))))*AB$8))/2000/2.2046","v":1512.5359640705287},null,{"$f":"(SUMPRODUCT(AD$9:AD$229,Nutrients!$E$8:$E$228)+(IF($A$7=Nutrients!$B$8,Nutrients!$E$8,Nutrients!$E$9)*AD$7)+(((IF($A$8=Nutrients!$B$79,Nutrients!$E$79,(IF($A$8=Nutrients!$B$77,Nutrients!$E$77,Nutrients!$E$78)))))*AD$8))/2000/2.2046","v":1507.7270252484961},{"$f":"(SUMPRODUCT(AE$9:AE$229,Nutrients!$E$8:$E$228)+(IF($A$7=Nutrients!$B$8,Nutrients!$E$8,Nutrients!$E$9)*AE$7)+(((IF($A$8=Nutrients!$B$79,Nutrients!$E$79,(IF($A$8=Nutrients!$B$77,Nutrients!$E$77,Nutrients!$E$78)))))*AE$8))/2000/2.2046","v":1512.1523974571769},{"$f":"(SUMPRODUCT(AF$9:AF$229,Nutrients!$E$8:$E$228)+(IF($A$7=Nutrients!$B$8,Nutrients!$E$8,Nutrients!$E$9)*AF$7)+(((IF($A$8=Nutrients!$B$79,Nutrients!$E$79,(IF($A$8=Nutrients!$B$77,Nutrients!$E$77,Nutrients!$E$78)))))*AF$8))/2000/2.2046","v":1516.3946504032288},{"$f":"(SUMPRODUCT(AG$9:AG$229,Nutrients!$E$8:$E$228)+(IF($A$7=Nutrients!$B$8,Nutrients!$E$8,Nutrients!$E$9)*AG$7)+(((IF($A$8=Nutrients!$B$79,Nutrients!$E$79,(IF($A$8=Nutrients!$B$77,Nutrients!$E$77,Nutrients!$E$78)))))*AG$8))/2000/2.2046","v":1520.6101083953729},{"$f":"(SUMPRODUCT(AH$9:AH$229,Nutrients!$E$8:$E$228)+(IF($A$7=Nutrients!$B$8,Nutrients!$E$8,Nutrients!$E$9)*AH$7)+(((IF($A$8=Nutrients!$B$79,Nutrients!$E$79,(IF($A$8=Nutrients!$B$77,Nutrients!$E$77,Nutrients!$E$78)))))*AH$8))/2000/2.2046","v":1523.2228470504961},{"$f":"(SUMPRODUCT(AI$9:AI$229,Nutrients!$E$8:$E$228)+(IF($A$7=Nutrients!$B$8,Nutrients!$E$8,Nutrients!$E$9)*AI$7)+(((IF($A$8=Nutrients!$B$79,Nutrients!$E$79,(IF($A$8=Nutrients!$B$77,Nutrients!$E$77,Nutrients!$E$78)))))*AI$8))/2000/2.2046","v":1512.5359640705287},null,{"$f":"(SUMPRODUCT(AK$9:AK$229,Nutrients!$E$8:$E$228)+(IF($A$7=Nutrients!$B$8,Nutrients!$E$8,Nutrients!$E$9)*AK$7)+(((IF($A$8=Nutrients!$B$79,Nutrients!$E$79,(IF($A$8=Nutrients!$B$77,Nutrients!$E$77,Nutrients!$E$78)))))*AK$8))/2000/2.2046","v":1510.978530508231},{"$f":"(SUMPRODUCT(AL$9:AL$229,Nutrients!$E$8:$E$228)+(IF($A$7=Nutrients!$B$8,Nutrients!$E$8,Nutrients!$E$9)*AL$7)+(((IF($A$8=Nutrients!$B$79,Nutrients!$E$79,(IF($A$8=Nutrients!$B$77,Nutrients!$E$77,Nutrients!$E$78)))))*AL$8))/2000/2.2046","v":1515.38510923799},{"$f":"(SUMPRODUCT(AM$9:AM$229,Nutrients!$E$8:$E$228)+(IF($A$7=Nutrients!$B$8,Nutrients!$E$8,Nutrients!$E$9)*AM$7)+(((IF($A$8=Nutrients!$B$79,Nutrients!$E$79,(IF($A$8=Nutrients!$B$77,Nutrients!$E$77,Nutrients!$E$78)))))*AM$8))/2000/2.2046","v":1519.7472957913126},{"$f":"(SUMPRODUCT(AN$9:AN$229,Nutrients!$E$8:$E$228)+(IF($A$7=Nutrients!$B$8,Nutrients!$E$8,Nutrients!$E$9)*AN$7)+(((IF($A$8=Nutrients!$B$79,Nutrients!$E$79,(IF($A$8=Nutrients!$B$77,Nutrients!$E$77,Nutrients!$E$78)))))*AN$8))/2000/2.2046","v":1523.1789863005572},{"$f":"(SUMPRODUCT(AO$9:AO$229,Nutrients!$E$8:$E$228)+(IF($A$7=Nutrients!$B$8,Nutrients!$E$8,Nutrients!$E$9)*AO$7)+(((IF($A$8=Nutrients!$B$79,Nutrients!$E$79,(IF($A$8=Nutrients!$B$77,Nutrients!$E$77,Nutrients!$E$78)))))*AO$8))/2000/2.2046","v":1525.2126986484188},{"$f":"(SUMPRODUCT(AP$9:AP$229,Nutrients!$E$8:$E$228)+(IF($A$7=Nutrients!$B$8,Nutrients!$E$8,Nutrients!$E$9)*AP$7)+(((IF($A$8=Nutrients!$B$79,Nutrients!$E$79,(IF($A$8=Nutrients!$B$77,Nutrients!$E$77,Nutrients!$E$78)))))*AP$8))/2000/2.2046","v":1512.5359640705287},null,{"$f":"(SUMPRODUCT(AR$9:AR$229,Nutrients!$E$8:$E$228)+(IF($A$7=Nutrients!$B$8,Nutrients!$E$8,Nutrients!$E$9)*AR$7)+(((IF($A$8=Nutrients!$B$79,Nutrients!$E$79,(IF($A$8=Nutrients!$B$77,Nutrients!$E$77,Nutrients!$E$78)))))*AR$8))/2000/2.2046","v":1514.1679587011597},{"$f":"(SUMPRODUCT(AS$9:AS$229,Nutrients!$E$8:$E$228)+(IF($A$7=Nutrients!$B$8,Nutrients!$E$8,Nutrients!$E$9)*AS$7)+(((IF($A$8=Nutrients!$B$79,Nutrients!$E$79,(IF($A$8=Nutrients!$B$77,Nutrients!$E$77,Nutrients!$E$78)))))*AS$8))/2000/2.2046","v":1518.7001411383822},{"$f":"(SUMPRODUCT(AT$9:AT$229,Nutrients!$E$8:$E$228)+(IF($A$7=Nutrients!$B$8,Nutrients!$E$8,Nutrients!$E$9)*AT$7)+(((IF($A$8=Nutrients!$B$79,Nutrients!$E$79,(IF($A$8=Nutrients!$B$77,Nutrients!$E$77,Nutrients!$E$78)))))*AT$8))/2000/2.2046","v":1523.1316751568793},{"$f":"(SUMPRODUCT(AU$9:AU$229,Nutrients!$E$8:$E$228)+(IF($A$7=Nutrients!$B$8,Nutrients!$E$8,Nutrients!$E$9)*AU$7)+(((IF($A$8=Nutrients!$B$79,Nutrients!$E$79,(IF($A$8=Nutrients!$B$77,Nutrients!$E$77,Nutrients!$E$78)))))*AU$8))/2000/2.2046","v":1525.1684045232175},{"$f":"(SUMPRODUCT(AV$9:AV$229,Nutrients!$E$8:$E$228)+(IF($A$7=Nutrients!$B$8,Nutrients!$E$8,Nutrients!$E$9)*AV$7)+(((IF($A$8=Nutrients!$B$79,Nutrients!$E$79,(IF($A$8=Nutrients!$B$77,Nutrients!$E$77,Nutrients!$E$78)))))*AV$8))/2000/2.2046","v":1527.2023630077874},{"$f":"(SUMPRODUCT(AW$9:AW$229,Nutrients!$E$8:$E$228)+(IF($A$7=Nutrients!$B$8,Nutrients!$E$8,Nutrients!$E$9)*AW$7)+(((IF($A$8=Nutrients!$B$79,Nutrients!$E$79,(IF($A$8=Nutrients!$B$77,Nutrients!$E$77,Nutrients!$E$78)))))*AW$8))/2000/2.2046","v":1512.5359640705287}]
["NE Noblet Grow/Finish, kcal/lb",{"$f":"(SUMPRODUCT(B$9:B$229,Nutrients!$DY$8:$DY$228)+(IF($A$7=Nutrients!$B$8,Nutrients!$DY$8,Nutrients!$DY$9)*B$7)+(((IF($A$8=Nutrients!$B$79,Nutrients!$DY$79,(IF($A$8=Nutrients!$B$77,Nutrients!$DY$77,Nutrients!$DY$78)))))*B$8))/2000/2.2046","v":1097.7096913668909},{"$f":"(SUMPRODUCT(C$9:C$229,Nutrients!$DY$8:$DY$228)+(IF($A$7=Nutrients!$B$8,Nutrients!$DY$8,Nutrients!$DY$9)*C$7)+(((IF($A$8=Nutrients!$B$79,Nutrients!$DY$79,(IF($A$8=Nutrients!$B$77,Nutrients!$DY$77,Nutrients!$DY$78)))))*C$8))/2000/2.2046","v":1111.6567624325369},{"$f":"(SUMPRODUCT(D$9:D$229,Nutrients!$DY$8:$DY$228)+(IF($A$7=Nutrients!$B$8,Nutrients!$DY$8,Nutrients!$DY$9)*D$7)+(((IF($A$8=Nutrients!$B$79,Nutrients!$DY$79,(IF($A$8=Nutrients!$B$77,Nutrients!$DY$77,Nutrients!$DY$78)))))*D$8))/2000/2.2046","v":1123.5684729276254},{"$f":"(SUMPRODUCT(E$9:E$229,Nutrients!$DY$8:$DY$228)+(IF($A$7=Nutrients!$B$8,Nutrients!$DY$8,Nutrients!$DY$9)*E$7)+(((IF($A$8=Nutrients!$B$79,Nutrients!$DY$79,(IF($A$8=Nutrients!$B$77,Nutrients!$DY$77,Nutrients!$DY$78)))))*E$8))/2000/2.2046","v":1135.5706715184997},{"$f":"(SUMPRODUCT(F$9:F$229,Nutrients!$DY$8:$DY$228)+(IF($A$7=Nutrients!$B$8,Nutrients!$DY$8,Nutrients!$DY$9)*F$7)+(((IF($A$8=Nutrients!$B$79,Nutrients!$DY$79,(IF($A$8=Nutrients!$B$77,Nutrients!$DY$77,Nutrients!$DY$78)))))*F$8))/2000/2.2046","v":1145.7413873005344},{"$f":"(SUMPRODUCT(G$9:G$229,Nutrients!$DY$8:$DY$228)+(IF($A$7=Nutrients!$B$8,Nutrients!$DY$8,Nutrients!$DY$9)*G$7)+(((IF($A$8=Nutrients!$B$79,Nutrients!$DY$79,(IF($A$8=Nutrients!$B$77,Nutrients!$DY$77,Nutrients!$DY$78)))))*G$8))/2000/2.2046","v":1150.9323531256127},null,{"$f":"(SUMPRODUCT(I$9:I$229,Nutrients!$DY$8:$DY$228)+(IF($A$7=Nutrients!$B$8,Nutrients!$DY$8,Nutrients!$DY$9)*I$7)+(((IF($A$8=Nutrients!$B$79,Nutrients!$DY$79,(IF($A$8=Nutrients!$B$77,Nutrients!$DY$77,Nutrients!$DY$78)))))*I$8))/2000/2.2046","v":1043.1006759003428},{"$f":"(SUMPRODUCT(J$9:J$229,Nutrients!$DY$8:$DY$228)+(IF($A$7=Nutrients!$B$8,Nutrients!$DY$8,Nutrients!$DY$9)*J$7)+(((IF($A$8=Nutrients!$B$79,Nutrients!$DY$79,(IF($A$8=Nutrients!$B$77,Nutrients!$DY$77,Nutrients!$DY$78)))))*J$8))/2000/2.2046","v":1056.8136957429654},{"$f":"(SUMPRODUCT(K$9:K$229,Nutrients!$DY$8:$DY$228)+(IF($A$7=Nutrients!$B$8,Nutrients!$DY$8,Nutrients!$DY$9)*K$7)+(((IF($A$8=Nutrients!$B$79,Nutrients!$DY$79,(IF($A$8=Nutrients!$B$77,Nutrients!$DY$77,Nutrients!$DY$78)))))*K$8))/2000/2.2046","v":1068.7459497397103},{"$f":"(SUMPRODUCT(L$9:L$229,Nutrients!$DY$8:$DY$228)+(IF($A$7=Nutrients!$B$8,Nutrients!$DY$8,Nutrients!$DY$9)*L$7)+(((IF($A$8=Nutrients!$B$79,Nutrients!$DY$79,(IF($A$8=Nutrients!$B$77,Nutrients!$DY$77,Nutrients!$DY$78)))))*L$8))/2000/2.2046","v":1080.5784931169928},{"$f":"(SUMPRODUCT(M$9:M$229,Nutrients!$DY$8:$DY$228)+(IF($A$7=Nutrients!$B$8,Nutrients!$DY$8,Nutrients!$DY$9)*M$7)+(((IF($A$8=Nutrients!$B$79,Nutrients!$DY$79,(IF($A$8=Nutrients!$B$77,Nutrients!$DY$77,Nutrients!$DY$78)))))*M$8))/2000/2.2046","v":1090.7223415571982},{"$f":"(SUMPRODUCT(N$9:N$229,Nutrients!$DY$8:$DY$228)+(IF($A$7=Nutrients!$B$8,Nutrients!$DY$8,Nutrients!$DY$9)*N$7)+(((IF($A$8=Nutrients!$B$79,Nutrients!$DY$79,(IF($A$8=Nutrients!$B$77,Nutrients!$DY$77,Nutrients!$DY$78)))))*N$8))/2000/2.2046","v":1150.9323531256127},null,{"$f":"(SUMPRODUCT(P$9:P$229,Nutrients!$DY$8:$DY$228)+(IF($A$7=Nutrients!$B$8,Nutrients!$DY$8,Nutrients!$DY$9)*P$7)+(((IF($A$8=Nutrients!$B$79,Nutrients!$DY$79,(IF($A$8=Nutrients!$B$77,Nutrients!$DY$77,Nutrients!$DY$78)))))*P$8))/2000/2.2046","v":988.26820251019899},{"$f":"(SUMPRODUCT(Q$9:Q$229,Nutrients!$DY$8:$DY$228)+(IF($A$7=Nutrients!$B$8,Nutrients!$DY$8,Nutrients!$DY$9)*Q$7)+(((IF($A$8=Nutrients!$B$79,Nutrients!$DY$79,(IF($A$8=Nutrients!$B$77,Nutrients!$DY$77,Nutrients!$DY$78)))))*Q$8))/2000/2.2046","v":1001.9108855105634},{"$f":"(SUMPRODUCT(R$9:R$229,Nutrients!$DY$8:$DY$228)+(IF($A$7=Nutrients!$B$8,Nutrients!$DY$8,Nutrients!$DY$9)*R$7)+(((IF($A$8=Nutrients!$B$79,Nutrients!$DY$79,(IF($A$8=Nutrients!$B$77,Nutrients!$DY$77,Nutrients!$DY$78)))))*R$8))/2000/2.2046","v":1013.7389374457214},{"$f":"(SUMPRODUCT(S$9:S$229,Nutrients!$DY$8:$DY$228)+(IF($A$7=Nutrients!$B$8,Nutrients!$DY$8,Nutrients!$DY$9)*S$7)+(((IF($A$8=Nutrients!$B$79,Nutrients!$DY$79,(IF($A$8=Nutrients!$B$77,Nutrients!$DY$77,Nutrients!$DY$78)))))*S$8))/2000/2.2046","v":1025.6421325291283},{"$f":"(SUMPRODUCT(T$9:T$229,Nutrients!$DY$8:$DY$228)+(IF($A$7=Nutrients!$B$8,Nutrients!$DY$8,Nutrients!$DY$9)*T$7)+(((IF($A$8=Nutrients!$B$79,Nutrients!$DY$79,(IF($A$8=Nutrients!$B$77,Nutrients!$DY$77,Nutrients!$DY$78)))))*T$8))/2000/2.2046","v":1035.6988684197988},{"$f":"(SUMPRODUCT(U$9:U$229,Nutrients!$DY$8:$DY$228)+(IF($A$7=Nutrients!$B$8,Nutrients!$DY$8,Nutrients!$DY$9)*U$7)+(((IF($A$8=Nutrients!$B$79,Nutrients!$DY$79,(IF($A$8=Nutrients!$B$77,Nutrients!$DY$77,Nutrients!$DY$78)))))*U$8))/2000/2.2046","v":1150.9323531256127},null,{"$f":"(SUMPRODUCT(W$9:W$229,Nutrients!$DY$8:$DY$228)+(IF($A$7=Nutrients!$B$8,Nutrients!$DY$8,Nutrients!$DY$9)*W$7)+(((IF($A$8=Nutrients!$B$79,Nutrients!$DY$79,(IF($A$8=Nutrients!$B$77,Nutrients!$DY$77,Nutrients!$DY$78)))))*W$8))/2000/2.2046","v":933.45605645903834},{"$f":"(SUMPRODUCT(X$9:X$229,Nutrients!$DY$8:$DY$228)+(IF($A$7=Nutrients!$B$8,Nutrients!$DY$8,Nutrients!$DY$9)*X$7)+(((IF($A$8=Nutrients!$B$79,Nutrients!$DY$79,(IF($A$8=Nutrients!$B$77,Nutrients!$DY$77,Nutrients!$DY$78)))))*X$8))/2000/2.2046","v":947.00860975295654},{"$f":"(SUMPRODUCT(Y$9:Y$229,Nutrients!$DY$8:$DY$228)+(IF($A$7=Nutrients!$B$8,Nutrients!$DY$8,Nutrients!$DY$9)*Y$7)+(((IF($A$8=Nutrients!$B$79,Nutrients!$DY$79,(IF($A$8=Nutrients!$B$77,Nutrients!$DY$77,Nutrients!$DY$78)))))*Y$8))/2000/2.2046","v":958.91630516030352},{"$f":"(SUMPRODUCT(Z$9:Z$229,Nutrients!$DY$8:$DY$228)+(IF($A$7=Nutrients!$B$8,Nutrients!$DY$8,Nutrients!$DY$9)*Z$7)+(((IF($A$8=Nutrients!$B$79,Nutrients!$DY$79,(IF($A$8=Nutrients!$B$77,Nutrients!$DY$77,Nutrients!$DY$78)))))*Z$8))/2000/2.2046","v":970.70096158413992},{"$f":"(SUMPRODUCT(AA$9:AA$229,Nutrients!$DY$8:$DY$228)+(IF($A$7=Nutrients!$B$8,Nutrients!$DY$8,Nutrients!$DY$9)*AA$7)+(((IF($A$8=Nutrients!$B$79,Nutrients!$DY$79,(IF($A$8=Nutrients!$B$77,Nutrients!$DY$77,Nutrients!$DY$78)))))*AA$8))/2000/2.2046","v":980.77689460276588},{"$f":"(SUMPRODUCT(AB$9:AB$229,Nutrients!$DY$8:$DY$228)+(IF($A$7=Nutrients!$B$8,Nutrients!$DY$8,Nutrients!$DY$9)*AB$7)+(((IF($A$8=Nutrients!$B$79,Nutrients!$DY$79,(IF($A$8=Nutrients!$B$77,Nutrients!$DY$77,Nutrients!$DY$78)))))*AB$8))/2000/2.2046","v":1150.9323531256127},null,{"$f":"(SUMPRODUCT(AD$9:AD$229,Nutrients!$DY$8:$DY$228)+(IF($A$7=Nutrients!$B$8,Nutrients!$DY$8,Nutrients!$DY$9)*AD$7)+(((IF($A$8=Nutrients!$B$79,Nutrients!$DY$79,(IF($A$8=Nutrients!$B$77,Nutrients!$DY$77,Nutrients!$DY$78)))))*AD$8))/2000/2.2046","v":878.68428443859273},{"$f":"(SUMPRODUCT(AE$9:AE$229,Nutrients!$DY$8:$DY$228)+(IF($A$7=Nutrients!$B$8,Nutrients!$DY$8,Nutrients!$DY$9)*AE$7)+(((IF($A$8=Nutrients!$B$79,Nutrients!$DY$79,(IF($A$8=Nutrients!$B$77,Nutrients!$DY$77,Nutrients!$DY$78)))))*AE$8))/2000/2.2046","v":892.29172521026396},{"$f":"(SUMPRODUCT(AF$9:AF$229,Nutrients!$DY$8:$DY$228)+(IF($A$7=Nutrients!$B$8,Nutrients!$DY$8,Nutrients!$DY$9)*AF$7)+(((IF($A$8=Nutrients!$B$79,Nutrients!$DY$79,(IF($A$8=Nutrients!$B$77,Nutrients!$DY$77,Nutrients!$DY$78)))))*AF$8))/2000/2.2046","v":904.09421278685716},{"$f":"(SUMPRODUCT(AG$9:AG$229,Nutrients!$DY$8:$DY$228)+(IF($A$7=Nutrients!$B$8,Nutrients!$DY$8,Nutrients!$DY$9)*AG$7)+(((IF($A$8=Nutrients!$B$79,Nutrients!$DY$79,(IF($A$8=Nutrients!$B$77,Nutrients!$DY$77,Nutrients!$DY$78)))))*AG$8))/2000/2.2046","v":915.83424701967965},{"$f":"(SUMPRODUCT(AH$9:AH$229,Nutrients!$DY$8:$DY$228)+(IF($A$7=Nutrients!$B$8,Nutrients!$DY$8,Nutrients!$DY$9)*AH$7)+(((IF($A$8=Nutrients!$B$79,Nutrients!$DY$79,(IF($A$8=Nutrients!$B$77,Nutrients!$DY$77,Nutrients!$DY$78)))))*AH$8))/2000/2.2046","v":925.09276519038235},{"$f":"(SUMPRODUCT(AI$9:AI$229,Nutrients!$DY$8:$DY$228)+(IF($A$7=Nutrients!$B$8,Nutrients!$DY$8,Nutrients!$DY$9)*AI$7)+(((IF($A$8=Nutrients!$B$79,Nutrients!$DY$79,(IF($A$8=Nutrients!$B$77,Nutrients!$DY$77,Nutrients!$DY$78)))))*AI$8))/2000/2.2046","v":1150.9323531256127},null,{"$f":"(SUMPRODUCT(AK$9:AK$229,Nutrients!$DY$8:$DY$228)+(IF($A$7=Nutrients!$B$8,Nutrients!$DY$8,Nutrients!$DY$9)*AK$7)+(((IF($A$8=Nutrients!$B$79,Nutrients!$DY$79,(IF($A$8=Nutrients!$B$77,Nutrients!$DY$77,Nutrients!$DY$78)))))*AK$8))/2000/2.2046","v":823.87678223231501},{"$f":"(SUMPRODUCT(AL$9:AL$229,Nutrients!$DY$8:$DY$228)+(IF($A$7=Nutrients!$B$8,Nutrients!$DY$8,Nutrients!$DY$9)*AL$7)+(((IF($A$8=Nutrients!$B$79,Nutrients!$DY$79,(IF($A$8=Nutrients!$B$77,Nutrients!$DY$77,Nutrients!$DY$78)))))*AL$8))/2000/2.2046","v":837.50369400307216},{"$f":"(SUMPRODUCT(AM$9:AM$229,Nutrients!$DY$8:$DY$228)+(IF($A$7=Nutrients!$B$8,Nutrients!$DY$8,Nutrients!$DY$9)*AM$7)+(((IF($A$8=Nutrients!$B$79,Nutrients!$DY$79,(IF($A$8=Nutrients!$B$77,Nutrients!$DY$77,Nutrients!$DY$78)))))*AM$8))/2000/2.2046","v":849.28670750129254},{"$f":"(SUMPRODUCT(AN$9:AN$229,Nutrients!$DY$8:$DY$228)+(IF($A$7=Nutrients!$B$8,Nutrients!$DY$8,Nutrients!$DY$9)*AN$7)+(((IF($A$8=Nutrients!$B$79,Nutrients!$DY$79,(IF($A$8=Nutrients!$B$77,Nutrients!$DY$77,Nutrients!$DY$78)))))*AN$8))/2000/2.2046","v":860.36279610015413},{"$f":"(SUMPRODUCT(AO$9:AO$229,Nutrients!$DY$8:$DY$228)+(IF($A$7=Nutrients!$B$8,Nutrients!$DY$8,Nutrients!$DY$9)*AO$7)+(((IF($A$8=Nutrients!$B$79,Nutrients!$DY$79,(IF($A$8=Nutrients!$B$77,Nutrients!$DY$77,Nutrients!$DY$78)))))*AO$8))/2000/2.2046","v":869.1360266888895},{"$f":"(SUMPRODUCT(AP$9:AP$229,Nutrients!$DY$8:$DY$228)+(IF($A$7=Nutrients!$B$8,Nutrients!$DY$8,Nutrients!$DY$9)*AP$7)+(((IF($A$8=Nutrients!$B$79,Nutrients!$DY$79,(IF($A$8=Nutrients!$B$77,Nutrients!$DY$77,Nutrients!$DY$78)))))*AP$8))/2000/2.2046","v":1150.9323531256127},null,{"$f":"(SUMPRODUCT(AR$9:AR$229,Nutrients!$DY$8:$DY$228)+(IF($A$7=Nutrients!$B$8,Nutrients!$DY$8,Nutrients!$DY$9)*AR$7)+(((IF($A$8=Nutrients!$B$79,Nutrients!$DY$79,(IF($A$8=Nutrients!$B$77,Nutrients!$DY$77,Nutrients!$DY$78)))))*AR$8))/2000/2.2046","v":768.74335786890504},{"$f":"(SUMPRODUCT(AS$9:AS$229,Nutrients!$DY$8:$DY$228)+(IF($A$7=Nutrients!$B$8,Nutrients!$DY$8,Nutrients!$DY$9)*AS$7)+(((IF($A$8=Nutrients!$B$79,Nutrients!$DY$79,(IF($A$8=Nutrients!$B$77,Nutrients!$DY$77,Nutrients!$DY$78)))))*AS$8))/2000/2.2046","v":782.77518086242571},{"$f":"(SUMPRODUCT(AT$9:AT$229,Nutrients!$DY$8:$DY$228)+(IF($A$7=Nutrients!$B$8,Nutrients!$DY$8,Nutrients!$DY$9)*AT$7)+(((IF($A$8=Nutrients!$B$79,Nutrients!$DY$79,(IF($A$8=Nutrients!$B$77,Nutrients!$DY$77,Nutrients!$DY$78)))))*AT$8))/2000/2.2046","v":794.47334957347994},{"$f":"(SUMPRODUCT(AU$9:AU$229,Nutrients!$DY$8:$DY$228)+(IF($A$7=Nutrients!$B$8,Nutrients!$DY$8,Nutrients!$DY$9)*AU$7)+(((IF($A$8=Nutrients!$B$79,Nutrients!$DY$79,(IF($A$8=Nutrients!$B$77,Nutrients!$DY$77,Nutrients!$DY$78)))))*AU$8))/2000/2.2046","v":804.45275011616241},{"$f":"(SUMPRODUCT(AV$9:AV$229,Nutrients!$DY$8:$DY$228)+(IF($A$7=Nutrients!$B$8,Nutrients!$DY$8,Nutrients!$DY$9)*AV$7)+(((IF($A$8=Nutrients!$B$79,Nutrients!$DY$79,(IF($A$8=Nutrients!$B$77,Nutrients!$DY$77,Nutrients!$DY$78)))))*AV$8))/2000/2.2046","v":813.17842637614274},{"$f":"(SUMPRODUCT(AW$9:AW$229,Nutrients!$DY$8:$DY$228)+(IF($A$7=Nutrients!$B$8,Nutrients!$DY$8,Nutrients!$DY$9)*AW$7)+(((IF($A$8=Nutrients!$B$79,Nutrients!$DY$79,(IF($A$8=Nutrients!$B$77,Nutrients!$DY$77,Nutrients!$DY$78)))))*AW$8))/2000/2.2046","v":1150.9323531256127}]
["NE Noblet Sow, kcal/lb",{"$f":"(SUMPRODUCT(B$9:B$229,Nutrients!$DZ$8:$DZ$228)+(IF($A$7=Nutrients!$B$8,Nutrients!$DZ$8,Nutrients!$DZ$9)*B$7)+(((IF($A$8=Nutrients!$B$79,Nutrients!$DZ$79,(IF($A$8=Nutrients!$B$77,Nutrients!$DZ$77,Nutrients!$DZ$78)))))*B$8))/2000/2.2046","v":1137.6355538359269},{"$f":"(SUMPRODUCT(C$9:C$229,Nutrients!$DZ$8:$DZ$228)+(IF($A$7=Nutrients!$B$8,Nutrients!$DZ$8,Nutrients!$DZ$9)*C$7)+(((IF($A$8=Nutrients!$B$79,Nutrients!$DZ$79,(IF($A$8=Nutrients!$B$77,Nutrients!$DZ$77,Nutrients!$DZ$78)))))*C$8))/2000/2.2046","v":1150.9934545095848},{"$f":"(SUMPRODUCT(D$9:D$229,Nutrients!$DZ$8:$DZ$228)+(IF($A$7=Nutrients!$B$8,Nutrients!$DZ$8,Nutrients!$DZ$9)*D$7)+(((IF($A$8=Nutrients!$B$79,Nutrients!$DZ$79,(IF($A$8=Nutrients!$B$77,Nutrients!$DZ$77,Nutrients!$DZ$78)))))*D$8))/2000/2.2046","v":1162.42368942858},{"$f":"(SUMPRODUCT(E$9:E$229,Nutrients!$DZ$8:$DZ$228)+(IF($A$7=Nutrients!$B$8,Nutrients!$DZ$8,Nutrients!$DZ$9)*E$7)+(((IF($A$8=Nutrients!$B$79,Nutrients!$DZ$79,(IF($A$8=Nutrients!$B$77,Nutrients!$DZ$77,Nutrients!$DZ$78)))))*E$8))/2000/2.2046","v":1173.9065707641619},{"$f":"(SUMPRODUCT(F$9:F$229,Nutrients!$DZ$8:$DZ$228)+(IF($A$7=Nutrients!$B$8,Nutrients!$DZ$8,Nutrients!$DZ$9)*F$7)+(((IF($A$8=Nutrients!$B$79,Nutrients!$DZ$79,(IF($A$8=Nutrients!$B$77,Nutrients!$DZ$77,Nutrients!$DZ$78)))))*F$8))/2000/2.2046","v":1183.6213518369293},{"$f":"(SUMPRODUCT(G$9:G$229,Nutrients!$DZ$8:$DZ$228)+(IF($A$7=Nutrients!$B$8,Nutrients!$DZ$8,Nutrients!$DZ$9)*G$7)+(((IF($A$8=Nutrients!$B$79,Nutrients!$DZ$79,(IF($A$8=Nutrients!$B$77,Nutrients!$DZ$77,Nutrients!$DZ$78)))))*G$8))/2000/2.2046","v":1188.5451985530322},null,{"$f":"(SUMPRODUCT(I$9:I$229,Nutrients!$DZ$8:$DZ$228)+(IF($A$7=Nutrients!$B$8,Nutrients!$DZ$8,Nutrients!$DZ$9)*I$7)+(((IF($A$8=Nutrients!$B$79,Nutrients!$DZ$79,(IF($A$8=Nutrients!$B$77,Nutrients!$DZ$77,Nutrients!$DZ$78)))))*I$8))/2000/2.2046","v":1080.9078874947747},{"$f":"(SUMPRODUCT(J$9:J$229,Nutrients!$DZ$8:$DZ$228)+(IF($A$7=Nutrients!$B$8,Nutrients!$DZ$8,Nutrients!$DZ$9)*J$7)+(((IF($A$8=Nutrients!$B$79,Nutrients!$DZ$79,(IF($A$8=Nutrients!$B$77,Nutrients!$DZ$77,Nutrients!$DZ$78)))))*J$8))/2000/2.2046","v":1094.0397923300377},{"$f":"(SUMPRODUCT(K$9:K$229,Nutrients!$DZ$8:$DZ$228)+(IF($A$7=Nutrients!$B$8,Nutrients!$DZ$8,Nutrients!$DZ$9)*K$7)+(((IF($A$8=Nutrients!$B$79,Nutrients!$DZ$79,(IF($A$8=Nutrients!$B$77,Nutrients!$DZ$77,Nutrients!$DZ$78)))))*K$8))/2000/2.2046","v":1105.4996934873909},{"$f":"(SUMPRODUCT(L$9:L$229,Nutrients!$DZ$8:$DZ$228)+(IF($A$7=Nutrients!$B$8,Nutrients!$DZ$8,Nutrients!$DZ$9)*L$7)+(((IF($A$8=Nutrients!$B$79,Nutrients!$DZ$79,(IF($A$8=Nutrients!$B$77,Nutrients!$DZ$77,Nutrients!$DZ$78)))))*L$8))/2000/2.2046","v":1116.8184418535177},{"$f":"(SUMPRODUCT(M$9:M$229,Nutrients!$DZ$8:$DZ$228)+(IF($A$7=Nutrients!$B$8,Nutrients!$DZ$8,Nutrients!$DZ$9)*M$7)+(((IF($A$8=Nutrients!$B$79,Nutrients!$DZ$79,(IF($A$8=Nutrients!$B$77,Nutrients!$DZ$77,Nutrients!$DZ$78)))))*M$8))/2000/2.2046","v":1126.5068042588891},{"$f":"(SUMPRODUCT(N$9:N$229,Nutrients!$DZ$8:$DZ$228)+(IF($A$7=Nutrients!$B$8,Nutrients!$DZ$8,Nutrients!$DZ$9)*N$7)+(((IF($A$8=Nutrients!$B$79,Nutrients!$DZ$79,(IF($A$8=Nutrients!$B$77,Nutrients!$DZ$77,Nutrients!$DZ$78)))))*N$8))/2000/2.2046","v":1188.5451985530322},null,{"$f":"(SUMPRODUCT(P$9:P$229,Nutrients!$DZ$8:$DZ$228)+(IF($A$7=Nutrients!$B$8,Nutrients!$DZ$8,Nutrients!$DZ$9)*P$7)+(((IF($A$8=Nutrients!$B$79,Nutrients!$DZ$79,(IF($A$8=Nutrients!$B$77,Nutrients!$DZ$77,Nutrients!$DZ$78)))))*P$8))/2000/2.2046","v":1023.9691244918459},{"$f":"(SUMPRODUCT(Q$9:Q$229,Nutrients!$DZ$8:$DZ$228)+(IF($A$7=Nutrients!$B$8,Nutrients!$DZ$8,Nutrients!$DZ$9)*Q$7)+(((IF($A$8=Nutrients!$B$79,Nutrients!$DZ$79,(IF($A$8=Nutrients!$B$77,Nutrients!$DZ$77,Nutrients!$DZ$78)))))*Q$8))/2000/2.2046","v":1037.0348844797206},{"$f":"(SUMPRODUCT(R$9:R$229,Nutrients!$DZ$8:$DZ$228)+(IF($A$7=Nutrients!$B$8,Nutrients!$DZ$8,Nutrients!$DZ$9)*R$7)+(((IF($A$8=Nutrients!$B$79,Nutrients!$DZ$79,(IF($A$8=Nutrients!$B$77,Nutrients!$DZ$77,Nutrients!$DZ$78)))))*R$8))/2000/2.2046","v":1048.397851649979},{"$f":"(SUMPRODUCT(S$9:S$229,Nutrients!$DZ$8:$DZ$228)+(IF($A$7=Nutrients!$B$8,Nutrients!$DZ$8,Nutrients!$DZ$9)*S$7)+(((IF($A$8=Nutrients!$B$79,Nutrients!$DZ$79,(IF($A$8=Nutrients!$B$77,Nutrients!$DZ$77,Nutrients!$DZ$78)))))*S$8))/2000/2.2046","v":1059.7831689887507},{"$f":"(SUMPRODUCT(T$9:T$229,Nutrients!$DZ$8:$DZ$228)+(IF($A$7=Nutrients!$B$8,Nutrients!$DZ$8,Nutrients!$DZ$9)*T$7)+(((IF($A$8=Nutrients!$B$79,Nutrients!$DZ$79,(IF($A$8=Nutrients!$B$77,Nutrients!$DZ$77,Nutrients!$DZ$78)))))*T$8))/2000/2.2046","v":1069.3897255301006},{"$f":"(SUMPRODUCT(U$9:U$229,Nutrients!$DZ$8:$DZ$228)+(IF($A$7=Nutrients!$B$8,Nutrients!$DZ$8,Nutrients!$DZ$9)*U$7)+(((IF($A$8=Nutrients!$B$79,Nutrients!$DZ$79,(IF($A$8=Nutrients!$B$77,Nutrients!$DZ$77,Nutrients!$DZ$78)))))*U$8))/2000/2.2046","v":1188.5451985530322},null,{"$f":"(SUMPRODUCT(W$9:W$229,Nutrients!$DZ$8:$DZ$228)+(IF($A$7=Nutrients!$B$8,Nutrients!$DZ$8,Nutrients!$DZ$9)*W$7)+(((IF($A$8=Nutrients!$B$79,Nutrients!$DZ$79,(IF($A$8=Nutrients!$B$77,Nutrients!$DZ$77,Nutrients!$DZ$78)))))*W$8))/2000/2.2046","v":967.04980749966523},{"$f":"(SUMPRODUCT(X$9:X$229,Nutrients!$DZ$8:$DZ$228)+(IF($A$7=Nutrients!$B$8,Nutrients!$DZ$8,Nutrients!$DZ$9)*X$7)+(((IF($A$8=Nutrients!$B$79,Nutrients!$DZ$79,(IF($A$8=Nutrients!$B$77,Nutrients!$DZ$77,Nutrients!$DZ$78)))))*X$8))/2000/2.2046","v":980.03118922193448},{"$f":"(SUMPRODUCT(Y$9:Y$229,Nutrients!$DZ$8:$DZ$228)+(IF($A$7=Nutrients!$B$8,Nutrients!$DZ$8,Nutrients!$DZ$9)*Y$7)+(((IF($A$8=Nutrients!$B$79,Nutrients!$DZ$79,(IF($A$8=Nutrients!$B$77,Nutrients!$DZ$77,Nutrients!$DZ$78)))))*Y$8))/2000/2.2046","v":991.46927924287922},{"$f":"(SUMPRODUCT(Z$9:Z$229,Nutrients!$DZ$8:$DZ$228)+(IF($A$7=Nutrients!$B$8,Nutrients!$DZ$8,Nutrients!$DZ$9)*Z$7)+(((IF($A$8=Nutrients!$B$79,Nutrients!$DZ$79,(IF($A$8=Nutrients!$B$77,Nutrients!$DZ$77,Nutrients!$DZ$78)))))*Z$8))/2000/2.2046","v":1002.743816073625},{"$f":"(SUMPRODUCT(AA$9:AA$229,Nutrients!$DZ$8:$DZ$228)+(IF($A$7=Nutrients!$B$8,Nutrients!$DZ$8,Nutrients!$DZ$9)*AA$7)+(((IF($A$8=Nutrients!$B$79,Nutrients!$DZ$79,(IF($A$8=Nutrients!$B$77,Nutrients!$DZ$77,Nutrients!$DZ$78)))))*AA$8))/2000/2.2046","v":1012.3690164386284},{"$f":"(SUMPRODUCT(AB$9:AB$229,Nutrients!$DZ$8:$DZ$228)+(IF($A$7=Nutrients!$B$8,Nutrients!$DZ$8,Nutrients!$DZ$9)*AB$7)+(((IF($A$8=Nutrients!$B$79,Nutrients!$DZ$79,(IF($A$8=Nutrients!$B$77,Nutrients!$DZ$77,Nutrients!$DZ$78)))))*AB$8))/2000/2.2046","v":1188.5451985530322},null,{"$f":"(SUMPRODUCT(AD$9:AD$229,Nutrients!$DZ$8:$DZ$228)+(IF($A$7=Nutrients!$B$8,Nutrients!$DZ$8,Nutrients!$DZ$9)*AD$7)+(((IF($A$8=Nutrients!$B$79,Nutrients!$DZ$79,(IF($A$8=Nutrients!$B$77,Nutrients!$DZ$77,Nutrients!$DZ$78)))))*AD$8))/2000/2.2046","v":910.16879877486713},{"$f":"(SUMPRODUCT(AE$9:AE$229,Nutrients!$DZ$8:$DZ$228)+(IF($A$7=Nutrients!$B$8,Nutrients!$DZ$8,Nutrients!$DZ$9)*AE$7)+(((IF($A$8=Nutrients!$B$79,Nutrients!$DZ$79,(IF($A$8=Nutrients!$B$77,Nutrients!$DZ$77,Nutrients!$DZ$78)))))*AE$8))/2000/2.2046","v":923.2018496993087},{"$f":"(SUMPRODUCT(AF$9:AF$229,Nutrients!$DZ$8:$DZ$228)+(IF($A$7=Nutrients!$B$8,Nutrients!$DZ$8,Nutrients!$DZ$9)*AF$7)+(((IF($A$8=Nutrients!$B$79,Nutrients!$DZ$79,(IF($A$8=Nutrients!$B$77,Nutrients!$DZ$77,Nutrients!$DZ$78)))))*AF$8))/2000/2.2046","v":934.54179143321926},{"$f":"(SUMPRODUCT(AG$9:AG$229,Nutrients!$DZ$8:$DZ$228)+(IF($A$7=Nutrients!$B$8,Nutrients!$DZ$8,Nutrients!$DZ$9)*AG$7)+(((IF($A$8=Nutrients!$B$79,Nutrients!$DZ$79,(IF($A$8=Nutrients!$B$77,Nutrients!$DZ$77,Nutrients!$DZ$78)))))*AG$8))/2000/2.2046","v":945.77359385990167},{"$f":"(SUMPRODUCT(AH$9:AH$229,Nutrients!$DZ$8:$DZ$228)+(IF($A$7=Nutrients!$B$8,Nutrients!$DZ$8,Nutrients!$DZ$9)*AH$7)+(((IF($A$8=Nutrients!$B$79,Nutrients!$DZ$79,(IF($A$8=Nutrients!$B$77,Nutrients!$DZ$77,Nutrients!$DZ$78)))))*AH$8))/2000/2.2046","v":954.55848590575727},{"$f":"(SUMPRODUCT(AI$9:AI$229,Nutrients!$DZ$8:$DZ$228)+(IF($A$7=Nutrients!$B$8,Nutrients!$DZ$8,Nutrients!$DZ$9)*AI$7)+(((IF($A$8=Nutrients!$B$79,Nutrients!$DZ$79,(IF($A$8=Nutrients!$B$77,Nutrients!$DZ$77,Nutrients!$DZ$78)))))*AI$8))/2000/2.2046","v":1188.5451985530322},null,{"$f":"(SUMPRODUCT(AK$9:AK$229,Nutrients!$DZ$8:$DZ$228)+(IF($A$7=Nutrients!$B$8,Nutrients!$DZ$8,Nutrients!$DZ$9)*AK$7)+(((IF($A$8=Nutrients!$B$79,Nutrients!$DZ$79,(IF($A$8=Nutrients!$B$77,Nutrients!$DZ$77,Nutrients!$DZ$78)))))*AK$8))/2000/2.2046","v":853.25426057025481},{"$f":"(SUMPRODUCT(AL$9:AL$229,Nutrients!$DZ$8:$DZ$228)+(IF($A$7=Nutrients!$B$8,Nutrients!$DZ$8,Nutrients!$DZ$9)*AL$7)+(((IF($A$8=Nutrients!$B$79,Nutrients!$DZ$79,(IF($A$8=Nutrients!$B$77,Nutrients!$DZ$77,Nutrients!$DZ$78)))))*AL$8))/2000/2.2046","v":866.30537950917301},{"$f":"(SUMPRODUCT(AM$9:AM$229,Nutrients!$DZ$8:$DZ$228)+(IF($A$7=Nutrients!$B$8,Nutrients!$DZ$8,Nutrients!$DZ$9)*AM$7)+(((IF($A$8=Nutrients!$B$79,Nutrients!$DZ$79,(IF($A$8=Nutrients!$B$77,Nutrients!$DZ$77,Nutrients!$DZ$78)))))*AM$8))/2000/2.2046","v":877.62817307817272},{"$f":"(SUMPRODUCT(AN$9:AN$229,Nutrients!$DZ$8:$DZ$228)+(IF($A$7=Nutrients!$B$8,Nutrients!$DZ$8,Nutrients!$DZ$9)*AN$7)+(((IF($A$8=Nutrients!$B$79,Nutrients!$DZ$79,(IF($A$8=Nutrients!$B$77,Nutrients!$DZ$77,Nutrients!$DZ$78)))))*AN$8))/2000/2.2046","v":888.17752290780686},{"$f":"(SUMPRODUCT(AO$9:AO$229,Nutrients!$DZ$8:$DZ$228)+(IF($A$7=Nutrients!$B$8,Nutrients!$DZ$8,Nutrients!$DZ$9)*AO$7)+(((IF($A$8=Nutrients!$B$79,Nutrients!$DZ$79,(IF($A$8=Nutrients!$B$77,Nutrients!$DZ$77,Nutrients!$DZ$78)))))*AO$8))/2000/2.2046","v":896.46595570481168},{"$f":"(SUMPRODUCT(AP$9:AP$229,Nutrients!$DZ$8:$DZ$228)+(IF($A$7=Nutrients!$B$8,Nutrients!$DZ$8,Nutrients!$DZ$9)*AP$7)+(((IF($A$8=Nutrients!$B$79,Nutrients!$DZ$79,(IF($A$8=Nutrients!$B$77,Nutrients!$DZ$77,Nutrients!$DZ$78)))))*AP$8))/2000/2.2046","v":1188.5451985530322},null,{"$f":"(SUMPRODUCT(AR$9:AR$229,Nutrients!$DZ$8:$DZ$228)+(IF($A$7=Nutrients!$B$8,Nutrients!$DZ$8,Nutrients!$DZ$9)*AR$7)+(((IF($A$8=Nutrients!$B$79,Nutrients!$DZ$79,(IF($A$8=Nutrients!$B$77,Nutrients!$DZ$77,Nutrients!$DZ$78)))))*AR$8))/2000/2.2046","v":796.03376700940237},{"$f":"(SUMPRODUCT(AS$9:AS$229,Nutrients!$DZ$8:$DZ$228)+(IF($A$7=Nutrients!$B$8,Nutrients!$DZ$8,Nutrients!$DZ$9)*AS$7)+(((IF($A$8=Nutrients!$B$79,Nutrients!$DZ$79,(IF($A$8=Nutrients!$B$77,Nutrients!$DZ$77,Nutrients!$DZ$78)))))*AS$8))/2000/2.2046","v":809.46557264197918},{"$f":"(SUMPRODUCT(AT$9:AT$229,Nutrients!$DZ$8:$DZ$228)+(IF($A$7=Nutrients!$B$8,Nutrients!$DZ$8,Nutrients!$DZ$9)*AT$7)+(((IF($A$8=Nutrients!$B$79,Nutrients!$DZ$79,(IF($A$8=Nutrients!$B$77,Nutrients!$DZ$77,Nutrients!$DZ$78)))))*AT$8))/2000/2.2046","v":820.70781298746886},{"$f":"(SUMPRODUCT(AU$9:AU$229,Nutrients!$DZ$8:$DZ$228)+(IF($A$7=Nutrients!$B$8,Nutrients!$DZ$8,Nutrients!$DZ$9)*AU$7)+(((IF($A$8=Nutrients!$B$79,Nutrients!$DZ$79,(IF($A$8=Nutrients!$B$77,Nutrients!$DZ$77,Nutrients!$DZ$78)))))*AU$8))/2000/2.2046","v":830.12818535704764},{"$f":"(SUMPRODUCT(AV$9:AV$229,Nutrients!$DZ$8:$DZ$228)+(IF($A$7=Nutrients!$B$8,Nutrients!$DZ$8,Nutrients!$DZ$9)*AV$7)+(((IF($A$8=Nutrients!$B$79,Nutrients!$DZ$79,(IF($A$8=Nutrients!$B$77,Nutrients!$DZ$77,Nutrients!$DZ$78)))))*AV$8))/2000/2.2046","v":838.37261238206145},{"$f":"(SUMPRODUCT(AW$9:AW$229,Nutrients!$DZ$8:$DZ$228)+(IF($A$7=Nutrients!$B$8,Nutrients!$DZ$8,Nutrients!$DZ$9)*AW$7)+(((IF($A$8=Nutrients!$B$79,Nutrients!$DZ$79,(IF($A$8=Nutrients!$B$77,Nutrients!$DZ$77,Nutrients!$DZ$78)))))*AW$8))/2000/2.2046","v":1188.5451985530322}]
["DE NRC, kcal/lb",{"$f":"(SUMPRODUCT(B$9:B$229,Nutrients!$D$8:$D$228)+(IF($A$7=Nutrients!$B$8,Nutrients!$D$8,Nutrients!$D$9)*B$7)+(((IF($A$8=Nutrients!$B$79,Nutrients!$D$79,(IF($A$8=Nutrients!$B$77,Nutrients!$D$77,Nutrients!$D$78)))))*B$8))/2000/2.2046","v":1553.447657374518},{"$f":"(SUMPRODUCT(C$9:C$229,Nutrients!$D$8:$D$228)+(IF($A$7=Nutrients!$B$8,Nutrients!$D$8,Nutrients!$D$9)*C$7)+(((IF($A$8=Nutrients!$B$79,Nutrients!$D$79,(IF($A$8=Nutrients!$B$77,Nutrients!$D$77,Nutrients!$D$78)))))*C$8))/2000/2.2046","v":1552.8317239882158},{"$f":"(SUMPRODUCT(D$9:D$229,Nutrients!$D$8:$D$228)+(IF($A$7=Nutrients!$B$8,Nutrients!$D$8,Nutrients!$D$9)*D$7)+(((IF($A$8=Nutrients!$B$79,Nutrients!$D$79,(IF($A$8=Nutrients!$B$77,Nutrients!$D$77,Nutrients!$D$78)))))*D$8))/2000/2.2046","v":1552.5109280788211},{"$f":"(SUMPRODUCT(E$9:E$229,Nutrients!$D$8:$D$228)+(IF($A$7=Nutrients!$B$8,Nutrients!$D$8,Nutrients!$D$9)*E$7)+(((IF($A$8=Nutrients!$B$79,Nutrients!$D$79,(IF($A$8=Nutrients!$B$77,Nutrients!$D$77,Nutrients!$D$78)))))*E$8))/2000/2.2046","v":1552.5671760275247},{"$f":"(SUMPRODUCT(F$9:F$229,Nutrients!$D$8:$D$228)+(IF($A$7=Nutrients!$B$8,Nutrients!$D$8,Nutrients!$D$9)*F$7)+(((IF($A$8=Nutrients!$B$79,Nutrients!$D$79,(IF($A$8=Nutrients!$B$77,Nutrients!$D$77,Nutrients!$D$78)))))*F$8))/2000/2.2046","v":1552.7159321016593},{"$f":"(SUMPRODUCT(G$9:G$229,Nutrients!$D$8:$D$228)+(IF($A$7=Nutrients!$B$8,Nutrients!$D$8,Nutrients!$D$9)*G$7)+(((IF($A$8=Nutrients!$B$79,Nutrients!$D$79,(IF($A$8=Nutrients!$B$77,Nutrients!$D$77,Nutrients!$D$78)))))*G$8))/2000/2.2046","v":1552.2569188768136},null,{"$f":"(SUMPRODUCT(I$9:I$229,Nutrients!$D$8:$D$228)+(IF($A$7=Nutrients!$B$8,Nutrients!$D$8,Nutrients!$D$9)*I$7)+(((IF($A$8=Nutrients!$B$79,Nutrients!$D$79,(IF($A$8=Nutrients!$B$77,Nutrients!$D$77,Nutrients!$D$78)))))*I$8))/2000/2.2046","v":1559.4683924343319},{"$f":"(SUMPRODUCT(J$9:J$229,Nutrients!$D$8:$D$228)+(IF($A$7=Nutrients!$B$8,Nutrients!$D$8,Nutrients!$D$9)*J$7)+(((IF($A$8=Nutrients!$B$79,Nutrients!$D$79,(IF($A$8=Nutrients!$B$77,Nutrients!$D$77,Nutrients!$D$78)))))*J$8))/2000/2.2046","v":1558.8277430020455},{"$f":"(SUMPRODUCT(K$9:K$229,Nutrients!$D$8:$D$228)+(IF($A$7=Nutrients!$B$8,Nutrients!$D$8,Nutrients!$D$9)*K$7)+(((IF($A$8=Nutrients!$B$79,Nutrients!$D$79,(IF($A$8=Nutrients!$B$77,Nutrients!$D$77,Nutrients!$D$78)))))*K$8))/2000/2.2046","v":1558.7721313404782},{"$f":"(SUMPRODUCT(L$9:L$229,Nutrients!$D$8:$D$228)+(IF($A$7=Nutrients!$B$8,Nutrients!$D$8,Nutrients!$D$9)*L$7)+(((IF($A$8=Nutrients!$B$79,Nutrients!$D$79,(IF($A$8=Nutrients!$B$77,Nutrients!$D$77,Nutrients!$D$78)))))*L$8))/2000/2.2046","v":1558.7524377520301},{"$f":"(SUMPRODUCT(M$9:M$229,Nutrients!$D$8:$D$228)+(IF($A$7=Nutrients!$B$8,Nutrients!$D$8,Nutrients!$D$9)*M$7)+(((IF($A$8=Nutrients!$B$79,Nutrients!$D$79,(IF($A$8=Nutrients!$B$77,Nutrients!$D$77,Nutrients!$D$78)))))*M$8))/2000/2.2046","v":1558.8493309025705},{"$f":"(SUMPRODUCT(N$9:N$229,Nutrients!$D$8:$D$228)+(IF($A$7=Nutrients!$B$8,Nutrients!$D$8,Nutrients!$D$9)*N$7)+(((IF($A$8=Nutrients!$B$79,Nutrients!$D$79,(IF($A$8=Nutrients!$B$77,Nutrients!$D$77,Nutrients!$D$78)))))*N$8))/2000/2.2046","v":1552.2569188768136},null,{"$f":"(SUMPRODUCT(P$9:P$229,Nutrients!$D$8:$D$228)+(IF($A$7=Nutrients!$B$8,Nutrients!$D$8,Nutrients!$D$9)*P$7)+(((IF($A$8=Nutrients!$B$79,Nutrients!$D$79,(IF($A$8=Nutrients!$B$77,Nutrients!$D$77,Nutrients!$D$78)))))*P$8))/2000/2.2046","v":1565.5572781040751},{"$f":"(SUMPRODUCT(Q$9:Q$229,Nutrients!$D$8:$D$228)+(IF($A$7=Nutrients!$B$8,Nutrients!$D$8,Nutrients!$D$9)*Q$7)+(((IF($A$8=Nutrients!$B$79,Nutrients!$D$79,(IF($A$8=Nutrients!$B$77,Nutrients!$D$77,Nutrients!$D$78)))))*Q$8))/2000/2.2046","v":1565.0034058544047},{"$f":"(SUMPRODUCT(R$9:R$229,Nutrients!$D$8:$D$228)+(IF($A$7=Nutrients!$B$8,Nutrients!$D$8,Nutrients!$D$9)*R$7)+(((IF($A$8=Nutrients!$B$79,Nutrients!$D$79,(IF($A$8=Nutrients!$B$77,Nutrients!$D$77,Nutrients!$D$78)))))*R$8))/2000/2.2046","v":1564.9887677765321},{"$f":"(SUMPRODUCT(S$9:S$229,Nutrients!$D$8:$D$228)+(IF($A$7=Nutrients!$B$8,Nutrients!$D$8,Nutrients!$D$9)*S$7)+(((IF($A$8=Nutrients!$B$79,Nutrients!$D$79,(IF($A$8=Nutrients!$B$77,Nutrients!$D$77,Nutrients!$D$78)))))*S$8))/2000/2.2046","v":1564.983472966574},{"$f":"(SUMPRODUCT(T$9:T$229,Nutrients!$D$8:$D$228)+(IF($A$7=Nutrients!$B$8,Nutrients!$D$8,Nutrients!$D$9)*T$7)+(((IF($A$8=Nutrients!$B$79,Nutrients!$D$79,(IF($A$8=Nutrients!$B$77,Nutrients!$D$77,Nutrients!$D$78)))))*T$8))/2000/2.2046","v":1565.1128075535237},{"$f":"(SUMPRODUCT(U$9:U$229,Nutrients!$D$8:$D$228)+(IF($A$7=Nutrients!$B$8,Nutrients!$D$8,Nutrients!$D$9)*U$7)+(((IF($A$8=Nutrients!$B$79,Nutrients!$D$79,(IF($A$8=Nutrients!$B$77,Nutrients!$D$77,Nutrients!$D$78)))))*U$8))/2000/2.2046","v":1552.2569188768136},null,{"$f":"(SUMPRODUCT(W$9:W$229,Nutrients!$D$8:$D$228)+(IF($A$7=Nutrients!$B$8,Nutrients!$D$8,Nutrients!$D$9)*W$7)+(((IF($A$8=Nutrients!$B$79,Nutrients!$D$79,(IF($A$8=Nutrients!$B$77,Nutrients!$D$77,Nutrients!$D$78)))))*W$8))/2000/2.2046","v":1571.6779789133373},{"$f":"(SUMPRODUCT(X$9:X$229,Nutrients!$D$8:$D$228)+(IF($A$7=Nutrients!$B$8,Nutrients!$D$8,Nutrients!$D$9)*X$7)+(((IF($A$8=Nutrients!$B$79,Nutrients!$D$79,(IF($A$8=Nutrients!$B$77,Nutrients!$D$77,Nutrients!$D$78)))))*X$8))/2000/2.2046","v":1571.1780095863651},{"$f":"(SUMPRODUCT(Y$9:Y$229,Nutrients!$D$8:$D$228)+(IF($A$7=Nutrients!$B$8,Nutrients!$D$8,Nutrients!$D$9)*Y$7)+(((IF($A$8=Nutrients!$B$79,Nutrients!$D$79,(IF($A$8=Nutrients!$B$77,Nutrients!$D$77,Nutrients!$D$78)))))*Y$8))/2000/2.2046","v":1571.1951934545968},{"$f":"(SUMPRODUCT(Z$9:Z$229,Nutrients!$D$8:$D$228)+(IF($A$7=Nutrients!$B$8,Nutrients!$D$8,Nutrients!$D$9)*Z$7)+(((IF($A$8=Nutrients!$B$79,Nutrients!$D$79,(IF($A$8=Nutrients!$B$77,Nutrients!$D$77,Nutrients!$D$78)))))*Z$8))/2000/2.2046","v":1571.2843673330203},{"$f":"(SUMPRODUCT(AA$9:AA$229,Nutrients!$D$8:$D$228)+(IF($A$7=Nutrients!$B$8,Nutrients!$D$8,Nutrients!$D$9)*AA$7)+(((IF($A$8=Nutrients!$B$79,Nutrients!$D$79,(IF($A$8=Nutrients!$B$77,Nutrients!$D$77,Nutrients!$D$78)))))*AA$8))/2000/2.2046","v":1571.5546013023575},{"$f":"(SUMPRODUCT(AB$9:AB$229,Nutrients!$D$8:$D$228)+(IF($A$7=Nutrients!$B$8,Nutrients!$D$8,Nutrients!$D$9)*AB$7)+(((IF($A$8=Nutrients!$B$79,Nutrients!$D$79,(IF($A$8=Nutrients!$B$77,Nutrients!$D$77,Nutrients!$D$78)))))*AB$8))/2000/2.2046","v":1552.2569188768136},null,{"$f":"(SUMPRODUCT(AD$9:AD$229,Nutrients!$D$8:$D$228)+(IF($A$7=Nutrients!$B$8,Nutrients!$D$8,Nutrients!$D$9)*AD$7)+(((IF($A$8=Nutrients!$B$79,Nutrients!$D$79,(IF($A$8=Nutrients!$B$77,Nutrients!$D$77,Nutrients!$D$78)))))*AD$8))/2000/2.2046","v":1577.8384842666369},{"$f":"(SUMPRODUCT(AE$9:AE$229,Nutrients!$D$8:$D$228)+(IF($A$7=Nutrients!$B$8,Nutrients!$D$8,Nutrients!$D$9)*AE$7)+(((IF($A$8=Nutrients!$B$79,Nutrients!$D$79,(IF($A$8=Nutrients!$B$77,Nutrients!$D$77,Nutrients!$D$78)))))*AE$8))/2000/2.2046","v":1577.3486586846627},{"$f":"(SUMPRODUCT(AF$9:AF$229,Nutrients!$D$8:$D$228)+(IF($A$7=Nutrients!$B$8,Nutrients!$D$8,Nutrients!$D$9)*AF$7)+(((IF($A$8=Nutrients!$B$79,Nutrients!$D$79,(IF($A$8=Nutrients!$B$77,Nutrients!$D$77,Nutrients!$D$78)))))*AF$8))/2000/2.2046","v":1577.4736339560745},{"$f":"(SUMPRODUCT(AG$9:AG$229,Nutrients!$D$8:$D$228)+(IF($A$7=Nutrients!$B$8,Nutrients!$D$8,Nutrients!$D$9)*AG$7)+(((IF($A$8=Nutrients!$B$79,Nutrients!$D$79,(IF($A$8=Nutrients!$B$77,Nutrients!$D$77,Nutrients!$D$78)))))*AG$8))/2000/2.2046","v":1577.6992341867285},{"$f":"(SUMPRODUCT(AH$9:AH$229,Nutrients!$D$8:$D$228)+(IF($A$7=Nutrients!$B$8,Nutrients!$D$8,Nutrients!$D$9)*AH$7)+(((IF($A$8=Nutrients!$B$79,Nutrients!$D$79,(IF($A$8=Nutrients!$B$77,Nutrients!$D$77,Nutrients!$D$78)))))*AH$8))/2000/2.2046","v":1576.9309985729824},{"$f":"(SUMPRODUCT(AI$9:AI$229,Nutrients!$D$8:$D$228)+(IF($A$7=Nutrients!$B$8,Nutrients!$D$8,Nutrients!$D$9)*AI$7)+(((IF($A$8=Nutrients!$B$79,Nutrients!$D$79,(IF($A$8=Nutrients!$B$77,Nutrients!$D$77,Nutrients!$D$78)))))*AI$8))/2000/2.2046","v":1552.2569188768136},null,{"$f":"(SUMPRODUCT(AK$9:AK$229,Nutrients!$D$8:$D$228)+(IF($A$7=Nutrients!$B$8,Nutrients!$D$8,Nutrients!$D$9)*AK$7)+(((IF($A$8=Nutrients!$B$79,Nutrients!$D$79,(IF($A$8=Nutrients!$B$77,Nutrients!$D$77,Nutrients!$D$78)))))*AK$8))/2000/2.2046","v":1584.0206773761545},{"$f":"(SUMPRODUCT(AL$9:AL$229,Nutrients!$D$8:$D$228)+(IF($A$7=Nutrients!$B$8,Nutrients!$D$8,Nutrients!$D$9)*AL$7)+(((IF($A$8=Nutrients!$B$79,Nutrients!$D$79,(IF($A$8=Nutrients!$B$77,Nutrients!$D$77,Nutrients!$D$78)))))*AL$8))/2000/2.2046","v":1583.4928683843225},{"$f":"(SUMPRODUCT(AM$9:AM$229,Nutrients!$D$8:$D$228)+(IF($A$7=Nutrients!$B$8,Nutrients!$D$8,Nutrients!$D$9)*AM$7)+(((IF($A$8=Nutrients!$B$79,Nutrients!$D$79,(IF($A$8=Nutrients!$B$77,Nutrients!$D$77,Nutrients!$D$78)))))*AM$8))/2000/2.2046","v":1583.8083713461531},{"$f":"(SUMPRODUCT(AN$9:AN$229,Nutrients!$D$8:$D$228)+(IF($A$7=Nutrients!$B$8,Nutrients!$D$8,Nutrients!$D$9)*AN$7)+(((IF($A$8=Nutrients!$B$79,Nutrients!$D$79,(IF($A$8=Nutrients!$B$77,Nutrients!$D$77,Nutrients!$D$78)))))*AN$8))/2000/2.2046","v":1583.2672802362613},{"$f":"(SUMPRODUCT(AO$9:AO$229,Nutrients!$D$8:$D$228)+(IF($A$7=Nutrients!$B$8,Nutrients!$D$8,Nutrients!$D$9)*AO$7)+(((IF($A$8=Nutrients!$B$79,Nutrients!$D$79,(IF($A$8=Nutrients!$B$77,Nutrients!$D$77,Nutrients!$D$78)))))*AO$8))/2000/2.2046","v":1581.9262586517586},{"$f":"(SUMPRODUCT(AP$9:AP$229,Nutrients!$D$8:$D$228)+(IF($A$7=Nutrients!$B$8,Nutrients!$D$8,Nutrients!$D$9)*AP$7)+(((IF($A$8=Nutrients!$B$79,Nutrients!$D$79,(IF($A$8=Nutrients!$B$77,Nutrients!$D$77,Nutrients!$D$78)))))*AP$8))/2000/2.2046","v":1552.2569188768136},null,{"$f":"(SUMPRODUCT(AR$9:AR$229,Nutrients!$D$8:$D$228)+(IF($A$7=Nutrients!$B$8,Nutrients!$D$8,Nutrients!$D$9)*AR$7)+(((IF($A$8=Nutrients!$B$79,Nutrients!$D$79,(IF($A$8=Nutrients!$B$77,Nutrients!$D$77,Nutrients!$D$78)))))*AR$8))/2000/2.2046","v":1590.2699718658946},{"$f":"(SUMPRODUCT(AS$9:AS$229,Nutrients!$D$8:$D$228)+(IF($A$7=Nutrients!$B$8,Nutrients!$D$8,Nutrients!$D$9)*AS$7)+(((IF($A$8=Nutrients!$B$79,Nutrients!$D$79,(IF($A$8=Nutrients!$B$77,Nutrients!$D$77,Nutrients!$D$78)))))*AS$8))/2000/2.2046","v":1589.732964443428},{"$f":"(SUMPRODUCT(AT$9:AT$229,Nutrients!$D$8:$D$228)+(IF($A$7=Nutrients!$B$8,Nutrients!$D$8,Nutrients!$D$9)*AT$7)+(((IF($A$8=Nutrients!$B$79,Nutrients!$D$79,(IF($A$8=Nutrients!$B$77,Nutrients!$D$77,Nutrients!$D$78)))))*AT$8))/2000/2.2046","v":1590.1951603495881},{"$f":"(SUMPRODUCT(AU$9:AU$229,Nutrients!$D$8:$D$228)+(IF($A$7=Nutrients!$B$8,Nutrients!$D$8,Nutrients!$D$9)*AU$7)+(((IF($A$8=Nutrients!$B$79,Nutrients!$D$79,(IF($A$8=Nutrients!$B$77,Nutrients!$D$77,Nutrients!$D$78)))))*AU$8))/2000/2.2046","v":1588.2398125896307},{"$f":"(SUMPRODUCT(AV$9:AV$229,Nutrients!$D$8:$D$228)+(IF($A$7=Nutrients!$B$8,Nutrients!$D$8,Nutrients!$D$9)*AV$7)+(((IF($A$8=Nutrients!$B$79,Nutrients!$D$79,(IF($A$8=Nutrients!$B$77,Nutrients!$D$77,Nutrients!$D$78)))))*AV$8))/2000/2.2046","v":1586.9216675444563},{"$f":"(SUMPRODUCT(AW$9:AW$229,Nutrients!$D$8:$D$228)+(IF($A$7=Nutrients!$B$8,Nutrients!$D$8,Nutrients!$D$9)*AW$7)+(((IF($A$8=Nutrients!$B$79,Nutrients!$D$79,(IF($A$8=Nutrients!$B$77,Nutrients!$D$77,Nutrients!$D$78)))))*AW$8))/2000/2.2046","v":1552.2569188768136}]
["NE NRC, kcal/lb",{"$f":"(SUMPRODUCT(B$9:B$229,Nutrients!$F$8:$F$228)+(IF($A$7=Nutrients!$B$8,Nutrients!$F$8,Nutrients!$F$9)*B$7)+(((IF($A$8=Nutrients!$B$79,Nutrients!$F$79,(IF($A$8=Nutrients!$B$77,Nutrients!$F$77,Nutrients!$F$78)))))*B$8))/2000/2.2046","v":1153.6247232105659},{"$f":"(SUMPRODUCT(C$9:C$229,Nutrients!$F$8:$F$228)+(IF($A$7=Nutrients!$B$8,Nutrients!$F$8,Nutrients!$F$9)*C$7)+(((IF($A$8=Nutrients!$B$79,Nutrients!$F$79,(IF($A$8=Nutrients!$B$77,Nutrients!$F$77,Nutrients!$F$78)))))*C$8))/2000/2.2046","v":1160.6089760708783},{"$f":"(SUMPRODUCT(D$9:D$229,Nutrients!$F$8:$F$228)+(IF($A$7=Nutrients!$B$8,Nutrients!$F$8,Nutrients!$F$9)*D$7)+(((IF($A$8=Nutrients!$B$79,Nutrients!$F$79,(IF($A$8=Nutrients!$B$77,Nutrients!$F$77,Nutrients!$F$78)))))*D$8))/2000/2.2046","v":1166.664301360594},{"$f":"(SUMPRODUCT(E$9:E$229,Nutrients!$F$8:$F$228)+(IF($A$7=Nutrients!$B$8,Nutrients!$F$8,Nutrients!$F$9)*E$7)+(((IF($A$8=Nutrients!$B$79,Nutrients!$F$79,(IF($A$8=Nutrients!$B$77,Nutrients!$F$77,Nutrients!$F$78)))))*E$8))/2000/2.2046","v":1172.8465047486318},{"$f":"(SUMPRODUCT(F$9:F$229,Nutrients!$F$8:$F$228)+(IF($A$7=Nutrients!$B$8,Nutrients!$F$8,Nutrients!$F$9)*F$7)+(((IF($A$8=Nutrients!$B$79,Nutrients!$F$79,(IF($A$8=Nutrients!$B$77,Nutrients!$F$77,Nutrients!$F$78)))))*F$8))/2000/2.2046","v":1178.0967521230723},{"$f":"(SUMPRODUCT(G$9:G$229,Nutrients!$F$8:$F$228)+(IF($A$7=Nutrients!$B$8,Nutrients!$F$8,Nutrients!$F$9)*G$7)+(((IF($A$8=Nutrients!$B$79,Nutrients!$F$79,(IF($A$8=Nutrients!$B$77,Nutrients!$F$77,Nutrients!$F$78)))))*G$8))/2000/2.2046","v":1180.5684789085878},null,{"$f":"(SUMPRODUCT(I$9:I$229,Nutrients!$F$8:$F$228)+(IF($A$7=Nutrients!$B$8,Nutrients!$F$8,Nutrients!$F$9)*I$7)+(((IF($A$8=Nutrients!$B$79,Nutrients!$F$79,(IF($A$8=Nutrients!$B$77,Nutrients!$F$77,Nutrients!$F$78)))))*I$8))/2000/2.2046","v":1143.9316017733656},{"$f":"(SUMPRODUCT(J$9:J$229,Nutrients!$F$8:$F$228)+(IF($A$7=Nutrients!$B$8,Nutrients!$F$8,Nutrients!$F$9)*J$7)+(((IF($A$8=Nutrients!$B$79,Nutrients!$F$79,(IF($A$8=Nutrients!$B$77,Nutrients!$F$77,Nutrients!$F$78)))))*J$8))/2000/2.2046","v":1150.7857530722176},{"$f":"(SUMPRODUCT(K$9:K$229,Nutrients!$F$8:$F$228)+(IF($A$7=Nutrients!$B$8,Nutrients!$F$8,Nutrients!$F$9)*K$7)+(((IF($A$8=Nutrients!$B$79,Nutrients!$F$79,(IF($A$8=Nutrients!$B$77,Nutrients!$F$77,Nutrients!$F$78)))))*K$8))/2000/2.2046","v":1156.9476529495107},{"$f":"(SUMPRODUCT(L$9:L$229,Nutrients!$F$8:$F$228)+(IF($A$7=Nutrients!$B$8,Nutrients!$F$8,Nutrients!$F$9)*L$7)+(((IF($A$8=Nutrients!$B$79,Nutrients!$F$79,(IF($A$8=Nutrients!$B$77,Nutrients!$F$77,Nutrients!$F$78)))))*L$8))/2000/2.2046","v":1163.0164310425773},{"$f":"(SUMPRODUCT(M$9:M$229,Nutrients!$F$8:$F$228)+(IF($A$7=Nutrients!$B$8,Nutrients!$F$8,Nutrients!$F$9)*M$7)+(((IF($A$8=Nutrients!$B$79,Nutrients!$F$79,(IF($A$8=Nutrients!$B$77,Nutrients!$F$77,Nutrients!$F$78)))))*M$8))/2000/2.2046","v":1168.2354413559842},{"$f":"(SUMPRODUCT(N$9:N$229,Nutrients!$F$8:$F$228)+(IF($A$7=Nutrients!$B$8,Nutrients!$F$8,Nutrients!$F$9)*N$7)+(((IF($A$8=Nutrients!$B$79,Nutrients!$F$79,(IF($A$8=Nutrients!$B$77,Nutrients!$F$77,Nutrients!$F$78)))))*N$8))/2000/2.2046","v":1180.5684789085878},null,{"$f":"(SUMPRODUCT(P$9:P$229,Nutrients!$F$8:$F$228)+(IF($A$7=Nutrients!$B$8,Nutrients!$F$8,Nutrients!$F$9)*P$7)+(((IF($A$8=Nutrients!$B$79,Nutrients!$F$79,(IF($A$8=Nutrients!$B$77,Nutrients!$F$77,Nutrients!$F$78)))))*P$8))/2000/2.2046","v":1134.1486597361163},{"$f":"(SUMPRODUCT(Q$9:Q$229,Nutrients!$F$8:$F$228)+(IF($A$7=Nutrients!$B$8,Nutrients!$F$8,Nutrients!$F$9)*Q$7)+(((IF($A$8=Nutrients!$B$79,Nutrients!$F$79,(IF($A$8=Nutrients!$B$77,Nutrients!$F$77,Nutrients!$F$78)))))*Q$8))/2000/2.2046","v":1140.9960635775719},{"$f":"(SUMPRODUCT(R$9:R$229,Nutrients!$F$8:$F$228)+(IF($A$7=Nutrients!$B$8,Nutrients!$F$8,Nutrients!$F$9)*R$7)+(((IF($A$8=Nutrients!$B$79,Nutrients!$F$79,(IF($A$8=Nutrients!$B$77,Nutrients!$F$77,Nutrients!$F$78)))))*R$8))/2000/2.2046","v":1147.1205622318855},{"$f":"(SUMPRODUCT(S$9:S$229,Nutrients!$F$8:$F$228)+(IF($A$7=Nutrients!$B$8,Nutrients!$F$8,Nutrients!$F$9)*S$7)+(((IF($A$8=Nutrients!$B$79,Nutrients!$F$79,(IF($A$8=Nutrients!$B$77,Nutrients!$F$77,Nutrients!$F$78)))))*S$8))/2000/2.2046","v":1153.2292841427254},{"$f":"(SUMPRODUCT(T$9:T$229,Nutrients!$F$8:$F$228)+(IF($A$7=Nutrients!$B$8,Nutrients!$F$8,Nutrients!$F$9)*T$7)+(((IF($A$8=Nutrients!$B$79,Nutrients!$F$79,(IF($A$8=Nutrients!$B$77,Nutrients!$F$77,Nutrients!$F$78)))))*T$8))/2000/2.2046","v":1158.4157433692949},{"$f":"(SUMPRODUCT(U$9:U$229,Nutrients!$F$8:$F$228)+(IF($A$7=Nutrients!$B$8,Nutrients!$F$8,Nutrients!$F$9)*U$7)+(((IF($A$8=Nutrients!$B$79,Nutrients!$F$79,(IF($A$8=Nutrients!$B$77,Nutrients!$F$77,Nutrients!$F$78)))))*U$8))/2000/2.2046","v":1180.5684789085878},null,{"$f":"(SUMPRODUCT(W$9:W$229,Nutrients!$F$8:$F$228)+(IF($A$7=Nutrients!$B$8,Nutrients!$F$8,Nutrients!$F$9)*W$7)+(((IF($A$8=Nutrients!$B$79,Nutrients!$F$79,(IF($A$8=Nutrients!$B$77,Nutrients!$F$77,Nutrients!$F$78)))))*W$8))/2000/2.2046","v":1124.3864708164497},{"$f":"(SUMPRODUCT(X$9:X$229,Nutrients!$F$8:$F$228)+(IF($A$7=Nutrients!$B$8,Nutrients!$F$8,Nutrients!$F$9)*X$7)+(((IF($A$8=Nutrients!$B$79,Nutrients!$F$79,(IF($A$8=Nutrients!$B$77,Nutrients!$F$77,Nutrients!$F$78)))))*X$8))/2000/2.2046","v":1131.2070029683641},{"$f":"(SUMPRODUCT(Y$9:Y$229,Nutrients!$F$8:$F$228)+(IF($A$7=Nutrients!$B$8,Nutrients!$F$8,Nutrients!$F$9)*Y$7)+(((IF($A$8=Nutrients!$B$79,Nutrients!$F$79,(IF($A$8=Nutrients!$B$77,Nutrients!$F$77,Nutrients!$F$78)))))*Y$8))/2000/2.2046","v":1137.3816731312543},{"$f":"(SUMPRODUCT(Z$9:Z$229,Nutrients!$F$8:$F$228)+(IF($A$7=Nutrients!$B$8,Nutrients!$F$8,Nutrients!$F$9)*Z$7)+(((IF($A$8=Nutrients!$B$79,Nutrients!$F$79,(IF($A$8=Nutrients!$B$77,Nutrients!$F$77,Nutrients!$F$78)))))*Z$8))/2000/2.2046","v":1143.4628984803453},{"$f":"(SUMPRODUCT(AA$9:AA$229,Nutrients!$F$8:$F$228)+(IF($A$7=Nutrients!$B$8,Nutrients!$F$8,Nutrients!$F$9)*AA$7)+(((IF($A$8=Nutrients!$B$79,Nutrients!$F$79,(IF($A$8=Nutrients!$B$77,Nutrients!$F$77,Nutrients!$F$78)))))*AA$8))/2000/2.2046","v":1148.7057050542594},{"$f":"(SUMPRODUCT(AB$9:AB$229,Nutrients!$F$8:$F$228)+(IF($A$7=Nutrients!$B$8,Nutrients!$F$8,Nutrients!$F$9)*AB$7)+(((IF($A$8=Nutrients!$B$79,Nutrients!$F$79,(IF($A$8=Nutrients!$B$77,Nutrients!$F$77,Nutrients!$F$78)))))*AB$8))/2000/2.2046","v":1180.5684789085878},null,{"$f":"(SUMPRODUCT(AD$9:AD$229,Nutrients!$F$8:$F$228)+(IF($A$7=Nutrients!$B$8,Nutrients!$F$8,Nutrients!$F$9)*AD$7)+(((IF($A$8=Nutrients!$B$79,Nutrients!$F$79,(IF($A$8=Nutrients!$B$77,Nutrients!$F$77,Nutrients!$F$78)))))*AD$8))/2000/2.2046","v":1114.6576256481987},{"$f":"(SUMPRODUCT(AE$9:AE$229,Nutrients!$F$8:$F$228)+(IF($A$7=Nutrients!$B$8,Nutrients!$F$8,Nutrients!$F$9)*AE$7)+(((IF($A$8=Nutrients!$B$79,Nutrients!$F$79,(IF($A$8=Nutrients!$B$77,Nutrients!$F$77,Nutrients!$F$78)))))*AE$8))/2000/2.2046","v":1121.5088111553043},{"$f":"(SUMPRODUCT(AF$9:AF$229,Nutrients!$F$8:$F$228)+(IF($A$7=Nutrients!$B$8,Nutrients!$F$8,Nutrients!$F$9)*AF$7)+(((IF($A$8=Nutrients!$B$79,Nutrients!$F$79,(IF($A$8=Nutrients!$B$77,Nutrients!$F$77,Nutrients!$F$78)))))*AF$8))/2000/2.2046","v":1127.6670423236528},{"$f":"(SUMPRODUCT(AG$9:AG$229,Nutrients!$F$8:$F$228)+(IF($A$7=Nutrients!$B$8,Nutrients!$F$8,Nutrients!$F$9)*AG$7)+(((IF($A$8=Nutrients!$B$79,Nutrients!$F$79,(IF($A$8=Nutrients!$B$77,Nutrients!$F$77,Nutrients!$F$78)))))*AG$8))/2000/2.2046","v":1133.7701216213393},{"$f":"(SUMPRODUCT(AH$9:AH$229,Nutrients!$F$8:$F$228)+(IF($A$7=Nutrients!$B$8,Nutrients!$F$8,Nutrients!$F$9)*AH$7)+(((IF($A$8=Nutrients!$B$79,Nutrients!$F$79,(IF($A$8=Nutrients!$B$77,Nutrients!$F$77,Nutrients!$F$78)))))*AH$8))/2000/2.2046","v":1138.198919431765},{"$f":"(SUMPRODUCT(AI$9:AI$229,Nutrients!$F$8:$F$228)+(IF($A$7=Nutrients!$B$8,Nutrients!$F$8,Nutrients!$F$9)*AI$7)+(((IF($A$8=Nutrients!$B$79,Nutrients!$F$79,(IF($A$8=Nutrients!$B$77,Nutrients!$F$77,Nutrients!$F$78)))))*AI$8))/2000/2.2046","v":1180.5684789085878},null,{"$f":"(SUMPRODUCT(AK$9:AK$229,Nutrients!$F$8:$F$228)+(IF($A$7=Nutrients!$B$8,Nutrients!$F$8,Nutrients!$F$9)*AK$7)+(((IF($A$8=Nutrients!$B$79,Nutrients!$F$79,(IF($A$8=Nutrients!$B$77,Nutrients!$F$77,Nutrients!$F$78)))))*AK$8))/2000/2.2046","v":1104.9181940477295},{"$f":"(SUMPRODUCT(AL$9:AL$229,Nutrients!$F$8:$F$228)+(IF($A$7=Nutrients!$B$8,Nutrients!$F$8,Nutrients!$F$9)*AL$7)+(((IF($A$8=Nutrients!$B$79,Nutrients!$F$79,(IF($A$8=Nutrients!$B$77,Nutrients!$F$77,Nutrients!$F$78)))))*AL$8))/2000/2.2046","v":1111.766428181455},{"$f":"(SUMPRODUCT(AM$9:AM$229,Nutrients!$F$8:$F$228)+(IF($A$7=Nutrients!$B$8,Nutrients!$F$8,Nutrients!$F$9)*AM$7)+(((IF($A$8=Nutrients!$B$79,Nutrients!$F$79,(IF($A$8=Nutrients!$B$77,Nutrients!$F$77,Nutrients!$F$78)))))*AM$8))/2000/2.2046","v":1117.9783232104851},{"$f":"(SUMPRODUCT(AN$9:AN$229,Nutrients!$F$8:$F$228)+(IF($A$7=Nutrients!$B$8,Nutrients!$F$8,Nutrients!$F$9)*AN$7)+(((IF($A$8=Nutrients!$B$79,Nutrients!$F$79,(IF($A$8=Nutrients!$B$77,Nutrients!$F$77,Nutrients!$F$78)))))*AN$8))/2000/2.2046","v":1123.4455142959187},{"$f":"(SUMPRODUCT(AO$9:AO$229,Nutrients!$F$8:$F$228)+(IF($A$7=Nutrients!$B$8,Nutrients!$F$8,Nutrients!$F$9)*AO$7)+(((IF($A$8=Nutrients!$B$79,Nutrients!$F$79,(IF($A$8=Nutrients!$B$77,Nutrients!$F$77,Nutrients!$F$78)))))*AO$8))/2000/2.2046","v":1127.4076439970456},{"$f":"(SUMPRODUCT(AP$9:AP$229,Nutrients!$F$8:$F$228)+(IF($A$7=Nutrients!$B$8,Nutrients!$F$8,Nutrients!$F$9)*AP$7)+(((IF($A$8=Nutrients!$B$79,Nutrients!$F$79,(IF($A$8=Nutrients!$B$77,Nutrients!$F$77,Nutrients!$F$78)))))*AP$8))/2000/2.2046","v":1180.5684789085878},null,{"$f":"(SUMPRODUCT(AR$9:AR$229,Nutrients!$F$8:$F$228)+(IF($A$7=Nutrients!$B$8,Nutrients!$F$8,Nutrients!$F$9)*AR$7)+(((IF($A$8=Nutrients!$B$79,Nutrients!$F$79,(IF($A$8=Nutrients!$B$77,Nutrients!$F$77,Nutrients!$F$78)))))*AR$8))/2000/2.2046","v":1095.0390880700795},{"$f":"(SUMPRODUCT(AS$9:AS$229,Nutrients!$F$8:$F$228)+(IF($A$7=Nutrients!$B$8,Nutrients!$F$8,Nutrients!$F$9)*AS$7)+(((IF($A$8=Nutrients!$B$79,Nutrients!$F$79,(IF($A$8=Nutrients!$B$77,Nutrients!$F$77,Nutrients!$F$78)))))*AS$8))/2000/2.2046","v":1102.0855230009099},{"$f":"(SUMPRODUCT(AT$9:AT$229,Nutrients!$F$8:$F$228)+(IF($A$7=Nutrients!$B$8,Nutrients!$F$8,Nutrients!$F$9)*AT$7)+(((IF($A$8=Nutrients!$B$79,Nutrients!$F$79,(IF($A$8=Nutrients!$B$77,Nutrients!$F$77,Nutrients!$F$78)))))*AT$8))/2000/2.2046","v":1108.3026287308896},{"$f":"(SUMPRODUCT(AU$9:AU$229,Nutrients!$F$8:$F$228)+(IF($A$7=Nutrients!$B$8,Nutrients!$F$8,Nutrients!$F$9)*AU$7)+(((IF($A$8=Nutrients!$B$79,Nutrients!$F$79,(IF($A$8=Nutrients!$B$77,Nutrients!$F$77,Nutrients!$F$78)))))*AU$8))/2000/2.2046","v":1112.6693541271541},{"$f":"(SUMPRODUCT(AV$9:AV$229,Nutrients!$F$8:$F$228)+(IF($A$7=Nutrients!$B$8,Nutrients!$F$8,Nutrients!$F$9)*AV$7)+(((IF($A$8=Nutrients!$B$79,Nutrients!$F$79,(IF($A$8=Nutrients!$B$77,Nutrients!$F$77,Nutrients!$F$78)))))*AV$8))/2000/2.2046","v":1116.6159860012272},{"$f":"(SUMPRODUCT(AW$9:AW$229,Nutrients!$F$8:$F$228)+(IF($A$7=Nutrients!$B$8,Nutrients!$F$8,Nutrients!$F$9)*AW$7)+(((IF($A$8=Nutrients!$B$79,Nutrients!$F$79,(IF($A$8=Nutrients!$B$77,Nutrients!$F$77,Nutrients!$F$78)))))*AW$8))/2000/2.2046","v":1180.5684789085878}]
["NE NRC, kcal/kg",{"$f":"B250*2.20462","v":2543.3041372844777},2558.7017608253796,2572.0514520655925,2585.6808612989284,2597.2556616655675,2602.7048799714507,null,{"$f":"I250*2.20462","v":2521.9344879015971},2537.0452869380724,2550.6299346455503,2564.0092842050867,2575.5152187222297,2602.7048799714507,null,{"$f":"P250*2.20462","v":2500.3668182274364},2515.4627416843864,2528.9649339076591,2542.432344406735,2553.8665161468148,2602.7048799714507,null,{"$f":"W250*2.20462","v":2478.8449012913611},2493.8815828841148,2507.4943842186258,2520.9011752477386,2532.4595714767211,2602.7048799714507,null,{"$f":"AD250*2.20462","v":2457.3964946565316},2472.500755249207,2486.0773148475714,2499.5322855288368,2509.2961017576577,2602.7048799714507,null,{"$f":"AK250*2.20462","v":2435.924748961505},2451.0225028973991,2464.7173709162994,2476.7704497270679,2485.5054401087664,2602.7048799714507,null,{"$f":"AR250*2.20462","v":2414.1450743410583},2429.679785718266,2443.3861413526938,2453.0131114958062,2461.7139350580251,2602.7048799714507]
["SID Lys:NE, g/Mcal",{"$f":"IF(B$5=\"\",\"\",B236/(B250*2.2046)*10000)","v":4.6637077167474628},4.098690324665454,3.6038708201123204,3.1948100235360672,2.913603801156885,2.7602055376881007,null,{"$f":"IF(I$5=\"\",\"\",I236/(I250*2.2046)*10000)","v":4.6645554876240558},4.1009881829047439,3.6063268912696329,3.1972543810267244,2.9135279779004173,2.7602055376881007,null,{"$f":"IF(P$5=\"\",\"\",P236/(P250*2.2046)*10000)","v":4.6732997672504224},4.1083817074063509,3.6133031465778971,3.1988710494398598,2.9158442032362433,2.7602055376881007,null,{"$f":"IF(W$5=\"\",\"\",W236/(W250*2.2046)*10000)","v":4.682105878422183},4.115916460050042,3.6146821641416653,3.2018403535003106,2.9182823653990333,2.7602055376881007,null,{"$f":"IF(AD$5=\"\",\"\",AD236/(AD250*2.2046)*10000)","v":4.6904903987620354},4.1178284567195229,3.6173060997587987,3.2045609901552576,2.9207404546797751,2.7602055376881007,null,4.7005162530575086,4.1215145399692075,3.6205239592674339,3.2074983653474169,2.9232678347265448,2.7602055376881007,null,{"$f":"IF(AR$5=\"\",\"\",AR236/(AR250*2.2046)*10000)","v":4.7222114119356409},4.1250695996573103,3.6248220388660553,3.2109798433715677,2.92587252353339,2.7602055376881007]
["CP, %",{"$f":"(SUMPRODUCT(B$9:B$229,Nutrients!$I$8:$I$228)+(IF($A$7=Nutrients!$B$8,Nutrients!$I$8,Nutrients!$I$9)*B$7)+(((IF($A$8=Nutrients!$B$79,Nutrients!$I$79,(IF($A$8=Nutrients!$B$77,Nutrients!$I$77,Nutrients!$I$78)))))*B$8))/2000","v":19.197144454100709},{"$f":"(SUMPRODUCT(C$9:C$229,Nutrients!$I$8:$I$228)+(IF($A$7=Nutrients!$B$8,Nutrients!$I$8,Nutrients!$I$9)*C$7)+(((IF($A$8=Nutrients!$B$79,Nutrients!$I$79,(IF($A$8=Nutrients!$B$77,Nutrients!$I$77,Nutrients!$I$78)))))*C$8))/2000","v":17.518322949293985},{"$f":"(SUMPRODUCT(D$9:D$229,Nutrients!$I$8:$I$228)+(IF($A$7=Nutrients!$B$8,Nutrients!$I$8,Nutrients!$I$9)*D$7)+(((IF($A$8=Nutrients!$B$79,Nutrients!$I$79,(IF($A$8=Nutrients!$B$77,Nutrients!$I$77,Nutrients!$I$78)))))*D$8))/2000","v":16.093820180294312},{"$f":"(SUMPRODUCT(E$9:E$229,Nutrients!$I$8:$I$228)+(IF($A$7=Nutrients!$B$8,Nutrients!$I$8,Nutrients!$I$9)*E$7)+(((IF($A$8=Nutrients!$B$79,Nutrients!$I$79,(IF($A$8=Nutrients!$B$77,Nutrients!$I$77,Nutrients!$I$78)))))*E$8))/2000","v":14.741302120356609},{"$f":"(SUMPRODUCT(F$9:F$229,Nutrients!$I$8:$I$228)+(IF($A$7=Nutrients!$B$8,Nutrients!$I$8,Nutrients!$I$9)*F$7)+(((IF($A$8=Nutrients!$B$79,Nutrients!$I$79,(IF($A$8=Nutrients!$B$77,Nutrients!$I$77,Nutrients!$I$78)))))*F$8))/2000","v":13.625458454243304},{"$f":"(SUMPRODUCT(G$9:G$229,Nutrients!$I$8:$I$228)+(IF($A$7=Nutrients!$B$8,Nutrients!$I$8,Nutrients!$I$9)*G$7)+(((IF($A$8=Nutrients!$B$79,Nutrients!$I$79,(IF($A$8=Nutrients!$B$77,Nutrients!$I$77,Nutrients!$I$78)))))*G$8))/2000","v":13.010227616088669},null,{"$f":"(SUMPRODUCT(I$9:I$229,Nutrients!$I$8:$I$228)+(IF($A$7=Nutrients!$B$8,Nutrients!$I$8,Nutrients!$I$9)*I$7)+(((IF($A$8=Nutrients!$B$79,Nutrients!$I$79,(IF($A$8=Nutrients!$B$77,Nutrients!$I$77,Nutrients!$I$78)))))*I$8))/2000","v":19.46358051277635},{"$f":"(SUMPRODUCT(J$9:J$229,Nutrients!$I$8:$I$228)+(IF($A$7=Nutrients!$B$8,Nutrients!$I$8,Nutrients!$I$9)*J$7)+(((IF($A$8=Nutrients!$B$79,Nutrients!$I$79,(IF($A$8=Nutrients!$B$77,Nutrients!$I$77,Nutrients!$I$78)))))*J$8))/2000","v":17.809235165295341},{"$f":"(SUMPRODUCT(K$9:K$229,Nutrients!$I$8:$I$228)+(IF($A$7=Nutrients!$B$8,Nutrients!$I$8,Nutrients!$I$9)*K$7)+(((IF($A$8=Nutrients!$B$79,Nutrients!$I$79,(IF($A$8=Nutrients!$B$77,Nutrients!$I$77,Nutrients!$I$78)))))*K$8))/2000","v":16.409940466971797},{"$f":"(SUMPRODUCT(L$9:L$229,Nutrients!$I$8:$I$228)+(IF($A$7=Nutrients!$B$8,Nutrients!$I$8,Nutrients!$I$9)*L$7)+(((IF($A$8=Nutrients!$B$79,Nutrients!$I$79,(IF($A$8=Nutrients!$B$77,Nutrients!$I$77,Nutrients!$I$78)))))*L$8))/2000","v":15.067793956098017},{"$f":"(SUMPRODUCT(M$9:M$229,Nutrients!$I$8:$I$228)+(IF($A$7=Nutrients!$B$8,Nutrients!$I$8,Nutrients!$I$9)*M$7)+(((IF($A$8=Nutrients!$B$79,Nutrients!$I$79,(IF($A$8=Nutrients!$B$77,Nutrients!$I$77,Nutrients!$I$78)))))*M$8))/2000","v":13.948554447253111},{"$f":"(SUMPRODUCT(N$9:N$229,Nutrients!$I$8:$I$228)+(IF($A$7=Nutrients!$B$8,Nutrients!$I$8,Nutrients!$I$9)*N$7)+(((IF($A$8=Nutrients!$B$79,Nutrients!$I$79,(IF($A$8=Nutrients!$B$77,Nutrients!$I$77,Nutrients!$I$78)))))*N$8))/2000","v":13.010227616088669},null,{"$f":"(SUMPRODUCT(P$9:P$229,Nutrients!$I$8:$I$228)+(IF($A$7=Nutrients!$B$8,Nutrients!$I$8,Nutrients!$I$9)*P$7)+(((IF($A$8=Nutrients!$B$79,Nutrients!$I$79,(IF($A$8=Nutrients!$B$77,Nutrients!$I$77,Nutrients!$I$78)))))*P$8))/2000","v":19.762151189286683},{"$f":"(SUMPRODUCT(Q$9:Q$229,Nutrients!$I$8:$I$228)+(IF($A$7=Nutrients!$B$8,Nutrients!$I$8,Nutrients!$I$9)*Q$7)+(((IF($A$8=Nutrients!$B$79,Nutrients!$I$79,(IF($A$8=Nutrients!$B$77,Nutrients!$I$77,Nutrients!$I$78)))))*Q$8))/2000","v":18.126136688094224},{"$f":"(SUMPRODUCT(R$9:R$229,Nutrients!$I$8:$I$228)+(IF($A$7=Nutrients!$B$8,Nutrients!$I$8,Nutrients!$I$9)*R$7)+(((IF($A$8=Nutrients!$B$79,Nutrients!$I$79,(IF($A$8=Nutrients!$B$77,Nutrients!$I$77,Nutrients!$I$78)))))*R$8))/2000","v":16.741979978014847},{"$f":"(SUMPRODUCT(S$9:S$229,Nutrients!$I$8:$I$228)+(IF($A$7=Nutrients!$B$8,Nutrients!$I$8,Nutrients!$I$9)*S$7)+(((IF($A$8=Nutrients!$B$79,Nutrients!$I$79,(IF($A$8=Nutrients!$B$77,Nutrients!$I$77,Nutrients!$I$78)))))*S$8))/2000","v":15.394350201912184},{"$f":"(SUMPRODUCT(T$9:T$229,Nutrients!$I$8:$I$228)+(IF($A$7=Nutrients!$B$8,Nutrients!$I$8,Nutrients!$I$9)*T$7)+(((IF($A$8=Nutrients!$B$79,Nutrients!$I$79,(IF($A$8=Nutrients!$B$77,Nutrients!$I$77,Nutrients!$I$78)))))*T$8))/2000","v":14.287930934934302},{"$f":"(SUMPRODUCT(U$9:U$229,Nutrients!$I$8:$I$228)+(IF($A$7=Nutrients!$B$8,Nutrients!$I$8,Nutrients!$I$9)*U$7)+(((IF($A$8=Nutrients!$B$79,Nutrients!$I$79,(IF($A$8=Nutrients!$B$77,Nutrients!$I$77,Nutrients!$I$78)))))*U$8))/2000","v":13.010227616088669},null,{"$f":"(SUMPRODUCT(W$9:W$229,Nutrients!$I$8:$I$228)+(IF($A$7=Nutrients!$B$8,Nutrients!$I$8,Nutrients!$I$9)*W$7)+(((IF($A$8=Nutrients!$B$79,Nutrients!$I$79,(IF($A$8=Nutrients!$B$77,Nutrients!$I$77,Nutrients!$I$78)))))*W$8))/2000","v":20.062549651751358},{"$f":"(SUMPRODUCT(X$9:X$229,Nutrients!$I$8:$I$228)+(IF($A$7=Nutrients!$B$8,Nutrients!$I$8,Nutrients!$I$9)*X$7)+(((IF($A$8=Nutrients!$B$79,Nutrients!$I$79,(IF($A$8=Nutrients!$B$77,Nutrients!$I$77,Nutrients!$I$78)))))*X$8))/2000","v":18.442355939877849},{"$f":"(SUMPRODUCT(Y$9:Y$229,Nutrients!$I$8:$I$228)+(IF($A$7=Nutrients!$B$8,Nutrients!$I$8,Nutrients!$I$9)*Y$7)+(((IF($A$8=Nutrients!$B$79,Nutrients!$I$79,(IF($A$8=Nutrients!$B$77,Nutrients!$I$77,Nutrients!$I$78)))))*Y$8))/2000","v":17.053978068683794},{"$f":"(SUMPRODUCT(Z$9:Z$229,Nutrients!$I$8:$I$228)+(IF($A$7=Nutrients!$B$8,Nutrients!$I$8,Nutrients!$I$9)*Z$7)+(((IF($A$8=Nutrients!$B$79,Nutrients!$I$79,(IF($A$8=Nutrients!$B$77,Nutrients!$I$77,Nutrients!$I$78)))))*Z$8))/2000","v":15.73007644318225},{"$f":"(SUMPRODUCT(AA$9:AA$229,Nutrients!$I$8:$I$228)+(IF($A$7=Nutrients!$B$8,Nutrients!$I$8,Nutrients!$I$9)*AA$7)+(((IF($A$8=Nutrients!$B$79,Nutrients!$I$79,(IF($A$8=Nutrients!$B$77,Nutrients!$I$77,Nutrients!$I$78)))))*AA$8))/2000","v":14.638631664177339},{"$f":"(SUMPRODUCT(AB$9:AB$229,Nutrients!$I$8:$I$228)+(IF($A$7=Nutrients!$B$8,Nutrients!$I$8,Nutrients!$I$9)*AB$7)+(((IF($A$8=Nutrients!$B$79,Nutrients!$I$79,(IF($A$8=Nutrients!$B$77,Nutrients!$I$77,Nutrients!$I$78)))))*AB$8))/2000","v":13.010227616088669},null,{"$f":"(SUMPRODUCT(AD$9:AD$229,Nutrients!$I$8:$I$228)+(IF($A$7=Nutrients!$B$8,Nutrients!$I$8,Nutrients!$I$9)*AD$7)+(((IF($A$8=Nutrients!$B$79,Nutrients!$I$79,(IF($A$8=Nutrients!$B$77,Nutrients!$I$77,Nutrients!$I$78)))))*AD$8))/2000","v":20.363727822522169},{"$f":"(SUMPRODUCT(AE$9:AE$229,Nutrients!$I$8:$I$228)+(IF($A$7=Nutrients!$B$8,Nutrients!$I$8,Nutrients!$I$9)*AE$7)+(((IF($A$8=Nutrients!$B$79,Nutrients!$I$79,(IF($A$8=Nutrients!$B$77,Nutrients!$I$77,Nutrients!$I$78)))))*AE$8))/2000","v":18.739159416331763},{"$f":"(SUMPRODUCT(AF$9:AF$229,Nutrients!$I$8:$I$228)+(IF($A$7=Nutrients!$B$8,Nutrients!$I$8,Nutrients!$I$9)*AF$7)+(((IF($A$8=Nutrients!$B$79,Nutrients!$I$79,(IF($A$8=Nutrients!$B$77,Nutrients!$I$77,Nutrients!$I$78)))))*AF$8))/2000","v":17.374786713434997},{"$f":"(SUMPRODUCT(AG$9:AG$229,Nutrients!$I$8:$I$228)+(IF($A$7=Nutrients!$B$8,Nutrients!$I$8,Nutrients!$I$9)*AG$7)+(((IF($A$8=Nutrients!$B$79,Nutrients!$I$79,(IF($A$8=Nutrients!$B$77,Nutrients!$I$77,Nutrients!$I$78)))))*AG$8))/2000","v":16.072656130737411},{"$f":"(SUMPRODUCT(AH$9:AH$229,Nutrients!$I$8:$I$228)+(IF($A$7=Nutrients!$B$8,Nutrients!$I$8,Nutrients!$I$9)*AH$7)+(((IF($A$8=Nutrients!$B$79,Nutrients!$I$79,(IF($A$8=Nutrients!$B$77,Nutrients!$I$77,Nutrients!$I$78)))))*AH$8))/2000","v":14.977814992867081},{"$f":"(SUMPRODUCT(AI$9:AI$229,Nutrients!$I$8:$I$228)+(IF($A$7=Nutrients!$B$8,Nutrients!$I$8,Nutrients!$I$9)*AI$7)+(((IF($A$8=Nutrients!$B$79,Nutrients!$I$79,(IF($A$8=Nutrients!$B$77,Nutrients!$I$77,Nutrients!$I$78)))))*AI$8))/2000","v":13.010227616088669},null,{"$f":"(SUMPRODUCT(AK$9:AK$229,Nutrients!$I$8:$I$228)+(IF($A$7=Nutrients!$B$8,Nutrients!$I$8,Nutrients!$I$9)*AK$7)+(((IF($A$8=Nutrients!$B$79,Nutrients!$I$79,(IF($A$8=Nutrients!$B$77,Nutrients!$I$77,Nutrients!$I$78)))))*AK$8))/2000","v":20.671183957565269},{"$f":"(SUMPRODUCT(AL$9:AL$229,Nutrients!$I$8:$I$228)+(IF($A$7=Nutrients!$B$8,Nutrients!$I$8,Nutrients!$I$9)*AL$7)+(((IF($A$8=Nutrients!$B$79,Nutrients!$I$79,(IF($A$8=Nutrients!$B$77,Nutrients!$I$77,Nutrients!$I$78)))))*AL$8))/2000","v":19.039986262842863},{"$f":"(SUMPRODUCT(AM$9:AM$229,Nutrients!$I$8:$I$228)+(IF($A$7=Nutrients!$B$8,Nutrients!$I$8,Nutrients!$I$9)*AM$7)+(((IF($A$8=Nutrients!$B$79,Nutrients!$I$79,(IF($A$8=Nutrients!$B$77,Nutrients!$I$77,Nutrients!$I$78)))))*AM$8))/2000","v":17.700836778311817},{"$f":"(SUMPRODUCT(AN$9:AN$229,Nutrients!$I$8:$I$228)+(IF($A$7=Nutrients!$B$8,Nutrients!$I$8,Nutrients!$I$9)*AN$7)+(((IF($A$8=Nutrients!$B$79,Nutrients!$I$79,(IF($A$8=Nutrients!$B$77,Nutrients!$I$77,Nutrients!$I$78)))))*AN$8))/2000","v":16.40532044879139},{"$f":"(SUMPRODUCT(AO$9:AO$229,Nutrients!$I$8:$I$228)+(IF($A$7=Nutrients!$B$8,Nutrients!$I$8,Nutrients!$I$9)*AO$7)+(((IF($A$8=Nutrients!$B$79,Nutrients!$I$79,(IF($A$8=Nutrients!$B$77,Nutrients!$I$77,Nutrients!$I$78)))))*AO$8))/2000","v":15.312491861130265},{"$f":"(SUMPRODUCT(AP$9:AP$229,Nutrients!$I$8:$I$228)+(IF($A$7=Nutrients!$B$8,Nutrients!$I$8,Nutrients!$I$9)*AP$7)+(((IF($A$8=Nutrients!$B$79,Nutrients!$I$79,(IF($A$8=Nutrients!$B$77,Nutrients!$I$77,Nutrients!$I$78)))))*AP$8))/2000","v":13.010227616088669},null,{"$f":"(SUMPRODUCT(AR$9:AR$229,Nutrients!$I$8:$I$228)+(IF($A$7=Nutrients!$B$8,Nutrients!$I$8,Nutrients!$I$9)*AR$7)+(((IF($A$8=Nutrients!$B$79,Nutrients!$I$79,(IF($A$8=Nutrients!$B$77,Nutrients!$I$77,Nutrients!$I$78)))))*AR$8))/2000","v":21.020217191615608},{"$f":"(SUMPRODUCT(AS$9:AS$229,Nutrients!$I$8:$I$228)+(IF($A$7=Nutrients!$B$8,Nutrients!$I$8,Nutrients!$I$9)*AS$7)+(((IF($A$8=Nutrients!$B$79,Nutrients!$I$79,(IF($A$8=Nutrients!$B$77,Nutrients!$I$77,Nutrients!$I$78)))))*AS$8))/2000","v":19.346527729703066},{"$f":"(SUMPRODUCT(AT$9:AT$229,Nutrients!$I$8:$I$228)+(IF($A$7=Nutrients!$B$8,Nutrients!$I$8,Nutrients!$I$9)*AT$7)+(((IF($A$8=Nutrients!$B$79,Nutrients!$I$79,(IF($A$8=Nutrients!$B$77,Nutrients!$I$77,Nutrients!$I$78)))))*AT$8))/2000","v":18.034560211539901},{"$f":"(SUMPRODUCT(AU$9:AU$229,Nutrients!$I$8:$I$228)+(IF($A$7=Nutrients!$B$8,Nutrients!$I$8,Nutrients!$I$9)*AU$7)+(((IF($A$8=Nutrients!$B$79,Nutrients!$I$79,(IF($A$8=Nutrients!$B$77,Nutrients!$I$77,Nutrients!$I$78)))))*AU$8))/2000","v":16.732781824485457},{"$f":"(SUMPRODUCT(AV$9:AV$229,Nutrients!$I$8:$I$228)+(IF($A$7=Nutrients!$B$8,Nutrients!$I$8,Nutrients!$I$9)*AV$7)+(((IF($A$8=Nutrients!$B$79,Nutrients!$I$79,(IF($A$8=Nutrients!$B$77,Nutrients!$I$77,Nutrients!$I$78)))))*AV$8))/2000","v":15.647277489283631},{"$f":"(SUMPRODUCT(AW$9:AW$229,Nutrients!$I$8:$I$228)+(IF($A$7=Nutrients!$B$8,Nutrients!$I$8,Nutrients!$I$9)*AW$7)+(((IF($A$8=Nutrients!$B$79,Nutrients!$I$79,(IF($A$8=Nutrients!$B$77,Nutrients!$I$77,Nutrients!$I$78)))))*AW$8))/2000","v":13.010227616088669}]
["Ca, %",{"$f":"(SUMPRODUCT(B$9:B$229,Nutrients!$BS$8:$BS$228)+(IF($A$7=Nutrients!$B$8,Nutrients!$BS$8,Nutrients!$BS$9)*B$7)+(((IF($A$8=Nutrients!$B$79,Nutrients!$BS$79,(IF($A$8=Nutrients!$B$77,Nutrients!$BS$77,Nutrients!$BS$78)))))*B$8))/2000","v":0.69579038170108098},{"$f":"(SUMPRODUCT(C$9:C$229,Nutrients!$BS$8:$BS$228)+(IF($A$7=Nutrients!$B$8,Nutrients!$BS$8,Nutrients!$BS$9)*C$7)+(((IF($A$8=Nutrients!$B$79,Nutrients!$BS$79,(IF($A$8=Nutrients!$B$77,Nutrients!$BS$77,Nutrients!$BS$78)))))*C$8))/2000","v":0.62597225623792574},{"$f":"(SUMPRODUCT(D$9:D$229,Nutrients!$BS$8:$BS$228)+(IF($A$7=Nutrients!$B$8,Nutrients!$BS$8,Nutrients!$BS$9)*D$7)+(((IF($A$8=Nutrients!$B$79,Nutrients!$BS$79,(IF($A$8=Nutrients!$B$77,Nutrients!$BS$77,Nutrients!$BS$78)))))*D$8))/2000","v":0.57389505815699282},{"$f":"(SUMPRODUCT(E$9:E$229,Nutrients!$BS$8:$BS$228)+(IF($A$7=Nutrients!$B$8,Nutrients!$BS$8,Nutrients!$BS$9)*E$7)+(((IF($A$8=Nutrients!$B$79,Nutrients!$BS$79,(IF($A$8=Nutrients!$B$77,Nutrients!$BS$77,Nutrients!$BS$78)))))*E$8))/2000","v":0.52055031100225413},{"$f":"(SUMPRODUCT(F$9:F$229,Nutrients!$BS$8:$BS$228)+(IF($A$7=Nutrients!$B$8,Nutrients!$BS$8,Nutrients!$BS$9)*F$7)+(((IF($A$8=Nutrients!$B$79,Nutrients!$BS$79,(IF($A$8=Nutrients!$B$77,Nutrients!$BS$77,Nutrients!$BS$78)))))*F$8))/2000","v":0.47698896958793735},{"$f":"(SUMPRODUCT(G$9:G$229,Nutrients!$BS$8:$BS$228)+(IF($A$7=Nutrients!$B$8,Nutrients!$BS$8,Nutrients!$BS$9)*G$7)+(((IF($A$8=Nutrients!$B$79,Nutrients!$BS$79,(IF($A$8=Nutrients!$B$77,Nutrients!$BS$77,Nutrients!$BS$78)))))*G$8))/2000","v":0.4600223649748173},null,{"$f":"(SUMPRODUCT(I$9:I$229,Nutrients!$BS$8:$BS$228)+(IF($A$7=Nutrients!$B$8,Nutrients!$BS$8,Nutrients!$BS$9)*I$7)+(((IF($A$8=Nutrients!$B$79,Nutrients!$BS$79,(IF($A$8=Nutrients!$B$77,Nutrients!$BS$77,Nutrients!$BS$78)))))*I$8))/2000","v":0.69509786713140509},{"$f":"(SUMPRODUCT(J$9:J$229,Nutrients!$BS$8:$BS$228)+(IF($A$7=Nutrients!$B$8,Nutrients!$BS$8,Nutrients!$BS$9)*J$7)+(((IF($A$8=Nutrients!$B$79,Nutrients!$BS$79,(IF($A$8=Nutrients!$B$77,Nutrients!$BS$77,Nutrients!$BS$78)))))*J$8))/2000","v":0.62685751929538103},{"$f":"(SUMPRODUCT(K$9:K$229,Nutrients!$BS$8:$BS$228)+(IF($A$7=Nutrients!$B$8,Nutrients!$BS$8,Nutrients!$BS$9)*K$7)+(((IF($A$8=Nutrients!$B$79,Nutrients!$BS$79,(IF($A$8=Nutrients!$B$77,Nutrients!$BS$77,Nutrients!$BS$78)))))*K$8))/2000","v":0.5728019313815349},{"$f":"(SUMPRODUCT(L$9:L$229,Nutrients!$BS$8:$BS$228)+(IF($A$7=Nutrients!$B$8,Nutrients!$BS$8,Nutrients!$BS$9)*L$7)+(((IF($A$8=Nutrients!$B$79,Nutrients!$BS$79,(IF($A$8=Nutrients!$B$77,Nutrients!$BS$77,Nutrients!$BS$78)))))*L$8))/2000","v":0.52063920797813668},{"$f":"(SUMPRODUCT(M$9:M$229,Nutrients!$BS$8:$BS$228)+(IF($A$7=Nutrients!$B$8,Nutrients!$BS$8,Nutrients!$BS$9)*M$7)+(((IF($A$8=Nutrients!$B$79,Nutrients!$BS$79,(IF($A$8=Nutrients!$B$77,Nutrients!$BS$77,Nutrients!$BS$78)))))*M$8))/2000","v":0.47751601032645441},{"$f":"(SUMPRODUCT(N$9:N$229,Nutrients!$BS$8:$BS$228)+(IF($A$7=Nutrients!$B$8,Nutrients!$BS$8,Nutrients!$BS$9)*N$7)+(((IF($A$8=Nutrients!$B$79,Nutrients!$BS$79,(IF($A$8=Nutrients!$B$77,Nutrients!$BS$77,Nutrients!$BS$78)))))*N$8))/2000","v":0.4600223649748173},null,{"$f":"(SUMPRODUCT(P$9:P$229,Nutrients!$BS$8:$BS$228)+(IF($A$7=Nutrients!$B$8,Nutrients!$BS$8,Nutrients!$BS$9)*P$7)+(((IF($A$8=Nutrients!$B$79,Nutrients!$BS$79,(IF($A$8=Nutrients!$B$77,Nutrients!$BS$77,Nutrients!$BS$78)))))*P$8))/2000","v":0.69494644331109834},{"$f":"(SUMPRODUCT(Q$9:Q$229,Nutrients!$BS$8:$BS$228)+(IF($A$7=Nutrients!$B$8,Nutrients!$BS$8,Nutrients!$BS$9)*Q$7)+(((IF($A$8=Nutrients!$B$79,Nutrients!$BS$79,(IF($A$8=Nutrients!$B$77,Nutrients!$BS$77,Nutrients!$BS$78)))))*Q$8))/2000","v":0.62702925728822478},{"$f":"(SUMPRODUCT(R$9:R$229,Nutrients!$BS$8:$BS$228)+(IF($A$7=Nutrients!$B$8,Nutrients!$BS$8,Nutrients!$BS$9)*R$7)+(((IF($A$8=Nutrients!$B$79,Nutrients!$BS$79,(IF($A$8=Nutrients!$B$77,Nutrients!$BS$77,Nutrients!$BS$78)))))*R$8))/2000","v":0.57281027862745393},{"$f":"(SUMPRODUCT(S$9:S$229,Nutrients!$BS$8:$BS$228)+(IF($A$7=Nutrients!$B$8,Nutrients!$BS$8,Nutrients!$BS$9)*S$7)+(((IF($A$8=Nutrients!$B$79,Nutrients!$BS$79,(IF($A$8=Nutrients!$B$77,Nutrients!$BS$77,Nutrients!$BS$78)))))*S$8))/2000","v":0.5205920977318963},{"$f":"(SUMPRODUCT(T$9:T$229,Nutrients!$BS$8:$BS$228)+(IF($A$7=Nutrients!$B$8,Nutrients!$BS$8,Nutrients!$BS$9)*T$7)+(((IF($A$8=Nutrients!$B$79,Nutrients!$BS$79,(IF($A$8=Nutrients!$B$77,Nutrients!$BS$77,Nutrients!$BS$78)))))*T$8))/2000","v":0.4775666186074749},{"$f":"(SUMPRODUCT(U$9:U$229,Nutrients!$BS$8:$BS$228)+(IF($A$7=Nutrients!$B$8,Nutrients!$BS$8,Nutrients!$BS$9)*U$7)+(((IF($A$8=Nutrients!$B$79,Nutrients!$BS$79,(IF($A$8=Nutrients!$B$77,Nutrients!$BS$77,Nutrients!$BS$78)))))*U$8))/2000","v":0.4600223649748173},null,{"$f":"(SUMPRODUCT(W$9:W$229,Nutrients!$BS$8:$BS$228)+(IF($A$7=Nutrients!$B$8,Nutrients!$BS$8,Nutrients!$BS$9)*W$7)+(((IF($A$8=Nutrients!$B$79,Nutrients!$BS$79,(IF($A$8=Nutrients!$B$77,Nutrients!$BS$77,Nutrients!$BS$78)))))*W$8))/2000","v":0.69472356241515099},{"$f":"(SUMPRODUCT(X$9:X$229,Nutrients!$BS$8:$BS$228)+(IF($A$7=Nutrients!$B$8,Nutrients!$BS$8,Nutrients!$BS$9)*X$7)+(((IF($A$8=Nutrients!$B$79,Nutrients!$BS$79,(IF($A$8=Nutrients!$B$77,Nutrients!$BS$77,Nutrients!$BS$78)))))*X$8))/2000","v":0.62691879868403333},{"$f":"(SUMPRODUCT(Y$9:Y$229,Nutrients!$BS$8:$BS$228)+(IF($A$7=Nutrients!$B$8,Nutrients!$BS$8,Nutrients!$BS$9)*Y$7)+(((IF($A$8=Nutrients!$B$79,Nutrients!$BS$79,(IF($A$8=Nutrients!$B$77,Nutrients!$BS$77,Nutrients!$BS$78)))))*Y$8))/2000","v":0.57264618041469006},{"$f":"(SUMPRODUCT(Z$9:Z$229,Nutrients!$BS$8:$BS$228)+(IF($A$7=Nutrients!$B$8,Nutrients!$BS$8,Nutrients!$BS$9)*Z$7)+(((IF($A$8=Nutrients!$B$79,Nutrients!$BS$79,(IF($A$8=Nutrients!$B$77,Nutrients!$BS$77,Nutrients!$BS$78)))))*Z$8))/2000","v":0.52058929495381878},{"$f":"(SUMPRODUCT(AA$9:AA$229,Nutrients!$BS$8:$BS$228)+(IF($A$7=Nutrients!$B$8,Nutrients!$BS$8,Nutrients!$BS$9)*AA$7)+(((IF($A$8=Nutrients!$B$79,Nutrients!$BS$79,(IF($A$8=Nutrients!$B$77,Nutrients!$BS$77,Nutrients!$BS$78)))))*AA$8))/2000","v":0.47762936226575142},{"$f":"(SUMPRODUCT(AB$9:AB$229,Nutrients!$BS$8:$BS$228)+(IF($A$7=Nutrients!$B$8,Nutrients!$BS$8,Nutrients!$BS$9)*AB$7)+(((IF($A$8=Nutrients!$B$79,Nutrients!$BS$79,(IF($A$8=Nutrients!$B$77,Nutrients!$BS$77,Nutrients!$BS$78)))))*AB$8))/2000","v":0.4600223649748173},null,{"$f":"(SUMPRODUCT(AD$9:AD$229,Nutrients!$BS$8:$BS$228)+(IF($A$7=Nutrients!$B$8,Nutrients!$BS$8,Nutrients!$BS$9)*AD$7)+(((IF($A$8=Nutrients!$B$79,Nutrients!$BS$79,(IF($A$8=Nutrients!$B$77,Nutrients!$BS$77,Nutrients!$BS$78)))))*AD$8))/2000","v":0.69448726104704361},{"$f":"(SUMPRODUCT(AE$9:AE$229,Nutrients!$BS$8:$BS$228)+(IF($A$7=Nutrients!$B$8,Nutrients!$BS$8,Nutrients!$BS$9)*AE$7)+(((IF($A$8=Nutrients!$B$79,Nutrients!$BS$79,(IF($A$8=Nutrients!$B$77,Nutrients!$BS$77,Nutrients!$BS$78)))))*AE$8))/2000","v":0.62663883934466658},{"$f":"(SUMPRODUCT(AF$9:AF$229,Nutrients!$BS$8:$BS$228)+(IF($A$7=Nutrients!$B$8,Nutrients!$BS$8,Nutrients!$BS$9)*AF$7)+(((IF($A$8=Nutrients!$B$79,Nutrients!$BS$79,(IF($A$8=Nutrients!$B$77,Nutrients!$BS$77,Nutrients!$BS$78)))))*AF$8))/2000","v":0.572523130879944},{"$f":"(SUMPRODUCT(AG$9:AG$229,Nutrients!$BS$8:$BS$228)+(IF($A$7=Nutrients!$B$8,Nutrients!$BS$8,Nutrients!$BS$9)*AG$7)+(((IF($A$8=Nutrients!$B$79,Nutrients!$BS$79,(IF($A$8=Nutrients!$B$77,Nutrients!$BS$77,Nutrients!$BS$78)))))*AG$8))/2000","v":0.52111006939173765},{"$f":"(SUMPRODUCT(AH$9:AH$229,Nutrients!$BS$8:$BS$228)+(IF($A$7=Nutrients!$B$8,Nutrients!$BS$8,Nutrients!$BS$9)*AH$7)+(((IF($A$8=Nutrients!$B$79,Nutrients!$BS$79,(IF($A$8=Nutrients!$B$77,Nutrients!$BS$77,Nutrients!$BS$78)))))*AH$8))/2000","v":0.49396778209023379},{"$f":"(SUMPRODUCT(AI$9:AI$229,Nutrients!$BS$8:$BS$228)+(IF($A$7=Nutrients!$B$8,Nutrients!$BS$8,Nutrients!$BS$9)*AI$7)+(((IF($A$8=Nutrients!$B$79,Nutrients!$BS$79,(IF($A$8=Nutrients!$B$77,Nutrients!$BS$77,Nutrients!$BS$78)))))*AI$8))/2000","v":0.4600223649748173},null,{"$f":"(SUMPRODUCT(AK$9:AK$229,Nutrients!$BS$8:$BS$228)+(IF($A$7=Nutrients!$B$8,Nutrients!$BS$8,Nutrients!$BS$9)*AK$7)+(((IF($A$8=Nutrients!$B$79,Nutrients!$BS$79,(IF($A$8=Nutrients!$B$77,Nutrients!$BS$77,Nutrients!$BS$78)))))*AK$8))/2000","v":0.69429566110979846},{"$f":"(SUMPRODUCT(AL$9:AL$229,Nutrients!$BS$8:$BS$228)+(IF($A$7=Nutrients!$B$8,Nutrients!$BS$8,Nutrients!$BS$9)*AL$7)+(((IF($A$8=Nutrients!$B$79,Nutrients!$BS$79,(IF($A$8=Nutrients!$B$77,Nutrients!$BS$77,Nutrients!$BS$78)))))*AL$8))/2000","v":0.62640768545386993},{"$f":"(SUMPRODUCT(AM$9:AM$229,Nutrients!$BS$8:$BS$228)+(IF($A$7=Nutrients!$B$8,Nutrients!$BS$8,Nutrients!$BS$9)*AM$7)+(((IF($A$8=Nutrients!$B$79,Nutrients!$BS$79,(IF($A$8=Nutrients!$B$77,Nutrients!$BS$77,Nutrients!$BS$78)))))*AM$8))/2000","v":0.57241998565275465},{"$f":"(SUMPRODUCT(AN$9:AN$229,Nutrients!$BS$8:$BS$228)+(IF($A$7=Nutrients!$B$8,Nutrients!$BS$8,Nutrients!$BS$9)*AN$7)+(((IF($A$8=Nutrients!$B$79,Nutrients!$BS$79,(IF($A$8=Nutrients!$B$77,Nutrients!$BS$77,Nutrients!$BS$78)))))*AN$8))/2000","v":0.53407219225656921},{"$f":"(SUMPRODUCT(AO$9:AO$229,Nutrients!$BS$8:$BS$228)+(IF($A$7=Nutrients!$B$8,Nutrients!$BS$8,Nutrients!$BS$9)*AO$7)+(((IF($A$8=Nutrients!$B$79,Nutrients!$BS$79,(IF($A$8=Nutrients!$B$77,Nutrients!$BS$77,Nutrients!$BS$78)))))*AO$8))/2000","v":0.5157947404804325},{"$f":"(SUMPRODUCT(AP$9:AP$229,Nutrients!$BS$8:$BS$228)+(IF($A$7=Nutrients!$B$8,Nutrients!$BS$8,Nutrients!$BS$9)*AP$7)+(((IF($A$8=Nutrients!$B$79,Nutrients!$BS$79,(IF($A$8=Nutrients!$B$77,Nutrients!$BS$77,Nutrients!$BS$78)))))*AP$8))/2000","v":0.4600223649748173},null,{"$f":"(SUMPRODUCT(AR$9:AR$229,Nutrients!$BS$8:$BS$228)+(IF($A$7=Nutrients!$B$8,Nutrients!$BS$8,Nutrients!$BS$9)*AR$7)+(((IF($A$8=Nutrients!$B$79,Nutrients!$BS$79,(IF($A$8=Nutrients!$B$77,Nutrients!$BS$77,Nutrients!$BS$78)))))*AR$8))/2000","v":0.69443674473297878},{"$f":"(SUMPRODUCT(AS$9:AS$229,Nutrients!$BS$8:$BS$228)+(IF($A$7=Nutrients!$B$8,Nutrients!$BS$8,Nutrients!$BS$9)*AS$7)+(((IF($A$8=Nutrients!$B$79,Nutrients!$BS$79,(IF($A$8=Nutrients!$B$77,Nutrients!$BS$77,Nutrients!$BS$78)))))*AS$8))/2000","v":0.62617785979488438},{"$f":"(SUMPRODUCT(AT$9:AT$229,Nutrients!$BS$8:$BS$228)+(IF($A$7=Nutrients!$B$8,Nutrients!$BS$8,Nutrients!$BS$9)*AT$7)+(((IF($A$8=Nutrients!$B$79,Nutrients!$BS$79,(IF($A$8=Nutrients!$B$77,Nutrients!$BS$77,Nutrients!$BS$78)))))*AT$8))/2000","v":0.57290278813502837},{"$f":"(SUMPRODUCT(AU$9:AU$229,Nutrients!$BS$8:$BS$228)+(IF($A$7=Nutrients!$B$8,Nutrients!$BS$8,Nutrients!$BS$9)*AU$7)+(((IF($A$8=Nutrients!$B$79,Nutrients!$BS$79,(IF($A$8=Nutrients!$B$77,Nutrients!$BS$77,Nutrients!$BS$78)))))*AU$8))/2000","v":0.556061515849402},{"$f":"(SUMPRODUCT(AV$9:AV$229,Nutrients!$BS$8:$BS$228)+(IF($A$7=Nutrients!$B$8,Nutrients!$BS$8,Nutrients!$BS$9)*AV$7)+(((IF($A$8=Nutrients!$B$79,Nutrients!$BS$79,(IF($A$8=Nutrients!$B$77,Nutrients!$BS$77,Nutrients!$BS$78)))))*AV$8))/2000","v":0.53762407161563042},{"$f":"(SUMPRODUCT(AW$9:AW$229,Nutrients!$BS$8:$BS$228)+(IF($A$7=Nutrients!$B$8,Nutrients!$BS$8,Nutrients!$BS$9)*AW$7)+(((IF($A$8=Nutrients!$B$79,Nutrients!$BS$79,(IF($A$8=Nutrients!$B$77,Nutrients!$BS$77,Nutrients!$BS$78)))))*AW$8))/2000","v":0.4600223649748173}]
["P, %",{"$f":"(SUMPRODUCT(B$9:B$229,Nutrients!$BX$8:$BX$228)+(IF($A$7=Nutrients!$B$8,Nutrients!$BX$8,Nutrients!$BX$9)*B$7)+(((IF($A$8=Nutrients!$B$79,Nutrients!$BX$79,(IF($A$8=Nutrients!$B$77,Nutrients!$BX$77,Nutrients!$BX$78)))))*B$8))/2000","v":0.52698829927184954},{"$f":"(SUMPRODUCT(C$9:C$229,Nutrients!$BX$8:$BX$228)+(IF($A$7=Nutrients!$B$8,Nutrients!$BX$8,Nutrients!$BX$9)*C$7)+(((IF($A$8=Nutrients!$B$79,Nutrients!$BX$79,(IF($A$8=Nutrients!$B$77,Nutrients!$BX$77,Nutrients!$BX$78)))))*C$8))/2000","v":0.47554766489495992},{"$f":"(SUMPRODUCT(D$9:D$229,Nutrients!$BX$8:$BX$228)+(IF($A$7=Nutrients!$B$8,Nutrients!$BX$8,Nutrients!$BX$9)*D$7)+(((IF($A$8=Nutrients!$B$79,Nutrients!$BX$79,(IF($A$8=Nutrients!$B$77,Nutrients!$BX$77,Nutrients!$BX$78)))))*D$8))/2000","v":0.42608857846774251},{"$f":"(SUMPRODUCT(E$9:E$229,Nutrients!$BX$8:$BX$228)+(IF($A$7=Nutrients!$B$8,Nutrients!$BX$8,Nutrients!$BX$9)*E$7)+(((IF($A$8=Nutrients!$B$79,Nutrients!$BX$79,(IF($A$8=Nutrients!$B$77,Nutrients!$BX$77,Nutrients!$BX$78)))))*E$8))/2000","v":0.38726313311804977},{"$f":"(SUMPRODUCT(F$9:F$229,Nutrients!$BX$8:$BX$228)+(IF($A$7=Nutrients!$B$8,Nutrients!$BX$8,Nutrients!$BX$9)*F$7)+(((IF($A$8=Nutrients!$B$79,Nutrients!$BX$79,(IF($A$8=Nutrients!$B$77,Nutrients!$BX$77,Nutrients!$BX$78)))))*F$8))/2000","v":0.35891430613336472},{"$f":"(SUMPRODUCT(G$9:G$229,Nutrients!$BX$8:$BX$228)+(IF($A$7=Nutrients!$B$8,Nutrients!$BX$8,Nutrients!$BX$9)*G$7)+(((IF($A$8=Nutrients!$B$79,Nutrients!$BX$79,(IF($A$8=Nutrients!$B$77,Nutrients!$BX$77,Nutrients!$BX$78)))))*G$8))/2000","v":0.34524547811925704},null,{"$f":"(SUMPRODUCT(I$9:I$229,Nutrients!$BX$8:$BX$228)+(IF($A$7=Nutrients!$B$8,Nutrients!$BX$8,Nutrients!$BX$9)*I$7)+(((IF($A$8=Nutrients!$B$79,Nutrients!$BX$79,(IF($A$8=Nutrients!$B$77,Nutrients!$BX$77,Nutrients!$BX$78)))))*I$8))/2000","v":0.52592001619434159},{"$f":"(SUMPRODUCT(J$9:J$229,Nutrients!$BX$8:$BX$228)+(IF($A$7=Nutrients!$B$8,Nutrients!$BX$8,Nutrients!$BX$9)*J$7)+(((IF($A$8=Nutrients!$B$79,Nutrients!$BX$79,(IF($A$8=Nutrients!$B$77,Nutrients!$BX$77,Nutrients!$BX$78)))))*J$8))/2000","v":0.47568073071712891},{"$f":"(SUMPRODUCT(K$9:K$229,Nutrients!$BX$8:$BX$228)+(IF($A$7=Nutrients!$B$8,Nutrients!$BX$8,Nutrients!$BX$9)*K$7)+(((IF($A$8=Nutrients!$B$79,Nutrients!$BX$79,(IF($A$8=Nutrients!$B$77,Nutrients!$BX$77,Nutrients!$BX$78)))))*K$8))/2000","v":0.42509929052569745},{"$f":"(SUMPRODUCT(L$9:L$229,Nutrients!$BX$8:$BX$228)+(IF($A$7=Nutrients!$B$8,Nutrients!$BX$8,Nutrients!$BX$9)*L$7)+(((IF($A$8=Nutrients!$B$79,Nutrients!$BX$79,(IF($A$8=Nutrients!$B$77,Nutrients!$BX$77,Nutrients!$BX$78)))))*L$8))/2000","v":0.38707961080132319},{"$f":"(SUMPRODUCT(M$9:M$229,Nutrients!$BX$8:$BX$228)+(IF($A$7=Nutrients!$B$8,Nutrients!$BX$8,Nutrients!$BX$9)*M$7)+(((IF($A$8=Nutrients!$B$79,Nutrients!$BX$79,(IF($A$8=Nutrients!$B$77,Nutrients!$BX$77,Nutrients!$BX$78)))))*M$8))/2000","v":0.35872619262130212},{"$f":"(SUMPRODUCT(N$9:N$229,Nutrients!$BX$8:$BX$228)+(IF($A$7=Nutrients!$B$8,Nutrients!$BX$8,Nutrients!$BX$9)*N$7)+(((IF($A$8=Nutrients!$B$79,Nutrients!$BX$79,(IF($A$8=Nutrients!$B$77,Nutrients!$BX$77,Nutrients!$BX$78)))))*N$8))/2000","v":0.34524547811925704},null,{"$f":"(SUMPRODUCT(P$9:P$229,Nutrients!$BX$8:$BX$228)+(IF($A$7=Nutrients!$B$8,Nutrients!$BX$8,Nutrients!$BX$9)*P$7)+(((IF($A$8=Nutrients!$B$79,Nutrients!$BX$79,(IF($A$8=Nutrients!$B$77,Nutrients!$BX$77,Nutrients!$BX$78)))))*P$8))/2000","v":0.52545543398911643},{"$f":"(SUMPRODUCT(Q$9:Q$229,Nutrients!$BX$8:$BX$228)+(IF($A$7=Nutrients!$B$8,Nutrients!$BX$8,Nutrients!$BX$9)*Q$7)+(((IF($A$8=Nutrients!$B$79,Nutrients!$BX$79,(IF($A$8=Nutrients!$B$77,Nutrients!$BX$77,Nutrients!$BX$78)))))*Q$8))/2000","v":0.4753632508708438},{"$f":"(SUMPRODUCT(R$9:R$229,Nutrients!$BX$8:$BX$228)+(IF($A$7=Nutrients!$B$8,Nutrients!$BX$8,Nutrients!$BX$9)*R$7)+(((IF($A$8=Nutrients!$B$79,Nutrients!$BX$79,(IF($A$8=Nutrients!$B$77,Nutrients!$BX$77,Nutrients!$BX$78)))))*R$8))/2000","v":0.42495664830724666},{"$f":"(SUMPRODUCT(S$9:S$229,Nutrients!$BX$8:$BX$228)+(IF($A$7=Nutrients!$B$8,Nutrients!$BX$8,Nutrients!$BX$9)*S$7)+(((IF($A$8=Nutrients!$B$79,Nutrients!$BX$79,(IF($A$8=Nutrients!$B$77,Nutrients!$BX$77,Nutrients!$BX$78)))))*S$8))/2000","v":0.38685096155511967},{"$f":"(SUMPRODUCT(T$9:T$229,Nutrients!$BX$8:$BX$228)+(IF($A$7=Nutrients!$B$8,Nutrients!$BX$8,Nutrients!$BX$9)*T$7)+(((IF($A$8=Nutrients!$B$79,Nutrients!$BX$79,(IF($A$8=Nutrients!$B$77,Nutrients!$BX$77,Nutrients!$BX$78)))))*T$8))/2000","v":0.35863667884217348},{"$f":"(SUMPRODUCT(U$9:U$229,Nutrients!$BX$8:$BX$228)+(IF($A$7=Nutrients!$B$8,Nutrients!$BX$8,Nutrients!$BX$9)*U$7)+(((IF($A$8=Nutrients!$B$79,Nutrients!$BX$79,(IF($A$8=Nutrients!$B$77,Nutrients!$BX$77,Nutrients!$BX$78)))))*U$8))/2000","v":0.34524547811925704},null,{"$f":"(SUMPRODUCT(W$9:W$229,Nutrients!$BX$8:$BX$228)+(IF($A$7=Nutrients!$B$8,Nutrients!$BX$8,Nutrients!$BX$9)*W$7)+(((IF($A$8=Nutrients!$B$79,Nutrients!$BX$79,(IF($A$8=Nutrients!$B$77,Nutrients!$BX$77,Nutrients!$BX$78)))))*W$8))/2000","v":0.52498497834799607},{"$f":"(SUMPRODUCT(X$9:X$229,Nutrients!$BX$8:$BX$228)+(IF($A$7=Nutrients!$B$8,Nutrients!$BX$8,Nutrients!$BX$9)*X$7)+(((IF($A$8=Nutrients!$B$79,Nutrients!$BX$79,(IF($A$8=Nutrients!$B$77,Nutrients!$BX$77,Nutrients!$BX$78)))))*X$8))/2000","v":0.47505053989325485},{"$f":"(SUMPRODUCT(Y$9:Y$229,Nutrients!$BX$8:$BX$228)+(IF($A$7=Nutrients!$B$8,Nutrients!$BX$8,Nutrients!$BX$9)*Y$7)+(((IF($A$8=Nutrients!$B$79,Nutrients!$BX$79,(IF($A$8=Nutrients!$B$77,Nutrients!$BX$77,Nutrients!$BX$78)))))*Y$8))/2000","v":0.42455698936338937},{"$f":"(SUMPRODUCT(Z$9:Z$229,Nutrients!$BX$8:$BX$228)+(IF($A$7=Nutrients!$B$8,Nutrients!$BX$8,Nutrients!$BX$9)*Z$7)+(((IF($A$8=Nutrients!$B$79,Nutrients!$BX$79,(IF($A$8=Nutrients!$B$77,Nutrients!$BX$77,Nutrients!$BX$78)))))*Z$8))/2000","v":0.38667437687726525},{"$f":"(SUMPRODUCT(AA$9:AA$229,Nutrients!$BX$8:$BX$228)+(IF($A$7=Nutrients!$B$8,Nutrients!$BX$8,Nutrients!$BX$9)*AA$7)+(((IF($A$8=Nutrients!$B$79,Nutrients!$BX$79,(IF($A$8=Nutrients!$B$77,Nutrients!$BX$77,Nutrients!$BX$78)))))*AA$8))/2000","v":0.35852637124934916},{"$f":"(SUMPRODUCT(AB$9:AB$229,Nutrients!$BX$8:$BX$228)+(IF($A$7=Nutrients!$B$8,Nutrients!$BX$8,Nutrients!$BX$9)*AB$7)+(((IF($A$8=Nutrients!$B$79,Nutrients!$BX$79,(IF($A$8=Nutrients!$B$77,Nutrients!$BX$77,Nutrients!$BX$78)))))*AB$8))/2000","v":0.34524547811925704},null,{"$f":"(SUMPRODUCT(AD$9:AD$229,Nutrients!$BX$8:$BX$228)+(IF($A$7=Nutrients!$B$8,Nutrients!$BX$8,Nutrients!$BX$9)*AD$7)+(((IF($A$8=Nutrients!$B$79,Nutrients!$BX$79,(IF($A$8=Nutrients!$B$77,Nutrients!$BX$77,Nutrients!$BX$78)))))*AD$8))/2000","v":0.52448662089407505},{"$f":"(SUMPRODUCT(AE$9:AE$229,Nutrients!$BX$8:$BX$228)+(IF($A$7=Nutrients!$B$8,Nutrients!$BX$8,Nutrients!$BX$9)*AE$7)+(((IF($A$8=Nutrients!$B$79,Nutrients!$BX$79,(IF($A$8=Nutrients!$B$77,Nutrients!$BX$77,Nutrients!$BX$78)))))*AE$8))/2000","v":0.4744844471557928},{"$f":"(SUMPRODUCT(AF$9:AF$229,Nutrients!$BX$8:$BX$228)+(IF($A$7=Nutrients!$B$8,Nutrients!$BX$8,Nutrients!$BX$9)*AF$7)+(((IF($A$8=Nutrients!$B$79,Nutrients!$BX$79,(IF($A$8=Nutrients!$B$77,Nutrients!$BX$77,Nutrients!$BX$78)))))*AF$8))/2000","v":0.42420469810327399},{"$f":"(SUMPRODUCT(AG$9:AG$229,Nutrients!$BX$8:$BX$228)+(IF($A$7=Nutrients!$B$8,Nutrients!$BX$8,Nutrients!$BX$9)*AG$7)+(((IF($A$8=Nutrients!$B$79,Nutrients!$BX$79,(IF($A$8=Nutrients!$B$77,Nutrients!$BX$77,Nutrients!$BX$78)))))*AG$8))/2000","v":0.38646047975564268},{"$f":"(SUMPRODUCT(AH$9:AH$229,Nutrients!$BX$8:$BX$228)+(IF($A$7=Nutrients!$B$8,Nutrients!$BX$8,Nutrients!$BX$9)*AH$7)+(((IF($A$8=Nutrients!$B$79,Nutrients!$BX$79,(IF($A$8=Nutrients!$B$77,Nutrients!$BX$77,Nutrients!$BX$78)))))*AH$8))/2000","v":0.36838408966702907},{"$f":"(SUMPRODUCT(AI$9:AI$229,Nutrients!$BX$8:$BX$228)+(IF($A$7=Nutrients!$B$8,Nutrients!$BX$8,Nutrients!$BX$9)*AI$7)+(((IF($A$8=Nutrients!$B$79,Nutrients!$BX$79,(IF($A$8=Nutrients!$B$77,Nutrients!$BX$77,Nutrients!$BX$78)))))*AI$8))/2000","v":0.34524547811925704},null,{"$f":"(SUMPRODUCT(AK$9:AK$229,Nutrients!$BX$8:$BX$228)+(IF($A$7=Nutrients!$B$8,Nutrients!$BX$8,Nutrients!$BX$9)*AK$7)+(((IF($A$8=Nutrients!$B$79,Nutrients!$BX$79,(IF($A$8=Nutrients!$B$77,Nutrients!$BX$77,Nutrients!$BX$78)))))*AK$8))/2000","v":0.52405041913459449},{"$f":"(SUMPRODUCT(AL$9:AL$229,Nutrients!$BX$8:$BX$228)+(IF($A$7=Nutrients!$B$8,Nutrients!$BX$8,Nutrients!$BX$9)*AL$7)+(((IF($A$8=Nutrients!$B$79,Nutrients!$BX$79,(IF($A$8=Nutrients!$B$77,Nutrients!$BX$77,Nutrients!$BX$78)))))*AL$8))/2000","v":0.47399682700324586},{"$f":"(SUMPRODUCT(AM$9:AM$229,Nutrients!$BX$8:$BX$228)+(IF($A$7=Nutrients!$B$8,Nutrients!$BX$8,Nutrients!$BX$9)*AM$7)+(((IF($A$8=Nutrients!$B$79,Nutrients!$BX$79,(IF($A$8=Nutrients!$B$77,Nutrients!$BX$77,Nutrients!$BX$78)))))*AM$8))/2000","v":0.42386891818988232},{"$f":"(SUMPRODUCT(AN$9:AN$229,Nutrients!$BX$8:$BX$228)+(IF($A$7=Nutrients!$B$8,Nutrients!$BX$8,Nutrients!$BX$9)*AN$7)+(((IF($A$8=Nutrients!$B$79,Nutrients!$BX$79,(IF($A$8=Nutrients!$B$77,Nutrients!$BX$77,Nutrients!$BX$78)))))*AN$8))/2000","v":0.39426849496236854},{"$f":"(SUMPRODUCT(AO$9:AO$229,Nutrients!$BX$8:$BX$228)+(IF($A$7=Nutrients!$B$8,Nutrients!$BX$8,Nutrients!$BX$9)*AO$7)+(((IF($A$8=Nutrients!$B$79,Nutrients!$BX$79,(IF($A$8=Nutrients!$B$77,Nutrients!$BX$77,Nutrients!$BX$78)))))*AO$8))/2000","v":0.38191970380774087},{"$f":"(SUMPRODUCT(AP$9:AP$229,Nutrients!$BX$8:$BX$228)+(IF($A$7=Nutrients!$B$8,Nutrients!$BX$8,Nutrients!$BX$9)*AP$7)+(((IF($A$8=Nutrients!$B$79,Nutrients!$BX$79,(IF($A$8=Nutrients!$B$77,Nutrients!$BX$77,Nutrients!$BX$78)))))*AP$8))/2000","v":0.34524547811925704},null,{"$f":"(SUMPRODUCT(AR$9:AR$229,Nutrients!$BX$8:$BX$228)+(IF($A$7=Nutrients!$B$8,Nutrients!$BX$8,Nutrients!$BX$9)*AR$7)+(((IF($A$8=Nutrients!$B$79,Nutrients!$BX$79,(IF($A$8=Nutrients!$B$77,Nutrients!$BX$77,Nutrients!$BX$78)))))*AR$8))/2000","v":0.52410040262048674},{"$f":"(SUMPRODUCT(AS$9:AS$229,Nutrients!$BX$8:$BX$228)+(IF($A$7=Nutrients!$B$8,Nutrients!$BX$8,Nutrients!$BX$9)*AS$7)+(((IF($A$8=Nutrients!$B$79,Nutrients!$BX$79,(IF($A$8=Nutrients!$B$77,Nutrients!$BX$77,Nutrients!$BX$78)))))*AS$8))/2000","v":0.47349184782084758},{"$f":"(SUMPRODUCT(AT$9:AT$229,Nutrients!$BX$8:$BX$228)+(IF($A$7=Nutrients!$B$8,Nutrients!$BX$8,Nutrients!$BX$9)*AT$7)+(((IF($A$8=Nutrients!$B$79,Nutrients!$BX$79,(IF($A$8=Nutrients!$B$77,Nutrients!$BX$77,Nutrients!$BX$78)))))*AT$8))/2000","v":0.42356305199284355},{"$f":"(SUMPRODUCT(AU$9:AU$229,Nutrients!$BX$8:$BX$228)+(IF($A$7=Nutrients!$B$8,Nutrients!$BX$8,Nutrients!$BX$9)*AU$7)+(((IF($A$8=Nutrients!$B$79,Nutrients!$BX$79,(IF($A$8=Nutrients!$B$77,Nutrients!$BX$77,Nutrients!$BX$78)))))*AU$8))/2000","v":0.40772105633001354},{"$f":"(SUMPRODUCT(AV$9:AV$229,Nutrients!$BX$8:$BX$228)+(IF($A$7=Nutrients!$B$8,Nutrients!$BX$8,Nutrients!$BX$9)*AV$7)+(((IF($A$8=Nutrients!$B$79,Nutrients!$BX$79,(IF($A$8=Nutrients!$B$77,Nutrients!$BX$77,Nutrients!$BX$78)))))*AV$8))/2000","v":0.39545655154131149},{"$f":"(SUMPRODUCT(AW$9:AW$229,Nutrients!$BX$8:$BX$228)+(IF($A$7=Nutrients!$B$8,Nutrients!$BX$8,Nutrients!$BX$9)*AW$7)+(((IF($A$8=Nutrients!$B$79,Nutrients!$BX$79,(IF($A$8=Nutrients!$B$77,Nutrients!$BX$77,Nutrients!$BX$78)))))*AW$8))/2000","v":0.34524547811925704}]
["Available P w/o phytase, %",{"$f":"(SUMPRODUCT(B$9:B$229,Nutrients!$EB$8:$EB$228)+(IF($A$7=Nutrients!$B$8,Nutrients!$EB$8,Nutrients!$EB$9)*B$7)+(((IF($A$8=Nutrients!$B$79,Nutrients!$EB$79,(IF($A$8=Nutrients!$B$77,Nutrients!$EB$77,Nutrients!$EB$78)))))*B$8))/2000","v":0.22446494345276957},{"$f":"(SUMPRODUCT(C$9:C$229,Nutrients!$EB$8:$EB$228)+(IF($A$7=Nutrients!$B$8,Nutrients!$EB$8,Nutrients!$EB$9)*C$7)+(((IF($A$8=Nutrients!$B$79,Nutrients!$EB$79,(IF($A$8=Nutrients!$B$77,Nutrients!$EB$77,Nutrients!$EB$78)))))*C$8))/2000","v":0.18518517069501755},{"$f":"(SUMPRODUCT(D$9:D$229,Nutrients!$EB$8:$EB$228)+(IF($A$7=Nutrients!$B$8,Nutrients!$EB$8,Nutrients!$EB$9)*D$7)+(((IF($A$8=Nutrients!$B$79,Nutrients!$EB$79,(IF($A$8=Nutrients!$B$77,Nutrients!$EB$77,Nutrients!$EB$78)))))*D$8))/2000","v":0.14586079396089491},{"$f":"(SUMPRODUCT(E$9:E$229,Nutrients!$EB$8:$EB$228)+(IF($A$7=Nutrients!$B$8,Nutrients!$EB$8,Nutrients!$EB$9)*E$7)+(((IF($A$8=Nutrients!$B$79,Nutrients!$EB$79,(IF($A$8=Nutrients!$B$77,Nutrients!$EB$77,Nutrients!$EB$78)))))*E$8))/2000","v":0.11735401640373964},{"$f":"(SUMPRODUCT(F$9:F$229,Nutrients!$EB$8:$EB$228)+(IF($A$7=Nutrients!$B$8,Nutrients!$EB$8,Nutrients!$EB$9)*F$7)+(((IF($A$8=Nutrients!$B$79,Nutrients!$EB$79,(IF($A$8=Nutrients!$B$77,Nutrients!$EB$77,Nutrients!$EB$78)))))*F$8))/2000","v":9.7828165821017068E-2},{"$f":"(SUMPRODUCT(G$9:G$229,Nutrients!$EB$8:$EB$228)+(IF($A$7=Nutrients!$B$8,Nutrients!$EB$8,Nutrients!$EB$9)*G$7)+(((IF($A$8=Nutrients!$B$79,Nutrients!$EB$79,(IF($A$8=Nutrients!$B$77,Nutrients!$EB$77,Nutrients!$EB$78)))))*G$8))/2000","v":8.9123540247531982E-2},null,{"$f":"(SUMPRODUCT(I$9:I$229,Nutrients!$EB$8:$EB$228)+(IF($A$7=Nutrients!$B$8,Nutrients!$EB$8,Nutrients!$EB$9)*I$7)+(((IF($A$8=Nutrients!$B$79,Nutrients!$EB$79,(IF($A$8=Nutrients!$B$77,Nutrients!$EB$77,Nutrients!$EB$78)))))*I$8))/2000","v":0.20617646914007706},{"$f":"(SUMPRODUCT(J$9:J$229,Nutrients!$EB$8:$EB$228)+(IF($A$7=Nutrients!$B$8,Nutrients!$EB$8,Nutrients!$EB$9)*J$7)+(((IF($A$8=Nutrients!$B$79,Nutrients!$EB$79,(IF($A$8=Nutrients!$B$77,Nutrients!$EB$77,Nutrients!$EB$78)))))*J$8))/2000","v":0.16792097700514308},{"$f":"(SUMPRODUCT(K$9:K$229,Nutrients!$EB$8:$EB$228)+(IF($A$7=Nutrients!$B$8,Nutrients!$EB$8,Nutrients!$EB$9)*K$7)+(((IF($A$8=Nutrients!$B$79,Nutrients!$EB$79,(IF($A$8=Nutrients!$B$77,Nutrients!$EB$77,Nutrients!$EB$78)))))*K$8))/2000","v":0.12731516617806651},{"$f":"(SUMPRODUCT(L$9:L$229,Nutrients!$EB$8:$EB$228)+(IF($A$7=Nutrients!$B$8,Nutrients!$EB$8,Nutrients!$EB$9)*L$7)+(((IF($A$8=Nutrients!$B$79,Nutrients!$EB$79,(IF($A$8=Nutrients!$B$77,Nutrients!$EB$77,Nutrients!$EB$78)))))*L$8))/2000","v":9.9510955463701603E-2},{"$f":"(SUMPRODUCT(M$9:M$229,Nutrients!$EB$8:$EB$228)+(IF($A$7=Nutrients!$B$8,Nutrients!$EB$8,Nutrients!$EB$9)*M$7)+(((IF($A$8=Nutrients!$B$79,Nutrients!$EB$79,(IF($A$8=Nutrients!$B$77,Nutrients!$EB$77,Nutrients!$EB$78)))))*M$8))/2000","v":7.9982824766641522E-2},{"$f":"(SUMPRODUCT(N$9:N$229,Nutrients!$EB$8:$EB$228)+(IF($A$7=Nutrients!$B$8,Nutrients!$EB$8,Nutrients!$EB$9)*N$7)+(((IF($A$8=Nutrients!$B$79,Nutrients!$EB$79,(IF($A$8=Nutrients!$B$77,Nutrients!$EB$77,Nutrients!$EB$78)))))*N$8))/2000","v":8.9123540247531982E-2},null,{"$f":"(SUMPRODUCT(P$9:P$229,Nutrients!$EB$8:$EB$228)+(IF($A$7=Nutrients!$B$8,Nutrients!$EB$8,Nutrients!$EB$9)*P$7)+(((IF($A$8=Nutrients!$B$79,Nutrients!$EB$79,(IF($A$8=Nutrients!$B$77,Nutrients!$EB$77,Nutrients!$EB$78)))))*P$8))/2000","v":0.18825273551548186},{"$f":"(SUMPRODUCT(Q$9:Q$229,Nutrients!$EB$8:$EB$228)+(IF($A$7=Nutrients!$B$8,Nutrients!$EB$8,Nutrients!$EB$9)*Q$7)+(((IF($A$8=Nutrients!$B$79,Nutrients!$EB$79,(IF($A$8=Nutrients!$B$77,Nutrients!$EB$77,Nutrients!$EB$78)))))*Q$8))/2000","v":0.15004117724316487},{"$f":"(SUMPRODUCT(R$9:R$229,Nutrients!$EB$8:$EB$228)+(IF($A$7=Nutrients!$B$8,Nutrients!$EB$8,Nutrients!$EB$9)*R$7)+(((IF($A$8=Nutrients!$B$79,Nutrients!$EB$79,(IF($A$8=Nutrients!$B$77,Nutrients!$EB$77,Nutrients!$EB$78)))))*R$8))/2000","v":0.10948440764037279},{"$f":"(SUMPRODUCT(S$9:S$229,Nutrients!$EB$8:$EB$228)+(IF($A$7=Nutrients!$B$8,Nutrients!$EB$8,Nutrients!$EB$9)*S$7)+(((IF($A$8=Nutrients!$B$79,Nutrients!$EB$79,(IF($A$8=Nutrients!$B$77,Nutrients!$EB$77,Nutrients!$EB$78)))))*S$8))/2000","v":8.1656822788585201E-2},{"$f":"(SUMPRODUCT(T$9:T$229,Nutrients!$EB$8:$EB$228)+(IF($A$7=Nutrients!$B$8,Nutrients!$EB$8,Nutrients!$EB$9)*T$7)+(((IF($A$8=Nutrients!$B$79,Nutrients!$EB$79,(IF($A$8=Nutrients!$B$77,Nutrients!$EB$77,Nutrients!$EB$78)))))*T$8))/2000","v":6.2168362125141735E-2},{"$f":"(SUMPRODUCT(U$9:U$229,Nutrients!$EB$8:$EB$228)+(IF($A$7=Nutrients!$B$8,Nutrients!$EB$8,Nutrients!$EB$9)*U$7)+(((IF($A$8=Nutrients!$B$79,Nutrients!$EB$79,(IF($A$8=Nutrients!$B$77,Nutrients!$EB$77,Nutrients!$EB$78)))))*U$8))/2000","v":8.9123540247531982E-2},null,{"$f":"(SUMPRODUCT(W$9:W$229,Nutrients!$EB$8:$EB$228)+(IF($A$7=Nutrients!$B$8,Nutrients!$EB$8,Nutrients!$EB$9)*W$7)+(((IF($A$8=Nutrients!$B$79,Nutrients!$EB$79,(IF($A$8=Nutrients!$B$77,Nutrients!$EB$77,Nutrients!$EB$78)))))*W$8))/2000","v":0.17032828032215069},{"$f":"(SUMPRODUCT(X$9:X$229,Nutrients!$EB$8:$EB$228)+(IF($A$7=Nutrients!$B$8,Nutrients!$EB$8,Nutrients!$EB$9)*X$7)+(((IF($A$8=Nutrients!$B$79,Nutrients!$EB$79,(IF($A$8=Nutrients!$B$77,Nutrients!$EB$77,Nutrients!$EB$78)))))*X$8))/2000","v":0.13216207706076222},{"$f":"(SUMPRODUCT(Y$9:Y$229,Nutrients!$EB$8:$EB$228)+(IF($A$7=Nutrients!$B$8,Nutrients!$EB$8,Nutrients!$EB$9)*Y$7)+(((IF($A$8=Nutrients!$B$79,Nutrients!$EB$79,(IF($A$8=Nutrients!$B$77,Nutrients!$EB$77,Nutrients!$EB$78)))))*Y$8))/2000","v":9.1582240204201942E-2},{"$f":"(SUMPRODUCT(Z$9:Z$229,Nutrients!$EB$8:$EB$228)+(IF($A$7=Nutrients!$B$8,Nutrients!$EB$8,Nutrients!$EB$9)*Z$7)+(((IF($A$8=Nutrients!$B$79,Nutrients!$EB$79,(IF($A$8=Nutrients!$B$77,Nutrients!$EB$77,Nutrients!$EB$78)))))*Z$8))/2000","v":6.3819330909430247E-2},{"$f":"(SUMPRODUCT(AA$9:AA$229,Nutrients!$EB$8:$EB$228)+(IF($A$7=Nutrients!$B$8,Nutrients!$EB$8,Nutrients!$EB$9)*AA$7)+(((IF($A$8=Nutrients!$B$79,Nutrients!$EB$79,(IF($A$8=Nutrients!$B$77,Nutrients!$EB$77,Nutrients!$EB$78)))))*AA$8))/2000","v":4.4354175383965265E-2},{"$f":"(SUMPRODUCT(AB$9:AB$229,Nutrients!$EB$8:$EB$228)+(IF($A$7=Nutrients!$B$8,Nutrients!$EB$8,Nutrients!$EB$9)*AB$7)+(((IF($A$8=Nutrients!$B$79,Nutrients!$EB$79,(IF($A$8=Nutrients!$B$77,Nutrients!$EB$77,Nutrients!$EB$78)))))*AB$8))/2000","v":8.9123540247531982E-2},null,{"$f":"(SUMPRODUCT(AD$9:AD$229,Nutrients!$EB$8:$EB$228)+(IF($A$7=Nutrients!$B$8,Nutrients!$EB$8,Nutrients!$EB$9)*AD$7)+(((IF($A$8=Nutrients!$B$79,Nutrients!$EB$79,(IF($A$8=Nutrients!$B$77,Nutrients!$EB$77,Nutrients!$EB$78)))))*AD$8))/2000","v":0.15239730282464051},{"$f":"(SUMPRODUCT(AE$9:AE$229,Nutrients!$EB$8:$EB$228)+(IF($A$7=Nutrients!$B$8,Nutrients!$EB$8,Nutrients!$EB$9)*AE$7)+(((IF($A$8=Nutrients!$B$79,Nutrients!$EB$79,(IF($A$8=Nutrients!$B$77,Nutrients!$EB$77,Nutrients!$EB$78)))))*AE$8))/2000","v":0.11421269528497896},{"$f":"(SUMPRODUCT(AF$9:AF$229,Nutrients!$EB$8:$EB$228)+(IF($A$7=Nutrients!$B$8,Nutrients!$EB$8,Nutrients!$EB$9)*AF$7)+(((IF($A$8=Nutrients!$B$79,Nutrients!$EB$79,(IF($A$8=Nutrients!$B$77,Nutrients!$EB$77,Nutrients!$EB$78)))))*AF$8))/2000","v":7.3695383668849382E-2},{"$f":"(SUMPRODUCT(AG$9:AG$229,Nutrients!$EB$8:$EB$228)+(IF($A$7=Nutrients!$B$8,Nutrients!$EB$8,Nutrients!$EB$9)*AG$7)+(((IF($A$8=Nutrients!$B$79,Nutrients!$EB$79,(IF($A$8=Nutrients!$B$77,Nutrients!$EB$77,Nutrients!$EB$78)))))*AG$8))/2000","v":4.5976691365799315E-2},{"$f":"(SUMPRODUCT(AH$9:AH$229,Nutrients!$EB$8:$EB$228)+(IF($A$7=Nutrients!$B$8,Nutrients!$EB$8,Nutrients!$EB$9)*AH$7)+(((IF($A$8=Nutrients!$B$79,Nutrients!$EB$79,(IF($A$8=Nutrients!$B$77,Nutrients!$EB$77,Nutrients!$EB$78)))))*AH$8))/2000","v":3.6708278283929884E-2},{"$f":"(SUMPRODUCT(AI$9:AI$229,Nutrients!$EB$8:$EB$228)+(IF($A$7=Nutrients!$B$8,Nutrients!$EB$8,Nutrients!$EB$9)*AI$7)+(((IF($A$8=Nutrients!$B$79,Nutrients!$EB$79,(IF($A$8=Nutrients!$B$77,Nutrients!$EB$77,Nutrients!$EB$78)))))*AI$8))/2000","v":8.9123540247531982E-2},null,{"$f":"(SUMPRODUCT(AK$9:AK$229,Nutrients!$EB$8:$EB$228)+(IF($A$7=Nutrients!$B$8,Nutrients!$EB$8,Nutrients!$EB$9)*AK$7)+(((IF($A$8=Nutrients!$B$79,Nutrients!$EB$79,(IF($A$8=Nutrients!$B$77,Nutrients!$EB$77,Nutrients!$EB$78)))))*AK$8))/2000","v":0.13448429017735269},{"$f":"(SUMPRODUCT(AL$9:AL$229,Nutrients!$EB$8:$EB$228)+(IF($A$7=Nutrients!$B$8,Nutrients!$EB$8,Nutrients!$EB$9)*AL$7)+(((IF($A$8=Nutrients!$B$79,Nutrients!$EB$79,(IF($A$8=Nutrients!$B$77,Nutrients!$EB$77,Nutrients!$EB$78)))))*AL$8))/2000","v":9.628422377386342E-2},{"$f":"(SUMPRODUCT(AM$9:AM$229,Nutrients!$EB$8:$EB$228)+(IF($A$7=Nutrients!$B$8,Nutrients!$EB$8,Nutrients!$EB$9)*AM$7)+(((IF($A$8=Nutrients!$B$79,Nutrients!$EB$79,(IF($A$8=Nutrients!$B$77,Nutrients!$EB$77,Nutrients!$EB$78)))))*AM$8))/2000","v":5.5815162586069417E-2},{"$f":"(SUMPRODUCT(AN$9:AN$229,Nutrients!$EB$8:$EB$228)+(IF($A$7=Nutrients!$B$8,Nutrients!$EB$8,Nutrients!$EB$9)*AN$7)+(((IF($A$8=Nutrients!$B$79,Nutrients!$EB$79,(IF($A$8=Nutrients!$B$77,Nutrients!$EB$77,Nutrients!$EB$78)))))*AN$8))/2000","v":3.6309770254349713E-2},{"$f":"(SUMPRODUCT(AO$9:AO$229,Nutrients!$EB$8:$EB$228)+(IF($A$7=Nutrients!$B$8,Nutrients!$EB$8,Nutrients!$EB$9)*AO$7)+(((IF($A$8=Nutrients!$B$79,Nutrients!$EB$79,(IF($A$8=Nutrients!$B$77,Nutrients!$EB$77,Nutrients!$EB$78)))))*AO$8))/2000","v":3.2808535349882574E-2},{"$f":"(SUMPRODUCT(AP$9:AP$229,Nutrients!$EB$8:$EB$228)+(IF($A$7=Nutrients!$B$8,Nutrients!$EB$8,Nutrients!$EB$9)*AP$7)+(((IF($A$8=Nutrients!$B$79,Nutrients!$EB$79,(IF($A$8=Nutrients!$B$77,Nutrients!$EB$77,Nutrients!$EB$78)))))*AP$8))/2000","v":8.9123540247531982E-2},null,{"$f":"(SUMPRODUCT(AR$9:AR$229,Nutrients!$EB$8:$EB$228)+(IF($A$7=Nutrients!$B$8,Nutrients!$EB$8,Nutrients!$EB$9)*AR$7)+(((IF($A$8=Nutrients!$B$79,Nutrients!$EB$79,(IF($A$8=Nutrients!$B$77,Nutrients!$EB$77,Nutrients!$EB$78)))))*AR$8))/2000","v":0.11670786106119536},{"$f":"(SUMPRODUCT(AS$9:AS$229,Nutrients!$EB$8:$EB$228)+(IF($A$7=Nutrients!$B$8,Nutrients!$EB$8,Nutrients!$EB$9)*AS$7)+(((IF($A$8=Nutrients!$B$79,Nutrients!$EB$79,(IF($A$8=Nutrients!$B$77,Nutrients!$EB$77,Nutrients!$EB$78)))))*AS$8))/2000","v":7.8353940044427098E-2},{"$f":"(SUMPRODUCT(AT$9:AT$229,Nutrients!$EB$8:$EB$228)+(IF($A$7=Nutrients!$B$8,Nutrients!$EB$8,Nutrients!$EB$9)*AT$7)+(((IF($A$8=Nutrients!$B$79,Nutrients!$EB$79,(IF($A$8=Nutrients!$B$77,Nutrients!$EB$77,Nutrients!$EB$78)))))*AT$8))/2000","v":3.7946277361693828E-2},{"$f":"(SUMPRODUCT(AU$9:AU$229,Nutrients!$EB$8:$EB$228)+(IF($A$7=Nutrients!$B$8,Nutrients!$EB$8,Nutrients!$EB$9)*AU$7)+(((IF($A$8=Nutrients!$B$79,Nutrients!$EB$79,(IF($A$8=Nutrients!$B$77,Nutrients!$EB$77,Nutrients!$EB$78)))))*AU$8))/2000","v":3.2386784168466048E-2},{"$f":"(SUMPRODUCT(AV$9:AV$229,Nutrients!$EB$8:$EB$228)+(IF($A$7=Nutrients!$B$8,Nutrients!$EB$8,Nutrients!$EB$9)*AV$7)+(((IF($A$8=Nutrients!$B$79,Nutrients!$EB$79,(IF($A$8=Nutrients!$B$77,Nutrients!$EB$77,Nutrients!$EB$78)))))*AV$8))/2000","v":2.8909141521704727E-2},{"$f":"(SUMPRODUCT(AW$9:AW$229,Nutrients!$EB$8:$EB$228)+(IF($A$7=Nutrients!$B$8,Nutrients!$EB$8,Nutrients!$EB$9)*AW$7)+(((IF($A$8=Nutrients!$B$79,Nutrients!$EB$79,(IF($A$8=Nutrients!$B$77,Nutrients!$EB$77,Nutrients!$EB$78)))))*AW$8))/2000","v":8.9123540247531982E-2}]
["Available P, %",{"$f":"IF((SUMPRODUCT(B$9:B$229,Nutrients!$EE$8:$EE$228))=0,B256,IF((SUMPRODUCT(B$9:B$229,Nutrients!$EE$8:$EE$228))>(1500*907),B256+0.14,B256+0.00000000006666*((SUMPRODUCT(B$9:B$229,Nutrients!$EE$8:$EE$228)/907))^3-0.00000023623322*((SUMPRODUCT(B$9:B$229,Nutrients!$EE$8:$EE$228)/907))^2+0.00029262722672*((SUMPRODUCT(B$9:B$229,Nutrients!$EE$8:$EE$228)/907))+0.007028328))","v":0.33707938392360226},{"$f":"IF((SUMPRODUCT(C$9:C$229,Nutrients!$EE$8:$EE$228))=0,C256,IF((SUMPRODUCT(C$9:C$229,Nutrients!$EE$8:$EE$228))>(1500*907),C256+0.14,C256+0.00000000006666*((SUMPRODUCT(C$9:C$229,Nutrients!$EE$8:$EE$228)/907))^3-0.00000023623322*((SUMPRODUCT(C$9:C$229,Nutrients!$EE$8:$EE$228)/907))^2+0.00029262722672*((SUMPRODUCT(C$9:C$229,Nutrients!$EE$8:$EE$228)/907))+0.007028328))","v":0.29779961116585019},{"$f":"IF((SUMPRODUCT(D$9:D$229,Nutrients!$EE$8:$EE$228))=0,D256,IF((SUMPRODUCT(D$9:D$229,Nutrients!$EE$8:$EE$228))>(1500*907),D256+0.14,D256+0.00000000006666*((SUMPRODUCT(D$9:D$229,Nutrients!$EE$8:$EE$228)/907))^3-0.00000023623322*((SUMPRODUCT(D$9:D$229,Nutrients!$EE$8:$EE$228)/907))^2+0.00029262722672*((SUMPRODUCT(D$9:D$229,Nutrients!$EE$8:$EE$228)/907))+0.007028328))","v":0.2584752344317276},{"$f":"IF((SUMPRODUCT(E$9:E$229,Nutrients!$EE$8:$EE$228))=0,E256,IF((SUMPRODUCT(E$9:E$229,Nutrients!$EE$8:$EE$228))>(1500*907),E256+0.14,E256+0.00000000006666*((SUMPRODUCT(E$9:E$229,Nutrients!$EE$8:$EE$228)/907))^3-0.00000023623322*((SUMPRODUCT(E$9:E$229,Nutrients!$EE$8:$EE$228)/907))^2+0.00029262722672*((SUMPRODUCT(E$9:E$229,Nutrients!$EE$8:$EE$228)/907))+0.007028328))","v":0.22996845687457232},{"$f":"IF((SUMPRODUCT(F$9:F$229,Nutrients!$EE$8:$EE$228))=0,F256,IF((SUMPRODUCT(F$9:F$229,Nutrients!$EE$8:$EE$228))>(1500*907),F256+0.14,F256+0.00000000006666*((SUMPRODUCT(F$9:F$229,Nutrients!$EE$8:$EE$228)/907))^3-0.00000023623322*((SUMPRODUCT(F$9:F$229,Nutrients!$EE$8:$EE$228)/907))^2+0.00029262722672*((SUMPRODUCT(F$9:F$229,Nutrients!$EE$8:$EE$228)/907))+0.007028328))","v":0.21044260629184977},{"$f":"IF((SUMPRODUCT(G$9:G$229,Nutrients!$EE$8:$EE$228))=0,G256,IF((SUMPRODUCT(G$9:G$229,Nutrients!$EE$8:$EE$228))>(1500*907),G256+0.14,G256+0.00000000006666*((SUMPRODUCT(G$9:G$229,Nutrients!$EE$8:$EE$228)/907))^3-0.00000023623322*((SUMPRODUCT(G$9:G$229,Nutrients!$EE$8:$EE$228)/907))^2+0.00029262722672*((SUMPRODUCT(G$9:G$229,Nutrients!$EE$8:$EE$228)/907))+0.007028328))","v":0.20173798071836466},null,{"$f":"IF((SUMPRODUCT(I$9:I$229,Nutrients!$EE$8:$EE$228))=0,I256,IF((SUMPRODUCT(I$9:I$229,Nutrients!$EE$8:$EE$228))>(1500*907),I256+0.14,I256+0.00000000006666*((SUMPRODUCT(I$9:I$229,Nutrients!$EE$8:$EE$228)/907))^3-0.00000023623322*((SUMPRODUCT(I$9:I$229,Nutrients!$EE$8:$EE$228)/907))^2+0.00029262722672*((SUMPRODUCT(I$9:I$229,Nutrients!$EE$8:$EE$228)/907))+0.007028328))","v":0.31879090961090972},{"$f":"IF((SUMPRODUCT(J$9:J$229,Nutrients!$EE$8:$EE$228))=0,J256,IF((SUMPRODUCT(J$9:J$229,Nutrients!$EE$8:$EE$228))>(1500*907),J256+0.14,J256+0.00000000006666*((SUMPRODUCT(J$9:J$229,Nutrients!$EE$8:$EE$228)/907))^3-0.00000023623322*((SUMPRODUCT(J$9:J$229,Nutrients!$EE$8:$EE$228)/907))^2+0.00029262722672*((SUMPRODUCT(J$9:J$229,Nutrients!$EE$8:$EE$228)/907))+0.007028328))","v":0.28053541747597577},{"$f":"IF((SUMPRODUCT(K$9:K$229,Nutrients!$EE$8:$EE$228))=0,K256,IF((SUMPRODUCT(K$9:K$229,Nutrients!$EE$8:$EE$228))>(1500*907),K256+0.14,K256+0.00000000006666*((SUMPRODUCT(K$9:K$229,Nutrients!$EE$8:$EE$228)/907))^3-0.00000023623322*((SUMPRODUCT(K$9:K$229,Nutrients!$EE$8:$EE$228)/907))^2+0.00029262722672*((SUMPRODUCT(K$9:K$229,Nutrients!$EE$8:$EE$228)/907))+0.007028328))","v":0.2399296066488992},{"$f":"IF((SUMPRODUCT(L$9:L$229,Nutrients!$EE$8:$EE$228))=0,L256,IF((SUMPRODUCT(L$9:L$229,Nutrients!$EE$8:$EE$228))>(1500*907),L256+0.14,L256+0.00000000006666*((SUMPRODUCT(L$9:L$229,Nutrients!$EE$8:$EE$228)/907))^3-0.00000023623322*((SUMPRODUCT(L$9:L$229,Nutrients!$EE$8:$EE$228)/907))^2+0.00029262722672*((SUMPRODUCT(L$9:L$229,Nutrients!$EE$8:$EE$228)/907))+0.007028328))","v":0.21212539593453431},{"$f":"IF((SUMPRODUCT(M$9:M$229,Nutrients!$EE$8:$EE$228))=0,M256,IF((SUMPRODUCT(M$9:M$229,Nutrients!$EE$8:$EE$228))>(1500*907),M256+0.14,M256+0.00000000006666*((SUMPRODUCT(M$9:M$229,Nutrients!$EE$8:$EE$228)/907))^3-0.00000023623322*((SUMPRODUCT(M$9:M$229,Nutrients!$EE$8:$EE$228)/907))^2+0.00029262722672*((SUMPRODUCT(M$9:M$229,Nutrients!$EE$8:$EE$228)/907))+0.007028328))","v":0.1925972652374742},{"$f":"IF((SUMPRODUCT(N$9:N$229,Nutrients!$EE$8:$EE$228))=0,N256,IF((SUMPRODUCT(N$9:N$229,Nutrients!$EE$8:$EE$228))>(1500*907),N256+0.14,N256+0.00000000006666*((SUMPRODUCT(N$9:N$229,Nutrients!$EE$8:$EE$228)/907))^3-0.00000023623322*((SUMPRODUCT(N$9:N$229,Nutrients!$EE$8:$EE$228)/907))^2+0.00029262722672*((SUMPRODUCT(N$9:N$229,Nutrients!$EE$8:$EE$228)/907))+0.007028328))","v":0.20173798071836466},null,{"$f":"IF((SUMPRODUCT(P$9:P$229,Nutrients!$EE$8:$EE$228))=0,P256,IF((SUMPRODUCT(P$9:P$229,Nutrients!$EE$8:$EE$228))>(1500*907),P256+0.14,P256+0.00000000006666*((SUMPRODUCT(P$9:P$229,Nutrients!$EE$8:$EE$228)/907))^3-0.00000023623322*((SUMPRODUCT(P$9:P$229,Nutrients!$EE$8:$EE$228)/907))^2+0.00029262722672*((SUMPRODUCT(P$9:P$229,Nutrients!$EE$8:$EE$228)/907))+0.007028328))","v":0.30086717598631452},{"$f":"IF((SUMPRODUCT(Q$9:Q$229,Nutrients!$EE$8:$EE$228))=0,Q256,IF((SUMPRODUCT(Q$9:Q$229,Nutrients!$EE$8:$EE$228))>(1500*907),Q256+0.14,Q256+0.00000000006666*((SUMPRODUCT(Q$9:Q$229,Nutrients!$EE$8:$EE$228)/907))^3-0.00000023623322*((SUMPRODUCT(Q$9:Q$229,Nutrients!$EE$8:$EE$228)/907))^2+0.00029262722672*((SUMPRODUCT(Q$9:Q$229,Nutrients!$EE$8:$EE$228)/907))+0.007028328))","v":0.26265561771399759},{"$f":"IF((SUMPRODUCT(R$9:R$229,Nutrients!$EE$8:$EE$228))=0,R256,IF((SUMPRODUCT(R$9:R$229,Nutrients!$EE$8:$EE$228))>(1500*907),R256+0.14,R256+0.00000000006666*((SUMPRODUCT(R$9:R$229,Nutrients!$EE$8:$EE$228)/907))^3-0.00000023623322*((SUMPRODUCT(R$9:R$229,Nutrients!$EE$8:$EE$228)/907))^2+0.00029262722672*((SUMPRODUCT(R$9:R$229,Nutrients!$EE$8:$EE$228)/907))+0.007028328))","v":0.22209884811120548},{"$f":"IF((SUMPRODUCT(S$9:S$229,Nutrients!$EE$8:$EE$228))=0,S256,IF((SUMPRODUCT(S$9:S$229,Nutrients!$EE$8:$EE$228))>(1500*907),S256+0.14,S256+0.00000000006666*((SUMPRODUCT(S$9:S$229,Nutrients!$EE$8:$EE$228)/907))^3-0.00000023623322*((SUMPRODUCT(S$9:S$229,Nutrients!$EE$8:$EE$228)/907))^2+0.00029262722672*((SUMPRODUCT(S$9:S$229,Nutrients!$EE$8:$EE$228)/907))+0.007028328))","v":0.19427126325941788},{"$f":"IF((SUMPRODUCT(T$9:T$229,Nutrients!$EE$8:$EE$228))=0,T256,IF((SUMPRODUCT(T$9:T$229,Nutrients!$EE$8:$EE$228))>(1500*907),T256+0.14,T256+0.00000000006666*((SUMPRODUCT(T$9:T$229,Nutrients!$EE$8:$EE$228)/907))^3-0.00000023623322*((SUMPRODUCT(T$9:T$229,Nutrients!$EE$8:$EE$228)/907))^2+0.00029262722672*((SUMPRODUCT(T$9:T$229,Nutrients!$EE$8:$EE$228)/907))+0.007028328))","v":0.17478280259597442},{"$f":"IF((SUMPRODUCT(U$9:U$229,Nutrients!$EE$8:$EE$228))=0,U256,IF((SUMPRODUCT(U$9:U$229,Nutrients!$EE$8:$EE$228))>(1500*907),U256+0.14,U256+0.00000000006666*((SUMPRODUCT(U$9:U$229,Nutrients!$EE$8:$EE$228)/907))^3-0.00000023623322*((SUMPRODUCT(U$9:U$229,Nutrients!$EE$8:$EE$228)/907))^2+0.00029262722672*((SUMPRODUCT(U$9:U$229,Nutrients!$EE$8:$EE$228)/907))+0.007028328))","v":0.20173798071836466},null,{"$f":"IF((SUMPRODUCT(W$9:W$229,Nutrients!$EE$8:$EE$228))=0,W256,IF((SUMPRODUCT(W$9:W$229,Nutrients!$EE$8:$EE$228))>(1500*907),W256+0.14,W256+0.00000000006666*((SUMPRODUCT(W$9:W$229,Nutrients!$EE$8:$EE$228)/907))^3-0.00000023623322*((SUMPRODUCT(W$9:W$229,Nutrients!$EE$8:$EE$228)/907))^2+0.00029262722672*((SUMPRODUCT(W$9:W$229,Nutrients!$EE$8:$EE$228)/907))+0.007028328))","v":0.28294272079298333},{"$f":"IF((SUMPRODUCT(X$9:X$229,Nutrients!$EE$8:$EE$228))=0,X256,IF((SUMPRODUCT(X$9:X$229,Nutrients!$EE$8:$EE$228))>(1500*907),X256+0.14,X256+0.00000000006666*((SUMPRODUCT(X$9:X$229,Nutrients!$EE$8:$EE$228)/907))^3-0.00000023623322*((SUMPRODUCT(X$9:X$229,Nutrients!$EE$8:$EE$228)/907))^2+0.00029262722672*((SUMPRODUCT(X$9:X$229,Nutrients!$EE$8:$EE$228)/907))+0.007028328))","v":0.24477651753159488},{"$f":"IF((SUMPRODUCT(Y$9:Y$229,Nutrients!$EE$8:$EE$228))=0,Y256,IF((SUMPRODUCT(Y$9:Y$229,Nutrients!$EE$8:$EE$228))>(1500*907),Y256+0.14,Y256+0.00000000006666*((SUMPRODUCT(Y$9:Y$229,Nutrients!$EE$8:$EE$228)/907))^3-0.00000023623322*((SUMPRODUCT(Y$9:Y$229,Nutrients!$EE$8:$EE$228)/907))^2+0.00029262722672*((SUMPRODUCT(Y$9:Y$229,Nutrients!$EE$8:$EE$228)/907))+0.007028328))","v":0.20419668067503463},{"$f":"IF((SUMPRODUCT(Z$9:Z$229,Nutrients!$EE$8:$EE$228))=0,Z256,IF((SUMPRODUCT(Z$9:Z$229,Nutrients!$EE$8:$EE$228))>(1500*907),Z256+0.14,Z256+0.00000000006666*((SUMPRODUCT(Z$9:Z$229,Nutrients!$EE$8:$EE$228)/907))^3-0.00000023623322*((SUMPRODUCT(Z$9:Z$229,Nutrients!$EE$8:$EE$228)/907))^2+0.00029262722672*((SUMPRODUCT(Z$9:Z$229,Nutrients!$EE$8:$EE$228)/907))+0.007028328))","v":0.17643377138026292},{"$f":"IF((SUMPRODUCT(AA$9:AA$229,Nutrients!$EE$8:$EE$228))=0,AA256,IF((SUMPRODUCT(AA$9:AA$229,Nutrients!$EE$8:$EE$228))>(1500*907),AA256+0.14,AA256+0.00000000006666*((SUMPRODUCT(AA$9:AA$229,Nutrients!$EE$8:$EE$228)/907))^3-0.00000023623322*((SUMPRODUCT(AA$9:AA$229,Nutrients!$EE$8:$EE$228)/907))^2+0.00029262722672*((SUMPRODUCT(AA$9:AA$229,Nutrients!$EE$8:$EE$228)/907))+0.007028328))","v":0.15696861585479796},{"$f":"IF((SUMPRODUCT(AB$9:AB$229,Nutrients!$EE$8:$EE$228))=0,AB256,IF((SUMPRODUCT(AB$9:AB$229,Nutrients!$EE$8:$EE$228))>(1500*907),AB256+0.14,AB256+0.00000000006666*((SUMPRODUCT(AB$9:AB$229,Nutrients!$EE$8:$EE$228)/907))^3-0.00000023623322*((SUMPRODUCT(AB$9:AB$229,Nutrients!$EE$8:$EE$228)/907))^2+0.00029262722672*((SUMPRODUCT(AB$9:AB$229,Nutrients!$EE$8:$EE$228)/907))+0.007028328))","v":0.20173798071836466},null,{"$f":"IF((SUMPRODUCT(AD$9:AD$229,Nutrients!$EE$8:$EE$228))=0,AD256,IF((SUMPRODUCT(AD$9:AD$229,Nutrients!$EE$8:$EE$228))>(1500*907),AD256+0.14,AD256+0.00000000006666*((SUMPRODUCT(AD$9:AD$229,Nutrients!$EE$8:$EE$228)/907))^3-0.00000023623322*((SUMPRODUCT(AD$9:AD$229,Nutrients!$EE$8:$EE$228)/907))^2+0.00029262722672*((SUMPRODUCT(AD$9:AD$229,Nutrients!$EE$8:$EE$228)/907))+0.007028328))","v":0.26501174329547317},{"$f":"IF((SUMPRODUCT(AE$9:AE$229,Nutrients!$EE$8:$EE$228))=0,AE256,IF((SUMPRODUCT(AE$9:AE$229,Nutrients!$EE$8:$EE$228))>(1500*907),AE256+0.14,AE256+0.00000000006666*((SUMPRODUCT(AE$9:AE$229,Nutrients!$EE$8:$EE$228)/907))^3-0.00000023623322*((SUMPRODUCT(AE$9:AE$229,Nutrients!$EE$8:$EE$228)/907))^2+0.00029262722672*((SUMPRODUCT(AE$9:AE$229,Nutrients!$EE$8:$EE$228)/907))+0.007028328))","v":0.22682713575581162},{"$f":"IF((SUMPRODUCT(AF$9:AF$229,Nutrients!$EE$8:$EE$228))=0,AF256,IF((SUMPRODUCT(AF$9:AF$229,Nutrients!$EE$8:$EE$228))>(1500*907),AF256+0.14,AF256+0.00000000006666*((SUMPRODUCT(AF$9:AF$229,Nutrients!$EE$8:$EE$228)/907))^3-0.00000023623322*((SUMPRODUCT(AF$9:AF$229,Nutrients!$EE$8:$EE$228)/907))^2+0.00029262722672*((SUMPRODUCT(AF$9:AF$229,Nutrients!$EE$8:$EE$228)/907))+0.007028328))","v":0.18630982413968208},{"$f":"IF((SUMPRODUCT(AG$9:AG$229,Nutrients!$EE$8:$EE$228))=0,AG256,IF((SUMPRODUCT(AG$9:AG$229,Nutrients!$EE$8:$EE$228))>(1500*907),AG256+0.14,AG256+0.00000000006666*((SUMPRODUCT(AG$9:AG$229,Nutrients!$EE$8:$EE$228)/907))^3-0.00000023623322*((SUMPRODUCT(AG$9:AG$229,Nutrients!$EE$8:$EE$228)/907))^2+0.00029262722672*((SUMPRODUCT(AG$9:AG$229,Nutrients!$EE$8:$EE$228)/907))+0.007028328))","v":0.15859113183663201},{"$f":"IF((SUMPRODUCT(AH$9:AH$229,Nutrients!$EE$8:$EE$228))=0,AH256,IF((SUMPRODUCT(AH$9:AH$229,Nutrients!$EE$8:$EE$228))>(1500*907),AH256+0.14,AH256+0.00000000006666*((SUMPRODUCT(AH$9:AH$229,Nutrients!$EE$8:$EE$228)/907))^3-0.00000023623322*((SUMPRODUCT(AH$9:AH$229,Nutrients!$EE$8:$EE$228)/907))^2+0.00029262722672*((SUMPRODUCT(AH$9:AH$229,Nutrients!$EE$8:$EE$228)/907))+0.007028328))","v":0.14932271875476258},{"$f":"IF((SUMPRODUCT(AI$9:AI$229,Nutrients!$EE$8:$EE$228))=0,AI256,IF((SUMPRODUCT(AI$9:AI$229,Nutrients!$EE$8:$EE$228))>(1500*907),AI256+0.14,AI256+0.00000000006666*((SUMPRODUCT(AI$9:AI$229,Nutrients!$EE$8:$EE$228)/907))^3-0.00000023623322*((SUMPRODUCT(AI$9:AI$229,Nutrients!$EE$8:$EE$228)/907))^2+0.00029262722672*((SUMPRODUCT(AI$9:AI$229,Nutrients!$EE$8:$EE$228)/907))+0.007028328))","v":0.20173798071836466},null,{"$f":"IF((SUMPRODUCT(AK$9:AK$229,Nutrients!$EE$8:$EE$228))=0,AK256,IF((SUMPRODUCT(AK$9:AK$229,Nutrients!$EE$8:$EE$228))>(1500*907),AK256+0.14,AK256+0.00000000006666*((SUMPRODUCT(AK$9:AK$229,Nutrients!$EE$8:$EE$228)/907))^3-0.00000023623322*((SUMPRODUCT(AK$9:AK$229,Nutrients!$EE$8:$EE$228)/907))^2+0.00029262722672*((SUMPRODUCT(AK$9:AK$229,Nutrients!$EE$8:$EE$228)/907))+0.007028328))","v":0.24709873064818536},{"$f":"IF((SUMPRODUCT(AL$9:AL$229,Nutrients!$EE$8:$EE$228))=0,AL256,IF((SUMPRODUCT(AL$9:AL$229,Nutrients!$EE$8:$EE$228))>(1500*907),AL256+0.14,AL256+0.00000000006666*((SUMPRODUCT(AL$9:AL$229,Nutrients!$EE$8:$EE$228)/907))^3-0.00000023623322*((SUMPRODUCT(AL$9:AL$229,Nutrients!$EE$8:$EE$228)/907))^2+0.00029262722672*((SUMPRODUCT(AL$9:AL$229,Nutrients!$EE$8:$EE$228)/907))+0.007028328))","v":0.20889866424469611},{"$f":"IF((SUMPRODUCT(AM$9:AM$229,Nutrients!$EE$8:$EE$228))=0,AM256,IF((SUMPRODUCT(AM$9:AM$229,Nutrients!$EE$8:$EE$228))>(1500*907),AM256+0.14,AM256+0.00000000006666*((SUMPRODUCT(AM$9:AM$229,Nutrients!$EE$8:$EE$228)/907))^3-0.00000023623322*((SUMPRODUCT(AM$9:AM$229,Nutrients!$EE$8:$EE$228)/907))^2+0.00029262722672*((SUMPRODUCT(AM$9:AM$229,Nutrients!$EE$8:$EE$228)/907))+0.007028328))","v":0.16842960305690211},{"$f":"IF((SUMPRODUCT(AN$9:AN$229,Nutrients!$EE$8:$EE$228))=0,AN256,IF((SUMPRODUCT(AN$9:AN$229,Nutrients!$EE$8:$EE$228))>(1500*907),AN256+0.14,AN256+0.00000000006666*((SUMPRODUCT(AN$9:AN$229,Nutrients!$EE$8:$EE$228)/907))^3-0.00000023623322*((SUMPRODUCT(AN$9:AN$229,Nutrients!$EE$8:$EE$228)/907))^2+0.00029262722672*((SUMPRODUCT(AN$9:AN$229,Nutrients!$EE$8:$EE$228)/907))+0.007028328))","v":0.14892421072518239},{"$f":"IF((SUMPRODUCT(AO$9:AO$229,Nutrients!$EE$8:$EE$228))=0,AO256,IF((SUMPRODUCT(AO$9:AO$229,Nutrients!$EE$8:$EE$228))>(1500*907),AO256+0.14,AO256+0.00000000006666*((SUMPRODUCT(AO$9:AO$229,Nutrients!$EE$8:$EE$228)/907))^3-0.00000023623322*((SUMPRODUCT(AO$9:AO$229,Nutrients!$EE$8:$EE$228)/907))^2+0.00029262722672*((SUMPRODUCT(AO$9:AO$229,Nutrients!$EE$8:$EE$228)/907))+0.007028328))","v":0.14542297582071526},{"$f":"IF((SUMPRODUCT(AP$9:AP$229,Nutrients!$EE$8:$EE$228))=0,AP256,IF((SUMPRODUCT(AP$9:AP$229,Nutrients!$EE$8:$EE$228))>(1500*907),AP256+0.14,AP256+0.00000000006666*((SUMPRODUCT(AP$9:AP$229,Nutrients!$EE$8:$EE$228)/907))^3-0.00000023623322*((SUMPRODUCT(AP$9:AP$229,Nutrients!$EE$8:$EE$228)/907))^2+0.00029262722672*((SUMPRODUCT(AP$9:AP$229,Nutrients!$EE$8:$EE$228)/907))+0.007028328))","v":0.20173798071836466},null,{"$f":"IF((SUMPRODUCT(AR$9:AR$229,Nutrients!$EE$8:$EE$228))=0,AR256,IF((SUMPRODUCT(AR$9:AR$229,Nutrients!$EE$8:$EE$228))>(1500*907),AR256+0.14,AR256+0.00000000006666*((SUMPRODUCT(AR$9:AR$229,Nutrients!$EE$8:$EE$228)/907))^3-0.00000023623322*((SUMPRODUCT(AR$9:AR$229,Nutrients!$EE$8:$EE$228)/907))^2+0.00029262722672*((SUMPRODUCT(AR$9:AR$229,Nutrients!$EE$8:$EE$228)/907))+0.007028328))","v":0.22932230153202807},{"$f":"IF((SUMPRODUCT(AS$9:AS$229,Nutrients!$EE$8:$EE$228))=0,AS256,IF((SUMPRODUCT(AS$9:AS$229,Nutrients!$EE$8:$EE$228))>(1500*907),AS256+0.14,AS256+0.00000000006666*((SUMPRODUCT(AS$9:AS$229,Nutrients!$EE$8:$EE$228)/907))^3-0.00000023623322*((SUMPRODUCT(AS$9:AS$229,Nutrients!$EE$8:$EE$228)/907))^2+0.00029262722672*((SUMPRODUCT(AS$9:AS$229,Nutrients!$EE$8:$EE$228)/907))+0.007028328))","v":0.1909683805152598},{"$f":"IF((SUMPRODUCT(AT$9:AT$229,Nutrients!$EE$8:$EE$228))=0,AT256,IF((SUMPRODUCT(AT$9:AT$229,Nutrients!$EE$8:$EE$228))>(1500*907),AT256+0.14,AT256+0.00000000006666*((SUMPRODUCT(AT$9:AT$229,Nutrients!$EE$8:$EE$228)/907))^3-0.00000023623322*((SUMPRODUCT(AT$9:AT$229,Nutrients!$EE$8:$EE$228)/907))^2+0.00029262722672*((SUMPRODUCT(AT$9:AT$229,Nutrients!$EE$8:$EE$228)/907))+0.007028328))","v":0.15056071783252653},{"$f":"IF((SUMPRODUCT(AU$9:AU$229,Nutrients!$EE$8:$EE$228))=0,AU256,IF((SUMPRODUCT(AU$9:AU$229,Nutrients!$EE$8:$EE$228))>(1500*907),AU256+0.14,AU256+0.00000000006666*((SUMPRODUCT(AU$9:AU$229,Nutrients!$EE$8:$EE$228)/907))^3-0.00000023623322*((SUMPRODUCT(AU$9:AU$229,Nutrients!$EE$8:$EE$228)/907))^2+0.00029262722672*((SUMPRODUCT(AU$9:AU$229,Nutrients!$EE$8:$EE$228)/907))+0.007028328))","v":0.14500122463929874},{"$f":"IF((SUMPRODUCT(AV$9:AV$229,Nutrients!$EE$8:$EE$228))=0,AV256,IF((SUMPRODUCT(AV$9:AV$229,Nutrients!$EE$8:$EE$228))>(1500*907),AV256+0.14,AV256+0.00000000006666*((SUMPRODUCT(AV$9:AV$229,Nutrients!$EE$8:$EE$228)/907))^3-0.00000023623322*((SUMPRODUCT(AV$9:AV$229,Nutrients!$EE$8:$EE$228)/907))^2+0.00029262722672*((SUMPRODUCT(AV$9:AV$229,Nutrients!$EE$8:$EE$228)/907))+0.007028328))","v":0.14152358199253742},{"$f":"IF((SUMPRODUCT(AW$9:AW$229,Nutrients!$EE$8:$EE$228))=0,AW256,IF((SUMPRODUCT(AW$9:AW$229,Nutrients!$EE$8:$EE$228))>(1500*907),AW256+0.14,AW256+0.00000000006666*((SUMPRODUCT(AW$9:AW$229,Nutrients!$EE$8:$EE$228)/907))^3-0.00000023623322*((SUMPRODUCT(AW$9:AW$229,Nutrients!$EE$8:$EE$228)/907))^2+0.00029262722672*((SUMPRODUCT(AW$9:AW$229,Nutrients!$EE$8:$EE$228)/907))+0.007028328))","v":0.20173798071836466}]
["Avail P:calorie ratio g/mcal",{"$f":"IF(B$5=\"\",\"\",(B257)/(B246*2.2046)*10000)","v":1.0228158443854305},0.90093891102253687,0.7799032683037318,0.69195878210567852,0.63170249608403195,0.60499551704383758,null,{"$f":"IF(I$5=\"\",\"\",(I257)/(I246*2.2046)*10000)","v":0.96524850029692955},0.84695120232745225,0.72235771507724533,0.63692099104377498,0.57693206188264778,0.60499551704383758,null,{"$f":"IF(P$5=\"\",\"\",(P257)/(P246*2.2046)*10000)","v":0.90904742596491472},0.79127782296035887,0.66725320771707464,0.58206371606139518,0.52245196453778064,0.60499551704383758,null,{"$f":"IF(W$5=\"\",\"\",(W257)/(W246*2.2046)*10000)","v":0.85306634282947358},0.73584361486658023,0.61214687270229895,0.52747525796531625,0.46815779103680133,0.60499551704383758,null,{"$f":"IF(AD$5=\"\",\"\",(AD257)/(AD246*2.2046)*10000)","v":0.79728316981652503},0.68040836363996915,0.55730598775477536,0.47307633364211765,0.44466468602514725,0.60499551704383758,null,{"$f":"IF(AK$5=\"\",\"\",(AK257)/(AK246*2.2046)*10000)","v":0.74179246556338252},0.62529195994879472,0.50270967403364741,0.44349074832401914,0.43248675526131902,0.60499551704383758,null,{"$f":"IF(AR$5=\"\",\"\",(AR257)/(AR246*2.2046)*10000)","v":0.68697737926988012},0.57037387967812159,0.44837813246748925,0.43124499456054011,0.42034164711684124,0.60499551704383758]
["Stand. Dig. P w/out phytase, %",{"$f":"((SUMPRODUCT(B$9:B$229,Nutrients!$DR$8:$DR$228)+(IF($A$7=Nutrients!$B$8,Nutrients!$DR$8,Nutrients!$DR$9)*B$7)+(((IF($A$8=Nutrients!$B$79,Nutrients!$DR$79,(IF($A$8=Nutrients!$B$77,Nutrients!$DR$77,Nutrients!$DR$78)))))*B$8))/2000)","v":0.29000063647666452},{"$f":"((SUMPRODUCT(C$9:C$229,Nutrients!$DR$8:$DR$228)+(IF($A$7=Nutrients!$B$8,Nutrients!$DR$8,Nutrients!$DR$9)*C$7)+(((IF($A$8=Nutrients!$B$79,Nutrients!$DR$79,(IF($A$8=Nutrients!$B$77,Nutrients!$DR$77,Nutrients!$DR$78)))))*C$8))/2000)","v":0.24988069387487893},{"$f":"((SUMPRODUCT(D$9:D$229,Nutrients!$DR$8:$DR$228)+(IF($A$7=Nutrients!$B$8,Nutrients!$DR$8,Nutrients!$DR$9)*D$7)+(((IF($A$8=Nutrients!$B$79,Nutrients!$DR$79,(IF($A$8=Nutrients!$B$77,Nutrients!$DR$77,Nutrients!$DR$78)))))*D$8))/2000)","v":0.21060453785177027},{"$f":"((SUMPRODUCT(E$9:E$229,Nutrients!$DR$8:$DR$228)+(IF($A$7=Nutrients!$B$8,Nutrients!$DR$8,Nutrients!$DR$9)*E$7)+(((IF($A$8=Nutrients!$B$79,Nutrients!$DR$79,(IF($A$8=Nutrients!$B$77,Nutrients!$DR$77,Nutrients!$DR$78)))))*E$8))/2000)","v":0.18085065848336068},{"$f":"((SUMPRODUCT(F$9:F$229,Nutrients!$DR$8:$DR$228)+(IF($A$7=Nutrients!$B$8,Nutrients!$DR$8,Nutrients!$DR$9)*F$7)+(((IF($A$8=Nutrients!$B$79,Nutrients!$DR$79,(IF($A$8=Nutrients!$B$77,Nutrients!$DR$77,Nutrients!$DR$78)))))*F$8))/2000)","v":0.15971179439767599},{"$f":"((SUMPRODUCT(G$9:G$229,Nutrients!$DR$8:$DR$228)+(IF($A$7=Nutrients!$B$8,Nutrients!$DR$8,Nutrients!$DR$9)*G$7)+(((IF($A$8=Nutrients!$B$79,Nutrients!$DR$79,(IF($A$8=Nutrients!$B$77,Nutrients!$DR$77,Nutrients!$DR$78)))))*G$8))/2000)","v":0.14985099986346795},null,{"$f":"((SUMPRODUCT(I$9:I$229,Nutrients!$DR$8:$DR$228)+(IF($A$7=Nutrients!$B$8,Nutrients!$DR$8,Nutrients!$DR$9)*I$7)+(((IF($A$8=Nutrients!$B$79,Nutrients!$DR$79,(IF($A$8=Nutrients!$B$77,Nutrients!$DR$77,Nutrients!$DR$78)))))*I$8))/2000)","v":0.28948527871733398},{"$f":"((SUMPRODUCT(J$9:J$229,Nutrients!$DR$8:$DR$228)+(IF($A$7=Nutrients!$B$8,Nutrients!$DR$8,Nutrients!$DR$9)*J$7)+(((IF($A$8=Nutrients!$B$79,Nutrients!$DR$79,(IF($A$8=Nutrients!$B$77,Nutrients!$DR$77,Nutrients!$DR$78)))))*J$8))/2000)","v":0.25034977701360678},{"$f":"((SUMPRODUCT(K$9:K$229,Nutrients!$DR$8:$DR$228)+(IF($A$7=Nutrients!$B$8,Nutrients!$DR$8,Nutrients!$DR$9)*K$7)+(((IF($A$8=Nutrients!$B$79,Nutrients!$DR$79,(IF($A$8=Nutrients!$B$77,Nutrients!$DR$77,Nutrients!$DR$78)))))*K$8))/2000)","v":0.21001116657797872},{"$f":"((SUMPRODUCT(L$9:L$229,Nutrients!$DR$8:$DR$228)+(IF($A$7=Nutrients!$B$8,Nutrients!$DR$8,Nutrients!$DR$9)*L$7)+(((IF($A$8=Nutrients!$B$79,Nutrients!$DR$79,(IF($A$8=Nutrients!$B$77,Nutrients!$DR$77,Nutrients!$DR$78)))))*L$8))/2000)","v":0.1809228055145897},{"$f":"((SUMPRODUCT(M$9:M$229,Nutrients!$DR$8:$DR$228)+(IF($A$7=Nutrients!$B$8,Nutrients!$DR$8,Nutrients!$DR$9)*M$7)+(((IF($A$8=Nutrients!$B$79,Nutrients!$DR$79,(IF($A$8=Nutrients!$B$77,Nutrients!$DR$77,Nutrients!$DR$78)))))*M$8))/2000)","v":0.15977980515692081},{"$f":"((SUMPRODUCT(N$9:N$229,Nutrients!$DR$8:$DR$228)+(IF($A$7=Nutrients!$B$8,Nutrients!$DR$8,Nutrients!$DR$9)*N$7)+(((IF($A$8=Nutrients!$B$79,Nutrients!$DR$79,(IF($A$8=Nutrients!$B$77,Nutrients!$DR$77,Nutrients!$DR$78)))))*N$8))/2000)","v":0.14985099986346795},null,{"$f":"((SUMPRODUCT(P$9:P$229,Nutrients!$DR$8:$DR$228)+(IF($A$7=Nutrients!$B$8,Nutrients!$DR$8,Nutrients!$DR$9)*P$7)+(((IF($A$8=Nutrients!$B$79,Nutrients!$DR$79,(IF($A$8=Nutrients!$B$77,Nutrients!$DR$77,Nutrients!$DR$78)))))*P$8))/2000)","v":0.28939758571940299},{"$f":"((SUMPRODUCT(Q$9:Q$229,Nutrients!$DR$8:$DR$228)+(IF($A$7=Nutrients!$B$8,Nutrients!$DR$8,Nutrients!$DR$9)*Q$7)+(((IF($A$8=Nutrients!$B$79,Nutrients!$DR$79,(IF($A$8=Nutrients!$B$77,Nutrients!$DR$77,Nutrients!$DR$78)))))*Q$8))/2000)","v":0.25034839134717191},{"$f":"((SUMPRODUCT(R$9:R$229,Nutrients!$DR$8:$DR$228)+(IF($A$7=Nutrients!$B$8,Nutrients!$DR$8,Nutrients!$DR$9)*R$7)+(((IF($A$8=Nutrients!$B$79,Nutrients!$DR$79,(IF($A$8=Nutrients!$B$77,Nutrients!$DR$77,Nutrients!$DR$78)))))*R$8))/2000)","v":0.21010745424820004},{"$f":"((SUMPRODUCT(S$9:S$229,Nutrients!$DR$8:$DR$228)+(IF($A$7=Nutrients!$B$8,Nutrients!$DR$8,Nutrients!$DR$9)*S$7)+(((IF($A$8=Nutrients!$B$79,Nutrients!$DR$79,(IF($A$8=Nutrients!$B$77,Nutrients!$DR$77,Nutrients!$DR$78)))))*S$8))/2000)","v":0.18097222144542821},{"$f":"((SUMPRODUCT(T$9:T$229,Nutrients!$DR$8:$DR$228)+(IF($A$7=Nutrients!$B$8,Nutrients!$DR$8,Nutrients!$DR$9)*T$7)+(((IF($A$8=Nutrients!$B$79,Nutrients!$DR$79,(IF($A$8=Nutrients!$B$77,Nutrients!$DR$77,Nutrients!$DR$78)))))*T$8))/2000)","v":0.15990793547491652},{"$f":"((SUMPRODUCT(U$9:U$229,Nutrients!$DR$8:$DR$228)+(IF($A$7=Nutrients!$B$8,Nutrients!$DR$8,Nutrients!$DR$9)*U$7)+(((IF($A$8=Nutrients!$B$79,Nutrients!$DR$79,(IF($A$8=Nutrients!$B$77,Nutrients!$DR$77,Nutrients!$DR$78)))))*U$8))/2000)","v":0.14985099986346795},null,{"$f":"((SUMPRODUCT(W$9:W$229,Nutrients!$DR$8:$DR$228)+(IF($A$7=Nutrients!$B$8,Nutrients!$DR$8,Nutrients!$DR$9)*W$7)+(((IF($A$8=Nutrients!$B$79,Nutrients!$DR$79,(IF($A$8=Nutrients!$B$77,Nutrients!$DR$77,Nutrients!$DR$78)))))*W$8))/2000)","v":0.28930805695141754},{"$f":"((SUMPRODUCT(X$9:X$229,Nutrients!$DR$8:$DR$228)+(IF($A$7=Nutrients!$B$8,Nutrients!$DR$8,Nutrients!$DR$9)*X$7)+(((IF($A$8=Nutrients!$B$79,Nutrients!$DR$79,(IF($A$8=Nutrients!$B$77,Nutrients!$DR$77,Nutrients!$DR$78)))))*X$8))/2000)","v":0.2503486947217291},{"$f":"((SUMPRODUCT(Y$9:Y$229,Nutrients!$DR$8:$DR$228)+(IF($A$7=Nutrients!$B$8,Nutrients!$DR$8,Nutrients!$DR$9)*Y$7)+(((IF($A$8=Nutrients!$B$79,Nutrients!$DR$79,(IF($A$8=Nutrients!$B$77,Nutrients!$DR$77,Nutrients!$DR$78)))))*Y$8))/2000)","v":0.21006124825435171},{"$f":"((SUMPRODUCT(Z$9:Z$229,Nutrients!$DR$8:$DR$228)+(IF($A$7=Nutrients!$B$8,Nutrients!$DR$8,Nutrients!$DR$9)*Z$7)+(((IF($A$8=Nutrients!$B$79,Nutrients!$DR$79,(IF($A$8=Nutrients!$B$77,Nutrients!$DR$77,Nutrients!$DR$78)))))*Z$8))/2000)","v":0.18105388650611606},{"$f":"((SUMPRODUCT(AA$9:AA$229,Nutrients!$DR$8:$DR$228)+(IF($A$7=Nutrients!$B$8,Nutrients!$DR$8,Nutrients!$DR$9)*AA$7)+(((IF($A$8=Nutrients!$B$79,Nutrients!$DR$79,(IF($A$8=Nutrients!$B$77,Nutrients!$DR$77,Nutrients!$DR$78)))))*AA$8))/2000)","v":0.16003395350507457},{"$f":"((SUMPRODUCT(AB$9:AB$229,Nutrients!$DR$8:$DR$228)+(IF($A$7=Nutrients!$B$8,Nutrients!$DR$8,Nutrients!$DR$9)*AB$7)+(((IF($A$8=Nutrients!$B$79,Nutrients!$DR$79,(IF($A$8=Nutrients!$B$77,Nutrients!$DR$77,Nutrients!$DR$78)))))*AB$8))/2000)","v":0.14985099986346795},null,{"$f":"((SUMPRODUCT(AD$9:AD$229,Nutrients!$DR$8:$DR$228)+(IF($A$7=Nutrients!$B$8,Nutrients!$DR$8,Nutrients!$DR$9)*AD$7)+(((IF($A$8=Nutrients!$B$79,Nutrients!$DR$79,(IF($A$8=Nutrients!$B$77,Nutrients!$DR$77,Nutrients!$DR$78)))))*AD$8))/2000)","v":0.28920497215536695},{"$f":"((SUMPRODUCT(AE$9:AE$229,Nutrients!$DR$8:$DR$228)+(IF($A$7=Nutrients!$B$8,Nutrients!$DR$8,Nutrients!$DR$9)*AE$7)+(((IF($A$8=Nutrients!$B$79,Nutrients!$DR$79,(IF($A$8=Nutrients!$B$77,Nutrients!$DR$77,Nutrients!$DR$78)))))*AE$8))/2000)","v":0.25020870229148762},{"$f":"((SUMPRODUCT(AF$9:AF$229,Nutrients!$DR$8:$DR$228)+(IF($A$7=Nutrients!$B$8,Nutrients!$DR$8,Nutrients!$DR$9)*AF$7)+(((IF($A$8=Nutrients!$B$79,Nutrients!$DR$79,(IF($A$8=Nutrients!$B$77,Nutrients!$DR$77,Nutrients!$DR$78)))))*AF$8))/2000)","v":0.2100446486009003},{"$f":"((SUMPRODUCT(AG$9:AG$229,Nutrients!$DR$8:$DR$228)+(IF($A$7=Nutrients!$B$8,Nutrients!$DR$8,Nutrients!$DR$9)*AG$7)+(((IF($A$8=Nutrients!$B$79,Nutrients!$DR$79,(IF($A$8=Nutrients!$B$77,Nutrients!$DR$77,Nutrients!$DR$78)))))*AG$8))/2000)","v":0.18112295028365366},{"$f":"((SUMPRODUCT(AH$9:AH$229,Nutrients!$DR$8:$DR$228)+(IF($A$7=Nutrients!$B$8,Nutrients!$DR$8,Nutrients!$DR$9)*AH$7)+(((IF($A$8=Nutrients!$B$79,Nutrients!$DR$79,(IF($A$8=Nutrients!$B$77,Nutrients!$DR$77,Nutrients!$DR$78)))))*AH$8))/2000)","v":0.1690777095203283},{"$f":"((SUMPRODUCT(AI$9:AI$229,Nutrients!$DR$8:$DR$228)+(IF($A$7=Nutrients!$B$8,Nutrients!$DR$8,Nutrients!$DR$9)*AI$7)+(((IF($A$8=Nutrients!$B$79,Nutrients!$DR$79,(IF($A$8=Nutrients!$B$77,Nutrients!$DR$77,Nutrients!$DR$78)))))*AI$8))/2000)","v":0.14985099986346795},null,{"$f":"((SUMPRODUCT(AK$9:AK$229,Nutrients!$DR$8:$DR$228)+(IF($A$7=Nutrients!$B$8,Nutrients!$DR$8,Nutrients!$DR$9)*AK$7)+(((IF($A$8=Nutrients!$B$79,Nutrients!$DR$79,(IF($A$8=Nutrients!$B$77,Nutrients!$DR$77,Nutrients!$DR$78)))))*AK$8))/2000)","v":0.28913742948898269},{"$f":"((SUMPRODUCT(AL$9:AL$229,Nutrients!$DR$8:$DR$228)+(IF($A$7=Nutrients!$B$8,Nutrients!$DR$8,Nutrients!$DR$9)*AL$7)+(((IF($A$8=Nutrients!$B$79,Nutrients!$DR$79,(IF($A$8=Nutrients!$B$77,Nutrients!$DR$77,Nutrients!$DR$78)))))*AL$8))/2000)","v":0.25011082803332996},{"$f":"((SUMPRODUCT(AM$9:AM$229,Nutrients!$DR$8:$DR$228)+(IF($A$7=Nutrients!$B$8,Nutrients!$DR$8,Nutrients!$DR$9)*AM$7)+(((IF($A$8=Nutrients!$B$79,Nutrients!$DR$79,(IF($A$8=Nutrients!$B$77,Nutrients!$DR$77,Nutrients!$DR$78)))))*AM$8))/2000)","v":0.21004038881605028},{"$f":"((SUMPRODUCT(AN$9:AN$229,Nutrients!$DR$8:$DR$228)+(IF($A$7=Nutrients!$B$8,Nutrients!$DR$8,Nutrients!$DR$9)*AN$7)+(((IF($A$8=Nutrients!$B$79,Nutrients!$DR$79,(IF($A$8=Nutrients!$B$77,Nutrients!$DR$77,Nutrients!$DR$78)))))*AN$8))/2000)","v":0.18836429776982375},{"$f":"((SUMPRODUCT(AO$9:AO$229,Nutrients!$DR$8:$DR$228)+(IF($A$7=Nutrients!$B$8,Nutrients!$DR$8,Nutrients!$DR$9)*AO$7)+(((IF($A$8=Nutrients!$B$79,Nutrients!$DR$79,(IF($A$8=Nutrients!$B$77,Nutrients!$DR$77,Nutrients!$DR$78)))))*AO$8))/2000)","v":0.18140858895892459},{"$f":"((SUMPRODUCT(AP$9:AP$229,Nutrients!$DR$8:$DR$228)+(IF($A$7=Nutrients!$B$8,Nutrients!$DR$8,Nutrients!$DR$9)*AP$7)+(((IF($A$8=Nutrients!$B$79,Nutrients!$DR$79,(IF($A$8=Nutrients!$B$77,Nutrients!$DR$77,Nutrients!$DR$78)))))*AP$8))/2000)","v":0.14985099986346795},null,{"$f":"((SUMPRODUCT(AR$9:AR$229,Nutrients!$DR$8:$DR$228)+(IF($A$7=Nutrients!$B$8,Nutrients!$DR$8,Nutrients!$DR$9)*AR$7)+(((IF($A$8=Nutrients!$B$79,Nutrients!$DR$79,(IF($A$8=Nutrients!$B$77,Nutrients!$DR$77,Nutrients!$DR$78)))))*AR$8))/2000)","v":0.28934177273434697},{"$f":"((SUMPRODUCT(AS$9:AS$229,Nutrients!$DR$8:$DR$228)+(IF($A$7=Nutrients!$B$8,Nutrients!$DR$8,Nutrients!$DR$9)*AS$7)+(((IF($A$8=Nutrients!$B$79,Nutrients!$DR$79,(IF($A$8=Nutrients!$B$77,Nutrients!$DR$77,Nutrients!$DR$78)))))*AS$8))/2000)","v":0.2500080131096914},{"$f":"((SUMPRODUCT(AT$9:AT$229,Nutrients!$DR$8:$DR$228)+(IF($A$7=Nutrients!$B$8,Nutrients!$DR$8,Nutrients!$DR$9)*AT$7)+(((IF($A$8=Nutrients!$B$79,Nutrients!$DR$79,(IF($A$8=Nutrients!$B$77,Nutrients!$DR$77,Nutrients!$DR$78)))))*AT$8))/2000)","v":0.21005738361813739},{"$f":"((SUMPRODUCT(AU$9:AU$229,Nutrients!$DR$8:$DR$228)+(IF($A$7=Nutrients!$B$8,Nutrients!$DR$8,Nutrients!$DR$9)*AU$7)+(((IF($A$8=Nutrients!$B$79,Nutrients!$DR$79,(IF($A$8=Nutrients!$B$77,Nutrients!$DR$77,Nutrients!$DR$78)))))*AU$8))/2000)","v":0.20064885641085126},{"$f":"((SUMPRODUCT(AV$9:AV$229,Nutrients!$DR$8:$DR$228)+(IF($A$7=Nutrients!$B$8,Nutrients!$DR$8,Nutrients!$DR$9)*AV$7)+(((IF($A$8=Nutrients!$B$79,Nutrients!$DR$79,(IF($A$8=Nutrients!$B$77,Nutrients!$DR$77,Nutrients!$DR$78)))))*AV$8))/2000)","v":0.19374016212722536},{"$f":"((SUMPRODUCT(AW$9:AW$229,Nutrients!$DR$8:$DR$228)+(IF($A$7=Nutrients!$B$8,Nutrients!$DR$8,Nutrients!$DR$9)*AW$7)+(((IF($A$8=Nutrients!$B$79,Nutrients!$DR$79,(IF($A$8=Nutrients!$B$77,Nutrients!$DR$77,Nutrients!$DR$78)))))*AW$8))/2000)","v":0.14985099986346795}]
["Stand. Dig. P with phytase, %",{"$f":"B259+0.11","v":0.40000063647666451},0.35988069387487892,0.32060453785177029,0.29085065848336067,0.26971179439767601,0.25985099986346794,null,{"$f":"I259+0.11","v":0.39948527871733397},0.36034977701360676,0.32001116657797873,0.29092280551458971,0.26977980515692079,0.25985099986346794,null,{"$f":"P259+0.11","v":0.39939758571940298},0.36034839134717189,0.32010745424820003,0.29097222144542823,0.26990793547491654,0.25985099986346794,null,{"$f":"W259+0.11","v":0.39930805695141752},0.36034869472172909,0.32006124825435173,0.29105388650611608,0.27003395350507459,0.25985099986346794,null,{"$f":"AD259+0.11","v":0.39920497215536693},0.3602087022914876,0.32004464860090032,0.29112295028365365,0.27907770952032829,0.25985099986346794,null,{"$f":"AK259+0.11","v":0.39913742948898268},0.36011082803332994,0.32004038881605029,0.29836429776982376,0.29140858895892457,0.25985099986346794,null,{"$f":"AR259+0.11","v":0.39934177273434696},0.36000801310969138,0.3200573836181374,0.31064885641085127,0.30374016212722538,0.25985099986346794]
["Ca:P",{"$f":"B254/B255","v":1.3203146685846132},1.3163186415313215,1.3468914379746515,1.3441772957085856,1.3289773113995034,1.3324500801018839,null,{"$f":"I254/I255","v":1.3216798100997695},1.3178114622182411,1.3474544515780809,1.3450442582091098,1.3311434184304338,1.3324500801018839,null,{"$f":"P254/P255","v":1.3225601989406632},1.3190528635512648,1.3479263847480933,1.3457174712430455,1.3316167775958001,1.3324500801018839,null,{"$f":"W254/W255","v":1.3233208397719916},1.3196886352868975,1.3488087459668396,1.3463247788954467,1.3322014796327719,1.3324500801018839,null,{"$f":"AD254/AD255","v":1.3241276962664446},1.3206730865488521,1.349638826349258,1.3484174881768851,1.3409042245464942,1.3324500801018839,null,{"$f":"AK254/AK255","v":1.324864241605499},1.3215440479089544,1.3504646391560262,1.3545900803145441,1.350531892798295,1.3324500801018839,null,{"$f":"AR254/AR255","v":1.3250070812020278},1.3224680903731372,1.3525797055232949,1.3638283017674715,1.3595022500454574,1.3324500801018839]
["Ca:STTD P",{"$f":"B254/B260","v":1.7394731864174733},1.7393882664224269,1.790040346909656,1.7897511861126985,1.7685135744736544,1.770331325323067,null,{"$f":"I254/I260","v":1.7399836844131604},1.7395807054203087,1.7899435744907275,1.7896129079919338,1.770021332948555,1.770331325323067,null,{"$f":"P254/P260","v":1.7399865902027094},1.7400639834801523,1.7894312394965881,1.7891470709671617,1.7693685729068043,1.770331325323067,null,{"$f":"W254/W260","v":1.7398185444068706},1.739755985985066,1.789176863922026,1.7886354351872891,1.7687752079546382,1.770331325323067,null,{"$f":"AD254/AD260","v":1.7396758795297658},1.7396549149375595,1.7888851864349948,1.7899999600993244,1.7700008464998982,1.770331325323067,null,{"$f":"AK254/AK260","v":1.7394902352272703},1.7394858379429039,1.7885867086037215,1.7900003326422946,1.7700052778922595,1.770331325323067,null,{"$f":"AR254/AR260","v":1.7389534282328563},1.7393442284410856,1.7900002232679704,1.7900002023956532,1.7700131186156405,1.770331325323067]
["Cost/ton",{"$f":"(SUMPRODUCT(B$9:B$229,Nutrients!$DX$8:$DX$228)+(IF($A$7=Nutrients!$B$8,Nutrients!$DX$8,Nutrients!$DX$9)*B$7)+(((IF($A$8=Nutrients!$B$79,Nutrients!$DX$79,(IF($A$8=Nutrients!$B$77,Nutrients!$DX$77,Nutrients!$DX$78)))))*B$8))","v":221.26773173804173},{"$f":"(SUMPRODUCT(C$9:C$229,Nutrients!$DX$8:$DX$228)+(IF($A$7=Nutrients!$B$8,Nutrients!$DX$8,Nutrients!$DX$9)*C$7)+(((IF($A$8=Nutrients!$B$79,Nutrients!$DX$79,(IF($A$8=Nutrients!$B$77,Nutrients!$DX$77,Nutrients!$DX$78)))))*C$8))","v":211.54330280629557},{"$f":"(SUMPRODUCT(D$9:D$229,Nutrients!$DX$8:$DX$228)+(IF($A$7=Nutrients!$B$8,Nutrients!$DX$8,Nutrients!$DX$9)*D$7)+(((IF($A$8=Nutrients!$B$79,Nutrients!$DX$79,(IF($A$8=Nutrients!$B$77,Nutrients!$DX$77,Nutrients!$DX$78)))))*D$8))","v":202.16843206547495},{"$f":"(SUMPRODUCT(E$9:E$229,Nutrients!$DX$8:$DX$228)+(IF($A$7=Nutrients!$B$8,Nutrients!$DX$8,Nutrients!$DX$9)*E$7)+(((IF($A$8=Nutrients!$B$79,Nutrients!$DX$79,(IF($A$8=Nutrients!$B$77,Nutrients!$DX$77,Nutrients!$DX$78)))))*E$8))","v":195.22426532952818},{"$f":"(SUMPRODUCT(F$9:F$229,Nutrients!$DX$8:$DX$228)+(IF($A$7=Nutrients!$B$8,Nutrients!$DX$8,Nutrients!$DX$9)*F$7)+(((IF($A$8=Nutrients!$B$79,Nutrients!$DX$79,(IF($A$8=Nutrients!$B$77,Nutrients!$DX$77,Nutrients!$DX$78)))))*F$8))","v":190.24981497998971},{"$f":"(SUMPRODUCT(G$9:G$229,Nutrients!$DX$8:$DX$228)+(IF($A$7=Nutrients!$B$8,Nutrients!$DX$8,Nutrients!$DX$9)*G$7)+(((IF($A$8=Nutrients!$B$79,Nutrients!$DX$79,(IF($A$8=Nutrients!$B$77,Nutrients!$DX$77,Nutrients!$DX$78)))))*G$8))","v":187.92809138061614},null,{"$f":"(SUMPRODUCT(I$9:I$229,Nutrients!$DX$8:$DX$228)+(IF($A$7=Nutrients!$B$8,Nutrients!$DX$8,Nutrients!$DX$9)*I$7)+(((IF($A$8=Nutrients!$B$79,Nutrients!$DX$79,(IF($A$8=Nutrients!$B$77,Nutrients!$DX$77,Nutrients!$DX$78)))))*I$8))","v":219.16586470791503},{"$f":"(SUMPRODUCT(J$9:J$229,Nutrients!$DX$8:$DX$228)+(IF($A$7=Nutrients!$B$8,Nutrients!$DX$8,Nutrients!$DX$9)*J$7)+(((IF($A$8=Nutrients!$B$79,Nutrients!$DX$79,(IF($A$8=Nutrients!$B$77,Nutrients!$DX$77,Nutrients!$DX$78)))))*J$8))","v":209.5993238555823},{"$f":"(SUMPRODUCT(K$9:K$229,Nutrients!$DX$8:$DX$228)+(IF($A$7=Nutrients!$B$8,Nutrients!$DX$8,Nutrients!$DX$9)*K$7)+(((IF($A$8=Nutrients!$B$79,Nutrients!$DX$79,(IF($A$8=Nutrients!$B$77,Nutrients!$DX$77,Nutrients!$DX$78)))))*K$8))","v":200.48706519759159},{"$f":"(SUMPRODUCT(L$9:L$229,Nutrients!$DX$8:$DX$228)+(IF($A$7=Nutrients!$B$8,Nutrients!$DX$8,Nutrients!$DX$9)*L$7)+(((IF($A$8=Nutrients!$B$79,Nutrients!$DX$79,(IF($A$8=Nutrients!$B$77,Nutrients!$DX$77,Nutrients!$DX$78)))))*L$8))","v":193.50429475572273},{"$f":"(SUMPRODUCT(M$9:M$229,Nutrients!$DX$8:$DX$228)+(IF($A$7=Nutrients!$B$8,Nutrients!$DX$8,Nutrients!$DX$9)*M$7)+(((IF($A$8=Nutrients!$B$79,Nutrients!$DX$79,(IF($A$8=Nutrients!$B$77,Nutrients!$DX$77,Nutrients!$DX$78)))))*M$8))","v":188.42069387728165},{"$f":"(SUMPRODUCT(N$9:N$229,Nutrients!$DX$8:$DX$228)+(IF($A$7=Nutrients!$B$8,Nutrients!$DX$8,Nutrients!$DX$9)*N$7)+(((IF($A$8=Nutrients!$B$79,Nutrients!$DX$79,(IF($A$8=Nutrients!$B$77,Nutrients!$DX$77,Nutrients!$DX$78)))))*N$8))","v":187.92809138061614},null,{"$f":"(SUMPRODUCT(P$9:P$229,Nutrients!$DX$8:$DX$228)+(IF($A$7=Nutrients!$B$8,Nutrients!$DX$8,Nutrients!$DX$9)*P$7)+(((IF($A$8=Nutrients!$B$79,Nutrients!$DX$79,(IF($A$8=Nutrients!$B$77,Nutrients!$DX$77,Nutrients!$DX$78)))))*P$8))","v":217.25484171837127},{"$f":"(SUMPRODUCT(Q$9:Q$229,Nutrients!$DX$8:$DX$228)+(IF($A$7=Nutrients!$B$8,Nutrients!$DX$8,Nutrients!$DX$9)*Q$7)+(((IF($A$8=Nutrients!$B$79,Nutrients!$DX$79,(IF($A$8=Nutrients!$B$77,Nutrients!$DX$77,Nutrients!$DX$78)))))*Q$8))","v":207.90803566415372},{"$f":"(SUMPRODUCT(R$9:R$229,Nutrients!$DX$8:$DX$228)+(IF($A$7=Nutrients!$B$8,Nutrients!$DX$8,Nutrients!$DX$9)*R$7)+(((IF($A$8=Nutrients!$B$79,Nutrients!$DX$79,(IF($A$8=Nutrients!$B$77,Nutrients!$DX$77,Nutrients!$DX$78)))))*R$8))","v":198.84038391053457},{"$f":"(SUMPRODUCT(S$9:S$229,Nutrients!$DX$8:$DX$228)+(IF($A$7=Nutrients!$B$8,Nutrients!$DX$8,Nutrients!$DX$9)*S$7)+(((IF($A$8=Nutrients!$B$79,Nutrients!$DX$79,(IF($A$8=Nutrients!$B$77,Nutrients!$DX$77,Nutrients!$DX$78)))))*S$8))","v":191.90183959063353},{"$f":"(SUMPRODUCT(T$9:T$229,Nutrients!$DX$8:$DX$228)+(IF($A$7=Nutrients!$B$8,Nutrients!$DX$8,Nutrients!$DX$9)*T$7)+(((IF($A$8=Nutrients!$B$79,Nutrients!$DX$79,(IF($A$8=Nutrients!$B$77,Nutrients!$DX$77,Nutrients!$DX$78)))))*T$8))","v":186.87940879485626},{"$f":"(SUMPRODUCT(U$9:U$229,Nutrients!$DX$8:$DX$228)+(IF($A$7=Nutrients!$B$8,Nutrients!$DX$8,Nutrients!$DX$9)*U$7)+(((IF($A$8=Nutrients!$B$79,Nutrients!$DX$79,(IF($A$8=Nutrients!$B$77,Nutrients!$DX$77,Nutrients!$DX$78)))))*U$8))","v":187.92809138061614},null,{"$f":"(SUMPRODUCT(W$9:W$229,Nutrients!$DX$8:$DX$228)+(IF($A$7=Nutrients!$B$8,Nutrients!$DX$8,Nutrients!$DX$9)*W$7)+(((IF($A$8=Nutrients!$B$79,Nutrients!$DX$79,(IF($A$8=Nutrients!$B$77,Nutrients!$DX$77,Nutrients!$DX$78)))))*W$8))","v":215.40844963058765},{"$f":"(SUMPRODUCT(X$9:X$229,Nutrients!$DX$8:$DX$228)+(IF($A$7=Nutrients!$B$8,Nutrients!$DX$8,Nutrients!$DX$9)*X$7)+(((IF($A$8=Nutrients!$B$79,Nutrients!$DX$79,(IF($A$8=Nutrients!$B$77,Nutrients!$DX$77,Nutrients!$DX$78)))))*X$8))","v":206.17685226298042},{"$f":"(SUMPRODUCT(Y$9:Y$229,Nutrients!$DX$8:$DX$228)+(IF($A$7=Nutrients!$B$8,Nutrients!$DX$8,Nutrients!$DX$9)*Y$7)+(((IF($A$8=Nutrients!$B$79,Nutrients!$DX$79,(IF($A$8=Nutrients!$B$77,Nutrients!$DX$77,Nutrients!$DX$78)))))*Y$8))","v":197.19712300052555},{"$f":"(SUMPRODUCT(Z$9:Z$229,Nutrients!$DX$8:$DX$228)+(IF($A$7=Nutrients!$B$8,Nutrients!$DX$8,Nutrients!$DX$9)*Z$7)+(((IF($A$8=Nutrients!$B$79,Nutrients!$DX$79,(IF($A$8=Nutrients!$B$77,Nutrients!$DX$77,Nutrients!$DX$78)))))*Z$8))","v":190.46749361891673},{"$f":"(SUMPRODUCT(AA$9:AA$229,Nutrients!$DX$8:$DX$228)+(IF($A$7=Nutrients!$B$8,Nutrients!$DX$8,Nutrients!$DX$9)*AA$7)+(((IF($A$8=Nutrients!$B$79,Nutrients!$DX$79,(IF($A$8=Nutrients!$B$77,Nutrients!$DX$77,Nutrients!$DX$78)))))*AA$8))","v":185.76804739707728},{"$f":"(SUMPRODUCT(AB$9:AB$229,Nutrients!$DX$8:$DX$228)+(IF($A$7=Nutrients!$B$8,Nutrients!$DX$8,Nutrients!$DX$9)*AB$7)+(((IF($A$8=Nutrients!$B$79,Nutrients!$DX$79,(IF($A$8=Nutrients!$B$77,Nutrients!$DX$77,Nutrients!$DX$78)))))*AB$8))","v":187.92809138061614},null,{"$f":"(SUMPRODUCT(AD$9:AD$229,Nutrients!$DX$8:$DX$228)+(IF($A$7=Nutrients!$B$8,Nutrients!$DX$8,Nutrients!$DX$9)*AD$7)+(((IF($A$8=Nutrients!$B$79,Nutrients!$DX$79,(IF($A$8=Nutrients!$B$77,Nutrients!$DX$77,Nutrients!$DX$78)))))*AD$8))","v":213.68286818105867},{"$f":"(SUMPRODUCT(AE$9:AE$229,Nutrients!$DX$8:$DX$228)+(IF($A$7=Nutrients!$B$8,Nutrients!$DX$8,Nutrients!$DX$9)*AE$7)+(((IF($A$8=Nutrients!$B$79,Nutrients!$DX$79,(IF($A$8=Nutrients!$B$77,Nutrients!$DX$77,Nutrients!$DX$78)))))*AE$8))","v":204.4829319818146},{"$f":"(SUMPRODUCT(AF$9:AF$229,Nutrients!$DX$8:$DX$228)+(IF($A$7=Nutrients!$B$8,Nutrients!$DX$8,Nutrients!$DX$9)*AF$7)+(((IF($A$8=Nutrients!$B$79,Nutrients!$DX$79,(IF($A$8=Nutrients!$B$77,Nutrients!$DX$77,Nutrients!$DX$78)))))*AF$8))","v":195.74599046763265},{"$f":"(SUMPRODUCT(AG$9:AG$229,Nutrients!$DX$8:$DX$228)+(IF($A$7=Nutrients!$B$8,Nutrients!$DX$8,Nutrients!$DX$9)*AG$7)+(((IF($A$8=Nutrients!$B$79,Nutrients!$DX$79,(IF($A$8=Nutrients!$B$77,Nutrients!$DX$77,Nutrients!$DX$78)))))*AG$8))","v":189.37134308718575},{"$f":"(SUMPRODUCT(AH$9:AH$229,Nutrients!$DX$8:$DX$228)+(IF($A$7=Nutrients!$B$8,Nutrients!$DX$8,Nutrients!$DX$9)*AH$7)+(((IF($A$8=Nutrients!$B$79,Nutrients!$DX$79,(IF($A$8=Nutrients!$B$77,Nutrients!$DX$77,Nutrients!$DX$78)))))*AH$8))","v":184.88434812784908},{"$f":"(SUMPRODUCT(AI$9:AI$229,Nutrients!$DX$8:$DX$228)+(IF($A$7=Nutrients!$B$8,Nutrients!$DX$8,Nutrients!$DX$9)*AI$7)+(((IF($A$8=Nutrients!$B$79,Nutrients!$DX$79,(IF($A$8=Nutrients!$B$77,Nutrients!$DX$77,Nutrients!$DX$78)))))*AI$8))","v":187.92809138061614},null,{"$f":"(SUMPRODUCT(AK$9:AK$229,Nutrients!$DX$8:$DX$228)+(IF($A$7=Nutrients!$B$8,Nutrients!$DX$8,Nutrients!$DX$9)*AK$7)+(((IF($A$8=Nutrients!$B$79,Nutrients!$DX$79,(IF($A$8=Nutrients!$B$77,Nutrients!$DX$77,Nutrients!$DX$78)))))*AK$8))","v":211.98308047970517},{"$f":"(SUMPRODUCT(AL$9:AL$229,Nutrients!$DX$8:$DX$228)+(IF($A$7=Nutrients!$B$8,Nutrients!$DX$8,Nutrients!$DX$9)*AL$7)+(((IF($A$8=Nutrients!$B$79,Nutrients!$DX$79,(IF($A$8=Nutrients!$B$77,Nutrients!$DX$77,Nutrients!$DX$78)))))*AL$8))","v":202.69639773944195},{"$f":"(SUMPRODUCT(AM$9:AM$229,Nutrients!$DX$8:$DX$228)+(IF($A$7=Nutrients!$B$8,Nutrients!$DX$8,Nutrients!$DX$9)*AM$7)+(((IF($A$8=Nutrients!$B$79,Nutrients!$DX$79,(IF($A$8=Nutrients!$B$77,Nutrients!$DX$77,Nutrients!$DX$78)))))*AM$8))","v":194.40419016380727},{"$f":"(SUMPRODUCT(AN$9:AN$229,Nutrients!$DX$8:$DX$228)+(IF($A$7=Nutrients!$B$8,Nutrients!$DX$8,Nutrients!$DX$9)*AN$7)+(((IF($A$8=Nutrients!$B$79,Nutrients!$DX$79,(IF($A$8=Nutrients!$B$77,Nutrients!$DX$77,Nutrients!$DX$78)))))*AN$8))","v":188.38337359082476},{"$f":"(SUMPRODUCT(AO$9:AO$229,Nutrients!$DX$8:$DX$228)+(IF($A$7=Nutrients!$B$8,Nutrients!$DX$8,Nutrients!$DX$9)*AO$7)+(((IF($A$8=Nutrients!$B$79,Nutrients!$DX$79,(IF($A$8=Nutrients!$B$77,Nutrients!$DX$77,Nutrients!$DX$78)))))*AO$8))","v":184.0351250466604},{"$f":"(SUMPRODUCT(AP$9:AP$229,Nutrients!$DX$8:$DX$228)+(IF($A$7=Nutrients!$B$8,Nutrients!$DX$8,Nutrients!$DX$9)*AP$7)+(((IF($A$8=Nutrients!$B$79,Nutrients!$DX$79,(IF($A$8=Nutrients!$B$77,Nutrients!$DX$77,Nutrients!$DX$78)))))*AP$8))","v":187.92809138061614},null,{"$f":"(SUMPRODUCT(AR$9:AR$229,Nutrients!$DX$8:$DX$228)+(IF($A$7=Nutrients!$B$8,Nutrients!$DX$8,Nutrients!$DX$9)*AR$7)+(((IF($A$8=Nutrients!$B$79,Nutrients!$DX$79,(IF($A$8=Nutrients!$B$77,Nutrients!$DX$77,Nutrients!$DX$78)))))*AR$8))","v":210.39759928430823},{"$f":"(SUMPRODUCT(AS$9:AS$229,Nutrients!$DX$8:$DX$228)+(IF($A$7=Nutrients!$B$8,Nutrients!$DX$8,Nutrients!$DX$9)*AS$7)+(((IF($A$8=Nutrients!$B$79,Nutrients!$DX$79,(IF($A$8=Nutrients!$B$77,Nutrients!$DX$77,Nutrients!$DX$78)))))*AS$8))","v":201.14830704012817},{"$f":"(SUMPRODUCT(AT$9:AT$229,Nutrients!$DX$8:$DX$228)+(IF($A$7=Nutrients!$B$8,Nutrients!$DX$8,Nutrients!$DX$9)*AT$7)+(((IF($A$8=Nutrients!$B$79,Nutrients!$DX$79,(IF($A$8=Nutrients!$B$77,Nutrients!$DX$77,Nutrients!$DX$78)))))*AT$8))","v":193.23230692506709},{"$f":"(SUMPRODUCT(AU$9:AU$229,Nutrients!$DX$8:$DX$228)+(IF($A$7=Nutrients!$B$8,Nutrients!$DX$8,Nutrients!$DX$9)*AU$7)+(((IF($A$8=Nutrients!$B$79,Nutrients!$DX$79,(IF($A$8=Nutrients!$B$77,Nutrients!$DX$77,Nutrients!$DX$78)))))*AU$8))","v":187.50844694573112},{"$f":"(SUMPRODUCT(AV$9:AV$229,Nutrients!$DX$8:$DX$228)+(IF($A$7=Nutrients!$B$8,Nutrients!$DX$8,Nutrients!$DX$9)*AV$7)+(((IF($A$8=Nutrients!$B$79,Nutrients!$DX$79,(IF($A$8=Nutrients!$B$77,Nutrients!$DX$77,Nutrients!$DX$78)))))*AV$8))","v":183.18628381435167},{"$f":"(SUMPRODUCT(AW$9:AW$229,Nutrients!$DX$8:$DX$228)+(IF($A$7=Nutrients!$B$8,Nutrients!$DX$8,Nutrients!$DX$9)*AW$7)+(((IF($A$8=Nutrients!$B$79,Nutrients!$DX$79,(IF($A$8=Nutrients!$B$77,Nutrients!$DX$77,Nutrients!$DX$78)))))*AW$8))","v":187.92809138061614}]
["Cost with processing",{"$f":"IF(B$5=\"\",\"\",B263+Nutrients!$DV$5)","v":233.26773173804173},{"$f":"IF(C$5=\"\",\"\",C263+Nutrients!$DV$5)","v":223.54330280629557},{"$f":"IF(D$5=\"\",\"\",D263+Nutrients!$DV$5)","v":214.16843206547495},{"$f":"IF(E$5=\"\",\"\",E263+Nutrients!$DV$5)","v":207.22426532952818},{"$f":"IF(F$5=\"\",\"\",F263+Nutrients!$DV$5)","v":202.24981497998971},{"$f":"IF(G$5=\"\",\"\",G263+Nutrients!$DV$5)","v":199.92809138061614},null,{"$f":"IF(I$5=\"\",\"\",I263+Nutrients!$DV$5)","v":231.16586470791503},{"$f":"IF(J$5=\"\",\"\",J263+Nutrients!$DV$5)","v":221.5993238555823},{"$f":"IF(K$5=\"\",\"\",K263+Nutrients!$DV$5)","v":212.48706519759159},{"$f":"IF(L$5=\"\",\"\",L263+Nutrients!$DV$5)","v":205.50429475572273},{"$f":"IF(M$5=\"\",\"\",M263+Nutrients!$DV$5)","v":200.42069387728165},{"$f":"IF(N$5=\"\",\"\",N263+Nutrients!$DV$5)","v":199.92809138061614},null,{"$f":"IF(P$5=\"\",\"\",P263+Nutrients!$DV$5)","v":229.25484171837127},{"$f":"IF(Q$5=\"\",\"\",Q263+Nutrients!$DV$5)","v":219.90803566415372},{"$f":"IF(R$5=\"\",\"\",R263+Nutrients!$DV$5)","v":210.84038391053457},{"$f":"IF(S$5=\"\",\"\",S263+Nutrients!$DV$5)","v":203.90183959063353},{"$f":"IF(T$5=\"\",\"\",T263+Nutrients!$DV$5)","v":198.87940879485626},{"$f":"IF(U$5=\"\",\"\",U263+Nutrients!$DV$5)","v":199.92809138061614},null,{"$f":"IF(W$5=\"\",\"\",W263+Nutrients!$DV$5)","v":227.40844963058765},{"$f":"IF(X$5=\"\",\"\",X263+Nutrients!$DV$5)","v":218.17685226298042},{"$f":"IF(Y$5=\"\",\"\",Y263+Nutrients!$DV$5)","v":209.19712300052555},{"$f":"IF(Z$5=\"\",\"\",Z263+Nutrients!$DV$5)","v":202.46749361891673},{"$f":"IF(AA$5=\"\",\"\",AA263+Nutrients!$DV$5)","v":197.76804739707728},{"$f":"IF(AB$5=\"\",\"\",AB263+Nutrients!$DV$5)","v":199.92809138061614},null,{"$f":"IF(AD$5=\"\",\"\",AD263+Nutrients!$DV$5)","v":225.68286818105867},{"$f":"IF(AE$5=\"\",\"\",AE263+Nutrients!$DV$5)","v":216.4829319818146},{"$f":"IF(AF$5=\"\",\"\",AF263+Nutrients!$DV$5)","v":207.74599046763265},{"$f":"IF(AG$5=\"\",\"\",AG263+Nutrients!$DV$5)","v":201.37134308718575},{"$f":"IF(AH$5=\"\",\"\",AH263+Nutrients!$DV$5)","v":196.88434812784908},{"$f":"IF(AI$5=\"\",\"\",AI263+Nutrients!$DV$5)","v":199.92809138061614},null,{"$f":"IF(AK$5=\"\",\"\",AK263+Nutrients!$DV$5)","v":223.98308047970517},{"$f":"IF(AL$5=\"\",\"\",AL263+Nutrients!$DV$5)","v":214.69639773944195},{"$f":"IF(AM$5=\"\",\"\",AM263+Nutrients!$DV$5)","v":206.40419016380727},{"$f":"IF(AN$5=\"\",\"\",AN263+Nutrients!$DV$5)","v":200.38337359082476},{"$f":"IF(AO$5=\"\",\"\",AO263+Nutrients!$DV$5)","v":196.0351250466604},{"$f":"IF(AP$5=\"\",\"\",AP263+Nutrients!$DV$5)","v":199.92809138061614},null,{"$f":"IF(AR$5=\"\",\"\",AR263+Nutrients!$DV$5)","v":222.39759928430823},{"$f":"IF(AS$5=\"\",\"\",AS263+Nutrients!$DV$5)","v":213.14830704012817},{"$f":"IF(AT$5=\"\",\"\",AT263+Nutrients!$DV$5)","v":205.23230692506709},{"$f":"IF(AU$5=\"\",\"\",AU263+Nutrients!$DV$5)","v":199.50844694573112},{"$f":"IF(AV$5=\"\",\"\",AV263+Nutrients!$DV$5)","v":195.18628381435167},{"$f":"IF(AW$5=\"\",\"\",AW263+Nutrients!$DV$5)","v":199.92809138061614}]
["Feed budget, lb/pig- adjusted for gain ",64.670241098095005,73.763156713761802,95.43493291654417,107.31139412884363,119.18785534114284,148.28241980161249,{"$f":"SUM(B265:G265)","v":608.65},{"$f":"($B$265*$B$250/I250)-($B$265*$B$250/I250)/(I6-I5)*I268","v":64.747437580907231},{"$f":"($C$265*$C$250/J250)-($C$265*$C$250/J250)/(J6-J5)*J268","v":73.921130002190367},{"$f":"($D$265*$D$250/K250)-($D$265*$D$250/K250)/(K6-K5)*K268","v":95.596567443474342},{"$f":"($E$265*$E$250/L250)-($E$265*$E$250/L250)/(L6-L5)*L268","v":107.30285759887951},{"$f":"($F$265*$F$250/M250)-($F$265*$F$250/M250)/(M6-M5)*M268","v":118.76552119687163},{"$f":"($G$265*$G$250/N250)-($G$265*$G$250/N250)/(N6-N5)*N268","v":148.28241980161249},{"$f":"SUM(I265:N265)","v":608.61593362393558},{"$f":"($B$265*$B$250/P250)-($B$265*$B$250/P250)/(P6-P5)*P268","v":64.939905694473097},{"$f":"($C$265*$C$250/Q250)-($C$265*$C$250/Q250)/(Q6-Q5)*Q268","v":74.178310748408308},{"$f":"($D$265*$D$250/R250)-($D$265*$D$250/R250)/(R6-R5)*R268","v":95.865865448278157},{"$f":"($E$265*$E$250/S250)-($E$265*$E$250/S250)/(S6-S5)*S268","v":107.33979946917425},{"$f":"($F$265*$F$250/T250)-($F$265*$F$250/T250)/(T6-T5)*T268","v":118.4116407499326},{"$f":"($G$265*$G$250/U250)-($G$265*$G$250/U250)/(U6-U5)*U268","v":148.28241980161249},{"$f":"SUM(P265:U265)","v":609.01794191187889},{"$f":"($B$265*$B$250/W250)-($B$265*$B$250/W250)/(W6-W5)*W268","v":65.203752307387106},{"$f":"($C$265*$C$250/X250)-($C$265*$C$250/X250)/(X6-X5)*X268","v":74.495038080297178},{"$f":"($D$265*$D$250/Y250)-($D$265*$D$250/Y250)/(Y6-Y5)*Y268","v":96.148147548251586},{"$f":"($E$265*$E$250/Z250)-($E$265*$E$250/Z250)/(Z6-Z5)*Z268","v":107.44665924111253},{"$f":"($F$265*$F$250/AA250)-($F$265*$F$250/AA250)/(AA6-AA5)*AA268","v":118.0883719295216},{"$f":"($G$265*$G$250/AB250)-($G$265*$G$250/AB250)/(AB6-AB5)*AB268","v":148.28241980161249},{"$f":"SUM(W265:AB265)","v":609.66438890818245},{"$f":"($B$265*$B$250/AD250)-($B$265*$B$250/AD250)/(AD6-AD5)*AD268","v":65.54053689313838},{"$f":"($C$265*$C$250/AE250)-($C$265*$C$250/AE250)/(AE6-AE5)*AE268","v":74.846789124193165},{"$f":"($D$265*$D$250/AF250)-($D$265*$D$250/AF250)/(AF6-AF5)*AF268","v":96.509960473562387},{"$f":"($E$265*$E$250/AG250)-($E$265*$E$250/AG250)/(AG6-AG5)*AG268","v":107.60459991070412},{"$f":"($F$265*$F$250/AH250)-($F$265*$F$250/AH250)/(AH6-AH5)*AH268","v":117.8573706667184},{"$f":"($G$265*$G$250/AI250)-($G$265*$G$250/AI250)/(AI6-AI5)*AI268","v":148.28241980161249},{"$f":"SUM(AD265:AI265)","v":610.64167686992892},{"$f":"($B$265*$B$250/AK250)-($B$265*$B$250/AK250)/(AK6-AK5)*AK268","v":65.955811176786028},{"$f":"($C$265*$C$250/AL250)-($C$265*$C$250/AL250)/(AL6-AL5)*AL268","v":75.276510448246839},{"$f":"($D$265*$D$250/AM250)-($D$265*$D$250/AM250)/(AM6-AM5)*AM268","v":96.945703260221052},{"$f":"($E$265*$E$250/AN250)-($E$265*$E$250/AN250)/(AN6-AN5)*AN268","v":107.86348337217572},{"$f":"($F$265*$F$250/AO250)-($F$265*$F$250/AO250)/(AO6-AO5)*AO268","v":117.70326602306585},{"$f":"($G$265*$G$250/AP250)-($G$265*$G$250/AP250)/(AP6-AP5)*AP268","v":148.28241980161249},{"$f":"SUM(AK265:AP265)","v":612.02719408210805},{"$f":"($B$265*$B$250/AR250)-($B$265*$B$250/AR250)/(AR6-AR5)*AR268","v":66.456208463197754},{"$f":"($C$265*$C$250/AS250)-($C$265*$C$250/AS250)/(AS6-AS5)*AS268","v":75.77972939142488},{"$f":"($D$265*$D$250/AT250)-($D$265*$D$250/AT250)/(AT6-AT5)*AT268","v":97.459494277371164},{"$f":"($E$265*$E$250/AU250)-($E$265*$E$250/AU250)/(AU6-AU5)*AU268","v":108.22352211185532},{"$f":"($F$265*$F$250/AV250)-($F$265*$F$250/AV250)/(AV6-AV5)*AV268","v":117.61381298773611},{"$f":"($G$265*$G$250/AW250)-($G$265*$G$250/AW250)/(AW6-AW5)*AW268","v":148.28241980161249},{"$f":"SUM(AR265:AW265)","v":613.81518703319773}]
["Feed cost, $/pig",{"$f":"IF(B$265=\"\",\"\",B265*B264/2000)","v":7.5427402259524534},8.244629838606345,10.219574973505026,11.118762404918533,12.052860845303957,14.822910588117834,{"$f":"SUM(B266:G266)","v":64.00147887640415},{"$f":"IF(I$265=\"\",\"\",I265*I264/2000)","v":7.4836986980060871},8.1904362135629913,10.156517029513747,11.025599038065739,11.901534083487007,14.822910588117834,{"$f":"SUM(I266:N266)","v":63.580695650753412},{"$f":"IF(P$265=\"\",\"\",P265*P264/2000)","v":7.4438939005961942},8.1562033027838243,10.10619793751531,10.943391286527168,11.774818553387753,14.822910588117834,{"$f":"SUM(P266:U266)","v":63.247415568928083},{"$f":"IF(W$265=\"\",\"\",W265*W264/2000)","v":7.4139421111598764},8.1265464587850484,10.056957924462132,10.877227897136937,11.677053368400658,14.822910588117834,{"$f":"SUM(W266:AB266)","v":62.974638348062491},{"$f":"IF(AD$265=\"\",\"\",AD265*AD264/2000)","v":7.39568817408498},8.1015261795149645,10.024778664286149,10.834241403188878,11.602135797889567,14.822910588117834,{"$f":"SUM(AD266:AI266)","v":62.781280807082375},{"$f":"IF(AK$265=\"\",\"\",AK265*AK264/2000)","v":7.3864928814571513},8.0807978138170302,10.004999685643348,10.8070243426872,11.536987236616023,14.822910588117834,{"$f":"SUM(AK266:AP266)","v":62.639212548338584},{"$f":"IF(AR$265=\"\",\"\",AR265*AR264/2000)","v":7.3898506098763539},8.0761605138706276,10.000918421147629,10.795753409766624,11.478301541156171,14.822910588117834,{"$f":"SUM(AR266:AW266)","v":62.563895083935243}]
["ADG, lb",{"$f":"B342*0.00220462","v":1.6321378734194845},1.9015014314603687,2.0832697080984475,2.1697909739378729,2.165030725567227,2.0548911695876653,null,{"$f":"I342*0.00220462","v":1.6203560357453834},1.8894452465992644,2.0694180136965357,2.151433970194125,2.1393008156269522,2.0548911695876653,null,{"$f":"P342*0.00220462","v":1.6112741707755625},1.8798895016486989,2.0576205051596923,2.1340634360538431,2.1149979476689058,2.0548911695876653,null,{"$f":"W342*0.00220462","v":1.6038952753081919},1.8717190864343911,2.0461589361478998,2.1180971601365686,2.0915440386856172,2.0548911695876653,null,{"$f":"AD342*0.00220462","v":1.598230057086039},1.8644343752145927,2.0363163242013318,2.1032298079835123,2.0683594611675247,2.0548911695876653,null,{"$f":"AK342*0.00220462","v":1.5943034969604615},1.8588496824230634,2.0279356303026748,2.089090909318001,2.0460704779280126,2.0548911695876653,null,{"$f":"AR342*0.00220462","v":1.5920363862934326},1.8549815101464444,2.0210391858127648,2.0759585304399599,2.0249451840920929,2.0548911695876653]
["Change in gain, lb",null,null,null,null,null,null,null,{"$f":"($B$6-$B$5)-(($B$6-$B$5)/$B$267)*I267","v":0.25265287039114526},{"$f":"($C$6-$C$5)-(($C$6-$C$5)/$C$267)*J267","v":0.22191225478835719},{"$f":"($D$6-$D$5)-(($D$6-$D$5)/$D$267)*K267","v":0.26596065498509347},{"$f":"($E$6-$E$5)-(($E$6-$E$5)/$E$267)*L267","v":0.33841054671607651},{"$f":"($F$6-$F$5)-(($F$6-$F$5)/$F$267)*M267","v":0.47537265197072287},{"$f":"($G$6-$G$5)-(($G$6-$G$5)/$G$267)*N267","v":0},null,{"$f":"($B$6-$B$5)-(($B$6-$B$5)/$B$267)*P267","v":0.44740680577883296},{"$f":"($C$6-$C$5)-(($C$6-$C$5)/$C$267)*Q267","v":0.3978001440827228},{"$f":"($D$6-$D$5)-(($D$6-$D$5)/$D$267)*R267","v":0.49247973681078605},{"$f":"($E$6-$E$5)-(($E$6-$E$5)/$E$267)*S267","v":0.65863557021236119},{"$f":"($F$6-$F$5)-(($F$6-$F$5)/$F$267)*T267","v":0.92438000638929196},{"$f":"($G$6-$G$5)-(($G$6-$G$5)/$G$267)*U267","v":0},null,{"$f":"($B$6-$B$5)-(($B$6-$B$5)/$B$267)*W267","v":0.6056418088162232},{"$f":"($C$6-$C$5)-(($C$6-$C$5)/$C$267)*X267","v":0.54818895145856317},{"$f":"($D$6-$D$5)-(($D$6-$D$5)/$D$267)*Y267","v":0.71254858276456901},{"$f":"($E$6-$E$5)-(($E$6-$E$5)/$E$267)*Z267","v":0.95297315588859988},{"$f":"($F$6-$F$5)-(($F$6-$F$5)/$F$267)*AA267","v":1.3577024291395503},{"$f":"($G$6-$G$5)-(($G$6-$G$5)/$G$267)*AB267","v":0},null,{"$f":"($B$6-$B$5)-(($B$6-$B$5)/$B$267)*AD267","v":0.72712825981066231},{"$f":"($C$6-$C$5)-(($C$6-$C$5)/$C$267)*AE267","v":0.68227504178410925},{"$f":"($D$6-$D$5)-(($D$6-$D$5)/$D$267)*AF267","v":0.90153250372893012},{"$f":"($E$6-$E$5)-(($E$6-$E$5)/$E$267)*AG267","v":1.2270521308983291},{"$f":"($F$6-$F$5)-(($F$6-$F$5)/$F$267)*AH267","v":1.7860488215357719},{"$f":"($G$6-$G$5)-(($G$6-$G$5)/$G$267)*AI267","v":0},null,{"$f":"($B$6-$B$5)-(($B$6-$B$5)/$B$267)*AK267","v":0.81133046272093878},{"$f":"($C$6-$C$5)-(($C$6-$C$5)/$C$267)*AL267","v":0.78506973048092732},{"$f":"($D$6-$D$5)-(($D$6-$D$5)/$D$267)*AM267","v":1.0624467409220912},{"$f":"($E$6-$E$5)-(($E$6-$E$5)/$E$267)*AN267","v":1.4877020982977456},{"$f":"($F$6-$F$5)-(($F$6-$F$5)/$F$267)*AO267","v":2.197848672250089},{"$f":"($G$6-$G$5)-(($G$6-$G$5)/$G$267)*AP267","v":0},null,{"$f":"($B$6-$B$5)-(($B$6-$B$5)/$B$267)*AR267","v":0.8599469887131761},{"$f":"($C$6-$C$5)-(($C$6-$C$5)/$C$267)*AS267","v":0.85626927177061418},{"$f":"($D$6-$D$5)-(($D$6-$D$5)/$D$267)*AT267","v":1.194862519121159},{"$f":"($E$6-$E$5)-(($E$6-$E$5)/$E$267)*AU267","v":1.7297969182279402},{"$f":"($F$6-$F$5)-(($F$6-$F$5)/$F$267)*AV267","v":2.5881487929171456},{"$f":"($G$6-$G$5)-(($G$6-$G$5)/$G$267)*AW267","v":0}]
["Feed budget, lb/pig- adjusted for energy intake ",64.670241098095005,73.763156713761802,95.43493291654417,107.31139412884363,119.18785534114284,148.28241980161249,{"$f":"SUM(B269:G269)","v":608.65},{"$f":"($B$269*$B$250/I250)","v":65.21822534764722},{"$f":"($C$269*$C$250/J250)","v":74.392806442697022},{"$f":"($D$269*$D$250/K250)","v":96.236445143066518},{"$f":"($E$269*$E$250/L250)","v":108.21841391431678},{"$f":"($F$269*$F$250/M250)","v":120.19394404516085},{"$f":"($G$269*$G$250/N250)","v":148.28241980161249},{"$f":"SUM(I269:N269)","v":612.5422546945008},{"$f":"($B$269*$B$250/P250)","v":65.780784861226991},{"$f":"($C$269*$C$250/Q250)","v":75.031093023130751},{"$f":"($D$269*$D$250/R250)","v":97.060878343812774},{"$f":"($E$269*$E$250/S250)","v":109.13683449972166},{"$f":"($F$269*$F$250/T250)","v":121.21280815945514},{"$f":"($G$269*$G$250/U250)","v":148.28241980161249},{"$f":"SUM(P269:U269)","v":616.50481868895974},{"$f":"($B$269*$B$250/W250)","v":66.351909172810849},{"$f":"($C$269*$C$250/X250)","v":75.680385252803305},{"$f":"($D$269*$D$250/Y250)","v":97.891967108939355},{"$f":"($E$269*$E$250/Z250)","v":110.06897879326382},{"$f":"($F$269*$F$250/AA250)","v":122.23742308590904},{"$f":"($G$269*$G$250/AB250)","v":148.28241980161249},{"$f":"SUM(W269:AB269)","v":620.51308321533884},{"$f":"($B$269*$B$250/AD250)","v":66.931035387090986},{"$f":"($C$269*$C$250/AE250)","v":76.334827630221511},{"$f":"($D$269*$D$250/AF250)","v":98.735287241390537},{"$f":"($E$269*$E$250/AG250)","v":111.00997558811328},{"$f":"($F$269*$F$250/AH250)","v":123.365804406154},{"$f":"($G$269*$G$250/AI250)","v":148.28241980161249},{"$f":"SUM(AD269:AI269)","v":624.65935005458277},{"$f":"($B$269*$B$250/AK250)","v":67.521006884178135},{"$f":"($C$269*$C$250/AL250)","v":77.003747923338167},{"$f":"($D$269*$D$250/AM250)","v":99.590955410244334},{"$f":"($E$269*$E$250/AN250)","v":112.03017139873975},{"$f":"($F$269*$F$250/AO250)","v":124.54663228297476},{"$f":"($G$269*$G$250/AP250)","v":148.28241980161249},{"$f":"SUM(AK269:AP269)","v":628.97493370108759},{"$f":"($B$269*$B$250/AR250)","v":68.130160648636021},{"$f":"($C$269*$C$250/AS250)","v":77.680161837353282},{"$f":"($D$269*$D$250/AT250)","v":100.46040354877665},{"$f":"($E$269*$E$250/AU250)","v":113.11517932697016},{"$f":"($F$269*$F$250/AV250)","v":125.75032690760764},{"$f":"($G$269*$G$250/AW250)","v":148.28241980161249},{"$f":"SUM(AR269:AW269)","v":633.41865207095634}]
["Feed cost, $/pig- adjusted for energy intake",{"$f":"B269*B264/2000","v":7.5427402259524534},8.244629838606345,10.219574973505026,11.118762404918533,12.052860845303957,14.822910588117834,null,{"$f":"I269*I264/2000","v":7.5381137286022657},8.242697803710433,10.224499896749609,11.119674415522281,12.04467683268915,14.822910588117834,null,{"$f":"P269*P264/2000","v":7.540281710735413},8.2499701402255354,10.23217642635159,11.126600660795882,12.053365812558383,14.822910588117834,null,{"$f":"W269*W264/2000","v":7.5444923975092415},8.255854116253154,10.239358942026094,11.142695130732912,12.087328241275324,14.822910588117834,null,{"$f":"AD269*AD264/2000","v":7.5525940182433144},8.2625936488583918,10.255930021034445,11.177113940127038,12.144397990886681,14.822910588117834,null,{"$f":"AK269*AK264/2000","v":7.5617815595047988},8.266213645788369,10.277995249545661,11.2244918444189,12.207757316866694,14.822910588117834,null,{"$f":"AR269*AR264/2000","v":7.5759920835554491},8.2786974931175124,10.308860187469314,11.283716876755845,12.272369498767905,14.822910588117834]
[]
["Targets"]
["- SID Ile:Lys",0.56000000000000005,0.56000000000000005,0.56000000000000005,0.56000000000000005,0.56000000000000005,0.56000000000000005,null,0.56000000000000005,0.56000000000000005,0.56000000000000005,0.56000000000000005,0.56000000000000005,0.56000000000000005,null,0.56000000000000005,0.56000000000000005,0.56000000000000005,0.56000000000000005,0.56000000000000005,0.56000000000000005,null,0.56000000000000005,0.56000000000000005,0.56000000000000005,0.56000000000000005,0.56000000000000005,0.56000000000000005,null,0.56000000000000005,0.56000000000000005,0.56000000000000005,0.56000000000000005,0.56000000000000005,0.56000000000000005,null,0.56000000000000005,0.56000000000000005,0.56000000000000005,0.56000000000000005,0.56000000000000005,0.56000000000000005,null,0.56000000000000005,0.56000000000000005,0.56000000000000005,0.56000000000000005,0.56000000000000005,0.56000000000000005]
["- SID Leu:Lys"]
["- SID Met:Lys",{"$f":" 0.000000416*((B5+B6)/2)^2 - 0.000036654*((B5+B6)/2) + 0.280606061","v":0.28002731600000003},0.281219626,0.28362810100000002,0.28748674100000005,0.29267658100000005,0.29964938600000002,null,{"$f":" 0.000000416*((I5+I6)/2)^2 - 0.000036654*((I5+I6)/2) + 0.280606061","v":0.28002731600000003},0.281219626,0.28362810100000002,0.28748674100000005,0.29267658100000005,0.29964938600000002,null,{"$f":" 0.000000416*((P5+P6)/2)^2 - 0.000036654*((P5+P6)/2) + 0.280606061","v":0.28002731600000003},0.281219626,0.28362810100000002,0.28748674100000005,0.29267658100000005,0.29964938600000002,null,{"$f":" 0.000000416*((W5+W6)/2)^2 - 0.000036654*((W5+W6)/2) + 0.280606061","v":0.28002731600000003},0.281219626,0.28362810100000002,0.28748674100000005,0.29267658100000005,0.29964938600000002,null,{"$f":" 0.000000416*((AD5+AD6)/2)^2 - 0.000036654*((AD5+AD6)/2) + 0.280606061","v":0.28002731600000003},0.281219626,0.28362810100000002,0.28748674100000005,0.29267658100000005,0.29964938600000002,null,{"$f":" 0.000000416*((AK5+AK6)/2)^2 - 0.000036654*((AK5+AK6)/2) + 0.280606061","v":0.28002731600000003},0.281219626,0.28362810100000002,0.28748674100000005,0.29267658100000005,0.29964938600000002,null,{"$f":" 0.000000416*((AR5+AR6)/2)^2 - 0.000036654*((AR5+AR6)/2) + 0.280606061","v":0.28002731600000003},0.281219626,0.28362810100000002,0.28748674100000005,0.29267658100000005,0.29964938600000002]
["- SID Met & Cys:Lys",0.55900000000000005,0.55900000000000005,0.55900000000000005,0.56899999999999995,0.56899999999999995,0.57899999999999996,null,0.55900000000000005,0.55900000000000005,0.55900000000000005,0.56899999999999995,0.56899999999999995,0.57899999999999996,null,0.55900000000000005,0.55900000000000005,0.55900000000000005,0.56899999999999995,0.56899999999999995,0.57899999999999996,null,0.55900000000000005,0.55900000000000005,0.55900000000000005,0.56899999999999995,0.56899999999999995,0.57899999999999996,null,0.55900000000000005,0.55900000000000005,0.55900000000000005,0.56899999999999995,0.56899999999999995,0.57899999999999996,null,0.55900000000000005,0.55900000000000005,0.55900000000000005,0.56899999999999995,0.56899999999999995,0.57899999999999996,null,0.55900000000000005,0.55900000000000005,0.55900000000000005,0.56899999999999995,0.56899999999999995,0.57899999999999996]
["- SID Thr:Lys",0.61899999999999999,0.61899999999999999,0.61899999999999999,0.629,0.629,0.63900000000000001,null,0.61899999999999999,0.61899999999999999,0.61899999999999999,0.629,0.629,0.63900000000000001,null,0.61899999999999999,0.61899999999999999,0.61899999999999999,0.629,0.629,0.63900000000000001,null,0.61899999999999999,0.61899999999999999,0.61899999999999999,0.629,0.629,0.63900000000000001,null,0.61899999999999999,0.61899999999999999,0.61899999999999999,0.629,0.629,0.63900000000000001,null,0.61899999999999999,0.61899999999999999,0.61899999999999999,0.629,0.629,0.63900000000000001,null,0.61899999999999999,0.61899999999999999,0.61899999999999999,0.629,0.629,0.63900000000000001]
["- SID Trp:Lys",0.189,0.189,0.189,0.189,0.189,0.189,null,0.189,0.189,0.189,0.189,0.189,0.189,null,0.189,0.189,0.189,0.189,0.189,0.189,null,0.189,0.189,0.189,0.189,0.189,0.189,null,0.189,0.189,0.189,0.189,0.189,0.189,null,0.189,0.189,0.189,0.189,0.189,0.189,null,0.189,0.189,0.189,0.189,0.189,0.189]
["- SID Val:Lys",0.67900000000000005,0.67900000000000005,0.67900000000000005,0.67900000000000005,0.67900000000000005,0.67900000000000005,null,0.67900000000000005,0.67900000000000005,0.67900000000000005,0.67900000000000005,0.67900000000000005,0.67900000000000005,null,0.67900000000000005,0.67900000000000005,0.67900000000000005,0.67900000000000005,0.67900000000000005,0.67900000000000005,null,0.67900000000000005,0.67900000000000005,0.67900000000000005,0.67900000000000005,0.67900000000000005,0.67900000000000005,null,0.67900000000000005,0.67900000000000005,0.67900000000000005,0.67900000000000005,0.67900000000000005,0.67900000000000005,null,0.67900000000000005,0.67900000000000005,0.67900000000000005,0.67900000000000005,0.67900000000000005,0.67900000000000005,null,0.67900000000000005,0.67900000000000005,0.67900000000000005,0.67900000000000005,0.67900000000000005,0.67900000000000005]
["- SID His:Lys",0.31,0.31,0.31,0.31,0.31,0.31,null,0.31,0.31,0.31,0.31,0.31,0.31,null,0.31,0.31,0.31,0.31,0.31,0.31,null,0.31,0.31,0.31,0.31,0.31,0.31,null,0.31,0.31,0.31,0.31,0.31,0.31,null,0.31,0.31,0.31,0.31,0.31,0.31,null,0.31,0.31,0.31,0.31,0.31,0.31]
["- Avail P:ME, g/mcal (terminal)",{"$f":"IF(AVERAGE(B5:B6)<51,0.000025*((B6+B5)/2)^2 - 0.01005*((B6+B5)/2) + 1.5955,(0.00000649518*((B5+B6)/2)^2 - 0.00338103746*((B5+B6)/2) + 1.049852))","v":0.85122563532500006},0.77153564522499996,0.70381228360000003,0.65170908920000004,0.62039047080000009,0.60988816362500009,null,{"$f":"IF(AVERAGE(I5:I6)<51,0.000025*((I6+I5)/2)^2 - 0.01005*((I6+I5)/2) + 1.5955,(0.00000649518*((I5+I6)/2)^2 - 0.00338103746*((I5+I6)/2) + 1.049852))","v":0.85122563532500006},0.77153564522499996,0.70381228360000003,0.65170908920000004,0.62039047080000009,0.60988816362500009,null,{"$f":"IF(AVERAGE(P5:P6)<51,0.000025*((P6+P5)/2)^2 - 0.01005*((P6+P5)/2) + 1.5955,(0.00000649518*((P5+P6)/2)^2 - 0.00338103746*((P5+P6)/2) + 1.049852))","v":0.85122563532500006},0.77153564522499996,0.70381228360000003,0.65170908920000004,0.62039047080000009,0.60988816362500009,null,{"$f":"IF(AVERAGE(W5:W6)<51,0.000025*((W6+W5)/2)^2 - 0.01005*((W6+W5)/2) + 1.5955,(0.00000649518*((W5+W6)/2)^2 - 0.00338103746*((W5+W6)/2) + 1.049852))","v":0.85122563532500006},0.77153564522499996,0.70381228360000003,0.65170908920000004,0.62039047080000009,0.60988816362500009,null,{"$f":"IF(AVERAGE(AD5:AD6)<51,0.000025*((AD6+AD5)/2)^2 - 0.01005*((AD6+AD5)/2) + 1.5955,(0.00000649518*((AD5+AD6)/2)^2 - 0.00338103746*((AD5+AD6)/2) + 1.049852))","v":0.85122563532500006},0.77153564522499996,0.70381228360000003,0.65170908920000004,0.62039047080000009,0.60988816362500009,null,{"$f":"IF(AVERAGE(AK5:AK6)<51,0.000025*((AK6+AK5)/2)^2 - 0.01005*((AK6+AK5)/2) + 1.5955,(0.00000649518*((AK5+AK6)/2)^2 - 0.00338103746*((AK5+AK6)/2) + 1.049852))","v":0.85122563532500006},0.77153564522499996,0.70381228360000003,0.65170908920000004,0.62039047080000009,0.60988816362500009,null,{"$f":"IF(AVERAGE(AR5:AR6)<51,0.000025*((AR6+AR5)/2)^2 - 0.01005*((AR6+AR5)/2) + 1.5955,(0.00000649518*((AR5+AR6)/2)^2 - 0.00338103746*((AR5+AR6)/2) + 1.049852))","v":0.85122563532500006},0.77153564522499996,0.70381228360000003,0.65170908920000004,0.62039047080000009,0.60988816362500009]
["- Avail P:ME, g/mcal (Replacements)",{"$f":"IF(AVERAGE(B5:B6)<51,0.000025*((B6+B5)/2)^2 - 0.01005*((B6+B5)/2) + 1.5955,0.00000649518*((B6+B5)/2)^2 - 0.00338103746*((B6+B5)/2) + 1.3529)","v":1.154273635325},1.0745836452249999,1.0068602836,0.95475708920000002,0.92343847080000008,0.91293616362500007,null,{"$f":"IF(AVERAGE(I5:I6)<51,0.000025*((I6+I5)/2)^2 - 0.01005*((I6+I5)/2) + 1.5955,0.00000649518*((I6+I5)/2)^2 - 0.00338103746*((I6+I5)/2) + 1.3529)","v":1.154273635325},1.0745836452249999,1.0068602836,0.95475708920000002,0.92343847080000008,0.91293616362500007,null,{"$f":"IF(AVERAGE(P5:P6)<51,0.000025*((P6+P5)/2)^2 - 0.01005*((P6+P5)/2) + 1.5955,0.00000649518*((P6+P5)/2)^2 - 0.00338103746*((P6+P5)/2) + 1.3529)","v":1.154273635325},1.0745836452249999,1.0068602836,0.95475708920000002,0.92343847080000008,0.91293616362500007,null,{"$f":"IF(AVERAGE(W5:W6)<51,0.000025*((W6+W5)/2)^2 - 0.01005*((W6+W5)/2) + 1.5955,0.00000649518*((W6+W5)/2)^2 - 0.00338103746*((W6+W5)/2) + 1.3529)","v":1.154273635325},1.0745836452249999,1.0068602836,0.95475708920000002,0.92343847080000008,0.91293616362500007,null,{"$f":"IF(AVERAGE(AD5:AD6)<51,0.000025*((AD6+AD5)/2)^2 - 0.01005*((AD6+AD5)/2) + 1.5955,0.00000649518*((AD6+AD5)/2)^2 - 0.00338103746*((AD6+AD5)/2) + 1.3529)","v":1.154273635325},1.0745836452249999,1.0068602836,0.95475708920000002,0.92343847080000008,0.91293616362500007,null,{"$f":"IF(AVERAGE(AK5:AK6)<51,0.000025*((AK6+AK5)/2)^2 - 0.01005*((AK6+AK5)/2) + 1.5955,0.00000649518*((AK6+AK5)/2)^2 - 0.00338103746*((AK6+AK5)/2) + 1.3529)","v":1.154273635325},1.0745836452249999,1.0068602836,0.95475708920000002,0.92343847080000008,0.91293616362500007,null,{"$f":"IF(AVERAGE(AR5:AR6)<51,0.000025*((AR6+AR5)/2)^2 - 0.01005*((AR6+AR5)/2) + 1.5955,0.00000649518*((AR6+AR5)/2)^2 - 0.00338103746*((AR6+AR5)/2) + 1.3529)","v":1.154273635325},1.0745836452249999,1.0068602836,0.95475708920000002,0.92343847080000008,0.91293616362500007]
["- Available P, % (Terminal)",{"$f":"B281*(B246*2.2046)/10000","v":0.28053008203811425},0.2550261869451555,0.23325719020912211,0.21659170668863326,0.20667416767087224,0.20336945171913379,null,{"$f":"I281*(I246*2.2046)/10000","v":0.28113278030051814},0.25555554291203364,0.23376978030995887,0.21705054555374728,0.2071049885242352,0.20336945171913379,null,{"$f":"P281*(P246*2.2046)/10000","v":0.28172991387720375},0.25610242775007264,0.23426773474629345,0.21751630370166244,0.20754747335708176,0.20336945171913379,null,{"$f":"W281*(W246*2.2046)/10000","v":0.2823321999420817},0.25664938116492275,0.23477393831158003,0.21798840934054362,0.20801070783275163,0.20336945171913379,null,{"$f":"AD281*(AD246*2.2046)/10000","v":0.28294186820372458},0.25720615720194312,0.23528751828620642,0.21847485222678009,0.20833314337933312,0.20336945171913379,null,{"$f":"AK281*(AK246*2.2046)/10000","v":0.2835520495941603},0.25775601803335307,0.23580772297886091,0.21884393777844466,0.20860529793574384,0.20336945171913379,null,{"$f":"AR281*(AR246*2.2046)/10000","v":0.28415058152752543},0.25831988092014646,0.23633285159340167,0.21912976900488021,0.20887742688329716,0.20336945171913379]
["- STTD P, % (Terminal)",{"$f":" -0.096629122*LN(AVERAGE(B5:B6)/2.2046) + 0.7201091526","v":0.38948473530861316},0.34911934963648045,0.31899235830889017,0.29470806575817415,0.27531743264453717,0.25825045546730907,null,{"$f":" -0.096629122*LN(AVERAGE(I5:I6)/2.2046) + 0.7201091526","v":0.38948473530861316},0.34911934963648045,0.31899235830889017,0.29470806575817415,0.27531743264453717,0.25825045546730907,null,{"$f":" -0.096629122*LN(AVERAGE(P5:P6)/2.2046) + 0.7201091526","v":0.38948473530861316},0.34911934963648045,0.31899235830889017,0.29470806575817415,0.27531743264453717,0.25825045546730907,null,{"$f":" -0.096629122*LN(AVERAGE(W5:W6)/2.2046) + 0.7201091526","v":0.38948473530861316},0.34911934963648045,0.31899235830889017,0.29470806575817415,0.27531743264453717,0.25825045546730907,null,{"$f":" -0.096629122*LN(AVERAGE(AD5:AD6)/2.2046) + 0.7201091526","v":0.38948473530861316},0.34911934963648045,0.31899235830889017,0.29470806575817415,0.27531743264453717,0.25825045546730907,null,{"$f":" -0.096629122*LN(AVERAGE(AK5:AK6)/2.2046) + 0.7201091526","v":0.38948473530861316},0.34911934963648045,0.31899235830889017,0.29470806575817415,0.27531743264453717,0.25825045546730907,null,{"$f":" -0.096629122*LN(AVERAGE(AR5:AR6)/2.2046) + 0.7201091526","v":0.38948473530861316},0.34911934963648045,0.31899235830889017,0.29470806575817415,0.27531743264453717,0.25825045546730907]
["- Ca:P, Minimum",1,1,1,1,1,1,null,1,1,1,1,1,1,null,1,1,1,1,1,1,null,1,1,1,1,1,1,null,1,1,1,1,1,1,null,1,1,1,1,1,1,null,1,1,1,1,1,1]
["- Ca:P, Maximum",1.5,1.5,1.5,1.5,1.5,1.5,null,1.5,1.5,1.5,1.5,1.5,1.5,null,1.5,1.5,1.5,1.5,1.5,1.5,null,1.5,1.5,1.5,1.5,1.5,1.5,null,1.5,1.5,1.5,1.5,1.5,1.5,null,1.5,1.5,1.5,1.5,1.5,1.5,null,1.5,1.5,1.5,1.5,1.5,1.5]
["NRC Ca, %",{"$f":"-0.12264*LN(AVERAGE(B5:B6)/2.2046) + 1.07262","v":0.65299724345031629},0.60176619843647083,0.56352954534532851,0.53270834386095811,0.50809808976948001,0.48643697935376851,null,{"$f":"-0.12264*LN(AVERAGE(I5:I6)/2.2046) + 1.07262","v":0.65299724345031629},0.60176619843647083,0.56352954534532851,0.53270834386095811,0.50809808976948001,0.48643697935376851,null,{"$f":"-0.12264*LN(AVERAGE(P5:P6)/2.2046) + 1.07262","v":0.65299724345031629},0.60176619843647083,0.56352954534532851,0.53270834386095811,0.50809808976948001,0.48643697935376851,null,{"$f":"-0.12264*LN(AVERAGE(W5:W6)/2.2046) + 1.07262","v":0.65299724345031629},0.60176619843647083,0.56352954534532851,0.53270834386095811,0.50809808976948001,0.48643697935376851,null,{"$f":"-0.12264*LN(AVERAGE(AD5:AD6)/2.2046) + 1.07262","v":0.65299724345031629},0.60176619843647083,0.56352954534532851,0.53270834386095811,0.50809808976948001,0.48643697935376851,null,{"$f":"-0.12264*LN(AVERAGE(AK5:AK6)/2.2046) + 1.07262","v":0.65299724345031629},0.60176619843647083,0.56352954534532851,0.53270834386095811,0.50809808976948001,0.48643697935376851,null,{"$f":"-0.12264*LN(AVERAGE(AR5:AR6)/2.2046) + 1.07262","v":0.65299724345031629},0.60176619843647083,0.56352954534532851,0.53270834386095811,0.50809808976948001,0.48643697935376851]
["NRC STTD P, %",0.4,0.36,0.32,0.28999999999999998,0.27,0.26,null,0.4,0.36,0.32,0.28999999999999998,0.27,0.26,null,0.4,0.36,0.32,0.28999999999999998,0.27,0.26,null,0.4,0.36,0.32,0.28999999999999998,0.27,0.26,null,0.4,0.36,0.32,0.28999999999999998,0.27,0.26,null,0.4,0.36,0.32,0.28999999999999998,0.27,0.26,null,0.4,0.36,0.32,0.28999999999999998,0.27,0.26]
["NRC Ca:STTD P",1.74,1.74,1.79,1.79,1.77,1.77,null,1.74,1.74,1.79,1.79,1.77,1.77,null,1.74,1.74,1.79,1.79,1.77,1.77,null,1.74,1.74,1.79,1.79,1.77,1.77,null,1.74,1.74,1.79,1.79,1.77,1.77,null,1.74,1.74,1.79,1.79,1.77,1.77,null,1.74,1.74,1.79,1.79,1.77,1.77]
["- Lysine:CP, Maximum",7.3,8.3000000000000007,9.3000000000000007,10.3,11.3,11.3,null,7.3,8.3000000000000007,9.3000000000000007,10.3,11.3,11.3,null,7.3,8.3000000000000007,9.3000000000000007,10.3,11.3,11.3,null,7.3,8.3000000000000007,9.3000000000000007,10.3,11.3,11.3,null,7.3,8.3000000000000007,9.3000000000000007,10.3,11.3,11.3,null,7.3,8.3000000000000007,9.3000000000000007,10.3,11.3,11.3,null,7.3,8.3000000000000007,9.3000000000000007,10.3,11.3,11.3]
[]
["Required SID Lys:ME Ratio",{"$f":"IF(AVERAGE(B5:B6)<15,-0.0525*((B5+B6)/2) + 5.0586,IF(AVERAGE(B5:B6)<50,(-0.007855*((B5+B6)/2) + 4.1),(0.000025*((B5+B6)/2)^2 - 0.016*((B5+B6)/2)+ 4.53)*0.87))","v":3.1005984375},2.7428109375000003,2.4186000000000001,2.1402000000000005,1.9314000000000002,1.7858109375,null,{"$f":"IF(AVERAGE(I5:I6)<15,-0.0525*((I5+I6)/2) + 5.0586,IF(AVERAGE(I5:I6)<50,(-0.007855*((I5+I6)/2) + 4.1),(0.000025*((I5+I6)/2)^2 - 0.016*((I5+I6)/2)+ 4.53)*0.87))","v":3.1005984375},2.7428109375000003,2.4186000000000001,2.1402000000000005,1.9314000000000002,1.7858109375,null,{"$f":"IF(AVERAGE(P5:P6)<15,-0.0525*((P5+P6)/2) + 5.0586,IF(AVERAGE(P5:P6)<50,(-0.007855*((P5+P6)/2) + 4.1),(0.000025*((P5+P6)/2)^2 - 0.016*((P5+P6)/2)+ 4.53)*0.87))","v":3.1005984375},2.7428109375000003,2.4186000000000001,2.1402000000000005,1.9314000000000002,1.7858109375,null,{"$f":"IF(AVERAGE(W5:W6)<15,-0.0525*((W5+W6)/2) + 5.0586,IF(AVERAGE(W5:W6)<50,(-0.007855*((W5+W6)/2) + 4.1),(0.000025*((W5+W6)/2)^2 - 0.016*((W5+W6)/2)+ 4.53)*0.87))","v":3.1005984375},2.7428109375000003,2.4186000000000001,2.1402000000000005,1.9314000000000002,1.7858109375,null,{"$f":"IF(AVERAGE(AD5:AD6)<15,-0.0525*((AD5+AD6)/2) + 5.0586,IF(AVERAGE(AD5:AD6)<50,(-0.007855*((AD5+AD6)/2) + 4.1),(0.000025*((AD5+AD6)/2)^2 - 0.016*((AD5+AD6)/2)+ 4.53)*0.87))","v":3.1005984375},2.7428109375000003,2.4186000000000001,2.1402000000000005,1.9314000000000002,1.7858109375,null,{"$f":"IF(AVERAGE(AK5:AK6)<15,-0.0525*((AK5+AK6)/2) + 5.0586,IF(AVERAGE(AK5:AK6)<50,(-0.007855*((AK5+AK6)/2) + 4.1),(0.000025*((AK5+AK6)/2)^2 - 0.016*((AK5+AK6)/2)+ 4.53)*0.87))","v":3.1005984375},2.7428109375000003,2.4186000000000001,2.1402000000000005,1.9314000000000002,1.7858109375,null,{"$f":"IF(AVERAGE(AR5:AR6)<15,-0.0525*((AR5+AR6)/2) + 5.0586,IF(AVERAGE(AR5:AR6)<50,(-0.007855*((AR5+AR6)/2) + 4.1),(0.000025*((AR5+AR6)/2)^2 - 0.016*((AR5+AR6)/2)+ 4.53)*0.87))","v":3.1005984375},2.7428109375000003,2.4186000000000001,2.1402000000000005,1.9314000000000002,1.7858109375]
["Calculated SID Lysine Required, %",{"$f":"IF(B292=\"\",\"\",B246*2.2046*B292/10000)","v":1.0218338099122541},0.90661866270365665,0.80157146072263108,0.71128296096658616,0.64341814748506398,0.5954852264631163,null,{"$f":"IF(I292=\"\",\"\",I246*2.2046*I292/10000)","v":1.0240291447484517},0.90850052434513762,0.80333293952425489,0.71278977889407957,0.64475937923401738,0.5954852264631163,null,{"$f":"IF(P292=\"\",\"\",P246*2.2046*P292/10000)","v":1.0262042101576878},0.91044470116264398,0.80504412392353608,0.71431931961199679,0.64613692329116235,0.5954852264631163,null,{"$f":"IF(W292=\"\",\"\",W246*2.2046*W292/10000)","v":1.0283980435600095},0.91238912177086662,0.80678365585773271,0.71586970536704853,0.64757906514926511,0.5954852264631163,null,{"$f":"IF(AD292=\"\",\"\",AD246*2.2046*AD292/10000)","v":1.030618766692627},0.91436846182278608,0.8085485362890289,0.71746717436414553,0.64858287169365725,0.5954852264631163,null,{"$f":"IF(AK292=\"\",\"\",AK246*2.2046*AK292/10000)","v":1.0328413589023342},0.91632321830335584,0.81033618208460745,0.71867924415228079,0.64943014342814054,0.5954852264631163,null,{"$f":"IF(AR292=\"\",\"\",AR246*2.2046*AR292/10000)","v":1.0350215178406599},0.91832775212200546,0.81214074858156005,0.71961790835223594,0.65027733543711308,0.5954852264631163]
[]
[]
["Other nutrients, calculated"]
["Other ingredients TID Lysine, %",{"$f":"SUMPRODUCT(B$9:B$229,Nutrients!$DA$8:$DA$228)/2000","v":0.35459999999999997},{"$f":"SUMPRODUCT(C$9:C$229,Nutrients!$DA$8:$DA$228)/2000","v":0.31519999999999998},{"$f":"SUMPRODUCT(D$9:D$229,Nutrients!$DA$8:$DA$228)/2000","v":0.27579999999999999},{"$f":"SUMPRODUCT(E$9:E$229,Nutrients!$DA$8:$DA$228)/2000","v":0.25692384707729665},{"$f":"SUMPRODUCT(F$9:F$229,Nutrients!$DA$8:$DA$228)/2000","v":0.25692384707729665},{"$f":"SUMPRODUCT(G$9:G$229,Nutrients!$DA$8:$DA$228)/2000","v":0.25692384707729665},null,{"$f":"SUMPRODUCT(I$9:I$229,Nutrients!$DA$8:$DA$228)/2000","v":0.39727200000000001},{"$f":"SUMPRODUCT(J$9:J$229,Nutrients!$DA$8:$DA$228)/2000","v":0.35787200000000002},{"$f":"SUMPRODUCT(K$9:K$229,Nutrients!$DA$8:$DA$228)/2000","v":0.31847199999999998},{"$f":"SUMPRODUCT(L$9:L$229,Nutrients!$DA$8:$DA$228)/2000","v":0.2995958470772967},{"$f":"SUMPRODUCT(M$9:M$229,Nutrients!$DA$8:$DA$228)/2000","v":0.2995958470772967},{"$f":"SUMPRODUCT(N$9:N$229,Nutrients!$DA$8:$DA$228)/2000","v":0.25692384707729665},null,{"$f":"SUMPRODUCT(P$9:P$229,Nutrients!$DA$8:$DA$228)/2000","v":0.43994399999999995},{"$f":"SUMPRODUCT(Q$9:Q$229,Nutrients!$DA$8:$DA$228)/2000","v":0.40054399999999996},{"$f":"SUMPRODUCT(R$9:R$229,Nutrients!$DA$8:$DA$228)/2000","v":0.36114400000000002},{"$f":"SUMPRODUCT(S$9:S$229,Nutrients!$DA$8:$DA$228)/2000","v":0.34226784707729668},{"$f":"SUMPRODUCT(T$9:T$229,Nutrients!$DA$8:$DA$228)/2000","v":0.34226784707729668},{"$f":"SUMPRODUCT(U$9:U$229,Nutrients!$DA$8:$DA$228)/2000","v":0.25692384707729665},null,{"$f":"SUMPRODUCT(W$9:W$229,Nutrients!$DA$8:$DA$228)/2000","v":0.48261599999999993},{"$f":"SUMPRODUCT(X$9:X$229,Nutrients!$DA$8:$DA$228)/2000","v":0.44321599999999994},{"$f":"SUMPRODUCT(Y$9:Y$229,Nutrients!$DA$8:$DA$228)/2000","v":0.40381599999999995},{"$f":"SUMPRODUCT(Z$9:Z$229,Nutrients!$DA$8:$DA$228)/2000","v":0.38493984707729662},{"$f":"SUMPRODUCT(AA$9:AA$229,Nutrients!$DA$8:$DA$228)/2000","v":0.38493984707729662},{"$f":"SUMPRODUCT(AB$9:AB$229,Nutrients!$DA$8:$DA$228)/2000","v":0.25692384707729665},null,{"$f":"SUMPRODUCT(AD$9:AD$229,Nutrients!$DA$8:$DA$228)/2000","v":0.52528799999999998},{"$f":"SUMPRODUCT(AE$9:AE$229,Nutrients!$DA$8:$DA$228)/2000","v":0.48588799999999999},{"$f":"SUMPRODUCT(AF$9:AF$229,Nutrients!$DA$8:$DA$228)/2000","v":0.44648799999999994},{"$f":"SUMPRODUCT(AG$9:AG$229,Nutrients!$DA$8:$DA$228)/2000","v":0.42761184707729666},{"$f":"SUMPRODUCT(AH$9:AH$229,Nutrients!$DA$8:$DA$228)/2000","v":0.42761184707729666},{"$f":"SUMPRODUCT(AI$9:AI$229,Nutrients!$DA$8:$DA$228)/2000","v":0.25692384707729665},null,{"$f":"SUMPRODUCT(AK$9:AK$229,Nutrients!$DA$8:$DA$228)/2000","v":0.56795999999999991},{"$f":"SUMPRODUCT(AL$9:AL$229,Nutrients!$DA$8:$DA$228)/2000","v":0.52855999999999992},{"$f":"SUMPRODUCT(AM$9:AM$229,Nutrients!$DA$8:$DA$228)/2000","v":0.48915999999999998},{"$f":"SUMPRODUCT(AN$9:AN$229,Nutrients!$DA$8:$DA$228)/2000","v":0.47028384707729665},{"$f":"SUMPRODUCT(AO$9:AO$229,Nutrients!$DA$8:$DA$228)/2000","v":0.47028384707729665},{"$f":"SUMPRODUCT(AP$9:AP$229,Nutrients!$DA$8:$DA$228)/2000","v":0.25692384707729665},null,{"$f":"SUMPRODUCT(AR$9:AR$229,Nutrients!$DA$8:$DA$228)/2000","v":0.61063199999999995},{"$f":"SUMPRODUCT(AS$9:AS$229,Nutrients!$DA$8:$DA$228)/2000","v":0.57123199999999996},{"$f":"SUMPRODUCT(AT$9:AT$229,Nutrients!$DA$8:$DA$228)/2000","v":0.53183199999999997},{"$f":"SUMPRODUCT(AU$9:AU$229,Nutrients!$DA$8:$DA$228)/2000","v":0.51295584707729669},{"$f":"SUMPRODUCT(AV$9:AV$229,Nutrients!$DA$8:$DA$228)/2000","v":0.51295584707729669},{"$f":"SUMPRODUCT(AW$9:AW$229,Nutrients!$DA$8:$DA$228)/2000","v":0.25692384707729665}]
["Total Lys:ME, g/mcal",{"$f":"IF(B$5=\"\",\"\",B245/(B246*2.2046)*10000)","v":4.0004918161487684},3.5419410134415341,3.1391303590347972,2.8010240180887811,2.5643124869082041,2.4347307257524458,null,{"$f":"IF(I$5=\"\",\"\",I245/(I246*2.2046)*10000)","v":3.9864485064889008},3.5340158918910172,3.1356577051312526,2.8011491032361246,2.5648251725614659,2.4347307257524458,null,{"$f":"IF(P$5=\"\",\"\",P245/(P246*2.2046)*10000)","v":3.9788169015592301},3.5302179877777511,3.1358643115554283,2.8005462223474087,2.5672903941080913,2.4347307257524458,null,{"$f":"IF(W$5=\"\",\"\",W245/(W246*2.2046)*10000)","v":3.9711384490381958},3.5264507557221485,3.1314340725627372,2.8010104573408361,2.5697679111813336,2.4347307257524458,null,{"$f":"IF(AD$5=\"\",\"\",AD245/(AD246*2.2046)*10000)","v":3.9630280743446122},3.5181130419046216,3.1279863761305937,2.8011931901551494,2.5721725545545535,2.4347307257524458,null,{"$f":"IF(AK$5=\"\",\"\",AK245/(AK246*2.2046)*10000)","v":3.9561158646018915},3.5111900333635315,3.1249732333882854,2.8014739625221403,2.5745750935787202,2.4347307257524458,null,{"$f":"IF(AR$5=\"\",\"\",AR245/(AR246*2.2046)*10000)","v":3.9581107695750393},3.504122485140722,3.1227560503208212,2.8021108807362807,2.5769938926457594,2.4347307257524458]
["SID Lys:ME, g/mcal",{"$f":"IF(B$5=\"\",\"\",B236/(B246*2.2046)*10000)","v":3.5990753406176657},3.1727222375948116,2.7968342544845632,2.4855813058752307,2.2715388971881016,2.1544027583542169,null,{"$f":"IF(I$5=\"\",\"\",I236/(I246*2.2046)*10000)","v":3.5618311780488763},3.1411124768558918,2.7693450866513083,2.4614200897316159,2.2477806695451705,2.1544027583542169,null,{"$f":"IF(P$5=\"\",\"\",P236/(P246*2.2046)*10000)","v":3.5304914032620984},3.1133434736847709,2.7452862258836985,2.4367117749500187,2.2259030130592716,2.1544027583542169,null,{"$f":"IF(W$5=\"\",\"\",W236/(W246*2.2046)*10000)","v":3.499217412744013},3.0857036449734365,2.7171467973011745,2.4130811678888708,2.2041711741403605,2.1544027583542169,null,{"$f":"IF(AD$5=\"\",\"\",AD236/(AD246*2.2046)*10000)","v":3.4676641085929081},3.0540446219593269,2.6900100640750897,2.3893274702647513,2.1824670210891051,2.1544027583542169,null,{"$f":"IF(AK$5=\"\",\"\",AK236/(AK246*2.2046)*10000)","v":3.4372996204475261},3.0237604097242543,2.6633818111303991,2.3657427545090925,2.1608228840750709,2.1544027583542169,null,{"$f":"IF(AR$5=\"\",\"\",AR236/(AR246*2.2046)*10000)","v":3.4150809020128592},2.9934674818333606,2.637591916630011,2.3425340164691066,2.1392554856611854,2.1544027583542169]
["Lysine:CP",{"$f":"B245/B253*100","v":6.8677028806815752},6.6830941302046103,6.4644027164582063,6.3149371296786221,6.2696154239212527,6.2402437601749243,null,{"$f":"I245/I253*100","v":6.7644145662657404},6.5728321084152954,6.3467759741919929,6.1914683549594036,6.1383833448568614,6.2402437601749243,null,{"$f":"P245/P253*100","v":6.6635859654498963},6.4647833145415987,6.2345638955720508,6.0718274269690049,6.0111558209644897,6.2402437601749243,null,{"$f":"W245/W253*100","v":6.5651495251310106},6.3607107969065702,6.1250637832738395,5.9561211294015557,5.8859150797251587,6.2402437601749243,null,{"$f":"AD245/AD253*100","v":6.4687800959429316},6.2587131799281481,6.0184882570585394,5.8425587065923201,5.7669327408299074,6.2402437601749243,null,{"$f":"AK245/AK253*100","v":6.3751696630599017},6.1608484084345303,5.9149855327636667,5.7343291141728043,5.6535326972005091,6.2402437601749243,null,{"$f":"AR245/AR253*100","v":6.2857137553302769},6.0642637914164768,5.8143310464360622,5.6307308827275113,5.5449929116169594,6.2402437601749243]
["Crude fat, %",{"$f":"(SUMPRODUCT(B$9:B$229,Nutrients!$K$8:$K$228)+(IF($A$7=Nutrients!$B$8,Nutrients!$K$8,Nutrients!$K$9)*B$7)+(((IF($A$8=Nutrients!$B$79,Nutrients!$K$79,(IF($A$8=Nutrients!$B$77,Nutrients!$K$77,Nutrients!$K$78)))))*B$8))/2000","v":2.8430787934788264},{"$f":"(SUMPRODUCT(C$9:C$229,Nutrients!$K$8:$K$228)+(IF($A$7=Nutrients!$B$8,Nutrients!$K$8,Nutrients!$K$9)*C$7)+(((IF($A$8=Nutrients!$B$79,Nutrients!$K$79,(IF($A$8=Nutrients!$B$77,Nutrients!$K$77,Nutrients!$K$78)))))*C$8))/2000","v":2.9356906063346426},{"$f":"(SUMPRODUCT(D$9:D$229,Nutrients!$K$8:$K$228)+(IF($A$7=Nutrients!$B$8,Nutrients!$K$8,Nutrients!$K$9)*D$7)+(((IF($A$8=Nutrients!$B$79,Nutrients!$K$79,(IF($A$8=Nutrients!$B$77,Nutrients!$K$77,Nutrients!$K$78)))))*D$8))/2000","v":3.0150158948020342},{"$f":"(SUMPRODUCT(E$9:E$229,Nutrients!$K$8:$K$228)+(IF($A$7=Nutrients!$B$8,Nutrients!$K$8,Nutrients!$K$9)*E$7)+(((IF($A$8=Nutrients!$B$79,Nutrients!$K$79,(IF($A$8=Nutrients!$B$77,Nutrients!$K$77,Nutrients!$K$78)))))*E$8))/2000","v":3.0897558386383324},{"$f":"(SUMPRODUCT(F$9:F$229,Nutrients!$K$8:$K$228)+(IF($A$7=Nutrients!$B$8,Nutrients!$K$8,Nutrients!$K$9)*F$7)+(((IF($A$8=Nutrients!$B$79,Nutrients!$K$79,(IF($A$8=Nutrients!$B$77,Nutrients!$K$77,Nutrients!$K$78)))))*F$8))/2000","v":3.1512333335874807},{"$f":"(SUMPRODUCT(G$9:G$229,Nutrients!$K$8:$K$228)+(IF($A$7=Nutrients!$B$8,Nutrients!$K$8,Nutrients!$K$9)*G$7)+(((IF($A$8=Nutrients!$B$79,Nutrients!$K$79,(IF($A$8=Nutrients!$B$77,Nutrients!$K$77,Nutrients!$K$78)))))*G$8))/2000","v":3.1836624192329586},null,{"$f":"(SUMPRODUCT(I$9:I$229,Nutrients!$K$8:$K$228)+(IF($A$7=Nutrients!$B$8,Nutrients!$K$8,Nutrients!$K$9)*I$7)+(((IF($A$8=Nutrients!$B$79,Nutrients!$K$79,(IF($A$8=Nutrients!$B$77,Nutrients!$K$77,Nutrients!$K$78)))))*I$8))/2000","v":3.3052423735187202},{"$f":"(SUMPRODUCT(J$9:J$229,Nutrients!$K$8:$K$228)+(IF($A$7=Nutrients!$B$8,Nutrients!$K$8,Nutrients!$K$9)*J$7)+(((IF($A$8=Nutrients!$B$79,Nutrients!$K$79,(IF($A$8=Nutrients!$B$77,Nutrients!$K$77,Nutrients!$K$78)))))*J$8))/2000","v":3.3964007080477434},{"$f":"(SUMPRODUCT(K$9:K$229,Nutrients!$K$8:$K$228)+(IF($A$7=Nutrients!$B$8,Nutrients!$K$8,Nutrients!$K$9)*K$7)+(((IF($A$8=Nutrients!$B$79,Nutrients!$K$79,(IF($A$8=Nutrients!$B$77,Nutrients!$K$77,Nutrients!$K$78)))))*K$8))/2000","v":3.4747904505875198},{"$f":"(SUMPRODUCT(L$9:L$229,Nutrients!$K$8:$K$228)+(IF($A$7=Nutrients!$B$8,Nutrients!$K$8,Nutrients!$K$9)*L$7)+(((IF($A$8=Nutrients!$B$79,Nutrients!$K$79,(IF($A$8=Nutrients!$B$77,Nutrients!$K$77,Nutrients!$K$78)))))*L$8))/2000","v":3.5488535366439304},{"$f":"(SUMPRODUCT(M$9:M$229,Nutrients!$K$8:$K$228)+(IF($A$7=Nutrients!$B$8,Nutrients!$K$8,Nutrients!$K$9)*M$7)+(((IF($A$8=Nutrients!$B$79,Nutrients!$K$79,(IF($A$8=Nutrients!$B$77,Nutrients!$K$77,Nutrients!$K$78)))))*M$8))/2000","v":3.6104669910076255},{"$f":"(SUMPRODUCT(N$9:N$229,Nutrients!$K$8:$K$228)+(IF($A$7=Nutrients!$B$8,Nutrients!$K$8,Nutrients!$K$9)*N$7)+(((IF($A$8=Nutrients!$B$79,Nutrients!$K$79,(IF($A$8=Nutrients!$B$77,Nutrients!$K$77,Nutrients!$K$78)))))*N$8))/2000","v":3.1836624192329586},null,{"$f":"(SUMPRODUCT(P$9:P$229,Nutrients!$K$8:$K$228)+(IF($A$7=Nutrients!$B$8,Nutrients!$K$8,Nutrients!$K$9)*P$7)+(((IF($A$8=Nutrients!$B$79,Nutrients!$K$79,(IF($A$8=Nutrients!$B$77,Nutrients!$K$77,Nutrients!$K$78)))))*P$8))/2000","v":3.7657415212659768},{"$f":"(SUMPRODUCT(Q$9:Q$229,Nutrients!$K$8:$K$228)+(IF($A$7=Nutrients!$B$8,Nutrients!$K$8,Nutrients!$K$9)*Q$7)+(((IF($A$8=Nutrients!$B$79,Nutrients!$K$79,(IF($A$8=Nutrients!$B$77,Nutrients!$K$77,Nutrients!$K$78)))))*Q$8))/2000","v":3.8559495507940609},{"$f":"(SUMPRODUCT(R$9:R$229,Nutrients!$K$8:$K$228)+(IF($A$7=Nutrients!$B$8,Nutrients!$K$8,Nutrients!$K$9)*R$7)+(((IF($A$8=Nutrients!$B$79,Nutrients!$K$79,(IF($A$8=Nutrients!$B$77,Nutrients!$K$77,Nutrients!$K$78)))))*R$8))/2000","v":3.9336151664554309},{"$f":"(SUMPRODUCT(S$9:S$229,Nutrients!$K$8:$K$228)+(IF($A$7=Nutrients!$B$8,Nutrients!$K$8,Nutrients!$K$9)*S$7)+(((IF($A$8=Nutrients!$B$79,Nutrients!$K$79,(IF($A$8=Nutrients!$B$77,Nutrients!$K$77,Nutrients!$K$78)))))*S$8))/2000","v":4.0079429412506506},{"$f":"(SUMPRODUCT(T$9:T$229,Nutrients!$K$8:$K$228)+(IF($A$7=Nutrients!$B$8,Nutrients!$K$8,Nutrients!$K$9)*T$7)+(((IF($A$8=Nutrients!$B$79,Nutrients!$K$79,(IF($A$8=Nutrients!$B$77,Nutrients!$K$77,Nutrients!$K$78)))))*T$8))/2000","v":4.0688961843993612},{"$f":"(SUMPRODUCT(U$9:U$229,Nutrients!$K$8:$K$228)+(IF($A$7=Nutrients!$B$8,Nutrients!$K$8,Nutrients!$K$9)*U$7)+(((IF($A$8=Nutrients!$B$79,Nutrients!$K$79,(IF($A$8=Nutrients!$B$77,Nutrients!$K$77,Nutrients!$K$78)))))*U$8))/2000","v":3.1836624192329586},null,{"$f":"(SUMPRODUCT(W$9:W$229,Nutrients!$K$8:$K$228)+(IF($A$7=Nutrients!$B$8,Nutrients!$K$8,Nutrients!$K$9)*W$7)+(((IF($A$8=Nutrients!$B$79,Nutrients!$K$79,(IF($A$8=Nutrients!$B$77,Nutrients!$K$77,Nutrients!$K$78)))))*W$8))/2000","v":4.2261506187639624},{"$f":"(SUMPRODUCT(X$9:X$229,Nutrients!$K$8:$K$228)+(IF($A$7=Nutrients!$B$8,Nutrients!$K$8,Nutrients!$K$9)*X$7)+(((IF($A$8=Nutrients!$B$79,Nutrients!$K$79,(IF($A$8=Nutrients!$B$77,Nutrients!$K$77,Nutrients!$K$78)))))*X$8))/2000","v":4.3155627659604798},{"$f":"(SUMPRODUCT(Y$9:Y$229,Nutrients!$K$8:$K$228)+(IF($A$7=Nutrients!$B$8,Nutrients!$K$8,Nutrients!$K$9)*Y$7)+(((IF($A$8=Nutrients!$B$79,Nutrients!$K$79,(IF($A$8=Nutrients!$B$77,Nutrients!$K$77,Nutrients!$K$78)))))*Y$8))/2000","v":4.3934256797400701},{"$f":"(SUMPRODUCT(Z$9:Z$229,Nutrients!$K$8:$K$228)+(IF($A$7=Nutrients!$B$8,Nutrients!$K$8,Nutrients!$K$9)*Z$7)+(((IF($A$8=Nutrients!$B$79,Nutrients!$K$79,(IF($A$8=Nutrients!$B$77,Nutrients!$K$77,Nutrients!$K$78)))))*Z$8))/2000","v":4.4665608878475265},{"$f":"(SUMPRODUCT(AA$9:AA$229,Nutrients!$K$8:$K$228)+(IF($A$7=Nutrients!$B$8,Nutrients!$K$8,Nutrients!$K$9)*AA$7)+(((IF($A$8=Nutrients!$B$79,Nutrients!$K$79,(IF($A$8=Nutrients!$B$77,Nutrients!$K$77,Nutrients!$K$78)))))*AA$8))/2000","v":4.5266489019147738},{"$f":"(SUMPRODUCT(AB$9:AB$229,Nutrients!$K$8:$K$228)+(IF($A$7=Nutrients!$B$8,Nutrients!$K$8,Nutrients!$K$9)*AB$7)+(((IF($A$8=Nutrients!$B$79,Nutrients!$K$79,(IF($A$8=Nutrients!$B$77,Nutrients!$K$77,Nutrients!$K$78)))))*AB$8))/2000","v":3.1836624192329586},null,{"$f":"(SUMPRODUCT(AD$9:AD$229,Nutrients!$K$8:$K$228)+(IF($A$7=Nutrients!$B$8,Nutrients!$K$8,Nutrients!$K$9)*AD$7)+(((IF($A$8=Nutrients!$B$79,Nutrients!$K$79,(IF($A$8=Nutrients!$B$77,Nutrients!$K$77,Nutrients!$K$78)))))*AD$8))/2000","v":4.6865130864477624},{"$f":"(SUMPRODUCT(AE$9:AE$229,Nutrients!$K$8:$K$228)+(IF($A$7=Nutrients!$B$8,Nutrients!$K$8,Nutrients!$K$9)*AE$7)+(((IF($A$8=Nutrients!$B$79,Nutrients!$K$79,(IF($A$8=Nutrients!$B$77,Nutrients!$K$77,Nutrients!$K$78)))))*AE$8))/2000","v":4.7761331727245384},{"$f":"(SUMPRODUCT(AF$9:AF$229,Nutrients!$K$8:$K$228)+(IF($A$7=Nutrients!$B$8,Nutrients!$K$8,Nutrients!$K$9)*AF$7)+(((IF($A$8=Nutrients!$B$79,Nutrients!$K$79,(IF($A$8=Nutrients!$B$77,Nutrients!$K$77,Nutrients!$K$78)))))*AF$8))/2000","v":4.8527858638952406},{"$f":"(SUMPRODUCT(AG$9:AG$229,Nutrients!$K$8:$K$228)+(IF($A$7=Nutrients!$B$8,Nutrients!$K$8,Nutrients!$K$9)*AG$7)+(((IF($A$8=Nutrients!$B$79,Nutrients!$K$79,(IF($A$8=Nutrients!$B$77,Nutrients!$K$77,Nutrients!$K$78)))))*AG$8))/2000","v":4.9246614812118352},{"$f":"(SUMPRODUCT(AH$9:AH$229,Nutrients!$K$8:$K$228)+(IF($A$7=Nutrients!$B$8,Nutrients!$K$8,Nutrients!$K$9)*AH$7)+(((IF($A$8=Nutrients!$B$79,Nutrients!$K$79,(IF($A$8=Nutrients!$B$77,Nutrients!$K$77,Nutrients!$K$78)))))*AH$8))/2000","v":4.9823409601478907},{"$f":"(SUMPRODUCT(AI$9:AI$229,Nutrients!$K$8:$K$228)+(IF($A$7=Nutrients!$B$8,Nutrients!$K$8,Nutrients!$K$9)*AI$7)+(((IF($A$8=Nutrients!$B$79,Nutrients!$K$79,(IF($A$8=Nutrients!$B$77,Nutrients!$K$77,Nutrients!$K$78)))))*AI$8))/2000","v":3.1836624192329586},null,{"$f":"(SUMPRODUCT(AK$9:AK$229,Nutrients!$K$8:$K$228)+(IF($A$7=Nutrients!$B$8,Nutrients!$K$8,Nutrients!$K$9)*AK$7)+(((IF($A$8=Nutrients!$B$79,Nutrients!$K$79,(IF($A$8=Nutrients!$B$77,Nutrients!$K$77,Nutrients!$K$78)))))*AK$8))/2000","v":5.1465502437472983},{"$f":"(SUMPRODUCT(AL$9:AL$229,Nutrients!$K$8:$K$228)+(IF($A$7=Nutrients!$B$8,Nutrients!$K$8,Nutrients!$K$9)*AL$7)+(((IF($A$8=Nutrients!$B$79,Nutrients!$K$79,(IF($A$8=Nutrients!$B$77,Nutrients!$K$77,Nutrients!$K$78)))))*AL$8))/2000","v":5.2365140789422817},{"$f":"(SUMPRODUCT(AM$9:AM$229,Nutrients!$K$8:$K$228)+(IF($A$7=Nutrients!$B$8,Nutrients!$K$8,Nutrients!$K$9)*AM$7)+(((IF($A$8=Nutrients!$B$79,Nutrients!$K$79,(IF($A$8=Nutrients!$B$77,Nutrients!$K$77,Nutrients!$K$78)))))*AM$8))/2000","v":5.3118268623642635},{"$f":"(SUMPRODUCT(AN$9:AN$229,Nutrients!$K$8:$K$228)+(IF($A$7=Nutrients!$B$8,Nutrients!$K$8,Nutrients!$K$9)*AN$7)+(((IF($A$8=Nutrients!$B$79,Nutrients!$K$79,(IF($A$8=Nutrients!$B$77,Nutrients!$K$77,Nutrients!$K$78)))))*AN$8))/2000","v":5.3812037461929858},{"$f":"(SUMPRODUCT(AO$9:AO$229,Nutrients!$K$8:$K$228)+(IF($A$7=Nutrients!$B$8,Nutrients!$K$8,Nutrients!$K$9)*AO$7)+(((IF($A$8=Nutrients!$B$79,Nutrients!$K$79,(IF($A$8=Nutrients!$B$77,Nutrients!$K$77,Nutrients!$K$78)))))*AO$8))/2000","v":5.4373359615443739},{"$f":"(SUMPRODUCT(AP$9:AP$229,Nutrients!$K$8:$K$228)+(IF($A$7=Nutrients!$B$8,Nutrients!$K$8,Nutrients!$K$9)*AP$7)+(((IF($A$8=Nutrients!$B$79,Nutrients!$K$79,(IF($A$8=Nutrients!$B$77,Nutrients!$K$77,Nutrients!$K$78)))))*AP$8))/2000","v":3.1836624192329586},null,{"$f":"(SUMPRODUCT(AR$9:AR$229,Nutrients!$K$8:$K$228)+(IF($A$7=Nutrients!$B$8,Nutrients!$K$8,Nutrients!$K$9)*AR$7)+(((IF($A$8=Nutrients!$B$79,Nutrients!$K$79,(IF($A$8=Nutrients!$B$77,Nutrients!$K$77,Nutrients!$K$78)))))*AR$8))/2000","v":5.6045348466656559},{"$f":"(SUMPRODUCT(AS$9:AS$229,Nutrients!$K$8:$K$228)+(IF($A$7=Nutrients!$B$8,Nutrients!$K$8,Nutrients!$K$9)*AS$7)+(((IF($A$8=Nutrients!$B$79,Nutrients!$K$79,(IF($A$8=Nutrients!$B$77,Nutrients!$K$77,Nutrients!$K$78)))))*AS$8))/2000","v":5.6965854282700619},{"$f":"(SUMPRODUCT(AT$9:AT$229,Nutrients!$K$8:$K$228)+(IF($A$7=Nutrients!$B$8,Nutrients!$K$8,Nutrients!$K$9)*AT$7)+(((IF($A$8=Nutrients!$B$79,Nutrients!$K$79,(IF($A$8=Nutrients!$B$77,Nutrients!$K$77,Nutrients!$K$78)))))*AT$8))/2000","v":5.7703663823664106},{"$f":"(SUMPRODUCT(AU$9:AU$229,Nutrients!$K$8:$K$228)+(IF($A$7=Nutrients!$B$8,Nutrients!$K$8,Nutrients!$K$9)*AU$7)+(((IF($A$8=Nutrients!$B$79,Nutrients!$K$79,(IF($A$8=Nutrients!$B$77,Nutrients!$K$77,Nutrients!$K$78)))))*AU$8))/2000","v":5.8365347760164585},{"$f":"(SUMPRODUCT(AV$9:AV$229,Nutrients!$K$8:$K$228)+(IF($A$7=Nutrients!$B$8,Nutrients!$K$8,Nutrients!$K$9)*AV$7)+(((IF($A$8=Nutrients!$B$79,Nutrients!$K$79,(IF($A$8=Nutrients!$B$77,Nutrients!$K$77,Nutrients!$K$78)))))*AV$8))/2000","v":5.8923254116241415},{"$f":"(SUMPRODUCT(AW$9:AW$229,Nutrients!$K$8:$K$228)+(IF($A$7=Nutrients!$B$8,Nutrients!$K$8,Nutrients!$K$9)*AW$7)+(((IF($A$8=Nutrients!$B$79,Nutrients!$K$79,(IF($A$8=Nutrients!$B$77,Nutrients!$K$77,Nutrients!$K$78)))))*AW$8))/2000","v":3.1836624192329586}]
["Crude fiber, %",{"$f":"(SUMPRODUCT(B$9:B$229,Nutrients!$J$8:$J$228)+(IF($A$7=Nutrients!$B$8,Nutrients!$J$8,Nutrients!$J$9)*B$7)+(((IF($A$8=Nutrients!$B$79,Nutrients!$J$79,(IF($A$8=Nutrients!$B$77,Nutrients!$J$77,Nutrients!$J$78)))))*B$8))/2000","v":2.4236304403667859},{"$f":"(SUMPRODUCT(C$9:C$229,Nutrients!$J$8:$J$228)+(IF($A$7=Nutrients!$B$8,Nutrients!$J$8,Nutrients!$J$9)*C$7)+(((IF($A$8=Nutrients!$B$79,Nutrients!$J$79,(IF($A$8=Nutrients!$B$77,Nutrients!$J$77,Nutrients!$J$78)))))*C$8))/2000","v":2.3544062118589144},{"$f":"(SUMPRODUCT(D$9:D$229,Nutrients!$J$8:$J$228)+(IF($A$7=Nutrients!$B$8,Nutrients!$J$8,Nutrients!$J$9)*D$7)+(((IF($A$8=Nutrients!$B$79,Nutrients!$J$79,(IF($A$8=Nutrients!$B$77,Nutrients!$J$77,Nutrients!$J$78)))))*D$8))/2000","v":2.2969299326886694},{"$f":"(SUMPRODUCT(E$9:E$229,Nutrients!$J$8:$J$228)+(IF($A$7=Nutrients!$B$8,Nutrients!$J$8,Nutrients!$J$9)*E$7)+(((IF($A$8=Nutrients!$B$79,Nutrients!$J$79,(IF($A$8=Nutrients!$B$77,Nutrients!$J$77,Nutrients!$J$78)))))*E$8))/2000","v":2.237626654434278},{"$f":"(SUMPRODUCT(F$9:F$229,Nutrients!$J$8:$J$228)+(IF($A$7=Nutrients!$B$8,Nutrients!$J$8,Nutrients!$J$9)*F$7)+(((IF($A$8=Nutrients!$B$79,Nutrients!$J$79,(IF($A$8=Nutrients!$B$77,Nutrients!$J$77,Nutrients!$J$78)))))*F$8))/2000","v":2.1865908459890111},{"$f":"(SUMPRODUCT(G$9:G$229,Nutrients!$J$8:$J$228)+(IF($A$7=Nutrients!$B$8,Nutrients!$J$8,Nutrients!$J$9)*G$7)+(((IF($A$8=Nutrients!$B$79,Nutrients!$J$79,(IF($A$8=Nutrients!$B$77,Nutrients!$J$77,Nutrients!$J$78)))))*G$8))/2000","v":2.1575827805851042},null,{"$f":"(SUMPRODUCT(I$9:I$229,Nutrients!$J$8:$J$228)+(IF($A$7=Nutrients!$B$8,Nutrients!$J$8,Nutrients!$J$9)*I$7)+(((IF($A$8=Nutrients!$B$79,Nutrients!$J$79,(IF($A$8=Nutrients!$B$77,Nutrients!$J$77,Nutrients!$J$78)))))*I$8))/2000","v":2.6732813897027521},{"$f":"(SUMPRODUCT(J$9:J$229,Nutrients!$J$8:$J$228)+(IF($A$7=Nutrients!$B$8,Nutrients!$J$8,Nutrients!$J$9)*J$7)+(((IF($A$8=Nutrients!$B$79,Nutrients!$J$79,(IF($A$8=Nutrients!$B$77,Nutrients!$J$77,Nutrients!$J$78)))))*J$8))/2000","v":2.6050501835277173},{"$f":"(SUMPRODUCT(K$9:K$229,Nutrients!$J$8:$J$228)+(IF($A$7=Nutrients!$B$8,Nutrients!$J$8,Nutrients!$J$9)*K$7)+(((IF($A$8=Nutrients!$B$79,Nutrients!$J$79,(IF($A$8=Nutrients!$B$77,Nutrients!$J$77,Nutrients!$J$78)))))*K$8))/2000","v":2.5485218338069386},{"$f":"(SUMPRODUCT(L$9:L$229,Nutrients!$J$8:$J$228)+(IF($A$7=Nutrients!$B$8,Nutrients!$J$8,Nutrients!$J$9)*L$7)+(((IF($A$8=Nutrients!$B$79,Nutrients!$J$79,(IF($A$8=Nutrients!$B$77,Nutrients!$J$77,Nutrients!$J$78)))))*L$8))/2000","v":2.4898198505130775},{"$f":"(SUMPRODUCT(M$9:M$229,Nutrients!$J$8:$J$228)+(IF($A$7=Nutrients!$B$8,Nutrients!$J$8,Nutrients!$J$9)*M$7)+(((IF($A$8=Nutrients!$B$79,Nutrients!$J$79,(IF($A$8=Nutrients!$B$77,Nutrients!$J$77,Nutrients!$J$78)))))*M$8))/2000","v":2.4387854161825144},{"$f":"(SUMPRODUCT(N$9:N$229,Nutrients!$J$8:$J$228)+(IF($A$7=Nutrients!$B$8,Nutrients!$J$8,Nutrients!$J$9)*N$7)+(((IF($A$8=Nutrients!$B$79,Nutrients!$J$79,(IF($A$8=Nutrients!$B$77,Nutrients!$J$77,Nutrients!$J$78)))))*N$8))/2000","v":2.1575827805851042},null,{"$f":"(SUMPRODUCT(P$9:P$229,Nutrients!$J$8:$J$228)+(IF($A$7=Nutrients!$B$8,Nutrients!$J$8,Nutrients!$J$9)*P$7)+(((IF($A$8=Nutrients!$B$79,Nutrients!$J$79,(IF($A$8=Nutrients!$B$77,Nutrients!$J$77,Nutrients!$J$78)))))*P$8))/2000","v":2.924315435521502},{"$f":"(SUMPRODUCT(Q$9:Q$229,Nutrients!$J$8:$J$228)+(IF($A$7=Nutrients!$B$8,Nutrients!$J$8,Nutrients!$J$9)*Q$7)+(((IF($A$8=Nutrients!$B$79,Nutrients!$J$79,(IF($A$8=Nutrients!$B$77,Nutrients!$J$77,Nutrients!$J$78)))))*Q$8))/2000","v":2.8566492127014254},{"$f":"(SUMPRODUCT(R$9:R$229,Nutrients!$J$8:$J$228)+(IF($A$7=Nutrients!$B$8,Nutrients!$J$8,Nutrients!$J$9)*R$7)+(((IF($A$8=Nutrients!$B$79,Nutrients!$J$79,(IF($A$8=Nutrients!$B$77,Nutrients!$J$77,Nutrients!$J$78)))))*R$8))/2000","v":2.8008708006403085},{"$f":"(SUMPRODUCT(S$9:S$229,Nutrients!$J$8:$J$228)+(IF($A$7=Nutrients!$B$8,Nutrients!$J$8,Nutrients!$J$9)*S$7)+(((IF($A$8=Nutrients!$B$79,Nutrients!$J$79,(IF($A$8=Nutrients!$B$77,Nutrients!$J$77,Nutrients!$J$78)))))*S$8))/2000","v":2.7417828786555702},{"$f":"(SUMPRODUCT(T$9:T$229,Nutrients!$J$8:$J$228)+(IF($A$7=Nutrients!$B$8,Nutrients!$J$8,Nutrients!$J$9)*T$7)+(((IF($A$8=Nutrients!$B$79,Nutrients!$J$79,(IF($A$8=Nutrients!$B$77,Nutrients!$J$77,Nutrients!$J$78)))))*T$8))/2000","v":2.6913286983431166},{"$f":"(SUMPRODUCT(U$9:U$229,Nutrients!$J$8:$J$228)+(IF($A$7=Nutrients!$B$8,Nutrients!$J$8,Nutrients!$J$9)*U$7)+(((IF($A$8=Nutrients!$B$79,Nutrients!$J$79,(IF($A$8=Nutrients!$B$77,Nutrients!$J$77,Nutrients!$J$78)))))*U$8))/2000","v":2.1575827805851042},null,{"$f":"(SUMPRODUCT(W$9:W$229,Nutrients!$J$8:$J$228)+(IF($A$7=Nutrients!$B$8,Nutrients!$J$8,Nutrients!$J$9)*W$7)+(((IF($A$8=Nutrients!$B$79,Nutrients!$J$79,(IF($A$8=Nutrients!$B$77,Nutrients!$J$77,Nutrients!$J$78)))))*W$8))/2000","v":3.1753027679004502},{"$f":"(SUMPRODUCT(X$9:X$229,Nutrients!$J$8:$J$228)+(IF($A$7=Nutrients!$B$8,Nutrients!$J$8,Nutrients!$J$9)*X$7)+(((IF($A$8=Nutrients!$B$79,Nutrients!$J$79,(IF($A$8=Nutrients!$B$77,Nutrients!$J$77,Nutrients!$J$78)))))*X$8))/2000","v":3.10828540648345},{"$f":"(SUMPRODUCT(Y$9:Y$229,Nutrients!$J$8:$J$228)+(IF($A$7=Nutrients!$B$8,Nutrients!$J$8,Nutrients!$J$9)*Y$7)+(((IF($A$8=Nutrients!$B$79,Nutrients!$J$79,(IF($A$8=Nutrients!$B$77,Nutrients!$J$77,Nutrients!$J$78)))))*Y$8))/2000","v":3.0521034778334619},{"$f":"(SUMPRODUCT(Z$9:Z$229,Nutrients!$J$8:$J$228)+(IF($A$7=Nutrients!$B$8,Nutrients!$J$8,Nutrients!$J$9)*Z$7)+(((IF($A$8=Nutrients!$B$79,Nutrients!$J$79,(IF($A$8=Nutrients!$B$77,Nutrients!$J$77,Nutrients!$J$78)))))*Z$8))/2000","v":2.9939203970228991},{"$f":"(SUMPRODUCT(AA$9:AA$229,Nutrients!$J$8:$J$228)+(IF($A$7=Nutrients!$B$8,Nutrients!$J$8,Nutrients!$J$9)*AA$7)+(((IF($A$8=Nutrients!$B$79,Nutrients!$J$79,(IF($A$8=Nutrients!$B$77,Nutrients!$J$77,Nutrients!$J$78)))))*AA$8))/2000","v":2.94363797056024},{"$f":"(SUMPRODUCT(AB$9:AB$229,Nutrients!$J$8:$J$228)+(IF($A$7=Nutrients!$B$8,Nutrients!$J$8,Nutrients!$J$9)*AB$7)+(((IF($A$8=Nutrients!$B$79,Nutrients!$J$79,(IF($A$8=Nutrients!$B$77,Nutrients!$J$77,Nutrients!$J$78)))))*AB$8))/2000","v":2.1575827805851042},null,{"$f":"(SUMPRODUCT(AD$9:AD$229,Nutrients!$J$8:$J$228)+(IF($A$7=Nutrients!$B$8,Nutrients!$J$8,Nutrients!$J$9)*AD$7)+(((IF($A$8=Nutrients!$B$79,Nutrients!$J$79,(IF($A$8=Nutrients!$B$77,Nutrients!$J$77,Nutrients!$J$78)))))*AD$8))/2000","v":3.4261397197035883},{"$f":"(SUMPRODUCT(AE$9:AE$229,Nutrients!$J$8:$J$228)+(IF($A$7=Nutrients!$B$8,Nutrients!$J$8,Nutrients!$J$9)*AE$7)+(((IF($A$8=Nutrients!$B$79,Nutrients!$J$79,(IF($A$8=Nutrients!$B$77,Nutrients!$J$77,Nutrients!$J$78)))))*AE$8))/2000","v":3.358818311843268},{"$f":"(SUMPRODUCT(AF$9:AF$229,Nutrients!$J$8:$J$228)+(IF($A$7=Nutrients!$B$8,Nutrients!$J$8,Nutrients!$J$9)*AF$7)+(((IF($A$8=Nutrients!$B$79,Nutrients!$J$79,(IF($A$8=Nutrients!$B$77,Nutrients!$J$77,Nutrients!$J$78)))))*AF$8))/2000","v":3.3034908371516392},{"$f":"(SUMPRODUCT(AG$9:AG$229,Nutrients!$J$8:$J$228)+(IF($A$7=Nutrients!$B$8,Nutrients!$J$8,Nutrients!$J$9)*AG$7)+(((IF($A$8=Nutrients!$B$79,Nutrients!$J$79,(IF($A$8=Nutrients!$B$77,Nutrients!$J$77,Nutrients!$J$78)))))*AG$8))/2000","v":3.2457689719051768},{"$f":"(SUMPRODUCT(AH$9:AH$229,Nutrients!$J$8:$J$228)+(IF($A$7=Nutrients!$B$8,Nutrients!$J$8,Nutrients!$J$9)*AH$7)+(((IF($A$8=Nutrients!$B$79,Nutrients!$J$79,(IF($A$8=Nutrients!$B$77,Nutrients!$J$77,Nutrients!$J$78)))))*AH$8))/2000","v":3.1942903638465241},{"$f":"(SUMPRODUCT(AI$9:AI$229,Nutrients!$J$8:$J$228)+(IF($A$7=Nutrients!$B$8,Nutrients!$J$8,Nutrients!$J$9)*AI$7)+(((IF($A$8=Nutrients!$B$79,Nutrients!$J$79,(IF($A$8=Nutrients!$B$77,Nutrients!$J$77,Nutrients!$J$78)))))*AI$8))/2000","v":2.1575827805851042},null,{"$f":"(SUMPRODUCT(AK$9:AK$229,Nutrients!$J$8:$J$228)+(IF($A$7=Nutrients!$B$8,Nutrients!$J$8,Nutrients!$J$9)*AK$7)+(((IF($A$8=Nutrients!$B$79,Nutrients!$J$79,(IF($A$8=Nutrients!$B$77,Nutrients!$J$77,Nutrients!$J$78)))))*AK$8))/2000","v":3.6772301152691256},{"$f":"(SUMPRODUCT(AL$9:AL$229,Nutrients!$J$8:$J$228)+(IF($A$7=Nutrients!$B$8,Nutrients!$J$8,Nutrients!$J$9)*AL$7)+(((IF($A$8=Nutrients!$B$79,Nutrients!$J$79,(IF($A$8=Nutrients!$B$77,Nutrients!$J$77,Nutrients!$J$78)))))*AL$8))/2000","v":3.609713227691373},{"$f":"(SUMPRODUCT(AM$9:AM$229,Nutrients!$J$8:$J$228)+(IF($A$7=Nutrients!$B$8,Nutrients!$J$8,Nutrients!$J$9)*AM$7)+(((IF($A$8=Nutrients!$B$79,Nutrients!$J$79,(IF($A$8=Nutrients!$B$77,Nutrients!$J$77,Nutrients!$J$78)))))*AM$8))/2000","v":3.5549012924512922},{"$f":"(SUMPRODUCT(AN$9:AN$229,Nutrients!$J$8:$J$228)+(IF($A$7=Nutrients!$B$8,Nutrients!$J$8,Nutrients!$J$9)*AN$7)+(((IF($A$8=Nutrients!$B$79,Nutrients!$J$79,(IF($A$8=Nutrients!$B$77,Nutrients!$J$77,Nutrients!$J$78)))))*AN$8))/2000","v":3.4963496162542462},{"$f":"(SUMPRODUCT(AO$9:AO$229,Nutrients!$J$8:$J$228)+(IF($A$7=Nutrients!$B$8,Nutrients!$J$8,Nutrients!$J$9)*AO$7)+(((IF($A$8=Nutrients!$B$79,Nutrients!$J$79,(IF($A$8=Nutrients!$B$77,Nutrients!$J$77,Nutrients!$J$78)))))*AO$8))/2000","v":3.4443797708352668},{"$f":"(SUMPRODUCT(AP$9:AP$229,Nutrients!$J$8:$J$228)+(IF($A$7=Nutrients!$B$8,Nutrients!$J$8,Nutrients!$J$9)*AP$7)+(((IF($A$8=Nutrients!$B$79,Nutrients!$J$79,(IF($A$8=Nutrients!$B$77,Nutrients!$J$77,Nutrients!$J$78)))))*AP$8))/2000","v":2.1575827805851042},null,{"$f":"(SUMPRODUCT(AR$9:AR$229,Nutrients!$J$8:$J$228)+(IF($A$7=Nutrients!$B$8,Nutrients!$J$8,Nutrients!$J$9)*AR$7)+(((IF($A$8=Nutrients!$B$79,Nutrients!$J$79,(IF($A$8=Nutrients!$B$77,Nutrients!$J$77,Nutrients!$J$78)))))*AR$8))/2000","v":3.9303964581950654},{"$f":"(SUMPRODUCT(AS$9:AS$229,Nutrients!$J$8:$J$228)+(IF($A$7=Nutrients!$B$8,Nutrients!$J$8,Nutrients!$J$9)*AS$7)+(((IF($A$8=Nutrients!$B$79,Nutrients!$J$79,(IF($A$8=Nutrients!$B$77,Nutrients!$J$77,Nutrients!$J$78)))))*AS$8))/2000","v":3.8604612760505268},{"$f":"(SUMPRODUCT(AT$9:AT$229,Nutrients!$J$8:$J$228)+(IF($A$7=Nutrients!$B$8,Nutrients!$J$8,Nutrients!$J$9)*AT$7)+(((IF($A$8=Nutrients!$B$79,Nutrients!$J$79,(IF($A$8=Nutrients!$B$77,Nutrients!$J$77,Nutrients!$J$78)))))*AT$8))/2000","v":3.8063667265197383},{"$f":"(SUMPRODUCT(AU$9:AU$229,Nutrients!$J$8:$J$228)+(IF($A$7=Nutrients!$B$8,Nutrients!$J$8,Nutrients!$J$9)*AU$7)+(((IF($A$8=Nutrients!$B$79,Nutrients!$J$79,(IF($A$8=Nutrients!$B$77,Nutrients!$J$77,Nutrients!$J$78)))))*AU$8))/2000","v":3.7460810481515416},{"$f":"(SUMPRODUCT(AV$9:AV$229,Nutrients!$J$8:$J$228)+(IF($A$7=Nutrients!$B$8,Nutrients!$J$8,Nutrients!$J$9)*AV$7)+(((IF($A$8=Nutrients!$B$79,Nutrients!$J$79,(IF($A$8=Nutrients!$B$77,Nutrients!$J$77,Nutrients!$J$78)))))*AV$8))/2000","v":3.6944743758561103},{"$f":"(SUMPRODUCT(AW$9:AW$229,Nutrients!$J$8:$J$228)+(IF($A$7=Nutrients!$B$8,Nutrients!$J$8,Nutrients!$J$9)*AW$7)+(((IF($A$8=Nutrients!$B$79,Nutrients!$J$79,(IF($A$8=Nutrients!$B$77,Nutrients!$J$77,Nutrients!$J$78)))))*AW$8))/2000","v":2.1575827805851042}]
["Lactose, %",{"$f":"(SUMPRODUCT(B$9:B$229,Nutrients!$ED$8:$ED$228)+(IF($A$7=Nutrients!$B$8,Nutrients!$ED$8,Nutrients!$ED$9)*B$7)+(((IF($A$8=Nutrients!$B$79,Nutrients!$ED$79,(IF($A$8=Nutrients!$B$77,Nutrients!$ED$77,Nutrients!$ED$78)))))*B$8))/2000","v":0},{"$f":"(SUMPRODUCT(C$9:C$229,Nutrients!$ED$8:$ED$228)+(IF($A$7=Nutrients!$B$8,Nutrients!$ED$8,Nutrients!$ED$9)*C$7)+(((IF($A$8=Nutrients!$B$79,Nutrients!$ED$79,(IF($A$8=Nutrients!$B$77,Nutrients!$ED$77,Nutrients!$ED$78)))))*C$8))/2000","v":0},{"$f":"(SUMPRODUCT(D$9:D$229,Nutrients!$ED$8:$ED$228)+(IF($A$7=Nutrients!$B$8,Nutrients!$ED$8,Nutrients!$ED$9)*D$7)+(((IF($A$8=Nutrients!$B$79,Nutrients!$ED$79,(IF($A$8=Nutrients!$B$77,Nutrients!$ED$77,Nutrients!$ED$78)))))*D$8))/2000","v":0},{"$f":"(SUMPRODUCT(E$9:E$229,Nutrients!$ED$8:$ED$228)+(IF($A$7=Nutrients!$B$8,Nutrients!$ED$8,Nutrients!$ED$9)*E$7)+(((IF($A$8=Nutrients!$B$79,Nutrients!$ED$79,(IF($A$8=Nutrients!$B$77,Nutrients!$ED$77,Nutrients!$ED$78)))))*E$8))/2000","v":0},{"$f":"(SUMPRODUCT(F$9:F$229,Nutrients!$ED$8:$ED$228)+(IF($A$7=Nutrients!$B$8,Nutrients!$ED$8,Nutrients!$ED$9)*F$7)+(((IF($A$8=Nutrients!$B$79,Nutrients!$ED$79,(IF($A$8=Nutrients!$B$77,Nutrients!$ED$77,Nutrients!$ED$78)))))*F$8))/2000","v":0},{"$f":"(SUMPRODUCT(G$9:G$229,Nutrients!$ED$8:$ED$228)+(IF($A$7=Nutrients!$B$8,Nutrients!$ED$8,Nutrients!$ED$9)*G$7)+(((IF($A$8=Nutrients!$B$79,Nutrients!$ED$79,(IF($A$8=Nutrients!$B$77,Nutrients!$ED$77,Nutrients!$ED$78)))))*G$8))/2000","v":0},null,{"$f":"(SUMPRODUCT(I$9:I$229,Nutrients!$ED$8:$ED$228)+(IF($A$7=Nutrients!$B$8,Nutrients!$ED$8,Nutrients!$ED$9)*I$7)+(((IF($A$8=Nutrients!$B$79,Nutrients!$ED$79,(IF($A$8=Nutrients!$B$77,Nutrients!$ED$77,Nutrients!$ED$78)))))*I$8))/2000","v":0},{"$f":"(SUMPRODUCT(J$9:J$229,Nutrients!$ED$8:$ED$228)+(IF($A$7=Nutrients!$B$8,Nutrients!$ED$8,Nutrients!$ED$9)*J$7)+(((IF($A$8=Nutrients!$B$79,Nutrients!$ED$79,(IF($A$8=Nutrients!$B$77,Nutrients!$ED$77,Nutrients!$ED$78)))))*J$8))/2000","v":0},{"$f":"(SUMPRODUCT(K$9:K$229,Nutrients!$ED$8:$ED$228)+(IF($A$7=Nutrients!$B$8,Nutrients!$ED$8,Nutrients!$ED$9)*K$7)+(((IF($A$8=Nutrients!$B$79,Nutrients!$ED$79,(IF($A$8=Nutrients!$B$77,Nutrients!$ED$77,Nutrients!$ED$78)))))*K$8))/2000","v":0},{"$f":"(SUMPRODUCT(L$9:L$229,Nutrients!$ED$8:$ED$228)+(IF($A$7=Nutrients!$B$8,Nutrients!$ED$8,Nutrients!$ED$9)*L$7)+(((IF($A$8=Nutrients!$B$79,Nutrients!$ED$79,(IF($A$8=Nutrients!$B$77,Nutrients!$ED$77,Nutrients!$ED$78)))))*L$8))/2000","v":0},{"$f":"(SUMPRODUCT(M$9:M$229,Nutrients!$ED$8:$ED$228)+(IF($A$7=Nutrients!$B$8,Nutrients!$ED$8,Nutrients!$ED$9)*M$7)+(((IF($A$8=Nutrients!$B$79,Nutrients!$ED$79,(IF($A$8=Nutrients!$B$77,Nutrients!$ED$77,Nutrients!$ED$78)))))*M$8))/2000","v":0},{"$f":"(SUMPRODUCT(N$9:N$229,Nutrients!$ED$8:$ED$228)+(IF($A$7=Nutrients!$B$8,Nutrients!$ED$8,Nutrients!$ED$9)*N$7)+(((IF($A$8=Nutrients!$B$79,Nutrients!$ED$79,(IF($A$8=Nutrients!$B$77,Nutrients!$ED$77,Nutrients!$ED$78)))))*N$8))/2000","v":0},null,{"$f":"(SUMPRODUCT(P$9:P$229,Nutrients!$ED$8:$ED$228)+(IF($A$7=Nutrients!$B$8,Nutrients!$ED$8,Nutrients!$ED$9)*P$7)+(((IF($A$8=Nutrients!$B$79,Nutrients!$ED$79,(IF($A$8=Nutrients!$B$77,Nutrients!$ED$77,Nutrients!$ED$78)))))*P$8))/2000","v":0},{"$f":"(SUMPRODUCT(Q$9:Q$229,Nutrients!$ED$8:$ED$228)+(IF($A$7=Nutrients!$B$8,Nutrients!$ED$8,Nutrients!$ED$9)*Q$7)+(((IF($A$8=Nutrients!$B$79,Nutrients!$ED$79,(IF($A$8=Nutrients!$B$77,Nutrients!$ED$77,Nutrients!$ED$78)))))*Q$8))/2000","v":0},{"$f":"(SUMPRODUCT(R$9:R$229,Nutrients!$ED$8:$ED$228)+(IF($A$7=Nutrients!$B$8,Nutrients!$ED$8,Nutrients!$ED$9)*R$7)+(((IF($A$8=Nutrients!$B$79,Nutrients!$ED$79,(IF($A$8=Nutrients!$B$77,Nutrients!$ED$77,Nutrients!$ED$78)))))*R$8))/2000","v":0},{"$f":"(SUMPRODUCT(S$9:S$229,Nutrients!$ED$8:$ED$228)+(IF($A$7=Nutrients!$B$8,Nutrients!$ED$8,Nutrients!$ED$9)*S$7)+(((IF($A$8=Nutrients!$B$79,Nutrients!$ED$79,(IF($A$8=Nutrients!$B$77,Nutrients!$ED$77,Nutrients!$ED$78)))))*S$8))/2000","v":0},{"$f":"(SUMPRODUCT(T$9:T$229,Nutrients!$ED$8:$ED$228)+(IF($A$7=Nutrients!$B$8,Nutrients!$ED$8,Nutrients!$ED$9)*T$7)+(((IF($A$8=Nutrients!$B$79,Nutrients!$ED$79,(IF($A$8=Nutrients!$B$77,Nutrients!$ED$77,Nutrients!$ED$78)))))*T$8))/2000","v":0},{"$f":"(SUMPRODUCT(U$9:U$229,Nutrients!$ED$8:$ED$228)+(IF($A$7=Nutrients!$B$8,Nutrients!$ED$8,Nutrients!$ED$9)*U$7)+(((IF($A$8=Nutrients!$B$79,Nutrients!$ED$79,(IF($A$8=Nutrients!$B$77,Nutrients!$ED$77,Nutrients!$ED$78)))))*U$8))/2000","v":0},null,{"$f":"(SUMPRODUCT(W$9:W$229,Nutrients!$ED$8:$ED$228)+(IF($A$7=Nutrients!$B$8,Nutrients!$ED$8,Nutrients!$ED$9)*W$7)+(((IF($A$8=Nutrients!$B$79,Nutrients!$ED$79,(IF($A$8=Nutrients!$B$77,Nutrients!$ED$77,Nutrients!$ED$78)))))*W$8))/2000","v":0},{"$f":"(SUMPRODUCT(X$9:X$229,Nutrients!$ED$8:$ED$228)+(IF($A$7=Nutrients!$B$8,Nutrients!$ED$8,Nutrients!$ED$9)*X$7)+(((IF($A$8=Nutrients!$B$79,Nutrients!$ED$79,(IF($A$8=Nutrients!$B$77,Nutrients!$ED$77,Nutrients!$ED$78)))))*X$8))/2000","v":0},{"$f":"(SUMPRODUCT(Y$9:Y$229,Nutrients!$ED$8:$ED$228)+(IF($A$7=Nutrients!$B$8,Nutrients!$ED$8,Nutrients!$ED$9)*Y$7)+(((IF($A$8=Nutrients!$B$79,Nutrients!$ED$79,(IF($A$8=Nutrients!$B$77,Nutrients!$ED$77,Nutrients!$ED$78)))))*Y$8))/2000","v":0},{"$f":"(SUMPRODUCT(Z$9:Z$229,Nutrients!$ED$8:$ED$228)+(IF($A$7=Nutrients!$B$8,Nutrients!$ED$8,Nutrients!$ED$9)*Z$7)+(((IF($A$8=Nutrients!$B$79,Nutrients!$ED$79,(IF($A$8=Nutrients!$B$77,Nutrients!$ED$77,Nutrients!$ED$78)))))*Z$8))/2000","v":0},{"$f":"(SUMPRODUCT(AA$9:AA$229,Nutrients!$ED$8:$ED$228)+(IF($A$7=Nutrients!$B$8,Nutrients!$ED$8,Nutrients!$ED$9)*AA$7)+(((IF($A$8=Nutrients!$B$79,Nutrients!$ED$79,(IF($A$8=Nutrients!$B$77,Nutrients!$ED$77,Nutrients!$ED$78)))))*AA$8))/2000","v":0},{"$f":"(SUMPRODUCT(AB$9:AB$229,Nutrients!$ED$8:$ED$228)+(IF($A$7=Nutrients!$B$8,Nutrients!$ED$8,Nutrients!$ED$9)*AB$7)+(((IF($A$8=Nutrients!$B$79,Nutrients!$ED$79,(IF($A$8=Nutrients!$B$77,Nutrients!$ED$77,Nutrients!$ED$78)))))*AB$8))/2000","v":0},null,{"$f":"(SUMPRODUCT(AD$9:AD$229,Nutrients!$ED$8:$ED$228)+(IF($A$7=Nutrients!$B$8,Nutrients!$ED$8,Nutrients!$ED$9)*AD$7)+(((IF($A$8=Nutrients!$B$79,Nutrients!$ED$79,(IF($A$8=Nutrients!$B$77,Nutrients!$ED$77,Nutrients!$ED$78)))))*AD$8))/2000","v":0},{"$f":"(SUMPRODUCT(AE$9:AE$229,Nutrients!$ED$8:$ED$228)+(IF($A$7=Nutrients!$B$8,Nutrients!$ED$8,Nutrients!$ED$9)*AE$7)+(((IF($A$8=Nutrients!$B$79,Nutrients!$ED$79,(IF($A$8=Nutrients!$B$77,Nutrients!$ED$77,Nutrients!$ED$78)))))*AE$8))/2000","v":0},{"$f":"(SUMPRODUCT(AF$9:AF$229,Nutrients!$ED$8:$ED$228)+(IF($A$7=Nutrients!$B$8,Nutrients!$ED$8,Nutrients!$ED$9)*AF$7)+(((IF($A$8=Nutrients!$B$79,Nutrients!$ED$79,(IF($A$8=Nutrients!$B$77,Nutrients!$ED$77,Nutrients!$ED$78)))))*AF$8))/2000","v":0},{"$f":"(SUMPRODUCT(AG$9:AG$229,Nutrients!$ED$8:$ED$228)+(IF($A$7=Nutrients!$B$8,Nutrients!$ED$8,Nutrients!$ED$9)*AG$7)+(((IF($A$8=Nutrients!$B$79,Nutrients!$ED$79,(IF($A$8=Nutrients!$B$77,Nutrients!$ED$77,Nutrients!$ED$78)))))*AG$8))/2000","v":0},{"$f":"(SUMPRODUCT(AH$9:AH$229,Nutrients!$ED$8:$ED$228)+(IF($A$7=Nutrients!$B$8,Nutrients!$ED$8,Nutrients!$ED$9)*AH$7)+(((IF($A$8=Nutrients!$B$79,Nutrients!$ED$79,(IF($A$8=Nutrients!$B$77,Nutrients!$ED$77,Nutrients!$ED$78)))))*AH$8))/2000","v":0},{"$f":"(SUMPRODUCT(AI$9:AI$229,Nutrients!$ED$8:$ED$228)+(IF($A$7=Nutrients!$B$8,Nutrients!$ED$8,Nutrients!$ED$9)*AI$7)+(((IF($A$8=Nutrients!$B$79,Nutrients!$ED$79,(IF($A$8=Nutrients!$B$77,Nutrients!$ED$77,Nutrients!$ED$78)))))*AI$8))/2000","v":0},null,{"$f":"(SUMPRODUCT(AK$9:AK$229,Nutrients!$ED$8:$ED$228)+(IF($A$7=Nutrients!$B$8,Nutrients!$ED$8,Nutrients!$ED$9)*AK$7)+(((IF($A$8=Nutrients!$B$79,Nutrients!$ED$79,(IF($A$8=Nutrients!$B$77,Nutrients!$ED$77,Nutrients!$ED$78)))))*AK$8))/2000","v":0},{"$f":"(SUMPRODUCT(AL$9:AL$229,Nutrients!$ED$8:$ED$228)+(IF($A$7=Nutrients!$B$8,Nutrients!$ED$8,Nutrients!$ED$9)*AL$7)+(((IF($A$8=Nutrients!$B$79,Nutrients!$ED$79,(IF($A$8=Nutrients!$B$77,Nutrients!$ED$77,Nutrients!$ED$78)))))*AL$8))/2000","v":0},{"$f":"(SUMPRODUCT(AM$9:AM$229,Nutrients!$ED$8:$ED$228)+(IF($A$7=Nutrients!$B$8,Nutrients!$ED$8,Nutrients!$ED$9)*AM$7)+(((IF($A$8=Nutrients!$B$79,Nutrients!$ED$79,(IF($A$8=Nutrients!$B$77,Nutrients!$ED$77,Nutrients!$ED$78)))))*AM$8))/2000","v":0},{"$f":"(SUMPRODUCT(AN$9:AN$229,Nutrients!$ED$8:$ED$228)+(IF($A$7=Nutrients!$B$8,Nutrients!$ED$8,Nutrients!$ED$9)*AN$7)+(((IF($A$8=Nutrients!$B$79,Nutrients!$ED$79,(IF($A$8=Nutrients!$B$77,Nutrients!$ED$77,Nutrients!$ED$78)))))*AN$8))/2000","v":0},{"$f":"(SUMPRODUCT(AO$9:AO$229,Nutrients!$ED$8:$ED$228)+(IF($A$7=Nutrients!$B$8,Nutrients!$ED$8,Nutrients!$ED$9)*AO$7)+(((IF($A$8=Nutrients!$B$79,Nutrients!$ED$79,(IF($A$8=Nutrients!$B$77,Nutrients!$ED$77,Nutrients!$ED$78)))))*AO$8))/2000","v":0},{"$f":"(SUMPRODUCT(AP$9:AP$229,Nutrients!$ED$8:$ED$228)+(IF($A$7=Nutrients!$B$8,Nutrients!$ED$8,Nutrients!$ED$9)*AP$7)+(((IF($A$8=Nutrients!$B$79,Nutrients!$ED$79,(IF($A$8=Nutrients!$B$77,Nutrients!$ED$77,Nutrients!$ED$78)))))*AP$8))/2000","v":0},null,{"$f":"(SUMPRODUCT(AR$9:AR$229,Nutrients!$ED$8:$ED$228)+(IF($A$7=Nutrients!$B$8,Nutrients!$ED$8,Nutrients!$ED$9)*AR$7)+(((IF($A$8=Nutrients!$B$79,Nutrients!$ED$79,(IF($A$8=Nutrients!$B$77,Nutrients!$ED$77,Nutrients!$ED$78)))))*AR$8))/2000","v":0},{"$f":"(SUMPRODUCT(AS$9:AS$229,Nutrients!$ED$8:$ED$228)+(IF($A$7=Nutrients!$B$8,Nutrients!$ED$8,Nutrients!$ED$9)*AS$7)+(((IF($A$8=Nutrients!$B$79,Nutrients!$ED$79,(IF($A$8=Nutrients!$B$77,Nutrients!$ED$77,Nutrients!$ED$78)))))*AS$8))/2000","v":0},{"$f":"(SUMPRODUCT(AT$9:AT$229,Nutrients!$ED$8:$ED$228)+(IF($A$7=Nutrients!$B$8,Nutrients!$ED$8,Nutrients!$ED$9)*AT$7)+(((IF($A$8=Nutrients!$B$79,Nutrients!$ED$79,(IF($A$8=Nutrients!$B$77,Nutrients!$ED$77,Nutrients!$ED$78)))))*AT$8))/2000","v":0},{"$f":"(SUMPRODUCT(AU$9:AU$229,Nutrients!$ED$8:$ED$228)+(IF($A$7=Nutrients!$B$8,Nutrients!$ED$8,Nutrients!$ED$9)*AU$7)+(((IF($A$8=Nutrients!$B$79,Nutrients!$ED$79,(IF($A$8=Nutrients!$B$77,Nutrients!$ED$77,Nutrients!$ED$78)))))*AU$8))/2000","v":0},{"$f":"(SUMPRODUCT(AV$9:AV$229,Nutrients!$ED$8:$ED$228)+(IF($A$7=Nutrients!$B$8,Nutrients!$ED$8,Nutrients!$ED$9)*AV$7)+(((IF($A$8=Nutrients!$B$79,Nutrients!$ED$79,(IF($A$8=Nutrients!$B$77,Nutrients!$ED$77,Nutrients!$ED$78)))))*AV$8))/2000","v":0},{"$f":"(SUMPRODUCT(AW$9:AW$229,Nutrients!$ED$8:$ED$228)+(IF($A$7=Nutrients!$B$8,Nutrients!$ED$8,Nutrients!$ED$9)*AW$7)+(((IF($A$8=Nutrients!$B$79,Nutrients!$ED$79,(IF($A$8=Nutrients!$B$77,Nutrients!$ED$77,Nutrients!$ED$78)))))*AW$8))/2000","v":0}]
["IV value of diet",{"$f":"(SUMPRODUCT(B$9:B$229,Nutrients!$EH$8:$EH$228)+(IF($A$7=Nutrients!$B$8,Nutrients!$EH$8,Nutrients!$EH$9)*B$7)+(((IF($A$8=Nutrients!$B$79,Nutrients!$EH$79,(IF($A$8=Nutrients!$B$77,Nutrients!$EH$77,Nutrients!$EH$78)))))*B$8))/2000","v":35.538484918485338},{"$f":"(SUMPRODUCT(C$9:C$229,Nutrients!$EH$8:$EH$228)+(IF($A$7=Nutrients!$B$8,Nutrients!$EH$8,Nutrients!$EH$9)*C$7)+(((IF($A$8=Nutrients!$B$79,Nutrients!$EH$79,(IF($A$8=Nutrients!$B$77,Nutrients!$EH$77,Nutrients!$EH$78)))))*C$8))/2000","v":36.696132579183029},{"$f":"(SUMPRODUCT(D$9:D$229,Nutrients!$EH$8:$EH$228)+(IF($A$7=Nutrients!$B$8,Nutrients!$EH$8,Nutrients!$EH$9)*D$7)+(((IF($A$8=Nutrients!$B$79,Nutrients!$EH$79,(IF($A$8=Nutrients!$B$77,Nutrients!$EH$77,Nutrients!$EH$78)))))*D$8))/2000","v":37.687698685025424},{"$f":"(SUMPRODUCT(E$9:E$229,Nutrients!$EH$8:$EH$228)+(IF($A$7=Nutrients!$B$8,Nutrients!$EH$8,Nutrients!$EH$9)*E$7)+(((IF($A$8=Nutrients!$B$79,Nutrients!$EH$79,(IF($A$8=Nutrients!$B$77,Nutrients!$EH$77,Nutrients!$EH$78)))))*E$8))/2000","v":38.621947982979158},{"$f":"(SUMPRODUCT(F$9:F$229,Nutrients!$EH$8:$EH$228)+(IF($A$7=Nutrients!$B$8,Nutrients!$EH$8,Nutrients!$EH$9)*F$7)+(((IF($A$8=Nutrients!$B$79,Nutrients!$EH$79,(IF($A$8=Nutrients!$B$77,Nutrients!$EH$77,Nutrients!$EH$78)))))*F$8))/2000","v":39.390416669843518},{"$f":"(SUMPRODUCT(G$9:G$229,Nutrients!$EH$8:$EH$228)+(IF($A$7=Nutrients!$B$8,Nutrients!$EH$8,Nutrients!$EH$9)*G$7)+(((IF($A$8=Nutrients!$B$79,Nutrients!$EH$79,(IF($A$8=Nutrients!$B$77,Nutrients!$EH$77,Nutrients!$EH$78)))))*G$8))/2000","v":39.795780240411979},null,{"$f":"(SUMPRODUCT(I$9:I$229,Nutrients!$EH$8:$EH$228)+(IF($A$7=Nutrients!$B$8,Nutrients!$EH$8,Nutrients!$EH$9)*I$7)+(((IF($A$8=Nutrients!$B$79,Nutrients!$EH$79,(IF($A$8=Nutrients!$B$77,Nutrients!$EH$77,Nutrients!$EH$78)))))*I$8))/2000","v":34.553029668984003},{"$f":"(SUMPRODUCT(J$9:J$229,Nutrients!$EH$8:$EH$228)+(IF($A$7=Nutrients!$B$8,Nutrients!$EH$8,Nutrients!$EH$9)*J$7)+(((IF($A$8=Nutrients!$B$79,Nutrients!$EH$79,(IF($A$8=Nutrients!$B$77,Nutrients!$EH$77,Nutrients!$EH$78)))))*J$8))/2000","v":35.692508850596795},{"$f":"(SUMPRODUCT(K$9:K$229,Nutrients!$EH$8:$EH$228)+(IF($A$7=Nutrients!$B$8,Nutrients!$EH$8,Nutrients!$EH$9)*K$7)+(((IF($A$8=Nutrients!$B$79,Nutrients!$EH$79,(IF($A$8=Nutrients!$B$77,Nutrients!$EH$77,Nutrients!$EH$78)))))*K$8))/2000","v":36.672380632344002},{"$f":"(SUMPRODUCT(L$9:L$229,Nutrients!$EH$8:$EH$228)+(IF($A$7=Nutrients!$B$8,Nutrients!$EH$8,Nutrients!$EH$9)*L$7)+(((IF($A$8=Nutrients!$B$79,Nutrients!$EH$79,(IF($A$8=Nutrients!$B$77,Nutrients!$EH$77,Nutrients!$EH$78)))))*L$8))/2000","v":37.598169208049136},{"$f":"(SUMPRODUCT(M$9:M$229,Nutrients!$EH$8:$EH$228)+(IF($A$7=Nutrients!$B$8,Nutrients!$EH$8,Nutrients!$EH$9)*M$7)+(((IF($A$8=Nutrients!$B$79,Nutrients!$EH$79,(IF($A$8=Nutrients!$B$77,Nutrients!$EH$77,Nutrients!$EH$78)))))*M$8))/2000","v":38.368337387595318},{"$f":"(SUMPRODUCT(N$9:N$229,Nutrients!$EH$8:$EH$228)+(IF($A$7=Nutrients!$B$8,Nutrients!$EH$8,Nutrients!$EH$9)*N$7)+(((IF($A$8=Nutrients!$B$79,Nutrients!$EH$79,(IF($A$8=Nutrients!$B$77,Nutrients!$EH$77,Nutrients!$EH$78)))))*N$8))/2000","v":39.795780240411979},null,{"$f":"(SUMPRODUCT(P$9:P$229,Nutrients!$EH$8:$EH$228)+(IF($A$7=Nutrients!$B$8,Nutrients!$EH$8,Nutrients!$EH$9)*P$7)+(((IF($A$8=Nutrients!$B$79,Nutrients!$EH$79,(IF($A$8=Nutrients!$B$77,Nutrients!$EH$77,Nutrients!$EH$78)))))*P$8))/2000","v":33.546769015824715},{"$f":"(SUMPRODUCT(Q$9:Q$229,Nutrients!$EH$8:$EH$228)+(IF($A$7=Nutrients!$B$8,Nutrients!$EH$8,Nutrients!$EH$9)*Q$7)+(((IF($A$8=Nutrients!$B$79,Nutrients!$EH$79,(IF($A$8=Nutrients!$B$77,Nutrients!$EH$77,Nutrients!$EH$78)))))*Q$8))/2000","v":34.674369384925761},{"$f":"(SUMPRODUCT(R$9:R$229,Nutrients!$EH$8:$EH$228)+(IF($A$7=Nutrients!$B$8,Nutrients!$EH$8,Nutrients!$EH$9)*R$7)+(((IF($A$8=Nutrients!$B$79,Nutrients!$EH$79,(IF($A$8=Nutrients!$B$77,Nutrients!$EH$77,Nutrients!$EH$78)))))*R$8))/2000","v":35.645189580692879},{"$f":"(SUMPRODUCT(S$9:S$229,Nutrients!$EH$8:$EH$228)+(IF($A$7=Nutrients!$B$8,Nutrients!$EH$8,Nutrients!$EH$9)*S$7)+(((IF($A$8=Nutrients!$B$79,Nutrients!$EH$79,(IF($A$8=Nutrients!$B$77,Nutrients!$EH$77,Nutrients!$EH$78)))))*S$8))/2000","v":36.57428676563314},{"$f":"(SUMPRODUCT(T$9:T$229,Nutrients!$EH$8:$EH$228)+(IF($A$7=Nutrients!$B$8,Nutrients!$EH$8,Nutrients!$EH$9)*T$7)+(((IF($A$8=Nutrients!$B$79,Nutrients!$EH$79,(IF($A$8=Nutrients!$B$77,Nutrients!$EH$77,Nutrients!$EH$78)))))*T$8))/2000","v":37.336202304992007},{"$f":"(SUMPRODUCT(U$9:U$229,Nutrients!$EH$8:$EH$228)+(IF($A$7=Nutrients!$B$8,Nutrients!$EH$8,Nutrients!$EH$9)*U$7)+(((IF($A$8=Nutrients!$B$79,Nutrients!$EH$79,(IF($A$8=Nutrients!$B$77,Nutrients!$EH$77,Nutrients!$EH$78)))))*U$8))/2000","v":39.795780240411979},null,{"$f":"(SUMPRODUCT(W$9:W$229,Nutrients!$EH$8:$EH$228)+(IF($A$7=Nutrients!$B$8,Nutrients!$EH$8,Nutrients!$EH$9)*W$7)+(((IF($A$8=Nutrients!$B$79,Nutrients!$EH$79,(IF($A$8=Nutrients!$B$77,Nutrients!$EH$77,Nutrients!$EH$78)))))*W$8))/2000","v":32.539382734549534},{"$f":"(SUMPRODUCT(X$9:X$229,Nutrients!$EH$8:$EH$228)+(IF($A$7=Nutrients!$B$8,Nutrients!$EH$8,Nutrients!$EH$9)*X$7)+(((IF($A$8=Nutrients!$B$79,Nutrients!$EH$79,(IF($A$8=Nutrients!$B$77,Nutrients!$EH$77,Nutrients!$EH$78)))))*X$8))/2000","v":33.657034574506},{"$f":"(SUMPRODUCT(Y$9:Y$229,Nutrients!$EH$8:$EH$228)+(IF($A$7=Nutrients!$B$8,Nutrients!$EH$8,Nutrients!$EH$9)*Y$7)+(((IF($A$8=Nutrients!$B$79,Nutrients!$EH$79,(IF($A$8=Nutrients!$B$77,Nutrients!$EH$77,Nutrients!$EH$78)))))*Y$8))/2000","v":34.630320996750889},{"$f":"(SUMPRODUCT(Z$9:Z$229,Nutrients!$EH$8:$EH$228)+(IF($A$7=Nutrients!$B$8,Nutrients!$EH$8,Nutrients!$EH$9)*Z$7)+(((IF($A$8=Nutrients!$B$79,Nutrients!$EH$79,(IF($A$8=Nutrients!$B$77,Nutrients!$EH$77,Nutrients!$EH$78)))))*Z$8))/2000","v":35.544511098094091},{"$f":"(SUMPRODUCT(AA$9:AA$229,Nutrients!$EH$8:$EH$228)+(IF($A$7=Nutrients!$B$8,Nutrients!$EH$8,Nutrients!$EH$9)*AA$7)+(((IF($A$8=Nutrients!$B$79,Nutrients!$EH$79,(IF($A$8=Nutrients!$B$77,Nutrients!$EH$77,Nutrients!$EH$78)))))*AA$8))/2000","v":36.295611273934675},{"$f":"(SUMPRODUCT(AB$9:AB$229,Nutrients!$EH$8:$EH$228)+(IF($A$7=Nutrients!$B$8,Nutrients!$EH$8,Nutrients!$EH$9)*AB$7)+(((IF($A$8=Nutrients!$B$79,Nutrients!$EH$79,(IF($A$8=Nutrients!$B$77,Nutrients!$EH$77,Nutrients!$EH$78)))))*AB$8))/2000","v":39.795780240411979},null,{"$f":"(SUMPRODUCT(AD$9:AD$229,Nutrients!$EH$8:$EH$228)+(IF($A$7=Nutrients!$B$8,Nutrients!$EH$8,Nutrients!$EH$9)*AD$7)+(((IF($A$8=Nutrients!$B$79,Nutrients!$EH$79,(IF($A$8=Nutrients!$B$77,Nutrients!$EH$77,Nutrients!$EH$78)))))*AD$8))/2000","v":31.531413580597036},{"$f":"(SUMPRODUCT(AE$9:AE$229,Nutrients!$EH$8:$EH$228)+(IF($A$7=Nutrients!$B$8,Nutrients!$EH$8,Nutrients!$EH$9)*AE$7)+(((IF($A$8=Nutrients!$B$79,Nutrients!$EH$79,(IF($A$8=Nutrients!$B$77,Nutrients!$EH$77,Nutrients!$EH$78)))))*AE$8))/2000","v":32.651664659056728},{"$f":"(SUMPRODUCT(AF$9:AF$229,Nutrients!$EH$8:$EH$228)+(IF($A$7=Nutrients!$B$8,Nutrients!$EH$8,Nutrients!$EH$9)*AF$7)+(((IF($A$8=Nutrients!$B$79,Nutrients!$EH$79,(IF($A$8=Nutrients!$B$77,Nutrients!$EH$77,Nutrients!$EH$78)))))*AF$8))/2000","v":33.6098232986905},{"$f":"(SUMPRODUCT(AG$9:AG$229,Nutrients!$EH$8:$EH$228)+(IF($A$7=Nutrients!$B$8,Nutrients!$EH$8,Nutrients!$EH$9)*AG$7)+(((IF($A$8=Nutrients!$B$79,Nutrients!$EH$79,(IF($A$8=Nutrients!$B$77,Nutrients!$EH$77,Nutrients!$EH$78)))))*AG$8))/2000","v":34.508268515147947},{"$f":"(SUMPRODUCT(AH$9:AH$229,Nutrients!$EH$8:$EH$228)+(IF($A$7=Nutrients!$B$8,Nutrients!$EH$8,Nutrients!$EH$9)*AH$7)+(((IF($A$8=Nutrients!$B$79,Nutrients!$EH$79,(IF($A$8=Nutrients!$B$77,Nutrients!$EH$77,Nutrients!$EH$78)))))*AH$8))/2000","v":35.229262001848639},{"$f":"(SUMPRODUCT(AI$9:AI$229,Nutrients!$EH$8:$EH$228)+(IF($A$7=Nutrients!$B$8,Nutrients!$EH$8,Nutrients!$EH$9)*AI$7)+(((IF($A$8=Nutrients!$B$79,Nutrients!$EH$79,(IF($A$8=Nutrients!$B$77,Nutrients!$EH$77,Nutrients!$EH$78)))))*AI$8))/2000","v":39.795780240411979},null,{"$f":"(SUMPRODUCT(AK$9:AK$229,Nutrients!$EH$8:$EH$228)+(IF($A$7=Nutrients!$B$8,Nutrients!$EH$8,Nutrients!$EH$9)*AK$7)+(((IF($A$8=Nutrients!$B$79,Nutrients!$EH$79,(IF($A$8=Nutrients!$B$77,Nutrients!$EH$77,Nutrients!$EH$78)))))*AK$8))/2000","v":30.519378046841233},{"$f":"(SUMPRODUCT(AL$9:AL$229,Nutrients!$EH$8:$EH$228)+(IF($A$7=Nutrients!$B$8,Nutrients!$EH$8,Nutrients!$EH$9)*AL$7)+(((IF($A$8=Nutrients!$B$79,Nutrients!$EH$79,(IF($A$8=Nutrients!$B$77,Nutrients!$EH$77,Nutrients!$EH$78)))))*AL$8))/2000","v":31.643925986778537},{"$f":"(SUMPRODUCT(AM$9:AM$229,Nutrients!$EH$8:$EH$228)+(IF($A$7=Nutrients!$B$8,Nutrients!$EH$8,Nutrients!$EH$9)*AM$7)+(((IF($A$8=Nutrients!$B$79,Nutrients!$EH$79,(IF($A$8=Nutrients!$B$77,Nutrients!$EH$77,Nutrients!$EH$78)))))*AM$8))/2000","v":32.58533577955329},{"$f":"(SUMPRODUCT(AN$9:AN$229,Nutrients!$EH$8:$EH$228)+(IF($A$7=Nutrients!$B$8,Nutrients!$EH$8,Nutrients!$EH$9)*AN$7)+(((IF($A$8=Nutrients!$B$79,Nutrients!$EH$79,(IF($A$8=Nutrients!$B$77,Nutrients!$EH$77,Nutrients!$EH$78)))))*AN$8))/2000","v":33.452546827412327},{"$f":"(SUMPRODUCT(AO$9:AO$229,Nutrients!$EH$8:$EH$228)+(IF($A$7=Nutrients!$B$8,Nutrients!$EH$8,Nutrients!$EH$9)*AO$7)+(((IF($A$8=Nutrients!$B$79,Nutrients!$EH$79,(IF($A$8=Nutrients!$B$77,Nutrients!$EH$77,Nutrients!$EH$78)))))*AO$8))/2000","v":34.154199519304676},{"$f":"(SUMPRODUCT(AP$9:AP$229,Nutrients!$EH$8:$EH$228)+(IF($A$7=Nutrients!$B$8,Nutrients!$EH$8,Nutrients!$EH$9)*AP$7)+(((IF($A$8=Nutrients!$B$79,Nutrients!$EH$79,(IF($A$8=Nutrients!$B$77,Nutrients!$EH$77,Nutrients!$EH$78)))))*AP$8))/2000","v":39.795780240411979},null,{"$f":"(SUMPRODUCT(AR$9:AR$229,Nutrients!$EH$8:$EH$228)+(IF($A$7=Nutrients!$B$8,Nutrients!$EH$8,Nutrients!$EH$9)*AR$7)+(((IF($A$8=Nutrients!$B$79,Nutrients!$EH$79,(IF($A$8=Nutrients!$B$77,Nutrients!$EH$77,Nutrients!$EH$78)))))*AR$8))/2000","v":29.48168558332069},{"$f":"(SUMPRODUCT(AS$9:AS$229,Nutrients!$EH$8:$EH$228)+(IF($A$7=Nutrients!$B$8,Nutrients!$EH$8,Nutrients!$EH$9)*AS$7)+(((IF($A$8=Nutrients!$B$79,Nutrients!$EH$79,(IF($A$8=Nutrients!$B$77,Nutrients!$EH$77,Nutrients!$EH$78)))))*AS$8))/2000","v":30.632317853375774},{"$f":"(SUMPRODUCT(AT$9:AT$229,Nutrients!$EH$8:$EH$228)+(IF($A$7=Nutrients!$B$8,Nutrients!$EH$8,Nutrients!$EH$9)*AT$7)+(((IF($A$8=Nutrients!$B$79,Nutrients!$EH$79,(IF($A$8=Nutrients!$B$77,Nutrients!$EH$77,Nutrients!$EH$78)))))*AT$8))/2000","v":31.554579779580138},{"$f":"(SUMPRODUCT(AU$9:AU$229,Nutrients!$EH$8:$EH$228)+(IF($A$7=Nutrients!$B$8,Nutrients!$EH$8,Nutrients!$EH$9)*AU$7)+(((IF($A$8=Nutrients!$B$79,Nutrients!$EH$79,(IF($A$8=Nutrients!$B$77,Nutrients!$EH$77,Nutrients!$EH$78)))))*AU$8))/2000","v":32.381684700205724},{"$f":"(SUMPRODUCT(AV$9:AV$229,Nutrients!$EH$8:$EH$228)+(IF($A$7=Nutrients!$B$8,Nutrients!$EH$8,Nutrients!$EH$9)*AV$7)+(((IF($A$8=Nutrients!$B$79,Nutrients!$EH$79,(IF($A$8=Nutrients!$B$77,Nutrients!$EH$77,Nutrients!$EH$78)))))*AV$8))/2000","v":33.079067645301762},{"$f":"(SUMPRODUCT(AW$9:AW$229,Nutrients!$EH$8:$EH$228)+(IF($A$7=Nutrients!$B$8,Nutrients!$EH$8,Nutrients!$EH$9)*AW$7)+(((IF($A$8=Nutrients!$B$79,Nutrients!$EH$79,(IF($A$8=Nutrients!$B$77,Nutrients!$EH$77,Nutrients!$EH$78)))))*AW$8))/2000","v":39.795780240411979}]
["IV value of product, estimate",{"$f":"(0.4472*B304)+51.796","v":67.688810455546644},68.206510489410647,68.649938851943375,69.067735137988279,69.411394334754021,69.592672923512239,null,{"$f":"(0.4472*I304)+51.796","v":67.248114867969647},67.757689957986884,68.195888618784238,68.609901269839568,68.95432047973263,69.592672923512239,null,{"$f":"(0.4472*P304)+51.796","v":66.79811510387681},67.302377988938801,67.736528780485855,68.152021041591141,68.492749670792421,69.592672923512239,null,{"$f":"(0.4472*W304)+51.796","v":66.347611958890553},66.847425861719074,67.282679549747002,67.691505363067677,68.027397361703578,69.592672923512239,null,{"$f":"(0.4472*AD304)+51.796","v":65.896848153242999},66.397824435530168,66.826312979174389,67.228097679974155,67.550525967226704,69.592672923512239,null,{"$f":"(0.4472*AK304)+51.796","v":65.444265862547397},65.947163701287366,66.368162160616237,66.755978941218785,67.069758025033053,69.592672923512239,null,{"$f":"(0.4472*AR304)+51.796","v":64.980209792861018},65.494772544029644,65.907208077428237,66.277089397932002,66.588959050978943,69.592672923512239]
["Na, %",{"$f":"(SUMPRODUCT(B$9:B$229,Nutrients!$BW$8:$BW$228)+(IF($A$7=Nutrients!$B$8,Nutrients!$BW$8,Nutrients!$BW$9)*B$7)+(((IF($A$8=Nutrients!$B$79,Nutrients!$BW$79,(IF($A$8=Nutrients!$B$77,Nutrients!$BW$77,Nutrients!$BW$78)))))*B$8))/2000","v":0.17585444277585438},{"$f":"(SUMPRODUCT(C$9:C$229,Nutrients!$BW$8:$BW$228)+(IF($A$7=Nutrients!$B$8,Nutrients!$BW$8,Nutrients!$BW$9)*C$7)+(((IF($A$8=Nutrients!$B$79,Nutrients!$BW$79,(IF($A$8=Nutrients!$B$77,Nutrients!$BW$77,Nutrients!$BW$78)))))*C$8))/2000","v":0.17313593688104692},{"$f":"(SUMPRODUCT(D$9:D$229,Nutrients!$BW$8:$BW$228)+(IF($A$7=Nutrients!$B$8,Nutrients!$BW$8,Nutrients!$BW$9)*D$7)+(((IF($A$8=Nutrients!$B$79,Nutrients!$BW$79,(IF($A$8=Nutrients!$B$77,Nutrients!$BW$77,Nutrients!$BW$78)))))*D$8))/2000","v":0.17084392516917876},{"$f":"(SUMPRODUCT(E$9:E$229,Nutrients!$BW$8:$BW$228)+(IF($A$7=Nutrients!$B$8,Nutrients!$BW$8,Nutrients!$BW$9)*E$7)+(((IF($A$8=Nutrients!$B$79,Nutrients!$BW$79,(IF($A$8=Nutrients!$B$77,Nutrients!$BW$77,Nutrients!$BW$78)))))*E$8))/2000","v":0.16862311318463774},{"$f":"(SUMPRODUCT(F$9:F$229,Nutrients!$BW$8:$BW$228)+(IF($A$7=Nutrients!$B$8,Nutrients!$BW$8,Nutrients!$BW$9)*F$7)+(((IF($A$8=Nutrients!$B$79,Nutrients!$BW$79,(IF($A$8=Nutrients!$B$77,Nutrients!$BW$77,Nutrients!$BW$78)))))*F$8))/2000","v":0.16677873706348853},{"$f":"(SUMPRODUCT(G$9:G$229,Nutrients!$BW$8:$BW$228)+(IF($A$7=Nutrients!$B$8,Nutrients!$BW$8,Nutrients!$BW$9)*G$7)+(((IF($A$8=Nutrients!$B$79,Nutrients!$BW$79,(IF($A$8=Nutrients!$B$77,Nutrients!$BW$77,Nutrients!$BW$78)))))*G$8))/2000","v":0.16577103413561747},null,{"$f":"(SUMPRODUCT(I$9:I$229,Nutrients!$BW$8:$BW$228)+(IF($A$7=Nutrients!$B$8,Nutrients!$BW$8,Nutrients!$BW$9)*I$7)+(((IF($A$8=Nutrients!$B$79,Nutrients!$BW$79,(IF($A$8=Nutrients!$B$77,Nutrients!$BW$77,Nutrients!$BW$78)))))*I$8))/2000","v":0.18319762970323239},{"$f":"(SUMPRODUCT(J$9:J$229,Nutrients!$BW$8:$BW$228)+(IF($A$7=Nutrients!$B$8,Nutrients!$BW$8,Nutrients!$BW$9)*J$7)+(((IF($A$8=Nutrients!$B$79,Nutrients!$BW$79,(IF($A$8=Nutrients!$B$77,Nutrients!$BW$77,Nutrients!$BW$78)))))*J$8))/2000","v":0.18052372934420191},{"$f":"(SUMPRODUCT(K$9:K$229,Nutrients!$BW$8:$BW$228)+(IF($A$7=Nutrients!$B$8,Nutrients!$BW$8,Nutrients!$BW$9)*K$7)+(((IF($A$8=Nutrients!$B$79,Nutrients!$BW$79,(IF($A$8=Nutrients!$B$77,Nutrients!$BW$77,Nutrients!$BW$78)))))*K$8))/2000","v":0.17824662181473622},{"$f":"(SUMPRODUCT(L$9:L$229,Nutrients!$BW$8:$BW$228)+(IF($A$7=Nutrients!$B$8,Nutrients!$BW$8,Nutrients!$BW$9)*L$7)+(((IF($A$8=Nutrients!$B$79,Nutrients!$BW$79,(IF($A$8=Nutrients!$B$77,Nutrients!$BW$77,Nutrients!$BW$78)))))*L$8))/2000","v":0.1760524065896884},{"$f":"(SUMPRODUCT(M$9:M$229,Nutrients!$BW$8:$BW$228)+(IF($A$7=Nutrients!$B$8,Nutrients!$BW$8,Nutrients!$BW$9)*M$7)+(((IF($A$8=Nutrients!$B$79,Nutrients!$BW$79,(IF($A$8=Nutrients!$B$77,Nutrients!$BW$77,Nutrients!$BW$78)))))*M$8))/2000","v":0.17420794749635488},{"$f":"(SUMPRODUCT(N$9:N$229,Nutrients!$BW$8:$BW$228)+(IF($A$7=Nutrients!$B$8,Nutrients!$BW$8,Nutrients!$BW$9)*N$7)+(((IF($A$8=Nutrients!$B$79,Nutrients!$BW$79,(IF($A$8=Nutrients!$B$77,Nutrients!$BW$77,Nutrients!$BW$78)))))*N$8))/2000","v":0.16577103413561747},null,{"$f":"(SUMPRODUCT(P$9:P$229,Nutrients!$BW$8:$BW$228)+(IF($A$7=Nutrients!$B$8,Nutrients!$BW$8,Nutrients!$BW$9)*P$7)+(((IF($A$8=Nutrients!$B$79,Nutrients!$BW$79,(IF($A$8=Nutrients!$B$77,Nutrients!$BW$77,Nutrients!$BW$78)))))*P$8))/2000","v":0.19058880290891977},{"$f":"(SUMPRODUCT(Q$9:Q$229,Nutrients!$BW$8:$BW$228)+(IF($A$7=Nutrients!$B$8,Nutrients!$BW$8,Nutrients!$BW$9)*Q$7)+(((IF($A$8=Nutrients!$B$79,Nutrients!$BW$79,(IF($A$8=Nutrients!$B$77,Nutrients!$BW$77,Nutrients!$BW$78)))))*Q$8))/2000","v":0.18793592639723561},{"$f":"(SUMPRODUCT(R$9:R$229,Nutrients!$BW$8:$BW$228)+(IF($A$7=Nutrients!$B$8,Nutrients!$BW$8,Nutrients!$BW$9)*R$7)+(((IF($A$8=Nutrients!$B$79,Nutrients!$BW$79,(IF($A$8=Nutrients!$B$77,Nutrients!$BW$77,Nutrients!$BW$78)))))*R$8))/2000","v":0.18568144193667493},{"$f":"(SUMPRODUCT(S$9:S$229,Nutrients!$BW$8:$BW$228)+(IF($A$7=Nutrients!$B$8,Nutrients!$BW$8,Nutrients!$BW$9)*S$7)+(((IF($A$8=Nutrients!$B$79,Nutrients!$BW$79,(IF($A$8=Nutrients!$B$77,Nutrients!$BW$77,Nutrients!$BW$78)))))*S$8))/2000","v":0.18347610863080288},{"$f":"(SUMPRODUCT(T$9:T$229,Nutrients!$BW$8:$BW$228)+(IF($A$7=Nutrients!$B$8,Nutrients!$BW$8,Nutrients!$BW$9)*T$7)+(((IF($A$8=Nutrients!$B$79,Nutrients!$BW$79,(IF($A$8=Nutrients!$B$77,Nutrients!$BW$77,Nutrients!$BW$78)))))*T$8))/2000","v":0.18165037327511316},{"$f":"(SUMPRODUCT(U$9:U$229,Nutrients!$BW$8:$BW$228)+(IF($A$7=Nutrients!$B$8,Nutrients!$BW$8,Nutrients!$BW$9)*U$7)+(((IF($A$8=Nutrients!$B$79,Nutrients!$BW$79,(IF($A$8=Nutrients!$B$77,Nutrients!$BW$77,Nutrients!$BW$78)))))*U$8))/2000","v":0.16577103413561747},null,{"$f":"(SUMPRODUCT(W$9:W$229,Nutrients!$BW$8:$BW$228)+(IF($A$7=Nutrients!$B$8,Nutrients!$BW$8,Nutrients!$BW$9)*W$7)+(((IF($A$8=Nutrients!$B$79,Nutrients!$BW$79,(IF($A$8=Nutrients!$B$77,Nutrients!$BW$77,Nutrients!$BW$78)))))*W$8))/2000","v":0.19797941670614247},{"$f":"(SUMPRODUCT(X$9:X$229,Nutrients!$BW$8:$BW$228)+(IF($A$7=Nutrients!$B$8,Nutrients!$BW$8,Nutrients!$BW$9)*X$7)+(((IF($A$8=Nutrients!$B$79,Nutrients!$BW$79,(IF($A$8=Nutrients!$B$77,Nutrients!$BW$77,Nutrients!$BW$78)))))*X$8))/2000","v":0.19534791883193384},{"$f":"(SUMPRODUCT(Y$9:Y$229,Nutrients!$BW$8:$BW$228)+(IF($A$7=Nutrients!$B$8,Nutrients!$BW$8,Nutrients!$BW$9)*Y$7)+(((IF($A$8=Nutrients!$B$79,Nutrients!$BW$79,(IF($A$8=Nutrients!$B$77,Nutrients!$BW$77,Nutrients!$BW$78)))))*Y$8))/2000","v":0.19308241815282676},{"$f":"(SUMPRODUCT(Z$9:Z$229,Nutrients!$BW$8:$BW$228)+(IF($A$7=Nutrients!$B$8,Nutrients!$BW$8,Nutrients!$BW$9)*Z$7)+(((IF($A$8=Nutrients!$B$79,Nutrients!$BW$79,(IF($A$8=Nutrients!$B$77,Nutrients!$BW$77,Nutrients!$BW$78)))))*Z$8))/2000","v":0.19090753067375563},{"$f":"(SUMPRODUCT(AA$9:AA$229,Nutrients!$BW$8:$BW$228)+(IF($A$7=Nutrients!$B$8,Nutrients!$BW$8,Nutrients!$BW$9)*AA$7)+(((IF($A$8=Nutrients!$B$79,Nutrients!$BW$79,(IF($A$8=Nutrients!$B$77,Nutrients!$BW$77,Nutrients!$BW$78)))))*AA$8))/2000","v":0.18909246559606993},{"$f":"(SUMPRODUCT(AB$9:AB$229,Nutrients!$BW$8:$BW$228)+(IF($A$7=Nutrients!$B$8,Nutrients!$BW$8,Nutrients!$BW$9)*AB$7)+(((IF($A$8=Nutrients!$B$79,Nutrients!$BW$79,(IF($A$8=Nutrients!$B$77,Nutrients!$BW$77,Nutrients!$BW$78)))))*AB$8))/2000","v":0.16577103413561747},null,{"$f":"(SUMPRODUCT(AD$9:AD$229,Nutrients!$BW$8:$BW$228)+(IF($A$7=Nutrients!$B$8,Nutrients!$BW$8,Nutrients!$BW$9)*AD$7)+(((IF($A$8=Nutrients!$B$79,Nutrients!$BW$79,(IF($A$8=Nutrients!$B$77,Nutrients!$BW$77,Nutrients!$BW$78)))))*AD$8))/2000","v":0.20536684497012131},{"$f":"(SUMPRODUCT(AE$9:AE$229,Nutrients!$BW$8:$BW$228)+(IF($A$7=Nutrients!$B$8,Nutrients!$BW$8,Nutrients!$BW$9)*AE$7)+(((IF($A$8=Nutrients!$B$79,Nutrients!$BW$79,(IF($A$8=Nutrients!$B$77,Nutrients!$BW$77,Nutrients!$BW$78)))))*AE$8))/2000","v":0.20272659264021414},{"$f":"(SUMPRODUCT(AF$9:AF$229,Nutrients!$BW$8:$BW$228)+(IF($A$7=Nutrients!$B$8,Nutrients!$BW$8,Nutrients!$BW$9)*AF$7)+(((IF($A$8=Nutrients!$B$79,Nutrients!$BW$79,(IF($A$8=Nutrients!$B$77,Nutrients!$BW$77,Nutrients!$BW$78)))))*AF$8))/2000","v":0.20049048598481142},{"$f":"(SUMPRODUCT(AG$9:AG$229,Nutrients!$BW$8:$BW$228)+(IF($A$7=Nutrients!$B$8,Nutrients!$BW$8,Nutrients!$BW$9)*AG$7)+(((IF($A$8=Nutrients!$B$79,Nutrients!$BW$79,(IF($A$8=Nutrients!$B$77,Nutrients!$BW$77,Nutrients!$BW$78)))))*AG$8))/2000","v":0.19833719986561096},{"$f":"(SUMPRODUCT(AH$9:AH$229,Nutrients!$BW$8:$BW$228)+(IF($A$7=Nutrients!$B$8,Nutrients!$BW$8,Nutrients!$BW$9)*AH$7)+(((IF($A$8=Nutrients!$B$79,Nutrients!$BW$79,(IF($A$8=Nutrients!$B$77,Nutrients!$BW$77,Nutrients!$BW$78)))))*AH$8))/2000","v":0.19662249518317662},{"$f":"(SUMPRODUCT(AI$9:AI$229,Nutrients!$BW$8:$BW$228)+(IF($A$7=Nutrients!$B$8,Nutrients!$BW$8,Nutrients!$BW$9)*AI$7)+(((IF($A$8=Nutrients!$B$79,Nutrients!$BW$79,(IF($A$8=Nutrients!$B$77,Nutrients!$BW$77,Nutrients!$BW$78)))))*AI$8))/2000","v":0.16577103413561747},null,{"$f":"(SUMPRODUCT(AK$9:AK$229,Nutrients!$BW$8:$BW$228)+(IF($A$7=Nutrients!$B$8,Nutrients!$BW$8,Nutrients!$BW$9)*AK$7)+(((IF($A$8=Nutrients!$B$79,Nutrients!$BW$79,(IF($A$8=Nutrients!$B$77,Nutrients!$BW$77,Nutrients!$BW$78)))))*AK$8))/2000","v":0.21276273423851211},{"$f":"(SUMPRODUCT(AL$9:AL$229,Nutrients!$BW$8:$BW$228)+(IF($A$7=Nutrients!$B$8,Nutrients!$BW$8,Nutrients!$BW$9)*AL$7)+(((IF($A$8=Nutrients!$B$79,Nutrients!$BW$79,(IF($A$8=Nutrients!$B$77,Nutrients!$BW$77,Nutrients!$BW$78)))))*AL$8))/2000","v":0.21011524520387345},{"$f":"(SUMPRODUCT(AM$9:AM$229,Nutrients!$BW$8:$BW$228)+(IF($A$7=Nutrients!$B$8,Nutrients!$BW$8,Nutrients!$BW$9)*AM$7)+(((IF($A$8=Nutrients!$B$79,Nutrients!$BW$79,(IF($A$8=Nutrients!$B$77,Nutrients!$BW$77,Nutrients!$BW$78)))))*AM$8))/2000","v":0.20790154159840904},{"$f":"(SUMPRODUCT(AN$9:AN$229,Nutrients!$BW$8:$BW$228)+(IF($A$7=Nutrients!$B$8,Nutrients!$BW$8,Nutrients!$BW$9)*AN$7)+(((IF($A$8=Nutrients!$B$79,Nutrients!$BW$79,(IF($A$8=Nutrients!$B$77,Nutrients!$BW$77,Nutrients!$BW$78)))))*AN$8))/2000","v":0.20583697985827978},{"$f":"(SUMPRODUCT(AO$9:AO$229,Nutrients!$BW$8:$BW$228)+(IF($A$7=Nutrients!$B$8,Nutrients!$BW$8,Nutrients!$BW$9)*AO$7)+(((IF($A$8=Nutrients!$B$79,Nutrients!$BW$79,(IF($A$8=Nutrients!$B$77,Nutrients!$BW$77,Nutrients!$BW$78)))))*AO$8))/2000","v":0.20418449631842439},{"$f":"(SUMPRODUCT(AP$9:AP$229,Nutrients!$BW$8:$BW$228)+(IF($A$7=Nutrients!$B$8,Nutrients!$BW$8,Nutrients!$BW$9)*AP$7)+(((IF($A$8=Nutrients!$B$79,Nutrients!$BW$79,(IF($A$8=Nutrients!$B$77,Nutrients!$BW$77,Nutrients!$BW$78)))))*AP$8))/2000","v":0.16577103413561747},null,{"$f":"(SUMPRODUCT(AR$9:AR$229,Nutrients!$BW$8:$BW$228)+(IF($A$7=Nutrients!$B$8,Nutrients!$BW$8,Nutrients!$BW$9)*AR$7)+(((IF($A$8=Nutrients!$B$79,Nutrients!$BW$79,(IF($A$8=Nutrients!$B$77,Nutrients!$BW$77,Nutrients!$BW$78)))))*AR$8))/2000","v":0.22022324135223351},{"$f":"(SUMPRODUCT(AS$9:AS$229,Nutrients!$BW$8:$BW$228)+(IF($A$7=Nutrients!$B$8,Nutrients!$BW$8,Nutrients!$BW$9)*AS$7)+(((IF($A$8=Nutrients!$B$79,Nutrients!$BW$79,(IF($A$8=Nutrients!$B$77,Nutrients!$BW$77,Nutrients!$BW$78)))))*AS$8))/2000","v":0.21750280797955365},{"$f":"(SUMPRODUCT(AT$9:AT$229,Nutrients!$BW$8:$BW$228)+(IF($A$7=Nutrients!$B$8,Nutrients!$BW$8,Nutrients!$BW$9)*AT$7)+(((IF($A$8=Nutrients!$B$79,Nutrients!$BW$79,(IF($A$8=Nutrients!$B$77,Nutrients!$BW$77,Nutrients!$BW$78)))))*AT$8))/2000","v":0.21531888015406664},{"$f":"(SUMPRODUCT(AU$9:AU$229,Nutrients!$BW$8:$BW$228)+(IF($A$7=Nutrients!$B$8,Nutrients!$BW$8,Nutrients!$BW$9)*AU$7)+(((IF($A$8=Nutrients!$B$79,Nutrients!$BW$79,(IF($A$8=Nutrients!$B$77,Nutrients!$BW$77,Nutrients!$BW$78)))))*AU$8))/2000","v":0.21338843002624167},{"$f":"(SUMPRODUCT(AV$9:AV$229,Nutrients!$BW$8:$BW$228)+(IF($A$7=Nutrients!$B$8,Nutrients!$BW$8,Nutrients!$BW$9)*AV$7)+(((IF($A$8=Nutrients!$B$79,Nutrients!$BW$79,(IF($A$8=Nutrients!$B$77,Nutrients!$BW$77,Nutrients!$BW$78)))))*AV$8))/2000","v":0.21174666555825902},{"$f":"(SUMPRODUCT(AW$9:AW$229,Nutrients!$BW$8:$BW$228)+(IF($A$7=Nutrients!$B$8,Nutrients!$BW$8,Nutrients!$BW$9)*AW$7)+(((IF($A$8=Nutrients!$B$79,Nutrients!$BW$79,(IF($A$8=Nutrients!$B$77,Nutrients!$BW$77,Nutrients!$BW$78)))))*AW$8))/2000","v":0.16577103413561747}]
["Cl, %",{"$f":"(SUMPRODUCT(B$9:B$229,Nutrients!$BT$8:$BT$228)+(IF($A$7=Nutrients!$B$8,Nutrients!$BT$8,Nutrients!$BT$9)*B$7)+(((IF($A$8=Nutrients!$B$79,Nutrients!$BT$79,(IF($A$8=Nutrients!$B$77,Nutrients!$BT$77,Nutrients!$BT$78)))))*B$8))/2000","v":0.34074334390126987},{"$f":"(SUMPRODUCT(C$9:C$229,Nutrients!$BT$8:$BT$228)+(IF($A$7=Nutrients!$B$8,Nutrients!$BT$8,Nutrients!$BT$9)*C$7)+(((IF($A$8=Nutrients!$B$79,Nutrients!$BT$79,(IF($A$8=Nutrients!$B$77,Nutrients!$BT$77,Nutrients!$BT$78)))))*C$8))/2000","v":0.33141446527128632},{"$f":"(SUMPRODUCT(D$9:D$229,Nutrients!$BT$8:$BT$228)+(IF($A$7=Nutrients!$B$8,Nutrients!$BT$8,Nutrients!$BT$9)*D$7)+(((IF($A$8=Nutrients!$B$79,Nutrients!$BT$79,(IF($A$8=Nutrients!$B$77,Nutrients!$BT$77,Nutrients!$BT$78)))))*D$8))/2000","v":0.32208201141013715},{"$f":"(SUMPRODUCT(E$9:E$229,Nutrients!$BT$8:$BT$228)+(IF($A$7=Nutrients!$B$8,Nutrients!$BT$8,Nutrients!$BT$9)*E$7)+(((IF($A$8=Nutrients!$B$79,Nutrients!$BT$79,(IF($A$8=Nutrients!$B$77,Nutrients!$BT$77,Nutrients!$BT$78)))))*E$8))/2000","v":0.31765998822682556},{"$f":"(SUMPRODUCT(F$9:F$229,Nutrients!$BT$8:$BT$228)+(IF($A$7=Nutrients!$B$8,Nutrients!$BT$8,Nutrients!$BT$9)*F$7)+(((IF($A$8=Nutrients!$B$79,Nutrients!$BT$79,(IF($A$8=Nutrients!$B$77,Nutrients!$BT$77,Nutrients!$BT$78)))))*F$8))/2000","v":0.31776531917662576},{"$f":"(SUMPRODUCT(G$9:G$229,Nutrients!$BT$8:$BT$228)+(IF($A$7=Nutrients!$B$8,Nutrients!$BT$8,Nutrients!$BT$9)*G$7)+(((IF($A$8=Nutrients!$B$79,Nutrients!$BT$79,(IF($A$8=Nutrients!$B$77,Nutrients!$BT$77,Nutrients!$BT$78)))))*G$8))/2000","v":0.31780178721106933},null,{"$f":"(SUMPRODUCT(I$9:I$229,Nutrients!$BT$8:$BT$228)+(IF($A$7=Nutrients!$B$8,Nutrients!$BT$8,Nutrients!$BT$9)*I$7)+(((IF($A$8=Nutrients!$B$79,Nutrients!$BT$79,(IF($A$8=Nutrients!$B$77,Nutrients!$BT$77,Nutrients!$BT$78)))))*I$8))/2000","v":0.35239636713024375},{"$f":"(SUMPRODUCT(J$9:J$229,Nutrients!$BT$8:$BT$228)+(IF($A$7=Nutrients!$B$8,Nutrients!$BT$8,Nutrients!$BT$9)*J$7)+(((IF($A$8=Nutrients!$B$79,Nutrients!$BT$79,(IF($A$8=Nutrients!$B$77,Nutrients!$BT$77,Nutrients!$BT$78)))))*J$8))/2000","v":0.34306325575935631},{"$f":"(SUMPRODUCT(K$9:K$229,Nutrients!$BT$8:$BT$228)+(IF($A$7=Nutrients!$B$8,Nutrients!$BT$8,Nutrients!$BT$9)*K$7)+(((IF($A$8=Nutrients!$B$79,Nutrients!$BT$79,(IF($A$8=Nutrients!$B$77,Nutrients!$BT$77,Nutrients!$BT$78)))))*K$8))/2000","v":0.33373012786126527},{"$f":"(SUMPRODUCT(L$9:L$229,Nutrients!$BT$8:$BT$228)+(IF($A$7=Nutrients!$B$8,Nutrients!$BT$8,Nutrients!$BT$9)*L$7)+(((IF($A$8=Nutrients!$B$79,Nutrients!$BT$79,(IF($A$8=Nutrients!$B$77,Nutrients!$BT$77,Nutrients!$BT$78)))))*L$8))/2000","v":0.32930750985242252},{"$f":"(SUMPRODUCT(M$9:M$229,Nutrients!$BT$8:$BT$228)+(IF($A$7=Nutrients!$B$8,Nutrients!$BT$8,Nutrients!$BT$9)*M$7)+(((IF($A$8=Nutrients!$B$79,Nutrients!$BT$79,(IF($A$8=Nutrients!$B$77,Nutrients!$BT$77,Nutrients!$BT$78)))))*M$8))/2000","v":0.32941434344457726},{"$f":"(SUMPRODUCT(N$9:N$229,Nutrients!$BT$8:$BT$228)+(IF($A$7=Nutrients!$B$8,Nutrients!$BT$8,Nutrients!$BT$9)*N$7)+(((IF($A$8=Nutrients!$B$79,Nutrients!$BT$79,(IF($A$8=Nutrients!$B$77,Nutrients!$BT$77,Nutrients!$BT$78)))))*N$8))/2000","v":0.31780178721106933},null,{"$f":"(SUMPRODUCT(P$9:P$229,Nutrients!$BT$8:$BT$228)+(IF($A$7=Nutrients!$B$8,Nutrients!$BT$8,Nutrients!$BT$9)*P$7)+(((IF($A$8=Nutrients!$B$79,Nutrients!$BT$79,(IF($A$8=Nutrients!$B$77,Nutrients!$BT$77,Nutrients!$BT$78)))))*P$8))/2000","v":0.36404643714426255},{"$f":"(SUMPRODUCT(Q$9:Q$229,Nutrients!$BT$8:$BT$228)+(IF($A$7=Nutrients!$B$8,Nutrients!$BT$8,Nutrients!$BT$9)*Q$7)+(((IF($A$8=Nutrients!$B$79,Nutrients!$BT$79,(IF($A$8=Nutrients!$B$77,Nutrients!$BT$77,Nutrients!$BT$78)))))*Q$8))/2000","v":0.35470970876145158},{"$f":"(SUMPRODUCT(R$9:R$229,Nutrients!$BT$8:$BT$228)+(IF($A$7=Nutrients!$B$8,Nutrients!$BT$8,Nutrients!$BT$9)*R$7)+(((IF($A$8=Nutrients!$B$79,Nutrients!$BT$79,(IF($A$8=Nutrients!$B$77,Nutrients!$BT$77,Nutrients!$BT$78)))))*R$8))/2000","v":0.34537646218322793},{"$f":"(SUMPRODUCT(S$9:S$229,Nutrients!$BT$8:$BT$228)+(IF($A$7=Nutrients!$B$8,Nutrients!$BT$8,Nutrients!$BT$9)*S$7)+(((IF($A$8=Nutrients!$B$79,Nutrients!$BT$79,(IF($A$8=Nutrients!$B$77,Nutrients!$BT$77,Nutrients!$BT$78)))))*S$8))/2000","v":0.34095282997677101},{"$f":"(SUMPRODUCT(T$9:T$229,Nutrients!$BT$8:$BT$228)+(IF($A$7=Nutrients!$B$8,Nutrients!$BT$8,Nutrients!$BT$9)*T$7)+(((IF($A$8=Nutrients!$B$79,Nutrients!$BT$79,(IF($A$8=Nutrients!$B$77,Nutrients!$BT$77,Nutrients!$BT$78)))))*T$8))/2000","v":0.3410587600601066},{"$f":"(SUMPRODUCT(U$9:U$229,Nutrients!$BT$8:$BT$228)+(IF($A$7=Nutrients!$B$8,Nutrients!$BT$8,Nutrients!$BT$9)*U$7)+(((IF($A$8=Nutrients!$B$79,Nutrients!$BT$79,(IF($A$8=Nutrients!$B$77,Nutrients!$BT$77,Nutrients!$BT$78)))))*U$8))/2000","v":0.31780178721106933},null,{"$f":"(SUMPRODUCT(W$9:W$229,Nutrients!$BT$8:$BT$228)+(IF($A$7=Nutrients!$B$8,Nutrients!$BT$8,Nutrients!$BT$9)*W$7)+(((IF($A$8=Nutrients!$B$79,Nutrients!$BT$79,(IF($A$8=Nutrients!$B$77,Nutrients!$BT$77,Nutrients!$BT$78)))))*W$8))/2000","v":0.37569521683199403},{"$f":"(SUMPRODUCT(X$9:X$229,Nutrients!$BT$8:$BT$228)+(IF($A$7=Nutrients!$B$8,Nutrients!$BT$8,Nutrients!$BT$9)*X$7)+(((IF($A$8=Nutrients!$B$79,Nutrients!$BT$79,(IF($A$8=Nutrients!$B$77,Nutrients!$BT$77,Nutrients!$BT$78)))))*X$8))/2000","v":0.36635694467568641},{"$f":"(SUMPRODUCT(Y$9:Y$229,Nutrients!$BT$8:$BT$228)+(IF($A$7=Nutrients!$B$8,Nutrients!$BT$8,Nutrients!$BT$9)*Y$7)+(((IF($A$8=Nutrients!$B$79,Nutrients!$BT$79,(IF($A$8=Nutrients!$B$77,Nutrients!$BT$77,Nutrients!$BT$78)))))*Y$8))/2000","v":0.35702190207867263},{"$f":"(SUMPRODUCT(Z$9:Z$229,Nutrients!$BT$8:$BT$228)+(IF($A$7=Nutrients!$B$8,Nutrients!$BT$8,Nutrients!$BT$9)*Z$7)+(((IF($A$8=Nutrients!$B$79,Nutrients!$BT$79,(IF($A$8=Nutrients!$B$77,Nutrients!$BT$77,Nutrients!$BT$78)))))*Z$8))/2000","v":0.35259535127605518},{"$f":"(SUMPRODUCT(AA$9:AA$229,Nutrients!$BT$8:$BT$228)+(IF($A$7=Nutrients!$B$8,Nutrients!$BT$8,Nutrients!$BT$9)*AA$7)+(((IF($A$8=Nutrients!$B$79,Nutrients!$BT$79,(IF($A$8=Nutrients!$B$77,Nutrients!$BT$77,Nutrients!$BT$78)))))*AA$8))/2000","v":0.35269481185475721},{"$f":"(SUMPRODUCT(AB$9:AB$229,Nutrients!$BT$8:$BT$228)+(IF($A$7=Nutrients!$B$8,Nutrients!$BT$8,Nutrients!$BT$9)*AB$7)+(((IF($A$8=Nutrients!$B$79,Nutrients!$BT$79,(IF($A$8=Nutrients!$B$77,Nutrients!$BT$77,Nutrients!$BT$78)))))*AB$8))/2000","v":0.31780178721106933},null,{"$f":"(SUMPRODUCT(AD$9:AD$229,Nutrients!$BT$8:$BT$228)+(IF($A$7=Nutrients!$B$8,Nutrients!$BT$8,Nutrients!$BT$9)*AD$7)+(((IF($A$8=Nutrients!$B$79,Nutrients!$BT$79,(IF($A$8=Nutrients!$B$77,Nutrients!$BT$77,Nutrients!$BT$78)))))*AD$8))/2000","v":0.38734221458972123},{"$f":"(SUMPRODUCT(AE$9:AE$229,Nutrients!$BT$8:$BT$228)+(IF($A$7=Nutrients!$B$8,Nutrients!$BT$8,Nutrients!$BT$9)*AE$7)+(((IF($A$8=Nutrients!$B$79,Nutrients!$BT$79,(IF($A$8=Nutrients!$B$77,Nutrients!$BT$77,Nutrients!$BT$78)))))*AE$8))/2000","v":0.37800313801756585},{"$f":"(SUMPRODUCT(AF$9:AF$229,Nutrients!$BT$8:$BT$228)+(IF($A$7=Nutrients!$B$8,Nutrients!$BT$8,Nutrients!$BT$9)*AF$7)+(((IF($A$8=Nutrients!$B$79,Nutrients!$BT$79,(IF($A$8=Nutrients!$B$77,Nutrients!$BT$77,Nutrients!$BT$78)))))*AF$8))/2000","v":0.36866456094813954},{"$f":"(SUMPRODUCT(AG$9:AG$229,Nutrients!$BT$8:$BT$228)+(IF($A$7=Nutrients!$B$8,Nutrients!$BT$8,Nutrients!$BT$9)*AG$7)+(((IF($A$8=Nutrients!$B$79,Nutrients!$BT$79,(IF($A$8=Nutrients!$B$77,Nutrients!$BT$77,Nutrients!$BT$78)))))*AG$8))/2000","v":0.3642307611699207},{"$f":"(SUMPRODUCT(AH$9:AH$229,Nutrients!$BT$8:$BT$228)+(IF($A$7=Nutrients!$B$8,Nutrients!$BT$8,Nutrients!$BT$9)*AH$7)+(((IF($A$8=Nutrients!$B$79,Nutrients!$BT$79,(IF($A$8=Nutrients!$B$77,Nutrients!$BT$77,Nutrients!$BT$78)))))*AH$8))/2000","v":0.36430095287529396},{"$f":"(SUMPRODUCT(AI$9:AI$229,Nutrients!$BT$8:$BT$228)+(IF($A$7=Nutrients!$B$8,Nutrients!$BT$8,Nutrients!$BT$9)*AI$7)+(((IF($A$8=Nutrients!$B$79,Nutrients!$BT$79,(IF($A$8=Nutrients!$B$77,Nutrients!$BT$77,Nutrients!$BT$78)))))*AI$8))/2000","v":0.31780178721106933},null,{"$f":"(SUMPRODUCT(AK$9:AK$229,Nutrients!$BT$8:$BT$228)+(IF($A$7=Nutrients!$B$8,Nutrients!$BT$8,Nutrients!$BT$9)*AK$7)+(((IF($A$8=Nutrients!$B$79,Nutrients!$BT$79,(IF($A$8=Nutrients!$B$77,Nutrients!$BT$77,Nutrients!$BT$78)))))*AK$8))/2000","v":0.39898847564090234},{"$f":"(SUMPRODUCT(AL$9:AL$229,Nutrients!$BT$8:$BT$228)+(IF($A$7=Nutrients!$B$8,Nutrients!$BT$8,Nutrients!$BT$9)*AL$7)+(((IF($A$8=Nutrients!$B$79,Nutrients!$BT$79,(IF($A$8=Nutrients!$B$77,Nutrients!$BT$77,Nutrients!$BT$78)))))*AL$8))/2000","v":0.3896508269252057},{"$f":"(SUMPRODUCT(AM$9:AM$229,Nutrients!$BT$8:$BT$228)+(IF($A$7=Nutrients!$B$8,Nutrients!$BT$8,Nutrients!$BT$9)*AM$7)+(((IF($A$8=Nutrients!$B$79,Nutrients!$BT$79,(IF($A$8=Nutrients!$B$77,Nutrients!$BT$77,Nutrients!$BT$78)))))*AM$8))/2000","v":0.380304471689969},{"$f":"(SUMPRODUCT(AN$9:AN$229,Nutrients!$BT$8:$BT$228)+(IF($A$7=Nutrients!$B$8,Nutrients!$BT$8,Nutrients!$BT$9)*AN$7)+(((IF($A$8=Nutrients!$B$79,Nutrients!$BT$79,(IF($A$8=Nutrients!$B$77,Nutrients!$BT$77,Nutrients!$BT$78)))))*AN$8))/2000","v":0.37584327572448922},{"$f":"(SUMPRODUCT(AO$9:AO$229,Nutrients!$BT$8:$BT$228)+(IF($A$7=Nutrients!$B$8,Nutrients!$BT$8,Nutrients!$BT$9)*AO$7)+(((IF($A$8=Nutrients!$B$79,Nutrients!$BT$79,(IF($A$8=Nutrients!$B$77,Nutrients!$BT$77,Nutrients!$BT$78)))))*AO$8))/2000","v":0.37589681135371272},{"$f":"(SUMPRODUCT(AP$9:AP$229,Nutrients!$BT$8:$BT$228)+(IF($A$7=Nutrients!$B$8,Nutrients!$BT$8,Nutrients!$BT$9)*AP$7)+(((IF($A$8=Nutrients!$B$79,Nutrients!$BT$79,(IF($A$8=Nutrients!$B$77,Nutrients!$BT$77,Nutrients!$BT$78)))))*AP$8))/2000","v":0.31780178721106933},null,{"$f":"(SUMPRODUCT(AR$9:AR$229,Nutrients!$BT$8:$BT$228)+(IF($A$7=Nutrients!$B$8,Nutrients!$BT$8,Nutrients!$BT$9)*AR$7)+(((IF($A$8=Nutrients!$B$79,Nutrients!$BT$79,(IF($A$8=Nutrients!$B$77,Nutrients!$BT$77,Nutrients!$BT$78)))))*AR$8))/2000","v":0.41063436961349259},{"$f":"(SUMPRODUCT(AS$9:AS$229,Nutrients!$BT$8:$BT$228)+(IF($A$7=Nutrients!$B$8,Nutrients!$BT$8,Nutrients!$BT$9)*AS$7)+(((IF($A$8=Nutrients!$B$79,Nutrients!$BT$79,(IF($A$8=Nutrients!$B$77,Nutrients!$BT$77,Nutrients!$BT$78)))))*AS$8))/2000","v":0.40129433087894434},{"$f":"(SUMPRODUCT(AT$9:AT$229,Nutrients!$BT$8:$BT$228)+(IF($A$7=Nutrients!$B$8,Nutrients!$BT$8,Nutrients!$BT$9)*AT$7)+(((IF($A$8=Nutrients!$B$79,Nutrients!$BT$79,(IF($A$8=Nutrients!$B$77,Nutrients!$BT$77,Nutrients!$BT$78)))))*AT$8))/2000","v":0.39194051973495486},{"$f":"(SUMPRODUCT(AU$9:AU$229,Nutrients!$BT$8:$BT$228)+(IF($A$7=Nutrients!$B$8,Nutrients!$BT$8,Nutrients!$BT$9)*AU$7)+(((IF($A$8=Nutrients!$B$79,Nutrients!$BT$79,(IF($A$8=Nutrients!$B$77,Nutrients!$BT$77,Nutrients!$BT$78)))))*AU$8))/2000","v":0.38743914527695067},{"$f":"(SUMPRODUCT(AV$9:AV$229,Nutrients!$BT$8:$BT$228)+(IF($A$7=Nutrients!$B$8,Nutrients!$BT$8,Nutrients!$BT$9)*AV$7)+(((IF($A$8=Nutrients!$B$79,Nutrients!$BT$79,(IF($A$8=Nutrients!$B$77,Nutrients!$BT$77,Nutrients!$BT$78)))))*AV$8))/2000","v":0.38749266588755532},{"$f":"(SUMPRODUCT(AW$9:AW$229,Nutrients!$BT$8:$BT$228)+(IF($A$7=Nutrients!$B$8,Nutrients!$BT$8,Nutrients!$BT$9)*AW$7)+(((IF($A$8=Nutrients!$B$79,Nutrients!$BT$79,(IF($A$8=Nutrients!$B$77,Nutrients!$BT$77,Nutrients!$BT$78)))))*AW$8))/2000","v":0.31780178721106933}]
["K, %",{"$f":"(SUMPRODUCT(B$9:B$229,Nutrients!$BU$8:$BU$228)+(IF($A$7=Nutrients!$B$8,Nutrients!$BU$8,Nutrients!$BU$9)*B$7)+(((IF($A$8=Nutrients!$B$79,Nutrients!$BU$79,(IF($A$8=Nutrients!$B$77,Nutrients!$BU$77,Nutrients!$BU$78)))))*B$8))/2000","v":0.82299889398162063},{"$f":"(SUMPRODUCT(C$9:C$229,Nutrients!$BU$8:$BU$228)+(IF($A$7=Nutrients!$B$8,Nutrients!$BU$8,Nutrients!$BU$9)*C$7)+(((IF($A$8=Nutrients!$B$79,Nutrients!$BU$79,(IF($A$8=Nutrients!$B$77,Nutrients!$BU$77,Nutrients!$BU$78)))))*C$8))/2000","v":0.74655886728664078},{"$f":"(SUMPRODUCT(D$9:D$229,Nutrients!$BU$8:$BU$228)+(IF($A$7=Nutrients!$B$8,Nutrients!$BU$8,Nutrients!$BU$9)*D$7)+(((IF($A$8=Nutrients!$B$79,Nutrients!$BU$79,(IF($A$8=Nutrients!$B$77,Nutrients!$BU$77,Nutrients!$BU$78)))))*D$8))/2000","v":0.68235096300443021},{"$f":"(SUMPRODUCT(E$9:E$229,Nutrients!$BU$8:$BU$228)+(IF($A$7=Nutrients!$B$8,Nutrients!$BU$8,Nutrients!$BU$9)*E$7)+(((IF($A$8=Nutrients!$B$79,Nutrients!$BU$79,(IF($A$8=Nutrients!$B$77,Nutrients!$BU$77,Nutrients!$BU$78)))))*E$8))/2000","v":0.61832324439114794},{"$f":"(SUMPRODUCT(F$9:F$229,Nutrients!$BU$8:$BU$228)+(IF($A$7=Nutrients!$B$8,Nutrients!$BU$8,Nutrients!$BU$9)*F$7)+(((IF($A$8=Nutrients!$B$79,Nutrients!$BU$79,(IF($A$8=Nutrients!$B$77,Nutrients!$BU$77,Nutrients!$BU$78)))))*F$8))/2000","v":0.5641190327748159},{"$f":"(SUMPRODUCT(G$9:G$229,Nutrients!$BU$8:$BU$228)+(IF($A$7=Nutrients!$B$8,Nutrients!$BU$8,Nutrients!$BU$9)*G$7)+(((IF($A$8=Nutrients!$B$79,Nutrients!$BU$79,(IF($A$8=Nutrients!$B$77,Nutrients!$BU$77,Nutrients!$BU$78)))))*G$8))/2000","v":0.53408892433970367},null,{"$f":"(SUMPRODUCT(I$9:I$229,Nutrients!$BU$8:$BU$228)+(IF($A$7=Nutrients!$B$8,Nutrients!$BU$8,Nutrients!$BU$9)*I$7)+(((IF($A$8=Nutrients!$B$79,Nutrients!$BU$79,(IF($A$8=Nutrients!$B$77,Nutrients!$BU$77,Nutrients!$BU$78)))))*I$8))/2000","v":0.81965437437059241},{"$f":"(SUMPRODUCT(J$9:J$229,Nutrients!$BU$8:$BU$228)+(IF($A$7=Nutrients!$B$8,Nutrients!$BU$8,Nutrients!$BU$9)*J$7)+(((IF($A$8=Nutrients!$B$79,Nutrients!$BU$79,(IF($A$8=Nutrients!$B$77,Nutrients!$BU$77,Nutrients!$BU$78)))))*J$8))/2000","v":0.74435254874252699},{"$f":"(SUMPRODUCT(K$9:K$229,Nutrients!$BU$8:$BU$228)+(IF($A$7=Nutrients!$B$8,Nutrients!$BU$8,Nutrients!$BU$9)*K$7)+(((IF($A$8=Nutrients!$B$79,Nutrients!$BU$79,(IF($A$8=Nutrients!$B$77,Nutrients!$BU$77,Nutrients!$BU$78)))))*K$8))/2000","v":0.68107417499789247},{"$f":"(SUMPRODUCT(L$9:L$229,Nutrients!$BU$8:$BU$228)+(IF($A$7=Nutrients!$B$8,Nutrients!$BU$8,Nutrients!$BU$9)*L$7)+(((IF($A$8=Nutrients!$B$79,Nutrients!$BU$79,(IF($A$8=Nutrients!$B$77,Nutrients!$BU$77,Nutrients!$BU$78)))))*L$8))/2000","v":0.61767504769545212},{"$f":"(SUMPRODUCT(M$9:M$229,Nutrients!$BU$8:$BU$228)+(IF($A$7=Nutrients!$B$8,Nutrients!$BU$8,Nutrients!$BU$9)*M$7)+(((IF($A$8=Nutrients!$B$79,Nutrients!$BU$79,(IF($A$8=Nutrients!$B$77,Nutrients!$BU$77,Nutrients!$BU$78)))))*M$8))/2000","v":0.563431512991595},{"$f":"(SUMPRODUCT(N$9:N$229,Nutrients!$BU$8:$BU$228)+(IF($A$7=Nutrients!$B$8,Nutrients!$BU$8,Nutrients!$BU$9)*N$7)+(((IF($A$8=Nutrients!$B$79,Nutrients!$BU$79,(IF($A$8=Nutrients!$B$77,Nutrients!$BU$77,Nutrients!$BU$78)))))*N$8))/2000","v":0.53408892433970367},null,{"$f":"(SUMPRODUCT(P$9:P$229,Nutrients!$BU$8:$BU$228)+(IF($A$7=Nutrients!$B$8,Nutrients!$BU$8,Nutrients!$BU$9)*P$7)+(((IF($A$8=Nutrients!$B$79,Nutrients!$BU$79,(IF($A$8=Nutrients!$B$77,Nutrients!$BU$77,Nutrients!$BU$78)))))*P$8))/2000","v":0.81777664095488534},{"$f":"(SUMPRODUCT(Q$9:Q$229,Nutrients!$BU$8:$BU$228)+(IF($A$7=Nutrients!$B$8,Nutrients!$BU$8,Nutrients!$BU$9)*Q$7)+(((IF($A$8=Nutrients!$B$79,Nutrients!$BU$79,(IF($A$8=Nutrients!$B$77,Nutrients!$BU$77,Nutrients!$BU$78)))))*Q$8))/2000","v":0.74315548552894917},{"$f":"(SUMPRODUCT(R$9:R$229,Nutrients!$BU$8:$BU$228)+(IF($A$7=Nutrients!$B$8,Nutrients!$BU$8,Nutrients!$BU$9)*R$7)+(((IF($A$8=Nutrients!$B$79,Nutrients!$BU$79,(IF($A$8=Nutrients!$B$77,Nutrients!$BU$77,Nutrients!$BU$78)))))*R$8))/2000","v":0.68061661710499632},{"$f":"(SUMPRODUCT(S$9:S$229,Nutrients!$BU$8:$BU$228)+(IF($A$7=Nutrients!$B$8,Nutrients!$BU$8,Nutrients!$BU$9)*S$7)+(((IF($A$8=Nutrients!$B$79,Nutrients!$BU$79,(IF($A$8=Nutrients!$B$77,Nutrients!$BU$77,Nutrients!$BU$78)))))*S$8))/2000","v":0.61686933716984049},{"$f":"(SUMPRODUCT(T$9:T$229,Nutrients!$BU$8:$BU$228)+(IF($A$7=Nutrients!$B$8,Nutrients!$BU$8,Nutrients!$BU$9)*T$7)+(((IF($A$8=Nutrients!$B$79,Nutrients!$BU$79,(IF($A$8=Nutrients!$B$77,Nutrients!$BU$77,Nutrients!$BU$78)))))*T$8))/2000","v":0.56322872226041387},{"$f":"(SUMPRODUCT(U$9:U$229,Nutrients!$BU$8:$BU$228)+(IF($A$7=Nutrients!$B$8,Nutrients!$BU$8,Nutrients!$BU$9)*U$7)+(((IF($A$8=Nutrients!$B$79,Nutrients!$BU$79,(IF($A$8=Nutrients!$B$77,Nutrients!$BU$77,Nutrients!$BU$78)))))*U$8))/2000","v":0.53408892433970367},null,{"$f":"(SUMPRODUCT(W$9:W$229,Nutrients!$BU$8:$BU$228)+(IF($A$7=Nutrients!$B$8,Nutrients!$BU$8,Nutrients!$BU$9)*W$7)+(((IF($A$8=Nutrients!$B$79,Nutrients!$BU$79,(IF($A$8=Nutrients!$B$77,Nutrients!$BU$77,Nutrients!$BU$78)))))*W$8))/2000","v":0.81589361808867533},{"$f":"(SUMPRODUCT(X$9:X$229,Nutrients!$BU$8:$BU$228)+(IF($A$7=Nutrients!$B$8,Nutrients!$BU$8,Nutrients!$BU$9)*X$7)+(((IF($A$8=Nutrients!$B$79,Nutrients!$BU$79,(IF($A$8=Nutrients!$B$77,Nutrients!$BU$77,Nutrients!$BU$78)))))*X$8))/2000","v":0.74196412849478377},{"$f":"(SUMPRODUCT(Y$9:Y$229,Nutrients!$BU$8:$BU$228)+(IF($A$7=Nutrients!$B$8,Nutrients!$BU$8,Nutrients!$BU$9)*Y$7)+(((IF($A$8=Nutrients!$B$79,Nutrients!$BU$79,(IF($A$8=Nutrients!$B$77,Nutrients!$BU$77,Nutrients!$BU$78)))))*Y$8))/2000","v":0.67908532675638966},{"$f":"(SUMPRODUCT(Z$9:Z$229,Nutrients!$BU$8:$BU$228)+(IF($A$7=Nutrients!$B$8,Nutrients!$BU$8,Nutrients!$BU$9)*Z$7)+(((IF($A$8=Nutrients!$B$79,Nutrients!$BU$79,(IF($A$8=Nutrients!$B$77,Nutrients!$BU$77,Nutrients!$BU$78)))))*Z$8))/2000","v":0.61632764254432848},{"$f":"(SUMPRODUCT(AA$9:AA$229,Nutrients!$BU$8:$BU$228)+(IF($A$7=Nutrients!$B$8,Nutrients!$BU$8,Nutrients!$BU$9)*AA$7)+(((IF($A$8=Nutrients!$B$79,Nutrients!$BU$79,(IF($A$8=Nutrients!$B$77,Nutrients!$BU$77,Nutrients!$BU$78)))))*AA$8))/2000","v":0.56306847653102987},{"$f":"(SUMPRODUCT(AB$9:AB$229,Nutrients!$BU$8:$BU$228)+(IF($A$7=Nutrients!$B$8,Nutrients!$BU$8,Nutrients!$BU$9)*AB$7)+(((IF($A$8=Nutrients!$B$79,Nutrients!$BU$79,(IF($A$8=Nutrients!$B$77,Nutrients!$BU$77,Nutrients!$BU$78)))))*AB$8))/2000","v":0.53408892433970367},null,{"$f":"(SUMPRODUCT(AD$9:AD$229,Nutrients!$BU$8:$BU$228)+(IF($A$7=Nutrients!$B$8,Nutrients!$BU$8,Nutrients!$BU$9)*AD$7)+(((IF($A$8=Nutrients!$B$79,Nutrients!$BU$79,(IF($A$8=Nutrients!$B$77,Nutrients!$BU$77,Nutrients!$BU$78)))))*AD$8))/2000","v":0.81392032452512597},{"$f":"(SUMPRODUCT(AE$9:AE$229,Nutrients!$BU$8:$BU$228)+(IF($A$7=Nutrients!$B$8,Nutrients!$BU$8,Nutrients!$BU$9)*AE$7)+(((IF($A$8=Nutrients!$B$79,Nutrients!$BU$79,(IF($A$8=Nutrients!$B$77,Nutrients!$BU$77,Nutrients!$BU$78)))))*AE$8))/2000","v":0.73971673414030459},{"$f":"(SUMPRODUCT(AF$9:AF$229,Nutrients!$BU$8:$BU$228)+(IF($A$7=Nutrients!$B$8,Nutrients!$BU$8,Nutrients!$BU$9)*AF$7)+(((IF($A$8=Nutrients!$B$79,Nutrients!$BU$79,(IF($A$8=Nutrients!$B$77,Nutrients!$BU$77,Nutrients!$BU$78)))))*AF$8))/2000","v":0.67779789737989726},{"$f":"(SUMPRODUCT(AG$9:AG$229,Nutrients!$BU$8:$BU$228)+(IF($A$7=Nutrients!$B$8,Nutrients!$BU$8,Nutrients!$BU$9)*AG$7)+(((IF($A$8=Nutrients!$B$79,Nutrients!$BU$79,(IF($A$8=Nutrients!$B$77,Nutrients!$BU$77,Nutrients!$BU$78)))))*AG$8))/2000","v":0.61574322589368025},{"$f":"(SUMPRODUCT(AH$9:AH$229,Nutrients!$BU$8:$BU$228)+(IF($A$7=Nutrients!$B$8,Nutrients!$BU$8,Nutrients!$BU$9)*AH$7)+(((IF($A$8=Nutrients!$B$79,Nutrients!$BU$79,(IF($A$8=Nutrients!$B$77,Nutrients!$BU$77,Nutrients!$BU$78)))))*AH$8))/2000","v":0.5624746156265471},{"$f":"(SUMPRODUCT(AI$9:AI$229,Nutrients!$BU$8:$BU$228)+(IF($A$7=Nutrients!$B$8,Nutrients!$BU$8,Nutrients!$BU$9)*AI$7)+(((IF($A$8=Nutrients!$B$79,Nutrients!$BU$79,(IF($A$8=Nutrients!$B$77,Nutrients!$BU$77,Nutrients!$BU$78)))))*AI$8))/2000","v":0.53408892433970367},null,{"$f":"(SUMPRODUCT(AK$9:AK$229,Nutrients!$BU$8:$BU$228)+(IF($A$7=Nutrients!$B$8,Nutrients!$BU$8,Nutrients!$BU$9)*AK$7)+(((IF($A$8=Nutrients!$B$79,Nutrients!$BU$79,(IF($A$8=Nutrients!$B$77,Nutrients!$BU$77,Nutrients!$BU$78)))))*AK$8))/2000","v":0.81222157026973629},{"$f":"(SUMPRODUCT(AL$9:AL$229,Nutrients!$BU$8:$BU$228)+(IF($A$7=Nutrients!$B$8,Nutrients!$BU$8,Nutrients!$BU$9)*AL$7)+(((IF($A$8=Nutrients!$B$79,Nutrients!$BU$79,(IF($A$8=Nutrients!$B$77,Nutrients!$BU$77,Nutrients!$BU$78)))))*AL$8))/2000","v":0.73777809437374209},{"$f":"(SUMPRODUCT(AM$9:AM$229,Nutrients!$BU$8:$BU$228)+(IF($A$7=Nutrients!$B$8,Nutrients!$BU$8,Nutrients!$BU$9)*AM$7)+(((IF($A$8=Nutrients!$B$79,Nutrients!$BU$79,(IF($A$8=Nutrients!$B$77,Nutrients!$BU$77,Nutrients!$BU$78)))))*AM$8))/2000","v":0.67662323196883822},{"$f":"(SUMPRODUCT(AN$9:AN$229,Nutrients!$BU$8:$BU$228)+(IF($A$7=Nutrients!$B$8,Nutrients!$BU$8,Nutrients!$BU$9)*AN$7)+(((IF($A$8=Nutrients!$B$79,Nutrients!$BU$79,(IF($A$8=Nutrients!$B$77,Nutrients!$BU$77,Nutrients!$BU$78)))))*AN$8))/2000","v":0.61482357324490455},{"$f":"(SUMPRODUCT(AO$9:AO$229,Nutrients!$BU$8:$BU$228)+(IF($A$7=Nutrients!$B$8,Nutrients!$BU$8,Nutrients!$BU$9)*AO$7)+(((IF($A$8=Nutrients!$B$79,Nutrients!$BU$79,(IF($A$8=Nutrients!$B$77,Nutrients!$BU$77,Nutrients!$BU$78)))))*AO$8))/2000","v":0.56173404348045175},{"$f":"(SUMPRODUCT(AP$9:AP$229,Nutrients!$BU$8:$BU$228)+(IF($A$7=Nutrients!$B$8,Nutrients!$BU$8,Nutrients!$BU$9)*AP$7)+(((IF($A$8=Nutrients!$B$79,Nutrients!$BU$79,(IF($A$8=Nutrients!$B$77,Nutrients!$BU$77,Nutrients!$BU$78)))))*AP$8))/2000","v":0.53408892433970367},null,{"$f":"(SUMPRODUCT(AR$9:AR$229,Nutrients!$BU$8:$BU$228)+(IF($A$7=Nutrients!$B$8,Nutrients!$BU$8,Nutrients!$BU$9)*AR$7)+(((IF($A$8=Nutrients!$B$79,Nutrients!$BU$79,(IF($A$8=Nutrients!$B$77,Nutrients!$BU$77,Nutrients!$BU$78)))))*AR$8))/2000","v":0.81258607388560133},{"$f":"(SUMPRODUCT(AS$9:AS$229,Nutrients!$BU$8:$BU$228)+(IF($A$7=Nutrients!$B$8,Nutrients!$BU$8,Nutrients!$BU$9)*AS$7)+(((IF($A$8=Nutrients!$B$79,Nutrients!$BU$79,(IF($A$8=Nutrients!$B$77,Nutrients!$BU$77,Nutrients!$BU$78)))))*AS$8))/2000","v":0.73583130319550927},{"$f":"(SUMPRODUCT(AT$9:AT$229,Nutrients!$BU$8:$BU$228)+(IF($A$7=Nutrients!$B$8,Nutrients!$BU$8,Nutrients!$BU$9)*AT$7)+(((IF($A$8=Nutrients!$B$79,Nutrients!$BU$79,(IF($A$8=Nutrients!$B$77,Nutrients!$BU$77,Nutrients!$BU$78)))))*AT$8))/2000","v":0.67563985765240775},{"$f":"(SUMPRODUCT(AU$9:AU$229,Nutrients!$BU$8:$BU$228)+(IF($A$7=Nutrients!$B$8,Nutrients!$BU$8,Nutrients!$BU$9)*AU$7)+(((IF($A$8=Nutrients!$B$79,Nutrients!$BU$79,(IF($A$8=Nutrients!$B$77,Nutrients!$BU$77,Nutrients!$BU$78)))))*AU$8))/2000","v":0.61373309721842451},{"$f":"(SUMPRODUCT(AV$9:AV$229,Nutrients!$BU$8:$BU$228)+(IF($A$7=Nutrients!$B$8,Nutrients!$BU$8,Nutrients!$BU$9)*AV$7)+(((IF($A$8=Nutrients!$B$79,Nutrients!$BU$79,(IF($A$8=Nutrients!$B$77,Nutrients!$BU$77,Nutrients!$BU$78)))))*AV$8))/2000","v":0.56099876555978545},{"$f":"(SUMPRODUCT(AW$9:AW$229,Nutrients!$BU$8:$BU$228)+(IF($A$7=Nutrients!$B$8,Nutrients!$BU$8,Nutrients!$BU$9)*AW$7)+(((IF($A$8=Nutrients!$B$79,Nutrients!$BU$79,(IF($A$8=Nutrients!$B$77,Nutrients!$BU$77,Nutrients!$BU$78)))))*AW$8))/2000","v":0.53408892433970367}]
["DCAD",{"$f":"(B306 * 434.98) + (B308* 255.74) - (B307*282.06)","v":190.85683508470862},172.75687046998428,157.97167371049909,141.87849201438749,127.1843305627486,119.05581383819251,null,{"$f":"(I306 * 434.98) + (I308* 255.74) - (I307*282.06)","v":189.90879535709081},172.12051068607076,157.57970520638651,141.6590162870433,126.9543384224575,119.05581383819251,null,{"$f":"(P306 * 434.98) + (P308* 255.74) - (P307*282.06)","v":189.35757758621361},171.75353268018796,157.41172234864541,141.39744679679364,126.85535893553332,119.05581383819251,null,{"$f":"(W306 * 434.98) + (W308* 255.74) - (W307*282.06)","v":188.80512770920348},171.38770413954646,156.95467401248527,141.20754421583268,126.7694742412713,119.05581383819251,null,{"$f":"(AD306 * 434.98) + (AD308* 255.74) - (AD307*282.06)","v":188.22870897198231},170.7376057464472,156.56385980857596,141.00795929200541,126.61938438710592,119.05581383819251,null,{"$f":"(AK306 * 434.98) + (AK308* 255.74) - (AK307*282.06)","v":187.72638908057746},170.17038697139813,156.20395862331404,140.759595769557,126.44858187785074,119.05581383819251,null,{"$f":"(AR306 * 434.98) + (AR308* 255.74) - (AR307*282.06)","v":187.77993776571651},169.60178992645075,155.89680068900128,140.49471625863777,126.27920754854721,119.05581383819251]
["Phytate P, %",{"$f":"(SUMPRODUCT(B$9:B$229,Nutrients!$EG$8:$EG$228)+(IF($A$7=Nutrients!$B$8,Nutrients!$EG$8,Nutrients!$EG$9)*B$7)+(((IF($A$8=Nutrients!$B$79,Nutrients!$EG$79,(IF($A$8=Nutrients!$B$77,Nutrients!$EG$77,Nutrients!$EG$78)))))*B$8))/2000","v":0.25833959194258826},{"$f":"(SUMPRODUCT(C$9:C$229,Nutrients!$EG$8:$EG$228)+(IF($A$7=Nutrients!$B$8,Nutrients!$EG$8,Nutrients!$EG$9)*C$7)+(((IF($A$8=Nutrients!$B$79,Nutrients!$EG$79,(IF($A$8=Nutrients!$B$77,Nutrients!$EG$77,Nutrients!$EG$78)))))*C$8))/2000","v":0.24779907433968829},{"$f":"(SUMPRODUCT(D$9:D$229,Nutrients!$EG$8:$EG$228)+(IF($A$7=Nutrients!$B$8,Nutrients!$EG$8,Nutrients!$EG$9)*D$7)+(((IF($A$8=Nutrients!$B$79,Nutrients!$EG$79,(IF($A$8=Nutrients!$B$77,Nutrients!$EG$77,Nutrients!$EG$78)))))*D$8))/2000","v":0.23900316211582037},{"$f":"(SUMPRODUCT(E$9:E$229,Nutrients!$EG$8:$EG$228)+(IF($A$7=Nutrients!$B$8,Nutrients!$EG$8,Nutrients!$EG$9)*E$7)+(((IF($A$8=Nutrients!$B$79,Nutrients!$EG$79,(IF($A$8=Nutrients!$B$77,Nutrients!$EG$77,Nutrients!$EG$78)))))*E$8))/2000","v":0.23005692988837381},{"$f":"(SUMPRODUCT(F$9:F$229,Nutrients!$EG$8:$EG$228)+(IF($A$7=Nutrients!$B$8,Nutrients!$EG$8,Nutrients!$EG$9)*F$7)+(((IF($A$8=Nutrients!$B$79,Nutrients!$EG$79,(IF($A$8=Nutrients!$B$77,Nutrients!$EG$77,Nutrients!$EG$78)))))*F$8))/2000","v":0.22240960598768925},{"$f":"(SUMPRODUCT(G$9:G$229,Nutrients!$EG$8:$EG$228)+(IF($A$7=Nutrients!$B$8,Nutrients!$EG$8,Nutrients!$EG$9)*G$7)+(((IF($A$8=Nutrients!$B$79,Nutrients!$EG$79,(IF($A$8=Nutrients!$B$77,Nutrients!$EG$77,Nutrients!$EG$78)))))*G$8))/2000","v":0.21810869862161428},null,{"$f":"(SUMPRODUCT(I$9:I$229,Nutrients!$EG$8:$EG$228)+(IF($A$7=Nutrients!$B$8,Nutrients!$EG$8,Nutrients!$EG$9)*I$7)+(((IF($A$8=Nutrients!$B$79,Nutrients!$EG$79,(IF($A$8=Nutrients!$B$77,Nutrients!$EG$77,Nutrients!$EG$78)))))*I$8))/2000","v":0.2529793743230016},{"$f":"(SUMPRODUCT(J$9:J$229,Nutrients!$EG$8:$EG$228)+(IF($A$7=Nutrients!$B$8,Nutrients!$EG$8,Nutrients!$EG$9)*J$7)+(((IF($A$8=Nutrients!$B$79,Nutrients!$EG$79,(IF($A$8=Nutrients!$B$77,Nutrients!$EG$77,Nutrients!$EG$78)))))*J$8))/2000","v":0.24259233363577518},{"$f":"(SUMPRODUCT(K$9:K$229,Nutrients!$EG$8:$EG$228)+(IF($A$7=Nutrients!$B$8,Nutrients!$EG$8,Nutrients!$EG$9)*K$7)+(((IF($A$8=Nutrients!$B$79,Nutrients!$EG$79,(IF($A$8=Nutrients!$B$77,Nutrients!$EG$77,Nutrients!$EG$78)))))*K$8))/2000","v":0.23393470824154367},{"$f":"(SUMPRODUCT(L$9:L$229,Nutrients!$EG$8:$EG$228)+(IF($A$7=Nutrients!$B$8,Nutrients!$EG$8,Nutrients!$EG$9)*L$7)+(((IF($A$8=Nutrients!$B$79,Nutrients!$EG$79,(IF($A$8=Nutrients!$B$77,Nutrients!$EG$77,Nutrients!$EG$78)))))*L$8))/2000","v":0.22507771214746949},{"$f":"(SUMPRODUCT(M$9:M$229,Nutrients!$EG$8:$EG$228)+(IF($A$7=Nutrients!$B$8,Nutrients!$EG$8,Nutrients!$EG$9)*M$7)+(((IF($A$8=Nutrients!$B$79,Nutrients!$EG$79,(IF($A$8=Nutrients!$B$77,Nutrients!$EG$77,Nutrients!$EG$78)))))*M$8))/2000","v":0.2174280908978922},{"$f":"(SUMPRODUCT(N$9:N$229,Nutrients!$EG$8:$EG$228)+(IF($A$7=Nutrients!$B$8,Nutrients!$EG$8,Nutrients!$EG$9)*N$7)+(((IF($A$8=Nutrients!$B$79,Nutrients!$EG$79,(IF($A$8=Nutrients!$B$77,Nutrients!$EG$77,Nutrients!$EG$78)))))*N$8))/2000","v":0.21810869862161428},null,{"$f":"(SUMPRODUCT(P$9:P$229,Nutrients!$EG$8:$EG$228)+(IF($A$7=Nutrients!$B$8,Nutrients!$EG$8,Nutrients!$EG$9)*P$7)+(((IF($A$8=Nutrients!$B$79,Nutrients!$EG$79,(IF($A$8=Nutrients!$B$77,Nutrients!$EG$77,Nutrients!$EG$78)))))*P$8))/2000","v":0.24782637327006385},{"$f":"(SUMPRODUCT(Q$9:Q$229,Nutrients!$EG$8:$EG$228)+(IF($A$7=Nutrients!$B$8,Nutrients!$EG$8,Nutrients!$EG$9)*Q$7)+(((IF($A$8=Nutrients!$B$79,Nutrients!$EG$79,(IF($A$8=Nutrients!$B$77,Nutrients!$EG$77,Nutrients!$EG$78)))))*Q$8))/2000","v":0.23752889743998792},{"$f":"(SUMPRODUCT(R$9:R$229,Nutrients!$EG$8:$EG$228)+(IF($A$7=Nutrients!$B$8,Nutrients!$EG$8,Nutrients!$EG$9)*R$7)+(((IF($A$8=Nutrients!$B$79,Nutrients!$EG$79,(IF($A$8=Nutrients!$B$77,Nutrients!$EG$77,Nutrients!$EG$78)))))*R$8))/2000","v":0.22898038393614423},{"$f":"(SUMPRODUCT(S$9:S$229,Nutrients!$EG$8:$EG$228)+(IF($A$7=Nutrients!$B$8,Nutrients!$EG$8,Nutrients!$EG$9)*S$7)+(((IF($A$8=Nutrients!$B$79,Nutrients!$EG$79,(IF($A$8=Nutrients!$B$77,Nutrients!$EG$77,Nutrients!$EG$78)))))*S$8))/2000","v":0.22006919979138856},{"$f":"(SUMPRODUCT(T$9:T$229,Nutrients!$EG$8:$EG$228)+(IF($A$7=Nutrients!$B$8,Nutrients!$EG$8,Nutrients!$EG$9)*T$7)+(((IF($A$8=Nutrients!$B$79,Nutrients!$EG$79,(IF($A$8=Nutrients!$B$77,Nutrients!$EG$77,Nutrients!$EG$78)))))*T$8))/2000","v":0.21250582009347158},{"$f":"(SUMPRODUCT(U$9:U$229,Nutrients!$EG$8:$EG$228)+(IF($A$7=Nutrients!$B$8,Nutrients!$EG$8,Nutrients!$EG$9)*U$7)+(((IF($A$8=Nutrients!$B$79,Nutrients!$EG$79,(IF($A$8=Nutrients!$B$77,Nutrients!$EG$77,Nutrients!$EG$78)))))*U$8))/2000","v":0.21810869862161428},null,{"$f":"(SUMPRODUCT(W$9:W$229,Nutrients!$EG$8:$EG$228)+(IF($A$7=Nutrients!$B$8,Nutrients!$EG$8,Nutrients!$EG$9)*W$7)+(((IF($A$8=Nutrients!$B$79,Nutrients!$EG$79,(IF($A$8=Nutrients!$B$77,Nutrients!$EG$77,Nutrients!$EG$78)))))*W$8))/2000","v":0.24266903418775679},{"$f":"(SUMPRODUCT(X$9:X$229,Nutrients!$EG$8:$EG$228)+(IF($A$7=Nutrients!$B$8,Nutrients!$EG$8,Nutrients!$EG$9)*X$7)+(((IF($A$8=Nutrients!$B$79,Nutrients!$EG$79,(IF($A$8=Nutrients!$B$77,Nutrients!$EG$77,Nutrients!$EG$78)))))*X$8))/2000","v":0.23246904477473293},{"$f":"(SUMPRODUCT(Y$9:Y$229,Nutrients!$EG$8:$EG$228)+(IF($A$7=Nutrients!$B$8,Nutrients!$EG$8,Nutrients!$EG$9)*Y$7)+(((IF($A$8=Nutrients!$B$79,Nutrients!$EG$79,(IF($A$8=Nutrients!$B$77,Nutrients!$EG$77,Nutrients!$EG$78)))))*Y$8))/2000","v":0.223865320327129},{"$f":"(SUMPRODUCT(Z$9:Z$229,Nutrients!$EG$8:$EG$228)+(IF($A$7=Nutrients!$B$8,Nutrients!$EG$8,Nutrients!$EG$9)*Z$7)+(((IF($A$8=Nutrients!$B$79,Nutrients!$EG$79,(IF($A$8=Nutrients!$B$77,Nutrients!$EG$77,Nutrients!$EG$78)))))*Z$8))/2000","v":0.21509158599183473},{"$f":"(SUMPRODUCT(AA$9:AA$229,Nutrients!$EG$8:$EG$228)+(IF($A$7=Nutrients!$B$8,Nutrients!$EG$8,Nutrients!$EG$9)*AA$7)+(((IF($A$8=Nutrients!$B$79,Nutrients!$EG$79,(IF($A$8=Nutrients!$B$77,Nutrients!$EG$77,Nutrients!$EG$78)))))*AA$8))/2000","v":0.20756591759126977},{"$f":"(SUMPRODUCT(AB$9:AB$229,Nutrients!$EG$8:$EG$228)+(IF($A$7=Nutrients!$B$8,Nutrients!$EG$8,Nutrients!$EG$9)*AB$7)+(((IF($A$8=Nutrients!$B$79,Nutrients!$EG$79,(IF($A$8=Nutrients!$B$77,Nutrients!$EG$77,Nutrients!$EG$78)))))*AB$8))/2000","v":0.21810869862161428},null,{"$f":"(SUMPRODUCT(AD$9:AD$229,Nutrients!$EG$8:$EG$228)+(IF($A$7=Nutrients!$B$8,Nutrients!$EG$8,Nutrients!$EG$9)*AD$7)+(((IF($A$8=Nutrients!$B$79,Nutrients!$EG$79,(IF($A$8=Nutrients!$B$77,Nutrients!$EG$77,Nutrients!$EG$78)))))*AD$8))/2000","v":0.237493305068776},{"$f":"(SUMPRODUCT(AE$9:AE$229,Nutrients!$EG$8:$EG$228)+(IF($A$7=Nutrients!$B$8,Nutrients!$EG$8,Nutrients!$EG$9)*AE$7)+(((IF($A$8=Nutrients!$B$79,Nutrients!$EG$79,(IF($A$8=Nutrients!$B$77,Nutrients!$EG$77,Nutrients!$EG$78)))))*AE$8))/2000","v":0.22725063640466628},{"$f":"(SUMPRODUCT(AF$9:AF$229,Nutrients!$EG$8:$EG$228)+(IF($A$7=Nutrients!$B$8,Nutrients!$EG$8,Nutrients!$EG$9)*AF$7)+(((IF($A$8=Nutrients!$B$79,Nutrients!$EG$79,(IF($A$8=Nutrients!$B$77,Nutrients!$EG$77,Nutrients!$EG$78)))))*AF$8))/2000","v":0.2187782368763905},{"$f":"(SUMPRODUCT(AG$9:AG$229,Nutrients!$EG$8:$EG$228)+(IF($A$7=Nutrients!$B$8,Nutrients!$EG$8,Nutrients!$EG$9)*AG$7)+(((IF($A$8=Nutrients!$B$79,Nutrients!$EG$79,(IF($A$8=Nutrients!$B$77,Nutrients!$EG$77,Nutrients!$EG$78)))))*AG$8))/2000","v":0.21008641833939604},{"$f":"(SUMPRODUCT(AH$9:AH$229,Nutrients!$EG$8:$EG$228)+(IF($A$7=Nutrients!$B$8,Nutrients!$EG$8,Nutrients!$EG$9)*AH$7)+(((IF($A$8=Nutrients!$B$79,Nutrients!$EG$79,(IF($A$8=Nutrients!$B$77,Nutrients!$EG$77,Nutrients!$EG$78)))))*AH$8))/2000","v":0.20245153388808254},{"$f":"(SUMPRODUCT(AI$9:AI$229,Nutrients!$EG$8:$EG$228)+(IF($A$7=Nutrients!$B$8,Nutrients!$EG$8,Nutrients!$EG$9)*AI$7)+(((IF($A$8=Nutrients!$B$79,Nutrients!$EG$79,(IF($A$8=Nutrients!$B$77,Nutrients!$EG$77,Nutrients!$EG$78)))))*AI$8))/2000","v":0.21810869862161428},null,{"$f":"(SUMPRODUCT(AK$9:AK$229,Nutrients!$EG$8:$EG$228)+(IF($A$7=Nutrients!$B$8,Nutrients!$EG$8,Nutrients!$EG$9)*AK$7)+(((IF($A$8=Nutrients!$B$79,Nutrients!$EG$79,(IF($A$8=Nutrients!$B$77,Nutrients!$EG$77,Nutrients!$EG$78)))))*AK$8))/2000","v":0.23235591659702598},{"$f":"(SUMPRODUCT(AL$9:AL$229,Nutrients!$EG$8:$EG$228)+(IF($A$7=Nutrients!$B$8,Nutrients!$EG$8,Nutrients!$EG$9)*AL$7)+(((IF($A$8=Nutrients!$B$79,Nutrients!$EG$79,(IF($A$8=Nutrients!$B$77,Nutrients!$EG$77,Nutrients!$EG$78)))))*AL$8))/2000","v":0.22208198724659889},{"$f":"(SUMPRODUCT(AM$9:AM$229,Nutrients!$EG$8:$EG$228)+(IF($A$7=Nutrients!$B$8,Nutrients!$EG$8,Nutrients!$EG$9)*AM$7)+(((IF($A$8=Nutrients!$B$79,Nutrients!$EG$79,(IF($A$8=Nutrients!$B$77,Nutrients!$EG$77,Nutrients!$EG$78)))))*AM$8))/2000","v":0.21369991418088108},{"$f":"(SUMPRODUCT(AN$9:AN$229,Nutrients!$EG$8:$EG$228)+(IF($A$7=Nutrients!$B$8,Nutrients!$EG$8,Nutrients!$EG$9)*AN$7)+(((IF($A$8=Nutrients!$B$79,Nutrients!$EG$79,(IF($A$8=Nutrients!$B$77,Nutrients!$EG$77,Nutrients!$EG$78)))))*AN$8))/2000","v":0.20494739026703729},{"$f":"(SUMPRODUCT(AO$9:AO$229,Nutrients!$EG$8:$EG$228)+(IF($A$7=Nutrients!$B$8,Nutrients!$EG$8,Nutrients!$EG$9)*AO$7)+(((IF($A$8=Nutrients!$B$79,Nutrients!$EG$79,(IF($A$8=Nutrients!$B$77,Nutrients!$EG$77,Nutrients!$EG$78)))))*AO$8))/2000","v":0.19727780678646512},{"$f":"(SUMPRODUCT(AP$9:AP$229,Nutrients!$EG$8:$EG$228)+(IF($A$7=Nutrients!$B$8,Nutrients!$EG$8,Nutrients!$EG$9)*AP$7)+(((IF($A$8=Nutrients!$B$79,Nutrients!$EG$79,(IF($A$8=Nutrients!$B$77,Nutrients!$EG$77,Nutrients!$EG$78)))))*AP$8))/2000","v":0.21810869862161428},null,{"$f":"(SUMPRODUCT(AR$9:AR$229,Nutrients!$EG$8:$EG$228)+(IF($A$7=Nutrients!$B$8,Nutrients!$EG$8,Nutrients!$EG$9)*AR$7)+(((IF($A$8=Nutrients!$B$79,Nutrients!$EG$79,(IF($A$8=Nutrients!$B$77,Nutrients!$EG$77,Nutrients!$EG$78)))))*AR$8))/2000","v":0.22752144142640685},{"$f":"(SUMPRODUCT(AS$9:AS$229,Nutrients!$EG$8:$EG$228)+(IF($A$7=Nutrients!$B$8,Nutrients!$EG$8,Nutrients!$EG$9)*AS$7)+(((IF($A$8=Nutrients!$B$79,Nutrients!$EG$79,(IF($A$8=Nutrients!$B$77,Nutrients!$EG$77,Nutrients!$EG$78)))))*AS$8))/2000","v":0.21690018019977322},{"$f":"(SUMPRODUCT(AT$9:AT$229,Nutrients!$EG$8:$EG$228)+(IF($A$7=Nutrients!$B$8,Nutrients!$EG$8,Nutrients!$EG$9)*AT$7)+(((IF($A$8=Nutrients!$B$79,Nutrients!$EG$79,(IF($A$8=Nutrients!$B$77,Nutrients!$EG$77,Nutrients!$EG$78)))))*AT$8))/2000","v":0.20863774697496257},{"$f":"(SUMPRODUCT(AU$9:AU$229,Nutrients!$EG$8:$EG$228)+(IF($A$7=Nutrients!$B$8,Nutrients!$EG$8,Nutrients!$EG$9)*AU$7)+(((IF($A$8=Nutrients!$B$79,Nutrients!$EG$79,(IF($A$8=Nutrients!$B$77,Nutrients!$EG$77,Nutrients!$EG$78)))))*AU$8))/2000","v":0.19972175482002971},{"$f":"(SUMPRODUCT(AV$9:AV$229,Nutrients!$EG$8:$EG$228)+(IF($A$7=Nutrients!$B$8,Nutrients!$EG$8,Nutrients!$EG$9)*AV$7)+(((IF($A$8=Nutrients!$B$79,Nutrients!$EG$79,(IF($A$8=Nutrients!$B$77,Nutrients!$EG$77,Nutrients!$EG$78)))))*AV$8))/2000","v":0.19210484565114425},{"$f":"(SUMPRODUCT(AW$9:AW$229,Nutrients!$EG$8:$EG$228)+(IF($A$7=Nutrients!$B$8,Nutrients!$EG$8,Nutrients!$EG$9)*AW$7)+(((IF($A$8=Nutrients!$B$79,Nutrients!$EG$79,(IF($A$8=Nutrients!$B$77,Nutrients!$EG$77,Nutrients!$EG$78)))))*AW$8))/2000","v":0.21810869862161428}]
["Total P - Avail P, %",{"$f":"B255-B256","v":0.30252335581907996},0.29036249419994237,0.2802277845068476,0.26990911671431012,0.26108614031234767,0.25612193787172505,null,{"$f":"I255-I256","v":0.31974354705426455},0.30775975371198583,0.29778412434763091,0.2875686553376216,0.27874336785466058,0.25612193787172505,null,{"$f":"P255-P256","v":0.3372026984736346},0.32532207362767895,0.31547224066687385,0.30519413876653445,0.29646831671703178,0.25612193787172505,null,{"$f":"W255-W256","v":0.35465669802584537},0.34288846283249264,0.33297474915918746,0.32285504596783499,0.31417219586538392,0.25612193787172505,null,{"$f":"AD255-AD256","v":0.37208931806943457},0.36027175187081384,0.35050931443442462,0.34048378838984339,0.33167581138309921,0.25612193787172505,null,{"$f":"AK255-AK256","v":0.3895661289572418},0.37771260322938244,0.36805375560381293,0.35795872470801882,0.34911116845785828,0.25612193787172505,null,{"$f":"AR255-AR256","v":0.40739254155929139},0.39513790777642049,0.38561677463114974,0.37533427216154747,0.36654741001960678,0.25612193787172505]
["Phytate P released, %",{"$f":"B257-B256","v":0.11261444047083269},0.11261444047083263,0.11261444047083269,0.11261444047083267,0.1126144404708327,0.11261444047083267,null,{"$f":"I257-I256","v":0.11261444047083266},0.11261444047083269,0.11261444047083269,0.1126144404708327,0.11261444047083267,0.11261444047083267,null,{"$f":"P257-P256","v":0.11261444047083266},0.11261444047083272,0.11261444047083269,0.11261444047083267,0.11261444047083269,0.11261444047083267,null,{"$f":"W257-W256","v":0.11261444047083263},0.11261444047083266,0.11261444047083269,0.11261444047083267,0.11261444047083269,0.11261444047083267,null,{"$f":"AD257-AD256","v":0.11261444047083266},0.11261444047083266,0.1126144404708327,0.11261444047083269,0.11261444047083269,0.11261444047083267,null,{"$f":"AK257-AK256","v":0.11261444047083266},0.11261444047083269,0.11261444047083269,0.11261444047083267,0.11261444047083269,0.11261444047083267,null,{"$f":"AR257-AR256","v":0.1126144404708327},0.1126144404708327,0.1126144404708327,0.11261444047083269,0.11261444047083269,0.11261444047083267]
["Percent of total phytate phos released, %",{"$f":"B312/B310","v":0.43591630544906723},0.45445868097335318,0.47118389344263151,0.4895068387006401,0.50633802425362018,0.51632255468270782,null,{"$f":"I312/I310","v":0.44515265630725942},0.4642126928871152,0.48139261299591063,0.50033581466763988,0.51793878153360717,0.51632255468270782,null,{"$f":"P312/P310","v":0.45440862078110356},0.47410837874698991,0.49180824372378329,0.51172286070737716,0.52993579385872236,0.51632255468270782,null,{"$f":"W312/W310","v":0.46406596889367063},0.4844276818875316,0.50304549318434821,0.52356506625557975,0.54254784107951859,0.51632255468270782,null,{"$f":"AD312/AD310","v":0.47417943187165001},0.49555170560798606,0.51474242629745548,0.53603865190801292,0.55625382682003888,0.51632255468270782,null,{"$f":"AK312/AK310","v":0.48466353738751344},0.50708498184405248,0.52697466399314008,0.54947974855450021,0.57084191225182945,0.51632255468270782,null,{"$f":"AR312/AR310","v":0.4949618803608824},0.51919938640489172,0.53976062387381385,0.56385665433547849,0.58621342990658665,0.51632255468270782]
["Phytase units, FTU/kg",{"$f":"((SUMPRODUCT(B$9:B$229,Nutrients!$EE$8:$EE$228)+(IF($A$7=Nutrients!$B$8,Nutrients!$EE$8,Nutrients!$EE$9)*B$7)+(((IF($A$8=Nutrients!$B$79,Nutrients!$EE$79,(IF($A$8=Nutrients!$B$77,Nutrients!$EE$77,Nutrients!$EE$78)))))*B$8))/2000)*2.2046","v":608.03970300000003},{"$f":"((SUMPRODUCT(C$9:C$229,Nutrients!$EE$8:$EE$228)+(IF($A$7=Nutrients!$B$8,Nutrients!$EE$8,Nutrients!$EE$9)*C$7)+(((IF($A$8=Nutrients!$B$79,Nutrients!$EE$79,(IF($A$8=Nutrients!$B$77,Nutrients!$EE$77,Nutrients!$EE$78)))))*C$8))/2000)*2.2046","v":608.03970300000003},{"$f":"((SUMPRODUCT(D$9:D$229,Nutrients!$EE$8:$EE$228)+(IF($A$7=Nutrients!$B$8,Nutrients!$EE$8,Nutrients!$EE$9)*D$7)+(((IF($A$8=Nutrients!$B$79,Nutrients!$EE$79,(IF($A$8=Nutrients!$B$77,Nutrients!$EE$77,Nutrients!$EE$78)))))*D$8))/2000)*2.2046","v":608.03970300000003},{"$f":"((SUMPRODUCT(E$9:E$229,Nutrients!$EE$8:$EE$228)+(IF($A$7=Nutrients!$B$8,Nutrients!$EE$8,Nutrients!$EE$9)*E$7)+(((IF($A$8=Nutrients!$B$79,Nutrients!$EE$79,(IF($A$8=Nutrients!$B$77,Nutrients!$EE$77,Nutrients!$EE$78)))))*E$8))/2000)*2.2046","v":608.03970300000003},{"$f":"((SUMPRODUCT(F$9:F$229,Nutrients!$EE$8:$EE$228)+(IF($A$7=Nutrients!$B$8,Nutrients!$EE$8,Nutrients!$EE$9)*F$7)+(((IF($A$8=Nutrients!$B$79,Nutrients!$EE$79,(IF($A$8=Nutrients!$B$77,Nutrients!$EE$77,Nutrients!$EE$78)))))*F$8))/2000)*2.2046","v":608.03970300000003},{"$f":"((SUMPRODUCT(G$9:G$229,Nutrients!$EE$8:$EE$228)+(IF($A$7=Nutrients!$B$8,Nutrients!$EE$8,Nutrients!$EE$9)*G$7)+(((IF($A$8=Nutrients!$B$79,Nutrients!$EE$79,(IF($A$8=Nutrients!$B$77,Nutrients!$EE$77,Nutrients!$EE$78)))))*G$8))/2000)*2.2046","v":608.03970300000003},null,{"$f":"((SUMPRODUCT(I$9:I$229,Nutrients!$EE$8:$EE$228)+(IF($A$7=Nutrients!$B$8,Nutrients!$EE$8,Nutrients!$EE$9)*I$7)+(((IF($A$8=Nutrients!$B$79,Nutrients!$EE$79,(IF($A$8=Nutrients!$B$77,Nutrients!$EE$77,Nutrients!$EE$78)))))*I$8))/2000)*2.2046","v":608.03970300000003},{"$f":"((SUMPRODUCT(J$9:J$229,Nutrients!$EE$8:$EE$228)+(IF($A$7=Nutrients!$B$8,Nutrients!$EE$8,Nutrients!$EE$9)*J$7)+(((IF($A$8=Nutrients!$B$79,Nutrients!$EE$79,(IF($A$8=Nutrients!$B$77,Nutrients!$EE$77,Nutrients!$EE$78)))))*J$8))/2000)*2.2046","v":608.03970300000003},{"$f":"((SUMPRODUCT(K$9:K$229,Nutrients!$EE$8:$EE$228)+(IF($A$7=Nutrients!$B$8,Nutrients!$EE$8,Nutrients!$EE$9)*K$7)+(((IF($A$8=Nutrients!$B$79,Nutrients!$EE$79,(IF($A$8=Nutrients!$B$77,Nutrients!$EE$77,Nutrients!$EE$78)))))*K$8))/2000)*2.2046","v":608.03970300000003},{"$f":"((SUMPRODUCT(L$9:L$229,Nutrients!$EE$8:$EE$228)+(IF($A$7=Nutrients!$B$8,Nutrients!$EE$8,Nutrients!$EE$9)*L$7)+(((IF($A$8=Nutrients!$B$79,Nutrients!$EE$79,(IF($A$8=Nutrients!$B$77,Nutrients!$EE$77,Nutrients!$EE$78)))))*L$8))/2000)*2.2046","v":608.03970300000003},{"$f":"((SUMPRODUCT(M$9:M$229,Nutrients!$EE$8:$EE$228)+(IF($A$7=Nutrients!$B$8,Nutrients!$EE$8,Nutrients!$EE$9)*M$7)+(((IF($A$8=Nutrients!$B$79,Nutrients!$EE$79,(IF($A$8=Nutrients!$B$77,Nutrients!$EE$77,Nutrients!$EE$78)))))*M$8))/2000)*2.2046","v":608.03970300000003},{"$f":"((SUMPRODUCT(N$9:N$229,Nutrients!$EE$8:$EE$228)+(IF($A$7=Nutrients!$B$8,Nutrients!$EE$8,Nutrients!$EE$9)*N$7)+(((IF($A$8=Nutrients!$B$79,Nutrients!$EE$79,(IF($A$8=Nutrients!$B$77,Nutrients!$EE$77,Nutrients!$EE$78)))))*N$8))/2000)*2.2046","v":608.03970300000003},null,{"$f":"((SUMPRODUCT(P$9:P$229,Nutrients!$EE$8:$EE$228)+(IF($A$7=Nutrients!$B$8,Nutrients!$EE$8,Nutrients!$EE$9)*P$7)+(((IF($A$8=Nutrients!$B$79,Nutrients!$EE$79,(IF($A$8=Nutrients!$B$77,Nutrients!$EE$77,Nutrients!$EE$78)))))*P$8))/2000)*2.2046","v":608.03970300000003},{"$f":"((SUMPRODUCT(Q$9:Q$229,Nutrients!$EE$8:$EE$228)+(IF($A$7=Nutrients!$B$8,Nutrients!$EE$8,Nutrients!$EE$9)*Q$7)+(((IF($A$8=Nutrients!$B$79,Nutrients!$EE$79,(IF($A$8=Nutrients!$B$77,Nutrients!$EE$77,Nutrients!$EE$78)))))*Q$8))/2000)*2.2046","v":608.03970300000003},{"$f":"((SUMPRODUCT(R$9:R$229,Nutrients!$EE$8:$EE$228)+(IF($A$7=Nutrients!$B$8,Nutrients!$EE$8,Nutrients!$EE$9)*R$7)+(((IF($A$8=Nutrients!$B$79,Nutrients!$EE$79,(IF($A$8=Nutrients!$B$77,Nutrients!$EE$77,Nutrients!$EE$78)))))*R$8))/2000)*2.2046","v":608.03970300000003},{"$f":"((SUMPRODUCT(S$9:S$229,Nutrients!$EE$8:$EE$228)+(IF($A$7=Nutrients!$B$8,Nutrients!$EE$8,Nutrients!$EE$9)*S$7)+(((IF($A$8=Nutrients!$B$79,Nutrients!$EE$79,(IF($A$8=Nutrients!$B$77,Nutrients!$EE$77,Nutrients!$EE$78)))))*S$8))/2000)*2.2046","v":608.03970300000003},{"$f":"((SUMPRODUCT(T$9:T$229,Nutrients!$EE$8:$EE$228)+(IF($A$7=Nutrients!$B$8,Nutrients!$EE$8,Nutrients!$EE$9)*T$7)+(((IF($A$8=Nutrients!$B$79,Nutrients!$EE$79,(IF($A$8=Nutrients!$B$77,Nutrients!$EE$77,Nutrients!$EE$78)))))*T$8))/2000)*2.2046","v":608.03970300000003},{"$f":"((SUMPRODUCT(U$9:U$229,Nutrients!$EE$8:$EE$228)+(IF($A$7=Nutrients!$B$8,Nutrients!$EE$8,Nutrients!$EE$9)*U$7)+(((IF($A$8=Nutrients!$B$79,Nutrients!$EE$79,(IF($A$8=Nutrients!$B$77,Nutrients!$EE$77,Nutrients!$EE$78)))))*U$8))/2000)*2.2046","v":608.03970300000003},null,{"$f":"((SUMPRODUCT(W$9:W$229,Nutrients!$EE$8:$EE$228)+(IF($A$7=Nutrients!$B$8,Nutrients!$EE$8,Nutrients!$EE$9)*W$7)+(((IF($A$8=Nutrients!$B$79,Nutrients!$EE$79,(IF($A$8=Nutrients!$B$77,Nutrients!$EE$77,Nutrients!$EE$78)))))*W$8))/2000)*2.2046","v":608.03970300000003},{"$f":"((SUMPRODUCT(X$9:X$229,Nutrients!$EE$8:$EE$228)+(IF($A$7=Nutrients!$B$8,Nutrients!$EE$8,Nutrients!$EE$9)*X$7)+(((IF($A$8=Nutrients!$B$79,Nutrients!$EE$79,(IF($A$8=Nutrients!$B$77,Nutrients!$EE$77,Nutrients!$EE$78)))))*X$8))/2000)*2.2046","v":608.03970300000003},{"$f":"((SUMPRODUCT(Y$9:Y$229,Nutrients!$EE$8:$EE$228)+(IF($A$7=Nutrients!$B$8,Nutrients!$EE$8,Nutrients!$EE$9)*Y$7)+(((IF($A$8=Nutrients!$B$79,Nutrients!$EE$79,(IF($A$8=Nutrients!$B$77,Nutrients!$EE$77,Nutrients!$EE$78)))))*Y$8))/2000)*2.2046","v":608.03970300000003},{"$f":"((SUMPRODUCT(Z$9:Z$229,Nutrients!$EE$8:$EE$228)+(IF($A$7=Nutrients!$B$8,Nutrients!$EE$8,Nutrients!$EE$9)*Z$7)+(((IF($A$8=Nutrients!$B$79,Nutrients!$EE$79,(IF($A$8=Nutrients!$B$77,Nutrients!$EE$77,Nutrients!$EE$78)))))*Z$8))/2000)*2.2046","v":608.03970300000003},{"$f":"((SUMPRODUCT(AA$9:AA$229,Nutrients!$EE$8:$EE$228)+(IF($A$7=Nutrients!$B$8,Nutrients!$EE$8,Nutrients!$EE$9)*AA$7)+(((IF($A$8=Nutrients!$B$79,Nutrients!$EE$79,(IF($A$8=Nutrients!$B$77,Nutrients!$EE$77,Nutrients!$EE$78)))))*AA$8))/2000)*2.2046","v":608.03970300000003},{"$f":"((SUMPRODUCT(AB$9:AB$229,Nutrients!$EE$8:$EE$228)+(IF($A$7=Nutrients!$B$8,Nutrients!$EE$8,Nutrients!$EE$9)*AB$7)+(((IF($A$8=Nutrients!$B$79,Nutrients!$EE$79,(IF($A$8=Nutrients!$B$77,Nutrients!$EE$77,Nutrients!$EE$78)))))*AB$8))/2000)*2.2046","v":608.03970300000003},null,{"$f":"((SUMPRODUCT(AD$9:AD$229,Nutrients!$EE$8:$EE$228)+(IF($A$7=Nutrients!$B$8,Nutrients!$EE$8,Nutrients!$EE$9)*AD$7)+(((IF($A$8=Nutrients!$B$79,Nutrients!$EE$79,(IF($A$8=Nutrients!$B$77,Nutrients!$EE$77,Nutrients!$EE$78)))))*AD$8))/2000)*2.2046","v":608.03970300000003},{"$f":"((SUMPRODUCT(AE$9:AE$229,Nutrients!$EE$8:$EE$228)+(IF($A$7=Nutrients!$B$8,Nutrients!$EE$8,Nutrients!$EE$9)*AE$7)+(((IF($A$8=Nutrients!$B$79,Nutrients!$EE$79,(IF($A$8=Nutrients!$B$77,Nutrients!$EE$77,Nutrients!$EE$78)))))*AE$8))/2000)*2.2046","v":608.03970300000003},{"$f":"((SUMPRODUCT(AF$9:AF$229,Nutrients!$EE$8:$EE$228)+(IF($A$7=Nutrients!$B$8,Nutrients!$EE$8,Nutrients!$EE$9)*AF$7)+(((IF($A$8=Nutrients!$B$79,Nutrients!$EE$79,(IF($A$8=Nutrients!$B$77,Nutrients!$EE$77,Nutrients!$EE$78)))))*AF$8))/2000)*2.2046","v":608.03970300000003},{"$f":"((SUMPRODUCT(AG$9:AG$229,Nutrients!$EE$8:$EE$228)+(IF($A$7=Nutrients!$B$8,Nutrients!$EE$8,Nutrients!$EE$9)*AG$7)+(((IF($A$8=Nutrients!$B$79,Nutrients!$EE$79,(IF($A$8=Nutrients!$B$77,Nutrients!$EE$77,Nutrients!$EE$78)))))*AG$8))/2000)*2.2046","v":608.03970300000003},{"$f":"((SUMPRODUCT(AH$9:AH$229,Nutrients!$EE$8:$EE$228)+(IF($A$7=Nutrients!$B$8,Nutrients!$EE$8,Nutrients!$EE$9)*AH$7)+(((IF($A$8=Nutrients!$B$79,Nutrients!$EE$79,(IF($A$8=Nutrients!$B$77,Nutrients!$EE$77,Nutrients!$EE$78)))))*AH$8))/2000)*2.2046","v":608.03970300000003},{"$f":"((SUMPRODUCT(AI$9:AI$229,Nutrients!$EE$8:$EE$228)+(IF($A$7=Nutrients!$B$8,Nutrients!$EE$8,Nutrients!$EE$9)*AI$7)+(((IF($A$8=Nutrients!$B$79,Nutrients!$EE$79,(IF($A$8=Nutrients!$B$77,Nutrients!$EE$77,Nutrients!$EE$78)))))*AI$8))/2000)*2.2046","v":608.03970300000003},null,{"$f":"((SUMPRODUCT(AK$9:AK$229,Nutrients!$EE$8:$EE$228)+(IF($A$7=Nutrients!$B$8,Nutrients!$EE$8,Nutrients!$EE$9)*AK$7)+(((IF($A$8=Nutrients!$B$79,Nutrients!$EE$79,(IF($A$8=Nutrients!$B$77,Nutrients!$EE$77,Nutrients!$EE$78)))))*AK$8))/2000)*2.2046","v":608.03970300000003},{"$f":"((SUMPRODUCT(AL$9:AL$229,Nutrients!$EE$8:$EE$228)+(IF($A$7=Nutrients!$B$8,Nutrients!$EE$8,Nutrients!$EE$9)*AL$7)+(((IF($A$8=Nutrients!$B$79,Nutrients!$EE$79,(IF($A$8=Nutrients!$B$77,Nutrients!$EE$77,Nutrients!$EE$78)))))*AL$8))/2000)*2.2046","v":608.03970300000003},{"$f":"((SUMPRODUCT(AM$9:AM$229,Nutrients!$EE$8:$EE$228)+(IF($A$7=Nutrients!$B$8,Nutrients!$EE$8,Nutrients!$EE$9)*AM$7)+(((IF($A$8=Nutrients!$B$79,Nutrients!$EE$79,(IF($A$8=Nutrients!$B$77,Nutrients!$EE$77,Nutrients!$EE$78)))))*AM$8))/2000)*2.2046","v":608.03970300000003},{"$f":"((SUMPRODUCT(AN$9:AN$229,Nutrients!$EE$8:$EE$228)+(IF($A$7=Nutrients!$B$8,Nutrients!$EE$8,Nutrients!$EE$9)*AN$7)+(((IF($A$8=Nutrients!$B$79,Nutrients!$EE$79,(IF($A$8=Nutrients!$B$77,Nutrients!$EE$77,Nutrients!$EE$78)))))*AN$8))/2000)*2.2046","v":608.03970300000003},{"$f":"((SUMPRODUCT(AO$9:AO$229,Nutrients!$EE$8:$EE$228)+(IF($A$7=Nutrients!$B$8,Nutrients!$EE$8,Nutrients!$EE$9)*AO$7)+(((IF($A$8=Nutrients!$B$79,Nutrients!$EE$79,(IF($A$8=Nutrients!$B$77,Nutrients!$EE$77,Nutrients!$EE$78)))))*AO$8))/2000)*2.2046","v":608.03970300000003},{"$f":"((SUMPRODUCT(AP$9:AP$229,Nutrients!$EE$8:$EE$228)+(IF($A$7=Nutrients!$B$8,Nutrients!$EE$8,Nutrients!$EE$9)*AP$7)+(((IF($A$8=Nutrients!$B$79,Nutrients!$EE$79,(IF($A$8=Nutrients!$B$77,Nutrients!$EE$77,Nutrients!$EE$78)))))*AP$8))/2000)*2.2046","v":608.03970300000003},null,{"$f":"((SUMPRODUCT(AR$9:AR$229,Nutrients!$EE$8:$EE$228)+(IF($A$7=Nutrients!$B$8,Nutrients!$EE$8,Nutrients!$EE$9)*AR$7)+(((IF($A$8=Nutrients!$B$79,Nutrients!$EE$79,(IF($A$8=Nutrients!$B$77,Nutrients!$EE$77,Nutrients!$EE$78)))))*AR$8))/2000)*2.2046","v":608.03970300000003},{"$f":"((SUMPRODUCT(AS$9:AS$229,Nutrients!$EE$8:$EE$228)+(IF($A$7=Nutrients!$B$8,Nutrients!$EE$8,Nutrients!$EE$9)*AS$7)+(((IF($A$8=Nutrients!$B$79,Nutrients!$EE$79,(IF($A$8=Nutrients!$B$77,Nutrients!$EE$77,Nutrients!$EE$78)))))*AS$8))/2000)*2.2046","v":608.03970300000003},{"$f":"((SUMPRODUCT(AT$9:AT$229,Nutrients!$EE$8:$EE$228)+(IF($A$7=Nutrients!$B$8,Nutrients!$EE$8,Nutrients!$EE$9)*AT$7)+(((IF($A$8=Nutrients!$B$79,Nutrients!$EE$79,(IF($A$8=Nutrients!$B$77,Nutrients!$EE$77,Nutrients!$EE$78)))))*AT$8))/2000)*2.2046","v":608.03970300000003},{"$f":"((SUMPRODUCT(AU$9:AU$229,Nutrients!$EE$8:$EE$228)+(IF($A$7=Nutrients!$B$8,Nutrients!$EE$8,Nutrients!$EE$9)*AU$7)+(((IF($A$8=Nutrients!$B$79,Nutrients!$EE$79,(IF($A$8=Nutrients!$B$77,Nutrients!$EE$77,Nutrients!$EE$78)))))*AU$8))/2000)*2.2046","v":608.03970300000003},{"$f":"((SUMPRODUCT(AV$9:AV$229,Nutrients!$EE$8:$EE$228)+(IF($A$7=Nutrients!$B$8,Nutrients!$EE$8,Nutrients!$EE$9)*AV$7)+(((IF($A$8=Nutrients!$B$79,Nutrients!$EE$79,(IF($A$8=Nutrients!$B$77,Nutrients!$EE$77,Nutrients!$EE$78)))))*AV$8))/2000)*2.2046","v":608.03970300000003},{"$f":"((SUMPRODUCT(AW$9:AW$229,Nutrients!$EE$8:$EE$228)+(IF($A$7=Nutrients!$B$8,Nutrients!$EE$8,Nutrients!$EE$9)*AW$7)+(((IF($A$8=Nutrients!$B$79,Nutrients!$EE$79,(IF($A$8=Nutrients!$B$77,Nutrients!$EE$77,Nutrients!$EE$78)))))*AW$8))/2000)*2.2046","v":608.03970300000003}]
["EFA, %",{"$f":"((SUMPRODUCT(B$9:B$229,Nutrients!$FK$8:$FK$228)+(IF($A$7=Nutrients!$B$8,Nutrients!$FK$8,Nutrients!$FK$9)*B$7)+(((IF($A$8=Nutrients!$B$79,Nutrients!$FK$79,(IF($A$8=Nutrients!$B$77,Nutrients!$FK$77,Nutrients!$FK$78)))))*B$8))/2000)","v":1.5519301991788417},{"$f":"((SUMPRODUCT(C$9:C$229,Nutrients!$FK$8:$FK$228)+(IF($A$7=Nutrients!$B$8,Nutrients!$FK$8,Nutrients!$FK$9)*C$7)+(((IF($A$8=Nutrients!$B$79,Nutrients!$FK$79,(IF($A$8=Nutrients!$B$77,Nutrients!$FK$77,Nutrients!$FK$78)))))*C$8))/2000)","v":1.595708614420986},{"$f":"((SUMPRODUCT(D$9:D$229,Nutrients!$FK$8:$FK$228)+(IF($A$7=Nutrients!$B$8,Nutrients!$FK$8,Nutrients!$FK$9)*D$7)+(((IF($A$8=Nutrients!$B$79,Nutrients!$FK$79,(IF($A$8=Nutrients!$B$77,Nutrients!$FK$77,Nutrients!$FK$78)))))*D$8))/2000)","v":1.633289438982505},{"$f":"((SUMPRODUCT(E$9:E$229,Nutrients!$FK$8:$FK$228)+(IF($A$7=Nutrients!$B$8,Nutrients!$FK$8,Nutrients!$FK$9)*E$7)+(((IF($A$8=Nutrients!$B$79,Nutrients!$FK$79,(IF($A$8=Nutrients!$B$77,Nutrients!$FK$77,Nutrients!$FK$78)))))*E$8))/2000)","v":1.6684624843927185},{"$f":"((SUMPRODUCT(F$9:F$229,Nutrients!$FK$8:$FK$228)+(IF($A$7=Nutrients!$B$8,Nutrients!$FK$8,Nutrients!$FK$9)*F$7)+(((IF($A$8=Nutrients!$B$79,Nutrients!$FK$79,(IF($A$8=Nutrients!$B$77,Nutrients!$FK$77,Nutrients!$FK$78)))))*F$8))/2000)","v":1.6972910046236616},{"$f":"((SUMPRODUCT(G$9:G$229,Nutrients!$FK$8:$FK$228)+(IF($A$7=Nutrients!$B$8,Nutrients!$FK$8,Nutrients!$FK$9)*G$7)+(((IF($A$8=Nutrients!$B$79,Nutrients!$FK$79,(IF($A$8=Nutrients!$B$77,Nutrients!$FK$77,Nutrients!$FK$78)))))*G$8))/2000)","v":1.7124024914223799},null,{"$f":"((SUMPRODUCT(I$9:I$229,Nutrients!$FK$8:$FK$228)+(IF($A$7=Nutrients!$B$8,Nutrients!$FK$8,Nutrients!$FK$9)*I$7)+(((IF($A$8=Nutrients!$B$79,Nutrients!$FK$79,(IF($A$8=Nutrients!$B$77,Nutrients!$FK$77,Nutrients!$FK$78)))))*I$8))/2000)","v":1.4760344244256087},{"$f":"((SUMPRODUCT(J$9:J$229,Nutrients!$FK$8:$FK$228)+(IF($A$7=Nutrients!$B$8,Nutrients!$FK$8,Nutrients!$FK$9)*J$7)+(((IF($A$8=Nutrients!$B$79,Nutrients!$FK$79,(IF($A$8=Nutrients!$B$77,Nutrients!$FK$77,Nutrients!$FK$78)))))*J$8))/2000)","v":1.5191214970156433},{"$f":"((SUMPRODUCT(K$9:K$229,Nutrients!$FK$8:$FK$228)+(IF($A$7=Nutrients!$B$8,Nutrients!$FK$8,Nutrients!$FK$9)*K$7)+(((IF($A$8=Nutrients!$B$79,Nutrients!$FK$79,(IF($A$8=Nutrients!$B$77,Nutrients!$FK$77,Nutrients!$FK$78)))))*K$8))/2000)","v":1.5562714494008456},{"$f":"((SUMPRODUCT(L$9:L$229,Nutrients!$FK$8:$FK$228)+(IF($A$7=Nutrients!$B$8,Nutrients!$FK$8,Nutrients!$FK$9)*L$7)+(((IF($A$8=Nutrients!$B$79,Nutrients!$FK$79,(IF($A$8=Nutrients!$B$77,Nutrients!$FK$77,Nutrients!$FK$78)))))*L$8))/2000)","v":1.5911288986500161},{"$f":"((SUMPRODUCT(M$9:M$229,Nutrients!$FK$8:$FK$228)+(IF($A$7=Nutrients!$B$8,Nutrients!$FK$8,Nutrients!$FK$9)*M$7)+(((IF($A$8=Nutrients!$B$79,Nutrients!$FK$79,(IF($A$8=Nutrients!$B$77,Nutrients!$FK$77,Nutrients!$FK$78)))))*M$8))/2000)","v":1.6200263975221858},{"$f":"((SUMPRODUCT(N$9:N$229,Nutrients!$FK$8:$FK$228)+(IF($A$7=Nutrients!$B$8,Nutrients!$FK$8,Nutrients!$FK$9)*N$7)+(((IF($A$8=Nutrients!$B$79,Nutrients!$FK$79,(IF($A$8=Nutrients!$B$77,Nutrients!$FK$77,Nutrients!$FK$78)))))*N$8))/2000)","v":1.7124024914223799},null,{"$f":"((SUMPRODUCT(P$9:P$229,Nutrients!$FK$8:$FK$228)+(IF($A$7=Nutrients!$B$8,Nutrients!$FK$8,Nutrients!$FK$9)*P$7)+(((IF($A$8=Nutrients!$B$79,Nutrients!$FK$79,(IF($A$8=Nutrients!$B$77,Nutrients!$FK$77,Nutrients!$FK$78)))))*P$8))/2000)","v":1.399358212946674},{"$f":"((SUMPRODUCT(Q$9:Q$229,Nutrients!$FK$8:$FK$228)+(IF($A$7=Nutrients!$B$8,Nutrients!$FK$8,Nutrients!$FK$9)*Q$7)+(((IF($A$8=Nutrients!$B$79,Nutrients!$FK$79,(IF($A$8=Nutrients!$B$77,Nutrients!$FK$77,Nutrients!$FK$78)))))*Q$8))/2000)","v":1.4419894227552654},{"$f":"((SUMPRODUCT(R$9:R$229,Nutrients!$FK$8:$FK$228)+(IF($A$7=Nutrients!$B$8,Nutrients!$FK$8,Nutrients!$FK$9)*R$7)+(((IF($A$8=Nutrients!$B$79,Nutrients!$FK$79,(IF($A$8=Nutrients!$B$77,Nutrients!$FK$77,Nutrients!$FK$78)))))*R$8))/2000)","v":1.4788066153660113},{"$f":"((SUMPRODUCT(S$9:S$229,Nutrients!$FK$8:$FK$228)+(IF($A$7=Nutrients!$B$8,Nutrients!$FK$8,Nutrients!$FK$9)*S$7)+(((IF($A$8=Nutrients!$B$79,Nutrients!$FK$79,(IF($A$8=Nutrients!$B$77,Nutrients!$FK$77,Nutrients!$FK$78)))))*S$8))/2000)","v":1.5137805851345894},{"$f":"((SUMPRODUCT(T$9:T$229,Nutrients!$FK$8:$FK$228)+(IF($A$7=Nutrients!$B$8,Nutrients!$FK$8,Nutrients!$FK$9)*T$7)+(((IF($A$8=Nutrients!$B$79,Nutrients!$FK$79,(IF($A$8=Nutrients!$B$77,Nutrients!$FK$77,Nutrients!$FK$78)))))*T$8))/2000)","v":1.5423699636874932},{"$f":"((SUMPRODUCT(U$9:U$229,Nutrients!$FK$8:$FK$228)+(IF($A$7=Nutrients!$B$8,Nutrients!$FK$8,Nutrients!$FK$9)*U$7)+(((IF($A$8=Nutrients!$B$79,Nutrients!$FK$79,(IF($A$8=Nutrients!$B$77,Nutrients!$FK$77,Nutrients!$FK$78)))))*U$8))/2000)","v":1.7124024914223799},null,{"$f":"((SUMPRODUCT(W$9:W$229,Nutrients!$FK$8:$FK$228)+(IF($A$7=Nutrients!$B$8,Nutrients!$FK$8,Nutrients!$FK$9)*W$7)+(((IF($A$8=Nutrients!$B$79,Nutrients!$FK$79,(IF($A$8=Nutrients!$B$77,Nutrients!$FK$77,Nutrients!$FK$78)))))*W$8))/2000)","v":1.3226342204515136},{"$f":"((SUMPRODUCT(X$9:X$229,Nutrients!$FK$8:$FK$228)+(IF($A$7=Nutrients!$B$8,Nutrients!$FK$8,Nutrients!$FK$9)*X$7)+(((IF($A$8=Nutrients!$B$79,Nutrients!$FK$79,(IF($A$8=Nutrients!$B$77,Nutrients!$FK$77,Nutrients!$FK$78)))))*X$8))/2000)","v":1.3648916771986532},{"$f":"((SUMPRODUCT(Y$9:Y$229,Nutrients!$FK$8:$FK$228)+(IF($A$7=Nutrients!$B$8,Nutrients!$FK$8,Nutrients!$FK$9)*Y$7)+(((IF($A$8=Nutrients!$B$79,Nutrients!$FK$79,(IF($A$8=Nutrients!$B$77,Nutrients!$FK$77,Nutrients!$FK$78)))))*Y$8))/2000)","v":1.4017904273073654},{"$f":"((SUMPRODUCT(Z$9:Z$229,Nutrients!$FK$8:$FK$228)+(IF($A$7=Nutrients!$B$8,Nutrients!$FK$8,Nutrients!$FK$9)*Z$7)+(((IF($A$8=Nutrients!$B$79,Nutrients!$FK$79,(IF($A$8=Nutrients!$B$77,Nutrients!$FK$77,Nutrients!$FK$78)))))*Z$8))/2000)","v":1.4362012747590855},{"$f":"((SUMPRODUCT(AA$9:AA$229,Nutrients!$FK$8:$FK$228)+(IF($A$7=Nutrients!$B$8,Nutrients!$FK$8,Nutrients!$FK$9)*AA$7)+(((IF($A$8=Nutrients!$B$79,Nutrients!$FK$79,(IF($A$8=Nutrients!$B$77,Nutrients!$FK$77,Nutrients!$FK$78)))))*AA$8))/2000)","v":1.4643599346153693},{"$f":"((SUMPRODUCT(AB$9:AB$229,Nutrients!$FK$8:$FK$228)+(IF($A$7=Nutrients!$B$8,Nutrients!$FK$8,Nutrients!$FK$9)*AB$7)+(((IF($A$8=Nutrients!$B$79,Nutrients!$FK$79,(IF($A$8=Nutrients!$B$77,Nutrients!$FK$77,Nutrients!$FK$78)))))*AB$8))/2000)","v":1.7124024914223799},null,{"$f":"((SUMPRODUCT(AD$9:AD$229,Nutrients!$FK$8:$FK$228)+(IF($A$7=Nutrients!$B$8,Nutrients!$FK$8,Nutrients!$FK$9)*AD$7)+(((IF($A$8=Nutrients!$B$79,Nutrients!$FK$79,(IF($A$8=Nutrients!$B$77,Nutrients!$FK$77,Nutrients!$FK$78)))))*AD$8))/2000)","v":1.2458797161413699},{"$f":"((SUMPRODUCT(AE$9:AE$229,Nutrients!$FK$8:$FK$228)+(IF($A$7=Nutrients!$B$8,Nutrients!$FK$8,Nutrients!$FK$9)*AE$7)+(((IF($A$8=Nutrients!$B$79,Nutrients!$FK$79,(IF($A$8=Nutrients!$B$77,Nutrients!$FK$77,Nutrients!$FK$78)))))*AE$8))/2000)","v":1.2882286722072902},{"$f":"((SUMPRODUCT(AF$9:AF$229,Nutrients!$FK$8:$FK$228)+(IF($A$7=Nutrients!$B$8,Nutrients!$FK$8,Nutrients!$FK$9)*AF$7)+(((IF($A$8=Nutrients!$B$79,Nutrients!$FK$79,(IF($A$8=Nutrients!$B$77,Nutrients!$FK$77,Nutrients!$FK$78)))))*AF$8))/2000)","v":1.3245530466189905},{"$f":"((SUMPRODUCT(AG$9:AG$229,Nutrients!$FK$8:$FK$228)+(IF($A$7=Nutrients!$B$8,Nutrients!$FK$8,Nutrients!$FK$9)*AG$7)+(((IF($A$8=Nutrients!$B$79,Nutrients!$FK$79,(IF($A$8=Nutrients!$B$77,Nutrients!$FK$77,Nutrients!$FK$78)))))*AG$8))/2000)","v":1.3583465143292797},{"$f":"((SUMPRODUCT(AH$9:AH$229,Nutrients!$FK$8:$FK$228)+(IF($A$7=Nutrients!$B$8,Nutrients!$FK$8,Nutrients!$FK$9)*AH$7)+(((IF($A$8=Nutrients!$B$79,Nutrients!$FK$79,(IF($A$8=Nutrients!$B$77,Nutrients!$FK$77,Nutrients!$FK$78)))))*AH$8))/2000)","v":1.3852296303900873},{"$f":"((SUMPRODUCT(AI$9:AI$229,Nutrients!$FK$8:$FK$228)+(IF($A$7=Nutrients!$B$8,Nutrients!$FK$8,Nutrients!$FK$9)*AI$7)+(((IF($A$8=Nutrients!$B$79,Nutrients!$FK$79,(IF($A$8=Nutrients!$B$77,Nutrients!$FK$77,Nutrients!$FK$78)))))*AI$8))/2000)","v":1.7124024914223799},null,{"$f":"((SUMPRODUCT(AK$9:AK$229,Nutrients!$FK$8:$FK$228)+(IF($A$7=Nutrients!$B$8,Nutrients!$FK$8,Nutrients!$FK$9)*AK$7)+(((IF($A$8=Nutrients!$B$79,Nutrients!$FK$79,(IF($A$8=Nutrients!$B$77,Nutrients!$FK$77,Nutrients!$FK$78)))))*AK$8))/2000)","v":1.1689719050305982},{"$f":"((SUMPRODUCT(AL$9:AL$229,Nutrients!$FK$8:$FK$228)+(IF($A$7=Nutrients!$B$8,Nutrients!$FK$8,Nutrients!$FK$9)*AL$7)+(((IF($A$8=Nutrients!$B$79,Nutrients!$FK$79,(IF($A$8=Nutrients!$B$77,Nutrients!$FK$77,Nutrients!$FK$78)))))*AL$8))/2000)","v":1.2114861644076045},{"$f":"((SUMPRODUCT(AM$9:AM$229,Nutrients!$FK$8:$FK$228)+(IF($A$7=Nutrients!$B$8,Nutrients!$FK$8,Nutrients!$FK$9)*AM$7)+(((IF($A$8=Nutrients!$B$79,Nutrients!$FK$79,(IF($A$8=Nutrients!$B$77,Nutrients!$FK$77,Nutrients!$FK$78)))))*AM$8))/2000)","v":1.2471549314539421},{"$f":"((SUMPRODUCT(AN$9:AN$229,Nutrients!$FK$8:$FK$228)+(IF($A$7=Nutrients!$B$8,Nutrients!$FK$8,Nutrients!$FK$9)*AN$7)+(((IF($A$8=Nutrients!$B$79,Nutrients!$FK$79,(IF($A$8=Nutrients!$B$77,Nutrients!$FK$77,Nutrients!$FK$78)))))*AN$8))/2000)","v":1.2796438867284037},{"$f":"((SUMPRODUCT(AO$9:AO$229,Nutrients!$FK$8:$FK$228)+(IF($A$7=Nutrients!$B$8,Nutrients!$FK$8,Nutrients!$FK$9)*AO$7)+(((IF($A$8=Nutrients!$B$79,Nutrients!$FK$79,(IF($A$8=Nutrients!$B$77,Nutrients!$FK$77,Nutrients!$FK$78)))))*AO$8))/2000)","v":1.3057202569531909},{"$f":"((SUMPRODUCT(AP$9:AP$229,Nutrients!$FK$8:$FK$228)+(IF($A$7=Nutrients!$B$8,Nutrients!$FK$8,Nutrients!$FK$9)*AP$7)+(((IF($A$8=Nutrients!$B$79,Nutrients!$FK$79,(IF($A$8=Nutrients!$B$77,Nutrients!$FK$77,Nutrients!$FK$78)))))*AP$8))/2000)","v":1.7124024914223799},null,{"$f":"((SUMPRODUCT(AR$9:AR$229,Nutrients!$FK$8:$FK$228)+(IF($A$7=Nutrients!$B$8,Nutrients!$FK$8,Nutrients!$FK$9)*AR$7)+(((IF($A$8=Nutrients!$B$79,Nutrients!$FK$79,(IF($A$8=Nutrients!$B$77,Nutrients!$FK$77,Nutrients!$FK$78)))))*AR$8))/2000)","v":1.0911186030889439},{"$f":"((SUMPRODUCT(AS$9:AS$229,Nutrients!$FK$8:$FK$228)+(IF($A$7=Nutrients!$B$8,Nutrients!$FK$8,Nutrients!$FK$9)*AS$7)+(((IF($A$8=Nutrients!$B$79,Nutrients!$FK$79,(IF($A$8=Nutrients!$B$77,Nutrients!$FK$77,Nutrients!$FK$78)))))*AS$8))/2000)","v":1.1345800315832464},{"$f":"((SUMPRODUCT(AT$9:AT$229,Nutrients!$FK$8:$FK$228)+(IF($A$7=Nutrients!$B$8,Nutrients!$FK$8,Nutrients!$FK$9)*AT$7)+(((IF($A$8=Nutrients!$B$79,Nutrients!$FK$79,(IF($A$8=Nutrients!$B$77,Nutrients!$FK$77,Nutrients!$FK$78)))))*AT$8))/2000)","v":1.1695051380800432},{"$f":"((SUMPRODUCT(AU$9:AU$229,Nutrients!$FK$8:$FK$228)+(IF($A$7=Nutrients!$B$8,Nutrients!$FK$8,Nutrients!$FK$9)*AU$7)+(((IF($A$8=Nutrients!$B$79,Nutrients!$FK$79,(IF($A$8=Nutrients!$B$77,Nutrients!$FK$77,Nutrients!$FK$78)))))*AU$8))/2000)","v":1.20028847342177},{"$f":"((SUMPRODUCT(AV$9:AV$229,Nutrients!$FK$8:$FK$228)+(IF($A$7=Nutrients!$B$8,Nutrients!$FK$8,Nutrients!$FK$9)*AV$7)+(((IF($A$8=Nutrients!$B$79,Nutrients!$FK$79,(IF($A$8=Nutrients!$B$77,Nutrients!$FK$77,Nutrients!$FK$78)))))*AV$8))/2000)","v":1.226208307305805},{"$f":"((SUMPRODUCT(AW$9:AW$229,Nutrients!$FK$8:$FK$228)+(IF($A$7=Nutrients!$B$8,Nutrients!$FK$8,Nutrients!$FK$9)*AW$7)+(((IF($A$8=Nutrients!$B$79,Nutrients!$FK$79,(IF($A$8=Nutrients!$B$77,Nutrients!$FK$77,Nutrients!$FK$78)))))*AW$8))/2000)","v":1.7124024914223799}]
["NDF, %",{"$f":"(SUMPRODUCT(B$9:B$229,Nutrients!$U$8:$U$228)+(IF($A$7=Nutrients!$B$8,Nutrients!$U$8,Nutrients!$U$9)*B$7)+(((IF($A$8=Nutrients!$B$79,Nutrients!$U$79,(IF($A$8=Nutrients!$B$77,Nutrients!$U$77,Nutrients!$U$78)))))*B$8))/2000","v":8.5699292218715204},{"$f":"(SUMPRODUCT(C$9:C$229,Nutrients!$U$8:$U$228)+(IF($A$7=Nutrients!$B$8,Nutrients!$U$8,Nutrients!$U$9)*C$7)+(((IF($A$8=Nutrients!$B$79,Nutrients!$U$79,(IF($A$8=Nutrients!$B$77,Nutrients!$U$77,Nutrients!$U$78)))))*C$8))/2000","v":8.6418600707376481},{"$f":"(SUMPRODUCT(D$9:D$229,Nutrients!$U$8:$U$228)+(IF($A$7=Nutrients!$B$8,Nutrients!$U$8,Nutrients!$U$9)*D$7)+(((IF($A$8=Nutrients!$B$79,Nutrients!$U$79,(IF($A$8=Nutrients!$B$77,Nutrients!$U$77,Nutrients!$U$78)))))*D$8))/2000","v":8.7060121920111886},{"$f":"(SUMPRODUCT(E$9:E$229,Nutrients!$U$8:$U$228)+(IF($A$7=Nutrients!$B$8,Nutrients!$U$8,Nutrients!$U$9)*E$7)+(((IF($A$8=Nutrients!$B$79,Nutrients!$U$79,(IF($A$8=Nutrients!$B$77,Nutrients!$U$77,Nutrients!$U$78)))))*E$8))/2000","v":8.7592542727281515},{"$f":"(SUMPRODUCT(F$9:F$229,Nutrients!$U$8:$U$228)+(IF($A$7=Nutrients!$B$8,Nutrients!$U$8,Nutrients!$U$9)*F$7)+(((IF($A$8=Nutrients!$B$79,Nutrients!$U$79,(IF($A$8=Nutrients!$B$77,Nutrients!$U$77,Nutrients!$U$78)))))*F$8))/2000","v":8.7998937942372635},{"$f":"(SUMPRODUCT(G$9:G$229,Nutrients!$U$8:$U$228)+(IF($A$7=Nutrients!$B$8,Nutrients!$U$8,Nutrients!$U$9)*G$7)+(((IF($A$8=Nutrients!$B$79,Nutrients!$U$79,(IF($A$8=Nutrients!$B$77,Nutrients!$U$77,Nutrients!$U$78)))))*G$8))/2000","v":8.8184122421246407},null,{"$f":"(SUMPRODUCT(I$9:I$229,Nutrients!$U$8:$U$228)+(IF($A$7=Nutrients!$B$8,Nutrients!$U$8,Nutrients!$U$9)*I$7)+(((IF($A$8=Nutrients!$B$79,Nutrients!$U$79,(IF($A$8=Nutrients!$B$77,Nutrients!$U$77,Nutrients!$U$78)))))*I$8))/2000","v":9.7758803148391742},{"$f":"(SUMPRODUCT(J$9:J$229,Nutrients!$U$8:$U$228)+(IF($A$7=Nutrients!$B$8,Nutrients!$U$8,Nutrients!$U$9)*J$7)+(((IF($A$8=Nutrients!$B$79,Nutrients!$U$79,(IF($A$8=Nutrients!$B$77,Nutrients!$U$77,Nutrients!$U$78)))))*J$8))/2000","v":9.8465516265845316},{"$f":"(SUMPRODUCT(K$9:K$229,Nutrients!$U$8:$U$228)+(IF($A$7=Nutrients!$B$8,Nutrients!$U$8,Nutrients!$U$9)*K$7)+(((IF($A$8=Nutrients!$B$79,Nutrients!$U$79,(IF($A$8=Nutrients!$B$77,Nutrients!$U$77,Nutrients!$U$78)))))*K$8))/2000","v":9.9103248579405285},{"$f":"(SUMPRODUCT(L$9:L$229,Nutrients!$U$8:$U$228)+(IF($A$7=Nutrients!$B$8,Nutrients!$U$8,Nutrients!$U$9)*L$7)+(((IF($A$8=Nutrients!$B$79,Nutrients!$U$79,(IF($A$8=Nutrients!$B$77,Nutrients!$U$77,Nutrients!$U$78)))))*L$8))/2000","v":9.9631746054439638},{"$f":"(SUMPRODUCT(M$9:M$229,Nutrients!$U$8:$U$228)+(IF($A$7=Nutrients!$B$8,Nutrients!$U$8,Nutrients!$U$9)*M$7)+(((IF($A$8=Nutrients!$B$79,Nutrients!$U$79,(IF($A$8=Nutrients!$B$77,Nutrients!$U$77,Nutrients!$U$78)))))*M$8))/2000","v":10.00406377730083},{"$f":"(SUMPRODUCT(N$9:N$229,Nutrients!$U$8:$U$228)+(IF($A$7=Nutrients!$B$8,Nutrients!$U$8,Nutrients!$U$9)*N$7)+(((IF($A$8=Nutrients!$B$79,Nutrients!$U$79,(IF($A$8=Nutrients!$B$77,Nutrients!$U$77,Nutrients!$U$78)))))*N$8))/2000","v":8.8184122421246407},null,{"$f":"(SUMPRODUCT(P$9:P$229,Nutrients!$U$8:$U$228)+(IF($A$7=Nutrients!$B$8,Nutrients!$U$8,Nutrients!$U$9)*P$7)+(((IF($A$8=Nutrients!$B$79,Nutrients!$U$79,(IF($A$8=Nutrients!$B$77,Nutrients!$U$77,Nutrients!$U$78)))))*P$8))/2000","v":10.980733042813222},{"$f":"(SUMPRODUCT(Q$9:Q$229,Nutrients!$U$8:$U$228)+(IF($A$7=Nutrients!$B$8,Nutrients!$U$8,Nutrients!$U$9)*Q$7)+(((IF($A$8=Nutrients!$B$79,Nutrients!$U$79,(IF($A$8=Nutrients!$B$77,Nutrients!$U$77,Nutrients!$U$78)))))*Q$8))/2000","v":11.050462995024263},{"$f":"(SUMPRODUCT(R$9:R$229,Nutrients!$U$8:$U$228)+(IF($A$7=Nutrients!$B$8,Nutrients!$U$8,Nutrients!$U$9)*R$7)+(((IF($A$8=Nutrients!$B$79,Nutrients!$U$79,(IF($A$8=Nutrients!$B$77,Nutrients!$U$77,Nutrients!$U$78)))))*R$8))/2000","v":11.113965652643751},{"$f":"(SUMPRODUCT(S$9:S$229,Nutrients!$U$8:$U$228)+(IF($A$7=Nutrients!$B$8,Nutrients!$U$8,Nutrients!$U$9)*S$7)+(((IF($A$8=Nutrients!$B$79,Nutrients!$U$79,(IF($A$8=Nutrients!$B$77,Nutrients!$U$77,Nutrients!$U$78)))))*S$8))/2000","v":11.166757920659718},{"$f":"(SUMPRODUCT(T$9:T$229,Nutrients!$U$8:$U$228)+(IF($A$7=Nutrients!$B$8,Nutrients!$U$8,Nutrients!$U$9)*T$7)+(((IF($A$8=Nutrients!$B$79,Nutrients!$U$79,(IF($A$8=Nutrients!$B$77,Nutrients!$U$77,Nutrients!$U$78)))))*T$8))/2000","v":11.207255663369779},{"$f":"(SUMPRODUCT(U$9:U$229,Nutrients!$U$8:$U$228)+(IF($A$7=Nutrients!$B$8,Nutrients!$U$8,Nutrients!$U$9)*U$7)+(((IF($A$8=Nutrients!$B$79,Nutrients!$U$79,(IF($A$8=Nutrients!$B$77,Nutrients!$U$77,Nutrients!$U$78)))))*U$8))/2000","v":8.8184122421246407},null,{"$f":"(SUMPRODUCT(W$9:W$229,Nutrients!$U$8:$U$228)+(IF($A$7=Nutrients!$B$8,Nutrients!$U$8,Nutrients!$U$9)*W$7)+(((IF($A$8=Nutrients!$B$79,Nutrients!$U$79,(IF($A$8=Nutrients!$B$77,Nutrients!$U$77,Nutrients!$U$78)))))*W$8))/2000","v":12.185356360200929},{"$f":"(SUMPRODUCT(X$9:X$229,Nutrients!$U$8:$U$228)+(IF($A$7=Nutrients!$B$8,Nutrients!$U$8,Nutrients!$U$9)*X$7)+(((IF($A$8=Nutrients!$B$79,Nutrients!$U$79,(IF($A$8=Nutrients!$B$77,Nutrients!$U$77,Nutrients!$U$78)))))*X$8))/2000","v":12.254543632340727},{"$f":"(SUMPRODUCT(Y$9:Y$229,Nutrients!$U$8:$U$228)+(IF($A$7=Nutrients!$B$8,Nutrients!$U$8,Nutrients!$U$9)*Y$7)+(((IF($A$8=Nutrients!$B$79,Nutrients!$U$79,(IF($A$8=Nutrients!$B$77,Nutrients!$U$77,Nutrients!$U$78)))))*Y$8))/2000","v":12.317841435614078},{"$f":"(SUMPRODUCT(Z$9:Z$229,Nutrients!$U$8:$U$228)+(IF($A$7=Nutrients!$B$8,Nutrients!$U$8,Nutrients!$U$9)*Z$7)+(((IF($A$8=Nutrients!$B$79,Nutrients!$U$79,(IF($A$8=Nutrients!$B$77,Nutrients!$U$77,Nutrients!$U$78)))))*Z$8))/2000","v":12.369726240015426},{"$f":"(SUMPRODUCT(AA$9:AA$229,Nutrients!$U$8:$U$228)+(IF($A$7=Nutrients!$B$8,Nutrients!$U$8,Nutrients!$U$9)*AA$7)+(((IF($A$8=Nutrients!$B$79,Nutrients!$U$79,(IF($A$8=Nutrients!$B$77,Nutrients!$U$77,Nutrients!$U$78)))))*AA$8))/2000","v":12.408887678555427},{"$f":"(SUMPRODUCT(AB$9:AB$229,Nutrients!$U$8:$U$228)+(IF($A$7=Nutrients!$B$8,Nutrients!$U$8,Nutrients!$U$9)*AB$7)+(((IF($A$8=Nutrients!$B$79,Nutrients!$U$79,(IF($A$8=Nutrients!$B$77,Nutrients!$U$77,Nutrients!$U$78)))))*AB$8))/2000","v":8.8184122421246407},null,{"$f":"(SUMPRODUCT(AD$9:AD$229,Nutrients!$U$8:$U$228)+(IF($A$7=Nutrients!$B$8,Nutrients!$U$8,Nutrients!$U$9)*AD$7)+(((IF($A$8=Nutrients!$B$79,Nutrients!$U$79,(IF($A$8=Nutrients!$B$77,Nutrients!$U$77,Nutrients!$U$78)))))*AD$8))/2000","v":13.389684396498479},{"$f":"(SUMPRODUCT(AE$9:AE$229,Nutrients!$U$8:$U$228)+(IF($A$7=Nutrients!$B$8,Nutrients!$U$8,Nutrients!$U$9)*AE$7)+(((IF($A$8=Nutrients!$B$79,Nutrients!$U$79,(IF($A$8=Nutrients!$B$77,Nutrients!$U$77,Nutrients!$U$78)))))*AE$8))/2000","v":13.458825319044692},{"$f":"(SUMPRODUCT(AF$9:AF$229,Nutrients!$U$8:$U$228)+(IF($A$7=Nutrients!$B$8,Nutrients!$U$8,Nutrients!$U$9)*AF$7)+(((IF($A$8=Nutrients!$B$79,Nutrients!$U$79,(IF($A$8=Nutrients!$B$77,Nutrients!$U$77,Nutrients!$U$78)))))*AF$8))/2000","v":13.521113018134308},{"$f":"(SUMPRODUCT(AG$9:AG$229,Nutrients!$U$8:$U$228)+(IF($A$7=Nutrients!$B$8,Nutrients!$U$8,Nutrients!$U$9)*AG$7)+(((IF($A$8=Nutrients!$B$79,Nutrients!$U$79,(IF($A$8=Nutrients!$B$77,Nutrients!$U$77,Nutrients!$U$78)))))*AG$8))/2000","v":13.57134779375134},{"$f":"(SUMPRODUCT(AH$9:AH$229,Nutrients!$U$8:$U$228)+(IF($A$7=Nutrients!$B$8,Nutrients!$U$8,Nutrients!$U$9)*AH$7)+(((IF($A$8=Nutrients!$B$79,Nutrients!$U$79,(IF($A$8=Nutrients!$B$77,Nutrients!$U$77,Nutrients!$U$78)))))*AH$8))/2000","v":13.604447749988939},{"$f":"(SUMPRODUCT(AI$9:AI$229,Nutrients!$U$8:$U$228)+(IF($A$7=Nutrients!$B$8,Nutrients!$U$8,Nutrients!$U$9)*AI$7)+(((IF($A$8=Nutrients!$B$79,Nutrients!$U$79,(IF($A$8=Nutrients!$B$77,Nutrients!$U$77,Nutrients!$U$78)))))*AI$8))/2000","v":8.8184122421246407},null,{"$f":"(SUMPRODUCT(AK$9:AK$229,Nutrients!$U$8:$U$228)+(IF($A$7=Nutrients!$B$8,Nutrients!$U$8,Nutrients!$U$9)*AK$7)+(((IF($A$8=Nutrients!$B$79,Nutrients!$U$79,(IF($A$8=Nutrients!$B$77,Nutrients!$U$77,Nutrients!$U$78)))))*AK$8))/2000","v":14.593774151350882},{"$f":"(SUMPRODUCT(AL$9:AL$229,Nutrients!$U$8:$U$228)+(IF($A$7=Nutrients!$B$8,Nutrients!$U$8,Nutrients!$U$9)*AL$7)+(((IF($A$8=Nutrients!$B$79,Nutrients!$U$79,(IF($A$8=Nutrients!$B$77,Nutrients!$U$77,Nutrients!$U$78)))))*AL$8))/2000","v":14.663268018628695},{"$f":"(SUMPRODUCT(AM$9:AM$229,Nutrients!$U$8:$U$228)+(IF($A$7=Nutrients!$B$8,Nutrients!$U$8,Nutrients!$U$9)*AM$7)+(((IF($A$8=Nutrients!$B$79,Nutrients!$U$79,(IF($A$8=Nutrients!$B$77,Nutrients!$U$77,Nutrients!$U$78)))))*AM$8))/2000","v":14.7238353210697},{"$f":"(SUMPRODUCT(AN$9:AN$229,Nutrients!$U$8:$U$228)+(IF($A$7=Nutrients!$B$8,Nutrients!$U$8,Nutrients!$U$9)*AN$7)+(((IF($A$8=Nutrients!$B$79,Nutrients!$U$79,(IF($A$8=Nutrients!$B$77,Nutrients!$U$77,Nutrients!$U$78)))))*AN$8))/2000","v":14.768356661511596},{"$f":"(SUMPRODUCT(AO$9:AO$229,Nutrients!$U$8:$U$228)+(IF($A$7=Nutrients!$B$8,Nutrients!$U$8,Nutrients!$U$9)*AO$7)+(((IF($A$8=Nutrients!$B$79,Nutrients!$U$79,(IF($A$8=Nutrients!$B$77,Nutrients!$U$77,Nutrients!$U$78)))))*AO$8))/2000","v":14.797950353528863},{"$f":"(SUMPRODUCT(AP$9:AP$229,Nutrients!$U$8:$U$228)+(IF($A$7=Nutrients!$B$8,Nutrients!$U$8,Nutrients!$U$9)*AP$7)+(((IF($A$8=Nutrients!$B$79,Nutrients!$U$79,(IF($A$8=Nutrients!$B$77,Nutrients!$U$77,Nutrients!$U$78)))))*AP$8))/2000","v":8.8184122421246407},null,{"$f":"(SUMPRODUCT(AR$9:AR$229,Nutrients!$U$8:$U$228)+(IF($A$7=Nutrients!$B$8,Nutrients!$U$8,Nutrients!$U$9)*AR$7)+(((IF($A$8=Nutrients!$B$79,Nutrients!$U$79,(IF($A$8=Nutrients!$B$77,Nutrients!$U$77,Nutrients!$U$78)))))*AR$8))/2000","v":15.79702735420287},{"$f":"(SUMPRODUCT(AS$9:AS$229,Nutrients!$U$8:$U$228)+(IF($A$7=Nutrients!$B$8,Nutrients!$U$8,Nutrients!$U$9)*AS$7)+(((IF($A$8=Nutrients!$B$79,Nutrients!$U$79,(IF($A$8=Nutrients!$B$77,Nutrients!$U$77,Nutrients!$U$78)))))*AS$8))/2000","v":15.866941276993494},{"$f":"(SUMPRODUCT(AT$9:AT$229,Nutrients!$U$8:$U$228)+(IF($A$7=Nutrients!$B$8,Nutrients!$U$8,Nutrients!$U$9)*AT$7)+(((IF($A$8=Nutrients!$B$79,Nutrients!$U$79,(IF($A$8=Nutrients!$B$77,Nutrients!$U$77,Nutrients!$U$78)))))*AT$8))/2000","v":15.925720783253233},{"$f":"(SUMPRODUCT(AU$9:AU$229,Nutrients!$U$8:$U$228)+(IF($A$7=Nutrients!$B$8,Nutrients!$U$8,Nutrients!$U$9)*AU$7)+(((IF($A$8=Nutrients!$B$79,Nutrients!$U$79,(IF($A$8=Nutrients!$B$77,Nutrients!$U$77,Nutrients!$U$78)))))*AU$8))/2000","v":15.961970881073496},{"$f":"(SUMPRODUCT(AV$9:AV$229,Nutrients!$U$8:$U$228)+(IF($A$7=Nutrients!$B$8,Nutrients!$U$8,Nutrients!$U$9)*AV$7)+(((IF($A$8=Nutrients!$B$79,Nutrients!$U$79,(IF($A$8=Nutrients!$B$77,Nutrients!$U$77,Nutrients!$U$78)))))*AV$8))/2000","v":15.991450111960036},{"$f":"(SUMPRODUCT(AW$9:AW$229,Nutrients!$U$8:$U$228)+(IF($A$7=Nutrients!$B$8,Nutrients!$U$8,Nutrients!$U$9)*AW$7)+(((IF($A$8=Nutrients!$B$79,Nutrients!$U$79,(IF($A$8=Nutrients!$B$77,Nutrients!$U$77,Nutrients!$U$78)))))*AW$8))/2000","v":8.8184122421246407}]
["SID Lys:CP ratio",{"$f":"B236/B253*100","v":6.1785853391259096},5.9864354833614239,5.7595132677868364,5.6037683275620731,5.5537986803701944,5.52175985110991,null,{"$f":"I236/I253*100","v":6.0439016493390048},5.8420803911481061,5.605335311772957,5.4405545839128377,5.3796023106898971,5.52175985110991,null,{"$f":"P236/P253*100","v":5.9127458106201107},5.7013734026617886,5.4580366643530507,5.2830027473563659,5.2118178311893315,5.52175985110991,null,{"$f":"W236/W253*100","v":5.7849621287241995},5.5657287880140025,5.3147206859021301,5.1312210182423392,5.048535432215064,5.52175985110991,null,{"$f":"AD236/AD253*100","v":5.6602063231134485},5.4331367695898285,5.1757878824371488,4.9835141907946516,4.8931944699487442,5.52175985110991,null,{"$f":"AK236/AK253*100","v":5.5391118493769254},5.3055885129326086,5.0412799420943868,4.8424321394054859,4.7449704840407652,5.52175985110991,null,{"$f":"AR236/AR253*100","v":5.4233502423310584},5.1805199555219588,4.9109928286313362,4.7072293680635768,4.6030984155535872,5.52175985110991]
["Trace minerals (added levels)"]
["  Zinc added, ppm",{"$f":"(SUMPRODUCT(B$9:B$229,Nutrients!$EK$8:$EK$228)+(IF($A$7=Nutrients!$B$8,Nutrients!$EK$8,Nutrients!$EK$9)*B$7)+(((IF($A$8=Nutrients!$B$79,Nutrients!$EK$79,(IF($A$8=Nutrients!$B$77,Nutrients!$EK$77,Nutrients!$EK$78)))))*B$8))/2000*1000000","v":110.11950000000002},{"$f":"(SUMPRODUCT(C$9:C$229,Nutrients!$EK$8:$EK$228)+(IF($A$7=Nutrients!$B$8,Nutrients!$EK$8,Nutrients!$EK$9)*C$7)+(((IF($A$8=Nutrients!$B$79,Nutrients!$EK$79,(IF($A$8=Nutrients!$B$77,Nutrients!$EK$77,Nutrients!$EK$78)))))*C$8))/2000*1000000","v":110.11950000000002},{"$f":"(SUMPRODUCT(D$9:D$229,Nutrients!$EK$8:$EK$228)+(IF($A$7=Nutrients!$B$8,Nutrients!$EK$8,Nutrients!$EK$9)*D$7)+(((IF($A$8=Nutrients!$B$79,Nutrients!$EK$79,(IF($A$8=Nutrients!$B$77,Nutrients!$EK$77,Nutrients!$EK$78)))))*D$8))/2000*1000000","v":91.766249999999999},{"$f":"(SUMPRODUCT(E$9:E$229,Nutrients!$EK$8:$EK$228)+(IF($A$7=Nutrients!$B$8,Nutrients!$EK$8,Nutrients!$EK$9)*E$7)+(((IF($A$8=Nutrients!$B$79,Nutrients!$EK$79,(IF($A$8=Nutrients!$B$77,Nutrients!$EK$77,Nutrients!$EK$78)))))*E$8))/2000*1000000","v":73.413000000000011},{"$f":"(SUMPRODUCT(F$9:F$229,Nutrients!$EK$8:$EK$228)+(IF($A$7=Nutrients!$B$8,Nutrients!$EK$8,Nutrients!$EK$9)*F$7)+(((IF($A$8=Nutrients!$B$79,Nutrients!$EK$79,(IF($A$8=Nutrients!$B$77,Nutrients!$EK$77,Nutrients!$EK$78)))))*F$8))/2000*1000000","v":55.059750000000008},{"$f":"(SUMPRODUCT(G$9:G$229,Nutrients!$EK$8:$EK$228)+(IF($A$7=Nutrients!$B$8,Nutrients!$EK$8,Nutrients!$EK$9)*G$7)+(((IF($A$8=Nutrients!$B$79,Nutrients!$EK$79,(IF($A$8=Nutrients!$B$77,Nutrients!$EK$77,Nutrients!$EK$78)))))*G$8))/2000*1000000","v":55.059750000000008},null,{"$f":"(SUMPRODUCT(I$9:I$229,Nutrients!$EK$8:$EK$228)+(IF($A$7=Nutrients!$B$8,Nutrients!$EK$8,Nutrients!$EK$9)*I$7)+(((IF($A$8=Nutrients!$B$79,Nutrients!$EK$79,(IF($A$8=Nutrients!$B$77,Nutrients!$EK$77,Nutrients!$EK$78)))))*I$8))/2000*1000000","v":110.11950000000002},{"$f":"(SUMPRODUCT(J$9:J$229,Nutrients!$EK$8:$EK$228)+(IF($A$7=Nutrients!$B$8,Nutrients!$EK$8,Nutrients!$EK$9)*J$7)+(((IF($A$8=Nutrients!$B$79,Nutrients!$EK$79,(IF($A$8=Nutrients!$B$77,Nutrients!$EK$77,Nutrients!$EK$78)))))*J$8))/2000*1000000","v":110.11950000000002},{"$f":"(SUMPRODUCT(K$9:K$229,Nutrients!$EK$8:$EK$228)+(IF($A$7=Nutrients!$B$8,Nutrients!$EK$8,Nutrients!$EK$9)*K$7)+(((IF($A$8=Nutrients!$B$79,Nutrients!$EK$79,(IF($A$8=Nutrients!$B$77,Nutrients!$EK$77,Nutrients!$EK$78)))))*K$8))/2000*1000000","v":91.766249999999999},{"$f":"(SUMPRODUCT(L$9:L$229,Nutrients!$EK$8:$EK$228)+(IF($A$7=Nutrients!$B$8,Nutrients!$EK$8,Nutrients!$EK$9)*L$7)+(((IF($A$8=Nutrients!$B$79,Nutrients!$EK$79,(IF($A$8=Nutrients!$B$77,Nutrients!$EK$77,Nutrients!$EK$78)))))*L$8))/2000*1000000","v":73.413000000000011},{"$f":"(SUMPRODUCT(M$9:M$229,Nutrients!$EK$8:$EK$228)+(IF($A$7=Nutrients!$B$8,Nutrients!$EK$8,Nutrients!$EK$9)*M$7)+(((IF($A$8=Nutrients!$B$79,Nutrients!$EK$79,(IF($A$8=Nutrients!$B$77,Nutrients!$EK$77,Nutrients!$EK$78)))))*M$8))/2000*1000000","v":55.059750000000008},{"$f":"(SUMPRODUCT(N$9:N$229,Nutrients!$EK$8:$EK$228)+(IF($A$7=Nutrients!$B$8,Nutrients!$EK$8,Nutrients!$EK$9)*N$7)+(((IF($A$8=Nutrients!$B$79,Nutrients!$EK$79,(IF($A$8=Nutrients!$B$77,Nutrients!$EK$77,Nutrients!$EK$78)))))*N$8))/2000*1000000","v":55.059750000000008},null,{"$f":"(SUMPRODUCT(P$9:P$229,Nutrients!$EK$8:$EK$228)+(IF($A$7=Nutrients!$B$8,Nutrients!$EK$8,Nutrients!$EK$9)*P$7)+(((IF($A$8=Nutrients!$B$79,Nutrients!$EK$79,(IF($A$8=Nutrients!$B$77,Nutrients!$EK$77,Nutrients!$EK$78)))))*P$8))/2000*1000000","v":110.11950000000002},{"$f":"(SUMPRODUCT(Q$9:Q$229,Nutrients!$EK$8:$EK$228)+(IF($A$7=Nutrients!$B$8,Nutrients!$EK$8,Nutrients!$EK$9)*Q$7)+(((IF($A$8=Nutrients!$B$79,Nutrients!$EK$79,(IF($A$8=Nutrients!$B$77,Nutrients!$EK$77,Nutrients!$EK$78)))))*Q$8))/2000*1000000","v":110.11950000000002},{"$f":"(SUMPRODUCT(R$9:R$229,Nutrients!$EK$8:$EK$228)+(IF($A$7=Nutrients!$B$8,Nutrients!$EK$8,Nutrients!$EK$9)*R$7)+(((IF($A$8=Nutrients!$B$79,Nutrients!$EK$79,(IF($A$8=Nutrients!$B$77,Nutrients!$EK$77,Nutrients!$EK$78)))))*R$8))/2000*1000000","v":91.766249999999999},{"$f":"(SUMPRODUCT(S$9:S$229,Nutrients!$EK$8:$EK$228)+(IF($A$7=Nutrients!$B$8,Nutrients!$EK$8,Nutrients!$EK$9)*S$7)+(((IF($A$8=Nutrients!$B$79,Nutrients!$EK$79,(IF($A$8=Nutrients!$B$77,Nutrients!$EK$77,Nutrients!$EK$78)))))*S$8))/2000*1000000","v":73.413000000000011},{"$f":"(SUMPRODUCT(T$9:T$229,Nutrients!$EK$8:$EK$228)+(IF($A$7=Nutrients!$B$8,Nutrients!$EK$8,Nutrients!$EK$9)*T$7)+(((IF($A$8=Nutrients!$B$79,Nutrients!$EK$79,(IF($A$8=Nutrients!$B$77,Nutrients!$EK$77,Nutrients!$EK$78)))))*T$8))/2000*1000000","v":55.059750000000008},{"$f":"(SUMPRODUCT(U$9:U$229,Nutrients!$EK$8:$EK$228)+(IF($A$7=Nutrients!$B$8,Nutrients!$EK$8,Nutrients!$EK$9)*U$7)+(((IF($A$8=Nutrients!$B$79,Nutrients!$EK$79,(IF($A$8=Nutrients!$B$77,Nutrients!$EK$77,Nutrients!$EK$78)))))*U$8))/2000*1000000","v":55.059750000000008},null,{"$f":"(SUMPRODUCT(W$9:W$229,Nutrients!$EK$8:$EK$228)+(IF($A$7=Nutrients!$B$8,Nutrients!$EK$8,Nutrients!$EK$9)*W$7)+(((IF($A$8=Nutrients!$B$79,Nutrients!$EK$79,(IF($A$8=Nutrients!$B$77,Nutrients!$EK$77,Nutrients!$EK$78)))))*W$8))/2000*1000000","v":110.11950000000002},{"$f":"(SUMPRODUCT(X$9:X$229,Nutrients!$EK$8:$EK$228)+(IF($A$7=Nutrients!$B$8,Nutrients!$EK$8,Nutrients!$EK$9)*X$7)+(((IF($A$8=Nutrients!$B$79,Nutrients!$EK$79,(IF($A$8=Nutrients!$B$77,Nutrients!$EK$77,Nutrients!$EK$78)))))*X$8))/2000*1000000","v":110.11950000000002},{"$f":"(SUMPRODUCT(Y$9:Y$229,Nutrients!$EK$8:$EK$228)+(IF($A$7=Nutrients!$B$8,Nutrients!$EK$8,Nutrients!$EK$9)*Y$7)+(((IF($A$8=Nutrients!$B$79,Nutrients!$EK$79,(IF($A$8=Nutrients!$B$77,Nutrients!$EK$77,Nutrients!$EK$78)))))*Y$8))/2000*1000000","v":91.766249999999999},{"$f":"(SUMPRODUCT(Z$9:Z$229,Nutrients!$EK$8:$EK$228)+(IF($A$7=Nutrients!$B$8,Nutrients!$EK$8,Nutrients!$EK$9)*Z$7)+(((IF($A$8=Nutrients!$B$79,Nutrients!$EK$79,(IF($A$8=Nutrients!$B$77,Nutrients!$EK$77,Nutrients!$EK$78)))))*Z$8))/2000*1000000","v":73.413000000000011},{"$f":"(SUMPRODUCT(AA$9:AA$229,Nutrients!$EK$8:$EK$228)+(IF($A$7=Nutrients!$B$8,Nutrients!$EK$8,Nutrients!$EK$9)*AA$7)+(((IF($A$8=Nutrients!$B$79,Nutrients!$EK$79,(IF($A$8=Nutrients!$B$77,Nutrients!$EK$77,Nutrients!$EK$78)))))*AA$8))/2000*1000000","v":55.059750000000008},{"$f":"(SUMPRODUCT(AB$9:AB$229,Nutrients!$EK$8:$EK$228)+(IF($A$7=Nutrients!$B$8,Nutrients!$EK$8,Nutrients!$EK$9)*AB$7)+(((IF($A$8=Nutrients!$B$79,Nutrients!$EK$79,(IF($A$8=Nutrients!$B$77,Nutrients!$EK$77,Nutrients!$EK$78)))))*AB$8))/2000*1000000","v":55.059750000000008},null,{"$f":"(SUMPRODUCT(AD$9:AD$229,Nutrients!$EK$8:$EK$228)+(IF($A$7=Nutrients!$B$8,Nutrients!$EK$8,Nutrients!$EK$9)*AD$7)+(((IF($A$8=Nutrients!$B$79,Nutrients!$EK$79,(IF($A$8=Nutrients!$B$77,Nutrients!$EK$77,Nutrients!$EK$78)))))*AD$8))/2000*1000000","v":110.11950000000002},{"$f":"(SUMPRODUCT(AE$9:AE$229,Nutrients!$EK$8:$EK$228)+(IF($A$7=Nutrients!$B$8,Nutrients!$EK$8,Nutrients!$EK$9)*AE$7)+(((IF($A$8=Nutrients!$B$79,Nutrients!$EK$79,(IF($A$8=Nutrients!$B$77,Nutrients!$EK$77,Nutrients!$EK$78)))))*AE$8))/2000*1000000","v":110.11950000000002},{"$f":"(SUMPRODUCT(AF$9:AF$229,Nutrients!$EK$8:$EK$228)+(IF($A$7=Nutrients!$B$8,Nutrients!$EK$8,Nutrients!$EK$9)*AF$7)+(((IF($A$8=Nutrients!$B$79,Nutrients!$EK$79,(IF($A$8=Nutrients!$B$77,Nutrients!$EK$77,Nutrients!$EK$78)))))*AF$8))/2000*1000000","v":91.766249999999999},{"$f":"(SUMPRODUCT(AG$9:AG$229,Nutrients!$EK$8:$EK$228)+(IF($A$7=Nutrients!$B$8,Nutrients!$EK$8,Nutrients!$EK$9)*AG$7)+(((IF($A$8=Nutrients!$B$79,Nutrients!$EK$79,(IF($A$8=Nutrients!$B$77,Nutrients!$EK$77,Nutrients!$EK$78)))))*AG$8))/2000*1000000","v":73.413000000000011},{"$f":"(SUMPRODUCT(AH$9:AH$229,Nutrients!$EK$8:$EK$228)+(IF($A$7=Nutrients!$B$8,Nutrients!$EK$8,Nutrients!$EK$9)*AH$7)+(((IF($A$8=Nutrients!$B$79,Nutrients!$EK$79,(IF($A$8=Nutrients!$B$77,Nutrients!$EK$77,Nutrients!$EK$78)))))*AH$8))/2000*1000000","v":55.059750000000008},{"$f":"(SUMPRODUCT(AI$9:AI$229,Nutrients!$EK$8:$EK$228)+(IF($A$7=Nutrients!$B$8,Nutrients!$EK$8,Nutrients!$EK$9)*AI$7)+(((IF($A$8=Nutrients!$B$79,Nutrients!$EK$79,(IF($A$8=Nutrients!$B$77,Nutrients!$EK$77,Nutrients!$EK$78)))))*AI$8))/2000*1000000","v":55.059750000000008},null,{"$f":"(SUMPRODUCT(AK$9:AK$229,Nutrients!$EK$8:$EK$228)+(IF($A$7=Nutrients!$B$8,Nutrients!$EK$8,Nutrients!$EK$9)*AK$7)+(((IF($A$8=Nutrients!$B$79,Nutrients!$EK$79,(IF($A$8=Nutrients!$B$77,Nutrients!$EK$77,Nutrients!$EK$78)))))*AK$8))/2000*1000000","v":110.11950000000002},{"$f":"(SUMPRODUCT(AL$9:AL$229,Nutrients!$EK$8:$EK$228)+(IF($A$7=Nutrients!$B$8,Nutrients!$EK$8,Nutrients!$EK$9)*AL$7)+(((IF($A$8=Nutrients!$B$79,Nutrients!$EK$79,(IF($A$8=Nutrients!$B$77,Nutrients!$EK$77,Nutrients!$EK$78)))))*AL$8))/2000*1000000","v":110.11950000000002},{"$f":"(SUMPRODUCT(AM$9:AM$229,Nutrients!$EK$8:$EK$228)+(IF($A$7=Nutrients!$B$8,Nutrients!$EK$8,Nutrients!$EK$9)*AM$7)+(((IF($A$8=Nutrients!$B$79,Nutrients!$EK$79,(IF($A$8=Nutrients!$B$77,Nutrients!$EK$77,Nutrients!$EK$78)))))*AM$8))/2000*1000000","v":91.766249999999999},{"$f":"(SUMPRODUCT(AN$9:AN$229,Nutrients!$EK$8:$EK$228)+(IF($A$7=Nutrients!$B$8,Nutrients!$EK$8,Nutrients!$EK$9)*AN$7)+(((IF($A$8=Nutrients!$B$79,Nutrients!$EK$79,(IF($A$8=Nutrients!$B$77,Nutrients!$EK$77,Nutrients!$EK$78)))))*AN$8))/2000*1000000","v":73.413000000000011},{"$f":"(SUMPRODUCT(AO$9:AO$229,Nutrients!$EK$8:$EK$228)+(IF($A$7=Nutrients!$B$8,Nutrients!$EK$8,Nutrients!$EK$9)*AO$7)+(((IF($A$8=Nutrients!$B$79,Nutrients!$EK$79,(IF($A$8=Nutrients!$B$77,Nutrients!$EK$77,Nutrients!$EK$78)))))*AO$8))/2000*1000000","v":55.059750000000008},{"$f":"(SUMPRODUCT(AP$9:AP$229,Nutrients!$EK$8:$EK$228)+(IF($A$7=Nutrients!$B$8,Nutrients!$EK$8,Nutrients!$EK$9)*AP$7)+(((IF($A$8=Nutrients!$B$79,Nutrients!$EK$79,(IF($A$8=Nutrients!$B$77,Nutrients!$EK$77,Nutrients!$EK$78)))))*AP$8))/2000*1000000","v":55.059750000000008},null,{"$f":"(SUMPRODUCT(AR$9:AR$229,Nutrients!$EK$8:$EK$228)+(IF($A$7=Nutrients!$B$8,Nutrients!$EK$8,Nutrients!$EK$9)*AR$7)+(((IF($A$8=Nutrients!$B$79,Nutrients!$EK$79,(IF($A$8=Nutrients!$B$77,Nutrients!$EK$77,Nutrients!$EK$78)))))*AR$8))/2000*1000000","v":110.11950000000002},{"$f":"(SUMPRODUCT(AS$9:AS$229,Nutrients!$EK$8:$EK$228)+(IF($A$7=Nutrients!$B$8,Nutrients!$EK$8,Nutrients!$EK$9)*AS$7)+(((IF($A$8=Nutrients!$B$79,Nutrients!$EK$79,(IF($A$8=Nutrients!$B$77,Nutrients!$EK$77,Nutrients!$EK$78)))))*AS$8))/2000*1000000","v":110.11950000000002},{"$f":"(SUMPRODUCT(AT$9:AT$229,Nutrients!$EK$8:$EK$228)+(IF($A$7=Nutrients!$B$8,Nutrients!$EK$8,Nutrients!$EK$9)*AT$7)+(((IF($A$8=Nutrients!$B$79,Nutrients!$EK$79,(IF($A$8=Nutrients!$B$77,Nutrients!$EK$77,Nutrients!$EK$78)))))*AT$8))/2000*1000000","v":91.766249999999999},{"$f":"(SUMPRODUCT(AU$9:AU$229,Nutrients!$EK$8:$EK$228)+(IF($A$7=Nutrients!$B$8,Nutrients!$EK$8,Nutrients!$EK$9)*AU$7)+(((IF($A$8=Nutrients!$B$79,Nutrients!$EK$79,(IF($A$8=Nutrients!$B$77,Nutrients!$EK$77,Nutrients!$EK$78)))))*AU$8))/2000*1000000","v":73.413000000000011},{"$f":"(SUMPRODUCT(AV$9:AV$229,Nutrients!$EK$8:$EK$228)+(IF($A$7=Nutrients!$B$8,Nutrients!$EK$8,Nutrients!$EK$9)*AV$7)+(((IF($A$8=Nutrients!$B$79,Nutrients!$EK$79,(IF($A$8=Nutrients!$B$77,Nutrients!$EK$77,Nutrients!$EK$78)))))*AV$8))/2000*1000000","v":55.059750000000008},{"$f":"(SUMPRODUCT(AW$9:AW$229,Nutrients!$EK$8:$EK$228)+(IF($A$7=Nutrients!$B$8,Nutrients!$EK$8,Nutrients!$EK$9)*AW$7)+(((IF($A$8=Nutrients!$B$79,Nutrients!$EK$79,(IF($A$8=Nutrients!$B$77,Nutrients!$EK$77,Nutrients!$EK$78)))))*AW$8))/2000*1000000","v":55.059750000000008}]
["  Iron added, ppm",{"$f":"(SUMPRODUCT(B$9:B$229,Nutrients!$EL$8:$EL$228)+(IF($A$7=Nutrients!$B$8,Nutrients!$EL$8,Nutrients!$EL$9)*B$7)+(((IF($A$8=Nutrients!$B$79,Nutrients!$EL$79,(IF($A$8=Nutrients!$B$77,Nutrients!$EL$77,Nutrients!$EL$78)))))*B$8))/2000*1000000","v":110.11950000000002},{"$f":"(SUMPRODUCT(C$9:C$229,Nutrients!$EL$8:$EL$228)+(IF($A$7=Nutrients!$B$8,Nutrients!$EL$8,Nutrients!$EL$9)*C$7)+(((IF($A$8=Nutrients!$B$79,Nutrients!$EL$79,(IF($A$8=Nutrients!$B$77,Nutrients!$EL$77,Nutrients!$EL$78)))))*C$8))/2000*1000000","v":110.11950000000002},{"$f":"(SUMPRODUCT(D$9:D$229,Nutrients!$EL$8:$EL$228)+(IF($A$7=Nutrients!$B$8,Nutrients!$EL$8,Nutrients!$EL$9)*D$7)+(((IF($A$8=Nutrients!$B$79,Nutrients!$EL$79,(IF($A$8=Nutrients!$B$77,Nutrients!$EL$77,Nutrients!$EL$78)))))*D$8))/2000*1000000","v":91.766249999999999},{"$f":"(SUMPRODUCT(E$9:E$229,Nutrients!$EL$8:$EL$228)+(IF($A$7=Nutrients!$B$8,Nutrients!$EL$8,Nutrients!$EL$9)*E$7)+(((IF($A$8=Nutrients!$B$79,Nutrients!$EL$79,(IF($A$8=Nutrients!$B$77,Nutrients!$EL$77,Nutrients!$EL$78)))))*E$8))/2000*1000000","v":73.413000000000011},{"$f":"(SUMPRODUCT(F$9:F$229,Nutrients!$EL$8:$EL$228)+(IF($A$7=Nutrients!$B$8,Nutrients!$EL$8,Nutrients!$EL$9)*F$7)+(((IF($A$8=Nutrients!$B$79,Nutrients!$EL$79,(IF($A$8=Nutrients!$B$77,Nutrients!$EL$77,Nutrients!$EL$78)))))*F$8))/2000*1000000","v":55.059750000000008},{"$f":"(SUMPRODUCT(G$9:G$229,Nutrients!$EL$8:$EL$228)+(IF($A$7=Nutrients!$B$8,Nutrients!$EL$8,Nutrients!$EL$9)*G$7)+(((IF($A$8=Nutrients!$B$79,Nutrients!$EL$79,(IF($A$8=Nutrients!$B$77,Nutrients!$EL$77,Nutrients!$EL$78)))))*G$8))/2000*1000000","v":55.059750000000008},null,{"$f":"(SUMPRODUCT(I$9:I$229,Nutrients!$EL$8:$EL$228)+(IF($A$7=Nutrients!$B$8,Nutrients!$EL$8,Nutrients!$EL$9)*I$7)+(((IF($A$8=Nutrients!$B$79,Nutrients!$EL$79,(IF($A$8=Nutrients!$B$77,Nutrients!$EL$77,Nutrients!$EL$78)))))*I$8))/2000*1000000","v":110.11950000000002},{"$f":"(SUMPRODUCT(J$9:J$229,Nutrients!$EL$8:$EL$228)+(IF($A$7=Nutrients!$B$8,Nutrients!$EL$8,Nutrients!$EL$9)*J$7)+(((IF($A$8=Nutrients!$B$79,Nutrients!$EL$79,(IF($A$8=Nutrients!$B$77,Nutrients!$EL$77,Nutrients!$EL$78)))))*J$8))/2000*1000000","v":110.11950000000002},{"$f":"(SUMPRODUCT(K$9:K$229,Nutrients!$EL$8:$EL$228)+(IF($A$7=Nutrients!$B$8,Nutrients!$EL$8,Nutrients!$EL$9)*K$7)+(((IF($A$8=Nutrients!$B$79,Nutrients!$EL$79,(IF($A$8=Nutrients!$B$77,Nutrients!$EL$77,Nutrients!$EL$78)))))*K$8))/2000*1000000","v":91.766249999999999},{"$f":"(SUMPRODUCT(L$9:L$229,Nutrients!$EL$8:$EL$228)+(IF($A$7=Nutrients!$B$8,Nutrients!$EL$8,Nutrients!$EL$9)*L$7)+(((IF($A$8=Nutrients!$B$79,Nutrients!$EL$79,(IF($A$8=Nutrients!$B$77,Nutrients!$EL$77,Nutrients!$EL$78)))))*L$8))/2000*1000000","v":73.413000000000011},{"$f":"(SUMPRODUCT(M$9:M$229,Nutrients!$EL$8:$EL$228)+(IF($A$7=Nutrients!$B$8,Nutrients!$EL$8,Nutrients!$EL$9)*M$7)+(((IF($A$8=Nutrients!$B$79,Nutrients!$EL$79,(IF($A$8=Nutrients!$B$77,Nutrients!$EL$77,Nutrients!$EL$78)))))*M$8))/2000*1000000","v":55.059750000000008},{"$f":"(SUMPRODUCT(N$9:N$229,Nutrients!$EL$8:$EL$228)+(IF($A$7=Nutrients!$B$8,Nutrients!$EL$8,Nutrients!$EL$9)*N$7)+(((IF($A$8=Nutrients!$B$79,Nutrients!$EL$79,(IF($A$8=Nutrients!$B$77,Nutrients!$EL$77,Nutrients!$EL$78)))))*N$8))/2000*1000000","v":55.059750000000008},null,{"$f":"(SUMPRODUCT(P$9:P$229,Nutrients!$EL$8:$EL$228)+(IF($A$7=Nutrients!$B$8,Nutrients!$EL$8,Nutrients!$EL$9)*P$7)+(((IF($A$8=Nutrients!$B$79,Nutrients!$EL$79,(IF($A$8=Nutrients!$B$77,Nutrients!$EL$77,Nutrients!$EL$78)))))*P$8))/2000*1000000","v":110.11950000000002},{"$f":"(SUMPRODUCT(Q$9:Q$229,Nutrients!$EL$8:$EL$228)+(IF($A$7=Nutrients!$B$8,Nutrients!$EL$8,Nutrients!$EL$9)*Q$7)+(((IF($A$8=Nutrients!$B$79,Nutrients!$EL$79,(IF($A$8=Nutrients!$B$77,Nutrients!$EL$77,Nutrients!$EL$78)))))*Q$8))/2000*1000000","v":110.11950000000002},{"$f":"(SUMPRODUCT(R$9:R$229,Nutrients!$EL$8:$EL$228)+(IF($A$7=Nutrients!$B$8,Nutrients!$EL$8,Nutrients!$EL$9)*R$7)+(((IF($A$8=Nutrients!$B$79,Nutrients!$EL$79,(IF($A$8=Nutrients!$B$77,Nutrients!$EL$77,Nutrients!$EL$78)))))*R$8))/2000*1000000","v":91.766249999999999},{"$f":"(SUMPRODUCT(S$9:S$229,Nutrients!$EL$8:$EL$228)+(IF($A$7=Nutrients!$B$8,Nutrients!$EL$8,Nutrients!$EL$9)*S$7)+(((IF($A$8=Nutrients!$B$79,Nutrients!$EL$79,(IF($A$8=Nutrients!$B$77,Nutrients!$EL$77,Nutrients!$EL$78)))))*S$8))/2000*1000000","v":73.413000000000011},{"$f":"(SUMPRODUCT(T$9:T$229,Nutrients!$EL$8:$EL$228)+(IF($A$7=Nutrients!$B$8,Nutrients!$EL$8,Nutrients!$EL$9)*T$7)+(((IF($A$8=Nutrients!$B$79,Nutrients!$EL$79,(IF($A$8=Nutrients!$B$77,Nutrients!$EL$77,Nutrients!$EL$78)))))*T$8))/2000*1000000","v":55.059750000000008},{"$f":"(SUMPRODUCT(U$9:U$229,Nutrients!$EL$8:$EL$228)+(IF($A$7=Nutrients!$B$8,Nutrients!$EL$8,Nutrients!$EL$9)*U$7)+(((IF($A$8=Nutrients!$B$79,Nutrients!$EL$79,(IF($A$8=Nutrients!$B$77,Nutrients!$EL$77,Nutrients!$EL$78)))))*U$8))/2000*1000000","v":55.059750000000008},null,{"$f":"(SUMPRODUCT(W$9:W$229,Nutrients!$EL$8:$EL$228)+(IF($A$7=Nutrients!$B$8,Nutrients!$EL$8,Nutrients!$EL$9)*W$7)+(((IF($A$8=Nutrients!$B$79,Nutrients!$EL$79,(IF($A$8=Nutrients!$B$77,Nutrients!$EL$77,Nutrients!$EL$78)))))*W$8))/2000*1000000","v":110.11950000000002},{"$f":"(SUMPRODUCT(X$9:X$229,Nutrients!$EL$8:$EL$228)+(IF($A$7=Nutrients!$B$8,Nutrients!$EL$8,Nutrients!$EL$9)*X$7)+(((IF($A$8=Nutrients!$B$79,Nutrients!$EL$79,(IF($A$8=Nutrients!$B$77,Nutrients!$EL$77,Nutrients!$EL$78)))))*X$8))/2000*1000000","v":110.11950000000002},{"$f":"(SUMPRODUCT(Y$9:Y$229,Nutrients!$EL$8:$EL$228)+(IF($A$7=Nutrients!$B$8,Nutrients!$EL$8,Nutrients!$EL$9)*Y$7)+(((IF($A$8=Nutrients!$B$79,Nutrients!$EL$79,(IF($A$8=Nutrients!$B$77,Nutrients!$EL$77,Nutrients!$EL$78)))))*Y$8))/2000*1000000","v":91.766249999999999},{"$f":"(SUMPRODUCT(Z$9:Z$229,Nutrients!$EL$8:$EL$228)+(IF($A$7=Nutrients!$B$8,Nutrients!$EL$8,Nutrients!$EL$9)*Z$7)+(((IF($A$8=Nutrients!$B$79,Nutrients!$EL$79,(IF($A$8=Nutrients!$B$77,Nutrients!$EL$77,Nutrients!$EL$78)))))*Z$8))/2000*1000000","v":73.413000000000011},{"$f":"(SUMPRODUCT(AA$9:AA$229,Nutrients!$EL$8:$EL$228)+(IF($A$7=Nutrients!$B$8,Nutrients!$EL$8,Nutrients!$EL$9)*AA$7)+(((IF($A$8=Nutrients!$B$79,Nutrients!$EL$79,(IF($A$8=Nutrients!$B$77,Nutrients!$EL$77,Nutrients!$EL$78)))))*AA$8))/2000*1000000","v":55.059750000000008},{"$f":"(SUMPRODUCT(AB$9:AB$229,Nutrients!$EL$8:$EL$228)+(IF($A$7=Nutrients!$B$8,Nutrients!$EL$8,Nutrients!$EL$9)*AB$7)+(((IF($A$8=Nutrients!$B$79,Nutrients!$EL$79,(IF($A$8=Nutrients!$B$77,Nutrients!$EL$77,Nutrients!$EL$78)))))*AB$8))/2000*1000000","v":55.059750000000008},null,{"$f":"(SUMPRODUCT(AD$9:AD$229,Nutrients!$EL$8:$EL$228)+(IF($A$7=Nutrients!$B$8,Nutrients!$EL$8,Nutrients!$EL$9)*AD$7)+(((IF($A$8=Nutrients!$B$79,Nutrients!$EL$79,(IF($A$8=Nutrients!$B$77,Nutrients!$EL$77,Nutrients!$EL$78)))))*AD$8))/2000*1000000","v":110.11950000000002},{"$f":"(SUMPRODUCT(AE$9:AE$229,Nutrients!$EL$8:$EL$228)+(IF($A$7=Nutrients!$B$8,Nutrients!$EL$8,Nutrients!$EL$9)*AE$7)+(((IF($A$8=Nutrients!$B$79,Nutrients!$EL$79,(IF($A$8=Nutrients!$B$77,Nutrients!$EL$77,Nutrients!$EL$78)))))*AE$8))/2000*1000000","v":110.11950000000002},{"$f":"(SUMPRODUCT(AF$9:AF$229,Nutrients!$EL$8:$EL$228)+(IF($A$7=Nutrients!$B$8,Nutrients!$EL$8,Nutrients!$EL$9)*AF$7)+(((IF($A$8=Nutrients!$B$79,Nutrients!$EL$79,(IF($A$8=Nutrients!$B$77,Nutrients!$EL$77,Nutrients!$EL$78)))))*AF$8))/2000*1000000","v":91.766249999999999},{"$f":"(SUMPRODUCT(AG$9:AG$229,Nutrients!$EL$8:$EL$228)+(IF($A$7=Nutrients!$B$8,Nutrients!$EL$8,Nutrients!$EL$9)*AG$7)+(((IF($A$8=Nutrients!$B$79,Nutrients!$EL$79,(IF($A$8=Nutrients!$B$77,Nutrients!$EL$77,Nutrients!$EL$78)))))*AG$8))/2000*1000000","v":73.413000000000011},{"$f":"(SUMPRODUCT(AH$9:AH$229,Nutrients!$EL$8:$EL$228)+(IF($A$7=Nutrients!$B$8,Nutrients!$EL$8,Nutrients!$EL$9)*AH$7)+(((IF($A$8=Nutrients!$B$79,Nutrients!$EL$79,(IF($A$8=Nutrients!$B$77,Nutrients!$EL$77,Nutrients!$EL$78)))))*AH$8))/2000*1000000","v":55.059750000000008},{"$f":"(SUMPRODUCT(AI$9:AI$229,Nutrients!$EL$8:$EL$228)+(IF($A$7=Nutrients!$B$8,Nutrients!$EL$8,Nutrients!$EL$9)*AI$7)+(((IF($A$8=Nutrients!$B$79,Nutrients!$EL$79,(IF($A$8=Nutrients!$B$77,Nutrients!$EL$77,Nutrients!$EL$78)))))*AI$8))/2000*1000000","v":55.059750000000008},null,{"$f":"(SUMPRODUCT(AK$9:AK$229,Nutrients!$EL$8:$EL$228)+(IF($A$7=Nutrients!$B$8,Nutrients!$EL$8,Nutrients!$EL$9)*AK$7)+(((IF($A$8=Nutrients!$B$79,Nutrients!$EL$79,(IF($A$8=Nutrients!$B$77,Nutrients!$EL$77,Nutrients!$EL$78)))))*AK$8))/2000*1000000","v":110.11950000000002},{"$f":"(SUMPRODUCT(AL$9:AL$229,Nutrients!$EL$8:$EL$228)+(IF($A$7=Nutrients!$B$8,Nutrients!$EL$8,Nutrients!$EL$9)*AL$7)+(((IF($A$8=Nutrients!$B$79,Nutrients!$EL$79,(IF($A$8=Nutrients!$B$77,Nutrients!$EL$77,Nutrients!$EL$78)))))*AL$8))/2000*1000000","v":110.11950000000002},{"$f":"(SUMPRODUCT(AM$9:AM$229,Nutrients!$EL$8:$EL$228)+(IF($A$7=Nutrients!$B$8,Nutrients!$EL$8,Nutrients!$EL$9)*AM$7)+(((IF($A$8=Nutrients!$B$79,Nutrients!$EL$79,(IF($A$8=Nutrients!$B$77,Nutrients!$EL$77,Nutrients!$EL$78)))))*AM$8))/2000*1000000","v":91.766249999999999},{"$f":"(SUMPRODUCT(AN$9:AN$229,Nutrients!$EL$8:$EL$228)+(IF($A$7=Nutrients!$B$8,Nutrients!$EL$8,Nutrients!$EL$9)*AN$7)+(((IF($A$8=Nutrients!$B$79,Nutrients!$EL$79,(IF($A$8=Nutrients!$B$77,Nutrients!$EL$77,Nutrients!$EL$78)))))*AN$8))/2000*1000000","v":73.413000000000011},{"$f":"(SUMPRODUCT(AO$9:AO$229,Nutrients!$EL$8:$EL$228)+(IF($A$7=Nutrients!$B$8,Nutrients!$EL$8,Nutrients!$EL$9)*AO$7)+(((IF($A$8=Nutrients!$B$79,Nutrients!$EL$79,(IF($A$8=Nutrients!$B$77,Nutrients!$EL$77,Nutrients!$EL$78)))))*AO$8))/2000*1000000","v":55.059750000000008},{"$f":"(SUMPRODUCT(AP$9:AP$229,Nutrients!$EL$8:$EL$228)+(IF($A$7=Nutrients!$B$8,Nutrients!$EL$8,Nutrients!$EL$9)*AP$7)+(((IF($A$8=Nutrients!$B$79,Nutrients!$EL$79,(IF($A$8=Nutrients!$B$77,Nutrients!$EL$77,Nutrients!$EL$78)))))*AP$8))/2000*1000000","v":55.059750000000008},null,{"$f":"(SUMPRODUCT(AR$9:AR$229,Nutrients!$EL$8:$EL$228)+(IF($A$7=Nutrients!$B$8,Nutrients!$EL$8,Nutrients!$EL$9)*AR$7)+(((IF($A$8=Nutrients!$B$79,Nutrients!$EL$79,(IF($A$8=Nutrients!$B$77,Nutrients!$EL$77,Nutrients!$EL$78)))))*AR$8))/2000*1000000","v":110.11950000000002},{"$f":"(SUMPRODUCT(AS$9:AS$229,Nutrients!$EL$8:$EL$228)+(IF($A$7=Nutrients!$B$8,Nutrients!$EL$8,Nutrients!$EL$9)*AS$7)+(((IF($A$8=Nutrients!$B$79,Nutrients!$EL$79,(IF($A$8=Nutrients!$B$77,Nutrients!$EL$77,Nutrients!$EL$78)))))*AS$8))/2000*1000000","v":110.11950000000002},{"$f":"(SUMPRODUCT(AT$9:AT$229,Nutrients!$EL$8:$EL$228)+(IF($A$7=Nutrients!$B$8,Nutrients!$EL$8,Nutrients!$EL$9)*AT$7)+(((IF($A$8=Nutrients!$B$79,Nutrients!$EL$79,(IF($A$8=Nutrients!$B$77,Nutrients!$EL$77,Nutrients!$EL$78)))))*AT$8))/2000*1000000","v":91.766249999999999},{"$f":"(SUMPRODUCT(AU$9:AU$229,Nutrients!$EL$8:$EL$228)+(IF($A$7=Nutrients!$B$8,Nutrients!$EL$8,Nutrients!$EL$9)*AU$7)+(((IF($A$8=Nutrients!$B$79,Nutrients!$EL$79,(IF($A$8=Nutrients!$B$77,Nutrients!$EL$77,Nutrients!$EL$78)))))*AU$8))/2000*1000000","v":73.413000000000011},{"$f":"(SUMPRODUCT(AV$9:AV$229,Nutrients!$EL$8:$EL$228)+(IF($A$7=Nutrients!$B$8,Nutrients!$EL$8,Nutrients!$EL$9)*AV$7)+(((IF($A$8=Nutrients!$B$79,Nutrients!$EL$79,(IF($A$8=Nutrients!$B$77,Nutrients!$EL$77,Nutrients!$EL$78)))))*AV$8))/2000*1000000","v":55.059750000000008},{"$f":"(SUMPRODUCT(AW$9:AW$229,Nutrients!$EL$8:$EL$228)+(IF($A$7=Nutrients!$B$8,Nutrients!$EL$8,Nutrients!$EL$9)*AW$7)+(((IF($A$8=Nutrients!$B$79,Nutrients!$EL$79,(IF($A$8=Nutrients!$B$77,Nutrients!$EL$77,Nutrients!$EL$78)))))*AW$8))/2000*1000000","v":55.059750000000008}]
["  Manganese added, ppm",{"$f":"(SUMPRODUCT(B$9:B$229,Nutrients!$EM$8:$EM$228)+(IF($A$7=Nutrients!$B$8,Nutrients!$EM$8,Nutrients!$EM$9)*B$7)+(((IF($A$8=Nutrients!$B$79,Nutrients!$EM$79,(IF($A$8=Nutrients!$B$77,Nutrients!$EM$77,Nutrients!$EM$78)))))*B$8))/2000*1000000","v":33.068999999999996},{"$f":"(SUMPRODUCT(C$9:C$229,Nutrients!$EM$8:$EM$228)+(IF($A$7=Nutrients!$B$8,Nutrients!$EM$8,Nutrients!$EM$9)*C$7)+(((IF($A$8=Nutrients!$B$79,Nutrients!$EM$79,(IF($A$8=Nutrients!$B$77,Nutrients!$EM$77,Nutrients!$EM$78)))))*C$8))/2000*1000000","v":33.068999999999996},{"$f":"(SUMPRODUCT(D$9:D$229,Nutrients!$EM$8:$EM$228)+(IF($A$7=Nutrients!$B$8,Nutrients!$EM$8,Nutrients!$EM$9)*D$7)+(((IF($A$8=Nutrients!$B$79,Nutrients!$EM$79,(IF($A$8=Nutrients!$B$77,Nutrients!$EM$77,Nutrients!$EM$78)))))*D$8))/2000*1000000","v":27.557499999999997},{"$f":"(SUMPRODUCT(E$9:E$229,Nutrients!$EM$8:$EM$228)+(IF($A$7=Nutrients!$B$8,Nutrients!$EM$8,Nutrients!$EM$9)*E$7)+(((IF($A$8=Nutrients!$B$79,Nutrients!$EM$79,(IF($A$8=Nutrients!$B$77,Nutrients!$EM$77,Nutrients!$EM$78)))))*E$8))/2000*1000000","v":22.045999999999999},{"$f":"(SUMPRODUCT(F$9:F$229,Nutrients!$EM$8:$EM$228)+(IF($A$7=Nutrients!$B$8,Nutrients!$EM$8,Nutrients!$EM$9)*F$7)+(((IF($A$8=Nutrients!$B$79,Nutrients!$EM$79,(IF($A$8=Nutrients!$B$77,Nutrients!$EM$77,Nutrients!$EM$78)))))*F$8))/2000*1000000","v":16.534499999999998},{"$f":"(SUMPRODUCT(G$9:G$229,Nutrients!$EM$8:$EM$228)+(IF($A$7=Nutrients!$B$8,Nutrients!$EM$8,Nutrients!$EM$9)*G$7)+(((IF($A$8=Nutrients!$B$79,Nutrients!$EM$79,(IF($A$8=Nutrients!$B$77,Nutrients!$EM$77,Nutrients!$EM$78)))))*G$8))/2000*1000000","v":16.534499999999998},null,{"$f":"(SUMPRODUCT(I$9:I$229,Nutrients!$EM$8:$EM$228)+(IF($A$7=Nutrients!$B$8,Nutrients!$EM$8,Nutrients!$EM$9)*I$7)+(((IF($A$8=Nutrients!$B$79,Nutrients!$EM$79,(IF($A$8=Nutrients!$B$77,Nutrients!$EM$77,Nutrients!$EM$78)))))*I$8))/2000*1000000","v":33.068999999999996},{"$f":"(SUMPRODUCT(J$9:J$229,Nutrients!$EM$8:$EM$228)+(IF($A$7=Nutrients!$B$8,Nutrients!$EM$8,Nutrients!$EM$9)*J$7)+(((IF($A$8=Nutrients!$B$79,Nutrients!$EM$79,(IF($A$8=Nutrients!$B$77,Nutrients!$EM$77,Nutrients!$EM$78)))))*J$8))/2000*1000000","v":33.068999999999996},{"$f":"(SUMPRODUCT(K$9:K$229,Nutrients!$EM$8:$EM$228)+(IF($A$7=Nutrients!$B$8,Nutrients!$EM$8,Nutrients!$EM$9)*K$7)+(((IF($A$8=Nutrients!$B$79,Nutrients!$EM$79,(IF($A$8=Nutrients!$B$77,Nutrients!$EM$77,Nutrients!$EM$78)))))*K$8))/2000*1000000","v":27.557499999999997},{"$f":"(SUMPRODUCT(L$9:L$229,Nutrients!$EM$8:$EM$228)+(IF($A$7=Nutrients!$B$8,Nutrients!$EM$8,Nutrients!$EM$9)*L$7)+(((IF($A$8=Nutrients!$B$79,Nutrients!$EM$79,(IF($A$8=Nutrients!$B$77,Nutrients!$EM$77,Nutrients!$EM$78)))))*L$8))/2000*1000000","v":22.045999999999999},{"$f":"(SUMPRODUCT(M$9:M$229,Nutrients!$EM$8:$EM$228)+(IF($A$7=Nutrients!$B$8,Nutrients!$EM$8,Nutrients!$EM$9)*M$7)+(((IF($A$8=Nutrients!$B$79,Nutrients!$EM$79,(IF($A$8=Nutrients!$B$77,Nutrients!$EM$77,Nutrients!$EM$78)))))*M$8))/2000*1000000","v":16.534499999999998},{"$f":"(SUMPRODUCT(N$9:N$229,Nutrients!$EM$8:$EM$228)+(IF($A$7=Nutrients!$B$8,Nutrients!$EM$8,Nutrients!$EM$9)*N$7)+(((IF($A$8=Nutrients!$B$79,Nutrients!$EM$79,(IF($A$8=Nutrients!$B$77,Nutrients!$EM$77,Nutrients!$EM$78)))))*N$8))/2000*1000000","v":16.534499999999998},null,{"$f":"(SUMPRODUCT(P$9:P$229,Nutrients!$EM$8:$EM$228)+(IF($A$7=Nutrients!$B$8,Nutrients!$EM$8,Nutrients!$EM$9)*P$7)+(((IF($A$8=Nutrients!$B$79,Nutrients!$EM$79,(IF($A$8=Nutrients!$B$77,Nutrients!$EM$77,Nutrients!$EM$78)))))*P$8))/2000*1000000","v":33.068999999999996},{"$f":"(SUMPRODUCT(Q$9:Q$229,Nutrients!$EM$8:$EM$228)+(IF($A$7=Nutrients!$B$8,Nutrients!$EM$8,Nutrients!$EM$9)*Q$7)+(((IF($A$8=Nutrients!$B$79,Nutrients!$EM$79,(IF($A$8=Nutrients!$B$77,Nutrients!$EM$77,Nutrients!$EM$78)))))*Q$8))/2000*1000000","v":33.068999999999996},{"$f":"(SUMPRODUCT(R$9:R$229,Nutrients!$EM$8:$EM$228)+(IF($A$7=Nutrients!$B$8,Nutrients!$EM$8,Nutrients!$EM$9)*R$7)+(((IF($A$8=Nutrients!$B$79,Nutrients!$EM$79,(IF($A$8=Nutrients!$B$77,Nutrients!$EM$77,Nutrients!$EM$78)))))*R$8))/2000*1000000","v":27.557499999999997},{"$f":"(SUMPRODUCT(S$9:S$229,Nutrients!$EM$8:$EM$228)+(IF($A$7=Nutrients!$B$8,Nutrients!$EM$8,Nutrients!$EM$9)*S$7)+(((IF($A$8=Nutrients!$B$79,Nutrients!$EM$79,(IF($A$8=Nutrients!$B$77,Nutrients!$EM$77,Nutrients!$EM$78)))))*S$8))/2000*1000000","v":22.045999999999999},{"$f":"(SUMPRODUCT(T$9:T$229,Nutrients!$EM$8:$EM$228)+(IF($A$7=Nutrients!$B$8,Nutrients!$EM$8,Nutrients!$EM$9)*T$7)+(((IF($A$8=Nutrients!$B$79,Nutrients!$EM$79,(IF($A$8=Nutrients!$B$77,Nutrients!$EM$77,Nutrients!$EM$78)))))*T$8))/2000*1000000","v":16.534499999999998},{"$f":"(SUMPRODUCT(U$9:U$229,Nutrients!$EM$8:$EM$228)+(IF($A$7=Nutrients!$B$8,Nutrients!$EM$8,Nutrients!$EM$9)*U$7)+(((IF($A$8=Nutrients!$B$79,Nutrients!$EM$79,(IF($A$8=Nutrients!$B$77,Nutrients!$EM$77,Nutrients!$EM$78)))))*U$8))/2000*1000000","v":16.534499999999998},null,{"$f":"(SUMPRODUCT(W$9:W$229,Nutrients!$EM$8:$EM$228)+(IF($A$7=Nutrients!$B$8,Nutrients!$EM$8,Nutrients!$EM$9)*W$7)+(((IF($A$8=Nutrients!$B$79,Nutrients!$EM$79,(IF($A$8=Nutrients!$B$77,Nutrients!$EM$77,Nutrients!$EM$78)))))*W$8))/2000*1000000","v":33.068999999999996},{"$f":"(SUMPRODUCT(X$9:X$229,Nutrients!$EM$8:$EM$228)+(IF($A$7=Nutrients!$B$8,Nutrients!$EM$8,Nutrients!$EM$9)*X$7)+(((IF($A$8=Nutrients!$B$79,Nutrients!$EM$79,(IF($A$8=Nutrients!$B$77,Nutrients!$EM$77,Nutrients!$EM$78)))))*X$8))/2000*1000000","v":33.068999999999996},{"$f":"(SUMPRODUCT(Y$9:Y$229,Nutrients!$EM$8:$EM$228)+(IF($A$7=Nutrients!$B$8,Nutrients!$EM$8,Nutrients!$EM$9)*Y$7)+(((IF($A$8=Nutrients!$B$79,Nutrients!$EM$79,(IF($A$8=Nutrients!$B$77,Nutrients!$EM$77,Nutrients!$EM$78)))))*Y$8))/2000*1000000","v":27.557499999999997},{"$f":"(SUMPRODUCT(Z$9:Z$229,Nutrients!$EM$8:$EM$228)+(IF($A$7=Nutrients!$B$8,Nutrients!$EM$8,Nutrients!$EM$9)*Z$7)+(((IF($A$8=Nutrients!$B$79,Nutrients!$EM$79,(IF($A$8=Nutrients!$B$77,Nutrients!$EM$77,Nutrients!$EM$78)))))*Z$8))/2000*1000000","v":22.045999999999999},{"$f":"(SUMPRODUCT(AA$9:AA$229,Nutrients!$EM$8:$EM$228)+(IF($A$7=Nutrients!$B$8,Nutrients!$EM$8,Nutrients!$EM$9)*AA$7)+(((IF($A$8=Nutrients!$B$79,Nutrients!$EM$79,(IF($A$8=Nutrients!$B$77,Nutrients!$EM$77,Nutrients!$EM$78)))))*AA$8))/2000*1000000","v":16.534499999999998},{"$f":"(SUMPRODUCT(AB$9:AB$229,Nutrients!$EM$8:$EM$228)+(IF($A$7=Nutrients!$B$8,Nutrients!$EM$8,Nutrients!$EM$9)*AB$7)+(((IF($A$8=Nutrients!$B$79,Nutrients!$EM$79,(IF($A$8=Nutrients!$B$77,Nutrients!$EM$77,Nutrients!$EM$78)))))*AB$8))/2000*1000000","v":16.534499999999998},null,{"$f":"(SUMPRODUCT(AD$9:AD$229,Nutrients!$EM$8:$EM$228)+(IF($A$7=Nutrients!$B$8,Nutrients!$EM$8,Nutrients!$EM$9)*AD$7)+(((IF($A$8=Nutrients!$B$79,Nutrients!$EM$79,(IF($A$8=Nutrients!$B$77,Nutrients!$EM$77,Nutrients!$EM$78)))))*AD$8))/2000*1000000","v":33.068999999999996},{"$f":"(SUMPRODUCT(AE$9:AE$229,Nutrients!$EM$8:$EM$228)+(IF($A$7=Nutrients!$B$8,Nutrients!$EM$8,Nutrients!$EM$9)*AE$7)+(((IF($A$8=Nutrients!$B$79,Nutrients!$EM$79,(IF($A$8=Nutrients!$B$77,Nutrients!$EM$77,Nutrients!$EM$78)))))*AE$8))/2000*1000000","v":33.068999999999996},{"$f":"(SUMPRODUCT(AF$9:AF$229,Nutrients!$EM$8:$EM$228)+(IF($A$7=Nutrients!$B$8,Nutrients!$EM$8,Nutrients!$EM$9)*AF$7)+(((IF($A$8=Nutrients!$B$79,Nutrients!$EM$79,(IF($A$8=Nutrients!$B$77,Nutrients!$EM$77,Nutrients!$EM$78)))))*AF$8))/2000*1000000","v":27.557499999999997},{"$f":"(SUMPRODUCT(AG$9:AG$229,Nutrients!$EM$8:$EM$228)+(IF($A$7=Nutrients!$B$8,Nutrients!$EM$8,Nutrients!$EM$9)*AG$7)+(((IF($A$8=Nutrients!$B$79,Nutrients!$EM$79,(IF($A$8=Nutrients!$B$77,Nutrients!$EM$77,Nutrients!$EM$78)))))*AG$8))/2000*1000000","v":22.045999999999999},{"$f":"(SUMPRODUCT(AH$9:AH$229,Nutrients!$EM$8:$EM$228)+(IF($A$7=Nutrients!$B$8,Nutrients!$EM$8,Nutrients!$EM$9)*AH$7)+(((IF($A$8=Nutrients!$B$79,Nutrients!$EM$79,(IF($A$8=Nutrients!$B$77,Nutrients!$EM$77,Nutrients!$EM$78)))))*AH$8))/2000*1000000","v":16.534499999999998},{"$f":"(SUMPRODUCT(AI$9:AI$229,Nutrients!$EM$8:$EM$228)+(IF($A$7=Nutrients!$B$8,Nutrients!$EM$8,Nutrients!$EM$9)*AI$7)+(((IF($A$8=Nutrients!$B$79,Nutrients!$EM$79,(IF($A$8=Nutrients!$B$77,Nutrients!$EM$77,Nutrients!$EM$78)))))*AI$8))/2000*1000000","v":16.534499999999998},null,{"$f":"(SUMPRODUCT(AK$9:AK$229,Nutrients!$EM$8:$EM$228)+(IF($A$7=Nutrients!$B$8,Nutrients!$EM$8,Nutrients!$EM$9)*AK$7)+(((IF($A$8=Nutrients!$B$79,Nutrients!$EM$79,(IF($A$8=Nutrients!$B$77,Nutrients!$EM$77,Nutrients!$EM$78)))))*AK$8))/2000*1000000","v":33.068999999999996},{"$f":"(SUMPRODUCT(AL$9:AL$229,Nutrients!$EM$8:$EM$228)+(IF($A$7=Nutrients!$B$8,Nutrients!$EM$8,Nutrients!$EM$9)*AL$7)+(((IF($A$8=Nutrients!$B$79,Nutrients!$EM$79,(IF($A$8=Nutrients!$B$77,Nutrients!$EM$77,Nutrients!$EM$78)))))*AL$8))/2000*1000000","v":33.068999999999996},{"$f":"(SUMPRODUCT(AM$9:AM$229,Nutrients!$EM$8:$EM$228)+(IF($A$7=Nutrients!$B$8,Nutrients!$EM$8,Nutrients!$EM$9)*AM$7)+(((IF($A$8=Nutrients!$B$79,Nutrients!$EM$79,(IF($A$8=Nutrients!$B$77,Nutrients!$EM$77,Nutrients!$EM$78)))))*AM$8))/2000*1000000","v":27.557499999999997},{"$f":"(SUMPRODUCT(AN$9:AN$229,Nutrients!$EM$8:$EM$228)+(IF($A$7=Nutrients!$B$8,Nutrients!$EM$8,Nutrients!$EM$9)*AN$7)+(((IF($A$8=Nutrients!$B$79,Nutrients!$EM$79,(IF($A$8=Nutrients!$B$77,Nutrients!$EM$77,Nutrients!$EM$78)))))*AN$8))/2000*1000000","v":22.045999999999999},{"$f":"(SUMPRODUCT(AO$9:AO$229,Nutrients!$EM$8:$EM$228)+(IF($A$7=Nutrients!$B$8,Nutrients!$EM$8,Nutrients!$EM$9)*AO$7)+(((IF($A$8=Nutrients!$B$79,Nutrients!$EM$79,(IF($A$8=Nutrients!$B$77,Nutrients!$EM$77,Nutrients!$EM$78)))))*AO$8))/2000*1000000","v":16.534499999999998},{"$f":"(SUMPRODUCT(AP$9:AP$229,Nutrients!$EM$8:$EM$228)+(IF($A$7=Nutrients!$B$8,Nutrients!$EM$8,Nutrients!$EM$9)*AP$7)+(((IF($A$8=Nutrients!$B$79,Nutrients!$EM$79,(IF($A$8=Nutrients!$B$77,Nutrients!$EM$77,Nutrients!$EM$78)))))*AP$8))/2000*1000000","v":16.534499999999998},null,{"$f":"(SUMPRODUCT(AR$9:AR$229,Nutrients!$EM$8:$EM$228)+(IF($A$7=Nutrients!$B$8,Nutrients!$EM$8,Nutrients!$EM$9)*AR$7)+(((IF($A$8=Nutrients!$B$79,Nutrients!$EM$79,(IF($A$8=Nutrients!$B$77,Nutrients!$EM$77,Nutrients!$EM$78)))))*AR$8))/2000*1000000","v":33.068999999999996},{"$f":"(SUMPRODUCT(AS$9:AS$229,Nutrients!$EM$8:$EM$228)+(IF($A$7=Nutrients!$B$8,Nutrients!$EM$8,Nutrients!$EM$9)*AS$7)+(((IF($A$8=Nutrients!$B$79,Nutrients!$EM$79,(IF($A$8=Nutrients!$B$77,Nutrients!$EM$77,Nutrients!$EM$78)))))*AS$8))/2000*1000000","v":33.068999999999996},{"$f":"(SUMPRODUCT(AT$9:AT$229,Nutrients!$EM$8:$EM$228)+(IF($A$7=Nutrients!$B$8,Nutrients!$EM$8,Nutrients!$EM$9)*AT$7)+(((IF($A$8=Nutrients!$B$79,Nutrients!$EM$79,(IF($A$8=Nutrients!$B$77,Nutrients!$EM$77,Nutrients!$EM$78)))))*AT$8))/2000*1000000","v":27.557499999999997},{"$f":"(SUMPRODUCT(AU$9:AU$229,Nutrients!$EM$8:$EM$228)+(IF($A$7=Nutrients!$B$8,Nutrients!$EM$8,Nutrients!$EM$9)*AU$7)+(((IF($A$8=Nutrients!$B$79,Nutrients!$EM$79,(IF($A$8=Nutrients!$B$77,Nutrients!$EM$77,Nutrients!$EM$78)))))*AU$8))/2000*1000000","v":22.045999999999999},{"$f":"(SUMPRODUCT(AV$9:AV$229,Nutrients!$EM$8:$EM$228)+(IF($A$7=Nutrients!$B$8,Nutrients!$EM$8,Nutrients!$EM$9)*AV$7)+(((IF($A$8=Nutrients!$B$79,Nutrients!$EM$79,(IF($A$8=Nutrients!$B$77,Nutrients!$EM$77,Nutrients!$EM$78)))))*AV$8))/2000*1000000","v":16.534499999999998},{"$f":"(SUMPRODUCT(AW$9:AW$229,Nutrients!$EM$8:$EM$228)+(IF($A$7=Nutrients!$B$8,Nutrients!$EM$8,Nutrients!$EM$9)*AW$7)+(((IF($A$8=Nutrients!$B$79,Nutrients!$EM$79,(IF($A$8=Nutrients!$B$77,Nutrients!$EM$77,Nutrients!$EM$78)))))*AW$8))/2000*1000000","v":16.534499999999998}]
["  Copper added, ppm",{"$f":"(SUMPRODUCT(B$9:B$229,Nutrients!$EN$8:$EN$228)+(IF($A$7=Nutrients!$B$8,Nutrients!$EN$8,Nutrients!$EN$9)*B$7)+(((IF($A$8=Nutrients!$B$79,Nutrients!$EN$79,(IF($A$8=Nutrients!$B$77,Nutrients!$EN$77,Nutrients!$EN$78)))))*B$8))/2000*1000000","v":16.5},{"$f":"(SUMPRODUCT(C$9:C$229,Nutrients!$EN$8:$EN$228)+(IF($A$7=Nutrients!$B$8,Nutrients!$EN$8,Nutrients!$EN$9)*C$7)+(((IF($A$8=Nutrients!$B$79,Nutrients!$EN$79,(IF($A$8=Nutrients!$B$77,Nutrients!$EN$77,Nutrients!$EN$78)))))*C$8))/2000*1000000","v":16.5},{"$f":"(SUMPRODUCT(D$9:D$229,Nutrients!$EN$8:$EN$228)+(IF($A$7=Nutrients!$B$8,Nutrients!$EN$8,Nutrients!$EN$9)*D$7)+(((IF($A$8=Nutrients!$B$79,Nutrients!$EN$79,(IF($A$8=Nutrients!$B$77,Nutrients!$EN$77,Nutrients!$EN$78)))))*D$8))/2000*1000000","v":13.749999999999998},{"$f":"(SUMPRODUCT(E$9:E$229,Nutrients!$EN$8:$EN$228)+(IF($A$7=Nutrients!$B$8,Nutrients!$EN$8,Nutrients!$EN$9)*E$7)+(((IF($A$8=Nutrients!$B$79,Nutrients!$EN$79,(IF($A$8=Nutrients!$B$77,Nutrients!$EN$77,Nutrients!$EN$78)))))*E$8))/2000*1000000","v":11},{"$f":"(SUMPRODUCT(F$9:F$229,Nutrients!$EN$8:$EN$228)+(IF($A$7=Nutrients!$B$8,Nutrients!$EN$8,Nutrients!$EN$9)*F$7)+(((IF($A$8=Nutrients!$B$79,Nutrients!$EN$79,(IF($A$8=Nutrients!$B$77,Nutrients!$EN$77,Nutrients!$EN$78)))))*F$8))/2000*1000000","v":8.25},{"$f":"(SUMPRODUCT(G$9:G$229,Nutrients!$EN$8:$EN$228)+(IF($A$7=Nutrients!$B$8,Nutrients!$EN$8,Nutrients!$EN$9)*G$7)+(((IF($A$8=Nutrients!$B$79,Nutrients!$EN$79,(IF($A$8=Nutrients!$B$77,Nutrients!$EN$77,Nutrients!$EN$78)))))*G$8))/2000*1000000","v":8.25},null,{"$f":"(SUMPRODUCT(I$9:I$229,Nutrients!$EN$8:$EN$228)+(IF($A$7=Nutrients!$B$8,Nutrients!$EN$8,Nutrients!$EN$9)*I$7)+(((IF($A$8=Nutrients!$B$79,Nutrients!$EN$79,(IF($A$8=Nutrients!$B$77,Nutrients!$EN$77,Nutrients!$EN$78)))))*I$8))/2000*1000000","v":16.5},{"$f":"(SUMPRODUCT(J$9:J$229,Nutrients!$EN$8:$EN$228)+(IF($A$7=Nutrients!$B$8,Nutrients!$EN$8,Nutrients!$EN$9)*J$7)+(((IF($A$8=Nutrients!$B$79,Nutrients!$EN$79,(IF($A$8=Nutrients!$B$77,Nutrients!$EN$77,Nutrients!$EN$78)))))*J$8))/2000*1000000","v":16.5},{"$f":"(SUMPRODUCT(K$9:K$229,Nutrients!$EN$8:$EN$228)+(IF($A$7=Nutrients!$B$8,Nutrients!$EN$8,Nutrients!$EN$9)*K$7)+(((IF($A$8=Nutrients!$B$79,Nutrients!$EN$79,(IF($A$8=Nutrients!$B$77,Nutrients!$EN$77,Nutrients!$EN$78)))))*K$8))/2000*1000000","v":13.749999999999998},{"$f":"(SUMPRODUCT(L$9:L$229,Nutrients!$EN$8:$EN$228)+(IF($A$7=Nutrients!$B$8,Nutrients!$EN$8,Nutrients!$EN$9)*L$7)+(((IF($A$8=Nutrients!$B$79,Nutrients!$EN$79,(IF($A$8=Nutrients!$B$77,Nutrients!$EN$77,Nutrients!$EN$78)))))*L$8))/2000*1000000","v":11},{"$f":"(SUMPRODUCT(M$9:M$229,Nutrients!$EN$8:$EN$228)+(IF($A$7=Nutrients!$B$8,Nutrients!$EN$8,Nutrients!$EN$9)*M$7)+(((IF($A$8=Nutrients!$B$79,Nutrients!$EN$79,(IF($A$8=Nutrients!$B$77,Nutrients!$EN$77,Nutrients!$EN$78)))))*M$8))/2000*1000000","v":8.25},{"$f":"(SUMPRODUCT(N$9:N$229,Nutrients!$EN$8:$EN$228)+(IF($A$7=Nutrients!$B$8,Nutrients!$EN$8,Nutrients!$EN$9)*N$7)+(((IF($A$8=Nutrients!$B$79,Nutrients!$EN$79,(IF($A$8=Nutrients!$B$77,Nutrients!$EN$77,Nutrients!$EN$78)))))*N$8))/2000*1000000","v":8.25},null,{"$f":"(SUMPRODUCT(P$9:P$229,Nutrients!$EN$8:$EN$228)+(IF($A$7=Nutrients!$B$8,Nutrients!$EN$8,Nutrients!$EN$9)*P$7)+(((IF($A$8=Nutrients!$B$79,Nutrients!$EN$79,(IF($A$8=Nutrients!$B$77,Nutrients!$EN$77,Nutrients!$EN$78)))))*P$8))/2000*1000000","v":16.5},{"$f":"(SUMPRODUCT(Q$9:Q$229,Nutrients!$EN$8:$EN$228)+(IF($A$7=Nutrients!$B$8,Nutrients!$EN$8,Nutrients!$EN$9)*Q$7)+(((IF($A$8=Nutrients!$B$79,Nutrients!$EN$79,(IF($A$8=Nutrients!$B$77,Nutrients!$EN$77,Nutrients!$EN$78)))))*Q$8))/2000*1000000","v":16.5},{"$f":"(SUMPRODUCT(R$9:R$229,Nutrients!$EN$8:$EN$228)+(IF($A$7=Nutrients!$B$8,Nutrients!$EN$8,Nutrients!$EN$9)*R$7)+(((IF($A$8=Nutrients!$B$79,Nutrients!$EN$79,(IF($A$8=Nutrients!$B$77,Nutrients!$EN$77,Nutrients!$EN$78)))))*R$8))/2000*1000000","v":13.749999999999998},{"$f":"(SUMPRODUCT(S$9:S$229,Nutrients!$EN$8:$EN$228)+(IF($A$7=Nutrients!$B$8,Nutrients!$EN$8,Nutrients!$EN$9)*S$7)+(((IF($A$8=Nutrients!$B$79,Nutrients!$EN$79,(IF($A$8=Nutrients!$B$77,Nutrients!$EN$77,Nutrients!$EN$78)))))*S$8))/2000*1000000","v":11},{"$f":"(SUMPRODUCT(T$9:T$229,Nutrients!$EN$8:$EN$228)+(IF($A$7=Nutrients!$B$8,Nutrients!$EN$8,Nutrients!$EN$9)*T$7)+(((IF($A$8=Nutrients!$B$79,Nutrients!$EN$79,(IF($A$8=Nutrients!$B$77,Nutrients!$EN$77,Nutrients!$EN$78)))))*T$8))/2000*1000000","v":8.25},{"$f":"(SUMPRODUCT(U$9:U$229,Nutrients!$EN$8:$EN$228)+(IF($A$7=Nutrients!$B$8,Nutrients!$EN$8,Nutrients!$EN$9)*U$7)+(((IF($A$8=Nutrients!$B$79,Nutrients!$EN$79,(IF($A$8=Nutrients!$B$77,Nutrients!$EN$77,Nutrients!$EN$78)))))*U$8))/2000*1000000","v":8.25},null,{"$f":"(SUMPRODUCT(W$9:W$229,Nutrients!$EN$8:$EN$228)+(IF($A$7=Nutrients!$B$8,Nutrients!$EN$8,Nutrients!$EN$9)*W$7)+(((IF($A$8=Nutrients!$B$79,Nutrients!$EN$79,(IF($A$8=Nutrients!$B$77,Nutrients!$EN$77,Nutrients!$EN$78)))))*W$8))/2000*1000000","v":16.5},{"$f":"(SUMPRODUCT(X$9:X$229,Nutrients!$EN$8:$EN$228)+(IF($A$7=Nutrients!$B$8,Nutrients!$EN$8,Nutrients!$EN$9)*X$7)+(((IF($A$8=Nutrients!$B$79,Nutrients!$EN$79,(IF($A$8=Nutrients!$B$77,Nutrients!$EN$77,Nutrients!$EN$78)))))*X$8))/2000*1000000","v":16.5},{"$f":"(SUMPRODUCT(Y$9:Y$229,Nutrients!$EN$8:$EN$228)+(IF($A$7=Nutrients!$B$8,Nutrients!$EN$8,Nutrients!$EN$9)*Y$7)+(((IF($A$8=Nutrients!$B$79,Nutrients!$EN$79,(IF($A$8=Nutrients!$B$77,Nutrients!$EN$77,Nutrients!$EN$78)))))*Y$8))/2000*1000000","v":13.749999999999998},{"$f":"(SUMPRODUCT(Z$9:Z$229,Nutrients!$EN$8:$EN$228)+(IF($A$7=Nutrients!$B$8,Nutrients!$EN$8,Nutrients!$EN$9)*Z$7)+(((IF($A$8=Nutrients!$B$79,Nutrients!$EN$79,(IF($A$8=Nutrients!$B$77,Nutrients!$EN$77,Nutrients!$EN$78)))))*Z$8))/2000*1000000","v":11},{"$f":"(SUMPRODUCT(AA$9:AA$229,Nutrients!$EN$8:$EN$228)+(IF($A$7=Nutrients!$B$8,Nutrients!$EN$8,Nutrients!$EN$9)*AA$7)+(((IF($A$8=Nutrients!$B$79,Nutrients!$EN$79,(IF($A$8=Nutrients!$B$77,Nutrients!$EN$77,Nutrients!$EN$78)))))*AA$8))/2000*1000000","v":8.25},{"$f":"(SUMPRODUCT(AB$9:AB$229,Nutrients!$EN$8:$EN$228)+(IF($A$7=Nutrients!$B$8,Nutrients!$EN$8,Nutrients!$EN$9)*AB$7)+(((IF($A$8=Nutrients!$B$79,Nutrients!$EN$79,(IF($A$8=Nutrients!$B$77,Nutrients!$EN$77,Nutrients!$EN$78)))))*AB$8))/2000*1000000","v":8.25},null,{"$f":"(SUMPRODUCT(AD$9:AD$229,Nutrients!$EN$8:$EN$228)+(IF($A$7=Nutrients!$B$8,Nutrients!$EN$8,Nutrients!$EN$9)*AD$7)+(((IF($A$8=Nutrients!$B$79,Nutrients!$EN$79,(IF($A$8=Nutrients!$B$77,Nutrients!$EN$77,Nutrients!$EN$78)))))*AD$8))/2000*1000000","v":16.5},{"$f":"(SUMPRODUCT(AE$9:AE$229,Nutrients!$EN$8:$EN$228)+(IF($A$7=Nutrients!$B$8,Nutrients!$EN$8,Nutrients!$EN$9)*AE$7)+(((IF($A$8=Nutrients!$B$79,Nutrients!$EN$79,(IF($A$8=Nutrients!$B$77,Nutrients!$EN$77,Nutrients!$EN$78)))))*AE$8))/2000*1000000","v":16.5},{"$f":"(SUMPRODUCT(AF$9:AF$229,Nutrients!$EN$8:$EN$228)+(IF($A$7=Nutrients!$B$8,Nutrients!$EN$8,Nutrients!$EN$9)*AF$7)+(((IF($A$8=Nutrients!$B$79,Nutrients!$EN$79,(IF($A$8=Nutrients!$B$77,Nutrients!$EN$77,Nutrients!$EN$78)))))*AF$8))/2000*1000000","v":13.749999999999998},{"$f":"(SUMPRODUCT(AG$9:AG$229,Nutrients!$EN$8:$EN$228)+(IF($A$7=Nutrients!$B$8,Nutrients!$EN$8,Nutrients!$EN$9)*AG$7)+(((IF($A$8=Nutrients!$B$79,Nutrients!$EN$79,(IF($A$8=Nutrients!$B$77,Nutrients!$EN$77,Nutrients!$EN$78)))))*AG$8))/2000*1000000","v":11},{"$f":"(SUMPRODUCT(AH$9:AH$229,Nutrients!$EN$8:$EN$228)+(IF($A$7=Nutrients!$B$8,Nutrients!$EN$8,Nutrients!$EN$9)*AH$7)+(((IF($A$8=Nutrients!$B$79,Nutrients!$EN$79,(IF($A$8=Nutrients!$B$77,Nutrients!$EN$77,Nutrients!$EN$78)))))*AH$8))/2000*1000000","v":8.25},{"$f":"(SUMPRODUCT(AI$9:AI$229,Nutrients!$EN$8:$EN$228)+(IF($A$7=Nutrients!$B$8,Nutrients!$EN$8,Nutrients!$EN$9)*AI$7)+(((IF($A$8=Nutrients!$B$79,Nutrients!$EN$79,(IF($A$8=Nutrients!$B$77,Nutrients!$EN$77,Nutrients!$EN$78)))))*AI$8))/2000*1000000","v":8.25},null,{"$f":"(SUMPRODUCT(AK$9:AK$229,Nutrients!$EN$8:$EN$228)+(IF($A$7=Nutrients!$B$8,Nutrients!$EN$8,Nutrients!$EN$9)*AK$7)+(((IF($A$8=Nutrients!$B$79,Nutrients!$EN$79,(IF($A$8=Nutrients!$B$77,Nutrients!$EN$77,Nutrients!$EN$78)))))*AK$8))/2000*1000000","v":16.5},{"$f":"(SUMPRODUCT(AL$9:AL$229,Nutrients!$EN$8:$EN$228)+(IF($A$7=Nutrients!$B$8,Nutrients!$EN$8,Nutrients!$EN$9)*AL$7)+(((IF($A$8=Nutrients!$B$79,Nutrients!$EN$79,(IF($A$8=Nutrients!$B$77,Nutrients!$EN$77,Nutrients!$EN$78)))))*AL$8))/2000*1000000","v":16.5},{"$f":"(SUMPRODUCT(AM$9:AM$229,Nutrients!$EN$8:$EN$228)+(IF($A$7=Nutrients!$B$8,Nutrients!$EN$8,Nutrients!$EN$9)*AM$7)+(((IF($A$8=Nutrients!$B$79,Nutrients!$EN$79,(IF($A$8=Nutrients!$B$77,Nutrients!$EN$77,Nutrients!$EN$78)))))*AM$8))/2000*1000000","v":13.749999999999998},{"$f":"(SUMPRODUCT(AN$9:AN$229,Nutrients!$EN$8:$EN$228)+(IF($A$7=Nutrients!$B$8,Nutrients!$EN$8,Nutrients!$EN$9)*AN$7)+(((IF($A$8=Nutrients!$B$79,Nutrients!$EN$79,(IF($A$8=Nutrients!$B$77,Nutrients!$EN$77,Nutrients!$EN$78)))))*AN$8))/2000*1000000","v":11},{"$f":"(SUMPRODUCT(AO$9:AO$229,Nutrients!$EN$8:$EN$228)+(IF($A$7=Nutrients!$B$8,Nutrients!$EN$8,Nutrients!$EN$9)*AO$7)+(((IF($A$8=Nutrients!$B$79,Nutrients!$EN$79,(IF($A$8=Nutrients!$B$77,Nutrients!$EN$77,Nutrients!$EN$78)))))*AO$8))/2000*1000000","v":8.25},{"$f":"(SUMPRODUCT(AP$9:AP$229,Nutrients!$EN$8:$EN$228)+(IF($A$7=Nutrients!$B$8,Nutrients!$EN$8,Nutrients!$EN$9)*AP$7)+(((IF($A$8=Nutrients!$B$79,Nutrients!$EN$79,(IF($A$8=Nutrients!$B$77,Nutrients!$EN$77,Nutrients!$EN$78)))))*AP$8))/2000*1000000","v":8.25},null,{"$f":"(SUMPRODUCT(AR$9:AR$229,Nutrients!$EN$8:$EN$228)+(IF($A$7=Nutrients!$B$8,Nutrients!$EN$8,Nutrients!$EN$9)*AR$7)+(((IF($A$8=Nutrients!$B$79,Nutrients!$EN$79,(IF($A$8=Nutrients!$B$77,Nutrients!$EN$77,Nutrients!$EN$78)))))*AR$8))/2000*1000000","v":16.5},{"$f":"(SUMPRODUCT(AS$9:AS$229,Nutrients!$EN$8:$EN$228)+(IF($A$7=Nutrients!$B$8,Nutrients!$EN$8,Nutrients!$EN$9)*AS$7)+(((IF($A$8=Nutrients!$B$79,Nutrients!$EN$79,(IF($A$8=Nutrients!$B$77,Nutrients!$EN$77,Nutrients!$EN$78)))))*AS$8))/2000*1000000","v":16.5},{"$f":"(SUMPRODUCT(AT$9:AT$229,Nutrients!$EN$8:$EN$228)+(IF($A$7=Nutrients!$B$8,Nutrients!$EN$8,Nutrients!$EN$9)*AT$7)+(((IF($A$8=Nutrients!$B$79,Nutrients!$EN$79,(IF($A$8=Nutrients!$B$77,Nutrients!$EN$77,Nutrients!$EN$78)))))*AT$8))/2000*1000000","v":13.749999999999998},{"$f":"(SUMPRODUCT(AU$9:AU$229,Nutrients!$EN$8:$EN$228)+(IF($A$7=Nutrients!$B$8,Nutrients!$EN$8,Nutrients!$EN$9)*AU$7)+(((IF($A$8=Nutrients!$B$79,Nutrients!$EN$79,(IF($A$8=Nutrients!$B$77,Nutrients!$EN$77,Nutrients!$EN$78)))))*AU$8))/2000*1000000","v":11},{"$f":"(SUMPRODUCT(AV$9:AV$229,Nutrients!$EN$8:$EN$228)+(IF($A$7=Nutrients!$B$8,Nutrients!$EN$8,Nutrients!$EN$9)*AV$7)+(((IF($A$8=Nutrients!$B$79,Nutrients!$EN$79,(IF($A$8=Nutrients!$B$77,Nutrients!$EN$77,Nutrients!$EN$78)))))*AV$8))/2000*1000000","v":8.25},{"$f":"(SUMPRODUCT(AW$9:AW$229,Nutrients!$EN$8:$EN$228)+(IF($A$7=Nutrients!$B$8,Nutrients!$EN$8,Nutrients!$EN$9)*AW$7)+(((IF($A$8=Nutrients!$B$79,Nutrients!$EN$79,(IF($A$8=Nutrients!$B$77,Nutrients!$EN$77,Nutrients!$EN$78)))))*AW$8))/2000*1000000","v":8.25}]
["  Iodine added, ppm",{"$f":"(SUMPRODUCT(B$9:B$229,Nutrients!$EO$8:$EO$228)+(IF($A$7=Nutrients!$B$8,Nutrients!$EO$8,Nutrients!$EO$9)*B$7)+(((IF($A$8=Nutrients!$B$79,Nutrients!$EO$79,(IF($A$8=Nutrients!$B$77,Nutrients!$EO$77,Nutrients!$EO$78)))))*B$8))/2000*1000000","v":0.29699999999999999},{"$f":"(SUMPRODUCT(C$9:C$229,Nutrients!$EO$8:$EO$228)+(IF($A$7=Nutrients!$B$8,Nutrients!$EO$8,Nutrients!$EO$9)*C$7)+(((IF($A$8=Nutrients!$B$79,Nutrients!$EO$79,(IF($A$8=Nutrients!$B$77,Nutrients!$EO$77,Nutrients!$EO$78)))))*C$8))/2000*1000000","v":0.29699999999999999},{"$f":"(SUMPRODUCT(D$9:D$229,Nutrients!$EO$8:$EO$228)+(IF($A$7=Nutrients!$B$8,Nutrients!$EO$8,Nutrients!$EO$9)*D$7)+(((IF($A$8=Nutrients!$B$79,Nutrients!$EO$79,(IF($A$8=Nutrients!$B$77,Nutrients!$EO$77,Nutrients!$EO$78)))))*D$8))/2000*1000000","v":0.24750000000000003},{"$f":"(SUMPRODUCT(E$9:E$229,Nutrients!$EO$8:$EO$228)+(IF($A$7=Nutrients!$B$8,Nutrients!$EO$8,Nutrients!$EO$9)*E$7)+(((IF($A$8=Nutrients!$B$79,Nutrients!$EO$79,(IF($A$8=Nutrients!$B$77,Nutrients!$EO$77,Nutrients!$EO$78)))))*E$8))/2000*1000000","v":0.19800000000000001},{"$f":"(SUMPRODUCT(F$9:F$229,Nutrients!$EO$8:$EO$228)+(IF($A$7=Nutrients!$B$8,Nutrients!$EO$8,Nutrients!$EO$9)*F$7)+(((IF($A$8=Nutrients!$B$79,Nutrients!$EO$79,(IF($A$8=Nutrients!$B$77,Nutrients!$EO$77,Nutrients!$EO$78)))))*F$8))/2000*1000000","v":0.14849999999999999},{"$f":"(SUMPRODUCT(G$9:G$229,Nutrients!$EO$8:$EO$228)+(IF($A$7=Nutrients!$B$8,Nutrients!$EO$8,Nutrients!$EO$9)*G$7)+(((IF($A$8=Nutrients!$B$79,Nutrients!$EO$79,(IF($A$8=Nutrients!$B$77,Nutrients!$EO$77,Nutrients!$EO$78)))))*G$8))/2000*1000000","v":0.14849999999999999},null,{"$f":"(SUMPRODUCT(I$9:I$229,Nutrients!$EO$8:$EO$228)+(IF($A$7=Nutrients!$B$8,Nutrients!$EO$8,Nutrients!$EO$9)*I$7)+(((IF($A$8=Nutrients!$B$79,Nutrients!$EO$79,(IF($A$8=Nutrients!$B$77,Nutrients!$EO$77,Nutrients!$EO$78)))))*I$8))/2000*1000000","v":0.29699999999999999},{"$f":"(SUMPRODUCT(J$9:J$229,Nutrients!$EO$8:$EO$228)+(IF($A$7=Nutrients!$B$8,Nutrients!$EO$8,Nutrients!$EO$9)*J$7)+(((IF($A$8=Nutrients!$B$79,Nutrients!$EO$79,(IF($A$8=Nutrients!$B$77,Nutrients!$EO$77,Nutrients!$EO$78)))))*J$8))/2000*1000000","v":0.29699999999999999},{"$f":"(SUMPRODUCT(K$9:K$229,Nutrients!$EO$8:$EO$228)+(IF($A$7=Nutrients!$B$8,Nutrients!$EO$8,Nutrients!$EO$9)*K$7)+(((IF($A$8=Nutrients!$B$79,Nutrients!$EO$79,(IF($A$8=Nutrients!$B$77,Nutrients!$EO$77,Nutrients!$EO$78)))))*K$8))/2000*1000000","v":0.24750000000000003},{"$f":"(SUMPRODUCT(L$9:L$229,Nutrients!$EO$8:$EO$228)+(IF($A$7=Nutrients!$B$8,Nutrients!$EO$8,Nutrients!$EO$9)*L$7)+(((IF($A$8=Nutrients!$B$79,Nutrients!$EO$79,(IF($A$8=Nutrients!$B$77,Nutrients!$EO$77,Nutrients!$EO$78)))))*L$8))/2000*1000000","v":0.19800000000000001},{"$f":"(SUMPRODUCT(M$9:M$229,Nutrients!$EO$8:$EO$228)+(IF($A$7=Nutrients!$B$8,Nutrients!$EO$8,Nutrients!$EO$9)*M$7)+(((IF($A$8=Nutrients!$B$79,Nutrients!$EO$79,(IF($A$8=Nutrients!$B$77,Nutrients!$EO$77,Nutrients!$EO$78)))))*M$8))/2000*1000000","v":0.14849999999999999},{"$f":"(SUMPRODUCT(N$9:N$229,Nutrients!$EO$8:$EO$228)+(IF($A$7=Nutrients!$B$8,Nutrients!$EO$8,Nutrients!$EO$9)*N$7)+(((IF($A$8=Nutrients!$B$79,Nutrients!$EO$79,(IF($A$8=Nutrients!$B$77,Nutrients!$EO$77,Nutrients!$EO$78)))))*N$8))/2000*1000000","v":0.14849999999999999},null,{"$f":"(SUMPRODUCT(P$9:P$229,Nutrients!$EO$8:$EO$228)+(IF($A$7=Nutrients!$B$8,Nutrients!$EO$8,Nutrients!$EO$9)*P$7)+(((IF($A$8=Nutrients!$B$79,Nutrients!$EO$79,(IF($A$8=Nutrients!$B$77,Nutrients!$EO$77,Nutrients!$EO$78)))))*P$8))/2000*1000000","v":0.29699999999999999},{"$f":"(SUMPRODUCT(Q$9:Q$229,Nutrients!$EO$8:$EO$228)+(IF($A$7=Nutrients!$B$8,Nutrients!$EO$8,Nutrients!$EO$9)*Q$7)+(((IF($A$8=Nutrients!$B$79,Nutrients!$EO$79,(IF($A$8=Nutrients!$B$77,Nutrients!$EO$77,Nutrients!$EO$78)))))*Q$8))/2000*1000000","v":0.29699999999999999},{"$f":"(SUMPRODUCT(R$9:R$229,Nutrients!$EO$8:$EO$228)+(IF($A$7=Nutrients!$B$8,Nutrients!$EO$8,Nutrients!$EO$9)*R$7)+(((IF($A$8=Nutrients!$B$79,Nutrients!$EO$79,(IF($A$8=Nutrients!$B$77,Nutrients!$EO$77,Nutrients!$EO$78)))))*R$8))/2000*1000000","v":0.24750000000000003},{"$f":"(SUMPRODUCT(S$9:S$229,Nutrients!$EO$8:$EO$228)+(IF($A$7=Nutrients!$B$8,Nutrients!$EO$8,Nutrients!$EO$9)*S$7)+(((IF($A$8=Nutrients!$B$79,Nutrients!$EO$79,(IF($A$8=Nutrients!$B$77,Nutrients!$EO$77,Nutrients!$EO$78)))))*S$8))/2000*1000000","v":0.19800000000000001},{"$f":"(SUMPRODUCT(T$9:T$229,Nutrients!$EO$8:$EO$228)+(IF($A$7=Nutrients!$B$8,Nutrients!$EO$8,Nutrients!$EO$9)*T$7)+(((IF($A$8=Nutrients!$B$79,Nutrients!$EO$79,(IF($A$8=Nutrients!$B$77,Nutrients!$EO$77,Nutrients!$EO$78)))))*T$8))/2000*1000000","v":0.14849999999999999},{"$f":"(SUMPRODUCT(U$9:U$229,Nutrients!$EO$8:$EO$228)+(IF($A$7=Nutrients!$B$8,Nutrients!$EO$8,Nutrients!$EO$9)*U$7)+(((IF($A$8=Nutrients!$B$79,Nutrients!$EO$79,(IF($A$8=Nutrients!$B$77,Nutrients!$EO$77,Nutrients!$EO$78)))))*U$8))/2000*1000000","v":0.14849999999999999},null,{"$f":"(SUMPRODUCT(W$9:W$229,Nutrients!$EO$8:$EO$228)+(IF($A$7=Nutrients!$B$8,Nutrients!$EO$8,Nutrients!$EO$9)*W$7)+(((IF($A$8=Nutrients!$B$79,Nutrients!$EO$79,(IF($A$8=Nutrients!$B$77,Nutrients!$EO$77,Nutrients!$EO$78)))))*W$8))/2000*1000000","v":0.29699999999999999},{"$f":"(SUMPRODUCT(X$9:X$229,Nutrients!$EO$8:$EO$228)+(IF($A$7=Nutrients!$B$8,Nutrients!$EO$8,Nutrients!$EO$9)*X$7)+(((IF($A$8=Nutrients!$B$79,Nutrients!$EO$79,(IF($A$8=Nutrients!$B$77,Nutrients!$EO$77,Nutrients!$EO$78)))))*X$8))/2000*1000000","v":0.29699999999999999},{"$f":"(SUMPRODUCT(Y$9:Y$229,Nutrients!$EO$8:$EO$228)+(IF($A$7=Nutrients!$B$8,Nutrients!$EO$8,Nutrients!$EO$9)*Y$7)+(((IF($A$8=Nutrients!$B$79,Nutrients!$EO$79,(IF($A$8=Nutrients!$B$77,Nutrients!$EO$77,Nutrients!$EO$78)))))*Y$8))/2000*1000000","v":0.24750000000000003},{"$f":"(SUMPRODUCT(Z$9:Z$229,Nutrients!$EO$8:$EO$228)+(IF($A$7=Nutrients!$B$8,Nutrients!$EO$8,Nutrients!$EO$9)*Z$7)+(((IF($A$8=Nutrients!$B$79,Nutrients!$EO$79,(IF($A$8=Nutrients!$B$77,Nutrients!$EO$77,Nutrients!$EO$78)))))*Z$8))/2000*1000000","v":0.19800000000000001},{"$f":"(SUMPRODUCT(AA$9:AA$229,Nutrients!$EO$8:$EO$228)+(IF($A$7=Nutrients!$B$8,Nutrients!$EO$8,Nutrients!$EO$9)*AA$7)+(((IF($A$8=Nutrients!$B$79,Nutrients!$EO$79,(IF($A$8=Nutrients!$B$77,Nutrients!$EO$77,Nutrients!$EO$78)))))*AA$8))/2000*1000000","v":0.14849999999999999},{"$f":"(SUMPRODUCT(AB$9:AB$229,Nutrients!$EO$8:$EO$228)+(IF($A$7=Nutrients!$B$8,Nutrients!$EO$8,Nutrients!$EO$9)*AB$7)+(((IF($A$8=Nutrients!$B$79,Nutrients!$EO$79,(IF($A$8=Nutrients!$B$77,Nutrients!$EO$77,Nutrients!$EO$78)))))*AB$8))/2000*1000000","v":0.14849999999999999},null,{"$f":"(SUMPRODUCT(AD$9:AD$229,Nutrients!$EO$8:$EO$228)+(IF($A$7=Nutrients!$B$8,Nutrients!$EO$8,Nutrients!$EO$9)*AD$7)+(((IF($A$8=Nutrients!$B$79,Nutrients!$EO$79,(IF($A$8=Nutrients!$B$77,Nutrients!$EO$77,Nutrients!$EO$78)))))*AD$8))/2000*1000000","v":0.29699999999999999},{"$f":"(SUMPRODUCT(AE$9:AE$229,Nutrients!$EO$8:$EO$228)+(IF($A$7=Nutrients!$B$8,Nutrients!$EO$8,Nutrients!$EO$9)*AE$7)+(((IF($A$8=Nutrients!$B$79,Nutrients!$EO$79,(IF($A$8=Nutrients!$B$77,Nutrients!$EO$77,Nutrients!$EO$78)))))*AE$8))/2000*1000000","v":0.29699999999999999},{"$f":"(SUMPRODUCT(AF$9:AF$229,Nutrients!$EO$8:$EO$228)+(IF($A$7=Nutrients!$B$8,Nutrients!$EO$8,Nutrients!$EO$9)*AF$7)+(((IF($A$8=Nutrients!$B$79,Nutrients!$EO$79,(IF($A$8=Nutrients!$B$77,Nutrients!$EO$77,Nutrients!$EO$78)))))*AF$8))/2000*1000000","v":0.24750000000000003},{"$f":"(SUMPRODUCT(AG$9:AG$229,Nutrients!$EO$8:$EO$228)+(IF($A$7=Nutrients!$B$8,Nutrients!$EO$8,Nutrients!$EO$9)*AG$7)+(((IF($A$8=Nutrients!$B$79,Nutrients!$EO$79,(IF($A$8=Nutrients!$B$77,Nutrients!$EO$77,Nutrients!$EO$78)))))*AG$8))/2000*1000000","v":0.19800000000000001},{"$f":"(SUMPRODUCT(AH$9:AH$229,Nutrients!$EO$8:$EO$228)+(IF($A$7=Nutrients!$B$8,Nutrients!$EO$8,Nutrients!$EO$9)*AH$7)+(((IF($A$8=Nutrients!$B$79,Nutrients!$EO$79,(IF($A$8=Nutrients!$B$77,Nutrients!$EO$77,Nutrients!$EO$78)))))*AH$8))/2000*1000000","v":0.14849999999999999},{"$f":"(SUMPRODUCT(AI$9:AI$229,Nutrients!$EO$8:$EO$228)+(IF($A$7=Nutrients!$B$8,Nutrients!$EO$8,Nutrients!$EO$9)*AI$7)+(((IF($A$8=Nutrients!$B$79,Nutrients!$EO$79,(IF($A$8=Nutrients!$B$77,Nutrients!$EO$77,Nutrients!$EO$78)))))*AI$8))/2000*1000000","v":0.14849999999999999},null,{"$f":"(SUMPRODUCT(AK$9:AK$229,Nutrients!$EO$8:$EO$228)+(IF($A$7=Nutrients!$B$8,Nutrients!$EO$8,Nutrients!$EO$9)*AK$7)+(((IF($A$8=Nutrients!$B$79,Nutrients!$EO$79,(IF($A$8=Nutrients!$B$77,Nutrients!$EO$77,Nutrients!$EO$78)))))*AK$8))/2000*1000000","v":0.29699999999999999},{"$f":"(SUMPRODUCT(AL$9:AL$229,Nutrients!$EO$8:$EO$228)+(IF($A$7=Nutrients!$B$8,Nutrients!$EO$8,Nutrients!$EO$9)*AL$7)+(((IF($A$8=Nutrients!$B$79,Nutrients!$EO$79,(IF($A$8=Nutrients!$B$77,Nutrients!$EO$77,Nutrients!$EO$78)))))*AL$8))/2000*1000000","v":0.29699999999999999},{"$f":"(SUMPRODUCT(AM$9:AM$229,Nutrients!$EO$8:$EO$228)+(IF($A$7=Nutrients!$B$8,Nutrients!$EO$8,Nutrients!$EO$9)*AM$7)+(((IF($A$8=Nutrients!$B$79,Nutrients!$EO$79,(IF($A$8=Nutrients!$B$77,Nutrients!$EO$77,Nutrients!$EO$78)))))*AM$8))/2000*1000000","v":0.24750000000000003},{"$f":"(SUMPRODUCT(AN$9:AN$229,Nutrients!$EO$8:$EO$228)+(IF($A$7=Nutrients!$B$8,Nutrients!$EO$8,Nutrients!$EO$9)*AN$7)+(((IF($A$8=Nutrients!$B$79,Nutrients!$EO$79,(IF($A$8=Nutrients!$B$77,Nutrients!$EO$77,Nutrients!$EO$78)))))*AN$8))/2000*1000000","v":0.19800000000000001},{"$f":"(SUMPRODUCT(AO$9:AO$229,Nutrients!$EO$8:$EO$228)+(IF($A$7=Nutrients!$B$8,Nutrients!$EO$8,Nutrients!$EO$9)*AO$7)+(((IF($A$8=Nutrients!$B$79,Nutrients!$EO$79,(IF($A$8=Nutrients!$B$77,Nutrients!$EO$77,Nutrients!$EO$78)))))*AO$8))/2000*1000000","v":0.14849999999999999},{"$f":"(SUMPRODUCT(AP$9:AP$229,Nutrients!$EO$8:$EO$228)+(IF($A$7=Nutrients!$B$8,Nutrients!$EO$8,Nutrients!$EO$9)*AP$7)+(((IF($A$8=Nutrients!$B$79,Nutrients!$EO$79,(IF($A$8=Nutrients!$B$77,Nutrients!$EO$77,Nutrients!$EO$78)))))*AP$8))/2000*1000000","v":0.14849999999999999},null,{"$f":"(SUMPRODUCT(AR$9:AR$229,Nutrients!$EO$8:$EO$228)+(IF($A$7=Nutrients!$B$8,Nutrients!$EO$8,Nutrients!$EO$9)*AR$7)+(((IF($A$8=Nutrients!$B$79,Nutrients!$EO$79,(IF($A$8=Nutrients!$B$77,Nutrients!$EO$77,Nutrients!$EO$78)))))*AR$8))/2000*1000000","v":0.29699999999999999},{"$f":"(SUMPRODUCT(AS$9:AS$229,Nutrients!$EO$8:$EO$228)+(IF($A$7=Nutrients!$B$8,Nutrients!$EO$8,Nutrients!$EO$9)*AS$7)+(((IF($A$8=Nutrients!$B$79,Nutrients!$EO$79,(IF($A$8=Nutrients!$B$77,Nutrients!$EO$77,Nutrients!$EO$78)))))*AS$8))/2000*1000000","v":0.29699999999999999},{"$f":"(SUMPRODUCT(AT$9:AT$229,Nutrients!$EO$8:$EO$228)+(IF($A$7=Nutrients!$B$8,Nutrients!$EO$8,Nutrients!$EO$9)*AT$7)+(((IF($A$8=Nutrients!$B$79,Nutrients!$EO$79,(IF($A$8=Nutrients!$B$77,Nutrients!$EO$77,Nutrients!$EO$78)))))*AT$8))/2000*1000000","v":0.24750000000000003},{"$f":"(SUMPRODUCT(AU$9:AU$229,Nutrients!$EO$8:$EO$228)+(IF($A$7=Nutrients!$B$8,Nutrients!$EO$8,Nutrients!$EO$9)*AU$7)+(((IF($A$8=Nutrients!$B$79,Nutrients!$EO$79,(IF($A$8=Nutrients!$B$77,Nutrients!$EO$77,Nutrients!$EO$78)))))*AU$8))/2000*1000000","v":0.19800000000000001},{"$f":"(SUMPRODUCT(AV$9:AV$229,Nutrients!$EO$8:$EO$228)+(IF($A$7=Nutrients!$B$8,Nutrients!$EO$8,Nutrients!$EO$9)*AV$7)+(((IF($A$8=Nutrients!$B$79,Nutrients!$EO$79,(IF($A$8=Nutrients!$B$77,Nutrients!$EO$77,Nutrients!$EO$78)))))*AV$8))/2000*1000000","v":0.14849999999999999},{"$f":"(SUMPRODUCT(AW$9:AW$229,Nutrients!$EO$8:$EO$228)+(IF($A$7=Nutrients!$B$8,Nutrients!$EO$8,Nutrients!$EO$9)*AW$7)+(((IF($A$8=Nutrients!$B$79,Nutrients!$EO$79,(IF($A$8=Nutrients!$B$77,Nutrients!$EO$77,Nutrients!$EO$78)))))*AW$8))/2000*1000000","v":0.14849999999999999}]
["  Selenium added, ppm",{"$f":"(SUMPRODUCT(B$9:B$229,Nutrients!$EP$8:$EP$228)+(IF($A$7=Nutrients!$B$8,Nutrients!$EP$8,Nutrients!$EP$9)*B$7)+(((IF($A$8=Nutrients!$B$79,Nutrients!$EP$79,(IF($A$8=Nutrients!$B$77,Nutrients!$EP$77,Nutrients!$EP$78)))))*B$8))/2000*1000000","v":0.29699999999999999},{"$f":"(SUMPRODUCT(C$9:C$229,Nutrients!$EP$8:$EP$228)+(IF($A$7=Nutrients!$B$8,Nutrients!$EP$8,Nutrients!$EP$9)*C$7)+(((IF($A$8=Nutrients!$B$79,Nutrients!$EP$79,(IF($A$8=Nutrients!$B$77,Nutrients!$EP$77,Nutrients!$EP$78)))))*C$8))/2000*1000000","v":0.29699999999999999},{"$f":"(SUMPRODUCT(D$9:D$229,Nutrients!$EP$8:$EP$228)+(IF($A$7=Nutrients!$B$8,Nutrients!$EP$8,Nutrients!$EP$9)*D$7)+(((IF($A$8=Nutrients!$B$79,Nutrients!$EP$79,(IF($A$8=Nutrients!$B$77,Nutrients!$EP$77,Nutrients!$EP$78)))))*D$8))/2000*1000000","v":0.24750000000000003},{"$f":"(SUMPRODUCT(E$9:E$229,Nutrients!$EP$8:$EP$228)+(IF($A$7=Nutrients!$B$8,Nutrients!$EP$8,Nutrients!$EP$9)*E$7)+(((IF($A$8=Nutrients!$B$79,Nutrients!$EP$79,(IF($A$8=Nutrients!$B$77,Nutrients!$EP$77,Nutrients!$EP$78)))))*E$8))/2000*1000000","v":0.19800000000000001},{"$f":"(SUMPRODUCT(F$9:F$229,Nutrients!$EP$8:$EP$228)+(IF($A$7=Nutrients!$B$8,Nutrients!$EP$8,Nutrients!$EP$9)*F$7)+(((IF($A$8=Nutrients!$B$79,Nutrients!$EP$79,(IF($A$8=Nutrients!$B$77,Nutrients!$EP$77,Nutrients!$EP$78)))))*F$8))/2000*1000000","v":0.14849999999999999},{"$f":"(SUMPRODUCT(G$9:G$229,Nutrients!$EP$8:$EP$228)+(IF($A$7=Nutrients!$B$8,Nutrients!$EP$8,Nutrients!$EP$9)*G$7)+(((IF($A$8=Nutrients!$B$79,Nutrients!$EP$79,(IF($A$8=Nutrients!$B$77,Nutrients!$EP$77,Nutrients!$EP$78)))))*G$8))/2000*1000000","v":0.14849999999999999},null,{"$f":"(SUMPRODUCT(I$9:I$229,Nutrients!$EP$8:$EP$228)+(IF($A$7=Nutrients!$B$8,Nutrients!$EP$8,Nutrients!$EP$9)*I$7)+(((IF($A$8=Nutrients!$B$79,Nutrients!$EP$79,(IF($A$8=Nutrients!$B$77,Nutrients!$EP$77,Nutrients!$EP$78)))))*I$8))/2000*1000000","v":0.29699999999999999},{"$f":"(SUMPRODUCT(J$9:J$229,Nutrients!$EP$8:$EP$228)+(IF($A$7=Nutrients!$B$8,Nutrients!$EP$8,Nutrients!$EP$9)*J$7)+(((IF($A$8=Nutrients!$B$79,Nutrients!$EP$79,(IF($A$8=Nutrients!$B$77,Nutrients!$EP$77,Nutrients!$EP$78)))))*J$8))/2000*1000000","v":0.29699999999999999},{"$f":"(SUMPRODUCT(K$9:K$229,Nutrients!$EP$8:$EP$228)+(IF($A$7=Nutrients!$B$8,Nutrients!$EP$8,Nutrients!$EP$9)*K$7)+(((IF($A$8=Nutrients!$B$79,Nutrients!$EP$79,(IF($A$8=Nutrients!$B$77,Nutrients!$EP$77,Nutrients!$EP$78)))))*K$8))/2000*1000000","v":0.24750000000000003},{"$f":"(SUMPRODUCT(L$9:L$229,Nutrients!$EP$8:$EP$228)+(IF($A$7=Nutrients!$B$8,Nutrients!$EP$8,Nutrients!$EP$9)*L$7)+(((IF($A$8=Nutrients!$B$79,Nutrients!$EP$79,(IF($A$8=Nutrients!$B$77,Nutrients!$EP$77,Nutrients!$EP$78)))))*L$8))/2000*1000000","v":0.19800000000000001},{"$f":"(SUMPRODUCT(M$9:M$229,Nutrients!$EP$8:$EP$228)+(IF($A$7=Nutrients!$B$8,Nutrients!$EP$8,Nutrients!$EP$9)*M$7)+(((IF($A$8=Nutrients!$B$79,Nutrients!$EP$79,(IF($A$8=Nutrients!$B$77,Nutrients!$EP$77,Nutrients!$EP$78)))))*M$8))/2000*1000000","v":0.14849999999999999},{"$f":"(SUMPRODUCT(N$9:N$229,Nutrients!$EP$8:$EP$228)+(IF($A$7=Nutrients!$B$8,Nutrients!$EP$8,Nutrients!$EP$9)*N$7)+(((IF($A$8=Nutrients!$B$79,Nutrients!$EP$79,(IF($A$8=Nutrients!$B$77,Nutrients!$EP$77,Nutrients!$EP$78)))))*N$8))/2000*1000000","v":0.14849999999999999},null,{"$f":"(SUMPRODUCT(P$9:P$229,Nutrients!$EP$8:$EP$228)+(IF($A$7=Nutrients!$B$8,Nutrients!$EP$8,Nutrients!$EP$9)*P$7)+(((IF($A$8=Nutrients!$B$79,Nutrients!$EP$79,(IF($A$8=Nutrients!$B$77,Nutrients!$EP$77,Nutrients!$EP$78)))))*P$8))/2000*1000000","v":0.29699999999999999},{"$f":"(SUMPRODUCT(Q$9:Q$229,Nutrients!$EP$8:$EP$228)+(IF($A$7=Nutrients!$B$8,Nutrients!$EP$8,Nutrients!$EP$9)*Q$7)+(((IF($A$8=Nutrients!$B$79,Nutrients!$EP$79,(IF($A$8=Nutrients!$B$77,Nutrients!$EP$77,Nutrients!$EP$78)))))*Q$8))/2000*1000000","v":0.29699999999999999},{"$f":"(SUMPRODUCT(R$9:R$229,Nutrients!$EP$8:$EP$228)+(IF($A$7=Nutrients!$B$8,Nutrients!$EP$8,Nutrients!$EP$9)*R$7)+(((IF($A$8=Nutrients!$B$79,Nutrients!$EP$79,(IF($A$8=Nutrients!$B$77,Nutrients!$EP$77,Nutrients!$EP$78)))))*R$8))/2000*1000000","v":0.24750000000000003},{"$f":"(SUMPRODUCT(S$9:S$229,Nutrients!$EP$8:$EP$228)+(IF($A$7=Nutrients!$B$8,Nutrients!$EP$8,Nutrients!$EP$9)*S$7)+(((IF($A$8=Nutrients!$B$79,Nutrients!$EP$79,(IF($A$8=Nutrients!$B$77,Nutrients!$EP$77,Nutrients!$EP$78)))))*S$8))/2000*1000000","v":0.19800000000000001},{"$f":"(SUMPRODUCT(T$9:T$229,Nutrients!$EP$8:$EP$228)+(IF($A$7=Nutrients!$B$8,Nutrients!$EP$8,Nutrients!$EP$9)*T$7)+(((IF($A$8=Nutrients!$B$79,Nutrients!$EP$79,(IF($A$8=Nutrients!$B$77,Nutrients!$EP$77,Nutrients!$EP$78)))))*T$8))/2000*1000000","v":0.14849999999999999},{"$f":"(SUMPRODUCT(U$9:U$229,Nutrients!$EP$8:$EP$228)+(IF($A$7=Nutrients!$B$8,Nutrients!$EP$8,Nutrients!$EP$9)*U$7)+(((IF($A$8=Nutrients!$B$79,Nutrients!$EP$79,(IF($A$8=Nutrients!$B$77,Nutrients!$EP$77,Nutrients!$EP$78)))))*U$8))/2000*1000000","v":0.14849999999999999},null,{"$f":"(SUMPRODUCT(W$9:W$229,Nutrients!$EP$8:$EP$228)+(IF($A$7=Nutrients!$B$8,Nutrients!$EP$8,Nutrients!$EP$9)*W$7)+(((IF($A$8=Nutrients!$B$79,Nutrients!$EP$79,(IF($A$8=Nutrients!$B$77,Nutrients!$EP$77,Nutrients!$EP$78)))))*W$8))/2000*1000000","v":0.29699999999999999},{"$f":"(SUMPRODUCT(X$9:X$229,Nutrients!$EP$8:$EP$228)+(IF($A$7=Nutrients!$B$8,Nutrients!$EP$8,Nutrients!$EP$9)*X$7)+(((IF($A$8=Nutrients!$B$79,Nutrients!$EP$79,(IF($A$8=Nutrients!$B$77,Nutrients!$EP$77,Nutrients!$EP$78)))))*X$8))/2000*1000000","v":0.29699999999999999},{"$f":"(SUMPRODUCT(Y$9:Y$229,Nutrients!$EP$8:$EP$228)+(IF($A$7=Nutrients!$B$8,Nutrients!$EP$8,Nutrients!$EP$9)*Y$7)+(((IF($A$8=Nutrients!$B$79,Nutrients!$EP$79,(IF($A$8=Nutrients!$B$77,Nutrients!$EP$77,Nutrients!$EP$78)))))*Y$8))/2000*1000000","v":0.24750000000000003},{"$f":"(SUMPRODUCT(Z$9:Z$229,Nutrients!$EP$8:$EP$228)+(IF($A$7=Nutrients!$B$8,Nutrients!$EP$8,Nutrients!$EP$9)*Z$7)+(((IF($A$8=Nutrients!$B$79,Nutrients!$EP$79,(IF($A$8=Nutrients!$B$77,Nutrients!$EP$77,Nutrients!$EP$78)))))*Z$8))/2000*1000000","v":0.19800000000000001},{"$f":"(SUMPRODUCT(AA$9:AA$229,Nutrients!$EP$8:$EP$228)+(IF($A$7=Nutrients!$B$8,Nutrients!$EP$8,Nutrients!$EP$9)*AA$7)+(((IF($A$8=Nutrients!$B$79,Nutrients!$EP$79,(IF($A$8=Nutrients!$B$77,Nutrients!$EP$77,Nutrients!$EP$78)))))*AA$8))/2000*1000000","v":0.14849999999999999},{"$f":"(SUMPRODUCT(AB$9:AB$229,Nutrients!$EP$8:$EP$228)+(IF($A$7=Nutrients!$B$8,Nutrients!$EP$8,Nutrients!$EP$9)*AB$7)+(((IF($A$8=Nutrients!$B$79,Nutrients!$EP$79,(IF($A$8=Nutrients!$B$77,Nutrients!$EP$77,Nutrients!$EP$78)))))*AB$8))/2000*1000000","v":0.14849999999999999},null,{"$f":"(SUMPRODUCT(AD$9:AD$229,Nutrients!$EP$8:$EP$228)+(IF($A$7=Nutrients!$B$8,Nutrients!$EP$8,Nutrients!$EP$9)*AD$7)+(((IF($A$8=Nutrients!$B$79,Nutrients!$EP$79,(IF($A$8=Nutrients!$B$77,Nutrients!$EP$77,Nutrients!$EP$78)))))*AD$8))/2000*1000000","v":0.29699999999999999},{"$f":"(SUMPRODUCT(AE$9:AE$229,Nutrients!$EP$8:$EP$228)+(IF($A$7=Nutrients!$B$8,Nutrients!$EP$8,Nutrients!$EP$9)*AE$7)+(((IF($A$8=Nutrients!$B$79,Nutrients!$EP$79,(IF($A$8=Nutrients!$B$77,Nutrients!$EP$77,Nutrients!$EP$78)))))*AE$8))/2000*1000000","v":0.29699999999999999},{"$f":"(SUMPRODUCT(AF$9:AF$229,Nutrients!$EP$8:$EP$228)+(IF($A$7=Nutrients!$B$8,Nutrients!$EP$8,Nutrients!$EP$9)*AF$7)+(((IF($A$8=Nutrients!$B$79,Nutrients!$EP$79,(IF($A$8=Nutrients!$B$77,Nutrients!$EP$77,Nutrients!$EP$78)))))*AF$8))/2000*1000000","v":0.24750000000000003},{"$f":"(SUMPRODUCT(AG$9:AG$229,Nutrients!$EP$8:$EP$228)+(IF($A$7=Nutrients!$B$8,Nutrients!$EP$8,Nutrients!$EP$9)*AG$7)+(((IF($A$8=Nutrients!$B$79,Nutrients!$EP$79,(IF($A$8=Nutrients!$B$77,Nutrients!$EP$77,Nutrients!$EP$78)))))*AG$8))/2000*1000000","v":0.19800000000000001},{"$f":"(SUMPRODUCT(AH$9:AH$229,Nutrients!$EP$8:$EP$228)+(IF($A$7=Nutrients!$B$8,Nutrients!$EP$8,Nutrients!$EP$9)*AH$7)+(((IF($A$8=Nutrients!$B$79,Nutrients!$EP$79,(IF($A$8=Nutrients!$B$77,Nutrients!$EP$77,Nutrients!$EP$78)))))*AH$8))/2000*1000000","v":0.14849999999999999},{"$f":"(SUMPRODUCT(AI$9:AI$229,Nutrients!$EP$8:$EP$228)+(IF($A$7=Nutrients!$B$8,Nutrients!$EP$8,Nutrients!$EP$9)*AI$7)+(((IF($A$8=Nutrients!$B$79,Nutrients!$EP$79,(IF($A$8=Nutrients!$B$77,Nutrients!$EP$77,Nutrients!$EP$78)))))*AI$8))/2000*1000000","v":0.14849999999999999},null,{"$f":"(SUMPRODUCT(AK$9:AK$229,Nutrients!$EP$8:$EP$228)+(IF($A$7=Nutrients!$B$8,Nutrients!$EP$8,Nutrients!$EP$9)*AK$7)+(((IF($A$8=Nutrients!$B$79,Nutrients!$EP$79,(IF($A$8=Nutrients!$B$77,Nutrients!$EP$77,Nutrients!$EP$78)))))*AK$8))/2000*1000000","v":0.29699999999999999},{"$f":"(SUMPRODUCT(AL$9:AL$229,Nutrients!$EP$8:$EP$228)+(IF($A$7=Nutrients!$B$8,Nutrients!$EP$8,Nutrients!$EP$9)*AL$7)+(((IF($A$8=Nutrients!$B$79,Nutrients!$EP$79,(IF($A$8=Nutrients!$B$77,Nutrients!$EP$77,Nutrients!$EP$78)))))*AL$8))/2000*1000000","v":0.29699999999999999},{"$f":"(SUMPRODUCT(AM$9:AM$229,Nutrients!$EP$8:$EP$228)+(IF($A$7=Nutrients!$B$8,Nutrients!$EP$8,Nutrients!$EP$9)*AM$7)+(((IF($A$8=Nutrients!$B$79,Nutrients!$EP$79,(IF($A$8=Nutrients!$B$77,Nutrients!$EP$77,Nutrients!$EP$78)))))*AM$8))/2000*1000000","v":0.24750000000000003},{"$f":"(SUMPRODUCT(AN$9:AN$229,Nutrients!$EP$8:$EP$228)+(IF($A$7=Nutrients!$B$8,Nutrients!$EP$8,Nutrients!$EP$9)*AN$7)+(((IF($A$8=Nutrients!$B$79,Nutrients!$EP$79,(IF($A$8=Nutrients!$B$77,Nutrients!$EP$77,Nutrients!$EP$78)))))*AN$8))/2000*1000000","v":0.19800000000000001},{"$f":"(SUMPRODUCT(AO$9:AO$229,Nutrients!$EP$8:$EP$228)+(IF($A$7=Nutrients!$B$8,Nutrients!$EP$8,Nutrients!$EP$9)*AO$7)+(((IF($A$8=Nutrients!$B$79,Nutrients!$EP$79,(IF($A$8=Nutrients!$B$77,Nutrients!$EP$77,Nutrients!$EP$78)))))*AO$8))/2000*1000000","v":0.14849999999999999},{"$f":"(SUMPRODUCT(AP$9:AP$229,Nutrients!$EP$8:$EP$228)+(IF($A$7=Nutrients!$B$8,Nutrients!$EP$8,Nutrients!$EP$9)*AP$7)+(((IF($A$8=Nutrients!$B$79,Nutrients!$EP$79,(IF($A$8=Nutrients!$B$77,Nutrients!$EP$77,Nutrients!$EP$78)))))*AP$8))/2000*1000000","v":0.14849999999999999},null,{"$f":"(SUMPRODUCT(AR$9:AR$229,Nutrients!$EP$8:$EP$228)+(IF($A$7=Nutrients!$B$8,Nutrients!$EP$8,Nutrients!$EP$9)*AR$7)+(((IF($A$8=Nutrients!$B$79,Nutrients!$EP$79,(IF($A$8=Nutrients!$B$77,Nutrients!$EP$77,Nutrients!$EP$78)))))*AR$8))/2000*1000000","v":0.29699999999999999},{"$f":"(SUMPRODUCT(AS$9:AS$229,Nutrients!$EP$8:$EP$228)+(IF($A$7=Nutrients!$B$8,Nutrients!$EP$8,Nutrients!$EP$9)*AS$7)+(((IF($A$8=Nutrients!$B$79,Nutrients!$EP$79,(IF($A$8=Nutrients!$B$77,Nutrients!$EP$77,Nutrients!$EP$78)))))*AS$8))/2000*1000000","v":0.29699999999999999},{"$f":"(SUMPRODUCT(AT$9:AT$229,Nutrients!$EP$8:$EP$228)+(IF($A$7=Nutrients!$B$8,Nutrients!$EP$8,Nutrients!$EP$9)*AT$7)+(((IF($A$8=Nutrients!$B$79,Nutrients!$EP$79,(IF($A$8=Nutrients!$B$77,Nutrients!$EP$77,Nutrients!$EP$78)))))*AT$8))/2000*1000000","v":0.24750000000000003},{"$f":"(SUMPRODUCT(AU$9:AU$229,Nutrients!$EP$8:$EP$228)+(IF($A$7=Nutrients!$B$8,Nutrients!$EP$8,Nutrients!$EP$9)*AU$7)+(((IF($A$8=Nutrients!$B$79,Nutrients!$EP$79,(IF($A$8=Nutrients!$B$77,Nutrients!$EP$77,Nutrients!$EP$78)))))*AU$8))/2000*1000000","v":0.19800000000000001},{"$f":"(SUMPRODUCT(AV$9:AV$229,Nutrients!$EP$8:$EP$228)+(IF($A$7=Nutrients!$B$8,Nutrients!$EP$8,Nutrients!$EP$9)*AV$7)+(((IF($A$8=Nutrients!$B$79,Nutrients!$EP$79,(IF($A$8=Nutrients!$B$77,Nutrients!$EP$77,Nutrients!$EP$78)))))*AV$8))/2000*1000000","v":0.14849999999999999},{"$f":"(SUMPRODUCT(AW$9:AW$229,Nutrients!$EP$8:$EP$228)+(IF($A$7=Nutrients!$B$8,Nutrients!$EP$8,Nutrients!$EP$9)*AW$7)+(((IF($A$8=Nutrients!$B$79,Nutrients!$EP$79,(IF($A$8=Nutrients!$B$77,Nutrients!$EP$77,Nutrients!$EP$78)))))*AW$8))/2000*1000000","v":0.14849999999999999}]
["  Chromium added, ppb",{"$f":"(SUMPRODUCT(B$9:B$229,Nutrients!$EQ$8:$EQ$228)+(IF($A$7=Nutrients!$B$8,Nutrients!$EQ$8,Nutrients!$EQ$9)*B$7)+(((IF($A$8=Nutrients!$B$79,Nutrients!$EQ$79,(IF($A$8=Nutrients!$B$77,Nutrients!$EQ$77,Nutrients!$EQ$78)))))*B$8))/2000*1000000000","v":0},{"$f":"(SUMPRODUCT(C$9:C$229,Nutrients!$EQ$8:$EQ$228)+(IF($A$7=Nutrients!$B$8,Nutrients!$EQ$8,Nutrients!$EQ$9)*C$7)+(((IF($A$8=Nutrients!$B$79,Nutrients!$EQ$79,(IF($A$8=Nutrients!$B$77,Nutrients!$EQ$77,Nutrients!$EQ$78)))))*C$8))/2000*1000000000","v":0},{"$f":"(SUMPRODUCT(D$9:D$229,Nutrients!$EQ$8:$EQ$228)+(IF($A$7=Nutrients!$B$8,Nutrients!$EQ$8,Nutrients!$EQ$9)*D$7)+(((IF($A$8=Nutrients!$B$79,Nutrients!$EQ$79,(IF($A$8=Nutrients!$B$77,Nutrients!$EQ$77,Nutrients!$EQ$78)))))*D$8))/2000*1000000000","v":0},{"$f":"(SUMPRODUCT(E$9:E$229,Nutrients!$EQ$8:$EQ$228)+(IF($A$7=Nutrients!$B$8,Nutrients!$EQ$8,Nutrients!$EQ$9)*E$7)+(((IF($A$8=Nutrients!$B$79,Nutrients!$EQ$79,(IF($A$8=Nutrients!$B$77,Nutrients!$EQ$77,Nutrients!$EQ$78)))))*E$8))/2000*1000000000","v":0},{"$f":"(SUMPRODUCT(F$9:F$229,Nutrients!$EQ$8:$EQ$228)+(IF($A$7=Nutrients!$B$8,Nutrients!$EQ$8,Nutrients!$EQ$9)*F$7)+(((IF($A$8=Nutrients!$B$79,Nutrients!$EQ$79,(IF($A$8=Nutrients!$B$77,Nutrients!$EQ$77,Nutrients!$EQ$78)))))*F$8))/2000*1000000000","v":0},{"$f":"(SUMPRODUCT(G$9:G$229,Nutrients!$EQ$8:$EQ$228)+(IF($A$7=Nutrients!$B$8,Nutrients!$EQ$8,Nutrients!$EQ$9)*G$7)+(((IF($A$8=Nutrients!$B$79,Nutrients!$EQ$79,(IF($A$8=Nutrients!$B$77,Nutrients!$EQ$77,Nutrients!$EQ$78)))))*G$8))/2000*1000000000","v":0},null,{"$f":"(SUMPRODUCT(I$9:I$229,Nutrients!$EQ$8:$EQ$228)+(IF($A$7=Nutrients!$B$8,Nutrients!$EQ$8,Nutrients!$EQ$9)*I$7)+(((IF($A$8=Nutrients!$B$79,Nutrients!$EQ$79,(IF($A$8=Nutrients!$B$77,Nutrients!$EQ$77,Nutrients!$EQ$78)))))*I$8))/2000*1000000000","v":0},{"$f":"(SUMPRODUCT(J$9:J$229,Nutrients!$EQ$8:$EQ$228)+(IF($A$7=Nutrients!$B$8,Nutrients!$EQ$8,Nutrients!$EQ$9)*J$7)+(((IF($A$8=Nutrients!$B$79,Nutrients!$EQ$79,(IF($A$8=Nutrients!$B$77,Nutrients!$EQ$77,Nutrients!$EQ$78)))))*J$8))/2000*1000000000","v":0},{"$f":"(SUMPRODUCT(K$9:K$229,Nutrients!$EQ$8:$EQ$228)+(IF($A$7=Nutrients!$B$8,Nutrients!$EQ$8,Nutrients!$EQ$9)*K$7)+(((IF($A$8=Nutrients!$B$79,Nutrients!$EQ$79,(IF($A$8=Nutrients!$B$77,Nutrients!$EQ$77,Nutrients!$EQ$78)))))*K$8))/2000*1000000000","v":0},{"$f":"(SUMPRODUCT(L$9:L$229,Nutrients!$EQ$8:$EQ$228)+(IF($A$7=Nutrients!$B$8,Nutrients!$EQ$8,Nutrients!$EQ$9)*L$7)+(((IF($A$8=Nutrients!$B$79,Nutrients!$EQ$79,(IF($A$8=Nutrients!$B$77,Nutrients!$EQ$77,Nutrients!$EQ$78)))))*L$8))/2000*1000000000","v":0},{"$f":"(SUMPRODUCT(M$9:M$229,Nutrients!$EQ$8:$EQ$228)+(IF($A$7=Nutrients!$B$8,Nutrients!$EQ$8,Nutrients!$EQ$9)*M$7)+(((IF($A$8=Nutrients!$B$79,Nutrients!$EQ$79,(IF($A$8=Nutrients!$B$77,Nutrients!$EQ$77,Nutrients!$EQ$78)))))*M$8))/2000*1000000000","v":0},{"$f":"(SUMPRODUCT(N$9:N$229,Nutrients!$EQ$8:$EQ$228)+(IF($A$7=Nutrients!$B$8,Nutrients!$EQ$8,Nutrients!$EQ$9)*N$7)+(((IF($A$8=Nutrients!$B$79,Nutrients!$EQ$79,(IF($A$8=Nutrients!$B$77,Nutrients!$EQ$77,Nutrients!$EQ$78)))))*N$8))/2000*1000000000","v":0},null,{"$f":"(SUMPRODUCT(P$9:P$229,Nutrients!$EQ$8:$EQ$228)+(IF($A$7=Nutrients!$B$8,Nutrients!$EQ$8,Nutrients!$EQ$9)*P$7)+(((IF($A$8=Nutrients!$B$79,Nutrients!$EQ$79,(IF($A$8=Nutrients!$B$77,Nutrients!$EQ$77,Nutrients!$EQ$78)))))*P$8))/2000*1000000000","v":0},{"$f":"(SUMPRODUCT(Q$9:Q$229,Nutrients!$EQ$8:$EQ$228)+(IF($A$7=Nutrients!$B$8,Nutrients!$EQ$8,Nutrients!$EQ$9)*Q$7)+(((IF($A$8=Nutrients!$B$79,Nutrients!$EQ$79,(IF($A$8=Nutrients!$B$77,Nutrients!$EQ$77,Nutrients!$EQ$78)))))*Q$8))/2000*1000000000","v":0},{"$f":"(SUMPRODUCT(R$9:R$229,Nutrients!$EQ$8:$EQ$228)+(IF($A$7=Nutrients!$B$8,Nutrients!$EQ$8,Nutrients!$EQ$9)*R$7)+(((IF($A$8=Nutrients!$B$79,Nutrients!$EQ$79,(IF($A$8=Nutrients!$B$77,Nutrients!$EQ$77,Nutrients!$EQ$78)))))*R$8))/2000*1000000000","v":0},{"$f":"(SUMPRODUCT(S$9:S$229,Nutrients!$EQ$8:$EQ$228)+(IF($A$7=Nutrients!$B$8,Nutrients!$EQ$8,Nutrients!$EQ$9)*S$7)+(((IF($A$8=Nutrients!$B$79,Nutrients!$EQ$79,(IF($A$8=Nutrients!$B$77,Nutrients!$EQ$77,Nutrients!$EQ$78)))))*S$8))/2000*1000000000","v":0},{"$f":"(SUMPRODUCT(T$9:T$229,Nutrients!$EQ$8:$EQ$228)+(IF($A$7=Nutrients!$B$8,Nutrients!$EQ$8,Nutrients!$EQ$9)*T$7)+(((IF($A$8=Nutrients!$B$79,Nutrients!$EQ$79,(IF($A$8=Nutrients!$B$77,Nutrients!$EQ$77,Nutrients!$EQ$78)))))*T$8))/2000*1000000000","v":0},{"$f":"(SUMPRODUCT(U$9:U$229,Nutrients!$EQ$8:$EQ$228)+(IF($A$7=Nutrients!$B$8,Nutrients!$EQ$8,Nutrients!$EQ$9)*U$7)+(((IF($A$8=Nutrients!$B$79,Nutrients!$EQ$79,(IF($A$8=Nutrients!$B$77,Nutrients!$EQ$77,Nutrients!$EQ$78)))))*U$8))/2000*1000000000","v":0},null,{"$f":"(SUMPRODUCT(W$9:W$229,Nutrients!$EQ$8:$EQ$228)+(IF($A$7=Nutrients!$B$8,Nutrients!$EQ$8,Nutrients!$EQ$9)*W$7)+(((IF($A$8=Nutrients!$B$79,Nutrients!$EQ$79,(IF($A$8=Nutrients!$B$77,Nutrients!$EQ$77,Nutrients!$EQ$78)))))*W$8))/2000*1000000000","v":0},{"$f":"(SUMPRODUCT(X$9:X$229,Nutrients!$EQ$8:$EQ$228)+(IF($A$7=Nutrients!$B$8,Nutrients!$EQ$8,Nutrients!$EQ$9)*X$7)+(((IF($A$8=Nutrients!$B$79,Nutrients!$EQ$79,(IF($A$8=Nutrients!$B$77,Nutrients!$EQ$77,Nutrients!$EQ$78)))))*X$8))/2000*1000000000","v":0},{"$f":"(SUMPRODUCT(Y$9:Y$229,Nutrients!$EQ$8:$EQ$228)+(IF($A$7=Nutrients!$B$8,Nutrients!$EQ$8,Nutrients!$EQ$9)*Y$7)+(((IF($A$8=Nutrients!$B$79,Nutrients!$EQ$79,(IF($A$8=Nutrients!$B$77,Nutrients!$EQ$77,Nutrients!$EQ$78)))))*Y$8))/2000*1000000000","v":0},{"$f":"(SUMPRODUCT(Z$9:Z$229,Nutrients!$EQ$8:$EQ$228)+(IF($A$7=Nutrients!$B$8,Nutrients!$EQ$8,Nutrients!$EQ$9)*Z$7)+(((IF($A$8=Nutrients!$B$79,Nutrients!$EQ$79,(IF($A$8=Nutrients!$B$77,Nutrients!$EQ$77,Nutrients!$EQ$78)))))*Z$8))/2000*1000000000","v":0},{"$f":"(SUMPRODUCT(AA$9:AA$229,Nutrients!$EQ$8:$EQ$228)+(IF($A$7=Nutrients!$B$8,Nutrients!$EQ$8,Nutrients!$EQ$9)*AA$7)+(((IF($A$8=Nutrients!$B$79,Nutrients!$EQ$79,(IF($A$8=Nutrients!$B$77,Nutrients!$EQ$77,Nutrients!$EQ$78)))))*AA$8))/2000*1000000000","v":0},{"$f":"(SUMPRODUCT(AB$9:AB$229,Nutrients!$EQ$8:$EQ$228)+(IF($A$7=Nutrients!$B$8,Nutrients!$EQ$8,Nutrients!$EQ$9)*AB$7)+(((IF($A$8=Nutrients!$B$79,Nutrients!$EQ$79,(IF($A$8=Nutrients!$B$77,Nutrients!$EQ$77,Nutrients!$EQ$78)))))*AB$8))/2000*1000000000","v":0},null,{"$f":"(SUMPRODUCT(AD$9:AD$229,Nutrients!$EQ$8:$EQ$228)+(IF($A$7=Nutrients!$B$8,Nutrients!$EQ$8,Nutrients!$EQ$9)*AD$7)+(((IF($A$8=Nutrients!$B$79,Nutrients!$EQ$79,(IF($A$8=Nutrients!$B$77,Nutrients!$EQ$77,Nutrients!$EQ$78)))))*AD$8))/2000*1000000000","v":0},{"$f":"(SUMPRODUCT(AE$9:AE$229,Nutrients!$EQ$8:$EQ$228)+(IF($A$7=Nutrients!$B$8,Nutrients!$EQ$8,Nutrients!$EQ$9)*AE$7)+(((IF($A$8=Nutrients!$B$79,Nutrients!$EQ$79,(IF($A$8=Nutrients!$B$77,Nutrients!$EQ$77,Nutrients!$EQ$78)))))*AE$8))/2000*1000000000","v":0},{"$f":"(SUMPRODUCT(AF$9:AF$229,Nutrients!$EQ$8:$EQ$228)+(IF($A$7=Nutrients!$B$8,Nutrients!$EQ$8,Nutrients!$EQ$9)*AF$7)+(((IF($A$8=Nutrients!$B$79,Nutrients!$EQ$79,(IF($A$8=Nutrients!$B$77,Nutrients!$EQ$77,Nutrients!$EQ$78)))))*AF$8))/2000*1000000000","v":0},{"$f":"(SUMPRODUCT(AG$9:AG$229,Nutrients!$EQ$8:$EQ$228)+(IF($A$7=Nutrients!$B$8,Nutrients!$EQ$8,Nutrients!$EQ$9)*AG$7)+(((IF($A$8=Nutrients!$B$79,Nutrients!$EQ$79,(IF($A$8=Nutrients!$B$77,Nutrients!$EQ$77,Nutrients!$EQ$78)))))*AG$8))/2000*1000000000","v":0},{"$f":"(SUMPRODUCT(AH$9:AH$229,Nutrients!$EQ$8:$EQ$228)+(IF($A$7=Nutrients!$B$8,Nutrients!$EQ$8,Nutrients!$EQ$9)*AH$7)+(((IF($A$8=Nutrients!$B$79,Nutrients!$EQ$79,(IF($A$8=Nutrients!$B$77,Nutrients!$EQ$77,Nutrients!$EQ$78)))))*AH$8))/2000*1000000000","v":0},{"$f":"(SUMPRODUCT(AI$9:AI$229,Nutrients!$EQ$8:$EQ$228)+(IF($A$7=Nutrients!$B$8,Nutrients!$EQ$8,Nutrients!$EQ$9)*AI$7)+(((IF($A$8=Nutrients!$B$79,Nutrients!$EQ$79,(IF($A$8=Nutrients!$B$77,Nutrients!$EQ$77,Nutrients!$EQ$78)))))*AI$8))/2000*1000000000","v":0},null,{"$f":"(SUMPRODUCT(AK$9:AK$229,Nutrients!$EQ$8:$EQ$228)+(IF($A$7=Nutrients!$B$8,Nutrients!$EQ$8,Nutrients!$EQ$9)*AK$7)+(((IF($A$8=Nutrients!$B$79,Nutrients!$EQ$79,(IF($A$8=Nutrients!$B$77,Nutrients!$EQ$77,Nutrients!$EQ$78)))))*AK$8))/2000*1000000000","v":0},{"$f":"(SUMPRODUCT(AL$9:AL$229,Nutrients!$EQ$8:$EQ$228)+(IF($A$7=Nutrients!$B$8,Nutrients!$EQ$8,Nutrients!$EQ$9)*AL$7)+(((IF($A$8=Nutrients!$B$79,Nutrients!$EQ$79,(IF($A$8=Nutrients!$B$77,Nutrients!$EQ$77,Nutrients!$EQ$78)))))*AL$8))/2000*1000000000","v":0},{"$f":"(SUMPRODUCT(AM$9:AM$229,Nutrients!$EQ$8:$EQ$228)+(IF($A$7=Nutrients!$B$8,Nutrients!$EQ$8,Nutrients!$EQ$9)*AM$7)+(((IF($A$8=Nutrients!$B$79,Nutrients!$EQ$79,(IF($A$8=Nutrients!$B$77,Nutrients!$EQ$77,Nutrients!$EQ$78)))))*AM$8))/2000*1000000000","v":0},{"$f":"(SUMPRODUCT(AN$9:AN$229,Nutrients!$EQ$8:$EQ$228)+(IF($A$7=Nutrients!$B$8,Nutrients!$EQ$8,Nutrients!$EQ$9)*AN$7)+(((IF($A$8=Nutrients!$B$79,Nutrients!$EQ$79,(IF($A$8=Nutrients!$B$77,Nutrients!$EQ$77,Nutrients!$EQ$78)))))*AN$8))/2000*1000000000","v":0},{"$f":"(SUMPRODUCT(AO$9:AO$229,Nutrients!$EQ$8:$EQ$228)+(IF($A$7=Nutrients!$B$8,Nutrients!$EQ$8,Nutrients!$EQ$9)*AO$7)+(((IF($A$8=Nutrients!$B$79,Nutrients!$EQ$79,(IF($A$8=Nutrients!$B$77,Nutrients!$EQ$77,Nutrients!$EQ$78)))))*AO$8))/2000*1000000000","v":0},{"$f":"(SUMPRODUCT(AP$9:AP$229,Nutrients!$EQ$8:$EQ$228)+(IF($A$7=Nutrients!$B$8,Nutrients!$EQ$8,Nutrients!$EQ$9)*AP$7)+(((IF($A$8=Nutrients!$B$79,Nutrients!$EQ$79,(IF($A$8=Nutrients!$B$77,Nutrients!$EQ$77,Nutrients!$EQ$78)))))*AP$8))/2000*1000000000","v":0},null,{"$f":"(SUMPRODUCT(AR$9:AR$229,Nutrients!$EQ$8:$EQ$228)+(IF($A$7=Nutrients!$B$8,Nutrients!$EQ$8,Nutrients!$EQ$9)*AR$7)+(((IF($A$8=Nutrients!$B$79,Nutrients!$EQ$79,(IF($A$8=Nutrients!$B$77,Nutrients!$EQ$77,Nutrients!$EQ$78)))))*AR$8))/2000*1000000000","v":0},{"$f":"(SUMPRODUCT(AS$9:AS$229,Nutrients!$EQ$8:$EQ$228)+(IF($A$7=Nutrients!$B$8,Nutrients!$EQ$8,Nutrients!$EQ$9)*AS$7)+(((IF($A$8=Nutrients!$B$79,Nutrients!$EQ$79,(IF($A$8=Nutrients!$B$77,Nutrients!$EQ$77,Nutrients!$EQ$78)))))*AS$8))/2000*1000000000","v":0},{"$f":"(SUMPRODUCT(AT$9:AT$229,Nutrients!$EQ$8:$EQ$228)+(IF($A$7=Nutrients!$B$8,Nutrients!$EQ$8,Nutrients!$EQ$9)*AT$7)+(((IF($A$8=Nutrients!$B$79,Nutrients!$EQ$79,(IF($A$8=Nutrients!$B$77,Nutrients!$EQ$77,Nutrients!$EQ$78)))))*AT$8))/2000*1000000000","v":0},{"$f":"(SUMPRODUCT(AU$9:AU$229,Nutrients!$EQ$8:$EQ$228)+(IF($A$7=Nutrients!$B$8,Nutrients!$EQ$8,Nutrients!$EQ$9)*AU$7)+(((IF($A$8=Nutrients!$B$79,Nutrients!$EQ$79,(IF($A$8=Nutrients!$B$77,Nutrients!$EQ$77,Nutrients!$EQ$78)))))*AU$8))/2000*1000000000","v":0},{"$f":"(SUMPRODUCT(AV$9:AV$229,Nutrients!$EQ$8:$EQ$228)+(IF($A$7=Nutrients!$B$8,Nutrients!$EQ$8,Nutrients!$EQ$9)*AV$7)+(((IF($A$8=Nutrients!$B$79,Nutrients!$EQ$79,(IF($A$8=Nutrients!$B$77,Nutrients!$EQ$77,Nutrients!$EQ$78)))))*AV$8))/2000*1000000000","v":0},{"$f":"(SUMPRODUCT(AW$9:AW$229,Nutrients!$EQ$8:$EQ$228)+(IF($A$7=Nutrients!$B$8,Nutrients!$EQ$8,Nutrients!$EQ$9)*AW$7)+(((IF($A$8=Nutrients!$B$79,Nutrients!$EQ$79,(IF($A$8=Nutrients!$B$77,Nutrients!$EQ$77,Nutrients!$EQ$78)))))*AW$8))/2000*1000000000","v":0}]
[]
["Vitamins (added levels)"]
["  Vit A, IU/ton",{"$f":"(SUMPRODUCT(B$9:B$229,Nutrients!$ES$8:$ES$228)+(IF($A$7=Nutrients!$B$8,Nutrients!$ES$8,Nutrients!$ES$9)*B$7)+(((IF($A$8=Nutrients!$B$79,Nutrients!$ES$79,(IF($A$8=Nutrients!$B$77,Nutrients!$ES$77,Nutrients!$ES$78)))))*B$8))","v":2250000},{"$f":"(SUMPRODUCT(C$9:C$229,Nutrients!$ES$8:$ES$228)+(IF($A$7=Nutrients!$B$8,Nutrients!$ES$8,Nutrients!$ES$9)*C$7)+(((IF($A$8=Nutrients!$B$79,Nutrients!$ES$79,(IF($A$8=Nutrients!$B$77,Nutrients!$ES$77,Nutrients!$ES$78)))))*C$8))","v":2250000},{"$f":"(SUMPRODUCT(D$9:D$229,Nutrients!$ES$8:$ES$228)+(IF($A$7=Nutrients!$B$8,Nutrients!$ES$8,Nutrients!$ES$9)*D$7)+(((IF($A$8=Nutrients!$B$79,Nutrients!$ES$79,(IF($A$8=Nutrients!$B$77,Nutrients!$ES$77,Nutrients!$ES$78)))))*D$8))","v":1875000},{"$f":"(SUMPRODUCT(E$9:E$229,Nutrients!$ES$8:$ES$228)+(IF($A$7=Nutrients!$B$8,Nutrients!$ES$8,Nutrients!$ES$9)*E$7)+(((IF($A$8=Nutrients!$B$79,Nutrients!$ES$79,(IF($A$8=Nutrients!$B$77,Nutrients!$ES$77,Nutrients!$ES$78)))))*E$8))","v":1500000},{"$f":"(SUMPRODUCT(F$9:F$229,Nutrients!$ES$8:$ES$228)+(IF($A$7=Nutrients!$B$8,Nutrients!$ES$8,Nutrients!$ES$9)*F$7)+(((IF($A$8=Nutrients!$B$79,Nutrients!$ES$79,(IF($A$8=Nutrients!$B$77,Nutrients!$ES$77,Nutrients!$ES$78)))))*F$8))","v":1125000},{"$f":"(SUMPRODUCT(G$9:G$229,Nutrients!$ES$8:$ES$228)+(IF($A$7=Nutrients!$B$8,Nutrients!$ES$8,Nutrients!$ES$9)*G$7)+(((IF($A$8=Nutrients!$B$79,Nutrients!$ES$79,(IF($A$8=Nutrients!$B$77,Nutrients!$ES$77,Nutrients!$ES$78)))))*G$8))","v":1125000},null,{"$f":"(SUMPRODUCT(I$9:I$229,Nutrients!$ES$8:$ES$228)+(IF($A$7=Nutrients!$B$8,Nutrients!$ES$8,Nutrients!$ES$9)*I$7)+(((IF($A$8=Nutrients!$B$79,Nutrients!$ES$79,(IF($A$8=Nutrients!$B$77,Nutrients!$ES$77,Nutrients!$ES$78)))))*I$8))","v":2250000},{"$f":"(SUMPRODUCT(J$9:J$229,Nutrients!$ES$8:$ES$228)+(IF($A$7=Nutrients!$B$8,Nutrients!$ES$8,Nutrients!$ES$9)*J$7)+(((IF($A$8=Nutrients!$B$79,Nutrients!$ES$79,(IF($A$8=Nutrients!$B$77,Nutrients!$ES$77,Nutrients!$ES$78)))))*J$8))","v":2250000},{"$f":"(SUMPRODUCT(K$9:K$229,Nutrients!$ES$8:$ES$228)+(IF($A$7=Nutrients!$B$8,Nutrients!$ES$8,Nutrients!$ES$9)*K$7)+(((IF($A$8=Nutrients!$B$79,Nutrients!$ES$79,(IF($A$8=Nutrients!$B$77,Nutrients!$ES$77,Nutrients!$ES$78)))))*K$8))","v":1875000},{"$f":"(SUMPRODUCT(L$9:L$229,Nutrients!$ES$8:$ES$228)+(IF($A$7=Nutrients!$B$8,Nutrients!$ES$8,Nutrients!$ES$9)*L$7)+(((IF($A$8=Nutrients!$B$79,Nutrients!$ES$79,(IF($A$8=Nutrients!$B$77,Nutrients!$ES$77,Nutrients!$ES$78)))))*L$8))","v":1500000},{"$f":"(SUMPRODUCT(M$9:M$229,Nutrients!$ES$8:$ES$228)+(IF($A$7=Nutrients!$B$8,Nutrients!$ES$8,Nutrients!$ES$9)*M$7)+(((IF($A$8=Nutrients!$B$79,Nutrients!$ES$79,(IF($A$8=Nutrients!$B$77,Nutrients!$ES$77,Nutrients!$ES$78)))))*M$8))","v":1125000},{"$f":"(SUMPRODUCT(N$9:N$229,Nutrients!$ES$8:$ES$228)+(IF($A$7=Nutrients!$B$8,Nutrients!$ES$8,Nutrients!$ES$9)*N$7)+(((IF($A$8=Nutrients!$B$79,Nutrients!$ES$79,(IF($A$8=Nutrients!$B$77,Nutrients!$ES$77,Nutrients!$ES$78)))))*N$8))","v":1125000},null,{"$f":"(SUMPRODUCT(P$9:P$229,Nutrients!$ES$8:$ES$228)+(IF($A$7=Nutrients!$B$8,Nutrients!$ES$8,Nutrients!$ES$9)*P$7)+(((IF($A$8=Nutrients!$B$79,Nutrients!$ES$79,(IF($A$8=Nutrients!$B$77,Nutrients!$ES$77,Nutrients!$ES$78)))))*P$8))","v":2250000},{"$f":"(SUMPRODUCT(Q$9:Q$229,Nutrients!$ES$8:$ES$228)+(IF($A$7=Nutrients!$B$8,Nutrients!$ES$8,Nutrients!$ES$9)*Q$7)+(((IF($A$8=Nutrients!$B$79,Nutrients!$ES$79,(IF($A$8=Nutrients!$B$77,Nutrients!$ES$77,Nutrients!$ES$78)))))*Q$8))","v":2250000},{"$f":"(SUMPRODUCT(R$9:R$229,Nutrients!$ES$8:$ES$228)+(IF($A$7=Nutrients!$B$8,Nutrients!$ES$8,Nutrients!$ES$9)*R$7)+(((IF($A$8=Nutrients!$B$79,Nutrients!$ES$79,(IF($A$8=Nutrients!$B$77,Nutrients!$ES$77,Nutrients!$ES$78)))))*R$8))","v":1875000},{"$f":"(SUMPRODUCT(S$9:S$229,Nutrients!$ES$8:$ES$228)+(IF($A$7=Nutrients!$B$8,Nutrients!$ES$8,Nutrients!$ES$9)*S$7)+(((IF($A$8=Nutrients!$B$79,Nutrients!$ES$79,(IF($A$8=Nutrients!$B$77,Nutrients!$ES$77,Nutrients!$ES$78)))))*S$8))","v":1500000},{"$f":"(SUMPRODUCT(T$9:T$229,Nutrients!$ES$8:$ES$228)+(IF($A$7=Nutrients!$B$8,Nutrients!$ES$8,Nutrients!$ES$9)*T$7)+(((IF($A$8=Nutrients!$B$79,Nutrients!$ES$79,(IF($A$8=Nutrients!$B$77,Nutrients!$ES$77,Nutrients!$ES$78)))))*T$8))","v":1125000},{"$f":"(SUMPRODUCT(U$9:U$229,Nutrients!$ES$8:$ES$228)+(IF($A$7=Nutrients!$B$8,Nutrients!$ES$8,Nutrients!$ES$9)*U$7)+(((IF($A$8=Nutrients!$B$79,Nutrients!$ES$79,(IF($A$8=Nutrients!$B$77,Nutrients!$ES$77,Nutrients!$ES$78)))))*U$8))","v":1125000},null,{"$f":"(SUMPRODUCT(W$9:W$229,Nutrients!$ES$8:$ES$228)+(IF($A$7=Nutrients!$B$8,Nutrients!$ES$8,Nutrients!$ES$9)*W$7)+(((IF($A$8=Nutrients!$B$79,Nutrients!$ES$79,(IF($A$8=Nutrients!$B$77,Nutrients!$ES$77,Nutrients!$ES$78)))))*W$8))","v":2250000},{"$f":"(SUMPRODUCT(X$9:X$229,Nutrients!$ES$8:$ES$228)+(IF($A$7=Nutrients!$B$8,Nutrients!$ES$8,Nutrients!$ES$9)*X$7)+(((IF($A$8=Nutrients!$B$79,Nutrients!$ES$79,(IF($A$8=Nutrients!$B$77,Nutrients!$ES$77,Nutrients!$ES$78)))))*X$8))","v":2250000},{"$f":"(SUMPRODUCT(Y$9:Y$229,Nutrients!$ES$8:$ES$228)+(IF($A$7=Nutrients!$B$8,Nutrients!$ES$8,Nutrients!$ES$9)*Y$7)+(((IF($A$8=Nutrients!$B$79,Nutrients!$ES$79,(IF($A$8=Nutrients!$B$77,Nutrients!$ES$77,Nutrients!$ES$78)))))*Y$8))","v":1875000},{"$f":"(SUMPRODUCT(Z$9:Z$229,Nutrients!$ES$8:$ES$228)+(IF($A$7=Nutrients!$B$8,Nutrients!$ES$8,Nutrients!$ES$9)*Z$7)+(((IF($A$8=Nutrients!$B$79,Nutrients!$ES$79,(IF($A$8=Nutrients!$B$77,Nutrients!$ES$77,Nutrients!$ES$78)))))*Z$8))","v":1500000},{"$f":"(SUMPRODUCT(AA$9:AA$229,Nutrients!$ES$8:$ES$228)+(IF($A$7=Nutrients!$B$8,Nutrients!$ES$8,Nutrients!$ES$9)*AA$7)+(((IF($A$8=Nutrients!$B$79,Nutrients!$ES$79,(IF($A$8=Nutrients!$B$77,Nutrients!$ES$77,Nutrients!$ES$78)))))*AA$8))","v":1125000},{"$f":"(SUMPRODUCT(AB$9:AB$229,Nutrients!$ES$8:$ES$228)+(IF($A$7=Nutrients!$B$8,Nutrients!$ES$8,Nutrients!$ES$9)*AB$7)+(((IF($A$8=Nutrients!$B$79,Nutrients!$ES$79,(IF($A$8=Nutrients!$B$77,Nutrients!$ES$77,Nutrients!$ES$78)))))*AB$8))","v":1125000},null,{"$f":"(SUMPRODUCT(AD$9:AD$229,Nutrients!$ES$8:$ES$228)+(IF($A$7=Nutrients!$B$8,Nutrients!$ES$8,Nutrients!$ES$9)*AD$7)+(((IF($A$8=Nutrients!$B$79,Nutrients!$ES$79,(IF($A$8=Nutrients!$B$77,Nutrients!$ES$77,Nutrients!$ES$78)))))*AD$8))","v":2250000},{"$f":"(SUMPRODUCT(AE$9:AE$229,Nutrients!$ES$8:$ES$228)+(IF($A$7=Nutrients!$B$8,Nutrients!$ES$8,Nutrients!$ES$9)*AE$7)+(((IF($A$8=Nutrients!$B$79,Nutrients!$ES$79,(IF($A$8=Nutrients!$B$77,Nutrients!$ES$77,Nutrients!$ES$78)))))*AE$8))","v":2250000},{"$f":"(SUMPRODUCT(AF$9:AF$229,Nutrients!$ES$8:$ES$228)+(IF($A$7=Nutrients!$B$8,Nutrients!$ES$8,Nutrients!$ES$9)*AF$7)+(((IF($A$8=Nutrients!$B$79,Nutrients!$ES$79,(IF($A$8=Nutrients!$B$77,Nutrients!$ES$77,Nutrients!$ES$78)))))*AF$8))","v":1875000},{"$f":"(SUMPRODUCT(AG$9:AG$229,Nutrients!$ES$8:$ES$228)+(IF($A$7=Nutrients!$B$8,Nutrients!$ES$8,Nutrients!$ES$9)*AG$7)+(((IF($A$8=Nutrients!$B$79,Nutrients!$ES$79,(IF($A$8=Nutrients!$B$77,Nutrients!$ES$77,Nutrients!$ES$78)))))*AG$8))","v":1500000},{"$f":"(SUMPRODUCT(AH$9:AH$229,Nutrients!$ES$8:$ES$228)+(IF($A$7=Nutrients!$B$8,Nutrients!$ES$8,Nutrients!$ES$9)*AH$7)+(((IF($A$8=Nutrients!$B$79,Nutrients!$ES$79,(IF($A$8=Nutrients!$B$77,Nutrients!$ES$77,Nutrients!$ES$78)))))*AH$8))","v":1125000},{"$f":"(SUMPRODUCT(AI$9:AI$229,Nutrients!$ES$8:$ES$228)+(IF($A$7=Nutrients!$B$8,Nutrients!$ES$8,Nutrients!$ES$9)*AI$7)+(((IF($A$8=Nutrients!$B$79,Nutrients!$ES$79,(IF($A$8=Nutrients!$B$77,Nutrients!$ES$77,Nutrients!$ES$78)))))*AI$8))","v":1125000},null,{"$f":"(SUMPRODUCT(AK$9:AK$229,Nutrients!$ES$8:$ES$228)+(IF($A$7=Nutrients!$B$8,Nutrients!$ES$8,Nutrients!$ES$9)*AK$7)+(((IF($A$8=Nutrients!$B$79,Nutrients!$ES$79,(IF($A$8=Nutrients!$B$77,Nutrients!$ES$77,Nutrients!$ES$78)))))*AK$8))","v":2250000},{"$f":"(SUMPRODUCT(AL$9:AL$229,Nutrients!$ES$8:$ES$228)+(IF($A$7=Nutrients!$B$8,Nutrients!$ES$8,Nutrients!$ES$9)*AL$7)+(((IF($A$8=Nutrients!$B$79,Nutrients!$ES$79,(IF($A$8=Nutrients!$B$77,Nutrients!$ES$77,Nutrients!$ES$78)))))*AL$8))","v":2250000},{"$f":"(SUMPRODUCT(AM$9:AM$229,Nutrients!$ES$8:$ES$228)+(IF($A$7=Nutrients!$B$8,Nutrients!$ES$8,Nutrients!$ES$9)*AM$7)+(((IF($A$8=Nutrients!$B$79,Nutrients!$ES$79,(IF($A$8=Nutrients!$B$77,Nutrients!$ES$77,Nutrients!$ES$78)))))*AM$8))","v":1875000},{"$f":"(SUMPRODUCT(AN$9:AN$229,Nutrients!$ES$8:$ES$228)+(IF($A$7=Nutrients!$B$8,Nutrients!$ES$8,Nutrients!$ES$9)*AN$7)+(((IF($A$8=Nutrients!$B$79,Nutrients!$ES$79,(IF($A$8=Nutrients!$B$77,Nutrients!$ES$77,Nutrients!$ES$78)))))*AN$8))","v":1500000},{"$f":"(SUMPRODUCT(AO$9:AO$229,Nutrients!$ES$8:$ES$228)+(IF($A$7=Nutrients!$B$8,Nutrients!$ES$8,Nutrients!$ES$9)*AO$7)+(((IF($A$8=Nutrients!$B$79,Nutrients!$ES$79,(IF($A$8=Nutrients!$B$77,Nutrients!$ES$77,Nutrients!$ES$78)))))*AO$8))","v":1125000},{"$f":"(SUMPRODUCT(AP$9:AP$229,Nutrients!$ES$8:$ES$228)+(IF($A$7=Nutrients!$B$8,Nutrients!$ES$8,Nutrients!$ES$9)*AP$7)+(((IF($A$8=Nutrients!$B$79,Nutrients!$ES$79,(IF($A$8=Nutrients!$B$77,Nutrients!$ES$77,Nutrients!$ES$78)))))*AP$8))","v":1125000},null,{"$f":"(SUMPRODUCT(AR$9:AR$229,Nutrients!$ES$8:$ES$228)+(IF($A$7=Nutrients!$B$8,Nutrients!$ES$8,Nutrients!$ES$9)*AR$7)+(((IF($A$8=Nutrients!$B$79,Nutrients!$ES$79,(IF($A$8=Nutrients!$B$77,Nutrients!$ES$77,Nutrients!$ES$78)))))*AR$8))","v":2250000},{"$f":"(SUMPRODUCT(AS$9:AS$229,Nutrients!$ES$8:$ES$228)+(IF($A$7=Nutrients!$B$8,Nutrients!$ES$8,Nutrients!$ES$9)*AS$7)+(((IF($A$8=Nutrients!$B$79,Nutrients!$ES$79,(IF($A$8=Nutrients!$B$77,Nutrients!$ES$77,Nutrients!$ES$78)))))*AS$8))","v":2250000},{"$f":"(SUMPRODUCT(AT$9:AT$229,Nutrients!$ES$8:$ES$228)+(IF($A$7=Nutrients!$B$8,Nutrients!$ES$8,Nutrients!$ES$9)*AT$7)+(((IF($A$8=Nutrients!$B$79,Nutrients!$ES$79,(IF($A$8=Nutrients!$B$77,Nutrients!$ES$77,Nutrients!$ES$78)))))*AT$8))","v":1875000},{"$f":"(SUMPRODUCT(AU$9:AU$229,Nutrients!$ES$8:$ES$228)+(IF($A$7=Nutrients!$B$8,Nutrients!$ES$8,Nutrients!$ES$9)*AU$7)+(((IF($A$8=Nutrients!$B$79,Nutrients!$ES$79,(IF($A$8=Nutrients!$B$77,Nutrients!$ES$77,Nutrients!$ES$78)))))*AU$8))","v":1500000},{"$f":"(SUMPRODUCT(AV$9:AV$229,Nutrients!$ES$8:$ES$228)+(IF($A$7=Nutrients!$B$8,Nutrients!$ES$8,Nutrients!$ES$9)*AV$7)+(((IF($A$8=Nutrients!$B$79,Nutrients!$ES$79,(IF($A$8=Nutrients!$B$77,Nutrients!$ES$77,Nutrients!$ES$78)))))*AV$8))","v":1125000},{"$f":"(SUMPRODUCT(AW$9:AW$229,Nutrients!$ES$8:$ES$228)+(IF($A$7=Nutrients!$B$8,Nutrients!$ES$8,Nutrients!$ES$9)*AW$7)+(((IF($A$8=Nutrients!$B$79,Nutrients!$ES$79,(IF($A$8=Nutrients!$B$77,Nutrients!$ES$77,Nutrients!$ES$78)))))*AW$8))","v":1125000}]
["  Vit D, IU/ton",{"$f":"(SUMPRODUCT(B$9:B$229,Nutrients!$ET$8:$ET$228)+(IF($A$7=Nutrients!$B$8,Nutrients!$ET$8,Nutrients!$ET$9)*B$7)+(((IF($A$8=Nutrients!$B$79,Nutrients!$ET$79,(IF($A$8=Nutrients!$B$77,Nutrients!$ET$77,Nutrients!$ET$78)))))*B$8))","v":900000},{"$f":"(SUMPRODUCT(C$9:C$229,Nutrients!$ET$8:$ET$228)+(IF($A$7=Nutrients!$B$8,Nutrients!$ET$8,Nutrients!$ET$9)*C$7)+(((IF($A$8=Nutrients!$B$79,Nutrients!$ET$79,(IF($A$8=Nutrients!$B$77,Nutrients!$ET$77,Nutrients!$ET$78)))))*C$8))","v":900000},{"$f":"(SUMPRODUCT(D$9:D$229,Nutrients!$ET$8:$ET$228)+(IF($A$7=Nutrients!$B$8,Nutrients!$ET$8,Nutrients!$ET$9)*D$7)+(((IF($A$8=Nutrients!$B$79,Nutrients!$ET$79,(IF($A$8=Nutrients!$B$77,Nutrients!$ET$77,Nutrients!$ET$78)))))*D$8))","v":750000},{"$f":"(SUMPRODUCT(E$9:E$229,Nutrients!$ET$8:$ET$228)+(IF($A$7=Nutrients!$B$8,Nutrients!$ET$8,Nutrients!$ET$9)*E$7)+(((IF($A$8=Nutrients!$B$79,Nutrients!$ET$79,(IF($A$8=Nutrients!$B$77,Nutrients!$ET$77,Nutrients!$ET$78)))))*E$8))","v":600000},{"$f":"(SUMPRODUCT(F$9:F$229,Nutrients!$ET$8:$ET$228)+(IF($A$7=Nutrients!$B$8,Nutrients!$ET$8,Nutrients!$ET$9)*F$7)+(((IF($A$8=Nutrients!$B$79,Nutrients!$ET$79,(IF($A$8=Nutrients!$B$77,Nutrients!$ET$77,Nutrients!$ET$78)))))*F$8))","v":450000},{"$f":"(SUMPRODUCT(G$9:G$229,Nutrients!$ET$8:$ET$228)+(IF($A$7=Nutrients!$B$8,Nutrients!$ET$8,Nutrients!$ET$9)*G$7)+(((IF($A$8=Nutrients!$B$79,Nutrients!$ET$79,(IF($A$8=Nutrients!$B$77,Nutrients!$ET$77,Nutrients!$ET$78)))))*G$8))","v":450000},null,{"$f":"(SUMPRODUCT(I$9:I$229,Nutrients!$ET$8:$ET$228)+(IF($A$7=Nutrients!$B$8,Nutrients!$ET$8,Nutrients!$ET$9)*I$7)+(((IF($A$8=Nutrients!$B$79,Nutrients!$ET$79,(IF($A$8=Nutrients!$B$77,Nutrients!$ET$77,Nutrients!$ET$78)))))*I$8))","v":900000},{"$f":"(SUMPRODUCT(J$9:J$229,Nutrients!$ET$8:$ET$228)+(IF($A$7=Nutrients!$B$8,Nutrients!$ET$8,Nutrients!$ET$9)*J$7)+(((IF($A$8=Nutrients!$B$79,Nutrients!$ET$79,(IF($A$8=Nutrients!$B$77,Nutrients!$ET$77,Nutrients!$ET$78)))))*J$8))","v":900000},{"$f":"(SUMPRODUCT(K$9:K$229,Nutrients!$ET$8:$ET$228)+(IF($A$7=Nutrients!$B$8,Nutrients!$ET$8,Nutrients!$ET$9)*K$7)+(((IF($A$8=Nutrients!$B$79,Nutrients!$ET$79,(IF($A$8=Nutrients!$B$77,Nutrients!$ET$77,Nutrients!$ET$78)))))*K$8))","v":750000},{"$f":"(SUMPRODUCT(L$9:L$229,Nutrients!$ET$8:$ET$228)+(IF($A$7=Nutrients!$B$8,Nutrients!$ET$8,Nutrients!$ET$9)*L$7)+(((IF($A$8=Nutrients!$B$79,Nutrients!$ET$79,(IF($A$8=Nutrients!$B$77,Nutrients!$ET$77,Nutrients!$ET$78)))))*L$8))","v":600000},{"$f":"(SUMPRODUCT(M$9:M$229,Nutrients!$ET$8:$ET$228)+(IF($A$7=Nutrients!$B$8,Nutrients!$ET$8,Nutrients!$ET$9)*M$7)+(((IF($A$8=Nutrients!$B$79,Nutrients!$ET$79,(IF($A$8=Nutrients!$B$77,Nutrients!$ET$77,Nutrients!$ET$78)))))*M$8))","v":450000},{"$f":"(SUMPRODUCT(N$9:N$229,Nutrients!$ET$8:$ET$228)+(IF($A$7=Nutrients!$B$8,Nutrients!$ET$8,Nutrients!$ET$9)*N$7)+(((IF($A$8=Nutrients!$B$79,Nutrients!$ET$79,(IF($A$8=Nutrients!$B$77,Nutrients!$ET$77,Nutrients!$ET$78)))))*N$8))","v":450000},null,{"$f":"(SUMPRODUCT(P$9:P$229,Nutrients!$ET$8:$ET$228)+(IF($A$7=Nutrients!$B$8,Nutrients!$ET$8,Nutrients!$ET$9)*P$7)+(((IF($A$8=Nutrients!$B$79,Nutrients!$ET$79,(IF($A$8=Nutrients!$B$77,Nutrients!$ET$77,Nutrients!$ET$78)))))*P$8))","v":900000},{"$f":"(SUMPRODUCT(Q$9:Q$229,Nutrients!$ET$8:$ET$228)+(IF($A$7=Nutrients!$B$8,Nutrients!$ET$8,Nutrients!$ET$9)*Q$7)+(((IF($A$8=Nutrients!$B$79,Nutrients!$ET$79,(IF($A$8=Nutrients!$B$77,Nutrients!$ET$77,Nutrients!$ET$78)))))*Q$8))","v":900000},{"$f":"(SUMPRODUCT(R$9:R$229,Nutrients!$ET$8:$ET$228)+(IF($A$7=Nutrients!$B$8,Nutrients!$ET$8,Nutrients!$ET$9)*R$7)+(((IF($A$8=Nutrients!$B$79,Nutrients!$ET$79,(IF($A$8=Nutrients!$B$77,Nutrients!$ET$77,Nutrients!$ET$78)))))*R$8))","v":750000},{"$f":"(SUMPRODUCT(S$9:S$229,Nutrients!$ET$8:$ET$228)+(IF($A$7=Nutrients!$B$8,Nutrients!$ET$8,Nutrients!$ET$9)*S$7)+(((IF($A$8=Nutrients!$B$79,Nutrients!$ET$79,(IF($A$8=Nutrients!$B$77,Nutrients!$ET$77,Nutrients!$ET$78)))))*S$8))","v":600000},{"$f":"(SUMPRODUCT(T$9:T$229,Nutrients!$ET$8:$ET$228)+(IF($A$7=Nutrients!$B$8,Nutrients!$ET$8,Nutrients!$ET$9)*T$7)+(((IF($A$8=Nutrients!$B$79,Nutrients!$ET$79,(IF($A$8=Nutrients!$B$77,Nutrients!$ET$77,Nutrients!$ET$78)))))*T$8))","v":450000},{"$f":"(SUMPRODUCT(U$9:U$229,Nutrients!$ET$8:$ET$228)+(IF($A$7=Nutrients!$B$8,Nutrients!$ET$8,Nutrients!$ET$9)*U$7)+(((IF($A$8=Nutrients!$B$79,Nutrients!$ET$79,(IF($A$8=Nutrients!$B$77,Nutrients!$ET$77,Nutrients!$ET$78)))))*U$8))","v":450000},null,{"$f":"(SUMPRODUCT(W$9:W$229,Nutrients!$ET$8:$ET$228)+(IF($A$7=Nutrients!$B$8,Nutrients!$ET$8,Nutrients!$ET$9)*W$7)+(((IF($A$8=Nutrients!$B$79,Nutrients!$ET$79,(IF($A$8=Nutrients!$B$77,Nutrients!$ET$77,Nutrients!$ET$78)))))*W$8))","v":900000},{"$f":"(SUMPRODUCT(X$9:X$229,Nutrients!$ET$8:$ET$228)+(IF($A$7=Nutrients!$B$8,Nutrients!$ET$8,Nutrients!$ET$9)*X$7)+(((IF($A$8=Nutrients!$B$79,Nutrients!$ET$79,(IF($A$8=Nutrients!$B$77,Nutrients!$ET$77,Nutrients!$ET$78)))))*X$8))","v":900000},{"$f":"(SUMPRODUCT(Y$9:Y$229,Nutrients!$ET$8:$ET$228)+(IF($A$7=Nutrients!$B$8,Nutrients!$ET$8,Nutrients!$ET$9)*Y$7)+(((IF($A$8=Nutrients!$B$79,Nutrients!$ET$79,(IF($A$8=Nutrients!$B$77,Nutrients!$ET$77,Nutrients!$ET$78)))))*Y$8))","v":750000},{"$f":"(SUMPRODUCT(Z$9:Z$229,Nutrients!$ET$8:$ET$228)+(IF($A$7=Nutrients!$B$8,Nutrients!$ET$8,Nutrients!$ET$9)*Z$7)+(((IF($A$8=Nutrients!$B$79,Nutrients!$ET$79,(IF($A$8=Nutrients!$B$77,Nutrients!$ET$77,Nutrients!$ET$78)))))*Z$8))","v":600000},{"$f":"(SUMPRODUCT(AA$9:AA$229,Nutrients!$ET$8:$ET$228)+(IF($A$7=Nutrients!$B$8,Nutrients!$ET$8,Nutrients!$ET$9)*AA$7)+(((IF($A$8=Nutrients!$B$79,Nutrients!$ET$79,(IF($A$8=Nutrients!$B$77,Nutrients!$ET$77,Nutrients!$ET$78)))))*AA$8))","v":450000},{"$f":"(SUMPRODUCT(AB$9:AB$229,Nutrients!$ET$8:$ET$228)+(IF($A$7=Nutrients!$B$8,Nutrients!$ET$8,Nutrients!$ET$9)*AB$7)+(((IF($A$8=Nutrients!$B$79,Nutrients!$ET$79,(IF($A$8=Nutrients!$B$77,Nutrients!$ET$77,Nutrients!$ET$78)))))*AB$8))","v":450000},null,{"$f":"(SUMPRODUCT(AD$9:AD$229,Nutrients!$ET$8:$ET$228)+(IF($A$7=Nutrients!$B$8,Nutrients!$ET$8,Nutrients!$ET$9)*AD$7)+(((IF($A$8=Nutrients!$B$79,Nutrients!$ET$79,(IF($A$8=Nutrients!$B$77,Nutrients!$ET$77,Nutrients!$ET$78)))))*AD$8))","v":900000},{"$f":"(SUMPRODUCT(AE$9:AE$229,Nutrients!$ET$8:$ET$228)+(IF($A$7=Nutrients!$B$8,Nutrients!$ET$8,Nutrients!$ET$9)*AE$7)+(((IF($A$8=Nutrients!$B$79,Nutrients!$ET$79,(IF($A$8=Nutrients!$B$77,Nutrients!$ET$77,Nutrients!$ET$78)))))*AE$8))","v":900000},{"$f":"(SUMPRODUCT(AF$9:AF$229,Nutrients!$ET$8:$ET$228)+(IF($A$7=Nutrients!$B$8,Nutrients!$ET$8,Nutrients!$ET$9)*AF$7)+(((IF($A$8=Nutrients!$B$79,Nutrients!$ET$79,(IF($A$8=Nutrients!$B$77,Nutrients!$ET$77,Nutrients!$ET$78)))))*AF$8))","v":750000},{"$f":"(SUMPRODUCT(AG$9:AG$229,Nutrients!$ET$8:$ET$228)+(IF($A$7=Nutrients!$B$8,Nutrients!$ET$8,Nutrients!$ET$9)*AG$7)+(((IF($A$8=Nutrients!$B$79,Nutrients!$ET$79,(IF($A$8=Nutrients!$B$77,Nutrients!$ET$77,Nutrients!$ET$78)))))*AG$8))","v":600000},{"$f":"(SUMPRODUCT(AH$9:AH$229,Nutrients!$ET$8:$ET$228)+(IF($A$7=Nutrients!$B$8,Nutrients!$ET$8,Nutrients!$ET$9)*AH$7)+(((IF($A$8=Nutrients!$B$79,Nutrients!$ET$79,(IF($A$8=Nutrients!$B$77,Nutrients!$ET$77,Nutrients!$ET$78)))))*AH$8))","v":450000},{"$f":"(SUMPRODUCT(AI$9:AI$229,Nutrients!$ET$8:$ET$228)+(IF($A$7=Nutrients!$B$8,Nutrients!$ET$8,Nutrients!$ET$9)*AI$7)+(((IF($A$8=Nutrients!$B$79,Nutrients!$ET$79,(IF($A$8=Nutrients!$B$77,Nutrients!$ET$77,Nutrients!$ET$78)))))*AI$8))","v":450000},null,{"$f":"(SUMPRODUCT(AK$9:AK$229,Nutrients!$ET$8:$ET$228)+(IF($A$7=Nutrients!$B$8,Nutrients!$ET$8,Nutrients!$ET$9)*AK$7)+(((IF($A$8=Nutrients!$B$79,Nutrients!$ET$79,(IF($A$8=Nutrients!$B$77,Nutrients!$ET$77,Nutrients!$ET$78)))))*AK$8))","v":900000},{"$f":"(SUMPRODUCT(AL$9:AL$229,Nutrients!$ET$8:$ET$228)+(IF($A$7=Nutrients!$B$8,Nutrients!$ET$8,Nutrients!$ET$9)*AL$7)+(((IF($A$8=Nutrients!$B$79,Nutrients!$ET$79,(IF($A$8=Nutrients!$B$77,Nutrients!$ET$77,Nutrients!$ET$78)))))*AL$8))","v":900000},{"$f":"(SUMPRODUCT(AM$9:AM$229,Nutrients!$ET$8:$ET$228)+(IF($A$7=Nutrients!$B$8,Nutrients!$ET$8,Nutrients!$ET$9)*AM$7)+(((IF($A$8=Nutrients!$B$79,Nutrients!$ET$79,(IF($A$8=Nutrients!$B$77,Nutrients!$ET$77,Nutrients!$ET$78)))))*AM$8))","v":750000},{"$f":"(SUMPRODUCT(AN$9:AN$229,Nutrients!$ET$8:$ET$228)+(IF($A$7=Nutrients!$B$8,Nutrients!$ET$8,Nutrients!$ET$9)*AN$7)+(((IF($A$8=Nutrients!$B$79,Nutrients!$ET$79,(IF($A$8=Nutrients!$B$77,Nutrients!$ET$77,Nutrients!$ET$78)))))*AN$8))","v":600000},{"$f":"(SUMPRODUCT(AO$9:AO$229,Nutrients!$ET$8:$ET$228)+(IF($A$7=Nutrients!$B$8,Nutrients!$ET$8,Nutrients!$ET$9)*AO$7)+(((IF($A$8=Nutrients!$B$79,Nutrients!$ET$79,(IF($A$8=Nutrients!$B$77,Nutrients!$ET$77,Nutrients!$ET$78)))))*AO$8))","v":450000},{"$f":"(SUMPRODUCT(AP$9:AP$229,Nutrients!$ET$8:$ET$228)+(IF($A$7=Nutrients!$B$8,Nutrients!$ET$8,Nutrients!$ET$9)*AP$7)+(((IF($A$8=Nutrients!$B$79,Nutrients!$ET$79,(IF($A$8=Nutrients!$B$77,Nutrients!$ET$77,Nutrients!$ET$78)))))*AP$8))","v":450000},null,{"$f":"(SUMPRODUCT(AR$9:AR$229,Nutrients!$ET$8:$ET$228)+(IF($A$7=Nutrients!$B$8,Nutrients!$ET$8,Nutrients!$ET$9)*AR$7)+(((IF($A$8=Nutrients!$B$79,Nutrients!$ET$79,(IF($A$8=Nutrients!$B$77,Nutrients!$ET$77,Nutrients!$ET$78)))))*AR$8))","v":900000},{"$f":"(SUMPRODUCT(AS$9:AS$229,Nutrients!$ET$8:$ET$228)+(IF($A$7=Nutrients!$B$8,Nutrients!$ET$8,Nutrients!$ET$9)*AS$7)+(((IF($A$8=Nutrients!$B$79,Nutrients!$ET$79,(IF($A$8=Nutrients!$B$77,Nutrients!$ET$77,Nutrients!$ET$78)))))*AS$8))","v":900000},{"$f":"(SUMPRODUCT(AT$9:AT$229,Nutrients!$ET$8:$ET$228)+(IF($A$7=Nutrients!$B$8,Nutrients!$ET$8,Nutrients!$ET$9)*AT$7)+(((IF($A$8=Nutrients!$B$79,Nutrients!$ET$79,(IF($A$8=Nutrients!$B$77,Nutrients!$ET$77,Nutrients!$ET$78)))))*AT$8))","v":750000},{"$f":"(SUMPRODUCT(AU$9:AU$229,Nutrients!$ET$8:$ET$228)+(IF($A$7=Nutrients!$B$8,Nutrients!$ET$8,Nutrients!$ET$9)*AU$7)+(((IF($A$8=Nutrients!$B$79,Nutrients!$ET$79,(IF($A$8=Nutrients!$B$77,Nutrients!$ET$77,Nutrients!$ET$78)))))*AU$8))","v":600000},{"$f":"(SUMPRODUCT(AV$9:AV$229,Nutrients!$ET$8:$ET$228)+(IF($A$7=Nutrients!$B$8,Nutrients!$ET$8,Nutrients!$ET$9)*AV$7)+(((IF($A$8=Nutrients!$B$79,Nutrients!$ET$79,(IF($A$8=Nutrients!$B$77,Nutrients!$ET$77,Nutrients!$ET$78)))))*AV$8))","v":450000},{"$f":"(SUMPRODUCT(AW$9:AW$229,Nutrients!$ET$8:$ET$228)+(IF($A$7=Nutrients!$B$8,Nutrients!$ET$8,Nutrients!$ET$9)*AW$7)+(((IF($A$8=Nutrients!$B$79,Nutrients!$ET$79,(IF($A$8=Nutrients!$B$77,Nutrients!$ET$77,Nutrients!$ET$78)))))*AW$8))","v":450000}]
["  Vit E, IU/ton",{"$f":"(SUMPRODUCT(B$9:B$229,Nutrients!$EU$8:$EU$228)+(IF($A$7=Nutrients!$B$8,Nutrients!$EU$8,Nutrients!$EU$9)*B$7)+(((IF($A$8=Nutrients!$B$79,Nutrients!$EU$79,(IF($A$8=Nutrients!$B$77,Nutrients!$EU$77,Nutrients!$EU$78)))))*B$8))","v":24000},{"$f":"(SUMPRODUCT(C$9:C$229,Nutrients!$EU$8:$EU$228)+(IF($A$7=Nutrients!$B$8,Nutrients!$EU$8,Nutrients!$EU$9)*C$7)+(((IF($A$8=Nutrients!$B$79,Nutrients!$EU$79,(IF($A$8=Nutrients!$B$77,Nutrients!$EU$77,Nutrients!$EU$78)))))*C$8))","v":24000},{"$f":"(SUMPRODUCT(D$9:D$229,Nutrients!$EU$8:$EU$228)+(IF($A$7=Nutrients!$B$8,Nutrients!$EU$8,Nutrients!$EU$9)*D$7)+(((IF($A$8=Nutrients!$B$79,Nutrients!$EU$79,(IF($A$8=Nutrients!$B$77,Nutrients!$EU$77,Nutrients!$EU$78)))))*D$8))","v":20000},{"$f":"(SUMPRODUCT(E$9:E$229,Nutrients!$EU$8:$EU$228)+(IF($A$7=Nutrients!$B$8,Nutrients!$EU$8,Nutrients!$EU$9)*E$7)+(((IF($A$8=Nutrients!$B$79,Nutrients!$EU$79,(IF($A$8=Nutrients!$B$77,Nutrients!$EU$77,Nutrients!$EU$78)))))*E$8))","v":16000},{"$f":"(SUMPRODUCT(F$9:F$229,Nutrients!$EU$8:$EU$228)+(IF($A$7=Nutrients!$B$8,Nutrients!$EU$8,Nutrients!$EU$9)*F$7)+(((IF($A$8=Nutrients!$B$79,Nutrients!$EU$79,(IF($A$8=Nutrients!$B$77,Nutrients!$EU$77,Nutrients!$EU$78)))))*F$8))","v":12000},{"$f":"(SUMPRODUCT(G$9:G$229,Nutrients!$EU$8:$EU$228)+(IF($A$7=Nutrients!$B$8,Nutrients!$EU$8,Nutrients!$EU$9)*G$7)+(((IF($A$8=Nutrients!$B$79,Nutrients!$EU$79,(IF($A$8=Nutrients!$B$77,Nutrients!$EU$77,Nutrients!$EU$78)))))*G$8))","v":12000},null,{"$f":"(SUMPRODUCT(I$9:I$229,Nutrients!$EU$8:$EU$228)+(IF($A$7=Nutrients!$B$8,Nutrients!$EU$8,Nutrients!$EU$9)*I$7)+(((IF($A$8=Nutrients!$B$79,Nutrients!$EU$79,(IF($A$8=Nutrients!$B$77,Nutrients!$EU$77,Nutrients!$EU$78)))))*I$8))","v":24000},{"$f":"(SUMPRODUCT(J$9:J$229,Nutrients!$EU$8:$EU$228)+(IF($A$7=Nutrients!$B$8,Nutrients!$EU$8,Nutrients!$EU$9)*J$7)+(((IF($A$8=Nutrients!$B$79,Nutrients!$EU$79,(IF($A$8=Nutrients!$B$77,Nutrients!$EU$77,Nutrients!$EU$78)))))*J$8))","v":24000},{"$f":"(SUMPRODUCT(K$9:K$229,Nutrients!$EU$8:$EU$228)+(IF($A$7=Nutrients!$B$8,Nutrients!$EU$8,Nutrients!$EU$9)*K$7)+(((IF($A$8=Nutrients!$B$79,Nutrients!$EU$79,(IF($A$8=Nutrients!$B$77,Nutrients!$EU$77,Nutrients!$EU$78)))))*K$8))","v":20000},{"$f":"(SUMPRODUCT(L$9:L$229,Nutrients!$EU$8:$EU$228)+(IF($A$7=Nutrients!$B$8,Nutrients!$EU$8,Nutrients!$EU$9)*L$7)+(((IF($A$8=Nutrients!$B$79,Nutrients!$EU$79,(IF($A$8=Nutrients!$B$77,Nutrients!$EU$77,Nutrients!$EU$78)))))*L$8))","v":16000},{"$f":"(SUMPRODUCT(M$9:M$229,Nutrients!$EU$8:$EU$228)+(IF($A$7=Nutrients!$B$8,Nutrients!$EU$8,Nutrients!$EU$9)*M$7)+(((IF($A$8=Nutrients!$B$79,Nutrients!$EU$79,(IF($A$8=Nutrients!$B$77,Nutrients!$EU$77,Nutrients!$EU$78)))))*M$8))","v":12000},{"$f":"(SUMPRODUCT(N$9:N$229,Nutrients!$EU$8:$EU$228)+(IF($A$7=Nutrients!$B$8,Nutrients!$EU$8,Nutrients!$EU$9)*N$7)+(((IF($A$8=Nutrients!$B$79,Nutrients!$EU$79,(IF($A$8=Nutrients!$B$77,Nutrients!$EU$77,Nutrients!$EU$78)))))*N$8))","v":12000},null,{"$f":"(SUMPRODUCT(P$9:P$229,Nutrients!$EU$8:$EU$228)+(IF($A$7=Nutrients!$B$8,Nutrients!$EU$8,Nutrients!$EU$9)*P$7)+(((IF($A$8=Nutrients!$B$79,Nutrients!$EU$79,(IF($A$8=Nutrients!$B$77,Nutrients!$EU$77,Nutrients!$EU$78)))))*P$8))","v":24000},{"$f":"(SUMPRODUCT(Q$9:Q$229,Nutrients!$EU$8:$EU$228)+(IF($A$7=Nutrients!$B$8,Nutrients!$EU$8,Nutrients!$EU$9)*Q$7)+(((IF($A$8=Nutrients!$B$79,Nutrients!$EU$79,(IF($A$8=Nutrients!$B$77,Nutrients!$EU$77,Nutrients!$EU$78)))))*Q$8))","v":24000},{"$f":"(SUMPRODUCT(R$9:R$229,Nutrients!$EU$8:$EU$228)+(IF($A$7=Nutrients!$B$8,Nutrients!$EU$8,Nutrients!$EU$9)*R$7)+(((IF($A$8=Nutrients!$B$79,Nutrients!$EU$79,(IF($A$8=Nutrients!$B$77,Nutrients!$EU$77,Nutrients!$EU$78)))))*R$8))","v":20000},{"$f":"(SUMPRODUCT(S$9:S$229,Nutrients!$EU$8:$EU$228)+(IF($A$7=Nutrients!$B$8,Nutrients!$EU$8,Nutrients!$EU$9)*S$7)+(((IF($A$8=Nutrients!$B$79,Nutrients!$EU$79,(IF($A$8=Nutrients!$B$77,Nutrients!$EU$77,Nutrients!$EU$78)))))*S$8))","v":16000},{"$f":"(SUMPRODUCT(T$9:T$229,Nutrients!$EU$8:$EU$228)+(IF($A$7=Nutrients!$B$8,Nutrients!$EU$8,Nutrients!$EU$9)*T$7)+(((IF($A$8=Nutrients!$B$79,Nutrients!$EU$79,(IF($A$8=Nutrients!$B$77,Nutrients!$EU$77,Nutrients!$EU$78)))))*T$8))","v":12000},{"$f":"(SUMPRODUCT(U$9:U$229,Nutrients!$EU$8:$EU$228)+(IF($A$7=Nutrients!$B$8,Nutrients!$EU$8,Nutrients!$EU$9)*U$7)+(((IF($A$8=Nutrients!$B$79,Nutrients!$EU$79,(IF($A$8=Nutrients!$B$77,Nutrients!$EU$77,Nutrients!$EU$78)))))*U$8))","v":12000},null,{"$f":"(SUMPRODUCT(W$9:W$229,Nutrients!$EU$8:$EU$228)+(IF($A$7=Nutrients!$B$8,Nutrients!$EU$8,Nutrients!$EU$9)*W$7)+(((IF($A$8=Nutrients!$B$79,Nutrients!$EU$79,(IF($A$8=Nutrients!$B$77,Nutrients!$EU$77,Nutrients!$EU$78)))))*W$8))","v":24000},{"$f":"(SUMPRODUCT(X$9:X$229,Nutrients!$EU$8:$EU$228)+(IF($A$7=Nutrients!$B$8,Nutrients!$EU$8,Nutrients!$EU$9)*X$7)+(((IF($A$8=Nutrients!$B$79,Nutrients!$EU$79,(IF($A$8=Nutrients!$B$77,Nutrients!$EU$77,Nutrients!$EU$78)))))*X$8))","v":24000},{"$f":"(SUMPRODUCT(Y$9:Y$229,Nutrients!$EU$8:$EU$228)+(IF($A$7=Nutrients!$B$8,Nutrients!$EU$8,Nutrients!$EU$9)*Y$7)+(((IF($A$8=Nutrients!$B$79,Nutrients!$EU$79,(IF($A$8=Nutrients!$B$77,Nutrients!$EU$77,Nutrients!$EU$78)))))*Y$8))","v":20000},{"$f":"(SUMPRODUCT(Z$9:Z$229,Nutrients!$EU$8:$EU$228)+(IF($A$7=Nutrients!$B$8,Nutrients!$EU$8,Nutrients!$EU$9)*Z$7)+(((IF($A$8=Nutrients!$B$79,Nutrients!$EU$79,(IF($A$8=Nutrients!$B$77,Nutrients!$EU$77,Nutrients!$EU$78)))))*Z$8))","v":16000},{"$f":"(SUMPRODUCT(AA$9:AA$229,Nutrients!$EU$8:$EU$228)+(IF($A$7=Nutrients!$B$8,Nutrients!$EU$8,Nutrients!$EU$9)*AA$7)+(((IF($A$8=Nutrients!$B$79,Nutrients!$EU$79,(IF($A$8=Nutrients!$B$77,Nutrients!$EU$77,Nutrients!$EU$78)))))*AA$8))","v":12000},{"$f":"(SUMPRODUCT(AB$9:AB$229,Nutrients!$EU$8:$EU$228)+(IF($A$7=Nutrients!$B$8,Nutrients!$EU$8,Nutrients!$EU$9)*AB$7)+(((IF($A$8=Nutrients!$B$79,Nutrients!$EU$79,(IF($A$8=Nutrients!$B$77,Nutrients!$EU$77,Nutrients!$EU$78)))))*AB$8))","v":12000},null,{"$f":"(SUMPRODUCT(AD$9:AD$229,Nutrients!$EU$8:$EU$228)+(IF($A$7=Nutrients!$B$8,Nutrients!$EU$8,Nutrients!$EU$9)*AD$7)+(((IF($A$8=Nutrients!$B$79,Nutrients!$EU$79,(IF($A$8=Nutrients!$B$77,Nutrients!$EU$77,Nutrients!$EU$78)))))*AD$8))","v":24000},{"$f":"(SUMPRODUCT(AE$9:AE$229,Nutrients!$EU$8:$EU$228)+(IF($A$7=Nutrients!$B$8,Nutrients!$EU$8,Nutrients!$EU$9)*AE$7)+(((IF($A$8=Nutrients!$B$79,Nutrients!$EU$79,(IF($A$8=Nutrients!$B$77,Nutrients!$EU$77,Nutrients!$EU$78)))))*AE$8))","v":24000},{"$f":"(SUMPRODUCT(AF$9:AF$229,Nutrients!$EU$8:$EU$228)+(IF($A$7=Nutrients!$B$8,Nutrients!$EU$8,Nutrients!$EU$9)*AF$7)+(((IF($A$8=Nutrients!$B$79,Nutrients!$EU$79,(IF($A$8=Nutrients!$B$77,Nutrients!$EU$77,Nutrients!$EU$78)))))*AF$8))","v":20000},{"$f":"(SUMPRODUCT(AG$9:AG$229,Nutrients!$EU$8:$EU$228)+(IF($A$7=Nutrients!$B$8,Nutrients!$EU$8,Nutrients!$EU$9)*AG$7)+(((IF($A$8=Nutrients!$B$79,Nutrients!$EU$79,(IF($A$8=Nutrients!$B$77,Nutrients!$EU$77,Nutrients!$EU$78)))))*AG$8))","v":16000},{"$f":"(SUMPRODUCT(AH$9:AH$229,Nutrients!$EU$8:$EU$228)+(IF($A$7=Nutrients!$B$8,Nutrients!$EU$8,Nutrients!$EU$9)*AH$7)+(((IF($A$8=Nutrients!$B$79,Nutrients!$EU$79,(IF($A$8=Nutrients!$B$77,Nutrients!$EU$77,Nutrients!$EU$78)))))*AH$8))","v":12000},{"$f":"(SUMPRODUCT(AI$9:AI$229,Nutrients!$EU$8:$EU$228)+(IF($A$7=Nutrients!$B$8,Nutrients!$EU$8,Nutrients!$EU$9)*AI$7)+(((IF($A$8=Nutrients!$B$79,Nutrients!$EU$79,(IF($A$8=Nutrients!$B$77,Nutrients!$EU$77,Nutrients!$EU$78)))))*AI$8))","v":12000},null,{"$f":"(SUMPRODUCT(AK$9:AK$229,Nutrients!$EU$8:$EU$228)+(IF($A$7=Nutrients!$B$8,Nutrients!$EU$8,Nutrients!$EU$9)*AK$7)+(((IF($A$8=Nutrients!$B$79,Nutrients!$EU$79,(IF($A$8=Nutrients!$B$77,Nutrients!$EU$77,Nutrients!$EU$78)))))*AK$8))","v":24000},{"$f":"(SUMPRODUCT(AL$9:AL$229,Nutrients!$EU$8:$EU$228)+(IF($A$7=Nutrients!$B$8,Nutrients!$EU$8,Nutrients!$EU$9)*AL$7)+(((IF($A$8=Nutrients!$B$79,Nutrients!$EU$79,(IF($A$8=Nutrients!$B$77,Nutrients!$EU$77,Nutrients!$EU$78)))))*AL$8))","v":24000},{"$f":"(SUMPRODUCT(AM$9:AM$229,Nutrients!$EU$8:$EU$228)+(IF($A$7=Nutrients!$B$8,Nutrients!$EU$8,Nutrients!$EU$9)*AM$7)+(((IF($A$8=Nutrients!$B$79,Nutrients!$EU$79,(IF($A$8=Nutrients!$B$77,Nutrients!$EU$77,Nutrients!$EU$78)))))*AM$8))","v":20000},{"$f":"(SUMPRODUCT(AN$9:AN$229,Nutrients!$EU$8:$EU$228)+(IF($A$7=Nutrients!$B$8,Nutrients!$EU$8,Nutrients!$EU$9)*AN$7)+(((IF($A$8=Nutrients!$B$79,Nutrients!$EU$79,(IF($A$8=Nutrients!$B$77,Nutrients!$EU$77,Nutrients!$EU$78)))))*AN$8))","v":16000},{"$f":"(SUMPRODUCT(AO$9:AO$229,Nutrients!$EU$8:$EU$228)+(IF($A$7=Nutrients!$B$8,Nutrients!$EU$8,Nutrients!$EU$9)*AO$7)+(((IF($A$8=Nutrients!$B$79,Nutrients!$EU$79,(IF($A$8=Nutrients!$B$77,Nutrients!$EU$77,Nutrients!$EU$78)))))*AO$8))","v":12000},{"$f":"(SUMPRODUCT(AP$9:AP$229,Nutrients!$EU$8:$EU$228)+(IF($A$7=Nutrients!$B$8,Nutrients!$EU$8,Nutrients!$EU$9)*AP$7)+(((IF($A$8=Nutrients!$B$79,Nutrients!$EU$79,(IF($A$8=Nutrients!$B$77,Nutrients!$EU$77,Nutrients!$EU$78)))))*AP$8))","v":12000},null,{"$f":"(SUMPRODUCT(AR$9:AR$229,Nutrients!$EU$8:$EU$228)+(IF($A$7=Nutrients!$B$8,Nutrients!$EU$8,Nutrients!$EU$9)*AR$7)+(((IF($A$8=Nutrients!$B$79,Nutrients!$EU$79,(IF($A$8=Nutrients!$B$77,Nutrients!$EU$77,Nutrients!$EU$78)))))*AR$8))","v":24000},{"$f":"(SUMPRODUCT(AS$9:AS$229,Nutrients!$EU$8:$EU$228)+(IF($A$7=Nutrients!$B$8,Nutrients!$EU$8,Nutrients!$EU$9)*AS$7)+(((IF($A$8=Nutrients!$B$79,Nutrients!$EU$79,(IF($A$8=Nutrients!$B$77,Nutrients!$EU$77,Nutrients!$EU$78)))))*AS$8))","v":24000},{"$f":"(SUMPRODUCT(AT$9:AT$229,Nutrients!$EU$8:$EU$228)+(IF($A$7=Nutrients!$B$8,Nutrients!$EU$8,Nutrients!$EU$9)*AT$7)+(((IF($A$8=Nutrients!$B$79,Nutrients!$EU$79,(IF($A$8=Nutrients!$B$77,Nutrients!$EU$77,Nutrients!$EU$78)))))*AT$8))","v":20000},{"$f":"(SUMPRODUCT(AU$9:AU$229,Nutrients!$EU$8:$EU$228)+(IF($A$7=Nutrients!$B$8,Nutrients!$EU$8,Nutrients!$EU$9)*AU$7)+(((IF($A$8=Nutrients!$B$79,Nutrients!$EU$79,(IF($A$8=Nutrients!$B$77,Nutrients!$EU$77,Nutrients!$EU$78)))))*AU$8))","v":16000},{"$f":"(SUMPRODUCT(AV$9:AV$229,Nutrients!$EU$8:$EU$228)+(IF($A$7=Nutrients!$B$8,Nutrients!$EU$8,Nutrients!$EU$9)*AV$7)+(((IF($A$8=Nutrients!$B$79,Nutrients!$EU$79,(IF($A$8=Nutrients!$B$77,Nutrients!$EU$77,Nutrients!$EU$78)))))*AV$8))","v":12000},{"$f":"(SUMPRODUCT(AW$9:AW$229,Nutrients!$EU$8:$EU$228)+(IF($A$7=Nutrients!$B$8,Nutrients!$EU$8,Nutrients!$EU$9)*AW$7)+(((IF($A$8=Nutrients!$B$79,Nutrients!$EU$79,(IF($A$8=Nutrients!$B$77,Nutrients!$EU$77,Nutrients!$EU$78)))))*AW$8))","v":12000}]
["  Vit K (menadione), mg/ton",{"$f":"(SUMPRODUCT(B$9:B$229,Nutrients!$EV$8:$EV$228)+(IF($A$7=Nutrients!$B$8,Nutrients!$EV$8,Nutrients!$EV$9)*B$7)+(((IF($A$8=Nutrients!$B$79,Nutrients!$EV$79,(IF($A$8=Nutrients!$B$77,Nutrients!$EV$77,Nutrients!$EV$78)))))*B$8))","v":1800},{"$f":"(SUMPRODUCT(C$9:C$229,Nutrients!$EV$8:$EV$228)+(IF($A$7=Nutrients!$B$8,Nutrients!$EV$8,Nutrients!$EV$9)*C$7)+(((IF($A$8=Nutrients!$B$79,Nutrients!$EV$79,(IF($A$8=Nutrients!$B$77,Nutrients!$EV$77,Nutrients!$EV$78)))))*C$8))","v":1800},{"$f":"(SUMPRODUCT(D$9:D$229,Nutrients!$EV$8:$EV$228)+(IF($A$7=Nutrients!$B$8,Nutrients!$EV$8,Nutrients!$EV$9)*D$7)+(((IF($A$8=Nutrients!$B$79,Nutrients!$EV$79,(IF($A$8=Nutrients!$B$77,Nutrients!$EV$77,Nutrients!$EV$78)))))*D$8))","v":1500},{"$f":"(SUMPRODUCT(E$9:E$229,Nutrients!$EV$8:$EV$228)+(IF($A$7=Nutrients!$B$8,Nutrients!$EV$8,Nutrients!$EV$9)*E$7)+(((IF($A$8=Nutrients!$B$79,Nutrients!$EV$79,(IF($A$8=Nutrients!$B$77,Nutrients!$EV$77,Nutrients!$EV$78)))))*E$8))","v":1200},{"$f":"(SUMPRODUCT(F$9:F$229,Nutrients!$EV$8:$EV$228)+(IF($A$7=Nutrients!$B$8,Nutrients!$EV$8,Nutrients!$EV$9)*F$7)+(((IF($A$8=Nutrients!$B$79,Nutrients!$EV$79,(IF($A$8=Nutrients!$B$77,Nutrients!$EV$77,Nutrients!$EV$78)))))*F$8))","v":900},{"$f":"(SUMPRODUCT(G$9:G$229,Nutrients!$EV$8:$EV$228)+(IF($A$7=Nutrients!$B$8,Nutrients!$EV$8,Nutrients!$EV$9)*G$7)+(((IF($A$8=Nutrients!$B$79,Nutrients!$EV$79,(IF($A$8=Nutrients!$B$77,Nutrients!$EV$77,Nutrients!$EV$78)))))*G$8))","v":900},null,{"$f":"(SUMPRODUCT(I$9:I$229,Nutrients!$EV$8:$EV$228)+(IF($A$7=Nutrients!$B$8,Nutrients!$EV$8,Nutrients!$EV$9)*I$7)+(((IF($A$8=Nutrients!$B$79,Nutrients!$EV$79,(IF($A$8=Nutrients!$B$77,Nutrients!$EV$77,Nutrients!$EV$78)))))*I$8))","v":1800},{"$f":"(SUMPRODUCT(J$9:J$229,Nutrients!$EV$8:$EV$228)+(IF($A$7=Nutrients!$B$8,Nutrients!$EV$8,Nutrients!$EV$9)*J$7)+(((IF($A$8=Nutrients!$B$79,Nutrients!$EV$79,(IF($A$8=Nutrients!$B$77,Nutrients!$EV$77,Nutrients!$EV$78)))))*J$8))","v":1800},{"$f":"(SUMPRODUCT(K$9:K$229,Nutrients!$EV$8:$EV$228)+(IF($A$7=Nutrients!$B$8,Nutrients!$EV$8,Nutrients!$EV$9)*K$7)+(((IF($A$8=Nutrients!$B$79,Nutrients!$EV$79,(IF($A$8=Nutrients!$B$77,Nutrients!$EV$77,Nutrients!$EV$78)))))*K$8))","v":1500},{"$f":"(SUMPRODUCT(L$9:L$229,Nutrients!$EV$8:$EV$228)+(IF($A$7=Nutrients!$B$8,Nutrients!$EV$8,Nutrients!$EV$9)*L$7)+(((IF($A$8=Nutrients!$B$79,Nutrients!$EV$79,(IF($A$8=Nutrients!$B$77,Nutrients!$EV$77,Nutrients!$EV$78)))))*L$8))","v":1200},{"$f":"(SUMPRODUCT(M$9:M$229,Nutrients!$EV$8:$EV$228)+(IF($A$7=Nutrients!$B$8,Nutrients!$EV$8,Nutrients!$EV$9)*M$7)+(((IF($A$8=Nutrients!$B$79,Nutrients!$EV$79,(IF($A$8=Nutrients!$B$77,Nutrients!$EV$77,Nutrients!$EV$78)))))*M$8))","v":900},{"$f":"(SUMPRODUCT(N$9:N$229,Nutrients!$EV$8:$EV$228)+(IF($A$7=Nutrients!$B$8,Nutrients!$EV$8,Nutrients!$EV$9)*N$7)+(((IF($A$8=Nutrients!$B$79,Nutrients!$EV$79,(IF($A$8=Nutrients!$B$77,Nutrients!$EV$77,Nutrients!$EV$78)))))*N$8))","v":900},null,{"$f":"(SUMPRODUCT(P$9:P$229,Nutrients!$EV$8:$EV$228)+(IF($A$7=Nutrients!$B$8,Nutrients!$EV$8,Nutrients!$EV$9)*P$7)+(((IF($A$8=Nutrients!$B$79,Nutrients!$EV$79,(IF($A$8=Nutrients!$B$77,Nutrients!$EV$77,Nutrients!$EV$78)))))*P$8))","v":1800},{"$f":"(SUMPRODUCT(Q$9:Q$229,Nutrients!$EV$8:$EV$228)+(IF($A$7=Nutrients!$B$8,Nutrients!$EV$8,Nutrients!$EV$9)*Q$7)+(((IF($A$8=Nutrients!$B$79,Nutrients!$EV$79,(IF($A$8=Nutrients!$B$77,Nutrients!$EV$77,Nutrients!$EV$78)))))*Q$8))","v":1800},{"$f":"(SUMPRODUCT(R$9:R$229,Nutrients!$EV$8:$EV$228)+(IF($A$7=Nutrients!$B$8,Nutrients!$EV$8,Nutrients!$EV$9)*R$7)+(((IF($A$8=Nutrients!$B$79,Nutrients!$EV$79,(IF($A$8=Nutrients!$B$77,Nutrients!$EV$77,Nutrients!$EV$78)))))*R$8))","v":1500},{"$f":"(SUMPRODUCT(S$9:S$229,Nutrients!$EV$8:$EV$228)+(IF($A$7=Nutrients!$B$8,Nutrients!$EV$8,Nutrients!$EV$9)*S$7)+(((IF($A$8=Nutrients!$B$79,Nutrients!$EV$79,(IF($A$8=Nutrients!$B$77,Nutrients!$EV$77,Nutrients!$EV$78)))))*S$8))","v":1200},{"$f":"(SUMPRODUCT(T$9:T$229,Nutrients!$EV$8:$EV$228)+(IF($A$7=Nutrients!$B$8,Nutrients!$EV$8,Nutrients!$EV$9)*T$7)+(((IF($A$8=Nutrients!$B$79,Nutrients!$EV$79,(IF($A$8=Nutrients!$B$77,Nutrients!$EV$77,Nutrients!$EV$78)))))*T$8))","v":900},{"$f":"(SUMPRODUCT(U$9:U$229,Nutrients!$EV$8:$EV$228)+(IF($A$7=Nutrients!$B$8,Nutrients!$EV$8,Nutrients!$EV$9)*U$7)+(((IF($A$8=Nutrients!$B$79,Nutrients!$EV$79,(IF($A$8=Nutrients!$B$77,Nutrients!$EV$77,Nutrients!$EV$78)))))*U$8))","v":900},null,{"$f":"(SUMPRODUCT(W$9:W$229,Nutrients!$EV$8:$EV$228)+(IF($A$7=Nutrients!$B$8,Nutrients!$EV$8,Nutrients!$EV$9)*W$7)+(((IF($A$8=Nutrients!$B$79,Nutrients!$EV$79,(IF($A$8=Nutrients!$B$77,Nutrients!$EV$77,Nutrients!$EV$78)))))*W$8))","v":1800},{"$f":"(SUMPRODUCT(X$9:X$229,Nutrients!$EV$8:$EV$228)+(IF($A$7=Nutrients!$B$8,Nutrients!$EV$8,Nutrients!$EV$9)*X$7)+(((IF($A$8=Nutrients!$B$79,Nutrients!$EV$79,(IF($A$8=Nutrients!$B$77,Nutrients!$EV$77,Nutrients!$EV$78)))))*X$8))","v":1800},{"$f":"(SUMPRODUCT(Y$9:Y$229,Nutrients!$EV$8:$EV$228)+(IF($A$7=Nutrients!$B$8,Nutrients!$EV$8,Nutrients!$EV$9)*Y$7)+(((IF($A$8=Nutrients!$B$79,Nutrients!$EV$79,(IF($A$8=Nutrients!$B$77,Nutrients!$EV$77,Nutrients!$EV$78)))))*Y$8))","v":1500},{"$f":"(SUMPRODUCT(Z$9:Z$229,Nutrients!$EV$8:$EV$228)+(IF($A$7=Nutrients!$B$8,Nutrients!$EV$8,Nutrients!$EV$9)*Z$7)+(((IF($A$8=Nutrients!$B$79,Nutrients!$EV$79,(IF($A$8=Nutrients!$B$77,Nutrients!$EV$77,Nutrients!$EV$78)))))*Z$8))","v":1200},{"$f":"(SUMPRODUCT(AA$9:AA$229,Nutrients!$EV$8:$EV$228)+(IF($A$7=Nutrients!$B$8,Nutrients!$EV$8,Nutrients!$EV$9)*AA$7)+(((IF($A$8=Nutrients!$B$79,Nutrients!$EV$79,(IF($A$8=Nutrients!$B$77,Nutrients!$EV$77,Nutrients!$EV$78)))))*AA$8))","v":900},{"$f":"(SUMPRODUCT(AB$9:AB$229,Nutrients!$EV$8:$EV$228)+(IF($A$7=Nutrients!$B$8,Nutrients!$EV$8,Nutrients!$EV$9)*AB$7)+(((IF($A$8=Nutrients!$B$79,Nutrients!$EV$79,(IF($A$8=Nutrients!$B$77,Nutrients!$EV$77,Nutrients!$EV$78)))))*AB$8))","v":900},null,{"$f":"(SUMPRODUCT(AD$9:AD$229,Nutrients!$EV$8:$EV$228)+(IF($A$7=Nutrients!$B$8,Nutrients!$EV$8,Nutrients!$EV$9)*AD$7)+(((IF($A$8=Nutrients!$B$79,Nutrients!$EV$79,(IF($A$8=Nutrients!$B$77,Nutrients!$EV$77,Nutrients!$EV$78)))))*AD$8))","v":1800},{"$f":"(SUMPRODUCT(AE$9:AE$229,Nutrients!$EV$8:$EV$228)+(IF($A$7=Nutrients!$B$8,Nutrients!$EV$8,Nutrients!$EV$9)*AE$7)+(((IF($A$8=Nutrients!$B$79,Nutrients!$EV$79,(IF($A$8=Nutrients!$B$77,Nutrients!$EV$77,Nutrients!$EV$78)))))*AE$8))","v":1800},{"$f":"(SUMPRODUCT(AF$9:AF$229,Nutrients!$EV$8:$EV$228)+(IF($A$7=Nutrients!$B$8,Nutrients!$EV$8,Nutrients!$EV$9)*AF$7)+(((IF($A$8=Nutrients!$B$79,Nutrients!$EV$79,(IF($A$8=Nutrients!$B$77,Nutrients!$EV$77,Nutrients!$EV$78)))))*AF$8))","v":1500},{"$f":"(SUMPRODUCT(AG$9:AG$229,Nutrients!$EV$8:$EV$228)+(IF($A$7=Nutrients!$B$8,Nutrients!$EV$8,Nutrients!$EV$9)*AG$7)+(((IF($A$8=Nutrients!$B$79,Nutrients!$EV$79,(IF($A$8=Nutrients!$B$77,Nutrients!$EV$77,Nutrients!$EV$78)))))*AG$8))","v":1200},{"$f":"(SUMPRODUCT(AH$9:AH$229,Nutrients!$EV$8:$EV$228)+(IF($A$7=Nutrients!$B$8,Nutrients!$EV$8,Nutrients!$EV$9)*AH$7)+(((IF($A$8=Nutrients!$B$79,Nutrients!$EV$79,(IF($A$8=Nutrients!$B$77,Nutrients!$EV$77,Nutrients!$EV$78)))))*AH$8))","v":900},{"$f":"(SUMPRODUCT(AI$9:AI$229,Nutrients!$EV$8:$EV$228)+(IF($A$7=Nutrients!$B$8,Nutrients!$EV$8,Nutrients!$EV$9)*AI$7)+(((IF($A$8=Nutrients!$B$79,Nutrients!$EV$79,(IF($A$8=Nutrients!$B$77,Nutrients!$EV$77,Nutrients!$EV$78)))))*AI$8))","v":900},null,{"$f":"(SUMPRODUCT(AK$9:AK$229,Nutrients!$EV$8:$EV$228)+(IF($A$7=Nutrients!$B$8,Nutrients!$EV$8,Nutrients!$EV$9)*AK$7)+(((IF($A$8=Nutrients!$B$79,Nutrients!$EV$79,(IF($A$8=Nutrients!$B$77,Nutrients!$EV$77,Nutrients!$EV$78)))))*AK$8))","v":1800},{"$f":"(SUMPRODUCT(AL$9:AL$229,Nutrients!$EV$8:$EV$228)+(IF($A$7=Nutrients!$B$8,Nutrients!$EV$8,Nutrients!$EV$9)*AL$7)+(((IF($A$8=Nutrients!$B$79,Nutrients!$EV$79,(IF($A$8=Nutrients!$B$77,Nutrients!$EV$77,Nutrients!$EV$78)))))*AL$8))","v":1800},{"$f":"(SUMPRODUCT(AM$9:AM$229,Nutrients!$EV$8:$EV$228)+(IF($A$7=Nutrients!$B$8,Nutrients!$EV$8,Nutrients!$EV$9)*AM$7)+(((IF($A$8=Nutrients!$B$79,Nutrients!$EV$79,(IF($A$8=Nutrients!$B$77,Nutrients!$EV$77,Nutrients!$EV$78)))))*AM$8))","v":1500},{"$f":"(SUMPRODUCT(AN$9:AN$229,Nutrients!$EV$8:$EV$228)+(IF($A$7=Nutrients!$B$8,Nutrients!$EV$8,Nutrients!$EV$9)*AN$7)+(((IF($A$8=Nutrients!$B$79,Nutrients!$EV$79,(IF($A$8=Nutrients!$B$77,Nutrients!$EV$77,Nutrients!$EV$78)))))*AN$8))","v":1200},{"$f":"(SUMPRODUCT(AO$9:AO$229,Nutrients!$EV$8:$EV$228)+(IF($A$7=Nutrients!$B$8,Nutrients!$EV$8,Nutrients!$EV$9)*AO$7)+(((IF($A$8=Nutrients!$B$79,Nutrients!$EV$79,(IF($A$8=Nutrients!$B$77,Nutrients!$EV$77,Nutrients!$EV$78)))))*AO$8))","v":900},{"$f":"(SUMPRODUCT(AP$9:AP$229,Nutrients!$EV$8:$EV$228)+(IF($A$7=Nutrients!$B$8,Nutrients!$EV$8,Nutrients!$EV$9)*AP$7)+(((IF($A$8=Nutrients!$B$79,Nutrients!$EV$79,(IF($A$8=Nutrients!$B$77,Nutrients!$EV$77,Nutrients!$EV$78)))))*AP$8))","v":900},null,{"$f":"(SUMPRODUCT(AR$9:AR$229,Nutrients!$EV$8:$EV$228)+(IF($A$7=Nutrients!$B$8,Nutrients!$EV$8,Nutrients!$EV$9)*AR$7)+(((IF($A$8=Nutrients!$B$79,Nutrients!$EV$79,(IF($A$8=Nutrients!$B$77,Nutrients!$EV$77,Nutrients!$EV$78)))))*AR$8))","v":1800},{"$f":"(SUMPRODUCT(AS$9:AS$229,Nutrients!$EV$8:$EV$228)+(IF($A$7=Nutrients!$B$8,Nutrients!$EV$8,Nutrients!$EV$9)*AS$7)+(((IF($A$8=Nutrients!$B$79,Nutrients!$EV$79,(IF($A$8=Nutrients!$B$77,Nutrients!$EV$77,Nutrients!$EV$78)))))*AS$8))","v":1800},{"$f":"(SUMPRODUCT(AT$9:AT$229,Nutrients!$EV$8:$EV$228)+(IF($A$7=Nutrients!$B$8,Nutrients!$EV$8,Nutrients!$EV$9)*AT$7)+(((IF($A$8=Nutrients!$B$79,Nutrients!$EV$79,(IF($A$8=Nutrients!$B$77,Nutrients!$EV$77,Nutrients!$EV$78)))))*AT$8))","v":1500},{"$f":"(SUMPRODUCT(AU$9:AU$229,Nutrients!$EV$8:$EV$228)+(IF($A$7=Nutrients!$B$8,Nutrients!$EV$8,Nutrients!$EV$9)*AU$7)+(((IF($A$8=Nutrients!$B$79,Nutrients!$EV$79,(IF($A$8=Nutrients!$B$77,Nutrients!$EV$77,Nutrients!$EV$78)))))*AU$8))","v":1200},{"$f":"(SUMPRODUCT(AV$9:AV$229,Nutrients!$EV$8:$EV$228)+(IF($A$7=Nutrients!$B$8,Nutrients!$EV$8,Nutrients!$EV$9)*AV$7)+(((IF($A$8=Nutrients!$B$79,Nutrients!$EV$79,(IF($A$8=Nutrients!$B$77,Nutrients!$EV$77,Nutrients!$EV$78)))))*AV$8))","v":900},{"$f":"(SUMPRODUCT(AW$9:AW$229,Nutrients!$EV$8:$EV$228)+(IF($A$7=Nutrients!$B$8,Nutrients!$EV$8,Nutrients!$EV$9)*AW$7)+(((IF($A$8=Nutrients!$B$79,Nutrients!$EV$79,(IF($A$8=Nutrients!$B$77,Nutrients!$EV$77,Nutrients!$EV$78)))))*AW$8))","v":900}]
["  Vit B12, mg/ton",{"$f":"(SUMPRODUCT(B$9:B$229,Nutrients!$EW$8:$EW$228)+(IF($A$7=Nutrients!$B$8,Nutrients!$EW$8,Nutrients!$EW$9)*B$7)+(((IF($A$8=Nutrients!$B$79,Nutrients!$EW$79,(IF($A$8=Nutrients!$B$77,Nutrients!$EW$77,Nutrients!$EW$78)))))*B$8))","v":18},{"$f":"(SUMPRODUCT(C$9:C$229,Nutrients!$EW$8:$EW$228)+(IF($A$7=Nutrients!$B$8,Nutrients!$EW$8,Nutrients!$EW$9)*C$7)+(((IF($A$8=Nutrients!$B$79,Nutrients!$EW$79,(IF($A$8=Nutrients!$B$77,Nutrients!$EW$77,Nutrients!$EW$78)))))*C$8))","v":18},{"$f":"(SUMPRODUCT(D$9:D$229,Nutrients!$EW$8:$EW$228)+(IF($A$7=Nutrients!$B$8,Nutrients!$EW$8,Nutrients!$EW$9)*D$7)+(((IF($A$8=Nutrients!$B$79,Nutrients!$EW$79,(IF($A$8=Nutrients!$B$77,Nutrients!$EW$77,Nutrients!$EW$78)))))*D$8))","v":15},{"$f":"(SUMPRODUCT(E$9:E$229,Nutrients!$EW$8:$EW$228)+(IF($A$7=Nutrients!$B$8,Nutrients!$EW$8,Nutrients!$EW$9)*E$7)+(((IF($A$8=Nutrients!$B$79,Nutrients!$EW$79,(IF($A$8=Nutrients!$B$77,Nutrients!$EW$77,Nutrients!$EW$78)))))*E$8))","v":12},{"$f":"(SUMPRODUCT(F$9:F$229,Nutrients!$EW$8:$EW$228)+(IF($A$7=Nutrients!$B$8,Nutrients!$EW$8,Nutrients!$EW$9)*F$7)+(((IF($A$8=Nutrients!$B$79,Nutrients!$EW$79,(IF($A$8=Nutrients!$B$77,Nutrients!$EW$77,Nutrients!$EW$78)))))*F$8))","v":9},{"$f":"(SUMPRODUCT(G$9:G$229,Nutrients!$EW$8:$EW$228)+(IF($A$7=Nutrients!$B$8,Nutrients!$EW$8,Nutrients!$EW$9)*G$7)+(((IF($A$8=Nutrients!$B$79,Nutrients!$EW$79,(IF($A$8=Nutrients!$B$77,Nutrients!$EW$77,Nutrients!$EW$78)))))*G$8))","v":9},null,{"$f":"(SUMPRODUCT(I$9:I$229,Nutrients!$EW$8:$EW$228)+(IF($A$7=Nutrients!$B$8,Nutrients!$EW$8,Nutrients!$EW$9)*I$7)+(((IF($A$8=Nutrients!$B$79,Nutrients!$EW$79,(IF($A$8=Nutrients!$B$77,Nutrients!$EW$77,Nutrients!$EW$78)))))*I$8))","v":18},{"$f":"(SUMPRODUCT(J$9:J$229,Nutrients!$EW$8:$EW$228)+(IF($A$7=Nutrients!$B$8,Nutrients!$EW$8,Nutrients!$EW$9)*J$7)+(((IF($A$8=Nutrients!$B$79,Nutrients!$EW$79,(IF($A$8=Nutrients!$B$77,Nutrients!$EW$77,Nutrients!$EW$78)))))*J$8))","v":18},{"$f":"(SUMPRODUCT(K$9:K$229,Nutrients!$EW$8:$EW$228)+(IF($A$7=Nutrients!$B$8,Nutrients!$EW$8,Nutrients!$EW$9)*K$7)+(((IF($A$8=Nutrients!$B$79,Nutrients!$EW$79,(IF($A$8=Nutrients!$B$77,Nutrients!$EW$77,Nutrients!$EW$78)))))*K$8))","v":15},{"$f":"(SUMPRODUCT(L$9:L$229,Nutrients!$EW$8:$EW$228)+(IF($A$7=Nutrients!$B$8,Nutrients!$EW$8,Nutrients!$EW$9)*L$7)+(((IF($A$8=Nutrients!$B$79,Nutrients!$EW$79,(IF($A$8=Nutrients!$B$77,Nutrients!$EW$77,Nutrients!$EW$78)))))*L$8))","v":12},{"$f":"(SUMPRODUCT(M$9:M$229,Nutrients!$EW$8:$EW$228)+(IF($A$7=Nutrients!$B$8,Nutrients!$EW$8,Nutrients!$EW$9)*M$7)+(((IF($A$8=Nutrients!$B$79,Nutrients!$EW$79,(IF($A$8=Nutrients!$B$77,Nutrients!$EW$77,Nutrients!$EW$78)))))*M$8))","v":9},{"$f":"(SUMPRODUCT(N$9:N$229,Nutrients!$EW$8:$EW$228)+(IF($A$7=Nutrients!$B$8,Nutrients!$EW$8,Nutrients!$EW$9)*N$7)+(((IF($A$8=Nutrients!$B$79,Nutrients!$EW$79,(IF($A$8=Nutrients!$B$77,Nutrients!$EW$77,Nutrients!$EW$78)))))*N$8))","v":9},null,{"$f":"(SUMPRODUCT(P$9:P$229,Nutrients!$EW$8:$EW$228)+(IF($A$7=Nutrients!$B$8,Nutrients!$EW$8,Nutrients!$EW$9)*P$7)+(((IF($A$8=Nutrients!$B$79,Nutrients!$EW$79,(IF($A$8=Nutrients!$B$77,Nutrients!$EW$77,Nutrients!$EW$78)))))*P$8))","v":18},{"$f":"(SUMPRODUCT(Q$9:Q$229,Nutrients!$EW$8:$EW$228)+(IF($A$7=Nutrients!$B$8,Nutrients!$EW$8,Nutrients!$EW$9)*Q$7)+(((IF($A$8=Nutrients!$B$79,Nutrients!$EW$79,(IF($A$8=Nutrients!$B$77,Nutrients!$EW$77,Nutrients!$EW$78)))))*Q$8))","v":18},{"$f":"(SUMPRODUCT(R$9:R$229,Nutrients!$EW$8:$EW$228)+(IF($A$7=Nutrients!$B$8,Nutrients!$EW$8,Nutrients!$EW$9)*R$7)+(((IF($A$8=Nutrients!$B$79,Nutrients!$EW$79,(IF($A$8=Nutrients!$B$77,Nutrients!$EW$77,Nutrients!$EW$78)))))*R$8))","v":15},{"$f":"(SUMPRODUCT(S$9:S$229,Nutrients!$EW$8:$EW$228)+(IF($A$7=Nutrients!$B$8,Nutrients!$EW$8,Nutrients!$EW$9)*S$7)+(((IF($A$8=Nutrients!$B$79,Nutrients!$EW$79,(IF($A$8=Nutrients!$B$77,Nutrients!$EW$77,Nutrients!$EW$78)))))*S$8))","v":12},{"$f":"(SUMPRODUCT(T$9:T$229,Nutrients!$EW$8:$EW$228)+(IF($A$7=Nutrients!$B$8,Nutrients!$EW$8,Nutrients!$EW$9)*T$7)+(((IF($A$8=Nutrients!$B$79,Nutrients!$EW$79,(IF($A$8=Nutrients!$B$77,Nutrients!$EW$77,Nutrients!$EW$78)))))*T$8))","v":9},{"$f":"(SUMPRODUCT(U$9:U$229,Nutrients!$EW$8:$EW$228)+(IF($A$7=Nutrients!$B$8,Nutrients!$EW$8,Nutrients!$EW$9)*U$7)+(((IF($A$8=Nutrients!$B$79,Nutrients!$EW$79,(IF($A$8=Nutrients!$B$77,Nutrients!$EW$77,Nutrients!$EW$78)))))*U$8))","v":9},null,{"$f":"(SUMPRODUCT(W$9:W$229,Nutrients!$EW$8:$EW$228)+(IF($A$7=Nutrients!$B$8,Nutrients!$EW$8,Nutrients!$EW$9)*W$7)+(((IF($A$8=Nutrients!$B$79,Nutrients!$EW$79,(IF($A$8=Nutrients!$B$77,Nutrients!$EW$77,Nutrients!$EW$78)))))*W$8))","v":18},{"$f":"(SUMPRODUCT(X$9:X$229,Nutrients!$EW$8:$EW$228)+(IF($A$7=Nutrients!$B$8,Nutrients!$EW$8,Nutrients!$EW$9)*X$7)+(((IF($A$8=Nutrients!$B$79,Nutrients!$EW$79,(IF($A$8=Nutrients!$B$77,Nutrients!$EW$77,Nutrients!$EW$78)))))*X$8))","v":18},{"$f":"(SUMPRODUCT(Y$9:Y$229,Nutrients!$EW$8:$EW$228)+(IF($A$7=Nutrients!$B$8,Nutrients!$EW$8,Nutrients!$EW$9)*Y$7)+(((IF($A$8=Nutrients!$B$79,Nutrients!$EW$79,(IF($A$8=Nutrients!$B$77,Nutrients!$EW$77,Nutrients!$EW$78)))))*Y$8))","v":15},{"$f":"(SUMPRODUCT(Z$9:Z$229,Nutrients!$EW$8:$EW$228)+(IF($A$7=Nutrients!$B$8,Nutrients!$EW$8,Nutrients!$EW$9)*Z$7)+(((IF($A$8=Nutrients!$B$79,Nutrients!$EW$79,(IF($A$8=Nutrients!$B$77,Nutrients!$EW$77,Nutrients!$EW$78)))))*Z$8))","v":12},{"$f":"(SUMPRODUCT(AA$9:AA$229,Nutrients!$EW$8:$EW$228)+(IF($A$7=Nutrients!$B$8,Nutrients!$EW$8,Nutrients!$EW$9)*AA$7)+(((IF($A$8=Nutrients!$B$79,Nutrients!$EW$79,(IF($A$8=Nutrients!$B$77,Nutrients!$EW$77,Nutrients!$EW$78)))))*AA$8))","v":9},{"$f":"(SUMPRODUCT(AB$9:AB$229,Nutrients!$EW$8:$EW$228)+(IF($A$7=Nutrients!$B$8,Nutrients!$EW$8,Nutrients!$EW$9)*AB$7)+(((IF($A$8=Nutrients!$B$79,Nutrients!$EW$79,(IF($A$8=Nutrients!$B$77,Nutrients!$EW$77,Nutrients!$EW$78)))))*AB$8))","v":9},null,{"$f":"(SUMPRODUCT(AD$9:AD$229,Nutrients!$EW$8:$EW$228)+(IF($A$7=Nutrients!$B$8,Nutrients!$EW$8,Nutrients!$EW$9)*AD$7)+(((IF($A$8=Nutrients!$B$79,Nutrients!$EW$79,(IF($A$8=Nutrients!$B$77,Nutrients!$EW$77,Nutrients!$EW$78)))))*AD$8))","v":18},{"$f":"(SUMPRODUCT(AE$9:AE$229,Nutrients!$EW$8:$EW$228)+(IF($A$7=Nutrients!$B$8,Nutrients!$EW$8,Nutrients!$EW$9)*AE$7)+(((IF($A$8=Nutrients!$B$79,Nutrients!$EW$79,(IF($A$8=Nutrients!$B$77,Nutrients!$EW$77,Nutrients!$EW$78)))))*AE$8))","v":18},{"$f":"(SUMPRODUCT(AF$9:AF$229,Nutrients!$EW$8:$EW$228)+(IF($A$7=Nutrients!$B$8,Nutrients!$EW$8,Nutrients!$EW$9)*AF$7)+(((IF($A$8=Nutrients!$B$79,Nutrients!$EW$79,(IF($A$8=Nutrients!$B$77,Nutrients!$EW$77,Nutrients!$EW$78)))))*AF$8))","v":15},{"$f":"(SUMPRODUCT(AG$9:AG$229,Nutrients!$EW$8:$EW$228)+(IF($A$7=Nutrients!$B$8,Nutrients!$EW$8,Nutrients!$EW$9)*AG$7)+(((IF($A$8=Nutrients!$B$79,Nutrients!$EW$79,(IF($A$8=Nutrients!$B$77,Nutrients!$EW$77,Nutrients!$EW$78)))))*AG$8))","v":12},{"$f":"(SUMPRODUCT(AH$9:AH$229,Nutrients!$EW$8:$EW$228)+(IF($A$7=Nutrients!$B$8,Nutrients!$EW$8,Nutrients!$EW$9)*AH$7)+(((IF($A$8=Nutrients!$B$79,Nutrients!$EW$79,(IF($A$8=Nutrients!$B$77,Nutrients!$EW$77,Nutrients!$EW$78)))))*AH$8))","v":9},{"$f":"(SUMPRODUCT(AI$9:AI$229,Nutrients!$EW$8:$EW$228)+(IF($A$7=Nutrients!$B$8,Nutrients!$EW$8,Nutrients!$EW$9)*AI$7)+(((IF($A$8=Nutrients!$B$79,Nutrients!$EW$79,(IF($A$8=Nutrients!$B$77,Nutrients!$EW$77,Nutrients!$EW$78)))))*AI$8))","v":9},null,{"$f":"(SUMPRODUCT(AK$9:AK$229,Nutrients!$EW$8:$EW$228)+(IF($A$7=Nutrients!$B$8,Nutrients!$EW$8,Nutrients!$EW$9)*AK$7)+(((IF($A$8=Nutrients!$B$79,Nutrients!$EW$79,(IF($A$8=Nutrients!$B$77,Nutrients!$EW$77,Nutrients!$EW$78)))))*AK$8))","v":18},{"$f":"(SUMPRODUCT(AL$9:AL$229,Nutrients!$EW$8:$EW$228)+(IF($A$7=Nutrients!$B$8,Nutrients!$EW$8,Nutrients!$EW$9)*AL$7)+(((IF($A$8=Nutrients!$B$79,Nutrients!$EW$79,(IF($A$8=Nutrients!$B$77,Nutrients!$EW$77,Nutrients!$EW$78)))))*AL$8))","v":18},{"$f":"(SUMPRODUCT(AM$9:AM$229,Nutrients!$EW$8:$EW$228)+(IF($A$7=Nutrients!$B$8,Nutrients!$EW$8,Nutrients!$EW$9)*AM$7)+(((IF($A$8=Nutrients!$B$79,Nutrients!$EW$79,(IF($A$8=Nutrients!$B$77,Nutrients!$EW$77,Nutrients!$EW$78)))))*AM$8))","v":15},{"$f":"(SUMPRODUCT(AN$9:AN$229,Nutrients!$EW$8:$EW$228)+(IF($A$7=Nutrients!$B$8,Nutrients!$EW$8,Nutrients!$EW$9)*AN$7)+(((IF($A$8=Nutrients!$B$79,Nutrients!$EW$79,(IF($A$8=Nutrients!$B$77,Nutrients!$EW$77,Nutrients!$EW$78)))))*AN$8))","v":12},{"$f":"(SUMPRODUCT(AO$9:AO$229,Nutrients!$EW$8:$EW$228)+(IF($A$7=Nutrients!$B$8,Nutrients!$EW$8,Nutrients!$EW$9)*AO$7)+(((IF($A$8=Nutrients!$B$79,Nutrients!$EW$79,(IF($A$8=Nutrients!$B$77,Nutrients!$EW$77,Nutrients!$EW$78)))))*AO$8))","v":9},{"$f":"(SUMPRODUCT(AP$9:AP$229,Nutrients!$EW$8:$EW$228)+(IF($A$7=Nutrients!$B$8,Nutrients!$EW$8,Nutrients!$EW$9)*AP$7)+(((IF($A$8=Nutrients!$B$79,Nutrients!$EW$79,(IF($A$8=Nutrients!$B$77,Nutrients!$EW$77,Nutrients!$EW$78)))))*AP$8))","v":9},null,{"$f":"(SUMPRODUCT(AR$9:AR$229,Nutrients!$EW$8:$EW$228)+(IF($A$7=Nutrients!$B$8,Nutrients!$EW$8,Nutrients!$EW$9)*AR$7)+(((IF($A$8=Nutrients!$B$79,Nutrients!$EW$79,(IF($A$8=Nutrients!$B$77,Nutrients!$EW$77,Nutrients!$EW$78)))))*AR$8))","v":18},{"$f":"(SUMPRODUCT(AS$9:AS$229,Nutrients!$EW$8:$EW$228)+(IF($A$7=Nutrients!$B$8,Nutrients!$EW$8,Nutrients!$EW$9)*AS$7)+(((IF($A$8=Nutrients!$B$79,Nutrients!$EW$79,(IF($A$8=Nutrients!$B$77,Nutrients!$EW$77,Nutrients!$EW$78)))))*AS$8))","v":18},{"$f":"(SUMPRODUCT(AT$9:AT$229,Nutrients!$EW$8:$EW$228)+(IF($A$7=Nutrients!$B$8,Nutrients!$EW$8,Nutrients!$EW$9)*AT$7)+(((IF($A$8=Nutrients!$B$79,Nutrients!$EW$79,(IF($A$8=Nutrients!$B$77,Nutrients!$EW$77,Nutrients!$EW$78)))))*AT$8))","v":15},{"$f":"(SUMPRODUCT(AU$9:AU$229,Nutrients!$EW$8:$EW$228)+(IF($A$7=Nutrients!$B$8,Nutrients!$EW$8,Nutrients!$EW$9)*AU$7)+(((IF($A$8=Nutrients!$B$79,Nutrients!$EW$79,(IF($A$8=Nutrients!$B$77,Nutrients!$EW$77,Nutrients!$EW$78)))))*AU$8))","v":12},{"$f":"(SUMPRODUCT(AV$9:AV$229,Nutrients!$EW$8:$EW$228)+(IF($A$7=Nutrients!$B$8,Nutrients!$EW$8,Nutrients!$EW$9)*AV$7)+(((IF($A$8=Nutrients!$B$79,Nutrients!$EW$79,(IF($A$8=Nutrients!$B$77,Nutrients!$EW$77,Nutrients!$EW$78)))))*AV$8))","v":9},{"$f":"(SUMPRODUCT(AW$9:AW$229,Nutrients!$EW$8:$EW$228)+(IF($A$7=Nutrients!$B$8,Nutrients!$EW$8,Nutrients!$EW$9)*AW$7)+(((IF($A$8=Nutrients!$B$79,Nutrients!$EW$79,(IF($A$8=Nutrients!$B$77,Nutrients!$EW$77,Nutrients!$EW$78)))))*AW$8))","v":9}]
["  Niacin, mg/ton",{"$f":"(SUMPRODUCT(B$9:B$229,Nutrients!$EX$8:$EX$228)+(IF($A$7=Nutrients!$B$8,Nutrients!$EX$8,Nutrients!$EX$9)*B$7)+(((IF($A$8=Nutrients!$B$79,Nutrients!$EX$79,(IF($A$8=Nutrients!$B$77,Nutrients!$EX$77,Nutrients!$EX$78)))))*B$8))","v":27000},{"$f":"(SUMPRODUCT(C$9:C$229,Nutrients!$EX$8:$EX$228)+(IF($A$7=Nutrients!$B$8,Nutrients!$EX$8,Nutrients!$EX$9)*C$7)+(((IF($A$8=Nutrients!$B$79,Nutrients!$EX$79,(IF($A$8=Nutrients!$B$77,Nutrients!$EX$77,Nutrients!$EX$78)))))*C$8))","v":27000},{"$f":"(SUMPRODUCT(D$9:D$229,Nutrients!$EX$8:$EX$228)+(IF($A$7=Nutrients!$B$8,Nutrients!$EX$8,Nutrients!$EX$9)*D$7)+(((IF($A$8=Nutrients!$B$79,Nutrients!$EX$79,(IF($A$8=Nutrients!$B$77,Nutrients!$EX$77,Nutrients!$EX$78)))))*D$8))","v":22500},{"$f":"(SUMPRODUCT(E$9:E$229,Nutrients!$EX$8:$EX$228)+(IF($A$7=Nutrients!$B$8,Nutrients!$EX$8,Nutrients!$EX$9)*E$7)+(((IF($A$8=Nutrients!$B$79,Nutrients!$EX$79,(IF($A$8=Nutrients!$B$77,Nutrients!$EX$77,Nutrients!$EX$78)))))*E$8))","v":18000},{"$f":"(SUMPRODUCT(F$9:F$229,Nutrients!$EX$8:$EX$228)+(IF($A$7=Nutrients!$B$8,Nutrients!$EX$8,Nutrients!$EX$9)*F$7)+(((IF($A$8=Nutrients!$B$79,Nutrients!$EX$79,(IF($A$8=Nutrients!$B$77,Nutrients!$EX$77,Nutrients!$EX$78)))))*F$8))","v":13500},{"$f":"(SUMPRODUCT(G$9:G$229,Nutrients!$EX$8:$EX$228)+(IF($A$7=Nutrients!$B$8,Nutrients!$EX$8,Nutrients!$EX$9)*G$7)+(((IF($A$8=Nutrients!$B$79,Nutrients!$EX$79,(IF($A$8=Nutrients!$B$77,Nutrients!$EX$77,Nutrients!$EX$78)))))*G$8))","v":13500},null,{"$f":"(SUMPRODUCT(I$9:I$229,Nutrients!$EX$8:$EX$228)+(IF($A$7=Nutrients!$B$8,Nutrients!$EX$8,Nutrients!$EX$9)*I$7)+(((IF($A$8=Nutrients!$B$79,Nutrients!$EX$79,(IF($A$8=Nutrients!$B$77,Nutrients!$EX$77,Nutrients!$EX$78)))))*I$8))","v":27000},{"$f":"(SUMPRODUCT(J$9:J$229,Nutrients!$EX$8:$EX$228)+(IF($A$7=Nutrients!$B$8,Nutrients!$EX$8,Nutrients!$EX$9)*J$7)+(((IF($A$8=Nutrients!$B$79,Nutrients!$EX$79,(IF($A$8=Nutrients!$B$77,Nutrients!$EX$77,Nutrients!$EX$78)))))*J$8))","v":27000},{"$f":"(SUMPRODUCT(K$9:K$229,Nutrients!$EX$8:$EX$228)+(IF($A$7=Nutrients!$B$8,Nutrients!$EX$8,Nutrients!$EX$9)*K$7)+(((IF($A$8=Nutrients!$B$79,Nutrients!$EX$79,(IF($A$8=Nutrients!$B$77,Nutrients!$EX$77,Nutrients!$EX$78)))))*K$8))","v":22500},{"$f":"(SUMPRODUCT(L$9:L$229,Nutrients!$EX$8:$EX$228)+(IF($A$7=Nutrients!$B$8,Nutrients!$EX$8,Nutrients!$EX$9)*L$7)+(((IF($A$8=Nutrients!$B$79,Nutrients!$EX$79,(IF($A$8=Nutrients!$B$77,Nutrients!$EX$77,Nutrients!$EX$78)))))*L$8))","v":18000},{"$f":"(SUMPRODUCT(M$9:M$229,Nutrients!$EX$8:$EX$228)+(IF($A$7=Nutrients!$B$8,Nutrients!$EX$8,Nutrients!$EX$9)*M$7)+(((IF($A$8=Nutrients!$B$79,Nutrients!$EX$79,(IF($A$8=Nutrients!$B$77,Nutrients!$EX$77,Nutrients!$EX$78)))))*M$8))","v":13500},{"$f":"(SUMPRODUCT(N$9:N$229,Nutrients!$EX$8:$EX$228)+(IF($A$7=Nutrients!$B$8,Nutrients!$EX$8,Nutrients!$EX$9)*N$7)+(((IF($A$8=Nutrients!$B$79,Nutrients!$EX$79,(IF($A$8=Nutrients!$B$77,Nutrients!$EX$77,Nutrients!$EX$78)))))*N$8))","v":13500},null,{"$f":"(SUMPRODUCT(P$9:P$229,Nutrients!$EX$8:$EX$228)+(IF($A$7=Nutrients!$B$8,Nutrients!$EX$8,Nutrients!$EX$9)*P$7)+(((IF($A$8=Nutrients!$B$79,Nutrients!$EX$79,(IF($A$8=Nutrients!$B$77,Nutrients!$EX$77,Nutrients!$EX$78)))))*P$8))","v":27000},{"$f":"(SUMPRODUCT(Q$9:Q$229,Nutrients!$EX$8:$EX$228)+(IF($A$7=Nutrients!$B$8,Nutrients!$EX$8,Nutrients!$EX$9)*Q$7)+(((IF($A$8=Nutrients!$B$79,Nutrients!$EX$79,(IF($A$8=Nutrients!$B$77,Nutrients!$EX$77,Nutrients!$EX$78)))))*Q$8))","v":27000},{"$f":"(SUMPRODUCT(R$9:R$229,Nutrients!$EX$8:$EX$228)+(IF($A$7=Nutrients!$B$8,Nutrients!$EX$8,Nutrients!$EX$9)*R$7)+(((IF($A$8=Nutrients!$B$79,Nutrients!$EX$79,(IF($A$8=Nutrients!$B$77,Nutrients!$EX$77,Nutrients!$EX$78)))))*R$8))","v":22500},{"$f":"(SUMPRODUCT(S$9:S$229,Nutrients!$EX$8:$EX$228)+(IF($A$7=Nutrients!$B$8,Nutrients!$EX$8,Nutrients!$EX$9)*S$7)+(((IF($A$8=Nutrients!$B$79,Nutrients!$EX$79,(IF($A$8=Nutrients!$B$77,Nutrients!$EX$77,Nutrients!$EX$78)))))*S$8))","v":18000},{"$f":"(SUMPRODUCT(T$9:T$229,Nutrients!$EX$8:$EX$228)+(IF($A$7=Nutrients!$B$8,Nutrients!$EX$8,Nutrients!$EX$9)*T$7)+(((IF($A$8=Nutrients!$B$79,Nutrients!$EX$79,(IF($A$8=Nutrients!$B$77,Nutrients!$EX$77,Nutrients!$EX$78)))))*T$8))","v":13500},{"$f":"(SUMPRODUCT(U$9:U$229,Nutrients!$EX$8:$EX$228)+(IF($A$7=Nutrients!$B$8,Nutrients!$EX$8,Nutrients!$EX$9)*U$7)+(((IF($A$8=Nutrients!$B$79,Nutrients!$EX$79,(IF($A$8=Nutrients!$B$77,Nutrients!$EX$77,Nutrients!$EX$78)))))*U$8))","v":13500},null,{"$f":"(SUMPRODUCT(W$9:W$229,Nutrients!$EX$8:$EX$228)+(IF($A$7=Nutrients!$B$8,Nutrients!$EX$8,Nutrients!$EX$9)*W$7)+(((IF($A$8=Nutrients!$B$79,Nutrients!$EX$79,(IF($A$8=Nutrients!$B$77,Nutrients!$EX$77,Nutrients!$EX$78)))))*W$8))","v":27000},{"$f":"(SUMPRODUCT(X$9:X$229,Nutrients!$EX$8:$EX$228)+(IF($A$7=Nutrients!$B$8,Nutrients!$EX$8,Nutrients!$EX$9)*X$7)+(((IF($A$8=Nutrients!$B$79,Nutrients!$EX$79,(IF($A$8=Nutrients!$B$77,Nutrients!$EX$77,Nutrients!$EX$78)))))*X$8))","v":27000},{"$f":"(SUMPRODUCT(Y$9:Y$229,Nutrients!$EX$8:$EX$228)+(IF($A$7=Nutrients!$B$8,Nutrients!$EX$8,Nutrients!$EX$9)*Y$7)+(((IF($A$8=Nutrients!$B$79,Nutrients!$EX$79,(IF($A$8=Nutrients!$B$77,Nutrients!$EX$77,Nutrients!$EX$78)))))*Y$8))","v":22500},{"$f":"(SUMPRODUCT(Z$9:Z$229,Nutrients!$EX$8:$EX$228)+(IF($A$7=Nutrients!$B$8,Nutrients!$EX$8,Nutrients!$EX$9)*Z$7)+(((IF($A$8=Nutrients!$B$79,Nutrients!$EX$79,(IF($A$8=Nutrients!$B$77,Nutrients!$EX$77,Nutrients!$EX$78)))))*Z$8))","v":18000},{"$f":"(SUMPRODUCT(AA$9:AA$229,Nutrients!$EX$8:$EX$228)+(IF($A$7=Nutrients!$B$8,Nutrients!$EX$8,Nutrients!$EX$9)*AA$7)+(((IF($A$8=Nutrients!$B$79,Nutrients!$EX$79,(IF($A$8=Nutrients!$B$77,Nutrients!$EX$77,Nutrients!$EX$78)))))*AA$8))","v":13500},{"$f":"(SUMPRODUCT(AB$9:AB$229,Nutrients!$EX$8:$EX$228)+(IF($A$7=Nutrients!$B$8,Nutrients!$EX$8,Nutrients!$EX$9)*AB$7)+(((IF($A$8=Nutrients!$B$79,Nutrients!$EX$79,(IF($A$8=Nutrients!$B$77,Nutrients!$EX$77,Nutrients!$EX$78)))))*AB$8))","v":13500},null,{"$f":"(SUMPRODUCT(AD$9:AD$229,Nutrients!$EX$8:$EX$228)+(IF($A$7=Nutrients!$B$8,Nutrients!$EX$8,Nutrients!$EX$9)*AD$7)+(((IF($A$8=Nutrients!$B$79,Nutrients!$EX$79,(IF($A$8=Nutrients!$B$77,Nutrients!$EX$77,Nutrients!$EX$78)))))*AD$8))","v":27000},{"$f":"(SUMPRODUCT(AE$9:AE$229,Nutrients!$EX$8:$EX$228)+(IF($A$7=Nutrients!$B$8,Nutrients!$EX$8,Nutrients!$EX$9)*AE$7)+(((IF($A$8=Nutrients!$B$79,Nutrients!$EX$79,(IF($A$8=Nutrients!$B$77,Nutrients!$EX$77,Nutrients!$EX$78)))))*AE$8))","v":27000},{"$f":"(SUMPRODUCT(AF$9:AF$229,Nutrients!$EX$8:$EX$228)+(IF($A$7=Nutrients!$B$8,Nutrients!$EX$8,Nutrients!$EX$9)*AF$7)+(((IF($A$8=Nutrients!$B$79,Nutrients!$EX$79,(IF($A$8=Nutrients!$B$77,Nutrients!$EX$77,Nutrients!$EX$78)))))*AF$8))","v":22500},{"$f":"(SUMPRODUCT(AG$9:AG$229,Nutrients!$EX$8:$EX$228)+(IF($A$7=Nutrients!$B$8,Nutrients!$EX$8,Nutrients!$EX$9)*AG$7)+(((IF($A$8=Nutrients!$B$79,Nutrients!$EX$79,(IF($A$8=Nutrients!$B$77,Nutrients!$EX$77,Nutrients!$EX$78)))))*AG$8))","v":18000},{"$f":"(SUMPRODUCT(AH$9:AH$229,Nutrients!$EX$8:$EX$228)+(IF($A$7=Nutrients!$B$8,Nutrients!$EX$8,Nutrients!$EX$9)*AH$7)+(((IF($A$8=Nutrients!$B$79,Nutrients!$EX$79,(IF($A$8=Nutrients!$B$77,Nutrients!$EX$77,Nutrients!$EX$78)))))*AH$8))","v":13500},{"$f":"(SUMPRODUCT(AI$9:AI$229,Nutrients!$EX$8:$EX$228)+(IF($A$7=Nutrients!$B$8,Nutrients!$EX$8,Nutrients!$EX$9)*AI$7)+(((IF($A$8=Nutrients!$B$79,Nutrients!$EX$79,(IF($A$8=Nutrients!$B$77,Nutrients!$EX$77,Nutrients!$EX$78)))))*AI$8))","v":13500},null,{"$f":"(SUMPRODUCT(AK$9:AK$229,Nutrients!$EX$8:$EX$228)+(IF($A$7=Nutrients!$B$8,Nutrients!$EX$8,Nutrients!$EX$9)*AK$7)+(((IF($A$8=Nutrients!$B$79,Nutrients!$EX$79,(IF($A$8=Nutrients!$B$77,Nutrients!$EX$77,Nutrients!$EX$78)))))*AK$8))","v":27000},{"$f":"(SUMPRODUCT(AL$9:AL$229,Nutrients!$EX$8:$EX$228)+(IF($A$7=Nutrients!$B$8,Nutrients!$EX$8,Nutrients!$EX$9)*AL$7)+(((IF($A$8=Nutrients!$B$79,Nutrients!$EX$79,(IF($A$8=Nutrients!$B$77,Nutrients!$EX$77,Nutrients!$EX$78)))))*AL$8))","v":27000},{"$f":"(SUMPRODUCT(AM$9:AM$229,Nutrients!$EX$8:$EX$228)+(IF($A$7=Nutrients!$B$8,Nutrients!$EX$8,Nutrients!$EX$9)*AM$7)+(((IF($A$8=Nutrients!$B$79,Nutrients!$EX$79,(IF($A$8=Nutrients!$B$77,Nutrients!$EX$77,Nutrients!$EX$78)))))*AM$8))","v":22500},{"$f":"(SUMPRODUCT(AN$9:AN$229,Nutrients!$EX$8:$EX$228)+(IF($A$7=Nutrients!$B$8,Nutrients!$EX$8,Nutrients!$EX$9)*AN$7)+(((IF($A$8=Nutrients!$B$79,Nutrients!$EX$79,(IF($A$8=Nutrients!$B$77,Nutrients!$EX$77,Nutrients!$EX$78)))))*AN$8))","v":18000},{"$f":"(SUMPRODUCT(AO$9:AO$229,Nutrients!$EX$8:$EX$228)+(IF($A$7=Nutrients!$B$8,Nutrients!$EX$8,Nutrients!$EX$9)*AO$7)+(((IF($A$8=Nutrients!$B$79,Nutrients!$EX$79,(IF($A$8=Nutrients!$B$77,Nutrients!$EX$77,Nutrients!$EX$78)))))*AO$8))","v":13500},{"$f":"(SUMPRODUCT(AP$9:AP$229,Nutrients!$EX$8:$EX$228)+(IF($A$7=Nutrients!$B$8,Nutrients!$EX$8,Nutrients!$EX$9)*AP$7)+(((IF($A$8=Nutrients!$B$79,Nutrients!$EX$79,(IF($A$8=Nutrients!$B$77,Nutrients!$EX$77,Nutrients!$EX$78)))))*AP$8))","v":13500},null,{"$f":"(SUMPRODUCT(AR$9:AR$229,Nutrients!$EX$8:$EX$228)+(IF($A$7=Nutrients!$B$8,Nutrients!$EX$8,Nutrients!$EX$9)*AR$7)+(((IF($A$8=Nutrients!$B$79,Nutrients!$EX$79,(IF($A$8=Nutrients!$B$77,Nutrients!$EX$77,Nutrients!$EX$78)))))*AR$8))","v":27000},{"$f":"(SUMPRODUCT(AS$9:AS$229,Nutrients!$EX$8:$EX$228)+(IF($A$7=Nutrients!$B$8,Nutrients!$EX$8,Nutrients!$EX$9)*AS$7)+(((IF($A$8=Nutrients!$B$79,Nutrients!$EX$79,(IF($A$8=Nutrients!$B$77,Nutrients!$EX$77,Nutrients!$EX$78)))))*AS$8))","v":27000},{"$f":"(SUMPRODUCT(AT$9:AT$229,Nutrients!$EX$8:$EX$228)+(IF($A$7=Nutrients!$B$8,Nutrients!$EX$8,Nutrients!$EX$9)*AT$7)+(((IF($A$8=Nutrients!$B$79,Nutrients!$EX$79,(IF($A$8=Nutrients!$B$77,Nutrients!$EX$77,Nutrients!$EX$78)))))*AT$8))","v":22500},{"$f":"(SUMPRODUCT(AU$9:AU$229,Nutrients!$EX$8:$EX$228)+(IF($A$7=Nutrients!$B$8,Nutrients!$EX$8,Nutrients!$EX$9)*AU$7)+(((IF($A$8=Nutrients!$B$79,Nutrients!$EX$79,(IF($A$8=Nutrients!$B$77,Nutrients!$EX$77,Nutrients!$EX$78)))))*AU$8))","v":18000},{"$f":"(SUMPRODUCT(AV$9:AV$229,Nutrients!$EX$8:$EX$228)+(IF($A$7=Nutrients!$B$8,Nutrients!$EX$8,Nutrients!$EX$9)*AV$7)+(((IF($A$8=Nutrients!$B$79,Nutrients!$EX$79,(IF($A$8=Nutrients!$B$77,Nutrients!$EX$77,Nutrients!$EX$78)))))*AV$8))","v":13500},{"$f":"(SUMPRODUCT(AW$9:AW$229,Nutrients!$EX$8:$EX$228)+(IF($A$7=Nutrients!$B$8,Nutrients!$EX$8,Nutrients!$EX$9)*AW$7)+(((IF($A$8=Nutrients!$B$79,Nutrients!$EX$79,(IF($A$8=Nutrients!$B$77,Nutrients!$EX$77,Nutrients!$EX$78)))))*AW$8))","v":13500}]
["  Pantothenic Acid, mg/ton",{"$f":"(SUMPRODUCT(B$9:B$229,Nutrients!$EY$8:$EY$228)+(IF($A$7=Nutrients!$B$8,Nutrients!$EY$8,Nutrients!$EY$9)*B$7)+(((IF($A$8=Nutrients!$B$79,Nutrients!$EY$79,(IF($A$8=Nutrients!$B$77,Nutrients!$EY$77,Nutrients!$EY$78)))))*B$8))","v":15000},{"$f":"(SUMPRODUCT(C$9:C$229,Nutrients!$EY$8:$EY$228)+(IF($A$7=Nutrients!$B$8,Nutrients!$EY$8,Nutrients!$EY$9)*C$7)+(((IF($A$8=Nutrients!$B$79,Nutrients!$EY$79,(IF($A$8=Nutrients!$B$77,Nutrients!$EY$77,Nutrients!$EY$78)))))*C$8))","v":15000},{"$f":"(SUMPRODUCT(D$9:D$229,Nutrients!$EY$8:$EY$228)+(IF($A$7=Nutrients!$B$8,Nutrients!$EY$8,Nutrients!$EY$9)*D$7)+(((IF($A$8=Nutrients!$B$79,Nutrients!$EY$79,(IF($A$8=Nutrients!$B$77,Nutrients!$EY$77,Nutrients!$EY$78)))))*D$8))","v":12500},{"$f":"(SUMPRODUCT(E$9:E$229,Nutrients!$EY$8:$EY$228)+(IF($A$7=Nutrients!$B$8,Nutrients!$EY$8,Nutrients!$EY$9)*E$7)+(((IF($A$8=Nutrients!$B$79,Nutrients!$EY$79,(IF($A$8=Nutrients!$B$77,Nutrients!$EY$77,Nutrients!$EY$78)))))*E$8))","v":10000},{"$f":"(SUMPRODUCT(F$9:F$229,Nutrients!$EY$8:$EY$228)+(IF($A$7=Nutrients!$B$8,Nutrients!$EY$8,Nutrients!$EY$9)*F$7)+(((IF($A$8=Nutrients!$B$79,Nutrients!$EY$79,(IF($A$8=Nutrients!$B$77,Nutrients!$EY$77,Nutrients!$EY$78)))))*F$8))","v":7500},{"$f":"(SUMPRODUCT(G$9:G$229,Nutrients!$EY$8:$EY$228)+(IF($A$7=Nutrients!$B$8,Nutrients!$EY$8,Nutrients!$EY$9)*G$7)+(((IF($A$8=Nutrients!$B$79,Nutrients!$EY$79,(IF($A$8=Nutrients!$B$77,Nutrients!$EY$77,Nutrients!$EY$78)))))*G$8))","v":7500},null,{"$f":"(SUMPRODUCT(I$9:I$229,Nutrients!$EY$8:$EY$228)+(IF($A$7=Nutrients!$B$8,Nutrients!$EY$8,Nutrients!$EY$9)*I$7)+(((IF($A$8=Nutrients!$B$79,Nutrients!$EY$79,(IF($A$8=Nutrients!$B$77,Nutrients!$EY$77,Nutrients!$EY$78)))))*I$8))","v":15000},{"$f":"(SUMPRODUCT(J$9:J$229,Nutrients!$EY$8:$EY$228)+(IF($A$7=Nutrients!$B$8,Nutrients!$EY$8,Nutrients!$EY$9)*J$7)+(((IF($A$8=Nutrients!$B$79,Nutrients!$EY$79,(IF($A$8=Nutrients!$B$77,Nutrients!$EY$77,Nutrients!$EY$78)))))*J$8))","v":15000},{"$f":"(SUMPRODUCT(K$9:K$229,Nutrients!$EY$8:$EY$228)+(IF($A$7=Nutrients!$B$8,Nutrients!$EY$8,Nutrients!$EY$9)*K$7)+(((IF($A$8=Nutrients!$B$79,Nutrients!$EY$79,(IF($A$8=Nutrients!$B$77,Nutrients!$EY$77,Nutrients!$EY$78)))))*K$8))","v":12500},{"$f":"(SUMPRODUCT(L$9:L$229,Nutrients!$EY$8:$EY$228)+(IF($A$7=Nutrients!$B$8,Nutrients!$EY$8,Nutrients!$EY$9)*L$7)+(((IF($A$8=Nutrients!$B$79,Nutrients!$EY$79,(IF($A$8=Nutrients!$B$77,Nutrients!$EY$77,Nutrients!$EY$78)))))*L$8))","v":10000},{"$f":"(SUMPRODUCT(M$9:M$229,Nutrients!$EY$8:$EY$228)+(IF($A$7=Nutrients!$B$8,Nutrients!$EY$8,Nutrients!$EY$9)*M$7)+(((IF($A$8=Nutrients!$B$79,Nutrients!$EY$79,(IF($A$8=Nutrients!$B$77,Nutrients!$EY$77,Nutrients!$EY$78)))))*M$8))","v":7500},{"$f":"(SUMPRODUCT(N$9:N$229,Nutrients!$EY$8:$EY$228)+(IF($A$7=Nutrients!$B$8,Nutrients!$EY$8,Nutrients!$EY$9)*N$7)+(((IF($A$8=Nutrients!$B$79,Nutrients!$EY$79,(IF($A$8=Nutrients!$B$77,Nutrients!$EY$77,Nutrients!$EY$78)))))*N$8))","v":7500},null,{"$f":"(SUMPRODUCT(P$9:P$229,Nutrients!$EY$8:$EY$228)+(IF($A$7=Nutrients!$B$8,Nutrients!$EY$8,Nutrients!$EY$9)*P$7)+(((IF($A$8=Nutrients!$B$79,Nutrients!$EY$79,(IF($A$8=Nutrients!$B$77,Nutrients!$EY$77,Nutrients!$EY$78)))))*P$8))","v":15000},{"$f":"(SUMPRODUCT(Q$9:Q$229,Nutrients!$EY$8:$EY$228)+(IF($A$7=Nutrients!$B$8,Nutrients!$EY$8,Nutrients!$EY$9)*Q$7)+(((IF($A$8=Nutrients!$B$79,Nutrients!$EY$79,(IF($A$8=Nutrients!$B$77,Nutrients!$EY$77,Nutrients!$EY$78)))))*Q$8))","v":15000},{"$f":"(SUMPRODUCT(R$9:R$229,Nutrients!$EY$8:$EY$228)+(IF($A$7=Nutrients!$B$8,Nutrients!$EY$8,Nutrients!$EY$9)*R$7)+(((IF($A$8=Nutrients!$B$79,Nutrients!$EY$79,(IF($A$8=Nutrients!$B$77,Nutrients!$EY$77,Nutrients!$EY$78)))))*R$8))","v":12500},{"$f":"(SUMPRODUCT(S$9:S$229,Nutrients!$EY$8:$EY$228)+(IF($A$7=Nutrients!$B$8,Nutrients!$EY$8,Nutrients!$EY$9)*S$7)+(((IF($A$8=Nutrients!$B$79,Nutrients!$EY$79,(IF($A$8=Nutrients!$B$77,Nutrients!$EY$77,Nutrients!$EY$78)))))*S$8))","v":10000},{"$f":"(SUMPRODUCT(T$9:T$229,Nutrients!$EY$8:$EY$228)+(IF($A$7=Nutrients!$B$8,Nutrients!$EY$8,Nutrients!$EY$9)*T$7)+(((IF($A$8=Nutrients!$B$79,Nutrients!$EY$79,(IF($A$8=Nutrients!$B$77,Nutrients!$EY$77,Nutrients!$EY$78)))))*T$8))","v":7500},{"$f":"(SUMPRODUCT(U$9:U$229,Nutrients!$EY$8:$EY$228)+(IF($A$7=Nutrients!$B$8,Nutrients!$EY$8,Nutrients!$EY$9)*U$7)+(((IF($A$8=Nutrients!$B$79,Nutrients!$EY$79,(IF($A$8=Nutrients!$B$77,Nutrients!$EY$77,Nutrients!$EY$78)))))*U$8))","v":7500},null,{"$f":"(SUMPRODUCT(W$9:W$229,Nutrients!$EY$8:$EY$228)+(IF($A$7=Nutrients!$B$8,Nutrients!$EY$8,Nutrients!$EY$9)*W$7)+(((IF($A$8=Nutrients!$B$79,Nutrients!$EY$79,(IF($A$8=Nutrients!$B$77,Nutrients!$EY$77,Nutrients!$EY$78)))))*W$8))","v":15000},{"$f":"(SUMPRODUCT(X$9:X$229,Nutrients!$EY$8:$EY$228)+(IF($A$7=Nutrients!$B$8,Nutrients!$EY$8,Nutrients!$EY$9)*X$7)+(((IF($A$8=Nutrients!$B$79,Nutrients!$EY$79,(IF($A$8=Nutrients!$B$77,Nutrients!$EY$77,Nutrients!$EY$78)))))*X$8))","v":15000},{"$f":"(SUMPRODUCT(Y$9:Y$229,Nutrients!$EY$8:$EY$228)+(IF($A$7=Nutrients!$B$8,Nutrients!$EY$8,Nutrients!$EY$9)*Y$7)+(((IF($A$8=Nutrients!$B$79,Nutrients!$EY$79,(IF($A$8=Nutrients!$B$77,Nutrients!$EY$77,Nutrients!$EY$78)))))*Y$8))","v":12500},{"$f":"(SUMPRODUCT(Z$9:Z$229,Nutrients!$EY$8:$EY$228)+(IF($A$7=Nutrients!$B$8,Nutrients!$EY$8,Nutrients!$EY$9)*Z$7)+(((IF($A$8=Nutrients!$B$79,Nutrients!$EY$79,(IF($A$8=Nutrients!$B$77,Nutrients!$EY$77,Nutrients!$EY$78)))))*Z$8))","v":10000},{"$f":"(SUMPRODUCT(AA$9:AA$229,Nutrients!$EY$8:$EY$228)+(IF($A$7=Nutrients!$B$8,Nutrients!$EY$8,Nutrients!$EY$9)*AA$7)+(((IF($A$8=Nutrients!$B$79,Nutrients!$EY$79,(IF($A$8=Nutrients!$B$77,Nutrients!$EY$77,Nutrients!$EY$78)))))*AA$8))","v":7500},{"$f":"(SUMPRODUCT(AB$9:AB$229,Nutrients!$EY$8:$EY$228)+(IF($A$7=Nutrients!$B$8,Nutrients!$EY$8,Nutrients!$EY$9)*AB$7)+(((IF($A$8=Nutrients!$B$79,Nutrients!$EY$79,(IF($A$8=Nutrients!$B$77,Nutrients!$EY$77,Nutrients!$EY$78)))))*AB$8))","v":7500},null,{"$f":"(SUMPRODUCT(AD$9:AD$229,Nutrients!$EY$8:$EY$228)+(IF($A$7=Nutrients!$B$8,Nutrients!$EY$8,Nutrients!$EY$9)*AD$7)+(((IF($A$8=Nutrients!$B$79,Nutrients!$EY$79,(IF($A$8=Nutrients!$B$77,Nutrients!$EY$77,Nutrients!$EY$78)))))*AD$8))","v":15000},{"$f":"(SUMPRODUCT(AE$9:AE$229,Nutrients!$EY$8:$EY$228)+(IF($A$7=Nutrients!$B$8,Nutrients!$EY$8,Nutrients!$EY$9)*AE$7)+(((IF($A$8=Nutrients!$B$79,Nutrients!$EY$79,(IF($A$8=Nutrients!$B$77,Nutrients!$EY$77,Nutrients!$EY$78)))))*AE$8))","v":15000},{"$f":"(SUMPRODUCT(AF$9:AF$229,Nutrients!$EY$8:$EY$228)+(IF($A$7=Nutrients!$B$8,Nutrients!$EY$8,Nutrients!$EY$9)*AF$7)+(((IF($A$8=Nutrients!$B$79,Nutrients!$EY$79,(IF($A$8=Nutrients!$B$77,Nutrients!$EY$77,Nutrients!$EY$78)))))*AF$8))","v":12500},{"$f":"(SUMPRODUCT(AG$9:AG$229,Nutrients!$EY$8:$EY$228)+(IF($A$7=Nutrients!$B$8,Nutrients!$EY$8,Nutrients!$EY$9)*AG$7)+(((IF($A$8=Nutrients!$B$79,Nutrients!$EY$79,(IF($A$8=Nutrients!$B$77,Nutrients!$EY$77,Nutrients!$EY$78)))))*AG$8))","v":10000},{"$f":"(SUMPRODUCT(AH$9:AH$229,Nutrients!$EY$8:$EY$228)+(IF($A$7=Nutrients!$B$8,Nutrients!$EY$8,Nutrients!$EY$9)*AH$7)+(((IF($A$8=Nutrients!$B$79,Nutrients!$EY$79,(IF($A$8=Nutrients!$B$77,Nutrients!$EY$77,Nutrients!$EY$78)))))*AH$8))","v":7500},{"$f":"(SUMPRODUCT(AI$9:AI$229,Nutrients!$EY$8:$EY$228)+(IF($A$7=Nutrients!$B$8,Nutrients!$EY$8,Nutrients!$EY$9)*AI$7)+(((IF($A$8=Nutrients!$B$79,Nutrients!$EY$79,(IF($A$8=Nutrients!$B$77,Nutrients!$EY$77,Nutrients!$EY$78)))))*AI$8))","v":7500},null,{"$f":"(SUMPRODUCT(AK$9:AK$229,Nutrients!$EY$8:$EY$228)+(IF($A$7=Nutrients!$B$8,Nutrients!$EY$8,Nutrients!$EY$9)*AK$7)+(((IF($A$8=Nutrients!$B$79,Nutrients!$EY$79,(IF($A$8=Nutrients!$B$77,Nutrients!$EY$77,Nutrients!$EY$78)))))*AK$8))","v":15000},{"$f":"(SUMPRODUCT(AL$9:AL$229,Nutrients!$EY$8:$EY$228)+(IF($A$7=Nutrients!$B$8,Nutrients!$EY$8,Nutrients!$EY$9)*AL$7)+(((IF($A$8=Nutrients!$B$79,Nutrients!$EY$79,(IF($A$8=Nutrients!$B$77,Nutrients!$EY$77,Nutrients!$EY$78)))))*AL$8))","v":15000},{"$f":"(SUMPRODUCT(AM$9:AM$229,Nutrients!$EY$8:$EY$228)+(IF($A$7=Nutrients!$B$8,Nutrients!$EY$8,Nutrients!$EY$9)*AM$7)+(((IF($A$8=Nutrients!$B$79,Nutrients!$EY$79,(IF($A$8=Nutrients!$B$77,Nutrients!$EY$77,Nutrients!$EY$78)))))*AM$8))","v":12500},{"$f":"(SUMPRODUCT(AN$9:AN$229,Nutrients!$EY$8:$EY$228)+(IF($A$7=Nutrients!$B$8,Nutrients!$EY$8,Nutrients!$EY$9)*AN$7)+(((IF($A$8=Nutrients!$B$79,Nutrients!$EY$79,(IF($A$8=Nutrients!$B$77,Nutrients!$EY$77,Nutrients!$EY$78)))))*AN$8))","v":10000},{"$f":"(SUMPRODUCT(AO$9:AO$229,Nutrients!$EY$8:$EY$228)+(IF($A$7=Nutrients!$B$8,Nutrients!$EY$8,Nutrients!$EY$9)*AO$7)+(((IF($A$8=Nutrients!$B$79,Nutrients!$EY$79,(IF($A$8=Nutrients!$B$77,Nutrients!$EY$77,Nutrients!$EY$78)))))*AO$8))","v":7500},{"$f":"(SUMPRODUCT(AP$9:AP$229,Nutrients!$EY$8:$EY$228)+(IF($A$7=Nutrients!$B$8,Nutrients!$EY$8,Nutrients!$EY$9)*AP$7)+(((IF($A$8=Nutrients!$B$79,Nutrients!$EY$79,(IF($A$8=Nutrients!$B$77,Nutrients!$EY$77,Nutrients!$EY$78)))))*AP$8))","v":7500},null,{"$f":"(SUMPRODUCT(AR$9:AR$229,Nutrients!$EY$8:$EY$228)+(IF($A$7=Nutrients!$B$8,Nutrients!$EY$8,Nutrients!$EY$9)*AR$7)+(((IF($A$8=Nutrients!$B$79,Nutrients!$EY$79,(IF($A$8=Nutrients!$B$77,Nutrients!$EY$77,Nutrients!$EY$78)))))*AR$8))","v":15000},{"$f":"(SUMPRODUCT(AS$9:AS$229,Nutrients!$EY$8:$EY$228)+(IF($A$7=Nutrients!$B$8,Nutrients!$EY$8,Nutrients!$EY$9)*AS$7)+(((IF($A$8=Nutrients!$B$79,Nutrients!$EY$79,(IF($A$8=Nutrients!$B$77,Nutrients!$EY$77,Nutrients!$EY$78)))))*AS$8))","v":15000},{"$f":"(SUMPRODUCT(AT$9:AT$229,Nutrients!$EY$8:$EY$228)+(IF($A$7=Nutrients!$B$8,Nutrients!$EY$8,Nutrients!$EY$9)*AT$7)+(((IF($A$8=Nutrients!$B$79,Nutrients!$EY$79,(IF($A$8=Nutrients!$B$77,Nutrients!$EY$77,Nutrients!$EY$78)))))*AT$8))","v":12500},{"$f":"(SUMPRODUCT(AU$9:AU$229,Nutrients!$EY$8:$EY$228)+(IF($A$7=Nutrients!$B$8,Nutrients!$EY$8,Nutrients!$EY$9)*AU$7)+(((IF($A$8=Nutrients!$B$79,Nutrients!$EY$79,(IF($A$8=Nutrients!$B$77,Nutrients!$EY$77,Nutrients!$EY$78)))))*AU$8))","v":10000},{"$f":"(SUMPRODUCT(AV$9:AV$229,Nutrients!$EY$8:$EY$228)+(IF($A$7=Nutrients!$B$8,Nutrients!$EY$8,Nutrients!$EY$9)*AV$7)+(((IF($A$8=Nutrients!$B$79,Nutrients!$EY$79,(IF($A$8=Nutrients!$B$77,Nutrients!$EY$77,Nutrients!$EY$78)))))*AV$8))","v":7500},{"$f":"(SUMPRODUCT(AW$9:AW$229,Nutrients!$EY$8:$EY$228)+(IF($A$7=Nutrients!$B$8,Nutrients!$EY$8,Nutrients!$EY$9)*AW$7)+(((IF($A$8=Nutrients!$B$79,Nutrients!$EY$79,(IF($A$8=Nutrients!$B$77,Nutrients!$EY$77,Nutrients!$EY$78)))))*AW$8))","v":7500}]
["  Riboflavin, mg/ton",{"$f":"(SUMPRODUCT(B$9:B$229,Nutrients!$EZ$8:$EZ$228)+(IF($A$7=Nutrients!$B$8,Nutrients!$EZ$8,Nutrients!$EZ$9)*B$7)+(((IF($A$8=Nutrients!$B$79,Nutrients!$EZ$79,(IF($A$8=Nutrients!$B$77,Nutrients!$EZ$77,Nutrients!$EZ$78)))))*B$8))","v":4500},{"$f":"(SUMPRODUCT(C$9:C$229,Nutrients!$EZ$8:$EZ$228)+(IF($A$7=Nutrients!$B$8,Nutrients!$EZ$8,Nutrients!$EZ$9)*C$7)+(((IF($A$8=Nutrients!$B$79,Nutrients!$EZ$79,(IF($A$8=Nutrients!$B$77,Nutrients!$EZ$77,Nutrients!$EZ$78)))))*C$8))","v":4500},{"$f":"(SUMPRODUCT(D$9:D$229,Nutrients!$EZ$8:$EZ$228)+(IF($A$7=Nutrients!$B$8,Nutrients!$EZ$8,Nutrients!$EZ$9)*D$7)+(((IF($A$8=Nutrients!$B$79,Nutrients!$EZ$79,(IF($A$8=Nutrients!$B$77,Nutrients!$EZ$77,Nutrients!$EZ$78)))))*D$8))","v":3750},{"$f":"(SUMPRODUCT(E$9:E$229,Nutrients!$EZ$8:$EZ$228)+(IF($A$7=Nutrients!$B$8,Nutrients!$EZ$8,Nutrients!$EZ$9)*E$7)+(((IF($A$8=Nutrients!$B$79,Nutrients!$EZ$79,(IF($A$8=Nutrients!$B$77,Nutrients!$EZ$77,Nutrients!$EZ$78)))))*E$8))","v":3000},{"$f":"(SUMPRODUCT(F$9:F$229,Nutrients!$EZ$8:$EZ$228)+(IF($A$7=Nutrients!$B$8,Nutrients!$EZ$8,Nutrients!$EZ$9)*F$7)+(((IF($A$8=Nutrients!$B$79,Nutrients!$EZ$79,(IF($A$8=Nutrients!$B$77,Nutrients!$EZ$77,Nutrients!$EZ$78)))))*F$8))","v":2250},{"$f":"(SUMPRODUCT(G$9:G$229,Nutrients!$EZ$8:$EZ$228)+(IF($A$7=Nutrients!$B$8,Nutrients!$EZ$8,Nutrients!$EZ$9)*G$7)+(((IF($A$8=Nutrients!$B$79,Nutrients!$EZ$79,(IF($A$8=Nutrients!$B$77,Nutrients!$EZ$77,Nutrients!$EZ$78)))))*G$8))","v":2250},null,{"$f":"(SUMPRODUCT(I$9:I$229,Nutrients!$EZ$8:$EZ$228)+(IF($A$7=Nutrients!$B$8,Nutrients!$EZ$8,Nutrients!$EZ$9)*I$7)+(((IF($A$8=Nutrients!$B$79,Nutrients!$EZ$79,(IF($A$8=Nutrients!$B$77,Nutrients!$EZ$77,Nutrients!$EZ$78)))))*I$8))","v":4500},{"$f":"(SUMPRODUCT(J$9:J$229,Nutrients!$EZ$8:$EZ$228)+(IF($A$7=Nutrients!$B$8,Nutrients!$EZ$8,Nutrients!$EZ$9)*J$7)+(((IF($A$8=Nutrients!$B$79,Nutrients!$EZ$79,(IF($A$8=Nutrients!$B$77,Nutrients!$EZ$77,Nutrients!$EZ$78)))))*J$8))","v":4500},{"$f":"(SUMPRODUCT(K$9:K$229,Nutrients!$EZ$8:$EZ$228)+(IF($A$7=Nutrients!$B$8,Nutrients!$EZ$8,Nutrients!$EZ$9)*K$7)+(((IF($A$8=Nutrients!$B$79,Nutrients!$EZ$79,(IF($A$8=Nutrients!$B$77,Nutrients!$EZ$77,Nutrients!$EZ$78)))))*K$8))","v":3750},{"$f":"(SUMPRODUCT(L$9:L$229,Nutrients!$EZ$8:$EZ$228)+(IF($A$7=Nutrients!$B$8,Nutrients!$EZ$8,Nutrients!$EZ$9)*L$7)+(((IF($A$8=Nutrients!$B$79,Nutrients!$EZ$79,(IF($A$8=Nutrients!$B$77,Nutrients!$EZ$77,Nutrients!$EZ$78)))))*L$8))","v":3000},{"$f":"(SUMPRODUCT(M$9:M$229,Nutrients!$EZ$8:$EZ$228)+(IF($A$7=Nutrients!$B$8,Nutrients!$EZ$8,Nutrients!$EZ$9)*M$7)+(((IF($A$8=Nutrients!$B$79,Nutrients!$EZ$79,(IF($A$8=Nutrients!$B$77,Nutrients!$EZ$77,Nutrients!$EZ$78)))))*M$8))","v":2250},{"$f":"(SUMPRODUCT(N$9:N$229,Nutrients!$EZ$8:$EZ$228)+(IF($A$7=Nutrients!$B$8,Nutrients!$EZ$8,Nutrients!$EZ$9)*N$7)+(((IF($A$8=Nutrients!$B$79,Nutrients!$EZ$79,(IF($A$8=Nutrients!$B$77,Nutrients!$EZ$77,Nutrients!$EZ$78)))))*N$8))","v":2250},null,{"$f":"(SUMPRODUCT(P$9:P$229,Nutrients!$EZ$8:$EZ$228)+(IF($A$7=Nutrients!$B$8,Nutrients!$EZ$8,Nutrients!$EZ$9)*P$7)+(((IF($A$8=Nutrients!$B$79,Nutrients!$EZ$79,(IF($A$8=Nutrients!$B$77,Nutrients!$EZ$77,Nutrients!$EZ$78)))))*P$8))","v":4500},{"$f":"(SUMPRODUCT(Q$9:Q$229,Nutrients!$EZ$8:$EZ$228)+(IF($A$7=Nutrients!$B$8,Nutrients!$EZ$8,Nutrients!$EZ$9)*Q$7)+(((IF($A$8=Nutrients!$B$79,Nutrients!$EZ$79,(IF($A$8=Nutrients!$B$77,Nutrients!$EZ$77,Nutrients!$EZ$78)))))*Q$8))","v":4500},{"$f":"(SUMPRODUCT(R$9:R$229,Nutrients!$EZ$8:$EZ$228)+(IF($A$7=Nutrients!$B$8,Nutrients!$EZ$8,Nutrients!$EZ$9)*R$7)+(((IF($A$8=Nutrients!$B$79,Nutrients!$EZ$79,(IF($A$8=Nutrients!$B$77,Nutrients!$EZ$77,Nutrients!$EZ$78)))))*R$8))","v":3750},{"$f":"(SUMPRODUCT(S$9:S$229,Nutrients!$EZ$8:$EZ$228)+(IF($A$7=Nutrients!$B$8,Nutrients!$EZ$8,Nutrients!$EZ$9)*S$7)+(((IF($A$8=Nutrients!$B$79,Nutrients!$EZ$79,(IF($A$8=Nutrients!$B$77,Nutrients!$EZ$77,Nutrients!$EZ$78)))))*S$8))","v":3000},{"$f":"(SUMPRODUCT(T$9:T$229,Nutrients!$EZ$8:$EZ$228)+(IF($A$7=Nutrients!$B$8,Nutrients!$EZ$8,Nutrients!$EZ$9)*T$7)+(((IF($A$8=Nutrients!$B$79,Nutrients!$EZ$79,(IF($A$8=Nutrients!$B$77,Nutrients!$EZ$77,Nutrients!$EZ$78)))))*T$8))","v":2250},{"$f":"(SUMPRODUCT(U$9:U$229,Nutrients!$EZ$8:$EZ$228)+(IF($A$7=Nutrients!$B$8,Nutrients!$EZ$8,Nutrients!$EZ$9)*U$7)+(((IF($A$8=Nutrients!$B$79,Nutrients!$EZ$79,(IF($A$8=Nutrients!$B$77,Nutrients!$EZ$77,Nutrients!$EZ$78)))))*U$8))","v":2250},null,{"$f":"(SUMPRODUCT(W$9:W$229,Nutrients!$EZ$8:$EZ$228)+(IF($A$7=Nutrients!$B$8,Nutrients!$EZ$8,Nutrients!$EZ$9)*W$7)+(((IF($A$8=Nutrients!$B$79,Nutrients!$EZ$79,(IF($A$8=Nutrients!$B$77,Nutrients!$EZ$77,Nutrients!$EZ$78)))))*W$8))","v":4500},{"$f":"(SUMPRODUCT(X$9:X$229,Nutrients!$EZ$8:$EZ$228)+(IF($A$7=Nutrients!$B$8,Nutrients!$EZ$8,Nutrients!$EZ$9)*X$7)+(((IF($A$8=Nutrients!$B$79,Nutrients!$EZ$79,(IF($A$8=Nutrients!$B$77,Nutrients!$EZ$77,Nutrients!$EZ$78)))))*X$8))","v":4500},{"$f":"(SUMPRODUCT(Y$9:Y$229,Nutrients!$EZ$8:$EZ$228)+(IF($A$7=Nutrients!$B$8,Nutrients!$EZ$8,Nutrients!$EZ$9)*Y$7)+(((IF($A$8=Nutrients!$B$79,Nutrients!$EZ$79,(IF($A$8=Nutrients!$B$77,Nutrients!$EZ$77,Nutrients!$EZ$78)))))*Y$8))","v":3750},{"$f":"(SUMPRODUCT(Z$9:Z$229,Nutrients!$EZ$8:$EZ$228)+(IF($A$7=Nutrients!$B$8,Nutrients!$EZ$8,Nutrients!$EZ$9)*Z$7)+(((IF($A$8=Nutrients!$B$79,Nutrients!$EZ$79,(IF($A$8=Nutrients!$B$77,Nutrients!$EZ$77,Nutrients!$EZ$78)))))*Z$8))","v":3000},{"$f":"(SUMPRODUCT(AA$9:AA$229,Nutrients!$EZ$8:$EZ$228)+(IF($A$7=Nutrients!$B$8,Nutrients!$EZ$8,Nutrients!$EZ$9)*AA$7)+(((IF($A$8=Nutrients!$B$79,Nutrients!$EZ$79,(IF($A$8=Nutrients!$B$77,Nutrients!$EZ$77,Nutrients!$EZ$78)))))*AA$8))","v":2250},{"$f":"(SUMPRODUCT(AB$9:AB$229,Nutrients!$EZ$8:$EZ$228)+(IF($A$7=Nutrients!$B$8,Nutrients!$EZ$8,Nutrients!$EZ$9)*AB$7)+(((IF($A$8=Nutrients!$B$79,Nutrients!$EZ$79,(IF($A$8=Nutrients!$B$77,Nutrients!$EZ$77,Nutrients!$EZ$78)))))*AB$8))","v":2250},null,{"$f":"(SUMPRODUCT(AD$9:AD$229,Nutrients!$EZ$8:$EZ$228)+(IF($A$7=Nutrients!$B$8,Nutrients!$EZ$8,Nutrients!$EZ$9)*AD$7)+(((IF($A$8=Nutrients!$B$79,Nutrients!$EZ$79,(IF($A$8=Nutrients!$B$77,Nutrients!$EZ$77,Nutrients!$EZ$78)))))*AD$8))","v":4500},{"$f":"(SUMPRODUCT(AE$9:AE$229,Nutrients!$EZ$8:$EZ$228)+(IF($A$7=Nutrients!$B$8,Nutrients!$EZ$8,Nutrients!$EZ$9)*AE$7)+(((IF($A$8=Nutrients!$B$79,Nutrients!$EZ$79,(IF($A$8=Nutrients!$B$77,Nutrients!$EZ$77,Nutrients!$EZ$78)))))*AE$8))","v":4500},{"$f":"(SUMPRODUCT(AF$9:AF$229,Nutrients!$EZ$8:$EZ$228)+(IF($A$7=Nutrients!$B$8,Nutrients!$EZ$8,Nutrients!$EZ$9)*AF$7)+(((IF($A$8=Nutrients!$B$79,Nutrients!$EZ$79,(IF($A$8=Nutrients!$B$77,Nutrients!$EZ$77,Nutrients!$EZ$78)))))*AF$8))","v":3750},{"$f":"(SUMPRODUCT(AG$9:AG$229,Nutrients!$EZ$8:$EZ$228)+(IF($A$7=Nutrients!$B$8,Nutrients!$EZ$8,Nutrients!$EZ$9)*AG$7)+(((IF($A$8=Nutrients!$B$79,Nutrients!$EZ$79,(IF($A$8=Nutrients!$B$77,Nutrients!$EZ$77,Nutrients!$EZ$78)))))*AG$8))","v":3000},{"$f":"(SUMPRODUCT(AH$9:AH$229,Nutrients!$EZ$8:$EZ$228)+(IF($A$7=Nutrients!$B$8,Nutrients!$EZ$8,Nutrients!$EZ$9)*AH$7)+(((IF($A$8=Nutrients!$B$79,Nutrients!$EZ$79,(IF($A$8=Nutrients!$B$77,Nutrients!$EZ$77,Nutrients!$EZ$78)))))*AH$8))","v":2250},{"$f":"(SUMPRODUCT(AI$9:AI$229,Nutrients!$EZ$8:$EZ$228)+(IF($A$7=Nutrients!$B$8,Nutrients!$EZ$8,Nutrients!$EZ$9)*AI$7)+(((IF($A$8=Nutrients!$B$79,Nutrients!$EZ$79,(IF($A$8=Nutrients!$B$77,Nutrients!$EZ$77,Nutrients!$EZ$78)))))*AI$8))","v":2250},null,{"$f":"(SUMPRODUCT(AK$9:AK$229,Nutrients!$EZ$8:$EZ$228)+(IF($A$7=Nutrients!$B$8,Nutrients!$EZ$8,Nutrients!$EZ$9)*AK$7)+(((IF($A$8=Nutrients!$B$79,Nutrients!$EZ$79,(IF($A$8=Nutrients!$B$77,Nutrients!$EZ$77,Nutrients!$EZ$78)))))*AK$8))","v":4500},{"$f":"(SUMPRODUCT(AL$9:AL$229,Nutrients!$EZ$8:$EZ$228)+(IF($A$7=Nutrients!$B$8,Nutrients!$EZ$8,Nutrients!$EZ$9)*AL$7)+(((IF($A$8=Nutrients!$B$79,Nutrients!$EZ$79,(IF($A$8=Nutrients!$B$77,Nutrients!$EZ$77,Nutrients!$EZ$78)))))*AL$8))","v":4500},{"$f":"(SUMPRODUCT(AM$9:AM$229,Nutrients!$EZ$8:$EZ$228)+(IF($A$7=Nutrients!$B$8,Nutrients!$EZ$8,Nutrients!$EZ$9)*AM$7)+(((IF($A$8=Nutrients!$B$79,Nutrients!$EZ$79,(IF($A$8=Nutrients!$B$77,Nutrients!$EZ$77,Nutrients!$EZ$78)))))*AM$8))","v":3750},{"$f":"(SUMPRODUCT(AN$9:AN$229,Nutrients!$EZ$8:$EZ$228)+(IF($A$7=Nutrients!$B$8,Nutrients!$EZ$8,Nutrients!$EZ$9)*AN$7)+(((IF($A$8=Nutrients!$B$79,Nutrients!$EZ$79,(IF($A$8=Nutrients!$B$77,Nutrients!$EZ$77,Nutrients!$EZ$78)))))*AN$8))","v":3000},{"$f":"(SUMPRODUCT(AO$9:AO$229,Nutrients!$EZ$8:$EZ$228)+(IF($A$7=Nutrients!$B$8,Nutrients!$EZ$8,Nutrients!$EZ$9)*AO$7)+(((IF($A$8=Nutrients!$B$79,Nutrients!$EZ$79,(IF($A$8=Nutrients!$B$77,Nutrients!$EZ$77,Nutrients!$EZ$78)))))*AO$8))","v":2250},{"$f":"(SUMPRODUCT(AP$9:AP$229,Nutrients!$EZ$8:$EZ$228)+(IF($A$7=Nutrients!$B$8,Nutrients!$EZ$8,Nutrients!$EZ$9)*AP$7)+(((IF($A$8=Nutrients!$B$79,Nutrients!$EZ$79,(IF($A$8=Nutrients!$B$77,Nutrients!$EZ$77,Nutrients!$EZ$78)))))*AP$8))","v":2250},null,{"$f":"(SUMPRODUCT(AR$9:AR$229,Nutrients!$EZ$8:$EZ$228)+(IF($A$7=Nutrients!$B$8,Nutrients!$EZ$8,Nutrients!$EZ$9)*AR$7)+(((IF($A$8=Nutrients!$B$79,Nutrients!$EZ$79,(IF($A$8=Nutrients!$B$77,Nutrients!$EZ$77,Nutrients!$EZ$78)))))*AR$8))","v":4500},{"$f":"(SUMPRODUCT(AS$9:AS$229,Nutrients!$EZ$8:$EZ$228)+(IF($A$7=Nutrients!$B$8,Nutrients!$EZ$8,Nutrients!$EZ$9)*AS$7)+(((IF($A$8=Nutrients!$B$79,Nutrients!$EZ$79,(IF($A$8=Nutrients!$B$77,Nutrients!$EZ$77,Nutrients!$EZ$78)))))*AS$8))","v":4500},{"$f":"(SUMPRODUCT(AT$9:AT$229,Nutrients!$EZ$8:$EZ$228)+(IF($A$7=Nutrients!$B$8,Nutrients!$EZ$8,Nutrients!$EZ$9)*AT$7)+(((IF($A$8=Nutrients!$B$79,Nutrients!$EZ$79,(IF($A$8=Nutrients!$B$77,Nutrients!$EZ$77,Nutrients!$EZ$78)))))*AT$8))","v":3750},{"$f":"(SUMPRODUCT(AU$9:AU$229,Nutrients!$EZ$8:$EZ$228)+(IF($A$7=Nutrients!$B$8,Nutrients!$EZ$8,Nutrients!$EZ$9)*AU$7)+(((IF($A$8=Nutrients!$B$79,Nutrients!$EZ$79,(IF($A$8=Nutrients!$B$77,Nutrients!$EZ$77,Nutrients!$EZ$78)))))*AU$8))","v":3000},{"$f":"(SUMPRODUCT(AV$9:AV$229,Nutrients!$EZ$8:$EZ$228)+(IF($A$7=Nutrients!$B$8,Nutrients!$EZ$8,Nutrients!$EZ$9)*AV$7)+(((IF($A$8=Nutrients!$B$79,Nutrients!$EZ$79,(IF($A$8=Nutrients!$B$77,Nutrients!$EZ$77,Nutrients!$EZ$78)))))*AV$8))","v":2250},{"$f":"(SUMPRODUCT(AW$9:AW$229,Nutrients!$EZ$8:$EZ$228)+(IF($A$7=Nutrients!$B$8,Nutrients!$EZ$8,Nutrients!$EZ$9)*AW$7)+(((IF($A$8=Nutrients!$B$79,Nutrients!$EZ$79,(IF($A$8=Nutrients!$B$77,Nutrients!$EZ$77,Nutrients!$EZ$78)))))*AW$8))","v":2250}]
["  Biotin, mg/ton",{"$f":"(SUMPRODUCT(B$9:B$229,Nutrients!$FA$8:$FA$228)+(IF($A$7=Nutrients!$B$8,Nutrients!$FA$8,Nutrients!$FA$9)*B$7)+(((IF($A$8=Nutrients!$B$79,Nutrients!$FA$79,(IF($A$8=Nutrients!$B$77,Nutrients!$FA$77,Nutrients!$FA$78)))))*B$8))","v":0},{"$f":"(SUMPRODUCT(C$9:C$229,Nutrients!$FA$8:$FA$228)+(IF($A$7=Nutrients!$B$8,Nutrients!$FA$8,Nutrients!$FA$9)*C$7)+(((IF($A$8=Nutrients!$B$79,Nutrients!$FA$79,(IF($A$8=Nutrients!$B$77,Nutrients!$FA$77,Nutrients!$FA$78)))))*C$8))","v":0},{"$f":"(SUMPRODUCT(D$9:D$229,Nutrients!$FA$8:$FA$228)+(IF($A$7=Nutrients!$B$8,Nutrients!$FA$8,Nutrients!$FA$9)*D$7)+(((IF($A$8=Nutrients!$B$79,Nutrients!$FA$79,(IF($A$8=Nutrients!$B$77,Nutrients!$FA$77,Nutrients!$FA$78)))))*D$8))","v":0},{"$f":"(SUMPRODUCT(E$9:E$229,Nutrients!$FA$8:$FA$228)+(IF($A$7=Nutrients!$B$8,Nutrients!$FA$8,Nutrients!$FA$9)*E$7)+(((IF($A$8=Nutrients!$B$79,Nutrients!$FA$79,(IF($A$8=Nutrients!$B$77,Nutrients!$FA$77,Nutrients!$FA$78)))))*E$8))","v":0},{"$f":"(SUMPRODUCT(F$9:F$229,Nutrients!$FA$8:$FA$228)+(IF($A$7=Nutrients!$B$8,Nutrients!$FA$8,Nutrients!$FA$9)*F$7)+(((IF($A$8=Nutrients!$B$79,Nutrients!$FA$79,(IF($A$8=Nutrients!$B$77,Nutrients!$FA$77,Nutrients!$FA$78)))))*F$8))","v":0},{"$f":"(SUMPRODUCT(G$9:G$229,Nutrients!$FA$8:$FA$228)+(IF($A$7=Nutrients!$B$8,Nutrients!$FA$8,Nutrients!$FA$9)*G$7)+(((IF($A$8=Nutrients!$B$79,Nutrients!$FA$79,(IF($A$8=Nutrients!$B$77,Nutrients!$FA$77,Nutrients!$FA$78)))))*G$8))","v":0},null,{"$f":"(SUMPRODUCT(I$9:I$229,Nutrients!$FA$8:$FA$228)+(IF($A$7=Nutrients!$B$8,Nutrients!$FA$8,Nutrients!$FA$9)*I$7)+(((IF($A$8=Nutrients!$B$79,Nutrients!$FA$79,(IF($A$8=Nutrients!$B$77,Nutrients!$FA$77,Nutrients!$FA$78)))))*I$8))","v":0},{"$f":"(SUMPRODUCT(J$9:J$229,Nutrients!$FA$8:$FA$228)+(IF($A$7=Nutrients!$B$8,Nutrients!$FA$8,Nutrients!$FA$9)*J$7)+(((IF($A$8=Nutrients!$B$79,Nutrients!$FA$79,(IF($A$8=Nutrients!$B$77,Nutrients!$FA$77,Nutrients!$FA$78)))))*J$8))","v":0},{"$f":"(SUMPRODUCT(K$9:K$229,Nutrients!$FA$8:$FA$228)+(IF($A$7=Nutrients!$B$8,Nutrients!$FA$8,Nutrients!$FA$9)*K$7)+(((IF($A$8=Nutrients!$B$79,Nutrients!$FA$79,(IF($A$8=Nutrients!$B$77,Nutrients!$FA$77,Nutrients!$FA$78)))))*K$8))","v":0},{"$f":"(SUMPRODUCT(L$9:L$229,Nutrients!$FA$8:$FA$228)+(IF($A$7=Nutrients!$B$8,Nutrients!$FA$8,Nutrients!$FA$9)*L$7)+(((IF($A$8=Nutrients!$B$79,Nutrients!$FA$79,(IF($A$8=Nutrients!$B$77,Nutrients!$FA$77,Nutrients!$FA$78)))))*L$8))","v":0},{"$f":"(SUMPRODUCT(M$9:M$229,Nutrients!$FA$8:$FA$228)+(IF($A$7=Nutrients!$B$8,Nutrients!$FA$8,Nutrients!$FA$9)*M$7)+(((IF($A$8=Nutrients!$B$79,Nutrients!$FA$79,(IF($A$8=Nutrients!$B$77,Nutrients!$FA$77,Nutrients!$FA$78)))))*M$8))","v":0},{"$f":"(SUMPRODUCT(N$9:N$229,Nutrients!$FA$8:$FA$228)+(IF($A$7=Nutrients!$B$8,Nutrients!$FA$8,Nutrients!$FA$9)*N$7)+(((IF($A$8=Nutrients!$B$79,Nutrients!$FA$79,(IF($A$8=Nutrients!$B$77,Nutrients!$FA$77,Nutrients!$FA$78)))))*N$8))","v":0},null,{"$f":"(SUMPRODUCT(P$9:P$229,Nutrients!$FA$8:$FA$228)+(IF($A$7=Nutrients!$B$8,Nutrients!$FA$8,Nutrients!$FA$9)*P$7)+(((IF($A$8=Nutrients!$B$79,Nutrients!$FA$79,(IF($A$8=Nutrients!$B$77,Nutrients!$FA$77,Nutrients!$FA$78)))))*P$8))","v":0},{"$f":"(SUMPRODUCT(Q$9:Q$229,Nutrients!$FA$8:$FA$228)+(IF($A$7=Nutrients!$B$8,Nutrients!$FA$8,Nutrients!$FA$9)*Q$7)+(((IF($A$8=Nutrients!$B$79,Nutrients!$FA$79,(IF($A$8=Nutrients!$B$77,Nutrients!$FA$77,Nutrients!$FA$78)))))*Q$8))","v":0},{"$f":"(SUMPRODUCT(R$9:R$229,Nutrients!$FA$8:$FA$228)+(IF($A$7=Nutrients!$B$8,Nutrients!$FA$8,Nutrients!$FA$9)*R$7)+(((IF($A$8=Nutrients!$B$79,Nutrients!$FA$79,(IF($A$8=Nutrients!$B$77,Nutrients!$FA$77,Nutrients!$FA$78)))))*R$8))","v":0},{"$f":"(SUMPRODUCT(S$9:S$229,Nutrients!$FA$8:$FA$228)+(IF($A$7=Nutrients!$B$8,Nutrients!$FA$8,Nutrients!$FA$9)*S$7)+(((IF($A$8=Nutrients!$B$79,Nutrients!$FA$79,(IF($A$8=Nutrients!$B$77,Nutrients!$FA$77,Nutrients!$FA$78)))))*S$8))","v":0},{"$f":"(SUMPRODUCT(T$9:T$229,Nutrients!$FA$8:$FA$228)+(IF($A$7=Nutrients!$B$8,Nutrients!$FA$8,Nutrients!$FA$9)*T$7)+(((IF($A$8=Nutrients!$B$79,Nutrients!$FA$79,(IF($A$8=Nutrients!$B$77,Nutrients!$FA$77,Nutrients!$FA$78)))))*T$8))","v":0},{"$f":"(SUMPRODUCT(U$9:U$229,Nutrients!$FA$8:$FA$228)+(IF($A$7=Nutrients!$B$8,Nutrients!$FA$8,Nutrients!$FA$9)*U$7)+(((IF($A$8=Nutrients!$B$79,Nutrients!$FA$79,(IF($A$8=Nutrients!$B$77,Nutrients!$FA$77,Nutrients!$FA$78)))))*U$8))","v":0},null,{"$f":"(SUMPRODUCT(W$9:W$229,Nutrients!$FA$8:$FA$228)+(IF($A$7=Nutrients!$B$8,Nutrients!$FA$8,Nutrients!$FA$9)*W$7)+(((IF($A$8=Nutrients!$B$79,Nutrients!$FA$79,(IF($A$8=Nutrients!$B$77,Nutrients!$FA$77,Nutrients!$FA$78)))))*W$8))","v":0},{"$f":"(SUMPRODUCT(X$9:X$229,Nutrients!$FA$8:$FA$228)+(IF($A$7=Nutrients!$B$8,Nutrients!$FA$8,Nutrients!$FA$9)*X$7)+(((IF($A$8=Nutrients!$B$79,Nutrients!$FA$79,(IF($A$8=Nutrients!$B$77,Nutrients!$FA$77,Nutrients!$FA$78)))))*X$8))","v":0},{"$f":"(SUMPRODUCT(Y$9:Y$229,Nutrients!$FA$8:$FA$228)+(IF($A$7=Nutrients!$B$8,Nutrients!$FA$8,Nutrients!$FA$9)*Y$7)+(((IF($A$8=Nutrients!$B$79,Nutrients!$FA$79,(IF($A$8=Nutrients!$B$77,Nutrients!$FA$77,Nutrients!$FA$78)))))*Y$8))","v":0},{"$f":"(SUMPRODUCT(Z$9:Z$229,Nutrients!$FA$8:$FA$228)+(IF($A$7=Nutrients!$B$8,Nutrients!$FA$8,Nutrients!$FA$9)*Z$7)+(((IF($A$8=Nutrients!$B$79,Nutrients!$FA$79,(IF($A$8=Nutrients!$B$77,Nutrients!$FA$77,Nutrients!$FA$78)))))*Z$8))","v":0},{"$f":"(SUMPRODUCT(AA$9:AA$229,Nutrients!$FA$8:$FA$228)+(IF($A$7=Nutrients!$B$8,Nutrients!$FA$8,Nutrients!$FA$9)*AA$7)+(((IF($A$8=Nutrients!$B$79,Nutrients!$FA$79,(IF($A$8=Nutrients!$B$77,Nutrients!$FA$77,Nutrients!$FA$78)))))*AA$8))","v":0},{"$f":"(SUMPRODUCT(AB$9:AB$229,Nutrients!$FA$8:$FA$228)+(IF($A$7=Nutrients!$B$8,Nutrients!$FA$8,Nutrients!$FA$9)*AB$7)+(((IF($A$8=Nutrients!$B$79,Nutrients!$FA$79,(IF($A$8=Nutrients!$B$77,Nutrients!$FA$77,Nutrients!$FA$78)))))*AB$8))","v":0},null,{"$f":"(SUMPRODUCT(AD$9:AD$229,Nutrients!$FA$8:$FA$228)+(IF($A$7=Nutrients!$B$8,Nutrients!$FA$8,Nutrients!$FA$9)*AD$7)+(((IF($A$8=Nutrients!$B$79,Nutrients!$FA$79,(IF($A$8=Nutrients!$B$77,Nutrients!$FA$77,Nutrients!$FA$78)))))*AD$8))","v":0},{"$f":"(SUMPRODUCT(AE$9:AE$229,Nutrients!$FA$8:$FA$228)+(IF($A$7=Nutrients!$B$8,Nutrients!$FA$8,Nutrients!$FA$9)*AE$7)+(((IF($A$8=Nutrients!$B$79,Nutrients!$FA$79,(IF($A$8=Nutrients!$B$77,Nutrients!$FA$77,Nutrients!$FA$78)))))*AE$8))","v":0},{"$f":"(SUMPRODUCT(AF$9:AF$229,Nutrients!$FA$8:$FA$228)+(IF($A$7=Nutrients!$B$8,Nutrients!$FA$8,Nutrients!$FA$9)*AF$7)+(((IF($A$8=Nutrients!$B$79,Nutrients!$FA$79,(IF($A$8=Nutrients!$B$77,Nutrients!$FA$77,Nutrients!$FA$78)))))*AF$8))","v":0},{"$f":"(SUMPRODUCT(AG$9:AG$229,Nutrients!$FA$8:$FA$228)+(IF($A$7=Nutrients!$B$8,Nutrients!$FA$8,Nutrients!$FA$9)*AG$7)+(((IF($A$8=Nutrients!$B$79,Nutrients!$FA$79,(IF($A$8=Nutrients!$B$77,Nutrients!$FA$77,Nutrients!$FA$78)))))*AG$8))","v":0},{"$f":"(SUMPRODUCT(AH$9:AH$229,Nutrients!$FA$8:$FA$228)+(IF($A$7=Nutrients!$B$8,Nutrients!$FA$8,Nutrients!$FA$9)*AH$7)+(((IF($A$8=Nutrients!$B$79,Nutrients!$FA$79,(IF($A$8=Nutrients!$B$77,Nutrients!$FA$77,Nutrients!$FA$78)))))*AH$8))","v":0},{"$f":"(SUMPRODUCT(AI$9:AI$229,Nutrients!$FA$8:$FA$228)+(IF($A$7=Nutrients!$B$8,Nutrients!$FA$8,Nutrients!$FA$9)*AI$7)+(((IF($A$8=Nutrients!$B$79,Nutrients!$FA$79,(IF($A$8=Nutrients!$B$77,Nutrients!$FA$77,Nutrients!$FA$78)))))*AI$8))","v":0},null,{"$f":"(SUMPRODUCT(AK$9:AK$229,Nutrients!$FA$8:$FA$228)+(IF($A$7=Nutrients!$B$8,Nutrients!$FA$8,Nutrients!$FA$9)*AK$7)+(((IF($A$8=Nutrients!$B$79,Nutrients!$FA$79,(IF($A$8=Nutrients!$B$77,Nutrients!$FA$77,Nutrients!$FA$78)))))*AK$8))","v":0},{"$f":"(SUMPRODUCT(AL$9:AL$229,Nutrients!$FA$8:$FA$228)+(IF($A$7=Nutrients!$B$8,Nutrients!$FA$8,Nutrients!$FA$9)*AL$7)+(((IF($A$8=Nutrients!$B$79,Nutrients!$FA$79,(IF($A$8=Nutrients!$B$77,Nutrients!$FA$77,Nutrients!$FA$78)))))*AL$8))","v":0},{"$f":"(SUMPRODUCT(AM$9:AM$229,Nutrients!$FA$8:$FA$228)+(IF($A$7=Nutrients!$B$8,Nutrients!$FA$8,Nutrients!$FA$9)*AM$7)+(((IF($A$8=Nutrients!$B$79,Nutrients!$FA$79,(IF($A$8=Nutrients!$B$77,Nutrients!$FA$77,Nutrients!$FA$78)))))*AM$8))","v":0},{"$f":"(SUMPRODUCT(AN$9:AN$229,Nutrients!$FA$8:$FA$228)+(IF($A$7=Nutrients!$B$8,Nutrients!$FA$8,Nutrients!$FA$9)*AN$7)+(((IF($A$8=Nutrients!$B$79,Nutrients!$FA$79,(IF($A$8=Nutrients!$B$77,Nutrients!$FA$77,Nutrients!$FA$78)))))*AN$8))","v":0},{"$f":"(SUMPRODUCT(AO$9:AO$229,Nutrients!$FA$8:$FA$228)+(IF($A$7=Nutrients!$B$8,Nutrients!$FA$8,Nutrients!$FA$9)*AO$7)+(((IF($A$8=Nutrients!$B$79,Nutrients!$FA$79,(IF($A$8=Nutrients!$B$77,Nutrients!$FA$77,Nutrients!$FA$78)))))*AO$8))","v":0},{"$f":"(SUMPRODUCT(AP$9:AP$229,Nutrients!$FA$8:$FA$228)+(IF($A$7=Nutrients!$B$8,Nutrients!$FA$8,Nutrients!$FA$9)*AP$7)+(((IF($A$8=Nutrients!$B$79,Nutrients!$FA$79,(IF($A$8=Nutrients!$B$77,Nutrients!$FA$77,Nutrients!$FA$78)))))*AP$8))","v":0},null,{"$f":"(SUMPRODUCT(AR$9:AR$229,Nutrients!$FA$8:$FA$228)+(IF($A$7=Nutrients!$B$8,Nutrients!$FA$8,Nutrients!$FA$9)*AR$7)+(((IF($A$8=Nutrients!$B$79,Nutrients!$FA$79,(IF($A$8=Nutrients!$B$77,Nutrients!$FA$77,Nutrients!$FA$78)))))*AR$8))","v":0},{"$f":"(SUMPRODUCT(AS$9:AS$229,Nutrients!$FA$8:$FA$228)+(IF($A$7=Nutrients!$B$8,Nutrients!$FA$8,Nutrients!$FA$9)*AS$7)+(((IF($A$8=Nutrients!$B$79,Nutrients!$FA$79,(IF($A$8=Nutrients!$B$77,Nutrients!$FA$77,Nutrients!$FA$78)))))*AS$8))","v":0},{"$f":"(SUMPRODUCT(AT$9:AT$229,Nutrients!$FA$8:$FA$228)+(IF($A$7=Nutrients!$B$8,Nutrients!$FA$8,Nutrients!$FA$9)*AT$7)+(((IF($A$8=Nutrients!$B$79,Nutrients!$FA$79,(IF($A$8=Nutrients!$B$77,Nutrients!$FA$77,Nutrients!$FA$78)))))*AT$8))","v":0},{"$f":"(SUMPRODUCT(AU$9:AU$229,Nutrients!$FA$8:$FA$228)+(IF($A$7=Nutrients!$B$8,Nutrients!$FA$8,Nutrients!$FA$9)*AU$7)+(((IF($A$8=Nutrients!$B$79,Nutrients!$FA$79,(IF($A$8=Nutrients!$B$77,Nutrients!$FA$77,Nutrients!$FA$78)))))*AU$8))","v":0},{"$f":"(SUMPRODUCT(AV$9:AV$229,Nutrients!$FA$8:$FA$228)+(IF($A$7=Nutrients!$B$8,Nutrients!$FA$8,Nutrients!$FA$9)*AV$7)+(((IF($A$8=Nutrients!$B$79,Nutrients!$FA$79,(IF($A$8=Nutrients!$B$77,Nutrients!$FA$77,Nutrients!$FA$78)))))*AV$8))","v":0},{"$f":"(SUMPRODUCT(AW$9:AW$229,Nutrients!$FA$8:$FA$228)+(IF($A$7=Nutrients!$B$8,Nutrients!$FA$8,Nutrients!$FA$9)*AW$7)+(((IF($A$8=Nutrients!$B$79,Nutrients!$FA$79,(IF($A$8=Nutrients!$B$77,Nutrients!$FA$77,Nutrients!$FA$78)))))*AW$8))","v":0}]
["  Folic acid, mg/ton",{"$f":"(SUMPRODUCT(B$9:B$229,Nutrients!$FB$8:$FB$228)+(IF($A$7=Nutrients!$B$8,Nutrients!$FB$8,Nutrients!$FB$9)*B$7)+(((IF($A$8=Nutrients!$B$79,Nutrients!$FB$79,(IF($A$8=Nutrients!$B$77,Nutrients!$FB$77,Nutrients!$FB$78)))))*B$8))","v":0},{"$f":"(SUMPRODUCT(C$9:C$229,Nutrients!$FB$8:$FB$228)+(IF($A$7=Nutrients!$B$8,Nutrients!$FB$8,Nutrients!$FB$9)*C$7)+(((IF($A$8=Nutrients!$B$79,Nutrients!$FB$79,(IF($A$8=Nutrients!$B$77,Nutrients!$FB$77,Nutrients!$FB$78)))))*C$8))","v":0},{"$f":"(SUMPRODUCT(D$9:D$229,Nutrients!$FB$8:$FB$228)+(IF($A$7=Nutrients!$B$8,Nutrients!$FB$8,Nutrients!$FB$9)*D$7)+(((IF($A$8=Nutrients!$B$79,Nutrients!$FB$79,(IF($A$8=Nutrients!$B$77,Nutrients!$FB$77,Nutrients!$FB$78)))))*D$8))","v":0},{"$f":"(SUMPRODUCT(E$9:E$229,Nutrients!$FB$8:$FB$228)+(IF($A$7=Nutrients!$B$8,Nutrients!$FB$8,Nutrients!$FB$9)*E$7)+(((IF($A$8=Nutrients!$B$79,Nutrients!$FB$79,(IF($A$8=Nutrients!$B$77,Nutrients!$FB$77,Nutrients!$FB$78)))))*E$8))","v":0},{"$f":"(SUMPRODUCT(F$9:F$229,Nutrients!$FB$8:$FB$228)+(IF($A$7=Nutrients!$B$8,Nutrients!$FB$8,Nutrients!$FB$9)*F$7)+(((IF($A$8=Nutrients!$B$79,Nutrients!$FB$79,(IF($A$8=Nutrients!$B$77,Nutrients!$FB$77,Nutrients!$FB$78)))))*F$8))","v":0},{"$f":"(SUMPRODUCT(G$9:G$229,Nutrients!$FB$8:$FB$228)+(IF($A$7=Nutrients!$B$8,Nutrients!$FB$8,Nutrients!$FB$9)*G$7)+(((IF($A$8=Nutrients!$B$79,Nutrients!$FB$79,(IF($A$8=Nutrients!$B$77,Nutrients!$FB$77,Nutrients!$FB$78)))))*G$8))","v":0},null,{"$f":"(SUMPRODUCT(I$9:I$229,Nutrients!$FB$8:$FB$228)+(IF($A$7=Nutrients!$B$8,Nutrients!$FB$8,Nutrients!$FB$9)*I$7)+(((IF($A$8=Nutrients!$B$79,Nutrients!$FB$79,(IF($A$8=Nutrients!$B$77,Nutrients!$FB$77,Nutrients!$FB$78)))))*I$8))","v":0},{"$f":"(SUMPRODUCT(J$9:J$229,Nutrients!$FB$8:$FB$228)+(IF($A$7=Nutrients!$B$8,Nutrients!$FB$8,Nutrients!$FB$9)*J$7)+(((IF($A$8=Nutrients!$B$79,Nutrients!$FB$79,(IF($A$8=Nutrients!$B$77,Nutrients!$FB$77,Nutrients!$FB$78)))))*J$8))","v":0},{"$f":"(SUMPRODUCT(K$9:K$229,Nutrients!$FB$8:$FB$228)+(IF($A$7=Nutrients!$B$8,Nutrients!$FB$8,Nutrients!$FB$9)*K$7)+(((IF($A$8=Nutrients!$B$79,Nutrients!$FB$79,(IF($A$8=Nutrients!$B$77,Nutrients!$FB$77,Nutrients!$FB$78)))))*K$8))","v":0},{"$f":"(SUMPRODUCT(L$9:L$229,Nutrients!$FB$8:$FB$228)+(IF($A$7=Nutrients!$B$8,Nutrients!$FB$8,Nutrients!$FB$9)*L$7)+(((IF($A$8=Nutrients!$B$79,Nutrients!$FB$79,(IF($A$8=Nutrients!$B$77,Nutrients!$FB$77,Nutrients!$FB$78)))))*L$8))","v":0},{"$f":"(SUMPRODUCT(M$9:M$229,Nutrients!$FB$8:$FB$228)+(IF($A$7=Nutrients!$B$8,Nutrients!$FB$8,Nutrients!$FB$9)*M$7)+(((IF($A$8=Nutrients!$B$79,Nutrients!$FB$79,(IF($A$8=Nutrients!$B$77,Nutrients!$FB$77,Nutrients!$FB$78)))))*M$8))","v":0},{"$f":"(SUMPRODUCT(N$9:N$229,Nutrients!$FB$8:$FB$228)+(IF($A$7=Nutrients!$B$8,Nutrients!$FB$8,Nutrients!$FB$9)*N$7)+(((IF($A$8=Nutrients!$B$79,Nutrients!$FB$79,(IF($A$8=Nutrients!$B$77,Nutrients!$FB$77,Nutrients!$FB$78)))))*N$8))","v":0},null,{"$f":"(SUMPRODUCT(P$9:P$229,Nutrients!$FB$8:$FB$228)+(IF($A$7=Nutrients!$B$8,Nutrients!$FB$8,Nutrients!$FB$9)*P$7)+(((IF($A$8=Nutrients!$B$79,Nutrients!$FB$79,(IF($A$8=Nutrients!$B$77,Nutrients!$FB$77,Nutrients!$FB$78)))))*P$8))","v":0},{"$f":"(SUMPRODUCT(Q$9:Q$229,Nutrients!$FB$8:$FB$228)+(IF($A$7=Nutrients!$B$8,Nutrients!$FB$8,Nutrients!$FB$9)*Q$7)+(((IF($A$8=Nutrients!$B$79,Nutrients!$FB$79,(IF($A$8=Nutrients!$B$77,Nutrients!$FB$77,Nutrients!$FB$78)))))*Q$8))","v":0},{"$f":"(SUMPRODUCT(R$9:R$229,Nutrients!$FB$8:$FB$228)+(IF($A$7=Nutrients!$B$8,Nutrients!$FB$8,Nutrients!$FB$9)*R$7)+(((IF($A$8=Nutrients!$B$79,Nutrients!$FB$79,(IF($A$8=Nutrients!$B$77,Nutrients!$FB$77,Nutrients!$FB$78)))))*R$8))","v":0},{"$f":"(SUMPRODUCT(S$9:S$229,Nutrients!$FB$8:$FB$228)+(IF($A$7=Nutrients!$B$8,Nutrients!$FB$8,Nutrients!$FB$9)*S$7)+(((IF($A$8=Nutrients!$B$79,Nutrients!$FB$79,(IF($A$8=Nutrients!$B$77,Nutrients!$FB$77,Nutrients!$FB$78)))))*S$8))","v":0},{"$f":"(SUMPRODUCT(T$9:T$229,Nutrients!$FB$8:$FB$228)+(IF($A$7=Nutrients!$B$8,Nutrients!$FB$8,Nutrients!$FB$9)*T$7)+(((IF($A$8=Nutrients!$B$79,Nutrients!$FB$79,(IF($A$8=Nutrients!$B$77,Nutrients!$FB$77,Nutrients!$FB$78)))))*T$8))","v":0},{"$f":"(SUMPRODUCT(U$9:U$229,Nutrients!$FB$8:$FB$228)+(IF($A$7=Nutrients!$B$8,Nutrients!$FB$8,Nutrients!$FB$9)*U$7)+(((IF($A$8=Nutrients!$B$79,Nutrients!$FB$79,(IF($A$8=Nutrients!$B$77,Nutrients!$FB$77,Nutrients!$FB$78)))))*U$8))","v":0},null,{"$f":"(SUMPRODUCT(W$9:W$229,Nutrients!$FB$8:$FB$228)+(IF($A$7=Nutrients!$B$8,Nutrients!$FB$8,Nutrients!$FB$9)*W$7)+(((IF($A$8=Nutrients!$B$79,Nutrients!$FB$79,(IF($A$8=Nutrients!$B$77,Nutrients!$FB$77,Nutrients!$FB$78)))))*W$8))","v":0},{"$f":"(SUMPRODUCT(X$9:X$229,Nutrients!$FB$8:$FB$228)+(IF($A$7=Nutrients!$B$8,Nutrients!$FB$8,Nutrients!$FB$9)*X$7)+(((IF($A$8=Nutrients!$B$79,Nutrients!$FB$79,(IF($A$8=Nutrients!$B$77,Nutrients!$FB$77,Nutrients!$FB$78)))))*X$8))","v":0},{"$f":"(SUMPRODUCT(Y$9:Y$229,Nutrients!$FB$8:$FB$228)+(IF($A$7=Nutrients!$B$8,Nutrients!$FB$8,Nutrients!$FB$9)*Y$7)+(((IF($A$8=Nutrients!$B$79,Nutrients!$FB$79,(IF($A$8=Nutrients!$B$77,Nutrients!$FB$77,Nutrients!$FB$78)))))*Y$8))","v":0},{"$f":"(SUMPRODUCT(Z$9:Z$229,Nutrients!$FB$8:$FB$228)+(IF($A$7=Nutrients!$B$8,Nutrients!$FB$8,Nutrients!$FB$9)*Z$7)+(((IF($A$8=Nutrients!$B$79,Nutrients!$FB$79,(IF($A$8=Nutrients!$B$77,Nutrients!$FB$77,Nutrients!$FB$78)))))*Z$8))","v":0},{"$f":"(SUMPRODUCT(AA$9:AA$229,Nutrients!$FB$8:$FB$228)+(IF($A$7=Nutrients!$B$8,Nutrients!$FB$8,Nutrients!$FB$9)*AA$7)+(((IF($A$8=Nutrients!$B$79,Nutrients!$FB$79,(IF($A$8=Nutrients!$B$77,Nutrients!$FB$77,Nutrients!$FB$78)))))*AA$8))","v":0},{"$f":"(SUMPRODUCT(AB$9:AB$229,Nutrients!$FB$8:$FB$228)+(IF($A$7=Nutrients!$B$8,Nutrients!$FB$8,Nutrients!$FB$9)*AB$7)+(((IF($A$8=Nutrients!$B$79,Nutrients!$FB$79,(IF($A$8=Nutrients!$B$77,Nutrients!$FB$77,Nutrients!$FB$78)))))*AB$8))","v":0},null,{"$f":"(SUMPRODUCT(AD$9:AD$229,Nutrients!$FB$8:$FB$228)+(IF($A$7=Nutrients!$B$8,Nutrients!$FB$8,Nutrients!$FB$9)*AD$7)+(((IF($A$8=Nutrients!$B$79,Nutrients!$FB$79,(IF($A$8=Nutrients!$B$77,Nutrients!$FB$77,Nutrients!$FB$78)))))*AD$8))","v":0},{"$f":"(SUMPRODUCT(AE$9:AE$229,Nutrients!$FB$8:$FB$228)+(IF($A$7=Nutrients!$B$8,Nutrients!$FB$8,Nutrients!$FB$9)*AE$7)+(((IF($A$8=Nutrients!$B$79,Nutrients!$FB$79,(IF($A$8=Nutrients!$B$77,Nutrients!$FB$77,Nutrients!$FB$78)))))*AE$8))","v":0},{"$f":"(SUMPRODUCT(AF$9:AF$229,Nutrients!$FB$8:$FB$228)+(IF($A$7=Nutrients!$B$8,Nutrients!$FB$8,Nutrients!$FB$9)*AF$7)+(((IF($A$8=Nutrients!$B$79,Nutrients!$FB$79,(IF($A$8=Nutrients!$B$77,Nutrients!$FB$77,Nutrients!$FB$78)))))*AF$8))","v":0},{"$f":"(SUMPRODUCT(AG$9:AG$229,Nutrients!$FB$8:$FB$228)+(IF($A$7=Nutrients!$B$8,Nutrients!$FB$8,Nutrients!$FB$9)*AG$7)+(((IF($A$8=Nutrients!$B$79,Nutrients!$FB$79,(IF($A$8=Nutrients!$B$77,Nutrients!$FB$77,Nutrients!$FB$78)))))*AG$8))","v":0},{"$f":"(SUMPRODUCT(AH$9:AH$229,Nutrients!$FB$8:$FB$228)+(IF($A$7=Nutrients!$B$8,Nutrients!$FB$8,Nutrients!$FB$9)*AH$7)+(((IF($A$8=Nutrients!$B$79,Nutrients!$FB$79,(IF($A$8=Nutrients!$B$77,Nutrients!$FB$77,Nutrients!$FB$78)))))*AH$8))","v":0},{"$f":"(SUMPRODUCT(AI$9:AI$229,Nutrients!$FB$8:$FB$228)+(IF($A$7=Nutrients!$B$8,Nutrients!$FB$8,Nutrients!$FB$9)*AI$7)+(((IF($A$8=Nutrients!$B$79,Nutrients!$FB$79,(IF($A$8=Nutrients!$B$77,Nutrients!$FB$77,Nutrients!$FB$78)))))*AI$8))","v":0},null,{"$f":"(SUMPRODUCT(AK$9:AK$229,Nutrients!$FB$8:$FB$228)+(IF($A$7=Nutrients!$B$8,Nutrients!$FB$8,Nutrients!$FB$9)*AK$7)+(((IF($A$8=Nutrients!$B$79,Nutrients!$FB$79,(IF($A$8=Nutrients!$B$77,Nutrients!$FB$77,Nutrients!$FB$78)))))*AK$8))","v":0},{"$f":"(SUMPRODUCT(AL$9:AL$229,Nutrients!$FB$8:$FB$228)+(IF($A$7=Nutrients!$B$8,Nutrients!$FB$8,Nutrients!$FB$9)*AL$7)+(((IF($A$8=Nutrients!$B$79,Nutrients!$FB$79,(IF($A$8=Nutrients!$B$77,Nutrients!$FB$77,Nutrients!$FB$78)))))*AL$8))","v":0},{"$f":"(SUMPRODUCT(AM$9:AM$229,Nutrients!$FB$8:$FB$228)+(IF($A$7=Nutrients!$B$8,Nutrients!$FB$8,Nutrients!$FB$9)*AM$7)+(((IF($A$8=Nutrients!$B$79,Nutrients!$FB$79,(IF($A$8=Nutrients!$B$77,Nutrients!$FB$77,Nutrients!$FB$78)))))*AM$8))","v":0},{"$f":"(SUMPRODUCT(AN$9:AN$229,Nutrients!$FB$8:$FB$228)+(IF($A$7=Nutrients!$B$8,Nutrients!$FB$8,Nutrients!$FB$9)*AN$7)+(((IF($A$8=Nutrients!$B$79,Nutrients!$FB$79,(IF($A$8=Nutrients!$B$77,Nutrients!$FB$77,Nutrients!$FB$78)))))*AN$8))","v":0},{"$f":"(SUMPRODUCT(AO$9:AO$229,Nutrients!$FB$8:$FB$228)+(IF($A$7=Nutrients!$B$8,Nutrients!$FB$8,Nutrients!$FB$9)*AO$7)+(((IF($A$8=Nutrients!$B$79,Nutrients!$FB$79,(IF($A$8=Nutrients!$B$77,Nutrients!$FB$77,Nutrients!$FB$78)))))*AO$8))","v":0},{"$f":"(SUMPRODUCT(AP$9:AP$229,Nutrients!$FB$8:$FB$228)+(IF($A$7=Nutrients!$B$8,Nutrients!$FB$8,Nutrients!$FB$9)*AP$7)+(((IF($A$8=Nutrients!$B$79,Nutrients!$FB$79,(IF($A$8=Nutrients!$B$77,Nutrients!$FB$77,Nutrients!$FB$78)))))*AP$8))","v":0},null,{"$f":"(SUMPRODUCT(AR$9:AR$229,Nutrients!$FB$8:$FB$228)+(IF($A$7=Nutrients!$B$8,Nutrients!$FB$8,Nutrients!$FB$9)*AR$7)+(((IF($A$8=Nutrients!$B$79,Nutrients!$FB$79,(IF($A$8=Nutrients!$B$77,Nutrients!$FB$77,Nutrients!$FB$78)))))*AR$8))","v":0},{"$f":"(SUMPRODUCT(AS$9:AS$229,Nutrients!$FB$8:$FB$228)+(IF($A$7=Nutrients!$B$8,Nutrients!$FB$8,Nutrients!$FB$9)*AS$7)+(((IF($A$8=Nutrients!$B$79,Nutrients!$FB$79,(IF($A$8=Nutrients!$B$77,Nutrients!$FB$77,Nutrients!$FB$78)))))*AS$8))","v":0},{"$f":"(SUMPRODUCT(AT$9:AT$229,Nutrients!$FB$8:$FB$228)+(IF($A$7=Nutrients!$B$8,Nutrients!$FB$8,Nutrients!$FB$9)*AT$7)+(((IF($A$8=Nutrients!$B$79,Nutrients!$FB$79,(IF($A$8=Nutrients!$B$77,Nutrients!$FB$77,Nutrients!$FB$78)))))*AT$8))","v":0},{"$f":"(SUMPRODUCT(AU$9:AU$229,Nutrients!$FB$8:$FB$228)+(IF($A$7=Nutrients!$B$8,Nutrients!$FB$8,Nutrients!$FB$9)*AU$7)+(((IF($A$8=Nutrients!$B$79,Nutrients!$FB$79,(IF($A$8=Nutrients!$B$77,Nutrients!$FB$77,Nutrients!$FB$78)))))*AU$8))","v":0},{"$f":"(SUMPRODUCT(AV$9:AV$229,Nutrients!$FB$8:$FB$228)+(IF($A$7=Nutrients!$B$8,Nutrients!$FB$8,Nutrients!$FB$9)*AV$7)+(((IF($A$8=Nutrients!$B$79,Nutrients!$FB$79,(IF($A$8=Nutrients!$B$77,Nutrients!$FB$77,Nutrients!$FB$78)))))*AV$8))","v":0},{"$f":"(SUMPRODUCT(AW$9:AW$229,Nutrients!$FB$8:$FB$228)+(IF($A$7=Nutrients!$B$8,Nutrients!$FB$8,Nutrients!$FB$9)*AW$7)+(((IF($A$8=Nutrients!$B$79,Nutrients!$FB$79,(IF($A$8=Nutrients!$B$77,Nutrients!$FB$77,Nutrients!$FB$78)))))*AW$8))","v":0}]
["  Pyridoxine, mg/ton",{"$f":"(SUMPRODUCT(B$9:B$229,Nutrients!$FC$8:$FC$228)+(IF($A$7=Nutrients!$B$8,Nutrients!$FC$8,Nutrients!$FC$9)*B$7)+(((IF($A$8=Nutrients!$B$79,Nutrients!$FC$79,(IF($A$8=Nutrients!$B$77,Nutrients!$FC$77,Nutrients!$FC$78)))))*B$8))","v":0},{"$f":"(SUMPRODUCT(C$9:C$229,Nutrients!$FC$8:$FC$228)+(IF($A$7=Nutrients!$B$8,Nutrients!$FC$8,Nutrients!$FC$9)*C$7)+(((IF($A$8=Nutrients!$B$79,Nutrients!$FC$79,(IF($A$8=Nutrients!$B$77,Nutrients!$FC$77,Nutrients!$FC$78)))))*C$8))","v":0},{"$f":"(SUMPRODUCT(D$9:D$229,Nutrients!$FC$8:$FC$228)+(IF($A$7=Nutrients!$B$8,Nutrients!$FC$8,Nutrients!$FC$9)*D$7)+(((IF($A$8=Nutrients!$B$79,Nutrients!$FC$79,(IF($A$8=Nutrients!$B$77,Nutrients!$FC$77,Nutrients!$FC$78)))))*D$8))","v":0},{"$f":"(SUMPRODUCT(E$9:E$229,Nutrients!$FC$8:$FC$228)+(IF($A$7=Nutrients!$B$8,Nutrients!$FC$8,Nutrients!$FC$9)*E$7)+(((IF($A$8=Nutrients!$B$79,Nutrients!$FC$79,(IF($A$8=Nutrients!$B$77,Nutrients!$FC$77,Nutrients!$FC$78)))))*E$8))","v":0},{"$f":"(SUMPRODUCT(F$9:F$229,Nutrients!$FC$8:$FC$228)+(IF($A$7=Nutrients!$B$8,Nutrients!$FC$8,Nutrients!$FC$9)*F$7)+(((IF($A$8=Nutrients!$B$79,Nutrients!$FC$79,(IF($A$8=Nutrients!$B$77,Nutrients!$FC$77,Nutrients!$FC$78)))))*F$8))","v":0},{"$f":"(SUMPRODUCT(G$9:G$229,Nutrients!$FC$8:$FC$228)+(IF($A$7=Nutrients!$B$8,Nutrients!$FC$8,Nutrients!$FC$9)*G$7)+(((IF($A$8=Nutrients!$B$79,Nutrients!$FC$79,(IF($A$8=Nutrients!$B$77,Nutrients!$FC$77,Nutrients!$FC$78)))))*G$8))","v":0},null,{"$f":"(SUMPRODUCT(I$9:I$229,Nutrients!$FC$8:$FC$228)+(IF($A$7=Nutrients!$B$8,Nutrients!$FC$8,Nutrients!$FC$9)*I$7)+(((IF($A$8=Nutrients!$B$79,Nutrients!$FC$79,(IF($A$8=Nutrients!$B$77,Nutrients!$FC$77,Nutrients!$FC$78)))))*I$8))","v":0},{"$f":"(SUMPRODUCT(J$9:J$229,Nutrients!$FC$8:$FC$228)+(IF($A$7=Nutrients!$B$8,Nutrients!$FC$8,Nutrients!$FC$9)*J$7)+(((IF($A$8=Nutrients!$B$79,Nutrients!$FC$79,(IF($A$8=Nutrients!$B$77,Nutrients!$FC$77,Nutrients!$FC$78)))))*J$8))","v":0},{"$f":"(SUMPRODUCT(K$9:K$229,Nutrients!$FC$8:$FC$228)+(IF($A$7=Nutrients!$B$8,Nutrients!$FC$8,Nutrients!$FC$9)*K$7)+(((IF($A$8=Nutrients!$B$79,Nutrients!$FC$79,(IF($A$8=Nutrients!$B$77,Nutrients!$FC$77,Nutrients!$FC$78)))))*K$8))","v":0},{"$f":"(SUMPRODUCT(L$9:L$229,Nutrients!$FC$8:$FC$228)+(IF($A$7=Nutrients!$B$8,Nutrients!$FC$8,Nutrients!$FC$9)*L$7)+(((IF($A$8=Nutrients!$B$79,Nutrients!$FC$79,(IF($A$8=Nutrients!$B$77,Nutrients!$FC$77,Nutrients!$FC$78)))))*L$8))","v":0},{"$f":"(SUMPRODUCT(M$9:M$229,Nutrients!$FC$8:$FC$228)+(IF($A$7=Nutrients!$B$8,Nutrients!$FC$8,Nutrients!$FC$9)*M$7)+(((IF($A$8=Nutrients!$B$79,Nutrients!$FC$79,(IF($A$8=Nutrients!$B$77,Nutrients!$FC$77,Nutrients!$FC$78)))))*M$8))","v":0},{"$f":"(SUMPRODUCT(N$9:N$229,Nutrients!$FC$8:$FC$228)+(IF($A$7=Nutrients!$B$8,Nutrients!$FC$8,Nutrients!$FC$9)*N$7)+(((IF($A$8=Nutrients!$B$79,Nutrients!$FC$79,(IF($A$8=Nutrients!$B$77,Nutrients!$FC$77,Nutrients!$FC$78)))))*N$8))","v":0},null,{"$f":"(SUMPRODUCT(P$9:P$229,Nutrients!$FC$8:$FC$228)+(IF($A$7=Nutrients!$B$8,Nutrients!$FC$8,Nutrients!$FC$9)*P$7)+(((IF($A$8=Nutrients!$B$79,Nutrients!$FC$79,(IF($A$8=Nutrients!$B$77,Nutrients!$FC$77,Nutrients!$FC$78)))))*P$8))","v":0},{"$f":"(SUMPRODUCT(Q$9:Q$229,Nutrients!$FC$8:$FC$228)+(IF($A$7=Nutrients!$B$8,Nutrients!$FC$8,Nutrients!$FC$9)*Q$7)+(((IF($A$8=Nutrients!$B$79,Nutrients!$FC$79,(IF($A$8=Nutrients!$B$77,Nutrients!$FC$77,Nutrients!$FC$78)))))*Q$8))","v":0},{"$f":"(SUMPRODUCT(R$9:R$229,Nutrients!$FC$8:$FC$228)+(IF($A$7=Nutrients!$B$8,Nutrients!$FC$8,Nutrients!$FC$9)*R$7)+(((IF($A$8=Nutrients!$B$79,Nutrients!$FC$79,(IF($A$8=Nutrients!$B$77,Nutrients!$FC$77,Nutrients!$FC$78)))))*R$8))","v":0},{"$f":"(SUMPRODUCT(S$9:S$229,Nutrients!$FC$8:$FC$228)+(IF($A$7=Nutrients!$B$8,Nutrients!$FC$8,Nutrients!$FC$9)*S$7)+(((IF($A$8=Nutrients!$B$79,Nutrients!$FC$79,(IF($A$8=Nutrients!$B$77,Nutrients!$FC$77,Nutrients!$FC$78)))))*S$8))","v":0},{"$f":"(SUMPRODUCT(T$9:T$229,Nutrients!$FC$8:$FC$228)+(IF($A$7=Nutrients!$B$8,Nutrients!$FC$8,Nutrients!$FC$9)*T$7)+(((IF($A$8=Nutrients!$B$79,Nutrients!$FC$79,(IF($A$8=Nutrients!$B$77,Nutrients!$FC$77,Nutrients!$FC$78)))))*T$8))","v":0},{"$f":"(SUMPRODUCT(U$9:U$229,Nutrients!$FC$8:$FC$228)+(IF($A$7=Nutrients!$B$8,Nutrients!$FC$8,Nutrients!$FC$9)*U$7)+(((IF($A$8=Nutrients!$B$79,Nutrients!$FC$79,(IF($A$8=Nutrients!$B$77,Nutrients!$FC$77,Nutrients!$FC$78)))))*U$8))","v":0},null,{"$f":"(SUMPRODUCT(W$9:W$229,Nutrients!$FC$8:$FC$228)+(IF($A$7=Nutrients!$B$8,Nutrients!$FC$8,Nutrients!$FC$9)*W$7)+(((IF($A$8=Nutrients!$B$79,Nutrients!$FC$79,(IF($A$8=Nutrients!$B$77,Nutrients!$FC$77,Nutrients!$FC$78)))))*W$8))","v":0},{"$f":"(SUMPRODUCT(X$9:X$229,Nutrients!$FC$8:$FC$228)+(IF($A$7=Nutrients!$B$8,Nutrients!$FC$8,Nutrients!$FC$9)*X$7)+(((IF($A$8=Nutrients!$B$79,Nutrients!$FC$79,(IF($A$8=Nutrients!$B$77,Nutrients!$FC$77,Nutrients!$FC$78)))))*X$8))","v":0},{"$f":"(SUMPRODUCT(Y$9:Y$229,Nutrients!$FC$8:$FC$228)+(IF($A$7=Nutrients!$B$8,Nutrients!$FC$8,Nutrients!$FC$9)*Y$7)+(((IF($A$8=Nutrients!$B$79,Nutrients!$FC$79,(IF($A$8=Nutrients!$B$77,Nutrients!$FC$77,Nutrients!$FC$78)))))*Y$8))","v":0},{"$f":"(SUMPRODUCT(Z$9:Z$229,Nutrients!$FC$8:$FC$228)+(IF($A$7=Nutrients!$B$8,Nutrients!$FC$8,Nutrients!$FC$9)*Z$7)+(((IF($A$8=Nutrients!$B$79,Nutrients!$FC$79,(IF($A$8=Nutrients!$B$77,Nutrients!$FC$77,Nutrients!$FC$78)))))*Z$8))","v":0},{"$f":"(SUMPRODUCT(AA$9:AA$229,Nutrients!$FC$8:$FC$228)+(IF($A$7=Nutrients!$B$8,Nutrients!$FC$8,Nutrients!$FC$9)*AA$7)+(((IF($A$8=Nutrients!$B$79,Nutrients!$FC$79,(IF($A$8=Nutrients!$B$77,Nutrients!$FC$77,Nutrients!$FC$78)))))*AA$8))","v":0},{"$f":"(SUMPRODUCT(AB$9:AB$229,Nutrients!$FC$8:$FC$228)+(IF($A$7=Nutrients!$B$8,Nutrients!$FC$8,Nutrients!$FC$9)*AB$7)+(((IF($A$8=Nutrients!$B$79,Nutrients!$FC$79,(IF($A$8=Nutrients!$B$77,Nutrients!$FC$77,Nutrients!$FC$78)))))*AB$8))","v":0},null,{"$f":"(SUMPRODUCT(AD$9:AD$229,Nutrients!$FC$8:$FC$228)+(IF($A$7=Nutrients!$B$8,Nutrients!$FC$8,Nutrients!$FC$9)*AD$7)+(((IF($A$8=Nutrients!$B$79,Nutrients!$FC$79,(IF($A$8=Nutrients!$B$77,Nutrients!$FC$77,Nutrients!$FC$78)))))*AD$8))","v":0},{"$f":"(SUMPRODUCT(AE$9:AE$229,Nutrients!$FC$8:$FC$228)+(IF($A$7=Nutrients!$B$8,Nutrients!$FC$8,Nutrients!$FC$9)*AE$7)+(((IF($A$8=Nutrients!$B$79,Nutrients!$FC$79,(IF($A$8=Nutrients!$B$77,Nutrients!$FC$77,Nutrients!$FC$78)))))*AE$8))","v":0},{"$f":"(SUMPRODUCT(AF$9:AF$229,Nutrients!$FC$8:$FC$228)+(IF($A$7=Nutrients!$B$8,Nutrients!$FC$8,Nutrients!$FC$9)*AF$7)+(((IF($A$8=Nutrients!$B$79,Nutrients!$FC$79,(IF($A$8=Nutrients!$B$77,Nutrients!$FC$77,Nutrients!$FC$78)))))*AF$8))","v":0},{"$f":"(SUMPRODUCT(AG$9:AG$229,Nutrients!$FC$8:$FC$228)+(IF($A$7=Nutrients!$B$8,Nutrients!$FC$8,Nutrients!$FC$9)*AG$7)+(((IF($A$8=Nutrients!$B$79,Nutrients!$FC$79,(IF($A$8=Nutrients!$B$77,Nutrients!$FC$77,Nutrients!$FC$78)))))*AG$8))","v":0},{"$f":"(SUMPRODUCT(AH$9:AH$229,Nutrients!$FC$8:$FC$228)+(IF($A$7=Nutrients!$B$8,Nutrients!$FC$8,Nutrients!$FC$9)*AH$7)+(((IF($A$8=Nutrients!$B$79,Nutrients!$FC$79,(IF($A$8=Nutrients!$B$77,Nutrients!$FC$77,Nutrients!$FC$78)))))*AH$8))","v":0},{"$f":"(SUMPRODUCT(AI$9:AI$229,Nutrients!$FC$8:$FC$228)+(IF($A$7=Nutrients!$B$8,Nutrients!$FC$8,Nutrients!$FC$9)*AI$7)+(((IF($A$8=Nutrients!$B$79,Nutrients!$FC$79,(IF($A$8=Nutrients!$B$77,Nutrients!$FC$77,Nutrients!$FC$78)))))*AI$8))","v":0},null,{"$f":"(SUMPRODUCT(AK$9:AK$229,Nutrients!$FC$8:$FC$228)+(IF($A$7=Nutrients!$B$8,Nutrients!$FC$8,Nutrients!$FC$9)*AK$7)+(((IF($A$8=Nutrients!$B$79,Nutrients!$FC$79,(IF($A$8=Nutrients!$B$77,Nutrients!$FC$77,Nutrients!$FC$78)))))*AK$8))","v":0},{"$f":"(SUMPRODUCT(AL$9:AL$229,Nutrients!$FC$8:$FC$228)+(IF($A$7=Nutrients!$B$8,Nutrients!$FC$8,Nutrients!$FC$9)*AL$7)+(((IF($A$8=Nutrients!$B$79,Nutrients!$FC$79,(IF($A$8=Nutrients!$B$77,Nutrients!$FC$77,Nutrients!$FC$78)))))*AL$8))","v":0},{"$f":"(SUMPRODUCT(AM$9:AM$229,Nutrients!$FC$8:$FC$228)+(IF($A$7=Nutrients!$B$8,Nutrients!$FC$8,Nutrients!$FC$9)*AM$7)+(((IF($A$8=Nutrients!$B$79,Nutrients!$FC$79,(IF($A$8=Nutrients!$B$77,Nutrients!$FC$77,Nutrients!$FC$78)))))*AM$8))","v":0},{"$f":"(SUMPRODUCT(AN$9:AN$229,Nutrients!$FC$8:$FC$228)+(IF($A$7=Nutrients!$B$8,Nutrients!$FC$8,Nutrients!$FC$9)*AN$7)+(((IF($A$8=Nutrients!$B$79,Nutrients!$FC$79,(IF($A$8=Nutrients!$B$77,Nutrients!$FC$77,Nutrients!$FC$78)))))*AN$8))","v":0},{"$f":"(SUMPRODUCT(AO$9:AO$229,Nutrients!$FC$8:$FC$228)+(IF($A$7=Nutrients!$B$8,Nutrients!$FC$8,Nutrients!$FC$9)*AO$7)+(((IF($A$8=Nutrients!$B$79,Nutrients!$FC$79,(IF($A$8=Nutrients!$B$77,Nutrients!$FC$77,Nutrients!$FC$78)))))*AO$8))","v":0},{"$f":"(SUMPRODUCT(AP$9:AP$229,Nutrients!$FC$8:$FC$228)+(IF($A$7=Nutrients!$B$8,Nutrients!$FC$8,Nutrients!$FC$9)*AP$7)+(((IF($A$8=Nutrients!$B$79,Nutrients!$FC$79,(IF($A$8=Nutrients!$B$77,Nutrients!$FC$77,Nutrients!$FC$78)))))*AP$8))","v":0},null,{"$f":"(SUMPRODUCT(AR$9:AR$229,Nutrients!$FC$8:$FC$228)+(IF($A$7=Nutrients!$B$8,Nutrients!$FC$8,Nutrients!$FC$9)*AR$7)+(((IF($A$8=Nutrients!$B$79,Nutrients!$FC$79,(IF($A$8=Nutrients!$B$77,Nutrients!$FC$77,Nutrients!$FC$78)))))*AR$8))","v":0},{"$f":"(SUMPRODUCT(AS$9:AS$229,Nutrients!$FC$8:$FC$228)+(IF($A$7=Nutrients!$B$8,Nutrients!$FC$8,Nutrients!$FC$9)*AS$7)+(((IF($A$8=Nutrients!$B$79,Nutrients!$FC$79,(IF($A$8=Nutrients!$B$77,Nutrients!$FC$77,Nutrients!$FC$78)))))*AS$8))","v":0},{"$f":"(SUMPRODUCT(AT$9:AT$229,Nutrients!$FC$8:$FC$228)+(IF($A$7=Nutrients!$B$8,Nutrients!$FC$8,Nutrients!$FC$9)*AT$7)+(((IF($A$8=Nutrients!$B$79,Nutrients!$FC$79,(IF($A$8=Nutrients!$B$77,Nutrients!$FC$77,Nutrients!$FC$78)))))*AT$8))","v":0},{"$f":"(SUMPRODUCT(AU$9:AU$229,Nutrients!$FC$8:$FC$228)+(IF($A$7=Nutrients!$B$8,Nutrients!$FC$8,Nutrients!$FC$9)*AU$7)+(((IF($A$8=Nutrients!$B$79,Nutrients!$FC$79,(IF($A$8=Nutrients!$B$77,Nutrients!$FC$77,Nutrients!$FC$78)))))*AU$8))","v":0},{"$f":"(SUMPRODUCT(AV$9:AV$229,Nutrients!$FC$8:$FC$228)+(IF($A$7=Nutrients!$B$8,Nutrients!$FC$8,Nutrients!$FC$9)*AV$7)+(((IF($A$8=Nutrients!$B$79,Nutrients!$FC$79,(IF($A$8=Nutrients!$B$77,Nutrients!$FC$77,Nutrients!$FC$78)))))*AV$8))","v":0},{"$f":"(SUMPRODUCT(AW$9:AW$229,Nutrients!$FC$8:$FC$228)+(IF($A$7=Nutrients!$B$8,Nutrients!$FC$8,Nutrients!$FC$9)*AW$7)+(((IF($A$8=Nutrients!$B$79,Nutrients!$FC$79,(IF($A$8=Nutrients!$B$77,Nutrients!$FC$77,Nutrients!$FC$78)))))*AW$8))","v":0}]
["  Choline, mg/ton",{"$f":"(SUMPRODUCT(B$9:B$229,Nutrients!$FD$8:$FD$228)+(IF($A$7=Nutrients!$B$8,Nutrients!$FD$8,Nutrients!$FD$9)*B$7)+(((IF($A$8=Nutrients!$B$79,Nutrients!$FD$79,(IF($A$8=Nutrients!$B$77,Nutrients!$FD$77,Nutrients!$FD$78)))))*B$8))","v":0},{"$f":"(SUMPRODUCT(C$9:C$229,Nutrients!$FD$8:$FD$228)+(IF($A$7=Nutrients!$B$8,Nutrients!$FD$8,Nutrients!$FD$9)*C$7)+(((IF($A$8=Nutrients!$B$79,Nutrients!$FD$79,(IF($A$8=Nutrients!$B$77,Nutrients!$FD$77,Nutrients!$FD$78)))))*C$8))","v":0},{"$f":"(SUMPRODUCT(D$9:D$229,Nutrients!$FD$8:$FD$228)+(IF($A$7=Nutrients!$B$8,Nutrients!$FD$8,Nutrients!$FD$9)*D$7)+(((IF($A$8=Nutrients!$B$79,Nutrients!$FD$79,(IF($A$8=Nutrients!$B$77,Nutrients!$FD$77,Nutrients!$FD$78)))))*D$8))","v":0},{"$f":"(SUMPRODUCT(E$9:E$229,Nutrients!$FD$8:$FD$228)+(IF($A$7=Nutrients!$B$8,Nutrients!$FD$8,Nutrients!$FD$9)*E$7)+(((IF($A$8=Nutrients!$B$79,Nutrients!$FD$79,(IF($A$8=Nutrients!$B$77,Nutrients!$FD$77,Nutrients!$FD$78)))))*E$8))","v":0},{"$f":"(SUMPRODUCT(F$9:F$229,Nutrients!$FD$8:$FD$228)+(IF($A$7=Nutrients!$B$8,Nutrients!$FD$8,Nutrients!$FD$9)*F$7)+(((IF($A$8=Nutrients!$B$79,Nutrients!$FD$79,(IF($A$8=Nutrients!$B$77,Nutrients!$FD$77,Nutrients!$FD$78)))))*F$8))","v":0},{"$f":"(SUMPRODUCT(G$9:G$229,Nutrients!$FD$8:$FD$228)+(IF($A$7=Nutrients!$B$8,Nutrients!$FD$8,Nutrients!$FD$9)*G$7)+(((IF($A$8=Nutrients!$B$79,Nutrients!$FD$79,(IF($A$8=Nutrients!$B$77,Nutrients!$FD$77,Nutrients!$FD$78)))))*G$8))","v":0},null,{"$f":"(SUMPRODUCT(I$9:I$229,Nutrients!$FD$8:$FD$228)+(IF($A$7=Nutrients!$B$8,Nutrients!$FD$8,Nutrients!$FD$9)*I$7)+(((IF($A$8=Nutrients!$B$79,Nutrients!$FD$79,(IF($A$8=Nutrients!$B$77,Nutrients!$FD$77,Nutrients!$FD$78)))))*I$8))","v":0},{"$f":"(SUMPRODUCT(J$9:J$229,Nutrients!$FD$8:$FD$228)+(IF($A$7=Nutrients!$B$8,Nutrients!$FD$8,Nutrients!$FD$9)*J$7)+(((IF($A$8=Nutrients!$B$79,Nutrients!$FD$79,(IF($A$8=Nutrients!$B$77,Nutrients!$FD$77,Nutrients!$FD$78)))))*J$8))","v":0},{"$f":"(SUMPRODUCT(K$9:K$229,Nutrients!$FD$8:$FD$228)+(IF($A$7=Nutrients!$B$8,Nutrients!$FD$8,Nutrients!$FD$9)*K$7)+(((IF($A$8=Nutrients!$B$79,Nutrients!$FD$79,(IF($A$8=Nutrients!$B$77,Nutrients!$FD$77,Nutrients!$FD$78)))))*K$8))","v":0},{"$f":"(SUMPRODUCT(L$9:L$229,Nutrients!$FD$8:$FD$228)+(IF($A$7=Nutrients!$B$8,Nutrients!$FD$8,Nutrients!$FD$9)*L$7)+(((IF($A$8=Nutrients!$B$79,Nutrients!$FD$79,(IF($A$8=Nutrients!$B$77,Nutrients!$FD$77,Nutrients!$FD$78)))))*L$8))","v":0},{"$f":"(SUMPRODUCT(M$9:M$229,Nutrients!$FD$8:$FD$228)+(IF($A$7=Nutrients!$B$8,Nutrients!$FD$8,Nutrients!$FD$9)*M$7)+(((IF($A$8=Nutrients!$B$79,Nutrients!$FD$79,(IF($A$8=Nutrients!$B$77,Nutrients!$FD$77,Nutrients!$FD$78)))))*M$8))","v":0},{"$f":"(SUMPRODUCT(N$9:N$229,Nutrients!$FD$8:$FD$228)+(IF($A$7=Nutrients!$B$8,Nutrients!$FD$8,Nutrients!$FD$9)*N$7)+(((IF($A$8=Nutrients!$B$79,Nutrients!$FD$79,(IF($A$8=Nutrients!$B$77,Nutrients!$FD$77,Nutrients!$FD$78)))))*N$8))","v":0},null,{"$f":"(SUMPRODUCT(P$9:P$229,Nutrients!$FD$8:$FD$228)+(IF($A$7=Nutrients!$B$8,Nutrients!$FD$8,Nutrients!$FD$9)*P$7)+(((IF($A$8=Nutrients!$B$79,Nutrients!$FD$79,(IF($A$8=Nutrients!$B$77,Nutrients!$FD$77,Nutrients!$FD$78)))))*P$8))","v":0},{"$f":"(SUMPRODUCT(Q$9:Q$229,Nutrients!$FD$8:$FD$228)+(IF($A$7=Nutrients!$B$8,Nutrients!$FD$8,Nutrients!$FD$9)*Q$7)+(((IF($A$8=Nutrients!$B$79,Nutrients!$FD$79,(IF($A$8=Nutrients!$B$77,Nutrients!$FD$77,Nutrients!$FD$78)))))*Q$8))","v":0},{"$f":"(SUMPRODUCT(R$9:R$229,Nutrients!$FD$8:$FD$228)+(IF($A$7=Nutrients!$B$8,Nutrients!$FD$8,Nutrients!$FD$9)*R$7)+(((IF($A$8=Nutrients!$B$79,Nutrients!$FD$79,(IF($A$8=Nutrients!$B$77,Nutrients!$FD$77,Nutrients!$FD$78)))))*R$8))","v":0},{"$f":"(SUMPRODUCT(S$9:S$229,Nutrients!$FD$8:$FD$228)+(IF($A$7=Nutrients!$B$8,Nutrients!$FD$8,Nutrients!$FD$9)*S$7)+(((IF($A$8=Nutrients!$B$79,Nutrients!$FD$79,(IF($A$8=Nutrients!$B$77,Nutrients!$FD$77,Nutrients!$FD$78)))))*S$8))","v":0},{"$f":"(SUMPRODUCT(T$9:T$229,Nutrients!$FD$8:$FD$228)+(IF($A$7=Nutrients!$B$8,Nutrients!$FD$8,Nutrients!$FD$9)*T$7)+(((IF($A$8=Nutrients!$B$79,Nutrients!$FD$79,(IF($A$8=Nutrients!$B$77,Nutrients!$FD$77,Nutrients!$FD$78)))))*T$8))","v":0},{"$f":"(SUMPRODUCT(U$9:U$229,Nutrients!$FD$8:$FD$228)+(IF($A$7=Nutrients!$B$8,Nutrients!$FD$8,Nutrients!$FD$9)*U$7)+(((IF($A$8=Nutrients!$B$79,Nutrients!$FD$79,(IF($A$8=Nutrients!$B$77,Nutrients!$FD$77,Nutrients!$FD$78)))))*U$8))","v":0},null,{"$f":"(SUMPRODUCT(W$9:W$229,Nutrients!$FD$8:$FD$228)+(IF($A$7=Nutrients!$B$8,Nutrients!$FD$8,Nutrients!$FD$9)*W$7)+(((IF($A$8=Nutrients!$B$79,Nutrients!$FD$79,(IF($A$8=Nutrients!$B$77,Nutrients!$FD$77,Nutrients!$FD$78)))))*W$8))","v":0},{"$f":"(SUMPRODUCT(X$9:X$229,Nutrients!$FD$8:$FD$228)+(IF($A$7=Nutrients!$B$8,Nutrients!$FD$8,Nutrients!$FD$9)*X$7)+(((IF($A$8=Nutrients!$B$79,Nutrients!$FD$79,(IF($A$8=Nutrients!$B$77,Nutrients!$FD$77,Nutrients!$FD$78)))))*X$8))","v":0},{"$f":"(SUMPRODUCT(Y$9:Y$229,Nutrients!$FD$8:$FD$228)+(IF($A$7=Nutrients!$B$8,Nutrients!$FD$8,Nutrients!$FD$9)*Y$7)+(((IF($A$8=Nutrients!$B$79,Nutrients!$FD$79,(IF($A$8=Nutrients!$B$77,Nutrients!$FD$77,Nutrients!$FD$78)))))*Y$8))","v":0},{"$f":"(SUMPRODUCT(Z$9:Z$229,Nutrients!$FD$8:$FD$228)+(IF($A$7=Nutrients!$B$8,Nutrients!$FD$8,Nutrients!$FD$9)*Z$7)+(((IF($A$8=Nutrients!$B$79,Nutrients!$FD$79,(IF($A$8=Nutrients!$B$77,Nutrients!$FD$77,Nutrients!$FD$78)))))*Z$8))","v":0},{"$f":"(SUMPRODUCT(AA$9:AA$229,Nutrients!$FD$8:$FD$228)+(IF($A$7=Nutrients!$B$8,Nutrients!$FD$8,Nutrients!$FD$9)*AA$7)+(((IF($A$8=Nutrients!$B$79,Nutrients!$FD$79,(IF($A$8=Nutrients!$B$77,Nutrients!$FD$77,Nutrients!$FD$78)))))*AA$8))","v":0},{"$f":"(SUMPRODUCT(AB$9:AB$229,Nutrients!$FD$8:$FD$228)+(IF($A$7=Nutrients!$B$8,Nutrients!$FD$8,Nutrients!$FD$9)*AB$7)+(((IF($A$8=Nutrients!$B$79,Nutrients!$FD$79,(IF($A$8=Nutrients!$B$77,Nutrients!$FD$77,Nutrients!$FD$78)))))*AB$8))","v":0},null,{"$f":"(SUMPRODUCT(AD$9:AD$229,Nutrients!$FD$8:$FD$228)+(IF($A$7=Nutrients!$B$8,Nutrients!$FD$8,Nutrients!$FD$9)*AD$7)+(((IF($A$8=Nutrients!$B$79,Nutrients!$FD$79,(IF($A$8=Nutrients!$B$77,Nutrients!$FD$77,Nutrients!$FD$78)))))*AD$8))","v":0},{"$f":"(SUMPRODUCT(AE$9:AE$229,Nutrients!$FD$8:$FD$228)+(IF($A$7=Nutrients!$B$8,Nutrients!$FD$8,Nutrients!$FD$9)*AE$7)+(((IF($A$8=Nutrients!$B$79,Nutrients!$FD$79,(IF($A$8=Nutrients!$B$77,Nutrients!$FD$77,Nutrients!$FD$78)))))*AE$8))","v":0},{"$f":"(SUMPRODUCT(AF$9:AF$229,Nutrients!$FD$8:$FD$228)+(IF($A$7=Nutrients!$B$8,Nutrients!$FD$8,Nutrients!$FD$9)*AF$7)+(((IF($A$8=Nutrients!$B$79,Nutrients!$FD$79,(IF($A$8=Nutrients!$B$77,Nutrients!$FD$77,Nutrients!$FD$78)))))*AF$8))","v":0},{"$f":"(SUMPRODUCT(AG$9:AG$229,Nutrients!$FD$8:$FD$228)+(IF($A$7=Nutrients!$B$8,Nutrients!$FD$8,Nutrients!$FD$9)*AG$7)+(((IF($A$8=Nutrients!$B$79,Nutrients!$FD$79,(IF($A$8=Nutrients!$B$77,Nutrients!$FD$77,Nutrients!$FD$78)))))*AG$8))","v":0},{"$f":"(SUMPRODUCT(AH$9:AH$229,Nutrients!$FD$8:$FD$228)+(IF($A$7=Nutrients!$B$8,Nutrients!$FD$8,Nutrients!$FD$9)*AH$7)+(((IF($A$8=Nutrients!$B$79,Nutrients!$FD$79,(IF($A$8=Nutrients!$B$77,Nutrients!$FD$77,Nutrients!$FD$78)))))*AH$8))","v":0},{"$f":"(SUMPRODUCT(AI$9:AI$229,Nutrients!$FD$8:$FD$228)+(IF($A$7=Nutrients!$B$8,Nutrients!$FD$8,Nutrients!$FD$9)*AI$7)+(((IF($A$8=Nutrients!$B$79,Nutrients!$FD$79,(IF($A$8=Nutrients!$B$77,Nutrients!$FD$77,Nutrients!$FD$78)))))*AI$8))","v":0},null,{"$f":"(SUMPRODUCT(AK$9:AK$229,Nutrients!$FD$8:$FD$228)+(IF($A$7=Nutrients!$B$8,Nutrients!$FD$8,Nutrients!$FD$9)*AK$7)+(((IF($A$8=Nutrients!$B$79,Nutrients!$FD$79,(IF($A$8=Nutrients!$B$77,Nutrients!$FD$77,Nutrients!$FD$78)))))*AK$8))","v":0},{"$f":"(SUMPRODUCT(AL$9:AL$229,Nutrients!$FD$8:$FD$228)+(IF($A$7=Nutrients!$B$8,Nutrients!$FD$8,Nutrients!$FD$9)*AL$7)+(((IF($A$8=Nutrients!$B$79,Nutrients!$FD$79,(IF($A$8=Nutrients!$B$77,Nutrients!$FD$77,Nutrients!$FD$78)))))*AL$8))","v":0},{"$f":"(SUMPRODUCT(AM$9:AM$229,Nutrients!$FD$8:$FD$228)+(IF($A$7=Nutrients!$B$8,Nutrients!$FD$8,Nutrients!$FD$9)*AM$7)+(((IF($A$8=Nutrients!$B$79,Nutrients!$FD$79,(IF($A$8=Nutrients!$B$77,Nutrients!$FD$77,Nutrients!$FD$78)))))*AM$8))","v":0},{"$f":"(SUMPRODUCT(AN$9:AN$229,Nutrients!$FD$8:$FD$228)+(IF($A$7=Nutrients!$B$8,Nutrients!$FD$8,Nutrients!$FD$9)*AN$7)+(((IF($A$8=Nutrients!$B$79,Nutrients!$FD$79,(IF($A$8=Nutrients!$B$77,Nutrients!$FD$77,Nutrients!$FD$78)))))*AN$8))","v":0},{"$f":"(SUMPRODUCT(AO$9:AO$229,Nutrients!$FD$8:$FD$228)+(IF($A$7=Nutrients!$B$8,Nutrients!$FD$8,Nutrients!$FD$9)*AO$7)+(((IF($A$8=Nutrients!$B$79,Nutrients!$FD$79,(IF($A$8=Nutrients!$B$77,Nutrients!$FD$77,Nutrients!$FD$78)))))*AO$8))","v":0},{"$f":"(SUMPRODUCT(AP$9:AP$229,Nutrients!$FD$8:$FD$228)+(IF($A$7=Nutrients!$B$8,Nutrients!$FD$8,Nutrients!$FD$9)*AP$7)+(((IF($A$8=Nutrients!$B$79,Nutrients!$FD$79,(IF($A$8=Nutrients!$B$77,Nutrients!$FD$77,Nutrients!$FD$78)))))*AP$8))","v":0},null,{"$f":"(SUMPRODUCT(AR$9:AR$229,Nutrients!$FD$8:$FD$228)+(IF($A$7=Nutrients!$B$8,Nutrients!$FD$8,Nutrients!$FD$9)*AR$7)+(((IF($A$8=Nutrients!$B$79,Nutrients!$FD$79,(IF($A$8=Nutrients!$B$77,Nutrients!$FD$77,Nutrients!$FD$78)))))*AR$8))","v":0},{"$f":"(SUMPRODUCT(AS$9:AS$229,Nutrients!$FD$8:$FD$228)+(IF($A$7=Nutrients!$B$8,Nutrients!$FD$8,Nutrients!$FD$9)*AS$7)+(((IF($A$8=Nutrients!$B$79,Nutrients!$FD$79,(IF($A$8=Nutrients!$B$77,Nutrients!$FD$77,Nutrients!$FD$78)))))*AS$8))","v":0},{"$f":"(SUMPRODUCT(AT$9:AT$229,Nutrients!$FD$8:$FD$228)+(IF($A$7=Nutrients!$B$8,Nutrients!$FD$8,Nutrients!$FD$9)*AT$7)+(((IF($A$8=Nutrients!$B$79,Nutrients!$FD$79,(IF($A$8=Nutrients!$B$77,Nutrients!$FD$77,Nutrients!$FD$78)))))*AT$8))","v":0},{"$f":"(SUMPRODUCT(AU$9:AU$229,Nutrients!$FD$8:$FD$228)+(IF($A$7=Nutrients!$B$8,Nutrients!$FD$8,Nutrients!$FD$9)*AU$7)+(((IF($A$8=Nutrients!$B$79,Nutrients!$FD$79,(IF($A$8=Nutrients!$B$77,Nutrients!$FD$77,Nutrients!$FD$78)))))*AU$8))","v":0},{"$f":"(SUMPRODUCT(AV$9:AV$229,Nutrients!$FD$8:$FD$228)+(IF($A$7=Nutrients!$B$8,Nutrients!$FD$8,Nutrients!$FD$9)*AV$7)+(((IF($A$8=Nutrients!$B$79,Nutrients!$FD$79,(IF($A$8=Nutrients!$B$77,Nutrients!$FD$77,Nutrients!$FD$78)))))*AV$8))","v":0},{"$f":"(SUMPRODUCT(AW$9:AW$229,Nutrients!$FD$8:$FD$228)+(IF($A$7=Nutrients!$B$8,Nutrients!$FD$8,Nutrients!$FD$9)*AW$7)+(((IF($A$8=Nutrients!$B$79,Nutrients!$FD$79,(IF($A$8=Nutrients!$B$77,Nutrients!$FD$77,Nutrients!$FD$78)))))*AW$8))","v":0}]
["  Carnitine, mg/ton",{"$f":"(SUMPRODUCT(B$9:B$229,Nutrients!$FE$8:$FE$228)+(IF($A$7=Nutrients!$B$8,Nutrients!$FE$8,Nutrients!$FE$9)*B$7)+(((IF($A$8=Nutrients!$B$79,Nutrients!$FE$79,(IF($A$8=Nutrients!$B$77,Nutrients!$FE$77,Nutrients!$FE$78)))))*B$8))","v":0},{"$f":"(SUMPRODUCT(C$9:C$229,Nutrients!$FE$8:$FE$228)+(IF($A$7=Nutrients!$B$8,Nutrients!$FE$8,Nutrients!$FE$9)*C$7)+(((IF($A$8=Nutrients!$B$79,Nutrients!$FE$79,(IF($A$8=Nutrients!$B$77,Nutrients!$FE$77,Nutrients!$FE$78)))))*C$8))","v":0},{"$f":"(SUMPRODUCT(D$9:D$229,Nutrients!$FE$8:$FE$228)+(IF($A$7=Nutrients!$B$8,Nutrients!$FE$8,Nutrients!$FE$9)*D$7)+(((IF($A$8=Nutrients!$B$79,Nutrients!$FE$79,(IF($A$8=Nutrients!$B$77,Nutrients!$FE$77,Nutrients!$FE$78)))))*D$8))","v":0},{"$f":"(SUMPRODUCT(E$9:E$229,Nutrients!$FE$8:$FE$228)+(IF($A$7=Nutrients!$B$8,Nutrients!$FE$8,Nutrients!$FE$9)*E$7)+(((IF($A$8=Nutrients!$B$79,Nutrients!$FE$79,(IF($A$8=Nutrients!$B$77,Nutrients!$FE$77,Nutrients!$FE$78)))))*E$8))","v":0},{"$f":"(SUMPRODUCT(F$9:F$229,Nutrients!$FE$8:$FE$228)+(IF($A$7=Nutrients!$B$8,Nutrients!$FE$8,Nutrients!$FE$9)*F$7)+(((IF($A$8=Nutrients!$B$79,Nutrients!$FE$79,(IF($A$8=Nutrients!$B$77,Nutrients!$FE$77,Nutrients!$FE$78)))))*F$8))","v":0},{"$f":"(SUMPRODUCT(G$9:G$229,Nutrients!$FE$8:$FE$228)+(IF($A$7=Nutrients!$B$8,Nutrients!$FE$8,Nutrients!$FE$9)*G$7)+(((IF($A$8=Nutrients!$B$79,Nutrients!$FE$79,(IF($A$8=Nutrients!$B$77,Nutrients!$FE$77,Nutrients!$FE$78)))))*G$8))","v":0},null,{"$f":"(SUMPRODUCT(I$9:I$229,Nutrients!$FE$8:$FE$228)+(IF($A$7=Nutrients!$B$8,Nutrients!$FE$8,Nutrients!$FE$9)*I$7)+(((IF($A$8=Nutrients!$B$79,Nutrients!$FE$79,(IF($A$8=Nutrients!$B$77,Nutrients!$FE$77,Nutrients!$FE$78)))))*I$8))","v":0},{"$f":"(SUMPRODUCT(J$9:J$229,Nutrients!$FE$8:$FE$228)+(IF($A$7=Nutrients!$B$8,Nutrients!$FE$8,Nutrients!$FE$9)*J$7)+(((IF($A$8=Nutrients!$B$79,Nutrients!$FE$79,(IF($A$8=Nutrients!$B$77,Nutrients!$FE$77,Nutrients!$FE$78)))))*J$8))","v":0},{"$f":"(SUMPRODUCT(K$9:K$229,Nutrients!$FE$8:$FE$228)+(IF($A$7=Nutrients!$B$8,Nutrients!$FE$8,Nutrients!$FE$9)*K$7)+(((IF($A$8=Nutrients!$B$79,Nutrients!$FE$79,(IF($A$8=Nutrients!$B$77,Nutrients!$FE$77,Nutrients!$FE$78)))))*K$8))","v":0},{"$f":"(SUMPRODUCT(L$9:L$229,Nutrients!$FE$8:$FE$228)+(IF($A$7=Nutrients!$B$8,Nutrients!$FE$8,Nutrients!$FE$9)*L$7)+(((IF($A$8=Nutrients!$B$79,Nutrients!$FE$79,(IF($A$8=Nutrients!$B$77,Nutrients!$FE$77,Nutrients!$FE$78)))))*L$8))","v":0},{"$f":"(SUMPRODUCT(M$9:M$229,Nutrients!$FE$8:$FE$228)+(IF($A$7=Nutrients!$B$8,Nutrients!$FE$8,Nutrients!$FE$9)*M$7)+(((IF($A$8=Nutrients!$B$79,Nutrients!$FE$79,(IF($A$8=Nutrients!$B$77,Nutrients!$FE$77,Nutrients!$FE$78)))))*M$8))","v":0},{"$f":"(SUMPRODUCT(N$9:N$229,Nutrients!$FE$8:$FE$228)+(IF($A$7=Nutrients!$B$8,Nutrients!$FE$8,Nutrients!$FE$9)*N$7)+(((IF($A$8=Nutrients!$B$79,Nutrients!$FE$79,(IF($A$8=Nutrients!$B$77,Nutrients!$FE$77,Nutrients!$FE$78)))))*N$8))","v":0},null,{"$f":"(SUMPRODUCT(P$9:P$229,Nutrients!$FE$8:$FE$228)+(IF($A$7=Nutrients!$B$8,Nutrients!$FE$8,Nutrients!$FE$9)*P$7)+(((IF($A$8=Nutrients!$B$79,Nutrients!$FE$79,(IF($A$8=Nutrients!$B$77,Nutrients!$FE$77,Nutrients!$FE$78)))))*P$8))","v":0},{"$f":"(SUMPRODUCT(Q$9:Q$229,Nutrients!$FE$8:$FE$228)+(IF($A$7=Nutrients!$B$8,Nutrients!$FE$8,Nutrients!$FE$9)*Q$7)+(((IF($A$8=Nutrients!$B$79,Nutrients!$FE$79,(IF($A$8=Nutrients!$B$77,Nutrients!$FE$77,Nutrients!$FE$78)))))*Q$8))","v":0},{"$f":"(SUMPRODUCT(R$9:R$229,Nutrients!$FE$8:$FE$228)+(IF($A$7=Nutrients!$B$8,Nutrients!$FE$8,Nutrients!$FE$9)*R$7)+(((IF($A$8=Nutrients!$B$79,Nutrients!$FE$79,(IF($A$8=Nutrients!$B$77,Nutrients!$FE$77,Nutrients!$FE$78)))))*R$8))","v":0},{"$f":"(SUMPRODUCT(S$9:S$229,Nutrients!$FE$8:$FE$228)+(IF($A$7=Nutrients!$B$8,Nutrients!$FE$8,Nutrients!$FE$9)*S$7)+(((IF($A$8=Nutrients!$B$79,Nutrients!$FE$79,(IF($A$8=Nutrients!$B$77,Nutrients!$FE$77,Nutrients!$FE$78)))))*S$8))","v":0},{"$f":"(SUMPRODUCT(T$9:T$229,Nutrients!$FE$8:$FE$228)+(IF($A$7=Nutrients!$B$8,Nutrients!$FE$8,Nutrients!$FE$9)*T$7)+(((IF($A$8=Nutrients!$B$79,Nutrients!$FE$79,(IF($A$8=Nutrients!$B$77,Nutrients!$FE$77,Nutrients!$FE$78)))))*T$8))","v":0},{"$f":"(SUMPRODUCT(U$9:U$229,Nutrients!$FE$8:$FE$228)+(IF($A$7=Nutrients!$B$8,Nutrients!$FE$8,Nutrients!$FE$9)*U$7)+(((IF($A$8=Nutrients!$B$79,Nutrients!$FE$79,(IF($A$8=Nutrients!$B$77,Nutrients!$FE$77,Nutrients!$FE$78)))))*U$8))","v":0},null,{"$f":"(SUMPRODUCT(W$9:W$229,Nutrients!$FE$8:$FE$228)+(IF($A$7=Nutrients!$B$8,Nutrients!$FE$8,Nutrients!$FE$9)*W$7)+(((IF($A$8=Nutrients!$B$79,Nutrients!$FE$79,(IF($A$8=Nutrients!$B$77,Nutrients!$FE$77,Nutrients!$FE$78)))))*W$8))","v":0},{"$f":"(SUMPRODUCT(X$9:X$229,Nutrients!$FE$8:$FE$228)+(IF($A$7=Nutrients!$B$8,Nutrients!$FE$8,Nutrients!$FE$9)*X$7)+(((IF($A$8=Nutrients!$B$79,Nutrients!$FE$79,(IF($A$8=Nutrients!$B$77,Nutrients!$FE$77,Nutrients!$FE$78)))))*X$8))","v":0},{"$f":"(SUMPRODUCT(Y$9:Y$229,Nutrients!$FE$8:$FE$228)+(IF($A$7=Nutrients!$B$8,Nutrients!$FE$8,Nutrients!$FE$9)*Y$7)+(((IF($A$8=Nutrients!$B$79,Nutrients!$FE$79,(IF($A$8=Nutrients!$B$77,Nutrients!$FE$77,Nutrients!$FE$78)))))*Y$8))","v":0},{"$f":"(SUMPRODUCT(Z$9:Z$229,Nutrients!$FE$8:$FE$228)+(IF($A$7=Nutrients!$B$8,Nutrients!$FE$8,Nutrients!$FE$9)*Z$7)+(((IF($A$8=Nutrients!$B$79,Nutrients!$FE$79,(IF($A$8=Nutrients!$B$77,Nutrients!$FE$77,Nutrients!$FE$78)))))*Z$8))","v":0},{"$f":"(SUMPRODUCT(AA$9:AA$229,Nutrients!$FE$8:$FE$228)+(IF($A$7=Nutrients!$B$8,Nutrients!$FE$8,Nutrients!$FE$9)*AA$7)+(((IF($A$8=Nutrients!$B$79,Nutrients!$FE$79,(IF($A$8=Nutrients!$B$77,Nutrients!$FE$77,Nutrients!$FE$78)))))*AA$8))","v":0},{"$f":"(SUMPRODUCT(AB$9:AB$229,Nutrients!$FE$8:$FE$228)+(IF($A$7=Nutrients!$B$8,Nutrients!$FE$8,Nutrients!$FE$9)*AB$7)+(((IF($A$8=Nutrients!$B$79,Nutrients!$FE$79,(IF($A$8=Nutrients!$B$77,Nutrients!$FE$77,Nutrients!$FE$78)))))*AB$8))","v":0},null,{"$f":"(SUMPRODUCT(AD$9:AD$229,Nutrients!$FE$8:$FE$228)+(IF($A$7=Nutrients!$B$8,Nutrients!$FE$8,Nutrients!$FE$9)*AD$7)+(((IF($A$8=Nutrients!$B$79,Nutrients!$FE$79,(IF($A$8=Nutrients!$B$77,Nutrients!$FE$77,Nutrients!$FE$78)))))*AD$8))","v":0},{"$f":"(SUMPRODUCT(AE$9:AE$229,Nutrients!$FE$8:$FE$228)+(IF($A$7=Nutrients!$B$8,Nutrients!$FE$8,Nutrients!$FE$9)*AE$7)+(((IF($A$8=Nutrients!$B$79,Nutrients!$FE$79,(IF($A$8=Nutrients!$B$77,Nutrients!$FE$77,Nutrients!$FE$78)))))*AE$8))","v":0},{"$f":"(SUMPRODUCT(AF$9:AF$229,Nutrients!$FE$8:$FE$228)+(IF($A$7=Nutrients!$B$8,Nutrients!$FE$8,Nutrients!$FE$9)*AF$7)+(((IF($A$8=Nutrients!$B$79,Nutrients!$FE$79,(IF($A$8=Nutrients!$B$77,Nutrients!$FE$77,Nutrients!$FE$78)))))*AF$8))","v":0},{"$f":"(SUMPRODUCT(AG$9:AG$229,Nutrients!$FE$8:$FE$228)+(IF($A$7=Nutrients!$B$8,Nutrients!$FE$8,Nutrients!$FE$9)*AG$7)+(((IF($A$8=Nutrients!$B$79,Nutrients!$FE$79,(IF($A$8=Nutrients!$B$77,Nutrients!$FE$77,Nutrients!$FE$78)))))*AG$8))","v":0},{"$f":"(SUMPRODUCT(AH$9:AH$229,Nutrients!$FE$8:$FE$228)+(IF($A$7=Nutrients!$B$8,Nutrients!$FE$8,Nutrients!$FE$9)*AH$7)+(((IF($A$8=Nutrients!$B$79,Nutrients!$FE$79,(IF($A$8=Nutrients!$B$77,Nutrients!$FE$77,Nutrients!$FE$78)))))*AH$8))","v":0},{"$f":"(SUMPRODUCT(AI$9:AI$229,Nutrients!$FE$8:$FE$228)+(IF($A$7=Nutrients!$B$8,Nutrients!$FE$8,Nutrients!$FE$9)*AI$7)+(((IF($A$8=Nutrients!$B$79,Nutrients!$FE$79,(IF($A$8=Nutrients!$B$77,Nutrients!$FE$77,Nutrients!$FE$78)))))*AI$8))","v":0},null,{"$f":"(SUMPRODUCT(AK$9:AK$229,Nutrients!$FE$8:$FE$228)+(IF($A$7=Nutrients!$B$8,Nutrients!$FE$8,Nutrients!$FE$9)*AK$7)+(((IF($A$8=Nutrients!$B$79,Nutrients!$FE$79,(IF($A$8=Nutrients!$B$77,Nutrients!$FE$77,Nutrients!$FE$78)))))*AK$8))","v":0},{"$f":"(SUMPRODUCT(AL$9:AL$229,Nutrients!$FE$8:$FE$228)+(IF($A$7=Nutrients!$B$8,Nutrients!$FE$8,Nutrients!$FE$9)*AL$7)+(((IF($A$8=Nutrients!$B$79,Nutrients!$FE$79,(IF($A$8=Nutrients!$B$77,Nutrients!$FE$77,Nutrients!$FE$78)))))*AL$8))","v":0},{"$f":"(SUMPRODUCT(AM$9:AM$229,Nutrients!$FE$8:$FE$228)+(IF($A$7=Nutrients!$B$8,Nutrients!$FE$8,Nutrients!$FE$9)*AM$7)+(((IF($A$8=Nutrients!$B$79,Nutrients!$FE$79,(IF($A$8=Nutrients!$B$77,Nutrients!$FE$77,Nutrients!$FE$78)))))*AM$8))","v":0},{"$f":"(SUMPRODUCT(AN$9:AN$229,Nutrients!$FE$8:$FE$228)+(IF($A$7=Nutrients!$B$8,Nutrients!$FE$8,Nutrients!$FE$9)*AN$7)+(((IF($A$8=Nutrients!$B$79,Nutrients!$FE$79,(IF($A$8=Nutrients!$B$77,Nutrients!$FE$77,Nutrients!$FE$78)))))*AN$8))","v":0},{"$f":"(SUMPRODUCT(AO$9:AO$229,Nutrients!$FE$8:$FE$228)+(IF($A$7=Nutrients!$B$8,Nutrients!$FE$8,Nutrients!$FE$9)*AO$7)+(((IF($A$8=Nutrients!$B$79,Nutrients!$FE$79,(IF($A$8=Nutrients!$B$77,Nutrients!$FE$77,Nutrients!$FE$78)))))*AO$8))","v":0},{"$f":"(SUMPRODUCT(AP$9:AP$229,Nutrients!$FE$8:$FE$228)+(IF($A$7=Nutrients!$B$8,Nutrients!$FE$8,Nutrients!$FE$9)*AP$7)+(((IF($A$8=Nutrients!$B$79,Nutrients!$FE$79,(IF($A$8=Nutrients!$B$77,Nutrients!$FE$77,Nutrients!$FE$78)))))*AP$8))","v":0},null,{"$f":"(SUMPRODUCT(AR$9:AR$229,Nutrients!$FE$8:$FE$228)+(IF($A$7=Nutrients!$B$8,Nutrients!$FE$8,Nutrients!$FE$9)*AR$7)+(((IF($A$8=Nutrients!$B$79,Nutrients!$FE$79,(IF($A$8=Nutrients!$B$77,Nutrients!$FE$77,Nutrients!$FE$78)))))*AR$8))","v":0},{"$f":"(SUMPRODUCT(AS$9:AS$229,Nutrients!$FE$8:$FE$228)+(IF($A$7=Nutrients!$B$8,Nutrients!$FE$8,Nutrients!$FE$9)*AS$7)+(((IF($A$8=Nutrients!$B$79,Nutrients!$FE$79,(IF($A$8=Nutrients!$B$77,Nutrients!$FE$77,Nutrients!$FE$78)))))*AS$8))","v":0},{"$f":"(SUMPRODUCT(AT$9:AT$229,Nutrients!$FE$8:$FE$228)+(IF($A$7=Nutrients!$B$8,Nutrients!$FE$8,Nutrients!$FE$9)*AT$7)+(((IF($A$8=Nutrients!$B$79,Nutrients!$FE$79,(IF($A$8=Nutrients!$B$77,Nutrients!$FE$77,Nutrients!$FE$78)))))*AT$8))","v":0},{"$f":"(SUMPRODUCT(AU$9:AU$229,Nutrients!$FE$8:$FE$228)+(IF($A$7=Nutrients!$B$8,Nutrients!$FE$8,Nutrients!$FE$9)*AU$7)+(((IF($A$8=Nutrients!$B$79,Nutrients!$FE$79,(IF($A$8=Nutrients!$B$77,Nutrients!$FE$77,Nutrients!$FE$78)))))*AU$8))","v":0},{"$f":"(SUMPRODUCT(AV$9:AV$229,Nutrients!$FE$8:$FE$228)+(IF($A$7=Nutrients!$B$8,Nutrients!$FE$8,Nutrients!$FE$9)*AV$7)+(((IF($A$8=Nutrients!$B$79,Nutrients!$FE$79,(IF($A$8=Nutrients!$B$77,Nutrients!$FE$77,Nutrients!$FE$78)))))*AV$8))","v":0},{"$f":"(SUMPRODUCT(AW$9:AW$229,Nutrients!$FE$8:$FE$228)+(IF($A$7=Nutrients!$B$8,Nutrients!$FE$8,Nutrients!$FE$9)*AW$7)+(((IF($A$8=Nutrients!$B$79,Nutrients!$FE$79,(IF($A$8=Nutrients!$B$77,Nutrients!$FE$77,Nutrients!$FE$78)))))*AW$8))","v":0}]
[]
["ADG, g/d",{"$f":" (-1619.2980797296 + 25.9248064834 * (B251/1000) - 2657.6209162609 * B236 +\n123.0469725298 * B253 - 9.2854579989 * B316 + 872.0182830582 * B252 + 26.664395965 * (AVERAGE(B5:B6)*0.453592) +\n2599.7646012325 * B236 * B236- 0.1016237102 *  (AVERAGE(B5:B6)*0.453592) *  (AVERAGE(B5:B6)*0.453592) - 71.8618465276 * B236 * B253 -\n607.1294449572 * B236 * B252 + 25.6463076451 * B236 * (AVERAGE(B5:B6)*0.453592) - 0.8399854508 * B253 * (AVERAGE(B5:B6)*0.453592) +\n0.0967347393 * B316 * (AVERAGE(B5:B6)*0.453592) - 5.2553838048 * B252 * (AVERAGE(B5:B6)*0.453592))","v":740.32616660444182},{"$f":" -1619.2980797296 + 25.9248064834 * (C251/1000) - 2657.6209162609 * C236 +\n123.0469725298 * C253 - 9.2854579989 * C316 + 872.0182830582 * C252 + 26.664395965 * (AVERAGE(C5:C6)*0.453592) +\n2599.7646012325 * C236 * C236- 0.1016237102 *  (AVERAGE(C5:C6)*0.453592) *  (AVERAGE(C5:C6)*0.453592) - 71.8618465276 * C236 * C253 -\n607.1294449572 * C236 * C252 + 25.6463076451 * C236 * (AVERAGE(C5:C6)*0.453592) - 0.8399854508 * C253 * (AVERAGE(C5:C6)*0.453592) +\n0.0967347393 * C316 * (AVERAGE(C5:C6)*0.453592) - 5.2553838048 * C252 * (AVERAGE(C5:C6)*0.453592)","v":862.50756659214221},{"$f":" -1619.2980797296 + 25.9248064834 * (D251/1000) - 2657.6209162609 * D236 +\n123.0469725298 * D253 - 9.2854579989 * D316 + 872.0182830582 * D252 + 26.664395965 * (AVERAGE(D5:D6)*0.453592) +\n2599.7646012325 * D236 * D236- 0.1016237102 *  (AVERAGE(D5:D6)*0.453592) *  (AVERAGE(D5:D6)*0.453592) - 71.8618465276 * D236 * D253 -\n607.1294449572 * D236 * D252 + 25.6463076451 * D236 * (AVERAGE(D5:D6)*0.453592) - 0.8399854508 * D253 * (AVERAGE(D5:D6)*0.453592) +\n0.0967347393 * D316 * (AVERAGE(D5:D6)*0.453592) - 5.2553838048 * D252 * (AVERAGE(D5:D6)*0.453592)","v":944.95636803551065},{"$f":" -1619.2980797296 + 25.9248064834 * (E251/1000) - 2657.6209162609 * E236 +\n123.0469725298 * E253 - 9.2854579989 * E316 + 872.0182830582 * E252 + 26.664395965 * (AVERAGE(E5:E6)*0.453592) +\n2599.7646012325 * E236 * E236- 0.1016237102 *  (AVERAGE(E5:E6)*0.453592) *  (AVERAGE(E5:E6)*0.453592) - 71.8618465276 * E236 * E253 -\n607.1294449572 * E236 * E252 + 25.6463076451 * E236 * (AVERAGE(E5:E6)*0.453592) - 0.8399854508 * E253 * (AVERAGE(E5:E6)*0.453592) +\n0.0967347393 * E316 * (AVERAGE(E5:E6)*0.453592) - 5.2553838048 * E252 * (AVERAGE(E5:E6)*0.453592)","v":984.20180073567008},{"$f":" -1619.2980797296 + 25.9248064834 * (F251/1000) - 2657.6209162609 * F236 +\n123.0469725298 * F253 - 9.2854579989 * F316 + 872.0182830582 * F252 + 26.664395965 * (AVERAGE(F5:F6)*0.453592) +\n2599.7646012325 * F236 * F236- 0.1016237102 *  (AVERAGE(F5:F6)*0.453592) *  (AVERAGE(F5:F6)*0.453592) - 71.8618465276 * F236 * F253 -\n607.1294449572 * F236 * F252 + 25.6463076451 * F236 * (AVERAGE(F5:F6)*0.453592) - 0.8399854508 * F253 * (AVERAGE(F5:F6)*0.453592) +\n0.0967347393 * F316 * (AVERAGE(F5:F6)*0.453592) - 5.2553838048 * F252 * (AVERAGE(F5:F6)*0.453592)","v":982.04258582759257},{"$f":" -1619.2980797296 + 25.9248064834 * (G251/1000) - 2657.6209162609 * G236 +\n123.0469725298 * G253 - 9.2854579989 * G316 + 872.0182830582 * G252 + 26.664395965 * (AVERAGE(G5:G6)*0.453592) +\n2599.7646012325 * G236 * G236- 0.1016237102 *  (AVERAGE(G5:G6)*0.453592) *  (AVERAGE(G5:G6)*0.453592) - 71.8618465276 * G236 * G253 -\n607.1294449572 * G236 * G252 + 25.6463076451 * G236 * (AVERAGE(G5:G6)*0.453592) - 0.8399854508 * G253 * (AVERAGE(G5:G6)*0.453592) +\n0.0967347393 * G316 * (AVERAGE(G5:G6)*0.453592) - 5.2553838048 * G252 * (AVERAGE(G5:G6)*0.453592)","v":932.08406418687355},null,{"$f":" (-1619.2980797296 + 25.9248064834 * (I251/1000) - 2657.6209162609 * I236 +\n123.0469725298 * I253 - 9.2854579989 * I316 + 872.0182830582 * I252 + 26.664395965 * (AVERAGE(I5:I6)*0.453592) +\n2599.7646012325 * I236 * I236- 0.1016237102 *  (AVERAGE(I5:I6)*0.453592) *  (AVERAGE(I5:I6)*0.453592) - 71.8618465276 * I236 * I253 -\n607.1294449572 * I236 * I252 + 25.6463076451 * I236 * (AVERAGE(I5:I6)*0.453592) - 0.8399854508 * I253 * (AVERAGE(I5:I6)*0.453592) +\n0.0967347393 * I316 * (AVERAGE(I5:I6)*0.453592) - 5.2553838048 * I252 * (AVERAGE(I5:I6)*0.453592))","v":734.98200857534789},{"$f":" -1619.2980797296 + 25.9248064834 * (J251/1000) - 2657.6209162609 * J236 +\n123.0469725298 * J253 - 9.2854579989 * J316 + 872.0182830582 * J252 + 26.664395965 * (AVERAGE(J5:J6)*0.453592) +\n2599.7646012325 * J236 * J236- 0.1016237102 *  (AVERAGE(J5:J6)*0.453592) *  (AVERAGE(J5:J6)*0.453592) - 71.8618465276 * J236 * J253 -\n607.1294449572 * J236 * J252 + 25.6463076451 * J236 * (AVERAGE(J5:J6)*0.453592) - 0.8399854508 * J253 * (AVERAGE(J5:J6)*0.453592) +\n0.0967347393 * J316 * (AVERAGE(J5:J6)*0.453592) - 5.2553838048 * J252 * (AVERAGE(J5:J6)*0.453592)","v":857.03896662430009},{"$f":" -1619.2980797296 + 25.9248064834 * (K251/1000) - 2657.6209162609 * K236 +\n123.0469725298 * K253 - 9.2854579989 * K316 + 872.0182830582 * K252 + 26.664395965 * (AVERAGE(K5:K6)*0.453592) +\n2599.7646012325 * K236 * K236- 0.1016237102 *  (AVERAGE(K5:K6)*0.453592) *  (AVERAGE(K5:K6)*0.453592) - 71.8618465276 * K236 * K253 -\n607.1294449572 * K236 * K252 + 25.6463076451 * K236 * (AVERAGE(K5:K6)*0.453592) - 0.8399854508 * K253 * (AVERAGE(K5:K6)*0.453592) +\n0.0967347393 * K316 * (AVERAGE(K5:K6)*0.453592) - 5.2553838048 * K252 * (AVERAGE(K5:K6)*0.453592)","v":938.67333767113405},{"$f":" -1619.2980797296 + 25.9248064834 * (L251/1000) - 2657.6209162609 * L236 +\n123.0469725298 * L253 - 9.2854579989 * L316 + 872.0182830582 * L252 + 26.664395965 * (AVERAGE(L5:L6)*0.453592) +\n2599.7646012325 * L236 * L236- 0.1016237102 *  (AVERAGE(L5:L6)*0.453592) *  (AVERAGE(L5:L6)*0.453592) - 71.8618465276 * L236 * L253 -\n607.1294449572 * L236 * L252 + 25.6463076451 * L236 * (AVERAGE(L5:L6)*0.453592) - 0.8399854508 * L253 * (AVERAGE(L5:L6)*0.453592) +\n0.0967347393 * L316 * (AVERAGE(L5:L6)*0.453592) - 5.2553838048 * L252 * (AVERAGE(L5:L6)*0.453592)","v":975.87519399902249},{"$f":" -1619.2980797296 + 25.9248064834 * (M251/1000) - 2657.6209162609 * M236 +\n123.0469725298 * M253 - 9.2854579989 * M316 + 872.0182830582 * M252 + 26.664395965 * (AVERAGE(M5:M6)*0.453592) +\n2599.7646012325 * M236 * M236- 0.1016237102 *  (AVERAGE(M5:M6)*0.453592) *  (AVERAGE(M5:M6)*0.453592) - 71.8618465276 * M236 * M253 -\n607.1294449572 * M236 * M252 + 25.6463076451 * M236 * (AVERAGE(M5:M6)*0.453592) - 0.8399854508 * M253 * (AVERAGE(M5:M6)*0.453592) +\n0.0967347393 * M316 * (AVERAGE(M5:M6)*0.453592) - 5.2553838048 * M252 * (AVERAGE(M5:M6)*0.453592)","v":970.37168111826622},{"$f":" -1619.2980797296 + 25.9248064834 * (N251/1000) - 2657.6209162609 * N236 +\n123.0469725298 * N253 - 9.2854579989 * N316 + 872.0182830582 * N252 + 26.664395965 * (AVERAGE(N5:N6)*0.453592) +\n2599.7646012325 * N236 * N236- 0.1016237102 *  (AVERAGE(N5:N6)*0.453592) *  (AVERAGE(N5:N6)*0.453592) - 71.8618465276 * N236 * N253 -\n607.1294449572 * N236 * N252 + 25.6463076451 * N236 * (AVERAGE(N5:N6)*0.453592) - 0.8399854508 * N253 * (AVERAGE(N5:N6)*0.453592) +\n0.0967347393 * N316 * (AVERAGE(N5:N6)*0.453592) - 5.2553838048 * N252 * (AVERAGE(N5:N6)*0.453592)","v":932.08406418687355},null,{"$f":" (-1619.2980797296 + 25.9248064834 * (P251/1000) - 2657.6209162609 * P236 +\n123.0469725298 * P253 - 9.2854579989 * P316 + 872.0182830582 * P252 + 26.664395965 * (AVERAGE(P5:P6)*0.453592) +\n2599.7646012325 * P236 * P236- 0.1016237102 *  (AVERAGE(P5:P6)*0.453592) *  (AVERAGE(P5:P6)*0.453592) - 71.8618465276 * P236 * P253 -\n607.1294449572 * P236 * P252 + 25.6463076451 * P236 * (AVERAGE(P5:P6)*0.453592) - 0.8399854508 * P253 * (AVERAGE(P5:P6)*0.453592) +\n0.0967347393 * P316 * (AVERAGE(P5:P6)*0.453592) - 5.2553838048 * P252 * (AVERAGE(P5:P6)*0.453592))","v":730.86253902058513},{"$f":" -1619.2980797296 + 25.9248064834 * (Q251/1000) - 2657.6209162609 * Q236 +\n123.0469725298 * Q253 - 9.2854579989 * Q316 + 872.0182830582 * Q252 + 26.664395965 * (AVERAGE(Q5:Q6)*0.453592) +\n2599.7646012325 * Q236 * Q236- 0.1016237102 *  (AVERAGE(Q5:Q6)*0.453592) *  (AVERAGE(Q5:Q6)*0.453592) - 71.8618465276 * Q236 * Q253 -\n607.1294449572 * Q236 * Q252 + 25.6463076451 * Q236 * (AVERAGE(Q5:Q6)*0.453592) - 0.8399854508 * Q253 * (AVERAGE(Q5:Q6)*0.453592) +\n0.0967347393 * Q316 * (AVERAGE(Q5:Q6)*0.453592) - 5.2553838048 * Q252 * (AVERAGE(Q5:Q6)*0.453592)","v":852.70454847034819},{"$f":" -1619.2980797296 + 25.9248064834 * (R251/1000) - 2657.6209162609 * R236 +\n123.0469725298 * R253 - 9.2854579989 * R316 + 872.0182830582 * R252 + 26.664395965 * (AVERAGE(R5:R6)*0.453592) +\n2599.7646012325 * R236 * R236- 0.1016237102 *  (AVERAGE(R5:R6)*0.453592) *  (AVERAGE(R5:R6)*0.453592) - 71.8618465276 * R236 * R253 -\n607.1294449572 * R236 * R252 + 25.6463076451 * R236 * (AVERAGE(R5:R6)*0.453592) - 0.8399854508 * R253 * (AVERAGE(R5:R6)*0.453592) +\n0.0967347393 * R316 * (AVERAGE(R5:R6)*0.453592) - 5.2553838048 * R252 * (AVERAGE(R5:R6)*0.453592)","v":933.32207144981544},{"$f":" -1619.2980797296 + 25.9248064834 * (S251/1000) - 2657.6209162609 * S236 +\n123.0469725298 * S253 - 9.2854579989 * S316 + 872.0182830582 * S252 + 26.664395965 * (AVERAGE(S5:S6)*0.453592) +\n2599.7646012325 * S236 * S236- 0.1016237102 *  (AVERAGE(S5:S6)*0.453592) *  (AVERAGE(S5:S6)*0.453592) - 71.8618465276 * S236 * S253 -\n607.1294449572 * S236 * S252 + 25.6463076451 * S236 * (AVERAGE(S5:S6)*0.453592) - 0.8399854508 * S253 * (AVERAGE(S5:S6)*0.453592) +\n0.0967347393 * S316 * (AVERAGE(S5:S6)*0.453592) - 5.2553838048 * S252 * (AVERAGE(S5:S6)*0.453592)","v":967.99604287988086},{"$f":" -1619.2980797296 + 25.9248064834 * (T251/1000) - 2657.6209162609 * T236 +\n123.0469725298 * T253 - 9.2854579989 * T316 + 872.0182830582 * T252 + 26.664395965 * (AVERAGE(T5:T6)*0.453592) +\n2599.7646012325 * T236 * T236- 0.1016237102 *  (AVERAGE(T5:T6)*0.453592) *  (AVERAGE(T5:T6)*0.453592) - 71.8618465276 * T236 * T253 -\n607.1294449572 * T236 * T252 + 25.6463076451 * T236 * (AVERAGE(T5:T6)*0.453592) - 0.8399854508 * T253 * (AVERAGE(T5:T6)*0.453592) +\n0.0967347393 * T316 * (AVERAGE(T5:T6)*0.453592) - 5.2553838048 * T252 * (AVERAGE(T5:T6)*0.453592)","v":959.34807253354575},{"$f":" -1619.2980797296 + 25.9248064834 * (U251/1000) - 2657.6209162609 * U236 +\n123.0469725298 * U253 - 9.2854579989 * U316 + 872.0182830582 * U252 + 26.664395965 * (AVERAGE(U5:U6)*0.453592) +\n2599.7646012325 * U236 * U236- 0.1016237102 *  (AVERAGE(U5:U6)*0.453592) *  (AVERAGE(U5:U6)*0.453592) - 71.8618465276 * U236 * U253 -\n607.1294449572 * U236 * U252 + 25.6463076451 * U236 * (AVERAGE(U5:U6)*0.453592) - 0.8399854508 * U253 * (AVERAGE(U5:U6)*0.453592) +\n0.0967347393 * U316 * (AVERAGE(U5:U6)*0.453592) - 5.2553838048 * U252 * (AVERAGE(U5:U6)*0.453592)","v":932.08406418687355},null,{"$f":" (-1619.2980797296 + 25.9248064834 * (W251/1000) - 2657.6209162609 * W236 +\n123.0469725298 * W253 - 9.2854579989 * W316 + 872.0182830582 * W252 + 26.664395965 * (AVERAGE(W5:W6)*0.453592) +\n2599.7646012325 * W236 * W236- 0.1016237102 *  (AVERAGE(W5:W6)*0.453592) *  (AVERAGE(W5:W6)*0.453592) - 71.8618465276 * W236 * W253 -\n607.1294449572 * W236 * W252 + 25.6463076451 * W236 * (AVERAGE(W5:W6)*0.453592) - 0.8399854508 * W253 * (AVERAGE(W5:W6)*0.453592) +\n0.0967347393 * W316 * (AVERAGE(W5:W6)*0.453592) - 5.2553838048 * W252 * (AVERAGE(W5:W6)*0.453592))","v":727.51552435711903},{"$f":" -1619.2980797296 + 25.9248064834 * (X251/1000) - 2657.6209162609 * X236 +\n123.0469725298 * X253 - 9.2854579989 * X316 + 872.0182830582 * X252 + 26.664395965 * (AVERAGE(X5:X6)*0.453592) +\n2599.7646012325 * X236 * X236- 0.1016237102 *  (AVERAGE(X5:X6)*0.453592) *  (AVERAGE(X5:X6)*0.453592) - 71.8618465276 * X236 * X253 -\n607.1294449572 * X236 * X252 + 25.6463076451 * X236 * (AVERAGE(X5:X6)*0.453592) - 0.8399854508 * X253 * (AVERAGE(X5:X6)*0.453592) +\n0.0967347393 * X316 * (AVERAGE(X5:X6)*0.453592) - 5.2553838048 * X252 * (AVERAGE(X5:X6)*0.453592)","v":848.998506061993},{"$f":" -1619.2980797296 + 25.9248064834 * (Y251/1000) - 2657.6209162609 * Y236 +\n123.0469725298 * Y253 - 9.2854579989 * Y316 + 872.0182830582 * Y252 + 26.664395965 * (AVERAGE(Y5:Y6)*0.453592) +\n2599.7646012325 * Y236 * Y236- 0.1016237102 *  (AVERAGE(Y5:Y6)*0.453592) *  (AVERAGE(Y5:Y6)*0.453592) - 71.8618465276 * Y236 * Y253 -\n607.1294449572 * Y236 * Y252 + 25.6463076451 * Y236 * (AVERAGE(Y5:Y6)*0.453592) - 0.8399854508 * Y253 * (AVERAGE(Y5:Y6)*0.453592) +\n0.0967347393 * Y316 * (AVERAGE(Y5:Y6)*0.453592) - 5.2553838048 * Y252 * (AVERAGE(Y5:Y6)*0.453592)","v":928.12318501505911},{"$f":" -1619.2980797296 + 25.9248064834 * (Z251/1000) - 2657.6209162609 * Z236 +\n123.0469725298 * Z253 - 9.2854579989 * Z316 + 872.0182830582 * Z252 + 26.664395965 * (AVERAGE(Z5:Z6)*0.453592) +\n2599.7646012325 * Z236 * Z236- 0.1016237102 *  (AVERAGE(Z5:Z6)*0.453592) *  (AVERAGE(Z5:Z6)*0.453592) - 71.8618465276 * Z236 * Z253 -\n607.1294449572 * Z236 * Z252 + 25.6463076451 * Z236 * (AVERAGE(Z5:Z6)*0.453592) - 0.8399854508 * Z253 * (AVERAGE(Z5:Z6)*0.453592) +\n0.0967347393 * Z316 * (AVERAGE(Z5:Z6)*0.453592) - 5.2553838048 * Z252 * (AVERAGE(Z5:Z6)*0.453592)","v":960.75385333371219},{"$f":" -1619.2980797296 + 25.9248064834 * (AA251/1000) - 2657.6209162609 * AA236 +\n123.0469725298 * AA253 - 9.2854579989 * AA316 + 872.0182830582 * AA252 + 26.664395965 * (AVERAGE(AA5:AA6)*0.453592) +\n2599.7646012325 * AA236 * AA236- 0.1016237102 *  (AVERAGE(AA5:AA6)*0.453592) *  (AVERAGE(AA5:AA6)*0.453592) - 71.8618465276 * AA236 * AA253 -\n607.1294449572 * AA236 * AA252 + 25.6463076451 * AA236 * (AVERAGE(AA5:AA6)*0.453592) - 0.8399854508 * AA253 * (AVERAGE(AA5:AA6)*0.453592) +\n0.0967347393 * AA316 * (AVERAGE(AA5:AA6)*0.453592) - 5.2553838048 * AA252 * (AVERAGE(AA5:AA6)*0.453592)","v":948.70954572017718},{"$f":" -1619.2980797296 + 25.9248064834 * (AB251/1000) - 2657.6209162609 * AB236 +\n123.0469725298 * AB253 - 9.2854579989 * AB316 + 872.0182830582 * AB252 + 26.664395965 * (AVERAGE(AB5:AB6)*0.453592) +\n2599.7646012325 * AB236 * AB236- 0.1016237102 *  (AVERAGE(AB5:AB6)*0.453592) *  (AVERAGE(AB5:AB6)*0.453592) - 71.8618465276 * AB236 * AB253 -\n607.1294449572 * AB236 * AB252 + 25.6463076451 * AB236 * (AVERAGE(AB5:AB6)*0.453592) - 0.8399854508 * AB253 * (AVERAGE(AB5:AB6)*0.453592) +\n0.0967347393 * AB316 * (AVERAGE(AB5:AB6)*0.453592) - 5.2553838048 * AB252 * (AVERAGE(AB5:AB6)*0.453592)","v":932.08406418687355},null,{"$f":" (-1619.2980797296 + 25.9248064834 * (AD251/1000) - 2657.6209162609 * AD236 +\n123.0469725298 * AD253 - 9.2854579989 * AD316 + 872.0182830582 * AD252 + 26.664395965 * (AVERAGE(AD5:AD6)*0.453592) +\n2599.7646012325 * AD236 * AD236- 0.1016237102 *  (AVERAGE(AD5:AD6)*0.453592) *  (AVERAGE(AD5:AD6)*0.453592) - 71.8618465276 * AD236 * AD253 -\n607.1294449572 * AD236 * AD252 + 25.6463076451 * AD236 * (AVERAGE(AD5:AD6)*0.453592) - 0.8399854508 * AD253 * (AVERAGE(AD5:AD6)*0.453592) +\n0.0967347393 * AD316 * (AVERAGE(AD5:AD6)*0.453592) - 5.2553838048 * AD252 * (AVERAGE(AD5:AD6)*0.453592))","v":724.94582154114494},{"$f":" -1619.2980797296 + 25.9248064834 * (AE251/1000) - 2657.6209162609 * AE236 +\n123.0469725298 * AE253 - 9.2854579989 * AE316 + 872.0182830582 * AE252 + 26.664395965 * (AVERAGE(AE5:AE6)*0.453592) +\n2599.7646012325 * AE236 * AE236- 0.1016237102 *  (AVERAGE(AE5:AE6)*0.453592) *  (AVERAGE(AE5:AE6)*0.453592) - 71.8618465276 * AE236 * AE253 -\n607.1294449572 * AE236 * AE252 + 25.6463076451 * AE236 * (AVERAGE(AE5:AE6)*0.453592) - 0.8399854508 * AE253 * (AVERAGE(AE5:AE6)*0.453592) +\n0.0967347393 * AE316 * (AVERAGE(AE5:AE6)*0.453592) - 5.2553838048 * AE252 * (AVERAGE(AE5:AE6)*0.453592)","v":845.69421270540624},{"$f":" -1619.2980797296 + 25.9248064834 * (AF251/1000) - 2657.6209162609 * AF236 +\n123.0469725298 * AF253 - 9.2854579989 * AF316 + 872.0182830582 * AF252 + 26.664395965 * (AVERAGE(AF5:AF6)*0.453592) +\n2599.7646012325 * AF236 * AF236- 0.1016237102 *  (AVERAGE(AF5:AF6)*0.453592) *  (AVERAGE(AF5:AF6)*0.453592) - 71.8618465276 * AF236 * AF253 -\n607.1294449572 * AF236 * AF252 + 25.6463076451 * AF236 * (AVERAGE(AF5:AF6)*0.453592) - 0.8399854508 * AF253 * (AVERAGE(AF5:AF6)*0.453592) +\n0.0967347393 * AF316 * (AVERAGE(AF5:AF6)*0.453592) - 5.2553838048 * AF252 * (AVERAGE(AF5:AF6)*0.453592)","v":923.65864602576949},{"$f":" -1619.2980797296 + 25.9248064834 * (AG251/1000) - 2657.6209162609 * AG236 +\n123.0469725298 * AG253 - 9.2854579989 * AG316 + 872.0182830582 * AG252 + 26.664395965 * (AVERAGE(AG5:AG6)*0.453592) +\n2599.7646012325 * AG236 * AG236- 0.1016237102 *  (AVERAGE(AG5:AG6)*0.453592) *  (AVERAGE(AG5:AG6)*0.453592) - 71.8618465276 * AG236 * AG253 -\n607.1294449572 * AG236 * AG252 + 25.6463076451 * AG236 * (AVERAGE(AG5:AG6)*0.453592) - 0.8399854508 * AG253 * (AVERAGE(AG5:AG6)*0.453592) +\n0.0967347393 * AG316 * (AVERAGE(AG5:AG6)*0.453592) - 5.2553838048 * AG252 * (AVERAGE(AG5:AG6)*0.453592)","v":954.01012781500322},{"$f":" -1619.2980797296 + 25.9248064834 * (AH251/1000) - 2657.6209162609 * AH236 +\n123.0469725298 * AH253 - 9.2854579989 * AH316 + 872.0182830582 * AH252 + 26.664395965 * (AVERAGE(AH5:AH6)*0.453592) +\n2599.7646012325 * AH236 * AH236- 0.1016237102 *  (AVERAGE(AH5:AH6)*0.453592) *  (AVERAGE(AH5:AH6)*0.453592) - 71.8618465276 * AH236 * AH253 -\n607.1294449572 * AH236 * AH252 + 25.6463076451 * AH236 * (AVERAGE(AH5:AH6)*0.453592) - 0.8399854508 * AH253 * (AVERAGE(AH5:AH6)*0.453592) +\n0.0967347393 * AH316 * (AVERAGE(AH5:AH6)*0.453592) - 5.2553838048 * AH252 * (AVERAGE(AH5:AH6)*0.453592)","v":938.19318574970953},{"$f":" -1619.2980797296 + 25.9248064834 * (AI251/1000) - 2657.6209162609 * AI236 +\n123.0469725298 * AI253 - 9.2854579989 * AI316 + 872.0182830582 * AI252 + 26.664395965 * (AVERAGE(AI5:AI6)*0.453592) +\n2599.7646012325 * AI236 * AI236- 0.1016237102 *  (AVERAGE(AI5:AI6)*0.453592) *  (AVERAGE(AI5:AI6)*0.453592) - 71.8618465276 * AI236 * AI253 -\n607.1294449572 * AI236 * AI252 + 25.6463076451 * AI236 * (AVERAGE(AI5:AI6)*0.453592) - 0.8399854508 * AI253 * (AVERAGE(AI5:AI6)*0.453592) +\n0.0967347393 * AI316 * (AVERAGE(AI5:AI6)*0.453592) - 5.2553838048 * AI252 * (AVERAGE(AI5:AI6)*0.453592)","v":932.08406418687355},null,{"$f":" (-1619.2980797296 + 25.9248064834 * (AK251/1000) - 2657.6209162609 * AK236 +\n123.0469725298 * AK253 - 9.2854579989 * AK316 + 872.0182830582 * AK252 + 26.664395965 * (AVERAGE(AK5:AK6)*0.453592) +\n2599.7646012325 * AK236 * AK236- 0.1016237102 *  (AVERAGE(AK5:AK6)*0.453592) *  (AVERAGE(AK5:AK6)*0.453592) - 71.8618465276 * AK236 * AK253 -\n607.1294449572 * AK236 * AK252 + 25.6463076451 * AK236 * (AVERAGE(AK5:AK6)*0.453592) - 0.8399854508 * AK253 * (AVERAGE(AK5:AK6)*0.453592) +\n0.0967347393 * AK316 * (AVERAGE(AK5:AK6)*0.453592) - 5.2553838048 * AK252 * (AVERAGE(AK5:AK6)*0.453592))","v":723.16476170971032},{"$f":" -1619.2980797296 + 25.9248064834 * (AL251/1000) - 2657.6209162609 * AL236 +\n123.0469725298 * AL253 - 9.2854579989 * AL316 + 872.0182830582 * AL252 + 26.664395965 * (AVERAGE(AL5:AL6)*0.453592) +\n2599.7646012325 * AL236 * AL236- 0.1016237102 *  (AVERAGE(AL5:AL6)*0.453592) *  (AVERAGE(AL5:AL6)*0.453592) - 71.8618465276 * AL236 * AL253 -\n607.1294449572 * AL236 * AL252 + 25.6463076451 * AL236 * (AVERAGE(AL5:AL6)*0.453592) - 0.8399854508 * AL253 * (AVERAGE(AL5:AL6)*0.453592) +\n0.0967347393 * AL316 * (AVERAGE(AL5:AL6)*0.453592) - 5.2553838048 * AL252 * (AVERAGE(AL5:AL6)*0.453592)","v":843.16103565379217},{"$f":" -1619.2980797296 + 25.9248064834 * (AM251/1000) - 2657.6209162609 * AM236 +\n123.0469725298 * AM253 - 9.2854579989 * AM316 + 872.0182830582 * AM252 + 26.664395965 * (AVERAGE(AM5:AM6)*0.453592) +\n2599.7646012325 * AM236 * AM236- 0.1016237102 *  (AVERAGE(AM5:AM6)*0.453592) *  (AVERAGE(AM5:AM6)*0.453592) - 71.8618465276 * AM236 * AM253 -\n607.1294449572 * AM236 * AM252 + 25.6463076451 * AM236 * (AVERAGE(AM5:AM6)*0.453592) - 0.8399854508 * AM253 * (AVERAGE(AM5:AM6)*0.453592) +\n0.0967347393 * AM316 * (AVERAGE(AM5:AM6)*0.453592) - 5.2553838048 * AM252 * (AVERAGE(AM5:AM6)*0.453592)","v":919.85722269718804},{"$f":" -1619.2980797296 + 25.9248064834 * (AN251/1000) - 2657.6209162609 * AN236 +\n123.0469725298 * AN253 - 9.2854579989 * AN316 + 872.0182830582 * AN252 + 26.664395965 * (AVERAGE(AN5:AN6)*0.453592) +\n2599.7646012325 * AN236 * AN236- 0.1016237102 *  (AVERAGE(AN5:AN6)*0.453592) *  (AVERAGE(AN5:AN6)*0.453592) - 71.8618465276 * AN236 * AN253 -\n607.1294449572 * AN236 * AN252 + 25.6463076451 * AN236 * (AVERAGE(AN5:AN6)*0.453592) - 0.8399854508 * AN253 * (AVERAGE(AN5:AN6)*0.453592) +\n0.0967347393 * AN316 * (AVERAGE(AN5:AN6)*0.453592) - 5.2553838048 * AN252 * (AVERAGE(AN5:AN6)*0.453592)","v":947.59682363309821},{"$f":" -1619.2980797296 + 25.9248064834 * (AO251/1000) - 2657.6209162609 * AO236 +\n123.0469725298 * AO253 - 9.2854579989 * AO316 + 872.0182830582 * AO252 + 26.664395965 * (AVERAGE(AO5:AO6)*0.453592) +\n2599.7646012325 * AO236 * AO236- 0.1016237102 *  (AVERAGE(AO5:AO6)*0.453592) *  (AVERAGE(AO5:AO6)*0.453592) - 71.8618465276 * AO236 * AO253 -\n607.1294449572 * AO236 * AO252 + 25.6463076451 * AO236 * (AVERAGE(AO5:AO6)*0.453592) - 0.8399854508 * AO253 * (AVERAGE(AO5:AO6)*0.453592) +\n0.0967347393 * AO316 * (AVERAGE(AO5:AO6)*0.453592) - 5.2553838048 * AO252 * (AVERAGE(AO5:AO6)*0.453592)","v":928.08306099373704},{"$f":" -1619.2980797296 + 25.9248064834 * (AP251/1000) - 2657.6209162609 * AP236 +\n123.0469725298 * AP253 - 9.2854579989 * AP316 + 872.0182830582 * AP252 + 26.664395965 * (AVERAGE(AP5:AP6)*0.453592) +\n2599.7646012325 * AP236 * AP236- 0.1016237102 *  (AVERAGE(AP5:AP6)*0.453592) *  (AVERAGE(AP5:AP6)*0.453592) - 71.8618465276 * AP236 * AP253 -\n607.1294449572 * AP236 * AP252 + 25.6463076451 * AP236 * (AVERAGE(AP5:AP6)*0.453592) - 0.8399854508 * AP253 * (AVERAGE(AP5:AP6)*0.453592) +\n0.0967347393 * AP316 * (AVERAGE(AP5:AP6)*0.453592) - 5.2553838048 * AP252 * (AVERAGE(AP5:AP6)*0.453592)","v":932.08406418687355},null,{"$f":" (-1619.2980797296 + 25.9248064834 * (AR251/1000) - 2657.6209162609 * AR236 +\n123.0469725298 * AR253 - 9.2854579989 * AR316 + 872.0182830582 * AR252 + 26.664395965 * (AVERAGE(AR5:AR6)*0.453592) +\n2599.7646012325 * AR236 * AR236- 0.1016237102 *  (AVERAGE(AR5:AR6)*0.453592) *  (AVERAGE(AR5:AR6)*0.453592) - 71.8618465276 * AR236 * AR253 -\n607.1294449572 * AR236 * AR252 + 25.6463076451 * AR236 * (AVERAGE(AR5:AR6)*0.453592) - 0.8399854508 * AR253 * (AVERAGE(AR5:AR6)*0.453592) +\n0.0967347393 * AR316 * (AVERAGE(AR5:AR6)*0.453592) - 5.2553838048 * AR252 * (AVERAGE(AR5:AR6)*0.453592))","v":722.13641638624006},{"$f":" -1619.2980797296 + 25.9248064834 * (AS251/1000) - 2657.6209162609 * AS236 +\n123.0469725298 * AS253 - 9.2854579989 * AS316 + 872.0182830582 * AS252 + 26.664395965 * (AVERAGE(AS5:AS6)*0.453592) +\n2599.7646012325 * AS236 * AS236- 0.1016237102 *  (AVERAGE(AS5:AS6)*0.453592) *  (AVERAGE(AS5:AS6)*0.453592) - 71.8618465276 * AS236 * AS253 -\n607.1294449572 * AS236 * AS252 + 25.6463076451 * AS236 * (AVERAGE(AS5:AS6)*0.453592) - 0.8399854508 * AS253 * (AVERAGE(AS5:AS6)*0.453592) +\n0.0967347393 * AS316 * (AVERAGE(AS5:AS6)*0.453592) - 5.2553838048 * AS252 * (AVERAGE(AS5:AS6)*0.453592)","v":841.40646013664229},{"$f":" -1619.2980797296 + 25.9248064834 * (AT251/1000) - 2657.6209162609 * AT236 +\n123.0469725298 * AT253 - 9.2854579989 * AT316 + 872.0182830582 * AT252 + 26.664395965 * (AVERAGE(AT5:AT6)*0.453592) +\n2599.7646012325 * AT236 * AT236- 0.1016237102 *  (AVERAGE(AT5:AT6)*0.453592) *  (AVERAGE(AT5:AT6)*0.453592) - 71.8618465276 * AT236 * AT253 -\n607.1294449572 * AT236 * AT252 + 25.6463076451 * AT236 * (AVERAGE(AT5:AT6)*0.453592) - 0.8399854508 * AT253 * (AVERAGE(AT5:AT6)*0.453592) +\n0.0967347393 * AT316 * (AVERAGE(AT5:AT6)*0.453592) - 5.2553838048 * AT252 * (AVERAGE(AT5:AT6)*0.453592)","v":916.72904437624834},{"$f":" -1619.2980797296 + 25.9248064834 * (AU251/1000) - 2657.6209162609 * AU236 +\n123.0469725298 * AU253 - 9.2854579989 * AU316 + 872.0182830582 * AU252 + 26.664395965 * (AVERAGE(AU5:AU6)*0.453592) +\n2599.7646012325 * AU236 * AU236- 0.1016237102 *  (AVERAGE(AU5:AU6)*0.453592) *  (AVERAGE(AU5:AU6)*0.453592) - 71.8618465276 * AU236 * AU253 -\n607.1294449572 * AU236 * AU252 + 25.6463076451 * AU236 * (AVERAGE(AU5:AU6)*0.453592) - 0.8399854508 * AU253 * (AVERAGE(AU5:AU6)*0.453592) +\n0.0967347393 * AU316 * (AVERAGE(AU5:AU6)*0.453592) - 5.2553838048 * AU252 * (AVERAGE(AU5:AU6)*0.453592)","v":941.64006968999638},{"$f":" -1619.2980797296 + 25.9248064834 * (AV251/1000) - 2657.6209162609 * AV236 +\n123.0469725298 * AV253 - 9.2854579989 * AV316 + 872.0182830582 * AV252 + 26.664395965 * (AVERAGE(AV5:AV6)*0.453592) +\n2599.7646012325 * AV236 * AV236- 0.1016237102 *  (AVERAGE(AV5:AV6)*0.453592) *  (AVERAGE(AV5:AV6)*0.453592) - 71.8618465276 * AV236 * AV253 -\n607.1294449572 * AV236 * AV252 + 25.6463076451 * AV236 * (AVERAGE(AV5:AV6)*0.453592) - 0.8399854508 * AV253 * (AVERAGE(AV5:AV6)*0.453592) +\n0.0967347393 * AV316 * (AVERAGE(AV5:AV6)*0.453592) - 5.2553838048 * AV252 * (AVERAGE(AV5:AV6)*0.453592)","v":918.50077750001947},{"$f":" -1619.2980797296 + 25.9248064834 * (AW251/1000) - 2657.6209162609 * AW236 +\n123.0469725298 * AW253 - 9.2854579989 * AW316 + 872.0182830582 * AW252 + 26.664395965 * (AVERAGE(AW5:AW6)*0.453592) +\n2599.7646012325 * AW236 * AW236- 0.1016237102 *  (AVERAGE(AW5:AW6)*0.453592) *  (AVERAGE(AW5:AW6)*0.453592) - 71.8618465276 * AW236 * AW253 -\n607.1294449572 * AW236 * AW252 + 25.6463076451 * AW236 * (AVERAGE(AW5:AW6)*0.453592) - 0.8399854508 * AW253 * (AVERAGE(AW5:AW6)*0.453592) +\n0.0967347393 * AW316 * (AVERAGE(AW5:AW6)*0.453592) - 5.2553838048 * AW252 * (AVERAGE(AW5:AW6)*0.453592)","v":932.08406418687355}]
["ADFI, g/d",{"$f":"B342/B344*1000","v":1359.5480024980595},1828.292464469157,2305.5922105887325,2729.415034120711,3011.820185199786,3094.1334754619566,null,{"$f":"I342/I344*1000","v":1348.7826007278509},1815.68177892228,2290.067197897029,2711.4157746123528,2994.3858231473955,3094.1334754619566,null,{"$f":"P342/P344*1000","v":1341.39899974334},1806.839086588014,2278.4572570527534,2696.6793919520519,2979.536691801507,3094.1334754619566,null,{"$f":"W342/W344*1000","v":1337.2933270276556},1801.6127543216869,2270.4372365023082,2685.3276063188227,2966.9564816925654,3094.1334754619566,null,{"$f":"AD342/AD344*1000","v":1336.515183527601},1800.0075173063415,2266.1761342156888,2677.2240023138611,2958.2648530923721,3094.1334754619566,null,{"$f":"AK342/AK344*1000","v":1339.0267496662491},1802.1045793076732,2265.7188386996818,2673.778103049729,2953.0939340480559,3094.1334754619566,null,{"$f":"AR342/AR344*1000","v":1344.5555326317949},1808.0599837870654,2269.2107982590765,2674.9271955846516,2951.2306264149029,3094.1334754619566]
["GF, g/kg",{"$f":" -232.8670000513 - (102.0339177026 * (B251/1000)) + (1386.8135453223 * B236) - (3.1583174866 * B253) + (80.3303777865 * B316) - (115.1570451563 * B252) + (4.1836503117 * (AVERAGE(B5:B6)*0.453592)) + (2553.6417073224 * B236 * B236) + (228.757399518 * B252 * B252) + (12.736240264 *  (B251/1000) * B253) - (24.4502664605 *  (B251/1000) * B316) - (23.0415882284 * B236 * B253) + (101.5847297779 * B236 * B316) - (1559.9331198689 * B236 *B252) - (3.9239483753 * B236 * (AVERAGE(B5:B6)*0.453592)) - (0.1078600966 * B253 * (AVERAGE(B5:B6)*0.453592)) - (28.1879330488 * B316 * B252) - (0.1153929924 * B316 * (AVERAGE(B5:B6)*0.453592))","v":544.53845340080113},471.75579583355693,409.85407727163351,360.59074506150858,326.06282096567122,301.24235802326291,null,{"$f":" -232.8670000513 - (102.0339177026 * (I251/1000)) + (1386.8135453223 * I236) - (3.1583174866 * I253) + (80.3303777865 * I316) - (115.1570451563 * I252) + (4.1836503117 * (AVERAGE(I5:I6)*0.453592)) + (2553.6417073224 * I236 * I236) + (228.757399518 * I252 * I252) + (12.736240264 *  (I251/1000) * I253) - (24.4502664605 *  (I251/1000) * I316) - (23.0415882284 * I236 * I253) + (101.5847297779 * I236 * I316) - (1559.9331198689 * I236 *I252) - (3.9239483753 * I236 * (AVERAGE(I5:I6)*0.453592)) - (0.1078600966 * I253 * (AVERAGE(I5:I6)*0.453592)) - (28.1879330488 * I316 * I252) - (0.1153929924 * I316 * (AVERAGE(I5:I6)*0.453592))","v":544.92251618513285},472.02046998180811,409.88899300995126,359.91351940059508,324.0636773047201,301.24235802326291,null,{"$f":" -232.8670000513 - (102.0339177026 * (P251/1000)) + (1386.8135453223 * P236) - (3.1583174866 * P253) + (80.3303777865 * P316) - (115.1570451563 * P252) + (4.1836503117 * (AVERAGE(P5:P6)*0.453592)) + (2553.6417073224 * P236 * P236) + (228.757399518 * P252 * P252) + (12.736240264 *  (P251/1000) * P253) - (24.4502664605 *  (P251/1000) * P316) - (23.0415882284 * P236 * P253) + (101.5847297779 * P236 * P316) - (1559.9331198689 * P236 *P252) - (3.9239483753 * P236 * (AVERAGE(P5:P6)*0.453592)) - (0.1078600966 * P253 * (AVERAGE(P5:P6)*0.453592)) - (28.1879330488 * P316 * P252) - (0.1153929924 * P316 * (AVERAGE(P5:P6)*0.453592))","v":544.85096467227618},471.93164836862832,409.62895773480216,358.95851978872997,321.97894228766768,301.24235802326291,null,{"$f":" -232.8670000513 - (102.0339177026 * (W251/1000)) + (1386.8135453223 * W236) - (3.1583174866 * W253) + (80.3303777865 * W316) - (115.1570451563 * W252) + (4.1836503117 * (AVERAGE(W5:W6)*0.453592)) + (2553.6417073224 * W236 * W236) + (228.757399518 * W252 * W252) + (12.736240264 *  (W251/1000) * W253) - (24.4502664605 *  (W251/1000) * W316) - (23.0415882284 * W236 * W253) + (101.5847297779 * W236 * W316) - (1559.9331198689 * W236 *W252) - (3.9239483753 * W236 * (AVERAGE(W5:W6)*0.453592)) - (0.1078600966 * W253 * (AVERAGE(W5:W6)*0.453592)) - (28.1879330488 * W316 * W252) - (0.1153929924 * W316 * (AVERAGE(W5:W6)*0.453592))","v":544.02090375649789},471.24361438129569,408.78610079742481,357.7790103051002,319.75849715832874,301.24235802326291,null,{"$f":" -232.8670000513 - (102.0339177026 * (AD251/1000)) + (1386.8135453223 * AD236) - (3.1583174866 * AD253) + (80.3303777865 * AD316) - (115.1570451563 * AD252) + (4.1836503117 * (AVERAGE(AD5:AD6)*0.453592)) + (2553.6417073224 * AD236 * AD236) + (228.757399518 * AD252 * AD252) + (12.736240264 *  (AD251/1000) * AD253) - (24.4502664605 *  (AD251/1000) * AD316) - (23.0415882284 * AD236 * AD253) + (101.5847297779 * AD236 * AD316) - (1559.9331198689 * AD236 *AD252) - (3.9239483753 * AD236 * (AVERAGE(AD5:AD6)*0.453592)) - (0.1078600966 * AD253 * (AVERAGE(AD5:AD6)*0.453592)) - (28.1879330488 * AD316 * AD252) - (0.1153929924 * AD316 * (AVERAGE(AD5:AD6)*0.453592))","v":542.41495381124025},469.82815603512751,407.58466744044267,356.34303554371058,317.14306606759203,301.24235802326291,null,{"$f":" -232.8670000513 - (102.0339177026 * (AK251/1000)) + (1386.8135453223 * AK236) - (3.1583174866 * AK253) + (80.3303777865 * AK316) - (115.1570451563 * AK252) + (4.1836503117 * (AVERAGE(AK5:AK6)*0.453592)) + (2553.6417073224 * AK236 * AK236) + (228.757399518 * AK252 * AK252) + (12.736240264 *  (AK251/1000) * AK253) - (24.4502664605 *  (AK251/1000) * AK316) - (23.0415882284 * AK236 * AK253) + (101.5847297779 * AK236 * AK316) - (1559.9331198689 * AK236 *AK252) - (3.9239483753 * AK236 * (AVERAGE(AK5:AK6)*0.453592)) - (0.1078600966 * AK253 * (AVERAGE(AK5:AK6)*0.453592)) - (28.1879330488 * AK316 * AK252) - (0.1153929924 * AK316 * (AVERAGE(AK5:AK6)*0.453592))","v":540.06744965323378},467.87575223726196,405.98913112498241,354.40368912897554,314.274818790317,301.24235802326291,null,{"$f":" -232.8670000513 - (102.0339177026 * (AR251/1000)) + (1386.8135453223 * AR236) - (3.1583174866 * AR253) + (80.3303777865 * AR316) - (115.1570451563 * AR252) + (4.1836503117 * (AVERAGE(AR5:AR6)*0.453592)) + (2553.6417073224 * AR236 * AR236) + (228.757399518 * AR252 * AR252) + (12.736240264 *  (AR251/1000) * AR253) - (24.4502664605 *  (AR251/1000) * AR316) - (23.0415882284 * AR236 * AR253) + (101.5847297779 * AR236 * AR316) - (1559.9331198689 * AR236 *AR252) - (3.9239483753 * AR236 * (AVERAGE(AR5:AR6)*0.453592)) - (0.1078600966 * AR253 * (AVERAGE(AR5:AR6)*0.453592)) - (28.1879330488 * AR316 * AR252) - (0.1153929924 * AR316 * (AVERAGE(AR5:AR6)*0.453592))","v":537.08188234721013},465.36423994865339,403.98584612745401,352.02456023637109,311.22636410689336,301.24235802326291]
["F/G",{"$f":"IF(B323=\"\",\"0\",1/B344*1000)","v":1.8364176005472321},2.1197407829045858,2.4398927702681932,2.7732270273032733,3.0668936649642822,3.319586284485188,null,{"$f":"IF(I323=\"\",\"0\",1/I344*1000)","v":1.8351232887213975},2.1185521891424335,2.4396849319047758,2.7784452266906055,3.0858132831088341,3.319586284485188,null,{"$f":"IF(P323=\"\",\"0\",1/P344*1000)","v":1.8353642827841785},2.11895091896633,2.4412336606520135,2.7858372064509398,3.1057931704942483,3.319586284485188,null,{"$f":"IF(W323=\"\",\"0\",1/W344*1000)","v":1.8381646607601625},2.1220446696406023,2.4462671261309668,2.7950214271855645,3.1273602074281985,3.319586284485188,null,{"$f":"IF(AD323=\"\",\"0\",1/AD344*1000)","v":1.8436069893972702},2.1284377855064807,2.4534779639278814,2.8062846758719258,3.1531510759465009,3.319586284485188,null,{"$f":"IF(AK323=\"\",\"0\",1/AK344*1000)","v":1.8516205719157477},2.1373195666119824,2.4631201264650437,2.8216410570040011,3.1819284912775538,3.319586284485188,null,{"$f":"IF(AR323=\"\",\"0\",1/AR344*1000)","v":1.8619134863192512},2.1488544115687453,2.4753342464490915,2.840710884855699,3.2130954036289205,3.319586284485188]
["Days on phase",{"$f":"(B6-B5)*0.453592/(B342/1000)","v":21.444223797755399},18.406470406661629,19.20054789166538,18.43491851613966,18.475451331583397,21.898926056424528,null,{"$f":"(I351-I5)*0.453592/(I342/1000)","v":21.444180490323113},{"$f":"(J351-I351)*0.453592/(J342/1000)","v":18.54018815491974},{"$f":"(K351-J351)*0.453592/(K342/1000)","v":19.307776969413119},{"$f":"(L351-K351)*0.453592/(L342/1000)","v":18.55853844844027},{"$f":"(M351-L351)*0.453592/(M342/1000)","v":18.633638467186056},{"$f":"(N351-M351)*0.453592/(N342/1000)","v":22.130257856922302},null,{"$f":"(P351-P5)*0.453592/(P342/1000)","v":21.444180246222977},{"$f":"(Q351-P351)*0.453592/(Q342/1000)","v":18.644466261393351},{"$f":"(R351-Q351)*0.453592/(R342/1000)","v":19.393872812724403},{"$f":"(S351-R351)*0.453592/(S342/1000)","v":18.665688952054769},{"$f":"(T351-S351)*0.453592/(T342/1000)","v":18.786862626521202},{"$f":"(U351-T351)*0.453592/(U342/1000)","v":22.348764053660151},null,{"$f":"(W351-W5)*0.453592/(W342/1000)","v":21.444180045859394},{"$f":"(X351-W351)*0.453592/(X342/1000)","v":18.730044921084275},{"$f":"(Y351-X351)*0.453592/(Y342/1000)","v":19.468453682314134},{"$f":"(Z351-Y351)*0.453592/(Z342/1000)","v":18.77132761367476},{"$f":"(AA351-Z351)*0.453592/(AA342/1000)","v":18.931081826370587},{"$f":"(AB351-AA351)*0.453592/(AB342/1000)","v":22.55963729131345},null,{"$f":"(AD351-AD5)*0.453592/(AD342/1000)","v":21.444179890772812},{"$f":"(AE351-AD351)*0.453592/(AE342/1000)","v":18.796469009784296},{"$f":"(AF351-AE351)*0.453592/(AF342/1000)","v":19.535595860864181},{"$f":"(AG351-AF351)*0.453592/(AG342/1000)","v":18.863559596049374},{"$f":"(AH351-AG351)*0.453592/(AH342/1000)","v":19.068699117447089},{"$f":"(AI351-AH351)*0.453592/(AI342/1000)","v":22.768088979616145},null,{"$f":"(AK351-AK5)*0.453592/(AK342/1000)","v":21.444179782635668},{"$f":"(AL351-AK351)*0.453592/(AL342/1000)","v":18.842938639519613},{"$f":"(AM351-AL351)*0.453592/(AM342/1000)","v":19.58766971147897},{"$f":"(AN351-AM351)*0.453592/(AN342/1000)","v":18.943486432461576},{"$f":"(AO351-AN351)*0.453592/(AO342/1000)","v":19.2025519527805},{"$f":"(AP351-AO351)*0.453592/(AP342/1000)","v":22.968488412523691},null,{"$f":"(AR351-AR5)*0.453592/(AR342/1000)","v":21.44417971995674},{"$f":"(AS351-AR351)*0.453592/(AS342/1000)","v":18.870057380359263},{"$f":"(AT351-AS351)*0.453592/(AT342/1000)","v":19.624219800758382},{"$f":"(AU351-AT351)*0.453592/(AU342/1000)","v":19.010488839895785},{"$f":"(AV351-AU351)*0.453592/(AV342/1000)","v":19.329693443243265},{"$f":"(AW351-AV351)*0.453592/(AW342/1000)","v":23.158425156574825}]
["Dressing, %",{"$f":" 51.6684755267 + 7.1030096064 * (B251/1000) + 54.0870565413 * B236 + 1.6439820046 * B253 + 0.4039153805 * B316 - 20.5375389219 * B252 + 0.2869358688 *(AVERAGE(B5:B6)*0.453592) - 0.016597667 * B316 * B316 - 0.1531408962 * (B251/1000) * (AVERAGE(B5:B6)*0.453592) - 4.8153797375 * B236 * B253 + 0.5304361357 * B236 * (AVERAGE(B5:B6)*0.453592) + 0.9830652207 * B253 * B252 - 0.0127129553 * B253 *(AVERAGE(B5:B6)*0.453592)","v":58.926946242378264},66.189194917789251,71.395755678401272,74.83136084114436,76.96558226351317,78.664524560378098,null,{"$f":" 51.6684755267 + 7.1030096064 * (I251/1000) + 54.0870565413 * I236 + 1.6439820046 * I253 + 0.4039153805 * I316 - 20.5375389219 * I252 + 0.2869358688 *(AVERAGE(I5:I6)*0.453592) - 0.016597667 * I316 * I316 - 0.1531408962 * (I251/1000) * (AVERAGE(I5:I6)*0.453592) - 4.8153797375 * I236 * I253 + 0.5304361357 * I236 * (AVERAGE(I5:I6)*0.453592) + 0.9830652207 * I253 * I252 - 0.0127129553 * I253 *(AVERAGE(I5:I6)*0.453592)","v":59.256306467592132},66.367015134120294,71.46679607070223,74.814708578542152,76.870626445897727,78.664524560378098,null,{"$f":" 51.6684755267 + 7.1030096064 * (P251/1000) + 54.0870565413 * P236 + 1.6439820046 * P253 + 0.4039153805 * P316 - 20.5375389219 * P252 + 0.2869358688 *(AVERAGE(P5:P6)*0.453592) - 0.016597667 * P316 * P316 - 0.1531408962 * (P251/1000) * (AVERAGE(P5:P6)*0.453592) - 4.8153797375 * P236 * P253 + 0.5304361357 * P236 * (AVERAGE(P5:P6)*0.453592) + 0.9830652207 * P253 * P252 - 0.0127129553 * P253 *(AVERAGE(P5:P6)*0.453592)","v":59.514103916213948},66.499242398773589,71.502289957165786,74.770812876218599,76.74974151558925,78.664524560378098,null,{"$f":" 51.6684755267 + 7.1030096064 * (W251/1000) + 54.0870565413 * W236 + 1.6439820046 * W253 + 0.4039153805 * W316 - 20.5375389219 * W252 + 0.2869358688 *(AVERAGE(W5:W6)*0.453592) - 0.016597667 * W316 * W316 - 0.1531408962 * (W251/1000) * (AVERAGE(W5:W6)*0.453592) - 4.8153797375 * W236 * W253 + 0.5304361357 * W236 * (AVERAGE(W5:W6)*0.453592) + 0.9830652207 * W253 * W252 - 0.0127129553 * W253 *(AVERAGE(W5:W6)*0.453592)","v":59.752063785782312},66.608813671194355,71.525998193160518,74.699496213849145,76.598094339391096,78.664524560378098,null,{"$f":" 51.6684755267 + 7.1030096064 * (AD251/1000) + 54.0870565413 * AD236 + 1.6439820046 * AD253 + 0.4039153805 * AD316 - 20.5375389219 * AD252 + 0.2869358688 *(AVERAGE(AD5:AD6)*0.453592) - 0.016597667 * AD316 * AD316 - 0.1531408962 * (AD251/1000) * (AVERAGE(AD5:AD6)*0.453592) - 4.8153797375 * AD236 * AD253 + 0.5304361357 * AD236 * (AVERAGE(AD5:AD6)*0.453592) + 0.9830652207 * AD253 * AD252 - 0.0127129553 * AD253 *(AVERAGE(AD5:AD6)*0.453592)","v":59.973458805908173},66.719667287807752,71.522174498494138,74.601166796203174,76.418925247056848,78.664524560378098,null,{"$f":" 51.6684755267 + 7.1030096064 * (AK251/1000) + 54.0870565413 * AK236 + 1.6439820046 * AK253 + 0.4039153805 * AK316 - 20.5375389219 * AK252 + 0.2869358688 *(AVERAGE(AK5:AK6)*0.453592) - 0.016597667 * AK316 * AK316 - 0.1531408962 * (AK251/1000) * (AVERAGE(AK5:AK6)*0.453592) - 4.8153797375 * AK236 * AK253 + 0.5304361357 * AK236 * (AVERAGE(AK5:AK6)*0.453592) + 0.9830652207 * AK253 * AK252 - 0.0127129553 * AK253 *(AVERAGE(AK5:AK6)*0.453592)","v":60.166396912108425},66.800023372360315,71.49279477845046,74.477267086053544,76.214163950856815,78.664524560378098,null,{"$f":" 51.6684755267 + 7.1030096064 * (AR251/1000) + 54.0870565413 * AR236 + 1.6439820046 * AR253 + 0.4039153805 * AR316 - 20.5375389219 * AR252 + 0.2869358688 *(AVERAGE(AR5:AR6)*0.453592) - 0.016597667 * AR316 * AR316 - 0.1531408962 * (AR251/1000) * (AVERAGE(AR5:AR6)*0.453592) - 4.8153797375 * AR236 * AR253 + 0.5304361357 * AR236 * (AVERAGE(AR5:AR6)*0.453592) + 0.9830652207 * AR253 * AR252 - 0.0127129553 * AR253 *(AVERAGE(AR5:AR6)*0.453592)","v":60.276466664575793},66.859194238658858,71.437507554301305,74.329152219885884,75.98395173551873,78.664524560378098]
["Backfat, mm",{"$f":" 41.4410513954 + (14.8656283053 * B236) - (0.6326892081 * B253) - (12.1380129342 * B252) -\n(0.0133880688 * (B253^2)) + (1.1112817574 * (B252^2))","v":9.5560371255009784},10.757396605242121,12.259709285644082,14.049104759357949,15.652515990358797,16.585997021003028,null,{"$f":" 41.4410513954 + (14.8656283053 * I236) - (0.6326892081 * I253) - (12.1380129342 * I252) -\n(0.0133880688 * (I253^2)) + (1.1112817574 * (I252^2))","v":9.1030847275408817},10.305509878608344,11.80655762230802,13.606325223804614,15.234798120870087,16.585997021003028,null,{"$f":" 41.4410513954 + (14.8656283053 * P236) - (0.6326892081 * P253) - (12.1380129342 * P252) -\n(0.0133880688 * (P253^2)) + (1.1112817574 * (P252^2))","v":8.6249365428602918},9.8263274993130985,11.330481300635393,13.161962974540518,14.79370407992214,16.585997021003028,null,{"$f":" 41.4410513954 + (14.8656283053 * W236) - (0.6326892081 * W253) - (12.1380129342 * W252) -\n(0.0133880688 * (W253^2)) + (1.1112817574 * (W252^2))","v":8.1423115986948211},9.3449814882317455,10.876068590363264,12.703476594817129,14.33860576939837,16.585997021003028,null,{"$f":" 41.4410513954 + (14.8656283053 * AD236) - (0.6326892081 * AD253) - (12.1380129342 * AD252) -\n(0.0133880688 * (AD253^2)) + (1.1112817574 * (AD252^2))","v":7.6556553743262796},8.879947331605095,10.409077879673632,12.235613105516206,13.884315353758383,16.585997021003028,null,{"$f":" 41.4410513954 + (14.8656283053 * AK236) - (0.6326892081 * AK253) - (12.1380129342 * AK252) -\n(0.0133880688 * (AK253^2)) + (1.1112817574 * (AK252^2))","v":7.161747877848704},8.4084256625830598,9.9334328557634741,11.76815195558817,13.428627470540391,16.585997021003028,null,{"$f":" 41.4410513954 + (14.8656283053 * AR236) - (0.6326892081 * AR253) - (12.1380129342 * AR252) -\n(0.0133880688 * (AR253^2)) + (1.1112817574 * (AR252^2))","v":6.6356117359756333},7.9284471969483086,9.445868384140848,11.297682804889151,12.969505073923386,16.585997021003028]
["Loin depth, mm",{"$f":" -16.7992454106 + 17.2658536059 * (B251/1000) - 106.6634904715 * B236 + 0.1550376119 * B253 - 0.0727312562 * B316 + 48.6541457906 * B252 - 0.1535643762 * B253 * B253 - 0.0358142801 * B316 * B316 - 5.4618633046 * B252 * B252 + 4.2267870055 * B236 * B253 - 2.0313848595 * B236 * B316 + 0.1484978883 * B253 * B316","v":51.865570489059841},57.191564116130472,59.985859623399051,60.902879894464405,60.770621726469166,60.466263275736296,null,{"$f":" -16.7992454106 + 17.2658536059 * (I251/1000) - 106.6634904715 * I236 + 0.1550376119 * I253 - 0.0727312562 * I316 + 48.6541457906 * I252 - 0.1535643762 * I253 * I253 - 0.0358142801 * I316 * I316 - 5.4618633046 * I252 * I252 + 4.2267870055 * I236 * I253 - 2.0313848595 * I236 * I316 + 0.1484978883 * I253 * I316","v":51.760378730115342},57.116711951056431,59.941048790236486,60.8598012284709,60.7084798007822,60.466263275736296,null,{"$f":" -16.7992454106 + 17.2658536059 * (P251/1000) - 106.6634904715 * P236 + 0.1550376119 * P253 - 0.0727312562 * P316 + 48.6541457906 * P252 - 0.1535643762 * P253 * P253 - 0.0358142801 * P316 * P316 - 5.4618633046 * P252 * P252 + 4.2267870055 * P236 * P253 - 2.0313848595 * P236 * P316 + 0.1484978883 * P253 * P316","v":51.564383022474743},57.004125727873273,59.875239356438691,60.812923277768796,60.647135830635534,60.466263275736296,null,{"$f":" -16.7992454106 + 17.2658536059 * (W251/1000) - 106.6634904715 * W236 + 0.1550376119 * W253 - 0.0727312562 * W316 + 48.6541457906 * W252 - 0.1535643762 * W253 * W253 - 0.0358142801 * W316 * W316 - 5.4618633046 * W252 * W252 + 4.2267870055 * W236 * W253 - 2.0313848595 * W236 * W316 + 0.1484978883 * W253 * W316","v":51.36375182922437},56.884900906553185,59.824341205821518,60.761990922695603,60.586855208223852,60.466263275736296,null,{"$f":" -16.7992454106 + 17.2658536059 * (AD251/1000) - 106.6634904715 * AD236 + 0.1550376119 * AD253 - 0.0727312562 * AD316 + 48.6541457906 * AD252 - 0.1535643762 * AD253 * AD253 - 0.0358142801 * AD316 * AD316 - 5.4618633046 * AD252 * AD252 + 4.2267870055 * AD236 * AD253 - 2.0313848595 * AD236 * AD316 + 0.1484978883 * AD253 * AD316","v":51.164803681444724},56.801760235365194,59.766387181758517,60.710785086977566,60.522198947372814,60.466263275736296,null,{"$f":" -16.7992454106 + 17.2658536059 * (AK251/1000) - 106.6634904715 * AK236 + 0.1550376119 * AK253 - 0.0727312562 * AK316 + 48.6541457906 * AK252 - 0.1535643762 * AK253 * AK253 - 0.0358142801 * AK316 * AK316 - 5.4618633046 * AK252 * AK252 + 4.2267870055 * AK236 * AK253 - 2.0313848595 * AK236 * AK316 + 0.1484978883 * AK253 * AK316","v":50.94290975293066},56.69976786992531,59.703609749018526,60.655471088189302,60.452970367087858,60.466263275736296,null,{"$f":" -16.7992454106 + 17.2658536059 * (AR251/1000) - 106.6634904715 * AR236 + 0.1550376119 * AR253 - 0.0727312562 * AR316 + 48.6541457906 * AR252 - 0.1535643762 * AR253 * AR253 - 0.0358142801 * AR316 * AR316 - 5.4618633046 * AR252 * AR252 + 4.2267870055 * AR236 * AR253 - 2.0313848595 * AR236 * AR316 + 0.1484978883 * AR253 * AR316","v":50.580550318529227},56.598490848196249,59.635455727621,60.596415736436171,60.379503525965447,60.466263275736296]
["Lean, %",{"$f":" 49.3215904687 - 4.5564383267 * (B251/1000) + 31.3355706686 * B236 + 0.0864922401 * B253 - 16.201377828 * B236 * B236","v":53.767985207144591},54.221957863966054,54.11985087991409,53.644786108848308,53.100859923606755,52.737723960313936,null,{"$f":" 49.3215904687 - 4.5564383267 * (I251/1000) + 31.3355706686 * I236 + 0.0864922401 * I253 - 16.201377828 * I236 * I236","v":53.956077548996447},54.366625145917489,54.234757433588257,53.742359587401396,53.183906533208742,52.737723960313936,null,{"$f":" 49.3215904687 - 4.5564383267 * (P251/1000) + 31.3355706686 * P236 + 0.0864922401 * P253 - 16.201377828 * P236 * P236","v":54.132567492720966},54.508201757543986,54.35234124423387,53.837272757177388,53.27123913416856,52.737723960313936,null,{"$f":" 49.3215904687 - 4.5564383267 * (W251/1000) + 31.3355706686 * W236 + 0.0864922401 * W253 - 16.201377828 * W236 * W236","v":54.307004225333472},54.648121880587475,54.463469021621179,53.933215354730756,53.358066482317938,52.737723960313936,null,{"$f":" 49.3215904687 - 4.5564383267 * (AD251/1000) + 31.3355706686 * AD236 + 0.0864922401 * AD253 - 16.201377828 * AD236 * AD236","v":54.479807730815537},54.78611423596584,54.574045893424795,54.027666739240473,53.446946471505626,52.737723960313936,null,{"$f":" 49.3215904687 - 4.5564383267 * (AK251/1000) + 31.3355706686 * AK236 + 0.0864922401 * AK253 - 16.201377828 * AK236 * AK236","v":54.649163636177029},54.922113926009153,54.683565008213925,54.124115745648581,53.535689017141308,52.737723960313936,null,{"$f":" 49.3215904687 - 4.5564383267 * (AR251/1000) + 31.3355706686 * AR236 + 0.0864922401 * AR253 - 16.201377828 * AR236 * AR236","v":54.807012934984947},55.055937715870606,54.792747672122793,54.222094315597218,53.623204458478163,52.737723960313936]
["Final BW",{"$f":"B5+(B342*0.00220462*B346)","v":84.999929826400006},119.99992982640001,159.99991980159999,199.99991980160002,239.99991980159999,284.9999097768,null,{"$f":"$B$351-I268","v":84.747276956008861},{"$f":"$C$351-J268","v":119.77801757161166},{"$f":"$D$351-K268","v":159.73395914661489},{"$f":"$E$351-L268","v":199.66150925488392},{"$f":"$F$351-M268","v":239.52454714962926},{"$f":"$G$351-N268","v":284.9999097768},null,{"$f":"$B$351-P268","v":84.55252302062118},{"$f":"$C$351-Q268","v":119.60212968231728},{"$f":"$D$351-R268","v":159.50744006478919},{"$f":"$E$351-S268","v":199.34128423138765},{"$f":"$F$351-T268","v":239.07553979521069},{"$f":"$G$351-U268","v":284.9999097768},null,{"$f":"$B$351-W268","v":84.39428801758379},{"$f":"$C$351-X268","v":119.45174087494144},{"$f":"$D$351-Y268","v":159.2873712188354},{"$f":"$E$351-Z268","v":199.04694664571142},{"$f":"$F$351-AA268","v":238.64221737246044},{"$f":"$G$351-AB268","v":284.9999097768},null,{"$f":"$B$351-AD268","v":84.272801566589351},{"$f":"$C$351-AE268","v":119.3176547846159},{"$f":"$D$351-AF268","v":159.09838729787106},{"$f":"$E$351-AG268","v":198.77286767070169},{"$f":"$F$351-AH268","v":238.2138709800642},{"$f":"$G$351-AI268","v":284.9999097768},null,{"$f":"$B$351-AK268","v":84.18859936367906},{"$f":"$C$351-AL268","v":119.21486009591908},{"$f":"$D$351-AM268","v":158.93747306067789},{"$f":"$E$351-AN268","v":198.51221770330227},{"$f":"$F$351-AO268","v":237.80207112934988},{"$f":"$G$351-AP268","v":284.9999097768},null,{"$f":"$B$351-AR268","v":84.13998283768683},{"$f":"$C$351-AS268","v":119.14366055462939},{"$f":"$D$351-AT268","v":158.80505728247883},{"$f":"$E$351-AU268","v":198.27012288337207},{"$f":"$F$351-AV268","v":237.41177100868285},{"$f":"$G$351-AW268","v":284.9999097768}]
["Withdrawal Period",0,0,0,0,0,22.19,null,0,0,0,0,0,22.19,null,0,0,0,0,0,22.19,null,0,0,0,0,0,22.19,null,0,0,0,0,0,22.19,null,0,0,0,0,0,22.19,null,0,0,0,0,0,22.19]
["Soto Model for Yield",{"$f":"0.03492*B352-0.05092*B316-0.06897*B316-0.00289*(B316*B352)+76.0769-(75.23-'DDGS Calculator'!$G$9)","v":74.819451185589813},{"$f":"0.03492*C352-0.05092*B316-0.06897*C316-0.00289*(C316*C352)+76.0769-(75.23-'DDGS Calculator'!$G$9)","v":74.814490114943524},{"$f":"0.03492*D352-0.05092*C316-0.06897*D316-0.00289*(D316*D352)+76.0769-(75.23-'DDGS Calculator'!$G$9)","v":74.806402824315015},{"$f":"0.03492*E352-0.05092*D316-0.06897*E316-0.00289*(E316*E352)+76.0769-(75.23-'DDGS Calculator'!$G$9)","v":74.799464091992718},{"$f":"0.03492*F352-0.05092*E316-0.06897*F316-0.00289*(F316*F352)+76.0769-(75.23-'DDGS Calculator'!$G$9)","v":74.793950097444124},{"$f":"0.03492*G352-0.05092*F316-0.06897*G316-0.00289*(G316*G352)+76.0769-(75.23-'DDGS Calculator'!$G$9)","v":74.99996147514166},null,{"$f":"0.03492*I352-0.05092*I316-0.06897*I316-0.00289*(I316*I352)+76.0769-(75.23-'DDGS Calculator'!$G$9)","v":74.674869709053922},{"$f":"0.03492*J352-0.05092*I316-0.06897*J316-0.00289*(J316*J352)+76.0769-(75.23-'DDGS Calculator'!$G$9)","v":74.669995508682845},{"$f":"0.03492*K352-0.05092*J316-0.06897*K316-0.00289*(K316*K352)+76.0769-(75.23-'DDGS Calculator'!$G$9)","v":74.661998485722151},{"$f":"0.03492*L352-0.05092*K316-0.06897*L316-0.00289*(L316*L352)+76.0769-(75.23-'DDGS Calculator'!$G$9)","v":74.655106105696191},{"$f":"0.03492*M352-0.05092*L316-0.06897*M316-0.00289*(M316*M352)+76.0769-(75.23-'DDGS Calculator'!$G$9)","v":74.64959487037035},{"$f":"0.03492*N352-0.05092*M316-0.06897*N316-0.00289*(N316*N352)+76.0769-(75.23-'DDGS Calculator'!$G$9)","v":74.938645139604063},null,{"$f":"0.03492*P352-0.05092*P316-0.06897*P316-0.00289*(P316*P352)+76.0769-(75.23-'DDGS Calculator'!$G$9)","v":74.53041991549712},{"$f":"0.03492*Q352-0.05092*P316-0.06897*Q316-0.00289*(Q316*Q352)+76.0769-(75.23-'DDGS Calculator'!$G$9)","v":74.525610640693117},{"$f":"0.03492*R352-0.05092*Q316-0.06897*R316-0.00289*(R316*R352)+76.0769-(75.23-'DDGS Calculator'!$G$9)","v":74.51768021323052},{"$f":"0.03492*S352-0.05092*R316-0.06897*S316-0.00289*(S316*S352)+76.0769-(75.23-'DDGS Calculator'!$G$9)","v":74.510805575179475},{"$f":"0.03492*T352-0.05092*S316-0.06897*T316-0.00289*(T316*T352)+76.0769-(75.23-'DDGS Calculator'!$G$9)","v":74.505324263577378},{"$f":"0.03492*U352-0.05092*T316-0.06897*U316-0.00289*(U316*U352)+76.0769-(75.23-'DDGS Calculator'!$G$9)","v":74.877378608765426},null,{"$f":"0.03492*W352-0.05092*W316-0.06897*W316-0.00289*(W316*W352)+76.0769-(75.23-'DDGS Calculator'!$G$9)","v":74.385997625975506},{"$f":"0.03492*X352-0.05092*W316-0.06897*X316-0.00289*(X316*X352)+76.0769-(75.23-'DDGS Calculator'!$G$9)","v":74.38122577981602},{"$f":"0.03492*Y352-0.05092*X316-0.06897*Y316-0.00289*(Y316*Y352)+76.0769-(75.23-'DDGS Calculator'!$G$9)","v":74.373337114426903},{"$f":"0.03492*Z352-0.05092*Y316-0.06897*Z316-0.00289*(Z316*Z352)+76.0769-(75.23-'DDGS Calculator'!$G$9)","v":74.366535495324655},{"$f":"0.03492*AA352-0.05092*Z316-0.06897*AA316-0.00289*(AA316*AA352)+76.0769-(75.23-'DDGS Calculator'!$G$9)","v":74.361192556668442},{"$f":"0.03492*AB352-0.05092*AA316-0.06897*AB316-0.00289*(AB316*AB352)+76.0769-(75.23-'DDGS Calculator'!$G$9)","v":74.816191506552173},null,{"$f":"0.03492*AD352-0.05092*AD316-0.06897*AD316-0.00289*(AD316*AD352)+76.0769-(75.23-'DDGS Calculator'!$G$9)","v":74.241610737703795},{"$f":"0.03492*AE352-0.05092*AD316-0.06897*AE316-0.00289*(AE316*AE352)+76.0769-(75.23-'DDGS Calculator'!$G$9)","v":74.236842088275779},{"$f":"0.03492*AF352-0.05092*AE316-0.06897*AF316-0.00289*(AF316*AF352)+76.0769-(75.23-'DDGS Calculator'!$G$9)","v":74.229025449893513},{"$f":"0.03492*AG352-0.05092*AF316-0.06897*AG316-0.00289*(AG316*AG352)+76.0769-(75.23-'DDGS Calculator'!$G$9)","v":74.222389067781563},{"$f":"0.03492*AH352-0.05092*AG316-0.06897*AH316-0.00289*(AH316*AH352)+76.0769-(75.23-'DDGS Calculator'!$G$9)","v":74.217548209025438},{"$f":"0.03492*AI352-0.05092*AH316-0.06897*AI316-0.00289*(AI316*AI352)+76.0769-(75.23-'DDGS Calculator'!$G$9)","v":74.755313587714781},null,{"$f":"0.03492*AK352-0.05092*AK316-0.06897*AK316-0.00289*(AK316*AK352)+76.0769-(75.23-'DDGS Calculator'!$G$9)","v":74.097252416994536},{"$f":"0.03492*AL352-0.05092*AK316-0.06897*AL316-0.00289*(AL316*AL352)+76.0769-(75.23-'DDGS Calculator'!$G$9)","v":74.092459424968382},{"$f":"0.03492*AM352-0.05092*AL316-0.06897*AM316-0.00289*(AM316*AM352)+76.0769-(75.23-'DDGS Calculator'!$G$9)","v":74.084743470397243},{"$f":"0.03492*AN352-0.05092*AM316-0.06897*AN316-0.00289*(AN316*AN352)+76.0769-(75.23-'DDGS Calculator'!$G$9)","v":74.078588746506668},{"$f":"0.03492*AO352-0.05092*AN316-0.06897*AO316-0.00289*(AO316*AO352)+76.0769-(75.23-'DDGS Calculator'!$G$9)","v":74.074280642912939},{"$f":"0.03492*AP352-0.05092*AO316-0.06897*AP316-0.00289*(AP316*AP352)+76.0769-(75.23-'DDGS Calculator'!$G$9)","v":74.694540435142528},null,{"$f":"0.03492*AR352-0.05092*AR316-0.06897*AR316-0.00289*(AR316*AR352)+76.0769-(75.23-'DDGS Calculator'!$G$9)","v":73.952994390504614},{"$f":"0.03492*AS352-0.05092*AR316-0.06897*AS316-0.00289*(AS316*AS352)+76.0769-(75.23-'DDGS Calculator'!$G$9)","v":73.948172427249744},{"$f":"0.03492*AT352-0.05092*AS316-0.06897*AT316-0.00289*(AT316*AT352)+76.0769-(75.23-'DDGS Calculator'!$G$9)","v":73.940558387754507},{"$f":"0.03492*AU352-0.05092*AT316-0.06897*AU316-0.00289*(AU316*AU352)+76.0769-(75.23-'DDGS Calculator'!$G$9)","v":73.9350651660491},{"$f":"0.03492*AV352-0.05092*AU316-0.06897*AV316-0.00289*(AV316*AV352)+76.0769-(75.23-'DDGS Calculator'!$G$9)","v":73.931186128513843},{"$f":"0.03492*AW352-0.05092*AV316-0.06897*AW316-0.00289*(AW316*AW352)+76.0769-(75.23-'DDGS Calculator'!$G$9)","v":74.633767427443217}]

{"sheet":"GF diets L-Val + Fat + WD","index":12,"n_rows":353,"n_cols":50,"rows_kept":353,"cut":false,"hidden":true,"merged":[[3,36,3,40],[3,43,3,47],[3,1,3,5],[3,8,3,12],[3,15,3,19],[3,22,3,26],[3,29,3,33]]}
["Corn",null,null,null,null,null,null,null,{"$f":"B7-I7","v":82.36576274423237},{"$f":"C7-J7","v":82.701965234004547},82.528955754677099,82.674559526328949,82.675336185561036,0,null,{"$f":"I7-P7","v":82.581472590025896},{"$f":"J7-Q7","v":82.666285192887244},82.753503782033704,82.729318604659966,82.674444951338046,0,null,{"$f":"P7-W7","v":82.506008568100015},{"$f":"Q7-X7","v":82.642780463570944},82.618962361468448,82.773112757807667,82.927615308699615,0,null,{"$f":"W7-AD7","v":82.636095451643087},{"$f":"X7-AE7","v":82.581907933398043},82.771225361127563,82.850233769434453,85.510406908593268,0,null,{"$f":"AD7-AK7","v":82.729118692952738},{"$f":"AE7-AL7","v":82.772825041090982},82.708854609684067,85.12970777509986,86.217084550415166,0,null,{"$f":"AK7-AR7","v":82.901579466484463},{"$f":"AL7-AS7","v":82.798681375446108},83.149937937093682,86.213049764250172,86.217580774798762,0]
["SBM",null,null,null,null,null,null,null,{"$f":"B8-I8","v":26.611878944851469},26.588269219446147,26.600418761533547,26.590193777569539,26.590139236893037,0,null,{"$f":"I8-P8","v":26.596730781523092},26.590774840311497,26.584649939388328,26.586348336675428,26.590201823566076,0,null,{"$f":"P8-W8","v":26.602030221265295},26.59242545332495,26.594098072854422,26.583272904572368,26.572423006335839,0,null,{"$f":"W8-AD8","v":26.592894906410038},26.596700209657229,26.583405446473989,26.577857103194219,26.391047191736334,0,null,{"$f":"AD8-AK8","v":26.586362375419071},26.583293109398028,26.587785414974633,26.417781681447877,26.341420952844146,0,null,{"$f":"AK8-AR8","v":26.574251366041608},26.581477355580887,26.556810462206613,26.341704294569354,26.341386105626498,0]
[null,"Diet 1","Diet 2","Diet 3","Diet 4","Diet 5","Diet 6",null,"Diet 1","Diet 2","Diet 3","Diet 4","Diet 5","Diet 6",null,"Diet 1","Diet 2","Diet 3","Diet 4","Diet 5","Diet 6",null,"Diet 1","Diet 2","Diet 3","Diet 4","Diet 5","Diet 6",null,"Diet 1","Diet 2","Diet 3","Diet 4","Diet 5","Diet 6",null,"Diet 1","Diet 2","Diet 3","Diet 4","Diet 5","Diet 6",null,"Diet 1","Diet 2","Diet 3","Diet 4","Diet 5","Diet 6"]
[null,"Weight Range",null,null,null,null,null,null,"Weight Range",null,null,null,null,null,null,"Weight Range",null,null,null,null,null,null,"Weight Range",null,null,null,null,null,null,"Weight Range",null,null,null,null,null,null,"Weight Range",null,null,null,null,null,null,"Weight Range"]
[null,50,85,120,160,200,240,null,50,85,120,160,200,240,null,50,85,120,160,200,240,null,50,85,120,160,200,240,null,50,85,120,160,200,240,null,50,85,120,160,200,240,null,50,85,120,160,200,240]
["Ingredient",85,120,160,200,240,285,null,85,120,160,200,240,285,null,85,120,160,200,240,285,null,85,120,160,200,240,285,null,85,120,160,200,240,285,null,85,120,160,200,240,285,null,85,120,160,200,240,285]
["Corn",{"$f":"IF(B5=\"\",\"\",((((B236-B297)*2000)+((SUM(B9:B229)-2000)*((IF($A8=Nutrients!$B$79,Nutrients!$DA$79,(IF($A8=Nutrients!$B$77,Nutrients!$DA$77,Nutrients!$DA$78)))))))/((IF($A7=Nutrients!$B$8,Nutrients!$DA$8,Nutrients!$DA$9))-((IF($A8=Nutrients!$B$79,Nutrients!$DA$79,(IF($A8=Nutrients!$B$77,Nutrients!$DA$77,Nutrients!$DA$78))))))))","v":1401.204118179855},{"$f":"IF(C5=\"\",\"\",((((C236-C297)*2000)+((SUM(C9:C229)-2000)*((IF($A8=Nutrients!$B$79,Nutrients!$DA$79,(IF($A8=Nutrients!$B$77,Nutrients!$DA$77,Nutrients!$DA$78)))))))/((IF($A7=Nutrients!$B$8,Nutrients!$DA$8,Nutrients!$DA$9))-((IF($A8=Nutrients!$B$79,Nutrients!$DA$79,(IF($A8=Nutrients!$B$77,Nutrients!$DA$77,Nutrients!$DA$78))))))))","v":1489.6346777263973},{"$f":"IF(D5=\"\",\"\",((((D236-D297)*2000)+((SUM(D9:D229)-2000)*((IF($A8=Nutrients!$B$79,Nutrients!$DA$79,(IF($A8=Nutrients!$B$77,Nutrients!$DA$77,Nutrients!$DA$78)))))))/((IF($A7=Nutrients!$B$8,Nutrients!$DA$8,Nutrients!$DA$9))-((IF($A8=Nutrients!$B$79,Nutrients!$DA$79,(IF($A8=Nutrients!$B$77,Nutrients!$DA$77,Nutrients!$DA$78))))))))","v":1564.8539711032211},{"$f":"IF(E5=\"\",\"\",((((E236-E297)*2000)+((SUM(E9:E229)-2000)*((IF($A8=Nutrients!$B$79,Nutrients!$DA$79,(IF($A8=Nutrients!$B$77,Nutrients!$DA$77,Nutrients!$DA$78)))))))/((IF($A7=Nutrients!$B$8,Nutrients!$DA$8,Nutrients!$DA$9))-((IF($A8=Nutrients!$B$79,Nutrients!$DA$79,(IF($A8=Nutrients!$B$77,Nutrients!$DA$77,Nutrients!$DA$78))))))))","v":1637.2122226458096},{"$f":"IF(F5=\"\",\"\",((((F236-F297)*2000)+((SUM(F9:F229)-2000)*((IF($A8=Nutrients!$B$79,Nutrients!$DA$79,(IF($A8=Nutrients!$B$77,Nutrients!$DA$77,Nutrients!$DA$78)))))))/((IF($A7=Nutrients!$B$8,Nutrients!$DA$8,Nutrients!$DA$9))-((IF($A8=Nutrients!$B$79,Nutrients!$DA$79,(IF($A8=Nutrients!$B$77,Nutrients!$DA$77,Nutrients!$DA$78))))))))","v":1697.3820399240099},{"$f":"IF(G5=\"\",\"\",((((G236-G297)*2000)+((SUM(G9:G229)-2000)*((IF($A8=Nutrients!$B$79,Nutrients!$DA$79,(IF($A8=Nutrients!$B$77,Nutrients!$DA$77,Nutrients!$DA$78)))))))/((IF($A7=Nutrients!$B$8,Nutrients!$DA$8,Nutrients!$DA$9))-((IF($A8=Nutrients!$B$79,Nutrients!$DA$79,(IF($A8=Nutrients!$B$77,Nutrients!$DA$77,Nutrients!$DA$78))))))))","v":1729.7239606988965},null,{"$f":"IF(I5=\"\",\"\",((((I236-I297)*2000)+((SUM(I9:I229)-2000)*((IF($A8=Nutrients!$B$79,Nutrients!$DA$79,(IF($A8=Nutrients!$B$77,Nutrients!$DA$77,Nutrients!$DA$78)))))))/((IF($A7=Nutrients!$B$8,Nutrients!$DA$8,Nutrients!$DA$9))-((IF($A8=Nutrients!$B$79,Nutrients!$DA$79,(IF($A8=Nutrients!$B$77,Nutrients!$DA$77,Nutrients!$DA$78))))))))","v":1318.8383554356226},{"$f":"IF(J5=\"\",\"\",((((J236-J297)*2000)+((SUM(J9:J229)-2000)*((IF($A8=Nutrients!$B$79,Nutrients!$DA$79,(IF($A8=Nutrients!$B$77,Nutrients!$DA$77,Nutrients!$DA$78)))))))/((IF($A7=Nutrients!$B$8,Nutrients!$DA$8,Nutrients!$DA$9))-((IF($A8=Nutrients!$B$79,Nutrients!$DA$79,(IF($A8=Nutrients!$B$77,Nutrients!$DA$77,Nutrients!$DA$78))))))))","v":1406.9327124923927},{"$f":"IF(K5=\"\",\"\",((((K236-K297)*2000)+((SUM(K9:K229)-2000)*((IF($A8=Nutrients!$B$79,Nutrients!$DA$79,(IF($A8=Nutrients!$B$77,Nutrients!$DA$77,Nutrients!$DA$78)))))))/((IF($A7=Nutrients!$B$8,Nutrients!$DA$8,Nutrients!$DA$9))-((IF($A8=Nutrients!$B$79,Nutrients!$DA$79,(IF($A8=Nutrients!$B$77,Nutrients!$DA$77,Nutrients!$DA$78))))))))","v":1482.325015348544},{"$f":"IF(L5=\"\",\"\",((((L236-L297)*2000)+((SUM(L9:L229)-2000)*((IF($A8=Nutrients!$B$79,Nutrients!$DA$79,(IF($A8=Nutrients!$B$77,Nutrients!$DA$77,Nutrients!$DA$78)))))))/((IF($A7=Nutrients!$B$8,Nutrients!$DA$8,Nutrients!$DA$9))-((IF($A8=Nutrients!$B$79,Nutrients!$DA$79,(IF($A8=Nutrients!$B$77,Nutrients!$DA$77,Nutrients!$DA$78))))))))","v":1554.5376631194806},{"$f":"IF(M5=\"\",\"\",((((M236-M297)*2000)+((SUM(M9:M229)-2000)*((IF($A8=Nutrients!$B$79,Nutrients!$DA$79,(IF($A8=Nutrients!$B$77,Nutrients!$DA$77,Nutrients!$DA$78)))))))/((IF($A7=Nutrients!$B$8,Nutrients!$DA$8,Nutrients!$DA$9))-((IF($A8=Nutrients!$B$79,Nutrients!$DA$79,(IF($A8=Nutrients!$B$77,Nutrients!$DA$77,Nutrients!$DA$78))))))))","v":1614.7067037384488},{"$f":"IF(N5=\"\",\"\",((((N236-N297)*2000)+((SUM(N9:N229)-2000)*((IF($A8=Nutrients!$B$79,Nutrients!$DA$79,(IF($A8=Nutrients!$B$77,Nutrients!$DA$77,Nutrients!$DA$78)))))))/((IF($A7=Nutrients!$B$8,Nutrients!$DA$8,Nutrients!$DA$9))-((IF($A8=Nutrients!$B$79,Nutrients!$DA$79,(IF($A8=Nutrients!$B$77,Nutrients!$DA$77,Nutrients!$DA$78))))))))","v":1729.7239606988965},null,{"$f":"IF(P5=\"\",\"\",((((P236-P297)*2000)+((SUM(P9:P229)-2000)*((IF($A8=Nutrients!$B$79,Nutrients!$DA$79,(IF($A8=Nutrients!$B$77,Nutrients!$DA$77,Nutrients!$DA$78)))))))/((IF($A7=Nutrients!$B$8,Nutrients!$DA$8,Nutrients!$DA$9))-((IF($A8=Nutrients!$B$79,Nutrients!$DA$79,(IF($A8=Nutrients!$B$77,Nutrients!$DA$77,Nutrients!$DA$78))))))))","v":1236.2568828455967},{"$f":"IF(Q5=\"\",\"\",((((Q236-Q297)*2000)+((SUM(Q9:Q229)-2000)*((IF($A8=Nutrients!$B$79,Nutrients!$DA$79,(IF($A8=Nutrients!$B$77,Nutrients!$DA$77,Nutrients!$DA$78)))))))/((IF($A7=Nutrients!$B$8,Nutrients!$DA$8,Nutrients!$DA$9))-((IF($A8=Nutrients!$B$79,Nutrients!$DA$79,(IF($A8=Nutrients!$B$77,Nutrients!$DA$77,Nutrients!$DA$78))))))))","v":1324.2664272995055},{"$f":"IF(R5=\"\",\"\",((((R236-R297)*2000)+((SUM(R9:R229)-2000)*((IF($A8=Nutrients!$B$79,Nutrients!$DA$79,(IF($A8=Nutrients!$B$77,Nutrients!$DA$77,Nutrients!$DA$78)))))))/((IF($A7=Nutrients!$B$8,Nutrients!$DA$8,Nutrients!$DA$9))-((IF($A8=Nutrients!$B$79,Nutrients!$DA$79,(IF($A8=Nutrients!$B$77,Nutrients!$DA$77,Nutrients!$DA$78))))))))","v":1399.5715115665103},{"$f":"IF(S5=\"\",\"\",((((S236-S297)*2000)+((SUM(S9:S229)-2000)*((IF($A8=Nutrients!$B$79,Nutrients!$DA$79,(IF($A8=Nutrients!$B$77,Nutrients!$DA$77,Nutrients!$DA$78)))))))/((IF($A7=Nutrients!$B$8,Nutrients!$DA$8,Nutrients!$DA$9))-((IF($A8=Nutrients!$B$79,Nutrients!$DA$79,(IF($A8=Nutrients!$B$77,Nutrients!$DA$77,Nutrients!$DA$78))))))))","v":1471.8083445148206},{"$f":"IF(T5=\"\",\"\",((((T236-T297)*2000)+((SUM(T9:T229)-2000)*((IF($A8=Nutrients!$B$79,Nutrients!$DA$79,(IF($A8=Nutrients!$B$77,Nutrients!$DA$77,Nutrients!$DA$78)))))))/((IF($A7=Nutrients!$B$8,Nutrients!$DA$8,Nutrients!$DA$9))-((IF($A8=Nutrients!$B$79,Nutrients!$DA$79,(IF($A8=Nutrients!$B$77,Nutrients!$DA$77,Nutrients!$DA$78))))))))","v":1532.0322587871108},{"$f":"IF(U5=\"\",\"\",((((U236-U297)*2000)+((SUM(U9:U229)-2000)*((IF($A8=Nutrients!$B$79,Nutrients!$DA$79,(IF($A8=Nutrients!$B$77,Nutrients!$DA$77,Nutrients!$DA$78)))))))/((IF($A7=Nutrients!$B$8,Nutrients!$DA$8,Nutrients!$DA$9))-((IF($A8=Nutrients!$B$79,Nutrients!$DA$79,(IF($A8=Nutrients!$B$77,Nutrients!$DA$77,Nutrients!$DA$78))))))))","v":1729.7239606988965},null,{"$f":"IF(W5=\"\",\"\",((((W236-W297)*2000)+((SUM(W9:W229)-2000)*((IF($A8=Nutrients!$B$79,Nutrients!$DA$79,(IF($A8=Nutrients!$B$77,Nutrients!$DA$77,Nutrients!$DA$78)))))))/((IF($A7=Nutrients!$B$8,Nutrients!$DA$8,Nutrients!$DA$9))-((IF($A8=Nutrients!$B$79,Nutrients!$DA$79,(IF($A8=Nutrients!$B$77,Nutrients!$DA$77,Nutrients!$DA$78))))))))","v":1153.7508742774967},{"$f":"IF(X5=\"\",\"\",((((X236-X297)*2000)+((SUM(X9:X229)-2000)*((IF($A8=Nutrients!$B$79,Nutrients!$DA$79,(IF($A8=Nutrients!$B$77,Nutrients!$DA$77,Nutrients!$DA$78)))))))/((IF($A7=Nutrients!$B$8,Nutrients!$DA$8,Nutrients!$DA$9))-((IF($A8=Nutrients!$B$79,Nutrients!$DA$79,(IF($A8=Nutrients!$B$77,Nutrients!$DA$77,Nutrients!$DA$78))))))))","v":1241.6236468359346},{"$f":"IF(Y5=\"\",\"\",((((Y236-Y297)*2000)+((SUM(Y9:Y229)-2000)*((IF($A8=Nutrients!$B$79,Nutrients!$DA$79,(IF($A8=Nutrients!$B$77,Nutrients!$DA$77,Nutrients!$DA$78)))))))/((IF($A7=Nutrients!$B$8,Nutrients!$DA$8,Nutrients!$DA$9))-((IF($A8=Nutrients!$B$79,Nutrients!$DA$79,(IF($A8=Nutrients!$B$77,Nutrients!$DA$77,Nutrients!$DA$78))))))))","v":1316.9525492050418},{"$f":"IF(Z5=\"\",\"\",((((Z236-Z297)*2000)+((SUM(Z9:Z229)-2000)*((IF($A8=Nutrients!$B$79,Nutrients!$DA$79,(IF($A8=Nutrients!$B$77,Nutrients!$DA$77,Nutrients!$DA$78)))))))/((IF($A7=Nutrients!$B$8,Nutrients!$DA$8,Nutrients!$DA$9))-((IF($A8=Nutrients!$B$79,Nutrients!$DA$79,(IF($A8=Nutrients!$B$77,Nutrients!$DA$77,Nutrients!$DA$78))))))))","v":1389.035231757013},{"$f":"IF(AA5=\"\",\"\",((((AA236-AA297)*2000)+((SUM(AA9:AA229)-2000)*((IF($A8=Nutrients!$B$79,Nutrients!$DA$79,(IF($A8=Nutrients!$B$77,Nutrients!$DA$77,Nutrients!$DA$78)))))))/((IF($A7=Nutrients!$B$8,Nutrients!$DA$8,Nutrients!$DA$9))-((IF($A8=Nutrients!$B$79,Nutrients!$DA$79,(IF($A8=Nutrients!$B$77,Nutrients!$DA$77,Nutrients!$DA$78))))))))","v":1449.1046434784112},{"$f":"IF(AB5=\"\",\"\",((((AB236-AB297)*2000)+((SUM(AB9:AB229)-2000)*((IF($A8=Nutrients!$B$79,Nutrients!$DA$79,(IF($A8=Nutrients!$B$77,Nutrients!$DA$77,Nutrients!$DA$78)))))))/((IF($A7=Nutrients!$B$8,Nutrients!$DA$8,Nutrients!$DA$9))-((IF($A8=Nutrients!$B$79,Nutrients!$DA$79,(IF($A8=Nutrients!$B$77,Nutrients!$DA$77,Nutrients!$DA$78))))))))","v":1729.7239606988965},null,{"$f":"IF(AD5=\"\",\"\",((((AD236-AD297)*2000)+((SUM(AD9:AD229)-2000)*((IF($A8=Nutrients!$B$79,Nutrients!$DA$79,(IF($A8=Nutrients!$B$77,Nutrients!$DA$77,Nutrients!$DA$78)))))))/((IF($A7=Nutrients!$B$8,Nutrients!$DA$8,Nutrients!$DA$9))-((IF($A8=Nutrients!$B$79,Nutrients!$DA$79,(IF($A8=Nutrients!$B$77,Nutrients!$DA$77,Nutrients!$DA$78))))))))","v":1071.1147788258536},{"$f":"IF(AE5=\"\",\"\",((((AE236-AE297)*2000)+((SUM(AE9:AE229)-2000)*((IF($A8=Nutrients!$B$79,Nutrients!$DA$79,(IF($A8=Nutrients!$B$77,Nutrients!$DA$77,Nutrients!$DA$78)))))))/((IF($A7=Nutrients!$B$8,Nutrients!$DA$8,Nutrients!$DA$9))-((IF($A8=Nutrients!$B$79,Nutrients!$DA$79,(IF($A8=Nutrients!$B$77,Nutrients!$DA$77,Nutrients!$DA$78))))))))","v":1159.0417389025365},{"$f":"IF(AF5=\"\",\"\",((((AF236-AF297)*2000)+((SUM(AF9:AF229)-2000)*((IF($A8=Nutrients!$B$79,Nutrients!$DA$79,(IF($A8=Nutrients!$B$77,Nutrients!$DA$77,Nutrients!$DA$78)))))))/((IF($A7=Nutrients!$B$8,Nutrients!$DA$8,Nutrients!$DA$9))-((IF($A8=Nutrients!$B$79,Nutrients!$DA$79,(IF($A8=Nutrients!$B$77,Nutrients!$DA$77,Nutrients!$DA$78))))))))","v":1234.1813238439142},{"$f":"IF(AG5=\"\",\"\",((((AG236-AG297)*2000)+((SUM(AG9:AG229)-2000)*((IF($A8=Nutrients!$B$79,Nutrients!$DA$79,(IF($A8=Nutrients!$B$77,Nutrients!$DA$77,Nutrients!$DA$78)))))))/((IF($A7=Nutrients!$B$8,Nutrients!$DA$8,Nutrients!$DA$9))-((IF($A8=Nutrients!$B$79,Nutrients!$DA$79,(IF($A8=Nutrients!$B$77,Nutrients!$DA$77,Nutrients!$DA$78))))))))","v":1306.1849979875785},{"$f":"IF(AH5=\"\",\"\",((((AH236-AH297)*2000)+((SUM(AH9:AH229)-2000)*((IF($A8=Nutrients!$B$79,Nutrients!$DA$79,(IF($A8=Nutrients!$B$77,Nutrients!$DA$77,Nutrients!$DA$78)))))))/((IF($A7=Nutrients!$B$8,Nutrients!$DA$8,Nutrients!$DA$9))-((IF($A8=Nutrients!$B$79,Nutrients!$DA$79,(IF($A8=Nutrients!$B$77,Nutrients!$DA$77,Nutrients!$DA$78))))))))","v":1363.5942365698179},{"$f":"IF(AI5=\"\",\"\",((((AI236-AI297)*2000)+((SUM(AI9:AI229)-2000)*((IF($A8=Nutrients!$B$79,Nutrients!$DA$79,(IF($A8=Nutrients!$B$77,Nutrients!$DA$77,Nutrients!$DA$78)))))))/((IF($A7=Nutrients!$B$8,Nutrients!$DA$8,Nutrients!$DA$9))-((IF($A8=Nutrients!$B$79,Nutrients!$DA$79,(IF($A8=Nutrients!$B$77,Nutrients!$DA$77,Nutrients!$DA$78))))))))","v":1729.7239606988965},null,{"$f":"IF(AK5=\"\",\"\",((((AK236-AK297)*2000)+((SUM(AK9:AK229)-2000)*((IF($A8=Nutrients!$B$79,Nutrients!$DA$79,(IF($A8=Nutrients!$B$77,Nutrients!$DA$77,Nutrients!$DA$78)))))))/((IF($A7=Nutrients!$B$8,Nutrients!$DA$8,Nutrients!$DA$9))-((IF($A8=Nutrients!$B$79,Nutrients!$DA$79,(IF($A8=Nutrients!$B$77,Nutrients!$DA$77,Nutrients!$DA$78))))))))","v":988.38566013290085},{"$f":"IF(AL5=\"\",\"\",((((AL236-AL297)*2000)+((SUM(AL9:AL229)-2000)*((IF($A8=Nutrients!$B$79,Nutrients!$DA$79,(IF($A8=Nutrients!$B$77,Nutrients!$DA$77,Nutrients!$DA$78)))))))/((IF($A7=Nutrients!$B$8,Nutrients!$DA$8,Nutrients!$DA$9))-((IF($A8=Nutrients!$B$79,Nutrients!$DA$79,(IF($A8=Nutrients!$B$77,Nutrients!$DA$77,Nutrients!$DA$78))))))))","v":1076.2689138614455},{"$f":"IF(AM5=\"\",\"\",((((AM236-AM297)*2000)+((SUM(AM9:AM229)-2000)*((IF($A8=Nutrients!$B$79,Nutrients!$DA$79,(IF($A8=Nutrients!$B$77,Nutrients!$DA$77,Nutrients!$DA$78)))))))/((IF($A7=Nutrients!$B$8,Nutrients!$DA$8,Nutrients!$DA$9))-((IF($A8=Nutrients!$B$79,Nutrients!$DA$79,(IF($A8=Nutrients!$B$77,Nutrients!$DA$77,Nutrients!$DA$78))))))))","v":1151.4724692342302},{"$f":"IF(AN5=\"\",\"\",((((AN236-AN297)*2000)+((SUM(AN9:AN229)-2000)*((IF($A8=Nutrients!$B$79,Nutrients!$DA$79,(IF($A8=Nutrients!$B$77,Nutrients!$DA$77,Nutrients!$DA$78)))))))/((IF($A7=Nutrients!$B$8,Nutrients!$DA$8,Nutrients!$DA$9))-((IF($A8=Nutrients!$B$79,Nutrients!$DA$79,(IF($A8=Nutrients!$B$77,Nutrients!$DA$77,Nutrients!$DA$78))))))))","v":1221.0552902124787},{"$f":"IF(AO5=\"\",\"\",((((AO236-AO297)*2000)+((SUM(AO9:AO229)-2000)*((IF($A8=Nutrients!$B$79,Nutrients!$DA$79,(IF($A8=Nutrients!$B$77,Nutrients!$DA$77,Nutrients!$DA$78)))))))/((IF($A7=Nutrients!$B$8,Nutrients!$DA$8,Nutrients!$DA$9))-((IF($A8=Nutrients!$B$79,Nutrients!$DA$79,(IF($A8=Nutrients!$B$77,Nutrients!$DA$77,Nutrients!$DA$78))))))))","v":1277.3771520194027},{"$f":"IF(AP5=\"\",\"\",((((AP236-AP297)*2000)+((SUM(AP9:AP229)-2000)*((IF($A8=Nutrients!$B$79,Nutrients!$DA$79,(IF($A8=Nutrients!$B$77,Nutrients!$DA$77,Nutrients!$DA$78)))))))/((IF($A7=Nutrients!$B$8,Nutrients!$DA$8,Nutrients!$DA$9))-((IF($A8=Nutrients!$B$79,Nutrients!$DA$79,(IF($A8=Nutrients!$B$77,Nutrients!$DA$77,Nutrients!$DA$78))))))))","v":1729.7239606988965},null,{"$f":"IF(AR5=\"\",\"\",((((AR236-AR297)*2000)+((SUM(AR9:AR229)-2000)*((IF($A8=Nutrients!$B$79,Nutrients!$DA$79,(IF($A8=Nutrients!$B$77,Nutrients!$DA$77,Nutrients!$DA$78)))))))/((IF($A7=Nutrients!$B$8,Nutrients!$DA$8,Nutrients!$DA$9))-((IF($A8=Nutrients!$B$79,Nutrients!$DA$79,(IF($A8=Nutrients!$B$77,Nutrients!$DA$77,Nutrients!$DA$78))))))))","v":905.48408066641639},{"$f":"IF(AS5=\"\",\"\",((((AS236-AS297)*2000)+((SUM(AS9:AS229)-2000)*((IF($A8=Nutrients!$B$79,Nutrients!$DA$79,(IF($A8=Nutrients!$B$77,Nutrients!$DA$77,Nutrients!$DA$78)))))))/((IF($A7=Nutrients!$B$8,Nutrients!$DA$8,Nutrients!$DA$9))-((IF($A8=Nutrients!$B$79,Nutrients!$DA$79,(IF($A8=Nutrients!$B$77,Nutrients!$DA$77,Nutrients!$DA$78))))))))","v":993.47023248599942},{"$f":"IF(AT5=\"\",\"\",((((AT236-AT297)*2000)+((SUM(AT9:AT229)-2000)*((IF($A8=Nutrients!$B$79,Nutrients!$DA$79,(IF($A8=Nutrients!$B$77,Nutrients!$DA$77,Nutrients!$DA$78)))))))/((IF($A7=Nutrients!$B$8,Nutrients!$DA$8,Nutrients!$DA$9))-((IF($A8=Nutrients!$B$79,Nutrients!$DA$79,(IF($A8=Nutrients!$B$77,Nutrients!$DA$77,Nutrients!$DA$78))))))))","v":1068.3225312971365},{"$f":"IF(AU5=\"\",\"\",((((AU236-AU297)*2000)+((SUM(AU9:AU229)-2000)*((IF($A8=Nutrients!$B$79,Nutrients!$DA$79,(IF($A8=Nutrients!$B$77,Nutrients!$DA$77,Nutrients!$DA$78)))))))/((IF($A7=Nutrients!$B$8,Nutrients!$DA$8,Nutrients!$DA$9))-((IF($A8=Nutrients!$B$79,Nutrients!$DA$79,(IF($A8=Nutrients!$B$77,Nutrients!$DA$77,Nutrients!$DA$78))))))))","v":1134.8422404482285},{"$f":"IF(AV5=\"\",\"\",((((AV236-AV297)*2000)+((SUM(AV9:AV229)-2000)*((IF($A8=Nutrients!$B$79,Nutrients!$DA$79,(IF($A8=Nutrients!$B$77,Nutrients!$DA$77,Nutrients!$DA$78)))))))/((IF($A7=Nutrients!$B$8,Nutrients!$DA$8,Nutrients!$DA$9))-((IF($A8=Nutrients!$B$79,Nutrients!$DA$79,(IF($A8=Nutrients!$B$77,Nutrients!$DA$77,Nutrients!$DA$78))))))))","v":1191.159571244604},{"$f":"IF(AW5=\"\",\"\",((((AW236-AW297)*2000)+((SUM(AW9:AW229)-2000)*((IF($A8=Nutrients!$B$79,Nutrients!$DA$79,(IF($A8=Nutrients!$B$77,Nutrients!$DA$77,Nutrients!$DA$78)))))))/((IF($A7=Nutrients!$B$8,Nutrients!$DA$8,Nutrients!$DA$9))-((IF($A8=Nutrients!$B$79,Nutrients!$DA$79,(IF($A8=Nutrients!$B$77,Nutrients!$DA$77,Nutrients!$DA$78))))))))","v":1729.7239606988965}]
["Soybean Meal, Dehull, Sol Extr",{"$f":"IF(B5=\"\",\"\",2000-SUM(B9:B218)-B7)","v":532.87319453405121},452.27140406672561,384.4341908979336,317.11390951924227,260.24813699960987,228.872010022209,null,{"$f":"IF(I5=\"\",\"\",2000-SUM(I9:I220)-I7)","v":506.26131558919974},425.68313484727946,357.83377213640006,290.52371574167273,233.65799776271683,228.872010022209,null,{"$f":"IF(P5=\"\",\"\",2000-SUM(P9:P220)-P7)","v":479.66458480767665},399.09236000696797,331.24912219701173,263.9373674049973,207.06779593915076,228.872010022209,null,{"$f":"IF(W5=\"\",\"\",2000-SUM(W9:W220)-W7)","v":453.06255458641135},372.49993455364302,304.65502412415731,237.35409450042494,180.49537293281492,228.872010022209,null,{"$f":"IF(AD5=\"\",\"\",2000-SUM(AD9:AD220)-AD7)","v":426.46965968000131},345.90323434398579,278.07161867768332,210.77623739723072,154.10432574107858,228.872010022209,null,{"$f":"IF(AK5=\"\",\"\",2000-SUM(AK9:AK220)-AK7)","v":399.88329730458224},319.31994123458776,251.48383326270869,184.35845571578284,127.76290478823444,228.872010022209,null,{"$f":"IF(AR5=\"\",\"\",2000-SUM(AR9:AR220)-AR7)","v":373.30904593854063},292.73846387900687,224.92702280050207,158.01675142121348,101.42151868260794,228.872010022209]
[{"$f":"Nutrients!B8","v":"Corn"}]
[{"$f":"Nutrients!B9","v":"Milo"}]
[{"$f":"Nutrients!B10","v":"Alfalfa Meal"}]
[{"$f":"Nutrients!B11","v":"Bakery Meal"}]
[{"$f":"Nutrients!B12","v":"Barley"}]
[{"$f":"Nutrients!B13","v":"Barley, Hulless"}]
[{"$f":"Nutrients!B14","v":"Beans, Faba"}]
[{"$f":"Nutrients!B15","v":"Blood Meal"}]
[{"$f":"Nutrients!B16","v":"Blood Plasma"}]
[{"$f":"Nutrients!B17","v":"Brewers Grain"}]
[{"$f":"Nutrients!B18","v":"Canola, Full Fat"}]
[{"$f":"Nutrients!B19","v":"Canola Meal, Expelled"}]
[{"$f":"Nutrients!B20","v":"Canola Meal, Solvent Extracted"}]
[{"$f":"Nutrients!B21","v":"Casava Meal"}]
[{"$f":"Nutrients!B22","v":"Citrus Pulp"}]
[{"$f":"Nutrients!B23","v":"Copra Meal"}]
[{"$f":"Nutrients!B24","v":"Corn, Yellow Dent"}]
[{"$f":"Nutrients!B25","v":"Corn, Nutridense"}]
[{"$f":"Nutrients!B26","v":"Corn Bran"}]
[{"$f":"Nutrients!B27","v":"Corn DDG"}]
[{"$f":"Nutrients!B28","v":"Corn DDGS, >10% Oil"}]
[{"$f":"Nutrients!B29","v":"Corn DDGS, >6 and <9% Oil"}]
[{"$f":"Nutrients!B30","v":"Corn DDGS, <4% Oil"}]
[{"$f":"Nutrients!B31","v":"Corn HP DDG"}]
[{"$f":"Nutrients!B32","v":"Corn Germ"}]
[{"$f":"Nutrients!B33","v":"Corn Germ Meal"}]
[{"$f":"Nutrients!B34","v":"Corn Gluten Feed"}]
[{"$f":"Nutrients!B35","v":"Corn Gluten Meal"}]
[{"$f":"Nutrients!B36","v":"Corn Grits, Hominy Feed"}]
[{"$f":"Nutrients!B37","v":"Cotton Seeds, Fullfat"}]
[{"$f":"Nutrients!B38","v":"Cotton Seed Meal"}]
[{"$f":"Nutrients!B39","v":"Feather Meal"}]
[{"$f":"Nutrients!B40","v":"Fish Meal Combined"}]
[{"$f":"Nutrients!B41","v":"Flaxseed"}]
[{"$f":"Nutrients!B42","v":"Flaxseed Meal"}]
[{"$f":"Nutrients!B43","v":"Lupins"}]
[{"$f":"Nutrients!B44","v":"Meat Meal"}]
[{"$f":"Nutrients!B45","v":"Meat and Bone Meal, P >4%"}]
[{"$f":"Nutrients!B46","v":"Milk, Casein"}]
[{"$f":"Nutrients!B47","v":"Milk, Lactose"}]
[{"$f":"Nutrients!B48","v":"Milk, Skim Milk Powder"}]
[{"$f":"Nutrients!B49","v":"Milk, Whey Powder"}]
[{"$f":"Nutrients!B50","v":"Milk, Whey Permeate, 80% lactose"}]
[{"$f":"Nutrients!B51","v":"Milk, Whey Protein Concentrate"}]
[{"$f":"Nutrients!B52","v":"Millet"}]
[{"$f":"Nutrients!B53","v":"Molasses, Sugarbeet"}]
[{"$f":"Nutrients!B54","v":"Molasses, Sugarcane"}]
[{"$f":"Nutrients!B55","v":"Oats"}]
[{"$f":"Nutrients!B56","v":"Oats, Naked"}]
[{"$f":"Nutrients!B57","v":"Oat Groats"}]
[{"$f":"Nutrients!B58","v":"Peanut Meal, Expelled"}]
[{"$f":"Nutrients!B59","v":"Peanut Meal, Extracted"}]
[{"$f":"Nutrients!B60","v":"Peas, Field Peas"}]
[{"$f":"Nutrients!B61","v":"Pea Protein Concentrate"}]
[{"$f":"Nutrients!B62","v":"Potato Protein Concentrate"}]
[{"$f":"Nutrients!B63","v":"Poultry Byproduct"}]
[{"$f":"Nutrients!B64","v":"Rice"}]
[{"$f":"Nutrients!B65","v":"Rice Bran"}]
[{"$f":"Nutrients!B66","v":"Rice Bran, Defatted"}]
[{"$f":"Nutrients!B67","v":"Rice, Broken"}]
[{"$f":"Nutrients!B68","v":"Rye"}]
[{"$f":"Nutrients!B69","v":"Sesame Meal"}]
[{"$f":"Nutrients!B70","v":"Sorghum"}]
[{"$f":"Nutrients!B71","v":"Soybeans, Full Fat"}]
[{"$f":"Nutrients!B72","v":"Soybeans, High Protein, Full Fat"}]
[{"$f":"Nutrients!B73","v":"Soybeans, Low Oligosaccharide, Full Fat"}]
[{"$f":"Nutrients!B74","v":"Soybean Meal, High Protein, Expelled"}]
[{"$f":"Nutrients!B75","v":"Soybean Meal, Low Oligosacch, Expell"}]
[{"$f":"Nutrients!B76","v":"Soybean Meal, Expelled"}]
[{"$f":"Nutrients!B77","v":"Soybean Meal, Dehulled, Expelled"}]
[{"$f":"Nutrients!B78","v":"Soybean Meal, Solvent Extracted"}]
[{"$f":"Nutrients!B79","v":"Soybean Meal, Dehull, Sol Extr"}]
[{"$f":"Nutrients!B80","v":"Soybean Meal, High Prot, Dehull, Solv Extr"}]
[{"$f":"Nutrients!B81","v":"Soybean Meal, Enzyme Treated"}]
[{"$f":"Nutrients!B82","v":"Soybean Meal, Fermented"}]
[{"$f":"Nutrients!B83","v":"Soybean Hulls"}]
[{"$f":"Nutrients!B84","v":"Soy Protein Concentrate"}]
[{"$f":"Nutrients!B85","v":"Soy Protein Isolate"}]
[{"$f":"Nutrients!B86","v":"Sugar Beet Pulp"}]
[{"$f":"Nutrients!B87","v":"Sunflower, Full Fat"}]
[{"$f":"Nutrients!B88","v":"Sunflower Meal, Solvent Extracted"}]
[{"$f":"Nutrients!B89","v":"Sunflower Meal, Dehulled, Solvent Extr"}]
[{"$f":"Nutrients!B90","v":"Triticale"}]
[{"$f":"Nutrients!B91","v":"Wheat, Hard Red"}]
[{"$f":"Nutrients!B92","v":"Wheat, Soft Red"}]
[{"$f":"Nutrients!B93","v":"Wheat Bran"}]
[{"$f":"Nutrients!B94","v":"Wheat Middlings"}]
[{"$f":"Nutrients!B95","v":"Wheat Shorts"}]
[{"$f":"Nutrients!B96","v":"Wheat DDGS"}]
[{"$f":"Nutrients!B97","v":"Yeast, Brewers' Yeast"}]
[{"$f":"Nutrients!B98","v":"Yeast, Single Cell Protein"}]
[{"$f":"Nutrients!B99","v":"Beef Tallow"}]
[{"$f":"Nutrients!B100","v":"Choice White Grease"},null,null,null,null,null,null,null,{"$f":"IF('GF diets L-Val'!B250-'GF diets L-Val'!I250<0,0,'GF diets L-Val'!B250-'GF diets L-Val'!I250+0.1)","v":9.7931214372002611},{"$f":"IF('GF diets L-Val'!C250-'GF diets L-Val'!J250<0,0,'GF diets L-Val'!C250-'GF diets L-Val'!J250+0.1)","v":9.9232229986606395},{"$f":"IF('GF diets L-Val'!D250-'GF diets L-Val'!K250<0,0,'GF diets L-Val'!D250-'GF diets L-Val'!K250+0.1)","v":9.8166484110832695},{"$f":"IF('GF diets L-Val'!E250-'GF diets L-Val'!L250<0,0,'GF diets L-Val'!E250-'GF diets L-Val'!L250+0.1)","v":9.930073706054463},{"$f":"IF('GF diets L-Val'!F250-'GF diets L-Val'!M250<0,0,'GF diets L-Val'!F250-'GF diets L-Val'!M250+0.1)","v":9.9613107670880705},null,null,{"$f":"IF('GF diets L-Val'!B250-'GF diets L-Val'!P250<0,0,'GF diets L-Val'!B250-'GF diets L-Val'!P250+0.2)","v":19.676063474449574},{"$f":"IF('GF diets L-Val'!C250-'GF diets L-Val'!Q250<0,0,'GF diets L-Val'!C250-'GF diets L-Val'!Q250+0.2)","v":19.812912493306339},{"$f":"IF('GF diets L-Val'!D250-'GF diets L-Val'!R250<0,0,'GF diets L-Val'!D250-'GF diets L-Val'!R250+0.2)","v":19.743739128708466},{"$f":"IF('GF diets L-Val'!E250-'GF diets L-Val'!S250<0,0,'GF diets L-Val'!E250-'GF diets L-Val'!S250+0.2)","v":19.817220605906368},{"$f":"IF('GF diets L-Val'!F250-'GF diets L-Val'!T250<0,0,'GF diets L-Val'!F250-'GF diets L-Val'!T250+0.2)","v":19.881008753777405},null,null,{"$f":"IF('GF diets L-Val'!B250-'GF diets L-Val'!W250<0,0,'GF diets L-Val'!B250-'GF diets L-Val'!W250+0.35)","v":29.588252394116218},{"$f":"IF('GF diets L-Val'!C250-'GF diets L-Val'!X250<0,0,'GF diets L-Val'!C250-'GF diets L-Val'!X250+0.35)","v":29.75197310251415},{"$f":"IF('GF diets L-Val'!D250-'GF diets L-Val'!Y250<0,0,'GF diets L-Val'!D250-'GF diets L-Val'!Y250+0.35)","v":29.632628229339709},{"$f":"IF('GF diets L-Val'!E250-'GF diets L-Val'!Z250<0,0,'GF diets L-Val'!E250-'GF diets L-Val'!Z250+0.35)","v":29.733606268286486},{"$f":"IF('GF diets L-Val'!F250-'GF diets L-Val'!AA250<0,0,'GF diets L-Val'!F250-'GF diets L-Val'!AA250+0.35)","v":29.741047068812897},null,null,{"$f":"IF('GF diets L-Val'!B250-'GF diets L-Val'!AD250<0,0,'GF diets L-Val'!B250-'GF diets L-Val'!AD250+0.55)","v":39.517097562367141},{"$f":"IF('GF diets L-Val'!C250-'GF diets L-Val'!AE250<0,0,'GF diets L-Val'!C250-'GF diets L-Val'!AE250+0.55)","v":39.650164915573939},{"$f":"IF('GF diets L-Val'!D250-'GF diets L-Val'!AF250<0,0,'GF diets L-Val'!D250-'GF diets L-Val'!AF250+0.55)","v":39.547259036941156},{"$f":"IF('GF diets L-Val'!E250-'GF diets L-Val'!AG250<0,0,'GF diets L-Val'!E250-'GF diets L-Val'!AG250+0.55)","v":39.626383127292499},{"$f":"IF('GF diets L-Val'!F250-'GF diets L-Val'!AH250<0,0,'GF diets L-Val'!F250-'GF diets L-Val'!AH250+0.55)","v":40.447832691307255},null,null,{"$f":"IF('GF diets L-Val'!B250-'GF diets L-Val'!AK250<0,0,'GF diets L-Val'!B250-'GF diets L-Val'!AK250+0.75)","v":49.456529162836432},{"$f":"IF('GF diets L-Val'!C250-'GF diets L-Val'!AL250<0,0,'GF diets L-Val'!C250-'GF diets L-Val'!AL250+0.75)","v":49.592547889423258},{"$f":"IF('GF diets L-Val'!D250-'GF diets L-Val'!AM250<0,0,'GF diets L-Val'!D250-'GF diets L-Val'!AM250+0.75)","v":49.435978150108895},{"$f":"IF('GF diets L-Val'!E250-'GF diets L-Val'!AN250<0,0,'GF diets L-Val'!E250-'GF diets L-Val'!AN250+0.75)","v":50.150990452713131},{"$f":"IF('GF diets L-Val'!F250-'GF diets L-Val'!AO250<0,0,'GF diets L-Val'!F250-'GF diets L-Val'!AO250+0.75)","v":51.439108126026667},null,null,{"$f":"IF('GF diets L-Val'!B250-'GF diets L-Val'!AR250<0,0,'GF diets L-Val'!B250-'GF diets L-Val'!AR250+0.95)","v":59.535635140486377},{"$f":"IF('GF diets L-Val'!C250-'GF diets L-Val'!AS250<0,0,'GF diets L-Val'!C250-'GF diets L-Val'!AS250+0.95)","v":59.473453069968357},{"$f":"IF('GF diets L-Val'!D250-'GF diets L-Val'!AT250<0,0,'GF diets L-Val'!D250-'GF diets L-Val'!AT250+0.95)","v":59.311672629704347},{"$f":"IF('GF diets L-Val'!E250-'GF diets L-Val'!AU250<0,0,'GF diets L-Val'!E250-'GF diets L-Val'!AU250+0.95)","v":61.127150621477725},{"$f":"IF('GF diets L-Val'!F250-'GF diets L-Val'!AV250<0,0,'GF diets L-Val'!F250-'GF diets L-Val'!AV250+0.95)","v":62.430766121845139}]
[{"$f":"Nutrients!B101","v":"Poultry Fat"}]
[{"$f":"Nutrients!B102","v":"Lard"}]
[{"$f":"Nutrients!B103","v":"Restaurant Grease"}]
[{"$f":"Nutrients!B104","v":"Canola oil"}]
[{"$f":"Nutrients!B105","v":"Coconut oil"}]
[{"$f":"Nutrients!B106","v":"Corn oil"}]
[{"$f":"Nutrients!B107","v":"Palm Kernel oil"}]
[{"$f":"Nutrients!B108","v":"Soybean oil"}]
[{"$f":"Nutrients!B109","v":"Soybean Lecithin"}]
[{"$f":"Nutrients!B110","v":"Sunflower oil"}]
[{"$f":"Nutrients!B111","v":"Fat, A/V blend"}]
["Calcium carbonate",20.784768068928035,19.294892849162764,19.202445555729952,18.570305542378705,18,17.663512601760306,null,21.444409694945055,19.98553862860571,19.840873680160215,19.236124633910652,18.688958388234227,17.663512601760306,null,22.108119813047963,20.660220383685797,20.500873680160215,19.896124633910652,19.348958388234227,17.663512601760306,null,22.768119813047964,21.320220383685797,21.160873680160215,20.556124633910652,20.008958388234227,17.663512601760306,null,23.428119813047964,21.980220383685797,21.820873680160215,21.243448046973779,21.073538708709563,17.663512601760306,null,24.088119813047964,22.640220383685797,22.480873680160215,22.222553735248766,22.260768777249535,17.663512601760306,null,24.748119813047964,23.300220383685797,23.169584881524777,23.421147625303597,23.448077661856235,17.663512601760306]
[{"$f":"Nutrients!B113","v":"Calcium phosphate (tricalcium)"}]
[{"$f":"Nutrients!B114","v":"Calcium phosphate (dicalcium)"}]
["Calcium phosphate (monocalcium)",14.460830899366599,11.269382271474324,7.9992000000000001,5.7362235571478868,4.249911842640179,3.6237362366975527,null,13.135843328864507,10.032841615499999,6.6376572816597772,4.436223557147887,2.9499118426401791,3.6237362366975527,null,11.835843328864506,8.7328416154999982,5.3376572816597774,3.1362235571478871,1.6499118426401791,3.6237362366975527,null,{"$f":"P116-1.4","v":10.435843328864506},{"$f":"Q116-1.4","v":7.3328416154999978},3.9376572816597775,1.7362235571478872,0.24991184264017918,3.6237362366975527,null,{"$f":"W116-1.4","v":9.0358433288645053},{"$f":"X116-1.4","v":5.9328416154999974},2.5376572816597776,0.33622355714788732,null,3.6237362366975527,null,{"$f":"AD116-1.3","v":7.7358433288645054},{"$f":"AE116-1.3","v":4.6328416154999976},1.2376572816597775,null,null,3.6237362366975527,null,{"$f":"AK116-1.3","v":6.4358433288645056},{"$f":"AL116-1.3","v":3.3328416154999978},null,null,null,3.6237362366975527]
[{"$f":"Nutrients!B116","v":"Calcium sulfate, dihydrate"}]
[{"$f":"Nutrients!B117","v":"Limestone, ground"}]
[{"$f":"Nutrients!B118","v":"Magnesium phosphate"}]
[{"$f":"Nutrients!B119","v":"Sodium carbonate"}]
[{"$f":"Nutrients!B120","v":"Sodium bicarbonate"}]
[{"$f":"Nutrients!B121","v":"Sodium chloride"},7,7,7,7,7,7,null,7,7,7,7,7,7,null,7,7,7,7,7,7,null,7,7,7,7,7,7,null,7,7,7,7,7,7,null,7,7,7,7,7,7,null,7,7,7,7,7,7]
[{"$f":"Nutrients!B122","v":"Sodium phosphate, monobasic"}]
[{"$f":"Nutrients!B123","v":"Sodium sulfate, decahydrate"}]
["L-Lys-HCl",9,8,7,6.5209098242968704,6.5209098242968704,6.5209098242968704,null,9.43,8.43,7.43,6.9509098242968701,6.9509098242968701,6.5209098242968704,null,9.86,8.86,7.8599999999999994,7.3809098242968698,7.3809098242968698,6.5209098242968704,null,10.29,9.2899999999999991,8.2899999999999991,7.8109098242968695,7.8109098242968695,6.5209098242968704,null,10.719999999999999,9.7199999999999989,8.7199999999999989,8.2409098242968692,8.2409098242968692,6.5209098242968704,null,11.149999999999999,10.149999999999999,9.1499999999999986,8.670909824296869,8.670909824296869,6.5209098242968704,null,11.579999999999998,10.579999999999998,9.5799999999999983,9.1009098242968687,9.1009098242968687,6.5209098242968704]
["DL-Met",2.7899868108851815,1.9290679550175049,1.13207908850893,0.75200939944039891,0.4642187503637718,0.41815988679019511,null,2.5882973865483634,1.7277975810719512,{"$f":"D126-0.2","v":0.93207908850893006},{"$f":"E126-0.22","v":0.53200939944039893},{"$f":"F126-0.22","v":0.2442187503637718},0.41815988679019511,null,{"$f":"I126-0.2","v":2.3882973865483632},{"$f":"J126-0.2","v":1.5277975810719513},0.73207908850893011,0.33200939944039892,null,0.41815988679019511,null,{"$f":"P126-0.2","v":2.188297386548363},{"$f":"Q126-0.2","v":1.3277975810719513},0.53207908850893015,0.13200939944039891,null,0.41815988679019511,null,{"$f":"W126-0.2","v":1.9882973865483631},{"$f":"X126-0.2","v":1.1277975810719514},0.33207908850893014,null,null,0.41815988679019511,null,{"$f":"AD126-0.2","v":1.7882973865483631},{"$f":"AE126-0.2","v":0.92779758107195143},null,null,null,0.41815988679019511,null,{"$f":"AK126-0.2","v":1.5882973865483632},{"$f":"AL126-0.2","v":0.72779758107195147},null,null,null,0.41815988679019511]
["L-Thr",3.311714981497218,2.6822978939662598,2.0730406828281205,1.9101926587313733,1.8273540665098165,1.8754623140236151,null,{"$f":"B127-0.12","v":3.1917149814972179},{"$f":"C127-0.12","v":2.5622978939662597},1.9530406828281204,{"$f":"E127-0.13","v":1.7801926587313734},{"$f":"F127-0.15","v":1.6773540665098166},1.8754623140236151,null,{"$f":"I127-0.12","v":3.0717149814972178},{"$f":"J127-0.11","v":2.4522978939662599},{"$f":"K127-0.11","v":1.8430406828281203},{"$f":"L127-0.12","v":1.6601926587313733},{"$f":"M127-0.12","v":1.5573540665098164},1.8754623140236151,null,{"$f":"P127-0.11","v":2.9617149814972179},{"$f":"Q127-0.11","v":2.34229789396626},{"$f":"R127-0.11","v":1.7330406828281202},{"$f":"S127-0.11","v":1.5501926587313732},{"$f":"T127-0.11","v":1.4473540665098164},1.8754623140236151,null,{"$f":"W127-0.11","v":2.851714981497218},{"$f":"X127-0.11","v":2.2322978939662601},{"$f":"Y127-0.11","v":1.6230406828281201},{"$f":"Z127-0.11","v":1.4401926587313731},{"$f":"AA127-0.11","v":1.3373540665098163},1.8754623140236151,null,{"$f":"AD127-0.11","v":2.7417149814972182},{"$f":"AE127-0.11","v":2.1222978939662602},{"$f":"AF127-0.11","v":1.51304068282812},{"$f":"AG127-0.11","v":1.330192658731373},{"$f":"AH127-0.11","v":1.2273540665098162},1.8754623140236151,null,{"$f":"AK127-0.11","v":2.6317149814972183},{"$f":"AL127-0.11","v":2.0122978939662604},{"$f":"AM127-0.11","v":1.4030406828281199},{"$f":"AN127-0.11","v":1.2201926587313729},{"$f":"AO127-0.11","v":1.1173540665098161},1.8754623140236151]
["L-Trp",0.64715411983197724,0.56508100549263673,0.47170370784158877,0.46467722263870981,0.5242318057378007,0.53625865021646124,null,0.71347901910320866,0.6303749007613858,0.53614770830416902,0.52160740074835188,0.57180239827998214,0.53625865021646124,null,0.77844506115054912,0.69469309080141695,0.59614770830416908,0.58160740074835182,0.63180239827998208,0.53625865021646124,null,0.83844506115054918,0.75469309080141689,0.65614770830416913,0.64160740074835187,0.69180239827998213,0.53625865021646124,null,{"$f":"W128+0.04","v":0.87844506115054921},{"$f":"X128+0.04","v":0.79469309080141692},{"$f":"Y128+0.06","v":0.71614770830416918},{"$f":"Z128+0.06","v":0.70160740074835193},0.75180239827998219,0.53625865021646124,null,{"$f":"AD128+0.06","v":0.93844506115054926},{"$f":"AE128+0.06","v":0.85469309080141698},{"$f":"AF128+0.06","v":0.77614770830416924},{"$f":"AG128+0.06","v":0.76160740074835198},0.81180239827998224,0.53625865021646124,null,{"$f":"AK128+0.06","v":0.99844506115054932},{"$f":"AL128+0.06","v":0.91469309080141703},{"$f":"AM128+0.06","v":0.83614770830416929},{"$f":"AN128+0.06","v":0.82160740074835203},0.87180239827998229,0.53625865021646124]
["L-Val",1.4782324055847444,0.90319623176357955,0.3833689639367559,0.26954963031428469,0.33319678683181891,0.31598976510963955,null,1.1534631270189402,0.64207904176193298,0.24476566251149814,0.10147995851664067,0.14083246142135958,0.31598976510963955,null,0.91004830116844904,0.45044963519489228,0.11582866630828675,null,null,0.31598976510963955,null,0.66589817086726644,0.30659494288285954,null,null,null,0.31598976510963955,null,0.5460433606692181,0.16701127287845019,null,null,null,0.31598976510963955,null,0.38209282857183691,4.0746449517981703E-2,null,null,null,0.31598976510963955,null,0.23881768344794968,null,null,null,null,0.31598976510963955]
[{"$f":"Nutrients!B129","v":"L-Ile"}]
[{"$f":"Nutrients!B130","v":"Methionine hydroxy analog"}]
[{"$f":"Nutrients!B131","v":"Glutamine"}]
[{"$f":"Nutrients!B132","v":"Glutamic acid"}]
[{"$f":"Nutrients!B133","v":"Biolys"}]
[{"$f":"Nutrients!B134","v":"Liquid lysine 60%"}]
[{"$f":"Nutrients!B135","v":"MHA dry"}]
[{"$f":"Nutrients!B136","v":"Paylean, 9 g/lb"}]
[{"$f":"Nutrients!B137","v":"Tribasic copper chloride"}]
[{"$f":"Nutrients!B138","v":"2018 Starter base mix"}]
[{"$f":"Nutrients!B139","v":"2018 Grow-finish base mix"}]
[{"$f":"Nutrients!B140","v":"Developer base mix"}]
[{"$f":"Nutrients!B141","v":"2018 Sow base mix"}]
[{"$f":"Nutrients!B142","v":"Vitamin premix with phytase"}]
[{"$f":"Nutrients!B143","v":"Trace mineral premix"},3,3,2.5,2,1.5,1.5,null,3,3,2.5,2,1.5,1.5,null,3,3,2.5,2,1.5,1.5,null,3,3,2.5,2,1.5,1.5,null,3,3,2.5,2,1.5,1.5,null,3,3,2.5,2,1.5,1.5,null,3,3,2.5,2,1.5,1.5]
[{"$f":"Nutrients!B144","v":"Sow add pack"}]
[{"$f":"Nutrients!B145","v":"Vitamin premix without phytase"},3,3,2.5,2,1.5,1.5,null,3,3,2.5,2,1.5,1.5,null,3,3,2.5,2,1.5,1.5,null,3,3,2.5,2,1.5,1.5,null,3,3,2.5,2,1.5,1.5,null,3,3,2.5,2,1.5,1.5,null,3,3,2.5,2,1.5,1.5]
[{"$f":"Nutrients!B146","v":"GF DDGS Base Mix"}]
[{"$f":"Nutrients!B147","v":"GF synthetics Base Mix"}]
[{"$f":"Nutrients!B148","v":"Choline chloride 60%"}]
[{"$f":"Nutrients!B149","v":"Natuphos 600"}]
[{"$f":"Nutrients!B150","v":"Natuphos 1200"}]
[{"$f":"Nutrients!B151","v":"Optiphos 2000"}]
[{"$f":"Nutrients!B152","v":"Phyzyme 1200"}]
[{"$f":"Nutrients!B153","v":"Phyzyme 5000"}]
[{"$f":"Nutrients!B154","v":"Ronozyme Hiphos GT (10,000)"}]
[{"$f":"Nutrients!B155","v":"Ronozyme Hiphos M (50,000)"}]
[{"$f":"Nutrients!B156","v":"Ronozyme HiPhos 2700"},0.45,0.45,0.45,0.45,0.45,0.45,null,0.45,0.45,0.45,0.45,0.45,0.45,null,0.45,0.45,0.45,0.45,0.45,0.45,null,0.45,0.45,0.45,0.45,0.45,0.45,null,0.45,0.45,0.45,0.45,0.45,0.45,null,0.45,0.45,0.45,0.45,0.45,0.45,null,0.45,0.45,0.45,0.45,0.45,0.45]
[{"$f":"Nutrients!B157","v":"Zinc oxide"}]
[{"$f":"Nutrients!B158","v":"Copper sulfate"}]
[{"$f":"Nutrients!B159","v":"Potassium chloride"}]
[{"$f":"Nutrients!B160","v":"Calcium chloride"}]
[{"$f":"Nutrients!B161","v":"Acidifier"}]
[{"$f":"Nutrients!B162","v":"Vitamin E, 20,000 IU"}]
[{"$f":"Nutrients!B163","v":"Other ingredient"}]
[{"$f":"Nutrients!B164","v":"DPS 50"}]
[{"$f":"Nutrients!B165","v":"PEP2+"}]
[{"$f":"Nutrients!B166","v":"PEP NS"}]
[{"$f":"Nutrients!B167","v":"Vitamin premix (2x) with phytase"}]
[{"$f":"Nutrients!B168","v":"Vitamin premix (2x) without phytase"}]
[{"$f":"Nutrients!B169","v":"Corn DDGS, 10.5% Oil"}]
[{"$f":"Nutrients!B170","v":"Corn DDGS, 7.5% Oil"}]
[{"$f":"Nutrients!B171","v":"Corn DDGS, 4.5% Oil"}]
[{"$f":"Nutrients!B172","v":"MEPRO Hubbard"}]
[{"$f":"Nutrients!B173","v":"HP 300 Apr 2022 loadings"}]
[{"$f":"Nutrients!B174","v":"Glycine"}]
[{"$f":"Nutrients!B175","v":"Phase 2 supplement 2018"}]
[{"$f":"Nutrients!B176","v":"Fermex 200"}]
[{"$f":"Nutrients!B177","v":"Soybean meal with 88% NE of corn"}]
[{"$f":"Nutrients!B178","v":"Blue Dye NFP"}]
[{"$f":"Nutrients!B179","v":"HP 300 2022 NFP"}]
[{"$f":"Nutrients!B180","v":"AX3 Digest NFP"}]
[{"$f":"Nutrients!B181","v":"Phase 2 supplement 2018 NFP"}]
[{"$f":"Nutrients!B182","v":"Femex 200 NFP"}]
[{"$f":"Nutrients!B183","v":"NFP Soybean meal w/88% NE of corn "}]
[{"$f":"Nutrients!B184","v":"AV-E Digest NFP"}]
[{"$f":"Nutrients!B185","v":"QFP Cereal Blend NFP"}]
[{"$f":"Nutrients!B186","v":"FXP Ani-Tek NFP"}]
[{"$f":"Nutrients!B187","v":"NFP VTM Grower (2021)"}]
[{"$f":"Nutrients!B188","v":"NFP VTM Sow (2021)"}]
[{"$f":"Nutrients!B189","v":"VevoVitall NFP"}]
[{"$f":"Nutrients!B190","v":"MEPRO NFP"}]
[{"$f":"Nutrients!B191","v":"AlphaGal 280 P NFP"}]
[{"$f":"Nutrients!B192","v":"NFP Custom Manganese "}]
[{"$f":"Nutrients!B193","v":"Fat Build R2 All Veg 4000 NFP"}]
[{"$f":"Nutrients!B194","v":"LipoVital GL 90 NFP"}]
[{"$f":"Nutrients!B195","v":"NFP Custom Zinc"}]
[{"$f":"Nutrients!B196","v":"THRPRO-L Threonine 80% NFP"}]
[{"$f":"Nutrients!B197","v":"Copper Chloride Intellibond TBCC NFP"}]
[{"$f":"Nutrients!B198","v":"DDGS 7.5% Oil Green Plains NFP"}]
[{"$f":"Nutrients!B199","v":"NHF GF VTM 2#"}]
[{"$f":"Nutrients!B200","v":"Hubbard Vit Premix "}]
[{"$f":"Nutrients!B201","v":"Hubbard TMP"}]
[{"$f":"Nutrients!B202","v":"Inorganic Se 600 ppm Hubbard"}]
[{"$f":"Nutrients!B203","v":"Quantum Blue  5G Hubbard"}]
[{"$f":"Nutrients!B204","v":"TASA Prime meal Hubbard"}]
[{"$f":"Nutrients!B205","v":"TASA Swine Hubbard"}]
[{"$f":"Nutrients!B206","v":"TASA fish solubles Hubbard"}]
[{"$f":"Nutrients!B207","v":"Mepro + TASA additive Hubbard"}]
[{"$f":"Nutrients!B208","v":"TASA Prime + TASA additive Hubbard"}]
[{"$f":"Nutrients!B209","v":"NHF SOW VTM 4# 2022"}]
[{"$f":"Nutrients!B210","v":"ThrPro "}]
[{"$f":"Nutrients!B211","v":"NHF Optiphos Plus 2500 G"}]
[{"$f":"Nutrients!B212","v":"NHF Corn DDGS, Valero, Aurora"}]
[{"$f":"Nutrients!B213","v":"HP 300 Hubbard"}]
[{"$f":"Nutrients!B214","v":"NHF Corn DDGS, Illuminate for Aurora"}]
[{"$f":"Nutrients!B215","v":"NFP Corn DDGS, MO analysis"}]
[{"$f":"Nutrients!B216","v":"NFP Smizyme 2500"}]
[{"$f":"Nutrients!B217","v":"NHF HP300 2022 loadings"}]
[{"$f":"Nutrients!B218","v":"NHF Liquid Lys 55%"}]
[{"$f":"Nutrients!B219","v":"Corn DDGS with varying energy"},null,null,null,null,null,null,null,100,100,100,100,100,null,null,200,200,200,200,200,null,null,300,300,300,300,300,null,null,400,400,400,400,400,null,null,500,500,500,500,500,null,null,600,600,600,600,600]
[{"$f":"Nutrients!B220","v":"Other ingredient"}]
[{"$f":"Nutrients!B221","v":"Other ingredient"}]
[{"$f":"Nutrients!B222","v":"Other ingredient"}]
[{"$f":"Nutrients!B223","v":"Other ingredient"}]
[{"$f":"Nutrients!B224","v":"Other ingredient"}]
[{"$f":"Nutrients!B225","v":"Other ingredient"}]
[{"$f":"Nutrients!B226","v":"Other ingredient"}]
[{"$f":"Nutrients!B227","v":"Other ingredient"}]
[{"$f":"Nutrients!B228","v":"Other ingredient"}]
["TOTAL",{"$f":"SUM(B7:B229)","v":2000.0000000000002},2000,2000.0000000000002,2000.0000000000002,2000,2000.0000000000002,null,{"$f":"SUM(I7:I229)","v":2000},2000,2000.0000000000002,1999.9999999999995,1999.9999999999998,2000.0000000000002,null,{"$f":"SUM(P7:P229)","v":2000},2000.0000000000002,2000,2000,2000,2000.0000000000002,null,{"$f":"SUM(W7:W229)","v":1999.9999999999998},2000,2000,2000.0000000000002,2000.0000000000002,2000.0000000000002,null,{"$f":"SUM(AD7:AD229)","v":2000},2000,1999.9999999999998,2000,2000,2000.0000000000002,null,{"$f":"SUM(AK7:AK229)","v":2000},2000,2000.0000000000002,2000,2000,2000.0000000000002,null,{"$f":"SUM(AR7:AR229)","v":1999.9999999999998},2000,2000,2000,1999.9999999999998,2000.0000000000002]
[]
["Required SID Lys:NE Ratio",{"$f":"  0.0000415*((B5+B6)/2)^2 - 0.0236*((B5+B6)/2) + 6.096","v":4.6920843750000003},4.1130093749999999,3.6054000000000004,3.1925999999999997,2.9125999999999999,2.7606093749999996,null,{"$f":"  0.0000415*((I5+I6)/2)^2 - 0.0236*((I5+I6)/2) + 6.096","v":4.6920843750000003},4.1130093749999999,3.6054000000000004,3.1925999999999997,2.9125999999999999,2.7606093749999996,null,{"$f":"  0.0000415*((P5+P6)/2)^2 - 0.0236*((P5+P6)/2) + 6.096","v":4.6920843750000003},4.1130093749999999,3.6054000000000004,3.1925999999999997,2.9125999999999999,2.7606093749999996,null,{"$f":"  0.0000415*((W5+W6)/2)^2 - 0.0236*((W5+W6)/2) + 6.096","v":4.6920843750000003},4.1130093749999999,3.6054000000000004,3.1925999999999997,2.9125999999999999,2.7606093749999996,null,{"$f":"  0.0000415*((AD5+AD6)/2)^2 - 0.0236*((AD5+AD6)/2) + 6.096","v":4.6920843750000003},4.1130093749999999,3.6054000000000004,3.1925999999999997,2.9125999999999999,2.7606093749999996,null,{"$f":"  0.0000415*((AK5+AK6)/2)^2 - 0.0236*((AK5+AK6)/2) + 6.096","v":4.6920843750000003},4.1130093749999999,3.6054000000000004,3.1925999999999997,2.9125999999999999,2.7606093749999996,null,{"$f":"  0.0000415*((AR5+AR6)/2)^2 - 0.0236*((AR5+AR6)/2) + 6.096","v":4.6920843750000003},4.1130093749999999,3.6054000000000004,3.1925999999999997,2.9125999999999999,2.7606093749999996]
["Calculated SID Lysine Required, %",{"$f":"IF(B232=\"\",\"\",B250*2.2046*B232/10000)","v":1.1933289345334586},1.0523868858191809,0.92731901794478477,0.82549698291879381,0.75646982136751284,0.71849863102392231,null,{"$f":"IF(I232=\"\",\"\",I250*2.2046*I232/10000)","v":1.1930633287666585},1.0522282386472619,0.92721642757073841,0.82543342347670134,0.75641369045533269,0.71849863102392231,null,{"$f":"IF(P232=\"\",\"\",P250*2.2046*P232/10000)","v":1.1929043761561808},1.0521066443036233,0.92716385395510914,0.82536521694506593,0.75635393859604416,0.71849863102392231,null,{"$f":"IF(W232=\"\",\"\",W250*2.2046*W232/10000)","v":1.1928393738850456},1.0521079922946255,0.927132980715624,0.82538764961017985,0.75637985534244878,0.71849863102392231,null,{"$f":"IF(AD232=\"\",\"\",AD250*2.2046*AD232/10000)","v":1.1928296334653752},1.0520647299454347,0.92715690399776762,0.82539720306734854,0.75634582348552681,0.71849863102392231,null,{"$f":"IF(AK232=\"\",\"\",AK250*2.2046*AK232/10000)","v":1.192760696686529},1.05201966832369,0.92707712371126294,0.82530411598327313,0.75635037137305416,0.71849863102392231,null,{"$f":"IF(AR232=\"\",\"\",AR250*2.2046*AR232/10000)","v":1.1928457267186132},1.0519469932197556,0.92702906154208287,0.82529346380773971,0.75635513665971499,0.71849863102392231]
[null,null,null,null,null,null,null,null,{"$f":"B127-I127","v":0.12000000000000011},{"$f":"C126-J126","v":0.20127037394555369}]
["SID amino acids, %"]
["  Lys",1.1861119527718891,1.0487231011263827,0.92692570857780632,0.82606841929078001,0.75673053182615369,0.71839352504319809,null,1.1861119527718891,1.0487231011263827,0.92692570857780632,0.82606841929078001,0.75673053182615369,0.71839352504319809,null,1.1861119527718891,1.0487231011263827,0.92692570857780632,0.82606841929078001,0.75673053182615369,0.71839352504319809,null,1.1861119527718891,1.0487231011263827,0.92692570857780632,0.82606841929078001,0.75673053182615369,0.71839352504319809,null,1.1861119527718891,1.0487231011263827,0.92692570857780632,0.82606841929078001,0.75673053182615369,0.71839352504319809,null,1.1861119527718891,1.0487231011263827,0.92692570857780632,0.82606841929078001,0.75673053182615369,0.71839352504319809,null,1.1861119527718891,1.0487231011263827,0.92692570857780632,0.82606841929078001,0.75673053182615369,0.71839352504319809]
["  Ile:Lys",{"$f":"(SUMPRODUCT(B$9:B$229,Nutrients!$CY$8:$CY$228)+(IF($A$7=Nutrients!$B$8,Nutrients!$CY$8,Nutrients!$CY$9)*B$7)+(((IF($A$8=Nutrients!$B$79,Nutrients!$CY$79,(IF($A$8=Nutrients!$B$77,Nutrients!$CY$77,Nutrients!$CY$78)))))*B$8))/2000/B$236*100","v":56.344881641231822},{"$f":"(SUMPRODUCT(C$9:C$229,Nutrients!$CY$8:$CY$228)+(IF($A$7=Nutrients!$B$8,Nutrients!$CY$8,Nutrients!$CY$9)*C$7)+(((IF($A$8=Nutrients!$B$79,Nutrients!$CY$79,(IF($A$8=Nutrients!$B$77,Nutrients!$CY$77,Nutrients!$CY$78)))))*C$8))/2000/C$236*100","v":57.375308930399996},{"$f":"(SUMPRODUCT(D$9:D$229,Nutrients!$CY$8:$CY$228)+(IF($A$7=Nutrients!$B$8,Nutrients!$CY$8,Nutrients!$CY$9)*D$7)+(((IF($A$8=Nutrients!$B$79,Nutrients!$CY$79,(IF($A$8=Nutrients!$B$77,Nutrients!$CY$77,Nutrients!$CY$78)))))*D$8))/2000/D$236*100","v":58.876554056537131},{"$f":"(SUMPRODUCT(E$9:E$229,Nutrients!$CY$8:$CY$228)+(IF($A$7=Nutrients!$B$8,Nutrients!$CY$8,Nutrients!$CY$9)*E$7)+(((IF($A$8=Nutrients!$B$79,Nutrients!$CY$79,(IF($A$8=Nutrients!$B$77,Nutrients!$CY$77,Nutrients!$CY$78)))))*E$8))/2000/E$236*100","v":59.309801434553123},{"$f":"(SUMPRODUCT(F$9:F$229,Nutrients!$CY$8:$CY$228)+(IF($A$7=Nutrients!$B$8,Nutrients!$CY$8,Nutrients!$CY$9)*F$7)+(((IF($A$8=Nutrients!$B$79,Nutrients!$CY$79,(IF($A$8=Nutrients!$B$77,Nutrients!$CY$77,Nutrients!$CY$78)))))*F$8))/2000/F$236*100","v":58.50084547001024},{"$f":"(SUMPRODUCT(G$9:G$229,Nutrients!$CY$8:$CY$228)+(IF($A$7=Nutrients!$B$8,Nutrients!$CY$8,Nutrients!$CY$9)*G$7)+(((IF($A$8=Nutrients!$B$79,Nutrients!$CY$79,(IF($A$8=Nutrients!$B$77,Nutrients!$CY$77,Nutrients!$CY$78)))))*G$8))/2000/G$236*100","v":57.980356352367814},null,{"$f":"(SUMPRODUCT(I$9:I$229,Nutrients!$CY$8:$CY$228)+(IF($A$7=Nutrients!$B$8,Nutrients!$CY$8,Nutrients!$CY$9)*I$7)+(((IF($A$8=Nutrients!$B$79,Nutrients!$CY$79,(IF($A$8=Nutrients!$B$77,Nutrients!$CY$77,Nutrients!$CY$78)))))*I$8))/2000/I$236*100","v":56.537268043918964},{"$f":"(SUMPRODUCT(J$9:J$229,Nutrients!$CY$8:$CY$228)+(IF($A$7=Nutrients!$B$8,Nutrients!$CY$8,Nutrients!$CY$9)*J$7)+(((IF($A$8=Nutrients!$B$79,Nutrients!$CY$79,(IF($A$8=Nutrients!$B$77,Nutrients!$CY$77,Nutrients!$CY$78)))))*J$8))/2000/J$236*100","v":57.591362682913314},{"$f":"(SUMPRODUCT(K$9:K$229,Nutrients!$CY$8:$CY$228)+(IF($A$7=Nutrients!$B$8,Nutrients!$CY$8,Nutrients!$CY$9)*K$7)+(((IF($A$8=Nutrients!$B$79,Nutrients!$CY$79,(IF($A$8=Nutrients!$B$77,Nutrients!$CY$77,Nutrients!$CY$78)))))*K$8))/2000/K$236*100","v":59.121891635558853},{"$f":"(SUMPRODUCT(L$9:L$229,Nutrients!$CY$8:$CY$228)+(IF($A$7=Nutrients!$B$8,Nutrients!$CY$8,Nutrients!$CY$9)*L$7)+(((IF($A$8=Nutrients!$B$79,Nutrients!$CY$79,(IF($A$8=Nutrients!$B$77,Nutrients!$CY$77,Nutrients!$CY$78)))))*L$8))/2000/L$236*100","v":59.584248318013991},{"$f":"(SUMPRODUCT(M$9:M$229,Nutrients!$CY$8:$CY$228)+(IF($A$7=Nutrients!$B$8,Nutrients!$CY$8,Nutrients!$CY$9)*M$7)+(((IF($A$8=Nutrients!$B$79,Nutrients!$CY$79,(IF($A$8=Nutrients!$B$77,Nutrients!$CY$77,Nutrients!$CY$78)))))*M$8))/2000/M$236*100","v":58.800434519910652},{"$f":"(SUMPRODUCT(N$9:N$229,Nutrients!$CY$8:$CY$228)+(IF($A$7=Nutrients!$B$8,Nutrients!$CY$8,Nutrients!$CY$9)*N$7)+(((IF($A$8=Nutrients!$B$79,Nutrients!$CY$79,(IF($A$8=Nutrients!$B$77,Nutrients!$CY$77,Nutrients!$CY$78)))))*N$8))/2000/N$236*100","v":57.980356352367814},null,{"$f":"(SUMPRODUCT(P$9:P$229,Nutrients!$CY$8:$CY$228)+(IF($A$7=Nutrients!$B$8,Nutrients!$CY$8,Nutrients!$CY$9)*P$7)+(((IF($A$8=Nutrients!$B$79,Nutrients!$CY$79,(IF($A$8=Nutrients!$B$77,Nutrients!$CY$77,Nutrients!$CY$78)))))*P$8))/2000/P$236*100","v":56.728782868309025},{"$f":"(SUMPRODUCT(Q$9:Q$229,Nutrients!$CY$8:$CY$228)+(IF($A$7=Nutrients!$B$8,Nutrients!$CY$8,Nutrients!$CY$9)*Q$7)+(((IF($A$8=Nutrients!$B$79,Nutrients!$CY$79,(IF($A$8=Nutrients!$B$77,Nutrients!$CY$77,Nutrients!$CY$78)))))*Q$8))/2000/Q$236*100","v":57.807579487615392},{"$f":"(SUMPRODUCT(R$9:R$229,Nutrients!$CY$8:$CY$228)+(IF($A$7=Nutrients!$B$8,Nutrients!$CY$8,Nutrients!$CY$9)*R$7)+(((IF($A$8=Nutrients!$B$79,Nutrients!$CY$79,(IF($A$8=Nutrients!$B$77,Nutrients!$CY$77,Nutrients!$CY$78)))))*R$8))/2000/R$236*100","v":59.366068230036483},{"$f":"(SUMPRODUCT(S$9:S$229,Nutrients!$CY$8:$CY$228)+(IF($A$7=Nutrients!$B$8,Nutrients!$CY$8,Nutrients!$CY$9)*S$7)+(((IF($A$8=Nutrients!$B$79,Nutrients!$CY$79,(IF($A$8=Nutrients!$B$77,Nutrients!$CY$77,Nutrients!$CY$78)))))*S$8))/2000/S$236*100","v":59.858377512435098},{"$f":"(SUMPRODUCT(T$9:T$229,Nutrients!$CY$8:$CY$228)+(IF($A$7=Nutrients!$B$8,Nutrients!$CY$8,Nutrients!$CY$9)*T$7)+(((IF($A$8=Nutrients!$B$79,Nutrients!$CY$79,(IF($A$8=Nutrients!$B$77,Nutrients!$CY$77,Nutrients!$CY$78)))))*T$8))/2000/T$236*100","v":59.100029214145252},{"$f":"(SUMPRODUCT(U$9:U$229,Nutrients!$CY$8:$CY$228)+(IF($A$7=Nutrients!$B$8,Nutrients!$CY$8,Nutrients!$CY$9)*U$7)+(((IF($A$8=Nutrients!$B$79,Nutrients!$CY$79,(IF($A$8=Nutrients!$B$77,Nutrients!$CY$77,Nutrients!$CY$78)))))*U$8))/2000/U$236*100","v":57.980356352367814},null,{"$f":"(SUMPRODUCT(W$9:W$229,Nutrients!$CY$8:$CY$228)+(IF($A$7=Nutrients!$B$8,Nutrients!$CY$8,Nutrients!$CY$9)*W$7)+(((IF($A$8=Nutrients!$B$79,Nutrients!$CY$79,(IF($A$8=Nutrients!$B$77,Nutrients!$CY$77,Nutrients!$CY$78)))))*W$8))/2000/W$236*100","v":56.920602606012039},{"$f":"(SUMPRODUCT(X$9:X$229,Nutrients!$CY$8:$CY$228)+(IF($A$7=Nutrients!$B$8,Nutrients!$CY$8,Nutrients!$CY$9)*X$7)+(((IF($A$8=Nutrients!$B$79,Nutrients!$CY$79,(IF($A$8=Nutrients!$B$77,Nutrients!$CY$77,Nutrients!$CY$78)))))*X$8))/2000/X$236*100","v":58.023903705241949},{"$f":"(SUMPRODUCT(Y$9:Y$229,Nutrients!$CY$8:$CY$228)+(IF($A$7=Nutrients!$B$8,Nutrients!$CY$8,Nutrients!$CY$9)*Y$7)+(((IF($A$8=Nutrients!$B$79,Nutrients!$CY$79,(IF($A$8=Nutrients!$B$77,Nutrients!$CY$77,Nutrients!$CY$78)))))*Y$8))/2000/Y$236*100","v":59.610940446344607},{"$f":"(SUMPRODUCT(Z$9:Z$229,Nutrients!$CY$8:$CY$228)+(IF($A$7=Nutrients!$B$8,Nutrients!$CY$8,Nutrients!$CY$9)*Z$7)+(((IF($A$8=Nutrients!$B$79,Nutrients!$CY$79,(IF($A$8=Nutrients!$B$77,Nutrients!$CY$77,Nutrients!$CY$78)))))*Z$8))/2000/Z$236*100","v":60.132252631680281},{"$f":"(SUMPRODUCT(AA$9:AA$229,Nutrients!$CY$8:$CY$228)+(IF($A$7=Nutrients!$B$8,Nutrients!$CY$8,Nutrients!$CY$9)*AA$7)+(((IF($A$8=Nutrients!$B$79,Nutrients!$CY$79,(IF($A$8=Nutrients!$B$77,Nutrients!$CY$77,Nutrients!$CY$78)))))*AA$8))/2000/AA$236*100","v":59.398020538505577},{"$f":"(SUMPRODUCT(AB$9:AB$229,Nutrients!$CY$8:$CY$228)+(IF($A$7=Nutrients!$B$8,Nutrients!$CY$8,Nutrients!$CY$9)*AB$7)+(((IF($A$8=Nutrients!$B$79,Nutrients!$CY$79,(IF($A$8=Nutrients!$B$77,Nutrients!$CY$77,Nutrients!$CY$78)))))*AB$8))/2000/AB$236*100","v":57.980356352367814},null,{"$f":"(SUMPRODUCT(AD$9:AD$229,Nutrients!$CY$8:$CY$228)+(IF($A$7=Nutrients!$B$8,Nutrients!$CY$8,Nutrients!$CY$9)*AD$7)+(((IF($A$8=Nutrients!$B$79,Nutrients!$CY$79,(IF($A$8=Nutrients!$B$77,Nutrients!$CY$77,Nutrients!$CY$78)))))*AD$8))/2000/AD$236*100","v":57.111896726054802},{"$f":"(SUMPRODUCT(AE$9:AE$229,Nutrients!$CY$8:$CY$228)+(IF($A$7=Nutrients!$B$8,Nutrients!$CY$8,Nutrients!$CY$9)*AE$7)+(((IF($A$8=Nutrients!$B$79,Nutrients!$CY$79,(IF($A$8=Nutrients!$B$77,Nutrients!$CY$77,Nutrients!$CY$78)))))*AE$8))/2000/AE$236*100","v":58.240506100778923},{"$f":"(SUMPRODUCT(AF$9:AF$229,Nutrients!$CY$8:$CY$228)+(IF($A$7=Nutrients!$B$8,Nutrients!$CY$8,Nutrients!$CY$9)*AF$7)+(((IF($A$8=Nutrients!$B$79,Nutrients!$CY$79,(IF($A$8=Nutrients!$B$77,Nutrients!$CY$77,Nutrients!$CY$78)))))*AF$8))/2000/AF$236*100","v":59.855025414635818},{"$f":"(SUMPRODUCT(AG$9:AG$229,Nutrients!$CY$8:$CY$228)+(IF($A$7=Nutrients!$B$8,Nutrients!$CY$8,Nutrients!$CY$9)*AG$7)+(((IF($A$8=Nutrients!$B$79,Nutrients!$CY$79,(IF($A$8=Nutrients!$B$77,Nutrients!$CY$77,Nutrients!$CY$78)))))*AG$8))/2000/AG$236*100","v":60.405680327395395},{"$f":"(SUMPRODUCT(AH$9:AH$229,Nutrients!$CY$8:$CY$228)+(IF($A$7=Nutrients!$B$8,Nutrients!$CY$8,Nutrients!$CY$9)*AH$7)+(((IF($A$8=Nutrients!$B$79,Nutrients!$CY$79,(IF($A$8=Nutrients!$B$77,Nutrients!$CY$77,Nutrients!$CY$78)))))*AH$8))/2000/AH$236*100","v":59.679654615177483},{"$f":"(SUMPRODUCT(AI$9:AI$229,Nutrients!$CY$8:$CY$228)+(IF($A$7=Nutrients!$B$8,Nutrients!$CY$8,Nutrients!$CY$9)*AI$7)+(((IF($A$8=Nutrients!$B$79,Nutrients!$CY$79,(IF($A$8=Nutrients!$B$77,Nutrients!$CY$77,Nutrients!$CY$78)))))*AI$8))/2000/AI$236*100","v":57.980356352367814},null,{"$f":"(SUMPRODUCT(AK$9:AK$229,Nutrients!$CY$8:$CY$228)+(IF($A$7=Nutrients!$B$8,Nutrients!$CY$8,Nutrients!$CY$9)*AK$7)+(((IF($A$8=Nutrients!$B$79,Nutrients!$CY$79,(IF($A$8=Nutrients!$B$77,Nutrients!$CY$77,Nutrients!$CY$78)))))*AK$8))/2000/AK$236*100","v":57.30281498454174},{"$f":"(SUMPRODUCT(AL$9:AL$229,Nutrients!$CY$8:$CY$228)+(IF($A$7=Nutrients!$B$8,Nutrients!$CY$8,Nutrients!$CY$9)*AL$7)+(((IF($A$8=Nutrients!$B$79,Nutrients!$CY$79,(IF($A$8=Nutrients!$B$77,Nutrients!$CY$77,Nutrients!$CY$78)))))*AL$8))/2000/AL$236*100","v":58.456236035093625},{"$f":"(SUMPRODUCT(AM$9:AM$229,Nutrients!$CY$8:$CY$228)+(IF($A$7=Nutrients!$B$8,Nutrients!$CY$8,Nutrients!$CY$9)*AM$7)+(((IF($A$8=Nutrients!$B$79,Nutrients!$CY$79,(IF($A$8=Nutrients!$B$77,Nutrients!$CY$77,Nutrients!$CY$78)))))*AM$8))/2000/AM$236*100","v":60.099432859500403},{"$f":"(SUMPRODUCT(AN$9:AN$229,Nutrients!$CY$8:$CY$228)+(IF($A$7=Nutrients!$B$8,Nutrients!$CY$8,Nutrients!$CY$9)*AN$7)+(((IF($A$8=Nutrients!$B$79,Nutrients!$CY$79,(IF($A$8=Nutrients!$B$77,Nutrients!$CY$77,Nutrients!$CY$78)))))*AN$8))/2000/AN$236*100","v":60.665883477882751},{"$f":"(SUMPRODUCT(AO$9:AO$229,Nutrients!$CY$8:$CY$228)+(IF($A$7=Nutrients!$B$8,Nutrients!$CY$8,Nutrients!$CY$9)*AO$7)+(((IF($A$8=Nutrients!$B$79,Nutrients!$CY$79,(IF($A$8=Nutrients!$B$77,Nutrients!$CY$77,Nutrients!$CY$78)))))*AO$8))/2000/AO$236*100","v":59.956813185105595},{"$f":"(SUMPRODUCT(AP$9:AP$229,Nutrients!$CY$8:$CY$228)+(IF($A$7=Nutrients!$B$8,Nutrients!$CY$8,Nutrients!$CY$9)*AP$7)+(((IF($A$8=Nutrients!$B$79,Nutrients!$CY$79,(IF($A$8=Nutrients!$B$77,Nutrients!$CY$77,Nutrients!$CY$78)))))*AP$8))/2000/AP$236*100","v":57.980356352367814},null,{"$f":"(SUMPRODUCT(AR$9:AR$229,Nutrients!$CY$8:$CY$228)+(IF($A$7=Nutrients!$B$8,Nutrients!$CY$8,Nutrients!$CY$9)*AR$7)+(((IF($A$8=Nutrients!$B$79,Nutrients!$CY$79,(IF($A$8=Nutrients!$B$77,Nutrients!$CY$77,Nutrients!$CY$78)))))*AR$8))/2000/AR$236*100","v":57.49303641314242},{"$f":"(SUMPRODUCT(AS$9:AS$229,Nutrients!$CY$8:$CY$228)+(IF($A$7=Nutrients!$B$8,Nutrients!$CY$8,Nutrients!$CY$9)*AS$7)+(((IF($A$8=Nutrients!$B$79,Nutrients!$CY$79,(IF($A$8=Nutrients!$B$77,Nutrients!$CY$77,Nutrients!$CY$78)))))*AS$8))/2000/AS$236*100","v":58.671847810017866},{"$f":"(SUMPRODUCT(AT$9:AT$229,Nutrients!$CY$8:$CY$228)+(IF($A$7=Nutrients!$B$8,Nutrients!$CY$8,Nutrients!$CY$9)*AT$7)+(((IF($A$8=Nutrients!$B$79,Nutrients!$CY$79,(IF($A$8=Nutrients!$B$77,Nutrients!$CY$77,Nutrients!$CY$78)))))*AT$8))/2000/AT$236*100","v":60.341559763619379},{"$f":"(SUMPRODUCT(AU$9:AU$229,Nutrients!$CY$8:$CY$228)+(IF($A$7=Nutrients!$B$8,Nutrients!$CY$8,Nutrients!$CY$9)*AU$7)+(((IF($A$8=Nutrients!$B$79,Nutrients!$CY$79,(IF($A$8=Nutrients!$B$77,Nutrients!$CY$77,Nutrients!$CY$78)))))*AU$8))/2000/AU$236*100","v":60.919801535801795},{"$f":"(SUMPRODUCT(AV$9:AV$229,Nutrients!$CY$8:$CY$228)+(IF($A$7=Nutrients!$B$8,Nutrients!$CY$8,Nutrients!$CY$9)*AV$7)+(((IF($A$8=Nutrients!$B$79,Nutrients!$CY$79,(IF($A$8=Nutrients!$B$77,Nutrients!$CY$77,Nutrients!$CY$78)))))*AV$8))/2000/AV$236*100","v":60.233968612362347},{"$f":"(SUMPRODUCT(AW$9:AW$229,Nutrients!$CY$8:$CY$228)+(IF($A$7=Nutrients!$B$8,Nutrients!$CY$8,Nutrients!$CY$9)*AW$7)+(((IF($A$8=Nutrients!$B$79,Nutrients!$CY$79,(IF($A$8=Nutrients!$B$77,Nutrients!$CY$77,Nutrients!$CY$78)))))*AW$8))/2000/AW$236*100","v":57.980356352367814}]
["  Leu:Lys",{"$f":"(SUMPRODUCT(B$9:B$229,Nutrients!$CZ$8:$CZ$228)+(IF($A$7=Nutrients!$B$8,Nutrients!$CZ$8,Nutrients!$CZ$9)*B$7)+(((IF($A$8=Nutrients!$B$79,Nutrients!$CZ$79,(IF($A$8=Nutrients!$B$77,Nutrients!$CZ$77,Nutrients!$CZ$78)))))*B$8))/2000/B$236*100","v":120.89105591211504},{"$f":"(SUMPRODUCT(C$9:C$229,Nutrients!$CZ$8:$CZ$228)+(IF($A$7=Nutrients!$B$8,Nutrients!$CZ$8,Nutrients!$CZ$9)*C$7)+(((IF($A$8=Nutrients!$B$79,Nutrients!$CZ$79,(IF($A$8=Nutrients!$B$77,Nutrients!$CZ$77,Nutrients!$CZ$78)))))*C$8))/2000/C$236*100","v":128.00798727272854},{"$f":"(SUMPRODUCT(D$9:D$229,Nutrients!$CZ$8:$CZ$228)+(IF($A$7=Nutrients!$B$8,Nutrients!$CZ$8,Nutrients!$CZ$9)*D$7)+(((IF($A$8=Nutrients!$B$79,Nutrients!$CZ$79,(IF($A$8=Nutrients!$B$77,Nutrients!$CZ$77,Nutrients!$CZ$78)))))*D$8))/2000/D$236*100","v":136.56000538997691},{"$f":"(SUMPRODUCT(E$9:E$229,Nutrients!$CZ$8:$CZ$228)+(IF($A$7=Nutrients!$B$8,Nutrients!$CZ$8,Nutrients!$CZ$9)*E$7)+(((IF($A$8=Nutrients!$B$79,Nutrients!$CZ$79,(IF($A$8=Nutrients!$B$77,Nutrients!$CZ$77,Nutrients!$CZ$78)))))*E$8))/2000/E$236*100","v":143.9104596541508},{"$f":"(SUMPRODUCT(F$9:F$229,Nutrients!$CZ$8:$CZ$228)+(IF($A$7=Nutrients!$B$8,Nutrients!$CZ$8,Nutrients!$CZ$9)*F$7)+(((IF($A$8=Nutrients!$B$79,Nutrients!$CZ$79,(IF($A$8=Nutrients!$B$77,Nutrients!$CZ$77,Nutrients!$CZ$78)))))*F$8))/2000/F$236*100","v":148.44781930158939},{"$f":"(SUMPRODUCT(G$9:G$229,Nutrients!$CZ$8:$CZ$228)+(IF($A$7=Nutrients!$B$8,Nutrients!$CZ$8,Nutrients!$CZ$9)*G$7)+(((IF($A$8=Nutrients!$B$79,Nutrients!$CZ$79,(IF($A$8=Nutrients!$B$77,Nutrients!$CZ$77,Nutrients!$CZ$78)))))*G$8))/2000/G$236*100","v":151.29313192040226},null,{"$f":"(SUMPRODUCT(I$9:I$229,Nutrients!$CZ$8:$CZ$228)+(IF($A$7=Nutrients!$B$8,Nutrients!$CZ$8,Nutrients!$CZ$9)*I$7)+(((IF($A$8=Nutrients!$B$79,Nutrients!$CZ$79,(IF($A$8=Nutrients!$B$77,Nutrients!$CZ$77,Nutrients!$CZ$78)))))*I$8))/2000/I$236*100","v":126.15334641924505},{"$f":"(SUMPRODUCT(J$9:J$229,Nutrients!$CZ$8:$CZ$228)+(IF($A$7=Nutrients!$B$8,Nutrients!$CZ$8,Nutrients!$CZ$9)*J$7)+(((IF($A$8=Nutrients!$B$79,Nutrients!$CZ$79,(IF($A$8=Nutrients!$B$77,Nutrients!$CZ$77,Nutrients!$CZ$78)))))*J$8))/2000/J$236*100","v":133.94986688219049},{"$f":"(SUMPRODUCT(K$9:K$229,Nutrients!$CZ$8:$CZ$228)+(IF($A$7=Nutrients!$B$8,Nutrients!$CZ$8,Nutrients!$CZ$9)*K$7)+(((IF($A$8=Nutrients!$B$79,Nutrients!$CZ$79,(IF($A$8=Nutrients!$B$77,Nutrients!$CZ$77,Nutrients!$CZ$78)))))*K$8))/2000/K$236*100","v":143.28835055252139},{"$f":"(SUMPRODUCT(L$9:L$229,Nutrients!$CZ$8:$CZ$228)+(IF($A$7=Nutrients!$B$8,Nutrients!$CZ$8,Nutrients!$CZ$9)*L$7)+(((IF($A$8=Nutrients!$B$79,Nutrients!$CZ$79,(IF($A$8=Nutrients!$B$77,Nutrients!$CZ$77,Nutrients!$CZ$78)))))*L$8))/2000/L$236*100","v":151.45490050644713},{"$f":"(SUMPRODUCT(M$9:M$229,Nutrients!$CZ$8:$CZ$228)+(IF($A$7=Nutrients!$B$8,Nutrients!$CZ$8,Nutrients!$CZ$9)*M$7)+(((IF($A$8=Nutrients!$B$79,Nutrients!$CZ$79,(IF($A$8=Nutrients!$B$77,Nutrients!$CZ$77,Nutrients!$CZ$78)))))*M$8))/2000/M$236*100","v":156.68351261793944},{"$f":"(SUMPRODUCT(N$9:N$229,Nutrients!$CZ$8:$CZ$228)+(IF($A$7=Nutrients!$B$8,Nutrients!$CZ$8,Nutrients!$CZ$9)*N$7)+(((IF($A$8=Nutrients!$B$79,Nutrients!$CZ$79,(IF($A$8=Nutrients!$B$77,Nutrients!$CZ$77,Nutrients!$CZ$78)))))*N$8))/2000/N$236*100","v":151.29313192040226},null,{"$f":"(SUMPRODUCT(P$9:P$229,Nutrients!$CZ$8:$CZ$228)+(IF($A$7=Nutrients!$B$8,Nutrients!$CZ$8,Nutrients!$CZ$9)*P$7)+(((IF($A$8=Nutrients!$B$79,Nutrients!$CZ$79,(IF($A$8=Nutrients!$B$77,Nutrients!$CZ$77,Nutrients!$CZ$78)))))*P$8))/2000/P$236*100","v":131.41007653750111},{"$f":"(SUMPRODUCT(Q$9:Q$229,Nutrients!$CZ$8:$CZ$228)+(IF($A$7=Nutrients!$B$8,Nutrients!$CZ$8,Nutrients!$CZ$9)*Q$7)+(((IF($A$8=Nutrients!$B$79,Nutrients!$CZ$79,(IF($A$8=Nutrients!$B$77,Nutrients!$CZ$77,Nutrients!$CZ$78)))))*Q$8))/2000/Q$236*100","v":139.89278671211153},{"$f":"(SUMPRODUCT(R$9:R$229,Nutrients!$CZ$8:$CZ$228)+(IF($A$7=Nutrients!$B$8,Nutrients!$CZ$8,Nutrients!$CZ$9)*R$7)+(((IF($A$8=Nutrients!$B$79,Nutrients!$CZ$79,(IF($A$8=Nutrients!$B$77,Nutrients!$CZ$77,Nutrients!$CZ$78)))))*R$8))/2000/R$236*100","v":150.00928900752982},{"$f":"(SUMPRODUCT(S$9:S$229,Nutrients!$CZ$8:$CZ$228)+(IF($A$7=Nutrients!$B$8,Nutrients!$CZ$8,Nutrients!$CZ$9)*S$7)+(((IF($A$8=Nutrients!$B$79,Nutrients!$CZ$79,(IF($A$8=Nutrients!$B$77,Nutrients!$CZ$77,Nutrients!$CZ$78)))))*S$8))/2000/S$236*100","v":158.99731460497054},{"$f":"(SUMPRODUCT(T$9:T$229,Nutrients!$CZ$8:$CZ$228)+(IF($A$7=Nutrients!$B$8,Nutrients!$CZ$8,Nutrients!$CZ$9)*T$7)+(((IF($A$8=Nutrients!$B$79,Nutrients!$CZ$79,(IF($A$8=Nutrients!$B$77,Nutrients!$CZ$77,Nutrients!$CZ$78)))))*T$8))/2000/T$236*100","v":164.91924194332404},{"$f":"(SUMPRODUCT(U$9:U$229,Nutrients!$CZ$8:$CZ$228)+(IF($A$7=Nutrients!$B$8,Nutrients!$CZ$8,Nutrients!$CZ$9)*U$7)+(((IF($A$8=Nutrients!$B$79,Nutrients!$CZ$79,(IF($A$8=Nutrients!$B$77,Nutrients!$CZ$77,Nutrients!$CZ$78)))))*U$8))/2000/U$236*100","v":151.29313192040226},null,{"$f":"(SUMPRODUCT(W$9:W$229,Nutrients!$CZ$8:$CZ$228)+(IF($A$7=Nutrients!$B$8,Nutrients!$CZ$8,Nutrients!$CZ$9)*W$7)+(((IF($A$8=Nutrients!$B$79,Nutrients!$CZ$79,(IF($A$8=Nutrients!$B$77,Nutrients!$CZ$77,Nutrients!$CZ$78)))))*W$8))/2000/W$236*100","v":136.66875190450719},{"$f":"(SUMPRODUCT(X$9:X$229,Nutrients!$CZ$8:$CZ$228)+(IF($A$7=Nutrients!$B$8,Nutrients!$CZ$8,Nutrients!$CZ$9)*X$7)+(((IF($A$8=Nutrients!$B$79,Nutrients!$CZ$79,(IF($A$8=Nutrients!$B$77,Nutrients!$CZ$77,Nutrients!$CZ$78)))))*X$8))/2000/X$236*100","v":145.83639180190204},{"$f":"(SUMPRODUCT(Y$9:Y$229,Nutrients!$CZ$8:$CZ$228)+(IF($A$7=Nutrients!$B$8,Nutrients!$CZ$8,Nutrients!$CZ$9)*Y$7)+(((IF($A$8=Nutrients!$B$79,Nutrients!$CZ$79,(IF($A$8=Nutrients!$B$77,Nutrients!$CZ$77,Nutrients!$CZ$78)))))*Y$8))/2000/Y$236*100","v":156.73466530581547},{"$f":"(SUMPRODUCT(Z$9:Z$229,Nutrients!$CZ$8:$CZ$228)+(IF($A$7=Nutrients!$B$8,Nutrients!$CZ$8,Nutrients!$CZ$9)*Z$7)+(((IF($A$8=Nutrients!$B$79,Nutrients!$CZ$79,(IF($A$8=Nutrients!$B$77,Nutrients!$CZ$77,Nutrients!$CZ$78)))))*Z$8))/2000/Z$236*100","v":166.53810778568766},{"$f":"(SUMPRODUCT(AA$9:AA$229,Nutrients!$CZ$8:$CZ$228)+(IF($A$7=Nutrients!$B$8,Nutrients!$CZ$8,Nutrients!$CZ$9)*AA$7)+(((IF($A$8=Nutrients!$B$79,Nutrients!$CZ$79,(IF($A$8=Nutrients!$B$77,Nutrients!$CZ$77,Nutrients!$CZ$78)))))*AA$8))/2000/AA$236*100","v":173.14474228522045},{"$f":"(SUMPRODUCT(AB$9:AB$229,Nutrients!$CZ$8:$CZ$228)+(IF($A$7=Nutrients!$B$8,Nutrients!$CZ$8,Nutrients!$CZ$9)*AB$7)+(((IF($A$8=Nutrients!$B$79,Nutrients!$CZ$79,(IF($A$8=Nutrients!$B$77,Nutrients!$CZ$77,Nutrients!$CZ$78)))))*AB$8))/2000/AB$236*100","v":151.29313192040226},null,{"$f":"(SUMPRODUCT(AD$9:AD$229,Nutrients!$CZ$8:$CZ$228)+(IF($A$7=Nutrients!$B$8,Nutrients!$CZ$8,Nutrients!$CZ$9)*AD$7)+(((IF($A$8=Nutrients!$B$79,Nutrients!$CZ$79,(IF($A$8=Nutrients!$B$77,Nutrients!$CZ$77,Nutrients!$CZ$78)))))*AD$8))/2000/AD$236*100","v":141.92407400009793},{"$f":"(SUMPRODUCT(AE$9:AE$229,Nutrients!$CZ$8:$CZ$228)+(IF($A$7=Nutrients!$B$8,Nutrients!$CZ$8,Nutrients!$CZ$9)*AE$7)+(((IF($A$8=Nutrients!$B$79,Nutrients!$CZ$79,(IF($A$8=Nutrients!$B$77,Nutrients!$CZ$77,Nutrients!$CZ$78)))))*AE$8))/2000/AE$236*100","v":151.78177157718335},{"$f":"(SUMPRODUCT(AF$9:AF$229,Nutrients!$CZ$8:$CZ$228)+(IF($A$7=Nutrients!$B$8,Nutrients!$CZ$8,Nutrients!$CZ$9)*AF$7)+(((IF($A$8=Nutrients!$B$79,Nutrients!$CZ$79,(IF($A$8=Nutrients!$B$77,Nutrients!$CZ$77,Nutrients!$CZ$78)))))*AF$8))/2000/AF$236*100","v":163.4550192152594},{"$f":"(SUMPRODUCT(AG$9:AG$229,Nutrients!$CZ$8:$CZ$228)+(IF($A$7=Nutrients!$B$8,Nutrients!$CZ$8,Nutrients!$CZ$9)*AG$7)+(((IF($A$8=Nutrients!$B$79,Nutrients!$CZ$79,(IF($A$8=Nutrients!$B$77,Nutrients!$CZ$77,Nutrients!$CZ$78)))))*AG$8))/2000/AG$236*100","v":174.07604654836027},{"$f":"(SUMPRODUCT(AH$9:AH$229,Nutrients!$CZ$8:$CZ$228)+(IF($A$7=Nutrients!$B$8,Nutrients!$CZ$8,Nutrients!$CZ$9)*AH$7)+(((IF($A$8=Nutrients!$B$79,Nutrients!$CZ$79,(IF($A$8=Nutrients!$B$77,Nutrients!$CZ$77,Nutrients!$CZ$78)))))*AH$8))/2000/AH$236*100","v":181.26588865414911},{"$f":"(SUMPRODUCT(AI$9:AI$229,Nutrients!$CZ$8:$CZ$228)+(IF($A$7=Nutrients!$B$8,Nutrients!$CZ$8,Nutrients!$CZ$9)*AI$7)+(((IF($A$8=Nutrients!$B$79,Nutrients!$CZ$79,(IF($A$8=Nutrients!$B$77,Nutrients!$CZ$77,Nutrients!$CZ$78)))))*AI$8))/2000/AI$236*100","v":151.29313192040226},null,{"$f":"(SUMPRODUCT(AK$9:AK$229,Nutrients!$CZ$8:$CZ$228)+(IF($A$7=Nutrients!$B$8,Nutrients!$CZ$8,Nutrients!$CZ$9)*AK$7)+(((IF($A$8=Nutrients!$B$79,Nutrients!$CZ$79,(IF($A$8=Nutrients!$B$77,Nutrients!$CZ$77,Nutrients!$CZ$78)))))*AK$8))/2000/AK$236*100","v":147.1769982199956},{"$f":"(SUMPRODUCT(AL$9:AL$229,Nutrients!$CZ$8:$CZ$228)+(IF($A$7=Nutrients!$B$8,Nutrients!$CZ$8,Nutrients!$CZ$9)*AL$7)+(((IF($A$8=Nutrients!$B$79,Nutrients!$CZ$79,(IF($A$8=Nutrients!$B$77,Nutrients!$CZ$77,Nutrients!$CZ$78)))))*AL$8))/2000/AL$236*100","v":157.72158533081253},{"$f":"(SUMPRODUCT(AM$9:AM$229,Nutrients!$CZ$8:$CZ$228)+(IF($A$7=Nutrients!$B$8,Nutrients!$CZ$8,Nutrients!$CZ$9)*AM$7)+(((IF($A$8=Nutrients!$B$79,Nutrients!$CZ$79,(IF($A$8=Nutrients!$B$77,Nutrients!$CZ$77,Nutrients!$CZ$78)))))*AM$8))/2000/AM$236*100","v":170.17743042139909},{"$f":"(SUMPRODUCT(AN$9:AN$229,Nutrients!$CZ$8:$CZ$228)+(IF($A$7=Nutrients!$B$8,Nutrients!$CZ$8,Nutrients!$CZ$9)*AN$7)+(((IF($A$8=Nutrients!$B$79,Nutrients!$CZ$79,(IF($A$8=Nutrients!$B$77,Nutrients!$CZ$77,Nutrients!$CZ$78)))))*AN$8))/2000/AN$236*100","v":181.52961697098581},{"$f":"(SUMPRODUCT(AO$9:AO$229,Nutrients!$CZ$8:$CZ$228)+(IF($A$7=Nutrients!$B$8,Nutrients!$CZ$8,Nutrients!$CZ$9)*AO$7)+(((IF($A$8=Nutrients!$B$79,Nutrients!$CZ$79,(IF($A$8=Nutrients!$B$77,Nutrients!$CZ$77,Nutrients!$CZ$78)))))*AO$8))/2000/AO$236*100","v":189.35848273123401},{"$f":"(SUMPRODUCT(AP$9:AP$229,Nutrients!$CZ$8:$CZ$228)+(IF($A$7=Nutrients!$B$8,Nutrients!$CZ$8,Nutrients!$CZ$9)*AP$7)+(((IF($A$8=Nutrients!$B$79,Nutrients!$CZ$79,(IF($A$8=Nutrients!$B$77,Nutrients!$CZ$77,Nutrients!$CZ$78)))))*AP$8))/2000/AP$236*100","v":151.29313192040226},null,{"$f":"(SUMPRODUCT(AR$9:AR$229,Nutrients!$CZ$8:$CZ$228)+(IF($A$7=Nutrients!$B$8,Nutrients!$CZ$8,Nutrients!$CZ$9)*AR$7)+(((IF($A$8=Nutrients!$B$79,Nutrients!$CZ$79,(IF($A$8=Nutrients!$B$77,Nutrients!$CZ$77,Nutrients!$CZ$78)))))*AR$8))/2000/AR$236*100","v":152.42547688960877},{"$f":"(SUMPRODUCT(AS$9:AS$229,Nutrients!$CZ$8:$CZ$228)+(IF($A$7=Nutrients!$B$8,Nutrients!$CZ$8,Nutrients!$CZ$9)*AS$7)+(((IF($A$8=Nutrients!$B$79,Nutrients!$CZ$79,(IF($A$8=Nutrients!$B$77,Nutrients!$CZ$77,Nutrients!$CZ$78)))))*AS$8))/2000/AS$236*100","v":163.66064526557969},{"$f":"(SUMPRODUCT(AT$9:AT$229,Nutrients!$CZ$8:$CZ$228)+(IF($A$7=Nutrients!$B$8,Nutrients!$CZ$8,Nutrients!$CZ$9)*AT$7)+(((IF($A$8=Nutrients!$B$79,Nutrients!$CZ$79,(IF($A$8=Nutrients!$B$77,Nutrients!$CZ$77,Nutrients!$CZ$78)))))*AT$8))/2000/AT$236*100","v":176.88529251195064},{"$f":"(SUMPRODUCT(AU$9:AU$229,Nutrients!$CZ$8:$CZ$228)+(IF($A$7=Nutrients!$B$8,Nutrients!$CZ$8,Nutrients!$CZ$9)*AU$7)+(((IF($A$8=Nutrients!$B$79,Nutrients!$CZ$79,(IF($A$8=Nutrients!$B$77,Nutrients!$CZ$77,Nutrients!$CZ$78)))))*AU$8))/2000/AU$236*100","v":188.94309052692159},{"$f":"(SUMPRODUCT(AV$9:AV$229,Nutrients!$CZ$8:$CZ$228)+(IF($A$7=Nutrients!$B$8,Nutrients!$CZ$8,Nutrients!$CZ$9)*AV$7)+(((IF($A$8=Nutrients!$B$79,Nutrients!$CZ$79,(IF($A$8=Nutrients!$B$77,Nutrients!$CZ$77,Nutrients!$CZ$78)))))*AV$8))/2000/AV$236*100","v":197.45105675908766},{"$f":"(SUMPRODUCT(AW$9:AW$229,Nutrients!$CZ$8:$CZ$228)+(IF($A$7=Nutrients!$B$8,Nutrients!$CZ$8,Nutrients!$CZ$9)*AW$7)+(((IF($A$8=Nutrients!$B$79,Nutrients!$CZ$79,(IF($A$8=Nutrients!$B$77,Nutrients!$CZ$77,Nutrients!$CZ$78)))))*AW$8))/2000/AW$236*100","v":151.29313192040226}]
["  Met:Lys",{"$f":"(SUMPRODUCT(B$9:B$229,Nutrients!$DB$8:$DB$228)+(IF($A$7=Nutrients!$B$8,Nutrients!$DB$8,Nutrients!$DB$9)*B$7)+(((IF($A$8=Nutrients!$B$79,Nutrients!$DB$79,(IF($A$8=Nutrients!$B$77,Nutrients!$DB$77,Nutrients!$DB$78)))))*B$8))/2000/B$236*100","v":33.81111138845354},{"$f":"(SUMPRODUCT(C$9:C$229,Nutrients!$DB$8:$DB$228)+(IF($A$7=Nutrients!$B$8,Nutrients!$DB$8,Nutrients!$DB$9)*C$7)+(((IF($A$8=Nutrients!$B$79,Nutrients!$DB$79,(IF($A$8=Nutrients!$B$77,Nutrients!$DB$77,Nutrients!$DB$78)))))*C$8))/2000/C$236*100","v":32.524236458699015},{"$f":"(SUMPRODUCT(D$9:D$229,Nutrients!$DB$8:$DB$228)+(IF($A$7=Nutrients!$B$8,Nutrients!$DB$8,Nutrients!$DB$9)*D$7)+(((IF($A$8=Nutrients!$B$79,Nutrients!$DB$79,(IF($A$8=Nutrients!$B$77,Nutrients!$DB$77,Nutrients!$DB$78)))))*D$8))/2000/D$236*100","v":30.974376755587524},{"$f":"(SUMPRODUCT(E$9:E$229,Nutrients!$DB$8:$DB$228)+(IF($A$7=Nutrients!$B$8,Nutrients!$DB$8,Nutrients!$DB$9)*E$7)+(((IF($A$8=Nutrients!$B$79,Nutrients!$DB$79,(IF($A$8=Nutrients!$B$77,Nutrients!$DB$77,Nutrients!$DB$78)))))*E$8))/2000/E$236*100","v":30.712595168445802},{"$f":"(SUMPRODUCT(F$9:F$229,Nutrients!$DB$8:$DB$228)+(IF($A$7=Nutrients!$B$8,Nutrients!$DB$8,Nutrients!$DB$9)*F$7)+(((IF($A$8=Nutrients!$B$79,Nutrients!$DB$79,(IF($A$8=Nutrients!$B$77,Nutrients!$DB$77,Nutrients!$DB$78)))))*F$8))/2000/F$236*100","v":30.00631713197205},{"$f":"(SUMPRODUCT(G$9:G$229,Nutrients!$DB$8:$DB$228)+(IF($A$7=Nutrients!$B$8,Nutrients!$DB$8,Nutrients!$DB$9)*G$7)+(((IF($A$8=Nutrients!$B$79,Nutrients!$DB$79,(IF($A$8=Nutrients!$B$77,Nutrients!$DB$77,Nutrients!$DB$78)))))*G$8))/2000/G$236*100","v":30.329377095070086},null,{"$f":"(SUMPRODUCT(I$9:I$229,Nutrients!$DB$8:$DB$228)+(IF($A$7=Nutrients!$B$8,Nutrients!$DB$8,Nutrients!$DB$9)*I$7)+(((IF($A$8=Nutrients!$B$79,Nutrients!$DB$79,(IF($A$8=Nutrients!$B$77,Nutrients!$DB$77,Nutrients!$DB$78)))))*I$8))/2000/I$236*100","v":33.639114383995413},{"$f":"(SUMPRODUCT(J$9:J$229,Nutrients!$DB$8:$DB$228)+(IF($A$7=Nutrients!$B$8,Nutrients!$DB$8,Nutrients!$DB$9)*J$7)+(((IF($A$8=Nutrients!$B$79,Nutrients!$DB$79,(IF($A$8=Nutrients!$B$77,Nutrients!$DB$77,Nutrients!$DB$78)))))*J$8))/2000/J$236*100","v":32.329958648925178},{"$f":"(SUMPRODUCT(K$9:K$229,Nutrients!$DB$8:$DB$228)+(IF($A$7=Nutrients!$B$8,Nutrients!$DB$8,Nutrients!$DB$9)*K$7)+(((IF($A$8=Nutrients!$B$79,Nutrients!$DB$79,(IF($A$8=Nutrients!$B$77,Nutrients!$DB$77,Nutrients!$DB$78)))))*K$8))/2000/K$236*100","v":30.762360048222149},{"$f":"(SUMPRODUCT(L$9:L$229,Nutrients!$DB$8:$DB$228)+(IF($A$7=Nutrients!$B$8,Nutrients!$DB$8,Nutrients!$DB$9)*L$7)+(((IF($A$8=Nutrients!$B$79,Nutrients!$DB$79,(IF($A$8=Nutrients!$B$77,Nutrients!$DB$77,Nutrients!$DB$78)))))*L$8))/2000/L$236*100","v":30.353898832965641},{"$f":"(SUMPRODUCT(M$9:M$229,Nutrients!$DB$8:$DB$228)+(IF($A$7=Nutrients!$B$8,Nutrients!$DB$8,Nutrients!$DB$9)*M$7)+(((IF($A$8=Nutrients!$B$79,Nutrients!$DB$79,(IF($A$8=Nutrients!$B$77,Nutrients!$DB$77,Nutrients!$DB$78)))))*M$8))/2000/M$236*100","v":29.614748556131985},{"$f":"(SUMPRODUCT(N$9:N$229,Nutrients!$DB$8:$DB$228)+(IF($A$7=Nutrients!$B$8,Nutrients!$DB$8,Nutrients!$DB$9)*N$7)+(((IF($A$8=Nutrients!$B$79,Nutrients!$DB$79,(IF($A$8=Nutrients!$B$77,Nutrients!$DB$77,Nutrients!$DB$78)))))*N$8))/2000/N$236*100","v":30.329377095070086},null,{"$f":"(SUMPRODUCT(P$9:P$229,Nutrients!$DB$8:$DB$228)+(IF($A$7=Nutrients!$B$8,Nutrients!$DB$8,Nutrients!$DB$9)*P$7)+(((IF($A$8=Nutrients!$B$79,Nutrients!$DB$79,(IF($A$8=Nutrients!$B$77,Nutrients!$DB$77,Nutrients!$DB$78)))))*P$8))/2000/P$236*100","v":33.473188643175746},{"$f":"(SUMPRODUCT(Q$9:Q$229,Nutrients!$DB$8:$DB$228)+(IF($A$7=Nutrients!$B$8,Nutrients!$DB$8,Nutrients!$DB$9)*Q$7)+(((IF($A$8=Nutrients!$B$79,Nutrients!$DB$79,(IF($A$8=Nutrients!$B$77,Nutrients!$DB$77,Nutrients!$DB$78)))))*Q$8))/2000/Q$236*100","v":32.141860224339851},{"$f":"(SUMPRODUCT(R$9:R$229,Nutrients!$DB$8:$DB$228)+(IF($A$7=Nutrients!$B$8,Nutrients!$DB$8,Nutrients!$DB$9)*R$7)+(((IF($A$8=Nutrients!$B$79,Nutrients!$DB$79,(IF($A$8=Nutrients!$B$77,Nutrients!$DB$77,Nutrients!$DB$78)))))*R$8))/2000/R$236*100","v":30.549038986327115},{"$f":"(SUMPRODUCT(S$9:S$229,Nutrients!$DB$8:$DB$228)+(IF($A$7=Nutrients!$B$8,Nutrients!$DB$8,Nutrients!$DB$9)*S$7)+(((IF($A$8=Nutrients!$B$79,Nutrients!$DB$79,(IF($A$8=Nutrients!$B$77,Nutrients!$DB$77,Nutrients!$DB$78)))))*S$8))/2000/S$236*100","v":30.114690371582114},{"$f":"(SUMPRODUCT(T$9:T$229,Nutrients!$DB$8:$DB$228)+(IF($A$7=Nutrients!$B$8,Nutrients!$DB$8,Nutrients!$DB$9)*T$7)+(((IF($A$8=Nutrients!$B$79,Nutrients!$DB$79,(IF($A$8=Nutrients!$B$77,Nutrients!$DB$77,Nutrients!$DB$78)))))*T$8))/2000/T$236*100","v":29.064764255587484},{"$f":"(SUMPRODUCT(U$9:U$229,Nutrients!$DB$8:$DB$228)+(IF($A$7=Nutrients!$B$8,Nutrients!$DB$8,Nutrients!$DB$9)*U$7)+(((IF($A$8=Nutrients!$B$79,Nutrients!$DB$79,(IF($A$8=Nutrients!$B$77,Nutrients!$DB$77,Nutrients!$DB$78)))))*U$8))/2000/U$236*100","v":30.329377095070086},null,{"$f":"(SUMPRODUCT(W$9:W$229,Nutrients!$DB$8:$DB$228)+(IF($A$7=Nutrients!$B$8,Nutrients!$DB$8,Nutrients!$DB$9)*W$7)+(((IF($A$8=Nutrients!$B$79,Nutrients!$DB$79,(IF($A$8=Nutrients!$B$77,Nutrients!$DB$77,Nutrients!$DB$78)))))*W$8))/2000/W$236*100","v":33.307605469415201},{"$f":"(SUMPRODUCT(X$9:X$229,Nutrients!$DB$8:$DB$228)+(IF($A$7=Nutrients!$B$8,Nutrients!$DB$8,Nutrients!$DB$9)*X$7)+(((IF($A$8=Nutrients!$B$79,Nutrients!$DB$79,(IF($A$8=Nutrients!$B$77,Nutrients!$DB$77,Nutrients!$DB$78)))))*X$8))/2000/X$236*100","v":31.95388247710143},{"$f":"(SUMPRODUCT(Y$9:Y$229,Nutrients!$DB$8:$DB$228)+(IF($A$7=Nutrients!$B$8,Nutrients!$DB$8,Nutrients!$DB$9)*Y$7)+(((IF($A$8=Nutrients!$B$79,Nutrients!$DB$79,(IF($A$8=Nutrients!$B$77,Nutrients!$DB$77,Nutrients!$DB$78)))))*Y$8))/2000/Y$236*100","v":30.336499448604915},{"$f":"(SUMPRODUCT(Z$9:Z$229,Nutrients!$DB$8:$DB$228)+(IF($A$7=Nutrients!$B$8,Nutrients!$DB$8,Nutrients!$DB$9)*Z$7)+(((IF($A$8=Nutrients!$B$79,Nutrients!$DB$79,(IF($A$8=Nutrients!$B$77,Nutrients!$DB$77,Nutrients!$DB$78)))))*Z$8))/2000/Z$236*100","v":29.875196459278243},{"$f":"(SUMPRODUCT(AA$9:AA$229,Nutrients!$DB$8:$DB$228)+(IF($A$7=Nutrients!$B$8,Nutrients!$DB$8,Nutrients!$DB$9)*AA$7)+(((IF($A$8=Nutrients!$B$79,Nutrients!$DB$79,(IF($A$8=Nutrients!$B$77,Nutrients!$DB$77,Nutrients!$DB$78)))))*AA$8))/2000/AA$236*100","v":30.110486235968249},{"$f":"(SUMPRODUCT(AB$9:AB$229,Nutrients!$DB$8:$DB$228)+(IF($A$7=Nutrients!$B$8,Nutrients!$DB$8,Nutrients!$DB$9)*AB$7)+(((IF($A$8=Nutrients!$B$79,Nutrients!$DB$79,(IF($A$8=Nutrients!$B$77,Nutrients!$DB$77,Nutrients!$DB$78)))))*AB$8))/2000/AB$236*100","v":30.329377095070086},null,{"$f":"(SUMPRODUCT(AD$9:AD$229,Nutrients!$DB$8:$DB$228)+(IF($A$7=Nutrients!$B$8,Nutrients!$DB$8,Nutrients!$DB$9)*AD$7)+(((IF($A$8=Nutrients!$B$79,Nutrients!$DB$79,(IF($A$8=Nutrients!$B$77,Nutrients!$DB$77,Nutrients!$DB$78)))))*AD$8))/2000/AD$236*100","v":33.141431769467623},{"$f":"(SUMPRODUCT(AE$9:AE$229,Nutrients!$DB$8:$DB$228)+(IF($A$7=Nutrients!$B$8,Nutrients!$DB$8,Nutrients!$DB$9)*AE$7)+(((IF($A$8=Nutrients!$B$79,Nutrients!$DB$79,(IF($A$8=Nutrients!$B$77,Nutrients!$DB$77,Nutrients!$DB$78)))))*AE$8))/2000/AE$236*100","v":31.766217259964591},{"$f":"(SUMPRODUCT(AF$9:AF$229,Nutrients!$DB$8:$DB$228)+(IF($A$7=Nutrients!$B$8,Nutrients!$DB$8,Nutrients!$DB$9)*AF$7)+(((IF($A$8=Nutrients!$B$79,Nutrients!$DB$79,(IF($A$8=Nutrients!$B$77,Nutrients!$DB$77,Nutrients!$DB$78)))))*AF$8))/2000/AF$236*100","v":30.123075445605334},{"$f":"(SUMPRODUCT(AG$9:AG$229,Nutrients!$DB$8:$DB$228)+(IF($A$7=Nutrients!$B$8,Nutrients!$DB$8,Nutrients!$DB$9)*AG$7)+(((IF($A$8=Nutrients!$B$79,Nutrients!$DB$79,(IF($A$8=Nutrients!$B$77,Nutrients!$DB$77,Nutrients!$DB$78)))))*AG$8))/2000/AG$236*100","v":30.042615848904852},{"$f":"(SUMPRODUCT(AH$9:AH$229,Nutrients!$DB$8:$DB$228)+(IF($A$7=Nutrients!$B$8,Nutrients!$DB$8,Nutrients!$DB$9)*AH$7)+(((IF($A$8=Nutrients!$B$79,Nutrients!$DB$79,(IF($A$8=Nutrients!$B$77,Nutrients!$DB$77,Nutrients!$DB$78)))))*AH$8))/2000/AH$236*100","v":31.137831012083133},{"$f":"(SUMPRODUCT(AI$9:AI$229,Nutrients!$DB$8:$DB$228)+(IF($A$7=Nutrients!$B$8,Nutrients!$DB$8,Nutrients!$DB$9)*AI$7)+(((IF($A$8=Nutrients!$B$79,Nutrients!$DB$79,(IF($A$8=Nutrients!$B$77,Nutrients!$DB$77,Nutrients!$DB$78)))))*AI$8))/2000/AI$236*100","v":30.329377095070086},null,{"$f":"(SUMPRODUCT(AK$9:AK$229,Nutrients!$DB$8:$DB$228)+(IF($A$7=Nutrients!$B$8,Nutrients!$DB$8,Nutrients!$DB$9)*AK$7)+(((IF($A$8=Nutrients!$B$79,Nutrients!$DB$79,(IF($A$8=Nutrients!$B$77,Nutrients!$DB$77,Nutrients!$DB$78)))))*AK$8))/2000/AK$236*100","v":32.974835792819277},{"$f":"(SUMPRODUCT(AL$9:AL$229,Nutrients!$DB$8:$DB$228)+(IF($A$7=Nutrients!$B$8,Nutrients!$DB$8,Nutrients!$DB$9)*AL$7)+(((IF($A$8=Nutrients!$B$79,Nutrients!$DB$79,(IF($A$8=Nutrients!$B$77,Nutrients!$DB$77,Nutrients!$DB$78)))))*AL$8))/2000/AL$236*100","v":31.577571841365927},{"$f":"(SUMPRODUCT(AM$9:AM$229,Nutrients!$DB$8:$DB$228)+(IF($A$7=Nutrients!$B$8,Nutrients!$DB$8,Nutrients!$DB$9)*AM$7)+(((IF($A$8=Nutrients!$B$79,Nutrients!$DB$79,(IF($A$8=Nutrients!$B$77,Nutrients!$DB$77,Nutrients!$DB$78)))))*AM$8))/2000/AM$236*100","v":29.204680528946447},{"$f":"(SUMPRODUCT(AN$9:AN$229,Nutrients!$DB$8:$DB$228)+(IF($A$7=Nutrients!$B$8,Nutrients!$DB$8,Nutrients!$DB$9)*AN$7)+(((IF($A$8=Nutrients!$B$79,Nutrients!$DB$79,(IF($A$8=Nutrients!$B$77,Nutrients!$DB$77,Nutrients!$DB$78)))))*AN$8))/2000/AN$236*100","v":30.986209561941617},{"$f":"(SUMPRODUCT(AO$9:AO$229,Nutrients!$DB$8:$DB$228)+(IF($A$7=Nutrients!$B$8,Nutrients!$DB$8,Nutrients!$DB$9)*AO$7)+(((IF($A$8=Nutrients!$B$79,Nutrients!$DB$79,(IF($A$8=Nutrients!$B$77,Nutrients!$DB$77,Nutrients!$DB$78)))))*AO$8))/2000/AO$236*100","v":32.160147601109905},{"$f":"(SUMPRODUCT(AP$9:AP$229,Nutrients!$DB$8:$DB$228)+(IF($A$7=Nutrients!$B$8,Nutrients!$DB$8,Nutrients!$DB$9)*AP$7)+(((IF($A$8=Nutrients!$B$79,Nutrients!$DB$79,(IF($A$8=Nutrients!$B$77,Nutrients!$DB$77,Nutrients!$DB$78)))))*AP$8))/2000/AP$236*100","v":30.329377095070086},null,{"$f":"(SUMPRODUCT(AR$9:AR$229,Nutrients!$DB$8:$DB$228)+(IF($A$7=Nutrients!$B$8,Nutrients!$DB$8,Nutrients!$DB$9)*AR$7)+(((IF($A$8=Nutrients!$B$79,Nutrients!$DB$79,(IF($A$8=Nutrients!$B$77,Nutrients!$DB$77,Nutrients!$DB$78)))))*AR$8))/2000/AR$236*100","v":32.80745693475945},{"$f":"(SUMPRODUCT(AS$9:AS$229,Nutrients!$DB$8:$DB$228)+(IF($A$7=Nutrients!$B$8,Nutrients!$DB$8,Nutrients!$DB$9)*AS$7)+(((IF($A$8=Nutrients!$B$79,Nutrients!$DB$79,(IF($A$8=Nutrients!$B$77,Nutrients!$DB$77,Nutrients!$DB$78)))))*AS$8))/2000/AS$236*100","v":31.388793671873238},{"$f":"(SUMPRODUCT(AT$9:AT$229,Nutrients!$DB$8:$DB$228)+(IF($A$7=Nutrients!$B$8,Nutrients!$DB$8,Nutrients!$DB$9)*AT$7)+(((IF($A$8=Nutrients!$B$79,Nutrients!$DB$79,(IF($A$8=Nutrients!$B$77,Nutrients!$DB$77,Nutrients!$DB$78)))))*AT$8))/2000/AT$236*100","v":30.057103420630703},{"$f":"(SUMPRODUCT(AU$9:AU$229,Nutrients!$DB$8:$DB$228)+(IF($A$7=Nutrients!$B$8,Nutrients!$DB$8,Nutrients!$DB$9)*AU$7)+(((IF($A$8=Nutrients!$B$79,Nutrients!$DB$79,(IF($A$8=Nutrients!$B$77,Nutrients!$DB$77,Nutrients!$DB$78)))))*AU$8))/2000/AU$236*100","v":31.922742036305614},{"$f":"(SUMPRODUCT(AV$9:AV$229,Nutrients!$DB$8:$DB$228)+(IF($A$7=Nutrients!$B$8,Nutrients!$DB$8,Nutrients!$DB$9)*AV$7)+(((IF($A$8=Nutrients!$B$79,Nutrients!$DB$79,(IF($A$8=Nutrients!$B$77,Nutrients!$DB$77,Nutrients!$DB$78)))))*AV$8))/2000/AV$236*100","v":33.182460659376822},{"$f":"(SUMPRODUCT(AW$9:AW$229,Nutrients!$DB$8:$DB$228)+(IF($A$7=Nutrients!$B$8,Nutrients!$DB$8,Nutrients!$DB$9)*AW$7)+(((IF($A$8=Nutrients!$B$79,Nutrients!$DB$79,(IF($A$8=Nutrients!$B$77,Nutrients!$DB$77,Nutrients!$DB$78)))))*AW$8))/2000/AW$236*100","v":30.329377095070086}]
["  Met & Cys:Lys",{"$f":"(SUMPRODUCT(B$9:B$229,Nutrients!$DC$8:$DC$228)+(IF($A$7=Nutrients!$B$8,Nutrients!$DC$8,Nutrients!$DC$9)*B$7)+(((IF($A$8=Nutrients!$B$79,Nutrients!$DC$79,(IF($A$8=Nutrients!$B$77,Nutrients!$DC$77,Nutrients!$DC$78)))))*B$8))/2000/B$236*100","v":55.997569552010205},{"$f":"(SUMPRODUCT(C$9:C$229,Nutrients!$DC$8:$DC$228)+(IF($A$7=Nutrients!$B$8,Nutrients!$DC$8,Nutrients!$DC$9)*C$7)+(((IF($A$8=Nutrients!$B$79,Nutrients!$DC$79,(IF($A$8=Nutrients!$B$77,Nutrients!$DC$77,Nutrients!$DC$78)))))*C$8))/2000/C$236*100","v":55.998500355280811},{"$f":"(SUMPRODUCT(D$9:D$229,Nutrients!$DC$8:$DC$228)+(IF($A$7=Nutrients!$B$8,Nutrients!$DC$8,Nutrients!$DC$9)*D$7)+(((IF($A$8=Nutrients!$B$79,Nutrients!$DC$79,(IF($A$8=Nutrients!$B$77,Nutrients!$DC$77,Nutrients!$DC$78)))))*D$8))/2000/D$236*100","v":55.998232689384523},{"$f":"(SUMPRODUCT(E$9:E$229,Nutrients!$DC$8:$DC$228)+(IF($A$7=Nutrients!$B$8,Nutrients!$DC$8,Nutrients!$DC$9)*E$7)+(((IF($A$8=Nutrients!$B$79,Nutrients!$DC$79,(IF($A$8=Nutrients!$B$77,Nutrients!$DC$77,Nutrients!$DC$78)))))*E$8))/2000/E$236*100","v":57.061456017842524},{"$f":"(SUMPRODUCT(F$9:F$229,Nutrients!$DC$8:$DC$228)+(IF($A$7=Nutrients!$B$8,Nutrients!$DC$8,Nutrients!$DC$9)*F$7)+(((IF($A$8=Nutrients!$B$79,Nutrients!$DC$79,(IF($A$8=Nutrients!$B$77,Nutrients!$DC$77,Nutrients!$DC$78)))))*F$8))/2000/F$236*100","v":57.164463746746605},{"$f":"(SUMPRODUCT(G$9:G$229,Nutrients!$DC$8:$DC$228)+(IF($A$7=Nutrients!$B$8,Nutrients!$DC$8,Nutrients!$DC$9)*G$7)+(((IF($A$8=Nutrients!$B$79,Nutrients!$DC$79,(IF($A$8=Nutrients!$B$77,Nutrients!$DC$77,Nutrients!$DC$78)))))*G$8))/2000/G$236*100","v":57.994909290351856},null,{"$f":"(SUMPRODUCT(I$9:I$229,Nutrients!$DC$8:$DC$228)+(IF($A$7=Nutrients!$B$8,Nutrients!$DC$8,Nutrients!$DC$9)*I$7)+(((IF($A$8=Nutrients!$B$79,Nutrients!$DC$79,(IF($A$8=Nutrients!$B$77,Nutrients!$DC$77,Nutrients!$DC$78)))))*I$8))/2000/I$236*100","v":55.992193381026787},{"$f":"(SUMPRODUCT(J$9:J$229,Nutrients!$DC$8:$DC$228)+(IF($A$7=Nutrients!$B$8,Nutrients!$DC$8,Nutrients!$DC$9)*J$7)+(((IF($A$8=Nutrients!$B$79,Nutrients!$DC$79,(IF($A$8=Nutrients!$B$77,Nutrients!$DC$77,Nutrients!$DC$78)))))*J$8))/2000/J$236*100","v":55.99089713001797},{"$f":"(SUMPRODUCT(K$9:K$229,Nutrients!$DC$8:$DC$228)+(IF($A$7=Nutrients!$B$8,Nutrients!$DC$8,Nutrients!$DC$9)*K$7)+(((IF($A$8=Nutrients!$B$79,Nutrients!$DC$79,(IF($A$8=Nutrients!$B$77,Nutrients!$DC$77,Nutrients!$DC$78)))))*K$8))/2000/K$236*100","v":55.998452650885746},{"$f":"(SUMPRODUCT(L$9:L$229,Nutrients!$DC$8:$DC$228)+(IF($A$7=Nutrients!$B$8,Nutrients!$DC$8,Nutrients!$DC$9)*L$7)+(((IF($A$8=Nutrients!$B$79,Nutrients!$DC$79,(IF($A$8=Nutrients!$B$77,Nutrients!$DC$77,Nutrients!$DC$78)))))*L$8))/2000/L$236*100","v":56.939933318303517},{"$f":"(SUMPRODUCT(M$9:M$229,Nutrients!$DC$8:$DC$228)+(IF($A$7=Nutrients!$B$8,Nutrients!$DC$8,Nutrients!$DC$9)*M$7)+(((IF($A$8=Nutrients!$B$79,Nutrients!$DC$79,(IF($A$8=Nutrients!$B$77,Nutrients!$DC$77,Nutrients!$DC$78)))))*M$8))/2000/M$236*100","v":57.031794928726917},{"$f":"(SUMPRODUCT(N$9:N$229,Nutrients!$DC$8:$DC$228)+(IF($A$7=Nutrients!$B$8,Nutrients!$DC$8,Nutrients!$DC$9)*N$7)+(((IF($A$8=Nutrients!$B$79,Nutrients!$DC$79,(IF($A$8=Nutrients!$B$77,Nutrients!$DC$77,Nutrients!$DC$78)))))*N$8))/2000/N$236*100","v":57.994909290351856},null,{"$f":"(SUMPRODUCT(P$9:P$229,Nutrients!$DC$8:$DC$228)+(IF($A$7=Nutrients!$B$8,Nutrients!$DC$8,Nutrients!$DC$9)*P$7)+(((IF($A$8=Nutrients!$B$79,Nutrients!$DC$79,(IF($A$8=Nutrients!$B$77,Nutrients!$DC$77,Nutrients!$DC$78)))))*P$8))/2000/P$236*100","v":55.991881790608325},{"$f":"(SUMPRODUCT(Q$9:Q$229,Nutrients!$DC$8:$DC$228)+(IF($A$7=Nutrients!$B$8,Nutrients!$DC$8,Nutrients!$DC$9)*Q$7)+(((IF($A$8=Nutrients!$B$79,Nutrients!$DC$79,(IF($A$8=Nutrients!$B$77,Nutrients!$DC$77,Nutrients!$DC$78)))))*Q$8))/2000/Q$236*100","v":55.989661617118692},{"$f":"(SUMPRODUCT(R$9:R$229,Nutrients!$DC$8:$DC$228)+(IF($A$7=Nutrients!$B$8,Nutrients!$DC$8,Nutrients!$DC$9)*R$7)+(((IF($A$8=Nutrients!$B$79,Nutrients!$DC$79,(IF($A$8=Nutrients!$B$77,Nutrients!$DC$77,Nutrients!$DC$78)))))*R$8))/2000/R$236*100","v":55.996027307201459},{"$f":"(SUMPRODUCT(S$9:S$229,Nutrients!$DC$8:$DC$228)+(IF($A$7=Nutrients!$B$8,Nutrients!$DC$8,Nutrients!$DC$9)*S$7)+(((IF($A$8=Nutrients!$B$79,Nutrients!$DC$79,(IF($A$8=Nutrients!$B$77,Nutrients!$DC$77,Nutrients!$DC$78)))))*S$8))/2000/S$236*100","v":56.937531558324061},{"$f":"(SUMPRODUCT(T$9:T$229,Nutrients!$DC$8:$DC$228)+(IF($A$7=Nutrients!$B$8,Nutrients!$DC$8,Nutrients!$DC$9)*T$7)+(((IF($A$8=Nutrients!$B$79,Nutrients!$DC$79,(IF($A$8=Nutrients!$B$77,Nutrients!$DC$77,Nutrients!$DC$78)))))*T$8))/2000/T$236*100","v":56.740716905274446},{"$f":"(SUMPRODUCT(U$9:U$229,Nutrients!$DC$8:$DC$228)+(IF($A$7=Nutrients!$B$8,Nutrients!$DC$8,Nutrients!$DC$9)*U$7)+(((IF($A$8=Nutrients!$B$79,Nutrients!$DC$79,(IF($A$8=Nutrients!$B$77,Nutrients!$DC$77,Nutrients!$DC$78)))))*U$8))/2000/U$236*100","v":57.994909290351856},null,{"$f":"(SUMPRODUCT(W$9:W$229,Nutrients!$DC$8:$DC$228)+(IF($A$7=Nutrients!$B$8,Nutrients!$DC$8,Nutrients!$DC$9)*W$7)+(((IF($A$8=Nutrients!$B$79,Nutrients!$DC$79,(IF($A$8=Nutrients!$B$77,Nutrients!$DC$77,Nutrients!$DC$78)))))*W$8))/2000/W$236*100","v":55.992264945673},{"$f":"(SUMPRODUCT(X$9:X$229,Nutrients!$DC$8:$DC$228)+(IF($A$7=Nutrients!$B$8,Nutrients!$DC$8,Nutrients!$DC$9)*X$7)+(((IF($A$8=Nutrients!$B$79,Nutrients!$DC$79,(IF($A$8=Nutrients!$B$77,Nutrients!$DC$77,Nutrients!$DC$78)))))*X$8))/2000/X$236*100","v":55.988670844743801},{"$f":"(SUMPRODUCT(Y$9:Y$229,Nutrients!$DC$8:$DC$228)+(IF($A$7=Nutrients!$B$8,Nutrients!$DC$8,Nutrients!$DC$9)*Y$7)+(((IF($A$8=Nutrients!$B$79,Nutrients!$DC$79,(IF($A$8=Nutrients!$B$77,Nutrients!$DC$77,Nutrients!$DC$78)))))*Y$8))/2000/Y$236*100","v":55.995186938997385},{"$f":"(SUMPRODUCT(Z$9:Z$229,Nutrients!$DC$8:$DC$228)+(IF($A$7=Nutrients!$B$8,Nutrients!$DC$8,Nutrients!$DC$9)*Z$7)+(((IF($A$8=Nutrients!$B$79,Nutrients!$DC$79,(IF($A$8=Nutrients!$B$77,Nutrients!$DC$77,Nutrients!$DC$78)))))*Z$8))/2000/Z$236*100","v":56.934550887640022},{"$f":"(SUMPRODUCT(AA$9:AA$229,Nutrients!$DC$8:$DC$228)+(IF($A$7=Nutrients!$B$8,Nutrients!$DC$8,Nutrients!$DC$9)*AA$7)+(((IF($A$8=Nutrients!$B$79,Nutrients!$DC$79,(IF($A$8=Nutrients!$B$77,Nutrients!$DC$77,Nutrients!$DC$78)))))*AA$8))/2000/AA$236*100","v":58.043493251888066},{"$f":"(SUMPRODUCT(AB$9:AB$229,Nutrients!$DC$8:$DC$228)+(IF($A$7=Nutrients!$B$8,Nutrients!$DC$8,Nutrients!$DC$9)*AB$7)+(((IF($A$8=Nutrients!$B$79,Nutrients!$DC$79,(IF($A$8=Nutrients!$B$77,Nutrients!$DC$77,Nutrients!$DC$78)))))*AB$8))/2000/AB$236*100","v":57.994909290351856},null,{"$f":"(SUMPRODUCT(AD$9:AD$229,Nutrients!$DC$8:$DC$228)+(IF($A$7=Nutrients!$B$8,Nutrients!$DC$8,Nutrients!$DC$9)*AD$7)+(((IF($A$8=Nutrients!$B$79,Nutrients!$DC$79,(IF($A$8=Nutrients!$B$77,Nutrients!$DC$77,Nutrients!$DC$78)))))*AD$8))/2000/AD$236*100","v":55.991450480037741},{"$f":"(SUMPRODUCT(AE$9:AE$229,Nutrients!$DC$8:$DC$228)+(IF($A$7=Nutrients!$B$8,Nutrients!$DC$8,Nutrients!$DC$9)*AE$7)+(((IF($A$8=Nutrients!$B$79,Nutrients!$DC$79,(IF($A$8=Nutrients!$B$77,Nutrients!$DC$77,Nutrients!$DC$78)))))*AE$8))/2000/AE$236*100","v":55.988313901193443},{"$f":"(SUMPRODUCT(AF$9:AF$229,Nutrients!$DC$8:$DC$228)+(IF($A$7=Nutrients!$B$8,Nutrients!$DC$8,Nutrients!$DC$9)*AF$7)+(((IF($A$8=Nutrients!$B$79,Nutrients!$DC$79,(IF($A$8=Nutrients!$B$77,Nutrients!$DC$77,Nutrients!$DC$78)))))*AF$8))/2000/AF$236*100","v":55.992552824897182},{"$f":"(SUMPRODUCT(AG$9:AG$229,Nutrients!$DC$8:$DC$228)+(IF($A$7=Nutrients!$B$8,Nutrients!$DC$8,Nutrients!$DC$9)*AG$7)+(((IF($A$8=Nutrients!$B$79,Nutrients!$DC$79,(IF($A$8=Nutrients!$B$77,Nutrients!$DC$77,Nutrients!$DC$78)))))*AG$8))/2000/AG$236*100","v":57.337966739503713},{"$f":"(SUMPRODUCT(AH$9:AH$229,Nutrients!$DC$8:$DC$228)+(IF($A$7=Nutrients!$B$8,Nutrients!$DC$8,Nutrients!$DC$9)*AH$7)+(((IF($A$8=Nutrients!$B$79,Nutrients!$DC$79,(IF($A$8=Nutrients!$B$77,Nutrients!$DC$77,Nutrients!$DC$78)))))*AH$8))/2000/AH$236*100","v":59.308999582846958},{"$f":"(SUMPRODUCT(AI$9:AI$229,Nutrients!$DC$8:$DC$228)+(IF($A$7=Nutrients!$B$8,Nutrients!$DC$8,Nutrients!$DC$9)*AI$7)+(((IF($A$8=Nutrients!$B$79,Nutrients!$DC$79,(IF($A$8=Nutrients!$B$77,Nutrients!$DC$77,Nutrients!$DC$78)))))*AI$8))/2000/AI$236*100","v":57.994909290351856},null,{"$f":"(SUMPRODUCT(AK$9:AK$229,Nutrients!$DC$8:$DC$228)+(IF($A$7=Nutrients!$B$8,Nutrients!$DC$8,Nutrients!$DC$9)*AK$7)+(((IF($A$8=Nutrients!$B$79,Nutrients!$DC$79,(IF($A$8=Nutrients!$B$77,Nutrients!$DC$77,Nutrients!$DC$78)))))*AK$8))/2000/AK$236*100","v":55.989779613231761},{"$f":"(SUMPRODUCT(AL$9:AL$229,Nutrients!$DC$8:$DC$228)+(IF($A$7=Nutrients!$B$8,Nutrients!$DC$8,Nutrients!$DC$9)*AL$7)+(((IF($A$8=Nutrients!$B$79,Nutrients!$DC$79,(IF($A$8=Nutrients!$B$77,Nutrients!$DC$77,Nutrients!$DC$78)))))*AL$8))/2000/AL$236*100","v":55.985969053318897},{"$f":"(SUMPRODUCT(AM$9:AM$229,Nutrients!$DC$8:$DC$228)+(IF($A$7=Nutrients!$B$8,Nutrients!$DC$8,Nutrients!$DC$9)*AM$7)+(((IF($A$8=Nutrients!$B$79,Nutrients!$DC$79,(IF($A$8=Nutrients!$B$77,Nutrients!$DC$77,Nutrients!$DC$78)))))*AM$8))/2000/AM$236*100","v":55.285320261331805},{"$f":"(SUMPRODUCT(AN$9:AN$229,Nutrients!$DC$8:$DC$228)+(IF($A$7=Nutrients!$B$8,Nutrients!$DC$8,Nutrients!$DC$9)*AN$7)+(((IF($A$8=Nutrients!$B$79,Nutrients!$DC$79,(IF($A$8=Nutrients!$B$77,Nutrients!$DC$77,Nutrients!$DC$78)))))*AN$8))/2000/AN$236*100","v":58.502282411178264},{"$f":"(SUMPRODUCT(AO$9:AO$229,Nutrients!$DC$8:$DC$228)+(IF($A$7=Nutrients!$B$8,Nutrients!$DC$8,Nutrients!$DC$9)*AO$7)+(((IF($A$8=Nutrients!$B$79,Nutrients!$DC$79,(IF($A$8=Nutrients!$B$77,Nutrients!$DC$77,Nutrients!$DC$78)))))*AO$8))/2000/AO$236*100","v":60.564308464358277},{"$f":"(SUMPRODUCT(AP$9:AP$229,Nutrients!$DC$8:$DC$228)+(IF($A$7=Nutrients!$B$8,Nutrients!$DC$8,Nutrients!$DC$9)*AP$7)+(((IF($A$8=Nutrients!$B$79,Nutrients!$DC$79,(IF($A$8=Nutrients!$B$77,Nutrients!$DC$77,Nutrients!$DC$78)))))*AP$8))/2000/AP$236*100","v":57.994909290351856},null,{"$f":"(SUMPRODUCT(AR$9:AR$229,Nutrients!$DC$8:$DC$228)+(IF($A$7=Nutrients!$B$8,Nutrients!$DC$8,Nutrients!$DC$9)*AR$7)+(((IF($A$8=Nutrients!$B$79,Nutrients!$DC$79,(IF($A$8=Nutrients!$B$77,Nutrients!$DC$77,Nutrients!$DC$78)))))*AR$8))/2000/AR$236*100","v":55.986521018388366},{"$f":"(SUMPRODUCT(AS$9:AS$229,Nutrients!$DC$8:$DC$228)+(IF($A$7=Nutrients!$B$8,Nutrients!$DC$8,Nutrients!$DC$9)*AS$7)+(((IF($A$8=Nutrients!$B$79,Nutrients!$DC$79,(IF($A$8=Nutrients!$B$77,Nutrients!$DC$77,Nutrients!$DC$78)))))*AS$8))/2000/AS$236*100","v":55.9833549790796},{"$f":"(SUMPRODUCT(AT$9:AT$229,Nutrients!$DC$8:$DC$228)+(IF($A$7=Nutrients!$B$8,Nutrients!$DC$8,Nutrients!$DC$9)*AT$7)+(((IF($A$8=Nutrients!$B$79,Nutrients!$DC$79,(IF($A$8=Nutrients!$B$77,Nutrients!$DC$77,Nutrients!$DC$78)))))*AT$8))/2000/AT$236*100","v":56.346271455015348},{"$f":"(SUMPRODUCT(AU$9:AU$229,Nutrients!$DC$8:$DC$228)+(IF($A$7=Nutrients!$B$8,Nutrients!$DC$8,Nutrients!$DC$9)*AU$7)+(((IF($A$8=Nutrients!$B$79,Nutrients!$DC$79,(IF($A$8=Nutrients!$B$77,Nutrients!$DC$77,Nutrients!$DC$78)))))*AU$8))/2000/AU$236*100","v":59.652277489139585},{"$f":"(SUMPRODUCT(AV$9:AV$229,Nutrients!$DC$8:$DC$228)+(IF($A$7=Nutrients!$B$8,Nutrients!$DC$8,Nutrients!$DC$9)*AV$7)+(((IF($A$8=Nutrients!$B$79,Nutrients!$DC$79,(IF($A$8=Nutrients!$B$77,Nutrients!$DC$77,Nutrients!$DC$78)))))*AV$8))/2000/AV$236*100","v":61.819610185287765},{"$f":"(SUMPRODUCT(AW$9:AW$229,Nutrients!$DC$8:$DC$228)+(IF($A$7=Nutrients!$B$8,Nutrients!$DC$8,Nutrients!$DC$9)*AW$7)+(((IF($A$8=Nutrients!$B$79,Nutrients!$DC$79,(IF($A$8=Nutrients!$B$77,Nutrients!$DC$77,Nutrients!$DC$78)))))*AW$8))/2000/AW$236*100","v":57.994909290351856}]
["  Thr:Lys",{"$f":"(SUMPRODUCT(B$9:B$229,Nutrients!$DF$8:$DF$228)+(IF($A$7=Nutrients!$B$8,Nutrients!$DF$8,Nutrients!$DF$9)*B$7)+(((IF($A$8=Nutrients!$B$79,Nutrients!$DF$79,(IF($A$8=Nutrients!$B$77,Nutrients!$DF$77,Nutrients!$DF$78)))))*B$8))/2000/B$236*100","v":61.999883344833172},{"$f":"(SUMPRODUCT(C$9:C$229,Nutrients!$DF$8:$DF$228)+(IF($A$7=Nutrients!$B$8,Nutrients!$DF$8,Nutrients!$DF$9)*C$7)+(((IF($A$8=Nutrients!$B$79,Nutrients!$DF$79,(IF($A$8=Nutrients!$B$77,Nutrients!$DF$77,Nutrients!$DF$78)))))*C$8))/2000/C$236*100","v":61.999810412599423},{"$f":"(SUMPRODUCT(D$9:D$229,Nutrients!$DF$8:$DF$228)+(IF($A$7=Nutrients!$B$8,Nutrients!$DF$8,Nutrients!$DF$9)*D$7)+(((IF($A$8=Nutrients!$B$79,Nutrients!$DF$79,(IF($A$8=Nutrients!$B$77,Nutrients!$DF$77,Nutrients!$DF$78)))))*D$8))/2000/D$236*100","v":61.998899620636607},{"$f":"(SUMPRODUCT(E$9:E$229,Nutrients!$DF$8:$DF$228)+(IF($A$7=Nutrients!$B$8,Nutrients!$DF$8,Nutrients!$DF$9)*E$7)+(((IF($A$8=Nutrients!$B$79,Nutrients!$DF$79,(IF($A$8=Nutrients!$B$77,Nutrients!$DF$77,Nutrients!$DF$78)))))*E$8))/2000/E$236*100","v":63.099738392882202},{"$f":"(SUMPRODUCT(F$9:F$229,Nutrients!$DF$8:$DF$228)+(IF($A$7=Nutrients!$B$8,Nutrients!$DF$8,Nutrients!$DF$9)*F$7)+(((IF($A$8=Nutrients!$B$79,Nutrients!$DF$79,(IF($A$8=Nutrients!$B$77,Nutrients!$DF$77,Nutrients!$DF$78)))))*F$8))/2000/F$236*100","v":63.259126445235324},{"$f":"(SUMPRODUCT(G$9:G$229,Nutrients!$DF$8:$DF$228)+(IF($A$7=Nutrients!$B$8,Nutrients!$DF$8,Nutrients!$DF$9)*G$7)+(((IF($A$8=Nutrients!$B$79,Nutrients!$DF$79,(IF($A$8=Nutrients!$B$77,Nutrients!$DF$77,Nutrients!$DF$78)))))*G$8))/2000/G$236*100","v":63.997526400855939},null,{"$f":"(SUMPRODUCT(I$9:I$229,Nutrients!$DF$8:$DF$228)+(IF($A$7=Nutrients!$B$8,Nutrients!$DF$8,Nutrients!$DF$9)*I$7)+(((IF($A$8=Nutrients!$B$79,Nutrients!$DF$79,(IF($A$8=Nutrients!$B$77,Nutrients!$DF$77,Nutrients!$DF$78)))))*I$8))/2000/I$236*100","v":61.972422233007066},{"$f":"(SUMPRODUCT(J$9:J$229,Nutrients!$DF$8:$DF$228)+(IF($A$7=Nutrients!$B$8,Nutrients!$DF$8,Nutrients!$DF$9)*J$7)+(((IF($A$8=Nutrients!$B$79,Nutrients!$DF$79,(IF($A$8=Nutrients!$B$77,Nutrients!$DF$77,Nutrients!$DF$78)))))*J$8))/2000/J$236*100","v":61.967075492406551},{"$f":"(SUMPRODUCT(K$9:K$229,Nutrients!$DF$8:$DF$228)+(IF($A$7=Nutrients!$B$8,Nutrients!$DF$8,Nutrients!$DF$9)*K$7)+(((IF($A$8=Nutrients!$B$79,Nutrients!$DF$79,(IF($A$8=Nutrients!$B$77,Nutrients!$DF$77,Nutrients!$DF$78)))))*K$8))/2000/K$236*100","v":61.962839291501993},{"$f":"(SUMPRODUCT(L$9:L$229,Nutrients!$DF$8:$DF$228)+(IF($A$7=Nutrients!$B$8,Nutrients!$DF$8,Nutrients!$DF$9)*L$7)+(((IF($A$8=Nutrients!$B$79,Nutrients!$DF$79,(IF($A$8=Nutrients!$B$77,Nutrients!$DF$77,Nutrients!$DF$78)))))*L$8))/2000/L$236*100","v":62.998733962907352},{"$f":"(SUMPRODUCT(M$9:M$229,Nutrients!$DF$8:$DF$228)+(IF($A$7=Nutrients!$B$8,Nutrients!$DF$8,Nutrients!$DF$9)*M$7)+(((IF($A$8=Nutrients!$B$79,Nutrients!$DF$79,(IF($A$8=Nutrients!$B$77,Nutrients!$DF$77,Nutrients!$DF$78)))))*M$8))/2000/M$236*100","v":63.018696565502999},{"$f":"(SUMPRODUCT(N$9:N$229,Nutrients!$DF$8:$DF$228)+(IF($A$7=Nutrients!$B$8,Nutrients!$DF$8,Nutrients!$DF$9)*N$7)+(((IF($A$8=Nutrients!$B$79,Nutrients!$DF$79,(IF($A$8=Nutrients!$B$77,Nutrients!$DF$77,Nutrients!$DF$78)))))*N$8))/2000/N$236*100","v":63.997526400855939},null,{"$f":"(SUMPRODUCT(P$9:P$229,Nutrients!$DF$8:$DF$228)+(IF($A$7=Nutrients!$B$8,Nutrients!$DF$8,Nutrients!$DF$9)*P$7)+(((IF($A$8=Nutrients!$B$79,Nutrients!$DF$79,(IF($A$8=Nutrients!$B$77,Nutrients!$DF$77,Nutrients!$DF$78)))))*P$8))/2000/P$236*100","v":61.944010207716261},{"$f":"(SUMPRODUCT(Q$9:Q$229,Nutrients!$DF$8:$DF$228)+(IF($A$7=Nutrients!$B$8,Nutrients!$DF$8,Nutrients!$DF$9)*Q$7)+(((IF($A$8=Nutrients!$B$79,Nutrients!$DF$79,(IF($A$8=Nutrients!$B$77,Nutrients!$DF$77,Nutrients!$DF$78)))))*Q$8))/2000/Q$236*100","v":61.981480338144976},{"$f":"(SUMPRODUCT(R$9:R$229,Nutrients!$DF$8:$DF$228)+(IF($A$7=Nutrients!$B$8,Nutrients!$DF$8,Nutrients!$DF$9)*R$7)+(((IF($A$8=Nutrients!$B$79,Nutrients!$DF$79,(IF($A$8=Nutrients!$B$77,Nutrients!$DF$77,Nutrients!$DF$78)))))*R$8))/2000/R$236*100","v":61.978644928766613},{"$f":"(SUMPRODUCT(S$9:S$229,Nutrients!$DF$8:$DF$228)+(IF($A$7=Nutrients!$B$8,Nutrients!$DF$8,Nutrients!$DF$9)*S$7)+(((IF($A$8=Nutrients!$B$79,Nutrients!$DF$79,(IF($A$8=Nutrients!$B$77,Nutrients!$DF$77,Nutrients!$DF$78)))))*S$8))/2000/S$236*100","v":62.957002685246323},{"$f":"(SUMPRODUCT(T$9:T$229,Nutrients!$DF$8:$DF$228)+(IF($A$7=Nutrients!$B$8,Nutrients!$DF$8,Nutrients!$DF$9)*T$7)+(((IF($A$8=Nutrients!$B$79,Nutrients!$DF$79,(IF($A$8=Nutrients!$B$77,Nutrients!$DF$77,Nutrients!$DF$78)))))*T$8))/2000/T$236*100","v":62.973520681498648},{"$f":"(SUMPRODUCT(U$9:U$229,Nutrients!$DF$8:$DF$228)+(IF($A$7=Nutrients!$B$8,Nutrients!$DF$8,Nutrients!$DF$9)*U$7)+(((IF($A$8=Nutrients!$B$79,Nutrients!$DF$79,(IF($A$8=Nutrients!$B$77,Nutrients!$DF$77,Nutrients!$DF$78)))))*U$8))/2000/U$236*100","v":63.997526400855939},null,{"$f":"(SUMPRODUCT(W$9:W$229,Nutrients!$DF$8:$DF$228)+(IF($A$7=Nutrients!$B$8,Nutrients!$DF$8,Nutrients!$DF$9)*W$7)+(((IF($A$8=Nutrients!$B$79,Nutrients!$DF$79,(IF($A$8=Nutrients!$B$77,Nutrients!$DF$77,Nutrients!$DF$78)))))*W$8))/2000/W$236*100","v":61.957453069165894},{"$f":"(SUMPRODUCT(X$9:X$229,Nutrients!$DF$8:$DF$228)+(IF($A$7=Nutrients!$B$8,Nutrients!$DF$8,Nutrients!$DF$9)*X$7)+(((IF($A$8=Nutrients!$B$79,Nutrients!$DF$79,(IF($A$8=Nutrients!$B$77,Nutrients!$DF$77,Nutrients!$DF$78)))))*X$8))/2000/X$236*100","v":61.996002374038916},{"$f":"(SUMPRODUCT(Y$9:Y$229,Nutrients!$DF$8:$DF$228)+(IF($A$7=Nutrients!$B$8,Nutrients!$DF$8,Nutrients!$DF$9)*Y$7)+(((IF($A$8=Nutrients!$B$79,Nutrients!$DF$79,(IF($A$8=Nutrients!$B$77,Nutrients!$DF$77,Nutrients!$DF$78)))))*Y$8))/2000/Y$236*100","v":61.995209506641778},{"$f":"(SUMPRODUCT(Z$9:Z$229,Nutrients!$DF$8:$DF$228)+(IF($A$7=Nutrients!$B$8,Nutrients!$DF$8,Nutrients!$DF$9)*Z$7)+(((IF($A$8=Nutrients!$B$79,Nutrients!$DF$79,(IF($A$8=Nutrients!$B$77,Nutrients!$DF$77,Nutrients!$DF$78)))))*Z$8))/2000/Z$236*100","v":62.974613964196891},{"$f":"(SUMPRODUCT(AA$9:AA$229,Nutrients!$DF$8:$DF$228)+(IF($A$7=Nutrients!$B$8,Nutrients!$DF$8,Nutrients!$DF$9)*AA$7)+(((IF($A$8=Nutrients!$B$79,Nutrients!$DF$79,(IF($A$8=Nutrients!$B$77,Nutrients!$DF$77,Nutrients!$DF$78)))))*AA$8))/2000/AA$236*100","v":62.99167809387135},{"$f":"(SUMPRODUCT(AB$9:AB$229,Nutrients!$DF$8:$DF$228)+(IF($A$7=Nutrients!$B$8,Nutrients!$DF$8,Nutrients!$DF$9)*AB$7)+(((IF($A$8=Nutrients!$B$79,Nutrients!$DF$79,(IF($A$8=Nutrients!$B$77,Nutrients!$DF$77,Nutrients!$DF$78)))))*AB$8))/2000/AB$236*100","v":63.997526400855939},null,{"$f":"(SUMPRODUCT(AD$9:AD$229,Nutrients!$DF$8:$DF$228)+(IF($A$7=Nutrients!$B$8,Nutrients!$DF$8,Nutrients!$DF$9)*AD$7)+(((IF($A$8=Nutrients!$B$79,Nutrients!$DF$79,(IF($A$8=Nutrients!$B$77,Nutrients!$DF$77,Nutrients!$DF$78)))))*AD$8))/2000/AD$236*100","v":61.970322468756635},{"$f":"(SUMPRODUCT(AE$9:AE$229,Nutrients!$DF$8:$DF$228)+(IF($A$7=Nutrients!$B$8,Nutrients!$DF$8,Nutrients!$DF$9)*AE$7)+(((IF($A$8=Nutrients!$B$79,Nutrients!$DF$79,(IF($A$8=Nutrients!$B$77,Nutrients!$DF$77,Nutrients!$DF$78)))))*AE$8))/2000/AE$236*100","v":62.010827908908773},{"$f":"(SUMPRODUCT(AF$9:AF$229,Nutrients!$DF$8:$DF$228)+(IF($A$7=Nutrients!$B$8,Nutrients!$DF$8,Nutrients!$DF$9)*AF$7)+(((IF($A$8=Nutrients!$B$79,Nutrients!$DF$79,(IF($A$8=Nutrients!$B$77,Nutrients!$DF$77,Nutrients!$DF$78)))))*AF$8))/2000/AF$236*100","v":62.010915177472292},{"$f":"(SUMPRODUCT(AG$9:AG$229,Nutrients!$DF$8:$DF$228)+(IF($A$7=Nutrients!$B$8,Nutrients!$DF$8,Nutrients!$DF$9)*AG$7)+(((IF($A$8=Nutrients!$B$79,Nutrients!$DF$79,(IF($A$8=Nutrients!$B$77,Nutrients!$DF$77,Nutrients!$DF$78)))))*AG$8))/2000/AG$236*100","v":62.991737093017306},{"$f":"(SUMPRODUCT(AH$9:AH$229,Nutrients!$DF$8:$DF$228)+(IF($A$7=Nutrients!$B$8,Nutrients!$DF$8,Nutrients!$DF$9)*AH$7)+(((IF($A$8=Nutrients!$B$79,Nutrients!$DF$79,(IF($A$8=Nutrients!$B$77,Nutrients!$DF$77,Nutrients!$DF$78)))))*AH$8))/2000/AH$236*100","v":62.991989344717858},{"$f":"(SUMPRODUCT(AI$9:AI$229,Nutrients!$DF$8:$DF$228)+(IF($A$7=Nutrients!$B$8,Nutrients!$DF$8,Nutrients!$DF$9)*AI$7)+(((IF($A$8=Nutrients!$B$79,Nutrients!$DF$79,(IF($A$8=Nutrients!$B$77,Nutrients!$DF$77,Nutrients!$DF$78)))))*AI$8))/2000/AI$236*100","v":63.997526400855939},null,{"$f":"(SUMPRODUCT(AK$9:AK$229,Nutrients!$DF$8:$DF$228)+(IF($A$7=Nutrients!$B$8,Nutrients!$DF$8,Nutrients!$DF$9)*AK$7)+(((IF($A$8=Nutrients!$B$79,Nutrients!$DF$79,(IF($A$8=Nutrients!$B$77,Nutrients!$DF$77,Nutrients!$DF$78)))))*AK$8))/2000/AK$236*100","v":61.982781794099886},{"$f":"(SUMPRODUCT(AL$9:AL$229,Nutrients!$DF$8:$DF$228)+(IF($A$7=Nutrients!$B$8,Nutrients!$DF$8,Nutrients!$DF$9)*AL$7)+(((IF($A$8=Nutrients!$B$79,Nutrients!$DF$79,(IF($A$8=Nutrients!$B$77,Nutrients!$DF$77,Nutrients!$DF$78)))))*AL$8))/2000/AL$236*100","v":62.02470156702072},{"$f":"(SUMPRODUCT(AM$9:AM$229,Nutrients!$DF$8:$DF$228)+(IF($A$7=Nutrients!$B$8,Nutrients!$DF$8,Nutrients!$DF$9)*AM$7)+(((IF($A$8=Nutrients!$B$79,Nutrients!$DF$79,(IF($A$8=Nutrients!$B$77,Nutrients!$DF$77,Nutrients!$DF$78)))))*AM$8))/2000/AM$236*100","v":62.026972678214932},{"$f":"(SUMPRODUCT(AN$9:AN$229,Nutrients!$DF$8:$DF$228)+(IF($A$7=Nutrients!$B$8,Nutrients!$DF$8,Nutrients!$DF$9)*AN$7)+(((IF($A$8=Nutrients!$B$79,Nutrients!$DF$79,(IF($A$8=Nutrients!$B$77,Nutrients!$DF$77,Nutrients!$DF$78)))))*AN$8))/2000/AN$236*100","v":62.994431916126359},{"$f":"(SUMPRODUCT(AO$9:AO$229,Nutrients!$DF$8:$DF$228)+(IF($A$7=Nutrients!$B$8,Nutrients!$DF$8,Nutrients!$DF$9)*AO$7)+(((IF($A$8=Nutrients!$B$79,Nutrients!$DF$79,(IF($A$8=Nutrients!$B$77,Nutrients!$DF$77,Nutrients!$DF$78)))))*AO$8))/2000/AO$236*100","v":62.98741770708687},{"$f":"(SUMPRODUCT(AP$9:AP$229,Nutrients!$DF$8:$DF$228)+(IF($A$7=Nutrients!$B$8,Nutrients!$DF$8,Nutrients!$DF$9)*AP$7)+(((IF($A$8=Nutrients!$B$79,Nutrients!$DF$79,(IF($A$8=Nutrients!$B$77,Nutrients!$DF$77,Nutrients!$DF$78)))))*AP$8))/2000/AP$236*100","v":63.997526400855939},null,{"$f":"(SUMPRODUCT(AR$9:AR$229,Nutrients!$DF$8:$DF$228)+(IF($A$7=Nutrients!$B$8,Nutrients!$DF$8,Nutrients!$DF$9)*AR$7)+(((IF($A$8=Nutrients!$B$79,Nutrients!$DF$79,(IF($A$8=Nutrients!$B$77,Nutrients!$DF$77,Nutrients!$DF$78)))))*AR$8))/2000/AR$236*100","v":61.994480860813837},{"$f":"(SUMPRODUCT(AS$9:AS$229,Nutrients!$DF$8:$DF$228)+(IF($A$7=Nutrients!$B$8,Nutrients!$DF$8,Nutrients!$DF$9)*AS$7)+(((IF($A$8=Nutrients!$B$79,Nutrients!$DF$79,(IF($A$8=Nutrients!$B$77,Nutrients!$DF$77,Nutrients!$DF$78)))))*AS$8))/2000/AS$236*100","v":62.038446310317156},{"$f":"(SUMPRODUCT(AT$9:AT$229,Nutrients!$DF$8:$DF$228)+(IF($A$7=Nutrients!$B$8,Nutrients!$DF$8,Nutrients!$DF$9)*AT$7)+(((IF($A$8=Nutrients!$B$79,Nutrients!$DF$79,(IF($A$8=Nutrients!$B$77,Nutrients!$DF$77,Nutrients!$DF$78)))))*AT$8))/2000/AT$236*100","v":62.040542052636525},{"$f":"(SUMPRODUCT(AU$9:AU$229,Nutrients!$DF$8:$DF$228)+(IF($A$7=Nutrients!$B$8,Nutrients!$DF$8,Nutrients!$DF$9)*AU$7)+(((IF($A$8=Nutrients!$B$79,Nutrients!$DF$79,(IF($A$8=Nutrients!$B$77,Nutrients!$DF$77,Nutrients!$DF$78)))))*AU$8))/2000/AU$236*100","v":62.990269547896268},{"$f":"(SUMPRODUCT(AV$9:AV$229,Nutrients!$DF$8:$DF$228)+(IF($A$7=Nutrients!$B$8,Nutrients!$DF$8,Nutrients!$DF$9)*AV$7)+(((IF($A$8=Nutrients!$B$79,Nutrients!$DF$79,(IF($A$8=Nutrients!$B$77,Nutrients!$DF$77,Nutrients!$DF$78)))))*AV$8))/2000/AV$236*100","v":62.982842640723746},{"$f":"(SUMPRODUCT(AW$9:AW$229,Nutrients!$DF$8:$DF$228)+(IF($A$7=Nutrients!$B$8,Nutrients!$DF$8,Nutrients!$DF$9)*AW$7)+(((IF($A$8=Nutrients!$B$79,Nutrients!$DF$79,(IF($A$8=Nutrients!$B$77,Nutrients!$DF$77,Nutrients!$DF$78)))))*AW$8))/2000/AW$236*100","v":63.997526400855939}]
["  Trp:Lys",{"$f":"(SUMPRODUCT(B$9:B$229,Nutrients!$DG$8:$DG$228)+(IF($A$7=Nutrients!$B$8,Nutrients!$DG$8,Nutrients!$DG$9)*B$7)+(((IF($A$8=Nutrients!$B$79,Nutrients!$DG$79,(IF($A$8=Nutrients!$B$77,Nutrients!$DG$77,Nutrients!$DG$78)))))*B$8))/2000/B$236*100","v":19.000000000000007},{"$f":"(SUMPRODUCT(C$9:C$229,Nutrients!$DG$8:$DG$228)+(IF($A$7=Nutrients!$B$8,Nutrients!$DG$8,Nutrients!$DG$9)*C$7)+(((IF($A$8=Nutrients!$B$79,Nutrients!$DG$79,(IF($A$8=Nutrients!$B$77,Nutrients!$DG$77,Nutrients!$DG$78)))))*C$8))/2000/C$236*100","v":18.999991891262606},{"$f":"(SUMPRODUCT(D$9:D$229,Nutrients!$DG$8:$DG$228)+(IF($A$7=Nutrients!$B$8,Nutrients!$DG$8,Nutrients!$DG$9)*D$7)+(((IF($A$8=Nutrients!$B$79,Nutrients!$DG$79,(IF($A$8=Nutrients!$B$77,Nutrients!$DG$77,Nutrients!$DG$78)))))*D$8))/2000/D$236*100","v":18.999965465148328},{"$f":"(SUMPRODUCT(E$9:E$229,Nutrients!$DG$8:$DG$228)+(IF($A$7=Nutrients!$B$8,Nutrients!$DG$8,Nutrients!$DG$9)*E$7)+(((IF($A$8=Nutrients!$B$79,Nutrients!$DG$79,(IF($A$8=Nutrients!$B$77,Nutrients!$DG$77,Nutrients!$DG$78)))))*E$8))/2000/E$236*100","v":19.040987478551372},{"$f":"(SUMPRODUCT(F$9:F$229,Nutrients!$DG$8:$DG$228)+(IF($A$7=Nutrients!$B$8,Nutrients!$DG$8,Nutrients!$DG$9)*F$7)+(((IF($A$8=Nutrients!$B$79,Nutrients!$DG$79,(IF($A$8=Nutrients!$B$77,Nutrients!$DG$77,Nutrients!$DG$78)))))*F$8))/2000/F$236*100","v":19.105485625301228},{"$f":"(SUMPRODUCT(G$9:G$229,Nutrients!$DG$8:$DG$228)+(IF($A$7=Nutrients!$B$8,Nutrients!$DG$8,Nutrients!$DG$9)*G$7)+(((IF($A$8=Nutrients!$B$79,Nutrients!$DG$79,(IF($A$8=Nutrients!$B$77,Nutrients!$DG$77,Nutrients!$DG$78)))))*G$8))/2000/G$236*100","v":19.003555679157927},null,{"$f":"(SUMPRODUCT(I$9:I$229,Nutrients!$DG$8:$DG$228)+(IF($A$7=Nutrients!$B$8,Nutrients!$DG$8,Nutrients!$DG$9)*I$7)+(((IF($A$8=Nutrients!$B$79,Nutrients!$DG$79,(IF($A$8=Nutrients!$B$77,Nutrients!$DG$77,Nutrients!$DG$78)))))*I$8))/2000/I$236*100","v":19.02669178997396},{"$f":"(SUMPRODUCT(J$9:J$229,Nutrients!$DG$8:$DG$228)+(IF($A$7=Nutrients!$B$8,Nutrients!$DG$8,Nutrients!$DG$9)*J$7)+(((IF($A$8=Nutrients!$B$79,Nutrients!$DG$79,(IF($A$8=Nutrients!$B$77,Nutrients!$DG$77,Nutrients!$DG$78)))))*J$8))/2000/J$236*100","v":19.025269913236961},{"$f":"(SUMPRODUCT(K$9:K$229,Nutrients!$DG$8:$DG$228)+(IF($A$7=Nutrients!$B$8,Nutrients!$DG$8,Nutrients!$DG$9)*K$7)+(((IF($A$8=Nutrients!$B$79,Nutrients!$DG$79,(IF($A$8=Nutrients!$B$77,Nutrients!$DG$77,Nutrients!$DG$78)))))*K$8))/2000/K$236*100","v":19.024126552535716},{"$f":"(SUMPRODUCT(L$9:L$229,Nutrients!$DG$8:$DG$228)+(IF($A$7=Nutrients!$B$8,Nutrients!$DG$8,Nutrients!$DG$9)*L$7)+(((IF($A$8=Nutrients!$B$79,Nutrients!$DG$79,(IF($A$8=Nutrients!$B$77,Nutrients!$DG$77,Nutrients!$DG$78)))))*L$8))/2000/L$236*100","v":19.023477319672793},{"$f":"(SUMPRODUCT(M$9:M$229,Nutrients!$DG$8:$DG$228)+(IF($A$7=Nutrients!$B$8,Nutrients!$DG$8,Nutrients!$DG$9)*M$7)+(((IF($A$8=Nutrients!$B$79,Nutrients!$DG$79,(IF($A$8=Nutrients!$B$77,Nutrients!$DG$77,Nutrients!$DG$78)))))*M$8))/2000/M$236*100","v":19.025765325755533},{"$f":"(SUMPRODUCT(N$9:N$229,Nutrients!$DG$8:$DG$228)+(IF($A$7=Nutrients!$B$8,Nutrients!$DG$8,Nutrients!$DG$9)*N$7)+(((IF($A$8=Nutrients!$B$79,Nutrients!$DG$79,(IF($A$8=Nutrients!$B$77,Nutrients!$DG$77,Nutrients!$DG$78)))))*N$8))/2000/N$236*100","v":19.003555679157927},null,{"$f":"(SUMPRODUCT(P$9:P$229,Nutrients!$DG$8:$DG$228)+(IF($A$7=Nutrients!$B$8,Nutrients!$DG$8,Nutrients!$DG$9)*P$7)+(((IF($A$8=Nutrients!$B$79,Nutrients!$DG$79,(IF($A$8=Nutrients!$B$77,Nutrients!$DG$77,Nutrients!$DG$78)))))*P$8))/2000/P$236*100","v":19.047716994541275},{"$f":"(SUMPRODUCT(Q$9:Q$229,Nutrients!$DG$8:$DG$228)+(IF($A$7=Nutrients!$B$8,Nutrients!$DG$8,Nutrients!$DG$9)*Q$7)+(((IF($A$8=Nutrients!$B$79,Nutrients!$DG$79,(IF($A$8=Nutrients!$B$77,Nutrients!$DG$77,Nutrients!$DG$78)))))*Q$8))/2000/Q$236*100","v":19.045999005840457},{"$f":"(SUMPRODUCT(R$9:R$229,Nutrients!$DG$8:$DG$228)+(IF($A$7=Nutrients!$B$8,Nutrients!$DG$8,Nutrients!$DG$9)*R$7)+(((IF($A$8=Nutrients!$B$79,Nutrients!$DG$79,(IF($A$8=Nutrients!$B$77,Nutrients!$DG$77,Nutrients!$DG$78)))))*R$8))/2000/R$236*100","v":19.024724824045673},{"$f":"(SUMPRODUCT(S$9:S$229,Nutrients!$DG$8:$DG$228)+(IF($A$7=Nutrients!$B$8,Nutrients!$DG$8,Nutrients!$DG$9)*S$7)+(((IF($A$8=Nutrients!$B$79,Nutrients!$DG$79,(IF($A$8=Nutrients!$B$77,Nutrients!$DG$77,Nutrients!$DG$78)))))*S$8))/2000/S$236*100","v":19.024157160210624},{"$f":"(SUMPRODUCT(T$9:T$229,Nutrients!$DG$8:$DG$228)+(IF($A$7=Nutrients!$B$8,Nutrients!$DG$8,Nutrients!$DG$9)*T$7)+(((IF($A$8=Nutrients!$B$79,Nutrients!$DG$79,(IF($A$8=Nutrients!$B$77,Nutrients!$DG$77,Nutrients!$DG$78)))))*T$8))/2000/T$236*100","v":19.026528571495998},{"$f":"(SUMPRODUCT(U$9:U$229,Nutrients!$DG$8:$DG$228)+(IF($A$7=Nutrients!$B$8,Nutrients!$DG$8,Nutrients!$DG$9)*U$7)+(((IF($A$8=Nutrients!$B$79,Nutrients!$DG$79,(IF($A$8=Nutrients!$B$77,Nutrients!$DG$77,Nutrients!$DG$78)))))*U$8))/2000/U$236*100","v":19.003555679157927},null,{"$f":"(SUMPRODUCT(W$9:W$229,Nutrients!$DG$8:$DG$228)+(IF($A$7=Nutrients!$B$8,Nutrients!$DG$8,Nutrients!$DG$9)*W$7)+(((IF($A$8=Nutrients!$B$79,Nutrients!$DG$79,(IF($A$8=Nutrients!$B$77,Nutrients!$DG$77,Nutrients!$DG$78)))))*W$8))/2000/W$236*100","v":19.048245285222858},{"$f":"(SUMPRODUCT(X$9:X$229,Nutrients!$DG$8:$DG$228)+(IF($A$7=Nutrients!$B$8,Nutrients!$DG$8,Nutrients!$DG$9)*X$7)+(((IF($A$8=Nutrients!$B$79,Nutrients!$DG$79,(IF($A$8=Nutrients!$B$77,Nutrients!$DG$77,Nutrients!$DG$78)))))*X$8))/2000/X$236*100","v":19.046558534398041},{"$f":"(SUMPRODUCT(Y$9:Y$229,Nutrients!$DG$8:$DG$228)+(IF($A$7=Nutrients!$B$8,Nutrients!$DG$8,Nutrients!$DG$9)*Y$7)+(((IF($A$8=Nutrients!$B$79,Nutrients!$DG$79,(IF($A$8=Nutrients!$B$77,Nutrients!$DG$77,Nutrients!$DG$78)))))*Y$8))/2000/Y$236*100","v":19.025365355642933},{"$f":"(SUMPRODUCT(Z$9:Z$229,Nutrients!$DG$8:$DG$228)+(IF($A$7=Nutrients!$B$8,Nutrients!$DG$8,Nutrients!$DG$9)*Z$7)+(((IF($A$8=Nutrients!$B$79,Nutrients!$DG$79,(IF($A$8=Nutrients!$B$77,Nutrients!$DG$77,Nutrients!$DG$78)))))*Z$8))/2000/Z$236*100","v":19.024821565293955},{"$f":"(SUMPRODUCT(AA$9:AA$229,Nutrients!$DG$8:$DG$228)+(IF($A$7=Nutrients!$B$8,Nutrients!$DG$8,Nutrients!$DG$9)*AA$7)+(((IF($A$8=Nutrients!$B$79,Nutrients!$DG$79,(IF($A$8=Nutrients!$B$77,Nutrients!$DG$77,Nutrients!$DG$78)))))*AA$8))/2000/AA$236*100","v":19.027194410070848},{"$f":"(SUMPRODUCT(AB$9:AB$229,Nutrients!$DG$8:$DG$228)+(IF($A$7=Nutrients!$B$8,Nutrients!$DG$8,Nutrients!$DG$9)*AB$7)+(((IF($A$8=Nutrients!$B$79,Nutrients!$DG$79,(IF($A$8=Nutrients!$B$77,Nutrients!$DG$77,Nutrients!$DG$78)))))*AB$8))/2000/AB$236*100","v":19.003555679157927},null,{"$f":"(SUMPRODUCT(AD$9:AD$229,Nutrients!$DG$8:$DG$228)+(IF($A$7=Nutrients!$B$8,Nutrients!$DG$8,Nutrients!$DG$9)*AD$7)+(((IF($A$8=Nutrients!$B$79,Nutrients!$DG$79,(IF($A$8=Nutrients!$B$77,Nutrients!$DG$77,Nutrients!$DG$78)))))*AD$8))/2000/AD$236*100","v":18.966118751639087},{"$f":"(SUMPRODUCT(AE$9:AE$229,Nutrients!$DG$8:$DG$228)+(IF($A$7=Nutrients!$B$8,Nutrients!$DG$8,Nutrients!$DG$9)*AE$7)+(((IF($A$8=Nutrients!$B$79,Nutrients!$DG$79,(IF($A$8=Nutrients!$B$77,Nutrients!$DG$77,Nutrients!$DG$78)))))*AE$8))/2000/AE$236*100","v":18.953687989035252},{"$f":"(SUMPRODUCT(AF$9:AF$229,Nutrients!$DG$8:$DG$228)+(IF($A$7=Nutrients!$B$8,Nutrients!$DG$8,Nutrients!$DG$9)*AF$7)+(((IF($A$8=Nutrients!$B$79,Nutrients!$DG$79,(IF($A$8=Nutrients!$B$77,Nutrients!$DG$77,Nutrients!$DG$78)))))*AF$8))/2000/AF$236*100","v":19.02595806072231},{"$f":"(SUMPRODUCT(AG$9:AG$229,Nutrients!$DG$8:$DG$228)+(IF($A$7=Nutrients!$B$8,Nutrients!$DG$8,Nutrients!$DG$9)*AG$7)+(((IF($A$8=Nutrients!$B$79,Nutrients!$DG$79,(IF($A$8=Nutrients!$B$77,Nutrients!$DG$77,Nutrients!$DG$78)))))*AG$8))/2000/AG$236*100","v":19.025458788715333},{"$f":"(SUMPRODUCT(AH$9:AH$229,Nutrients!$DG$8:$DG$228)+(IF($A$7=Nutrients!$B$8,Nutrients!$DG$8,Nutrients!$DG$9)*AH$7)+(((IF($A$8=Nutrients!$B$79,Nutrients!$DG$79,(IF($A$8=Nutrients!$B$77,Nutrients!$DG$77,Nutrients!$DG$78)))))*AH$8))/2000/AH$236*100","v":19.026866520897581},{"$f":"(SUMPRODUCT(AI$9:AI$229,Nutrients!$DG$8:$DG$228)+(IF($A$7=Nutrients!$B$8,Nutrients!$DG$8,Nutrients!$DG$9)*AI$7)+(((IF($A$8=Nutrients!$B$79,Nutrients!$DG$79,(IF($A$8=Nutrients!$B$77,Nutrients!$DG$77,Nutrients!$DG$78)))))*AI$8))/2000/AI$236*100","v":19.003555679157927},null,{"$f":"(SUMPRODUCT(AK$9:AK$229,Nutrients!$DG$8:$DG$228)+(IF($A$7=Nutrients!$B$8,Nutrients!$DG$8,Nutrients!$DG$9)*AK$7)+(((IF($A$8=Nutrients!$B$79,Nutrients!$DG$79,(IF($A$8=Nutrients!$B$77,Nutrients!$DG$77,Nutrients!$DG$78)))))*AK$8))/2000/AK$236*100","v":18.966592276083187},{"$f":"(SUMPRODUCT(AL$9:AL$229,Nutrients!$DG$8:$DG$228)+(IF($A$7=Nutrients!$B$8,Nutrients!$DG$8,Nutrients!$DG$9)*AL$7)+(((IF($A$8=Nutrients!$B$79,Nutrients!$DG$79,(IF($A$8=Nutrients!$B$77,Nutrients!$DG$77,Nutrients!$DG$78)))))*AL$8))/2000/AL$236*100","v":18.954211413975138},{"$f":"(SUMPRODUCT(AM$9:AM$229,Nutrients!$DG$8:$DG$228)+(IF($A$7=Nutrients!$B$8,Nutrients!$DG$8,Nutrients!$DG$9)*AM$7)+(((IF($A$8=Nutrients!$B$79,Nutrients!$DG$79,(IF($A$8=Nutrients!$B$77,Nutrients!$DG$77,Nutrients!$DG$78)))))*AM$8))/2000/AM$236*100","v":19.026570356745406},{"$f":"(SUMPRODUCT(AN$9:AN$229,Nutrients!$DG$8:$DG$228)+(IF($A$7=Nutrients!$B$8,Nutrients!$DG$8,Nutrients!$DG$9)*AN$7)+(((IF($A$8=Nutrients!$B$79,Nutrients!$DG$79,(IF($A$8=Nutrients!$B$77,Nutrients!$DG$77,Nutrients!$DG$78)))))*AN$8))/2000/AN$236*100","v":19.025292600841649},{"$f":"(SUMPRODUCT(AO$9:AO$229,Nutrients!$DG$8:$DG$228)+(IF($A$7=Nutrients!$B$8,Nutrients!$DG$8,Nutrients!$DG$9)*AO$7)+(((IF($A$8=Nutrients!$B$79,Nutrients!$DG$79,(IF($A$8=Nutrients!$B$77,Nutrients!$DG$77,Nutrients!$DG$78)))))*AO$8))/2000/AO$236*100","v":19.02626673786278},{"$f":"(SUMPRODUCT(AP$9:AP$229,Nutrients!$DG$8:$DG$228)+(IF($A$7=Nutrients!$B$8,Nutrients!$DG$8,Nutrients!$DG$9)*AP$7)+(((IF($A$8=Nutrients!$B$79,Nutrients!$DG$79,(IF($A$8=Nutrients!$B$77,Nutrients!$DG$77,Nutrients!$DG$78)))))*AP$8))/2000/AP$236*100","v":19.003555679157927},null,{"$f":"(SUMPRODUCT(AR$9:AR$229,Nutrients!$DG$8:$DG$228)+(IF($A$7=Nutrients!$B$8,Nutrients!$DG$8,Nutrients!$DG$9)*AR$7)+(((IF($A$8=Nutrients!$B$79,Nutrients!$DG$79,(IF($A$8=Nutrients!$B$77,Nutrients!$DG$77,Nutrients!$DG$78)))))*AR$8))/2000/AR$236*100","v":18.967023467048776},{"$f":"(SUMPRODUCT(AS$9:AS$229,Nutrients!$DG$8:$DG$228)+(IF($A$7=Nutrients!$B$8,Nutrients!$DG$8,Nutrients!$DG$9)*AS$7)+(((IF($A$8=Nutrients!$B$79,Nutrients!$DG$79,(IF($A$8=Nutrients!$B$77,Nutrients!$DG$77,Nutrients!$DG$78)))))*AS$8))/2000/AS$236*100","v":18.954727660551811},{"$f":"(SUMPRODUCT(AT$9:AT$229,Nutrients!$DG$8:$DG$228)+(IF($A$7=Nutrients!$B$8,Nutrients!$DG$8,Nutrients!$DG$9)*AT$7)+(((IF($A$8=Nutrients!$B$79,Nutrients!$DG$79,(IF($A$8=Nutrients!$B$77,Nutrients!$DG$77,Nutrients!$DG$78)))))*AT$8))/2000/AT$236*100","v":19.027044106439529},{"$f":"(SUMPRODUCT(AU$9:AU$229,Nutrients!$DG$8:$DG$228)+(IF($A$7=Nutrients!$B$8,Nutrients!$DG$8,Nutrients!$DG$9)*AU$7)+(((IF($A$8=Nutrients!$B$79,Nutrients!$DG$79,(IF($A$8=Nutrients!$B$77,Nutrients!$DG$77,Nutrients!$DG$78)))))*AU$8))/2000/AU$236*100","v":19.024744584007276},{"$f":"(SUMPRODUCT(AV$9:AV$229,Nutrients!$DG$8:$DG$228)+(IF($A$7=Nutrients!$B$8,Nutrients!$DG$8,Nutrients!$DG$9)*AV$7)+(((IF($A$8=Nutrients!$B$79,Nutrients!$DG$79,(IF($A$8=Nutrients!$B$77,Nutrients!$DG$77,Nutrients!$DG$78)))))*AV$8))/2000/AV$236*100","v":19.025666763905889},{"$f":"(SUMPRODUCT(AW$9:AW$229,Nutrients!$DG$8:$DG$228)+(IF($A$7=Nutrients!$B$8,Nutrients!$DG$8,Nutrients!$DG$9)*AW$7)+(((IF($A$8=Nutrients!$B$79,Nutrients!$DG$79,(IF($A$8=Nutrients!$B$77,Nutrients!$DG$77,Nutrients!$DG$78)))))*AW$8))/2000/AW$236*100","v":19.003555679157927}]
["  Val:Lys",{"$f":"(SUMPRODUCT(B$9:B$229,Nutrients!$DH$8:$DH$228)+(IF($A$7=Nutrients!$B$8,Nutrients!$DH$8,Nutrients!$DH$9)*B$7)+(((IF($A$8=Nutrients!$B$79,Nutrients!$DH$79,(IF($A$8=Nutrients!$B$77,Nutrients!$DH$77,Nutrients!$DH$78)))))*B$8))/2000/B$236*100","v":67.999142547613729},{"$f":"(SUMPRODUCT(C$9:C$229,Nutrients!$DH$8:$DH$228)+(IF($A$7=Nutrients!$B$8,Nutrients!$DH$8,Nutrients!$DH$9)*C$7)+(((IF($A$8=Nutrients!$B$79,Nutrients!$DH$79,(IF($A$8=Nutrients!$B$77,Nutrients!$DH$77,Nutrients!$DH$78)))))*C$8))/2000/C$236*100","v":68.120000000000076},{"$f":"(SUMPRODUCT(D$9:D$229,Nutrients!$DH$8:$DH$228)+(IF($A$7=Nutrients!$B$8,Nutrients!$DH$8,Nutrients!$DH$9)*D$7)+(((IF($A$8=Nutrients!$B$79,Nutrients!$DH$79,(IF($A$8=Nutrients!$B$77,Nutrients!$DH$77,Nutrients!$DH$78)))))*D$8))/2000/D$236*100","v":68.530000000000015},{"$f":"(SUMPRODUCT(E$9:E$229,Nutrients!$DH$8:$DH$228)+(IF($A$7=Nutrients!$B$8,Nutrients!$DH$8,Nutrients!$DH$9)*E$7)+(((IF($A$8=Nutrients!$B$79,Nutrients!$DH$79,(IF($A$8=Nutrients!$B$77,Nutrients!$DH$77,Nutrients!$DH$78)))))*E$8))/2000/E$236*100","v":69.691537460576043},{"$f":"(SUMPRODUCT(F$9:F$229,Nutrients!$DH$8:$DH$228)+(IF($A$7=Nutrients!$B$8,Nutrients!$DH$8,Nutrients!$DH$9)*F$7)+(((IF($A$8=Nutrients!$B$79,Nutrients!$DH$79,(IF($A$8=Nutrients!$B$77,Nutrients!$DH$77,Nutrients!$DH$78)))))*F$8))/2000/F$236*100","v":70.432280668663623},{"$f":"(SUMPRODUCT(G$9:G$229,Nutrients!$DH$8:$DH$228)+(IF($A$7=Nutrients!$B$8,Nutrients!$DH$8,Nutrients!$DH$9)*G$7)+(((IF($A$8=Nutrients!$B$79,Nutrients!$DH$79,(IF($A$8=Nutrients!$B$77,Nutrients!$DH$77,Nutrients!$DH$78)))))*G$8))/2000/G$236*100","v":70.540000000000006},null,{"$f":"(SUMPRODUCT(I$9:I$229,Nutrients!$DH$8:$DH$228)+(IF($A$7=Nutrients!$B$8,Nutrients!$DH$8,Nutrients!$DH$9)*I$7)+(((IF($A$8=Nutrients!$B$79,Nutrients!$DH$79,(IF($A$8=Nutrients!$B$77,Nutrients!$DH$77,Nutrients!$DH$78)))))*I$8))/2000/I$236*100","v":67.948763096044402},{"$f":"(SUMPRODUCT(J$9:J$229,Nutrients!$DH$8:$DH$228)+(IF($A$7=Nutrients!$B$8,Nutrients!$DH$8,Nutrients!$DH$9)*J$7)+(((IF($A$8=Nutrients!$B$79,Nutrients!$DH$79,(IF($A$8=Nutrients!$B$77,Nutrients!$DH$77,Nutrients!$DH$78)))))*J$8))/2000/J$236*100","v":68.35306236317426},{"$f":"(SUMPRODUCT(K$9:K$229,Nutrients!$DH$8:$DH$228)+(IF($A$7=Nutrients!$B$8,Nutrients!$DH$8,Nutrients!$DH$9)*K$7)+(((IF($A$8=Nutrients!$B$79,Nutrients!$DH$79,(IF($A$8=Nutrients!$B$77,Nutrients!$DH$77,Nutrients!$DH$78)))))*K$8))/2000/K$236*100","v":69.433054376695438},{"$f":"(SUMPRODUCT(L$9:L$229,Nutrients!$DH$8:$DH$228)+(IF($A$7=Nutrients!$B$8,Nutrients!$DH$8,Nutrients!$DH$9)*L$7)+(((IF($A$8=Nutrients!$B$79,Nutrients!$DH$79,(IF($A$8=Nutrients!$B$77,Nutrients!$DH$77,Nutrients!$DH$78)))))*L$8))/2000/L$236*100","v":70.531192424457274},{"$f":"(SUMPRODUCT(M$9:M$229,Nutrients!$DH$8:$DH$228)+(IF($A$7=Nutrients!$B$8,Nutrients!$DH$8,Nutrients!$DH$9)*M$7)+(((IF($A$8=Nutrients!$B$79,Nutrients!$DH$79,(IF($A$8=Nutrients!$B$77,Nutrients!$DH$77,Nutrients!$DH$78)))))*M$8))/2000/M$236*100","v":71.193957264502501},{"$f":"(SUMPRODUCT(N$9:N$229,Nutrients!$DH$8:$DH$228)+(IF($A$7=Nutrients!$B$8,Nutrients!$DH$8,Nutrients!$DH$9)*N$7)+(((IF($A$8=Nutrients!$B$79,Nutrients!$DH$79,(IF($A$8=Nutrients!$B$77,Nutrients!$DH$77,Nutrients!$DH$78)))))*N$8))/2000/N$236*100","v":70.540000000000006},null,{"$f":"(SUMPRODUCT(P$9:P$229,Nutrients!$DH$8:$DH$228)+(IF($A$7=Nutrients!$B$8,Nutrients!$DH$8,Nutrients!$DH$9)*P$7)+(((IF($A$8=Nutrients!$B$79,Nutrients!$DH$79,(IF($A$8=Nutrients!$B$77,Nutrients!$DH$77,Nutrients!$DH$78)))))*P$8))/2000/P$236*100","v":68.227731916891258},{"$f":"(SUMPRODUCT(Q$9:Q$229,Nutrients!$DH$8:$DH$228)+(IF($A$7=Nutrients!$B$8,Nutrients!$DH$8,Nutrients!$DH$9)*Q$7)+(((IF($A$8=Nutrients!$B$79,Nutrients!$DH$79,(IF($A$8=Nutrients!$B$77,Nutrients!$DH$77,Nutrients!$DH$78)))))*Q$8))/2000/Q$236*100","v":68.906124726348565},{"$f":"(SUMPRODUCT(R$9:R$229,Nutrients!$DH$8:$DH$228)+(IF($A$7=Nutrients!$B$8,Nutrients!$DH$8,Nutrients!$DH$9)*R$7)+(((IF($A$8=Nutrients!$B$79,Nutrients!$DH$79,(IF($A$8=Nutrients!$B$77,Nutrients!$DH$77,Nutrients!$DH$78)))))*R$8))/2000/R$236*100","v":70.384301525054198},{"$f":"(SUMPRODUCT(S$9:S$229,Nutrients!$DH$8:$DH$228)+(IF($A$7=Nutrients!$B$8,Nutrients!$DH$8,Nutrients!$DH$9)*S$7)+(((IF($A$8=Nutrients!$B$79,Nutrients!$DH$79,(IF($A$8=Nutrients!$B$77,Nutrients!$DH$77,Nutrients!$DH$78)))))*S$8))/2000/S$236*100","v":71.759211402314264},{"$f":"(SUMPRODUCT(T$9:T$229,Nutrients!$DH$8:$DH$228)+(IF($A$7=Nutrients!$B$8,Nutrients!$DH$8,Nutrients!$DH$9)*T$7)+(((IF($A$8=Nutrients!$B$79,Nutrients!$DH$79,(IF($A$8=Nutrients!$B$77,Nutrients!$DH$77,Nutrients!$DH$78)))))*T$8))/2000/T$236*100","v":72.284217216633792},{"$f":"(SUMPRODUCT(U$9:U$229,Nutrients!$DH$8:$DH$228)+(IF($A$7=Nutrients!$B$8,Nutrients!$DH$8,Nutrients!$DH$9)*U$7)+(((IF($A$8=Nutrients!$B$79,Nutrients!$DH$79,(IF($A$8=Nutrients!$B$77,Nutrients!$DH$77,Nutrients!$DH$78)))))*U$8))/2000/U$236*100","v":70.540000000000006},null,{"$f":"(SUMPRODUCT(W$9:W$229,Nutrients!$DH$8:$DH$228)+(IF($A$7=Nutrients!$B$8,Nutrients!$DH$8,Nutrients!$DH$9)*W$7)+(((IF($A$8=Nutrients!$B$79,Nutrients!$DH$79,(IF($A$8=Nutrients!$B$77,Nutrients!$DH$77,Nutrients!$DH$78)))))*W$8))/2000/W$236*100","v":68.50426742049649},{"$f":"(SUMPRODUCT(X$9:X$229,Nutrients!$DH$8:$DH$228)+(IF($A$7=Nutrients!$B$8,Nutrients!$DH$8,Nutrients!$DH$9)*X$7)+(((IF($A$8=Nutrients!$B$79,Nutrients!$DH$79,(IF($A$8=Nutrients!$B$77,Nutrients!$DH$77,Nutrients!$DH$78)))))*X$8))/2000/X$236*100","v":69.679187089522841},{"$f":"(SUMPRODUCT(Y$9:Y$229,Nutrients!$DH$8:$DH$228)+(IF($A$7=Nutrients!$B$8,Nutrients!$DH$8,Nutrients!$DH$9)*Y$7)+(((IF($A$8=Nutrients!$B$79,Nutrients!$DH$79,(IF($A$8=Nutrients!$B$77,Nutrients!$DH$77,Nutrients!$DH$78)))))*Y$8))/2000/Y$236*100","v":71.405055140104196},{"$f":"(SUMPRODUCT(Z$9:Z$229,Nutrients!$DH$8:$DH$228)+(IF($A$7=Nutrients!$B$8,Nutrients!$DH$8,Nutrients!$DH$9)*Z$7)+(((IF($A$8=Nutrients!$B$79,Nutrients!$DH$79,(IF($A$8=Nutrients!$B$77,Nutrients!$DH$77,Nutrients!$DH$78)))))*Z$8))/2000/Z$236*100","v":73.579501925484621},{"$f":"(SUMPRODUCT(AA$9:AA$229,Nutrients!$DH$8:$DH$228)+(IF($A$7=Nutrients!$B$8,Nutrients!$DH$8,Nutrients!$DH$9)*AA$7)+(((IF($A$8=Nutrients!$B$79,Nutrients!$DH$79,(IF($A$8=Nutrients!$B$77,Nutrients!$DH$77,Nutrients!$DH$78)))))*AA$8))/2000/AA$236*100","v":74.269507616025237},{"$f":"(SUMPRODUCT(AB$9:AB$229,Nutrients!$DH$8:$DH$228)+(IF($A$7=Nutrients!$B$8,Nutrients!$DH$8,Nutrients!$DH$9)*AB$7)+(((IF($A$8=Nutrients!$B$79,Nutrients!$DH$79,(IF($A$8=Nutrients!$B$77,Nutrients!$DH$77,Nutrients!$DH$78)))))*AB$8))/2000/AB$236*100","v":70.540000000000006},null,{"$f":"(SUMPRODUCT(AD$9:AD$229,Nutrients!$DH$8:$DH$228)+(IF($A$7=Nutrients!$B$8,Nutrients!$DH$8,Nutrients!$DH$9)*AD$7)+(((IF($A$8=Nutrients!$B$79,Nutrients!$DH$79,(IF($A$8=Nutrients!$B$77,Nutrients!$DH$77,Nutrients!$DH$78)))))*AD$8))/2000/AD$236*100","v":69.28546383378287},{"$f":"(SUMPRODUCT(AE$9:AE$229,Nutrients!$DH$8:$DH$228)+(IF($A$7=Nutrients!$B$8,Nutrients!$DH$8,Nutrients!$DH$9)*AE$7)+(((IF($A$8=Nutrients!$B$79,Nutrients!$DH$79,(IF($A$8=Nutrients!$B$77,Nutrients!$DH$77,Nutrients!$DH$78)))))*AE$8))/2000/AE$236*100","v":70.472408638561959},{"$f":"(SUMPRODUCT(AF$9:AF$229,Nutrients!$DH$8:$DH$228)+(IF($A$7=Nutrients!$B$8,Nutrients!$DH$8,Nutrients!$DH$9)*AF$7)+(((IF($A$8=Nutrients!$B$79,Nutrients!$DH$79,(IF($A$8=Nutrients!$B$77,Nutrients!$DH$77,Nutrients!$DH$78)))))*AF$8))/2000/AF$236*100","v":73.02730064438046},{"$f":"(SUMPRODUCT(AG$9:AG$229,Nutrients!$DH$8:$DH$228)+(IF($A$7=Nutrients!$B$8,Nutrients!$DH$8,Nutrients!$DH$9)*AG$7)+(((IF($A$8=Nutrients!$B$79,Nutrients!$DH$79,(IF($A$8=Nutrients!$B$77,Nutrients!$DH$77,Nutrients!$DH$78)))))*AG$8))/2000/AG$236*100","v":75.398973889885895},{"$f":"(SUMPRODUCT(AH$9:AH$229,Nutrients!$DH$8:$DH$228)+(IF($A$7=Nutrients!$B$8,Nutrients!$DH$8,Nutrients!$DH$9)*AH$7)+(((IF($A$8=Nutrients!$B$79,Nutrients!$DH$79,(IF($A$8=Nutrients!$B$77,Nutrients!$DH$77,Nutrients!$DH$78)))))*AH$8))/2000/AH$236*100","v":76.224872525062196},{"$f":"(SUMPRODUCT(AI$9:AI$229,Nutrients!$DH$8:$DH$228)+(IF($A$7=Nutrients!$B$8,Nutrients!$DH$8,Nutrients!$DH$9)*AI$7)+(((IF($A$8=Nutrients!$B$79,Nutrients!$DH$79,(IF($A$8=Nutrients!$B$77,Nutrients!$DH$77,Nutrients!$DH$78)))))*AI$8))/2000/AI$236*100","v":70.540000000000006},null,{"$f":"(SUMPRODUCT(AK$9:AK$229,Nutrients!$DH$8:$DH$228)+(IF($A$7=Nutrients!$B$8,Nutrients!$DH$8,Nutrients!$DH$9)*AK$7)+(((IF($A$8=Nutrients!$B$79,Nutrients!$DH$79,(IF($A$8=Nutrients!$B$77,Nutrients!$DH$77,Nutrients!$DH$78)))))*AK$8))/2000/AK$236*100","v":69.886595058790888},{"$f":"(SUMPRODUCT(AL$9:AL$229,Nutrients!$DH$8:$DH$228)+(IF($A$7=Nutrients!$B$8,Nutrients!$DH$8,Nutrients!$DH$9)*AL$7)+(((IF($A$8=Nutrients!$B$79,Nutrients!$DH$79,(IF($A$8=Nutrients!$B$77,Nutrients!$DH$77,Nutrients!$DH$78)))))*AL$8))/2000/AL$236*100","v":71.325311815871288},{"$f":"(SUMPRODUCT(AM$9:AM$229,Nutrients!$DH$8:$DH$228)+(IF($A$7=Nutrients!$B$8,Nutrients!$DH$8,Nutrients!$DH$9)*AM$7)+(((IF($A$8=Nutrients!$B$79,Nutrients!$DH$79,(IF($A$8=Nutrients!$B$77,Nutrients!$DH$77,Nutrients!$DH$78)))))*AM$8))/2000/AM$236*100","v":74.650136117688788},{"$f":"(SUMPRODUCT(AN$9:AN$229,Nutrients!$DH$8:$DH$228)+(IF($A$7=Nutrients!$B$8,Nutrients!$DH$8,Nutrients!$DH$9)*AN$7)+(((IF($A$8=Nutrients!$B$79,Nutrients!$DH$79,(IF($A$8=Nutrients!$B$77,Nutrients!$DH$77,Nutrients!$DH$78)))))*AN$8))/2000/AN$236*100","v":77.19425162502597},{"$f":"(SUMPRODUCT(AO$9:AO$229,Nutrients!$DH$8:$DH$228)+(IF($A$7=Nutrients!$B$8,Nutrients!$DH$8,Nutrients!$DH$9)*AO$7)+(((IF($A$8=Nutrients!$B$79,Nutrients!$DH$79,(IF($A$8=Nutrients!$B$77,Nutrients!$DH$77,Nutrients!$DH$78)))))*AO$8))/2000/AO$236*100","v":78.172049520310495},{"$f":"(SUMPRODUCT(AP$9:AP$229,Nutrients!$DH$8:$DH$228)+(IF($A$7=Nutrients!$B$8,Nutrients!$DH$8,Nutrients!$DH$9)*AP$7)+(((IF($A$8=Nutrients!$B$79,Nutrients!$DH$79,(IF($A$8=Nutrients!$B$77,Nutrients!$DH$77,Nutrients!$DH$78)))))*AP$8))/2000/AP$236*100","v":70.540000000000006},null,{"$f":"(SUMPRODUCT(AR$9:AR$229,Nutrients!$DH$8:$DH$228)+(IF($A$7=Nutrients!$B$8,Nutrients!$DH$8,Nutrients!$DH$9)*AR$7)+(((IF($A$8=Nutrients!$B$79,Nutrients!$DH$79,(IF($A$8=Nutrients!$B$77,Nutrients!$DH$77,Nutrients!$DH$78)))))*AR$8))/2000/AR$236*100","v":70.570557108941941},{"$f":"(SUMPRODUCT(AS$9:AS$229,Nutrients!$DH$8:$DH$228)+(IF($A$7=Nutrients!$B$8,Nutrients!$DH$8,Nutrients!$DH$9)*AS$7)+(((IF($A$8=Nutrients!$B$79,Nutrients!$DH$79,(IF($A$8=Nutrients!$B$77,Nutrients!$DH$77,Nutrients!$DH$78)))))*AS$8))/2000/AS$236*100","v":72.571454589845203},{"$f":"(SUMPRODUCT(AT$9:AT$229,Nutrients!$DH$8:$DH$228)+(IF($A$7=Nutrients!$B$8,Nutrients!$DH$8,Nutrients!$DH$9)*AT$7)+(((IF($A$8=Nutrients!$B$79,Nutrients!$DH$79,(IF($A$8=Nutrients!$B$77,Nutrients!$DH$77,Nutrients!$DH$78)))))*AT$8))/2000/AT$236*100","v":76.268799354849151},{"$f":"(SUMPRODUCT(AU$9:AU$229,Nutrients!$DH$8:$DH$228)+(IF($A$7=Nutrients!$B$8,Nutrients!$DH$8,Nutrients!$DH$9)*AU$7)+(((IF($A$8=Nutrients!$B$79,Nutrients!$DH$79,(IF($A$8=Nutrients!$B$77,Nutrients!$DH$77,Nutrients!$DH$78)))))*AU$8))/2000/AU$236*100","v":78.978030819542795},{"$f":"(SUMPRODUCT(AV$9:AV$229,Nutrients!$DH$8:$DH$228)+(IF($A$7=Nutrients!$B$8,Nutrients!$DH$8,Nutrients!$DH$9)*AV$7)+(((IF($A$8=Nutrients!$B$79,Nutrients!$DH$79,(IF($A$8=Nutrients!$B$77,Nutrients!$DH$77,Nutrients!$DH$78)))))*AV$8))/2000/AV$236*100","v":80.119220766059613},{"$f":"(SUMPRODUCT(AW$9:AW$229,Nutrients!$DH$8:$DH$228)+(IF($A$7=Nutrients!$B$8,Nutrients!$DH$8,Nutrients!$DH$9)*AW$7)+(((IF($A$8=Nutrients!$B$79,Nutrients!$DH$79,(IF($A$8=Nutrients!$B$77,Nutrients!$DH$77,Nutrients!$DH$78)))))*AW$8))/2000/AW$236*100","v":70.540000000000006}]
["  His:Lys",{"$f":"(SUMPRODUCT(B$9:B$229,Nutrients!$CX$8:$CX$228)+(IF($A$7=Nutrients!$B$8,Nutrients!$CX$8,Nutrients!$CX$9)*B$7)+(((IF($A$8=Nutrients!$B$79,Nutrients!$CX$79,(IF($A$8=Nutrients!$B$77,Nutrients!$CX$77,Nutrients!$CX$78)))))*B$8))/2000/B$236*100","v":37.643570590355239},{"$f":"(SUMPRODUCT(C$9:C$229,Nutrients!$CX$8:$CX$228)+(IF($A$7=Nutrients!$B$8,Nutrients!$CX$8,Nutrients!$CX$9)*C$7)+(((IF($A$8=Nutrients!$B$79,Nutrients!$CX$79,(IF($A$8=Nutrients!$B$77,Nutrients!$CX$77,Nutrients!$CX$78)))))*C$8))/2000/C$236*100","v":38.987979019898518},{"$f":"(SUMPRODUCT(D$9:D$229,Nutrients!$CX$8:$CX$228)+(IF($A$7=Nutrients!$B$8,Nutrients!$CX$8,Nutrients!$CX$9)*D$7)+(((IF($A$8=Nutrients!$B$79,Nutrients!$CX$79,(IF($A$8=Nutrients!$B$77,Nutrients!$CX$77,Nutrients!$CX$78)))))*D$8))/2000/D$236*100","v":40.703752845303732},{"$f":"(SUMPRODUCT(E$9:E$229,Nutrients!$CX$8:$CX$228)+(IF($A$7=Nutrients!$B$8,Nutrients!$CX$8,Nutrients!$CX$9)*E$7)+(((IF($A$8=Nutrients!$B$79,Nutrients!$CX$79,(IF($A$8=Nutrients!$B$77,Nutrients!$CX$77,Nutrients!$CX$78)))))*E$8))/2000/E$236*100","v":41.851733002385814},{"$f":"(SUMPRODUCT(F$9:F$229,Nutrients!$CX$8:$CX$228)+(IF($A$7=Nutrients!$B$8,Nutrients!$CX$8,Nutrients!$CX$9)*F$7)+(((IF($A$8=Nutrients!$B$79,Nutrients!$CX$79,(IF($A$8=Nutrients!$B$77,Nutrients!$CX$77,Nutrients!$CX$78)))))*F$8))/2000/F$236*100","v":42.150034216074545},{"$f":"(SUMPRODUCT(G$9:G$229,Nutrients!$CX$8:$CX$228)+(IF($A$7=Nutrients!$B$8,Nutrients!$CX$8,Nutrients!$CX$9)*G$7)+(((IF($A$8=Nutrients!$B$79,Nutrients!$CX$79,(IF($A$8=Nutrients!$B$77,Nutrients!$CX$77,Nutrients!$CX$78)))))*G$8))/2000/G$236*100","v":42.332060863176054},null,{"$f":"(SUMPRODUCT(I$9:I$229,Nutrients!$CX$8:$CX$228)+(IF($A$7=Nutrients!$B$8,Nutrients!$CX$8,Nutrients!$CX$9)*I$7)+(((IF($A$8=Nutrients!$B$79,Nutrients!$CX$79,(IF($A$8=Nutrients!$B$77,Nutrients!$CX$77,Nutrients!$CX$78)))))*I$8))/2000/I$236*100","v":38.1214283292638},{"$f":"(SUMPRODUCT(J$9:J$229,Nutrients!$CX$8:$CX$228)+(IF($A$7=Nutrients!$B$8,Nutrients!$CX$8,Nutrients!$CX$9)*J$7)+(((IF($A$8=Nutrients!$B$79,Nutrients!$CX$79,(IF($A$8=Nutrients!$B$77,Nutrients!$CX$77,Nutrients!$CX$78)))))*J$8))/2000/J$236*100","v":39.526542648965695},{"$f":"(SUMPRODUCT(K$9:K$229,Nutrients!$CX$8:$CX$228)+(IF($A$7=Nutrients!$B$8,Nutrients!$CX$8,Nutrients!$CX$9)*K$7)+(((IF($A$8=Nutrients!$B$79,Nutrients!$CX$79,(IF($A$8=Nutrients!$B$77,Nutrients!$CX$77,Nutrients!$CX$78)))))*K$8))/2000/K$236*100","v":41.314187397698696},{"$f":"(SUMPRODUCT(L$9:L$229,Nutrients!$CX$8:$CX$228)+(IF($A$7=Nutrients!$B$8,Nutrients!$CX$8,Nutrients!$CX$9)*L$7)+(((IF($A$8=Nutrients!$B$79,Nutrients!$CX$79,(IF($A$8=Nutrients!$B$77,Nutrients!$CX$77,Nutrients!$CX$78)))))*L$8))/2000/L$236*100","v":42.535654832994965},{"$f":"(SUMPRODUCT(M$9:M$229,Nutrients!$CX$8:$CX$228)+(IF($A$7=Nutrients!$B$8,Nutrients!$CX$8,Nutrients!$CX$9)*M$7)+(((IF($A$8=Nutrients!$B$79,Nutrients!$CX$79,(IF($A$8=Nutrients!$B$77,Nutrients!$CX$77,Nutrients!$CX$78)))))*M$8))/2000/M$236*100","v":42.896616530103024},{"$f":"(SUMPRODUCT(N$9:N$229,Nutrients!$CX$8:$CX$228)+(IF($A$7=Nutrients!$B$8,Nutrients!$CX$8,Nutrients!$CX$9)*N$7)+(((IF($A$8=Nutrients!$B$79,Nutrients!$CX$79,(IF($A$8=Nutrients!$B$77,Nutrients!$CX$77,Nutrients!$CX$78)))))*N$8))/2000/N$236*100","v":42.332060863176054},null,{"$f":"(SUMPRODUCT(P$9:P$229,Nutrients!$CX$8:$CX$228)+(IF($A$7=Nutrients!$B$8,Nutrients!$CX$8,Nutrients!$CX$9)*P$7)+(((IF($A$8=Nutrients!$B$79,Nutrients!$CX$79,(IF($A$8=Nutrients!$B$77,Nutrients!$CX$77,Nutrients!$CX$78)))))*P$8))/2000/P$236*100","v":38.598210338471304},{"$f":"(SUMPRODUCT(Q$9:Q$229,Nutrients!$CX$8:$CX$228)+(IF($A$7=Nutrients!$B$8,Nutrients!$CX$8,Nutrients!$CX$9)*Q$7)+(((IF($A$8=Nutrients!$B$79,Nutrients!$CX$79,(IF($A$8=Nutrients!$B$77,Nutrients!$CX$77,Nutrients!$CX$78)))))*Q$8))/2000/Q$236*100","v":40.065307522238768},{"$f":"(SUMPRODUCT(R$9:R$229,Nutrients!$CX$8:$CX$228)+(IF($A$7=Nutrients!$B$8,Nutrients!$CX$8,Nutrients!$CX$9)*R$7)+(((IF($A$8=Nutrients!$B$79,Nutrients!$CX$79,(IF($A$8=Nutrients!$B$77,Nutrients!$CX$77,Nutrients!$CX$78)))))*R$8))/2000/R$236*100","v":41.923189025982687},{"$f":"(SUMPRODUCT(S$9:S$229,Nutrients!$CX$8:$CX$228)+(IF($A$7=Nutrients!$B$8,Nutrients!$CX$8,Nutrients!$CX$9)*S$7)+(((IF($A$8=Nutrients!$B$79,Nutrients!$CX$79,(IF($A$8=Nutrients!$B$77,Nutrients!$CX$77,Nutrients!$CX$78)))))*S$8))/2000/S$236*100","v":43.219184561670296},{"$f":"(SUMPRODUCT(T$9:T$229,Nutrients!$CX$8:$CX$228)+(IF($A$7=Nutrients!$B$8,Nutrients!$CX$8,Nutrients!$CX$9)*T$7)+(((IF($A$8=Nutrients!$B$79,Nutrients!$CX$79,(IF($A$8=Nutrients!$B$77,Nutrients!$CX$77,Nutrients!$CX$78)))))*T$8))/2000/T$236*100","v":43.643205810548579},{"$f":"(SUMPRODUCT(U$9:U$229,Nutrients!$CX$8:$CX$228)+(IF($A$7=Nutrients!$B$8,Nutrients!$CX$8,Nutrients!$CX$9)*U$7)+(((IF($A$8=Nutrients!$B$79,Nutrients!$CX$79,(IF($A$8=Nutrients!$B$77,Nutrients!$CX$77,Nutrients!$CX$78)))))*U$8))/2000/U$236*100","v":42.332060863176054},null,{"$f":"(SUMPRODUCT(W$9:W$229,Nutrients!$CX$8:$CX$228)+(IF($A$7=Nutrients!$B$8,Nutrients!$CX$8,Nutrients!$CX$9)*W$7)+(((IF($A$8=Nutrients!$B$79,Nutrients!$CX$79,(IF($A$8=Nutrients!$B$77,Nutrients!$CX$77,Nutrients!$CX$78)))))*W$8))/2000/W$236*100","v":39.075368681403617},{"$f":"(SUMPRODUCT(X$9:X$229,Nutrients!$CX$8:$CX$228)+(IF($A$7=Nutrients!$B$8,Nutrients!$CX$8,Nutrients!$CX$9)*X$7)+(((IF($A$8=Nutrients!$B$79,Nutrients!$CX$79,(IF($A$8=Nutrients!$B$77,Nutrients!$CX$77,Nutrients!$CX$78)))))*X$8))/2000/X$236*100","v":40.60420496796521},{"$f":"(SUMPRODUCT(Y$9:Y$229,Nutrients!$CX$8:$CX$228)+(IF($A$7=Nutrients!$B$8,Nutrients!$CX$8,Nutrients!$CX$9)*Y$7)+(((IF($A$8=Nutrients!$B$79,Nutrients!$CX$79,(IF($A$8=Nutrients!$B$77,Nutrients!$CX$77,Nutrients!$CX$78)))))*Y$8))/2000/Y$236*100","v":42.53304921289098},{"$f":"(SUMPRODUCT(Z$9:Z$229,Nutrients!$CX$8:$CX$228)+(IF($A$7=Nutrients!$B$8,Nutrients!$CX$8,Nutrients!$CX$9)*Z$7)+(((IF($A$8=Nutrients!$B$79,Nutrients!$CX$79,(IF($A$8=Nutrients!$B$77,Nutrients!$CX$77,Nutrients!$CX$78)))))*Z$8))/2000/Z$236*100","v":43.902400702669141},{"$f":"(SUMPRODUCT(AA$9:AA$229,Nutrients!$CX$8:$CX$228)+(IF($A$7=Nutrients!$B$8,Nutrients!$CX$8,Nutrients!$CX$9)*AA$7)+(((IF($A$8=Nutrients!$B$79,Nutrients!$CX$79,(IF($A$8=Nutrients!$B$77,Nutrients!$CX$77,Nutrients!$CX$78)))))*AA$8))/2000/AA$236*100","v":44.387816160815049},{"$f":"(SUMPRODUCT(AB$9:AB$229,Nutrients!$CX$8:$CX$228)+(IF($A$7=Nutrients!$B$8,Nutrients!$CX$8,Nutrients!$CX$9)*AB$7)+(((IF($A$8=Nutrients!$B$79,Nutrients!$CX$79,(IF($A$8=Nutrients!$B$77,Nutrients!$CX$77,Nutrients!$CX$78)))))*AB$8))/2000/AB$236*100","v":42.332060863176054},null,{"$f":"(SUMPRODUCT(AD$9:AD$229,Nutrients!$CX$8:$CX$228)+(IF($A$7=Nutrients!$B$8,Nutrients!$CX$8,Nutrients!$CX$9)*AD$7)+(((IF($A$8=Nutrients!$B$79,Nutrients!$CX$79,(IF($A$8=Nutrients!$B$77,Nutrients!$CX$77,Nutrients!$CX$78)))))*AD$8))/2000/AD$236*100","v":39.551878290274509},{"$f":"(SUMPRODUCT(AE$9:AE$229,Nutrients!$CX$8:$CX$228)+(IF($A$7=Nutrients!$B$8,Nutrients!$CX$8,Nutrients!$CX$9)*AE$7)+(((IF($A$8=Nutrients!$B$79,Nutrients!$CX$79,(IF($A$8=Nutrients!$B$77,Nutrients!$CX$77,Nutrients!$CX$78)))))*AE$8))/2000/AE$236*100","v":41.143445749730873},{"$f":"(SUMPRODUCT(AF$9:AF$229,Nutrients!$CX$8:$CX$228)+(IF($A$7=Nutrients!$B$8,Nutrients!$CX$8,Nutrients!$CX$9)*AF$7)+(((IF($A$8=Nutrients!$B$79,Nutrients!$CX$79,(IF($A$8=Nutrients!$B$77,Nutrients!$CX$77,Nutrients!$CX$78)))))*AF$8))/2000/AF$236*100","v":43.141937753216638},{"$f":"(SUMPRODUCT(AG$9:AG$229,Nutrients!$CX$8:$CX$228)+(IF($A$7=Nutrients!$B$8,Nutrients!$CX$8,Nutrients!$CX$9)*AG$7)+(((IF($A$8=Nutrients!$B$79,Nutrients!$CX$79,(IF($A$8=Nutrients!$B$77,Nutrients!$CX$77,Nutrients!$CX$78)))))*AG$8))/2000/AG$236*100","v":44.585064619293149},{"$f":"(SUMPRODUCT(AH$9:AH$229,Nutrients!$CX$8:$CX$228)+(IF($A$7=Nutrients!$B$8,Nutrients!$CX$8,Nutrients!$CX$9)*AH$7)+(((IF($A$8=Nutrients!$B$79,Nutrients!$CX$79,(IF($A$8=Nutrients!$B$77,Nutrients!$CX$77,Nutrients!$CX$78)))))*AH$8))/2000/AH$236*100","v":45.112237874874204},{"$f":"(SUMPRODUCT(AI$9:AI$229,Nutrients!$CX$8:$CX$228)+(IF($A$7=Nutrients!$B$8,Nutrients!$CX$8,Nutrients!$CX$9)*AI$7)+(((IF($A$8=Nutrients!$B$79,Nutrients!$CX$79,(IF($A$8=Nutrients!$B$77,Nutrients!$CX$77,Nutrients!$CX$78)))))*AI$8))/2000/AI$236*100","v":42.332060863176054},null,{"$f":"(SUMPRODUCT(AK$9:AK$229,Nutrients!$CX$8:$CX$228)+(IF($A$7=Nutrients!$B$8,Nutrients!$CX$8,Nutrients!$CX$9)*AK$7)+(((IF($A$8=Nutrients!$B$79,Nutrients!$CX$79,(IF($A$8=Nutrients!$B$77,Nutrients!$CX$77,Nutrients!$CX$78)))))*AK$8))/2000/AK$236*100","v":40.027923998838958},{"$f":"(SUMPRODUCT(AL$9:AL$229,Nutrients!$CX$8:$CX$228)+(IF($A$7=Nutrients!$B$8,Nutrients!$CX$8,Nutrients!$CX$9)*AL$7)+(((IF($A$8=Nutrients!$B$79,Nutrients!$CX$79,(IF($A$8=Nutrients!$B$77,Nutrients!$CX$77,Nutrients!$CX$78)))))*AL$8))/2000/AL$236*100","v":41.681609712061089},{"$f":"(SUMPRODUCT(AM$9:AM$229,Nutrients!$CX$8:$CX$228)+(IF($A$7=Nutrients!$B$8,Nutrients!$CX$8,Nutrients!$CX$9)*AM$7)+(((IF($A$8=Nutrients!$B$79,Nutrients!$CX$79,(IF($A$8=Nutrients!$B$77,Nutrients!$CX$77,Nutrients!$CX$78)))))*AM$8))/2000/AM$236*100","v":43.751224304402633},{"$f":"(SUMPRODUCT(AN$9:AN$229,Nutrients!$CX$8:$CX$228)+(IF($A$7=Nutrients!$B$8,Nutrients!$CX$8,Nutrients!$CX$9)*AN$7)+(((IF($A$8=Nutrients!$B$79,Nutrients!$CX$79,(IF($A$8=Nutrients!$B$77,Nutrients!$CX$77,Nutrients!$CX$78)))))*AN$8))/2000/AN$236*100","v":45.251406380888618},{"$f":"(SUMPRODUCT(AO$9:AO$229,Nutrients!$CX$8:$CX$228)+(IF($A$7=Nutrients!$B$8,Nutrients!$CX$8,Nutrients!$CX$9)*AO$7)+(((IF($A$8=Nutrients!$B$79,Nutrients!$CX$79,(IF($A$8=Nutrients!$B$77,Nutrients!$CX$77,Nutrients!$CX$78)))))*AO$8))/2000/AO$236*100","v":45.831135775929191},{"$f":"(SUMPRODUCT(AP$9:AP$229,Nutrients!$CX$8:$CX$228)+(IF($A$7=Nutrients!$B$8,Nutrients!$CX$8,Nutrients!$CX$9)*AP$7)+(((IF($A$8=Nutrients!$B$79,Nutrients!$CX$79,(IF($A$8=Nutrients!$B$77,Nutrients!$CX$77,Nutrients!$CX$78)))))*AP$8))/2000/AP$236*100","v":42.332060863176054},null,{"$f":"(SUMPRODUCT(AR$9:AR$229,Nutrients!$CX$8:$CX$228)+(IF($A$7=Nutrients!$B$8,Nutrients!$CX$8,Nutrients!$CX$9)*AR$7)+(((IF($A$8=Nutrients!$B$79,Nutrients!$CX$79,(IF($A$8=Nutrients!$B$77,Nutrients!$CX$77,Nutrients!$CX$78)))))*AR$8))/2000/AR$236*100","v":40.503109657758124},{"$f":"(SUMPRODUCT(AS$9:AS$229,Nutrients!$CX$8:$CX$228)+(IF($A$7=Nutrients!$B$8,Nutrients!$CX$8,Nutrients!$CX$9)*AS$7)+(((IF($A$8=Nutrients!$B$79,Nutrients!$CX$79,(IF($A$8=Nutrients!$B$77,Nutrients!$CX$77,Nutrients!$CX$78)))))*AS$8))/2000/AS$236*100","v":42.219627838307268},{"$f":"(SUMPRODUCT(AT$9:AT$229,Nutrients!$CX$8:$CX$228)+(IF($A$7=Nutrients!$B$8,Nutrients!$CX$8,Nutrients!$CX$9)*AT$7)+(((IF($A$8=Nutrients!$B$79,Nutrients!$CX$79,(IF($A$8=Nutrients!$B$77,Nutrients!$CX$77,Nutrients!$CX$78)))))*AT$8))/2000/AT$236*100","v":44.357696139546746},{"$f":"(SUMPRODUCT(AU$9:AU$229,Nutrients!$CX$8:$CX$228)+(IF($A$7=Nutrients!$B$8,Nutrients!$CX$8,Nutrients!$CX$9)*AU$7)+(((IF($A$8=Nutrients!$B$79,Nutrients!$CX$79,(IF($A$8=Nutrients!$B$77,Nutrients!$CX$77,Nutrients!$CX$78)))))*AU$8))/2000/AU$236*100","v":45.909990881005392},{"$f":"(SUMPRODUCT(AV$9:AV$229,Nutrients!$CX$8:$CX$228)+(IF($A$7=Nutrients!$B$8,Nutrients!$CX$8,Nutrients!$CX$9)*AV$7)+(((IF($A$8=Nutrients!$B$79,Nutrients!$CX$79,(IF($A$8=Nutrients!$B$77,Nutrients!$CX$77,Nutrients!$CX$78)))))*AV$8))/2000/AV$236*100","v":46.550029798199063},{"$f":"(SUMPRODUCT(AW$9:AW$229,Nutrients!$CX$8:$CX$228)+(IF($A$7=Nutrients!$B$8,Nutrients!$CX$8,Nutrients!$CX$9)*AW$7)+(((IF($A$8=Nutrients!$B$79,Nutrients!$CX$79,(IF($A$8=Nutrients!$B$77,Nutrients!$CX$77,Nutrients!$CX$78)))))*AW$8))/2000/AW$236*100","v":42.332060863176054}]
["Total Lys, %",{"$f":"(SUMPRODUCT(B$9:B$229,Nutrients!$AJ$8:$AJ$228)+(IF($A7=Nutrients!$B$8,Nutrients!$AJ$8,Nutrients!$AJ$9)*B$7)+(((IF($A8=Nutrients!$B$79,Nutrients!$AJ$79,(IF($A8=Nutrients!$B$77,Nutrients!$AJ$77,Nutrients!$AJ$78)))))*B$8))/2000","v":1.3184028426828778},{"$f":"(SUMPRODUCT(C$9:C$229,Nutrients!$AJ$8:$AJ$228)+(IF($A7=Nutrients!$B$8,Nutrients!$AJ$8,Nutrients!$AJ$9)*C$7)+(((IF($A8=Nutrients!$B$79,Nutrients!$AJ$79,(IF($A8=Nutrients!$B$77,Nutrients!$AJ$77,Nutrients!$AJ$78)))))*C$8))/2000","v":1.1707660127345534},{"$f":"(SUMPRODUCT(D$9:D$229,Nutrients!$AJ$8:$AJ$228)+(IF($A7=Nutrients!$B$8,Nutrients!$AJ$8,Nutrients!$AJ$9)*D$7)+(((IF($A8=Nutrients!$B$79,Nutrients!$AJ$79,(IF($A8=Nutrients!$B$77,Nutrients!$AJ$77,Nutrients!$AJ$78)))))*D$8))/2000","v":1.0403693489168444},{"$f":"(SUMPRODUCT(E$9:E$229,Nutrients!$AJ$8:$AJ$228)+(IF($A7=Nutrients!$B$8,Nutrients!$AJ$8,Nutrients!$AJ$9)*E$7)+(((IF($A8=Nutrients!$B$79,Nutrients!$AJ$79,(IF($A8=Nutrients!$B$77,Nutrients!$AJ$77,Nutrients!$AJ$78)))))*E$8))/2000","v":0.93090396099650141},{"$f":"(SUMPRODUCT(F$9:F$229,Nutrients!$AJ$8:$AJ$228)+(IF($A7=Nutrients!$B$8,Nutrients!$AJ$8,Nutrients!$AJ$9)*F$7)+(((IF($A8=Nutrients!$B$79,Nutrients!$AJ$79,(IF($A8=Nutrients!$B$77,Nutrients!$AJ$77,Nutrients!$AJ$78)))))*F$8))/2000","v":0.85426384482722051},{"$f":"(SUMPRODUCT(G$9:G$229,Nutrients!$AJ$8:$AJ$228)+(IF($A7=Nutrients!$B$8,Nutrients!$AJ$8,Nutrients!$AJ$9)*G$7)+(((IF($A8=Nutrients!$B$79,Nutrients!$AJ$79,(IF($A8=Nutrients!$B$77,Nutrients!$AJ$77,Nutrients!$AJ$78)))))*G$8))/2000","v":0.81186991699752797},null,{"$f":"(SUMPRODUCT(I$9:I$229,Nutrients!$AJ$8:$AJ$228)+(IF($A7=Nutrients!$B$8,Nutrients!$AJ$8,Nutrients!$AJ$9)*I$7)+(((IF($A8=Nutrients!$B$79,Nutrients!$AJ$79,(IF($A8=Nutrients!$B$77,Nutrients!$AJ$77,Nutrients!$AJ$78)))))*I$8))/2000","v":1.3271635415014684},{"$f":"(SUMPRODUCT(J$9:J$229,Nutrients!$AJ$8:$AJ$228)+(IF($A7=Nutrients!$B$8,Nutrients!$AJ$8,Nutrients!$AJ$9)*J$7)+(((IF($A8=Nutrients!$B$79,Nutrients!$AJ$79,(IF($A8=Nutrients!$B$77,Nutrients!$AJ$77,Nutrients!$AJ$78)))))*J$8))/2000","v":1.1795196286355227},{"$f":"(SUMPRODUCT(K$9:K$229,Nutrients!$AJ$8:$AJ$228)+(IF($A7=Nutrients!$B$8,Nutrients!$AJ$8,Nutrients!$AJ$9)*K$7)+(((IF($A8=Nutrients!$B$79,Nutrients!$AJ$79,(IF($A8=Nutrients!$B$77,Nutrients!$AJ$77,Nutrients!$AJ$78)))))*K$8))/2000","v":1.0491266096804401},{"$f":"(SUMPRODUCT(L$9:L$229,Nutrients!$AJ$8:$AJ$228)+(IF($A7=Nutrients!$B$8,Nutrients!$AJ$8,Nutrients!$AJ$9)*L$7)+(((IF($A8=Nutrients!$B$79,Nutrients!$AJ$79,(IF($A8=Nutrients!$B$77,Nutrients!$AJ$77,Nutrients!$AJ$78)))))*L$8))/2000","v":0.9396581542649074},{"$f":"(SUMPRODUCT(M$9:M$229,Nutrients!$AJ$8:$AJ$228)+(IF($A7=Nutrients!$B$8,Nutrients!$AJ$8,Nutrients!$AJ$9)*M$7)+(((IF($A8=Nutrients!$B$79,Nutrients!$AJ$79,(IF($A8=Nutrients!$B$77,Nutrients!$AJ$77,Nutrients!$AJ$78)))))*M$8))/2000","v":0.86301802173342368},{"$f":"(SUMPRODUCT(N$9:N$229,Nutrients!$AJ$8:$AJ$228)+(IF($A7=Nutrients!$B$8,Nutrients!$AJ$8,Nutrients!$AJ$9)*N$7)+(((IF($A8=Nutrients!$B$79,Nutrients!$AJ$79,(IF($A8=Nutrients!$B$77,Nutrients!$AJ$77,Nutrients!$AJ$78)))))*N$8))/2000","v":0.81186991699752797},null,{"$f":"(SUMPRODUCT(P$9:P$229,Nutrients!$AJ$8:$AJ$228)+(IF($A7=Nutrients!$B$8,Nutrients!$AJ$8,Nutrients!$AJ$9)*P$7)+(((IF($A8=Nutrients!$B$79,Nutrients!$AJ$79,(IF($A8=Nutrients!$B$77,Nutrients!$AJ$77,Nutrients!$AJ$78)))))*P$8))/2000","v":1.3359196958710609},{"$f":"(SUMPRODUCT(Q$9:Q$229,Nutrients!$AJ$8:$AJ$228)+(IF($A7=Nutrients!$B$8,Nutrients!$AJ$8,Nutrients!$AJ$9)*Q$7)+(((IF($A8=Nutrients!$B$79,Nutrients!$AJ$79,(IF($A8=Nutrients!$B$77,Nutrients!$AJ$77,Nutrients!$AJ$78)))))*Q$8))/2000","v":1.1882739962227507},{"$f":"(SUMPRODUCT(R$9:R$229,Nutrients!$AJ$8:$AJ$228)+(IF($A7=Nutrients!$B$8,Nutrients!$AJ$8,Nutrients!$AJ$9)*R$7)+(((IF($A8=Nutrients!$B$79,Nutrients!$AJ$79,(IF($A8=Nutrients!$B$77,Nutrients!$AJ$77,Nutrients!$AJ$78)))))*R$8))/2000","v":1.057879139797391},{"$f":"(SUMPRODUCT(S$9:S$229,Nutrients!$AJ$8:$AJ$228)+(IF($A7=Nutrients!$B$8,Nutrients!$AJ$8,Nutrients!$AJ$9)*S$7)+(((IF($A8=Nutrients!$B$79,Nutrients!$AJ$79,(IF($A8=Nutrients!$B$77,Nutrients!$AJ$77,Nutrients!$AJ$78)))))*S$8))/2000","v":0.94841119390104534},{"$f":"(SUMPRODUCT(T$9:T$229,Nutrients!$AJ$8:$AJ$228)+(IF($A7=Nutrients!$B$8,Nutrients!$AJ$8,Nutrients!$AJ$9)*T$7)+(((IF($A8=Nutrients!$B$79,Nutrients!$AJ$79,(IF($A8=Nutrients!$B$77,Nutrients!$AJ$77,Nutrients!$AJ$78)))))*T$8))/2000","v":0.87177221741562871},{"$f":"(SUMPRODUCT(U$9:U$229,Nutrients!$AJ$8:$AJ$228)+(IF($A7=Nutrients!$B$8,Nutrients!$AJ$8,Nutrients!$AJ$9)*U$7)+(((IF($A8=Nutrients!$B$79,Nutrients!$AJ$79,(IF($A8=Nutrients!$B$77,Nutrients!$AJ$77,Nutrients!$AJ$78)))))*U$8))/2000","v":0.81186991699752797},null,{"$f":"(SUMPRODUCT(W$9:W$229,Nutrients!$AJ$8:$AJ$228)+(IF($A7=Nutrients!$B$8,Nutrients!$AJ$8,Nutrients!$AJ$9)*W$7)+(((IF($A8=Nutrients!$B$79,Nutrients!$AJ$79,(IF($A8=Nutrients!$B$77,Nutrients!$AJ$77,Nutrients!$AJ$78)))))*W$8))/2000","v":1.3446774400725758},{"$f":"(SUMPRODUCT(X$9:X$229,Nutrients!$AJ$8:$AJ$228)+(IF($A7=Nutrients!$B$8,Nutrients!$AJ$8,Nutrients!$AJ$9)*X$7)+(((IF($A8=Nutrients!$B$79,Nutrients!$AJ$79,(IF($A8=Nutrients!$B$77,Nutrients!$AJ$77,Nutrients!$AJ$78)))))*X$8))/2000","v":1.1970288589938833},{"$f":"(SUMPRODUCT(Y$9:Y$229,Nutrients!$AJ$8:$AJ$228)+(IF($A7=Nutrients!$B$8,Nutrients!$AJ$8,Nutrients!$AJ$9)*Y$7)+(((IF($A8=Nutrients!$B$79,Nutrients!$AJ$79,(IF($A8=Nutrients!$B$77,Nutrients!$AJ$77,Nutrients!$AJ$78)))))*Y$8))/2000","v":1.066634504354383},{"$f":"(SUMPRODUCT(Z$9:Z$229,Nutrients!$AJ$8:$AJ$228)+(IF($A7=Nutrients!$B$8,Nutrients!$AJ$8,Nutrients!$AJ$9)*Z$7)+(((IF($A8=Nutrients!$B$79,Nutrients!$AJ$79,(IF($A8=Nutrients!$B$77,Nutrients!$AJ$77,Nutrients!$AJ$78)))))*Z$8))/2000","v":0.95716331090755213},{"$f":"(SUMPRODUCT(AA$9:AA$229,Nutrients!$AJ$8:$AJ$228)+(IF($A7=Nutrients!$B$8,Nutrients!$AJ$8,Nutrients!$AJ$9)*AA$7)+(((IF($A8=Nutrients!$B$79,Nutrients!$AJ$79,(IF($A8=Nutrients!$B$77,Nutrients!$AJ$77,Nutrients!$AJ$78)))))*AA$8))/2000","v":0.880521079452664},{"$f":"(SUMPRODUCT(AB$9:AB$229,Nutrients!$AJ$8:$AJ$228)+(IF($A7=Nutrients!$B$8,Nutrients!$AJ$8,Nutrients!$AJ$9)*AB$7)+(((IF($A8=Nutrients!$B$79,Nutrients!$AJ$79,(IF($A8=Nutrients!$B$77,Nutrients!$AJ$77,Nutrients!$AJ$78)))))*AB$8))/2000","v":0.81186991699752797},null,{"$f":"(SUMPRODUCT(AD$9:AD$229,Nutrients!$AJ$8:$AJ$228)+(IF($A7=Nutrients!$B$8,Nutrients!$AJ$8,Nutrients!$AJ$9)*AD$7)+(((IF($A8=Nutrients!$B$79,Nutrients!$AJ$79,(IF($A8=Nutrients!$B$77,Nutrients!$AJ$77,Nutrients!$AJ$78)))))*AD$8))/2000","v":1.3534324436796334},{"$f":"(SUMPRODUCT(AE$9:AE$229,Nutrients!$AJ$8:$AJ$228)+(IF($A7=Nutrients!$B$8,Nutrients!$AJ$8,Nutrients!$AJ$9)*AE$7)+(((IF($A8=Nutrients!$B$79,Nutrients!$AJ$79,(IF($A8=Nutrients!$B$77,Nutrients!$AJ$77,Nutrients!$AJ$78)))))*AE$8))/2000","v":1.205785004191916},{"$f":"(SUMPRODUCT(AF$9:AF$229,Nutrients!$AJ$8:$AJ$228)+(IF($A7=Nutrients!$B$8,Nutrients!$AJ$8,Nutrients!$AJ$9)*AF$7)+(((IF($A8=Nutrients!$B$79,Nutrients!$AJ$79,(IF($A8=Nutrients!$B$77,Nutrients!$AJ$77,Nutrients!$AJ$78)))))*AF$8))/2000","v":1.0753866611234606},{"$f":"(SUMPRODUCT(AG$9:AG$229,Nutrients!$AJ$8:$AJ$228)+(IF($A7=Nutrients!$B$8,Nutrients!$AJ$8,Nutrients!$AJ$9)*AG$7)+(((IF($A8=Nutrients!$B$79,Nutrients!$AJ$79,(IF($A8=Nutrients!$B$77,Nutrients!$AJ$77,Nutrients!$AJ$78)))))*AG$8))/2000","v":0.96591380317364539},{"$f":"(SUMPRODUCT(AH$9:AH$229,Nutrients!$AJ$8:$AJ$228)+(IF($A7=Nutrients!$B$8,Nutrients!$AJ$8,Nutrients!$AJ$9)*AH$7)+(((IF($A8=Nutrients!$B$79,Nutrients!$AJ$79,(IF($A8=Nutrients!$B$77,Nutrients!$AJ$77,Nutrients!$AJ$78)))))*AH$8))/2000","v":0.88921552874532017},{"$f":"(SUMPRODUCT(AI$9:AI$229,Nutrients!$AJ$8:$AJ$228)+(IF($A7=Nutrients!$B$8,Nutrients!$AJ$8,Nutrients!$AJ$9)*AI$7)+(((IF($A8=Nutrients!$B$79,Nutrients!$AJ$79,(IF($A8=Nutrients!$B$77,Nutrients!$AJ$77,Nutrients!$AJ$78)))))*AI$8))/2000","v":0.81186991699752797},null,{"$f":"(SUMPRODUCT(AK$9:AK$229,Nutrients!$AJ$8:$AJ$228)+(IF($A7=Nutrients!$B$8,Nutrients!$AJ$8,Nutrients!$AJ$9)*AK$7)+(((IF($A8=Nutrients!$B$79,Nutrients!$AJ$79,(IF($A8=Nutrients!$B$77,Nutrients!$AJ$77,Nutrients!$AJ$78)))))*AK$8))/2000","v":1.3621854875273944},{"$f":"(SUMPRODUCT(AL$9:AL$229,Nutrients!$AJ$8:$AJ$228)+(IF($A7=Nutrients!$B$8,Nutrients!$AJ$8,Nutrients!$AJ$9)*AL$7)+(((IF($A8=Nutrients!$B$79,Nutrients!$AJ$79,(IF($A8=Nutrients!$B$77,Nutrients!$AJ$77,Nutrients!$AJ$78)))))*AL$8))/2000","v":1.2145371272598704},{"$f":"(SUMPRODUCT(AM$9:AM$229,Nutrients!$AJ$8:$AJ$228)+(IF($A7=Nutrients!$B$8,Nutrients!$AJ$8,Nutrients!$AJ$9)*AM$7)+(((IF($A8=Nutrients!$B$79,Nutrients!$AJ$79,(IF($A8=Nutrients!$B$77,Nutrients!$AJ$77,Nutrients!$AJ$78)))))*AM$8))/2000","v":1.0841401318830877},{"$f":"(SUMPRODUCT(AN$9:AN$229,Nutrients!$AJ$8:$AJ$228)+(IF($A7=Nutrients!$B$8,Nutrients!$AJ$8,Nutrients!$AJ$9)*AN$7)+(((IF($A8=Nutrients!$B$79,Nutrients!$AJ$79,(IF($A8=Nutrients!$B$77,Nutrients!$AJ$77,Nutrients!$AJ$78)))))*AN$8))/2000","v":0.97461627281321506},{"$f":"(SUMPRODUCT(AO$9:AO$229,Nutrients!$AJ$8:$AJ$228)+(IF($A7=Nutrients!$B$8,Nutrients!$AJ$8,Nutrients!$AJ$9)*AO$7)+(((IF($A8=Nutrients!$B$79,Nutrients!$AJ$79,(IF($A8=Nutrients!$B$77,Nutrients!$AJ$77,Nutrients!$AJ$78)))))*AO$8))/2000","v":0.89789509016630897},{"$f":"(SUMPRODUCT(AP$9:AP$229,Nutrients!$AJ$8:$AJ$228)+(IF($A7=Nutrients!$B$8,Nutrients!$AJ$8,Nutrients!$AJ$9)*AP$7)+(((IF($A8=Nutrients!$B$79,Nutrients!$AJ$79,(IF($A8=Nutrients!$B$77,Nutrients!$AJ$77,Nutrients!$AJ$78)))))*AP$8))/2000","v":0.81186991699752797},null,{"$f":"(SUMPRODUCT(AR$9:AR$229,Nutrients!$AJ$8:$AJ$228)+(IF($A7=Nutrients!$B$8,Nutrients!$AJ$8,Nutrients!$AJ$9)*AR$7)+(((IF($A8=Nutrients!$B$79,Nutrients!$AJ$79,(IF($A8=Nutrients!$B$77,Nutrients!$AJ$77,Nutrients!$AJ$78)))))*AR$8))/2000","v":1.3709348980723421},{"$f":"(SUMPRODUCT(AS$9:AS$229,Nutrients!$AJ$8:$AJ$228)+(IF($A7=Nutrients!$B$8,Nutrients!$AJ$8,Nutrients!$AJ$9)*AS$7)+(((IF($A8=Nutrients!$B$79,Nutrients!$AJ$79,(IF($A8=Nutrients!$B$77,Nutrients!$AJ$77,Nutrients!$AJ$78)))))*AS$8))/2000","v":1.2232887056016799},{"$f":"(SUMPRODUCT(AT$9:AT$229,Nutrients!$AJ$8:$AJ$228)+(IF($A7=Nutrients!$B$8,Nutrients!$AJ$8,Nutrients!$AJ$9)*AT$7)+(((IF($A8=Nutrients!$B$79,Nutrients!$AJ$79,(IF($A8=Nutrients!$B$77,Nutrients!$AJ$77,Nutrients!$AJ$78)))))*AT$8))/2000","v":1.092884310156885},{"$f":"(SUMPRODUCT(AU$9:AU$229,Nutrients!$AJ$8:$AJ$228)+(IF($A7=Nutrients!$B$8,Nutrients!$AJ$8,Nutrients!$AJ$9)*AU$7)+(((IF($A8=Nutrients!$B$79,Nutrients!$AJ$79,(IF($A8=Nutrients!$B$77,Nutrients!$AJ$77,Nutrients!$AJ$78)))))*AU$8))/2000","v":0.98329591923672111},{"$f":"(SUMPRODUCT(AV$9:AV$229,Nutrients!$AJ$8:$AJ$228)+(IF($A7=Nutrients!$B$8,Nutrients!$AJ$8,Nutrients!$AJ$9)*AV$7)+(((IF($A8=Nutrients!$B$79,Nutrients!$AJ$79,(IF($A8=Nutrients!$B$77,Nutrients!$AJ$77,Nutrients!$AJ$78)))))*AV$8))/2000","v":0.90657464113313202},{"$f":"(SUMPRODUCT(AW$9:AW$229,Nutrients!$AJ$8:$AJ$228)+(IF($A7=Nutrients!$B$8,Nutrients!$AJ$8,Nutrients!$AJ$9)*AW$7)+(((IF($A8=Nutrients!$B$79,Nutrients!$AJ$79,(IF($A8=Nutrients!$B$77,Nutrients!$AJ$77,Nutrients!$AJ$78)))))*AW$8))/2000","v":0.81186991699752797}]
["ME, kcal/lb",{"$f":"(SUMPRODUCT(B$9:B$229,Nutrients!$E$8:$E$228)+(IF($A$7=Nutrients!$B$8,Nutrients!$E$8,Nutrients!$E$9)*B$7)+(((IF($A$8=Nutrients!$B$79,Nutrients!$E$79,(IF($A$8=Nutrients!$B$77,Nutrients!$E$77,Nutrients!$E$78)))))*B$8))/2000/2.2046","v":1494.8752150724465},{"$f":"(SUMPRODUCT(C$9:C$229,Nutrients!$E$8:$E$228)+(IF($A$7=Nutrients!$B$8,Nutrients!$E$8,Nutrients!$E$9)*C$7)+(((IF($A$8=Nutrients!$B$79,Nutrients!$E$79,(IF($A$8=Nutrients!$B$77,Nutrients!$E$77,Nutrients!$E$78)))))*C$8))/2000/2.2046","v":1499.3360353372043},{"$f":"(SUMPRODUCT(D$9:D$229,Nutrients!$E$8:$E$228)+(IF($A$7=Nutrients!$B$8,Nutrients!$E$8,Nutrients!$E$9)*D$7)+(((IF($A$8=Nutrients!$B$79,Nutrients!$E$79,(IF($A$8=Nutrients!$B$77,Nutrients!$E$77,Nutrients!$E$78)))))*D$8))/2000/2.2046","v":1503.3094742023004},{"$f":"(SUMPRODUCT(E$9:E$229,Nutrients!$E$8:$E$228)+(IF($A$7=Nutrients!$B$8,Nutrients!$E$8,Nutrients!$E$9)*E$7)+(((IF($A$8=Nutrients!$B$79,Nutrients!$E$79,(IF($A$8=Nutrients!$B$77,Nutrients!$E$77,Nutrients!$E$78)))))*E$8))/2000/2.2046","v":1507.503198782209},{"$f":"(SUMPRODUCT(F$9:F$229,Nutrients!$E$8:$E$228)+(IF($A$7=Nutrients!$B$8,Nutrients!$E$8,Nutrients!$E$9)*F$7)+(((IF($A$8=Nutrients!$B$79,Nutrients!$E$79,(IF($A$8=Nutrients!$B$77,Nutrients!$E$77,Nutrients!$E$78)))))*F$8))/2000/2.2046","v":1511.0932854222328},{"$f":"(SUMPRODUCT(G$9:G$229,Nutrients!$E$8:$E$228)+(IF($A$7=Nutrients!$B$8,Nutrients!$E$8,Nutrients!$E$9)*G$7)+(((IF($A$8=Nutrients!$B$79,Nutrients!$E$79,(IF($A$8=Nutrients!$B$77,Nutrients!$E$77,Nutrients!$E$78)))))*G$8))/2000/2.2046","v":1512.5359640705287},null,{"$f":"(SUMPRODUCT(I$9:I$229,Nutrients!$E$8:$E$228)+(IF($A$7=Nutrients!$B$8,Nutrients!$E$8,Nutrients!$E$9)*I$7)+(((IF($A$8=Nutrients!$B$79,Nutrients!$E$79,(IF($A$8=Nutrients!$B$77,Nutrients!$E$77,Nutrients!$E$78)))))*I$8))/2000/2.2046","v":1508.4181494758338},{"$f":"(SUMPRODUCT(J$9:J$229,Nutrients!$E$8:$E$228)+(IF($A$7=Nutrients!$B$8,Nutrients!$E$8,Nutrients!$E$9)*J$7)+(((IF($A$8=Nutrients!$B$79,Nutrients!$E$79,(IF($A$8=Nutrients!$B$77,Nutrients!$E$77,Nutrients!$E$78)))))*J$8))/2000/2.2046","v":1512.9570730580454},{"$f":"(SUMPRODUCT(K$9:K$229,Nutrients!$E$8:$E$228)+(IF($A$7=Nutrients!$B$8,Nutrients!$E$8,Nutrients!$E$9)*K$7)+(((IF($A$8=Nutrients!$B$79,Nutrients!$E$79,(IF($A$8=Nutrients!$B$77,Nutrients!$E$77,Nutrients!$E$78)))))*K$8))/2000/2.2046","v":1517.0136842152094},{"$f":"(SUMPRODUCT(L$9:L$229,Nutrients!$E$8:$E$228)+(IF($A$7=Nutrients!$B$8,Nutrients!$E$8,Nutrients!$E$9)*L$7)+(((IF($A$8=Nutrients!$B$79,Nutrients!$E$79,(IF($A$8=Nutrients!$B$77,Nutrients!$E$77,Nutrients!$E$78)))))*L$8))/2000/2.2046","v":1521.2312749870487},{"$f":"(SUMPRODUCT(M$9:M$229,Nutrients!$E$8:$E$228)+(IF($A$7=Nutrients!$B$8,Nutrients!$E$8,Nutrients!$E$9)*M$7)+(((IF($A$8=Nutrients!$B$79,Nutrients!$E$79,(IF($A$8=Nutrients!$B$77,Nutrients!$E$77,Nutrients!$E$78)))))*M$8))/2000/2.2046","v":1524.8173966018894},{"$f":"(SUMPRODUCT(N$9:N$229,Nutrients!$E$8:$E$228)+(IF($A$7=Nutrients!$B$8,Nutrients!$E$8,Nutrients!$E$9)*N$7)+(((IF($A$8=Nutrients!$B$79,Nutrients!$E$79,(IF($A$8=Nutrients!$B$77,Nutrients!$E$77,Nutrients!$E$78)))))*N$8))/2000/2.2046","v":1512.5359640705287},null,{"$f":"(SUMPRODUCT(P$9:P$229,Nutrients!$E$8:$E$228)+(IF($A$7=Nutrients!$B$8,Nutrients!$E$8,Nutrients!$E$9)*P$7)+(((IF($A$8=Nutrients!$B$79,Nutrients!$E$79,(IF($A$8=Nutrients!$B$77,Nutrients!$E$77,Nutrients!$E$78)))))*P$8))/2000/2.2046","v":1522.0749117819566},{"$f":"(SUMPRODUCT(Q$9:Q$229,Nutrients!$E$8:$E$228)+(IF($A$7=Nutrients!$B$8,Nutrients!$E$8,Nutrients!$E$9)*Q$7)+(((IF($A$8=Nutrients!$B$79,Nutrients!$E$79,(IF($A$8=Nutrients!$B$77,Nutrients!$E$77,Nutrients!$E$78)))))*Q$8))/2000/2.2046","v":1526.6386072982261},{"$f":"(SUMPRODUCT(R$9:R$229,Nutrients!$E$8:$E$228)+(IF($A$7=Nutrients!$B$8,Nutrients!$E$8,Nutrients!$E$9)*R$7)+(((IF($A$8=Nutrients!$B$79,Nutrients!$E$79,(IF($A$8=Nutrients!$B$77,Nutrients!$E$77,Nutrients!$E$78)))))*R$8))/2000/2.2046","v":1530.7748504836536},{"$f":"(SUMPRODUCT(S$9:S$229,Nutrients!$E$8:$E$228)+(IF($A$7=Nutrients!$B$8,Nutrients!$E$8,Nutrients!$E$9)*S$7)+(((IF($A$8=Nutrients!$B$79,Nutrients!$E$79,(IF($A$8=Nutrients!$B$77,Nutrients!$E$77,Nutrients!$E$78)))))*S$8))/2000/2.2046","v":1534.9623815737409},{"$f":"(SUMPRODUCT(T$9:T$229,Nutrients!$E$8:$E$228)+(IF($A$7=Nutrients!$B$8,Nutrients!$E$8,Nutrients!$E$9)*T$7)+(((IF($A$8=Nutrients!$B$79,Nutrients!$E$79,(IF($A$8=Nutrients!$B$77,Nutrients!$E$77,Nutrients!$E$78)))))*T$8))/2000/2.2046","v":1538.5443558468921},{"$f":"(SUMPRODUCT(U$9:U$229,Nutrients!$E$8:$E$228)+(IF($A$7=Nutrients!$B$8,Nutrients!$E$8,Nutrients!$E$9)*U$7)+(((IF($A$8=Nutrients!$B$79,Nutrients!$E$79,(IF($A$8=Nutrients!$B$77,Nutrients!$E$77,Nutrients!$E$78)))))*U$8))/2000/2.2046","v":1512.5359640705287},null,{"$f":"(SUMPRODUCT(W$9:W$229,Nutrients!$E$8:$E$228)+(IF($A$7=Nutrients!$B$8,Nutrients!$E$8,Nutrients!$E$9)*W$7)+(((IF($A$8=Nutrients!$B$79,Nutrients!$E$79,(IF($A$8=Nutrients!$B$77,Nutrients!$E$77,Nutrients!$E$78)))))*W$8))/2000/2.2046","v":1535.8403972257431},{"$f":"(SUMPRODUCT(X$9:X$229,Nutrients!$E$8:$E$228)+(IF($A$7=Nutrients!$B$8,Nutrients!$E$8,Nutrients!$E$9)*X$7)+(((IF($A$8=Nutrients!$B$79,Nutrients!$E$79,(IF($A$8=Nutrients!$B$77,Nutrients!$E$77,Nutrients!$E$78)))))*X$8))/2000/2.2046","v":1540.4823953071684},{"$f":"(SUMPRODUCT(Y$9:Y$229,Nutrients!$E$8:$E$228)+(IF($A$7=Nutrients!$B$8,Nutrients!$E$8,Nutrients!$E$9)*Y$7)+(((IF($A$8=Nutrients!$B$79,Nutrients!$E$79,(IF($A$8=Nutrients!$B$77,Nutrients!$E$77,Nutrients!$E$78)))))*Y$8))/2000/2.2046","v":1544.5787547806597},{"$f":"(SUMPRODUCT(Z$9:Z$229,Nutrients!$E$8:$E$228)+(IF($A$7=Nutrients!$B$8,Nutrients!$E$8,Nutrients!$E$9)*Z$7)+(((IF($A$8=Nutrients!$B$79,Nutrients!$E$79,(IF($A$8=Nutrients!$B$77,Nutrients!$E$77,Nutrients!$E$78)))))*Z$8))/2000/2.2046","v":1548.8529282399747},{"$f":"(SUMPRODUCT(AA$9:AA$229,Nutrients!$E$8:$E$228)+(IF($A$7=Nutrients!$B$8,Nutrients!$E$8,Nutrients!$E$9)*AA$7)+(((IF($A$8=Nutrients!$B$79,Nutrients!$E$79,(IF($A$8=Nutrients!$B$77,Nutrients!$E$77,Nutrients!$E$78)))))*AA$8))/2000/2.2046","v":1552.4630794056879},{"$f":"(SUMPRODUCT(AB$9:AB$229,Nutrients!$E$8:$E$228)+(IF($A$7=Nutrients!$B$8,Nutrients!$E$8,Nutrients!$E$9)*AB$7)+(((IF($A$8=Nutrients!$B$79,Nutrients!$E$79,(IF($A$8=Nutrients!$B$77,Nutrients!$E$77,Nutrients!$E$78)))))*AB$8))/2000/2.2046","v":1512.5359640705287},null,{"$f":"(SUMPRODUCT(AD$9:AD$229,Nutrients!$E$8:$E$228)+(IF($A$7=Nutrients!$B$8,Nutrients!$E$8,Nutrients!$E$9)*AD$7)+(((IF($A$8=Nutrients!$B$79,Nutrients!$E$79,(IF($A$8=Nutrients!$B$77,Nutrients!$E$77,Nutrients!$E$78)))))*AD$8))/2000/2.2046","v":1549.67256370173},{"$f":"(SUMPRODUCT(AE$9:AE$229,Nutrients!$E$8:$E$228)+(IF($A$7=Nutrients!$B$8,Nutrients!$E$8,Nutrients!$E$9)*AE$7)+(((IF($A$8=Nutrients!$B$79,Nutrients!$E$79,(IF($A$8=Nutrients!$B$77,Nutrients!$E$77,Nutrients!$E$78)))))*AE$8))/2000/2.2046","v":1554.271995571655},{"$f":"(SUMPRODUCT(AF$9:AF$229,Nutrients!$E$8:$E$228)+(IF($A$7=Nutrients!$B$8,Nutrients!$E$8,Nutrients!$E$9)*AF$7)+(((IF($A$8=Nutrients!$B$79,Nutrients!$E$79,(IF($A$8=Nutrients!$B$77,Nutrients!$E$77,Nutrients!$E$78)))))*AF$8))/2000/2.2046","v":1558.4674223483003},{"$f":"(SUMPRODUCT(AG$9:AG$229,Nutrients!$E$8:$E$228)+(IF($A$7=Nutrients!$B$8,Nutrients!$E$8,Nutrients!$E$9)*AG$7)+(((IF($A$8=Nutrients!$B$79,Nutrients!$E$79,(IF($A$8=Nutrients!$B$77,Nutrients!$E$77,Nutrients!$E$78)))))*AG$8))/2000/2.2046","v":1562.7271992943179},{"$f":"(SUMPRODUCT(AH$9:AH$229,Nutrients!$E$8:$E$228)+(IF($A$7=Nutrients!$B$8,Nutrients!$E$8,Nutrients!$E$9)*AH$7)+(((IF($A$8=Nutrients!$B$79,Nutrients!$E$79,(IF($A$8=Nutrients!$B$77,Nutrients!$E$77,Nutrients!$E$78)))))*AH$8))/2000/2.2046","v":1566.088745171108},{"$f":"(SUMPRODUCT(AI$9:AI$229,Nutrients!$E$8:$E$228)+(IF($A$7=Nutrients!$B$8,Nutrients!$E$8,Nutrients!$E$9)*AI$7)+(((IF($A$8=Nutrients!$B$79,Nutrients!$E$79,(IF($A$8=Nutrients!$B$77,Nutrients!$E$77,Nutrients!$E$78)))))*AI$8))/2000/2.2046","v":1512.5359640705287},null,{"$f":"(SUMPRODUCT(AK$9:AK$229,Nutrients!$E$8:$E$228)+(IF($A$7=Nutrients!$B$8,Nutrients!$E$8,Nutrients!$E$9)*AK$7)+(((IF($A$8=Nutrients!$B$79,Nutrients!$E$79,(IF($A$8=Nutrients!$B$77,Nutrients!$E$77,Nutrients!$E$78)))))*AK$8))/2000/2.2046","v":1563.4296540414527},{"$f":"(SUMPRODUCT(AL$9:AL$229,Nutrients!$E$8:$E$228)+(IF($A$7=Nutrients!$B$8,Nutrients!$E$8,Nutrients!$E$9)*AL$7)+(((IF($A$8=Nutrients!$B$79,Nutrients!$E$79,(IF($A$8=Nutrients!$B$77,Nutrients!$E$77,Nutrients!$E$78)))))*AL$8))/2000/2.2046","v":1568.0508563736917},{"$f":"(SUMPRODUCT(AM$9:AM$229,Nutrients!$E$8:$E$228)+(IF($A$7=Nutrients!$B$8,Nutrients!$E$8,Nutrients!$E$9)*AM$7)+(((IF($A$8=Nutrients!$B$79,Nutrients!$E$79,(IF($A$8=Nutrients!$B$77,Nutrients!$E$77,Nutrients!$E$78)))))*AM$8))/2000/2.2046","v":1572.1927185650052},{"$f":"(SUMPRODUCT(AN$9:AN$229,Nutrients!$E$8:$E$228)+(IF($A$7=Nutrients!$B$8,Nutrients!$E$8,Nutrients!$E$9)*AN$7)+(((IF($A$8=Nutrients!$B$79,Nutrients!$E$79,(IF($A$8=Nutrients!$B$77,Nutrients!$E$77,Nutrients!$E$78)))))*AN$8))/2000/2.2046","v":1576.2903579527058},{"$f":"(SUMPRODUCT(AO$9:AO$229,Nutrients!$E$8:$E$228)+(IF($A$7=Nutrients!$B$8,Nutrients!$E$8,Nutrients!$E$9)*AO$7)+(((IF($A$8=Nutrients!$B$79,Nutrients!$E$79,(IF($A$8=Nutrients!$B$77,Nutrients!$E$77,Nutrients!$E$78)))))*AO$8))/2000/2.2046","v":1579.7315327435326},{"$f":"(SUMPRODUCT(AP$9:AP$229,Nutrients!$E$8:$E$228)+(IF($A$7=Nutrients!$B$8,Nutrients!$E$8,Nutrients!$E$9)*AP$7)+(((IF($A$8=Nutrients!$B$79,Nutrients!$E$79,(IF($A$8=Nutrients!$B$77,Nutrients!$E$77,Nutrients!$E$78)))))*AP$8))/2000/2.2046","v":1512.5359640705287},null,{"$f":"(SUMPRODUCT(AR$9:AR$229,Nutrients!$E$8:$E$228)+(IF($A$7=Nutrients!$B$8,Nutrients!$E$8,Nutrients!$E$9)*AR$7)+(((IF($A$8=Nutrients!$B$79,Nutrients!$E$79,(IF($A$8=Nutrients!$B$77,Nutrients!$E$77,Nutrients!$E$78)))))*AR$8))/2000/2.2046","v":1577.3465177274234},{"$f":"(SUMPRODUCT(AS$9:AS$229,Nutrients!$E$8:$E$228)+(IF($A$7=Nutrients!$B$8,Nutrients!$E$8,Nutrients!$E$9)*AS$7)+(((IF($A$8=Nutrients!$B$79,Nutrients!$E$79,(IF($A$8=Nutrients!$B$77,Nutrients!$E$77,Nutrients!$E$78)))))*AS$8))/2000/2.2046","v":1581.8061178314424},{"$f":"(SUMPRODUCT(AT$9:AT$229,Nutrients!$E$8:$E$228)+(IF($A$7=Nutrients!$B$8,Nutrients!$E$8,Nutrients!$E$9)*AT$7)+(((IF($A$8=Nutrients!$B$79,Nutrients!$E$79,(IF($A$8=Nutrients!$B$77,Nutrients!$E$77,Nutrients!$E$78)))))*AT$8))/2000/2.2046","v":1585.9807683230772},{"$f":"(SUMPRODUCT(AU$9:AU$229,Nutrients!$E$8:$E$228)+(IF($A$7=Nutrients!$B$8,Nutrients!$E$8,Nutrients!$E$9)*AU$7)+(((IF($A$8=Nutrients!$B$79,Nutrients!$E$79,(IF($A$8=Nutrients!$B$77,Nutrients!$E$77,Nutrients!$E$78)))))*AU$8))/2000/2.2046","v":1589.9081905107892},{"$f":"(SUMPRODUCT(AV$9:AV$229,Nutrients!$E$8:$E$228)+(IF($A$7=Nutrients!$B$8,Nutrients!$E$8,Nutrients!$E$9)*AV$7)+(((IF($A$8=Nutrients!$B$79,Nutrients!$E$79,(IF($A$8=Nutrients!$B$77,Nutrients!$E$77,Nutrients!$E$78)))))*AV$8))/2000/2.2046","v":1593.3746691391718},{"$f":"(SUMPRODUCT(AW$9:AW$229,Nutrients!$E$8:$E$228)+(IF($A$7=Nutrients!$B$8,Nutrients!$E$8,Nutrients!$E$9)*AW$7)+(((IF($A$8=Nutrients!$B$79,Nutrients!$E$79,(IF($A$8=Nutrients!$B$77,Nutrients!$E$77,Nutrients!$E$78)))))*AW$8))/2000/2.2046","v":1512.5359640705287}]
["NE Noblet Grow/Finish, kcal/lb",{"$f":"(SUMPRODUCT(B$9:B$229,Nutrients!$DY$8:$DY$228)+(IF($A$7=Nutrients!$B$8,Nutrients!$DY$8,Nutrients!$DY$9)*B$7)+(((IF($A$8=Nutrients!$B$79,Nutrients!$DY$79,(IF($A$8=Nutrients!$B$77,Nutrients!$DY$77,Nutrients!$DY$78)))))*B$8))/2000/2.2046","v":1097.7096913668909},{"$f":"(SUMPRODUCT(C$9:C$229,Nutrients!$DY$8:$DY$228)+(IF($A$7=Nutrients!$B$8,Nutrients!$DY$8,Nutrients!$DY$9)*C$7)+(((IF($A$8=Nutrients!$B$79,Nutrients!$DY$79,(IF($A$8=Nutrients!$B$77,Nutrients!$DY$77,Nutrients!$DY$78)))))*C$8))/2000/2.2046","v":1111.6567624325369},{"$f":"(SUMPRODUCT(D$9:D$229,Nutrients!$DY$8:$DY$228)+(IF($A$7=Nutrients!$B$8,Nutrients!$DY$8,Nutrients!$DY$9)*D$7)+(((IF($A$8=Nutrients!$B$79,Nutrients!$DY$79,(IF($A$8=Nutrients!$B$77,Nutrients!$DY$77,Nutrients!$DY$78)))))*D$8))/2000/2.2046","v":1123.5684729276254},{"$f":"(SUMPRODUCT(E$9:E$229,Nutrients!$DY$8:$DY$228)+(IF($A$7=Nutrients!$B$8,Nutrients!$DY$8,Nutrients!$DY$9)*E$7)+(((IF($A$8=Nutrients!$B$79,Nutrients!$DY$79,(IF($A$8=Nutrients!$B$77,Nutrients!$DY$77,Nutrients!$DY$78)))))*E$8))/2000/2.2046","v":1135.5706715184997},{"$f":"(SUMPRODUCT(F$9:F$229,Nutrients!$DY$8:$DY$228)+(IF($A$7=Nutrients!$B$8,Nutrients!$DY$8,Nutrients!$DY$9)*F$7)+(((IF($A$8=Nutrients!$B$79,Nutrients!$DY$79,(IF($A$8=Nutrients!$B$77,Nutrients!$DY$77,Nutrients!$DY$78)))))*F$8))/2000/2.2046","v":1145.7413873005344},{"$f":"(SUMPRODUCT(G$9:G$229,Nutrients!$DY$8:$DY$228)+(IF($A$7=Nutrients!$B$8,Nutrients!$DY$8,Nutrients!$DY$9)*G$7)+(((IF($A$8=Nutrients!$B$79,Nutrients!$DY$79,(IF($A$8=Nutrients!$B$77,Nutrients!$DY$77,Nutrients!$DY$78)))))*G$8))/2000/2.2046","v":1150.9323531256127},null,{"$f":"(SUMPRODUCT(I$9:I$229,Nutrients!$DY$8:$DY$228)+(IF($A$7=Nutrients!$B$8,Nutrients!$DY$8,Nutrients!$DY$9)*I$7)+(((IF($A$8=Nutrients!$B$79,Nutrients!$DY$79,(IF($A$8=Nutrients!$B$77,Nutrients!$DY$77,Nutrients!$DY$78)))))*I$8))/2000/2.2046","v":1051.7434963703611},{"$f":"(SUMPRODUCT(J$9:J$229,Nutrients!$DY$8:$DY$228)+(IF($A$7=Nutrients!$B$8,Nutrients!$DY$8,Nutrients!$DY$9)*J$7)+(((IF($A$8=Nutrients!$B$79,Nutrients!$DY$79,(IF($A$8=Nutrients!$B$77,Nutrients!$DY$77,Nutrients!$DY$78)))))*J$8))/2000/2.2046","v":1065.770310996664},{"$f":"(SUMPRODUCT(K$9:K$229,Nutrients!$DY$8:$DY$228)+(IF($A$7=Nutrients!$B$8,Nutrients!$DY$8,Nutrients!$DY$9)*K$7)+(((IF($A$8=Nutrients!$B$79,Nutrients!$DY$79,(IF($A$8=Nutrients!$B$77,Nutrients!$DY$77,Nutrients!$DY$78)))))*K$8))/2000/2.2046","v":1077.7282921390797},{"$f":"(SUMPRODUCT(L$9:L$229,Nutrients!$DY$8:$DY$228)+(IF($A$7=Nutrients!$B$8,Nutrients!$DY$8,Nutrients!$DY$9)*L$7)+(((IF($A$8=Nutrients!$B$79,Nutrients!$DY$79,(IF($A$8=Nutrients!$B$77,Nutrients!$DY$77,Nutrients!$DY$78)))))*L$8))/2000/2.2046","v":1089.7682997839161},{"$f":"(SUMPRODUCT(M$9:M$229,Nutrients!$DY$8:$DY$228)+(IF($A$7=Nutrients!$B$8,Nutrients!$DY$8,Nutrients!$DY$9)*M$7)+(((IF($A$8=Nutrients!$B$79,Nutrients!$DY$79,(IF($A$8=Nutrients!$B$77,Nutrients!$DY$77,Nutrients!$DY$78)))))*M$8))/2000/2.2046","v":1099.941854359035},{"$f":"(SUMPRODUCT(N$9:N$229,Nutrients!$DY$8:$DY$228)+(IF($A$7=Nutrients!$B$8,Nutrients!$DY$8,Nutrients!$DY$9)*N$7)+(((IF($A$8=Nutrients!$B$79,Nutrients!$DY$79,(IF($A$8=Nutrients!$B$77,Nutrients!$DY$77,Nutrients!$DY$78)))))*N$8))/2000/2.2046","v":1150.9323531256127},null,{"$f":"(SUMPRODUCT(P$9:P$229,Nutrients!$DY$8:$DY$228)+(IF($A$7=Nutrients!$B$8,Nutrients!$DY$8,Nutrients!$DY$9)*P$7)+(((IF($A$8=Nutrients!$B$79,Nutrients!$DY$79,(IF($A$8=Nutrients!$B$77,Nutrients!$DY$77,Nutrients!$DY$78)))))*P$8))/2000/2.2046","v":1005.8787557911279},{"$f":"(SUMPRODUCT(Q$9:Q$229,Nutrients!$DY$8:$DY$228)+(IF($A$7=Nutrients!$B$8,Nutrients!$DY$8,Nutrients!$DY$9)*Q$7)+(((IF($A$8=Nutrients!$B$79,Nutrients!$DY$79,(IF($A$8=Nutrients!$B$77,Nutrients!$DY$77,Nutrients!$DY$78)))))*Q$8))/2000/2.2046","v":1019.9245860858845},{"$f":"(SUMPRODUCT(R$9:R$229,Nutrients!$DY$8:$DY$228)+(IF($A$7=Nutrients!$B$8,Nutrients!$DY$8,Nutrients!$DY$9)*R$7)+(((IF($A$8=Nutrients!$B$79,Nutrients!$DY$79,(IF($A$8=Nutrients!$B$77,Nutrients!$DY$77,Nutrients!$DY$78)))))*R$8))/2000/2.2046","v":1031.9496564235899},{"$f":"(SUMPRODUCT(S$9:S$229,Nutrients!$DY$8:$DY$228)+(IF($A$7=Nutrients!$B$8,Nutrients!$DY$8,Nutrients!$DY$9)*S$7)+(((IF($A$8=Nutrients!$B$79,Nutrients!$DY$79,(IF($A$8=Nutrients!$B$77,Nutrients!$DY$77,Nutrients!$DY$78)))))*S$8))/2000/2.2046","v":1043.9591291163313},{"$f":"(SUMPRODUCT(T$9:T$229,Nutrients!$DY$8:$DY$228)+(IF($A$7=Nutrients!$B$8,Nutrients!$DY$8,Nutrients!$DY$9)*T$7)+(((IF($A$8=Nutrients!$B$79,Nutrients!$DY$79,(IF($A$8=Nutrients!$B$77,Nutrients!$DY$77,Nutrients!$DY$78)))))*T$8))/2000/2.2046","v":1054.1366392915484},{"$f":"(SUMPRODUCT(U$9:U$229,Nutrients!$DY$8:$DY$228)+(IF($A$7=Nutrients!$B$8,Nutrients!$DY$8,Nutrients!$DY$9)*U$7)+(((IF($A$8=Nutrients!$B$79,Nutrients!$DY$79,(IF($A$8=Nutrients!$B$77,Nutrients!$DY$77,Nutrients!$DY$78)))))*U$8))/2000/2.2046","v":1150.9323531256127},null,{"$f":"(SUMPRODUCT(W$9:W$229,Nutrients!$DY$8:$DY$228)+(IF($A$7=Nutrients!$B$8,Nutrients!$DY$8,Nutrients!$DY$9)*W$7)+(((IF($A$8=Nutrients!$B$79,Nutrients!$DY$79,(IF($A$8=Nutrients!$B$77,Nutrients!$DY$77,Nutrients!$DY$78)))))*W$8))/2000/2.2046","v":960.10468444507478},{"$f":"(SUMPRODUCT(X$9:X$229,Nutrients!$DY$8:$DY$228)+(IF($A$7=Nutrients!$B$8,Nutrients!$DY$8,Nutrients!$DY$9)*X$7)+(((IF($A$8=Nutrients!$B$79,Nutrients!$DY$79,(IF($A$8=Nutrients!$B$77,Nutrients!$DY$77,Nutrients!$DY$78)))))*X$8))/2000/2.2046","v":974.21373507558064},{"$f":"(SUMPRODUCT(Y$9:Y$229,Nutrients!$DY$8:$DY$228)+(IF($A$7=Nutrients!$B$8,Nutrients!$DY$8,Nutrients!$DY$9)*Y$7)+(((IF($A$8=Nutrients!$B$79,Nutrients!$DY$79,(IF($A$8=Nutrients!$B$77,Nutrients!$DY$77,Nutrients!$DY$78)))))*Y$8))/2000/2.2046","v":986.19876865579226},{"$f":"(SUMPRODUCT(Z$9:Z$229,Nutrients!$DY$8:$DY$228)+(IF($A$7=Nutrients!$B$8,Nutrients!$DY$8,Nutrients!$DY$9)*Z$7)+(((IF($A$8=Nutrients!$B$79,Nutrients!$DY$79,(IF($A$8=Nutrients!$B$77,Nutrients!$DY$77,Nutrients!$DY$78)))))*Z$8))/2000/2.2046","v":998.27771467429841},{"$f":"(SUMPRODUCT(AA$9:AA$229,Nutrients!$DY$8:$DY$228)+(IF($A$7=Nutrients!$B$8,Nutrients!$DY$8,Nutrients!$DY$9)*AA$7)+(((IF($A$8=Nutrients!$B$79,Nutrients!$DY$79,(IF($A$8=Nutrients!$B$77,Nutrients!$DY$77,Nutrients!$DY$78)))))*AA$8))/2000/2.2046","v":1008.4637611819539},{"$f":"(SUMPRODUCT(AB$9:AB$229,Nutrients!$DY$8:$DY$228)+(IF($A$7=Nutrients!$B$8,Nutrients!$DY$8,Nutrients!$DY$9)*AB$7)+(((IF($A$8=Nutrients!$B$79,Nutrients!$DY$79,(IF($A$8=Nutrients!$B$77,Nutrients!$DY$77,Nutrients!$DY$78)))))*AB$8))/2000/2.2046","v":1150.9323531256127},null,{"$f":"(SUMPRODUCT(AD$9:AD$229,Nutrients!$DY$8:$DY$228)+(IF($A$7=Nutrients!$B$8,Nutrients!$DY$8,Nutrients!$DY$9)*AD$7)+(((IF($A$8=Nutrients!$B$79,Nutrients!$DY$79,(IF($A$8=Nutrients!$B$77,Nutrients!$DY$77,Nutrients!$DY$78)))))*AD$8))/2000/2.2046","v":914.3829159176986},{"$f":"(SUMPRODUCT(AE$9:AE$229,Nutrients!$DY$8:$DY$228)+(IF($A$7=Nutrients!$B$8,Nutrients!$DY$8,Nutrients!$DY$9)*AE$7)+(((IF($A$8=Nutrients!$B$79,Nutrients!$DY$79,(IF($A$8=Nutrients!$B$77,Nutrients!$DY$77,Nutrients!$DY$78)))))*AE$8))/2000/2.2046","v":928.45415332639584},{"$f":"(SUMPRODUCT(AF$9:AF$229,Nutrients!$DY$8:$DY$228)+(IF($A$7=Nutrients!$B$8,Nutrients!$DY$8,Nutrients!$DY$9)*AF$7)+(((IF($A$8=Nutrients!$B$79,Nutrients!$DY$79,(IF($A$8=Nutrients!$B$77,Nutrients!$DY$77,Nutrients!$DY$78)))))*AF$8))/2000/2.2046","v":940.51559867985804},{"$f":"(SUMPRODUCT(AG$9:AG$229,Nutrients!$DY$8:$DY$228)+(IF($A$7=Nutrients!$B$8,Nutrients!$DY$8,Nutrients!$DY$9)*AG$7)+(((IF($A$8=Nutrients!$B$79,Nutrients!$DY$79,(IF($A$8=Nutrients!$B$77,Nutrients!$DY$77,Nutrients!$DY$78)))))*AG$8))/2000/2.2046","v":952.57802106830491},{"$f":"(SUMPRODUCT(AH$9:AH$229,Nutrients!$DY$8:$DY$228)+(IF($A$7=Nutrients!$B$8,Nutrients!$DY$8,Nutrients!$DY$9)*AH$7)+(((IF($A$8=Nutrients!$B$79,Nutrients!$DY$79,(IF($A$8=Nutrients!$B$77,Nutrients!$DY$77,Nutrients!$DY$78)))))*AH$8))/2000/2.2046","v":962.68626709792295},{"$f":"(SUMPRODUCT(AI$9:AI$229,Nutrients!$DY$8:$DY$228)+(IF($A$7=Nutrients!$B$8,Nutrients!$DY$8,Nutrients!$DY$9)*AI$7)+(((IF($A$8=Nutrients!$B$79,Nutrients!$DY$79,(IF($A$8=Nutrients!$B$77,Nutrients!$DY$77,Nutrients!$DY$78)))))*AI$8))/2000/2.2046","v":1150.9323531256127},null,{"$f":"(SUMPRODUCT(AK$9:AK$229,Nutrients!$DY$8:$DY$228)+(IF($A$7=Nutrients!$B$8,Nutrients!$DY$8,Nutrients!$DY$9)*AK$7)+(((IF($A$8=Nutrients!$B$79,Nutrients!$DY$79,(IF($A$8=Nutrients!$B$77,Nutrients!$DY$77,Nutrients!$DY$78)))))*AK$8))/2000/2.2046","v":868.603940034537},{"$f":"(SUMPRODUCT(AL$9:AL$229,Nutrients!$DY$8:$DY$228)+(IF($A$7=Nutrients!$B$8,Nutrients!$DY$8,Nutrients!$DY$9)*AL$7)+(((IF($A$8=Nutrients!$B$79,Nutrients!$DY$79,(IF($A$8=Nutrients!$B$77,Nutrients!$DY$77,Nutrients!$DY$78)))))*AL$8))/2000/2.2046","v":882.69178394563085},{"$f":"(SUMPRODUCT(AM$9:AM$229,Nutrients!$DY$8:$DY$228)+(IF($A$7=Nutrients!$B$8,Nutrients!$DY$8,Nutrients!$DY$9)*AM$7)+(((IF($A$8=Nutrients!$B$79,Nutrients!$DY$79,(IF($A$8=Nutrients!$B$77,Nutrients!$DY$77,Nutrients!$DY$78)))))*AM$8))/2000/2.2046","v":894.70242865206819},{"$f":"(SUMPRODUCT(AN$9:AN$229,Nutrients!$DY$8:$DY$228)+(IF($A$7=Nutrients!$B$8,Nutrients!$DY$8,Nutrients!$DY$9)*AN$7)+(((IF($A$8=Nutrients!$B$79,Nutrients!$DY$79,(IF($A$8=Nutrients!$B$77,Nutrients!$DY$77,Nutrients!$DY$78)))))*AN$8))/2000/2.2046","v":906.72343727007171},{"$f":"(SUMPRODUCT(AO$9:AO$229,Nutrients!$DY$8:$DY$228)+(IF($A$7=Nutrients!$B$8,Nutrients!$DY$8,Nutrients!$DY$9)*AO$7)+(((IF($A$8=Nutrients!$B$79,Nutrients!$DY$79,(IF($A$8=Nutrients!$B$77,Nutrients!$DY$77,Nutrients!$DY$78)))))*AO$8))/2000/2.2046","v":916.96530918641213},{"$f":"(SUMPRODUCT(AP$9:AP$229,Nutrients!$DY$8:$DY$228)+(IF($A$7=Nutrients!$B$8,Nutrients!$DY$8,Nutrients!$DY$9)*AP$7)+(((IF($A$8=Nutrients!$B$79,Nutrients!$DY$79,(IF($A$8=Nutrients!$B$77,Nutrients!$DY$77,Nutrients!$DY$78)))))*AP$8))/2000/2.2046","v":1150.9323531256127},null,{"$f":"(SUMPRODUCT(AR$9:AR$229,Nutrients!$DY$8:$DY$228)+(IF($A$7=Nutrients!$B$8,Nutrients!$DY$8,Nutrients!$DY$9)*AR$7)+(((IF($A$8=Nutrients!$B$79,Nutrients!$DY$79,(IF($A$8=Nutrients!$B$77,Nutrients!$DY$77,Nutrients!$DY$78)))))*AR$8))/2000/2.2046","v":822.97218352412347},{"$f":"(SUMPRODUCT(AS$9:AS$229,Nutrients!$DY$8:$DY$228)+(IF($A$7=Nutrients!$B$8,Nutrients!$DY$8,Nutrients!$DY$9)*AS$7)+(((IF($A$8=Nutrients!$B$79,Nutrients!$DY$79,(IF($A$8=Nutrients!$B$77,Nutrients!$DY$77,Nutrients!$DY$78)))))*AS$8))/2000/2.2046","v":836.8988973182569},{"$f":"(SUMPRODUCT(AT$9:AT$229,Nutrients!$DY$8:$DY$228)+(IF($A$7=Nutrients!$B$8,Nutrients!$DY$8,Nutrients!$DY$9)*AT$7)+(((IF($A$8=Nutrients!$B$79,Nutrients!$DY$79,(IF($A$8=Nutrients!$B$77,Nutrients!$DY$77,Nutrients!$DY$78)))))*AT$8))/2000/2.2046","v":848.92825902769459},{"$f":"(SUMPRODUCT(AU$9:AU$229,Nutrients!$DY$8:$DY$228)+(IF($A$7=Nutrients!$B$8,Nutrients!$DY$8,Nutrients!$DY$9)*AU$7)+(((IF($A$8=Nutrients!$B$79,Nutrients!$DY$79,(IF($A$8=Nutrients!$B$77,Nutrients!$DY$77,Nutrients!$DY$78)))))*AU$8))/2000/2.2046","v":860.98040187487868},{"$f":"(SUMPRODUCT(AV$9:AV$229,Nutrients!$DY$8:$DY$228)+(IF($A$7=Nutrients!$B$8,Nutrients!$DY$8,Nutrients!$DY$9)*AV$7)+(((IF($A$8=Nutrients!$B$79,Nutrients!$DY$79,(IF($A$8=Nutrients!$B$77,Nutrients!$DY$77,Nutrients!$DY$78)))))*AV$8))/2000/2.2046","v":871.2446857367612},{"$f":"(SUMPRODUCT(AW$9:AW$229,Nutrients!$DY$8:$DY$228)+(IF($A$7=Nutrients!$B$8,Nutrients!$DY$8,Nutrients!$DY$9)*AW$7)+(((IF($A$8=Nutrients!$B$79,Nutrients!$DY$79,(IF($A$8=Nutrients!$B$77,Nutrients!$DY$77,Nutrients!$DY$78)))))*AW$8))/2000/2.2046","v":1150.9323531256127}]
["NE Noblet Sow, kcal/lb",{"$f":"(SUMPRODUCT(B$9:B$229,Nutrients!$DZ$8:$DZ$228)+(IF($A$7=Nutrients!$B$8,Nutrients!$DZ$8,Nutrients!$DZ$9)*B$7)+(((IF($A$8=Nutrients!$B$79,Nutrients!$DZ$79,(IF($A$8=Nutrients!$B$77,Nutrients!$DZ$77,Nutrients!$DZ$78)))))*B$8))/2000/2.2046","v":1137.6355538359269},{"$f":"(SUMPRODUCT(C$9:C$229,Nutrients!$DZ$8:$DZ$228)+(IF($A$7=Nutrients!$B$8,Nutrients!$DZ$8,Nutrients!$DZ$9)*C$7)+(((IF($A$8=Nutrients!$B$79,Nutrients!$DZ$79,(IF($A$8=Nutrients!$B$77,Nutrients!$DZ$77,Nutrients!$DZ$78)))))*C$8))/2000/2.2046","v":1150.9934545095848},{"$f":"(SUMPRODUCT(D$9:D$229,Nutrients!$DZ$8:$DZ$228)+(IF($A$7=Nutrients!$B$8,Nutrients!$DZ$8,Nutrients!$DZ$9)*D$7)+(((IF($A$8=Nutrients!$B$79,Nutrients!$DZ$79,(IF($A$8=Nutrients!$B$77,Nutrients!$DZ$77,Nutrients!$DZ$78)))))*D$8))/2000/2.2046","v":1162.42368942858},{"$f":"(SUMPRODUCT(E$9:E$229,Nutrients!$DZ$8:$DZ$228)+(IF($A$7=Nutrients!$B$8,Nutrients!$DZ$8,Nutrients!$DZ$9)*E$7)+(((IF($A$8=Nutrients!$B$79,Nutrients!$DZ$79,(IF($A$8=Nutrients!$B$77,Nutrients!$DZ$77,Nutrients!$DZ$78)))))*E$8))/2000/2.2046","v":1173.9065707641619},{"$f":"(SUMPRODUCT(F$9:F$229,Nutrients!$DZ$8:$DZ$228)+(IF($A$7=Nutrients!$B$8,Nutrients!$DZ$8,Nutrients!$DZ$9)*F$7)+(((IF($A$8=Nutrients!$B$79,Nutrients!$DZ$79,(IF($A$8=Nutrients!$B$77,Nutrients!$DZ$77,Nutrients!$DZ$78)))))*F$8))/2000/2.2046","v":1183.6213518369293},{"$f":"(SUMPRODUCT(G$9:G$229,Nutrients!$DZ$8:$DZ$228)+(IF($A$7=Nutrients!$B$8,Nutrients!$DZ$8,Nutrients!$DZ$9)*G$7)+(((IF($A$8=Nutrients!$B$79,Nutrients!$DZ$79,(IF($A$8=Nutrients!$B$77,Nutrients!$DZ$77,Nutrients!$DZ$78)))))*G$8))/2000/2.2046","v":1188.5451985530322},null,{"$f":"(SUMPRODUCT(I$9:I$229,Nutrients!$DZ$8:$DZ$228)+(IF($A$7=Nutrients!$B$8,Nutrients!$DZ$8,Nutrients!$DZ$9)*I$7)+(((IF($A$8=Nutrients!$B$79,Nutrients!$DZ$79,(IF($A$8=Nutrients!$B$77,Nutrients!$DZ$77,Nutrients!$DZ$78)))))*I$8))/2000/2.2046","v":1089.4506600974669},{"$f":"(SUMPRODUCT(J$9:J$229,Nutrients!$DZ$8:$DZ$228)+(IF($A$7=Nutrients!$B$8,Nutrients!$DZ$8,Nutrients!$DZ$9)*J$7)+(((IF($A$8=Nutrients!$B$79,Nutrients!$DZ$79,(IF($A$8=Nutrients!$B$77,Nutrients!$DZ$77,Nutrients!$DZ$78)))))*J$8))/2000/2.2046","v":1102.8828468718941},{"$f":"(SUMPRODUCT(K$9:K$229,Nutrients!$DZ$8:$DZ$228)+(IF($A$7=Nutrients!$B$8,Nutrients!$DZ$8,Nutrients!$DZ$9)*K$7)+(((IF($A$8=Nutrients!$B$79,Nutrients!$DZ$79,(IF($A$8=Nutrients!$B$77,Nutrients!$DZ$77,Nutrients!$DZ$78)))))*K$8))/2000/2.2046","v":1114.3621608418489},{"$f":"(SUMPRODUCT(L$9:L$229,Nutrients!$DZ$8:$DZ$228)+(IF($A$7=Nutrients!$B$8,Nutrients!$DZ$8,Nutrients!$DZ$9)*L$7)+(((IF($A$8=Nutrients!$B$79,Nutrients!$DZ$79,(IF($A$8=Nutrients!$B$77,Nutrients!$DZ$77,Nutrients!$DZ$78)))))*L$8))/2000/2.2046","v":1125.8804876952288},{"$f":"(SUMPRODUCT(M$9:M$229,Nutrients!$DZ$8:$DZ$228)+(IF($A$7=Nutrients!$B$8,Nutrients!$DZ$8,Nutrients!$DZ$9)*M$7)+(((IF($A$8=Nutrients!$B$79,Nutrients!$DZ$79,(IF($A$8=Nutrients!$B$77,Nutrients!$DZ$77,Nutrients!$DZ$78)))))*M$8))/2000/2.2046","v":1135.5980949538371},{"$f":"(SUMPRODUCT(N$9:N$229,Nutrients!$DZ$8:$DZ$228)+(IF($A$7=Nutrients!$B$8,Nutrients!$DZ$8,Nutrients!$DZ$9)*N$7)+(((IF($A$8=Nutrients!$B$79,Nutrients!$DZ$79,(IF($A$8=Nutrients!$B$77,Nutrients!$DZ$77,Nutrients!$DZ$78)))))*N$8))/2000/2.2046","v":1188.5451985530322},null,{"$f":"(SUMPRODUCT(P$9:P$229,Nutrients!$DZ$8:$DZ$228)+(IF($A$7=Nutrients!$B$8,Nutrients!$DZ$8,Nutrients!$DZ$9)*P$7)+(((IF($A$8=Nutrients!$B$79,Nutrients!$DZ$79,(IF($A$8=Nutrients!$B$77,Nutrients!$DZ$77,Nutrients!$DZ$78)))))*P$8))/2000/2.2046","v":1041.3637192322442},{"$f":"(SUMPRODUCT(Q$9:Q$229,Nutrients!$DZ$8:$DZ$228)+(IF($A$7=Nutrients!$B$8,Nutrients!$DZ$8,Nutrients!$DZ$9)*Q$7)+(((IF($A$8=Nutrients!$B$79,Nutrients!$DZ$79,(IF($A$8=Nutrients!$B$77,Nutrients!$DZ$77,Nutrients!$DZ$78)))))*Q$8))/2000/2.2046","v":1054.8135449411864},{"$f":"(SUMPRODUCT(R$9:R$229,Nutrients!$DZ$8:$DZ$228)+(IF($A$7=Nutrients!$B$8,Nutrients!$DZ$8,Nutrients!$DZ$9)*R$7)+(((IF($A$8=Nutrients!$B$79,Nutrients!$DZ$79,(IF($A$8=Nutrients!$B$77,Nutrients!$DZ$77,Nutrients!$DZ$78)))))*R$8))/2000/2.2046","v":1066.3585323169407},{"$f":"(SUMPRODUCT(S$9:S$229,Nutrients!$DZ$8:$DZ$228)+(IF($A$7=Nutrients!$B$8,Nutrients!$DZ$8,Nutrients!$DZ$9)*S$7)+(((IF($A$8=Nutrients!$B$79,Nutrients!$DZ$79,(IF($A$8=Nutrients!$B$77,Nutrients!$DZ$77,Nutrients!$DZ$78)))))*S$8))/2000/2.2046","v":1077.8467168079274},{"$f":"(SUMPRODUCT(T$9:T$229,Nutrients!$DZ$8:$DZ$228)+(IF($A$7=Nutrients!$B$8,Nutrients!$DZ$8,Nutrients!$DZ$9)*T$7)+(((IF($A$8=Nutrients!$B$79,Nutrients!$DZ$79,(IF($A$8=Nutrients!$B$77,Nutrients!$DZ$77,Nutrients!$DZ$78)))))*T$8))/2000/2.2046","v":1087.5691704118574},{"$f":"(SUMPRODUCT(U$9:U$229,Nutrients!$DZ$8:$DZ$228)+(IF($A$7=Nutrients!$B$8,Nutrients!$DZ$8,Nutrients!$DZ$9)*U$7)+(((IF($A$8=Nutrients!$B$79,Nutrients!$DZ$79,(IF($A$8=Nutrients!$B$77,Nutrients!$DZ$77,Nutrients!$DZ$78)))))*U$8))/2000/2.2046","v":1188.5451985530322},null,{"$f":"(SUMPRODUCT(W$9:W$229,Nutrients!$DZ$8:$DZ$228)+(IF($A$7=Nutrients!$B$8,Nutrients!$DZ$8,Nutrients!$DZ$9)*W$7)+(((IF($A$8=Nutrients!$B$79,Nutrients!$DZ$79,(IF($A$8=Nutrients!$B$77,Nutrients!$DZ$77,Nutrients!$DZ$78)))))*W$8))/2000/2.2046","v":993.36867258182713},{"$f":"(SUMPRODUCT(X$9:X$229,Nutrients!$DZ$8:$DZ$228)+(IF($A$7=Nutrients!$B$8,Nutrients!$DZ$8,Nutrients!$DZ$9)*X$7)+(((IF($A$8=Nutrients!$B$79,Nutrients!$DZ$79,(IF($A$8=Nutrients!$B$77,Nutrients!$DZ$77,Nutrients!$DZ$78)))))*X$8))/2000/2.2046","v":1006.879498455176},{"$f":"(SUMPRODUCT(Y$9:Y$229,Nutrients!$DZ$8:$DZ$228)+(IF($A$7=Nutrients!$B$8,Nutrients!$DZ$8,Nutrients!$DZ$9)*Y$7)+(((IF($A$8=Nutrients!$B$79,Nutrients!$DZ$79,(IF($A$8=Nutrients!$B$77,Nutrients!$DZ$77,Nutrients!$DZ$78)))))*Y$8))/2000/2.2046","v":1018.3848357045318},{"$f":"(SUMPRODUCT(Z$9:Z$229,Nutrients!$DZ$8:$DZ$228)+(IF($A$7=Nutrients!$B$8,Nutrients!$DZ$8,Nutrients!$DZ$9)*Z$7)+(((IF($A$8=Nutrients!$B$79,Nutrients!$DZ$79,(IF($A$8=Nutrients!$B$77,Nutrients!$DZ$77,Nutrients!$DZ$78)))))*Z$8))/2000/2.2046","v":1029.9399912506867},{"$f":"(SUMPRODUCT(AA$9:AA$229,Nutrients!$DZ$8:$DZ$228)+(IF($A$7=Nutrients!$B$8,Nutrients!$DZ$8,Nutrients!$DZ$9)*AA$7)+(((IF($A$8=Nutrients!$B$79,Nutrients!$DZ$79,(IF($A$8=Nutrients!$B$77,Nutrients!$DZ$77,Nutrients!$DZ$78)))))*AA$8))/2000/2.2046","v":1039.6684732000551},{"$f":"(SUMPRODUCT(AB$9:AB$229,Nutrients!$DZ$8:$DZ$228)+(IF($A$7=Nutrients!$B$8,Nutrients!$DZ$8,Nutrients!$DZ$9)*AB$7)+(((IF($A$8=Nutrients!$B$79,Nutrients!$DZ$79,(IF($A$8=Nutrients!$B$77,Nutrients!$DZ$77,Nutrients!$DZ$78)))))*AB$8))/2000/2.2046","v":1188.5451985530322},null,{"$f":"(SUMPRODUCT(AD$9:AD$229,Nutrients!$DZ$8:$DZ$228)+(IF($A$7=Nutrients!$B$8,Nutrients!$DZ$8,Nutrients!$DZ$9)*AD$7)+(((IF($A$8=Nutrients!$B$79,Nutrients!$DZ$79,(IF($A$8=Nutrients!$B$77,Nutrients!$DZ$77,Nutrients!$DZ$78)))))*AD$8))/2000/2.2046","v":945.42381709425399},{"$f":"(SUMPRODUCT(AE$9:AE$229,Nutrients!$DZ$8:$DZ$228)+(IF($A$7=Nutrients!$B$8,Nutrients!$DZ$8,Nutrients!$DZ$9)*AE$7)+(((IF($A$8=Nutrients!$B$79,Nutrients!$DZ$79,(IF($A$8=Nutrients!$B$77,Nutrients!$DZ$77,Nutrients!$DZ$78)))))*AE$8))/2000/2.2046","v":958.8977093532219},{"$f":"(SUMPRODUCT(AF$9:AF$229,Nutrients!$DZ$8:$DZ$228)+(IF($A$7=Nutrients!$B$8,Nutrients!$DZ$8,Nutrients!$DZ$9)*AF$7)+(((IF($A$8=Nutrients!$B$79,Nutrients!$DZ$79,(IF($A$8=Nutrients!$B$77,Nutrients!$DZ$77,Nutrients!$DZ$78)))))*AF$8))/2000/2.2046","v":970.47638525085381},{"$f":"(SUMPRODUCT(AG$9:AG$229,Nutrients!$DZ$8:$DZ$228)+(IF($A$7=Nutrients!$B$8,Nutrients!$DZ$8,Nutrients!$DZ$9)*AG$7)+(((IF($A$8=Nutrients!$B$79,Nutrients!$DZ$79,(IF($A$8=Nutrients!$B$77,Nutrients!$DZ$77,Nutrients!$DZ$78)))))*AG$8))/2000/2.2046","v":982.01373465051347},{"$f":"(SUMPRODUCT(AH$9:AH$229,Nutrients!$DZ$8:$DZ$228)+(IF($A$7=Nutrients!$B$8,Nutrients!$DZ$8,Nutrients!$DZ$9)*AH$7)+(((IF($A$8=Nutrients!$B$79,Nutrients!$DZ$79,(IF($A$8=Nutrients!$B$77,Nutrients!$DZ$77,Nutrients!$DZ$78)))))*AH$8))/2000/2.2046","v":991.62123444222925},{"$f":"(SUMPRODUCT(AI$9:AI$229,Nutrients!$DZ$8:$DZ$228)+(IF($A$7=Nutrients!$B$8,Nutrients!$DZ$8,Nutrients!$DZ$9)*AI$7)+(((IF($A$8=Nutrients!$B$79,Nutrients!$DZ$79,(IF($A$8=Nutrients!$B$77,Nutrients!$DZ$77,Nutrients!$DZ$78)))))*AI$8))/2000/2.2046","v":1188.5451985530322},null,{"$f":"(SUMPRODUCT(AK$9:AK$229,Nutrients!$DZ$8:$DZ$228)+(IF($A$7=Nutrients!$B$8,Nutrients!$DZ$8,Nutrients!$DZ$9)*AK$7)+(((IF($A$8=Nutrients!$B$79,Nutrients!$DZ$79,(IF($A$8=Nutrients!$B$77,Nutrients!$DZ$77,Nutrients!$DZ$78)))))*AK$8))/2000/2.2046","v":897.42024423647422},{"$f":"(SUMPRODUCT(AL$9:AL$229,Nutrients!$DZ$8:$DZ$228)+(IF($A$7=Nutrients!$B$8,Nutrients!$DZ$8,Nutrients!$DZ$9)*AL$7)+(((IF($A$8=Nutrients!$B$79,Nutrients!$DZ$79,(IF($A$8=Nutrients!$B$77,Nutrients!$DZ$77,Nutrients!$DZ$78)))))*AL$8))/2000/2.2046","v":910.91003352765608},{"$f":"(SUMPRODUCT(AM$9:AM$229,Nutrients!$DZ$8:$DZ$228)+(IF($A$7=Nutrients!$B$8,Nutrients!$DZ$8,Nutrients!$DZ$9)*AM$7)+(((IF($A$8=Nutrients!$B$79,Nutrients!$DZ$79,(IF($A$8=Nutrients!$B$77,Nutrients!$DZ$77,Nutrients!$DZ$78)))))*AM$8))/2000/2.2046","v":922.43894718837032},{"$f":"(SUMPRODUCT(AN$9:AN$229,Nutrients!$DZ$8:$DZ$228)+(IF($A$7=Nutrients!$B$8,Nutrients!$DZ$8,Nutrients!$DZ$9)*AN$7)+(((IF($A$8=Nutrients!$B$79,Nutrients!$DZ$79,(IF($A$8=Nutrients!$B$77,Nutrients!$DZ$77,Nutrients!$DZ$78)))))*AN$8))/2000/2.2046","v":933.89558593715253},{"$f":"(SUMPRODUCT(AO$9:AO$229,Nutrients!$DZ$8:$DZ$228)+(IF($A$7=Nutrients!$B$8,Nutrients!$DZ$8,Nutrients!$DZ$9)*AO$7)+(((IF($A$8=Nutrients!$B$79,Nutrients!$DZ$79,(IF($A$8=Nutrients!$B$77,Nutrients!$DZ$77,Nutrients!$DZ$78)))))*AO$8))/2000/2.2046","v":943.61906060075933},{"$f":"(SUMPRODUCT(AP$9:AP$229,Nutrients!$DZ$8:$DZ$228)+(IF($A$7=Nutrients!$B$8,Nutrients!$DZ$8,Nutrients!$DZ$9)*AP$7)+(((IF($A$8=Nutrients!$B$79,Nutrients!$DZ$79,(IF($A$8=Nutrients!$B$77,Nutrients!$DZ$77,Nutrients!$DZ$78)))))*AP$8))/2000/2.2046","v":1188.5451985530322},null,{"$f":"(SUMPRODUCT(AR$9:AR$229,Nutrients!$DZ$8:$DZ$228)+(IF($A$7=Nutrients!$B$8,Nutrients!$DZ$8,Nutrients!$DZ$9)*AR$7)+(((IF($A$8=Nutrients!$B$79,Nutrients!$DZ$79,(IF($A$8=Nutrients!$B$77,Nutrients!$DZ$77,Nutrients!$DZ$78)))))*AR$8))/2000/2.2046","v":849.56109125476348},{"$f":"(SUMPRODUCT(AS$9:AS$229,Nutrients!$DZ$8:$DZ$228)+(IF($A$7=Nutrients!$B$8,Nutrients!$DZ$8,Nutrients!$DZ$9)*AS$7)+(((IF($A$8=Nutrients!$B$79,Nutrients!$DZ$79,(IF($A$8=Nutrients!$B$77,Nutrients!$DZ$77,Nutrients!$DZ$78)))))*AS$8))/2000/2.2046","v":862.89142073846028},{"$f":"(SUMPRODUCT(AT$9:AT$229,Nutrients!$DZ$8:$DZ$228)+(IF($A$7=Nutrients!$B$8,Nutrients!$DZ$8,Nutrients!$DZ$9)*AT$7)+(((IF($A$8=Nutrients!$B$79,Nutrients!$DZ$79,(IF($A$8=Nutrients!$B$77,Nutrients!$DZ$77,Nutrients!$DZ$78)))))*AT$8))/2000/2.2046","v":874.43334957469426},{"$f":"(SUMPRODUCT(AU$9:AU$229,Nutrients!$DZ$8:$DZ$228)+(IF($A$7=Nutrients!$B$8,Nutrients!$DZ$8,Nutrients!$DZ$9)*AU$7)+(((IF($A$8=Nutrients!$B$79,Nutrients!$DZ$79,(IF($A$8=Nutrients!$B$77,Nutrients!$DZ$77,Nutrients!$DZ$78)))))*AU$8))/2000/2.2046","v":885.87140010730263},{"$f":"(SUMPRODUCT(AV$9:AV$229,Nutrients!$DZ$8:$DZ$228)+(IF($A$7=Nutrients!$B$8,Nutrients!$DZ$8,Nutrients!$DZ$9)*AV$7)+(((IF($A$8=Nutrients!$B$79,Nutrients!$DZ$79,(IF($A$8=Nutrients!$B$77,Nutrients!$DZ$77,Nutrients!$DZ$78)))))*AV$8))/2000/2.2046","v":895.6172131661092},{"$f":"(SUMPRODUCT(AW$9:AW$229,Nutrients!$DZ$8:$DZ$228)+(IF($A$7=Nutrients!$B$8,Nutrients!$DZ$8,Nutrients!$DZ$9)*AW$7)+(((IF($A$8=Nutrients!$B$79,Nutrients!$DZ$79,(IF($A$8=Nutrients!$B$77,Nutrients!$DZ$77,Nutrients!$DZ$78)))))*AW$8))/2000/2.2046","v":1188.5451985530322}]
["DE NRC, kcal/lb",{"$f":"(SUMPRODUCT(B$9:B$229,Nutrients!$D$8:$D$228)+(IF($A$7=Nutrients!$B$8,Nutrients!$D$8,Nutrients!$D$9)*B$7)+(((IF($A$8=Nutrients!$B$79,Nutrients!$D$79,(IF($A$8=Nutrients!$B$77,Nutrients!$D$77,Nutrients!$D$78)))))*B$8))/2000/2.2046","v":1553.447657374518},{"$f":"(SUMPRODUCT(C$9:C$229,Nutrients!$D$8:$D$228)+(IF($A$7=Nutrients!$B$8,Nutrients!$D$8,Nutrients!$D$9)*C$7)+(((IF($A$8=Nutrients!$B$79,Nutrients!$D$79,(IF($A$8=Nutrients!$B$77,Nutrients!$D$77,Nutrients!$D$78)))))*C$8))/2000/2.2046","v":1552.8317239882158},{"$f":"(SUMPRODUCT(D$9:D$229,Nutrients!$D$8:$D$228)+(IF($A$7=Nutrients!$B$8,Nutrients!$D$8,Nutrients!$D$9)*D$7)+(((IF($A$8=Nutrients!$B$79,Nutrients!$D$79,(IF($A$8=Nutrients!$B$77,Nutrients!$D$77,Nutrients!$D$78)))))*D$8))/2000/2.2046","v":1552.5109280788211},{"$f":"(SUMPRODUCT(E$9:E$229,Nutrients!$D$8:$D$228)+(IF($A$7=Nutrients!$B$8,Nutrients!$D$8,Nutrients!$D$9)*E$7)+(((IF($A$8=Nutrients!$B$79,Nutrients!$D$79,(IF($A$8=Nutrients!$B$77,Nutrients!$D$77,Nutrients!$D$78)))))*E$8))/2000/2.2046","v":1552.5671760275247},{"$f":"(SUMPRODUCT(F$9:F$229,Nutrients!$D$8:$D$228)+(IF($A$7=Nutrients!$B$8,Nutrients!$D$8,Nutrients!$D$9)*F$7)+(((IF($A$8=Nutrients!$B$79,Nutrients!$D$79,(IF($A$8=Nutrients!$B$77,Nutrients!$D$77,Nutrients!$D$78)))))*F$8))/2000/2.2046","v":1552.7159321016593},{"$f":"(SUMPRODUCT(G$9:G$229,Nutrients!$D$8:$D$228)+(IF($A$7=Nutrients!$B$8,Nutrients!$D$8,Nutrients!$D$9)*G$7)+(((IF($A$8=Nutrients!$B$79,Nutrients!$D$79,(IF($A$8=Nutrients!$B$77,Nutrients!$D$77,Nutrients!$D$78)))))*G$8))/2000/2.2046","v":1552.2569188768136},null,{"$f":"(SUMPRODUCT(I$9:I$229,Nutrients!$D$8:$D$228)+(IF($A$7=Nutrients!$B$8,Nutrients!$D$8,Nutrients!$D$9)*I$7)+(((IF($A$8=Nutrients!$B$79,Nutrients!$D$79,(IF($A$8=Nutrients!$B$77,Nutrients!$D$77,Nutrients!$D$78)))))*I$8))/2000/2.2046","v":1570.5794191214936},{"$f":"(SUMPRODUCT(J$9:J$229,Nutrients!$D$8:$D$228)+(IF($A$7=Nutrients!$B$8,Nutrients!$D$8,Nutrients!$D$9)*J$7)+(((IF($A$8=Nutrients!$B$79,Nutrients!$D$79,(IF($A$8=Nutrients!$B$77,Nutrients!$D$77,Nutrients!$D$78)))))*J$8))/2000/2.2046","v":1570.0494186088647},{"$f":"(SUMPRODUCT(K$9:K$229,Nutrients!$D$8:$D$228)+(IF($A$7=Nutrients!$B$8,Nutrients!$D$8,Nutrients!$D$9)*K$7)+(((IF($A$8=Nutrients!$B$79,Nutrients!$D$79,(IF($A$8=Nutrients!$B$77,Nutrients!$D$77,Nutrients!$D$78)))))*K$8))/2000/2.2046","v":1569.8197306845409},{"$f":"(SUMPRODUCT(L$9:L$229,Nutrients!$D$8:$D$228)+(IF($A$7=Nutrients!$B$8,Nutrients!$D$8,Nutrients!$D$9)*L$7)+(((IF($A$8=Nutrients!$B$79,Nutrients!$D$79,(IF($A$8=Nutrients!$B$77,Nutrients!$D$77,Nutrients!$D$78)))))*L$8))/2000/2.2046","v":1569.8977070591386},{"$f":"(SUMPRODUCT(M$9:M$229,Nutrients!$D$8:$D$228)+(IF($A$7=Nutrients!$B$8,Nutrients!$D$8,Nutrients!$D$9)*M$7)+(((IF($A$8=Nutrients!$B$79,Nutrients!$D$79,(IF($A$8=Nutrients!$B$77,Nutrients!$D$77,Nutrients!$D$78)))))*M$8))/2000/2.2046","v":1570.0391789983364},{"$f":"(SUMPRODUCT(N$9:N$229,Nutrients!$D$8:$D$228)+(IF($A$7=Nutrients!$B$8,Nutrients!$D$8,Nutrients!$D$9)*N$7)+(((IF($A$8=Nutrients!$B$79,Nutrients!$D$79,(IF($A$8=Nutrients!$B$77,Nutrients!$D$77,Nutrients!$D$78)))))*N$8))/2000/2.2046","v":1552.2569188768136},null,{"$f":"(SUMPRODUCT(P$9:P$229,Nutrients!$D$8:$D$228)+(IF($A$7=Nutrients!$B$8,Nutrients!$D$8,Nutrients!$D$9)*P$7)+(((IF($A$8=Nutrients!$B$79,Nutrients!$D$79,(IF($A$8=Nutrients!$B$77,Nutrients!$D$77,Nutrients!$D$78)))))*P$8))/2000/2.2046","v":1587.8338185749355},{"$f":"(SUMPRODUCT(Q$9:Q$229,Nutrients!$D$8:$D$228)+(IF($A$7=Nutrients!$B$8,Nutrients!$D$8,Nutrients!$D$9)*Q$7)+(((IF($A$8=Nutrients!$B$79,Nutrients!$D$79,(IF($A$8=Nutrients!$B$77,Nutrients!$D$77,Nutrients!$D$78)))))*Q$8))/2000/2.2046","v":1587.3334018427045},{"$f":"(SUMPRODUCT(R$9:R$229,Nutrients!$D$8:$D$228)+(IF($A$7=Nutrients!$B$8,Nutrients!$D$8,Nutrients!$D$9)*R$7)+(((IF($A$8=Nutrients!$B$79,Nutrients!$D$79,(IF($A$8=Nutrients!$B$77,Nutrients!$D$77,Nutrients!$D$78)))))*R$8))/2000/2.2046","v":1587.1891448772083},{"$f":"(SUMPRODUCT(S$9:S$229,Nutrients!$D$8:$D$228)+(IF($A$7=Nutrients!$B$8,Nutrients!$D$8,Nutrients!$D$9)*S$7)+(((IF($A$8=Nutrients!$B$79,Nutrients!$D$79,(IF($A$8=Nutrients!$B$77,Nutrients!$D$77,Nutrients!$D$78)))))*S$8))/2000/2.2046","v":1587.2373672405836},{"$f":"(SUMPRODUCT(T$9:T$229,Nutrients!$D$8:$D$228)+(IF($A$7=Nutrients!$B$8,Nutrients!$D$8,Nutrients!$D$9)*T$7)+(((IF($A$8=Nutrients!$B$79,Nutrients!$D$79,(IF($A$8=Nutrients!$B$77,Nutrients!$D$77,Nutrients!$D$78)))))*T$8))/2000/2.2046","v":1587.3700336760207},{"$f":"(SUMPRODUCT(U$9:U$229,Nutrients!$D$8:$D$228)+(IF($A$7=Nutrients!$B$8,Nutrients!$D$8,Nutrients!$D$9)*U$7)+(((IF($A$8=Nutrients!$B$79,Nutrients!$D$79,(IF($A$8=Nutrients!$B$77,Nutrients!$D$77,Nutrients!$D$78)))))*U$8))/2000/2.2046","v":1552.2569188768136},null,{"$f":"(SUMPRODUCT(W$9:W$229,Nutrients!$D$8:$D$228)+(IF($A$7=Nutrients!$B$8,Nutrients!$D$8,Nutrients!$D$9)*W$7)+(((IF($A$8=Nutrients!$B$79,Nutrients!$D$79,(IF($A$8=Nutrients!$B$77,Nutrients!$D$77,Nutrients!$D$78)))))*W$8))/2000/2.2046","v":1605.1988453321201},{"$f":"(SUMPRODUCT(X$9:X$229,Nutrients!$D$8:$D$228)+(IF($A$7=Nutrients!$B$8,Nutrients!$D$8,Nutrients!$D$9)*X$7)+(((IF($A$8=Nutrients!$B$79,Nutrients!$D$79,(IF($A$8=Nutrients!$B$77,Nutrients!$D$77,Nutrients!$D$78)))))*X$8))/2000/2.2046","v":1604.7854257528716},{"$f":"(SUMPRODUCT(Y$9:Y$229,Nutrients!$D$8:$D$228)+(IF($A$7=Nutrients!$B$8,Nutrients!$D$8,Nutrients!$D$9)*Y$7)+(((IF($A$8=Nutrients!$B$79,Nutrients!$D$79,(IF($A$8=Nutrients!$B$77,Nutrients!$D$77,Nutrients!$D$78)))))*Y$8))/2000/2.2046","v":1604.6020098576921},{"$f":"(SUMPRODUCT(Z$9:Z$229,Nutrients!$D$8:$D$228)+(IF($A$7=Nutrients!$B$8,Nutrients!$D$8,Nutrients!$D$9)*Z$7)+(((IF($A$8=Nutrients!$B$79,Nutrients!$D$79,(IF($A$8=Nutrients!$B$77,Nutrients!$D$77,Nutrients!$D$78)))))*Z$8))/2000/2.2046","v":1604.7468112150666},{"$f":"(SUMPRODUCT(AA$9:AA$229,Nutrients!$D$8:$D$228)+(IF($A$7=Nutrients!$B$8,Nutrients!$D$8,Nutrients!$D$9)*AA$7)+(((IF($A$8=Nutrients!$B$79,Nutrients!$D$79,(IF($A$8=Nutrients!$B$77,Nutrients!$D$77,Nutrients!$D$78)))))*AA$8))/2000/2.2046","v":1604.9173888291984},{"$f":"(SUMPRODUCT(AB$9:AB$229,Nutrients!$D$8:$D$228)+(IF($A$7=Nutrients!$B$8,Nutrients!$D$8,Nutrients!$D$9)*AB$7)+(((IF($A$8=Nutrients!$B$79,Nutrients!$D$79,(IF($A$8=Nutrients!$B$77,Nutrients!$D$77,Nutrients!$D$78)))))*AB$8))/2000/2.2046","v":1552.2569188768136},null,{"$f":"(SUMPRODUCT(AD$9:AD$229,Nutrients!$D$8:$D$228)+(IF($A$7=Nutrients!$B$8,Nutrients!$D$8,Nutrients!$D$9)*AD$7)+(((IF($A$8=Nutrients!$B$79,Nutrients!$D$79,(IF($A$8=Nutrients!$B$77,Nutrients!$D$77,Nutrients!$D$78)))))*AD$8))/2000/2.2046","v":1622.6391519958393},{"$f":"(SUMPRODUCT(AE$9:AE$229,Nutrients!$D$8:$D$228)+(IF($A$7=Nutrients!$B$8,Nutrients!$D$8,Nutrients!$D$9)*AE$7)+(((IF($A$8=Nutrients!$B$79,Nutrients!$D$79,(IF($A$8=Nutrients!$B$77,Nutrients!$D$77,Nutrients!$D$78)))))*AE$8))/2000/2.2046","v":1622.1807061595498},{"$f":"(SUMPRODUCT(AF$9:AF$229,Nutrients!$D$8:$D$228)+(IF($A$7=Nutrients!$B$8,Nutrients!$D$8,Nutrients!$D$9)*AF$7)+(((IF($A$8=Nutrients!$B$79,Nutrients!$D$79,(IF($A$8=Nutrients!$B$77,Nutrients!$D$77,Nutrients!$D$78)))))*AF$8))/2000/2.2046","v":1622.1095228675297},{"$f":"(SUMPRODUCT(AG$9:AG$229,Nutrients!$D$8:$D$228)+(IF($A$7=Nutrients!$B$8,Nutrients!$D$8,Nutrients!$D$9)*AG$7)+(((IF($A$8=Nutrients!$B$79,Nutrients!$D$79,(IF($A$8=Nutrients!$B$77,Nutrients!$D$77,Nutrients!$D$78)))))*AG$8))/2000/2.2046","v":1622.2429360322983},{"$f":"(SUMPRODUCT(AH$9:AH$229,Nutrients!$D$8:$D$228)+(IF($A$7=Nutrients!$B$8,Nutrients!$D$8,Nutrients!$D$9)*AH$7)+(((IF($A$8=Nutrients!$B$79,Nutrients!$D$79,(IF($A$8=Nutrients!$B$77,Nutrients!$D$77,Nutrients!$D$78)))))*AH$8))/2000/2.2046","v":1622.1841308191349},{"$f":"(SUMPRODUCT(AI$9:AI$229,Nutrients!$D$8:$D$228)+(IF($A$7=Nutrients!$B$8,Nutrients!$D$8,Nutrients!$D$9)*AI$7)+(((IF($A$8=Nutrients!$B$79,Nutrients!$D$79,(IF($A$8=Nutrients!$B$77,Nutrients!$D$77,Nutrients!$D$78)))))*AI$8))/2000/2.2046","v":1552.2569188768136},null,{"$f":"(SUMPRODUCT(AK$9:AK$229,Nutrients!$D$8:$D$228)+(IF($A$7=Nutrients!$B$8,Nutrients!$D$8,Nutrients!$D$9)*AK$7)+(((IF($A$8=Nutrients!$B$79,Nutrients!$D$79,(IF($A$8=Nutrients!$B$77,Nutrients!$D$77,Nutrients!$D$78)))))*AK$8))/2000/2.2046","v":1640.0020969516074},{"$f":"(SUMPRODUCT(AL$9:AL$229,Nutrients!$D$8:$D$228)+(IF($A$7=Nutrients!$B$8,Nutrients!$D$8,Nutrients!$D$9)*AL$7)+(((IF($A$8=Nutrients!$B$79,Nutrients!$D$79,(IF($A$8=Nutrients!$B$77,Nutrients!$D$77,Nutrients!$D$78)))))*AL$8))/2000/2.2046","v":1639.5684773497417},{"$f":"(SUMPRODUCT(AM$9:AM$229,Nutrients!$D$8:$D$228)+(IF($A$7=Nutrients!$B$8,Nutrients!$D$8,Nutrients!$D$9)*AM$7)+(((IF($A$8=Nutrients!$B$79,Nutrients!$D$79,(IF($A$8=Nutrients!$B$77,Nutrients!$D$77,Nutrients!$D$78)))))*AM$8))/2000/2.2046","v":1639.4445611137123},{"$f":"(SUMPRODUCT(AN$9:AN$229,Nutrients!$D$8:$D$228)+(IF($A$7=Nutrients!$B$8,Nutrients!$D$8,Nutrients!$D$9)*AN$7)+(((IF($A$8=Nutrients!$B$79,Nutrients!$D$79,(IF($A$8=Nutrients!$B$77,Nutrients!$D$77,Nutrients!$D$78)))))*AN$8))/2000/2.2046","v":1639.4431767314516},{"$f":"(SUMPRODUCT(AO$9:AO$229,Nutrients!$D$8:$D$228)+(IF($A$7=Nutrients!$B$8,Nutrients!$D$8,Nutrients!$D$9)*AO$7)+(((IF($A$8=Nutrients!$B$79,Nutrients!$D$79,(IF($A$8=Nutrients!$B$77,Nutrients!$D$77,Nutrients!$D$78)))))*AO$8))/2000/2.2046","v":1639.4733878594141},{"$f":"(SUMPRODUCT(AP$9:AP$229,Nutrients!$D$8:$D$228)+(IF($A$7=Nutrients!$B$8,Nutrients!$D$8,Nutrients!$D$9)*AP$7)+(((IF($A$8=Nutrients!$B$79,Nutrients!$D$79,(IF($A$8=Nutrients!$B$77,Nutrients!$D$77,Nutrients!$D$78)))))*AP$8))/2000/2.2046","v":1552.2569188768136},null,{"$f":"(SUMPRODUCT(AR$9:AR$229,Nutrients!$D$8:$D$228)+(IF($A$7=Nutrients!$B$8,Nutrients!$D$8,Nutrients!$D$9)*AR$7)+(((IF($A$8=Nutrients!$B$79,Nutrients!$D$79,(IF($A$8=Nutrients!$B$77,Nutrients!$D$77,Nutrients!$D$78)))))*AR$8))/2000/2.2046","v":1657.5305720563433},{"$f":"(SUMPRODUCT(AS$9:AS$229,Nutrients!$D$8:$D$228)+(IF($A$7=Nutrients!$B$8,Nutrients!$D$8,Nutrients!$D$9)*AS$7)+(((IF($A$8=Nutrients!$B$79,Nutrients!$D$79,(IF($A$8=Nutrients!$B$77,Nutrients!$D$77,Nutrients!$D$78)))))*AS$8))/2000/2.2046","v":1656.9375685435482},{"$f":"(SUMPRODUCT(AT$9:AT$229,Nutrients!$D$8:$D$228)+(IF($A$7=Nutrients!$B$8,Nutrients!$D$8,Nutrients!$D$9)*AT$7)+(((IF($A$8=Nutrients!$B$79,Nutrients!$D$79,(IF($A$8=Nutrients!$B$77,Nutrients!$D$77,Nutrients!$D$78)))))*AT$8))/2000/2.2046","v":1656.8601590344711},{"$f":"(SUMPRODUCT(AU$9:AU$229,Nutrients!$D$8:$D$228)+(IF($A$7=Nutrients!$B$8,Nutrients!$D$8,Nutrients!$D$9)*AU$7)+(((IF($A$8=Nutrients!$B$79,Nutrients!$D$79,(IF($A$8=Nutrients!$B$77,Nutrients!$D$77,Nutrients!$D$78)))))*AU$8))/2000/2.2046","v":1656.706940049193},{"$f":"(SUMPRODUCT(AV$9:AV$229,Nutrients!$D$8:$D$228)+(IF($A$7=Nutrients!$B$8,Nutrients!$D$8,Nutrients!$D$9)*AV$7)+(((IF($A$8=Nutrients!$B$79,Nutrients!$D$79,(IF($A$8=Nutrients!$B$77,Nutrients!$D$77,Nutrients!$D$78)))))*AV$8))/2000/2.2046","v":1656.7630043919464},{"$f":"(SUMPRODUCT(AW$9:AW$229,Nutrients!$D$8:$D$228)+(IF($A$7=Nutrients!$B$8,Nutrients!$D$8,Nutrients!$D$9)*AW$7)+(((IF($A$8=Nutrients!$B$79,Nutrients!$D$79,(IF($A$8=Nutrients!$B$77,Nutrients!$D$77,Nutrients!$D$78)))))*AW$8))/2000/2.2046","v":1552.2569188768136}]
["NE NRC, kcal/lb",{"$f":"(SUMPRODUCT(B$9:B$229,Nutrients!$F$8:$F$228)+(IF($A$7=Nutrients!$B$8,Nutrients!$F$8,Nutrients!$F$9)*B$7)+(((IF($A$8=Nutrients!$B$79,Nutrients!$F$79,(IF($A$8=Nutrients!$B$77,Nutrients!$F$77,Nutrients!$F$78)))))*B$8))/2000/2.2046","v":1153.6247232105659},{"$f":"(SUMPRODUCT(C$9:C$229,Nutrients!$F$8:$F$228)+(IF($A$7=Nutrients!$B$8,Nutrients!$F$8,Nutrients!$F$9)*C$7)+(((IF($A$8=Nutrients!$B$79,Nutrients!$F$79,(IF($A$8=Nutrients!$B$77,Nutrients!$F$77,Nutrients!$F$78)))))*C$8))/2000/2.2046","v":1160.6089760708783},{"$f":"(SUMPRODUCT(D$9:D$229,Nutrients!$F$8:$F$228)+(IF($A$7=Nutrients!$B$8,Nutrients!$F$8,Nutrients!$F$9)*D$7)+(((IF($A$8=Nutrients!$B$79,Nutrients!$F$79,(IF($A$8=Nutrients!$B$77,Nutrients!$F$77,Nutrients!$F$78)))))*D$8))/2000/2.2046","v":1166.664301360594},{"$f":"(SUMPRODUCT(E$9:E$229,Nutrients!$F$8:$F$228)+(IF($A$7=Nutrients!$B$8,Nutrients!$F$8,Nutrients!$F$9)*E$7)+(((IF($A$8=Nutrients!$B$79,Nutrients!$F$79,(IF($A$8=Nutrients!$B$77,Nutrients!$F$77,Nutrients!$F$78)))))*E$8))/2000/2.2046","v":1172.8465047486318},{"$f":"(SUMPRODUCT(F$9:F$229,Nutrients!$F$8:$F$228)+(IF($A$7=Nutrients!$B$8,Nutrients!$F$8,Nutrients!$F$9)*F$7)+(((IF($A$8=Nutrients!$B$79,Nutrients!$F$79,(IF($A$8=Nutrients!$B$77,Nutrients!$F$77,Nutrients!$F$78)))))*F$8))/2000/2.2046","v":1178.0967521230723},{"$f":"(SUMPRODUCT(G$9:G$229,Nutrients!$F$8:$F$228)+(IF($A$7=Nutrients!$B$8,Nutrients!$F$8,Nutrients!$F$9)*G$7)+(((IF($A$8=Nutrients!$B$79,Nutrients!$F$79,(IF($A$8=Nutrients!$B$77,Nutrients!$F$77,Nutrients!$F$78)))))*G$8))/2000/2.2046","v":1180.5684789085878},null,{"$f":"(SUMPRODUCT(I$9:I$229,Nutrients!$F$8:$F$228)+(IF($A$7=Nutrients!$B$8,Nutrients!$F$8,Nutrients!$F$9)*I$7)+(((IF($A$8=Nutrients!$B$79,Nutrients!$F$79,(IF($A$8=Nutrients!$B$77,Nutrients!$F$77,Nutrients!$F$78)))))*I$8))/2000/2.2046","v":1153.3679546278718},{"$f":"(SUMPRODUCT(J$9:J$229,Nutrients!$F$8:$F$228)+(IF($A$7=Nutrients!$B$8,Nutrients!$F$8,Nutrients!$F$9)*J$7)+(((IF($A$8=Nutrients!$B$79,Nutrients!$F$79,(IF($A$8=Nutrients!$B$77,Nutrients!$F$77,Nutrients!$F$78)))))*J$8))/2000/2.2046","v":1160.4340144343939},{"$f":"(SUMPRODUCT(K$9:K$229,Nutrients!$F$8:$F$228)+(IF($A$7=Nutrients!$B$8,Nutrients!$F$8,Nutrients!$F$9)*K$7)+(((IF($A$8=Nutrients!$B$79,Nutrients!$F$79,(IF($A$8=Nutrients!$B$77,Nutrients!$F$77,Nutrients!$F$78)))))*K$8))/2000/2.2046","v":1166.5352319413898},{"$f":"(SUMPRODUCT(L$9:L$229,Nutrients!$F$8:$F$228)+(IF($A$7=Nutrients!$B$8,Nutrients!$F$8,Nutrients!$F$9)*L$7)+(((IF($A$8=Nutrients!$B$79,Nutrients!$F$79,(IF($A$8=Nutrients!$B$77,Nutrients!$F$77,Nutrients!$F$78)))))*L$8))/2000/2.2046","v":1172.7562010030767},{"$f":"(SUMPRODUCT(M$9:M$229,Nutrients!$F$8:$F$228)+(IF($A$7=Nutrients!$B$8,Nutrients!$F$8,Nutrients!$F$9)*M$7)+(((IF($A$8=Nutrients!$B$79,Nutrients!$F$79,(IF($A$8=Nutrients!$B$77,Nutrients!$F$77,Nutrients!$F$78)))))*M$8))/2000/2.2046","v":1178.0093360180736},{"$f":"(SUMPRODUCT(N$9:N$229,Nutrients!$F$8:$F$228)+(IF($A$7=Nutrients!$B$8,Nutrients!$F$8,Nutrients!$F$9)*N$7)+(((IF($A$8=Nutrients!$B$79,Nutrients!$F$79,(IF($A$8=Nutrients!$B$77,Nutrients!$F$77,Nutrients!$F$78)))))*N$8))/2000/2.2046","v":1180.5684789085878},null,{"$f":"(SUMPRODUCT(P$9:P$229,Nutrients!$F$8:$F$228)+(IF($A$7=Nutrients!$B$8,Nutrients!$F$8,Nutrients!$F$9)*P$7)+(((IF($A$8=Nutrients!$B$79,Nutrients!$F$79,(IF($A$8=Nutrients!$B$77,Nutrients!$F$77,Nutrients!$F$78)))))*P$8))/2000/2.2046","v":1153.2142906581487},{"$f":"(SUMPRODUCT(Q$9:Q$229,Nutrients!$F$8:$F$228)+(IF($A$7=Nutrients!$B$8,Nutrients!$F$8,Nutrients!$F$9)*Q$7)+(((IF($A$8=Nutrients!$B$79,Nutrients!$F$79,(IF($A$8=Nutrients!$B$77,Nutrients!$F$77,Nutrients!$F$78)))))*Q$8))/2000/2.2046","v":1160.2999159497322},{"$f":"(SUMPRODUCT(R$9:R$229,Nutrients!$F$8:$F$228)+(IF($A$7=Nutrients!$B$8,Nutrients!$F$8,Nutrients!$F$9)*R$7)+(((IF($A$8=Nutrients!$B$79,Nutrients!$F$79,(IF($A$8=Nutrients!$B$77,Nutrients!$F$77,Nutrients!$F$78)))))*R$8))/2000/2.2046","v":1166.4690888349064},{"$f":"(SUMPRODUCT(S$9:S$229,Nutrients!$F$8:$F$228)+(IF($A$7=Nutrients!$B$8,Nutrients!$F$8,Nutrients!$F$9)*S$7)+(((IF($A$8=Nutrients!$B$79,Nutrients!$F$79,(IF($A$8=Nutrients!$B$77,Nutrients!$F$77,Nutrients!$F$78)))))*S$8))/2000/2.2046","v":1172.6592947830845},{"$f":"(SUMPRODUCT(T$9:T$229,Nutrients!$F$8:$F$228)+(IF($A$7=Nutrients!$B$8,Nutrients!$F$8,Nutrients!$F$9)*T$7)+(((IF($A$8=Nutrients!$B$79,Nutrients!$F$79,(IF($A$8=Nutrients!$B$77,Nutrients!$F$77,Nutrients!$F$78)))))*T$8))/2000/2.2046","v":1177.9162807905248},{"$f":"(SUMPRODUCT(U$9:U$229,Nutrients!$F$8:$F$228)+(IF($A$7=Nutrients!$B$8,Nutrients!$F$8,Nutrients!$F$9)*U$7)+(((IF($A$8=Nutrients!$B$79,Nutrients!$F$79,(IF($A$8=Nutrients!$B$77,Nutrients!$F$77,Nutrients!$F$78)))))*U$8))/2000/2.2046","v":1180.5684789085878},null,{"$f":"(SUMPRODUCT(W$9:W$229,Nutrients!$F$8:$F$228)+(IF($A$7=Nutrients!$B$8,Nutrients!$F$8,Nutrients!$F$9)*W$7)+(((IF($A$8=Nutrients!$B$79,Nutrients!$F$79,(IF($A$8=Nutrients!$B$77,Nutrients!$F$77,Nutrients!$F$78)))))*W$8))/2000/2.2046","v":1153.1514511301054},{"$f":"(SUMPRODUCT(X$9:X$229,Nutrients!$F$8:$F$228)+(IF($A$7=Nutrients!$B$8,Nutrients!$F$8,Nutrients!$F$9)*X$7)+(((IF($A$8=Nutrients!$B$79,Nutrients!$F$79,(IF($A$8=Nutrients!$B$77,Nutrients!$F$77,Nutrients!$F$78)))))*X$8))/2000/2.2046","v":1160.3014025612417},{"$f":"(SUMPRODUCT(Y$9:Y$229,Nutrients!$F$8:$F$228)+(IF($A$7=Nutrients!$B$8,Nutrients!$F$8,Nutrients!$F$9)*Y$7)+(((IF($A$8=Nutrients!$B$79,Nutrients!$F$79,(IF($A$8=Nutrients!$B$77,Nutrients!$F$77,Nutrients!$F$78)))))*Y$8))/2000/2.2046","v":1166.4302470709852},{"$f":"(SUMPRODUCT(Z$9:Z$229,Nutrients!$F$8:$F$228)+(IF($A$7=Nutrients!$B$8,Nutrients!$F$8,Nutrients!$F$9)*Z$7)+(((IF($A$8=Nutrients!$B$79,Nutrients!$F$79,(IF($A$8=Nutrients!$B$77,Nutrients!$F$77,Nutrients!$F$78)))))*Z$8))/2000/2.2046","v":1172.6911665808204},{"$f":"(SUMPRODUCT(AA$9:AA$229,Nutrients!$F$8:$F$228)+(IF($A$7=Nutrients!$B$8,Nutrients!$F$8,Nutrients!$F$9)*AA$7)+(((IF($A$8=Nutrients!$B$79,Nutrients!$F$79,(IF($A$8=Nutrients!$B$77,Nutrients!$F$77,Nutrients!$F$78)))))*AA$8))/2000/2.2046","v":1177.9566425259204},{"$f":"(SUMPRODUCT(AB$9:AB$229,Nutrients!$F$8:$F$228)+(IF($A$7=Nutrients!$B$8,Nutrients!$F$8,Nutrients!$F$9)*AB$7)+(((IF($A$8=Nutrients!$B$79,Nutrients!$F$79,(IF($A$8=Nutrients!$B$77,Nutrients!$F$77,Nutrients!$F$78)))))*AB$8))/2000/2.2046","v":1180.5684789085878},null,{"$f":"(SUMPRODUCT(AD$9:AD$229,Nutrients!$F$8:$F$228)+(IF($A$7=Nutrients!$B$8,Nutrients!$F$8,Nutrients!$F$9)*AD$7)+(((IF($A$8=Nutrients!$B$79,Nutrients!$F$79,(IF($A$8=Nutrients!$B$77,Nutrients!$F$77,Nutrients!$F$78)))))*AD$8))/2000/2.2046","v":1153.142034791809},{"$f":"(SUMPRODUCT(AE$9:AE$229,Nutrients!$F$8:$F$228)+(IF($A$7=Nutrients!$B$8,Nutrients!$F$8,Nutrients!$F$9)*AE$7)+(((IF($A$8=Nutrients!$B$79,Nutrients!$F$79,(IF($A$8=Nutrients!$B$77,Nutrients!$F$77,Nutrients!$F$78)))))*AE$8))/2000/2.2046","v":1160.2536913331055},{"$f":"(SUMPRODUCT(AF$9:AF$229,Nutrients!$F$8:$F$228)+(IF($A$7=Nutrients!$B$8,Nutrients!$F$8,Nutrients!$F$9)*AF$7)+(((IF($A$8=Nutrients!$B$79,Nutrients!$F$79,(IF($A$8=Nutrients!$B$77,Nutrients!$F$77,Nutrients!$F$78)))))*AF$8))/2000/2.2046","v":1166.460345061761},{"$f":"(SUMPRODUCT(AG$9:AG$229,Nutrients!$F$8:$F$228)+(IF($A$7=Nutrients!$B$8,Nutrients!$F$8,Nutrients!$F$9)*AG$7)+(((IF($A$8=Nutrients!$B$79,Nutrients!$F$79,(IF($A$8=Nutrients!$B$77,Nutrients!$F$77,Nutrients!$F$78)))))*AG$8))/2000/2.2046","v":1172.704739905836},{"$f":"(SUMPRODUCT(AH$9:AH$229,Nutrients!$F$8:$F$228)+(IF($A$7=Nutrients!$B$8,Nutrients!$F$8,Nutrients!$F$9)*AH$7)+(((IF($A$8=Nutrients!$B$79,Nutrients!$F$79,(IF($A$8=Nutrients!$B$77,Nutrients!$F$77,Nutrients!$F$78)))))*AH$8))/2000/2.2046","v":1177.9036426322355},{"$f":"(SUMPRODUCT(AI$9:AI$229,Nutrients!$F$8:$F$228)+(IF($A$7=Nutrients!$B$8,Nutrients!$F$8,Nutrients!$F$9)*AI$7)+(((IF($A$8=Nutrients!$B$79,Nutrients!$F$79,(IF($A$8=Nutrients!$B$77,Nutrients!$F$77,Nutrients!$F$78)))))*AI$8))/2000/2.2046","v":1180.5684789085878},null,{"$f":"(SUMPRODUCT(AK$9:AK$229,Nutrients!$F$8:$F$228)+(IF($A$7=Nutrients!$B$8,Nutrients!$F$8,Nutrients!$F$9)*AK$7)+(((IF($A$8=Nutrients!$B$79,Nutrients!$F$79,(IF($A$8=Nutrients!$B$77,Nutrients!$F$77,Nutrients!$F$78)))))*AK$8))/2000/2.2046","v":1153.0753916642404},{"$f":"(SUMPRODUCT(AL$9:AL$229,Nutrients!$F$8:$F$228)+(IF($A$7=Nutrients!$B$8,Nutrients!$F$8,Nutrients!$F$9)*AL$7)+(((IF($A$8=Nutrients!$B$79,Nutrients!$F$79,(IF($A$8=Nutrients!$B$77,Nutrients!$F$77,Nutrients!$F$78)))))*AL$8))/2000/2.2046","v":1160.2039958044193},{"$f":"(SUMPRODUCT(AM$9:AM$229,Nutrients!$F$8:$F$228)+(IF($A$7=Nutrients!$B$8,Nutrients!$F$8,Nutrients!$F$9)*AM$7)+(((IF($A$8=Nutrients!$B$79,Nutrients!$F$79,(IF($A$8=Nutrients!$B$77,Nutrients!$F$77,Nutrients!$F$78)))))*AM$8))/2000/2.2046","v":1166.3599731181082},{"$f":"(SUMPRODUCT(AN$9:AN$229,Nutrients!$F$8:$F$228)+(IF($A$7=Nutrients!$B$8,Nutrients!$F$8,Nutrients!$F$9)*AN$7)+(((IF($A$8=Nutrients!$B$79,Nutrients!$F$79,(IF($A$8=Nutrients!$B$77,Nutrients!$F$77,Nutrients!$F$78)))))*AN$8))/2000/2.2046","v":1172.5724839879415},{"$f":"(SUMPRODUCT(AO$9:AO$229,Nutrients!$F$8:$F$228)+(IF($A$7=Nutrients!$B$8,Nutrients!$F$8,Nutrients!$F$9)*AO$7)+(((IF($A$8=Nutrients!$B$79,Nutrients!$F$79,(IF($A$8=Nutrients!$B$77,Nutrients!$F$77,Nutrients!$F$78)))))*AO$8))/2000/2.2046","v":1177.9107253358327},{"$f":"(SUMPRODUCT(AP$9:AP$229,Nutrients!$F$8:$F$228)+(IF($A$7=Nutrients!$B$8,Nutrients!$F$8,Nutrients!$F$9)*AP$7)+(((IF($A$8=Nutrients!$B$79,Nutrients!$F$79,(IF($A$8=Nutrients!$B$77,Nutrients!$F$77,Nutrients!$F$78)))))*AP$8))/2000/2.2046","v":1180.5684789085878},null,{"$f":"(SUMPRODUCT(AR$9:AR$229,Nutrients!$F$8:$F$228)+(IF($A$7=Nutrients!$B$8,Nutrients!$F$8,Nutrients!$F$9)*AR$7)+(((IF($A$8=Nutrients!$B$79,Nutrients!$F$79,(IF($A$8=Nutrients!$B$77,Nutrients!$F$77,Nutrients!$F$78)))))*AR$8))/2000/2.2046","v":1153.1575925934135},{"$f":"(SUMPRODUCT(AS$9:AS$229,Nutrients!$F$8:$F$228)+(IF($A$7=Nutrients!$B$8,Nutrients!$F$8,Nutrients!$F$9)*AS$7)+(((IF($A$8=Nutrients!$B$79,Nutrients!$F$79,(IF($A$8=Nutrients!$B$77,Nutrients!$F$77,Nutrients!$F$78)))))*AS$8))/2000/2.2046","v":1160.1238471641236},{"$f":"(SUMPRODUCT(AT$9:AT$229,Nutrients!$F$8:$F$228)+(IF($A$7=Nutrients!$B$8,Nutrients!$F$8,Nutrients!$F$9)*AT$7)+(((IF($A$8=Nutrients!$B$79,Nutrients!$F$79,(IF($A$8=Nutrients!$B$77,Nutrients!$F$77,Nutrients!$F$78)))))*AT$8))/2000/2.2046","v":1166.2995058830538},{"$f":"(SUMPRODUCT(AU$9:AU$229,Nutrients!$F$8:$F$228)+(IF($A$7=Nutrients!$B$8,Nutrients!$F$8,Nutrients!$F$9)*AU$7)+(((IF($A$8=Nutrients!$B$79,Nutrients!$F$79,(IF($A$8=Nutrients!$B$77,Nutrients!$F$77,Nutrients!$F$78)))))*AU$8))/2000/2.2046","v":1172.5573496299719},{"$f":"(SUMPRODUCT(AV$9:AV$229,Nutrients!$F$8:$F$228)+(IF($A$7=Nutrients!$B$8,Nutrients!$F$8,Nutrients!$F$9)*AV$7)+(((IF($A$8=Nutrients!$B$79,Nutrients!$F$79,(IF($A$8=Nutrients!$B$77,Nutrients!$F$77,Nutrients!$F$78)))))*AV$8))/2000/2.2046","v":1177.9181466084062},{"$f":"(SUMPRODUCT(AW$9:AW$229,Nutrients!$F$8:$F$228)+(IF($A$7=Nutrients!$B$8,Nutrients!$F$8,Nutrients!$F$9)*AW$7)+(((IF($A$8=Nutrients!$B$79,Nutrients!$F$79,(IF($A$8=Nutrients!$B$77,Nutrients!$F$77,Nutrients!$F$78)))))*AW$8))/2000/2.2046","v":1180.5684789085878}]
["NE NRC, kcal/kg",{"$f":"B250*2.20462","v":2543.3041372844777},2558.7017608253796,2572.0514520655925,2585.6808612989284,2597.2556616655675,2602.7048799714507,null,{"$f":"I250*2.20462","v":2542.7380601316986},2558.3160369023535,2571.7669030426268,2585.4817758554027,2597.0629423721653,2602.7048799714507,null,{"$f":"P250*2.20462","v":2542.3992894707676},2558.0204007010984,2571.6210826272113,2585.2681344646835,2596.8577909564065,2602.7048799714507,null,{"$f":"W250*2.20462","v":2542.2607521904529},2558.0236781145645,2571.5354512976351,2585.3383996674083,2596.9467732454946,2602.7048799714507,null,{"$f":"AD250*2.20462","v":2542.2399927427177},2557.9184929867906,2571.6018059300595,2585.3683236912038,2596.8299286198785,2602.7048799714507,null,{"$f":"AK250*2.20462","v":2542.0930699708174},2557.8089332303384,2571.3805239356434,2585.0767496494955,2596.8455432898832,2602.7048799714507,null,{"$f":"AR250*2.20462","v":2542.2742917832911},2557.6322359349701,2571.2472166598977,2585.0433841412282,2596.8619043758245,2602.7048799714507]
["SID Lys:NE, g/Mcal",{"$f":"IF(B$5=\"\",\"\",B236/(B250*2.2046)*10000)","v":4.6637077167474628},4.098690324665454,3.6038708201123204,3.1948100235360672,2.913603801156885,2.7602055376881007,null,{"$f":"IF(I$5=\"\",\"\",I236/(I250*2.2046)*10000)","v":4.6647459748469045},4.0993082948022534,3.6042695646173324,3.1950560280434108,2.9138200098812304,2.7602055376881007,null,{"$f":"IF(P$5=\"\",\"\",P236/(P250*2.2046)*10000)","v":4.6653675448274807},4.0997820611301981,3.6044739400164651,3.1953200610866981,2.9140502012695975,2.7602055376881007,null,{"$f":"IF(W$5=\"\",\"\",W236/(W250*2.2046)*10000)","v":4.6656217781238771},4.0997768083715744,3.6045939678759886,3.1952332175957689,2.9139503536870062,2.7602055376881007,null,{"$f":"IF(AD$5=\"\",\"\",AD236/(AD250*2.2046)*10000)","v":4.6656598767029767},4.0999453968346602,3.6045009591110908,3.195196234766684,2.9140814671782627,2.7602055376881007,null,{"$f":"IF(AK$5=\"\",\"\",AK236/(AK250*2.2046)*10000)","v":4.6659295331093169},4.100121011601388,3.6048111470252029,3.195556624948658,2.914063944988468,2.7602055376881007,null,{"$f":"IF(AR$5=\"\",\"\",AR236/(AR250*2.2046)*10000)","v":4.6655969300500812},4.1004042737073529,3.6049980398103352,3.1955978704347654,2.9140455854251188,2.7602055376881007]
["CP, %",{"$f":"(SUMPRODUCT(B$9:B$229,Nutrients!$I$8:$I$228)+(IF($A$7=Nutrients!$B$8,Nutrients!$I$8,Nutrients!$I$9)*B$7)+(((IF($A$8=Nutrients!$B$79,Nutrients!$I$79,(IF($A$8=Nutrients!$B$77,Nutrients!$I$77,Nutrients!$I$78)))))*B$8))/2000","v":19.197144454100709},{"$f":"(SUMPRODUCT(C$9:C$229,Nutrients!$I$8:$I$228)+(IF($A$7=Nutrients!$B$8,Nutrients!$I$8,Nutrients!$I$9)*C$7)+(((IF($A$8=Nutrients!$B$79,Nutrients!$I$79,(IF($A$8=Nutrients!$B$77,Nutrients!$I$77,Nutrients!$I$78)))))*C$8))/2000","v":17.518322949293985},{"$f":"(SUMPRODUCT(D$9:D$229,Nutrients!$I$8:$I$228)+(IF($A$7=Nutrients!$B$8,Nutrients!$I$8,Nutrients!$I$9)*D$7)+(((IF($A$8=Nutrients!$B$79,Nutrients!$I$79,(IF($A$8=Nutrients!$B$77,Nutrients!$I$77,Nutrients!$I$78)))))*D$8))/2000","v":16.093820180294312},{"$f":"(SUMPRODUCT(E$9:E$229,Nutrients!$I$8:$I$228)+(IF($A$7=Nutrients!$B$8,Nutrients!$I$8,Nutrients!$I$9)*E$7)+(((IF($A$8=Nutrients!$B$79,Nutrients!$I$79,(IF($A$8=Nutrients!$B$77,Nutrients!$I$77,Nutrients!$I$78)))))*E$8))/2000","v":14.741302120356609},{"$f":"(SUMPRODUCT(F$9:F$229,Nutrients!$I$8:$I$228)+(IF($A$7=Nutrients!$B$8,Nutrients!$I$8,Nutrients!$I$9)*F$7)+(((IF($A$8=Nutrients!$B$79,Nutrients!$I$79,(IF($A$8=Nutrients!$B$77,Nutrients!$I$77,Nutrients!$I$78)))))*F$8))/2000","v":13.625458454243304},{"$f":"(SUMPRODUCT(G$9:G$229,Nutrients!$I$8:$I$228)+(IF($A$7=Nutrients!$B$8,Nutrients!$I$8,Nutrients!$I$9)*G$7)+(((IF($A$8=Nutrients!$B$79,Nutrients!$I$79,(IF($A$8=Nutrients!$B$77,Nutrients!$I$77,Nutrients!$I$78)))))*G$8))/2000","v":13.010227616088669},null,{"$f":"(SUMPRODUCT(I$9:I$229,Nutrients!$I$8:$I$228)+(IF($A$7=Nutrients!$B$8,Nutrients!$I$8,Nutrients!$I$9)*I$7)+(((IF($A$8=Nutrients!$B$79,Nutrients!$I$79,(IF($A$8=Nutrients!$B$77,Nutrients!$I$77,Nutrients!$I$78)))))*I$8))/2000","v":19.597200691982383},{"$f":"(SUMPRODUCT(J$9:J$229,Nutrients!$I$8:$I$228)+(IF($A$7=Nutrients!$B$8,Nutrients!$I$8,Nutrients!$I$9)*J$7)+(((IF($A$8=Nutrients!$B$79,Nutrients!$I$79,(IF($A$8=Nutrients!$B$77,Nutrients!$I$77,Nutrients!$I$78)))))*J$8))/2000","v":17.91982022954446},{"$f":"(SUMPRODUCT(K$9:K$229,Nutrients!$I$8:$I$228)+(IF($A$7=Nutrients!$B$8,Nutrients!$I$8,Nutrients!$I$9)*K$7)+(((IF($A$8=Nutrients!$B$79,Nutrients!$I$79,(IF($A$8=Nutrients!$B$77,Nutrients!$I$77,Nutrients!$I$78)))))*K$8))/2000","v":16.500157776344498},{"$f":"(SUMPRODUCT(L$9:L$229,Nutrients!$I$8:$I$228)+(IF($A$7=Nutrients!$B$8,Nutrients!$I$8,Nutrients!$I$9)*L$7)+(((IF($A$8=Nutrients!$B$79,Nutrients!$I$79,(IF($A$8=Nutrients!$B$77,Nutrients!$I$77,Nutrients!$I$78)))))*L$8))/2000","v":15.144945030324584},{"$f":"(SUMPRODUCT(M$9:M$229,Nutrients!$I$8:$I$228)+(IF($A$7=Nutrients!$B$8,Nutrients!$I$8,Nutrients!$I$9)*M$7)+(((IF($A$8=Nutrients!$B$79,Nutrients!$I$79,(IF($A$8=Nutrients!$B$77,Nutrients!$I$77,Nutrients!$I$78)))))*M$8))/2000","v":14.027087351494538},{"$f":"(SUMPRODUCT(N$9:N$229,Nutrients!$I$8:$I$228)+(IF($A$7=Nutrients!$B$8,Nutrients!$I$8,Nutrients!$I$9)*N$7)+(((IF($A$8=Nutrients!$B$79,Nutrients!$I$79,(IF($A$8=Nutrients!$B$77,Nutrients!$I$77,Nutrients!$I$78)))))*N$8))/2000","v":13.010227616088669},null,{"$f":"(SUMPRODUCT(P$9:P$229,Nutrients!$I$8:$I$228)+(IF($A$7=Nutrients!$B$8,Nutrients!$I$8,Nutrients!$I$9)*P$7)+(((IF($A$8=Nutrients!$B$79,Nutrients!$I$79,(IF($A$8=Nutrients!$B$77,Nutrients!$I$77,Nutrients!$I$78)))))*P$8))/2000","v":19.999653859391298},{"$f":"(SUMPRODUCT(Q$9:Q$229,Nutrients!$I$8:$I$228)+(IF($A$7=Nutrients!$B$8,Nutrients!$I$8,Nutrients!$I$9)*Q$7)+(((IF($A$8=Nutrients!$B$79,Nutrients!$I$79,(IF($A$8=Nutrients!$B$77,Nutrients!$I$77,Nutrients!$I$78)))))*Q$8))/2000","v":18.324272695276957},{"$f":"(SUMPRODUCT(R$9:R$229,Nutrients!$I$8:$I$228)+(IF($A$7=Nutrients!$B$8,Nutrients!$I$8,Nutrients!$I$9)*R$7)+(((IF($A$8=Nutrients!$B$79,Nutrients!$I$79,(IF($A$8=Nutrients!$B$77,Nutrients!$I$77,Nutrients!$I$78)))))*R$8))/2000","v":16.906471991245891},{"$f":"(SUMPRODUCT(S$9:S$229,Nutrients!$I$8:$I$228)+(IF($A$7=Nutrients!$B$8,Nutrients!$I$8,Nutrients!$I$9)*S$7)+(((IF($A$8=Nutrients!$B$79,Nutrients!$I$79,(IF($A$8=Nutrients!$B$77,Nutrients!$I$77,Nutrients!$I$78)))))*S$8))/2000","v":15.551940682114102},{"$f":"(SUMPRODUCT(T$9:T$229,Nutrients!$I$8:$I$228)+(IF($A$7=Nutrients!$B$8,Nutrients!$I$8,Nutrients!$I$9)*T$7)+(((IF($A$8=Nutrients!$B$79,Nutrients!$I$79,(IF($A$8=Nutrients!$B$77,Nutrients!$I$77,Nutrients!$I$78)))))*T$8))/2000","v":14.431500862311957},{"$f":"(SUMPRODUCT(U$9:U$229,Nutrients!$I$8:$I$228)+(IF($A$7=Nutrients!$B$8,Nutrients!$I$8,Nutrients!$I$9)*U$7)+(((IF($A$8=Nutrients!$B$79,Nutrients!$I$79,(IF($A$8=Nutrients!$B$77,Nutrients!$I$77,Nutrients!$I$78)))))*U$8))/2000","v":13.010227616088669},null,{"$f":"(SUMPRODUCT(W$9:W$229,Nutrients!$I$8:$I$228)+(IF($A$7=Nutrients!$B$8,Nutrients!$I$8,Nutrients!$I$9)*W$7)+(((IF($A$8=Nutrients!$B$79,Nutrients!$I$79,(IF($A$8=Nutrients!$B$77,Nutrients!$I$77,Nutrients!$I$78)))))*W$8))/2000","v":20.402419540662873},{"$f":"(SUMPRODUCT(X$9:X$229,Nutrients!$I$8:$I$228)+(IF($A$7=Nutrients!$B$8,Nutrients!$I$8,Nutrients!$I$9)*X$7)+(((IF($A$8=Nutrients!$B$79,Nutrients!$I$79,(IF($A$8=Nutrients!$B$77,Nutrients!$I$77,Nutrients!$I$78)))))*X$8))/2000","v":18.730319744665589},{"$f":"(SUMPRODUCT(Y$9:Y$229,Nutrients!$I$8:$I$228)+(IF($A$7=Nutrients!$B$8,Nutrients!$I$8,Nutrients!$I$9)*Y$7)+(((IF($A$8=Nutrients!$B$79,Nutrients!$I$79,(IF($A$8=Nutrients!$B$77,Nutrients!$I$77,Nutrients!$I$78)))))*Y$8))/2000","v":17.313587592387552},{"$f":"(SUMPRODUCT(Z$9:Z$229,Nutrients!$I$8:$I$228)+(IF($A$7=Nutrients!$B$8,Nutrients!$I$8,Nutrients!$I$9)*Z$7)+(((IF($A$8=Nutrients!$B$79,Nutrients!$I$79,(IF($A$8=Nutrients!$B$77,Nutrients!$I$77,Nutrients!$I$78)))))*Z$8))/2000","v":15.962855149684314},{"$f":"(SUMPRODUCT(AA$9:AA$229,Nutrients!$I$8:$I$228)+(IF($A$7=Nutrients!$B$8,Nutrients!$I$8,Nutrients!$I$9)*AA$7)+(((IF($A$8=Nutrients!$B$79,Nutrients!$I$79,(IF($A$8=Nutrients!$B$77,Nutrients!$I$77,Nutrients!$I$78)))))*AA$8))/2000","v":14.847906712193907},{"$f":"(SUMPRODUCT(AB$9:AB$229,Nutrients!$I$8:$I$228)+(IF($A$7=Nutrients!$B$8,Nutrients!$I$8,Nutrients!$I$9)*AB$7)+(((IF($A$8=Nutrients!$B$79,Nutrients!$I$79,(IF($A$8=Nutrients!$B$77,Nutrients!$I$77,Nutrients!$I$78)))))*AB$8))/2000","v":13.010227616088669},null,{"$f":"(SUMPRODUCT(AD$9:AD$229,Nutrients!$I$8:$I$228)+(IF($A$7=Nutrients!$B$8,Nutrients!$I$8,Nutrients!$I$9)*AD$7)+(((IF($A$8=Nutrients!$B$79,Nutrients!$I$79,(IF($A$8=Nutrients!$B$77,Nutrients!$I$77,Nutrients!$I$78)))))*AD$8))/2000","v":20.808490624552984},{"$f":"(SUMPRODUCT(AE$9:AE$229,Nutrients!$I$8:$I$228)+(IF($A$7=Nutrients!$B$8,Nutrients!$I$8,Nutrients!$I$9)*AE$7)+(((IF($A$8=Nutrients!$B$79,Nutrients!$I$79,(IF($A$8=Nutrients!$B$77,Nutrients!$I$77,Nutrients!$I$78)))))*AE$8))/2000","v":19.135812042172866},{"$f":"(SUMPRODUCT(AF$9:AF$229,Nutrients!$I$8:$I$228)+(IF($A$7=Nutrients!$B$8,Nutrients!$I$8,Nutrients!$I$9)*AF$7)+(((IF($A$8=Nutrients!$B$79,Nutrients!$I$79,(IF($A$8=Nutrients!$B$77,Nutrients!$I$77,Nutrients!$I$78)))))*AF$8))/2000","v":17.724506672919606},{"$f":"(SUMPRODUCT(AG$9:AG$229,Nutrients!$I$8:$I$228)+(IF($A$7=Nutrients!$B$8,Nutrients!$I$8,Nutrients!$I$9)*AG$7)+(((IF($A$8=Nutrients!$B$79,Nutrients!$I$79,(IF($A$8=Nutrients!$B$77,Nutrients!$I$77,Nutrients!$I$78)))))*AG$8))/2000","v":16.375576310959936},{"$f":"(SUMPRODUCT(AH$9:AH$229,Nutrients!$I$8:$I$228)+(IF($A$7=Nutrients!$B$8,Nutrients!$I$8,Nutrients!$I$9)*AH$7)+(((IF($A$8=Nutrients!$B$79,Nutrients!$I$79,(IF($A$8=Nutrients!$B$77,Nutrients!$I$77,Nutrients!$I$78)))))*AH$8))/2000","v":15.257999994499716},{"$f":"(SUMPRODUCT(AI$9:AI$229,Nutrients!$I$8:$I$228)+(IF($A$7=Nutrients!$B$8,Nutrients!$I$8,Nutrients!$I$9)*AI$7)+(((IF($A$8=Nutrients!$B$79,Nutrients!$I$79,(IF($A$8=Nutrients!$B$77,Nutrients!$I$77,Nutrients!$I$78)))))*AI$8))/2000","v":13.010227616088669},null,{"$f":"(SUMPRODUCT(AK$9:AK$229,Nutrients!$I$8:$I$228)+(IF($A$7=Nutrients!$B$8,Nutrients!$I$8,Nutrients!$I$9)*AK$7)+(((IF($A$8=Nutrients!$B$79,Nutrients!$I$79,(IF($A$8=Nutrients!$B$77,Nutrients!$I$77,Nutrients!$I$78)))))*AK$8))/2000","v":21.213602200766534},{"$f":"(SUMPRODUCT(AL$9:AL$229,Nutrients!$I$8:$I$228)+(IF($A$7=Nutrients!$B$8,Nutrients!$I$8,Nutrients!$I$9)*AL$7)+(((IF($A$8=Nutrients!$B$79,Nutrients!$I$79,(IF($A$8=Nutrients!$B$77,Nutrients!$I$77,Nutrients!$I$78)))))*AL$8))/2000","v":19.542175366065642},{"$f":"(SUMPRODUCT(AM$9:AM$229,Nutrients!$I$8:$I$228)+(IF($A$7=Nutrients!$B$8,Nutrients!$I$8,Nutrients!$I$9)*AM$7)+(((IF($A$8=Nutrients!$B$79,Nutrients!$I$79,(IF($A$8=Nutrients!$B$77,Nutrients!$I$77,Nutrients!$I$78)))))*AM$8))/2000","v":18.131702332147047},{"$f":"(SUMPRODUCT(AN$9:AN$229,Nutrients!$I$8:$I$228)+(IF($A$7=Nutrients!$B$8,Nutrients!$I$8,Nutrients!$I$9)*AN$7)+(((IF($A$8=Nutrients!$B$79,Nutrients!$I$79,(IF($A$8=Nutrients!$B$77,Nutrients!$I$77,Nutrients!$I$78)))))*AN$8))/2000","v":16.78660005509877},{"$f":"(SUMPRODUCT(AO$9:AO$229,Nutrients!$I$8:$I$228)+(IF($A$7=Nutrients!$B$8,Nutrients!$I$8,Nutrients!$I$9)*AO$7)+(((IF($A$8=Nutrients!$B$79,Nutrients!$I$79,(IF($A$8=Nutrients!$B$77,Nutrients!$I$77,Nutrients!$I$78)))))*AO$8))/2000","v":15.666366095112382},{"$f":"(SUMPRODUCT(AP$9:AP$229,Nutrients!$I$8:$I$228)+(IF($A$7=Nutrients!$B$8,Nutrients!$I$8,Nutrients!$I$9)*AP$7)+(((IF($A$8=Nutrients!$B$79,Nutrients!$I$79,(IF($A$8=Nutrients!$B$77,Nutrients!$I$77,Nutrients!$I$78)))))*AP$8))/2000","v":13.010227616088669},null,{"$f":"(SUMPRODUCT(AR$9:AR$229,Nutrients!$I$8:$I$228)+(IF($A$7=Nutrients!$B$8,Nutrients!$I$8,Nutrients!$I$9)*AR$7)+(((IF($A$8=Nutrients!$B$79,Nutrients!$I$79,(IF($A$8=Nutrients!$B$77,Nutrients!$I$77,Nutrients!$I$78)))))*AR$8))/2000","v":21.619037615532317},{"$f":"(SUMPRODUCT(AS$9:AS$229,Nutrients!$I$8:$I$228)+(IF($A$7=Nutrients!$B$8,Nutrients!$I$8,Nutrients!$I$9)*AS$7)+(((IF($A$8=Nutrients!$B$79,Nutrients!$I$79,(IF($A$8=Nutrients!$B$77,Nutrients!$I$77,Nutrients!$I$78)))))*AS$8))/2000","v":19.951558432202741},{"$f":"(SUMPRODUCT(AT$9:AT$229,Nutrients!$I$8:$I$228)+(IF($A$7=Nutrients!$B$8,Nutrients!$I$8,Nutrients!$I$9)*AT$7)+(((IF($A$8=Nutrients!$B$79,Nutrients!$I$79,(IF($A$8=Nutrients!$B$77,Nutrients!$I$77,Nutrients!$I$78)))))*AT$8))/2000","v":18.54756480616566},{"$f":"(SUMPRODUCT(AU$9:AU$229,Nutrients!$I$8:$I$228)+(IF($A$7=Nutrients!$B$8,Nutrients!$I$8,Nutrients!$I$9)*AU$7)+(((IF($A$8=Nutrients!$B$79,Nutrients!$I$79,(IF($A$8=Nutrients!$B$77,Nutrients!$I$77,Nutrients!$I$78)))))*AU$8))/2000","v":17.194976017080162},{"$f":"(SUMPRODUCT(AV$9:AV$229,Nutrients!$I$8:$I$228)+(IF($A$7=Nutrients!$B$8,Nutrients!$I$8,Nutrients!$I$9)*AV$7)+(((IF($A$8=Nutrients!$B$79,Nutrients!$I$79,(IF($A$8=Nutrients!$B$77,Nutrients!$I$77,Nutrients!$I$78)))))*AV$8))/2000","v":16.074730982909433},{"$f":"(SUMPRODUCT(AW$9:AW$229,Nutrients!$I$8:$I$228)+(IF($A$7=Nutrients!$B$8,Nutrients!$I$8,Nutrients!$I$9)*AW$7)+(((IF($A$8=Nutrients!$B$79,Nutrients!$I$79,(IF($A$8=Nutrients!$B$77,Nutrients!$I$77,Nutrients!$I$78)))))*AW$8))/2000","v":13.010227616088669}]
["Ca, %",{"$f":"(SUMPRODUCT(B$9:B$229,Nutrients!$BS$8:$BS$228)+(IF($A$7=Nutrients!$B$8,Nutrients!$BS$8,Nutrients!$BS$9)*B$7)+(((IF($A$8=Nutrients!$B$79,Nutrients!$BS$79,(IF($A$8=Nutrients!$B$77,Nutrients!$BS$77,Nutrients!$BS$78)))))*B$8))/2000","v":0.69579038170108098},{"$f":"(SUMPRODUCT(C$9:C$229,Nutrients!$BS$8:$BS$228)+(IF($A$7=Nutrients!$B$8,Nutrients!$BS$8,Nutrients!$BS$9)*C$7)+(((IF($A$8=Nutrients!$B$79,Nutrients!$BS$79,(IF($A$8=Nutrients!$B$77,Nutrients!$BS$77,Nutrients!$BS$78)))))*C$8))/2000","v":0.62597225623792574},{"$f":"(SUMPRODUCT(D$9:D$229,Nutrients!$BS$8:$BS$228)+(IF($A$7=Nutrients!$B$8,Nutrients!$BS$8,Nutrients!$BS$9)*D$7)+(((IF($A$8=Nutrients!$B$79,Nutrients!$BS$79,(IF($A$8=Nutrients!$B$77,Nutrients!$BS$77,Nutrients!$BS$78)))))*D$8))/2000","v":0.57389505815699282},{"$f":"(SUMPRODUCT(E$9:E$229,Nutrients!$BS$8:$BS$228)+(IF($A$7=Nutrients!$B$8,Nutrients!$BS$8,Nutrients!$BS$9)*E$7)+(((IF($A$8=Nutrients!$B$79,Nutrients!$BS$79,(IF($A$8=Nutrients!$B$77,Nutrients!$BS$77,Nutrients!$BS$78)))))*E$8))/2000","v":0.52055031100225413},{"$f":"(SUMPRODUCT(F$9:F$229,Nutrients!$BS$8:$BS$228)+(IF($A$7=Nutrients!$B$8,Nutrients!$BS$8,Nutrients!$BS$9)*F$7)+(((IF($A$8=Nutrients!$B$79,Nutrients!$BS$79,(IF($A$8=Nutrients!$B$77,Nutrients!$BS$77,Nutrients!$BS$78)))))*F$8))/2000","v":0.47698896958793735},{"$f":"(SUMPRODUCT(G$9:G$229,Nutrients!$BS$8:$BS$228)+(IF($A$7=Nutrients!$B$8,Nutrients!$BS$8,Nutrients!$BS$9)*G$7)+(((IF($A$8=Nutrients!$B$79,Nutrients!$BS$79,(IF($A$8=Nutrients!$B$77,Nutrients!$BS$77,Nutrients!$BS$78)))))*G$8))/2000","v":0.4600223649748173},null,{"$f":"(SUMPRODUCT(I$9:I$229,Nutrients!$BS$8:$BS$228)+(IF($A$7=Nutrients!$B$8,Nutrients!$BS$8,Nutrients!$BS$9)*I$7)+(((IF($A$8=Nutrients!$B$79,Nutrients!$BS$79,(IF($A$8=Nutrients!$B$77,Nutrients!$BS$77,Nutrients!$BS$78)))))*I$8))/2000","v":0.69634897721404698},{"$f":"(SUMPRODUCT(J$9:J$229,Nutrients!$BS$8:$BS$228)+(IF($A$7=Nutrients!$B$8,Nutrients!$BS$8,Nutrients!$BS$9)*J$7)+(((IF($A$8=Nutrients!$B$79,Nutrients!$BS$79,(IF($A$8=Nutrients!$B$77,Nutrients!$BS$77,Nutrients!$BS$78)))))*J$8))/2000","v":0.62792423751488491},{"$f":"(SUMPRODUCT(K$9:K$229,Nutrients!$BS$8:$BS$228)+(IF($A$7=Nutrients!$B$8,Nutrients!$BS$8,Nutrients!$BS$9)*K$7)+(((IF($A$8=Nutrients!$B$79,Nutrients!$BS$79,(IF($A$8=Nutrients!$B$77,Nutrients!$BS$77,Nutrients!$BS$78)))))*K$8))/2000","v":0.57371655643401354},{"$f":"(SUMPRODUCT(L$9:L$229,Nutrients!$BS$8:$BS$228)+(IF($A$7=Nutrients!$B$8,Nutrients!$BS$8,Nutrients!$BS$9)*L$7)+(((IF($A$8=Nutrients!$B$79,Nutrients!$BS$79,(IF($A$8=Nutrients!$B$77,Nutrients!$BS$77,Nutrients!$BS$78)))))*L$8))/2000","v":0.52145320094568182},{"$f":"(SUMPRODUCT(M$9:M$229,Nutrients!$BS$8:$BS$228)+(IF($A$7=Nutrients!$B$8,Nutrients!$BS$8,Nutrients!$BS$9)*M$7)+(((IF($A$8=Nutrients!$B$79,Nutrients!$BS$79,(IF($A$8=Nutrients!$B$77,Nutrients!$BS$77,Nutrients!$BS$78)))))*M$8))/2000","v":0.47833729222550325},{"$f":"(SUMPRODUCT(N$9:N$229,Nutrients!$BS$8:$BS$228)+(IF($A$7=Nutrients!$B$8,Nutrients!$BS$8,Nutrients!$BS$9)*N$7)+(((IF($A$8=Nutrients!$B$79,Nutrients!$BS$79,(IF($A$8=Nutrients!$B$77,Nutrients!$BS$77,Nutrients!$BS$78)))))*N$8))/2000","v":0.4600223649748173},null,{"$f":"(SUMPRODUCT(P$9:P$229,Nutrients!$BS$8:$BS$228)+(IF($A$7=Nutrients!$B$8,Nutrients!$BS$8,Nutrients!$BS$9)*P$7)+(((IF($A$8=Nutrients!$B$79,Nutrients!$BS$79,(IF($A$8=Nutrients!$B$77,Nutrients!$BS$77,Nutrients!$BS$78)))))*P$8))/2000","v":0.6972111216826764},{"$f":"(SUMPRODUCT(Q$9:Q$229,Nutrients!$BS$8:$BS$228)+(IF($A$7=Nutrients!$B$8,Nutrients!$BS$8,Nutrients!$BS$9)*Q$7)+(((IF($A$8=Nutrients!$B$79,Nutrients!$BS$79,(IF($A$8=Nutrients!$B$77,Nutrients!$BS$77,Nutrients!$BS$78)))))*Q$8))/2000","v":0.62899772059959624},{"$f":"(SUMPRODUCT(R$9:R$229,Nutrients!$BS$8:$BS$228)+(IF($A$7=Nutrients!$B$8,Nutrients!$BS$8,Nutrients!$BS$9)*R$7)+(((IF($A$8=Nutrients!$B$79,Nutrients!$BS$79,(IF($A$8=Nutrients!$B$77,Nutrients!$BS$77,Nutrients!$BS$78)))))*R$8))/2000","v":0.57450755415619414},{"$f":"(SUMPRODUCT(S$9:S$229,Nutrients!$BS$8:$BS$228)+(IF($A$7=Nutrients!$B$8,Nutrients!$BS$8,Nutrients!$BS$9)*S$7)+(((IF($A$8=Nutrients!$B$79,Nutrients!$BS$79,(IF($A$8=Nutrients!$B$77,Nutrients!$BS$77,Nutrients!$BS$78)))))*S$8))/2000","v":0.52224416028408382},{"$f":"(SUMPRODUCT(T$9:T$229,Nutrients!$BS$8:$BS$228)+(IF($A$7=Nutrients!$B$8,Nutrients!$BS$8,Nutrients!$BS$9)*T$7)+(((IF($A$8=Nutrients!$B$79,Nutrients!$BS$79,(IF($A$8=Nutrients!$B$77,Nutrients!$BS$77,Nutrients!$BS$78)))))*T$8))/2000","v":0.47912816447510143},{"$f":"(SUMPRODUCT(U$9:U$229,Nutrients!$BS$8:$BS$228)+(IF($A$7=Nutrients!$B$8,Nutrients!$BS$8,Nutrients!$BS$9)*U$7)+(((IF($A$8=Nutrients!$B$79,Nutrients!$BS$79,(IF($A$8=Nutrients!$B$77,Nutrients!$BS$77,Nutrients!$BS$78)))))*U$8))/2000","v":0.4600223649748173},null,{"$f":"(SUMPRODUCT(W$9:W$229,Nutrients!$BS$8:$BS$228)+(IF($A$7=Nutrients!$B$8,Nutrients!$BS$8,Nutrients!$BS$9)*W$7)+(((IF($A$8=Nutrients!$B$79,Nutrients!$BS$79,(IF($A$8=Nutrients!$B$77,Nutrients!$BS$77,Nutrients!$BS$78)))))*W$8))/2000","v":0.69710172661048675},{"$f":"(SUMPRODUCT(X$9:X$229,Nutrients!$BS$8:$BS$228)+(IF($A$7=Nutrients!$B$8,Nutrients!$BS$8,Nutrients!$BS$9)*X$7)+(((IF($A$8=Nutrients!$B$79,Nutrients!$BS$79,(IF($A$8=Nutrients!$B$77,Nutrients!$BS$77,Nutrients!$BS$78)))))*X$8))/2000","v":0.62888854259516203},{"$f":"(SUMPRODUCT(Y$9:Y$229,Nutrients!$BS$8:$BS$228)+(IF($A$7=Nutrients!$B$8,Nutrients!$BS$8,Nutrients!$BS$9)*Y$7)+(((IF($A$8=Nutrients!$B$79,Nutrients!$BS$79,(IF($A$8=Nutrients!$B$77,Nutrients!$BS$77,Nutrients!$BS$78)))))*Y$8))/2000","v":0.57439833835055853},{"$f":"(SUMPRODUCT(Z$9:Z$229,Nutrients!$BS$8:$BS$228)+(IF($A$7=Nutrients!$B$8,Nutrients!$BS$8,Nutrients!$BS$9)*Z$7)+(((IF($A$8=Nutrients!$B$79,Nutrients!$BS$79,(IF($A$8=Nutrients!$B$77,Nutrients!$BS$77,Nutrients!$BS$78)))))*Z$8))/2000","v":0.52213518912725132},{"$f":"(SUMPRODUCT(AA$9:AA$229,Nutrients!$BS$8:$BS$228)+(IF($A$7=Nutrients!$B$8,Nutrients!$BS$8,Nutrients!$BS$9)*AA$7)+(((IF($A$8=Nutrients!$B$79,Nutrients!$BS$79,(IF($A$8=Nutrients!$B$77,Nutrients!$BS$77,Nutrients!$BS$78)))))*AA$8))/2000","v":0.47901943852596907},{"$f":"(SUMPRODUCT(AB$9:AB$229,Nutrients!$BS$8:$BS$228)+(IF($A$7=Nutrients!$B$8,Nutrients!$BS$8,Nutrients!$BS$9)*AB$7)+(((IF($A$8=Nutrients!$B$79,Nutrients!$BS$79,(IF($A$8=Nutrients!$B$77,Nutrients!$BS$77,Nutrients!$BS$78)))))*AB$8))/2000","v":0.4600223649748173},null,{"$f":"(SUMPRODUCT(AD$9:AD$229,Nutrients!$BS$8:$BS$228)+(IF($A$7=Nutrients!$B$8,Nutrients!$BS$8,Nutrients!$BS$9)*AD$7)+(((IF($A$8=Nutrients!$B$79,Nutrients!$BS$79,(IF($A$8=Nutrients!$B$77,Nutrients!$BS$77,Nutrients!$BS$78)))))*AD$8))/2000","v":0.69699253799641248},{"$f":"(SUMPRODUCT(AE$9:AE$229,Nutrients!$BS$8:$BS$228)+(IF($A$7=Nutrients!$B$8,Nutrients!$BS$8,Nutrients!$BS$9)*AE$7)+(((IF($A$8=Nutrients!$B$79,Nutrients!$BS$79,(IF($A$8=Nutrients!$B$77,Nutrients!$BS$77,Nutrients!$BS$78)))))*AE$8))/2000","v":0.62877926798123462},{"$f":"(SUMPRODUCT(AF$9:AF$229,Nutrients!$BS$8:$BS$228)+(IF($A$7=Nutrients!$B$8,Nutrients!$BS$8,Nutrients!$BS$9)*AF$7)+(((IF($A$8=Nutrients!$B$79,Nutrients!$BS$79,(IF($A$8=Nutrients!$B$77,Nutrients!$BS$77,Nutrients!$BS$78)))))*AF$8))/2000","v":0.57428936419827914},{"$f":"(SUMPRODUCT(AG$9:AG$229,Nutrients!$BS$8:$BS$228)+(IF($A$7=Nutrients!$B$8,Nutrients!$BS$8,Nutrients!$BS$9)*AG$7)+(((IF($A$8=Nutrients!$B$79,Nutrients!$BS$79,(IF($A$8=Nutrients!$B$77,Nutrients!$BS$77,Nutrients!$BS$78)))))*AG$8))/2000","v":0.5225523160689951},{"$f":"(SUMPRODUCT(AH$9:AH$229,Nutrients!$BS$8:$BS$228)+(IF($A$7=Nutrients!$B$8,Nutrients!$BS$8,Nutrients!$BS$9)*AH$7)+(((IF($A$8=Nutrients!$B$79,Nutrients!$BS$79,(IF($A$8=Nutrients!$B$77,Nutrients!$BS$77,Nutrients!$BS$78)))))*AH$8))/2000","v":0.49705377625563518},{"$f":"(SUMPRODUCT(AI$9:AI$229,Nutrients!$BS$8:$BS$228)+(IF($A$7=Nutrients!$B$8,Nutrients!$BS$8,Nutrients!$BS$9)*AI$7)+(((IF($A$8=Nutrients!$B$79,Nutrients!$BS$79,(IF($A$8=Nutrients!$B$77,Nutrients!$BS$77,Nutrients!$BS$78)))))*AI$8))/2000","v":0.4600223649748173},null,{"$f":"(SUMPRODUCT(AK$9:AK$229,Nutrients!$BS$8:$BS$228)+(IF($A$7=Nutrients!$B$8,Nutrients!$BS$8,Nutrients!$BS$9)*AK$7)+(((IF($A$8=Nutrients!$B$79,Nutrients!$BS$79,(IF($A$8=Nutrients!$B$77,Nutrients!$BS$77,Nutrients!$BS$78)))))*AK$8))/2000","v":0.69778349701753895},{"$f":"(SUMPRODUCT(AL$9:AL$229,Nutrients!$BS$8:$BS$228)+(IF($A$7=Nutrients!$B$8,Nutrients!$BS$8,Nutrients!$BS$9)*AL$7)+(((IF($A$8=Nutrients!$B$79,Nutrients!$BS$79,(IF($A$8=Nutrients!$B$77,Nutrients!$BS$77,Nutrients!$BS$78)))))*AL$8))/2000","v":0.62957029636777295},{"$f":"(SUMPRODUCT(AM$9:AM$229,Nutrients!$BS$8:$BS$228)+(IF($A$7=Nutrients!$B$8,Nutrients!$BS$8,Nutrients!$BS$9)*AM$7)+(((IF($A$8=Nutrients!$B$79,Nutrients!$BS$79,(IF($A$8=Nutrients!$B$77,Nutrients!$BS$77,Nutrients!$BS$78)))))*AM$8))/2000","v":0.57508029105871128},{"$f":"(SUMPRODUCT(AN$9:AN$229,Nutrients!$BS$8:$BS$228)+(IF($A$7=Nutrients!$B$8,Nutrients!$BS$8,Nutrients!$BS$9)*AN$7)+(((IF($A$8=Nutrients!$B$79,Nutrients!$BS$79,(IF($A$8=Nutrients!$B$77,Nutrients!$BS$77,Nutrients!$BS$78)))))*AN$8))/2000","v":0.53816385749876772},{"$f":"(SUMPRODUCT(AO$9:AO$229,Nutrients!$BS$8:$BS$228)+(IF($A$7=Nutrients!$B$8,Nutrients!$BS$8,Nutrients!$BS$9)*AO$7)+(((IF($A$8=Nutrients!$B$79,Nutrients!$BS$79,(IF($A$8=Nutrients!$B$77,Nutrients!$BS$77,Nutrients!$BS$78)))))*AO$8))/2000","v":0.5196994497723062},{"$f":"(SUMPRODUCT(AP$9:AP$229,Nutrients!$BS$8:$BS$228)+(IF($A$7=Nutrients!$B$8,Nutrients!$BS$8,Nutrients!$BS$9)*AP$7)+(((IF($A$8=Nutrients!$B$79,Nutrients!$BS$79,(IF($A$8=Nutrients!$B$77,Nutrients!$BS$77,Nutrients!$BS$78)))))*AP$8))/2000","v":0.4600223649748173},null,{"$f":"(SUMPRODUCT(AR$9:AR$229,Nutrients!$BS$8:$BS$228)+(IF($A$7=Nutrients!$B$8,Nutrients!$BS$8,Nutrients!$BS$9)*AR$7)+(((IF($A$8=Nutrients!$B$79,Nutrients!$BS$79,(IF($A$8=Nutrients!$B$77,Nutrients!$BS$77,Nutrients!$BS$78)))))*AR$8))/2000","v":0.69857472974747714},{"$f":"(SUMPRODUCT(AS$9:AS$229,Nutrients!$BS$8:$BS$228)+(IF($A$7=Nutrients!$B$8,Nutrients!$BS$8,Nutrients!$BS$9)*AS$7)+(((IF($A$8=Nutrients!$B$79,Nutrients!$BS$79,(IF($A$8=Nutrients!$B$77,Nutrients!$BS$77,Nutrients!$BS$78)))))*AS$8))/2000","v":0.63036136579034774},{"$f":"(SUMPRODUCT(AT$9:AT$229,Nutrients!$BS$8:$BS$228)+(IF($A$7=Nutrients!$B$8,Nutrients!$BS$8,Nutrients!$BS$9)*AT$7)+(((IF($A$8=Nutrients!$B$79,Nutrients!$BS$79,(IF($A$8=Nutrients!$B$77,Nutrients!$BS$77,Nutrients!$BS$78)))))*AT$8))/2000","v":0.57698569304440606},{"$f":"(SUMPRODUCT(AU$9:AU$229,Nutrients!$BS$8:$BS$228)+(IF($A$7=Nutrients!$B$8,Nutrients!$BS$8,Nutrients!$BS$9)*AU$7)+(((IF($A$8=Nutrients!$B$79,Nutrients!$BS$79,(IF($A$8=Nutrients!$B$77,Nutrients!$BS$77,Nutrients!$BS$78)))))*AU$8))/2000","v":0.56102827817607681},{"$f":"(SUMPRODUCT(AV$9:AV$229,Nutrients!$BS$8:$BS$228)+(IF($A$7=Nutrients!$B$8,Nutrients!$BS$8,Nutrients!$BS$9)*AV$7)+(((IF($A$8=Nutrients!$B$79,Nutrients!$BS$79,(IF($A$8=Nutrients!$B$77,Nutrients!$BS$77,Nutrients!$BS$78)))))*AV$8))/2000","v":0.54234664128580878},{"$f":"(SUMPRODUCT(AW$9:AW$229,Nutrients!$BS$8:$BS$228)+(IF($A$7=Nutrients!$B$8,Nutrients!$BS$8,Nutrients!$BS$9)*AW$7)+(((IF($A$8=Nutrients!$B$79,Nutrients!$BS$79,(IF($A$8=Nutrients!$B$77,Nutrients!$BS$77,Nutrients!$BS$78)))))*AW$8))/2000","v":0.4600223649748173}]
["P, %",{"$f":"(SUMPRODUCT(B$9:B$229,Nutrients!$BX$8:$BX$228)+(IF($A$7=Nutrients!$B$8,Nutrients!$BX$8,Nutrients!$BX$9)*B$7)+(((IF($A$8=Nutrients!$B$79,Nutrients!$BX$79,(IF($A$8=Nutrients!$B$77,Nutrients!$BX$77,Nutrients!$BX$78)))))*B$8))/2000","v":0.52698829927184954},{"$f":"(SUMPRODUCT(C$9:C$229,Nutrients!$BX$8:$BX$228)+(IF($A$7=Nutrients!$B$8,Nutrients!$BX$8,Nutrients!$BX$9)*C$7)+(((IF($A$8=Nutrients!$B$79,Nutrients!$BX$79,(IF($A$8=Nutrients!$B$77,Nutrients!$BX$77,Nutrients!$BX$78)))))*C$8))/2000","v":0.47554766489495992},{"$f":"(SUMPRODUCT(D$9:D$229,Nutrients!$BX$8:$BX$228)+(IF($A$7=Nutrients!$B$8,Nutrients!$BX$8,Nutrients!$BX$9)*D$7)+(((IF($A$8=Nutrients!$B$79,Nutrients!$BX$79,(IF($A$8=Nutrients!$B$77,Nutrients!$BX$77,Nutrients!$BX$78)))))*D$8))/2000","v":0.42608857846774251},{"$f":"(SUMPRODUCT(E$9:E$229,Nutrients!$BX$8:$BX$228)+(IF($A$7=Nutrients!$B$8,Nutrients!$BX$8,Nutrients!$BX$9)*E$7)+(((IF($A$8=Nutrients!$B$79,Nutrients!$BX$79,(IF($A$8=Nutrients!$B$77,Nutrients!$BX$77,Nutrients!$BX$78)))))*E$8))/2000","v":0.38726313311804977},{"$f":"(SUMPRODUCT(F$9:F$229,Nutrients!$BX$8:$BX$228)+(IF($A$7=Nutrients!$B$8,Nutrients!$BX$8,Nutrients!$BX$9)*F$7)+(((IF($A$8=Nutrients!$B$79,Nutrients!$BX$79,(IF($A$8=Nutrients!$B$77,Nutrients!$BX$77,Nutrients!$BX$78)))))*F$8))/2000","v":0.35891430613336472},{"$f":"(SUMPRODUCT(G$9:G$229,Nutrients!$BX$8:$BX$228)+(IF($A$7=Nutrients!$B$8,Nutrients!$BX$8,Nutrients!$BX$9)*G$7)+(((IF($A$8=Nutrients!$B$79,Nutrients!$BX$79,(IF($A$8=Nutrients!$B$77,Nutrients!$BX$77,Nutrients!$BX$78)))))*G$8))/2000","v":0.34524547811925704},null,{"$f":"(SUMPRODUCT(I$9:I$229,Nutrients!$BX$8:$BX$228)+(IF($A$7=Nutrients!$B$8,Nutrients!$BX$8,Nutrients!$BX$9)*I$7)+(((IF($A$8=Nutrients!$B$79,Nutrients!$BX$79,(IF($A$8=Nutrients!$B$77,Nutrients!$BX$77,Nutrients!$BX$78)))))*I$8))/2000","v":0.52659651312303979},{"$f":"(SUMPRODUCT(J$9:J$229,Nutrients!$BX$8:$BX$228)+(IF($A$7=Nutrients!$B$8,Nutrients!$BX$8,Nutrients!$BX$9)*J$7)+(((IF($A$8=Nutrients!$B$79,Nutrients!$BX$79,(IF($A$8=Nutrients!$B$77,Nutrients!$BX$77,Nutrients!$BX$78)))))*J$8))/2000","v":0.4760716682477063},{"$f":"(SUMPRODUCT(K$9:K$229,Nutrients!$BX$8:$BX$228)+(IF($A$7=Nutrients!$B$8,Nutrients!$BX$8,Nutrients!$BX$9)*K$7)+(((IF($A$8=Nutrients!$B$79,Nutrients!$BX$79,(IF($A$8=Nutrients!$B$77,Nutrients!$BX$77,Nutrients!$BX$78)))))*K$8))/2000","v":0.42528646561837696},{"$f":"(SUMPRODUCT(L$9:L$229,Nutrients!$BX$8:$BX$228)+(IF($A$7=Nutrients!$B$8,Nutrients!$BX$8,Nutrients!$BX$9)*L$7)+(((IF($A$8=Nutrients!$B$79,Nutrients!$BX$79,(IF($A$8=Nutrients!$B$77,Nutrients!$BX$77,Nutrients!$BX$78)))))*L$8))/2000","v":0.38710757977950516},{"$f":"(SUMPRODUCT(M$9:M$229,Nutrients!$BX$8:$BX$228)+(IF($A$7=Nutrients!$B$8,Nutrients!$BX$8,Nutrients!$BX$9)*M$7)+(((IF($A$8=Nutrients!$B$79,Nutrients!$BX$79,(IF($A$8=Nutrients!$B$77,Nutrients!$BX$77,Nutrients!$BX$78)))))*M$8))/2000","v":0.35875890258402704},{"$f":"(SUMPRODUCT(N$9:N$229,Nutrients!$BX$8:$BX$228)+(IF($A$7=Nutrients!$B$8,Nutrients!$BX$8,Nutrients!$BX$9)*N$7)+(((IF($A$8=Nutrients!$B$79,Nutrients!$BX$79,(IF($A$8=Nutrients!$B$77,Nutrients!$BX$77,Nutrients!$BX$78)))))*N$8))/2000","v":0.34524547811925704},null,{"$f":"(SUMPRODUCT(P$9:P$229,Nutrients!$BX$8:$BX$228)+(IF($A$7=Nutrients!$B$8,Nutrients!$BX$8,Nutrients!$BX$9)*P$7)+(((IF($A$8=Nutrients!$B$79,Nutrients!$BX$79,(IF($A$8=Nutrients!$B$77,Nutrients!$BX$77,Nutrients!$BX$78)))))*P$8))/2000","v":0.5264507193600767},{"$f":"(SUMPRODUCT(Q$9:Q$229,Nutrients!$BX$8:$BX$228)+(IF($A$7=Nutrients!$B$8,Nutrients!$BX$8,Nutrients!$BX$9)*Q$7)+(((IF($A$8=Nutrients!$B$79,Nutrients!$BX$79,(IF($A$8=Nutrients!$B$77,Nutrients!$BX$77,Nutrients!$BX$78)))))*Q$8))/2000","v":0.47591707292187119},{"$f":"(SUMPRODUCT(R$9:R$229,Nutrients!$BX$8:$BX$228)+(IF($A$7=Nutrients!$B$8,Nutrients!$BX$8,Nutrients!$BX$9)*R$7)+(((IF($A$8=Nutrients!$B$79,Nutrients!$BX$79,(IF($A$8=Nutrients!$B$77,Nutrients!$BX$77,Nutrients!$BX$78)))))*R$8))/2000","v":0.42512255939822968},{"$f":"(SUMPRODUCT(S$9:S$229,Nutrients!$BX$8:$BX$228)+(IF($A$7=Nutrients!$B$8,Nutrients!$BX$8,Nutrients!$BX$9)*S$7)+(((IF($A$8=Nutrients!$B$79,Nutrients!$BX$79,(IF($A$8=Nutrients!$B$77,Nutrients!$BX$77,Nutrients!$BX$78)))))*S$8))/2000","v":0.38694621470137963},{"$f":"(SUMPRODUCT(T$9:T$229,Nutrients!$BX$8:$BX$228)+(IF($A$7=Nutrients!$B$8,Nutrients!$BX$8,Nutrients!$BX$9)*T$7)+(((IF($A$8=Nutrients!$B$79,Nutrients!$BX$79,(IF($A$8=Nutrients!$B$77,Nutrients!$BX$77,Nutrients!$BX$78)))))*T$8))/2000","v":0.35860330309298716},{"$f":"(SUMPRODUCT(U$9:U$229,Nutrients!$BX$8:$BX$228)+(IF($A$7=Nutrients!$B$8,Nutrients!$BX$8,Nutrients!$BX$9)*U$7)+(((IF($A$8=Nutrients!$B$79,Nutrients!$BX$79,(IF($A$8=Nutrients!$B$77,Nutrients!$BX$77,Nutrients!$BX$78)))))*U$8))/2000","v":0.34524547811925704},null,{"$f":"(SUMPRODUCT(W$9:W$229,Nutrients!$BX$8:$BX$228)+(IF($A$7=Nutrients!$B$8,Nutrients!$BX$8,Nutrients!$BX$9)*W$7)+(((IF($A$8=Nutrients!$B$79,Nutrients!$BX$79,(IF($A$8=Nutrients!$B$77,Nutrients!$BX$77,Nutrients!$BX$78)))))*W$8))/2000","v":0.52523781751767451},{"$f":"(SUMPRODUCT(X$9:X$229,Nutrients!$BX$8:$BX$228)+(IF($A$7=Nutrients!$B$8,Nutrients!$BX$8,Nutrients!$BX$9)*X$7)+(((IF($A$8=Nutrients!$B$79,Nutrients!$BX$79,(IF($A$8=Nutrients!$B$77,Nutrients!$BX$77,Nutrients!$BX$78)))))*X$8))/2000","v":0.4746898004256766},{"$f":"(SUMPRODUCT(Y$9:Y$229,Nutrients!$BX$8:$BX$228)+(IF($A$7=Nutrients!$B$8,Nutrients!$BX$8,Nutrients!$BX$9)*Y$7)+(((IF($A$8=Nutrients!$B$79,Nutrients!$BX$79,(IF($A$8=Nutrients!$B$77,Nutrients!$BX$77,Nutrients!$BX$78)))))*Y$8))/2000","v":0.42389778947537549},{"$f":"(SUMPRODUCT(Z$9:Z$229,Nutrients!$BX$8:$BX$228)+(IF($A$7=Nutrients!$B$8,Nutrients!$BX$8,Nutrients!$BX$9)*Z$7)+(((IF($A$8=Nutrients!$B$79,Nutrients!$BX$79,(IF($A$8=Nutrients!$B$77,Nutrients!$BX$77,Nutrients!$BX$78)))))*Z$8))/2000","v":0.38570524816174145},{"$f":"(SUMPRODUCT(AA$9:AA$229,Nutrients!$BX$8:$BX$228)+(IF($A$7=Nutrients!$B$8,Nutrients!$BX$8,Nutrients!$BX$9)*AA$7)+(((IF($A$8=Nutrients!$B$79,Nutrients!$BX$79,(IF($A$8=Nutrients!$B$77,Nutrients!$BX$77,Nutrients!$BX$78)))))*AA$8))/2000","v":0.35734610293560709},{"$f":"(SUMPRODUCT(AB$9:AB$229,Nutrients!$BX$8:$BX$228)+(IF($A$7=Nutrients!$B$8,Nutrients!$BX$8,Nutrients!$BX$9)*AB$7)+(((IF($A$8=Nutrients!$B$79,Nutrients!$BX$79,(IF($A$8=Nutrients!$B$77,Nutrients!$BX$77,Nutrients!$BX$78)))))*AB$8))/2000","v":0.34524547811925704},null,{"$f":"(SUMPRODUCT(AD$9:AD$229,Nutrients!$BX$8:$BX$228)+(IF($A$7=Nutrients!$B$8,Nutrients!$BX$8,Nutrients!$BX$9)*AD$7)+(((IF($A$8=Nutrients!$B$79,Nutrients!$BX$79,(IF($A$8=Nutrients!$B$77,Nutrients!$BX$77,Nutrients!$BX$78)))))*AD$8))/2000","v":0.5240112474171853},{"$f":"(SUMPRODUCT(AE$9:AE$229,Nutrients!$BX$8:$BX$228)+(IF($A$7=Nutrients!$B$8,Nutrients!$BX$8,Nutrients!$BX$9)*AE$7)+(((IF($A$8=Nutrients!$B$79,Nutrients!$BX$79,(IF($A$8=Nutrients!$B$77,Nutrients!$BX$77,Nutrients!$BX$78)))))*AE$8))/2000","v":0.47346892381990652},{"$f":"(SUMPRODUCT(AF$9:AF$229,Nutrients!$BX$8:$BX$228)+(IF($A$7=Nutrients!$B$8,Nutrients!$BX$8,Nutrients!$BX$9)*AF$7)+(((IF($A$8=Nutrients!$B$79,Nutrients!$BX$79,(IF($A$8=Nutrients!$B$77,Nutrients!$BX$77,Nutrients!$BX$78)))))*AF$8))/2000","v":0.42265702124493065},{"$f":"(SUMPRODUCT(AG$9:AG$229,Nutrients!$BX$8:$BX$228)+(IF($A$7=Nutrients!$B$8,Nutrients!$BX$8,Nutrients!$BX$9)*AG$7)+(((IF($A$8=Nutrients!$B$79,Nutrients!$BX$79,(IF($A$8=Nutrients!$B$77,Nutrients!$BX$77,Nutrients!$BX$78)))))*AG$8))/2000","v":0.38445645173421161},{"$f":"(SUMPRODUCT(AH$9:AH$229,Nutrients!$BX$8:$BX$228)+(IF($A$7=Nutrients!$B$8,Nutrients!$BX$8,Nutrients!$BX$9)*AH$7)+(((IF($A$8=Nutrients!$B$79,Nutrients!$BX$79,(IF($A$8=Nutrients!$B$77,Nutrients!$BX$77,Nutrients!$BX$78)))))*AH$8))/2000","v":0.36818502177924639},{"$f":"(SUMPRODUCT(AI$9:AI$229,Nutrients!$BX$8:$BX$228)+(IF($A$7=Nutrients!$B$8,Nutrients!$BX$8,Nutrients!$BX$9)*AI$7)+(((IF($A$8=Nutrients!$B$79,Nutrients!$BX$79,(IF($A$8=Nutrients!$B$77,Nutrients!$BX$77,Nutrients!$BX$78)))))*AI$8))/2000","v":0.34524547811925704},null,{"$f":"(SUMPRODUCT(AK$9:AK$229,Nutrients!$BX$8:$BX$228)+(IF($A$7=Nutrients!$B$8,Nutrients!$BX$8,Nutrients!$BX$9)*AK$7)+(((IF($A$8=Nutrients!$B$79,Nutrients!$BX$79,(IF($A$8=Nutrients!$B$77,Nutrients!$BX$77,Nutrients!$BX$78)))))*AK$8))/2000","v":0.52384990334382764},{"$f":"(SUMPRODUCT(AL$9:AL$229,Nutrients!$BX$8:$BX$228)+(IF($A$7=Nutrients!$B$8,Nutrients!$BX$8,Nutrients!$BX$9)*AL$7)+(((IF($A$8=Nutrients!$B$79,Nutrients!$BX$79,(IF($A$8=Nutrients!$B$77,Nutrients!$BX$77,Nutrients!$BX$78)))))*AL$8))/2000","v":0.47330298751072836},{"$f":"(SUMPRODUCT(AM$9:AM$229,Nutrients!$BX$8:$BX$228)+(IF($A$7=Nutrients!$B$8,Nutrients!$BX$8,Nutrients!$BX$9)*AM$7)+(((IF($A$8=Nutrients!$B$79,Nutrients!$BX$79,(IF($A$8=Nutrients!$B$77,Nutrients!$BX$77,Nutrients!$BX$78)))))*AM$8))/2000","v":0.42249780632335576},{"$f":"(SUMPRODUCT(AN$9:AN$229,Nutrients!$BX$8:$BX$228)+(IF($A$7=Nutrients!$B$8,Nutrients!$BX$8,Nutrients!$BX$9)*AN$7)+(((IF($A$8=Nutrients!$B$79,Nutrients!$BX$79,(IF($A$8=Nutrients!$B$77,Nutrients!$BX$77,Nutrients!$BX$78)))))*AN$8))/2000","v":0.39440666504407762},{"$f":"(SUMPRODUCT(AO$9:AO$229,Nutrients!$BX$8:$BX$228)+(IF($A$7=Nutrients!$B$8,Nutrients!$BX$8,Nutrients!$BX$9)*AO$7)+(((IF($A$8=Nutrients!$B$79,Nutrients!$BX$79,(IF($A$8=Nutrients!$B$77,Nutrients!$BX$77,Nutrients!$BX$78)))))*AO$8))/2000","v":0.38163746865011811},{"$f":"(SUMPRODUCT(AP$9:AP$229,Nutrients!$BX$8:$BX$228)+(IF($A$7=Nutrients!$B$8,Nutrients!$BX$8,Nutrients!$BX$9)*AP$7)+(((IF($A$8=Nutrients!$B$79,Nutrients!$BX$79,(IF($A$8=Nutrients!$B$77,Nutrients!$BX$77,Nutrients!$BX$78)))))*AP$8))/2000","v":0.34524547811925704},null,{"$f":"(SUMPRODUCT(AR$9:AR$229,Nutrients!$BX$8:$BX$228)+(IF($A$7=Nutrients!$B$8,Nutrients!$BX$8,Nutrients!$BX$9)*AR$7)+(((IF($A$8=Nutrients!$B$79,Nutrients!$BX$79,(IF($A$8=Nutrients!$B$77,Nutrients!$BX$77,Nutrients!$BX$78)))))*AR$8))/2000","v":0.52367043877823993},{"$f":"(SUMPRODUCT(AS$9:AS$229,Nutrients!$BX$8:$BX$228)+(IF($A$7=Nutrients!$B$8,Nutrients!$BX$8,Nutrients!$BX$9)*AS$7)+(((IF($A$8=Nutrients!$B$79,Nutrients!$BX$79,(IF($A$8=Nutrients!$B$77,Nutrients!$BX$77,Nutrients!$BX$78)))))*AS$8))/2000","v":0.4731343344706892},{"$f":"(SUMPRODUCT(AT$9:AT$229,Nutrients!$BX$8:$BX$228)+(IF($A$7=Nutrients!$B$8,Nutrients!$BX$8,Nutrients!$BX$9)*AT$7)+(((IF($A$8=Nutrients!$B$79,Nutrients!$BX$79,(IF($A$8=Nutrients!$B$77,Nutrients!$BX$77,Nutrients!$BX$78)))))*AT$8))/2000","v":0.42296271801162122},{"$f":"(SUMPRODUCT(AU$9:AU$229,Nutrients!$BX$8:$BX$228)+(IF($A$7=Nutrients!$B$8,Nutrients!$BX$8,Nutrients!$BX$9)*AU$7)+(((IF($A$8=Nutrients!$B$79,Nutrients!$BX$79,(IF($A$8=Nutrients!$B$77,Nutrients!$BX$77,Nutrients!$BX$78)))))*AU$8))/2000","v":0.40785964948905362},{"$f":"(SUMPRODUCT(AV$9:AV$229,Nutrients!$BX$8:$BX$228)+(IF($A$7=Nutrients!$B$8,Nutrients!$BX$8,Nutrients!$BX$9)*AV$7)+(((IF($A$8=Nutrients!$B$79,Nutrients!$BX$79,(IF($A$8=Nutrients!$B$77,Nutrients!$BX$77,Nutrients!$BX$78)))))*AV$8))/2000","v":0.39508986417074288},{"$f":"(SUMPRODUCT(AW$9:AW$229,Nutrients!$BX$8:$BX$228)+(IF($A$7=Nutrients!$B$8,Nutrients!$BX$8,Nutrients!$BX$9)*AW$7)+(((IF($A$8=Nutrients!$B$79,Nutrients!$BX$79,(IF($A$8=Nutrients!$B$77,Nutrients!$BX$77,Nutrients!$BX$78)))))*AW$8))/2000","v":0.34524547811925704}]
["Available P w/o phytase, %",{"$f":"(SUMPRODUCT(B$9:B$229,Nutrients!$EB$8:$EB$228)+(IF($A$7=Nutrients!$B$8,Nutrients!$EB$8,Nutrients!$EB$9)*B$7)+(((IF($A$8=Nutrients!$B$79,Nutrients!$EB$79,(IF($A$8=Nutrients!$B$77,Nutrients!$EB$77,Nutrients!$EB$78)))))*B$8))/2000","v":0.22446494345276957},{"$f":"(SUMPRODUCT(C$9:C$229,Nutrients!$EB$8:$EB$228)+(IF($A$7=Nutrients!$B$8,Nutrients!$EB$8,Nutrients!$EB$9)*C$7)+(((IF($A$8=Nutrients!$B$79,Nutrients!$EB$79,(IF($A$8=Nutrients!$B$77,Nutrients!$EB$77,Nutrients!$EB$78)))))*C$8))/2000","v":0.18518517069501755},{"$f":"(SUMPRODUCT(D$9:D$229,Nutrients!$EB$8:$EB$228)+(IF($A$7=Nutrients!$B$8,Nutrients!$EB$8,Nutrients!$EB$9)*D$7)+(((IF($A$8=Nutrients!$B$79,Nutrients!$EB$79,(IF($A$8=Nutrients!$B$77,Nutrients!$EB$77,Nutrients!$EB$78)))))*D$8))/2000","v":0.14586079396089491},{"$f":"(SUMPRODUCT(E$9:E$229,Nutrients!$EB$8:$EB$228)+(IF($A$7=Nutrients!$B$8,Nutrients!$EB$8,Nutrients!$EB$9)*E$7)+(((IF($A$8=Nutrients!$B$79,Nutrients!$EB$79,(IF($A$8=Nutrients!$B$77,Nutrients!$EB$77,Nutrients!$EB$78)))))*E$8))/2000","v":0.11735401640373964},{"$f":"(SUMPRODUCT(F$9:F$229,Nutrients!$EB$8:$EB$228)+(IF($A$7=Nutrients!$B$8,Nutrients!$EB$8,Nutrients!$EB$9)*F$7)+(((IF($A$8=Nutrients!$B$79,Nutrients!$EB$79,(IF($A$8=Nutrients!$B$77,Nutrients!$EB$77,Nutrients!$EB$78)))))*F$8))/2000","v":9.7828165821017068E-2},{"$f":"(SUMPRODUCT(G$9:G$229,Nutrients!$EB$8:$EB$228)+(IF($A$7=Nutrients!$B$8,Nutrients!$EB$8,Nutrients!$EB$9)*G$7)+(((IF($A$8=Nutrients!$B$79,Nutrients!$EB$79,(IF($A$8=Nutrients!$B$77,Nutrients!$EB$77,Nutrients!$EB$78)))))*G$8))/2000","v":8.9123540247531982E-2},null,{"$f":"(SUMPRODUCT(I$9:I$229,Nutrients!$EB$8:$EB$228)+(IF($A$7=Nutrients!$B$8,Nutrients!$EB$8,Nutrients!$EB$9)*I$7)+(((IF($A$8=Nutrients!$B$79,Nutrients!$EB$79,(IF($A$8=Nutrients!$B$77,Nutrients!$EB$77,Nutrients!$EB$78)))))*I$8))/2000","v":0.20654941027207996},{"$f":"(SUMPRODUCT(J$9:J$229,Nutrients!$EB$8:$EB$228)+(IF($A$7=Nutrients!$B$8,Nutrients!$EB$8,Nutrients!$EB$9)*J$7)+(((IF($A$8=Nutrients!$B$79,Nutrients!$EB$79,(IF($A$8=Nutrients!$B$77,Nutrients!$EB$77,Nutrients!$EB$78)))))*J$8))/2000","v":0.16821625069426691},{"$f":"(SUMPRODUCT(K$9:K$229,Nutrients!$EB$8:$EB$228)+(IF($A$7=Nutrients!$B$8,Nutrients!$EB$8,Nutrients!$EB$9)*K$7)+(((IF($A$8=Nutrients!$B$79,Nutrients!$EB$79,(IF($A$8=Nutrients!$B$77,Nutrients!$EB$77,Nutrients!$EB$78)))))*K$8))/2000","v":0.12755025855212318},{"$f":"(SUMPRODUCT(L$9:L$229,Nutrients!$EB$8:$EB$228)+(IF($A$7=Nutrients!$B$8,Nutrients!$EB$8,Nutrients!$EB$9)*L$7)+(((IF($A$8=Nutrients!$B$79,Nutrients!$EB$79,(IF($A$8=Nutrients!$B$77,Nutrients!$EB$77,Nutrients!$EB$78)))))*L$8))/2000","v":9.9703250098421903E-2},{"$f":"(SUMPRODUCT(M$9:M$229,Nutrients!$EB$8:$EB$228)+(IF($A$7=Nutrients!$B$8,Nutrients!$EB$8,Nutrients!$EB$9)*M$7)+(((IF($A$8=Nutrients!$B$79,Nutrients!$EB$79,(IF($A$8=Nutrients!$B$77,Nutrients!$EB$77,Nutrients!$EB$78)))))*M$8))/2000","v":8.0177389833747531E-2},{"$f":"(SUMPRODUCT(N$9:N$229,Nutrients!$EB$8:$EB$228)+(IF($A$7=Nutrients!$B$8,Nutrients!$EB$8,Nutrients!$EB$9)*N$7)+(((IF($A$8=Nutrients!$B$79,Nutrients!$EB$79,(IF($A$8=Nutrients!$B$77,Nutrients!$EB$77,Nutrients!$EB$78)))))*N$8))/2000","v":8.9123540247531982E-2},null,{"$f":"(SUMPRODUCT(P$9:P$229,Nutrients!$EB$8:$EB$228)+(IF($A$7=Nutrients!$B$8,Nutrients!$EB$8,Nutrients!$EB$9)*P$7)+(((IF($A$8=Nutrients!$B$79,Nutrients!$EB$79,(IF($A$8=Nutrients!$B$77,Nutrients!$EB$77,Nutrients!$EB$78)))))*P$8))/2000","v":0.18889980440263007},{"$f":"(SUMPRODUCT(Q$9:Q$229,Nutrients!$EB$8:$EB$228)+(IF($A$7=Nutrients!$B$8,Nutrients!$EB$8,Nutrients!$EB$9)*Q$7)+(((IF($A$8=Nutrients!$B$79,Nutrients!$EB$79,(IF($A$8=Nutrients!$B$77,Nutrients!$EB$77,Nutrients!$EB$78)))))*Q$8))/2000","v":0.15056558753804491},{"$f":"(SUMPRODUCT(R$9:R$229,Nutrients!$EB$8:$EB$228)+(IF($A$7=Nutrients!$B$8,Nutrients!$EB$8,Nutrients!$EB$9)*R$7)+(((IF($A$8=Nutrients!$B$79,Nutrients!$EB$79,(IF($A$8=Nutrients!$B$77,Nutrients!$EB$77,Nutrients!$EB$78)))))*R$8))/2000","v":0.1098985081157391},{"$f":"(SUMPRODUCT(S$9:S$229,Nutrients!$EB$8:$EB$228)+(IF($A$7=Nutrients!$B$8,Nutrients!$EB$8,Nutrients!$EB$9)*S$7)+(((IF($A$8=Nutrients!$B$79,Nutrients!$EB$79,(IF($A$8=Nutrients!$B$77,Nutrients!$EB$77,Nutrients!$EB$78)))))*S$8))/2000","v":8.205180115812756E-2},{"$f":"(SUMPRODUCT(T$9:T$229,Nutrients!$EB$8:$EB$228)+(IF($A$7=Nutrients!$B$8,Nutrients!$EB$8,Nutrients!$EB$9)*T$7)+(((IF($A$8=Nutrients!$B$79,Nutrients!$EB$79,(IF($A$8=Nutrients!$B$77,Nutrients!$EB$77,Nutrients!$EB$78)))))*T$8))/2000","v":6.2526624956738996E-2},{"$f":"(SUMPRODUCT(U$9:U$229,Nutrients!$EB$8:$EB$228)+(IF($A$7=Nutrients!$B$8,Nutrients!$EB$8,Nutrients!$EB$9)*U$7)+(((IF($A$8=Nutrients!$B$79,Nutrients!$EB$79,(IF($A$8=Nutrients!$B$77,Nutrients!$EB$77,Nutrients!$EB$78)))))*U$8))/2000","v":8.9123540247531982E-2},null,{"$f":"(SUMPRODUCT(W$9:W$229,Nutrients!$EB$8:$EB$228)+(IF($A$7=Nutrients!$B$8,Nutrients!$EB$8,Nutrients!$EB$9)*W$7)+(((IF($A$8=Nutrients!$B$79,Nutrients!$EB$79,(IF($A$8=Nutrients!$B$77,Nutrients!$EB$77,Nutrients!$EB$78)))))*W$8))/2000","v":0.17017613927912439},{"$f":"(SUMPRODUCT(X$9:X$229,Nutrients!$EB$8:$EB$228)+(IF($A$7=Nutrients!$B$8,Nutrients!$EB$8,Nutrients!$EB$9)*X$7)+(((IF($A$8=Nutrients!$B$79,Nutrients!$EB$79,(IF($A$8=Nutrients!$B$77,Nutrients!$EB$77,Nutrients!$EB$78)))))*X$8))/2000","v":0.13184021739534393},{"$f":"(SUMPRODUCT(Y$9:Y$229,Nutrients!$EB$8:$EB$228)+(IF($A$7=Nutrients!$B$8,Nutrients!$EB$8,Nutrients!$EB$9)*Y$7)+(((IF($A$8=Nutrients!$B$79,Nutrients!$EB$79,(IF($A$8=Nutrients!$B$77,Nutrients!$EB$77,Nutrients!$EB$78)))))*Y$8))/2000","v":9.1173434893111818E-2},{"$f":"(SUMPRODUCT(Z$9:Z$229,Nutrients!$EB$8:$EB$228)+(IF($A$7=Nutrients!$B$8,Nutrients!$EB$8,Nutrients!$EB$9)*Z$7)+(((IF($A$8=Nutrients!$B$79,Nutrients!$EB$79,(IF($A$8=Nutrients!$B$77,Nutrients!$EB$77,Nutrients!$EB$78)))))*Z$8))/2000","v":6.3324806273277121E-2},{"$f":"(SUMPRODUCT(AA$9:AA$229,Nutrients!$EB$8:$EB$228)+(IF($A$7=Nutrients!$B$8,Nutrients!$EB$8,Nutrients!$EB$9)*AA$7)+(((IF($A$8=Nutrients!$B$79,Nutrients!$EB$79,(IF($A$8=Nutrients!$B$77,Nutrients!$EB$77,Nutrients!$EB$78)))))*AA$8))/2000","v":4.3797704019653355E-2},{"$f":"(SUMPRODUCT(AB$9:AB$229,Nutrients!$EB$8:$EB$228)+(IF($A$7=Nutrients!$B$8,Nutrients!$EB$8,Nutrients!$EB$9)*AB$7)+(((IF($A$8=Nutrients!$B$79,Nutrients!$EB$79,(IF($A$8=Nutrients!$B$77,Nutrients!$EB$77,Nutrients!$EB$78)))))*AB$8))/2000","v":8.9123540247531982E-2},null,{"$f":"(SUMPRODUCT(AD$9:AD$229,Nutrients!$EB$8:$EB$228)+(IF($A$7=Nutrients!$B$8,Nutrients!$EB$8,Nutrients!$EB$9)*AD$7)+(((IF($A$8=Nutrients!$B$79,Nutrients!$EB$79,(IF($A$8=Nutrients!$B$77,Nutrients!$EB$77,Nutrients!$EB$78)))))*AD$8))/2000","v":0.15145085247279608},{"$f":"(SUMPRODUCT(AE$9:AE$229,Nutrients!$EB$8:$EB$228)+(IF($A$7=Nutrients!$B$8,Nutrients!$EB$8,Nutrients!$EB$9)*AE$7)+(((IF($A$8=Nutrients!$B$79,Nutrients!$EB$79,(IF($A$8=Nutrients!$B$77,Nutrients!$EB$77,Nutrients!$EB$78)))))*AE$8))/2000","v":0.11311560609883757},{"$f":"(SUMPRODUCT(AF$9:AF$229,Nutrients!$EB$8:$EB$228)+(IF($A$7=Nutrients!$B$8,Nutrients!$EB$8,Nutrients!$EB$9)*AF$7)+(((IF($A$8=Nutrients!$B$79,Nutrients!$EB$79,(IF($A$8=Nutrients!$B$77,Nutrients!$EB$77,Nutrients!$EB$78)))))*AF$8))/2000","v":7.2446463536834704E-2},{"$f":"(SUMPRODUCT(AG$9:AG$229,Nutrients!$EB$8:$EB$228)+(IF($A$7=Nutrients!$B$8,Nutrients!$EB$8,Nutrients!$EB$9)*AG$7)+(((IF($A$8=Nutrients!$B$79,Nutrients!$EB$79,(IF($A$8=Nutrients!$B$77,Nutrients!$EB$77,Nutrients!$EB$78)))))*AG$8))/2000","v":4.4596849986197611E-2},{"$f":"(SUMPRODUCT(AH$9:AH$229,Nutrients!$EB$8:$EB$228)+(IF($A$7=Nutrients!$B$8,Nutrients!$EB$8,Nutrients!$EB$9)*AH$7)+(((IF($A$8=Nutrients!$B$79,Nutrients!$EB$79,(IF($A$8=Nutrients!$B$77,Nutrients!$EB$77,Nutrients!$EB$78)))))*AH$8))/2000","v":3.7400033302329751E-2},{"$f":"(SUMPRODUCT(AI$9:AI$229,Nutrients!$EB$8:$EB$228)+(IF($A$7=Nutrients!$B$8,Nutrients!$EB$8,Nutrients!$EB$9)*AI$7)+(((IF($A$8=Nutrients!$B$79,Nutrients!$EB$79,(IF($A$8=Nutrients!$B$77,Nutrients!$EB$77,Nutrients!$EB$78)))))*AI$8))/2000","v":8.9123540247531982E-2},null,{"$f":"(SUMPRODUCT(AK$9:AK$229,Nutrients!$EB$8:$EB$228)+(IF($A$7=Nutrients!$B$8,Nutrients!$EB$8,Nutrients!$EB$9)*AK$7)+(((IF($A$8=Nutrients!$B$79,Nutrients!$EB$79,(IF($A$8=Nutrients!$B$77,Nutrients!$EB$77,Nutrients!$EB$78)))))*AK$8))/2000","v":0.13379940602463136},{"$f":"(SUMPRODUCT(AL$9:AL$229,Nutrients!$EB$8:$EB$228)+(IF($A$7=Nutrients!$B$8,Nutrients!$EB$8,Nutrients!$EB$9)*AL$7)+(((IF($A$8=Nutrients!$B$79,Nutrients!$EB$79,(IF($A$8=Nutrients!$B$77,Nutrients!$EB$77,Nutrients!$EB$78)))))*AL$8))/2000","v":9.5463614800707378E-2},{"$f":"(SUMPRODUCT(AM$9:AM$229,Nutrients!$EB$8:$EB$228)+(IF($A$7=Nutrients!$B$8,Nutrients!$EB$8,Nutrients!$EB$9)*AM$7)+(((IF($A$8=Nutrients!$B$79,Nutrients!$EB$79,(IF($A$8=Nutrients!$B$77,Nutrients!$EB$77,Nutrients!$EB$78)))))*AM$8))/2000","v":5.4795269703805764E-2},{"$f":"(SUMPRODUCT(AN$9:AN$229,Nutrients!$EB$8:$EB$228)+(IF($A$7=Nutrients!$B$8,Nutrients!$EB$8,Nutrients!$EB$9)*AN$7)+(((IF($A$8=Nutrients!$B$79,Nutrients!$EB$79,(IF($A$8=Nutrients!$B$77,Nutrients!$EB$77,Nutrients!$EB$78)))))*AN$8))/2000","v":3.7276074191060785E-2},{"$f":"(SUMPRODUCT(AO$9:AO$229,Nutrients!$EB$8:$EB$228)+(IF($A$7=Nutrients!$B$8,Nutrients!$EB$8,Nutrients!$EB$9)*AO$7)+(((IF($A$8=Nutrients!$B$79,Nutrients!$EB$79,(IF($A$8=Nutrients!$B$77,Nutrients!$EB$77,Nutrients!$EB$78)))))*AO$8))/2000","v":3.3680105342712471E-2},{"$f":"(SUMPRODUCT(AP$9:AP$229,Nutrients!$EB$8:$EB$228)+(IF($A$7=Nutrients!$B$8,Nutrients!$EB$8,Nutrients!$EB$9)*AP$7)+(((IF($A$8=Nutrients!$B$79,Nutrients!$EB$79,(IF($A$8=Nutrients!$B$77,Nutrients!$EB$77,Nutrients!$EB$78)))))*AP$8))/2000","v":8.9123540247531982E-2},null,{"$f":"(SUMPRODUCT(AR$9:AR$229,Nutrients!$EB$8:$EB$228)+(IF($A$7=Nutrients!$B$8,Nutrients!$EB$8,Nutrients!$EB$9)*AR$7)+(((IF($A$8=Nutrients!$B$79,Nutrients!$EB$79,(IF($A$8=Nutrients!$B$77,Nutrients!$EB$77,Nutrients!$EB$78)))))*AR$8))/2000","v":0.11614580965430407},{"$f":"(SUMPRODUCT(AS$9:AS$229,Nutrients!$EB$8:$EB$228)+(IF($A$7=Nutrients!$B$8,Nutrients!$EB$8,Nutrients!$EB$9)*AS$7)+(((IF($A$8=Nutrients!$B$79,Nutrients!$EB$79,(IF($A$8=Nutrients!$B$77,Nutrients!$EB$77,Nutrients!$EB$78)))))*AS$8))/2000","v":7.7811301173591071E-2},{"$f":"(SUMPRODUCT(AT$9:AT$229,Nutrients!$EB$8:$EB$228)+(IF($A$7=Nutrients!$B$8,Nutrients!$EB$8,Nutrients!$EB$9)*AT$7)+(((IF($A$8=Nutrients!$B$79,Nutrients!$EB$79,(IF($A$8=Nutrients!$B$77,Nutrients!$EB$77,Nutrients!$EB$78)))))*AT$8))/2000","v":3.7808761481268875E-2},{"$f":"(SUMPRODUCT(AU$9:AU$229,Nutrients!$EB$8:$EB$228)+(IF($A$7=Nutrients!$B$8,Nutrients!$EB$8,Nutrients!$EB$9)*AU$7)+(((IF($A$8=Nutrients!$B$79,Nutrients!$EB$79,(IF($A$8=Nutrients!$B$77,Nutrients!$EB$77,Nutrients!$EB$78)))))*AU$8))/2000","v":3.3556196529699836E-2},{"$f":"(SUMPRODUCT(AV$9:AV$229,Nutrients!$EB$8:$EB$228)+(IF($A$7=Nutrients!$B$8,Nutrients!$EB$8,Nutrients!$EB$9)*AV$7)+(((IF($A$8=Nutrients!$B$79,Nutrients!$EB$79,(IF($A$8=Nutrients!$B$77,Nutrients!$EB$77,Nutrients!$EB$78)))))*AV$8))/2000","v":2.996017119708673E-2},{"$f":"(SUMPRODUCT(AW$9:AW$229,Nutrients!$EB$8:$EB$228)+(IF($A$7=Nutrients!$B$8,Nutrients!$EB$8,Nutrients!$EB$9)*AW$7)+(((IF($A$8=Nutrients!$B$79,Nutrients!$EB$79,(IF($A$8=Nutrients!$B$77,Nutrients!$EB$77,Nutrients!$EB$78)))))*AW$8))/2000","v":8.9123540247531982E-2}]
["Available P, %",{"$f":"IF((SUMPRODUCT(B$9:B$229,Nutrients!$EE$8:$EE$228))=0,B256,IF((SUMPRODUCT(B$9:B$229,Nutrients!$EE$8:$EE$228))>(1500*907),B256+0.14,B256+0.00000000006666*((SUMPRODUCT(B$9:B$229,Nutrients!$EE$8:$EE$228)/907))^3-0.00000023623322*((SUMPRODUCT(B$9:B$229,Nutrients!$EE$8:$EE$228)/907))^2+0.00029262722672*((SUMPRODUCT(B$9:B$229,Nutrients!$EE$8:$EE$228)/907))+0.007028328))","v":0.33707938392360226},{"$f":"IF((SUMPRODUCT(C$9:C$229,Nutrients!$EE$8:$EE$228))=0,C256,IF((SUMPRODUCT(C$9:C$229,Nutrients!$EE$8:$EE$228))>(1500*907),C256+0.14,C256+0.00000000006666*((SUMPRODUCT(C$9:C$229,Nutrients!$EE$8:$EE$228)/907))^3-0.00000023623322*((SUMPRODUCT(C$9:C$229,Nutrients!$EE$8:$EE$228)/907))^2+0.00029262722672*((SUMPRODUCT(C$9:C$229,Nutrients!$EE$8:$EE$228)/907))+0.007028328))","v":0.29779961116585019},{"$f":"IF((SUMPRODUCT(D$9:D$229,Nutrients!$EE$8:$EE$228))=0,D256,IF((SUMPRODUCT(D$9:D$229,Nutrients!$EE$8:$EE$228))>(1500*907),D256+0.14,D256+0.00000000006666*((SUMPRODUCT(D$9:D$229,Nutrients!$EE$8:$EE$228)/907))^3-0.00000023623322*((SUMPRODUCT(D$9:D$229,Nutrients!$EE$8:$EE$228)/907))^2+0.00029262722672*((SUMPRODUCT(D$9:D$229,Nutrients!$EE$8:$EE$228)/907))+0.007028328))","v":0.2584752344317276},{"$f":"IF((SUMPRODUCT(E$9:E$229,Nutrients!$EE$8:$EE$228))=0,E256,IF((SUMPRODUCT(E$9:E$229,Nutrients!$EE$8:$EE$228))>(1500*907),E256+0.14,E256+0.00000000006666*((SUMPRODUCT(E$9:E$229,Nutrients!$EE$8:$EE$228)/907))^3-0.00000023623322*((SUMPRODUCT(E$9:E$229,Nutrients!$EE$8:$EE$228)/907))^2+0.00029262722672*((SUMPRODUCT(E$9:E$229,Nutrients!$EE$8:$EE$228)/907))+0.007028328))","v":0.22996845687457232},{"$f":"IF((SUMPRODUCT(F$9:F$229,Nutrients!$EE$8:$EE$228))=0,F256,IF((SUMPRODUCT(F$9:F$229,Nutrients!$EE$8:$EE$228))>(1500*907),F256+0.14,F256+0.00000000006666*((SUMPRODUCT(F$9:F$229,Nutrients!$EE$8:$EE$228)/907))^3-0.00000023623322*((SUMPRODUCT(F$9:F$229,Nutrients!$EE$8:$EE$228)/907))^2+0.00029262722672*((SUMPRODUCT(F$9:F$229,Nutrients!$EE$8:$EE$228)/907))+0.007028328))","v":0.21044260629184977},{"$f":"IF((SUMPRODUCT(G$9:G$229,Nutrients!$EE$8:$EE$228))=0,G256,IF((SUMPRODUCT(G$9:G$229,Nutrients!$EE$8:$EE$228))>(1500*907),G256+0.14,G256+0.00000000006666*((SUMPRODUCT(G$9:G$229,Nutrients!$EE$8:$EE$228)/907))^3-0.00000023623322*((SUMPRODUCT(G$9:G$229,Nutrients!$EE$8:$EE$228)/907))^2+0.00029262722672*((SUMPRODUCT(G$9:G$229,Nutrients!$EE$8:$EE$228)/907))+0.007028328))","v":0.20173798071836466},null,{"$f":"IF((SUMPRODUCT(I$9:I$229,Nutrients!$EE$8:$EE$228))=0,I256,IF((SUMPRODUCT(I$9:I$229,Nutrients!$EE$8:$EE$228))>(1500*907),I256+0.14,I256+0.00000000006666*((SUMPRODUCT(I$9:I$229,Nutrients!$EE$8:$EE$228)/907))^3-0.00000023623322*((SUMPRODUCT(I$9:I$229,Nutrients!$EE$8:$EE$228)/907))^2+0.00029262722672*((SUMPRODUCT(I$9:I$229,Nutrients!$EE$8:$EE$228)/907))+0.007028328))","v":0.31916385074291265},{"$f":"IF((SUMPRODUCT(J$9:J$229,Nutrients!$EE$8:$EE$228))=0,J256,IF((SUMPRODUCT(J$9:J$229,Nutrients!$EE$8:$EE$228))>(1500*907),J256+0.14,J256+0.00000000006666*((SUMPRODUCT(J$9:J$229,Nutrients!$EE$8:$EE$228)/907))^3-0.00000023623322*((SUMPRODUCT(J$9:J$229,Nutrients!$EE$8:$EE$228)/907))^2+0.00029262722672*((SUMPRODUCT(J$9:J$229,Nutrients!$EE$8:$EE$228)/907))+0.007028328))","v":0.28083069116509962},{"$f":"IF((SUMPRODUCT(K$9:K$229,Nutrients!$EE$8:$EE$228))=0,K256,IF((SUMPRODUCT(K$9:K$229,Nutrients!$EE$8:$EE$228))>(1500*907),K256+0.14,K256+0.00000000006666*((SUMPRODUCT(K$9:K$229,Nutrients!$EE$8:$EE$228)/907))^3-0.00000023623322*((SUMPRODUCT(K$9:K$229,Nutrients!$EE$8:$EE$228)/907))^2+0.00029262722672*((SUMPRODUCT(K$9:K$229,Nutrients!$EE$8:$EE$228)/907))+0.007028328))","v":0.24016469902295587},{"$f":"IF((SUMPRODUCT(L$9:L$229,Nutrients!$EE$8:$EE$228))=0,L256,IF((SUMPRODUCT(L$9:L$229,Nutrients!$EE$8:$EE$228))>(1500*907),L256+0.14,L256+0.00000000006666*((SUMPRODUCT(L$9:L$229,Nutrients!$EE$8:$EE$228)/907))^3-0.00000023623322*((SUMPRODUCT(L$9:L$229,Nutrients!$EE$8:$EE$228)/907))^2+0.00029262722672*((SUMPRODUCT(L$9:L$229,Nutrients!$EE$8:$EE$228)/907))+0.007028328))","v":0.21231769056925459},{"$f":"IF((SUMPRODUCT(M$9:M$229,Nutrients!$EE$8:$EE$228))=0,M256,IF((SUMPRODUCT(M$9:M$229,Nutrients!$EE$8:$EE$228))>(1500*907),M256+0.14,M256+0.00000000006666*((SUMPRODUCT(M$9:M$229,Nutrients!$EE$8:$EE$228)/907))^3-0.00000023623322*((SUMPRODUCT(M$9:M$229,Nutrients!$EE$8:$EE$228)/907))^2+0.00029262722672*((SUMPRODUCT(M$9:M$229,Nutrients!$EE$8:$EE$228)/907))+0.007028328))","v":0.19279183030458022},{"$f":"IF((SUMPRODUCT(N$9:N$229,Nutrients!$EE$8:$EE$228))=0,N256,IF((SUMPRODUCT(N$9:N$229,Nutrients!$EE$8:$EE$228))>(1500*907),N256+0.14,N256+0.00000000006666*((SUMPRODUCT(N$9:N$229,Nutrients!$EE$8:$EE$228)/907))^3-0.00000023623322*((SUMPRODUCT(N$9:N$229,Nutrients!$EE$8:$EE$228)/907))^2+0.00029262722672*((SUMPRODUCT(N$9:N$229,Nutrients!$EE$8:$EE$228)/907))+0.007028328))","v":0.20173798071836466},null,{"$f":"IF((SUMPRODUCT(P$9:P$229,Nutrients!$EE$8:$EE$228))=0,P256,IF((SUMPRODUCT(P$9:P$229,Nutrients!$EE$8:$EE$228))>(1500*907),P256+0.14,P256+0.00000000006666*((SUMPRODUCT(P$9:P$229,Nutrients!$EE$8:$EE$228)/907))^3-0.00000023623322*((SUMPRODUCT(P$9:P$229,Nutrients!$EE$8:$EE$228)/907))^2+0.00029262722672*((SUMPRODUCT(P$9:P$229,Nutrients!$EE$8:$EE$228)/907))+0.007028328))","v":0.30151424487346279},{"$f":"IF((SUMPRODUCT(Q$9:Q$229,Nutrients!$EE$8:$EE$228))=0,Q256,IF((SUMPRODUCT(Q$9:Q$229,Nutrients!$EE$8:$EE$228))>(1500*907),Q256+0.14,Q256+0.00000000006666*((SUMPRODUCT(Q$9:Q$229,Nutrients!$EE$8:$EE$228)/907))^3-0.00000023623322*((SUMPRODUCT(Q$9:Q$229,Nutrients!$EE$8:$EE$228)/907))^2+0.00029262722672*((SUMPRODUCT(Q$9:Q$229,Nutrients!$EE$8:$EE$228)/907))+0.007028328))","v":0.26318002800887763},{"$f":"IF((SUMPRODUCT(R$9:R$229,Nutrients!$EE$8:$EE$228))=0,R256,IF((SUMPRODUCT(R$9:R$229,Nutrients!$EE$8:$EE$228))>(1500*907),R256+0.14,R256+0.00000000006666*((SUMPRODUCT(R$9:R$229,Nutrients!$EE$8:$EE$228)/907))^3-0.00000023623322*((SUMPRODUCT(R$9:R$229,Nutrients!$EE$8:$EE$228)/907))^2+0.00029262722672*((SUMPRODUCT(R$9:R$229,Nutrients!$EE$8:$EE$228)/907))+0.007028328))","v":0.22251294858657181},{"$f":"IF((SUMPRODUCT(S$9:S$229,Nutrients!$EE$8:$EE$228))=0,S256,IF((SUMPRODUCT(S$9:S$229,Nutrients!$EE$8:$EE$228))>(1500*907),S256+0.14,S256+0.00000000006666*((SUMPRODUCT(S$9:S$229,Nutrients!$EE$8:$EE$228)/907))^3-0.00000023623322*((SUMPRODUCT(S$9:S$229,Nutrients!$EE$8:$EE$228)/907))^2+0.00029262722672*((SUMPRODUCT(S$9:S$229,Nutrients!$EE$8:$EE$228)/907))+0.007028328))","v":0.19466624162896026},{"$f":"IF((SUMPRODUCT(T$9:T$229,Nutrients!$EE$8:$EE$228))=0,T256,IF((SUMPRODUCT(T$9:T$229,Nutrients!$EE$8:$EE$228))>(1500*907),T256+0.14,T256+0.00000000006666*((SUMPRODUCT(T$9:T$229,Nutrients!$EE$8:$EE$228)/907))^3-0.00000023623322*((SUMPRODUCT(T$9:T$229,Nutrients!$EE$8:$EE$228)/907))^2+0.00029262722672*((SUMPRODUCT(T$9:T$229,Nutrients!$EE$8:$EE$228)/907))+0.007028328))","v":0.17514106542757168},{"$f":"IF((SUMPRODUCT(U$9:U$229,Nutrients!$EE$8:$EE$228))=0,U256,IF((SUMPRODUCT(U$9:U$229,Nutrients!$EE$8:$EE$228))>(1500*907),U256+0.14,U256+0.00000000006666*((SUMPRODUCT(U$9:U$229,Nutrients!$EE$8:$EE$228)/907))^3-0.00000023623322*((SUMPRODUCT(U$9:U$229,Nutrients!$EE$8:$EE$228)/907))^2+0.00029262722672*((SUMPRODUCT(U$9:U$229,Nutrients!$EE$8:$EE$228)/907))+0.007028328))","v":0.20173798071836466},null,{"$f":"IF((SUMPRODUCT(W$9:W$229,Nutrients!$EE$8:$EE$228))=0,W256,IF((SUMPRODUCT(W$9:W$229,Nutrients!$EE$8:$EE$228))>(1500*907),W256+0.14,W256+0.00000000006666*((SUMPRODUCT(W$9:W$229,Nutrients!$EE$8:$EE$228)/907))^3-0.00000023623322*((SUMPRODUCT(W$9:W$229,Nutrients!$EE$8:$EE$228)/907))^2+0.00029262722672*((SUMPRODUCT(W$9:W$229,Nutrients!$EE$8:$EE$228)/907))+0.007028328))","v":0.28279057974995703},{"$f":"IF((SUMPRODUCT(X$9:X$229,Nutrients!$EE$8:$EE$228))=0,X256,IF((SUMPRODUCT(X$9:X$229,Nutrients!$EE$8:$EE$228))>(1500*907),X256+0.14,X256+0.00000000006666*((SUMPRODUCT(X$9:X$229,Nutrients!$EE$8:$EE$228)/907))^3-0.00000023623322*((SUMPRODUCT(X$9:X$229,Nutrients!$EE$8:$EE$228)/907))^2+0.00029262722672*((SUMPRODUCT(X$9:X$229,Nutrients!$EE$8:$EE$228)/907))+0.007028328))","v":0.24445465786617662},{"$f":"IF((SUMPRODUCT(Y$9:Y$229,Nutrients!$EE$8:$EE$228))=0,Y256,IF((SUMPRODUCT(Y$9:Y$229,Nutrients!$EE$8:$EE$228))>(1500*907),Y256+0.14,Y256+0.00000000006666*((SUMPRODUCT(Y$9:Y$229,Nutrients!$EE$8:$EE$228)/907))^3-0.00000023623322*((SUMPRODUCT(Y$9:Y$229,Nutrients!$EE$8:$EE$228)/907))^2+0.00029262722672*((SUMPRODUCT(Y$9:Y$229,Nutrients!$EE$8:$EE$228)/907))+0.007028328))","v":0.20378787536394452},{"$f":"IF((SUMPRODUCT(Z$9:Z$229,Nutrients!$EE$8:$EE$228))=0,Z256,IF((SUMPRODUCT(Z$9:Z$229,Nutrients!$EE$8:$EE$228))>(1500*907),Z256+0.14,Z256+0.00000000006666*((SUMPRODUCT(Z$9:Z$229,Nutrients!$EE$8:$EE$228)/907))^3-0.00000023623322*((SUMPRODUCT(Z$9:Z$229,Nutrients!$EE$8:$EE$228)/907))^2+0.00029262722672*((SUMPRODUCT(Z$9:Z$229,Nutrients!$EE$8:$EE$228)/907))+0.007028328))","v":0.1759392467441098},{"$f":"IF((SUMPRODUCT(AA$9:AA$229,Nutrients!$EE$8:$EE$228))=0,AA256,IF((SUMPRODUCT(AA$9:AA$229,Nutrients!$EE$8:$EE$228))>(1500*907),AA256+0.14,AA256+0.00000000006666*((SUMPRODUCT(AA$9:AA$229,Nutrients!$EE$8:$EE$228)/907))^3-0.00000023623322*((SUMPRODUCT(AA$9:AA$229,Nutrients!$EE$8:$EE$228)/907))^2+0.00029262722672*((SUMPRODUCT(AA$9:AA$229,Nutrients!$EE$8:$EE$228)/907))+0.007028328))","v":0.15641214449048604},{"$f":"IF((SUMPRODUCT(AB$9:AB$229,Nutrients!$EE$8:$EE$228))=0,AB256,IF((SUMPRODUCT(AB$9:AB$229,Nutrients!$EE$8:$EE$228))>(1500*907),AB256+0.14,AB256+0.00000000006666*((SUMPRODUCT(AB$9:AB$229,Nutrients!$EE$8:$EE$228)/907))^3-0.00000023623322*((SUMPRODUCT(AB$9:AB$229,Nutrients!$EE$8:$EE$228)/907))^2+0.00029262722672*((SUMPRODUCT(AB$9:AB$229,Nutrients!$EE$8:$EE$228)/907))+0.007028328))","v":0.20173798071836466},null,{"$f":"IF((SUMPRODUCT(AD$9:AD$229,Nutrients!$EE$8:$EE$228))=0,AD256,IF((SUMPRODUCT(AD$9:AD$229,Nutrients!$EE$8:$EE$228))>(1500*907),AD256+0.14,AD256+0.00000000006666*((SUMPRODUCT(AD$9:AD$229,Nutrients!$EE$8:$EE$228)/907))^3-0.00000023623322*((SUMPRODUCT(AD$9:AD$229,Nutrients!$EE$8:$EE$228)/907))^2+0.00029262722672*((SUMPRODUCT(AD$9:AD$229,Nutrients!$EE$8:$EE$228)/907))+0.007028328))","v":0.26406529294362879},{"$f":"IF((SUMPRODUCT(AE$9:AE$229,Nutrients!$EE$8:$EE$228))=0,AE256,IF((SUMPRODUCT(AE$9:AE$229,Nutrients!$EE$8:$EE$228))>(1500*907),AE256+0.14,AE256+0.00000000006666*((SUMPRODUCT(AE$9:AE$229,Nutrients!$EE$8:$EE$228)/907))^3-0.00000023623322*((SUMPRODUCT(AE$9:AE$229,Nutrients!$EE$8:$EE$228)/907))^2+0.00029262722672*((SUMPRODUCT(AE$9:AE$229,Nutrients!$EE$8:$EE$228)/907))+0.007028328))","v":0.22573004656967025},{"$f":"IF((SUMPRODUCT(AF$9:AF$229,Nutrients!$EE$8:$EE$228))=0,AF256,IF((SUMPRODUCT(AF$9:AF$229,Nutrients!$EE$8:$EE$228))>(1500*907),AF256+0.14,AF256+0.00000000006666*((SUMPRODUCT(AF$9:AF$229,Nutrients!$EE$8:$EE$228)/907))^3-0.00000023623322*((SUMPRODUCT(AF$9:AF$229,Nutrients!$EE$8:$EE$228)/907))^2+0.00029262722672*((SUMPRODUCT(AF$9:AF$229,Nutrients!$EE$8:$EE$228)/907))+0.007028328))","v":0.18506090400766739},{"$f":"IF((SUMPRODUCT(AG$9:AG$229,Nutrients!$EE$8:$EE$228))=0,AG256,IF((SUMPRODUCT(AG$9:AG$229,Nutrients!$EE$8:$EE$228))>(1500*907),AG256+0.14,AG256+0.00000000006666*((SUMPRODUCT(AG$9:AG$229,Nutrients!$EE$8:$EE$228)/907))^3-0.00000023623322*((SUMPRODUCT(AG$9:AG$229,Nutrients!$EE$8:$EE$228)/907))^2+0.00029262722672*((SUMPRODUCT(AG$9:AG$229,Nutrients!$EE$8:$EE$228)/907))+0.007028328))","v":0.15721129045703028},{"$f":"IF((SUMPRODUCT(AH$9:AH$229,Nutrients!$EE$8:$EE$228))=0,AH256,IF((SUMPRODUCT(AH$9:AH$229,Nutrients!$EE$8:$EE$228))>(1500*907),AH256+0.14,AH256+0.00000000006666*((SUMPRODUCT(AH$9:AH$229,Nutrients!$EE$8:$EE$228)/907))^3-0.00000023623322*((SUMPRODUCT(AH$9:AH$229,Nutrients!$EE$8:$EE$228)/907))^2+0.00029262722672*((SUMPRODUCT(AH$9:AH$229,Nutrients!$EE$8:$EE$228)/907))+0.007028328))","v":0.15001447377316243},{"$f":"IF((SUMPRODUCT(AI$9:AI$229,Nutrients!$EE$8:$EE$228))=0,AI256,IF((SUMPRODUCT(AI$9:AI$229,Nutrients!$EE$8:$EE$228))>(1500*907),AI256+0.14,AI256+0.00000000006666*((SUMPRODUCT(AI$9:AI$229,Nutrients!$EE$8:$EE$228)/907))^3-0.00000023623322*((SUMPRODUCT(AI$9:AI$229,Nutrients!$EE$8:$EE$228)/907))^2+0.00029262722672*((SUMPRODUCT(AI$9:AI$229,Nutrients!$EE$8:$EE$228)/907))+0.007028328))","v":0.20173798071836466},null,{"$f":"IF((SUMPRODUCT(AK$9:AK$229,Nutrients!$EE$8:$EE$228))=0,AK256,IF((SUMPRODUCT(AK$9:AK$229,Nutrients!$EE$8:$EE$228))>(1500*907),AK256+0.14,AK256+0.00000000006666*((SUMPRODUCT(AK$9:AK$229,Nutrients!$EE$8:$EE$228)/907))^3-0.00000023623322*((SUMPRODUCT(AK$9:AK$229,Nutrients!$EE$8:$EE$228)/907))^2+0.00029262722672*((SUMPRODUCT(AK$9:AK$229,Nutrients!$EE$8:$EE$228)/907))+0.007028328))","v":0.24641384649546402},{"$f":"IF((SUMPRODUCT(AL$9:AL$229,Nutrients!$EE$8:$EE$228))=0,AL256,IF((SUMPRODUCT(AL$9:AL$229,Nutrients!$EE$8:$EE$228))>(1500*907),AL256+0.14,AL256+0.00000000006666*((SUMPRODUCT(AL$9:AL$229,Nutrients!$EE$8:$EE$228)/907))^3-0.00000023623322*((SUMPRODUCT(AL$9:AL$229,Nutrients!$EE$8:$EE$228)/907))^2+0.00029262722672*((SUMPRODUCT(AL$9:AL$229,Nutrients!$EE$8:$EE$228)/907))+0.007028328))","v":0.20807805527154008},{"$f":"IF((SUMPRODUCT(AM$9:AM$229,Nutrients!$EE$8:$EE$228))=0,AM256,IF((SUMPRODUCT(AM$9:AM$229,Nutrients!$EE$8:$EE$228))>(1500*907),AM256+0.14,AM256+0.00000000006666*((SUMPRODUCT(AM$9:AM$229,Nutrients!$EE$8:$EE$228)/907))^3-0.00000023623322*((SUMPRODUCT(AM$9:AM$229,Nutrients!$EE$8:$EE$228)/907))^2+0.00029262722672*((SUMPRODUCT(AM$9:AM$229,Nutrients!$EE$8:$EE$228)/907))+0.007028328))","v":0.16740971017463843},{"$f":"IF((SUMPRODUCT(AN$9:AN$229,Nutrients!$EE$8:$EE$228))=0,AN256,IF((SUMPRODUCT(AN$9:AN$229,Nutrients!$EE$8:$EE$228))>(1500*907),AN256+0.14,AN256+0.00000000006666*((SUMPRODUCT(AN$9:AN$229,Nutrients!$EE$8:$EE$228)/907))^3-0.00000023623322*((SUMPRODUCT(AN$9:AN$229,Nutrients!$EE$8:$EE$228)/907))^2+0.00029262722672*((SUMPRODUCT(AN$9:AN$229,Nutrients!$EE$8:$EE$228)/907))+0.007028328))","v":0.14989051466189349},{"$f":"IF((SUMPRODUCT(AO$9:AO$229,Nutrients!$EE$8:$EE$228))=0,AO256,IF((SUMPRODUCT(AO$9:AO$229,Nutrients!$EE$8:$EE$228))>(1500*907),AO256+0.14,AO256+0.00000000006666*((SUMPRODUCT(AO$9:AO$229,Nutrients!$EE$8:$EE$228)/907))^3-0.00000023623322*((SUMPRODUCT(AO$9:AO$229,Nutrients!$EE$8:$EE$228)/907))^2+0.00029262722672*((SUMPRODUCT(AO$9:AO$229,Nutrients!$EE$8:$EE$228)/907))+0.007028328))","v":0.14629454581354515},{"$f":"IF((SUMPRODUCT(AP$9:AP$229,Nutrients!$EE$8:$EE$228))=0,AP256,IF((SUMPRODUCT(AP$9:AP$229,Nutrients!$EE$8:$EE$228))>(1500*907),AP256+0.14,AP256+0.00000000006666*((SUMPRODUCT(AP$9:AP$229,Nutrients!$EE$8:$EE$228)/907))^3-0.00000023623322*((SUMPRODUCT(AP$9:AP$229,Nutrients!$EE$8:$EE$228)/907))^2+0.00029262722672*((SUMPRODUCT(AP$9:AP$229,Nutrients!$EE$8:$EE$228)/907))+0.007028328))","v":0.20173798071836466},null,{"$f":"IF((SUMPRODUCT(AR$9:AR$229,Nutrients!$EE$8:$EE$228))=0,AR256,IF((SUMPRODUCT(AR$9:AR$229,Nutrients!$EE$8:$EE$228))>(1500*907),AR256+0.14,AR256+0.00000000006666*((SUMPRODUCT(AR$9:AR$229,Nutrients!$EE$8:$EE$228)/907))^3-0.00000023623322*((SUMPRODUCT(AR$9:AR$229,Nutrients!$EE$8:$EE$228)/907))^2+0.00029262722672*((SUMPRODUCT(AR$9:AR$229,Nutrients!$EE$8:$EE$228)/907))+0.007028328))","v":0.22876025012513676},{"$f":"IF((SUMPRODUCT(AS$9:AS$229,Nutrients!$EE$8:$EE$228))=0,AS256,IF((SUMPRODUCT(AS$9:AS$229,Nutrients!$EE$8:$EE$228))>(1500*907),AS256+0.14,AS256+0.00000000006666*((SUMPRODUCT(AS$9:AS$229,Nutrients!$EE$8:$EE$228)/907))^3-0.00000023623322*((SUMPRODUCT(AS$9:AS$229,Nutrients!$EE$8:$EE$228)/907))^2+0.00029262722672*((SUMPRODUCT(AS$9:AS$229,Nutrients!$EE$8:$EE$228)/907))+0.007028328))","v":0.19042574164442375},{"$f":"IF((SUMPRODUCT(AT$9:AT$229,Nutrients!$EE$8:$EE$228))=0,AT256,IF((SUMPRODUCT(AT$9:AT$229,Nutrients!$EE$8:$EE$228))>(1500*907),AT256+0.14,AT256+0.00000000006666*((SUMPRODUCT(AT$9:AT$229,Nutrients!$EE$8:$EE$228)/907))^3-0.00000023623322*((SUMPRODUCT(AT$9:AT$229,Nutrients!$EE$8:$EE$228)/907))^2+0.00029262722672*((SUMPRODUCT(AT$9:AT$229,Nutrients!$EE$8:$EE$228)/907))+0.007028328))","v":0.15042320195210154},{"$f":"IF((SUMPRODUCT(AU$9:AU$229,Nutrients!$EE$8:$EE$228))=0,AU256,IF((SUMPRODUCT(AU$9:AU$229,Nutrients!$EE$8:$EE$228))>(1500*907),AU256+0.14,AU256+0.00000000006666*((SUMPRODUCT(AU$9:AU$229,Nutrients!$EE$8:$EE$228)/907))^3-0.00000023623322*((SUMPRODUCT(AU$9:AU$229,Nutrients!$EE$8:$EE$228)/907))^2+0.00029262722672*((SUMPRODUCT(AU$9:AU$229,Nutrients!$EE$8:$EE$228)/907))+0.007028328))","v":0.14617063700053254},{"$f":"IF((SUMPRODUCT(AV$9:AV$229,Nutrients!$EE$8:$EE$228))=0,AV256,IF((SUMPRODUCT(AV$9:AV$229,Nutrients!$EE$8:$EE$228))>(1500*907),AV256+0.14,AV256+0.00000000006666*((SUMPRODUCT(AV$9:AV$229,Nutrients!$EE$8:$EE$228)/907))^3-0.00000023623322*((SUMPRODUCT(AV$9:AV$229,Nutrients!$EE$8:$EE$228)/907))^2+0.00029262722672*((SUMPRODUCT(AV$9:AV$229,Nutrients!$EE$8:$EE$228)/907))+0.007028328))","v":0.14257461166791943},{"$f":"IF((SUMPRODUCT(AW$9:AW$229,Nutrients!$EE$8:$EE$228))=0,AW256,IF((SUMPRODUCT(AW$9:AW$229,Nutrients!$EE$8:$EE$228))>(1500*907),AW256+0.14,AW256+0.00000000006666*((SUMPRODUCT(AW$9:AW$229,Nutrients!$EE$8:$EE$228)/907))^3-0.00000023623322*((SUMPRODUCT(AW$9:AW$229,Nutrients!$EE$8:$EE$228)/907))^2+0.00029262722672*((SUMPRODUCT(AW$9:AW$229,Nutrients!$EE$8:$EE$228)/907))+0.007028328))","v":0.20173798071836466}]
["Avail P:calorie ratio g/mcal",{"$f":"IF(B$5=\"\",\"\",(B257)/(B246*2.2046)*10000)","v":1.0228158443854305},0.90093891102253687,0.7799032683037318,0.69195878210567852,0.63170249608403195,0.60499551704383758,null,{"$f":"IF(I$5=\"\",\"\",(I257)/(I246*2.2046)*10000)","v":0.95975889075891618},0.84195360292807131,0.71810817514105796,0.63308370169592443,0.57350998716535484,0.60499551704383758,null,{"$f":"IF(P$5=\"\",\"\",(P257)/(P246*2.2046)*10000)","v":0.89854949471415535},0.7819642253023521,0.65934720144006032,0.57525857971960315,0.51635473379042773,0.60499551704383758,null,{"$f":"IF(W$5=\"\",\"\",(W257)/(W246*2.2046)*10000)","v":0.83519723622084663},0.71979988701895059,0.59846462078087659,0.51525562785106505,0.45700335333332465,0.60499551704383758,null,{"$f":"IF(AD$5=\"\",\"\",(AD257)/(AD246*2.2046)*10000)","v":0.77293251447489708},0.65876807749348654,0.53862579472349725,0.45632131818111438,0.4344972092467963,0.60499551704383758,null,{"$f":"IF(AK$5=\"\",\"\",(AK257)/(AK246*2.2046)*10000)","v":0.7149191986555774},0.60191661725255041,0.48299769802255271,0.43132847380512235,0.42006359493402451,0.60499551704383758,null,{"$f":"IF(AR$5=\"\",\"\",(AR257)/(AR246*2.2046)*10000)","v":0.65784510627422133},0.54606281266733825,0.43021654593496106,0.417021350002025,0.40587704110417833,0.60499551704383758]
["Stand. Dig. P w/out phytase, %",{"$f":"((SUMPRODUCT(B$9:B$229,Nutrients!$DR$8:$DR$228)+(IF($A$7=Nutrients!$B$8,Nutrients!$DR$8,Nutrients!$DR$9)*B$7)+(((IF($A$8=Nutrients!$B$79,Nutrients!$DR$79,(IF($A$8=Nutrients!$B$77,Nutrients!$DR$77,Nutrients!$DR$78)))))*B$8))/2000)","v":0.29000063647666452},{"$f":"((SUMPRODUCT(C$9:C$229,Nutrients!$DR$8:$DR$228)+(IF($A$7=Nutrients!$B$8,Nutrients!$DR$8,Nutrients!$DR$9)*C$7)+(((IF($A$8=Nutrients!$B$79,Nutrients!$DR$79,(IF($A$8=Nutrients!$B$77,Nutrients!$DR$77,Nutrients!$DR$78)))))*C$8))/2000)","v":0.24988069387487893},{"$f":"((SUMPRODUCT(D$9:D$229,Nutrients!$DR$8:$DR$228)+(IF($A$7=Nutrients!$B$8,Nutrients!$DR$8,Nutrients!$DR$9)*D$7)+(((IF($A$8=Nutrients!$B$79,Nutrients!$DR$79,(IF($A$8=Nutrients!$B$77,Nutrients!$DR$77,Nutrients!$DR$78)))))*D$8))/2000)","v":0.21060453785177027},{"$f":"((SUMPRODUCT(E$9:E$229,Nutrients!$DR$8:$DR$228)+(IF($A$7=Nutrients!$B$8,Nutrients!$DR$8,Nutrients!$DR$9)*E$7)+(((IF($A$8=Nutrients!$B$79,Nutrients!$DR$79,(IF($A$8=Nutrients!$B$77,Nutrients!$DR$77,Nutrients!$DR$78)))))*E$8))/2000)","v":0.18085065848336068},{"$f":"((SUMPRODUCT(F$9:F$229,Nutrients!$DR$8:$DR$228)+(IF($A$7=Nutrients!$B$8,Nutrients!$DR$8,Nutrients!$DR$9)*F$7)+(((IF($A$8=Nutrients!$B$79,Nutrients!$DR$79,(IF($A$8=Nutrients!$B$77,Nutrients!$DR$77,Nutrients!$DR$78)))))*F$8))/2000)","v":0.15971179439767599},{"$f":"((SUMPRODUCT(G$9:G$229,Nutrients!$DR$8:$DR$228)+(IF($A$7=Nutrients!$B$8,Nutrients!$DR$8,Nutrients!$DR$9)*G$7)+(((IF($A$8=Nutrients!$B$79,Nutrients!$DR$79,(IF($A$8=Nutrients!$B$77,Nutrients!$DR$77,Nutrients!$DR$78)))))*G$8))/2000)","v":0.14985099986346795},null,{"$f":"((SUMPRODUCT(I$9:I$229,Nutrients!$DR$8:$DR$228)+(IF($A$7=Nutrients!$B$8,Nutrients!$DR$8,Nutrients!$DR$9)*I$7)+(((IF($A$8=Nutrients!$B$79,Nutrients!$DR$79,(IF($A$8=Nutrients!$B$77,Nutrients!$DR$77,Nutrients!$DR$78)))))*I$8))/2000)","v":0.29014809232506827},{"$f":"((SUMPRODUCT(J$9:J$229,Nutrients!$DR$8:$DR$228)+(IF($A$7=Nutrients!$B$8,Nutrients!$DR$8,Nutrients!$DR$9)*J$7)+(((IF($A$8=Nutrients!$B$79,Nutrients!$DR$79,(IF($A$8=Nutrients!$B$77,Nutrients!$DR$77,Nutrients!$DR$78)))))*J$8))/2000)","v":0.25085687289487002},{"$f":"((SUMPRODUCT(K$9:K$229,Nutrients!$DR$8:$DR$228)+(IF($A$7=Nutrients!$B$8,Nutrients!$DR$8,Nutrients!$DR$9)*K$7)+(((IF($A$8=Nutrients!$B$79,Nutrients!$DR$79,(IF($A$8=Nutrients!$B$77,Nutrients!$DR$77,Nutrients!$DR$78)))))*K$8))/2000)","v":0.21039974278228327},{"$f":"((SUMPRODUCT(L$9:L$229,Nutrients!$DR$8:$DR$228)+(IF($A$7=Nutrients!$B$8,Nutrients!$DR$8,Nutrients!$DR$9)*L$7)+(((IF($A$8=Nutrients!$B$79,Nutrients!$DR$79,(IF($A$8=Nutrients!$B$77,Nutrients!$DR$77,Nutrients!$DR$78)))))*L$8))/2000)","v":0.18122534893259912},{"$f":"((SUMPRODUCT(M$9:M$229,Nutrients!$DR$8:$DR$228)+(IF($A$7=Nutrients!$B$8,Nutrients!$DR$8,Nutrients!$DR$9)*M$7)+(((IF($A$8=Nutrients!$B$79,Nutrients!$DR$79,(IF($A$8=Nutrients!$B$77,Nutrients!$DR$77,Nutrients!$DR$78)))))*M$8))/2000)","v":0.16008645981230762},{"$f":"((SUMPRODUCT(N$9:N$229,Nutrients!$DR$8:$DR$228)+(IF($A$7=Nutrients!$B$8,Nutrients!$DR$8,Nutrients!$DR$9)*N$7)+(((IF($A$8=Nutrients!$B$79,Nutrients!$DR$79,(IF($A$8=Nutrients!$B$77,Nutrients!$DR$77,Nutrients!$DR$78)))))*N$8))/2000)","v":0.14985099986346795},null,{"$f":"((SUMPRODUCT(P$9:P$229,Nutrients!$DR$8:$DR$228)+(IF($A$7=Nutrients!$B$8,Nutrients!$DR$8,Nutrients!$DR$9)*P$7)+(((IF($A$8=Nutrients!$B$79,Nutrients!$DR$79,(IF($A$8=Nutrients!$B$77,Nutrients!$DR$77,Nutrients!$DR$78)))))*P$8))/2000)","v":0.2905257833114176},{"$f":"((SUMPRODUCT(Q$9:Q$229,Nutrients!$DR$8:$DR$228)+(IF($A$7=Nutrients!$B$8,Nutrients!$DR$8,Nutrients!$DR$9)*Q$7)+(((IF($A$8=Nutrients!$B$79,Nutrients!$DR$79,(IF($A$8=Nutrients!$B$77,Nutrients!$DR$77,Nutrients!$DR$78)))))*Q$8))/2000)","v":0.25123183005655536},{"$f":"((SUMPRODUCT(R$9:R$229,Nutrients!$DR$8:$DR$228)+(IF($A$7=Nutrients!$B$8,Nutrients!$DR$8,Nutrients!$DR$9)*R$7)+(((IF($A$8=Nutrients!$B$79,Nutrients!$DR$79,(IF($A$8=Nutrients!$B$77,Nutrients!$DR$77,Nutrients!$DR$78)))))*R$8))/2000)","v":0.21077188856544557},{"$f":"((SUMPRODUCT(S$9:S$229,Nutrients!$DR$8:$DR$228)+(IF($A$7=Nutrients!$B$8,Nutrients!$DR$8,Nutrients!$DR$9)*S$7)+(((IF($A$8=Nutrients!$B$79,Nutrients!$DR$79,(IF($A$8=Nutrients!$B$77,Nutrients!$DR$77,Nutrients!$DR$78)))))*S$8))/2000)","v":0.18159827429370368},{"$f":"((SUMPRODUCT(T$9:T$229,Nutrients!$DR$8:$DR$228)+(IF($A$7=Nutrients!$B$8,Nutrients!$DR$8,Nutrients!$DR$9)*T$7)+(((IF($A$8=Nutrients!$B$79,Nutrients!$DR$79,(IF($A$8=Nutrients!$B$77,Nutrients!$DR$77,Nutrients!$DR$78)))))*T$8))/2000)","v":0.16046115395472282},{"$f":"((SUMPRODUCT(U$9:U$229,Nutrients!$DR$8:$DR$228)+(IF($A$7=Nutrients!$B$8,Nutrients!$DR$8,Nutrients!$DR$9)*U$7)+(((IF($A$8=Nutrients!$B$79,Nutrients!$DR$79,(IF($A$8=Nutrients!$B$77,Nutrients!$DR$77,Nutrients!$DR$78)))))*U$8))/2000)","v":0.14985099986346795},null,{"$f":"((SUMPRODUCT(W$9:W$229,Nutrients!$DR$8:$DR$228)+(IF($A$7=Nutrients!$B$8,Nutrients!$DR$8,Nutrients!$DR$9)*W$7)+(((IF($A$8=Nutrients!$B$79,Nutrients!$DR$79,(IF($A$8=Nutrients!$B$77,Nutrients!$DR$77,Nutrients!$DR$78)))))*W$8))/2000)","v":0.28995668178300393},{"$f":"((SUMPRODUCT(X$9:X$229,Nutrients!$DR$8:$DR$228)+(IF($A$7=Nutrients!$B$8,Nutrients!$DR$8,Nutrients!$DR$9)*X$7)+(((IF($A$8=Nutrients!$B$79,Nutrients!$DR$79,(IF($A$8=Nutrients!$B$77,Nutrients!$DR$77,Nutrients!$DR$78)))))*X$8))/2000)","v":0.25065831986281895},{"$f":"((SUMPRODUCT(Y$9:Y$229,Nutrients!$DR$8:$DR$228)+(IF($A$7=Nutrients!$B$8,Nutrients!$DR$8,Nutrients!$DR$9)*Y$7)+(((IF($A$8=Nutrients!$B$79,Nutrients!$DR$79,(IF($A$8=Nutrients!$B$77,Nutrients!$DR$77,Nutrients!$DR$78)))))*Y$8))/2000)","v":0.21019914611745427},{"$f":"((SUMPRODUCT(Z$9:Z$229,Nutrients!$DR$8:$DR$228)+(IF($A$7=Nutrients!$B$8,Nutrients!$DR$8,Nutrients!$DR$9)*Z$7)+(((IF($A$8=Nutrients!$B$79,Nutrients!$DR$79,(IF($A$8=Nutrients!$B$77,Nutrients!$DR$77,Nutrients!$DR$78)))))*Z$8))/2000)","v":0.18102056300686942},{"$f":"((SUMPRODUCT(AA$9:AA$229,Nutrients!$DR$8:$DR$228)+(IF($A$7=Nutrients!$B$8,Nutrients!$DR$8,Nutrients!$DR$9)*AA$7)+(((IF($A$8=Nutrients!$B$79,Nutrients!$DR$79,(IF($A$8=Nutrients!$B$77,Nutrients!$DR$77,Nutrients!$DR$78)))))*AA$8))/2000)","v":0.15987846247779869},{"$f":"((SUMPRODUCT(AB$9:AB$229,Nutrients!$DR$8:$DR$228)+(IF($A$7=Nutrients!$B$8,Nutrients!$DR$8,Nutrients!$DR$9)*AB$7)+(((IF($A$8=Nutrients!$B$79,Nutrients!$DR$79,(IF($A$8=Nutrients!$B$77,Nutrients!$DR$77,Nutrients!$DR$78)))))*AB$8))/2000)","v":0.14985099986346795},null,{"$f":"((SUMPRODUCT(AD$9:AD$229,Nutrients!$DR$8:$DR$228)+(IF($A$7=Nutrients!$B$8,Nutrients!$DR$8,Nutrients!$DR$9)*AD$7)+(((IF($A$8=Nutrients!$B$79,Nutrients!$DR$79,(IF($A$8=Nutrients!$B$77,Nutrients!$DR$77,Nutrients!$DR$78)))))*AD$8))/2000)","v":0.28938338707198907},{"$f":"((SUMPRODUCT(AE$9:AE$229,Nutrients!$DR$8:$DR$228)+(IF($A$7=Nutrients!$B$8,Nutrients!$DR$8,Nutrients!$DR$9)*AE$7)+(((IF($A$8=Nutrients!$B$79,Nutrients!$DR$79,(IF($A$8=Nutrients!$B$77,Nutrients!$DR$77,Nutrients!$DR$78)))))*AE$8))/2000)","v":0.25008677181643718},{"$f":"((SUMPRODUCT(AF$9:AF$229,Nutrients!$DR$8:$DR$228)+(IF($A$7=Nutrients!$B$8,Nutrients!$DR$8,Nutrients!$DR$9)*AF$7)+(((IF($A$8=Nutrients!$B$79,Nutrients!$DR$79,(IF($A$8=Nutrients!$B$77,Nutrients!$DR$77,Nutrients!$DR$78)))))*AF$8))/2000)","v":0.20962149566841329},{"$f":"((SUMPRODUCT(AG$9:AG$229,Nutrients!$DR$8:$DR$228)+(IF($A$7=Nutrients!$B$8,Nutrients!$DR$8,Nutrients!$DR$9)*AG$7)+(((IF($A$8=Nutrients!$B$79,Nutrients!$DR$79,(IF($A$8=Nutrients!$B$77,Nutrients!$DR$77,Nutrients!$DR$78)))))*AG$8))/2000)","v":0.18044036582387613},{"$f":"((SUMPRODUCT(AH$9:AH$229,Nutrients!$DR$8:$DR$228)+(IF($A$7=Nutrients!$B$8,Nutrients!$DR$8,Nutrients!$DR$9)*AH$7)+(((IF($A$8=Nutrients!$B$79,Nutrients!$DR$79,(IF($A$8=Nutrients!$B$77,Nutrients!$DR$77,Nutrients!$DR$78)))))*AH$8))/2000)","v":0.17012944236266575},{"$f":"((SUMPRODUCT(AI$9:AI$229,Nutrients!$DR$8:$DR$228)+(IF($A$7=Nutrients!$B$8,Nutrients!$DR$8,Nutrients!$DR$9)*AI$7)+(((IF($A$8=Nutrients!$B$79,Nutrients!$DR$79,(IF($A$8=Nutrients!$B$77,Nutrients!$DR$77,Nutrients!$DR$78)))))*AI$8))/2000)","v":0.14985099986346795},null,{"$f":"((SUMPRODUCT(AK$9:AK$229,Nutrients!$DR$8:$DR$228)+(IF($A$7=Nutrients!$B$8,Nutrients!$DR$8,Nutrients!$DR$9)*AK$7)+(((IF($A$8=Nutrients!$B$79,Nutrients!$DR$79,(IF($A$8=Nutrients!$B$77,Nutrients!$DR$77,Nutrients!$DR$78)))))*AK$8))/2000)","v":0.28975631887698911},{"$f":"((SUMPRODUCT(AL$9:AL$229,Nutrients!$DR$8:$DR$228)+(IF($A$7=Nutrients!$B$8,Nutrients!$DR$8,Nutrients!$DR$9)*AL$7)+(((IF($A$8=Nutrients!$B$79,Nutrients!$DR$79,(IF($A$8=Nutrients!$B$77,Nutrients!$DR$77,Nutrients!$DR$78)))))*AL$8))/2000)","v":0.25045829480377951},{"$f":"((SUMPRODUCT(AM$9:AM$229,Nutrients!$DR$8:$DR$228)+(IF($A$7=Nutrients!$B$8,Nutrients!$DR$8,Nutrients!$DR$9)*AM$7)+(((IF($A$8=Nutrients!$B$79,Nutrients!$DR$79,(IF($A$8=Nutrients!$B$77,Nutrients!$DR$77,Nutrients!$DR$78)))))*AM$8))/2000)","v":0.20999508065995354},{"$f":"((SUMPRODUCT(AN$9:AN$229,Nutrients!$DR$8:$DR$228)+(IF($A$7=Nutrients!$B$8,Nutrients!$DR$8,Nutrients!$DR$9)*AN$7)+(((IF($A$8=Nutrients!$B$79,Nutrients!$DR$79,(IF($A$8=Nutrients!$B$77,Nutrients!$DR$77,Nutrients!$DR$78)))))*AN$8))/2000)","v":0.18988432468136096},{"$f":"((SUMPRODUCT(AO$9:AO$229,Nutrients!$DR$8:$DR$228)+(IF($A$7=Nutrients!$B$8,Nutrients!$DR$8,Nutrients!$DR$9)*AO$7)+(((IF($A$8=Nutrients!$B$79,Nutrients!$DR$79,(IF($A$8=Nutrients!$B$77,Nutrients!$DR$77,Nutrients!$DR$78)))))*AO$8))/2000)","v":0.18272986909517275},{"$f":"((SUMPRODUCT(AP$9:AP$229,Nutrients!$DR$8:$DR$228)+(IF($A$7=Nutrients!$B$8,Nutrients!$DR$8,Nutrients!$DR$9)*AP$7)+(((IF($A$8=Nutrients!$B$79,Nutrients!$DR$79,(IF($A$8=Nutrients!$B$77,Nutrients!$DR$77,Nutrients!$DR$78)))))*AP$8))/2000)","v":0.14985099986346795},null,{"$f":"((SUMPRODUCT(AR$9:AR$229,Nutrients!$DR$8:$DR$228)+(IF($A$7=Nutrients!$B$8,Nutrients!$DR$8,Nutrients!$DR$9)*AR$7)+(((IF($A$8=Nutrients!$B$79,Nutrients!$DR$79,(IF($A$8=Nutrients!$B$77,Nutrients!$DR$77,Nutrients!$DR$78)))))*AR$8))/2000)","v":0.29012369163179702},{"$f":"((SUMPRODUCT(AS$9:AS$229,Nutrients!$DR$8:$DR$228)+(IF($A$7=Nutrients!$B$8,Nutrients!$DR$8,Nutrients!$DR$9)*AS$7)+(((IF($A$8=Nutrients!$B$79,Nutrients!$DR$79,(IF($A$8=Nutrients!$B$77,Nutrients!$DR$77,Nutrients!$DR$78)))))*AS$8))/2000)","v":0.25082898434559381},{"$f":"((SUMPRODUCT(AT$9:AT$229,Nutrients!$DR$8:$DR$228)+(IF($A$7=Nutrients!$B$8,Nutrients!$DR$8,Nutrients!$DR$9)*AT$7)+(((IF($A$8=Nutrients!$B$79,Nutrients!$DR$79,(IF($A$8=Nutrients!$B$77,Nutrients!$DR$77,Nutrients!$DR$78)))))*AT$8))/2000)","v":0.21094622056853898},{"$f":"((SUMPRODUCT(AU$9:AU$229,Nutrients!$DR$8:$DR$228)+(IF($A$7=Nutrients!$B$8,Nutrients!$DR$8,Nutrients!$DR$9)*AU$7)+(((IF($A$8=Nutrients!$B$79,Nutrients!$DR$79,(IF($A$8=Nutrients!$B$77,Nutrients!$DR$77,Nutrients!$DR$78)))))*AU$8))/2000)","v":0.20248488146998647},{"$f":"((SUMPRODUCT(AV$9:AV$229,Nutrients!$DR$8:$DR$228)+(IF($A$7=Nutrients!$B$8,Nutrients!$DR$8,Nutrients!$DR$9)*AV$7)+(((IF($A$8=Nutrients!$B$79,Nutrients!$DR$79,(IF($A$8=Nutrients!$B$77,Nutrients!$DR$77,Nutrients!$DR$78)))))*AV$8))/2000)","v":0.1953302798325279},{"$f":"((SUMPRODUCT(AW$9:AW$229,Nutrients!$DR$8:$DR$228)+(IF($A$7=Nutrients!$B$8,Nutrients!$DR$8,Nutrients!$DR$9)*AW$7)+(((IF($A$8=Nutrients!$B$79,Nutrients!$DR$79,(IF($A$8=Nutrients!$B$77,Nutrients!$DR$77,Nutrients!$DR$78)))))*AW$8))/2000)","v":0.14985099986346795}]
["Stand. Dig. P with phytase, %",{"$f":"B259+0.11","v":0.40000063647666451},0.35988069387487892,0.32060453785177029,0.29085065848336067,0.26971179439767601,0.25985099986346794,null,{"$f":"I259+0.11","v":0.40014809232506826},0.36085687289487001,0.32039974278228328,0.2912253489325991,0.27008645981230761,0.25985099986346794,null,{"$f":"P259+0.11","v":0.40052578331141758},0.36123183005655535,0.32077188856544558,0.29159827429370366,0.27046115395472281,0.25985099986346794,null,{"$f":"W259+0.11","v":0.39995668178300392},0.36065831986281893,0.32019914611745426,0.2910205630068694,0.26987846247779868,0.25985099986346794,null,{"$f":"AD259+0.11","v":0.39938338707198906},0.36008677181643717,0.3196214956684133,0.29044036582387611,0.28012944236266574,0.25985099986346794,null,{"$f":"AK259+0.11","v":0.39975631887698909},0.3604582948037795,0.31999508065995352,0.29988432468136095,0.29272986909517273,0.25985099986346794,null,{"$f":"AR259+0.11","v":0.40012369163179701},0.3608289843455938,0.320946220568539,0.31248488146998649,0.30533027983252792,0.25985099986346794]
["Ca:P",{"$f":"B254/B255","v":1.3203146685846132},1.3163186415313215,1.3468914379746515,1.3441772957085856,1.3289773113995034,1.3324500801018839,null,{"$f":"I254/I255","v":1.3223577442324317},1.3189699774114005,1.3490120255762561,1.3470498336475336,1.3333112816997457,1.3324500801018839,null,{"$f":"P254/P255","v":1.3243616088703729},1.3216540367797553,1.3513927724029093,1.3496556897116012,1.3360952348809283,1.3324500801018839,null,{"$f":"W254/W255","v":1.3272116046499811},1.3248410689069119,1.3550397114866901,1.3537155421548721,1.3404915699116697,1.3324500801018839,null,{"$f":"AD254/AD255","v":1.3301098810986212},1.3280264793479952,1.3587597870886361,1.3591976769068608,1.3500108555574402,1.3324500801018839,null,{"$f":"AK254/AK255","v":1.3320294469149694},1.3301633688790153,1.3611438508122751,1.3644897644887017,1.3617621236471467,1.3324500801018839,null,{"$f":"AR254/AR255","v":1.3339968766946273},1.3323094940796329,1.3641526037019485,1.3755424908517067,1.3727171726466441,1.3324500801018839]
["Ca:STTD P",{"$f":"B254/B260","v":1.7394731864174733},1.7393882664224269,1.790040346909656,1.7897511861126985,1.7685135744736544,1.770331325323067,null,{"$f":"I254/I260","v":1.7402281569503373},1.7400922212664098,1.7906273939297856,1.7905488064720849,1.7710524717081941,1.770331325323067,null,{"$f":"P254/P260","v":1.7407396745307142},{"$f":"Q254/Q260","v":1.7412577416035535},1.791015904559168,1.7909713682258248,1.7715230356345777,1.770331325323067,null,{"$f":"W254/W260","v":1.7429430694914569},1.7437239291592328,1.7938784200875411,1.794152219803542,1.7749450405490406,1.770331325323067,null,{"$f":"AD254/AD260","v":1.7451715833908215},1.7461881890561919,1.7967795407417382,1.7991724896320795,1.7743717763594851,1.770331325323067,null,{"$f":"AK254/AK260","v":1.7455221195196597},1.7465829069365384,1.7971535370877374,1.7945714837565727,1.7753550444944202,1.770331325323067,null,{"$f":"AR254/AR260","v":1.7458969422643476},1.7469809608936568,1.7977644105679353,1.7953773492557348,1.7762622219561162,1.770331325323067]
["Cost/ton",{"$f":"(SUMPRODUCT(B$9:B$229,Nutrients!$DX$8:$DX$228)+(IF($A$7=Nutrients!$B$8,Nutrients!$DX$8,Nutrients!$DX$9)*B$7)+(((IF($A$8=Nutrients!$B$79,Nutrients!$DX$79,(IF($A$8=Nutrients!$B$77,Nutrients!$DX$77,Nutrients!$DX$78)))))*B$8))","v":221.26773173804173},{"$f":"(SUMPRODUCT(C$9:C$229,Nutrients!$DX$8:$DX$228)+(IF($A$7=Nutrients!$B$8,Nutrients!$DX$8,Nutrients!$DX$9)*C$7)+(((IF($A$8=Nutrients!$B$79,Nutrients!$DX$79,(IF($A$8=Nutrients!$B$77,Nutrients!$DX$77,Nutrients!$DX$78)))))*C$8))","v":211.54330280629557},{"$f":"(SUMPRODUCT(D$9:D$229,Nutrients!$DX$8:$DX$228)+(IF($A$7=Nutrients!$B$8,Nutrients!$DX$8,Nutrients!$DX$9)*D$7)+(((IF($A$8=Nutrients!$B$79,Nutrients!$DX$79,(IF($A$8=Nutrients!$B$77,Nutrients!$DX$77,Nutrients!$DX$78)))))*D$8))","v":202.16843206547495},{"$f":"(SUMPRODUCT(E$9:E$229,Nutrients!$DX$8:$DX$228)+(IF($A$7=Nutrients!$B$8,Nutrients!$DX$8,Nutrients!$DX$9)*E$7)+(((IF($A$8=Nutrients!$B$79,Nutrients!$DX$79,(IF($A$8=Nutrients!$B$77,Nutrients!$DX$77,Nutrients!$DX$78)))))*E$8))","v":195.22426532952818},{"$f":"(SUMPRODUCT(F$9:F$229,Nutrients!$DX$8:$DX$228)+(IF($A$7=Nutrients!$B$8,Nutrients!$DX$8,Nutrients!$DX$9)*F$7)+(((IF($A$8=Nutrients!$B$79,Nutrients!$DX$79,(IF($A$8=Nutrients!$B$77,Nutrients!$DX$77,Nutrients!$DX$78)))))*F$8))","v":190.24981497998971},{"$f":"(SUMPRODUCT(G$9:G$229,Nutrients!$DX$8:$DX$228)+(IF($A$7=Nutrients!$B$8,Nutrients!$DX$8,Nutrients!$DX$9)*G$7)+(((IF($A$8=Nutrients!$B$79,Nutrients!$DX$79,(IF($A$8=Nutrients!$B$77,Nutrients!$DX$77,Nutrients!$DX$78)))))*G$8))","v":187.92809138061614},null,{"$f":"(SUMPRODUCT(I$9:I$229,Nutrients!$DX$8:$DX$228)+(IF($A$7=Nutrients!$B$8,Nutrients!$DX$8,Nutrients!$DX$9)*I$7)+(((IF($A$8=Nutrients!$B$79,Nutrients!$DX$79,(IF($A$8=Nutrients!$B$77,Nutrients!$DX$77,Nutrients!$DX$78)))))*I$8))","v":222.98298841495034},{"$f":"(SUMPRODUCT(J$9:J$229,Nutrients!$DX$8:$DX$228)+(IF($A$7=Nutrients!$B$8,Nutrients!$DX$8,Nutrients!$DX$9)*J$7)+(((IF($A$8=Nutrients!$B$79,Nutrients!$DX$79,(IF($A$8=Nutrients!$B$77,Nutrients!$DX$77,Nutrients!$DX$78)))))*J$8))","v":213.40886111904834},{"$f":"(SUMPRODUCT(K$9:K$229,Nutrients!$DX$8:$DX$228)+(IF($A$7=Nutrients!$B$8,Nutrients!$DX$8,Nutrients!$DX$9)*K$7)+(((IF($A$8=Nutrients!$B$79,Nutrients!$DX$79,(IF($A$8=Nutrients!$B$77,Nutrients!$DX$77,Nutrients!$DX$78)))))*K$8))","v":204.14329773141259},{"$f":"(SUMPRODUCT(L$9:L$229,Nutrients!$DX$8:$DX$228)+(IF($A$7=Nutrients!$B$8,Nutrients!$DX$8,Nutrients!$DX$9)*L$7)+(((IF($A$8=Nutrients!$B$79,Nutrients!$DX$79,(IF($A$8=Nutrients!$B$77,Nutrients!$DX$77,Nutrients!$DX$78)))))*L$8))","v":197.14946765440774},{"$f":"(SUMPRODUCT(M$9:M$229,Nutrients!$DX$8:$DX$228)+(IF($A$7=Nutrients!$B$8,Nutrients!$DX$8,Nutrients!$DX$9)*M$7)+(((IF($A$8=Nutrients!$B$79,Nutrients!$DX$79,(IF($A$8=Nutrients!$B$77,Nutrients!$DX$77,Nutrients!$DX$78)))))*M$8))","v":192.10045605409829},{"$f":"(SUMPRODUCT(N$9:N$229,Nutrients!$DX$8:$DX$228)+(IF($A$7=Nutrients!$B$8,Nutrients!$DX$8,Nutrients!$DX$9)*N$7)+(((IF($A$8=Nutrients!$B$79,Nutrients!$DX$79,(IF($A$8=Nutrients!$B$77,Nutrients!$DX$77,Nutrients!$DX$78)))))*N$8))","v":187.92809138061614},null,{"$f":"(SUMPRODUCT(P$9:P$229,Nutrients!$DX$8:$DX$228)+(IF($A$7=Nutrients!$B$8,Nutrients!$DX$8,Nutrients!$DX$9)*P$7)+(((IF($A$8=Nutrients!$B$79,Nutrients!$DX$79,(IF($A$8=Nutrients!$B$77,Nutrients!$DX$77,Nutrients!$DX$78)))))*P$8))","v":224.84626453349327},{"$f":"(SUMPRODUCT(Q$9:Q$229,Nutrients!$DX$8:$DX$228)+(IF($A$7=Nutrients!$B$8,Nutrients!$DX$8,Nutrients!$DX$9)*Q$7)+(((IF($A$8=Nutrients!$B$79,Nutrients!$DX$79,(IF($A$8=Nutrients!$B$77,Nutrients!$DX$77,Nutrients!$DX$78)))))*Q$8))","v":215.35260787079329},{"$f":"(SUMPRODUCT(R$9:R$229,Nutrients!$DX$8:$DX$228)+(IF($A$7=Nutrients!$B$8,Nutrients!$DX$8,Nutrients!$DX$9)*R$7)+(((IF($A$8=Nutrients!$B$79,Nutrients!$DX$79,(IF($A$8=Nutrients!$B$77,Nutrients!$DX$77,Nutrients!$DX$78)))))*R$8))","v":206.17290590790762},{"$f":"(SUMPRODUCT(S$9:S$229,Nutrients!$DX$8:$DX$228)+(IF($A$7=Nutrients!$B$8,Nutrients!$DX$8,Nutrients!$DX$9)*S$7)+(((IF($A$8=Nutrients!$B$79,Nutrients!$DX$79,(IF($A$8=Nutrients!$B$77,Nutrients!$DX$77,Nutrients!$DX$78)))))*S$8))","v":199.19797255248346},{"$f":"(SUMPRODUCT(T$9:T$229,Nutrients!$DX$8:$DX$228)+(IF($A$7=Nutrients!$B$8,Nutrients!$DX$8,Nutrients!$DX$9)*T$7)+(((IF($A$8=Nutrients!$B$79,Nutrients!$DX$79,(IF($A$8=Nutrients!$B$77,Nutrients!$DX$77,Nutrients!$DX$78)))))*T$8))","v":194.0515106615627},{"$f":"(SUMPRODUCT(U$9:U$229,Nutrients!$DX$8:$DX$228)+(IF($A$7=Nutrients!$B$8,Nutrients!$DX$8,Nutrients!$DX$9)*U$7)+(((IF($A$8=Nutrients!$B$79,Nutrients!$DX$79,(IF($A$8=Nutrients!$B$77,Nutrients!$DX$77,Nutrients!$DX$78)))))*U$8))","v":187.92809138061614},null,{"$f":"(SUMPRODUCT(W$9:W$229,Nutrients!$DX$8:$DX$228)+(IF($A$7=Nutrients!$B$8,Nutrients!$DX$8,Nutrients!$DX$9)*W$7)+(((IF($A$8=Nutrients!$B$79,Nutrients!$DX$79,(IF($A$8=Nutrients!$B$77,Nutrients!$DX$77,Nutrients!$DX$78)))))*W$8))","v":226.68237325563888},{"$f":"(SUMPRODUCT(X$9:X$229,Nutrients!$DX$8:$DX$228)+(IF($A$7=Nutrients!$B$8,Nutrients!$DX$8,Nutrients!$DX$9)*X$7)+(((IF($A$8=Nutrients!$B$79,Nutrients!$DX$79,(IF($A$8=Nutrients!$B$77,Nutrients!$DX$77,Nutrients!$DX$78)))))*X$8))","v":217.34035854218695},{"$f":"(SUMPRODUCT(Y$9:Y$229,Nutrients!$DX$8:$DX$228)+(IF($A$7=Nutrients!$B$8,Nutrients!$DX$8,Nutrients!$DX$9)*Y$7)+(((IF($A$8=Nutrients!$B$79,Nutrients!$DX$79,(IF($A$8=Nutrients!$B$77,Nutrients!$DX$77,Nutrients!$DX$78)))))*Y$8))","v":208.18429007658008},{"$f":"(SUMPRODUCT(Z$9:Z$229,Nutrients!$DX$8:$DX$228)+(IF($A$7=Nutrients!$B$8,Nutrients!$DX$8,Nutrients!$DX$9)*Z$7)+(((IF($A$8=Nutrients!$B$79,Nutrients!$DX$79,(IF($A$8=Nutrients!$B$77,Nutrients!$DX$77,Nutrients!$DX$78)))))*Z$8))","v":201.38333503514014},{"$f":"(SUMPRODUCT(AA$9:AA$229,Nutrients!$DX$8:$DX$228)+(IF($A$7=Nutrients!$B$8,Nutrients!$DX$8,Nutrients!$DX$9)*AA$7)+(((IF($A$8=Nutrients!$B$79,Nutrients!$DX$79,(IF($A$8=Nutrients!$B$77,Nutrients!$DX$77,Nutrients!$DX$78)))))*AA$8))","v":196.45354630646318},{"$f":"(SUMPRODUCT(AB$9:AB$229,Nutrients!$DX$8:$DX$228)+(IF($A$7=Nutrients!$B$8,Nutrients!$DX$8,Nutrients!$DX$9)*AB$7)+(((IF($A$8=Nutrients!$B$79,Nutrients!$DX$79,(IF($A$8=Nutrients!$B$77,Nutrients!$DX$77,Nutrients!$DX$78)))))*AB$8))","v":187.92809138061614},null,{"$f":"(SUMPRODUCT(AD$9:AD$229,Nutrients!$DX$8:$DX$228)+(IF($A$7=Nutrients!$B$8,Nutrients!$DX$8,Nutrients!$DX$9)*AD$7)+(((IF($A$8=Nutrients!$B$79,Nutrients!$DX$79,(IF($A$8=Nutrients!$B$77,Nutrients!$DX$77,Nutrients!$DX$78)))))*AD$8))","v":228.62650434431652},{"$f":"(SUMPRODUCT(AE$9:AE$229,Nutrients!$DX$8:$DX$228)+(IF($A$7=Nutrients!$B$8,Nutrients!$DX$8,Nutrients!$DX$9)*AE$7)+(((IF($A$8=Nutrients!$B$79,Nutrients!$DX$79,(IF($A$8=Nutrients!$B$77,Nutrients!$DX$77,Nutrients!$DX$78)))))*AE$8))","v":219.24641855773618},{"$f":"(SUMPRODUCT(AF$9:AF$229,Nutrients!$DX$8:$DX$228)+(IF($A$7=Nutrients!$B$8,Nutrients!$DX$8,Nutrients!$DX$9)*AF$7)+(((IF($A$8=Nutrients!$B$79,Nutrients!$DX$79,(IF($A$8=Nutrients!$B$77,Nutrients!$DX$77,Nutrients!$DX$78)))))*AF$8))","v":210.36908240184468},{"$f":"(SUMPRODUCT(AG$9:AG$229,Nutrients!$DX$8:$DX$228)+(IF($A$7=Nutrients!$B$8,Nutrients!$DX$8,Nutrients!$DX$9)*AG$7)+(((IF($A$8=Nutrients!$B$79,Nutrients!$DX$79,(IF($A$8=Nutrients!$B$77,Nutrients!$DX$77,Nutrients!$DX$78)))))*AG$8))","v":203.64004596167302},{"$f":"(SUMPRODUCT(AH$9:AH$229,Nutrients!$DX$8:$DX$228)+(IF($A$7=Nutrients!$B$8,Nutrients!$DX$8,Nutrients!$DX$9)*AH$7)+(((IF($A$8=Nutrients!$B$79,Nutrients!$DX$79,(IF($A$8=Nutrients!$B$77,Nutrients!$DX$77,Nutrients!$DX$78)))))*AH$8))","v":199.39956894727004},{"$f":"(SUMPRODUCT(AI$9:AI$229,Nutrients!$DX$8:$DX$228)+(IF($A$7=Nutrients!$B$8,Nutrients!$DX$8,Nutrients!$DX$9)*AI$7)+(((IF($A$8=Nutrients!$B$79,Nutrients!$DX$79,(IF($A$8=Nutrients!$B$77,Nutrients!$DX$77,Nutrients!$DX$78)))))*AI$8))","v":187.92809138061614},null,{"$f":"(SUMPRODUCT(AK$9:AK$229,Nutrients!$DX$8:$DX$228)+(IF($A$7=Nutrients!$B$8,Nutrients!$DX$8,Nutrients!$DX$9)*AK$7)+(((IF($A$8=Nutrients!$B$79,Nutrients!$DX$79,(IF($A$8=Nutrients!$B$77,Nutrients!$DX$77,Nutrients!$DX$78)))))*AK$8))","v":230.61023122079018},{"$f":"(SUMPRODUCT(AL$9:AL$229,Nutrients!$DX$8:$DX$228)+(IF($A$7=Nutrients!$B$8,Nutrients!$DX$8,Nutrients!$DX$9)*AL$7)+(((IF($A$8=Nutrients!$B$79,Nutrients!$DX$79,(IF($A$8=Nutrients!$B$77,Nutrients!$DX$77,Nutrients!$DX$78)))))*AL$8))","v":221.28480281930928},{"$f":"(SUMPRODUCT(AM$9:AM$229,Nutrients!$DX$8:$DX$228)+(IF($A$7=Nutrients!$B$8,Nutrients!$DX$8,Nutrients!$DX$9)*AM$7)+(((IF($A$8=Nutrients!$B$79,Nutrients!$DX$79,(IF($A$8=Nutrients!$B$77,Nutrients!$DX$77,Nutrients!$DX$78)))))*AM$8))","v":212.41476612880837},{"$f":"(SUMPRODUCT(AN$9:AN$229,Nutrients!$DX$8:$DX$228)+(IF($A$7=Nutrients!$B$8,Nutrients!$DX$8,Nutrients!$DX$9)*AN$7)+(((IF($A$8=Nutrients!$B$79,Nutrients!$DX$79,(IF($A$8=Nutrients!$B$77,Nutrients!$DX$77,Nutrients!$DX$78)))))*AN$8))","v":206.50844110970621},{"$f":"(SUMPRODUCT(AO$9:AO$229,Nutrients!$DX$8:$DX$228)+(IF($A$7=Nutrients!$B$8,Nutrients!$DX$8,Nutrients!$DX$9)*AO$7)+(((IF($A$8=Nutrients!$B$79,Nutrients!$DX$79,(IF($A$8=Nutrients!$B$77,Nutrients!$DX$77,Nutrients!$DX$78)))))*AO$8))","v":202.49535190626858},{"$f":"(SUMPRODUCT(AP$9:AP$229,Nutrients!$DX$8:$DX$228)+(IF($A$7=Nutrients!$B$8,Nutrients!$DX$8,Nutrients!$DX$9)*AP$7)+(((IF($A$8=Nutrients!$B$79,Nutrients!$DX$79,(IF($A$8=Nutrients!$B$77,Nutrients!$DX$77,Nutrients!$DX$78)))))*AP$8))","v":187.92809138061614},null,{"$f":"(SUMPRODUCT(AR$9:AR$229,Nutrients!$DX$8:$DX$228)+(IF($A$7=Nutrients!$B$8,Nutrients!$DX$8,Nutrients!$DX$9)*AR$7)+(((IF($A$8=Nutrients!$B$79,Nutrients!$DX$79,(IF($A$8=Nutrients!$B$77,Nutrients!$DX$77,Nutrients!$DX$78)))))*AR$8))","v":232.668799124987},{"$f":"(SUMPRODUCT(AS$9:AS$229,Nutrients!$DX$8:$DX$228)+(IF($A$7=Nutrients!$B$8,Nutrients!$DX$8,Nutrients!$DX$9)*AS$7)+(((IF($A$8=Nutrients!$B$79,Nutrients!$DX$79,(IF($A$8=Nutrients!$B$77,Nutrients!$DX$77,Nutrients!$DX$78)))))*AS$8))","v":223.4250681462434},{"$f":"(SUMPRODUCT(AT$9:AT$229,Nutrients!$DX$8:$DX$228)+(IF($A$7=Nutrients!$B$8,Nutrients!$DX$8,Nutrients!$DX$9)*AT$7)+(((IF($A$8=Nutrients!$B$79,Nutrients!$DX$79,(IF($A$8=Nutrients!$B$77,Nutrients!$DX$77,Nutrients!$DX$78)))))*AT$8))","v":214.86073951707016},{"$f":"(SUMPRODUCT(AU$9:AU$229,Nutrients!$DX$8:$DX$228)+(IF($A$7=Nutrients!$B$8,Nutrients!$DX$8,Nutrients!$DX$9)*AU$7)+(((IF($A$8=Nutrients!$B$79,Nutrients!$DX$79,(IF($A$8=Nutrients!$B$77,Nutrients!$DX$77,Nutrients!$DX$78)))))*AU$8))","v":209.5989540111882},{"$f":"(SUMPRODUCT(AV$9:AV$229,Nutrients!$DX$8:$DX$228)+(IF($A$7=Nutrients!$B$8,Nutrients!$DX$8,Nutrients!$DX$9)*AV$7)+(((IF($A$8=Nutrients!$B$79,Nutrients!$DX$79,(IF($A$8=Nutrients!$B$77,Nutrients!$DX$77,Nutrients!$DX$78)))))*AV$8))","v":205.59125667011466},{"$f":"(SUMPRODUCT(AW$9:AW$229,Nutrients!$DX$8:$DX$228)+(IF($A$7=Nutrients!$B$8,Nutrients!$DX$8,Nutrients!$DX$9)*AW$7)+(((IF($A$8=Nutrients!$B$79,Nutrients!$DX$79,(IF($A$8=Nutrients!$B$77,Nutrients!$DX$77,Nutrients!$DX$78)))))*AW$8))","v":187.92809138061614}]
["Cost with processing",{"$f":"IF(B$5=\"\",\"\",B263+Nutrients!$DV$5)","v":233.26773173804173},{"$f":"IF(C$5=\"\",\"\",C263+Nutrients!$DV$5)","v":223.54330280629557},{"$f":"IF(D$5=\"\",\"\",D263+Nutrients!$DV$5)","v":214.16843206547495},{"$f":"IF(E$5=\"\",\"\",E263+Nutrients!$DV$5)","v":207.22426532952818},{"$f":"IF(F$5=\"\",\"\",F263+Nutrients!$DV$5)","v":202.24981497998971},{"$f":"IF(G$5=\"\",\"\",G263+Nutrients!$DV$5)","v":199.92809138061614},null,{"$f":"IF(I$5=\"\",\"\",I263+Nutrients!$DV$5)","v":234.98298841495034},{"$f":"IF(J$5=\"\",\"\",J263+Nutrients!$DV$5)","v":225.40886111904834},{"$f":"IF(K$5=\"\",\"\",K263+Nutrients!$DV$5)","v":216.14329773141259},{"$f":"IF(L$5=\"\",\"\",L263+Nutrients!$DV$5)","v":209.14946765440774},{"$f":"IF(M$5=\"\",\"\",M263+Nutrients!$DV$5)","v":204.10045605409829},{"$f":"IF(N$5=\"\",\"\",N263+Nutrients!$DV$5)","v":199.92809138061614},null,{"$f":"IF(P$5=\"\",\"\",P263+Nutrients!$DV$5)","v":236.84626453349327},{"$f":"IF(Q$5=\"\",\"\",Q263+Nutrients!$DV$5)","v":227.35260787079329},{"$f":"IF(R$5=\"\",\"\",R263+Nutrients!$DV$5)","v":218.17290590790762},{"$f":"IF(S$5=\"\",\"\",S263+Nutrients!$DV$5)","v":211.19797255248346},{"$f":"IF(T$5=\"\",\"\",T263+Nutrients!$DV$5)","v":206.0515106615627},{"$f":"IF(U$5=\"\",\"\",U263+Nutrients!$DV$5)","v":199.92809138061614},null,{"$f":"IF(W$5=\"\",\"\",W263+Nutrients!$DV$5)","v":238.68237325563888},{"$f":"IF(X$5=\"\",\"\",X263+Nutrients!$DV$5)","v":229.34035854218695},{"$f":"IF(Y$5=\"\",\"\",Y263+Nutrients!$DV$5)","v":220.18429007658008},{"$f":"IF(Z$5=\"\",\"\",Z263+Nutrients!$DV$5)","v":213.38333503514014},{"$f":"IF(AA$5=\"\",\"\",AA263+Nutrients!$DV$5)","v":208.45354630646318},{"$f":"IF(AB$5=\"\",\"\",AB263+Nutrients!$DV$5)","v":199.92809138061614},null,{"$f":"IF(AD$5=\"\",\"\",AD263+Nutrients!$DV$5)","v":240.62650434431652},{"$f":"IF(AE$5=\"\",\"\",AE263+Nutrients!$DV$5)","v":231.24641855773618},{"$f":"IF(AF$5=\"\",\"\",AF263+Nutrients!$DV$5)","v":222.36908240184468},{"$f":"IF(AG$5=\"\",\"\",AG263+Nutrients!$DV$5)","v":215.64004596167302},{"$f":"IF(AH$5=\"\",\"\",AH263+Nutrients!$DV$5)","v":211.39956894727004},{"$f":"IF(AI$5=\"\",\"\",AI263+Nutrients!$DV$5)","v":199.92809138061614},null,{"$f":"IF(AK$5=\"\",\"\",AK263+Nutrients!$DV$5)","v":242.61023122079018},{"$f":"IF(AL$5=\"\",\"\",AL263+Nutrients!$DV$5)","v":233.28480281930928},{"$f":"IF(AM$5=\"\",\"\",AM263+Nutrients!$DV$5)","v":224.41476612880837},{"$f":"IF(AN$5=\"\",\"\",AN263+Nutrients!$DV$5)","v":218.50844110970621},{"$f":"IF(AO$5=\"\",\"\",AO263+Nutrients!$DV$5)","v":214.49535190626858},{"$f":"IF(AP$5=\"\",\"\",AP263+Nutrients!$DV$5)","v":199.92809138061614},null,{"$f":"IF(AR$5=\"\",\"\",AR263+Nutrients!$DV$5)","v":244.668799124987},{"$f":"IF(AS$5=\"\",\"\",AS263+Nutrients!$DV$5)","v":235.4250681462434},{"$f":"IF(AT$5=\"\",\"\",AT263+Nutrients!$DV$5)","v":226.86073951707016},{"$f":"IF(AU$5=\"\",\"\",AU263+Nutrients!$DV$5)","v":221.5989540111882},{"$f":"IF(AV$5=\"\",\"\",AV263+Nutrients!$DV$5)","v":217.59125667011466},{"$f":"IF(AW$5=\"\",\"\",AW263+Nutrients!$DV$5)","v":199.92809138061614}]
["Feed budget, lb/pig- adjusted for gain ",64.670241098095005,73.763156713761802,95.43493291654417,107.31139412884363,119.18785534114284,148.28241980161249,{"$f":"SUM(B265:G265)","v":608.65},{"$f":"($B$265*$B$250/I250)-($B$265*$B$250/I250)/(I6-I5)*I268","v":64.465912384557143},{"$f":"($C$265*$C$250/J250)-($C$265*$C$250/J250)/(J6-J5)*J268","v":73.596044001409354},{"$f":"($D$265*$D$250/K250)-($D$265*$D$250/K250)/(K6-K5)*K268","v":95.20373229842302},{"$f":"($E$265*$E$250/L250)-($E$265*$E$250/L250)/(L6-L5)*L268","v":106.92710201486175},{"$f":"($F$265*$F$250/M250)-($F$265*$F$250/M250)/(M6-M5)*M268","v":118.50594294109828},{"$f":"($G$265*$G$250/N250)-($G$265*$G$250/N250)/(N6-N5)*N268","v":148.28241980161249},{"$f":"SUM(I265:N265)","v":606.98115344196208},{"$f":"($B$265*$B$250/P250)-($B$265*$B$250/P250)/(P6-P5)*P268","v":64.259631818774395},{"$f":"($C$265*$C$250/Q250)-($C$265*$C$250/Q250)/(Q6-Q5)*Q268","v":73.42872545565919},{"$f":"($D$265*$D$250/R250)-($D$265*$D$250/R250)/(R6-R5)*R268","v":94.968497810561615},{"$f":"($E$265*$E$250/S250)-($E$265*$E$250/S250)/(S6-S5)*S268","v":106.54143886136792},{"$f":"($F$265*$F$250/T250)-($F$265*$F$250/T250)/(T6-T5)*T268","v":117.81914186833214},{"$f":"($G$265*$G$250/U250)-($G$265*$G$250/U250)/(U6-U5)*U268","v":148.28241980161249},{"$f":"SUM(P265:U265)","v":605.29985561630781},{"$f":"($B$265*$B$250/W250)-($B$265*$B$250/W250)/(W6-W5)*W268","v":64.049146556445066},{"$f":"($C$265*$C$250/X250)-($C$265*$C$250/X250)/(X6-X5)*X268","v":73.254976555764728},{"$f":"($D$265*$D$250/Y250)-($D$265*$D$250/Y250)/(Y6-Y5)*Y268","v":94.731453814830147},{"$f":"($E$265*$E$250/Z250)-($E$265*$E$250/Z250)/(Z6-Z5)*Z268","v":106.14503448905268},{"$f":"($F$265*$F$250/AA250)-($F$265*$F$250/AA250)/(AA6-AA5)*AA268","v":117.10226289967412},{"$f":"($G$265*$G$250/AB250)-($G$265*$G$250/AB250)/(AB6-AB5)*AB268","v":148.28241980161249},{"$f":"SUM(W265:AB265)","v":603.56529411737915},{"$f":"($B$265*$B$250/AD250)-($B$265*$B$250/AD250)/(AD6-AD5)*AD268","v":63.83991765168274},{"$f":"($C$265*$C$250/AE250)-($C$265*$C$250/AE250)/(AE6-AE5)*AE268","v":73.083436114682044},{"$f":"($D$265*$D$250/AF250)-($D$265*$D$250/AF250)/(AF6-AF5)*AF268","v":94.491129265849466},{"$f":"($E$265*$E$250/AG250)-($E$265*$E$250/AG250)/(AG6-AG5)*AG268","v":105.74895393967286},{"$f":"($F$265*$F$250/AH250)-($F$265*$F$250/AH250)/(AH6-AH5)*AH268","v":116.40199548201855},{"$f":"($G$265*$G$250/AI250)-($G$265*$G$250/AI250)/(AI6-AI5)*AI268","v":148.28241980161249},{"$f":"SUM(AD265:AI265)","v":601.84785225551809},{"$f":"($B$265*$B$250/AK250)-($B$265*$B$250/AK250)/(AK6-AK5)*AK268","v":63.632580396376824},{"$f":"($C$265*$C$250/AL250)-($C$265*$C$250/AL250)/(AL6-AL5)*AL268","v":72.91296790783386},{"$f":"($D$265*$D$250/AM250)-($D$265*$D$250/AM250)/(AM6-AM5)*AM268","v":94.258361191903319},{"$f":"($E$265*$E$250/AN250)-($E$265*$E$250/AN250)/(AN6-AN5)*AN268","v":105.36491487288016},{"$f":"($F$265*$F$250/AO250)-($F$265*$F$250/AO250)/(AO6-AO5)*AO268","v":115.70124110285134},{"$f":"($G$265*$G$250/AP250)-($G$265*$G$250/AP250)/(AP6-AP5)*AP268","v":148.28241980161249},{"$f":"SUM(AK265:AP265)","v":600.15248527345796},{"$f":"($B$265*$B$250/AR250)-($B$265*$B$250/AR250)/(AR6-AR5)*AR268","v":63.418999132303121},{"$f":"($C$265*$C$250/AS250)-($C$265*$C$250/AS250)/(AS6-AS5)*AS268","v":72.746437384290246},{"$f":"($D$265*$D$250/AT250)-($D$265*$D$250/AT250)/(AT6-AT5)*AT268","v":94.02617856200709},{"$f":"($E$265*$E$250/AU250)-($E$265*$E$250/AU250)/(AU6-AU5)*AU268","v":104.97518638981782},{"$f":"($F$265*$F$250/AV250)-($F$265*$F$250/AV250)/(AV6-AV5)*AV268","v":115.00047795090505},{"$f":"($G$265*$G$250/AW250)-($G$265*$G$250/AW250)/(AW6-AW5)*AW268","v":148.28241980161249},{"$f":"SUM(AR265:AW265)","v":598.44969922093583}]
["Feed cost, $/pig",{"$f":"IF(B$265=\"\",\"\",B265*B264/2000)","v":7.5427402259524534},8.244629838606345,10.219574973505026,11.118762404918533,12.052860845303957,14.822910588117834,{"$f":"SUM(B266:G266)","v":64.00147887640415},{"$f":"IF(I$265=\"\",\"\",I265*I264/2000)","v":7.5741963715097969},8.2946002306125273,10.288824327659873,11.181873232118441,12.093558499699554,14.822910588117834,{"$f":"SUM(I266:N266)","v":64.255963249718022},{"$f":"IF(P$265=\"\",\"\",P265*P264/2000)","v":7.6098268782871612},8.3471061124863102,10.359776568519495,11.250667940172638,12.138406083409404,14.822910588117834,{"$f":"SUM(P266:U266)","v":64.52869417099285},{"$f":"IF(W$265=\"\",\"\",W265*W264/2000)","v":7.6437011525452698},8.4001612941492905,10.429188953070355,11.324790728347017,12.205190990974423,14.822910588117834,{"$f":"SUM(W266:AB266)","v":64.825943707204189},{"$f":"IF(AD$265=\"\",\"\",AD265*AD264/2000)","v":7.6807881110767227},8.450141428706667,10.505952854980519,11.40185464397495,12.303665834750397,14.822910588117834,{"$f":"SUM(AD266:AI266)","v":65.165313461607084},{"$f":"IF(AK$265=\"\",\"\",AK265*AK264/2000)","v":7.7189575215702506},8.5047436706748236,10.576484041282866,11.511561648264971,12.408689213174062,14.822910588117834,{"$f":"SUM(AK266:AP266)","v":65.543346683084806},{"$f":"IF(AR$265=\"\",\"\",AR265*AR264/2000)","v":7.7583251797045989},8.5631674892964806,10.665424201270509,11.631195750556575,12.51154925750062,14.822910588117834,{"$f":"SUM(AR266:AW266)","v":65.952572466446625}]
["ADG, lb",{"$f":"B342*0.00220462","v":1.6321378734194845},1.9015014314603687,2.0832697080984475,2.1697909739378729,2.165030725567227,2.0548911695876653,null,{"$f":"I342*0.00220462","v":1.6266189298063185},1.8969075195205205,2.077992863816398,2.1618542844514339,2.152484153577106,2.0548911695876653,null,{"$f":"P342*0.00220462","v":1.6211979884286469},1.8923762471764884,2.0727409155317003,2.1538789468597117,2.1398403867341065,2.0548911695876653,null,{"$f":"W342*0.00220462","v":1.6157996318554884},1.8879008776630013,2.0674984498557265,2.1459234202239537,2.1268932516241397,2.0548911695876653,null,{"$f":"AD342*0.00220462","v":1.610508159253081},1.8834025510806229,2.062306619341173,2.1379406451689378,2.1140793814937138,2.0548911695876653,null,{"$f":"AK342*0.00220462","v":1.6051848288081365},1.8789290054923611,2.057049342344869,2.1299362381816995,2.1013649980733211,2.0548911695876653,null,{"$f":"AR342*0.00220462","v":1.5999111105816655},1.8745080983063227,2.0518759195263487,2.1220305449495052,2.0886509026072342,2.0548911695876653]
["Change in gain, lb",null,null,null,null,null,null,null,{"$f":"($B$6-$B$5)-(($B$6-$B$5)/$B$267)*I267","v":0.11834969925433825},{"$f":"($C$6-$C$5)-(($C$6-$C$5)/$C$267)*J267","v":8.4557873706778253E-2},{"$f":"($D$6-$D$5)-(($D$6-$D$5)/$D$267)*K267","v":0.10131850449389646},{"$f":"($E$6-$E$5)-(($E$6-$E$5)/$E$267)*L267","v":0.14631251732115658},{"$f":"($F$6-$F$5)-(($F$6-$F$5)/$F$267)*M267","v":0.23180404493952267},{"$f":"($G$6-$G$5)-(($G$6-$G$5)/$G$267)*N267","v":0},null,{"$f":"($B$6-$B$5)-(($B$6-$B$5)/$B$267)*P267","v":0.23459781242445388},{"$f":"($C$6-$C$5)-(($C$6-$C$5)/$C$267)*Q267","v":0.16796277123521719},{"$f":"($D$6-$D$5)-(($D$6-$D$5)/$D$267)*R267","v":0.20215899123993353},{"$f":"($E$6-$E$5)-(($E$6-$E$5)/$E$267)*S267","v":0.29333751074248937},{"$f":"($F$6-$F$5)-(($F$6-$F$5)/$F$267)*T267","v":0.46540381225343452},{"$f":"($G$6-$G$5)-(($G$6-$G$5)/$G$267)*U267","v":0},null,{"$f":"($B$6-$B$5)-(($B$6-$B$5)/$B$267)*W267","v":0.35036161102113539},{"$f":"($C$6-$C$5)-(($C$6-$C$5)/$C$267)*X267","v":0.2503386929045206},{"$f":"($D$6-$D$5)-(($D$6-$D$5)/$D$267)*Y267","v":0.30281740633797227},{"$f":"($E$6-$E$5)-(($E$6-$E$5)/$E$267)*Z267","v":0.43999729007266097},{"$f":"($F$6-$F$5)-(($F$6-$F$5)/$F$267)*AA267","v":0.70460845645681047},{"$f":"($G$6-$G$5)-(($G$6-$G$5)/$G$267)*AB267","v":0},null,{"$f":"($B$6-$B$5)-(($B$6-$B$5)/$B$267)*AD267","v":0.46383336123317065},{"$f":"($C$6-$C$5)-(($C$6-$C$5)/$C$267)*AE267","v":0.33313717403020604},{"$f":"($D$6-$D$5)-(($D$6-$D$5)/$D$267)*AF267","v":0.4025035966448911},{"$f":"($E$6-$E$5)-(($E$6-$E$5)/$E$267)*AG267","v":0.58715939279867513},{"$f":"($F$6-$F$5)-(($F$6-$F$5)/$F$267)*AH267","v":0.94135096507998384},{"$f":"($G$6-$G$5)-(($G$6-$G$5)/$G$267)*AI267","v":0},null,{"$f":"($B$6-$B$5)-(($B$6-$B$5)/$B$267)*AK267","v":0.57798827952001375},{"$f":"($C$6-$C$5)-(($C$6-$C$5)/$C$267)*AL267","v":0.41547952360652118},{"$f":"($D$6-$D$5)-(($D$6-$D$5)/$D$267)*AM267","v":0.50344639777845401},{"$f":"($E$6-$E$5)-(($E$6-$E$5)/$E$267)*AN267","v":0.73472027923210703},{"$f":"($F$6-$F$5)-(($F$6-$F$5)/$F$267)*AO267","v":1.176255408148549},{"$f":"($G$6-$G$5)-(($G$6-$G$5)/$G$267)*AP267","v":0},null,{"$f":"($B$6-$B$5)-(($B$6-$B$5)/$B$267)*AR267","v":0.69107930015773178},{"$f":"($C$6-$C$5)-(($C$6-$C$5)/$C$267)*AS267","v":0.49685298404746447},{"$f":"($D$6-$D$5)-(($D$6-$D$5)/$D$267)*AT267","v":0.60277914952747835},{"$f":"($E$6-$E$5)-(($E$6-$E$5)/$E$267)*AU267","v":0.88046138198628654},{"$f":"($F$6-$F$5)-(($F$6-$F$5)/$F$267)*AV267","v":1.4111545311206868},{"$f":"($G$6-$G$5)-(($G$6-$G$5)/$G$267)*AW267","v":0}]
["Feed budget, lb/pig- adjusted for energy intake ",64.670241098095005,73.763156713761802,95.43493291654417,107.31139412884363,119.18785534114284,148.28241980161249,{"$f":"SUM(B269:G269)","v":608.65},{"$f":"($B$269*$B$250/I250)","v":64.684638312862944},{"$f":"($C$269*$C$250/J250)","v":73.774278175603101},{"$f":"($D$269*$D$250/K250)","v":95.44549216158542},{"$f":"($E$269*$E$250/L250)","v":107.31965724510111},{"$f":"($F$269*$F$250/M250)","v":119.19669987043351},{"$f":"($G$269*$G$250/N250)","v":148.28241980161249},{"$f":"SUM(I269:N269)","v":608.7031855671986},{"$f":"($B$269*$B$250/P250)","v":64.693257438019288},{"$f":"($C$269*$C$250/Q250)","v":73.782804435731521},{"$f":"($D$269*$D$250/R250)","v":95.450904273583788},{"$f":"($E$269*$E$250/S250)","v":107.32852592704543},{"$f":"($F$269*$F$250/T250)","v":119.20611639367067},{"$f":"($G$269*$G$250/U250)","v":148.28241980161249},{"$f":"SUM(P269:U269)","v":608.7440282696632},{"$f":"($B$269*$B$250/W250)","v":64.696782815159466},{"$f":"($C$269*$C$250/X250)","v":73.78270990308161},{"$f":"($D$269*$D$250/Y250)","v":95.454082758966152},{"$f":"($E$269*$E$250/Z250)","v":107.32560891601378},{"$f":"($F$269*$F$250/AA250)","v":119.20203189212475},{"$f":"($G$269*$G$250/AB250)","v":148.28241980161249},{"$f":"SUM(W269:AB269)","v":608.7436360869583},{"$f":"($B$269*$B$250/AD250)","v":64.697311116769583},{"$f":"($C$269*$C$250/AE250)","v":73.78574394962763},{"$f":"($D$269*$D$250/AF250)","v":95.451619772449249},{"$f":"($E$269*$E$250/AG250)","v":107.32436668911494},{"$f":"($F$269*$F$250/AH250)","v":119.20739539962116},{"$f":"($G$269*$G$250/AI250)","v":148.28241980161249},{"$f":"SUM(AD269:AI269)","v":608.74885672919504},{"$f":"($B$269*$B$250/AK250)","v":64.701050361565947},{"$f":"($C$269*$C$250/AL250)","v":73.788904446892204},{"$f":"($D$269*$D$250/AM250)","v":95.459833930018249},{"$f":"($E$269*$E$250/AN250)","v":107.33647193874577},{"$f":"($F$269*$F$250/AO250)","v":119.20667861300053},{"$f":"($G$269*$G$250/AP250)","v":148.28241980161249},{"$f":"SUM(AK269:AP269)","v":608.77535909183518},{"$f":"($B$269*$B$250/AR250)","v":64.696438254346305},{"$f":"($C$269*$C$250/AS250)","v":73.794002247764737},{"$f":"($D$269*$D$250/AT250)","v":95.4647830808902},{"$f":"($E$269*$E$250/AU250)","v":107.33785734525917},{"$f":"($F$269*$F$250/AV250)","v":119.20592757163394},{"$f":"($G$269*$G$250/AW250)","v":148.28241980161249},{"$f":"SUM(AR269:AW269)","v":608.78142830150682}]
["Feed cost, $/pig- adjusted for energy intake",{"$f":"B269*B264/2000","v":7.5427402259524534},8.244629838606345,10.219574973505026,11.118762404918533,12.052860845303957,14.822910588117834,null,{"$f":"I269*I264/2000","v":7.5998948076483632},8.3146880117212785,10.314951714701381,11.2229245908332,12.164050401849478,14.822910588117834,null,{"$f":"P269*P264/2000","v":7.6611781823492482},8.3873565022421488,10.412400578452647,11.333783536419325,12.281300181506959,14.822910588117834,null,{"$f":"W269*W264/2000","v":7.7209908321634479},8.4606765716934511,10.508744723597044,11.450748182588095,12.424043137424764,14.822910588117834,null,{"$f":"AD269*AD264/2000","v":7.7839439072524765},8.5313445144847702,10.612744551284656,11.571715682824097,12.600196001403349,14.822910588117834,null,{"$f":"AK269*AK264/2000","v":7.8485683942237516},8.6069150120730509,10.711298153049965,11.726962578775533,12.784639239336506,14.822910588117834,null,{"$f":"AR269*AR264/2000","v":7.91459992767739},8.6864790039820257,10.828605643783719,11.892978456755783,12.96908379141925,14.822910588117834]
[null,{"$f":"(0.1135*(B250*2.2046)+8.8142*(AVERAGE(B5:B6)/2.2046)-0.05068*((AVERAGE(B5:B6)/2.2046)^2)+276)","v":787.02385912147702},866.66162670940309,923.28098162177844,951.2806842177074,945.67943656821853,902.38960307777609,null,{"$f":"(((I351-I5)*(I353/100)*0.85)-I266)-((($B$351-$B$5)*($B$353/100)*0.85)-$B$266)","v":-0.14785278644287203},{"$f":"(((J351-I351)*(J353/100)*0.85)-J266)-((($C$351-$B$351)*($C$353/100)*0.85)-$C$266)","v":-6.9761739269411649E-2},{"$f":"(((K351-J351)*(K353/100)*0.85)-K266)-((($D$351-$C$351)*($D$353/100)*0.85)-$D$266)","v":-0.12701143300594531},{"$f":"(((L351-K351)*(L353/100)*0.85)-L266)-((($E$351-$D$351)*($E$353/100)*0.85)-$E$266)","v":-0.13878753673561839},{"$f":"(((M351-L351)*(M353/100)*0.85)-M266)-((($F$351-$E$351)*($F$353/100)*0.85)-$F$266)","v":-0.14205997346961041},{"$f":"(((N351-M351)*(N353/100)*0.85)-N266)-((($G$351-$F$351)*($G$353/100)*0.85)-$G$266)","v":0.12514840319143516},{"$f":"O268*0.85","v":0},{"$f":"(((P351-P5)*(P353/100)*0.85)-P266)-((($B$351-$B$5)*($B$353/100)*0.85)-$B$266)","v":-0.29823664497878255},{"$f":"(((Q351-P351)*(Q353/100)*0.85)-Q266)-((($C$351-$B$351)*($C$353/100)*0.85)-$C$266)","v":-0.14272877041100429},{"$f":"(((R351-Q351)*(R353/100)*0.85)-R266)-((($D$351-$C$351)*($D$353/100)*0.85)-$D$266)","v":-0.25609403153645793},{"$f":"(((S351-R351)*(S353/100)*0.85)-S266)-((($E$351-$D$351)*($E$353/100)*0.85)-$E$266)","v":-0.28388503219637684},{"$f":"(((T351-S351)*(T353/100)*0.85)-T266)-((($F$351-$E$351)*($F$353/100)*0.85)-$F$266)","v":-0.28875067464140614},{"$f":"(((U351-T351)*(U353/100)*0.85)-U266)-((($G$351-$F$351)*($G$353/100)*0.85)-$G$266)","v":0.25120779366467971},{"$f":"V268*0.85","v":0},{"$f":"(((W351-W5)*(W353/100)*0.85)-W266)-((($B$351-$B$5)*($B$353/100)*0.85)-$B$266)","v":-0.44629541736339107},{"$f":"(((X351-W351)*(X353/100)*0.85)-X266)-((($C$351-$B$351)*($C$353/100)*0.85)-$C$266)","v":-0.21598499692205664},{"$f":"(((Y351-X351)*(Y353/100)*0.85)-Y266)-((($D$351-$C$351)*($D$353/100)*0.85)-$D$266)","v":-0.38414640196792504},{"$f":"(((Z351-Y351)*(Z353/100)*0.85)-Z266)-((($E$351-$D$351)*($E$353/100)*0.85)-$E$266)","v":-0.43409158527457237},{"$f":"(((AA351-Z351)*(AA353/100)*0.85)-AA266)-((($F$351-$E$351)*($F$353/100)*0.85)-$F$266)","v":-0.46092078831810568},{"$f":"(((AB351-AA351)*(AB353/100)*0.85)-AB266)-((($G$351-$F$351)*($G$353/100)*0.85)-$G$266)","v":0.38061953747084587},{"$f":"AC268*0.85","v":0},{"$f":"(((AD351-AD5)*(AD353/100)*0.85)-AD266)-((($B$351-$B$5)*($B$353/100)*0.85)-$B$266)","v":-0.59582761908319171},{"$f":"(((AE351-AD351)*(AE353/100)*0.85)-AE266)-((($C$351-$B$351)*($C$353/100)*0.85)-$C$266)","v":-0.28795524931527083},{"$f":"(((AF351-AE351)*(AF353/100)*0.85)-AF266)-((($D$351-$C$351)*($D$353/100)*0.85)-$D$266)","v":-0.51861618912536933},{"$f":"(((AG351-AF351)*(AG353/100)*0.85)-AG266)-((($E$351-$D$351)*($E$353/100)*0.85)-$E$266)","v":-0.58804260664012098},{"$f":"(((AH351-AG351)*(AH353/100)*0.85)-AH266)-((($F$351-$E$351)*($F$353/100)*0.85)-$F$266)","v":-0.66243052438206718},{"$f":"(((AI351-AH351)*(AI353/100)*0.85)-AI266)-((($G$351-$F$351)*($G$353/100)*0.85)-$G$266)","v":0.50844662668737328},{"$f":"AJ268*0.85","v":0},{"$f":"(((AK351-AK5)*(AK353/100)*0.85)-AK266)-((($B$351-$B$5)*($B$353/100)*0.85)-$B$266)","v":-0.74659146432772872},{"$f":"(((AL351-AK351)*(AL353/100)*0.85)-AL266)-((($C$351-$B$351)*($C$353/100)*0.85)-$C$266)","v":-0.36387925346921612},{"$f":"(((AM351-AL351)*(AM353/100)*0.85)-AM266)-((($D$351-$C$351)*($D$353/100)*0.85)-$D$266)","v":-0.64788460543481641},{"$f":"(((AN351-AM351)*(AN353/100)*0.85)-AN266)-((($E$351-$D$351)*($E$353/100)*0.85)-$E$266)","v":-0.77376241813432856},{"$f":"(((AO351-AN351)*(AO353/100)*0.85)-AO266)-((($F$351-$E$351)*($F$353/100)*0.85)-$F$266)","v":-0.86863372325580634},{"$f":"(((AP351-AO351)*(AP353/100)*0.85)-AP266)-((($G$351-$F$351)*($G$353/100)*0.85)-$G$266)","v":0.63493241320067995},{"$f":"AQ268*0.85","v":0},{"$f":"(((AR351-AR5)*(AR353/100)*0.85)-AR266)-((($B$351-$B$5)*($B$353/100)*0.85)-$B$266)","v":-0.89758989960001401},{"$f":"(((AS351-AR351)*(AS353/100)*0.85)-AS266)-((($C$351-$B$351)*($C$353/100)*0.85)-$C$266)","v":-0.44374601137585401},{"$f":"(((AT351-AS351)*(AT353/100)*0.85)-AT266)-((($D$351-$C$351)*($D$353/100)*0.85)-$D$266)","v":-0.79506911621123244},{"$f":"(((AU351-AT351)*(AU353/100)*0.85)-AU266)-((($E$351-$D$351)*($E$353/100)*0.85)-$E$266)","v":-0.96902822756757523},{"$f":"(((AV351-AU351)*(AV353/100)*0.85)-AV266)-((($F$351-$E$351)*($F$353/100)*0.85)-$F$266)","v":-1.0735319528933669},{"$f":"(((AW351-AV351)*(AW353/100)*0.85)-AW266)-((($G$351-$F$351)*($G$353/100)*0.85)-$G$266)","v":0.76118292379437591},{"$f":"AX268*0.85","v":0}]
["Targets"]
["- SID Ile:Lys",0.56000000000000005,0.56000000000000005,0.56000000000000005,0.56000000000000005,0.56000000000000005,0.56000000000000005,null,0.56000000000000005,0.56000000000000005,0.56000000000000005,0.56000000000000005,0.56000000000000005,0.56000000000000005,null,0.56000000000000005,0.56000000000000005,0.56000000000000005,0.56000000000000005,0.56000000000000005,0.56000000000000005,null,0.56000000000000005,0.56000000000000005,0.56000000000000005,0.56000000000000005,0.56000000000000005,0.56000000000000005,null,0.56000000000000005,0.56000000000000005,0.56000000000000005,0.56000000000000005,0.56000000000000005,0.56000000000000005,null,0.56000000000000005,0.56000000000000005,0.56000000000000005,0.56000000000000005,0.56000000000000005,0.56000000000000005,null,0.56000000000000005,0.56000000000000005,0.56000000000000005,0.56000000000000005,0.56000000000000005,0.56000000000000005]
["- SID Leu:Lys"]
["- SID Met:Lys",{"$f":" 0.000000416*((B5+B6)/2)^2 - 0.000036654*((B5+B6)/2) + 0.280606061","v":0.28002731600000003},0.281219626,0.28362810100000002,0.28748674100000005,0.29267658100000005,0.29964938600000002,null,{"$f":" 0.000000416*((I5+I6)/2)^2 - 0.000036654*((I5+I6)/2) + 0.280606061","v":0.28002731600000003},0.281219626,0.28362810100000002,0.28748674100000005,0.29267658100000005,0.29964938600000002,null,{"$f":" 0.000000416*((P5+P6)/2)^2 - 0.000036654*((P5+P6)/2) + 0.280606061","v":0.28002731600000003},0.281219626,0.28362810100000002,0.28748674100000005,0.29267658100000005,0.29964938600000002,null,{"$f":" 0.000000416*((W5+W6)/2)^2 - 0.000036654*((W5+W6)/2) + 0.280606061","v":0.28002731600000003},0.281219626,0.28362810100000002,0.28748674100000005,0.29267658100000005,0.29964938600000002,null,{"$f":" 0.000000416*((AD5+AD6)/2)^2 - 0.000036654*((AD5+AD6)/2) + 0.280606061","v":0.28002731600000003},0.281219626,0.28362810100000002,0.28748674100000005,0.29267658100000005,0.29964938600000002,null,{"$f":" 0.000000416*((AK5+AK6)/2)^2 - 0.000036654*((AK5+AK6)/2) + 0.280606061","v":0.28002731600000003},0.281219626,0.28362810100000002,0.28748674100000005,0.29267658100000005,0.29964938600000002,null,{"$f":" 0.000000416*((AR5+AR6)/2)^2 - 0.000036654*((AR5+AR6)/2) + 0.280606061","v":0.28002731600000003},0.281219626,0.28362810100000002,0.28748674100000005,0.29267658100000005,0.29964938600000002]
["- SID Met & Cys:Lys",0.55900000000000005,0.55900000000000005,0.55900000000000005,0.56899999999999995,0.56899999999999995,0.57899999999999996,null,0.55900000000000005,0.55900000000000005,0.55900000000000005,0.56899999999999995,0.56899999999999995,0.57899999999999996,null,0.55900000000000005,0.55900000000000005,0.55900000000000005,0.56899999999999995,0.56899999999999995,0.57899999999999996,null,0.55900000000000005,0.55900000000000005,0.55900000000000005,0.56899999999999995,0.56899999999999995,0.57899999999999996,null,0.55900000000000005,0.55900000000000005,0.55900000000000005,0.56899999999999995,0.56899999999999995,0.57899999999999996,null,0.55900000000000005,0.55900000000000005,0.55900000000000005,0.56899999999999995,0.56899999999999995,0.57899999999999996,null,0.55900000000000005,0.55900000000000005,0.55900000000000005,0.56899999999999995,0.56899999999999995,0.57899999999999996]
["- SID Thr:Lys",0.61899999999999999,0.61899999999999999,0.61899999999999999,0.629,0.629,0.63900000000000001,null,0.61899999999999999,0.61899999999999999,0.61899999999999999,0.629,0.629,0.63900000000000001,null,0.61899999999999999,0.61899999999999999,0.61899999999999999,0.629,0.629,0.63900000000000001,null,0.61899999999999999,0.61899999999999999,0.61899999999999999,0.629,0.629,0.63900000000000001,null,0.61899999999999999,0.61899999999999999,0.61899999999999999,0.629,0.629,0.63900000000000001,null,0.61899999999999999,0.61899999999999999,0.61899999999999999,0.629,0.629,0.63900000000000001,null,0.61899999999999999,0.61899999999999999,0.61899999999999999,0.629,0.629,0.63900000000000001]
["- SID Trp:Lys",0.189,0.189,0.189,0.189,0.189,0.189,null,0.189,0.189,0.189,0.189,0.189,0.189,null,0.189,0.189,0.189,0.189,0.189,0.189,null,0.189,0.189,0.189,0.189,0.189,0.189,null,0.189,0.189,0.189,0.189,0.189,0.189,null,0.189,0.189,0.189,0.189,0.189,0.189,null,0.189,0.189,0.189,0.189,0.189,0.189]
["- SID Val:Lys",0.67900000000000005,0.67900000000000005,0.67900000000000005,0.67900000000000005,0.67900000000000005,0.67900000000000005,null,0.67900000000000005,0.67900000000000005,0.67900000000000005,0.67900000000000005,0.67900000000000005,0.67900000000000005,null,0.67900000000000005,0.67900000000000005,0.67900000000000005,0.67900000000000005,0.67900000000000005,0.67900000000000005,null,0.67900000000000005,0.67900000000000005,0.67900000000000005,0.67900000000000005,0.67900000000000005,0.67900000000000005,null,0.67900000000000005,0.67900000000000005,0.67900000000000005,0.67900000000000005,0.67900000000000005,0.67900000000000005,null,0.67900000000000005,0.67900000000000005,0.67900000000000005,0.67900000000000005,0.67900000000000005,0.67900000000000005,null,0.67900000000000005,0.67900000000000005,0.67900000000000005,0.67900000000000005,0.67900000000000005,0.67900000000000005]
["- SID His:Lys",0.31,0.31,0.31,0.31,0.31,0.31,null,0.31,0.31,0.31,0.31,0.31,0.31,null,0.31,0.31,0.31,0.31,0.31,0.31,null,0.31,0.31,0.31,0.31,0.31,0.31,null,0.31,0.31,0.31,0.31,0.31,0.31,null,0.31,0.31,0.31,0.31,0.31,0.31,null,0.31,0.31,0.31,0.31,0.31,0.31]
["- Avail P:ME, g/mcal (terminal)",{"$f":"IF(AVERAGE(B5:B6)<51,0.000025*((B6+B5)/2)^2 - 0.01005*((B6+B5)/2) + 1.5955,(0.00000649518*((B5+B6)/2)^2 - 0.00338103746*((B5+B6)/2) + 1.049852))","v":0.85122563532500006},0.77153564522499996,0.70381228360000003,0.65170908920000004,0.62039047080000009,0.60988816362500009,null,{"$f":"IF(AVERAGE(I5:I6)<51,0.000025*((I6+I5)/2)^2 - 0.01005*((I6+I5)/2) + 1.5955,(0.00000649518*((I5+I6)/2)^2 - 0.00338103746*((I5+I6)/2) + 1.049852))","v":0.85122563532500006},0.77153564522499996,0.70381228360000003,0.65170908920000004,0.62039047080000009,0.60988816362500009,null,{"$f":"IF(AVERAGE(P5:P6)<51,0.000025*((P6+P5)/2)^2 - 0.01005*((P6+P5)/2) + 1.5955,(0.00000649518*((P5+P6)/2)^2 - 0.00338103746*((P5+P6)/2) + 1.049852))","v":0.85122563532500006},0.77153564522499996,0.70381228360000003,0.65170908920000004,0.62039047080000009,0.60988816362500009,null,{"$f":"IF(AVERAGE(W5:W6)<51,0.000025*((W6+W5)/2)^2 - 0.01005*((W6+W5)/2) + 1.5955,(0.00000649518*((W5+W6)/2)^2 - 0.00338103746*((W5+W6)/2) + 1.049852))","v":0.85122563532500006},0.77153564522499996,0.70381228360000003,0.65170908920000004,0.62039047080000009,0.60988816362500009,null,{"$f":"IF(AVERAGE(AD5:AD6)<51,0.000025*((AD6+AD5)/2)^2 - 0.01005*((AD6+AD5)/2) + 1.5955,(0.00000649518*((AD5+AD6)/2)^2 - 0.00338103746*((AD5+AD6)/2) + 1.049852))","v":0.85122563532500006},0.77153564522499996,0.70381228360000003,0.65170908920000004,0.62039047080000009,0.60988816362500009,null,{"$f":"IF(AVERAGE(AK5:AK6)<51,0.000025*((AK6+AK5)/2)^2 - 0.01005*((AK6+AK5)/2) + 1.5955,(0.00000649518*((AK5+AK6)/2)^2 - 0.00338103746*((AK5+AK6)/2) + 1.049852))","v":0.85122563532500006},0.77153564522499996,0.70381228360000003,0.65170908920000004,0.62039047080000009,0.60988816362500009,null,{"$f":"IF(AVERAGE(AR5:AR6)<51,0.000025*((AR6+AR5)/2)^2 - 0.01005*((AR6+AR5)/2) + 1.5955,(0.00000649518*((AR5+AR6)/2)^2 - 0.00338103746*((AR5+AR6)/2) + 1.049852))","v":0.85122563532500006},0.77153564522499996,0.70381228360000003,0.65170908920000004,0.62039047080000009,0.60988816362500009]
["- Avail P:ME, g/mcal (Replacements)",{"$f":"IF(AVERAGE(B5:B6)<51,0.000025*((B6+B5)/2)^2 - 0.01005*((B6+B5)/2) + 1.5955,0.00000649518*((B6+B5)/2)^2 - 0.00338103746*((B6+B5)/2) + 1.3529)","v":1.154273635325},1.0745836452249999,1.0068602836,0.95475708920000002,0.92343847080000008,0.91293616362500007,null,{"$f":"IF(AVERAGE(I5:I6)<51,0.000025*((I6+I5)/2)^2 - 0.01005*((I6+I5)/2) + 1.5955,0.00000649518*((I6+I5)/2)^2 - 0.00338103746*((I6+I5)/2) + 1.3529)","v":1.154273635325},1.0745836452249999,1.0068602836,0.95475708920000002,0.92343847080000008,0.91293616362500007,null,{"$f":"IF(AVERAGE(P5:P6)<51,0.000025*((P6+P5)/2)^2 - 0.01005*((P6+P5)/2) + 1.5955,0.00000649518*((P6+P5)/2)^2 - 0.00338103746*((P6+P5)/2) + 1.3529)","v":1.154273635325},1.0745836452249999,1.0068602836,0.95475708920000002,0.92343847080000008,0.91293616362500007,null,{"$f":"IF(AVERAGE(W5:W6)<51,0.000025*((W6+W5)/2)^2 - 0.01005*((W6+W5)/2) + 1.5955,0.00000649518*((W6+W5)/2)^2 - 0.00338103746*((W6+W5)/2) + 1.3529)","v":1.154273635325},1.0745836452249999,1.0068602836,0.95475708920000002,0.92343847080000008,0.91293616362500007,null,{"$f":"IF(AVERAGE(AD5:AD6)<51,0.000025*((AD6+AD5)/2)^2 - 0.01005*((AD6+AD5)/2) + 1.5955,0.00000649518*((AD6+AD5)/2)^2 - 0.00338103746*((AD6+AD5)/2) + 1.3529)","v":1.154273635325},1.0745836452249999,1.0068602836,0.95475708920000002,0.92343847080000008,0.91293616362500007,null,{"$f":"IF(AVERAGE(AK5:AK6)<51,0.000025*((AK6+AK5)/2)^2 - 0.01005*((AK6+AK5)/2) + 1.5955,0.00000649518*((AK6+AK5)/2)^2 - 0.00338103746*((AK6+AK5)/2) + 1.3529)","v":1.154273635325},1.0745836452249999,1.0068602836,0.95475708920000002,0.92343847080000008,0.91293616362500007,null,{"$f":"IF(AVERAGE(AR5:AR6)<51,0.000025*((AR6+AR5)/2)^2 - 0.01005*((AR6+AR5)/2) + 1.5955,0.00000649518*((AR6+AR5)/2)^2 - 0.00338103746*((AR6+AR5)/2) + 1.3529)","v":1.154273635325},1.0745836452249999,1.0068602836,0.95475708920000002,0.92343847080000008,0.91293616362500007]
["- Available P, % (Terminal)",{"$f":"B281*(B246*2.2046)/10000","v":0.28053008203811425},0.2550261869451555,0.23325719020912211,0.21659170668863326,0.20667416767087224,0.20336945171913379,null,{"$f":"I281*(I246*2.2046)/10000","v":0.28307156540803879},0.25734302668642206,0.23538356909284666,0.21856409882495495,0.20855123196759132,0.20336945171913379,null,{"$f":"P281*(P246*2.2046)/10000","v":0.28563440985918986},0.25967015644692842,0.23751878544906707,0.22053692635377065,0.21042868579786245,0.20336945171913379,null,{"$f":"W281*(W246*2.2046)/10000","v":0.28821765742521011},0.26202488439689303,0.23966063314276556,0.22253266156130325,0.21233236747940154,0.20336945171913379,null,{"$f":"AD281*(AD246*2.2046)/10000","v":0.29081341843398795},0.26437039540447649,0.24181563291371791,0.224526058357508,0.21419596727049112,0.20336945171913379,null,{"$f":"AK281*(AK246*2.2046)/10000","v":0.29339509056467555},0.26671407970737598,0.24394528358461204,0.22647475583575019,0.21606190883309528,0.20336945171913379,null,{"$f":"AR281*(AR246*2.2046)/10000","v":0.29600674595381743},0.26905374993294684,0.24608467124911007,0.22843130862949415,0.21792789810469809,0.20336945171913379]
["- STTD P, % (Terminal)",{"$f":" -0.096629122*LN(AVERAGE(B5:B6)/2.2046) + 0.7201091526","v":0.38948473530861316},0.34911934963648045,0.31899235830889017,0.29470806575817415,0.27531743264453717,0.25825045546730907,null,{"$f":" -0.096629122*LN(AVERAGE(I5:I6)/2.2046) + 0.7201091526","v":0.38948473530861316},0.34911934963648045,0.31899235830889017,0.29470806575817415,0.27531743264453717,0.25825045546730907,null,{"$f":" -0.096629122*LN(AVERAGE(P5:P6)/2.2046) + 0.7201091526","v":0.38948473530861316},0.34911934963648045,0.31899235830889017,0.29470806575817415,0.27531743264453717,0.25825045546730907,null,{"$f":" -0.096629122*LN(AVERAGE(W5:W6)/2.2046) + 0.7201091526","v":0.38948473530861316},0.34911934963648045,0.31899235830889017,0.29470806575817415,0.27531743264453717,0.25825045546730907,null,{"$f":" -0.096629122*LN(AVERAGE(AD5:AD6)/2.2046) + 0.7201091526","v":0.38948473530861316},0.34911934963648045,0.31899235830889017,0.29470806575817415,0.27531743264453717,0.25825045546730907,null,{"$f":" -0.096629122*LN(AVERAGE(AK5:AK6)/2.2046) + 0.7201091526","v":0.38948473530861316},0.34911934963648045,0.31899235830889017,0.29470806575817415,0.27531743264453717,0.25825045546730907,null,{"$f":" -0.096629122*LN(AVERAGE(AR5:AR6)/2.2046) + 0.7201091526","v":0.38948473530861316},0.34911934963648045,0.31899235830889017,0.29470806575817415,0.27531743264453717,0.25825045546730907]
["- Ca:P, Minimum",1,1,1,1,1,1,null,1,1,1,1,1,1,null,1,1,1,1,1,1,null,1,1,1,1,1,1,null,1,1,1,1,1,1,null,1,1,1,1,1,1,null,1,1,1,1,1,1]
["- Ca:P, Maximum",1.5,1.5,1.5,1.5,1.5,1.5,null,1.5,1.5,1.5,1.5,1.5,1.5,null,1.5,1.5,1.5,1.5,1.5,1.5,null,1.5,1.5,1.5,1.5,1.5,1.5,null,1.5,1.5,1.5,1.5,1.5,1.5,null,1.5,1.5,1.5,1.5,1.5,1.5,null,1.5,1.5,1.5,1.5,1.5,1.5]
["NRC Ca, %",{"$f":"-0.12264*LN(AVERAGE(B5:B6)/2.2046) + 1.07262","v":0.65299724345031629},0.60176619843647083,0.56352954534532851,0.53270834386095811,0.50809808976948001,0.48643697935376851,null,{"$f":"-0.12264*LN(AVERAGE(I5:I6)/2.2046) + 1.07262","v":0.65299724345031629},0.60176619843647083,0.56352954534532851,0.53270834386095811,0.50809808976948001,0.48643697935376851,null,{"$f":"-0.12264*LN(AVERAGE(P5:P6)/2.2046) + 1.07262","v":0.65299724345031629},0.60176619843647083,0.56352954534532851,0.53270834386095811,0.50809808976948001,0.48643697935376851,null,{"$f":"-0.12264*LN(AVERAGE(W5:W6)/2.2046) + 1.07262","v":0.65299724345031629},0.60176619843647083,0.56352954534532851,0.53270834386095811,0.50809808976948001,0.48643697935376851,null,{"$f":"-0.12264*LN(AVERAGE(AD5:AD6)/2.2046) + 1.07262","v":0.65299724345031629},0.60176619843647083,0.56352954534532851,0.53270834386095811,0.50809808976948001,0.48643697935376851,null,{"$f":"-0.12264*LN(AVERAGE(AK5:AK6)/2.2046) + 1.07262","v":0.65299724345031629},0.60176619843647083,0.56352954534532851,0.53270834386095811,0.50809808976948001,0.48643697935376851,null,{"$f":"-0.12264*LN(AVERAGE(AR5:AR6)/2.2046) + 1.07262","v":0.65299724345031629},0.60176619843647083,0.56352954534532851,0.53270834386095811,0.50809808976948001,0.48643697935376851]
["NRC STTD P, %",0.4,0.36,0.32,0.28999999999999998,0.27,0.26,null,0.4,0.36,0.32,0.28999999999999998,0.27,0.26,null,0.4,0.36,0.32,0.28999999999999998,0.27,0.26,null,0.4,0.36,0.32,0.28999999999999998,0.27,0.26,null,0.4,0.36,0.32,0.28999999999999998,0.27,0.26,null,0.4,0.36,0.32,0.28999999999999998,0.27,0.26,null,0.4,0.36,0.32,0.28999999999999998,0.27,0.26]
["NRC Ca:STTD P",1.74,1.74,1.79,1.79,1.77,1.77,null,1.74,1.74,1.79,1.79,1.77,1.77,null,1.74,1.74,1.79,1.79,1.77,1.77,null,1.74,1.74,1.79,1.79,1.77,1.77,null,1.74,1.74,1.79,1.79,1.77,1.77,null,1.74,1.74,1.79,1.79,1.77,1.77,null,1.74,1.74,1.79,1.79,1.77,1.77]
["- Lysine:CP, Maximum",7.3,8.3000000000000007,9.3000000000000007,10.3,11.3,11.3,null,7.3,8.3000000000000007,9.3000000000000007,10.3,11.3,11.3,null,7.3,8.3000000000000007,9.3000000000000007,10.3,11.3,11.3,null,7.3,8.3000000000000007,9.3000000000000007,10.3,11.3,11.3,null,7.3,8.3000000000000007,9.3000000000000007,10.3,11.3,11.3,null,7.3,8.3000000000000007,9.3000000000000007,10.3,11.3,11.3,null,7.3,8.3000000000000007,9.3000000000000007,10.3,11.3,11.3]
[]
["Required SID Lys:ME Ratio",{"$f":"IF(AVERAGE(B5:B6)<15,-0.0525*((B5+B6)/2) + 5.0586,IF(AVERAGE(B5:B6)<50,(-0.007855*((B5+B6)/2) + 4.1),(0.000025*((B5+B6)/2)^2 - 0.016*((B5+B6)/2)+ 4.53)*0.87))","v":3.1005984375},2.7428109375000003,2.4186000000000001,2.1402000000000005,1.9314000000000002,1.7858109375,null,{"$f":"IF(AVERAGE(I5:I6)<15,-0.0525*((I5+I6)/2) + 5.0586,IF(AVERAGE(I5:I6)<50,(-0.007855*((I5+I6)/2) + 4.1),(0.000025*((I5+I6)/2)^2 - 0.016*((I5+I6)/2)+ 4.53)*0.87))","v":3.1005984375},2.7428109375000003,2.4186000000000001,2.1402000000000005,1.9314000000000002,1.7858109375,null,{"$f":"IF(AVERAGE(P5:P6)<15,-0.0525*((P5+P6)/2) + 5.0586,IF(AVERAGE(P5:P6)<50,(-0.007855*((P5+P6)/2) + 4.1),(0.000025*((P5+P6)/2)^2 - 0.016*((P5+P6)/2)+ 4.53)*0.87))","v":3.1005984375},2.7428109375000003,2.4186000000000001,2.1402000000000005,1.9314000000000002,1.7858109375,null,{"$f":"IF(AVERAGE(W5:W6)<15,-0.0525*((W5+W6)/2) + 5.0586,IF(AVERAGE(W5:W6)<50,(-0.007855*((W5+W6)/2) + 4.1),(0.000025*((W5+W6)/2)^2 - 0.016*((W5+W6)/2)+ 4.53)*0.87))","v":3.1005984375},2.7428109375000003,2.4186000000000001,2.1402000000000005,1.9314000000000002,1.7858109375,null,{"$f":"IF(AVERAGE(AD5:AD6)<15,-0.0525*((AD5+AD6)/2) + 5.0586,IF(AVERAGE(AD5:AD6)<50,(-0.007855*((AD5+AD6)/2) + 4.1),(0.000025*((AD5+AD6)/2)^2 - 0.016*((AD5+AD6)/2)+ 4.53)*0.87))","v":3.1005984375},2.7428109375000003,2.4186000000000001,2.1402000000000005,1.9314000000000002,1.7858109375,null,{"$f":"IF(AVERAGE(AK5:AK6)<15,-0.0525*((AK5+AK6)/2) + 5.0586,IF(AVERAGE(AK5:AK6)<50,(-0.007855*((AK5+AK6)/2) + 4.1),(0.000025*((AK5+AK6)/2)^2 - 0.016*((AK5+AK6)/2)+ 4.53)*0.87))","v":3.1005984375},2.7428109375000003,2.4186000000000001,2.1402000000000005,1.9314000000000002,1.7858109375,null,{"$f":"IF(AVERAGE(AR5:AR6)<15,-0.0525*((AR5+AR6)/2) + 5.0586,IF(AVERAGE(AR5:AR6)<50,(-0.007855*((AR5+AR6)/2) + 4.1),(0.000025*((AR5+AR6)/2)^2 - 0.016*((AR5+AR6)/2)+ 4.53)*0.87))","v":3.1005984375},2.7428109375000003,2.4186000000000001,2.1402000000000005,1.9314000000000002,1.7858109375]
["Calculated SID Lysine Required, %",{"$f":"IF(B292=\"\",\"\",B246*2.2046*B292/10000)","v":1.0218338099122541},0.90661866270365665,0.80157146072263108,0.71128296096658616,0.64341814748506398,0.5954852264631163,null,{"$f":"IF(I292=\"\",\"\",I246*2.2046*I292/10000)","v":1.0310911901398969},0.91485503314500838,0.80887860793789501,0.71776025846037672,0.64926182522242237,0.5954852264631163,null,{"$f":"IF(P292=\"\",\"\",P246*2.2046*P292/10000)","v":1.0404263783332841},0.92312798462768075,0.81621612448810299,0.72423898577466694,0.65510671565587741,0.5954852264631163,null,{"$f":"IF(W292=\"\",\"\",W246*2.2046*W292/10000)","v":1.0498358850897622},0.93149904773535652,0.82357642914985463,0.73079294146125173,0.66103325865223161,0.5954852264631163,null,{"$f":"IF(AD292=\"\",\"\",AD246*2.2046*AD292/10000)","v":1.0592909721946839},0.93983734459233514,0.83098192997369003,0.73733921785042167,0.66683501868228001,0.5954852264631163,null,{"$f":"IF(AK292=\"\",\"\",AK246*2.2046*AK292/10000)","v":1.0686947404111933},0.94816914751009318,0.83830032044888669,0.74373870254696561,0.67264406911686592,0.5954852264631163,null,{"$f":"IF(AR292=\"\",\"\",AR246*2.2046*AR292/10000)","v":1.0782077229657776},0.95648668037400553,0.84565217139824544,0.75016398394715456,0.67845326807913608,0.5954852264631163]
[]
[]
["Other nutrients, calculated"]
["Other ingredients TID Lysine, %",{"$f":"SUMPRODUCT(B$9:B$229,Nutrients!$DA$8:$DA$228)/2000","v":0.35459999999999997},{"$f":"SUMPRODUCT(C$9:C$229,Nutrients!$DA$8:$DA$228)/2000","v":0.31519999999999998},{"$f":"SUMPRODUCT(D$9:D$229,Nutrients!$DA$8:$DA$228)/2000","v":0.27579999999999999},{"$f":"SUMPRODUCT(E$9:E$229,Nutrients!$DA$8:$DA$228)/2000","v":0.25692384707729665},{"$f":"SUMPRODUCT(F$9:F$229,Nutrients!$DA$8:$DA$228)/2000","v":0.25692384707729665},{"$f":"SUMPRODUCT(G$9:G$229,Nutrients!$DA$8:$DA$228)/2000","v":0.25692384707729665},null,{"$f":"SUMPRODUCT(I$9:I$229,Nutrients!$DA$8:$DA$228)/2000","v":0.39727200000000001},{"$f":"SUMPRODUCT(J$9:J$229,Nutrients!$DA$8:$DA$228)/2000","v":0.35787200000000002},{"$f":"SUMPRODUCT(K$9:K$229,Nutrients!$DA$8:$DA$228)/2000","v":0.31847199999999998},{"$f":"SUMPRODUCT(L$9:L$229,Nutrients!$DA$8:$DA$228)/2000","v":0.2995958470772967},{"$f":"SUMPRODUCT(M$9:M$229,Nutrients!$DA$8:$DA$228)/2000","v":0.2995958470772967},{"$f":"SUMPRODUCT(N$9:N$229,Nutrients!$DA$8:$DA$228)/2000","v":0.25692384707729665},null,{"$f":"SUMPRODUCT(P$9:P$229,Nutrients!$DA$8:$DA$228)/2000","v":0.43994399999999995},{"$f":"SUMPRODUCT(Q$9:Q$229,Nutrients!$DA$8:$DA$228)/2000","v":0.40054399999999996},{"$f":"SUMPRODUCT(R$9:R$229,Nutrients!$DA$8:$DA$228)/2000","v":0.36114400000000002},{"$f":"SUMPRODUCT(S$9:S$229,Nutrients!$DA$8:$DA$228)/2000","v":0.34226784707729668},{"$f":"SUMPRODUCT(T$9:T$229,Nutrients!$DA$8:$DA$228)/2000","v":0.34226784707729668},{"$f":"SUMPRODUCT(U$9:U$229,Nutrients!$DA$8:$DA$228)/2000","v":0.25692384707729665},null,{"$f":"SUMPRODUCT(W$9:W$229,Nutrients!$DA$8:$DA$228)/2000","v":0.48261599999999993},{"$f":"SUMPRODUCT(X$9:X$229,Nutrients!$DA$8:$DA$228)/2000","v":0.44321599999999994},{"$f":"SUMPRODUCT(Y$9:Y$229,Nutrients!$DA$8:$DA$228)/2000","v":0.40381599999999995},{"$f":"SUMPRODUCT(Z$9:Z$229,Nutrients!$DA$8:$DA$228)/2000","v":0.38493984707729662},{"$f":"SUMPRODUCT(AA$9:AA$229,Nutrients!$DA$8:$DA$228)/2000","v":0.38493984707729662},{"$f":"SUMPRODUCT(AB$9:AB$229,Nutrients!$DA$8:$DA$228)/2000","v":0.25692384707729665},null,{"$f":"SUMPRODUCT(AD$9:AD$229,Nutrients!$DA$8:$DA$228)/2000","v":0.52528799999999998},{"$f":"SUMPRODUCT(AE$9:AE$229,Nutrients!$DA$8:$DA$228)/2000","v":0.48588799999999999},{"$f":"SUMPRODUCT(AF$9:AF$229,Nutrients!$DA$8:$DA$228)/2000","v":0.44648799999999994},{"$f":"SUMPRODUCT(AG$9:AG$229,Nutrients!$DA$8:$DA$228)/2000","v":0.42761184707729666},{"$f":"SUMPRODUCT(AH$9:AH$229,Nutrients!$DA$8:$DA$228)/2000","v":0.42761184707729666},{"$f":"SUMPRODUCT(AI$9:AI$229,Nutrients!$DA$8:$DA$228)/2000","v":0.25692384707729665},null,{"$f":"SUMPRODUCT(AK$9:AK$229,Nutrients!$DA$8:$DA$228)/2000","v":0.56795999999999991},{"$f":"SUMPRODUCT(AL$9:AL$229,Nutrients!$DA$8:$DA$228)/2000","v":0.52855999999999992},{"$f":"SUMPRODUCT(AM$9:AM$229,Nutrients!$DA$8:$DA$228)/2000","v":0.48915999999999998},{"$f":"SUMPRODUCT(AN$9:AN$229,Nutrients!$DA$8:$DA$228)/2000","v":0.47028384707729665},{"$f":"SUMPRODUCT(AO$9:AO$229,Nutrients!$DA$8:$DA$228)/2000","v":0.47028384707729665},{"$f":"SUMPRODUCT(AP$9:AP$229,Nutrients!$DA$8:$DA$228)/2000","v":0.25692384707729665},null,{"$f":"SUMPRODUCT(AR$9:AR$229,Nutrients!$DA$8:$DA$228)/2000","v":0.61063199999999995},{"$f":"SUMPRODUCT(AS$9:AS$229,Nutrients!$DA$8:$DA$228)/2000","v":0.57123199999999996},{"$f":"SUMPRODUCT(AT$9:AT$229,Nutrients!$DA$8:$DA$228)/2000","v":0.53183199999999997},{"$f":"SUMPRODUCT(AU$9:AU$229,Nutrients!$DA$8:$DA$228)/2000","v":0.51295584707729669},{"$f":"SUMPRODUCT(AV$9:AV$229,Nutrients!$DA$8:$DA$228)/2000","v":0.51295584707729669},{"$f":"SUMPRODUCT(AW$9:AW$229,Nutrients!$DA$8:$DA$228)/2000","v":0.25692384707729665}]
["Total Lys:ME, g/mcal",{"$f":"IF(B$5=\"\",\"\",B245/(B246*2.2046)*10000)","v":4.0004918161487684},3.5419410134415341,3.1391303590347972,2.8010240180887811,2.5643124869082041,2.4347307257524458,null,{"$f":"IF(I$5=\"\",\"\",I245/(I246*2.2046)*10000)","v":3.9909187882093167},3.5362972506100401,3.1369572557269727,2.8018497235714168,2.5672740062992552,2.4347307257524458,null,{"$f":"IF(P$5=\"\",\"\",P245/(P246*2.2046)*10000)","v":3.9812048290036857},3.5306165210678899,3.1346924065223649,2.8026517172586285,2.5701779885294318,2.4347307257524458,null,{"$f":"IF(W$5=\"\",\"\",W245/(W246*2.2046)*10000)","v":3.9713871747430769},3.5246668849889673,3.1323895644931188,2.8031481994177971,2.57269719881005,2.4347307257524458,null,{"$f":"IF(AD$5=\"\",\"\",AD245/(AD246*2.2046)*10000)","v":3.9615654530128719},3.5189496531504854,3.1299479384293605,2.8036603391027048,2.5754959234331962,2.4347307257524458,null,{"$f":"IF(AK$5=\"\",\"\",AK245/(AK246*2.2046)*10000)","v":3.9521016006755469},3.5133454040306047,3.1278782305228909,2.8045787316589523,2.5781756753227372,2.4347307257524458,null,{"$f":"IF(AR$5=\"\",\"\",AR245/(AR246*2.2046)*10000)","v":3.9423930216202354},3.5078895611306744,3.125694087883621,2.8053198652345319,2.5808089433217916,2.4347307257524458]
["SID Lys:ME, g/mcal",{"$f":"IF(B$5=\"\",\"\",B236/(B246*2.2046)*10000)","v":3.5990753406176657},3.1727222375948116,2.7968342544845632,2.4855813058752307,2.2715388971881016,2.1544027583542169,null,{"$f":"IF(I$5=\"\",\"\",I236/(I246*2.2046)*10000)","v":3.5667619921819083},3.1441584600458028,2.7715685601842632,2.463150627423218,2.2510939229614184,2.1544027583542169,null,{"$f":"IF(P$5=\"\",\"\",P236/(P246*2.2046)*10000)","v":3.5347593487162761},3.1159809258068383,2.7466530634545916,2.4411163520492831,2.231009565679333,2.1544027583542169,null,{"$f":"IF(W$5=\"\",\"\",W236/(W246*2.2046)*10000)","v":3.5030778807395677},3.0879786717673321,2.722106217974777,2.419223737206647,2.2110072829753817,2.1544027583542169,null,{"$f":"IF(AD$5=\"\",\"\",AD236/(AD246*2.2046)*10000)","v":3.4718098841577665},3.0605819280633639,2.6978474957178222,2.3977452821786271,2.1917705402712251,2.1544027583542169,null,{"$f":"IF(AK$5=\"\",\"\",AK236/(AK246*2.2046)*10000)","v":3.4412603790391723},3.0336878179721007,2.674295194788697,2.3771139311584841,2.172842096248532,2.1544027583542169,null,{"$f":"IF(AR$5=\"\",\"\",AR236/(AR246*2.2046)*10000)","v":3.4108982797383671},3.0073071075632876,2.6510456598952148,2.3567535482890785,2.1542373188164161,2.1544027583542169]
["Lysine:CP",{"$f":"B245/B253*100","v":6.8677028806815752},6.6830941302046103,6.4644027164582063,6.3149371296786221,6.2696154239212527,6.2402437601749243,null,{"$f":"I245/I253*100","v":6.7722097781263129},6.5822068163990028,6.3582822897883053,6.2044342345478212,6.152510497066749,6.2402437601749243,null,{"$f":"P245/P253*100","v":6.6797140853702777},6.4846993710644023,6.2572436185690128,6.0983462661466374,6.0407592095446754,6.2402437601749243,null,{"$f":"W245/W253*100","v":6.590774380423742},6.390861850261782,6.1606787077645384,5.9961911696384798,5.9302708221458067,6.2402437601749243,null,{"$f":"AD245/AD253*100","v":6.5042317008935315},6.3011959018750865,6.0672304226469134,5.8985026531687517,5.8278642618027874,6.2402437601749243,null,{"$f":"AK245/AK253*100","v":6.4212832626708405},6.2149535786526355,5.9792517659025028,5.8059182301015424,5.7313552148282536,6.2402437601749243,null,{"$f":"AR245/AR253*100","v":6.3413317579288835},6.1312940027142702,5.8923331530486625,5.718507070088326,5.6397500032628685,6.2402437601749243]
["Crude fat, %",{"$f":"(SUMPRODUCT(B$9:B$229,Nutrients!$K$8:$K$228)+(IF($A$7=Nutrients!$B$8,Nutrients!$K$8,Nutrients!$K$9)*B$7)+(((IF($A$8=Nutrients!$B$79,Nutrients!$K$79,(IF($A$8=Nutrients!$B$77,Nutrients!$K$77,Nutrients!$K$78)))))*B$8))/2000","v":2.8430787934788264},{"$f":"(SUMPRODUCT(C$9:C$229,Nutrients!$K$8:$K$228)+(IF($A$7=Nutrients!$B$8,Nutrients!$K$8,Nutrients!$K$9)*C$7)+(((IF($A$8=Nutrients!$B$79,Nutrients!$K$79,(IF($A$8=Nutrients!$B$77,Nutrients!$K$77,Nutrients!$K$78)))))*C$8))/2000","v":2.9356906063346426},{"$f":"(SUMPRODUCT(D$9:D$229,Nutrients!$K$8:$K$228)+(IF($A$7=Nutrients!$B$8,Nutrients!$K$8,Nutrients!$K$9)*D$7)+(((IF($A$8=Nutrients!$B$79,Nutrients!$K$79,(IF($A$8=Nutrients!$B$77,Nutrients!$K$77,Nutrients!$K$78)))))*D$8))/2000","v":3.0150158948020342},{"$f":"(SUMPRODUCT(E$9:E$229,Nutrients!$K$8:$K$228)+(IF($A$7=Nutrients!$B$8,Nutrients!$K$8,Nutrients!$K$9)*E$7)+(((IF($A$8=Nutrients!$B$79,Nutrients!$K$79,(IF($A$8=Nutrients!$B$77,Nutrients!$K$77,Nutrients!$K$78)))))*E$8))/2000","v":3.0897558386383324},{"$f":"(SUMPRODUCT(F$9:F$229,Nutrients!$K$8:$K$228)+(IF($A$7=Nutrients!$B$8,Nutrients!$K$8,Nutrients!$K$9)*F$7)+(((IF($A$8=Nutrients!$B$79,Nutrients!$K$79,(IF($A$8=Nutrients!$B$77,Nutrients!$K$77,Nutrients!$K$78)))))*F$8))/2000","v":3.1512333335874807},{"$f":"(SUMPRODUCT(G$9:G$229,Nutrients!$K$8:$K$228)+(IF($A$7=Nutrients!$B$8,Nutrients!$K$8,Nutrients!$K$9)*G$7)+(((IF($A$8=Nutrients!$B$79,Nutrients!$K$79,(IF($A$8=Nutrients!$B$77,Nutrients!$K$77,Nutrients!$K$78)))))*G$8))/2000","v":3.1836624192329586},null,{"$f":"(SUMPRODUCT(I$9:I$229,Nutrients!$K$8:$K$228)+(IF($A$7=Nutrients!$B$8,Nutrients!$K$8,Nutrients!$K$9)*I$7)+(((IF($A$8=Nutrients!$B$79,Nutrients!$K$79,(IF($A$8=Nutrients!$B$77,Nutrients!$K$77,Nutrients!$K$78)))))*I$8))/2000","v":3.7545037280099876},{"$f":"(SUMPRODUCT(J$9:J$229,Nutrients!$K$8:$K$228)+(IF($A$7=Nutrients!$B$8,Nutrients!$K$8,Nutrients!$K$9)*J$7)+(((IF($A$8=Nutrients!$B$79,Nutrients!$K$79,(IF($A$8=Nutrients!$B$77,Nutrients!$K$77,Nutrients!$K$78)))))*J$8))/2000","v":3.852858417655737},{"$f":"(SUMPRODUCT(K$9:K$229,Nutrients!$K$8:$K$228)+(IF($A$7=Nutrients!$B$8,Nutrients!$K$8,Nutrients!$K$9)*K$7)+(((IF($A$8=Nutrients!$B$79,Nutrients!$K$79,(IF($A$8=Nutrients!$B$77,Nutrients!$K$77,Nutrients!$K$78)))))*K$8))/2000","v":3.9273066414676694},{"$f":"(SUMPRODUCT(L$9:L$229,Nutrients!$K$8:$K$228)+(IF($A$7=Nutrients!$B$8,Nutrients!$K$8,Nutrients!$K$9)*L$7)+(((IF($A$8=Nutrients!$B$79,Nutrients!$K$79,(IF($A$8=Nutrients!$B$77,Nutrients!$K$77,Nutrients!$K$78)))))*L$8))/2000","v":4.0073021325352087},{"$f":"(SUMPRODUCT(M$9:M$229,Nutrients!$K$8:$K$228)+(IF($A$7=Nutrients!$B$8,Nutrients!$K$8,Nutrients!$K$9)*M$7)+(((IF($A$8=Nutrients!$B$79,Nutrients!$K$79,(IF($A$8=Nutrients!$B$77,Nutrients!$K$77,Nutrients!$K$78)))))*M$8))/2000","v":4.0702933150083371},{"$f":"(SUMPRODUCT(N$9:N$229,Nutrients!$K$8:$K$228)+(IF($A$7=Nutrients!$B$8,Nutrients!$K$8,Nutrients!$K$9)*N$7)+(((IF($A$8=Nutrients!$B$79,Nutrients!$K$79,(IF($A$8=Nutrients!$B$77,Nutrients!$K$77,Nutrients!$K$78)))))*N$8))/2000","v":3.1836624192329586},null,{"$f":"(SUMPRODUCT(P$9:P$229,Nutrients!$K$8:$K$228)+(IF($A$7=Nutrients!$B$8,Nutrients!$K$8,Nutrients!$K$9)*P$7)+(((IF($A$8=Nutrients!$B$79,Nutrients!$K$79,(IF($A$8=Nutrients!$B$77,Nutrients!$K$77,Nutrients!$K$78)))))*P$8))/2000","v":4.6699211391159769},{"$f":"(SUMPRODUCT(Q$9:Q$229,Nutrients!$K$8:$K$228)+(IF($A$7=Nutrients!$B$8,Nutrients!$K$8,Nutrients!$K$9)*Q$7)+(((IF($A$8=Nutrients!$B$79,Nutrients!$K$79,(IF($A$8=Nutrients!$B$77,Nutrients!$K$77,Nutrients!$K$78)))))*Q$8))/2000","v":4.7684600330317926},{"$f":"(SUMPRODUCT(R$9:R$229,Nutrients!$K$8:$K$228)+(IF($A$7=Nutrients!$B$8,Nutrients!$K$8,Nutrients!$K$9)*R$7)+(((IF($A$8=Nutrients!$B$79,Nutrients!$K$79,(IF($A$8=Nutrients!$B$77,Nutrients!$K$77,Nutrients!$K$78)))))*R$8))/2000","v":4.8445751107378179},{"$f":"(SUMPRODUCT(S$9:S$229,Nutrients!$K$8:$K$228)+(IF($A$7=Nutrients!$B$8,Nutrients!$K$8,Nutrients!$K$9)*S$7)+(((IF($A$8=Nutrients!$B$79,Nutrients!$K$79,(IF($A$8=Nutrients!$B$77,Nutrients!$K$77,Nutrients!$K$78)))))*S$8))/2000","v":4.9226741180700433},{"$f":"(SUMPRODUCT(T$9:T$229,Nutrients!$K$8:$K$228)+(IF($A$7=Nutrients!$B$8,Nutrients!$K$8,Nutrients!$K$9)*T$7)+(((IF($A$8=Nutrients!$B$79,Nutrients!$K$79,(IF($A$8=Nutrients!$B$77,Nutrients!$K$77,Nutrients!$K$78)))))*T$8))/2000","v":4.9873365797615312},{"$f":"(SUMPRODUCT(U$9:U$229,Nutrients!$K$8:$K$228)+(IF($A$7=Nutrients!$B$8,Nutrients!$K$8,Nutrients!$K$9)*U$7)+(((IF($A$8=Nutrients!$B$79,Nutrients!$K$79,(IF($A$8=Nutrients!$B$77,Nutrients!$K$77,Nutrients!$K$78)))))*U$8))/2000","v":3.1836624192329586},null,{"$f":"(SUMPRODUCT(W$9:W$229,Nutrients!$K$8:$K$228)+(IF($A$7=Nutrients!$B$8,Nutrients!$K$8,Nutrients!$K$9)*W$7)+(((IF($A$8=Nutrients!$B$79,Nutrients!$K$79,(IF($A$8=Nutrients!$B$77,Nutrients!$K$77,Nutrients!$K$78)))))*W$8))/2000","v":5.5868843038431528},{"$f":"(SUMPRODUCT(X$9:X$229,Nutrients!$K$8:$K$228)+(IF($A$7=Nutrients!$B$8,Nutrients!$K$8,Nutrients!$K$9)*X$7)+(((IF($A$8=Nutrients!$B$79,Nutrients!$K$79,(IF($A$8=Nutrients!$B$77,Nutrients!$K$77,Nutrients!$K$78)))))*X$8))/2000","v":5.6864957912272311},{"$f":"(SUMPRODUCT(Y$9:Y$229,Nutrients!$K$8:$K$228)+(IF($A$7=Nutrients!$B$8,Nutrients!$K$8,Nutrients!$K$9)*Y$7)+(((IF($A$8=Nutrients!$B$79,Nutrients!$K$79,(IF($A$8=Nutrients!$B$77,Nutrients!$K$77,Nutrients!$K$78)))))*Y$8))/2000","v":5.7602177230741081},{"$f":"(SUMPRODUCT(Z$9:Z$229,Nutrients!$K$8:$K$228)+(IF($A$7=Nutrients!$B$8,Nutrients!$K$8,Nutrients!$K$9)*Z$7)+(((IF($A$8=Nutrients!$B$79,Nutrients!$K$79,(IF($A$8=Nutrients!$B$77,Nutrients!$K$77,Nutrients!$K$78)))))*Z$8))/2000","v":5.8393903190894196},{"$f":"(SUMPRODUCT(AA$9:AA$229,Nutrients!$K$8:$K$228)+(IF($A$7=Nutrients!$B$8,Nutrients!$K$8,Nutrients!$K$9)*AA$7)+(((IF($A$8=Nutrients!$B$79,Nutrients!$K$79,(IF($A$8=Nutrients!$B$77,Nutrients!$K$77,Nutrients!$K$78)))))*AA$8))/2000","v":5.9010593459188012},{"$f":"(SUMPRODUCT(AB$9:AB$229,Nutrients!$K$8:$K$228)+(IF($A$7=Nutrients!$B$8,Nutrients!$K$8,Nutrients!$K$9)*AB$7)+(((IF($A$8=Nutrients!$B$79,Nutrients!$K$79,(IF($A$8=Nutrients!$B$77,Nutrients!$K$77,Nutrients!$K$78)))))*AB$8))/2000","v":3.1836624192329586},null,{"$f":"(SUMPRODUCT(AD$9:AD$229,Nutrients!$K$8:$K$228)+(IF($A$7=Nutrients!$B$8,Nutrients!$K$8,Nutrients!$K$9)*AD$7)+(((IF($A$8=Nutrients!$B$79,Nutrients!$K$79,(IF($A$8=Nutrients!$B$77,Nutrients!$K$77,Nutrients!$K$78)))))*AD$8))/2000","v":6.5044358882885929},{"$f":"(SUMPRODUCT(AE$9:AE$229,Nutrients!$K$8:$K$228)+(IF($A$7=Nutrients!$B$8,Nutrients!$K$8,Nutrients!$K$9)*AE$7)+(((IF($A$8=Nutrients!$B$79,Nutrients!$K$79,(IF($A$8=Nutrients!$B$77,Nutrients!$K$77,Nutrients!$K$78)))))*AE$8))/2000","v":6.6026520821971788},{"$f":"(SUMPRODUCT(AF$9:AF$229,Nutrients!$K$8:$K$228)+(IF($A$7=Nutrients!$B$8,Nutrients!$K$8,Nutrients!$K$9)*AF$7)+(((IF($A$8=Nutrients!$B$79,Nutrients!$K$79,(IF($A$8=Nutrients!$B$77,Nutrients!$K$77,Nutrients!$K$78)))))*AF$8))/2000","v":6.6768519969750972},{"$f":"(SUMPRODUCT(AG$9:AG$229,Nutrients!$K$8:$K$228)+(IF($A$7=Nutrients!$B$8,Nutrients!$K$8,Nutrients!$K$9)*AG$7)+(((IF($A$8=Nutrients!$B$79,Nutrients!$K$79,(IF($A$8=Nutrients!$B$77,Nutrients!$K$77,Nutrients!$K$78)))))*AG$8))/2000","v":6.7548314185939686},{"$f":"(SUMPRODUCT(AH$9:AH$229,Nutrients!$K$8:$K$228)+(IF($A$7=Nutrients!$B$8,Nutrients!$K$8,Nutrients!$K$9)*AH$7)+(((IF($A$8=Nutrients!$B$79,Nutrients!$K$79,(IF($A$8=Nutrients!$B$77,Nutrients!$K$77,Nutrients!$K$78)))))*AH$8))/2000","v":6.851493144723106},{"$f":"(SUMPRODUCT(AI$9:AI$229,Nutrients!$K$8:$K$228)+(IF($A$7=Nutrients!$B$8,Nutrients!$K$8,Nutrients!$K$9)*AI$7)+(((IF($A$8=Nutrients!$B$79,Nutrients!$K$79,(IF($A$8=Nutrients!$B$77,Nutrients!$K$77,Nutrients!$K$78)))))*AI$8))/2000","v":3.1836624192329586},null,{"$f":"(SUMPRODUCT(AK$9:AK$229,Nutrients!$K$8:$K$228)+(IF($A$7=Nutrients!$B$8,Nutrients!$K$8,Nutrients!$K$9)*AK$7)+(((IF($A$8=Nutrients!$B$79,Nutrients!$K$79,(IF($A$8=Nutrients!$B$77,Nutrients!$K$77,Nutrients!$K$78)))))*AK$8))/2000","v":7.4223440189802972},{"$f":"(SUMPRODUCT(AL$9:AL$229,Nutrients!$K$8:$K$228)+(IF($A$7=Nutrients!$B$8,Nutrients!$K$8,Nutrients!$K$9)*AL$7)+(((IF($A$8=Nutrients!$B$79,Nutrients!$K$79,(IF($A$8=Nutrients!$B$77,Nutrients!$K$77,Nutrients!$K$78)))))*AL$8))/2000","v":7.5206296380942304},{"$f":"(SUMPRODUCT(AM$9:AM$229,Nutrients!$K$8:$K$228)+(IF($A$7=Nutrients!$B$8,Nutrients!$K$8,Nutrients!$K$9)*AM$7)+(((IF($A$8=Nutrients!$B$79,Nutrients!$K$79,(IF($A$8=Nutrients!$B$77,Nutrients!$K$77,Nutrients!$K$78)))))*AM$8))/2000","v":7.5923347500274998},{"$f":"(SUMPRODUCT(AN$9:AN$229,Nutrients!$K$8:$K$228)+(IF($A$7=Nutrients!$B$8,Nutrients!$K$8,Nutrients!$K$9)*AN$7)+(((IF($A$8=Nutrients!$B$79,Nutrients!$K$79,(IF($A$8=Nutrients!$B$77,Nutrients!$K$77,Nutrients!$K$78)))))*AN$8))/2000","v":7.6970716682702944},{"$f":"(SUMPRODUCT(AO$9:AO$229,Nutrients!$K$8:$K$228)+(IF($A$7=Nutrients!$B$8,Nutrients!$K$8,Nutrients!$K$9)*AO$7)+(((IF($A$8=Nutrients!$B$79,Nutrients!$K$79,(IF($A$8=Nutrients!$B$77,Nutrients!$K$77,Nutrients!$K$78)))))*AO$8))/2000","v":7.8145327962651105},{"$f":"(SUMPRODUCT(AP$9:AP$229,Nutrients!$K$8:$K$228)+(IF($A$7=Nutrients!$B$8,Nutrients!$K$8,Nutrients!$K$9)*AP$7)+(((IF($A$8=Nutrients!$B$79,Nutrients!$K$79,(IF($A$8=Nutrients!$B$77,Nutrients!$K$77,Nutrients!$K$78)))))*AP$8))/2000","v":3.1836624192329586},null,{"$f":"(SUMPRODUCT(AR$9:AR$229,Nutrients!$K$8:$K$228)+(IF($A$7=Nutrients!$B$8,Nutrients!$K$8,Nutrients!$K$9)*AR$7)+(((IF($A$8=Nutrients!$B$79,Nutrients!$K$79,(IF($A$8=Nutrients!$B$77,Nutrients!$K$77,Nutrients!$K$78)))))*AR$8))/2000","v":8.3467354795864441},{"$f":"(SUMPRODUCT(AS$9:AS$229,Nutrients!$K$8:$K$228)+(IF($A$7=Nutrients!$B$8,Nutrients!$K$8,Nutrients!$K$9)*AS$7)+(((IF($A$8=Nutrients!$B$79,Nutrients!$K$79,(IF($A$8=Nutrients!$B$77,Nutrients!$K$77,Nutrients!$K$78)))))*AS$8))/2000","v":8.4355819109671497},{"$f":"(SUMPRODUCT(AT$9:AT$229,Nutrients!$K$8:$K$228)+(IF($A$7=Nutrients!$B$8,Nutrients!$K$8,Nutrients!$K$9)*AT$7)+(((IF($A$8=Nutrients!$B$79,Nutrients!$K$79,(IF($A$8=Nutrients!$B$77,Nutrients!$K$77,Nutrients!$K$78)))))*AT$8))/2000","v":8.5064418643260602},{"$f":"(SUMPRODUCT(AU$9:AU$229,Nutrients!$K$8:$K$228)+(IF($A$7=Nutrients!$B$8,Nutrients!$K$8,Nutrients!$K$9)*AU$7)+(((IF($A$8=Nutrients!$B$79,Nutrients!$K$79,(IF($A$8=Nutrients!$B$77,Nutrients!$K$77,Nutrients!$K$78)))))*AU$8))/2000","v":8.6593850346017085},{"$f":"(SUMPRODUCT(AV$9:AV$229,Nutrients!$K$8:$K$228)+(IF($A$7=Nutrients!$B$8,Nutrients!$K$8,Nutrients!$K$9)*AV$7)+(((IF($A$8=Nutrients!$B$79,Nutrients!$K$79,(IF($A$8=Nutrients!$B$77,Nutrients!$K$77,Nutrients!$K$78)))))*AV$8))/2000","v":8.7775901650738835},{"$f":"(SUMPRODUCT(AW$9:AW$229,Nutrients!$K$8:$K$228)+(IF($A$7=Nutrients!$B$8,Nutrients!$K$8,Nutrients!$K$9)*AW$7)+(((IF($A$8=Nutrients!$B$79,Nutrients!$K$79,(IF($A$8=Nutrients!$B$77,Nutrients!$K$77,Nutrients!$K$78)))))*AW$8))/2000","v":3.1836624192329586}]
["Crude fiber, %",{"$f":"(SUMPRODUCT(B$9:B$229,Nutrients!$J$8:$J$228)+(IF($A$7=Nutrients!$B$8,Nutrients!$J$8,Nutrients!$J$9)*B$7)+(((IF($A$8=Nutrients!$B$79,Nutrients!$J$79,(IF($A$8=Nutrients!$B$77,Nutrients!$J$77,Nutrients!$J$78)))))*B$8))/2000","v":2.4236304403667859},{"$f":"(SUMPRODUCT(C$9:C$229,Nutrients!$J$8:$J$228)+(IF($A$7=Nutrients!$B$8,Nutrients!$J$8,Nutrients!$J$9)*C$7)+(((IF($A$8=Nutrients!$B$79,Nutrients!$J$79,(IF($A$8=Nutrients!$B$77,Nutrients!$J$77,Nutrients!$J$78)))))*C$8))/2000","v":2.3544062118589144},{"$f":"(SUMPRODUCT(D$9:D$229,Nutrients!$J$8:$J$228)+(IF($A$7=Nutrients!$B$8,Nutrients!$J$8,Nutrients!$J$9)*D$7)+(((IF($A$8=Nutrients!$B$79,Nutrients!$J$79,(IF($A$8=Nutrients!$B$77,Nutrients!$J$77,Nutrients!$J$78)))))*D$8))/2000","v":2.2969299326886694},{"$f":"(SUMPRODUCT(E$9:E$229,Nutrients!$J$8:$J$228)+(IF($A$7=Nutrients!$B$8,Nutrients!$J$8,Nutrients!$J$9)*E$7)+(((IF($A$8=Nutrients!$B$79,Nutrients!$J$79,(IF($A$8=Nutrients!$B$77,Nutrients!$J$77,Nutrients!$J$78)))))*E$8))/2000","v":2.237626654434278},{"$f":"(SUMPRODUCT(F$9:F$229,Nutrients!$J$8:$J$228)+(IF($A$7=Nutrients!$B$8,Nutrients!$J$8,Nutrients!$J$9)*F$7)+(((IF($A$8=Nutrients!$B$79,Nutrients!$J$79,(IF($A$8=Nutrients!$B$77,Nutrients!$J$77,Nutrients!$J$78)))))*F$8))/2000","v":2.1865908459890111},{"$f":"(SUMPRODUCT(G$9:G$229,Nutrients!$J$8:$J$228)+(IF($A$7=Nutrients!$B$8,Nutrients!$J$8,Nutrients!$J$9)*G$7)+(((IF($A$8=Nutrients!$B$79,Nutrients!$J$79,(IF($A$8=Nutrients!$B$77,Nutrients!$J$77,Nutrients!$J$78)))))*G$8))/2000","v":2.1575827805851042},null,{"$f":"(SUMPRODUCT(I$9:I$229,Nutrients!$J$8:$J$228)+(IF($A$7=Nutrients!$B$8,Nutrients!$J$8,Nutrients!$J$9)*I$7)+(((IF($A$8=Nutrients!$B$79,Nutrients!$J$79,(IF($A$8=Nutrients!$B$77,Nutrients!$J$77,Nutrients!$J$78)))))*I$8))/2000","v":2.6718282307022601},{"$f":"(SUMPRODUCT(J$9:J$229,Nutrients!$J$8:$J$228)+(IF($A$7=Nutrients!$B$8,Nutrients!$J$8,Nutrients!$J$9)*J$7)+(((IF($A$8=Nutrients!$B$79,Nutrients!$J$79,(IF($A$8=Nutrients!$B$77,Nutrients!$J$77,Nutrients!$J$78)))))*J$8))/2000","v":2.6023170826454272},{"$f":"(SUMPRODUCT(K$9:K$229,Nutrients!$J$8:$J$228)+(IF($A$7=Nutrients!$B$8,Nutrients!$J$8,Nutrients!$J$9)*K$7)+(((IF($A$8=Nutrients!$B$79,Nutrients!$J$79,(IF($A$8=Nutrients!$B$77,Nutrients!$J$77,Nutrients!$J$78)))))*K$8))/2000","v":2.5449884520003567},{"$f":"(SUMPRODUCT(L$9:L$229,Nutrients!$J$8:$J$228)+(IF($A$7=Nutrients!$B$8,Nutrients!$J$8,Nutrients!$J$9)*L$7)+(((IF($A$8=Nutrients!$B$79,Nutrients!$J$79,(IF($A$8=Nutrients!$B$77,Nutrients!$J$77,Nutrients!$J$78)))))*L$8))/2000","v":2.4855609136058394},{"$f":"(SUMPRODUCT(M$9:M$229,Nutrients!$J$8:$J$228)+(IF($A$7=Nutrients!$B$8,Nutrients!$J$8,Nutrients!$J$9)*M$7)+(((IF($A$8=Nutrients!$B$79,Nutrients!$J$79,(IF($A$8=Nutrients!$B$77,Nutrients!$J$77,Nutrients!$J$78)))))*M$8))/2000","v":2.4345244423495487},{"$f":"(SUMPRODUCT(N$9:N$229,Nutrients!$J$8:$J$228)+(IF($A$7=Nutrients!$B$8,Nutrients!$J$8,Nutrients!$J$9)*N$7)+(((IF($A$8=Nutrients!$B$79,Nutrients!$J$79,(IF($A$8=Nutrients!$B$77,Nutrients!$J$77,Nutrients!$J$78)))))*N$8))/2000","v":2.1575827805851042},null,{"$f":"(SUMPRODUCT(P$9:P$229,Nutrients!$J$8:$J$228)+(IF($A$7=Nutrients!$B$8,Nutrients!$J$8,Nutrients!$J$9)*P$7)+(((IF($A$8=Nutrients!$B$79,Nutrients!$J$79,(IF($A$8=Nutrients!$B$77,Nutrients!$J$77,Nutrients!$J$78)))))*P$8))/2000","v":2.9198419314680719},{"$f":"(SUMPRODUCT(Q$9:Q$229,Nutrients!$J$8:$J$228)+(IF($A$7=Nutrients!$B$8,Nutrients!$J$8,Nutrients!$J$9)*Q$7)+(((IF($A$8=Nutrients!$B$79,Nutrients!$J$79,(IF($A$8=Nutrients!$B$77,Nutrients!$J$77,Nutrients!$J$78)))))*Q$8))/2000","v":2.8502584032400629},{"$f":"(SUMPRODUCT(R$9:R$229,Nutrients!$J$8:$J$228)+(IF($A$7=Nutrients!$B$8,Nutrients!$J$8,Nutrients!$J$9)*R$7)+(((IF($A$8=Nutrients!$B$79,Nutrients!$J$79,(IF($A$8=Nutrients!$B$77,Nutrients!$J$77,Nutrients!$J$78)))))*R$8))/2000","v":2.7928553391240332},{"$f":"(SUMPRODUCT(S$9:S$229,Nutrients!$J$8:$J$228)+(IF($A$7=Nutrients!$B$8,Nutrients!$J$8,Nutrients!$J$9)*S$7)+(((IF($A$8=Nutrients!$B$79,Nutrients!$J$79,(IF($A$8=Nutrients!$B$77,Nutrients!$J$77,Nutrients!$J$78)))))*S$8))/2000","v":2.733448440672392},{"$f":"(SUMPRODUCT(T$9:T$229,Nutrients!$J$8:$J$228)+(IF($A$7=Nutrients!$B$8,Nutrients!$J$8,Nutrients!$J$9)*T$7)+(((IF($A$8=Nutrients!$B$79,Nutrients!$J$79,(IF($A$8=Nutrients!$B$77,Nutrients!$J$77,Nutrients!$J$78)))))*T$8))/2000","v":2.6824587993008882},{"$f":"(SUMPRODUCT(U$9:U$229,Nutrients!$J$8:$J$228)+(IF($A$7=Nutrients!$B$8,Nutrients!$J$8,Nutrients!$J$9)*U$7)+(((IF($A$8=Nutrients!$B$79,Nutrients!$J$79,(IF($A$8=Nutrients!$B$77,Nutrients!$J$77,Nutrients!$J$78)))))*U$8))/2000","v":2.1575827805851042},null,{"$f":"(SUMPRODUCT(W$9:W$229,Nutrients!$J$8:$J$228)+(IF($A$7=Nutrients!$B$8,Nutrients!$J$8,Nutrients!$J$9)*W$7)+(((IF($A$8=Nutrients!$B$79,Nutrients!$J$79,(IF($A$8=Nutrients!$B$77,Nutrients!$J$77,Nutrients!$J$78)))))*W$8))/2000","v":3.167920034205292},{"$f":"(SUMPRODUCT(X$9:X$229,Nutrients!$J$8:$J$228)+(IF($A$7=Nutrients!$B$8,Nutrients!$J$8,Nutrients!$J$9)*X$7)+(((IF($A$8=Nutrients!$B$79,Nutrients!$J$79,(IF($A$8=Nutrients!$B$77,Nutrients!$J$77,Nutrients!$J$78)))))*X$8))/2000","v":3.0982197830744109},{"$f":"(SUMPRODUCT(Y$9:Y$229,Nutrients!$J$8:$J$228)+(IF($A$7=Nutrients!$B$8,Nutrients!$J$8,Nutrients!$J$9)*Y$7)+(((IF($A$8=Nutrients!$B$79,Nutrients!$J$79,(IF($A$8=Nutrients!$B$77,Nutrients!$J$77,Nutrients!$J$78)))))*Y$8))/2000","v":3.0408370456344769},{"$f":"(SUMPRODUCT(Z$9:Z$229,Nutrients!$J$8:$J$228)+(IF($A$7=Nutrients!$B$8,Nutrients!$J$8,Nutrients!$J$9)*Z$7)+(((IF($A$8=Nutrients!$B$79,Nutrients!$J$79,(IF($A$8=Nutrients!$B$77,Nutrients!$J$77,Nutrients!$J$78)))))*Z$8))/2000","v":2.9812985932427689},{"$f":"(SUMPRODUCT(AA$9:AA$229,Nutrients!$J$8:$J$228)+(IF($A$7=Nutrients!$B$8,Nutrients!$J$8,Nutrients!$J$9)*AA$7)+(((IF($A$8=Nutrients!$B$79,Nutrients!$J$79,(IF($A$8=Nutrients!$B$77,Nutrients!$J$77,Nutrients!$J$78)))))*AA$8))/2000","v":2.930177097397952},{"$f":"(SUMPRODUCT(AB$9:AB$229,Nutrients!$J$8:$J$228)+(IF($A$7=Nutrients!$B$8,Nutrients!$J$8,Nutrients!$J$9)*AB$7)+(((IF($A$8=Nutrients!$B$79,Nutrients!$J$79,(IF($A$8=Nutrients!$B$77,Nutrients!$J$77,Nutrients!$J$78)))))*AB$8))/2000","v":2.1575827805851042},null,{"$f":"(SUMPRODUCT(AD$9:AD$229,Nutrients!$J$8:$J$228)+(IF($A$7=Nutrients!$B$8,Nutrients!$J$8,Nutrients!$J$9)*AD$7)+(((IF($A$8=Nutrients!$B$79,Nutrients!$J$79,(IF($A$8=Nutrients!$B$77,Nutrients!$J$77,Nutrients!$J$78)))))*AD$8))/2000","v":3.4158871191151974},{"$f":"(SUMPRODUCT(AE$9:AE$229,Nutrients!$J$8:$J$228)+(IF($A$7=Nutrients!$B$8,Nutrients!$J$8,Nutrients!$J$9)*AE$7)+(((IF($A$8=Nutrients!$B$79,Nutrients!$J$79,(IF($A$8=Nutrients!$B$77,Nutrients!$J$77,Nutrients!$J$78)))))*AE$8))/2000","v":3.3462331123125635},{"$f":"(SUMPRODUCT(AF$9:AF$229,Nutrients!$J$8:$J$228)+(IF($A$7=Nutrients!$B$8,Nutrients!$J$8,Nutrients!$J$9)*AF$7)+(((IF($A$8=Nutrients!$B$79,Nutrients!$J$79,(IF($A$8=Nutrients!$B$77,Nutrients!$J$77,Nutrients!$J$78)))))*AF$8))/2000","v":3.2886888089335691},{"$f":"(SUMPRODUCT(AG$9:AG$229,Nutrients!$J$8:$J$228)+(IF($A$7=Nutrients!$B$8,Nutrients!$J$8,Nutrients!$J$9)*AG$7)+(((IF($A$8=Nutrients!$B$79,Nutrients!$J$79,(IF($A$8=Nutrients!$B$77,Nutrients!$J$77,Nutrients!$J$78)))))*AG$8))/2000","v":3.2290829297453163},{"$f":"(SUMPRODUCT(AH$9:AH$229,Nutrients!$J$8:$J$228)+(IF($A$7=Nutrients!$B$8,Nutrients!$J$8,Nutrients!$J$9)*AH$7)+(((IF($A$8=Nutrients!$B$79,Nutrients!$J$79,(IF($A$8=Nutrients!$B$77,Nutrients!$J$77,Nutrients!$J$78)))))*AH$8))/2000","v":3.1756912077705173},{"$f":"(SUMPRODUCT(AI$9:AI$229,Nutrients!$J$8:$J$228)+(IF($A$7=Nutrients!$B$8,Nutrients!$J$8,Nutrients!$J$9)*AI$7)+(((IF($A$8=Nutrients!$B$79,Nutrients!$J$79,(IF($A$8=Nutrients!$B$77,Nutrients!$J$77,Nutrients!$J$78)))))*AI$8))/2000","v":2.1575827805851042},null,{"$f":"(SUMPRODUCT(AK$9:AK$229,Nutrients!$J$8:$J$228)+(IF($A$7=Nutrients!$B$8,Nutrients!$J$8,Nutrients!$J$9)*AK$7)+(((IF($A$8=Nutrients!$B$79,Nutrients!$J$79,(IF($A$8=Nutrients!$B$77,Nutrients!$J$77,Nutrients!$J$78)))))*AK$8))/2000","v":3.6637748167889841},{"$f":"(SUMPRODUCT(AL$9:AL$229,Nutrients!$J$8:$J$228)+(IF($A$7=Nutrients!$B$8,Nutrients!$J$8,Nutrients!$J$9)*AL$7)+(((IF($A$8=Nutrients!$B$79,Nutrients!$J$79,(IF($A$8=Nutrients!$B$77,Nutrients!$J$77,Nutrients!$J$78)))))*AL$8))/2000","v":3.5940835104241042},{"$f":"(SUMPRODUCT(AM$9:AM$229,Nutrients!$J$8:$J$228)+(IF($A$7=Nutrients!$B$8,Nutrients!$J$8,Nutrients!$J$9)*AM$7)+(((IF($A$8=Nutrients!$B$79,Nutrients!$J$79,(IF($A$8=Nutrients!$B$77,Nutrients!$J$77,Nutrients!$J$78)))))*AM$8))/2000","v":3.5365938002378567},{"$f":"(SUMPRODUCT(AN$9:AN$229,Nutrients!$J$8:$J$228)+(IF($A$7=Nutrients!$B$8,Nutrients!$J$8,Nutrients!$J$9)*AN$7)+(((IF($A$8=Nutrients!$B$79,Nutrients!$J$79,(IF($A$8=Nutrients!$B$77,Nutrients!$J$77,Nutrients!$J$78)))))*AN$8))/2000","v":3.4749219336775514},{"$f":"(SUMPRODUCT(AO$9:AO$229,Nutrients!$J$8:$J$228)+(IF($A$7=Nutrients!$B$8,Nutrients!$J$8,Nutrients!$J$9)*AO$7)+(((IF($A$8=Nutrients!$B$79,Nutrients!$J$79,(IF($A$8=Nutrients!$B$77,Nutrients!$J$77,Nutrients!$J$78)))))*AO$8))/2000","v":3.4206022303123245},{"$f":"(SUMPRODUCT(AP$9:AP$229,Nutrients!$J$8:$J$228)+(IF($A$7=Nutrients!$B$8,Nutrients!$J$8,Nutrients!$J$9)*AP$7)+(((IF($A$8=Nutrients!$B$79,Nutrients!$J$79,(IF($A$8=Nutrients!$B$77,Nutrients!$J$77,Nutrients!$J$78)))))*AP$8))/2000","v":2.1575827805851042},null,{"$f":"(SUMPRODUCT(AR$9:AR$229,Nutrients!$J$8:$J$228)+(IF($A$7=Nutrients!$B$8,Nutrients!$J$8,Nutrients!$J$9)*AR$7)+(((IF($A$8=Nutrients!$B$79,Nutrients!$J$79,(IF($A$8=Nutrients!$B$77,Nutrients!$J$77,Nutrients!$J$78)))))*AR$8))/2000","v":3.9115153342102138},{"$f":"(SUMPRODUCT(AS$9:AS$229,Nutrients!$J$8:$J$228)+(IF($A$7=Nutrients!$B$8,Nutrients!$J$8,Nutrients!$J$9)*AS$7)+(((IF($A$8=Nutrients!$B$79,Nutrients!$J$79,(IF($A$8=Nutrients!$B$77,Nutrients!$J$77,Nutrients!$J$78)))))*AS$8))/2000","v":3.8419118424058079},{"$f":"(SUMPRODUCT(AT$9:AT$229,Nutrients!$J$8:$J$228)+(IF($A$7=Nutrients!$B$8,Nutrients!$J$8,Nutrients!$J$9)*AT$7)+(((IF($A$8=Nutrients!$B$79,Nutrients!$J$79,(IF($A$8=Nutrients!$B$77,Nutrients!$J$77,Nutrients!$J$78)))))*AT$8))/2000","v":3.7841223653311413},{"$f":"(SUMPRODUCT(AU$9:AU$229,Nutrients!$J$8:$J$228)+(IF($A$7=Nutrients!$B$8,Nutrients!$J$8,Nutrients!$J$9)*AU$7)+(((IF($A$8=Nutrients!$B$79,Nutrients!$J$79,(IF($A$8=Nutrients!$B$77,Nutrients!$J$77,Nutrients!$J$78)))))*AU$8))/2000","v":3.7198363995580066},{"$f":"(SUMPRODUCT(AV$9:AV$229,Nutrients!$J$8:$J$228)+(IF($A$7=Nutrients!$B$8,Nutrients!$J$8,Nutrients!$J$9)*AV$7)+(((IF($A$8=Nutrients!$B$79,Nutrients!$J$79,(IF($A$8=Nutrients!$B$77,Nutrients!$J$77,Nutrients!$J$78)))))*AV$8))/2000","v":3.6655128293698302},{"$f":"(SUMPRODUCT(AW$9:AW$229,Nutrients!$J$8:$J$228)+(IF($A$7=Nutrients!$B$8,Nutrients!$J$8,Nutrients!$J$9)*AW$7)+(((IF($A$8=Nutrients!$B$79,Nutrients!$J$79,(IF($A$8=Nutrients!$B$77,Nutrients!$J$77,Nutrients!$J$78)))))*AW$8))/2000","v":2.1575827805851042}]
["Lactose, %",{"$f":"(SUMPRODUCT(B$9:B$229,Nutrients!$ED$8:$ED$228)+(IF($A$7=Nutrients!$B$8,Nutrients!$ED$8,Nutrients!$ED$9)*B$7)+(((IF($A$8=Nutrients!$B$79,Nutrients!$ED$79,(IF($A$8=Nutrients!$B$77,Nutrients!$ED$77,Nutrients!$ED$78)))))*B$8))/2000","v":0},{"$f":"(SUMPRODUCT(C$9:C$229,Nutrients!$ED$8:$ED$228)+(IF($A$7=Nutrients!$B$8,Nutrients!$ED$8,Nutrients!$ED$9)*C$7)+(((IF($A$8=Nutrients!$B$79,Nutrients!$ED$79,(IF($A$8=Nutrients!$B$77,Nutrients!$ED$77,Nutrients!$ED$78)))))*C$8))/2000","v":0},{"$f":"(SUMPRODUCT(D$9:D$229,Nutrients!$ED$8:$ED$228)+(IF($A$7=Nutrients!$B$8,Nutrients!$ED$8,Nutrients!$ED$9)*D$7)+(((IF($A$8=Nutrients!$B$79,Nutrients!$ED$79,(IF($A$8=Nutrients!$B$77,Nutrients!$ED$77,Nutrients!$ED$78)))))*D$8))/2000","v":0},{"$f":"(SUMPRODUCT(E$9:E$229,Nutrients!$ED$8:$ED$228)+(IF($A$7=Nutrients!$B$8,Nutrients!$ED$8,Nutrients!$ED$9)*E$7)+(((IF($A$8=Nutrients!$B$79,Nutrients!$ED$79,(IF($A$8=Nutrients!$B$77,Nutrients!$ED$77,Nutrients!$ED$78)))))*E$8))/2000","v":0},{"$f":"(SUMPRODUCT(F$9:F$229,Nutrients!$ED$8:$ED$228)+(IF($A$7=Nutrients!$B$8,Nutrients!$ED$8,Nutrients!$ED$9)*F$7)+(((IF($A$8=Nutrients!$B$79,Nutrients!$ED$79,(IF($A$8=Nutrients!$B$77,Nutrients!$ED$77,Nutrients!$ED$78)))))*F$8))/2000","v":0},{"$f":"(SUMPRODUCT(G$9:G$229,Nutrients!$ED$8:$ED$228)+(IF($A$7=Nutrients!$B$8,Nutrients!$ED$8,Nutrients!$ED$9)*G$7)+(((IF($A$8=Nutrients!$B$79,Nutrients!$ED$79,(IF($A$8=Nutrients!$B$77,Nutrients!$ED$77,Nutrients!$ED$78)))))*G$8))/2000","v":0},null,{"$f":"(SUMPRODUCT(I$9:I$229,Nutrients!$ED$8:$ED$228)+(IF($A$7=Nutrients!$B$8,Nutrients!$ED$8,Nutrients!$ED$9)*I$7)+(((IF($A$8=Nutrients!$B$79,Nutrients!$ED$79,(IF($A$8=Nutrients!$B$77,Nutrients!$ED$77,Nutrients!$ED$78)))))*I$8))/2000","v":0},{"$f":"(SUMPRODUCT(J$9:J$229,Nutrients!$ED$8:$ED$228)+(IF($A$7=Nutrients!$B$8,Nutrients!$ED$8,Nutrients!$ED$9)*J$7)+(((IF($A$8=Nutrients!$B$79,Nutrients!$ED$79,(IF($A$8=Nutrients!$B$77,Nutrients!$ED$77,Nutrients!$ED$78)))))*J$8))/2000","v":0},{"$f":"(SUMPRODUCT(K$9:K$229,Nutrients!$ED$8:$ED$228)+(IF($A$7=Nutrients!$B$8,Nutrients!$ED$8,Nutrients!$ED$9)*K$7)+(((IF($A$8=Nutrients!$B$79,Nutrients!$ED$79,(IF($A$8=Nutrients!$B$77,Nutrients!$ED$77,Nutrients!$ED$78)))))*K$8))/2000","v":0},{"$f":"(SUMPRODUCT(L$9:L$229,Nutrients!$ED$8:$ED$228)+(IF($A$7=Nutrients!$B$8,Nutrients!$ED$8,Nutrients!$ED$9)*L$7)+(((IF($A$8=Nutrients!$B$79,Nutrients!$ED$79,(IF($A$8=Nutrients!$B$77,Nutrients!$ED$77,Nutrients!$ED$78)))))*L$8))/2000","v":0},{"$f":"(SUMPRODUCT(M$9:M$229,Nutrients!$ED$8:$ED$228)+(IF($A$7=Nutrients!$B$8,Nutrients!$ED$8,Nutrients!$ED$9)*M$7)+(((IF($A$8=Nutrients!$B$79,Nutrients!$ED$79,(IF($A$8=Nutrients!$B$77,Nutrients!$ED$77,Nutrients!$ED$78)))))*M$8))/2000","v":0},{"$f":"(SUMPRODUCT(N$9:N$229,Nutrients!$ED$8:$ED$228)+(IF($A$7=Nutrients!$B$8,Nutrients!$ED$8,Nutrients!$ED$9)*N$7)+(((IF($A$8=Nutrients!$B$79,Nutrients!$ED$79,(IF($A$8=Nutrients!$B$77,Nutrients!$ED$77,Nutrients!$ED$78)))))*N$8))/2000","v":0},null,{"$f":"(SUMPRODUCT(P$9:P$229,Nutrients!$ED$8:$ED$228)+(IF($A$7=Nutrients!$B$8,Nutrients!$ED$8,Nutrients!$ED$9)*P$7)+(((IF($A$8=Nutrients!$B$79,Nutrients!$ED$79,(IF($A$8=Nutrients!$B$77,Nutrients!$ED$77,Nutrients!$ED$78)))))*P$8))/2000","v":0},{"$f":"(SUMPRODUCT(Q$9:Q$229,Nutrients!$ED$8:$ED$228)+(IF($A$7=Nutrients!$B$8,Nutrients!$ED$8,Nutrients!$ED$9)*Q$7)+(((IF($A$8=Nutrients!$B$79,Nutrients!$ED$79,(IF($A$8=Nutrients!$B$77,Nutrients!$ED$77,Nutrients!$ED$78)))))*Q$8))/2000","v":0},{"$f":"(SUMPRODUCT(R$9:R$229,Nutrients!$ED$8:$ED$228)+(IF($A$7=Nutrients!$B$8,Nutrients!$ED$8,Nutrients!$ED$9)*R$7)+(((IF($A$8=Nutrients!$B$79,Nutrients!$ED$79,(IF($A$8=Nutrients!$B$77,Nutrients!$ED$77,Nutrients!$ED$78)))))*R$8))/2000","v":0},{"$f":"(SUMPRODUCT(S$9:S$229,Nutrients!$ED$8:$ED$228)+(IF($A$7=Nutrients!$B$8,Nutrients!$ED$8,Nutrients!$ED$9)*S$7)+(((IF($A$8=Nutrients!$B$79,Nutrients!$ED$79,(IF($A$8=Nutrients!$B$77,Nutrients!$ED$77,Nutrients!$ED$78)))))*S$8))/2000","v":0},{"$f":"(SUMPRODUCT(T$9:T$229,Nutrients!$ED$8:$ED$228)+(IF($A$7=Nutrients!$B$8,Nutrients!$ED$8,Nutrients!$ED$9)*T$7)+(((IF($A$8=Nutrients!$B$79,Nutrients!$ED$79,(IF($A$8=Nutrients!$B$77,Nutrients!$ED$77,Nutrients!$ED$78)))))*T$8))/2000","v":0},{"$f":"(SUMPRODUCT(U$9:U$229,Nutrients!$ED$8:$ED$228)+(IF($A$7=Nutrients!$B$8,Nutrients!$ED$8,Nutrients!$ED$9)*U$7)+(((IF($A$8=Nutrients!$B$79,Nutrients!$ED$79,(IF($A$8=Nutrients!$B$77,Nutrients!$ED$77,Nutrients!$ED$78)))))*U$8))/2000","v":0},null,{"$f":"(SUMPRODUCT(W$9:W$229,Nutrients!$ED$8:$ED$228)+(IF($A$7=Nutrients!$B$8,Nutrients!$ED$8,Nutrients!$ED$9)*W$7)+(((IF($A$8=Nutrients!$B$79,Nutrients!$ED$79,(IF($A$8=Nutrients!$B$77,Nutrients!$ED$77,Nutrients!$ED$78)))))*W$8))/2000","v":0},{"$f":"(SUMPRODUCT(X$9:X$229,Nutrients!$ED$8:$ED$228)+(IF($A$7=Nutrients!$B$8,Nutrients!$ED$8,Nutrients!$ED$9)*X$7)+(((IF($A$8=Nutrients!$B$79,Nutrients!$ED$79,(IF($A$8=Nutrients!$B$77,Nutrients!$ED$77,Nutrients!$ED$78)))))*X$8))/2000","v":0},{"$f":"(SUMPRODUCT(Y$9:Y$229,Nutrients!$ED$8:$ED$228)+(IF($A$7=Nutrients!$B$8,Nutrients!$ED$8,Nutrients!$ED$9)*Y$7)+(((IF($A$8=Nutrients!$B$79,Nutrients!$ED$79,(IF($A$8=Nutrients!$B$77,Nutrients!$ED$77,Nutrients!$ED$78)))))*Y$8))/2000","v":0},{"$f":"(SUMPRODUCT(Z$9:Z$229,Nutrients!$ED$8:$ED$228)+(IF($A$7=Nutrients!$B$8,Nutrients!$ED$8,Nutrients!$ED$9)*Z$7)+(((IF($A$8=Nutrients!$B$79,Nutrients!$ED$79,(IF($A$8=Nutrients!$B$77,Nutrients!$ED$77,Nutrients!$ED$78)))))*Z$8))/2000","v":0},{"$f":"(SUMPRODUCT(AA$9:AA$229,Nutrients!$ED$8:$ED$228)+(IF($A$7=Nutrients!$B$8,Nutrients!$ED$8,Nutrients!$ED$9)*AA$7)+(((IF($A$8=Nutrients!$B$79,Nutrients!$ED$79,(IF($A$8=Nutrients!$B$77,Nutrients!$ED$77,Nutrients!$ED$78)))))*AA$8))/2000","v":0},{"$f":"(SUMPRODUCT(AB$9:AB$229,Nutrients!$ED$8:$ED$228)+(IF($A$7=Nutrients!$B$8,Nutrients!$ED$8,Nutrients!$ED$9)*AB$7)+(((IF($A$8=Nutrients!$B$79,Nutrients!$ED$79,(IF($A$8=Nutrients!$B$77,Nutrients!$ED$77,Nutrients!$ED$78)))))*AB$8))/2000","v":0},null,{"$f":"(SUMPRODUCT(AD$9:AD$229,Nutrients!$ED$8:$ED$228)+(IF($A$7=Nutrients!$B$8,Nutrients!$ED$8,Nutrients!$ED$9)*AD$7)+(((IF($A$8=Nutrients!$B$79,Nutrients!$ED$79,(IF($A$8=Nutrients!$B$77,Nutrients!$ED$77,Nutrients!$ED$78)))))*AD$8))/2000","v":0},{"$f":"(SUMPRODUCT(AE$9:AE$229,Nutrients!$ED$8:$ED$228)+(IF($A$7=Nutrients!$B$8,Nutrients!$ED$8,Nutrients!$ED$9)*AE$7)+(((IF($A$8=Nutrients!$B$79,Nutrients!$ED$79,(IF($A$8=Nutrients!$B$77,Nutrients!$ED$77,Nutrients!$ED$78)))))*AE$8))/2000","v":0},{"$f":"(SUMPRODUCT(AF$9:AF$229,Nutrients!$ED$8:$ED$228)+(IF($A$7=Nutrients!$B$8,Nutrients!$ED$8,Nutrients!$ED$9)*AF$7)+(((IF($A$8=Nutrients!$B$79,Nutrients!$ED$79,(IF($A$8=Nutrients!$B$77,Nutrients!$ED$77,Nutrients!$ED$78)))))*AF$8))/2000","v":0},{"$f":"(SUMPRODUCT(AG$9:AG$229,Nutrients!$ED$8:$ED$228)+(IF($A$7=Nutrients!$B$8,Nutrients!$ED$8,Nutrients!$ED$9)*AG$7)+(((IF($A$8=Nutrients!$B$79,Nutrients!$ED$79,(IF($A$8=Nutrients!$B$77,Nutrients!$ED$77,Nutrients!$ED$78)))))*AG$8))/2000","v":0},{"$f":"(SUMPRODUCT(AH$9:AH$229,Nutrients!$ED$8:$ED$228)+(IF($A$7=Nutrients!$B$8,Nutrients!$ED$8,Nutrients!$ED$9)*AH$7)+(((IF($A$8=Nutrients!$B$79,Nutrients!$ED$79,(IF($A$8=Nutrients!$B$77,Nutrients!$ED$77,Nutrients!$ED$78)))))*AH$8))/2000","v":0},{"$f":"(SUMPRODUCT(AI$9:AI$229,Nutrients!$ED$8:$ED$228)+(IF($A$7=Nutrients!$B$8,Nutrients!$ED$8,Nutrients!$ED$9)*AI$7)+(((IF($A$8=Nutrients!$B$79,Nutrients!$ED$79,(IF($A$8=Nutrients!$B$77,Nutrients!$ED$77,Nutrients!$ED$78)))))*AI$8))/2000","v":0},null,{"$f":"(SUMPRODUCT(AK$9:AK$229,Nutrients!$ED$8:$ED$228)+(IF($A$7=Nutrients!$B$8,Nutrients!$ED$8,Nutrients!$ED$9)*AK$7)+(((IF($A$8=Nutrients!$B$79,Nutrients!$ED$79,(IF($A$8=Nutrients!$B$77,Nutrients!$ED$77,Nutrients!$ED$78)))))*AK$8))/2000","v":0},{"$f":"(SUMPRODUCT(AL$9:AL$229,Nutrients!$ED$8:$ED$228)+(IF($A$7=Nutrients!$B$8,Nutrients!$ED$8,Nutrients!$ED$9)*AL$7)+(((IF($A$8=Nutrients!$B$79,Nutrients!$ED$79,(IF($A$8=Nutrients!$B$77,Nutrients!$ED$77,Nutrients!$ED$78)))))*AL$8))/2000","v":0},{"$f":"(SUMPRODUCT(AM$9:AM$229,Nutrients!$ED$8:$ED$228)+(IF($A$7=Nutrients!$B$8,Nutrients!$ED$8,Nutrients!$ED$9)*AM$7)+(((IF($A$8=Nutrients!$B$79,Nutrients!$ED$79,(IF($A$8=Nutrients!$B$77,Nutrients!$ED$77,Nutrients!$ED$78)))))*AM$8))/2000","v":0},{"$f":"(SUMPRODUCT(AN$9:AN$229,Nutrients!$ED$8:$ED$228)+(IF($A$7=Nutrients!$B$8,Nutrients!$ED$8,Nutrients!$ED$9)*AN$7)+(((IF($A$8=Nutrients!$B$79,Nutrients!$ED$79,(IF($A$8=Nutrients!$B$77,Nutrients!$ED$77,Nutrients!$ED$78)))))*AN$8))/2000","v":0},{"$f":"(SUMPRODUCT(AO$9:AO$229,Nutrients!$ED$8:$ED$228)+(IF($A$7=Nutrients!$B$8,Nutrients!$ED$8,Nutrients!$ED$9)*AO$7)+(((IF($A$8=Nutrients!$B$79,Nutrients!$ED$79,(IF($A$8=Nutrients!$B$77,Nutrients!$ED$77,Nutrients!$ED$78)))))*AO$8))/2000","v":0},{"$f":"(SUMPRODUCT(AP$9:AP$229,Nutrients!$ED$8:$ED$228)+(IF($A$7=Nutrients!$B$8,Nutrients!$ED$8,Nutrients!$ED$9)*AP$7)+(((IF($A$8=Nutrients!$B$79,Nutrients!$ED$79,(IF($A$8=Nutrients!$B$77,Nutrients!$ED$77,Nutrients!$ED$78)))))*AP$8))/2000","v":0},null,{"$f":"(SUMPRODUCT(AR$9:AR$229,Nutrients!$ED$8:$ED$228)+(IF($A$7=Nutrients!$B$8,Nutrients!$ED$8,Nutrients!$ED$9)*AR$7)+(((IF($A$8=Nutrients!$B$79,Nutrients!$ED$79,(IF($A$8=Nutrients!$B$77,Nutrients!$ED$77,Nutrients!$ED$78)))))*AR$8))/2000","v":0},{"$f":"(SUMPRODUCT(AS$9:AS$229,Nutrients!$ED$8:$ED$228)+(IF($A$7=Nutrients!$B$8,Nutrients!$ED$8,Nutrients!$ED$9)*AS$7)+(((IF($A$8=Nutrients!$B$79,Nutrients!$ED$79,(IF($A$8=Nutrients!$B$77,Nutrients!$ED$77,Nutrients!$ED$78)))))*AS$8))/2000","v":0},{"$f":"(SUMPRODUCT(AT$9:AT$229,Nutrients!$ED$8:$ED$228)+(IF($A$7=Nutrients!$B$8,Nutrients!$ED$8,Nutrients!$ED$9)*AT$7)+(((IF($A$8=Nutrients!$B$79,Nutrients!$ED$79,(IF($A$8=Nutrients!$B$77,Nutrients!$ED$77,Nutrients!$ED$78)))))*AT$8))/2000","v":0},{"$f":"(SUMPRODUCT(AU$9:AU$229,Nutrients!$ED$8:$ED$228)+(IF($A$7=Nutrients!$B$8,Nutrients!$ED$8,Nutrients!$ED$9)*AU$7)+(((IF($A$8=Nutrients!$B$79,Nutrients!$ED$79,(IF($A$8=Nutrients!$B$77,Nutrients!$ED$77,Nutrients!$ED$78)))))*AU$8))/2000","v":0},{"$f":"(SUMPRODUCT(AV$9:AV$229,Nutrients!$ED$8:$ED$228)+(IF($A$7=Nutrients!$B$8,Nutrients!$ED$8,Nutrients!$ED$9)*AV$7)+(((IF($A$8=Nutrients!$B$79,Nutrients!$ED$79,(IF($A$8=Nutrients!$B$77,Nutrients!$ED$77,Nutrients!$ED$78)))))*AV$8))/2000","v":0},{"$f":"(SUMPRODUCT(AW$9:AW$229,Nutrients!$ED$8:$ED$228)+(IF($A$7=Nutrients!$B$8,Nutrients!$ED$8,Nutrients!$ED$9)*AW$7)+(((IF($A$8=Nutrients!$B$79,Nutrients!$ED$79,(IF($A$8=Nutrients!$B$77,Nutrients!$ED$77,Nutrients!$ED$78)))))*AW$8))/2000","v":0}]
["IV value of diet",{"$f":"(SUMPRODUCT(B$9:B$229,Nutrients!$EH$8:$EH$228)+(IF($A$7=Nutrients!$B$8,Nutrients!$EH$8,Nutrients!$EH$9)*B$7)+(((IF($A$8=Nutrients!$B$79,Nutrients!$EH$79,(IF($A$8=Nutrients!$B$77,Nutrients!$EH$77,Nutrients!$EH$78)))))*B$8))/2000","v":35.538484918485338},{"$f":"(SUMPRODUCT(C$9:C$229,Nutrients!$EH$8:$EH$228)+(IF($A$7=Nutrients!$B$8,Nutrients!$EH$8,Nutrients!$EH$9)*C$7)+(((IF($A$8=Nutrients!$B$79,Nutrients!$EH$79,(IF($A$8=Nutrients!$B$77,Nutrients!$EH$77,Nutrients!$EH$78)))))*C$8))/2000","v":36.696132579183029},{"$f":"(SUMPRODUCT(D$9:D$229,Nutrients!$EH$8:$EH$228)+(IF($A$7=Nutrients!$B$8,Nutrients!$EH$8,Nutrients!$EH$9)*D$7)+(((IF($A$8=Nutrients!$B$79,Nutrients!$EH$79,(IF($A$8=Nutrients!$B$77,Nutrients!$EH$77,Nutrients!$EH$78)))))*D$8))/2000","v":37.687698685025424},{"$f":"(SUMPRODUCT(E$9:E$229,Nutrients!$EH$8:$EH$228)+(IF($A$7=Nutrients!$B$8,Nutrients!$EH$8,Nutrients!$EH$9)*E$7)+(((IF($A$8=Nutrients!$B$79,Nutrients!$EH$79,(IF($A$8=Nutrients!$B$77,Nutrients!$EH$77,Nutrients!$EH$78)))))*E$8))/2000","v":38.621947982979158},{"$f":"(SUMPRODUCT(F$9:F$229,Nutrients!$EH$8:$EH$228)+(IF($A$7=Nutrients!$B$8,Nutrients!$EH$8,Nutrients!$EH$9)*F$7)+(((IF($A$8=Nutrients!$B$79,Nutrients!$EH$79,(IF($A$8=Nutrients!$B$77,Nutrients!$EH$77,Nutrients!$EH$78)))))*F$8))/2000","v":39.390416669843518},{"$f":"(SUMPRODUCT(G$9:G$229,Nutrients!$EH$8:$EH$228)+(IF($A$7=Nutrients!$B$8,Nutrients!$EH$8,Nutrients!$EH$9)*G$7)+(((IF($A$8=Nutrients!$B$79,Nutrients!$EH$79,(IF($A$8=Nutrients!$B$77,Nutrients!$EH$77,Nutrients!$EH$78)))))*G$8))/2000","v":39.795780240411979},null,{"$f":"(SUMPRODUCT(I$9:I$229,Nutrients!$EH$8:$EH$228)+(IF($A$7=Nutrients!$B$8,Nutrients!$EH$8,Nutrients!$EH$9)*I$7)+(((IF($A$8=Nutrients!$B$79,Nutrients!$EH$79,(IF($A$8=Nutrients!$B$77,Nutrients!$EH$77,Nutrients!$EH$78)))))*I$8))/2000","v":37.169653159982261},{"$f":"(SUMPRODUCT(J$9:J$229,Nutrients!$EH$8:$EH$228)+(IF($A$7=Nutrients!$B$8,Nutrients!$EH$8,Nutrients!$EH$9)*J$7)+(((IF($A$8=Nutrients!$B$79,Nutrients!$EH$79,(IF($A$8=Nutrients!$B$77,Nutrients!$EH$77,Nutrients!$EH$78)))))*J$8))/2000","v":38.35924317735688},{"$f":"(SUMPRODUCT(K$9:K$229,Nutrients!$EH$8:$EH$228)+(IF($A$7=Nutrients!$B$8,Nutrients!$EH$8,Nutrients!$EH$9)*K$7)+(((IF($A$8=Nutrients!$B$79,Nutrients!$EH$79,(IF($A$8=Nutrients!$B$77,Nutrients!$EH$77,Nutrients!$EH$78)))))*K$8))/2000","v":39.322484442451611},{"$f":"(SUMPRODUCT(L$9:L$229,Nutrients!$EH$8:$EH$228)+(IF($A$7=Nutrients!$B$8,Nutrients!$EH$8,Nutrients!$EH$9)*L$7)+(((IF($A$8=Nutrients!$B$79,Nutrients!$EH$79,(IF($A$8=Nutrients!$B$77,Nutrients!$EH$77,Nutrients!$EH$78)))))*L$8))/2000","v":40.287691584210933},{"$f":"(SUMPRODUCT(M$9:M$229,Nutrients!$EH$8:$EH$228)+(IF($A$7=Nutrients!$B$8,Nutrients!$EH$8,Nutrients!$EH$9)*M$7)+(((IF($A$8=Nutrients!$B$79,Nutrients!$EH$79,(IF($A$8=Nutrients!$B$77,Nutrients!$EH$77,Nutrients!$EH$78)))))*M$8))/2000","v":41.0655150151835},{"$f":"(SUMPRODUCT(N$9:N$229,Nutrients!$EH$8:$EH$228)+(IF($A$7=Nutrients!$B$8,Nutrients!$EH$8,Nutrients!$EH$9)*N$7)+(((IF($A$8=Nutrients!$B$79,Nutrients!$EH$79,(IF($A$8=Nutrients!$B$77,Nutrients!$EH$77,Nutrients!$EH$78)))))*N$8))/2000","v":39.795780240411979},null,{"$f":"(SUMPRODUCT(P$9:P$229,Nutrients!$EH$8:$EH$228)+(IF($A$7=Nutrients!$B$8,Nutrients!$EH$8,Nutrients!$EH$9)*P$7)+(((IF($A$8=Nutrients!$B$79,Nutrients!$EH$79,(IF($A$8=Nutrients!$B$77,Nutrients!$EH$77,Nutrients!$EH$78)))))*P$8))/2000","v":38.823219799899526},{"$f":"(SUMPRODUCT(Q$9:Q$229,Nutrients!$EH$8:$EH$228)+(IF($A$7=Nutrients!$B$8,Nutrients!$EH$8,Nutrients!$EH$9)*Q$7)+(((IF($A$8=Nutrients!$B$79,Nutrients!$EH$79,(IF($A$8=Nutrients!$B$77,Nutrients!$EH$77,Nutrients!$EH$78)))))*Q$8))/2000","v":40.013045961822343},{"$f":"(SUMPRODUCT(R$9:R$229,Nutrients!$EH$8:$EH$228)+(IF($A$7=Nutrients!$B$8,Nutrients!$EH$8,Nutrients!$EH$9)*R$7)+(((IF($A$8=Nutrients!$B$79,Nutrients!$EH$79,(IF($A$8=Nutrients!$B$77,Nutrients!$EH$77,Nutrients!$EH$78)))))*R$8))/2000","v":40.985668776055746},{"$f":"(SUMPRODUCT(S$9:S$229,Nutrients!$EH$8:$EH$228)+(IF($A$7=Nutrients!$B$8,Nutrients!$EH$8,Nutrients!$EH$9)*S$7)+(((IF($A$8=Nutrients!$B$79,Nutrients!$EH$79,(IF($A$8=Nutrients!$B$77,Nutrients!$EH$77,Nutrients!$EH$78)))))*S$8))/2000","v":41.939402665316734},{"$f":"(SUMPRODUCT(T$9:T$229,Nutrients!$EH$8:$EH$228)+(IF($A$7=Nutrients!$B$8,Nutrients!$EH$8,Nutrients!$EH$9)*T$7)+(((IF($A$8=Nutrients!$B$79,Nutrients!$EH$79,(IF($A$8=Nutrients!$B$77,Nutrients!$EH$77,Nutrients!$EH$78)))))*T$8))/2000","v":42.72814831617481},{"$f":"(SUMPRODUCT(U$9:U$229,Nutrients!$EH$8:$EH$228)+(IF($A$7=Nutrients!$B$8,Nutrients!$EH$8,Nutrients!$EH$9)*U$7)+(((IF($A$8=Nutrients!$B$79,Nutrients!$EH$79,(IF($A$8=Nutrients!$B$77,Nutrients!$EH$77,Nutrients!$EH$78)))))*U$8))/2000","v":39.795780240411979},null,{"$f":"(SUMPRODUCT(W$9:W$229,Nutrients!$EH$8:$EH$228)+(IF($A$7=Nutrients!$B$8,Nutrients!$EH$8,Nutrients!$EH$9)*W$7)+(((IF($A$8=Nutrients!$B$79,Nutrients!$EH$79,(IF($A$8=Nutrients!$B$77,Nutrients!$EH$77,Nutrients!$EH$78)))))*W$8))/2000","v":40.487151502341334},{"$f":"(SUMPRODUCT(X$9:X$229,Nutrients!$EH$8:$EH$228)+(IF($A$7=Nutrients!$B$8,Nutrients!$EH$8,Nutrients!$EH$9)*X$7)+(((IF($A$8=Nutrients!$B$79,Nutrients!$EH$79,(IF($A$8=Nutrients!$B$77,Nutrients!$EH$77,Nutrients!$EH$78)))))*X$8))/2000","v":41.68215562769543},{"$f":"(SUMPRODUCT(Y$9:Y$229,Nutrients!$EH$8:$EH$228)+(IF($A$7=Nutrients!$B$8,Nutrients!$EH$8,Nutrients!$EH$9)*Y$7)+(((IF($A$8=Nutrients!$B$79,Nutrients!$EH$79,(IF($A$8=Nutrients!$B$77,Nutrients!$EH$77,Nutrients!$EH$78)))))*Y$8))/2000","v":42.640229143191064},{"$f":"(SUMPRODUCT(Z$9:Z$229,Nutrients!$EH$8:$EH$228)+(IF($A$7=Nutrients!$B$8,Nutrients!$EH$8,Nutrients!$EH$9)*Z$7)+(((IF($A$8=Nutrients!$B$79,Nutrients!$EH$79,(IF($A$8=Nutrients!$B$77,Nutrients!$EH$77,Nutrients!$EH$78)))))*Z$8))/2000","v":43.598962068955018},{"$f":"(SUMPRODUCT(AA$9:AA$229,Nutrients!$EH$8:$EH$228)+(IF($A$7=Nutrients!$B$8,Nutrients!$EH$8,Nutrients!$EH$9)*AA$7)+(((IF($A$8=Nutrients!$B$79,Nutrients!$EH$79,(IF($A$8=Nutrients!$B$77,Nutrients!$EH$77,Nutrients!$EH$78)))))*AA$8))/2000","v":44.367546159161051},{"$f":"(SUMPRODUCT(AB$9:AB$229,Nutrients!$EH$8:$EH$228)+(IF($A$7=Nutrients!$B$8,Nutrients!$EH$8,Nutrients!$EH$9)*AB$7)+(((IF($A$8=Nutrients!$B$79,Nutrients!$EH$79,(IF($A$8=Nutrients!$B$77,Nutrients!$EH$77,Nutrients!$EH$78)))))*AB$8))/2000","v":39.795780240411979},null,{"$f":"(SUMPRODUCT(AD$9:AD$229,Nutrients!$EH$8:$EH$228)+(IF($A$7=Nutrients!$B$8,Nutrients!$EH$8,Nutrients!$EH$9)*AD$7)+(((IF($A$8=Nutrients!$B$79,Nutrients!$EH$79,(IF($A$8=Nutrients!$B$77,Nutrients!$EH$77,Nutrients!$EH$78)))))*AD$8))/2000","v":42.153337475132474},{"$f":"(SUMPRODUCT(AE$9:AE$229,Nutrients!$EH$8:$EH$228)+(IF($A$7=Nutrients!$B$8,Nutrients!$EH$8,Nutrients!$EH$9)*AE$7)+(((IF($A$8=Nutrients!$B$79,Nutrients!$EH$79,(IF($A$8=Nutrients!$B$77,Nutrients!$EH$77,Nutrients!$EH$78)))))*AE$8))/2000","v":43.340288022070212},{"$f":"(SUMPRODUCT(AF$9:AF$229,Nutrients!$EH$8:$EH$228)+(IF($A$7=Nutrients!$B$8,Nutrients!$EH$8,Nutrients!$EH$9)*AF$7)+(((IF($A$8=Nutrients!$B$79,Nutrients!$EH$79,(IF($A$8=Nutrients!$B$77,Nutrients!$EH$77,Nutrients!$EH$78)))))*AF$8))/2000","v":44.299301882125484},{"$f":"(SUMPRODUCT(AG$9:AG$229,Nutrients!$EH$8:$EH$228)+(IF($A$7=Nutrients!$B$8,Nutrients!$EH$8,Nutrients!$EH$9)*AG$7)+(((IF($A$8=Nutrients!$B$79,Nutrients!$EH$79,(IF($A$8=Nutrients!$B$77,Nutrients!$EH$77,Nutrients!$EH$78)))))*AG$8))/2000","v":45.249812899691278},{"$f":"(SUMPRODUCT(AH$9:AH$229,Nutrients!$EH$8:$EH$228)+(IF($A$7=Nutrients!$B$8,Nutrients!$EH$8,Nutrients!$EH$9)*AH$7)+(((IF($A$8=Nutrients!$B$79,Nutrients!$EH$79,(IF($A$8=Nutrients!$B$77,Nutrients!$EH$77,Nutrients!$EH$78)))))*AH$8))/2000","v":46.206515547325957},{"$f":"(SUMPRODUCT(AI$9:AI$229,Nutrients!$EH$8:$EH$228)+(IF($A$7=Nutrients!$B$8,Nutrients!$EH$8,Nutrients!$EH$9)*AI$7)+(((IF($A$8=Nutrients!$B$79,Nutrients!$EH$79,(IF($A$8=Nutrients!$B$77,Nutrients!$EH$77,Nutrients!$EH$78)))))*AI$8))/2000","v":39.795780240411979},null,{"$f":"(SUMPRODUCT(AK$9:AK$229,Nutrients!$EH$8:$EH$228)+(IF($A$7=Nutrients!$B$8,Nutrients!$EH$8,Nutrients!$EH$9)*AK$7)+(((IF($A$8=Nutrients!$B$79,Nutrients!$EH$79,(IF($A$8=Nutrients!$B$77,Nutrients!$EH$77,Nutrients!$EH$78)))))*AK$8))/2000","v":43.820738181135056},{"$f":"(SUMPRODUCT(AL$9:AL$229,Nutrients!$EH$8:$EH$228)+(IF($A$7=Nutrients!$B$8,Nutrients!$EH$8,Nutrients!$EH$9)*AL$7)+(((IF($A$8=Nutrients!$B$79,Nutrients!$EH$79,(IF($A$8=Nutrients!$B$77,Nutrients!$EH$77,Nutrients!$EH$78)))))*AL$8))/2000","v":45.007652685042004},{"$f":"(SUMPRODUCT(AM$9:AM$229,Nutrients!$EH$8:$EH$228)+(IF($A$7=Nutrients!$B$8,Nutrients!$EH$8,Nutrients!$EH$9)*AM$7)+(((IF($A$8=Nutrients!$B$79,Nutrients!$EH$79,(IF($A$8=Nutrients!$B$77,Nutrients!$EH$77,Nutrients!$EH$78)))))*AM$8))/2000","v":45.951916066872911},{"$f":"(SUMPRODUCT(AN$9:AN$229,Nutrients!$EH$8:$EH$228)+(IF($A$7=Nutrients!$B$8,Nutrients!$EH$8,Nutrients!$EH$9)*AN$7)+(((IF($A$8=Nutrients!$B$79,Nutrients!$EH$79,(IF($A$8=Nutrients!$B$77,Nutrients!$EH$77,Nutrients!$EH$78)))))*AN$8))/2000","v":47.042155027235289},{"$f":"(SUMPRODUCT(AO$9:AO$229,Nutrients!$EH$8:$EH$228)+(IF($A$7=Nutrients!$B$8,Nutrients!$EH$8,Nutrients!$EH$9)*AO$7)+(((IF($A$8=Nutrients!$B$79,Nutrients!$EH$79,(IF($A$8=Nutrients!$B$77,Nutrients!$EH$77,Nutrients!$EH$78)))))*AO$8))/2000","v":48.11593308971824},{"$f":"(SUMPRODUCT(AP$9:AP$229,Nutrients!$EH$8:$EH$228)+(IF($A$7=Nutrients!$B$8,Nutrients!$EH$8,Nutrients!$EH$9)*AP$7)+(((IF($A$8=Nutrients!$B$79,Nutrients!$EH$79,(IF($A$8=Nutrients!$B$77,Nutrients!$EH$77,Nutrients!$EH$78)))))*AP$8))/2000","v":39.795780240411979},null,{"$f":"(SUMPRODUCT(AR$9:AR$229,Nutrients!$EH$8:$EH$228)+(IF($A$7=Nutrients!$B$8,Nutrients!$EH$8,Nutrients!$EH$9)*AR$7)+(((IF($A$8=Nutrients!$B$79,Nutrients!$EH$79,(IF($A$8=Nutrients!$B$77,Nutrients!$EH$77,Nutrients!$EH$78)))))*AR$8))/2000","v":45.526405233056607},{"$f":"(SUMPRODUCT(AS$9:AS$229,Nutrients!$EH$8:$EH$228)+(IF($A$7=Nutrients!$B$8,Nutrients!$EH$8,Nutrients!$EH$9)*AS$7)+(((IF($A$8=Nutrients!$B$79,Nutrients!$EH$79,(IF($A$8=Nutrients!$B$77,Nutrients!$EH$77,Nutrients!$EH$78)))))*AS$8))/2000","v":46.656028884411555},{"$f":"(SUMPRODUCT(AT$9:AT$229,Nutrients!$EH$8:$EH$228)+(IF($A$7=Nutrients!$B$8,Nutrients!$EH$8,Nutrients!$EH$9)*AT$7)+(((IF($A$8=Nutrients!$B$79,Nutrients!$EH$79,(IF($A$8=Nutrients!$B$77,Nutrients!$EH$77,Nutrients!$EH$78)))))*AT$8))/2000","v":47.591323561228798},{"$f":"(SUMPRODUCT(AU$9:AU$229,Nutrients!$EH$8:$EH$228)+(IF($A$7=Nutrients!$B$8,Nutrients!$EH$8,Nutrients!$EH$9)*AU$7)+(((IF($A$8=Nutrients!$B$79,Nutrients!$EH$79,(IF($A$8=Nutrients!$B$77,Nutrients!$EH$77,Nutrients!$EH$78)))))*AU$8))/2000","v":48.947123054693819},{"$f":"(SUMPRODUCT(AV$9:AV$229,Nutrients!$EH$8:$EH$228)+(IF($A$7=Nutrients!$B$8,Nutrients!$EH$8,Nutrients!$EH$9)*AV$7)+(((IF($A$8=Nutrients!$B$79,Nutrients!$EH$79,(IF($A$8=Nutrients!$B$77,Nutrients!$EH$77,Nutrients!$EH$78)))))*AV$8))/2000","v":50.025454938608455},{"$f":"(SUMPRODUCT(AW$9:AW$229,Nutrients!$EH$8:$EH$228)+(IF($A$7=Nutrients!$B$8,Nutrients!$EH$8,Nutrients!$EH$9)*AW$7)+(((IF($A$8=Nutrients!$B$79,Nutrients!$EH$79,(IF($A$8=Nutrients!$B$77,Nutrients!$EH$77,Nutrients!$EH$78)))))*AW$8))/2000","v":39.795780240411979}]
["IV value of product, estimate",{"$f":"(0.4472*B304)+51.796","v":67.688810455546644},68.206510489410647,68.649938851943375,69.067735137988279,69.411394334754021,69.592672923512239,null,{"$f":"(0.4472*I304)+51.796","v":68.418268893144074},68.950253548913992,69.381015042664359,69.81265567645913,70.160498314790061,69.592672923512239,null,{"$f":"(0.4472*P304)+51.796","v":69.157743894515065},69.689834154126942,70.12479107665213,70.551300871929641,70.904027926993379,69.592672923512239,null,{"$f":"(0.4472*W304)+51.796","v":69.901854151847047},70.436259996705388,70.864710472835043,71.293455837236678,71.637166642376826,69.592672923512239,null,{"$f":"(0.4472*AD304)+51.796","v":70.646972518879238},71.177776803469797,71.606647801686506,72.031716328741936,72.459553752764165,69.592672923512239,null,{"$f":"(0.4472*AK304)+51.796","v":71.392634114603595},71.923422280750785,72.345696865105566,72.833251728179619,73.313445277721996,69.592672923512239,null,{"$f":"(0.4472*AR304)+51.796","v":72.155408420222912},72.660576117108846,73.078839896581513,73.685153430059074,74.167383448545706,69.592672923512239]
["Na, %",{"$f":"(SUMPRODUCT(B$9:B$229,Nutrients!$BW$8:$BW$228)+(IF($A$7=Nutrients!$B$8,Nutrients!$BW$8,Nutrients!$BW$9)*B$7)+(((IF($A$8=Nutrients!$B$79,Nutrients!$BW$79,(IF($A$8=Nutrients!$B$77,Nutrients!$BW$77,Nutrients!$BW$78)))))*B$8))/2000","v":0.17585444277585438},{"$f":"(SUMPRODUCT(C$9:C$229,Nutrients!$BW$8:$BW$228)+(IF($A$7=Nutrients!$B$8,Nutrients!$BW$8,Nutrients!$BW$9)*C$7)+(((IF($A$8=Nutrients!$B$79,Nutrients!$BW$79,(IF($A$8=Nutrients!$B$77,Nutrients!$BW$77,Nutrients!$BW$78)))))*C$8))/2000","v":0.17313593688104692},{"$f":"(SUMPRODUCT(D$9:D$229,Nutrients!$BW$8:$BW$228)+(IF($A$7=Nutrients!$B$8,Nutrients!$BW$8,Nutrients!$BW$9)*D$7)+(((IF($A$8=Nutrients!$B$79,Nutrients!$BW$79,(IF($A$8=Nutrients!$B$77,Nutrients!$BW$77,Nutrients!$BW$78)))))*D$8))/2000","v":0.17084392516917876},{"$f":"(SUMPRODUCT(E$9:E$229,Nutrients!$BW$8:$BW$228)+(IF($A$7=Nutrients!$B$8,Nutrients!$BW$8,Nutrients!$BW$9)*E$7)+(((IF($A$8=Nutrients!$B$79,Nutrients!$BW$79,(IF($A$8=Nutrients!$B$77,Nutrients!$BW$77,Nutrients!$BW$78)))))*E$8))/2000","v":0.16862311318463774},{"$f":"(SUMPRODUCT(F$9:F$229,Nutrients!$BW$8:$BW$228)+(IF($A$7=Nutrients!$B$8,Nutrients!$BW$8,Nutrients!$BW$9)*F$7)+(((IF($A$8=Nutrients!$B$79,Nutrients!$BW$79,(IF($A$8=Nutrients!$B$77,Nutrients!$BW$77,Nutrients!$BW$78)))))*F$8))/2000","v":0.16677873706348853},{"$f":"(SUMPRODUCT(G$9:G$229,Nutrients!$BW$8:$BW$228)+(IF($A$7=Nutrients!$B$8,Nutrients!$BW$8,Nutrients!$BW$9)*G$7)+(((IF($A$8=Nutrients!$B$79,Nutrients!$BW$79,(IF($A$8=Nutrients!$B$77,Nutrients!$BW$77,Nutrients!$BW$78)))))*G$8))/2000","v":0.16577103413561747},null,{"$f":"(SUMPRODUCT(I$9:I$229,Nutrients!$BW$8:$BW$228)+(IF($A$7=Nutrients!$B$8,Nutrients!$BW$8,Nutrients!$BW$9)*I$7)+(((IF($A$8=Nutrients!$B$79,Nutrients!$BW$79,(IF($A$8=Nutrients!$B$77,Nutrients!$BW$77,Nutrients!$BW$78)))))*I$8))/2000","v":0.18336019689860844},{"$f":"(SUMPRODUCT(J$9:J$229,Nutrients!$BW$8:$BW$228)+(IF($A$7=Nutrients!$B$8,Nutrients!$BW$8,Nutrients!$BW$9)*J$7)+(((IF($A$8=Nutrients!$B$79,Nutrients!$BW$79,(IF($A$8=Nutrients!$B$77,Nutrients!$BW$77,Nutrients!$BW$78)))))*J$8))/2000","v":0.18064935822550934},{"$f":"(SUMPRODUCT(K$9:K$229,Nutrients!$BW$8:$BW$228)+(IF($A$7=Nutrients!$B$8,Nutrients!$BW$8,Nutrients!$BW$9)*K$7)+(((IF($A$8=Nutrients!$B$79,Nutrients!$BW$79,(IF($A$8=Nutrients!$B$77,Nutrients!$BW$77,Nutrients!$BW$78)))))*K$8))/2000","v":0.17834400171431383},{"$f":"(SUMPRODUCT(L$9:L$229,Nutrients!$BW$8:$BW$228)+(IF($A$7=Nutrients!$B$8,Nutrients!$BW$8,Nutrients!$BW$9)*L$7)+(((IF($A$8=Nutrients!$B$79,Nutrients!$BW$79,(IF($A$8=Nutrients!$B$77,Nutrients!$BW$77,Nutrients!$BW$78)))))*L$8))/2000","v":0.17612939260193294},{"$f":"(SUMPRODUCT(M$9:M$229,Nutrients!$BW$8:$BW$228)+(IF($A$7=Nutrients!$B$8,Nutrients!$BW$8,Nutrients!$BW$9)*M$7)+(((IF($A$8=Nutrients!$B$79,Nutrients!$BW$79,(IF($A$8=Nutrients!$B$77,Nutrients!$BW$77,Nutrients!$BW$78)))))*M$8))/2000","v":0.17428593646768656},{"$f":"(SUMPRODUCT(N$9:N$229,Nutrients!$BW$8:$BW$228)+(IF($A$7=Nutrients!$B$8,Nutrients!$BW$8,Nutrients!$BW$9)*N$7)+(((IF($A$8=Nutrients!$B$79,Nutrients!$BW$79,(IF($A$8=Nutrients!$B$77,Nutrients!$BW$77,Nutrients!$BW$78)))))*N$8))/2000","v":0.16577103413561747},null,{"$f":"(SUMPRODUCT(P$9:P$229,Nutrients!$BW$8:$BW$228)+(IF($A$7=Nutrients!$B$8,Nutrients!$BW$8,Nutrients!$BW$9)*P$7)+(((IF($A$8=Nutrients!$B$79,Nutrients!$BW$79,(IF($A$8=Nutrients!$B$77,Nutrients!$BW$77,Nutrients!$BW$78)))))*P$8))/2000","v":0.1908670613461714},{"$f":"(SUMPRODUCT(Q$9:Q$229,Nutrients!$BW$8:$BW$228)+(IF($A$7=Nutrients!$B$8,Nutrients!$BW$8,Nutrients!$BW$9)*Q$7)+(((IF($A$8=Nutrients!$B$79,Nutrients!$BW$79,(IF($A$8=Nutrients!$B$77,Nutrients!$BW$77,Nutrients!$BW$78)))))*Q$8))/2000","v":0.18815605165017121},{"$f":"(SUMPRODUCT(R$9:R$229,Nutrients!$BW$8:$BW$228)+(IF($A$7=Nutrients!$B$8,Nutrients!$BW$8,Nutrients!$BW$9)*R$7)+(((IF($A$8=Nutrients!$B$79,Nutrients!$BW$79,(IF($A$8=Nutrients!$B$77,Nutrients!$BW$77,Nutrients!$BW$78)))))*R$8))/2000","v":0.18584948067891796},{"$f":"(SUMPRODUCT(S$9:S$229,Nutrients!$BW$8:$BW$228)+(IF($A$7=Nutrients!$B$8,Nutrients!$BW$8,Nutrients!$BW$9)*S$7)+(((IF($A$8=Nutrients!$B$79,Nutrients!$BW$79,(IF($A$8=Nutrients!$B$77,Nutrients!$BW$77,Nutrients!$BW$78)))))*S$8))/2000","v":0.18363504548241932},{"$f":"(SUMPRODUCT(T$9:T$229,Nutrients!$BW$8:$BW$228)+(IF($A$7=Nutrients!$B$8,Nutrients!$BW$8,Nutrients!$BW$9)*T$7)+(((IF($A$8=Nutrients!$B$79,Nutrients!$BW$79,(IF($A$8=Nutrients!$B$77,Nutrients!$BW$77,Nutrients!$BW$78)))))*T$8))/2000","v":0.18179198394523055},{"$f":"(SUMPRODUCT(U$9:U$229,Nutrients!$BW$8:$BW$228)+(IF($A$7=Nutrients!$B$8,Nutrients!$BW$8,Nutrients!$BW$9)*U$7)+(((IF($A$8=Nutrients!$B$79,Nutrients!$BW$79,(IF($A$8=Nutrients!$B$77,Nutrients!$BW$77,Nutrients!$BW$78)))))*U$8))/2000","v":0.16577103413561747},null,{"$f":"(SUMPRODUCT(W$9:W$229,Nutrients!$BW$8:$BW$228)+(IF($A$7=Nutrients!$B$8,Nutrients!$BW$8,Nutrients!$BW$9)*W$7)+(((IF($A$8=Nutrients!$B$79,Nutrients!$BW$79,(IF($A$8=Nutrients!$B$77,Nutrients!$BW$77,Nutrients!$BW$78)))))*W$8))/2000","v":0.19836432005163979},{"$f":"(SUMPRODUCT(X$9:X$229,Nutrients!$BW$8:$BW$228)+(IF($A$7=Nutrients!$B$8,Nutrients!$BW$8,Nutrients!$BW$9)*X$7)+(((IF($A$8=Nutrients!$B$79,Nutrients!$BW$79,(IF($A$8=Nutrients!$B$77,Nutrients!$BW$77,Nutrients!$BW$78)))))*X$8))/2000","v":0.1956523268274025},{"$f":"(SUMPRODUCT(Y$9:Y$229,Nutrients!$BW$8:$BW$228)+(IF($A$7=Nutrients!$B$8,Nutrients!$BW$8,Nutrients!$BW$9)*Y$7)+(((IF($A$8=Nutrients!$B$79,Nutrients!$BW$79,(IF($A$8=Nutrients!$B$77,Nutrients!$BW$77,Nutrients!$BW$78)))))*Y$8))/2000","v":0.1933459271323891},{"$f":"(SUMPRODUCT(Z$9:Z$229,Nutrients!$BW$8:$BW$228)+(IF($A$7=Nutrients!$B$8,Nutrients!$BW$8,Nutrients!$BW$9)*Z$7)+(((IF($A$8=Nutrients!$B$79,Nutrients!$BW$79,(IF($A$8=Nutrients!$B$77,Nutrients!$BW$77,Nutrients!$BW$78)))))*Z$8))/2000","v":0.19113038343865832},{"$f":"(SUMPRODUCT(AA$9:AA$229,Nutrients!$BW$8:$BW$228)+(IF($A$7=Nutrients!$B$8,Nutrients!$BW$8,Nutrients!$BW$9)*AA$7)+(((IF($A$8=Nutrients!$B$79,Nutrients!$BW$79,(IF($A$8=Nutrients!$B$77,Nutrients!$BW$77,Nutrients!$BW$78)))))*AA$8))/2000","v":0.1892862108718901},{"$f":"(SUMPRODUCT(AB$9:AB$229,Nutrients!$BW$8:$BW$228)+(IF($A$7=Nutrients!$B$8,Nutrients!$BW$8,Nutrients!$BW$9)*AB$7)+(((IF($A$8=Nutrients!$B$79,Nutrients!$BW$79,(IF($A$8=Nutrients!$B$77,Nutrients!$BW$77,Nutrients!$BW$78)))))*AB$8))/2000","v":0.16577103413561747},null,{"$f":"(SUMPRODUCT(AD$9:AD$229,Nutrients!$BW$8:$BW$228)+(IF($A$7=Nutrients!$B$8,Nutrients!$BW$8,Nutrients!$BW$9)*AD$7)+(((IF($A$8=Nutrients!$B$79,Nutrients!$BW$79,(IF($A$8=Nutrients!$B$77,Nutrients!$BW$77,Nutrients!$BW$78)))))*AD$8))/2000","v":0.20586064330086698},{"$f":"(SUMPRODUCT(AE$9:AE$229,Nutrients!$BW$8:$BW$228)+(IF($A$7=Nutrients!$B$8,Nutrients!$BW$8,Nutrients!$BW$9)*AE$7)+(((IF($A$8=Nutrients!$B$79,Nutrients!$BW$79,(IF($A$8=Nutrients!$B$77,Nutrients!$BW$77,Nutrients!$BW$78)))))*AE$8))/2000","v":0.20314903973968224},{"$f":"(SUMPRODUCT(AF$9:AF$229,Nutrients!$BW$8:$BW$228)+(IF($A$7=Nutrients!$B$8,Nutrients!$BW$8,Nutrients!$BW$9)*AF$7)+(((IF($A$8=Nutrients!$B$79,Nutrients!$BW$79,(IF($A$8=Nutrients!$B$77,Nutrients!$BW$77,Nutrients!$BW$78)))))*AF$8))/2000","v":0.20084127866091886},{"$f":"(SUMPRODUCT(AG$9:AG$229,Nutrients!$BW$8:$BW$228)+(IF($A$7=Nutrients!$B$8,Nutrients!$BW$8,Nutrients!$BW$9)*AG$7)+(((IF($A$8=Nutrients!$B$79,Nutrients!$BW$79,(IF($A$8=Nutrients!$B$77,Nutrients!$BW$77,Nutrients!$BW$78)))))*AG$8))/2000","v":0.19862625975335874},{"$f":"(SUMPRODUCT(AH$9:AH$229,Nutrients!$BW$8:$BW$228)+(IF($A$7=Nutrients!$B$8,Nutrients!$BW$8,Nutrients!$BW$9)*AH$7)+(((IF($A$8=Nutrients!$B$79,Nutrients!$BW$79,(IF($A$8=Nutrients!$B$77,Nutrients!$BW$77,Nutrients!$BW$78)))))*AH$8))/2000","v":0.19689305694368972},{"$f":"(SUMPRODUCT(AI$9:AI$229,Nutrients!$BW$8:$BW$228)+(IF($A$7=Nutrients!$B$8,Nutrients!$BW$8,Nutrients!$BW$9)*AI$7)+(((IF($A$8=Nutrients!$B$79,Nutrients!$BW$79,(IF($A$8=Nutrients!$B$77,Nutrients!$BW$77,Nutrients!$BW$78)))))*AI$8))/2000","v":0.16577103413561747},null,{"$f":"(SUMPRODUCT(AK$9:AK$229,Nutrients!$BW$8:$BW$228)+(IF($A$7=Nutrients!$B$8,Nutrients!$BW$8,Nutrients!$BW$9)*AK$7)+(((IF($A$8=Nutrients!$B$79,Nutrients!$BW$79,(IF($A$8=Nutrients!$B$77,Nutrients!$BW$77,Nutrients!$BW$78)))))*AK$8))/2000","v":0.21336629761892068},{"$f":"(SUMPRODUCT(AL$9:AL$229,Nutrients!$BW$8:$BW$228)+(IF($A$7=Nutrients!$B$8,Nutrients!$BW$8,Nutrients!$BW$9)*AL$7)+(((IF($A$8=Nutrients!$B$79,Nutrients!$BW$79,(IF($A$8=Nutrients!$B$77,Nutrients!$BW$77,Nutrients!$BW$78)))))*AL$8))/2000","v":0.2106543797648954},{"$f":"(SUMPRODUCT(AM$9:AM$229,Nutrients!$BW$8:$BW$228)+(IF($A$7=Nutrients!$B$8,Nutrients!$BW$8,Nutrients!$BW$9)*AM$7)+(((IF($A$8=Nutrients!$B$79,Nutrients!$BW$79,(IF($A$8=Nutrients!$B$77,Nutrients!$BW$77,Nutrients!$BW$78)))))*AM$8))/2000","v":0.20834707869822303},{"$f":"(SUMPRODUCT(AN$9:AN$229,Nutrients!$BW$8:$BW$228)+(IF($A$7=Nutrients!$B$8,Nutrients!$BW$8,Nutrients!$BW$9)*AN$7)+(((IF($A$8=Nutrients!$B$79,Nutrients!$BW$79,(IF($A$8=Nutrients!$B$77,Nutrients!$BW$77,Nutrients!$BW$78)))))*AN$8))/2000","v":0.20622379328016605},{"$f":"(SUMPRODUCT(AO$9:AO$229,Nutrients!$BW$8:$BW$228)+(IF($A$7=Nutrients!$B$8,Nutrients!$BW$8,Nutrients!$BW$9)*AO$7)+(((IF($A$8=Nutrients!$B$79,Nutrients!$BW$79,(IF($A$8=Nutrients!$B$77,Nutrients!$BW$77,Nutrients!$BW$78)))))*AO$8))/2000","v":0.20452471846281339},{"$f":"(SUMPRODUCT(AP$9:AP$229,Nutrients!$BW$8:$BW$228)+(IF($A$7=Nutrients!$B$8,Nutrients!$BW$8,Nutrients!$BW$9)*AP$7)+(((IF($A$8=Nutrients!$B$79,Nutrients!$BW$79,(IF($A$8=Nutrients!$B$77,Nutrients!$BW$77,Nutrients!$BW$78)))))*AP$8))/2000","v":0.16577103413561747},null,{"$f":"(SUMPRODUCT(AR$9:AR$229,Nutrients!$BW$8:$BW$228)+(IF($A$7=Nutrients!$B$8,Nutrients!$BW$8,Nutrients!$BW$9)*AR$7)+(((IF($A$8=Nutrients!$B$79,Nutrients!$BW$79,(IF($A$8=Nutrients!$B$77,Nutrients!$BW$77,Nutrients!$BW$78)))))*AR$8))/2000","v":0.2208707117696142},{"$f":"(SUMPRODUCT(AS$9:AS$229,Nutrients!$BW$8:$BW$228)+(IF($A$7=Nutrients!$B$8,Nutrients!$BW$8,Nutrients!$BW$9)*AS$7)+(((IF($A$8=Nutrients!$B$79,Nutrients!$BW$79,(IF($A$8=Nutrients!$B$77,Nutrients!$BW$77,Nutrients!$BW$78)))))*AS$8))/2000","v":0.21815953385691766},{"$f":"(SUMPRODUCT(AT$9:AT$229,Nutrients!$BW$8:$BW$228)+(IF($A$7=Nutrients!$B$8,Nutrients!$BW$8,Nutrients!$BW$9)*AT$7)+(((IF($A$8=Nutrients!$B$79,Nutrients!$BW$79,(IF($A$8=Nutrients!$B$77,Nutrients!$BW$77,Nutrients!$BW$78)))))*AT$8))/2000","v":0.21585708962025246},{"$f":"(SUMPRODUCT(AU$9:AU$229,Nutrients!$BW$8:$BW$228)+(IF($A$7=Nutrients!$B$8,Nutrients!$BW$8,Nutrients!$BW$9)*AU$7)+(((IF($A$8=Nutrients!$B$79,Nutrients!$BW$79,(IF($A$8=Nutrients!$B$77,Nutrients!$BW$77,Nutrients!$BW$78)))))*AU$8))/2000","v":0.21385593836634298},{"$f":"(SUMPRODUCT(AV$9:AV$229,Nutrients!$BW$8:$BW$228)+(IF($A$7=Nutrients!$B$8,Nutrients!$BW$8,Nutrients!$BW$9)*AV$7)+(((IF($A$8=Nutrients!$B$79,Nutrients!$BW$79,(IF($A$8=Nutrients!$B$77,Nutrients!$BW$77,Nutrients!$BW$78)))))*AV$8))/2000","v":0.21215637956622457},{"$f":"(SUMPRODUCT(AW$9:AW$229,Nutrients!$BW$8:$BW$228)+(IF($A$7=Nutrients!$B$8,Nutrients!$BW$8,Nutrients!$BW$9)*AW$7)+(((IF($A$8=Nutrients!$B$79,Nutrients!$BW$79,(IF($A$8=Nutrients!$B$77,Nutrients!$BW$77,Nutrients!$BW$78)))))*AW$8))/2000","v":0.16577103413561747}]
["Cl, %",{"$f":"(SUMPRODUCT(B$9:B$229,Nutrients!$BT$8:$BT$228)+(IF($A$7=Nutrients!$B$8,Nutrients!$BT$8,Nutrients!$BT$9)*B$7)+(((IF($A$8=Nutrients!$B$79,Nutrients!$BT$79,(IF($A$8=Nutrients!$B$77,Nutrients!$BT$77,Nutrients!$BT$78)))))*B$8))/2000","v":0.34074334390126987},{"$f":"(SUMPRODUCT(C$9:C$229,Nutrients!$BT$8:$BT$228)+(IF($A$7=Nutrients!$B$8,Nutrients!$BT$8,Nutrients!$BT$9)*C$7)+(((IF($A$8=Nutrients!$B$79,Nutrients!$BT$79,(IF($A$8=Nutrients!$B$77,Nutrients!$BT$77,Nutrients!$BT$78)))))*C$8))/2000","v":0.33141446527128632},{"$f":"(SUMPRODUCT(D$9:D$229,Nutrients!$BT$8:$BT$228)+(IF($A$7=Nutrients!$B$8,Nutrients!$BT$8,Nutrients!$BT$9)*D$7)+(((IF($A$8=Nutrients!$B$79,Nutrients!$BT$79,(IF($A$8=Nutrients!$B$77,Nutrients!$BT$77,Nutrients!$BT$78)))))*D$8))/2000","v":0.32208201141013715},{"$f":"(SUMPRODUCT(E$9:E$229,Nutrients!$BT$8:$BT$228)+(IF($A$7=Nutrients!$B$8,Nutrients!$BT$8,Nutrients!$BT$9)*E$7)+(((IF($A$8=Nutrients!$B$79,Nutrients!$BT$79,(IF($A$8=Nutrients!$B$77,Nutrients!$BT$77,Nutrients!$BT$78)))))*E$8))/2000","v":0.31765998822682556},{"$f":"(SUMPRODUCT(F$9:F$229,Nutrients!$BT$8:$BT$228)+(IF($A$7=Nutrients!$B$8,Nutrients!$BT$8,Nutrients!$BT$9)*F$7)+(((IF($A$8=Nutrients!$B$79,Nutrients!$BT$79,(IF($A$8=Nutrients!$B$77,Nutrients!$BT$77,Nutrients!$BT$78)))))*F$8))/2000","v":0.31776531917662576},{"$f":"(SUMPRODUCT(G$9:G$229,Nutrients!$BT$8:$BT$228)+(IF($A$7=Nutrients!$B$8,Nutrients!$BT$8,Nutrients!$BT$9)*G$7)+(((IF($A$8=Nutrients!$B$79,Nutrients!$BT$79,(IF($A$8=Nutrients!$B$77,Nutrients!$BT$77,Nutrients!$BT$78)))))*G$8))/2000","v":0.31780178721106933},null,{"$f":"(SUMPRODUCT(I$9:I$229,Nutrients!$BT$8:$BT$228)+(IF($A$7=Nutrients!$B$8,Nutrients!$BT$8,Nutrients!$BT$9)*I$7)+(((IF($A$8=Nutrients!$B$79,Nutrients!$BT$79,(IF($A$8=Nutrients!$B$77,Nutrients!$BT$77,Nutrients!$BT$78)))))*I$8))/2000","v":0.35214530521477544},{"$f":"(SUMPRODUCT(J$9:J$229,Nutrients!$BT$8:$BT$228)+(IF($A$7=Nutrients!$B$8,Nutrients!$BT$8,Nutrients!$BT$9)*J$7)+(((IF($A$8=Nutrients!$B$79,Nutrients!$BT$79,(IF($A$8=Nutrients!$B$77,Nutrients!$BT$77,Nutrients!$BT$78)))))*J$8))/2000","v":0.34280891000235425},{"$f":"(SUMPRODUCT(K$9:K$229,Nutrients!$BT$8:$BT$228)+(IF($A$7=Nutrients!$B$8,Nutrients!$BT$8,Nutrients!$BT$9)*K$7)+(((IF($A$8=Nutrients!$B$79,Nutrients!$BT$79,(IF($A$8=Nutrients!$B$77,Nutrients!$BT$77,Nutrients!$BT$78)))))*K$8))/2000","v":0.33347996153785703},{"$f":"(SUMPRODUCT(L$9:L$229,Nutrients!$BT$8:$BT$228)+(IF($A$7=Nutrients!$B$8,Nutrients!$BT$8,Nutrients!$BT$9)*L$7)+(((IF($A$8=Nutrients!$B$79,Nutrients!$BT$79,(IF($A$8=Nutrients!$B$77,Nutrients!$BT$77,Nutrients!$BT$78)))))*L$8))/2000","v":0.32905482268203223},{"$f":"(SUMPRODUCT(M$9:M$229,Nutrients!$BT$8:$BT$228)+(IF($A$7=Nutrients!$B$8,Nutrients!$BT$8,Nutrients!$BT$9)*M$7)+(((IF($A$8=Nutrients!$B$79,Nutrients!$BT$79,(IF($A$8=Nutrients!$B$77,Nutrients!$BT$77,Nutrients!$BT$78)))))*M$8))/2000","v":0.3291603669445653},{"$f":"(SUMPRODUCT(N$9:N$229,Nutrients!$BT$8:$BT$228)+(IF($A$7=Nutrients!$B$8,Nutrients!$BT$8,Nutrients!$BT$9)*N$7)+(((IF($A$8=Nutrients!$B$79,Nutrients!$BT$79,(IF($A$8=Nutrients!$B$77,Nutrients!$BT$77,Nutrients!$BT$78)))))*N$8))/2000","v":0.31780178721106933},null,{"$f":"(SUMPRODUCT(P$9:P$229,Nutrients!$BT$8:$BT$228)+(IF($A$7=Nutrients!$B$8,Nutrients!$BT$8,Nutrients!$BT$9)*P$7)+(((IF($A$8=Nutrients!$B$79,Nutrients!$BT$79,(IF($A$8=Nutrients!$B$77,Nutrients!$BT$77,Nutrients!$BT$78)))))*P$8))/2000","v":0.36354228559705848},{"$f":"(SUMPRODUCT(Q$9:Q$229,Nutrients!$BT$8:$BT$228)+(IF($A$7=Nutrients!$B$8,Nutrients!$BT$8,Nutrients!$BT$9)*Q$7)+(((IF($A$8=Nutrients!$B$79,Nutrients!$BT$79,(IF($A$8=Nutrients!$B$77,Nutrients!$BT$77,Nutrients!$BT$78)))))*Q$8))/2000","v":0.35420402570649528},{"$f":"(SUMPRODUCT(R$9:R$229,Nutrients!$BT$8:$BT$228)+(IF($A$7=Nutrients!$B$8,Nutrients!$BT$8,Nutrients!$BT$9)*R$7)+(((IF($A$8=Nutrients!$B$79,Nutrients!$BT$79,(IF($A$8=Nutrients!$B$77,Nutrients!$BT$77,Nutrients!$BT$78)))))*R$8))/2000","v":0.34487290001979115},{"$f":"(SUMPRODUCT(S$9:S$229,Nutrients!$BT$8:$BT$228)+(IF($A$7=Nutrients!$B$8,Nutrients!$BT$8,Nutrients!$BT$9)*S$7)+(((IF($A$8=Nutrients!$B$79,Nutrients!$BT$79,(IF($A$8=Nutrients!$B$77,Nutrients!$BT$77,Nutrients!$BT$78)))))*S$8))/2000","v":0.34044832418266713},{"$f":"(SUMPRODUCT(T$9:T$229,Nutrients!$BT$8:$BT$228)+(IF($A$7=Nutrients!$B$8,Nutrients!$BT$8,Nutrients!$BT$9)*T$7)+(((IF($A$8=Nutrients!$B$79,Nutrients!$BT$79,(IF($A$8=Nutrients!$B$77,Nutrients!$BT$77,Nutrients!$BT$78)))))*T$8))/2000","v":0.34055514587610441},{"$f":"(SUMPRODUCT(U$9:U$229,Nutrients!$BT$8:$BT$228)+(IF($A$7=Nutrients!$B$8,Nutrients!$BT$8,Nutrients!$BT$9)*U$7)+(((IF($A$8=Nutrients!$B$79,Nutrients!$BT$79,(IF($A$8=Nutrients!$B$77,Nutrients!$BT$77,Nutrients!$BT$78)))))*U$8))/2000","v":0.31780178721106933},null,{"$f":"(SUMPRODUCT(W$9:W$229,Nutrients!$BT$8:$BT$228)+(IF($A$7=Nutrients!$B$8,Nutrients!$BT$8,Nutrients!$BT$9)*W$7)+(((IF($A$8=Nutrients!$B$79,Nutrients!$BT$79,(IF($A$8=Nutrients!$B$77,Nutrients!$BT$77,Nutrients!$BT$78)))))*W$8))/2000","v":0.37494098564243494},{"$f":"(SUMPRODUCT(X$9:X$229,Nutrients!$BT$8:$BT$228)+(IF($A$7=Nutrients!$B$8,Nutrients!$BT$8,Nutrients!$BT$9)*X$7)+(((IF($A$8=Nutrients!$B$79,Nutrients!$BT$79,(IF($A$8=Nutrients!$B$77,Nutrients!$BT$77,Nutrients!$BT$78)))))*X$8))/2000","v":0.36559954177129955},{"$f":"(SUMPRODUCT(Y$9:Y$229,Nutrients!$BT$8:$BT$228)+(IF($A$7=Nutrients!$B$8,Nutrients!$BT$8,Nutrients!$BT$9)*Y$7)+(((IF($A$8=Nutrients!$B$79,Nutrients!$BT$79,(IF($A$8=Nutrients!$B$77,Nutrients!$BT$77,Nutrients!$BT$78)))))*Y$8))/2000","v":0.35626897055796947},{"$f":"(SUMPRODUCT(Z$9:Z$229,Nutrients!$BT$8:$BT$228)+(IF($A$7=Nutrients!$B$8,Nutrients!$BT$8,Nutrients!$BT$9)*Z$7)+(((IF($A$8=Nutrients!$B$79,Nutrients!$BT$79,(IF($A$8=Nutrients!$B$77,Nutrients!$BT$77,Nutrients!$BT$78)))))*Z$8))/2000","v":0.35184080617756003},{"$f":"(SUMPRODUCT(AA$9:AA$229,Nutrients!$BT$8:$BT$228)+(IF($A$7=Nutrients!$B$8,Nutrients!$BT$8,Nutrients!$BT$9)*AA$7)+(((IF($A$8=Nutrients!$B$79,Nutrients!$BT$79,(IF($A$8=Nutrients!$B$77,Nutrients!$BT$77,Nutrients!$BT$78)))))*AA$8))/2000","v":0.35194403112973166},{"$f":"(SUMPRODUCT(AB$9:AB$229,Nutrients!$BT$8:$BT$228)+(IF($A$7=Nutrients!$B$8,Nutrients!$BT$8,Nutrients!$BT$9)*AB$7)+(((IF($A$8=Nutrients!$B$79,Nutrients!$BT$79,(IF($A$8=Nutrients!$B$77,Nutrients!$BT$77,Nutrients!$BT$78)))))*AB$8))/2000","v":0.31780178721106933},null,{"$f":"(SUMPRODUCT(AD$9:AD$229,Nutrients!$BT$8:$BT$228)+(IF($A$7=Nutrients!$B$8,Nutrients!$BT$8,Nutrients!$BT$9)*AD$7)+(((IF($A$8=Nutrients!$B$79,Nutrients!$BT$79,(IF($A$8=Nutrients!$B$77,Nutrients!$BT$77,Nutrients!$BT$78)))))*AD$8))/2000","v":0.38633665733093681},{"$f":"(SUMPRODUCT(AE$9:AE$229,Nutrients!$BT$8:$BT$228)+(IF($A$7=Nutrients!$B$8,Nutrients!$BT$8,Nutrients!$BT$9)*AE$7)+(((IF($A$8=Nutrients!$B$79,Nutrients!$BT$79,(IF($A$8=Nutrients!$B$77,Nutrients!$BT$77,Nutrients!$BT$78)))))*AE$8))/2000","v":0.3769964749178279},{"$f":"(SUMPRODUCT(AF$9:AF$229,Nutrients!$BT$8:$BT$228)+(IF($A$7=Nutrients!$B$8,Nutrients!$BT$8,Nutrients!$BT$9)*AF$7)+(((IF($A$8=Nutrients!$B$79,Nutrients!$BT$79,(IF($A$8=Nutrients!$B$77,Nutrients!$BT$77,Nutrients!$BT$78)))))*AF$8))/2000","v":0.36766149649050273},{"$f":"(SUMPRODUCT(AG$9:AG$229,Nutrients!$BT$8:$BT$228)+(IF($A$7=Nutrients!$B$8,Nutrients!$BT$8,Nutrients!$BT$9)*AG$7)+(((IF($A$8=Nutrients!$B$79,Nutrients!$BT$79,(IF($A$8=Nutrients!$B$77,Nutrients!$BT$77,Nutrients!$BT$78)))))*AG$8))/2000","v":0.36323176606842644},{"$f":"(SUMPRODUCT(AH$9:AH$229,Nutrients!$BT$8:$BT$228)+(IF($A$7=Nutrients!$B$8,Nutrients!$BT$8,Nutrients!$BT$9)*AH$7)+(((IF($A$8=Nutrients!$B$79,Nutrients!$BT$79,(IF($A$8=Nutrients!$B$77,Nutrients!$BT$77,Nutrients!$BT$78)))))*AH$8))/2000","v":0.363276836104024},{"$f":"(SUMPRODUCT(AI$9:AI$229,Nutrients!$BT$8:$BT$228)+(IF($A$7=Nutrients!$B$8,Nutrients!$BT$8,Nutrients!$BT$9)*AI$7)+(((IF($A$8=Nutrients!$B$79,Nutrients!$BT$79,(IF($A$8=Nutrients!$B$77,Nutrients!$BT$77,Nutrients!$BT$78)))))*AI$8))/2000","v":0.31780178721106933},null,{"$f":"(SUMPRODUCT(AK$9:AK$229,Nutrients!$BT$8:$BT$228)+(IF($A$7=Nutrients!$B$8,Nutrients!$BT$8,Nutrients!$BT$9)*AK$7)+(((IF($A$8=Nutrients!$B$79,Nutrients!$BT$79,(IF($A$8=Nutrients!$B$77,Nutrients!$BT$77,Nutrients!$BT$78)))))*AK$8))/2000","v":0.39773016348541529},{"$f":"(SUMPRODUCT(AL$9:AL$229,Nutrients!$BT$8:$BT$228)+(IF($A$7=Nutrients!$B$8,Nutrients!$BT$8,Nutrients!$BT$9)*AL$7)+(((IF($A$8=Nutrients!$B$79,Nutrients!$BT$79,(IF($A$8=Nutrients!$B$77,Nutrients!$BT$77,Nutrients!$BT$78)))))*AL$8))/2000","v":0.38838896361062042},{"$f":"(SUMPRODUCT(AM$9:AM$229,Nutrients!$BT$8:$BT$228)+(IF($A$7=Nutrients!$B$8,Nutrients!$BT$8,Nutrients!$BT$9)*AM$7)+(((IF($A$8=Nutrients!$B$79,Nutrients!$BT$79,(IF($A$8=Nutrients!$B$77,Nutrients!$BT$77,Nutrients!$BT$78)))))*AM$8))/2000","v":0.37905547438259368},{"$f":"(SUMPRODUCT(AN$9:AN$229,Nutrients!$BT$8:$BT$228)+(IF($A$7=Nutrients!$B$8,Nutrients!$BT$8,Nutrients!$BT$9)*AN$7)+(((IF($A$8=Nutrients!$B$79,Nutrients!$BT$79,(IF($A$8=Nutrients!$B$77,Nutrients!$BT$77,Nutrients!$BT$78)))))*AN$8))/2000","v":0.37457257877973621},{"$f":"(SUMPRODUCT(AO$9:AO$229,Nutrients!$BT$8:$BT$228)+(IF($A$7=Nutrients!$B$8,Nutrients!$BT$8,Nutrients!$BT$9)*AO$7)+(((IF($A$8=Nutrients!$B$79,Nutrients!$BT$79,(IF($A$8=Nutrients!$B$77,Nutrients!$BT$77,Nutrients!$BT$78)))))*AO$8))/2000","v":0.37459441647760444},{"$f":"(SUMPRODUCT(AP$9:AP$229,Nutrients!$BT$8:$BT$228)+(IF($A$7=Nutrients!$B$8,Nutrients!$BT$8,Nutrients!$BT$9)*AP$7)+(((IF($A$8=Nutrients!$B$79,Nutrients!$BT$79,(IF($A$8=Nutrients!$B$77,Nutrients!$BT$77,Nutrients!$BT$78)))))*AP$8))/2000","v":0.31780178721106933},null,{"$f":"(SUMPRODUCT(AR$9:AR$229,Nutrients!$BT$8:$BT$228)+(IF($A$7=Nutrients!$B$8,Nutrients!$BT$8,Nutrients!$BT$9)*AR$7)+(((IF($A$8=Nutrients!$B$79,Nutrients!$BT$79,(IF($A$8=Nutrients!$B$77,Nutrients!$BT$77,Nutrients!$BT$78)))))*AR$8))/2000","v":0.40911965484028517},{"$f":"(SUMPRODUCT(AS$9:AS$229,Nutrients!$BT$8:$BT$228)+(IF($A$7=Nutrients!$B$8,Nutrients!$BT$8,Nutrients!$BT$9)*AS$7)+(((IF($A$8=Nutrients!$B$79,Nutrients!$BT$79,(IF($A$8=Nutrients!$B$77,Nutrients!$BT$77,Nutrients!$BT$78)))))*AS$8))/2000","v":0.39978085038102251},{"$f":"(SUMPRODUCT(AT$9:AT$229,Nutrients!$BT$8:$BT$228)+(IF($A$7=Nutrients!$B$8,Nutrients!$BT$8,Nutrients!$BT$9)*AT$7)+(((IF($A$8=Nutrients!$B$79,Nutrients!$BT$79,(IF($A$8=Nutrients!$B$77,Nutrients!$BT$77,Nutrients!$BT$78)))))*AT$8))/2000","v":0.39043947118985589},{"$f":"(SUMPRODUCT(AU$9:AU$229,Nutrients!$BT$8:$BT$228)+(IF($A$7=Nutrients!$B$8,Nutrients!$BT$8,Nutrients!$BT$9)*AU$7)+(((IF($A$8=Nutrients!$B$79,Nutrients!$BT$79,(IF($A$8=Nutrients!$B$77,Nutrients!$BT$77,Nutrients!$BT$78)))))*AU$8))/2000","v":0.38589036671931354},{"$f":"(SUMPRODUCT(AV$9:AV$229,Nutrients!$BT$8:$BT$228)+(IF($A$7=Nutrients!$B$8,Nutrients!$BT$8,Nutrients!$BT$9)*AV$7)+(((IF($A$8=Nutrients!$B$79,Nutrients!$BT$79,(IF($A$8=Nutrients!$B$77,Nutrients!$BT$77,Nutrients!$BT$78)))))*AV$8))/2000","v":0.38591198608749266},{"$f":"(SUMPRODUCT(AW$9:AW$229,Nutrients!$BT$8:$BT$228)+(IF($A$7=Nutrients!$B$8,Nutrients!$BT$8,Nutrients!$BT$9)*AW$7)+(((IF($A$8=Nutrients!$B$79,Nutrients!$BT$79,(IF($A$8=Nutrients!$B$77,Nutrients!$BT$77,Nutrients!$BT$78)))))*AW$8))/2000","v":0.31780178721106933}]
["K, %",{"$f":"(SUMPRODUCT(B$9:B$229,Nutrients!$BU$8:$BU$228)+(IF($A$7=Nutrients!$B$8,Nutrients!$BU$8,Nutrients!$BU$9)*B$7)+(((IF($A$8=Nutrients!$B$79,Nutrients!$BU$79,(IF($A$8=Nutrients!$B$77,Nutrients!$BU$77,Nutrients!$BU$78)))))*B$8))/2000","v":0.82299889398162063},{"$f":"(SUMPRODUCT(C$9:C$229,Nutrients!$BU$8:$BU$228)+(IF($A$7=Nutrients!$B$8,Nutrients!$BU$8,Nutrients!$BU$9)*C$7)+(((IF($A$8=Nutrients!$B$79,Nutrients!$BU$79,(IF($A$8=Nutrients!$B$77,Nutrients!$BU$77,Nutrients!$BU$78)))))*C$8))/2000","v":0.74655886728664078},{"$f":"(SUMPRODUCT(D$9:D$229,Nutrients!$BU$8:$BU$228)+(IF($A$7=Nutrients!$B$8,Nutrients!$BU$8,Nutrients!$BU$9)*D$7)+(((IF($A$8=Nutrients!$B$79,Nutrients!$BU$79,(IF($A$8=Nutrients!$B$77,Nutrients!$BU$77,Nutrients!$BU$78)))))*D$8))/2000","v":0.68235096300443021},{"$f":"(SUMPRODUCT(E$9:E$229,Nutrients!$BU$8:$BU$228)+(IF($A$7=Nutrients!$B$8,Nutrients!$BU$8,Nutrients!$BU$9)*E$7)+(((IF($A$8=Nutrients!$B$79,Nutrients!$BU$79,(IF($A$8=Nutrients!$B$77,Nutrients!$BU$77,Nutrients!$BU$78)))))*E$8))/2000","v":0.61832324439114794},{"$f":"(SUMPRODUCT(F$9:F$229,Nutrients!$BU$8:$BU$228)+(IF($A$7=Nutrients!$B$8,Nutrients!$BU$8,Nutrients!$BU$9)*F$7)+(((IF($A$8=Nutrients!$B$79,Nutrients!$BU$79,(IF($A$8=Nutrients!$B$77,Nutrients!$BU$77,Nutrients!$BU$78)))))*F$8))/2000","v":0.5641190327748159},{"$f":"(SUMPRODUCT(G$9:G$229,Nutrients!$BU$8:$BU$228)+(IF($A$7=Nutrients!$B$8,Nutrients!$BU$8,Nutrients!$BU$9)*G$7)+(((IF($A$8=Nutrients!$B$79,Nutrients!$BU$79,(IF($A$8=Nutrients!$B$77,Nutrients!$BU$77,Nutrients!$BU$78)))))*G$8))/2000","v":0.53408892433970367},null,{"$f":"(SUMPRODUCT(I$9:I$229,Nutrients!$BU$8:$BU$228)+(IF($A$7=Nutrients!$B$8,Nutrients!$BU$8,Nutrients!$BU$9)*I$7)+(((IF($A$8=Nutrients!$B$79,Nutrients!$BU$79,(IF($A$8=Nutrients!$B$77,Nutrients!$BU$77,Nutrients!$BU$78)))))*I$8))/2000","v":0.82643545418371034},{"$f":"(SUMPRODUCT(J$9:J$229,Nutrients!$BU$8:$BU$228)+(IF($A$7=Nutrients!$B$8,Nutrients!$BU$8,Nutrients!$BU$9)*J$7)+(((IF($A$8=Nutrients!$B$79,Nutrients!$BU$79,(IF($A$8=Nutrients!$B$77,Nutrients!$BU$77,Nutrients!$BU$78)))))*J$8))/2000","v":0.74997639390212012},{"$f":"(SUMPRODUCT(K$9:K$229,Nutrients!$BU$8:$BU$228)+(IF($A$7=Nutrients!$B$8,Nutrients!$BU$8,Nutrients!$BU$9)*K$7)+(((IF($A$8=Nutrients!$B$79,Nutrients!$BU$79,(IF($A$8=Nutrients!$B$77,Nutrients!$BU$77,Nutrients!$BU$78)))))*K$8))/2000","v":0.68577047477827435},{"$f":"(SUMPRODUCT(L$9:L$229,Nutrients!$BU$8:$BU$228)+(IF($A$7=Nutrients!$B$8,Nutrients!$BU$8,Nutrients!$BU$9)*L$7)+(((IF($A$8=Nutrients!$B$79,Nutrients!$BU$79,(IF($A$8=Nutrients!$B$77,Nutrients!$BU$77,Nutrients!$BU$78)))))*L$8))/2000","v":0.62173693059971857},{"$f":"(SUMPRODUCT(M$9:M$229,Nutrients!$BU$8:$BU$228)+(IF($A$7=Nutrients!$B$8,Nutrients!$BU$8,Nutrients!$BU$9)*M$7)+(((IF($A$8=Nutrients!$B$79,Nutrients!$BU$79,(IF($A$8=Nutrients!$B$77,Nutrients!$BU$77,Nutrients!$BU$78)))))*M$8))/2000","v":0.56753358137533527},{"$f":"(SUMPRODUCT(N$9:N$229,Nutrients!$BU$8:$BU$228)+(IF($A$7=Nutrients!$B$8,Nutrients!$BU$8,Nutrients!$BU$9)*N$7)+(((IF($A$8=Nutrients!$B$79,Nutrients!$BU$79,(IF($A$8=Nutrients!$B$77,Nutrients!$BU$77,Nutrients!$BU$78)))))*N$8))/2000","v":0.53408892433970367},null,{"$f":"(SUMPRODUCT(P$9:P$229,Nutrients!$BU$8:$BU$228)+(IF($A$7=Nutrients!$B$8,Nutrients!$BU$8,Nutrients!$BU$9)*P$7)+(((IF($A$8=Nutrients!$B$79,Nutrients!$BU$79,(IF($A$8=Nutrients!$B$77,Nutrients!$BU$77,Nutrients!$BU$78)))))*P$8))/2000","v":0.82985662849872444},{"$f":"(SUMPRODUCT(Q$9:Q$229,Nutrients!$BU$8:$BU$228)+(IF($A$7=Nutrients!$B$8,Nutrients!$BU$8,Nutrients!$BU$9)*Q$7)+(((IF($A$8=Nutrients!$B$79,Nutrients!$BU$79,(IF($A$8=Nutrients!$B$77,Nutrients!$BU$77,Nutrients!$BU$78)))))*Q$8))/2000","v":0.75339110772031248},{"$f":"(SUMPRODUCT(R$9:R$229,Nutrients!$BU$8:$BU$228)+(IF($A$7=Nutrients!$B$8,Nutrients!$BU$8,Nutrients!$BU$9)*R$7)+(((IF($A$8=Nutrients!$B$79,Nutrients!$BU$79,(IF($A$8=Nutrients!$B$77,Nutrients!$BU$77,Nutrients!$BU$78)))))*R$8))/2000","v":0.68917750624103402},{"$f":"(SUMPRODUCT(S$9:S$229,Nutrients!$BU$8:$BU$228)+(IF($A$7=Nutrients!$B$8,Nutrients!$BU$8,Nutrients!$BU$9)*S$7)+(((IF($A$8=Nutrients!$B$79,Nutrients!$BU$79,(IF($A$8=Nutrients!$B$77,Nutrients!$BU$77,Nutrients!$BU$78)))))*S$8))/2000","v":0.62514592948589665},{"$f":"(SUMPRODUCT(T$9:T$229,Nutrients!$BU$8:$BU$228)+(IF($A$7=Nutrients!$B$8,Nutrients!$BU$8,Nutrients!$BU$9)*T$7)+(((IF($A$8=Nutrients!$B$79,Nutrients!$BU$79,(IF($A$8=Nutrients!$B$77,Nutrients!$BU$77,Nutrients!$BU$78)))))*T$8))/2000","v":0.57094704414072717},{"$f":"(SUMPRODUCT(U$9:U$229,Nutrients!$BU$8:$BU$228)+(IF($A$7=Nutrients!$B$8,Nutrients!$BU$8,Nutrients!$BU$9)*U$7)+(((IF($A$8=Nutrients!$B$79,Nutrients!$BU$79,(IF($A$8=Nutrients!$B$77,Nutrients!$BU$77,Nutrients!$BU$78)))))*U$8))/2000","v":0.53408892433970367},null,{"$f":"(SUMPRODUCT(W$9:W$229,Nutrients!$BU$8:$BU$228)+(IF($A$7=Nutrients!$B$8,Nutrients!$BU$8,Nutrients!$BU$9)*W$7)+(((IF($A$8=Nutrients!$B$79,Nutrients!$BU$79,(IF($A$8=Nutrients!$B$77,Nutrients!$BU$77,Nutrients!$BU$78)))))*W$8))/2000","v":0.83327579328001122},{"$f":"(SUMPRODUCT(X$9:X$229,Nutrients!$BU$8:$BU$228)+(IF($A$7=Nutrients!$B$8,Nutrients!$BU$8,Nutrients!$BU$9)*X$7)+(((IF($A$8=Nutrients!$B$79,Nutrients!$BU$79,(IF($A$8=Nutrients!$B$77,Nutrients!$BU$77,Nutrients!$BU$78)))))*X$8))/2000","v":0.75679914633841716},{"$f":"(SUMPRODUCT(Y$9:Y$229,Nutrients!$BU$8:$BU$228)+(IF($A$7=Nutrients!$B$8,Nutrients!$BU$8,Nutrients!$BU$9)*Y$7)+(((IF($A$8=Nutrients!$B$79,Nutrients!$BU$79,(IF($A$8=Nutrients!$B$77,Nutrients!$BU$77,Nutrients!$BU$78)))))*Y$8))/2000","v":0.69258748242160206},{"$f":"(SUMPRODUCT(Z$9:Z$229,Nutrients!$BU$8:$BU$228)+(IF($A$7=Nutrients!$B$8,Nutrients!$BU$8,Nutrients!$BU$9)*Z$7)+(((IF($A$8=Nutrients!$B$79,Nutrients!$BU$79,(IF($A$8=Nutrients!$B$77,Nutrients!$BU$77,Nutrients!$BU$78)))))*Z$8))/2000","v":0.62854336579152625},{"$f":"(SUMPRODUCT(AA$9:AA$229,Nutrients!$BU$8:$BU$228)+(IF($A$7=Nutrients!$B$8,Nutrients!$BU$8,Nutrients!$BU$9)*AA$7)+(((IF($A$8=Nutrients!$B$79,Nutrients!$BU$79,(IF($A$8=Nutrients!$B$77,Nutrients!$BU$77,Nutrients!$BU$78)))))*AA$8))/2000","v":0.57433191192423905},{"$f":"(SUMPRODUCT(AB$9:AB$229,Nutrients!$BU$8:$BU$228)+(IF($A$7=Nutrients!$B$8,Nutrients!$BU$8,Nutrients!$BU$9)*AB$7)+(((IF($A$8=Nutrients!$B$79,Nutrients!$BU$79,(IF($A$8=Nutrients!$B$77,Nutrients!$BU$77,Nutrients!$BU$78)))))*AB$8))/2000","v":0.53408892433970367},null,{"$f":"(SUMPRODUCT(AD$9:AD$229,Nutrients!$BU$8:$BU$228)+(IF($A$7=Nutrients!$B$8,Nutrients!$BU$8,Nutrients!$BU$9)*AD$7)+(((IF($A$8=Nutrients!$B$79,Nutrients!$BU$79,(IF($A$8=Nutrients!$B$77,Nutrients!$BU$77,Nutrients!$BU$78)))))*AD$8))/2000","v":0.83668437571256915},{"$f":"(SUMPRODUCT(AE$9:AE$229,Nutrients!$BU$8:$BU$228)+(IF($A$7=Nutrients!$B$8,Nutrients!$BU$8,Nutrients!$BU$9)*AE$7)+(((IF($A$8=Nutrients!$B$79,Nutrients!$BU$79,(IF($A$8=Nutrients!$B$77,Nutrients!$BU$77,Nutrients!$BU$78)))))*AE$8))/2000","v":0.76021213683425737},{"$f":"(SUMPRODUCT(AF$9:AF$229,Nutrients!$BU$8:$BU$228)+(IF($A$7=Nutrients!$B$8,Nutrients!$BU$8,Nutrients!$BU$9)*AF$7)+(((IF($A$8=Nutrients!$B$79,Nutrients!$BU$79,(IF($A$8=Nutrients!$B$77,Nutrients!$BU$77,Nutrients!$BU$78)))))*AF$8))/2000","v":0.69598507226377071},{"$f":"(SUMPRODUCT(AG$9:AG$229,Nutrients!$BU$8:$BU$228)+(IF($A$7=Nutrients!$B$8,Nutrients!$BU$8,Nutrients!$BU$9)*AG$7)+(((IF($A$8=Nutrients!$B$79,Nutrients!$BU$79,(IF($A$8=Nutrients!$B$77,Nutrients!$BU$77,Nutrients!$BU$78)))))*AG$8))/2000","v":0.63193562136936177},{"$f":"(SUMPRODUCT(AH$9:AH$229,Nutrients!$BU$8:$BU$228)+(IF($A$7=Nutrients!$B$8,Nutrients!$BU$8,Nutrients!$BU$9)*AH$7)+(((IF($A$8=Nutrients!$B$79,Nutrients!$BU$79,(IF($A$8=Nutrients!$B$77,Nutrients!$BU$77,Nutrients!$BU$78)))))*AH$8))/2000","v":0.57761486422952724},{"$f":"(SUMPRODUCT(AI$9:AI$229,Nutrients!$BU$8:$BU$228)+(IF($A$7=Nutrients!$B$8,Nutrients!$BU$8,Nutrients!$BU$9)*AI$7)+(((IF($A$8=Nutrients!$B$79,Nutrients!$BU$79,(IF($A$8=Nutrients!$B$77,Nutrients!$BU$77,Nutrients!$BU$78)))))*AI$8))/2000","v":0.53408892433970367},null,{"$f":"(SUMPRODUCT(AK$9:AK$229,Nutrients!$BU$8:$BU$228)+(IF($A$7=Nutrients!$B$8,Nutrients!$BU$8,Nutrients!$BU$9)*AK$7)+(((IF($A$8=Nutrients!$B$79,Nutrients!$BU$79,(IF($A$8=Nutrients!$B$77,Nutrients!$BU$77,Nutrients!$BU$78)))))*AK$8))/2000","v":0.84009339086122736},{"$f":"(SUMPRODUCT(AL$9:AL$229,Nutrients!$BU$8:$BU$228)+(IF($A$7=Nutrients!$B$8,Nutrients!$BU$8,Nutrients!$BU$9)*AL$7)+(((IF($A$8=Nutrients!$B$79,Nutrients!$BU$79,(IF($A$8=Nutrients!$B$77,Nutrients!$BU$77,Nutrients!$BU$78)))))*AL$8))/2000","v":0.76361759654515704},{"$f":"(SUMPRODUCT(AM$9:AM$229,Nutrients!$BU$8:$BU$228)+(IF($A$7=Nutrients!$B$8,Nutrients!$BU$8,Nutrients!$BU$9)*AM$7)+(((IF($A$8=Nutrients!$B$79,Nutrients!$BU$79,(IF($A$8=Nutrients!$B$77,Nutrients!$BU$77,Nutrients!$BU$78)))))*AM$8))/2000","v":0.69939573586144976},{"$f":"(SUMPRODUCT(AN$9:AN$229,Nutrients!$BU$8:$BU$228)+(IF($A$7=Nutrients!$B$8,Nutrients!$BU$8,Nutrients!$BU$9)*AN$7)+(((IF($A$8=Nutrients!$B$79,Nutrients!$BU$79,(IF($A$8=Nutrients!$B$77,Nutrients!$BU$77,Nutrients!$BU$78)))))*AN$8))/2000","v":0.63523921898508329},{"$f":"(SUMPRODUCT(AO$9:AO$229,Nutrients!$BU$8:$BU$228)+(IF($A$7=Nutrients!$B$8,Nutrients!$BU$8,Nutrients!$BU$9)*AO$7)+(((IF($A$8=Nutrients!$B$79,Nutrients!$BU$79,(IF($A$8=Nutrients!$B$77,Nutrients!$BU$77,Nutrients!$BU$78)))))*AO$8))/2000","v":0.58086522843701693},{"$f":"(SUMPRODUCT(AP$9:AP$229,Nutrients!$BU$8:$BU$228)+(IF($A$7=Nutrients!$B$8,Nutrients!$BU$8,Nutrients!$BU$9)*AP$7)+(((IF($A$8=Nutrients!$B$79,Nutrients!$BU$79,(IF($A$8=Nutrients!$B$77,Nutrients!$BU$77,Nutrients!$BU$78)))))*AP$8))/2000","v":0.53408892433970367},null,{"$f":"(SUMPRODUCT(AR$9:AR$229,Nutrients!$BU$8:$BU$228)+(IF($A$7=Nutrients!$B$8,Nutrients!$BU$8,Nutrients!$BU$9)*AR$7)+(((IF($A$8=Nutrients!$B$79,Nutrients!$BU$79,(IF($A$8=Nutrients!$B$77,Nutrients!$BU$77,Nutrients!$BU$78)))))*AR$8))/2000","v":0.84348837661662324},{"$f":"(SUMPRODUCT(AS$9:AS$229,Nutrients!$BU$8:$BU$228)+(IF($A$7=Nutrients!$B$8,Nutrients!$BU$8,Nutrients!$BU$9)*AS$7)+(((IF($A$8=Nutrients!$B$79,Nutrients!$BU$79,(IF($A$8=Nutrients!$B$77,Nutrients!$BU$77,Nutrients!$BU$78)))))*AS$8))/2000","v":0.76702095288683514},{"$f":"(SUMPRODUCT(AT$9:AT$229,Nutrients!$BU$8:$BU$228)+(IF($A$7=Nutrients!$B$8,Nutrients!$BU$8,Nutrients!$BU$9)*AT$7)+(((IF($A$8=Nutrients!$B$79,Nutrients!$BU$79,(IF($A$8=Nutrients!$B$77,Nutrients!$BU$77,Nutrients!$BU$78)))))*AT$8))/2000","v":0.70277665393936517},{"$f":"(SUMPRODUCT(AU$9:AU$229,Nutrients!$BU$8:$BU$228)+(IF($A$7=Nutrients!$B$8,Nutrients!$BU$8,Nutrients!$BU$9)*AU$7)+(((IF($A$8=Nutrients!$B$79,Nutrients!$BU$79,(IF($A$8=Nutrients!$B$77,Nutrients!$BU$77,Nutrients!$BU$78)))))*AU$8))/2000","v":0.63849036596848785},{"$f":"(SUMPRODUCT(AV$9:AV$229,Nutrients!$BU$8:$BU$228)+(IF($A$7=Nutrients!$B$8,Nutrients!$BU$8,Nutrients!$BU$9)*AV$7)+(((IF($A$8=Nutrients!$B$79,Nutrients!$BU$79,(IF($A$8=Nutrients!$B$77,Nutrients!$BU$77,Nutrients!$BU$78)))))*AV$8))/2000","v":0.58411555543013183},{"$f":"(SUMPRODUCT(AW$9:AW$229,Nutrients!$BU$8:$BU$228)+(IF($A$7=Nutrients!$B$8,Nutrients!$BU$8,Nutrients!$BU$9)*AW$7)+(((IF($A$8=Nutrients!$B$79,Nutrients!$BU$79,(IF($A$8=Nutrients!$B$77,Nutrients!$BU$77,Nutrients!$BU$78)))))*AW$8))/2000","v":0.53408892433970367}]
["DCAD",{"$f":"(B306 * 434.98) + (B308* 255.74) - (B307*282.06)","v":190.85683508470862},172.75687046998428,157.97167371049909,141.87849201438749,127.1843305627486,119.05581383819251,null,{"$f":"(I306 * 434.98) + (I308* 255.74) - (I307*282.06)","v":191.78451671101925},173.68513966219621,158.89365713412019,142.80256253986681,128.10896164525849,119.05581383819251,null,{"$f":"(P306 * 434.98) + (P308* 255.74) - (P307*282.06)","v":192.71015144111513},174.60957374441014,159.81621237221549,143.72553777170288,129.03288979923195,119.05581383819251,null,{"$f":"(W306 * 434.98) + (W308* 255.74) - (W307*282.06)","v":193.63060889918714},175.52765605595761,160.73470830296625,144.64135676522992,129.94602574010756,119.05581383819251,null,{"$f":"(AD306 * 434.98) + (AD308* 255.74) - (AD307*282.06)","v":194.54880730097955},176.44679546463743,161.65056007255203,145.55651433925618,130.89790289592443,119.05581383819251,null,{"$f":"(AK306 * 434.98) + (AK308* 255.74) - (AK307*282.06)","v":195.47178600443215},177.36901517458108,162.57389067700581,146.50736189363946,131.85653444576417,119.05581383819251,null,{"$f":"(AR306 * 434.98) + (AR308* 255.74) - (AR307*282.06)","v":196.39176979723118},178.2907858698901,163.49426107765993,147.46634542652339,132.81515933358008,119.05581383819251]
["Phytate P, %",{"$f":"(SUMPRODUCT(B$9:B$229,Nutrients!$EG$8:$EG$228)+(IF($A$7=Nutrients!$B$8,Nutrients!$EG$8,Nutrients!$EG$9)*B$7)+(((IF($A$8=Nutrients!$B$79,Nutrients!$EG$79,(IF($A$8=Nutrients!$B$77,Nutrients!$EG$77,Nutrients!$EG$78)))))*B$8))/2000","v":0.25833959194258826},{"$f":"(SUMPRODUCT(C$9:C$229,Nutrients!$EG$8:$EG$228)+(IF($A$7=Nutrients!$B$8,Nutrients!$EG$8,Nutrients!$EG$9)*C$7)+(((IF($A$8=Nutrients!$B$79,Nutrients!$EG$79,(IF($A$8=Nutrients!$B$77,Nutrients!$EG$77,Nutrients!$EG$78)))))*C$8))/2000","v":0.24779907433968829},{"$f":"(SUMPRODUCT(D$9:D$229,Nutrients!$EG$8:$EG$228)+(IF($A$7=Nutrients!$B$8,Nutrients!$EG$8,Nutrients!$EG$9)*D$7)+(((IF($A$8=Nutrients!$B$79,Nutrients!$EG$79,(IF($A$8=Nutrients!$B$77,Nutrients!$EG$77,Nutrients!$EG$78)))))*D$8))/2000","v":0.23900316211582037},{"$f":"(SUMPRODUCT(E$9:E$229,Nutrients!$EG$8:$EG$228)+(IF($A$7=Nutrients!$B$8,Nutrients!$EG$8,Nutrients!$EG$9)*E$7)+(((IF($A$8=Nutrients!$B$79,Nutrients!$EG$79,(IF($A$8=Nutrients!$B$77,Nutrients!$EG$77,Nutrients!$EG$78)))))*E$8))/2000","v":0.23005692988837381},{"$f":"(SUMPRODUCT(F$9:F$229,Nutrients!$EG$8:$EG$228)+(IF($A$7=Nutrients!$B$8,Nutrients!$EG$8,Nutrients!$EG$9)*F$7)+(((IF($A$8=Nutrients!$B$79,Nutrients!$EG$79,(IF($A$8=Nutrients!$B$77,Nutrients!$EG$77,Nutrients!$EG$78)))))*F$8))/2000","v":0.22240960598768925},{"$f":"(SUMPRODUCT(G$9:G$229,Nutrients!$EG$8:$EG$228)+(IF($A$7=Nutrients!$B$8,Nutrients!$EG$8,Nutrients!$EG$9)*G$7)+(((IF($A$8=Nutrients!$B$79,Nutrients!$EG$79,(IF($A$8=Nutrients!$B$77,Nutrients!$EG$77,Nutrients!$EG$78)))))*G$8))/2000","v":0.21810869862161428},null,{"$f":"(SUMPRODUCT(I$9:I$229,Nutrients!$EG$8:$EG$228)+(IF($A$7=Nutrients!$B$8,Nutrients!$EG$8,Nutrients!$EG$9)*I$7)+(((IF($A$8=Nutrients!$B$79,Nutrients!$EG$79,(IF($A$8=Nutrients!$B$77,Nutrients!$EG$77,Nutrients!$EG$78)))))*I$8))/2000","v":0.25326105292984608},{"$f":"(SUMPRODUCT(J$9:J$229,Nutrients!$EG$8:$EG$228)+(IF($A$7=Nutrients!$B$8,Nutrients!$EG$8,Nutrients!$EG$9)*J$7)+(((IF($A$8=Nutrients!$B$79,Nutrients!$EG$79,(IF($A$8=Nutrients!$B$77,Nutrients!$EG$77,Nutrients!$EG$78)))))*J$8))/2000","v":0.24269414437588799},{"$f":"(SUMPRODUCT(K$9:K$229,Nutrients!$EG$8:$EG$228)+(IF($A$7=Nutrients!$B$8,Nutrients!$EG$8,Nutrients!$EG$9)*K$7)+(((IF($A$8=Nutrients!$B$79,Nutrients!$EG$79,(IF($A$8=Nutrients!$B$77,Nutrients!$EG$77,Nutrients!$EG$78)))))*K$8))/2000","v":0.23391181291016569},{"$f":"(SUMPRODUCT(L$9:L$229,Nutrients!$EG$8:$EG$228)+(IF($A$7=Nutrients!$B$8,Nutrients!$EG$8,Nutrients!$EG$9)*L$7)+(((IF($A$8=Nutrients!$B$79,Nutrients!$EG$79,(IF($A$8=Nutrients!$B$77,Nutrients!$EG$77,Nutrients!$EG$78)))))*L$8))/2000","v":0.22495415119564377},{"$f":"(SUMPRODUCT(M$9:M$229,Nutrients!$EG$8:$EG$228)+(IF($A$7=Nutrients!$B$8,Nutrients!$EG$8,Nutrients!$EG$9)*M$7)+(((IF($A$8=Nutrients!$B$79,Nutrients!$EG$79,(IF($A$8=Nutrients!$B$77,Nutrients!$EG$77,Nutrients!$EG$78)))))*M$8))/2000","v":0.21730676632939108},{"$f":"(SUMPRODUCT(N$9:N$229,Nutrients!$EG$8:$EG$228)+(IF($A$7=Nutrients!$B$8,Nutrients!$EG$8,Nutrients!$EG$9)*N$7)+(((IF($A$8=Nutrients!$B$79,Nutrients!$EG$79,(IF($A$8=Nutrients!$B$77,Nutrients!$EG$77,Nutrients!$EG$78)))))*N$8))/2000","v":0.21810869862161428},null,{"$f":"(SUMPRODUCT(P$9:P$229,Nutrients!$EG$8:$EG$228)+(IF($A$7=Nutrients!$B$8,Nutrients!$EG$8,Nutrients!$EG$9)*P$7)+(((IF($A$8=Nutrients!$B$79,Nutrients!$EG$79,(IF($A$8=Nutrients!$B$77,Nutrients!$EG$77,Nutrients!$EG$78)))))*P$8))/2000","v":0.24816558130013566},{"$f":"(SUMPRODUCT(Q$9:Q$229,Nutrients!$EG$8:$EG$228)+(IF($A$7=Nutrients!$B$8,Nutrients!$EG$8,Nutrients!$EG$9)*Q$7)+(((IF($A$8=Nutrients!$B$79,Nutrients!$EG$79,(IF($A$8=Nutrients!$B$77,Nutrients!$EG$77,Nutrients!$EG$78)))))*Q$8))/2000","v":0.23759201519509052},{"$f":"(SUMPRODUCT(R$9:R$229,Nutrients!$EG$8:$EG$228)+(IF($A$7=Nutrients!$B$8,Nutrients!$EG$8,Nutrients!$EG$9)*R$7)+(((IF($A$8=Nutrients!$B$79,Nutrients!$EG$79,(IF($A$8=Nutrients!$B$77,Nutrients!$EG$77,Nutrients!$EG$78)))))*R$8))/2000","v":0.22880283731511622},{"$f":"(SUMPRODUCT(S$9:S$229,Nutrients!$EG$8:$EG$228)+(IF($A$7=Nutrients!$B$8,Nutrients!$EG$8,Nutrients!$EG$9)*S$7)+(((IF($A$8=Nutrients!$B$79,Nutrients!$EG$79,(IF($A$8=Nutrients!$B$77,Nutrients!$EG$77,Nutrients!$EG$78)))))*S$8))/2000","v":0.2198470740690823},{"$f":"(SUMPRODUCT(T$9:T$229,Nutrients!$EG$8:$EG$228)+(IF($A$7=Nutrients!$B$8,Nutrients!$EG$8,Nutrients!$EG$9)*T$7)+(((IF($A$8=Nutrients!$B$79,Nutrients!$EG$79,(IF($A$8=Nutrients!$B$77,Nutrients!$EG$77,Nutrients!$EG$78)))))*T$8))/2000","v":0.21220399663047596},{"$f":"(SUMPRODUCT(U$9:U$229,Nutrients!$EG$8:$EG$228)+(IF($A$7=Nutrients!$B$8,Nutrients!$EG$8,Nutrients!$EG$9)*U$7)+(((IF($A$8=Nutrients!$B$79,Nutrients!$EG$79,(IF($A$8=Nutrients!$B$77,Nutrients!$EG$77,Nutrients!$EG$78)))))*U$8))/2000","v":0.21810869862161428},null,{"$f":"(SUMPRODUCT(W$9:W$229,Nutrients!$EG$8:$EG$228)+(IF($A$7=Nutrients!$B$8,Nutrients!$EG$8,Nutrients!$EG$9)*W$7)+(((IF($A$8=Nutrients!$B$79,Nutrients!$EG$79,(IF($A$8=Nutrients!$B$77,Nutrients!$EG$77,Nutrients!$EG$78)))))*W$8))/2000","v":0.24307603338416886},{"$f":"(SUMPRODUCT(X$9:X$229,Nutrients!$EG$8:$EG$228)+(IF($A$7=Nutrients!$B$8,Nutrients!$EG$8,Nutrients!$EG$9)*X$7)+(((IF($A$8=Nutrients!$B$79,Nutrients!$EG$79,(IF($A$8=Nutrients!$B$77,Nutrients!$EG$77,Nutrients!$EG$78)))))*X$8))/2000","v":0.23249173106951992},{"$f":"(SUMPRODUCT(Y$9:Y$229,Nutrients!$EG$8:$EG$228)+(IF($A$7=Nutrients!$B$8,Nutrients!$EG$8,Nutrients!$EG$9)*Y$7)+(((IF($A$8=Nutrients!$B$79,Nutrients!$EG$79,(IF($A$8=Nutrients!$B$77,Nutrients!$EG$77,Nutrients!$EG$78)))))*Y$8))/2000","v":0.22370442284365594},{"$f":"(SUMPRODUCT(Z$9:Z$229,Nutrients!$EG$8:$EG$228)+(IF($A$7=Nutrients!$B$8,Nutrients!$EG$8,Nutrients!$EG$9)*Z$7)+(((IF($A$8=Nutrients!$B$79,Nutrients!$EG$79,(IF($A$8=Nutrients!$B$77,Nutrients!$EG$77,Nutrients!$EG$78)))))*Z$8))/2000","v":0.21473655922451609},{"$f":"(SUMPRODUCT(AA$9:AA$229,Nutrients!$EG$8:$EG$228)+(IF($A$7=Nutrients!$B$8,Nutrients!$EG$8,Nutrients!$EG$9)*AA$7)+(((IF($A$8=Nutrients!$B$79,Nutrients!$EG$79,(IF($A$8=Nutrients!$B$77,Nutrients!$EG$77,Nutrients!$EG$78)))))*AA$8))/2000","v":0.20708135376966055},{"$f":"(SUMPRODUCT(AB$9:AB$229,Nutrients!$EG$8:$EG$228)+(IF($A$7=Nutrients!$B$8,Nutrients!$EG$8,Nutrients!$EG$9)*AB$7)+(((IF($A$8=Nutrients!$B$79,Nutrients!$EG$79,(IF($A$8=Nutrients!$B$77,Nutrients!$EG$77,Nutrients!$EG$78)))))*AB$8))/2000","v":0.21810869862161428},null,{"$f":"(SUMPRODUCT(AD$9:AD$229,Nutrients!$EG$8:$EG$228)+(IF($A$7=Nutrients!$B$8,Nutrients!$EG$8,Nutrients!$EG$9)*AD$7)+(((IF($A$8=Nutrients!$B$79,Nutrients!$EG$79,(IF($A$8=Nutrients!$B$77,Nutrients!$EG$77,Nutrients!$EG$78)))))*AD$8))/2000","v":0.23797627401325641},{"$f":"(SUMPRODUCT(AE$9:AE$229,Nutrients!$EG$8:$EG$228)+(IF($A$7=Nutrients!$B$8,Nutrients!$EG$8,Nutrients!$EG$9)*AE$7)+(((IF($A$8=Nutrients!$B$79,Nutrients!$EG$79,(IF($A$8=Nutrients!$B$77,Nutrients!$EG$77,Nutrients!$EG$78)))))*AE$8))/2000","v":0.2273962252665776},{"$f":"(SUMPRODUCT(AF$9:AF$229,Nutrients!$EG$8:$EG$228)+(IF($A$7=Nutrients!$B$8,Nutrients!$EG$8,Nutrients!$EG$9)*AF$7)+(((IF($A$8=Nutrients!$B$79,Nutrients!$EG$79,(IF($A$8=Nutrients!$B$77,Nutrients!$EG$77,Nutrients!$EG$78)))))*AF$8))/2000","v":0.2185940561544274},{"$f":"(SUMPRODUCT(AG$9:AG$229,Nutrients!$EG$8:$EG$228)+(IF($A$7=Nutrients!$B$8,Nutrients!$EG$8,Nutrients!$EG$9)*AG$7)+(((IF($A$8=Nutrients!$B$79,Nutrients!$EG$79,(IF($A$8=Nutrients!$B$77,Nutrients!$EG$77,Nutrients!$EG$78)))))*AG$8))/2000","v":0.20961999059716918},{"$f":"(SUMPRODUCT(AH$9:AH$229,Nutrients!$EG$8:$EG$228)+(IF($A$7=Nutrients!$B$8,Nutrients!$EG$8,Nutrients!$EG$9)*AH$7)+(((IF($A$8=Nutrients!$B$79,Nutrients!$EG$79,(IF($A$8=Nutrients!$B$77,Nutrients!$EG$77,Nutrients!$EG$78)))))*AH$8))/2000","v":0.20175596902328619},{"$f":"(SUMPRODUCT(AI$9:AI$229,Nutrients!$EG$8:$EG$228)+(IF($A$7=Nutrients!$B$8,Nutrients!$EG$8,Nutrients!$EG$9)*AI$7)+(((IF($A$8=Nutrients!$B$79,Nutrients!$EG$79,(IF($A$8=Nutrients!$B$77,Nutrients!$EG$77,Nutrients!$EG$78)))))*AI$8))/2000","v":0.21810869862161428},null,{"$f":"(SUMPRODUCT(AK$9:AK$229,Nutrients!$EG$8:$EG$228)+(IF($A$7=Nutrients!$B$8,Nutrients!$EG$8,Nutrients!$EG$9)*AK$7)+(((IF($A$8=Nutrients!$B$79,Nutrients!$EG$79,(IF($A$8=Nutrients!$B$77,Nutrients!$EG$77,Nutrients!$EG$78)))))*AK$8))/2000","v":0.2328692125792024},{"$f":"(SUMPRODUCT(AL$9:AL$229,Nutrients!$EG$8:$EG$228)+(IF($A$7=Nutrients!$B$8,Nutrients!$EG$8,Nutrients!$EG$9)*AL$7)+(((IF($A$8=Nutrients!$B$79,Nutrients!$EG$79,(IF($A$8=Nutrients!$B$77,Nutrients!$EG$77,Nutrients!$EG$78)))))*AL$8))/2000","v":0.22228573300696547},{"$f":"(SUMPRODUCT(AM$9:AM$229,Nutrients!$EG$8:$EG$228)+(IF($A$7=Nutrients!$B$8,Nutrients!$EG$8,Nutrients!$EG$9)*AM$7)+(((IF($A$8=Nutrients!$B$79,Nutrients!$EG$79,(IF($A$8=Nutrients!$B$77,Nutrients!$EG$77,Nutrients!$EG$78)))))*AM$8))/2000","v":0.21348858539398838},{"$f":"(SUMPRODUCT(AN$9:AN$229,Nutrients!$EG$8:$EG$228)+(IF($A$7=Nutrients!$B$8,Nutrients!$EG$8,Nutrients!$EG$9)*AN$7)+(((IF($A$8=Nutrients!$B$79,Nutrients!$EG$79,(IF($A$8=Nutrients!$B$77,Nutrients!$EG$77,Nutrients!$EG$78)))))*AN$8))/2000","v":0.20432448966339445},{"$f":"(SUMPRODUCT(AO$9:AO$229,Nutrients!$EG$8:$EG$228)+(IF($A$7=Nutrients!$B$8,Nutrients!$EG$8,Nutrients!$EG$9)*AO$7)+(((IF($A$8=Nutrients!$B$79,Nutrients!$EG$79,(IF($A$8=Nutrients!$B$77,Nutrients!$EG$77,Nutrients!$EG$78)))))*AO$8))/2000","v":0.19637511206707833},{"$f":"(SUMPRODUCT(AP$9:AP$229,Nutrients!$EG$8:$EG$228)+(IF($A$7=Nutrients!$B$8,Nutrients!$EG$8,Nutrients!$EG$9)*AP$7)+(((IF($A$8=Nutrients!$B$79,Nutrients!$EG$79,(IF($A$8=Nutrients!$B$77,Nutrients!$EG$77,Nutrients!$EG$78)))))*AP$8))/2000","v":0.21810869862161428},null,{"$f":"(SUMPRODUCT(AR$9:AR$229,Nutrients!$EG$8:$EG$228)+(IF($A$7=Nutrients!$B$8,Nutrients!$EG$8,Nutrients!$EG$9)*AR$7)+(((IF($A$8=Nutrients!$B$79,Nutrients!$EG$79,(IF($A$8=Nutrients!$B$77,Nutrients!$EG$77,Nutrients!$EG$78)))))*AR$8))/2000","v":0.2277486134588666},{"$f":"(SUMPRODUCT(AS$9:AS$229,Nutrients!$EG$8:$EG$228)+(IF($A$7=Nutrients!$B$8,Nutrients!$EG$8,Nutrients!$EG$9)*AS$7)+(((IF($A$8=Nutrients!$B$79,Nutrients!$EG$79,(IF($A$8=Nutrients!$B$77,Nutrients!$EG$77,Nutrients!$EG$78)))))*AS$8))/2000","v":0.21717321109773655},{"$f":"(SUMPRODUCT(AT$9:AT$229,Nutrients!$EG$8:$EG$228)+(IF($A$7=Nutrients!$B$8,Nutrients!$EG$8,Nutrients!$EG$9)*AT$7)+(((IF($A$8=Nutrients!$B$79,Nutrients!$EG$79,(IF($A$8=Nutrients!$B$77,Nutrients!$EG$77,Nutrients!$EG$78)))))*AT$8))/2000","v":0.20834849083134596},{"$f":"(SUMPRODUCT(AU$9:AU$229,Nutrients!$EG$8:$EG$228)+(IF($A$7=Nutrients!$B$8,Nutrients!$EG$8,Nutrients!$EG$9)*AU$7)+(((IF($A$8=Nutrients!$B$79,Nutrients!$EG$79,(IF($A$8=Nutrients!$B$77,Nutrients!$EG$77,Nutrients!$EG$78)))))*AU$8))/2000","v":0.1989439494265669},{"$f":"(SUMPRODUCT(AV$9:AV$229,Nutrients!$EG$8:$EG$228)+(IF($A$7=Nutrients!$B$8,Nutrients!$EG$8,Nutrients!$EG$9)*AV$7)+(((IF($A$8=Nutrients!$B$79,Nutrients!$EG$79,(IF($A$8=Nutrients!$B$77,Nutrients!$EG$77,Nutrients!$EG$78)))))*AV$8))/2000","v":0.19099421615865023},{"$f":"(SUMPRODUCT(AW$9:AW$229,Nutrients!$EG$8:$EG$228)+(IF($A$7=Nutrients!$B$8,Nutrients!$EG$8,Nutrients!$EG$9)*AW$7)+(((IF($A$8=Nutrients!$B$79,Nutrients!$EG$79,(IF($A$8=Nutrients!$B$77,Nutrients!$EG$77,Nutrients!$EG$78)))))*AW$8))/2000","v":0.21810869862161428}]
["Total P - Avail P, %",{"$f":"B255-B256","v":0.30252335581907996},0.29036249419994237,0.2802277845068476,0.26990911671431012,0.26108614031234767,0.25612193787172505,null,{"$f":"I255-I256","v":0.32004710285095983},0.30785541755343937,0.29773620706625381,0.28740432968108326,0.27858151275027954,0.25612193787172505,null,{"$f":"P255-P256","v":0.3375509149574466},0.3253514853838263,0.31522405128249059,0.30489441354325209,0.29607667813624816,0.25612193787172505,null,{"$f":"W255-W256","v":0.35506167823855012},0.34284958303033264,0.33272435458226368,0.32238044188846432,0.31354839891595376,0.25612193787172505,null,{"$f":"AD255-AD256","v":0.37256039494438919},0.36035331772106893,0.35021055770809595,0.339859601748014,0.33078498847691662,0.25612193787172505,null,{"$f":"AK255-AK256","v":0.39005049731919628},0.37783937271002099,0.36770253661954999,0.35713059085301685,0.34795736330740562,0.25612193787172505,null,{"$f":"AR255-AR256","v":0.40752462912393583},0.39532303329709811,0.38515395653035234,0.3743034529593538,0.36512969297365616,0.25612193787172505]
["Phytate P released, %",{"$f":"B257-B256","v":0.11261444047083269},0.11261444047083263,0.11261444047083269,0.11261444047083267,0.1126144404708327,0.11261444047083267,null,{"$f":"I257-I256","v":0.11261444047083269},0.11261444047083272,0.11261444047083269,0.11261444047083269,0.11261444047083269,0.11261444047083267,null,{"$f":"P257-P256","v":0.11261444047083272},0.11261444047083272,0.1126144404708327,0.1126144404708327,0.11261444047083269,0.11261444047083267,null,{"$f":"W257-W256","v":0.11261444047083263},0.11261444047083269,0.1126144404708327,0.11261444047083267,0.11261444047083269,0.11261444047083267,null,{"$f":"AD257-AD256","v":0.11261444047083272},0.11261444047083267,0.11261444047083269,0.11261444047083266,0.11261444047083269,0.11261444047083267,null,{"$f":"AK257-AK256","v":0.11261444047083266},0.1126144404708327,0.11261444047083266,0.1126144404708327,0.11261444047083267,0.11261444047083267,null,{"$f":"AR257-AR256","v":0.11261444047083269},0.11261444047083267,0.11261444047083266,0.1126144404708327,0.1126144404708327,0.11261444047083267]
["Percent of total phytate phos released, %",{"$f":"B312/B310","v":0.43591630544906723},0.45445868097335318,0.47118389344263151,0.4895068387006401,0.50633802425362018,0.51632255468270782,null,{"$f":"I312/I310","v":0.44465755459852391},0.46401795461704237,0.48143973179363325,0.50061063497730851,0.51822795200096539,0.51632255468270782,null,{"$f":"P312/P310","v":0.45378750703803239},0.47398242899014614,0.49218987750460319,0.51223988742031656,0.5306895358193241,0.51632255468270782,null,{"$f":"W312/W310","v":0.46328895079858179},0.48438041195176357,0.50340730433183012,0.52443068324052611,0.54381738587673756,0.51632255468270782,null,{"$f":"AD312/AD310","v":0.4732170924928405},0.49523443205274964,0.51517613265419893,0.53723139739685433,0.55817154266119884,0.51632255468270782,null,{"$f":"AK312/AK310","v":0.48359523023049156},0.5066201908122635,0.52749630741617992,0.55115488435260251,0.57346595138983569,0.51632255468270782,null,{"$f":"AR312/AR310","v":0.49446817155342132},0.51854664717441468,0.54050998892039903,0.56606114835576005,0.58962225524823741,0.51632255468270782]
["Phytase units, FTU/kg",{"$f":"((SUMPRODUCT(B$9:B$229,Nutrients!$EE$8:$EE$228)+(IF($A$7=Nutrients!$B$8,Nutrients!$EE$8,Nutrients!$EE$9)*B$7)+(((IF($A$8=Nutrients!$B$79,Nutrients!$EE$79,(IF($A$8=Nutrients!$B$77,Nutrients!$EE$77,Nutrients!$EE$78)))))*B$8))/2000)*2.2046","v":608.03970300000003},{"$f":"((SUMPRODUCT(C$9:C$229,Nutrients!$EE$8:$EE$228)+(IF($A$7=Nutrients!$B$8,Nutrients!$EE$8,Nutrients!$EE$9)*C$7)+(((IF($A$8=Nutrients!$B$79,Nutrients!$EE$79,(IF($A$8=Nutrients!$B$77,Nutrients!$EE$77,Nutrients!$EE$78)))))*C$8))/2000)*2.2046","v":608.03970300000003},{"$f":"((SUMPRODUCT(D$9:D$229,Nutrients!$EE$8:$EE$228)+(IF($A$7=Nutrients!$B$8,Nutrients!$EE$8,Nutrients!$EE$9)*D$7)+(((IF($A$8=Nutrients!$B$79,Nutrients!$EE$79,(IF($A$8=Nutrients!$B$77,Nutrients!$EE$77,Nutrients!$EE$78)))))*D$8))/2000)*2.2046","v":608.03970300000003},{"$f":"((SUMPRODUCT(E$9:E$229,Nutrients!$EE$8:$EE$228)+(IF($A$7=Nutrients!$B$8,Nutrients!$EE$8,Nutrients!$EE$9)*E$7)+(((IF($A$8=Nutrients!$B$79,Nutrients!$EE$79,(IF($A$8=Nutrients!$B$77,Nutrients!$EE$77,Nutrients!$EE$78)))))*E$8))/2000)*2.2046","v":608.03970300000003},{"$f":"((SUMPRODUCT(F$9:F$229,Nutrients!$EE$8:$EE$228)+(IF($A$7=Nutrients!$B$8,Nutrients!$EE$8,Nutrients!$EE$9)*F$7)+(((IF($A$8=Nutrients!$B$79,Nutrients!$EE$79,(IF($A$8=Nutrients!$B$77,Nutrients!$EE$77,Nutrients!$EE$78)))))*F$8))/2000)*2.2046","v":608.03970300000003},{"$f":"((SUMPRODUCT(G$9:G$229,Nutrients!$EE$8:$EE$228)+(IF($A$7=Nutrients!$B$8,Nutrients!$EE$8,Nutrients!$EE$9)*G$7)+(((IF($A$8=Nutrients!$B$79,Nutrients!$EE$79,(IF($A$8=Nutrients!$B$77,Nutrients!$EE$77,Nutrients!$EE$78)))))*G$8))/2000)*2.2046","v":608.03970300000003},null,{"$f":"((SUMPRODUCT(I$9:I$229,Nutrients!$EE$8:$EE$228)+(IF($A$7=Nutrients!$B$8,Nutrients!$EE$8,Nutrients!$EE$9)*I$7)+(((IF($A$8=Nutrients!$B$79,Nutrients!$EE$79,(IF($A$8=Nutrients!$B$77,Nutrients!$EE$77,Nutrients!$EE$78)))))*I$8))/2000)*2.2046","v":608.03970300000003},{"$f":"((SUMPRODUCT(J$9:J$229,Nutrients!$EE$8:$EE$228)+(IF($A$7=Nutrients!$B$8,Nutrients!$EE$8,Nutrients!$EE$9)*J$7)+(((IF($A$8=Nutrients!$B$79,Nutrients!$EE$79,(IF($A$8=Nutrients!$B$77,Nutrients!$EE$77,Nutrients!$EE$78)))))*J$8))/2000)*2.2046","v":608.03970300000003},{"$f":"((SUMPRODUCT(K$9:K$229,Nutrients!$EE$8:$EE$228)+(IF($A$7=Nutrients!$B$8,Nutrients!$EE$8,Nutrients!$EE$9)*K$7)+(((IF($A$8=Nutrients!$B$79,Nutrients!$EE$79,(IF($A$8=Nutrients!$B$77,Nutrients!$EE$77,Nutrients!$EE$78)))))*K$8))/2000)*2.2046","v":608.03970300000003},{"$f":"((SUMPRODUCT(L$9:L$229,Nutrients!$EE$8:$EE$228)+(IF($A$7=Nutrients!$B$8,Nutrients!$EE$8,Nutrients!$EE$9)*L$7)+(((IF($A$8=Nutrients!$B$79,Nutrients!$EE$79,(IF($A$8=Nutrients!$B$77,Nutrients!$EE$77,Nutrients!$EE$78)))))*L$8))/2000)*2.2046","v":608.03970300000003},{"$f":"((SUMPRODUCT(M$9:M$229,Nutrients!$EE$8:$EE$228)+(IF($A$7=Nutrients!$B$8,Nutrients!$EE$8,Nutrients!$EE$9)*M$7)+(((IF($A$8=Nutrients!$B$79,Nutrients!$EE$79,(IF($A$8=Nutrients!$B$77,Nutrients!$EE$77,Nutrients!$EE$78)))))*M$8))/2000)*2.2046","v":608.03970300000003},{"$f":"((SUMPRODUCT(N$9:N$229,Nutrients!$EE$8:$EE$228)+(IF($A$7=Nutrients!$B$8,Nutrients!$EE$8,Nutrients!$EE$9)*N$7)+(((IF($A$8=Nutrients!$B$79,Nutrients!$EE$79,(IF($A$8=Nutrients!$B$77,Nutrients!$EE$77,Nutrients!$EE$78)))))*N$8))/2000)*2.2046","v":608.03970300000003},null,{"$f":"((SUMPRODUCT(P$9:P$229,Nutrients!$EE$8:$EE$228)+(IF($A$7=Nutrients!$B$8,Nutrients!$EE$8,Nutrients!$EE$9)*P$7)+(((IF($A$8=Nutrients!$B$79,Nutrients!$EE$79,(IF($A$8=Nutrients!$B$77,Nutrients!$EE$77,Nutrients!$EE$78)))))*P$8))/2000)*2.2046","v":608.03970300000003},{"$f":"((SUMPRODUCT(Q$9:Q$229,Nutrients!$EE$8:$EE$228)+(IF($A$7=Nutrients!$B$8,Nutrients!$EE$8,Nutrients!$EE$9)*Q$7)+(((IF($A$8=Nutrients!$B$79,Nutrients!$EE$79,(IF($A$8=Nutrients!$B$77,Nutrients!$EE$77,Nutrients!$EE$78)))))*Q$8))/2000)*2.2046","v":608.03970300000003},{"$f":"((SUMPRODUCT(R$9:R$229,Nutrients!$EE$8:$EE$228)+(IF($A$7=Nutrients!$B$8,Nutrients!$EE$8,Nutrients!$EE$9)*R$7)+(((IF($A$8=Nutrients!$B$79,Nutrients!$EE$79,(IF($A$8=Nutrients!$B$77,Nutrients!$EE$77,Nutrients!$EE$78)))))*R$8))/2000)*2.2046","v":608.03970300000003},{"$f":"((SUMPRODUCT(S$9:S$229,Nutrients!$EE$8:$EE$228)+(IF($A$7=Nutrients!$B$8,Nutrients!$EE$8,Nutrients!$EE$9)*S$7)+(((IF($A$8=Nutrients!$B$79,Nutrients!$EE$79,(IF($A$8=Nutrients!$B$77,Nutrients!$EE$77,Nutrients!$EE$78)))))*S$8))/2000)*2.2046","v":608.03970300000003},{"$f":"((SUMPRODUCT(T$9:T$229,Nutrients!$EE$8:$EE$228)+(IF($A$7=Nutrients!$B$8,Nutrients!$EE$8,Nutrients!$EE$9)*T$7)+(((IF($A$8=Nutrients!$B$79,Nutrients!$EE$79,(IF($A$8=Nutrients!$B$77,Nutrients!$EE$77,Nutrients!$EE$78)))))*T$8))/2000)*2.2046","v":608.03970300000003},{"$f":"((SUMPRODUCT(U$9:U$229,Nutrients!$EE$8:$EE$228)+(IF($A$7=Nutrients!$B$8,Nutrients!$EE$8,Nutrients!$EE$9)*U$7)+(((IF($A$8=Nutrients!$B$79,Nutrients!$EE$79,(IF($A$8=Nutrients!$B$77,Nutrients!$EE$77,Nutrients!$EE$78)))))*U$8))/2000)*2.2046","v":608.03970300000003},null,{"$f":"((SUMPRODUCT(W$9:W$229,Nutrients!$EE$8:$EE$228)+(IF($A$7=Nutrients!$B$8,Nutrients!$EE$8,Nutrients!$EE$9)*W$7)+(((IF($A$8=Nutrients!$B$79,Nutrients!$EE$79,(IF($A$8=Nutrients!$B$77,Nutrients!$EE$77,Nutrients!$EE$78)))))*W$8))/2000)*2.2046","v":608.03970300000003},{"$f":"((SUMPRODUCT(X$9:X$229,Nutrients!$EE$8:$EE$228)+(IF($A$7=Nutrients!$B$8,Nutrients!$EE$8,Nutrients!$EE$9)*X$7)+(((IF($A$8=Nutrients!$B$79,Nutrients!$EE$79,(IF($A$8=Nutrients!$B$77,Nutrients!$EE$77,Nutrients!$EE$78)))))*X$8))/2000)*2.2046","v":608.03970300000003},{"$f":"((SUMPRODUCT(Y$9:Y$229,Nutrients!$EE$8:$EE$228)+(IF($A$7=Nutrients!$B$8,Nutrients!$EE$8,Nutrients!$EE$9)*Y$7)+(((IF($A$8=Nutrients!$B$79,Nutrients!$EE$79,(IF($A$8=Nutrients!$B$77,Nutrients!$EE$77,Nutrients!$EE$78)))))*Y$8))/2000)*2.2046","v":608.03970300000003},{"$f":"((SUMPRODUCT(Z$9:Z$229,Nutrients!$EE$8:$EE$228)+(IF($A$7=Nutrients!$B$8,Nutrients!$EE$8,Nutrients!$EE$9)*Z$7)+(((IF($A$8=Nutrients!$B$79,Nutrients!$EE$79,(IF($A$8=Nutrients!$B$77,Nutrients!$EE$77,Nutrients!$EE$78)))))*Z$8))/2000)*2.2046","v":608.03970300000003},{"$f":"((SUMPRODUCT(AA$9:AA$229,Nutrients!$EE$8:$EE$228)+(IF($A$7=Nutrients!$B$8,Nutrients!$EE$8,Nutrients!$EE$9)*AA$7)+(((IF($A$8=Nutrients!$B$79,Nutrients!$EE$79,(IF($A$8=Nutrients!$B$77,Nutrients!$EE$77,Nutrients!$EE$78)))))*AA$8))/2000)*2.2046","v":608.03970300000003},{"$f":"((SUMPRODUCT(AB$9:AB$229,Nutrients!$EE$8:$EE$228)+(IF($A$7=Nutrients!$B$8,Nutrients!$EE$8,Nutrients!$EE$9)*AB$7)+(((IF($A$8=Nutrients!$B$79,Nutrients!$EE$79,(IF($A$8=Nutrients!$B$77,Nutrients!$EE$77,Nutrients!$EE$78)))))*AB$8))/2000)*2.2046","v":608.03970300000003},null,{"$f":"((SUMPRODUCT(AD$9:AD$229,Nutrients!$EE$8:$EE$228)+(IF($A$7=Nutrients!$B$8,Nutrients!$EE$8,Nutrients!$EE$9)*AD$7)+(((IF($A$8=Nutrients!$B$79,Nutrients!$EE$79,(IF($A$8=Nutrients!$B$77,Nutrients!$EE$77,Nutrients!$EE$78)))))*AD$8))/2000)*2.2046","v":608.03970300000003},{"$f":"((SUMPRODUCT(AE$9:AE$229,Nutrients!$EE$8:$EE$228)+(IF($A$7=Nutrients!$B$8,Nutrients!$EE$8,Nutrients!$EE$9)*AE$7)+(((IF($A$8=Nutrients!$B$79,Nutrients!$EE$79,(IF($A$8=Nutrients!$B$77,Nutrients!$EE$77,Nutrients!$EE$78)))))*AE$8))/2000)*2.2046","v":608.03970300000003},{"$f":"((SUMPRODUCT(AF$9:AF$229,Nutrients!$EE$8:$EE$228)+(IF($A$7=Nutrients!$B$8,Nutrients!$EE$8,Nutrients!$EE$9)*AF$7)+(((IF($A$8=Nutrients!$B$79,Nutrients!$EE$79,(IF($A$8=Nutrients!$B$77,Nutrients!$EE$77,Nutrients!$EE$78)))))*AF$8))/2000)*2.2046","v":608.03970300000003},{"$f":"((SUMPRODUCT(AG$9:AG$229,Nutrients!$EE$8:$EE$228)+(IF($A$7=Nutrients!$B$8,Nutrients!$EE$8,Nutrients!$EE$9)*AG$7)+(((IF($A$8=Nutrients!$B$79,Nutrients!$EE$79,(IF($A$8=Nutrients!$B$77,Nutrients!$EE$77,Nutrients!$EE$78)))))*AG$8))/2000)*2.2046","v":608.03970300000003},{"$f":"((SUMPRODUCT(AH$9:AH$229,Nutrients!$EE$8:$EE$228)+(IF($A$7=Nutrients!$B$8,Nutrients!$EE$8,Nutrients!$EE$9)*AH$7)+(((IF($A$8=Nutrients!$B$79,Nutrients!$EE$79,(IF($A$8=Nutrients!$B$77,Nutrients!$EE$77,Nutrients!$EE$78)))))*AH$8))/2000)*2.2046","v":608.03970300000003},{"$f":"((SUMPRODUCT(AI$9:AI$229,Nutrients!$EE$8:$EE$228)+(IF($A$7=Nutrients!$B$8,Nutrients!$EE$8,Nutrients!$EE$9)*AI$7)+(((IF($A$8=Nutrients!$B$79,Nutrients!$EE$79,(IF($A$8=Nutrients!$B$77,Nutrients!$EE$77,Nutrients!$EE$78)))))*AI$8))/2000)*2.2046","v":608.03970300000003},null,{"$f":"((SUMPRODUCT(AK$9:AK$229,Nutrients!$EE$8:$EE$228)+(IF($A$7=Nutrients!$B$8,Nutrients!$EE$8,Nutrients!$EE$9)*AK$7)+(((IF($A$8=Nutrients!$B$79,Nutrients!$EE$79,(IF($A$8=Nutrients!$B$77,Nutrients!$EE$77,Nutrients!$EE$78)))))*AK$8))/2000)*2.2046","v":608.03970300000003},{"$f":"((SUMPRODUCT(AL$9:AL$229,Nutrients!$EE$8:$EE$228)+(IF($A$7=Nutrients!$B$8,Nutrients!$EE$8,Nutrients!$EE$9)*AL$7)+(((IF($A$8=Nutrients!$B$79,Nutrients!$EE$79,(IF($A$8=Nutrients!$B$77,Nutrients!$EE$77,Nutrients!$EE$78)))))*AL$8))/2000)*2.2046","v":608.03970300000003},{"$f":"((SUMPRODUCT(AM$9:AM$229,Nutrients!$EE$8:$EE$228)+(IF($A$7=Nutrients!$B$8,Nutrients!$EE$8,Nutrients!$EE$9)*AM$7)+(((IF($A$8=Nutrients!$B$79,Nutrients!$EE$79,(IF($A$8=Nutrients!$B$77,Nutrients!$EE$77,Nutrients!$EE$78)))))*AM$8))/2000)*2.2046","v":608.03970300000003},{"$f":"((SUMPRODUCT(AN$9:AN$229,Nutrients!$EE$8:$EE$228)+(IF($A$7=Nutrients!$B$8,Nutrients!$EE$8,Nutrients!$EE$9)*AN$7)+(((IF($A$8=Nutrients!$B$79,Nutrients!$EE$79,(IF($A$8=Nutrients!$B$77,Nutrients!$EE$77,Nutrients!$EE$78)))))*AN$8))/2000)*2.2046","v":608.03970300000003},{"$f":"((SUMPRODUCT(AO$9:AO$229,Nutrients!$EE$8:$EE$228)+(IF($A$7=Nutrients!$B$8,Nutrients!$EE$8,Nutrients!$EE$9)*AO$7)+(((IF($A$8=Nutrients!$B$79,Nutrients!$EE$79,(IF($A$8=Nutrients!$B$77,Nutrients!$EE$77,Nutrients!$EE$78)))))*AO$8))/2000)*2.2046","v":608.03970300000003},{"$f":"((SUMPRODUCT(AP$9:AP$229,Nutrients!$EE$8:$EE$228)+(IF($A$7=Nutrients!$B$8,Nutrients!$EE$8,Nutrients!$EE$9)*AP$7)+(((IF($A$8=Nutrients!$B$79,Nutrients!$EE$79,(IF($A$8=Nutrients!$B$77,Nutrients!$EE$77,Nutrients!$EE$78)))))*AP$8))/2000)*2.2046","v":608.03970300000003},null,{"$f":"((SUMPRODUCT(AR$9:AR$229,Nutrients!$EE$8:$EE$228)+(IF($A$7=Nutrients!$B$8,Nutrients!$EE$8,Nutrients!$EE$9)*AR$7)+(((IF($A$8=Nutrients!$B$79,Nutrients!$EE$79,(IF($A$8=Nutrients!$B$77,Nutrients!$EE$77,Nutrients!$EE$78)))))*AR$8))/2000)*2.2046","v":608.03970300000003},{"$f":"((SUMPRODUCT(AS$9:AS$229,Nutrients!$EE$8:$EE$228)+(IF($A$7=Nutrients!$B$8,Nutrients!$EE$8,Nutrients!$EE$9)*AS$7)+(((IF($A$8=Nutrients!$B$79,Nutrients!$EE$79,(IF($A$8=Nutrients!$B$77,Nutrients!$EE$77,Nutrients!$EE$78)))))*AS$8))/2000)*2.2046","v":608.03970300000003},{"$f":"((SUMPRODUCT(AT$9:AT$229,Nutrients!$EE$8:$EE$228)+(IF($A$7=Nutrients!$B$8,Nutrients!$EE$8,Nutrients!$EE$9)*AT$7)+(((IF($A$8=Nutrients!$B$79,Nutrients!$EE$79,(IF($A$8=Nutrients!$B$77,Nutrients!$EE$77,Nutrients!$EE$78)))))*AT$8))/2000)*2.2046","v":608.03970300000003},{"$f":"((SUMPRODUCT(AU$9:AU$229,Nutrients!$EE$8:$EE$228)+(IF($A$7=Nutrients!$B$8,Nutrients!$EE$8,Nutrients!$EE$9)*AU$7)+(((IF($A$8=Nutrients!$B$79,Nutrients!$EE$79,(IF($A$8=Nutrients!$B$77,Nutrients!$EE$77,Nutrients!$EE$78)))))*AU$8))/2000)*2.2046","v":608.03970300000003},{"$f":"((SUMPRODUCT(AV$9:AV$229,Nutrients!$EE$8:$EE$228)+(IF($A$7=Nutrients!$B$8,Nutrients!$EE$8,Nutrients!$EE$9)*AV$7)+(((IF($A$8=Nutrients!$B$79,Nutrients!$EE$79,(IF($A$8=Nutrients!$B$77,Nutrients!$EE$77,Nutrients!$EE$78)))))*AV$8))/2000)*2.2046","v":608.03970300000003},{"$f":"((SUMPRODUCT(AW$9:AW$229,Nutrients!$EE$8:$EE$228)+(IF($A$7=Nutrients!$B$8,Nutrients!$EE$8,Nutrients!$EE$9)*AW$7)+(((IF($A$8=Nutrients!$B$79,Nutrients!$EE$79,(IF($A$8=Nutrients!$B$77,Nutrients!$EE$77,Nutrients!$EE$78)))))*AW$8))/2000)*2.2046","v":608.03970300000003}]
["EFA, %",{"$f":"((SUMPRODUCT(B$9:B$229,Nutrients!$FK$8:$FK$228)+(IF($A$7=Nutrients!$B$8,Nutrients!$FK$8,Nutrients!$FK$9)*B$7)+(((IF($A$8=Nutrients!$B$79,Nutrients!$FK$79,(IF($A$8=Nutrients!$B$77,Nutrients!$FK$77,Nutrients!$FK$78)))))*B$8))/2000)","v":1.5519301991788417},{"$f":"((SUMPRODUCT(C$9:C$229,Nutrients!$FK$8:$FK$228)+(IF($A$7=Nutrients!$B$8,Nutrients!$FK$8,Nutrients!$FK$9)*C$7)+(((IF($A$8=Nutrients!$B$79,Nutrients!$FK$79,(IF($A$8=Nutrients!$B$77,Nutrients!$FK$77,Nutrients!$FK$78)))))*C$8))/2000)","v":1.595708614420986},{"$f":"((SUMPRODUCT(D$9:D$229,Nutrients!$FK$8:$FK$228)+(IF($A$7=Nutrients!$B$8,Nutrients!$FK$8,Nutrients!$FK$9)*D$7)+(((IF($A$8=Nutrients!$B$79,Nutrients!$FK$79,(IF($A$8=Nutrients!$B$77,Nutrients!$FK$77,Nutrients!$FK$78)))))*D$8))/2000)","v":1.633289438982505},{"$f":"((SUMPRODUCT(E$9:E$229,Nutrients!$FK$8:$FK$228)+(IF($A$7=Nutrients!$B$8,Nutrients!$FK$8,Nutrients!$FK$9)*E$7)+(((IF($A$8=Nutrients!$B$79,Nutrients!$FK$79,(IF($A$8=Nutrients!$B$77,Nutrients!$FK$77,Nutrients!$FK$78)))))*E$8))/2000)","v":1.6684624843927185},{"$f":"((SUMPRODUCT(F$9:F$229,Nutrients!$FK$8:$FK$228)+(IF($A$7=Nutrients!$B$8,Nutrients!$FK$8,Nutrients!$FK$9)*F$7)+(((IF($A$8=Nutrients!$B$79,Nutrients!$FK$79,(IF($A$8=Nutrients!$B$77,Nutrients!$FK$77,Nutrients!$FK$78)))))*F$8))/2000)","v":1.6972910046236616},{"$f":"((SUMPRODUCT(G$9:G$229,Nutrients!$FK$8:$FK$228)+(IF($A$7=Nutrients!$B$8,Nutrients!$FK$8,Nutrients!$FK$9)*G$7)+(((IF($A$8=Nutrients!$B$79,Nutrients!$FK$79,(IF($A$8=Nutrients!$B$77,Nutrients!$FK$77,Nutrients!$FK$78)))))*G$8))/2000)","v":1.7124024914223799},null,{"$f":"((SUMPRODUCT(I$9:I$229,Nutrients!$FK$8:$FK$228)+(IF($A$7=Nutrients!$B$8,Nutrients!$FK$8,Nutrients!$FK$9)*I$7)+(((IF($A$8=Nutrients!$B$79,Nutrients!$FK$79,(IF($A$8=Nutrients!$B$77,Nutrients!$FK$77,Nutrients!$FK$78)))))*I$8))/2000)","v":1.5109100855294222},{"$f":"((SUMPRODUCT(J$9:J$229,Nutrients!$FK$8:$FK$228)+(IF($A$7=Nutrients!$B$8,Nutrients!$FK$8,Nutrients!$FK$9)*J$7)+(((IF($A$8=Nutrients!$B$79,Nutrients!$FK$79,(IF($A$8=Nutrients!$B$77,Nutrients!$FK$77,Nutrients!$FK$78)))))*J$8))/2000)","v":1.5550252557383859},{"$f":"((SUMPRODUCT(K$9:K$229,Nutrients!$FK$8:$FK$228)+(IF($A$7=Nutrients!$B$8,Nutrients!$FK$8,Nutrients!$FK$9)*K$7)+(((IF($A$8=Nutrients!$B$79,Nutrients!$FK$79,(IF($A$8=Nutrients!$B$77,Nutrients!$FK$77,Nutrients!$FK$78)))))*K$8))/2000)","v":1.5922386861548514},{"$f":"((SUMPRODUCT(L$9:L$229,Nutrients!$FK$8:$FK$228)+(IF($A$7=Nutrients!$B$8,Nutrients!$FK$8,Nutrients!$FK$9)*L$7)+(((IF($A$8=Nutrients!$B$79,Nutrients!$FK$79,(IF($A$8=Nutrients!$B$77,Nutrients!$FK$77,Nutrients!$FK$78)))))*L$8))/2000)","v":1.6278371831769283},{"$f":"((SUMPRODUCT(M$9:M$229,Nutrients!$FK$8:$FK$228)+(IF($A$7=Nutrients!$B$8,Nutrients!$FK$8,Nutrients!$FK$9)*M$7)+(((IF($A$8=Nutrients!$B$79,Nutrients!$FK$79,(IF($A$8=Nutrients!$B$77,Nutrients!$FK$77,Nutrients!$FK$78)))))*M$8))/2000)","v":1.6568180238584036},{"$f":"((SUMPRODUCT(N$9:N$229,Nutrients!$FK$8:$FK$228)+(IF($A$7=Nutrients!$B$8,Nutrients!$FK$8,Nutrients!$FK$9)*N$7)+(((IF($A$8=Nutrients!$B$79,Nutrients!$FK$79,(IF($A$8=Nutrients!$B$77,Nutrients!$FK$77,Nutrients!$FK$78)))))*N$8))/2000)","v":1.7124024914223799},null,{"$f":"((SUMPRODUCT(P$9:P$229,Nutrients!$FK$8:$FK$228)+(IF($A$7=Nutrients!$B$8,Nutrients!$FK$8,Nutrients!$FK$9)*P$7)+(((IF($A$8=Nutrients!$B$79,Nutrients!$FK$79,(IF($A$8=Nutrients!$B$77,Nutrients!$FK$77,Nutrients!$FK$78)))))*P$8))/2000)","v":1.4701371247113864},{"$f":"((SUMPRODUCT(Q$9:Q$229,Nutrients!$FK$8:$FK$228)+(IF($A$7=Nutrients!$B$8,Nutrients!$FK$8,Nutrients!$FK$9)*Q$7)+(((IF($A$8=Nutrients!$B$79,Nutrients!$FK$79,(IF($A$8=Nutrients!$B$77,Nutrients!$FK$77,Nutrients!$FK$78)))))*Q$8))/2000)","v":1.5142095292865623},{"$f":"((SUMPRODUCT(R$9:R$229,Nutrients!$FK$8:$FK$228)+(IF($A$7=Nutrients!$B$8,Nutrients!$FK$8,Nutrients!$FK$9)*R$7)+(((IF($A$8=Nutrients!$B$79,Nutrients!$FK$79,(IF($A$8=Nutrients!$B$77,Nutrients!$FK$77,Nutrients!$FK$78)))))*R$8))/2000)","v":1.5515282007134028},{"$f":"((SUMPRODUCT(S$9:S$229,Nutrients!$FK$8:$FK$228)+(IF($A$7=Nutrients!$B$8,Nutrients!$FK$8,Nutrients!$FK$9)*S$7)+(((IF($A$8=Nutrients!$B$79,Nutrients!$FK$79,(IF($A$8=Nutrients!$B$77,Nutrients!$FK$77,Nutrients!$FK$78)))))*S$8))/2000)","v":1.5869526532342451},{"$f":"((SUMPRODUCT(T$9:T$229,Nutrients!$FK$8:$FK$228)+(IF($A$7=Nutrients!$B$8,Nutrients!$FK$8,Nutrients!$FK$9)*T$7)+(((IF($A$8=Nutrients!$B$79,Nutrients!$FK$79,(IF($A$8=Nutrients!$B$77,Nutrients!$FK$77,Nutrients!$FK$78)))))*T$8))/2000)","v":1.6161419996053834},{"$f":"((SUMPRODUCT(U$9:U$229,Nutrients!$FK$8:$FK$228)+(IF($A$7=Nutrients!$B$8,Nutrients!$FK$8,Nutrients!$FK$9)*U$7)+(((IF($A$8=Nutrients!$B$79,Nutrients!$FK$79,(IF($A$8=Nutrients!$B$77,Nutrients!$FK$77,Nutrients!$FK$78)))))*U$8))/2000)","v":1.7124024914223799},null,{"$f":"((SUMPRODUCT(W$9:W$229,Nutrients!$FK$8:$FK$228)+(IF($A$7=Nutrients!$B$8,Nutrients!$FK$8,Nutrients!$FK$9)*W$7)+(((IF($A$8=Nutrients!$B$79,Nutrients!$FK$79,(IF($A$8=Nutrients!$B$77,Nutrients!$FK$77,Nutrients!$FK$78)))))*W$8))/2000)","v":1.429574890655801},{"$f":"((SUMPRODUCT(X$9:X$229,Nutrients!$FK$8:$FK$228)+(IF($A$7=Nutrients!$B$8,Nutrients!$FK$8,Nutrients!$FK$9)*X$7)+(((IF($A$8=Nutrients!$B$79,Nutrients!$FK$79,(IF($A$8=Nutrients!$B$77,Nutrients!$FK$77,Nutrients!$FK$78)))))*X$8))/2000)","v":1.473656659244392},{"$f":"((SUMPRODUCT(Y$9:Y$229,Nutrients!$FK$8:$FK$228)+(IF($A$7=Nutrients!$B$8,Nutrients!$FK$8,Nutrients!$FK$9)*Y$7)+(((IF($A$8=Nutrients!$B$79,Nutrients!$FK$79,(IF($A$8=Nutrients!$B$77,Nutrients!$FK$77,Nutrients!$FK$78)))))*Y$8))/2000)","v":1.5107508576804056},{"$f":"((SUMPRODUCT(Z$9:Z$229,Nutrients!$FK$8:$FK$228)+(IF($A$7=Nutrients!$B$8,Nutrients!$FK$8,Nutrients!$FK$9)*Z$7)+(((IF($A$8=Nutrients!$B$79,Nutrients!$FK$79,(IF($A$8=Nutrients!$B$77,Nutrients!$FK$77,Nutrients!$FK$78)))))*Z$8))/2000)","v":1.5461721996756641},{"$f":"((SUMPRODUCT(AA$9:AA$229,Nutrients!$FK$8:$FK$228)+(IF($A$7=Nutrients!$B$8,Nutrients!$FK$8,Nutrients!$FK$9)*AA$7)+(((IF($A$8=Nutrients!$B$79,Nutrients!$FK$79,(IF($A$8=Nutrients!$B$77,Nutrients!$FK$77,Nutrients!$FK$78)))))*AA$8))/2000)","v":1.574947411324678},{"$f":"((SUMPRODUCT(AB$9:AB$229,Nutrients!$FK$8:$FK$228)+(IF($A$7=Nutrients!$B$8,Nutrients!$FK$8,Nutrients!$FK$9)*AB$7)+(((IF($A$8=Nutrients!$B$79,Nutrients!$FK$79,(IF($A$8=Nutrients!$B$77,Nutrients!$FK$77,Nutrients!$FK$78)))))*AB$8))/2000)","v":1.7124024914223799},null,{"$f":"((SUMPRODUCT(AD$9:AD$229,Nutrients!$FK$8:$FK$228)+(IF($A$7=Nutrients!$B$8,Nutrients!$FK$8,Nutrients!$FK$9)*AD$7)+(((IF($A$8=Nutrients!$B$79,Nutrients!$FK$79,(IF($A$8=Nutrients!$B$77,Nutrients!$FK$77,Nutrients!$FK$78)))))*AD$8))/2000)","v":1.3889779563289211},{"$f":"((SUMPRODUCT(AE$9:AE$229,Nutrients!$FK$8:$FK$228)+(IF($A$7=Nutrients!$B$8,Nutrients!$FK$8,Nutrients!$FK$9)*AE$7)+(((IF($A$8=Nutrients!$B$79,Nutrients!$FK$79,(IF($A$8=Nutrients!$B$77,Nutrients!$FK$77,Nutrients!$FK$78)))))*AE$8))/2000)","v":1.4329580102788417},{"$f":"((SUMPRODUCT(AF$9:AF$229,Nutrients!$FK$8:$FK$228)+(IF($A$7=Nutrients!$B$8,Nutrients!$FK$8,Nutrients!$FK$9)*AF$7)+(((IF($A$8=Nutrients!$B$79,Nutrients!$FK$79,(IF($A$8=Nutrients!$B$77,Nutrients!$FK$77,Nutrients!$FK$78)))))*AF$8))/2000)","v":1.4699634952001155},{"$f":"((SUMPRODUCT(AG$9:AG$229,Nutrients!$FK$8:$FK$228)+(IF($A$7=Nutrients!$B$8,Nutrients!$FK$8,Nutrients!$FK$9)*AG$7)+(((IF($A$8=Nutrients!$B$79,Nutrients!$FK$79,(IF($A$8=Nutrients!$B$77,Nutrients!$FK$77,Nutrients!$FK$78)))))*AG$8))/2000)","v":1.5052071562222529},{"$f":"((SUMPRODUCT(AH$9:AH$229,Nutrients!$FK$8:$FK$228)+(IF($A$7=Nutrients!$B$8,Nutrients!$FK$8,Nutrients!$FK$9)*AH$7)+(((IF($A$8=Nutrients!$B$79,Nutrients!$FK$79,(IF($A$8=Nutrients!$B$77,Nutrients!$FK$77,Nutrients!$FK$78)))))*AH$8))/2000)","v":1.5355917334314786},{"$f":"((SUMPRODUCT(AI$9:AI$229,Nutrients!$FK$8:$FK$228)+(IF($A$7=Nutrients!$B$8,Nutrients!$FK$8,Nutrients!$FK$9)*AI$7)+(((IF($A$8=Nutrients!$B$79,Nutrients!$FK$79,(IF($A$8=Nutrients!$B$77,Nutrients!$FK$77,Nutrients!$FK$78)))))*AI$8))/2000)","v":1.7124024914223799},null,{"$f":"((SUMPRODUCT(AK$9:AK$229,Nutrients!$FK$8:$FK$228)+(IF($A$7=Nutrients!$B$8,Nutrients!$FK$8,Nutrients!$FK$9)*AK$7)+(((IF($A$8=Nutrients!$B$79,Nutrients!$FK$79,(IF($A$8=Nutrients!$B$77,Nutrients!$FK$77,Nutrients!$FK$78)))))*AK$8))/2000)","v":1.3483497217028759},{"$f":"((SUMPRODUCT(AL$9:AL$229,Nutrients!$FK$8:$FK$228)+(IF($A$7=Nutrients!$B$8,Nutrients!$FK$8,Nutrients!$FK$9)*AL$7)+(((IF($A$8=Nutrients!$B$79,Nutrients!$FK$79,(IF($A$8=Nutrients!$B$77,Nutrients!$FK$77,Nutrients!$FK$78)))))*AL$8))/2000)","v":1.392305161754267},{"$f":"((SUMPRODUCT(AM$9:AM$229,Nutrients!$FK$8:$FK$228)+(IF($A$7=Nutrients!$B$8,Nutrients!$FK$8,Nutrients!$FK$9)*AM$7)+(((IF($A$8=Nutrients!$B$79,Nutrients!$FK$79,(IF($A$8=Nutrients!$B$77,Nutrients!$FK$77,Nutrients!$FK$78)))))*AM$8))/2000)","v":1.4291049604910506},{"$f":"((SUMPRODUCT(AN$9:AN$229,Nutrients!$FK$8:$FK$228)+(IF($A$7=Nutrients!$B$8,Nutrients!$FK$8,Nutrients!$FK$9)*AN$7)+(((IF($A$8=Nutrients!$B$79,Nutrients!$FK$79,(IF($A$8=Nutrients!$B$77,Nutrients!$FK$77,Nutrients!$FK$78)))))*AN$8))/2000)","v":1.4652994031569937},{"$f":"((SUMPRODUCT(AO$9:AO$229,Nutrients!$FK$8:$FK$228)+(IF($A$7=Nutrients!$B$8,Nutrients!$FK$8,Nutrients!$FK$9)*AO$7)+(((IF($A$8=Nutrients!$B$79,Nutrients!$FK$79,(IF($A$8=Nutrients!$B$77,Nutrients!$FK$77,Nutrients!$FK$78)))))*AO$8))/2000)","v":1.4969978958427332},{"$f":"((SUMPRODUCT(AP$9:AP$229,Nutrients!$FK$8:$FK$228)+(IF($A$7=Nutrients!$B$8,Nutrients!$FK$8,Nutrients!$FK$9)*AP$7)+(((IF($A$8=Nutrients!$B$79,Nutrients!$FK$79,(IF($A$8=Nutrients!$B$77,Nutrients!$FK$77,Nutrients!$FK$78)))))*AP$8))/2000)","v":1.7124024914223799},null,{"$f":"((SUMPRODUCT(AR$9:AR$229,Nutrients!$FK$8:$FK$228)+(IF($A$7=Nutrients!$B$8,Nutrients!$FK$8,Nutrients!$FK$9)*AR$7)+(((IF($A$8=Nutrients!$B$79,Nutrients!$FK$79,(IF($A$8=Nutrients!$B$77,Nutrients!$FK$77,Nutrients!$FK$78)))))*AR$8))/2000)","v":1.3082515110556867},{"$f":"((SUMPRODUCT(AS$9:AS$229,Nutrients!$FK$8:$FK$228)+(IF($A$7=Nutrients!$B$8,Nutrients!$FK$8,Nutrients!$FK$9)*AS$7)+(((IF($A$8=Nutrients!$B$79,Nutrients!$FK$79,(IF($A$8=Nutrients!$B$77,Nutrients!$FK$77,Nutrients!$FK$78)))))*AS$8))/2000)","v":1.3513280500416787},{"$f":"((SUMPRODUCT(AT$9:AT$229,Nutrients!$FK$8:$FK$228)+(IF($A$7=Nutrients!$B$8,Nutrients!$FK$8,Nutrients!$FK$9)*AT$7)+(((IF($A$8=Nutrients!$B$79,Nutrients!$FK$79,(IF($A$8=Nutrients!$B$77,Nutrients!$FK$77,Nutrients!$FK$78)))))*AT$8))/2000)","v":1.3877883190709288},{"$f":"((SUMPRODUCT(AU$9:AU$229,Nutrients!$FK$8:$FK$228)+(IF($A$7=Nutrients!$B$8,Nutrients!$FK$8,Nutrients!$FK$9)*AU$7)+(((IF($A$8=Nutrients!$B$79,Nutrients!$FK$79,(IF($A$8=Nutrients!$B$77,Nutrients!$FK$77,Nutrients!$FK$78)))))*AU$8))/2000)","v":1.4266351303268547},{"$f":"((SUMPRODUCT(AV$9:AV$229,Nutrients!$FK$8:$FK$228)+(IF($A$7=Nutrients!$B$8,Nutrients!$FK$8,Nutrients!$FK$9)*AV$7)+(((IF($A$8=Nutrients!$B$79,Nutrients!$FK$79,(IF($A$8=Nutrients!$B$77,Nutrients!$FK$77,Nutrients!$FK$78)))))*AV$8))/2000)","v":1.4584054886307525},{"$f":"((SUMPRODUCT(AW$9:AW$229,Nutrients!$FK$8:$FK$228)+(IF($A$7=Nutrients!$B$8,Nutrients!$FK$8,Nutrients!$FK$9)*AW$7)+(((IF($A$8=Nutrients!$B$79,Nutrients!$FK$79,(IF($A$8=Nutrients!$B$77,Nutrients!$FK$77,Nutrients!$FK$78)))))*AW$8))/2000)","v":1.7124024914223799}]
["NDF, %",{"$f":"(SUMPRODUCT(B$9:B$229,Nutrients!$U$8:$U$228)+(IF($A$7=Nutrients!$B$8,Nutrients!$U$8,Nutrients!$U$9)*B$7)+(((IF($A$8=Nutrients!$B$79,Nutrients!$U$79,(IF($A$8=Nutrients!$B$77,Nutrients!$U$77,Nutrients!$U$78)))))*B$8))/2000","v":8.5699292218715204},{"$f":"(SUMPRODUCT(C$9:C$229,Nutrients!$U$8:$U$228)+(IF($A$7=Nutrients!$B$8,Nutrients!$U$8,Nutrients!$U$9)*C$7)+(((IF($A$8=Nutrients!$B$79,Nutrients!$U$79,(IF($A$8=Nutrients!$B$77,Nutrients!$U$77,Nutrients!$U$78)))))*C$8))/2000","v":8.6418600707376481},{"$f":"(SUMPRODUCT(D$9:D$229,Nutrients!$U$8:$U$228)+(IF($A$7=Nutrients!$B$8,Nutrients!$U$8,Nutrients!$U$9)*D$7)+(((IF($A$8=Nutrients!$B$79,Nutrients!$U$79,(IF($A$8=Nutrients!$B$77,Nutrients!$U$77,Nutrients!$U$78)))))*D$8))/2000","v":8.7060121920111886},{"$f":"(SUMPRODUCT(E$9:E$229,Nutrients!$U$8:$U$228)+(IF($A$7=Nutrients!$B$8,Nutrients!$U$8,Nutrients!$U$9)*E$7)+(((IF($A$8=Nutrients!$B$79,Nutrients!$U$79,(IF($A$8=Nutrients!$B$77,Nutrients!$U$77,Nutrients!$U$78)))))*E$8))/2000","v":8.7592542727281515},{"$f":"(SUMPRODUCT(F$9:F$229,Nutrients!$U$8:$U$228)+(IF($A$7=Nutrients!$B$8,Nutrients!$U$8,Nutrients!$U$9)*F$7)+(((IF($A$8=Nutrients!$B$79,Nutrients!$U$79,(IF($A$8=Nutrients!$B$77,Nutrients!$U$77,Nutrients!$U$78)))))*F$8))/2000","v":8.7998937942372635},{"$f":"(SUMPRODUCT(G$9:G$229,Nutrients!$U$8:$U$228)+(IF($A$7=Nutrients!$B$8,Nutrients!$U$8,Nutrients!$U$9)*G$7)+(((IF($A$8=Nutrients!$B$79,Nutrients!$U$79,(IF($A$8=Nutrients!$B$77,Nutrients!$U$77,Nutrients!$U$78)))))*G$8))/2000","v":8.8184122421246407},null,{"$f":"(SUMPRODUCT(I$9:I$229,Nutrients!$U$8:$U$228)+(IF($A$7=Nutrients!$B$8,Nutrients!$U$8,Nutrients!$U$9)*I$7)+(((IF($A$8=Nutrients!$B$79,Nutrients!$U$79,(IF($A$8=Nutrients!$B$77,Nutrients!$U$77,Nutrients!$U$78)))))*I$8))/2000","v":9.727011409502925},{"$f":"(SUMPRODUCT(J$9:J$229,Nutrients!$U$8:$U$228)+(IF($A$7=Nutrients!$B$8,Nutrients!$U$8,Nutrients!$U$9)*J$7)+(((IF($A$8=Nutrients!$B$79,Nutrients!$U$79,(IF($A$8=Nutrients!$B$77,Nutrients!$U$77,Nutrients!$U$78)))))*J$8))/2000","v":9.7975077739509313},{"$f":"(SUMPRODUCT(K$9:K$229,Nutrients!$U$8:$U$228)+(IF($A$7=Nutrients!$B$8,Nutrients!$U$8,Nutrients!$U$9)*K$7)+(((IF($A$8=Nutrients!$B$79,Nutrients!$U$79,(IF($A$8=Nutrients!$B$77,Nutrients!$U$77,Nutrients!$U$78)))))*K$8))/2000","v":9.8623980795325394},{"$f":"(SUMPRODUCT(L$9:L$229,Nutrients!$U$8:$U$228)+(IF($A$7=Nutrients!$B$8,Nutrients!$U$8,Nutrients!$U$9)*L$7)+(((IF($A$8=Nutrients!$B$79,Nutrients!$U$79,(IF($A$8=Nutrients!$B$77,Nutrients!$U$77,Nutrients!$U$78)))))*L$8))/2000","v":9.9150189086288005},{"$f":"(SUMPRODUCT(M$9:M$229,Nutrients!$U$8:$U$228)+(IF($A$7=Nutrients!$B$8,Nutrients!$U$8,Nutrients!$U$9)*M$7)+(((IF($A$8=Nutrients!$B$79,Nutrients!$U$79,(IF($A$8=Nutrients!$B$77,Nutrients!$U$77,Nutrients!$U$78)))))*M$8))/2000","v":9.9556551163445857},{"$f":"(SUMPRODUCT(N$9:N$229,Nutrients!$U$8:$U$228)+(IF($A$7=Nutrients!$B$8,Nutrients!$U$8,Nutrients!$U$9)*N$7)+(((IF($A$8=Nutrients!$B$79,Nutrients!$U$79,(IF($A$8=Nutrients!$B$77,Nutrients!$U$77,Nutrients!$U$78)))))*N$8))/2000","v":8.8184122421246407},null,{"$f":"(SUMPRODUCT(P$9:P$229,Nutrients!$U$8:$U$228)+(IF($A$7=Nutrients!$B$8,Nutrients!$U$8,Nutrients!$U$9)*P$7)+(((IF($A$8=Nutrients!$B$79,Nutrients!$U$79,(IF($A$8=Nutrients!$B$77,Nutrients!$U$77,Nutrients!$U$78)))))*P$8))/2000","v":10.883173221997206},{"$f":"(SUMPRODUCT(Q$9:Q$229,Nutrients!$U$8:$U$228)+(IF($A$7=Nutrients!$B$8,Nutrients!$U$8,Nutrients!$U$9)*Q$7)+(((IF($A$8=Nutrients!$B$79,Nutrients!$U$79,(IF($A$8=Nutrients!$B$77,Nutrients!$U$77,Nutrients!$U$78)))))*Q$8))/2000","v":10.953307714177852},{"$f":"(SUMPRODUCT(R$9:R$229,Nutrients!$U$8:$U$228)+(IF($A$7=Nutrients!$B$8,Nutrients!$U$8,Nutrients!$U$9)*R$7)+(((IF($A$8=Nutrients!$B$79,Nutrients!$U$79,(IF($A$8=Nutrients!$B$77,Nutrients!$U$77,Nutrients!$U$78)))))*R$8))/2000","v":11.017825881804187},{"$f":"(SUMPRODUCT(S$9:S$229,Nutrients!$U$8:$U$228)+(IF($A$7=Nutrients!$B$8,Nutrients!$U$8,Nutrients!$U$9)*S$7)+(((IF($A$8=Nutrients!$B$79,Nutrients!$U$79,(IF($A$8=Nutrients!$B$77,Nutrients!$U$77,Nutrients!$U$78)))))*S$8))/2000","v":11.07054990246252},{"$f":"(SUMPRODUCT(T$9:T$229,Nutrients!$U$8:$U$228)+(IF($A$7=Nutrients!$B$8,Nutrients!$U$8,Nutrients!$U$9)*T$7)+(((IF($A$8=Nutrients!$B$79,Nutrients!$U$79,(IF($A$8=Nutrients!$B$77,Nutrients!$U$77,Nutrients!$U$78)))))*T$8))/2000","v":11.111420241105503},{"$f":"(SUMPRODUCT(U$9:U$229,Nutrients!$U$8:$U$228)+(IF($A$7=Nutrients!$B$8,Nutrients!$U$8,Nutrients!$U$9)*U$7)+(((IF($A$8=Nutrients!$B$79,Nutrients!$U$79,(IF($A$8=Nutrients!$B$77,Nutrients!$U$77,Nutrients!$U$78)))))*U$8))/2000","v":8.8184122421246407},null,{"$f":"(SUMPRODUCT(W$9:W$229,Nutrients!$U$8:$U$228)+(IF($A$7=Nutrients!$B$8,Nutrients!$U$8,Nutrients!$U$9)*W$7)+(((IF($A$8=Nutrients!$B$79,Nutrients!$U$79,(IF($A$8=Nutrients!$B$77,Nutrients!$U$77,Nutrients!$U$78)))))*W$8))/2000","v":12.039657018911216},{"$f":"(SUMPRODUCT(X$9:X$229,Nutrients!$U$8:$U$228)+(IF($A$7=Nutrients!$B$8,Nutrients!$U$8,Nutrients!$U$9)*X$7)+(((IF($A$8=Nutrients!$B$79,Nutrients!$U$79,(IF($A$8=Nutrients!$B$77,Nutrients!$U$77,Nutrients!$U$78)))))*X$8))/2000","v":12.109207942680387},{"$f":"(SUMPRODUCT(Y$9:Y$229,Nutrients!$U$8:$U$228)+(IF($A$7=Nutrients!$B$8,Nutrients!$U$8,Nutrients!$U$9)*Y$7)+(((IF($A$8=Nutrients!$B$79,Nutrients!$U$79,(IF($A$8=Nutrients!$B$77,Nutrients!$U$77,Nutrients!$U$78)))))*Y$8))/2000","v":12.17382773565863},{"$f":"(SUMPRODUCT(Z$9:Z$229,Nutrients!$U$8:$U$228)+(IF($A$7=Nutrients!$B$8,Nutrients!$U$8,Nutrients!$U$9)*Z$7)+(((IF($A$8=Nutrients!$B$79,Nutrients!$U$79,(IF($A$8=Nutrients!$B$77,Nutrients!$U$77,Nutrients!$U$78)))))*Z$8))/2000","v":12.225894038577438},{"$f":"(SUMPRODUCT(AA$9:AA$229,Nutrients!$U$8:$U$228)+(IF($A$7=Nutrients!$B$8,Nutrients!$U$8,Nutrients!$U$9)*AA$7)+(((IF($A$8=Nutrients!$B$79,Nutrients!$U$79,(IF($A$8=Nutrients!$B$77,Nutrients!$U$77,Nutrients!$U$78)))))*AA$8))/2000","v":12.266105156933367},{"$f":"(SUMPRODUCT(AB$9:AB$229,Nutrients!$U$8:$U$228)+(IF($A$7=Nutrients!$B$8,Nutrients!$U$8,Nutrients!$U$9)*AB$7)+(((IF($A$8=Nutrients!$B$79,Nutrients!$U$79,(IF($A$8=Nutrients!$B$77,Nutrients!$U$77,Nutrients!$U$78)))))*AB$8))/2000","v":8.8184122421246407},null,{"$f":"(SUMPRODUCT(AD$9:AD$229,Nutrients!$U$8:$U$228)+(IF($A$7=Nutrients!$B$8,Nutrients!$U$8,Nutrients!$U$9)*AD$7)+(((IF($A$8=Nutrients!$B$79,Nutrients!$U$79,(IF($A$8=Nutrients!$B$77,Nutrients!$U$77,Nutrients!$U$78)))))*AD$8))/2000","v":13.195585770538168},{"$f":"(SUMPRODUCT(AE$9:AE$229,Nutrients!$U$8:$U$228)+(IF($A$7=Nutrients!$B$8,Nutrients!$U$8,Nutrients!$U$9)*AE$7)+(((IF($A$8=Nutrients!$B$79,Nutrients!$U$79,(IF($A$8=Nutrients!$B$77,Nutrients!$U$77,Nutrients!$U$78)))))*AE$8))/2000","v":13.265367897683115},{"$f":"(SUMPRODUCT(AF$9:AF$229,Nutrients!$U$8:$U$228)+(IF($A$7=Nutrients!$B$8,Nutrients!$U$8,Nutrients!$U$9)*AF$7)+(((IF($A$8=Nutrients!$B$79,Nutrients!$U$79,(IF($A$8=Nutrients!$B$77,Nutrients!$U$77,Nutrients!$U$78)))))*AF$8))/2000","v":13.329179924780918},{"$f":"(SUMPRODUCT(AG$9:AG$229,Nutrients!$U$8:$U$228)+(IF($A$7=Nutrients!$B$8,Nutrients!$U$8,Nutrients!$U$9)*AG$7)+(((IF($A$8=Nutrients!$B$79,Nutrients!$U$79,(IF($A$8=Nutrients!$B$77,Nutrients!$U$77,Nutrients!$U$78)))))*AG$8))/2000","v":13.380909120349052},{"$f":"(SUMPRODUCT(AH$9:AH$229,Nutrients!$U$8:$U$228)+(IF($A$7=Nutrients!$B$8,Nutrients!$U$8,Nutrients!$U$9)*AH$7)+(((IF($A$8=Nutrients!$B$79,Nutrients!$U$79,(IF($A$8=Nutrients!$B$77,Nutrients!$U$77,Nutrients!$U$78)))))*AH$8))/2000","v":13.409770004742649},{"$f":"(SUMPRODUCT(AI$9:AI$229,Nutrients!$U$8:$U$228)+(IF($A$7=Nutrients!$B$8,Nutrients!$U$8,Nutrients!$U$9)*AI$7)+(((IF($A$8=Nutrients!$B$79,Nutrients!$U$79,(IF($A$8=Nutrients!$B$77,Nutrients!$U$77,Nutrients!$U$78)))))*AI$8))/2000","v":8.8184122421246407},null,{"$f":"(SUMPRODUCT(AK$9:AK$229,Nutrients!$U$8:$U$228)+(IF($A$7=Nutrients!$B$8,Nutrients!$U$8,Nutrients!$U$9)*AK$7)+(((IF($A$8=Nutrients!$B$79,Nutrients!$U$79,(IF($A$8=Nutrients!$B$77,Nutrients!$U$77,Nutrients!$U$78)))))*AK$8))/2000","v":14.351117617340673},{"$f":"(SUMPRODUCT(AL$9:AL$229,Nutrients!$U$8:$U$228)+(IF($A$7=Nutrients!$B$8,Nutrients!$U$8,Nutrients!$U$9)*AL$7)+(((IF($A$8=Nutrients!$B$79,Nutrients!$U$79,(IF($A$8=Nutrients!$B$77,Nutrients!$U$77,Nutrients!$U$78)))))*AL$8))/2000","v":14.420713261406867},{"$f":"(SUMPRODUCT(AM$9:AM$229,Nutrients!$U$8:$U$228)+(IF($A$7=Nutrients!$B$8,Nutrients!$U$8,Nutrients!$U$9)*AM$7)+(((IF($A$8=Nutrients!$B$79,Nutrients!$U$79,(IF($A$8=Nutrients!$B$77,Nutrients!$U$77,Nutrients!$U$78)))))*AM$8))/2000","v":14.484798232905339},{"$f":"(SUMPRODUCT(AN$9:AN$229,Nutrients!$U$8:$U$228)+(IF($A$7=Nutrients!$B$8,Nutrients!$U$8,Nutrients!$U$9)*AN$7)+(((IF($A$8=Nutrients!$B$79,Nutrients!$U$79,(IF($A$8=Nutrients!$B$77,Nutrients!$U$77,Nutrients!$U$78)))))*AN$8))/2000","v":14.526198307631129},{"$f":"(SUMPRODUCT(AO$9:AO$229,Nutrients!$U$8:$U$228)+(IF($A$7=Nutrients!$B$8,Nutrients!$U$8,Nutrients!$U$9)*AO$7)+(((IF($A$8=Nutrients!$B$79,Nutrients!$U$79,(IF($A$8=Nutrients!$B$77,Nutrients!$U$77,Nutrients!$U$78)))))*AO$8))/2000","v":14.550419651604081},{"$f":"(SUMPRODUCT(AP$9:AP$229,Nutrients!$U$8:$U$228)+(IF($A$7=Nutrients!$B$8,Nutrients!$U$8,Nutrients!$U$9)*AP$7)+(((IF($A$8=Nutrients!$B$79,Nutrients!$U$79,(IF($A$8=Nutrients!$B$77,Nutrients!$U$77,Nutrients!$U$78)))))*AP$8))/2000","v":8.8184122421246407},null,{"$f":"(SUMPRODUCT(AR$9:AR$229,Nutrients!$U$8:$U$228)+(IF($A$7=Nutrients!$B$8,Nutrients!$U$8,Nutrients!$U$9)*AR$7)+(((IF($A$8=Nutrients!$B$79,Nutrients!$U$79,(IF($A$8=Nutrients!$B$77,Nutrients!$U$77,Nutrients!$U$78)))))*AR$8))/2000","v":15.505913621013237},{"$f":"(SUMPRODUCT(AS$9:AS$229,Nutrients!$U$8:$U$228)+(IF($A$7=Nutrients!$B$8,Nutrients!$U$8,Nutrients!$U$9)*AS$7)+(((IF($A$8=Nutrients!$B$79,Nutrients!$U$79,(IF($A$8=Nutrients!$B$77,Nutrients!$U$77,Nutrients!$U$78)))))*AS$8))/2000","v":15.57594830319705},{"$f":"(SUMPRODUCT(AT$9:AT$229,Nutrients!$U$8:$U$228)+(IF($A$7=Nutrients!$B$8,Nutrients!$U$8,Nutrients!$U$9)*AT$7)+(((IF($A$8=Nutrients!$B$79,Nutrients!$U$79,(IF($A$8=Nutrients!$B$77,Nutrients!$U$77,Nutrients!$U$78)))))*AT$8))/2000","v":15.638534558654516},{"$f":"(SUMPRODUCT(AU$9:AU$229,Nutrients!$U$8:$U$228)+(IF($A$7=Nutrients!$B$8,Nutrients!$U$8,Nutrients!$U$9)*AU$7)+(((IF($A$8=Nutrients!$B$79,Nutrients!$U$79,(IF($A$8=Nutrients!$B$77,Nutrients!$U$77,Nutrients!$U$78)))))*AU$8))/2000","v":15.666865169825762},{"$f":"(SUMPRODUCT(AV$9:AV$229,Nutrients!$U$8:$U$228)+(IF($A$7=Nutrients!$B$8,Nutrients!$U$8,Nutrients!$U$9)*AV$7)+(((IF($A$8=Nutrients!$B$79,Nutrients!$U$79,(IF($A$8=Nutrients!$B$77,Nutrients!$U$77,Nutrients!$U$78)))))*AV$8))/2000","v":15.691067181211277},{"$f":"(SUMPRODUCT(AW$9:AW$229,Nutrients!$U$8:$U$228)+(IF($A$7=Nutrients!$B$8,Nutrients!$U$8,Nutrients!$U$9)*AW$7)+(((IF($A$8=Nutrients!$B$79,Nutrients!$U$79,(IF($A$8=Nutrients!$B$77,Nutrients!$U$77,Nutrients!$U$78)))))*AW$8))/2000","v":8.8184122421246407}]
["SID Lys:CP ratio",{"$f":"B236/B253*100","v":6.1785853391259096},5.9864354833614239,5.7595132677868364,5.6037683275620731,5.5537986803701944,5.52175985110991,null,{"$f":"I236/I253*100","v":6.0524560186657261},5.8523081576306772,5.6176778497639352,5.4544167551400866,5.3947802053540839,5.52175985110991,null,{"$f":"P236/P253*100","v":5.930662406014207},5.7231362934076442,5.482667874514358,5.3116741902238651,5.2436024433353632,5.52175985110991,null,{"$f":"W236/W253*100","v":5.8135847584543514},5.5990667293603451,5.3537471863160091,5.1749415223323414,5.0965469173151892,5.52175985110991,null,{"$f":"AD236/AD253*100","v":5.7001344988104803},5.4804212061402566,5.2296276882786819,5.0445150973886914,4.9595656842243017,5.52175985110991,null,{"$f":"AK236/AK253*100","v":5.5912802622886462},5.3664603938999367,5.1121824724333287,4.9209989907388643,4.8302875550842623,5.52175985110991,null,{"$f":"AR236/AR253*100","v":5.4864234655835027},5.2563467896006308,4.9975601555503051,4.8041266150660951,4.7075782022772605,5.52175985110991]
["Trace minerals (added levels)"]
["  Zinc added, ppm",{"$f":"(SUMPRODUCT(B$9:B$229,Nutrients!$EK$8:$EK$228)+(IF($A$7=Nutrients!$B$8,Nutrients!$EK$8,Nutrients!$EK$9)*B$7)+(((IF($A$8=Nutrients!$B$79,Nutrients!$EK$79,(IF($A$8=Nutrients!$B$77,Nutrients!$EK$77,Nutrients!$EK$78)))))*B$8))/2000*1000000","v":110.11950000000002},{"$f":"(SUMPRODUCT(C$9:C$229,Nutrients!$EK$8:$EK$228)+(IF($A$7=Nutrients!$B$8,Nutrients!$EK$8,Nutrients!$EK$9)*C$7)+(((IF($A$8=Nutrients!$B$79,Nutrients!$EK$79,(IF($A$8=Nutrients!$B$77,Nutrients!$EK$77,Nutrients!$EK$78)))))*C$8))/2000*1000000","v":110.11950000000002},{"$f":"(SUMPRODUCT(D$9:D$229,Nutrients!$EK$8:$EK$228)+(IF($A$7=Nutrients!$B$8,Nutrients!$EK$8,Nutrients!$EK$9)*D$7)+(((IF($A$8=Nutrients!$B$79,Nutrients!$EK$79,(IF($A$8=Nutrients!$B$77,Nutrients!$EK$77,Nutrients!$EK$78)))))*D$8))/2000*1000000","v":91.766249999999999},{"$f":"(SUMPRODUCT(E$9:E$229,Nutrients!$EK$8:$EK$228)+(IF($A$7=Nutrients!$B$8,Nutrients!$EK$8,Nutrients!$EK$9)*E$7)+(((IF($A$8=Nutrients!$B$79,Nutrients!$EK$79,(IF($A$8=Nutrients!$B$77,Nutrients!$EK$77,Nutrients!$EK$78)))))*E$8))/2000*1000000","v":73.413000000000011},{"$f":"(SUMPRODUCT(F$9:F$229,Nutrients!$EK$8:$EK$228)+(IF($A$7=Nutrients!$B$8,Nutrients!$EK$8,Nutrients!$EK$9)*F$7)+(((IF($A$8=Nutrients!$B$79,Nutrients!$EK$79,(IF($A$8=Nutrients!$B$77,Nutrients!$EK$77,Nutrients!$EK$78)))))*F$8))/2000*1000000","v":55.059750000000008},{"$f":"(SUMPRODUCT(G$9:G$229,Nutrients!$EK$8:$EK$228)+(IF($A$7=Nutrients!$B$8,Nutrients!$EK$8,Nutrients!$EK$9)*G$7)+(((IF($A$8=Nutrients!$B$79,Nutrients!$EK$79,(IF($A$8=Nutrients!$B$77,Nutrients!$EK$77,Nutrients!$EK$78)))))*G$8))/2000*1000000","v":55.059750000000008},null,{"$f":"(SUMPRODUCT(I$9:I$229,Nutrients!$EK$8:$EK$228)+(IF($A$7=Nutrients!$B$8,Nutrients!$EK$8,Nutrients!$EK$9)*I$7)+(((IF($A$8=Nutrients!$B$79,Nutrients!$EK$79,(IF($A$8=Nutrients!$B$77,Nutrients!$EK$77,Nutrients!$EK$78)))))*I$8))/2000*1000000","v":110.11950000000002},{"$f":"(SUMPRODUCT(J$9:J$229,Nutrients!$EK$8:$EK$228)+(IF($A$7=Nutrients!$B$8,Nutrients!$EK$8,Nutrients!$EK$9)*J$7)+(((IF($A$8=Nutrients!$B$79,Nutrients!$EK$79,(IF($A$8=Nutrients!$B$77,Nutrients!$EK$77,Nutrients!$EK$78)))))*J$8))/2000*1000000","v":110.11950000000002},{"$f":"(SUMPRODUCT(K$9:K$229,Nutrients!$EK$8:$EK$228)+(IF($A$7=Nutrients!$B$8,Nutrients!$EK$8,Nutrients!$EK$9)*K$7)+(((IF($A$8=Nutrients!$B$79,Nutrients!$EK$79,(IF($A$8=Nutrients!$B$77,Nutrients!$EK$77,Nutrients!$EK$78)))))*K$8))/2000*1000000","v":91.766249999999999},{"$f":"(SUMPRODUCT(L$9:L$229,Nutrients!$EK$8:$EK$228)+(IF($A$7=Nutrients!$B$8,Nutrients!$EK$8,Nutrients!$EK$9)*L$7)+(((IF($A$8=Nutrients!$B$79,Nutrients!$EK$79,(IF($A$8=Nutrients!$B$77,Nutrients!$EK$77,Nutrients!$EK$78)))))*L$8))/2000*1000000","v":73.413000000000011},{"$f":"(SUMPRODUCT(M$9:M$229,Nutrients!$EK$8:$EK$228)+(IF($A$7=Nutrients!$B$8,Nutrients!$EK$8,Nutrients!$EK$9)*M$7)+(((IF($A$8=Nutrients!$B$79,Nutrients!$EK$79,(IF($A$8=Nutrients!$B$77,Nutrients!$EK$77,Nutrients!$EK$78)))))*M$8))/2000*1000000","v":55.059750000000008},{"$f":"(SUMPRODUCT(N$9:N$229,Nutrients!$EK$8:$EK$228)+(IF($A$7=Nutrients!$B$8,Nutrients!$EK$8,Nutrients!$EK$9)*N$7)+(((IF($A$8=Nutrients!$B$79,Nutrients!$EK$79,(IF($A$8=Nutrients!$B$77,Nutrients!$EK$77,Nutrients!$EK$78)))))*N$8))/2000*1000000","v":55.059750000000008},null,{"$f":"(SUMPRODUCT(P$9:P$229,Nutrients!$EK$8:$EK$228)+(IF($A$7=Nutrients!$B$8,Nutrients!$EK$8,Nutrients!$EK$9)*P$7)+(((IF($A$8=Nutrients!$B$79,Nutrients!$EK$79,(IF($A$8=Nutrients!$B$77,Nutrients!$EK$77,Nutrients!$EK$78)))))*P$8))/2000*1000000","v":110.11950000000002},{"$f":"(SUMPRODUCT(Q$9:Q$229,Nutrients!$EK$8:$EK$228)+(IF($A$7=Nutrients!$B$8,Nutrients!$EK$8,Nutrients!$EK$9)*Q$7)+(((IF($A$8=Nutrients!$B$79,Nutrients!$EK$79,(IF($A$8=Nutrients!$B$77,Nutrients!$EK$77,Nutrients!$EK$78)))))*Q$8))/2000*1000000","v":110.11950000000002},{"$f":"(SUMPRODUCT(R$9:R$229,Nutrients!$EK$8:$EK$228)+(IF($A$7=Nutrients!$B$8,Nutrients!$EK$8,Nutrients!$EK$9)*R$7)+(((IF($A$8=Nutrients!$B$79,Nutrients!$EK$79,(IF($A$8=Nutrients!$B$77,Nutrients!$EK$77,Nutrients!$EK$78)))))*R$8))/2000*1000000","v":91.766249999999999},{"$f":"(SUMPRODUCT(S$9:S$229,Nutrients!$EK$8:$EK$228)+(IF($A$7=Nutrients!$B$8,Nutrients!$EK$8,Nutrients!$EK$9)*S$7)+(((IF($A$8=Nutrients!$B$79,Nutrients!$EK$79,(IF($A$8=Nutrients!$B$77,Nutrients!$EK$77,Nutrients!$EK$78)))))*S$8))/2000*1000000","v":73.413000000000011},{"$f":"(SUMPRODUCT(T$9:T$229,Nutrients!$EK$8:$EK$228)+(IF($A$7=Nutrients!$B$8,Nutrients!$EK$8,Nutrients!$EK$9)*T$7)+(((IF($A$8=Nutrients!$B$79,Nutrients!$EK$79,(IF($A$8=Nutrients!$B$77,Nutrients!$EK$77,Nutrients!$EK$78)))))*T$8))/2000*1000000","v":55.059750000000008},{"$f":"(SUMPRODUCT(U$9:U$229,Nutrients!$EK$8:$EK$228)+(IF($A$7=Nutrients!$B$8,Nutrients!$EK$8,Nutrients!$EK$9)*U$7)+(((IF($A$8=Nutrients!$B$79,Nutrients!$EK$79,(IF($A$8=Nutrients!$B$77,Nutrients!$EK$77,Nutrients!$EK$78)))))*U$8))/2000*1000000","v":55.059750000000008},null,{"$f":"(SUMPRODUCT(W$9:W$229,Nutrients!$EK$8:$EK$228)+(IF($A$7=Nutrients!$B$8,Nutrients!$EK$8,Nutrients!$EK$9)*W$7)+(((IF($A$8=Nutrients!$B$79,Nutrients!$EK$79,(IF($A$8=Nutrients!$B$77,Nutrients!$EK$77,Nutrients!$EK$78)))))*W$8))/2000*1000000","v":110.11950000000002},{"$f":"(SUMPRODUCT(X$9:X$229,Nutrients!$EK$8:$EK$228)+(IF($A$7=Nutrients!$B$8,Nutrients!$EK$8,Nutrients!$EK$9)*X$7)+(((IF($A$8=Nutrients!$B$79,Nutrients!$EK$79,(IF($A$8=Nutrients!$B$77,Nutrients!$EK$77,Nutrients!$EK$78)))))*X$8))/2000*1000000","v":110.11950000000002},{"$f":"(SUMPRODUCT(Y$9:Y$229,Nutrients!$EK$8:$EK$228)+(IF($A$7=Nutrients!$B$8,Nutrients!$EK$8,Nutrients!$EK$9)*Y$7)+(((IF($A$8=Nutrients!$B$79,Nutrients!$EK$79,(IF($A$8=Nutrients!$B$77,Nutrients!$EK$77,Nutrients!$EK$78)))))*Y$8))/2000*1000000","v":91.766249999999999},{"$f":"(SUMPRODUCT(Z$9:Z$229,Nutrients!$EK$8:$EK$228)+(IF($A$7=Nutrients!$B$8,Nutrients!$EK$8,Nutrients!$EK$9)*Z$7)+(((IF($A$8=Nutrients!$B$79,Nutrients!$EK$79,(IF($A$8=Nutrients!$B$77,Nutrients!$EK$77,Nutrients!$EK$78)))))*Z$8))/2000*1000000","v":73.413000000000011},{"$f":"(SUMPRODUCT(AA$9:AA$229,Nutrients!$EK$8:$EK$228)+(IF($A$7=Nutrients!$B$8,Nutrients!$EK$8,Nutrients!$EK$9)*AA$7)+(((IF($A$8=Nutrients!$B$79,Nutrients!$EK$79,(IF($A$8=Nutrients!$B$77,Nutrients!$EK$77,Nutrients!$EK$78)))))*AA$8))/2000*1000000","v":55.059750000000008},{"$f":"(SUMPRODUCT(AB$9:AB$229,Nutrients!$EK$8:$EK$228)+(IF($A$7=Nutrients!$B$8,Nutrients!$EK$8,Nutrients!$EK$9)*AB$7)+(((IF($A$8=Nutrients!$B$79,Nutrients!$EK$79,(IF($A$8=Nutrients!$B$77,Nutrients!$EK$77,Nutrients!$EK$78)))))*AB$8))/2000*1000000","v":55.059750000000008},null,{"$f":"(SUMPRODUCT(AD$9:AD$229,Nutrients!$EK$8:$EK$228)+(IF($A$7=Nutrients!$B$8,Nutrients!$EK$8,Nutrients!$EK$9)*AD$7)+(((IF($A$8=Nutrients!$B$79,Nutrients!$EK$79,(IF($A$8=Nutrients!$B$77,Nutrients!$EK$77,Nutrients!$EK$78)))))*AD$8))/2000*1000000","v":110.11950000000002},{"$f":"(SUMPRODUCT(AE$9:AE$229,Nutrients!$EK$8:$EK$228)+(IF($A$7=Nutrients!$B$8,Nutrients!$EK$8,Nutrients!$EK$9)*AE$7)+(((IF($A$8=Nutrients!$B$79,Nutrients!$EK$79,(IF($A$8=Nutrients!$B$77,Nutrients!$EK$77,Nutrients!$EK$78)))))*AE$8))/2000*1000000","v":110.11950000000002},{"$f":"(SUMPRODUCT(AF$9:AF$229,Nutrients!$EK$8:$EK$228)+(IF($A$7=Nutrients!$B$8,Nutrients!$EK$8,Nutrients!$EK$9)*AF$7)+(((IF($A$8=Nutrients!$B$79,Nutrients!$EK$79,(IF($A$8=Nutrients!$B$77,Nutrients!$EK$77,Nutrients!$EK$78)))))*AF$8))/2000*1000000","v":91.766249999999999},{"$f":"(SUMPRODUCT(AG$9:AG$229,Nutrients!$EK$8:$EK$228)+(IF($A$7=Nutrients!$B$8,Nutrients!$EK$8,Nutrients!$EK$9)*AG$7)+(((IF($A$8=Nutrients!$B$79,Nutrients!$EK$79,(IF($A$8=Nutrients!$B$77,Nutrients!$EK$77,Nutrients!$EK$78)))))*AG$8))/2000*1000000","v":73.413000000000011},{"$f":"(SUMPRODUCT(AH$9:AH$229,Nutrients!$EK$8:$EK$228)+(IF($A$7=Nutrients!$B$8,Nutrients!$EK$8,Nutrients!$EK$9)*AH$7)+(((IF($A$8=Nutrients!$B$79,Nutrients!$EK$79,(IF($A$8=Nutrients!$B$77,Nutrients!$EK$77,Nutrients!$EK$78)))))*AH$8))/2000*1000000","v":55.059750000000008},{"$f":"(SUMPRODUCT(AI$9:AI$229,Nutrients!$EK$8:$EK$228)+(IF($A$7=Nutrients!$B$8,Nutrients!$EK$8,Nutrients!$EK$9)*AI$7)+(((IF($A$8=Nutrients!$B$79,Nutrients!$EK$79,(IF($A$8=Nutrients!$B$77,Nutrients!$EK$77,Nutrients!$EK$78)))))*AI$8))/2000*1000000","v":55.059750000000008},null,{"$f":"(SUMPRODUCT(AK$9:AK$229,Nutrients!$EK$8:$EK$228)+(IF($A$7=Nutrients!$B$8,Nutrients!$EK$8,Nutrients!$EK$9)*AK$7)+(((IF($A$8=Nutrients!$B$79,Nutrients!$EK$79,(IF($A$8=Nutrients!$B$77,Nutrients!$EK$77,Nutrients!$EK$78)))))*AK$8))/2000*1000000","v":110.11950000000002},{"$f":"(SUMPRODUCT(AL$9:AL$229,Nutrients!$EK$8:$EK$228)+(IF($A$7=Nutrients!$B$8,Nutrients!$EK$8,Nutrients!$EK$9)*AL$7)+(((IF($A$8=Nutrients!$B$79,Nutrients!$EK$79,(IF($A$8=Nutrients!$B$77,Nutrients!$EK$77,Nutrients!$EK$78)))))*AL$8))/2000*1000000","v":110.11950000000002},{"$f":"(SUMPRODUCT(AM$9:AM$229,Nutrients!$EK$8:$EK$228)+(IF($A$7=Nutrients!$B$8,Nutrients!$EK$8,Nutrients!$EK$9)*AM$7)+(((IF($A$8=Nutrients!$B$79,Nutrients!$EK$79,(IF($A$8=Nutrients!$B$77,Nutrients!$EK$77,Nutrients!$EK$78)))))*AM$8))/2000*1000000","v":91.766249999999999},{"$f":"(SUMPRODUCT(AN$9:AN$229,Nutrients!$EK$8:$EK$228)+(IF($A$7=Nutrients!$B$8,Nutrients!$EK$8,Nutrients!$EK$9)*AN$7)+(((IF($A$8=Nutrients!$B$79,Nutrients!$EK$79,(IF($A$8=Nutrients!$B$77,Nutrients!$EK$77,Nutrients!$EK$78)))))*AN$8))/2000*1000000","v":73.413000000000011},{"$f":"(SUMPRODUCT(AO$9:AO$229,Nutrients!$EK$8:$EK$228)+(IF($A$7=Nutrients!$B$8,Nutrients!$EK$8,Nutrients!$EK$9)*AO$7)+(((IF($A$8=Nutrients!$B$79,Nutrients!$EK$79,(IF($A$8=Nutrients!$B$77,Nutrients!$EK$77,Nutrients!$EK$78)))))*AO$8))/2000*1000000","v":55.059750000000008},{"$f":"(SUMPRODUCT(AP$9:AP$229,Nutrients!$EK$8:$EK$228)+(IF($A$7=Nutrients!$B$8,Nutrients!$EK$8,Nutrients!$EK$9)*AP$7)+(((IF($A$8=Nutrients!$B$79,Nutrients!$EK$79,(IF($A$8=Nutrients!$B$77,Nutrients!$EK$77,Nutrients!$EK$78)))))*AP$8))/2000*1000000","v":55.059750000000008},null,{"$f":"(SUMPRODUCT(AR$9:AR$229,Nutrients!$EK$8:$EK$228)+(IF($A$7=Nutrients!$B$8,Nutrients!$EK$8,Nutrients!$EK$9)*AR$7)+(((IF($A$8=Nutrients!$B$79,Nutrients!$EK$79,(IF($A$8=Nutrients!$B$77,Nutrients!$EK$77,Nutrients!$EK$78)))))*AR$8))/2000*1000000","v":110.11950000000002},{"$f":"(SUMPRODUCT(AS$9:AS$229,Nutrients!$EK$8:$EK$228)+(IF($A$7=Nutrients!$B$8,Nutrients!$EK$8,Nutrients!$EK$9)*AS$7)+(((IF($A$8=Nutrients!$B$79,Nutrients!$EK$79,(IF($A$8=Nutrients!$B$77,Nutrients!$EK$77,Nutrients!$EK$78)))))*AS$8))/2000*1000000","v":110.11950000000002},{"$f":"(SUMPRODUCT(AT$9:AT$229,Nutrients!$EK$8:$EK$228)+(IF($A$7=Nutrients!$B$8,Nutrients!$EK$8,Nutrients!$EK$9)*AT$7)+(((IF($A$8=Nutrients!$B$79,Nutrients!$EK$79,(IF($A$8=Nutrients!$B$77,Nutrients!$EK$77,Nutrients!$EK$78)))))*AT$8))/2000*1000000","v":91.766249999999999},{"$f":"(SUMPRODUCT(AU$9:AU$229,Nutrients!$EK$8:$EK$228)+(IF($A$7=Nutrients!$B$8,Nutrients!$EK$8,Nutrients!$EK$9)*AU$7)+(((IF($A$8=Nutrients!$B$79,Nutrients!$EK$79,(IF($A$8=Nutrients!$B$77,Nutrients!$EK$77,Nutrients!$EK$78)))))*AU$8))/2000*1000000","v":73.413000000000011},{"$f":"(SUMPRODUCT(AV$9:AV$229,Nutrients!$EK$8:$EK$228)+(IF($A$7=Nutrients!$B$8,Nutrients!$EK$8,Nutrients!$EK$9)*AV$7)+(((IF($A$8=Nutrients!$B$79,Nutrients!$EK$79,(IF($A$8=Nutrients!$B$77,Nutrients!$EK$77,Nutrients!$EK$78)))))*AV$8))/2000*1000000","v":55.059750000000008},{"$f":"(SUMPRODUCT(AW$9:AW$229,Nutrients!$EK$8:$EK$228)+(IF($A$7=Nutrients!$B$8,Nutrients!$EK$8,Nutrients!$EK$9)*AW$7)+(((IF($A$8=Nutrients!$B$79,Nutrients!$EK$79,(IF($A$8=Nutrients!$B$77,Nutrients!$EK$77,Nutrients!$EK$78)))))*AW$8))/2000*1000000","v":55.059750000000008}]
["  Iron added, ppm",{"$f":"(SUMPRODUCT(B$9:B$229,Nutrients!$EL$8:$EL$228)+(IF($A$7=Nutrients!$B$8,Nutrients!$EL$8,Nutrients!$EL$9)*B$7)+(((IF($A$8=Nutrients!$B$79,Nutrients!$EL$79,(IF($A$8=Nutrients!$B$77,Nutrients!$EL$77,Nutrients!$EL$78)))))*B$8))/2000*1000000","v":110.11950000000002},{"$f":"(SUMPRODUCT(C$9:C$229,Nutrients!$EL$8:$EL$228)+(IF($A$7=Nutrients!$B$8,Nutrients!$EL$8,Nutrients!$EL$9)*C$7)+(((IF($A$8=Nutrients!$B$79,Nutrients!$EL$79,(IF($A$8=Nutrients!$B$77,Nutrients!$EL$77,Nutrients!$EL$78)))))*C$8))/2000*1000000","v":110.11950000000002},{"$f":"(SUMPRODUCT(D$9:D$229,Nutrients!$EL$8:$EL$228)+(IF($A$7=Nutrients!$B$8,Nutrients!$EL$8,Nutrients!$EL$9)*D$7)+(((IF($A$8=Nutrients!$B$79,Nutrients!$EL$79,(IF($A$8=Nutrients!$B$77,Nutrients!$EL$77,Nutrients!$EL$78)))))*D$8))/2000*1000000","v":91.766249999999999},{"$f":"(SUMPRODUCT(E$9:E$229,Nutrients!$EL$8:$EL$228)+(IF($A$7=Nutrients!$B$8,Nutrients!$EL$8,Nutrients!$EL$9)*E$7)+(((IF($A$8=Nutrients!$B$79,Nutrients!$EL$79,(IF($A$8=Nutrients!$B$77,Nutrients!$EL$77,Nutrients!$EL$78)))))*E$8))/2000*1000000","v":73.413000000000011},{"$f":"(SUMPRODUCT(F$9:F$229,Nutrients!$EL$8:$EL$228)+(IF($A$7=Nutrients!$B$8,Nutrients!$EL$8,Nutrients!$EL$9)*F$7)+(((IF($A$8=Nutrients!$B$79,Nutrients!$EL$79,(IF($A$8=Nutrients!$B$77,Nutrients!$EL$77,Nutrients!$EL$78)))))*F$8))/2000*1000000","v":55.059750000000008},{"$f":"(SUMPRODUCT(G$9:G$229,Nutrients!$EL$8:$EL$228)+(IF($A$7=Nutrients!$B$8,Nutrients!$EL$8,Nutrients!$EL$9)*G$7)+(((IF($A$8=Nutrients!$B$79,Nutrients!$EL$79,(IF($A$8=Nutrients!$B$77,Nutrients!$EL$77,Nutrients!$EL$78)))))*G$8))/2000*1000000","v":55.059750000000008},null,{"$f":"(SUMPRODUCT(I$9:I$229,Nutrients!$EL$8:$EL$228)+(IF($A$7=Nutrients!$B$8,Nutrients!$EL$8,Nutrients!$EL$9)*I$7)+(((IF($A$8=Nutrients!$B$79,Nutrients!$EL$79,(IF($A$8=Nutrients!$B$77,Nutrients!$EL$77,Nutrients!$EL$78)))))*I$8))/2000*1000000","v":110.11950000000002},{"$f":"(SUMPRODUCT(J$9:J$229,Nutrients!$EL$8:$EL$228)+(IF($A$7=Nutrients!$B$8,Nutrients!$EL$8,Nutrients!$EL$9)*J$7)+(((IF($A$8=Nutrients!$B$79,Nutrients!$EL$79,(IF($A$8=Nutrients!$B$77,Nutrients!$EL$77,Nutrients!$EL$78)))))*J$8))/2000*1000000","v":110.11950000000002},{"$f":"(SUMPRODUCT(K$9:K$229,Nutrients!$EL$8:$EL$228)+(IF($A$7=Nutrients!$B$8,Nutrients!$EL$8,Nutrients!$EL$9)*K$7)+(((IF($A$8=Nutrients!$B$79,Nutrients!$EL$79,(IF($A$8=Nutrients!$B$77,Nutrients!$EL$77,Nutrients!$EL$78)))))*K$8))/2000*1000000","v":91.766249999999999},{"$f":"(SUMPRODUCT(L$9:L$229,Nutrients!$EL$8:$EL$228)+(IF($A$7=Nutrients!$B$8,Nutrients!$EL$8,Nutrients!$EL$9)*L$7)+(((IF($A$8=Nutrients!$B$79,Nutrients!$EL$79,(IF($A$8=Nutrients!$B$77,Nutrients!$EL$77,Nutrients!$EL$78)))))*L$8))/2000*1000000","v":73.413000000000011},{"$f":"(SUMPRODUCT(M$9:M$229,Nutrients!$EL$8:$EL$228)+(IF($A$7=Nutrients!$B$8,Nutrients!$EL$8,Nutrients!$EL$9)*M$7)+(((IF($A$8=Nutrients!$B$79,Nutrients!$EL$79,(IF($A$8=Nutrients!$B$77,Nutrients!$EL$77,Nutrients!$EL$78)))))*M$8))/2000*1000000","v":55.059750000000008},{"$f":"(SUMPRODUCT(N$9:N$229,Nutrients!$EL$8:$EL$228)+(IF($A$7=Nutrients!$B$8,Nutrients!$EL$8,Nutrients!$EL$9)*N$7)+(((IF($A$8=Nutrients!$B$79,Nutrients!$EL$79,(IF($A$8=Nutrients!$B$77,Nutrients!$EL$77,Nutrients!$EL$78)))))*N$8))/2000*1000000","v":55.059750000000008},null,{"$f":"(SUMPRODUCT(P$9:P$229,Nutrients!$EL$8:$EL$228)+(IF($A$7=Nutrients!$B$8,Nutrients!$EL$8,Nutrients!$EL$9)*P$7)+(((IF($A$8=Nutrients!$B$79,Nutrients!$EL$79,(IF($A$8=Nutrients!$B$77,Nutrients!$EL$77,Nutrients!$EL$78)))))*P$8))/2000*1000000","v":110.11950000000002},{"$f":"(SUMPRODUCT(Q$9:Q$229,Nutrients!$EL$8:$EL$228)+(IF($A$7=Nutrients!$B$8,Nutrients!$EL$8,Nutrients!$EL$9)*Q$7)+(((IF($A$8=Nutrients!$B$79,Nutrients!$EL$79,(IF($A$8=Nutrients!$B$77,Nutrients!$EL$77,Nutrients!$EL$78)))))*Q$8))/2000*1000000","v":110.11950000000002},{"$f":"(SUMPRODUCT(R$9:R$229,Nutrients!$EL$8:$EL$228)+(IF($A$7=Nutrients!$B$8,Nutrients!$EL$8,Nutrients!$EL$9)*R$7)+(((IF($A$8=Nutrients!$B$79,Nutrients!$EL$79,(IF($A$8=Nutrients!$B$77,Nutrients!$EL$77,Nutrients!$EL$78)))))*R$8))/2000*1000000","v":91.766249999999999},{"$f":"(SUMPRODUCT(S$9:S$229,Nutrients!$EL$8:$EL$228)+(IF($A$7=Nutrients!$B$8,Nutrients!$EL$8,Nutrients!$EL$9)*S$7)+(((IF($A$8=Nutrients!$B$79,Nutrients!$EL$79,(IF($A$8=Nutrients!$B$77,Nutrients!$EL$77,Nutrients!$EL$78)))))*S$8))/2000*1000000","v":73.413000000000011},{"$f":"(SUMPRODUCT(T$9:T$229,Nutrients!$EL$8:$EL$228)+(IF($A$7=Nutrients!$B$8,Nutrients!$EL$8,Nutrients!$EL$9)*T$7)+(((IF($A$8=Nutrients!$B$79,Nutrients!$EL$79,(IF($A$8=Nutrients!$B$77,Nutrients!$EL$77,Nutrients!$EL$78)))))*T$8))/2000*1000000","v":55.059750000000008},{"$f":"(SUMPRODUCT(U$9:U$229,Nutrients!$EL$8:$EL$228)+(IF($A$7=Nutrients!$B$8,Nutrients!$EL$8,Nutrients!$EL$9)*U$7)+(((IF($A$8=Nutrients!$B$79,Nutrients!$EL$79,(IF($A$8=Nutrients!$B$77,Nutrients!$EL$77,Nutrients!$EL$78)))))*U$8))/2000*1000000","v":55.059750000000008},null,{"$f":"(SUMPRODUCT(W$9:W$229,Nutrients!$EL$8:$EL$228)+(IF($A$7=Nutrients!$B$8,Nutrients!$EL$8,Nutrients!$EL$9)*W$7)+(((IF($A$8=Nutrients!$B$79,Nutrients!$EL$79,(IF($A$8=Nutrients!$B$77,Nutrients!$EL$77,Nutrients!$EL$78)))))*W$8))/2000*1000000","v":110.11950000000002},{"$f":"(SUMPRODUCT(X$9:X$229,Nutrients!$EL$8:$EL$228)+(IF($A$7=Nutrients!$B$8,Nutrients!$EL$8,Nutrients!$EL$9)*X$7)+(((IF($A$8=Nutrients!$B$79,Nutrients!$EL$79,(IF($A$8=Nutrients!$B$77,Nutrients!$EL$77,Nutrients!$EL$78)))))*X$8))/2000*1000000","v":110.11950000000002},{"$f":"(SUMPRODUCT(Y$9:Y$229,Nutrients!$EL$8:$EL$228)+(IF($A$7=Nutrients!$B$8,Nutrients!$EL$8,Nutrients!$EL$9)*Y$7)+(((IF($A$8=Nutrients!$B$79,Nutrients!$EL$79,(IF($A$8=Nutrients!$B$77,Nutrients!$EL$77,Nutrients!$EL$78)))))*Y$8))/2000*1000000","v":91.766249999999999},{"$f":"(SUMPRODUCT(Z$9:Z$229,Nutrients!$EL$8:$EL$228)+(IF($A$7=Nutrients!$B$8,Nutrients!$EL$8,Nutrients!$EL$9)*Z$7)+(((IF($A$8=Nutrients!$B$79,Nutrients!$EL$79,(IF($A$8=Nutrients!$B$77,Nutrients!$EL$77,Nutrients!$EL$78)))))*Z$8))/2000*1000000","v":73.413000000000011},{"$f":"(SUMPRODUCT(AA$9:AA$229,Nutrients!$EL$8:$EL$228)+(IF($A$7=Nutrients!$B$8,Nutrients!$EL$8,Nutrients!$EL$9)*AA$7)+(((IF($A$8=Nutrients!$B$79,Nutrients!$EL$79,(IF($A$8=Nutrients!$B$77,Nutrients!$EL$77,Nutrients!$EL$78)))))*AA$8))/2000*1000000","v":55.059750000000008},{"$f":"(SUMPRODUCT(AB$9:AB$229,Nutrients!$EL$8:$EL$228)+(IF($A$7=Nutrients!$B$8,Nutrients!$EL$8,Nutrients!$EL$9)*AB$7)+(((IF($A$8=Nutrients!$B$79,Nutrients!$EL$79,(IF($A$8=Nutrients!$B$77,Nutrients!$EL$77,Nutrients!$EL$78)))))*AB$8))/2000*1000000","v":55.059750000000008},null,{"$f":"(SUMPRODUCT(AD$9:AD$229,Nutrients!$EL$8:$EL$228)+(IF($A$7=Nutrients!$B$8,Nutrients!$EL$8,Nutrients!$EL$9)*AD$7)+(((IF($A$8=Nutrients!$B$79,Nutrients!$EL$79,(IF($A$8=Nutrients!$B$77,Nutrients!$EL$77,Nutrients!$EL$78)))))*AD$8))/2000*1000000","v":110.11950000000002},{"$f":"(SUMPRODUCT(AE$9:AE$229,Nutrients!$EL$8:$EL$228)+(IF($A$7=Nutrients!$B$8,Nutrients!$EL$8,Nutrients!$EL$9)*AE$7)+(((IF($A$8=Nutrients!$B$79,Nutrients!$EL$79,(IF($A$8=Nutrients!$B$77,Nutrients!$EL$77,Nutrients!$EL$78)))))*AE$8))/2000*1000000","v":110.11950000000002},{"$f":"(SUMPRODUCT(AF$9:AF$229,Nutrients!$EL$8:$EL$228)+(IF($A$7=Nutrients!$B$8,Nutrients!$EL$8,Nutrients!$EL$9)*AF$7)+(((IF($A$8=Nutrients!$B$79,Nutrients!$EL$79,(IF($A$8=Nutrients!$B$77,Nutrients!$EL$77,Nutrients!$EL$78)))))*AF$8))/2000*1000000","v":91.766249999999999},{"$f":"(SUMPRODUCT(AG$9:AG$229,Nutrients!$EL$8:$EL$228)+(IF($A$7=Nutrients!$B$8,Nutrients!$EL$8,Nutrients!$EL$9)*AG$7)+(((IF($A$8=Nutrients!$B$79,Nutrients!$EL$79,(IF($A$8=Nutrients!$B$77,Nutrients!$EL$77,Nutrients!$EL$78)))))*AG$8))/2000*1000000","v":73.413000000000011},{"$f":"(SUMPRODUCT(AH$9:AH$229,Nutrients!$EL$8:$EL$228)+(IF($A$7=Nutrients!$B$8,Nutrients!$EL$8,Nutrients!$EL$9)*AH$7)+(((IF($A$8=Nutrients!$B$79,Nutrients!$EL$79,(IF($A$8=Nutrients!$B$77,Nutrients!$EL$77,Nutrients!$EL$78)))))*AH$8))/2000*1000000","v":55.059750000000008},{"$f":"(SUMPRODUCT(AI$9:AI$229,Nutrients!$EL$8:$EL$228)+(IF($A$7=Nutrients!$B$8,Nutrients!$EL$8,Nutrients!$EL$9)*AI$7)+(((IF($A$8=Nutrients!$B$79,Nutrients!$EL$79,(IF($A$8=Nutrients!$B$77,Nutrients!$EL$77,Nutrients!$EL$78)))))*AI$8))/2000*1000000","v":55.059750000000008},null,{"$f":"(SUMPRODUCT(AK$9:AK$229,Nutrients!$EL$8:$EL$228)+(IF($A$7=Nutrients!$B$8,Nutrients!$EL$8,Nutrients!$EL$9)*AK$7)+(((IF($A$8=Nutrients!$B$79,Nutrients!$EL$79,(IF($A$8=Nutrients!$B$77,Nutrients!$EL$77,Nutrients!$EL$78)))))*AK$8))/2000*1000000","v":110.11950000000002},{"$f":"(SUMPRODUCT(AL$9:AL$229,Nutrients!$EL$8:$EL$228)+(IF($A$7=Nutrients!$B$8,Nutrients!$EL$8,Nutrients!$EL$9)*AL$7)+(((IF($A$8=Nutrients!$B$79,Nutrients!$EL$79,(IF($A$8=Nutrients!$B$77,Nutrients!$EL$77,Nutrients!$EL$78)))))*AL$8))/2000*1000000","v":110.11950000000002},{"$f":"(SUMPRODUCT(AM$9:AM$229,Nutrients!$EL$8:$EL$228)+(IF($A$7=Nutrients!$B$8,Nutrients!$EL$8,Nutrients!$EL$9)*AM$7)+(((IF($A$8=Nutrients!$B$79,Nutrients!$EL$79,(IF($A$8=Nutrients!$B$77,Nutrients!$EL$77,Nutrients!$EL$78)))))*AM$8))/2000*1000000","v":91.766249999999999},{"$f":"(SUMPRODUCT(AN$9:AN$229,Nutrients!$EL$8:$EL$228)+(IF($A$7=Nutrients!$B$8,Nutrients!$EL$8,Nutrients!$EL$9)*AN$7)+(((IF($A$8=Nutrients!$B$79,Nutrients!$EL$79,(IF($A$8=Nutrients!$B$77,Nutrients!$EL$77,Nutrients!$EL$78)))))*AN$8))/2000*1000000","v":73.413000000000011},{"$f":"(SUMPRODUCT(AO$9:AO$229,Nutrients!$EL$8:$EL$228)+(IF($A$7=Nutrients!$B$8,Nutrients!$EL$8,Nutrients!$EL$9)*AO$7)+(((IF($A$8=Nutrients!$B$79,Nutrients!$EL$79,(IF($A$8=Nutrients!$B$77,Nutrients!$EL$77,Nutrients!$EL$78)))))*AO$8))/2000*1000000","v":55.059750000000008},{"$f":"(SUMPRODUCT(AP$9:AP$229,Nutrients!$EL$8:$EL$228)+(IF($A$7=Nutrients!$B$8,Nutrients!$EL$8,Nutrients!$EL$9)*AP$7)+(((IF($A$8=Nutrients!$B$79,Nutrients!$EL$79,(IF($A$8=Nutrients!$B$77,Nutrients!$EL$77,Nutrients!$EL$78)))))*AP$8))/2000*1000000","v":55.059750000000008},null,{"$f":"(SUMPRODUCT(AR$9:AR$229,Nutrients!$EL$8:$EL$228)+(IF($A$7=Nutrients!$B$8,Nutrients!$EL$8,Nutrients!$EL$9)*AR$7)+(((IF($A$8=Nutrients!$B$79,Nutrients!$EL$79,(IF($A$8=Nutrients!$B$77,Nutrients!$EL$77,Nutrients!$EL$78)))))*AR$8))/2000*1000000","v":110.11950000000002},{"$f":"(SUMPRODUCT(AS$9:AS$229,Nutrients!$EL$8:$EL$228)+(IF($A$7=Nutrients!$B$8,Nutrients!$EL$8,Nutrients!$EL$9)*AS$7)+(((IF($A$8=Nutrients!$B$79,Nutrients!$EL$79,(IF($A$8=Nutrients!$B$77,Nutrients!$EL$77,Nutrients!$EL$78)))))*AS$8))/2000*1000000","v":110.11950000000002},{"$f":"(SUMPRODUCT(AT$9:AT$229,Nutrients!$EL$8:$EL$228)+(IF($A$7=Nutrients!$B$8,Nutrients!$EL$8,Nutrients!$EL$9)*AT$7)+(((IF($A$8=Nutrients!$B$79,Nutrients!$EL$79,(IF($A$8=Nutrients!$B$77,Nutrients!$EL$77,Nutrients!$EL$78)))))*AT$8))/2000*1000000","v":91.766249999999999},{"$f":"(SUMPRODUCT(AU$9:AU$229,Nutrients!$EL$8:$EL$228)+(IF($A$7=Nutrients!$B$8,Nutrients!$EL$8,Nutrients!$EL$9)*AU$7)+(((IF($A$8=Nutrients!$B$79,Nutrients!$EL$79,(IF($A$8=Nutrients!$B$77,Nutrients!$EL$77,Nutrients!$EL$78)))))*AU$8))/2000*1000000","v":73.413000000000011},{"$f":"(SUMPRODUCT(AV$9:AV$229,Nutrients!$EL$8:$EL$228)+(IF($A$7=Nutrients!$B$8,Nutrients!$EL$8,Nutrients!$EL$9)*AV$7)+(((IF($A$8=Nutrients!$B$79,Nutrients!$EL$79,(IF($A$8=Nutrients!$B$77,Nutrients!$EL$77,Nutrients!$EL$78)))))*AV$8))/2000*1000000","v":55.059750000000008},{"$f":"(SUMPRODUCT(AW$9:AW$229,Nutrients!$EL$8:$EL$228)+(IF($A$7=Nutrients!$B$8,Nutrients!$EL$8,Nutrients!$EL$9)*AW$7)+(((IF($A$8=Nutrients!$B$79,Nutrients!$EL$79,(IF($A$8=Nutrients!$B$77,Nutrients!$EL$77,Nutrients!$EL$78)))))*AW$8))/2000*1000000","v":55.059750000000008}]
["  Manganese added, ppm",{"$f":"(SUMPRODUCT(B$9:B$229,Nutrients!$EM$8:$EM$228)+(IF($A$7=Nutrients!$B$8,Nutrients!$EM$8,Nutrients!$EM$9)*B$7)+(((IF($A$8=Nutrients!$B$79,Nutrients!$EM$79,(IF($A$8=Nutrients!$B$77,Nutrients!$EM$77,Nutrients!$EM$78)))))*B$8))/2000*1000000","v":33.068999999999996},{"$f":"(SUMPRODUCT(C$9:C$229,Nutrients!$EM$8:$EM$228)+(IF($A$7=Nutrients!$B$8,Nutrients!$EM$8,Nutrients!$EM$9)*C$7)+(((IF($A$8=Nutrients!$B$79,Nutrients!$EM$79,(IF($A$8=Nutrients!$B$77,Nutrients!$EM$77,Nutrients!$EM$78)))))*C$8))/2000*1000000","v":33.068999999999996},{"$f":"(SUMPRODUCT(D$9:D$229,Nutrients!$EM$8:$EM$228)+(IF($A$7=Nutrients!$B$8,Nutrients!$EM$8,Nutrients!$EM$9)*D$7)+(((IF($A$8=Nutrients!$B$79,Nutrients!$EM$79,(IF($A$8=Nutrients!$B$77,Nutrients!$EM$77,Nutrients!$EM$78)))))*D$8))/2000*1000000","v":27.557499999999997},{"$f":"(SUMPRODUCT(E$9:E$229,Nutrients!$EM$8:$EM$228)+(IF($A$7=Nutrients!$B$8,Nutrients!$EM$8,Nutrients!$EM$9)*E$7)+(((IF($A$8=Nutrients!$B$79,Nutrients!$EM$79,(IF($A$8=Nutrients!$B$77,Nutrients!$EM$77,Nutrients!$EM$78)))))*E$8))/2000*1000000","v":22.045999999999999},{"$f":"(SUMPRODUCT(F$9:F$229,Nutrients!$EM$8:$EM$228)+(IF($A$7=Nutrients!$B$8,Nutrients!$EM$8,Nutrients!$EM$9)*F$7)+(((IF($A$8=Nutrients!$B$79,Nutrients!$EM$79,(IF($A$8=Nutrients!$B$77,Nutrients!$EM$77,Nutrients!$EM$78)))))*F$8))/2000*1000000","v":16.534499999999998},{"$f":"(SUMPRODUCT(G$9:G$229,Nutrients!$EM$8:$EM$228)+(IF($A$7=Nutrients!$B$8,Nutrients!$EM$8,Nutrients!$EM$9)*G$7)+(((IF($A$8=Nutrients!$B$79,Nutrients!$EM$79,(IF($A$8=Nutrients!$B$77,Nutrients!$EM$77,Nutrients!$EM$78)))))*G$8))/2000*1000000","v":16.534499999999998},null,{"$f":"(SUMPRODUCT(I$9:I$229,Nutrients!$EM$8:$EM$228)+(IF($A$7=Nutrients!$B$8,Nutrients!$EM$8,Nutrients!$EM$9)*I$7)+(((IF($A$8=Nutrients!$B$79,Nutrients!$EM$79,(IF($A$8=Nutrients!$B$77,Nutrients!$EM$77,Nutrients!$EM$78)))))*I$8))/2000*1000000","v":33.068999999999996},{"$f":"(SUMPRODUCT(J$9:J$229,Nutrients!$EM$8:$EM$228)+(IF($A$7=Nutrients!$B$8,Nutrients!$EM$8,Nutrients!$EM$9)*J$7)+(((IF($A$8=Nutrients!$B$79,Nutrients!$EM$79,(IF($A$8=Nutrients!$B$77,Nutrients!$EM$77,Nutrients!$EM$78)))))*J$8))/2000*1000000","v":33.068999999999996},{"$f":"(SUMPRODUCT(K$9:K$229,Nutrients!$EM$8:$EM$228)+(IF($A$7=Nutrients!$B$8,Nutrients!$EM$8,Nutrients!$EM$9)*K$7)+(((IF($A$8=Nutrients!$B$79,Nutrients!$EM$79,(IF($A$8=Nutrients!$B$77,Nutrients!$EM$77,Nutrients!$EM$78)))))*K$8))/2000*1000000","v":27.557499999999997},{"$f":"(SUMPRODUCT(L$9:L$229,Nutrients!$EM$8:$EM$228)+(IF($A$7=Nutrients!$B$8,Nutrients!$EM$8,Nutrients!$EM$9)*L$7)+(((IF($A$8=Nutrients!$B$79,Nutrients!$EM$79,(IF($A$8=Nutrients!$B$77,Nutrients!$EM$77,Nutrients!$EM$78)))))*L$8))/2000*1000000","v":22.045999999999999},{"$f":"(SUMPRODUCT(M$9:M$229,Nutrients!$EM$8:$EM$228)+(IF($A$7=Nutrients!$B$8,Nutrients!$EM$8,Nutrients!$EM$9)*M$7)+(((IF($A$8=Nutrients!$B$79,Nutrients!$EM$79,(IF($A$8=Nutrients!$B$77,Nutrients!$EM$77,Nutrients!$EM$78)))))*M$8))/2000*1000000","v":16.534499999999998},{"$f":"(SUMPRODUCT(N$9:N$229,Nutrients!$EM$8:$EM$228)+(IF($A$7=Nutrients!$B$8,Nutrients!$EM$8,Nutrients!$EM$9)*N$7)+(((IF($A$8=Nutrients!$B$79,Nutrients!$EM$79,(IF($A$8=Nutrients!$B$77,Nutrients!$EM$77,Nutrients!$EM$78)))))*N$8))/2000*1000000","v":16.534499999999998},null,{"$f":"(SUMPRODUCT(P$9:P$229,Nutrients!$EM$8:$EM$228)+(IF($A$7=Nutrients!$B$8,Nutrients!$EM$8,Nutrients!$EM$9)*P$7)+(((IF($A$8=Nutrients!$B$79,Nutrients!$EM$79,(IF($A$8=Nutrients!$B$77,Nutrients!$EM$77,Nutrients!$EM$78)))))*P$8))/2000*1000000","v":33.068999999999996},{"$f":"(SUMPRODUCT(Q$9:Q$229,Nutrients!$EM$8:$EM$228)+(IF($A$7=Nutrients!$B$8,Nutrients!$EM$8,Nutrients!$EM$9)*Q$7)+(((IF($A$8=Nutrients!$B$79,Nutrients!$EM$79,(IF($A$8=Nutrients!$B$77,Nutrients!$EM$77,Nutrients!$EM$78)))))*Q$8))/2000*1000000","v":33.068999999999996},{"$f":"(SUMPRODUCT(R$9:R$229,Nutrients!$EM$8:$EM$228)+(IF($A$7=Nutrients!$B$8,Nutrients!$EM$8,Nutrients!$EM$9)*R$7)+(((IF($A$8=Nutrients!$B$79,Nutrients!$EM$79,(IF($A$8=Nutrients!$B$77,Nutrients!$EM$77,Nutrients!$EM$78)))))*R$8))/2000*1000000","v":27.557499999999997},{"$f":"(SUMPRODUCT(S$9:S$229,Nutrients!$EM$8:$EM$228)+(IF($A$7=Nutrients!$B$8,Nutrients!$EM$8,Nutrients!$EM$9)*S$7)+(((IF($A$8=Nutrients!$B$79,Nutrients!$EM$79,(IF($A$8=Nutrients!$B$77,Nutrients!$EM$77,Nutrients!$EM$78)))))*S$8))/2000*1000000","v":22.045999999999999},{"$f":"(SUMPRODUCT(T$9:T$229,Nutrients!$EM$8:$EM$228)+(IF($A$7=Nutrients!$B$8,Nutrients!$EM$8,Nutrients!$EM$9)*T$7)+(((IF($A$8=Nutrients!$B$79,Nutrients!$EM$79,(IF($A$8=Nutrients!$B$77,Nutrients!$EM$77,Nutrients!$EM$78)))))*T$8))/2000*1000000","v":16.534499999999998},{"$f":"(SUMPRODUCT(U$9:U$229,Nutrients!$EM$8:$EM$228)+(IF($A$7=Nutrients!$B$8,Nutrients!$EM$8,Nutrients!$EM$9)*U$7)+(((IF($A$8=Nutrients!$B$79,Nutrients!$EM$79,(IF($A$8=Nutrients!$B$77,Nutrients!$EM$77,Nutrients!$EM$78)))))*U$8))/2000*1000000","v":16.534499999999998},null,{"$f":"(SUMPRODUCT(W$9:W$229,Nutrients!$EM$8:$EM$228)+(IF($A$7=Nutrients!$B$8,Nutrients!$EM$8,Nutrients!$EM$9)*W$7)+(((IF($A$8=Nutrients!$B$79,Nutrients!$EM$79,(IF($A$8=Nutrients!$B$77,Nutrients!$EM$77,Nutrients!$EM$78)))))*W$8))/2000*1000000","v":33.068999999999996},{"$f":"(SUMPRODUCT(X$9:X$229,Nutrients!$EM$8:$EM$228)+(IF($A$7=Nutrients!$B$8,Nutrients!$EM$8,Nutrients!$EM$9)*X$7)+(((IF($A$8=Nutrients!$B$79,Nutrients!$EM$79,(IF($A$8=Nutrients!$B$77,Nutrients!$EM$77,Nutrients!$EM$78)))))*X$8))/2000*1000000","v":33.068999999999996},{"$f":"(SUMPRODUCT(Y$9:Y$229,Nutrients!$EM$8:$EM$228)+(IF($A$7=Nutrients!$B$8,Nutrients!$EM$8,Nutrients!$EM$9)*Y$7)+(((IF($A$8=Nutrients!$B$79,Nutrients!$EM$79,(IF($A$8=Nutrients!$B$77,Nutrients!$EM$77,Nutrients!$EM$78)))))*Y$8))/2000*1000000","v":27.557499999999997},{"$f":"(SUMPRODUCT(Z$9:Z$229,Nutrients!$EM$8:$EM$228)+(IF($A$7=Nutrients!$B$8,Nutrients!$EM$8,Nutrients!$EM$9)*Z$7)+(((IF($A$8=Nutrients!$B$79,Nutrients!$EM$79,(IF($A$8=Nutrients!$B$77,Nutrients!$EM$77,Nutrients!$EM$78)))))*Z$8))/2000*1000000","v":22.045999999999999},{"$f":"(SUMPRODUCT(AA$9:AA$229,Nutrients!$EM$8:$EM$228)+(IF($A$7=Nutrients!$B$8,Nutrients!$EM$8,Nutrients!$EM$9)*AA$7)+(((IF($A$8=Nutrients!$B$79,Nutrients!$EM$79,(IF($A$8=Nutrients!$B$77,Nutrients!$EM$77,Nutrients!$EM$78)))))*AA$8))/2000*1000000","v":16.534499999999998},{"$f":"(SUMPRODUCT(AB$9:AB$229,Nutrients!$EM$8:$EM$228)+(IF($A$7=Nutrients!$B$8,Nutrients!$EM$8,Nutrients!$EM$9)*AB$7)+(((IF($A$8=Nutrients!$B$79,Nutrients!$EM$79,(IF($A$8=Nutrients!$B$77,Nutrients!$EM$77,Nutrients!$EM$78)))))*AB$8))/2000*1000000","v":16.534499999999998},null,{"$f":"(SUMPRODUCT(AD$9:AD$229,Nutrients!$EM$8:$EM$228)+(IF($A$7=Nutrients!$B$8,Nutrients!$EM$8,Nutrients!$EM$9)*AD$7)+(((IF($A$8=Nutrients!$B$79,Nutrients!$EM$79,(IF($A$8=Nutrients!$B$77,Nutrients!$EM$77,Nutrients!$EM$78)))))*AD$8))/2000*1000000","v":33.068999999999996},{"$f":"(SUMPRODUCT(AE$9:AE$229,Nutrients!$EM$8:$EM$228)+(IF($A$7=Nutrients!$B$8,Nutrients!$EM$8,Nutrients!$EM$9)*AE$7)+(((IF($A$8=Nutrients!$B$79,Nutrients!$EM$79,(IF($A$8=Nutrients!$B$77,Nutrients!$EM$77,Nutrients!$EM$78)))))*AE$8))/2000*1000000","v":33.068999999999996},{"$f":"(SUMPRODUCT(AF$9:AF$229,Nutrients!$EM$8:$EM$228)+(IF($A$7=Nutrients!$B$8,Nutrients!$EM$8,Nutrients!$EM$9)*AF$7)+(((IF($A$8=Nutrients!$B$79,Nutrients!$EM$79,(IF($A$8=Nutrients!$B$77,Nutrients!$EM$77,Nutrients!$EM$78)))))*AF$8))/2000*1000000","v":27.557499999999997},{"$f":"(SUMPRODUCT(AG$9:AG$229,Nutrients!$EM$8:$EM$228)+(IF($A$7=Nutrients!$B$8,Nutrients!$EM$8,Nutrients!$EM$9)*AG$7)+(((IF($A$8=Nutrients!$B$79,Nutrients!$EM$79,(IF($A$8=Nutrients!$B$77,Nutrients!$EM$77,Nutrients!$EM$78)))))*AG$8))/2000*1000000","v":22.045999999999999},{"$f":"(SUMPRODUCT(AH$9:AH$229,Nutrients!$EM$8:$EM$228)+(IF($A$7=Nutrients!$B$8,Nutrients!$EM$8,Nutrients!$EM$9)*AH$7)+(((IF($A$8=Nutrients!$B$79,Nutrients!$EM$79,(IF($A$8=Nutrients!$B$77,Nutrients!$EM$77,Nutrients!$EM$78)))))*AH$8))/2000*1000000","v":16.534499999999998},{"$f":"(SUMPRODUCT(AI$9:AI$229,Nutrients!$EM$8:$EM$228)+(IF($A$7=Nutrients!$B$8,Nutrients!$EM$8,Nutrients!$EM$9)*AI$7)+(((IF($A$8=Nutrients!$B$79,Nutrients!$EM$79,(IF($A$8=Nutrients!$B$77,Nutrients!$EM$77,Nutrients!$EM$78)))))*AI$8))/2000*1000000","v":16.534499999999998},null,{"$f":"(SUMPRODUCT(AK$9:AK$229,Nutrients!$EM$8:$EM$228)+(IF($A$7=Nutrients!$B$8,Nutrients!$EM$8,Nutrients!$EM$9)*AK$7)+(((IF($A$8=Nutrients!$B$79,Nutrients!$EM$79,(IF($A$8=Nutrients!$B$77,Nutrients!$EM$77,Nutrients!$EM$78)))))*AK$8))/2000*1000000","v":33.068999999999996},{"$f":"(SUMPRODUCT(AL$9:AL$229,Nutrients!$EM$8:$EM$228)+(IF($A$7=Nutrients!$B$8,Nutrients!$EM$8,Nutrients!$EM$9)*AL$7)+(((IF($A$8=Nutrients!$B$79,Nutrients!$EM$79,(IF($A$8=Nutrients!$B$77,Nutrients!$EM$77,Nutrients!$EM$78)))))*AL$8))/2000*1000000","v":33.068999999999996},{"$f":"(SUMPRODUCT(AM$9:AM$229,Nutrients!$EM$8:$EM$228)+(IF($A$7=Nutrients!$B$8,Nutrients!$EM$8,Nutrients!$EM$9)*AM$7)+(((IF($A$8=Nutrients!$B$79,Nutrients!$EM$79,(IF($A$8=Nutrients!$B$77,Nutrients!$EM$77,Nutrients!$EM$78)))))*AM$8))/2000*1000000","v":27.557499999999997},{"$f":"(SUMPRODUCT(AN$9:AN$229,Nutrients!$EM$8:$EM$228)+(IF($A$7=Nutrients!$B$8,Nutrients!$EM$8,Nutrients!$EM$9)*AN$7)+(((IF($A$8=Nutrients!$B$79,Nutrients!$EM$79,(IF($A$8=Nutrients!$B$77,Nutrients!$EM$77,Nutrients!$EM$78)))))*AN$8))/2000*1000000","v":22.045999999999999},{"$f":"(SUMPRODUCT(AO$9:AO$229,Nutrients!$EM$8:$EM$228)+(IF($A$7=Nutrients!$B$8,Nutrients!$EM$8,Nutrients!$EM$9)*AO$7)+(((IF($A$8=Nutrients!$B$79,Nutrients!$EM$79,(IF($A$8=Nutrients!$B$77,Nutrients!$EM$77,Nutrients!$EM$78)))))*AO$8))/2000*1000000","v":16.534499999999998},{"$f":"(SUMPRODUCT(AP$9:AP$229,Nutrients!$EM$8:$EM$228)+(IF($A$7=Nutrients!$B$8,Nutrients!$EM$8,Nutrients!$EM$9)*AP$7)+(((IF($A$8=Nutrients!$B$79,Nutrients!$EM$79,(IF($A$8=Nutrients!$B$77,Nutrients!$EM$77,Nutrients!$EM$78)))))*AP$8))/2000*1000000","v":16.534499999999998},null,{"$f":"(SUMPRODUCT(AR$9:AR$229,Nutrients!$EM$8:$EM$228)+(IF($A$7=Nutrients!$B$8,Nutrients!$EM$8,Nutrients!$EM$9)*AR$7)+(((IF($A$8=Nutrients!$B$79,Nutrients!$EM$79,(IF($A$8=Nutrients!$B$77,Nutrients!$EM$77,Nutrients!$EM$78)))))*AR$8))/2000*1000000","v":33.068999999999996},{"$f":"(SUMPRODUCT(AS$9:AS$229,Nutrients!$EM$8:$EM$228)+(IF($A$7=Nutrients!$B$8,Nutrients!$EM$8,Nutrients!$EM$9)*AS$7)+(((IF($A$8=Nutrients!$B$79,Nutrients!$EM$79,(IF($A$8=Nutrients!$B$77,Nutrients!$EM$77,Nutrients!$EM$78)))))*AS$8))/2000*1000000","v":33.068999999999996},{"$f":"(SUMPRODUCT(AT$9:AT$229,Nutrients!$EM$8:$EM$228)+(IF($A$7=Nutrients!$B$8,Nutrients!$EM$8,Nutrients!$EM$9)*AT$7)+(((IF($A$8=Nutrients!$B$79,Nutrients!$EM$79,(IF($A$8=Nutrients!$B$77,Nutrients!$EM$77,Nutrients!$EM$78)))))*AT$8))/2000*1000000","v":27.557499999999997},{"$f":"(SUMPRODUCT(AU$9:AU$229,Nutrients!$EM$8:$EM$228)+(IF($A$7=Nutrients!$B$8,Nutrients!$EM$8,Nutrients!$EM$9)*AU$7)+(((IF($A$8=Nutrients!$B$79,Nutrients!$EM$79,(IF($A$8=Nutrients!$B$77,Nutrients!$EM$77,Nutrients!$EM$78)))))*AU$8))/2000*1000000","v":22.045999999999999},{"$f":"(SUMPRODUCT(AV$9:AV$229,Nutrients!$EM$8:$EM$228)+(IF($A$7=Nutrients!$B$8,Nutrients!$EM$8,Nutrients!$EM$9)*AV$7)+(((IF($A$8=Nutrients!$B$79,Nutrients!$EM$79,(IF($A$8=Nutrients!$B$77,Nutrients!$EM$77,Nutrients!$EM$78)))))*AV$8))/2000*1000000","v":16.534499999999998},{"$f":"(SUMPRODUCT(AW$9:AW$229,Nutrients!$EM$8:$EM$228)+(IF($A$7=Nutrients!$B$8,Nutrients!$EM$8,Nutrients!$EM$9)*AW$7)+(((IF($A$8=Nutrients!$B$79,Nutrients!$EM$79,(IF($A$8=Nutrients!$B$77,Nutrients!$EM$77,Nutrients!$EM$78)))))*AW$8))/2000*1000000","v":16.534499999999998}]
["  Copper added, ppm",{"$f":"(SUMPRODUCT(B$9:B$229,Nutrients!$EN$8:$EN$228)+(IF($A$7=Nutrients!$B$8,Nutrients!$EN$8,Nutrients!$EN$9)*B$7)+(((IF($A$8=Nutrients!$B$79,Nutrients!$EN$79,(IF($A$8=Nutrients!$B$77,Nutrients!$EN$77,Nutrients!$EN$78)))))*B$8))/2000*1000000","v":16.5},{"$f":"(SUMPRODUCT(C$9:C$229,Nutrients!$EN$8:$EN$228)+(IF($A$7=Nutrients!$B$8,Nutrients!$EN$8,Nutrients!$EN$9)*C$7)+(((IF($A$8=Nutrients!$B$79,Nutrients!$EN$79,(IF($A$8=Nutrients!$B$77,Nutrients!$EN$77,Nutrients!$EN$78)))))*C$8))/2000*1000000","v":16.5},{"$f":"(SUMPRODUCT(D$9:D$229,Nutrients!$EN$8:$EN$228)+(IF($A$7=Nutrients!$B$8,Nutrients!$EN$8,Nutrients!$EN$9)*D$7)+(((IF($A$8=Nutrients!$B$79,Nutrients!$EN$79,(IF($A$8=Nutrients!$B$77,Nutrients!$EN$77,Nutrients!$EN$78)))))*D$8))/2000*1000000","v":13.749999999999998},{"$f":"(SUMPRODUCT(E$9:E$229,Nutrients!$EN$8:$EN$228)+(IF($A$7=Nutrients!$B$8,Nutrients!$EN$8,Nutrients!$EN$9)*E$7)+(((IF($A$8=Nutrients!$B$79,Nutrients!$EN$79,(IF($A$8=Nutrients!$B$77,Nutrients!$EN$77,Nutrients!$EN$78)))))*E$8))/2000*1000000","v":11},{"$f":"(SUMPRODUCT(F$9:F$229,Nutrients!$EN$8:$EN$228)+(IF($A$7=Nutrients!$B$8,Nutrients!$EN$8,Nutrients!$EN$9)*F$7)+(((IF($A$8=Nutrients!$B$79,Nutrients!$EN$79,(IF($A$8=Nutrients!$B$77,Nutrients!$EN$77,Nutrients!$EN$78)))))*F$8))/2000*1000000","v":8.25},{"$f":"(SUMPRODUCT(G$9:G$229,Nutrients!$EN$8:$EN$228)+(IF($A$7=Nutrients!$B$8,Nutrients!$EN$8,Nutrients!$EN$9)*G$7)+(((IF($A$8=Nutrients!$B$79,Nutrients!$EN$79,(IF($A$8=Nutrients!$B$77,Nutrients!$EN$77,Nutrients!$EN$78)))))*G$8))/2000*1000000","v":8.25},null,{"$f":"(SUMPRODUCT(I$9:I$229,Nutrients!$EN$8:$EN$228)+(IF($A$7=Nutrients!$B$8,Nutrients!$EN$8,Nutrients!$EN$9)*I$7)+(((IF($A$8=Nutrients!$B$79,Nutrients!$EN$79,(IF($A$8=Nutrients!$B$77,Nutrients!$EN$77,Nutrients!$EN$78)))))*I$8))/2000*1000000","v":16.5},{"$f":"(SUMPRODUCT(J$9:J$229,Nutrients!$EN$8:$EN$228)+(IF($A$7=Nutrients!$B$8,Nutrients!$EN$8,Nutrients!$EN$9)*J$7)+(((IF($A$8=Nutrients!$B$79,Nutrients!$EN$79,(IF($A$8=Nutrients!$B$77,Nutrients!$EN$77,Nutrients!$EN$78)))))*J$8))/2000*1000000","v":16.5},{"$f":"(SUMPRODUCT(K$9:K$229,Nutrients!$EN$8:$EN$228)+(IF($A$7=Nutrients!$B$8,Nutrients!$EN$8,Nutrients!$EN$9)*K$7)+(((IF($A$8=Nutrients!$B$79,Nutrients!$EN$79,(IF($A$8=Nutrients!$B$77,Nutrients!$EN$77,Nutrients!$EN$78)))))*K$8))/2000*1000000","v":13.749999999999998},{"$f":"(SUMPRODUCT(L$9:L$229,Nutrients!$EN$8:$EN$228)+(IF($A$7=Nutrients!$B$8,Nutrients!$EN$8,Nutrients!$EN$9)*L$7)+(((IF($A$8=Nutrients!$B$79,Nutrients!$EN$79,(IF($A$8=Nutrients!$B$77,Nutrients!$EN$77,Nutrients!$EN$78)))))*L$8))/2000*1000000","v":11},{"$f":"(SUMPRODUCT(M$9:M$229,Nutrients!$EN$8:$EN$228)+(IF($A$7=Nutrients!$B$8,Nutrients!$EN$8,Nutrients!$EN$9)*M$7)+(((IF($A$8=Nutrients!$B$79,Nutrients!$EN$79,(IF($A$8=Nutrients!$B$77,Nutrients!$EN$77,Nutrients!$EN$78)))))*M$8))/2000*1000000","v":8.25},{"$f":"(SUMPRODUCT(N$9:N$229,Nutrients!$EN$8:$EN$228)+(IF($A$7=Nutrients!$B$8,Nutrients!$EN$8,Nutrients!$EN$9)*N$7)+(((IF($A$8=Nutrients!$B$79,Nutrients!$EN$79,(IF($A$8=Nutrients!$B$77,Nutrients!$EN$77,Nutrients!$EN$78)))))*N$8))/2000*1000000","v":8.25},null,{"$f":"(SUMPRODUCT(P$9:P$229,Nutrients!$EN$8:$EN$228)+(IF($A$7=Nutrients!$B$8,Nutrients!$EN$8,Nutrients!$EN$9)*P$7)+(((IF($A$8=Nutrients!$B$79,Nutrients!$EN$79,(IF($A$8=Nutrients!$B$77,Nutrients!$EN$77,Nutrients!$EN$78)))))*P$8))/2000*1000000","v":16.5},{"$f":"(SUMPRODUCT(Q$9:Q$229,Nutrients!$EN$8:$EN$228)+(IF($A$7=Nutrients!$B$8,Nutrients!$EN$8,Nutrients!$EN$9)*Q$7)+(((IF($A$8=Nutrients!$B$79,Nutrients!$EN$79,(IF($A$8=Nutrients!$B$77,Nutrients!$EN$77,Nutrients!$EN$78)))))*Q$8))/2000*1000000","v":16.5},{"$f":"(SUMPRODUCT(R$9:R$229,Nutrients!$EN$8:$EN$228)+(IF($A$7=Nutrients!$B$8,Nutrients!$EN$8,Nutrients!$EN$9)*R$7)+(((IF($A$8=Nutrients!$B$79,Nutrients!$EN$79,(IF($A$8=Nutrients!$B$77,Nutrients!$EN$77,Nutrients!$EN$78)))))*R$8))/2000*1000000","v":13.749999999999998},{"$f":"(SUMPRODUCT(S$9:S$229,Nutrients!$EN$8:$EN$228)+(IF($A$7=Nutrients!$B$8,Nutrients!$EN$8,Nutrients!$EN$9)*S$7)+(((IF($A$8=Nutrients!$B$79,Nutrients!$EN$79,(IF($A$8=Nutrients!$B$77,Nutrients!$EN$77,Nutrients!$EN$78)))))*S$8))/2000*1000000","v":11},{"$f":"(SUMPRODUCT(T$9:T$229,Nutrients!$EN$8:$EN$228)+(IF($A$7=Nutrients!$B$8,Nutrients!$EN$8,Nutrients!$EN$9)*T$7)+(((IF($A$8=Nutrients!$B$79,Nutrients!$EN$79,(IF($A$8=Nutrients!$B$77,Nutrients!$EN$77,Nutrients!$EN$78)))))*T$8))/2000*1000000","v":8.25},{"$f":"(SUMPRODUCT(U$9:U$229,Nutrients!$EN$8:$EN$228)+(IF($A$7=Nutrients!$B$8,Nutrients!$EN$8,Nutrients!$EN$9)*U$7)+(((IF($A$8=Nutrients!$B$79,Nutrients!$EN$79,(IF($A$8=Nutrients!$B$77,Nutrients!$EN$77,Nutrients!$EN$78)))))*U$8))/2000*1000000","v":8.25},null,{"$f":"(SUMPRODUCT(W$9:W$229,Nutrients!$EN$8:$EN$228)+(IF($A$7=Nutrients!$B$8,Nutrients!$EN$8,Nutrients!$EN$9)*W$7)+(((IF($A$8=Nutrients!$B$79,Nutrients!$EN$79,(IF($A$8=Nutrients!$B$77,Nutrients!$EN$77,Nutrients!$EN$78)))))*W$8))/2000*1000000","v":16.5},{"$f":"(SUMPRODUCT(X$9:X$229,Nutrients!$EN$8:$EN$228)+(IF($A$7=Nutrients!$B$8,Nutrients!$EN$8,Nutrients!$EN$9)*X$7)+(((IF($A$8=Nutrients!$B$79,Nutrients!$EN$79,(IF($A$8=Nutrients!$B$77,Nutrients!$EN$77,Nutrients!$EN$78)))))*X$8))/2000*1000000","v":16.5},{"$f":"(SUMPRODUCT(Y$9:Y$229,Nutrients!$EN$8:$EN$228)+(IF($A$7=Nutrients!$B$8,Nutrients!$EN$8,Nutrients!$EN$9)*Y$7)+(((IF($A$8=Nutrients!$B$79,Nutrients!$EN$79,(IF($A$8=Nutrients!$B$77,Nutrients!$EN$77,Nutrients!$EN$78)))))*Y$8))/2000*1000000","v":13.749999999999998},{"$f":"(SUMPRODUCT(Z$9:Z$229,Nutrients!$EN$8:$EN$228)+(IF($A$7=Nutrients!$B$8,Nutrients!$EN$8,Nutrients!$EN$9)*Z$7)+(((IF($A$8=Nutrients!$B$79,Nutrients!$EN$79,(IF($A$8=Nutrients!$B$77,Nutrients!$EN$77,Nutrients!$EN$78)))))*Z$8))/2000*1000000","v":11},{"$f":"(SUMPRODUCT(AA$9:AA$229,Nutrients!$EN$8:$EN$228)+(IF($A$7=Nutrients!$B$8,Nutrients!$EN$8,Nutrients!$EN$9)*AA$7)+(((IF($A$8=Nutrients!$B$79,Nutrients!$EN$79,(IF($A$8=Nutrients!$B$77,Nutrients!$EN$77,Nutrients!$EN$78)))))*AA$8))/2000*1000000","v":8.25},{"$f":"(SUMPRODUCT(AB$9:AB$229,Nutrients!$EN$8:$EN$228)+(IF($A$7=Nutrients!$B$8,Nutrients!$EN$8,Nutrients!$EN$9)*AB$7)+(((IF($A$8=Nutrients!$B$79,Nutrients!$EN$79,(IF($A$8=Nutrients!$B$77,Nutrients!$EN$77,Nutrients!$EN$78)))))*AB$8))/2000*1000000","v":8.25},null,{"$f":"(SUMPRODUCT(AD$9:AD$229,Nutrients!$EN$8:$EN$228)+(IF($A$7=Nutrients!$B$8,Nutrients!$EN$8,Nutrients!$EN$9)*AD$7)+(((IF($A$8=Nutrients!$B$79,Nutrients!$EN$79,(IF($A$8=Nutrients!$B$77,Nutrients!$EN$77,Nutrients!$EN$78)))))*AD$8))/2000*1000000","v":16.5},{"$f":"(SUMPRODUCT(AE$9:AE$229,Nutrients!$EN$8:$EN$228)+(IF($A$7=Nutrients!$B$8,Nutrients!$EN$8,Nutrients!$EN$9)*AE$7)+(((IF($A$8=Nutrients!$B$79,Nutrients!$EN$79,(IF($A$8=Nutrients!$B$77,Nutrients!$EN$77,Nutrients!$EN$78)))))*AE$8))/2000*1000000","v":16.5},{"$f":"(SUMPRODUCT(AF$9:AF$229,Nutrients!$EN$8:$EN$228)+(IF($A$7=Nutrients!$B$8,Nutrients!$EN$8,Nutrients!$EN$9)*AF$7)+(((IF($A$8=Nutrients!$B$79,Nutrients!$EN$79,(IF($A$8=Nutrients!$B$77,Nutrients!$EN$77,Nutrients!$EN$78)))))*AF$8))/2000*1000000","v":13.749999999999998},{"$f":"(SUMPRODUCT(AG$9:AG$229,Nutrients!$EN$8:$EN$228)+(IF($A$7=Nutrients!$B$8,Nutrients!$EN$8,Nutrients!$EN$9)*AG$7)+(((IF($A$8=Nutrients!$B$79,Nutrients!$EN$79,(IF($A$8=Nutrients!$B$77,Nutrients!$EN$77,Nutrients!$EN$78)))))*AG$8))/2000*1000000","v":11},{"$f":"(SUMPRODUCT(AH$9:AH$229,Nutrients!$EN$8:$EN$228)+(IF($A$7=Nutrients!$B$8,Nutrients!$EN$8,Nutrients!$EN$9)*AH$7)+(((IF($A$8=Nutrients!$B$79,Nutrients!$EN$79,(IF($A$8=Nutrients!$B$77,Nutrients!$EN$77,Nutrients!$EN$78)))))*AH$8))/2000*1000000","v":8.25},{"$f":"(SUMPRODUCT(AI$9:AI$229,Nutrients!$EN$8:$EN$228)+(IF($A$7=Nutrients!$B$8,Nutrients!$EN$8,Nutrients!$EN$9)*AI$7)+(((IF($A$8=Nutrients!$B$79,Nutrients!$EN$79,(IF($A$8=Nutrients!$B$77,Nutrients!$EN$77,Nutrients!$EN$78)))))*AI$8))/2000*1000000","v":8.25},null,{"$f":"(SUMPRODUCT(AK$9:AK$229,Nutrients!$EN$8:$EN$228)+(IF($A$7=Nutrients!$B$8,Nutrients!$EN$8,Nutrients!$EN$9)*AK$7)+(((IF($A$8=Nutrients!$B$79,Nutrients!$EN$79,(IF($A$8=Nutrients!$B$77,Nutrients!$EN$77,Nutrients!$EN$78)))))*AK$8))/2000*1000000","v":16.5},{"$f":"(SUMPRODUCT(AL$9:AL$229,Nutrients!$EN$8:$EN$228)+(IF($A$7=Nutrients!$B$8,Nutrients!$EN$8,Nutrients!$EN$9)*AL$7)+(((IF($A$8=Nutrients!$B$79,Nutrients!$EN$79,(IF($A$8=Nutrients!$B$77,Nutrients!$EN$77,Nutrients!$EN$78)))))*AL$8))/2000*1000000","v":16.5},{"$f":"(SUMPRODUCT(AM$9:AM$229,Nutrients!$EN$8:$EN$228)+(IF($A$7=Nutrients!$B$8,Nutrients!$EN$8,Nutrients!$EN$9)*AM$7)+(((IF($A$8=Nutrients!$B$79,Nutrients!$EN$79,(IF($A$8=Nutrients!$B$77,Nutrients!$EN$77,Nutrients!$EN$78)))))*AM$8))/2000*1000000","v":13.749999999999998},{"$f":"(SUMPRODUCT(AN$9:AN$229,Nutrients!$EN$8:$EN$228)+(IF($A$7=Nutrients!$B$8,Nutrients!$EN$8,Nutrients!$EN$9)*AN$7)+(((IF($A$8=Nutrients!$B$79,Nutrients!$EN$79,(IF($A$8=Nutrients!$B$77,Nutrients!$EN$77,Nutrients!$EN$78)))))*AN$8))/2000*1000000","v":11},{"$f":"(SUMPRODUCT(AO$9:AO$229,Nutrients!$EN$8:$EN$228)+(IF($A$7=Nutrients!$B$8,Nutrients!$EN$8,Nutrients!$EN$9)*AO$7)+(((IF($A$8=Nutrients!$B$79,Nutrients!$EN$79,(IF($A$8=Nutrients!$B$77,Nutrients!$EN$77,Nutrients!$EN$78)))))*AO$8))/2000*1000000","v":8.25},{"$f":"(SUMPRODUCT(AP$9:AP$229,Nutrients!$EN$8:$EN$228)+(IF($A$7=Nutrients!$B$8,Nutrients!$EN$8,Nutrients!$EN$9)*AP$7)+(((IF($A$8=Nutrients!$B$79,Nutrients!$EN$79,(IF($A$8=Nutrients!$B$77,Nutrients!$EN$77,Nutrients!$EN$78)))))*AP$8))/2000*1000000","v":8.25},null,{"$f":"(SUMPRODUCT(AR$9:AR$229,Nutrients!$EN$8:$EN$228)+(IF($A$7=Nutrients!$B$8,Nutrients!$EN$8,Nutrients!$EN$9)*AR$7)+(((IF($A$8=Nutrients!$B$79,Nutrients!$EN$79,(IF($A$8=Nutrients!$B$77,Nutrients!$EN$77,Nutrients!$EN$78)))))*AR$8))/2000*1000000","v":16.5},{"$f":"(SUMPRODUCT(AS$9:AS$229,Nutrients!$EN$8:$EN$228)+(IF($A$7=Nutrients!$B$8,Nutrients!$EN$8,Nutrients!$EN$9)*AS$7)+(((IF($A$8=Nutrients!$B$79,Nutrients!$EN$79,(IF($A$8=Nutrients!$B$77,Nutrients!$EN$77,Nutrients!$EN$78)))))*AS$8))/2000*1000000","v":16.5},{"$f":"(SUMPRODUCT(AT$9:AT$229,Nutrients!$EN$8:$EN$228)+(IF($A$7=Nutrients!$B$8,Nutrients!$EN$8,Nutrients!$EN$9)*AT$7)+(((IF($A$8=Nutrients!$B$79,Nutrients!$EN$79,(IF($A$8=Nutrients!$B$77,Nutrients!$EN$77,Nutrients!$EN$78)))))*AT$8))/2000*1000000","v":13.749999999999998},{"$f":"(SUMPRODUCT(AU$9:AU$229,Nutrients!$EN$8:$EN$228)+(IF($A$7=Nutrients!$B$8,Nutrients!$EN$8,Nutrients!$EN$9)*AU$7)+(((IF($A$8=Nutrients!$B$79,Nutrients!$EN$79,(IF($A$8=Nutrients!$B$77,Nutrients!$EN$77,Nutrients!$EN$78)))))*AU$8))/2000*1000000","v":11},{"$f":"(SUMPRODUCT(AV$9:AV$229,Nutrients!$EN$8:$EN$228)+(IF($A$7=Nutrients!$B$8,Nutrients!$EN$8,Nutrients!$EN$9)*AV$7)+(((IF($A$8=Nutrients!$B$79,Nutrients!$EN$79,(IF($A$8=Nutrients!$B$77,Nutrients!$EN$77,Nutrients!$EN$78)))))*AV$8))/2000*1000000","v":8.25},{"$f":"(SUMPRODUCT(AW$9:AW$229,Nutrients!$EN$8:$EN$228)+(IF($A$7=Nutrients!$B$8,Nutrients!$EN$8,Nutrients!$EN$9)*AW$7)+(((IF($A$8=Nutrients!$B$79,Nutrients!$EN$79,(IF($A$8=Nutrients!$B$77,Nutrients!$EN$77,Nutrients!$EN$78)))))*AW$8))/2000*1000000","v":8.25}]
["  Iodine added, ppm",{"$f":"(SUMPRODUCT(B$9:B$229,Nutrients!$EO$8:$EO$228)+(IF($A$7=Nutrients!$B$8,Nutrients!$EO$8,Nutrients!$EO$9)*B$7)+(((IF($A$8=Nutrients!$B$79,Nutrients!$EO$79,(IF($A$8=Nutrients!$B$77,Nutrients!$EO$77,Nutrients!$EO$78)))))*B$8))/2000*1000000","v":0.29699999999999999},{"$f":"(SUMPRODUCT(C$9:C$229,Nutrients!$EO$8:$EO$228)+(IF($A$7=Nutrients!$B$8,Nutrients!$EO$8,Nutrients!$EO$9)*C$7)+(((IF($A$8=Nutrients!$B$79,Nutrients!$EO$79,(IF($A$8=Nutrients!$B$77,Nutrients!$EO$77,Nutrients!$EO$78)))))*C$8))/2000*1000000","v":0.29699999999999999},{"$f":"(SUMPRODUCT(D$9:D$229,Nutrients!$EO$8:$EO$228)+(IF($A$7=Nutrients!$B$8,Nutrients!$EO$8,Nutrients!$EO$9)*D$7)+(((IF($A$8=Nutrients!$B$79,Nutrients!$EO$79,(IF($A$8=Nutrients!$B$77,Nutrients!$EO$77,Nutrients!$EO$78)))))*D$8))/2000*1000000","v":0.24750000000000003},{"$f":"(SUMPRODUCT(E$9:E$229,Nutrients!$EO$8:$EO$228)+(IF($A$7=Nutrients!$B$8,Nutrients!$EO$8,Nutrients!$EO$9)*E$7)+(((IF($A$8=Nutrients!$B$79,Nutrients!$EO$79,(IF($A$8=Nutrients!$B$77,Nutrients!$EO$77,Nutrients!$EO$78)))))*E$8))/2000*1000000","v":0.19800000000000001},{"$f":"(SUMPRODUCT(F$9:F$229,Nutrients!$EO$8:$EO$228)+(IF($A$7=Nutrients!$B$8,Nutrients!$EO$8,Nutrients!$EO$9)*F$7)+(((IF($A$8=Nutrients!$B$79,Nutrients!$EO$79,(IF($A$8=Nutrients!$B$77,Nutrients!$EO$77,Nutrients!$EO$78)))))*F$8))/2000*1000000","v":0.14849999999999999},{"$f":"(SUMPRODUCT(G$9:G$229,Nutrients!$EO$8:$EO$228)+(IF($A$7=Nutrients!$B$8,Nutrients!$EO$8,Nutrients!$EO$9)*G$7)+(((IF($A$8=Nutrients!$B$79,Nutrients!$EO$79,(IF($A$8=Nutrients!$B$77,Nutrients!$EO$77,Nutrients!$EO$78)))))*G$8))/2000*1000000","v":0.14849999999999999},null,{"$f":"(SUMPRODUCT(I$9:I$229,Nutrients!$EO$8:$EO$228)+(IF($A$7=Nutrients!$B$8,Nutrients!$EO$8,Nutrients!$EO$9)*I$7)+(((IF($A$8=Nutrients!$B$79,Nutrients!$EO$79,(IF($A$8=Nutrients!$B$77,Nutrients!$EO$77,Nutrients!$EO$78)))))*I$8))/2000*1000000","v":0.29699999999999999},{"$f":"(SUMPRODUCT(J$9:J$229,Nutrients!$EO$8:$EO$228)+(IF($A$7=Nutrients!$B$8,Nutrients!$EO$8,Nutrients!$EO$9)*J$7)+(((IF($A$8=Nutrients!$B$79,Nutrients!$EO$79,(IF($A$8=Nutrients!$B$77,Nutrients!$EO$77,Nutrients!$EO$78)))))*J$8))/2000*1000000","v":0.29699999999999999},{"$f":"(SUMPRODUCT(K$9:K$229,Nutrients!$EO$8:$EO$228)+(IF($A$7=Nutrients!$B$8,Nutrients!$EO$8,Nutrients!$EO$9)*K$7)+(((IF($A$8=Nutrients!$B$79,Nutrients!$EO$79,(IF($A$8=Nutrients!$B$77,Nutrients!$EO$77,Nutrients!$EO$78)))))*K$8))/2000*1000000","v":0.24750000000000003},{"$f":"(SUMPRODUCT(L$9:L$229,Nutrients!$EO$8:$EO$228)+(IF($A$7=Nutrients!$B$8,Nutrients!$EO$8,Nutrients!$EO$9)*L$7)+(((IF($A$8=Nutrients!$B$79,Nutrients!$EO$79,(IF($A$8=Nutrients!$B$77,Nutrients!$EO$77,Nutrients!$EO$78)))))*L$8))/2000*1000000","v":0.19800000000000001},{"$f":"(SUMPRODUCT(M$9:M$229,Nutrients!$EO$8:$EO$228)+(IF($A$7=Nutrients!$B$8,Nutrients!$EO$8,Nutrients!$EO$9)*M$7)+(((IF($A$8=Nutrients!$B$79,Nutrients!$EO$79,(IF($A$8=Nutrients!$B$77,Nutrients!$EO$77,Nutrients!$EO$78)))))*M$8))/2000*1000000","v":0.14849999999999999},{"$f":"(SUMPRODUCT(N$9:N$229,Nutrients!$EO$8:$EO$228)+(IF($A$7=Nutrients!$B$8,Nutrients!$EO$8,Nutrients!$EO$9)*N$7)+(((IF($A$8=Nutrients!$B$79,Nutrients!$EO$79,(IF($A$8=Nutrients!$B$77,Nutrients!$EO$77,Nutrients!$EO$78)))))*N$8))/2000*1000000","v":0.14849999999999999},null,{"$f":"(SUMPRODUCT(P$9:P$229,Nutrients!$EO$8:$EO$228)+(IF($A$7=Nutrients!$B$8,Nutrients!$EO$8,Nutrients!$EO$9)*P$7)+(((IF($A$8=Nutrients!$B$79,Nutrients!$EO$79,(IF($A$8=Nutrients!$B$77,Nutrients!$EO$77,Nutrients!$EO$78)))))*P$8))/2000*1000000","v":0.29699999999999999},{"$f":"(SUMPRODUCT(Q$9:Q$229,Nutrients!$EO$8:$EO$228)+(IF($A$7=Nutrients!$B$8,Nutrients!$EO$8,Nutrients!$EO$9)*Q$7)+(((IF($A$8=Nutrients!$B$79,Nutrients!$EO$79,(IF($A$8=Nutrients!$B$77,Nutrients!$EO$77,Nutrients!$EO$78)))))*Q$8))/2000*1000000","v":0.29699999999999999},{"$f":"(SUMPRODUCT(R$9:R$229,Nutrients!$EO$8:$EO$228)+(IF($A$7=Nutrients!$B$8,Nutrients!$EO$8,Nutrients!$EO$9)*R$7)+(((IF($A$8=Nutrients!$B$79,Nutrients!$EO$79,(IF($A$8=Nutrients!$B$77,Nutrients!$EO$77,Nutrients!$EO$78)))))*R$8))/2000*1000000","v":0.24750000000000003},{"$f":"(SUMPRODUCT(S$9:S$229,Nutrients!$EO$8:$EO$228)+(IF($A$7=Nutrients!$B$8,Nutrients!$EO$8,Nutrients!$EO$9)*S$7)+(((IF($A$8=Nutrients!$B$79,Nutrients!$EO$79,(IF($A$8=Nutrients!$B$77,Nutrients!$EO$77,Nutrients!$EO$78)))))*S$8))/2000*1000000","v":0.19800000000000001},{"$f":"(SUMPRODUCT(T$9:T$229,Nutrients!$EO$8:$EO$228)+(IF($A$7=Nutrients!$B$8,Nutrients!$EO$8,Nutrients!$EO$9)*T$7)+(((IF($A$8=Nutrients!$B$79,Nutrients!$EO$79,(IF($A$8=Nutrients!$B$77,Nutrients!$EO$77,Nutrients!$EO$78)))))*T$8))/2000*1000000","v":0.14849999999999999},{"$f":"(SUMPRODUCT(U$9:U$229,Nutrients!$EO$8:$EO$228)+(IF($A$7=Nutrients!$B$8,Nutrients!$EO$8,Nutrients!$EO$9)*U$7)+(((IF($A$8=Nutrients!$B$79,Nutrients!$EO$79,(IF($A$8=Nutrients!$B$77,Nutrients!$EO$77,Nutrients!$EO$78)))))*U$8))/2000*1000000","v":0.14849999999999999},null,{"$f":"(SUMPRODUCT(W$9:W$229,Nutrients!$EO$8:$EO$228)+(IF($A$7=Nutrients!$B$8,Nutrients!$EO$8,Nutrients!$EO$9)*W$7)+(((IF($A$8=Nutrients!$B$79,Nutrients!$EO$79,(IF($A$8=Nutrients!$B$77,Nutrients!$EO$77,Nutrients!$EO$78)))))*W$8))/2000*1000000","v":0.29699999999999999},{"$f":"(SUMPRODUCT(X$9:X$229,Nutrients!$EO$8:$EO$228)+(IF($A$7=Nutrients!$B$8,Nutrients!$EO$8,Nutrients!$EO$9)*X$7)+(((IF($A$8=Nutrients!$B$79,Nutrients!$EO$79,(IF($A$8=Nutrients!$B$77,Nutrients!$EO$77,Nutrients!$EO$78)))))*X$8))/2000*1000000","v":0.29699999999999999},{"$f":"(SUMPRODUCT(Y$9:Y$229,Nutrients!$EO$8:$EO$228)+(IF($A$7=Nutrients!$B$8,Nutrients!$EO$8,Nutrients!$EO$9)*Y$7)+(((IF($A$8=Nutrients!$B$79,Nutrients!$EO$79,(IF($A$8=Nutrients!$B$77,Nutrients!$EO$77,Nutrients!$EO$78)))))*Y$8))/2000*1000000","v":0.24750000000000003},{"$f":"(SUMPRODUCT(Z$9:Z$229,Nutrients!$EO$8:$EO$228)+(IF($A$7=Nutrients!$B$8,Nutrients!$EO$8,Nutrients!$EO$9)*Z$7)+(((IF($A$8=Nutrients!$B$79,Nutrients!$EO$79,(IF($A$8=Nutrients!$B$77,Nutrients!$EO$77,Nutrients!$EO$78)))))*Z$8))/2000*1000000","v":0.19800000000000001},{"$f":"(SUMPRODUCT(AA$9:AA$229,Nutrients!$EO$8:$EO$228)+(IF($A$7=Nutrients!$B$8,Nutrients!$EO$8,Nutrients!$EO$9)*AA$7)+(((IF($A$8=Nutrients!$B$79,Nutrients!$EO$79,(IF($A$8=Nutrients!$B$77,Nutrients!$EO$77,Nutrients!$EO$78)))))*AA$8))/2000*1000000","v":0.14849999999999999},{"$f":"(SUMPRODUCT(AB$9:AB$229,Nutrients!$EO$8:$EO$228)+(IF($A$7=Nutrients!$B$8,Nutrients!$EO$8,Nutrients!$EO$9)*AB$7)+(((IF($A$8=Nutrients!$B$79,Nutrients!$EO$79,(IF($A$8=Nutrients!$B$77,Nutrients!$EO$77,Nutrients!$EO$78)))))*AB$8))/2000*1000000","v":0.14849999999999999},null,{"$f":"(SUMPRODUCT(AD$9:AD$229,Nutrients!$EO$8:$EO$228)+(IF($A$7=Nutrients!$B$8,Nutrients!$EO$8,Nutrients!$EO$9)*AD$7)+(((IF($A$8=Nutrients!$B$79,Nutrients!$EO$79,(IF($A$8=Nutrients!$B$77,Nutrients!$EO$77,Nutrients!$EO$78)))))*AD$8))/2000*1000000","v":0.29699999999999999},{"$f":"(SUMPRODUCT(AE$9:AE$229,Nutrients!$EO$8:$EO$228)+(IF($A$7=Nutrients!$B$8,Nutrients!$EO$8,Nutrients!$EO$9)*AE$7)+(((IF($A$8=Nutrients!$B$79,Nutrients!$EO$79,(IF($A$8=Nutrients!$B$77,Nutrients!$EO$77,Nutrients!$EO$78)))))*AE$8))/2000*1000000","v":0.29699999999999999},{"$f":"(SUMPRODUCT(AF$9:AF$229,Nutrients!$EO$8:$EO$228)+(IF($A$7=Nutrients!$B$8,Nutrients!$EO$8,Nutrients!$EO$9)*AF$7)+(((IF($A$8=Nutrients!$B$79,Nutrients!$EO$79,(IF($A$8=Nutrients!$B$77,Nutrients!$EO$77,Nutrients!$EO$78)))))*AF$8))/2000*1000000","v":0.24750000000000003},{"$f":"(SUMPRODUCT(AG$9:AG$229,Nutrients!$EO$8:$EO$228)+(IF($A$7=Nutrients!$B$8,Nutrients!$EO$8,Nutrients!$EO$9)*AG$7)+(((IF($A$8=Nutrients!$B$79,Nutrients!$EO$79,(IF($A$8=Nutrients!$B$77,Nutrients!$EO$77,Nutrients!$EO$78)))))*AG$8))/2000*1000000","v":0.19800000000000001},{"$f":"(SUMPRODUCT(AH$9:AH$229,Nutrients!$EO$8:$EO$228)+(IF($A$7=Nutrients!$B$8,Nutrients!$EO$8,Nutrients!$EO$9)*AH$7)+(((IF($A$8=Nutrients!$B$79,Nutrients!$EO$79,(IF($A$8=Nutrients!$B$77,Nutrients!$EO$77,Nutrients!$EO$78)))))*AH$8))/2000*1000000","v":0.14849999999999999},{"$f":"(SUMPRODUCT(AI$9:AI$229,Nutrients!$EO$8:$EO$228)+(IF($A$7=Nutrients!$B$8,Nutrients!$EO$8,Nutrients!$EO$9)*AI$7)+(((IF($A$8=Nutrients!$B$79,Nutrients!$EO$79,(IF($A$8=Nutrients!$B$77,Nutrients!$EO$77,Nutrients!$EO$78)))))*AI$8))/2000*1000000","v":0.14849999999999999},null,{"$f":"(SUMPRODUCT(AK$9:AK$229,Nutrients!$EO$8:$EO$228)+(IF($A$7=Nutrients!$B$8,Nutrients!$EO$8,Nutrients!$EO$9)*AK$7)+(((IF($A$8=Nutrients!$B$79,Nutrients!$EO$79,(IF($A$8=Nutrients!$B$77,Nutrients!$EO$77,Nutrients!$EO$78)))))*AK$8))/2000*1000000","v":0.29699999999999999},{"$f":"(SUMPRODUCT(AL$9:AL$229,Nutrients!$EO$8:$EO$228)+(IF($A$7=Nutrients!$B$8,Nutrients!$EO$8,Nutrients!$EO$9)*AL$7)+(((IF($A$8=Nutrients!$B$79,Nutrients!$EO$79,(IF($A$8=Nutrients!$B$77,Nutrients!$EO$77,Nutrients!$EO$78)))))*AL$8))/2000*1000000","v":0.29699999999999999},{"$f":"(SUMPRODUCT(AM$9:AM$229,Nutrients!$EO$8:$EO$228)+(IF($A$7=Nutrients!$B$8,Nutrients!$EO$8,Nutrients!$EO$9)*AM$7)+(((IF($A$8=Nutrients!$B$79,Nutrients!$EO$79,(IF($A$8=Nutrients!$B$77,Nutrients!$EO$77,Nutrients!$EO$78)))))*AM$8))/2000*1000000","v":0.24750000000000003},{"$f":"(SUMPRODUCT(AN$9:AN$229,Nutrients!$EO$8:$EO$228)+(IF($A$7=Nutrients!$B$8,Nutrients!$EO$8,Nutrients!$EO$9)*AN$7)+(((IF($A$8=Nutrients!$B$79,Nutrients!$EO$79,(IF($A$8=Nutrients!$B$77,Nutrients!$EO$77,Nutrients!$EO$78)))))*AN$8))/2000*1000000","v":0.19800000000000001},{"$f":"(SUMPRODUCT(AO$9:AO$229,Nutrients!$EO$8:$EO$228)+(IF($A$7=Nutrients!$B$8,Nutrients!$EO$8,Nutrients!$EO$9)*AO$7)+(((IF($A$8=Nutrients!$B$79,Nutrients!$EO$79,(IF($A$8=Nutrients!$B$77,Nutrients!$EO$77,Nutrients!$EO$78)))))*AO$8))/2000*1000000","v":0.14849999999999999},{"$f":"(SUMPRODUCT(AP$9:AP$229,Nutrients!$EO$8:$EO$228)+(IF($A$7=Nutrients!$B$8,Nutrients!$EO$8,Nutrients!$EO$9)*AP$7)+(((IF($A$8=Nutrients!$B$79,Nutrients!$EO$79,(IF($A$8=Nutrients!$B$77,Nutrients!$EO$77,Nutrients!$EO$78)))))*AP$8))/2000*1000000","v":0.14849999999999999},null,{"$f":"(SUMPRODUCT(AR$9:AR$229,Nutrients!$EO$8:$EO$228)+(IF($A$7=Nutrients!$B$8,Nutrients!$EO$8,Nutrients!$EO$9)*AR$7)+(((IF($A$8=Nutrients!$B$79,Nutrients!$EO$79,(IF($A$8=Nutrients!$B$77,Nutrients!$EO$77,Nutrients!$EO$78)))))*AR$8))/2000*1000000","v":0.29699999999999999},{"$f":"(SUMPRODUCT(AS$9:AS$229,Nutrients!$EO$8:$EO$228)+(IF($A$7=Nutrients!$B$8,Nutrients!$EO$8,Nutrients!$EO$9)*AS$7)+(((IF($A$8=Nutrients!$B$79,Nutrients!$EO$79,(IF($A$8=Nutrients!$B$77,Nutrients!$EO$77,Nutrients!$EO$78)))))*AS$8))/2000*1000000","v":0.29699999999999999},{"$f":"(SUMPRODUCT(AT$9:AT$229,Nutrients!$EO$8:$EO$228)+(IF($A$7=Nutrients!$B$8,Nutrients!$EO$8,Nutrients!$EO$9)*AT$7)+(((IF($A$8=Nutrients!$B$79,Nutrients!$EO$79,(IF($A$8=Nutrients!$B$77,Nutrients!$EO$77,Nutrients!$EO$78)))))*AT$8))/2000*1000000","v":0.24750000000000003},{"$f":"(SUMPRODUCT(AU$9:AU$229,Nutrients!$EO$8:$EO$228)+(IF($A$7=Nutrients!$B$8,Nutrients!$EO$8,Nutrients!$EO$9)*AU$7)+(((IF($A$8=Nutrients!$B$79,Nutrients!$EO$79,(IF($A$8=Nutrients!$B$77,Nutrients!$EO$77,Nutrients!$EO$78)))))*AU$8))/2000*1000000","v":0.19800000000000001},{"$f":"(SUMPRODUCT(AV$9:AV$229,Nutrients!$EO$8:$EO$228)+(IF($A$7=Nutrients!$B$8,Nutrients!$EO$8,Nutrients!$EO$9)*AV$7)+(((IF($A$8=Nutrients!$B$79,Nutrients!$EO$79,(IF($A$8=Nutrients!$B$77,Nutrients!$EO$77,Nutrients!$EO$78)))))*AV$8))/2000*1000000","v":0.14849999999999999},{"$f":"(SUMPRODUCT(AW$9:AW$229,Nutrients!$EO$8:$EO$228)+(IF($A$7=Nutrients!$B$8,Nutrients!$EO$8,Nutrients!$EO$9)*AW$7)+(((IF($A$8=Nutrients!$B$79,Nutrients!$EO$79,(IF($A$8=Nutrients!$B$77,Nutrients!$EO$77,Nutrients!$EO$78)))))*AW$8))/2000*1000000","v":0.14849999999999999}]
["  Selenium added, ppm",{"$f":"(SUMPRODUCT(B$9:B$229,Nutrients!$EP$8:$EP$228)+(IF($A$7=Nutrients!$B$8,Nutrients!$EP$8,Nutrients!$EP$9)*B$7)+(((IF($A$8=Nutrients!$B$79,Nutrients!$EP$79,(IF($A$8=Nutrients!$B$77,Nutrients!$EP$77,Nutrients!$EP$78)))))*B$8))/2000*1000000","v":0.29699999999999999},{"$f":"(SUMPRODUCT(C$9:C$229,Nutrients!$EP$8:$EP$228)+(IF($A$7=Nutrients!$B$8,Nutrients!$EP$8,Nutrients!$EP$9)*C$7)+(((IF($A$8=Nutrients!$B$79,Nutrients!$EP$79,(IF($A$8=Nutrients!$B$77,Nutrients!$EP$77,Nutrients!$EP$78)))))*C$8))/2000*1000000","v":0.29699999999999999},{"$f":"(SUMPRODUCT(D$9:D$229,Nutrients!$EP$8:$EP$228)+(IF($A$7=Nutrients!$B$8,Nutrients!$EP$8,Nutrients!$EP$9)*D$7)+(((IF($A$8=Nutrients!$B$79,Nutrients!$EP$79,(IF($A$8=Nutrients!$B$77,Nutrients!$EP$77,Nutrients!$EP$78)))))*D$8))/2000*1000000","v":0.24750000000000003},{"$f":"(SUMPRODUCT(E$9:E$229,Nutrients!$EP$8:$EP$228)+(IF($A$7=Nutrients!$B$8,Nutrients!$EP$8,Nutrients!$EP$9)*E$7)+(((IF($A$8=Nutrients!$B$79,Nutrients!$EP$79,(IF($A$8=Nutrients!$B$77,Nutrients!$EP$77,Nutrients!$EP$78)))))*E$8))/2000*1000000","v":0.19800000000000001},{"$f":"(SUMPRODUCT(F$9:F$229,Nutrients!$EP$8:$EP$228)+(IF($A$7=Nutrients!$B$8,Nutrients!$EP$8,Nutrients!$EP$9)*F$7)+(((IF($A$8=Nutrients!$B$79,Nutrients!$EP$79,(IF($A$8=Nutrients!$B$77,Nutrients!$EP$77,Nutrients!$EP$78)))))*F$8))/2000*1000000","v":0.14849999999999999},{"$f":"(SUMPRODUCT(G$9:G$229,Nutrients!$EP$8:$EP$228)+(IF($A$7=Nutrients!$B$8,Nutrients!$EP$8,Nutrients!$EP$9)*G$7)+(((IF($A$8=Nutrients!$B$79,Nutrients!$EP$79,(IF($A$8=Nutrients!$B$77,Nutrients!$EP$77,Nutrients!$EP$78)))))*G$8))/2000*1000000","v":0.14849999999999999},null,{"$f":"(SUMPRODUCT(I$9:I$229,Nutrients!$EP$8:$EP$228)+(IF($A$7=Nutrients!$B$8,Nutrients!$EP$8,Nutrients!$EP$9)*I$7)+(((IF($A$8=Nutrients!$B$79,Nutrients!$EP$79,(IF($A$8=Nutrients!$B$77,Nutrients!$EP$77,Nutrients!$EP$78)))))*I$8))/2000*1000000","v":0.29699999999999999},{"$f":"(SUMPRODUCT(J$9:J$229,Nutrients!$EP$8:$EP$228)+(IF($A$7=Nutrients!$B$8,Nutrients!$EP$8,Nutrients!$EP$9)*J$7)+(((IF($A$8=Nutrients!$B$79,Nutrients!$EP$79,(IF($A$8=Nutrients!$B$77,Nutrients!$EP$77,Nutrients!$EP$78)))))*J$8))/2000*1000000","v":0.29699999999999999},{"$f":"(SUMPRODUCT(K$9:K$229,Nutrients!$EP$8:$EP$228)+(IF($A$7=Nutrients!$B$8,Nutrients!$EP$8,Nutrients!$EP$9)*K$7)+(((IF($A$8=Nutrients!$B$79,Nutrients!$EP$79,(IF($A$8=Nutrients!$B$77,Nutrients!$EP$77,Nutrients!$EP$78)))))*K$8))/2000*1000000","v":0.24750000000000003},{"$f":"(SUMPRODUCT(L$9:L$229,Nutrients!$EP$8:$EP$228)+(IF($A$7=Nutrients!$B$8,Nutrients!$EP$8,Nutrients!$EP$9)*L$7)+(((IF($A$8=Nutrients!$B$79,Nutrients!$EP$79,(IF($A$8=Nutrients!$B$77,Nutrients!$EP$77,Nutrients!$EP$78)))))*L$8))/2000*1000000","v":0.19800000000000001},{"$f":"(SUMPRODUCT(M$9:M$229,Nutrients!$EP$8:$EP$228)+(IF($A$7=Nutrients!$B$8,Nutrients!$EP$8,Nutrients!$EP$9)*M$7)+(((IF($A$8=Nutrients!$B$79,Nutrients!$EP$79,(IF($A$8=Nutrients!$B$77,Nutrients!$EP$77,Nutrients!$EP$78)))))*M$8))/2000*1000000","v":0.14849999999999999},{"$f":"(SUMPRODUCT(N$9:N$229,Nutrients!$EP$8:$EP$228)+(IF($A$7=Nutrients!$B$8,Nutrients!$EP$8,Nutrients!$EP$9)*N$7)+(((IF($A$8=Nutrients!$B$79,Nutrients!$EP$79,(IF($A$8=Nutrients!$B$77,Nutrients!$EP$77,Nutrients!$EP$78)))))*N$8))/2000*1000000","v":0.14849999999999999},null,{"$f":"(SUMPRODUCT(P$9:P$229,Nutrients!$EP$8:$EP$228)+(IF($A$7=Nutrients!$B$8,Nutrients!$EP$8,Nutrients!$EP$9)*P$7)+(((IF($A$8=Nutrients!$B$79,Nutrients!$EP$79,(IF($A$8=Nutrients!$B$77,Nutrients!$EP$77,Nutrients!$EP$78)))))*P$8))/2000*1000000","v":0.29699999999999999},{"$f":"(SUMPRODUCT(Q$9:Q$229,Nutrients!$EP$8:$EP$228)+(IF($A$7=Nutrients!$B$8,Nutrients!$EP$8,Nutrients!$EP$9)*Q$7)+(((IF($A$8=Nutrients!$B$79,Nutrients!$EP$79,(IF($A$8=Nutrients!$B$77,Nutrients!$EP$77,Nutrients!$EP$78)))))*Q$8))/2000*1000000","v":0.29699999999999999},{"$f":"(SUMPRODUCT(R$9:R$229,Nutrients!$EP$8:$EP$228)+(IF($A$7=Nutrients!$B$8,Nutrients!$EP$8,Nutrients!$EP$9)*R$7)+(((IF($A$8=Nutrients!$B$79,Nutrients!$EP$79,(IF($A$8=Nutrients!$B$77,Nutrients!$EP$77,Nutrients!$EP$78)))))*R$8))/2000*1000000","v":0.24750000000000003},{"$f":"(SUMPRODUCT(S$9:S$229,Nutrients!$EP$8:$EP$228)+(IF($A$7=Nutrients!$B$8,Nutrients!$EP$8,Nutrients!$EP$9)*S$7)+(((IF($A$8=Nutrients!$B$79,Nutrients!$EP$79,(IF($A$8=Nutrients!$B$77,Nutrients!$EP$77,Nutrients!$EP$78)))))*S$8))/2000*1000000","v":0.19800000000000001},{"$f":"(SUMPRODUCT(T$9:T$229,Nutrients!$EP$8:$EP$228)+(IF($A$7=Nutrients!$B$8,Nutrients!$EP$8,Nutrients!$EP$9)*T$7)+(((IF($A$8=Nutrients!$B$79,Nutrients!$EP$79,(IF($A$8=Nutrients!$B$77,Nutrients!$EP$77,Nutrients!$EP$78)))))*T$8))/2000*1000000","v":0.14849999999999999},{"$f":"(SUMPRODUCT(U$9:U$229,Nutrients!$EP$8:$EP$228)+(IF($A$7=Nutrients!$B$8,Nutrients!$EP$8,Nutrients!$EP$9)*U$7)+(((IF($A$8=Nutrients!$B$79,Nutrients!$EP$79,(IF($A$8=Nutrients!$B$77,Nutrients!$EP$77,Nutrients!$EP$78)))))*U$8))/2000*1000000","v":0.14849999999999999},null,{"$f":"(SUMPRODUCT(W$9:W$229,Nutrients!$EP$8:$EP$228)+(IF($A$7=Nutrients!$B$8,Nutrients!$EP$8,Nutrients!$EP$9)*W$7)+(((IF($A$8=Nutrients!$B$79,Nutrients!$EP$79,(IF($A$8=Nutrients!$B$77,Nutrients!$EP$77,Nutrients!$EP$78)))))*W$8))/2000*1000000","v":0.29699999999999999},{"$f":"(SUMPRODUCT(X$9:X$229,Nutrients!$EP$8:$EP$228)+(IF($A$7=Nutrients!$B$8,Nutrients!$EP$8,Nutrients!$EP$9)*X$7)+(((IF($A$8=Nutrients!$B$79,Nutrients!$EP$79,(IF($A$8=Nutrients!$B$77,Nutrients!$EP$77,Nutrients!$EP$78)))))*X$8))/2000*1000000","v":0.29699999999999999},{"$f":"(SUMPRODUCT(Y$9:Y$229,Nutrients!$EP$8:$EP$228)+(IF($A$7=Nutrients!$B$8,Nutrients!$EP$8,Nutrients!$EP$9)*Y$7)+(((IF($A$8=Nutrients!$B$79,Nutrients!$EP$79,(IF($A$8=Nutrients!$B$77,Nutrients!$EP$77,Nutrients!$EP$78)))))*Y$8))/2000*1000000","v":0.24750000000000003},{"$f":"(SUMPRODUCT(Z$9:Z$229,Nutrients!$EP$8:$EP$228)+(IF($A$7=Nutrients!$B$8,Nutrients!$EP$8,Nutrients!$EP$9)*Z$7)+(((IF($A$8=Nutrients!$B$79,Nutrients!$EP$79,(IF($A$8=Nutrients!$B$77,Nutrients!$EP$77,Nutrients!$EP$78)))))*Z$8))/2000*1000000","v":0.19800000000000001},{"$f":"(SUMPRODUCT(AA$9:AA$229,Nutrients!$EP$8:$EP$228)+(IF($A$7=Nutrients!$B$8,Nutrients!$EP$8,Nutrients!$EP$9)*AA$7)+(((IF($A$8=Nutrients!$B$79,Nutrients!$EP$79,(IF($A$8=Nutrients!$B$77,Nutrients!$EP$77,Nutrients!$EP$78)))))*AA$8))/2000*1000000","v":0.14849999999999999},{"$f":"(SUMPRODUCT(AB$9:AB$229,Nutrients!$EP$8:$EP$228)+(IF($A$7=Nutrients!$B$8,Nutrients!$EP$8,Nutrients!$EP$9)*AB$7)+(((IF($A$8=Nutrients!$B$79,Nutrients!$EP$79,(IF($A$8=Nutrients!$B$77,Nutrients!$EP$77,Nutrients!$EP$78)))))*AB$8))/2000*1000000","v":0.14849999999999999},null,{"$f":"(SUMPRODUCT(AD$9:AD$229,Nutrients!$EP$8:$EP$228)+(IF($A$7=Nutrients!$B$8,Nutrients!$EP$8,Nutrients!$EP$9)*AD$7)+(((IF($A$8=Nutrients!$B$79,Nutrients!$EP$79,(IF($A$8=Nutrients!$B$77,Nutrients!$EP$77,Nutrients!$EP$78)))))*AD$8))/2000*1000000","v":0.29699999999999999},{"$f":"(SUMPRODUCT(AE$9:AE$229,Nutrients!$EP$8:$EP$228)+(IF($A$7=Nutrients!$B$8,Nutrients!$EP$8,Nutrients!$EP$9)*AE$7)+(((IF($A$8=Nutrients!$B$79,Nutrients!$EP$79,(IF($A$8=Nutrients!$B$77,Nutrients!$EP$77,Nutrients!$EP$78)))))*AE$8))/2000*1000000","v":0.29699999999999999},{"$f":"(SUMPRODUCT(AF$9:AF$229,Nutrients!$EP$8:$EP$228)+(IF($A$7=Nutrients!$B$8,Nutrients!$EP$8,Nutrients!$EP$9)*AF$7)+(((IF($A$8=Nutrients!$B$79,Nutrients!$EP$79,(IF($A$8=Nutrients!$B$77,Nutrients!$EP$77,Nutrients!$EP$78)))))*AF$8))/2000*1000000","v":0.24750000000000003},{"$f":"(SUMPRODUCT(AG$9:AG$229,Nutrients!$EP$8:$EP$228)+(IF($A$7=Nutrients!$B$8,Nutrients!$EP$8,Nutrients!$EP$9)*AG$7)+(((IF($A$8=Nutrients!$B$79,Nutrients!$EP$79,(IF($A$8=Nutrients!$B$77,Nutrients!$EP$77,Nutrients!$EP$78)))))*AG$8))/2000*1000000","v":0.19800000000000001},{"$f":"(SUMPRODUCT(AH$9:AH$229,Nutrients!$EP$8:$EP$228)+(IF($A$7=Nutrients!$B$8,Nutrients!$EP$8,Nutrients!$EP$9)*AH$7)+(((IF($A$8=Nutrients!$B$79,Nutrients!$EP$79,(IF($A$8=Nutrients!$B$77,Nutrients!$EP$77,Nutrients!$EP$78)))))*AH$8))/2000*1000000","v":0.14849999999999999},{"$f":"(SUMPRODUCT(AI$9:AI$229,Nutrients!$EP$8:$EP$228)+(IF($A$7=Nutrients!$B$8,Nutrients!$EP$8,Nutrients!$EP$9)*AI$7)+(((IF($A$8=Nutrients!$B$79,Nutrients!$EP$79,(IF($A$8=Nutrients!$B$77,Nutrients!$EP$77,Nutrients!$EP$78)))))*AI$8))/2000*1000000","v":0.14849999999999999},null,{"$f":"(SUMPRODUCT(AK$9:AK$229,Nutrients!$EP$8:$EP$228)+(IF($A$7=Nutrients!$B$8,Nutrients!$EP$8,Nutrients!$EP$9)*AK$7)+(((IF($A$8=Nutrients!$B$79,Nutrients!$EP$79,(IF($A$8=Nutrients!$B$77,Nutrients!$EP$77,Nutrients!$EP$78)))))*AK$8))/2000*1000000","v":0.29699999999999999},{"$f":"(SUMPRODUCT(AL$9:AL$229,Nutrients!$EP$8:$EP$228)+(IF($A$7=Nutrients!$B$8,Nutrients!$EP$8,Nutrients!$EP$9)*AL$7)+(((IF($A$8=Nutrients!$B$79,Nutrients!$EP$79,(IF($A$8=Nutrients!$B$77,Nutrients!$EP$77,Nutrients!$EP$78)))))*AL$8))/2000*1000000","v":0.29699999999999999},{"$f":"(SUMPRODUCT(AM$9:AM$229,Nutrients!$EP$8:$EP$228)+(IF($A$7=Nutrients!$B$8,Nutrients!$EP$8,Nutrients!$EP$9)*AM$7)+(((IF($A$8=Nutrients!$B$79,Nutrients!$EP$79,(IF($A$8=Nutrients!$B$77,Nutrients!$EP$77,Nutrients!$EP$78)))))*AM$8))/2000*1000000","v":0.24750000000000003},{"$f":"(SUMPRODUCT(AN$9:AN$229,Nutrients!$EP$8:$EP$228)+(IF($A$7=Nutrients!$B$8,Nutrients!$EP$8,Nutrients!$EP$9)*AN$7)+(((IF($A$8=Nutrients!$B$79,Nutrients!$EP$79,(IF($A$8=Nutrients!$B$77,Nutrients!$EP$77,Nutrients!$EP$78)))))*AN$8))/2000*1000000","v":0.19800000000000001},{"$f":"(SUMPRODUCT(AO$9:AO$229,Nutrients!$EP$8:$EP$228)+(IF($A$7=Nutrients!$B$8,Nutrients!$EP$8,Nutrients!$EP$9)*AO$7)+(((IF($A$8=Nutrients!$B$79,Nutrients!$EP$79,(IF($A$8=Nutrients!$B$77,Nutrients!$EP$77,Nutrients!$EP$78)))))*AO$8))/2000*1000000","v":0.14849999999999999},{"$f":"(SUMPRODUCT(AP$9:AP$229,Nutrients!$EP$8:$EP$228)+(IF($A$7=Nutrients!$B$8,Nutrients!$EP$8,Nutrients!$EP$9)*AP$7)+(((IF($A$8=Nutrients!$B$79,Nutrients!$EP$79,(IF($A$8=Nutrients!$B$77,Nutrients!$EP$77,Nutrients!$EP$78)))))*AP$8))/2000*1000000","v":0.14849999999999999},null,{"$f":"(SUMPRODUCT(AR$9:AR$229,Nutrients!$EP$8:$EP$228)+(IF($A$7=Nutrients!$B$8,Nutrients!$EP$8,Nutrients!$EP$9)*AR$7)+(((IF($A$8=Nutrients!$B$79,Nutrients!$EP$79,(IF($A$8=Nutrients!$B$77,Nutrients!$EP$77,Nutrients!$EP$78)))))*AR$8))/2000*1000000","v":0.29699999999999999},{"$f":"(SUMPRODUCT(AS$9:AS$229,Nutrients!$EP$8:$EP$228)+(IF($A$7=Nutrients!$B$8,Nutrients!$EP$8,Nutrients!$EP$9)*AS$7)+(((IF($A$8=Nutrients!$B$79,Nutrients!$EP$79,(IF($A$8=Nutrients!$B$77,Nutrients!$EP$77,Nutrients!$EP$78)))))*AS$8))/2000*1000000","v":0.29699999999999999},{"$f":"(SUMPRODUCT(AT$9:AT$229,Nutrients!$EP$8:$EP$228)+(IF($A$7=Nutrients!$B$8,Nutrients!$EP$8,Nutrients!$EP$9)*AT$7)+(((IF($A$8=Nutrients!$B$79,Nutrients!$EP$79,(IF($A$8=Nutrients!$B$77,Nutrients!$EP$77,Nutrients!$EP$78)))))*AT$8))/2000*1000000","v":0.24750000000000003},{"$f":"(SUMPRODUCT(AU$9:AU$229,Nutrients!$EP$8:$EP$228)+(IF($A$7=Nutrients!$B$8,Nutrients!$EP$8,Nutrients!$EP$9)*AU$7)+(((IF($A$8=Nutrients!$B$79,Nutrients!$EP$79,(IF($A$8=Nutrients!$B$77,Nutrients!$EP$77,Nutrients!$EP$78)))))*AU$8))/2000*1000000","v":0.19800000000000001},{"$f":"(SUMPRODUCT(AV$9:AV$229,Nutrients!$EP$8:$EP$228)+(IF($A$7=Nutrients!$B$8,Nutrients!$EP$8,Nutrients!$EP$9)*AV$7)+(((IF($A$8=Nutrients!$B$79,Nutrients!$EP$79,(IF($A$8=Nutrients!$B$77,Nutrients!$EP$77,Nutrients!$EP$78)))))*AV$8))/2000*1000000","v":0.14849999999999999},{"$f":"(SUMPRODUCT(AW$9:AW$229,Nutrients!$EP$8:$EP$228)+(IF($A$7=Nutrients!$B$8,Nutrients!$EP$8,Nutrients!$EP$9)*AW$7)+(((IF($A$8=Nutrients!$B$79,Nutrients!$EP$79,(IF($A$8=Nutrients!$B$77,Nutrients!$EP$77,Nutrients!$EP$78)))))*AW$8))/2000*1000000","v":0.14849999999999999}]
["  Chromium added, ppb",{"$f":"(SUMPRODUCT(B$9:B$229,Nutrients!$EQ$8:$EQ$228)+(IF($A$7=Nutrients!$B$8,Nutrients!$EQ$8,Nutrients!$EQ$9)*B$7)+(((IF($A$8=Nutrients!$B$79,Nutrients!$EQ$79,(IF($A$8=Nutrients!$B$77,Nutrients!$EQ$77,Nutrients!$EQ$78)))))*B$8))/2000*1000000000","v":0},{"$f":"(SUMPRODUCT(C$9:C$229,Nutrients!$EQ$8:$EQ$228)+(IF($A$7=Nutrients!$B$8,Nutrients!$EQ$8,Nutrients!$EQ$9)*C$7)+(((IF($A$8=Nutrients!$B$79,Nutrients!$EQ$79,(IF($A$8=Nutrients!$B$77,Nutrients!$EQ$77,Nutrients!$EQ$78)))))*C$8))/2000*1000000000","v":0},{"$f":"(SUMPRODUCT(D$9:D$229,Nutrients!$EQ$8:$EQ$228)+(IF($A$7=Nutrients!$B$8,Nutrients!$EQ$8,Nutrients!$EQ$9)*D$7)+(((IF($A$8=Nutrients!$B$79,Nutrients!$EQ$79,(IF($A$8=Nutrients!$B$77,Nutrients!$EQ$77,Nutrients!$EQ$78)))))*D$8))/2000*1000000000","v":0},{"$f":"(SUMPRODUCT(E$9:E$229,Nutrients!$EQ$8:$EQ$228)+(IF($A$7=Nutrients!$B$8,Nutrients!$EQ$8,Nutrients!$EQ$9)*E$7)+(((IF($A$8=Nutrients!$B$79,Nutrients!$EQ$79,(IF($A$8=Nutrients!$B$77,Nutrients!$EQ$77,Nutrients!$EQ$78)))))*E$8))/2000*1000000000","v":0},{"$f":"(SUMPRODUCT(F$9:F$229,Nutrients!$EQ$8:$EQ$228)+(IF($A$7=Nutrients!$B$8,Nutrients!$EQ$8,Nutrients!$EQ$9)*F$7)+(((IF($A$8=Nutrients!$B$79,Nutrients!$EQ$79,(IF($A$8=Nutrients!$B$77,Nutrients!$EQ$77,Nutrients!$EQ$78)))))*F$8))/2000*1000000000","v":0},{"$f":"(SUMPRODUCT(G$9:G$229,Nutrients!$EQ$8:$EQ$228)+(IF($A$7=Nutrients!$B$8,Nutrients!$EQ$8,Nutrients!$EQ$9)*G$7)+(((IF($A$8=Nutrients!$B$79,Nutrients!$EQ$79,(IF($A$8=Nutrients!$B$77,Nutrients!$EQ$77,Nutrients!$EQ$78)))))*G$8))/2000*1000000000","v":0},null,{"$f":"(SUMPRODUCT(I$9:I$229,Nutrients!$EQ$8:$EQ$228)+(IF($A$7=Nutrients!$B$8,Nutrients!$EQ$8,Nutrients!$EQ$9)*I$7)+(((IF($A$8=Nutrients!$B$79,Nutrients!$EQ$79,(IF($A$8=Nutrients!$B$77,Nutrients!$EQ$77,Nutrients!$EQ$78)))))*I$8))/2000*1000000000","v":0},{"$f":"(SUMPRODUCT(J$9:J$229,Nutrients!$EQ$8:$EQ$228)+(IF($A$7=Nutrients!$B$8,Nutrients!$EQ$8,Nutrients!$EQ$9)*J$7)+(((IF($A$8=Nutrients!$B$79,Nutrients!$EQ$79,(IF($A$8=Nutrients!$B$77,Nutrients!$EQ$77,Nutrients!$EQ$78)))))*J$8))/2000*1000000000","v":0},{"$f":"(SUMPRODUCT(K$9:K$229,Nutrients!$EQ$8:$EQ$228)+(IF($A$7=Nutrients!$B$8,Nutrients!$EQ$8,Nutrients!$EQ$9)*K$7)+(((IF($A$8=Nutrients!$B$79,Nutrients!$EQ$79,(IF($A$8=Nutrients!$B$77,Nutrients!$EQ$77,Nutrients!$EQ$78)))))*K$8))/2000*1000000000","v":0},{"$f":"(SUMPRODUCT(L$9:L$229,Nutrients!$EQ$8:$EQ$228)+(IF($A$7=Nutrients!$B$8,Nutrients!$EQ$8,Nutrients!$EQ$9)*L$7)+(((IF($A$8=Nutrients!$B$79,Nutrients!$EQ$79,(IF($A$8=Nutrients!$B$77,Nutrients!$EQ$77,Nutrients!$EQ$78)))))*L$8))/2000*1000000000","v":0},{"$f":"(SUMPRODUCT(M$9:M$229,Nutrients!$EQ$8:$EQ$228)+(IF($A$7=Nutrients!$B$8,Nutrients!$EQ$8,Nutrients!$EQ$9)*M$7)+(((IF($A$8=Nutrients!$B$79,Nutrients!$EQ$79,(IF($A$8=Nutrients!$B$77,Nutrients!$EQ$77,Nutrients!$EQ$78)))))*M$8))/2000*1000000000","v":0},{"$f":"(SUMPRODUCT(N$9:N$229,Nutrients!$EQ$8:$EQ$228)+(IF($A$7=Nutrients!$B$8,Nutrients!$EQ$8,Nutrients!$EQ$9)*N$7)+(((IF($A$8=Nutrients!$B$79,Nutrients!$EQ$79,(IF($A$8=Nutrients!$B$77,Nutrients!$EQ$77,Nutrients!$EQ$78)))))*N$8))/2000*1000000000","v":0},null,{"$f":"(SUMPRODUCT(P$9:P$229,Nutrients!$EQ$8:$EQ$228)+(IF($A$7=Nutrients!$B$8,Nutrients!$EQ$8,Nutrients!$EQ$9)*P$7)+(((IF($A$8=Nutrients!$B$79,Nutrients!$EQ$79,(IF($A$8=Nutrients!$B$77,Nutrients!$EQ$77,Nutrients!$EQ$78)))))*P$8))/2000*1000000000","v":0},{"$f":"(SUMPRODUCT(Q$9:Q$229,Nutrients!$EQ$8:$EQ$228)+(IF($A$7=Nutrients!$B$8,Nutrients!$EQ$8,Nutrients!$EQ$9)*Q$7)+(((IF($A$8=Nutrients!$B$79,Nutrients!$EQ$79,(IF($A$8=Nutrients!$B$77,Nutrients!$EQ$77,Nutrients!$EQ$78)))))*Q$8))/2000*1000000000","v":0},{"$f":"(SUMPRODUCT(R$9:R$229,Nutrients!$EQ$8:$EQ$228)+(IF($A$7=Nutrients!$B$8,Nutrients!$EQ$8,Nutrients!$EQ$9)*R$7)+(((IF($A$8=Nutrients!$B$79,Nutrients!$EQ$79,(IF($A$8=Nutrients!$B$77,Nutrients!$EQ$77,Nutrients!$EQ$78)))))*R$8))/2000*1000000000","v":0},{"$f":"(SUMPRODUCT(S$9:S$229,Nutrients!$EQ$8:$EQ$228)+(IF($A$7=Nutrients!$B$8,Nutrients!$EQ$8,Nutrients!$EQ$9)*S$7)+(((IF($A$8=Nutrients!$B$79,Nutrients!$EQ$79,(IF($A$8=Nutrients!$B$77,Nutrients!$EQ$77,Nutrients!$EQ$78)))))*S$8))/2000*1000000000","v":0},{"$f":"(SUMPRODUCT(T$9:T$229,Nutrients!$EQ$8:$EQ$228)+(IF($A$7=Nutrients!$B$8,Nutrients!$EQ$8,Nutrients!$EQ$9)*T$7)+(((IF($A$8=Nutrients!$B$79,Nutrients!$EQ$79,(IF($A$8=Nutrients!$B$77,Nutrients!$EQ$77,Nutrients!$EQ$78)))))*T$8))/2000*1000000000","v":0},{"$f":"(SUMPRODUCT(U$9:U$229,Nutrients!$EQ$8:$EQ$228)+(IF($A$7=Nutrients!$B$8,Nutrients!$EQ$8,Nutrients!$EQ$9)*U$7)+(((IF($A$8=Nutrients!$B$79,Nutrients!$EQ$79,(IF($A$8=Nutrients!$B$77,Nutrients!$EQ$77,Nutrients!$EQ$78)))))*U$8))/2000*1000000000","v":0},null,{"$f":"(SUMPRODUCT(W$9:W$229,Nutrients!$EQ$8:$EQ$228)+(IF($A$7=Nutrients!$B$8,Nutrients!$EQ$8,Nutrients!$EQ$9)*W$7)+(((IF($A$8=Nutrients!$B$79,Nutrients!$EQ$79,(IF($A$8=Nutrients!$B$77,Nutrients!$EQ$77,Nutrients!$EQ$78)))))*W$8))/2000*1000000000","v":0},{"$f":"(SUMPRODUCT(X$9:X$229,Nutrients!$EQ$8:$EQ$228)+(IF($A$7=Nutrients!$B$8,Nutrients!$EQ$8,Nutrients!$EQ$9)*X$7)+(((IF($A$8=Nutrients!$B$79,Nutrients!$EQ$79,(IF($A$8=Nutrients!$B$77,Nutrients!$EQ$77,Nutrients!$EQ$78)))))*X$8))/2000*1000000000","v":0},{"$f":"(SUMPRODUCT(Y$9:Y$229,Nutrients!$EQ$8:$EQ$228)+(IF($A$7=Nutrients!$B$8,Nutrients!$EQ$8,Nutrients!$EQ$9)*Y$7)+(((IF($A$8=Nutrients!$B$79,Nutrients!$EQ$79,(IF($A$8=Nutrients!$B$77,Nutrients!$EQ$77,Nutrients!$EQ$78)))))*Y$8))/2000*1000000000","v":0},{"$f":"(SUMPRODUCT(Z$9:Z$229,Nutrients!$EQ$8:$EQ$228)+(IF($A$7=Nutrients!$B$8,Nutrients!$EQ$8,Nutrients!$EQ$9)*Z$7)+(((IF($A$8=Nutrients!$B$79,Nutrients!$EQ$79,(IF($A$8=Nutrients!$B$77,Nutrients!$EQ$77,Nutrients!$EQ$78)))))*Z$8))/2000*1000000000","v":0},{"$f":"(SUMPRODUCT(AA$9:AA$229,Nutrients!$EQ$8:$EQ$228)+(IF($A$7=Nutrients!$B$8,Nutrients!$EQ$8,Nutrients!$EQ$9)*AA$7)+(((IF($A$8=Nutrients!$B$79,Nutrients!$EQ$79,(IF($A$8=Nutrients!$B$77,Nutrients!$EQ$77,Nutrients!$EQ$78)))))*AA$8))/2000*1000000000","v":0},{"$f":"(SUMPRODUCT(AB$9:AB$229,Nutrients!$EQ$8:$EQ$228)+(IF($A$7=Nutrients!$B$8,Nutrients!$EQ$8,Nutrients!$EQ$9)*AB$7)+(((IF($A$8=Nutrients!$B$79,Nutrients!$EQ$79,(IF($A$8=Nutrients!$B$77,Nutrients!$EQ$77,Nutrients!$EQ$78)))))*AB$8))/2000*1000000000","v":0},null,{"$f":"(SUMPRODUCT(AD$9:AD$229,Nutrients!$EQ$8:$EQ$228)+(IF($A$7=Nutrients!$B$8,Nutrients!$EQ$8,Nutrients!$EQ$9)*AD$7)+(((IF($A$8=Nutrients!$B$79,Nutrients!$EQ$79,(IF($A$8=Nutrients!$B$77,Nutrients!$EQ$77,Nutrients!$EQ$78)))))*AD$8))/2000*1000000000","v":0},{"$f":"(SUMPRODUCT(AE$9:AE$229,Nutrients!$EQ$8:$EQ$228)+(IF($A$7=Nutrients!$B$8,Nutrients!$EQ$8,Nutrients!$EQ$9)*AE$7)+(((IF($A$8=Nutrients!$B$79,Nutrients!$EQ$79,(IF($A$8=Nutrients!$B$77,Nutrients!$EQ$77,Nutrients!$EQ$78)))))*AE$8))/2000*1000000000","v":0},{"$f":"(SUMPRODUCT(AF$9:AF$229,Nutrients!$EQ$8:$EQ$228)+(IF($A$7=Nutrients!$B$8,Nutrients!$EQ$8,Nutrients!$EQ$9)*AF$7)+(((IF($A$8=Nutrients!$B$79,Nutrients!$EQ$79,(IF($A$8=Nutrients!$B$77,Nutrients!$EQ$77,Nutrients!$EQ$78)))))*AF$8))/2000*1000000000","v":0},{"$f":"(SUMPRODUCT(AG$9:AG$229,Nutrients!$EQ$8:$EQ$228)+(IF($A$7=Nutrients!$B$8,Nutrients!$EQ$8,Nutrients!$EQ$9)*AG$7)+(((IF($A$8=Nutrients!$B$79,Nutrients!$EQ$79,(IF($A$8=Nutrients!$B$77,Nutrients!$EQ$77,Nutrients!$EQ$78)))))*AG$8))/2000*1000000000","v":0},{"$f":"(SUMPRODUCT(AH$9:AH$229,Nutrients!$EQ$8:$EQ$228)+(IF($A$7=Nutrients!$B$8,Nutrients!$EQ$8,Nutrients!$EQ$9)*AH$7)+(((IF($A$8=Nutrients!$B$79,Nutrients!$EQ$79,(IF($A$8=Nutrients!$B$77,Nutrients!$EQ$77,Nutrients!$EQ$78)))))*AH$8))/2000*1000000000","v":0},{"$f":"(SUMPRODUCT(AI$9:AI$229,Nutrients!$EQ$8:$EQ$228)+(IF($A$7=Nutrients!$B$8,Nutrients!$EQ$8,Nutrients!$EQ$9)*AI$7)+(((IF($A$8=Nutrients!$B$79,Nutrients!$EQ$79,(IF($A$8=Nutrients!$B$77,Nutrients!$EQ$77,Nutrients!$EQ$78)))))*AI$8))/2000*1000000000","v":0},null,{"$f":"(SUMPRODUCT(AK$9:AK$229,Nutrients!$EQ$8:$EQ$228)+(IF($A$7=Nutrients!$B$8,Nutrients!$EQ$8,Nutrients!$EQ$9)*AK$7)+(((IF($A$8=Nutrients!$B$79,Nutrients!$EQ$79,(IF($A$8=Nutrients!$B$77,Nutrients!$EQ$77,Nutrients!$EQ$78)))))*AK$8))/2000*1000000000","v":0},{"$f":"(SUMPRODUCT(AL$9:AL$229,Nutrients!$EQ$8:$EQ$228)+(IF($A$7=Nutrients!$B$8,Nutrients!$EQ$8,Nutrients!$EQ$9)*AL$7)+(((IF($A$8=Nutrients!$B$79,Nutrients!$EQ$79,(IF($A$8=Nutrients!$B$77,Nutrients!$EQ$77,Nutrients!$EQ$78)))))*AL$8))/2000*1000000000","v":0},{"$f":"(SUMPRODUCT(AM$9:AM$229,Nutrients!$EQ$8:$EQ$228)+(IF($A$7=Nutrients!$B$8,Nutrients!$EQ$8,Nutrients!$EQ$9)*AM$7)+(((IF($A$8=Nutrients!$B$79,Nutrients!$EQ$79,(IF($A$8=Nutrients!$B$77,Nutrients!$EQ$77,Nutrients!$EQ$78)))))*AM$8))/2000*1000000000","v":0},{"$f":"(SUMPRODUCT(AN$9:AN$229,Nutrients!$EQ$8:$EQ$228)+(IF($A$7=Nutrients!$B$8,Nutrients!$EQ$8,Nutrients!$EQ$9)*AN$7)+(((IF($A$8=Nutrients!$B$79,Nutrients!$EQ$79,(IF($A$8=Nutrients!$B$77,Nutrients!$EQ$77,Nutrients!$EQ$78)))))*AN$8))/2000*1000000000","v":0},{"$f":"(SUMPRODUCT(AO$9:AO$229,Nutrients!$EQ$8:$EQ$228)+(IF($A$7=Nutrients!$B$8,Nutrients!$EQ$8,Nutrients!$EQ$9)*AO$7)+(((IF($A$8=Nutrients!$B$79,Nutrients!$EQ$79,(IF($A$8=Nutrients!$B$77,Nutrients!$EQ$77,Nutrients!$EQ$78)))))*AO$8))/2000*1000000000","v":0},{"$f":"(SUMPRODUCT(AP$9:AP$229,Nutrients!$EQ$8:$EQ$228)+(IF($A$7=Nutrients!$B$8,Nutrients!$EQ$8,Nutrients!$EQ$9)*AP$7)+(((IF($A$8=Nutrients!$B$79,Nutrients!$EQ$79,(IF($A$8=Nutrients!$B$77,Nutrients!$EQ$77,Nutrients!$EQ$78)))))*AP$8))/2000*1000000000","v":0},null,{"$f":"(SUMPRODUCT(AR$9:AR$229,Nutrients!$EQ$8:$EQ$228)+(IF($A$7=Nutrients!$B$8,Nutrients!$EQ$8,Nutrients!$EQ$9)*AR$7)+(((IF($A$8=Nutrients!$B$79,Nutrients!$EQ$79,(IF($A$8=Nutrients!$B$77,Nutrients!$EQ$77,Nutrients!$EQ$78)))))*AR$8))/2000*1000000000","v":0},{"$f":"(SUMPRODUCT(AS$9:AS$229,Nutrients!$EQ$8:$EQ$228)+(IF($A$7=Nutrients!$B$8,Nutrients!$EQ$8,Nutrients!$EQ$9)*AS$7)+(((IF($A$8=Nutrients!$B$79,Nutrients!$EQ$79,(IF($A$8=Nutrients!$B$77,Nutrients!$EQ$77,Nutrients!$EQ$78)))))*AS$8))/2000*1000000000","v":0},{"$f":"(SUMPRODUCT(AT$9:AT$229,Nutrients!$EQ$8:$EQ$228)+(IF($A$7=Nutrients!$B$8,Nutrients!$EQ$8,Nutrients!$EQ$9)*AT$7)+(((IF($A$8=Nutrients!$B$79,Nutrients!$EQ$79,(IF($A$8=Nutrients!$B$77,Nutrients!$EQ$77,Nutrients!$EQ$78)))))*AT$8))/2000*1000000000","v":0},{"$f":"(SUMPRODUCT(AU$9:AU$229,Nutrients!$EQ$8:$EQ$228)+(IF($A$7=Nutrients!$B$8,Nutrients!$EQ$8,Nutrients!$EQ$9)*AU$7)+(((IF($A$8=Nutrients!$B$79,Nutrients!$EQ$79,(IF($A$8=Nutrients!$B$77,Nutrients!$EQ$77,Nutrients!$EQ$78)))))*AU$8))/2000*1000000000","v":0},{"$f":"(SUMPRODUCT(AV$9:AV$229,Nutrients!$EQ$8:$EQ$228)+(IF($A$7=Nutrients!$B$8,Nutrients!$EQ$8,Nutrients!$EQ$9)*AV$7)+(((IF($A$8=Nutrients!$B$79,Nutrients!$EQ$79,(IF($A$8=Nutrients!$B$77,Nutrients!$EQ$77,Nutrients!$EQ$78)))))*AV$8))/2000*1000000000","v":0},{"$f":"(SUMPRODUCT(AW$9:AW$229,Nutrients!$EQ$8:$EQ$228)+(IF($A$7=Nutrients!$B$8,Nutrients!$EQ$8,Nutrients!$EQ$9)*AW$7)+(((IF($A$8=Nutrients!$B$79,Nutrients!$EQ$79,(IF($A$8=Nutrients!$B$77,Nutrients!$EQ$77,Nutrients!$EQ$78)))))*AW$8))/2000*1000000000","v":0}]
[]
["Vitamins (added levels)"]
["  Vit A, IU/ton",{"$f":"(SUMPRODUCT(B$9:B$229,Nutrients!$ES$8:$ES$228)+(IF($A$7=Nutrients!$B$8,Nutrients!$ES$8,Nutrients!$ES$9)*B$7)+(((IF($A$8=Nutrients!$B$79,Nutrients!$ES$79,(IF($A$8=Nutrients!$B$77,Nutrients!$ES$77,Nutrients!$ES$78)))))*B$8))","v":2250000},{"$f":"(SUMPRODUCT(C$9:C$229,Nutrients!$ES$8:$ES$228)+(IF($A$7=Nutrients!$B$8,Nutrients!$ES$8,Nutrients!$ES$9)*C$7)+(((IF($A$8=Nutrients!$B$79,Nutrients!$ES$79,(IF($A$8=Nutrients!$B$77,Nutrients!$ES$77,Nutrients!$ES$78)))))*C$8))","v":2250000},{"$f":"(SUMPRODUCT(D$9:D$229,Nutrients!$ES$8:$ES$228)+(IF($A$7=Nutrients!$B$8,Nutrients!$ES$8,Nutrients!$ES$9)*D$7)+(((IF($A$8=Nutrients!$B$79,Nutrients!$ES$79,(IF($A$8=Nutrients!$B$77,Nutrients!$ES$77,Nutrients!$ES$78)))))*D$8))","v":1875000},{"$f":"(SUMPRODUCT(E$9:E$229,Nutrients!$ES$8:$ES$228)+(IF($A$7=Nutrients!$B$8,Nutrients!$ES$8,Nutrients!$ES$9)*E$7)+(((IF($A$8=Nutrients!$B$79,Nutrients!$ES$79,(IF($A$8=Nutrients!$B$77,Nutrients!$ES$77,Nutrients!$ES$78)))))*E$8))","v":1500000},{"$f":"(SUMPRODUCT(F$9:F$229,Nutrients!$ES$8:$ES$228)+(IF($A$7=Nutrients!$B$8,Nutrients!$ES$8,Nutrients!$ES$9)*F$7)+(((IF($A$8=Nutrients!$B$79,Nutrients!$ES$79,(IF($A$8=Nutrients!$B$77,Nutrients!$ES$77,Nutrients!$ES$78)))))*F$8))","v":1125000},{"$f":"(SUMPRODUCT(G$9:G$229,Nutrients!$ES$8:$ES$228)+(IF($A$7=Nutrients!$B$8,Nutrients!$ES$8,Nutrients!$ES$9)*G$7)+(((IF($A$8=Nutrients!$B$79,Nutrients!$ES$79,(IF($A$8=Nutrients!$B$77,Nutrients!$ES$77,Nutrients!$ES$78)))))*G$8))","v":1125000},null,{"$f":"(SUMPRODUCT(I$9:I$229,Nutrients!$ES$8:$ES$228)+(IF($A$7=Nutrients!$B$8,Nutrients!$ES$8,Nutrients!$ES$9)*I$7)+(((IF($A$8=Nutrients!$B$79,Nutrients!$ES$79,(IF($A$8=Nutrients!$B$77,Nutrients!$ES$77,Nutrients!$ES$78)))))*I$8))","v":2250000},{"$f":"(SUMPRODUCT(J$9:J$229,Nutrients!$ES$8:$ES$228)+(IF($A$7=Nutrients!$B$8,Nutrients!$ES$8,Nutrients!$ES$9)*J$7)+(((IF($A$8=Nutrients!$B$79,Nutrients!$ES$79,(IF($A$8=Nutrients!$B$77,Nutrients!$ES$77,Nutrients!$ES$78)))))*J$8))","v":2250000},{"$f":"(SUMPRODUCT(K$9:K$229,Nutrients!$ES$8:$ES$228)+(IF($A$7=Nutrients!$B$8,Nutrients!$ES$8,Nutrients!$ES$9)*K$7)+(((IF($A$8=Nutrients!$B$79,Nutrients!$ES$79,(IF($A$8=Nutrients!$B$77,Nutrients!$ES$77,Nutrients!$ES$78)))))*K$8))","v":1875000},{"$f":"(SUMPRODUCT(L$9:L$229,Nutrients!$ES$8:$ES$228)+(IF($A$7=Nutrients!$B$8,Nutrients!$ES$8,Nutrients!$ES$9)*L$7)+(((IF($A$8=Nutrients!$B$79,Nutrients!$ES$79,(IF($A$8=Nutrients!$B$77,Nutrients!$ES$77,Nutrients!$ES$78)))))*L$8))","v":1500000},{"$f":"(SUMPRODUCT(M$9:M$229,Nutrients!$ES$8:$ES$228)+(IF($A$7=Nutrients!$B$8,Nutrients!$ES$8,Nutrients!$ES$9)*M$7)+(((IF($A$8=Nutrients!$B$79,Nutrients!$ES$79,(IF($A$8=Nutrients!$B$77,Nutrients!$ES$77,Nutrients!$ES$78)))))*M$8))","v":1125000},{"$f":"(SUMPRODUCT(N$9:N$229,Nutrients!$ES$8:$ES$228)+(IF($A$7=Nutrients!$B$8,Nutrients!$ES$8,Nutrients!$ES$9)*N$7)+(((IF($A$8=Nutrients!$B$79,Nutrients!$ES$79,(IF($A$8=Nutrients!$B$77,Nutrients!$ES$77,Nutrients!$ES$78)))))*N$8))","v":1125000},null,{"$f":"(SUMPRODUCT(P$9:P$229,Nutrients!$ES$8:$ES$228)+(IF($A$7=Nutrients!$B$8,Nutrients!$ES$8,Nutrients!$ES$9)*P$7)+(((IF($A$8=Nutrients!$B$79,Nutrients!$ES$79,(IF($A$8=Nutrients!$B$77,Nutrients!$ES$77,Nutrients!$ES$78)))))*P$8))","v":2250000},{"$f":"(SUMPRODUCT(Q$9:Q$229,Nutrients!$ES$8:$ES$228)+(IF($A$7=Nutrients!$B$8,Nutrients!$ES$8,Nutrients!$ES$9)*Q$7)+(((IF($A$8=Nutrients!$B$79,Nutrients!$ES$79,(IF($A$8=Nutrients!$B$77,Nutrients!$ES$77,Nutrients!$ES$78)))))*Q$8))","v":2250000},{"$f":"(SUMPRODUCT(R$9:R$229,Nutrients!$ES$8:$ES$228)+(IF($A$7=Nutrients!$B$8,Nutrients!$ES$8,Nutrients!$ES$9)*R$7)+(((IF($A$8=Nutrients!$B$79,Nutrients!$ES$79,(IF($A$8=Nutrients!$B$77,Nutrients!$ES$77,Nutrients!$ES$78)))))*R$8))","v":1875000},{"$f":"(SUMPRODUCT(S$9:S$229,Nutrients!$ES$8:$ES$228)+(IF($A$7=Nutrients!$B$8,Nutrients!$ES$8,Nutrients!$ES$9)*S$7)+(((IF($A$8=Nutrients!$B$79,Nutrients!$ES$79,(IF($A$8=Nutrients!$B$77,Nutrients!$ES$77,Nutrients!$ES$78)))))*S$8))","v":1500000},{"$f":"(SUMPRODUCT(T$9:T$229,Nutrients!$ES$8:$ES$228)+(IF($A$7=Nutrients!$B$8,Nutrients!$ES$8,Nutrients!$ES$9)*T$7)+(((IF($A$8=Nutrients!$B$79,Nutrients!$ES$79,(IF($A$8=Nutrients!$B$77,Nutrients!$ES$77,Nutrients!$ES$78)))))*T$8))","v":1125000},{"$f":"(SUMPRODUCT(U$9:U$229,Nutrients!$ES$8:$ES$228)+(IF($A$7=Nutrients!$B$8,Nutrients!$ES$8,Nutrients!$ES$9)*U$7)+(((IF($A$8=Nutrients!$B$79,Nutrients!$ES$79,(IF($A$8=Nutrients!$B$77,Nutrients!$ES$77,Nutrients!$ES$78)))))*U$8))","v":1125000},null,{"$f":"(SUMPRODUCT(W$9:W$229,Nutrients!$ES$8:$ES$228)+(IF($A$7=Nutrients!$B$8,Nutrients!$ES$8,Nutrients!$ES$9)*W$7)+(((IF($A$8=Nutrients!$B$79,Nutrients!$ES$79,(IF($A$8=Nutrients!$B$77,Nutrients!$ES$77,Nutrients!$ES$78)))))*W$8))","v":2250000},{"$f":"(SUMPRODUCT(X$9:X$229,Nutrients!$ES$8:$ES$228)+(IF($A$7=Nutrients!$B$8,Nutrients!$ES$8,Nutrients!$ES$9)*X$7)+(((IF($A$8=Nutrients!$B$79,Nutrients!$ES$79,(IF($A$8=Nutrients!$B$77,Nutrients!$ES$77,Nutrients!$ES$78)))))*X$8))","v":2250000},{"$f":"(SUMPRODUCT(Y$9:Y$229,Nutrients!$ES$8:$ES$228)+(IF($A$7=Nutrients!$B$8,Nutrients!$ES$8,Nutrients!$ES$9)*Y$7)+(((IF($A$8=Nutrients!$B$79,Nutrients!$ES$79,(IF($A$8=Nutrients!$B$77,Nutrients!$ES$77,Nutrients!$ES$78)))))*Y$8))","v":1875000},{"$f":"(SUMPRODUCT(Z$9:Z$229,Nutrients!$ES$8:$ES$228)+(IF($A$7=Nutrients!$B$8,Nutrients!$ES$8,Nutrients!$ES$9)*Z$7)+(((IF($A$8=Nutrients!$B$79,Nutrients!$ES$79,(IF($A$8=Nutrients!$B$77,Nutrients!$ES$77,Nutrients!$ES$78)))))*Z$8))","v":1500000},{"$f":"(SUMPRODUCT(AA$9:AA$229,Nutrients!$ES$8:$ES$228)+(IF($A$7=Nutrients!$B$8,Nutrients!$ES$8,Nutrients!$ES$9)*AA$7)+(((IF($A$8=Nutrients!$B$79,Nutrients!$ES$79,(IF($A$8=Nutrients!$B$77,Nutrients!$ES$77,Nutrients!$ES$78)))))*AA$8))","v":1125000},{"$f":"(SUMPRODUCT(AB$9:AB$229,Nutrients!$ES$8:$ES$228)+(IF($A$7=Nutrients!$B$8,Nutrients!$ES$8,Nutrients!$ES$9)*AB$7)+(((IF($A$8=Nutrients!$B$79,Nutrients!$ES$79,(IF($A$8=Nutrients!$B$77,Nutrients!$ES$77,Nutrients!$ES$78)))))*AB$8))","v":1125000},null,{"$f":"(SUMPRODUCT(AD$9:AD$229,Nutrients!$ES$8:$ES$228)+(IF($A$7=Nutrients!$B$8,Nutrients!$ES$8,Nutrients!$ES$9)*AD$7)+(((IF($A$8=Nutrients!$B$79,Nutrients!$ES$79,(IF($A$8=Nutrients!$B$77,Nutrients!$ES$77,Nutrients!$ES$78)))))*AD$8))","v":2250000},{"$f":"(SUMPRODUCT(AE$9:AE$229,Nutrients!$ES$8:$ES$228)+(IF($A$7=Nutrients!$B$8,Nutrients!$ES$8,Nutrients!$ES$9)*AE$7)+(((IF($A$8=Nutrients!$B$79,Nutrients!$ES$79,(IF($A$8=Nutrients!$B$77,Nutrients!$ES$77,Nutrients!$ES$78)))))*AE$8))","v":2250000},{"$f":"(SUMPRODUCT(AF$9:AF$229,Nutrients!$ES$8:$ES$228)+(IF($A$7=Nutrients!$B$8,Nutrients!$ES$8,Nutrients!$ES$9)*AF$7)+(((IF($A$8=Nutrients!$B$79,Nutrients!$ES$79,(IF($A$8=Nutrients!$B$77,Nutrients!$ES$77,Nutrients!$ES$78)))))*AF$8))","v":1875000},{"$f":"(SUMPRODUCT(AG$9:AG$229,Nutrients!$ES$8:$ES$228)+(IF($A$7=Nutrients!$B$8,Nutrients!$ES$8,Nutrients!$ES$9)*AG$7)+(((IF($A$8=Nutrients!$B$79,Nutrients!$ES$79,(IF($A$8=Nutrients!$B$77,Nutrients!$ES$77,Nutrients!$ES$78)))))*AG$8))","v":1500000},{"$f":"(SUMPRODUCT(AH$9:AH$229,Nutrients!$ES$8:$ES$228)+(IF($A$7=Nutrients!$B$8,Nutrients!$ES$8,Nutrients!$ES$9)*AH$7)+(((IF($A$8=Nutrients!$B$79,Nutrients!$ES$79,(IF($A$8=Nutrients!$B$77,Nutrients!$ES$77,Nutrients!$ES$78)))))*AH$8))","v":1125000},{"$f":"(SUMPRODUCT(AI$9:AI$229,Nutrients!$ES$8:$ES$228)+(IF($A$7=Nutrients!$B$8,Nutrients!$ES$8,Nutrients!$ES$9)*AI$7)+(((IF($A$8=Nutrients!$B$79,Nutrients!$ES$79,(IF($A$8=Nutrients!$B$77,Nutrients!$ES$77,Nutrients!$ES$78)))))*AI$8))","v":1125000},null,{"$f":"(SUMPRODUCT(AK$9:AK$229,Nutrients!$ES$8:$ES$228)+(IF($A$7=Nutrients!$B$8,Nutrients!$ES$8,Nutrients!$ES$9)*AK$7)+(((IF($A$8=Nutrients!$B$79,Nutrients!$ES$79,(IF($A$8=Nutrients!$B$77,Nutrients!$ES$77,Nutrients!$ES$78)))))*AK$8))","v":2250000},{"$f":"(SUMPRODUCT(AL$9:AL$229,Nutrients!$ES$8:$ES$228)+(IF($A$7=Nutrients!$B$8,Nutrients!$ES$8,Nutrients!$ES$9)*AL$7)+(((IF($A$8=Nutrients!$B$79,Nutrients!$ES$79,(IF($A$8=Nutrients!$B$77,Nutrients!$ES$77,Nutrients!$ES$78)))))*AL$8))","v":2250000},{"$f":"(SUMPRODUCT(AM$9:AM$229,Nutrients!$ES$8:$ES$228)+(IF($A$7=Nutrients!$B$8,Nutrients!$ES$8,Nutrients!$ES$9)*AM$7)+(((IF($A$8=Nutrients!$B$79,Nutrients!$ES$79,(IF($A$8=Nutrients!$B$77,Nutrients!$ES$77,Nutrients!$ES$78)))))*AM$8))","v":1875000},{"$f":"(SUMPRODUCT(AN$9:AN$229,Nutrients!$ES$8:$ES$228)+(IF($A$7=Nutrients!$B$8,Nutrients!$ES$8,Nutrients!$ES$9)*AN$7)+(((IF($A$8=Nutrients!$B$79,Nutrients!$ES$79,(IF($A$8=Nutrients!$B$77,Nutrients!$ES$77,Nutrients!$ES$78)))))*AN$8))","v":1500000},{"$f":"(SUMPRODUCT(AO$9:AO$229,Nutrients!$ES$8:$ES$228)+(IF($A$7=Nutrients!$B$8,Nutrients!$ES$8,Nutrients!$ES$9)*AO$7)+(((IF($A$8=Nutrients!$B$79,Nutrients!$ES$79,(IF($A$8=Nutrients!$B$77,Nutrients!$ES$77,Nutrients!$ES$78)))))*AO$8))","v":1125000},{"$f":"(SUMPRODUCT(AP$9:AP$229,Nutrients!$ES$8:$ES$228)+(IF($A$7=Nutrients!$B$8,Nutrients!$ES$8,Nutrients!$ES$9)*AP$7)+(((IF($A$8=Nutrients!$B$79,Nutrients!$ES$79,(IF($A$8=Nutrients!$B$77,Nutrients!$ES$77,Nutrients!$ES$78)))))*AP$8))","v":1125000},null,{"$f":"(SUMPRODUCT(AR$9:AR$229,Nutrients!$ES$8:$ES$228)+(IF($A$7=Nutrients!$B$8,Nutrients!$ES$8,Nutrients!$ES$9)*AR$7)+(((IF($A$8=Nutrients!$B$79,Nutrients!$ES$79,(IF($A$8=Nutrients!$B$77,Nutrients!$ES$77,Nutrients!$ES$78)))))*AR$8))","v":2250000},{"$f":"(SUMPRODUCT(AS$9:AS$229,Nutrients!$ES$8:$ES$228)+(IF($A$7=Nutrients!$B$8,Nutrients!$ES$8,Nutrients!$ES$9)*AS$7)+(((IF($A$8=Nutrients!$B$79,Nutrients!$ES$79,(IF($A$8=Nutrients!$B$77,Nutrients!$ES$77,Nutrients!$ES$78)))))*AS$8))","v":2250000},{"$f":"(SUMPRODUCT(AT$9:AT$229,Nutrients!$ES$8:$ES$228)+(IF($A$7=Nutrients!$B$8,Nutrients!$ES$8,Nutrients!$ES$9)*AT$7)+(((IF($A$8=Nutrients!$B$79,Nutrients!$ES$79,(IF($A$8=Nutrients!$B$77,Nutrients!$ES$77,Nutrients!$ES$78)))))*AT$8))","v":1875000},{"$f":"(SUMPRODUCT(AU$9:AU$229,Nutrients!$ES$8:$ES$228)+(IF($A$7=Nutrients!$B$8,Nutrients!$ES$8,Nutrients!$ES$9)*AU$7)+(((IF($A$8=Nutrients!$B$79,Nutrients!$ES$79,(IF($A$8=Nutrients!$B$77,Nutrients!$ES$77,Nutrients!$ES$78)))))*AU$8))","v":1500000},{"$f":"(SUMPRODUCT(AV$9:AV$229,Nutrients!$ES$8:$ES$228)+(IF($A$7=Nutrients!$B$8,Nutrients!$ES$8,Nutrients!$ES$9)*AV$7)+(((IF($A$8=Nutrients!$B$79,Nutrients!$ES$79,(IF($A$8=Nutrients!$B$77,Nutrients!$ES$77,Nutrients!$ES$78)))))*AV$8))","v":1125000},{"$f":"(SUMPRODUCT(AW$9:AW$229,Nutrients!$ES$8:$ES$228)+(IF($A$7=Nutrients!$B$8,Nutrients!$ES$8,Nutrients!$ES$9)*AW$7)+(((IF($A$8=Nutrients!$B$79,Nutrients!$ES$79,(IF($A$8=Nutrients!$B$77,Nutrients!$ES$77,Nutrients!$ES$78)))))*AW$8))","v":1125000}]
["  Vit D, IU/ton",{"$f":"(SUMPRODUCT(B$9:B$229,Nutrients!$ET$8:$ET$228)+(IF($A$7=Nutrients!$B$8,Nutrients!$ET$8,Nutrients!$ET$9)*B$7)+(((IF($A$8=Nutrients!$B$79,Nutrients!$ET$79,(IF($A$8=Nutrients!$B$77,Nutrients!$ET$77,Nutrients!$ET$78)))))*B$8))","v":900000},{"$f":"(SUMPRODUCT(C$9:C$229,Nutrients!$ET$8:$ET$228)+(IF($A$7=Nutrients!$B$8,Nutrients!$ET$8,Nutrients!$ET$9)*C$7)+(((IF($A$8=Nutrients!$B$79,Nutrients!$ET$79,(IF($A$8=Nutrients!$B$77,Nutrients!$ET$77,Nutrients!$ET$78)))))*C$8))","v":900000},{"$f":"(SUMPRODUCT(D$9:D$229,Nutrients!$ET$8:$ET$228)+(IF($A$7=Nutrients!$B$8,Nutrients!$ET$8,Nutrients!$ET$9)*D$7)+(((IF($A$8=Nutrients!$B$79,Nutrients!$ET$79,(IF($A$8=Nutrients!$B$77,Nutrients!$ET$77,Nutrients!$ET$78)))))*D$8))","v":750000},{"$f":"(SUMPRODUCT(E$9:E$229,Nutrients!$ET$8:$ET$228)+(IF($A$7=Nutrients!$B$8,Nutrients!$ET$8,Nutrients!$ET$9)*E$7)+(((IF($A$8=Nutrients!$B$79,Nutrients!$ET$79,(IF($A$8=Nutrients!$B$77,Nutrients!$ET$77,Nutrients!$ET$78)))))*E$8))","v":600000},{"$f":"(SUMPRODUCT(F$9:F$229,Nutrients!$ET$8:$ET$228)+(IF($A$7=Nutrients!$B$8,Nutrients!$ET$8,Nutrients!$ET$9)*F$7)+(((IF($A$8=Nutrients!$B$79,Nutrients!$ET$79,(IF($A$8=Nutrients!$B$77,Nutrients!$ET$77,Nutrients!$ET$78)))))*F$8))","v":450000},{"$f":"(SUMPRODUCT(G$9:G$229,Nutrients!$ET$8:$ET$228)+(IF($A$7=Nutrients!$B$8,Nutrients!$ET$8,Nutrients!$ET$9)*G$7)+(((IF($A$8=Nutrients!$B$79,Nutrients!$ET$79,(IF($A$8=Nutrients!$B$77,Nutrients!$ET$77,Nutrients!$ET$78)))))*G$8))","v":450000},null,{"$f":"(SUMPRODUCT(I$9:I$229,Nutrients!$ET$8:$ET$228)+(IF($A$7=Nutrients!$B$8,Nutrients!$ET$8,Nutrients!$ET$9)*I$7)+(((IF($A$8=Nutrients!$B$79,Nutrients!$ET$79,(IF($A$8=Nutrients!$B$77,Nutrients!$ET$77,Nutrients!$ET$78)))))*I$8))","v":900000},{"$f":"(SUMPRODUCT(J$9:J$229,Nutrients!$ET$8:$ET$228)+(IF($A$7=Nutrients!$B$8,Nutrients!$ET$8,Nutrients!$ET$9)*J$7)+(((IF($A$8=Nutrients!$B$79,Nutrients!$ET$79,(IF($A$8=Nutrients!$B$77,Nutrients!$ET$77,Nutrients!$ET$78)))))*J$8))","v":900000},{"$f":"(SUMPRODUCT(K$9:K$229,Nutrients!$ET$8:$ET$228)+(IF($A$7=Nutrients!$B$8,Nutrients!$ET$8,Nutrients!$ET$9)*K$7)+(((IF($A$8=Nutrients!$B$79,Nutrients!$ET$79,(IF($A$8=Nutrients!$B$77,Nutrients!$ET$77,Nutrients!$ET$78)))))*K$8))","v":750000},{"$f":"(SUMPRODUCT(L$9:L$229,Nutrients!$ET$8:$ET$228)+(IF($A$7=Nutrients!$B$8,Nutrients!$ET$8,Nutrients!$ET$9)*L$7)+(((IF($A$8=Nutrients!$B$79,Nutrients!$ET$79,(IF($A$8=Nutrients!$B$77,Nutrients!$ET$77,Nutrients!$ET$78)))))*L$8))","v":600000},{"$f":"(SUMPRODUCT(M$9:M$229,Nutrients!$ET$8:$ET$228)+(IF($A$7=Nutrients!$B$8,Nutrients!$ET$8,Nutrients!$ET$9)*M$7)+(((IF($A$8=Nutrients!$B$79,Nutrients!$ET$79,(IF($A$8=Nutrients!$B$77,Nutrients!$ET$77,Nutrients!$ET$78)))))*M$8))","v":450000},{"$f":"(SUMPRODUCT(N$9:N$229,Nutrients!$ET$8:$ET$228)+(IF($A$7=Nutrients!$B$8,Nutrients!$ET$8,Nutrients!$ET$9)*N$7)+(((IF($A$8=Nutrients!$B$79,Nutrients!$ET$79,(IF($A$8=Nutrients!$B$77,Nutrients!$ET$77,Nutrients!$ET$78)))))*N$8))","v":450000},null,{"$f":"(SUMPRODUCT(P$9:P$229,Nutrients!$ET$8:$ET$228)+(IF($A$7=Nutrients!$B$8,Nutrients!$ET$8,Nutrients!$ET$9)*P$7)+(((IF($A$8=Nutrients!$B$79,Nutrients!$ET$79,(IF($A$8=Nutrients!$B$77,Nutrients!$ET$77,Nutrients!$ET$78)))))*P$8))","v":900000},{"$f":"(SUMPRODUCT(Q$9:Q$229,Nutrients!$ET$8:$ET$228)+(IF($A$7=Nutrients!$B$8,Nutrients!$ET$8,Nutrients!$ET$9)*Q$7)+(((IF($A$8=Nutrients!$B$79,Nutrients!$ET$79,(IF($A$8=Nutrients!$B$77,Nutrients!$ET$77,Nutrients!$ET$78)))))*Q$8))","v":900000},{"$f":"(SUMPRODUCT(R$9:R$229,Nutrients!$ET$8:$ET$228)+(IF($A$7=Nutrients!$B$8,Nutrients!$ET$8,Nutrients!$ET$9)*R$7)+(((IF($A$8=Nutrients!$B$79,Nutrients!$ET$79,(IF($A$8=Nutrients!$B$77,Nutrients!$ET$77,Nutrients!$ET$78)))))*R$8))","v":750000},{"$f":"(SUMPRODUCT(S$9:S$229,Nutrients!$ET$8:$ET$228)+(IF($A$7=Nutrients!$B$8,Nutrients!$ET$8,Nutrients!$ET$9)*S$7)+(((IF($A$8=Nutrients!$B$79,Nutrients!$ET$79,(IF($A$8=Nutrients!$B$77,Nutrients!$ET$77,Nutrients!$ET$78)))))*S$8))","v":600000},{"$f":"(SUMPRODUCT(T$9:T$229,Nutrients!$ET$8:$ET$228)+(IF($A$7=Nutrients!$B$8,Nutrients!$ET$8,Nutrients!$ET$9)*T$7)+(((IF($A$8=Nutrients!$B$79,Nutrients!$ET$79,(IF($A$8=Nutrients!$B$77,Nutrients!$ET$77,Nutrients!$ET$78)))))*T$8))","v":450000},{"$f":"(SUMPRODUCT(U$9:U$229,Nutrients!$ET$8:$ET$228)+(IF($A$7=Nutrients!$B$8,Nutrients!$ET$8,Nutrients!$ET$9)*U$7)+(((IF($A$8=Nutrients!$B$79,Nutrients!$ET$79,(IF($A$8=Nutrients!$B$77,Nutrients!$ET$77,Nutrients!$ET$78)))))*U$8))","v":450000},null,{"$f":"(SUMPRODUCT(W$9:W$229,Nutrients!$ET$8:$ET$228)+(IF($A$7=Nutrients!$B$8,Nutrients!$ET$8,Nutrients!$ET$9)*W$7)+(((IF($A$8=Nutrients!$B$79,Nutrients!$ET$79,(IF($A$8=Nutrients!$B$77,Nutrients!$ET$77,Nutrients!$ET$78)))))*W$8))","v":900000},{"$f":"(SUMPRODUCT(X$9:X$229,Nutrients!$ET$8:$ET$228)+(IF($A$7=Nutrients!$B$8,Nutrients!$ET$8,Nutrients!$ET$9)*X$7)+(((IF($A$8=Nutrients!$B$79,Nutrients!$ET$79,(IF($A$8=Nutrients!$B$77,Nutrients!$ET$77,Nutrients!$ET$78)))))*X$8))","v":900000},{"$f":"(SUMPRODUCT(Y$9:Y$229,Nutrients!$ET$8:$ET$228)+(IF($A$7=Nutrients!$B$8,Nutrients!$ET$8,Nutrients!$ET$9)*Y$7)+(((IF($A$8=Nutrients!$B$79,Nutrients!$ET$79,(IF($A$8=Nutrients!$B$77,Nutrients!$ET$77,Nutrients!$ET$78)))))*Y$8))","v":750000},{"$f":"(SUMPRODUCT(Z$9:Z$229,Nutrients!$ET$8:$ET$228)+(IF($A$7=Nutrients!$B$8,Nutrients!$ET$8,Nutrients!$ET$9)*Z$7)+(((IF($A$8=Nutrients!$B$79,Nutrients!$ET$79,(IF($A$8=Nutrients!$B$77,Nutrients!$ET$77,Nutrients!$ET$78)))))*Z$8))","v":600000},{"$f":"(SUMPRODUCT(AA$9:AA$229,Nutrients!$ET$8:$ET$228)+(IF($A$7=Nutrients!$B$8,Nutrients!$ET$8,Nutrients!$ET$9)*AA$7)+(((IF($A$8=Nutrients!$B$79,Nutrients!$ET$79,(IF($A$8=Nutrients!$B$77,Nutrients!$ET$77,Nutrients!$ET$78)))))*AA$8))","v":450000},{"$f":"(SUMPRODUCT(AB$9:AB$229,Nutrients!$ET$8:$ET$228)+(IF($A$7=Nutrients!$B$8,Nutrients!$ET$8,Nutrients!$ET$9)*AB$7)+(((IF($A$8=Nutrients!$B$79,Nutrients!$ET$79,(IF($A$8=Nutrients!$B$77,Nutrients!$ET$77,Nutrients!$ET$78)))))*AB$8))","v":450000},null,{"$f":"(SUMPRODUCT(AD$9:AD$229,Nutrients!$ET$8:$ET$228)+(IF($A$7=Nutrients!$B$8,Nutrients!$ET$8,Nutrients!$ET$9)*AD$7)+(((IF($A$8=Nutrients!$B$79,Nutrients!$ET$79,(IF($A$8=Nutrients!$B$77,Nutrients!$ET$77,Nutrients!$ET$78)))))*AD$8))","v":900000},{"$f":"(SUMPRODUCT(AE$9:AE$229,Nutrients!$ET$8:$ET$228)+(IF($A$7=Nutrients!$B$8,Nutrients!$ET$8,Nutrients!$ET$9)*AE$7)+(((IF($A$8=Nutrients!$B$79,Nutrients!$ET$79,(IF($A$8=Nutrients!$B$77,Nutrients!$ET$77,Nutrients!$ET$78)))))*AE$8))","v":900000},{"$f":"(SUMPRODUCT(AF$9:AF$229,Nutrients!$ET$8:$ET$228)+(IF($A$7=Nutrients!$B$8,Nutrients!$ET$8,Nutrients!$ET$9)*AF$7)+(((IF($A$8=Nutrients!$B$79,Nutrients!$ET$79,(IF($A$8=Nutrients!$B$77,Nutrients!$ET$77,Nutrients!$ET$78)))))*AF$8))","v":750000},{"$f":"(SUMPRODUCT(AG$9:AG$229,Nutrients!$ET$8:$ET$228)+(IF($A$7=Nutrients!$B$8,Nutrients!$ET$8,Nutrients!$ET$9)*AG$7)+(((IF($A$8=Nutrients!$B$79,Nutrients!$ET$79,(IF($A$8=Nutrients!$B$77,Nutrients!$ET$77,Nutrients!$ET$78)))))*AG$8))","v":600000},{"$f":"(SUMPRODUCT(AH$9:AH$229,Nutrients!$ET$8:$ET$228)+(IF($A$7=Nutrients!$B$8,Nutrients!$ET$8,Nutrients!$ET$9)*AH$7)+(((IF($A$8=Nutrients!$B$79,Nutrients!$ET$79,(IF($A$8=Nutrients!$B$77,Nutrients!$ET$77,Nutrients!$ET$78)))))*AH$8))","v":450000},{"$f":"(SUMPRODUCT(AI$9:AI$229,Nutrients!$ET$8:$ET$228)+(IF($A$7=Nutrients!$B$8,Nutrients!$ET$8,Nutrients!$ET$9)*AI$7)+(((IF($A$8=Nutrients!$B$79,Nutrients!$ET$79,(IF($A$8=Nutrients!$B$77,Nutrients!$ET$77,Nutrients!$ET$78)))))*AI$8))","v":450000},null,{"$f":"(SUMPRODUCT(AK$9:AK$229,Nutrients!$ET$8:$ET$228)+(IF($A$7=Nutrients!$B$8,Nutrients!$ET$8,Nutrients!$ET$9)*AK$7)+(((IF($A$8=Nutrients!$B$79,Nutrients!$ET$79,(IF($A$8=Nutrients!$B$77,Nutrients!$ET$77,Nutrients!$ET$78)))))*AK$8))","v":900000},{"$f":"(SUMPRODUCT(AL$9:AL$229,Nutrients!$ET$8:$ET$228)+(IF($A$7=Nutrients!$B$8,Nutrients!$ET$8,Nutrients!$ET$9)*AL$7)+(((IF($A$8=Nutrients!$B$79,Nutrients!$ET$79,(IF($A$8=Nutrients!$B$77,Nutrients!$ET$77,Nutrients!$ET$78)))))*AL$8))","v":900000},{"$f":"(SUMPRODUCT(AM$9:AM$229,Nutrients!$ET$8:$ET$228)+(IF($A$7=Nutrients!$B$8,Nutrients!$ET$8,Nutrients!$ET$9)*AM$7)+(((IF($A$8=Nutrients!$B$79,Nutrients!$ET$79,(IF($A$8=Nutrients!$B$77,Nutrients!$ET$77,Nutrients!$ET$78)))))*AM$8))","v":750000},{"$f":"(SUMPRODUCT(AN$9:AN$229,Nutrients!$ET$8:$ET$228)+(IF($A$7=Nutrients!$B$8,Nutrients!$ET$8,Nutrients!$ET$9)*AN$7)+(((IF($A$8=Nutrients!$B$79,Nutrients!$ET$79,(IF($A$8=Nutrients!$B$77,Nutrients!$ET$77,Nutrients!$ET$78)))))*AN$8))","v":600000},{"$f":"(SUMPRODUCT(AO$9:AO$229,Nutrients!$ET$8:$ET$228)+(IF($A$7=Nutrients!$B$8,Nutrients!$ET$8,Nutrients!$ET$9)*AO$7)+(((IF($A$8=Nutrients!$B$79,Nutrients!$ET$79,(IF($A$8=Nutrients!$B$77,Nutrients!$ET$77,Nutrients!$ET$78)))))*AO$8))","v":450000},{"$f":"(SUMPRODUCT(AP$9:AP$229,Nutrients!$ET$8:$ET$228)+(IF($A$7=Nutrients!$B$8,Nutrients!$ET$8,Nutrients!$ET$9)*AP$7)+(((IF($A$8=Nutrients!$B$79,Nutrients!$ET$79,(IF($A$8=Nutrients!$B$77,Nutrients!$ET$77,Nutrients!$ET$78)))))*AP$8))","v":450000},null,{"$f":"(SUMPRODUCT(AR$9:AR$229,Nutrients!$ET$8:$ET$228)+(IF($A$7=Nutrients!$B$8,Nutrients!$ET$8,Nutrients!$ET$9)*AR$7)+(((IF($A$8=Nutrients!$B$79,Nutrients!$ET$79,(IF($A$8=Nutrients!$B$77,Nutrients!$ET$77,Nutrients!$ET$78)))))*AR$8))","v":900000},{"$f":"(SUMPRODUCT(AS$9:AS$229,Nutrients!$ET$8:$ET$228)+(IF($A$7=Nutrients!$B$8,Nutrients!$ET$8,Nutrients!$ET$9)*AS$7)+(((IF($A$8=Nutrients!$B$79,Nutrients!$ET$79,(IF($A$8=Nutrients!$B$77,Nutrients!$ET$77,Nutrients!$ET$78)))))*AS$8))","v":900000},{"$f":"(SUMPRODUCT(AT$9:AT$229,Nutrients!$ET$8:$ET$228)+(IF($A$7=Nutrients!$B$8,Nutrients!$ET$8,Nutrients!$ET$9)*AT$7)+(((IF($A$8=Nutrients!$B$79,Nutrients!$ET$79,(IF($A$8=Nutrients!$B$77,Nutrients!$ET$77,Nutrients!$ET$78)))))*AT$8))","v":750000},{"$f":"(SUMPRODUCT(AU$9:AU$229,Nutrients!$ET$8:$ET$228)+(IF($A$7=Nutrients!$B$8,Nutrients!$ET$8,Nutrients!$ET$9)*AU$7)+(((IF($A$8=Nutrients!$B$79,Nutrients!$ET$79,(IF($A$8=Nutrients!$B$77,Nutrients!$ET$77,Nutrients!$ET$78)))))*AU$8))","v":600000},{"$f":"(SUMPRODUCT(AV$9:AV$229,Nutrients!$ET$8:$ET$228)+(IF($A$7=Nutrients!$B$8,Nutrients!$ET$8,Nutrients!$ET$9)*AV$7)+(((IF($A$8=Nutrients!$B$79,Nutrients!$ET$79,(IF($A$8=Nutrients!$B$77,Nutrients!$ET$77,Nutrients!$ET$78)))))*AV$8))","v":450000},{"$f":"(SUMPRODUCT(AW$9:AW$229,Nutrients!$ET$8:$ET$228)+(IF($A$7=Nutrients!$B$8,Nutrients!$ET$8,Nutrients!$ET$9)*AW$7)+(((IF($A$8=Nutrients!$B$79,Nutrients!$ET$79,(IF($A$8=Nutrients!$B$77,Nutrients!$ET$77,Nutrients!$ET$78)))))*AW$8))","v":450000}]
["  Vit E, IU/ton",{"$f":"(SUMPRODUCT(B$9:B$229,Nutrients!$EU$8:$EU$228)+(IF($A$7=Nutrients!$B$8,Nutrients!$EU$8,Nutrients!$EU$9)*B$7)+(((IF($A$8=Nutrients!$B$79,Nutrients!$EU$79,(IF($A$8=Nutrients!$B$77,Nutrients!$EU$77,Nutrients!$EU$78)))))*B$8))","v":24000},{"$f":"(SUMPRODUCT(C$9:C$229,Nutrients!$EU$8:$EU$228)+(IF($A$7=Nutrients!$B$8,Nutrients!$EU$8,Nutrients!$EU$9)*C$7)+(((IF($A$8=Nutrients!$B$79,Nutrients!$EU$79,(IF($A$8=Nutrients!$B$77,Nutrients!$EU$77,Nutrients!$EU$78)))))*C$8))","v":24000},{"$f":"(SUMPRODUCT(D$9:D$229,Nutrients!$EU$8:$EU$228)+(IF($A$7=Nutrients!$B$8,Nutrients!$EU$8,Nutrients!$EU$9)*D$7)+(((IF($A$8=Nutrients!$B$79,Nutrients!$EU$79,(IF($A$8=Nutrients!$B$77,Nutrients!$EU$77,Nutrients!$EU$78)))))*D$8))","v":20000},{"$f":"(SUMPRODUCT(E$9:E$229,Nutrients!$EU$8:$EU$228)+(IF($A$7=Nutrients!$B$8,Nutrients!$EU$8,Nutrients!$EU$9)*E$7)+(((IF($A$8=Nutrients!$B$79,Nutrients!$EU$79,(IF($A$8=Nutrients!$B$77,Nutrients!$EU$77,Nutrients!$EU$78)))))*E$8))","v":16000},{"$f":"(SUMPRODUCT(F$9:F$229,Nutrients!$EU$8:$EU$228)+(IF($A$7=Nutrients!$B$8,Nutrients!$EU$8,Nutrients!$EU$9)*F$7)+(((IF($A$8=Nutrients!$B$79,Nutrients!$EU$79,(IF($A$8=Nutrients!$B$77,Nutrients!$EU$77,Nutrients!$EU$78)))))*F$8))","v":12000},{"$f":"(SUMPRODUCT(G$9:G$229,Nutrients!$EU$8:$EU$228)+(IF($A$7=Nutrients!$B$8,Nutrients!$EU$8,Nutrients!$EU$9)*G$7)+(((IF($A$8=Nutrients!$B$79,Nutrients!$EU$79,(IF($A$8=Nutrients!$B$77,Nutrients!$EU$77,Nutrients!$EU$78)))))*G$8))","v":12000},null,{"$f":"(SUMPRODUCT(I$9:I$229,Nutrients!$EU$8:$EU$228)+(IF($A$7=Nutrients!$B$8,Nutrients!$EU$8,Nutrients!$EU$9)*I$7)+(((IF($A$8=Nutrients!$B$79,Nutrients!$EU$79,(IF($A$8=Nutrients!$B$77,Nutrients!$EU$77,Nutrients!$EU$78)))))*I$8))","v":24000},{"$f":"(SUMPRODUCT(J$9:J$229,Nutrients!$EU$8:$EU$228)+(IF($A$7=Nutrients!$B$8,Nutrients!$EU$8,Nutrients!$EU$9)*J$7)+(((IF($A$8=Nutrients!$B$79,Nutrients!$EU$79,(IF($A$8=Nutrients!$B$77,Nutrients!$EU$77,Nutrients!$EU$78)))))*J$8))","v":24000},{"$f":"(SUMPRODUCT(K$9:K$229,Nutrients!$EU$8:$EU$228)+(IF($A$7=Nutrients!$B$8,Nutrients!$EU$8,Nutrients!$EU$9)*K$7)+(((IF($A$8=Nutrients!$B$79,Nutrients!$EU$79,(IF($A$8=Nutrients!$B$77,Nutrients!$EU$77,Nutrients!$EU$78)))))*K$8))","v":20000},{"$f":"(SUMPRODUCT(L$9:L$229,Nutrients!$EU$8:$EU$228)+(IF($A$7=Nutrients!$B$8,Nutrients!$EU$8,Nutrients!$EU$9)*L$7)+(((IF($A$8=Nutrients!$B$79,Nutrients!$EU$79,(IF($A$8=Nutrients!$B$77,Nutrients!$EU$77,Nutrients!$EU$78)))))*L$8))","v":16000},{"$f":"(SUMPRODUCT(M$9:M$229,Nutrients!$EU$8:$EU$228)+(IF($A$7=Nutrients!$B$8,Nutrients!$EU$8,Nutrients!$EU$9)*M$7)+(((IF($A$8=Nutrients!$B$79,Nutrients!$EU$79,(IF($A$8=Nutrients!$B$77,Nutrients!$EU$77,Nutrients!$EU$78)))))*M$8))","v":12000},{"$f":"(SUMPRODUCT(N$9:N$229,Nutrients!$EU$8:$EU$228)+(IF($A$7=Nutrients!$B$8,Nutrients!$EU$8,Nutrients!$EU$9)*N$7)+(((IF($A$8=Nutrients!$B$79,Nutrients!$EU$79,(IF($A$8=Nutrients!$B$77,Nutrients!$EU$77,Nutrients!$EU$78)))))*N$8))","v":12000},null,{"$f":"(SUMPRODUCT(P$9:P$229,Nutrients!$EU$8:$EU$228)+(IF($A$7=Nutrients!$B$8,Nutrients!$EU$8,Nutrients!$EU$9)*P$7)+(((IF($A$8=Nutrients!$B$79,Nutrients!$EU$79,(IF($A$8=Nutrients!$B$77,Nutrients!$EU$77,Nutrients!$EU$78)))))*P$8))","v":24000},{"$f":"(SUMPRODUCT(Q$9:Q$229,Nutrients!$EU$8:$EU$228)+(IF($A$7=Nutrients!$B$8,Nutrients!$EU$8,Nutrients!$EU$9)*Q$7)+(((IF($A$8=Nutrients!$B$79,Nutrients!$EU$79,(IF($A$8=Nutrients!$B$77,Nutrients!$EU$77,Nutrients!$EU$78)))))*Q$8))","v":24000},{"$f":"(SUMPRODUCT(R$9:R$229,Nutrients!$EU$8:$EU$228)+(IF($A$7=Nutrients!$B$8,Nutrients!$EU$8,Nutrients!$EU$9)*R$7)+(((IF($A$8=Nutrients!$B$79,Nutrients!$EU$79,(IF($A$8=Nutrients!$B$77,Nutrients!$EU$77,Nutrients!$EU$78)))))*R$8))","v":20000},{"$f":"(SUMPRODUCT(S$9:S$229,Nutrients!$EU$8:$EU$228)+(IF($A$7=Nutrients!$B$8,Nutrients!$EU$8,Nutrients!$EU$9)*S$7)+(((IF($A$8=Nutrients!$B$79,Nutrients!$EU$79,(IF($A$8=Nutrients!$B$77,Nutrients!$EU$77,Nutrients!$EU$78)))))*S$8))","v":16000},{"$f":"(SUMPRODUCT(T$9:T$229,Nutrients!$EU$8:$EU$228)+(IF($A$7=Nutrients!$B$8,Nutrients!$EU$8,Nutrients!$EU$9)*T$7)+(((IF($A$8=Nutrients!$B$79,Nutrients!$EU$79,(IF($A$8=Nutrients!$B$77,Nutrients!$EU$77,Nutrients!$EU$78)))))*T$8))","v":12000},{"$f":"(SUMPRODUCT(U$9:U$229,Nutrients!$EU$8:$EU$228)+(IF($A$7=Nutrients!$B$8,Nutrients!$EU$8,Nutrients!$EU$9)*U$7)+(((IF($A$8=Nutrients!$B$79,Nutrients!$EU$79,(IF($A$8=Nutrients!$B$77,Nutrients!$EU$77,Nutrients!$EU$78)))))*U$8))","v":12000},null,{"$f":"(SUMPRODUCT(W$9:W$229,Nutrients!$EU$8:$EU$228)+(IF($A$7=Nutrients!$B$8,Nutrients!$EU$8,Nutrients!$EU$9)*W$7)+(((IF($A$8=Nutrients!$B$79,Nutrients!$EU$79,(IF($A$8=Nutrients!$B$77,Nutrients!$EU$77,Nutrients!$EU$78)))))*W$8))","v":24000},{"$f":"(SUMPRODUCT(X$9:X$229,Nutrients!$EU$8:$EU$228)+(IF($A$7=Nutrients!$B$8,Nutrients!$EU$8,Nutrients!$EU$9)*X$7)+(((IF($A$8=Nutrients!$B$79,Nutrients!$EU$79,(IF($A$8=Nutrients!$B$77,Nutrients!$EU$77,Nutrients!$EU$78)))))*X$8))","v":24000},{"$f":"(SUMPRODUCT(Y$9:Y$229,Nutrients!$EU$8:$EU$228)+(IF($A$7=Nutrients!$B$8,Nutrients!$EU$8,Nutrients!$EU$9)*Y$7)+(((IF($A$8=Nutrients!$B$79,Nutrients!$EU$79,(IF($A$8=Nutrients!$B$77,Nutrients!$EU$77,Nutrients!$EU$78)))))*Y$8))","v":20000},{"$f":"(SUMPRODUCT(Z$9:Z$229,Nutrients!$EU$8:$EU$228)+(IF($A$7=Nutrients!$B$8,Nutrients!$EU$8,Nutrients!$EU$9)*Z$7)+(((IF($A$8=Nutrients!$B$79,Nutrients!$EU$79,(IF($A$8=Nutrients!$B$77,Nutrients!$EU$77,Nutrients!$EU$78)))))*Z$8))","v":16000},{"$f":"(SUMPRODUCT(AA$9:AA$229,Nutrients!$EU$8:$EU$228)+(IF($A$7=Nutrients!$B$8,Nutrients!$EU$8,Nutrients!$EU$9)*AA$7)+(((IF($A$8=Nutrients!$B$79,Nutrients!$EU$79,(IF($A$8=Nutrients!$B$77,Nutrients!$EU$77,Nutrients!$EU$78)))))*AA$8))","v":12000},{"$f":"(SUMPRODUCT(AB$9:AB$229,Nutrients!$EU$8:$EU$228)+(IF($A$7=Nutrients!$B$8,Nutrients!$EU$8,Nutrients!$EU$9)*AB$7)+(((IF($A$8=Nutrients!$B$79,Nutrients!$EU$79,(IF($A$8=Nutrients!$B$77,Nutrients!$EU$77,Nutrients!$EU$78)))))*AB$8))","v":12000},null,{"$f":"(SUMPRODUCT(AD$9:AD$229,Nutrients!$EU$8:$EU$228)+(IF($A$7=Nutrients!$B$8,Nutrients!$EU$8,Nutrients!$EU$9)*AD$7)+(((IF($A$8=Nutrients!$B$79,Nutrients!$EU$79,(IF($A$8=Nutrients!$B$77,Nutrients!$EU$77,Nutrients!$EU$78)))))*AD$8))","v":24000},{"$f":"(SUMPRODUCT(AE$9:AE$229,Nutrients!$EU$8:$EU$228)+(IF($A$7=Nutrients!$B$8,Nutrients!$EU$8,Nutrients!$EU$9)*AE$7)+(((IF($A$8=Nutrients!$B$79,Nutrients!$EU$79,(IF($A$8=Nutrients!$B$77,Nutrients!$EU$77,Nutrients!$EU$78)))))*AE$8))","v":24000},{"$f":"(SUMPRODUCT(AF$9:AF$229,Nutrients!$EU$8:$EU$228)+(IF($A$7=Nutrients!$B$8,Nutrients!$EU$8,Nutrients!$EU$9)*AF$7)+(((IF($A$8=Nutrients!$B$79,Nutrients!$EU$79,(IF($A$8=Nutrients!$B$77,Nutrients!$EU$77,Nutrients!$EU$78)))))*AF$8))","v":20000},{"$f":"(SUMPRODUCT(AG$9:AG$229,Nutrients!$EU$8:$EU$228)+(IF($A$7=Nutrients!$B$8,Nutrients!$EU$8,Nutrients!$EU$9)*AG$7)+(((IF($A$8=Nutrients!$B$79,Nutrients!$EU$79,(IF($A$8=Nutrients!$B$77,Nutrients!$EU$77,Nutrients!$EU$78)))))*AG$8))","v":16000},{"$f":"(SUMPRODUCT(AH$9:AH$229,Nutrients!$EU$8:$EU$228)+(IF($A$7=Nutrients!$B$8,Nutrients!$EU$8,Nutrients!$EU$9)*AH$7)+(((IF($A$8=Nutrients!$B$79,Nutrients!$EU$79,(IF($A$8=Nutrients!$B$77,Nutrients!$EU$77,Nutrients!$EU$78)))))*AH$8))","v":12000},{"$f":"(SUMPRODUCT(AI$9:AI$229,Nutrients!$EU$8:$EU$228)+(IF($A$7=Nutrients!$B$8,Nutrients!$EU$8,Nutrients!$EU$9)*AI$7)+(((IF($A$8=Nutrients!$B$79,Nutrients!$EU$79,(IF($A$8=Nutrients!$B$77,Nutrients!$EU$77,Nutrients!$EU$78)))))*AI$8))","v":12000},null,{"$f":"(SUMPRODUCT(AK$9:AK$229,Nutrients!$EU$8:$EU$228)+(IF($A$7=Nutrients!$B$8,Nutrients!$EU$8,Nutrients!$EU$9)*AK$7)+(((IF($A$8=Nutrients!$B$79,Nutrients!$EU$79,(IF($A$8=Nutrients!$B$77,Nutrients!$EU$77,Nutrients!$EU$78)))))*AK$8))","v":24000},{"$f":"(SUMPRODUCT(AL$9:AL$229,Nutrients!$EU$8:$EU$228)+(IF($A$7=Nutrients!$B$8,Nutrients!$EU$8,Nutrients!$EU$9)*AL$7)+(((IF($A$8=Nutrients!$B$79,Nutrients!$EU$79,(IF($A$8=Nutrients!$B$77,Nutrients!$EU$77,Nutrients!$EU$78)))))*AL$8))","v":24000},{"$f":"(SUMPRODUCT(AM$9:AM$229,Nutrients!$EU$8:$EU$228)+(IF($A$7=Nutrients!$B$8,Nutrients!$EU$8,Nutrients!$EU$9)*AM$7)+(((IF($A$8=Nutrients!$B$79,Nutrients!$EU$79,(IF($A$8=Nutrients!$B$77,Nutrients!$EU$77,Nutrients!$EU$78)))))*AM$8))","v":20000},{"$f":"(SUMPRODUCT(AN$9:AN$229,Nutrients!$EU$8:$EU$228)+(IF($A$7=Nutrients!$B$8,Nutrients!$EU$8,Nutrients!$EU$9)*AN$7)+(((IF($A$8=Nutrients!$B$79,Nutrients!$EU$79,(IF($A$8=Nutrients!$B$77,Nutrients!$EU$77,Nutrients!$EU$78)))))*AN$8))","v":16000},{"$f":"(SUMPRODUCT(AO$9:AO$229,Nutrients!$EU$8:$EU$228)+(IF($A$7=Nutrients!$B$8,Nutrients!$EU$8,Nutrients!$EU$9)*AO$7)+(((IF($A$8=Nutrients!$B$79,Nutrients!$EU$79,(IF($A$8=Nutrients!$B$77,Nutrients!$EU$77,Nutrients!$EU$78)))))*AO$8))","v":12000},{"$f":"(SUMPRODUCT(AP$9:AP$229,Nutrients!$EU$8:$EU$228)+(IF($A$7=Nutrients!$B$8,Nutrients!$EU$8,Nutrients!$EU$9)*AP$7)+(((IF($A$8=Nutrients!$B$79,Nutrients!$EU$79,(IF($A$8=Nutrients!$B$77,Nutrients!$EU$77,Nutrients!$EU$78)))))*AP$8))","v":12000},null,{"$f":"(SUMPRODUCT(AR$9:AR$229,Nutrients!$EU$8:$EU$228)+(IF($A$7=Nutrients!$B$8,Nutrients!$EU$8,Nutrients!$EU$9)*AR$7)+(((IF($A$8=Nutrients!$B$79,Nutrients!$EU$79,(IF($A$8=Nutrients!$B$77,Nutrients!$EU$77,Nutrients!$EU$78)))))*AR$8))","v":24000},{"$f":"(SUMPRODUCT(AS$9:AS$229,Nutrients!$EU$8:$EU$228)+(IF($A$7=Nutrients!$B$8,Nutrients!$EU$8,Nutrients!$EU$9)*AS$7)+(((IF($A$8=Nutrients!$B$79,Nutrients!$EU$79,(IF($A$8=Nutrients!$B$77,Nutrients!$EU$77,Nutrients!$EU$78)))))*AS$8))","v":24000},{"$f":"(SUMPRODUCT(AT$9:AT$229,Nutrients!$EU$8:$EU$228)+(IF($A$7=Nutrients!$B$8,Nutrients!$EU$8,Nutrients!$EU$9)*AT$7)+(((IF($A$8=Nutrients!$B$79,Nutrients!$EU$79,(IF($A$8=Nutrients!$B$77,Nutrients!$EU$77,Nutrients!$EU$78)))))*AT$8))","v":20000},{"$f":"(SUMPRODUCT(AU$9:AU$229,Nutrients!$EU$8:$EU$228)+(IF($A$7=Nutrients!$B$8,Nutrients!$EU$8,Nutrients!$EU$9)*AU$7)+(((IF($A$8=Nutrients!$B$79,Nutrients!$EU$79,(IF($A$8=Nutrients!$B$77,Nutrients!$EU$77,Nutrients!$EU$78)))))*AU$8))","v":16000},{"$f":"(SUMPRODUCT(AV$9:AV$229,Nutrients!$EU$8:$EU$228)+(IF($A$7=Nutrients!$B$8,Nutrients!$EU$8,Nutrients!$EU$9)*AV$7)+(((IF($A$8=Nutrients!$B$79,Nutrients!$EU$79,(IF($A$8=Nutrients!$B$77,Nutrients!$EU$77,Nutrients!$EU$78)))))*AV$8))","v":12000},{"$f":"(SUMPRODUCT(AW$9:AW$229,Nutrients!$EU$8:$EU$228)+(IF($A$7=Nutrients!$B$8,Nutrients!$EU$8,Nutrients!$EU$9)*AW$7)+(((IF($A$8=Nutrients!$B$79,Nutrients!$EU$79,(IF($A$8=Nutrients!$B$77,Nutrients!$EU$77,Nutrients!$EU$78)))))*AW$8))","v":12000}]
["  Vit K (menadione), mg/ton",{"$f":"(SUMPRODUCT(B$9:B$229,Nutrients!$EV$8:$EV$228)+(IF($A$7=Nutrients!$B$8,Nutrients!$EV$8,Nutrients!$EV$9)*B$7)+(((IF($A$8=Nutrients!$B$79,Nutrients!$EV$79,(IF($A$8=Nutrients!$B$77,Nutrients!$EV$77,Nutrients!$EV$78)))))*B$8))","v":1800},{"$f":"(SUMPRODUCT(C$9:C$229,Nutrients!$EV$8:$EV$228)+(IF($A$7=Nutrients!$B$8,Nutrients!$EV$8,Nutrients!$EV$9)*C$7)+(((IF($A$8=Nutrients!$B$79,Nutrients!$EV$79,(IF($A$8=Nutrients!$B$77,Nutrients!$EV$77,Nutrients!$EV$78)))))*C$8))","v":1800},{"$f":"(SUMPRODUCT(D$9:D$229,Nutrients!$EV$8:$EV$228)+(IF($A$7=Nutrients!$B$8,Nutrients!$EV$8,Nutrients!$EV$9)*D$7)+(((IF($A$8=Nutrients!$B$79,Nutrients!$EV$79,(IF($A$8=Nutrients!$B$77,Nutrients!$EV$77,Nutrients!$EV$78)))))*D$8))","v":1500},{"$f":"(SUMPRODUCT(E$9:E$229,Nutrients!$EV$8:$EV$228)+(IF($A$7=Nutrients!$B$8,Nutrients!$EV$8,Nutrients!$EV$9)*E$7)+(((IF($A$8=Nutrients!$B$79,Nutrients!$EV$79,(IF($A$8=Nutrients!$B$77,Nutrients!$EV$77,Nutrients!$EV$78)))))*E$8))","v":1200},{"$f":"(SUMPRODUCT(F$9:F$229,Nutrients!$EV$8:$EV$228)+(IF($A$7=Nutrients!$B$8,Nutrients!$EV$8,Nutrients!$EV$9)*F$7)+(((IF($A$8=Nutrients!$B$79,Nutrients!$EV$79,(IF($A$8=Nutrients!$B$77,Nutrients!$EV$77,Nutrients!$EV$78)))))*F$8))","v":900},{"$f":"(SUMPRODUCT(G$9:G$229,Nutrients!$EV$8:$EV$228)+(IF($A$7=Nutrients!$B$8,Nutrients!$EV$8,Nutrients!$EV$9)*G$7)+(((IF($A$8=Nutrients!$B$79,Nutrients!$EV$79,(IF($A$8=Nutrients!$B$77,Nutrients!$EV$77,Nutrients!$EV$78)))))*G$8))","v":900},null,{"$f":"(SUMPRODUCT(I$9:I$229,Nutrients!$EV$8:$EV$228)+(IF($A$7=Nutrients!$B$8,Nutrients!$EV$8,Nutrients!$EV$9)*I$7)+(((IF($A$8=Nutrients!$B$79,Nutrients!$EV$79,(IF($A$8=Nutrients!$B$77,Nutrients!$EV$77,Nutrients!$EV$78)))))*I$8))","v":1800},{"$f":"(SUMPRODUCT(J$9:J$229,Nutrients!$EV$8:$EV$228)+(IF($A$7=Nutrients!$B$8,Nutrients!$EV$8,Nutrients!$EV$9)*J$7)+(((IF($A$8=Nutrients!$B$79,Nutrients!$EV$79,(IF($A$8=Nutrients!$B$77,Nutrients!$EV$77,Nutrients!$EV$78)))))*J$8))","v":1800},{"$f":"(SUMPRODUCT(K$9:K$229,Nutrients!$EV$8:$EV$228)+(IF($A$7=Nutrients!$B$8,Nutrients!$EV$8,Nutrients!$EV$9)*K$7)+(((IF($A$8=Nutrients!$B$79,Nutrients!$EV$79,(IF($A$8=Nutrients!$B$77,Nutrients!$EV$77,Nutrients!$EV$78)))))*K$8))","v":1500},{"$f":"(SUMPRODUCT(L$9:L$229,Nutrients!$EV$8:$EV$228)+(IF($A$7=Nutrients!$B$8,Nutrients!$EV$8,Nutrients!$EV$9)*L$7)+(((IF($A$8=Nutrients!$B$79,Nutrients!$EV$79,(IF($A$8=Nutrients!$B$77,Nutrients!$EV$77,Nutrients!$EV$78)))))*L$8))","v":1200},{"$f":"(SUMPRODUCT(M$9:M$229,Nutrients!$EV$8:$EV$228)+(IF($A$7=Nutrients!$B$8,Nutrients!$EV$8,Nutrients!$EV$9)*M$7)+(((IF($A$8=Nutrients!$B$79,Nutrients!$EV$79,(IF($A$8=Nutrients!$B$77,Nutrients!$EV$77,Nutrients!$EV$78)))))*M$8))","v":900},{"$f":"(SUMPRODUCT(N$9:N$229,Nutrients!$EV$8:$EV$228)+(IF($A$7=Nutrients!$B$8,Nutrients!$EV$8,Nutrients!$EV$9)*N$7)+(((IF($A$8=Nutrients!$B$79,Nutrients!$EV$79,(IF($A$8=Nutrients!$B$77,Nutrients!$EV$77,Nutrients!$EV$78)))))*N$8))","v":900},null,{"$f":"(SUMPRODUCT(P$9:P$229,Nutrients!$EV$8:$EV$228)+(IF($A$7=Nutrients!$B$8,Nutrients!$EV$8,Nutrients!$EV$9)*P$7)+(((IF($A$8=Nutrients!$B$79,Nutrients!$EV$79,(IF($A$8=Nutrients!$B$77,Nutrients!$EV$77,Nutrients!$EV$78)))))*P$8))","v":1800},{"$f":"(SUMPRODUCT(Q$9:Q$229,Nutrients!$EV$8:$EV$228)+(IF($A$7=Nutrients!$B$8,Nutrients!$EV$8,Nutrients!$EV$9)*Q$7)+(((IF($A$8=Nutrients!$B$79,Nutrients!$EV$79,(IF($A$8=Nutrients!$B$77,Nutrients!$EV$77,Nutrients!$EV$78)))))*Q$8))","v":1800},{"$f":"(SUMPRODUCT(R$9:R$229,Nutrients!$EV$8:$EV$228)+(IF($A$7=Nutrients!$B$8,Nutrients!$EV$8,Nutrients!$EV$9)*R$7)+(((IF($A$8=Nutrients!$B$79,Nutrients!$EV$79,(IF($A$8=Nutrients!$B$77,Nutrients!$EV$77,Nutrients!$EV$78)))))*R$8))","v":1500},{"$f":"(SUMPRODUCT(S$9:S$229,Nutrients!$EV$8:$EV$228)+(IF($A$7=Nutrients!$B$8,Nutrients!$EV$8,Nutrients!$EV$9)*S$7)+(((IF($A$8=Nutrients!$B$79,Nutrients!$EV$79,(IF($A$8=Nutrients!$B$77,Nutrients!$EV$77,Nutrients!$EV$78)))))*S$8))","v":1200},{"$f":"(SUMPRODUCT(T$9:T$229,Nutrients!$EV$8:$EV$228)+(IF($A$7=Nutrients!$B$8,Nutrients!$EV$8,Nutrients!$EV$9)*T$7)+(((IF($A$8=Nutrients!$B$79,Nutrients!$EV$79,(IF($A$8=Nutrients!$B$77,Nutrients!$EV$77,Nutrients!$EV$78)))))*T$8))","v":900},{"$f":"(SUMPRODUCT(U$9:U$229,Nutrients!$EV$8:$EV$228)+(IF($A$7=Nutrients!$B$8,Nutrients!$EV$8,Nutrients!$EV$9)*U$7)+(((IF($A$8=Nutrients!$B$79,Nutrients!$EV$79,(IF($A$8=Nutrients!$B$77,Nutrients!$EV$77,Nutrients!$EV$78)))))*U$8))","v":900},null,{"$f":"(SUMPRODUCT(W$9:W$229,Nutrients!$EV$8:$EV$228)+(IF($A$7=Nutrients!$B$8,Nutrients!$EV$8,Nutrients!$EV$9)*W$7)+(((IF($A$8=Nutrients!$B$79,Nutrients!$EV$79,(IF($A$8=Nutrients!$B$77,Nutrients!$EV$77,Nutrients!$EV$78)))))*W$8))","v":1800},{"$f":"(SUMPRODUCT(X$9:X$229,Nutrients!$EV$8:$EV$228)+(IF($A$7=Nutrients!$B$8,Nutrients!$EV$8,Nutrients!$EV$9)*X$7)+(((IF($A$8=Nutrients!$B$79,Nutrients!$EV$79,(IF($A$8=Nutrients!$B$77,Nutrients!$EV$77,Nutrients!$EV$78)))))*X$8))","v":1800},{"$f":"(SUMPRODUCT(Y$9:Y$229,Nutrients!$EV$8:$EV$228)+(IF($A$7=Nutrients!$B$8,Nutrients!$EV$8,Nutrients!$EV$9)*Y$7)+(((IF($A$8=Nutrients!$B$79,Nutrients!$EV$79,(IF($A$8=Nutrients!$B$77,Nutrients!$EV$77,Nutrients!$EV$78)))))*Y$8))","v":1500},{"$f":"(SUMPRODUCT(Z$9:Z$229,Nutrients!$EV$8:$EV$228)+(IF($A$7=Nutrients!$B$8,Nutrients!$EV$8,Nutrients!$EV$9)*Z$7)+(((IF($A$8=Nutrients!$B$79,Nutrients!$EV$79,(IF($A$8=Nutrients!$B$77,Nutrients!$EV$77,Nutrients!$EV$78)))))*Z$8))","v":1200},{"$f":"(SUMPRODUCT(AA$9:AA$229,Nutrients!$EV$8:$EV$228)+(IF($A$7=Nutrients!$B$8,Nutrients!$EV$8,Nutrients!$EV$9)*AA$7)+(((IF($A$8=Nutrients!$B$79,Nutrients!$EV$79,(IF($A$8=Nutrients!$B$77,Nutrients!$EV$77,Nutrients!$EV$78)))))*AA$8))","v":900},{"$f":"(SUMPRODUCT(AB$9:AB$229,Nutrients!$EV$8:$EV$228)+(IF($A$7=Nutrients!$B$8,Nutrients!$EV$8,Nutrients!$EV$9)*AB$7)+(((IF($A$8=Nutrients!$B$79,Nutrients!$EV$79,(IF($A$8=Nutrients!$B$77,Nutrients!$EV$77,Nutrients!$EV$78)))))*AB$8))","v":900},null,{"$f":"(SUMPRODUCT(AD$9:AD$229,Nutrients!$EV$8:$EV$228)+(IF($A$7=Nutrients!$B$8,Nutrients!$EV$8,Nutrients!$EV$9)*AD$7)+(((IF($A$8=Nutrients!$B$79,Nutrients!$EV$79,(IF($A$8=Nutrients!$B$77,Nutrients!$EV$77,Nutrients!$EV$78)))))*AD$8))","v":1800},{"$f":"(SUMPRODUCT(AE$9:AE$229,Nutrients!$EV$8:$EV$228)+(IF($A$7=Nutrients!$B$8,Nutrients!$EV$8,Nutrients!$EV$9)*AE$7)+(((IF($A$8=Nutrients!$B$79,Nutrients!$EV$79,(IF($A$8=Nutrients!$B$77,Nutrients!$EV$77,Nutrients!$EV$78)))))*AE$8))","v":1800},{"$f":"(SUMPRODUCT(AF$9:AF$229,Nutrients!$EV$8:$EV$228)+(IF($A$7=Nutrients!$B$8,Nutrients!$EV$8,Nutrients!$EV$9)*AF$7)+(((IF($A$8=Nutrients!$B$79,Nutrients!$EV$79,(IF($A$8=Nutrients!$B$77,Nutrients!$EV$77,Nutrients!$EV$78)))))*AF$8))","v":1500},{"$f":"(SUMPRODUCT(AG$9:AG$229,Nutrients!$EV$8:$EV$228)+(IF($A$7=Nutrients!$B$8,Nutrients!$EV$8,Nutrients!$EV$9)*AG$7)+(((IF($A$8=Nutrients!$B$79,Nutrients!$EV$79,(IF($A$8=Nutrients!$B$77,Nutrients!$EV$77,Nutrients!$EV$78)))))*AG$8))","v":1200},{"$f":"(SUMPRODUCT(AH$9:AH$229,Nutrients!$EV$8:$EV$228)+(IF($A$7=Nutrients!$B$8,Nutrients!$EV$8,Nutrients!$EV$9)*AH$7)+(((IF($A$8=Nutrients!$B$79,Nutrients!$EV$79,(IF($A$8=Nutrients!$B$77,Nutrients!$EV$77,Nutrients!$EV$78)))))*AH$8))","v":900},{"$f":"(SUMPRODUCT(AI$9:AI$229,Nutrients!$EV$8:$EV$228)+(IF($A$7=Nutrients!$B$8,Nutrients!$EV$8,Nutrients!$EV$9)*AI$7)+(((IF($A$8=Nutrients!$B$79,Nutrients!$EV$79,(IF($A$8=Nutrients!$B$77,Nutrients!$EV$77,Nutrients!$EV$78)))))*AI$8))","v":900},null,{"$f":"(SUMPRODUCT(AK$9:AK$229,Nutrients!$EV$8:$EV$228)+(IF($A$7=Nutrients!$B$8,Nutrients!$EV$8,Nutrients!$EV$9)*AK$7)+(((IF($A$8=Nutrients!$B$79,Nutrients!$EV$79,(IF($A$8=Nutrients!$B$77,Nutrients!$EV$77,Nutrients!$EV$78)))))*AK$8))","v":1800},{"$f":"(SUMPRODUCT(AL$9:AL$229,Nutrients!$EV$8:$EV$228)+(IF($A$7=Nutrients!$B$8,Nutrients!$EV$8,Nutrients!$EV$9)*AL$7)+(((IF($A$8=Nutrients!$B$79,Nutrients!$EV$79,(IF($A$8=Nutrients!$B$77,Nutrients!$EV$77,Nutrients!$EV$78)))))*AL$8))","v":1800},{"$f":"(SUMPRODUCT(AM$9:AM$229,Nutrients!$EV$8:$EV$228)+(IF($A$7=Nutrients!$B$8,Nutrients!$EV$8,Nutrients!$EV$9)*AM$7)+(((IF($A$8=Nutrients!$B$79,Nutrients!$EV$79,(IF($A$8=Nutrients!$B$77,Nutrients!$EV$77,Nutrients!$EV$78)))))*AM$8))","v":1500},{"$f":"(SUMPRODUCT(AN$9:AN$229,Nutrients!$EV$8:$EV$228)+(IF($A$7=Nutrients!$B$8,Nutrients!$EV$8,Nutrients!$EV$9)*AN$7)+(((IF($A$8=Nutrients!$B$79,Nutrients!$EV$79,(IF($A$8=Nutrients!$B$77,Nutrients!$EV$77,Nutrients!$EV$78)))))*AN$8))","v":1200},{"$f":"(SUMPRODUCT(AO$9:AO$229,Nutrients!$EV$8:$EV$228)+(IF($A$7=Nutrients!$B$8,Nutrients!$EV$8,Nutrients!$EV$9)*AO$7)+(((IF($A$8=Nutrients!$B$79,Nutrients!$EV$79,(IF($A$8=Nutrients!$B$77,Nutrients!$EV$77,Nutrients!$EV$78)))))*AO$8))","v":900},{"$f":"(SUMPRODUCT(AP$9:AP$229,Nutrients!$EV$8:$EV$228)+(IF($A$7=Nutrients!$B$8,Nutrients!$EV$8,Nutrients!$EV$9)*AP$7)+(((IF($A$8=Nutrients!$B$79,Nutrients!$EV$79,(IF($A$8=Nutrients!$B$77,Nutrients!$EV$77,Nutrients!$EV$78)))))*AP$8))","v":900},null,{"$f":"(SUMPRODUCT(AR$9:AR$229,Nutrients!$EV$8:$EV$228)+(IF($A$7=Nutrients!$B$8,Nutrients!$EV$8,Nutrients!$EV$9)*AR$7)+(((IF($A$8=Nutrients!$B$79,Nutrients!$EV$79,(IF($A$8=Nutrients!$B$77,Nutrients!$EV$77,Nutrients!$EV$78)))))*AR$8))","v":1800},{"$f":"(SUMPRODUCT(AS$9:AS$229,Nutrients!$EV$8:$EV$228)+(IF($A$7=Nutrients!$B$8,Nutrients!$EV$8,Nutrients!$EV$9)*AS$7)+(((IF($A$8=Nutrients!$B$79,Nutrients!$EV$79,(IF($A$8=Nutrients!$B$77,Nutrients!$EV$77,Nutrients!$EV$78)))))*AS$8))","v":1800},{"$f":"(SUMPRODUCT(AT$9:AT$229,Nutrients!$EV$8:$EV$228)+(IF($A$7=Nutrients!$B$8,Nutrients!$EV$8,Nutrients!$EV$9)*AT$7)+(((IF($A$8=Nutrients!$B$79,Nutrients!$EV$79,(IF($A$8=Nutrients!$B$77,Nutrients!$EV$77,Nutrients!$EV$78)))))*AT$8))","v":1500},{"$f":"(SUMPRODUCT(AU$9:AU$229,Nutrients!$EV$8:$EV$228)+(IF($A$7=Nutrients!$B$8,Nutrients!$EV$8,Nutrients!$EV$9)*AU$7)+(((IF($A$8=Nutrients!$B$79,Nutrients!$EV$79,(IF($A$8=Nutrients!$B$77,Nutrients!$EV$77,Nutrients!$EV$78)))))*AU$8))","v":1200},{"$f":"(SUMPRODUCT(AV$9:AV$229,Nutrients!$EV$8:$EV$228)+(IF($A$7=Nutrients!$B$8,Nutrients!$EV$8,Nutrients!$EV$9)*AV$7)+(((IF($A$8=Nutrients!$B$79,Nutrients!$EV$79,(IF($A$8=Nutrients!$B$77,Nutrients!$EV$77,Nutrients!$EV$78)))))*AV$8))","v":900},{"$f":"(SUMPRODUCT(AW$9:AW$229,Nutrients!$EV$8:$EV$228)+(IF($A$7=Nutrients!$B$8,Nutrients!$EV$8,Nutrients!$EV$9)*AW$7)+(((IF($A$8=Nutrients!$B$79,Nutrients!$EV$79,(IF($A$8=Nutrients!$B$77,Nutrients!$EV$77,Nutrients!$EV$78)))))*AW$8))","v":900}]
["  Vit B12, mg/ton",{"$f":"(SUMPRODUCT(B$9:B$229,Nutrients!$EW$8:$EW$228)+(IF($A$7=Nutrients!$B$8,Nutrients!$EW$8,Nutrients!$EW$9)*B$7)+(((IF($A$8=Nutrients!$B$79,Nutrients!$EW$79,(IF($A$8=Nutrients!$B$77,Nutrients!$EW$77,Nutrients!$EW$78)))))*B$8))","v":18},{"$f":"(SUMPRODUCT(C$9:C$229,Nutrients!$EW$8:$EW$228)+(IF($A$7=Nutrients!$B$8,Nutrients!$EW$8,Nutrients!$EW$9)*C$7)+(((IF($A$8=Nutrients!$B$79,Nutrients!$EW$79,(IF($A$8=Nutrients!$B$77,Nutrients!$EW$77,Nutrients!$EW$78)))))*C$8))","v":18},{"$f":"(SUMPRODUCT(D$9:D$229,Nutrients!$EW$8:$EW$228)+(IF($A$7=Nutrients!$B$8,Nutrients!$EW$8,Nutrients!$EW$9)*D$7)+(((IF($A$8=Nutrients!$B$79,Nutrients!$EW$79,(IF($A$8=Nutrients!$B$77,Nutrients!$EW$77,Nutrients!$EW$78)))))*D$8))","v":15},{"$f":"(SUMPRODUCT(E$9:E$229,Nutrients!$EW$8:$EW$228)+(IF($A$7=Nutrients!$B$8,Nutrients!$EW$8,Nutrients!$EW$9)*E$7)+(((IF($A$8=Nutrients!$B$79,Nutrients!$EW$79,(IF($A$8=Nutrients!$B$77,Nutrients!$EW$77,Nutrients!$EW$78)))))*E$8))","v":12},{"$f":"(SUMPRODUCT(F$9:F$229,Nutrients!$EW$8:$EW$228)+(IF($A$7=Nutrients!$B$8,Nutrients!$EW$8,Nutrients!$EW$9)*F$7)+(((IF($A$8=Nutrients!$B$79,Nutrients!$EW$79,(IF($A$8=Nutrients!$B$77,Nutrients!$EW$77,Nutrients!$EW$78)))))*F$8))","v":9},{"$f":"(SUMPRODUCT(G$9:G$229,Nutrients!$EW$8:$EW$228)+(IF($A$7=Nutrients!$B$8,Nutrients!$EW$8,Nutrients!$EW$9)*G$7)+(((IF($A$8=Nutrients!$B$79,Nutrients!$EW$79,(IF($A$8=Nutrients!$B$77,Nutrients!$EW$77,Nutrients!$EW$78)))))*G$8))","v":9},null,{"$f":"(SUMPRODUCT(I$9:I$229,Nutrients!$EW$8:$EW$228)+(IF($A$7=Nutrients!$B$8,Nutrients!$EW$8,Nutrients!$EW$9)*I$7)+(((IF($A$8=Nutrients!$B$79,Nutrients!$EW$79,(IF($A$8=Nutrients!$B$77,Nutrients!$EW$77,Nutrients!$EW$78)))))*I$8))","v":18},{"$f":"(SUMPRODUCT(J$9:J$229,Nutrients!$EW$8:$EW$228)+(IF($A$7=Nutrients!$B$8,Nutrients!$EW$8,Nutrients!$EW$9)*J$7)+(((IF($A$8=Nutrients!$B$79,Nutrients!$EW$79,(IF($A$8=Nutrients!$B$77,Nutrients!$EW$77,Nutrients!$EW$78)))))*J$8))","v":18},{"$f":"(SUMPRODUCT(K$9:K$229,Nutrients!$EW$8:$EW$228)+(IF($A$7=Nutrients!$B$8,Nutrients!$EW$8,Nutrients!$EW$9)*K$7)+(((IF($A$8=Nutrients!$B$79,Nutrients!$EW$79,(IF($A$8=Nutrients!$B$77,Nutrients!$EW$77,Nutrients!$EW$78)))))*K$8))","v":15},{"$f":"(SUMPRODUCT(L$9:L$229,Nutrients!$EW$8:$EW$228)+(IF($A$7=Nutrients!$B$8,Nutrients!$EW$8,Nutrients!$EW$9)*L$7)+(((IF($A$8=Nutrients!$B$79,Nutrients!$EW$79,(IF($A$8=Nutrients!$B$77,Nutrients!$EW$77,Nutrients!$EW$78)))))*L$8))","v":12},{"$f":"(SUMPRODUCT(M$9:M$229,Nutrients!$EW$8:$EW$228)+(IF($A$7=Nutrients!$B$8,Nutrients!$EW$8,Nutrients!$EW$9)*M$7)+(((IF($A$8=Nutrients!$B$79,Nutrients!$EW$79,(IF($A$8=Nutrients!$B$77,Nutrients!$EW$77,Nutrients!$EW$78)))))*M$8))","v":9},{"$f":"(SUMPRODUCT(N$9:N$229,Nutrients!$EW$8:$EW$228)+(IF($A$7=Nutrients!$B$8,Nutrients!$EW$8,Nutrients!$EW$9)*N$7)+(((IF($A$8=Nutrients!$B$79,Nutrients!$EW$79,(IF($A$8=Nutrients!$B$77,Nutrients!$EW$77,Nutrients!$EW$78)))))*N$8))","v":9},null,{"$f":"(SUMPRODUCT(P$9:P$229,Nutrients!$EW$8:$EW$228)+(IF($A$7=Nutrients!$B$8,Nutrients!$EW$8,Nutrients!$EW$9)*P$7)+(((IF($A$8=Nutrients!$B$79,Nutrients!$EW$79,(IF($A$8=Nutrients!$B$77,Nutrients!$EW$77,Nutrients!$EW$78)))))*P$8))","v":18},{"$f":"(SUMPRODUCT(Q$9:Q$229,Nutrients!$EW$8:$EW$228)+(IF($A$7=Nutrients!$B$8,Nutrients!$EW$8,Nutrients!$EW$9)*Q$7)+(((IF($A$8=Nutrients!$B$79,Nutrients!$EW$79,(IF($A$8=Nutrients!$B$77,Nutrients!$EW$77,Nutrients!$EW$78)))))*Q$8))","v":18},{"$f":"(SUMPRODUCT(R$9:R$229,Nutrients!$EW$8:$EW$228)+(IF($A$7=Nutrients!$B$8,Nutrients!$EW$8,Nutrients!$EW$9)*R$7)+(((IF($A$8=Nutrients!$B$79,Nutrients!$EW$79,(IF($A$8=Nutrients!$B$77,Nutrients!$EW$77,Nutrients!$EW$78)))))*R$8))","v":15},{"$f":"(SUMPRODUCT(S$9:S$229,Nutrients!$EW$8:$EW$228)+(IF($A$7=Nutrients!$B$8,Nutrients!$EW$8,Nutrients!$EW$9)*S$7)+(((IF($A$8=Nutrients!$B$79,Nutrients!$EW$79,(IF($A$8=Nutrients!$B$77,Nutrients!$EW$77,Nutrients!$EW$78)))))*S$8))","v":12},{"$f":"(SUMPRODUCT(T$9:T$229,Nutrients!$EW$8:$EW$228)+(IF($A$7=Nutrients!$B$8,Nutrients!$EW$8,Nutrients!$EW$9)*T$7)+(((IF($A$8=Nutrients!$B$79,Nutrients!$EW$79,(IF($A$8=Nutrients!$B$77,Nutrients!$EW$77,Nutrients!$EW$78)))))*T$8))","v":9},{"$f":"(SUMPRODUCT(U$9:U$229,Nutrients!$EW$8:$EW$228)+(IF($A$7=Nutrients!$B$8,Nutrients!$EW$8,Nutrients!$EW$9)*U$7)+(((IF($A$8=Nutrients!$B$79,Nutrients!$EW$79,(IF($A$8=Nutrients!$B$77,Nutrients!$EW$77,Nutrients!$EW$78)))))*U$8))","v":9},null,{"$f":"(SUMPRODUCT(W$9:W$229,Nutrients!$EW$8:$EW$228)+(IF($A$7=Nutrients!$B$8,Nutrients!$EW$8,Nutrients!$EW$9)*W$7)+(((IF($A$8=Nutrients!$B$79,Nutrients!$EW$79,(IF($A$8=Nutrients!$B$77,Nutrients!$EW$77,Nutrients!$EW$78)))))*W$8))","v":18},{"$f":"(SUMPRODUCT(X$9:X$229,Nutrients!$EW$8:$EW$228)+(IF($A$7=Nutrients!$B$8,Nutrients!$EW$8,Nutrients!$EW$9)*X$7)+(((IF($A$8=Nutrients!$B$79,Nutrients!$EW$79,(IF($A$8=Nutrients!$B$77,Nutrients!$EW$77,Nutrients!$EW$78)))))*X$8))","v":18},{"$f":"(SUMPRODUCT(Y$9:Y$229,Nutrients!$EW$8:$EW$228)+(IF($A$7=Nutrients!$B$8,Nutrients!$EW$8,Nutrients!$EW$9)*Y$7)+(((IF($A$8=Nutrients!$B$79,Nutrients!$EW$79,(IF($A$8=Nutrients!$B$77,Nutrients!$EW$77,Nutrients!$EW$78)))))*Y$8))","v":15},{"$f":"(SUMPRODUCT(Z$9:Z$229,Nutrients!$EW$8:$EW$228)+(IF($A$7=Nutrients!$B$8,Nutrients!$EW$8,Nutrients!$EW$9)*Z$7)+(((IF($A$8=Nutrients!$B$79,Nutrients!$EW$79,(IF($A$8=Nutrients!$B$77,Nutrients!$EW$77,Nutrients!$EW$78)))))*Z$8))","v":12},{"$f":"(SUMPRODUCT(AA$9:AA$229,Nutrients!$EW$8:$EW$228)+(IF($A$7=Nutrients!$B$8,Nutrients!$EW$8,Nutrients!$EW$9)*AA$7)+(((IF($A$8=Nutrients!$B$79,Nutrients!$EW$79,(IF($A$8=Nutrients!$B$77,Nutrients!$EW$77,Nutrients!$EW$78)))))*AA$8))","v":9},{"$f":"(SUMPRODUCT(AB$9:AB$229,Nutrients!$EW$8:$EW$228)+(IF($A$7=Nutrients!$B$8,Nutrients!$EW$8,Nutrients!$EW$9)*AB$7)+(((IF($A$8=Nutrients!$B$79,Nutrients!$EW$79,(IF($A$8=Nutrients!$B$77,Nutrients!$EW$77,Nutrients!$EW$78)))))*AB$8))","v":9},null,{"$f":"(SUMPRODUCT(AD$9:AD$229,Nutrients!$EW$8:$EW$228)+(IF($A$7=Nutrients!$B$8,Nutrients!$EW$8,Nutrients!$EW$9)*AD$7)+(((IF($A$8=Nutrients!$B$79,Nutrients!$EW$79,(IF($A$8=Nutrients!$B$77,Nutrients!$EW$77,Nutrients!$EW$78)))))*AD$8))","v":18},{"$f":"(SUMPRODUCT(AE$9:AE$229,Nutrients!$EW$8:$EW$228)+(IF($A$7=Nutrients!$B$8,Nutrients!$EW$8,Nutrients!$EW$9)*AE$7)+(((IF($A$8=Nutrients!$B$79,Nutrients!$EW$79,(IF($A$8=Nutrients!$B$77,Nutrients!$EW$77,Nutrients!$EW$78)))))*AE$8))","v":18},{"$f":"(SUMPRODUCT(AF$9:AF$229,Nutrients!$EW$8:$EW$228)+(IF($A$7=Nutrients!$B$8,Nutrients!$EW$8,Nutrients!$EW$9)*AF$7)+(((IF($A$8=Nutrients!$B$79,Nutrients!$EW$79,(IF($A$8=Nutrients!$B$77,Nutrients!$EW$77,Nutrients!$EW$78)))))*AF$8))","v":15},{"$f":"(SUMPRODUCT(AG$9:AG$229,Nutrients!$EW$8:$EW$228)+(IF($A$7=Nutrients!$B$8,Nutrients!$EW$8,Nutrients!$EW$9)*AG$7)+(((IF($A$8=Nutrients!$B$79,Nutrients!$EW$79,(IF($A$8=Nutrients!$B$77,Nutrients!$EW$77,Nutrients!$EW$78)))))*AG$8))","v":12},{"$f":"(SUMPRODUCT(AH$9:AH$229,Nutrients!$EW$8:$EW$228)+(IF($A$7=Nutrients!$B$8,Nutrients!$EW$8,Nutrients!$EW$9)*AH$7)+(((IF($A$8=Nutrients!$B$79,Nutrients!$EW$79,(IF($A$8=Nutrients!$B$77,Nutrients!$EW$77,Nutrients!$EW$78)))))*AH$8))","v":9},{"$f":"(SUMPRODUCT(AI$9:AI$229,Nutrients!$EW$8:$EW$228)+(IF($A$7=Nutrients!$B$8,Nutrients!$EW$8,Nutrients!$EW$9)*AI$7)+(((IF($A$8=Nutrients!$B$79,Nutrients!$EW$79,(IF($A$8=Nutrients!$B$77,Nutrients!$EW$77,Nutrients!$EW$78)))))*AI$8))","v":9},null,{"$f":"(SUMPRODUCT(AK$9:AK$229,Nutrients!$EW$8:$EW$228)+(IF($A$7=Nutrients!$B$8,Nutrients!$EW$8,Nutrients!$EW$9)*AK$7)+(((IF($A$8=Nutrients!$B$79,Nutrients!$EW$79,(IF($A$8=Nutrients!$B$77,Nutrients!$EW$77,Nutrients!$EW$78)))))*AK$8))","v":18},{"$f":"(SUMPRODUCT(AL$9:AL$229,Nutrients!$EW$8:$EW$228)+(IF($A$7=Nutrients!$B$8,Nutrients!$EW$8,Nutrients!$EW$9)*AL$7)+(((IF($A$8=Nutrients!$B$79,Nutrients!$EW$79,(IF($A$8=Nutrients!$B$77,Nutrients!$EW$77,Nutrients!$EW$78)))))*AL$8))","v":18},{"$f":"(SUMPRODUCT(AM$9:AM$229,Nutrients!$EW$8:$EW$228)+(IF($A$7=Nutrients!$B$8,Nutrients!$EW$8,Nutrients!$EW$9)*AM$7)+(((IF($A$8=Nutrients!$B$79,Nutrients!$EW$79,(IF($A$8=Nutrients!$B$77,Nutrients!$EW$77,Nutrients!$EW$78)))))*AM$8))","v":15},{"$f":"(SUMPRODUCT(AN$9:AN$229,Nutrients!$EW$8:$EW$228)+(IF($A$7=Nutrients!$B$8,Nutrients!$EW$8,Nutrients!$EW$9)*AN$7)+(((IF($A$8=Nutrients!$B$79,Nutrients!$EW$79,(IF($A$8=Nutrients!$B$77,Nutrients!$EW$77,Nutrients!$EW$78)))))*AN$8))","v":12},{"$f":"(SUMPRODUCT(AO$9:AO$229,Nutrients!$EW$8:$EW$228)+(IF($A$7=Nutrients!$B$8,Nutrients!$EW$8,Nutrients!$EW$9)*AO$7)+(((IF($A$8=Nutrients!$B$79,Nutrients!$EW$79,(IF($A$8=Nutrients!$B$77,Nutrients!$EW$77,Nutrients!$EW$78)))))*AO$8))","v":9},{"$f":"(SUMPRODUCT(AP$9:AP$229,Nutrients!$EW$8:$EW$228)+(IF($A$7=Nutrients!$B$8,Nutrients!$EW$8,Nutrients!$EW$9)*AP$7)+(((IF($A$8=Nutrients!$B$79,Nutrients!$EW$79,(IF($A$8=Nutrients!$B$77,Nutrients!$EW$77,Nutrients!$EW$78)))))*AP$8))","v":9},null,{"$f":"(SUMPRODUCT(AR$9:AR$229,Nutrients!$EW$8:$EW$228)+(IF($A$7=Nutrients!$B$8,Nutrients!$EW$8,Nutrients!$EW$9)*AR$7)+(((IF($A$8=Nutrients!$B$79,Nutrients!$EW$79,(IF($A$8=Nutrients!$B$77,Nutrients!$EW$77,Nutrients!$EW$78)))))*AR$8))","v":18},{"$f":"(SUMPRODUCT(AS$9:AS$229,Nutrients!$EW$8:$EW$228)+(IF($A$7=Nutrients!$B$8,Nutrients!$EW$8,Nutrients!$EW$9)*AS$7)+(((IF($A$8=Nutrients!$B$79,Nutrients!$EW$79,(IF($A$8=Nutrients!$B$77,Nutrients!$EW$77,Nutrients!$EW$78)))))*AS$8))","v":18},{"$f":"(SUMPRODUCT(AT$9:AT$229,Nutrients!$EW$8:$EW$228)+(IF($A$7=Nutrients!$B$8,Nutrients!$EW$8,Nutrients!$EW$9)*AT$7)+(((IF($A$8=Nutrients!$B$79,Nutrients!$EW$79,(IF($A$8=Nutrients!$B$77,Nutrients!$EW$77,Nutrients!$EW$78)))))*AT$8))","v":15},{"$f":"(SUMPRODUCT(AU$9:AU$229,Nutrients!$EW$8:$EW$228)+(IF($A$7=Nutrients!$B$8,Nutrients!$EW$8,Nutrients!$EW$9)*AU$7)+(((IF($A$8=Nutrients!$B$79,Nutrients!$EW$79,(IF($A$8=Nutrients!$B$77,Nutrients!$EW$77,Nutrients!$EW$78)))))*AU$8))","v":12},{"$f":"(SUMPRODUCT(AV$9:AV$229,Nutrients!$EW$8:$EW$228)+(IF($A$7=Nutrients!$B$8,Nutrients!$EW$8,Nutrients!$EW$9)*AV$7)+(((IF($A$8=Nutrients!$B$79,Nutrients!$EW$79,(IF($A$8=Nutrients!$B$77,Nutrients!$EW$77,Nutrients!$EW$78)))))*AV$8))","v":9},{"$f":"(SUMPRODUCT(AW$9:AW$229,Nutrients!$EW$8:$EW$228)+(IF($A$7=Nutrients!$B$8,Nutrients!$EW$8,Nutrients!$EW$9)*AW$7)+(((IF($A$8=Nutrients!$B$79,Nutrients!$EW$79,(IF($A$8=Nutrients!$B$77,Nutrients!$EW$77,Nutrients!$EW$78)))))*AW$8))","v":9}]
["  Niacin, mg/ton",{"$f":"(SUMPRODUCT(B$9:B$229,Nutrients!$EX$8:$EX$228)+(IF($A$7=Nutrients!$B$8,Nutrients!$EX$8,Nutrients!$EX$9)*B$7)+(((IF($A$8=Nutrients!$B$79,Nutrients!$EX$79,(IF($A$8=Nutrients!$B$77,Nutrients!$EX$77,Nutrients!$EX$78)))))*B$8))","v":27000},{"$f":"(SUMPRODUCT(C$9:C$229,Nutrients!$EX$8:$EX$228)+(IF($A$7=Nutrients!$B$8,Nutrients!$EX$8,Nutrients!$EX$9)*C$7)+(((IF($A$8=Nutrients!$B$79,Nutrients!$EX$79,(IF($A$8=Nutrients!$B$77,Nutrients!$EX$77,Nutrients!$EX$78)))))*C$8))","v":27000},{"$f":"(SUMPRODUCT(D$9:D$229,Nutrients!$EX$8:$EX$228)+(IF($A$7=Nutrients!$B$8,Nutrients!$EX$8,Nutrients!$EX$9)*D$7)+(((IF($A$8=Nutrients!$B$79,Nutrients!$EX$79,(IF($A$8=Nutrients!$B$77,Nutrients!$EX$77,Nutrients!$EX$78)))))*D$8))","v":22500},{"$f":"(SUMPRODUCT(E$9:E$229,Nutrients!$EX$8:$EX$228)+(IF($A$7=Nutrients!$B$8,Nutrients!$EX$8,Nutrients!$EX$9)*E$7)+(((IF($A$8=Nutrients!$B$79,Nutrients!$EX$79,(IF($A$8=Nutrients!$B$77,Nutrients!$EX$77,Nutrients!$EX$78)))))*E$8))","v":18000},{"$f":"(SUMPRODUCT(F$9:F$229,Nutrients!$EX$8:$EX$228)+(IF($A$7=Nutrients!$B$8,Nutrients!$EX$8,Nutrients!$EX$9)*F$7)+(((IF($A$8=Nutrients!$B$79,Nutrients!$EX$79,(IF($A$8=Nutrients!$B$77,Nutrients!$EX$77,Nutrients!$EX$78)))))*F$8))","v":13500},{"$f":"(SUMPRODUCT(G$9:G$229,Nutrients!$EX$8:$EX$228)+(IF($A$7=Nutrients!$B$8,Nutrients!$EX$8,Nutrients!$EX$9)*G$7)+(((IF($A$8=Nutrients!$B$79,Nutrients!$EX$79,(IF($A$8=Nutrients!$B$77,Nutrients!$EX$77,Nutrients!$EX$78)))))*G$8))","v":13500},null,{"$f":"(SUMPRODUCT(I$9:I$229,Nutrients!$EX$8:$EX$228)+(IF($A$7=Nutrients!$B$8,Nutrients!$EX$8,Nutrients!$EX$9)*I$7)+(((IF($A$8=Nutrients!$B$79,Nutrients!$EX$79,(IF($A$8=Nutrients!$B$77,Nutrients!$EX$77,Nutrients!$EX$78)))))*I$8))","v":27000},{"$f":"(SUMPRODUCT(J$9:J$229,Nutrients!$EX$8:$EX$228)+(IF($A$7=Nutrients!$B$8,Nutrients!$EX$8,Nutrients!$EX$9)*J$7)+(((IF($A$8=Nutrients!$B$79,Nutrients!$EX$79,(IF($A$8=Nutrients!$B$77,Nutrients!$EX$77,Nutrients!$EX$78)))))*J$8))","v":27000},{"$f":"(SUMPRODUCT(K$9:K$229,Nutrients!$EX$8:$EX$228)+(IF($A$7=Nutrients!$B$8,Nutrients!$EX$8,Nutrients!$EX$9)*K$7)+(((IF($A$8=Nutrients!$B$79,Nutrients!$EX$79,(IF($A$8=Nutrients!$B$77,Nutrients!$EX$77,Nutrients!$EX$78)))))*K$8))","v":22500},{"$f":"(SUMPRODUCT(L$9:L$229,Nutrients!$EX$8:$EX$228)+(IF($A$7=Nutrients!$B$8,Nutrients!$EX$8,Nutrients!$EX$9)*L$7)+(((IF($A$8=Nutrients!$B$79,Nutrients!$EX$79,(IF($A$8=Nutrients!$B$77,Nutrients!$EX$77,Nutrients!$EX$78)))))*L$8))","v":18000},{"$f":"(SUMPRODUCT(M$9:M$229,Nutrients!$EX$8:$EX$228)+(IF($A$7=Nutrients!$B$8,Nutrients!$EX$8,Nutrients!$EX$9)*M$7)+(((IF($A$8=Nutrients!$B$79,Nutrients!$EX$79,(IF($A$8=Nutrients!$B$77,Nutrients!$EX$77,Nutrients!$EX$78)))))*M$8))","v":13500},{"$f":"(SUMPRODUCT(N$9:N$229,Nutrients!$EX$8:$EX$228)+(IF($A$7=Nutrients!$B$8,Nutrients!$EX$8,Nutrients!$EX$9)*N$7)+(((IF($A$8=Nutrients!$B$79,Nutrients!$EX$79,(IF($A$8=Nutrients!$B$77,Nutrients!$EX$77,Nutrients!$EX$78)))))*N$8))","v":13500},null,{"$f":"(SUMPRODUCT(P$9:P$229,Nutrients!$EX$8:$EX$228)+(IF($A$7=Nutrients!$B$8,Nutrients!$EX$8,Nutrients!$EX$9)*P$7)+(((IF($A$8=Nutrients!$B$79,Nutrients!$EX$79,(IF($A$8=Nutrients!$B$77,Nutrients!$EX$77,Nutrients!$EX$78)))))*P$8))","v":27000},{"$f":"(SUMPRODUCT(Q$9:Q$229,Nutrients!$EX$8:$EX$228)+(IF($A$7=Nutrients!$B$8,Nutrients!$EX$8,Nutrients!$EX$9)*Q$7)+(((IF($A$8=Nutrients!$B$79,Nutrients!$EX$79,(IF($A$8=Nutrients!$B$77,Nutrients!$EX$77,Nutrients!$EX$78)))))*Q$8))","v":27000},{"$f":"(SUMPRODUCT(R$9:R$229,Nutrients!$EX$8:$EX$228)+(IF($A$7=Nutrients!$B$8,Nutrients!$EX$8,Nutrients!$EX$9)*R$7)+(((IF($A$8=Nutrients!$B$79,Nutrients!$EX$79,(IF($A$8=Nutrients!$B$77,Nutrients!$EX$77,Nutrients!$EX$78)))))*R$8))","v":22500},{"$f":"(SUMPRODUCT(S$9:S$229,Nutrients!$EX$8:$EX$228)+(IF($A$7=Nutrients!$B$8,Nutrients!$EX$8,Nutrients!$EX$9)*S$7)+(((IF($A$8=Nutrients!$B$79,Nutrients!$EX$79,(IF($A$8=Nutrients!$B$77,Nutrients!$EX$77,Nutrients!$EX$78)))))*S$8))","v":18000},{"$f":"(SUMPRODUCT(T$9:T$229,Nutrients!$EX$8:$EX$228)+(IF($A$7=Nutrients!$B$8,Nutrients!$EX$8,Nutrients!$EX$9)*T$7)+(((IF($A$8=Nutrients!$B$79,Nutrients!$EX$79,(IF($A$8=Nutrients!$B$77,Nutrients!$EX$77,Nutrients!$EX$78)))))*T$8))","v":13500},{"$f":"(SUMPRODUCT(U$9:U$229,Nutrients!$EX$8:$EX$228)+(IF($A$7=Nutrients!$B$8,Nutrients!$EX$8,Nutrients!$EX$9)*U$7)+(((IF($A$8=Nutrients!$B$79,Nutrients!$EX$79,(IF($A$8=Nutrients!$B$77,Nutrients!$EX$77,Nutrients!$EX$78)))))*U$8))","v":13500},null,{"$f":"(SUMPRODUCT(W$9:W$229,Nutrients!$EX$8:$EX$228)+(IF($A$7=Nutrients!$B$8,Nutrients!$EX$8,Nutrients!$EX$9)*W$7)+(((IF($A$8=Nutrients!$B$79,Nutrients!$EX$79,(IF($A$8=Nutrients!$B$77,Nutrients!$EX$77,Nutrients!$EX$78)))))*W$8))","v":27000},{"$f":"(SUMPRODUCT(X$9:X$229,Nutrients!$EX$8:$EX$228)+(IF($A$7=Nutrients!$B$8,Nutrients!$EX$8,Nutrients!$EX$9)*X$7)+(((IF($A$8=Nutrients!$B$79,Nutrients!$EX$79,(IF($A$8=Nutrients!$B$77,Nutrients!$EX$77,Nutrients!$EX$78)))))*X$8))","v":27000},{"$f":"(SUMPRODUCT(Y$9:Y$229,Nutrients!$EX$8:$EX$228)+(IF($A$7=Nutrients!$B$8,Nutrients!$EX$8,Nutrients!$EX$9)*Y$7)+(((IF($A$8=Nutrients!$B$79,Nutrients!$EX$79,(IF($A$8=Nutrients!$B$77,Nutrients!$EX$77,Nutrients!$EX$78)))))*Y$8))","v":22500},{"$f":"(SUMPRODUCT(Z$9:Z$229,Nutrients!$EX$8:$EX$228)+(IF($A$7=Nutrients!$B$8,Nutrients!$EX$8,Nutrients!$EX$9)*Z$7)+(((IF($A$8=Nutrients!$B$79,Nutrients!$EX$79,(IF($A$8=Nutrients!$B$77,Nutrients!$EX$77,Nutrients!$EX$78)))))*Z$8))","v":18000},{"$f":"(SUMPRODUCT(AA$9:AA$229,Nutrients!$EX$8:$EX$228)+(IF($A$7=Nutrients!$B$8,Nutrients!$EX$8,Nutrients!$EX$9)*AA$7)+(((IF($A$8=Nutrients!$B$79,Nutrients!$EX$79,(IF($A$8=Nutrients!$B$77,Nutrients!$EX$77,Nutrients!$EX$78)))))*AA$8))","v":13500},{"$f":"(SUMPRODUCT(AB$9:AB$229,Nutrients!$EX$8:$EX$228)+(IF($A$7=Nutrients!$B$8,Nutrients!$EX$8,Nutrients!$EX$9)*AB$7)+(((IF($A$8=Nutrients!$B$79,Nutrients!$EX$79,(IF($A$8=Nutrients!$B$77,Nutrients!$EX$77,Nutrients!$EX$78)))))*AB$8))","v":13500},null,{"$f":"(SUMPRODUCT(AD$9:AD$229,Nutrients!$EX$8:$EX$228)+(IF($A$7=Nutrients!$B$8,Nutrients!$EX$8,Nutrients!$EX$9)*AD$7)+(((IF($A$8=Nutrients!$B$79,Nutrients!$EX$79,(IF($A$8=Nutrients!$B$77,Nutrients!$EX$77,Nutrients!$EX$78)))))*AD$8))","v":27000},{"$f":"(SUMPRODUCT(AE$9:AE$229,Nutrients!$EX$8:$EX$228)+(IF($A$7=Nutrients!$B$8,Nutrients!$EX$8,Nutrients!$EX$9)*AE$7)+(((IF($A$8=Nutrients!$B$79,Nutrients!$EX$79,(IF($A$8=Nutrients!$B$77,Nutrients!$EX$77,Nutrients!$EX$78)))))*AE$8))","v":27000},{"$f":"(SUMPRODUCT(AF$9:AF$229,Nutrients!$EX$8:$EX$228)+(IF($A$7=Nutrients!$B$8,Nutrients!$EX$8,Nutrients!$EX$9)*AF$7)+(((IF($A$8=Nutrients!$B$79,Nutrients!$EX$79,(IF($A$8=Nutrients!$B$77,Nutrients!$EX$77,Nutrients!$EX$78)))))*AF$8))","v":22500},{"$f":"(SUMPRODUCT(AG$9:AG$229,Nutrients!$EX$8:$EX$228)+(IF($A$7=Nutrients!$B$8,Nutrients!$EX$8,Nutrients!$EX$9)*AG$7)+(((IF($A$8=Nutrients!$B$79,Nutrients!$EX$79,(IF($A$8=Nutrients!$B$77,Nutrients!$EX$77,Nutrients!$EX$78)))))*AG$8))","v":18000},{"$f":"(SUMPRODUCT(AH$9:AH$229,Nutrients!$EX$8:$EX$228)+(IF($A$7=Nutrients!$B$8,Nutrients!$EX$8,Nutrients!$EX$9)*AH$7)+(((IF($A$8=Nutrients!$B$79,Nutrients!$EX$79,(IF($A$8=Nutrients!$B$77,Nutrients!$EX$77,Nutrients!$EX$78)))))*AH$8))","v":13500},{"$f":"(SUMPRODUCT(AI$9:AI$229,Nutrients!$EX$8:$EX$228)+(IF($A$7=Nutrients!$B$8,Nutrients!$EX$8,Nutrients!$EX$9)*AI$7)+(((IF($A$8=Nutrients!$B$79,Nutrients!$EX$79,(IF($A$8=Nutrients!$B$77,Nutrients!$EX$77,Nutrients!$EX$78)))))*AI$8))","v":13500},null,{"$f":"(SUMPRODUCT(AK$9:AK$229,Nutrients!$EX$8:$EX$228)+(IF($A$7=Nutrients!$B$8,Nutrients!$EX$8,Nutrients!$EX$9)*AK$7)+(((IF($A$8=Nutrients!$B$79,Nutrients!$EX$79,(IF($A$8=Nutrients!$B$77,Nutrients!$EX$77,Nutrients!$EX$78)))))*AK$8))","v":27000},{"$f":"(SUMPRODUCT(AL$9:AL$229,Nutrients!$EX$8:$EX$228)+(IF($A$7=Nutrients!$B$8,Nutrients!$EX$8,Nutrients!$EX$9)*AL$7)+(((IF($A$8=Nutrients!$B$79,Nutrients!$EX$79,(IF($A$8=Nutrients!$B$77,Nutrients!$EX$77,Nutrients!$EX$78)))))*AL$8))","v":27000},{"$f":"(SUMPRODUCT(AM$9:AM$229,Nutrients!$EX$8:$EX$228)+(IF($A$7=Nutrients!$B$8,Nutrients!$EX$8,Nutrients!$EX$9)*AM$7)+(((IF($A$8=Nutrients!$B$79,Nutrients!$EX$79,(IF($A$8=Nutrients!$B$77,Nutrients!$EX$77,Nutrients!$EX$78)))))*AM$8))","v":22500},{"$f":"(SUMPRODUCT(AN$9:AN$229,Nutrients!$EX$8:$EX$228)+(IF($A$7=Nutrients!$B$8,Nutrients!$EX$8,Nutrients!$EX$9)*AN$7)+(((IF($A$8=Nutrients!$B$79,Nutrients!$EX$79,(IF($A$8=Nutrients!$B$77,Nutrients!$EX$77,Nutrients!$EX$78)))))*AN$8))","v":18000},{"$f":"(SUMPRODUCT(AO$9:AO$229,Nutrients!$EX$8:$EX$228)+(IF($A$7=Nutrients!$B$8,Nutrients!$EX$8,Nutrients!$EX$9)*AO$7)+(((IF($A$8=Nutrients!$B$79,Nutrients!$EX$79,(IF($A$8=Nutrients!$B$77,Nutrients!$EX$77,Nutrients!$EX$78)))))*AO$8))","v":13500},{"$f":"(SUMPRODUCT(AP$9:AP$229,Nutrients!$EX$8:$EX$228)+(IF($A$7=Nutrients!$B$8,Nutrients!$EX$8,Nutrients!$EX$9)*AP$7)+(((IF($A$8=Nutrients!$B$79,Nutrients!$EX$79,(IF($A$8=Nutrients!$B$77,Nutrients!$EX$77,Nutrients!$EX$78)))))*AP$8))","v":13500},null,{"$f":"(SUMPRODUCT(AR$9:AR$229,Nutrients!$EX$8:$EX$228)+(IF($A$7=Nutrients!$B$8,Nutrients!$EX$8,Nutrients!$EX$9)*AR$7)+(((IF($A$8=Nutrients!$B$79,Nutrients!$EX$79,(IF($A$8=Nutrients!$B$77,Nutrients!$EX$77,Nutrients!$EX$78)))))*AR$8))","v":27000},{"$f":"(SUMPRODUCT(AS$9:AS$229,Nutrients!$EX$8:$EX$228)+(IF($A$7=Nutrients!$B$8,Nutrients!$EX$8,Nutrients!$EX$9)*AS$7)+(((IF($A$8=Nutrients!$B$79,Nutrients!$EX$79,(IF($A$8=Nutrients!$B$77,Nutrients!$EX$77,Nutrients!$EX$78)))))*AS$8))","v":27000},{"$f":"(SUMPRODUCT(AT$9:AT$229,Nutrients!$EX$8:$EX$228)+(IF($A$7=Nutrients!$B$8,Nutrients!$EX$8,Nutrients!$EX$9)*AT$7)+(((IF($A$8=Nutrients!$B$79,Nutrients!$EX$79,(IF($A$8=Nutrients!$B$77,Nutrients!$EX$77,Nutrients!$EX$78)))))*AT$8))","v":22500},{"$f":"(SUMPRODUCT(AU$9:AU$229,Nutrients!$EX$8:$EX$228)+(IF($A$7=Nutrients!$B$8,Nutrients!$EX$8,Nutrients!$EX$9)*AU$7)+(((IF($A$8=Nutrients!$B$79,Nutrients!$EX$79,(IF($A$8=Nutrients!$B$77,Nutrients!$EX$77,Nutrients!$EX$78)))))*AU$8))","v":18000},{"$f":"(SUMPRODUCT(AV$9:AV$229,Nutrients!$EX$8:$EX$228)+(IF($A$7=Nutrients!$B$8,Nutrients!$EX$8,Nutrients!$EX$9)*AV$7)+(((IF($A$8=Nutrients!$B$79,Nutrients!$EX$79,(IF($A$8=Nutrients!$B$77,Nutrients!$EX$77,Nutrients!$EX$78)))))*AV$8))","v":13500},{"$f":"(SUMPRODUCT(AW$9:AW$229,Nutrients!$EX$8:$EX$228)+(IF($A$7=Nutrients!$B$8,Nutrients!$EX$8,Nutrients!$EX$9)*AW$7)+(((IF($A$8=Nutrients!$B$79,Nutrients!$EX$79,(IF($A$8=Nutrients!$B$77,Nutrients!$EX$77,Nutrients!$EX$78)))))*AW$8))","v":13500}]
["  Pantothenic Acid, mg/ton",{"$f":"(SUMPRODUCT(B$9:B$229,Nutrients!$EY$8:$EY$228)+(IF($A$7=Nutrients!$B$8,Nutrients!$EY$8,Nutrients!$EY$9)*B$7)+(((IF($A$8=Nutrients!$B$79,Nutrients!$EY$79,(IF($A$8=Nutrients!$B$77,Nutrients!$EY$77,Nutrients!$EY$78)))))*B$8))","v":15000},{"$f":"(SUMPRODUCT(C$9:C$229,Nutrients!$EY$8:$EY$228)+(IF($A$7=Nutrients!$B$8,Nutrients!$EY$8,Nutrients!$EY$9)*C$7)+(((IF($A$8=Nutrients!$B$79,Nutrients!$EY$79,(IF($A$8=Nutrients!$B$77,Nutrients!$EY$77,Nutrients!$EY$78)))))*C$8))","v":15000},{"$f":"(SUMPRODUCT(D$9:D$229,Nutrients!$EY$8:$EY$228)+(IF($A$7=Nutrients!$B$8,Nutrients!$EY$8,Nutrients!$EY$9)*D$7)+(((IF($A$8=Nutrients!$B$79,Nutrients!$EY$79,(IF($A$8=Nutrients!$B$77,Nutrients!$EY$77,Nutrients!$EY$78)))))*D$8))","v":12500},{"$f":"(SUMPRODUCT(E$9:E$229,Nutrients!$EY$8:$EY$228)+(IF($A$7=Nutrients!$B$8,Nutrients!$EY$8,Nutrients!$EY$9)*E$7)+(((IF($A$8=Nutrients!$B$79,Nutrients!$EY$79,(IF($A$8=Nutrients!$B$77,Nutrients!$EY$77,Nutrients!$EY$78)))))*E$8))","v":10000},{"$f":"(SUMPRODUCT(F$9:F$229,Nutrients!$EY$8:$EY$228)+(IF($A$7=Nutrients!$B$8,Nutrients!$EY$8,Nutrients!$EY$9)*F$7)+(((IF($A$8=Nutrients!$B$79,Nutrients!$EY$79,(IF($A$8=Nutrients!$B$77,Nutrients!$EY$77,Nutrients!$EY$78)))))*F$8))","v":7500},{"$f":"(SUMPRODUCT(G$9:G$229,Nutrients!$EY$8:$EY$228)+(IF($A$7=Nutrients!$B$8,Nutrients!$EY$8,Nutrients!$EY$9)*G$7)+(((IF($A$8=Nutrients!$B$79,Nutrients!$EY$79,(IF($A$8=Nutrients!$B$77,Nutrients!$EY$77,Nutrients!$EY$78)))))*G$8))","v":7500},null,{"$f":"(SUMPRODUCT(I$9:I$229,Nutrients!$EY$8:$EY$228)+(IF($A$7=Nutrients!$B$8,Nutrients!$EY$8,Nutrients!$EY$9)*I$7)+(((IF($A$8=Nutrients!$B$79,Nutrients!$EY$79,(IF($A$8=Nutrients!$B$77,Nutrients!$EY$77,Nutrients!$EY$78)))))*I$8))","v":15000},{"$f":"(SUMPRODUCT(J$9:J$229,Nutrients!$EY$8:$EY$228)+(IF($A$7=Nutrients!$B$8,Nutrients!$EY$8,Nutrients!$EY$9)*J$7)+(((IF($A$8=Nutrients!$B$79,Nutrients!$EY$79,(IF($A$8=Nutrients!$B$77,Nutrients!$EY$77,Nutrients!$EY$78)))))*J$8))","v":15000},{"$f":"(SUMPRODUCT(K$9:K$229,Nutrients!$EY$8:$EY$228)+(IF($A$7=Nutrients!$B$8,Nutrients!$EY$8,Nutrients!$EY$9)*K$7)+(((IF($A$8=Nutrients!$B$79,Nutrients!$EY$79,(IF($A$8=Nutrients!$B$77,Nutrients!$EY$77,Nutrients!$EY$78)))))*K$8))","v":12500},{"$f":"(SUMPRODUCT(L$9:L$229,Nutrients!$EY$8:$EY$228)+(IF($A$7=Nutrients!$B$8,Nutrients!$EY$8,Nutrients!$EY$9)*L$7)+(((IF($A$8=Nutrients!$B$79,Nutrients!$EY$79,(IF($A$8=Nutrients!$B$77,Nutrients!$EY$77,Nutrients!$EY$78)))))*L$8))","v":10000},{"$f":"(SUMPRODUCT(M$9:M$229,Nutrients!$EY$8:$EY$228)+(IF($A$7=Nutrients!$B$8,Nutrients!$EY$8,Nutrients!$EY$9)*M$7)+(((IF($A$8=Nutrients!$B$79,Nutrients!$EY$79,(IF($A$8=Nutrients!$B$77,Nutrients!$EY$77,Nutrients!$EY$78)))))*M$8))","v":7500},{"$f":"(SUMPRODUCT(N$9:N$229,Nutrients!$EY$8:$EY$228)+(IF($A$7=Nutrients!$B$8,Nutrients!$EY$8,Nutrients!$EY$9)*N$7)+(((IF($A$8=Nutrients!$B$79,Nutrients!$EY$79,(IF($A$8=Nutrients!$B$77,Nutrients!$EY$77,Nutrients!$EY$78)))))*N$8))","v":7500},null,{"$f":"(SUMPRODUCT(P$9:P$229,Nutrients!$EY$8:$EY$228)+(IF($A$7=Nutrients!$B$8,Nutrients!$EY$8,Nutrients!$EY$9)*P$7)+(((IF($A$8=Nutrients!$B$79,Nutrients!$EY$79,(IF($A$8=Nutrients!$B$77,Nutrients!$EY$77,Nutrients!$EY$78)))))*P$8))","v":15000},{"$f":"(SUMPRODUCT(Q$9:Q$229,Nutrients!$EY$8:$EY$228)+(IF($A$7=Nutrients!$B$8,Nutrients!$EY$8,Nutrients!$EY$9)*Q$7)+(((IF($A$8=Nutrients!$B$79,Nutrients!$EY$79,(IF($A$8=Nutrients!$B$77,Nutrients!$EY$77,Nutrients!$EY$78)))))*Q$8))","v":15000},{"$f":"(SUMPRODUCT(R$9:R$229,Nutrients!$EY$8:$EY$228)+(IF($A$7=Nutrients!$B$8,Nutrients!$EY$8,Nutrients!$EY$9)*R$7)+(((IF($A$8=Nutrients!$B$79,Nutrients!$EY$79,(IF($A$8=Nutrients!$B$77,Nutrients!$EY$77,Nutrients!$EY$78)))))*R$8))","v":12500},{"$f":"(SUMPRODUCT(S$9:S$229,Nutrients!$EY$8:$EY$228)+(IF($A$7=Nutrients!$B$8,Nutrients!$EY$8,Nutrients!$EY$9)*S$7)+(((IF($A$8=Nutrients!$B$79,Nutrients!$EY$79,(IF($A$8=Nutrients!$B$77,Nutrients!$EY$77,Nutrients!$EY$78)))))*S$8))","v":10000},{"$f":"(SUMPRODUCT(T$9:T$229,Nutrients!$EY$8:$EY$228)+(IF($A$7=Nutrients!$B$8,Nutrients!$EY$8,Nutrients!$EY$9)*T$7)+(((IF($A$8=Nutrients!$B$79,Nutrients!$EY$79,(IF($A$8=Nutrients!$B$77,Nutrients!$EY$77,Nutrients!$EY$78)))))*T$8))","v":7500},{"$f":"(SUMPRODUCT(U$9:U$229,Nutrients!$EY$8:$EY$228)+(IF($A$7=Nutrients!$B$8,Nutrients!$EY$8,Nutrients!$EY$9)*U$7)+(((IF($A$8=Nutrients!$B$79,Nutrients!$EY$79,(IF($A$8=Nutrients!$B$77,Nutrients!$EY$77,Nutrients!$EY$78)))))*U$8))","v":7500},null,{"$f":"(SUMPRODUCT(W$9:W$229,Nutrients!$EY$8:$EY$228)+(IF($A$7=Nutrients!$B$8,Nutrients!$EY$8,Nutrients!$EY$9)*W$7)+(((IF($A$8=Nutrients!$B$79,Nutrients!$EY$79,(IF($A$8=Nutrients!$B$77,Nutrients!$EY$77,Nutrients!$EY$78)))))*W$8))","v":15000},{"$f":"(SUMPRODUCT(X$9:X$229,Nutrients!$EY$8:$EY$228)+(IF($A$7=Nutrients!$B$8,Nutrients!$EY$8,Nutrients!$EY$9)*X$7)+(((IF($A$8=Nutrients!$B$79,Nutrients!$EY$79,(IF($A$8=Nutrients!$B$77,Nutrients!$EY$77,Nutrients!$EY$78)))))*X$8))","v":15000},{"$f":"(SUMPRODUCT(Y$9:Y$229,Nutrients!$EY$8:$EY$228)+(IF($A$7=Nutrients!$B$8,Nutrients!$EY$8,Nutrients!$EY$9)*Y$7)+(((IF($A$8=Nutrients!$B$79,Nutrients!$EY$79,(IF($A$8=Nutrients!$B$77,Nutrients!$EY$77,Nutrients!$EY$78)))))*Y$8))","v":12500},{"$f":"(SUMPRODUCT(Z$9:Z$229,Nutrients!$EY$8:$EY$228)+(IF($A$7=Nutrients!$B$8,Nutrients!$EY$8,Nutrients!$EY$9)*Z$7)+(((IF($A$8=Nutrients!$B$79,Nutrients!$EY$79,(IF($A$8=Nutrients!$B$77,Nutrients!$EY$77,Nutrients!$EY$78)))))*Z$8))","v":10000},{"$f":"(SUMPRODUCT(AA$9:AA$229,Nutrients!$EY$8:$EY$228)+(IF($A$7=Nutrients!$B$8,Nutrients!$EY$8,Nutrients!$EY$9)*AA$7)+(((IF($A$8=Nutrients!$B$79,Nutrients!$EY$79,(IF($A$8=Nutrients!$B$77,Nutrients!$EY$77,Nutrients!$EY$78)))))*AA$8))","v":7500},{"$f":"(SUMPRODUCT(AB$9:AB$229,Nutrients!$EY$8:$EY$228)+(IF($A$7=Nutrients!$B$8,Nutrients!$EY$8,Nutrients!$EY$9)*AB$7)+(((IF($A$8=Nutrients!$B$79,Nutrients!$EY$79,(IF($A$8=Nutrients!$B$77,Nutrients!$EY$77,Nutrients!$EY$78)))))*AB$8))","v":7500},null,{"$f":"(SUMPRODUCT(AD$9:AD$229,Nutrients!$EY$8:$EY$228)+(IF($A$7=Nutrients!$B$8,Nutrients!$EY$8,Nutrients!$EY$9)*AD$7)+(((IF($A$8=Nutrients!$B$79,Nutrients!$EY$79,(IF($A$8=Nutrients!$B$77,Nutrients!$EY$77,Nutrients!$EY$78)))))*AD$8))","v":15000},{"$f":"(SUMPRODUCT(AE$9:AE$229,Nutrients!$EY$8:$EY$228)+(IF($A$7=Nutrients!$B$8,Nutrients!$EY$8,Nutrients!$EY$9)*AE$7)+(((IF($A$8=Nutrients!$B$79,Nutrients!$EY$79,(IF($A$8=Nutrients!$B$77,Nutrients!$EY$77,Nutrients!$EY$78)))))*AE$8))","v":15000},{"$f":"(SUMPRODUCT(AF$9:AF$229,Nutrients!$EY$8:$EY$228)+(IF($A$7=Nutrients!$B$8,Nutrients!$EY$8,Nutrients!$EY$9)*AF$7)+(((IF($A$8=Nutrients!$B$79,Nutrients!$EY$79,(IF($A$8=Nutrients!$B$77,Nutrients!$EY$77,Nutrients!$EY$78)))))*AF$8))","v":12500},{"$f":"(SUMPRODUCT(AG$9:AG$229,Nutrients!$EY$8:$EY$228)+(IF($A$7=Nutrients!$B$8,Nutrients!$EY$8,Nutrients!$EY$9)*AG$7)+(((IF($A$8=Nutrients!$B$79,Nutrients!$EY$79,(IF($A$8=Nutrients!$B$77,Nutrients!$EY$77,Nutrients!$EY$78)))))*AG$8))","v":10000},{"$f":"(SUMPRODUCT(AH$9:AH$229,Nutrients!$EY$8:$EY$228)+(IF($A$7=Nutrients!$B$8,Nutrients!$EY$8,Nutrients!$EY$9)*AH$7)+(((IF($A$8=Nutrients!$B$79,Nutrients!$EY$79,(IF($A$8=Nutrients!$B$77,Nutrients!$EY$77,Nutrients!$EY$78)))))*AH$8))","v":7500},{"$f":"(SUMPRODUCT(AI$9:AI$229,Nutrients!$EY$8:$EY$228)+(IF($A$7=Nutrients!$B$8,Nutrients!$EY$8,Nutrients!$EY$9)*AI$7)+(((IF($A$8=Nutrients!$B$79,Nutrients!$EY$79,(IF($A$8=Nutrients!$B$77,Nutrients!$EY$77,Nutrients!$EY$78)))))*AI$8))","v":7500},null,{"$f":"(SUMPRODUCT(AK$9:AK$229,Nutrients!$EY$8:$EY$228)+(IF($A$7=Nutrients!$B$8,Nutrients!$EY$8,Nutrients!$EY$9)*AK$7)+(((IF($A$8=Nutrients!$B$79,Nutrients!$EY$79,(IF($A$8=Nutrients!$B$77,Nutrients!$EY$77,Nutrients!$EY$78)))))*AK$8))","v":15000},{"$f":"(SUMPRODUCT(AL$9:AL$229,Nutrients!$EY$8:$EY$228)+(IF($A$7=Nutrients!$B$8,Nutrients!$EY$8,Nutrients!$EY$9)*AL$7)+(((IF($A$8=Nutrients!$B$79,Nutrients!$EY$79,(IF($A$8=Nutrients!$B$77,Nutrients!$EY$77,Nutrients!$EY$78)))))*AL$8))","v":15000},{"$f":"(SUMPRODUCT(AM$9:AM$229,Nutrients!$EY$8:$EY$228)+(IF($A$7=Nutrients!$B$8,Nutrients!$EY$8,Nutrients!$EY$9)*AM$7)+(((IF($A$8=Nutrients!$B$79,Nutrients!$EY$79,(IF($A$8=Nutrients!$B$77,Nutrients!$EY$77,Nutrients!$EY$78)))))*AM$8))","v":12500},{"$f":"(SUMPRODUCT(AN$9:AN$229,Nutrients!$EY$8:$EY$228)+(IF($A$7=Nutrients!$B$8,Nutrients!$EY$8,Nutrients!$EY$9)*AN$7)+(((IF($A$8=Nutrients!$B$79,Nutrients!$EY$79,(IF($A$8=Nutrients!$B$77,Nutrients!$EY$77,Nutrients!$EY$78)))))*AN$8))","v":10000},{"$f":"(SUMPRODUCT(AO$9:AO$229,Nutrients!$EY$8:$EY$228)+(IF($A$7=Nutrients!$B$8,Nutrients!$EY$8,Nutrients!$EY$9)*AO$7)+(((IF($A$8=Nutrients!$B$79,Nutrients!$EY$79,(IF($A$8=Nutrients!$B$77,Nutrients!$EY$77,Nutrients!$EY$78)))))*AO$8))","v":7500},{"$f":"(SUMPRODUCT(AP$9:AP$229,Nutrients!$EY$8:$EY$228)+(IF($A$7=Nutrients!$B$8,Nutrients!$EY$8,Nutrients!$EY$9)*AP$7)+(((IF($A$8=Nutrients!$B$79,Nutrients!$EY$79,(IF($A$8=Nutrients!$B$77,Nutrients!$EY$77,Nutrients!$EY$78)))))*AP$8))","v":7500},null,{"$f":"(SUMPRODUCT(AR$9:AR$229,Nutrients!$EY$8:$EY$228)+(IF($A$7=Nutrients!$B$8,Nutrients!$EY$8,Nutrients!$EY$9)*AR$7)+(((IF($A$8=Nutrients!$B$79,Nutrients!$EY$79,(IF($A$8=Nutrients!$B$77,Nutrients!$EY$77,Nutrients!$EY$78)))))*AR$8))","v":15000},{"$f":"(SUMPRODUCT(AS$9:AS$229,Nutrients!$EY$8:$EY$228)+(IF($A$7=Nutrients!$B$8,Nutrients!$EY$8,Nutrients!$EY$9)*AS$7)+(((IF($A$8=Nutrients!$B$79,Nutrients!$EY$79,(IF($A$8=Nutrients!$B$77,Nutrients!$EY$77,Nutrients!$EY$78)))))*AS$8))","v":15000},{"$f":"(SUMPRODUCT(AT$9:AT$229,Nutrients!$EY$8:$EY$228)+(IF($A$7=Nutrients!$B$8,Nutrients!$EY$8,Nutrients!$EY$9)*AT$7)+(((IF($A$8=Nutrients!$B$79,Nutrients!$EY$79,(IF($A$8=Nutrients!$B$77,Nutrients!$EY$77,Nutrients!$EY$78)))))*AT$8))","v":12500},{"$f":"(SUMPRODUCT(AU$9:AU$229,Nutrients!$EY$8:$EY$228)+(IF($A$7=Nutrients!$B$8,Nutrients!$EY$8,Nutrients!$EY$9)*AU$7)+(((IF($A$8=Nutrients!$B$79,Nutrients!$EY$79,(IF($A$8=Nutrients!$B$77,Nutrients!$EY$77,Nutrients!$EY$78)))))*AU$8))","v":10000},{"$f":"(SUMPRODUCT(AV$9:AV$229,Nutrients!$EY$8:$EY$228)+(IF($A$7=Nutrients!$B$8,Nutrients!$EY$8,Nutrients!$EY$9)*AV$7)+(((IF($A$8=Nutrients!$B$79,Nutrients!$EY$79,(IF($A$8=Nutrients!$B$77,Nutrients!$EY$77,Nutrients!$EY$78)))))*AV$8))","v":7500},{"$f":"(SUMPRODUCT(AW$9:AW$229,Nutrients!$EY$8:$EY$228)+(IF($A$7=Nutrients!$B$8,Nutrients!$EY$8,Nutrients!$EY$9)*AW$7)+(((IF($A$8=Nutrients!$B$79,Nutrients!$EY$79,(IF($A$8=Nutrients!$B$77,Nutrients!$EY$77,Nutrients!$EY$78)))))*AW$8))","v":7500}]
["  Riboflavin, mg/ton",{"$f":"(SUMPRODUCT(B$9:B$229,Nutrients!$EZ$8:$EZ$228)+(IF($A$7=Nutrients!$B$8,Nutrients!$EZ$8,Nutrients!$EZ$9)*B$7)+(((IF($A$8=Nutrients!$B$79,Nutrients!$EZ$79,(IF($A$8=Nutrients!$B$77,Nutrients!$EZ$77,Nutrients!$EZ$78)))))*B$8))","v":4500},{"$f":"(SUMPRODUCT(C$9:C$229,Nutrients!$EZ$8:$EZ$228)+(IF($A$7=Nutrients!$B$8,Nutrients!$EZ$8,Nutrients!$EZ$9)*C$7)+(((IF($A$8=Nutrients!$B$79,Nutrients!$EZ$79,(IF($A$8=Nutrients!$B$77,Nutrients!$EZ$77,Nutrients!$EZ$78)))))*C$8))","v":4500},{"$f":"(SUMPRODUCT(D$9:D$229,Nutrients!$EZ$8:$EZ$228)+(IF($A$7=Nutrients!$B$8,Nutrients!$EZ$8,Nutrients!$EZ$9)*D$7)+(((IF($A$8=Nutrients!$B$79,Nutrients!$EZ$79,(IF($A$8=Nutrients!$B$77,Nutrients!$EZ$77,Nutrients!$EZ$78)))))*D$8))","v":3750},{"$f":"(SUMPRODUCT(E$9:E$229,Nutrients!$EZ$8:$EZ$228)+(IF($A$7=Nutrients!$B$8,Nutrients!$EZ$8,Nutrients!$EZ$9)*E$7)+(((IF($A$8=Nutrients!$B$79,Nutrients!$EZ$79,(IF($A$8=Nutrients!$B$77,Nutrients!$EZ$77,Nutrients!$EZ$78)))))*E$8))","v":3000},{"$f":"(SUMPRODUCT(F$9:F$229,Nutrients!$EZ$8:$EZ$228)+(IF($A$7=Nutrients!$B$8,Nutrients!$EZ$8,Nutrients!$EZ$9)*F$7)+(((IF($A$8=Nutrients!$B$79,Nutrients!$EZ$79,(IF($A$8=Nutrients!$B$77,Nutrients!$EZ$77,Nutrients!$EZ$78)))))*F$8))","v":2250},{"$f":"(SUMPRODUCT(G$9:G$229,Nutrients!$EZ$8:$EZ$228)+(IF($A$7=Nutrients!$B$8,Nutrients!$EZ$8,Nutrients!$EZ$9)*G$7)+(((IF($A$8=Nutrients!$B$79,Nutrients!$EZ$79,(IF($A$8=Nutrients!$B$77,Nutrients!$EZ$77,Nutrients!$EZ$78)))))*G$8))","v":2250},null,{"$f":"(SUMPRODUCT(I$9:I$229,Nutrients!$EZ$8:$EZ$228)+(IF($A$7=Nutrients!$B$8,Nutrients!$EZ$8,Nutrients!$EZ$9)*I$7)+(((IF($A$8=Nutrients!$B$79,Nutrients!$EZ$79,(IF($A$8=Nutrients!$B$77,Nutrients!$EZ$77,Nutrients!$EZ$78)))))*I$8))","v":4500},{"$f":"(SUMPRODUCT(J$9:J$229,Nutrients!$EZ$8:$EZ$228)+(IF($A$7=Nutrients!$B$8,Nutrients!$EZ$8,Nutrients!$EZ$9)*J$7)+(((IF($A$8=Nutrients!$B$79,Nutrients!$EZ$79,(IF($A$8=Nutrients!$B$77,Nutrients!$EZ$77,Nutrients!$EZ$78)))))*J$8))","v":4500},{"$f":"(SUMPRODUCT(K$9:K$229,Nutrients!$EZ$8:$EZ$228)+(IF($A$7=Nutrients!$B$8,Nutrients!$EZ$8,Nutrients!$EZ$9)*K$7)+(((IF($A$8=Nutrients!$B$79,Nutrients!$EZ$79,(IF($A$8=Nutrients!$B$77,Nutrients!$EZ$77,Nutrients!$EZ$78)))))*K$8))","v":3750},{"$f":"(SUMPRODUCT(L$9:L$229,Nutrients!$EZ$8:$EZ$228)+(IF($A$7=Nutrients!$B$8,Nutrients!$EZ$8,Nutrients!$EZ$9)*L$7)+(((IF($A$8=Nutrients!$B$79,Nutrients!$EZ$79,(IF($A$8=Nutrients!$B$77,Nutrients!$EZ$77,Nutrients!$EZ$78)))))*L$8))","v":3000},{"$f":"(SUMPRODUCT(M$9:M$229,Nutrients!$EZ$8:$EZ$228)+(IF($A$7=Nutrients!$B$8,Nutrients!$EZ$8,Nutrients!$EZ$9)*M$7)+(((IF($A$8=Nutrients!$B$79,Nutrients!$EZ$79,(IF($A$8=Nutrients!$B$77,Nutrients!$EZ$77,Nutrients!$EZ$78)))))*M$8))","v":2250},{"$f":"(SUMPRODUCT(N$9:N$229,Nutrients!$EZ$8:$EZ$228)+(IF($A$7=Nutrients!$B$8,Nutrients!$EZ$8,Nutrients!$EZ$9)*N$7)+(((IF($A$8=Nutrients!$B$79,Nutrients!$EZ$79,(IF($A$8=Nutrients!$B$77,Nutrients!$EZ$77,Nutrients!$EZ$78)))))*N$8))","v":2250},null,{"$f":"(SUMPRODUCT(P$9:P$229,Nutrients!$EZ$8:$EZ$228)+(IF($A$7=Nutrients!$B$8,Nutrients!$EZ$8,Nutrients!$EZ$9)*P$7)+(((IF($A$8=Nutrients!$B$79,Nutrients!$EZ$79,(IF($A$8=Nutrients!$B$77,Nutrients!$EZ$77,Nutrients!$EZ$78)))))*P$8))","v":4500},{"$f":"(SUMPRODUCT(Q$9:Q$229,Nutrients!$EZ$8:$EZ$228)+(IF($A$7=Nutrients!$B$8,Nutrients!$EZ$8,Nutrients!$EZ$9)*Q$7)+(((IF($A$8=Nutrients!$B$79,Nutrients!$EZ$79,(IF($A$8=Nutrients!$B$77,Nutrients!$EZ$77,Nutrients!$EZ$78)))))*Q$8))","v":4500},{"$f":"(SUMPRODUCT(R$9:R$229,Nutrients!$EZ$8:$EZ$228)+(IF($A$7=Nutrients!$B$8,Nutrients!$EZ$8,Nutrients!$EZ$9)*R$7)+(((IF($A$8=Nutrients!$B$79,Nutrients!$EZ$79,(IF($A$8=Nutrients!$B$77,Nutrients!$EZ$77,Nutrients!$EZ$78)))))*R$8))","v":3750},{"$f":"(SUMPRODUCT(S$9:S$229,Nutrients!$EZ$8:$EZ$228)+(IF($A$7=Nutrients!$B$8,Nutrients!$EZ$8,Nutrients!$EZ$9)*S$7)+(((IF($A$8=Nutrients!$B$79,Nutrients!$EZ$79,(IF($A$8=Nutrients!$B$77,Nutrients!$EZ$77,Nutrients!$EZ$78)))))*S$8))","v":3000},{"$f":"(SUMPRODUCT(T$9:T$229,Nutrients!$EZ$8:$EZ$228)+(IF($A$7=Nutrients!$B$8,Nutrients!$EZ$8,Nutrients!$EZ$9)*T$7)+(((IF($A$8=Nutrients!$B$79,Nutrients!$EZ$79,(IF($A$8=Nutrients!$B$77,Nutrients!$EZ$77,Nutrients!$EZ$78)))))*T$8))","v":2250},{"$f":"(SUMPRODUCT(U$9:U$229,Nutrients!$EZ$8:$EZ$228)+(IF($A$7=Nutrients!$B$8,Nutrients!$EZ$8,Nutrients!$EZ$9)*U$7)+(((IF($A$8=Nutrients!$B$79,Nutrients!$EZ$79,(IF($A$8=Nutrients!$B$77,Nutrients!$EZ$77,Nutrients!$EZ$78)))))*U$8))","v":2250},null,{"$f":"(SUMPRODUCT(W$9:W$229,Nutrients!$EZ$8:$EZ$228)+(IF($A$7=Nutrients!$B$8,Nutrients!$EZ$8,Nutrients!$EZ$9)*W$7)+(((IF($A$8=Nutrients!$B$79,Nutrients!$EZ$79,(IF($A$8=Nutrients!$B$77,Nutrients!$EZ$77,Nutrients!$EZ$78)))))*W$8))","v":4500},{"$f":"(SUMPRODUCT(X$9:X$229,Nutrients!$EZ$8:$EZ$228)+(IF($A$7=Nutrients!$B$8,Nutrients!$EZ$8,Nutrients!$EZ$9)*X$7)+(((IF($A$8=Nutrients!$B$79,Nutrients!$EZ$79,(IF($A$8=Nutrients!$B$77,Nutrients!$EZ$77,Nutrients!$EZ$78)))))*X$8))","v":4500},{"$f":"(SUMPRODUCT(Y$9:Y$229,Nutrients!$EZ$8:$EZ$228)+(IF($A$7=Nutrients!$B$8,Nutrients!$EZ$8,Nutrients!$EZ$9)*Y$7)+(((IF($A$8=Nutrients!$B$79,Nutrients!$EZ$79,(IF($A$8=Nutrients!$B$77,Nutrients!$EZ$77,Nutrients!$EZ$78)))))*Y$8))","v":3750},{"$f":"(SUMPRODUCT(Z$9:Z$229,Nutrients!$EZ$8:$EZ$228)+(IF($A$7=Nutrients!$B$8,Nutrients!$EZ$8,Nutrients!$EZ$9)*Z$7)+(((IF($A$8=Nutrients!$B$79,Nutrients!$EZ$79,(IF($A$8=Nutrients!$B$77,Nutrients!$EZ$77,Nutrients!$EZ$78)))))*Z$8))","v":3000},{"$f":"(SUMPRODUCT(AA$9:AA$229,Nutrients!$EZ$8:$EZ$228)+(IF($A$7=Nutrients!$B$8,Nutrients!$EZ$8,Nutrients!$EZ$9)*AA$7)+(((IF($A$8=Nutrients!$B$79,Nutrients!$EZ$79,(IF($A$8=Nutrients!$B$77,Nutrients!$EZ$77,Nutrients!$EZ$78)))))*AA$8))","v":2250},{"$f":"(SUMPRODUCT(AB$9:AB$229,Nutrients!$EZ$8:$EZ$228)+(IF($A$7=Nutrients!$B$8,Nutrients!$EZ$8,Nutrients!$EZ$9)*AB$7)+(((IF($A$8=Nutrients!$B$79,Nutrients!$EZ$79,(IF($A$8=Nutrients!$B$77,Nutrients!$EZ$77,Nutrients!$EZ$78)))))*AB$8))","v":2250},null,{"$f":"(SUMPRODUCT(AD$9:AD$229,Nutrients!$EZ$8:$EZ$228)+(IF($A$7=Nutrients!$B$8,Nutrients!$EZ$8,Nutrients!$EZ$9)*AD$7)+(((IF($A$8=Nutrients!$B$79,Nutrients!$EZ$79,(IF($A$8=Nutrients!$B$77,Nutrients!$EZ$77,Nutrients!$EZ$78)))))*AD$8))","v":4500},{"$f":"(SUMPRODUCT(AE$9:AE$229,Nutrients!$EZ$8:$EZ$228)+(IF($A$7=Nutrients!$B$8,Nutrients!$EZ$8,Nutrients!$EZ$9)*AE$7)+(((IF($A$8=Nutrients!$B$79,Nutrients!$EZ$79,(IF($A$8=Nutrients!$B$77,Nutrients!$EZ$77,Nutrients!$EZ$78)))))*AE$8))","v":4500},{"$f":"(SUMPRODUCT(AF$9:AF$229,Nutrients!$EZ$8:$EZ$228)+(IF($A$7=Nutrients!$B$8,Nutrients!$EZ$8,Nutrients!$EZ$9)*AF$7)+(((IF($A$8=Nutrients!$B$79,Nutrients!$EZ$79,(IF($A$8=Nutrients!$B$77,Nutrients!$EZ$77,Nutrients!$EZ$78)))))*AF$8))","v":3750},{"$f":"(SUMPRODUCT(AG$9:AG$229,Nutrients!$EZ$8:$EZ$228)+(IF($A$7=Nutrients!$B$8,Nutrients!$EZ$8,Nutrients!$EZ$9)*AG$7)+(((IF($A$8=Nutrients!$B$79,Nutrients!$EZ$79,(IF($A$8=Nutrients!$B$77,Nutrients!$EZ$77,Nutrients!$EZ$78)))))*AG$8))","v":3000},{"$f":"(SUMPRODUCT(AH$9:AH$229,Nutrients!$EZ$8:$EZ$228)+(IF($A$7=Nutrients!$B$8,Nutrients!$EZ$8,Nutrients!$EZ$9)*AH$7)+(((IF($A$8=Nutrients!$B$79,Nutrients!$EZ$79,(IF($A$8=Nutrients!$B$77,Nutrients!$EZ$77,Nutrients!$EZ$78)))))*AH$8))","v":2250},{"$f":"(SUMPRODUCT(AI$9:AI$229,Nutrients!$EZ$8:$EZ$228)+(IF($A$7=Nutrients!$B$8,Nutrients!$EZ$8,Nutrients!$EZ$9)*AI$7)+(((IF($A$8=Nutrients!$B$79,Nutrients!$EZ$79,(IF($A$8=Nutrients!$B$77,Nutrients!$EZ$77,Nutrients!$EZ$78)))))*AI$8))","v":2250},null,{"$f":"(SUMPRODUCT(AK$9:AK$229,Nutrients!$EZ$8:$EZ$228)+(IF($A$7=Nutrients!$B$8,Nutrients!$EZ$8,Nutrients!$EZ$9)*AK$7)+(((IF($A$8=Nutrients!$B$79,Nutrients!$EZ$79,(IF($A$8=Nutrients!$B$77,Nutrients!$EZ$77,Nutrients!$EZ$78)))))*AK$8))","v":4500},{"$f":"(SUMPRODUCT(AL$9:AL$229,Nutrients!$EZ$8:$EZ$228)+(IF($A$7=Nutrients!$B$8,Nutrients!$EZ$8,Nutrients!$EZ$9)*AL$7)+(((IF($A$8=Nutrients!$B$79,Nutrients!$EZ$79,(IF($A$8=Nutrients!$B$77,Nutrients!$EZ$77,Nutrients!$EZ$78)))))*AL$8))","v":4500},{"$f":"(SUMPRODUCT(AM$9:AM$229,Nutrients!$EZ$8:$EZ$228)+(IF($A$7=Nutrients!$B$8,Nutrients!$EZ$8,Nutrients!$EZ$9)*AM$7)+(((IF($A$8=Nutrients!$B$79,Nutrients!$EZ$79,(IF($A$8=Nutrients!$B$77,Nutrients!$EZ$77,Nutrients!$EZ$78)))))*AM$8))","v":3750},{"$f":"(SUMPRODUCT(AN$9:AN$229,Nutrients!$EZ$8:$EZ$228)+(IF($A$7=Nutrients!$B$8,Nutrients!$EZ$8,Nutrients!$EZ$9)*AN$7)+(((IF($A$8=Nutrients!$B$79,Nutrients!$EZ$79,(IF($A$8=Nutrients!$B$77,Nutrients!$EZ$77,Nutrients!$EZ$78)))))*AN$8))","v":3000},{"$f":"(SUMPRODUCT(AO$9:AO$229,Nutrients!$EZ$8:$EZ$228)+(IF($A$7=Nutrients!$B$8,Nutrients!$EZ$8,Nutrients!$EZ$9)*AO$7)+(((IF($A$8=Nutrients!$B$79,Nutrients!$EZ$79,(IF($A$8=Nutrients!$B$77,Nutrients!$EZ$77,Nutrients!$EZ$78)))))*AO$8))","v":2250},{"$f":"(SUMPRODUCT(AP$9:AP$229,Nutrients!$EZ$8:$EZ$228)+(IF($A$7=Nutrients!$B$8,Nutrients!$EZ$8,Nutrients!$EZ$9)*AP$7)+(((IF($A$8=Nutrients!$B$79,Nutrients!$EZ$79,(IF($A$8=Nutrients!$B$77,Nutrients!$EZ$77,Nutrients!$EZ$78)))))*AP$8))","v":2250},null,{"$f":"(SUMPRODUCT(AR$9:AR$229,Nutrients!$EZ$8:$EZ$228)+(IF($A$7=Nutrients!$B$8,Nutrients!$EZ$8,Nutrients!$EZ$9)*AR$7)+(((IF($A$8=Nutrients!$B$79,Nutrients!$EZ$79,(IF($A$8=Nutrients!$B$77,Nutrients!$EZ$77,Nutrients!$EZ$78)))))*AR$8))","v":4500},{"$f":"(SUMPRODUCT(AS$9:AS$229,Nutrients!$EZ$8:$EZ$228)+(IF($A$7=Nutrients!$B$8,Nutrients!$EZ$8,Nutrients!$EZ$9)*AS$7)+(((IF($A$8=Nutrients!$B$79,Nutrients!$EZ$79,(IF($A$8=Nutrients!$B$77,Nutrients!$EZ$77,Nutrients!$EZ$78)))))*AS$8))","v":4500},{"$f":"(SUMPRODUCT(AT$9:AT$229,Nutrients!$EZ$8:$EZ$228)+(IF($A$7=Nutrients!$B$8,Nutrients!$EZ$8,Nutrients!$EZ$9)*AT$7)+(((IF($A$8=Nutrients!$B$79,Nutrients!$EZ$79,(IF($A$8=Nutrients!$B$77,Nutrients!$EZ$77,Nutrients!$EZ$78)))))*AT$8))","v":3750},{"$f":"(SUMPRODUCT(AU$9:AU$229,Nutrients!$EZ$8:$EZ$228)+(IF($A$7=Nutrients!$B$8,Nutrients!$EZ$8,Nutrients!$EZ$9)*AU$7)+(((IF($A$8=Nutrients!$B$79,Nutrients!$EZ$79,(IF($A$8=Nutrients!$B$77,Nutrients!$EZ$77,Nutrients!$EZ$78)))))*AU$8))","v":3000},{"$f":"(SUMPRODUCT(AV$9:AV$229,Nutrients!$EZ$8:$EZ$228)+(IF($A$7=Nutrients!$B$8,Nutrients!$EZ$8,Nutrients!$EZ$9)*AV$7)+(((IF($A$8=Nutrients!$B$79,Nutrients!$EZ$79,(IF($A$8=Nutrients!$B$77,Nutrients!$EZ$77,Nutrients!$EZ$78)))))*AV$8))","v":2250},{"$f":"(SUMPRODUCT(AW$9:AW$229,Nutrients!$EZ$8:$EZ$228)+(IF($A$7=Nutrients!$B$8,Nutrients!$EZ$8,Nutrients!$EZ$9)*AW$7)+(((IF($A$8=Nutrients!$B$79,Nutrients!$EZ$79,(IF($A$8=Nutrients!$B$77,Nutrients!$EZ$77,Nutrients!$EZ$78)))))*AW$8))","v":2250}]
["  Biotin, mg/ton",{"$f":"(SUMPRODUCT(B$9:B$229,Nutrients!$FA$8:$FA$228)+(IF($A$7=Nutrients!$B$8,Nutrients!$FA$8,Nutrients!$FA$9)*B$7)+(((IF($A$8=Nutrients!$B$79,Nutrients!$FA$79,(IF($A$8=Nutrients!$B$77,Nutrients!$FA$77,Nutrients!$FA$78)))))*B$8))","v":0},{"$f":"(SUMPRODUCT(C$9:C$229,Nutrients!$FA$8:$FA$228)+(IF($A$7=Nutrients!$B$8,Nutrients!$FA$8,Nutrients!$FA$9)*C$7)+(((IF($A$8=Nutrients!$B$79,Nutrients!$FA$79,(IF($A$8=Nutrients!$B$77,Nutrients!$FA$77,Nutrients!$FA$78)))))*C$8))","v":0},{"$f":"(SUMPRODUCT(D$9:D$229,Nutrients!$FA$8:$FA$228)+(IF($A$7=Nutrients!$B$8,Nutrients!$FA$8,Nutrients!$FA$9)*D$7)+(((IF($A$8=Nutrients!$B$79,Nutrients!$FA$79,(IF($A$8=Nutrients!$B$77,Nutrients!$FA$77,Nutrients!$FA$78)))))*D$8))","v":0},{"$f":"(SUMPRODUCT(E$9:E$229,Nutrients!$FA$8:$FA$228)+(IF($A$7=Nutrients!$B$8,Nutrients!$FA$8,Nutrients!$FA$9)*E$7)+(((IF($A$8=Nutrients!$B$79,Nutrients!$FA$79,(IF($A$8=Nutrients!$B$77,Nutrients!$FA$77,Nutrients!$FA$78)))))*E$8))","v":0},{"$f":"(SUMPRODUCT(F$9:F$229,Nutrients!$FA$8:$FA$228)+(IF($A$7=Nutrients!$B$8,Nutrients!$FA$8,Nutrients!$FA$9)*F$7)+(((IF($A$8=Nutrients!$B$79,Nutrients!$FA$79,(IF($A$8=Nutrients!$B$77,Nutrients!$FA$77,Nutrients!$FA$78)))))*F$8))","v":0},{"$f":"(SUMPRODUCT(G$9:G$229,Nutrients!$FA$8:$FA$228)+(IF($A$7=Nutrients!$B$8,Nutrients!$FA$8,Nutrients!$FA$9)*G$7)+(((IF($A$8=Nutrients!$B$79,Nutrients!$FA$79,(IF($A$8=Nutrients!$B$77,Nutrients!$FA$77,Nutrients!$FA$78)))))*G$8))","v":0},null,{"$f":"(SUMPRODUCT(I$9:I$229,Nutrients!$FA$8:$FA$228)+(IF($A$7=Nutrients!$B$8,Nutrients!$FA$8,Nutrients!$FA$9)*I$7)+(((IF($A$8=Nutrients!$B$79,Nutrients!$FA$79,(IF($A$8=Nutrients!$B$77,Nutrients!$FA$77,Nutrients!$FA$78)))))*I$8))","v":0},{"$f":"(SUMPRODUCT(J$9:J$229,Nutrients!$FA$8:$FA$228)+(IF($A$7=Nutrients!$B$8,Nutrients!$FA$8,Nutrients!$FA$9)*J$7)+(((IF($A$8=Nutrients!$B$79,Nutrients!$FA$79,(IF($A$8=Nutrients!$B$77,Nutrients!$FA$77,Nutrients!$FA$78)))))*J$8))","v":0},{"$f":"(SUMPRODUCT(K$9:K$229,Nutrients!$FA$8:$FA$228)+(IF($A$7=Nutrients!$B$8,Nutrients!$FA$8,Nutrients!$FA$9)*K$7)+(((IF($A$8=Nutrients!$B$79,Nutrients!$FA$79,(IF($A$8=Nutrients!$B$77,Nutrients!$FA$77,Nutrients!$FA$78)))))*K$8))","v":0},{"$f":"(SUMPRODUCT(L$9:L$229,Nutrients!$FA$8:$FA$228)+(IF($A$7=Nutrients!$B$8,Nutrients!$FA$8,Nutrients!$FA$9)*L$7)+(((IF($A$8=Nutrients!$B$79,Nutrients!$FA$79,(IF($A$8=Nutrients!$B$77,Nutrients!$FA$77,Nutrients!$FA$78)))))*L$8))","v":0},{"$f":"(SUMPRODUCT(M$9:M$229,Nutrients!$FA$8:$FA$228)+(IF($A$7=Nutrients!$B$8,Nutrients!$FA$8,Nutrients!$FA$9)*M$7)+(((IF($A$8=Nutrients!$B$79,Nutrients!$FA$79,(IF($A$8=Nutrients!$B$77,Nutrients!$FA$77,Nutrients!$FA$78)))))*M$8))","v":0},{"$f":"(SUMPRODUCT(N$9:N$229,Nutrients!$FA$8:$FA$228)+(IF($A$7=Nutrients!$B$8,Nutrients!$FA$8,Nutrients!$FA$9)*N$7)+(((IF($A$8=Nutrients!$B$79,Nutrients!$FA$79,(IF($A$8=Nutrients!$B$77,Nutrients!$FA$77,Nutrients!$FA$78)))))*N$8))","v":0},null,{"$f":"(SUMPRODUCT(P$9:P$229,Nutrients!$FA$8:$FA$228)+(IF($A$7=Nutrients!$B$8,Nutrients!$FA$8,Nutrients!$FA$9)*P$7)+(((IF($A$8=Nutrients!$B$79,Nutrients!$FA$79,(IF($A$8=Nutrients!$B$77,Nutrients!$FA$77,Nutrients!$FA$78)))))*P$8))","v":0},{"$f":"(SUMPRODUCT(Q$9:Q$229,Nutrients!$FA$8:$FA$228)+(IF($A$7=Nutrients!$B$8,Nutrients!$FA$8,Nutrients!$FA$9)*Q$7)+(((IF($A$8=Nutrients!$B$79,Nutrients!$FA$79,(IF($A$8=Nutrients!$B$77,Nutrients!$FA$77,Nutrients!$FA$78)))))*Q$8))","v":0},{"$f":"(SUMPRODUCT(R$9:R$229,Nutrients!$FA$8:$FA$228)+(IF($A$7=Nutrients!$B$8,Nutrients!$FA$8,Nutrients!$FA$9)*R$7)+(((IF($A$8=Nutrients!$B$79,Nutrients!$FA$79,(IF($A$8=Nutrients!$B$77,Nutrients!$FA$77,Nutrients!$FA$78)))))*R$8))","v":0},{"$f":"(SUMPRODUCT(S$9:S$229,Nutrients!$FA$8:$FA$228)+(IF($A$7=Nutrients!$B$8,Nutrients!$FA$8,Nutrients!$FA$9)*S$7)+(((IF($A$8=Nutrients!$B$79,Nutrients!$FA$79,(IF($A$8=Nutrients!$B$77,Nutrients!$FA$77,Nutrients!$FA$78)))))*S$8))","v":0},{"$f":"(SUMPRODUCT(T$9:T$229,Nutrients!$FA$8:$FA$228)+(IF($A$7=Nutrients!$B$8,Nutrients!$FA$8,Nutrients!$FA$9)*T$7)+(((IF($A$8=Nutrients!$B$79,Nutrients!$FA$79,(IF($A$8=Nutrients!$B$77,Nutrients!$FA$77,Nutrients!$FA$78)))))*T$8))","v":0},{"$f":"(SUMPRODUCT(U$9:U$229,Nutrients!$FA$8:$FA$228)+(IF($A$7=Nutrients!$B$8,Nutrients!$FA$8,Nutrients!$FA$9)*U$7)+(((IF($A$8=Nutrients!$B$79,Nutrients!$FA$79,(IF($A$8=Nutrients!$B$77,Nutrients!$FA$77,Nutrients!$FA$78)))))*U$8))","v":0},null,{"$f":"(SUMPRODUCT(W$9:W$229,Nutrients!$FA$8:$FA$228)+(IF($A$7=Nutrients!$B$8,Nutrients!$FA$8,Nutrients!$FA$9)*W$7)+(((IF($A$8=Nutrients!$B$79,Nutrients!$FA$79,(IF($A$8=Nutrients!$B$77,Nutrients!$FA$77,Nutrients!$FA$78)))))*W$8))","v":0},{"$f":"(SUMPRODUCT(X$9:X$229,Nutrients!$FA$8:$FA$228)+(IF($A$7=Nutrients!$B$8,Nutrients!$FA$8,Nutrients!$FA$9)*X$7)+(((IF($A$8=Nutrients!$B$79,Nutrients!$FA$79,(IF($A$8=Nutrients!$B$77,Nutrients!$FA$77,Nutrients!$FA$78)))))*X$8))","v":0},{"$f":"(SUMPRODUCT(Y$9:Y$229,Nutrients!$FA$8:$FA$228)+(IF($A$7=Nutrients!$B$8,Nutrients!$FA$8,Nutrients!$FA$9)*Y$7)+(((IF($A$8=Nutrients!$B$79,Nutrients!$FA$79,(IF($A$8=Nutrients!$B$77,Nutrients!$FA$77,Nutrients!$FA$78)))))*Y$8))","v":0},{"$f":"(SUMPRODUCT(Z$9:Z$229,Nutrients!$FA$8:$FA$228)+(IF($A$7=Nutrients!$B$8,Nutrients!$FA$8,Nutrients!$FA$9)*Z$7)+(((IF($A$8=Nutrients!$B$79,Nutrients!$FA$79,(IF($A$8=Nutrients!$B$77,Nutrients!$FA$77,Nutrients!$FA$78)))))*Z$8))","v":0},{"$f":"(SUMPRODUCT(AA$9:AA$229,Nutrients!$FA$8:$FA$228)+(IF($A$7=Nutrients!$B$8,Nutrients!$FA$8,Nutrients!$FA$9)*AA$7)+(((IF($A$8=Nutrients!$B$79,Nutrients!$FA$79,(IF($A$8=Nutrients!$B$77,Nutrients!$FA$77,Nutrients!$FA$78)))))*AA$8))","v":0},{"$f":"(SUMPRODUCT(AB$9:AB$229,Nutrients!$FA$8:$FA$228)+(IF($A$7=Nutrients!$B$8,Nutrients!$FA$8,Nutrients!$FA$9)*AB$7)+(((IF($A$8=Nutrients!$B$79,Nutrients!$FA$79,(IF($A$8=Nutrients!$B$77,Nutrients!$FA$77,Nutrients!$FA$78)))))*AB$8))","v":0},null,{"$f":"(SUMPRODUCT(AD$9:AD$229,Nutrients!$FA$8:$FA$228)+(IF($A$7=Nutrients!$B$8,Nutrients!$FA$8,Nutrients!$FA$9)*AD$7)+(((IF($A$8=Nutrients!$B$79,Nutrients!$FA$79,(IF($A$8=Nutrients!$B$77,Nutrients!$FA$77,Nutrients!$FA$78)))))*AD$8))","v":0},{"$f":"(SUMPRODUCT(AE$9:AE$229,Nutrients!$FA$8:$FA$228)+(IF($A$7=Nutrients!$B$8,Nutrients!$FA$8,Nutrients!$FA$9)*AE$7)+(((IF($A$8=Nutrients!$B$79,Nutrients!$FA$79,(IF($A$8=Nutrients!$B$77,Nutrients!$FA$77,Nutrients!$FA$78)))))*AE$8))","v":0},{"$f":"(SUMPRODUCT(AF$9:AF$229,Nutrients!$FA$8:$FA$228)+(IF($A$7=Nutrients!$B$8,Nutrients!$FA$8,Nutrients!$FA$9)*AF$7)+(((IF($A$8=Nutrients!$B$79,Nutrients!$FA$79,(IF($A$8=Nutrients!$B$77,Nutrients!$FA$77,Nutrients!$FA$78)))))*AF$8))","v":0},{"$f":"(SUMPRODUCT(AG$9:AG$229,Nutrients!$FA$8:$FA$228)+(IF($A$7=Nutrients!$B$8,Nutrients!$FA$8,Nutrients!$FA$9)*AG$7)+(((IF($A$8=Nutrients!$B$79,Nutrients!$FA$79,(IF($A$8=Nutrients!$B$77,Nutrients!$FA$77,Nutrients!$FA$78)))))*AG$8))","v":0},{"$f":"(SUMPRODUCT(AH$9:AH$229,Nutrients!$FA$8:$FA$228)+(IF($A$7=Nutrients!$B$8,Nutrients!$FA$8,Nutrients!$FA$9)*AH$7)+(((IF($A$8=Nutrients!$B$79,Nutrients!$FA$79,(IF($A$8=Nutrients!$B$77,Nutrients!$FA$77,Nutrients!$FA$78)))))*AH$8))","v":0},{"$f":"(SUMPRODUCT(AI$9:AI$229,Nutrients!$FA$8:$FA$228)+(IF($A$7=Nutrients!$B$8,Nutrients!$FA$8,Nutrients!$FA$9)*AI$7)+(((IF($A$8=Nutrients!$B$79,Nutrients!$FA$79,(IF($A$8=Nutrients!$B$77,Nutrients!$FA$77,Nutrients!$FA$78)))))*AI$8))","v":0},null,{"$f":"(SUMPRODUCT(AK$9:AK$229,Nutrients!$FA$8:$FA$228)+(IF($A$7=Nutrients!$B$8,Nutrients!$FA$8,Nutrients!$FA$9)*AK$7)+(((IF($A$8=Nutrients!$B$79,Nutrients!$FA$79,(IF($A$8=Nutrients!$B$77,Nutrients!$FA$77,Nutrients!$FA$78)))))*AK$8))","v":0},{"$f":"(SUMPRODUCT(AL$9:AL$229,Nutrients!$FA$8:$FA$228)+(IF($A$7=Nutrients!$B$8,Nutrients!$FA$8,Nutrients!$FA$9)*AL$7)+(((IF($A$8=Nutrients!$B$79,Nutrients!$FA$79,(IF($A$8=Nutrients!$B$77,Nutrients!$FA$77,Nutrients!$FA$78)))))*AL$8))","v":0},{"$f":"(SUMPRODUCT(AM$9:AM$229,Nutrients!$FA$8:$FA$228)+(IF($A$7=Nutrients!$B$8,Nutrients!$FA$8,Nutrients!$FA$9)*AM$7)+(((IF($A$8=Nutrients!$B$79,Nutrients!$FA$79,(IF($A$8=Nutrients!$B$77,Nutrients!$FA$77,Nutrients!$FA$78)))))*AM$8))","v":0},{"$f":"(SUMPRODUCT(AN$9:AN$229,Nutrients!$FA$8:$FA$228)+(IF($A$7=Nutrients!$B$8,Nutrients!$FA$8,Nutrients!$FA$9)*AN$7)+(((IF($A$8=Nutrients!$B$79,Nutrients!$FA$79,(IF($A$8=Nutrients!$B$77,Nutrients!$FA$77,Nutrients!$FA$78)))))*AN$8))","v":0},{"$f":"(SUMPRODUCT(AO$9:AO$229,Nutrients!$FA$8:$FA$228)+(IF($A$7=Nutrients!$B$8,Nutrients!$FA$8,Nutrients!$FA$9)*AO$7)+(((IF($A$8=Nutrients!$B$79,Nutrients!$FA$79,(IF($A$8=Nutrients!$B$77,Nutrients!$FA$77,Nutrients!$FA$78)))))*AO$8))","v":0},{"$f":"(SUMPRODUCT(AP$9:AP$229,Nutrients!$FA$8:$FA$228)+(IF($A$7=Nutrients!$B$8,Nutrients!$FA$8,Nutrients!$FA$9)*AP$7)+(((IF($A$8=Nutrients!$B$79,Nutrients!$FA$79,(IF($A$8=Nutrients!$B$77,Nutrients!$FA$77,Nutrients!$FA$78)))))*AP$8))","v":0},null,{"$f":"(SUMPRODUCT(AR$9:AR$229,Nutrients!$FA$8:$FA$228)+(IF($A$7=Nutrients!$B$8,Nutrients!$FA$8,Nutrients!$FA$9)*AR$7)+(((IF($A$8=Nutrients!$B$79,Nutrients!$FA$79,(IF($A$8=Nutrients!$B$77,Nutrients!$FA$77,Nutrients!$FA$78)))))*AR$8))","v":0},{"$f":"(SUMPRODUCT(AS$9:AS$229,Nutrients!$FA$8:$FA$228)+(IF($A$7=Nutrients!$B$8,Nutrients!$FA$8,Nutrients!$FA$9)*AS$7)+(((IF($A$8=Nutrients!$B$79,Nutrients!$FA$79,(IF($A$8=Nutrients!$B$77,Nutrients!$FA$77,Nutrients!$FA$78)))))*AS$8))","v":0},{"$f":"(SUMPRODUCT(AT$9:AT$229,Nutrients!$FA$8:$FA$228)+(IF($A$7=Nutrients!$B$8,Nutrients!$FA$8,Nutrients!$FA$9)*AT$7)+(((IF($A$8=Nutrients!$B$79,Nutrients!$FA$79,(IF($A$8=Nutrients!$B$77,Nutrients!$FA$77,Nutrients!$FA$78)))))*AT$8))","v":0},{"$f":"(SUMPRODUCT(AU$9:AU$229,Nutrients!$FA$8:$FA$228)+(IF($A$7=Nutrients!$B$8,Nutrients!$FA$8,Nutrients!$FA$9)*AU$7)+(((IF($A$8=Nutrients!$B$79,Nutrients!$FA$79,(IF($A$8=Nutrients!$B$77,Nutrients!$FA$77,Nutrients!$FA$78)))))*AU$8))","v":0},{"$f":"(SUMPRODUCT(AV$9:AV$229,Nutrients!$FA$8:$FA$228)+(IF($A$7=Nutrients!$B$8,Nutrients!$FA$8,Nutrients!$FA$9)*AV$7)+(((IF($A$8=Nutrients!$B$79,Nutrients!$FA$79,(IF($A$8=Nutrients!$B$77,Nutrients!$FA$77,Nutrients!$FA$78)))))*AV$8))","v":0},{"$f":"(SUMPRODUCT(AW$9:AW$229,Nutrients!$FA$8:$FA$228)+(IF($A$7=Nutrients!$B$8,Nutrients!$FA$8,Nutrients!$FA$9)*AW$7)+(((IF($A$8=Nutrients!$B$79,Nutrients!$FA$79,(IF($A$8=Nutrients!$B$77,Nutrients!$FA$77,Nutrients!$FA$78)))))*AW$8))","v":0}]
["  Folic acid, mg/ton",{"$f":"(SUMPRODUCT(B$9:B$229,Nutrients!$FB$8:$FB$228)+(IF($A$7=Nutrients!$B$8,Nutrients!$FB$8,Nutrients!$FB$9)*B$7)+(((IF($A$8=Nutrients!$B$79,Nutrients!$FB$79,(IF($A$8=Nutrients!$B$77,Nutrients!$FB$77,Nutrients!$FB$78)))))*B$8))","v":0},{"$f":"(SUMPRODUCT(C$9:C$229,Nutrients!$FB$8:$FB$228)+(IF($A$7=Nutrients!$B$8,Nutrients!$FB$8,Nutrients!$FB$9)*C$7)+(((IF($A$8=Nutrients!$B$79,Nutrients!$FB$79,(IF($A$8=Nutrients!$B$77,Nutrients!$FB$77,Nutrients!$FB$78)))))*C$8))","v":0},{"$f":"(SUMPRODUCT(D$9:D$229,Nutrients!$FB$8:$FB$228)+(IF($A$7=Nutrients!$B$8,Nutrients!$FB$8,Nutrients!$FB$9)*D$7)+(((IF($A$8=Nutrients!$B$79,Nutrients!$FB$79,(IF($A$8=Nutrients!$B$77,Nutrients!$FB$77,Nutrients!$FB$78)))))*D$8))","v":0},{"$f":"(SUMPRODUCT(E$9:E$229,Nutrients!$FB$8:$FB$228)+(IF($A$7=Nutrients!$B$8,Nutrients!$FB$8,Nutrients!$FB$9)*E$7)+(((IF($A$8=Nutrients!$B$79,Nutrients!$FB$79,(IF($A$8=Nutrients!$B$77,Nutrients!$FB$77,Nutrients!$FB$78)))))*E$8))","v":0},{"$f":"(SUMPRODUCT(F$9:F$229,Nutrients!$FB$8:$FB$228)+(IF($A$7=Nutrients!$B$8,Nutrients!$FB$8,Nutrients!$FB$9)*F$7)+(((IF($A$8=Nutrients!$B$79,Nutrients!$FB$79,(IF($A$8=Nutrients!$B$77,Nutrients!$FB$77,Nutrients!$FB$78)))))*F$8))","v":0},{"$f":"(SUMPRODUCT(G$9:G$229,Nutrients!$FB$8:$FB$228)+(IF($A$7=Nutrients!$B$8,Nutrients!$FB$8,Nutrients!$FB$9)*G$7)+(((IF($A$8=Nutrients!$B$79,Nutrients!$FB$79,(IF($A$8=Nutrients!$B$77,Nutrients!$FB$77,Nutrients!$FB$78)))))*G$8))","v":0},null,{"$f":"(SUMPRODUCT(I$9:I$229,Nutrients!$FB$8:$FB$228)+(IF($A$7=Nutrients!$B$8,Nutrients!$FB$8,Nutrients!$FB$9)*I$7)+(((IF($A$8=Nutrients!$B$79,Nutrients!$FB$79,(IF($A$8=Nutrients!$B$77,Nutrients!$FB$77,Nutrients!$FB$78)))))*I$8))","v":0},{"$f":"(SUMPRODUCT(J$9:J$229,Nutrients!$FB$8:$FB$228)+(IF($A$7=Nutrients!$B$8,Nutrients!$FB$8,Nutrients!$FB$9)*J$7)+(((IF($A$8=Nutrients!$B$79,Nutrients!$FB$79,(IF($A$8=Nutrients!$B$77,Nutrients!$FB$77,Nutrients!$FB$78)))))*J$8))","v":0},{"$f":"(SUMPRODUCT(K$9:K$229,Nutrients!$FB$8:$FB$228)+(IF($A$7=Nutrients!$B$8,Nutrients!$FB$8,Nutrients!$FB$9)*K$7)+(((IF($A$8=Nutrients!$B$79,Nutrients!$FB$79,(IF($A$8=Nutrients!$B$77,Nutrients!$FB$77,Nutrients!$FB$78)))))*K$8))","v":0},{"$f":"(SUMPRODUCT(L$9:L$229,Nutrients!$FB$8:$FB$228)+(IF($A$7=Nutrients!$B$8,Nutrients!$FB$8,Nutrients!$FB$9)*L$7)+(((IF($A$8=Nutrients!$B$79,Nutrients!$FB$79,(IF($A$8=Nutrients!$B$77,Nutrients!$FB$77,Nutrients!$FB$78)))))*L$8))","v":0},{"$f":"(SUMPRODUCT(M$9:M$229,Nutrients!$FB$8:$FB$228)+(IF($A$7=Nutrients!$B$8,Nutrients!$FB$8,Nutrients!$FB$9)*M$7)+(((IF($A$8=Nutrients!$B$79,Nutrients!$FB$79,(IF($A$8=Nutrients!$B$77,Nutrients!$FB$77,Nutrients!$FB$78)))))*M$8))","v":0},{"$f":"(SUMPRODUCT(N$9:N$229,Nutrients!$FB$8:$FB$228)+(IF($A$7=Nutrients!$B$8,Nutrients!$FB$8,Nutrients!$FB$9)*N$7)+(((IF($A$8=Nutrients!$B$79,Nutrients!$FB$79,(IF($A$8=Nutrients!$B$77,Nutrients!$FB$77,Nutrients!$FB$78)))))*N$8))","v":0},null,{"$f":"(SUMPRODUCT(P$9:P$229,Nutrients!$FB$8:$FB$228)+(IF($A$7=Nutrients!$B$8,Nutrients!$FB$8,Nutrients!$FB$9)*P$7)+(((IF($A$8=Nutrients!$B$79,Nutrients!$FB$79,(IF($A$8=Nutrients!$B$77,Nutrients!$FB$77,Nutrients!$FB$78)))))*P$8))","v":0},{"$f":"(SUMPRODUCT(Q$9:Q$229,Nutrients!$FB$8:$FB$228)+(IF($A$7=Nutrients!$B$8,Nutrients!$FB$8,Nutrients!$FB$9)*Q$7)+(((IF($A$8=Nutrients!$B$79,Nutrients!$FB$79,(IF($A$8=Nutrients!$B$77,Nutrients!$FB$77,Nutrients!$FB$78)))))*Q$8))","v":0},{"$f":"(SUMPRODUCT(R$9:R$229,Nutrients!$FB$8:$FB$228)+(IF($A$7=Nutrients!$B$8,Nutrients!$FB$8,Nutrients!$FB$9)*R$7)+(((IF($A$8=Nutrients!$B$79,Nutrients!$FB$79,(IF($A$8=Nutrients!$B$77,Nutrients!$FB$77,Nutrients!$FB$78)))))*R$8))","v":0},{"$f":"(SUMPRODUCT(S$9:S$229,Nutrients!$FB$8:$FB$228)+(IF($A$7=Nutrients!$B$8,Nutrients!$FB$8,Nutrients!$FB$9)*S$7)+(((IF($A$8=Nutrients!$B$79,Nutrients!$FB$79,(IF($A$8=Nutrients!$B$77,Nutrients!$FB$77,Nutrients!$FB$78)))))*S$8))","v":0},{"$f":"(SUMPRODUCT(T$9:T$229,Nutrients!$FB$8:$FB$228)+(IF($A$7=Nutrients!$B$8,Nutrients!$FB$8,Nutrients!$FB$9)*T$7)+(((IF($A$8=Nutrients!$B$79,Nutrients!$FB$79,(IF($A$8=Nutrients!$B$77,Nutrients!$FB$77,Nutrients!$FB$78)))))*T$8))","v":0},{"$f":"(SUMPRODUCT(U$9:U$229,Nutrients!$FB$8:$FB$228)+(IF($A$7=Nutrients!$B$8,Nutrients!$FB$8,Nutrients!$FB$9)*U$7)+(((IF($A$8=Nutrients!$B$79,Nutrients!$FB$79,(IF($A$8=Nutrients!$B$77,Nutrients!$FB$77,Nutrients!$FB$78)))))*U$8))","v":0},null,{"$f":"(SUMPRODUCT(W$9:W$229,Nutrients!$FB$8:$FB$228)+(IF($A$7=Nutrients!$B$8,Nutrients!$FB$8,Nutrients!$FB$9)*W$7)+(((IF($A$8=Nutrients!$B$79,Nutrients!$FB$79,(IF($A$8=Nutrients!$B$77,Nutrients!$FB$77,Nutrients!$FB$78)))))*W$8))","v":0},{"$f":"(SUMPRODUCT(X$9:X$229,Nutrients!$FB$8:$FB$228)+(IF($A$7=Nutrients!$B$8,Nutrients!$FB$8,Nutrients!$FB$9)*X$7)+(((IF($A$8=Nutrients!$B$79,Nutrients!$FB$79,(IF($A$8=Nutrients!$B$77,Nutrients!$FB$77,Nutrients!$FB$78)))))*X$8))","v":0},{"$f":"(SUMPRODUCT(Y$9:Y$229,Nutrients!$FB$8:$FB$228)+(IF($A$7=Nutrients!$B$8,Nutrients!$FB$8,Nutrients!$FB$9)*Y$7)+(((IF($A$8=Nutrients!$B$79,Nutrients!$FB$79,(IF($A$8=Nutrients!$B$77,Nutrients!$FB$77,Nutrients!$FB$78)))))*Y$8))","v":0},{"$f":"(SUMPRODUCT(Z$9:Z$229,Nutrients!$FB$8:$FB$228)+(IF($A$7=Nutrients!$B$8,Nutrients!$FB$8,Nutrients!$FB$9)*Z$7)+(((IF($A$8=Nutrients!$B$79,Nutrients!$FB$79,(IF($A$8=Nutrients!$B$77,Nutrients!$FB$77,Nutrients!$FB$78)))))*Z$8))","v":0},{"$f":"(SUMPRODUCT(AA$9:AA$229,Nutrients!$FB$8:$FB$228)+(IF($A$7=Nutrients!$B$8,Nutrients!$FB$8,Nutrients!$FB$9)*AA$7)+(((IF($A$8=Nutrients!$B$79,Nutrients!$FB$79,(IF($A$8=Nutrients!$B$77,Nutrients!$FB$77,Nutrients!$FB$78)))))*AA$8))","v":0},{"$f":"(SUMPRODUCT(AB$9:AB$229,Nutrients!$FB$8:$FB$228)+(IF($A$7=Nutrients!$B$8,Nutrients!$FB$8,Nutrients!$FB$9)*AB$7)+(((IF($A$8=Nutrients!$B$79,Nutrients!$FB$79,(IF($A$8=Nutrients!$B$77,Nutrients!$FB$77,Nutrients!$FB$78)))))*AB$8))","v":0},null,{"$f":"(SUMPRODUCT(AD$9:AD$229,Nutrients!$FB$8:$FB$228)+(IF($A$7=Nutrients!$B$8,Nutrients!$FB$8,Nutrients!$FB$9)*AD$7)+(((IF($A$8=Nutrients!$B$79,Nutrients!$FB$79,(IF($A$8=Nutrients!$B$77,Nutrients!$FB$77,Nutrients!$FB$78)))))*AD$8))","v":0},{"$f":"(SUMPRODUCT(AE$9:AE$229,Nutrients!$FB$8:$FB$228)+(IF($A$7=Nutrients!$B$8,Nutrients!$FB$8,Nutrients!$FB$9)*AE$7)+(((IF($A$8=Nutrients!$B$79,Nutrients!$FB$79,(IF($A$8=Nutrients!$B$77,Nutrients!$FB$77,Nutrients!$FB$78)))))*AE$8))","v":0},{"$f":"(SUMPRODUCT(AF$9:AF$229,Nutrients!$FB$8:$FB$228)+(IF($A$7=Nutrients!$B$8,Nutrients!$FB$8,Nutrients!$FB$9)*AF$7)+(((IF($A$8=Nutrients!$B$79,Nutrients!$FB$79,(IF($A$8=Nutrients!$B$77,Nutrients!$FB$77,Nutrients!$FB$78)))))*AF$8))","v":0},{"$f":"(SUMPRODUCT(AG$9:AG$229,Nutrients!$FB$8:$FB$228)+(IF($A$7=Nutrients!$B$8,Nutrients!$FB$8,Nutrients!$FB$9)*AG$7)+(((IF($A$8=Nutrients!$B$79,Nutrients!$FB$79,(IF($A$8=Nutrients!$B$77,Nutrients!$FB$77,Nutrients!$FB$78)))))*AG$8))","v":0},{"$f":"(SUMPRODUCT(AH$9:AH$229,Nutrients!$FB$8:$FB$228)+(IF($A$7=Nutrients!$B$8,Nutrients!$FB$8,Nutrients!$FB$9)*AH$7)+(((IF($A$8=Nutrients!$B$79,Nutrients!$FB$79,(IF($A$8=Nutrients!$B$77,Nutrients!$FB$77,Nutrients!$FB$78)))))*AH$8))","v":0},{"$f":"(SUMPRODUCT(AI$9:AI$229,Nutrients!$FB$8:$FB$228)+(IF($A$7=Nutrients!$B$8,Nutrients!$FB$8,Nutrients!$FB$9)*AI$7)+(((IF($A$8=Nutrients!$B$79,Nutrients!$FB$79,(IF($A$8=Nutrients!$B$77,Nutrients!$FB$77,Nutrients!$FB$78)))))*AI$8))","v":0},null,{"$f":"(SUMPRODUCT(AK$9:AK$229,Nutrients!$FB$8:$FB$228)+(IF($A$7=Nutrients!$B$8,Nutrients!$FB$8,Nutrients!$FB$9)*AK$7)+(((IF($A$8=Nutrients!$B$79,Nutrients!$FB$79,(IF($A$8=Nutrients!$B$77,Nutrients!$FB$77,Nutrients!$FB$78)))))*AK$8))","v":0},{"$f":"(SUMPRODUCT(AL$9:AL$229,Nutrients!$FB$8:$FB$228)+(IF($A$7=Nutrients!$B$8,Nutrients!$FB$8,Nutrients!$FB$9)*AL$7)+(((IF($A$8=Nutrients!$B$79,Nutrients!$FB$79,(IF($A$8=Nutrients!$B$77,Nutrients!$FB$77,Nutrients!$FB$78)))))*AL$8))","v":0},{"$f":"(SUMPRODUCT(AM$9:AM$229,Nutrients!$FB$8:$FB$228)+(IF($A$7=Nutrients!$B$8,Nutrients!$FB$8,Nutrients!$FB$9)*AM$7)+(((IF($A$8=Nutrients!$B$79,Nutrients!$FB$79,(IF($A$8=Nutrients!$B$77,Nutrients!$FB$77,Nutrients!$FB$78)))))*AM$8))","v":0},{"$f":"(SUMPRODUCT(AN$9:AN$229,Nutrients!$FB$8:$FB$228)+(IF($A$7=Nutrients!$B$8,Nutrients!$FB$8,Nutrients!$FB$9)*AN$7)+(((IF($A$8=Nutrients!$B$79,Nutrients!$FB$79,(IF($A$8=Nutrients!$B$77,Nutrients!$FB$77,Nutrients!$FB$78)))))*AN$8))","v":0},{"$f":"(SUMPRODUCT(AO$9:AO$229,Nutrients!$FB$8:$FB$228)+(IF($A$7=Nutrients!$B$8,Nutrients!$FB$8,Nutrients!$FB$9)*AO$7)+(((IF($A$8=Nutrients!$B$79,Nutrients!$FB$79,(IF($A$8=Nutrients!$B$77,Nutrients!$FB$77,Nutrients!$FB$78)))))*AO$8))","v":0},{"$f":"(SUMPRODUCT(AP$9:AP$229,Nutrients!$FB$8:$FB$228)+(IF($A$7=Nutrients!$B$8,Nutrients!$FB$8,Nutrients!$FB$9)*AP$7)+(((IF($A$8=Nutrients!$B$79,Nutrients!$FB$79,(IF($A$8=Nutrients!$B$77,Nutrients!$FB$77,Nutrients!$FB$78)))))*AP$8))","v":0},null,{"$f":"(SUMPRODUCT(AR$9:AR$229,Nutrients!$FB$8:$FB$228)+(IF($A$7=Nutrients!$B$8,Nutrients!$FB$8,Nutrients!$FB$9)*AR$7)+(((IF($A$8=Nutrients!$B$79,Nutrients!$FB$79,(IF($A$8=Nutrients!$B$77,Nutrients!$FB$77,Nutrients!$FB$78)))))*AR$8))","v":0},{"$f":"(SUMPRODUCT(AS$9:AS$229,Nutrients!$FB$8:$FB$228)+(IF($A$7=Nutrients!$B$8,Nutrients!$FB$8,Nutrients!$FB$9)*AS$7)+(((IF($A$8=Nutrients!$B$79,Nutrients!$FB$79,(IF($A$8=Nutrients!$B$77,Nutrients!$FB$77,Nutrients!$FB$78)))))*AS$8))","v":0},{"$f":"(SUMPRODUCT(AT$9:AT$229,Nutrients!$FB$8:$FB$228)+(IF($A$7=Nutrients!$B$8,Nutrients!$FB$8,Nutrients!$FB$9)*AT$7)+(((IF($A$8=Nutrients!$B$79,Nutrients!$FB$79,(IF($A$8=Nutrients!$B$77,Nutrients!$FB$77,Nutrients!$FB$78)))))*AT$8))","v":0},{"$f":"(SUMPRODUCT(AU$9:AU$229,Nutrients!$FB$8:$FB$228)+(IF($A$7=Nutrients!$B$8,Nutrients!$FB$8,Nutrients!$FB$9)*AU$7)+(((IF($A$8=Nutrients!$B$79,Nutrients!$FB$79,(IF($A$8=Nutrients!$B$77,Nutrients!$FB$77,Nutrients!$FB$78)))))*AU$8))","v":0},{"$f":"(SUMPRODUCT(AV$9:AV$229,Nutrients!$FB$8:$FB$228)+(IF($A$7=Nutrients!$B$8,Nutrients!$FB$8,Nutrients!$FB$9)*AV$7)+(((IF($A$8=Nutrients!$B$79,Nutrients!$FB$79,(IF($A$8=Nutrients!$B$77,Nutrients!$FB$77,Nutrients!$FB$78)))))*AV$8))","v":0},{"$f":"(SUMPRODUCT(AW$9:AW$229,Nutrients!$FB$8:$FB$228)+(IF($A$7=Nutrients!$B$8,Nutrients!$FB$8,Nutrients!$FB$9)*AW$7)+(((IF($A$8=Nutrients!$B$79,Nutrients!$FB$79,(IF($A$8=Nutrients!$B$77,Nutrients!$FB$77,Nutrients!$FB$78)))))*AW$8))","v":0}]
["  Pyridoxine, mg/ton",{"$f":"(SUMPRODUCT(B$9:B$229,Nutrients!$FC$8:$FC$228)+(IF($A$7=Nutrients!$B$8,Nutrients!$FC$8,Nutrients!$FC$9)*B$7)+(((IF($A$8=Nutrients!$B$79,Nutrients!$FC$79,(IF($A$8=Nutrients!$B$77,Nutrients!$FC$77,Nutrients!$FC$78)))))*B$8))","v":0},{"$f":"(SUMPRODUCT(C$9:C$229,Nutrients!$FC$8:$FC$228)+(IF($A$7=Nutrients!$B$8,Nutrients!$FC$8,Nutrients!$FC$9)*C$7)+(((IF($A$8=Nutrients!$B$79,Nutrients!$FC$79,(IF($A$8=Nutrients!$B$77,Nutrients!$FC$77,Nutrients!$FC$78)))))*C$8))","v":0},{"$f":"(SUMPRODUCT(D$9:D$229,Nutrients!$FC$8:$FC$228)+(IF($A$7=Nutrients!$B$8,Nutrients!$FC$8,Nutrients!$FC$9)*D$7)+(((IF($A$8=Nutrients!$B$79,Nutrients!$FC$79,(IF($A$8=Nutrients!$B$77,Nutrients!$FC$77,Nutrients!$FC$78)))))*D$8))","v":0},{"$f":"(SUMPRODUCT(E$9:E$229,Nutrients!$FC$8:$FC$228)+(IF($A$7=Nutrients!$B$8,Nutrients!$FC$8,Nutrients!$FC$9)*E$7)+(((IF($A$8=Nutrients!$B$79,Nutrients!$FC$79,(IF($A$8=Nutrients!$B$77,Nutrients!$FC$77,Nutrients!$FC$78)))))*E$8))","v":0},{"$f":"(SUMPRODUCT(F$9:F$229,Nutrients!$FC$8:$FC$228)+(IF($A$7=Nutrients!$B$8,Nutrients!$FC$8,Nutrients!$FC$9)*F$7)+(((IF($A$8=Nutrients!$B$79,Nutrients!$FC$79,(IF($A$8=Nutrients!$B$77,Nutrients!$FC$77,Nutrients!$FC$78)))))*F$8))","v":0},{"$f":"(SUMPRODUCT(G$9:G$229,Nutrients!$FC$8:$FC$228)+(IF($A$7=Nutrients!$B$8,Nutrients!$FC$8,Nutrients!$FC$9)*G$7)+(((IF($A$8=Nutrients!$B$79,Nutrients!$FC$79,(IF($A$8=Nutrients!$B$77,Nutrients!$FC$77,Nutrients!$FC$78)))))*G$8))","v":0},null,{"$f":"(SUMPRODUCT(I$9:I$229,Nutrients!$FC$8:$FC$228)+(IF($A$7=Nutrients!$B$8,Nutrients!$FC$8,Nutrients!$FC$9)*I$7)+(((IF($A$8=Nutrients!$B$79,Nutrients!$FC$79,(IF($A$8=Nutrients!$B$77,Nutrients!$FC$77,Nutrients!$FC$78)))))*I$8))","v":0},{"$f":"(SUMPRODUCT(J$9:J$229,Nutrients!$FC$8:$FC$228)+(IF($A$7=Nutrients!$B$8,Nutrients!$FC$8,Nutrients!$FC$9)*J$7)+(((IF($A$8=Nutrients!$B$79,Nutrients!$FC$79,(IF($A$8=Nutrients!$B$77,Nutrients!$FC$77,Nutrients!$FC$78)))))*J$8))","v":0},{"$f":"(SUMPRODUCT(K$9:K$229,Nutrients!$FC$8:$FC$228)+(IF($A$7=Nutrients!$B$8,Nutrients!$FC$8,Nutrients!$FC$9)*K$7)+(((IF($A$8=Nutrients!$B$79,Nutrients!$FC$79,(IF($A$8=Nutrients!$B$77,Nutrients!$FC$77,Nutrients!$FC$78)))))*K$8))","v":0},{"$f":"(SUMPRODUCT(L$9:L$229,Nutrients!$FC$8:$FC$228)+(IF($A$7=Nutrients!$B$8,Nutrients!$FC$8,Nutrients!$FC$9)*L$7)+(((IF($A$8=Nutrients!$B$79,Nutrients!$FC$79,(IF($A$8=Nutrients!$B$77,Nutrients!$FC$77,Nutrients!$FC$78)))))*L$8))","v":0},{"$f":"(SUMPRODUCT(M$9:M$229,Nutrients!$FC$8:$FC$228)+(IF($A$7=Nutrients!$B$8,Nutrients!$FC$8,Nutrients!$FC$9)*M$7)+(((IF($A$8=Nutrients!$B$79,Nutrients!$FC$79,(IF($A$8=Nutrients!$B$77,Nutrients!$FC$77,Nutrients!$FC$78)))))*M$8))","v":0},{"$f":"(SUMPRODUCT(N$9:N$229,Nutrients!$FC$8:$FC$228)+(IF($A$7=Nutrients!$B$8,Nutrients!$FC$8,Nutrients!$FC$9)*N$7)+(((IF($A$8=Nutrients!$B$79,Nutrients!$FC$79,(IF($A$8=Nutrients!$B$77,Nutrients!$FC$77,Nutrients!$FC$78)))))*N$8))","v":0},null,{"$f":"(SUMPRODUCT(P$9:P$229,Nutrients!$FC$8:$FC$228)+(IF($A$7=Nutrients!$B$8,Nutrients!$FC$8,Nutrients!$FC$9)*P$7)+(((IF($A$8=Nutrients!$B$79,Nutrients!$FC$79,(IF($A$8=Nutrients!$B$77,Nutrients!$FC$77,Nutrients!$FC$78)))))*P$8))","v":0},{"$f":"(SUMPRODUCT(Q$9:Q$229,Nutrients!$FC$8:$FC$228)+(IF($A$7=Nutrients!$B$8,Nutrients!$FC$8,Nutrients!$FC$9)*Q$7)+(((IF($A$8=Nutrients!$B$79,Nutrients!$FC$79,(IF($A$8=Nutrients!$B$77,Nutrients!$FC$77,Nutrients!$FC$78)))))*Q$8))","v":0},{"$f":"(SUMPRODUCT(R$9:R$229,Nutrients!$FC$8:$FC$228)+(IF($A$7=Nutrients!$B$8,Nutrients!$FC$8,Nutrients!$FC$9)*R$7)+(((IF($A$8=Nutrients!$B$79,Nutrients!$FC$79,(IF($A$8=Nutrients!$B$77,Nutrients!$FC$77,Nutrients!$FC$78)))))*R$8))","v":0},{"$f":"(SUMPRODUCT(S$9:S$229,Nutrients!$FC$8:$FC$228)+(IF($A$7=Nutrients!$B$8,Nutrients!$FC$8,Nutrients!$FC$9)*S$7)+(((IF($A$8=Nutrients!$B$79,Nutrients!$FC$79,(IF($A$8=Nutrients!$B$77,Nutrients!$FC$77,Nutrients!$FC$78)))))*S$8))","v":0},{"$f":"(SUMPRODUCT(T$9:T$229,Nutrients!$FC$8:$FC$228)+(IF($A$7=Nutrients!$B$8,Nutrients!$FC$8,Nutrients!$FC$9)*T$7)+(((IF($A$8=Nutrients!$B$79,Nutrients!$FC$79,(IF($A$8=Nutrients!$B$77,Nutrients!$FC$77,Nutrients!$FC$78)))))*T$8))","v":0},{"$f":"(SUMPRODUCT(U$9:U$229,Nutrients!$FC$8:$FC$228)+(IF($A$7=Nutrients!$B$8,Nutrients!$FC$8,Nutrients!$FC$9)*U$7)+(((IF($A$8=Nutrients!$B$79,Nutrients!$FC$79,(IF($A$8=Nutrients!$B$77,Nutrients!$FC$77,Nutrients!$FC$78)))))*U$8))","v":0},null,{"$f":"(SUMPRODUCT(W$9:W$229,Nutrients!$FC$8:$FC$228)+(IF($A$7=Nutrients!$B$8,Nutrients!$FC$8,Nutrients!$FC$9)*W$7)+(((IF($A$8=Nutrients!$B$79,Nutrients!$FC$79,(IF($A$8=Nutrients!$B$77,Nutrients!$FC$77,Nutrients!$FC$78)))))*W$8))","v":0},{"$f":"(SUMPRODUCT(X$9:X$229,Nutrients!$FC$8:$FC$228)+(IF($A$7=Nutrients!$B$8,Nutrients!$FC$8,Nutrients!$FC$9)*X$7)+(((IF($A$8=Nutrients!$B$79,Nutrients!$FC$79,(IF($A$8=Nutrients!$B$77,Nutrients!$FC$77,Nutrients!$FC$78)))))*X$8))","v":0},{"$f":"(SUMPRODUCT(Y$9:Y$229,Nutrients!$FC$8:$FC$228)+(IF($A$7=Nutrients!$B$8,Nutrients!$FC$8,Nutrients!$FC$9)*Y$7)+(((IF($A$8=Nutrients!$B$79,Nutrients!$FC$79,(IF($A$8=Nutrients!$B$77,Nutrients!$FC$77,Nutrients!$FC$78)))))*Y$8))","v":0},{"$f":"(SUMPRODUCT(Z$9:Z$229,Nutrients!$FC$8:$FC$228)+(IF($A$7=Nutrients!$B$8,Nutrients!$FC$8,Nutrients!$FC$9)*Z$7)+(((IF($A$8=Nutrients!$B$79,Nutrients!$FC$79,(IF($A$8=Nutrients!$B$77,Nutrients!$FC$77,Nutrients!$FC$78)))))*Z$8))","v":0},{"$f":"(SUMPRODUCT(AA$9:AA$229,Nutrients!$FC$8:$FC$228)+(IF($A$7=Nutrients!$B$8,Nutrients!$FC$8,Nutrients!$FC$9)*AA$7)+(((IF($A$8=Nutrients!$B$79,Nutrients!$FC$79,(IF($A$8=Nutrients!$B$77,Nutrients!$FC$77,Nutrients!$FC$78)))))*AA$8))","v":0},{"$f":"(SUMPRODUCT(AB$9:AB$229,Nutrients!$FC$8:$FC$228)+(IF($A$7=Nutrients!$B$8,Nutrients!$FC$8,Nutrients!$FC$9)*AB$7)+(((IF($A$8=Nutrients!$B$79,Nutrients!$FC$79,(IF($A$8=Nutrients!$B$77,Nutrients!$FC$77,Nutrients!$FC$78)))))*AB$8))","v":0},null,{"$f":"(SUMPRODUCT(AD$9:AD$229,Nutrients!$FC$8:$FC$228)+(IF($A$7=Nutrients!$B$8,Nutrients!$FC$8,Nutrients!$FC$9)*AD$7)+(((IF($A$8=Nutrients!$B$79,Nutrients!$FC$79,(IF($A$8=Nutrients!$B$77,Nutrients!$FC$77,Nutrients!$FC$78)))))*AD$8))","v":0},{"$f":"(SUMPRODUCT(AE$9:AE$229,Nutrients!$FC$8:$FC$228)+(IF($A$7=Nutrients!$B$8,Nutrients!$FC$8,Nutrients!$FC$9)*AE$7)+(((IF($A$8=Nutrients!$B$79,Nutrients!$FC$79,(IF($A$8=Nutrients!$B$77,Nutrients!$FC$77,Nutrients!$FC$78)))))*AE$8))","v":0},{"$f":"(SUMPRODUCT(AF$9:AF$229,Nutrients!$FC$8:$FC$228)+(IF($A$7=Nutrients!$B$8,Nutrients!$FC$8,Nutrients!$FC$9)*AF$7)+(((IF($A$8=Nutrients!$B$79,Nutrients!$FC$79,(IF($A$8=Nutrients!$B$77,Nutrients!$FC$77,Nutrients!$FC$78)))))*AF$8))","v":0},{"$f":"(SUMPRODUCT(AG$9:AG$229,Nutrients!$FC$8:$FC$228)+(IF($A$7=Nutrients!$B$8,Nutrients!$FC$8,Nutrients!$FC$9)*AG$7)+(((IF($A$8=Nutrients!$B$79,Nutrients!$FC$79,(IF($A$8=Nutrients!$B$77,Nutrients!$FC$77,Nutrients!$FC$78)))))*AG$8))","v":0},{"$f":"(SUMPRODUCT(AH$9:AH$229,Nutrients!$FC$8:$FC$228)+(IF($A$7=Nutrients!$B$8,Nutrients!$FC$8,Nutrients!$FC$9)*AH$7)+(((IF($A$8=Nutrients!$B$79,Nutrients!$FC$79,(IF($A$8=Nutrients!$B$77,Nutrients!$FC$77,Nutrients!$FC$78)))))*AH$8))","v":0},{"$f":"(SUMPRODUCT(AI$9:AI$229,Nutrients!$FC$8:$FC$228)+(IF($A$7=Nutrients!$B$8,Nutrients!$FC$8,Nutrients!$FC$9)*AI$7)+(((IF($A$8=Nutrients!$B$79,Nutrients!$FC$79,(IF($A$8=Nutrients!$B$77,Nutrients!$FC$77,Nutrients!$FC$78)))))*AI$8))","v":0},null,{"$f":"(SUMPRODUCT(AK$9:AK$229,Nutrients!$FC$8:$FC$228)+(IF($A$7=Nutrients!$B$8,Nutrients!$FC$8,Nutrients!$FC$9)*AK$7)+(((IF($A$8=Nutrients!$B$79,Nutrients!$FC$79,(IF($A$8=Nutrients!$B$77,Nutrients!$FC$77,Nutrients!$FC$78)))))*AK$8))","v":0},{"$f":"(SUMPRODUCT(AL$9:AL$229,Nutrients!$FC$8:$FC$228)+(IF($A$7=Nutrients!$B$8,Nutrients!$FC$8,Nutrients!$FC$9)*AL$7)+(((IF($A$8=Nutrients!$B$79,Nutrients!$FC$79,(IF($A$8=Nutrients!$B$77,Nutrients!$FC$77,Nutrients!$FC$78)))))*AL$8))","v":0},{"$f":"(SUMPRODUCT(AM$9:AM$229,Nutrients!$FC$8:$FC$228)+(IF($A$7=Nutrients!$B$8,Nutrients!$FC$8,Nutrients!$FC$9)*AM$7)+(((IF($A$8=Nutrients!$B$79,Nutrients!$FC$79,(IF($A$8=Nutrients!$B$77,Nutrients!$FC$77,Nutrients!$FC$78)))))*AM$8))","v":0},{"$f":"(SUMPRODUCT(AN$9:AN$229,Nutrients!$FC$8:$FC$228)+(IF($A$7=Nutrients!$B$8,Nutrients!$FC$8,Nutrients!$FC$9)*AN$7)+(((IF($A$8=Nutrients!$B$79,Nutrients!$FC$79,(IF($A$8=Nutrients!$B$77,Nutrients!$FC$77,Nutrients!$FC$78)))))*AN$8))","v":0},{"$f":"(SUMPRODUCT(AO$9:AO$229,Nutrients!$FC$8:$FC$228)+(IF($A$7=Nutrients!$B$8,Nutrients!$FC$8,Nutrients!$FC$9)*AO$7)+(((IF($A$8=Nutrients!$B$79,Nutrients!$FC$79,(IF($A$8=Nutrients!$B$77,Nutrients!$FC$77,Nutrients!$FC$78)))))*AO$8))","v":0},{"$f":"(SUMPRODUCT(AP$9:AP$229,Nutrients!$FC$8:$FC$228)+(IF($A$7=Nutrients!$B$8,Nutrients!$FC$8,Nutrients!$FC$9)*AP$7)+(((IF($A$8=Nutrients!$B$79,Nutrients!$FC$79,(IF($A$8=Nutrients!$B$77,Nutrients!$FC$77,Nutrients!$FC$78)))))*AP$8))","v":0},null,{"$f":"(SUMPRODUCT(AR$9:AR$229,Nutrients!$FC$8:$FC$228)+(IF($A$7=Nutrients!$B$8,Nutrients!$FC$8,Nutrients!$FC$9)*AR$7)+(((IF($A$8=Nutrients!$B$79,Nutrients!$FC$79,(IF($A$8=Nutrients!$B$77,Nutrients!$FC$77,Nutrients!$FC$78)))))*AR$8))","v":0},{"$f":"(SUMPRODUCT(AS$9:AS$229,Nutrients!$FC$8:$FC$228)+(IF($A$7=Nutrients!$B$8,Nutrients!$FC$8,Nutrients!$FC$9)*AS$7)+(((IF($A$8=Nutrients!$B$79,Nutrients!$FC$79,(IF($A$8=Nutrients!$B$77,Nutrients!$FC$77,Nutrients!$FC$78)))))*AS$8))","v":0},{"$f":"(SUMPRODUCT(AT$9:AT$229,Nutrients!$FC$8:$FC$228)+(IF($A$7=Nutrients!$B$8,Nutrients!$FC$8,Nutrients!$FC$9)*AT$7)+(((IF($A$8=Nutrients!$B$79,Nutrients!$FC$79,(IF($A$8=Nutrients!$B$77,Nutrients!$FC$77,Nutrients!$FC$78)))))*AT$8))","v":0},{"$f":"(SUMPRODUCT(AU$9:AU$229,Nutrients!$FC$8:$FC$228)+(IF($A$7=Nutrients!$B$8,Nutrients!$FC$8,Nutrients!$FC$9)*AU$7)+(((IF($A$8=Nutrients!$B$79,Nutrients!$FC$79,(IF($A$8=Nutrients!$B$77,Nutrients!$FC$77,Nutrients!$FC$78)))))*AU$8))","v":0},{"$f":"(SUMPRODUCT(AV$9:AV$229,Nutrients!$FC$8:$FC$228)+(IF($A$7=Nutrients!$B$8,Nutrients!$FC$8,Nutrients!$FC$9)*AV$7)+(((IF($A$8=Nutrients!$B$79,Nutrients!$FC$79,(IF($A$8=Nutrients!$B$77,Nutrients!$FC$77,Nutrients!$FC$78)))))*AV$8))","v":0},{"$f":"(SUMPRODUCT(AW$9:AW$229,Nutrients!$FC$8:$FC$228)+(IF($A$7=Nutrients!$B$8,Nutrients!$FC$8,Nutrients!$FC$9)*AW$7)+(((IF($A$8=Nutrients!$B$79,Nutrients!$FC$79,(IF($A$8=Nutrients!$B$77,Nutrients!$FC$77,Nutrients!$FC$78)))))*AW$8))","v":0}]
["  Choline, mg/ton",{"$f":"(SUMPRODUCT(B$9:B$229,Nutrients!$FD$8:$FD$228)+(IF($A$7=Nutrients!$B$8,Nutrients!$FD$8,Nutrients!$FD$9)*B$7)+(((IF($A$8=Nutrients!$B$79,Nutrients!$FD$79,(IF($A$8=Nutrients!$B$77,Nutrients!$FD$77,Nutrients!$FD$78)))))*B$8))","v":0},{"$f":"(SUMPRODUCT(C$9:C$229,Nutrients!$FD$8:$FD$228)+(IF($A$7=Nutrients!$B$8,Nutrients!$FD$8,Nutrients!$FD$9)*C$7)+(((IF($A$8=Nutrients!$B$79,Nutrients!$FD$79,(IF($A$8=Nutrients!$B$77,Nutrients!$FD$77,Nutrients!$FD$78)))))*C$8))","v":0},{"$f":"(SUMPRODUCT(D$9:D$229,Nutrients!$FD$8:$FD$228)+(IF($A$7=Nutrients!$B$8,Nutrients!$FD$8,Nutrients!$FD$9)*D$7)+(((IF($A$8=Nutrients!$B$79,Nutrients!$FD$79,(IF($A$8=Nutrients!$B$77,Nutrients!$FD$77,Nutrients!$FD$78)))))*D$8))","v":0},{"$f":"(SUMPRODUCT(E$9:E$229,Nutrients!$FD$8:$FD$228)+(IF($A$7=Nutrients!$B$8,Nutrients!$FD$8,Nutrients!$FD$9)*E$7)+(((IF($A$8=Nutrients!$B$79,Nutrients!$FD$79,(IF($A$8=Nutrients!$B$77,Nutrients!$FD$77,Nutrients!$FD$78)))))*E$8))","v":0},{"$f":"(SUMPRODUCT(F$9:F$229,Nutrients!$FD$8:$FD$228)+(IF($A$7=Nutrients!$B$8,Nutrients!$FD$8,Nutrients!$FD$9)*F$7)+(((IF($A$8=Nutrients!$B$79,Nutrients!$FD$79,(IF($A$8=Nutrients!$B$77,Nutrients!$FD$77,Nutrients!$FD$78)))))*F$8))","v":0},{"$f":"(SUMPRODUCT(G$9:G$229,Nutrients!$FD$8:$FD$228)+(IF($A$7=Nutrients!$B$8,Nutrients!$FD$8,Nutrients!$FD$9)*G$7)+(((IF($A$8=Nutrients!$B$79,Nutrients!$FD$79,(IF($A$8=Nutrients!$B$77,Nutrients!$FD$77,Nutrients!$FD$78)))))*G$8))","v":0},null,{"$f":"(SUMPRODUCT(I$9:I$229,Nutrients!$FD$8:$FD$228)+(IF($A$7=Nutrients!$B$8,Nutrients!$FD$8,Nutrients!$FD$9)*I$7)+(((IF($A$8=Nutrients!$B$79,Nutrients!$FD$79,(IF($A$8=Nutrients!$B$77,Nutrients!$FD$77,Nutrients!$FD$78)))))*I$8))","v":0},{"$f":"(SUMPRODUCT(J$9:J$229,Nutrients!$FD$8:$FD$228)+(IF($A$7=Nutrients!$B$8,Nutrients!$FD$8,Nutrients!$FD$9)*J$7)+(((IF($A$8=Nutrients!$B$79,Nutrients!$FD$79,(IF($A$8=Nutrients!$B$77,Nutrients!$FD$77,Nutrients!$FD$78)))))*J$8))","v":0},{"$f":"(SUMPRODUCT(K$9:K$229,Nutrients!$FD$8:$FD$228)+(IF($A$7=Nutrients!$B$8,Nutrients!$FD$8,Nutrients!$FD$9)*K$7)+(((IF($A$8=Nutrients!$B$79,Nutrients!$FD$79,(IF($A$8=Nutrients!$B$77,Nutrients!$FD$77,Nutrients!$FD$78)))))*K$8))","v":0},{"$f":"(SUMPRODUCT(L$9:L$229,Nutrients!$FD$8:$FD$228)+(IF($A$7=Nutrients!$B$8,Nutrients!$FD$8,Nutrients!$FD$9)*L$7)+(((IF($A$8=Nutrients!$B$79,Nutrients!$FD$79,(IF($A$8=Nutrients!$B$77,Nutrients!$FD$77,Nutrients!$FD$78)))))*L$8))","v":0},{"$f":"(SUMPRODUCT(M$9:M$229,Nutrients!$FD$8:$FD$228)+(IF($A$7=Nutrients!$B$8,Nutrients!$FD$8,Nutrients!$FD$9)*M$7)+(((IF($A$8=Nutrients!$B$79,Nutrients!$FD$79,(IF($A$8=Nutrients!$B$77,Nutrients!$FD$77,Nutrients!$FD$78)))))*M$8))","v":0},{"$f":"(SUMPRODUCT(N$9:N$229,Nutrients!$FD$8:$FD$228)+(IF($A$7=Nutrients!$B$8,Nutrients!$FD$8,Nutrients!$FD$9)*N$7)+(((IF($A$8=Nutrients!$B$79,Nutrients!$FD$79,(IF($A$8=Nutrients!$B$77,Nutrients!$FD$77,Nutrients!$FD$78)))))*N$8))","v":0},null,{"$f":"(SUMPRODUCT(P$9:P$229,Nutrients!$FD$8:$FD$228)+(IF($A$7=Nutrients!$B$8,Nutrients!$FD$8,Nutrients!$FD$9)*P$7)+(((IF($A$8=Nutrients!$B$79,Nutrients!$FD$79,(IF($A$8=Nutrients!$B$77,Nutrients!$FD$77,Nutrients!$FD$78)))))*P$8))","v":0},{"$f":"(SUMPRODUCT(Q$9:Q$229,Nutrients!$FD$8:$FD$228)+(IF($A$7=Nutrients!$B$8,Nutrients!$FD$8,Nutrients!$FD$9)*Q$7)+(((IF($A$8=Nutrients!$B$79,Nutrients!$FD$79,(IF($A$8=Nutrients!$B$77,Nutrients!$FD$77,Nutrients!$FD$78)))))*Q$8))","v":0},{"$f":"(SUMPRODUCT(R$9:R$229,Nutrients!$FD$8:$FD$228)+(IF($A$7=Nutrients!$B$8,Nutrients!$FD$8,Nutrients!$FD$9)*R$7)+(((IF($A$8=Nutrients!$B$79,Nutrients!$FD$79,(IF($A$8=Nutrients!$B$77,Nutrients!$FD$77,Nutrients!$FD$78)))))*R$8))","v":0},{"$f":"(SUMPRODUCT(S$9:S$229,Nutrients!$FD$8:$FD$228)+(IF($A$7=Nutrients!$B$8,Nutrients!$FD$8,Nutrients!$FD$9)*S$7)+(((IF($A$8=Nutrients!$B$79,Nutrients!$FD$79,(IF($A$8=Nutrients!$B$77,Nutrients!$FD$77,Nutrients!$FD$78)))))*S$8))","v":0},{"$f":"(SUMPRODUCT(T$9:T$229,Nutrients!$FD$8:$FD$228)+(IF($A$7=Nutrients!$B$8,Nutrients!$FD$8,Nutrients!$FD$9)*T$7)+(((IF($A$8=Nutrients!$B$79,Nutrients!$FD$79,(IF($A$8=Nutrients!$B$77,Nutrients!$FD$77,Nutrients!$FD$78)))))*T$8))","v":0},{"$f":"(SUMPRODUCT(U$9:U$229,Nutrients!$FD$8:$FD$228)+(IF($A$7=Nutrients!$B$8,Nutrients!$FD$8,Nutrients!$FD$9)*U$7)+(((IF($A$8=Nutrients!$B$79,Nutrients!$FD$79,(IF($A$8=Nutrients!$B$77,Nutrients!$FD$77,Nutrients!$FD$78)))))*U$8))","v":0},null,{"$f":"(SUMPRODUCT(W$9:W$229,Nutrients!$FD$8:$FD$228)+(IF($A$7=Nutrients!$B$8,Nutrients!$FD$8,Nutrients!$FD$9)*W$7)+(((IF($A$8=Nutrients!$B$79,Nutrients!$FD$79,(IF($A$8=Nutrients!$B$77,Nutrients!$FD$77,Nutrients!$FD$78)))))*W$8))","v":0},{"$f":"(SUMPRODUCT(X$9:X$229,Nutrients!$FD$8:$FD$228)+(IF($A$7=Nutrients!$B$8,Nutrients!$FD$8,Nutrients!$FD$9)*X$7)+(((IF($A$8=Nutrients!$B$79,Nutrients!$FD$79,(IF($A$8=Nutrients!$B$77,Nutrients!$FD$77,Nutrients!$FD$78)))))*X$8))","v":0},{"$f":"(SUMPRODUCT(Y$9:Y$229,Nutrients!$FD$8:$FD$228)+(IF($A$7=Nutrients!$B$8,Nutrients!$FD$8,Nutrients!$FD$9)*Y$7)+(((IF($A$8=Nutrients!$B$79,Nutrients!$FD$79,(IF($A$8=Nutrients!$B$77,Nutrients!$FD$77,Nutrients!$FD$78)))))*Y$8))","v":0},{"$f":"(SUMPRODUCT(Z$9:Z$229,Nutrients!$FD$8:$FD$228)+(IF($A$7=Nutrients!$B$8,Nutrients!$FD$8,Nutrients!$FD$9)*Z$7)+(((IF($A$8=Nutrients!$B$79,Nutrients!$FD$79,(IF($A$8=Nutrients!$B$77,Nutrients!$FD$77,Nutrients!$FD$78)))))*Z$8))","v":0},{"$f":"(SUMPRODUCT(AA$9:AA$229,Nutrients!$FD$8:$FD$228)+(IF($A$7=Nutrients!$B$8,Nutrients!$FD$8,Nutrients!$FD$9)*AA$7)+(((IF($A$8=Nutrients!$B$79,Nutrients!$FD$79,(IF($A$8=Nutrients!$B$77,Nutrients!$FD$77,Nutrients!$FD$78)))))*AA$8))","v":0},{"$f":"(SUMPRODUCT(AB$9:AB$229,Nutrients!$FD$8:$FD$228)+(IF($A$7=Nutrients!$B$8,Nutrients!$FD$8,Nutrients!$FD$9)*AB$7)+(((IF($A$8=Nutrients!$B$79,Nutrients!$FD$79,(IF($A$8=Nutrients!$B$77,Nutrients!$FD$77,Nutrients!$FD$78)))))*AB$8))","v":0},null,{"$f":"(SUMPRODUCT(AD$9:AD$229,Nutrients!$FD$8:$FD$228)+(IF($A$7=Nutrients!$B$8,Nutrients!$FD$8,Nutrients!$FD$9)*AD$7)+(((IF($A$8=Nutrients!$B$79,Nutrients!$FD$79,(IF($A$8=Nutrients!$B$77,Nutrients!$FD$77,Nutrients!$FD$78)))))*AD$8))","v":0},{"$f":"(SUMPRODUCT(AE$9:AE$229,Nutrients!$FD$8:$FD$228)+(IF($A$7=Nutrients!$B$8,Nutrients!$FD$8,Nutrients!$FD$9)*AE$7)+(((IF($A$8=Nutrients!$B$79,Nutrients!$FD$79,(IF($A$8=Nutrients!$B$77,Nutrients!$FD$77,Nutrients!$FD$78)))))*AE$8))","v":0},{"$f":"(SUMPRODUCT(AF$9:AF$229,Nutrients!$FD$8:$FD$228)+(IF($A$7=Nutrients!$B$8,Nutrients!$FD$8,Nutrients!$FD$9)*AF$7)+(((IF($A$8=Nutrients!$B$79,Nutrients!$FD$79,(IF($A$8=Nutrients!$B$77,Nutrients!$FD$77,Nutrients!$FD$78)))))*AF$8))","v":0},{"$f":"(SUMPRODUCT(AG$9:AG$229,Nutrients!$FD$8:$FD$228)+(IF($A$7=Nutrients!$B$8,Nutrients!$FD$8,Nutrients!$FD$9)*AG$7)+(((IF($A$8=Nutrients!$B$79,Nutrients!$FD$79,(IF($A$8=Nutrients!$B$77,Nutrients!$FD$77,Nutrients!$FD$78)))))*AG$8))","v":0},{"$f":"(SUMPRODUCT(AH$9:AH$229,Nutrients!$FD$8:$FD$228)+(IF($A$7=Nutrients!$B$8,Nutrients!$FD$8,Nutrients!$FD$9)*AH$7)+(((IF($A$8=Nutrients!$B$79,Nutrients!$FD$79,(IF($A$8=Nutrients!$B$77,Nutrients!$FD$77,Nutrients!$FD$78)))))*AH$8))","v":0},{"$f":"(SUMPRODUCT(AI$9:AI$229,Nutrients!$FD$8:$FD$228)+(IF($A$7=Nutrients!$B$8,Nutrients!$FD$8,Nutrients!$FD$9)*AI$7)+(((IF($A$8=Nutrients!$B$79,Nutrients!$FD$79,(IF($A$8=Nutrients!$B$77,Nutrients!$FD$77,Nutrients!$FD$78)))))*AI$8))","v":0},null,{"$f":"(SUMPRODUCT(AK$9:AK$229,Nutrients!$FD$8:$FD$228)+(IF($A$7=Nutrients!$B$8,Nutrients!$FD$8,Nutrients!$FD$9)*AK$7)+(((IF($A$8=Nutrients!$B$79,Nutrients!$FD$79,(IF($A$8=Nutrients!$B$77,Nutrients!$FD$77,Nutrients!$FD$78)))))*AK$8))","v":0},{"$f":"(SUMPRODUCT(AL$9:AL$229,Nutrients!$FD$8:$FD$228)+(IF($A$7=Nutrients!$B$8,Nutrients!$FD$8,Nutrients!$FD$9)*AL$7)+(((IF($A$8=Nutrients!$B$79,Nutrients!$FD$79,(IF($A$8=Nutrients!$B$77,Nutrients!$FD$77,Nutrients!$FD$78)))))*AL$8))","v":0},{"$f":"(SUMPRODUCT(AM$9:AM$229,Nutrients!$FD$8:$FD$228)+(IF($A$7=Nutrients!$B$8,Nutrients!$FD$8,Nutrients!$FD$9)*AM$7)+(((IF($A$8=Nutrients!$B$79,Nutrients!$FD$79,(IF($A$8=Nutrients!$B$77,Nutrients!$FD$77,Nutrients!$FD$78)))))*AM$8))","v":0},{"$f":"(SUMPRODUCT(AN$9:AN$229,Nutrients!$FD$8:$FD$228)+(IF($A$7=Nutrients!$B$8,Nutrients!$FD$8,Nutrients!$FD$9)*AN$7)+(((IF($A$8=Nutrients!$B$79,Nutrients!$FD$79,(IF($A$8=Nutrients!$B$77,Nutrients!$FD$77,Nutrients!$FD$78)))))*AN$8))","v":0},{"$f":"(SUMPRODUCT(AO$9:AO$229,Nutrients!$FD$8:$FD$228)+(IF($A$7=Nutrients!$B$8,Nutrients!$FD$8,Nutrients!$FD$9)*AO$7)+(((IF($A$8=Nutrients!$B$79,Nutrients!$FD$79,(IF($A$8=Nutrients!$B$77,Nutrients!$FD$77,Nutrients!$FD$78)))))*AO$8))","v":0},{"$f":"(SUMPRODUCT(AP$9:AP$229,Nutrients!$FD$8:$FD$228)+(IF($A$7=Nutrients!$B$8,Nutrients!$FD$8,Nutrients!$FD$9)*AP$7)+(((IF($A$8=Nutrients!$B$79,Nutrients!$FD$79,(IF($A$8=Nutrients!$B$77,Nutrients!$FD$77,Nutrients!$FD$78)))))*AP$8))","v":0},null,{"$f":"(SUMPRODUCT(AR$9:AR$229,Nutrients!$FD$8:$FD$228)+(IF($A$7=Nutrients!$B$8,Nutrients!$FD$8,Nutrients!$FD$9)*AR$7)+(((IF($A$8=Nutrients!$B$79,Nutrients!$FD$79,(IF($A$8=Nutrients!$B$77,Nutrients!$FD$77,Nutrients!$FD$78)))))*AR$8))","v":0},{"$f":"(SUMPRODUCT(AS$9:AS$229,Nutrients!$FD$8:$FD$228)+(IF($A$7=Nutrients!$B$8,Nutrients!$FD$8,Nutrients!$FD$9)*AS$7)+(((IF($A$8=Nutrients!$B$79,Nutrients!$FD$79,(IF($A$8=Nutrients!$B$77,Nutrients!$FD$77,Nutrients!$FD$78)))))*AS$8))","v":0},{"$f":"(SUMPRODUCT(AT$9:AT$229,Nutrients!$FD$8:$FD$228)+(IF($A$7=Nutrients!$B$8,Nutrients!$FD$8,Nutrients!$FD$9)*AT$7)+(((IF($A$8=Nutrients!$B$79,Nutrients!$FD$79,(IF($A$8=Nutrients!$B$77,Nutrients!$FD$77,Nutrients!$FD$78)))))*AT$8))","v":0},{"$f":"(SUMPRODUCT(AU$9:AU$229,Nutrients!$FD$8:$FD$228)+(IF($A$7=Nutrients!$B$8,Nutrients!$FD$8,Nutrients!$FD$9)*AU$7)+(((IF($A$8=Nutrients!$B$79,Nutrients!$FD$79,(IF($A$8=Nutrients!$B$77,Nutrients!$FD$77,Nutrients!$FD$78)))))*AU$8))","v":0},{"$f":"(SUMPRODUCT(AV$9:AV$229,Nutrients!$FD$8:$FD$228)+(IF($A$7=Nutrients!$B$8,Nutrients!$FD$8,Nutrients!$FD$9)*AV$7)+(((IF($A$8=Nutrients!$B$79,Nutrients!$FD$79,(IF($A$8=Nutrients!$B$77,Nutrients!$FD$77,Nutrients!$FD$78)))))*AV$8))","v":0},{"$f":"(SUMPRODUCT(AW$9:AW$229,Nutrients!$FD$8:$FD$228)+(IF($A$7=Nutrients!$B$8,Nutrients!$FD$8,Nutrients!$FD$9)*AW$7)+(((IF($A$8=Nutrients!$B$79,Nutrients!$FD$79,(IF($A$8=Nutrients!$B$77,Nutrients!$FD$77,Nutrients!$FD$78)))))*AW$8))","v":0}]
["  Carnitine, mg/ton",{"$f":"(SUMPRODUCT(B$9:B$229,Nutrients!$FE$8:$FE$228)+(IF($A$7=Nutrients!$B$8,Nutrients!$FE$8,Nutrients!$FE$9)*B$7)+(((IF($A$8=Nutrients!$B$79,Nutrients!$FE$79,(IF($A$8=Nutrients!$B$77,Nutrients!$FE$77,Nutrients!$FE$78)))))*B$8))","v":0},{"$f":"(SUMPRODUCT(C$9:C$229,Nutrients!$FE$8:$FE$228)+(IF($A$7=Nutrients!$B$8,Nutrients!$FE$8,Nutrients!$FE$9)*C$7)+(((IF($A$8=Nutrients!$B$79,Nutrients!$FE$79,(IF($A$8=Nutrients!$B$77,Nutrients!$FE$77,Nutrients!$FE$78)))))*C$8))","v":0},{"$f":"(SUMPRODUCT(D$9:D$229,Nutrients!$FE$8:$FE$228)+(IF($A$7=Nutrients!$B$8,Nutrients!$FE$8,Nutrients!$FE$9)*D$7)+(((IF($A$8=Nutrients!$B$79,Nutrients!$FE$79,(IF($A$8=Nutrients!$B$77,Nutrients!$FE$77,Nutrients!$FE$78)))))*D$8))","v":0},{"$f":"(SUMPRODUCT(E$9:E$229,Nutrients!$FE$8:$FE$228)+(IF($A$7=Nutrients!$B$8,Nutrients!$FE$8,Nutrients!$FE$9)*E$7)+(((IF($A$8=Nutrients!$B$79,Nutrients!$FE$79,(IF($A$8=Nutrients!$B$77,Nutrients!$FE$77,Nutrients!$FE$78)))))*E$8))","v":0},{"$f":"(SUMPRODUCT(F$9:F$229,Nutrients!$FE$8:$FE$228)+(IF($A$7=Nutrients!$B$8,Nutrients!$FE$8,Nutrients!$FE$9)*F$7)+(((IF($A$8=Nutrients!$B$79,Nutrients!$FE$79,(IF($A$8=Nutrients!$B$77,Nutrients!$FE$77,Nutrients!$FE$78)))))*F$8))","v":0},{"$f":"(SUMPRODUCT(G$9:G$229,Nutrients!$FE$8:$FE$228)+(IF($A$7=Nutrients!$B$8,Nutrients!$FE$8,Nutrients!$FE$9)*G$7)+(((IF($A$8=Nutrients!$B$79,Nutrients!$FE$79,(IF($A$8=Nutrients!$B$77,Nutrients!$FE$77,Nutrients!$FE$78)))))*G$8))","v":0},null,{"$f":"(SUMPRODUCT(I$9:I$229,Nutrients!$FE$8:$FE$228)+(IF($A$7=Nutrients!$B$8,Nutrients!$FE$8,Nutrients!$FE$9)*I$7)+(((IF($A$8=Nutrients!$B$79,Nutrients!$FE$79,(IF($A$8=Nutrients!$B$77,Nutrients!$FE$77,Nutrients!$FE$78)))))*I$8))","v":0},{"$f":"(SUMPRODUCT(J$9:J$229,Nutrients!$FE$8:$FE$228)+(IF($A$7=Nutrients!$B$8,Nutrients!$FE$8,Nutrients!$FE$9)*J$7)+(((IF($A$8=Nutrients!$B$79,Nutrients!$FE$79,(IF($A$8=Nutrients!$B$77,Nutrients!$FE$77,Nutrients!$FE$78)))))*J$8))","v":0},{"$f":"(SUMPRODUCT(K$9:K$229,Nutrients!$FE$8:$FE$228)+(IF($A$7=Nutrients!$B$8,Nutrients!$FE$8,Nutrients!$FE$9)*K$7)+(((IF($A$8=Nutrients!$B$79,Nutrients!$FE$79,(IF($A$8=Nutrients!$B$77,Nutrients!$FE$77,Nutrients!$FE$78)))))*K$8))","v":0},{"$f":"(SUMPRODUCT(L$9:L$229,Nutrients!$FE$8:$FE$228)+(IF($A$7=Nutrients!$B$8,Nutrients!$FE$8,Nutrients!$FE$9)*L$7)+(((IF($A$8=Nutrients!$B$79,Nutrients!$FE$79,(IF($A$8=Nutrients!$B$77,Nutrients!$FE$77,Nutrients!$FE$78)))))*L$8))","v":0},{"$f":"(SUMPRODUCT(M$9:M$229,Nutrients!$FE$8:$FE$228)+(IF($A$7=Nutrients!$B$8,Nutrients!$FE$8,Nutrients!$FE$9)*M$7)+(((IF($A$8=Nutrients!$B$79,Nutrients!$FE$79,(IF($A$8=Nutrients!$B$77,Nutrients!$FE$77,Nutrients!$FE$78)))))*M$8))","v":0},{"$f":"(SUMPRODUCT(N$9:N$229,Nutrients!$FE$8:$FE$228)+(IF($A$7=Nutrients!$B$8,Nutrients!$FE$8,Nutrients!$FE$9)*N$7)+(((IF($A$8=Nutrients!$B$79,Nutrients!$FE$79,(IF($A$8=Nutrients!$B$77,Nutrients!$FE$77,Nutrients!$FE$78)))))*N$8))","v":0},null,{"$f":"(SUMPRODUCT(P$9:P$229,Nutrients!$FE$8:$FE$228)+(IF($A$7=Nutrients!$B$8,Nutrients!$FE$8,Nutrients!$FE$9)*P$7)+(((IF($A$8=Nutrients!$B$79,Nutrients!$FE$79,(IF($A$8=Nutrients!$B$77,Nutrients!$FE$77,Nutrients!$FE$78)))))*P$8))","v":0},{"$f":"(SUMPRODUCT(Q$9:Q$229,Nutrients!$FE$8:$FE$228)+(IF($A$7=Nutrients!$B$8,Nutrients!$FE$8,Nutrients!$FE$9)*Q$7)+(((IF($A$8=Nutrients!$B$79,Nutrients!$FE$79,(IF($A$8=Nutrients!$B$77,Nutrients!$FE$77,Nutrients!$FE$78)))))*Q$8))","v":0},{"$f":"(SUMPRODUCT(R$9:R$229,Nutrients!$FE$8:$FE$228)+(IF($A$7=Nutrients!$B$8,Nutrients!$FE$8,Nutrients!$FE$9)*R$7)+(((IF($A$8=Nutrients!$B$79,Nutrients!$FE$79,(IF($A$8=Nutrients!$B$77,Nutrients!$FE$77,Nutrients!$FE$78)))))*R$8))","v":0},{"$f":"(SUMPRODUCT(S$9:S$229,Nutrients!$FE$8:$FE$228)+(IF($A$7=Nutrients!$B$8,Nutrients!$FE$8,Nutrients!$FE$9)*S$7)+(((IF($A$8=Nutrients!$B$79,Nutrients!$FE$79,(IF($A$8=Nutrients!$B$77,Nutrients!$FE$77,Nutrients!$FE$78)))))*S$8))","v":0},{"$f":"(SUMPRODUCT(T$9:T$229,Nutrients!$FE$8:$FE$228)+(IF($A$7=Nutrients!$B$8,Nutrients!$FE$8,Nutrients!$FE$9)*T$7)+(((IF($A$8=Nutrients!$B$79,Nutrients!$FE$79,(IF($A$8=Nutrients!$B$77,Nutrients!$FE$77,Nutrients!$FE$78)))))*T$8))","v":0},{"$f":"(SUMPRODUCT(U$9:U$229,Nutrients!$FE$8:$FE$228)+(IF($A$7=Nutrients!$B$8,Nutrients!$FE$8,Nutrients!$FE$9)*U$7)+(((IF($A$8=Nutrients!$B$79,Nutrients!$FE$79,(IF($A$8=Nutrients!$B$77,Nutrients!$FE$77,Nutrients!$FE$78)))))*U$8))","v":0},null,{"$f":"(SUMPRODUCT(W$9:W$229,Nutrients!$FE$8:$FE$228)+(IF($A$7=Nutrients!$B$8,Nutrients!$FE$8,Nutrients!$FE$9)*W$7)+(((IF($A$8=Nutrients!$B$79,Nutrients!$FE$79,(IF($A$8=Nutrients!$B$77,Nutrients!$FE$77,Nutrients!$FE$78)))))*W$8))","v":0},{"$f":"(SUMPRODUCT(X$9:X$229,Nutrients!$FE$8:$FE$228)+(IF($A$7=Nutrients!$B$8,Nutrients!$FE$8,Nutrients!$FE$9)*X$7)+(((IF($A$8=Nutrients!$B$79,Nutrients!$FE$79,(IF($A$8=Nutrients!$B$77,Nutrients!$FE$77,Nutrients!$FE$78)))))*X$8))","v":0},{"$f":"(SUMPRODUCT(Y$9:Y$229,Nutrients!$FE$8:$FE$228)+(IF($A$7=Nutrients!$B$8,Nutrients!$FE$8,Nutrients!$FE$9)*Y$7)+(((IF($A$8=Nutrients!$B$79,Nutrients!$FE$79,(IF($A$8=Nutrients!$B$77,Nutrients!$FE$77,Nutrients!$FE$78)))))*Y$8))","v":0},{"$f":"(SUMPRODUCT(Z$9:Z$229,Nutrients!$FE$8:$FE$228)+(IF($A$7=Nutrients!$B$8,Nutrients!$FE$8,Nutrients!$FE$9)*Z$7)+(((IF($A$8=Nutrients!$B$79,Nutrients!$FE$79,(IF($A$8=Nutrients!$B$77,Nutrients!$FE$77,Nutrients!$FE$78)))))*Z$8))","v":0},{"$f":"(SUMPRODUCT(AA$9:AA$229,Nutrients!$FE$8:$FE$228)+(IF($A$7=Nutrients!$B$8,Nutrients!$FE$8,Nutrients!$FE$9)*AA$7)+(((IF($A$8=Nutrients!$B$79,Nutrients!$FE$79,(IF($A$8=Nutrients!$B$77,Nutrients!$FE$77,Nutrients!$FE$78)))))*AA$8))","v":0},{"$f":"(SUMPRODUCT(AB$9:AB$229,Nutrients!$FE$8:$FE$228)+(IF($A$7=Nutrients!$B$8,Nutrients!$FE$8,Nutrients!$FE$9)*AB$7)+(((IF($A$8=Nutrients!$B$79,Nutrients!$FE$79,(IF($A$8=Nutrients!$B$77,Nutrients!$FE$77,Nutrients!$FE$78)))))*AB$8))","v":0},null,{"$f":"(SUMPRODUCT(AD$9:AD$229,Nutrients!$FE$8:$FE$228)+(IF($A$7=Nutrients!$B$8,Nutrients!$FE$8,Nutrients!$FE$9)*AD$7)+(((IF($A$8=Nutrients!$B$79,Nutrients!$FE$79,(IF($A$8=Nutrients!$B$77,Nutrients!$FE$77,Nutrients!$FE$78)))))*AD$8))","v":0},{"$f":"(SUMPRODUCT(AE$9:AE$229,Nutrients!$FE$8:$FE$228)+(IF($A$7=Nutrients!$B$8,Nutrients!$FE$8,Nutrients!$FE$9)*AE$7)+(((IF($A$8=Nutrients!$B$79,Nutrients!$FE$79,(IF($A$8=Nutrients!$B$77,Nutrients!$FE$77,Nutrients!$FE$78)))))*AE$8))","v":0},{"$f":"(SUMPRODUCT(AF$9:AF$229,Nutrients!$FE$8:$FE$228)+(IF($A$7=Nutrients!$B$8,Nutrients!$FE$8,Nutrients!$FE$9)*AF$7)+(((IF($A$8=Nutrients!$B$79,Nutrients!$FE$79,(IF($A$8=Nutrients!$B$77,Nutrients!$FE$77,Nutrients!$FE$78)))))*AF$8))","v":0},{"$f":"(SUMPRODUCT(AG$9:AG$229,Nutrients!$FE$8:$FE$228)+(IF($A$7=Nutrients!$B$8,Nutrients!$FE$8,Nutrients!$FE$9)*AG$7)+(((IF($A$8=Nutrients!$B$79,Nutrients!$FE$79,(IF($A$8=Nutrients!$B$77,Nutrients!$FE$77,Nutrients!$FE$78)))))*AG$8))","v":0},{"$f":"(SUMPRODUCT(AH$9:AH$229,Nutrients!$FE$8:$FE$228)+(IF($A$7=Nutrients!$B$8,Nutrients!$FE$8,Nutrients!$FE$9)*AH$7)+(((IF($A$8=Nutrients!$B$79,Nutrients!$FE$79,(IF($A$8=Nutrients!$B$77,Nutrients!$FE$77,Nutrients!$FE$78)))))*AH$8))","v":0},{"$f":"(SUMPRODUCT(AI$9:AI$229,Nutrients!$FE$8:$FE$228)+(IF($A$7=Nutrients!$B$8,Nutrients!$FE$8,Nutrients!$FE$9)*AI$7)+(((IF($A$8=Nutrients!$B$79,Nutrients!$FE$79,(IF($A$8=Nutrients!$B$77,Nutrients!$FE$77,Nutrients!$FE$78)))))*AI$8))","v":0},null,{"$f":"(SUMPRODUCT(AK$9:AK$229,Nutrients!$FE$8:$FE$228)+(IF($A$7=Nutrients!$B$8,Nutrients!$FE$8,Nutrients!$FE$9)*AK$7)+(((IF($A$8=Nutrients!$B$79,Nutrients!$FE$79,(IF($A$8=Nutrients!$B$77,Nutrients!$FE$77,Nutrients!$FE$78)))))*AK$8))","v":0},{"$f":"(SUMPRODUCT(AL$9:AL$229,Nutrients!$FE$8:$FE$228)+(IF($A$7=Nutrients!$B$8,Nutrients!$FE$8,Nutrients!$FE$9)*AL$7)+(((IF($A$8=Nutrients!$B$79,Nutrients!$FE$79,(IF($A$8=Nutrients!$B$77,Nutrients!$FE$77,Nutrients!$FE$78)))))*AL$8))","v":0},{"$f":"(SUMPRODUCT(AM$9:AM$229,Nutrients!$FE$8:$FE$228)+(IF($A$7=Nutrients!$B$8,Nutrients!$FE$8,Nutrients!$FE$9)*AM$7)+(((IF($A$8=Nutrients!$B$79,Nutrients!$FE$79,(IF($A$8=Nutrients!$B$77,Nutrients!$FE$77,Nutrients!$FE$78)))))*AM$8))","v":0},{"$f":"(SUMPRODUCT(AN$9:AN$229,Nutrients!$FE$8:$FE$228)+(IF($A$7=Nutrients!$B$8,Nutrients!$FE$8,Nutrients!$FE$9)*AN$7)+(((IF($A$8=Nutrients!$B$79,Nutrients!$FE$79,(IF($A$8=Nutrients!$B$77,Nutrients!$FE$77,Nutrients!$FE$78)))))*AN$8))","v":0},{"$f":"(SUMPRODUCT(AO$9:AO$229,Nutrients!$FE$8:$FE$228)+(IF($A$7=Nutrients!$B$8,Nutrients!$FE$8,Nutrients!$FE$9)*AO$7)+(((IF($A$8=Nutrients!$B$79,Nutrients!$FE$79,(IF($A$8=Nutrients!$B$77,Nutrients!$FE$77,Nutrients!$FE$78)))))*AO$8))","v":0},{"$f":"(SUMPRODUCT(AP$9:AP$229,Nutrients!$FE$8:$FE$228)+(IF($A$7=Nutrients!$B$8,Nutrients!$FE$8,Nutrients!$FE$9)*AP$7)+(((IF($A$8=Nutrients!$B$79,Nutrients!$FE$79,(IF($A$8=Nutrients!$B$77,Nutrients!$FE$77,Nutrients!$FE$78)))))*AP$8))","v":0},null,{"$f":"(SUMPRODUCT(AR$9:AR$229,Nutrients!$FE$8:$FE$228)+(IF($A$7=Nutrients!$B$8,Nutrients!$FE$8,Nutrients!$FE$9)*AR$7)+(((IF($A$8=Nutrients!$B$79,Nutrients!$FE$79,(IF($A$8=Nutrients!$B$77,Nutrients!$FE$77,Nutrients!$FE$78)))))*AR$8))","v":0},{"$f":"(SUMPRODUCT(AS$9:AS$229,Nutrients!$FE$8:$FE$228)+(IF($A$7=Nutrients!$B$8,Nutrients!$FE$8,Nutrients!$FE$9)*AS$7)+(((IF($A$8=Nutrients!$B$79,Nutrients!$FE$79,(IF($A$8=Nutrients!$B$77,Nutrients!$FE$77,Nutrients!$FE$78)))))*AS$8))","v":0},{"$f":"(SUMPRODUCT(AT$9:AT$229,Nutrients!$FE$8:$FE$228)+(IF($A$7=Nutrients!$B$8,Nutrients!$FE$8,Nutrients!$FE$9)*AT$7)+(((IF($A$8=Nutrients!$B$79,Nutrients!$FE$79,(IF($A$8=Nutrients!$B$77,Nutrients!$FE$77,Nutrients!$FE$78)))))*AT$8))","v":0},{"$f":"(SUMPRODUCT(AU$9:AU$229,Nutrients!$FE$8:$FE$228)+(IF($A$7=Nutrients!$B$8,Nutrients!$FE$8,Nutrients!$FE$9)*AU$7)+(((IF($A$8=Nutrients!$B$79,Nutrients!$FE$79,(IF($A$8=Nutrients!$B$77,Nutrients!$FE$77,Nutrients!$FE$78)))))*AU$8))","v":0},{"$f":"(SUMPRODUCT(AV$9:AV$229,Nutrients!$FE$8:$FE$228)+(IF($A$7=Nutrients!$B$8,Nutrients!$FE$8,Nutrients!$FE$9)*AV$7)+(((IF($A$8=Nutrients!$B$79,Nutrients!$FE$79,(IF($A$8=Nutrients!$B$77,Nutrients!$FE$77,Nutrients!$FE$78)))))*AV$8))","v":0},{"$f":"(SUMPRODUCT(AW$9:AW$229,Nutrients!$FE$8:$FE$228)+(IF($A$7=Nutrients!$B$8,Nutrients!$FE$8,Nutrients!$FE$9)*AW$7)+(((IF($A$8=Nutrients!$B$79,Nutrients!$FE$79,(IF($A$8=Nutrients!$B$77,Nutrients!$FE$77,Nutrients!$FE$78)))))*AW$8))","v":0}]
[]
["ADG, g/d",{"$f":" (-1619.2980797296 + 25.9248064834 * (B251/1000) - 2657.6209162609 * B236 +\n123.0469725298 * B253 - 9.2854579989 * B316 + 872.0182830582 * B252 + 26.664395965 * (AVERAGE(B5:B6)*0.453592) +\n2599.7646012325 * B236 * B236- 0.1016237102 *  (AVERAGE(B5:B6)*0.453592) *  (AVERAGE(B5:B6)*0.453592) - 71.8618465276 * B236 * B253 -\n607.1294449572 * B236 * B252 + 25.6463076451 * B236 * (AVERAGE(B5:B6)*0.453592) - 0.8399854508 * B253 * (AVERAGE(B5:B6)*0.453592) +\n0.0967347393 * B316 * (AVERAGE(B5:B6)*0.453592) - 5.2553838048 * B252 * (AVERAGE(B5:B6)*0.453592))","v":740.32616660444182},{"$f":" -1619.2980797296 + 25.9248064834 * (C251/1000) - 2657.6209162609 * C236 +\n123.0469725298 * C253 - 9.2854579989 * C316 + 872.0182830582 * C252 + 26.664395965 * (AVERAGE(C5:C6)*0.453592) +\n2599.7646012325 * C236 * C236- 0.1016237102 *  (AVERAGE(C5:C6)*0.453592) *  (AVERAGE(C5:C6)*0.453592) - 71.8618465276 * C236 * C253 -\n607.1294449572 * C236 * C252 + 25.6463076451 * C236 * (AVERAGE(C5:C6)*0.453592) - 0.8399854508 * C253 * (AVERAGE(C5:C6)*0.453592) +\n0.0967347393 * C316 * (AVERAGE(C5:C6)*0.453592) - 5.2553838048 * C252 * (AVERAGE(C5:C6)*0.453592)","v":862.50756659214221},{"$f":" -1619.2980797296 + 25.9248064834 * (D251/1000) - 2657.6209162609 * D236 +\n123.0469725298 * D253 - 9.2854579989 * D316 + 872.0182830582 * D252 + 26.664395965 * (AVERAGE(D5:D6)*0.453592) +\n2599.7646012325 * D236 * D236- 0.1016237102 *  (AVERAGE(D5:D6)*0.453592) *  (AVERAGE(D5:D6)*0.453592) - 71.8618465276 * D236 * D253 -\n607.1294449572 * D236 * D252 + 25.6463076451 * D236 * (AVERAGE(D5:D6)*0.453592) - 0.8399854508 * D253 * (AVERAGE(D5:D6)*0.453592) +\n0.0967347393 * D316 * (AVERAGE(D5:D6)*0.453592) - 5.2553838048 * D252 * (AVERAGE(D5:D6)*0.453592)","v":944.95636803551065},{"$f":" -1619.2980797296 + 25.9248064834 * (E251/1000) - 2657.6209162609 * E236 +\n123.0469725298 * E253 - 9.2854579989 * E316 + 872.0182830582 * E252 + 26.664395965 * (AVERAGE(E5:E6)*0.453592) +\n2599.7646012325 * E236 * E236- 0.1016237102 *  (AVERAGE(E5:E6)*0.453592) *  (AVERAGE(E5:E6)*0.453592) - 71.8618465276 * E236 * E253 -\n607.1294449572 * E236 * E252 + 25.6463076451 * E236 * (AVERAGE(E5:E6)*0.453592) - 0.8399854508 * E253 * (AVERAGE(E5:E6)*0.453592) +\n0.0967347393 * E316 * (AVERAGE(E5:E6)*0.453592) - 5.2553838048 * E252 * (AVERAGE(E5:E6)*0.453592)","v":984.20180073567008},{"$f":" -1619.2980797296 + 25.9248064834 * (F251/1000) - 2657.6209162609 * F236 +\n123.0469725298 * F253 - 9.2854579989 * F316 + 872.0182830582 * F252 + 26.664395965 * (AVERAGE(F5:F6)*0.453592) +\n2599.7646012325 * F236 * F236- 0.1016237102 *  (AVERAGE(F5:F6)*0.453592) *  (AVERAGE(F5:F6)*0.453592) - 71.8618465276 * F236 * F253 -\n607.1294449572 * F236 * F252 + 25.6463076451 * F236 * (AVERAGE(F5:F6)*0.453592) - 0.8399854508 * F253 * (AVERAGE(F5:F6)*0.453592) +\n0.0967347393 * F316 * (AVERAGE(F5:F6)*0.453592) - 5.2553838048 * F252 * (AVERAGE(F5:F6)*0.453592)","v":982.04258582759257},{"$f":" -1619.2980797296 + 25.9248064834 * (G251/1000) - 2657.6209162609 * G236 +\n123.0469725298 * G253 - 9.2854579989 * G316 + 872.0182830582 * G252 + 26.664395965 * (AVERAGE(G5:G6)*0.453592) +\n2599.7646012325 * G236 * G236- 0.1016237102 *  (AVERAGE(G5:G6)*0.453592) *  (AVERAGE(G5:G6)*0.453592) - 71.8618465276 * G236 * G253 -\n607.1294449572 * G236 * G252 + 25.6463076451 * G236 * (AVERAGE(G5:G6)*0.453592) - 0.8399854508 * G253 * (AVERAGE(G5:G6)*0.453592) +\n0.0967347393 * G316 * (AVERAGE(G5:G6)*0.453592) - 5.2553838048 * G252 * (AVERAGE(G5:G6)*0.453592)","v":932.08406418687355},null,{"$f":" (-1619.2980797296 + 25.9248064834 * (I251/1000) - 2657.6209162609 * I236 +\n123.0469725298 * I253 - 9.2854579989 * I316 + 872.0182830582 * I252 + 26.664395965 * (AVERAGE(I5:I6)*0.453592) +\n2599.7646012325 * I236 * I236- 0.1016237102 *  (AVERAGE(I5:I6)*0.453592) *  (AVERAGE(I5:I6)*0.453592) - 71.8618465276 * I236 * I253 -\n607.1294449572 * I236 * I252 + 25.6463076451 * I236 * (AVERAGE(I5:I6)*0.453592) - 0.8399854508 * I253 * (AVERAGE(I5:I6)*0.453592) +\n0.0967347393 * I316 * (AVERAGE(I5:I6)*0.453592) - 5.2553838048 * I252 * (AVERAGE(I5:I6)*0.453592))","v":737.82281291393463},{"$f":" -1619.2980797296 + 25.9248064834 * (J251/1000) - 2657.6209162609 * J236 +\n123.0469725298 * J253 - 9.2854579989 * J316 + 872.0182830582 * J252 + 26.664395965 * (AVERAGE(J5:J6)*0.453592) +\n2599.7646012325 * J236 * J236- 0.1016237102 *  (AVERAGE(J5:J6)*0.453592) *  (AVERAGE(J5:J6)*0.453592) - 71.8618465276 * J236 * J253 -\n607.1294449572 * J236 * J252 + 25.6463076451 * J236 * (AVERAGE(J5:J6)*0.453592) - 0.8399854508 * J253 * (AVERAGE(J5:J6)*0.453592) +\n0.0967347393 * J316 * (AVERAGE(J5:J6)*0.453592) - 5.2553838048 * J252 * (AVERAGE(J5:J6)*0.453592)","v":860.42380070965544},{"$f":" -1619.2980797296 + 25.9248064834 * (K251/1000) - 2657.6209162609 * K236 +\n123.0469725298 * K253 - 9.2854579989 * K316 + 872.0182830582 * K252 + 26.664395965 * (AVERAGE(K5:K6)*0.453592) +\n2599.7646012325 * K236 * K236- 0.1016237102 *  (AVERAGE(K5:K6)*0.453592) *  (AVERAGE(K5:K6)*0.453592) - 71.8618465276 * K236 * K253 -\n607.1294449572 * K236 * K252 + 25.6463076451 * K236 * (AVERAGE(K5:K6)*0.453592) - 0.8399854508 * K253 * (AVERAGE(K5:K6)*0.453592) +\n0.0967347393 * K316 * (AVERAGE(K5:K6)*0.453592) - 5.2553838048 * K252 * (AVERAGE(K5:K6)*0.453592)","v":942.56282888497708},{"$f":" -1619.2980797296 + 25.9248064834 * (L251/1000) - 2657.6209162609 * L236 +\n123.0469725298 * L253 - 9.2854579989 * L316 + 872.0182830582 * L252 + 26.664395965 * (AVERAGE(L5:L6)*0.453592) +\n2599.7646012325 * L236 * L236- 0.1016237102 *  (AVERAGE(L5:L6)*0.453592) *  (AVERAGE(L5:L6)*0.453592) - 71.8618465276 * L236 * L253 -\n607.1294449572 * L236 * L252 + 25.6463076451 * L236 * (AVERAGE(L5:L6)*0.453592) - 0.8399854508 * L253 * (AVERAGE(L5:L6)*0.453592) +\n0.0967347393 * L316 * (AVERAGE(L5:L6)*0.453592) - 5.2553838048 * L252 * (AVERAGE(L5:L6)*0.453592)","v":980.60177466022901},{"$f":" -1619.2980797296 + 25.9248064834 * (M251/1000) - 2657.6209162609 * M236 +\n123.0469725298 * M253 - 9.2854579989 * M316 + 872.0182830582 * M252 + 26.664395965 * (AVERAGE(M5:M6)*0.453592) +\n2599.7646012325 * M236 * M236- 0.1016237102 *  (AVERAGE(M5:M6)*0.453592) *  (AVERAGE(M5:M6)*0.453592) - 71.8618465276 * M236 * M253 -\n607.1294449572 * M236 * M252 + 25.6463076451 * M236 * (AVERAGE(M5:M6)*0.453592) - 0.8399854508 * M253 * (AVERAGE(M5:M6)*0.453592) +\n0.0967347393 * M316 * (AVERAGE(M5:M6)*0.453592) - 5.2553838048 * M252 * (AVERAGE(M5:M6)*0.453592)","v":976.35154973514977},{"$f":" -1619.2980797296 + 25.9248064834 * (N251/1000) - 2657.6209162609 * N236 +\n123.0469725298 * N253 - 9.2854579989 * N316 + 872.0182830582 * N252 + 26.664395965 * (AVERAGE(N5:N6)*0.453592) +\n2599.7646012325 * N236 * N236- 0.1016237102 *  (AVERAGE(N5:N6)*0.453592) *  (AVERAGE(N5:N6)*0.453592) - 71.8618465276 * N236 * N253 -\n607.1294449572 * N236 * N252 + 25.6463076451 * N236 * (AVERAGE(N5:N6)*0.453592) - 0.8399854508 * N253 * (AVERAGE(N5:N6)*0.453592) +\n0.0967347393 * N316 * (AVERAGE(N5:N6)*0.453592) - 5.2553838048 * N252 * (AVERAGE(N5:N6)*0.453592)","v":932.08406418687355},null,{"$f":" (-1619.2980797296 + 25.9248064834 * (P251/1000) - 2657.6209162609 * P236 +\n123.0469725298 * P253 - 9.2854579989 * P316 + 872.0182830582 * P252 + 26.664395965 * (AVERAGE(P5:P6)*0.453592) +\n2599.7646012325 * P236 * P236- 0.1016237102 *  (AVERAGE(P5:P6)*0.453592) *  (AVERAGE(P5:P6)*0.453592) - 71.8618465276 * P236 * P253 -\n607.1294449572 * P236 * P252 + 25.6463076451 * P236 * (AVERAGE(P5:P6)*0.453592) - 0.8399854508 * P253 * (AVERAGE(P5:P6)*0.453592) +\n0.0967347393 * P316 * (AVERAGE(P5:P6)*0.453592) - 5.2553838048 * P252 * (AVERAGE(P5:P6)*0.453592))","v":735.36391234255655},{"$f":" -1619.2980797296 + 25.9248064834 * (Q251/1000) - 2657.6209162609 * Q236 +\n123.0469725298 * Q253 - 9.2854579989 * Q316 + 872.0182830582 * Q252 + 26.664395965 * (AVERAGE(Q5:Q6)*0.453592) +\n2599.7646012325 * Q236 * Q236- 0.1016237102 *  (AVERAGE(Q5:Q6)*0.453592) *  (AVERAGE(Q5:Q6)*0.453592) - 71.8618465276 * Q236 * Q253 -\n607.1294449572 * Q236 * Q252 + 25.6463076451 * Q236 * (AVERAGE(Q5:Q6)*0.453592) - 0.8399854508 * Q253 * (AVERAGE(Q5:Q6)*0.453592) +\n0.0967347393 * Q316 * (AVERAGE(Q5:Q6)*0.453592) - 5.2553838048 * Q252 * (AVERAGE(Q5:Q6)*0.453592)","v":858.36844770368066},{"$f":" -1619.2980797296 + 25.9248064834 * (R251/1000) - 2657.6209162609 * R236 +\n123.0469725298 * R253 - 9.2854579989 * R316 + 872.0182830582 * R252 + 26.664395965 * (AVERAGE(R5:R6)*0.453592) +\n2599.7646012325 * R236 * R236- 0.1016237102 *  (AVERAGE(R5:R6)*0.453592) *  (AVERAGE(R5:R6)*0.453592) - 71.8618465276 * R236 * R253 -\n607.1294449572 * R236 * R252 + 25.6463076451 * R236 * (AVERAGE(R5:R6)*0.453592) - 0.8399854508 * R253 * (AVERAGE(R5:R6)*0.453592) +\n0.0967347393 * R316 * (AVERAGE(R5:R6)*0.453592) - 5.2553838048 * R252 * (AVERAGE(R5:R6)*0.453592)","v":940.18058238231538},{"$f":" -1619.2980797296 + 25.9248064834 * (S251/1000) - 2657.6209162609 * S236 +\n123.0469725298 * S253 - 9.2854579989 * S316 + 872.0182830582 * S252 + 26.664395965 * (AVERAGE(S5:S6)*0.453592) +\n2599.7646012325 * S236 * S236- 0.1016237102 *  (AVERAGE(S5:S6)*0.453592) *  (AVERAGE(S5:S6)*0.453592) - 71.8618465276 * S236 * S253 -\n607.1294449572 * S236 * S252 + 25.6463076451 * S236 * (AVERAGE(S5:S6)*0.453592) - 0.8399854508 * S253 * (AVERAGE(S5:S6)*0.453592) +\n0.0967347393 * S316 * (AVERAGE(S5:S6)*0.453592) - 5.2553838048 * S252 * (AVERAGE(S5:S6)*0.453592)","v":976.98421807826821},{"$f":" -1619.2980797296 + 25.9248064834 * (T251/1000) - 2657.6209162609 * T236 +\n123.0469725298 * T253 - 9.2854579989 * T316 + 872.0182830582 * T252 + 26.664395965 * (AVERAGE(T5:T6)*0.453592) +\n2599.7646012325 * T236 * T236- 0.1016237102 *  (AVERAGE(T5:T6)*0.453592) *  (AVERAGE(T5:T6)*0.453592) - 71.8618465276 * T236 * T253 -\n607.1294449572 * T236 * T252 + 25.6463076451 * T236 * (AVERAGE(T5:T6)*0.453592) - 0.8399854508 * T253 * (AVERAGE(T5:T6)*0.453592) +\n0.0967347393 * T316 * (AVERAGE(T5:T6)*0.453592) - 5.2553838048 * T252 * (AVERAGE(T5:T6)*0.453592)","v":970.61642674660789},{"$f":" -1619.2980797296 + 25.9248064834 * (U251/1000) - 2657.6209162609 * U236 +\n123.0469725298 * U253 - 9.2854579989 * U316 + 872.0182830582 * U252 + 26.664395965 * (AVERAGE(U5:U6)*0.453592) +\n2599.7646012325 * U236 * U236- 0.1016237102 *  (AVERAGE(U5:U6)*0.453592) *  (AVERAGE(U5:U6)*0.453592) - 71.8618465276 * U236 * U253 -\n607.1294449572 * U236 * U252 + 25.6463076451 * U236 * (AVERAGE(U5:U6)*0.453592) - 0.8399854508 * U253 * (AVERAGE(U5:U6)*0.453592) +\n0.0967347393 * U316 * (AVERAGE(U5:U6)*0.453592) - 5.2553838048 * U252 * (AVERAGE(U5:U6)*0.453592)","v":932.08406418687355},null,{"$f":" (-1619.2980797296 + 25.9248064834 * (W251/1000) - 2657.6209162609 * W236 +\n123.0469725298 * W253 - 9.2854579989 * W316 + 872.0182830582 * W252 + 26.664395965 * (AVERAGE(W5:W6)*0.453592) +\n2599.7646012325 * W236 * W236- 0.1016237102 *  (AVERAGE(W5:W6)*0.453592) *  (AVERAGE(W5:W6)*0.453592) - 71.8618465276 * W236 * W253 -\n607.1294449572 * W236 * W252 + 25.6463076451 * W236 * (AVERAGE(W5:W6)*0.453592) - 0.8399854508 * W253 * (AVERAGE(W5:W6)*0.453592) +\n0.0967347393 * W316 * (AVERAGE(W5:W6)*0.453592) - 5.2553838048 * W252 * (AVERAGE(W5:W6)*0.453592))","v":732.9152560783665},{"$f":" -1619.2980797296 + 25.9248064834 * (X251/1000) - 2657.6209162609 * X236 +\n123.0469725298 * X253 - 9.2854579989 * X316 + 872.0182830582 * X252 + 26.664395965 * (AVERAGE(X5:X6)*0.453592) +\n2599.7646012325 * X236 * X236- 0.1016237102 *  (AVERAGE(X5:X6)*0.453592) *  (AVERAGE(X5:X6)*0.453592) - 71.8618465276 * X236 * X253 -\n607.1294449572 * X236 * X252 + 25.6463076451 * X236 * (AVERAGE(X5:X6)*0.453592) - 0.8399854508 * X253 * (AVERAGE(X5:X6)*0.453592) +\n0.0967347393 * X316 * (AVERAGE(X5:X6)*0.453592) - 5.2553838048 * X252 * (AVERAGE(X5:X6)*0.453592)","v":856.3384518252584},{"$f":" -1619.2980797296 + 25.9248064834 * (Y251/1000) - 2657.6209162609 * Y236 +\n123.0469725298 * Y253 - 9.2854579989 * Y316 + 872.0182830582 * Y252 + 26.664395965 * (AVERAGE(Y5:Y6)*0.453592) +\n2599.7646012325 * Y236 * Y236- 0.1016237102 *  (AVERAGE(Y5:Y6)*0.453592) *  (AVERAGE(Y5:Y6)*0.453592) - 71.8618465276 * Y236 * Y253 -\n607.1294449572 * Y236 * Y252 + 25.6463076451 * Y236 * (AVERAGE(Y5:Y6)*0.453592) - 0.8399854508 * Y253 * (AVERAGE(Y5:Y6)*0.453592) +\n0.0967347393 * Y316 * (AVERAGE(Y5:Y6)*0.453592) - 5.2553838048 * Y252 * (AVERAGE(Y5:Y6)*0.453592)","v":937.80263712373403},{"$f":" -1619.2980797296 + 25.9248064834 * (Z251/1000) - 2657.6209162609 * Z236 +\n123.0469725298 * Z253 - 9.2854579989 * Z316 + 872.0182830582 * Z252 + 26.664395965 * (AVERAGE(Z5:Z6)*0.453592) +\n2599.7646012325 * Z236 * Z236- 0.1016237102 *  (AVERAGE(Z5:Z6)*0.453592) *  (AVERAGE(Z5:Z6)*0.453592) - 71.8618465276 * Z236 * Z253 -\n607.1294449572 * Z236 * Z252 + 25.6463076451 * Z236 * (AVERAGE(Z5:Z6)*0.453592) - 0.8399854508 * Z253 * (AVERAGE(Z5:Z6)*0.453592) +\n0.0967347393 * Z316 * (AVERAGE(Z5:Z6)*0.453592) - 5.2553838048 * Z252 * (AVERAGE(Z5:Z6)*0.453592)","v":973.37564760546206},{"$f":" -1619.2980797296 + 25.9248064834 * (AA251/1000) - 2657.6209162609 * AA236 +\n123.0469725298 * AA253 - 9.2854579989 * AA316 + 872.0182830582 * AA252 + 26.664395965 * (AVERAGE(AA5:AA6)*0.453592) +\n2599.7646012325 * AA236 * AA236- 0.1016237102 *  (AVERAGE(AA5:AA6)*0.453592) *  (AVERAGE(AA5:AA6)*0.453592) - 71.8618465276 * AA236 * AA253 -\n607.1294449572 * AA236 * AA252 + 25.6463076451 * AA236 * (AVERAGE(AA5:AA6)*0.453592) - 0.8399854508 * AA253 * (AVERAGE(AA5:AA6)*0.453592) +\n0.0967347393 * AA316 * (AVERAGE(AA5:AA6)*0.453592) - 5.2553838048 * AA252 * (AVERAGE(AA5:AA6)*0.453592)","v":964.7436980632217},{"$f":" -1619.2980797296 + 25.9248064834 * (AB251/1000) - 2657.6209162609 * AB236 +\n123.0469725298 * AB253 - 9.2854579989 * AB316 + 872.0182830582 * AB252 + 26.664395965 * (AVERAGE(AB5:AB6)*0.453592) +\n2599.7646012325 * AB236 * AB236- 0.1016237102 *  (AVERAGE(AB5:AB6)*0.453592) *  (AVERAGE(AB5:AB6)*0.453592) - 71.8618465276 * AB236 * AB253 -\n607.1294449572 * AB236 * AB252 + 25.6463076451 * AB236 * (AVERAGE(AB5:AB6)*0.453592) - 0.8399854508 * AB253 * (AVERAGE(AB5:AB6)*0.453592) +\n0.0967347393 * AB316 * (AVERAGE(AB5:AB6)*0.453592) - 5.2553838048 * AB252 * (AVERAGE(AB5:AB6)*0.453592)","v":932.08406418687355},null,{"$f":" (-1619.2980797296 + 25.9248064834 * (AD251/1000) - 2657.6209162609 * AD236 +\n123.0469725298 * AD253 - 9.2854579989 * AD316 + 872.0182830582 * AD252 + 26.664395965 * (AVERAGE(AD5:AD6)*0.453592) +\n2599.7646012325 * AD236 * AD236- 0.1016237102 *  (AVERAGE(AD5:AD6)*0.453592) *  (AVERAGE(AD5:AD6)*0.453592) - 71.8618465276 * AD236 * AD253 -\n607.1294449572 * AD236 * AD252 + 25.6463076451 * AD236 * (AVERAGE(AD5:AD6)*0.453592) - 0.8399854508 * AD253 * (AVERAGE(AD5:AD6)*0.453592) +\n0.0967347393 * AD316 * (AVERAGE(AD5:AD6)*0.453592) - 5.2553838048 * AD252 * (AVERAGE(AD5:AD6)*0.453592))","v":730.51508162544155},{"$f":" -1619.2980797296 + 25.9248064834 * (AE251/1000) - 2657.6209162609 * AE236 +\n123.0469725298 * AE253 - 9.2854579989 * AE316 + 872.0182830582 * AE252 + 26.664395965 * (AVERAGE(AE5:AE6)*0.453592) +\n2599.7646012325 * AE236 * AE236- 0.1016237102 *  (AVERAGE(AE5:AE6)*0.453592) *  (AVERAGE(AE5:AE6)*0.453592) - 71.8618465276 * AE236 * AE253 -\n607.1294449572 * AE236 * AE252 + 25.6463076451 * AE236 * (AVERAGE(AE5:AE6)*0.453592) - 0.8399854508 * AE253 * (AVERAGE(AE5:AE6)*0.453592) +\n0.0967347393 * AE316 * (AVERAGE(AE5:AE6)*0.453592) - 5.2553838048 * AE252 * (AVERAGE(AE5:AE6)*0.453592)","v":854.29804278316578},{"$f":" -1619.2980797296 + 25.9248064834 * (AF251/1000) - 2657.6209162609 * AF236 +\n123.0469725298 * AF253 - 9.2854579989 * AF316 + 872.0182830582 * AF252 + 26.664395965 * (AVERAGE(AF5:AF6)*0.453592) +\n2599.7646012325 * AF236 * AF236- 0.1016237102 *  (AVERAGE(AF5:AF6)*0.453592) *  (AVERAGE(AF5:AF6)*0.453592) - 71.8618465276 * AF236 * AF253 -\n607.1294449572 * AF236 * AF252 + 25.6463076451 * AF236 * (AVERAGE(AF5:AF6)*0.453592) - 0.8399854508 * AF253 * (AVERAGE(AF5:AF6)*0.453592) +\n0.0967347393 * AF316 * (AVERAGE(AF5:AF6)*0.453592) - 5.2553838048 * AF252 * (AVERAGE(AF5:AF6)*0.453592)","v":935.44765961534085},{"$f":" -1619.2980797296 + 25.9248064834 * (AG251/1000) - 2657.6209162609 * AG236 +\n123.0469725298 * AG253 - 9.2854579989 * AG316 + 872.0182830582 * AG252 + 26.664395965 * (AVERAGE(AG5:AG6)*0.453592) +\n2599.7646012325 * AG236 * AG236- 0.1016237102 *  (AVERAGE(AG5:AG6)*0.453592) *  (AVERAGE(AG5:AG6)*0.453592) - 71.8618465276 * AG236 * AG253 -\n607.1294449572 * AG236 * AG252 + 25.6463076451 * AG236 * (AVERAGE(AG5:AG6)*0.453592) - 0.8399854508 * AG253 * (AVERAGE(AG5:AG6)*0.453592) +\n0.0967347393 * AG316 * (AVERAGE(AG5:AG6)*0.453592) - 5.2553838048 * AG252 * (AVERAGE(AG5:AG6)*0.453592)","v":969.75471744288711},{"$f":" -1619.2980797296 + 25.9248064834 * (AH251/1000) - 2657.6209162609 * AH236 +\n123.0469725298 * AH253 - 9.2854579989 * AH316 + 872.0182830582 * AH252 + 26.664395965 * (AVERAGE(AH5:AH6)*0.453592) +\n2599.7646012325 * AH236 * AH236- 0.1016237102 *  (AVERAGE(AH5:AH6)*0.453592) *  (AVERAGE(AH5:AH6)*0.453592) - 71.8618465276 * AH236 * AH253 -\n607.1294449572 * AH236 * AH252 + 25.6463076451 * AH236 * (AVERAGE(AH5:AH6)*0.453592) - 0.8399854508 * AH253 * (AVERAGE(AH5:AH6)*0.453592) +\n0.0967347393 * AH316 * (AVERAGE(AH5:AH6)*0.453592) - 5.2553838048 * AH252 * (AVERAGE(AH5:AH6)*0.453592)","v":958.93141742963121},{"$f":" -1619.2980797296 + 25.9248064834 * (AI251/1000) - 2657.6209162609 * AI236 +\n123.0469725298 * AI253 - 9.2854579989 * AI316 + 872.0182830582 * AI252 + 26.664395965 * (AVERAGE(AI5:AI6)*0.453592) +\n2599.7646012325 * AI236 * AI236- 0.1016237102 *  (AVERAGE(AI5:AI6)*0.453592) *  (AVERAGE(AI5:AI6)*0.453592) - 71.8618465276 * AI236 * AI253 -\n607.1294449572 * AI236 * AI252 + 25.6463076451 * AI236 * (AVERAGE(AI5:AI6)*0.453592) - 0.8399854508 * AI253 * (AVERAGE(AI5:AI6)*0.453592) +\n0.0967347393 * AI316 * (AVERAGE(AI5:AI6)*0.453592) - 5.2553838048 * AI252 * (AVERAGE(AI5:AI6)*0.453592)","v":932.08406418687355},null,{"$f":" (-1619.2980797296 + 25.9248064834 * (AK251/1000) - 2657.6209162609 * AK236 +\n123.0469725298 * AK253 - 9.2854579989 * AK316 + 872.0182830582 * AK252 + 26.664395965 * (AVERAGE(AK5:AK6)*0.453592) +\n2599.7646012325 * AK236 * AK236- 0.1016237102 *  (AVERAGE(AK5:AK6)*0.453592) *  (AVERAGE(AK5:AK6)*0.453592) - 71.8618465276 * AK236 * AK253 -\n607.1294449572 * AK236 * AK252 + 25.6463076451 * AK236 * (AVERAGE(AK5:AK6)*0.453592) - 0.8399854508 * AK253 * (AVERAGE(AK5:AK6)*0.453592) +\n0.0967347393 * AK316 * (AVERAGE(AK5:AK6)*0.453592) - 5.2553838048 * AK252 * (AVERAGE(AK5:AK6)*0.453592))","v":728.10045668103191},{"$f":" -1619.2980797296 + 25.9248064834 * (AL251/1000) - 2657.6209162609 * AL236 +\n123.0469725298 * AL253 - 9.2854579989 * AL316 + 872.0182830582 * AL252 + 26.664395965 * (AVERAGE(AL5:AL6)*0.453592) +\n2599.7646012325 * AL236 * AL236- 0.1016237102 *  (AVERAGE(AL5:AL6)*0.453592) *  (AVERAGE(AL5:AL6)*0.453592) - 71.8618465276 * AL236 * AL253 -\n607.1294449572 * AL236 * AL252 + 25.6463076451 * AL236 * (AVERAGE(AL5:AL6)*0.453592) - 0.8399854508 * AL253 * (AVERAGE(AL5:AL6)*0.453592) +\n0.0967347393 * AL316 * (AVERAGE(AL5:AL6)*0.453592) - 5.2553838048 * AL252 * (AVERAGE(AL5:AL6)*0.453592)","v":852.26887422429309},{"$f":" -1619.2980797296 + 25.9248064834 * (AM251/1000) - 2657.6209162609 * AM236 +\n123.0469725298 * AM253 - 9.2854579989 * AM316 + 872.0182830582 * AM252 + 26.664395965 * (AVERAGE(AM5:AM6)*0.453592) +\n2599.7646012325 * AM236 * AM236- 0.1016237102 *  (AVERAGE(AM5:AM6)*0.453592) *  (AVERAGE(AM5:AM6)*0.453592) - 71.8618465276 * AM236 * AM253 -\n607.1294449572 * AM236 * AM252 + 25.6463076451 * AM236 * (AVERAGE(AM5:AM6)*0.453592) - 0.8399854508 * AM253 * (AVERAGE(AM5:AM6)*0.453592) +\n0.0967347393 * AM316 * (AVERAGE(AM5:AM6)*0.453592) - 5.2553838048 * AM252 * (AVERAGE(AM5:AM6)*0.453592)","v":933.06299604687842},{"$f":" -1619.2980797296 + 25.9248064834 * (AN251/1000) - 2657.6209162609 * AN236 +\n123.0469725298 * AN253 - 9.2854579989 * AN316 + 872.0182830582 * AN252 + 26.664395965 * (AVERAGE(AN5:AN6)*0.453592) +\n2599.7646012325 * AN236 * AN236- 0.1016237102 *  (AVERAGE(AN5:AN6)*0.453592) *  (AVERAGE(AN5:AN6)*0.453592) - 71.8618465276 * AN236 * AN253 -\n607.1294449572 * AN236 * AN252 + 25.6463076451 * AN236 * (AVERAGE(AN5:AN6)*0.453592) - 0.8399854508 * AN253 * (AVERAGE(AN5:AN6)*0.453592) +\n0.0967347393 * AN316 * (AVERAGE(AN5:AN6)*0.453592) - 5.2553838048 * AN252 * (AVERAGE(AN5:AN6)*0.453592)","v":966.12397518923876},{"$f":" -1619.2980797296 + 25.9248064834 * (AO251/1000) - 2657.6209162609 * AO236 +\n123.0469725298 * AO253 - 9.2854579989 * AO316 + 872.0182830582 * AO252 + 26.664395965 * (AVERAGE(AO5:AO6)*0.453592) +\n2599.7646012325 * AO236 * AO236- 0.1016237102 *  (AVERAGE(AO5:AO6)*0.453592) *  (AVERAGE(AO5:AO6)*0.453592) - 71.8618465276 * AO236 * AO253 -\n607.1294449572 * AO236 * AO252 + 25.6463076451 * AO236 * (AVERAGE(AO5:AO6)*0.453592) - 0.8399854508 * AO253 * (AVERAGE(AO5:AO6)*0.453592) +\n0.0967347393 * AO316 * (AVERAGE(AO5:AO6)*0.453592) - 5.2553838048 * AO252 * (AVERAGE(AO5:AO6)*0.453592)","v":953.16426326229521},{"$f":" -1619.2980797296 + 25.9248064834 * (AP251/1000) - 2657.6209162609 * AP236 +\n123.0469725298 * AP253 - 9.2854579989 * AP316 + 872.0182830582 * AP252 + 26.664395965 * (AVERAGE(AP5:AP6)*0.453592) +\n2599.7646012325 * AP236 * AP236- 0.1016237102 *  (AVERAGE(AP5:AP6)*0.453592) *  (AVERAGE(AP5:AP6)*0.453592) - 71.8618465276 * AP236 * AP253 -\n607.1294449572 * AP236 * AP252 + 25.6463076451 * AP236 * (AVERAGE(AP5:AP6)*0.453592) - 0.8399854508 * AP253 * (AVERAGE(AP5:AP6)*0.453592) +\n0.0967347393 * AP316 * (AVERAGE(AP5:AP6)*0.453592) - 5.2553838048 * AP252 * (AVERAGE(AP5:AP6)*0.453592)","v":932.08406418687355},null,{"$f":" (-1619.2980797296 + 25.9248064834 * (AR251/1000) - 2657.6209162609 * AR236 +\n123.0469725298 * AR253 - 9.2854579989 * AR316 + 872.0182830582 * AR252 + 26.664395965 * (AVERAGE(AR5:AR6)*0.453592) +\n2599.7646012325 * AR236 * AR236- 0.1016237102 *  (AVERAGE(AR5:AR6)*0.453592) *  (AVERAGE(AR5:AR6)*0.453592) - 71.8618465276 * AR236 * AR253 -\n607.1294449572 * AR236 * AR252 + 25.6463076451 * AR236 * (AVERAGE(AR5:AR6)*0.453592) - 0.8399854508 * AR253 * (AVERAGE(AR5:AR6)*0.453592) +\n0.0967347393 * AR316 * (AVERAGE(AR5:AR6)*0.453592) - 5.2553838048 * AR252 * (AVERAGE(AR5:AR6)*0.453592))","v":725.70833548714313},{"$f":" -1619.2980797296 + 25.9248064834 * (AS251/1000) - 2657.6209162609 * AS236 +\n123.0469725298 * AS253 - 9.2854579989 * AS316 + 872.0182830582 * AS252 + 26.664395965 * (AVERAGE(AS5:AS6)*0.453592) +\n2599.7646012325 * AS236 * AS236- 0.1016237102 *  (AVERAGE(AS5:AS6)*0.453592) *  (AVERAGE(AS5:AS6)*0.453592) - 71.8618465276 * AS236 * AS253 -\n607.1294449572 * AS236 * AS252 + 25.6463076451 * AS236 * (AVERAGE(AS5:AS6)*0.453592) - 0.8399854508 * AS253 * (AVERAGE(AS5:AS6)*0.453592) +\n0.0967347393 * AS316 * (AVERAGE(AS5:AS6)*0.453592) - 5.2553838048 * AS252 * (AVERAGE(AS5:AS6)*0.453592)","v":850.26358207143301},{"$f":" -1619.2980797296 + 25.9248064834 * (AT251/1000) - 2657.6209162609 * AT236 +\n123.0469725298 * AT253 - 9.2854579989 * AT316 + 872.0182830582 * AT252 + 26.664395965 * (AVERAGE(AT5:AT6)*0.453592) +\n2599.7646012325 * AT236 * AT236- 0.1016237102 *  (AVERAGE(AT5:AT6)*0.453592) *  (AVERAGE(AT5:AT6)*0.453592) - 71.8618465276 * AT236 * AT253 -\n607.1294449572 * AT236 * AT252 + 25.6463076451 * AT236 * (AVERAGE(AT5:AT6)*0.453592) - 0.8399854508 * AT253 * (AVERAGE(AT5:AT6)*0.453592) +\n0.0967347393 * AT316 * (AVERAGE(AT5:AT6)*0.453592) - 5.2553838048 * AT252 * (AVERAGE(AT5:AT6)*0.453592)","v":930.71636813888495},{"$f":" -1619.2980797296 + 25.9248064834 * (AU251/1000) - 2657.6209162609 * AU236 +\n123.0469725298 * AU253 - 9.2854579989 * AU316 + 872.0182830582 * AU252 + 26.664395965 * (AVERAGE(AU5:AU6)*0.453592) +\n2599.7646012325 * AU236 * AU236- 0.1016237102 *  (AVERAGE(AU5:AU6)*0.453592) *  (AVERAGE(AU5:AU6)*0.453592) - 71.8618465276 * AU236 * AU253 -\n607.1294449572 * AU236 * AU252 + 25.6463076451 * AU236 * (AVERAGE(AU5:AU6)*0.453592) - 0.8399854508 * AU253 * (AVERAGE(AU5:AU6)*0.453592) +\n0.0967347393 * AU316 * (AVERAGE(AU5:AU6)*0.453592) - 5.2553838048 * AU252 * (AVERAGE(AU5:AU6)*0.453592)","v":962.53800879494202},{"$f":" -1619.2980797296 + 25.9248064834 * (AV251/1000) - 2657.6209162609 * AV236 +\n123.0469725298 * AV253 - 9.2854579989 * AV316 + 872.0182830582 * AV252 + 26.664395965 * (AVERAGE(AV5:AV6)*0.453592) +\n2599.7646012325 * AV236 * AV236- 0.1016237102 *  (AVERAGE(AV5:AV6)*0.453592) *  (AVERAGE(AV5:AV6)*0.453592) - 71.8618465276 * AV236 * AV253 -\n607.1294449572 * AV236 * AV252 + 25.6463076451 * AV236 * (AVERAGE(AV5:AV6)*0.453592) - 0.8399854508 * AV253 * (AVERAGE(AV5:AV6)*0.453592) +\n0.0967347393 * AV316 * (AVERAGE(AV5:AV6)*0.453592) - 5.2553838048 * AV252 * (AVERAGE(AV5:AV6)*0.453592)","v":947.39723970899036},{"$f":" -1619.2980797296 + 25.9248064834 * (AW251/1000) - 2657.6209162609 * AW236 +\n123.0469725298 * AW253 - 9.2854579989 * AW316 + 872.0182830582 * AW252 + 26.664395965 * (AVERAGE(AW5:AW6)*0.453592) +\n2599.7646012325 * AW236 * AW236- 0.1016237102 *  (AVERAGE(AW5:AW6)*0.453592) *  (AVERAGE(AW5:AW6)*0.453592) - 71.8618465276 * AW236 * AW253 -\n607.1294449572 * AW236 * AW252 + 25.6463076451 * AW236 * (AVERAGE(AW5:AW6)*0.453592) - 0.8399854508 * AW253 * (AVERAGE(AW5:AW6)*0.453592) +\n0.0967347393 * AW316 * (AVERAGE(AW5:AW6)*0.453592) - 5.2553838048 * AW252 * (AVERAGE(AW5:AW6)*0.453592)","v":932.08406418687355}]
["ADFI, g/d",{"$f":"B342/B344*1000","v":1359.5480024980595},1828.292464469157,2305.5922105887325,2729.415034120711,3011.820185199786,3094.1334754619566,null,{"$f":"I342/I344*1000","v":1346.0575235344752},1808.595311865093,2279.5083502226785,2700.3612615711422,2987.6315457739638,3094.1334754619566,null,{"$f":"P342/P344*1000","v":1332.8624926290099},1789.3098606339688,2253.8731748737682,2671.6841291230453,2963.4336848946218,3094.1334754619566,null,{"$f":"W342/W344*1000","v":1319.8294826778078},1770.2488848051646,2228.656365811431,2643.1093688582519,2938.4405548250534,3094.1334754619566,null,{"$f":"AD342/AD344*1000","v":1307.0315999535521},1751.5617488331043,2203.7708364174064,2614.9114448239866,2914.0973596218037,3094.1334754619566,null,{"$f":"AK342/AK344*1000","v":1294.4478777057961},1733.2355395153918,2179.5789117240365,2587.6226674441846,2889.870798769618,3094.1334754619566,null,{"$f":"AR342/AR344*1000","v":1281.8816657962336},1715.3369667994261,2155.7875605878421,2560.602748390314,2865.7517354761844,3094.1334754619566]
["GF, g/kg",{"$f":" -232.8670000513 - (102.0339177026 * (B251/1000)) + (1386.8135453223 * B236) - (3.1583174866 * B253) + (80.3303777865 * B316) - (115.1570451563 * B252) + (4.1836503117 * (AVERAGE(B5:B6)*0.453592)) + (2553.6417073224 * B236 * B236) + (228.757399518 * B252 * B252) + (12.736240264 *  (B251/1000) * B253) - (24.4502664605 *  (B251/1000) * B316) - (23.0415882284 * B236 * B253) + (101.5847297779 * B236 * B316) - (1559.9331198689 * B236 *B252) - (3.9239483753 * B236 * (AVERAGE(B5:B6)*0.453592)) - (0.1078600966 * B253 * (AVERAGE(B5:B6)*0.453592)) - (28.1879330488 * B316 * B252) - (0.1153929924 * B316 * (AVERAGE(B5:B6)*0.453592))","v":544.53845340080113},471.75579583355693,409.85407727163351,360.59074506150858,326.06282096567122,301.24235802326291,null,{"$f":" -232.8670000513 - (102.0339177026 * (I251/1000)) + (1386.8135453223 * I236) - (3.1583174866 * I253) + (80.3303777865 * I316) - (115.1570451563 * I252) + (4.1836503117 * (AVERAGE(I5:I6)*0.453592)) + (2553.6417073224 * I236 * I236) + (228.757399518 * I252 * I252) + (12.736240264 *  (I251/1000) * I253) - (24.4502664605 *  (I251/1000) * I316) - (23.0415882284 * I236 * I253) + (101.5847297779 * I236 * I316) - (1559.9331198689 * I236 *I252) - (3.9239483753 * I236 * (AVERAGE(I5:I6)*0.453592)) - (0.1078600966 * I253 * (AVERAGE(I5:I6)*0.453592)) - (28.1879330488 * I316 * I252) - (0.1153929924 * I316 * (AVERAGE(I5:I6)*0.453592))","v":548.13616804173489},475.74147464882753,413.49391362962149,363.13725449078942,326.79784463924585,301.24235802326291,null,{"$f":" -232.8670000513 - (102.0339177026 * (P251/1000)) + (1386.8135453223 * P236) - (3.1583174866 * P253) + (80.3303777865 * P316) - (115.1570451563 * P252) + (4.1836503117 * (AVERAGE(P5:P6)*0.453592)) + (2553.6417073224 * P236 * P236) + (228.757399518 * P252 * P252) + (12.736240264 *  (P251/1000) * P253) - (24.4502664605 *  (P251/1000) * P316) - (23.0415882284 * P236 * P253) + (101.5847297779 * P236 * P316) - (1559.9331198689 * P236 *P252) - (3.9239483753 * P236 * (AVERAGE(P5:P6)*0.453592)) - (0.1078600966 * P253 * (AVERAGE(P5:P6)*0.453592)) - (28.1879330488 * P316 * P252) - (0.1153929924 * P316 * (AVERAGE(P5:P6)*0.453592))","v":551.71776264187986},479.72040315004631,417.13996726322972,365.68103520491923,327.53100961701546,301.24235802326291,null,{"$f":" -232.8670000513 - (102.0339177026 * (W251/1000)) + (1386.8135453223 * W236) - (3.1583174866 * W253) + (80.3303777865 * W316) - (115.1570451563 * W252) + (4.1836503117 * (AVERAGE(W5:W6)*0.453592)) + (2553.6417073224 * W236 * W236) + (228.757399518 * W252 * W252) + (12.736240264 *  (W251/1000) * W253) - (24.4502664605 *  (W251/1000) * W316) - (23.0415882284 * W236 * W253) + (101.5847297779 * W236 * W316) - (1559.9331198689 * W236 *W252) - (3.9239483753 * W236 * (AVERAGE(W5:W6)*0.453592)) - (0.1078600966 * W253 * (AVERAGE(W5:W6)*0.453592)) - (28.1879330488 * W316 * W252) - (0.1153929924 * W316 * (AVERAGE(W5:W6)*0.453592))","v":555.31056526434872},483.73901499139083,420.79283801219384,368.26915264044965,328.31826271900195,301.24235802326291,null,{"$f":" -232.8670000513 - (102.0339177026 * (AD251/1000)) + (1386.8135453223 * AD236) - (3.1583174866 * AD253) + (80.3303777865 * AD316) - (115.1570451563 * AD252) + (4.1836503117 * (AVERAGE(AD5:AD6)*0.453592)) + (2553.6417073224 * AD236 * AD236) + (228.757399518 * AD252 * AD252) + (12.736240264 *  (AD251/1000) * AD253) - (24.4502664605 *  (AD251/1000) * AD316) - (23.0415882284 * AD236 * AD253) + (101.5847297779 * AD236 * AD316) - (1559.9331198689 * AD236 *AD252) - (3.9239483753 * AD236 * (AVERAGE(AD5:AD6)*0.453592)) - (0.1078600966 * AD253 * (AVERAGE(AD5:AD6)*0.453592)) - (28.1879330488 * AD316 * AD252) - (0.1153929924 * AD316 * (AVERAGE(AD5:AD6)*0.453592))","v":558.91156851249946},487.73504180043989,424.4759228850063,370.85566295655667,329.06636226940708,301.24235802326291,null,{"$f":" -232.8670000513 - (102.0339177026 * (AK251/1000)) + (1386.8135453223 * AK236) - (3.1583174866 * AK253) + (80.3303777865 * AK316) - (115.1570451563 * AK252) + (4.1836503117 * (AVERAGE(AK5:AK6)*0.453592)) + (2553.6417073224 * AK236 * AK236) + (228.757399518 * AK252 * AK252) + (12.736240264 *  (AK251/1000) * AK253) - (24.4502664605 *  (AK251/1000) * AK316) - (23.0415882284 * AK236 * AK253) + (101.5847297779 * AK236 * AK316) - (1559.9331198689 * AK236 *AK252) - (3.9239483753 * AK236 * (AVERAGE(AK5:AK6)*0.453592)) - (0.1078600966 * AK253 * (AVERAGE(AK5:AK6)*0.453592)) - (28.1879330488 * AK316 * AK252) - (0.1153929924 * AK316 * (AVERAGE(AK5:AK6)*0.453592))","v":562.47954762881193},491.72132395957289,428.09323903250197,373.36354614001243,329.82936941959872,301.24235802326291,null,{"$f":" -232.8670000513 - (102.0339177026 * (AR251/1000)) + (1386.8135453223 * AR236) - (3.1583174866 * AR253) + (80.3303777865 * AR316) - (115.1570451563 * AR252) + (4.1836503117 * (AVERAGE(AR5:AR6)*0.453592)) + (2553.6417073224 * AR236 * AR236) + (228.757399518 * AR252 * AR252) + (12.736240264 *  (AR251/1000) * AR253) - (24.4502664605 *  (AR251/1000) * AR316) - (23.0415882284 * AR236 * AR253) + (101.5847297779 * AR236 * AR316) - (1559.9331198689 * AR236 *AR252) - (3.9239483753 * AR236 * (AVERAGE(AR5:AR6)*0.453592)) - (0.1078600966 * AR253 * (AVERAGE(AR5:AR6)*0.453592)) - (28.1879330488 * AR316 * AR252) - (0.1153929924 * AR316 * (AVERAGE(AR5:AR6)*0.453592))","v":566.12740071945211},495.68312146732518,431.72916717503296,375.90290387684212,330.59292191323306,301.24235802326291]
["F/G",{"$f":"IF(B323=\"\",\"0\",1/B344*1000)","v":1.8364176005472321},2.1197407829045858,2.4398927702681932,2.7732270273032733,3.0668936649642822,3.319586284485188,null,{"$f":"IF(I323=\"\",\"0\",1/I344*1000)","v":1.8243641968976225},2.1019819656004519,2.4184152826387888,2.7537797007422267,3.0599957019419946,3.319586284485188,null,{"$f":"IF(P323=\"\",\"0\",1/P344*1000)","v":1.812520944063025},2.0845475686120052,2.3972768818121075,2.7346236302345375,3.0531460247666558,3.319586284485188,null,{"$f":"IF(W323=\"\",\"0\",1/W344*1000)","v":1.8007941187359948},2.0672304052584987,2.3764663028105573,2.7154052758155522,3.0458250836197647,3.319586284485188,null,{"$f":"IF(AD323=\"\",\"0\",1/AD344*1000)","v":1.7891918083954208},2.050293528856507,2.3558462237466116,2.6964668465023371,3.0389007041117702,3.319586284485188,null,{"$f":"IF(AK323=\"\",\"0\",1/AK344*1000)","v":1.7778424197210347},2.0336722270808321,2.3359397178521601,2.6783546769319493,3.0318706965353077,3.319586284485188,null,{"$f":"IF(AR323=\"\",\"0\",1/AR344*1000)","v":1.7663868569674763},2.0174178960134692,2.3162669470385282,2.6602614390221158,3.0248681496649179,3.319586284485188]
["Days on phase",{"$f":"(B6-B5)*0.453592/(B342/1000)","v":21.444223797755399},18.406470406661629,19.20054789166538,18.43491851613966,18.475451331583397,21.898926056424528,null,{"$f":"(I351-I5)*0.453592/(I342/1000)","v":21.444180657067676},{"$f":"(J351-I351)*0.453592/(J342/1000)","v":18.468861145667098},{"$f":"(K351-J351)*0.453592/(K342/1000)","v":19.241235076334746},{"$f":"(L351-K351)*0.453592/(L342/1000)","v":18.481784903982295},{"$f":"(M351-L351)*0.453592/(M342/1000)","v":18.543424990635529},{"$f":"(N351-M351)*0.453592/(N342/1000)","v":22.011726947699138},null,{"$f":"(P351-P5)*0.453592/(P342/1000)","v":21.444180512814388},{"$f":"(Q351-P351)*0.453592/(Q342/1000)","v":18.5304401206206},{"$f":"(R351-Q351)*0.453592/(R342/1000)","v":19.281577029672029},{"$f":"(S351-R351)*0.453592/(S342/1000)","v":18.528776430584667},{"$f":"(T351-S351)*0.453592/(T342/1000)","v":18.612534884371275},{"$f":"(U351-T351)*0.453592/(U342/1000)","v":22.125406592837031},null,{"$f":"(W351-W5)*0.453592/(W342/1000)","v":21.444180368200207},{"$f":"(X351-W351)*0.453592/(X342/1000)","v":18.592052665087088},{"$f":"(Y351-X351)*0.453592/(Y342/1000)","v":19.321625692823108},{"$f":"(Z351-Y351)*0.453592/(Z342/1000)","v":18.576031100282854},{"$f":"(AA351-Z351)*0.453592/(AA342/1000)","v":18.68232415303773},{"$f":"(AB351-AA351)*0.453592/(AB342/1000)","v":22.241813810965095},null,{"$f":"(AD351-AD5)*0.453592/(AD342/1000)","v":21.444180225508411},{"$f":"(AE351-AD351)*0.453592/(AE342/1000)","v":18.652744062285436},{"$f":"(AF351-AE351)*0.453592/(AF342/1000)","v":19.362078906597588},{"$f":"(AG351-AF351)*0.453592/(AG342/1000)","v":18.623185103685412},{"$f":"(AH351-AG351)*0.453592/(AH342/1000)","v":18.753188402720575},{"$f":"(AI351-AH351)*0.453592/(AI342/1000)","v":22.357022848537344},null,{"$f":"(AK351-AK5)*0.453592/(AK342/1000)","v":21.444180081008241},{"$f":"(AL351-AK351)*0.453592/(AL342/1000)","v":18.714085606058251},{"$f":"(AM351-AL351)*0.453592/(AM342/1000)","v":19.402521007844101},{"$f":"(AN351-AM351)*0.453592/(AN342/1000)","v":18.671284929069639},{"$f":"(AO351-AN351)*0.453592/(AO342/1000)","v":18.825090164827966},{"$f":"(AP351-AO351)*0.453592/(AP342/1000)","v":22.471337404739206},null,{"$f":"(AR351-AR5)*0.453592/(AR342/1000)","v":21.444179936906615},{"$f":"(AS351-AR351)*0.453592/(AS342/1000)","v":18.775142014533465},{"$f":"(AT351-AS351)*0.453592/(AT342/1000)","v":19.442688246434916},{"$f":"(AU351-AT351)*0.453592/(AU342/1000)","v":18.718975662448919},{"$f":"(AV351-AU351)*0.453592/(AV342/1000)","v":18.896995983012399},{"$f":"(AW351-AV351)*0.453592/(AW342/1000)","v":22.58564937195445}]
["Dressing, %",{"$f":" 51.6684755267 + 7.1030096064 * (B251/1000) + 54.0870565413 * B236 + 1.6439820046 * B253 + 0.4039153805 * B316 - 20.5375389219 * B252 + 0.2869358688 *(AVERAGE(B5:B6)*0.453592) - 0.016597667 * B316 * B316 - 0.1531408962 * (B251/1000) * (AVERAGE(B5:B6)*0.453592) - 4.8153797375 * B236 * B253 + 0.5304361357 * B236 * (AVERAGE(B5:B6)*0.453592) + 0.9830652207 * B253 * B252 - 0.0127129553 * B253 *(AVERAGE(B5:B6)*0.453592)","v":58.926946242378264},66.189194917789251,71.395755678401272,74.83136084114436,76.96558226351317,78.664524560378098,null,{"$f":" 51.6684755267 + 7.1030096064 * (I251/1000) + 54.0870565413 * I236 + 1.6439820046 * I253 + 0.4039153805 * I316 - 20.5375389219 * I252 + 0.2869358688 *(AVERAGE(I5:I6)*0.453592) - 0.016597667 * I316 * I316 - 0.1531408962 * (I251/1000) * (AVERAGE(I5:I6)*0.453592) - 4.8153797375 * I236 * I253 + 0.5304361357 * I236 * (AVERAGE(I5:I6)*0.453592) + 0.9830652207 * I253 * I252 - 0.0127129553 * I253 *(AVERAGE(I5:I6)*0.453592)","v":59.09139613138931},66.313420302963252,71.471346393132137,74.84636152949102,76.910352430709082,78.664524560378098,null,{"$f":" 51.6684755267 + 7.1030096064 * (P251/1000) + 54.0870565413 * P236 + 1.6439820046 * P253 + 0.4039153805 * P316 - 20.5375389219 * P252 + 0.2869358688 *(AVERAGE(P5:P6)*0.453592) - 0.016597667 * P316 * P316 - 0.1531408962 * (P251/1000) * (AVERAGE(P5:P6)*0.453592) - 4.8153797375 * P236 * P253 + 0.5304361357 * P236 * (AVERAGE(P5:P6)*0.453592) + 0.9830652207 * P253 * P252 - 0.0127129553 * P253 *(AVERAGE(P5:P6)*0.453592)","v":59.213405696969289},66.394267678839796,71.503229001911293,74.816417617610782,76.809839826814795,78.664524560378098,null,{"$f":" 51.6684755267 + 7.1030096064 * (W251/1000) + 54.0870565413 * W236 + 1.6439820046 * W253 + 0.4039153805 * W316 - 20.5375389219 * W252 + 0.2869358688 *(AVERAGE(W5:W6)*0.453592) - 0.016597667 * W316 * W316 - 0.1531408962 * (W251/1000) * (AVERAGE(W5:W6)*0.453592) - 4.8153797375 * W236 * W253 + 0.5304361357 * W236 * (AVERAGE(W5:W6)*0.453592) + 0.9830652207 * W253 * W252 - 0.0127129553 * W253 *(AVERAGE(W5:W6)*0.453592)","v":59.292236558404859},66.432213572130166,71.491030740073782,74.741625292437405,76.659885906926505,78.664524560378098,null,{"$f":" 51.6684755267 + 7.1030096064 * (AD251/1000) + 54.0870565413 * AD236 + 1.6439820046 * AD253 + 0.4039153805 * AD316 - 20.5375389219 * AD252 + 0.2869358688 *(AVERAGE(AD5:AD6)*0.453592) - 0.016597667 * AD316 * AD316 - 0.1531408962 * (AD251/1000) * (AVERAGE(AD5:AD6)*0.453592) - 4.8153797375 * AD236 * AD253 + 0.5304361357 * AD236 * (AVERAGE(AD5:AD6)*0.453592) + 0.9830652207 * AD253 * AD252 - 0.0127129553 * AD253 *(AVERAGE(AD5:AD6)*0.453592)","v":59.327622154748106},66.425476727488331,71.434541791076924,74.622045819313882,76.469002554340079,78.664524560378098,null,{"$f":" 51.6684755267 + 7.1030096064 * (AK251/1000) + 54.0870565413 * AK236 + 1.6439820046 * AK253 + 0.4039153805 * AK316 - 20.5375389219 * AK252 + 0.2869358688 *(AVERAGE(AK5:AK6)*0.453592) - 0.016597667 * AK316 * AK316 - 0.1531408962 * (AK251/1000) * (AVERAGE(AK5:AK6)*0.453592) - 4.8153797375 * AK236 * AK253 + 0.5304361357 * AK236 * (AVERAGE(AK5:AK6)*0.453592) + 0.9830652207 * AK253 * AK252 - 0.0127129553 * AK253 *(AVERAGE(AK5:AK6)*0.453592)","v":59.318356467807462},66.374582841623081,71.333617885657461,74.459439202728745,76.23542246748292,78.664524560378098,null,{"$f":" 51.6684755267 + 7.1030096064 * (AR251/1000) + 54.0870565413 * AR236 + 1.6439820046 * AR253 + 0.4039153805 * AR316 - 20.5375389219 * AR252 + 0.2869358688 *(AVERAGE(AR5:AR6)*0.453592) - 0.016597667 * AR316 * AR316 - 0.1531408962 * (AR251/1000) * (AVERAGE(AR5:AR6)*0.453592) - 4.8153797375 * AR236 * AR253 + 0.5304361357 * AR236 * (AVERAGE(AR5:AR6)*0.453592) + 0.9830652207 * AR253 * AR252 - 0.0127129553 * AR253 *(AVERAGE(AR5:AR6)*0.453592)","v":59.265466489103638},66.279535537836878,71.188164550840597,74.254493489462334,75.958637070765008,78.664524560378098]
["Backfat, mm",{"$f":" 41.4410513954 + (14.8656283053 * B236) - (0.6326892081 * B253) - (12.1380129342 * B252) -\n(0.0133880688 * (B253^2)) + (1.1112817574 * (B252^2))","v":9.5560371255009784},10.757396605242121,12.259709285644082,14.049104759357949,15.652515990358797,16.585997021003028,null,{"$f":" 41.4410513954 + (14.8656283053 * I236) - (0.6326892081 * I253) - (12.1380129342 * I252) -\n(0.0133880688 * (I253^2)) + (1.1112817574 * (I252^2))","v":9.0933048618120118},10.311012862634842,11.823664253738526,13.630979852848109,15.248496810138954,16.585997021003028,null,{"$f":" 41.4410513954 + (14.8656283053 * P236) - (0.6326892081 * P253) - (12.1380129342 * P252) -\n(0.0133880688 * (P253^2)) + (1.1112817574 * (P252^2))","v":8.6242264868095067},9.8574304209795365,11.384026026423545,13.204884468312088,14.837241706198098,16.585997021003028,null,{"$f":" 41.4410513954 + (14.8656283053 * W236) - (0.6326892081 * W253) - (12.1380129342 * W252) -\n(0.0133880688 * (W253^2)) + (1.1112817574 * (W252^2))","v":8.1510930677487536},9.3991090791810272,10.939436909321465,12.771966731073549,14.411122606313359,16.585997021003028,null,{"$f":" 41.4410513954 + (14.8656283053 * AD236) - (0.6326892081 * AD253) - (12.1380129342 * AD252) -\n(0.0133880688 * (AD253^2)) + (1.1112817574 * (AD252^2))","v":7.6700654777157986},8.9364822664303851,10.487077634288781,12.33234149436136,13.985626544785905,16.585997021003028,null,{"$f":" 41.4410513954 + (14.8656283053 * AK236) - (0.6326892081 * AK253) - (12.1380129342 * AK252) -\n(0.0133880688 * (AK253^2)) + (1.1112817574 * (AK252^2))","v":7.1853653926390351},8.4684247652800657,10.032696964274615,11.887990957422288,13.558286189646102,16.585997021003028,null,{"$f":" 41.4410513954 + (14.8656283053 * AR236) - (0.6326892081 * AR253) - (12.1380129342 * AR252) -\n(0.0133880688 * (AR253^2)) + (1.1112817574 * (AR252^2))","v":6.6969433924295458},7.9920964947221336,9.5645988475590684,11.44361850021634,13.126486599606135,16.585997021003028]
["Loin depth, mm",{"$f":" -16.7992454106 + 17.2658536059 * (B251/1000) - 106.6634904715 * B236 + 0.1550376119 * B253 - 0.0727312562 * B316 + 48.6541457906 * B252 - 0.1535643762 * B253 * B253 - 0.0358142801 * B316 * B316 - 5.4618633046 * B252 * B252 + 4.2267870055 * B236 * B253 - 2.0313848595 * B236 * B316 + 0.1484978883 * B253 * B316","v":51.865570489059841},57.191564116130472,59.985859623399051,60.902879894464405,60.770621726469166,60.466263275736296,null,{"$f":" -16.7992454106 + 17.2658536059 * (I251/1000) - 106.6634904715 * I236 + 0.1550376119 * I253 - 0.0727312562 * I316 + 48.6541457906 * I252 - 0.1535643762 * I253 * I253 - 0.0358142801 * I316 * I316 - 5.4618633046 * I252 * I252 + 4.2267870055 * I236 * I253 - 2.0313848595 * I236 * I316 + 0.1484978883 * I253 * I316","v":51.783866857205012},57.125618094797098,59.934030001518721,60.850116086046441,60.707554439258523,60.466263275736296,null,{"$f":" -16.7992454106 + 17.2658536059 * (P251/1000) - 106.6634904715 * P236 + 0.1550376119 * P253 - 0.0727312562 * P316 + 48.6541457906 * P252 - 0.1535643762 * P253 * P253 - 0.0358142801 * P316 * P316 - 5.4618633046 * P252 * P252 + 4.2267870055 * P236 * P253 - 2.0313848595 * P236 * P316 + 0.1484978883 * P253 * P316","v":51.701273375053937},57.054991340604431,59.876062262285146,60.791961352377797,60.638737841734908,60.466263275736296,null,{"$f":" -16.7992454106 + 17.2658536059 * (W251/1000) - 106.6634904715 * W236 + 0.1550376119 * W253 - 0.0727312562 * W316 + 48.6541457906 * W252 - 0.1535643762 * W253 * W253 - 0.0358142801 * W316 * W316 - 5.4618633046 * W252 * W252 + 4.2267870055 * W236 * W253 - 2.0313848595 * W236 * W316 + 0.1484978883 * W253 * W316","v":51.615797751803427},56.981560306091339,59.811755077100386,60.729286038228253,60.570057420500376,60.466263275736296,null,{"$f":" -16.7992454106 + 17.2658536059 * (AD251/1000) - 106.6634904715 * AD236 + 0.1550376119 * AD253 - 0.0727312562 * AD316 + 48.6541457906 * AD252 - 0.1535643762 * AD253 * AD253 - 0.0358142801 * AD316 * AD316 - 5.4618633046 * AD252 * AD252 + 4.2267870055 * AD236 * AD253 - 2.0313848595 * AD236 * AD316 + 0.1484978883 * AD253 * AD316","v":51.528196427835837},56.899524710044396,59.743742974388688,60.661311299934667,60.494952417231694,60.466263275736296,null,{"$f":" -16.7992454106 + 17.2658536059 * (AK251/1000) - 106.6634904715 * AK236 + 0.1550376119 * AK253 - 0.0727312562 * AK316 + 48.6541457906 * AK252 - 0.1535643762 * AK253 * AK253 - 0.0358142801 * AK316 * AK316 - 5.4618633046 * AK252 * AK252 + 4.2267870055 * AK236 * AK253 - 2.0313848595 * AK236 * AK316 + 0.1484978883 * AK253 * AK316","v":51.430326388055704},56.811336359911465,59.665516320557913,60.588758520318819,60.413356563780425,60.466263275736296,null,{"$f":" -16.7992454106 + 17.2658536059 * (AR251/1000) - 106.6634904715 * AR236 + 0.1550376119 * AR253 - 0.0727312562 * AR316 + 48.6541457906 * AR252 - 0.1535643762 * AR253 * AR253 - 0.0358142801 * AR316 * AR316 - 5.4618633046 * AR252 * AR252 + 4.2267870055 * AR236 * AR253 - 2.0313848595 * AR236 * AR316 + 0.1484978883 * AR253 * AR316","v":51.333048683753852},56.717888089032421,59.587513468898166,60.509888062978689,60.325688480526559,60.466263275736296]
["Lean, %",{"$f":" 49.3215904687 - 4.5564383267 * (B251/1000) + 31.3355706686 * B236 + 0.0864922401 * B253 - 16.201377828 * B236 * B236","v":53.767985207144591},54.221957863966054,54.11985087991409,53.644786108848308,53.100859923606755,52.737723960313936,null,{"$f":" 49.3215904687 - 4.5564383267 * (I251/1000) + 31.3355706686 * I236 + 0.0864922401 * I253 - 16.201377828 * I236 * I236","v":53.805166262959759},54.258441790395381,54.15629245890738,53.680605208877083,53.13647582019366,52.737723960313936,null,{"$f":" 49.3215904687 - 4.5564383267 * (P251/1000) + 31.3355706686 * P236 + 0.0864922401 * P253 - 16.201377828 * P236 * P236","v":53.841518926567701},54.294770838288713,54.192099907268307,53.71678061833218,53.172389210444507,52.737723960313936,null,{"$f":" 49.3215904687 - 4.5564383267 * (W251/1000) + 31.3355706686 * W236 + 0.0864922401 * W253 - 16.201377828 * W236 * W236","v":53.876986269149981},54.329875823844006,54.227702421462745,53.752001372059084,53.207999642879145,52.737723960313936,null,{"$f":" 49.3215904687 - 4.5564383267 * (AD251/1000) + 31.3355706686 * AD236 + 0.0864922401 * AD253 - 16.201377828 * AD236 * AD236","v":53.912202855978791},54.365427030546286,54.262941392447466,53.787562202865587,53.24400192484616,52.737723960313936,null,{"$f":" 49.3215904687 - 4.5564383267 * (AK251/1000) + 31.3355706686 * AK236 + 0.0864922401 * AK253 - 16.201377828 * AK236 * AK236","v":53.947911308244883},54.401073506997619,54.299168914933411,53.82444110636915,53.27925127638818,52.737723960313936,null,{"$f":" 49.3215904687 - 4.5564383267 * (AR251/1000) + 31.3355706686 * AR236 + 0.0864922401 * AR253 - 16.201377828 * AR236 * AR236","v":53.982152599471874},54.437287075775657,54.335745198265236,53.859914486004556,53.314497122032883,52.737723960313936]
["Final BW",{"$f":"B5+(B342*0.00220462*B346)","v":84.999929826400006},119.99992982640001,159.99991980159999,199.99991980160002,239.99991980159999,284.9999097768,null,{"$f":"$B$351-I268","v":84.881580127145668},{"$f":"$C$351-J268","v":119.91537195269322},{"$f":"$D$351-K268","v":159.8986012971061},{"$f":"$E$351-L268","v":199.85360728427887},{"$f":"$F$351-M268","v":239.76811575666045},{"$f":"$G$351-N268","v":284.9999097768},null,{"$f":"$B$351-P268","v":84.765332013975552},{"$f":"$C$351-Q268","v":119.8319670551648},{"$f":"$D$351-R268","v":159.79776081036005},{"$f":"$E$351-S268","v":199.70658229085751},{"$f":"$F$351-T268","v":239.53451598934654},{"$f":"$G$351-U268","v":284.9999097768},null,{"$f":"$B$351-W268","v":84.649568215378878},{"$f":"$C$351-X268","v":119.74959113349549},{"$f":"$D$351-Y268","v":159.69710239526202},{"$f":"$E$351-Z268","v":199.55992251152736},{"$f":"$F$351-AA268","v":239.29531134514318},{"$f":"$G$351-AB268","v":284.9999097768},null,{"$f":"$B$351-AD268","v":84.536096465166835},{"$f":"$C$351-AE268","v":119.66679265236979},{"$f":"$D$351-AF268","v":159.5974162049551},{"$f":"$E$351-AG268","v":199.41276040880135},{"$f":"$F$351-AH268","v":239.05856883652001},{"$f":"$G$351-AI268","v":284.9999097768},null,{"$f":"$B$351-AK268","v":84.421941546879992},{"$f":"$C$351-AL268","v":119.58445030279348},{"$f":"$D$351-AM268","v":159.49647340382154},{"$f":"$E$351-AN268","v":199.26519952236791},{"$f":"$F$351-AO268","v":238.82366439345145},{"$f":"$G$351-AP268","v":284.9999097768},null,{"$f":"$B$351-AR268","v":84.308850526242281},{"$f":"$C$351-AS268","v":119.50307684235254},{"$f":"$D$351-AT268","v":159.39714065207249},{"$f":"$E$351-AU268","v":199.11945841961372},{"$f":"$F$351-AV268","v":238.58876527047931},{"$f":"$G$351-AW268","v":284.9999097768}]
["Withdrawal Period",0,0,0,0,0,22.19,null,0,0,0,0,0,22.19,null,0,0,0,0,0,22.19,null,0,0,0,0,0,22.19,null,0,0,0,0,0,22.19,null,0,0,0,0,0,22.19,null,0,0,0,0,0,22.19]
["Soto Model for Yield",{"$f":"0.03492*B352-0.05092*B316-0.06897*B316-0.00289*(B316*B352)+76.0769-(75.23-'DDGS Calculator'!$G$9)","v":74.819451185589813},{"$f":"0.03492*C352-0.05092*B316-0.06897*C316-0.00289*(C316*C352)+76.0769-(75.23-'DDGS Calculator'!$G$9)","v":74.814490114943524},{"$f":"0.03492*D352-0.05092*C316-0.06897*D316-0.00289*(D316*D352)+76.0769-(75.23-'DDGS Calculator'!$G$9)","v":74.806402824315015},{"$f":"0.03492*E352-0.05092*D316-0.06897*E316-0.00289*(E316*E352)+76.0769-(75.23-'DDGS Calculator'!$G$9)","v":74.799464091992718},{"$f":"0.03492*F352-0.05092*E316-0.06897*F316-0.00289*(F316*F352)+76.0769-(75.23-'DDGS Calculator'!$G$9)","v":74.793950097444124},{"$f":"0.03492*G352-0.05092*F316-0.06897*G316-0.00289*(G316*G352)+76.0769-(75.23-'DDGS Calculator'!$G$9)","v":74.99996147514166},null,{"$f":"0.03492*I352-0.05092*I316-0.06897*I316-0.00289*(I316*I352)+76.0769-(75.23-'DDGS Calculator'!$G$9)","v":74.680728602114684},{"$f":"0.03492*J352-0.05092*I316-0.06897*J316-0.00289*(J316*J352)+76.0769-(75.23-'DDGS Calculator'!$G$9)","v":74.675866467858711},{"$f":"0.03492*K352-0.05092*J316-0.06897*K316-0.00289*(K316*K352)+76.0769-(75.23-'DDGS Calculator'!$G$9)","v":74.66780130860505},{"$f":"0.03492*L352-0.05092*K316-0.06897*L316-0.00289*(L316*L352)+76.0769-(75.23-'DDGS Calculator'!$G$9)","v":74.66086783566206},{"$f":"0.03492*M352-0.05092*L316-0.06897*M316-0.00289*(M316*M352)+76.0769-(75.23-'DDGS Calculator'!$G$9)","v":74.655385703798331},{"$f":"0.03492*N352-0.05092*M316-0.06897*N316-0.00289*(N316*N352)+76.0769-(75.23-'DDGS Calculator'!$G$9)","v":74.941110108619952},null,{"$f":"0.03492*P352-0.05092*P316-0.06897*P316-0.00289*(P316*P352)+76.0769-(75.23-'DDGS Calculator'!$G$9)","v":74.542116362414745},{"$f":"0.03492*Q352-0.05092*P316-0.06897*Q316-0.00289*(Q316*Q352)+76.0769-(75.23-'DDGS Calculator'!$G$9)","v":74.537279186489044},{"$f":"0.03492*R352-0.05092*Q316-0.06897*R316-0.00289*(R316*R352)+76.0769-(75.23-'DDGS Calculator'!$G$9)","v":74.529258120126016},{"$f":"0.03492*S352-0.05092*R316-0.06897*S316-0.00289*(S316*S352)+76.0769-(75.23-'DDGS Calculator'!$G$9)","v":74.522336479325688},{"$f":"0.03492*T352-0.05092*S316-0.06897*T316-0.00289*(T316*T352)+76.0769-(75.23-'DDGS Calculator'!$G$9)","v":74.516832944937548},{"$f":"0.03492*U352-0.05092*T316-0.06897*U316-0.00289*(U316*U352)+76.0769-(75.23-'DDGS Calculator'!$G$9)","v":74.882258548467121},null,{"$f":"0.03492*W352-0.05092*W316-0.06897*W316-0.00289*(W316*W352)+76.0769-(75.23-'DDGS Calculator'!$G$9)","v":74.403465520002726},{"$f":"0.03492*X352-0.05092*W316-0.06897*X316-0.00289*(X316*X352)+76.0769-(75.23-'DDGS Calculator'!$G$9)","v":74.398668592790372},{"$f":"0.03492*Y352-0.05092*X316-0.06897*Y316-0.00289*(Y316*Y352)+76.0769-(75.23-'DDGS Calculator'!$G$9)","v":74.390670232630328},{"$f":"0.03492*Z352-0.05092*Y316-0.06897*Z316-0.00289*(Z316*Z352)+76.0769-(75.23-'DDGS Calculator'!$G$9)","v":74.383788779859572},{"$f":"0.03492*AA352-0.05092*Z316-0.06897*AA316-0.00289*(AA316*AA352)+76.0769-(75.23-'DDGS Calculator'!$G$9)","v":74.37836420288194},{"$f":"0.03492*AB352-0.05092*AA316-0.06897*AB316-0.00289*(AB316*AB352)+76.0769-(75.23-'DDGS Calculator'!$G$9)","v":74.823461992553177},null,{"$f":"0.03492*AD352-0.05092*AD316-0.06897*AD316-0.00289*(AD316*AD352)+76.0769-(75.23-'DDGS Calculator'!$G$9)","v":74.264881221970171},{"$f":"0.03492*AE352-0.05092*AD316-0.06897*AE316-0.00289*(AE316*AE352)+76.0769-(75.23-'DDGS Calculator'!$G$9)","v":74.26006834866098},{"$f":"0.03492*AF352-0.05092*AE316-0.06897*AF316-0.00289*(AF316*AF352)+76.0769-(75.23-'DDGS Calculator'!$G$9)","v":74.252113927237829},{"$f":"0.03492*AG352-0.05092*AF316-0.06897*AG316-0.00289*(AG316*AG352)+76.0769-(75.23-'DDGS Calculator'!$G$9)","v":74.245296856199673},{"$f":"0.03492*AH352-0.05092*AG316-0.06897*AH316-0.00289*(AH316*AH352)+76.0769-(75.23-'DDGS Calculator'!$G$9)","v":74.240672270364712},{"$f":"0.03492*AI352-0.05092*AH316-0.06897*AI316-0.00289*(AI316*AI352)+76.0769-(75.23-'DDGS Calculator'!$G$9)","v":74.76522657850272},null,{"$f":"0.03492*AK352-0.05092*AK316-0.06897*AK316-0.00289*(AK316*AK352)+76.0769-(75.23-'DDGS Calculator'!$G$9)","v":74.126344508857017},{"$f":"0.03492*AL352-0.05092*AK316-0.06897*AL316-0.00289*(AL316*AL352)+76.0769-(75.23-'DDGS Calculator'!$G$9)","v":74.121544497285768},{"$f":"0.03492*AM352-0.05092*AL316-0.06897*AM316-0.00289*(AM316*AM352)+76.0769-(75.23-'DDGS Calculator'!$G$9)","v":74.113580746605678},{"$f":"0.03492*AN352-0.05092*AM316-0.06897*AN316-0.00289*(AN316*AN352)+76.0769-(75.23-'DDGS Calculator'!$G$9)","v":74.107462176703137},{"$f":"0.03492*AO352-0.05092*AN316-0.06897*AO316-0.00289*(AO316*AO352)+76.0769-(75.23-'DDGS Calculator'!$G$9)","v":74.103683538804276},{"$f":"0.03492*AP352-0.05092*AO316-0.06897*AP316-0.00289*(AP316*AP352)+76.0769-(75.23-'DDGS Calculator'!$G$9)","v":74.707144698484541},null,{"$f":"0.03492*AR352-0.05092*AR316-0.06897*AR316-0.00289*(AR316*AR352)+76.0769-(75.23-'DDGS Calculator'!$G$9)","v":73.987896015976716},{"$f":"0.03492*AS352-0.05092*AR316-0.06897*AS316-0.00289*(AS316*AS352)+76.0769-(75.23-'DDGS Calculator'!$G$9)","v":73.983065723946495},{"$f":"0.03492*AT352-0.05092*AS316-0.06897*AT316-0.00289*(AT316*AT352)+76.0769-(75.23-'DDGS Calculator'!$G$9)","v":73.97518298389079},{"$f":"0.03492*AU352-0.05092*AT316-0.06897*AU316-0.00289*(AU316*AU352)+76.0769-(75.23-'DDGS Calculator'!$G$9)","v":73.970042129510418},{"$f":"0.03492*AV352-0.05092*AU316-0.06897*AV316-0.00289*(AV316*AV352)+76.0769-(75.23-'DDGS Calculator'!$G$9)","v":73.966930322064314},{"$f":"0.03492*AW352-0.05092*AV316-0.06897*AW316-0.00289*(AW316*AW352)+76.0769-(75.23-'DDGS Calculator'!$G$9)","v":74.64906292627694}]